{"text_format":"1","workbook":"xlsx","n_sheets":35,"sheets":["Title Page","Technical trail","Version History","Admin","User Guide","Underlying Data List","Appraisal Summary","Results","Sensitivity Analysis","Scenario Analysis","Data Input - Case description","Data Input - Qualitative","Data Input - General","Data Input - BAU","Data Input - Proposed","Data Input - BAT","Data Input - Option 3","Data Input - Option 4","Data Input - Option 5","Calc_BAU","Calc_Proposed","Calc_BAT","Calc_Option3","Calc_Option4","Calc_Option5","Scenario Calcs","Sensitivity Calcs","Energy Prices","Carbon Prices","Damage costs","Emissions factors","Discount and deflators","Assumptions","Data Guide","Lists"],"not_rendered":{"charts":0,"images":2,"macros":1,"external_links":0,"defined_names":38,"comments":20,"pivot_tables":0},"unopened":[],"bounds":{"document_bytes":16777216,"sheet_cells":100000,"rows_first":2000,"rows_last":500,"rows_between":2000,"halvings":0,"cell_chars":16384,"cell_head_chars":4096},"cells_cut":0,"cells_raw":0,"read":"whole","date_system":"1900"}

{"sheet":"Title Page","index":0,"n_rows":14,"n_cols":25,"rows_kept":14,"cut":false,"hidden":false,"merged":[[12,12,12,28],[13,12,13,28],[2,18,4,28],[5,18,5,23],[5,24,5,28],[6,18,6,23],[6,24,6,28]]}
[]
[]
[null,null,null,null,null,null,null,null,null,null,null,null,null,null,null,null,null,null,"IED Derogation Cost-Benefit Analysis Tool"]
[]
[]
[null,null,null,null,null,null,null,null,null,null,null,null,null,null,null,null,null,null,"Version Number:",null,null,null,null,null,{"$f":"MAX('Version History'!$D:$D)","v":6.17}]
[null,null,null,null,null,null,null,null,null,null,null,null,null,null,null,null,null,null,"Last Update:",null,null,null,null,"Last Update:",{"$f":"MAX('Version History'!F:F)","v":"2017-09-29"}]
[]
[]
[]
[]
[null,null,null,null,null,null,null,null,null,null,null,null,"Copyright and important notice for all users:"]
[null,null,null,null,null,null,null,null,null,null,null,null,"This model is the copyright of the Environment Agency.  It was originally prepared by Ricardo-AEA under contract 'Development of IED derogation cost-benefit analysis tool and user guidance' (ED60335) dated 7 November 2014 and has been refined by the Environment Agency since.  The contents of this model may not be reproduced in whole or in part, nor passed to any organisation or person without the specific prior written permission of the Environment Agency."]
[null,null,null,null,null,null,null,null,null,null,null,null,"All users of this model are accordingly advised to undertake their own review of its assumptions, calculations and results before making any decision or entering into any commitment based on the information herein.  No representation, warranty or undertaking (expressed or implied) is made by the Environment Agency or Ricardo-AEA for the adequacy, completeness or accuracy of the model or the assumptions on which it is based.  The Environment Agency and Ricardo-AEA accept no liability whatsoever to any third party for any loss or damage arising from any interpretation or use of the information contained in this model, or reliance on any views expressed therein."]

{"sheet":"Technical trail","index":1,"n_rows":4,"n_cols":7,"rows_kept":4,"cut":false,"hidden":false,"merged":[[150,6,150,28],[63,6,63,28],[64,6,64,28],[65,6,65,28],[66,6,66,28],[67,6,67,28],[68,6,68,28],[62,6,62,28],[51,6,51,28],[52,6,52,28],[53,6,53,28],[54,6,54,28],[55,6,55,28],[56,6,56,28],[57,6,57,28],[58,6,58,28],[59,6,59,28],[60,6,60,28],[61,6,61,28],[50,6,50,28],[39,6,39,28],[40,6,40,28],[41,6,41,28],[42,6,42,28],[43,6,43,28],[44,6,44,28],[45,6,45,28],[46,6,46,28],[47,6,47,28],[48,6,48,28],[49,6,49,28],[38,6,38,28],[27,6,27,28],[28,6,28,28],[29,6,29,28],[30,6,30,28],[31,6,31,28],[32,6,32,28],[33,6,33,28],[34,6,34,28],[35,6,35,28],[36,6,36,28],[37,6,37,28],[26,6,26,28],[15,6,15,28],[16,6,16,28],[17,6,17,28],[18,6,18,28],[19,6,19,28],[20,6,20,28],[21,6,21,28],[22,6,22,28],[23,6,23,28],[24,6,24,28],[25,6,25,28],[14,6,14,28],[3,6,3,28],[4,6,4,28],[5,6,5,28],[6,6,6,28],[7,6,7,28],[8,6,8,28],[9,6,9,28],[10,6,10,28],[11,6,11,28],[12,6,12,28],[13,6,13,28]]}
[]
[]
[null,null,null,"Your Input Version History"]
[null,null,null,"Version Number","Done By","Date","Description of changes from previous version"]

{"sheet":"Version History","index":2,"n_rows":75,"n_cols":7,"rows_kept":75,"cut":false,"hidden":false,"merged":[[39,6,39,28],[41,6,41,28],[40,6,40,28],[36,6,36,28],[64,6,64,28],[59,6,59,28],[60,6,60,28],[61,6,61,28],[62,6,62,28],[63,6,63,28],[37,6,37,28],[38,6,38,28],[10,6,10,28],[11,6,11,28],[12,6,12,28],[13,6,13,28],[19,6,19,28],[14,6,14,28],[15,6,15,28],[16,6,16,28],[17,6,17,28],[18,6,18,28],[5,6,5,28],[4,6,4,28],[3,6,3,28],[8,6,8,28],[9,6,9,28],[7,6,7,28],[6,6,6,28],[26,6,26,28],[25,6,25,28],[28,6,28,28],[20,6,20,28],[24,6,24,28],[23,6,23,28],[22,6,22,28],[21,6,21,28],[27,6,27,28],[29,6,29,28],[31,6,31,28],[30,6,30,28],[32,6,32,28],[35,6,35,28],[34,6,34,28],[33,6,33,28],[149,6,149,28],[46,6,46,28],[47,6,47,28],[48,6,48,28],[49,6,49,28],[50,6,50,28],[51,6,51,28],[52,6,52,28],[53,6,53,28],[54,6,54,28],[55,6,55,28],[56,6,56,28],[57,6,57,28],[58,6,58,28],[65,6,65,28],[66,6,66,28],[74,6,74,28],[45,6,45,28],[44,6,44,28],[42,6,42,28],[43,6,43,28],[67,6,67,28],[73,6,73,28],[68,6,68,28],[69,6,69,28],[70,6,70,28],[71,6,71,28],[72,6,72,28]]}
[]
[]
[null,null,null,"Tool Version History"]
[null,null,null,"Version Number","Done By","Date","Description of changes from previous version"]
[null,null,null,1,"Ricardo AEA","2015-01-09","Initial version of model created for user testing"]
[null,null,null,2,"Ricardo AEA","2015-01-29","Version updated for EA and user testing comments"]
[null,null,null,2.1,"Matt Georges","2015-02-26","The following changes were made by Matt Georges (EA): 1. PV costs changed to include only upfront costs, O&M costs, waste disposal costs and energy consumption costs.  PV benefits changed to include only emissions to air and GHG emissions.  2.  Reference to 2015 in the uplift factor cells in the calculation worksheets was altered to reference to the cell in which the year of the appraisal is entered (D24 in the data input - general worksheet).  3. The Results worksheet was altered to make the ranking based on incremental NPV the major output from the tool and to make this clearer to the user.  4. Various minor editing changes.  5. Reference to damage costs associated with accidents was removed on the advice of EA regulatory colleagues.  6. Worksheets were protected."]
[null,null,null,2.2000000000000002,"Matt Georges","2015-03-31","The following changes were made by Matt Georges (EA): 1. The Results worksheet was altered to make the ranking based on NPV the major output from the tool.   2. 'PM' changed to 'PM10' in data input worksheets.    3. Benefit-Cost Ratio and incremental NPV removed from Results and Analysis worksheets to provide greater clarity as to the key result metric.   4. Comparator changed to the applicant's 'preferred' option."]
[null,null,null,2.2999999999999998,"Matt Georges","2015-04-14","The following changes were made by Matt Georges (EA): 1. Changes to Results sheet made in v 2.2 reversed.   2. Changes to comparator in v2.2 reversed.   3. 'PM' changed to 'PM10' in damage costs worksheet."]
[null,null,null,2.4,"Anna Maria Giacomello","2015-04-23","The following changes were made by Anna Maria Giacomello (EA): 1. the layout of the Results sheet was changed to show the ranking of options whose NPVs have been derived  net of BAU costs and benefits.  The NPV for BAT is now calculated as net of the costs and benefits of the preferred option. 2. the terms used across the spreadsheet have been checked for consistency. 3. the sensitivity and scenario sheets have both been changed to make them consistent with the new layout in the Results sheet."]
[null,null,null,2.5,"Matt Georges","2015-04-30","Changes made by Matt Georges (EA): PV benefits in Results sheet altered to be positive not negative.  Notation in Damage Costs sheet changed from PM to PM10 to match rest of the tool."]
[null,null,null,2.6,"Matt Georges","2015-05-20","Changes made by Matt Georges (EA): User Guide and cell comments updated to include reference to BAU rather than full derogation scenario.  Clarifications made to User Guide and Results tabs.  Uplift factor formula corrected in row 192 of Calc_B.  Ranking same as central scenario forumlas changed in Sensitivity Analysis and Scenrio Analysis tabs.  Message in each data input tab that is linked to whether financing costs are entered manually or not altered to refer to correct rows."]
[null,null,null,2.7,"Matt Georges","2015-06-03","User Input cells in Case Description tab unlocked. [Matt Georges]"]
[null,null,null,2.8,"Matt Georges","2015-06-09","Formula in cell E11 in Results sheet corrected.  [Matt Georges]"]
[null,null,null,2.9,"Matt Georges","2015-06-09","Major changes made to Results sheet by Scott Latham under instruction of Matt Georges.  Including correction of Summary Results formulas and display of sensitivity and scenario analysis results."]
[null,null,null,3,"Matt Georges","2015-06-16","Version name changed for internal EA publication purposes. [Matt Georges]"]
[null,null,null,4,"Matt Georges","2015-06-22","Changes made to rows 215 and 226 in the Calc_Scenario sheets to ensure the Low and High WACC sensitivity analysis works with manually entered financing costs [Matt Georges].  This version was released externally on 22nd June 2015."]
[null,null,null,5,"Matt Georges","2015-07-31","B8 in Results reworded to improve clarity.  Tab colours changed to improve visibility for users with colour blindness."]
[null,null,null,6,"Scott Latham","2015-09-15","Major Rebuild of tool to make the user interface more navigable - reworking of all worksheets to adapt to changes in names and layout"]
[null,null,null,null,null,null,"Removed Location related damage costs functionality from tool on request from Matt. Data entry removed from General Input worksheet, Relevant cells removed from 'Damage Costs' worksheet, and all Calculation worksheets - Calc_BAU - Calc_Option6 VLOOKUPS updated to look at adjusted 'IGCB best estimate' rather than look location value"]
[null,null,null,null,null,null,"Damage Costs worksheet changed - moved from 3 tables into 1 larger, with inclusion of options to have different cost for NOX if PM10 also included in appraisal. Formulas changed in CALC sheets to account for this new option with IF statements where PM10 exists"]
[null,null,null,null,null,null,"Removed all cells and references to 'Accidents' across all worksheets as deemed to no longer be suitable for the tool"]
[null,null,null,null,null,null,"Made exchange rate row titles clearer in the Assumptions tab reworded to '£1 buys X US dollars'"]
[null,null,null,null,null,null,"Corrected hyperlinks in Data Guides worksheet"]
[null,null,null,null,null,null,"Made it easier to include new pollutants in 'Damage Costs' worksheet, and split out NOX into 5 categories. "]
[null,null,null,null,null,null,"Merged Chart worksheet into Results worksheet"]
[null,null,null,null,null,null,"Set uplift factor on each Options Calc sheet to point at a single value on Discoutn and deflators worksheet (h5)"]
[null,null,null,6.01,"Matt Georges","2015-10-13"]
[null,null,null,6.02,"Matt Georges","2015-10-14","Update to the GDP deflator and exchange rate values"]
[null,null,null,6.03,"Scott Latham","2015-11-30","Re-inserted uplift rate into 'Damage Costs' formulas"]
[null,null,null,null,null,null,"Renamed appraisal summary to Summary Results - redesigned with new table and layout. Most questions removed from this worksheet"]
[null,null,null,null,null,null,"Conditional formatting added to 'Data Input - Qualitative' worksheet - Negative/Positive colour coding"]
[null,null,null,null,null,null,"Emissions to soil’ and ‘Valuation of wider environmental impacts’ removed from all worksheets and CALC worksheets"]
[null,null,null,null,null,null,"Added conditional formatting to each Option input worksheet to hide #.14, #.15, #.16 depending on whether Yes/No is selected in drop down menu"]
[null,null,null,null,null,null,"Fixed text wrapping, and some locked/unlocked issues across all worksheets"]
[null,null,null,null,null,null,"Changed 'Cost of capital (financing)' on all Options worksheets. 'Total upfront investment cost for first installation only' now automatically calculated in CALC workshets for each option (formulas amended to account for this change). 'Repayment period (If entered manually)' line removed as served no function in the tool."]
[null,null,null,null,null,null,"BAU Worksheet and Calc reinstated - but in different standalone way. Tool remains using preferred options as comparison for all other options rather than BAU as before"]
[null,null,null,null,null,null,"Redesign to Summary appraisal worksheet"]
[null,null,null,null,null,null,"Damage Costs now have MIN and MAX features as requested by Matt Georges, so that High and Low benefits are taken into account and max and min figures pulled out. CALC worksheets for each option updated to reflect this - VLOOKUPs replaced with INDEX/MATCH"]
[null,null,null,null,null,null,"Added table of Pollutants to Scenario and Sensitivity Analysis worksheets"]
[null,null,null,6.04,"Matt Georges","2015-12-03","Added 2015 damage cost values, descriptions of the purpose of the sheet in most worksheets and corrected the tick and cross options in the Appraisal Summary worksheet."]
[null,null,null,6.05,"Scott Latham","2015-12-04","Removed 2 columns from damage cost sheet"]
[null,null,null,null,null,null,"Added Macro which allows user to copy from one worksheet to another, with user form. Workbook must now be macro enabled."]
[null,null,null,null,null,null,"Minor changes to other worksheets, text values etc.."]
[null,null,null,6.06,"Matt Georges","2015-12-11","In the Data Input-General sheet: conditional formatting in cells F27-30 removed; data validation altered for row 27 so min. Year is now 1940; last year of initial operations formulas corrected.  Data Input- Options sheets: Decimal places and negative numbers allowed in data validation; air pollutant emissions rounded to 2 decimal places.   Results sheet: Formulas changed to correct rankings when BAU and proposed derogation options are equal and when some options have been left blank."]
[null,null,null,6.07,"Matt Georges","2016-01-21","Corrected a small bug with the PM10 ESI damage costs label.  Updated all data derived from Green Book supplementary guidance: valuation of energy use and greenhouse gas emissions for appraisal.  Ran test using real world data."]
[null,null,null,6.08,"Matt Georges","2016-01-29","Altered cells D23, D198 and D211 in all 'Calc_' sheets to include reference to cell F30 in 'Data Input - General'.  Changed H15 in 'Results' worksheet to always read zero.  All references to \"including wider environmental benefits\" removed from 'Sensitivity Analysis' and 'Sensitivity Calcs' worksheets.  Corrected name of proposed option in Lists worksheet.  Ran final test using real world data."]
[null,null,null,6.09,"Matt Georges","2016-02-02","Updated uder guide and inserted it into the tool."]
[null,null,null,6.1,"Matt Georges","2016-03-04","Added title page link to each data input sheet; changed location of the 'view underlying calculations' and 'skip to summary' texts in each data input sheet; corrected formula in cells D23 of the underlying calculations sheets; reordered the links in the title page following user feedback; removed data validation for cells containing date when BAT is met in Step 1 worksheet."]
[null,null,null,6.11,"Matt Georges","2016-03-07","Updated user guide and inserted it into the tool."]
[null,null,null,6.12,"Matt Georges","2016-04-14","Changes to bring tool into line with Gov.UK publication guidelines.  Hyperlink buttons changed to make them more user-friendly for those with colour blindness. Minor changes to layout of landing page.  New, shorter user guide addded. "]
[null,null,null,6.13,"Scott Latham","2016-09-13","Removed water part of scenario analysis from all sheets + calc sheets"]
[null,null,null,null,null,null,"User interface re-design to make it flow better and look tidier"]
[null,null,null,null,null,null,"Hyperlinks to the calcs sheets – made these easier to find. Fixed hyperlinks throughout sheets"]
[null,null,null,null,null,null,"Added functionality to allow refurbishment costs to be added to data input sheets - capital costs section. Added formulas to support this to CALC sheets."]
[null,null,null,null,null,null,"Unlocked 'Add new pollutant' part of tool so that people can add / remove pollutants to Damage Costs sheet"]
[null,null,null,null,null,null,"Fixed labelling of options in summary worksheet"]
[null,null,null,null,null,null,"Corrected formula in Sensitivity Analysis CALC worksheet"]
[null,null,null,null,null,null,"Added cell to sum the total upfront investment costs without discounting in each of the data input sheets"]
[null,null,null,6.14,"Scott Latham","2016-09-21","Added Admin sheet and moved admin functionality there, so users can see Version History without entering password"]
[null,null,null,null,null,null,"All data input worksheets (BAU - Option 5) - added line to SUM of total non-discounted Operating/Maintenance costs"]
[null,null,null,null,null,null,"Removed all rows relating to 'emissions for water' from data input worksheets (BAU - Option 5)"]
[null,null,null,null,null,null,"Added button to view Scenario analysis on each data input sheet (BAU - Option 5), and back buttons to each of these sheets onto Scenario Analysis sheet"]
[null,null,null,null,null,null,"Improvement to Results worksheet look and feel"]
[null,null,null,null,null,null,"Correction to GHG drop down menu and auto calcs on data input worksheets (BAU - Option 5)"]
[null,null,null,null,null,null,"Removed all trace of water from tool"]
[null,null,null,6.15,"Matt Georges","2017-01-18","Tested Scott's changes; made minor change to Start button on home page; added units to the Summary worksheet; added a 'Your Input Version History' button to the home page.  Removed water calculations from the Sensitivity and Scenario Analysis sections of the data calculation worksheets (cells P219:S225, F227:I233, O237:O244, P246:S252, F254:I260). Moved the Ranking Summary at the bottom of the Scenario Analysis Calcs worksheet to the Scenaio Analysis worksheet.  Changed cells K29 and K30 in Sensitivity Analysis worksheet to reflect the formulas in cells K14:K27.  Changed the wording in cells D23, D34, D47 and D58 of the Results worksheet from \"...produce a different conclusion...\" to \"...produce the same conclusion...\".  Moved the detailed results section to the top of the Results worksheet.  Moved the Uncertainty percentage input cells closer to the relevant input rows in the data inputs worksheets.  Changed the formula in row 29 of the calculation sheets to stop the annual cost of an initial payment continuing when a major refurbishment cost is added.  Set print settings to allow each worksheet to be printed on one page."]
[null,null,null,6.16,"Matt Georges/ Scott Latham","2017-07-10","Altered the formulas in rows 50 and 61 in the detailed results worksheet so that they point to the max and min values in the sensitivity analysis worksheet.  Chnaged the formulas in cells D186 and D197 in the scenario calcs sheets so that they each refer to the correct section of the Data In put - General woksheet."]
[null,null,null,null,null,null,"Fixed VBA code for copying between spreadsheets"]
[null,null,null,null,null,null,"Fixed conditional formatting on data input sheets so that correct cells were hiding when yes/no selected. Formatting had broken somehow."]
[null,null,null,null,null,null,"Fixed formulas in all option calc sheets for WACC, was pointing at wrong cells in Data input general worksheet. Also now takes into account whether first investment has been made."]
[null,null,null,null,null,null,"Amended VOCs damage costs"]
[null,null,null,null,null,null,"Amended column W in Damage Costs so that the minimum includes options that are zero."]
[null,null,null,null,null,null,"Added a new section into each calculation worksheet to combine the highest capital cost with the highest WACC and the lowest capital cost with the lowest WACC to give the correct result to the Scenario Analysis."]
[null,null,null,6.17,"Matt Georges","2017-09-29","Damage costs sheet altered to correct the forumlas in the  columns picking up the minimum and maximum values used.  Also the uplift rate was removed from the sheet and form all calculations using it as this is already done in the Calcs worksheets and was causing an increase in the damage cost valuations."]

{"sheet":"Admin","index":3,"n_rows":5,"n_cols":5,"rows_kept":5,"cut":false,"hidden":false,"merged":[[3,6,3,28],[4,6,4,28],[5,6,5,28]]}
[]
[]
[null,null,null,"Admin Tools"]
[]
[null,null,null,"LOCK PASSWORD","Qaz@OP74"]

{"sheet":"User Guide","index":4,"n_rows":7,"n_cols":3,"rows_kept":7,"cut":false,"hidden":false,"merged":[[5,2,5,8],[6,2,8,8]]}
[]
[]
[null,null,"IED Tool - User Guidance"]
[]
[]
[null,null,"To view the current version of the user guide please visit: "]
[null,null,"https://www.gov.uk/government/publications/industrial-emissions-directive-derogation-cost-benefit-analysis-tool "]

{"sheet":"Underlying Data List","index":5,"n_rows":14,"n_cols":5,"rows_kept":14,"cut":false,"hidden":false,"merged":[]}
[]
[]
[null,null,"Underlying Data / Assumptions"]
[]
[null,null,"#","Name (Click to see)","Description"]
[null,null,1,"Energy Prices","These are UK Government projections for the prices of different fuels over the long term."]
[null,null,2,"Damage Costs","These are values produced by the UK Government and the European Environment Agency to enable calculation of the benefits of reducing emissions of certain air pollutants."]
[null,null,3,"Carbon Prices","These are UK Government projections for the price of emissions of carbon dioxide over the long term.  These enable calculation of the benefits of reducing emissions of greenhouse gases."]
[null,null,4,"Emission Factors","These are UK Government factors that allow the conversion of the consumption of a unit of fuel into an amount of emissions of carbon dioxide equivalent."]
[null,null,5,"Discount and Deflators","The discount rate is used to express costs and benefits from different years in the same terms.  The GDP deflator allows inflation to be stripped out of the analysis.  To understand these two different concepts further see the links below:"]
[null,null,null,null,"http://grist.org/article/discount-rates-a-boring-thing-you-should-know-about-with-otters/"]
[null,null,null,null,"https://www.gov.uk/government/collections/gdp-deflators-at-market-prices-and-money-gdp"]
[null,null,6,"Assumptions","This sheet sets out the underlying assumptions for some of the other datasets such as deflators and emission factors."]
[null,null,7,"Data Guide","This contains references for the data used in the tool."]

{"sheet":"Appraisal Summary","index":6,"n_rows":21,"n_cols":14,"rows_kept":21,"cut":false,"hidden":false,"merged":[[3,3,3,8],[11,3,11,13],[18,3,18,13],[15,3,15,13],[5,5,5,10],[7,5,7,10]]}
[null,{"$f":"\"---- Summary Results ----\"","v":"---- Summary Results ----"}]
[]
[]
[]
[]
[null,null,1.1000000000000001,"Please state the grounds on which the application for IED derogation is made",null,"Technical",null,null,null,null,null," (Select from dropdown)"]
[]
[null,null,1.2,"Name of applicant's proposed option",null,"Technical derogation for 36 months."]
[]
[null,null,"Outcome of CBA"]
[]
[null,null,null,"Are the environmental benefits of meeting the BAT-AEL(s) higher than the costs of doing so in comparison to the proposed derogation option?"]
[]
[null,null,null,null,null,{"$f":"'Data Input - General'!G24","v":"Proposed derogation"},null,{"$f":"'Data Input - General'!H24","v":"BAT-AEL"},null,{"$f":"'Data Input - General'!I24","v":"Waste off"},null,{"$f":"'Data Input - General'!J24","v":""},null,{"$f":"'Data Input - General'!K24","v":""}]
[null,null,null,"Central","£millions",{"$f":"Results!H15","v":0},{"$f":"IF(H15>=$F15,1,0)","v":0},{"$f":"Results!I15","v":-17.452970255385825},{"$f":"IF(J15>=$F15,1,0)","v":0},{"$f":"Results!J15","v":-3.0101815264841481},{"$f":"IF(L15>=$F15,1,0)","v":1},{"$f":"Results!K15","v":""},{"$f":"IF(N15>=$F15,1,0)","v":1},{"$f":"Results!L15","v":""}]
[null,null,null,"Sensitivity Analysis"]
[null,null,null,{"$f":"\"Lowest NPV for BAT-AEL is caused by: \" & 'Sensitivity Analysis'!N12","v":"Lowest NPV for BAT-AEL is caused by: High upfront investment costs"},"£millions",{"$f":"Results!H50","v":0},{"$f":"IF(H17>=$F17,1,0)","v":0},{"$f":"Results!I50","v":-22.525090046391234},0,{"$f":"Results!J50","v":-3.3281288149634225},{"$f":"IF(L17>=$F17,1,0)","v":1},{"$f":"Results!K50","v":""},{"$f":"IF(N17>=$F17,1,0)","v":1},{"$f":"Results!L50","v":""}]
[null,null,null,{"$f":"\"Highest NPV for BAT-AEL is caused by: \" & 'Sensitivity Analysis'!N13","v":"Highest NPV for BAT-AEL is caused by: Low upfront investment costs"},"£millions",{"$f":"Results!H61","v":0},0,{"$f":"Results!I61","v":-12.380850464380419},0,{"$f":"Results!J61","v":-2.732149133904505},{"$f":"IF(L18>=$F18,1,0)","v":1},{"$f":"Results!K61","v":""},{"$f":"IF(N18>=$F18,1,0)","v":1},{"$f":"Results!L61","v":""}]
[null,null,null,"Scenario Analysis"]
[null,null,null,{"$f":"Results!D73","v":"Lowest NPV for each option using highest costs and lowest benefits"},"£millions",{"$f":"Results!H74","v":0},0,{"$f":"Results!I74","v":-23.559843702206514},0,{"$f":"Results!J74","v":-7.6112139177011429},{"$f":"IF(L20>=$F20,1,0)","v":1},{"$f":"Results!K74","v":""},{"$f":"IF(N20>=$F20,1,0)","v":1},{"$f":"Results!L74","v":""}]
[null,null,null,{"$f":"Results!D84","v":"Highest NPV for each option using lowest costs and highest benefits"},"£millions",{"$f":"Results!H85","v":0},0,{"$f":"Results!I85","v":-11.758998344803986},0,{"$f":"Results!J85","v":-12.137728282105385},{"$f":"IF(L21>=$F21,1,0)","v":1},{"$f":"Results!K85","v":""},{"$f":"IF(N21>=$F21,1,0)","v":1},{"$f":"Results!L85","v":""}]

{"sheet":"Results","index":7,"n_rows":93,"n_cols":12,"rows_kept":93,"cut":false,"hidden":false,"merged":[[4,3,5,3],[3,7,3,11],[57,7,57,11],[62,7,62,8],[64,7,64,8],[68,7,68,11],[86,7,86,8],[88,7,88,8],[92,7,92,11],[11,7,11,8],[53,7,53,8],[51,7,51,8],[77,7,77,8],[75,7,75,8],[81,7,81,11]]}
[null,{"$f":"\"---- Detailed Results for Cost Benefit Analysis ----\"","v":"---- Detailed Results for Cost Benefit Analysis ----"}]
[]
[]
[]
[null,null,null,null,null,"Click to go back to Data Entry >"]
[null,null,null,null,null,"Option Name",{"$f":"'Data Input - General'!F24","v":"Business as Usual (BAU)"},{"$f":"'Data Input - General'!G24","v":"Proposed derogation"},{"$f":"'Data Input - General'!H24","v":"BAT-AEL"},{"$f":"'Data Input - General'!I24","v":"Waste off"},{"$f":"'Data Input - General'!J24","v":""},{"$f":"'Data Input - General'!K24","v":""}]
[]
[null,null,"Summary"]
[]
[null,null,null,"Are the costs of meeting BAT-AELs outweighed by the monetised benefits in comparison to the Proposed derogation (i.e. Is NPV greater than 0)?",null,null,null,null,{"$f":"IF(AND(I35=0),\"\",IF(I35=0,\"No\",IF(I35>0,2,0)))","v":0}]
[]
[null,null,null,"What is the difference between the NPV of the BAT-AEL option and the NPV of the Proposed derogation?",null,null,null,{"$f":"$I$35","v":-17.452970255385825}]
[]
[null,null,null,"Central NPV"]
[null,null,null,"Central NPV under sensitivity testing",null,null,null,{"$f":"0","v":0},{"$f":"IF(I35=0,\"\",I35)","v":-17.452970255385825},{"$f":"IF(J35=0,\"\",J35)","v":-3.0101815264841481},{"$f":"IF(K35=0,\"\",K35)","v":""},{"$f":"IF(L35=0,\"\",L35)","v":""}]
[null,null,null,"What are the rankings of the different options?",null,null,null,{"$f":"IFERROR(RANK(H15,$H$15:$L$15),\"No Rank\")","v":1},{"$f":"IFERROR(RANK(I15,$H$15:$L$15),\"No Rank\")","v":3},2,"No Rank","No Rank"]
[]
[]
[null,null,"Detailed Results"]
[]
[null,null,null,"To define disproportionality "]
[null,null,null,"Present value of costs and benefits calculated net of Proposed derogation"]
[]
[null,null,null,"Upfront investment costs",null,"£m",null,null,{"$f":"IF(I$6=\"\",0,I39-$H39)","v":16.907065970018014},0,0,0]
[null,null,null,"Operating costs",null,"£m",null,null,0.56032739618273109,-0.66258139990973319,0,0]
[null,null,null,"Waste",null,"£m",null,null,0,0,0,0]
[null,null,null,"Energy consumption",null,"£m",null,null,0,1.8407232123294222,0,0]
[null,null,null,"Air pollutant emissions",null,"£m",null,null,-1.4423110814920665E-2,-1.9372905547566294E-2,0,0]
[null,null,null,"GHG emissions",null,"£m",null,null,0,1.8514126196120255,0,0]
[]
[null,null,null,"Option Name"]
[null,null,null,"PV costs",null,"£m",null,null,{"$f":"SUM(I24:I27)","v":17.467393366200746},{"$f":"SUM(J24:J27)","v":1.178141812419689},0,0]
[null,null,null,"PV benefits",null,"£m",null,null,{"$f":"SUM(I28:I29)*-1","v":1.4423110814920665E-2},{"$f":"SUM(J28:J29)*-1","v":-1.8320397140644593},{"$f":"SUM(K28:K29)*-1","v":0},0]
[]
[null,null,null,"These are the NPVs to report in the derogation application         NPV",null,"£m",null,null,{"$f":"(I33-I32)","v":-17.452970255385825},{"$f":"(J33-J32)","v":-3.0101815264841481},{"$f":"(K33-K32)","v":0},{"$f":"(L33-L32)","v":0}]
[null,null,null,"NPV",null,"£m"]
[null,null,null,"Absolute costs and benefits for each of the options including Proposed derogation"]
[]
[null,null,null,"Upfront investment costs","(?)","£m",{"$f":"Calc_BAU!D261","v":5.6553585846017356},{"$f":"Calc_Proposed!D261","v":0},{"$f":"Calc_BAT!D261","v":16.907065970018014},{"$f":"Calc_Option3!D261","v":0},{"$f":"Calc_Option4!D261","v":0},{"$f":"Calc_Option5!D261","v":0}]
[null,null,null,"Operating costs",null,"£m",{"$f":"Calc_BAU!D262","v":1.7786359951155806},{"$f":"Calc_Proposed!D262","v":2.4412173950253138},{"$f":"Calc_BAT!D262","v":3.0015447912080448},{"$f":"Calc_Option3!D262","v":1.7786359951155806},{"$f":"Calc_Option4!D262","v":1E-3},{"$f":"Calc_Option5!D262","v":0}]
[null,null,null,"Waste",null,"£m",{"$f":"Calc_BAU!D263","v":0},{"$f":"Calc_Proposed!D263","v":0},{"$f":"Calc_BAT!D263","v":0},{"$f":"Calc_Option3!D263","v":0},{"$f":"Calc_Option4!D263","v":0},{"$f":"Calc_Option5!D263","v":0}]
[null,null,null,"Energy consumption",null,"£m",{"$f":"Calc_BAU!D264","v":11.919831628597302},{"$f":"Calc_Proposed!D264","v":11.919831628597302},{"$f":"Calc_BAT!D264","v":11.919831628597302},{"$f":"Calc_Option3!D264","v":13.760554840926725},{"$f":"Calc_Option4!D264","v":5.0932081704451122E-7},{"$f":"Calc_Option5!D264","v":0}]
[null,null,null,"Air pollutant emissions",null,"£m",{"$f":"Calc_BAU!D265","v":4.5201592601835039E-2},{"$f":"Calc_Proposed!D265","v":3.301606858606411E-2},{"$f":"Calc_BAT!D265","v":1.8592957771143444E-2},{"$f":"Calc_Option3!D265","v":1.3643163038497816E-2},{"$f":"Calc_Option4!D265","v":0},{"$f":"Calc_Option5!D265","v":0}]
[null,null,null,"GHG emissions",null,"£m",{"$f":"Calc_BAU!D266","v":14.093991903202488},{"$f":"Calc_Proposed!D266","v":15.983981786527293},{"$f":"Calc_BAT!D266","v":15.983981786527293},{"$f":"Calc_Option3!D266","v":17.835394406139319},{"$f":"Calc_Option4!D266","v":1.8535861301779155E-8},{"$f":"Calc_Option5!D266","v":0}]
[]
[]
[null,null,"Sensitivity Analysis Results"]
[]
[null,null,null,{"$f":"\"Lowest NPV for BAT-AEL is caused by: \" & 'Sensitivity Analysis'!N12","v":"Lowest NPV for BAT-AEL is caused by: High upfront investment costs"}]
[null,null,null,"Lowest NPV under sensitivity testing",null,null,null,{"$f":"H15","v":0},{"$f":"VLOOKUP(VLOOKUP(1,'Sensitivity Analysis'!$M$16:$O$28,3,FALSE),'Sensitivity Analysis'!$D$14:$I$27,3,FALSE)","v":-22.525090046391234},{"$f":"IF(VLOOKUP(VLOOKUP(1,'Sensitivity Analysis'!$T$16:$V$28,3,FALSE),'Sensitivity Analysis'!$D$14:$I$27,4,FALSE)=0,\"\",VLOOKUP(VLOOKUP(1,'Sensitivity Analysis'!$T$16:$V$28,3,FALSE),'Sensitivity Analysis'!$D$14:$I$27,4,FALSE))","v":-3.3281288149634225},{"$f":"IF(VLOOKUP(VLOOKUP(1,'Sensitivity Analysis'!$AA$16:$AC$28,3,FALSE),'Sensitivity Analysis'!$D$14:$I$27,5,FALSE)=0,\"\",VLOOKUP(VLOOKUP(1,'Sensitivity Analysis'!$AA$16:$AC$28,3,FALSE),'Sensitivity Analysis'!$D$14:$I$27,5,FALSE))","v":""},{"$f":"IF(VLOOKUP(VLOOKUP(1,'Sensitivity Analysis'!$AH$16:$AJ$28,3,FALSE),'Sensitivity Analysis'!$D$14:$I$27,6,FALSE)=0,\"\",VLOOKUP(VLOOKUP(1,'Sensitivity Analysis'!$AH$16:$AJ$28,3,FALSE),'Sensitivity Analysis'!$D$14:$I$27,6,FALSE))","v":""}]
[]
[null,null,null,"Does the comparison between the NPV of the BAT-AEL and the NPV of the Proposed derogation produce the same conclusion under this sensitivity test?",null,null,null,{"$f":"IF('Sensitivity Analysis'!$K$28=\"Yes\",2,0)","v":2}]
[]
[null,null,null,"What is the difference between the NPV of the BAT-AEL option and the NPV of the Proposed derogation under this sensitivity test?",null,null,null,{"$f":"'Sensitivity Analysis'!$F$28","v":-22.525090046391234}]
[]
[null,null,null,"What are the rankings of the different options?",null,null,null,{"$f":"IFERROR(RANK(H50,$H$50:$L$50),\"No Rank\")","v":1},{"$f":"IFERROR(RANK(I50,$H$50:$L$50),\"No Rank\")","v":3},2,"No Rank","No Rank"]
[]
[null,null,null,"Is this ranking the same as the central assessment?",null,null,null,{"$f":"IF(AND(H16=H56,I16=I56,J16=J56,K16=K56,L16=L56),2,0)","v":2}]
[]
[null,null,null,{"$f":"\"Highest NPV for BAT-AEL is caused by: \" & 'Sensitivity Analysis'!N13","v":"Highest NPV for BAT-AEL is caused by: Low upfront investment costs"}]
[null,null,null,"Highest NPV under sensitivity testing",null,null,null,{"$f":"H15","v":0},{"$f":"VLOOKUP(VLOOKUP(1,'Sensitivity Analysis'!$N$16:$O$28,2,FALSE),'Sensitivity Analysis'!$D$14:$I$27,3,FALSE)","v":-12.380850464380419},{"$f":"IF(VLOOKUP(VLOOKUP(1,'Sensitivity Analysis'!$U$16:$V$28,2,FALSE),'Sensitivity Analysis'!$D$14:$I$27,4,FALSE)=0,\"\",VLOOKUP(VLOOKUP(1,'Sensitivity Analysis'!$U$16:$V$28,2,FALSE),'Sensitivity Analysis'!$D$14:$I$27,4,FALSE))","v":-2.732149133904505},{"$f":"IF(VLOOKUP(VLOOKUP(1,'Sensitivity Analysis'!$AB$16:$AC$28,2,FALSE),'Sensitivity Analysis'!$D$14:$I$27,5,FALSE)=0,\"\",VLOOKUP(VLOOKUP(1,'Sensitivity Analysis'!$AB$16:$AC$28,2,FALSE),'Sensitivity Analysis'!$D$14:$I$27,5,FALSE))","v":""},{"$f":"IF(VLOOKUP(VLOOKUP(1,'Sensitivity Analysis'!$AI$16:$AJ$28,2,FALSE),'Sensitivity Analysis'!$D$14:$I$27,6,FALSE)=0,\"\",VLOOKUP(VLOOKUP(1,'Sensitivity Analysis'!$AI$16:$AJ$28,2,FALSE),'Sensitivity Analysis'!$D$14:$I$27,6,FALSE))","v":""}]
[]
[null,null,null,"Does the comparison between the NPV of the BAT-AEL and the NPV of the Proposed derogation produce the same conclusion under this sensitivity test?",null,null,null,{"$f":"IF('Sensitivity Analysis'!K29=\"Yes\",2,0)","v":2}]
[]
[null,null,null,"What is the difference between the NPV of the BAT-AEL option and the NPV of the Proposed derogation under this sensitivity test?",null,null,null,{"$f":"'Sensitivity Analysis'!F29","v":-12.380850464380419}]
[]
[null,null,null,"What are the rankings of the different options?",null,null,null,{"$f":"IFERROR(RANK(H61,$H$61:$L$61),\"No Rank\")","v":1},{"$f":"IFERROR(RANK(I61,$H$61:$L$61),\"No Rank\")","v":3},2,"No Rank","No Rank"]
[]
[null,null,null,"Is this ranking the same as the central assessment?",null,null,null,{"$f":"IF(AND(H16=H67,I16=I67,J16=J67,K16=K67,L16=L67),2,0)","v":2}]
[]
[null,null,"Scenario Analysis Results"]
[]
[null,null,null,"Lowest NPV for each option using highest costs and lowest benefits"]
[null,null,null,"Lowest NPV under scenario testing",null,null,null,{"$f":"H15","v":0},{"$f":"IF(VLOOKUP('Scenario Analysis'!D11,'Scenario Analysis'!D11:J11,4,FALSE)=0,\"\",VLOOKUP('Scenario Analysis'!D11,'Scenario Analysis'!D11:J11,4,FALSE))","v":-23.559843702206514},{"$f":"IF(VLOOKUP('Scenario Analysis'!D11,'Scenario Analysis'!D11:J11,5,FALSE)=0,\"\",VLOOKUP('Scenario Analysis'!D11,'Scenario Analysis'!D11:J11,5,FALSE))","v":-7.6112139177011429},{"$f":"IF(VLOOKUP('Scenario Analysis'!D11,'Scenario Analysis'!D11:J11,6,FALSE)=0,\"\",VLOOKUP('Scenario Analysis'!D11,'Scenario Analysis'!D11:J11,6,FALSE))","v":""},{"$f":"IF(VLOOKUP('Scenario Analysis'!D11,'Scenario Analysis'!D11:J11,7,FALSE)=0,\"\",VLOOKUP('Scenario Analysis'!D11,'Scenario Analysis'!D11:J11,7,FALSE))","v":""}]
[]
[null,null,null,"Does the comparison between the NPV of the BAT-AEL and the NPV of the Proposed derogation produce the same conclusion under this scenario test?",null,null,null,{"$f":"IF('Scenario Analysis'!L11='Scenario Analysis'!L9,2,0)","v":2}]
[]
[null,null,null,"What is the difference between the NPV of the BAT-AEL option and the NPV of the Proposed derogation under this scenario test?",null,null,null,{"$f":"'Scenario Analysis'!G11","v":-23.559843702206514}]
[]
[null,null,null,"What are the rankings of the different options?",null,null,null,{"$f":"IFERROR(RANK(H74,$H$74:$L$74),\"No Rank\")","v":1},{"$f":"IFERROR(RANK(I74,$H$74:$L$74),\"No Rank\")","v":3},{"$f":"IFERROR(RANK(J74,$H$74:$L$74),\"No Rank\")","v":2},{"$f":"IFERROR(RANK(K74,$H$74:$L$74),\"No Rank\")","v":"No Rank"},{"$f":"IFERROR(RANK(L74,$H$74:$L$74),\"No Rank\")","v":"No Rank"}]
[]
[null,null,null,"Is this ranking the same as the central assessment?",null,null,null,{"$f":"IF(AND(H16=H80,I16=I80,J16=J80,K16=K80,L16=L80),2,0)","v":2}]
[]
[null,null,null,"Highest NPV for each option using lowest costs and highest benefits"]
[null,null,null,"Highest NPV under scenario testing",null,null,null,{"$f":"H15","v":0},{"$f":"IF(VLOOKUP('Scenario Analysis'!D12,'Scenario Analysis'!D12:J12,4,FALSE)=0,\"\",VLOOKUP('Scenario Analysis'!D12,'Scenario Analysis'!D12:J12,4,FALSE))","v":-11.758998344803986},{"$f":"IF(VLOOKUP('Scenario Analysis'!D12,'Scenario Analysis'!D12:J12,5,FALSE)=0,\"\",VLOOKUP('Scenario Analysis'!D12,'Scenario Analysis'!D12:J12,5,FALSE))","v":-12.137728282105385},{"$f":"IF(VLOOKUP('Scenario Analysis'!D12,'Scenario Analysis'!D12:J12,6,FALSE)=0,\"\",VLOOKUP('Scenario Analysis'!D12,'Scenario Analysis'!D12:J12,6,FALSE))","v":""},{"$f":"IF(VLOOKUP('Scenario Analysis'!D12,'Scenario Analysis'!D12:J12,7,FALSE)=0,\"\",VLOOKUP('Scenario Analysis'!D12,'Scenario Analysis'!D12:J12,7,FALSE))","v":""}]
[]
[null,null,null,"Does the comparison between the NPV of the BAT-AEL and the NPV of the Proposed derogation produce the same conclusion under this scenario test?",null,null,null,{"$f":"IF('Scenario Analysis'!L19=\"No\",2,0)","v":2}]
[]
[null,null,null,"What is the difference between the NPV of the BAT-AEL option and the NPV of the Proposed derogation under this scenario test?",null,null,null,{"$f":"'Scenario Analysis'!G12","v":-11.758998344803986}]
[]
[null,null,null,"What are the rankings of the different options?",null,null,null,{"$f":"IFERROR(RANK(H85,$H$85:$L$85),\"No Rank\")","v":1},{"$f":"IFERROR(RANK(I85,$H$85:$L$85),\"No Rank\")","v":2},3,"No Rank","No Rank"]
[]
[null,null,null,"Is this ranking the same as the central assessment?",null,null,null,{"$f":"IF(AND(H16=H91,I16=I91,J16=J91,K16=K91,L16=L91),2,0)","v":0}]

{"sheet":"Sensitivity Analysis","index":8,"n_rows":89,"n_cols":36,"rows_kept":89,"cut":false,"hidden":false,"merged":[[8,5,8,9],[8,17,8,39],[3,3,3,6],[48,8,48,9],[49,3,49,5],[50,3,50,5],[51,3,51,5],[52,3,52,5],[53,3,53,5],[54,3,54,5],[55,3,55,5],[56,3,56,5],[57,3,57,5],[58,3,58,5],[59,3,59,5],[60,3,60,5],[61,3,61,5],[62,3,62,5],[63,3,63,5],[64,3,64,5],[65,3,65,5],[66,3,66,5],[67,3,67,5],[68,3,68,5],[69,3,69,5],[75,3,75,5],[76,3,76,5],[77,3,77,5],[70,3,70,5],[71,3,71,5],[72,3,72,5],[73,3,73,5],[74,3,74,5]]}
[null,{"$f":"\"---- Sensitivity Analysis ----\"","v":"---- Sensitivity Analysis ----"}]
[]
[]
[]
[]
[]
[null,null,null,"Sensitivity Tests"]
[]
[null,null,null,null,null,"NPV (£m) net of Preferred option",null,null,null,null,null,null,"Used by Results Worksheet"]
[]
[null,null,null,"Option name",null,{"$f":"Results!I6","v":"BAT-AEL"},{"$f":"Results!J6","v":"Waste off"},{"$f":"Results!K6","v":""},{"$f":"Results!L6","v":""},null,"Is BAT's NPV sign the same as central?",null,{"$f":"F11","v":"BAT-AEL"},null,null,null,null,null,null,{"$f":"G11","v":"Waste off"},null,null,null,null,null,null,{"$f":"H11","v":""},null,null,null,null,null,null,{"$f":"I11","v":""}]
[null,null,null,"Central (base case)",null,{"$f":"Results!I15","v":-17.452970255385825},{"$f":"Results!J15","v":-3.0101815264841481},{"$f":"Results!K15","v":""},{"$f":"Results!L15","v":""},null,null,null,"LOW",{"$f":"INDEX(D14:D27,MATCH(F28,F14:F27,0))","v":"High upfront investment costs"},null,null,null,null,null,"LOW",{"$f":"INDEX(D14:D27,MATCH(G28,G14:G27,0))","v":"High energy price"},null,null,null,null,null,"LOW",{"$f":"INDEX(D14:D27,MATCH(H28,H14:H27,0))","v":"Low upfront investment costs"},null,null,null,null,null,"LOW",{"$f":"INDEX(D14:D27,MATCH(I28,I14:I27,0))","v":"Low upfront investment costs"}]
[null,null,null,null,null,null,null,null,null,null,null,null,"HIGH",{"$f":"INDEX(D14:D27,MATCH(F29,F14:F27,0))","v":"Low upfront investment costs"},null,null,null,null,null,"HIGH",{"$f":"INDEX(D14:D27,MATCH(G29,G14:G27,0))","v":"Low energy price"},null,null,null,null,null,"HIGH",{"$f":"INDEX(D14:D27,MATCH(H29,H14:H27,0))","v":"Low upfront investment costs"},null,null,null,null,null,"HIGH",{"$f":"INDEX(D14:D27,MATCH(I29,I14:I27,0))","v":"Low upfront investment costs"}]
[null,null,null,"Low upfront investment costs",null,{"$f":"INDEX('Sensitivity Calcs'!$F$73:$Q$76,MATCH('Sensitivity Analysis'!F$11,'Sensitivity Calcs'!$C$73:$C$76,0),MATCH('Sensitivity Analysis'!$D14,'Sensitivity Calcs'!$F$5:$Q$5,0))","v":-12.380850464380419},{"$f":"INDEX('Sensitivity Calcs'!$F$73:$Q$76,MATCH('Sensitivity Analysis'!G$11,'Sensitivity Calcs'!$C$73:$C$76,0),MATCH('Sensitivity Analysis'!$D14,'Sensitivity Calcs'!$F$5:$Q$5,0))","v":-3.0101815264841481},{"$f":"INDEX('Sensitivity Calcs'!$F$73:$Q$76,MATCH('Sensitivity Analysis'!H$11,'Sensitivity Calcs'!$C$73:$C$76,0),MATCH('Sensitivity Analysis'!$D14,'Sensitivity Calcs'!$F$5:$Q$5,0))","v":0},{"$f":"INDEX('Sensitivity Calcs'!$F$73:$Q$76,MATCH('Sensitivity Analysis'!I$11,'Sensitivity Calcs'!$C$73:$C$76,0),MATCH('Sensitivity Analysis'!$D14,'Sensitivity Calcs'!$F$5:$Q$5,0))","v":0},null,{"$f":"IF(OR(AND(F$12<0,F14<0),AND(F$12>0,F14>0)),\"Yes\",IF(OR(F$12=0,F14=0),\"\",\"No\"))","v":"Yes"}]
[null,null,null,"High upfront investment costs",null,{"$f":"INDEX('Sensitivity Calcs'!$F$73:$Q$76,MATCH('Sensitivity Analysis'!F$11,'Sensitivity Calcs'!$C$73:$C$76,0),MATCH('Sensitivity Analysis'!$D15,'Sensitivity Calcs'!$F$5:$Q$5,0))","v":-22.525090046391234},{"$f":"INDEX('Sensitivity Calcs'!$F$73:$Q$76,MATCH('Sensitivity Analysis'!G$11,'Sensitivity Calcs'!$C$73:$C$76,0),MATCH('Sensitivity Analysis'!$D15,'Sensitivity Calcs'!$F$5:$Q$5,0))","v":-3.0101815264841481},{"$f":"INDEX('Sensitivity Calcs'!$F$73:$Q$76,MATCH('Sensitivity Analysis'!H$11,'Sensitivity Calcs'!$C$73:$C$76,0),MATCH('Sensitivity Analysis'!$D15,'Sensitivity Calcs'!$F$5:$Q$5,0))","v":0},{"$f":"INDEX('Sensitivity Calcs'!$F$73:$Q$76,MATCH('Sensitivity Analysis'!I$11,'Sensitivity Calcs'!$C$73:$C$76,0),MATCH('Sensitivity Analysis'!$D15,'Sensitivity Calcs'!$F$5:$Q$5,0))","v":0},null,{"$f":"IF(OR(AND(F$12<0,F15<0),AND(F$12>0,F15>0)),\"Yes\",IF(OR(F$12=0,F15=0),\"\",\"No\"))","v":"Yes"},null,"LOW","HIGH",null,null,null,null,null,"LOW","HIGH",null,null,null,null,null,"LOW","HIGH",null,null,null,null,null,"LOW","HIGH"]
[null,null,null,"Low operating costs",null,{"$f":"INDEX('Sensitivity Calcs'!$F$73:$Q$76,MATCH('Sensitivity Analysis'!F$11,'Sensitivity Calcs'!$C$73:$C$76,0),MATCH('Sensitivity Analysis'!$D16,'Sensitivity Calcs'!$F$5:$Q$5,0))","v":-17.340904776149277},{"$f":"INDEX('Sensitivity Calcs'!$F$73:$Q$76,MATCH('Sensitivity Analysis'!G$11,'Sensitivity Calcs'!$C$73:$C$76,0),MATCH('Sensitivity Analysis'!$D16,'Sensitivity Calcs'!$F$5:$Q$5,0))","v":-3.1426978064660949},{"$f":"INDEX('Sensitivity Calcs'!$F$73:$Q$76,MATCH('Sensitivity Analysis'!H$11,'Sensitivity Calcs'!$C$73:$C$76,0),MATCH('Sensitivity Analysis'!$D16,'Sensitivity Calcs'!$F$5:$Q$5,0))","v":0},{"$f":"INDEX('Sensitivity Calcs'!$F$73:$Q$76,MATCH('Sensitivity Analysis'!I$11,'Sensitivity Calcs'!$C$73:$C$76,0),MATCH('Sensitivity Analysis'!$D16,'Sensitivity Calcs'!$F$5:$Q$5,0))","v":0},null,"Yes",null,{"$f":"IF(O16=$N$12,1,0)","v":0},{"$f":"IF(O16=$N$13,1,0)","v":1},"Low upfront investment costs",null,null,null,null,{"$f":"IF(V16=$U$12,1,0)","v":0},{"$f":"IF(V16=$U$13,1,0)","v":0},"Low upfront investment costs",null,null,null,null,{"$f":"IF(AC16=$AB$12,1,0)","v":1},{"$f":"IF(AC16=$AB$13,1,0)","v":1},"Low upfront investment costs",null,null,null,null,{"$f":"IF(AJ16=$AI$12,1,0)","v":1},{"$f":"IF(AJ16=$AI$13,1,0)","v":1},"Low upfront investment costs"]
[null,null,null,"High operating costs",null,{"$f":"INDEX('Sensitivity Calcs'!$F$73:$Q$76,MATCH('Sensitivity Analysis'!F$11,'Sensitivity Calcs'!$C$73:$C$76,0),MATCH('Sensitivity Analysis'!$D17,'Sensitivity Calcs'!$F$5:$Q$5,0))","v":-17.56503573462237},{"$f":"INDEX('Sensitivity Calcs'!$F$73:$Q$76,MATCH('Sensitivity Analysis'!G$11,'Sensitivity Calcs'!$C$73:$C$76,0),MATCH('Sensitivity Analysis'!$D17,'Sensitivity Calcs'!$F$5:$Q$5,0))","v":-2.8776652465022017},{"$f":"INDEX('Sensitivity Calcs'!$F$73:$Q$76,MATCH('Sensitivity Analysis'!H$11,'Sensitivity Calcs'!$C$73:$C$76,0),MATCH('Sensitivity Analysis'!$D17,'Sensitivity Calcs'!$F$5:$Q$5,0))","v":0},{"$f":"INDEX('Sensitivity Calcs'!$F$73:$Q$76,MATCH('Sensitivity Analysis'!I$11,'Sensitivity Calcs'!$C$73:$C$76,0),MATCH('Sensitivity Analysis'!$D17,'Sensitivity Calcs'!$F$5:$Q$5,0))","v":0},null,"Yes",null,{"$f":"IF(O17=$N$12,1,0)","v":1},{"$f":"IF(O17=$N$13,1,0)","v":0},"High upfront investment costs",null,null,null,null,{"$f":"IF(V17=$U$12,1,0)","v":0},{"$f":"IF(V17=$U$13,1,0)","v":0},"High upfront investment costs",null,null,null,null,{"$f":"IF(AC17=$AB$12,1,0)","v":0},{"$f":"IF(AC17=$AB$13,1,0)","v":0},"High upfront investment costs",null,null,null,null,{"$f":"IF(AJ17=$AI$12,1,0)","v":0},{"$f":"IF(AJ17=$AI$13,1,0)","v":0},"High upfront investment costs"]
[null,null,null,"Low energy price",null,{"$f":"INDEX('Sensitivity Calcs'!$F$73:$Q$76,MATCH('Sensitivity Analysis'!F$11,'Sensitivity Calcs'!$C$73:$C$76,0),MATCH('Sensitivity Analysis'!$D18,'Sensitivity Calcs'!$F$5:$Q$5,0))","v":-17.452970255385825},{"$f":"INDEX('Sensitivity Calcs'!$F$73:$Q$76,MATCH('Sensitivity Analysis'!G$11,'Sensitivity Calcs'!$C$73:$C$76,0),MATCH('Sensitivity Analysis'!$D18,'Sensitivity Calcs'!$F$5:$Q$5,0))","v":-2.732149133904505},{"$f":"INDEX('Sensitivity Calcs'!$F$73:$Q$76,MATCH('Sensitivity Analysis'!H$11,'Sensitivity Calcs'!$C$73:$C$76,0),MATCH('Sensitivity Analysis'!$D18,'Sensitivity Calcs'!$F$5:$Q$5,0))","v":0},{"$f":"INDEX('Sensitivity Calcs'!$F$73:$Q$76,MATCH('Sensitivity Analysis'!I$11,'Sensitivity Calcs'!$C$73:$C$76,0),MATCH('Sensitivity Analysis'!$D18,'Sensitivity Calcs'!$F$5:$Q$5,0))","v":0},null,"Yes",null,0,0,"Low operating costs",null,null,null,null,0,0,"Low operating costs",null,null,null,null,0,0,"Low operating costs",null,null,null,null,0,0,"Low operating costs"]
[null,null,null,"High energy price",null,{"$f":"INDEX('Sensitivity Calcs'!$F$73:$Q$76,MATCH('Sensitivity Analysis'!F$11,'Sensitivity Calcs'!$C$73:$C$76,0),MATCH('Sensitivity Analysis'!$D19,'Sensitivity Calcs'!$F$5:$Q$5,0))","v":-17.452970255385825},{"$f":"INDEX('Sensitivity Calcs'!$F$73:$Q$76,MATCH('Sensitivity Analysis'!G$11,'Sensitivity Calcs'!$C$73:$C$76,0),MATCH('Sensitivity Analysis'!$D19,'Sensitivity Calcs'!$F$5:$Q$5,0))","v":-3.3281288149634225},{"$f":"INDEX('Sensitivity Calcs'!$F$73:$Q$76,MATCH('Sensitivity Analysis'!H$11,'Sensitivity Calcs'!$C$73:$C$76,0),MATCH('Sensitivity Analysis'!$D19,'Sensitivity Calcs'!$F$5:$Q$5,0))","v":0},{"$f":"INDEX('Sensitivity Calcs'!$F$73:$Q$76,MATCH('Sensitivity Analysis'!I$11,'Sensitivity Calcs'!$C$73:$C$76,0),MATCH('Sensitivity Analysis'!$D19,'Sensitivity Calcs'!$F$5:$Q$5,0))","v":0},null,"Yes",null,0,0,"High operating costs",null,null,null,null,0,0,"High operating costs",null,null,null,null,0,0,"High operating costs",null,null,null,null,0,0,"High operating costs"]
[null,null,null,"Low damage costs",null,{"$f":"INDEX('Sensitivity Calcs'!$F$73:$Q$76,MATCH('Sensitivity Analysis'!F$11,'Sensitivity Calcs'!$C$73:$C$76,0),MATCH('Sensitivity Analysis'!$D20,'Sensitivity Calcs'!$F$5:$Q$5,0))","v":-17.463965204519724},{"$f":"INDEX('Sensitivity Calcs'!$F$73:$Q$76,MATCH('Sensitivity Analysis'!G$11,'Sensitivity Calcs'!$C$73:$C$76,0),MATCH('Sensitivity Analysis'!$D20,'Sensitivity Calcs'!$F$5:$Q$5,0))","v":-3.0249497768154829},{"$f":"INDEX('Sensitivity Calcs'!$F$73:$Q$76,MATCH('Sensitivity Analysis'!H$11,'Sensitivity Calcs'!$C$73:$C$76,0),MATCH('Sensitivity Analysis'!$D20,'Sensitivity Calcs'!$F$5:$Q$5,0))","v":0},{"$f":"INDEX('Sensitivity Calcs'!$F$73:$Q$76,MATCH('Sensitivity Analysis'!I$11,'Sensitivity Calcs'!$C$73:$C$76,0),MATCH('Sensitivity Analysis'!$D20,'Sensitivity Calcs'!$F$5:$Q$5,0))","v":0},null,"Yes",null,0,0,"Low energy price",null,null,null,null,0,1,"Low energy price",null,null,null,null,0,0,"Low energy price",null,null,null,null,0,0,"Low energy price"]
[null,null,null,"High damage costs",null,{"$f":"INDEX('Sensitivity Calcs'!$F$73:$Q$76,MATCH('Sensitivity Analysis'!F$11,'Sensitivity Calcs'!$C$73:$C$76,0),MATCH('Sensitivity Analysis'!$D21,'Sensitivity Calcs'!$F$5:$Q$5,0))","v":-17.426326702361226},{"$f":"INDEX('Sensitivity Calcs'!$F$73:$Q$76,MATCH('Sensitivity Analysis'!G$11,'Sensitivity Calcs'!$C$73:$C$76,0),MATCH('Sensitivity Analysis'!$D21,'Sensitivity Calcs'!$F$5:$Q$5,0))","v":-2.9743943067351926},{"$f":"INDEX('Sensitivity Calcs'!$F$73:$Q$76,MATCH('Sensitivity Analysis'!H$11,'Sensitivity Calcs'!$C$73:$C$76,0),MATCH('Sensitivity Analysis'!$D21,'Sensitivity Calcs'!$F$5:$Q$5,0))","v":0},{"$f":"INDEX('Sensitivity Calcs'!$F$73:$Q$76,MATCH('Sensitivity Analysis'!I$11,'Sensitivity Calcs'!$C$73:$C$76,0),MATCH('Sensitivity Analysis'!$D21,'Sensitivity Calcs'!$F$5:$Q$5,0))","v":0},null,"Yes",null,0,0,"High energy price",null,null,null,null,1,0,"High energy price",null,null,null,null,0,0,"High energy price",null,null,null,null,0,0,"High energy price"]
[null,null,null,"EEA damage costs",null,{"$f":"INDEX('Sensitivity Calcs'!$F$73:$Q$76,MATCH('Sensitivity Analysis'!F$11,'Sensitivity Calcs'!$C$73:$C$76,0),MATCH('Sensitivity Analysis'!$D22,'Sensitivity Calcs'!$F$5:$Q$5,0))","v":-17.4447216271288},{"$f":"INDEX('Sensitivity Calcs'!$F$73:$Q$76,MATCH('Sensitivity Analysis'!G$11,'Sensitivity Calcs'!$C$73:$C$76,0),MATCH('Sensitivity Analysis'!$D22,'Sensitivity Calcs'!$F$5:$Q$5,0))","v":-2.9991020930546379},{"$f":"INDEX('Sensitivity Calcs'!$F$73:$Q$76,MATCH('Sensitivity Analysis'!H$11,'Sensitivity Calcs'!$C$73:$C$76,0),MATCH('Sensitivity Analysis'!$D22,'Sensitivity Calcs'!$F$5:$Q$5,0))","v":0},{"$f":"INDEX('Sensitivity Calcs'!$F$73:$Q$76,MATCH('Sensitivity Analysis'!I$11,'Sensitivity Calcs'!$C$73:$C$76,0),MATCH('Sensitivity Analysis'!$D22,'Sensitivity Calcs'!$F$5:$Q$5,0))","v":0},null,"Yes",null,0,0,"Low damage costs",null,null,null,null,0,0,"Low damage costs",null,null,null,null,0,0,"Low damage costs",null,null,null,null,0,0,"Low damage costs"]
[null,null,null,"Low WACC",null,{"$f":"INDEX('Sensitivity Calcs'!$F$73:$Q$76,MATCH('Sensitivity Analysis'!F$11,'Sensitivity Calcs'!$C$73:$C$76,0),MATCH('Sensitivity Analysis'!$D23,'Sensitivity Calcs'!$F$5:$Q$5,0))","v":-16.76442816849983},{"$f":"INDEX('Sensitivity Calcs'!$F$73:$Q$76,MATCH('Sensitivity Analysis'!G$11,'Sensitivity Calcs'!$C$73:$C$76,0),MATCH('Sensitivity Analysis'!$D23,'Sensitivity Calcs'!$F$5:$Q$5,0))","v":-3.0101815264841481},{"$f":"INDEX('Sensitivity Calcs'!$F$73:$Q$76,MATCH('Sensitivity Analysis'!H$11,'Sensitivity Calcs'!$C$73:$C$76,0),MATCH('Sensitivity Analysis'!$D23,'Sensitivity Calcs'!$F$5:$Q$5,0))","v":0},{"$f":"INDEX('Sensitivity Calcs'!$F$73:$Q$76,MATCH('Sensitivity Analysis'!I$11,'Sensitivity Calcs'!$C$73:$C$76,0),MATCH('Sensitivity Analysis'!$D23,'Sensitivity Calcs'!$F$5:$Q$5,0))","v":0},null,"Yes",null,0,0,"High damage costs",null,null,null,null,0,0,"High damage costs",null,null,null,null,0,0,"High damage costs",null,null,null,null,0,0,"High damage costs"]
[null,null,null,"High WACC",null,{"$f":"INDEX('Sensitivity Calcs'!$F$73:$Q$76,MATCH('Sensitivity Analysis'!F$11,'Sensitivity Calcs'!$C$73:$C$76,0),MATCH('Sensitivity Analysis'!$D24,'Sensitivity Calcs'!$F$5:$Q$5,0))","v":-18.154272738035701},{"$f":"INDEX('Sensitivity Calcs'!$F$73:$Q$76,MATCH('Sensitivity Analysis'!G$11,'Sensitivity Calcs'!$C$73:$C$76,0),MATCH('Sensitivity Analysis'!$D24,'Sensitivity Calcs'!$F$5:$Q$5,0))","v":-3.0101815264841481},{"$f":"INDEX('Sensitivity Calcs'!$F$73:$Q$76,MATCH('Sensitivity Analysis'!H$11,'Sensitivity Calcs'!$C$73:$C$76,0),MATCH('Sensitivity Analysis'!$D24,'Sensitivity Calcs'!$F$5:$Q$5,0))","v":0},{"$f":"INDEX('Sensitivity Calcs'!$F$73:$Q$76,MATCH('Sensitivity Analysis'!I$11,'Sensitivity Calcs'!$C$73:$C$76,0),MATCH('Sensitivity Analysis'!$D24,'Sensitivity Calcs'!$F$5:$Q$5,0))","v":0},null,"Yes",null,0,0,"EEA damage costs",null,null,null,null,0,0,"EEA damage costs",null,null,null,null,0,0,"EEA damage costs",null,null,null,null,0,0,"EEA damage costs"]
[null,null,null,null,null,null,null,null,null,null,"",null,0,0,"Low WACC",null,null,null,null,0,0,"Low WACC",null,null,null,null,0,0,"Low WACC",null,null,null,null,0,0,"Low WACC"]
[null,null,null,null,null,null,null,null,null,null,"",null,0,0,"High WACC",null,null,null,null,0,0,"High WACC",null,null,null,null,0,0,"High WACC",null,null,null,null,0,0,"High WACC"]
[null,null,null,null,null,null,null,null,null,null,""]
[null,null,null,"Range Low",null,{"$f":"MIN(F14:F24)","v":-22.525090046391234},{"$f":"MIN(G14:G24)","v":-3.3281288149634225},{"$f":"MIN(H14:H24)","v":0},{"$f":"MIN(I14:I24)","v":0},null,{"$f":"IF(OR(AND(F$12<0,F28<0),AND(F$12>0,F28>0)),\"Yes\",IF(OR(F$12=0,F28=0),\"\",\"No\"))","v":"Yes"}]
[null,null,null,"Range High",null,{"$f":"MAX(F14:F24)","v":-12.380850464380419},{"$f":"MAX(G14:G24)","v":-2.732149133904505},{"$f":"MAX(H14:H24)","v":0},{"$f":"MAX(I14:I24)","v":0},null,{"$f":"IF(OR(AND(F$12<0,F29<0),AND(F$12>0,F29>0)),\"Yes\",IF(OR(F$12=0,F29=0),\"\",\"No\"))","v":"Yes"}]
[]
[null,null,null,"Option ranking"]
[null,null,null,"Option name",null,{"$f":"Results!I6","v":"BAT-AEL"},{"$f":"Results!J6","v":"Waste off"},{"$f":"Results!K6","v":""},{"$f":"Results!L6","v":""},null,"Ranking same as central assessment?"]
[null,null,null,"Central (base case)",null,{"$f":"Results!I16","v":3},{"$f":"Results!J16","v":2},{"$f":"Results!K16","v":"No Rank"},{"$f":"Results!L16","v":"No Rank"}]
[]
[null,null,null,"Low upfront investment costs",null,{"$f":"INDEX('Sensitivity Calcs'!$F$81:$Q$84,MATCH('Sensitivity Analysis'!F$32,'Sensitivity Calcs'!$C$81:$C$84,0),MATCH('Sensitivity Analysis'!$D35,'Sensitivity Calcs'!$F$5:$Q$5,0))","v":2},{"$f":"INDEX('Sensitivity Calcs'!$F$81:$Q$84,MATCH('Sensitivity Analysis'!G$32,'Sensitivity Calcs'!$C$81:$C$84,0),MATCH('Sensitivity Analysis'!$D35,'Sensitivity Calcs'!$F$5:$Q$5,0))","v":1},{"$f":"INDEX('Sensitivity Calcs'!$F$81:$Q$84,MATCH('Sensitivity Analysis'!H$32,'Sensitivity Calcs'!$C$81:$C$84,0),MATCH('Sensitivity Analysis'!$D35,'Sensitivity Calcs'!$F$5:$Q$5,0))","v":"No rank"},{"$f":"INDEX('Sensitivity Calcs'!$F$81:$Q$84,MATCH('Sensitivity Analysis'!I$32,'Sensitivity Calcs'!$C$81:$C$84,0),MATCH('Sensitivity Analysis'!$D35,'Sensitivity Calcs'!$F$5:$Q$5,0))","v":"No rank"},null,{"$f":"IF(SUM('Sensitivity Calcs'!$F89:$I89)=4,\"Yes\",\"No\")","v":"No"}]
[null,null,null,"High upfront investment costs",null,{"$f":"INDEX('Sensitivity Calcs'!$F$81:$Q$84,MATCH('Sensitivity Analysis'!F$32,'Sensitivity Calcs'!$C$81:$C$84,0),MATCH('Sensitivity Analysis'!$D36,'Sensitivity Calcs'!$F$5:$Q$5,0))","v":2},{"$f":"INDEX('Sensitivity Calcs'!$F$81:$Q$84,MATCH('Sensitivity Analysis'!G$32,'Sensitivity Calcs'!$C$81:$C$84,0),MATCH('Sensitivity Analysis'!$D36,'Sensitivity Calcs'!$F$5:$Q$5,0))","v":1},{"$f":"INDEX('Sensitivity Calcs'!$F$81:$Q$84,MATCH('Sensitivity Analysis'!H$32,'Sensitivity Calcs'!$C$81:$C$84,0),MATCH('Sensitivity Analysis'!$D36,'Sensitivity Calcs'!$F$5:$Q$5,0))","v":"No rank"},{"$f":"INDEX('Sensitivity Calcs'!$F$81:$Q$84,MATCH('Sensitivity Analysis'!I$32,'Sensitivity Calcs'!$C$81:$C$84,0),MATCH('Sensitivity Analysis'!$D36,'Sensitivity Calcs'!$F$5:$Q$5,0))","v":"No rank"},null,{"$f":"IF(SUM('Sensitivity Calcs'!$F90:$I90)=4,\"Yes\",\"No\")","v":"No"}]
[null,null,null,"Low operating costs",null,{"$f":"INDEX('Sensitivity Calcs'!$F$81:$Q$84,MATCH('Sensitivity Analysis'!F$32,'Sensitivity Calcs'!$C$81:$C$84,0),MATCH('Sensitivity Analysis'!$D37,'Sensitivity Calcs'!$F$5:$Q$5,0))","v":2},{"$f":"INDEX('Sensitivity Calcs'!$F$81:$Q$84,MATCH('Sensitivity Analysis'!G$32,'Sensitivity Calcs'!$C$81:$C$84,0),MATCH('Sensitivity Analysis'!$D37,'Sensitivity Calcs'!$F$5:$Q$5,0))","v":1},{"$f":"INDEX('Sensitivity Calcs'!$F$81:$Q$84,MATCH('Sensitivity Analysis'!H$32,'Sensitivity Calcs'!$C$81:$C$84,0),MATCH('Sensitivity Analysis'!$D37,'Sensitivity Calcs'!$F$5:$Q$5,0))","v":"No rank"},{"$f":"INDEX('Sensitivity Calcs'!$F$81:$Q$84,MATCH('Sensitivity Analysis'!I$32,'Sensitivity Calcs'!$C$81:$C$84,0),MATCH('Sensitivity Analysis'!$D37,'Sensitivity Calcs'!$F$5:$Q$5,0))","v":"No rank"},null,{"$f":"IF(SUM('Sensitivity Calcs'!$F91:$I91)=4,\"Yes\",\"No\")","v":"No"}]
[null,null,null,"High operating costs",null,{"$f":"INDEX('Sensitivity Calcs'!$F$81:$Q$84,MATCH('Sensitivity Analysis'!F$32,'Sensitivity Calcs'!$C$81:$C$84,0),MATCH('Sensitivity Analysis'!$D38,'Sensitivity Calcs'!$F$5:$Q$5,0))","v":2},{"$f":"INDEX('Sensitivity Calcs'!$F$81:$Q$84,MATCH('Sensitivity Analysis'!G$32,'Sensitivity Calcs'!$C$81:$C$84,0),MATCH('Sensitivity Analysis'!$D38,'Sensitivity Calcs'!$F$5:$Q$5,0))","v":1},{"$f":"INDEX('Sensitivity Calcs'!$F$81:$Q$84,MATCH('Sensitivity Analysis'!H$32,'Sensitivity Calcs'!$C$81:$C$84,0),MATCH('Sensitivity Analysis'!$D38,'Sensitivity Calcs'!$F$5:$Q$5,0))","v":"No rank"},{"$f":"INDEX('Sensitivity Calcs'!$F$81:$Q$84,MATCH('Sensitivity Analysis'!I$32,'Sensitivity Calcs'!$C$81:$C$84,0),MATCH('Sensitivity Analysis'!$D38,'Sensitivity Calcs'!$F$5:$Q$5,0))","v":"No rank"},null,{"$f":"IF(SUM('Sensitivity Calcs'!$F92:$I92)=4,\"Yes\",\"No\")","v":"No"}]
[null,null,null,"Low energy price",null,{"$f":"INDEX('Sensitivity Calcs'!$F$81:$Q$84,MATCH('Sensitivity Analysis'!F$32,'Sensitivity Calcs'!$C$81:$C$84,0),MATCH('Sensitivity Analysis'!$D39,'Sensitivity Calcs'!$F$5:$Q$5,0))","v":2},{"$f":"INDEX('Sensitivity Calcs'!$F$81:$Q$84,MATCH('Sensitivity Analysis'!G$32,'Sensitivity Calcs'!$C$81:$C$84,0),MATCH('Sensitivity Analysis'!$D39,'Sensitivity Calcs'!$F$5:$Q$5,0))","v":1},{"$f":"INDEX('Sensitivity Calcs'!$F$81:$Q$84,MATCH('Sensitivity Analysis'!H$32,'Sensitivity Calcs'!$C$81:$C$84,0),MATCH('Sensitivity Analysis'!$D39,'Sensitivity Calcs'!$F$5:$Q$5,0))","v":"No rank"},{"$f":"INDEX('Sensitivity Calcs'!$F$81:$Q$84,MATCH('Sensitivity Analysis'!I$32,'Sensitivity Calcs'!$C$81:$C$84,0),MATCH('Sensitivity Analysis'!$D39,'Sensitivity Calcs'!$F$5:$Q$5,0))","v":"No rank"},null,{"$f":"IF(SUM('Sensitivity Calcs'!$F93:$I93)=4,\"Yes\",\"No\")","v":"No"}]
[null,null,null,"High energy price",null,{"$f":"INDEX('Sensitivity Calcs'!$F$81:$Q$84,MATCH('Sensitivity Analysis'!F$32,'Sensitivity Calcs'!$C$81:$C$84,0),MATCH('Sensitivity Analysis'!$D40,'Sensitivity Calcs'!$F$5:$Q$5,0))","v":2},{"$f":"INDEX('Sensitivity Calcs'!$F$81:$Q$84,MATCH('Sensitivity Analysis'!G$32,'Sensitivity Calcs'!$C$81:$C$84,0),MATCH('Sensitivity Analysis'!$D40,'Sensitivity Calcs'!$F$5:$Q$5,0))","v":1},{"$f":"INDEX('Sensitivity Calcs'!$F$81:$Q$84,MATCH('Sensitivity Analysis'!H$32,'Sensitivity Calcs'!$C$81:$C$84,0),MATCH('Sensitivity Analysis'!$D40,'Sensitivity Calcs'!$F$5:$Q$5,0))","v":"No rank"},{"$f":"INDEX('Sensitivity Calcs'!$F$81:$Q$84,MATCH('Sensitivity Analysis'!I$32,'Sensitivity Calcs'!$C$81:$C$84,0),MATCH('Sensitivity Analysis'!$D40,'Sensitivity Calcs'!$F$5:$Q$5,0))","v":"No rank"},null,{"$f":"IF(SUM('Sensitivity Calcs'!$F94:$I94)=4,\"Yes\",\"No\")","v":"No"}]
[null,null,null,"Low damage costs",null,{"$f":"INDEX('Sensitivity Calcs'!$F$81:$Q$84,MATCH('Sensitivity Analysis'!F$32,'Sensitivity Calcs'!$C$81:$C$84,0),MATCH('Sensitivity Analysis'!$D41,'Sensitivity Calcs'!$F$5:$Q$5,0))","v":2},{"$f":"INDEX('Sensitivity Calcs'!$F$81:$Q$84,MATCH('Sensitivity Analysis'!G$32,'Sensitivity Calcs'!$C$81:$C$84,0),MATCH('Sensitivity Analysis'!$D41,'Sensitivity Calcs'!$F$5:$Q$5,0))","v":1},{"$f":"INDEX('Sensitivity Calcs'!$F$81:$Q$84,MATCH('Sensitivity Analysis'!H$32,'Sensitivity Calcs'!$C$81:$C$84,0),MATCH('Sensitivity Analysis'!$D41,'Sensitivity Calcs'!$F$5:$Q$5,0))","v":"No rank"},{"$f":"INDEX('Sensitivity Calcs'!$F$81:$Q$84,MATCH('Sensitivity Analysis'!I$32,'Sensitivity Calcs'!$C$81:$C$84,0),MATCH('Sensitivity Analysis'!$D41,'Sensitivity Calcs'!$F$5:$Q$5,0))","v":"No rank"},null,{"$f":"IF(SUM('Sensitivity Calcs'!$F95:$I95)=4,\"Yes\",\"No\")","v":"No"}]
[null,null,null,"High damage costs",null,{"$f":"INDEX('Sensitivity Calcs'!$F$81:$Q$84,MATCH('Sensitivity Analysis'!F$32,'Sensitivity Calcs'!$C$81:$C$84,0),MATCH('Sensitivity Analysis'!$D42,'Sensitivity Calcs'!$F$5:$Q$5,0))","v":2},{"$f":"INDEX('Sensitivity Calcs'!$F$81:$Q$84,MATCH('Sensitivity Analysis'!G$32,'Sensitivity Calcs'!$C$81:$C$84,0),MATCH('Sensitivity Analysis'!$D42,'Sensitivity Calcs'!$F$5:$Q$5,0))","v":1},{"$f":"INDEX('Sensitivity Calcs'!$F$81:$Q$84,MATCH('Sensitivity Analysis'!H$32,'Sensitivity Calcs'!$C$81:$C$84,0),MATCH('Sensitivity Analysis'!$D42,'Sensitivity Calcs'!$F$5:$Q$5,0))","v":"No rank"},{"$f":"INDEX('Sensitivity Calcs'!$F$81:$Q$84,MATCH('Sensitivity Analysis'!I$32,'Sensitivity Calcs'!$C$81:$C$84,0),MATCH('Sensitivity Analysis'!$D42,'Sensitivity Calcs'!$F$5:$Q$5,0))","v":"No rank"},null,{"$f":"IF(SUM('Sensitivity Calcs'!$F96:$I96)=4,\"Yes\",\"No\")","v":"No"}]
[null,null,null,"EEA damage costs",null,{"$f":"INDEX('Sensitivity Calcs'!$F$81:$Q$84,MATCH('Sensitivity Analysis'!F$32,'Sensitivity Calcs'!$C$81:$C$84,0),MATCH('Sensitivity Analysis'!$D43,'Sensitivity Calcs'!$F$5:$Q$5,0))","v":2},{"$f":"INDEX('Sensitivity Calcs'!$F$81:$Q$84,MATCH('Sensitivity Analysis'!G$32,'Sensitivity Calcs'!$C$81:$C$84,0),MATCH('Sensitivity Analysis'!$D43,'Sensitivity Calcs'!$F$5:$Q$5,0))","v":1},{"$f":"INDEX('Sensitivity Calcs'!$F$81:$Q$84,MATCH('Sensitivity Analysis'!H$32,'Sensitivity Calcs'!$C$81:$C$84,0),MATCH('Sensitivity Analysis'!$D43,'Sensitivity Calcs'!$F$5:$Q$5,0))","v":"No rank"},{"$f":"INDEX('Sensitivity Calcs'!$F$81:$Q$84,MATCH('Sensitivity Analysis'!I$32,'Sensitivity Calcs'!$C$81:$C$84,0),MATCH('Sensitivity Analysis'!$D43,'Sensitivity Calcs'!$F$5:$Q$5,0))","v":"No rank"},null,{"$f":"IF(SUM('Sensitivity Calcs'!$F97:$I97)=4,\"Yes\",\"No\")","v":"No"}]
[null,null,null,"Low WACC",null,{"$f":"INDEX('Sensitivity Calcs'!$F$81:$Q$84,MATCH('Sensitivity Analysis'!F$32,'Sensitivity Calcs'!$C$81:$C$84,0),MATCH('Sensitivity Analysis'!$D44,'Sensitivity Calcs'!$F$5:$Q$5,0))","v":2},{"$f":"INDEX('Sensitivity Calcs'!$F$81:$Q$84,MATCH('Sensitivity Analysis'!G$32,'Sensitivity Calcs'!$C$81:$C$84,0),MATCH('Sensitivity Analysis'!$D44,'Sensitivity Calcs'!$F$5:$Q$5,0))","v":1},{"$f":"INDEX('Sensitivity Calcs'!$F$81:$Q$84,MATCH('Sensitivity Analysis'!H$32,'Sensitivity Calcs'!$C$81:$C$84,0),MATCH('Sensitivity Analysis'!$D44,'Sensitivity Calcs'!$F$5:$Q$5,0))","v":"No rank"},{"$f":"INDEX('Sensitivity Calcs'!$F$81:$Q$84,MATCH('Sensitivity Analysis'!I$32,'Sensitivity Calcs'!$C$81:$C$84,0),MATCH('Sensitivity Analysis'!$D44,'Sensitivity Calcs'!$F$5:$Q$5,0))","v":"No rank"},null,{"$f":"IF(SUM('Sensitivity Calcs'!$F98:$I98)=4,\"Yes\",\"No\")","v":"No"}]
[null,null,null,"High WACC",null,{"$f":"INDEX('Sensitivity Calcs'!$F$81:$Q$84,MATCH('Sensitivity Analysis'!F$32,'Sensitivity Calcs'!$C$81:$C$84,0),MATCH('Sensitivity Analysis'!$D45,'Sensitivity Calcs'!$F$5:$Q$5,0))","v":2},{"$f":"INDEX('Sensitivity Calcs'!$F$81:$Q$84,MATCH('Sensitivity Analysis'!G$32,'Sensitivity Calcs'!$C$81:$C$84,0),MATCH('Sensitivity Analysis'!$D45,'Sensitivity Calcs'!$F$5:$Q$5,0))","v":1},{"$f":"INDEX('Sensitivity Calcs'!$F$81:$Q$84,MATCH('Sensitivity Analysis'!H$32,'Sensitivity Calcs'!$C$81:$C$84,0),MATCH('Sensitivity Analysis'!$D45,'Sensitivity Calcs'!$F$5:$Q$5,0))","v":"No rank"},{"$f":"INDEX('Sensitivity Calcs'!$F$81:$Q$84,MATCH('Sensitivity Analysis'!I$32,'Sensitivity Calcs'!$C$81:$C$84,0),MATCH('Sensitivity Analysis'!$D45,'Sensitivity Calcs'!$F$5:$Q$5,0))","v":"No rank"},null,{"$f":"IF(SUM('Sensitivity Calcs'!$F99:$I99)=4,\"Yes\",\"No\")","v":"No"}]
[]
[null,null,null,"Maximum and minimum damage costs used for each pollutant"]
[]
[null,null,null,null,null,null,null,null,"NOX when combined with PM10"]
[null,null,null,{"$f":"'Damage costs'!C35","v":"Diesel particulate matter"},null,null,{"$f":"'Damage costs'!V15","v":"MAX Used"},{"$f":"'Damage costs'!X15","v":"MIN Used"},{"$f":"'Damage costs'!Z15","v":"MAX Used"},{"$f":"'Damage costs'!AB15","v":"MIN Used"}]
[null,null,null,{"$f":"'Damage costs'!C16","v":"NOX Domestic"},null,null,{"$f":"'Damage costs'!V16","v":"High central range"},{"$f":"'Damage costs'!X16","v":"EEA"},{"$f":"IF(LEFT(D51,3)=\"NOX\",'Damage costs'!Z16,\"\")","v":"High central range"},{"$f":"IF(LEFT(D51,3)=\"NOX\",'Damage costs'!AB16,\"\")","v":"Low central range"}]
[null,null,null,{"$f":"'Damage costs'!C17","v":"NOX Agriculture"},null,null,{"$f":"'Damage costs'!V17","v":"High central range"},{"$f":"'Damage costs'!X17","v":"Low central range"},{"$f":"IF(LEFT(D52,3)=\"NOX\",'Damage costs'!Z17,\"\")","v":"High central range"},{"$f":"IF(LEFT(D52,3)=\"NOX\",'Damage costs'!AB17,\"\")","v":"Low central range"}]
[null,null,null,{"$f":"'Damage costs'!C18","v":"NOX Waste"},null,null,{"$f":"'Damage costs'!V18","v":"High central range"},{"$f":"'Damage costs'!X18","v":"EEA"},{"$f":"IF(LEFT(D53,3)=\"NOX\",'Damage costs'!Z18,\"\")","v":"High central range"},{"$f":"IF(LEFT(D53,3)=\"NOX\",'Damage costs'!AB18,\"\")","v":"Low central range"}]
[null,null,null,{"$f":"'Damage costs'!C19","v":"NOX Industry"},null,null,{"$f":"'Damage costs'!V19","v":"High central range"},{"$f":"'Damage costs'!X19","v":"EEA"},{"$f":"IF(LEFT(D54,3)=\"NOX\",'Damage costs'!Z19,\"\")","v":"High central range"},{"$f":"IF(LEFT(D54,3)=\"NOX\",'Damage costs'!AB19,\"\")","v":"Low central range"}]
[null,null,null,{"$f":"'Damage costs'!C20","v":"NOX ESI"},null,null,{"$f":"'Damage costs'!V20","v":"EEA"},{"$f":"'Damage costs'!X20","v":"Low central range"},{"$f":"IF(LEFT(D55,3)=\"NOX\",'Damage costs'!Z20,\"\")","v":"High central range"},{"$f":"IF(LEFT(D55,3)=\"NOX\",'Damage costs'!AB20,\"\")","v":"Low central range"}]
[null,null,null,{"$f":"'Damage costs'!C21","v":"SOX"},null,null,{"$f":"'Damage costs'!V21","v":"EEA"},{"$f":"'Damage costs'!X21","v":"Low central range"},{"$f":"IF(LEFT(D56,3)=\"NOX\",'Damage costs'!Z21,\"\")","v":""},{"$f":"IF(LEFT(D56,3)=\"NOX\",'Damage costs'!AB21,\"\")","v":""}]
[null,null,null,{"$f":"'Damage costs'!C22","v":"PM10 Domestic"},null,null,{"$f":"'Damage costs'!V22","v":"High central range"},{"$f":"'Damage costs'!X22","v":"EEA"},{"$f":"IF(LEFT(D57,3)=\"NOX\",'Damage costs'!Z22,\"\")","v":""},{"$f":"IF(LEFT(D57,3)=\"NOX\",'Damage costs'!AB22,\"\")","v":""}]
[null,null,null,{"$f":"'Damage costs'!C23","v":"PM10 Agriculture"},null,null,{"$f":"'Damage costs'!V23","v":"EEA"},{"$f":"'Damage costs'!X23","v":"Low central range"},{"$f":"IF(LEFT(D58,3)=\"NOX\",'Damage costs'!Z23,\"\")","v":""},{"$f":"IF(LEFT(D58,3)=\"NOX\",'Damage costs'!AB23,\"\")","v":""}]
[null,null,null,{"$f":"'Damage costs'!C24","v":"PM10 Waste"},null,null,{"$f":"'Damage costs'!V24","v":"High central range"},{"$f":"'Damage costs'!X24","v":"EEA"},{"$f":"IF(LEFT(D59,3)=\"NOX\",'Damage costs'!Z24,\"\")","v":""},{"$f":"IF(LEFT(D59,3)=\"NOX\",'Damage costs'!AB24,\"\")","v":""}]
[null,null,null,{"$f":"'Damage costs'!C25","v":"PM10 Industry"},null,null,{"$f":"'Damage costs'!V25","v":"High central range"},{"$f":"'Damage costs'!X25","v":"EEA"},{"$f":"IF(LEFT(D60,3)=\"NOX\",'Damage costs'!Z25,\"\")","v":""},{"$f":"IF(LEFT(D60,3)=\"NOX\",'Damage costs'!AB25,\"\")","v":""}]
[null,null,null,{"$f":"'Damage costs'!C26","v":"PM10 ESI"},null,null,{"$f":"'Damage costs'!V26","v":"EEA"},{"$f":"'Damage costs'!X26","v":"Low central range"},{"$f":"IF(LEFT(D61,3)=\"NOX\",'Damage costs'!Z26,\"\")","v":""},{"$f":"IF(LEFT(D61,3)=\"NOX\",'Damage costs'!AB26,\"\")","v":""}]
[null,null,null,{"$f":"'Damage costs'!C27","v":"Ammonia"},null,null,{"$f":"'Damage costs'!V27","v":"EEA"},{"$f":"'Damage costs'!X27","v":"Low central range"},{"$f":"IF(LEFT(D62,3)=\"NOX\",'Damage costs'!Z27,\"\")","v":""},{"$f":"IF(LEFT(D62,3)=\"NOX\",'Damage costs'!AB27,\"\")","v":""}]
[null,null,null,{"$f":"'Damage costs'!C28","v":"Arsenic"},null,null,{"$f":"'Damage costs'!V28","v":"EEA"},{"$f":"'Damage costs'!X28","v":"Low central range"},{"$f":"IF(LEFT(D63,3)=\"NOX\",'Damage costs'!Z28,\"\")","v":""},{"$f":"IF(LEFT(D63,3)=\"NOX\",'Damage costs'!AB28,\"\")","v":""}]
[null,null,null,{"$f":"'Damage costs'!C29","v":"Cadmium"},null,null,{"$f":"'Damage costs'!V29","v":"EEA"},{"$f":"'Damage costs'!X29","v":"Low central range"},{"$f":"IF(LEFT(D64,3)=\"NOX\",'Damage costs'!Z29,\"\")","v":""},{"$f":"IF(LEFT(D64,3)=\"NOX\",'Damage costs'!AB29,\"\")","v":""}]
[null,null,null,{"$f":"'Damage costs'!C30","v":"Chromium"},null,null,{"$f":"'Damage costs'!V30","v":"EEA"},{"$f":"'Damage costs'!X30","v":"Low central range"},{"$f":"IF(LEFT(D65,3)=\"NOX\",'Damage costs'!Z30,\"\")","v":""},{"$f":"IF(LEFT(D65,3)=\"NOX\",'Damage costs'!AB30,\"\")","v":""}]
[null,null,null,{"$f":"'Damage costs'!C31","v":"Nickel"},null,null,{"$f":"'Damage costs'!V31","v":"EEA"},{"$f":"'Damage costs'!X31","v":"Low central range"},{"$f":"IF(LEFT(D66,3)=\"NOX\",'Damage costs'!Z31,\"\")","v":""},{"$f":"IF(LEFT(D66,3)=\"NOX\",'Damage costs'!AB31,\"\")","v":""}]
[null,null,null,{"$f":"'Damage costs'!C32","v":"1, 3 Butadiene"},null,null,{"$f":"'Damage costs'!V32","v":"EEA"},{"$f":"'Damage costs'!X32","v":"Low central range"},{"$f":"IF(LEFT(D67,3)=\"NOX\",'Damage costs'!Z32,\"\")","v":""},{"$f":"IF(LEFT(D67,3)=\"NOX\",'Damage costs'!AB32,\"\")","v":""}]
[null,null,null,{"$f":"'Damage costs'!C33","v":"Benzene"},null,null,{"$f":"'Damage costs'!V33","v":"EEA"},{"$f":"'Damage costs'!X33","v":"Low central range"},{"$f":"IF(LEFT(D68,3)=\"NOX\",'Damage costs'!Z33,\"\")","v":""},{"$f":"IF(LEFT(D68,3)=\"NOX\",'Damage costs'!AB33,\"\")","v":""}]
[null,null,null,{"$f":"'Damage costs'!C34","v":"PAH"},null,null,{"$f":"'Damage costs'!V34","v":"EEA"},{"$f":"'Damage costs'!X34","v":"Low central range"},{"$f":"IF(LEFT(D69,3)=\"NOX\",'Damage costs'!Z34,\"\")","v":""},{"$f":"IF(LEFT(D69,3)=\"NOX\",'Damage costs'!AB34,\"\")","v":""}]
[null,null,null,{"$f":"'Damage costs'!C35","v":"Diesel particulate matter"},null,null,{"$f":"'Damage costs'!V35","v":"EEA"},{"$f":"'Damage costs'!X35","v":"Low central range"},{"$f":"IF(LEFT(D70,3)=\"NOX\",'Damage costs'!Z35,\"\")","v":""},{"$f":"IF(LEFT(D70,3)=\"NOX\",'Damage costs'!AB35,\"\")","v":""}]
[null,null,null,{"$f":"'Damage costs'!C36","v":"Formaldehyde"},null,null,{"$f":"'Damage costs'!V36","v":"EEA"},{"$f":"'Damage costs'!X36","v":"Low central range"},{"$f":"IF(LEFT(D71,3)=\"NOX\",'Damage costs'!Z36,\"\")","v":""},{"$f":"IF(LEFT(D71,3)=\"NOX\",'Damage costs'!AB36,\"\")","v":""}]
[null,null,null,{"$f":"'Damage costs'!C37","v":"Dioxins/furans"},null,null,{"$f":"'Damage costs'!V37","v":"EEA"},{"$f":"'Damage costs'!X37","v":"Low central range"},{"$f":"IF(LEFT(D72,3)=\"NOX\",'Damage costs'!Z37,\"\")","v":""},{"$f":"IF(LEFT(D72,3)=\"NOX\",'Damage costs'!AB37,\"\")","v":""}]
[null,null,null,{"$f":"IF('Damage costs'!C38<>\"Insert New Pollutant Here\",'Damage costs'!C38,\"\")","v":"VOCs"},null,null,{"$f":"IF(D73<>\"\",'Damage costs'!V38,\"\")","v":"EEA"},{"$f":"IF(D73<>\"\",'Damage costs'!X38,\"\")","v":"Low central range"},{"$f":"IF(LEFT(D73,3)=\"NOX\",'Damage costs'!Z38,\"\")","v":""},{"$f":"IF(LEFT(D73,3)=\"NOX\",'Damage costs'!AB38,\"\")","v":""}]
[null,null,null,{"$f":"IF('Damage costs'!C39<>\"Insert New Pollutant Here\",'Damage costs'!C39,\"\")","v":"Sox 2019"},null,null,{"$f":"IF(D74<>\"\",'Damage costs'!V39,\"\")","v":"High central range"},{"$f":"IF(D74<>\"\",'Damage costs'!X39,\"\")","v":"Low central range"},{"$f":"IF(LEFT(D74,3)=\"NOX\",'Damage costs'!Z39,\"\")","v":""},{"$f":"IF(LEFT(D74,3)=\"NOX\",'Damage costs'!AB39,\"\")","v":""}]
[null,null,null,{"$f":"IF('Damage costs'!C40<>\"Insert New Pollutant Here\",'Damage costs'!C40,\"\")","v":""},null,null,{"$f":"IF(D75<>\"\",'Damage costs'!V40,\"\")","v":""},{"$f":"IF(D75<>\"\",'Damage costs'!X40,\"\")","v":""},{"$f":"IF(LEFT(D75,3)=\"NOX\",'Damage costs'!Z40,\"\")","v":""},{"$f":"IF(LEFT(D75,3)=\"NOX\",'Damage costs'!AB40,\"\")","v":""}]
[null,null,null,{"$f":"IF('Damage costs'!C41<>\"Insert New Pollutant Here\",'Damage costs'!C41,\"\")","v":""},null,null,{"$f":"IF(D76<>\"\",'Damage costs'!V41,\"\")","v":""},{"$f":"IF(D76<>\"\",'Damage costs'!X41,\"\")","v":""},{"$f":"IF(LEFT(D76,3)=\"NOX\",'Damage costs'!Z41,\"\")","v":""},{"$f":"IF(LEFT(D76,3)=\"NOX\",'Damage costs'!AB41,\"\")","v":""}]
[null,null,null,{"$f":"IF('Damage costs'!C42<>\"Insert New Pollutant Here\",'Damage costs'!C42,\"\")","v":""},null,null,{"$f":"IF(D77<>\"\",'Damage costs'!V42,\"\")","v":""},{"$f":"IF(D77<>\"\",'Damage costs'!X42,\"\")","v":""},{"$f":"IF(LEFT(D77,3)=\"NOX\",'Damage costs'!Z42,\"\")","v":""},{"$f":"IF(LEFT(D77,3)=\"NOX\",'Damage costs'!AB42,\"\")","v":""}]
[null,null,null,{"$f":"IF('Damage costs'!C43<>\"Insert New Pollutant Here\",'Damage costs'!C43,\"\")","v":""},null,null,{"$f":"IF(D78<>\"\",'Damage costs'!V43,\"\")","v":""},{"$f":"IF(D78<>\"\",'Damage costs'!X43,\"\")","v":""},{"$f":"IF(LEFT(D78,3)=\"NOX\",'Damage costs'!Z43,\"\")","v":""},{"$f":"IF(LEFT(D78,3)=\"NOX\",'Damage costs'!AB43,\"\")","v":""}]
[]
[]
[null,null,null,"Sensitivity analysis (Tipping point analysis for BAT-AEL)",null,null,"(?)"]
[]
[null,null,null,"Parameter",null,"Goal-seek cell","Goal-seek target (NPV=0)","Original value (£m)","Tipping value (£m)","% change"]
[null,null,null,"BAT Installation costs",null,null,{"$f":"'Sensitivity Calcs'!$G$127","v":-17.452970255385825},{"$f":"Results!I39","v":16.907065970018014},null,{"$f":"IFERROR(I84/H84,0)","v":0}]
[null,null,null,"BAT Operating costs",null,null,{"$f":"'Sensitivity Calcs'!$G$127","v":-17.452970255385825},{"$f":"Results!I40","v":3.0015447912080448},null,{"$f":"IFERROR(I85/H85,0)","v":0}]
[null,null,null,"BAT Energy Cost",null,null,{"$f":"'Sensitivity Calcs'!$G$127","v":-17.452970255385825},{"$f":"Results!I42","v":11.919831628597302},null,0]
[null,null,null,"BAT air quality impacts",null,null,{"$f":"'Sensitivity Calcs'!$G$127","v":-17.452970255385825},{"$f":"Results!I43","v":1.8592957771143444E-2},null,0]
[null,null,null,"BAT emission impacts",null,null,{"$f":"'Sensitivity Calcs'!$G$127","v":-17.452970255385825},{"$f":"Results!I44","v":15.983981786527293},null,0]
[null,null,null,"WACC",null,"See cell E18 in 'Data input - General'",{"$f":"'Sensitivity Calcs'!$G$127","v":-17.452970255385825},{"$f":"'Data Input - General'!G16","v":6.5000000000000002E-2},null,0]

{"sheet":"Scenario Analysis","index":9,"n_rows":52,"n_cols":16,"rows_kept":52,"cut":false,"hidden":false,"merged":[[34,3,34,5],[41,3,41,5],[40,3,40,5],[6,6,6,9],[39,3,39,5],[38,3,38,5],[37,3,37,5],[36,3,36,5],[35,3,35,5],[3,3,3,10],[6,15,6,17],[23,3,23,5],[33,3,33,5],[32,3,32,5],[31,3,31,5],[30,3,30,5],[29,3,29,5],[28,3,28,5],[27,3,27,5],[26,3,26,5],[25,3,25,5],[24,3,24,5],[22,8,22,9],[46,3,46,5],[45,3,45,5],[44,3,44,5],[43,3,43,5],[42,3,42,5],[51,3,51,5],[50,3,50,5],[49,3,49,5],[48,3,48,5],[47,3,47,5]]}
[null,{"$f":"\"---- Scenario Analysis ----\"","v":"---- Scenario Analysis ----"}]
[]
[]
[]
[]
[]
[null,null,null,null,null,null,"NPV (£m) at net of preferred option"]
[null,null,null,"Option name",null,null,{"$f":"Results!I6","v":"BAT-AEL"},{"$f":"Results!J6","v":"Waste off"},{"$f":"Results!K6","v":""},{"$f":"Results!L6","v":""},null,"Are the benefits of meeting BAT less than the costs?"]
[null,null,null,"Central (base case)",null,null,{"$f":"Results!I15","v":-17.452970255385825},{"$f":"Results!J15","v":-3.0101815264841481},{"$f":"Results!K15","v":""},{"$f":"Results!L15","v":""},null,{"$f":"IF(G9<0,\"Yes\",IF(G9=0,\"\",\"No\"))","v":"Yes"}]
[]
[null,null,null,"High Costs Low Benefits",1,null,{"$f":"INDEX('Scenario Calcs'!$F$73:$G$76,MATCH('Scenario Analysis'!G$8,'Scenario Calcs'!$C$73:$C$76,0),MATCH('Scenario Analysis'!$E11,'Scenario Calcs'!$F$6:$G$6,0))","v":-23.559843702206514},{"$f":"INDEX('Scenario Calcs'!$F$73:$G$76,MATCH('Scenario Analysis'!H$8,'Scenario Calcs'!$C$73:$C$76,0),MATCH('Scenario Analysis'!$E11,'Scenario Calcs'!$F$6:$G$6,0))","v":-7.6112139177011429},{"$f":"INDEX('Scenario Calcs'!$F$73:$G$76,MATCH('Scenario Analysis'!I$8,'Scenario Calcs'!$C$73:$C$76,0),MATCH('Scenario Analysis'!$E11,'Scenario Calcs'!$F$6:$G$6,0))","v":0},{"$f":"INDEX('Scenario Calcs'!$F$73:$G$76,MATCH('Scenario Analysis'!J$8,'Scenario Calcs'!$C$73:$C$76,0),MATCH('Scenario Analysis'!$E11,'Scenario Calcs'!$F$6:$G$6,0))","v":0},null,{"$f":"IF(G11<0,\"Yes\",IF(G11=0,\"\",\"No\"))","v":"Yes"}]
[null,null,null,"Low Costs High Benefits",2,null,{"$f":"INDEX('Scenario Calcs'!$F$73:$G$76,MATCH('Scenario Analysis'!G$8,'Scenario Calcs'!$C$73:$C$76,0),MATCH('Scenario Analysis'!$E12,'Scenario Calcs'!$F$6:$G$6,0))","v":-11.758998344803986},{"$f":"INDEX('Scenario Calcs'!$F$73:$G$76,MATCH('Scenario Analysis'!H$8,'Scenario Calcs'!$C$73:$C$76,0),MATCH('Scenario Analysis'!$E12,'Scenario Calcs'!$F$6:$G$6,0))","v":-12.137728282105385},{"$f":"INDEX('Scenario Calcs'!$F$73:$G$76,MATCH('Scenario Analysis'!I$8,'Scenario Calcs'!$C$73:$C$76,0),MATCH('Scenario Analysis'!$E12,'Scenario Calcs'!$F$6:$G$6,0))","v":0},{"$f":"INDEX('Scenario Calcs'!$F$73:$G$76,MATCH('Scenario Analysis'!J$8,'Scenario Calcs'!$C$73:$C$76,0),MATCH('Scenario Analysis'!$E12,'Scenario Calcs'!$F$6:$G$6,0))","v":0},null,"Yes"]
[]
[]
[null,null,null,"Option ranking",null,null,{"$f":"Results!I6","v":"BAT-AEL"},{"$f":"Results!J6","v":"Waste off"},{"$f":"Results!K6","v":""},{"$f":"Results!L6","v":""},null,"Ranking same as central assessment?"]
[null,null,null,"Central (base case)",null,null,{"$f":"Results!I16","v":3},{"$f":"Results!J16","v":2},{"$f":"Results!K16","v":"No Rank"},{"$f":"Results!L16","v":"No Rank"}]
[null,null,null,null,null,null,null,null,null,null,null,null,null,null,{"$f":"'Scenario Analysis'!G8","v":"BAT-AEL"},{"$f":"'Scenario Analysis'!H8","v":"Waste off"}]
[null,null,null,"High Costs Low Benefits",1,null,{"$f":"INDEX('Scenario Calcs'!$F$81:$G$84,MATCH('Scenario Analysis'!G$8,'Scenario Calcs'!$C$81:$C$84,0),MATCH('Scenario Analysis'!$E18,'Scenario Calcs'!$F$6:$G$6,0))","v":2},{"$f":"INDEX('Scenario Calcs'!$F$81:$G$84,MATCH('Scenario Analysis'!H$8,'Scenario Calcs'!$C$81:$C$84,0),MATCH('Scenario Analysis'!$E18,'Scenario Calcs'!$F$6:$G$6,0))","v":1},{"$f":"INDEX('Scenario Calcs'!$F$81:$G$84,MATCH('Scenario Analysis'!I$8,'Scenario Calcs'!$C$81:$C$84,0),MATCH('Scenario Analysis'!$E18,'Scenario Calcs'!$F$6:$G$6,0))","v":"No rank"},{"$f":"INDEX('Scenario Calcs'!$F$81:$G$84,MATCH('Scenario Analysis'!J$8,'Scenario Calcs'!$C$81:$C$84,0),MATCH('Scenario Analysis'!$E18,'Scenario Calcs'!$F$6:$G$6,0))","v":"No rank"},null,{"$f":"IF(SUM('Scenario Analysis'!$O18:$P18)=4,\"Yes\",\"No\")","v":"No"},null,{"$f":"'Scenario Analysis'!D18","v":"High Costs Low Benefits"},{"$f":"IF('Scenario Analysis'!G18='Scenario Analysis'!G$16,1,0)","v":0},{"$f":"IF('Scenario Analysis'!H18='Scenario Analysis'!H$16,1,0)","v":0}]
[null,null,null,"Low Costs High Benefits",2,null,{"$f":"INDEX('Scenario Calcs'!$F$81:$G$84,MATCH('Scenario Analysis'!G$8,'Scenario Calcs'!$C$81:$C$84,0),MATCH('Scenario Analysis'!$E19,'Scenario Calcs'!$F$6:$G$6,0))","v":1},{"$f":"INDEX('Scenario Calcs'!$F$81:$G$84,MATCH('Scenario Analysis'!H$8,'Scenario Calcs'!$C$81:$C$84,0),MATCH('Scenario Analysis'!$E19,'Scenario Calcs'!$F$6:$G$6,0))","v":2},{"$f":"INDEX('Scenario Calcs'!$F$81:$G$84,MATCH('Scenario Analysis'!I$8,'Scenario Calcs'!$C$81:$C$84,0),MATCH('Scenario Analysis'!$E19,'Scenario Calcs'!$F$6:$G$6,0))","v":"No rank"},{"$f":"INDEX('Scenario Calcs'!$F$81:$G$84,MATCH('Scenario Analysis'!J$8,'Scenario Calcs'!$C$81:$C$84,0),MATCH('Scenario Analysis'!$E19,'Scenario Calcs'!$F$6:$G$6,0))","v":"No rank"},null,{"$f":"IF(SUM('Scenario Analysis'!$O19:$P19)=4,\"Yes\",\"No\")","v":"No"},null,{"$f":"'Scenario Analysis'!D19","v":"Low Costs High Benefits"},{"$f":"IF('Scenario Analysis'!G19='Scenario Analysis'!G$16,1,0)","v":0},{"$f":"IF('Scenario Analysis'!H19='Scenario Analysis'!H$16,1,0)","v":1}]
[]
[null,null,null,"Maximum and minimum damage costs used for each pollutant"]
[]
[null,null,null,null,null,null,null,null,"NOX when combined with PM10"]
[null,null,null,{"$f":"'Damage costs'!C15","v":"Pollutant"},null,null,{"$f":"'Damage costs'!V15","v":"MAX Used"},{"$f":"'Damage costs'!X15","v":"MIN Used"},{"$f":"'Damage costs'!Z15","v":"MAX Used"},{"$f":"'Damage costs'!AB15","v":"MIN Used"}]
[null,null,null,{"$f":"'Damage costs'!C16","v":"NOX Domestic"},null,null,{"$f":"'Damage costs'!V16","v":"High central range"},{"$f":"'Damage costs'!X16","v":"EEA"},{"$f":"IF(LEFT(D25,3)=\"NOX\",'Damage costs'!Z16,\"\")","v":"High central range"},{"$f":"IF(LEFT(D25,3)=\"NOX\",'Damage costs'!AB16,\"\")","v":"Low central range"}]
[null,null,null,{"$f":"'Damage costs'!C17","v":"NOX Agriculture"},null,null,{"$f":"'Damage costs'!V17","v":"High central range"},{"$f":"'Damage costs'!X17","v":"Low central range"},{"$f":"IF(LEFT(D26,3)=\"NOX\",'Damage costs'!Z17,\"\")","v":"High central range"},{"$f":"IF(LEFT(D26,3)=\"NOX\",'Damage costs'!AB17,\"\")","v":"Low central range"}]
[null,null,null,{"$f":"'Damage costs'!C18","v":"NOX Waste"},null,null,{"$f":"'Damage costs'!V18","v":"High central range"},{"$f":"'Damage costs'!X18","v":"EEA"},{"$f":"IF(LEFT(D27,3)=\"NOX\",'Damage costs'!Z18,\"\")","v":"High central range"},{"$f":"IF(LEFT(D27,3)=\"NOX\",'Damage costs'!AB18,\"\")","v":"Low central range"}]
[null,null,null,{"$f":"'Damage costs'!C19","v":"NOX Industry"},null,null,{"$f":"'Damage costs'!V19","v":"High central range"},{"$f":"'Damage costs'!X19","v":"EEA"},{"$f":"IF(LEFT(D28,3)=\"NOX\",'Damage costs'!Z19,\"\")","v":"High central range"},{"$f":"IF(LEFT(D28,3)=\"NOX\",'Damage costs'!AB19,\"\")","v":"Low central range"}]
[null,null,null,{"$f":"'Damage costs'!C20","v":"NOX ESI"},null,null,{"$f":"'Damage costs'!V20","v":"EEA"},{"$f":"'Damage costs'!X20","v":"Low central range"},{"$f":"IF(LEFT(D29,3)=\"NOX\",'Damage costs'!Z20,\"\")","v":"High central range"},{"$f":"IF(LEFT(D29,3)=\"NOX\",'Damage costs'!AB20,\"\")","v":"Low central range"}]
[null,null,null,{"$f":"'Damage costs'!C21","v":"SOX"},null,null,{"$f":"'Damage costs'!V21","v":"EEA"},{"$f":"'Damage costs'!X21","v":"Low central range"},{"$f":"IF(LEFT(D30,3)=\"NOX\",'Damage costs'!Z21,\"\")","v":""},{"$f":"IF(LEFT(D30,3)=\"NOX\",'Damage costs'!AB21,\"\")","v":""}]
[null,null,null,{"$f":"'Damage costs'!C22","v":"PM10 Domestic"},null,null,{"$f":"'Damage costs'!V22","v":"High central range"},{"$f":"'Damage costs'!X22","v":"EEA"},{"$f":"IF(LEFT(D31,3)=\"NOX\",'Damage costs'!Z22,\"\")","v":""},{"$f":"IF(LEFT(D31,3)=\"NOX\",'Damage costs'!AB22,\"\")","v":""}]
[null,null,null,{"$f":"'Damage costs'!C23","v":"PM10 Agriculture"},null,null,{"$f":"'Damage costs'!V23","v":"EEA"},{"$f":"'Damage costs'!X23","v":"Low central range"},{"$f":"IF(LEFT(D32,3)=\"NOX\",'Damage costs'!Z23,\"\")","v":""},{"$f":"IF(LEFT(D32,3)=\"NOX\",'Damage costs'!AB23,\"\")","v":""}]
[null,null,null,{"$f":"'Damage costs'!C24","v":"PM10 Waste"},null,null,{"$f":"'Damage costs'!V24","v":"High central range"},{"$f":"'Damage costs'!X24","v":"EEA"},{"$f":"IF(LEFT(D33,3)=\"NOX\",'Damage costs'!Z24,\"\")","v":""},{"$f":"IF(LEFT(D33,3)=\"NOX\",'Damage costs'!AB24,\"\")","v":""}]
[null,null,null,{"$f":"'Damage costs'!C25","v":"PM10 Industry"},null,null,{"$f":"'Damage costs'!V25","v":"High central range"},{"$f":"'Damage costs'!X25","v":"EEA"},{"$f":"IF(LEFT(D34,3)=\"NOX\",'Damage costs'!Z25,\"\")","v":""},{"$f":"IF(LEFT(D34,3)=\"NOX\",'Damage costs'!AB25,\"\")","v":""}]
[null,null,null,{"$f":"'Damage costs'!C26","v":"PM10 ESI"},null,null,{"$f":"'Damage costs'!V26","v":"EEA"},{"$f":"'Damage costs'!X26","v":"Low central range"},{"$f":"IF(LEFT(D35,3)=\"NOX\",'Damage costs'!Z26,\"\")","v":""},{"$f":"IF(LEFT(D35,3)=\"NOX\",'Damage costs'!AB26,\"\")","v":""}]
[null,null,null,{"$f":"'Damage costs'!C27","v":"Ammonia"},null,null,{"$f":"'Damage costs'!V27","v":"EEA"},{"$f":"'Damage costs'!X27","v":"Low central range"},{"$f":"IF(LEFT(D36,3)=\"NOX\",'Damage costs'!Z27,\"\")","v":""},{"$f":"IF(LEFT(D36,3)=\"NOX\",'Damage costs'!AB27,\"\")","v":""}]
[null,null,null,{"$f":"'Damage costs'!C28","v":"Arsenic"},null,null,{"$f":"'Damage costs'!V28","v":"EEA"},{"$f":"'Damage costs'!X28","v":"Low central range"},{"$f":"IF(LEFT(D37,3)=\"NOX\",'Damage costs'!Z28,\"\")","v":""},{"$f":"IF(LEFT(D37,3)=\"NOX\",'Damage costs'!AB28,\"\")","v":""}]
[null,null,null,{"$f":"'Damage costs'!C29","v":"Cadmium"},null,null,{"$f":"'Damage costs'!V29","v":"EEA"},{"$f":"'Damage costs'!X29","v":"Low central range"},{"$f":"IF(LEFT(D38,3)=\"NOX\",'Damage costs'!Z29,\"\")","v":""},{"$f":"IF(LEFT(D38,3)=\"NOX\",'Damage costs'!AB29,\"\")","v":""}]
[null,null,null,{"$f":"'Damage costs'!C30","v":"Chromium"},null,null,{"$f":"'Damage costs'!V30","v":"EEA"},{"$f":"'Damage costs'!X30","v":"Low central range"},{"$f":"IF(LEFT(D39,3)=\"NOX\",'Damage costs'!Z30,\"\")","v":""},{"$f":"IF(LEFT(D39,3)=\"NOX\",'Damage costs'!AB30,\"\")","v":""}]
[null,null,null,{"$f":"'Damage costs'!C31","v":"Nickel"},null,null,{"$f":"'Damage costs'!V31","v":"EEA"},{"$f":"'Damage costs'!X31","v":"Low central range"},{"$f":"IF(LEFT(D40,3)=\"NOX\",'Damage costs'!Z31,\"\")","v":""},{"$f":"IF(LEFT(D40,3)=\"NOX\",'Damage costs'!AB31,\"\")","v":""}]
[null,null,null,{"$f":"'Damage costs'!C32","v":"1, 3 Butadiene"},null,null,{"$f":"'Damage costs'!V32","v":"EEA"},{"$f":"'Damage costs'!X32","v":"Low central range"},{"$f":"IF(LEFT(D41,3)=\"NOX\",'Damage costs'!Z32,\"\")","v":""},{"$f":"IF(LEFT(D41,3)=\"NOX\",'Damage costs'!AB32,\"\")","v":""}]
[null,null,null,{"$f":"'Damage costs'!C33","v":"Benzene"},null,null,{"$f":"'Damage costs'!V33","v":"EEA"},{"$f":"'Damage costs'!X33","v":"Low central range"},{"$f":"IF(LEFT(D42,3)=\"NOX\",'Damage costs'!Z33,\"\")","v":""},{"$f":"IF(LEFT(D42,3)=\"NOX\",'Damage costs'!AB33,\"\")","v":""}]
[null,null,null,{"$f":"'Damage costs'!C34","v":"PAH"},null,null,{"$f":"'Damage costs'!V34","v":"EEA"},{"$f":"'Damage costs'!X34","v":"Low central range"},{"$f":"IF(LEFT(D43,3)=\"NOX\",'Damage costs'!Z34,\"\")","v":""},{"$f":"IF(LEFT(D43,3)=\"NOX\",'Damage costs'!AB34,\"\")","v":""}]
[null,null,null,{"$f":"'Damage costs'!C35","v":"Diesel particulate matter"},null,null,{"$f":"'Damage costs'!V35","v":"EEA"},{"$f":"'Damage costs'!X35","v":"Low central range"},{"$f":"IF(LEFT(D44,3)=\"NOX\",'Damage costs'!Z35,\"\")","v":""},{"$f":"IF(LEFT(D44,3)=\"NOX\",'Damage costs'!AB35,\"\")","v":""}]
[null,null,null,{"$f":"'Damage costs'!C36","v":"Formaldehyde"},null,null,{"$f":"'Damage costs'!V36","v":"EEA"},{"$f":"'Damage costs'!X36","v":"Low central range"},{"$f":"IF(LEFT(D45,3)=\"NOX\",'Damage costs'!Z36,\"\")","v":""},{"$f":"IF(LEFT(D45,3)=\"NOX\",'Damage costs'!AB36,\"\")","v":""}]
[null,null,null,{"$f":"'Damage costs'!C37","v":"Dioxins/furans"},null,null,{"$f":"'Damage costs'!V37","v":"EEA"},{"$f":"'Damage costs'!X37","v":"Low central range"},{"$f":"IF(LEFT(D46,3)=\"NOX\",'Damage costs'!Z37,\"\")","v":""},{"$f":"IF(LEFT(D46,3)=\"NOX\",'Damage costs'!AB37,\"\")","v":""}]
[null,null,null,{"$f":"IF('Damage costs'!C38<>\"Insert New Pollutant Here\",'Damage costs'!C38,\"\")","v":"VOCs"},null,null,{"$f":"IF(D47<>\"\",'Damage costs'!V38,\"\")","v":"EEA"},{"$f":"IF(D47<>\"\",'Damage costs'!X38,\"\")","v":"Low central range"},{"$f":"IF(LEFT(D47,3)=\"NOX\",'Damage costs'!Z38,\"\")","v":""},{"$f":"IF(LEFT(D47,3)=\"NOX\",'Damage costs'!AB38,\"\")","v":""}]
[null,null,null,{"$f":"IF('Damage costs'!C39<>\"Insert New Pollutant Here\",'Damage costs'!C39,\"\")","v":"Sox 2019"},null,null,{"$f":"IF(D48<>\"\",'Damage costs'!V39,\"\")","v":"High central range"},{"$f":"IF(D48<>\"\",'Damage costs'!X39,\"\")","v":"Low central range"},{"$f":"IF(LEFT(D48,3)=\"NOX\",'Damage costs'!Z39,\"\")","v":""},{"$f":"IF(LEFT(D48,3)=\"NOX\",'Damage costs'!AB39,\"\")","v":""}]
[null,null,null,{"$f":"IF('Damage costs'!C40<>\"Insert New Pollutant Here\",'Damage costs'!C40,\"\")","v":""},null,null,{"$f":"IF(D49<>\"\",'Damage costs'!V40,\"\")","v":""},{"$f":"IF(D49<>\"\",'Damage costs'!X40,\"\")","v":""},{"$f":"IF(LEFT(D49,3)=\"NOX\",'Damage costs'!Z40,\"\")","v":""},{"$f":"IF(LEFT(D49,3)=\"NOX\",'Damage costs'!AB40,\"\")","v":""}]
[null,null,null,{"$f":"IF('Damage costs'!C41<>\"Insert New Pollutant Here\",'Damage costs'!C41,\"\")","v":""},null,null,{"$f":"IF(D50<>\"\",'Damage costs'!V41,\"\")","v":""},{"$f":"IF(D50<>\"\",'Damage costs'!X41,\"\")","v":""},{"$f":"IF(LEFT(D50,3)=\"NOX\",'Damage costs'!Z41,\"\")","v":""},{"$f":"IF(LEFT(D50,3)=\"NOX\",'Damage costs'!AB41,\"\")","v":""}]
[null,null,null,{"$f":"IF('Damage costs'!C42<>\"Insert New Pollutant Here\",'Damage costs'!C42,\"\")","v":""},null,null,{"$f":"IF(D51<>\"\",'Damage costs'!V42,\"\")","v":""},{"$f":"IF(D51<>\"\",'Damage costs'!X42,\"\")","v":""},{"$f":"IF(LEFT(D51,3)=\"NOX\",'Damage costs'!Z42,\"\")","v":""},{"$f":"IF(LEFT(D51,3)=\"NOX\",'Damage costs'!AB42,\"\")","v":""}]
[null,null,null,{"$f":"IF('Damage costs'!C43<>\"Insert New Pollutant Here\",'Damage costs'!C43,\"\")","v":""},null,null,{"$f":"IF(D52<>\"\",'Damage costs'!V43,\"\")","v":""},{"$f":"IF(D52<>\"\",'Damage costs'!X43,\"\")","v":""},{"$f":"IF(LEFT(D52,3)=\"NOX\",'Damage costs'!Z43,\"\")","v":""},{"$f":"IF(LEFT(D52,3)=\"NOX\",'Damage costs'!AB43,\"\")","v":""}]

{"sheet":"Data Input - Case description","index":10,"n_rows":22,"n_cols":12,"rows_kept":22,"cut":false,"hidden":false,"merged":[[13,5,13,9],[5,5,5,9],[7,5,7,9],[9,5,9,9],[11,5,11,9]]}
[null,{"$f":"\"---- Step 1 - Derogation Case Description ----\"","v":"---- Step 1 - Derogation Case Description ----"}]
[]
[]
[]
[]
[null,null,1.1000000000000001,"What is the objective of this appraisal?",null,"To help in defining whether BAT is disproportionately costly"]
[]
[null,null,1.2,"Permit ID Number",null,"BL3269IH"]
[]
[null,null,1.3,"Name of activity or process under consideration (to which BAT is applied)",null,"Production of Lime / Dolime products."]
[]
[null,null,1.4,"Description of activity or process under consideration (to which BAT is applied)","(?)","W1 kiln operation for the production of sintered dolime"]
[]
[null,null,1.5,"Does BAT replace all or part of an existing technology, all or part of a new technology, or is it added to an existing or new technology?","(?)","Replace existing",null,null,null,null," (Select from dropdown)"]
[]
[null,null,1.6,"Please provide details of the options considered in the table to the right","(?)","Option No.","Option name ","Technology name","Description of technology and how this impacts on process","Details of option considered","Does technology achieve BAT?","If so, when is BAT achieved?"]
[null,null,null,null,null,null,"Business as Usual (BAU)","Current situation","The levels of SO2 and HCl are above the BAT AEL. This is due to the fuel mix and technology used to produce the Sintered Dolime products. Due to its high calcination temperature >1800C, a rotary kiln is used to calcine the feed stone and solid fuels are required to maintain a stable process, which inherently has higher emissions associated with it.","There is no Natural Gas available to the site, therefore the development of other ‘alternative’ fuels is currently key to the business. Focusing on fuels with very low Sulphur and Chloride contents, but are able to deliver the correct amount of energy. We are also looking in to the introduction of a gas conditioning tower, to scrub the emissions. However, this will cause issues with the kiln back end process temperature and is currently under review.","No"]
[null,null,null,null,1,1,"Proposed derogation","Elongation of current situation for further 3 years (really same as BAU)","BAU under a derogation - above BAT levels for SOX / HCl","The time during the derogation period will be spent trialling new lower emission fuels and identifying the correct capital investments with regards to abatement equipment. Initial focus has been on fuels with very low Sulphur and Chloride contents, but are able to deliver the correct amount of energy.","No"]
[null,null,null,null,1,2,"BAT-AEL",null,"Ultimately, if the injection trials are not successful, then the business will install the required abatement equipment and therefore the business would expect to achieve the BAT associated AELs - Installation of bag filter, quench tower/associated scrubbing.","However, please note that the quarry reserves are expected to run out in 2026/27 dependant on the success of feed stone blending. Therefore, the quarry reserves limit lifespan of installation.","Yes","2023-01-01"]
[null,null,null,null,{"$f":"IF(ISBLANK(G20),0,1)","v":1},3,"Waste off",null,"The consequences of the derogation not being approved would increase the operating costs of the business. Which ultimately will increase the product cost in an already competitive market, along with reducing the amount waste derived materials we recycle back in to a kiln fuel each year.","Use 100% fossil fuels for production of Sintered Dolime. Note quarry reserves limit lifespan of installation.","Yes","2020-01-01"]
[null,null,null,null,{"$f":"IF(ISBLANK(G21),0,1)","v":0},4]
[null,null,null,null,0,5]

{"sheet":"Data Input - Qualitative","index":11,"n_rows":80,"n_cols":8,"rows_kept":80,"cut":false,"hidden":false,"merged":[]}
[null,{"$f":"\"---- Step 2 - Qualitative Assessment of Environmental Impacts ----\"","v":"---- Step 2 - Qualitative Assessment of Environmental Impacts ----"}]
[]
[]
[]
[]
[]
[null,null,null,"Environmental impact category","Applicable?","Description of impact                                 (?)","How significant is this impact?                (?)","Comment on significance"]
[]
[null,null,"2.1","Business as Usual (BAU)"]
[]
[null,null,null,"Air pollutant emissions",null,"SO2 higher than BAT ELV","Small negative","Proposed ELV 1500 mg/m3"]
[null,null,null,"Greenhouse gas emissions"]
[null,null,null,"Emissions to water"]
[null,null,null,"Emissions to land or soil"]
[null,null,null,"Noise"]
[null,null,null,"Visual"]
[null,null,null,"Odour"]
[null,null,null,"Waste"]
[null,null,null,"Other (please specify)",null,"HCl and GRPIII are higher than BAT ELV","Small negative","Proposed ELV 200 mg/m3 - 2.6 mg/m3 respectively."]
[]
[null,null,"2.2","Option 1",{"$f":"IF('Data Input - Case description'!$G$18=\"\",\"\",'Data Input - Case description'!$G$18)","v":"Proposed derogation"},null,"**"]
[]
[null,null,null,"Air pollutant emissions",null,"SO2 higher than BAT ELV - same as BAU","Small negative","Proposed ELV 1500 mg/m3"]
[null,null,null,"Greenhouse gas emissions"]
[null,null,null,"Emissions to water"]
[null,null,null,"Emissions to land or soil"]
[null,null,null,"Noise"]
[null,null,null,"Visual"]
[null,null,null,"Odour"]
[null,null,null,"Waste"]
[null,null,null,"Other (please specify)",null,"HCl and GRPIII are higher than BAT ELV","Small negative","Proposed ELV 200 mg/m3 - 2.6 mg/m3 respectively."]
[]
[null,null,"2.3","Option 2",{"$f":"IF('Data Input - Case description'!$G$19=\"\",\"\",'Data Input - Case description'!$G$19)","v":"BAT-AEL"}]
[]
[null,null,null,"Air pollutant emissions",null,"SO2 ELV compliant with BAT","Small positive","ELV 400 mg/m3"]
[null,null,null,"Greenhouse gas emissions"]
[null,null,null,"Emissions to water"]
[null,null,null,"Emissions to land or soil"]
[null,null,null,"Noise"]
[null,null,null,"Visual"]
[null,null,null,"Odour"]
[null,null,null,"Waste"]
[null,null,null,"Other (please specify)",null,"HCl and GRPIII are compliant with BAT ELV","Small positive","ELV 10 mg/m3 - 0.5 mg/m3 respectively."]
[]
[]
[null,null,"2.4","Option 3",{"$f":"IF('Data Input - Case description'!$G$20=\"\",\"\",'Data Input - Case description'!$G$20)","v":"Waste off"}]
[]
[null,null,null,"Air pollutant emissions",null,"SO2 ELV compliant with BAT","Small positive","ELV 400 mg/m3"]
[null,null,null,"Greenhouse gas emissions"]
[null,null,null,"Emissions to water"]
[null,null,null,"Emissions to land or soil"]
[null,null,null,"Noise"]
[null,null,null,"Visual"]
[null,null,null,"Odour"]
[null,null,null,"Waste"]
[null,null,null,"Other (please specify)",null,"HCl and GRPIII are compliant with BAT ELV","Small positive","ELV 10 mg/m3 - 0.5 mg/m3 respectively."]
[]
[null,null,"2.5","Option 4",{"$f":"IF('Data Input - Case description'!$G$21=\"\",\"\",'Data Input - Case description'!$G$21)","v":""}]
[]
[null,null,null,"Air pollutant emissions"]
[null,null,null,"Greenhouse gas emissions"]
[null,null,null,"Emissions to water"]
[null,null,null,"Emissions to land or soil"]
[null,null,null,"Noise"]
[null,null,null,"Visual"]
[null,null,null,"Odour"]
[null,null,null,"Waste"]
[null,null,null,"Other (please specify)"]
[]
[null,null,"2.6","Option 5",{"$f":"IF('Data Input - Case description'!$G$22=\"\",\"\",'Data Input - Case description'!$G$22)","v":""}]
[]
[null,null,null,"Air pollutant emissions"]
[null,null,null,"Greenhouse gas emissions"]
[null,null,null,"Emissions to water"]
[null,null,null,"Emissions to land or soil"]
[null,null,null,"Noise"]
[null,null,null,"Visual"]
[null,null,null,"Odour"]
[null,null,null,"Waste"]
[null,null,null,"Other (please specify)"]

{"sheet":"Data Input - General","index":12,"n_rows":36,"n_cols":11,"rows_kept":36,"cut":false,"hidden":false,"merged":[[35,5,35,10],[3,3,3,4],[6,9,6,10],[13,5,13,7],[17,5,17,10]]}
[null,{"$f":"\"---- Step 3 - General Data Input ----\"","v":"---- Step 3 - General Data Input ----"}]
[]
[]
[]
[]
[null,null,null,"Pre-appraisal parameters"]
[]
[null,null,3.1,"Is Installation located in an AQMA?",null,"No"," (Select from dropdown)"]
[]
[null,null,3.2,"Do fuel-combustion related GHG emissions from the site fall within the scope of the EU ETS?",null,"Yes"," (Select from dropdown)"]
[]
[null,null,3.3,"Do 'process-related' (i.e. non fuel-combustion) GHG emissions from the site fall within the scope of the EU ETS?",null,"Yes"," (Select from dropdown)"]
[]
[null,null,null,null,null,"Uncertainty bound"]
[null,null,null,null,null,"Low","Central","High"]
[null,null,3.4,"What is the weighted average cost of capital (WACC) at which the investments considered will be funded?","(?)",0.06,6.5000000000000002E-2,7.0000000000000007E-2,"%"]
[]
[null,null,3.5,"Please explain your choice of WACC",null,"Internal company guidelines for year 2017"]
[]
[null,null,null,"Option appraisal periods"]
[]
[null,null,3.6,"Year that work on derogation application began (Year 0)","(?)",2019]
[null,null,null,null,null,{"$f":"'Data Input - Case description'!F14:J14","v":"Replace existing"}]
[null,null,null,null,null,"Business as Usual (BAU)",{"$f":"IF('Data Input - Case description'!$G$18=\"\",\"\",'Data Input - Case description'!$G$18)","v":"Proposed derogation"},{"$f":"IF('Data Input - Case description'!$G$19=\"\",\"\",'Data Input - Case description'!$G$19)","v":"BAT-AEL"},{"$f":"IF('Data Input - Case description'!$G$20=\"\",\"\",'Data Input - Case description'!$G$20)","v":"Waste off"},{"$f":"IF('Data Input - Case description'!$G$21=\"\",\"\",'Data Input - Case description'!$G$21)","v":""},{"$f":"IF('Data Input - Case description'!$G$22=\"\",\"\",'Data Input - Case description'!$G$22)","v":""}]
[null,null,3.7,"First installation year (or if technology already installed leave 3.8, 3.9 and 3.10 blank and just fill in 3.11)","(?)",null,null,2023,2020]
[null,null,"3.8","Length of time to complete installation (Years)",null,null,null,1]
[null,null,"3.9","Lifetime of technology once fully installed (Years)",null,null,null,20]
[null,null,"3.10","Lifetime of technology remaining as of first appraisal year (only fill this in if your BAU technology is already installed) (Years)","(?)",30]
[]
[null,null,null,"Last year of initial operation (Auto calculated value)",null,{"$f":"IF(SUM(F25:F28)=0,\"\",IF(F25=0,ROUNDUP($F$22+F28,0),ROUNDUP(F25+F26-1+F27,0)))","v":2049},{"$f":"IF(SUM(G25:G28)=0,\"\",IF(G25=0,ROUNDUP($F$22+G28,0),ROUNDUP(G25+G26-1+G27,0)))","v":""},{"$f":"IF(SUM(H25:H28)=0,\"\",IF(H25=0,ROUNDUP($F$22+H28,0),ROUNDUP(H25+H26-1+H27,0)))","v":2043},2019,"",""]
[]
[null,null,null,"Does asset need to be 'renewed' over the appraisal period? (Auto calculated value)","(?)",{"$f":"IF(F24=\"\",\"\",IF('Data Input - General'!F$30<MAX('Data Input - General'!$F$30:$K$30),\"Yes\",\"No\"))","v":"No"},{"$f":"IF(H24=\"\",\"\",IF('Data Input - General'!G$30<MAX('Data Input - General'!$F$30:$K$30),\"Yes\",\"No\"))","v":"No"},{"$f":"IF(G24=\"\",\"\",IF('Data Input - General'!H$30<MAX('Data Input - General'!$F$30:$K$30),\"Yes\",\"No\"))","v":"Yes"},{"$f":"IF(I24=\"\",\"\",IF('Data Input - General'!I$30<MAX('Data Input - General'!$F$30:$K$30),\"Yes\",\"No\"))","v":"Yes"},{"$f":"IF(J24=\"\",\"\",IF('Data Input - General'!J$30<MAX('Data Input - General'!$F$30:$K$30),\"Yes\",\"No\"))","v":""},{"$f":"IF(K24=\"\",\"\",IF('Data Input - General'!K$30<MAX('Data Input - General'!$F$30:$K$30),\"Yes\",\"No\"))","v":""}]
[]
[null,null,null,"Last year of appraisal period (Auto calculated value)","(?)",{"$f":"MAX(F30:K30)","v":2049},{"$f":"IF(AND(F34>2100,F34<>0),\"Note: Tool is only able to produce CBA with appraisal period between 2010 and 2100\",\"\")","v":""}]
[]
[null,null,"3.11","Rationale for appraisal period chosen",null,"Kiln and current ESP can be maintained in a good condition with continuing maintenance and minor capital investment. Reserves of dolomite stone beyond 2025 are not available."]

{"sheet":"Data Input - BAU","index":13,"n_rows":128,"n_cols":107,"rows_kept":128,"cut":false,"hidden":false,"merged":[[31,7,31,9],[51,7,51,9]]}
[null,{"$f":"\"---- Step 4 - Data Input - Business as Usual (BAU) ----\"","v":"---- Step 4 - Data Input - Business as Usual (BAU) ----"}]
[]
[]
[]
[null,null,null,null,null,null,null,{"$f":"IF(AND(SUM(H30,H50,H79,H100,H117,H128,#REF!)<>0,H7=0),1,0)","v":{"$error":"#REF!"}},{"$f":"IF(AND(SUM(I30,I50,I79,I100,I117,I128,#REF!)<>0,I7=0),1,0)","v":{"$error":"#REF!"}},{"$f":"IF(AND(SUM(J30,J50,J79,J100,J117,J128,#REF!)<>0,J7=0),1,0)","v":{"$error":"#REF!"}},{"$f":"IF(AND(SUM(K30,K50,K79,K100,K117,K128,#REF!)<>0,K7=0),1,0)","v":{"$error":"#REF!"}},{"$f":"IF(AND(SUM(L30,L50,L79,L100,L117,L128,#REF!)<>0,L7=0),1,0)","v":{"$error":"#REF!"}},{"$f":"IF(AND(SUM(M30,M50,M79,M100,M117,M128,#REF!)<>0,M7=0),1,0)","v":{"$error":"#REF!"}},{"$f":"IF(AND(SUM(N30,N50,N79,N100,N117,N128,#REF!)<>0,N7=0),1,0)","v":{"$error":"#REF!"}},{"$f":"IF(AND(SUM(O30,O50,O79,O100,O117,O128,#REF!)<>0,O7=0),1,0)","v":{"$error":"#REF!"}},{"$f":"IF(AND(SUM(P30,P50,P79,P100,P117,P128,#REF!)<>0,P7=0),1,0)","v":{"$error":"#REF!"}},{"$f":"IF(AND(SUM(Q30,Q50,Q79,Q100,Q117,Q128,#REF!)<>0,Q7=0),1,0)","v":{"$error":"#REF!"}},{"$f":"IF(AND(SUM(R30,R50,R79,R100,R117,R128,#REF!)<>0,R7=0),1,0)","v":{"$error":"#REF!"}},{"$f":"IF(AND(SUM(S30,S50,S79,S100,S117,S128,#REF!)<>0,S7=0),1,0)","v":{"$error":"#REF!"}},{"$f":"IF(AND(SUM(T30,T50,T79,T100,T117,T128,#REF!)<>0,T7=0),1,0)","v":{"$error":"#REF!"}},{"$f":"IF(AND(SUM(U30,U50,U79,U100,U117,U128,#REF!)<>0,U7=0),1,0)","v":{"$error":"#REF!"}},{"$f":"IF(AND(SUM(V30,V50,V79,V100,V117,V128,#REF!)<>0,V7=0),1,0)","v":{"$error":"#REF!"}},{"$f":"IF(AND(SUM(W30,W50,W79,W100,W117,W128,#REF!)<>0,W7=0),1,0)","v":{"$error":"#REF!"}},{"$f":"IF(AND(SUM(X30,X50,X79,X100,X117,X128,#REF!)<>0,X7=0),1,0)","v":{"$error":"#REF!"}},{"$f":"IF(AND(SUM(Y30,Y50,Y79,Y100,Y117,Y128,#REF!)<>0,Y7=0),1,0)","v":{"$error":"#REF!"}},{"$f":"IF(AND(SUM(Z30,Z50,Z79,Z100,Z117,Z128,#REF!)<>0,Z7=0),1,0)","v":{"$error":"#REF!"}},{"$f":"IF(AND(SUM(AA30,AA50,AA79,AA100,AA117,AA128,#REF!)<>0,AA7=0),1,0)","v":{"$error":"#REF!"}},{"$f":"IF(AND(SUM(AB30,AB50,AB79,AB100,AB117,AB128,#REF!)<>0,AB7=0),1,0)","v":{"$error":"#REF!"}},{"$f":"IF(AND(SUM(AC30,AC50,AC79,AC100,AC117,AC128,#REF!)<>0,AC7=0),1,0)","v":{"$error":"#REF!"}},{"$f":"IF(AND(SUM(AD30,AD50,AD79,AD100,AD117,AD128,#REF!)<>0,AD7=0),1,0)","v":{"$error":"#REF!"}},{"$f":"IF(AND(SUM(AE30,AE50,AE79,AE100,AE117,AE128,#REF!)<>0,AE7=0),1,0)","v":{"$error":"#REF!"}},{"$f":"IF(AND(SUM(AF30,AF50,AF79,AF100,AF117,AF128,#REF!)<>0,AF7=0),1,0)","v":{"$error":"#REF!"}},{"$f":"IF(AND(SUM(AG30,AG50,AG79,AG100,AG117,AG128,#REF!)<>0,AG7=0),1,0)","v":{"$error":"#REF!"}},{"$f":"IF(AND(SUM(AH30,AH50,AH79,AH100,AH117,AH128,#REF!)<>0,AH7=0),1,0)","v":{"$error":"#REF!"}},{"$f":"IF(AND(SUM(AI30,AI50,AI79,AI100,AI117,AI128,#REF!)<>0,AI7=0),1,0)","v":{"$error":"#REF!"}},{"$f":"IF(AND(SUM(AJ30,AJ50,AJ79,AJ100,AJ117,AJ128,#REF!)<>0,AJ7=0),1,0)","v":{"$error":"#REF!"}},{"$f":"IF(AND(SUM(AK30,AK50,AK79,AK100,AK117,AK128,#REF!)<>0,AK7=0),1,0)","v":{"$error":"#REF!"}},{"$f":"IF(AND(SUM(AL30,AL50,AL79,AL100,AL117,AL128,#REF!)<>0,AL7=0),1,0)","v":{"$error":"#REF!"}},{"$f":"IF(AND(SUM(AM30,AM50,AM79,AM100,AM117,AM128,#REF!)<>0,AM7=0),1,0)","v":{"$error":"#REF!"}},{"$f":"IF(AND(SUM(AN30,AN50,AN79,AN100,AN117,AN128,#REF!)<>0,AN7=0),1,0)","v":{"$error":"#REF!"}},{"$f":"IF(AND(SUM(AO30,AO50,AO79,AO100,AO117,AO128,#REF!)<>0,AO7=0),1,0)","v":{"$error":"#REF!"}},{"$f":"IF(AND(SUM(AP30,AP50,AP79,AP100,AP117,AP128,#REF!)<>0,AP7=0),1,0)","v":{"$error":"#REF!"}},{"$f":"IF(AND(SUM(AQ30,AQ50,AQ79,AQ100,AQ117,AQ128,#REF!)<>0,AQ7=0),1,0)","v":{"$error":"#REF!"}},{"$f":"IF(AND(SUM(AR30,AR50,AR79,AR100,AR117,AR128,#REF!)<>0,AR7=0),1,0)","v":{"$error":"#REF!"}},{"$f":"IF(AND(SUM(AS30,AS50,AS79,AS100,AS117,AS128,#REF!)<>0,AS7=0),1,0)","v":{"$error":"#REF!"}},{"$f":"IF(AND(SUM(AT30,AT50,AT79,AT100,AT117,AT128,#REF!)<>0,AT7=0),1,0)","v":{"$error":"#REF!"}},{"$f":"IF(AND(SUM(AU30,AU50,AU79,AU100,AU117,AU128,#REF!)<>0,AU7=0),1,0)","v":{"$error":"#REF!"}},{"$f":"IF(AND(SUM(AV30,AV50,AV79,AV100,AV117,AV128,#REF!)<>0,AV7=0),1,0)","v":{"$error":"#REF!"}},{"$f":"IF(AND(SUM(AW30,AW50,AW79,AW100,AW117,AW128,#REF!)<>0,AW7=0),1,0)","v":{"$error":"#REF!"}},{"$f":"IF(AND(SUM(AX30,AX50,AX79,AX100,AX117,AX128,#REF!)<>0,AX7=0),1,0)","v":{"$error":"#REF!"}},{"$f":"IF(AND(SUM(AY30,AY50,AY79,AY100,AY117,AY128,#REF!)<>0,AY7=0),1,0)","v":{"$error":"#REF!"}},{"$f":"IF(AND(SUM(AZ30,AZ50,AZ79,AZ100,AZ117,AZ128,#REF!)<>0,AZ7=0),1,0)","v":{"$error":"#REF!"}},{"$f":"IF(AND(SUM(BA30,BA50,BA79,BA100,BA117,BA128,#REF!)<>0,BA7=0),1,0)","v":{"$error":"#REF!"}},{"$f":"IF(AND(SUM(BB30,BB50,BB79,BB100,BB117,BB128,#REF!)<>0,BB7=0),1,0)","v":{"$error":"#REF!"}},{"$f":"IF(AND(SUM(BC30,BC50,BC79,BC100,BC117,BC128,#REF!)<>0,BC7=0),1,0)","v":{"$error":"#REF!"}},{"$f":"IF(AND(SUM(BD30,BD50,BD79,BD100,BD117,BD128,#REF!)<>0,BD7=0),1,0)","v":{"$error":"#REF!"}},{"$f":"IF(AND(SUM(BE30,BE50,BE79,BE100,BE117,BE128,#REF!)<>0,BE7=0),1,0)","v":{"$error":"#REF!"}},{"$f":"IF(AND(SUM(BF30,BF50,BF79,BF100,BF117,BF128,#REF!)<>0,BF7=0),1,0)","v":{"$error":"#REF!"}},{"$f":"IF(AND(SUM(BG30,BG50,BG79,BG100,BG117,BG128,#REF!)<>0,BG7=0),1,0)","v":{"$error":"#REF!"}},{"$f":"IF(AND(SUM(BH30,BH50,BH79,BH100,BH117,BH128,#REF!)<>0,BH7=0),1,0)","v":{"$error":"#REF!"}},{"$f":"IF(AND(SUM(BI30,BI50,BI79,BI100,BI117,BI128,#REF!)<>0,BI7=0),1,0)","v":{"$error":"#REF!"}},{"$f":"IF(AND(SUM(BJ30,BJ50,BJ79,BJ100,BJ117,BJ128,#REF!)<>0,BJ7=0),1,0)","v":{"$error":"#REF!"}},{"$f":"IF(AND(SUM(BK30,BK50,BK79,BK100,BK117,BK128,#REF!)<>0,BK7=0),1,0)","v":{"$error":"#REF!"}},{"$f":"IF(AND(SUM(BL30,BL50,BL79,BL100,BL117,BL128,#REF!)<>0,BL7=0),1,0)","v":{"$error":"#REF!"}},{"$f":"IF(AND(SUM(BM30,BM50,BM79,BM100,BM117,BM128,#REF!)<>0,BM7=0),1,0)","v":{"$error":"#REF!"}},{"$f":"IF(AND(SUM(BN30,BN50,BN79,BN100,BN117,BN128,#REF!)<>0,BN7=0),1,0)","v":{"$error":"#REF!"}},{"$f":"IF(AND(SUM(BO30,BO50,BO79,BO100,BO117,BO128,#REF!)<>0,BO7=0),1,0)","v":{"$error":"#REF!"}},{"$f":"IF(AND(SUM(BP30,BP50,BP79,BP100,BP117,BP128,#REF!)<>0,BP7=0),1,0)","v":{"$error":"#REF!"}},{"$f":"IF(AND(SUM(BQ30,BQ50,BQ79,BQ100,BQ117,BQ128,#REF!)<>0,BQ7=0),1,0)","v":{"$error":"#REF!"}},{"$f":"IF(AND(SUM(BR30,BR50,BR79,BR100,BR117,BR128,#REF!)<>0,BR7=0),1,0)","v":{"$error":"#REF!"}},{"$f":"IF(AND(SUM(BS30,BS50,BS79,BS100,BS117,BS128,#REF!)<>0,BS7=0),1,0)","v":{"$error":"#REF!"}},{"$f":"IF(AND(SUM(BT30,BT50,BT79,BT100,BT117,BT128,#REF!)<>0,BT7=0),1,0)","v":{"$error":"#REF!"}},{"$f":"IF(AND(SUM(BU30,BU50,BU79,BU100,BU117,BU128,#REF!)<>0,BU7=0),1,0)","v":{"$error":"#REF!"}},{"$f":"IF(AND(SUM(BV30,BV50,BV79,BV100,BV117,BV128,#REF!)<>0,BV7=0),1,0)","v":{"$error":"#REF!"}},{"$f":"IF(AND(SUM(BW30,BW50,BW79,BW100,BW117,BW128,#REF!)<>0,BW7=0),1,0)","v":{"$error":"#REF!"}},{"$f":"IF(AND(SUM(BX30,BX50,BX79,BX100,BX117,BX128,#REF!)<>0,BX7=0),1,0)","v":{"$error":"#REF!"}},{"$f":"IF(AND(SUM(BY30,BY50,BY79,BY100,BY117,BY128,#REF!)<>0,BY7=0),1,0)","v":{"$error":"#REF!"}},{"$f":"IF(AND(SUM(BZ30,BZ50,BZ79,BZ100,BZ117,BZ128,#REF!)<>0,BZ7=0),1,0)","v":{"$error":"#REF!"}},{"$f":"IF(AND(SUM(CA30,CA50,CA79,CA100,CA117,CA128,#REF!)<>0,CA7=0),1,0)","v":{"$error":"#REF!"}},{"$f":"IF(AND(SUM(CB30,CB50,CB79,CB100,CB117,CB128,#REF!)<>0,CB7=0),1,0)","v":{"$error":"#REF!"}},{"$f":"IF(AND(SUM(CC30,CC50,CC79,CC100,CC117,CC128,#REF!)<>0,CC7=0),1,0)","v":{"$error":"#REF!"}},{"$f":"IF(AND(SUM(CD30,CD50,CD79,CD100,CD117,CD128,#REF!)<>0,CD7=0),1,0)","v":{"$error":"#REF!"}},{"$f":"IF(AND(SUM(CE30,CE50,CE79,CE100,CE117,CE128,#REF!)<>0,CE7=0),1,0)","v":{"$error":"#REF!"}},{"$f":"IF(AND(SUM(CF30,CF50,CF79,CF100,CF117,CF128,#REF!)<>0,CF7=0),1,0)","v":{"$error":"#REF!"}},{"$f":"IF(AND(SUM(CG30,CG50,CG79,CG100,CG117,CG128,#REF!)<>0,CG7=0),1,0)","v":{"$error":"#REF!"}},{"$f":"IF(AND(SUM(CH30,CH50,CH79,CH100,CH117,CH128,#REF!)<>0,CH7=0),1,0)","v":{"$error":"#REF!"}},{"$f":"IF(AND(SUM(CI30,CI50,CI79,CI100,CI117,CI128,#REF!)<>0,CI7=0),1,0)","v":{"$error":"#REF!"}},{"$f":"IF(AND(SUM(CJ30,CJ50,CJ79,CJ100,CJ117,CJ128,#REF!)<>0,CJ7=0),1,0)","v":{"$error":"#REF!"}},{"$f":"IF(AND(SUM(CK30,CK50,CK79,CK100,CK117,CK128,#REF!)<>0,CK7=0),1,0)","v":{"$error":"#REF!"}},{"$f":"IF(AND(SUM(CL30,CL50,CL79,CL100,CL117,CL128,#REF!)<>0,CL7=0),1,0)","v":{"$error":"#REF!"}},{"$f":"IF(AND(SUM(CM30,CM50,CM79,CM100,CM117,CM128,#REF!)<>0,CM7=0),1,0)","v":{"$error":"#REF!"}},{"$f":"IF(AND(SUM(CN30,CN50,CN79,CN100,CN117,CN128,#REF!)<>0,CN7=0),1,0)","v":{"$error":"#REF!"}},{"$f":"IF(AND(SUM(CO30,CO50,CO79,CO100,CO117,CO128,#REF!)<>0,CO7=0),1,0)","v":{"$error":"#REF!"}},{"$f":"IF(AND(SUM(CP30,CP50,CP79,CP100,CP117,CP128,#REF!)<>0,CP7=0),1,0)","v":{"$error":"#REF!"}},{"$f":"IF(AND(SUM(CQ30,CQ50,CQ79,CQ100,CQ117,CQ128,#REF!)<>0,CQ7=0),1,0)","v":{"$error":"#REF!"}},{"$f":"IF(AND(SUM(CR30,CR50,CR79,CR100,CR117,CR128,#REF!)<>0,CR7=0),1,0)","v":{"$error":"#REF!"}},{"$f":"IF(AND(SUM(CS30,CS50,CS79,CS100,CS117,CS128,#REF!)<>0,CS7=0),1,0)","v":{"$error":"#REF!"}},{"$f":"IF(AND(SUM(CT30,CT50,CT79,CT100,CT117,CT128,#REF!)<>0,CT7=0),1,0)","v":{"$error":"#REF!"}},{"$f":"IF(AND(SUM(CU30,CU50,CU79,CU100,CU117,CU128,#REF!)<>0,CU7=0),1,0)","v":{"$error":"#REF!"}},{"$f":"IF(AND(SUM(CV30,CV50,CV79,CV100,CV117,CV128,#REF!)<>0,CV7=0),1,0)","v":{"$error":"#REF!"}},{"$f":"IF(AND(SUM(CW30,CW50,CW79,CW100,CW117,CW128,#REF!)<>0,CW7=0),1,0)","v":{"$error":"#REF!"}},{"$f":"IF(AND(SUM(CX30,CX50,CX79,CX100,CX117,CX128,#REF!)<>0,CX7=0),1,0)","v":{"$error":"#REF!"}},{"$f":"IF(AND(SUM(CY30,CY50,CY79,CY100,CY117,CY128,#REF!)<>0,CY7=0),1,0)","v":{"$error":"#REF!"}},{"$f":"IF(AND(SUM(CZ30,CZ50,CZ79,CZ100,CZ117,CZ128,#REF!)<>0,CZ7=0),1,0)","v":{"$error":"#REF!"}},{"$f":"IF(AND(SUM(DA30,DA50,DA79,DA100,DA117,DA128,#REF!)<>0,DA7=0),1,0)","v":{"$error":"#REF!"}},{"$f":"IF(AND(SUM(DB30,DB50,DB79,DB100,DB117,DB128,#REF!)<>0,DB7=0),1,0)","v":{"$error":"#REF!"}},{"$f":"IF(AND(SUM(DC30,DC50,DC79,DC100,DC117,DC128,#REF!)<>0,DC7=0),1,0)","v":{"$error":"#REF!"}}]
[null,null,null,null,null,"Year number",null,0,1,2,3,4,5,6,7,8,9,10,11,12,13,14,15,16,17,18,19,20,21,22,23,24,25,26,27,28,29,30,31,32,33,34,35,36,37,38,39,40,41,42,43,44,45,46,47,48,49,50,51,52,53,54,55,56,57,58,59,60,61,62,63,64,65,66,67,68,69,70,71,72,73,74,75,76,77,78,79,80,81,82,83,84,85,86,87,88,89,90,91,92,93,94,95,96,97,98,99]
[null,null,null,null,null,"Year",null,{"$f":"IF($C$9=0,\"\",IF(H$6+'Data Input - General'!$F$22>'Data Input - General'!$F$34,0,'Data Input - BAU'!H$6+'Data Input - General'!$F$22))","v":2019},{"$f":"IF($C$9=0,\"\",IF(I$6+'Data Input - General'!$F$22>'Data Input - General'!$F$34,0,'Data Input - BAU'!I$6+'Data Input - General'!$F$22))","v":2020},{"$f":"IF($C$9=0,\"\",IF(J$6+'Data Input - General'!$F$22>'Data Input - General'!$F$34,0,'Data Input - BAU'!J$6+'Data Input - General'!$F$22))","v":2021},{"$f":"IF($C$9=0,\"\",IF(K$6+'Data Input - General'!$F$22>'Data Input - General'!$F$34,0,'Data Input - BAU'!K$6+'Data Input - General'!$F$22))","v":2022},{"$f":"IF($C$9=0,\"\",IF(L$6+'Data Input - General'!$F$22>'Data Input - General'!$F$34,0,'Data Input - BAU'!L$6+'Data Input - General'!$F$22))","v":2023},{"$f":"IF($C$9=0,\"\",IF(M$6+'Data Input - General'!$F$22>'Data Input - General'!$F$34,0,'Data Input - BAU'!M$6+'Data Input - General'!$F$22))","v":2024},{"$f":"IF($C$9=0,\"\",IF(N$6+'Data Input - General'!$F$22>'Data Input - General'!$F$34,0,'Data Input - BAU'!N$6+'Data Input - General'!$F$22))","v":2025},{"$f":"IF($C$9=0,\"\",IF(O$6+'Data Input - General'!$F$22>'Data Input - General'!$F$34,0,'Data Input - BAU'!O$6+'Data Input - General'!$F$22))","v":2026},{"$f":"IF($C$9=0,\"\",IF(P$6+'Data Input - General'!$F$22>'Data Input - General'!$F$34,0,'Data Input - BAU'!P$6+'Data Input - General'!$F$22))","v":2027},{"$f":"IF($C$9=0,\"\",IF(Q$6+'Data Input - General'!$F$22>'Data Input - General'!$F$34,0,'Data Input - BAU'!Q$6+'Data Input - General'!$F$22))","v":2028},{"$f":"IF($C$9=0,\"\",IF(R$6+'Data Input - General'!$F$22>'Data Input - General'!$F$34,0,'Data Input - BAU'!R$6+'Data Input - General'!$F$22))","v":2029},{"$f":"IF($C$9=0,\"\",IF(S$6+'Data Input - General'!$F$22>'Data Input - General'!$F$34,0,'Data Input - BAU'!S$6+'Data Input - General'!$F$22))","v":2030},{"$f":"IF($C$9=0,\"\",IF(T$6+'Data Input - General'!$F$22>'Data Input - General'!$F$34,0,'Data Input - BAU'!T$6+'Data Input - General'!$F$22))","v":2031},{"$f":"IF($C$9=0,\"\",IF(U$6+'Data Input - General'!$F$22>'Data Input - General'!$F$34,0,'Data Input - BAU'!U$6+'Data Input - General'!$F$22))","v":2032},{"$f":"IF($C$9=0,\"\",IF(V$6+'Data Input - General'!$F$22>'Data Input - General'!$F$34,0,'Data Input - BAU'!V$6+'Data Input - General'!$F$22))","v":2033},{"$f":"IF($C$9=0,\"\",IF(W$6+'Data Input - General'!$F$22>'Data Input - General'!$F$34,0,'Data Input - BAU'!W$6+'Data Input - General'!$F$22))","v":2034},{"$f":"IF($C$9=0,\"\",IF(X$6+'Data Input - General'!$F$22>'Data Input - General'!$F$34,0,'Data Input - BAU'!X$6+'Data Input - General'!$F$22))","v":2035},{"$f":"IF($C$9=0,\"\",IF(Y$6+'Data Input - General'!$F$22>'Data Input - General'!$F$34,0,'Data Input - BAU'!Y$6+'Data Input - General'!$F$22))","v":2036},{"$f":"IF($C$9=0,\"\",IF(Z$6+'Data Input - General'!$F$22>'Data Input - General'!$F$34,0,'Data Input - BAU'!Z$6+'Data Input - General'!$F$22))","v":2037},{"$f":"IF($C$9=0,\"\",IF(AA$6+'Data Input - General'!$F$22>'Data Input - General'!$F$34,0,'Data Input - BAU'!AA$6+'Data Input - General'!$F$22))","v":2038},{"$f":"IF($C$9=0,\"\",IF(AB$6+'Data Input - General'!$F$22>'Data Input - General'!$F$34,0,'Data Input - BAU'!AB$6+'Data Input - General'!$F$22))","v":2039},{"$f":"IF($C$9=0,\"\",IF(AC$6+'Data Input - General'!$F$22>'Data Input - General'!$F$34,0,'Data Input - BAU'!AC$6+'Data Input - General'!$F$22))","v":2040},{"$f":"IF($C$9=0,\"\",IF(AD$6+'Data Input - General'!$F$22>'Data Input - General'!$F$34,0,'Data Input - BAU'!AD$6+'Data Input - General'!$F$22))","v":2041},{"$f":"IF($C$9=0,\"\",IF(AE$6+'Data Input - General'!$F$22>'Data Input - General'!$F$34,0,'Data Input - BAU'!AE$6+'Data Input - General'!$F$22))","v":2042},{"$f":"IF($C$9=0,\"\",IF(AF$6+'Data Input - General'!$F$22>'Data Input - General'!$F$34,0,'Data Input - BAU'!AF$6+'Data Input - General'!$F$22))","v":2043},{"$f":"IF($C$9=0,\"\",IF(AG$6+'Data Input - General'!$F$22>'Data Input - General'!$F$34,0,'Data Input - BAU'!AG$6+'Data Input - General'!$F$22))","v":2044},{"$f":"IF($C$9=0,\"\",IF(AH$6+'Data Input - General'!$F$22>'Data Input - General'!$F$34,0,'Data Input - BAU'!AH$6+'Data Input - General'!$F$22))","v":2045},{"$f":"IF($C$9=0,\"\",IF(AI$6+'Data Input - General'!$F$22>'Data Input - General'!$F$34,0,'Data Input - BAU'!AI$6+'Data Input - General'!$F$22))","v":2046},{"$f":"IF($C$9=0,\"\",IF(AJ$6+'Data Input - General'!$F$22>'Data Input - General'!$F$34,0,'Data Input - BAU'!AJ$6+'Data Input - General'!$F$22))","v":2047},{"$f":"IF($C$9=0,\"\",IF(AK$6+'Data Input - General'!$F$22>'Data Input - General'!$F$34,0,'Data Input - BAU'!AK$6+'Data Input - General'!$F$22))","v":2048},{"$f":"IF($C$9=0,\"\",IF(AL$6+'Data Input - General'!$F$22>'Data Input - General'!$F$34,0,'Data Input - BAU'!AL$6+'Data Input - General'!$F$22))","v":2049},{"$f":"IF($C$9=0,\"\",IF(AM$6+'Data Input - General'!$F$22>'Data Input - General'!$F$34,0,'Data Input - BAU'!AM$6+'Data Input - General'!$F$22))","v":0},{"$f":"IF($C$9=0,\"\",IF(AN$6+'Data Input - General'!$F$22>'Data Input - General'!$F$34,0,'Data Input - BAU'!AN$6+'Data Input - General'!$F$22))","v":0},{"$f":"IF($C$9=0,\"\",IF(AO$6+'Data Input - General'!$F$22>'Data Input - General'!$F$34,0,'Data Input - BAU'!AO$6+'Data Input - General'!$F$22))","v":0},{"$f":"IF($C$9=0,\"\",IF(AP$6+'Data Input - General'!$F$22>'Data Input - General'!$F$34,0,'Data Input - BAU'!AP$6+'Data Input - General'!$F$22))","v":0},{"$f":"IF($C$9=0,\"\",IF(AQ$6+'Data Input - General'!$F$22>'Data Input - General'!$F$34,0,'Data Input - BAU'!AQ$6+'Data Input - General'!$F$22))","v":0},{"$f":"IF($C$9=0,\"\",IF(AR$6+'Data Input - General'!$F$22>'Data Input - General'!$F$34,0,'Data Input - BAU'!AR$6+'Data Input - General'!$F$22))","v":0},{"$f":"IF($C$9=0,\"\",IF(AS$6+'Data Input - General'!$F$22>'Data Input - General'!$F$34,0,'Data Input - BAU'!AS$6+'Data Input - General'!$F$22))","v":0},{"$f":"IF($C$9=0,\"\",IF(AT$6+'Data Input - General'!$F$22>'Data Input - General'!$F$34,0,'Data Input - BAU'!AT$6+'Data Input - General'!$F$22))","v":0},{"$f":"IF($C$9=0,\"\",IF(AU$6+'Data Input - General'!$F$22>'Data Input - General'!$F$34,0,'Data Input - BAU'!AU$6+'Data Input - General'!$F$22))","v":0},{"$f":"IF($C$9=0,\"\",IF(AV$6+'Data Input - General'!$F$22>'Data Input - General'!$F$34,0,'Data Input - BAU'!AV$6+'Data Input - General'!$F$22))","v":0},{"$f":"IF($C$9=0,\"\",IF(AW$6+'Data Input - General'!$F$22>'Data Input - General'!$F$34,0,'Data Input - BAU'!AW$6+'Data Input - General'!$F$22))","v":0},{"$f":"IF($C$9=0,\"\",IF(AX$6+'Data Input - General'!$F$22>'Data Input - General'!$F$34,0,'Data Input - BAU'!AX$6+'Data Input - General'!$F$22))","v":0},{"$f":"IF($C$9=0,\"\",IF(AY$6+'Data Input - General'!$F$22>'Data Input - General'!$F$34,0,'Data Input - BAU'!AY$6+'Data Input - General'!$F$22))","v":0},{"$f":"IF($C$9=0,\"\",IF(AZ$6+'Data Input - General'!$F$22>'Data Input - General'!$F$34,0,'Data Input - BAU'!AZ$6+'Data Input - General'!$F$22))","v":0},{"$f":"IF($C$9=0,\"\",IF(BA$6+'Data Input - General'!$F$22>'Data Input - General'!$F$34,0,'Data Input - BAU'!BA$6+'Data Input - General'!$F$22))","v":0},{"$f":"IF($C$9=0,\"\",IF(BB$6+'Data Input - General'!$F$22>'Data Input - General'!$F$34,0,'Data Input - BAU'!BB$6+'Data Input - General'!$F$22))","v":0},{"$f":"IF($C$9=0,\"\",IF(BC$6+'Data Input - General'!$F$22>'Data Input - General'!$F$34,0,'Data Input - BAU'!BC$6+'Data Input - General'!$F$22))","v":0},{"$f":"IF($C$9=0,\"\",IF(BD$6+'Data Input - General'!$F$22>'Data Input - General'!$F$34,0,'Data Input - BAU'!BD$6+'Data Input - General'!$F$22))","v":0},{"$f":"IF($C$9=0,\"\",IF(BE$6+'Data Input - General'!$F$22>'Data Input - General'!$F$34,0,'Data Input - BAU'!BE$6+'Data Input - General'!$F$22))","v":0},{"$f":"IF($C$9=0,\"\",IF(BF$6+'Data Input - General'!$F$22>'Data Input - General'!$F$34,0,'Data Input - BAU'!BF$6+'Data Input - General'!$F$22))","v":0},{"$f":"IF($C$9=0,\"\",IF(BG$6+'Data Input - General'!$F$22>'Data Input - General'!$F$34,0,'Data Input - BAU'!BG$6+'Data Input - General'!$F$22))","v":0},{"$f":"IF($C$9=0,\"\",IF(BH$6+'Data Input - General'!$F$22>'Data Input - General'!$F$34,0,'Data Input - BAU'!BH$6+'Data Input - General'!$F$22))","v":0},{"$f":"IF($C$9=0,\"\",IF(BI$6+'Data Input - General'!$F$22>'Data Input - General'!$F$34,0,'Data Input - BAU'!BI$6+'Data Input - General'!$F$22))","v":0},{"$f":"IF($C$9=0,\"\",IF(BJ$6+'Data Input - General'!$F$22>'Data Input - General'!$F$34,0,'Data Input - BAU'!BJ$6+'Data Input - General'!$F$22))","v":0},{"$f":"IF($C$9=0,\"\",IF(BK$6+'Data Input - General'!$F$22>'Data Input - General'!$F$34,0,'Data Input - BAU'!BK$6+'Data Input - General'!$F$22))","v":0},{"$f":"IF($C$9=0,\"\",IF(BL$6+'Data Input - General'!$F$22>'Data Input - General'!$F$34,0,'Data Input - BAU'!BL$6+'Data Input - General'!$F$22))","v":0},{"$f":"IF($C$9=0,\"\",IF(BM$6+'Data Input - General'!$F$22>'Data Input - General'!$F$34,0,'Data Input - BAU'!BM$6+'Data Input - General'!$F$22))","v":0},{"$f":"IF($C$9=0,\"\",IF(BN$6+'Data Input - General'!$F$22>'Data Input - General'!$F$34,0,'Data Input - BAU'!BN$6+'Data Input - General'!$F$22))","v":0},{"$f":"IF($C$9=0,\"\",IF(BO$6+'Data Input - General'!$F$22>'Data Input - General'!$F$34,0,'Data Input - BAU'!BO$6+'Data Input - General'!$F$22))","v":0},{"$f":"IF($C$9=0,\"\",IF(BP$6+'Data Input - General'!$F$22>'Data Input - General'!$F$34,0,'Data Input - BAU'!BP$6+'Data Input - General'!$F$22))","v":0},{"$f":"IF($C$9=0,\"\",IF(BQ$6+'Data Input - General'!$F$22>'Data Input - General'!$F$34,0,'Data Input - BAU'!BQ$6+'Data Input - General'!$F$22))","v":0},{"$f":"IF($C$9=0,\"\",IF(BR$6+'Data Input - General'!$F$22>'Data Input - General'!$F$34,0,'Data Input - BAU'!BR$6+'Data Input - General'!$F$22))","v":0},{"$f":"IF($C$9=0,\"\",IF(BS$6+'Data Input - General'!$F$22>'Data Input - General'!$F$34,0,'Data Input - BAU'!BS$6+'Data Input - General'!$F$22))","v":0},{"$f":"IF($C$9=0,\"\",IF(BT$6+'Data Input - General'!$F$22>'Data Input - General'!$F$34,0,'Data Input - BAU'!BT$6+'Data Input - General'!$F$22))","v":0},{"$f":"IF($C$9=0,\"\",IF(BU$6+'Data Input - General'!$F$22>'Data Input - General'!$F$34,0,'Data Input - BAU'!BU$6+'Data Input - General'!$F$22))","v":0},{"$f":"IF($C$9=0,\"\",IF(BV$6+'Data Input - General'!$F$22>'Data Input - General'!$F$34,0,'Data Input - BAU'!BV$6+'Data Input - General'!$F$22))","v":0},{"$f":"IF($C$9=0,\"\",IF(BW$6+'Data Input - General'!$F$22>'Data Input - General'!$F$34,0,'Data Input - BAU'!BW$6+'Data Input - General'!$F$22))","v":0},{"$f":"IF($C$9=0,\"\",IF(BX$6+'Data Input - General'!$F$22>'Data Input - General'!$F$34,0,'Data Input - BAU'!BX$6+'Data Input - General'!$F$22))","v":0},{"$f":"IF($C$9=0,\"\",IF(BY$6+'Data Input - General'!$F$22>'Data Input - General'!$F$34,0,'Data Input - BAU'!BY$6+'Data Input - General'!$F$22))","v":0},{"$f":"IF($C$9=0,\"\",IF(BZ$6+'Data Input - General'!$F$22>'Data Input - General'!$F$34,0,'Data Input - BAU'!BZ$6+'Data Input - General'!$F$22))","v":0},{"$f":"IF($C$9=0,\"\",IF(CA$6+'Data Input - General'!$F$22>'Data Input - General'!$F$34,0,'Data Input - BAU'!CA$6+'Data Input - General'!$F$22))","v":0},{"$f":"IF($C$9=0,\"\",IF(CB$6+'Data Input - General'!$F$22>'Data Input - General'!$F$34,0,'Data Input - BAU'!CB$6+'Data Input - General'!$F$22))","v":0},{"$f":"IF($C$9=0,\"\",IF(CC$6+'Data Input - General'!$F$22>'Data Input - General'!$F$34,0,'Data Input - BAU'!CC$6+'Data Input - General'!$F$22))","v":0},{"$f":"IF($C$9=0,\"\",IF(CD$6+'Data Input - General'!$F$22>'Data Input - General'!$F$34,0,'Data Input - BAU'!CD$6+'Data Input - General'!$F$22))","v":0},{"$f":"IF($C$9=0,\"\",IF(CE$6+'Data Input - General'!$F$22>'Data Input - General'!$F$34,0,'Data Input - BAU'!CE$6+'Data Input - General'!$F$22))","v":0},{"$f":"IF($C$9=0,\"\",IF(CF$6+'Data Input - General'!$F$22>'Data Input - General'!$F$34,0,'Data Input - BAU'!CF$6+'Data Input - General'!$F$22))","v":0},{"$f":"IF($C$9=0,\"\",IF(CG$6+'Data Input - General'!$F$22>'Data Input - General'!$F$34,0,'Data Input - BAU'!CG$6+'Data Input - General'!$F$22))","v":0},{"$f":"IF($C$9=0,\"\",IF(CH$6+'Data Input - General'!$F$22>'Data Input - General'!$F$34,0,'Data Input - BAU'!CH$6+'Data Input - General'!$F$22))","v":0},{"$f":"IF($C$9=0,\"\",IF(CI$6+'Data Input - General'!$F$22>'Data Input - General'!$F$34,0,'Data Input - BAU'!CI$6+'Data Input - General'!$F$22))","v":0},{"$f":"IF($C$9=0,\"\",IF(CJ$6+'Data Input - General'!$F$22>'Data Input - General'!$F$34,0,'Data Input - BAU'!CJ$6+'Data Input - General'!$F$22))","v":0},{"$f":"IF($C$9=0,\"\",IF(CK$6+'Data Input - General'!$F$22>'Data Input - General'!$F$34,0,'Data Input - BAU'!CK$6+'Data Input - General'!$F$22))","v":0},{"$f":"IF($C$9=0,\"\",IF(CL$6+'Data Input - General'!$F$22>'Data Input - General'!$F$34,0,'Data Input - BAU'!CL$6+'Data Input - General'!$F$22))","v":0},{"$f":"IF($C$9=0,\"\",IF(CM$6+'Data Input - General'!$F$22>'Data Input - General'!$F$34,0,'Data Input - BAU'!CM$6+'Data Input - General'!$F$22))","v":0},{"$f":"IF($C$9=0,\"\",IF(CN$6+'Data Input - General'!$F$22>'Data Input - General'!$F$34,0,'Data Input - BAU'!CN$6+'Data Input - General'!$F$22))","v":0},{"$f":"IF($C$9=0,\"\",IF(CO$6+'Data Input - General'!$F$22>'Data Input - General'!$F$34,0,'Data Input - BAU'!CO$6+'Data Input - General'!$F$22))","v":0},{"$f":"IF($C$9=0,\"\",IF(CP$6+'Data Input - General'!$F$22>'Data Input - General'!$F$34,0,'Data Input - BAU'!CP$6+'Data Input - General'!$F$22))","v":0},{"$f":"IF($C$9=0,\"\",IF(CQ$6+'Data Input - General'!$F$22>'Data Input - General'!$F$34,0,'Data Input - BAU'!CQ$6+'Data Input - General'!$F$22))","v":0},{"$f":"IF($C$9=0,\"\",IF(CR$6+'Data Input - General'!$F$22>'Data Input - General'!$F$34,0,'Data Input - BAU'!CR$6+'Data Input - General'!$F$22))","v":0},{"$f":"IF($C$9=0,\"\",IF(CS$6+'Data Input - General'!$F$22>'Data Input - General'!$F$34,0,'Data Input - BAU'!CS$6+'Data Input - General'!$F$22))","v":0},{"$f":"IF($C$9=0,\"\",IF(CT$6+'Data Input - General'!$F$22>'Data Input - General'!$F$34,0,'Data Input - BAU'!CT$6+'Data Input - General'!$F$22))","v":0},{"$f":"IF($C$9=0,\"\",IF(CU$6+'Data Input - General'!$F$22>'Data Input - General'!$F$34,0,'Data Input - BAU'!CU$6+'Data Input - General'!$F$22))","v":0},{"$f":"IF($C$9=0,\"\",IF(CV$6+'Data Input - General'!$F$22>'Data Input - General'!$F$34,0,'Data Input - BAU'!CV$6+'Data Input - General'!$F$22))","v":0},{"$f":"IF($C$9=0,\"\",IF(CW$6+'Data Input - General'!$F$22>'Data Input - General'!$F$34,0,'Data Input - BAU'!CW$6+'Data Input - General'!$F$22))","v":0},{"$f":"IF($C$9=0,\"\",IF(CX$6+'Data Input - General'!$F$22>'Data Input - General'!$F$34,0,'Data Input - BAU'!CX$6+'Data Input - General'!$F$22))","v":0},{"$f":"IF($C$9=0,\"\",IF(CY$6+'Data Input - General'!$F$22>'Data Input - General'!$F$34,0,'Data Input - BAU'!CY$6+'Data Input - General'!$F$22))","v":0},{"$f":"IF($C$9=0,\"\",IF(CZ$6+'Data Input - General'!$F$22>'Data Input - General'!$F$34,0,'Data Input - BAU'!CZ$6+'Data Input - General'!$F$22))","v":0},{"$f":"IF($C$9=0,\"\",IF(DA$6+'Data Input - General'!$F$22>'Data Input - General'!$F$34,0,'Data Input - BAU'!DA$6+'Data Input - General'!$F$22))","v":0},{"$f":"IF($C$9=0,\"\",IF(DB$6+'Data Input - General'!$F$22>'Data Input - General'!$F$34,0,'Data Input - BAU'!DB$6+'Data Input - General'!$F$22))","v":0},{"$f":"IF($C$9=0,\"\",IF(DC$6+'Data Input - General'!$F$22>'Data Input - General'!$F$34,0,'Data Input - BAU'!DC$6+'Data Input - General'!$F$22))","v":0}]
[]
[null,null,"BAU",null,"(?)"]
[]
[null,null,"Upfront investment costs",null,"(?)"]
[]
[null,null,null,"Equipment"]
[null,null,4.0999999999999996,"Primary emission control equipment","£000's",null,null,20,20,20,20,20,20,20,20]
[null,null,4.2,"Auxiliary equipment","£000's",null,null,450,450,450,450,450,450,450,450]
[null,null,4.3,"Instrumentation","£000's",null,null,6,6,6,6,6,6,6,6]
[null,null,4.4000000000000004,"Modifications to existing equipment","£000's"]
[null,null,4.5,"Major refurbishment","£000's"]
[null,null,null,"Set-up costs"]
[null,null,"4.6","Land","£000's"]
[null,null,"4.7","Site preparation","£000's"]
[null,null,"4.8","Civils","£000's"]
[null,null,"4.9","Materials","£000's"]
[null,null,"4.10","Other (please specify)","£000's"]
[null,null,null,"Other capex"]
[null,null,"4.11","Residual value of existing technology (where replaced)","£000's"]
[null,null,"4.12","Project planning (if not in civils)","£000's"]
[null,null,"4.13","Other (please specify)","£000's"]
[]
[null,null,null,"Total upfront investment costs by year (non-discounted)","£000's","(Auto calculated value)",null,{"$f":"SUM(H14:H29)","v":476},{"$f":"SUM(I14:I29)","v":476},{"$f":"SUM(J14:J29)","v":476},{"$f":"SUM(K14:K29)","v":476},{"$f":"SUM(L14:L29)","v":476},476,476,476,0,0,0,0,0,0,0,0,0,0,0,0,0,0,0,0,0,0,0,0,0,0,0,0,0,0,0,0,0,0,0,0,0,0,0,0,0,0,0,0,0,0,0,0,0,0,0,0,0,0,0,0,0,0,0,0,0,0,0,0,{"$f":"SUM(BX14:BX29)","v":0},0,0,0,0,0,0,0,0,0,0,0,0,0,0,0,0,0,0,0,0,0,0,0,0,0,0,0,0,0,0,0]
[]
[null,null,null,"Total upfront investment costs for all years (non-discounted)",null,"(Auto calculated value)",null,{"$f":"SUM(H30:DC30)","v":3808}]
[]
[null,null,"4.14","Uncertainty range around upfront investment costs","+/-%"]
[]
[null,null,null,"Cost of capital (financing)","(?)"]
[null,null,"4.15","Enter financing costs manually?",null,"No",null,"<(Select from dropdown)"]
[]
[null,null,"4.16","Financing costs - WACC (if entered manually)                       (?)","£000's"]
[]
[null,null,"4.17","Financing costs - Low WACC (if entered manually)","£000's"]
[null,null,"4.18","Financing costs - High WACC (if entered manually)","£000's"]
[]
[null,null,"Operating Costs",null,"(?)"]
[]
[null,null,"4.19","Labour                                                                                            (?)","£000's",null,null,50,50,50,50,50,50,50,50]
[null,null,"4.20","Maintenance","£000's",null,null,200,200,200,200,200,200,200,200]
[null,null,"4.21","test1","£000's"]
[]
[null,null,null,"Total operating and maintenance costs by year (non-discounted)","£000's","(Auto calculated value)",null,{"$f":"SUM(H46:H49)","v":250},{"$f":"SUM(I46:I49)","v":250},250,250,250,250,250,250,0,0,0,0,0,0,0,0,0,0,0,0,0,0,0,0,0,0,0,0,0,0,0,0,0,0,0,0,0,0,0,0,0,0,0,0,0,0,0,0,0,0,0,0,0,0,0,0,0,0,0,0,0,0,0,0,0,{"$f":"SUM(BU46:BU49)","v":0},0,0,0,0,0,0,0,0,0,0,0,0,0,0,0,0,0,0,0,0,0,0,0,0,0,0,0,0,0,0,0,0,0,0]
[]
[null,null,null,"Total operating and maintenance costs for all years (non-discounted)",null,"(Auto calculated value)",null,{"$f":"SUM(H50:DC50)","v":2000}]
[]
[null,null,"4.22","Uncertainty range around operating costs","+/-%",0.2]
[]
[null,null,"Waste output",null,"(?)"]
[]
[null,null,null,"Volume of waste"]
[null,null,"4.23","Non-haz waste, reused","Tonnes"]
[null,null,"4.24","Non-haz waste, recycled","Tonnes"]
[null,null,"4.25","Non-haz waste, otherwise recovered","Tonnes"]
[null,null,"4.26","Non-haz waste, disposed","Tonnes"]
[null,null,"4.27","Haz waste, reused","Tonnes"]
[null,null,"4.28","Haz waste, recycled","Tonnes"]
[null,null,"4.29","Haz waste, otherwise recovered","Tonnes"]
[null,null,"4.30","Haz waste, disposed","Tonnes"]
[null,null,"4.31","Test 2","Tonnes",null,"(?)"]
[null,null,null,"Net cost of waste output"]
[null,null,"4.32","Non-haz waste, reused","£000's"]
[null,null,"4.33","Non-haz waste, recycled","£000's"]
[null,null,"4.34","Non-haz waste, otherwise recovered","£000's"]
[null,null,"4.35","Non-haz waste, disposed","£000's"]
[null,null,"4.36","Haz waste, reused","£000's"]
[null,null,"4.37","Haz waste, recycled","£000's"]
[null,null,"4.38","Haz waste, otherwise recovered","£000's"]
[null,null,"4.39","Haz waste, disposed","£000's"]
[null,null,"4.40","Other (please specify)","£000's"]
[]
[null,null,null,"Total cost of waste output","£000's","(Auto calculated value)",null,{"$f":"SUM(H69:H78)","v":0},{"$f":"SUM(I69:I78)","v":0},{"$f":"SUM(J69:J78)","v":0},{"$f":"SUM(K69:K78)","v":0},{"$f":"SUM(L69:L78)","v":0},0,0,0,0,0,0,0,0,0,0,0,0,0,0,0,0,0,0,0,0,0,0,0,0,0,0,0,0,0,0,0,0,0,0,0,0,0,0,0,0,0,0,0,0,0,0,0,0,0,0,0,0,0,0,0,0,0,0,0,0,0,0,0,{"$f":"SUM(BX69:BX78)","v":0},0,0,0,0,0,0,0,0,0,0,0,0,0,0,0,0,0,0,0,0,0,0,0,0,0,0,0,0,0,0,0]
[]
[null,null,"Energy Consumption"]
[]
[null,null,null,"Quantity of energy consumed"]
[null,null,"4.41","Electricity","kWh",null,null,4000000,4000000,4000000,4000000,4000000,4000000,4000000,4000000]
[null,null,"4.42","Natural Gas","kWh",null,null,0,0,0,0,0,0,0,0]
[null,null,"4.43","Coal","kWh",null,null,121624465,121624465,121624465,121624465,121624465,121624465,121624465,121624465]
[null,null,"4.44","Gas Oil","litres",null,null,200000,200000,200000,200000,200000,200000,200000,200000]
[null,null,"4.45","Road - Petrol","litres"]
[null,null,"4.46","Road - Diesel","litres"]
[null,null,"4.47",null,"kWh"]
[null,null,null,"Value of energy consumed","(?)"]
[null,null,null,{"$f":"D84","v":"Electricity"},"£000's","(Auto calculated value)",null,{"$f":"IFERROR(H84*INDEX('Energy Prices'!$F$12:$CR$17,MATCH('Data Input - BAU'!$D92,'Energy Prices'!$C$12:$C$17,0),MATCH('Data Input - BAU'!H$7,'Energy Prices'!$F$11:$CR$11,0))/100000,\"\")","v":446.04663605012496},{"$f":"IFERROR(I84*INDEX('Energy Prices'!$F$12:$CR$17,MATCH('Data Input - BAU'!$D92,'Energy Prices'!$C$12:$C$17,0),MATCH('Data Input - BAU'!I$7,'Energy Prices'!$F$11:$CR$11,0))/100000,\"\")","v":465.69767664411955},{"$f":"IFERROR(J84*INDEX('Energy Prices'!$F$12:$CR$17,MATCH('Data Input - BAU'!$D92,'Energy Prices'!$C$12:$C$17,0),MATCH('Data Input - BAU'!J$7,'Energy Prices'!$F$11:$CR$11,0))/100000,\"\")","v":498.45544107559726},{"$f":"IFERROR(K84*INDEX('Energy Prices'!$F$12:$CR$17,MATCH('Data Input - BAU'!$D92,'Energy Prices'!$C$12:$C$17,0),MATCH('Data Input - BAU'!K$7,'Energy Prices'!$F$11:$CR$11,0))/100000,\"\")","v":509.2569759971895},{"$f":"IFERROR(L84*INDEX('Energy Prices'!$F$12:$CR$17,MATCH('Data Input - BAU'!$D92,'Energy Prices'!$C$12:$C$17,0),MATCH('Data Input - BAU'!L$7,'Energy Prices'!$F$11:$CR$11,0))/100000,\"\")","v":520.1761292448972},{"$f":"IFERROR(M84*INDEX('Energy Prices'!$F$12:$CR$17,MATCH('Data Input - BAU'!$D92,'Energy Prices'!$C$12:$C$17,0),MATCH('Data Input - BAU'!M$7,'Energy Prices'!$F$11:$CR$11,0))/100000,\"\")","v":556.39462304896892},{"$f":"IFERROR(N84*INDEX('Energy Prices'!$F$12:$CR$17,MATCH('Data Input - BAU'!$D92,'Energy Prices'!$C$12:$C$17,0),MATCH('Data Input - BAU'!N$7,'Energy Prices'!$F$11:$CR$11,0))/100000,\"\")","v":580.46041654324722},{"$f":"IFERROR(O84*INDEX('Energy Prices'!$F$12:$CR$17,MATCH('Data Input - BAU'!$D92,'Energy Prices'!$C$12:$C$17,0),MATCH('Data Input - BAU'!O$7,'Energy Prices'!$F$11:$CR$11,0))/100000,\"\")","v":584.29766310550838},{"$f":"IFERROR(P84*INDEX('Energy Prices'!$F$12:$CR$17,MATCH('Data Input - BAU'!$D92,'Energy Prices'!$C$12:$C$17,0),MATCH('Data Input - BAU'!P$7,'Energy Prices'!$F$11:$CR$11,0))/100000,\"\")","v":0},{"$f":"IFERROR(Q84*INDEX('Energy Prices'!$F$12:$CR$17,MATCH('Data Input - BAU'!$D92,'Energy Prices'!$C$12:$C$17,0),MATCH('Data Input - BAU'!Q$7,'Energy Prices'!$F$11:$CR$11,0))/100000,\"\")","v":0},{"$f":"IFERROR(R84*INDEX('Energy Prices'!$F$12:$CR$17,MATCH('Data Input - BAU'!$D92,'Energy Prices'!$C$12:$C$17,0),MATCH('Data Input - BAU'!R$7,'Energy Prices'!$F$11:$CR$11,0))/100000,\"\")","v":0},{"$f":"IFERROR(S84*INDEX('Energy Prices'!$F$12:$CR$17,MATCH('Data Input - BAU'!$D92,'Energy Prices'!$C$12:$C$17,0),MATCH('Data Input - BAU'!S$7,'Energy Prices'!$F$11:$CR$11,0))/100000,\"\")","v":0},{"$f":"IFERROR(T84*INDEX('Energy Prices'!$F$12:$CR$17,MATCH('Data Input - BAU'!$D92,'Energy Prices'!$C$12:$C$17,0),MATCH('Data Input - BAU'!T$7,'Energy Prices'!$F$11:$CR$11,0))/100000,\"\")","v":0},{"$f":"IFERROR(U84*INDEX('Energy Prices'!$F$12:$CR$17,MATCH('Data Input - BAU'!$D92,'Energy Prices'!$C$12:$C$17,0),MATCH('Data Input - BAU'!U$7,'Energy Prices'!$F$11:$CR$11,0))/100000,\"\")","v":0},{"$f":"IFERROR(V84*INDEX('Energy Prices'!$F$12:$CR$17,MATCH('Data Input - BAU'!$D92,'Energy Prices'!$C$12:$C$17,0),MATCH('Data Input - BAU'!V$7,'Energy Prices'!$F$11:$CR$11,0))/100000,\"\")","v":0},{"$f":"IFERROR(W84*INDEX('Energy Prices'!$F$12:$CR$17,MATCH('Data Input - BAU'!$D92,'Energy Prices'!$C$12:$C$17,0),MATCH('Data Input - BAU'!W$7,'Energy Prices'!$F$11:$CR$11,0))/100000,\"\")","v":0},{"$f":"IFERROR(X84*INDEX('Energy Prices'!$F$12:$CR$17,MATCH('Data Input - BAU'!$D92,'Energy Prices'!$C$12:$C$17,0),MATCH('Data Input - BAU'!X$7,'Energy Prices'!$F$11:$CR$11,0))/100000,\"\")","v":0},{"$f":"IFERROR(Y84*INDEX('Energy Prices'!$F$12:$CR$17,MATCH('Data Input - BAU'!$D92,'Energy Prices'!$C$12:$C$17,0),MATCH('Data Input - BAU'!Y$7,'Energy Prices'!$F$11:$CR$11,0))/100000,\"\")","v":0},{"$f":"IFERROR(Z84*INDEX('Energy Prices'!$F$12:$CR$17,MATCH('Data Input - BAU'!$D92,'Energy Prices'!$C$12:$C$17,0),MATCH('Data Input - BAU'!Z$7,'Energy Prices'!$F$11:$CR$11,0))/100000,\"\")","v":0},{"$f":"IFERROR(AA84*INDEX('Energy Prices'!$F$12:$CR$17,MATCH('Data Input - BAU'!$D92,'Energy Prices'!$C$12:$C$17,0),MATCH('Data Input - BAU'!AA$7,'Energy Prices'!$F$11:$CR$11,0))/100000,\"\")","v":0},{"$f":"IFERROR(AB84*INDEX('Energy Prices'!$F$12:$CR$17,MATCH('Data Input - BAU'!$D92,'Energy Prices'!$C$12:$C$17,0),MATCH('Data Input - BAU'!AB$7,'Energy Prices'!$F$11:$CR$11,0))/100000,\"\")","v":0},{"$f":"IFERROR(AC84*INDEX('Energy Prices'!$F$12:$CR$17,MATCH('Data Input - BAU'!$D92,'Energy Prices'!$C$12:$C$17,0),MATCH('Data Input - BAU'!AC$7,'Energy Prices'!$F$11:$CR$11,0))/100000,\"\")","v":0},{"$f":"IFERROR(AD84*INDEX('Energy Prices'!$F$12:$CR$17,MATCH('Data Input - BAU'!$D92,'Energy Prices'!$C$12:$C$17,0),MATCH('Data Input - BAU'!AD$7,'Energy Prices'!$F$11:$CR$11,0))/100000,\"\")","v":0},{"$f":"IFERROR(AE84*INDEX('Energy Prices'!$F$12:$CR$17,MATCH('Data Input - BAU'!$D92,'Energy Prices'!$C$12:$C$17,0),MATCH('Data Input - BAU'!AE$7,'Energy Prices'!$F$11:$CR$11,0))/100000,\"\")","v":0},{"$f":"IFERROR(AF84*INDEX('Energy Prices'!$F$12:$CR$17,MATCH('Data Input - BAU'!$D92,'Energy Prices'!$C$12:$C$17,0),MATCH('Data Input - BAU'!AF$7,'Energy Prices'!$F$11:$CR$11,0))/100000,\"\")","v":0},{"$f":"IFERROR(AG84*INDEX('Energy Prices'!$F$12:$CR$17,MATCH('Data Input - BAU'!$D92,'Energy Prices'!$C$12:$C$17,0),MATCH('Data Input - BAU'!AG$7,'Energy Prices'!$F$11:$CR$11,0))/100000,\"\")","v":0},{"$f":"IFERROR(AH84*INDEX('Energy Prices'!$F$12:$CR$17,MATCH('Data Input - BAU'!$D92,'Energy Prices'!$C$12:$C$17,0),MATCH('Data Input - BAU'!AH$7,'Energy Prices'!$F$11:$CR$11,0))/100000,\"\")","v":0},{"$f":"IFERROR(AI84*INDEX('Energy Prices'!$F$12:$CR$17,MATCH('Data Input - BAU'!$D92,'Energy Prices'!$C$12:$C$17,0),MATCH('Data Input - BAU'!AI$7,'Energy Prices'!$F$11:$CR$11,0))/100000,\"\")","v":0},{"$f":"IFERROR(AJ84*INDEX('Energy Prices'!$F$12:$CR$17,MATCH('Data Input - BAU'!$D92,'Energy Prices'!$C$12:$C$17,0),MATCH('Data Input - BAU'!AJ$7,'Energy Prices'!$F$11:$CR$11,0))/100000,\"\")","v":0},{"$f":"IFERROR(AK84*INDEX('Energy Prices'!$F$12:$CR$17,MATCH('Data Input - BAU'!$D92,'Energy Prices'!$C$12:$C$17,0),MATCH('Data Input - BAU'!AK$7,'Energy Prices'!$F$11:$CR$11,0))/100000,\"\")","v":0},{"$f":"IFERROR(AL84*INDEX('Energy Prices'!$F$12:$CR$17,MATCH('Data Input - BAU'!$D92,'Energy Prices'!$C$12:$C$17,0),MATCH('Data Input - BAU'!AL$7,'Energy Prices'!$F$11:$CR$11,0))/100000,\"\")","v":0},{"$f":"IFERROR(AM84*INDEX('Energy Prices'!$F$12:$CR$17,MATCH('Data Input - BAU'!$D92,'Energy Prices'!$C$12:$C$17,0),MATCH('Data Input - BAU'!AM$7,'Energy Prices'!$F$11:$CR$11,0))/100000,\"\")","v":""},{"$f":"IFERROR(AN84*INDEX('Energy Prices'!$F$12:$CR$17,MATCH('Data Input - BAU'!$D92,'Energy Prices'!$C$12:$C$17,0),MATCH('Data Input - BAU'!AN$7,'Energy Prices'!$F$11:$CR$11,0))/100000,\"\")","v":""},{"$f":"IFERROR(AO84*INDEX('Energy Prices'!$F$12:$CR$17,MATCH('Data Input - BAU'!$D92,'Energy Prices'!$C$12:$C$17,0),MATCH('Data Input - BAU'!AO$7,'Energy Prices'!$F$11:$CR$11,0))/100000,\"\")","v":""},{"$f":"IFERROR(AP84*INDEX('Energy Prices'!$F$12:$CR$17,MATCH('Data Input - BAU'!$D92,'Energy Prices'!$C$12:$C$17,0),MATCH('Data Input - BAU'!AP$7,'Energy Prices'!$F$11:$CR$11,0))/100000,\"\")","v":""},{"$f":"IFERROR(AQ84*INDEX('Energy Prices'!$F$12:$CR$17,MATCH('Data Input - BAU'!$D92,'Energy Prices'!$C$12:$C$17,0),MATCH('Data Input - BAU'!AQ$7,'Energy Prices'!$F$11:$CR$11,0))/100000,\"\")","v":""},{"$f":"IFERROR(AR84*INDEX('Energy Prices'!$F$12:$CR$17,MATCH('Data Input - BAU'!$D92,'Energy Prices'!$C$12:$C$17,0),MATCH('Data Input - BAU'!AR$7,'Energy Prices'!$F$11:$CR$11,0))/100000,\"\")","v":""},{"$f":"IFERROR(AS84*INDEX('Energy Prices'!$F$12:$CR$17,MATCH('Data Input - BAU'!$D92,'Energy Prices'!$C$12:$C$17,0),MATCH('Data Input - BAU'!AS$7,'Energy Prices'!$F$11:$CR$11,0))/100000,\"\")","v":""},{"$f":"IFERROR(AT84*INDEX('Energy Prices'!$F$12:$CR$17,MATCH('Data Input - BAU'!$D92,'Energy Prices'!$C$12:$C$17,0),MATCH('Data Input - BAU'!AT$7,'Energy Prices'!$F$11:$CR$11,0))/100000,\"\")","v":""},{"$f":"IFERROR(AU84*INDEX('Energy Prices'!$F$12:$CR$17,MATCH('Data Input - BAU'!$D92,'Energy Prices'!$C$12:$C$17,0),MATCH('Data Input - BAU'!AU$7,'Energy Prices'!$F$11:$CR$11,0))/100000,\"\")","v":""},{"$f":"IFERROR(AV84*INDEX('Energy Prices'!$F$12:$CR$17,MATCH('Data Input - BAU'!$D92,'Energy Prices'!$C$12:$C$17,0),MATCH('Data Input - BAU'!AV$7,'Energy Prices'!$F$11:$CR$11,0))/100000,\"\")","v":""},{"$f":"IFERROR(AW84*INDEX('Energy Prices'!$F$12:$CR$17,MATCH('Data Input - BAU'!$D92,'Energy Prices'!$C$12:$C$17,0),MATCH('Data Input - BAU'!AW$7,'Energy Prices'!$F$11:$CR$11,0))/100000,\"\")","v":""},{"$f":"IFERROR(AX84*INDEX('Energy Prices'!$F$12:$CR$17,MATCH('Data Input - BAU'!$D92,'Energy Prices'!$C$12:$C$17,0),MATCH('Data Input - BAU'!AX$7,'Energy Prices'!$F$11:$CR$11,0))/100000,\"\")","v":""},{"$f":"IFERROR(AY84*INDEX('Energy Prices'!$F$12:$CR$17,MATCH('Data Input - BAU'!$D92,'Energy Prices'!$C$12:$C$17,0),MATCH('Data Input - BAU'!AY$7,'Energy Prices'!$F$11:$CR$11,0))/100000,\"\")","v":""},{"$f":"IFERROR(AZ84*INDEX('Energy Prices'!$F$12:$CR$17,MATCH('Data Input - BAU'!$D92,'Energy Prices'!$C$12:$C$17,0),MATCH('Data Input - BAU'!AZ$7,'Energy Prices'!$F$11:$CR$11,0))/100000,\"\")","v":""},{"$f":"IFERROR(BA84*INDEX('Energy Prices'!$F$12:$CR$17,MATCH('Data Input - BAU'!$D92,'Energy Prices'!$C$12:$C$17,0),MATCH('Data Input - BAU'!BA$7,'Energy Prices'!$F$11:$CR$11,0))/100000,\"\")","v":""},{"$f":"IFERROR(BB84*INDEX('Energy Prices'!$F$12:$CR$17,MATCH('Data Input - BAU'!$D92,'Energy Prices'!$C$12:$C$17,0),MATCH('Data Input - BAU'!BB$7,'Energy Prices'!$F$11:$CR$11,0))/100000,\"\")","v":""},{"$f":"IFERROR(BC84*INDEX('Energy Prices'!$F$12:$CR$17,MATCH('Data Input - BAU'!$D92,'Energy Prices'!$C$12:$C$17,0),MATCH('Data Input - BAU'!BC$7,'Energy Prices'!$F$11:$CR$11,0))/100000,\"\")","v":""},{"$f":"IFERROR(BD84*INDEX('Energy Prices'!$F$12:$CR$17,MATCH('Data Input - BAU'!$D92,'Energy Prices'!$C$12:$C$17,0),MATCH('Data Input - BAU'!BD$7,'Energy Prices'!$F$11:$CR$11,0))/100000,\"\")","v":""},{"$f":"IFERROR(BE84*INDEX('Energy Prices'!$F$12:$CR$17,MATCH('Data Input - BAU'!$D92,'Energy Prices'!$C$12:$C$17,0),MATCH('Data Input - BAU'!BE$7,'Energy Prices'!$F$11:$CR$11,0))/100000,\"\")","v":""},{"$f":"IFERROR(BF84*INDEX('Energy Prices'!$F$12:$CR$17,MATCH('Data Input - BAU'!$D92,'Energy Prices'!$C$12:$C$17,0),MATCH('Data Input - BAU'!BF$7,'Energy Prices'!$F$11:$CR$11,0))/100000,\"\")","v":""},{"$f":"IFERROR(BG84*INDEX('Energy Prices'!$F$12:$CR$17,MATCH('Data Input - BAU'!$D92,'Energy Prices'!$C$12:$C$17,0),MATCH('Data Input - BAU'!BG$7,'Energy Prices'!$F$11:$CR$11,0))/100000,\"\")","v":""},{"$f":"IFERROR(BH84*INDEX('Energy Prices'!$F$12:$CR$17,MATCH('Data Input - BAU'!$D92,'Energy Prices'!$C$12:$C$17,0),MATCH('Data Input - BAU'!BH$7,'Energy Prices'!$F$11:$CR$11,0))/100000,\"\")","v":""},{"$f":"IFERROR(BI84*INDEX('Energy Prices'!$F$12:$CR$17,MATCH('Data Input - BAU'!$D92,'Energy Prices'!$C$12:$C$17,0),MATCH('Data Input - BAU'!BI$7,'Energy Prices'!$F$11:$CR$11,0))/100000,\"\")","v":""},{"$f":"IFERROR(BJ84*INDEX('Energy Prices'!$F$12:$CR$17,MATCH('Data Input - BAU'!$D92,'Energy Prices'!$C$12:$C$17,0),MATCH('Data Input - BAU'!BJ$7,'Energy Prices'!$F$11:$CR$11,0))/100000,\"\")","v":""},{"$f":"IFERROR(BK84*INDEX('Energy Prices'!$F$12:$CR$17,MATCH('Data Input - BAU'!$D92,'Energy Prices'!$C$12:$C$17,0),MATCH('Data Input - BAU'!BK$7,'Energy Prices'!$F$11:$CR$11,0))/100000,\"\")","v":""},{"$f":"IFERROR(BL84*INDEX('Energy Prices'!$F$12:$CR$17,MATCH('Data Input - BAU'!$D92,'Energy Prices'!$C$12:$C$17,0),MATCH('Data Input - BAU'!BL$7,'Energy Prices'!$F$11:$CR$11,0))/100000,\"\")","v":""},{"$f":"IFERROR(BM84*INDEX('Energy Prices'!$F$12:$CR$17,MATCH('Data Input - BAU'!$D92,'Energy Prices'!$C$12:$C$17,0),MATCH('Data Input - BAU'!BM$7,'Energy Prices'!$F$11:$CR$11,0))/100000,\"\")","v":""},{"$f":"IFERROR(BN84*INDEX('Energy Prices'!$F$12:$CR$17,MATCH('Data Input - BAU'!$D92,'Energy Prices'!$C$12:$C$17,0),MATCH('Data Input - BAU'!BN$7,'Energy Prices'!$F$11:$CR$11,0))/100000,\"\")","v":""},{"$f":"IFERROR(BO84*INDEX('Energy Prices'!$F$12:$CR$17,MATCH('Data Input - BAU'!$D92,'Energy Prices'!$C$12:$C$17,0),MATCH('Data Input - BAU'!BO$7,'Energy Prices'!$F$11:$CR$11,0))/100000,\"\")","v":""},{"$f":"IFERROR(BP84*INDEX('Energy Prices'!$F$12:$CR$17,MATCH('Data Input - BAU'!$D92,'Energy Prices'!$C$12:$C$17,0),MATCH('Data Input - BAU'!BP$7,'Energy Prices'!$F$11:$CR$11,0))/100000,\"\")","v":""},{"$f":"IFERROR(BQ84*INDEX('Energy Prices'!$F$12:$CR$17,MATCH('Data Input - BAU'!$D92,'Energy Prices'!$C$12:$C$17,0),MATCH('Data Input - BAU'!BQ$7,'Energy Prices'!$F$11:$CR$11,0))/100000,\"\")","v":""},{"$f":"IFERROR(BR84*INDEX('Energy Prices'!$F$12:$CR$17,MATCH('Data Input - BAU'!$D92,'Energy Prices'!$C$12:$C$17,0),MATCH('Data Input - BAU'!BR$7,'Energy Prices'!$F$11:$CR$11,0))/100000,\"\")","v":""},{"$f":"IFERROR(BS84*INDEX('Energy Prices'!$F$12:$CR$17,MATCH('Data Input - BAU'!$D92,'Energy Prices'!$C$12:$C$17,0),MATCH('Data Input - BAU'!BS$7,'Energy Prices'!$F$11:$CR$11,0))/100000,\"\")","v":""},{"$f":"IFERROR(BT84*INDEX('Energy Prices'!$F$12:$CR$17,MATCH('Data Input - BAU'!$D92,'Energy Prices'!$C$12:$C$17,0),MATCH('Data Input - BAU'!BT$7,'Energy Prices'!$F$11:$CR$11,0))/100000,\"\")","v":""},{"$f":"IFERROR(BU84*INDEX('Energy Prices'!$F$12:$CR$17,MATCH('Data Input - BAU'!$D92,'Energy Prices'!$C$12:$C$17,0),MATCH('Data Input - BAU'!BU$7,'Energy Prices'!$F$11:$CR$11,0))/100000,\"\")","v":""},{"$f":"IFERROR(BV84*INDEX('Energy Prices'!$F$12:$CR$17,MATCH('Data Input - BAU'!$D92,'Energy Prices'!$C$12:$C$17,0),MATCH('Data Input - BAU'!BV$7,'Energy Prices'!$F$11:$CR$11,0))/100000,\"\")","v":""},{"$f":"IFERROR(BW84*INDEX('Energy Prices'!$F$12:$CR$17,MATCH('Data Input - BAU'!$D92,'Energy Prices'!$C$12:$C$17,0),MATCH('Data Input - BAU'!BW$7,'Energy Prices'!$F$11:$CR$11,0))/100000,\"\")","v":""},{"$f":"IFERROR(BX84*INDEX('Energy Prices'!$F$12:$CR$17,MATCH('Data Input - BAU'!$D92,'Energy Prices'!$C$12:$C$17,0),MATCH('Data Input - BAU'!BX$7,'Energy Prices'!$F$11:$CR$11,0))/100000,\"\")","v":""},{"$f":"IFERROR(BY84*INDEX('Energy Prices'!$F$12:$CR$17,MATCH('Data Input - BAU'!$D92,'Energy Prices'!$C$12:$C$17,0),MATCH('Data Input - BAU'!BY$7,'Energy Prices'!$F$11:$CR$11,0))/100000,\"\")","v":""},{"$f":"IFERROR(BZ84*INDEX('Energy Prices'!$F$12:$CR$17,MATCH('Data Input - BAU'!$D92,'Energy Prices'!$C$12:$C$17,0),MATCH('Data Input - BAU'!BZ$7,'Energy Prices'!$F$11:$CR$11,0))/100000,\"\")","v":""},{"$f":"IFERROR(CA84*INDEX('Energy Prices'!$F$12:$CR$17,MATCH('Data Input - BAU'!$D92,'Energy Prices'!$C$12:$C$17,0),MATCH('Data Input - BAU'!CA$7,'Energy Prices'!$F$11:$CR$11,0))/100000,\"\")","v":""},{"$f":"IFERROR(CB84*INDEX('Energy Prices'!$F$12:$CR$17,MATCH('Data Input - BAU'!$D92,'Energy Prices'!$C$12:$C$17,0),MATCH('Data Input - BAU'!CB$7,'Energy Prices'!$F$11:$CR$11,0))/100000,\"\")","v":""},{"$f":"IFERROR(CC84*INDEX('Energy Prices'!$F$12:$CR$17,MATCH('Data Input - BAU'!$D92,'Energy Prices'!$C$12:$C$17,0),MATCH('Data Input - BAU'!CC$7,'Energy Prices'!$F$11:$CR$11,0))/100000,\"\")","v":""},{"$f":"IFERROR(CD84*INDEX('Energy Prices'!$F$12:$CR$17,MATCH('Data Input - BAU'!$D92,'Energy Prices'!$C$12:$C$17,0),MATCH('Data Input - BAU'!CD$7,'Energy Prices'!$F$11:$CR$11,0))/100000,\"\")","v":""},{"$f":"IFERROR(CE84*INDEX('Energy Prices'!$F$12:$CR$17,MATCH('Data Input - BAU'!$D92,'Energy Prices'!$C$12:$C$17,0),MATCH('Data Input - BAU'!CE$7,'Energy Prices'!$F$11:$CR$11,0))/100000,\"\")","v":""},{"$f":"IFERROR(CF84*INDEX('Energy Prices'!$F$12:$CR$17,MATCH('Data Input - BAU'!$D92,'Energy Prices'!$C$12:$C$17,0),MATCH('Data Input - BAU'!CF$7,'Energy Prices'!$F$11:$CR$11,0))/100000,\"\")","v":""},{"$f":"IFERROR(CG84*INDEX('Energy Prices'!$F$12:$CR$17,MATCH('Data Input - BAU'!$D92,'Energy Prices'!$C$12:$C$17,0),MATCH('Data Input - BAU'!CG$7,'Energy Prices'!$F$11:$CR$11,0))/100000,\"\")","v":""},{"$f":"IFERROR(CH84*INDEX('Energy Prices'!$F$12:$CR$17,MATCH('Data Input - BAU'!$D92,'Energy Prices'!$C$12:$C$17,0),MATCH('Data Input - BAU'!CH$7,'Energy Prices'!$F$11:$CR$11,0))/100000,\"\")","v":""},{"$f":"IFERROR(CI84*INDEX('Energy Prices'!$F$12:$CR$17,MATCH('Data Input - BAU'!$D92,'Energy Prices'!$C$12:$C$17,0),MATCH('Data Input - BAU'!CI$7,'Energy Prices'!$F$11:$CR$11,0))/100000,\"\")","v":""},{"$f":"IFERROR(CJ84*INDEX('Energy Prices'!$F$12:$CR$17,MATCH('Data Input - BAU'!$D92,'Energy Prices'!$C$12:$C$17,0),MATCH('Data Input - BAU'!CJ$7,'Energy Prices'!$F$11:$CR$11,0))/100000,\"\")","v":""},{"$f":"IFERROR(CK84*INDEX('Energy Prices'!$F$12:$CR$17,MATCH('Data Input - BAU'!$D92,'Energy Prices'!$C$12:$C$17,0),MATCH('Data Input - BAU'!CK$7,'Energy Prices'!$F$11:$CR$11,0))/100000,\"\")","v":""},{"$f":"IFERROR(CL84*INDEX('Energy Prices'!$F$12:$CR$17,MATCH('Data Input - BAU'!$D92,'Energy Prices'!$C$12:$C$17,0),MATCH('Data Input - BAU'!CL$7,'Energy Prices'!$F$11:$CR$11,0))/100000,\"\")","v":""},{"$f":"IFERROR(CM84*INDEX('Energy Prices'!$F$12:$CR$17,MATCH('Data Input - BAU'!$D92,'Energy Prices'!$C$12:$C$17,0),MATCH('Data Input - BAU'!CM$7,'Energy Prices'!$F$11:$CR$11,0))/100000,\"\")","v":""},{"$f":"IFERROR(CN84*INDEX('Energy Prices'!$F$12:$CR$17,MATCH('Data Input - BAU'!$D92,'Energy Prices'!$C$12:$C$17,0),MATCH('Data Input - BAU'!CN$7,'Energy Prices'!$F$11:$CR$11,0))/100000,\"\")","v":""},{"$f":"IFERROR(CO84*INDEX('Energy Prices'!$F$12:$CR$17,MATCH('Data Input - BAU'!$D92,'Energy Prices'!$C$12:$C$17,0),MATCH('Data Input - BAU'!CO$7,'Energy Prices'!$F$11:$CR$11,0))/100000,\"\")","v":""},{"$f":"IFERROR(CP84*INDEX('Energy Prices'!$F$12:$CR$17,MATCH('Data Input - BAU'!$D92,'Energy Prices'!$C$12:$C$17,0),MATCH('Data Input - BAU'!CP$7,'Energy Prices'!$F$11:$CR$11,0))/100000,\"\")","v":""},{"$f":"IFERROR(CQ84*INDEX('Energy Prices'!$F$12:$CR$17,MATCH('Data Input - BAU'!$D92,'Energy Prices'!$C$12:$C$17,0),MATCH('Data Input - BAU'!CQ$7,'Energy Prices'!$F$11:$CR$11,0))/100000,\"\")","v":""},{"$f":"IFERROR(CR84*INDEX('Energy Prices'!$F$12:$CR$17,MATCH('Data Input - BAU'!$D92,'Energy Prices'!$C$12:$C$17,0),MATCH('Data Input - BAU'!CR$7,'Energy Prices'!$F$11:$CR$11,0))/100000,\"\")","v":""},{"$f":"IFERROR(CS84*INDEX('Energy Prices'!$F$12:$CR$17,MATCH('Data Input - BAU'!$D92,'Energy Prices'!$C$12:$C$17,0),MATCH('Data Input - BAU'!CS$7,'Energy Prices'!$F$11:$CR$11,0))/100000,\"\")","v":""},{"$f":"IFERROR(CT84*INDEX('Energy Prices'!$F$12:$CR$17,MATCH('Data Input - BAU'!$D92,'Energy Prices'!$C$12:$C$17,0),MATCH('Data Input - BAU'!CT$7,'Energy Prices'!$F$11:$CR$11,0))/100000,\"\")","v":""},{"$f":"IFERROR(CU84*INDEX('Energy Prices'!$F$12:$CR$17,MATCH('Data Input - BAU'!$D92,'Energy Prices'!$C$12:$C$17,0),MATCH('Data Input - BAU'!CU$7,'Energy Prices'!$F$11:$CR$11,0))/100000,\"\")","v":""},{"$f":"IFERROR(CV84*INDEX('Energy Prices'!$F$12:$CR$17,MATCH('Data Input - BAU'!$D92,'Energy Prices'!$C$12:$C$17,0),MATCH('Data Input - BAU'!CV$7,'Energy Prices'!$F$11:$CR$11,0))/100000,\"\")","v":""},{"$f":"IFERROR(CW84*INDEX('Energy Prices'!$F$12:$CR$17,MATCH('Data Input - BAU'!$D92,'Energy Prices'!$C$12:$C$17,0),MATCH('Data Input - BAU'!CW$7,'Energy Prices'!$F$11:$CR$11,0))/100000,\"\")","v":""},{"$f":"IFERROR(CX84*INDEX('Energy Prices'!$F$12:$CR$17,MATCH('Data Input - BAU'!$D92,'Energy Prices'!$C$12:$C$17,0),MATCH('Data Input - BAU'!CX$7,'Energy Prices'!$F$11:$CR$11,0))/100000,\"\")","v":""},{"$f":"IFERROR(CY84*INDEX('Energy Prices'!$F$12:$CR$17,MATCH('Data Input - BAU'!$D92,'Energy Prices'!$C$12:$C$17,0),MATCH('Data Input - BAU'!CY$7,'Energy Prices'!$F$11:$CR$11,0))/100000,\"\")","v":""},{"$f":"IFERROR(CZ84*INDEX('Energy Prices'!$F$12:$CR$17,MATCH('Data Input - BAU'!$D92,'Energy Prices'!$C$12:$C$17,0),MATCH('Data Input - BAU'!CZ$7,'Energy Prices'!$F$11:$CR$11,0))/100000,\"\")","v":""},{"$f":"IFERROR(DA84*INDEX('Energy Prices'!$F$12:$CR$17,MATCH('Data Input - BAU'!$D92,'Energy Prices'!$C$12:$C$17,0),MATCH('Data Input - BAU'!DA$7,'Energy Prices'!$F$11:$CR$11,0))/100000,\"\")","v":""},{"$f":"IFERROR(DB84*INDEX('Energy Prices'!$F$12:$CR$17,MATCH('Data Input - BAU'!$D92,'Energy Prices'!$C$12:$C$17,0),MATCH('Data Input - BAU'!DB$7,'Energy Prices'!$F$11:$CR$11,0))/100000,\"\")","v":""},{"$f":"IFERROR(DC84*INDEX('Energy Prices'!$F$12:$CR$17,MATCH('Data Input - BAU'!$D92,'Energy Prices'!$C$12:$C$17,0),MATCH('Data Input - BAU'!DC$7,'Energy Prices'!$F$11:$CR$11,0))/100000,\"\")","v":""}]
[null,null,null,{"$f":"D85","v":"Natural Gas"},"£000's","(Auto calculated value)",null,{"$f":"IFERROR(H85*INDEX('Energy Prices'!$F$12:$CR$17,MATCH('Data Input - BAU'!$D93,'Energy Prices'!$C$12:$C$17,0),MATCH('Data Input - BAU'!H$7,'Energy Prices'!$F$11:$CR$11,0))/100000,\"\")","v":0},{"$f":"IFERROR(I85*INDEX('Energy Prices'!$F$12:$CR$17,MATCH('Data Input - BAU'!$D93,'Energy Prices'!$C$12:$C$17,0),MATCH('Data Input - BAU'!I$7,'Energy Prices'!$F$11:$CR$11,0))/100000,\"\")","v":0},{"$f":"IFERROR(J85*INDEX('Energy Prices'!$F$12:$CR$17,MATCH('Data Input - BAU'!$D93,'Energy Prices'!$C$12:$C$17,0),MATCH('Data Input - BAU'!J$7,'Energy Prices'!$F$11:$CR$11,0))/100000,\"\")","v":0},{"$f":"IFERROR(K85*INDEX('Energy Prices'!$F$12:$CR$17,MATCH('Data Input - BAU'!$D93,'Energy Prices'!$C$12:$C$17,0),MATCH('Data Input - BAU'!K$7,'Energy Prices'!$F$11:$CR$11,0))/100000,\"\")","v":0},{"$f":"IFERROR(L85*INDEX('Energy Prices'!$F$12:$CR$17,MATCH('Data Input - BAU'!$D93,'Energy Prices'!$C$12:$C$17,0),MATCH('Data Input - BAU'!L$7,'Energy Prices'!$F$11:$CR$11,0))/100000,\"\")","v":0},{"$f":"IFERROR(M85*INDEX('Energy Prices'!$F$12:$CR$17,MATCH('Data Input - BAU'!$D93,'Energy Prices'!$C$12:$C$17,0),MATCH('Data Input - BAU'!M$7,'Energy Prices'!$F$11:$CR$11,0))/100000,\"\")","v":0},{"$f":"IFERROR(N85*INDEX('Energy Prices'!$F$12:$CR$17,MATCH('Data Input - BAU'!$D93,'Energy Prices'!$C$12:$C$17,0),MATCH('Data Input - BAU'!N$7,'Energy Prices'!$F$11:$CR$11,0))/100000,\"\")","v":0},{"$f":"IFERROR(O85*INDEX('Energy Prices'!$F$12:$CR$17,MATCH('Data Input - BAU'!$D93,'Energy Prices'!$C$12:$C$17,0),MATCH('Data Input - BAU'!O$7,'Energy Prices'!$F$11:$CR$11,0))/100000,\"\")","v":0},{"$f":"IFERROR(P85*INDEX('Energy Prices'!$F$12:$CR$17,MATCH('Data Input - BAU'!$D93,'Energy Prices'!$C$12:$C$17,0),MATCH('Data Input - BAU'!P$7,'Energy Prices'!$F$11:$CR$11,0))/100000,\"\")","v":0},{"$f":"IFERROR(Q85*INDEX('Energy Prices'!$F$12:$CR$17,MATCH('Data Input - BAU'!$D93,'Energy Prices'!$C$12:$C$17,0),MATCH('Data Input - BAU'!Q$7,'Energy Prices'!$F$11:$CR$11,0))/100000,\"\")","v":0},{"$f":"IFERROR(R85*INDEX('Energy Prices'!$F$12:$CR$17,MATCH('Data Input - BAU'!$D93,'Energy Prices'!$C$12:$C$17,0),MATCH('Data Input - BAU'!R$7,'Energy Prices'!$F$11:$CR$11,0))/100000,\"\")","v":0},{"$f":"IFERROR(S85*INDEX('Energy Prices'!$F$12:$CR$17,MATCH('Data Input - BAU'!$D93,'Energy Prices'!$C$12:$C$17,0),MATCH('Data Input - BAU'!S$7,'Energy Prices'!$F$11:$CR$11,0))/100000,\"\")","v":0},{"$f":"IFERROR(T85*INDEX('Energy Prices'!$F$12:$CR$17,MATCH('Data Input - BAU'!$D93,'Energy Prices'!$C$12:$C$17,0),MATCH('Data Input - BAU'!T$7,'Energy Prices'!$F$11:$CR$11,0))/100000,\"\")","v":0},{"$f":"IFERROR(U85*INDEX('Energy Prices'!$F$12:$CR$17,MATCH('Data Input - BAU'!$D93,'Energy Prices'!$C$12:$C$17,0),MATCH('Data Input - BAU'!U$7,'Energy Prices'!$F$11:$CR$11,0))/100000,\"\")","v":0},{"$f":"IFERROR(V85*INDEX('Energy Prices'!$F$12:$CR$17,MATCH('Data Input - BAU'!$D93,'Energy Prices'!$C$12:$C$17,0),MATCH('Data Input - BAU'!V$7,'Energy Prices'!$F$11:$CR$11,0))/100000,\"\")","v":0},{"$f":"IFERROR(W85*INDEX('Energy Prices'!$F$12:$CR$17,MATCH('Data Input - BAU'!$D93,'Energy Prices'!$C$12:$C$17,0),MATCH('Data Input - BAU'!W$7,'Energy Prices'!$F$11:$CR$11,0))/100000,\"\")","v":0},{"$f":"IFERROR(X85*INDEX('Energy Prices'!$F$12:$CR$17,MATCH('Data Input - BAU'!$D93,'Energy Prices'!$C$12:$C$17,0),MATCH('Data Input - BAU'!X$7,'Energy Prices'!$F$11:$CR$11,0))/100000,\"\")","v":0},{"$f":"IFERROR(Y85*INDEX('Energy Prices'!$F$12:$CR$17,MATCH('Data Input - BAU'!$D93,'Energy Prices'!$C$12:$C$17,0),MATCH('Data Input - BAU'!Y$7,'Energy Prices'!$F$11:$CR$11,0))/100000,\"\")","v":0},{"$f":"IFERROR(Z85*INDEX('Energy Prices'!$F$12:$CR$17,MATCH('Data Input - BAU'!$D93,'Energy Prices'!$C$12:$C$17,0),MATCH('Data Input - BAU'!Z$7,'Energy Prices'!$F$11:$CR$11,0))/100000,\"\")","v":0},{"$f":"IFERROR(AA85*INDEX('Energy Prices'!$F$12:$CR$17,MATCH('Data Input - BAU'!$D93,'Energy Prices'!$C$12:$C$17,0),MATCH('Data Input - BAU'!AA$7,'Energy Prices'!$F$11:$CR$11,0))/100000,\"\")","v":0},{"$f":"IFERROR(AB85*INDEX('Energy Prices'!$F$12:$CR$17,MATCH('Data Input - BAU'!$D93,'Energy Prices'!$C$12:$C$17,0),MATCH('Data Input - BAU'!AB$7,'Energy Prices'!$F$11:$CR$11,0))/100000,\"\")","v":0},{"$f":"IFERROR(AC85*INDEX('Energy Prices'!$F$12:$CR$17,MATCH('Data Input - BAU'!$D93,'Energy Prices'!$C$12:$C$17,0),MATCH('Data Input - BAU'!AC$7,'Energy Prices'!$F$11:$CR$11,0))/100000,\"\")","v":0},{"$f":"IFERROR(AD85*INDEX('Energy Prices'!$F$12:$CR$17,MATCH('Data Input - BAU'!$D93,'Energy Prices'!$C$12:$C$17,0),MATCH('Data Input - BAU'!AD$7,'Energy Prices'!$F$11:$CR$11,0))/100000,\"\")","v":0},{"$f":"IFERROR(AE85*INDEX('Energy Prices'!$F$12:$CR$17,MATCH('Data Input - BAU'!$D93,'Energy Prices'!$C$12:$C$17,0),MATCH('Data Input - BAU'!AE$7,'Energy Prices'!$F$11:$CR$11,0))/100000,\"\")","v":0},{"$f":"IFERROR(AF85*INDEX('Energy Prices'!$F$12:$CR$17,MATCH('Data Input - BAU'!$D93,'Energy Prices'!$C$12:$C$17,0),MATCH('Data Input - BAU'!AF$7,'Energy Prices'!$F$11:$CR$11,0))/100000,\"\")","v":0},{"$f":"IFERROR(AG85*INDEX('Energy Prices'!$F$12:$CR$17,MATCH('Data Input - BAU'!$D93,'Energy Prices'!$C$12:$C$17,0),MATCH('Data Input - BAU'!AG$7,'Energy Prices'!$F$11:$CR$11,0))/100000,\"\")","v":0},{"$f":"IFERROR(AH85*INDEX('Energy Prices'!$F$12:$CR$17,MATCH('Data Input - BAU'!$D93,'Energy Prices'!$C$12:$C$17,0),MATCH('Data Input - BAU'!AH$7,'Energy Prices'!$F$11:$CR$11,0))/100000,\"\")","v":0},{"$f":"IFERROR(AI85*INDEX('Energy Prices'!$F$12:$CR$17,MATCH('Data Input - BAU'!$D93,'Energy Prices'!$C$12:$C$17,0),MATCH('Data Input - BAU'!AI$7,'Energy Prices'!$F$11:$CR$11,0))/100000,\"\")","v":0},{"$f":"IFERROR(AJ85*INDEX('Energy Prices'!$F$12:$CR$17,MATCH('Data Input - BAU'!$D93,'Energy Prices'!$C$12:$C$17,0),MATCH('Data Input - BAU'!AJ$7,'Energy Prices'!$F$11:$CR$11,0))/100000,\"\")","v":0},{"$f":"IFERROR(AK85*INDEX('Energy Prices'!$F$12:$CR$17,MATCH('Data Input - BAU'!$D93,'Energy Prices'!$C$12:$C$17,0),MATCH('Data Input - BAU'!AK$7,'Energy Prices'!$F$11:$CR$11,0))/100000,\"\")","v":0},{"$f":"IFERROR(AL85*INDEX('Energy Prices'!$F$12:$CR$17,MATCH('Data Input - BAU'!$D93,'Energy Prices'!$C$12:$C$17,0),MATCH('Data Input - BAU'!AL$7,'Energy Prices'!$F$11:$CR$11,0))/100000,\"\")","v":0},{"$f":"IFERROR(AM85*INDEX('Energy Prices'!$F$12:$CR$17,MATCH('Data Input - BAU'!$D93,'Energy Prices'!$C$12:$C$17,0),MATCH('Data Input - BAU'!AM$7,'Energy Prices'!$F$11:$CR$11,0))/100000,\"\")","v":""},{"$f":"IFERROR(AN85*INDEX('Energy Prices'!$F$12:$CR$17,MATCH('Data Input - BAU'!$D93,'Energy Prices'!$C$12:$C$17,0),MATCH('Data Input - BAU'!AN$7,'Energy Prices'!$F$11:$CR$11,0))/100000,\"\")","v":""},{"$f":"IFERROR(AO85*INDEX('Energy Prices'!$F$12:$CR$17,MATCH('Data Input - BAU'!$D93,'Energy Prices'!$C$12:$C$17,0),MATCH('Data Input - BAU'!AO$7,'Energy Prices'!$F$11:$CR$11,0))/100000,\"\")","v":""},{"$f":"IFERROR(AP85*INDEX('Energy Prices'!$F$12:$CR$17,MATCH('Data Input - BAU'!$D93,'Energy Prices'!$C$12:$C$17,0),MATCH('Data Input - BAU'!AP$7,'Energy Prices'!$F$11:$CR$11,0))/100000,\"\")","v":""},{"$f":"IFERROR(AQ85*INDEX('Energy Prices'!$F$12:$CR$17,MATCH('Data Input - BAU'!$D93,'Energy Prices'!$C$12:$C$17,0),MATCH('Data Input - BAU'!AQ$7,'Energy Prices'!$F$11:$CR$11,0))/100000,\"\")","v":""},{"$f":"IFERROR(AR85*INDEX('Energy Prices'!$F$12:$CR$17,MATCH('Data Input - BAU'!$D93,'Energy Prices'!$C$12:$C$17,0),MATCH('Data Input - BAU'!AR$7,'Energy Prices'!$F$11:$CR$11,0))/100000,\"\")","v":""},{"$f":"IFERROR(AS85*INDEX('Energy Prices'!$F$12:$CR$17,MATCH('Data Input - BAU'!$D93,'Energy Prices'!$C$12:$C$17,0),MATCH('Data Input - BAU'!AS$7,'Energy Prices'!$F$11:$CR$11,0))/100000,\"\")","v":""},{"$f":"IFERROR(AT85*INDEX('Energy Prices'!$F$12:$CR$17,MATCH('Data Input - BAU'!$D93,'Energy Prices'!$C$12:$C$17,0),MATCH('Data Input - BAU'!AT$7,'Energy Prices'!$F$11:$CR$11,0))/100000,\"\")","v":""},{"$f":"IFERROR(AU85*INDEX('Energy Prices'!$F$12:$CR$17,MATCH('Data Input - BAU'!$D93,'Energy Prices'!$C$12:$C$17,0),MATCH('Data Input - BAU'!AU$7,'Energy Prices'!$F$11:$CR$11,0))/100000,\"\")","v":""},{"$f":"IFERROR(AV85*INDEX('Energy Prices'!$F$12:$CR$17,MATCH('Data Input - BAU'!$D93,'Energy Prices'!$C$12:$C$17,0),MATCH('Data Input - BAU'!AV$7,'Energy Prices'!$F$11:$CR$11,0))/100000,\"\")","v":""},{"$f":"IFERROR(AW85*INDEX('Energy Prices'!$F$12:$CR$17,MATCH('Data Input - BAU'!$D93,'Energy Prices'!$C$12:$C$17,0),MATCH('Data Input - BAU'!AW$7,'Energy Prices'!$F$11:$CR$11,0))/100000,\"\")","v":""},{"$f":"IFERROR(AX85*INDEX('Energy Prices'!$F$12:$CR$17,MATCH('Data Input - BAU'!$D93,'Energy Prices'!$C$12:$C$17,0),MATCH('Data Input - BAU'!AX$7,'Energy Prices'!$F$11:$CR$11,0))/100000,\"\")","v":""},{"$f":"IFERROR(AY85*INDEX('Energy Prices'!$F$12:$CR$17,MATCH('Data Input - BAU'!$D93,'Energy Prices'!$C$12:$C$17,0),MATCH('Data Input - BAU'!AY$7,'Energy Prices'!$F$11:$CR$11,0))/100000,\"\")","v":""},{"$f":"IFERROR(AZ85*INDEX('Energy Prices'!$F$12:$CR$17,MATCH('Data Input - BAU'!$D93,'Energy Prices'!$C$12:$C$17,0),MATCH('Data Input - BAU'!AZ$7,'Energy Prices'!$F$11:$CR$11,0))/100000,\"\")","v":""},{"$f":"IFERROR(BA85*INDEX('Energy Prices'!$F$12:$CR$17,MATCH('Data Input - BAU'!$D93,'Energy Prices'!$C$12:$C$17,0),MATCH('Data Input - BAU'!BA$7,'Energy Prices'!$F$11:$CR$11,0))/100000,\"\")","v":""},{"$f":"IFERROR(BB85*INDEX('Energy Prices'!$F$12:$CR$17,MATCH('Data Input - BAU'!$D93,'Energy Prices'!$C$12:$C$17,0),MATCH('Data Input - BAU'!BB$7,'Energy Prices'!$F$11:$CR$11,0))/100000,\"\")","v":""},{"$f":"IFERROR(BC85*INDEX('Energy Prices'!$F$12:$CR$17,MATCH('Data Input - BAU'!$D93,'Energy Prices'!$C$12:$C$17,0),MATCH('Data Input - BAU'!BC$7,'Energy Prices'!$F$11:$CR$11,0))/100000,\"\")","v":""},{"$f":"IFERROR(BD85*INDEX('Energy Prices'!$F$12:$CR$17,MATCH('Data Input - BAU'!$D93,'Energy Prices'!$C$12:$C$17,0),MATCH('Data Input - BAU'!BD$7,'Energy Prices'!$F$11:$CR$11,0))/100000,\"\")","v":""},{"$f":"IFERROR(BE85*INDEX('Energy Prices'!$F$12:$CR$17,MATCH('Data Input - BAU'!$D93,'Energy Prices'!$C$12:$C$17,0),MATCH('Data Input - BAU'!BE$7,'Energy Prices'!$F$11:$CR$11,0))/100000,\"\")","v":""},{"$f":"IFERROR(BF85*INDEX('Energy Prices'!$F$12:$CR$17,MATCH('Data Input - BAU'!$D93,'Energy Prices'!$C$12:$C$17,0),MATCH('Data Input - BAU'!BF$7,'Energy Prices'!$F$11:$CR$11,0))/100000,\"\")","v":""},{"$f":"IFERROR(BG85*INDEX('Energy Prices'!$F$12:$CR$17,MATCH('Data Input - BAU'!$D93,'Energy Prices'!$C$12:$C$17,0),MATCH('Data Input - BAU'!BG$7,'Energy Prices'!$F$11:$CR$11,0))/100000,\"\")","v":""},{"$f":"IFERROR(BH85*INDEX('Energy Prices'!$F$12:$CR$17,MATCH('Data Input - BAU'!$D93,'Energy Prices'!$C$12:$C$17,0),MATCH('Data Input - BAU'!BH$7,'Energy Prices'!$F$11:$CR$11,0))/100000,\"\")","v":""},{"$f":"IFERROR(BI85*INDEX('Energy Prices'!$F$12:$CR$17,MATCH('Data Input - BAU'!$D93,'Energy Prices'!$C$12:$C$17,0),MATCH('Data Input - BAU'!BI$7,'Energy Prices'!$F$11:$CR$11,0))/100000,\"\")","v":""},{"$f":"IFERROR(BJ85*INDEX('Energy Prices'!$F$12:$CR$17,MATCH('Data Input - BAU'!$D93,'Energy Prices'!$C$12:$C$17,0),MATCH('Data Input - BAU'!BJ$7,'Energy Prices'!$F$11:$CR$11,0))/100000,\"\")","v":""},{"$f":"IFERROR(BK85*INDEX('Energy Prices'!$F$12:$CR$17,MATCH('Data Input - BAU'!$D93,'Energy Prices'!$C$12:$C$17,0),MATCH('Data Input - BAU'!BK$7,'Energy Prices'!$F$11:$CR$11,0))/100000,\"\")","v":""},{"$f":"IFERROR(BL85*INDEX('Energy Prices'!$F$12:$CR$17,MATCH('Data Input - BAU'!$D93,'Energy Prices'!$C$12:$C$17,0),MATCH('Data Input - BAU'!BL$7,'Energy Prices'!$F$11:$CR$11,0))/100000,\"\")","v":""},{"$f":"IFERROR(BM85*INDEX('Energy Prices'!$F$12:$CR$17,MATCH('Data Input - BAU'!$D93,'Energy Prices'!$C$12:$C$17,0),MATCH('Data Input - BAU'!BM$7,'Energy Prices'!$F$11:$CR$11,0))/100000,\"\")","v":""},{"$f":"IFERROR(BN85*INDEX('Energy Prices'!$F$12:$CR$17,MATCH('Data Input - BAU'!$D93,'Energy Prices'!$C$12:$C$17,0),MATCH('Data Input - BAU'!BN$7,'Energy Prices'!$F$11:$CR$11,0))/100000,\"\")","v":""},{"$f":"IFERROR(BO85*INDEX('Energy Prices'!$F$12:$CR$17,MATCH('Data Input - BAU'!$D93,'Energy Prices'!$C$12:$C$17,0),MATCH('Data Input - BAU'!BO$7,'Energy Prices'!$F$11:$CR$11,0))/100000,\"\")","v":""},{"$f":"IFERROR(BP85*INDEX('Energy Prices'!$F$12:$CR$17,MATCH('Data Input - BAU'!$D93,'Energy Prices'!$C$12:$C$17,0),MATCH('Data Input - BAU'!BP$7,'Energy Prices'!$F$11:$CR$11,0))/100000,\"\")","v":""},{"$f":"IFERROR(BQ85*INDEX('Energy Prices'!$F$12:$CR$17,MATCH('Data Input - BAU'!$D93,'Energy Prices'!$C$12:$C$17,0),MATCH('Data Input - BAU'!BQ$7,'Energy Prices'!$F$11:$CR$11,0))/100000,\"\")","v":""},{"$f":"IFERROR(BR85*INDEX('Energy Prices'!$F$12:$CR$17,MATCH('Data Input - BAU'!$D93,'Energy Prices'!$C$12:$C$17,0),MATCH('Data Input - BAU'!BR$7,'Energy Prices'!$F$11:$CR$11,0))/100000,\"\")","v":""},{"$f":"IFERROR(BS85*INDEX('Energy Prices'!$F$12:$CR$17,MATCH('Data Input - BAU'!$D93,'Energy Prices'!$C$12:$C$17,0),MATCH('Data Input - BAU'!BS$7,'Energy Prices'!$F$11:$CR$11,0))/100000,\"\")","v":""},{"$f":"IFERROR(BT85*INDEX('Energy Prices'!$F$12:$CR$17,MATCH('Data Input - BAU'!$D93,'Energy Prices'!$C$12:$C$17,0),MATCH('Data Input - BAU'!BT$7,'Energy Prices'!$F$11:$CR$11,0))/100000,\"\")","v":""},{"$f":"IFERROR(BU85*INDEX('Energy Prices'!$F$12:$CR$17,MATCH('Data Input - BAU'!$D93,'Energy Prices'!$C$12:$C$17,0),MATCH('Data Input - BAU'!BU$7,'Energy Prices'!$F$11:$CR$11,0))/100000,\"\")","v":""},{"$f":"IFERROR(BV85*INDEX('Energy Prices'!$F$12:$CR$17,MATCH('Data Input - BAU'!$D93,'Energy Prices'!$C$12:$C$17,0),MATCH('Data Input - BAU'!BV$7,'Energy Prices'!$F$11:$CR$11,0))/100000,\"\")","v":""},{"$f":"IFERROR(BW85*INDEX('Energy Prices'!$F$12:$CR$17,MATCH('Data Input - BAU'!$D93,'Energy Prices'!$C$12:$C$17,0),MATCH('Data Input - BAU'!BW$7,'Energy Prices'!$F$11:$CR$11,0))/100000,\"\")","v":""},{"$f":"IFERROR(BX85*INDEX('Energy Prices'!$F$12:$CR$17,MATCH('Data Input - BAU'!$D93,'Energy Prices'!$C$12:$C$17,0),MATCH('Data Input - BAU'!BX$7,'Energy Prices'!$F$11:$CR$11,0))/100000,\"\")","v":""},{"$f":"IFERROR(BY85*INDEX('Energy Prices'!$F$12:$CR$17,MATCH('Data Input - BAU'!$D93,'Energy Prices'!$C$12:$C$17,0),MATCH('Data Input - BAU'!BY$7,'Energy Prices'!$F$11:$CR$11,0))/100000,\"\")","v":""},{"$f":"IFERROR(BZ85*INDEX('Energy Prices'!$F$12:$CR$17,MATCH('Data Input - BAU'!$D93,'Energy Prices'!$C$12:$C$17,0),MATCH('Data Input - BAU'!BZ$7,'Energy Prices'!$F$11:$CR$11,0))/100000,\"\")","v":""},{"$f":"IFERROR(CA85*INDEX('Energy Prices'!$F$12:$CR$17,MATCH('Data Input - BAU'!$D93,'Energy Prices'!$C$12:$C$17,0),MATCH('Data Input - BAU'!CA$7,'Energy Prices'!$F$11:$CR$11,0))/100000,\"\")","v":""},{"$f":"IFERROR(CB85*INDEX('Energy Prices'!$F$12:$CR$17,MATCH('Data Input - BAU'!$D93,'Energy Prices'!$C$12:$C$17,0),MATCH('Data Input - BAU'!CB$7,'Energy Prices'!$F$11:$CR$11,0))/100000,\"\")","v":""},{"$f":"IFERROR(CC85*INDEX('Energy Prices'!$F$12:$CR$17,MATCH('Data Input - BAU'!$D93,'Energy Prices'!$C$12:$C$17,0),MATCH('Data Input - BAU'!CC$7,'Energy Prices'!$F$11:$CR$11,0))/100000,\"\")","v":""},{"$f":"IFERROR(CD85*INDEX('Energy Prices'!$F$12:$CR$17,MATCH('Data Input - BAU'!$D93,'Energy Prices'!$C$12:$C$17,0),MATCH('Data Input - BAU'!CD$7,'Energy Prices'!$F$11:$CR$11,0))/100000,\"\")","v":""},{"$f":"IFERROR(CE85*INDEX('Energy Prices'!$F$12:$CR$17,MATCH('Data Input - BAU'!$D93,'Energy Prices'!$C$12:$C$17,0),MATCH('Data Input - BAU'!CE$7,'Energy Prices'!$F$11:$CR$11,0))/100000,\"\")","v":""},{"$f":"IFERROR(CF85*INDEX('Energy Prices'!$F$12:$CR$17,MATCH('Data Input - BAU'!$D93,'Energy Prices'!$C$12:$C$17,0),MATCH('Data Input - BAU'!CF$7,'Energy Prices'!$F$11:$CR$11,0))/100000,\"\")","v":""},{"$f":"IFERROR(CG85*INDEX('Energy Prices'!$F$12:$CR$17,MATCH('Data Input - BAU'!$D93,'Energy Prices'!$C$12:$C$17,0),MATCH('Data Input - BAU'!CG$7,'Energy Prices'!$F$11:$CR$11,0))/100000,\"\")","v":""},{"$f":"IFERROR(CH85*INDEX('Energy Prices'!$F$12:$CR$17,MATCH('Data Input - BAU'!$D93,'Energy Prices'!$C$12:$C$17,0),MATCH('Data Input - BAU'!CH$7,'Energy Prices'!$F$11:$CR$11,0))/100000,\"\")","v":""},{"$f":"IFERROR(CI85*INDEX('Energy Prices'!$F$12:$CR$17,MATCH('Data Input - BAU'!$D93,'Energy Prices'!$C$12:$C$17,0),MATCH('Data Input - BAU'!CI$7,'Energy Prices'!$F$11:$CR$11,0))/100000,\"\")","v":""},{"$f":"IFERROR(CJ85*INDEX('Energy Prices'!$F$12:$CR$17,MATCH('Data Input - BAU'!$D93,'Energy Prices'!$C$12:$C$17,0),MATCH('Data Input - BAU'!CJ$7,'Energy Prices'!$F$11:$CR$11,0))/100000,\"\")","v":""},{"$f":"IFERROR(CK85*INDEX('Energy Prices'!$F$12:$CR$17,MATCH('Data Input - BAU'!$D93,'Energy Prices'!$C$12:$C$17,0),MATCH('Data Input - BAU'!CK$7,'Energy Prices'!$F$11:$CR$11,0))/100000,\"\")","v":""},{"$f":"IFERROR(CL85*INDEX('Energy Prices'!$F$12:$CR$17,MATCH('Data Input - BAU'!$D93,'Energy Prices'!$C$12:$C$17,0),MATCH('Data Input - BAU'!CL$7,'Energy Prices'!$F$11:$CR$11,0))/100000,\"\")","v":""},{"$f":"IFERROR(CM85*INDEX('Energy Prices'!$F$12:$CR$17,MATCH('Data Input - BAU'!$D93,'Energy Prices'!$C$12:$C$17,0),MATCH('Data Input - BAU'!CM$7,'Energy Prices'!$F$11:$CR$11,0))/100000,\"\")","v":""},{"$f":"IFERROR(CN85*INDEX('Energy Prices'!$F$12:$CR$17,MATCH('Data Input - BAU'!$D93,'Energy Prices'!$C$12:$C$17,0),MATCH('Data Input - BAU'!CN$7,'Energy Prices'!$F$11:$CR$11,0))/100000,\"\")","v":""},{"$f":"IFERROR(CO85*INDEX('Energy Prices'!$F$12:$CR$17,MATCH('Data Input - BAU'!$D93,'Energy Prices'!$C$12:$C$17,0),MATCH('Data Input - BAU'!CO$7,'Energy Prices'!$F$11:$CR$11,0))/100000,\"\")","v":""},{"$f":"IFERROR(CP85*INDEX('Energy Prices'!$F$12:$CR$17,MATCH('Data Input - BAU'!$D93,'Energy Prices'!$C$12:$C$17,0),MATCH('Data Input - BAU'!CP$7,'Energy Prices'!$F$11:$CR$11,0))/100000,\"\")","v":""},{"$f":"IFERROR(CQ85*INDEX('Energy Prices'!$F$12:$CR$17,MATCH('Data Input - BAU'!$D93,'Energy Prices'!$C$12:$C$17,0),MATCH('Data Input - BAU'!CQ$7,'Energy Prices'!$F$11:$CR$11,0))/100000,\"\")","v":""},{"$f":"IFERROR(CR85*INDEX('Energy Prices'!$F$12:$CR$17,MATCH('Data Input - BAU'!$D93,'Energy Prices'!$C$12:$C$17,0),MATCH('Data Input - BAU'!CR$7,'Energy Prices'!$F$11:$CR$11,0))/100000,\"\")","v":""},{"$f":"IFERROR(CS85*INDEX('Energy Prices'!$F$12:$CR$17,MATCH('Data Input - BAU'!$D93,'Energy Prices'!$C$12:$C$17,0),MATCH('Data Input - BAU'!CS$7,'Energy Prices'!$F$11:$CR$11,0))/100000,\"\")","v":""},{"$f":"IFERROR(CT85*INDEX('Energy Prices'!$F$12:$CR$17,MATCH('Data Input - BAU'!$D93,'Energy Prices'!$C$12:$C$17,0),MATCH('Data Input - BAU'!CT$7,'Energy Prices'!$F$11:$CR$11,0))/100000,\"\")","v":""},{"$f":"IFERROR(CU85*INDEX('Energy Prices'!$F$12:$CR$17,MATCH('Data Input - BAU'!$D93,'Energy Prices'!$C$12:$C$17,0),MATCH('Data Input - BAU'!CU$7,'Energy Prices'!$F$11:$CR$11,0))/100000,\"\")","v":""},{"$f":"IFERROR(CV85*INDEX('Energy Prices'!$F$12:$CR$17,MATCH('Data Input - BAU'!$D93,'Energy Prices'!$C$12:$C$17,0),MATCH('Data Input - BAU'!CV$7,'Energy Prices'!$F$11:$CR$11,0))/100000,\"\")","v":""},{"$f":"IFERROR(CW85*INDEX('Energy Prices'!$F$12:$CR$17,MATCH('Data Input - BAU'!$D93,'Energy Prices'!$C$12:$C$17,0),MATCH('Data Input - BAU'!CW$7,'Energy Prices'!$F$11:$CR$11,0))/100000,\"\")","v":""},{"$f":"IFERROR(CX85*INDEX('Energy Prices'!$F$12:$CR$17,MATCH('Data Input - BAU'!$D93,'Energy Prices'!$C$12:$C$17,0),MATCH('Data Input - BAU'!CX$7,'Energy Prices'!$F$11:$CR$11,0))/100000,\"\")","v":""},{"$f":"IFERROR(CY85*INDEX('Energy Prices'!$F$12:$CR$17,MATCH('Data Input - BAU'!$D93,'Energy Prices'!$C$12:$C$17,0),MATCH('Data Input - BAU'!CY$7,'Energy Prices'!$F$11:$CR$11,0))/100000,\"\")","v":""},{"$f":"IFERROR(CZ85*INDEX('Energy Prices'!$F$12:$CR$17,MATCH('Data Input - BAU'!$D93,'Energy Prices'!$C$12:$C$17,0),MATCH('Data Input - BAU'!CZ$7,'Energy Prices'!$F$11:$CR$11,0))/100000,\"\")","v":""},{"$f":"IFERROR(DA85*INDEX('Energy Prices'!$F$12:$CR$17,MATCH('Data Input - BAU'!$D93,'Energy Prices'!$C$12:$C$17,0),MATCH('Data Input - BAU'!DA$7,'Energy Prices'!$F$11:$CR$11,0))/100000,\"\")","v":""},{"$f":"IFERROR(DB85*INDEX('Energy Prices'!$F$12:$CR$17,MATCH('Data Input - BAU'!$D93,'Energy Prices'!$C$12:$C$17,0),MATCH('Data Input - BAU'!DB$7,'Energy Prices'!$F$11:$CR$11,0))/100000,\"\")","v":""},{"$f":"IFERROR(DC85*INDEX('Energy Prices'!$F$12:$CR$17,MATCH('Data Input - BAU'!$D93,'Energy Prices'!$C$12:$C$17,0),MATCH('Data Input - BAU'!DC$7,'Energy Prices'!$F$11:$CR$11,0))/100000,\"\")","v":""}]
[null,null,null,"Coal","£000's","(Auto calculated value)",null,{"$f":"IFERROR(H86*INDEX('Energy Prices'!$F$12:$CR$17,MATCH('Data Input - BAU'!$D94,'Energy Prices'!$C$12:$C$17,0),MATCH('Data Input - BAU'!H$7,'Energy Prices'!$F$11:$CR$11,0))/100000,\"\")","v":937.78976184627777},{"$f":"IFERROR(I86*INDEX('Energy Prices'!$F$12:$CR$17,MATCH('Data Input - BAU'!$D94,'Energy Prices'!$C$12:$C$17,0),MATCH('Data Input - BAU'!I$7,'Energy Prices'!$F$11:$CR$11,0))/100000,\"\")","v":967.04407438200428},{"$f":"IFERROR(J86*INDEX('Energy Prices'!$F$12:$CR$17,MATCH('Data Input - BAU'!$D94,'Energy Prices'!$C$12:$C$17,0),MATCH('Data Input - BAU'!J$7,'Energy Prices'!$F$11:$CR$11,0))/100000,\"\")","v":996.30249432667506},{"$f":"IFERROR(K86*INDEX('Energy Prices'!$F$12:$CR$17,MATCH('Data Input - BAU'!$D94,'Energy Prices'!$C$12:$C$17,0),MATCH('Data Input - BAU'!K$7,'Energy Prices'!$F$11:$CR$11,0))/100000,\"\")","v":1025.5572317276735},{"$f":"IFERROR(L86*INDEX('Energy Prices'!$F$12:$CR$17,MATCH('Data Input - BAU'!$D94,'Energy Prices'!$C$12:$C$17,0),MATCH('Data Input - BAU'!L$7,'Energy Prices'!$F$11:$CR$11,0))/100000,\"\")","v":1054.8121571904517},{"$f":"IFERROR(M86*INDEX('Energy Prices'!$F$12:$CR$17,MATCH('Data Input - BAU'!$D94,'Energy Prices'!$C$12:$C$17,0),MATCH('Data Input - BAU'!M$7,'Energy Prices'!$F$11:$CR$11,0))/100000,\"\")","v":1084.067272001846},{"$f":"IFERROR(N86*INDEX('Energy Prices'!$F$12:$CR$17,MATCH('Data Input - BAU'!$D94,'Energy Prices'!$C$12:$C$17,0),MATCH('Data Input - BAU'!N$7,'Energy Prices'!$F$11:$CR$11,0))/100000,\"\")","v":1113.3225774574967},{"$f":"IFERROR(O86*INDEX('Energy Prices'!$F$12:$CR$17,MATCH('Data Input - BAU'!$D94,'Energy Prices'!$C$12:$C$17,0),MATCH('Data Input - BAU'!O$7,'Energy Prices'!$F$11:$CR$11,0))/100000,\"\")","v":1142.57807486191},{"$f":"IFERROR(P86*INDEX('Energy Prices'!$F$12:$CR$17,MATCH('Data Input - BAU'!$D94,'Energy Prices'!$C$12:$C$17,0),MATCH('Data Input - BAU'!P$7,'Energy Prices'!$F$11:$CR$11,0))/100000,\"\")","v":0},{"$f":"IFERROR(Q86*INDEX('Energy Prices'!$F$12:$CR$17,MATCH('Data Input - BAU'!$D94,'Energy Prices'!$C$12:$C$17,0),MATCH('Data Input - BAU'!Q$7,'Energy Prices'!$F$11:$CR$11,0))/100000,\"\")","v":0},{"$f":"IFERROR(R86*INDEX('Energy Prices'!$F$12:$CR$17,MATCH('Data Input - BAU'!$D94,'Energy Prices'!$C$12:$C$17,0),MATCH('Data Input - BAU'!R$7,'Energy Prices'!$F$11:$CR$11,0))/100000,\"\")","v":0},{"$f":"IFERROR(S86*INDEX('Energy Prices'!$F$12:$CR$17,MATCH('Data Input - BAU'!$D94,'Energy Prices'!$C$12:$C$17,0),MATCH('Data Input - BAU'!S$7,'Energy Prices'!$F$11:$CR$11,0))/100000,\"\")","v":0},{"$f":"IFERROR(T86*INDEX('Energy Prices'!$F$12:$CR$17,MATCH('Data Input - BAU'!$D94,'Energy Prices'!$C$12:$C$17,0),MATCH('Data Input - BAU'!T$7,'Energy Prices'!$F$11:$CR$11,0))/100000,\"\")","v":0},{"$f":"IFERROR(U86*INDEX('Energy Prices'!$F$12:$CR$17,MATCH('Data Input - BAU'!$D94,'Energy Prices'!$C$12:$C$17,0),MATCH('Data Input - BAU'!U$7,'Energy Prices'!$F$11:$CR$11,0))/100000,\"\")","v":0},{"$f":"IFERROR(V86*INDEX('Energy Prices'!$F$12:$CR$17,MATCH('Data Input - BAU'!$D94,'Energy Prices'!$C$12:$C$17,0),MATCH('Data Input - BAU'!V$7,'Energy Prices'!$F$11:$CR$11,0))/100000,\"\")","v":0},{"$f":"IFERROR(W86*INDEX('Energy Prices'!$F$12:$CR$17,MATCH('Data Input - BAU'!$D94,'Energy Prices'!$C$12:$C$17,0),MATCH('Data Input - BAU'!W$7,'Energy Prices'!$F$11:$CR$11,0))/100000,\"\")","v":0},{"$f":"IFERROR(X86*INDEX('Energy Prices'!$F$12:$CR$17,MATCH('Data Input - BAU'!$D94,'Energy Prices'!$C$12:$C$17,0),MATCH('Data Input - BAU'!X$7,'Energy Prices'!$F$11:$CR$11,0))/100000,\"\")","v":0},{"$f":"IFERROR(Y86*INDEX('Energy Prices'!$F$12:$CR$17,MATCH('Data Input - BAU'!$D94,'Energy Prices'!$C$12:$C$17,0),MATCH('Data Input - BAU'!Y$7,'Energy Prices'!$F$11:$CR$11,0))/100000,\"\")","v":0},{"$f":"IFERROR(Z86*INDEX('Energy Prices'!$F$12:$CR$17,MATCH('Data Input - BAU'!$D94,'Energy Prices'!$C$12:$C$17,0),MATCH('Data Input - BAU'!Z$7,'Energy Prices'!$F$11:$CR$11,0))/100000,\"\")","v":0},{"$f":"IFERROR(AA86*INDEX('Energy Prices'!$F$12:$CR$17,MATCH('Data Input - BAU'!$D94,'Energy Prices'!$C$12:$C$17,0),MATCH('Data Input - BAU'!AA$7,'Energy Prices'!$F$11:$CR$11,0))/100000,\"\")","v":0},{"$f":"IFERROR(AB86*INDEX('Energy Prices'!$F$12:$CR$17,MATCH('Data Input - BAU'!$D94,'Energy Prices'!$C$12:$C$17,0),MATCH('Data Input - BAU'!AB$7,'Energy Prices'!$F$11:$CR$11,0))/100000,\"\")","v":0},{"$f":"IFERROR(AC86*INDEX('Energy Prices'!$F$12:$CR$17,MATCH('Data Input - BAU'!$D94,'Energy Prices'!$C$12:$C$17,0),MATCH('Data Input - BAU'!AC$7,'Energy Prices'!$F$11:$CR$11,0))/100000,\"\")","v":0},{"$f":"IFERROR(AD86*INDEX('Energy Prices'!$F$12:$CR$17,MATCH('Data Input - BAU'!$D94,'Energy Prices'!$C$12:$C$17,0),MATCH('Data Input - BAU'!AD$7,'Energy Prices'!$F$11:$CR$11,0))/100000,\"\")","v":0},{"$f":"IFERROR(AE86*INDEX('Energy Prices'!$F$12:$CR$17,MATCH('Data Input - BAU'!$D94,'Energy Prices'!$C$12:$C$17,0),MATCH('Data Input - BAU'!AE$7,'Energy Prices'!$F$11:$CR$11,0))/100000,\"\")","v":0},{"$f":"IFERROR(AF86*INDEX('Energy Prices'!$F$12:$CR$17,MATCH('Data Input - BAU'!$D94,'Energy Prices'!$C$12:$C$17,0),MATCH('Data Input - BAU'!AF$7,'Energy Prices'!$F$11:$CR$11,0))/100000,\"\")","v":0},{"$f":"IFERROR(AG86*INDEX('Energy Prices'!$F$12:$CR$17,MATCH('Data Input - BAU'!$D94,'Energy Prices'!$C$12:$C$17,0),MATCH('Data Input - BAU'!AG$7,'Energy Prices'!$F$11:$CR$11,0))/100000,\"\")","v":0},{"$f":"IFERROR(AH86*INDEX('Energy Prices'!$F$12:$CR$17,MATCH('Data Input - BAU'!$D94,'Energy Prices'!$C$12:$C$17,0),MATCH('Data Input - BAU'!AH$7,'Energy Prices'!$F$11:$CR$11,0))/100000,\"\")","v":0},{"$f":"IFERROR(AI86*INDEX('Energy Prices'!$F$12:$CR$17,MATCH('Data Input - BAU'!$D94,'Energy Prices'!$C$12:$C$17,0),MATCH('Data Input - BAU'!AI$7,'Energy Prices'!$F$11:$CR$11,0))/100000,\"\")","v":0},{"$f":"IFERROR(AJ86*INDEX('Energy Prices'!$F$12:$CR$17,MATCH('Data Input - BAU'!$D94,'Energy Prices'!$C$12:$C$17,0),MATCH('Data Input - BAU'!AJ$7,'Energy Prices'!$F$11:$CR$11,0))/100000,\"\")","v":0},{"$f":"IFERROR(AK86*INDEX('Energy Prices'!$F$12:$CR$17,MATCH('Data Input - BAU'!$D94,'Energy Prices'!$C$12:$C$17,0),MATCH('Data Input - BAU'!AK$7,'Energy Prices'!$F$11:$CR$11,0))/100000,\"\")","v":0},{"$f":"IFERROR(AL86*INDEX('Energy Prices'!$F$12:$CR$17,MATCH('Data Input - BAU'!$D94,'Energy Prices'!$C$12:$C$17,0),MATCH('Data Input - BAU'!AL$7,'Energy Prices'!$F$11:$CR$11,0))/100000,\"\")","v":0},{"$f":"IFERROR(AM86*INDEX('Energy Prices'!$F$12:$CR$17,MATCH('Data Input - BAU'!$D94,'Energy Prices'!$C$12:$C$17,0),MATCH('Data Input - BAU'!AM$7,'Energy Prices'!$F$11:$CR$11,0))/100000,\"\")","v":""},{"$f":"IFERROR(AN86*INDEX('Energy Prices'!$F$12:$CR$17,MATCH('Data Input - BAU'!$D94,'Energy Prices'!$C$12:$C$17,0),MATCH('Data Input - BAU'!AN$7,'Energy Prices'!$F$11:$CR$11,0))/100000,\"\")","v":""},{"$f":"IFERROR(AO86*INDEX('Energy Prices'!$F$12:$CR$17,MATCH('Data Input - BAU'!$D94,'Energy Prices'!$C$12:$C$17,0),MATCH('Data Input - BAU'!AO$7,'Energy Prices'!$F$11:$CR$11,0))/100000,\"\")","v":""},{"$f":"IFERROR(AP86*INDEX('Energy Prices'!$F$12:$CR$17,MATCH('Data Input - BAU'!$D94,'Energy Prices'!$C$12:$C$17,0),MATCH('Data Input - BAU'!AP$7,'Energy Prices'!$F$11:$CR$11,0))/100000,\"\")","v":""},{"$f":"IFERROR(AQ86*INDEX('Energy Prices'!$F$12:$CR$17,MATCH('Data Input - BAU'!$D94,'Energy Prices'!$C$12:$C$17,0),MATCH('Data Input - BAU'!AQ$7,'Energy Prices'!$F$11:$CR$11,0))/100000,\"\")","v":""},{"$f":"IFERROR(AR86*INDEX('Energy Prices'!$F$12:$CR$17,MATCH('Data Input - BAU'!$D94,'Energy Prices'!$C$12:$C$17,0),MATCH('Data Input - BAU'!AR$7,'Energy Prices'!$F$11:$CR$11,0))/100000,\"\")","v":""},{"$f":"IFERROR(AS86*INDEX('Energy Prices'!$F$12:$CR$17,MATCH('Data Input - BAU'!$D94,'Energy Prices'!$C$12:$C$17,0),MATCH('Data Input - BAU'!AS$7,'Energy Prices'!$F$11:$CR$11,0))/100000,\"\")","v":""},{"$f":"IFERROR(AT86*INDEX('Energy Prices'!$F$12:$CR$17,MATCH('Data Input - BAU'!$D94,'Energy Prices'!$C$12:$C$17,0),MATCH('Data Input - BAU'!AT$7,'Energy Prices'!$F$11:$CR$11,0))/100000,\"\")","v":""},{"$f":"IFERROR(AU86*INDEX('Energy Prices'!$F$12:$CR$17,MATCH('Data Input - BAU'!$D94,'Energy Prices'!$C$12:$C$17,0),MATCH('Data Input - BAU'!AU$7,'Energy Prices'!$F$11:$CR$11,0))/100000,\"\")","v":""},{"$f":"IFERROR(AV86*INDEX('Energy Prices'!$F$12:$CR$17,MATCH('Data Input - BAU'!$D94,'Energy Prices'!$C$12:$C$17,0),MATCH('Data Input - BAU'!AV$7,'Energy Prices'!$F$11:$CR$11,0))/100000,\"\")","v":""},{"$f":"IFERROR(AW86*INDEX('Energy Prices'!$F$12:$CR$17,MATCH('Data Input - BAU'!$D94,'Energy Prices'!$C$12:$C$17,0),MATCH('Data Input - BAU'!AW$7,'Energy Prices'!$F$11:$CR$11,0))/100000,\"\")","v":""},{"$f":"IFERROR(AX86*INDEX('Energy Prices'!$F$12:$CR$17,MATCH('Data Input - BAU'!$D94,'Energy Prices'!$C$12:$C$17,0),MATCH('Data Input - BAU'!AX$7,'Energy Prices'!$F$11:$CR$11,0))/100000,\"\")","v":""},{"$f":"IFERROR(AY86*INDEX('Energy Prices'!$F$12:$CR$17,MATCH('Data Input - BAU'!$D94,'Energy Prices'!$C$12:$C$17,0),MATCH('Data Input - BAU'!AY$7,'Energy Prices'!$F$11:$CR$11,0))/100000,\"\")","v":""},{"$f":"IFERROR(AZ86*INDEX('Energy Prices'!$F$12:$CR$17,MATCH('Data Input - BAU'!$D94,'Energy Prices'!$C$12:$C$17,0),MATCH('Data Input - BAU'!AZ$7,'Energy Prices'!$F$11:$CR$11,0))/100000,\"\")","v":""},{"$f":"IFERROR(BA86*INDEX('Energy Prices'!$F$12:$CR$17,MATCH('Data Input - BAU'!$D94,'Energy Prices'!$C$12:$C$17,0),MATCH('Data Input - BAU'!BA$7,'Energy Prices'!$F$11:$CR$11,0))/100000,\"\")","v":""},{"$f":"IFERROR(BB86*INDEX('Energy Prices'!$F$12:$CR$17,MATCH('Data Input - BAU'!$D94,'Energy Prices'!$C$12:$C$17,0),MATCH('Data Input - BAU'!BB$7,'Energy Prices'!$F$11:$CR$11,0))/100000,\"\")","v":""},{"$f":"IFERROR(BC86*INDEX('Energy Prices'!$F$12:$CR$17,MATCH('Data Input - BAU'!$D94,'Energy Prices'!$C$12:$C$17,0),MATCH('Data Input - BAU'!BC$7,'Energy Prices'!$F$11:$CR$11,0))/100000,\"\")","v":""},{"$f":"IFERROR(BD86*INDEX('Energy Prices'!$F$12:$CR$17,MATCH('Data Input - BAU'!$D94,'Energy Prices'!$C$12:$C$17,0),MATCH('Data Input - BAU'!BD$7,'Energy Prices'!$F$11:$CR$11,0))/100000,\"\")","v":""},{"$f":"IFERROR(BE86*INDEX('Energy Prices'!$F$12:$CR$17,MATCH('Data Input - BAU'!$D94,'Energy Prices'!$C$12:$C$17,0),MATCH('Data Input - BAU'!BE$7,'Energy Prices'!$F$11:$CR$11,0))/100000,\"\")","v":""},{"$f":"IFERROR(BF86*INDEX('Energy Prices'!$F$12:$CR$17,MATCH('Data Input - BAU'!$D94,'Energy Prices'!$C$12:$C$17,0),MATCH('Data Input - BAU'!BF$7,'Energy Prices'!$F$11:$CR$11,0))/100000,\"\")","v":""},{"$f":"IFERROR(BG86*INDEX('Energy Prices'!$F$12:$CR$17,MATCH('Data Input - BAU'!$D94,'Energy Prices'!$C$12:$C$17,0),MATCH('Data Input - BAU'!BG$7,'Energy Prices'!$F$11:$CR$11,0))/100000,\"\")","v":""},{"$f":"IFERROR(BH86*INDEX('Energy Prices'!$F$12:$CR$17,MATCH('Data Input - BAU'!$D94,'Energy Prices'!$C$12:$C$17,0),MATCH('Data Input - BAU'!BH$7,'Energy Prices'!$F$11:$CR$11,0))/100000,\"\")","v":""},{"$f":"IFERROR(BI86*INDEX('Energy Prices'!$F$12:$CR$17,MATCH('Data Input - BAU'!$D94,'Energy Prices'!$C$12:$C$17,0),MATCH('Data Input - BAU'!BI$7,'Energy Prices'!$F$11:$CR$11,0))/100000,\"\")","v":""},{"$f":"IFERROR(BJ86*INDEX('Energy Prices'!$F$12:$CR$17,MATCH('Data Input - BAU'!$D94,'Energy Prices'!$C$12:$C$17,0),MATCH('Data Input - BAU'!BJ$7,'Energy Prices'!$F$11:$CR$11,0))/100000,\"\")","v":""},{"$f":"IFERROR(BK86*INDEX('Energy Prices'!$F$12:$CR$17,MATCH('Data Input - BAU'!$D94,'Energy Prices'!$C$12:$C$17,0),MATCH('Data Input - BAU'!BK$7,'Energy Prices'!$F$11:$CR$11,0))/100000,\"\")","v":""},{"$f":"IFERROR(BL86*INDEX('Energy Prices'!$F$12:$CR$17,MATCH('Data Input - BAU'!$D94,'Energy Prices'!$C$12:$C$17,0),MATCH('Data Input - BAU'!BL$7,'Energy Prices'!$F$11:$CR$11,0))/100000,\"\")","v":""},{"$f":"IFERROR(BM86*INDEX('Energy Prices'!$F$12:$CR$17,MATCH('Data Input - BAU'!$D94,'Energy Prices'!$C$12:$C$17,0),MATCH('Data Input - BAU'!BM$7,'Energy Prices'!$F$11:$CR$11,0))/100000,\"\")","v":""},{"$f":"IFERROR(BN86*INDEX('Energy Prices'!$F$12:$CR$17,MATCH('Data Input - BAU'!$D94,'Energy Prices'!$C$12:$C$17,0),MATCH('Data Input - BAU'!BN$7,'Energy Prices'!$F$11:$CR$11,0))/100000,\"\")","v":""},{"$f":"IFERROR(BO86*INDEX('Energy Prices'!$F$12:$CR$17,MATCH('Data Input - BAU'!$D94,'Energy Prices'!$C$12:$C$17,0),MATCH('Data Input - BAU'!BO$7,'Energy Prices'!$F$11:$CR$11,0))/100000,\"\")","v":""},{"$f":"IFERROR(BP86*INDEX('Energy Prices'!$F$12:$CR$17,MATCH('Data Input - BAU'!$D94,'Energy Prices'!$C$12:$C$17,0),MATCH('Data Input - BAU'!BP$7,'Energy Prices'!$F$11:$CR$11,0))/100000,\"\")","v":""},{"$f":"IFERROR(BQ86*INDEX('Energy Prices'!$F$12:$CR$17,MATCH('Data Input - BAU'!$D94,'Energy Prices'!$C$12:$C$17,0),MATCH('Data Input - BAU'!BQ$7,'Energy Prices'!$F$11:$CR$11,0))/100000,\"\")","v":""},{"$f":"IFERROR(BR86*INDEX('Energy Prices'!$F$12:$CR$17,MATCH('Data Input - BAU'!$D94,'Energy Prices'!$C$12:$C$17,0),MATCH('Data Input - BAU'!BR$7,'Energy Prices'!$F$11:$CR$11,0))/100000,\"\")","v":""},{"$f":"IFERROR(BS86*INDEX('Energy Prices'!$F$12:$CR$17,MATCH('Data Input - BAU'!$D94,'Energy Prices'!$C$12:$C$17,0),MATCH('Data Input - BAU'!BS$7,'Energy Prices'!$F$11:$CR$11,0))/100000,\"\")","v":""},{"$f":"IFERROR(BT86*INDEX('Energy Prices'!$F$12:$CR$17,MATCH('Data Input - BAU'!$D94,'Energy Prices'!$C$12:$C$17,0),MATCH('Data Input - BAU'!BT$7,'Energy Prices'!$F$11:$CR$11,0))/100000,\"\")","v":""},{"$f":"IFERROR(BU86*INDEX('Energy Prices'!$F$12:$CR$17,MATCH('Data Input - BAU'!$D94,'Energy Prices'!$C$12:$C$17,0),MATCH('Data Input - BAU'!BU$7,'Energy Prices'!$F$11:$CR$11,0))/100000,\"\")","v":""},{"$f":"IFERROR(BV86*INDEX('Energy Prices'!$F$12:$CR$17,MATCH('Data Input - BAU'!$D94,'Energy Prices'!$C$12:$C$17,0),MATCH('Data Input - BAU'!BV$7,'Energy Prices'!$F$11:$CR$11,0))/100000,\"\")","v":""},{"$f":"IFERROR(BW86*INDEX('Energy Prices'!$F$12:$CR$17,MATCH('Data Input - BAU'!$D94,'Energy Prices'!$C$12:$C$17,0),MATCH('Data Input - BAU'!BW$7,'Energy Prices'!$F$11:$CR$11,0))/100000,\"\")","v":""},{"$f":"IFERROR(BX86*INDEX('Energy Prices'!$F$12:$CR$17,MATCH('Data Input - BAU'!$D94,'Energy Prices'!$C$12:$C$17,0),MATCH('Data Input - BAU'!BX$7,'Energy Prices'!$F$11:$CR$11,0))/100000,\"\")","v":""},{"$f":"IFERROR(BY86*INDEX('Energy Prices'!$F$12:$CR$17,MATCH('Data Input - BAU'!$D94,'Energy Prices'!$C$12:$C$17,0),MATCH('Data Input - BAU'!BY$7,'Energy Prices'!$F$11:$CR$11,0))/100000,\"\")","v":""},{"$f":"IFERROR(BZ86*INDEX('Energy Prices'!$F$12:$CR$17,MATCH('Data Input - BAU'!$D94,'Energy Prices'!$C$12:$C$17,0),MATCH('Data Input - BAU'!BZ$7,'Energy Prices'!$F$11:$CR$11,0))/100000,\"\")","v":""},{"$f":"IFERROR(CA86*INDEX('Energy Prices'!$F$12:$CR$17,MATCH('Data Input - BAU'!$D94,'Energy Prices'!$C$12:$C$17,0),MATCH('Data Input - BAU'!CA$7,'Energy Prices'!$F$11:$CR$11,0))/100000,\"\")","v":""},{"$f":"IFERROR(CB86*INDEX('Energy Prices'!$F$12:$CR$17,MATCH('Data Input - BAU'!$D94,'Energy Prices'!$C$12:$C$17,0),MATCH('Data Input - BAU'!CB$7,'Energy Prices'!$F$11:$CR$11,0))/100000,\"\")","v":""},{"$f":"IFERROR(CC86*INDEX('Energy Prices'!$F$12:$CR$17,MATCH('Data Input - BAU'!$D94,'Energy Prices'!$C$12:$C$17,0),MATCH('Data Input - BAU'!CC$7,'Energy Prices'!$F$11:$CR$11,0))/100000,\"\")","v":""},{"$f":"IFERROR(CD86*INDEX('Energy Prices'!$F$12:$CR$17,MATCH('Data Input - BAU'!$D94,'Energy Prices'!$C$12:$C$17,0),MATCH('Data Input - BAU'!CD$7,'Energy Prices'!$F$11:$CR$11,0))/100000,\"\")","v":""},{"$f":"IFERROR(CE86*INDEX('Energy Prices'!$F$12:$CR$17,MATCH('Data Input - BAU'!$D94,'Energy Prices'!$C$12:$C$17,0),MATCH('Data Input - BAU'!CE$7,'Energy Prices'!$F$11:$CR$11,0))/100000,\"\")","v":""},{"$f":"IFERROR(CF86*INDEX('Energy Prices'!$F$12:$CR$17,MATCH('Data Input - BAU'!$D94,'Energy Prices'!$C$12:$C$17,0),MATCH('Data Input - BAU'!CF$7,'Energy Prices'!$F$11:$CR$11,0))/100000,\"\")","v":""},{"$f":"IFERROR(CG86*INDEX('Energy Prices'!$F$12:$CR$17,MATCH('Data Input - BAU'!$D94,'Energy Prices'!$C$12:$C$17,0),MATCH('Data Input - BAU'!CG$7,'Energy Prices'!$F$11:$CR$11,0))/100000,\"\")","v":""},{"$f":"IFERROR(CH86*INDEX('Energy Prices'!$F$12:$CR$17,MATCH('Data Input - BAU'!$D94,'Energy Prices'!$C$12:$C$17,0),MATCH('Data Input - BAU'!CH$7,'Energy Prices'!$F$11:$CR$11,0))/100000,\"\")","v":""},{"$f":"IFERROR(CI86*INDEX('Energy Prices'!$F$12:$CR$17,MATCH('Data Input - BAU'!$D94,'Energy Prices'!$C$12:$C$17,0),MATCH('Data Input - BAU'!CI$7,'Energy Prices'!$F$11:$CR$11,0))/100000,\"\")","v":""},{"$f":"IFERROR(CJ86*INDEX('Energy Prices'!$F$12:$CR$17,MATCH('Data Input - BAU'!$D94,'Energy Prices'!$C$12:$C$17,0),MATCH('Data Input - BAU'!CJ$7,'Energy Prices'!$F$11:$CR$11,0))/100000,\"\")","v":""},{"$f":"IFERROR(CK86*INDEX('Energy Prices'!$F$12:$CR$17,MATCH('Data Input - BAU'!$D94,'Energy Prices'!$C$12:$C$17,0),MATCH('Data Input - BAU'!CK$7,'Energy Prices'!$F$11:$CR$11,0))/100000,\"\")","v":""},{"$f":"IFERROR(CL86*INDEX('Energy Prices'!$F$12:$CR$17,MATCH('Data Input - BAU'!$D94,'Energy Prices'!$C$12:$C$17,0),MATCH('Data Input - BAU'!CL$7,'Energy Prices'!$F$11:$CR$11,0))/100000,\"\")","v":""},{"$f":"IFERROR(CM86*INDEX('Energy Prices'!$F$12:$CR$17,MATCH('Data Input - BAU'!$D94,'Energy Prices'!$C$12:$C$17,0),MATCH('Data Input - BAU'!CM$7,'Energy Prices'!$F$11:$CR$11,0))/100000,\"\")","v":""},{"$f":"IFERROR(CN86*INDEX('Energy Prices'!$F$12:$CR$17,MATCH('Data Input - BAU'!$D94,'Energy Prices'!$C$12:$C$17,0),MATCH('Data Input - BAU'!CN$7,'Energy Prices'!$F$11:$CR$11,0))/100000,\"\")","v":""},{"$f":"IFERROR(CO86*INDEX('Energy Prices'!$F$12:$CR$17,MATCH('Data Input - BAU'!$D94,'Energy Prices'!$C$12:$C$17,0),MATCH('Data Input - BAU'!CO$7,'Energy Prices'!$F$11:$CR$11,0))/100000,\"\")","v":""},{"$f":"IFERROR(CP86*INDEX('Energy Prices'!$F$12:$CR$17,MATCH('Data Input - BAU'!$D94,'Energy Prices'!$C$12:$C$17,0),MATCH('Data Input - BAU'!CP$7,'Energy Prices'!$F$11:$CR$11,0))/100000,\"\")","v":""},{"$f":"IFERROR(CQ86*INDEX('Energy Prices'!$F$12:$CR$17,MATCH('Data Input - BAU'!$D94,'Energy Prices'!$C$12:$C$17,0),MATCH('Data Input - BAU'!CQ$7,'Energy Prices'!$F$11:$CR$11,0))/100000,\"\")","v":""},{"$f":"IFERROR(CR86*INDEX('Energy Prices'!$F$12:$CR$17,MATCH('Data Input - BAU'!$D94,'Energy Prices'!$C$12:$C$17,0),MATCH('Data Input - BAU'!CR$7,'Energy Prices'!$F$11:$CR$11,0))/100000,\"\")","v":""},{"$f":"IFERROR(CS86*INDEX('Energy Prices'!$F$12:$CR$17,MATCH('Data Input - BAU'!$D94,'Energy Prices'!$C$12:$C$17,0),MATCH('Data Input - BAU'!CS$7,'Energy Prices'!$F$11:$CR$11,0))/100000,\"\")","v":""},{"$f":"IFERROR(CT86*INDEX('Energy Prices'!$F$12:$CR$17,MATCH('Data Input - BAU'!$D94,'Energy Prices'!$C$12:$C$17,0),MATCH('Data Input - BAU'!CT$7,'Energy Prices'!$F$11:$CR$11,0))/100000,\"\")","v":""},{"$f":"IFERROR(CU86*INDEX('Energy Prices'!$F$12:$CR$17,MATCH('Data Input - BAU'!$D94,'Energy Prices'!$C$12:$C$17,0),MATCH('Data Input - BAU'!CU$7,'Energy Prices'!$F$11:$CR$11,0))/100000,\"\")","v":""},{"$f":"IFERROR(CV86*INDEX('Energy Prices'!$F$12:$CR$17,MATCH('Data Input - BAU'!$D94,'Energy Prices'!$C$12:$C$17,0),MATCH('Data Input - BAU'!CV$7,'Energy Prices'!$F$11:$CR$11,0))/100000,\"\")","v":""},{"$f":"IFERROR(CW86*INDEX('Energy Prices'!$F$12:$CR$17,MATCH('Data Input - BAU'!$D94,'Energy Prices'!$C$12:$C$17,0),MATCH('Data Input - BAU'!CW$7,'Energy Prices'!$F$11:$CR$11,0))/100000,\"\")","v":""},{"$f":"IFERROR(CX86*INDEX('Energy Prices'!$F$12:$CR$17,MATCH('Data Input - BAU'!$D94,'Energy Prices'!$C$12:$C$17,0),MATCH('Data Input - BAU'!CX$7,'Energy Prices'!$F$11:$CR$11,0))/100000,\"\")","v":""},{"$f":"IFERROR(CY86*INDEX('Energy Prices'!$F$12:$CR$17,MATCH('Data Input - BAU'!$D94,'Energy Prices'!$C$12:$C$17,0),MATCH('Data Input - BAU'!CY$7,'Energy Prices'!$F$11:$CR$11,0))/100000,\"\")","v":""},{"$f":"IFERROR(CZ86*INDEX('Energy Prices'!$F$12:$CR$17,MATCH('Data Input - BAU'!$D94,'Energy Prices'!$C$12:$C$17,0),MATCH('Data Input - BAU'!CZ$7,'Energy Prices'!$F$11:$CR$11,0))/100000,\"\")","v":""},{"$f":"IFERROR(DA86*INDEX('Energy Prices'!$F$12:$CR$17,MATCH('Data Input - BAU'!$D94,'Energy Prices'!$C$12:$C$17,0),MATCH('Data Input - BAU'!DA$7,'Energy Prices'!$F$11:$CR$11,0))/100000,\"\")","v":""},{"$f":"IFERROR(DB86*INDEX('Energy Prices'!$F$12:$CR$17,MATCH('Data Input - BAU'!$D94,'Energy Prices'!$C$12:$C$17,0),MATCH('Data Input - BAU'!DB$7,'Energy Prices'!$F$11:$CR$11,0))/100000,\"\")","v":""},{"$f":"IFERROR(DC86*INDEX('Energy Prices'!$F$12:$CR$17,MATCH('Data Input - BAU'!$D94,'Energy Prices'!$C$12:$C$17,0),MATCH('Data Input - BAU'!DC$7,'Energy Prices'!$F$11:$CR$11,0))/100000,\"\")","v":""}]
[null,null,null,"Gas Oil","£000's","(Auto calculated value)",null,{"$f":"IFERROR(H87*INDEX('Energy Prices'!$F$12:$CR$17,MATCH('Data Input - BAU'!$D95,'Energy Prices'!$C$12:$C$17,0),MATCH('Data Input - BAU'!H$7,'Energy Prices'!$F$11:$CR$11,0))/100000,\"\")","v":101.86416340890224},{"$f":"IFERROR(I87*INDEX('Energy Prices'!$F$12:$CR$17,MATCH('Data Input - BAU'!$D95,'Energy Prices'!$C$12:$C$17,0),MATCH('Data Input - BAU'!I$7,'Energy Prices'!$F$11:$CR$11,0))/100000,\"\")","v":108.78939751456718},{"$f":"IFERROR(J87*INDEX('Energy Prices'!$F$12:$CR$17,MATCH('Data Input - BAU'!$D95,'Energy Prices'!$C$12:$C$17,0),MATCH('Data Input - BAU'!J$7,'Energy Prices'!$F$11:$CR$11,0))/100000,\"\")","v":115.73394676403002},{"$f":"IFERROR(K87*INDEX('Energy Prices'!$F$12:$CR$17,MATCH('Data Input - BAU'!$D95,'Energy Prices'!$C$12:$C$17,0),MATCH('Data Input - BAU'!K$7,'Energy Prices'!$F$11:$CR$11,0))/100000,\"\")","v":122.66386016968734},{"$f":"IFERROR(L87*INDEX('Energy Prices'!$F$12:$CR$17,MATCH('Data Input - BAU'!$D95,'Energy Prices'!$C$12:$C$17,0),MATCH('Data Input - BAU'!L$7,'Energy Prices'!$F$11:$CR$11,0))/100000,\"\")","v":129.58715518047657},{"$f":"IFERROR(M87*INDEX('Energy Prices'!$F$12:$CR$17,MATCH('Data Input - BAU'!$D95,'Energy Prices'!$C$12:$C$17,0),MATCH('Data Input - BAU'!M$7,'Energy Prices'!$F$11:$CR$11,0))/100000,\"\")","v":136.51160511784934},{"$f":"IFERROR(N87*INDEX('Energy Prices'!$F$12:$CR$17,MATCH('Data Input - BAU'!$D95,'Energy Prices'!$C$12:$C$17,0),MATCH('Data Input - BAU'!N$7,'Energy Prices'!$F$11:$CR$11,0))/100000,\"\")","v":143.43721788452919},{"$f":"IFERROR(O87*INDEX('Energy Prices'!$F$12:$CR$17,MATCH('Data Input - BAU'!$D95,'Energy Prices'!$C$12:$C$17,0),MATCH('Data Input - BAU'!O$7,'Energy Prices'!$F$11:$CR$11,0))/100000,\"\")","v":143.60949069723941},{"$f":"IFERROR(P87*INDEX('Energy Prices'!$F$12:$CR$17,MATCH('Data Input - BAU'!$D95,'Energy Prices'!$C$12:$C$17,0),MATCH('Data Input - BAU'!P$7,'Energy Prices'!$F$11:$CR$11,0))/100000,\"\")","v":0},{"$f":"IFERROR(Q87*INDEX('Energy Prices'!$F$12:$CR$17,MATCH('Data Input - BAU'!$D95,'Energy Prices'!$C$12:$C$17,0),MATCH('Data Input - BAU'!Q$7,'Energy Prices'!$F$11:$CR$11,0))/100000,\"\")","v":0},{"$f":"IFERROR(R87*INDEX('Energy Prices'!$F$12:$CR$17,MATCH('Data Input - BAU'!$D95,'Energy Prices'!$C$12:$C$17,0),MATCH('Data Input - BAU'!R$7,'Energy Prices'!$F$11:$CR$11,0))/100000,\"\")","v":0},{"$f":"IFERROR(S87*INDEX('Energy Prices'!$F$12:$CR$17,MATCH('Data Input - BAU'!$D95,'Energy Prices'!$C$12:$C$17,0),MATCH('Data Input - BAU'!S$7,'Energy Prices'!$F$11:$CR$11,0))/100000,\"\")","v":0},{"$f":"IFERROR(T87*INDEX('Energy Prices'!$F$12:$CR$17,MATCH('Data Input - BAU'!$D95,'Energy Prices'!$C$12:$C$17,0),MATCH('Data Input - BAU'!T$7,'Energy Prices'!$F$11:$CR$11,0))/100000,\"\")","v":0},{"$f":"IFERROR(U87*INDEX('Energy Prices'!$F$12:$CR$17,MATCH('Data Input - BAU'!$D95,'Energy Prices'!$C$12:$C$17,0),MATCH('Data Input - BAU'!U$7,'Energy Prices'!$F$11:$CR$11,0))/100000,\"\")","v":0},{"$f":"IFERROR(V87*INDEX('Energy Prices'!$F$12:$CR$17,MATCH('Data Input - BAU'!$D95,'Energy Prices'!$C$12:$C$17,0),MATCH('Data Input - BAU'!V$7,'Energy Prices'!$F$11:$CR$11,0))/100000,\"\")","v":0},{"$f":"IFERROR(W87*INDEX('Energy Prices'!$F$12:$CR$17,MATCH('Data Input - BAU'!$D95,'Energy Prices'!$C$12:$C$17,0),MATCH('Data Input - BAU'!W$7,'Energy Prices'!$F$11:$CR$11,0))/100000,\"\")","v":0},{"$f":"IFERROR(X87*INDEX('Energy Prices'!$F$12:$CR$17,MATCH('Data Input - BAU'!$D95,'Energy Prices'!$C$12:$C$17,0),MATCH('Data Input - BAU'!X$7,'Energy Prices'!$F$11:$CR$11,0))/100000,\"\")","v":0},{"$f":"IFERROR(Y87*INDEX('Energy Prices'!$F$12:$CR$17,MATCH('Data Input - BAU'!$D95,'Energy Prices'!$C$12:$C$17,0),MATCH('Data Input - BAU'!Y$7,'Energy Prices'!$F$11:$CR$11,0))/100000,\"\")","v":0},{"$f":"IFERROR(Z87*INDEX('Energy Prices'!$F$12:$CR$17,MATCH('Data Input - BAU'!$D95,'Energy Prices'!$C$12:$C$17,0),MATCH('Data Input - BAU'!Z$7,'Energy Prices'!$F$11:$CR$11,0))/100000,\"\")","v":0},{"$f":"IFERROR(AA87*INDEX('Energy Prices'!$F$12:$CR$17,MATCH('Data Input - BAU'!$D95,'Energy Prices'!$C$12:$C$17,0),MATCH('Data Input - BAU'!AA$7,'Energy Prices'!$F$11:$CR$11,0))/100000,\"\")","v":0},{"$f":"IFERROR(AB87*INDEX('Energy Prices'!$F$12:$CR$17,MATCH('Data Input - BAU'!$D95,'Energy Prices'!$C$12:$C$17,0),MATCH('Data Input - BAU'!AB$7,'Energy Prices'!$F$11:$CR$11,0))/100000,\"\")","v":0},{"$f":"IFERROR(AC87*INDEX('Energy Prices'!$F$12:$CR$17,MATCH('Data Input - BAU'!$D95,'Energy Prices'!$C$12:$C$17,0),MATCH('Data Input - BAU'!AC$7,'Energy Prices'!$F$11:$CR$11,0))/100000,\"\")","v":0},{"$f":"IFERROR(AD87*INDEX('Energy Prices'!$F$12:$CR$17,MATCH('Data Input - BAU'!$D95,'Energy Prices'!$C$12:$C$17,0),MATCH('Data Input - BAU'!AD$7,'Energy Prices'!$F$11:$CR$11,0))/100000,\"\")","v":0},{"$f":"IFERROR(AE87*INDEX('Energy Prices'!$F$12:$CR$17,MATCH('Data Input - BAU'!$D95,'Energy Prices'!$C$12:$C$17,0),MATCH('Data Input - BAU'!AE$7,'Energy Prices'!$F$11:$CR$11,0))/100000,\"\")","v":0},{"$f":"IFERROR(AF87*INDEX('Energy Prices'!$F$12:$CR$17,MATCH('Data Input - BAU'!$D95,'Energy Prices'!$C$12:$C$17,0),MATCH('Data Input - BAU'!AF$7,'Energy Prices'!$F$11:$CR$11,0))/100000,\"\")","v":0},{"$f":"IFERROR(AG87*INDEX('Energy Prices'!$F$12:$CR$17,MATCH('Data Input - BAU'!$D95,'Energy Prices'!$C$12:$C$17,0),MATCH('Data Input - BAU'!AG$7,'Energy Prices'!$F$11:$CR$11,0))/100000,\"\")","v":0},{"$f":"IFERROR(AH87*INDEX('Energy Prices'!$F$12:$CR$17,MATCH('Data Input - BAU'!$D95,'Energy Prices'!$C$12:$C$17,0),MATCH('Data Input - BAU'!AH$7,'Energy Prices'!$F$11:$CR$11,0))/100000,\"\")","v":0},{"$f":"IFERROR(AI87*INDEX('Energy Prices'!$F$12:$CR$17,MATCH('Data Input - BAU'!$D95,'Energy Prices'!$C$12:$C$17,0),MATCH('Data Input - BAU'!AI$7,'Energy Prices'!$F$11:$CR$11,0))/100000,\"\")","v":0},{"$f":"IFERROR(AJ87*INDEX('Energy Prices'!$F$12:$CR$17,MATCH('Data Input - BAU'!$D95,'Energy Prices'!$C$12:$C$17,0),MATCH('Data Input - BAU'!AJ$7,'Energy Prices'!$F$11:$CR$11,0))/100000,\"\")","v":0},{"$f":"IFERROR(AK87*INDEX('Energy Prices'!$F$12:$CR$17,MATCH('Data Input - BAU'!$D95,'Energy Prices'!$C$12:$C$17,0),MATCH('Data Input - BAU'!AK$7,'Energy Prices'!$F$11:$CR$11,0))/100000,\"\")","v":0},{"$f":"IFERROR(AL87*INDEX('Energy Prices'!$F$12:$CR$17,MATCH('Data Input - BAU'!$D95,'Energy Prices'!$C$12:$C$17,0),MATCH('Data Input - BAU'!AL$7,'Energy Prices'!$F$11:$CR$11,0))/100000,\"\")","v":0},{"$f":"IFERROR(AM87*INDEX('Energy Prices'!$F$12:$CR$17,MATCH('Data Input - BAU'!$D95,'Energy Prices'!$C$12:$C$17,0),MATCH('Data Input - BAU'!AM$7,'Energy Prices'!$F$11:$CR$11,0))/100000,\"\")","v":""},{"$f":"IFERROR(AN87*INDEX('Energy Prices'!$F$12:$CR$17,MATCH('Data Input - BAU'!$D95,'Energy Prices'!$C$12:$C$17,0),MATCH('Data Input - BAU'!AN$7,'Energy Prices'!$F$11:$CR$11,0))/100000,\"\")","v":""},{"$f":"IFERROR(AO87*INDEX('Energy Prices'!$F$12:$CR$17,MATCH('Data Input - BAU'!$D95,'Energy Prices'!$C$12:$C$17,0),MATCH('Data Input - BAU'!AO$7,'Energy Prices'!$F$11:$CR$11,0))/100000,\"\")","v":""},{"$f":"IFERROR(AP87*INDEX('Energy Prices'!$F$12:$CR$17,MATCH('Data Input - BAU'!$D95,'Energy Prices'!$C$12:$C$17,0),MATCH('Data Input - BAU'!AP$7,'Energy Prices'!$F$11:$CR$11,0))/100000,\"\")","v":""},{"$f":"IFERROR(AQ87*INDEX('Energy Prices'!$F$12:$CR$17,MATCH('Data Input - BAU'!$D95,'Energy Prices'!$C$12:$C$17,0),MATCH('Data Input - BAU'!AQ$7,'Energy Prices'!$F$11:$CR$11,0))/100000,\"\")","v":""},{"$f":"IFERROR(AR87*INDEX('Energy Prices'!$F$12:$CR$17,MATCH('Data Input - BAU'!$D95,'Energy Prices'!$C$12:$C$17,0),MATCH('Data Input - BAU'!AR$7,'Energy Prices'!$F$11:$CR$11,0))/100000,\"\")","v":""},{"$f":"IFERROR(AS87*INDEX('Energy Prices'!$F$12:$CR$17,MATCH('Data Input - BAU'!$D95,'Energy Prices'!$C$12:$C$17,0),MATCH('Data Input - BAU'!AS$7,'Energy Prices'!$F$11:$CR$11,0))/100000,\"\")","v":""},{"$f":"IFERROR(AT87*INDEX('Energy Prices'!$F$12:$CR$17,MATCH('Data Input - BAU'!$D95,'Energy Prices'!$C$12:$C$17,0),MATCH('Data Input - BAU'!AT$7,'Energy Prices'!$F$11:$CR$11,0))/100000,\"\")","v":""},{"$f":"IFERROR(AU87*INDEX('Energy Prices'!$F$12:$CR$17,MATCH('Data Input - BAU'!$D95,'Energy Prices'!$C$12:$C$17,0),MATCH('Data Input - BAU'!AU$7,'Energy Prices'!$F$11:$CR$11,0))/100000,\"\")","v":""},{"$f":"IFERROR(AV87*INDEX('Energy Prices'!$F$12:$CR$17,MATCH('Data Input - BAU'!$D95,'Energy Prices'!$C$12:$C$17,0),MATCH('Data Input - BAU'!AV$7,'Energy Prices'!$F$11:$CR$11,0))/100000,\"\")","v":""},{"$f":"IFERROR(AW87*INDEX('Energy Prices'!$F$12:$CR$17,MATCH('Data Input - BAU'!$D95,'Energy Prices'!$C$12:$C$17,0),MATCH('Data Input - BAU'!AW$7,'Energy Prices'!$F$11:$CR$11,0))/100000,\"\")","v":""},{"$f":"IFERROR(AX87*INDEX('Energy Prices'!$F$12:$CR$17,MATCH('Data Input - BAU'!$D95,'Energy Prices'!$C$12:$C$17,0),MATCH('Data Input - BAU'!AX$7,'Energy Prices'!$F$11:$CR$11,0))/100000,\"\")","v":""},{"$f":"IFERROR(AY87*INDEX('Energy Prices'!$F$12:$CR$17,MATCH('Data Input - BAU'!$D95,'Energy Prices'!$C$12:$C$17,0),MATCH('Data Input - BAU'!AY$7,'Energy Prices'!$F$11:$CR$11,0))/100000,\"\")","v":""},{"$f":"IFERROR(AZ87*INDEX('Energy Prices'!$F$12:$CR$17,MATCH('Data Input - BAU'!$D95,'Energy Prices'!$C$12:$C$17,0),MATCH('Data Input - BAU'!AZ$7,'Energy Prices'!$F$11:$CR$11,0))/100000,\"\")","v":""},{"$f":"IFERROR(BA87*INDEX('Energy Prices'!$F$12:$CR$17,MATCH('Data Input - BAU'!$D95,'Energy Prices'!$C$12:$C$17,0),MATCH('Data Input - BAU'!BA$7,'Energy Prices'!$F$11:$CR$11,0))/100000,\"\")","v":""},{"$f":"IFERROR(BB87*INDEX('Energy Prices'!$F$12:$CR$17,MATCH('Data Input - BAU'!$D95,'Energy Prices'!$C$12:$C$17,0),MATCH('Data Input - BAU'!BB$7,'Energy Prices'!$F$11:$CR$11,0))/100000,\"\")","v":""},{"$f":"IFERROR(BC87*INDEX('Energy Prices'!$F$12:$CR$17,MATCH('Data Input - BAU'!$D95,'Energy Prices'!$C$12:$C$17,0),MATCH('Data Input - BAU'!BC$7,'Energy Prices'!$F$11:$CR$11,0))/100000,\"\")","v":""},{"$f":"IFERROR(BD87*INDEX('Energy Prices'!$F$12:$CR$17,MATCH('Data Input - BAU'!$D95,'Energy Prices'!$C$12:$C$17,0),MATCH('Data Input - BAU'!BD$7,'Energy Prices'!$F$11:$CR$11,0))/100000,\"\")","v":""},{"$f":"IFERROR(BE87*INDEX('Energy Prices'!$F$12:$CR$17,MATCH('Data Input - BAU'!$D95,'Energy Prices'!$C$12:$C$17,0),MATCH('Data Input - BAU'!BE$7,'Energy Prices'!$F$11:$CR$11,0))/100000,\"\")","v":""},{"$f":"IFERROR(BF87*INDEX('Energy Prices'!$F$12:$CR$17,MATCH('Data Input - BAU'!$D95,'Energy Prices'!$C$12:$C$17,0),MATCH('Data Input - BAU'!BF$7,'Energy Prices'!$F$11:$CR$11,0))/100000,\"\")","v":""},{"$f":"IFERROR(BG87*INDEX('Energy Prices'!$F$12:$CR$17,MATCH('Data Input - BAU'!$D95,'Energy Prices'!$C$12:$C$17,0),MATCH('Data Input - BAU'!BG$7,'Energy Prices'!$F$11:$CR$11,0))/100000,\"\")","v":""},{"$f":"IFERROR(BH87*INDEX('Energy Prices'!$F$12:$CR$17,MATCH('Data Input - BAU'!$D95,'Energy Prices'!$C$12:$C$17,0),MATCH('Data Input - BAU'!BH$7,'Energy Prices'!$F$11:$CR$11,0))/100000,\"\")","v":""},{"$f":"IFERROR(BI87*INDEX('Energy Prices'!$F$12:$CR$17,MATCH('Data Input - BAU'!$D95,'Energy Prices'!$C$12:$C$17,0),MATCH('Data Input - BAU'!BI$7,'Energy Prices'!$F$11:$CR$11,0))/100000,\"\")","v":""},{"$f":"IFERROR(BJ87*INDEX('Energy Prices'!$F$12:$CR$17,MATCH('Data Input - BAU'!$D95,'Energy Prices'!$C$12:$C$17,0),MATCH('Data Input - BAU'!BJ$7,'Energy Prices'!$F$11:$CR$11,0))/100000,\"\")","v":""},{"$f":"IFERROR(BK87*INDEX('Energy Prices'!$F$12:$CR$17,MATCH('Data Input - BAU'!$D95,'Energy Prices'!$C$12:$C$17,0),MATCH('Data Input - BAU'!BK$7,'Energy Prices'!$F$11:$CR$11,0))/100000,\"\")","v":""},{"$f":"IFERROR(BL87*INDEX('Energy Prices'!$F$12:$CR$17,MATCH('Data Input - BAU'!$D95,'Energy Prices'!$C$12:$C$17,0),MATCH('Data Input - BAU'!BL$7,'Energy Prices'!$F$11:$CR$11,0))/100000,\"\")","v":""},{"$f":"IFERROR(BM87*INDEX('Energy Prices'!$F$12:$CR$17,MATCH('Data Input - BAU'!$D95,'Energy Prices'!$C$12:$C$17,0),MATCH('Data Input - BAU'!BM$7,'Energy Prices'!$F$11:$CR$11,0))/100000,\"\")","v":""},{"$f":"IFERROR(BN87*INDEX('Energy Prices'!$F$12:$CR$17,MATCH('Data Input - BAU'!$D95,'Energy Prices'!$C$12:$C$17,0),MATCH('Data Input - BAU'!BN$7,'Energy Prices'!$F$11:$CR$11,0))/100000,\"\")","v":""},{"$f":"IFERROR(BO87*INDEX('Energy Prices'!$F$12:$CR$17,MATCH('Data Input - BAU'!$D95,'Energy Prices'!$C$12:$C$17,0),MATCH('Data Input - BAU'!BO$7,'Energy Prices'!$F$11:$CR$11,0))/100000,\"\")","v":""},{"$f":"IFERROR(BP87*INDEX('Energy Prices'!$F$12:$CR$17,MATCH('Data Input - BAU'!$D95,'Energy Prices'!$C$12:$C$17,0),MATCH('Data Input - BAU'!BP$7,'Energy Prices'!$F$11:$CR$11,0))/100000,\"\")","v":""},{"$f":"IFERROR(BQ87*INDEX('Energy Prices'!$F$12:$CR$17,MATCH('Data Input - BAU'!$D95,'Energy Prices'!$C$12:$C$17,0),MATCH('Data Input - BAU'!BQ$7,'Energy Prices'!$F$11:$CR$11,0))/100000,\"\")","v":""},{"$f":"IFERROR(BR87*INDEX('Energy Prices'!$F$12:$CR$17,MATCH('Data Input - BAU'!$D95,'Energy Prices'!$C$12:$C$17,0),MATCH('Data Input - BAU'!BR$7,'Energy Prices'!$F$11:$CR$11,0))/100000,\"\")","v":""},{"$f":"IFERROR(BS87*INDEX('Energy Prices'!$F$12:$CR$17,MATCH('Data Input - BAU'!$D95,'Energy Prices'!$C$12:$C$17,0),MATCH('Data Input - BAU'!BS$7,'Energy Prices'!$F$11:$CR$11,0))/100000,\"\")","v":""},{"$f":"IFERROR(BT87*INDEX('Energy Prices'!$F$12:$CR$17,MATCH('Data Input - BAU'!$D95,'Energy Prices'!$C$12:$C$17,0),MATCH('Data Input - BAU'!BT$7,'Energy Prices'!$F$11:$CR$11,0))/100000,\"\")","v":""},{"$f":"IFERROR(BU87*INDEX('Energy Prices'!$F$12:$CR$17,MATCH('Data Input - BAU'!$D95,'Energy Prices'!$C$12:$C$17,0),MATCH('Data Input - BAU'!BU$7,'Energy Prices'!$F$11:$CR$11,0))/100000,\"\")","v":""},{"$f":"IFERROR(BV87*INDEX('Energy Prices'!$F$12:$CR$17,MATCH('Data Input - BAU'!$D95,'Energy Prices'!$C$12:$C$17,0),MATCH('Data Input - BAU'!BV$7,'Energy Prices'!$F$11:$CR$11,0))/100000,\"\")","v":""},{"$f":"IFERROR(BW87*INDEX('Energy Prices'!$F$12:$CR$17,MATCH('Data Input - BAU'!$D95,'Energy Prices'!$C$12:$C$17,0),MATCH('Data Input - BAU'!BW$7,'Energy Prices'!$F$11:$CR$11,0))/100000,\"\")","v":""},{"$f":"IFERROR(BX87*INDEX('Energy Prices'!$F$12:$CR$17,MATCH('Data Input - BAU'!$D95,'Energy Prices'!$C$12:$C$17,0),MATCH('Data Input - BAU'!BX$7,'Energy Prices'!$F$11:$CR$11,0))/100000,\"\")","v":""},{"$f":"IFERROR(BY87*INDEX('Energy Prices'!$F$12:$CR$17,MATCH('Data Input - BAU'!$D95,'Energy Prices'!$C$12:$C$17,0),MATCH('Data Input - BAU'!BY$7,'Energy Prices'!$F$11:$CR$11,0))/100000,\"\")","v":""},{"$f":"IFERROR(BZ87*INDEX('Energy Prices'!$F$12:$CR$17,MATCH('Data Input - BAU'!$D95,'Energy Prices'!$C$12:$C$17,0),MATCH('Data Input - BAU'!BZ$7,'Energy Prices'!$F$11:$CR$11,0))/100000,\"\")","v":""},{"$f":"IFERROR(CA87*INDEX('Energy Prices'!$F$12:$CR$17,MATCH('Data Input - BAU'!$D95,'Energy Prices'!$C$12:$C$17,0),MATCH('Data Input - BAU'!CA$7,'Energy Prices'!$F$11:$CR$11,0))/100000,\"\")","v":""},{"$f":"IFERROR(CB87*INDEX('Energy Prices'!$F$12:$CR$17,MATCH('Data Input - BAU'!$D95,'Energy Prices'!$C$12:$C$17,0),MATCH('Data Input - BAU'!CB$7,'Energy Prices'!$F$11:$CR$11,0))/100000,\"\")","v":""},{"$f":"IFERROR(CC87*INDEX('Energy Prices'!$F$12:$CR$17,MATCH('Data Input - BAU'!$D95,'Energy Prices'!$C$12:$C$17,0),MATCH('Data Input - BAU'!CC$7,'Energy Prices'!$F$11:$CR$11,0))/100000,\"\")","v":""},{"$f":"IFERROR(CD87*INDEX('Energy Prices'!$F$12:$CR$17,MATCH('Data Input - BAU'!$D95,'Energy Prices'!$C$12:$C$17,0),MATCH('Data Input - BAU'!CD$7,'Energy Prices'!$F$11:$CR$11,0))/100000,\"\")","v":""},{"$f":"IFERROR(CE87*INDEX('Energy Prices'!$F$12:$CR$17,MATCH('Data Input - BAU'!$D95,'Energy Prices'!$C$12:$C$17,0),MATCH('Data Input - BAU'!CE$7,'Energy Prices'!$F$11:$CR$11,0))/100000,\"\")","v":""},{"$f":"IFERROR(CF87*INDEX('Energy Prices'!$F$12:$CR$17,MATCH('Data Input - BAU'!$D95,'Energy Prices'!$C$12:$C$17,0),MATCH('Data Input - BAU'!CF$7,'Energy Prices'!$F$11:$CR$11,0))/100000,\"\")","v":""},{"$f":"IFERROR(CG87*INDEX('Energy Prices'!$F$12:$CR$17,MATCH('Data Input - BAU'!$D95,'Energy Prices'!$C$12:$C$17,0),MATCH('Data Input - BAU'!CG$7,'Energy Prices'!$F$11:$CR$11,0))/100000,\"\")","v":""},{"$f":"IFERROR(CH87*INDEX('Energy Prices'!$F$12:$CR$17,MATCH('Data Input - BAU'!$D95,'Energy Prices'!$C$12:$C$17,0),MATCH('Data Input - BAU'!CH$7,'Energy Prices'!$F$11:$CR$11,0))/100000,\"\")","v":""},{"$f":"IFERROR(CI87*INDEX('Energy Prices'!$F$12:$CR$17,MATCH('Data Input - BAU'!$D95,'Energy Prices'!$C$12:$C$17,0),MATCH('Data Input - BAU'!CI$7,'Energy Prices'!$F$11:$CR$11,0))/100000,\"\")","v":""},{"$f":"IFERROR(CJ87*INDEX('Energy Prices'!$F$12:$CR$17,MATCH('Data Input - BAU'!$D95,'Energy Prices'!$C$12:$C$17,0),MATCH('Data Input - BAU'!CJ$7,'Energy Prices'!$F$11:$CR$11,0))/100000,\"\")","v":""},{"$f":"IFERROR(CK87*INDEX('Energy Prices'!$F$12:$CR$17,MATCH('Data Input - BAU'!$D95,'Energy Prices'!$C$12:$C$17,0),MATCH('Data Input - BAU'!CK$7,'Energy Prices'!$F$11:$CR$11,0))/100000,\"\")","v":""},{"$f":"IFERROR(CL87*INDEX('Energy Prices'!$F$12:$CR$17,MATCH('Data Input - BAU'!$D95,'Energy Prices'!$C$12:$C$17,0),MATCH('Data Input - BAU'!CL$7,'Energy Prices'!$F$11:$CR$11,0))/100000,\"\")","v":""},{"$f":"IFERROR(CM87*INDEX('Energy Prices'!$F$12:$CR$17,MATCH('Data Input - BAU'!$D95,'Energy Prices'!$C$12:$C$17,0),MATCH('Data Input - BAU'!CM$7,'Energy Prices'!$F$11:$CR$11,0))/100000,\"\")","v":""},{"$f":"IFERROR(CN87*INDEX('Energy Prices'!$F$12:$CR$17,MATCH('Data Input - BAU'!$D95,'Energy Prices'!$C$12:$C$17,0),MATCH('Data Input - BAU'!CN$7,'Energy Prices'!$F$11:$CR$11,0))/100000,\"\")","v":""},{"$f":"IFERROR(CO87*INDEX('Energy Prices'!$F$12:$CR$17,MATCH('Data Input - BAU'!$D95,'Energy Prices'!$C$12:$C$17,0),MATCH('Data Input - BAU'!CO$7,'Energy Prices'!$F$11:$CR$11,0))/100000,\"\")","v":""},{"$f":"IFERROR(CP87*INDEX('Energy Prices'!$F$12:$CR$17,MATCH('Data Input - BAU'!$D95,'Energy Prices'!$C$12:$C$17,0),MATCH('Data Input - BAU'!CP$7,'Energy Prices'!$F$11:$CR$11,0))/100000,\"\")","v":""},{"$f":"IFERROR(CQ87*INDEX('Energy Prices'!$F$12:$CR$17,MATCH('Data Input - BAU'!$D95,'Energy Prices'!$C$12:$C$17,0),MATCH('Data Input - BAU'!CQ$7,'Energy Prices'!$F$11:$CR$11,0))/100000,\"\")","v":""},{"$f":"IFERROR(CR87*INDEX('Energy Prices'!$F$12:$CR$17,MATCH('Data Input - BAU'!$D95,'Energy Prices'!$C$12:$C$17,0),MATCH('Data Input - BAU'!CR$7,'Energy Prices'!$F$11:$CR$11,0))/100000,\"\")","v":""},{"$f":"IFERROR(CS87*INDEX('Energy Prices'!$F$12:$CR$17,MATCH('Data Input - BAU'!$D95,'Energy Prices'!$C$12:$C$17,0),MATCH('Data Input - BAU'!CS$7,'Energy Prices'!$F$11:$CR$11,0))/100000,\"\")","v":""},{"$f":"IFERROR(CT87*INDEX('Energy Prices'!$F$12:$CR$17,MATCH('Data Input - BAU'!$D95,'Energy Prices'!$C$12:$C$17,0),MATCH('Data Input - BAU'!CT$7,'Energy Prices'!$F$11:$CR$11,0))/100000,\"\")","v":""},{"$f":"IFERROR(CU87*INDEX('Energy Prices'!$F$12:$CR$17,MATCH('Data Input - BAU'!$D95,'Energy Prices'!$C$12:$C$17,0),MATCH('Data Input - BAU'!CU$7,'Energy Prices'!$F$11:$CR$11,0))/100000,\"\")","v":""},{"$f":"IFERROR(CV87*INDEX('Energy Prices'!$F$12:$CR$17,MATCH('Data Input - BAU'!$D95,'Energy Prices'!$C$12:$C$17,0),MATCH('Data Input - BAU'!CV$7,'Energy Prices'!$F$11:$CR$11,0))/100000,\"\")","v":""},{"$f":"IFERROR(CW87*INDEX('Energy Prices'!$F$12:$CR$17,MATCH('Data Input - BAU'!$D95,'Energy Prices'!$C$12:$C$17,0),MATCH('Data Input - BAU'!CW$7,'Energy Prices'!$F$11:$CR$11,0))/100000,\"\")","v":""},{"$f":"IFERROR(CX87*INDEX('Energy Prices'!$F$12:$CR$17,MATCH('Data Input - BAU'!$D95,'Energy Prices'!$C$12:$C$17,0),MATCH('Data Input - BAU'!CX$7,'Energy Prices'!$F$11:$CR$11,0))/100000,\"\")","v":""},{"$f":"IFERROR(CY87*INDEX('Energy Prices'!$F$12:$CR$17,MATCH('Data Input - BAU'!$D95,'Energy Prices'!$C$12:$C$17,0),MATCH('Data Input - BAU'!CY$7,'Energy Prices'!$F$11:$CR$11,0))/100000,\"\")","v":""},{"$f":"IFERROR(CZ87*INDEX('Energy Prices'!$F$12:$CR$17,MATCH('Data Input - BAU'!$D95,'Energy Prices'!$C$12:$C$17,0),MATCH('Data Input - BAU'!CZ$7,'Energy Prices'!$F$11:$CR$11,0))/100000,\"\")","v":""},{"$f":"IFERROR(DA87*INDEX('Energy Prices'!$F$12:$CR$17,MATCH('Data Input - BAU'!$D95,'Energy Prices'!$C$12:$C$17,0),MATCH('Data Input - BAU'!DA$7,'Energy Prices'!$F$11:$CR$11,0))/100000,\"\")","v":""},{"$f":"IFERROR(DB87*INDEX('Energy Prices'!$F$12:$CR$17,MATCH('Data Input - BAU'!$D95,'Energy Prices'!$C$12:$C$17,0),MATCH('Data Input - BAU'!DB$7,'Energy Prices'!$F$11:$CR$11,0))/100000,\"\")","v":""},{"$f":"IFERROR(DC87*INDEX('Energy Prices'!$F$12:$CR$17,MATCH('Data Input - BAU'!$D95,'Energy Prices'!$C$12:$C$17,0),MATCH('Data Input - BAU'!DC$7,'Energy Prices'!$F$11:$CR$11,0))/100000,\"\")","v":""}]
[null,null,null,"Road - Petrol","£000's","(Auto calculated value)",null,{"$f":"IFERROR(H88*INDEX('Energy Prices'!$F$12:$CR$17,MATCH('Data Input - BAU'!$D96,'Energy Prices'!$C$12:$C$17,0),MATCH('Data Input - BAU'!H$7,'Energy Prices'!$F$11:$CR$11,0))/100000,\"\")","v":0},{"$f":"IFERROR(I88*INDEX('Energy Prices'!$F$12:$CR$17,MATCH('Data Input - BAU'!$D96,'Energy Prices'!$C$12:$C$17,0),MATCH('Data Input - BAU'!I$7,'Energy Prices'!$F$11:$CR$11,0))/100000,\"\")","v":0},{"$f":"IFERROR(J88*INDEX('Energy Prices'!$F$12:$CR$17,MATCH('Data Input - BAU'!$D96,'Energy Prices'!$C$12:$C$17,0),MATCH('Data Input - BAU'!J$7,'Energy Prices'!$F$11:$CR$11,0))/100000,\"\")","v":0},{"$f":"IFERROR(K88*INDEX('Energy Prices'!$F$12:$CR$17,MATCH('Data Input - BAU'!$D96,'Energy Prices'!$C$12:$C$17,0),MATCH('Data Input - BAU'!K$7,'Energy Prices'!$F$11:$CR$11,0))/100000,\"\")","v":0},{"$f":"IFERROR(L88*INDEX('Energy Prices'!$F$12:$CR$17,MATCH('Data Input - BAU'!$D96,'Energy Prices'!$C$12:$C$17,0),MATCH('Data Input - BAU'!L$7,'Energy Prices'!$F$11:$CR$11,0))/100000,\"\")","v":0},{"$f":"IFERROR(M88*INDEX('Energy Prices'!$F$12:$CR$17,MATCH('Data Input - BAU'!$D96,'Energy Prices'!$C$12:$C$17,0),MATCH('Data Input - BAU'!M$7,'Energy Prices'!$F$11:$CR$11,0))/100000,\"\")","v":0},{"$f":"IFERROR(N88*INDEX('Energy Prices'!$F$12:$CR$17,MATCH('Data Input - BAU'!$D96,'Energy Prices'!$C$12:$C$17,0),MATCH('Data Input - BAU'!N$7,'Energy Prices'!$F$11:$CR$11,0))/100000,\"\")","v":0},{"$f":"IFERROR(O88*INDEX('Energy Prices'!$F$12:$CR$17,MATCH('Data Input - BAU'!$D96,'Energy Prices'!$C$12:$C$17,0),MATCH('Data Input - BAU'!O$7,'Energy Prices'!$F$11:$CR$11,0))/100000,\"\")","v":0},{"$f":"IFERROR(P88*INDEX('Energy Prices'!$F$12:$CR$17,MATCH('Data Input - BAU'!$D96,'Energy Prices'!$C$12:$C$17,0),MATCH('Data Input - BAU'!P$7,'Energy Prices'!$F$11:$CR$11,0))/100000,\"\")","v":0},{"$f":"IFERROR(Q88*INDEX('Energy Prices'!$F$12:$CR$17,MATCH('Data Input - BAU'!$D96,'Energy Prices'!$C$12:$C$17,0),MATCH('Data Input - BAU'!Q$7,'Energy Prices'!$F$11:$CR$11,0))/100000,\"\")","v":0},{"$f":"IFERROR(R88*INDEX('Energy Prices'!$F$12:$CR$17,MATCH('Data Input - BAU'!$D96,'Energy Prices'!$C$12:$C$17,0),MATCH('Data Input - BAU'!R$7,'Energy Prices'!$F$11:$CR$11,0))/100000,\"\")","v":0},{"$f":"IFERROR(S88*INDEX('Energy Prices'!$F$12:$CR$17,MATCH('Data Input - BAU'!$D96,'Energy Prices'!$C$12:$C$17,0),MATCH('Data Input - BAU'!S$7,'Energy Prices'!$F$11:$CR$11,0))/100000,\"\")","v":0},{"$f":"IFERROR(T88*INDEX('Energy Prices'!$F$12:$CR$17,MATCH('Data Input - BAU'!$D96,'Energy Prices'!$C$12:$C$17,0),MATCH('Data Input - BAU'!T$7,'Energy Prices'!$F$11:$CR$11,0))/100000,\"\")","v":0},{"$f":"IFERROR(U88*INDEX('Energy Prices'!$F$12:$CR$17,MATCH('Data Input - BAU'!$D96,'Energy Prices'!$C$12:$C$17,0),MATCH('Data Input - BAU'!U$7,'Energy Prices'!$F$11:$CR$11,0))/100000,\"\")","v":0},{"$f":"IFERROR(V88*INDEX('Energy Prices'!$F$12:$CR$17,MATCH('Data Input - BAU'!$D96,'Energy Prices'!$C$12:$C$17,0),MATCH('Data Input - BAU'!V$7,'Energy Prices'!$F$11:$CR$11,0))/100000,\"\")","v":0},{"$f":"IFERROR(W88*INDEX('Energy Prices'!$F$12:$CR$17,MATCH('Data Input - BAU'!$D96,'Energy Prices'!$C$12:$C$17,0),MATCH('Data Input - BAU'!W$7,'Energy Prices'!$F$11:$CR$11,0))/100000,\"\")","v":0},{"$f":"IFERROR(X88*INDEX('Energy Prices'!$F$12:$CR$17,MATCH('Data Input - BAU'!$D96,'Energy Prices'!$C$12:$C$17,0),MATCH('Data Input - BAU'!X$7,'Energy Prices'!$F$11:$CR$11,0))/100000,\"\")","v":0},{"$f":"IFERROR(Y88*INDEX('Energy Prices'!$F$12:$CR$17,MATCH('Data Input - BAU'!$D96,'Energy Prices'!$C$12:$C$17,0),MATCH('Data Input - BAU'!Y$7,'Energy Prices'!$F$11:$CR$11,0))/100000,\"\")","v":0},{"$f":"IFERROR(Z88*INDEX('Energy Prices'!$F$12:$CR$17,MATCH('Data Input - BAU'!$D96,'Energy Prices'!$C$12:$C$17,0),MATCH('Data Input - BAU'!Z$7,'Energy Prices'!$F$11:$CR$11,0))/100000,\"\")","v":0},{"$f":"IFERROR(AA88*INDEX('Energy Prices'!$F$12:$CR$17,MATCH('Data Input - BAU'!$D96,'Energy Prices'!$C$12:$C$17,0),MATCH('Data Input - BAU'!AA$7,'Energy Prices'!$F$11:$CR$11,0))/100000,\"\")","v":0},{"$f":"IFERROR(AB88*INDEX('Energy Prices'!$F$12:$CR$17,MATCH('Data Input - BAU'!$D96,'Energy Prices'!$C$12:$C$17,0),MATCH('Data Input - BAU'!AB$7,'Energy Prices'!$F$11:$CR$11,0))/100000,\"\")","v":0},{"$f":"IFERROR(AC88*INDEX('Energy Prices'!$F$12:$CR$17,MATCH('Data Input - BAU'!$D96,'Energy Prices'!$C$12:$C$17,0),MATCH('Data Input - BAU'!AC$7,'Energy Prices'!$F$11:$CR$11,0))/100000,\"\")","v":0},{"$f":"IFERROR(AD88*INDEX('Energy Prices'!$F$12:$CR$17,MATCH('Data Input - BAU'!$D96,'Energy Prices'!$C$12:$C$17,0),MATCH('Data Input - BAU'!AD$7,'Energy Prices'!$F$11:$CR$11,0))/100000,\"\")","v":0},{"$f":"IFERROR(AE88*INDEX('Energy Prices'!$F$12:$CR$17,MATCH('Data Input - BAU'!$D96,'Energy Prices'!$C$12:$C$17,0),MATCH('Data Input - BAU'!AE$7,'Energy Prices'!$F$11:$CR$11,0))/100000,\"\")","v":0},{"$f":"IFERROR(AF88*INDEX('Energy Prices'!$F$12:$CR$17,MATCH('Data Input - BAU'!$D96,'Energy Prices'!$C$12:$C$17,0),MATCH('Data Input - BAU'!AF$7,'Energy Prices'!$F$11:$CR$11,0))/100000,\"\")","v":0},{"$f":"IFERROR(AG88*INDEX('Energy Prices'!$F$12:$CR$17,MATCH('Data Input - BAU'!$D96,'Energy Prices'!$C$12:$C$17,0),MATCH('Data Input - BAU'!AG$7,'Energy Prices'!$F$11:$CR$11,0))/100000,\"\")","v":0},{"$f":"IFERROR(AH88*INDEX('Energy Prices'!$F$12:$CR$17,MATCH('Data Input - BAU'!$D96,'Energy Prices'!$C$12:$C$17,0),MATCH('Data Input - BAU'!AH$7,'Energy Prices'!$F$11:$CR$11,0))/100000,\"\")","v":0},{"$f":"IFERROR(AI88*INDEX('Energy Prices'!$F$12:$CR$17,MATCH('Data Input - BAU'!$D96,'Energy Prices'!$C$12:$C$17,0),MATCH('Data Input - BAU'!AI$7,'Energy Prices'!$F$11:$CR$11,0))/100000,\"\")","v":0},{"$f":"IFERROR(AJ88*INDEX('Energy Prices'!$F$12:$CR$17,MATCH('Data Input - BAU'!$D96,'Energy Prices'!$C$12:$C$17,0),MATCH('Data Input - BAU'!AJ$7,'Energy Prices'!$F$11:$CR$11,0))/100000,\"\")","v":0},{"$f":"IFERROR(AK88*INDEX('Energy Prices'!$F$12:$CR$17,MATCH('Data Input - BAU'!$D96,'Energy Prices'!$C$12:$C$17,0),MATCH('Data Input - BAU'!AK$7,'Energy Prices'!$F$11:$CR$11,0))/100000,\"\")","v":0},{"$f":"IFERROR(AL88*INDEX('Energy Prices'!$F$12:$CR$17,MATCH('Data Input - BAU'!$D96,'Energy Prices'!$C$12:$C$17,0),MATCH('Data Input - BAU'!AL$7,'Energy Prices'!$F$11:$CR$11,0))/100000,\"\")","v":0},{"$f":"IFERROR(AM88*INDEX('Energy Prices'!$F$12:$CR$17,MATCH('Data Input - BAU'!$D96,'Energy Prices'!$C$12:$C$17,0),MATCH('Data Input - BAU'!AM$7,'Energy Prices'!$F$11:$CR$11,0))/100000,\"\")","v":""},{"$f":"IFERROR(AN88*INDEX('Energy Prices'!$F$12:$CR$17,MATCH('Data Input - BAU'!$D96,'Energy Prices'!$C$12:$C$17,0),MATCH('Data Input - BAU'!AN$7,'Energy Prices'!$F$11:$CR$11,0))/100000,\"\")","v":""},{"$f":"IFERROR(AO88*INDEX('Energy Prices'!$F$12:$CR$17,MATCH('Data Input - BAU'!$D96,'Energy Prices'!$C$12:$C$17,0),MATCH('Data Input - BAU'!AO$7,'Energy Prices'!$F$11:$CR$11,0))/100000,\"\")","v":""},{"$f":"IFERROR(AP88*INDEX('Energy Prices'!$F$12:$CR$17,MATCH('Data Input - BAU'!$D96,'Energy Prices'!$C$12:$C$17,0),MATCH('Data Input - BAU'!AP$7,'Energy Prices'!$F$11:$CR$11,0))/100000,\"\")","v":""},{"$f":"IFERROR(AQ88*INDEX('Energy Prices'!$F$12:$CR$17,MATCH('Data Input - BAU'!$D96,'Energy Prices'!$C$12:$C$17,0),MATCH('Data Input - BAU'!AQ$7,'Energy Prices'!$F$11:$CR$11,0))/100000,\"\")","v":""},{"$f":"IFERROR(AR88*INDEX('Energy Prices'!$F$12:$CR$17,MATCH('Data Input - BAU'!$D96,'Energy Prices'!$C$12:$C$17,0),MATCH('Data Input - BAU'!AR$7,'Energy Prices'!$F$11:$CR$11,0))/100000,\"\")","v":""},{"$f":"IFERROR(AS88*INDEX('Energy Prices'!$F$12:$CR$17,MATCH('Data Input - BAU'!$D96,'Energy Prices'!$C$12:$C$17,0),MATCH('Data Input - BAU'!AS$7,'Energy Prices'!$F$11:$CR$11,0))/100000,\"\")","v":""},{"$f":"IFERROR(AT88*INDEX('Energy Prices'!$F$12:$CR$17,MATCH('Data Input - BAU'!$D96,'Energy Prices'!$C$12:$C$17,0),MATCH('Data Input - BAU'!AT$7,'Energy Prices'!$F$11:$CR$11,0))/100000,\"\")","v":""},{"$f":"IFERROR(AU88*INDEX('Energy Prices'!$F$12:$CR$17,MATCH('Data Input - BAU'!$D96,'Energy Prices'!$C$12:$C$17,0),MATCH('Data Input - BAU'!AU$7,'Energy Prices'!$F$11:$CR$11,0))/100000,\"\")","v":""},{"$f":"IFERROR(AV88*INDEX('Energy Prices'!$F$12:$CR$17,MATCH('Data Input - BAU'!$D96,'Energy Prices'!$C$12:$C$17,0),MATCH('Data Input - BAU'!AV$7,'Energy Prices'!$F$11:$CR$11,0))/100000,\"\")","v":""},{"$f":"IFERROR(AW88*INDEX('Energy Prices'!$F$12:$CR$17,MATCH('Data Input - BAU'!$D96,'Energy Prices'!$C$12:$C$17,0),MATCH('Data Input - BAU'!AW$7,'Energy Prices'!$F$11:$CR$11,0))/100000,\"\")","v":""},{"$f":"IFERROR(AX88*INDEX('Energy Prices'!$F$12:$CR$17,MATCH('Data Input - BAU'!$D96,'Energy Prices'!$C$12:$C$17,0),MATCH('Data Input - BAU'!AX$7,'Energy Prices'!$F$11:$CR$11,0))/100000,\"\")","v":""},{"$f":"IFERROR(AY88*INDEX('Energy Prices'!$F$12:$CR$17,MATCH('Data Input - BAU'!$D96,'Energy Prices'!$C$12:$C$17,0),MATCH('Data Input - BAU'!AY$7,'Energy Prices'!$F$11:$CR$11,0))/100000,\"\")","v":""},{"$f":"IFERROR(AZ88*INDEX('Energy Prices'!$F$12:$CR$17,MATCH('Data Input - BAU'!$D96,'Energy Prices'!$C$12:$C$17,0),MATCH('Data Input - BAU'!AZ$7,'Energy Prices'!$F$11:$CR$11,0))/100000,\"\")","v":""},{"$f":"IFERROR(BA88*INDEX('Energy Prices'!$F$12:$CR$17,MATCH('Data Input - BAU'!$D96,'Energy Prices'!$C$12:$C$17,0),MATCH('Data Input - BAU'!BA$7,'Energy Prices'!$F$11:$CR$11,0))/100000,\"\")","v":""},{"$f":"IFERROR(BB88*INDEX('Energy Prices'!$F$12:$CR$17,MATCH('Data Input - BAU'!$D96,'Energy Prices'!$C$12:$C$17,0),MATCH('Data Input - BAU'!BB$7,'Energy Prices'!$F$11:$CR$11,0))/100000,\"\")","v":""},{"$f":"IFERROR(BC88*INDEX('Energy Prices'!$F$12:$CR$17,MATCH('Data Input - BAU'!$D96,'Energy Prices'!$C$12:$C$17,0),MATCH('Data Input - BAU'!BC$7,'Energy Prices'!$F$11:$CR$11,0))/100000,\"\")","v":""},{"$f":"IFERROR(BD88*INDEX('Energy Prices'!$F$12:$CR$17,MATCH('Data Input - BAU'!$D96,'Energy Prices'!$C$12:$C$17,0),MATCH('Data Input - BAU'!BD$7,'Energy Prices'!$F$11:$CR$11,0))/100000,\"\")","v":""},{"$f":"IFERROR(BE88*INDEX('Energy Prices'!$F$12:$CR$17,MATCH('Data Input - BAU'!$D96,'Energy Prices'!$C$12:$C$17,0),MATCH('Data Input - BAU'!BE$7,'Energy Prices'!$F$11:$CR$11,0))/100000,\"\")","v":""},{"$f":"IFERROR(BF88*INDEX('Energy Prices'!$F$12:$CR$17,MATCH('Data Input - BAU'!$D96,'Energy Prices'!$C$12:$C$17,0),MATCH('Data Input - BAU'!BF$7,'Energy Prices'!$F$11:$CR$11,0))/100000,\"\")","v":""},{"$f":"IFERROR(BG88*INDEX('Energy Prices'!$F$12:$CR$17,MATCH('Data Input - BAU'!$D96,'Energy Prices'!$C$12:$C$17,0),MATCH('Data Input - BAU'!BG$7,'Energy Prices'!$F$11:$CR$11,0))/100000,\"\")","v":""},{"$f":"IFERROR(BH88*INDEX('Energy Prices'!$F$12:$CR$17,MATCH('Data Input - BAU'!$D96,'Energy Prices'!$C$12:$C$17,0),MATCH('Data Input - BAU'!BH$7,'Energy Prices'!$F$11:$CR$11,0))/100000,\"\")","v":""},{"$f":"IFERROR(BI88*INDEX('Energy Prices'!$F$12:$CR$17,MATCH('Data Input - BAU'!$D96,'Energy Prices'!$C$12:$C$17,0),MATCH('Data Input - BAU'!BI$7,'Energy Prices'!$F$11:$CR$11,0))/100000,\"\")","v":""},{"$f":"IFERROR(BJ88*INDEX('Energy Prices'!$F$12:$CR$17,MATCH('Data Input - BAU'!$D96,'Energy Prices'!$C$12:$C$17,0),MATCH('Data Input - BAU'!BJ$7,'Energy Prices'!$F$11:$CR$11,0))/100000,\"\")","v":""},{"$f":"IFERROR(BK88*INDEX('Energy Prices'!$F$12:$CR$17,MATCH('Data Input - BAU'!$D96,'Energy Prices'!$C$12:$C$17,0),MATCH('Data Input - BAU'!BK$7,'Energy Prices'!$F$11:$CR$11,0))/100000,\"\")","v":""},{"$f":"IFERROR(BL88*INDEX('Energy Prices'!$F$12:$CR$17,MATCH('Data Input - BAU'!$D96,'Energy Prices'!$C$12:$C$17,0),MATCH('Data Input - BAU'!BL$7,'Energy Prices'!$F$11:$CR$11,0))/100000,\"\")","v":""},{"$f":"IFERROR(BM88*INDEX('Energy Prices'!$F$12:$CR$17,MATCH('Data Input - BAU'!$D96,'Energy Prices'!$C$12:$C$17,0),MATCH('Data Input - BAU'!BM$7,'Energy Prices'!$F$11:$CR$11,0))/100000,\"\")","v":""},{"$f":"IFERROR(BN88*INDEX('Energy Prices'!$F$12:$CR$17,MATCH('Data Input - BAU'!$D96,'Energy Prices'!$C$12:$C$17,0),MATCH('Data Input - BAU'!BN$7,'Energy Prices'!$F$11:$CR$11,0))/100000,\"\")","v":""},{"$f":"IFERROR(BO88*INDEX('Energy Prices'!$F$12:$CR$17,MATCH('Data Input - BAU'!$D96,'Energy Prices'!$C$12:$C$17,0),MATCH('Data Input - BAU'!BO$7,'Energy Prices'!$F$11:$CR$11,0))/100000,\"\")","v":""},{"$f":"IFERROR(BP88*INDEX('Energy Prices'!$F$12:$CR$17,MATCH('Data Input - BAU'!$D96,'Energy Prices'!$C$12:$C$17,0),MATCH('Data Input - BAU'!BP$7,'Energy Prices'!$F$11:$CR$11,0))/100000,\"\")","v":""},{"$f":"IFERROR(BQ88*INDEX('Energy Prices'!$F$12:$CR$17,MATCH('Data Input - BAU'!$D96,'Energy Prices'!$C$12:$C$17,0),MATCH('Data Input - BAU'!BQ$7,'Energy Prices'!$F$11:$CR$11,0))/100000,\"\")","v":""},{"$f":"IFERROR(BR88*INDEX('Energy Prices'!$F$12:$CR$17,MATCH('Data Input - BAU'!$D96,'Energy Prices'!$C$12:$C$17,0),MATCH('Data Input - BAU'!BR$7,'Energy Prices'!$F$11:$CR$11,0))/100000,\"\")","v":""},{"$f":"IFERROR(BS88*INDEX('Energy Prices'!$F$12:$CR$17,MATCH('Data Input - BAU'!$D96,'Energy Prices'!$C$12:$C$17,0),MATCH('Data Input - BAU'!BS$7,'Energy Prices'!$F$11:$CR$11,0))/100000,\"\")","v":""},{"$f":"IFERROR(BT88*INDEX('Energy Prices'!$F$12:$CR$17,MATCH('Data Input - BAU'!$D96,'Energy Prices'!$C$12:$C$17,0),MATCH('Data Input - BAU'!BT$7,'Energy Prices'!$F$11:$CR$11,0))/100000,\"\")","v":""},{"$f":"IFERROR(BU88*INDEX('Energy Prices'!$F$12:$CR$17,MATCH('Data Input - BAU'!$D96,'Energy Prices'!$C$12:$C$17,0),MATCH('Data Input - BAU'!BU$7,'Energy Prices'!$F$11:$CR$11,0))/100000,\"\")","v":""},{"$f":"IFERROR(BV88*INDEX('Energy Prices'!$F$12:$CR$17,MATCH('Data Input - BAU'!$D96,'Energy Prices'!$C$12:$C$17,0),MATCH('Data Input - BAU'!BV$7,'Energy Prices'!$F$11:$CR$11,0))/100000,\"\")","v":""},{"$f":"IFERROR(BW88*INDEX('Energy Prices'!$F$12:$CR$17,MATCH('Data Input - BAU'!$D96,'Energy Prices'!$C$12:$C$17,0),MATCH('Data Input - BAU'!BW$7,'Energy Prices'!$F$11:$CR$11,0))/100000,\"\")","v":""},{"$f":"IFERROR(BX88*INDEX('Energy Prices'!$F$12:$CR$17,MATCH('Data Input - BAU'!$D96,'Energy Prices'!$C$12:$C$17,0),MATCH('Data Input - BAU'!BX$7,'Energy Prices'!$F$11:$CR$11,0))/100000,\"\")","v":""},{"$f":"IFERROR(BY88*INDEX('Energy Prices'!$F$12:$CR$17,MATCH('Data Input - BAU'!$D96,'Energy Prices'!$C$12:$C$17,0),MATCH('Data Input - BAU'!BY$7,'Energy Prices'!$F$11:$CR$11,0))/100000,\"\")","v":""},{"$f":"IFERROR(BZ88*INDEX('Energy Prices'!$F$12:$CR$17,MATCH('Data Input - BAU'!$D96,'Energy Prices'!$C$12:$C$17,0),MATCH('Data Input - BAU'!BZ$7,'Energy Prices'!$F$11:$CR$11,0))/100000,\"\")","v":""},{"$f":"IFERROR(CA88*INDEX('Energy Prices'!$F$12:$CR$17,MATCH('Data Input - BAU'!$D96,'Energy Prices'!$C$12:$C$17,0),MATCH('Data Input - BAU'!CA$7,'Energy Prices'!$F$11:$CR$11,0))/100000,\"\")","v":""},{"$f":"IFERROR(CB88*INDEX('Energy Prices'!$F$12:$CR$17,MATCH('Data Input - BAU'!$D96,'Energy Prices'!$C$12:$C$17,0),MATCH('Data Input - BAU'!CB$7,'Energy Prices'!$F$11:$CR$11,0))/100000,\"\")","v":""},{"$f":"IFERROR(CC88*INDEX('Energy Prices'!$F$12:$CR$17,MATCH('Data Input - BAU'!$D96,'Energy Prices'!$C$12:$C$17,0),MATCH('Data Input - BAU'!CC$7,'Energy Prices'!$F$11:$CR$11,0))/100000,\"\")","v":""},{"$f":"IFERROR(CD88*INDEX('Energy Prices'!$F$12:$CR$17,MATCH('Data Input - BAU'!$D96,'Energy Prices'!$C$12:$C$17,0),MATCH('Data Input - BAU'!CD$7,'Energy Prices'!$F$11:$CR$11,0))/100000,\"\")","v":""},{"$f":"IFERROR(CE88*INDEX('Energy Prices'!$F$12:$CR$17,MATCH('Data Input - BAU'!$D96,'Energy Prices'!$C$12:$C$17,0),MATCH('Data Input - BAU'!CE$7,'Energy Prices'!$F$11:$CR$11,0))/100000,\"\")","v":""},{"$f":"IFERROR(CF88*INDEX('Energy Prices'!$F$12:$CR$17,MATCH('Data Input - BAU'!$D96,'Energy Prices'!$C$12:$C$17,0),MATCH('Data Input - BAU'!CF$7,'Energy Prices'!$F$11:$CR$11,0))/100000,\"\")","v":""},{"$f":"IFERROR(CG88*INDEX('Energy Prices'!$F$12:$CR$17,MATCH('Data Input - BAU'!$D96,'Energy Prices'!$C$12:$C$17,0),MATCH('Data Input - BAU'!CG$7,'Energy Prices'!$F$11:$CR$11,0))/100000,\"\")","v":""},{"$f":"IFERROR(CH88*INDEX('Energy Prices'!$F$12:$CR$17,MATCH('Data Input - BAU'!$D96,'Energy Prices'!$C$12:$C$17,0),MATCH('Data Input - BAU'!CH$7,'Energy Prices'!$F$11:$CR$11,0))/100000,\"\")","v":""},{"$f":"IFERROR(CI88*INDEX('Energy Prices'!$F$12:$CR$17,MATCH('Data Input - BAU'!$D96,'Energy Prices'!$C$12:$C$17,0),MATCH('Data Input - BAU'!CI$7,'Energy Prices'!$F$11:$CR$11,0))/100000,\"\")","v":""},{"$f":"IFERROR(CJ88*INDEX('Energy Prices'!$F$12:$CR$17,MATCH('Data Input - BAU'!$D96,'Energy Prices'!$C$12:$C$17,0),MATCH('Data Input - BAU'!CJ$7,'Energy Prices'!$F$11:$CR$11,0))/100000,\"\")","v":""},{"$f":"IFERROR(CK88*INDEX('Energy Prices'!$F$12:$CR$17,MATCH('Data Input - BAU'!$D96,'Energy Prices'!$C$12:$C$17,0),MATCH('Data Input - BAU'!CK$7,'Energy Prices'!$F$11:$CR$11,0))/100000,\"\")","v":""},{"$f":"IFERROR(CL88*INDEX('Energy Prices'!$F$12:$CR$17,MATCH('Data Input - BAU'!$D96,'Energy Prices'!$C$12:$C$17,0),MATCH('Data Input - BAU'!CL$7,'Energy Prices'!$F$11:$CR$11,0))/100000,\"\")","v":""},{"$f":"IFERROR(CM88*INDEX('Energy Prices'!$F$12:$CR$17,MATCH('Data Input - BAU'!$D96,'Energy Prices'!$C$12:$C$17,0),MATCH('Data Input - BAU'!CM$7,'Energy Prices'!$F$11:$CR$11,0))/100000,\"\")","v":""},{"$f":"IFERROR(CN88*INDEX('Energy Prices'!$F$12:$CR$17,MATCH('Data Input - BAU'!$D96,'Energy Prices'!$C$12:$C$17,0),MATCH('Data Input - BAU'!CN$7,'Energy Prices'!$F$11:$CR$11,0))/100000,\"\")","v":""},{"$f":"IFERROR(CO88*INDEX('Energy Prices'!$F$12:$CR$17,MATCH('Data Input - BAU'!$D96,'Energy Prices'!$C$12:$C$17,0),MATCH('Data Input - BAU'!CO$7,'Energy Prices'!$F$11:$CR$11,0))/100000,\"\")","v":""},{"$f":"IFERROR(CP88*INDEX('Energy Prices'!$F$12:$CR$17,MATCH('Data Input - BAU'!$D96,'Energy Prices'!$C$12:$C$17,0),MATCH('Data Input - BAU'!CP$7,'Energy Prices'!$F$11:$CR$11,0))/100000,\"\")","v":""},{"$f":"IFERROR(CQ88*INDEX('Energy Prices'!$F$12:$CR$17,MATCH('Data Input - BAU'!$D96,'Energy Prices'!$C$12:$C$17,0),MATCH('Data Input - BAU'!CQ$7,'Energy Prices'!$F$11:$CR$11,0))/100000,\"\")","v":""},{"$f":"IFERROR(CR88*INDEX('Energy Prices'!$F$12:$CR$17,MATCH('Data Input - BAU'!$D96,'Energy Prices'!$C$12:$C$17,0),MATCH('Data Input - BAU'!CR$7,'Energy Prices'!$F$11:$CR$11,0))/100000,\"\")","v":""},{"$f":"IFERROR(CS88*INDEX('Energy Prices'!$F$12:$CR$17,MATCH('Data Input - BAU'!$D96,'Energy Prices'!$C$12:$C$17,0),MATCH('Data Input - BAU'!CS$7,'Energy Prices'!$F$11:$CR$11,0))/100000,\"\")","v":""},{"$f":"IFERROR(CT88*INDEX('Energy Prices'!$F$12:$CR$17,MATCH('Data Input - BAU'!$D96,'Energy Prices'!$C$12:$C$17,0),MATCH('Data Input - BAU'!CT$7,'Energy Prices'!$F$11:$CR$11,0))/100000,\"\")","v":""},{"$f":"IFERROR(CU88*INDEX('Energy Prices'!$F$12:$CR$17,MATCH('Data Input - BAU'!$D96,'Energy Prices'!$C$12:$C$17,0),MATCH('Data Input - BAU'!CU$7,'Energy Prices'!$F$11:$CR$11,0))/100000,\"\")","v":""},{"$f":"IFERROR(CV88*INDEX('Energy Prices'!$F$12:$CR$17,MATCH('Data Input - BAU'!$D96,'Energy Prices'!$C$12:$C$17,0),MATCH('Data Input - BAU'!CV$7,'Energy Prices'!$F$11:$CR$11,0))/100000,\"\")","v":""},{"$f":"IFERROR(CW88*INDEX('Energy Prices'!$F$12:$CR$17,MATCH('Data Input - BAU'!$D96,'Energy Prices'!$C$12:$C$17,0),MATCH('Data Input - BAU'!CW$7,'Energy Prices'!$F$11:$CR$11,0))/100000,\"\")","v":""},{"$f":"IFERROR(CX88*INDEX('Energy Prices'!$F$12:$CR$17,MATCH('Data Input - BAU'!$D96,'Energy Prices'!$C$12:$C$17,0),MATCH('Data Input - BAU'!CX$7,'Energy Prices'!$F$11:$CR$11,0))/100000,\"\")","v":""},{"$f":"IFERROR(CY88*INDEX('Energy Prices'!$F$12:$CR$17,MATCH('Data Input - BAU'!$D96,'Energy Prices'!$C$12:$C$17,0),MATCH('Data Input - BAU'!CY$7,'Energy Prices'!$F$11:$CR$11,0))/100000,\"\")","v":""},{"$f":"IFERROR(CZ88*INDEX('Energy Prices'!$F$12:$CR$17,MATCH('Data Input - BAU'!$D96,'Energy Prices'!$C$12:$C$17,0),MATCH('Data Input - BAU'!CZ$7,'Energy Prices'!$F$11:$CR$11,0))/100000,\"\")","v":""},{"$f":"IFERROR(DA88*INDEX('Energy Prices'!$F$12:$CR$17,MATCH('Data Input - BAU'!$D96,'Energy Prices'!$C$12:$C$17,0),MATCH('Data Input - BAU'!DA$7,'Energy Prices'!$F$11:$CR$11,0))/100000,\"\")","v":""},{"$f":"IFERROR(DB88*INDEX('Energy Prices'!$F$12:$CR$17,MATCH('Data Input - BAU'!$D96,'Energy Prices'!$C$12:$C$17,0),MATCH('Data Input - BAU'!DB$7,'Energy Prices'!$F$11:$CR$11,0))/100000,\"\")","v":""},{"$f":"IFERROR(DC88*INDEX('Energy Prices'!$F$12:$CR$17,MATCH('Data Input - BAU'!$D96,'Energy Prices'!$C$12:$C$17,0),MATCH('Data Input - BAU'!DC$7,'Energy Prices'!$F$11:$CR$11,0))/100000,\"\")","v":""}]
[null,null,null,"Road - Diesel","£000's","(Auto calculated value)",null,{"$f":"IFERROR(H89*INDEX('Energy Prices'!$F$12:$CR$17,MATCH('Data Input - BAU'!$D97,'Energy Prices'!$C$12:$C$17,0),MATCH('Data Input - BAU'!H$7,'Energy Prices'!$F$11:$CR$11,0))/100000,\"\")","v":0},{"$f":"IFERROR(I89*INDEX('Energy Prices'!$F$12:$CR$17,MATCH('Data Input - BAU'!$D97,'Energy Prices'!$C$12:$C$17,0),MATCH('Data Input - BAU'!I$7,'Energy Prices'!$F$11:$CR$11,0))/100000,\"\")","v":0},{"$f":"IFERROR(J89*INDEX('Energy Prices'!$F$12:$CR$17,MATCH('Data Input - BAU'!$D97,'Energy Prices'!$C$12:$C$17,0),MATCH('Data Input - BAU'!J$7,'Energy Prices'!$F$11:$CR$11,0))/100000,\"\")","v":0},{"$f":"IFERROR(K89*INDEX('Energy Prices'!$F$12:$CR$17,MATCH('Data Input - BAU'!$D97,'Energy Prices'!$C$12:$C$17,0),MATCH('Data Input - BAU'!K$7,'Energy Prices'!$F$11:$CR$11,0))/100000,\"\")","v":0},{"$f":"IFERROR(L89*INDEX('Energy Prices'!$F$12:$CR$17,MATCH('Data Input - BAU'!$D97,'Energy Prices'!$C$12:$C$17,0),MATCH('Data Input - BAU'!L$7,'Energy Prices'!$F$11:$CR$11,0))/100000,\"\")","v":0},{"$f":"IFERROR(M89*INDEX('Energy Prices'!$F$12:$CR$17,MATCH('Data Input - BAU'!$D97,'Energy Prices'!$C$12:$C$17,0),MATCH('Data Input - BAU'!M$7,'Energy Prices'!$F$11:$CR$11,0))/100000,\"\")","v":0},{"$f":"IFERROR(N89*INDEX('Energy Prices'!$F$12:$CR$17,MATCH('Data Input - BAU'!$D97,'Energy Prices'!$C$12:$C$17,0),MATCH('Data Input - BAU'!N$7,'Energy Prices'!$F$11:$CR$11,0))/100000,\"\")","v":0},{"$f":"IFERROR(O89*INDEX('Energy Prices'!$F$12:$CR$17,MATCH('Data Input - BAU'!$D97,'Energy Prices'!$C$12:$C$17,0),MATCH('Data Input - BAU'!O$7,'Energy Prices'!$F$11:$CR$11,0))/100000,\"\")","v":0},{"$f":"IFERROR(P89*INDEX('Energy Prices'!$F$12:$CR$17,MATCH('Data Input - BAU'!$D97,'Energy Prices'!$C$12:$C$17,0),MATCH('Data Input - BAU'!P$7,'Energy Prices'!$F$11:$CR$11,0))/100000,\"\")","v":0},{"$f":"IFERROR(Q89*INDEX('Energy Prices'!$F$12:$CR$17,MATCH('Data Input - BAU'!$D97,'Energy Prices'!$C$12:$C$17,0),MATCH('Data Input - BAU'!Q$7,'Energy Prices'!$F$11:$CR$11,0))/100000,\"\")","v":0},{"$f":"IFERROR(R89*INDEX('Energy Prices'!$F$12:$CR$17,MATCH('Data Input - BAU'!$D97,'Energy Prices'!$C$12:$C$17,0),MATCH('Data Input - BAU'!R$7,'Energy Prices'!$F$11:$CR$11,0))/100000,\"\")","v":0},{"$f":"IFERROR(S89*INDEX('Energy Prices'!$F$12:$CR$17,MATCH('Data Input - BAU'!$D97,'Energy Prices'!$C$12:$C$17,0),MATCH('Data Input - BAU'!S$7,'Energy Prices'!$F$11:$CR$11,0))/100000,\"\")","v":0},{"$f":"IFERROR(T89*INDEX('Energy Prices'!$F$12:$CR$17,MATCH('Data Input - BAU'!$D97,'Energy Prices'!$C$12:$C$17,0),MATCH('Data Input - BAU'!T$7,'Energy Prices'!$F$11:$CR$11,0))/100000,\"\")","v":0},{"$f":"IFERROR(U89*INDEX('Energy Prices'!$F$12:$CR$17,MATCH('Data Input - BAU'!$D97,'Energy Prices'!$C$12:$C$17,0),MATCH('Data Input - BAU'!U$7,'Energy Prices'!$F$11:$CR$11,0))/100000,\"\")","v":0},{"$f":"IFERROR(V89*INDEX('Energy Prices'!$F$12:$CR$17,MATCH('Data Input - BAU'!$D97,'Energy Prices'!$C$12:$C$17,0),MATCH('Data Input - BAU'!V$7,'Energy Prices'!$F$11:$CR$11,0))/100000,\"\")","v":0},{"$f":"IFERROR(W89*INDEX('Energy Prices'!$F$12:$CR$17,MATCH('Data Input - BAU'!$D97,'Energy Prices'!$C$12:$C$17,0),MATCH('Data Input - BAU'!W$7,'Energy Prices'!$F$11:$CR$11,0))/100000,\"\")","v":0},{"$f":"IFERROR(X89*INDEX('Energy Prices'!$F$12:$CR$17,MATCH('Data Input - BAU'!$D97,'Energy Prices'!$C$12:$C$17,0),MATCH('Data Input - BAU'!X$7,'Energy Prices'!$F$11:$CR$11,0))/100000,\"\")","v":0},{"$f":"IFERROR(Y89*INDEX('Energy Prices'!$F$12:$CR$17,MATCH('Data Input - BAU'!$D97,'Energy Prices'!$C$12:$C$17,0),MATCH('Data Input - BAU'!Y$7,'Energy Prices'!$F$11:$CR$11,0))/100000,\"\")","v":0},{"$f":"IFERROR(Z89*INDEX('Energy Prices'!$F$12:$CR$17,MATCH('Data Input - BAU'!$D97,'Energy Prices'!$C$12:$C$17,0),MATCH('Data Input - BAU'!Z$7,'Energy Prices'!$F$11:$CR$11,0))/100000,\"\")","v":0},{"$f":"IFERROR(AA89*INDEX('Energy Prices'!$F$12:$CR$17,MATCH('Data Input - BAU'!$D97,'Energy Prices'!$C$12:$C$17,0),MATCH('Data Input - BAU'!AA$7,'Energy Prices'!$F$11:$CR$11,0))/100000,\"\")","v":0},{"$f":"IFERROR(AB89*INDEX('Energy Prices'!$F$12:$CR$17,MATCH('Data Input - BAU'!$D97,'Energy Prices'!$C$12:$C$17,0),MATCH('Data Input - BAU'!AB$7,'Energy Prices'!$F$11:$CR$11,0))/100000,\"\")","v":0},{"$f":"IFERROR(AC89*INDEX('Energy Prices'!$F$12:$CR$17,MATCH('Data Input - BAU'!$D97,'Energy Prices'!$C$12:$C$17,0),MATCH('Data Input - BAU'!AC$7,'Energy Prices'!$F$11:$CR$11,0))/100000,\"\")","v":0},{"$f":"IFERROR(AD89*INDEX('Energy Prices'!$F$12:$CR$17,MATCH('Data Input - BAU'!$D97,'Energy Prices'!$C$12:$C$17,0),MATCH('Data Input - BAU'!AD$7,'Energy Prices'!$F$11:$CR$11,0))/100000,\"\")","v":0},{"$f":"IFERROR(AE89*INDEX('Energy Prices'!$F$12:$CR$17,MATCH('Data Input - BAU'!$D97,'Energy Prices'!$C$12:$C$17,0),MATCH('Data Input - BAU'!AE$7,'Energy Prices'!$F$11:$CR$11,0))/100000,\"\")","v":0},{"$f":"IFERROR(AF89*INDEX('Energy Prices'!$F$12:$CR$17,MATCH('Data Input - BAU'!$D97,'Energy Prices'!$C$12:$C$17,0),MATCH('Data Input - BAU'!AF$7,'Energy Prices'!$F$11:$CR$11,0))/100000,\"\")","v":0},{"$f":"IFERROR(AG89*INDEX('Energy Prices'!$F$12:$CR$17,MATCH('Data Input - BAU'!$D97,'Energy Prices'!$C$12:$C$17,0),MATCH('Data Input - BAU'!AG$7,'Energy Prices'!$F$11:$CR$11,0))/100000,\"\")","v":0},{"$f":"IFERROR(AH89*INDEX('Energy Prices'!$F$12:$CR$17,MATCH('Data Input - BAU'!$D97,'Energy Prices'!$C$12:$C$17,0),MATCH('Data Input - BAU'!AH$7,'Energy Prices'!$F$11:$CR$11,0))/100000,\"\")","v":0},{"$f":"IFERROR(AI89*INDEX('Energy Prices'!$F$12:$CR$17,MATCH('Data Input - BAU'!$D97,'Energy Prices'!$C$12:$C$17,0),MATCH('Data Input - BAU'!AI$7,'Energy Prices'!$F$11:$CR$11,0))/100000,\"\")","v":0},{"$f":"IFERROR(AJ89*INDEX('Energy Prices'!$F$12:$CR$17,MATCH('Data Input - BAU'!$D97,'Energy Prices'!$C$12:$C$17,0),MATCH('Data Input - BAU'!AJ$7,'Energy Prices'!$F$11:$CR$11,0))/100000,\"\")","v":0},{"$f":"IFERROR(AK89*INDEX('Energy Prices'!$F$12:$CR$17,MATCH('Data Input - BAU'!$D97,'Energy Prices'!$C$12:$C$17,0),MATCH('Data Input - BAU'!AK$7,'Energy Prices'!$F$11:$CR$11,0))/100000,\"\")","v":0},{"$f":"IFERROR(AL89*INDEX('Energy Prices'!$F$12:$CR$17,MATCH('Data Input - BAU'!$D97,'Energy Prices'!$C$12:$C$17,0),MATCH('Data Input - BAU'!AL$7,'Energy Prices'!$F$11:$CR$11,0))/100000,\"\")","v":0},{"$f":"IFERROR(AM89*INDEX('Energy Prices'!$F$12:$CR$17,MATCH('Data Input - BAU'!$D97,'Energy Prices'!$C$12:$C$17,0),MATCH('Data Input - BAU'!AM$7,'Energy Prices'!$F$11:$CR$11,0))/100000,\"\")","v":""},{"$f":"IFERROR(AN89*INDEX('Energy Prices'!$F$12:$CR$17,MATCH('Data Input - BAU'!$D97,'Energy Prices'!$C$12:$C$17,0),MATCH('Data Input - BAU'!AN$7,'Energy Prices'!$F$11:$CR$11,0))/100000,\"\")","v":""},{"$f":"IFERROR(AO89*INDEX('Energy Prices'!$F$12:$CR$17,MATCH('Data Input - BAU'!$D97,'Energy Prices'!$C$12:$C$17,0),MATCH('Data Input - BAU'!AO$7,'Energy Prices'!$F$11:$CR$11,0))/100000,\"\")","v":""},{"$f":"IFERROR(AP89*INDEX('Energy Prices'!$F$12:$CR$17,MATCH('Data Input - BAU'!$D97,'Energy Prices'!$C$12:$C$17,0),MATCH('Data Input - BAU'!AP$7,'Energy Prices'!$F$11:$CR$11,0))/100000,\"\")","v":""},{"$f":"IFERROR(AQ89*INDEX('Energy Prices'!$F$12:$CR$17,MATCH('Data Input - BAU'!$D97,'Energy Prices'!$C$12:$C$17,0),MATCH('Data Input - BAU'!AQ$7,'Energy Prices'!$F$11:$CR$11,0))/100000,\"\")","v":""},{"$f":"IFERROR(AR89*INDEX('Energy Prices'!$F$12:$CR$17,MATCH('Data Input - BAU'!$D97,'Energy Prices'!$C$12:$C$17,0),MATCH('Data Input - BAU'!AR$7,'Energy Prices'!$F$11:$CR$11,0))/100000,\"\")","v":""},{"$f":"IFERROR(AS89*INDEX('Energy Prices'!$F$12:$CR$17,MATCH('Data Input - BAU'!$D97,'Energy Prices'!$C$12:$C$17,0),MATCH('Data Input - BAU'!AS$7,'Energy Prices'!$F$11:$CR$11,0))/100000,\"\")","v":""},{"$f":"IFERROR(AT89*INDEX('Energy Prices'!$F$12:$CR$17,MATCH('Data Input - BAU'!$D97,'Energy Prices'!$C$12:$C$17,0),MATCH('Data Input - BAU'!AT$7,'Energy Prices'!$F$11:$CR$11,0))/100000,\"\")","v":""},{"$f":"IFERROR(AU89*INDEX('Energy Prices'!$F$12:$CR$17,MATCH('Data Input - BAU'!$D97,'Energy Prices'!$C$12:$C$17,0),MATCH('Data Input - BAU'!AU$7,'Energy Prices'!$F$11:$CR$11,0))/100000,\"\")","v":""},{"$f":"IFERROR(AV89*INDEX('Energy Prices'!$F$12:$CR$17,MATCH('Data Input - BAU'!$D97,'Energy Prices'!$C$12:$C$17,0),MATCH('Data Input - BAU'!AV$7,'Energy Prices'!$F$11:$CR$11,0))/100000,\"\")","v":""},{"$f":"IFERROR(AW89*INDEX('Energy Prices'!$F$12:$CR$17,MATCH('Data Input - BAU'!$D97,'Energy Prices'!$C$12:$C$17,0),MATCH('Data Input - BAU'!AW$7,'Energy Prices'!$F$11:$CR$11,0))/100000,\"\")","v":""},{"$f":"IFERROR(AX89*INDEX('Energy Prices'!$F$12:$CR$17,MATCH('Data Input - BAU'!$D97,'Energy Prices'!$C$12:$C$17,0),MATCH('Data Input - BAU'!AX$7,'Energy Prices'!$F$11:$CR$11,0))/100000,\"\")","v":""},{"$f":"IFERROR(AY89*INDEX('Energy Prices'!$F$12:$CR$17,MATCH('Data Input - BAU'!$D97,'Energy Prices'!$C$12:$C$17,0),MATCH('Data Input - BAU'!AY$7,'Energy Prices'!$F$11:$CR$11,0))/100000,\"\")","v":""},{"$f":"IFERROR(AZ89*INDEX('Energy Prices'!$F$12:$CR$17,MATCH('Data Input - BAU'!$D97,'Energy Prices'!$C$12:$C$17,0),MATCH('Data Input - BAU'!AZ$7,'Energy Prices'!$F$11:$CR$11,0))/100000,\"\")","v":""},{"$f":"IFERROR(BA89*INDEX('Energy Prices'!$F$12:$CR$17,MATCH('Data Input - BAU'!$D97,'Energy Prices'!$C$12:$C$17,0),MATCH('Data Input - BAU'!BA$7,'Energy Prices'!$F$11:$CR$11,0))/100000,\"\")","v":""},{"$f":"IFERROR(BB89*INDEX('Energy Prices'!$F$12:$CR$17,MATCH('Data Input - BAU'!$D97,'Energy Prices'!$C$12:$C$17,0),MATCH('Data Input - BAU'!BB$7,'Energy Prices'!$F$11:$CR$11,0))/100000,\"\")","v":""},{"$f":"IFERROR(BC89*INDEX('Energy Prices'!$F$12:$CR$17,MATCH('Data Input - BAU'!$D97,'Energy Prices'!$C$12:$C$17,0),MATCH('Data Input - BAU'!BC$7,'Energy Prices'!$F$11:$CR$11,0))/100000,\"\")","v":""},{"$f":"IFERROR(BD89*INDEX('Energy Prices'!$F$12:$CR$17,MATCH('Data Input - BAU'!$D97,'Energy Prices'!$C$12:$C$17,0),MATCH('Data Input - BAU'!BD$7,'Energy Prices'!$F$11:$CR$11,0))/100000,\"\")","v":""},{"$f":"IFERROR(BE89*INDEX('Energy Prices'!$F$12:$CR$17,MATCH('Data Input - BAU'!$D97,'Energy Prices'!$C$12:$C$17,0),MATCH('Data Input - BAU'!BE$7,'Energy Prices'!$F$11:$CR$11,0))/100000,\"\")","v":""},{"$f":"IFERROR(BF89*INDEX('Energy Prices'!$F$12:$CR$17,MATCH('Data Input - BAU'!$D97,'Energy Prices'!$C$12:$C$17,0),MATCH('Data Input - BAU'!BF$7,'Energy Prices'!$F$11:$CR$11,0))/100000,\"\")","v":""},{"$f":"IFERROR(BG89*INDEX('Energy Prices'!$F$12:$CR$17,MATCH('Data Input - BAU'!$D97,'Energy Prices'!$C$12:$C$17,0),MATCH('Data Input - BAU'!BG$7,'Energy Prices'!$F$11:$CR$11,0))/100000,\"\")","v":""},{"$f":"IFERROR(BH89*INDEX('Energy Prices'!$F$12:$CR$17,MATCH('Data Input - BAU'!$D97,'Energy Prices'!$C$12:$C$17,0),MATCH('Data Input - BAU'!BH$7,'Energy Prices'!$F$11:$CR$11,0))/100000,\"\")","v":""},{"$f":"IFERROR(BI89*INDEX('Energy Prices'!$F$12:$CR$17,MATCH('Data Input - BAU'!$D97,'Energy Prices'!$C$12:$C$17,0),MATCH('Data Input - BAU'!BI$7,'Energy Prices'!$F$11:$CR$11,0))/100000,\"\")","v":""},{"$f":"IFERROR(BJ89*INDEX('Energy Prices'!$F$12:$CR$17,MATCH('Data Input - BAU'!$D97,'Energy Prices'!$C$12:$C$17,0),MATCH('Data Input - BAU'!BJ$7,'Energy Prices'!$F$11:$CR$11,0))/100000,\"\")","v":""},{"$f":"IFERROR(BK89*INDEX('Energy Prices'!$F$12:$CR$17,MATCH('Data Input - BAU'!$D97,'Energy Prices'!$C$12:$C$17,0),MATCH('Data Input - BAU'!BK$7,'Energy Prices'!$F$11:$CR$11,0))/100000,\"\")","v":""},{"$f":"IFERROR(BL89*INDEX('Energy Prices'!$F$12:$CR$17,MATCH('Data Input - BAU'!$D97,'Energy Prices'!$C$12:$C$17,0),MATCH('Data Input - BAU'!BL$7,'Energy Prices'!$F$11:$CR$11,0))/100000,\"\")","v":""},{"$f":"IFERROR(BM89*INDEX('Energy Prices'!$F$12:$CR$17,MATCH('Data Input - BAU'!$D97,'Energy Prices'!$C$12:$C$17,0),MATCH('Data Input - BAU'!BM$7,'Energy Prices'!$F$11:$CR$11,0))/100000,\"\")","v":""},{"$f":"IFERROR(BN89*INDEX('Energy Prices'!$F$12:$CR$17,MATCH('Data Input - BAU'!$D97,'Energy Prices'!$C$12:$C$17,0),MATCH('Data Input - BAU'!BN$7,'Energy Prices'!$F$11:$CR$11,0))/100000,\"\")","v":""},{"$f":"IFERROR(BO89*INDEX('Energy Prices'!$F$12:$CR$17,MATCH('Data Input - BAU'!$D97,'Energy Prices'!$C$12:$C$17,0),MATCH('Data Input - BAU'!BO$7,'Energy Prices'!$F$11:$CR$11,0))/100000,\"\")","v":""},{"$f":"IFERROR(BP89*INDEX('Energy Prices'!$F$12:$CR$17,MATCH('Data Input - BAU'!$D97,'Energy Prices'!$C$12:$C$17,0),MATCH('Data Input - BAU'!BP$7,'Energy Prices'!$F$11:$CR$11,0))/100000,\"\")","v":""},{"$f":"IFERROR(BQ89*INDEX('Energy Prices'!$F$12:$CR$17,MATCH('Data Input - BAU'!$D97,'Energy Prices'!$C$12:$C$17,0),MATCH('Data Input - BAU'!BQ$7,'Energy Prices'!$F$11:$CR$11,0))/100000,\"\")","v":""},{"$f":"IFERROR(BR89*INDEX('Energy Prices'!$F$12:$CR$17,MATCH('Data Input - BAU'!$D97,'Energy Prices'!$C$12:$C$17,0),MATCH('Data Input - BAU'!BR$7,'Energy Prices'!$F$11:$CR$11,0))/100000,\"\")","v":""},{"$f":"IFERROR(BS89*INDEX('Energy Prices'!$F$12:$CR$17,MATCH('Data Input - BAU'!$D97,'Energy Prices'!$C$12:$C$17,0),MATCH('Data Input - BAU'!BS$7,'Energy Prices'!$F$11:$CR$11,0))/100000,\"\")","v":""},{"$f":"IFERROR(BT89*INDEX('Energy Prices'!$F$12:$CR$17,MATCH('Data Input - BAU'!$D97,'Energy Prices'!$C$12:$C$17,0),MATCH('Data Input - BAU'!BT$7,'Energy Prices'!$F$11:$CR$11,0))/100000,\"\")","v":""},{"$f":"IFERROR(BU89*INDEX('Energy Prices'!$F$12:$CR$17,MATCH('Data Input - BAU'!$D97,'Energy Prices'!$C$12:$C$17,0),MATCH('Data Input - BAU'!BU$7,'Energy Prices'!$F$11:$CR$11,0))/100000,\"\")","v":""},{"$f":"IFERROR(BV89*INDEX('Energy Prices'!$F$12:$CR$17,MATCH('Data Input - BAU'!$D97,'Energy Prices'!$C$12:$C$17,0),MATCH('Data Input - BAU'!BV$7,'Energy Prices'!$F$11:$CR$11,0))/100000,\"\")","v":""},{"$f":"IFERROR(BW89*INDEX('Energy Prices'!$F$12:$CR$17,MATCH('Data Input - BAU'!$D97,'Energy Prices'!$C$12:$C$17,0),MATCH('Data Input - BAU'!BW$7,'Energy Prices'!$F$11:$CR$11,0))/100000,\"\")","v":""},{"$f":"IFERROR(BX89*INDEX('Energy Prices'!$F$12:$CR$17,MATCH('Data Input - BAU'!$D97,'Energy Prices'!$C$12:$C$17,0),MATCH('Data Input - BAU'!BX$7,'Energy Prices'!$F$11:$CR$11,0))/100000,\"\")","v":""},{"$f":"IFERROR(BY89*INDEX('Energy Prices'!$F$12:$CR$17,MATCH('Data Input - BAU'!$D97,'Energy Prices'!$C$12:$C$17,0),MATCH('Data Input - BAU'!BY$7,'Energy Prices'!$F$11:$CR$11,0))/100000,\"\")","v":""},{"$f":"IFERROR(BZ89*INDEX('Energy Prices'!$F$12:$CR$17,MATCH('Data Input - BAU'!$D97,'Energy Prices'!$C$12:$C$17,0),MATCH('Data Input - BAU'!BZ$7,'Energy Prices'!$F$11:$CR$11,0))/100000,\"\")","v":""},{"$f":"IFERROR(CA89*INDEX('Energy Prices'!$F$12:$CR$17,MATCH('Data Input - BAU'!$D97,'Energy Prices'!$C$12:$C$17,0),MATCH('Data Input - BAU'!CA$7,'Energy Prices'!$F$11:$CR$11,0))/100000,\"\")","v":""},{"$f":"IFERROR(CB89*INDEX('Energy Prices'!$F$12:$CR$17,MATCH('Data Input - BAU'!$D97,'Energy Prices'!$C$12:$C$17,0),MATCH('Data Input - BAU'!CB$7,'Energy Prices'!$F$11:$CR$11,0))/100000,\"\")","v":""},{"$f":"IFERROR(CC89*INDEX('Energy Prices'!$F$12:$CR$17,MATCH('Data Input - BAU'!$D97,'Energy Prices'!$C$12:$C$17,0),MATCH('Data Input - BAU'!CC$7,'Energy Prices'!$F$11:$CR$11,0))/100000,\"\")","v":""},{"$f":"IFERROR(CD89*INDEX('Energy Prices'!$F$12:$CR$17,MATCH('Data Input - BAU'!$D97,'Energy Prices'!$C$12:$C$17,0),MATCH('Data Input - BAU'!CD$7,'Energy Prices'!$F$11:$CR$11,0))/100000,\"\")","v":""},{"$f":"IFERROR(CE89*INDEX('Energy Prices'!$F$12:$CR$17,MATCH('Data Input - BAU'!$D97,'Energy Prices'!$C$12:$C$17,0),MATCH('Data Input - BAU'!CE$7,'Energy Prices'!$F$11:$CR$11,0))/100000,\"\")","v":""},{"$f":"IFERROR(CF89*INDEX('Energy Prices'!$F$12:$CR$17,MATCH('Data Input - BAU'!$D97,'Energy Prices'!$C$12:$C$17,0),MATCH('Data Input - BAU'!CF$7,'Energy Prices'!$F$11:$CR$11,0))/100000,\"\")","v":""},{"$f":"IFERROR(CG89*INDEX('Energy Prices'!$F$12:$CR$17,MATCH('Data Input - BAU'!$D97,'Energy Prices'!$C$12:$C$17,0),MATCH('Data Input - BAU'!CG$7,'Energy Prices'!$F$11:$CR$11,0))/100000,\"\")","v":""},{"$f":"IFERROR(CH89*INDEX('Energy Prices'!$F$12:$CR$17,MATCH('Data Input - BAU'!$D97,'Energy Prices'!$C$12:$C$17,0),MATCH('Data Input - BAU'!CH$7,'Energy Prices'!$F$11:$CR$11,0))/100000,\"\")","v":""},{"$f":"IFERROR(CI89*INDEX('Energy Prices'!$F$12:$CR$17,MATCH('Data Input - BAU'!$D97,'Energy Prices'!$C$12:$C$17,0),MATCH('Data Input - BAU'!CI$7,'Energy Prices'!$F$11:$CR$11,0))/100000,\"\")","v":""},{"$f":"IFERROR(CJ89*INDEX('Energy Prices'!$F$12:$CR$17,MATCH('Data Input - BAU'!$D97,'Energy Prices'!$C$12:$C$17,0),MATCH('Data Input - BAU'!CJ$7,'Energy Prices'!$F$11:$CR$11,0))/100000,\"\")","v":""},{"$f":"IFERROR(CK89*INDEX('Energy Prices'!$F$12:$CR$17,MATCH('Data Input - BAU'!$D97,'Energy Prices'!$C$12:$C$17,0),MATCH('Data Input - BAU'!CK$7,'Energy Prices'!$F$11:$CR$11,0))/100000,\"\")","v":""},{"$f":"IFERROR(CL89*INDEX('Energy Prices'!$F$12:$CR$17,MATCH('Data Input - BAU'!$D97,'Energy Prices'!$C$12:$C$17,0),MATCH('Data Input - BAU'!CL$7,'Energy Prices'!$F$11:$CR$11,0))/100000,\"\")","v":""},{"$f":"IFERROR(CM89*INDEX('Energy Prices'!$F$12:$CR$17,MATCH('Data Input - BAU'!$D97,'Energy Prices'!$C$12:$C$17,0),MATCH('Data Input - BAU'!CM$7,'Energy Prices'!$F$11:$CR$11,0))/100000,\"\")","v":""},{"$f":"IFERROR(CN89*INDEX('Energy Prices'!$F$12:$CR$17,MATCH('Data Input - BAU'!$D97,'Energy Prices'!$C$12:$C$17,0),MATCH('Data Input - BAU'!CN$7,'Energy Prices'!$F$11:$CR$11,0))/100000,\"\")","v":""},{"$f":"IFERROR(CO89*INDEX('Energy Prices'!$F$12:$CR$17,MATCH('Data Input - BAU'!$D97,'Energy Prices'!$C$12:$C$17,0),MATCH('Data Input - BAU'!CO$7,'Energy Prices'!$F$11:$CR$11,0))/100000,\"\")","v":""},{"$f":"IFERROR(CP89*INDEX('Energy Prices'!$F$12:$CR$17,MATCH('Data Input - BAU'!$D97,'Energy Prices'!$C$12:$C$17,0),MATCH('Data Input - BAU'!CP$7,'Energy Prices'!$F$11:$CR$11,0))/100000,\"\")","v":""},{"$f":"IFERROR(CQ89*INDEX('Energy Prices'!$F$12:$CR$17,MATCH('Data Input - BAU'!$D97,'Energy Prices'!$C$12:$C$17,0),MATCH('Data Input - BAU'!CQ$7,'Energy Prices'!$F$11:$CR$11,0))/100000,\"\")","v":""},{"$f":"IFERROR(CR89*INDEX('Energy Prices'!$F$12:$CR$17,MATCH('Data Input - BAU'!$D97,'Energy Prices'!$C$12:$C$17,0),MATCH('Data Input - BAU'!CR$7,'Energy Prices'!$F$11:$CR$11,0))/100000,\"\")","v":""},{"$f":"IFERROR(CS89*INDEX('Energy Prices'!$F$12:$CR$17,MATCH('Data Input - BAU'!$D97,'Energy Prices'!$C$12:$C$17,0),MATCH('Data Input - BAU'!CS$7,'Energy Prices'!$F$11:$CR$11,0))/100000,\"\")","v":""},{"$f":"IFERROR(CT89*INDEX('Energy Prices'!$F$12:$CR$17,MATCH('Data Input - BAU'!$D97,'Energy Prices'!$C$12:$C$17,0),MATCH('Data Input - BAU'!CT$7,'Energy Prices'!$F$11:$CR$11,0))/100000,\"\")","v":""},{"$f":"IFERROR(CU89*INDEX('Energy Prices'!$F$12:$CR$17,MATCH('Data Input - BAU'!$D97,'Energy Prices'!$C$12:$C$17,0),MATCH('Data Input - BAU'!CU$7,'Energy Prices'!$F$11:$CR$11,0))/100000,\"\")","v":""},{"$f":"IFERROR(CV89*INDEX('Energy Prices'!$F$12:$CR$17,MATCH('Data Input - BAU'!$D97,'Energy Prices'!$C$12:$C$17,0),MATCH('Data Input - BAU'!CV$7,'Energy Prices'!$F$11:$CR$11,0))/100000,\"\")","v":""},{"$f":"IFERROR(CW89*INDEX('Energy Prices'!$F$12:$CR$17,MATCH('Data Input - BAU'!$D97,'Energy Prices'!$C$12:$C$17,0),MATCH('Data Input - BAU'!CW$7,'Energy Prices'!$F$11:$CR$11,0))/100000,\"\")","v":""},{"$f":"IFERROR(CX89*INDEX('Energy Prices'!$F$12:$CR$17,MATCH('Data Input - BAU'!$D97,'Energy Prices'!$C$12:$C$17,0),MATCH('Data Input - BAU'!CX$7,'Energy Prices'!$F$11:$CR$11,0))/100000,\"\")","v":""},{"$f":"IFERROR(CY89*INDEX('Energy Prices'!$F$12:$CR$17,MATCH('Data Input - BAU'!$D97,'Energy Prices'!$C$12:$C$17,0),MATCH('Data Input - BAU'!CY$7,'Energy Prices'!$F$11:$CR$11,0))/100000,\"\")","v":""},{"$f":"IFERROR(CZ89*INDEX('Energy Prices'!$F$12:$CR$17,MATCH('Data Input - BAU'!$D97,'Energy Prices'!$C$12:$C$17,0),MATCH('Data Input - BAU'!CZ$7,'Energy Prices'!$F$11:$CR$11,0))/100000,\"\")","v":""},{"$f":"IFERROR(DA89*INDEX('Energy Prices'!$F$12:$CR$17,MATCH('Data Input - BAU'!$D97,'Energy Prices'!$C$12:$C$17,0),MATCH('Data Input - BAU'!DA$7,'Energy Prices'!$F$11:$CR$11,0))/100000,\"\")","v":""},{"$f":"IFERROR(DB89*INDEX('Energy Prices'!$F$12:$CR$17,MATCH('Data Input - BAU'!$D97,'Energy Prices'!$C$12:$C$17,0),MATCH('Data Input - BAU'!DB$7,'Energy Prices'!$F$11:$CR$11,0))/100000,\"\")","v":""},{"$f":"IFERROR(DC89*INDEX('Energy Prices'!$F$12:$CR$17,MATCH('Data Input - BAU'!$D97,'Energy Prices'!$C$12:$C$17,0),MATCH('Data Input - BAU'!DC$7,'Energy Prices'!$F$11:$CR$11,0))/100000,\"\")","v":""}]
[null,null,"4.48",0,"£000's"]
[]
[null,null,null,"Total cost of energy","£000's","(Auto calculated value)",null,{"$f":"SUM(H92:H99)","v":1485.700561305305},{"$f":"SUM(I92:I99)","v":1541.531148540691},{"$f":"SUM(J92:J99)","v":1610.4918821663023},1657.4780678945503,1704.5754416158256,1776.9735001686643,1837.2202118852731,1870.4852286646578,0,0,0,0,0,0,0,0,0,0,0,0,0,0,0,0,0,0,0,0,0,0,0,0,0,0,0,0,0,0,0,0,0,0,0,0,0,0,0,0,0,0,0,0,0,0,0,0,0,0,0,0,0,0,0,0,0,0,{"$f":"SUM(BV92:BV99)","v":0},0,0,0,0,0,0,0,0,0,0,0,0,0,0,0,0,0,0,0,0,0,0,0,0,0,0,0,0,0,0,0,0,0]
[]
[null,null,"Environmental impacts"]
[]
[null,null,null,"Air pollutant emissions","(?)"]
[null,null,"4.49","Sox 2019","Tonnes"," <(Select from dropdown)",null,1,1,1,1,1,1,1]
[null,null,null,null,"Tonnes"," <(Select from dropdown)"]
[null,null,null,null,"Tonnes"," <(Select from dropdown)"]
[null,null,null,null,"Tonnes"," <(Select from dropdown)"]
[null,null,null,null,"Tonnes"," <(Select from dropdown)"]
[null,null,null,null,"Tonnes"," <(Select from dropdown)"]
[]
[null,null,null,"'Process-related' GHG emissions"]
[null,null,"4.50","CO2","Tonnes"," <(Select from dropdown)",null,45000,45000,45000,45000,45000,45000,45000]
[]
[null,null,"4.51","Additional emission type (please specify)","tCO2e","(?)"]
[]
[null,null,null,"Total process GHG Emissions","tCO2e","(Auto calculated value)",null,{"$f":"IFERROR(IF(ISBLANK(H113),0,H113*INDEX(Assumptions!$D$20:$D$53,MATCH('Data Input - BAU'!$D$113,lkpGreenHouseGases,0)))+IF(ISBLANK(H115),0,H115),0)","v":45000},{"$f":"IFERROR(IF(ISBLANK(I113),0,I113*INDEX(Assumptions!$D$20:$D$53,MATCH('Data Input - BAU'!$D$113,lkpGreenHouseGases,0)))+IF(ISBLANK(I115),0,I115),0)","v":45000},{"$f":"IFERROR(IF(ISBLANK(J113),0,J113*INDEX(Assumptions!$D$20:$D$53,MATCH('Data Input - BAU'!$D$113,lkpGreenHouseGases,0)))+IF(ISBLANK(J115),0,J115),0)","v":45000},{"$f":"IFERROR(IF(ISBLANK(K113),0,K113*INDEX(Assumptions!$D$20:$D$53,MATCH('Data Input - BAU'!$D$113,lkpGreenHouseGases,0)))+IF(ISBLANK(K115),0,K115),0)","v":45000},{"$f":"IFERROR(IF(ISBLANK(L113),0,L113*INDEX(Assumptions!$D$20:$D$53,MATCH('Data Input - BAU'!$D$113,lkpGreenHouseGases,0)))+IF(ISBLANK(L115),0,L115),0)","v":45000},{"$f":"IFERROR(IF(ISBLANK(M113),0,M113*INDEX(Assumptions!$D$20:$D$53,MATCH('Data Input - BAU'!$D$113,lkpGreenHouseGases,0)))+IF(ISBLANK(M115),0,M115),0)","v":45000},{"$f":"IFERROR(IF(ISBLANK(N113),0,N113*INDEX(Assumptions!$D$20:$D$53,MATCH('Data Input - BAU'!$D$113,lkpGreenHouseGases,0)))+IF(ISBLANK(N115),0,N115),0)","v":45000},{"$f":"IFERROR(IF(ISBLANK(O113),0,O113*INDEX(Assumptions!$D$20:$D$53,MATCH('Data Input - BAU'!$D$113,lkpGreenHouseGases,0)))+IF(ISBLANK(O115),0,O115),0)","v":0},{"$f":"IFERROR(IF(ISBLANK(P113),0,P113*INDEX(Assumptions!$D$20:$D$53,MATCH('Data Input - BAU'!$D$113,lkpGreenHouseGases,0)))+IF(ISBLANK(P115),0,P115),0)","v":0},{"$f":"IFERROR(IF(ISBLANK(Q113),0,Q113*INDEX(Assumptions!$D$20:$D$53,MATCH('Data Input - BAU'!$D$113,lkpGreenHouseGases,0)))+IF(ISBLANK(Q115),0,Q115),0)","v":0},{"$f":"IFERROR(IF(ISBLANK(R113),0,R113*INDEX(Assumptions!$D$20:$D$53,MATCH('Data Input - BAU'!$D$113,lkpGreenHouseGases,0)))+IF(ISBLANK(R115),0,R115),0)","v":0},{"$f":"IFERROR(IF(ISBLANK(S113),0,S113*INDEX(Assumptions!$D$20:$D$53,MATCH('Data Input - BAU'!$D$113,lkpGreenHouseGases,0)))+IF(ISBLANK(S115),0,S115),0)","v":0},{"$f":"IFERROR(IF(ISBLANK(T113),0,T113*INDEX(Assumptions!$D$20:$D$53,MATCH('Data Input - BAU'!$D$113,lkpGreenHouseGases,0)))+IF(ISBLANK(T115),0,T115),0)","v":0},{"$f":"IFERROR(IF(ISBLANK(U113),0,U113*INDEX(Assumptions!$D$20:$D$53,MATCH('Data Input - BAU'!$D$113,lkpGreenHouseGases,0)))+IF(ISBLANK(U115),0,U115),0)","v":0},{"$f":"IFERROR(IF(ISBLANK(V113),0,V113*INDEX(Assumptions!$D$20:$D$53,MATCH('Data Input - BAU'!$D$113,lkpGreenHouseGases,0)))+IF(ISBLANK(V115),0,V115),0)","v":0},{"$f":"IFERROR(IF(ISBLANK(W113),0,W113*INDEX(Assumptions!$D$20:$D$53,MATCH('Data Input - BAU'!$D$113,lkpGreenHouseGases,0)))+IF(ISBLANK(W115),0,W115),0)","v":0},{"$f":"IFERROR(IF(ISBLANK(X113),0,X113*INDEX(Assumptions!$D$20:$D$53,MATCH('Data Input - BAU'!$D$113,lkpGreenHouseGases,0)))+IF(ISBLANK(X115),0,X115),0)","v":0},{"$f":"IFERROR(IF(ISBLANK(Y113),0,Y113*INDEX(Assumptions!$D$20:$D$53,MATCH('Data Input - BAU'!$D$113,lkpGreenHouseGases,0)))+IF(ISBLANK(Y115),0,Y115),0)","v":0},{"$f":"IFERROR(IF(ISBLANK(Z113),0,Z113*INDEX(Assumptions!$D$20:$D$53,MATCH('Data Input - BAU'!$D$113,lkpGreenHouseGases,0)))+IF(ISBLANK(Z115),0,Z115),0)","v":0},{"$f":"IFERROR(IF(ISBLANK(AA113),0,AA113*INDEX(Assumptions!$D$20:$D$53,MATCH('Data Input - BAU'!$D$113,lkpGreenHouseGases,0)))+IF(ISBLANK(AA115),0,AA115),0)","v":0},{"$f":"IFERROR(IF(ISBLANK(AB113),0,AB113*INDEX(Assumptions!$D$20:$D$53,MATCH('Data Input - BAU'!$D$113,lkpGreenHouseGases,0)))+IF(ISBLANK(AB115),0,AB115),0)","v":0},{"$f":"IFERROR(IF(ISBLANK(AC113),0,AC113*INDEX(Assumptions!$D$20:$D$53,MATCH('Data Input - BAU'!$D$113,lkpGreenHouseGases,0)))+IF(ISBLANK(AC115),0,AC115),0)","v":0},{"$f":"IFERROR(IF(ISBLANK(AD113),0,AD113*INDEX(Assumptions!$D$20:$D$53,MATCH('Data Input - BAU'!$D$113,lkpGreenHouseGases,0)))+IF(ISBLANK(AD115),0,AD115),0)","v":0},{"$f":"IFERROR(IF(ISBLANK(AE113),0,AE113*INDEX(Assumptions!$D$20:$D$53,MATCH('Data Input - BAU'!$D$113,lkpGreenHouseGases,0)))+IF(ISBLANK(AE115),0,AE115),0)","v":0},{"$f":"IFERROR(IF(ISBLANK(AF113),0,AF113*INDEX(Assumptions!$D$20:$D$53,MATCH('Data Input - BAU'!$D$113,lkpGreenHouseGases,0)))+IF(ISBLANK(AF115),0,AF115),0)","v":0},{"$f":"IFERROR(IF(ISBLANK(AG113),0,AG113*INDEX(Assumptions!$D$20:$D$53,MATCH('Data Input - BAU'!$D$113,lkpGreenHouseGases,0)))+IF(ISBLANK(AG115),0,AG115),0)","v":0},{"$f":"IFERROR(IF(ISBLANK(AH113),0,AH113*INDEX(Assumptions!$D$20:$D$53,MATCH('Data Input - BAU'!$D$113,lkpGreenHouseGases,0)))+IF(ISBLANK(AH115),0,AH115),0)","v":0},{"$f":"IFERROR(IF(ISBLANK(AI113),0,AI113*INDEX(Assumptions!$D$20:$D$53,MATCH('Data Input - BAU'!$D$113,lkpGreenHouseGases,0)))+IF(ISBLANK(AI115),0,AI115),0)","v":0},{"$f":"IFERROR(IF(ISBLANK(AJ113),0,AJ113*INDEX(Assumptions!$D$20:$D$53,MATCH('Data Input - BAU'!$D$113,lkpGreenHouseGases,0)))+IF(ISBLANK(AJ115),0,AJ115),0)","v":0},{"$f":"IFERROR(IF(ISBLANK(AK113),0,AK113*INDEX(Assumptions!$D$20:$D$53,MATCH('Data Input - BAU'!$D$113,lkpGreenHouseGases,0)))+IF(ISBLANK(AK115),0,AK115),0)","v":0},{"$f":"IFERROR(IF(ISBLANK(AL113),0,AL113*INDEX(Assumptions!$D$20:$D$53,MATCH('Data Input - BAU'!$D$113,lkpGreenHouseGases,0)))+IF(ISBLANK(AL115),0,AL115),0)","v":0},{"$f":"IFERROR(IF(ISBLANK(AM113),0,AM113*INDEX(Assumptions!$D$20:$D$53,MATCH('Data Input - BAU'!$D$113,lkpGreenHouseGases,0)))+IF(ISBLANK(AM115),0,AM115),0)","v":0},{"$f":"IFERROR(IF(ISBLANK(AN113),0,AN113*INDEX(Assumptions!$D$20:$D$53,MATCH('Data Input - BAU'!$D$113,lkpGreenHouseGases,0)))+IF(ISBLANK(AN115),0,AN115),0)","v":0},{"$f":"IFERROR(IF(ISBLANK(AO113),0,AO113*INDEX(Assumptions!$D$20:$D$53,MATCH('Data Input - BAU'!$D$113,lkpGreenHouseGases,0)))+IF(ISBLANK(AO115),0,AO115),0)","v":0},{"$f":"IFERROR(IF(ISBLANK(AP113),0,AP113*INDEX(Assumptions!$D$20:$D$53,MATCH('Data Input - BAU'!$D$113,lkpGreenHouseGases,0)))+IF(ISBLANK(AP115),0,AP115),0)","v":0},{"$f":"IFERROR(IF(ISBLANK(AQ113),0,AQ113*INDEX(Assumptions!$D$20:$D$53,MATCH('Data Input - BAU'!$D$113,lkpGreenHouseGases,0)))+IF(ISBLANK(AQ115),0,AQ115),0)","v":0},{"$f":"IFERROR(IF(ISBLANK(AR113),0,AR113*INDEX(Assumptions!$D$20:$D$53,MATCH('Data Input - BAU'!$D$113,lkpGreenHouseGases,0)))+IF(ISBLANK(AR115),0,AR115),0)","v":0},{"$f":"IFERROR(IF(ISBLANK(AS113),0,AS113*INDEX(Assumptions!$D$20:$D$53,MATCH('Data Input - BAU'!$D$113,lkpGreenHouseGases,0)))+IF(ISBLANK(AS115),0,AS115),0)","v":0},{"$f":"IFERROR(IF(ISBLANK(AT113),0,AT113*INDEX(Assumptions!$D$20:$D$53,MATCH('Data Input - BAU'!$D$113,lkpGreenHouseGases,0)))+IF(ISBLANK(AT115),0,AT115),0)","v":0},{"$f":"IFERROR(IF(ISBLANK(AU113),0,AU113*INDEX(Assumptions!$D$20:$D$53,MATCH('Data Input - BAU'!$D$113,lkpGreenHouseGases,0)))+IF(ISBLANK(AU115),0,AU115),0)","v":0},{"$f":"IFERROR(IF(ISBLANK(AV113),0,AV113*INDEX(Assumptions!$D$20:$D$53,MATCH('Data Input - BAU'!$D$113,lkpGreenHouseGases,0)))+IF(ISBLANK(AV115),0,AV115),0)","v":0},{"$f":"IFERROR(IF(ISBLANK(AW113),0,AW113*INDEX(Assumptions!$D$20:$D$53,MATCH('Data Input - BAU'!$D$113,lkpGreenHouseGases,0)))+IF(ISBLANK(AW115),0,AW115),0)","v":0},{"$f":"IFERROR(IF(ISBLANK(AX113),0,AX113*INDEX(Assumptions!$D$20:$D$53,MATCH('Data Input - BAU'!$D$113,lkpGreenHouseGases,0)))+IF(ISBLANK(AX115),0,AX115),0)","v":0},{"$f":"IFERROR(IF(ISBLANK(AY113),0,AY113*INDEX(Assumptions!$D$20:$D$53,MATCH('Data Input - BAU'!$D$113,lkpGreenHouseGases,0)))+IF(ISBLANK(AY115),0,AY115),0)","v":0},{"$f":"IFERROR(IF(ISBLANK(AZ113),0,AZ113*INDEX(Assumptions!$D$20:$D$53,MATCH('Data Input - BAU'!$D$113,lkpGreenHouseGases,0)))+IF(ISBLANK(AZ115),0,AZ115),0)","v":0},{"$f":"IFERROR(IF(ISBLANK(BA113),0,BA113*INDEX(Assumptions!$D$20:$D$53,MATCH('Data Input - BAU'!$D$113,lkpGreenHouseGases,0)))+IF(ISBLANK(BA115),0,BA115),0)","v":0},{"$f":"IFERROR(IF(ISBLANK(BB113),0,BB113*INDEX(Assumptions!$D$20:$D$53,MATCH('Data Input - BAU'!$D$113,lkpGreenHouseGases,0)))+IF(ISBLANK(BB115),0,BB115),0)","v":0},{"$f":"IFERROR(IF(ISBLANK(BC113),0,BC113*INDEX(Assumptions!$D$20:$D$53,MATCH('Data Input - BAU'!$D$113,lkpGreenHouseGases,0)))+IF(ISBLANK(BC115),0,BC115),0)","v":0},{"$f":"IFERROR(IF(ISBLANK(BD113),0,BD113*INDEX(Assumptions!$D$20:$D$53,MATCH('Data Input - BAU'!$D$113,lkpGreenHouseGases,0)))+IF(ISBLANK(BD115),0,BD115),0)","v":0},{"$f":"IFERROR(IF(ISBLANK(BE113),0,BE113*INDEX(Assumptions!$D$20:$D$53,MATCH('Data Input - BAU'!$D$113,lkpGreenHouseGases,0)))+IF(ISBLANK(BE115),0,BE115),0)","v":0},{"$f":"IFERROR(IF(ISBLANK(BF113),0,BF113*INDEX(Assumptions!$D$20:$D$53,MATCH('Data Input - BAU'!$D$113,lkpGreenHouseGases,0)))+IF(ISBLANK(BF115),0,BF115),0)","v":0},{"$f":"IFERROR(IF(ISBLANK(BG113),0,BG113*INDEX(Assumptions!$D$20:$D$53,MATCH('Data Input - BAU'!$D$113,lkpGreenHouseGases,0)))+IF(ISBLANK(BG115),0,BG115),0)","v":0},{"$f":"IFERROR(IF(ISBLANK(BH113),0,BH113*INDEX(Assumptions!$D$20:$D$53,MATCH('Data Input - BAU'!$D$113,lkpGreenHouseGases,0)))+IF(ISBLANK(BH115),0,BH115),0)","v":0},{"$f":"IFERROR(IF(ISBLANK(BI113),0,BI113*INDEX(Assumptions!$D$20:$D$53,MATCH('Data Input - BAU'!$D$113,lkpGreenHouseGases,0)))+IF(ISBLANK(BI115),0,BI115),0)","v":0},{"$f":"IFERROR(IF(ISBLANK(BJ113),0,BJ113*INDEX(Assumptions!$D$20:$D$53,MATCH('Data Input - BAU'!$D$113,lkpGreenHouseGases,0)))+IF(ISBLANK(BJ115),0,BJ115),0)","v":0},{"$f":"IFERROR(IF(ISBLANK(BK113),0,BK113*INDEX(Assumptions!$D$20:$D$53,MATCH('Data Input - BAU'!$D$113,lkpGreenHouseGases,0)))+IF(ISBLANK(BK115),0,BK115),0)","v":0},{"$f":"IFERROR(IF(ISBLANK(BL113),0,BL113*INDEX(Assumptions!$D$20:$D$53,MATCH('Data Input - BAU'!$D$113,lkpGreenHouseGases,0)))+IF(ISBLANK(BL115),0,BL115),0)","v":0},{"$f":"IFERROR(IF(ISBLANK(BM113),0,BM113*INDEX(Assumptions!$D$20:$D$53,MATCH('Data Input - BAU'!$D$113,lkpGreenHouseGases,0)))+IF(ISBLANK(BM115),0,BM115),0)","v":0},{"$f":"IFERROR(IF(ISBLANK(BN113),0,BN113*INDEX(Assumptions!$D$20:$D$53,MATCH('Data Input - BAU'!$D$113,lkpGreenHouseGases,0)))+IF(ISBLANK(BN115),0,BN115),0)","v":0},{"$f":"IFERROR(IF(ISBLANK(BO113),0,BO113*INDEX(Assumptions!$D$20:$D$53,MATCH('Data Input - BAU'!$D$113,lkpGreenHouseGases,0)))+IF(ISBLANK(BO115),0,BO115),0)","v":0},{"$f":"IFERROR(IF(ISBLANK(BP113),0,BP113*INDEX(Assumptions!$D$20:$D$53,MATCH('Data Input - BAU'!$D$113,lkpGreenHouseGases,0)))+IF(ISBLANK(BP115),0,BP115),0)","v":0},{"$f":"IFERROR(IF(ISBLANK(BQ113),0,BQ113*INDEX(Assumptions!$D$20:$D$53,MATCH('Data Input - BAU'!$D$113,lkpGreenHouseGases,0)))+IF(ISBLANK(BQ115),0,BQ115),0)","v":0},{"$f":"IFERROR(IF(ISBLANK(BR113),0,BR113*INDEX(Assumptions!$D$20:$D$53,MATCH('Data Input - BAU'!$D$113,lkpGreenHouseGases,0)))+IF(ISBLANK(BR115),0,BR115),0)","v":0},{"$f":"IFERROR(IF(ISBLANK(BS113),0,BS113*INDEX(Assumptions!$D$20:$D$53,MATCH('Data Input - BAU'!$D$113,lkpGreenHouseGases,0)))+IF(ISBLANK(BS115),0,BS115),0)","v":0},{"$f":"IFERROR(IF(ISBLANK(BT113),0,BT113*INDEX(Assumptions!$D$20:$D$53,MATCH('Data Input - BAU'!$D$113,lkpGreenHouseGases,0)))+IF(ISBLANK(BT115),0,BT115),0)","v":0},{"$f":"IFERROR(IF(ISBLANK(BU113),0,BU113*INDEX(Assumptions!$D$20:$D$53,MATCH('Data Input - BAU'!$D$113,lkpGreenHouseGases,0)))+IF(ISBLANK(BU115),0,BU115),0)","v":0},{"$f":"IFERROR(IF(ISBLANK(BV113),0,BV113*INDEX(Assumptions!$D$20:$D$53,MATCH('Data Input - BAU'!$D$113,lkpGreenHouseGases,0)))+IF(ISBLANK(BV115),0,BV115),0)","v":0},{"$f":"IFERROR(IF(ISBLANK(BW113),0,BW113*INDEX(Assumptions!$D$20:$D$53,MATCH('Data Input - BAU'!$D$113,lkpGreenHouseGases,0)))+IF(ISBLANK(BW115),0,BW115),0)","v":0},{"$f":"IFERROR(IF(ISBLANK(BX113),0,BX113*INDEX(Assumptions!$D$20:$D$53,MATCH('Data Input - BAU'!$D$113,lkpGreenHouseGases,0)))+IF(ISBLANK(BX115),0,BX115),0)","v":0},{"$f":"IFERROR(IF(ISBLANK(BY113),0,BY113*INDEX(Assumptions!$D$20:$D$53,MATCH('Data Input - BAU'!$D$113,lkpGreenHouseGases,0)))+IF(ISBLANK(BY115),0,BY115),0)","v":0},{"$f":"IFERROR(IF(ISBLANK(BZ113),0,BZ113*INDEX(Assumptions!$D$20:$D$53,MATCH('Data Input - BAU'!$D$113,lkpGreenHouseGases,0)))+IF(ISBLANK(BZ115),0,BZ115),0)","v":0},{"$f":"IFERROR(IF(ISBLANK(CA113),0,CA113*INDEX(Assumptions!$D$20:$D$53,MATCH('Data Input - BAU'!$D$113,lkpGreenHouseGases,0)))+IF(ISBLANK(CA115),0,CA115),0)","v":0},{"$f":"IFERROR(IF(ISBLANK(CB113),0,CB113*INDEX(Assumptions!$D$20:$D$53,MATCH('Data Input - BAU'!$D$113,lkpGreenHouseGases,0)))+IF(ISBLANK(CB115),0,CB115),0)","v":0},{"$f":"IFERROR(IF(ISBLANK(CC113),0,CC113*INDEX(Assumptions!$D$20:$D$53,MATCH('Data Input - BAU'!$D$113,lkpGreenHouseGases,0)))+IF(ISBLANK(CC115),0,CC115),0)","v":0},{"$f":"IFERROR(IF(ISBLANK(CD113),0,CD113*INDEX(Assumptions!$D$20:$D$53,MATCH('Data Input - BAU'!$D$113,lkpGreenHouseGases,0)))+IF(ISBLANK(CD115),0,CD115),0)","v":0},{"$f":"IFERROR(IF(ISBLANK(CE113),0,CE113*INDEX(Assumptions!$D$20:$D$53,MATCH('Data Input - BAU'!$D$113,lkpGreenHouseGases,0)))+IF(ISBLANK(CE115),0,CE115),0)","v":0},{"$f":"IFERROR(IF(ISBLANK(CF113),0,CF113*INDEX(Assumptions!$D$20:$D$53,MATCH('Data Input - BAU'!$D$113,lkpGreenHouseGases,0)))+IF(ISBLANK(CF115),0,CF115),0)","v":0},{"$f":"IFERROR(IF(ISBLANK(CG113),0,CG113*INDEX(Assumptions!$D$20:$D$53,MATCH('Data Input - BAU'!$D$113,lkpGreenHouseGases,0)))+IF(ISBLANK(CG115),0,CG115),0)","v":0},{"$f":"IFERROR(IF(ISBLANK(CH113),0,CH113*INDEX(Assumptions!$D$20:$D$53,MATCH('Data Input - BAU'!$D$113,lkpGreenHouseGases,0)))+IF(ISBLANK(CH115),0,CH115),0)","v":0},{"$f":"IFERROR(IF(ISBLANK(CI113),0,CI113*INDEX(Assumptions!$D$20:$D$53,MATCH('Data Input - BAU'!$D$113,lkpGreenHouseGases,0)))+IF(ISBLANK(CI115),0,CI115),0)","v":0},{"$f":"IFERROR(IF(ISBLANK(CJ113),0,CJ113*INDEX(Assumptions!$D$20:$D$53,MATCH('Data Input - BAU'!$D$113,lkpGreenHouseGases,0)))+IF(ISBLANK(CJ115),0,CJ115),0)","v":0},{"$f":"IFERROR(IF(ISBLANK(CK113),0,CK113*INDEX(Assumptions!$D$20:$D$53,MATCH('Data Input - BAU'!$D$113,lkpGreenHouseGases,0)))+IF(ISBLANK(CK115),0,CK115),0)","v":0},{"$f":"IFERROR(IF(ISBLANK(CL113),0,CL113*INDEX(Assumptions!$D$20:$D$53,MATCH('Data Input - BAU'!$D$113,lkpGreenHouseGases,0)))+IF(ISBLANK(CL115),0,CL115),0)","v":0},{"$f":"IFERROR(IF(ISBLANK(CM113),0,CM113*INDEX(Assumptions!$D$20:$D$53,MATCH('Data Input - BAU'!$D$113,lkpGreenHouseGases,0)))+IF(ISBLANK(CM115),0,CM115),0)","v":0},{"$f":"IFERROR(IF(ISBLANK(CN113),0,CN113*INDEX(Assumptions!$D$20:$D$53,MATCH('Data Input - BAU'!$D$113,lkpGreenHouseGases,0)))+IF(ISBLANK(CN115),0,CN115),0)","v":0},{"$f":"IFERROR(IF(ISBLANK(CO113),0,CO113*INDEX(Assumptions!$D$20:$D$53,MATCH('Data Input - BAU'!$D$113,lkpGreenHouseGases,0)))+IF(ISBLANK(CO115),0,CO115),0)","v":0},{"$f":"IFERROR(IF(ISBLANK(CP113),0,CP113*INDEX(Assumptions!$D$20:$D$53,MATCH('Data Input - BAU'!$D$113,lkpGreenHouseGases,0)))+IF(ISBLANK(CP115),0,CP115),0)","v":0},{"$f":"IFERROR(IF(ISBLANK(CQ113),0,CQ113*INDEX(Assumptions!$D$20:$D$53,MATCH('Data Input - BAU'!$D$113,lkpGreenHouseGases,0)))+IF(ISBLANK(CQ115),0,CQ115),0)","v":0},{"$f":"IFERROR(IF(ISBLANK(CR113),0,CR113*INDEX(Assumptions!$D$20:$D$53,MATCH('Data Input - BAU'!$D$113,lkpGreenHouseGases,0)))+IF(ISBLANK(CR115),0,CR115),0)","v":0},{"$f":"IFERROR(IF(ISBLANK(CS113),0,CS113*INDEX(Assumptions!$D$20:$D$53,MATCH('Data Input - BAU'!$D$113,lkpGreenHouseGases,0)))+IF(ISBLANK(CS115),0,CS115),0)","v":0},{"$f":"IFERROR(IF(ISBLANK(CT113),0,CT113*INDEX(Assumptions!$D$20:$D$53,MATCH('Data Input - BAU'!$D$113,lkpGreenHouseGases,0)))+IF(ISBLANK(CT115),0,CT115),0)","v":0},{"$f":"IFERROR(IF(ISBLANK(CU113),0,CU113*INDEX(Assumptions!$D$20:$D$53,MATCH('Data Input - BAU'!$D$113,lkpGreenHouseGases,0)))+IF(ISBLANK(CU115),0,CU115),0)","v":0},{"$f":"IFERROR(IF(ISBLANK(CV113),0,CV113*INDEX(Assumptions!$D$20:$D$53,MATCH('Data Input - BAU'!$D$113,lkpGreenHouseGases,0)))+IF(ISBLANK(CV115),0,CV115),0)","v":0},{"$f":"IFERROR(IF(ISBLANK(CW113),0,CW113*INDEX(Assumptions!$D$20:$D$53,MATCH('Data Input - BAU'!$D$113,lkpGreenHouseGases,0)))+IF(ISBLANK(CW115),0,CW115),0)","v":0},{"$f":"IFERROR(IF(ISBLANK(CX113),0,CX113*INDEX(Assumptions!$D$20:$D$53,MATCH('Data Input - BAU'!$D$113,lkpGreenHouseGases,0)))+IF(ISBLANK(CX115),0,CX115),0)","v":0},{"$f":"IFERROR(IF(ISBLANK(CY113),0,CY113*INDEX(Assumptions!$D$20:$D$53,MATCH('Data Input - BAU'!$D$113,lkpGreenHouseGases,0)))+IF(ISBLANK(CY115),0,CY115),0)","v":0},{"$f":"IFERROR(IF(ISBLANK(CZ113),0,CZ113*INDEX(Assumptions!$D$20:$D$53,MATCH('Data Input - BAU'!$D$113,lkpGreenHouseGases,0)))+IF(ISBLANK(CZ115),0,CZ115),0)","v":0},{"$f":"IFERROR(IF(ISBLANK(DA113),0,DA113*INDEX(Assumptions!$D$20:$D$53,MATCH('Data Input - BAU'!$D$113,lkpGreenHouseGases,0)))+IF(ISBLANK(DA115),0,DA115),0)","v":0},{"$f":"IFERROR(IF(ISBLANK(DB113),0,DB113*INDEX(Assumptions!$D$20:$D$53,MATCH('Data Input - BAU'!$D$113,lkpGreenHouseGases,0)))+IF(ISBLANK(DB115),0,DB115),0)","v":0},{"$f":"IFERROR(IF(ISBLANK(DC113),0,DC113*INDEX(Assumptions!$D$20:$D$53,MATCH('Data Input - BAU'!$D$113,lkpGreenHouseGases,0)))+IF(ISBLANK(DC115),0,DC115),0)","v":0}]
[]
[null,null,null,"'Fuel-related' GHG emissions","(?)"]
[null,null,null,{"$f":"D84","v":"Electricity"},"tCO2e","(Auto calculated value)",null,{"$f":"IFERROR(H84*INDEX('Emissions factors'!$F$5:$CR$10,MATCH('Data Input - BAU'!$D120,'Emissions factors'!$C$5:$C$10,0),MATCH('Data Input - BAU'!H$7,'Emissions factors'!$F$4:$CR$4,0))/1000,0)","v":1147.9102063708638},{"$f":"IFERROR(I84*INDEX('Emissions factors'!$F$5:$CR$10,MATCH('Data Input - BAU'!$D120,'Emissions factors'!$C$5:$C$10,0),MATCH('Data Input - BAU'!I$7,'Emissions factors'!$F$4:$CR$4,0))/1000,0)","v":1022.7509038254832},{"$f":"IFERROR(J84*INDEX('Emissions factors'!$F$5:$CR$10,MATCH('Data Input - BAU'!$D120,'Emissions factors'!$C$5:$C$10,0),MATCH('Data Input - BAU'!J$7,'Emissions factors'!$F$4:$CR$4,0))/1000,0)","v":900.70523018473978},{"$f":"IFERROR(K84*INDEX('Emissions factors'!$F$5:$CR$10,MATCH('Data Input - BAU'!$D120,'Emissions factors'!$C$5:$C$10,0),MATCH('Data Input - BAU'!K$7,'Emissions factors'!$F$4:$CR$4,0))/1000,0)","v":829.51171353866823},{"$f":"IFERROR(L84*INDEX('Emissions factors'!$F$5:$CR$10,MATCH('Data Input - BAU'!$D120,'Emissions factors'!$C$5:$C$10,0),MATCH('Data Input - BAU'!L$7,'Emissions factors'!$F$4:$CR$4,0))/1000,0)","v":706.29239328079632},{"$f":"IFERROR(M84*INDEX('Emissions factors'!$F$5:$CR$10,MATCH('Data Input - BAU'!$D120,'Emissions factors'!$C$5:$C$10,0),MATCH('Data Input - BAU'!M$7,'Emissions factors'!$F$4:$CR$4,0))/1000,0)","v":741.68258779755536},{"$f":"IFERROR(N84*INDEX('Emissions factors'!$F$5:$CR$10,MATCH('Data Input - BAU'!$D120,'Emissions factors'!$C$5:$C$10,0),MATCH('Data Input - BAU'!N$7,'Emissions factors'!$F$4:$CR$4,0))/1000,0)","v":695.10356862610229},{"$f":"IFERROR(O84*INDEX('Emissions factors'!$F$5:$CR$10,MATCH('Data Input - BAU'!$D120,'Emissions factors'!$C$5:$C$10,0),MATCH('Data Input - BAU'!O$7,'Emissions factors'!$F$4:$CR$4,0))/1000,0)","v":617.9056138546847},{"$f":"IFERROR(P84*INDEX('Emissions factors'!$F$5:$CR$10,MATCH('Data Input - BAU'!$D120,'Emissions factors'!$C$5:$C$10,0),MATCH('Data Input - BAU'!P$7,'Emissions factors'!$F$4:$CR$4,0))/1000,0)","v":0},{"$f":"IFERROR(Q84*INDEX('Emissions factors'!$F$5:$CR$10,MATCH('Data Input - BAU'!$D120,'Emissions factors'!$C$5:$C$10,0),MATCH('Data Input - BAU'!Q$7,'Emissions factors'!$F$4:$CR$4,0))/1000,0)","v":0},{"$f":"IFERROR(R84*INDEX('Emissions factors'!$F$5:$CR$10,MATCH('Data Input - BAU'!$D120,'Emissions factors'!$C$5:$C$10,0),MATCH('Data Input - BAU'!R$7,'Emissions factors'!$F$4:$CR$4,0))/1000,0)","v":0},{"$f":"IFERROR(S84*INDEX('Emissions factors'!$F$5:$CR$10,MATCH('Data Input - BAU'!$D120,'Emissions factors'!$C$5:$C$10,0),MATCH('Data Input - BAU'!S$7,'Emissions factors'!$F$4:$CR$4,0))/1000,0)","v":0},{"$f":"IFERROR(T84*INDEX('Emissions factors'!$F$5:$CR$10,MATCH('Data Input - BAU'!$D120,'Emissions factors'!$C$5:$C$10,0),MATCH('Data Input - BAU'!T$7,'Emissions factors'!$F$4:$CR$4,0))/1000,0)","v":0},{"$f":"IFERROR(U84*INDEX('Emissions factors'!$F$5:$CR$10,MATCH('Data Input - BAU'!$D120,'Emissions factors'!$C$5:$C$10,0),MATCH('Data Input - BAU'!U$7,'Emissions factors'!$F$4:$CR$4,0))/1000,0)","v":0},{"$f":"IFERROR(V84*INDEX('Emissions factors'!$F$5:$CR$10,MATCH('Data Input - BAU'!$D120,'Emissions factors'!$C$5:$C$10,0),MATCH('Data Input - BAU'!V$7,'Emissions factors'!$F$4:$CR$4,0))/1000,0)","v":0},{"$f":"IFERROR(W84*INDEX('Emissions factors'!$F$5:$CR$10,MATCH('Data Input - BAU'!$D120,'Emissions factors'!$C$5:$C$10,0),MATCH('Data Input - BAU'!W$7,'Emissions factors'!$F$4:$CR$4,0))/1000,0)","v":0},{"$f":"IFERROR(X84*INDEX('Emissions factors'!$F$5:$CR$10,MATCH('Data Input - BAU'!$D120,'Emissions factors'!$C$5:$C$10,0),MATCH('Data Input - BAU'!X$7,'Emissions factors'!$F$4:$CR$4,0))/1000,0)","v":0},{"$f":"IFERROR(Y84*INDEX('Emissions factors'!$F$5:$CR$10,MATCH('Data Input - BAU'!$D120,'Emissions factors'!$C$5:$C$10,0),MATCH('Data Input - BAU'!Y$7,'Emissions factors'!$F$4:$CR$4,0))/1000,0)","v":0},{"$f":"IFERROR(Z84*INDEX('Emissions factors'!$F$5:$CR$10,MATCH('Data Input - BAU'!$D120,'Emissions factors'!$C$5:$C$10,0),MATCH('Data Input - BAU'!Z$7,'Emissions factors'!$F$4:$CR$4,0))/1000,0)","v":0},{"$f":"IFERROR(AA84*INDEX('Emissions factors'!$F$5:$CR$10,MATCH('Data Input - BAU'!$D120,'Emissions factors'!$C$5:$C$10,0),MATCH('Data Input - BAU'!AA$7,'Emissions factors'!$F$4:$CR$4,0))/1000,0)","v":0},{"$f":"IFERROR(AB84*INDEX('Emissions factors'!$F$5:$CR$10,MATCH('Data Input - BAU'!$D120,'Emissions factors'!$C$5:$C$10,0),MATCH('Data Input - BAU'!AB$7,'Emissions factors'!$F$4:$CR$4,0))/1000,0)","v":0},{"$f":"IFERROR(AC84*INDEX('Emissions factors'!$F$5:$CR$10,MATCH('Data Input - BAU'!$D120,'Emissions factors'!$C$5:$C$10,0),MATCH('Data Input - BAU'!AC$7,'Emissions factors'!$F$4:$CR$4,0))/1000,0)","v":0},{"$f":"IFERROR(AD84*INDEX('Emissions factors'!$F$5:$CR$10,MATCH('Data Input - BAU'!$D120,'Emissions factors'!$C$5:$C$10,0),MATCH('Data Input - BAU'!AD$7,'Emissions factors'!$F$4:$CR$4,0))/1000,0)","v":0},{"$f":"IFERROR(AE84*INDEX('Emissions factors'!$F$5:$CR$10,MATCH('Data Input - BAU'!$D120,'Emissions factors'!$C$5:$C$10,0),MATCH('Data Input - BAU'!AE$7,'Emissions factors'!$F$4:$CR$4,0))/1000,0)","v":0},{"$f":"IFERROR(AF84*INDEX('Emissions factors'!$F$5:$CR$10,MATCH('Data Input - BAU'!$D120,'Emissions factors'!$C$5:$C$10,0),MATCH('Data Input - BAU'!AF$7,'Emissions factors'!$F$4:$CR$4,0))/1000,0)","v":0},{"$f":"IFERROR(AG84*INDEX('Emissions factors'!$F$5:$CR$10,MATCH('Data Input - BAU'!$D120,'Emissions factors'!$C$5:$C$10,0),MATCH('Data Input - BAU'!AG$7,'Emissions factors'!$F$4:$CR$4,0))/1000,0)","v":0},{"$f":"IFERROR(AH84*INDEX('Emissions factors'!$F$5:$CR$10,MATCH('Data Input - BAU'!$D120,'Emissions factors'!$C$5:$C$10,0),MATCH('Data Input - BAU'!AH$7,'Emissions factors'!$F$4:$CR$4,0))/1000,0)","v":0},{"$f":"IFERROR(AI84*INDEX('Emissions factors'!$F$5:$CR$10,MATCH('Data Input - BAU'!$D120,'Emissions factors'!$C$5:$C$10,0),MATCH('Data Input - BAU'!AI$7,'Emissions factors'!$F$4:$CR$4,0))/1000,0)","v":0},{"$f":"IFERROR(AJ84*INDEX('Emissions factors'!$F$5:$CR$10,MATCH('Data Input - BAU'!$D120,'Emissions factors'!$C$5:$C$10,0),MATCH('Data Input - BAU'!AJ$7,'Emissions factors'!$F$4:$CR$4,0))/1000,0)","v":0},{"$f":"IFERROR(AK84*INDEX('Emissions factors'!$F$5:$CR$10,MATCH('Data Input - BAU'!$D120,'Emissions factors'!$C$5:$C$10,0),MATCH('Data Input - BAU'!AK$7,'Emissions factors'!$F$4:$CR$4,0))/1000,0)","v":0},{"$f":"IFERROR(AL84*INDEX('Emissions factors'!$F$5:$CR$10,MATCH('Data Input - BAU'!$D120,'Emissions factors'!$C$5:$C$10,0),MATCH('Data Input - BAU'!AL$7,'Emissions factors'!$F$4:$CR$4,0))/1000,0)","v":0},{"$f":"IFERROR(AM84*INDEX('Emissions factors'!$F$5:$CR$10,MATCH('Data Input - BAU'!$D120,'Emissions factors'!$C$5:$C$10,0),MATCH('Data Input - BAU'!AM$7,'Emissions factors'!$F$4:$CR$4,0))/1000,0)","v":0},{"$f":"IFERROR(AN84*INDEX('Emissions factors'!$F$5:$CR$10,MATCH('Data Input - BAU'!$D120,'Emissions factors'!$C$5:$C$10,0),MATCH('Data Input - BAU'!AN$7,'Emissions factors'!$F$4:$CR$4,0))/1000,0)","v":0},{"$f":"IFERROR(AO84*INDEX('Emissions factors'!$F$5:$CR$10,MATCH('Data Input - BAU'!$D120,'Emissions factors'!$C$5:$C$10,0),MATCH('Data Input - BAU'!AO$7,'Emissions factors'!$F$4:$CR$4,0))/1000,0)","v":0},{"$f":"IFERROR(AP84*INDEX('Emissions factors'!$F$5:$CR$10,MATCH('Data Input - BAU'!$D120,'Emissions factors'!$C$5:$C$10,0),MATCH('Data Input - BAU'!AP$7,'Emissions factors'!$F$4:$CR$4,0))/1000,0)","v":0},{"$f":"IFERROR(AQ84*INDEX('Emissions factors'!$F$5:$CR$10,MATCH('Data Input - BAU'!$D120,'Emissions factors'!$C$5:$C$10,0),MATCH('Data Input - BAU'!AQ$7,'Emissions factors'!$F$4:$CR$4,0))/1000,0)","v":0},{"$f":"IFERROR(AR84*INDEX('Emissions factors'!$F$5:$CR$10,MATCH('Data Input - BAU'!$D120,'Emissions factors'!$C$5:$C$10,0),MATCH('Data Input - BAU'!AR$7,'Emissions factors'!$F$4:$CR$4,0))/1000,0)","v":0},{"$f":"IFERROR(AS84*INDEX('Emissions factors'!$F$5:$CR$10,MATCH('Data Input - BAU'!$D120,'Emissions factors'!$C$5:$C$10,0),MATCH('Data Input - BAU'!AS$7,'Emissions factors'!$F$4:$CR$4,0))/1000,0)","v":0},{"$f":"IFERROR(AT84*INDEX('Emissions factors'!$F$5:$CR$10,MATCH('Data Input - BAU'!$D120,'Emissions factors'!$C$5:$C$10,0),MATCH('Data Input - BAU'!AT$7,'Emissions factors'!$F$4:$CR$4,0))/1000,0)","v":0},{"$f":"IFERROR(AU84*INDEX('Emissions factors'!$F$5:$CR$10,MATCH('Data Input - BAU'!$D120,'Emissions factors'!$C$5:$C$10,0),MATCH('Data Input - BAU'!AU$7,'Emissions factors'!$F$4:$CR$4,0))/1000,0)","v":0},{"$f":"IFERROR(AV84*INDEX('Emissions factors'!$F$5:$CR$10,MATCH('Data Input - BAU'!$D120,'Emissions factors'!$C$5:$C$10,0),MATCH('Data Input - BAU'!AV$7,'Emissions factors'!$F$4:$CR$4,0))/1000,0)","v":0},{"$f":"IFERROR(AW84*INDEX('Emissions factors'!$F$5:$CR$10,MATCH('Data Input - BAU'!$D120,'Emissions factors'!$C$5:$C$10,0),MATCH('Data Input - BAU'!AW$7,'Emissions factors'!$F$4:$CR$4,0))/1000,0)","v":0},{"$f":"IFERROR(AX84*INDEX('Emissions factors'!$F$5:$CR$10,MATCH('Data Input - BAU'!$D120,'Emissions factors'!$C$5:$C$10,0),MATCH('Data Input - BAU'!AX$7,'Emissions factors'!$F$4:$CR$4,0))/1000,0)","v":0},{"$f":"IFERROR(AY84*INDEX('Emissions factors'!$F$5:$CR$10,MATCH('Data Input - BAU'!$D120,'Emissions factors'!$C$5:$C$10,0),MATCH('Data Input - BAU'!AY$7,'Emissions factors'!$F$4:$CR$4,0))/1000,0)","v":0},{"$f":"IFERROR(AZ84*INDEX('Emissions factors'!$F$5:$CR$10,MATCH('Data Input - BAU'!$D120,'Emissions factors'!$C$5:$C$10,0),MATCH('Data Input - BAU'!AZ$7,'Emissions factors'!$F$4:$CR$4,0))/1000,0)","v":0},{"$f":"IFERROR(BA84*INDEX('Emissions factors'!$F$5:$CR$10,MATCH('Data Input - BAU'!$D120,'Emissions factors'!$C$5:$C$10,0),MATCH('Data Input - BAU'!BA$7,'Emissions factors'!$F$4:$CR$4,0))/1000,0)","v":0},{"$f":"IFERROR(BB84*INDEX('Emissions factors'!$F$5:$CR$10,MATCH('Data Input - BAU'!$D120,'Emissions factors'!$C$5:$C$10,0),MATCH('Data Input - BAU'!BB$7,'Emissions factors'!$F$4:$CR$4,0))/1000,0)","v":0},{"$f":"IFERROR(BC84*INDEX('Emissions factors'!$F$5:$CR$10,MATCH('Data Input - BAU'!$D120,'Emissions factors'!$C$5:$C$10,0),MATCH('Data Input - BAU'!BC$7,'Emissions factors'!$F$4:$CR$4,0))/1000,0)","v":0},{"$f":"IFERROR(BD84*INDEX('Emissions factors'!$F$5:$CR$10,MATCH('Data Input - BAU'!$D120,'Emissions factors'!$C$5:$C$10,0),MATCH('Data Input - BAU'!BD$7,'Emissions factors'!$F$4:$CR$4,0))/1000,0)","v":0},{"$f":"IFERROR(BE84*INDEX('Emissions factors'!$F$5:$CR$10,MATCH('Data Input - BAU'!$D120,'Emissions factors'!$C$5:$C$10,0),MATCH('Data Input - BAU'!BE$7,'Emissions factors'!$F$4:$CR$4,0))/1000,0)","v":0},{"$f":"IFERROR(BF84*INDEX('Emissions factors'!$F$5:$CR$10,MATCH('Data Input - BAU'!$D120,'Emissions factors'!$C$5:$C$10,0),MATCH('Data Input - BAU'!BF$7,'Emissions factors'!$F$4:$CR$4,0))/1000,0)","v":0},{"$f":"IFERROR(BG84*INDEX('Emissions factors'!$F$5:$CR$10,MATCH('Data Input - BAU'!$D120,'Emissions factors'!$C$5:$C$10,0),MATCH('Data Input - BAU'!BG$7,'Emissions factors'!$F$4:$CR$4,0))/1000,0)","v":0},{"$f":"IFERROR(BH84*INDEX('Emissions factors'!$F$5:$CR$10,MATCH('Data Input - BAU'!$D120,'Emissions factors'!$C$5:$C$10,0),MATCH('Data Input - BAU'!BH$7,'Emissions factors'!$F$4:$CR$4,0))/1000,0)","v":0},{"$f":"IFERROR(BI84*INDEX('Emissions factors'!$F$5:$CR$10,MATCH('Data Input - BAU'!$D120,'Emissions factors'!$C$5:$C$10,0),MATCH('Data Input - BAU'!BI$7,'Emissions factors'!$F$4:$CR$4,0))/1000,0)","v":0},{"$f":"IFERROR(BJ84*INDEX('Emissions factors'!$F$5:$CR$10,MATCH('Data Input - BAU'!$D120,'Emissions factors'!$C$5:$C$10,0),MATCH('Data Input - BAU'!BJ$7,'Emissions factors'!$F$4:$CR$4,0))/1000,0)","v":0},{"$f":"IFERROR(BK84*INDEX('Emissions factors'!$F$5:$CR$10,MATCH('Data Input - BAU'!$D120,'Emissions factors'!$C$5:$C$10,0),MATCH('Data Input - BAU'!BK$7,'Emissions factors'!$F$4:$CR$4,0))/1000,0)","v":0},{"$f":"IFERROR(BL84*INDEX('Emissions factors'!$F$5:$CR$10,MATCH('Data Input - BAU'!$D120,'Emissions factors'!$C$5:$C$10,0),MATCH('Data Input - BAU'!BL$7,'Emissions factors'!$F$4:$CR$4,0))/1000,0)","v":0},{"$f":"IFERROR(BM84*INDEX('Emissions factors'!$F$5:$CR$10,MATCH('Data Input - BAU'!$D120,'Emissions factors'!$C$5:$C$10,0),MATCH('Data Input - BAU'!BM$7,'Emissions factors'!$F$4:$CR$4,0))/1000,0)","v":0},{"$f":"IFERROR(BN84*INDEX('Emissions factors'!$F$5:$CR$10,MATCH('Data Input - BAU'!$D120,'Emissions factors'!$C$5:$C$10,0),MATCH('Data Input - BAU'!BN$7,'Emissions factors'!$F$4:$CR$4,0))/1000,0)","v":0},{"$f":"IFERROR(BO84*INDEX('Emissions factors'!$F$5:$CR$10,MATCH('Data Input - BAU'!$D120,'Emissions factors'!$C$5:$C$10,0),MATCH('Data Input - BAU'!BO$7,'Emissions factors'!$F$4:$CR$4,0))/1000,0)","v":0},{"$f":"IFERROR(BP84*INDEX('Emissions factors'!$F$5:$CR$10,MATCH('Data Input - BAU'!$D120,'Emissions factors'!$C$5:$C$10,0),MATCH('Data Input - BAU'!BP$7,'Emissions factors'!$F$4:$CR$4,0))/1000,0)","v":0},{"$f":"IFERROR(BQ84*INDEX('Emissions factors'!$F$5:$CR$10,MATCH('Data Input - BAU'!$D120,'Emissions factors'!$C$5:$C$10,0),MATCH('Data Input - BAU'!BQ$7,'Emissions factors'!$F$4:$CR$4,0))/1000,0)","v":0},{"$f":"IFERROR(BR84*INDEX('Emissions factors'!$F$5:$CR$10,MATCH('Data Input - BAU'!$D120,'Emissions factors'!$C$5:$C$10,0),MATCH('Data Input - BAU'!BR$7,'Emissions factors'!$F$4:$CR$4,0))/1000,0)","v":0},{"$f":"IFERROR(BS84*INDEX('Emissions factors'!$F$5:$CR$10,MATCH('Data Input - BAU'!$D120,'Emissions factors'!$C$5:$C$10,0),MATCH('Data Input - BAU'!BS$7,'Emissions factors'!$F$4:$CR$4,0))/1000,0)","v":0},{"$f":"IFERROR(BT84*INDEX('Emissions factors'!$F$5:$CR$10,MATCH('Data Input - BAU'!$D120,'Emissions factors'!$C$5:$C$10,0),MATCH('Data Input - BAU'!BT$7,'Emissions factors'!$F$4:$CR$4,0))/1000,0)","v":0},{"$f":"IFERROR(BU84*INDEX('Emissions factors'!$F$5:$CR$10,MATCH('Data Input - BAU'!$D120,'Emissions factors'!$C$5:$C$10,0),MATCH('Data Input - BAU'!BU$7,'Emissions factors'!$F$4:$CR$4,0))/1000,0)","v":0},{"$f":"IFERROR(BV84*INDEX('Emissions factors'!$F$5:$CR$10,MATCH('Data Input - BAU'!$D120,'Emissions factors'!$C$5:$C$10,0),MATCH('Data Input - BAU'!BV$7,'Emissions factors'!$F$4:$CR$4,0))/1000,0)","v":0},{"$f":"IFERROR(BW84*INDEX('Emissions factors'!$F$5:$CR$10,MATCH('Data Input - BAU'!$D120,'Emissions factors'!$C$5:$C$10,0),MATCH('Data Input - BAU'!BW$7,'Emissions factors'!$F$4:$CR$4,0))/1000,0)","v":0},{"$f":"IFERROR(BX84*INDEX('Emissions factors'!$F$5:$CR$10,MATCH('Data Input - BAU'!$D120,'Emissions factors'!$C$5:$C$10,0),MATCH('Data Input - BAU'!BX$7,'Emissions factors'!$F$4:$CR$4,0))/1000,0)","v":0},{"$f":"IFERROR(BY84*INDEX('Emissions factors'!$F$5:$CR$10,MATCH('Data Input - BAU'!$D120,'Emissions factors'!$C$5:$C$10,0),MATCH('Data Input - BAU'!BY$7,'Emissions factors'!$F$4:$CR$4,0))/1000,0)","v":0},{"$f":"IFERROR(BZ84*INDEX('Emissions factors'!$F$5:$CR$10,MATCH('Data Input - BAU'!$D120,'Emissions factors'!$C$5:$C$10,0),MATCH('Data Input - BAU'!BZ$7,'Emissions factors'!$F$4:$CR$4,0))/1000,0)","v":0},{"$f":"IFERROR(CA84*INDEX('Emissions factors'!$F$5:$CR$10,MATCH('Data Input - BAU'!$D120,'Emissions factors'!$C$5:$C$10,0),MATCH('Data Input - BAU'!CA$7,'Emissions factors'!$F$4:$CR$4,0))/1000,0)","v":0},{"$f":"IFERROR(CB84*INDEX('Emissions factors'!$F$5:$CR$10,MATCH('Data Input - BAU'!$D120,'Emissions factors'!$C$5:$C$10,0),MATCH('Data Input - BAU'!CB$7,'Emissions factors'!$F$4:$CR$4,0))/1000,0)","v":0},{"$f":"IFERROR(CC84*INDEX('Emissions factors'!$F$5:$CR$10,MATCH('Data Input - BAU'!$D120,'Emissions factors'!$C$5:$C$10,0),MATCH('Data Input - BAU'!CC$7,'Emissions factors'!$F$4:$CR$4,0))/1000,0)","v":0},{"$f":"IFERROR(CD84*INDEX('Emissions factors'!$F$5:$CR$10,MATCH('Data Input - BAU'!$D120,'Emissions factors'!$C$5:$C$10,0),MATCH('Data Input - BAU'!CD$7,'Emissions factors'!$F$4:$CR$4,0))/1000,0)","v":0},{"$f":"IFERROR(CE84*INDEX('Emissions factors'!$F$5:$CR$10,MATCH('Data Input - BAU'!$D120,'Emissions factors'!$C$5:$C$10,0),MATCH('Data Input - BAU'!CE$7,'Emissions factors'!$F$4:$CR$4,0))/1000,0)","v":0},{"$f":"IFERROR(CF84*INDEX('Emissions factors'!$F$5:$CR$10,MATCH('Data Input - BAU'!$D120,'Emissions factors'!$C$5:$C$10,0),MATCH('Data Input - BAU'!CF$7,'Emissions factors'!$F$4:$CR$4,0))/1000,0)","v":0},{"$f":"IFERROR(CG84*INDEX('Emissions factors'!$F$5:$CR$10,MATCH('Data Input - BAU'!$D120,'Emissions factors'!$C$5:$C$10,0),MATCH('Data Input - BAU'!CG$7,'Emissions factors'!$F$4:$CR$4,0))/1000,0)","v":0},{"$f":"IFERROR(CH84*INDEX('Emissions factors'!$F$5:$CR$10,MATCH('Data Input - BAU'!$D120,'Emissions factors'!$C$5:$C$10,0),MATCH('Data Input - BAU'!CH$7,'Emissions factors'!$F$4:$CR$4,0))/1000,0)","v":0},{"$f":"IFERROR(CI84*INDEX('Emissions factors'!$F$5:$CR$10,MATCH('Data Input - BAU'!$D120,'Emissions factors'!$C$5:$C$10,0),MATCH('Data Input - BAU'!CI$7,'Emissions factors'!$F$4:$CR$4,0))/1000,0)","v":0},{"$f":"IFERROR(CJ84*INDEX('Emissions factors'!$F$5:$CR$10,MATCH('Data Input - BAU'!$D120,'Emissions factors'!$C$5:$C$10,0),MATCH('Data Input - BAU'!CJ$7,'Emissions factors'!$F$4:$CR$4,0))/1000,0)","v":0},{"$f":"IFERROR(CK84*INDEX('Emissions factors'!$F$5:$CR$10,MATCH('Data Input - BAU'!$D120,'Emissions factors'!$C$5:$C$10,0),MATCH('Data Input - BAU'!CK$7,'Emissions factors'!$F$4:$CR$4,0))/1000,0)","v":0},{"$f":"IFERROR(CL84*INDEX('Emissions factors'!$F$5:$CR$10,MATCH('Data Input - BAU'!$D120,'Emissions factors'!$C$5:$C$10,0),MATCH('Data Input - BAU'!CL$7,'Emissions factors'!$F$4:$CR$4,0))/1000,0)","v":0},{"$f":"IFERROR(CM84*INDEX('Emissions factors'!$F$5:$CR$10,MATCH('Data Input - BAU'!$D120,'Emissions factors'!$C$5:$C$10,0),MATCH('Data Input - BAU'!CM$7,'Emissions factors'!$F$4:$CR$4,0))/1000,0)","v":0},{"$f":"IFERROR(CN84*INDEX('Emissions factors'!$F$5:$CR$10,MATCH('Data Input - BAU'!$D120,'Emissions factors'!$C$5:$C$10,0),MATCH('Data Input - BAU'!CN$7,'Emissions factors'!$F$4:$CR$4,0))/1000,0)","v":0},{"$f":"IFERROR(CO84*INDEX('Emissions factors'!$F$5:$CR$10,MATCH('Data Input - BAU'!$D120,'Emissions factors'!$C$5:$C$10,0),MATCH('Data Input - BAU'!CO$7,'Emissions factors'!$F$4:$CR$4,0))/1000,0)","v":0},{"$f":"IFERROR(CP84*INDEX('Emissions factors'!$F$5:$CR$10,MATCH('Data Input - BAU'!$D120,'Emissions factors'!$C$5:$C$10,0),MATCH('Data Input - BAU'!CP$7,'Emissions factors'!$F$4:$CR$4,0))/1000,0)","v":0},{"$f":"IFERROR(CQ84*INDEX('Emissions factors'!$F$5:$CR$10,MATCH('Data Input - BAU'!$D120,'Emissions factors'!$C$5:$C$10,0),MATCH('Data Input - BAU'!CQ$7,'Emissions factors'!$F$4:$CR$4,0))/1000,0)","v":0},{"$f":"IFERROR(CR84*INDEX('Emissions factors'!$F$5:$CR$10,MATCH('Data Input - BAU'!$D120,'Emissions factors'!$C$5:$C$10,0),MATCH('Data Input - BAU'!CR$7,'Emissions factors'!$F$4:$CR$4,0))/1000,0)","v":0},{"$f":"IFERROR(CS84*INDEX('Emissions factors'!$F$5:$CR$10,MATCH('Data Input - BAU'!$D120,'Emissions factors'!$C$5:$C$10,0),MATCH('Data Input - BAU'!CS$7,'Emissions factors'!$F$4:$CR$4,0))/1000,0)","v":0},{"$f":"IFERROR(CT84*INDEX('Emissions factors'!$F$5:$CR$10,MATCH('Data Input - BAU'!$D120,'Emissions factors'!$C$5:$C$10,0),MATCH('Data Input - BAU'!CT$7,'Emissions factors'!$F$4:$CR$4,0))/1000,0)","v":0},{"$f":"IFERROR(CU84*INDEX('Emissions factors'!$F$5:$CR$10,MATCH('Data Input - BAU'!$D120,'Emissions factors'!$C$5:$C$10,0),MATCH('Data Input - BAU'!CU$7,'Emissions factors'!$F$4:$CR$4,0))/1000,0)","v":0},{"$f":"IFERROR(CV84*INDEX('Emissions factors'!$F$5:$CR$10,MATCH('Data Input - BAU'!$D120,'Emissions factors'!$C$5:$C$10,0),MATCH('Data Input - BAU'!CV$7,'Emissions factors'!$F$4:$CR$4,0))/1000,0)","v":0},{"$f":"IFERROR(CW84*INDEX('Emissions factors'!$F$5:$CR$10,MATCH('Data Input - BAU'!$D120,'Emissions factors'!$C$5:$C$10,0),MATCH('Data Input - BAU'!CW$7,'Emissions factors'!$F$4:$CR$4,0))/1000,0)","v":0},{"$f":"IFERROR(CX84*INDEX('Emissions factors'!$F$5:$CR$10,MATCH('Data Input - BAU'!$D120,'Emissions factors'!$C$5:$C$10,0),MATCH('Data Input - BAU'!CX$7,'Emissions factors'!$F$4:$CR$4,0))/1000,0)","v":0},{"$f":"IFERROR(CY84*INDEX('Emissions factors'!$F$5:$CR$10,MATCH('Data Input - BAU'!$D120,'Emissions factors'!$C$5:$C$10,0),MATCH('Data Input - BAU'!CY$7,'Emissions factors'!$F$4:$CR$4,0))/1000,0)","v":0},{"$f":"IFERROR(CZ84*INDEX('Emissions factors'!$F$5:$CR$10,MATCH('Data Input - BAU'!$D120,'Emissions factors'!$C$5:$C$10,0),MATCH('Data Input - BAU'!CZ$7,'Emissions factors'!$F$4:$CR$4,0))/1000,0)","v":0},{"$f":"IFERROR(DA84*INDEX('Emissions factors'!$F$5:$CR$10,MATCH('Data Input - BAU'!$D120,'Emissions factors'!$C$5:$C$10,0),MATCH('Data Input - BAU'!DA$7,'Emissions factors'!$F$4:$CR$4,0))/1000,0)","v":0},{"$f":"IFERROR(DB84*INDEX('Emissions factors'!$F$5:$CR$10,MATCH('Data Input - BAU'!$D120,'Emissions factors'!$C$5:$C$10,0),MATCH('Data Input - BAU'!DB$7,'Emissions factors'!$F$4:$CR$4,0))/1000,0)","v":0},{"$f":"IFERROR(DC84*INDEX('Emissions factors'!$F$5:$CR$10,MATCH('Data Input - BAU'!$D120,'Emissions factors'!$C$5:$C$10,0),MATCH('Data Input - BAU'!DC$7,'Emissions factors'!$F$4:$CR$4,0))/1000,0)","v":0}]
[null,null,null,"Natural Gas","tCO2e","(Auto calculated value)",null,{"$f":"IFERROR(H85*INDEX('Emissions factors'!$F$5:$CR$10,MATCH('Data Input - BAU'!$D121,'Emissions factors'!$C$5:$C$10,0),MATCH('Data Input - BAU'!H$7,'Emissions factors'!$F$4:$CR$4,0))/1000,0)","v":0},{"$f":"IFERROR(I85*INDEX('Emissions factors'!$F$5:$CR$10,MATCH('Data Input - BAU'!$D121,'Emissions factors'!$C$5:$C$10,0),MATCH('Data Input - BAU'!I$7,'Emissions factors'!$F$4:$CR$4,0))/1000,0)","v":0},{"$f":"IFERROR(J85*INDEX('Emissions factors'!$F$5:$CR$10,MATCH('Data Input - BAU'!$D121,'Emissions factors'!$C$5:$C$10,0),MATCH('Data Input - BAU'!J$7,'Emissions factors'!$F$4:$CR$4,0))/1000,0)","v":0},{"$f":"IFERROR(K85*INDEX('Emissions factors'!$F$5:$CR$10,MATCH('Data Input - BAU'!$D121,'Emissions factors'!$C$5:$C$10,0),MATCH('Data Input - BAU'!K$7,'Emissions factors'!$F$4:$CR$4,0))/1000,0)","v":0},{"$f":"IFERROR(L85*INDEX('Emissions factors'!$F$5:$CR$10,MATCH('Data Input - BAU'!$D121,'Emissions factors'!$C$5:$C$10,0),MATCH('Data Input - BAU'!L$7,'Emissions factors'!$F$4:$CR$4,0))/1000,0)","v":0},{"$f":"IFERROR(M85*INDEX('Emissions factors'!$F$5:$CR$10,MATCH('Data Input - BAU'!$D121,'Emissions factors'!$C$5:$C$10,0),MATCH('Data Input - BAU'!M$7,'Emissions factors'!$F$4:$CR$4,0))/1000,0)","v":0},{"$f":"IFERROR(N85*INDEX('Emissions factors'!$F$5:$CR$10,MATCH('Data Input - BAU'!$D121,'Emissions factors'!$C$5:$C$10,0),MATCH('Data Input - BAU'!N$7,'Emissions factors'!$F$4:$CR$4,0))/1000,0)","v":0},{"$f":"IFERROR(O85*INDEX('Emissions factors'!$F$5:$CR$10,MATCH('Data Input - BAU'!$D121,'Emissions factors'!$C$5:$C$10,0),MATCH('Data Input - BAU'!O$7,'Emissions factors'!$F$4:$CR$4,0))/1000,0)","v":0},{"$f":"IFERROR(P85*INDEX('Emissions factors'!$F$5:$CR$10,MATCH('Data Input - BAU'!$D121,'Emissions factors'!$C$5:$C$10,0),MATCH('Data Input - BAU'!P$7,'Emissions factors'!$F$4:$CR$4,0))/1000,0)","v":0},{"$f":"IFERROR(Q85*INDEX('Emissions factors'!$F$5:$CR$10,MATCH('Data Input - BAU'!$D121,'Emissions factors'!$C$5:$C$10,0),MATCH('Data Input - BAU'!Q$7,'Emissions factors'!$F$4:$CR$4,0))/1000,0)","v":0},{"$f":"IFERROR(R85*INDEX('Emissions factors'!$F$5:$CR$10,MATCH('Data Input - BAU'!$D121,'Emissions factors'!$C$5:$C$10,0),MATCH('Data Input - BAU'!R$7,'Emissions factors'!$F$4:$CR$4,0))/1000,0)","v":0},{"$f":"IFERROR(S85*INDEX('Emissions factors'!$F$5:$CR$10,MATCH('Data Input - BAU'!$D121,'Emissions factors'!$C$5:$C$10,0),MATCH('Data Input - BAU'!S$7,'Emissions factors'!$F$4:$CR$4,0))/1000,0)","v":0},{"$f":"IFERROR(T85*INDEX('Emissions factors'!$F$5:$CR$10,MATCH('Data Input - BAU'!$D121,'Emissions factors'!$C$5:$C$10,0),MATCH('Data Input - BAU'!T$7,'Emissions factors'!$F$4:$CR$4,0))/1000,0)","v":0},{"$f":"IFERROR(U85*INDEX('Emissions factors'!$F$5:$CR$10,MATCH('Data Input - BAU'!$D121,'Emissions factors'!$C$5:$C$10,0),MATCH('Data Input - BAU'!U$7,'Emissions factors'!$F$4:$CR$4,0))/1000,0)","v":0},{"$f":"IFERROR(V85*INDEX('Emissions factors'!$F$5:$CR$10,MATCH('Data Input - BAU'!$D121,'Emissions factors'!$C$5:$C$10,0),MATCH('Data Input - BAU'!V$7,'Emissions factors'!$F$4:$CR$4,0))/1000,0)","v":0},{"$f":"IFERROR(W85*INDEX('Emissions factors'!$F$5:$CR$10,MATCH('Data Input - BAU'!$D121,'Emissions factors'!$C$5:$C$10,0),MATCH('Data Input - BAU'!W$7,'Emissions factors'!$F$4:$CR$4,0))/1000,0)","v":0},{"$f":"IFERROR(X85*INDEX('Emissions factors'!$F$5:$CR$10,MATCH('Data Input - BAU'!$D121,'Emissions factors'!$C$5:$C$10,0),MATCH('Data Input - BAU'!X$7,'Emissions factors'!$F$4:$CR$4,0))/1000,0)","v":0},{"$f":"IFERROR(Y85*INDEX('Emissions factors'!$F$5:$CR$10,MATCH('Data Input - BAU'!$D121,'Emissions factors'!$C$5:$C$10,0),MATCH('Data Input - BAU'!Y$7,'Emissions factors'!$F$4:$CR$4,0))/1000,0)","v":0},{"$f":"IFERROR(Z85*INDEX('Emissions factors'!$F$5:$CR$10,MATCH('Data Input - BAU'!$D121,'Emissions factors'!$C$5:$C$10,0),MATCH('Data Input - BAU'!Z$7,'Emissions factors'!$F$4:$CR$4,0))/1000,0)","v":0},{"$f":"IFERROR(AA85*INDEX('Emissions factors'!$F$5:$CR$10,MATCH('Data Input - BAU'!$D121,'Emissions factors'!$C$5:$C$10,0),MATCH('Data Input - BAU'!AA$7,'Emissions factors'!$F$4:$CR$4,0))/1000,0)","v":0},{"$f":"IFERROR(AB85*INDEX('Emissions factors'!$F$5:$CR$10,MATCH('Data Input - BAU'!$D121,'Emissions factors'!$C$5:$C$10,0),MATCH('Data Input - BAU'!AB$7,'Emissions factors'!$F$4:$CR$4,0))/1000,0)","v":0},{"$f":"IFERROR(AC85*INDEX('Emissions factors'!$F$5:$CR$10,MATCH('Data Input - BAU'!$D121,'Emissions factors'!$C$5:$C$10,0),MATCH('Data Input - BAU'!AC$7,'Emissions factors'!$F$4:$CR$4,0))/1000,0)","v":0},{"$f":"IFERROR(AD85*INDEX('Emissions factors'!$F$5:$CR$10,MATCH('Data Input - BAU'!$D121,'Emissions factors'!$C$5:$C$10,0),MATCH('Data Input - BAU'!AD$7,'Emissions factors'!$F$4:$CR$4,0))/1000,0)","v":0},{"$f":"IFERROR(AE85*INDEX('Emissions factors'!$F$5:$CR$10,MATCH('Data Input - BAU'!$D121,'Emissions factors'!$C$5:$C$10,0),MATCH('Data Input - BAU'!AE$7,'Emissions factors'!$F$4:$CR$4,0))/1000,0)","v":0},{"$f":"IFERROR(AF85*INDEX('Emissions factors'!$F$5:$CR$10,MATCH('Data Input - BAU'!$D121,'Emissions factors'!$C$5:$C$10,0),MATCH('Data Input - BAU'!AF$7,'Emissions factors'!$F$4:$CR$4,0))/1000,0)","v":0},{"$f":"IFERROR(AG85*INDEX('Emissions factors'!$F$5:$CR$10,MATCH('Data Input - BAU'!$D121,'Emissions factors'!$C$5:$C$10,0),MATCH('Data Input - BAU'!AG$7,'Emissions factors'!$F$4:$CR$4,0))/1000,0)","v":0},{"$f":"IFERROR(AH85*INDEX('Emissions factors'!$F$5:$CR$10,MATCH('Data Input - BAU'!$D121,'Emissions factors'!$C$5:$C$10,0),MATCH('Data Input - BAU'!AH$7,'Emissions factors'!$F$4:$CR$4,0))/1000,0)","v":0},{"$f":"IFERROR(AI85*INDEX('Emissions factors'!$F$5:$CR$10,MATCH('Data Input - BAU'!$D121,'Emissions factors'!$C$5:$C$10,0),MATCH('Data Input - BAU'!AI$7,'Emissions factors'!$F$4:$CR$4,0))/1000,0)","v":0},{"$f":"IFERROR(AJ85*INDEX('Emissions factors'!$F$5:$CR$10,MATCH('Data Input - BAU'!$D121,'Emissions factors'!$C$5:$C$10,0),MATCH('Data Input - BAU'!AJ$7,'Emissions factors'!$F$4:$CR$4,0))/1000,0)","v":0},{"$f":"IFERROR(AK85*INDEX('Emissions factors'!$F$5:$CR$10,MATCH('Data Input - BAU'!$D121,'Emissions factors'!$C$5:$C$10,0),MATCH('Data Input - BAU'!AK$7,'Emissions factors'!$F$4:$CR$4,0))/1000,0)","v":0},{"$f":"IFERROR(AL85*INDEX('Emissions factors'!$F$5:$CR$10,MATCH('Data Input - BAU'!$D121,'Emissions factors'!$C$5:$C$10,0),MATCH('Data Input - BAU'!AL$7,'Emissions factors'!$F$4:$CR$4,0))/1000,0)","v":0},{"$f":"IFERROR(AM85*INDEX('Emissions factors'!$F$5:$CR$10,MATCH('Data Input - BAU'!$D121,'Emissions factors'!$C$5:$C$10,0),MATCH('Data Input - BAU'!AM$7,'Emissions factors'!$F$4:$CR$4,0))/1000,0)","v":0},{"$f":"IFERROR(AN85*INDEX('Emissions factors'!$F$5:$CR$10,MATCH('Data Input - BAU'!$D121,'Emissions factors'!$C$5:$C$10,0),MATCH('Data Input - BAU'!AN$7,'Emissions factors'!$F$4:$CR$4,0))/1000,0)","v":0},{"$f":"IFERROR(AO85*INDEX('Emissions factors'!$F$5:$CR$10,MATCH('Data Input - BAU'!$D121,'Emissions factors'!$C$5:$C$10,0),MATCH('Data Input - BAU'!AO$7,'Emissions factors'!$F$4:$CR$4,0))/1000,0)","v":0},{"$f":"IFERROR(AP85*INDEX('Emissions factors'!$F$5:$CR$10,MATCH('Data Input - BAU'!$D121,'Emissions factors'!$C$5:$C$10,0),MATCH('Data Input - BAU'!AP$7,'Emissions factors'!$F$4:$CR$4,0))/1000,0)","v":0},{"$f":"IFERROR(AQ85*INDEX('Emissions factors'!$F$5:$CR$10,MATCH('Data Input - BAU'!$D121,'Emissions factors'!$C$5:$C$10,0),MATCH('Data Input - BAU'!AQ$7,'Emissions factors'!$F$4:$CR$4,0))/1000,0)","v":0},{"$f":"IFERROR(AR85*INDEX('Emissions factors'!$F$5:$CR$10,MATCH('Data Input - BAU'!$D121,'Emissions factors'!$C$5:$C$10,0),MATCH('Data Input - BAU'!AR$7,'Emissions factors'!$F$4:$CR$4,0))/1000,0)","v":0},{"$f":"IFERROR(AS85*INDEX('Emissions factors'!$F$5:$CR$10,MATCH('Data Input - BAU'!$D121,'Emissions factors'!$C$5:$C$10,0),MATCH('Data Input - BAU'!AS$7,'Emissions factors'!$F$4:$CR$4,0))/1000,0)","v":0},{"$f":"IFERROR(AT85*INDEX('Emissions factors'!$F$5:$CR$10,MATCH('Data Input - BAU'!$D121,'Emissions factors'!$C$5:$C$10,0),MATCH('Data Input - BAU'!AT$7,'Emissions factors'!$F$4:$CR$4,0))/1000,0)","v":0},{"$f":"IFERROR(AU85*INDEX('Emissions factors'!$F$5:$CR$10,MATCH('Data Input - BAU'!$D121,'Emissions factors'!$C$5:$C$10,0),MATCH('Data Input - BAU'!AU$7,'Emissions factors'!$F$4:$CR$4,0))/1000,0)","v":0},{"$f":"IFERROR(AV85*INDEX('Emissions factors'!$F$5:$CR$10,MATCH('Data Input - BAU'!$D121,'Emissions factors'!$C$5:$C$10,0),MATCH('Data Input - BAU'!AV$7,'Emissions factors'!$F$4:$CR$4,0))/1000,0)","v":0},{"$f":"IFERROR(AW85*INDEX('Emissions factors'!$F$5:$CR$10,MATCH('Data Input - BAU'!$D121,'Emissions factors'!$C$5:$C$10,0),MATCH('Data Input - BAU'!AW$7,'Emissions factors'!$F$4:$CR$4,0))/1000,0)","v":0},{"$f":"IFERROR(AX85*INDEX('Emissions factors'!$F$5:$CR$10,MATCH('Data Input - BAU'!$D121,'Emissions factors'!$C$5:$C$10,0),MATCH('Data Input - BAU'!AX$7,'Emissions factors'!$F$4:$CR$4,0))/1000,0)","v":0},{"$f":"IFERROR(AY85*INDEX('Emissions factors'!$F$5:$CR$10,MATCH('Data Input - BAU'!$D121,'Emissions factors'!$C$5:$C$10,0),MATCH('Data Input - BAU'!AY$7,'Emissions factors'!$F$4:$CR$4,0))/1000,0)","v":0},{"$f":"IFERROR(AZ85*INDEX('Emissions factors'!$F$5:$CR$10,MATCH('Data Input - BAU'!$D121,'Emissions factors'!$C$5:$C$10,0),MATCH('Data Input - BAU'!AZ$7,'Emissions factors'!$F$4:$CR$4,0))/1000,0)","v":0},{"$f":"IFERROR(BA85*INDEX('Emissions factors'!$F$5:$CR$10,MATCH('Data Input - BAU'!$D121,'Emissions factors'!$C$5:$C$10,0),MATCH('Data Input - BAU'!BA$7,'Emissions factors'!$F$4:$CR$4,0))/1000,0)","v":0},{"$f":"IFERROR(BB85*INDEX('Emissions factors'!$F$5:$CR$10,MATCH('Data Input - BAU'!$D121,'Emissions factors'!$C$5:$C$10,0),MATCH('Data Input - BAU'!BB$7,'Emissions factors'!$F$4:$CR$4,0))/1000,0)","v":0},{"$f":"IFERROR(BC85*INDEX('Emissions factors'!$F$5:$CR$10,MATCH('Data Input - BAU'!$D121,'Emissions factors'!$C$5:$C$10,0),MATCH('Data Input - BAU'!BC$7,'Emissions factors'!$F$4:$CR$4,0))/1000,0)","v":0},{"$f":"IFERROR(BD85*INDEX('Emissions factors'!$F$5:$CR$10,MATCH('Data Input - BAU'!$D121,'Emissions factors'!$C$5:$C$10,0),MATCH('Data Input - BAU'!BD$7,'Emissions factors'!$F$4:$CR$4,0))/1000,0)","v":0},{"$f":"IFERROR(BE85*INDEX('Emissions factors'!$F$5:$CR$10,MATCH('Data Input - BAU'!$D121,'Emissions factors'!$C$5:$C$10,0),MATCH('Data Input - BAU'!BE$7,'Emissions factors'!$F$4:$CR$4,0))/1000,0)","v":0},{"$f":"IFERROR(BF85*INDEX('Emissions factors'!$F$5:$CR$10,MATCH('Data Input - BAU'!$D121,'Emissions factors'!$C$5:$C$10,0),MATCH('Data Input - BAU'!BF$7,'Emissions factors'!$F$4:$CR$4,0))/1000,0)","v":0},{"$f":"IFERROR(BG85*INDEX('Emissions factors'!$F$5:$CR$10,MATCH('Data Input - BAU'!$D121,'Emissions factors'!$C$5:$C$10,0),MATCH('Data Input - BAU'!BG$7,'Emissions factors'!$F$4:$CR$4,0))/1000,0)","v":0},{"$f":"IFERROR(BH85*INDEX('Emissions factors'!$F$5:$CR$10,MATCH('Data Input - BAU'!$D121,'Emissions factors'!$C$5:$C$10,0),MATCH('Data Input - BAU'!BH$7,'Emissions factors'!$F$4:$CR$4,0))/1000,0)","v":0},{"$f":"IFERROR(BI85*INDEX('Emissions factors'!$F$5:$CR$10,MATCH('Data Input - BAU'!$D121,'Emissions factors'!$C$5:$C$10,0),MATCH('Data Input - BAU'!BI$7,'Emissions factors'!$F$4:$CR$4,0))/1000,0)","v":0},{"$f":"IFERROR(BJ85*INDEX('Emissions factors'!$F$5:$CR$10,MATCH('Data Input - BAU'!$D121,'Emissions factors'!$C$5:$C$10,0),MATCH('Data Input - BAU'!BJ$7,'Emissions factors'!$F$4:$CR$4,0))/1000,0)","v":0},{"$f":"IFERROR(BK85*INDEX('Emissions factors'!$F$5:$CR$10,MATCH('Data Input - BAU'!$D121,'Emissions factors'!$C$5:$C$10,0),MATCH('Data Input - BAU'!BK$7,'Emissions factors'!$F$4:$CR$4,0))/1000,0)","v":0},{"$f":"IFERROR(BL85*INDEX('Emissions factors'!$F$5:$CR$10,MATCH('Data Input - BAU'!$D121,'Emissions factors'!$C$5:$C$10,0),MATCH('Data Input - BAU'!BL$7,'Emissions factors'!$F$4:$CR$4,0))/1000,0)","v":0},{"$f":"IFERROR(BM85*INDEX('Emissions factors'!$F$5:$CR$10,MATCH('Data Input - BAU'!$D121,'Emissions factors'!$C$5:$C$10,0),MATCH('Data Input - BAU'!BM$7,'Emissions factors'!$F$4:$CR$4,0))/1000,0)","v":0},{"$f":"IFERROR(BN85*INDEX('Emissions factors'!$F$5:$CR$10,MATCH('Data Input - BAU'!$D121,'Emissions factors'!$C$5:$C$10,0),MATCH('Data Input - BAU'!BN$7,'Emissions factors'!$F$4:$CR$4,0))/1000,0)","v":0},{"$f":"IFERROR(BO85*INDEX('Emissions factors'!$F$5:$CR$10,MATCH('Data Input - BAU'!$D121,'Emissions factors'!$C$5:$C$10,0),MATCH('Data Input - BAU'!BO$7,'Emissions factors'!$F$4:$CR$4,0))/1000,0)","v":0},{"$f":"IFERROR(BP85*INDEX('Emissions factors'!$F$5:$CR$10,MATCH('Data Input - BAU'!$D121,'Emissions factors'!$C$5:$C$10,0),MATCH('Data Input - BAU'!BP$7,'Emissions factors'!$F$4:$CR$4,0))/1000,0)","v":0},{"$f":"IFERROR(BQ85*INDEX('Emissions factors'!$F$5:$CR$10,MATCH('Data Input - BAU'!$D121,'Emissions factors'!$C$5:$C$10,0),MATCH('Data Input - BAU'!BQ$7,'Emissions factors'!$F$4:$CR$4,0))/1000,0)","v":0},{"$f":"IFERROR(BR85*INDEX('Emissions factors'!$F$5:$CR$10,MATCH('Data Input - BAU'!$D121,'Emissions factors'!$C$5:$C$10,0),MATCH('Data Input - BAU'!BR$7,'Emissions factors'!$F$4:$CR$4,0))/1000,0)","v":0},{"$f":"IFERROR(BS85*INDEX('Emissions factors'!$F$5:$CR$10,MATCH('Data Input - BAU'!$D121,'Emissions factors'!$C$5:$C$10,0),MATCH('Data Input - BAU'!BS$7,'Emissions factors'!$F$4:$CR$4,0))/1000,0)","v":0},{"$f":"IFERROR(BT85*INDEX('Emissions factors'!$F$5:$CR$10,MATCH('Data Input - BAU'!$D121,'Emissions factors'!$C$5:$C$10,0),MATCH('Data Input - BAU'!BT$7,'Emissions factors'!$F$4:$CR$4,0))/1000,0)","v":0},{"$f":"IFERROR(BU85*INDEX('Emissions factors'!$F$5:$CR$10,MATCH('Data Input - BAU'!$D121,'Emissions factors'!$C$5:$C$10,0),MATCH('Data Input - BAU'!BU$7,'Emissions factors'!$F$4:$CR$4,0))/1000,0)","v":0},{"$f":"IFERROR(BV85*INDEX('Emissions factors'!$F$5:$CR$10,MATCH('Data Input - BAU'!$D121,'Emissions factors'!$C$5:$C$10,0),MATCH('Data Input - BAU'!BV$7,'Emissions factors'!$F$4:$CR$4,0))/1000,0)","v":0},{"$f":"IFERROR(BW85*INDEX('Emissions factors'!$F$5:$CR$10,MATCH('Data Input - BAU'!$D121,'Emissions factors'!$C$5:$C$10,0),MATCH('Data Input - BAU'!BW$7,'Emissions factors'!$F$4:$CR$4,0))/1000,0)","v":0},{"$f":"IFERROR(BX85*INDEX('Emissions factors'!$F$5:$CR$10,MATCH('Data Input - BAU'!$D121,'Emissions factors'!$C$5:$C$10,0),MATCH('Data Input - BAU'!BX$7,'Emissions factors'!$F$4:$CR$4,0))/1000,0)","v":0},{"$f":"IFERROR(BY85*INDEX('Emissions factors'!$F$5:$CR$10,MATCH('Data Input - BAU'!$D121,'Emissions factors'!$C$5:$C$10,0),MATCH('Data Input - BAU'!BY$7,'Emissions factors'!$F$4:$CR$4,0))/1000,0)","v":0},{"$f":"IFERROR(BZ85*INDEX('Emissions factors'!$F$5:$CR$10,MATCH('Data Input - BAU'!$D121,'Emissions factors'!$C$5:$C$10,0),MATCH('Data Input - BAU'!BZ$7,'Emissions factors'!$F$4:$CR$4,0))/1000,0)","v":0},{"$f":"IFERROR(CA85*INDEX('Emissions factors'!$F$5:$CR$10,MATCH('Data Input - BAU'!$D121,'Emissions factors'!$C$5:$C$10,0),MATCH('Data Input - BAU'!CA$7,'Emissions factors'!$F$4:$CR$4,0))/1000,0)","v":0},{"$f":"IFERROR(CB85*INDEX('Emissions factors'!$F$5:$CR$10,MATCH('Data Input - BAU'!$D121,'Emissions factors'!$C$5:$C$10,0),MATCH('Data Input - BAU'!CB$7,'Emissions factors'!$F$4:$CR$4,0))/1000,0)","v":0},{"$f":"IFERROR(CC85*INDEX('Emissions factors'!$F$5:$CR$10,MATCH('Data Input - BAU'!$D121,'Emissions factors'!$C$5:$C$10,0),MATCH('Data Input - BAU'!CC$7,'Emissions factors'!$F$4:$CR$4,0))/1000,0)","v":0},{"$f":"IFERROR(CD85*INDEX('Emissions factors'!$F$5:$CR$10,MATCH('Data Input - BAU'!$D121,'Emissions factors'!$C$5:$C$10,0),MATCH('Data Input - BAU'!CD$7,'Emissions factors'!$F$4:$CR$4,0))/1000,0)","v":0},{"$f":"IFERROR(CE85*INDEX('Emissions factors'!$F$5:$CR$10,MATCH('Data Input - BAU'!$D121,'Emissions factors'!$C$5:$C$10,0),MATCH('Data Input - BAU'!CE$7,'Emissions factors'!$F$4:$CR$4,0))/1000,0)","v":0},{"$f":"IFERROR(CF85*INDEX('Emissions factors'!$F$5:$CR$10,MATCH('Data Input - BAU'!$D121,'Emissions factors'!$C$5:$C$10,0),MATCH('Data Input - BAU'!CF$7,'Emissions factors'!$F$4:$CR$4,0))/1000,0)","v":0},{"$f":"IFERROR(CG85*INDEX('Emissions factors'!$F$5:$CR$10,MATCH('Data Input - BAU'!$D121,'Emissions factors'!$C$5:$C$10,0),MATCH('Data Input - BAU'!CG$7,'Emissions factors'!$F$4:$CR$4,0))/1000,0)","v":0},{"$f":"IFERROR(CH85*INDEX('Emissions factors'!$F$5:$CR$10,MATCH('Data Input - BAU'!$D121,'Emissions factors'!$C$5:$C$10,0),MATCH('Data Input - BAU'!CH$7,'Emissions factors'!$F$4:$CR$4,0))/1000,0)","v":0},{"$f":"IFERROR(CI85*INDEX('Emissions factors'!$F$5:$CR$10,MATCH('Data Input - BAU'!$D121,'Emissions factors'!$C$5:$C$10,0),MATCH('Data Input - BAU'!CI$7,'Emissions factors'!$F$4:$CR$4,0))/1000,0)","v":0},{"$f":"IFERROR(CJ85*INDEX('Emissions factors'!$F$5:$CR$10,MATCH('Data Input - BAU'!$D121,'Emissions factors'!$C$5:$C$10,0),MATCH('Data Input - BAU'!CJ$7,'Emissions factors'!$F$4:$CR$4,0))/1000,0)","v":0},{"$f":"IFERROR(CK85*INDEX('Emissions factors'!$F$5:$CR$10,MATCH('Data Input - BAU'!$D121,'Emissions factors'!$C$5:$C$10,0),MATCH('Data Input - BAU'!CK$7,'Emissions factors'!$F$4:$CR$4,0))/1000,0)","v":0},{"$f":"IFERROR(CL85*INDEX('Emissions factors'!$F$5:$CR$10,MATCH('Data Input - BAU'!$D121,'Emissions factors'!$C$5:$C$10,0),MATCH('Data Input - BAU'!CL$7,'Emissions factors'!$F$4:$CR$4,0))/1000,0)","v":0},{"$f":"IFERROR(CM85*INDEX('Emissions factors'!$F$5:$CR$10,MATCH('Data Input - BAU'!$D121,'Emissions factors'!$C$5:$C$10,0),MATCH('Data Input - BAU'!CM$7,'Emissions factors'!$F$4:$CR$4,0))/1000,0)","v":0},{"$f":"IFERROR(CN85*INDEX('Emissions factors'!$F$5:$CR$10,MATCH('Data Input - BAU'!$D121,'Emissions factors'!$C$5:$C$10,0),MATCH('Data Input - BAU'!CN$7,'Emissions factors'!$F$4:$CR$4,0))/1000,0)","v":0},{"$f":"IFERROR(CO85*INDEX('Emissions factors'!$F$5:$CR$10,MATCH('Data Input - BAU'!$D121,'Emissions factors'!$C$5:$C$10,0),MATCH('Data Input - BAU'!CO$7,'Emissions factors'!$F$4:$CR$4,0))/1000,0)","v":0},{"$f":"IFERROR(CP85*INDEX('Emissions factors'!$F$5:$CR$10,MATCH('Data Input - BAU'!$D121,'Emissions factors'!$C$5:$C$10,0),MATCH('Data Input - BAU'!CP$7,'Emissions factors'!$F$4:$CR$4,0))/1000,0)","v":0},{"$f":"IFERROR(CQ85*INDEX('Emissions factors'!$F$5:$CR$10,MATCH('Data Input - BAU'!$D121,'Emissions factors'!$C$5:$C$10,0),MATCH('Data Input - BAU'!CQ$7,'Emissions factors'!$F$4:$CR$4,0))/1000,0)","v":0},{"$f":"IFERROR(CR85*INDEX('Emissions factors'!$F$5:$CR$10,MATCH('Data Input - BAU'!$D121,'Emissions factors'!$C$5:$C$10,0),MATCH('Data Input - BAU'!CR$7,'Emissions factors'!$F$4:$CR$4,0))/1000,0)","v":0},{"$f":"IFERROR(CS85*INDEX('Emissions factors'!$F$5:$CR$10,MATCH('Data Input - BAU'!$D121,'Emissions factors'!$C$5:$C$10,0),MATCH('Data Input - BAU'!CS$7,'Emissions factors'!$F$4:$CR$4,0))/1000,0)","v":0},{"$f":"IFERROR(CT85*INDEX('Emissions factors'!$F$5:$CR$10,MATCH('Data Input - BAU'!$D121,'Emissions factors'!$C$5:$C$10,0),MATCH('Data Input - BAU'!CT$7,'Emissions factors'!$F$4:$CR$4,0))/1000,0)","v":0},{"$f":"IFERROR(CU85*INDEX('Emissions factors'!$F$5:$CR$10,MATCH('Data Input - BAU'!$D121,'Emissions factors'!$C$5:$C$10,0),MATCH('Data Input - BAU'!CU$7,'Emissions factors'!$F$4:$CR$4,0))/1000,0)","v":0},{"$f":"IFERROR(CV85*INDEX('Emissions factors'!$F$5:$CR$10,MATCH('Data Input - BAU'!$D121,'Emissions factors'!$C$5:$C$10,0),MATCH('Data Input - BAU'!CV$7,'Emissions factors'!$F$4:$CR$4,0))/1000,0)","v":0},{"$f":"IFERROR(CW85*INDEX('Emissions factors'!$F$5:$CR$10,MATCH('Data Input - BAU'!$D121,'Emissions factors'!$C$5:$C$10,0),MATCH('Data Input - BAU'!CW$7,'Emissions factors'!$F$4:$CR$4,0))/1000,0)","v":0},{"$f":"IFERROR(CX85*INDEX('Emissions factors'!$F$5:$CR$10,MATCH('Data Input - BAU'!$D121,'Emissions factors'!$C$5:$C$10,0),MATCH('Data Input - BAU'!CX$7,'Emissions factors'!$F$4:$CR$4,0))/1000,0)","v":0},{"$f":"IFERROR(CY85*INDEX('Emissions factors'!$F$5:$CR$10,MATCH('Data Input - BAU'!$D121,'Emissions factors'!$C$5:$C$10,0),MATCH('Data Input - BAU'!CY$7,'Emissions factors'!$F$4:$CR$4,0))/1000,0)","v":0},{"$f":"IFERROR(CZ85*INDEX('Emissions factors'!$F$5:$CR$10,MATCH('Data Input - BAU'!$D121,'Emissions factors'!$C$5:$C$10,0),MATCH('Data Input - BAU'!CZ$7,'Emissions factors'!$F$4:$CR$4,0))/1000,0)","v":0},{"$f":"IFERROR(DA85*INDEX('Emissions factors'!$F$5:$CR$10,MATCH('Data Input - BAU'!$D121,'Emissions factors'!$C$5:$C$10,0),MATCH('Data Input - BAU'!DA$7,'Emissions factors'!$F$4:$CR$4,0))/1000,0)","v":0},{"$f":"IFERROR(DB85*INDEX('Emissions factors'!$F$5:$CR$10,MATCH('Data Input - BAU'!$D121,'Emissions factors'!$C$5:$C$10,0),MATCH('Data Input - BAU'!DB$7,'Emissions factors'!$F$4:$CR$4,0))/1000,0)","v":0},{"$f":"IFERROR(DC85*INDEX('Emissions factors'!$F$5:$CR$10,MATCH('Data Input - BAU'!$D121,'Emissions factors'!$C$5:$C$10,0),MATCH('Data Input - BAU'!DC$7,'Emissions factors'!$F$4:$CR$4,0))/1000,0)","v":0}]
[null,null,null,"Coal","tCO2e","(Auto calculated value)",null,{"$f":"IFERROR(H86*INDEX('Emissions factors'!$F$5:$CR$10,MATCH('Data Input - BAU'!$D122,'Emissions factors'!$C$5:$C$10,0),MATCH('Data Input - BAU'!H$7,'Emissions factors'!$F$4:$CR$4,0))/1000,0)","v":39953.636752500002},{"$f":"IFERROR(I86*INDEX('Emissions factors'!$F$5:$CR$10,MATCH('Data Input - BAU'!$D122,'Emissions factors'!$C$5:$C$10,0),MATCH('Data Input - BAU'!I$7,'Emissions factors'!$F$4:$CR$4,0))/1000,0)","v":39953.636752500002},{"$f":"IFERROR(J86*INDEX('Emissions factors'!$F$5:$CR$10,MATCH('Data Input - BAU'!$D122,'Emissions factors'!$C$5:$C$10,0),MATCH('Data Input - BAU'!J$7,'Emissions factors'!$F$4:$CR$4,0))/1000,0)","v":39953.636752500002},{"$f":"IFERROR(K86*INDEX('Emissions factors'!$F$5:$CR$10,MATCH('Data Input - BAU'!$D122,'Emissions factors'!$C$5:$C$10,0),MATCH('Data Input - BAU'!K$7,'Emissions factors'!$F$4:$CR$4,0))/1000,0)","v":39953.636752500002},{"$f":"IFERROR(L86*INDEX('Emissions factors'!$F$5:$CR$10,MATCH('Data Input - BAU'!$D122,'Emissions factors'!$C$5:$C$10,0),MATCH('Data Input - BAU'!L$7,'Emissions factors'!$F$4:$CR$4,0))/1000,0)","v":39953.636752500002},{"$f":"IFERROR(M86*INDEX('Emissions factors'!$F$5:$CR$10,MATCH('Data Input - BAU'!$D122,'Emissions factors'!$C$5:$C$10,0),MATCH('Data Input - BAU'!M$7,'Emissions factors'!$F$4:$CR$4,0))/1000,0)","v":39953.636752500002},{"$f":"IFERROR(N86*INDEX('Emissions factors'!$F$5:$CR$10,MATCH('Data Input - BAU'!$D122,'Emissions factors'!$C$5:$C$10,0),MATCH('Data Input - BAU'!N$7,'Emissions factors'!$F$4:$CR$4,0))/1000,0)","v":39953.636752500002},{"$f":"IFERROR(O86*INDEX('Emissions factors'!$F$5:$CR$10,MATCH('Data Input - BAU'!$D122,'Emissions factors'!$C$5:$C$10,0),MATCH('Data Input - BAU'!O$7,'Emissions factors'!$F$4:$CR$4,0))/1000,0)","v":39953.636752500002},{"$f":"IFERROR(P86*INDEX('Emissions factors'!$F$5:$CR$10,MATCH('Data Input - BAU'!$D122,'Emissions factors'!$C$5:$C$10,0),MATCH('Data Input - BAU'!P$7,'Emissions factors'!$F$4:$CR$4,0))/1000,0)","v":0},{"$f":"IFERROR(Q86*INDEX('Emissions factors'!$F$5:$CR$10,MATCH('Data Input - BAU'!$D122,'Emissions factors'!$C$5:$C$10,0),MATCH('Data Input - BAU'!Q$7,'Emissions factors'!$F$4:$CR$4,0))/1000,0)","v":0},{"$f":"IFERROR(R86*INDEX('Emissions factors'!$F$5:$CR$10,MATCH('Data Input - BAU'!$D122,'Emissions factors'!$C$5:$C$10,0),MATCH('Data Input - BAU'!R$7,'Emissions factors'!$F$4:$CR$4,0))/1000,0)","v":0},{"$f":"IFERROR(S86*INDEX('Emissions factors'!$F$5:$CR$10,MATCH('Data Input - BAU'!$D122,'Emissions factors'!$C$5:$C$10,0),MATCH('Data Input - BAU'!S$7,'Emissions factors'!$F$4:$CR$4,0))/1000,0)","v":0},{"$f":"IFERROR(T86*INDEX('Emissions factors'!$F$5:$CR$10,MATCH('Data Input - BAU'!$D122,'Emissions factors'!$C$5:$C$10,0),MATCH('Data Input - BAU'!T$7,'Emissions factors'!$F$4:$CR$4,0))/1000,0)","v":0},{"$f":"IFERROR(U86*INDEX('Emissions factors'!$F$5:$CR$10,MATCH('Data Input - BAU'!$D122,'Emissions factors'!$C$5:$C$10,0),MATCH('Data Input - BAU'!U$7,'Emissions factors'!$F$4:$CR$4,0))/1000,0)","v":0},{"$f":"IFERROR(V86*INDEX('Emissions factors'!$F$5:$CR$10,MATCH('Data Input - BAU'!$D122,'Emissions factors'!$C$5:$C$10,0),MATCH('Data Input - BAU'!V$7,'Emissions factors'!$F$4:$CR$4,0))/1000,0)","v":0},{"$f":"IFERROR(W86*INDEX('Emissions factors'!$F$5:$CR$10,MATCH('Data Input - BAU'!$D122,'Emissions factors'!$C$5:$C$10,0),MATCH('Data Input - BAU'!W$7,'Emissions factors'!$F$4:$CR$4,0))/1000,0)","v":0},{"$f":"IFERROR(X86*INDEX('Emissions factors'!$F$5:$CR$10,MATCH('Data Input - BAU'!$D122,'Emissions factors'!$C$5:$C$10,0),MATCH('Data Input - BAU'!X$7,'Emissions factors'!$F$4:$CR$4,0))/1000,0)","v":0},{"$f":"IFERROR(Y86*INDEX('Emissions factors'!$F$5:$CR$10,MATCH('Data Input - BAU'!$D122,'Emissions factors'!$C$5:$C$10,0),MATCH('Data Input - BAU'!Y$7,'Emissions factors'!$F$4:$CR$4,0))/1000,0)","v":0},{"$f":"IFERROR(Z86*INDEX('Emissions factors'!$F$5:$CR$10,MATCH('Data Input - BAU'!$D122,'Emissions factors'!$C$5:$C$10,0),MATCH('Data Input - BAU'!Z$7,'Emissions factors'!$F$4:$CR$4,0))/1000,0)","v":0},{"$f":"IFERROR(AA86*INDEX('Emissions factors'!$F$5:$CR$10,MATCH('Data Input - BAU'!$D122,'Emissions factors'!$C$5:$C$10,0),MATCH('Data Input - BAU'!AA$7,'Emissions factors'!$F$4:$CR$4,0))/1000,0)","v":0},{"$f":"IFERROR(AB86*INDEX('Emissions factors'!$F$5:$CR$10,MATCH('Data Input - BAU'!$D122,'Emissions factors'!$C$5:$C$10,0),MATCH('Data Input - BAU'!AB$7,'Emissions factors'!$F$4:$CR$4,0))/1000,0)","v":0},{"$f":"IFERROR(AC86*INDEX('Emissions factors'!$F$5:$CR$10,MATCH('Data Input - BAU'!$D122,'Emissions factors'!$C$5:$C$10,0),MATCH('Data Input - BAU'!AC$7,'Emissions factors'!$F$4:$CR$4,0))/1000,0)","v":0},{"$f":"IFERROR(AD86*INDEX('Emissions factors'!$F$5:$CR$10,MATCH('Data Input - BAU'!$D122,'Emissions factors'!$C$5:$C$10,0),MATCH('Data Input - BAU'!AD$7,'Emissions factors'!$F$4:$CR$4,0))/1000,0)","v":0},{"$f":"IFERROR(AE86*INDEX('Emissions factors'!$F$5:$CR$10,MATCH('Data Input - BAU'!$D122,'Emissions factors'!$C$5:$C$10,0),MATCH('Data Input - BAU'!AE$7,'Emissions factors'!$F$4:$CR$4,0))/1000,0)","v":0},{"$f":"IFERROR(AF86*INDEX('Emissions factors'!$F$5:$CR$10,MATCH('Data Input - BAU'!$D122,'Emissions factors'!$C$5:$C$10,0),MATCH('Data Input - BAU'!AF$7,'Emissions factors'!$F$4:$CR$4,0))/1000,0)","v":0},{"$f":"IFERROR(AG86*INDEX('Emissions factors'!$F$5:$CR$10,MATCH('Data Input - BAU'!$D122,'Emissions factors'!$C$5:$C$10,0),MATCH('Data Input - BAU'!AG$7,'Emissions factors'!$F$4:$CR$4,0))/1000,0)","v":0},{"$f":"IFERROR(AH86*INDEX('Emissions factors'!$F$5:$CR$10,MATCH('Data Input - BAU'!$D122,'Emissions factors'!$C$5:$C$10,0),MATCH('Data Input - BAU'!AH$7,'Emissions factors'!$F$4:$CR$4,0))/1000,0)","v":0},{"$f":"IFERROR(AI86*INDEX('Emissions factors'!$F$5:$CR$10,MATCH('Data Input - BAU'!$D122,'Emissions factors'!$C$5:$C$10,0),MATCH('Data Input - BAU'!AI$7,'Emissions factors'!$F$4:$CR$4,0))/1000,0)","v":0},{"$f":"IFERROR(AJ86*INDEX('Emissions factors'!$F$5:$CR$10,MATCH('Data Input - BAU'!$D122,'Emissions factors'!$C$5:$C$10,0),MATCH('Data Input - BAU'!AJ$7,'Emissions factors'!$F$4:$CR$4,0))/1000,0)","v":0},{"$f":"IFERROR(AK86*INDEX('Emissions factors'!$F$5:$CR$10,MATCH('Data Input - BAU'!$D122,'Emissions factors'!$C$5:$C$10,0),MATCH('Data Input - BAU'!AK$7,'Emissions factors'!$F$4:$CR$4,0))/1000,0)","v":0},{"$f":"IFERROR(AL86*INDEX('Emissions factors'!$F$5:$CR$10,MATCH('Data Input - BAU'!$D122,'Emissions factors'!$C$5:$C$10,0),MATCH('Data Input - BAU'!AL$7,'Emissions factors'!$F$4:$CR$4,0))/1000,0)","v":0},{"$f":"IFERROR(AM86*INDEX('Emissions factors'!$F$5:$CR$10,MATCH('Data Input - BAU'!$D122,'Emissions factors'!$C$5:$C$10,0),MATCH('Data Input - BAU'!AM$7,'Emissions factors'!$F$4:$CR$4,0))/1000,0)","v":0},{"$f":"IFERROR(AN86*INDEX('Emissions factors'!$F$5:$CR$10,MATCH('Data Input - BAU'!$D122,'Emissions factors'!$C$5:$C$10,0),MATCH('Data Input - BAU'!AN$7,'Emissions factors'!$F$4:$CR$4,0))/1000,0)","v":0},{"$f":"IFERROR(AO86*INDEX('Emissions factors'!$F$5:$CR$10,MATCH('Data Input - BAU'!$D122,'Emissions factors'!$C$5:$C$10,0),MATCH('Data Input - BAU'!AO$7,'Emissions factors'!$F$4:$CR$4,0))/1000,0)","v":0},{"$f":"IFERROR(AP86*INDEX('Emissions factors'!$F$5:$CR$10,MATCH('Data Input - BAU'!$D122,'Emissions factors'!$C$5:$C$10,0),MATCH('Data Input - BAU'!AP$7,'Emissions factors'!$F$4:$CR$4,0))/1000,0)","v":0},{"$f":"IFERROR(AQ86*INDEX('Emissions factors'!$F$5:$CR$10,MATCH('Data Input - BAU'!$D122,'Emissions factors'!$C$5:$C$10,0),MATCH('Data Input - BAU'!AQ$7,'Emissions factors'!$F$4:$CR$4,0))/1000,0)","v":0},{"$f":"IFERROR(AR86*INDEX('Emissions factors'!$F$5:$CR$10,MATCH('Data Input - BAU'!$D122,'Emissions factors'!$C$5:$C$10,0),MATCH('Data Input - BAU'!AR$7,'Emissions factors'!$F$4:$CR$4,0))/1000,0)","v":0},{"$f":"IFERROR(AS86*INDEX('Emissions factors'!$F$5:$CR$10,MATCH('Data Input - BAU'!$D122,'Emissions factors'!$C$5:$C$10,0),MATCH('Data Input - BAU'!AS$7,'Emissions factors'!$F$4:$CR$4,0))/1000,0)","v":0},{"$f":"IFERROR(AT86*INDEX('Emissions factors'!$F$5:$CR$10,MATCH('Data Input - BAU'!$D122,'Emissions factors'!$C$5:$C$10,0),MATCH('Data Input - BAU'!AT$7,'Emissions factors'!$F$4:$CR$4,0))/1000,0)","v":0},{"$f":"IFERROR(AU86*INDEX('Emissions factors'!$F$5:$CR$10,MATCH('Data Input - BAU'!$D122,'Emissions factors'!$C$5:$C$10,0),MATCH('Data Input - BAU'!AU$7,'Emissions factors'!$F$4:$CR$4,0))/1000,0)","v":0},{"$f":"IFERROR(AV86*INDEX('Emissions factors'!$F$5:$CR$10,MATCH('Data Input - BAU'!$D122,'Emissions factors'!$C$5:$C$10,0),MATCH('Data Input - BAU'!AV$7,'Emissions factors'!$F$4:$CR$4,0))/1000,0)","v":0},{"$f":"IFERROR(AW86*INDEX('Emissions factors'!$F$5:$CR$10,MATCH('Data Input - BAU'!$D122,'Emissions factors'!$C$5:$C$10,0),MATCH('Data Input - BAU'!AW$7,'Emissions factors'!$F$4:$CR$4,0))/1000,0)","v":0},{"$f":"IFERROR(AX86*INDEX('Emissions factors'!$F$5:$CR$10,MATCH('Data Input - BAU'!$D122,'Emissions factors'!$C$5:$C$10,0),MATCH('Data Input - BAU'!AX$7,'Emissions factors'!$F$4:$CR$4,0))/1000,0)","v":0},{"$f":"IFERROR(AY86*INDEX('Emissions factors'!$F$5:$CR$10,MATCH('Data Input - BAU'!$D122,'Emissions factors'!$C$5:$C$10,0),MATCH('Data Input - BAU'!AY$7,'Emissions factors'!$F$4:$CR$4,0))/1000,0)","v":0},{"$f":"IFERROR(AZ86*INDEX('Emissions factors'!$F$5:$CR$10,MATCH('Data Input - BAU'!$D122,'Emissions factors'!$C$5:$C$10,0),MATCH('Data Input - BAU'!AZ$7,'Emissions factors'!$F$4:$CR$4,0))/1000,0)","v":0},{"$f":"IFERROR(BA86*INDEX('Emissions factors'!$F$5:$CR$10,MATCH('Data Input - BAU'!$D122,'Emissions factors'!$C$5:$C$10,0),MATCH('Data Input - BAU'!BA$7,'Emissions factors'!$F$4:$CR$4,0))/1000,0)","v":0},{"$f":"IFERROR(BB86*INDEX('Emissions factors'!$F$5:$CR$10,MATCH('Data Input - BAU'!$D122,'Emissions factors'!$C$5:$C$10,0),MATCH('Data Input - BAU'!BB$7,'Emissions factors'!$F$4:$CR$4,0))/1000,0)","v":0},{"$f":"IFERROR(BC86*INDEX('Emissions factors'!$F$5:$CR$10,MATCH('Data Input - BAU'!$D122,'Emissions factors'!$C$5:$C$10,0),MATCH('Data Input - BAU'!BC$7,'Emissions factors'!$F$4:$CR$4,0))/1000,0)","v":0},{"$f":"IFERROR(BD86*INDEX('Emissions factors'!$F$5:$CR$10,MATCH('Data Input - BAU'!$D122,'Emissions factors'!$C$5:$C$10,0),MATCH('Data Input - BAU'!BD$7,'Emissions factors'!$F$4:$CR$4,0))/1000,0)","v":0},{"$f":"IFERROR(BE86*INDEX('Emissions factors'!$F$5:$CR$10,MATCH('Data Input - BAU'!$D122,'Emissions factors'!$C$5:$C$10,0),MATCH('Data Input - BAU'!BE$7,'Emissions factors'!$F$4:$CR$4,0))/1000,0)","v":0},{"$f":"IFERROR(BF86*INDEX('Emissions factors'!$F$5:$CR$10,MATCH('Data Input - BAU'!$D122,'Emissions factors'!$C$5:$C$10,0),MATCH('Data Input - BAU'!BF$7,'Emissions factors'!$F$4:$CR$4,0))/1000,0)","v":0},{"$f":"IFERROR(BG86*INDEX('Emissions factors'!$F$5:$CR$10,MATCH('Data Input - BAU'!$D122,'Emissions factors'!$C$5:$C$10,0),MATCH('Data Input - BAU'!BG$7,'Emissions factors'!$F$4:$CR$4,0))/1000,0)","v":0},{"$f":"IFERROR(BH86*INDEX('Emissions factors'!$F$5:$CR$10,MATCH('Data Input - BAU'!$D122,'Emissions factors'!$C$5:$C$10,0),MATCH('Data Input - BAU'!BH$7,'Emissions factors'!$F$4:$CR$4,0))/1000,0)","v":0},{"$f":"IFERROR(BI86*INDEX('Emissions factors'!$F$5:$CR$10,MATCH('Data Input - BAU'!$D122,'Emissions factors'!$C$5:$C$10,0),MATCH('Data Input - BAU'!BI$7,'Emissions factors'!$F$4:$CR$4,0))/1000,0)","v":0},{"$f":"IFERROR(BJ86*INDEX('Emissions factors'!$F$5:$CR$10,MATCH('Data Input - BAU'!$D122,'Emissions factors'!$C$5:$C$10,0),MATCH('Data Input - BAU'!BJ$7,'Emissions factors'!$F$4:$CR$4,0))/1000,0)","v":0},{"$f":"IFERROR(BK86*INDEX('Emissions factors'!$F$5:$CR$10,MATCH('Data Input - BAU'!$D122,'Emissions factors'!$C$5:$C$10,0),MATCH('Data Input - BAU'!BK$7,'Emissions factors'!$F$4:$CR$4,0))/1000,0)","v":0},{"$f":"IFERROR(BL86*INDEX('Emissions factors'!$F$5:$CR$10,MATCH('Data Input - BAU'!$D122,'Emissions factors'!$C$5:$C$10,0),MATCH('Data Input - BAU'!BL$7,'Emissions factors'!$F$4:$CR$4,0))/1000,0)","v":0},{"$f":"IFERROR(BM86*INDEX('Emissions factors'!$F$5:$CR$10,MATCH('Data Input - BAU'!$D122,'Emissions factors'!$C$5:$C$10,0),MATCH('Data Input - BAU'!BM$7,'Emissions factors'!$F$4:$CR$4,0))/1000,0)","v":0},{"$f":"IFERROR(BN86*INDEX('Emissions factors'!$F$5:$CR$10,MATCH('Data Input - BAU'!$D122,'Emissions factors'!$C$5:$C$10,0),MATCH('Data Input - BAU'!BN$7,'Emissions factors'!$F$4:$CR$4,0))/1000,0)","v":0},{"$f":"IFERROR(BO86*INDEX('Emissions factors'!$F$5:$CR$10,MATCH('Data Input - BAU'!$D122,'Emissions factors'!$C$5:$C$10,0),MATCH('Data Input - BAU'!BO$7,'Emissions factors'!$F$4:$CR$4,0))/1000,0)","v":0},{"$f":"IFERROR(BP86*INDEX('Emissions factors'!$F$5:$CR$10,MATCH('Data Input - BAU'!$D122,'Emissions factors'!$C$5:$C$10,0),MATCH('Data Input - BAU'!BP$7,'Emissions factors'!$F$4:$CR$4,0))/1000,0)","v":0},{"$f":"IFERROR(BQ86*INDEX('Emissions factors'!$F$5:$CR$10,MATCH('Data Input - BAU'!$D122,'Emissions factors'!$C$5:$C$10,0),MATCH('Data Input - BAU'!BQ$7,'Emissions factors'!$F$4:$CR$4,0))/1000,0)","v":0},{"$f":"IFERROR(BR86*INDEX('Emissions factors'!$F$5:$CR$10,MATCH('Data Input - BAU'!$D122,'Emissions factors'!$C$5:$C$10,0),MATCH('Data Input - BAU'!BR$7,'Emissions factors'!$F$4:$CR$4,0))/1000,0)","v":0},{"$f":"IFERROR(BS86*INDEX('Emissions factors'!$F$5:$CR$10,MATCH('Data Input - BAU'!$D122,'Emissions factors'!$C$5:$C$10,0),MATCH('Data Input - BAU'!BS$7,'Emissions factors'!$F$4:$CR$4,0))/1000,0)","v":0},{"$f":"IFERROR(BT86*INDEX('Emissions factors'!$F$5:$CR$10,MATCH('Data Input - BAU'!$D122,'Emissions factors'!$C$5:$C$10,0),MATCH('Data Input - BAU'!BT$7,'Emissions factors'!$F$4:$CR$4,0))/1000,0)","v":0},{"$f":"IFERROR(BU86*INDEX('Emissions factors'!$F$5:$CR$10,MATCH('Data Input - BAU'!$D122,'Emissions factors'!$C$5:$C$10,0),MATCH('Data Input - BAU'!BU$7,'Emissions factors'!$F$4:$CR$4,0))/1000,0)","v":0},{"$f":"IFERROR(BV86*INDEX('Emissions factors'!$F$5:$CR$10,MATCH('Data Input - BAU'!$D122,'Emissions factors'!$C$5:$C$10,0),MATCH('Data Input - BAU'!BV$7,'Emissions factors'!$F$4:$CR$4,0))/1000,0)","v":0},{"$f":"IFERROR(BW86*INDEX('Emissions factors'!$F$5:$CR$10,MATCH('Data Input - BAU'!$D122,'Emissions factors'!$C$5:$C$10,0),MATCH('Data Input - BAU'!BW$7,'Emissions factors'!$F$4:$CR$4,0))/1000,0)","v":0},{"$f":"IFERROR(BX86*INDEX('Emissions factors'!$F$5:$CR$10,MATCH('Data Input - BAU'!$D122,'Emissions factors'!$C$5:$C$10,0),MATCH('Data Input - BAU'!BX$7,'Emissions factors'!$F$4:$CR$4,0))/1000,0)","v":0},{"$f":"IFERROR(BY86*INDEX('Emissions factors'!$F$5:$CR$10,MATCH('Data Input - BAU'!$D122,'Emissions factors'!$C$5:$C$10,0),MATCH('Data Input - BAU'!BY$7,'Emissions factors'!$F$4:$CR$4,0))/1000,0)","v":0},{"$f":"IFERROR(BZ86*INDEX('Emissions factors'!$F$5:$CR$10,MATCH('Data Input - BAU'!$D122,'Emissions factors'!$C$5:$C$10,0),MATCH('Data Input - BAU'!BZ$7,'Emissions factors'!$F$4:$CR$4,0))/1000,0)","v":0},{"$f":"IFERROR(CA86*INDEX('Emissions factors'!$F$5:$CR$10,MATCH('Data Input - BAU'!$D122,'Emissions factors'!$C$5:$C$10,0),MATCH('Data Input - BAU'!CA$7,'Emissions factors'!$F$4:$CR$4,0))/1000,0)","v":0},{"$f":"IFERROR(CB86*INDEX('Emissions factors'!$F$5:$CR$10,MATCH('Data Input - BAU'!$D122,'Emissions factors'!$C$5:$C$10,0),MATCH('Data Input - BAU'!CB$7,'Emissions factors'!$F$4:$CR$4,0))/1000,0)","v":0},{"$f":"IFERROR(CC86*INDEX('Emissions factors'!$F$5:$CR$10,MATCH('Data Input - BAU'!$D122,'Emissions factors'!$C$5:$C$10,0),MATCH('Data Input - BAU'!CC$7,'Emissions factors'!$F$4:$CR$4,0))/1000,0)","v":0},{"$f":"IFERROR(CD86*INDEX('Emissions factors'!$F$5:$CR$10,MATCH('Data Input - BAU'!$D122,'Emissions factors'!$C$5:$C$10,0),MATCH('Data Input - BAU'!CD$7,'Emissions factors'!$F$4:$CR$4,0))/1000,0)","v":0},{"$f":"IFERROR(CE86*INDEX('Emissions factors'!$F$5:$CR$10,MATCH('Data Input - BAU'!$D122,'Emissions factors'!$C$5:$C$10,0),MATCH('Data Input - BAU'!CE$7,'Emissions factors'!$F$4:$CR$4,0))/1000,0)","v":0},{"$f":"IFERROR(CF86*INDEX('Emissions factors'!$F$5:$CR$10,MATCH('Data Input - BAU'!$D122,'Emissions factors'!$C$5:$C$10,0),MATCH('Data Input - BAU'!CF$7,'Emissions factors'!$F$4:$CR$4,0))/1000,0)","v":0},{"$f":"IFERROR(CG86*INDEX('Emissions factors'!$F$5:$CR$10,MATCH('Data Input - BAU'!$D122,'Emissions factors'!$C$5:$C$10,0),MATCH('Data Input - BAU'!CG$7,'Emissions factors'!$F$4:$CR$4,0))/1000,0)","v":0},{"$f":"IFERROR(CH86*INDEX('Emissions factors'!$F$5:$CR$10,MATCH('Data Input - BAU'!$D122,'Emissions factors'!$C$5:$C$10,0),MATCH('Data Input - BAU'!CH$7,'Emissions factors'!$F$4:$CR$4,0))/1000,0)","v":0},{"$f":"IFERROR(CI86*INDEX('Emissions factors'!$F$5:$CR$10,MATCH('Data Input - BAU'!$D122,'Emissions factors'!$C$5:$C$10,0),MATCH('Data Input - BAU'!CI$7,'Emissions factors'!$F$4:$CR$4,0))/1000,0)","v":0},{"$f":"IFERROR(CJ86*INDEX('Emissions factors'!$F$5:$CR$10,MATCH('Data Input - BAU'!$D122,'Emissions factors'!$C$5:$C$10,0),MATCH('Data Input - BAU'!CJ$7,'Emissions factors'!$F$4:$CR$4,0))/1000,0)","v":0},{"$f":"IFERROR(CK86*INDEX('Emissions factors'!$F$5:$CR$10,MATCH('Data Input - BAU'!$D122,'Emissions factors'!$C$5:$C$10,0),MATCH('Data Input - BAU'!CK$7,'Emissions factors'!$F$4:$CR$4,0))/1000,0)","v":0},{"$f":"IFERROR(CL86*INDEX('Emissions factors'!$F$5:$CR$10,MATCH('Data Input - BAU'!$D122,'Emissions factors'!$C$5:$C$10,0),MATCH('Data Input - BAU'!CL$7,'Emissions factors'!$F$4:$CR$4,0))/1000,0)","v":0},{"$f":"IFERROR(CM86*INDEX('Emissions factors'!$F$5:$CR$10,MATCH('Data Input - BAU'!$D122,'Emissions factors'!$C$5:$C$10,0),MATCH('Data Input - BAU'!CM$7,'Emissions factors'!$F$4:$CR$4,0))/1000,0)","v":0},{"$f":"IFERROR(CN86*INDEX('Emissions factors'!$F$5:$CR$10,MATCH('Data Input - BAU'!$D122,'Emissions factors'!$C$5:$C$10,0),MATCH('Data Input - BAU'!CN$7,'Emissions factors'!$F$4:$CR$4,0))/1000,0)","v":0},{"$f":"IFERROR(CO86*INDEX('Emissions factors'!$F$5:$CR$10,MATCH('Data Input - BAU'!$D122,'Emissions factors'!$C$5:$C$10,0),MATCH('Data Input - BAU'!CO$7,'Emissions factors'!$F$4:$CR$4,0))/1000,0)","v":0},{"$f":"IFERROR(CP86*INDEX('Emissions factors'!$F$5:$CR$10,MATCH('Data Input - BAU'!$D122,'Emissions factors'!$C$5:$C$10,0),MATCH('Data Input - BAU'!CP$7,'Emissions factors'!$F$4:$CR$4,0))/1000,0)","v":0},{"$f":"IFERROR(CQ86*INDEX('Emissions factors'!$F$5:$CR$10,MATCH('Data Input - BAU'!$D122,'Emissions factors'!$C$5:$C$10,0),MATCH('Data Input - BAU'!CQ$7,'Emissions factors'!$F$4:$CR$4,0))/1000,0)","v":0},{"$f":"IFERROR(CR86*INDEX('Emissions factors'!$F$5:$CR$10,MATCH('Data Input - BAU'!$D122,'Emissions factors'!$C$5:$C$10,0),MATCH('Data Input - BAU'!CR$7,'Emissions factors'!$F$4:$CR$4,0))/1000,0)","v":0},{"$f":"IFERROR(CS86*INDEX('Emissions factors'!$F$5:$CR$10,MATCH('Data Input - BAU'!$D122,'Emissions factors'!$C$5:$C$10,0),MATCH('Data Input - BAU'!CS$7,'Emissions factors'!$F$4:$CR$4,0))/1000,0)","v":0},{"$f":"IFERROR(CT86*INDEX('Emissions factors'!$F$5:$CR$10,MATCH('Data Input - BAU'!$D122,'Emissions factors'!$C$5:$C$10,0),MATCH('Data Input - BAU'!CT$7,'Emissions factors'!$F$4:$CR$4,0))/1000,0)","v":0},{"$f":"IFERROR(CU86*INDEX('Emissions factors'!$F$5:$CR$10,MATCH('Data Input - BAU'!$D122,'Emissions factors'!$C$5:$C$10,0),MATCH('Data Input - BAU'!CU$7,'Emissions factors'!$F$4:$CR$4,0))/1000,0)","v":0},{"$f":"IFERROR(CV86*INDEX('Emissions factors'!$F$5:$CR$10,MATCH('Data Input - BAU'!$D122,'Emissions factors'!$C$5:$C$10,0),MATCH('Data Input - BAU'!CV$7,'Emissions factors'!$F$4:$CR$4,0))/1000,0)","v":0},{"$f":"IFERROR(CW86*INDEX('Emissions factors'!$F$5:$CR$10,MATCH('Data Input - BAU'!$D122,'Emissions factors'!$C$5:$C$10,0),MATCH('Data Input - BAU'!CW$7,'Emissions factors'!$F$4:$CR$4,0))/1000,0)","v":0},{"$f":"IFERROR(CX86*INDEX('Emissions factors'!$F$5:$CR$10,MATCH('Data Input - BAU'!$D122,'Emissions factors'!$C$5:$C$10,0),MATCH('Data Input - BAU'!CX$7,'Emissions factors'!$F$4:$CR$4,0))/1000,0)","v":0},{"$f":"IFERROR(CY86*INDEX('Emissions factors'!$F$5:$CR$10,MATCH('Data Input - BAU'!$D122,'Emissions factors'!$C$5:$C$10,0),MATCH('Data Input - BAU'!CY$7,'Emissions factors'!$F$4:$CR$4,0))/1000,0)","v":0},{"$f":"IFERROR(CZ86*INDEX('Emissions factors'!$F$5:$CR$10,MATCH('Data Input - BAU'!$D122,'Emissions factors'!$C$5:$C$10,0),MATCH('Data Input - BAU'!CZ$7,'Emissions factors'!$F$4:$CR$4,0))/1000,0)","v":0},{"$f":"IFERROR(DA86*INDEX('Emissions factors'!$F$5:$CR$10,MATCH('Data Input - BAU'!$D122,'Emissions factors'!$C$5:$C$10,0),MATCH('Data Input - BAU'!DA$7,'Emissions factors'!$F$4:$CR$4,0))/1000,0)","v":0},{"$f":"IFERROR(DB86*INDEX('Emissions factors'!$F$5:$CR$10,MATCH('Data Input - BAU'!$D122,'Emissions factors'!$C$5:$C$10,0),MATCH('Data Input - BAU'!DB$7,'Emissions factors'!$F$4:$CR$4,0))/1000,0)","v":0},{"$f":"IFERROR(DC86*INDEX('Emissions factors'!$F$5:$CR$10,MATCH('Data Input - BAU'!$D122,'Emissions factors'!$C$5:$C$10,0),MATCH('Data Input - BAU'!DC$7,'Emissions factors'!$F$4:$CR$4,0))/1000,0)","v":0}]
[null,null,null,"Gas Oil","tCO2e","(Auto calculated value)",null,{"$f":"IFERROR(H87*INDEX('Emissions factors'!$F$5:$CR$10,MATCH('Data Input - BAU'!$D123,'Emissions factors'!$C$5:$C$10,0),MATCH('Data Input - BAU'!H$7,'Emissions factors'!$F$4:$CR$4,0))/1000,0)","v":543.19064937918642},{"$f":"IFERROR(I87*INDEX('Emissions factors'!$F$5:$CR$10,MATCH('Data Input - BAU'!$D123,'Emissions factors'!$C$5:$C$10,0),MATCH('Data Input - BAU'!I$7,'Emissions factors'!$F$4:$CR$4,0))/1000,0)","v":533.84551869385984},{"$f":"IFERROR(J87*INDEX('Emissions factors'!$F$5:$CR$10,MATCH('Data Input - BAU'!$D123,'Emissions factors'!$C$5:$C$10,0),MATCH('Data Input - BAU'!J$7,'Emissions factors'!$F$4:$CR$4,0))/1000,0)","v":533.84551869385984},{"$f":"IFERROR(K87*INDEX('Emissions factors'!$F$5:$CR$10,MATCH('Data Input - BAU'!$D123,'Emissions factors'!$C$5:$C$10,0),MATCH('Data Input - BAU'!K$7,'Emissions factors'!$F$4:$CR$4,0))/1000,0)","v":533.84551869385984},{"$f":"IFERROR(L87*INDEX('Emissions factors'!$F$5:$CR$10,MATCH('Data Input - BAU'!$D123,'Emissions factors'!$C$5:$C$10,0),MATCH('Data Input - BAU'!L$7,'Emissions factors'!$F$4:$CR$4,0))/1000,0)","v":533.84551869385984},{"$f":"IFERROR(M87*INDEX('Emissions factors'!$F$5:$CR$10,MATCH('Data Input - BAU'!$D123,'Emissions factors'!$C$5:$C$10,0),MATCH('Data Input - BAU'!M$7,'Emissions factors'!$F$4:$CR$4,0))/1000,0)","v":533.84551869385984},{"$f":"IFERROR(N87*INDEX('Emissions factors'!$F$5:$CR$10,MATCH('Data Input - BAU'!$D123,'Emissions factors'!$C$5:$C$10,0),MATCH('Data Input - BAU'!N$7,'Emissions factors'!$F$4:$CR$4,0))/1000,0)","v":533.84551869385984},{"$f":"IFERROR(O87*INDEX('Emissions factors'!$F$5:$CR$10,MATCH('Data Input - BAU'!$D123,'Emissions factors'!$C$5:$C$10,0),MATCH('Data Input - BAU'!O$7,'Emissions factors'!$F$4:$CR$4,0))/1000,0)","v":533.84551869385984},{"$f":"IFERROR(P87*INDEX('Emissions factors'!$F$5:$CR$10,MATCH('Data Input - BAU'!$D123,'Emissions factors'!$C$5:$C$10,0),MATCH('Data Input - BAU'!P$7,'Emissions factors'!$F$4:$CR$4,0))/1000,0)","v":0},{"$f":"IFERROR(Q87*INDEX('Emissions factors'!$F$5:$CR$10,MATCH('Data Input - BAU'!$D123,'Emissions factors'!$C$5:$C$10,0),MATCH('Data Input - BAU'!Q$7,'Emissions factors'!$F$4:$CR$4,0))/1000,0)","v":0},{"$f":"IFERROR(R87*INDEX('Emissions factors'!$F$5:$CR$10,MATCH('Data Input - BAU'!$D123,'Emissions factors'!$C$5:$C$10,0),MATCH('Data Input - BAU'!R$7,'Emissions factors'!$F$4:$CR$4,0))/1000,0)","v":0},{"$f":"IFERROR(S87*INDEX('Emissions factors'!$F$5:$CR$10,MATCH('Data Input - BAU'!$D123,'Emissions factors'!$C$5:$C$10,0),MATCH('Data Input - BAU'!S$7,'Emissions factors'!$F$4:$CR$4,0))/1000,0)","v":0},{"$f":"IFERROR(T87*INDEX('Emissions factors'!$F$5:$CR$10,MATCH('Data Input - BAU'!$D123,'Emissions factors'!$C$5:$C$10,0),MATCH('Data Input - BAU'!T$7,'Emissions factors'!$F$4:$CR$4,0))/1000,0)","v":0},{"$f":"IFERROR(U87*INDEX('Emissions factors'!$F$5:$CR$10,MATCH('Data Input - BAU'!$D123,'Emissions factors'!$C$5:$C$10,0),MATCH('Data Input - BAU'!U$7,'Emissions factors'!$F$4:$CR$4,0))/1000,0)","v":0},{"$f":"IFERROR(V87*INDEX('Emissions factors'!$F$5:$CR$10,MATCH('Data Input - BAU'!$D123,'Emissions factors'!$C$5:$C$10,0),MATCH('Data Input - BAU'!V$7,'Emissions factors'!$F$4:$CR$4,0))/1000,0)","v":0},{"$f":"IFERROR(W87*INDEX('Emissions factors'!$F$5:$CR$10,MATCH('Data Input - BAU'!$D123,'Emissions factors'!$C$5:$C$10,0),MATCH('Data Input - BAU'!W$7,'Emissions factors'!$F$4:$CR$4,0))/1000,0)","v":0},{"$f":"IFERROR(X87*INDEX('Emissions factors'!$F$5:$CR$10,MATCH('Data Input - BAU'!$D123,'Emissions factors'!$C$5:$C$10,0),MATCH('Data Input - BAU'!X$7,'Emissions factors'!$F$4:$CR$4,0))/1000,0)","v":0},{"$f":"IFERROR(Y87*INDEX('Emissions factors'!$F$5:$CR$10,MATCH('Data Input - BAU'!$D123,'Emissions factors'!$C$5:$C$10,0),MATCH('Data Input - BAU'!Y$7,'Emissions factors'!$F$4:$CR$4,0))/1000,0)","v":0},{"$f":"IFERROR(Z87*INDEX('Emissions factors'!$F$5:$CR$10,MATCH('Data Input - BAU'!$D123,'Emissions factors'!$C$5:$C$10,0),MATCH('Data Input - BAU'!Z$7,'Emissions factors'!$F$4:$CR$4,0))/1000,0)","v":0},{"$f":"IFERROR(AA87*INDEX('Emissions factors'!$F$5:$CR$10,MATCH('Data Input - BAU'!$D123,'Emissions factors'!$C$5:$C$10,0),MATCH('Data Input - BAU'!AA$7,'Emissions factors'!$F$4:$CR$4,0))/1000,0)","v":0},{"$f":"IFERROR(AB87*INDEX('Emissions factors'!$F$5:$CR$10,MATCH('Data Input - BAU'!$D123,'Emissions factors'!$C$5:$C$10,0),MATCH('Data Input - BAU'!AB$7,'Emissions factors'!$F$4:$CR$4,0))/1000,0)","v":0},{"$f":"IFERROR(AC87*INDEX('Emissions factors'!$F$5:$CR$10,MATCH('Data Input - BAU'!$D123,'Emissions factors'!$C$5:$C$10,0),MATCH('Data Input - BAU'!AC$7,'Emissions factors'!$F$4:$CR$4,0))/1000,0)","v":0},{"$f":"IFERROR(AD87*INDEX('Emissions factors'!$F$5:$CR$10,MATCH('Data Input - BAU'!$D123,'Emissions factors'!$C$5:$C$10,0),MATCH('Data Input - BAU'!AD$7,'Emissions factors'!$F$4:$CR$4,0))/1000,0)","v":0},{"$f":"IFERROR(AE87*INDEX('Emissions factors'!$F$5:$CR$10,MATCH('Data Input - BAU'!$D123,'Emissions factors'!$C$5:$C$10,0),MATCH('Data Input - BAU'!AE$7,'Emissions factors'!$F$4:$CR$4,0))/1000,0)","v":0},{"$f":"IFERROR(AF87*INDEX('Emissions factors'!$F$5:$CR$10,MATCH('Data Input - BAU'!$D123,'Emissions factors'!$C$5:$C$10,0),MATCH('Data Input - BAU'!AF$7,'Emissions factors'!$F$4:$CR$4,0))/1000,0)","v":0},{"$f":"IFERROR(AG87*INDEX('Emissions factors'!$F$5:$CR$10,MATCH('Data Input - BAU'!$D123,'Emissions factors'!$C$5:$C$10,0),MATCH('Data Input - BAU'!AG$7,'Emissions factors'!$F$4:$CR$4,0))/1000,0)","v":0},{"$f":"IFERROR(AH87*INDEX('Emissions factors'!$F$5:$CR$10,MATCH('Data Input - BAU'!$D123,'Emissions factors'!$C$5:$C$10,0),MATCH('Data Input - BAU'!AH$7,'Emissions factors'!$F$4:$CR$4,0))/1000,0)","v":0},{"$f":"IFERROR(AI87*INDEX('Emissions factors'!$F$5:$CR$10,MATCH('Data Input - BAU'!$D123,'Emissions factors'!$C$5:$C$10,0),MATCH('Data Input - BAU'!AI$7,'Emissions factors'!$F$4:$CR$4,0))/1000,0)","v":0},{"$f":"IFERROR(AJ87*INDEX('Emissions factors'!$F$5:$CR$10,MATCH('Data Input - BAU'!$D123,'Emissions factors'!$C$5:$C$10,0),MATCH('Data Input - BAU'!AJ$7,'Emissions factors'!$F$4:$CR$4,0))/1000,0)","v":0},{"$f":"IFERROR(AK87*INDEX('Emissions factors'!$F$5:$CR$10,MATCH('Data Input - BAU'!$D123,'Emissions factors'!$C$5:$C$10,0),MATCH('Data Input - BAU'!AK$7,'Emissions factors'!$F$4:$CR$4,0))/1000,0)","v":0},{"$f":"IFERROR(AL87*INDEX('Emissions factors'!$F$5:$CR$10,MATCH('Data Input - BAU'!$D123,'Emissions factors'!$C$5:$C$10,0),MATCH('Data Input - BAU'!AL$7,'Emissions factors'!$F$4:$CR$4,0))/1000,0)","v":0},{"$f":"IFERROR(AM87*INDEX('Emissions factors'!$F$5:$CR$10,MATCH('Data Input - BAU'!$D123,'Emissions factors'!$C$5:$C$10,0),MATCH('Data Input - BAU'!AM$7,'Emissions factors'!$F$4:$CR$4,0))/1000,0)","v":0},{"$f":"IFERROR(AN87*INDEX('Emissions factors'!$F$5:$CR$10,MATCH('Data Input - BAU'!$D123,'Emissions factors'!$C$5:$C$10,0),MATCH('Data Input - BAU'!AN$7,'Emissions factors'!$F$4:$CR$4,0))/1000,0)","v":0},{"$f":"IFERROR(AO87*INDEX('Emissions factors'!$F$5:$CR$10,MATCH('Data Input - BAU'!$D123,'Emissions factors'!$C$5:$C$10,0),MATCH('Data Input - BAU'!AO$7,'Emissions factors'!$F$4:$CR$4,0))/1000,0)","v":0},{"$f":"IFERROR(AP87*INDEX('Emissions factors'!$F$5:$CR$10,MATCH('Data Input - BAU'!$D123,'Emissions factors'!$C$5:$C$10,0),MATCH('Data Input - BAU'!AP$7,'Emissions factors'!$F$4:$CR$4,0))/1000,0)","v":0},{"$f":"IFERROR(AQ87*INDEX('Emissions factors'!$F$5:$CR$10,MATCH('Data Input - BAU'!$D123,'Emissions factors'!$C$5:$C$10,0),MATCH('Data Input - BAU'!AQ$7,'Emissions factors'!$F$4:$CR$4,0))/1000,0)","v":0},{"$f":"IFERROR(AR87*INDEX('Emissions factors'!$F$5:$CR$10,MATCH('Data Input - BAU'!$D123,'Emissions factors'!$C$5:$C$10,0),MATCH('Data Input - BAU'!AR$7,'Emissions factors'!$F$4:$CR$4,0))/1000,0)","v":0},{"$f":"IFERROR(AS87*INDEX('Emissions factors'!$F$5:$CR$10,MATCH('Data Input - BAU'!$D123,'Emissions factors'!$C$5:$C$10,0),MATCH('Data Input - BAU'!AS$7,'Emissions factors'!$F$4:$CR$4,0))/1000,0)","v":0},{"$f":"IFERROR(AT87*INDEX('Emissions factors'!$F$5:$CR$10,MATCH('Data Input - BAU'!$D123,'Emissions factors'!$C$5:$C$10,0),MATCH('Data Input - BAU'!AT$7,'Emissions factors'!$F$4:$CR$4,0))/1000,0)","v":0},{"$f":"IFERROR(AU87*INDEX('Emissions factors'!$F$5:$CR$10,MATCH('Data Input - BAU'!$D123,'Emissions factors'!$C$5:$C$10,0),MATCH('Data Input - BAU'!AU$7,'Emissions factors'!$F$4:$CR$4,0))/1000,0)","v":0},{"$f":"IFERROR(AV87*INDEX('Emissions factors'!$F$5:$CR$10,MATCH('Data Input - BAU'!$D123,'Emissions factors'!$C$5:$C$10,0),MATCH('Data Input - BAU'!AV$7,'Emissions factors'!$F$4:$CR$4,0))/1000,0)","v":0},{"$f":"IFERROR(AW87*INDEX('Emissions factors'!$F$5:$CR$10,MATCH('Data Input - BAU'!$D123,'Emissions factors'!$C$5:$C$10,0),MATCH('Data Input - BAU'!AW$7,'Emissions factors'!$F$4:$CR$4,0))/1000,0)","v":0},{"$f":"IFERROR(AX87*INDEX('Emissions factors'!$F$5:$CR$10,MATCH('Data Input - BAU'!$D123,'Emissions factors'!$C$5:$C$10,0),MATCH('Data Input - BAU'!AX$7,'Emissions factors'!$F$4:$CR$4,0))/1000,0)","v":0},{"$f":"IFERROR(AY87*INDEX('Emissions factors'!$F$5:$CR$10,MATCH('Data Input - BAU'!$D123,'Emissions factors'!$C$5:$C$10,0),MATCH('Data Input - BAU'!AY$7,'Emissions factors'!$F$4:$CR$4,0))/1000,0)","v":0},{"$f":"IFERROR(AZ87*INDEX('Emissions factors'!$F$5:$CR$10,MATCH('Data Input - BAU'!$D123,'Emissions factors'!$C$5:$C$10,0),MATCH('Data Input - BAU'!AZ$7,'Emissions factors'!$F$4:$CR$4,0))/1000,0)","v":0},{"$f":"IFERROR(BA87*INDEX('Emissions factors'!$F$5:$CR$10,MATCH('Data Input - BAU'!$D123,'Emissions factors'!$C$5:$C$10,0),MATCH('Data Input - BAU'!BA$7,'Emissions factors'!$F$4:$CR$4,0))/1000,0)","v":0},{"$f":"IFERROR(BB87*INDEX('Emissions factors'!$F$5:$CR$10,MATCH('Data Input - BAU'!$D123,'Emissions factors'!$C$5:$C$10,0),MATCH('Data Input - BAU'!BB$7,'Emissions factors'!$F$4:$CR$4,0))/1000,0)","v":0},{"$f":"IFERROR(BC87*INDEX('Emissions factors'!$F$5:$CR$10,MATCH('Data Input - BAU'!$D123,'Emissions factors'!$C$5:$C$10,0),MATCH('Data Input - BAU'!BC$7,'Emissions factors'!$F$4:$CR$4,0))/1000,0)","v":0},{"$f":"IFERROR(BD87*INDEX('Emissions factors'!$F$5:$CR$10,MATCH('Data Input - BAU'!$D123,'Emissions factors'!$C$5:$C$10,0),MATCH('Data Input - BAU'!BD$7,'Emissions factors'!$F$4:$CR$4,0))/1000,0)","v":0},{"$f":"IFERROR(BE87*INDEX('Emissions factors'!$F$5:$CR$10,MATCH('Data Input - BAU'!$D123,'Emissions factors'!$C$5:$C$10,0),MATCH('Data Input - BAU'!BE$7,'Emissions factors'!$F$4:$CR$4,0))/1000,0)","v":0},{"$f":"IFERROR(BF87*INDEX('Emissions factors'!$F$5:$CR$10,MATCH('Data Input - BAU'!$D123,'Emissions factors'!$C$5:$C$10,0),MATCH('Data Input - BAU'!BF$7,'Emissions factors'!$F$4:$CR$4,0))/1000,0)","v":0},{"$f":"IFERROR(BG87*INDEX('Emissions factors'!$F$5:$CR$10,MATCH('Data Input - BAU'!$D123,'Emissions factors'!$C$5:$C$10,0),MATCH('Data Input - BAU'!BG$7,'Emissions factors'!$F$4:$CR$4,0))/1000,0)","v":0},{"$f":"IFERROR(BH87*INDEX('Emissions factors'!$F$5:$CR$10,MATCH('Data Input - BAU'!$D123,'Emissions factors'!$C$5:$C$10,0),MATCH('Data Input - BAU'!BH$7,'Emissions factors'!$F$4:$CR$4,0))/1000,0)","v":0},{"$f":"IFERROR(BI87*INDEX('Emissions factors'!$F$5:$CR$10,MATCH('Data Input - BAU'!$D123,'Emissions factors'!$C$5:$C$10,0),MATCH('Data Input - BAU'!BI$7,'Emissions factors'!$F$4:$CR$4,0))/1000,0)","v":0},{"$f":"IFERROR(BJ87*INDEX('Emissions factors'!$F$5:$CR$10,MATCH('Data Input - BAU'!$D123,'Emissions factors'!$C$5:$C$10,0),MATCH('Data Input - BAU'!BJ$7,'Emissions factors'!$F$4:$CR$4,0))/1000,0)","v":0},{"$f":"IFERROR(BK87*INDEX('Emissions factors'!$F$5:$CR$10,MATCH('Data Input - BAU'!$D123,'Emissions factors'!$C$5:$C$10,0),MATCH('Data Input - BAU'!BK$7,'Emissions factors'!$F$4:$CR$4,0))/1000,0)","v":0},{"$f":"IFERROR(BL87*INDEX('Emissions factors'!$F$5:$CR$10,MATCH('Data Input - BAU'!$D123,'Emissions factors'!$C$5:$C$10,0),MATCH('Data Input - BAU'!BL$7,'Emissions factors'!$F$4:$CR$4,0))/1000,0)","v":0},{"$f":"IFERROR(BM87*INDEX('Emissions factors'!$F$5:$CR$10,MATCH('Data Input - BAU'!$D123,'Emissions factors'!$C$5:$C$10,0),MATCH('Data Input - BAU'!BM$7,'Emissions factors'!$F$4:$CR$4,0))/1000,0)","v":0},{"$f":"IFERROR(BN87*INDEX('Emissions factors'!$F$5:$CR$10,MATCH('Data Input - BAU'!$D123,'Emissions factors'!$C$5:$C$10,0),MATCH('Data Input - BAU'!BN$7,'Emissions factors'!$F$4:$CR$4,0))/1000,0)","v":0},{"$f":"IFERROR(BO87*INDEX('Emissions factors'!$F$5:$CR$10,MATCH('Data Input - BAU'!$D123,'Emissions factors'!$C$5:$C$10,0),MATCH('Data Input - BAU'!BO$7,'Emissions factors'!$F$4:$CR$4,0))/1000,0)","v":0},{"$f":"IFERROR(BP87*INDEX('Emissions factors'!$F$5:$CR$10,MATCH('Data Input - BAU'!$D123,'Emissions factors'!$C$5:$C$10,0),MATCH('Data Input - BAU'!BP$7,'Emissions factors'!$F$4:$CR$4,0))/1000,0)","v":0},{"$f":"IFERROR(BQ87*INDEX('Emissions factors'!$F$5:$CR$10,MATCH('Data Input - BAU'!$D123,'Emissions factors'!$C$5:$C$10,0),MATCH('Data Input - BAU'!BQ$7,'Emissions factors'!$F$4:$CR$4,0))/1000,0)","v":0},{"$f":"IFERROR(BR87*INDEX('Emissions factors'!$F$5:$CR$10,MATCH('Data Input - BAU'!$D123,'Emissions factors'!$C$5:$C$10,0),MATCH('Data Input - BAU'!BR$7,'Emissions factors'!$F$4:$CR$4,0))/1000,0)","v":0},{"$f":"IFERROR(BS87*INDEX('Emissions factors'!$F$5:$CR$10,MATCH('Data Input - BAU'!$D123,'Emissions factors'!$C$5:$C$10,0),MATCH('Data Input - BAU'!BS$7,'Emissions factors'!$F$4:$CR$4,0))/1000,0)","v":0},{"$f":"IFERROR(BT87*INDEX('Emissions factors'!$F$5:$CR$10,MATCH('Data Input - BAU'!$D123,'Emissions factors'!$C$5:$C$10,0),MATCH('Data Input - BAU'!BT$7,'Emissions factors'!$F$4:$CR$4,0))/1000,0)","v":0},{"$f":"IFERROR(BU87*INDEX('Emissions factors'!$F$5:$CR$10,MATCH('Data Input - BAU'!$D123,'Emissions factors'!$C$5:$C$10,0),MATCH('Data Input - BAU'!BU$7,'Emissions factors'!$F$4:$CR$4,0))/1000,0)","v":0},{"$f":"IFERROR(BV87*INDEX('Emissions factors'!$F$5:$CR$10,MATCH('Data Input - BAU'!$D123,'Emissions factors'!$C$5:$C$10,0),MATCH('Data Input - BAU'!BV$7,'Emissions factors'!$F$4:$CR$4,0))/1000,0)","v":0},{"$f":"IFERROR(BW87*INDEX('Emissions factors'!$F$5:$CR$10,MATCH('Data Input - BAU'!$D123,'Emissions factors'!$C$5:$C$10,0),MATCH('Data Input - BAU'!BW$7,'Emissions factors'!$F$4:$CR$4,0))/1000,0)","v":0},{"$f":"IFERROR(BX87*INDEX('Emissions factors'!$F$5:$CR$10,MATCH('Data Input - BAU'!$D123,'Emissions factors'!$C$5:$C$10,0),MATCH('Data Input - BAU'!BX$7,'Emissions factors'!$F$4:$CR$4,0))/1000,0)","v":0},{"$f":"IFERROR(BY87*INDEX('Emissions factors'!$F$5:$CR$10,MATCH('Data Input - BAU'!$D123,'Emissions factors'!$C$5:$C$10,0),MATCH('Data Input - BAU'!BY$7,'Emissions factors'!$F$4:$CR$4,0))/1000,0)","v":0},{"$f":"IFERROR(BZ87*INDEX('Emissions factors'!$F$5:$CR$10,MATCH('Data Input - BAU'!$D123,'Emissions factors'!$C$5:$C$10,0),MATCH('Data Input - BAU'!BZ$7,'Emissions factors'!$F$4:$CR$4,0))/1000,0)","v":0},{"$f":"IFERROR(CA87*INDEX('Emissions factors'!$F$5:$CR$10,MATCH('Data Input - BAU'!$D123,'Emissions factors'!$C$5:$C$10,0),MATCH('Data Input - BAU'!CA$7,'Emissions factors'!$F$4:$CR$4,0))/1000,0)","v":0},{"$f":"IFERROR(CB87*INDEX('Emissions factors'!$F$5:$CR$10,MATCH('Data Input - BAU'!$D123,'Emissions factors'!$C$5:$C$10,0),MATCH('Data Input - BAU'!CB$7,'Emissions factors'!$F$4:$CR$4,0))/1000,0)","v":0},{"$f":"IFERROR(CC87*INDEX('Emissions factors'!$F$5:$CR$10,MATCH('Data Input - BAU'!$D123,'Emissions factors'!$C$5:$C$10,0),MATCH('Data Input - BAU'!CC$7,'Emissions factors'!$F$4:$CR$4,0))/1000,0)","v":0},{"$f":"IFERROR(CD87*INDEX('Emissions factors'!$F$5:$CR$10,MATCH('Data Input - BAU'!$D123,'Emissions factors'!$C$5:$C$10,0),MATCH('Data Input - BAU'!CD$7,'Emissions factors'!$F$4:$CR$4,0))/1000,0)","v":0},{"$f":"IFERROR(CE87*INDEX('Emissions factors'!$F$5:$CR$10,MATCH('Data Input - BAU'!$D123,'Emissions factors'!$C$5:$C$10,0),MATCH('Data Input - BAU'!CE$7,'Emissions factors'!$F$4:$CR$4,0))/1000,0)","v":0},{"$f":"IFERROR(CF87*INDEX('Emissions factors'!$F$5:$CR$10,MATCH('Data Input - BAU'!$D123,'Emissions factors'!$C$5:$C$10,0),MATCH('Data Input - BAU'!CF$7,'Emissions factors'!$F$4:$CR$4,0))/1000,0)","v":0},{"$f":"IFERROR(CG87*INDEX('Emissions factors'!$F$5:$CR$10,MATCH('Data Input - BAU'!$D123,'Emissions factors'!$C$5:$C$10,0),MATCH('Data Input - BAU'!CG$7,'Emissions factors'!$F$4:$CR$4,0))/1000,0)","v":0},{"$f":"IFERROR(CH87*INDEX('Emissions factors'!$F$5:$CR$10,MATCH('Data Input - BAU'!$D123,'Emissions factors'!$C$5:$C$10,0),MATCH('Data Input - BAU'!CH$7,'Emissions factors'!$F$4:$CR$4,0))/1000,0)","v":0},{"$f":"IFERROR(CI87*INDEX('Emissions factors'!$F$5:$CR$10,MATCH('Data Input - BAU'!$D123,'Emissions factors'!$C$5:$C$10,0),MATCH('Data Input - BAU'!CI$7,'Emissions factors'!$F$4:$CR$4,0))/1000,0)","v":0},{"$f":"IFERROR(CJ87*INDEX('Emissions factors'!$F$5:$CR$10,MATCH('Data Input - BAU'!$D123,'Emissions factors'!$C$5:$C$10,0),MATCH('Data Input - BAU'!CJ$7,'Emissions factors'!$F$4:$CR$4,0))/1000,0)","v":0},{"$f":"IFERROR(CK87*INDEX('Emissions factors'!$F$5:$CR$10,MATCH('Data Input - BAU'!$D123,'Emissions factors'!$C$5:$C$10,0),MATCH('Data Input - BAU'!CK$7,'Emissions factors'!$F$4:$CR$4,0))/1000,0)","v":0},{"$f":"IFERROR(CL87*INDEX('Emissions factors'!$F$5:$CR$10,MATCH('Data Input - BAU'!$D123,'Emissions factors'!$C$5:$C$10,0),MATCH('Data Input - BAU'!CL$7,'Emissions factors'!$F$4:$CR$4,0))/1000,0)","v":0},{"$f":"IFERROR(CM87*INDEX('Emissions factors'!$F$5:$CR$10,MATCH('Data Input - BAU'!$D123,'Emissions factors'!$C$5:$C$10,0),MATCH('Data Input - BAU'!CM$7,'Emissions factors'!$F$4:$CR$4,0))/1000,0)","v":0},{"$f":"IFERROR(CN87*INDEX('Emissions factors'!$F$5:$CR$10,MATCH('Data Input - BAU'!$D123,'Emissions factors'!$C$5:$C$10,0),MATCH('Data Input - BAU'!CN$7,'Emissions factors'!$F$4:$CR$4,0))/1000,0)","v":0},{"$f":"IFERROR(CO87*INDEX('Emissions factors'!$F$5:$CR$10,MATCH('Data Input - BAU'!$D123,'Emissions factors'!$C$5:$C$10,0),MATCH('Data Input - BAU'!CO$7,'Emissions factors'!$F$4:$CR$4,0))/1000,0)","v":0},{"$f":"IFERROR(CP87*INDEX('Emissions factors'!$F$5:$CR$10,MATCH('Data Input - BAU'!$D123,'Emissions factors'!$C$5:$C$10,0),MATCH('Data Input - BAU'!CP$7,'Emissions factors'!$F$4:$CR$4,0))/1000,0)","v":0},{"$f":"IFERROR(CQ87*INDEX('Emissions factors'!$F$5:$CR$10,MATCH('Data Input - BAU'!$D123,'Emissions factors'!$C$5:$C$10,0),MATCH('Data Input - BAU'!CQ$7,'Emissions factors'!$F$4:$CR$4,0))/1000,0)","v":0},{"$f":"IFERROR(CR87*INDEX('Emissions factors'!$F$5:$CR$10,MATCH('Data Input - BAU'!$D123,'Emissions factors'!$C$5:$C$10,0),MATCH('Data Input - BAU'!CR$7,'Emissions factors'!$F$4:$CR$4,0))/1000,0)","v":0},{"$f":"IFERROR(CS87*INDEX('Emissions factors'!$F$5:$CR$10,MATCH('Data Input - BAU'!$D123,'Emissions factors'!$C$5:$C$10,0),MATCH('Data Input - BAU'!CS$7,'Emissions factors'!$F$4:$CR$4,0))/1000,0)","v":0},{"$f":"IFERROR(CT87*INDEX('Emissions factors'!$F$5:$CR$10,MATCH('Data Input - BAU'!$D123,'Emissions factors'!$C$5:$C$10,0),MATCH('Data Input - BAU'!CT$7,'Emissions factors'!$F$4:$CR$4,0))/1000,0)","v":0},{"$f":"IFERROR(CU87*INDEX('Emissions factors'!$F$5:$CR$10,MATCH('Data Input - BAU'!$D123,'Emissions factors'!$C$5:$C$10,0),MATCH('Data Input - BAU'!CU$7,'Emissions factors'!$F$4:$CR$4,0))/1000,0)","v":0},{"$f":"IFERROR(CV87*INDEX('Emissions factors'!$F$5:$CR$10,MATCH('Data Input - BAU'!$D123,'Emissions factors'!$C$5:$C$10,0),MATCH('Data Input - BAU'!CV$7,'Emissions factors'!$F$4:$CR$4,0))/1000,0)","v":0},{"$f":"IFERROR(CW87*INDEX('Emissions factors'!$F$5:$CR$10,MATCH('Data Input - BAU'!$D123,'Emissions factors'!$C$5:$C$10,0),MATCH('Data Input - BAU'!CW$7,'Emissions factors'!$F$4:$CR$4,0))/1000,0)","v":0},{"$f":"IFERROR(CX87*INDEX('Emissions factors'!$F$5:$CR$10,MATCH('Data Input - BAU'!$D123,'Emissions factors'!$C$5:$C$10,0),MATCH('Data Input - BAU'!CX$7,'Emissions factors'!$F$4:$CR$4,0))/1000,0)","v":0},{"$f":"IFERROR(CY87*INDEX('Emissions factors'!$F$5:$CR$10,MATCH('Data Input - BAU'!$D123,'Emissions factors'!$C$5:$C$10,0),MATCH('Data Input - BAU'!CY$7,'Emissions factors'!$F$4:$CR$4,0))/1000,0)","v":0},{"$f":"IFERROR(CZ87*INDEX('Emissions factors'!$F$5:$CR$10,MATCH('Data Input - BAU'!$D123,'Emissions factors'!$C$5:$C$10,0),MATCH('Data Input - BAU'!CZ$7,'Emissions factors'!$F$4:$CR$4,0))/1000,0)","v":0},{"$f":"IFERROR(DA87*INDEX('Emissions factors'!$F$5:$CR$10,MATCH('Data Input - BAU'!$D123,'Emissions factors'!$C$5:$C$10,0),MATCH('Data Input - BAU'!DA$7,'Emissions factors'!$F$4:$CR$4,0))/1000,0)","v":0},{"$f":"IFERROR(DB87*INDEX('Emissions factors'!$F$5:$CR$10,MATCH('Data Input - BAU'!$D123,'Emissions factors'!$C$5:$C$10,0),MATCH('Data Input - BAU'!DB$7,'Emissions factors'!$F$4:$CR$4,0))/1000,0)","v":0},{"$f":"IFERROR(DC87*INDEX('Emissions factors'!$F$5:$CR$10,MATCH('Data Input - BAU'!$D123,'Emissions factors'!$C$5:$C$10,0),MATCH('Data Input - BAU'!DC$7,'Emissions factors'!$F$4:$CR$4,0))/1000,0)","v":0}]
[null,null,null,"Road - Petrol","tCO2e","(Auto calculated value)",null,{"$f":"IFERROR(H88*INDEX('Emissions factors'!$F$5:$CR$10,MATCH('Data Input - BAU'!$D124,'Emissions factors'!$C$5:$C$10,0),MATCH('Data Input - BAU'!H$7,'Emissions factors'!$F$4:$CR$4,0))/1000,0)","v":0},{"$f":"IFERROR(I88*INDEX('Emissions factors'!$F$5:$CR$10,MATCH('Data Input - BAU'!$D124,'Emissions factors'!$C$5:$C$10,0),MATCH('Data Input - BAU'!I$7,'Emissions factors'!$F$4:$CR$4,0))/1000,0)","v":0},{"$f":"IFERROR(J88*INDEX('Emissions factors'!$F$5:$CR$10,MATCH('Data Input - BAU'!$D124,'Emissions factors'!$C$5:$C$10,0),MATCH('Data Input - BAU'!J$7,'Emissions factors'!$F$4:$CR$4,0))/1000,0)","v":0},{"$f":"IFERROR(K88*INDEX('Emissions factors'!$F$5:$CR$10,MATCH('Data Input - BAU'!$D124,'Emissions factors'!$C$5:$C$10,0),MATCH('Data Input - BAU'!K$7,'Emissions factors'!$F$4:$CR$4,0))/1000,0)","v":0},{"$f":"IFERROR(L88*INDEX('Emissions factors'!$F$5:$CR$10,MATCH('Data Input - BAU'!$D124,'Emissions factors'!$C$5:$C$10,0),MATCH('Data Input - BAU'!L$7,'Emissions factors'!$F$4:$CR$4,0))/1000,0)","v":0},{"$f":"IFERROR(M88*INDEX('Emissions factors'!$F$5:$CR$10,MATCH('Data Input - BAU'!$D124,'Emissions factors'!$C$5:$C$10,0),MATCH('Data Input - BAU'!M$7,'Emissions factors'!$F$4:$CR$4,0))/1000,0)","v":0},{"$f":"IFERROR(N88*INDEX('Emissions factors'!$F$5:$CR$10,MATCH('Data Input - BAU'!$D124,'Emissions factors'!$C$5:$C$10,0),MATCH('Data Input - BAU'!N$7,'Emissions factors'!$F$4:$CR$4,0))/1000,0)","v":0},{"$f":"IFERROR(O88*INDEX('Emissions factors'!$F$5:$CR$10,MATCH('Data Input - BAU'!$D124,'Emissions factors'!$C$5:$C$10,0),MATCH('Data Input - BAU'!O$7,'Emissions factors'!$F$4:$CR$4,0))/1000,0)","v":0},{"$f":"IFERROR(P88*INDEX('Emissions factors'!$F$5:$CR$10,MATCH('Data Input - BAU'!$D124,'Emissions factors'!$C$5:$C$10,0),MATCH('Data Input - BAU'!P$7,'Emissions factors'!$F$4:$CR$4,0))/1000,0)","v":0},{"$f":"IFERROR(Q88*INDEX('Emissions factors'!$F$5:$CR$10,MATCH('Data Input - BAU'!$D124,'Emissions factors'!$C$5:$C$10,0),MATCH('Data Input - BAU'!Q$7,'Emissions factors'!$F$4:$CR$4,0))/1000,0)","v":0},{"$f":"IFERROR(R88*INDEX('Emissions factors'!$F$5:$CR$10,MATCH('Data Input - BAU'!$D124,'Emissions factors'!$C$5:$C$10,0),MATCH('Data Input - BAU'!R$7,'Emissions factors'!$F$4:$CR$4,0))/1000,0)","v":0},{"$f":"IFERROR(S88*INDEX('Emissions factors'!$F$5:$CR$10,MATCH('Data Input - BAU'!$D124,'Emissions factors'!$C$5:$C$10,0),MATCH('Data Input - BAU'!S$7,'Emissions factors'!$F$4:$CR$4,0))/1000,0)","v":0},{"$f":"IFERROR(T88*INDEX('Emissions factors'!$F$5:$CR$10,MATCH('Data Input - BAU'!$D124,'Emissions factors'!$C$5:$C$10,0),MATCH('Data Input - BAU'!T$7,'Emissions factors'!$F$4:$CR$4,0))/1000,0)","v":0},{"$f":"IFERROR(U88*INDEX('Emissions factors'!$F$5:$CR$10,MATCH('Data Input - BAU'!$D124,'Emissions factors'!$C$5:$C$10,0),MATCH('Data Input - BAU'!U$7,'Emissions factors'!$F$4:$CR$4,0))/1000,0)","v":0},{"$f":"IFERROR(V88*INDEX('Emissions factors'!$F$5:$CR$10,MATCH('Data Input - BAU'!$D124,'Emissions factors'!$C$5:$C$10,0),MATCH('Data Input - BAU'!V$7,'Emissions factors'!$F$4:$CR$4,0))/1000,0)","v":0},{"$f":"IFERROR(W88*INDEX('Emissions factors'!$F$5:$CR$10,MATCH('Data Input - BAU'!$D124,'Emissions factors'!$C$5:$C$10,0),MATCH('Data Input - BAU'!W$7,'Emissions factors'!$F$4:$CR$4,0))/1000,0)","v":0},{"$f":"IFERROR(X88*INDEX('Emissions factors'!$F$5:$CR$10,MATCH('Data Input - BAU'!$D124,'Emissions factors'!$C$5:$C$10,0),MATCH('Data Input - BAU'!X$7,'Emissions factors'!$F$4:$CR$4,0))/1000,0)","v":0},{"$f":"IFERROR(Y88*INDEX('Emissions factors'!$F$5:$CR$10,MATCH('Data Input - BAU'!$D124,'Emissions factors'!$C$5:$C$10,0),MATCH('Data Input - BAU'!Y$7,'Emissions factors'!$F$4:$CR$4,0))/1000,0)","v":0},{"$f":"IFERROR(Z88*INDEX('Emissions factors'!$F$5:$CR$10,MATCH('Data Input - BAU'!$D124,'Emissions factors'!$C$5:$C$10,0),MATCH('Data Input - BAU'!Z$7,'Emissions factors'!$F$4:$CR$4,0))/1000,0)","v":0},{"$f":"IFERROR(AA88*INDEX('Emissions factors'!$F$5:$CR$10,MATCH('Data Input - BAU'!$D124,'Emissions factors'!$C$5:$C$10,0),MATCH('Data Input - BAU'!AA$7,'Emissions factors'!$F$4:$CR$4,0))/1000,0)","v":0},{"$f":"IFERROR(AB88*INDEX('Emissions factors'!$F$5:$CR$10,MATCH('Data Input - BAU'!$D124,'Emissions factors'!$C$5:$C$10,0),MATCH('Data Input - BAU'!AB$7,'Emissions factors'!$F$4:$CR$4,0))/1000,0)","v":0},{"$f":"IFERROR(AC88*INDEX('Emissions factors'!$F$5:$CR$10,MATCH('Data Input - BAU'!$D124,'Emissions factors'!$C$5:$C$10,0),MATCH('Data Input - BAU'!AC$7,'Emissions factors'!$F$4:$CR$4,0))/1000,0)","v":0},{"$f":"IFERROR(AD88*INDEX('Emissions factors'!$F$5:$CR$10,MATCH('Data Input - BAU'!$D124,'Emissions factors'!$C$5:$C$10,0),MATCH('Data Input - BAU'!AD$7,'Emissions factors'!$F$4:$CR$4,0))/1000,0)","v":0},{"$f":"IFERROR(AE88*INDEX('Emissions factors'!$F$5:$CR$10,MATCH('Data Input - BAU'!$D124,'Emissions factors'!$C$5:$C$10,0),MATCH('Data Input - BAU'!AE$7,'Emissions factors'!$F$4:$CR$4,0))/1000,0)","v":0},{"$f":"IFERROR(AF88*INDEX('Emissions factors'!$F$5:$CR$10,MATCH('Data Input - BAU'!$D124,'Emissions factors'!$C$5:$C$10,0),MATCH('Data Input - BAU'!AF$7,'Emissions factors'!$F$4:$CR$4,0))/1000,0)","v":0},{"$f":"IFERROR(AG88*INDEX('Emissions factors'!$F$5:$CR$10,MATCH('Data Input - BAU'!$D124,'Emissions factors'!$C$5:$C$10,0),MATCH('Data Input - BAU'!AG$7,'Emissions factors'!$F$4:$CR$4,0))/1000,0)","v":0},{"$f":"IFERROR(AH88*INDEX('Emissions factors'!$F$5:$CR$10,MATCH('Data Input - BAU'!$D124,'Emissions factors'!$C$5:$C$10,0),MATCH('Data Input - BAU'!AH$7,'Emissions factors'!$F$4:$CR$4,0))/1000,0)","v":0},{"$f":"IFERROR(AI88*INDEX('Emissions factors'!$F$5:$CR$10,MATCH('Data Input - BAU'!$D124,'Emissions factors'!$C$5:$C$10,0),MATCH('Data Input - BAU'!AI$7,'Emissions factors'!$F$4:$CR$4,0))/1000,0)","v":0},{"$f":"IFERROR(AJ88*INDEX('Emissions factors'!$F$5:$CR$10,MATCH('Data Input - BAU'!$D124,'Emissions factors'!$C$5:$C$10,0),MATCH('Data Input - BAU'!AJ$7,'Emissions factors'!$F$4:$CR$4,0))/1000,0)","v":0},{"$f":"IFERROR(AK88*INDEX('Emissions factors'!$F$5:$CR$10,MATCH('Data Input - BAU'!$D124,'Emissions factors'!$C$5:$C$10,0),MATCH('Data Input - BAU'!AK$7,'Emissions factors'!$F$4:$CR$4,0))/1000,0)","v":0},{"$f":"IFERROR(AL88*INDEX('Emissions factors'!$F$5:$CR$10,MATCH('Data Input - BAU'!$D124,'Emissions factors'!$C$5:$C$10,0),MATCH('Data Input - BAU'!AL$7,'Emissions factors'!$F$4:$CR$4,0))/1000,0)","v":0},{"$f":"IFERROR(AM88*INDEX('Emissions factors'!$F$5:$CR$10,MATCH('Data Input - BAU'!$D124,'Emissions factors'!$C$5:$C$10,0),MATCH('Data Input - BAU'!AM$7,'Emissions factors'!$F$4:$CR$4,0))/1000,0)","v":0},{"$f":"IFERROR(AN88*INDEX('Emissions factors'!$F$5:$CR$10,MATCH('Data Input - BAU'!$D124,'Emissions factors'!$C$5:$C$10,0),MATCH('Data Input - BAU'!AN$7,'Emissions factors'!$F$4:$CR$4,0))/1000,0)","v":0},{"$f":"IFERROR(AO88*INDEX('Emissions factors'!$F$5:$CR$10,MATCH('Data Input - BAU'!$D124,'Emissions factors'!$C$5:$C$10,0),MATCH('Data Input - BAU'!AO$7,'Emissions factors'!$F$4:$CR$4,0))/1000,0)","v":0},{"$f":"IFERROR(AP88*INDEX('Emissions factors'!$F$5:$CR$10,MATCH('Data Input - BAU'!$D124,'Emissions factors'!$C$5:$C$10,0),MATCH('Data Input - BAU'!AP$7,'Emissions factors'!$F$4:$CR$4,0))/1000,0)","v":0},{"$f":"IFERROR(AQ88*INDEX('Emissions factors'!$F$5:$CR$10,MATCH('Data Input - BAU'!$D124,'Emissions factors'!$C$5:$C$10,0),MATCH('Data Input - BAU'!AQ$7,'Emissions factors'!$F$4:$CR$4,0))/1000,0)","v":0},{"$f":"IFERROR(AR88*INDEX('Emissions factors'!$F$5:$CR$10,MATCH('Data Input - BAU'!$D124,'Emissions factors'!$C$5:$C$10,0),MATCH('Data Input - BAU'!AR$7,'Emissions factors'!$F$4:$CR$4,0))/1000,0)","v":0},{"$f":"IFERROR(AS88*INDEX('Emissions factors'!$F$5:$CR$10,MATCH('Data Input - BAU'!$D124,'Emissions factors'!$C$5:$C$10,0),MATCH('Data Input - BAU'!AS$7,'Emissions factors'!$F$4:$CR$4,0))/1000,0)","v":0},{"$f":"IFERROR(AT88*INDEX('Emissions factors'!$F$5:$CR$10,MATCH('Data Input - BAU'!$D124,'Emissions factors'!$C$5:$C$10,0),MATCH('Data Input - BAU'!AT$7,'Emissions factors'!$F$4:$CR$4,0))/1000,0)","v":0},{"$f":"IFERROR(AU88*INDEX('Emissions factors'!$F$5:$CR$10,MATCH('Data Input - BAU'!$D124,'Emissions factors'!$C$5:$C$10,0),MATCH('Data Input - BAU'!AU$7,'Emissions factors'!$F$4:$CR$4,0))/1000,0)","v":0},{"$f":"IFERROR(AV88*INDEX('Emissions factors'!$F$5:$CR$10,MATCH('Data Input - BAU'!$D124,'Emissions factors'!$C$5:$C$10,0),MATCH('Data Input - BAU'!AV$7,'Emissions factors'!$F$4:$CR$4,0))/1000,0)","v":0},{"$f":"IFERROR(AW88*INDEX('Emissions factors'!$F$5:$CR$10,MATCH('Data Input - BAU'!$D124,'Emissions factors'!$C$5:$C$10,0),MATCH('Data Input - BAU'!AW$7,'Emissions factors'!$F$4:$CR$4,0))/1000,0)","v":0},{"$f":"IFERROR(AX88*INDEX('Emissions factors'!$F$5:$CR$10,MATCH('Data Input - BAU'!$D124,'Emissions factors'!$C$5:$C$10,0),MATCH('Data Input - BAU'!AX$7,'Emissions factors'!$F$4:$CR$4,0))/1000,0)","v":0},{"$f":"IFERROR(AY88*INDEX('Emissions factors'!$F$5:$CR$10,MATCH('Data Input - BAU'!$D124,'Emissions factors'!$C$5:$C$10,0),MATCH('Data Input - BAU'!AY$7,'Emissions factors'!$F$4:$CR$4,0))/1000,0)","v":0},{"$f":"IFERROR(AZ88*INDEX('Emissions factors'!$F$5:$CR$10,MATCH('Data Input - BAU'!$D124,'Emissions factors'!$C$5:$C$10,0),MATCH('Data Input - BAU'!AZ$7,'Emissions factors'!$F$4:$CR$4,0))/1000,0)","v":0},{"$f":"IFERROR(BA88*INDEX('Emissions factors'!$F$5:$CR$10,MATCH('Data Input - BAU'!$D124,'Emissions factors'!$C$5:$C$10,0),MATCH('Data Input - BAU'!BA$7,'Emissions factors'!$F$4:$CR$4,0))/1000,0)","v":0},{"$f":"IFERROR(BB88*INDEX('Emissions factors'!$F$5:$CR$10,MATCH('Data Input - BAU'!$D124,'Emissions factors'!$C$5:$C$10,0),MATCH('Data Input - BAU'!BB$7,'Emissions factors'!$F$4:$CR$4,0))/1000,0)","v":0},{"$f":"IFERROR(BC88*INDEX('Emissions factors'!$F$5:$CR$10,MATCH('Data Input - BAU'!$D124,'Emissions factors'!$C$5:$C$10,0),MATCH('Data Input - BAU'!BC$7,'Emissions factors'!$F$4:$CR$4,0))/1000,0)","v":0},{"$f":"IFERROR(BD88*INDEX('Emissions factors'!$F$5:$CR$10,MATCH('Data Input - BAU'!$D124,'Emissions factors'!$C$5:$C$10,0),MATCH('Data Input - BAU'!BD$7,'Emissions factors'!$F$4:$CR$4,0))/1000,0)","v":0},{"$f":"IFERROR(BE88*INDEX('Emissions factors'!$F$5:$CR$10,MATCH('Data Input - BAU'!$D124,'Emissions factors'!$C$5:$C$10,0),MATCH('Data Input - BAU'!BE$7,'Emissions factors'!$F$4:$CR$4,0))/1000,0)","v":0},{"$f":"IFERROR(BF88*INDEX('Emissions factors'!$F$5:$CR$10,MATCH('Data Input - BAU'!$D124,'Emissions factors'!$C$5:$C$10,0),MATCH('Data Input - BAU'!BF$7,'Emissions factors'!$F$4:$CR$4,0))/1000,0)","v":0},{"$f":"IFERROR(BG88*INDEX('Emissions factors'!$F$5:$CR$10,MATCH('Data Input - BAU'!$D124,'Emissions factors'!$C$5:$C$10,0),MATCH('Data Input - BAU'!BG$7,'Emissions factors'!$F$4:$CR$4,0))/1000,0)","v":0},{"$f":"IFERROR(BH88*INDEX('Emissions factors'!$F$5:$CR$10,MATCH('Data Input - BAU'!$D124,'Emissions factors'!$C$5:$C$10,0),MATCH('Data Input - BAU'!BH$7,'Emissions factors'!$F$4:$CR$4,0))/1000,0)","v":0},{"$f":"IFERROR(BI88*INDEX('Emissions factors'!$F$5:$CR$10,MATCH('Data Input - BAU'!$D124,'Emissions factors'!$C$5:$C$10,0),MATCH('Data Input - BAU'!BI$7,'Emissions factors'!$F$4:$CR$4,0))/1000,0)","v":0},{"$f":"IFERROR(BJ88*INDEX('Emissions factors'!$F$5:$CR$10,MATCH('Data Input - BAU'!$D124,'Emissions factors'!$C$5:$C$10,0),MATCH('Data Input - BAU'!BJ$7,'Emissions factors'!$F$4:$CR$4,0))/1000,0)","v":0},{"$f":"IFERROR(BK88*INDEX('Emissions factors'!$F$5:$CR$10,MATCH('Data Input - BAU'!$D124,'Emissions factors'!$C$5:$C$10,0),MATCH('Data Input - BAU'!BK$7,'Emissions factors'!$F$4:$CR$4,0))/1000,0)","v":0},{"$f":"IFERROR(BL88*INDEX('Emissions factors'!$F$5:$CR$10,MATCH('Data Input - BAU'!$D124,'Emissions factors'!$C$5:$C$10,0),MATCH('Data Input - BAU'!BL$7,'Emissions factors'!$F$4:$CR$4,0))/1000,0)","v":0},{"$f":"IFERROR(BM88*INDEX('Emissions factors'!$F$5:$CR$10,MATCH('Data Input - BAU'!$D124,'Emissions factors'!$C$5:$C$10,0),MATCH('Data Input - BAU'!BM$7,'Emissions factors'!$F$4:$CR$4,0))/1000,0)","v":0},{"$f":"IFERROR(BN88*INDEX('Emissions factors'!$F$5:$CR$10,MATCH('Data Input - BAU'!$D124,'Emissions factors'!$C$5:$C$10,0),MATCH('Data Input - BAU'!BN$7,'Emissions factors'!$F$4:$CR$4,0))/1000,0)","v":0},{"$f":"IFERROR(BO88*INDEX('Emissions factors'!$F$5:$CR$10,MATCH('Data Input - BAU'!$D124,'Emissions factors'!$C$5:$C$10,0),MATCH('Data Input - BAU'!BO$7,'Emissions factors'!$F$4:$CR$4,0))/1000,0)","v":0},{"$f":"IFERROR(BP88*INDEX('Emissions factors'!$F$5:$CR$10,MATCH('Data Input - BAU'!$D124,'Emissions factors'!$C$5:$C$10,0),MATCH('Data Input - BAU'!BP$7,'Emissions factors'!$F$4:$CR$4,0))/1000,0)","v":0},{"$f":"IFERROR(BQ88*INDEX('Emissions factors'!$F$5:$CR$10,MATCH('Data Input - BAU'!$D124,'Emissions factors'!$C$5:$C$10,0),MATCH('Data Input - BAU'!BQ$7,'Emissions factors'!$F$4:$CR$4,0))/1000,0)","v":0},{"$f":"IFERROR(BR88*INDEX('Emissions factors'!$F$5:$CR$10,MATCH('Data Input - BAU'!$D124,'Emissions factors'!$C$5:$C$10,0),MATCH('Data Input - BAU'!BR$7,'Emissions factors'!$F$4:$CR$4,0))/1000,0)","v":0},{"$f":"IFERROR(BS88*INDEX('Emissions factors'!$F$5:$CR$10,MATCH('Data Input - BAU'!$D124,'Emissions factors'!$C$5:$C$10,0),MATCH('Data Input - BAU'!BS$7,'Emissions factors'!$F$4:$CR$4,0))/1000,0)","v":0},{"$f":"IFERROR(BT88*INDEX('Emissions factors'!$F$5:$CR$10,MATCH('Data Input - BAU'!$D124,'Emissions factors'!$C$5:$C$10,0),MATCH('Data Input - BAU'!BT$7,'Emissions factors'!$F$4:$CR$4,0))/1000,0)","v":0},{"$f":"IFERROR(BU88*INDEX('Emissions factors'!$F$5:$CR$10,MATCH('Data Input - BAU'!$D124,'Emissions factors'!$C$5:$C$10,0),MATCH('Data Input - BAU'!BU$7,'Emissions factors'!$F$4:$CR$4,0))/1000,0)","v":0},{"$f":"IFERROR(BV88*INDEX('Emissions factors'!$F$5:$CR$10,MATCH('Data Input - BAU'!$D124,'Emissions factors'!$C$5:$C$10,0),MATCH('Data Input - BAU'!BV$7,'Emissions factors'!$F$4:$CR$4,0))/1000,0)","v":0},{"$f":"IFERROR(BW88*INDEX('Emissions factors'!$F$5:$CR$10,MATCH('Data Input - BAU'!$D124,'Emissions factors'!$C$5:$C$10,0),MATCH('Data Input - BAU'!BW$7,'Emissions factors'!$F$4:$CR$4,0))/1000,0)","v":0},{"$f":"IFERROR(BX88*INDEX('Emissions factors'!$F$5:$CR$10,MATCH('Data Input - BAU'!$D124,'Emissions factors'!$C$5:$C$10,0),MATCH('Data Input - BAU'!BX$7,'Emissions factors'!$F$4:$CR$4,0))/1000,0)","v":0},{"$f":"IFERROR(BY88*INDEX('Emissions factors'!$F$5:$CR$10,MATCH('Data Input - BAU'!$D124,'Emissions factors'!$C$5:$C$10,0),MATCH('Data Input - BAU'!BY$7,'Emissions factors'!$F$4:$CR$4,0))/1000,0)","v":0},{"$f":"IFERROR(BZ88*INDEX('Emissions factors'!$F$5:$CR$10,MATCH('Data Input - BAU'!$D124,'Emissions factors'!$C$5:$C$10,0),MATCH('Data Input - BAU'!BZ$7,'Emissions factors'!$F$4:$CR$4,0))/1000,0)","v":0},{"$f":"IFERROR(CA88*INDEX('Emissions factors'!$F$5:$CR$10,MATCH('Data Input - BAU'!$D124,'Emissions factors'!$C$5:$C$10,0),MATCH('Data Input - BAU'!CA$7,'Emissions factors'!$F$4:$CR$4,0))/1000,0)","v":0},{"$f":"IFERROR(CB88*INDEX('Emissions factors'!$F$5:$CR$10,MATCH('Data Input - BAU'!$D124,'Emissions factors'!$C$5:$C$10,0),MATCH('Data Input - BAU'!CB$7,'Emissions factors'!$F$4:$CR$4,0))/1000,0)","v":0},{"$f":"IFERROR(CC88*INDEX('Emissions factors'!$F$5:$CR$10,MATCH('Data Input - BAU'!$D124,'Emissions factors'!$C$5:$C$10,0),MATCH('Data Input - BAU'!CC$7,'Emissions factors'!$F$4:$CR$4,0))/1000,0)","v":0},{"$f":"IFERROR(CD88*INDEX('Emissions factors'!$F$5:$CR$10,MATCH('Data Input - BAU'!$D124,'Emissions factors'!$C$5:$C$10,0),MATCH('Data Input - BAU'!CD$7,'Emissions factors'!$F$4:$CR$4,0))/1000,0)","v":0},{"$f":"IFERROR(CE88*INDEX('Emissions factors'!$F$5:$CR$10,MATCH('Data Input - BAU'!$D124,'Emissions factors'!$C$5:$C$10,0),MATCH('Data Input - BAU'!CE$7,'Emissions factors'!$F$4:$CR$4,0))/1000,0)","v":0},{"$f":"IFERROR(CF88*INDEX('Emissions factors'!$F$5:$CR$10,MATCH('Data Input - BAU'!$D124,'Emissions factors'!$C$5:$C$10,0),MATCH('Data Input - BAU'!CF$7,'Emissions factors'!$F$4:$CR$4,0))/1000,0)","v":0},{"$f":"IFERROR(CG88*INDEX('Emissions factors'!$F$5:$CR$10,MATCH('Data Input - BAU'!$D124,'Emissions factors'!$C$5:$C$10,0),MATCH('Data Input - BAU'!CG$7,'Emissions factors'!$F$4:$CR$4,0))/1000,0)","v":0},{"$f":"IFERROR(CH88*INDEX('Emissions factors'!$F$5:$CR$10,MATCH('Data Input - BAU'!$D124,'Emissions factors'!$C$5:$C$10,0),MATCH('Data Input - BAU'!CH$7,'Emissions factors'!$F$4:$CR$4,0))/1000,0)","v":0},{"$f":"IFERROR(CI88*INDEX('Emissions factors'!$F$5:$CR$10,MATCH('Data Input - BAU'!$D124,'Emissions factors'!$C$5:$C$10,0),MATCH('Data Input - BAU'!CI$7,'Emissions factors'!$F$4:$CR$4,0))/1000,0)","v":0},{"$f":"IFERROR(CJ88*INDEX('Emissions factors'!$F$5:$CR$10,MATCH('Data Input - BAU'!$D124,'Emissions factors'!$C$5:$C$10,0),MATCH('Data Input - BAU'!CJ$7,'Emissions factors'!$F$4:$CR$4,0))/1000,0)","v":0},{"$f":"IFERROR(CK88*INDEX('Emissions factors'!$F$5:$CR$10,MATCH('Data Input - BAU'!$D124,'Emissions factors'!$C$5:$C$10,0),MATCH('Data Input - BAU'!CK$7,'Emissions factors'!$F$4:$CR$4,0))/1000,0)","v":0},{"$f":"IFERROR(CL88*INDEX('Emissions factors'!$F$5:$CR$10,MATCH('Data Input - BAU'!$D124,'Emissions factors'!$C$5:$C$10,0),MATCH('Data Input - BAU'!CL$7,'Emissions factors'!$F$4:$CR$4,0))/1000,0)","v":0},{"$f":"IFERROR(CM88*INDEX('Emissions factors'!$F$5:$CR$10,MATCH('Data Input - BAU'!$D124,'Emissions factors'!$C$5:$C$10,0),MATCH('Data Input - BAU'!CM$7,'Emissions factors'!$F$4:$CR$4,0))/1000,0)","v":0},{"$f":"IFERROR(CN88*INDEX('Emissions factors'!$F$5:$CR$10,MATCH('Data Input - BAU'!$D124,'Emissions factors'!$C$5:$C$10,0),MATCH('Data Input - BAU'!CN$7,'Emissions factors'!$F$4:$CR$4,0))/1000,0)","v":0},{"$f":"IFERROR(CO88*INDEX('Emissions factors'!$F$5:$CR$10,MATCH('Data Input - BAU'!$D124,'Emissions factors'!$C$5:$C$10,0),MATCH('Data Input - BAU'!CO$7,'Emissions factors'!$F$4:$CR$4,0))/1000,0)","v":0},{"$f":"IFERROR(CP88*INDEX('Emissions factors'!$F$5:$CR$10,MATCH('Data Input - BAU'!$D124,'Emissions factors'!$C$5:$C$10,0),MATCH('Data Input - BAU'!CP$7,'Emissions factors'!$F$4:$CR$4,0))/1000,0)","v":0},{"$f":"IFERROR(CQ88*INDEX('Emissions factors'!$F$5:$CR$10,MATCH('Data Input - BAU'!$D124,'Emissions factors'!$C$5:$C$10,0),MATCH('Data Input - BAU'!CQ$7,'Emissions factors'!$F$4:$CR$4,0))/1000,0)","v":0},{"$f":"IFERROR(CR88*INDEX('Emissions factors'!$F$5:$CR$10,MATCH('Data Input - BAU'!$D124,'Emissions factors'!$C$5:$C$10,0),MATCH('Data Input - BAU'!CR$7,'Emissions factors'!$F$4:$CR$4,0))/1000,0)","v":0},{"$f":"IFERROR(CS88*INDEX('Emissions factors'!$F$5:$CR$10,MATCH('Data Input - BAU'!$D124,'Emissions factors'!$C$5:$C$10,0),MATCH('Data Input - BAU'!CS$7,'Emissions factors'!$F$4:$CR$4,0))/1000,0)","v":0},{"$f":"IFERROR(CT88*INDEX('Emissions factors'!$F$5:$CR$10,MATCH('Data Input - BAU'!$D124,'Emissions factors'!$C$5:$C$10,0),MATCH('Data Input - BAU'!CT$7,'Emissions factors'!$F$4:$CR$4,0))/1000,0)","v":0},{"$f":"IFERROR(CU88*INDEX('Emissions factors'!$F$5:$CR$10,MATCH('Data Input - BAU'!$D124,'Emissions factors'!$C$5:$C$10,0),MATCH('Data Input - BAU'!CU$7,'Emissions factors'!$F$4:$CR$4,0))/1000,0)","v":0},{"$f":"IFERROR(CV88*INDEX('Emissions factors'!$F$5:$CR$10,MATCH('Data Input - BAU'!$D124,'Emissions factors'!$C$5:$C$10,0),MATCH('Data Input - BAU'!CV$7,'Emissions factors'!$F$4:$CR$4,0))/1000,0)","v":0},{"$f":"IFERROR(CW88*INDEX('Emissions factors'!$F$5:$CR$10,MATCH('Data Input - BAU'!$D124,'Emissions factors'!$C$5:$C$10,0),MATCH('Data Input - BAU'!CW$7,'Emissions factors'!$F$4:$CR$4,0))/1000,0)","v":0},{"$f":"IFERROR(CX88*INDEX('Emissions factors'!$F$5:$CR$10,MATCH('Data Input - BAU'!$D124,'Emissions factors'!$C$5:$C$10,0),MATCH('Data Input - BAU'!CX$7,'Emissions factors'!$F$4:$CR$4,0))/1000,0)","v":0},{"$f":"IFERROR(CY88*INDEX('Emissions factors'!$F$5:$CR$10,MATCH('Data Input - BAU'!$D124,'Emissions factors'!$C$5:$C$10,0),MATCH('Data Input - BAU'!CY$7,'Emissions factors'!$F$4:$CR$4,0))/1000,0)","v":0},{"$f":"IFERROR(CZ88*INDEX('Emissions factors'!$F$5:$CR$10,MATCH('Data Input - BAU'!$D124,'Emissions factors'!$C$5:$C$10,0),MATCH('Data Input - BAU'!CZ$7,'Emissions factors'!$F$4:$CR$4,0))/1000,0)","v":0},{"$f":"IFERROR(DA88*INDEX('Emissions factors'!$F$5:$CR$10,MATCH('Data Input - BAU'!$D124,'Emissions factors'!$C$5:$C$10,0),MATCH('Data Input - BAU'!DA$7,'Emissions factors'!$F$4:$CR$4,0))/1000,0)","v":0},{"$f":"IFERROR(DB88*INDEX('Emissions factors'!$F$5:$CR$10,MATCH('Data Input - BAU'!$D124,'Emissions factors'!$C$5:$C$10,0),MATCH('Data Input - BAU'!DB$7,'Emissions factors'!$F$4:$CR$4,0))/1000,0)","v":0},{"$f":"IFERROR(DC88*INDEX('Emissions factors'!$F$5:$CR$10,MATCH('Data Input - BAU'!$D124,'Emissions factors'!$C$5:$C$10,0),MATCH('Data Input - BAU'!DC$7,'Emissions factors'!$F$4:$CR$4,0))/1000,0)","v":0}]
[null,null,null,"Road - Diesel","tCO2e","(Auto calculated value)",null,{"$f":"IFERROR(H89*INDEX('Emissions factors'!$F$5:$CR$10,MATCH('Data Input - BAU'!$D125,'Emissions factors'!$C$5:$C$10,0),MATCH('Data Input - BAU'!H$7,'Emissions factors'!$F$4:$CR$4,0))/1000,0)","v":0},{"$f":"IFERROR(I89*INDEX('Emissions factors'!$F$5:$CR$10,MATCH('Data Input - BAU'!$D125,'Emissions factors'!$C$5:$C$10,0),MATCH('Data Input - BAU'!I$7,'Emissions factors'!$F$4:$CR$4,0))/1000,0)","v":0},{"$f":"IFERROR(J89*INDEX('Emissions factors'!$F$5:$CR$10,MATCH('Data Input - BAU'!$D125,'Emissions factors'!$C$5:$C$10,0),MATCH('Data Input - BAU'!J$7,'Emissions factors'!$F$4:$CR$4,0))/1000,0)","v":0},{"$f":"IFERROR(K89*INDEX('Emissions factors'!$F$5:$CR$10,MATCH('Data Input - BAU'!$D125,'Emissions factors'!$C$5:$C$10,0),MATCH('Data Input - BAU'!K$7,'Emissions factors'!$F$4:$CR$4,0))/1000,0)","v":0},{"$f":"IFERROR(L89*INDEX('Emissions factors'!$F$5:$CR$10,MATCH('Data Input - BAU'!$D125,'Emissions factors'!$C$5:$C$10,0),MATCH('Data Input - BAU'!L$7,'Emissions factors'!$F$4:$CR$4,0))/1000,0)","v":0},{"$f":"IFERROR(M89*INDEX('Emissions factors'!$F$5:$CR$10,MATCH('Data Input - BAU'!$D125,'Emissions factors'!$C$5:$C$10,0),MATCH('Data Input - BAU'!M$7,'Emissions factors'!$F$4:$CR$4,0))/1000,0)","v":0},{"$f":"IFERROR(N89*INDEX('Emissions factors'!$F$5:$CR$10,MATCH('Data Input - BAU'!$D125,'Emissions factors'!$C$5:$C$10,0),MATCH('Data Input - BAU'!N$7,'Emissions factors'!$F$4:$CR$4,0))/1000,0)","v":0},{"$f":"IFERROR(O89*INDEX('Emissions factors'!$F$5:$CR$10,MATCH('Data Input - BAU'!$D125,'Emissions factors'!$C$5:$C$10,0),MATCH('Data Input - BAU'!O$7,'Emissions factors'!$F$4:$CR$4,0))/1000,0)","v":0},{"$f":"IFERROR(P89*INDEX('Emissions factors'!$F$5:$CR$10,MATCH('Data Input - BAU'!$D125,'Emissions factors'!$C$5:$C$10,0),MATCH('Data Input - BAU'!P$7,'Emissions factors'!$F$4:$CR$4,0))/1000,0)","v":0},{"$f":"IFERROR(Q89*INDEX('Emissions factors'!$F$5:$CR$10,MATCH('Data Input - BAU'!$D125,'Emissions factors'!$C$5:$C$10,0),MATCH('Data Input - BAU'!Q$7,'Emissions factors'!$F$4:$CR$4,0))/1000,0)","v":0},{"$f":"IFERROR(R89*INDEX('Emissions factors'!$F$5:$CR$10,MATCH('Data Input - BAU'!$D125,'Emissions factors'!$C$5:$C$10,0),MATCH('Data Input - BAU'!R$7,'Emissions factors'!$F$4:$CR$4,0))/1000,0)","v":0},{"$f":"IFERROR(S89*INDEX('Emissions factors'!$F$5:$CR$10,MATCH('Data Input - BAU'!$D125,'Emissions factors'!$C$5:$C$10,0),MATCH('Data Input - BAU'!S$7,'Emissions factors'!$F$4:$CR$4,0))/1000,0)","v":0},{"$f":"IFERROR(T89*INDEX('Emissions factors'!$F$5:$CR$10,MATCH('Data Input - BAU'!$D125,'Emissions factors'!$C$5:$C$10,0),MATCH('Data Input - BAU'!T$7,'Emissions factors'!$F$4:$CR$4,0))/1000,0)","v":0},{"$f":"IFERROR(U89*INDEX('Emissions factors'!$F$5:$CR$10,MATCH('Data Input - BAU'!$D125,'Emissions factors'!$C$5:$C$10,0),MATCH('Data Input - BAU'!U$7,'Emissions factors'!$F$4:$CR$4,0))/1000,0)","v":0},{"$f":"IFERROR(V89*INDEX('Emissions factors'!$F$5:$CR$10,MATCH('Data Input - BAU'!$D125,'Emissions factors'!$C$5:$C$10,0),MATCH('Data Input - BAU'!V$7,'Emissions factors'!$F$4:$CR$4,0))/1000,0)","v":0},{"$f":"IFERROR(W89*INDEX('Emissions factors'!$F$5:$CR$10,MATCH('Data Input - BAU'!$D125,'Emissions factors'!$C$5:$C$10,0),MATCH('Data Input - BAU'!W$7,'Emissions factors'!$F$4:$CR$4,0))/1000,0)","v":0},{"$f":"IFERROR(X89*INDEX('Emissions factors'!$F$5:$CR$10,MATCH('Data Input - BAU'!$D125,'Emissions factors'!$C$5:$C$10,0),MATCH('Data Input - BAU'!X$7,'Emissions factors'!$F$4:$CR$4,0))/1000,0)","v":0},{"$f":"IFERROR(Y89*INDEX('Emissions factors'!$F$5:$CR$10,MATCH('Data Input - BAU'!$D125,'Emissions factors'!$C$5:$C$10,0),MATCH('Data Input - BAU'!Y$7,'Emissions factors'!$F$4:$CR$4,0))/1000,0)","v":0},{"$f":"IFERROR(Z89*INDEX('Emissions factors'!$F$5:$CR$10,MATCH('Data Input - BAU'!$D125,'Emissions factors'!$C$5:$C$10,0),MATCH('Data Input - BAU'!Z$7,'Emissions factors'!$F$4:$CR$4,0))/1000,0)","v":0},{"$f":"IFERROR(AA89*INDEX('Emissions factors'!$F$5:$CR$10,MATCH('Data Input - BAU'!$D125,'Emissions factors'!$C$5:$C$10,0),MATCH('Data Input - BAU'!AA$7,'Emissions factors'!$F$4:$CR$4,0))/1000,0)","v":0},{"$f":"IFERROR(AB89*INDEX('Emissions factors'!$F$5:$CR$10,MATCH('Data Input - BAU'!$D125,'Emissions factors'!$C$5:$C$10,0),MATCH('Data Input - BAU'!AB$7,'Emissions factors'!$F$4:$CR$4,0))/1000,0)","v":0},{"$f":"IFERROR(AC89*INDEX('Emissions factors'!$F$5:$CR$10,MATCH('Data Input - BAU'!$D125,'Emissions factors'!$C$5:$C$10,0),MATCH('Data Input - BAU'!AC$7,'Emissions factors'!$F$4:$CR$4,0))/1000,0)","v":0},{"$f":"IFERROR(AD89*INDEX('Emissions factors'!$F$5:$CR$10,MATCH('Data Input - BAU'!$D125,'Emissions factors'!$C$5:$C$10,0),MATCH('Data Input - BAU'!AD$7,'Emissions factors'!$F$4:$CR$4,0))/1000,0)","v":0},{"$f":"IFERROR(AE89*INDEX('Emissions factors'!$F$5:$CR$10,MATCH('Data Input - BAU'!$D125,'Emissions factors'!$C$5:$C$10,0),MATCH('Data Input - BAU'!AE$7,'Emissions factors'!$F$4:$CR$4,0))/1000,0)","v":0},{"$f":"IFERROR(AF89*INDEX('Emissions factors'!$F$5:$CR$10,MATCH('Data Input - BAU'!$D125,'Emissions factors'!$C$5:$C$10,0),MATCH('Data Input - BAU'!AF$7,'Emissions factors'!$F$4:$CR$4,0))/1000,0)","v":0},{"$f":"IFERROR(AG89*INDEX('Emissions factors'!$F$5:$CR$10,MATCH('Data Input - BAU'!$D125,'Emissions factors'!$C$5:$C$10,0),MATCH('Data Input - BAU'!AG$7,'Emissions factors'!$F$4:$CR$4,0))/1000,0)","v":0},{"$f":"IFERROR(AH89*INDEX('Emissions factors'!$F$5:$CR$10,MATCH('Data Input - BAU'!$D125,'Emissions factors'!$C$5:$C$10,0),MATCH('Data Input - BAU'!AH$7,'Emissions factors'!$F$4:$CR$4,0))/1000,0)","v":0},{"$f":"IFERROR(AI89*INDEX('Emissions factors'!$F$5:$CR$10,MATCH('Data Input - BAU'!$D125,'Emissions factors'!$C$5:$C$10,0),MATCH('Data Input - BAU'!AI$7,'Emissions factors'!$F$4:$CR$4,0))/1000,0)","v":0},{"$f":"IFERROR(AJ89*INDEX('Emissions factors'!$F$5:$CR$10,MATCH('Data Input - BAU'!$D125,'Emissions factors'!$C$5:$C$10,0),MATCH('Data Input - BAU'!AJ$7,'Emissions factors'!$F$4:$CR$4,0))/1000,0)","v":0},{"$f":"IFERROR(AK89*INDEX('Emissions factors'!$F$5:$CR$10,MATCH('Data Input - BAU'!$D125,'Emissions factors'!$C$5:$C$10,0),MATCH('Data Input - BAU'!AK$7,'Emissions factors'!$F$4:$CR$4,0))/1000,0)","v":0},{"$f":"IFERROR(AL89*INDEX('Emissions factors'!$F$5:$CR$10,MATCH('Data Input - BAU'!$D125,'Emissions factors'!$C$5:$C$10,0),MATCH('Data Input - BAU'!AL$7,'Emissions factors'!$F$4:$CR$4,0))/1000,0)","v":0},{"$f":"IFERROR(AM89*INDEX('Emissions factors'!$F$5:$CR$10,MATCH('Data Input - BAU'!$D125,'Emissions factors'!$C$5:$C$10,0),MATCH('Data Input - BAU'!AM$7,'Emissions factors'!$F$4:$CR$4,0))/1000,0)","v":0},{"$f":"IFERROR(AN89*INDEX('Emissions factors'!$F$5:$CR$10,MATCH('Data Input - BAU'!$D125,'Emissions factors'!$C$5:$C$10,0),MATCH('Data Input - BAU'!AN$7,'Emissions factors'!$F$4:$CR$4,0))/1000,0)","v":0},{"$f":"IFERROR(AO89*INDEX('Emissions factors'!$F$5:$CR$10,MATCH('Data Input - BAU'!$D125,'Emissions factors'!$C$5:$C$10,0),MATCH('Data Input - BAU'!AO$7,'Emissions factors'!$F$4:$CR$4,0))/1000,0)","v":0},{"$f":"IFERROR(AP89*INDEX('Emissions factors'!$F$5:$CR$10,MATCH('Data Input - BAU'!$D125,'Emissions factors'!$C$5:$C$10,0),MATCH('Data Input - BAU'!AP$7,'Emissions factors'!$F$4:$CR$4,0))/1000,0)","v":0},{"$f":"IFERROR(AQ89*INDEX('Emissions factors'!$F$5:$CR$10,MATCH('Data Input - BAU'!$D125,'Emissions factors'!$C$5:$C$10,0),MATCH('Data Input - BAU'!AQ$7,'Emissions factors'!$F$4:$CR$4,0))/1000,0)","v":0},{"$f":"IFERROR(AR89*INDEX('Emissions factors'!$F$5:$CR$10,MATCH('Data Input - BAU'!$D125,'Emissions factors'!$C$5:$C$10,0),MATCH('Data Input - BAU'!AR$7,'Emissions factors'!$F$4:$CR$4,0))/1000,0)","v":0},{"$f":"IFERROR(AS89*INDEX('Emissions factors'!$F$5:$CR$10,MATCH('Data Input - BAU'!$D125,'Emissions factors'!$C$5:$C$10,0),MATCH('Data Input - BAU'!AS$7,'Emissions factors'!$F$4:$CR$4,0))/1000,0)","v":0},{"$f":"IFERROR(AT89*INDEX('Emissions factors'!$F$5:$CR$10,MATCH('Data Input - BAU'!$D125,'Emissions factors'!$C$5:$C$10,0),MATCH('Data Input - BAU'!AT$7,'Emissions factors'!$F$4:$CR$4,0))/1000,0)","v":0},{"$f":"IFERROR(AU89*INDEX('Emissions factors'!$F$5:$CR$10,MATCH('Data Input - BAU'!$D125,'Emissions factors'!$C$5:$C$10,0),MATCH('Data Input - BAU'!AU$7,'Emissions factors'!$F$4:$CR$4,0))/1000,0)","v":0},{"$f":"IFERROR(AV89*INDEX('Emissions factors'!$F$5:$CR$10,MATCH('Data Input - BAU'!$D125,'Emissions factors'!$C$5:$C$10,0),MATCH('Data Input - BAU'!AV$7,'Emissions factors'!$F$4:$CR$4,0))/1000,0)","v":0},{"$f":"IFERROR(AW89*INDEX('Emissions factors'!$F$5:$CR$10,MATCH('Data Input - BAU'!$D125,'Emissions factors'!$C$5:$C$10,0),MATCH('Data Input - BAU'!AW$7,'Emissions factors'!$F$4:$CR$4,0))/1000,0)","v":0},{"$f":"IFERROR(AX89*INDEX('Emissions factors'!$F$5:$CR$10,MATCH('Data Input - BAU'!$D125,'Emissions factors'!$C$5:$C$10,0),MATCH('Data Input - BAU'!AX$7,'Emissions factors'!$F$4:$CR$4,0))/1000,0)","v":0},{"$f":"IFERROR(AY89*INDEX('Emissions factors'!$F$5:$CR$10,MATCH('Data Input - BAU'!$D125,'Emissions factors'!$C$5:$C$10,0),MATCH('Data Input - BAU'!AY$7,'Emissions factors'!$F$4:$CR$4,0))/1000,0)","v":0},{"$f":"IFERROR(AZ89*INDEX('Emissions factors'!$F$5:$CR$10,MATCH('Data Input - BAU'!$D125,'Emissions factors'!$C$5:$C$10,0),MATCH('Data Input - BAU'!AZ$7,'Emissions factors'!$F$4:$CR$4,0))/1000,0)","v":0},{"$f":"IFERROR(BA89*INDEX('Emissions factors'!$F$5:$CR$10,MATCH('Data Input - BAU'!$D125,'Emissions factors'!$C$5:$C$10,0),MATCH('Data Input - BAU'!BA$7,'Emissions factors'!$F$4:$CR$4,0))/1000,0)","v":0},{"$f":"IFERROR(BB89*INDEX('Emissions factors'!$F$5:$CR$10,MATCH('Data Input - BAU'!$D125,'Emissions factors'!$C$5:$C$10,0),MATCH('Data Input - BAU'!BB$7,'Emissions factors'!$F$4:$CR$4,0))/1000,0)","v":0},{"$f":"IFERROR(BC89*INDEX('Emissions factors'!$F$5:$CR$10,MATCH('Data Input - BAU'!$D125,'Emissions factors'!$C$5:$C$10,0),MATCH('Data Input - BAU'!BC$7,'Emissions factors'!$F$4:$CR$4,0))/1000,0)","v":0},{"$f":"IFERROR(BD89*INDEX('Emissions factors'!$F$5:$CR$10,MATCH('Data Input - BAU'!$D125,'Emissions factors'!$C$5:$C$10,0),MATCH('Data Input - BAU'!BD$7,'Emissions factors'!$F$4:$CR$4,0))/1000,0)","v":0},{"$f":"IFERROR(BE89*INDEX('Emissions factors'!$F$5:$CR$10,MATCH('Data Input - BAU'!$D125,'Emissions factors'!$C$5:$C$10,0),MATCH('Data Input - BAU'!BE$7,'Emissions factors'!$F$4:$CR$4,0))/1000,0)","v":0},{"$f":"IFERROR(BF89*INDEX('Emissions factors'!$F$5:$CR$10,MATCH('Data Input - BAU'!$D125,'Emissions factors'!$C$5:$C$10,0),MATCH('Data Input - BAU'!BF$7,'Emissions factors'!$F$4:$CR$4,0))/1000,0)","v":0},{"$f":"IFERROR(BG89*INDEX('Emissions factors'!$F$5:$CR$10,MATCH('Data Input - BAU'!$D125,'Emissions factors'!$C$5:$C$10,0),MATCH('Data Input - BAU'!BG$7,'Emissions factors'!$F$4:$CR$4,0))/1000,0)","v":0},{"$f":"IFERROR(BH89*INDEX('Emissions factors'!$F$5:$CR$10,MATCH('Data Input - BAU'!$D125,'Emissions factors'!$C$5:$C$10,0),MATCH('Data Input - BAU'!BH$7,'Emissions factors'!$F$4:$CR$4,0))/1000,0)","v":0},{"$f":"IFERROR(BI89*INDEX('Emissions factors'!$F$5:$CR$10,MATCH('Data Input - BAU'!$D125,'Emissions factors'!$C$5:$C$10,0),MATCH('Data Input - BAU'!BI$7,'Emissions factors'!$F$4:$CR$4,0))/1000,0)","v":0},{"$f":"IFERROR(BJ89*INDEX('Emissions factors'!$F$5:$CR$10,MATCH('Data Input - BAU'!$D125,'Emissions factors'!$C$5:$C$10,0),MATCH('Data Input - BAU'!BJ$7,'Emissions factors'!$F$4:$CR$4,0))/1000,0)","v":0},{"$f":"IFERROR(BK89*INDEX('Emissions factors'!$F$5:$CR$10,MATCH('Data Input - BAU'!$D125,'Emissions factors'!$C$5:$C$10,0),MATCH('Data Input - BAU'!BK$7,'Emissions factors'!$F$4:$CR$4,0))/1000,0)","v":0},{"$f":"IFERROR(BL89*INDEX('Emissions factors'!$F$5:$CR$10,MATCH('Data Input - BAU'!$D125,'Emissions factors'!$C$5:$C$10,0),MATCH('Data Input - BAU'!BL$7,'Emissions factors'!$F$4:$CR$4,0))/1000,0)","v":0},{"$f":"IFERROR(BM89*INDEX('Emissions factors'!$F$5:$CR$10,MATCH('Data Input - BAU'!$D125,'Emissions factors'!$C$5:$C$10,0),MATCH('Data Input - BAU'!BM$7,'Emissions factors'!$F$4:$CR$4,0))/1000,0)","v":0},{"$f":"IFERROR(BN89*INDEX('Emissions factors'!$F$5:$CR$10,MATCH('Data Input - BAU'!$D125,'Emissions factors'!$C$5:$C$10,0),MATCH('Data Input - BAU'!BN$7,'Emissions factors'!$F$4:$CR$4,0))/1000,0)","v":0},{"$f":"IFERROR(BO89*INDEX('Emissions factors'!$F$5:$CR$10,MATCH('Data Input - BAU'!$D125,'Emissions factors'!$C$5:$C$10,0),MATCH('Data Input - BAU'!BO$7,'Emissions factors'!$F$4:$CR$4,0))/1000,0)","v":0},{"$f":"IFERROR(BP89*INDEX('Emissions factors'!$F$5:$CR$10,MATCH('Data Input - BAU'!$D125,'Emissions factors'!$C$5:$C$10,0),MATCH('Data Input - BAU'!BP$7,'Emissions factors'!$F$4:$CR$4,0))/1000,0)","v":0},{"$f":"IFERROR(BQ89*INDEX('Emissions factors'!$F$5:$CR$10,MATCH('Data Input - BAU'!$D125,'Emissions factors'!$C$5:$C$10,0),MATCH('Data Input - BAU'!BQ$7,'Emissions factors'!$F$4:$CR$4,0))/1000,0)","v":0},{"$f":"IFERROR(BR89*INDEX('Emissions factors'!$F$5:$CR$10,MATCH('Data Input - BAU'!$D125,'Emissions factors'!$C$5:$C$10,0),MATCH('Data Input - BAU'!BR$7,'Emissions factors'!$F$4:$CR$4,0))/1000,0)","v":0},{"$f":"IFERROR(BS89*INDEX('Emissions factors'!$F$5:$CR$10,MATCH('Data Input - BAU'!$D125,'Emissions factors'!$C$5:$C$10,0),MATCH('Data Input - BAU'!BS$7,'Emissions factors'!$F$4:$CR$4,0))/1000,0)","v":0},{"$f":"IFERROR(BT89*INDEX('Emissions factors'!$F$5:$CR$10,MATCH('Data Input - BAU'!$D125,'Emissions factors'!$C$5:$C$10,0),MATCH('Data Input - BAU'!BT$7,'Emissions factors'!$F$4:$CR$4,0))/1000,0)","v":0},{"$f":"IFERROR(BU89*INDEX('Emissions factors'!$F$5:$CR$10,MATCH('Data Input - BAU'!$D125,'Emissions factors'!$C$5:$C$10,0),MATCH('Data Input - BAU'!BU$7,'Emissions factors'!$F$4:$CR$4,0))/1000,0)","v":0},{"$f":"IFERROR(BV89*INDEX('Emissions factors'!$F$5:$CR$10,MATCH('Data Input - BAU'!$D125,'Emissions factors'!$C$5:$C$10,0),MATCH('Data Input - BAU'!BV$7,'Emissions factors'!$F$4:$CR$4,0))/1000,0)","v":0},{"$f":"IFERROR(BW89*INDEX('Emissions factors'!$F$5:$CR$10,MATCH('Data Input - BAU'!$D125,'Emissions factors'!$C$5:$C$10,0),MATCH('Data Input - BAU'!BW$7,'Emissions factors'!$F$4:$CR$4,0))/1000,0)","v":0},{"$f":"IFERROR(BX89*INDEX('Emissions factors'!$F$5:$CR$10,MATCH('Data Input - BAU'!$D125,'Emissions factors'!$C$5:$C$10,0),MATCH('Data Input - BAU'!BX$7,'Emissions factors'!$F$4:$CR$4,0))/1000,0)","v":0},{"$f":"IFERROR(BY89*INDEX('Emissions factors'!$F$5:$CR$10,MATCH('Data Input - BAU'!$D125,'Emissions factors'!$C$5:$C$10,0),MATCH('Data Input - BAU'!BY$7,'Emissions factors'!$F$4:$CR$4,0))/1000,0)","v":0},{"$f":"IFERROR(BZ89*INDEX('Emissions factors'!$F$5:$CR$10,MATCH('Data Input - BAU'!$D125,'Emissions factors'!$C$5:$C$10,0),MATCH('Data Input - BAU'!BZ$7,'Emissions factors'!$F$4:$CR$4,0))/1000,0)","v":0},{"$f":"IFERROR(CA89*INDEX('Emissions factors'!$F$5:$CR$10,MATCH('Data Input - BAU'!$D125,'Emissions factors'!$C$5:$C$10,0),MATCH('Data Input - BAU'!CA$7,'Emissions factors'!$F$4:$CR$4,0))/1000,0)","v":0},{"$f":"IFERROR(CB89*INDEX('Emissions factors'!$F$5:$CR$10,MATCH('Data Input - BAU'!$D125,'Emissions factors'!$C$5:$C$10,0),MATCH('Data Input - BAU'!CB$7,'Emissions factors'!$F$4:$CR$4,0))/1000,0)","v":0},{"$f":"IFERROR(CC89*INDEX('Emissions factors'!$F$5:$CR$10,MATCH('Data Input - BAU'!$D125,'Emissions factors'!$C$5:$C$10,0),MATCH('Data Input - BAU'!CC$7,'Emissions factors'!$F$4:$CR$4,0))/1000,0)","v":0},{"$f":"IFERROR(CD89*INDEX('Emissions factors'!$F$5:$CR$10,MATCH('Data Input - BAU'!$D125,'Emissions factors'!$C$5:$C$10,0),MATCH('Data Input - BAU'!CD$7,'Emissions factors'!$F$4:$CR$4,0))/1000,0)","v":0},{"$f":"IFERROR(CE89*INDEX('Emissions factors'!$F$5:$CR$10,MATCH('Data Input - BAU'!$D125,'Emissions factors'!$C$5:$C$10,0),MATCH('Data Input - BAU'!CE$7,'Emissions factors'!$F$4:$CR$4,0))/1000,0)","v":0},{"$f":"IFERROR(CF89*INDEX('Emissions factors'!$F$5:$CR$10,MATCH('Data Input - BAU'!$D125,'Emissions factors'!$C$5:$C$10,0),MATCH('Data Input - BAU'!CF$7,'Emissions factors'!$F$4:$CR$4,0))/1000,0)","v":0},{"$f":"IFERROR(CG89*INDEX('Emissions factors'!$F$5:$CR$10,MATCH('Data Input - BAU'!$D125,'Emissions factors'!$C$5:$C$10,0),MATCH('Data Input - BAU'!CG$7,'Emissions factors'!$F$4:$CR$4,0))/1000,0)","v":0},{"$f":"IFERROR(CH89*INDEX('Emissions factors'!$F$5:$CR$10,MATCH('Data Input - BAU'!$D125,'Emissions factors'!$C$5:$C$10,0),MATCH('Data Input - BAU'!CH$7,'Emissions factors'!$F$4:$CR$4,0))/1000,0)","v":0},{"$f":"IFERROR(CI89*INDEX('Emissions factors'!$F$5:$CR$10,MATCH('Data Input - BAU'!$D125,'Emissions factors'!$C$5:$C$10,0),MATCH('Data Input - BAU'!CI$7,'Emissions factors'!$F$4:$CR$4,0))/1000,0)","v":0},{"$f":"IFERROR(CJ89*INDEX('Emissions factors'!$F$5:$CR$10,MATCH('Data Input - BAU'!$D125,'Emissions factors'!$C$5:$C$10,0),MATCH('Data Input - BAU'!CJ$7,'Emissions factors'!$F$4:$CR$4,0))/1000,0)","v":0},{"$f":"IFERROR(CK89*INDEX('Emissions factors'!$F$5:$CR$10,MATCH('Data Input - BAU'!$D125,'Emissions factors'!$C$5:$C$10,0),MATCH('Data Input - BAU'!CK$7,'Emissions factors'!$F$4:$CR$4,0))/1000,0)","v":0},{"$f":"IFERROR(CL89*INDEX('Emissions factors'!$F$5:$CR$10,MATCH('Data Input - BAU'!$D125,'Emissions factors'!$C$5:$C$10,0),MATCH('Data Input - BAU'!CL$7,'Emissions factors'!$F$4:$CR$4,0))/1000,0)","v":0},{"$f":"IFERROR(CM89*INDEX('Emissions factors'!$F$5:$CR$10,MATCH('Data Input - BAU'!$D125,'Emissions factors'!$C$5:$C$10,0),MATCH('Data Input - BAU'!CM$7,'Emissions factors'!$F$4:$CR$4,0))/1000,0)","v":0},{"$f":"IFERROR(CN89*INDEX('Emissions factors'!$F$5:$CR$10,MATCH('Data Input - BAU'!$D125,'Emissions factors'!$C$5:$C$10,0),MATCH('Data Input - BAU'!CN$7,'Emissions factors'!$F$4:$CR$4,0))/1000,0)","v":0},{"$f":"IFERROR(CO89*INDEX('Emissions factors'!$F$5:$CR$10,MATCH('Data Input - BAU'!$D125,'Emissions factors'!$C$5:$C$10,0),MATCH('Data Input - BAU'!CO$7,'Emissions factors'!$F$4:$CR$4,0))/1000,0)","v":0},{"$f":"IFERROR(CP89*INDEX('Emissions factors'!$F$5:$CR$10,MATCH('Data Input - BAU'!$D125,'Emissions factors'!$C$5:$C$10,0),MATCH('Data Input - BAU'!CP$7,'Emissions factors'!$F$4:$CR$4,0))/1000,0)","v":0},{"$f":"IFERROR(CQ89*INDEX('Emissions factors'!$F$5:$CR$10,MATCH('Data Input - BAU'!$D125,'Emissions factors'!$C$5:$C$10,0),MATCH('Data Input - BAU'!CQ$7,'Emissions factors'!$F$4:$CR$4,0))/1000,0)","v":0},{"$f":"IFERROR(CR89*INDEX('Emissions factors'!$F$5:$CR$10,MATCH('Data Input - BAU'!$D125,'Emissions factors'!$C$5:$C$10,0),MATCH('Data Input - BAU'!CR$7,'Emissions factors'!$F$4:$CR$4,0))/1000,0)","v":0},{"$f":"IFERROR(CS89*INDEX('Emissions factors'!$F$5:$CR$10,MATCH('Data Input - BAU'!$D125,'Emissions factors'!$C$5:$C$10,0),MATCH('Data Input - BAU'!CS$7,'Emissions factors'!$F$4:$CR$4,0))/1000,0)","v":0},{"$f":"IFERROR(CT89*INDEX('Emissions factors'!$F$5:$CR$10,MATCH('Data Input - BAU'!$D125,'Emissions factors'!$C$5:$C$10,0),MATCH('Data Input - BAU'!CT$7,'Emissions factors'!$F$4:$CR$4,0))/1000,0)","v":0},{"$f":"IFERROR(CU89*INDEX('Emissions factors'!$F$5:$CR$10,MATCH('Data Input - BAU'!$D125,'Emissions factors'!$C$5:$C$10,0),MATCH('Data Input - BAU'!CU$7,'Emissions factors'!$F$4:$CR$4,0))/1000,0)","v":0},{"$f":"IFERROR(CV89*INDEX('Emissions factors'!$F$5:$CR$10,MATCH('Data Input - BAU'!$D125,'Emissions factors'!$C$5:$C$10,0),MATCH('Data Input - BAU'!CV$7,'Emissions factors'!$F$4:$CR$4,0))/1000,0)","v":0},{"$f":"IFERROR(CW89*INDEX('Emissions factors'!$F$5:$CR$10,MATCH('Data Input - BAU'!$D125,'Emissions factors'!$C$5:$C$10,0),MATCH('Data Input - BAU'!CW$7,'Emissions factors'!$F$4:$CR$4,0))/1000,0)","v":0},{"$f":"IFERROR(CX89*INDEX('Emissions factors'!$F$5:$CR$10,MATCH('Data Input - BAU'!$D125,'Emissions factors'!$C$5:$C$10,0),MATCH('Data Input - BAU'!CX$7,'Emissions factors'!$F$4:$CR$4,0))/1000,0)","v":0},{"$f":"IFERROR(CY89*INDEX('Emissions factors'!$F$5:$CR$10,MATCH('Data Input - BAU'!$D125,'Emissions factors'!$C$5:$C$10,0),MATCH('Data Input - BAU'!CY$7,'Emissions factors'!$F$4:$CR$4,0))/1000,0)","v":0},{"$f":"IFERROR(CZ89*INDEX('Emissions factors'!$F$5:$CR$10,MATCH('Data Input - BAU'!$D125,'Emissions factors'!$C$5:$C$10,0),MATCH('Data Input - BAU'!CZ$7,'Emissions factors'!$F$4:$CR$4,0))/1000,0)","v":0},{"$f":"IFERROR(DA89*INDEX('Emissions factors'!$F$5:$CR$10,MATCH('Data Input - BAU'!$D125,'Emissions factors'!$C$5:$C$10,0),MATCH('Data Input - BAU'!DA$7,'Emissions factors'!$F$4:$CR$4,0))/1000,0)","v":0},{"$f":"IFERROR(DB89*INDEX('Emissions factors'!$F$5:$CR$10,MATCH('Data Input - BAU'!$D125,'Emissions factors'!$C$5:$C$10,0),MATCH('Data Input - BAU'!DB$7,'Emissions factors'!$F$4:$CR$4,0))/1000,0)","v":0},{"$f":"IFERROR(DC89*INDEX('Emissions factors'!$F$5:$CR$10,MATCH('Data Input - BAU'!$D125,'Emissions factors'!$C$5:$C$10,0),MATCH('Data Input - BAU'!DC$7,'Emissions factors'!$F$4:$CR$4,0))/1000,0)","v":0}]
[null,null,"4.52",0,"tCO2e"]
[]
[null,null,null,"Total fuel-related GHG Emissions","tCO2e","(Auto calculated value)",null,{"$f":"SUM(H$120:H$127)","v":41644.737608250049},{"$f":"SUM(I$120:I$127)","v":41510.233175019348},{"$f":"SUM(J$120:J$127)","v":41388.187501378598},41316.993984732529,41193.774664474658,41229.164858991418,41182.585839819963,41105.387885048549,0,0,0,0,0,0,0,0,0,0,0,0,0,0,0,0,0,0,0,0,0,0,0,0,0,0,0,0,0,0,0,0,0,0,0,0,0,0,0,0,0,0,0,0,0,0,0,0,0,0,0,0,0,0,0,0,0,0,{"$f":"SUM(BV$120:BV$127)","v":0},0,0,0,0,0,0,0,0,0,0,0,0,0,0,0,0,0,0,0,0,0,0,0,0,0,0,0,0,0,0,0,0,0]

{"sheet":"Data Input - Proposed","index":14,"n_rows":128,"n_cols":108,"rows_kept":128,"cut":false,"hidden":false,"merged":[[3,3,6,3],[31,7,31,9],[51,7,51,9]]}
[null,{"$f":"\"---- Step 5 - Data Input - Proposed derogation ----\"","v":"---- Step 5 - Data Input - Proposed derogation ----"}]
[]
[]
[]
[null,null,null,null,null,null,null,{"$f":"IF(AND(SUM(H30,H50,H79,H100,H117,H128,#REF!)<>0,H7=0),1,0)","v":{"$error":"#REF!"}},{"$f":"IF(AND(SUM(I30,I50,I79,I100,I117,I128,#REF!)<>0,I7=0),1,0)","v":{"$error":"#REF!"}},{"$f":"IF(AND(SUM(J30,J50,J79,J100,J117,J128,#REF!)<>0,J7=0),1,0)","v":{"$error":"#REF!"}},{"$f":"IF(AND(SUM(K30,K50,K79,K100,K117,K128,#REF!)<>0,K7=0),1,0)","v":{"$error":"#REF!"}},{"$f":"IF(AND(SUM(L30,L50,L79,L100,L117,L128,#REF!)<>0,L7=0),1,0)","v":{"$error":"#REF!"}},{"$f":"IF(AND(SUM(M30,M50,M79,M100,M117,M128,#REF!)<>0,M7=0),1,0)","v":{"$error":"#REF!"}},{"$f":"IF(AND(SUM(N30,N50,N79,N100,N117,N128,#REF!)<>0,N7=0),1,0)","v":{"$error":"#REF!"}},{"$f":"IF(AND(SUM(O30,O50,O79,O100,O117,O128,#REF!)<>0,O7=0),1,0)","v":{"$error":"#REF!"}},{"$f":"IF(AND(SUM(P30,P50,P79,P100,P117,P128,#REF!)<>0,P7=0),1,0)","v":{"$error":"#REF!"}},{"$f":"IF(AND(SUM(Q30,Q50,Q79,Q100,Q117,Q128,#REF!)<>0,Q7=0),1,0)","v":{"$error":"#REF!"}},{"$f":"IF(AND(SUM(R30,R50,R79,R100,R117,R128,#REF!)<>0,R7=0),1,0)","v":{"$error":"#REF!"}},{"$f":"IF(AND(SUM(S30,S50,S79,S100,S117,S128,#REF!)<>0,S7=0),1,0)","v":{"$error":"#REF!"}},{"$f":"IF(AND(SUM(T30,T50,T79,T100,T117,T128,#REF!)<>0,T7=0),1,0)","v":{"$error":"#REF!"}},{"$f":"IF(AND(SUM(U30,U50,U79,U100,U117,U128,#REF!)<>0,U7=0),1,0)","v":{"$error":"#REF!"}},{"$f":"IF(AND(SUM(V30,V50,V79,V100,V117,V128,#REF!)<>0,V7=0),1,0)","v":{"$error":"#REF!"}},{"$f":"IF(AND(SUM(W30,W50,W79,W100,W117,W128,#REF!)<>0,W7=0),1,0)","v":{"$error":"#REF!"}},{"$f":"IF(AND(SUM(X30,X50,X79,X100,X117,X128,#REF!)<>0,X7=0),1,0)","v":{"$error":"#REF!"}},{"$f":"IF(AND(SUM(Y30,Y50,Y79,Y100,Y117,Y128,#REF!)<>0,Y7=0),1,0)","v":{"$error":"#REF!"}},{"$f":"IF(AND(SUM(Z30,Z50,Z79,Z100,Z117,Z128,#REF!)<>0,Z7=0),1,0)","v":{"$error":"#REF!"}},{"$f":"IF(AND(SUM(AA30,AA50,AA79,AA100,AA117,AA128,#REF!)<>0,AA7=0),1,0)","v":{"$error":"#REF!"}},{"$f":"IF(AND(SUM(AB30,AB50,AB79,AB100,AB117,AB128,#REF!)<>0,AB7=0),1,0)","v":{"$error":"#REF!"}},{"$f":"IF(AND(SUM(AC30,AC50,AC79,AC100,AC117,AC128,#REF!)<>0,AC7=0),1,0)","v":{"$error":"#REF!"}},{"$f":"IF(AND(SUM(AD30,AD50,AD79,AD100,AD117,AD128,#REF!)<>0,AD7=0),1,0)","v":{"$error":"#REF!"}},{"$f":"IF(AND(SUM(AE30,AE50,AE79,AE100,AE117,AE128,#REF!)<>0,AE7=0),1,0)","v":{"$error":"#REF!"}},{"$f":"IF(AND(SUM(AF30,AF50,AF79,AF100,AF117,AF128,#REF!)<>0,AF7=0),1,0)","v":{"$error":"#REF!"}},{"$f":"IF(AND(SUM(AG30,AG50,AG79,AG100,AG117,AG128,#REF!)<>0,AG7=0),1,0)","v":{"$error":"#REF!"}},{"$f":"IF(AND(SUM(AH30,AH50,AH79,AH100,AH117,AH128,#REF!)<>0,AH7=0),1,0)","v":{"$error":"#REF!"}},{"$f":"IF(AND(SUM(AI30,AI50,AI79,AI100,AI117,AI128,#REF!)<>0,AI7=0),1,0)","v":{"$error":"#REF!"}},{"$f":"IF(AND(SUM(AJ30,AJ50,AJ79,AJ100,AJ117,AJ128,#REF!)<>0,AJ7=0),1,0)","v":{"$error":"#REF!"}},{"$f":"IF(AND(SUM(AK30,AK50,AK79,AK100,AK117,AK128,#REF!)<>0,AK7=0),1,0)","v":{"$error":"#REF!"}},{"$f":"IF(AND(SUM(AL30,AL50,AL79,AL100,AL117,AL128,#REF!)<>0,AL7=0),1,0)","v":{"$error":"#REF!"}},{"$f":"IF(AND(SUM(AM30,AM50,AM79,AM100,AM117,AM128,#REF!)<>0,AM7=0),1,0)","v":{"$error":"#REF!"}},{"$f":"IF(AND(SUM(AN30,AN50,AN79,AN100,AN117,AN128,#REF!)<>0,AN7=0),1,0)","v":{"$error":"#REF!"}},{"$f":"IF(AND(SUM(AO30,AO50,AO79,AO100,AO117,AO128,#REF!)<>0,AO7=0),1,0)","v":{"$error":"#REF!"}},{"$f":"IF(AND(SUM(AP30,AP50,AP79,AP100,AP117,AP128,#REF!)<>0,AP7=0),1,0)","v":{"$error":"#REF!"}},{"$f":"IF(AND(SUM(AQ30,AQ50,AQ79,AQ100,AQ117,AQ128,#REF!)<>0,AQ7=0),1,0)","v":{"$error":"#REF!"}},{"$f":"IF(AND(SUM(AR30,AR50,AR79,AR100,AR117,AR128,#REF!)<>0,AR7=0),1,0)","v":{"$error":"#REF!"}},{"$f":"IF(AND(SUM(AS30,AS50,AS79,AS100,AS117,AS128,#REF!)<>0,AS7=0),1,0)","v":{"$error":"#REF!"}},{"$f":"IF(AND(SUM(AT30,AT50,AT79,AT100,AT117,AT128,#REF!)<>0,AT7=0),1,0)","v":{"$error":"#REF!"}},{"$f":"IF(AND(SUM(AU30,AU50,AU79,AU100,AU117,AU128,#REF!)<>0,AU7=0),1,0)","v":{"$error":"#REF!"}},{"$f":"IF(AND(SUM(AV30,AV50,AV79,AV100,AV117,AV128,#REF!)<>0,AV7=0),1,0)","v":{"$error":"#REF!"}},{"$f":"IF(AND(SUM(AW30,AW50,AW79,AW100,AW117,AW128,#REF!)<>0,AW7=0),1,0)","v":{"$error":"#REF!"}},{"$f":"IF(AND(SUM(AX30,AX50,AX79,AX100,AX117,AX128,#REF!)<>0,AX7=0),1,0)","v":{"$error":"#REF!"}},{"$f":"IF(AND(SUM(AY30,AY50,AY79,AY100,AY117,AY128,#REF!)<>0,AY7=0),1,0)","v":{"$error":"#REF!"}},{"$f":"IF(AND(SUM(AZ30,AZ50,AZ79,AZ100,AZ117,AZ128,#REF!)<>0,AZ7=0),1,0)","v":{"$error":"#REF!"}},{"$f":"IF(AND(SUM(BA30,BA50,BA79,BA100,BA117,BA128,#REF!)<>0,BA7=0),1,0)","v":{"$error":"#REF!"}},{"$f":"IF(AND(SUM(BB30,BB50,BB79,BB100,BB117,BB128,#REF!)<>0,BB7=0),1,0)","v":{"$error":"#REF!"}},{"$f":"IF(AND(SUM(BC30,BC50,BC79,BC100,BC117,BC128,#REF!)<>0,BC7=0),1,0)","v":{"$error":"#REF!"}},{"$f":"IF(AND(SUM(BD30,BD50,BD79,BD100,BD117,BD128,#REF!)<>0,BD7=0),1,0)","v":{"$error":"#REF!"}},{"$f":"IF(AND(SUM(BE30,BE50,BE79,BE100,BE117,BE128,#REF!)<>0,BE7=0),1,0)","v":{"$error":"#REF!"}},{"$f":"IF(AND(SUM(BF30,BF50,BF79,BF100,BF117,BF128,#REF!)<>0,BF7=0),1,0)","v":{"$error":"#REF!"}},{"$f":"IF(AND(SUM(BG30,BG50,BG79,BG100,BG117,BG128,#REF!)<>0,BG7=0),1,0)","v":{"$error":"#REF!"}},{"$f":"IF(AND(SUM(BH30,BH50,BH79,BH100,BH117,BH128,#REF!)<>0,BH7=0),1,0)","v":{"$error":"#REF!"}},{"$f":"IF(AND(SUM(BI30,BI50,BI79,BI100,BI117,BI128,#REF!)<>0,BI7=0),1,0)","v":{"$error":"#REF!"}},{"$f":"IF(AND(SUM(BJ30,BJ50,BJ79,BJ100,BJ117,BJ128,#REF!)<>0,BJ7=0),1,0)","v":{"$error":"#REF!"}},{"$f":"IF(AND(SUM(BK30,BK50,BK79,BK100,BK117,BK128,#REF!)<>0,BK7=0),1,0)","v":{"$error":"#REF!"}},{"$f":"IF(AND(SUM(BL30,BL50,BL79,BL100,BL117,BL128,#REF!)<>0,BL7=0),1,0)","v":{"$error":"#REF!"}},{"$f":"IF(AND(SUM(BM30,BM50,BM79,BM100,BM117,BM128,#REF!)<>0,BM7=0),1,0)","v":{"$error":"#REF!"}},{"$f":"IF(AND(SUM(BN30,BN50,BN79,BN100,BN117,BN128,#REF!)<>0,BN7=0),1,0)","v":{"$error":"#REF!"}},{"$f":"IF(AND(SUM(BO30,BO50,BO79,BO100,BO117,BO128,#REF!)<>0,BO7=0),1,0)","v":{"$error":"#REF!"}},{"$f":"IF(AND(SUM(BP30,BP50,BP79,BP100,BP117,BP128,#REF!)<>0,BP7=0),1,0)","v":{"$error":"#REF!"}},{"$f":"IF(AND(SUM(BQ30,BQ50,BQ79,BQ100,BQ117,BQ128,#REF!)<>0,BQ7=0),1,0)","v":{"$error":"#REF!"}},{"$f":"IF(AND(SUM(BR30,BR50,BR79,BR100,BR117,BR128,#REF!)<>0,BR7=0),1,0)","v":{"$error":"#REF!"}},{"$f":"IF(AND(SUM(BS30,BS50,BS79,BS100,BS117,BS128,#REF!)<>0,BS7=0),1,0)","v":{"$error":"#REF!"}},{"$f":"IF(AND(SUM(BT30,BT50,BT79,BT100,BT117,BT128,#REF!)<>0,BT7=0),1,0)","v":{"$error":"#REF!"}},{"$f":"IF(AND(SUM(BU30,BU50,BU79,BU100,BU117,BU128,#REF!)<>0,BU7=0),1,0)","v":{"$error":"#REF!"}},{"$f":"IF(AND(SUM(BV30,BV50,BV79,BV100,BV117,BV128,#REF!)<>0,BV7=0),1,0)","v":{"$error":"#REF!"}},{"$f":"IF(AND(SUM(BW30,BW50,BW79,BW100,BW117,BW128,#REF!)<>0,BW7=0),1,0)","v":{"$error":"#REF!"}},{"$f":"IF(AND(SUM(BX30,BX50,BX79,BX100,BX117,BX128,#REF!)<>0,BX7=0),1,0)","v":{"$error":"#REF!"}},{"$f":"IF(AND(SUM(BY30,BY50,BY79,BY100,BY117,BY128,#REF!)<>0,BY7=0),1,0)","v":{"$error":"#REF!"}},{"$f":"IF(AND(SUM(BZ30,BZ50,BZ79,BZ100,BZ117,BZ128,#REF!)<>0,BZ7=0),1,0)","v":{"$error":"#REF!"}},{"$f":"IF(AND(SUM(CA30,CA50,CA79,CA100,CA117,CA128,#REF!)<>0,CA7=0),1,0)","v":{"$error":"#REF!"}},{"$f":"IF(AND(SUM(CB30,CB50,CB79,CB100,CB117,CB128,#REF!)<>0,CB7=0),1,0)","v":{"$error":"#REF!"}},{"$f":"IF(AND(SUM(CC30,CC50,CC79,CC100,CC117,CC128,#REF!)<>0,CC7=0),1,0)","v":{"$error":"#REF!"}},{"$f":"IF(AND(SUM(CD30,CD50,CD79,CD100,CD117,CD128,#REF!)<>0,CD7=0),1,0)","v":{"$error":"#REF!"}},{"$f":"IF(AND(SUM(CE30,CE50,CE79,CE100,CE117,CE128,#REF!)<>0,CE7=0),1,0)","v":{"$error":"#REF!"}},{"$f":"IF(AND(SUM(CF30,CF50,CF79,CF100,CF117,CF128,#REF!)<>0,CF7=0),1,0)","v":{"$error":"#REF!"}},{"$f":"IF(AND(SUM(CG30,CG50,CG79,CG100,CG117,CG128,#REF!)<>0,CG7=0),1,0)","v":{"$error":"#REF!"}},{"$f":"IF(AND(SUM(CH30,CH50,CH79,CH100,CH117,CH128,#REF!)<>0,CH7=0),1,0)","v":{"$error":"#REF!"}},{"$f":"IF(AND(SUM(CI30,CI50,CI79,CI100,CI117,CI128,#REF!)<>0,CI7=0),1,0)","v":{"$error":"#REF!"}},{"$f":"IF(AND(SUM(CJ30,CJ50,CJ79,CJ100,CJ117,CJ128,#REF!)<>0,CJ7=0),1,0)","v":{"$error":"#REF!"}},{"$f":"IF(AND(SUM(CK30,CK50,CK79,CK100,CK117,CK128,#REF!)<>0,CK7=0),1,0)","v":{"$error":"#REF!"}},{"$f":"IF(AND(SUM(CL30,CL50,CL79,CL100,CL117,CL128,#REF!)<>0,CL7=0),1,0)","v":{"$error":"#REF!"}},{"$f":"IF(AND(SUM(CM30,CM50,CM79,CM100,CM117,CM128,#REF!)<>0,CM7=0),1,0)","v":{"$error":"#REF!"}},{"$f":"IF(AND(SUM(CN30,CN50,CN79,CN100,CN117,CN128,#REF!)<>0,CN7=0),1,0)","v":{"$error":"#REF!"}},{"$f":"IF(AND(SUM(CO30,CO50,CO79,CO100,CO117,CO128,#REF!)<>0,CO7=0),1,0)","v":{"$error":"#REF!"}},{"$f":"IF(AND(SUM(CP30,CP50,CP79,CP100,CP117,CP128,#REF!)<>0,CP7=0),1,0)","v":{"$error":"#REF!"}},{"$f":"IF(AND(SUM(CQ30,CQ50,CQ79,CQ100,CQ117,CQ128,#REF!)<>0,CQ7=0),1,0)","v":{"$error":"#REF!"}},{"$f":"IF(AND(SUM(CR30,CR50,CR79,CR100,CR117,CR128,#REF!)<>0,CR7=0),1,0)","v":{"$error":"#REF!"}},{"$f":"IF(AND(SUM(CS30,CS50,CS79,CS100,CS117,CS128,#REF!)<>0,CS7=0),1,0)","v":{"$error":"#REF!"}},{"$f":"IF(AND(SUM(CT30,CT50,CT79,CT100,CT117,CT128,#REF!)<>0,CT7=0),1,0)","v":{"$error":"#REF!"}},{"$f":"IF(AND(SUM(CU30,CU50,CU79,CU100,CU117,CU128,#REF!)<>0,CU7=0),1,0)","v":{"$error":"#REF!"}},{"$f":"IF(AND(SUM(CV30,CV50,CV79,CV100,CV117,CV128,#REF!)<>0,CV7=0),1,0)","v":{"$error":"#REF!"}},{"$f":"IF(AND(SUM(CW30,CW50,CW79,CW100,CW117,CW128,#REF!)<>0,CW7=0),1,0)","v":{"$error":"#REF!"}},{"$f":"IF(AND(SUM(CX30,CX50,CX79,CX100,CX117,CX128,#REF!)<>0,CX7=0),1,0)","v":{"$error":"#REF!"}},{"$f":"IF(AND(SUM(CY30,CY50,CY79,CY100,CY117,CY128,#REF!)<>0,CY7=0),1,0)","v":{"$error":"#REF!"}},{"$f":"IF(AND(SUM(CZ30,CZ50,CZ79,CZ100,CZ117,CZ128,#REF!)<>0,CZ7=0),1,0)","v":{"$error":"#REF!"}},{"$f":"IF(AND(SUM(DA30,DA50,DA79,DA100,DA117,DA128,#REF!)<>0,DA7=0),1,0)","v":{"$error":"#REF!"}},{"$f":"IF(AND(SUM(DB30,DB50,DB79,DB100,DB117,DB128,#REF!)<>0,DB7=0),1,0)","v":{"$error":"#REF!"}},{"$f":"IF(AND(SUM(DC30,DC50,DC79,DC100,DC117,DC128,#REF!)<>0,DC7=0),1,0)","v":{"$error":"#REF!"}}]
[null,null,null,null,null,"Year number",null,0,1,2,3,4,5,6,7,8,9,10,11,12,13,14,15,16,17,18,19,20,21,22,23,24,25,26,27,28,29,30,31,32,33,34,35,36,37,38,39,40,41,42,43,44,45,46,47,48,49,50,51,52,53,54,55,56,57,58,59,60,61,62,63,64,65,66,67,68,69,70,71,72,73,74,75,76,77,78,79,80,81,82,83,84,85,86,87,88,89,90,91,92,93,94,95,96,97,98,99]
[null,null,null,null,null,"Year",null,{"$f":"IF($C$9=0,\"\",IF(H$6+'Data Input - General'!$F$22>'Data Input - General'!$F$34,0,'Data Input - Proposed'!H$6+'Data Input - General'!$F$22))","v":2019},{"$f":"IF($C$9=0,\"\",IF(I$6+'Data Input - General'!$F$22>'Data Input - General'!$F$34,0,'Data Input - Proposed'!I$6+'Data Input - General'!$F$22))","v":2020},{"$f":"IF($C$9=0,\"\",IF(J$6+'Data Input - General'!$F$22>'Data Input - General'!$F$34,0,'Data Input - Proposed'!J$6+'Data Input - General'!$F$22))","v":2021},{"$f":"IF($C$9=0,\"\",IF(K$6+'Data Input - General'!$F$22>'Data Input - General'!$F$34,0,'Data Input - Proposed'!K$6+'Data Input - General'!$F$22))","v":2022},{"$f":"IF($C$9=0,\"\",IF(L$6+'Data Input - General'!$F$22>'Data Input - General'!$F$34,0,'Data Input - Proposed'!L$6+'Data Input - General'!$F$22))","v":2023},{"$f":"IF($C$9=0,\"\",IF(M$6+'Data Input - General'!$F$22>'Data Input - General'!$F$34,0,'Data Input - Proposed'!M$6+'Data Input - General'!$F$22))","v":2024},{"$f":"IF($C$9=0,\"\",IF(N$6+'Data Input - General'!$F$22>'Data Input - General'!$F$34,0,'Data Input - Proposed'!N$6+'Data Input - General'!$F$22))","v":2025},{"$f":"IF($C$9=0,\"\",IF(O$6+'Data Input - General'!$F$22>'Data Input - General'!$F$34,0,'Data Input - Proposed'!O$6+'Data Input - General'!$F$22))","v":2026},{"$f":"IF($C$9=0,\"\",IF(P$6+'Data Input - General'!$F$22>'Data Input - General'!$F$34,0,'Data Input - Proposed'!P$6+'Data Input - General'!$F$22))","v":2027},{"$f":"IF($C$9=0,\"\",IF(Q$6+'Data Input - General'!$F$22>'Data Input - General'!$F$34,0,'Data Input - Proposed'!Q$6+'Data Input - General'!$F$22))","v":2028},{"$f":"IF($C$9=0,\"\",IF(R$6+'Data Input - General'!$F$22>'Data Input - General'!$F$34,0,'Data Input - Proposed'!R$6+'Data Input - General'!$F$22))","v":2029},{"$f":"IF($C$9=0,\"\",IF(S$6+'Data Input - General'!$F$22>'Data Input - General'!$F$34,0,'Data Input - Proposed'!S$6+'Data Input - General'!$F$22))","v":2030},{"$f":"IF($C$9=0,\"\",IF(T$6+'Data Input - General'!$F$22>'Data Input - General'!$F$34,0,'Data Input - Proposed'!T$6+'Data Input - General'!$F$22))","v":2031},{"$f":"IF($C$9=0,\"\",IF(U$6+'Data Input - General'!$F$22>'Data Input - General'!$F$34,0,'Data Input - Proposed'!U$6+'Data Input - General'!$F$22))","v":2032},{"$f":"IF($C$9=0,\"\",IF(V$6+'Data Input - General'!$F$22>'Data Input - General'!$F$34,0,'Data Input - Proposed'!V$6+'Data Input - General'!$F$22))","v":2033},{"$f":"IF($C$9=0,\"\",IF(W$6+'Data Input - General'!$F$22>'Data Input - General'!$F$34,0,'Data Input - Proposed'!W$6+'Data Input - General'!$F$22))","v":2034},{"$f":"IF($C$9=0,\"\",IF(X$6+'Data Input - General'!$F$22>'Data Input - General'!$F$34,0,'Data Input - Proposed'!X$6+'Data Input - General'!$F$22))","v":2035},{"$f":"IF($C$9=0,\"\",IF(Y$6+'Data Input - General'!$F$22>'Data Input - General'!$F$34,0,'Data Input - Proposed'!Y$6+'Data Input - General'!$F$22))","v":2036},{"$f":"IF($C$9=0,\"\",IF(Z$6+'Data Input - General'!$F$22>'Data Input - General'!$F$34,0,'Data Input - Proposed'!Z$6+'Data Input - General'!$F$22))","v":2037},{"$f":"IF($C$9=0,\"\",IF(AA$6+'Data Input - General'!$F$22>'Data Input - General'!$F$34,0,'Data Input - Proposed'!AA$6+'Data Input - General'!$F$22))","v":2038},{"$f":"IF($C$9=0,\"\",IF(AB$6+'Data Input - General'!$F$22>'Data Input - General'!$F$34,0,'Data Input - Proposed'!AB$6+'Data Input - General'!$F$22))","v":2039},{"$f":"IF($C$9=0,\"\",IF(AC$6+'Data Input - General'!$F$22>'Data Input - General'!$F$34,0,'Data Input - Proposed'!AC$6+'Data Input - General'!$F$22))","v":2040},{"$f":"IF($C$9=0,\"\",IF(AD$6+'Data Input - General'!$F$22>'Data Input - General'!$F$34,0,'Data Input - Proposed'!AD$6+'Data Input - General'!$F$22))","v":2041},{"$f":"IF($C$9=0,\"\",IF(AE$6+'Data Input - General'!$F$22>'Data Input - General'!$F$34,0,'Data Input - Proposed'!AE$6+'Data Input - General'!$F$22))","v":2042},{"$f":"IF($C$9=0,\"\",IF(AF$6+'Data Input - General'!$F$22>'Data Input - General'!$F$34,0,'Data Input - Proposed'!AF$6+'Data Input - General'!$F$22))","v":2043},{"$f":"IF($C$9=0,\"\",IF(AG$6+'Data Input - General'!$F$22>'Data Input - General'!$F$34,0,'Data Input - Proposed'!AG$6+'Data Input - General'!$F$22))","v":2044},{"$f":"IF($C$9=0,\"\",IF(AH$6+'Data Input - General'!$F$22>'Data Input - General'!$F$34,0,'Data Input - Proposed'!AH$6+'Data Input - General'!$F$22))","v":2045},{"$f":"IF($C$9=0,\"\",IF(AI$6+'Data Input - General'!$F$22>'Data Input - General'!$F$34,0,'Data Input - Proposed'!AI$6+'Data Input - General'!$F$22))","v":2046},{"$f":"IF($C$9=0,\"\",IF(AJ$6+'Data Input - General'!$F$22>'Data Input - General'!$F$34,0,'Data Input - Proposed'!AJ$6+'Data Input - General'!$F$22))","v":2047},{"$f":"IF($C$9=0,\"\",IF(AK$6+'Data Input - General'!$F$22>'Data Input - General'!$F$34,0,'Data Input - Proposed'!AK$6+'Data Input - General'!$F$22))","v":2048},{"$f":"IF($C$9=0,\"\",IF(AL$6+'Data Input - General'!$F$22>'Data Input - General'!$F$34,0,'Data Input - Proposed'!AL$6+'Data Input - General'!$F$22))","v":2049},{"$f":"IF($C$9=0,\"\",IF(AM$6+'Data Input - General'!$F$22>'Data Input - General'!$F$34,0,'Data Input - Proposed'!AM$6+'Data Input - General'!$F$22))","v":0},{"$f":"IF($C$9=0,\"\",IF(AN$6+'Data Input - General'!$F$22>'Data Input - General'!$F$34,0,'Data Input - Proposed'!AN$6+'Data Input - General'!$F$22))","v":0},{"$f":"IF($C$9=0,\"\",IF(AO$6+'Data Input - General'!$F$22>'Data Input - General'!$F$34,0,'Data Input - Proposed'!AO$6+'Data Input - General'!$F$22))","v":0},{"$f":"IF($C$9=0,\"\",IF(AP$6+'Data Input - General'!$F$22>'Data Input - General'!$F$34,0,'Data Input - Proposed'!AP$6+'Data Input - General'!$F$22))","v":0},{"$f":"IF($C$9=0,\"\",IF(AQ$6+'Data Input - General'!$F$22>'Data Input - General'!$F$34,0,'Data Input - Proposed'!AQ$6+'Data Input - General'!$F$22))","v":0},{"$f":"IF($C$9=0,\"\",IF(AR$6+'Data Input - General'!$F$22>'Data Input - General'!$F$34,0,'Data Input - Proposed'!AR$6+'Data Input - General'!$F$22))","v":0},{"$f":"IF($C$9=0,\"\",IF(AS$6+'Data Input - General'!$F$22>'Data Input - General'!$F$34,0,'Data Input - Proposed'!AS$6+'Data Input - General'!$F$22))","v":0},{"$f":"IF($C$9=0,\"\",IF(AT$6+'Data Input - General'!$F$22>'Data Input - General'!$F$34,0,'Data Input - Proposed'!AT$6+'Data Input - General'!$F$22))","v":0},{"$f":"IF($C$9=0,\"\",IF(AU$6+'Data Input - General'!$F$22>'Data Input - General'!$F$34,0,'Data Input - Proposed'!AU$6+'Data Input - General'!$F$22))","v":0},{"$f":"IF($C$9=0,\"\",IF(AV$6+'Data Input - General'!$F$22>'Data Input - General'!$F$34,0,'Data Input - Proposed'!AV$6+'Data Input - General'!$F$22))","v":0},{"$f":"IF($C$9=0,\"\",IF(AW$6+'Data Input - General'!$F$22>'Data Input - General'!$F$34,0,'Data Input - Proposed'!AW$6+'Data Input - General'!$F$22))","v":0},{"$f":"IF($C$9=0,\"\",IF(AX$6+'Data Input - General'!$F$22>'Data Input - General'!$F$34,0,'Data Input - Proposed'!AX$6+'Data Input - General'!$F$22))","v":0},{"$f":"IF($C$9=0,\"\",IF(AY$6+'Data Input - General'!$F$22>'Data Input - General'!$F$34,0,'Data Input - Proposed'!AY$6+'Data Input - General'!$F$22))","v":0},{"$f":"IF($C$9=0,\"\",IF(AZ$6+'Data Input - General'!$F$22>'Data Input - General'!$F$34,0,'Data Input - Proposed'!AZ$6+'Data Input - General'!$F$22))","v":0},{"$f":"IF($C$9=0,\"\",IF(BA$6+'Data Input - General'!$F$22>'Data Input - General'!$F$34,0,'Data Input - Proposed'!BA$6+'Data Input - General'!$F$22))","v":0},{"$f":"IF($C$9=0,\"\",IF(BB$6+'Data Input - General'!$F$22>'Data Input - General'!$F$34,0,'Data Input - Proposed'!BB$6+'Data Input - General'!$F$22))","v":0},{"$f":"IF($C$9=0,\"\",IF(BC$6+'Data Input - General'!$F$22>'Data Input - General'!$F$34,0,'Data Input - Proposed'!BC$6+'Data Input - General'!$F$22))","v":0},{"$f":"IF($C$9=0,\"\",IF(BD$6+'Data Input - General'!$F$22>'Data Input - General'!$F$34,0,'Data Input - Proposed'!BD$6+'Data Input - General'!$F$22))","v":0},{"$f":"IF($C$9=0,\"\",IF(BE$6+'Data Input - General'!$F$22>'Data Input - General'!$F$34,0,'Data Input - Proposed'!BE$6+'Data Input - General'!$F$22))","v":0},{"$f":"IF($C$9=0,\"\",IF(BF$6+'Data Input - General'!$F$22>'Data Input - General'!$F$34,0,'Data Input - Proposed'!BF$6+'Data Input - General'!$F$22))","v":0},{"$f":"IF($C$9=0,\"\",IF(BG$6+'Data Input - General'!$F$22>'Data Input - General'!$F$34,0,'Data Input - Proposed'!BG$6+'Data Input - General'!$F$22))","v":0},{"$f":"IF($C$9=0,\"\",IF(BH$6+'Data Input - General'!$F$22>'Data Input - General'!$F$34,0,'Data Input - Proposed'!BH$6+'Data Input - General'!$F$22))","v":0},{"$f":"IF($C$9=0,\"\",IF(BI$6+'Data Input - General'!$F$22>'Data Input - General'!$F$34,0,'Data Input - Proposed'!BI$6+'Data Input - General'!$F$22))","v":0},{"$f":"IF($C$9=0,\"\",IF(BJ$6+'Data Input - General'!$F$22>'Data Input - General'!$F$34,0,'Data Input - Proposed'!BJ$6+'Data Input - General'!$F$22))","v":0},{"$f":"IF($C$9=0,\"\",IF(BK$6+'Data Input - General'!$F$22>'Data Input - General'!$F$34,0,'Data Input - Proposed'!BK$6+'Data Input - General'!$F$22))","v":0},{"$f":"IF($C$9=0,\"\",IF(BL$6+'Data Input - General'!$F$22>'Data Input - General'!$F$34,0,'Data Input - Proposed'!BL$6+'Data Input - General'!$F$22))","v":0},{"$f":"IF($C$9=0,\"\",IF(BM$6+'Data Input - General'!$F$22>'Data Input - General'!$F$34,0,'Data Input - Proposed'!BM$6+'Data Input - General'!$F$22))","v":0},{"$f":"IF($C$9=0,\"\",IF(BN$6+'Data Input - General'!$F$22>'Data Input - General'!$F$34,0,'Data Input - Proposed'!BN$6+'Data Input - General'!$F$22))","v":0},{"$f":"IF($C$9=0,\"\",IF(BO$6+'Data Input - General'!$F$22>'Data Input - General'!$F$34,0,'Data Input - Proposed'!BO$6+'Data Input - General'!$F$22))","v":0},{"$f":"IF($C$9=0,\"\",IF(BP$6+'Data Input - General'!$F$22>'Data Input - General'!$F$34,0,'Data Input - Proposed'!BP$6+'Data Input - General'!$F$22))","v":0},{"$f":"IF($C$9=0,\"\",IF(BQ$6+'Data Input - General'!$F$22>'Data Input - General'!$F$34,0,'Data Input - Proposed'!BQ$6+'Data Input - General'!$F$22))","v":0},{"$f":"IF($C$9=0,\"\",IF(BR$6+'Data Input - General'!$F$22>'Data Input - General'!$F$34,0,'Data Input - Proposed'!BR$6+'Data Input - General'!$F$22))","v":0},{"$f":"IF($C$9=0,\"\",IF(BS$6+'Data Input - General'!$F$22>'Data Input - General'!$F$34,0,'Data Input - Proposed'!BS$6+'Data Input - General'!$F$22))","v":0},{"$f":"IF($C$9=0,\"\",IF(BT$6+'Data Input - General'!$F$22>'Data Input - General'!$F$34,0,'Data Input - Proposed'!BT$6+'Data Input - General'!$F$22))","v":0},{"$f":"IF($C$9=0,\"\",IF(BU$6+'Data Input - General'!$F$22>'Data Input - General'!$F$34,0,'Data Input - Proposed'!BU$6+'Data Input - General'!$F$22))","v":0},{"$f":"IF($C$9=0,\"\",IF(BV$6+'Data Input - General'!$F$22>'Data Input - General'!$F$34,0,'Data Input - Proposed'!BV$6+'Data Input - General'!$F$22))","v":0},{"$f":"IF($C$9=0,\"\",IF(BW$6+'Data Input - General'!$F$22>'Data Input - General'!$F$34,0,'Data Input - Proposed'!BW$6+'Data Input - General'!$F$22))","v":0},{"$f":"IF($C$9=0,\"\",IF(BX$6+'Data Input - General'!$F$22>'Data Input - General'!$F$34,0,'Data Input - Proposed'!BX$6+'Data Input - General'!$F$22))","v":0},{"$f":"IF($C$9=0,\"\",IF(BY$6+'Data Input - General'!$F$22>'Data Input - General'!$F$34,0,'Data Input - Proposed'!BY$6+'Data Input - General'!$F$22))","v":0},{"$f":"IF($C$9=0,\"\",IF(BZ$6+'Data Input - General'!$F$22>'Data Input - General'!$F$34,0,'Data Input - Proposed'!BZ$6+'Data Input - General'!$F$22))","v":0},{"$f":"IF($C$9=0,\"\",IF(CA$6+'Data Input - General'!$F$22>'Data Input - General'!$F$34,0,'Data Input - Proposed'!CA$6+'Data Input - General'!$F$22))","v":0},{"$f":"IF($C$9=0,\"\",IF(CB$6+'Data Input - General'!$F$22>'Data Input - General'!$F$34,0,'Data Input - Proposed'!CB$6+'Data Input - General'!$F$22))","v":0},{"$f":"IF($C$9=0,\"\",IF(CC$6+'Data Input - General'!$F$22>'Data Input - General'!$F$34,0,'Data Input - Proposed'!CC$6+'Data Input - General'!$F$22))","v":0},{"$f":"IF($C$9=0,\"\",IF(CD$6+'Data Input - General'!$F$22>'Data Input - General'!$F$34,0,'Data Input - Proposed'!CD$6+'Data Input - General'!$F$22))","v":0},{"$f":"IF($C$9=0,\"\",IF(CE$6+'Data Input - General'!$F$22>'Data Input - General'!$F$34,0,'Data Input - Proposed'!CE$6+'Data Input - General'!$F$22))","v":0},{"$f":"IF($C$9=0,\"\",IF(CF$6+'Data Input - General'!$F$22>'Data Input - General'!$F$34,0,'Data Input - Proposed'!CF$6+'Data Input - General'!$F$22))","v":0},{"$f":"IF($C$9=0,\"\",IF(CG$6+'Data Input - General'!$F$22>'Data Input - General'!$F$34,0,'Data Input - Proposed'!CG$6+'Data Input - General'!$F$22))","v":0},{"$f":"IF($C$9=0,\"\",IF(CH$6+'Data Input - General'!$F$22>'Data Input - General'!$F$34,0,'Data Input - Proposed'!CH$6+'Data Input - General'!$F$22))","v":0},{"$f":"IF($C$9=0,\"\",IF(CI$6+'Data Input - General'!$F$22>'Data Input - General'!$F$34,0,'Data Input - Proposed'!CI$6+'Data Input - General'!$F$22))","v":0},{"$f":"IF($C$9=0,\"\",IF(CJ$6+'Data Input - General'!$F$22>'Data Input - General'!$F$34,0,'Data Input - Proposed'!CJ$6+'Data Input - General'!$F$22))","v":0},{"$f":"IF($C$9=0,\"\",IF(CK$6+'Data Input - General'!$F$22>'Data Input - General'!$F$34,0,'Data Input - Proposed'!CK$6+'Data Input - General'!$F$22))","v":0},{"$f":"IF($C$9=0,\"\",IF(CL$6+'Data Input - General'!$F$22>'Data Input - General'!$F$34,0,'Data Input - Proposed'!CL$6+'Data Input - General'!$F$22))","v":0},{"$f":"IF($C$9=0,\"\",IF(CM$6+'Data Input - General'!$F$22>'Data Input - General'!$F$34,0,'Data Input - Proposed'!CM$6+'Data Input - General'!$F$22))","v":0},{"$f":"IF($C$9=0,\"\",IF(CN$6+'Data Input - General'!$F$22>'Data Input - General'!$F$34,0,'Data Input - Proposed'!CN$6+'Data Input - General'!$F$22))","v":0},{"$f":"IF($C$9=0,\"\",IF(CO$6+'Data Input - General'!$F$22>'Data Input - General'!$F$34,0,'Data Input - Proposed'!CO$6+'Data Input - General'!$F$22))","v":0},{"$f":"IF($C$9=0,\"\",IF(CP$6+'Data Input - General'!$F$22>'Data Input - General'!$F$34,0,'Data Input - Proposed'!CP$6+'Data Input - General'!$F$22))","v":0},{"$f":"IF($C$9=0,\"\",IF(CQ$6+'Data Input - General'!$F$22>'Data Input - General'!$F$34,0,'Data Input - Proposed'!CQ$6+'Data Input - General'!$F$22))","v":0},{"$f":"IF($C$9=0,\"\",IF(CR$6+'Data Input - General'!$F$22>'Data Input - General'!$F$34,0,'Data Input - Proposed'!CR$6+'Data Input - General'!$F$22))","v":0},{"$f":"IF($C$9=0,\"\",IF(CS$6+'Data Input - General'!$F$22>'Data Input - General'!$F$34,0,'Data Input - Proposed'!CS$6+'Data Input - General'!$F$22))","v":0},{"$f":"IF($C$9=0,\"\",IF(CT$6+'Data Input - General'!$F$22>'Data Input - General'!$F$34,0,'Data Input - Proposed'!CT$6+'Data Input - General'!$F$22))","v":0},{"$f":"IF($C$9=0,\"\",IF(CU$6+'Data Input - General'!$F$22>'Data Input - General'!$F$34,0,'Data Input - Proposed'!CU$6+'Data Input - General'!$F$22))","v":0},{"$f":"IF($C$9=0,\"\",IF(CV$6+'Data Input - General'!$F$22>'Data Input - General'!$F$34,0,'Data Input - Proposed'!CV$6+'Data Input - General'!$F$22))","v":0},{"$f":"IF($C$9=0,\"\",IF(CW$6+'Data Input - General'!$F$22>'Data Input - General'!$F$34,0,'Data Input - Proposed'!CW$6+'Data Input - General'!$F$22))","v":0},{"$f":"IF($C$9=0,\"\",IF(CX$6+'Data Input - General'!$F$22>'Data Input - General'!$F$34,0,'Data Input - Proposed'!CX$6+'Data Input - General'!$F$22))","v":0},{"$f":"IF($C$9=0,\"\",IF(CY$6+'Data Input - General'!$F$22>'Data Input - General'!$F$34,0,'Data Input - Proposed'!CY$6+'Data Input - General'!$F$22))","v":0},{"$f":"IF($C$9=0,\"\",IF(CZ$6+'Data Input - General'!$F$22>'Data Input - General'!$F$34,0,'Data Input - Proposed'!CZ$6+'Data Input - General'!$F$22))","v":0},{"$f":"IF($C$9=0,\"\",IF(DA$6+'Data Input - General'!$F$22>'Data Input - General'!$F$34,0,'Data Input - Proposed'!DA$6+'Data Input - General'!$F$22))","v":0},{"$f":"IF($C$9=0,\"\",IF(DB$6+'Data Input - General'!$F$22>'Data Input - General'!$F$34,0,'Data Input - Proposed'!DB$6+'Data Input - General'!$F$22))","v":0},{"$f":"IF($C$9=0,\"\",IF(DC$6+'Data Input - General'!$F$22>'Data Input - General'!$F$34,0,'Data Input - Proposed'!DC$6+'Data Input - General'!$F$22))","v":0}]
[]
[null,null,{"$f":"'Data Input - General'!G24","v":"Proposed derogation"},null,"(?)"]
[]
[null,null,"Upfront investment costs",null,"(?)"]
[]
[null,null,null,"Equipment"]
[null,null,5.0999999999999996,"Primary emission control equipment","£000's",null,null,20,20,20,5500,20,20,20,20]
[null,null,5.2,"Auxiliary equipment","£000's",null,null,500,500,500,500,500,500,500,500]
[null,null,5.3,"Instrumentation","£000's",null,null,6,6,6,6,6,6,6,6]
[null,null,5.4,"Modifications to existing equipment","£000's"]
[null,null,5.5,"Major refurbishment","£000's"]
[null,null,null,"Set-up costs"]
[null,null,"5.6","Land","£000's"]
[null,null,"5.7","Site preparation","£000's"]
[null,null,"5.8","Civils","£000's"]
[null,null,"5.9","Materials","£000's"]
[null,null,"5.10","Other (please specify)","£000's"]
[null,null,null,"Other capex"]
[null,null,"5.11","Residual value of existing technology (where replaced)","£000's"]
[null,null,"5.12","Project planning (if not in civils)","£000's"]
[null,null,"5.13","Other (please specify)","£000's"]
[]
[null,null,null,"Total upfront investment costs by year (non-discounted)","£000's","(Auto calculated value)",null,{"$f":"SUM(H14:H29)","v":526},{"$f":"SUM(I14:I29)","v":526},{"$f":"SUM(J14:J29)","v":526},{"$f":"SUM(K14:K29)","v":6006},{"$f":"SUM(L14:L29)","v":526},526,526,526,0,0,0,0,0,0,0,0,0,0,0,0,0,0,0,0,0,0,0,0,0,0,0,0,0,0,0,0,0,0,0,0,0,0,0,0,0,0,0,0,0,0,0,0,0,0,0,0,0,0,0,0,0,0,0,0,0,0,0,0,{"$f":"SUM(BX14:BX29)","v":0},0,0,0,0,0,0,0,0,0,0,0,0,0,0,0,0,0,0,0,0,0,0,0,0,0,0,0,0,0,0,0]
[]
[null,null,null,"Total upfront investment costs for all years (non-discounted)",null,"(Auto calculated value)",null,{"$f":"SUM(H30:DC30)","v":9688}]
[]
[null,null,"5.14","Uncertainty range around upfront investment costs","+/-%",0.1]
[]
[null,null,null,"Cost of capital (financing)","(?)"]
[null,null,"5.15","Enter financing costs manually?",null,"No",null,"<(Select from dropdown)"]
[]
[null,null,"5.16","Financing costs - WACC (if entered manually)                       (?)","£000's"]
[]
[null,null,"5.17","Financing costs - Low WACC (if entered manually)","£000's"]
[null,null,"5.18","Financing costs - High WACC (if entered manually)","£000's"]
[]
[null,null,"Operating Costs",null,"(?)"]
[]
[null,null,"5.19","Labour                                                                                            (?)","£000's",null,null,50,50,50,50,50,50,50,50]
[null,null,"5.20","Maintenance","£000's",null,null,200,200,200,200,200,200,200,200]
[null,null,"5.21","Hydrated lime","£000's",null,null,null,null,null,null,200,200,200,200]
[]
[null,null,null,"Total operating and maintenance costs by year (non-discounted)","£000's","(Auto calculated value)",null,{"$f":"SUM(H46:H49)","v":250},{"$f":"SUM(I46:I49)","v":250},250,250,450,450,450,450,0,0,0,0,0,0,0,0,0,0,0,0,0,0,0,0,0,0,0,0,0,0,0,0,0,0,0,0,0,0,0,0,0,0,0,0,0,0,0,0,0,0,0,0,0,0,0,0,0,0,0,0,0,0,0,0,0,{"$f":"SUM(BU46:BU49)","v":0},0,0,0,0,0,0,0,0,0,0,0,0,0,0,0,0,0,0,0,0,0,0,0,0,0,0,0,0,0,0,0,0,0,0]
[]
[null,null,null,"Total operating and maintenance costs for all years (non-discounted)",null,"(Auto calculated value)",null,{"$f":"SUM(H50:DC50)","v":2800}]
[]
[null,null,"5.22","Uncertainty range around operating costs","+/-%",0.2]
[]
[null,null,"Waste output",null,"(?)"]
[]
[null,null,null,"Volume of waste"]
[null,null,"5.23","Non-haz waste, reused","Tonnes"]
[null,null,"5.24","Non-haz waste, recycled","Tonnes"]
[null,null,"5.25","Non-haz waste, otherwise recovered","Tonnes"]
[null,null,"5.26","Non-haz waste, disposed","Tonnes"]
[null,null,"5.27","Haz waste, reused","Tonnes"]
[null,null,"5.28","Haz waste, recycled","Tonnes"]
[null,null,"5.29","Haz waste, otherwise recovered","Tonnes"]
[null,null,"5.30","Haz waste, disposed","Tonnes"]
[null,null,"5.31","Test 2","Tonnes",null,"(?)"]
[null,null,null,"Net cost of waste output"]
[null,null,"5.32","Non-haz waste, reused","£000's"]
[null,null,"5.33","Non-haz waste, recycled","£000's"]
[null,null,"5.34","Non-haz waste, otherwise recovered","£000's"]
[null,null,"5.35","Non-haz waste, disposed","£000's"]
[null,null,"5.36","Haz waste, reused","£000's"]
[null,null,"5.37","Haz waste, recycled","£000's"]
[null,null,"5.38","Haz waste, otherwise recovered","£000's"]
[null,null,"5.39","Haz waste, disposed","£000's"]
[null,null,"5.40","Other (please specify)","£000's"]
[]
[null,null,null,"Total cost of waste output","£000's","(Auto calculated value)",null,{"$f":"SUM(H69:H78)","v":0},{"$f":"SUM(I69:I78)","v":0},{"$f":"SUM(J69:J78)","v":0},{"$f":"SUM(K69:K78)","v":0},{"$f":"SUM(L69:L78)","v":0},0,0,0,0,0,0,0,0,0,0,0,0,0,0,0,0,0,0,0,0,0,0,0,0,0,0,0,0,0,0,0,0,0,0,0,0,0,0,0,0,0,0,0,0,0,0,0,0,0,0,0,0,0,0,0,0,0,0,0,0,0,0,0,{"$f":"SUM(BX69:BX78)","v":0},0,0,0,0,0,0,0,0,0,0,0,0,0,0,0,0,0,0,0,0,0,0,0,0,0,0,0,0,0,0,0]
[]
[null,null,"Energy Consumption"]
[]
[null,null,null,"Quantity of energy consumed"]
[null,null,"5.41","Electricity","kWh",null,null,4000000,4000000,4000000,4000000,4000000,4000000,4000000,4000000]
[null,null,"5.42","Natural Gas","kWh",null,null,0,0,0,0,0,0,0,0]
[null,null,"5.43","Coal","kWh",null,null,121624465,121624465,121624465,121624465,121624465,121624465,121624465,121624465]
[null,null,"5.44","Gas Oil","litres",null,null,200000,200000,200000,200000,200000,200000,200000,200000]
[null,null,"5.45","Road - Petrol","litres"]
[null,null,"5.46","Road - Diesel","litres"]
[null,null,"5.47",null,"kWh"]
[null,null,null,"Value of energy consumed","(?)"]
[null,null,null,{"$f":"D84","v":"Electricity"},"£000's","(Auto calculated value)",null,{"$f":"IFERROR(H84*INDEX('Energy Prices'!$F$12:$CR$17,MATCH('Data Input - Proposed'!$D92,'Energy Prices'!$C$12:$C$17,0),MATCH('Data Input - Proposed'!H$7,'Energy Prices'!$F$11:$CR$11,0))/100000,\"\")","v":446.04663605012496},{"$f":"IFERROR(I84*INDEX('Energy Prices'!$F$12:$CR$17,MATCH('Data Input - Proposed'!$D92,'Energy Prices'!$C$12:$C$17,0),MATCH('Data Input - Proposed'!I$7,'Energy Prices'!$F$11:$CR$11,0))/100000,\"\")","v":465.69767664411955},{"$f":"IFERROR(J84*INDEX('Energy Prices'!$F$12:$CR$17,MATCH('Data Input - Proposed'!$D92,'Energy Prices'!$C$12:$C$17,0),MATCH('Data Input - Proposed'!J$7,'Energy Prices'!$F$11:$CR$11,0))/100000,\"\")","v":498.45544107559726},{"$f":"IFERROR(K84*INDEX('Energy Prices'!$F$12:$CR$17,MATCH('Data Input - Proposed'!$D92,'Energy Prices'!$C$12:$C$17,0),MATCH('Data Input - Proposed'!K$7,'Energy Prices'!$F$11:$CR$11,0))/100000,\"\")","v":509.2569759971895},{"$f":"IFERROR(L84*INDEX('Energy Prices'!$F$12:$CR$17,MATCH('Data Input - Proposed'!$D92,'Energy Prices'!$C$12:$C$17,0),MATCH('Data Input - Proposed'!L$7,'Energy Prices'!$F$11:$CR$11,0))/100000,\"\")","v":520.1761292448972},{"$f":"IFERROR(M84*INDEX('Energy Prices'!$F$12:$CR$17,MATCH('Data Input - Proposed'!$D92,'Energy Prices'!$C$12:$C$17,0),MATCH('Data Input - Proposed'!M$7,'Energy Prices'!$F$11:$CR$11,0))/100000,\"\")","v":556.39462304896892},{"$f":"IFERROR(N84*INDEX('Energy Prices'!$F$12:$CR$17,MATCH('Data Input - Proposed'!$D92,'Energy Prices'!$C$12:$C$17,0),MATCH('Data Input - Proposed'!N$7,'Energy Prices'!$F$11:$CR$11,0))/100000,\"\")","v":580.46041654324722},{"$f":"IFERROR(O84*INDEX('Energy Prices'!$F$12:$CR$17,MATCH('Data Input - Proposed'!$D92,'Energy Prices'!$C$12:$C$17,0),MATCH('Data Input - Proposed'!O$7,'Energy Prices'!$F$11:$CR$11,0))/100000,\"\")","v":584.29766310550838},{"$f":"IFERROR(P84*INDEX('Energy Prices'!$F$12:$CR$17,MATCH('Data Input - Proposed'!$D92,'Energy Prices'!$C$12:$C$17,0),MATCH('Data Input - Proposed'!P$7,'Energy Prices'!$F$11:$CR$11,0))/100000,\"\")","v":0},{"$f":"IFERROR(Q84*INDEX('Energy Prices'!$F$12:$CR$17,MATCH('Data Input - Proposed'!$D92,'Energy Prices'!$C$12:$C$17,0),MATCH('Data Input - Proposed'!Q$7,'Energy Prices'!$F$11:$CR$11,0))/100000,\"\")","v":0},{"$f":"IFERROR(R84*INDEX('Energy Prices'!$F$12:$CR$17,MATCH('Data Input - Proposed'!$D92,'Energy Prices'!$C$12:$C$17,0),MATCH('Data Input - Proposed'!R$7,'Energy Prices'!$F$11:$CR$11,0))/100000,\"\")","v":0},{"$f":"IFERROR(S84*INDEX('Energy Prices'!$F$12:$CR$17,MATCH('Data Input - Proposed'!$D92,'Energy Prices'!$C$12:$C$17,0),MATCH('Data Input - Proposed'!S$7,'Energy Prices'!$F$11:$CR$11,0))/100000,\"\")","v":0},{"$f":"IFERROR(T84*INDEX('Energy Prices'!$F$12:$CR$17,MATCH('Data Input - Proposed'!$D92,'Energy Prices'!$C$12:$C$17,0),MATCH('Data Input - Proposed'!T$7,'Energy Prices'!$F$11:$CR$11,0))/100000,\"\")","v":0},{"$f":"IFERROR(U84*INDEX('Energy Prices'!$F$12:$CR$17,MATCH('Data Input - Proposed'!$D92,'Energy Prices'!$C$12:$C$17,0),MATCH('Data Input - Proposed'!U$7,'Energy Prices'!$F$11:$CR$11,0))/100000,\"\")","v":0},{"$f":"IFERROR(V84*INDEX('Energy Prices'!$F$12:$CR$17,MATCH('Data Input - Proposed'!$D92,'Energy Prices'!$C$12:$C$17,0),MATCH('Data Input - Proposed'!V$7,'Energy Prices'!$F$11:$CR$11,0))/100000,\"\")","v":0},{"$f":"IFERROR(W84*INDEX('Energy Prices'!$F$12:$CR$17,MATCH('Data Input - Proposed'!$D92,'Energy Prices'!$C$12:$C$17,0),MATCH('Data Input - Proposed'!W$7,'Energy Prices'!$F$11:$CR$11,0))/100000,\"\")","v":0},{"$f":"IFERROR(X84*INDEX('Energy Prices'!$F$12:$CR$17,MATCH('Data Input - Proposed'!$D92,'Energy Prices'!$C$12:$C$17,0),MATCH('Data Input - Proposed'!X$7,'Energy Prices'!$F$11:$CR$11,0))/100000,\"\")","v":0},{"$f":"IFERROR(Y84*INDEX('Energy Prices'!$F$12:$CR$17,MATCH('Data Input - Proposed'!$D92,'Energy Prices'!$C$12:$C$17,0),MATCH('Data Input - Proposed'!Y$7,'Energy Prices'!$F$11:$CR$11,0))/100000,\"\")","v":0},{"$f":"IFERROR(Z84*INDEX('Energy Prices'!$F$12:$CR$17,MATCH('Data Input - Proposed'!$D92,'Energy Prices'!$C$12:$C$17,0),MATCH('Data Input - Proposed'!Z$7,'Energy Prices'!$F$11:$CR$11,0))/100000,\"\")","v":0},{"$f":"IFERROR(AA84*INDEX('Energy Prices'!$F$12:$CR$17,MATCH('Data Input - Proposed'!$D92,'Energy Prices'!$C$12:$C$17,0),MATCH('Data Input - Proposed'!AA$7,'Energy Prices'!$F$11:$CR$11,0))/100000,\"\")","v":0},{"$f":"IFERROR(AB84*INDEX('Energy Prices'!$F$12:$CR$17,MATCH('Data Input - Proposed'!$D92,'Energy Prices'!$C$12:$C$17,0),MATCH('Data Input - Proposed'!AB$7,'Energy Prices'!$F$11:$CR$11,0))/100000,\"\")","v":0},{"$f":"IFERROR(AC84*INDEX('Energy Prices'!$F$12:$CR$17,MATCH('Data Input - Proposed'!$D92,'Energy Prices'!$C$12:$C$17,0),MATCH('Data Input - Proposed'!AC$7,'Energy Prices'!$F$11:$CR$11,0))/100000,\"\")","v":0},{"$f":"IFERROR(AD84*INDEX('Energy Prices'!$F$12:$CR$17,MATCH('Data Input - Proposed'!$D92,'Energy Prices'!$C$12:$C$17,0),MATCH('Data Input - Proposed'!AD$7,'Energy Prices'!$F$11:$CR$11,0))/100000,\"\")","v":0},{"$f":"IFERROR(AE84*INDEX('Energy Prices'!$F$12:$CR$17,MATCH('Data Input - Proposed'!$D92,'Energy Prices'!$C$12:$C$17,0),MATCH('Data Input - Proposed'!AE$7,'Energy Prices'!$F$11:$CR$11,0))/100000,\"\")","v":0},{"$f":"IFERROR(AF84*INDEX('Energy Prices'!$F$12:$CR$17,MATCH('Data Input - Proposed'!$D92,'Energy Prices'!$C$12:$C$17,0),MATCH('Data Input - Proposed'!AF$7,'Energy Prices'!$F$11:$CR$11,0))/100000,\"\")","v":0},{"$f":"IFERROR(AG84*INDEX('Energy Prices'!$F$12:$CR$17,MATCH('Data Input - Proposed'!$D92,'Energy Prices'!$C$12:$C$17,0),MATCH('Data Input - Proposed'!AG$7,'Energy Prices'!$F$11:$CR$11,0))/100000,\"\")","v":0},{"$f":"IFERROR(AH84*INDEX('Energy Prices'!$F$12:$CR$17,MATCH('Data Input - Proposed'!$D92,'Energy Prices'!$C$12:$C$17,0),MATCH('Data Input - Proposed'!AH$7,'Energy Prices'!$F$11:$CR$11,0))/100000,\"\")","v":0},{"$f":"IFERROR(AI84*INDEX('Energy Prices'!$F$12:$CR$17,MATCH('Data Input - Proposed'!$D92,'Energy Prices'!$C$12:$C$17,0),MATCH('Data Input - Proposed'!AI$7,'Energy Prices'!$F$11:$CR$11,0))/100000,\"\")","v":0},{"$f":"IFERROR(AJ84*INDEX('Energy Prices'!$F$12:$CR$17,MATCH('Data Input - Proposed'!$D92,'Energy Prices'!$C$12:$C$17,0),MATCH('Data Input - Proposed'!AJ$7,'Energy Prices'!$F$11:$CR$11,0))/100000,\"\")","v":0},{"$f":"IFERROR(AK84*INDEX('Energy Prices'!$F$12:$CR$17,MATCH('Data Input - Proposed'!$D92,'Energy Prices'!$C$12:$C$17,0),MATCH('Data Input - Proposed'!AK$7,'Energy Prices'!$F$11:$CR$11,0))/100000,\"\")","v":0},{"$f":"IFERROR(AL84*INDEX('Energy Prices'!$F$12:$CR$17,MATCH('Data Input - Proposed'!$D92,'Energy Prices'!$C$12:$C$17,0),MATCH('Data Input - Proposed'!AL$7,'Energy Prices'!$F$11:$CR$11,0))/100000,\"\")","v":0},{"$f":"IFERROR(AM84*INDEX('Energy Prices'!$F$12:$CR$17,MATCH('Data Input - Proposed'!$D92,'Energy Prices'!$C$12:$C$17,0),MATCH('Data Input - Proposed'!AM$7,'Energy Prices'!$F$11:$CR$11,0))/100000,\"\")","v":""},{"$f":"IFERROR(AN84*INDEX('Energy Prices'!$F$12:$CR$17,MATCH('Data Input - Proposed'!$D92,'Energy Prices'!$C$12:$C$17,0),MATCH('Data Input - Proposed'!AN$7,'Energy Prices'!$F$11:$CR$11,0))/100000,\"\")","v":""},{"$f":"IFERROR(AO84*INDEX('Energy Prices'!$F$12:$CR$17,MATCH('Data Input - Proposed'!$D92,'Energy Prices'!$C$12:$C$17,0),MATCH('Data Input - Proposed'!AO$7,'Energy Prices'!$F$11:$CR$11,0))/100000,\"\")","v":""},{"$f":"IFERROR(AP84*INDEX('Energy Prices'!$F$12:$CR$17,MATCH('Data Input - Proposed'!$D92,'Energy Prices'!$C$12:$C$17,0),MATCH('Data Input - Proposed'!AP$7,'Energy Prices'!$F$11:$CR$11,0))/100000,\"\")","v":""},{"$f":"IFERROR(AQ84*INDEX('Energy Prices'!$F$12:$CR$17,MATCH('Data Input - Proposed'!$D92,'Energy Prices'!$C$12:$C$17,0),MATCH('Data Input - Proposed'!AQ$7,'Energy Prices'!$F$11:$CR$11,0))/100000,\"\")","v":""},{"$f":"IFERROR(AR84*INDEX('Energy Prices'!$F$12:$CR$17,MATCH('Data Input - Proposed'!$D92,'Energy Prices'!$C$12:$C$17,0),MATCH('Data Input - Proposed'!AR$7,'Energy Prices'!$F$11:$CR$11,0))/100000,\"\")","v":""},{"$f":"IFERROR(AS84*INDEX('Energy Prices'!$F$12:$CR$17,MATCH('Data Input - Proposed'!$D92,'Energy Prices'!$C$12:$C$17,0),MATCH('Data Input - Proposed'!AS$7,'Energy Prices'!$F$11:$CR$11,0))/100000,\"\")","v":""},{"$f":"IFERROR(AT84*INDEX('Energy Prices'!$F$12:$CR$17,MATCH('Data Input - Proposed'!$D92,'Energy Prices'!$C$12:$C$17,0),MATCH('Data Input - Proposed'!AT$7,'Energy Prices'!$F$11:$CR$11,0))/100000,\"\")","v":""},{"$f":"IFERROR(AU84*INDEX('Energy Prices'!$F$12:$CR$17,MATCH('Data Input - Proposed'!$D92,'Energy Prices'!$C$12:$C$17,0),MATCH('Data Input - Proposed'!AU$7,'Energy Prices'!$F$11:$CR$11,0))/100000,\"\")","v":""},{"$f":"IFERROR(AV84*INDEX('Energy Prices'!$F$12:$CR$17,MATCH('Data Input - Proposed'!$D92,'Energy Prices'!$C$12:$C$17,0),MATCH('Data Input - Proposed'!AV$7,'Energy Prices'!$F$11:$CR$11,0))/100000,\"\")","v":""},{"$f":"IFERROR(AW84*INDEX('Energy Prices'!$F$12:$CR$17,MATCH('Data Input - Proposed'!$D92,'Energy Prices'!$C$12:$C$17,0),MATCH('Data Input - Proposed'!AW$7,'Energy Prices'!$F$11:$CR$11,0))/100000,\"\")","v":""},{"$f":"IFERROR(AX84*INDEX('Energy Prices'!$F$12:$CR$17,MATCH('Data Input - Proposed'!$D92,'Energy Prices'!$C$12:$C$17,0),MATCH('Data Input - Proposed'!AX$7,'Energy Prices'!$F$11:$CR$11,0))/100000,\"\")","v":""},{"$f":"IFERROR(AY84*INDEX('Energy Prices'!$F$12:$CR$17,MATCH('Data Input - Proposed'!$D92,'Energy Prices'!$C$12:$C$17,0),MATCH('Data Input - Proposed'!AY$7,'Energy Prices'!$F$11:$CR$11,0))/100000,\"\")","v":""},{"$f":"IFERROR(AZ84*INDEX('Energy Prices'!$F$12:$CR$17,MATCH('Data Input - Proposed'!$D92,'Energy Prices'!$C$12:$C$17,0),MATCH('Data Input - Proposed'!AZ$7,'Energy Prices'!$F$11:$CR$11,0))/100000,\"\")","v":""},{"$f":"IFERROR(BA84*INDEX('Energy Prices'!$F$12:$CR$17,MATCH('Data Input - Proposed'!$D92,'Energy Prices'!$C$12:$C$17,0),MATCH('Data Input - Proposed'!BA$7,'Energy Prices'!$F$11:$CR$11,0))/100000,\"\")","v":""},{"$f":"IFERROR(BB84*INDEX('Energy Prices'!$F$12:$CR$17,MATCH('Data Input - Proposed'!$D92,'Energy Prices'!$C$12:$C$17,0),MATCH('Data Input - Proposed'!BB$7,'Energy Prices'!$F$11:$CR$11,0))/100000,\"\")","v":""},{"$f":"IFERROR(BC84*INDEX('Energy Prices'!$F$12:$CR$17,MATCH('Data Input - Proposed'!$D92,'Energy Prices'!$C$12:$C$17,0),MATCH('Data Input - Proposed'!BC$7,'Energy Prices'!$F$11:$CR$11,0))/100000,\"\")","v":""},{"$f":"IFERROR(BD84*INDEX('Energy Prices'!$F$12:$CR$17,MATCH('Data Input - Proposed'!$D92,'Energy Prices'!$C$12:$C$17,0),MATCH('Data Input - Proposed'!BD$7,'Energy Prices'!$F$11:$CR$11,0))/100000,\"\")","v":""},{"$f":"IFERROR(BE84*INDEX('Energy Prices'!$F$12:$CR$17,MATCH('Data Input - Proposed'!$D92,'Energy Prices'!$C$12:$C$17,0),MATCH('Data Input - Proposed'!BE$7,'Energy Prices'!$F$11:$CR$11,0))/100000,\"\")","v":""},{"$f":"IFERROR(BF84*INDEX('Energy Prices'!$F$12:$CR$17,MATCH('Data Input - Proposed'!$D92,'Energy Prices'!$C$12:$C$17,0),MATCH('Data Input - Proposed'!BF$7,'Energy Prices'!$F$11:$CR$11,0))/100000,\"\")","v":""},{"$f":"IFERROR(BG84*INDEX('Energy Prices'!$F$12:$CR$17,MATCH('Data Input - Proposed'!$D92,'Energy Prices'!$C$12:$C$17,0),MATCH('Data Input - Proposed'!BG$7,'Energy Prices'!$F$11:$CR$11,0))/100000,\"\")","v":""},{"$f":"IFERROR(BH84*INDEX('Energy Prices'!$F$12:$CR$17,MATCH('Data Input - Proposed'!$D92,'Energy Prices'!$C$12:$C$17,0),MATCH('Data Input - Proposed'!BH$7,'Energy Prices'!$F$11:$CR$11,0))/100000,\"\")","v":""},{"$f":"IFERROR(BI84*INDEX('Energy Prices'!$F$12:$CR$17,MATCH('Data Input - Proposed'!$D92,'Energy Prices'!$C$12:$C$17,0),MATCH('Data Input - Proposed'!BI$7,'Energy Prices'!$F$11:$CR$11,0))/100000,\"\")","v":""},{"$f":"IFERROR(BJ84*INDEX('Energy Prices'!$F$12:$CR$17,MATCH('Data Input - Proposed'!$D92,'Energy Prices'!$C$12:$C$17,0),MATCH('Data Input - Proposed'!BJ$7,'Energy Prices'!$F$11:$CR$11,0))/100000,\"\")","v":""},{"$f":"IFERROR(BK84*INDEX('Energy Prices'!$F$12:$CR$17,MATCH('Data Input - Proposed'!$D92,'Energy Prices'!$C$12:$C$17,0),MATCH('Data Input - Proposed'!BK$7,'Energy Prices'!$F$11:$CR$11,0))/100000,\"\")","v":""},{"$f":"IFERROR(BL84*INDEX('Energy Prices'!$F$12:$CR$17,MATCH('Data Input - Proposed'!$D92,'Energy Prices'!$C$12:$C$17,0),MATCH('Data Input - Proposed'!BL$7,'Energy Prices'!$F$11:$CR$11,0))/100000,\"\")","v":""},{"$f":"IFERROR(BM84*INDEX('Energy Prices'!$F$12:$CR$17,MATCH('Data Input - Proposed'!$D92,'Energy Prices'!$C$12:$C$17,0),MATCH('Data Input - Proposed'!BM$7,'Energy Prices'!$F$11:$CR$11,0))/100000,\"\")","v":""},{"$f":"IFERROR(BN84*INDEX('Energy Prices'!$F$12:$CR$17,MATCH('Data Input - Proposed'!$D92,'Energy Prices'!$C$12:$C$17,0),MATCH('Data Input - Proposed'!BN$7,'Energy Prices'!$F$11:$CR$11,0))/100000,\"\")","v":""},{"$f":"IFERROR(BO84*INDEX('Energy Prices'!$F$12:$CR$17,MATCH('Data Input - Proposed'!$D92,'Energy Prices'!$C$12:$C$17,0),MATCH('Data Input - Proposed'!BO$7,'Energy Prices'!$F$11:$CR$11,0))/100000,\"\")","v":""},{"$f":"IFERROR(BP84*INDEX('Energy Prices'!$F$12:$CR$17,MATCH('Data Input - Proposed'!$D92,'Energy Prices'!$C$12:$C$17,0),MATCH('Data Input - Proposed'!BP$7,'Energy Prices'!$F$11:$CR$11,0))/100000,\"\")","v":""},{"$f":"IFERROR(BQ84*INDEX('Energy Prices'!$F$12:$CR$17,MATCH('Data Input - Proposed'!$D92,'Energy Prices'!$C$12:$C$17,0),MATCH('Data Input - Proposed'!BQ$7,'Energy Prices'!$F$11:$CR$11,0))/100000,\"\")","v":""},{"$f":"IFERROR(BR84*INDEX('Energy Prices'!$F$12:$CR$17,MATCH('Data Input - Proposed'!$D92,'Energy Prices'!$C$12:$C$17,0),MATCH('Data Input - Proposed'!BR$7,'Energy Prices'!$F$11:$CR$11,0))/100000,\"\")","v":""},{"$f":"IFERROR(BS84*INDEX('Energy Prices'!$F$12:$CR$17,MATCH('Data Input - Proposed'!$D92,'Energy Prices'!$C$12:$C$17,0),MATCH('Data Input - Proposed'!BS$7,'Energy Prices'!$F$11:$CR$11,0))/100000,\"\")","v":""},{"$f":"IFERROR(BT84*INDEX('Energy Prices'!$F$12:$CR$17,MATCH('Data Input - Proposed'!$D92,'Energy Prices'!$C$12:$C$17,0),MATCH('Data Input - Proposed'!BT$7,'Energy Prices'!$F$11:$CR$11,0))/100000,\"\")","v":""},{"$f":"IFERROR(BU84*INDEX('Energy Prices'!$F$12:$CR$17,MATCH('Data Input - Proposed'!$D92,'Energy Prices'!$C$12:$C$17,0),MATCH('Data Input - Proposed'!BU$7,'Energy Prices'!$F$11:$CR$11,0))/100000,\"\")","v":""},{"$f":"IFERROR(BV84*INDEX('Energy Prices'!$F$12:$CR$17,MATCH('Data Input - Proposed'!$D92,'Energy Prices'!$C$12:$C$17,0),MATCH('Data Input - Proposed'!BV$7,'Energy Prices'!$F$11:$CR$11,0))/100000,\"\")","v":""},{"$f":"IFERROR(BW84*INDEX('Energy Prices'!$F$12:$CR$17,MATCH('Data Input - Proposed'!$D92,'Energy Prices'!$C$12:$C$17,0),MATCH('Data Input - Proposed'!BW$7,'Energy Prices'!$F$11:$CR$11,0))/100000,\"\")","v":""},{"$f":"IFERROR(BX84*INDEX('Energy Prices'!$F$12:$CR$17,MATCH('Data Input - Proposed'!$D92,'Energy Prices'!$C$12:$C$17,0),MATCH('Data Input - Proposed'!BX$7,'Energy Prices'!$F$11:$CR$11,0))/100000,\"\")","v":""},{"$f":"IFERROR(BY84*INDEX('Energy Prices'!$F$12:$CR$17,MATCH('Data Input - Proposed'!$D92,'Energy Prices'!$C$12:$C$17,0),MATCH('Data Input - Proposed'!BY$7,'Energy Prices'!$F$11:$CR$11,0))/100000,\"\")","v":""},{"$f":"IFERROR(BZ84*INDEX('Energy Prices'!$F$12:$CR$17,MATCH('Data Input - Proposed'!$D92,'Energy Prices'!$C$12:$C$17,0),MATCH('Data Input - Proposed'!BZ$7,'Energy Prices'!$F$11:$CR$11,0))/100000,\"\")","v":""},{"$f":"IFERROR(CA84*INDEX('Energy Prices'!$F$12:$CR$17,MATCH('Data Input - Proposed'!$D92,'Energy Prices'!$C$12:$C$17,0),MATCH('Data Input - Proposed'!CA$7,'Energy Prices'!$F$11:$CR$11,0))/100000,\"\")","v":""},{"$f":"IFERROR(CB84*INDEX('Energy Prices'!$F$12:$CR$17,MATCH('Data Input - Proposed'!$D92,'Energy Prices'!$C$12:$C$17,0),MATCH('Data Input - Proposed'!CB$7,'Energy Prices'!$F$11:$CR$11,0))/100000,\"\")","v":""},{"$f":"IFERROR(CC84*INDEX('Energy Prices'!$F$12:$CR$17,MATCH('Data Input - Proposed'!$D92,'Energy Prices'!$C$12:$C$17,0),MATCH('Data Input - Proposed'!CC$7,'Energy Prices'!$F$11:$CR$11,0))/100000,\"\")","v":""},{"$f":"IFERROR(CD84*INDEX('Energy Prices'!$F$12:$CR$17,MATCH('Data Input - Proposed'!$D92,'Energy Prices'!$C$12:$C$17,0),MATCH('Data Input - Proposed'!CD$7,'Energy Prices'!$F$11:$CR$11,0))/100000,\"\")","v":""},{"$f":"IFERROR(CE84*INDEX('Energy Prices'!$F$12:$CR$17,MATCH('Data Input - Proposed'!$D92,'Energy Prices'!$C$12:$C$17,0),MATCH('Data Input - Proposed'!CE$7,'Energy Prices'!$F$11:$CR$11,0))/100000,\"\")","v":""},{"$f":"IFERROR(CF84*INDEX('Energy Prices'!$F$12:$CR$17,MATCH('Data Input - Proposed'!$D92,'Energy Prices'!$C$12:$C$17,0),MATCH('Data Input - Proposed'!CF$7,'Energy Prices'!$F$11:$CR$11,0))/100000,\"\")","v":""},{"$f":"IFERROR(CG84*INDEX('Energy Prices'!$F$12:$CR$17,MATCH('Data Input - Proposed'!$D92,'Energy Prices'!$C$12:$C$17,0),MATCH('Data Input - Proposed'!CG$7,'Energy Prices'!$F$11:$CR$11,0))/100000,\"\")","v":""},{"$f":"IFERROR(CH84*INDEX('Energy Prices'!$F$12:$CR$17,MATCH('Data Input - Proposed'!$D92,'Energy Prices'!$C$12:$C$17,0),MATCH('Data Input - Proposed'!CH$7,'Energy Prices'!$F$11:$CR$11,0))/100000,\"\")","v":""},{"$f":"IFERROR(CI84*INDEX('Energy Prices'!$F$12:$CR$17,MATCH('Data Input - Proposed'!$D92,'Energy Prices'!$C$12:$C$17,0),MATCH('Data Input - Proposed'!CI$7,'Energy Prices'!$F$11:$CR$11,0))/100000,\"\")","v":""},{"$f":"IFERROR(CJ84*INDEX('Energy Prices'!$F$12:$CR$17,MATCH('Data Input - Proposed'!$D92,'Energy Prices'!$C$12:$C$17,0),MATCH('Data Input - Proposed'!CJ$7,'Energy Prices'!$F$11:$CR$11,0))/100000,\"\")","v":""},{"$f":"IFERROR(CK84*INDEX('Energy Prices'!$F$12:$CR$17,MATCH('Data Input - Proposed'!$D92,'Energy Prices'!$C$12:$C$17,0),MATCH('Data Input - Proposed'!CK$7,'Energy Prices'!$F$11:$CR$11,0))/100000,\"\")","v":""},{"$f":"IFERROR(CL84*INDEX('Energy Prices'!$F$12:$CR$17,MATCH('Data Input - Proposed'!$D92,'Energy Prices'!$C$12:$C$17,0),MATCH('Data Input - Proposed'!CL$7,'Energy Prices'!$F$11:$CR$11,0))/100000,\"\")","v":""},{"$f":"IFERROR(CM84*INDEX('Energy Prices'!$F$12:$CR$17,MATCH('Data Input - Proposed'!$D92,'Energy Prices'!$C$12:$C$17,0),MATCH('Data Input - Proposed'!CM$7,'Energy Prices'!$F$11:$CR$11,0))/100000,\"\")","v":""},{"$f":"IFERROR(CN84*INDEX('Energy Prices'!$F$12:$CR$17,MATCH('Data Input - Proposed'!$D92,'Energy Prices'!$C$12:$C$17,0),MATCH('Data Input - Proposed'!CN$7,'Energy Prices'!$F$11:$CR$11,0))/100000,\"\")","v":""},{"$f":"IFERROR(CO84*INDEX('Energy Prices'!$F$12:$CR$17,MATCH('Data Input - Proposed'!$D92,'Energy Prices'!$C$12:$C$17,0),MATCH('Data Input - Proposed'!CO$7,'Energy Prices'!$F$11:$CR$11,0))/100000,\"\")","v":""},{"$f":"IFERROR(CP84*INDEX('Energy Prices'!$F$12:$CR$17,MATCH('Data Input - Proposed'!$D92,'Energy Prices'!$C$12:$C$17,0),MATCH('Data Input - Proposed'!CP$7,'Energy Prices'!$F$11:$CR$11,0))/100000,\"\")","v":""},{"$f":"IFERROR(CQ84*INDEX('Energy Prices'!$F$12:$CR$17,MATCH('Data Input - Proposed'!$D92,'Energy Prices'!$C$12:$C$17,0),MATCH('Data Input - Proposed'!CQ$7,'Energy Prices'!$F$11:$CR$11,0))/100000,\"\")","v":""},{"$f":"IFERROR(CR84*INDEX('Energy Prices'!$F$12:$CR$17,MATCH('Data Input - Proposed'!$D92,'Energy Prices'!$C$12:$C$17,0),MATCH('Data Input - Proposed'!CR$7,'Energy Prices'!$F$11:$CR$11,0))/100000,\"\")","v":""},{"$f":"IFERROR(CS84*INDEX('Energy Prices'!$F$12:$CR$17,MATCH('Data Input - Proposed'!$D92,'Energy Prices'!$C$12:$C$17,0),MATCH('Data Input - Proposed'!CS$7,'Energy Prices'!$F$11:$CR$11,0))/100000,\"\")","v":""},{"$f":"IFERROR(CT84*INDEX('Energy Prices'!$F$12:$CR$17,MATCH('Data Input - Proposed'!$D92,'Energy Prices'!$C$12:$C$17,0),MATCH('Data Input - Proposed'!CT$7,'Energy Prices'!$F$11:$CR$11,0))/100000,\"\")","v":""},{"$f":"IFERROR(CU84*INDEX('Energy Prices'!$F$12:$CR$17,MATCH('Data Input - Proposed'!$D92,'Energy Prices'!$C$12:$C$17,0),MATCH('Data Input - Proposed'!CU$7,'Energy Prices'!$F$11:$CR$11,0))/100000,\"\")","v":""},{"$f":"IFERROR(CV84*INDEX('Energy Prices'!$F$12:$CR$17,MATCH('Data Input - Proposed'!$D92,'Energy Prices'!$C$12:$C$17,0),MATCH('Data Input - Proposed'!CV$7,'Energy Prices'!$F$11:$CR$11,0))/100000,\"\")","v":""},{"$f":"IFERROR(CW84*INDEX('Energy Prices'!$F$12:$CR$17,MATCH('Data Input - Proposed'!$D92,'Energy Prices'!$C$12:$C$17,0),MATCH('Data Input - Proposed'!CW$7,'Energy Prices'!$F$11:$CR$11,0))/100000,\"\")","v":""},{"$f":"IFERROR(CX84*INDEX('Energy Prices'!$F$12:$CR$17,MATCH('Data Input - Proposed'!$D92,'Energy Prices'!$C$12:$C$17,0),MATCH('Data Input - Proposed'!CX$7,'Energy Prices'!$F$11:$CR$11,0))/100000,\"\")","v":""},{"$f":"IFERROR(CY84*INDEX('Energy Prices'!$F$12:$CR$17,MATCH('Data Input - Proposed'!$D92,'Energy Prices'!$C$12:$C$17,0),MATCH('Data Input - Proposed'!CY$7,'Energy Prices'!$F$11:$CR$11,0))/100000,\"\")","v":""},{"$f":"IFERROR(CZ84*INDEX('Energy Prices'!$F$12:$CR$17,MATCH('Data Input - Proposed'!$D92,'Energy Prices'!$C$12:$C$17,0),MATCH('Data Input - Proposed'!CZ$7,'Energy Prices'!$F$11:$CR$11,0))/100000,\"\")","v":""},{"$f":"IFERROR(DA84*INDEX('Energy Prices'!$F$12:$CR$17,MATCH('Data Input - Proposed'!$D92,'Energy Prices'!$C$12:$C$17,0),MATCH('Data Input - Proposed'!DA$7,'Energy Prices'!$F$11:$CR$11,0))/100000,\"\")","v":""},{"$f":"IFERROR(DB84*INDEX('Energy Prices'!$F$12:$CR$17,MATCH('Data Input - Proposed'!$D92,'Energy Prices'!$C$12:$C$17,0),MATCH('Data Input - Proposed'!DB$7,'Energy Prices'!$F$11:$CR$11,0))/100000,\"\")","v":""},{"$f":"IFERROR(DC84*INDEX('Energy Prices'!$F$12:$CR$17,MATCH('Data Input - Proposed'!$D92,'Energy Prices'!$C$12:$C$17,0),MATCH('Data Input - Proposed'!DC$7,'Energy Prices'!$F$11:$CR$11,0))/100000,\"\")","v":""}]
[null,null,null,{"$f":"D85","v":"Natural Gas"},"£000's","(Auto calculated value)",null,{"$f":"IFERROR(H85*INDEX('Energy Prices'!$F$12:$CR$17,MATCH('Data Input - Proposed'!$D93,'Energy Prices'!$C$12:$C$17,0),MATCH('Data Input - Proposed'!H$7,'Energy Prices'!$F$11:$CR$11,0))/100000,\"\")","v":0},{"$f":"IFERROR(I85*INDEX('Energy Prices'!$F$12:$CR$17,MATCH('Data Input - Proposed'!$D93,'Energy Prices'!$C$12:$C$17,0),MATCH('Data Input - Proposed'!I$7,'Energy Prices'!$F$11:$CR$11,0))/100000,\"\")","v":0},{"$f":"IFERROR(J85*INDEX('Energy Prices'!$F$12:$CR$17,MATCH('Data Input - Proposed'!$D93,'Energy Prices'!$C$12:$C$17,0),MATCH('Data Input - Proposed'!J$7,'Energy Prices'!$F$11:$CR$11,0))/100000,\"\")","v":0},{"$f":"IFERROR(K85*INDEX('Energy Prices'!$F$12:$CR$17,MATCH('Data Input - Proposed'!$D93,'Energy Prices'!$C$12:$C$17,0),MATCH('Data Input - Proposed'!K$7,'Energy Prices'!$F$11:$CR$11,0))/100000,\"\")","v":0},{"$f":"IFERROR(L85*INDEX('Energy Prices'!$F$12:$CR$17,MATCH('Data Input - Proposed'!$D93,'Energy Prices'!$C$12:$C$17,0),MATCH('Data Input - Proposed'!L$7,'Energy Prices'!$F$11:$CR$11,0))/100000,\"\")","v":0},{"$f":"IFERROR(M85*INDEX('Energy Prices'!$F$12:$CR$17,MATCH('Data Input - Proposed'!$D93,'Energy Prices'!$C$12:$C$17,0),MATCH('Data Input - Proposed'!M$7,'Energy Prices'!$F$11:$CR$11,0))/100000,\"\")","v":0},{"$f":"IFERROR(N85*INDEX('Energy Prices'!$F$12:$CR$17,MATCH('Data Input - Proposed'!$D93,'Energy Prices'!$C$12:$C$17,0),MATCH('Data Input - Proposed'!N$7,'Energy Prices'!$F$11:$CR$11,0))/100000,\"\")","v":0},{"$f":"IFERROR(O85*INDEX('Energy Prices'!$F$12:$CR$17,MATCH('Data Input - Proposed'!$D93,'Energy Prices'!$C$12:$C$17,0),MATCH('Data Input - Proposed'!O$7,'Energy Prices'!$F$11:$CR$11,0))/100000,\"\")","v":0},{"$f":"IFERROR(P85*INDEX('Energy Prices'!$F$12:$CR$17,MATCH('Data Input - Proposed'!$D93,'Energy Prices'!$C$12:$C$17,0),MATCH('Data Input - Proposed'!P$7,'Energy Prices'!$F$11:$CR$11,0))/100000,\"\")","v":0},{"$f":"IFERROR(Q85*INDEX('Energy Prices'!$F$12:$CR$17,MATCH('Data Input - Proposed'!$D93,'Energy Prices'!$C$12:$C$17,0),MATCH('Data Input - Proposed'!Q$7,'Energy Prices'!$F$11:$CR$11,0))/100000,\"\")","v":0},{"$f":"IFERROR(R85*INDEX('Energy Prices'!$F$12:$CR$17,MATCH('Data Input - Proposed'!$D93,'Energy Prices'!$C$12:$C$17,0),MATCH('Data Input - Proposed'!R$7,'Energy Prices'!$F$11:$CR$11,0))/100000,\"\")","v":0},{"$f":"IFERROR(S85*INDEX('Energy Prices'!$F$12:$CR$17,MATCH('Data Input - Proposed'!$D93,'Energy Prices'!$C$12:$C$17,0),MATCH('Data Input - Proposed'!S$7,'Energy Prices'!$F$11:$CR$11,0))/100000,\"\")","v":0},{"$f":"IFERROR(T85*INDEX('Energy Prices'!$F$12:$CR$17,MATCH('Data Input - Proposed'!$D93,'Energy Prices'!$C$12:$C$17,0),MATCH('Data Input - Proposed'!T$7,'Energy Prices'!$F$11:$CR$11,0))/100000,\"\")","v":0},{"$f":"IFERROR(U85*INDEX('Energy Prices'!$F$12:$CR$17,MATCH('Data Input - Proposed'!$D93,'Energy Prices'!$C$12:$C$17,0),MATCH('Data Input - Proposed'!U$7,'Energy Prices'!$F$11:$CR$11,0))/100000,\"\")","v":0},{"$f":"IFERROR(V85*INDEX('Energy Prices'!$F$12:$CR$17,MATCH('Data Input - Proposed'!$D93,'Energy Prices'!$C$12:$C$17,0),MATCH('Data Input - Proposed'!V$7,'Energy Prices'!$F$11:$CR$11,0))/100000,\"\")","v":0},{"$f":"IFERROR(W85*INDEX('Energy Prices'!$F$12:$CR$17,MATCH('Data Input - Proposed'!$D93,'Energy Prices'!$C$12:$C$17,0),MATCH('Data Input - Proposed'!W$7,'Energy Prices'!$F$11:$CR$11,0))/100000,\"\")","v":0},{"$f":"IFERROR(X85*INDEX('Energy Prices'!$F$12:$CR$17,MATCH('Data Input - Proposed'!$D93,'Energy Prices'!$C$12:$C$17,0),MATCH('Data Input - Proposed'!X$7,'Energy Prices'!$F$11:$CR$11,0))/100000,\"\")","v":0},{"$f":"IFERROR(Y85*INDEX('Energy Prices'!$F$12:$CR$17,MATCH('Data Input - Proposed'!$D93,'Energy Prices'!$C$12:$C$17,0),MATCH('Data Input - Proposed'!Y$7,'Energy Prices'!$F$11:$CR$11,0))/100000,\"\")","v":0},{"$f":"IFERROR(Z85*INDEX('Energy Prices'!$F$12:$CR$17,MATCH('Data Input - Proposed'!$D93,'Energy Prices'!$C$12:$C$17,0),MATCH('Data Input - Proposed'!Z$7,'Energy Prices'!$F$11:$CR$11,0))/100000,\"\")","v":0},{"$f":"IFERROR(AA85*INDEX('Energy Prices'!$F$12:$CR$17,MATCH('Data Input - Proposed'!$D93,'Energy Prices'!$C$12:$C$17,0),MATCH('Data Input - Proposed'!AA$7,'Energy Prices'!$F$11:$CR$11,0))/100000,\"\")","v":0},{"$f":"IFERROR(AB85*INDEX('Energy Prices'!$F$12:$CR$17,MATCH('Data Input - Proposed'!$D93,'Energy Prices'!$C$12:$C$17,0),MATCH('Data Input - Proposed'!AB$7,'Energy Prices'!$F$11:$CR$11,0))/100000,\"\")","v":0},{"$f":"IFERROR(AC85*INDEX('Energy Prices'!$F$12:$CR$17,MATCH('Data Input - Proposed'!$D93,'Energy Prices'!$C$12:$C$17,0),MATCH('Data Input - Proposed'!AC$7,'Energy Prices'!$F$11:$CR$11,0))/100000,\"\")","v":0},{"$f":"IFERROR(AD85*INDEX('Energy Prices'!$F$12:$CR$17,MATCH('Data Input - Proposed'!$D93,'Energy Prices'!$C$12:$C$17,0),MATCH('Data Input - Proposed'!AD$7,'Energy Prices'!$F$11:$CR$11,0))/100000,\"\")","v":0},{"$f":"IFERROR(AE85*INDEX('Energy Prices'!$F$12:$CR$17,MATCH('Data Input - Proposed'!$D93,'Energy Prices'!$C$12:$C$17,0),MATCH('Data Input - Proposed'!AE$7,'Energy Prices'!$F$11:$CR$11,0))/100000,\"\")","v":0},{"$f":"IFERROR(AF85*INDEX('Energy Prices'!$F$12:$CR$17,MATCH('Data Input - Proposed'!$D93,'Energy Prices'!$C$12:$C$17,0),MATCH('Data Input - Proposed'!AF$7,'Energy Prices'!$F$11:$CR$11,0))/100000,\"\")","v":0},{"$f":"IFERROR(AG85*INDEX('Energy Prices'!$F$12:$CR$17,MATCH('Data Input - Proposed'!$D93,'Energy Prices'!$C$12:$C$17,0),MATCH('Data Input - Proposed'!AG$7,'Energy Prices'!$F$11:$CR$11,0))/100000,\"\")","v":0},{"$f":"IFERROR(AH85*INDEX('Energy Prices'!$F$12:$CR$17,MATCH('Data Input - Proposed'!$D93,'Energy Prices'!$C$12:$C$17,0),MATCH('Data Input - Proposed'!AH$7,'Energy Prices'!$F$11:$CR$11,0))/100000,\"\")","v":0},{"$f":"IFERROR(AI85*INDEX('Energy Prices'!$F$12:$CR$17,MATCH('Data Input - Proposed'!$D93,'Energy Prices'!$C$12:$C$17,0),MATCH('Data Input - Proposed'!AI$7,'Energy Prices'!$F$11:$CR$11,0))/100000,\"\")","v":0},{"$f":"IFERROR(AJ85*INDEX('Energy Prices'!$F$12:$CR$17,MATCH('Data Input - Proposed'!$D93,'Energy Prices'!$C$12:$C$17,0),MATCH('Data Input - Proposed'!AJ$7,'Energy Prices'!$F$11:$CR$11,0))/100000,\"\")","v":0},{"$f":"IFERROR(AK85*INDEX('Energy Prices'!$F$12:$CR$17,MATCH('Data Input - Proposed'!$D93,'Energy Prices'!$C$12:$C$17,0),MATCH('Data Input - Proposed'!AK$7,'Energy Prices'!$F$11:$CR$11,0))/100000,\"\")","v":0},{"$f":"IFERROR(AL85*INDEX('Energy Prices'!$F$12:$CR$17,MATCH('Data Input - Proposed'!$D93,'Energy Prices'!$C$12:$C$17,0),MATCH('Data Input - Proposed'!AL$7,'Energy Prices'!$F$11:$CR$11,0))/100000,\"\")","v":0},{"$f":"IFERROR(AM85*INDEX('Energy Prices'!$F$12:$CR$17,MATCH('Data Input - Proposed'!$D93,'Energy Prices'!$C$12:$C$17,0),MATCH('Data Input - Proposed'!AM$7,'Energy Prices'!$F$11:$CR$11,0))/100000,\"\")","v":""},{"$f":"IFERROR(AN85*INDEX('Energy Prices'!$F$12:$CR$17,MATCH('Data Input - Proposed'!$D93,'Energy Prices'!$C$12:$C$17,0),MATCH('Data Input - Proposed'!AN$7,'Energy Prices'!$F$11:$CR$11,0))/100000,\"\")","v":""},{"$f":"IFERROR(AO85*INDEX('Energy Prices'!$F$12:$CR$17,MATCH('Data Input - Proposed'!$D93,'Energy Prices'!$C$12:$C$17,0),MATCH('Data Input - Proposed'!AO$7,'Energy Prices'!$F$11:$CR$11,0))/100000,\"\")","v":""},{"$f":"IFERROR(AP85*INDEX('Energy Prices'!$F$12:$CR$17,MATCH('Data Input - Proposed'!$D93,'Energy Prices'!$C$12:$C$17,0),MATCH('Data Input - Proposed'!AP$7,'Energy Prices'!$F$11:$CR$11,0))/100000,\"\")","v":""},{"$f":"IFERROR(AQ85*INDEX('Energy Prices'!$F$12:$CR$17,MATCH('Data Input - Proposed'!$D93,'Energy Prices'!$C$12:$C$17,0),MATCH('Data Input - Proposed'!AQ$7,'Energy Prices'!$F$11:$CR$11,0))/100000,\"\")","v":""},{"$f":"IFERROR(AR85*INDEX('Energy Prices'!$F$12:$CR$17,MATCH('Data Input - Proposed'!$D93,'Energy Prices'!$C$12:$C$17,0),MATCH('Data Input - Proposed'!AR$7,'Energy Prices'!$F$11:$CR$11,0))/100000,\"\")","v":""},{"$f":"IFERROR(AS85*INDEX('Energy Prices'!$F$12:$CR$17,MATCH('Data Input - Proposed'!$D93,'Energy Prices'!$C$12:$C$17,0),MATCH('Data Input - Proposed'!AS$7,'Energy Prices'!$F$11:$CR$11,0))/100000,\"\")","v":""},{"$f":"IFERROR(AT85*INDEX('Energy Prices'!$F$12:$CR$17,MATCH('Data Input - Proposed'!$D93,'Energy Prices'!$C$12:$C$17,0),MATCH('Data Input - Proposed'!AT$7,'Energy Prices'!$F$11:$CR$11,0))/100000,\"\")","v":""},{"$f":"IFERROR(AU85*INDEX('Energy Prices'!$F$12:$CR$17,MATCH('Data Input - Proposed'!$D93,'Energy Prices'!$C$12:$C$17,0),MATCH('Data Input - Proposed'!AU$7,'Energy Prices'!$F$11:$CR$11,0))/100000,\"\")","v":""},{"$f":"IFERROR(AV85*INDEX('Energy Prices'!$F$12:$CR$17,MATCH('Data Input - Proposed'!$D93,'Energy Prices'!$C$12:$C$17,0),MATCH('Data Input - Proposed'!AV$7,'Energy Prices'!$F$11:$CR$11,0))/100000,\"\")","v":""},{"$f":"IFERROR(AW85*INDEX('Energy Prices'!$F$12:$CR$17,MATCH('Data Input - Proposed'!$D93,'Energy Prices'!$C$12:$C$17,0),MATCH('Data Input - Proposed'!AW$7,'Energy Prices'!$F$11:$CR$11,0))/100000,\"\")","v":""},{"$f":"IFERROR(AX85*INDEX('Energy Prices'!$F$12:$CR$17,MATCH('Data Input - Proposed'!$D93,'Energy Prices'!$C$12:$C$17,0),MATCH('Data Input - Proposed'!AX$7,'Energy Prices'!$F$11:$CR$11,0))/100000,\"\")","v":""},{"$f":"IFERROR(AY85*INDEX('Energy Prices'!$F$12:$CR$17,MATCH('Data Input - Proposed'!$D93,'Energy Prices'!$C$12:$C$17,0),MATCH('Data Input - Proposed'!AY$7,'Energy Prices'!$F$11:$CR$11,0))/100000,\"\")","v":""},{"$f":"IFERROR(AZ85*INDEX('Energy Prices'!$F$12:$CR$17,MATCH('Data Input - Proposed'!$D93,'Energy Prices'!$C$12:$C$17,0),MATCH('Data Input - Proposed'!AZ$7,'Energy Prices'!$F$11:$CR$11,0))/100000,\"\")","v":""},{"$f":"IFERROR(BA85*INDEX('Energy Prices'!$F$12:$CR$17,MATCH('Data Input - Proposed'!$D93,'Energy Prices'!$C$12:$C$17,0),MATCH('Data Input - Proposed'!BA$7,'Energy Prices'!$F$11:$CR$11,0))/100000,\"\")","v":""},{"$f":"IFERROR(BB85*INDEX('Energy Prices'!$F$12:$CR$17,MATCH('Data Input - Proposed'!$D93,'Energy Prices'!$C$12:$C$17,0),MATCH('Data Input - Proposed'!BB$7,'Energy Prices'!$F$11:$CR$11,0))/100000,\"\")","v":""},{"$f":"IFERROR(BC85*INDEX('Energy Prices'!$F$12:$CR$17,MATCH('Data Input - Proposed'!$D93,'Energy Prices'!$C$12:$C$17,0),MATCH('Data Input - Proposed'!BC$7,'Energy Prices'!$F$11:$CR$11,0))/100000,\"\")","v":""},{"$f":"IFERROR(BD85*INDEX('Energy Prices'!$F$12:$CR$17,MATCH('Data Input - Proposed'!$D93,'Energy Prices'!$C$12:$C$17,0),MATCH('Data Input - Proposed'!BD$7,'Energy Prices'!$F$11:$CR$11,0))/100000,\"\")","v":""},{"$f":"IFERROR(BE85*INDEX('Energy Prices'!$F$12:$CR$17,MATCH('Data Input - Proposed'!$D93,'Energy Prices'!$C$12:$C$17,0),MATCH('Data Input - Proposed'!BE$7,'Energy Prices'!$F$11:$CR$11,0))/100000,\"\")","v":""},{"$f":"IFERROR(BF85*INDEX('Energy Prices'!$F$12:$CR$17,MATCH('Data Input - Proposed'!$D93,'Energy Prices'!$C$12:$C$17,0),MATCH('Data Input - Proposed'!BF$7,'Energy Prices'!$F$11:$CR$11,0))/100000,\"\")","v":""},{"$f":"IFERROR(BG85*INDEX('Energy Prices'!$F$12:$CR$17,MATCH('Data Input - Proposed'!$D93,'Energy Prices'!$C$12:$C$17,0),MATCH('Data Input - Proposed'!BG$7,'Energy Prices'!$F$11:$CR$11,0))/100000,\"\")","v":""},{"$f":"IFERROR(BH85*INDEX('Energy Prices'!$F$12:$CR$17,MATCH('Data Input - Proposed'!$D93,'Energy Prices'!$C$12:$C$17,0),MATCH('Data Input - Proposed'!BH$7,'Energy Prices'!$F$11:$CR$11,0))/100000,\"\")","v":""},{"$f":"IFERROR(BI85*INDEX('Energy Prices'!$F$12:$CR$17,MATCH('Data Input - Proposed'!$D93,'Energy Prices'!$C$12:$C$17,0),MATCH('Data Input - Proposed'!BI$7,'Energy Prices'!$F$11:$CR$11,0))/100000,\"\")","v":""},{"$f":"IFERROR(BJ85*INDEX('Energy Prices'!$F$12:$CR$17,MATCH('Data Input - Proposed'!$D93,'Energy Prices'!$C$12:$C$17,0),MATCH('Data Input - Proposed'!BJ$7,'Energy Prices'!$F$11:$CR$11,0))/100000,\"\")","v":""},{"$f":"IFERROR(BK85*INDEX('Energy Prices'!$F$12:$CR$17,MATCH('Data Input - Proposed'!$D93,'Energy Prices'!$C$12:$C$17,0),MATCH('Data Input - Proposed'!BK$7,'Energy Prices'!$F$11:$CR$11,0))/100000,\"\")","v":""},{"$f":"IFERROR(BL85*INDEX('Energy Prices'!$F$12:$CR$17,MATCH('Data Input - Proposed'!$D93,'Energy Prices'!$C$12:$C$17,0),MATCH('Data Input - Proposed'!BL$7,'Energy Prices'!$F$11:$CR$11,0))/100000,\"\")","v":""},{"$f":"IFERROR(BM85*INDEX('Energy Prices'!$F$12:$CR$17,MATCH('Data Input - Proposed'!$D93,'Energy Prices'!$C$12:$C$17,0),MATCH('Data Input - Proposed'!BM$7,'Energy Prices'!$F$11:$CR$11,0))/100000,\"\")","v":""},{"$f":"IFERROR(BN85*INDEX('Energy Prices'!$F$12:$CR$17,MATCH('Data Input - Proposed'!$D93,'Energy Prices'!$C$12:$C$17,0),MATCH('Data Input - Proposed'!BN$7,'Energy Prices'!$F$11:$CR$11,0))/100000,\"\")","v":""},{"$f":"IFERROR(BO85*INDEX('Energy Prices'!$F$12:$CR$17,MATCH('Data Input - Proposed'!$D93,'Energy Prices'!$C$12:$C$17,0),MATCH('Data Input - Proposed'!BO$7,'Energy Prices'!$F$11:$CR$11,0))/100000,\"\")","v":""},{"$f":"IFERROR(BP85*INDEX('Energy Prices'!$F$12:$CR$17,MATCH('Data Input - Proposed'!$D93,'Energy Prices'!$C$12:$C$17,0),MATCH('Data Input - Proposed'!BP$7,'Energy Prices'!$F$11:$CR$11,0))/100000,\"\")","v":""},{"$f":"IFERROR(BQ85*INDEX('Energy Prices'!$F$12:$CR$17,MATCH('Data Input - Proposed'!$D93,'Energy Prices'!$C$12:$C$17,0),MATCH('Data Input - Proposed'!BQ$7,'Energy Prices'!$F$11:$CR$11,0))/100000,\"\")","v":""},{"$f":"IFERROR(BR85*INDEX('Energy Prices'!$F$12:$CR$17,MATCH('Data Input - Proposed'!$D93,'Energy Prices'!$C$12:$C$17,0),MATCH('Data Input - Proposed'!BR$7,'Energy Prices'!$F$11:$CR$11,0))/100000,\"\")","v":""},{"$f":"IFERROR(BS85*INDEX('Energy Prices'!$F$12:$CR$17,MATCH('Data Input - Proposed'!$D93,'Energy Prices'!$C$12:$C$17,0),MATCH('Data Input - Proposed'!BS$7,'Energy Prices'!$F$11:$CR$11,0))/100000,\"\")","v":""},{"$f":"IFERROR(BT85*INDEX('Energy Prices'!$F$12:$CR$17,MATCH('Data Input - Proposed'!$D93,'Energy Prices'!$C$12:$C$17,0),MATCH('Data Input - Proposed'!BT$7,'Energy Prices'!$F$11:$CR$11,0))/100000,\"\")","v":""},{"$f":"IFERROR(BU85*INDEX('Energy Prices'!$F$12:$CR$17,MATCH('Data Input - Proposed'!$D93,'Energy Prices'!$C$12:$C$17,0),MATCH('Data Input - Proposed'!BU$7,'Energy Prices'!$F$11:$CR$11,0))/100000,\"\")","v":""},{"$f":"IFERROR(BV85*INDEX('Energy Prices'!$F$12:$CR$17,MATCH('Data Input - Proposed'!$D93,'Energy Prices'!$C$12:$C$17,0),MATCH('Data Input - Proposed'!BV$7,'Energy Prices'!$F$11:$CR$11,0))/100000,\"\")","v":""},{"$f":"IFERROR(BW85*INDEX('Energy Prices'!$F$12:$CR$17,MATCH('Data Input - Proposed'!$D93,'Energy Prices'!$C$12:$C$17,0),MATCH('Data Input - Proposed'!BW$7,'Energy Prices'!$F$11:$CR$11,0))/100000,\"\")","v":""},{"$f":"IFERROR(BX85*INDEX('Energy Prices'!$F$12:$CR$17,MATCH('Data Input - Proposed'!$D93,'Energy Prices'!$C$12:$C$17,0),MATCH('Data Input - Proposed'!BX$7,'Energy Prices'!$F$11:$CR$11,0))/100000,\"\")","v":""},{"$f":"IFERROR(BY85*INDEX('Energy Prices'!$F$12:$CR$17,MATCH('Data Input - Proposed'!$D93,'Energy Prices'!$C$12:$C$17,0),MATCH('Data Input - Proposed'!BY$7,'Energy Prices'!$F$11:$CR$11,0))/100000,\"\")","v":""},{"$f":"IFERROR(BZ85*INDEX('Energy Prices'!$F$12:$CR$17,MATCH('Data Input - Proposed'!$D93,'Energy Prices'!$C$12:$C$17,0),MATCH('Data Input - Proposed'!BZ$7,'Energy Prices'!$F$11:$CR$11,0))/100000,\"\")","v":""},{"$f":"IFERROR(CA85*INDEX('Energy Prices'!$F$12:$CR$17,MATCH('Data Input - Proposed'!$D93,'Energy Prices'!$C$12:$C$17,0),MATCH('Data Input - Proposed'!CA$7,'Energy Prices'!$F$11:$CR$11,0))/100000,\"\")","v":""},{"$f":"IFERROR(CB85*INDEX('Energy Prices'!$F$12:$CR$17,MATCH('Data Input - Proposed'!$D93,'Energy Prices'!$C$12:$C$17,0),MATCH('Data Input - Proposed'!CB$7,'Energy Prices'!$F$11:$CR$11,0))/100000,\"\")","v":""},{"$f":"IFERROR(CC85*INDEX('Energy Prices'!$F$12:$CR$17,MATCH('Data Input - Proposed'!$D93,'Energy Prices'!$C$12:$C$17,0),MATCH('Data Input - Proposed'!CC$7,'Energy Prices'!$F$11:$CR$11,0))/100000,\"\")","v":""},{"$f":"IFERROR(CD85*INDEX('Energy Prices'!$F$12:$CR$17,MATCH('Data Input - Proposed'!$D93,'Energy Prices'!$C$12:$C$17,0),MATCH('Data Input - Proposed'!CD$7,'Energy Prices'!$F$11:$CR$11,0))/100000,\"\")","v":""},{"$f":"IFERROR(CE85*INDEX('Energy Prices'!$F$12:$CR$17,MATCH('Data Input - Proposed'!$D93,'Energy Prices'!$C$12:$C$17,0),MATCH('Data Input - Proposed'!CE$7,'Energy Prices'!$F$11:$CR$11,0))/100000,\"\")","v":""},{"$f":"IFERROR(CF85*INDEX('Energy Prices'!$F$12:$CR$17,MATCH('Data Input - Proposed'!$D93,'Energy Prices'!$C$12:$C$17,0),MATCH('Data Input - Proposed'!CF$7,'Energy Prices'!$F$11:$CR$11,0))/100000,\"\")","v":""},{"$f":"IFERROR(CG85*INDEX('Energy Prices'!$F$12:$CR$17,MATCH('Data Input - Proposed'!$D93,'Energy Prices'!$C$12:$C$17,0),MATCH('Data Input - Proposed'!CG$7,'Energy Prices'!$F$11:$CR$11,0))/100000,\"\")","v":""},{"$f":"IFERROR(CH85*INDEX('Energy Prices'!$F$12:$CR$17,MATCH('Data Input - Proposed'!$D93,'Energy Prices'!$C$12:$C$17,0),MATCH('Data Input - Proposed'!CH$7,'Energy Prices'!$F$11:$CR$11,0))/100000,\"\")","v":""},{"$f":"IFERROR(CI85*INDEX('Energy Prices'!$F$12:$CR$17,MATCH('Data Input - Proposed'!$D93,'Energy Prices'!$C$12:$C$17,0),MATCH('Data Input - Proposed'!CI$7,'Energy Prices'!$F$11:$CR$11,0))/100000,\"\")","v":""},{"$f":"IFERROR(CJ85*INDEX('Energy Prices'!$F$12:$CR$17,MATCH('Data Input - Proposed'!$D93,'Energy Prices'!$C$12:$C$17,0),MATCH('Data Input - Proposed'!CJ$7,'Energy Prices'!$F$11:$CR$11,0))/100000,\"\")","v":""},{"$f":"IFERROR(CK85*INDEX('Energy Prices'!$F$12:$CR$17,MATCH('Data Input - Proposed'!$D93,'Energy Prices'!$C$12:$C$17,0),MATCH('Data Input - Proposed'!CK$7,'Energy Prices'!$F$11:$CR$11,0))/100000,\"\")","v":""},{"$f":"IFERROR(CL85*INDEX('Energy Prices'!$F$12:$CR$17,MATCH('Data Input - Proposed'!$D93,'Energy Prices'!$C$12:$C$17,0),MATCH('Data Input - Proposed'!CL$7,'Energy Prices'!$F$11:$CR$11,0))/100000,\"\")","v":""},{"$f":"IFERROR(CM85*INDEX('Energy Prices'!$F$12:$CR$17,MATCH('Data Input - Proposed'!$D93,'Energy Prices'!$C$12:$C$17,0),MATCH('Data Input - Proposed'!CM$7,'Energy Prices'!$F$11:$CR$11,0))/100000,\"\")","v":""},{"$f":"IFERROR(CN85*INDEX('Energy Prices'!$F$12:$CR$17,MATCH('Data Input - Proposed'!$D93,'Energy Prices'!$C$12:$C$17,0),MATCH('Data Input - Proposed'!CN$7,'Energy Prices'!$F$11:$CR$11,0))/100000,\"\")","v":""},{"$f":"IFERROR(CO85*INDEX('Energy Prices'!$F$12:$CR$17,MATCH('Data Input - Proposed'!$D93,'Energy Prices'!$C$12:$C$17,0),MATCH('Data Input - Proposed'!CO$7,'Energy Prices'!$F$11:$CR$11,0))/100000,\"\")","v":""},{"$f":"IFERROR(CP85*INDEX('Energy Prices'!$F$12:$CR$17,MATCH('Data Input - Proposed'!$D93,'Energy Prices'!$C$12:$C$17,0),MATCH('Data Input - Proposed'!CP$7,'Energy Prices'!$F$11:$CR$11,0))/100000,\"\")","v":""},{"$f":"IFERROR(CQ85*INDEX('Energy Prices'!$F$12:$CR$17,MATCH('Data Input - Proposed'!$D93,'Energy Prices'!$C$12:$C$17,0),MATCH('Data Input - Proposed'!CQ$7,'Energy Prices'!$F$11:$CR$11,0))/100000,\"\")","v":""},{"$f":"IFERROR(CR85*INDEX('Energy Prices'!$F$12:$CR$17,MATCH('Data Input - Proposed'!$D93,'Energy Prices'!$C$12:$C$17,0),MATCH('Data Input - Proposed'!CR$7,'Energy Prices'!$F$11:$CR$11,0))/100000,\"\")","v":""},{"$f":"IFERROR(CS85*INDEX('Energy Prices'!$F$12:$CR$17,MATCH('Data Input - Proposed'!$D93,'Energy Prices'!$C$12:$C$17,0),MATCH('Data Input - Proposed'!CS$7,'Energy Prices'!$F$11:$CR$11,0))/100000,\"\")","v":""},{"$f":"IFERROR(CT85*INDEX('Energy Prices'!$F$12:$CR$17,MATCH('Data Input - Proposed'!$D93,'Energy Prices'!$C$12:$C$17,0),MATCH('Data Input - Proposed'!CT$7,'Energy Prices'!$F$11:$CR$11,0))/100000,\"\")","v":""},{"$f":"IFERROR(CU85*INDEX('Energy Prices'!$F$12:$CR$17,MATCH('Data Input - Proposed'!$D93,'Energy Prices'!$C$12:$C$17,0),MATCH('Data Input - Proposed'!CU$7,'Energy Prices'!$F$11:$CR$11,0))/100000,\"\")","v":""},{"$f":"IFERROR(CV85*INDEX('Energy Prices'!$F$12:$CR$17,MATCH('Data Input - Proposed'!$D93,'Energy Prices'!$C$12:$C$17,0),MATCH('Data Input - Proposed'!CV$7,'Energy Prices'!$F$11:$CR$11,0))/100000,\"\")","v":""},{"$f":"IFERROR(CW85*INDEX('Energy Prices'!$F$12:$CR$17,MATCH('Data Input - Proposed'!$D93,'Energy Prices'!$C$12:$C$17,0),MATCH('Data Input - Proposed'!CW$7,'Energy Prices'!$F$11:$CR$11,0))/100000,\"\")","v":""},{"$f":"IFERROR(CX85*INDEX('Energy Prices'!$F$12:$CR$17,MATCH('Data Input - Proposed'!$D93,'Energy Prices'!$C$12:$C$17,0),MATCH('Data Input - Proposed'!CX$7,'Energy Prices'!$F$11:$CR$11,0))/100000,\"\")","v":""},{"$f":"IFERROR(CY85*INDEX('Energy Prices'!$F$12:$CR$17,MATCH('Data Input - Proposed'!$D93,'Energy Prices'!$C$12:$C$17,0),MATCH('Data Input - Proposed'!CY$7,'Energy Prices'!$F$11:$CR$11,0))/100000,\"\")","v":""},{"$f":"IFERROR(CZ85*INDEX('Energy Prices'!$F$12:$CR$17,MATCH('Data Input - Proposed'!$D93,'Energy Prices'!$C$12:$C$17,0),MATCH('Data Input - Proposed'!CZ$7,'Energy Prices'!$F$11:$CR$11,0))/100000,\"\")","v":""},{"$f":"IFERROR(DA85*INDEX('Energy Prices'!$F$12:$CR$17,MATCH('Data Input - Proposed'!$D93,'Energy Prices'!$C$12:$C$17,0),MATCH('Data Input - Proposed'!DA$7,'Energy Prices'!$F$11:$CR$11,0))/100000,\"\")","v":""},{"$f":"IFERROR(DB85*INDEX('Energy Prices'!$F$12:$CR$17,MATCH('Data Input - Proposed'!$D93,'Energy Prices'!$C$12:$C$17,0),MATCH('Data Input - Proposed'!DB$7,'Energy Prices'!$F$11:$CR$11,0))/100000,\"\")","v":""},{"$f":"IFERROR(DC85*INDEX('Energy Prices'!$F$12:$CR$17,MATCH('Data Input - Proposed'!$D93,'Energy Prices'!$C$12:$C$17,0),MATCH('Data Input - Proposed'!DC$7,'Energy Prices'!$F$11:$CR$11,0))/100000,\"\")","v":""}]
[null,null,null,"Coal","£000's","(Auto calculated value)",null,{"$f":"IFERROR(H86*INDEX('Energy Prices'!$F$12:$CR$17,MATCH('Data Input - Proposed'!$D94,'Energy Prices'!$C$12:$C$17,0),MATCH('Data Input - Proposed'!H$7,'Energy Prices'!$F$11:$CR$11,0))/100000,\"\")","v":937.78976184627777},{"$f":"IFERROR(I86*INDEX('Energy Prices'!$F$12:$CR$17,MATCH('Data Input - Proposed'!$D94,'Energy Prices'!$C$12:$C$17,0),MATCH('Data Input - Proposed'!I$7,'Energy Prices'!$F$11:$CR$11,0))/100000,\"\")","v":967.04407438200428},{"$f":"IFERROR(J86*INDEX('Energy Prices'!$F$12:$CR$17,MATCH('Data Input - Proposed'!$D94,'Energy Prices'!$C$12:$C$17,0),MATCH('Data Input - Proposed'!J$7,'Energy Prices'!$F$11:$CR$11,0))/100000,\"\")","v":996.30249432667506},{"$f":"IFERROR(K86*INDEX('Energy Prices'!$F$12:$CR$17,MATCH('Data Input - Proposed'!$D94,'Energy Prices'!$C$12:$C$17,0),MATCH('Data Input - Proposed'!K$7,'Energy Prices'!$F$11:$CR$11,0))/100000,\"\")","v":1025.5572317276735},{"$f":"IFERROR(L86*INDEX('Energy Prices'!$F$12:$CR$17,MATCH('Data Input - Proposed'!$D94,'Energy Prices'!$C$12:$C$17,0),MATCH('Data Input - Proposed'!L$7,'Energy Prices'!$F$11:$CR$11,0))/100000,\"\")","v":1054.8121571904517},{"$f":"IFERROR(M86*INDEX('Energy Prices'!$F$12:$CR$17,MATCH('Data Input - Proposed'!$D94,'Energy Prices'!$C$12:$C$17,0),MATCH('Data Input - Proposed'!M$7,'Energy Prices'!$F$11:$CR$11,0))/100000,\"\")","v":1084.067272001846},{"$f":"IFERROR(N86*INDEX('Energy Prices'!$F$12:$CR$17,MATCH('Data Input - Proposed'!$D94,'Energy Prices'!$C$12:$C$17,0),MATCH('Data Input - Proposed'!N$7,'Energy Prices'!$F$11:$CR$11,0))/100000,\"\")","v":1113.3225774574967},{"$f":"IFERROR(O86*INDEX('Energy Prices'!$F$12:$CR$17,MATCH('Data Input - Proposed'!$D94,'Energy Prices'!$C$12:$C$17,0),MATCH('Data Input - Proposed'!O$7,'Energy Prices'!$F$11:$CR$11,0))/100000,\"\")","v":1142.57807486191},{"$f":"IFERROR(P86*INDEX('Energy Prices'!$F$12:$CR$17,MATCH('Data Input - Proposed'!$D94,'Energy Prices'!$C$12:$C$17,0),MATCH('Data Input - Proposed'!P$7,'Energy Prices'!$F$11:$CR$11,0))/100000,\"\")","v":0},{"$f":"IFERROR(Q86*INDEX('Energy Prices'!$F$12:$CR$17,MATCH('Data Input - Proposed'!$D94,'Energy Prices'!$C$12:$C$17,0),MATCH('Data Input - Proposed'!Q$7,'Energy Prices'!$F$11:$CR$11,0))/100000,\"\")","v":0},{"$f":"IFERROR(R86*INDEX('Energy Prices'!$F$12:$CR$17,MATCH('Data Input - Proposed'!$D94,'Energy Prices'!$C$12:$C$17,0),MATCH('Data Input - Proposed'!R$7,'Energy Prices'!$F$11:$CR$11,0))/100000,\"\")","v":0},{"$f":"IFERROR(S86*INDEX('Energy Prices'!$F$12:$CR$17,MATCH('Data Input - Proposed'!$D94,'Energy Prices'!$C$12:$C$17,0),MATCH('Data Input - Proposed'!S$7,'Energy Prices'!$F$11:$CR$11,0))/100000,\"\")","v":0},{"$f":"IFERROR(T86*INDEX('Energy Prices'!$F$12:$CR$17,MATCH('Data Input - Proposed'!$D94,'Energy Prices'!$C$12:$C$17,0),MATCH('Data Input - Proposed'!T$7,'Energy Prices'!$F$11:$CR$11,0))/100000,\"\")","v":0},{"$f":"IFERROR(U86*INDEX('Energy Prices'!$F$12:$CR$17,MATCH('Data Input - Proposed'!$D94,'Energy Prices'!$C$12:$C$17,0),MATCH('Data Input - Proposed'!U$7,'Energy Prices'!$F$11:$CR$11,0))/100000,\"\")","v":0},{"$f":"IFERROR(V86*INDEX('Energy Prices'!$F$12:$CR$17,MATCH('Data Input - Proposed'!$D94,'Energy Prices'!$C$12:$C$17,0),MATCH('Data Input - Proposed'!V$7,'Energy Prices'!$F$11:$CR$11,0))/100000,\"\")","v":0},{"$f":"IFERROR(W86*INDEX('Energy Prices'!$F$12:$CR$17,MATCH('Data Input - Proposed'!$D94,'Energy Prices'!$C$12:$C$17,0),MATCH('Data Input - Proposed'!W$7,'Energy Prices'!$F$11:$CR$11,0))/100000,\"\")","v":0},{"$f":"IFERROR(X86*INDEX('Energy Prices'!$F$12:$CR$17,MATCH('Data Input - Proposed'!$D94,'Energy Prices'!$C$12:$C$17,0),MATCH('Data Input - Proposed'!X$7,'Energy Prices'!$F$11:$CR$11,0))/100000,\"\")","v":0},{"$f":"IFERROR(Y86*INDEX('Energy Prices'!$F$12:$CR$17,MATCH('Data Input - Proposed'!$D94,'Energy Prices'!$C$12:$C$17,0),MATCH('Data Input - Proposed'!Y$7,'Energy Prices'!$F$11:$CR$11,0))/100000,\"\")","v":0},{"$f":"IFERROR(Z86*INDEX('Energy Prices'!$F$12:$CR$17,MATCH('Data Input - Proposed'!$D94,'Energy Prices'!$C$12:$C$17,0),MATCH('Data Input - Proposed'!Z$7,'Energy Prices'!$F$11:$CR$11,0))/100000,\"\")","v":0},{"$f":"IFERROR(AA86*INDEX('Energy Prices'!$F$12:$CR$17,MATCH('Data Input - Proposed'!$D94,'Energy Prices'!$C$12:$C$17,0),MATCH('Data Input - Proposed'!AA$7,'Energy Prices'!$F$11:$CR$11,0))/100000,\"\")","v":0},{"$f":"IFERROR(AB86*INDEX('Energy Prices'!$F$12:$CR$17,MATCH('Data Input - Proposed'!$D94,'Energy Prices'!$C$12:$C$17,0),MATCH('Data Input - Proposed'!AB$7,'Energy Prices'!$F$11:$CR$11,0))/100000,\"\")","v":0},{"$f":"IFERROR(AC86*INDEX('Energy Prices'!$F$12:$CR$17,MATCH('Data Input - Proposed'!$D94,'Energy Prices'!$C$12:$C$17,0),MATCH('Data Input - Proposed'!AC$7,'Energy Prices'!$F$11:$CR$11,0))/100000,\"\")","v":0},{"$f":"IFERROR(AD86*INDEX('Energy Prices'!$F$12:$CR$17,MATCH('Data Input - Proposed'!$D94,'Energy Prices'!$C$12:$C$17,0),MATCH('Data Input - Proposed'!AD$7,'Energy Prices'!$F$11:$CR$11,0))/100000,\"\")","v":0},{"$f":"IFERROR(AE86*INDEX('Energy Prices'!$F$12:$CR$17,MATCH('Data Input - Proposed'!$D94,'Energy Prices'!$C$12:$C$17,0),MATCH('Data Input - Proposed'!AE$7,'Energy Prices'!$F$11:$CR$11,0))/100000,\"\")","v":0},{"$f":"IFERROR(AF86*INDEX('Energy Prices'!$F$12:$CR$17,MATCH('Data Input - Proposed'!$D94,'Energy Prices'!$C$12:$C$17,0),MATCH('Data Input - Proposed'!AF$7,'Energy Prices'!$F$11:$CR$11,0))/100000,\"\")","v":0},{"$f":"IFERROR(AG86*INDEX('Energy Prices'!$F$12:$CR$17,MATCH('Data Input - Proposed'!$D94,'Energy Prices'!$C$12:$C$17,0),MATCH('Data Input - Proposed'!AG$7,'Energy Prices'!$F$11:$CR$11,0))/100000,\"\")","v":0},{"$f":"IFERROR(AH86*INDEX('Energy Prices'!$F$12:$CR$17,MATCH('Data Input - Proposed'!$D94,'Energy Prices'!$C$12:$C$17,0),MATCH('Data Input - Proposed'!AH$7,'Energy Prices'!$F$11:$CR$11,0))/100000,\"\")","v":0},{"$f":"IFERROR(AI86*INDEX('Energy Prices'!$F$12:$CR$17,MATCH('Data Input - Proposed'!$D94,'Energy Prices'!$C$12:$C$17,0),MATCH('Data Input - Proposed'!AI$7,'Energy Prices'!$F$11:$CR$11,0))/100000,\"\")","v":0},{"$f":"IFERROR(AJ86*INDEX('Energy Prices'!$F$12:$CR$17,MATCH('Data Input - Proposed'!$D94,'Energy Prices'!$C$12:$C$17,0),MATCH('Data Input - Proposed'!AJ$7,'Energy Prices'!$F$11:$CR$11,0))/100000,\"\")","v":0},{"$f":"IFERROR(AK86*INDEX('Energy Prices'!$F$12:$CR$17,MATCH('Data Input - Proposed'!$D94,'Energy Prices'!$C$12:$C$17,0),MATCH('Data Input - Proposed'!AK$7,'Energy Prices'!$F$11:$CR$11,0))/100000,\"\")","v":0},{"$f":"IFERROR(AL86*INDEX('Energy Prices'!$F$12:$CR$17,MATCH('Data Input - Proposed'!$D94,'Energy Prices'!$C$12:$C$17,0),MATCH('Data Input - Proposed'!AL$7,'Energy Prices'!$F$11:$CR$11,0))/100000,\"\")","v":0},{"$f":"IFERROR(AM86*INDEX('Energy Prices'!$F$12:$CR$17,MATCH('Data Input - Proposed'!$D94,'Energy Prices'!$C$12:$C$17,0),MATCH('Data Input - Proposed'!AM$7,'Energy Prices'!$F$11:$CR$11,0))/100000,\"\")","v":""},{"$f":"IFERROR(AN86*INDEX('Energy Prices'!$F$12:$CR$17,MATCH('Data Input - Proposed'!$D94,'Energy Prices'!$C$12:$C$17,0),MATCH('Data Input - Proposed'!AN$7,'Energy Prices'!$F$11:$CR$11,0))/100000,\"\")","v":""},{"$f":"IFERROR(AO86*INDEX('Energy Prices'!$F$12:$CR$17,MATCH('Data Input - Proposed'!$D94,'Energy Prices'!$C$12:$C$17,0),MATCH('Data Input - Proposed'!AO$7,'Energy Prices'!$F$11:$CR$11,0))/100000,\"\")","v":""},{"$f":"IFERROR(AP86*INDEX('Energy Prices'!$F$12:$CR$17,MATCH('Data Input - Proposed'!$D94,'Energy Prices'!$C$12:$C$17,0),MATCH('Data Input - Proposed'!AP$7,'Energy Prices'!$F$11:$CR$11,0))/100000,\"\")","v":""},{"$f":"IFERROR(AQ86*INDEX('Energy Prices'!$F$12:$CR$17,MATCH('Data Input - Proposed'!$D94,'Energy Prices'!$C$12:$C$17,0),MATCH('Data Input - Proposed'!AQ$7,'Energy Prices'!$F$11:$CR$11,0))/100000,\"\")","v":""},{"$f":"IFERROR(AR86*INDEX('Energy Prices'!$F$12:$CR$17,MATCH('Data Input - Proposed'!$D94,'Energy Prices'!$C$12:$C$17,0),MATCH('Data Input - Proposed'!AR$7,'Energy Prices'!$F$11:$CR$11,0))/100000,\"\")","v":""},{"$f":"IFERROR(AS86*INDEX('Energy Prices'!$F$12:$CR$17,MATCH('Data Input - Proposed'!$D94,'Energy Prices'!$C$12:$C$17,0),MATCH('Data Input - Proposed'!AS$7,'Energy Prices'!$F$11:$CR$11,0))/100000,\"\")","v":""},{"$f":"IFERROR(AT86*INDEX('Energy Prices'!$F$12:$CR$17,MATCH('Data Input - Proposed'!$D94,'Energy Prices'!$C$12:$C$17,0),MATCH('Data Input - Proposed'!AT$7,'Energy Prices'!$F$11:$CR$11,0))/100000,\"\")","v":""},{"$f":"IFERROR(AU86*INDEX('Energy Prices'!$F$12:$CR$17,MATCH('Data Input - Proposed'!$D94,'Energy Prices'!$C$12:$C$17,0),MATCH('Data Input - Proposed'!AU$7,'Energy Prices'!$F$11:$CR$11,0))/100000,\"\")","v":""},{"$f":"IFERROR(AV86*INDEX('Energy Prices'!$F$12:$CR$17,MATCH('Data Input - Proposed'!$D94,'Energy Prices'!$C$12:$C$17,0),MATCH('Data Input - Proposed'!AV$7,'Energy Prices'!$F$11:$CR$11,0))/100000,\"\")","v":""},{"$f":"IFERROR(AW86*INDEX('Energy Prices'!$F$12:$CR$17,MATCH('Data Input - Proposed'!$D94,'Energy Prices'!$C$12:$C$17,0),MATCH('Data Input - Proposed'!AW$7,'Energy Prices'!$F$11:$CR$11,0))/100000,\"\")","v":""},{"$f":"IFERROR(AX86*INDEX('Energy Prices'!$F$12:$CR$17,MATCH('Data Input - Proposed'!$D94,'Energy Prices'!$C$12:$C$17,0),MATCH('Data Input - Proposed'!AX$7,'Energy Prices'!$F$11:$CR$11,0))/100000,\"\")","v":""},{"$f":"IFERROR(AY86*INDEX('Energy Prices'!$F$12:$CR$17,MATCH('Data Input - Proposed'!$D94,'Energy Prices'!$C$12:$C$17,0),MATCH('Data Input - Proposed'!AY$7,'Energy Prices'!$F$11:$CR$11,0))/100000,\"\")","v":""},{"$f":"IFERROR(AZ86*INDEX('Energy Prices'!$F$12:$CR$17,MATCH('Data Input - Proposed'!$D94,'Energy Prices'!$C$12:$C$17,0),MATCH('Data Input - Proposed'!AZ$7,'Energy Prices'!$F$11:$CR$11,0))/100000,\"\")","v":""},{"$f":"IFERROR(BA86*INDEX('Energy Prices'!$F$12:$CR$17,MATCH('Data Input - Proposed'!$D94,'Energy Prices'!$C$12:$C$17,0),MATCH('Data Input - Proposed'!BA$7,'Energy Prices'!$F$11:$CR$11,0))/100000,\"\")","v":""},{"$f":"IFERROR(BB86*INDEX('Energy Prices'!$F$12:$CR$17,MATCH('Data Input - Proposed'!$D94,'Energy Prices'!$C$12:$C$17,0),MATCH('Data Input - Proposed'!BB$7,'Energy Prices'!$F$11:$CR$11,0))/100000,\"\")","v":""},{"$f":"IFERROR(BC86*INDEX('Energy Prices'!$F$12:$CR$17,MATCH('Data Input - Proposed'!$D94,'Energy Prices'!$C$12:$C$17,0),MATCH('Data Input - Proposed'!BC$7,'Energy Prices'!$F$11:$CR$11,0))/100000,\"\")","v":""},{"$f":"IFERROR(BD86*INDEX('Energy Prices'!$F$12:$CR$17,MATCH('Data Input - Proposed'!$D94,'Energy Prices'!$C$12:$C$17,0),MATCH('Data Input - Proposed'!BD$7,'Energy Prices'!$F$11:$CR$11,0))/100000,\"\")","v":""},{"$f":"IFERROR(BE86*INDEX('Energy Prices'!$F$12:$CR$17,MATCH('Data Input - Proposed'!$D94,'Energy Prices'!$C$12:$C$17,0),MATCH('Data Input - Proposed'!BE$7,'Energy Prices'!$F$11:$CR$11,0))/100000,\"\")","v":""},{"$f":"IFERROR(BF86*INDEX('Energy Prices'!$F$12:$CR$17,MATCH('Data Input - Proposed'!$D94,'Energy Prices'!$C$12:$C$17,0),MATCH('Data Input - Proposed'!BF$7,'Energy Prices'!$F$11:$CR$11,0))/100000,\"\")","v":""},{"$f":"IFERROR(BG86*INDEX('Energy Prices'!$F$12:$CR$17,MATCH('Data Input - Proposed'!$D94,'Energy Prices'!$C$12:$C$17,0),MATCH('Data Input - Proposed'!BG$7,'Energy Prices'!$F$11:$CR$11,0))/100000,\"\")","v":""},{"$f":"IFERROR(BH86*INDEX('Energy Prices'!$F$12:$CR$17,MATCH('Data Input - Proposed'!$D94,'Energy Prices'!$C$12:$C$17,0),MATCH('Data Input - Proposed'!BH$7,'Energy Prices'!$F$11:$CR$11,0))/100000,\"\")","v":""},{"$f":"IFERROR(BI86*INDEX('Energy Prices'!$F$12:$CR$17,MATCH('Data Input - Proposed'!$D94,'Energy Prices'!$C$12:$C$17,0),MATCH('Data Input - Proposed'!BI$7,'Energy Prices'!$F$11:$CR$11,0))/100000,\"\")","v":""},{"$f":"IFERROR(BJ86*INDEX('Energy Prices'!$F$12:$CR$17,MATCH('Data Input - Proposed'!$D94,'Energy Prices'!$C$12:$C$17,0),MATCH('Data Input - Proposed'!BJ$7,'Energy Prices'!$F$11:$CR$11,0))/100000,\"\")","v":""},{"$f":"IFERROR(BK86*INDEX('Energy Prices'!$F$12:$CR$17,MATCH('Data Input - Proposed'!$D94,'Energy Prices'!$C$12:$C$17,0),MATCH('Data Input - Proposed'!BK$7,'Energy Prices'!$F$11:$CR$11,0))/100000,\"\")","v":""},{"$f":"IFERROR(BL86*INDEX('Energy Prices'!$F$12:$CR$17,MATCH('Data Input - Proposed'!$D94,'Energy Prices'!$C$12:$C$17,0),MATCH('Data Input - Proposed'!BL$7,'Energy Prices'!$F$11:$CR$11,0))/100000,\"\")","v":""},{"$f":"IFERROR(BM86*INDEX('Energy Prices'!$F$12:$CR$17,MATCH('Data Input - Proposed'!$D94,'Energy Prices'!$C$12:$C$17,0),MATCH('Data Input - Proposed'!BM$7,'Energy Prices'!$F$11:$CR$11,0))/100000,\"\")","v":""},{"$f":"IFERROR(BN86*INDEX('Energy Prices'!$F$12:$CR$17,MATCH('Data Input - Proposed'!$D94,'Energy Prices'!$C$12:$C$17,0),MATCH('Data Input - Proposed'!BN$7,'Energy Prices'!$F$11:$CR$11,0))/100000,\"\")","v":""},{"$f":"IFERROR(BO86*INDEX('Energy Prices'!$F$12:$CR$17,MATCH('Data Input - Proposed'!$D94,'Energy Prices'!$C$12:$C$17,0),MATCH('Data Input - Proposed'!BO$7,'Energy Prices'!$F$11:$CR$11,0))/100000,\"\")","v":""},{"$f":"IFERROR(BP86*INDEX('Energy Prices'!$F$12:$CR$17,MATCH('Data Input - Proposed'!$D94,'Energy Prices'!$C$12:$C$17,0),MATCH('Data Input - Proposed'!BP$7,'Energy Prices'!$F$11:$CR$11,0))/100000,\"\")","v":""},{"$f":"IFERROR(BQ86*INDEX('Energy Prices'!$F$12:$CR$17,MATCH('Data Input - Proposed'!$D94,'Energy Prices'!$C$12:$C$17,0),MATCH('Data Input - Proposed'!BQ$7,'Energy Prices'!$F$11:$CR$11,0))/100000,\"\")","v":""},{"$f":"IFERROR(BR86*INDEX('Energy Prices'!$F$12:$CR$17,MATCH('Data Input - Proposed'!$D94,'Energy Prices'!$C$12:$C$17,0),MATCH('Data Input - Proposed'!BR$7,'Energy Prices'!$F$11:$CR$11,0))/100000,\"\")","v":""},{"$f":"IFERROR(BS86*INDEX('Energy Prices'!$F$12:$CR$17,MATCH('Data Input - Proposed'!$D94,'Energy Prices'!$C$12:$C$17,0),MATCH('Data Input - Proposed'!BS$7,'Energy Prices'!$F$11:$CR$11,0))/100000,\"\")","v":""},{"$f":"IFERROR(BT86*INDEX('Energy Prices'!$F$12:$CR$17,MATCH('Data Input - Proposed'!$D94,'Energy Prices'!$C$12:$C$17,0),MATCH('Data Input - Proposed'!BT$7,'Energy Prices'!$F$11:$CR$11,0))/100000,\"\")","v":""},{"$f":"IFERROR(BU86*INDEX('Energy Prices'!$F$12:$CR$17,MATCH('Data Input - Proposed'!$D94,'Energy Prices'!$C$12:$C$17,0),MATCH('Data Input - Proposed'!BU$7,'Energy Prices'!$F$11:$CR$11,0))/100000,\"\")","v":""},{"$f":"IFERROR(BV86*INDEX('Energy Prices'!$F$12:$CR$17,MATCH('Data Input - Proposed'!$D94,'Energy Prices'!$C$12:$C$17,0),MATCH('Data Input - Proposed'!BV$7,'Energy Prices'!$F$11:$CR$11,0))/100000,\"\")","v":""},{"$f":"IFERROR(BW86*INDEX('Energy Prices'!$F$12:$CR$17,MATCH('Data Input - Proposed'!$D94,'Energy Prices'!$C$12:$C$17,0),MATCH('Data Input - Proposed'!BW$7,'Energy Prices'!$F$11:$CR$11,0))/100000,\"\")","v":""},{"$f":"IFERROR(BX86*INDEX('Energy Prices'!$F$12:$CR$17,MATCH('Data Input - Proposed'!$D94,'Energy Prices'!$C$12:$C$17,0),MATCH('Data Input - Proposed'!BX$7,'Energy Prices'!$F$11:$CR$11,0))/100000,\"\")","v":""},{"$f":"IFERROR(BY86*INDEX('Energy Prices'!$F$12:$CR$17,MATCH('Data Input - Proposed'!$D94,'Energy Prices'!$C$12:$C$17,0),MATCH('Data Input - Proposed'!BY$7,'Energy Prices'!$F$11:$CR$11,0))/100000,\"\")","v":""},{"$f":"IFERROR(BZ86*INDEX('Energy Prices'!$F$12:$CR$17,MATCH('Data Input - Proposed'!$D94,'Energy Prices'!$C$12:$C$17,0),MATCH('Data Input - Proposed'!BZ$7,'Energy Prices'!$F$11:$CR$11,0))/100000,\"\")","v":""},{"$f":"IFERROR(CA86*INDEX('Energy Prices'!$F$12:$CR$17,MATCH('Data Input - Proposed'!$D94,'Energy Prices'!$C$12:$C$17,0),MATCH('Data Input - Proposed'!CA$7,'Energy Prices'!$F$11:$CR$11,0))/100000,\"\")","v":""},{"$f":"IFERROR(CB86*INDEX('Energy Prices'!$F$12:$CR$17,MATCH('Data Input - Proposed'!$D94,'Energy Prices'!$C$12:$C$17,0),MATCH('Data Input - Proposed'!CB$7,'Energy Prices'!$F$11:$CR$11,0))/100000,\"\")","v":""},{"$f":"IFERROR(CC86*INDEX('Energy Prices'!$F$12:$CR$17,MATCH('Data Input - Proposed'!$D94,'Energy Prices'!$C$12:$C$17,0),MATCH('Data Input - Proposed'!CC$7,'Energy Prices'!$F$11:$CR$11,0))/100000,\"\")","v":""},{"$f":"IFERROR(CD86*INDEX('Energy Prices'!$F$12:$CR$17,MATCH('Data Input - Proposed'!$D94,'Energy Prices'!$C$12:$C$17,0),MATCH('Data Input - Proposed'!CD$7,'Energy Prices'!$F$11:$CR$11,0))/100000,\"\")","v":""},{"$f":"IFERROR(CE86*INDEX('Energy Prices'!$F$12:$CR$17,MATCH('Data Input - Proposed'!$D94,'Energy Prices'!$C$12:$C$17,0),MATCH('Data Input - Proposed'!CE$7,'Energy Prices'!$F$11:$CR$11,0))/100000,\"\")","v":""},{"$f":"IFERROR(CF86*INDEX('Energy Prices'!$F$12:$CR$17,MATCH('Data Input - Proposed'!$D94,'Energy Prices'!$C$12:$C$17,0),MATCH('Data Input - Proposed'!CF$7,'Energy Prices'!$F$11:$CR$11,0))/100000,\"\")","v":""},{"$f":"IFERROR(CG86*INDEX('Energy Prices'!$F$12:$CR$17,MATCH('Data Input - Proposed'!$D94,'Energy Prices'!$C$12:$C$17,0),MATCH('Data Input - Proposed'!CG$7,'Energy Prices'!$F$11:$CR$11,0))/100000,\"\")","v":""},{"$f":"IFERROR(CH86*INDEX('Energy Prices'!$F$12:$CR$17,MATCH('Data Input - Proposed'!$D94,'Energy Prices'!$C$12:$C$17,0),MATCH('Data Input - Proposed'!CH$7,'Energy Prices'!$F$11:$CR$11,0))/100000,\"\")","v":""},{"$f":"IFERROR(CI86*INDEX('Energy Prices'!$F$12:$CR$17,MATCH('Data Input - Proposed'!$D94,'Energy Prices'!$C$12:$C$17,0),MATCH('Data Input - Proposed'!CI$7,'Energy Prices'!$F$11:$CR$11,0))/100000,\"\")","v":""},{"$f":"IFERROR(CJ86*INDEX('Energy Prices'!$F$12:$CR$17,MATCH('Data Input - Proposed'!$D94,'Energy Prices'!$C$12:$C$17,0),MATCH('Data Input - Proposed'!CJ$7,'Energy Prices'!$F$11:$CR$11,0))/100000,\"\")","v":""},{"$f":"IFERROR(CK86*INDEX('Energy Prices'!$F$12:$CR$17,MATCH('Data Input - Proposed'!$D94,'Energy Prices'!$C$12:$C$17,0),MATCH('Data Input - Proposed'!CK$7,'Energy Prices'!$F$11:$CR$11,0))/100000,\"\")","v":""},{"$f":"IFERROR(CL86*INDEX('Energy Prices'!$F$12:$CR$17,MATCH('Data Input - Proposed'!$D94,'Energy Prices'!$C$12:$C$17,0),MATCH('Data Input - Proposed'!CL$7,'Energy Prices'!$F$11:$CR$11,0))/100000,\"\")","v":""},{"$f":"IFERROR(CM86*INDEX('Energy Prices'!$F$12:$CR$17,MATCH('Data Input - Proposed'!$D94,'Energy Prices'!$C$12:$C$17,0),MATCH('Data Input - Proposed'!CM$7,'Energy Prices'!$F$11:$CR$11,0))/100000,\"\")","v":""},{"$f":"IFERROR(CN86*INDEX('Energy Prices'!$F$12:$CR$17,MATCH('Data Input - Proposed'!$D94,'Energy Prices'!$C$12:$C$17,0),MATCH('Data Input - Proposed'!CN$7,'Energy Prices'!$F$11:$CR$11,0))/100000,\"\")","v":""},{"$f":"IFERROR(CO86*INDEX('Energy Prices'!$F$12:$CR$17,MATCH('Data Input - Proposed'!$D94,'Energy Prices'!$C$12:$C$17,0),MATCH('Data Input - Proposed'!CO$7,'Energy Prices'!$F$11:$CR$11,0))/100000,\"\")","v":""},{"$f":"IFERROR(CP86*INDEX('Energy Prices'!$F$12:$CR$17,MATCH('Data Input - Proposed'!$D94,'Energy Prices'!$C$12:$C$17,0),MATCH('Data Input - Proposed'!CP$7,'Energy Prices'!$F$11:$CR$11,0))/100000,\"\")","v":""},{"$f":"IFERROR(CQ86*INDEX('Energy Prices'!$F$12:$CR$17,MATCH('Data Input - Proposed'!$D94,'Energy Prices'!$C$12:$C$17,0),MATCH('Data Input - Proposed'!CQ$7,'Energy Prices'!$F$11:$CR$11,0))/100000,\"\")","v":""},{"$f":"IFERROR(CR86*INDEX('Energy Prices'!$F$12:$CR$17,MATCH('Data Input - Proposed'!$D94,'Energy Prices'!$C$12:$C$17,0),MATCH('Data Input - Proposed'!CR$7,'Energy Prices'!$F$11:$CR$11,0))/100000,\"\")","v":""},{"$f":"IFERROR(CS86*INDEX('Energy Prices'!$F$12:$CR$17,MATCH('Data Input - Proposed'!$D94,'Energy Prices'!$C$12:$C$17,0),MATCH('Data Input - Proposed'!CS$7,'Energy Prices'!$F$11:$CR$11,0))/100000,\"\")","v":""},{"$f":"IFERROR(CT86*INDEX('Energy Prices'!$F$12:$CR$17,MATCH('Data Input - Proposed'!$D94,'Energy Prices'!$C$12:$C$17,0),MATCH('Data Input - Proposed'!CT$7,'Energy Prices'!$F$11:$CR$11,0))/100000,\"\")","v":""},{"$f":"IFERROR(CU86*INDEX('Energy Prices'!$F$12:$CR$17,MATCH('Data Input - Proposed'!$D94,'Energy Prices'!$C$12:$C$17,0),MATCH('Data Input - Proposed'!CU$7,'Energy Prices'!$F$11:$CR$11,0))/100000,\"\")","v":""},{"$f":"IFERROR(CV86*INDEX('Energy Prices'!$F$12:$CR$17,MATCH('Data Input - Proposed'!$D94,'Energy Prices'!$C$12:$C$17,0),MATCH('Data Input - Proposed'!CV$7,'Energy Prices'!$F$11:$CR$11,0))/100000,\"\")","v":""},{"$f":"IFERROR(CW86*INDEX('Energy Prices'!$F$12:$CR$17,MATCH('Data Input - Proposed'!$D94,'Energy Prices'!$C$12:$C$17,0),MATCH('Data Input - Proposed'!CW$7,'Energy Prices'!$F$11:$CR$11,0))/100000,\"\")","v":""},{"$f":"IFERROR(CX86*INDEX('Energy Prices'!$F$12:$CR$17,MATCH('Data Input - Proposed'!$D94,'Energy Prices'!$C$12:$C$17,0),MATCH('Data Input - Proposed'!CX$7,'Energy Prices'!$F$11:$CR$11,0))/100000,\"\")","v":""},{"$f":"IFERROR(CY86*INDEX('Energy Prices'!$F$12:$CR$17,MATCH('Data Input - Proposed'!$D94,'Energy Prices'!$C$12:$C$17,0),MATCH('Data Input - Proposed'!CY$7,'Energy Prices'!$F$11:$CR$11,0))/100000,\"\")","v":""},{"$f":"IFERROR(CZ86*INDEX('Energy Prices'!$F$12:$CR$17,MATCH('Data Input - Proposed'!$D94,'Energy Prices'!$C$12:$C$17,0),MATCH('Data Input - Proposed'!CZ$7,'Energy Prices'!$F$11:$CR$11,0))/100000,\"\")","v":""},{"$f":"IFERROR(DA86*INDEX('Energy Prices'!$F$12:$CR$17,MATCH('Data Input - Proposed'!$D94,'Energy Prices'!$C$12:$C$17,0),MATCH('Data Input - Proposed'!DA$7,'Energy Prices'!$F$11:$CR$11,0))/100000,\"\")","v":""},{"$f":"IFERROR(DB86*INDEX('Energy Prices'!$F$12:$CR$17,MATCH('Data Input - Proposed'!$D94,'Energy Prices'!$C$12:$C$17,0),MATCH('Data Input - Proposed'!DB$7,'Energy Prices'!$F$11:$CR$11,0))/100000,\"\")","v":""},{"$f":"IFERROR(DC86*INDEX('Energy Prices'!$F$12:$CR$17,MATCH('Data Input - Proposed'!$D94,'Energy Prices'!$C$12:$C$17,0),MATCH('Data Input - Proposed'!DC$7,'Energy Prices'!$F$11:$CR$11,0))/100000,\"\")","v":""}]
[null,null,null,"Gas Oil","£000's","(Auto calculated value)",null,{"$f":"IFERROR(H87*INDEX('Energy Prices'!$F$12:$CR$17,MATCH('Data Input - Proposed'!$D95,'Energy Prices'!$C$12:$C$17,0),MATCH('Data Input - Proposed'!H$7,'Energy Prices'!$F$11:$CR$11,0))/100000,\"\")","v":101.86416340890224},{"$f":"IFERROR(I87*INDEX('Energy Prices'!$F$12:$CR$17,MATCH('Data Input - Proposed'!$D95,'Energy Prices'!$C$12:$C$17,0),MATCH('Data Input - Proposed'!I$7,'Energy Prices'!$F$11:$CR$11,0))/100000,\"\")","v":108.78939751456718},{"$f":"IFERROR(J87*INDEX('Energy Prices'!$F$12:$CR$17,MATCH('Data Input - Proposed'!$D95,'Energy Prices'!$C$12:$C$17,0),MATCH('Data Input - Proposed'!J$7,'Energy Prices'!$F$11:$CR$11,0))/100000,\"\")","v":115.73394676403002},{"$f":"IFERROR(K87*INDEX('Energy Prices'!$F$12:$CR$17,MATCH('Data Input - Proposed'!$D95,'Energy Prices'!$C$12:$C$17,0),MATCH('Data Input - Proposed'!K$7,'Energy Prices'!$F$11:$CR$11,0))/100000,\"\")","v":122.66386016968734},{"$f":"IFERROR(L87*INDEX('Energy Prices'!$F$12:$CR$17,MATCH('Data Input - Proposed'!$D95,'Energy Prices'!$C$12:$C$17,0),MATCH('Data Input - Proposed'!L$7,'Energy Prices'!$F$11:$CR$11,0))/100000,\"\")","v":129.58715518047657},{"$f":"IFERROR(M87*INDEX('Energy Prices'!$F$12:$CR$17,MATCH('Data Input - Proposed'!$D95,'Energy Prices'!$C$12:$C$17,0),MATCH('Data Input - Proposed'!M$7,'Energy Prices'!$F$11:$CR$11,0))/100000,\"\")","v":136.51160511784934},{"$f":"IFERROR(N87*INDEX('Energy Prices'!$F$12:$CR$17,MATCH('Data Input - Proposed'!$D95,'Energy Prices'!$C$12:$C$17,0),MATCH('Data Input - Proposed'!N$7,'Energy Prices'!$F$11:$CR$11,0))/100000,\"\")","v":143.43721788452919},{"$f":"IFERROR(O87*INDEX('Energy Prices'!$F$12:$CR$17,MATCH('Data Input - Proposed'!$D95,'Energy Prices'!$C$12:$C$17,0),MATCH('Data Input - Proposed'!O$7,'Energy Prices'!$F$11:$CR$11,0))/100000,\"\")","v":143.60949069723941},{"$f":"IFERROR(P87*INDEX('Energy Prices'!$F$12:$CR$17,MATCH('Data Input - Proposed'!$D95,'Energy Prices'!$C$12:$C$17,0),MATCH('Data Input - Proposed'!P$7,'Energy Prices'!$F$11:$CR$11,0))/100000,\"\")","v":0},{"$f":"IFERROR(Q87*INDEX('Energy Prices'!$F$12:$CR$17,MATCH('Data Input - Proposed'!$D95,'Energy Prices'!$C$12:$C$17,0),MATCH('Data Input - Proposed'!Q$7,'Energy Prices'!$F$11:$CR$11,0))/100000,\"\")","v":0},{"$f":"IFERROR(R87*INDEX('Energy Prices'!$F$12:$CR$17,MATCH('Data Input - Proposed'!$D95,'Energy Prices'!$C$12:$C$17,0),MATCH('Data Input - Proposed'!R$7,'Energy Prices'!$F$11:$CR$11,0))/100000,\"\")","v":0},{"$f":"IFERROR(S87*INDEX('Energy Prices'!$F$12:$CR$17,MATCH('Data Input - Proposed'!$D95,'Energy Prices'!$C$12:$C$17,0),MATCH('Data Input - Proposed'!S$7,'Energy Prices'!$F$11:$CR$11,0))/100000,\"\")","v":0},{"$f":"IFERROR(T87*INDEX('Energy Prices'!$F$12:$CR$17,MATCH('Data Input - Proposed'!$D95,'Energy Prices'!$C$12:$C$17,0),MATCH('Data Input - Proposed'!T$7,'Energy Prices'!$F$11:$CR$11,0))/100000,\"\")","v":0},{"$f":"IFERROR(U87*INDEX('Energy Prices'!$F$12:$CR$17,MATCH('Data Input - Proposed'!$D95,'Energy Prices'!$C$12:$C$17,0),MATCH('Data Input - Proposed'!U$7,'Energy Prices'!$F$11:$CR$11,0))/100000,\"\")","v":0},{"$f":"IFERROR(V87*INDEX('Energy Prices'!$F$12:$CR$17,MATCH('Data Input - Proposed'!$D95,'Energy Prices'!$C$12:$C$17,0),MATCH('Data Input - Proposed'!V$7,'Energy Prices'!$F$11:$CR$11,0))/100000,\"\")","v":0},{"$f":"IFERROR(W87*INDEX('Energy Prices'!$F$12:$CR$17,MATCH('Data Input - Proposed'!$D95,'Energy Prices'!$C$12:$C$17,0),MATCH('Data Input - Proposed'!W$7,'Energy Prices'!$F$11:$CR$11,0))/100000,\"\")","v":0},{"$f":"IFERROR(X87*INDEX('Energy Prices'!$F$12:$CR$17,MATCH('Data Input - Proposed'!$D95,'Energy Prices'!$C$12:$C$17,0),MATCH('Data Input - Proposed'!X$7,'Energy Prices'!$F$11:$CR$11,0))/100000,\"\")","v":0},{"$f":"IFERROR(Y87*INDEX('Energy Prices'!$F$12:$CR$17,MATCH('Data Input - Proposed'!$D95,'Energy Prices'!$C$12:$C$17,0),MATCH('Data Input - Proposed'!Y$7,'Energy Prices'!$F$11:$CR$11,0))/100000,\"\")","v":0},{"$f":"IFERROR(Z87*INDEX('Energy Prices'!$F$12:$CR$17,MATCH('Data Input - Proposed'!$D95,'Energy Prices'!$C$12:$C$17,0),MATCH('Data Input - Proposed'!Z$7,'Energy Prices'!$F$11:$CR$11,0))/100000,\"\")","v":0},{"$f":"IFERROR(AA87*INDEX('Energy Prices'!$F$12:$CR$17,MATCH('Data Input - Proposed'!$D95,'Energy Prices'!$C$12:$C$17,0),MATCH('Data Input - Proposed'!AA$7,'Energy Prices'!$F$11:$CR$11,0))/100000,\"\")","v":0},{"$f":"IFERROR(AB87*INDEX('Energy Prices'!$F$12:$CR$17,MATCH('Data Input - Proposed'!$D95,'Energy Prices'!$C$12:$C$17,0),MATCH('Data Input - Proposed'!AB$7,'Energy Prices'!$F$11:$CR$11,0))/100000,\"\")","v":0},{"$f":"IFERROR(AC87*INDEX('Energy Prices'!$F$12:$CR$17,MATCH('Data Input - Proposed'!$D95,'Energy Prices'!$C$12:$C$17,0),MATCH('Data Input - Proposed'!AC$7,'Energy Prices'!$F$11:$CR$11,0))/100000,\"\")","v":0},{"$f":"IFERROR(AD87*INDEX('Energy Prices'!$F$12:$CR$17,MATCH('Data Input - Proposed'!$D95,'Energy Prices'!$C$12:$C$17,0),MATCH('Data Input - Proposed'!AD$7,'Energy Prices'!$F$11:$CR$11,0))/100000,\"\")","v":0},{"$f":"IFERROR(AE87*INDEX('Energy Prices'!$F$12:$CR$17,MATCH('Data Input - Proposed'!$D95,'Energy Prices'!$C$12:$C$17,0),MATCH('Data Input - Proposed'!AE$7,'Energy Prices'!$F$11:$CR$11,0))/100000,\"\")","v":0},{"$f":"IFERROR(AF87*INDEX('Energy Prices'!$F$12:$CR$17,MATCH('Data Input - Proposed'!$D95,'Energy Prices'!$C$12:$C$17,0),MATCH('Data Input - Proposed'!AF$7,'Energy Prices'!$F$11:$CR$11,0))/100000,\"\")","v":0},{"$f":"IFERROR(AG87*INDEX('Energy Prices'!$F$12:$CR$17,MATCH('Data Input - Proposed'!$D95,'Energy Prices'!$C$12:$C$17,0),MATCH('Data Input - Proposed'!AG$7,'Energy Prices'!$F$11:$CR$11,0))/100000,\"\")","v":0},{"$f":"IFERROR(AH87*INDEX('Energy Prices'!$F$12:$CR$17,MATCH('Data Input - Proposed'!$D95,'Energy Prices'!$C$12:$C$17,0),MATCH('Data Input - Proposed'!AH$7,'Energy Prices'!$F$11:$CR$11,0))/100000,\"\")","v":0},{"$f":"IFERROR(AI87*INDEX('Energy Prices'!$F$12:$CR$17,MATCH('Data Input - Proposed'!$D95,'Energy Prices'!$C$12:$C$17,0),MATCH('Data Input - Proposed'!AI$7,'Energy Prices'!$F$11:$CR$11,0))/100000,\"\")","v":0},{"$f":"IFERROR(AJ87*INDEX('Energy Prices'!$F$12:$CR$17,MATCH('Data Input - Proposed'!$D95,'Energy Prices'!$C$12:$C$17,0),MATCH('Data Input - Proposed'!AJ$7,'Energy Prices'!$F$11:$CR$11,0))/100000,\"\")","v":0},{"$f":"IFERROR(AK87*INDEX('Energy Prices'!$F$12:$CR$17,MATCH('Data Input - Proposed'!$D95,'Energy Prices'!$C$12:$C$17,0),MATCH('Data Input - Proposed'!AK$7,'Energy Prices'!$F$11:$CR$11,0))/100000,\"\")","v":0},{"$f":"IFERROR(AL87*INDEX('Energy Prices'!$F$12:$CR$17,MATCH('Data Input - Proposed'!$D95,'Energy Prices'!$C$12:$C$17,0),MATCH('Data Input - Proposed'!AL$7,'Energy Prices'!$F$11:$CR$11,0))/100000,\"\")","v":0},{"$f":"IFERROR(AM87*INDEX('Energy Prices'!$F$12:$CR$17,MATCH('Data Input - Proposed'!$D95,'Energy Prices'!$C$12:$C$17,0),MATCH('Data Input - Proposed'!AM$7,'Energy Prices'!$F$11:$CR$11,0))/100000,\"\")","v":""},{"$f":"IFERROR(AN87*INDEX('Energy Prices'!$F$12:$CR$17,MATCH('Data Input - Proposed'!$D95,'Energy Prices'!$C$12:$C$17,0),MATCH('Data Input - Proposed'!AN$7,'Energy Prices'!$F$11:$CR$11,0))/100000,\"\")","v":""},{"$f":"IFERROR(AO87*INDEX('Energy Prices'!$F$12:$CR$17,MATCH('Data Input - Proposed'!$D95,'Energy Prices'!$C$12:$C$17,0),MATCH('Data Input - Proposed'!AO$7,'Energy Prices'!$F$11:$CR$11,0))/100000,\"\")","v":""},{"$f":"IFERROR(AP87*INDEX('Energy Prices'!$F$12:$CR$17,MATCH('Data Input - Proposed'!$D95,'Energy Prices'!$C$12:$C$17,0),MATCH('Data Input - Proposed'!AP$7,'Energy Prices'!$F$11:$CR$11,0))/100000,\"\")","v":""},{"$f":"IFERROR(AQ87*INDEX('Energy Prices'!$F$12:$CR$17,MATCH('Data Input - Proposed'!$D95,'Energy Prices'!$C$12:$C$17,0),MATCH('Data Input - Proposed'!AQ$7,'Energy Prices'!$F$11:$CR$11,0))/100000,\"\")","v":""},{"$f":"IFERROR(AR87*INDEX('Energy Prices'!$F$12:$CR$17,MATCH('Data Input - Proposed'!$D95,'Energy Prices'!$C$12:$C$17,0),MATCH('Data Input - Proposed'!AR$7,'Energy Prices'!$F$11:$CR$11,0))/100000,\"\")","v":""},{"$f":"IFERROR(AS87*INDEX('Energy Prices'!$F$12:$CR$17,MATCH('Data Input - Proposed'!$D95,'Energy Prices'!$C$12:$C$17,0),MATCH('Data Input - Proposed'!AS$7,'Energy Prices'!$F$11:$CR$11,0))/100000,\"\")","v":""},{"$f":"IFERROR(AT87*INDEX('Energy Prices'!$F$12:$CR$17,MATCH('Data Input - Proposed'!$D95,'Energy Prices'!$C$12:$C$17,0),MATCH('Data Input - Proposed'!AT$7,'Energy Prices'!$F$11:$CR$11,0))/100000,\"\")","v":""},{"$f":"IFERROR(AU87*INDEX('Energy Prices'!$F$12:$CR$17,MATCH('Data Input - Proposed'!$D95,'Energy Prices'!$C$12:$C$17,0),MATCH('Data Input - Proposed'!AU$7,'Energy Prices'!$F$11:$CR$11,0))/100000,\"\")","v":""},{"$f":"IFERROR(AV87*INDEX('Energy Prices'!$F$12:$CR$17,MATCH('Data Input - Proposed'!$D95,'Energy Prices'!$C$12:$C$17,0),MATCH('Data Input - Proposed'!AV$7,'Energy Prices'!$F$11:$CR$11,0))/100000,\"\")","v":""},{"$f":"IFERROR(AW87*INDEX('Energy Prices'!$F$12:$CR$17,MATCH('Data Input - Proposed'!$D95,'Energy Prices'!$C$12:$C$17,0),MATCH('Data Input - Proposed'!AW$7,'Energy Prices'!$F$11:$CR$11,0))/100000,\"\")","v":""},{"$f":"IFERROR(AX87*INDEX('Energy Prices'!$F$12:$CR$17,MATCH('Data Input - Proposed'!$D95,'Energy Prices'!$C$12:$C$17,0),MATCH('Data Input - Proposed'!AX$7,'Energy Prices'!$F$11:$CR$11,0))/100000,\"\")","v":""},{"$f":"IFERROR(AY87*INDEX('Energy Prices'!$F$12:$CR$17,MATCH('Data Input - Proposed'!$D95,'Energy Prices'!$C$12:$C$17,0),MATCH('Data Input - Proposed'!AY$7,'Energy Prices'!$F$11:$CR$11,0))/100000,\"\")","v":""},{"$f":"IFERROR(AZ87*INDEX('Energy Prices'!$F$12:$CR$17,MATCH('Data Input - Proposed'!$D95,'Energy Prices'!$C$12:$C$17,0),MATCH('Data Input - Proposed'!AZ$7,'Energy Prices'!$F$11:$CR$11,0))/100000,\"\")","v":""},{"$f":"IFERROR(BA87*INDEX('Energy Prices'!$F$12:$CR$17,MATCH('Data Input - Proposed'!$D95,'Energy Prices'!$C$12:$C$17,0),MATCH('Data Input - Proposed'!BA$7,'Energy Prices'!$F$11:$CR$11,0))/100000,\"\")","v":""},{"$f":"IFERROR(BB87*INDEX('Energy Prices'!$F$12:$CR$17,MATCH('Data Input - Proposed'!$D95,'Energy Prices'!$C$12:$C$17,0),MATCH('Data Input - Proposed'!BB$7,'Energy Prices'!$F$11:$CR$11,0))/100000,\"\")","v":""},{"$f":"IFERROR(BC87*INDEX('Energy Prices'!$F$12:$CR$17,MATCH('Data Input - Proposed'!$D95,'Energy Prices'!$C$12:$C$17,0),MATCH('Data Input - Proposed'!BC$7,'Energy Prices'!$F$11:$CR$11,0))/100000,\"\")","v":""},{"$f":"IFERROR(BD87*INDEX('Energy Prices'!$F$12:$CR$17,MATCH('Data Input - Proposed'!$D95,'Energy Prices'!$C$12:$C$17,0),MATCH('Data Input - Proposed'!BD$7,'Energy Prices'!$F$11:$CR$11,0))/100000,\"\")","v":""},{"$f":"IFERROR(BE87*INDEX('Energy Prices'!$F$12:$CR$17,MATCH('Data Input - Proposed'!$D95,'Energy Prices'!$C$12:$C$17,0),MATCH('Data Input - Proposed'!BE$7,'Energy Prices'!$F$11:$CR$11,0))/100000,\"\")","v":""},{"$f":"IFERROR(BF87*INDEX('Energy Prices'!$F$12:$CR$17,MATCH('Data Input - Proposed'!$D95,'Energy Prices'!$C$12:$C$17,0),MATCH('Data Input - Proposed'!BF$7,'Energy Prices'!$F$11:$CR$11,0))/100000,\"\")","v":""},{"$f":"IFERROR(BG87*INDEX('Energy Prices'!$F$12:$CR$17,MATCH('Data Input - Proposed'!$D95,'Energy Prices'!$C$12:$C$17,0),MATCH('Data Input - Proposed'!BG$7,'Energy Prices'!$F$11:$CR$11,0))/100000,\"\")","v":""},{"$f":"IFERROR(BH87*INDEX('Energy Prices'!$F$12:$CR$17,MATCH('Data Input - Proposed'!$D95,'Energy Prices'!$C$12:$C$17,0),MATCH('Data Input - Proposed'!BH$7,'Energy Prices'!$F$11:$CR$11,0))/100000,\"\")","v":""},{"$f":"IFERROR(BI87*INDEX('Energy Prices'!$F$12:$CR$17,MATCH('Data Input - Proposed'!$D95,'Energy Prices'!$C$12:$C$17,0),MATCH('Data Input - Proposed'!BI$7,'Energy Prices'!$F$11:$CR$11,0))/100000,\"\")","v":""},{"$f":"IFERROR(BJ87*INDEX('Energy Prices'!$F$12:$CR$17,MATCH('Data Input - Proposed'!$D95,'Energy Prices'!$C$12:$C$17,0),MATCH('Data Input - Proposed'!BJ$7,'Energy Prices'!$F$11:$CR$11,0))/100000,\"\")","v":""},{"$f":"IFERROR(BK87*INDEX('Energy Prices'!$F$12:$CR$17,MATCH('Data Input - Proposed'!$D95,'Energy Prices'!$C$12:$C$17,0),MATCH('Data Input - Proposed'!BK$7,'Energy Prices'!$F$11:$CR$11,0))/100000,\"\")","v":""},{"$f":"IFERROR(BL87*INDEX('Energy Prices'!$F$12:$CR$17,MATCH('Data Input - Proposed'!$D95,'Energy Prices'!$C$12:$C$17,0),MATCH('Data Input - Proposed'!BL$7,'Energy Prices'!$F$11:$CR$11,0))/100000,\"\")","v":""},{"$f":"IFERROR(BM87*INDEX('Energy Prices'!$F$12:$CR$17,MATCH('Data Input - Proposed'!$D95,'Energy Prices'!$C$12:$C$17,0),MATCH('Data Input - Proposed'!BM$7,'Energy Prices'!$F$11:$CR$11,0))/100000,\"\")","v":""},{"$f":"IFERROR(BN87*INDEX('Energy Prices'!$F$12:$CR$17,MATCH('Data Input - Proposed'!$D95,'Energy Prices'!$C$12:$C$17,0),MATCH('Data Input - Proposed'!BN$7,'Energy Prices'!$F$11:$CR$11,0))/100000,\"\")","v":""},{"$f":"IFERROR(BO87*INDEX('Energy Prices'!$F$12:$CR$17,MATCH('Data Input - Proposed'!$D95,'Energy Prices'!$C$12:$C$17,0),MATCH('Data Input - Proposed'!BO$7,'Energy Prices'!$F$11:$CR$11,0))/100000,\"\")","v":""},{"$f":"IFERROR(BP87*INDEX('Energy Prices'!$F$12:$CR$17,MATCH('Data Input - Proposed'!$D95,'Energy Prices'!$C$12:$C$17,0),MATCH('Data Input - Proposed'!BP$7,'Energy Prices'!$F$11:$CR$11,0))/100000,\"\")","v":""},{"$f":"IFERROR(BQ87*INDEX('Energy Prices'!$F$12:$CR$17,MATCH('Data Input - Proposed'!$D95,'Energy Prices'!$C$12:$C$17,0),MATCH('Data Input - Proposed'!BQ$7,'Energy Prices'!$F$11:$CR$11,0))/100000,\"\")","v":""},{"$f":"IFERROR(BR87*INDEX('Energy Prices'!$F$12:$CR$17,MATCH('Data Input - Proposed'!$D95,'Energy Prices'!$C$12:$C$17,0),MATCH('Data Input - Proposed'!BR$7,'Energy Prices'!$F$11:$CR$11,0))/100000,\"\")","v":""},{"$f":"IFERROR(BS87*INDEX('Energy Prices'!$F$12:$CR$17,MATCH('Data Input - Proposed'!$D95,'Energy Prices'!$C$12:$C$17,0),MATCH('Data Input - Proposed'!BS$7,'Energy Prices'!$F$11:$CR$11,0))/100000,\"\")","v":""},{"$f":"IFERROR(BT87*INDEX('Energy Prices'!$F$12:$CR$17,MATCH('Data Input - Proposed'!$D95,'Energy Prices'!$C$12:$C$17,0),MATCH('Data Input - Proposed'!BT$7,'Energy Prices'!$F$11:$CR$11,0))/100000,\"\")","v":""},{"$f":"IFERROR(BU87*INDEX('Energy Prices'!$F$12:$CR$17,MATCH('Data Input - Proposed'!$D95,'Energy Prices'!$C$12:$C$17,0),MATCH('Data Input - Proposed'!BU$7,'Energy Prices'!$F$11:$CR$11,0))/100000,\"\")","v":""},{"$f":"IFERROR(BV87*INDEX('Energy Prices'!$F$12:$CR$17,MATCH('Data Input - Proposed'!$D95,'Energy Prices'!$C$12:$C$17,0),MATCH('Data Input - Proposed'!BV$7,'Energy Prices'!$F$11:$CR$11,0))/100000,\"\")","v":""},{"$f":"IFERROR(BW87*INDEX('Energy Prices'!$F$12:$CR$17,MATCH('Data Input - Proposed'!$D95,'Energy Prices'!$C$12:$C$17,0),MATCH('Data Input - Proposed'!BW$7,'Energy Prices'!$F$11:$CR$11,0))/100000,\"\")","v":""},{"$f":"IFERROR(BX87*INDEX('Energy Prices'!$F$12:$CR$17,MATCH('Data Input - Proposed'!$D95,'Energy Prices'!$C$12:$C$17,0),MATCH('Data Input - Proposed'!BX$7,'Energy Prices'!$F$11:$CR$11,0))/100000,\"\")","v":""},{"$f":"IFERROR(BY87*INDEX('Energy Prices'!$F$12:$CR$17,MATCH('Data Input - Proposed'!$D95,'Energy Prices'!$C$12:$C$17,0),MATCH('Data Input - Proposed'!BY$7,'Energy Prices'!$F$11:$CR$11,0))/100000,\"\")","v":""},{"$f":"IFERROR(BZ87*INDEX('Energy Prices'!$F$12:$CR$17,MATCH('Data Input - Proposed'!$D95,'Energy Prices'!$C$12:$C$17,0),MATCH('Data Input - Proposed'!BZ$7,'Energy Prices'!$F$11:$CR$11,0))/100000,\"\")","v":""},{"$f":"IFERROR(CA87*INDEX('Energy Prices'!$F$12:$CR$17,MATCH('Data Input - Proposed'!$D95,'Energy Prices'!$C$12:$C$17,0),MATCH('Data Input - Proposed'!CA$7,'Energy Prices'!$F$11:$CR$11,0))/100000,\"\")","v":""},{"$f":"IFERROR(CB87*INDEX('Energy Prices'!$F$12:$CR$17,MATCH('Data Input - Proposed'!$D95,'Energy Prices'!$C$12:$C$17,0),MATCH('Data Input - Proposed'!CB$7,'Energy Prices'!$F$11:$CR$11,0))/100000,\"\")","v":""},{"$f":"IFERROR(CC87*INDEX('Energy Prices'!$F$12:$CR$17,MATCH('Data Input - Proposed'!$D95,'Energy Prices'!$C$12:$C$17,0),MATCH('Data Input - Proposed'!CC$7,'Energy Prices'!$F$11:$CR$11,0))/100000,\"\")","v":""},{"$f":"IFERROR(CD87*INDEX('Energy Prices'!$F$12:$CR$17,MATCH('Data Input - Proposed'!$D95,'Energy Prices'!$C$12:$C$17,0),MATCH('Data Input - Proposed'!CD$7,'Energy Prices'!$F$11:$CR$11,0))/100000,\"\")","v":""},{"$f":"IFERROR(CE87*INDEX('Energy Prices'!$F$12:$CR$17,MATCH('Data Input - Proposed'!$D95,'Energy Prices'!$C$12:$C$17,0),MATCH('Data Input - Proposed'!CE$7,'Energy Prices'!$F$11:$CR$11,0))/100000,\"\")","v":""},{"$f":"IFERROR(CF87*INDEX('Energy Prices'!$F$12:$CR$17,MATCH('Data Input - Proposed'!$D95,'Energy Prices'!$C$12:$C$17,0),MATCH('Data Input - Proposed'!CF$7,'Energy Prices'!$F$11:$CR$11,0))/100000,\"\")","v":""},{"$f":"IFERROR(CG87*INDEX('Energy Prices'!$F$12:$CR$17,MATCH('Data Input - Proposed'!$D95,'Energy Prices'!$C$12:$C$17,0),MATCH('Data Input - Proposed'!CG$7,'Energy Prices'!$F$11:$CR$11,0))/100000,\"\")","v":""},{"$f":"IFERROR(CH87*INDEX('Energy Prices'!$F$12:$CR$17,MATCH('Data Input - Proposed'!$D95,'Energy Prices'!$C$12:$C$17,0),MATCH('Data Input - Proposed'!CH$7,'Energy Prices'!$F$11:$CR$11,0))/100000,\"\")","v":""},{"$f":"IFERROR(CI87*INDEX('Energy Prices'!$F$12:$CR$17,MATCH('Data Input - Proposed'!$D95,'Energy Prices'!$C$12:$C$17,0),MATCH('Data Input - Proposed'!CI$7,'Energy Prices'!$F$11:$CR$11,0))/100000,\"\")","v":""},{"$f":"IFERROR(CJ87*INDEX('Energy Prices'!$F$12:$CR$17,MATCH('Data Input - Proposed'!$D95,'Energy Prices'!$C$12:$C$17,0),MATCH('Data Input - Proposed'!CJ$7,'Energy Prices'!$F$11:$CR$11,0))/100000,\"\")","v":""},{"$f":"IFERROR(CK87*INDEX('Energy Prices'!$F$12:$CR$17,MATCH('Data Input - Proposed'!$D95,'Energy Prices'!$C$12:$C$17,0),MATCH('Data Input - Proposed'!CK$7,'Energy Prices'!$F$11:$CR$11,0))/100000,\"\")","v":""},{"$f":"IFERROR(CL87*INDEX('Energy Prices'!$F$12:$CR$17,MATCH('Data Input - Proposed'!$D95,'Energy Prices'!$C$12:$C$17,0),MATCH('Data Input - Proposed'!CL$7,'Energy Prices'!$F$11:$CR$11,0))/100000,\"\")","v":""},{"$f":"IFERROR(CM87*INDEX('Energy Prices'!$F$12:$CR$17,MATCH('Data Input - Proposed'!$D95,'Energy Prices'!$C$12:$C$17,0),MATCH('Data Input - Proposed'!CM$7,'Energy Prices'!$F$11:$CR$11,0))/100000,\"\")","v":""},{"$f":"IFERROR(CN87*INDEX('Energy Prices'!$F$12:$CR$17,MATCH('Data Input - Proposed'!$D95,'Energy Prices'!$C$12:$C$17,0),MATCH('Data Input - Proposed'!CN$7,'Energy Prices'!$F$11:$CR$11,0))/100000,\"\")","v":""},{"$f":"IFERROR(CO87*INDEX('Energy Prices'!$F$12:$CR$17,MATCH('Data Input - Proposed'!$D95,'Energy Prices'!$C$12:$C$17,0),MATCH('Data Input - Proposed'!CO$7,'Energy Prices'!$F$11:$CR$11,0))/100000,\"\")","v":""},{"$f":"IFERROR(CP87*INDEX('Energy Prices'!$F$12:$CR$17,MATCH('Data Input - Proposed'!$D95,'Energy Prices'!$C$12:$C$17,0),MATCH('Data Input - Proposed'!CP$7,'Energy Prices'!$F$11:$CR$11,0))/100000,\"\")","v":""},{"$f":"IFERROR(CQ87*INDEX('Energy Prices'!$F$12:$CR$17,MATCH('Data Input - Proposed'!$D95,'Energy Prices'!$C$12:$C$17,0),MATCH('Data Input - Proposed'!CQ$7,'Energy Prices'!$F$11:$CR$11,0))/100000,\"\")","v":""},{"$f":"IFERROR(CR87*INDEX('Energy Prices'!$F$12:$CR$17,MATCH('Data Input - Proposed'!$D95,'Energy Prices'!$C$12:$C$17,0),MATCH('Data Input - Proposed'!CR$7,'Energy Prices'!$F$11:$CR$11,0))/100000,\"\")","v":""},{"$f":"IFERROR(CS87*INDEX('Energy Prices'!$F$12:$CR$17,MATCH('Data Input - Proposed'!$D95,'Energy Prices'!$C$12:$C$17,0),MATCH('Data Input - Proposed'!CS$7,'Energy Prices'!$F$11:$CR$11,0))/100000,\"\")","v":""},{"$f":"IFERROR(CT87*INDEX('Energy Prices'!$F$12:$CR$17,MATCH('Data Input - Proposed'!$D95,'Energy Prices'!$C$12:$C$17,0),MATCH('Data Input - Proposed'!CT$7,'Energy Prices'!$F$11:$CR$11,0))/100000,\"\")","v":""},{"$f":"IFERROR(CU87*INDEX('Energy Prices'!$F$12:$CR$17,MATCH('Data Input - Proposed'!$D95,'Energy Prices'!$C$12:$C$17,0),MATCH('Data Input - Proposed'!CU$7,'Energy Prices'!$F$11:$CR$11,0))/100000,\"\")","v":""},{"$f":"IFERROR(CV87*INDEX('Energy Prices'!$F$12:$CR$17,MATCH('Data Input - Proposed'!$D95,'Energy Prices'!$C$12:$C$17,0),MATCH('Data Input - Proposed'!CV$7,'Energy Prices'!$F$11:$CR$11,0))/100000,\"\")","v":""},{"$f":"IFERROR(CW87*INDEX('Energy Prices'!$F$12:$CR$17,MATCH('Data Input - Proposed'!$D95,'Energy Prices'!$C$12:$C$17,0),MATCH('Data Input - Proposed'!CW$7,'Energy Prices'!$F$11:$CR$11,0))/100000,\"\")","v":""},{"$f":"IFERROR(CX87*INDEX('Energy Prices'!$F$12:$CR$17,MATCH('Data Input - Proposed'!$D95,'Energy Prices'!$C$12:$C$17,0),MATCH('Data Input - Proposed'!CX$7,'Energy Prices'!$F$11:$CR$11,0))/100000,\"\")","v":""},{"$f":"IFERROR(CY87*INDEX('Energy Prices'!$F$12:$CR$17,MATCH('Data Input - Proposed'!$D95,'Energy Prices'!$C$12:$C$17,0),MATCH('Data Input - Proposed'!CY$7,'Energy Prices'!$F$11:$CR$11,0))/100000,\"\")","v":""},{"$f":"IFERROR(CZ87*INDEX('Energy Prices'!$F$12:$CR$17,MATCH('Data Input - Proposed'!$D95,'Energy Prices'!$C$12:$C$17,0),MATCH('Data Input - Proposed'!CZ$7,'Energy Prices'!$F$11:$CR$11,0))/100000,\"\")","v":""},{"$f":"IFERROR(DA87*INDEX('Energy Prices'!$F$12:$CR$17,MATCH('Data Input - Proposed'!$D95,'Energy Prices'!$C$12:$C$17,0),MATCH('Data Input - Proposed'!DA$7,'Energy Prices'!$F$11:$CR$11,0))/100000,\"\")","v":""},{"$f":"IFERROR(DB87*INDEX('Energy Prices'!$F$12:$CR$17,MATCH('Data Input - Proposed'!$D95,'Energy Prices'!$C$12:$C$17,0),MATCH('Data Input - Proposed'!DB$7,'Energy Prices'!$F$11:$CR$11,0))/100000,\"\")","v":""},{"$f":"IFERROR(DC87*INDEX('Energy Prices'!$F$12:$CR$17,MATCH('Data Input - Proposed'!$D95,'Energy Prices'!$C$12:$C$17,0),MATCH('Data Input - Proposed'!DC$7,'Energy Prices'!$F$11:$CR$11,0))/100000,\"\")","v":""}]
[null,null,null,"Road - Petrol","£000's","(Auto calculated value)",null,{"$f":"IFERROR(H88*INDEX('Energy Prices'!$F$12:$CR$17,MATCH('Data Input - Proposed'!$D96,'Energy Prices'!$C$12:$C$17,0),MATCH('Data Input - Proposed'!H$7,'Energy Prices'!$F$11:$CR$11,0))/100000,\"\")","v":0},{"$f":"IFERROR(I88*INDEX('Energy Prices'!$F$12:$CR$17,MATCH('Data Input - Proposed'!$D96,'Energy Prices'!$C$12:$C$17,0),MATCH('Data Input - Proposed'!I$7,'Energy Prices'!$F$11:$CR$11,0))/100000,\"\")","v":0},{"$f":"IFERROR(J88*INDEX('Energy Prices'!$F$12:$CR$17,MATCH('Data Input - Proposed'!$D96,'Energy Prices'!$C$12:$C$17,0),MATCH('Data Input - Proposed'!J$7,'Energy Prices'!$F$11:$CR$11,0))/100000,\"\")","v":0},{"$f":"IFERROR(K88*INDEX('Energy Prices'!$F$12:$CR$17,MATCH('Data Input - Proposed'!$D96,'Energy Prices'!$C$12:$C$17,0),MATCH('Data Input - Proposed'!K$7,'Energy Prices'!$F$11:$CR$11,0))/100000,\"\")","v":0},{"$f":"IFERROR(L88*INDEX('Energy Prices'!$F$12:$CR$17,MATCH('Data Input - Proposed'!$D96,'Energy Prices'!$C$12:$C$17,0),MATCH('Data Input - Proposed'!L$7,'Energy Prices'!$F$11:$CR$11,0))/100000,\"\")","v":0},{"$f":"IFERROR(M88*INDEX('Energy Prices'!$F$12:$CR$17,MATCH('Data Input - Proposed'!$D96,'Energy Prices'!$C$12:$C$17,0),MATCH('Data Input - Proposed'!M$7,'Energy Prices'!$F$11:$CR$11,0))/100000,\"\")","v":0},{"$f":"IFERROR(N88*INDEX('Energy Prices'!$F$12:$CR$17,MATCH('Data Input - Proposed'!$D96,'Energy Prices'!$C$12:$C$17,0),MATCH('Data Input - Proposed'!N$7,'Energy Prices'!$F$11:$CR$11,0))/100000,\"\")","v":0},{"$f":"IFERROR(O88*INDEX('Energy Prices'!$F$12:$CR$17,MATCH('Data Input - Proposed'!$D96,'Energy Prices'!$C$12:$C$17,0),MATCH('Data Input - Proposed'!O$7,'Energy Prices'!$F$11:$CR$11,0))/100000,\"\")","v":0},{"$f":"IFERROR(P88*INDEX('Energy Prices'!$F$12:$CR$17,MATCH('Data Input - Proposed'!$D96,'Energy Prices'!$C$12:$C$17,0),MATCH('Data Input - Proposed'!P$7,'Energy Prices'!$F$11:$CR$11,0))/100000,\"\")","v":0},{"$f":"IFERROR(Q88*INDEX('Energy Prices'!$F$12:$CR$17,MATCH('Data Input - Proposed'!$D96,'Energy Prices'!$C$12:$C$17,0),MATCH('Data Input - Proposed'!Q$7,'Energy Prices'!$F$11:$CR$11,0))/100000,\"\")","v":0},{"$f":"IFERROR(R88*INDEX('Energy Prices'!$F$12:$CR$17,MATCH('Data Input - Proposed'!$D96,'Energy Prices'!$C$12:$C$17,0),MATCH('Data Input - Proposed'!R$7,'Energy Prices'!$F$11:$CR$11,0))/100000,\"\")","v":0},{"$f":"IFERROR(S88*INDEX('Energy Prices'!$F$12:$CR$17,MATCH('Data Input - Proposed'!$D96,'Energy Prices'!$C$12:$C$17,0),MATCH('Data Input - Proposed'!S$7,'Energy Prices'!$F$11:$CR$11,0))/100000,\"\")","v":0},{"$f":"IFERROR(T88*INDEX('Energy Prices'!$F$12:$CR$17,MATCH('Data Input - Proposed'!$D96,'Energy Prices'!$C$12:$C$17,0),MATCH('Data Input - Proposed'!T$7,'Energy Prices'!$F$11:$CR$11,0))/100000,\"\")","v":0},{"$f":"IFERROR(U88*INDEX('Energy Prices'!$F$12:$CR$17,MATCH('Data Input - Proposed'!$D96,'Energy Prices'!$C$12:$C$17,0),MATCH('Data Input - Proposed'!U$7,'Energy Prices'!$F$11:$CR$11,0))/100000,\"\")","v":0},{"$f":"IFERROR(V88*INDEX('Energy Prices'!$F$12:$CR$17,MATCH('Data Input - Proposed'!$D96,'Energy Prices'!$C$12:$C$17,0),MATCH('Data Input - Proposed'!V$7,'Energy Prices'!$F$11:$CR$11,0))/100000,\"\")","v":0},{"$f":"IFERROR(W88*INDEX('Energy Prices'!$F$12:$CR$17,MATCH('Data Input - Proposed'!$D96,'Energy Prices'!$C$12:$C$17,0),MATCH('Data Input - Proposed'!W$7,'Energy Prices'!$F$11:$CR$11,0))/100000,\"\")","v":0},{"$f":"IFERROR(X88*INDEX('Energy Prices'!$F$12:$CR$17,MATCH('Data Input - Proposed'!$D96,'Energy Prices'!$C$12:$C$17,0),MATCH('Data Input - Proposed'!X$7,'Energy Prices'!$F$11:$CR$11,0))/100000,\"\")","v":0},{"$f":"IFERROR(Y88*INDEX('Energy Prices'!$F$12:$CR$17,MATCH('Data Input - Proposed'!$D96,'Energy Prices'!$C$12:$C$17,0),MATCH('Data Input - Proposed'!Y$7,'Energy Prices'!$F$11:$CR$11,0))/100000,\"\")","v":0},{"$f":"IFERROR(Z88*INDEX('Energy Prices'!$F$12:$CR$17,MATCH('Data Input - Proposed'!$D96,'Energy Prices'!$C$12:$C$17,0),MATCH('Data Input - Proposed'!Z$7,'Energy Prices'!$F$11:$CR$11,0))/100000,\"\")","v":0},{"$f":"IFERROR(AA88*INDEX('Energy Prices'!$F$12:$CR$17,MATCH('Data Input - Proposed'!$D96,'Energy Prices'!$C$12:$C$17,0),MATCH('Data Input - Proposed'!AA$7,'Energy Prices'!$F$11:$CR$11,0))/100000,\"\")","v":0},{"$f":"IFERROR(AB88*INDEX('Energy Prices'!$F$12:$CR$17,MATCH('Data Input - Proposed'!$D96,'Energy Prices'!$C$12:$C$17,0),MATCH('Data Input - Proposed'!AB$7,'Energy Prices'!$F$11:$CR$11,0))/100000,\"\")","v":0},{"$f":"IFERROR(AC88*INDEX('Energy Prices'!$F$12:$CR$17,MATCH('Data Input - Proposed'!$D96,'Energy Prices'!$C$12:$C$17,0),MATCH('Data Input - Proposed'!AC$7,'Energy Prices'!$F$11:$CR$11,0))/100000,\"\")","v":0},{"$f":"IFERROR(AD88*INDEX('Energy Prices'!$F$12:$CR$17,MATCH('Data Input - Proposed'!$D96,'Energy Prices'!$C$12:$C$17,0),MATCH('Data Input - Proposed'!AD$7,'Energy Prices'!$F$11:$CR$11,0))/100000,\"\")","v":0},{"$f":"IFERROR(AE88*INDEX('Energy Prices'!$F$12:$CR$17,MATCH('Data Input - Proposed'!$D96,'Energy Prices'!$C$12:$C$17,0),MATCH('Data Input - Proposed'!AE$7,'Energy Prices'!$F$11:$CR$11,0))/100000,\"\")","v":0},{"$f":"IFERROR(AF88*INDEX('Energy Prices'!$F$12:$CR$17,MATCH('Data Input - Proposed'!$D96,'Energy Prices'!$C$12:$C$17,0),MATCH('Data Input - Proposed'!AF$7,'Energy Prices'!$F$11:$CR$11,0))/100000,\"\")","v":0},{"$f":"IFERROR(AG88*INDEX('Energy Prices'!$F$12:$CR$17,MATCH('Data Input - Proposed'!$D96,'Energy Prices'!$C$12:$C$17,0),MATCH('Data Input - Proposed'!AG$7,'Energy Prices'!$F$11:$CR$11,0))/100000,\"\")","v":0},{"$f":"IFERROR(AH88*INDEX('Energy Prices'!$F$12:$CR$17,MATCH('Data Input - Proposed'!$D96,'Energy Prices'!$C$12:$C$17,0),MATCH('Data Input - Proposed'!AH$7,'Energy Prices'!$F$11:$CR$11,0))/100000,\"\")","v":0},{"$f":"IFERROR(AI88*INDEX('Energy Prices'!$F$12:$CR$17,MATCH('Data Input - Proposed'!$D96,'Energy Prices'!$C$12:$C$17,0),MATCH('Data Input - Proposed'!AI$7,'Energy Prices'!$F$11:$CR$11,0))/100000,\"\")","v":0},{"$f":"IFERROR(AJ88*INDEX('Energy Prices'!$F$12:$CR$17,MATCH('Data Input - Proposed'!$D96,'Energy Prices'!$C$12:$C$17,0),MATCH('Data Input - Proposed'!AJ$7,'Energy Prices'!$F$11:$CR$11,0))/100000,\"\")","v":0},{"$f":"IFERROR(AK88*INDEX('Energy Prices'!$F$12:$CR$17,MATCH('Data Input - Proposed'!$D96,'Energy Prices'!$C$12:$C$17,0),MATCH('Data Input - Proposed'!AK$7,'Energy Prices'!$F$11:$CR$11,0))/100000,\"\")","v":0},{"$f":"IFERROR(AL88*INDEX('Energy Prices'!$F$12:$CR$17,MATCH('Data Input - Proposed'!$D96,'Energy Prices'!$C$12:$C$17,0),MATCH('Data Input - Proposed'!AL$7,'Energy Prices'!$F$11:$CR$11,0))/100000,\"\")","v":0},{"$f":"IFERROR(AM88*INDEX('Energy Prices'!$F$12:$CR$17,MATCH('Data Input - Proposed'!$D96,'Energy Prices'!$C$12:$C$17,0),MATCH('Data Input - Proposed'!AM$7,'Energy Prices'!$F$11:$CR$11,0))/100000,\"\")","v":""},{"$f":"IFERROR(AN88*INDEX('Energy Prices'!$F$12:$CR$17,MATCH('Data Input - Proposed'!$D96,'Energy Prices'!$C$12:$C$17,0),MATCH('Data Input - Proposed'!AN$7,'Energy Prices'!$F$11:$CR$11,0))/100000,\"\")","v":""},{"$f":"IFERROR(AO88*INDEX('Energy Prices'!$F$12:$CR$17,MATCH('Data Input - Proposed'!$D96,'Energy Prices'!$C$12:$C$17,0),MATCH('Data Input - Proposed'!AO$7,'Energy Prices'!$F$11:$CR$11,0))/100000,\"\")","v":""},{"$f":"IFERROR(AP88*INDEX('Energy Prices'!$F$12:$CR$17,MATCH('Data Input - Proposed'!$D96,'Energy Prices'!$C$12:$C$17,0),MATCH('Data Input - Proposed'!AP$7,'Energy Prices'!$F$11:$CR$11,0))/100000,\"\")","v":""},{"$f":"IFERROR(AQ88*INDEX('Energy Prices'!$F$12:$CR$17,MATCH('Data Input - Proposed'!$D96,'Energy Prices'!$C$12:$C$17,0),MATCH('Data Input - Proposed'!AQ$7,'Energy Prices'!$F$11:$CR$11,0))/100000,\"\")","v":""},{"$f":"IFERROR(AR88*INDEX('Energy Prices'!$F$12:$CR$17,MATCH('Data Input - Proposed'!$D96,'Energy Prices'!$C$12:$C$17,0),MATCH('Data Input - Proposed'!AR$7,'Energy Prices'!$F$11:$CR$11,0))/100000,\"\")","v":""},{"$f":"IFERROR(AS88*INDEX('Energy Prices'!$F$12:$CR$17,MATCH('Data Input - Proposed'!$D96,'Energy Prices'!$C$12:$C$17,0),MATCH('Data Input - Proposed'!AS$7,'Energy Prices'!$F$11:$CR$11,0))/100000,\"\")","v":""},{"$f":"IFERROR(AT88*INDEX('Energy Prices'!$F$12:$CR$17,MATCH('Data Input - Proposed'!$D96,'Energy Prices'!$C$12:$C$17,0),MATCH('Data Input - Proposed'!AT$7,'Energy Prices'!$F$11:$CR$11,0))/100000,\"\")","v":""},{"$f":"IFERROR(AU88*INDEX('Energy Prices'!$F$12:$CR$17,MATCH('Data Input - Proposed'!$D96,'Energy Prices'!$C$12:$C$17,0),MATCH('Data Input - Proposed'!AU$7,'Energy Prices'!$F$11:$CR$11,0))/100000,\"\")","v":""},{"$f":"IFERROR(AV88*INDEX('Energy Prices'!$F$12:$CR$17,MATCH('Data Input - Proposed'!$D96,'Energy Prices'!$C$12:$C$17,0),MATCH('Data Input - Proposed'!AV$7,'Energy Prices'!$F$11:$CR$11,0))/100000,\"\")","v":""},{"$f":"IFERROR(AW88*INDEX('Energy Prices'!$F$12:$CR$17,MATCH('Data Input - Proposed'!$D96,'Energy Prices'!$C$12:$C$17,0),MATCH('Data Input - Proposed'!AW$7,'Energy Prices'!$F$11:$CR$11,0))/100000,\"\")","v":""},{"$f":"IFERROR(AX88*INDEX('Energy Prices'!$F$12:$CR$17,MATCH('Data Input - Proposed'!$D96,'Energy Prices'!$C$12:$C$17,0),MATCH('Data Input - Proposed'!AX$7,'Energy Prices'!$F$11:$CR$11,0))/100000,\"\")","v":""},{"$f":"IFERROR(AY88*INDEX('Energy Prices'!$F$12:$CR$17,MATCH('Data Input - Proposed'!$D96,'Energy Prices'!$C$12:$C$17,0),MATCH('Data Input - Proposed'!AY$7,'Energy Prices'!$F$11:$CR$11,0))/100000,\"\")","v":""},{"$f":"IFERROR(AZ88*INDEX('Energy Prices'!$F$12:$CR$17,MATCH('Data Input - Proposed'!$D96,'Energy Prices'!$C$12:$C$17,0),MATCH('Data Input - Proposed'!AZ$7,'Energy Prices'!$F$11:$CR$11,0))/100000,\"\")","v":""},{"$f":"IFERROR(BA88*INDEX('Energy Prices'!$F$12:$CR$17,MATCH('Data Input - Proposed'!$D96,'Energy Prices'!$C$12:$C$17,0),MATCH('Data Input - Proposed'!BA$7,'Energy Prices'!$F$11:$CR$11,0))/100000,\"\")","v":""},{"$f":"IFERROR(BB88*INDEX('Energy Prices'!$F$12:$CR$17,MATCH('Data Input - Proposed'!$D96,'Energy Prices'!$C$12:$C$17,0),MATCH('Data Input - Proposed'!BB$7,'Energy Prices'!$F$11:$CR$11,0))/100000,\"\")","v":""},{"$f":"IFERROR(BC88*INDEX('Energy Prices'!$F$12:$CR$17,MATCH('Data Input - Proposed'!$D96,'Energy Prices'!$C$12:$C$17,0),MATCH('Data Input - Proposed'!BC$7,'Energy Prices'!$F$11:$CR$11,0))/100000,\"\")","v":""},{"$f":"IFERROR(BD88*INDEX('Energy Prices'!$F$12:$CR$17,MATCH('Data Input - Proposed'!$D96,'Energy Prices'!$C$12:$C$17,0),MATCH('Data Input - Proposed'!BD$7,'Energy Prices'!$F$11:$CR$11,0))/100000,\"\")","v":""},{"$f":"IFERROR(BE88*INDEX('Energy Prices'!$F$12:$CR$17,MATCH('Data Input - Proposed'!$D96,'Energy Prices'!$C$12:$C$17,0),MATCH('Data Input - Proposed'!BE$7,'Energy Prices'!$F$11:$CR$11,0))/100000,\"\")","v":""},{"$f":"IFERROR(BF88*INDEX('Energy Prices'!$F$12:$CR$17,MATCH('Data Input - Proposed'!$D96,'Energy Prices'!$C$12:$C$17,0),MATCH('Data Input - Proposed'!BF$7,'Energy Prices'!$F$11:$CR$11,0))/100000,\"\")","v":""},{"$f":"IFERROR(BG88*INDEX('Energy Prices'!$F$12:$CR$17,MATCH('Data Input - Proposed'!$D96,'Energy Prices'!$C$12:$C$17,0),MATCH('Data Input - Proposed'!BG$7,'Energy Prices'!$F$11:$CR$11,0))/100000,\"\")","v":""},{"$f":"IFERROR(BH88*INDEX('Energy Prices'!$F$12:$CR$17,MATCH('Data Input - Proposed'!$D96,'Energy Prices'!$C$12:$C$17,0),MATCH('Data Input - Proposed'!BH$7,'Energy Prices'!$F$11:$CR$11,0))/100000,\"\")","v":""},{"$f":"IFERROR(BI88*INDEX('Energy Prices'!$F$12:$CR$17,MATCH('Data Input - Proposed'!$D96,'Energy Prices'!$C$12:$C$17,0),MATCH('Data Input - Proposed'!BI$7,'Energy Prices'!$F$11:$CR$11,0))/100000,\"\")","v":""},{"$f":"IFERROR(BJ88*INDEX('Energy Prices'!$F$12:$CR$17,MATCH('Data Input - Proposed'!$D96,'Energy Prices'!$C$12:$C$17,0),MATCH('Data Input - Proposed'!BJ$7,'Energy Prices'!$F$11:$CR$11,0))/100000,\"\")","v":""},{"$f":"IFERROR(BK88*INDEX('Energy Prices'!$F$12:$CR$17,MATCH('Data Input - Proposed'!$D96,'Energy Prices'!$C$12:$C$17,0),MATCH('Data Input - Proposed'!BK$7,'Energy Prices'!$F$11:$CR$11,0))/100000,\"\")","v":""},{"$f":"IFERROR(BL88*INDEX('Energy Prices'!$F$12:$CR$17,MATCH('Data Input - Proposed'!$D96,'Energy Prices'!$C$12:$C$17,0),MATCH('Data Input - Proposed'!BL$7,'Energy Prices'!$F$11:$CR$11,0))/100000,\"\")","v":""},{"$f":"IFERROR(BM88*INDEX('Energy Prices'!$F$12:$CR$17,MATCH('Data Input - Proposed'!$D96,'Energy Prices'!$C$12:$C$17,0),MATCH('Data Input - Proposed'!BM$7,'Energy Prices'!$F$11:$CR$11,0))/100000,\"\")","v":""},{"$f":"IFERROR(BN88*INDEX('Energy Prices'!$F$12:$CR$17,MATCH('Data Input - Proposed'!$D96,'Energy Prices'!$C$12:$C$17,0),MATCH('Data Input - Proposed'!BN$7,'Energy Prices'!$F$11:$CR$11,0))/100000,\"\")","v":""},{"$f":"IFERROR(BO88*INDEX('Energy Prices'!$F$12:$CR$17,MATCH('Data Input - Proposed'!$D96,'Energy Prices'!$C$12:$C$17,0),MATCH('Data Input - Proposed'!BO$7,'Energy Prices'!$F$11:$CR$11,0))/100000,\"\")","v":""},{"$f":"IFERROR(BP88*INDEX('Energy Prices'!$F$12:$CR$17,MATCH('Data Input - Proposed'!$D96,'Energy Prices'!$C$12:$C$17,0),MATCH('Data Input - Proposed'!BP$7,'Energy Prices'!$F$11:$CR$11,0))/100000,\"\")","v":""},{"$f":"IFERROR(BQ88*INDEX('Energy Prices'!$F$12:$CR$17,MATCH('Data Input - Proposed'!$D96,'Energy Prices'!$C$12:$C$17,0),MATCH('Data Input - Proposed'!BQ$7,'Energy Prices'!$F$11:$CR$11,0))/100000,\"\")","v":""},{"$f":"IFERROR(BR88*INDEX('Energy Prices'!$F$12:$CR$17,MATCH('Data Input - Proposed'!$D96,'Energy Prices'!$C$12:$C$17,0),MATCH('Data Input - Proposed'!BR$7,'Energy Prices'!$F$11:$CR$11,0))/100000,\"\")","v":""},{"$f":"IFERROR(BS88*INDEX('Energy Prices'!$F$12:$CR$17,MATCH('Data Input - Proposed'!$D96,'Energy Prices'!$C$12:$C$17,0),MATCH('Data Input - Proposed'!BS$7,'Energy Prices'!$F$11:$CR$11,0))/100000,\"\")","v":""},{"$f":"IFERROR(BT88*INDEX('Energy Prices'!$F$12:$CR$17,MATCH('Data Input - Proposed'!$D96,'Energy Prices'!$C$12:$C$17,0),MATCH('Data Input - Proposed'!BT$7,'Energy Prices'!$F$11:$CR$11,0))/100000,\"\")","v":""},{"$f":"IFERROR(BU88*INDEX('Energy Prices'!$F$12:$CR$17,MATCH('Data Input - Proposed'!$D96,'Energy Prices'!$C$12:$C$17,0),MATCH('Data Input - Proposed'!BU$7,'Energy Prices'!$F$11:$CR$11,0))/100000,\"\")","v":""},{"$f":"IFERROR(BV88*INDEX('Energy Prices'!$F$12:$CR$17,MATCH('Data Input - Proposed'!$D96,'Energy Prices'!$C$12:$C$17,0),MATCH('Data Input - Proposed'!BV$7,'Energy Prices'!$F$11:$CR$11,0))/100000,\"\")","v":""},{"$f":"IFERROR(BW88*INDEX('Energy Prices'!$F$12:$CR$17,MATCH('Data Input - Proposed'!$D96,'Energy Prices'!$C$12:$C$17,0),MATCH('Data Input - Proposed'!BW$7,'Energy Prices'!$F$11:$CR$11,0))/100000,\"\")","v":""},{"$f":"IFERROR(BX88*INDEX('Energy Prices'!$F$12:$CR$17,MATCH('Data Input - Proposed'!$D96,'Energy Prices'!$C$12:$C$17,0),MATCH('Data Input - Proposed'!BX$7,'Energy Prices'!$F$11:$CR$11,0))/100000,\"\")","v":""},{"$f":"IFERROR(BY88*INDEX('Energy Prices'!$F$12:$CR$17,MATCH('Data Input - Proposed'!$D96,'Energy Prices'!$C$12:$C$17,0),MATCH('Data Input - Proposed'!BY$7,'Energy Prices'!$F$11:$CR$11,0))/100000,\"\")","v":""},{"$f":"IFERROR(BZ88*INDEX('Energy Prices'!$F$12:$CR$17,MATCH('Data Input - Proposed'!$D96,'Energy Prices'!$C$12:$C$17,0),MATCH('Data Input - Proposed'!BZ$7,'Energy Prices'!$F$11:$CR$11,0))/100000,\"\")","v":""},{"$f":"IFERROR(CA88*INDEX('Energy Prices'!$F$12:$CR$17,MATCH('Data Input - Proposed'!$D96,'Energy Prices'!$C$12:$C$17,0),MATCH('Data Input - Proposed'!CA$7,'Energy Prices'!$F$11:$CR$11,0))/100000,\"\")","v":""},{"$f":"IFERROR(CB88*INDEX('Energy Prices'!$F$12:$CR$17,MATCH('Data Input - Proposed'!$D96,'Energy Prices'!$C$12:$C$17,0),MATCH('Data Input - Proposed'!CB$7,'Energy Prices'!$F$11:$CR$11,0))/100000,\"\")","v":""},{"$f":"IFERROR(CC88*INDEX('Energy Prices'!$F$12:$CR$17,MATCH('Data Input - Proposed'!$D96,'Energy Prices'!$C$12:$C$17,0),MATCH('Data Input - Proposed'!CC$7,'Energy Prices'!$F$11:$CR$11,0))/100000,\"\")","v":""},{"$f":"IFERROR(CD88*INDEX('Energy Prices'!$F$12:$CR$17,MATCH('Data Input - Proposed'!$D96,'Energy Prices'!$C$12:$C$17,0),MATCH('Data Input - Proposed'!CD$7,'Energy Prices'!$F$11:$CR$11,0))/100000,\"\")","v":""},{"$f":"IFERROR(CE88*INDEX('Energy Prices'!$F$12:$CR$17,MATCH('Data Input - Proposed'!$D96,'Energy Prices'!$C$12:$C$17,0),MATCH('Data Input - Proposed'!CE$7,'Energy Prices'!$F$11:$CR$11,0))/100000,\"\")","v":""},{"$f":"IFERROR(CF88*INDEX('Energy Prices'!$F$12:$CR$17,MATCH('Data Input - Proposed'!$D96,'Energy Prices'!$C$12:$C$17,0),MATCH('Data Input - Proposed'!CF$7,'Energy Prices'!$F$11:$CR$11,0))/100000,\"\")","v":""},{"$f":"IFERROR(CG88*INDEX('Energy Prices'!$F$12:$CR$17,MATCH('Data Input - Proposed'!$D96,'Energy Prices'!$C$12:$C$17,0),MATCH('Data Input - Proposed'!CG$7,'Energy Prices'!$F$11:$CR$11,0))/100000,\"\")","v":""},{"$f":"IFERROR(CH88*INDEX('Energy Prices'!$F$12:$CR$17,MATCH('Data Input - Proposed'!$D96,'Energy Prices'!$C$12:$C$17,0),MATCH('Data Input - Proposed'!CH$7,'Energy Prices'!$F$11:$CR$11,0))/100000,\"\")","v":""},{"$f":"IFERROR(CI88*INDEX('Energy Prices'!$F$12:$CR$17,MATCH('Data Input - Proposed'!$D96,'Energy Prices'!$C$12:$C$17,0),MATCH('Data Input - Proposed'!CI$7,'Energy Prices'!$F$11:$CR$11,0))/100000,\"\")","v":""},{"$f":"IFERROR(CJ88*INDEX('Energy Prices'!$F$12:$CR$17,MATCH('Data Input - Proposed'!$D96,'Energy Prices'!$C$12:$C$17,0),MATCH('Data Input - Proposed'!CJ$7,'Energy Prices'!$F$11:$CR$11,0))/100000,\"\")","v":""},{"$f":"IFERROR(CK88*INDEX('Energy Prices'!$F$12:$CR$17,MATCH('Data Input - Proposed'!$D96,'Energy Prices'!$C$12:$C$17,0),MATCH('Data Input - Proposed'!CK$7,'Energy Prices'!$F$11:$CR$11,0))/100000,\"\")","v":""},{"$f":"IFERROR(CL88*INDEX('Energy Prices'!$F$12:$CR$17,MATCH('Data Input - Proposed'!$D96,'Energy Prices'!$C$12:$C$17,0),MATCH('Data Input - Proposed'!CL$7,'Energy Prices'!$F$11:$CR$11,0))/100000,\"\")","v":""},{"$f":"IFERROR(CM88*INDEX('Energy Prices'!$F$12:$CR$17,MATCH('Data Input - Proposed'!$D96,'Energy Prices'!$C$12:$C$17,0),MATCH('Data Input - Proposed'!CM$7,'Energy Prices'!$F$11:$CR$11,0))/100000,\"\")","v":""},{"$f":"IFERROR(CN88*INDEX('Energy Prices'!$F$12:$CR$17,MATCH('Data Input - Proposed'!$D96,'Energy Prices'!$C$12:$C$17,0),MATCH('Data Input - Proposed'!CN$7,'Energy Prices'!$F$11:$CR$11,0))/100000,\"\")","v":""},{"$f":"IFERROR(CO88*INDEX('Energy Prices'!$F$12:$CR$17,MATCH('Data Input - Proposed'!$D96,'Energy Prices'!$C$12:$C$17,0),MATCH('Data Input - Proposed'!CO$7,'Energy Prices'!$F$11:$CR$11,0))/100000,\"\")","v":""},{"$f":"IFERROR(CP88*INDEX('Energy Prices'!$F$12:$CR$17,MATCH('Data Input - Proposed'!$D96,'Energy Prices'!$C$12:$C$17,0),MATCH('Data Input - Proposed'!CP$7,'Energy Prices'!$F$11:$CR$11,0))/100000,\"\")","v":""},{"$f":"IFERROR(CQ88*INDEX('Energy Prices'!$F$12:$CR$17,MATCH('Data Input - Proposed'!$D96,'Energy Prices'!$C$12:$C$17,0),MATCH('Data Input - Proposed'!CQ$7,'Energy Prices'!$F$11:$CR$11,0))/100000,\"\")","v":""},{"$f":"IFERROR(CR88*INDEX('Energy Prices'!$F$12:$CR$17,MATCH('Data Input - Proposed'!$D96,'Energy Prices'!$C$12:$C$17,0),MATCH('Data Input - Proposed'!CR$7,'Energy Prices'!$F$11:$CR$11,0))/100000,\"\")","v":""},{"$f":"IFERROR(CS88*INDEX('Energy Prices'!$F$12:$CR$17,MATCH('Data Input - Proposed'!$D96,'Energy Prices'!$C$12:$C$17,0),MATCH('Data Input - Proposed'!CS$7,'Energy Prices'!$F$11:$CR$11,0))/100000,\"\")","v":""},{"$f":"IFERROR(CT88*INDEX('Energy Prices'!$F$12:$CR$17,MATCH('Data Input - Proposed'!$D96,'Energy Prices'!$C$12:$C$17,0),MATCH('Data Input - Proposed'!CT$7,'Energy Prices'!$F$11:$CR$11,0))/100000,\"\")","v":""},{"$f":"IFERROR(CU88*INDEX('Energy Prices'!$F$12:$CR$17,MATCH('Data Input - Proposed'!$D96,'Energy Prices'!$C$12:$C$17,0),MATCH('Data Input - Proposed'!CU$7,'Energy Prices'!$F$11:$CR$11,0))/100000,\"\")","v":""},{"$f":"IFERROR(CV88*INDEX('Energy Prices'!$F$12:$CR$17,MATCH('Data Input - Proposed'!$D96,'Energy Prices'!$C$12:$C$17,0),MATCH('Data Input - Proposed'!CV$7,'Energy Prices'!$F$11:$CR$11,0))/100000,\"\")","v":""},{"$f":"IFERROR(CW88*INDEX('Energy Prices'!$F$12:$CR$17,MATCH('Data Input - Proposed'!$D96,'Energy Prices'!$C$12:$C$17,0),MATCH('Data Input - Proposed'!CW$7,'Energy Prices'!$F$11:$CR$11,0))/100000,\"\")","v":""},{"$f":"IFERROR(CX88*INDEX('Energy Prices'!$F$12:$CR$17,MATCH('Data Input - Proposed'!$D96,'Energy Prices'!$C$12:$C$17,0),MATCH('Data Input - Proposed'!CX$7,'Energy Prices'!$F$11:$CR$11,0))/100000,\"\")","v":""},{"$f":"IFERROR(CY88*INDEX('Energy Prices'!$F$12:$CR$17,MATCH('Data Input - Proposed'!$D96,'Energy Prices'!$C$12:$C$17,0),MATCH('Data Input - Proposed'!CY$7,'Energy Prices'!$F$11:$CR$11,0))/100000,\"\")","v":""},{"$f":"IFERROR(CZ88*INDEX('Energy Prices'!$F$12:$CR$17,MATCH('Data Input - Proposed'!$D96,'Energy Prices'!$C$12:$C$17,0),MATCH('Data Input - Proposed'!CZ$7,'Energy Prices'!$F$11:$CR$11,0))/100000,\"\")","v":""},{"$f":"IFERROR(DA88*INDEX('Energy Prices'!$F$12:$CR$17,MATCH('Data Input - Proposed'!$D96,'Energy Prices'!$C$12:$C$17,0),MATCH('Data Input - Proposed'!DA$7,'Energy Prices'!$F$11:$CR$11,0))/100000,\"\")","v":""},{"$f":"IFERROR(DB88*INDEX('Energy Prices'!$F$12:$CR$17,MATCH('Data Input - Proposed'!$D96,'Energy Prices'!$C$12:$C$17,0),MATCH('Data Input - Proposed'!DB$7,'Energy Prices'!$F$11:$CR$11,0))/100000,\"\")","v":""},{"$f":"IFERROR(DC88*INDEX('Energy Prices'!$F$12:$CR$17,MATCH('Data Input - Proposed'!$D96,'Energy Prices'!$C$12:$C$17,0),MATCH('Data Input - Proposed'!DC$7,'Energy Prices'!$F$11:$CR$11,0))/100000,\"\")","v":""}]
[null,null,null,"Road - Diesel","£000's","(Auto calculated value)",null,{"$f":"IFERROR(H89*INDEX('Energy Prices'!$F$12:$CR$17,MATCH('Data Input - Proposed'!$D97,'Energy Prices'!$C$12:$C$17,0),MATCH('Data Input - Proposed'!H$7,'Energy Prices'!$F$11:$CR$11,0))/100000,\"\")","v":0},{"$f":"IFERROR(I89*INDEX('Energy Prices'!$F$12:$CR$17,MATCH('Data Input - Proposed'!$D97,'Energy Prices'!$C$12:$C$17,0),MATCH('Data Input - Proposed'!I$7,'Energy Prices'!$F$11:$CR$11,0))/100000,\"\")","v":0},{"$f":"IFERROR(J89*INDEX('Energy Prices'!$F$12:$CR$17,MATCH('Data Input - Proposed'!$D97,'Energy Prices'!$C$12:$C$17,0),MATCH('Data Input - Proposed'!J$7,'Energy Prices'!$F$11:$CR$11,0))/100000,\"\")","v":0},{"$f":"IFERROR(K89*INDEX('Energy Prices'!$F$12:$CR$17,MATCH('Data Input - Proposed'!$D97,'Energy Prices'!$C$12:$C$17,0),MATCH('Data Input - Proposed'!K$7,'Energy Prices'!$F$11:$CR$11,0))/100000,\"\")","v":0},{"$f":"IFERROR(L89*INDEX('Energy Prices'!$F$12:$CR$17,MATCH('Data Input - Proposed'!$D97,'Energy Prices'!$C$12:$C$17,0),MATCH('Data Input - Proposed'!L$7,'Energy Prices'!$F$11:$CR$11,0))/100000,\"\")","v":0},{"$f":"IFERROR(M89*INDEX('Energy Prices'!$F$12:$CR$17,MATCH('Data Input - Proposed'!$D97,'Energy Prices'!$C$12:$C$17,0),MATCH('Data Input - Proposed'!M$7,'Energy Prices'!$F$11:$CR$11,0))/100000,\"\")","v":0},{"$f":"IFERROR(N89*INDEX('Energy Prices'!$F$12:$CR$17,MATCH('Data Input - Proposed'!$D97,'Energy Prices'!$C$12:$C$17,0),MATCH('Data Input - Proposed'!N$7,'Energy Prices'!$F$11:$CR$11,0))/100000,\"\")","v":0},{"$f":"IFERROR(O89*INDEX('Energy Prices'!$F$12:$CR$17,MATCH('Data Input - Proposed'!$D97,'Energy Prices'!$C$12:$C$17,0),MATCH('Data Input - Proposed'!O$7,'Energy Prices'!$F$11:$CR$11,0))/100000,\"\")","v":0},{"$f":"IFERROR(P89*INDEX('Energy Prices'!$F$12:$CR$17,MATCH('Data Input - Proposed'!$D97,'Energy Prices'!$C$12:$C$17,0),MATCH('Data Input - Proposed'!P$7,'Energy Prices'!$F$11:$CR$11,0))/100000,\"\")","v":0},{"$f":"IFERROR(Q89*INDEX('Energy Prices'!$F$12:$CR$17,MATCH('Data Input - Proposed'!$D97,'Energy Prices'!$C$12:$C$17,0),MATCH('Data Input - Proposed'!Q$7,'Energy Prices'!$F$11:$CR$11,0))/100000,\"\")","v":0},{"$f":"IFERROR(R89*INDEX('Energy Prices'!$F$12:$CR$17,MATCH('Data Input - Proposed'!$D97,'Energy Prices'!$C$12:$C$17,0),MATCH('Data Input - Proposed'!R$7,'Energy Prices'!$F$11:$CR$11,0))/100000,\"\")","v":0},{"$f":"IFERROR(S89*INDEX('Energy Prices'!$F$12:$CR$17,MATCH('Data Input - Proposed'!$D97,'Energy Prices'!$C$12:$C$17,0),MATCH('Data Input - Proposed'!S$7,'Energy Prices'!$F$11:$CR$11,0))/100000,\"\")","v":0},{"$f":"IFERROR(T89*INDEX('Energy Prices'!$F$12:$CR$17,MATCH('Data Input - Proposed'!$D97,'Energy Prices'!$C$12:$C$17,0),MATCH('Data Input - Proposed'!T$7,'Energy Prices'!$F$11:$CR$11,0))/100000,\"\")","v":0},{"$f":"IFERROR(U89*INDEX('Energy Prices'!$F$12:$CR$17,MATCH('Data Input - Proposed'!$D97,'Energy Prices'!$C$12:$C$17,0),MATCH('Data Input - Proposed'!U$7,'Energy Prices'!$F$11:$CR$11,0))/100000,\"\")","v":0},{"$f":"IFERROR(V89*INDEX('Energy Prices'!$F$12:$CR$17,MATCH('Data Input - Proposed'!$D97,'Energy Prices'!$C$12:$C$17,0),MATCH('Data Input - Proposed'!V$7,'Energy Prices'!$F$11:$CR$11,0))/100000,\"\")","v":0},{"$f":"IFERROR(W89*INDEX('Energy Prices'!$F$12:$CR$17,MATCH('Data Input - Proposed'!$D97,'Energy Prices'!$C$12:$C$17,0),MATCH('Data Input - Proposed'!W$7,'Energy Prices'!$F$11:$CR$11,0))/100000,\"\")","v":0},{"$f":"IFERROR(X89*INDEX('Energy Prices'!$F$12:$CR$17,MATCH('Data Input - Proposed'!$D97,'Energy Prices'!$C$12:$C$17,0),MATCH('Data Input - Proposed'!X$7,'Energy Prices'!$F$11:$CR$11,0))/100000,\"\")","v":0},{"$f":"IFERROR(Y89*INDEX('Energy Prices'!$F$12:$CR$17,MATCH('Data Input - Proposed'!$D97,'Energy Prices'!$C$12:$C$17,0),MATCH('Data Input - Proposed'!Y$7,'Energy Prices'!$F$11:$CR$11,0))/100000,\"\")","v":0},{"$f":"IFERROR(Z89*INDEX('Energy Prices'!$F$12:$CR$17,MATCH('Data Input - Proposed'!$D97,'Energy Prices'!$C$12:$C$17,0),MATCH('Data Input - Proposed'!Z$7,'Energy Prices'!$F$11:$CR$11,0))/100000,\"\")","v":0},{"$f":"IFERROR(AA89*INDEX('Energy Prices'!$F$12:$CR$17,MATCH('Data Input - Proposed'!$D97,'Energy Prices'!$C$12:$C$17,0),MATCH('Data Input - Proposed'!AA$7,'Energy Prices'!$F$11:$CR$11,0))/100000,\"\")","v":0},{"$f":"IFERROR(AB89*INDEX('Energy Prices'!$F$12:$CR$17,MATCH('Data Input - Proposed'!$D97,'Energy Prices'!$C$12:$C$17,0),MATCH('Data Input - Proposed'!AB$7,'Energy Prices'!$F$11:$CR$11,0))/100000,\"\")","v":0},{"$f":"IFERROR(AC89*INDEX('Energy Prices'!$F$12:$CR$17,MATCH('Data Input - Proposed'!$D97,'Energy Prices'!$C$12:$C$17,0),MATCH('Data Input - Proposed'!AC$7,'Energy Prices'!$F$11:$CR$11,0))/100000,\"\")","v":0},{"$f":"IFERROR(AD89*INDEX('Energy Prices'!$F$12:$CR$17,MATCH('Data Input - Proposed'!$D97,'Energy Prices'!$C$12:$C$17,0),MATCH('Data Input - Proposed'!AD$7,'Energy Prices'!$F$11:$CR$11,0))/100000,\"\")","v":0},{"$f":"IFERROR(AE89*INDEX('Energy Prices'!$F$12:$CR$17,MATCH('Data Input - Proposed'!$D97,'Energy Prices'!$C$12:$C$17,0),MATCH('Data Input - Proposed'!AE$7,'Energy Prices'!$F$11:$CR$11,0))/100000,\"\")","v":0},{"$f":"IFERROR(AF89*INDEX('Energy Prices'!$F$12:$CR$17,MATCH('Data Input - Proposed'!$D97,'Energy Prices'!$C$12:$C$17,0),MATCH('Data Input - Proposed'!AF$7,'Energy Prices'!$F$11:$CR$11,0))/100000,\"\")","v":0},{"$f":"IFERROR(AG89*INDEX('Energy Prices'!$F$12:$CR$17,MATCH('Data Input - Proposed'!$D97,'Energy Prices'!$C$12:$C$17,0),MATCH('Data Input - Proposed'!AG$7,'Energy Prices'!$F$11:$CR$11,0))/100000,\"\")","v":0},{"$f":"IFERROR(AH89*INDEX('Energy Prices'!$F$12:$CR$17,MATCH('Data Input - Proposed'!$D97,'Energy Prices'!$C$12:$C$17,0),MATCH('Data Input - Proposed'!AH$7,'Energy Prices'!$F$11:$CR$11,0))/100000,\"\")","v":0},{"$f":"IFERROR(AI89*INDEX('Energy Prices'!$F$12:$CR$17,MATCH('Data Input - Proposed'!$D97,'Energy Prices'!$C$12:$C$17,0),MATCH('Data Input - Proposed'!AI$7,'Energy Prices'!$F$11:$CR$11,0))/100000,\"\")","v":0},{"$f":"IFERROR(AJ89*INDEX('Energy Prices'!$F$12:$CR$17,MATCH('Data Input - Proposed'!$D97,'Energy Prices'!$C$12:$C$17,0),MATCH('Data Input - Proposed'!AJ$7,'Energy Prices'!$F$11:$CR$11,0))/100000,\"\")","v":0},{"$f":"IFERROR(AK89*INDEX('Energy Prices'!$F$12:$CR$17,MATCH('Data Input - Proposed'!$D97,'Energy Prices'!$C$12:$C$17,0),MATCH('Data Input - Proposed'!AK$7,'Energy Prices'!$F$11:$CR$11,0))/100000,\"\")","v":0},{"$f":"IFERROR(AL89*INDEX('Energy Prices'!$F$12:$CR$17,MATCH('Data Input - Proposed'!$D97,'Energy Prices'!$C$12:$C$17,0),MATCH('Data Input - Proposed'!AL$7,'Energy Prices'!$F$11:$CR$11,0))/100000,\"\")","v":0},{"$f":"IFERROR(AM89*INDEX('Energy Prices'!$F$12:$CR$17,MATCH('Data Input - Proposed'!$D97,'Energy Prices'!$C$12:$C$17,0),MATCH('Data Input - Proposed'!AM$7,'Energy Prices'!$F$11:$CR$11,0))/100000,\"\")","v":""},{"$f":"IFERROR(AN89*INDEX('Energy Prices'!$F$12:$CR$17,MATCH('Data Input - Proposed'!$D97,'Energy Prices'!$C$12:$C$17,0),MATCH('Data Input - Proposed'!AN$7,'Energy Prices'!$F$11:$CR$11,0))/100000,\"\")","v":""},{"$f":"IFERROR(AO89*INDEX('Energy Prices'!$F$12:$CR$17,MATCH('Data Input - Proposed'!$D97,'Energy Prices'!$C$12:$C$17,0),MATCH('Data Input - Proposed'!AO$7,'Energy Prices'!$F$11:$CR$11,0))/100000,\"\")","v":""},{"$f":"IFERROR(AP89*INDEX('Energy Prices'!$F$12:$CR$17,MATCH('Data Input - Proposed'!$D97,'Energy Prices'!$C$12:$C$17,0),MATCH('Data Input - Proposed'!AP$7,'Energy Prices'!$F$11:$CR$11,0))/100000,\"\")","v":""},{"$f":"IFERROR(AQ89*INDEX('Energy Prices'!$F$12:$CR$17,MATCH('Data Input - Proposed'!$D97,'Energy Prices'!$C$12:$C$17,0),MATCH('Data Input - Proposed'!AQ$7,'Energy Prices'!$F$11:$CR$11,0))/100000,\"\")","v":""},{"$f":"IFERROR(AR89*INDEX('Energy Prices'!$F$12:$CR$17,MATCH('Data Input - Proposed'!$D97,'Energy Prices'!$C$12:$C$17,0),MATCH('Data Input - Proposed'!AR$7,'Energy Prices'!$F$11:$CR$11,0))/100000,\"\")","v":""},{"$f":"IFERROR(AS89*INDEX('Energy Prices'!$F$12:$CR$17,MATCH('Data Input - Proposed'!$D97,'Energy Prices'!$C$12:$C$17,0),MATCH('Data Input - Proposed'!AS$7,'Energy Prices'!$F$11:$CR$11,0))/100000,\"\")","v":""},{"$f":"IFERROR(AT89*INDEX('Energy Prices'!$F$12:$CR$17,MATCH('Data Input - Proposed'!$D97,'Energy Prices'!$C$12:$C$17,0),MATCH('Data Input - Proposed'!AT$7,'Energy Prices'!$F$11:$CR$11,0))/100000,\"\")","v":""},{"$f":"IFERROR(AU89*INDEX('Energy Prices'!$F$12:$CR$17,MATCH('Data Input - Proposed'!$D97,'Energy Prices'!$C$12:$C$17,0),MATCH('Data Input - Proposed'!AU$7,'Energy Prices'!$F$11:$CR$11,0))/100000,\"\")","v":""},{"$f":"IFERROR(AV89*INDEX('Energy Prices'!$F$12:$CR$17,MATCH('Data Input - Proposed'!$D97,'Energy Prices'!$C$12:$C$17,0),MATCH('Data Input - Proposed'!AV$7,'Energy Prices'!$F$11:$CR$11,0))/100000,\"\")","v":""},{"$f":"IFERROR(AW89*INDEX('Energy Prices'!$F$12:$CR$17,MATCH('Data Input - Proposed'!$D97,'Energy Prices'!$C$12:$C$17,0),MATCH('Data Input - Proposed'!AW$7,'Energy Prices'!$F$11:$CR$11,0))/100000,\"\")","v":""},{"$f":"IFERROR(AX89*INDEX('Energy Prices'!$F$12:$CR$17,MATCH('Data Input - Proposed'!$D97,'Energy Prices'!$C$12:$C$17,0),MATCH('Data Input - Proposed'!AX$7,'Energy Prices'!$F$11:$CR$11,0))/100000,\"\")","v":""},{"$f":"IFERROR(AY89*INDEX('Energy Prices'!$F$12:$CR$17,MATCH('Data Input - Proposed'!$D97,'Energy Prices'!$C$12:$C$17,0),MATCH('Data Input - Proposed'!AY$7,'Energy Prices'!$F$11:$CR$11,0))/100000,\"\")","v":""},{"$f":"IFERROR(AZ89*INDEX('Energy Prices'!$F$12:$CR$17,MATCH('Data Input - Proposed'!$D97,'Energy Prices'!$C$12:$C$17,0),MATCH('Data Input - Proposed'!AZ$7,'Energy Prices'!$F$11:$CR$11,0))/100000,\"\")","v":""},{"$f":"IFERROR(BA89*INDEX('Energy Prices'!$F$12:$CR$17,MATCH('Data Input - Proposed'!$D97,'Energy Prices'!$C$12:$C$17,0),MATCH('Data Input - Proposed'!BA$7,'Energy Prices'!$F$11:$CR$11,0))/100000,\"\")","v":""},{"$f":"IFERROR(BB89*INDEX('Energy Prices'!$F$12:$CR$17,MATCH('Data Input - Proposed'!$D97,'Energy Prices'!$C$12:$C$17,0),MATCH('Data Input - Proposed'!BB$7,'Energy Prices'!$F$11:$CR$11,0))/100000,\"\")","v":""},{"$f":"IFERROR(BC89*INDEX('Energy Prices'!$F$12:$CR$17,MATCH('Data Input - Proposed'!$D97,'Energy Prices'!$C$12:$C$17,0),MATCH('Data Input - Proposed'!BC$7,'Energy Prices'!$F$11:$CR$11,0))/100000,\"\")","v":""},{"$f":"IFERROR(BD89*INDEX('Energy Prices'!$F$12:$CR$17,MATCH('Data Input - Proposed'!$D97,'Energy Prices'!$C$12:$C$17,0),MATCH('Data Input - Proposed'!BD$7,'Energy Prices'!$F$11:$CR$11,0))/100000,\"\")","v":""},{"$f":"IFERROR(BE89*INDEX('Energy Prices'!$F$12:$CR$17,MATCH('Data Input - Proposed'!$D97,'Energy Prices'!$C$12:$C$17,0),MATCH('Data Input - Proposed'!BE$7,'Energy Prices'!$F$11:$CR$11,0))/100000,\"\")","v":""},{"$f":"IFERROR(BF89*INDEX('Energy Prices'!$F$12:$CR$17,MATCH('Data Input - Proposed'!$D97,'Energy Prices'!$C$12:$C$17,0),MATCH('Data Input - Proposed'!BF$7,'Energy Prices'!$F$11:$CR$11,0))/100000,\"\")","v":""},{"$f":"IFERROR(BG89*INDEX('Energy Prices'!$F$12:$CR$17,MATCH('Data Input - Proposed'!$D97,'Energy Prices'!$C$12:$C$17,0),MATCH('Data Input - Proposed'!BG$7,'Energy Prices'!$F$11:$CR$11,0))/100000,\"\")","v":""},{"$f":"IFERROR(BH89*INDEX('Energy Prices'!$F$12:$CR$17,MATCH('Data Input - Proposed'!$D97,'Energy Prices'!$C$12:$C$17,0),MATCH('Data Input - Proposed'!BH$7,'Energy Prices'!$F$11:$CR$11,0))/100000,\"\")","v":""},{"$f":"IFERROR(BI89*INDEX('Energy Prices'!$F$12:$CR$17,MATCH('Data Input - Proposed'!$D97,'Energy Prices'!$C$12:$C$17,0),MATCH('Data Input - Proposed'!BI$7,'Energy Prices'!$F$11:$CR$11,0))/100000,\"\")","v":""},{"$f":"IFERROR(BJ89*INDEX('Energy Prices'!$F$12:$CR$17,MATCH('Data Input - Proposed'!$D97,'Energy Prices'!$C$12:$C$17,0),MATCH('Data Input - Proposed'!BJ$7,'Energy Prices'!$F$11:$CR$11,0))/100000,\"\")","v":""},{"$f":"IFERROR(BK89*INDEX('Energy Prices'!$F$12:$CR$17,MATCH('Data Input - Proposed'!$D97,'Energy Prices'!$C$12:$C$17,0),MATCH('Data Input - Proposed'!BK$7,'Energy Prices'!$F$11:$CR$11,0))/100000,\"\")","v":""},{"$f":"IFERROR(BL89*INDEX('Energy Prices'!$F$12:$CR$17,MATCH('Data Input - Proposed'!$D97,'Energy Prices'!$C$12:$C$17,0),MATCH('Data Input - Proposed'!BL$7,'Energy Prices'!$F$11:$CR$11,0))/100000,\"\")","v":""},{"$f":"IFERROR(BM89*INDEX('Energy Prices'!$F$12:$CR$17,MATCH('Data Input - Proposed'!$D97,'Energy Prices'!$C$12:$C$17,0),MATCH('Data Input - Proposed'!BM$7,'Energy Prices'!$F$11:$CR$11,0))/100000,\"\")","v":""},{"$f":"IFERROR(BN89*INDEX('Energy Prices'!$F$12:$CR$17,MATCH('Data Input - Proposed'!$D97,'Energy Prices'!$C$12:$C$17,0),MATCH('Data Input - Proposed'!BN$7,'Energy Prices'!$F$11:$CR$11,0))/100000,\"\")","v":""},{"$f":"IFERROR(BO89*INDEX('Energy Prices'!$F$12:$CR$17,MATCH('Data Input - Proposed'!$D97,'Energy Prices'!$C$12:$C$17,0),MATCH('Data Input - Proposed'!BO$7,'Energy Prices'!$F$11:$CR$11,0))/100000,\"\")","v":""},{"$f":"IFERROR(BP89*INDEX('Energy Prices'!$F$12:$CR$17,MATCH('Data Input - Proposed'!$D97,'Energy Prices'!$C$12:$C$17,0),MATCH('Data Input - Proposed'!BP$7,'Energy Prices'!$F$11:$CR$11,0))/100000,\"\")","v":""},{"$f":"IFERROR(BQ89*INDEX('Energy Prices'!$F$12:$CR$17,MATCH('Data Input - Proposed'!$D97,'Energy Prices'!$C$12:$C$17,0),MATCH('Data Input - Proposed'!BQ$7,'Energy Prices'!$F$11:$CR$11,0))/100000,\"\")","v":""},{"$f":"IFERROR(BR89*INDEX('Energy Prices'!$F$12:$CR$17,MATCH('Data Input - Proposed'!$D97,'Energy Prices'!$C$12:$C$17,0),MATCH('Data Input - Proposed'!BR$7,'Energy Prices'!$F$11:$CR$11,0))/100000,\"\")","v":""},{"$f":"IFERROR(BS89*INDEX('Energy Prices'!$F$12:$CR$17,MATCH('Data Input - Proposed'!$D97,'Energy Prices'!$C$12:$C$17,0),MATCH('Data Input - Proposed'!BS$7,'Energy Prices'!$F$11:$CR$11,0))/100000,\"\")","v":""},{"$f":"IFERROR(BT89*INDEX('Energy Prices'!$F$12:$CR$17,MATCH('Data Input - Proposed'!$D97,'Energy Prices'!$C$12:$C$17,0),MATCH('Data Input - Proposed'!BT$7,'Energy Prices'!$F$11:$CR$11,0))/100000,\"\")","v":""},{"$f":"IFERROR(BU89*INDEX('Energy Prices'!$F$12:$CR$17,MATCH('Data Input - Proposed'!$D97,'Energy Prices'!$C$12:$C$17,0),MATCH('Data Input - Proposed'!BU$7,'Energy Prices'!$F$11:$CR$11,0))/100000,\"\")","v":""},{"$f":"IFERROR(BV89*INDEX('Energy Prices'!$F$12:$CR$17,MATCH('Data Input - Proposed'!$D97,'Energy Prices'!$C$12:$C$17,0),MATCH('Data Input - Proposed'!BV$7,'Energy Prices'!$F$11:$CR$11,0))/100000,\"\")","v":""},{"$f":"IFERROR(BW89*INDEX('Energy Prices'!$F$12:$CR$17,MATCH('Data Input - Proposed'!$D97,'Energy Prices'!$C$12:$C$17,0),MATCH('Data Input - Proposed'!BW$7,'Energy Prices'!$F$11:$CR$11,0))/100000,\"\")","v":""},{"$f":"IFERROR(BX89*INDEX('Energy Prices'!$F$12:$CR$17,MATCH('Data Input - Proposed'!$D97,'Energy Prices'!$C$12:$C$17,0),MATCH('Data Input - Proposed'!BX$7,'Energy Prices'!$F$11:$CR$11,0))/100000,\"\")","v":""},{"$f":"IFERROR(BY89*INDEX('Energy Prices'!$F$12:$CR$17,MATCH('Data Input - Proposed'!$D97,'Energy Prices'!$C$12:$C$17,0),MATCH('Data Input - Proposed'!BY$7,'Energy Prices'!$F$11:$CR$11,0))/100000,\"\")","v":""},{"$f":"IFERROR(BZ89*INDEX('Energy Prices'!$F$12:$CR$17,MATCH('Data Input - Proposed'!$D97,'Energy Prices'!$C$12:$C$17,0),MATCH('Data Input - Proposed'!BZ$7,'Energy Prices'!$F$11:$CR$11,0))/100000,\"\")","v":""},{"$f":"IFERROR(CA89*INDEX('Energy Prices'!$F$12:$CR$17,MATCH('Data Input - Proposed'!$D97,'Energy Prices'!$C$12:$C$17,0),MATCH('Data Input - Proposed'!CA$7,'Energy Prices'!$F$11:$CR$11,0))/100000,\"\")","v":""},{"$f":"IFERROR(CB89*INDEX('Energy Prices'!$F$12:$CR$17,MATCH('Data Input - Proposed'!$D97,'Energy Prices'!$C$12:$C$17,0),MATCH('Data Input - Proposed'!CB$7,'Energy Prices'!$F$11:$CR$11,0))/100000,\"\")","v":""},{"$f":"IFERROR(CC89*INDEX('Energy Prices'!$F$12:$CR$17,MATCH('Data Input - Proposed'!$D97,'Energy Prices'!$C$12:$C$17,0),MATCH('Data Input - Proposed'!CC$7,'Energy Prices'!$F$11:$CR$11,0))/100000,\"\")","v":""},{"$f":"IFERROR(CD89*INDEX('Energy Prices'!$F$12:$CR$17,MATCH('Data Input - Proposed'!$D97,'Energy Prices'!$C$12:$C$17,0),MATCH('Data Input - Proposed'!CD$7,'Energy Prices'!$F$11:$CR$11,0))/100000,\"\")","v":""},{"$f":"IFERROR(CE89*INDEX('Energy Prices'!$F$12:$CR$17,MATCH('Data Input - Proposed'!$D97,'Energy Prices'!$C$12:$C$17,0),MATCH('Data Input - Proposed'!CE$7,'Energy Prices'!$F$11:$CR$11,0))/100000,\"\")","v":""},{"$f":"IFERROR(CF89*INDEX('Energy Prices'!$F$12:$CR$17,MATCH('Data Input - Proposed'!$D97,'Energy Prices'!$C$12:$C$17,0),MATCH('Data Input - Proposed'!CF$7,'Energy Prices'!$F$11:$CR$11,0))/100000,\"\")","v":""},{"$f":"IFERROR(CG89*INDEX('Energy Prices'!$F$12:$CR$17,MATCH('Data Input - Proposed'!$D97,'Energy Prices'!$C$12:$C$17,0),MATCH('Data Input - Proposed'!CG$7,'Energy Prices'!$F$11:$CR$11,0))/100000,\"\")","v":""},{"$f":"IFERROR(CH89*INDEX('Energy Prices'!$F$12:$CR$17,MATCH('Data Input - Proposed'!$D97,'Energy Prices'!$C$12:$C$17,0),MATCH('Data Input - Proposed'!CH$7,'Energy Prices'!$F$11:$CR$11,0))/100000,\"\")","v":""},{"$f":"IFERROR(CI89*INDEX('Energy Prices'!$F$12:$CR$17,MATCH('Data Input - Proposed'!$D97,'Energy Prices'!$C$12:$C$17,0),MATCH('Data Input - Proposed'!CI$7,'Energy Prices'!$F$11:$CR$11,0))/100000,\"\")","v":""},{"$f":"IFERROR(CJ89*INDEX('Energy Prices'!$F$12:$CR$17,MATCH('Data Input - Proposed'!$D97,'Energy Prices'!$C$12:$C$17,0),MATCH('Data Input - Proposed'!CJ$7,'Energy Prices'!$F$11:$CR$11,0))/100000,\"\")","v":""},{"$f":"IFERROR(CK89*INDEX('Energy Prices'!$F$12:$CR$17,MATCH('Data Input - Proposed'!$D97,'Energy Prices'!$C$12:$C$17,0),MATCH('Data Input - Proposed'!CK$7,'Energy Prices'!$F$11:$CR$11,0))/100000,\"\")","v":""},{"$f":"IFERROR(CL89*INDEX('Energy Prices'!$F$12:$CR$17,MATCH('Data Input - Proposed'!$D97,'Energy Prices'!$C$12:$C$17,0),MATCH('Data Input - Proposed'!CL$7,'Energy Prices'!$F$11:$CR$11,0))/100000,\"\")","v":""},{"$f":"IFERROR(CM89*INDEX('Energy Prices'!$F$12:$CR$17,MATCH('Data Input - Proposed'!$D97,'Energy Prices'!$C$12:$C$17,0),MATCH('Data Input - Proposed'!CM$7,'Energy Prices'!$F$11:$CR$11,0))/100000,\"\")","v":""},{"$f":"IFERROR(CN89*INDEX('Energy Prices'!$F$12:$CR$17,MATCH('Data Input - Proposed'!$D97,'Energy Prices'!$C$12:$C$17,0),MATCH('Data Input - Proposed'!CN$7,'Energy Prices'!$F$11:$CR$11,0))/100000,\"\")","v":""},{"$f":"IFERROR(CO89*INDEX('Energy Prices'!$F$12:$CR$17,MATCH('Data Input - Proposed'!$D97,'Energy Prices'!$C$12:$C$17,0),MATCH('Data Input - Proposed'!CO$7,'Energy Prices'!$F$11:$CR$11,0))/100000,\"\")","v":""},{"$f":"IFERROR(CP89*INDEX('Energy Prices'!$F$12:$CR$17,MATCH('Data Input - Proposed'!$D97,'Energy Prices'!$C$12:$C$17,0),MATCH('Data Input - Proposed'!CP$7,'Energy Prices'!$F$11:$CR$11,0))/100000,\"\")","v":""},{"$f":"IFERROR(CQ89*INDEX('Energy Prices'!$F$12:$CR$17,MATCH('Data Input - Proposed'!$D97,'Energy Prices'!$C$12:$C$17,0),MATCH('Data Input - Proposed'!CQ$7,'Energy Prices'!$F$11:$CR$11,0))/100000,\"\")","v":""},{"$f":"IFERROR(CR89*INDEX('Energy Prices'!$F$12:$CR$17,MATCH('Data Input - Proposed'!$D97,'Energy Prices'!$C$12:$C$17,0),MATCH('Data Input - Proposed'!CR$7,'Energy Prices'!$F$11:$CR$11,0))/100000,\"\")","v":""},{"$f":"IFERROR(CS89*INDEX('Energy Prices'!$F$12:$CR$17,MATCH('Data Input - Proposed'!$D97,'Energy Prices'!$C$12:$C$17,0),MATCH('Data Input - Proposed'!CS$7,'Energy Prices'!$F$11:$CR$11,0))/100000,\"\")","v":""},{"$f":"IFERROR(CT89*INDEX('Energy Prices'!$F$12:$CR$17,MATCH('Data Input - Proposed'!$D97,'Energy Prices'!$C$12:$C$17,0),MATCH('Data Input - Proposed'!CT$7,'Energy Prices'!$F$11:$CR$11,0))/100000,\"\")","v":""},{"$f":"IFERROR(CU89*INDEX('Energy Prices'!$F$12:$CR$17,MATCH('Data Input - Proposed'!$D97,'Energy Prices'!$C$12:$C$17,0),MATCH('Data Input - Proposed'!CU$7,'Energy Prices'!$F$11:$CR$11,0))/100000,\"\")","v":""},{"$f":"IFERROR(CV89*INDEX('Energy Prices'!$F$12:$CR$17,MATCH('Data Input - Proposed'!$D97,'Energy Prices'!$C$12:$C$17,0),MATCH('Data Input - Proposed'!CV$7,'Energy Prices'!$F$11:$CR$11,0))/100000,\"\")","v":""},{"$f":"IFERROR(CW89*INDEX('Energy Prices'!$F$12:$CR$17,MATCH('Data Input - Proposed'!$D97,'Energy Prices'!$C$12:$C$17,0),MATCH('Data Input - Proposed'!CW$7,'Energy Prices'!$F$11:$CR$11,0))/100000,\"\")","v":""},{"$f":"IFERROR(CX89*INDEX('Energy Prices'!$F$12:$CR$17,MATCH('Data Input - Proposed'!$D97,'Energy Prices'!$C$12:$C$17,0),MATCH('Data Input - Proposed'!CX$7,'Energy Prices'!$F$11:$CR$11,0))/100000,\"\")","v":""},{"$f":"IFERROR(CY89*INDEX('Energy Prices'!$F$12:$CR$17,MATCH('Data Input - Proposed'!$D97,'Energy Prices'!$C$12:$C$17,0),MATCH('Data Input - Proposed'!CY$7,'Energy Prices'!$F$11:$CR$11,0))/100000,\"\")","v":""},{"$f":"IFERROR(CZ89*INDEX('Energy Prices'!$F$12:$CR$17,MATCH('Data Input - Proposed'!$D97,'Energy Prices'!$C$12:$C$17,0),MATCH('Data Input - Proposed'!CZ$7,'Energy Prices'!$F$11:$CR$11,0))/100000,\"\")","v":""},{"$f":"IFERROR(DA89*INDEX('Energy Prices'!$F$12:$CR$17,MATCH('Data Input - Proposed'!$D97,'Energy Prices'!$C$12:$C$17,0),MATCH('Data Input - Proposed'!DA$7,'Energy Prices'!$F$11:$CR$11,0))/100000,\"\")","v":""},{"$f":"IFERROR(DB89*INDEX('Energy Prices'!$F$12:$CR$17,MATCH('Data Input - Proposed'!$D97,'Energy Prices'!$C$12:$C$17,0),MATCH('Data Input - Proposed'!DB$7,'Energy Prices'!$F$11:$CR$11,0))/100000,\"\")","v":""},{"$f":"IFERROR(DC89*INDEX('Energy Prices'!$F$12:$CR$17,MATCH('Data Input - Proposed'!$D97,'Energy Prices'!$C$12:$C$17,0),MATCH('Data Input - Proposed'!DC$7,'Energy Prices'!$F$11:$CR$11,0))/100000,\"\")","v":""}]
[null,null,"5.48",0,"£000's"]
[]
[null,null,null,"Total cost of energy","£000's","(Auto calculated value)",null,{"$f":"SUM(H92:H99)","v":1485.700561305305},{"$f":"SUM(I92:I99)","v":1541.531148540691},{"$f":"SUM(J92:J99)","v":1610.4918821663023},1657.4780678945503,1704.5754416158256,1776.9735001686643,1837.2202118852731,1870.4852286646578,0,0,0,0,0,0,0,0,0,0,0,0,0,0,0,0,0,0,0,0,0,0,0,0,0,0,0,0,0,0,0,0,0,0,0,0,0,0,0,0,0,0,0,0,0,0,0,0,0,0,0,0,0,0,0,0,0,0,{"$f":"SUM(BV92:BV99)","v":0},0,0,0,0,0,0,0,0,0,0,0,0,0,0,0,0,0,0,0,0,0,0,0,0,0,0,0,0,0,0,0,0,0]
[]
[null,null,"Environmental impacts"]
[]
[null,null,null,"Air pollutant emissions","(?)"]
[null,null,"5.49","Sox 2019","Tonnes"," <(Select from dropdown)",null,1,1,1,1,0.26600000000000001,0.26600000000000001,0.26600000000000001,0.26600000000000001]
[null,null,null,null,"Tonnes"," <(Select from dropdown)"]
[null,null,null,null,"Tonnes"," <(Select from dropdown)"]
[null,null,null,null,"Tonnes"," <(Select from dropdown)"]
[null,null,null,null,"Tonnes"," <(Select from dropdown)"]
[null,null,null,null,"Tonnes"," <(Select from dropdown)"]
[]
[null,null,null,"'Process-related' GHG emissions"]
[null,null,"5.50","CO2","Tonnes"," <(Select from dropdown)",null,45000,45000,45000,45000,45000,45000,45000,45000]
[]
[null,null,"5.51","Additional emission type (please specify)","tCO2e","(?)"]
[]
[null,null,null,"Total process GHG Emissions","tCO2e","(Auto calculated value)",null,{"$f":"IFERROR(IF(ISBLANK(H113),0,H113*INDEX(Assumptions!$D$20:$D$53,MATCH($D$113,lkpGreenHouseGases,0)))+IF(ISBLANK(H115),0,H115),0)","v":45000},{"$f":"IFERROR(IF(ISBLANK(I113),0,I113*INDEX(Assumptions!$D$20:$D$53,MATCH('Data Input - Proposed'!$D$113,lkpGreenHouseGases,0)))+IF(ISBLANK(I115),0,I115),0)","v":45000},{"$f":"IFERROR(IF(ISBLANK(J113),0,J113*INDEX(Assumptions!$D$20:$D$53,MATCH('Data Input - Proposed'!$D$113,lkpGreenHouseGases,0)))+IF(ISBLANK(J115),0,J115),0)","v":45000},{"$f":"IFERROR(IF(ISBLANK(K113),0,K113*INDEX(Assumptions!$D$20:$D$53,MATCH('Data Input - Proposed'!$D$113,lkpGreenHouseGases,0)))+IF(ISBLANK(K115),0,K115),0)","v":45000},{"$f":"IFERROR(IF(ISBLANK(L113),0,L113*INDEX(Assumptions!$D$20:$D$53,MATCH('Data Input - Proposed'!$D$113,lkpGreenHouseGases,0)))+IF(ISBLANK(L115),0,L115),0)","v":45000},{"$f":"IFERROR(IF(ISBLANK(M113),0,M113*INDEX(Assumptions!$D$20:$D$53,MATCH('Data Input - Proposed'!$D$113,lkpGreenHouseGases,0)))+IF(ISBLANK(M115),0,M115),0)","v":45000},{"$f":"IFERROR(IF(ISBLANK(N113),0,N113*INDEX(Assumptions!$D$20:$D$53,MATCH('Data Input - Proposed'!$D$113,lkpGreenHouseGases,0)))+IF(ISBLANK(N115),0,N115),0)","v":45000},{"$f":"IFERROR(IF(ISBLANK(O113),0,O113*INDEX(Assumptions!$D$20:$D$53,MATCH('Data Input - Proposed'!$D$113,lkpGreenHouseGases,0)))+IF(ISBLANK(O115),0,O115),0)","v":45000},{"$f":"IFERROR(IF(ISBLANK(P113),0,P113*INDEX(Assumptions!$D$20:$D$53,MATCH('Data Input - Proposed'!$D$113,lkpGreenHouseGases,0)))+IF(ISBLANK(P115),0,P115),0)","v":0},{"$f":"IFERROR(IF(ISBLANK(Q113),0,Q113*INDEX(Assumptions!$D$20:$D$53,MATCH('Data Input - Proposed'!$D$113,lkpGreenHouseGases,0)))+IF(ISBLANK(Q115),0,Q115),0)","v":0},{"$f":"IFERROR(IF(ISBLANK(R113),0,R113*INDEX(Assumptions!$D$20:$D$53,MATCH('Data Input - Proposed'!$D$113,lkpGreenHouseGases,0)))+IF(ISBLANK(R115),0,R115),0)","v":0},{"$f":"IFERROR(IF(ISBLANK(S113),0,S113*INDEX(Assumptions!$D$20:$D$53,MATCH('Data Input - Proposed'!$D$113,lkpGreenHouseGases,0)))+IF(ISBLANK(S115),0,S115),0)","v":0},{"$f":"IFERROR(IF(ISBLANK(T113),0,T113*INDEX(Assumptions!$D$20:$D$53,MATCH('Data Input - Proposed'!$D$113,lkpGreenHouseGases,0)))+IF(ISBLANK(T115),0,T115),0)","v":0},{"$f":"IFERROR(IF(ISBLANK(U113),0,U113*INDEX(Assumptions!$D$20:$D$53,MATCH('Data Input - Proposed'!$D$113,lkpGreenHouseGases,0)))+IF(ISBLANK(U115),0,U115),0)","v":0},{"$f":"IFERROR(IF(ISBLANK(V113),0,V113*INDEX(Assumptions!$D$20:$D$53,MATCH('Data Input - Proposed'!$D$113,lkpGreenHouseGases,0)))+IF(ISBLANK(V115),0,V115),0)","v":0},{"$f":"IFERROR(IF(ISBLANK(W113),0,W113*INDEX(Assumptions!$D$20:$D$53,MATCH('Data Input - Proposed'!$D$113,lkpGreenHouseGases,0)))+IF(ISBLANK(W115),0,W115),0)","v":0},{"$f":"IFERROR(IF(ISBLANK(X113),0,X113*INDEX(Assumptions!$D$20:$D$53,MATCH('Data Input - Proposed'!$D$113,lkpGreenHouseGases,0)))+IF(ISBLANK(X115),0,X115),0)","v":0},{"$f":"IFERROR(IF(ISBLANK(Y113),0,Y113*INDEX(Assumptions!$D$20:$D$53,MATCH('Data Input - Proposed'!$D$113,lkpGreenHouseGases,0)))+IF(ISBLANK(Y115),0,Y115),0)","v":0},{"$f":"IFERROR(IF(ISBLANK(Z113),0,Z113*INDEX(Assumptions!$D$20:$D$53,MATCH('Data Input - Proposed'!$D$113,lkpGreenHouseGases,0)))+IF(ISBLANK(Z115),0,Z115),0)","v":0},{"$f":"IFERROR(IF(ISBLANK(AA113),0,AA113*INDEX(Assumptions!$D$20:$D$53,MATCH('Data Input - Proposed'!$D$113,lkpGreenHouseGases,0)))+IF(ISBLANK(AA115),0,AA115),0)","v":0},{"$f":"IFERROR(IF(ISBLANK(AB113),0,AB113*INDEX(Assumptions!$D$20:$D$53,MATCH('Data Input - Proposed'!$D$113,lkpGreenHouseGases,0)))+IF(ISBLANK(AB115),0,AB115),0)","v":0},{"$f":"IFERROR(IF(ISBLANK(AC113),0,AC113*INDEX(Assumptions!$D$20:$D$53,MATCH('Data Input - Proposed'!$D$113,lkpGreenHouseGases,0)))+IF(ISBLANK(AC115),0,AC115),0)","v":0},{"$f":"IFERROR(IF(ISBLANK(AD113),0,AD113*INDEX(Assumptions!$D$20:$D$53,MATCH('Data Input - Proposed'!$D$113,lkpGreenHouseGases,0)))+IF(ISBLANK(AD115),0,AD115),0)","v":0},{"$f":"IFERROR(IF(ISBLANK(AE113),0,AE113*INDEX(Assumptions!$D$20:$D$53,MATCH('Data Input - Proposed'!$D$113,lkpGreenHouseGases,0)))+IF(ISBLANK(AE115),0,AE115),0)","v":0},{"$f":"IFERROR(IF(ISBLANK(AF113),0,AF113*INDEX(Assumptions!$D$20:$D$53,MATCH('Data Input - Proposed'!$D$113,lkpGreenHouseGases,0)))+IF(ISBLANK(AF115),0,AF115),0)","v":0},{"$f":"IFERROR(IF(ISBLANK(AG113),0,AG113*INDEX(Assumptions!$D$20:$D$53,MATCH('Data Input - Proposed'!$D$113,lkpGreenHouseGases,0)))+IF(ISBLANK(AG115),0,AG115),0)","v":0},{"$f":"IFERROR(IF(ISBLANK(AH113),0,AH113*INDEX(Assumptions!$D$20:$D$53,MATCH('Data Input - Proposed'!$D$113,lkpGreenHouseGases,0)))+IF(ISBLANK(AH115),0,AH115),0)","v":0},{"$f":"IFERROR(IF(ISBLANK(AI113),0,AI113*INDEX(Assumptions!$D$20:$D$53,MATCH('Data Input - Proposed'!$D$113,lkpGreenHouseGases,0)))+IF(ISBLANK(AI115),0,AI115),0)","v":0},{"$f":"IFERROR(IF(ISBLANK(AJ113),0,AJ113*INDEX(Assumptions!$D$20:$D$53,MATCH('Data Input - Proposed'!$D$113,lkpGreenHouseGases,0)))+IF(ISBLANK(AJ115),0,AJ115),0)","v":0},{"$f":"IFERROR(IF(ISBLANK(AK113),0,AK113*INDEX(Assumptions!$D$20:$D$53,MATCH('Data Input - Proposed'!$D$113,lkpGreenHouseGases,0)))+IF(ISBLANK(AK115),0,AK115),0)","v":0},{"$f":"IFERROR(IF(ISBLANK(AL113),0,AL113*INDEX(Assumptions!$D$20:$D$53,MATCH('Data Input - Proposed'!$D$113,lkpGreenHouseGases,0)))+IF(ISBLANK(AL115),0,AL115),0)","v":0},{"$f":"IFERROR(IF(ISBLANK(AM113),0,AM113*INDEX(Assumptions!$D$20:$D$53,MATCH('Data Input - Proposed'!$D$113,lkpGreenHouseGases,0)))+IF(ISBLANK(AM115),0,AM115),0)","v":0},{"$f":"IFERROR(IF(ISBLANK(AN113),0,AN113*INDEX(Assumptions!$D$20:$D$53,MATCH('Data Input - Proposed'!$D$113,lkpGreenHouseGases,0)))+IF(ISBLANK(AN115),0,AN115),0)","v":0},{"$f":"IFERROR(IF(ISBLANK(AO113),0,AO113*INDEX(Assumptions!$D$20:$D$53,MATCH('Data Input - Proposed'!$D$113,lkpGreenHouseGases,0)))+IF(ISBLANK(AO115),0,AO115),0)","v":0},{"$f":"IFERROR(IF(ISBLANK(AP113),0,AP113*INDEX(Assumptions!$D$20:$D$53,MATCH('Data Input - Proposed'!$D$113,lkpGreenHouseGases,0)))+IF(ISBLANK(AP115),0,AP115),0)","v":0},{"$f":"IFERROR(IF(ISBLANK(AQ113),0,AQ113*INDEX(Assumptions!$D$20:$D$53,MATCH('Data Input - Proposed'!$D$113,lkpGreenHouseGases,0)))+IF(ISBLANK(AQ115),0,AQ115),0)","v":0},{"$f":"IFERROR(IF(ISBLANK(AR113),0,AR113*INDEX(Assumptions!$D$20:$D$53,MATCH('Data Input - Proposed'!$D$113,lkpGreenHouseGases,0)))+IF(ISBLANK(AR115),0,AR115),0)","v":0},{"$f":"IFERROR(IF(ISBLANK(AS113),0,AS113*INDEX(Assumptions!$D$20:$D$53,MATCH('Data Input - Proposed'!$D$113,lkpGreenHouseGases,0)))+IF(ISBLANK(AS115),0,AS115),0)","v":0},{"$f":"IFERROR(IF(ISBLANK(AT113),0,AT113*INDEX(Assumptions!$D$20:$D$53,MATCH('Data Input - Proposed'!$D$113,lkpGreenHouseGases,0)))+IF(ISBLANK(AT115),0,AT115),0)","v":0},{"$f":"IFERROR(IF(ISBLANK(AU113),0,AU113*INDEX(Assumptions!$D$20:$D$53,MATCH('Data Input - Proposed'!$D$113,lkpGreenHouseGases,0)))+IF(ISBLANK(AU115),0,AU115),0)","v":0},{"$f":"IFERROR(IF(ISBLANK(AV113),0,AV113*INDEX(Assumptions!$D$20:$D$53,MATCH('Data Input - Proposed'!$D$113,lkpGreenHouseGases,0)))+IF(ISBLANK(AV115),0,AV115),0)","v":0},{"$f":"IFERROR(IF(ISBLANK(AW113),0,AW113*INDEX(Assumptions!$D$20:$D$53,MATCH('Data Input - Proposed'!$D$113,lkpGreenHouseGases,0)))+IF(ISBLANK(AW115),0,AW115),0)","v":0},{"$f":"IFERROR(IF(ISBLANK(AX113),0,AX113*INDEX(Assumptions!$D$20:$D$53,MATCH('Data Input - Proposed'!$D$113,lkpGreenHouseGases,0)))+IF(ISBLANK(AX115),0,AX115),0)","v":0},{"$f":"IFERROR(IF(ISBLANK(AY113),0,AY113*INDEX(Assumptions!$D$20:$D$53,MATCH('Data Input - Proposed'!$D$113,lkpGreenHouseGases,0)))+IF(ISBLANK(AY115),0,AY115),0)","v":0},{"$f":"IFERROR(IF(ISBLANK(AZ113),0,AZ113*INDEX(Assumptions!$D$20:$D$53,MATCH('Data Input - Proposed'!$D$113,lkpGreenHouseGases,0)))+IF(ISBLANK(AZ115),0,AZ115),0)","v":0},{"$f":"IFERROR(IF(ISBLANK(BA113),0,BA113*INDEX(Assumptions!$D$20:$D$53,MATCH('Data Input - Proposed'!$D$113,lkpGreenHouseGases,0)))+IF(ISBLANK(BA115),0,BA115),0)","v":0},{"$f":"IFERROR(IF(ISBLANK(BB113),0,BB113*INDEX(Assumptions!$D$20:$D$53,MATCH('Data Input - Proposed'!$D$113,lkpGreenHouseGases,0)))+IF(ISBLANK(BB115),0,BB115),0)","v":0},{"$f":"IFERROR(IF(ISBLANK(BC113),0,BC113*INDEX(Assumptions!$D$20:$D$53,MATCH('Data Input - Proposed'!$D$113,lkpGreenHouseGases,0)))+IF(ISBLANK(BC115),0,BC115),0)","v":0},{"$f":"IFERROR(IF(ISBLANK(BD113),0,BD113*INDEX(Assumptions!$D$20:$D$53,MATCH('Data Input - Proposed'!$D$113,lkpGreenHouseGases,0)))+IF(ISBLANK(BD115),0,BD115),0)","v":0},{"$f":"IFERROR(IF(ISBLANK(BE113),0,BE113*INDEX(Assumptions!$D$20:$D$53,MATCH('Data Input - Proposed'!$D$113,lkpGreenHouseGases,0)))+IF(ISBLANK(BE115),0,BE115),0)","v":0},{"$f":"IFERROR(IF(ISBLANK(BF113),0,BF113*INDEX(Assumptions!$D$20:$D$53,MATCH('Data Input - Proposed'!$D$113,lkpGreenHouseGases,0)))+IF(ISBLANK(BF115),0,BF115),0)","v":0},{"$f":"IFERROR(IF(ISBLANK(BG113),0,BG113*INDEX(Assumptions!$D$20:$D$53,MATCH('Data Input - Proposed'!$D$113,lkpGreenHouseGases,0)))+IF(ISBLANK(BG115),0,BG115),0)","v":0},{"$f":"IFERROR(IF(ISBLANK(BH113),0,BH113*INDEX(Assumptions!$D$20:$D$53,MATCH('Data Input - Proposed'!$D$113,lkpGreenHouseGases,0)))+IF(ISBLANK(BH115),0,BH115),0)","v":0},{"$f":"IFERROR(IF(ISBLANK(BI113),0,BI113*INDEX(Assumptions!$D$20:$D$53,MATCH('Data Input - Proposed'!$D$113,lkpGreenHouseGases,0)))+IF(ISBLANK(BI115),0,BI115),0)","v":0},{"$f":"IFERROR(IF(ISBLANK(BJ113),0,BJ113*INDEX(Assumptions!$D$20:$D$53,MATCH('Data Input - Proposed'!$D$113,lkpGreenHouseGases,0)))+IF(ISBLANK(BJ115),0,BJ115),0)","v":0},{"$f":"IFERROR(IF(ISBLANK(BK113),0,BK113*INDEX(Assumptions!$D$20:$D$53,MATCH('Data Input - Proposed'!$D$113,lkpGreenHouseGases,0)))+IF(ISBLANK(BK115),0,BK115),0)","v":0},{"$f":"IFERROR(IF(ISBLANK(BL113),0,BL113*INDEX(Assumptions!$D$20:$D$53,MATCH('Data Input - Proposed'!$D$113,lkpGreenHouseGases,0)))+IF(ISBLANK(BL115),0,BL115),0)","v":0},{"$f":"IFERROR(IF(ISBLANK(BM113),0,BM113*INDEX(Assumptions!$D$20:$D$53,MATCH('Data Input - Proposed'!$D$113,lkpGreenHouseGases,0)))+IF(ISBLANK(BM115),0,BM115),0)","v":0},{"$f":"IFERROR(IF(ISBLANK(BN113),0,BN113*INDEX(Assumptions!$D$20:$D$53,MATCH('Data Input - Proposed'!$D$113,lkpGreenHouseGases,0)))+IF(ISBLANK(BN115),0,BN115),0)","v":0},{"$f":"IFERROR(IF(ISBLANK(BO113),0,BO113*INDEX(Assumptions!$D$20:$D$53,MATCH('Data Input - Proposed'!$D$113,lkpGreenHouseGases,0)))+IF(ISBLANK(BO115),0,BO115),0)","v":0},{"$f":"IFERROR(IF(ISBLANK(BP113),0,BP113*INDEX(Assumptions!$D$20:$D$53,MATCH('Data Input - Proposed'!$D$113,lkpGreenHouseGases,0)))+IF(ISBLANK(BP115),0,BP115),0)","v":0},{"$f":"IFERROR(IF(ISBLANK(BQ113),0,BQ113*INDEX(Assumptions!$D$20:$D$53,MATCH('Data Input - Proposed'!$D$113,lkpGreenHouseGases,0)))+IF(ISBLANK(BQ115),0,BQ115),0)","v":0},{"$f":"IFERROR(IF(ISBLANK(BR113),0,BR113*INDEX(Assumptions!$D$20:$D$53,MATCH('Data Input - Proposed'!$D$113,lkpGreenHouseGases,0)))+IF(ISBLANK(BR115),0,BR115),0)","v":0},{"$f":"IFERROR(IF(ISBLANK(BS113),0,BS113*INDEX(Assumptions!$D$20:$D$53,MATCH('Data Input - Proposed'!$D$113,lkpGreenHouseGases,0)))+IF(ISBLANK(BS115),0,BS115),0)","v":0},{"$f":"IFERROR(IF(ISBLANK(BT113),0,BT113*INDEX(Assumptions!$D$20:$D$53,MATCH('Data Input - Proposed'!$D$113,lkpGreenHouseGases,0)))+IF(ISBLANK(BT115),0,BT115),0)","v":0},{"$f":"IFERROR(IF(ISBLANK(BU113),0,BU113*INDEX(Assumptions!$D$20:$D$53,MATCH('Data Input - Proposed'!$D$113,lkpGreenHouseGases,0)))+IF(ISBLANK(BU115),0,BU115),0)","v":0},{"$f":"IFERROR(IF(ISBLANK(BV113),0,BV113*INDEX(Assumptions!$D$20:$D$53,MATCH('Data Input - Proposed'!$D$113,lkpGreenHouseGases,0)))+IF(ISBLANK(BV115),0,BV115),0)","v":0},{"$f":"IFERROR(IF(ISBLANK(BW113),0,BW113*INDEX(Assumptions!$D$20:$D$53,MATCH('Data Input - Proposed'!$D$113,lkpGreenHouseGases,0)))+IF(ISBLANK(BW115),0,BW115),0)","v":0},{"$f":"IFERROR(IF(ISBLANK(BX113),0,BX113*INDEX(Assumptions!$D$20:$D$53,MATCH('Data Input - Proposed'!$D$113,lkpGreenHouseGases,0)))+IF(ISBLANK(BX115),0,BX115),0)","v":0},{"$f":"IFERROR(IF(ISBLANK(BY113),0,BY113*INDEX(Assumptions!$D$20:$D$53,MATCH('Data Input - Proposed'!$D$113,lkpGreenHouseGases,0)))+IF(ISBLANK(BY115),0,BY115),0)","v":0},{"$f":"IFERROR(IF(ISBLANK(BZ113),0,BZ113*INDEX(Assumptions!$D$20:$D$53,MATCH('Data Input - Proposed'!$D$113,lkpGreenHouseGases,0)))+IF(ISBLANK(BZ115),0,BZ115),0)","v":0},{"$f":"IFERROR(IF(ISBLANK(CA113),0,CA113*INDEX(Assumptions!$D$20:$D$53,MATCH('Data Input - Proposed'!$D$113,lkpGreenHouseGases,0)))+IF(ISBLANK(CA115),0,CA115),0)","v":0},{"$f":"IFERROR(IF(ISBLANK(CB113),0,CB113*INDEX(Assumptions!$D$20:$D$53,MATCH('Data Input - Proposed'!$D$113,lkpGreenHouseGases,0)))+IF(ISBLANK(CB115),0,CB115),0)","v":0},{"$f":"IFERROR(IF(ISBLANK(CC113),0,CC113*INDEX(Assumptions!$D$20:$D$53,MATCH('Data Input - Proposed'!$D$113,lkpGreenHouseGases,0)))+IF(ISBLANK(CC115),0,CC115),0)","v":0},{"$f":"IFERROR(IF(ISBLANK(CD113),0,CD113*INDEX(Assumptions!$D$20:$D$53,MATCH('Data Input - Proposed'!$D$113,lkpGreenHouseGases,0)))+IF(ISBLANK(CD115),0,CD115),0)","v":0},{"$f":"IFERROR(IF(ISBLANK(CE113),0,CE113*INDEX(Assumptions!$D$20:$D$53,MATCH('Data Input - Proposed'!$D$113,lkpGreenHouseGases,0)))+IF(ISBLANK(CE115),0,CE115),0)","v":0},{"$f":"IFERROR(IF(ISBLANK(CF113),0,CF113*INDEX(Assumptions!$D$20:$D$53,MATCH('Data Input - Proposed'!$D$113,lkpGreenHouseGases,0)))+IF(ISBLANK(CF115),0,CF115),0)","v":0},{"$f":"IFERROR(IF(ISBLANK(CG113),0,CG113*INDEX(Assumptions!$D$20:$D$53,MATCH('Data Input - Proposed'!$D$113,lkpGreenHouseGases,0)))+IF(ISBLANK(CG115),0,CG115),0)","v":0},{"$f":"IFERROR(IF(ISBLANK(CH113),0,CH113*INDEX(Assumptions!$D$20:$D$53,MATCH('Data Input - Proposed'!$D$113,lkpGreenHouseGases,0)))+IF(ISBLANK(CH115),0,CH115),0)","v":0},{"$f":"IFERROR(IF(ISBLANK(CI113),0,CI113*INDEX(Assumptions!$D$20:$D$53,MATCH('Data Input - Proposed'!$D$113,lkpGreenHouseGases,0)))+IF(ISBLANK(CI115),0,CI115),0)","v":0},{"$f":"IFERROR(IF(ISBLANK(CJ113),0,CJ113*INDEX(Assumptions!$D$20:$D$53,MATCH('Data Input - Proposed'!$D$113,lkpGreenHouseGases,0)))+IF(ISBLANK(CJ115),0,CJ115),0)","v":0},{"$f":"IFERROR(IF(ISBLANK(CK113),0,CK113*INDEX(Assumptions!$D$20:$D$53,MATCH('Data Input - Proposed'!$D$113,lkpGreenHouseGases,0)))+IF(ISBLANK(CK115),0,CK115),0)","v":0},{"$f":"IFERROR(IF(ISBLANK(CL113),0,CL113*INDEX(Assumptions!$D$20:$D$53,MATCH('Data Input - Proposed'!$D$113,lkpGreenHouseGases,0)))+IF(ISBLANK(CL115),0,CL115),0)","v":0},{"$f":"IFERROR(IF(ISBLANK(CM113),0,CM113*INDEX(Assumptions!$D$20:$D$53,MATCH('Data Input - Proposed'!$D$113,lkpGreenHouseGases,0)))+IF(ISBLANK(CM115),0,CM115),0)","v":0},{"$f":"IFERROR(IF(ISBLANK(CN113),0,CN113*INDEX(Assumptions!$D$20:$D$53,MATCH('Data Input - Proposed'!$D$113,lkpGreenHouseGases,0)))+IF(ISBLANK(CN115),0,CN115),0)","v":0},{"$f":"IFERROR(IF(ISBLANK(CO113),0,CO113*INDEX(Assumptions!$D$20:$D$53,MATCH('Data Input - Proposed'!$D$113,lkpGreenHouseGases,0)))+IF(ISBLANK(CO115),0,CO115),0)","v":0},{"$f":"IFERROR(IF(ISBLANK(CP113),0,CP113*INDEX(Assumptions!$D$20:$D$53,MATCH('Data Input - Proposed'!$D$113,lkpGreenHouseGases,0)))+IF(ISBLANK(CP115),0,CP115),0)","v":0},{"$f":"IFERROR(IF(ISBLANK(CQ113),0,CQ113*INDEX(Assumptions!$D$20:$D$53,MATCH('Data Input - Proposed'!$D$113,lkpGreenHouseGases,0)))+IF(ISBLANK(CQ115),0,CQ115),0)","v":0},{"$f":"IFERROR(IF(ISBLANK(CR113),0,CR113*INDEX(Assumptions!$D$20:$D$53,MATCH('Data Input - Proposed'!$D$113,lkpGreenHouseGases,0)))+IF(ISBLANK(CR115),0,CR115),0)","v":0},{"$f":"IFERROR(IF(ISBLANK(CS113),0,CS113*INDEX(Assumptions!$D$20:$D$53,MATCH('Data Input - Proposed'!$D$113,lkpGreenHouseGases,0)))+IF(ISBLANK(CS115),0,CS115),0)","v":0},{"$f":"IFERROR(IF(ISBLANK(CT113),0,CT113*INDEX(Assumptions!$D$20:$D$53,MATCH('Data Input - Proposed'!$D$113,lkpGreenHouseGases,0)))+IF(ISBLANK(CT115),0,CT115),0)","v":0},{"$f":"IFERROR(IF(ISBLANK(CU113),0,CU113*INDEX(Assumptions!$D$20:$D$53,MATCH('Data Input - Proposed'!$D$113,lkpGreenHouseGases,0)))+IF(ISBLANK(CU115),0,CU115),0)","v":0},{"$f":"IFERROR(IF(ISBLANK(CV113),0,CV113*INDEX(Assumptions!$D$20:$D$53,MATCH('Data Input - Proposed'!$D$113,lkpGreenHouseGases,0)))+IF(ISBLANK(CV115),0,CV115),0)","v":0},{"$f":"IFERROR(IF(ISBLANK(CW113),0,CW113*INDEX(Assumptions!$D$20:$D$53,MATCH('Data Input - Proposed'!$D$113,lkpGreenHouseGases,0)))+IF(ISBLANK(CW115),0,CW115),0)","v":0},{"$f":"IFERROR(IF(ISBLANK(CX113),0,CX113*INDEX(Assumptions!$D$20:$D$53,MATCH('Data Input - Proposed'!$D$113,lkpGreenHouseGases,0)))+IF(ISBLANK(CX115),0,CX115),0)","v":0},{"$f":"IFERROR(IF(ISBLANK(CY113),0,CY113*INDEX(Assumptions!$D$20:$D$53,MATCH('Data Input - Proposed'!$D$113,lkpGreenHouseGases,0)))+IF(ISBLANK(CY115),0,CY115),0)","v":0},{"$f":"IFERROR(IF(ISBLANK(CZ113),0,CZ113*INDEX(Assumptions!$D$20:$D$53,MATCH('Data Input - Proposed'!$D$113,lkpGreenHouseGases,0)))+IF(ISBLANK(CZ115),0,CZ115),0)","v":0},{"$f":"IFERROR(IF(ISBLANK(DA113),0,DA113*INDEX(Assumptions!$D$20:$D$53,MATCH('Data Input - Proposed'!$D$113,lkpGreenHouseGases,0)))+IF(ISBLANK(DA115),0,DA115),0)","v":0},{"$f":"IFERROR(IF(ISBLANK(DB113),0,DB113*INDEX(Assumptions!$D$20:$D$53,MATCH('Data Input - Proposed'!$D$113,lkpGreenHouseGases,0)))+IF(ISBLANK(DB115),0,DB115),0)","v":0},{"$f":"IFERROR(IF(ISBLANK(DC113),0,DC113*INDEX(Assumptions!$D$20:$D$53,MATCH('Data Input - Proposed'!$D$113,lkpGreenHouseGases,0)))+IF(ISBLANK(DC115),0,DC115),0)","v":0},{"$f":"IFERROR(IF(ISBLANK(DD113),0,DD113*INDEX(Assumptions!$D$20:$D$53,MATCH('Data Input - Proposed'!$D$113,lkpGreenHouseGases,0)))+IF(ISBLANK(DD115),0,DD115),0)","v":0}]
[]
[null,null,null,"'Fuel-related' GHG emissions","(?)"]
[null,null,null,{"$f":"D84","v":"Electricity"},"tCO2e","(Auto calculated value)",null,{"$f":"IFERROR(H84*INDEX('Emissions factors'!$F$5:$CR$10,MATCH('Data Input - Proposed'!$D120,'Emissions factors'!$C$5:$C$10,0),MATCH('Data Input - Proposed'!H$7,'Emissions factors'!$F$4:$CR$4,0))/1000,0)","v":1147.9102063708638},{"$f":"IFERROR(I84*INDEX('Emissions factors'!$F$5:$CR$10,MATCH('Data Input - Proposed'!$D120,'Emissions factors'!$C$5:$C$10,0),MATCH('Data Input - Proposed'!I$7,'Emissions factors'!$F$4:$CR$4,0))/1000,0)","v":1022.7509038254832},{"$f":"IFERROR(J84*INDEX('Emissions factors'!$F$5:$CR$10,MATCH('Data Input - Proposed'!$D120,'Emissions factors'!$C$5:$C$10,0),MATCH('Data Input - Proposed'!J$7,'Emissions factors'!$F$4:$CR$4,0))/1000,0)","v":900.70523018473978},{"$f":"IFERROR(K84*INDEX('Emissions factors'!$F$5:$CR$10,MATCH('Data Input - Proposed'!$D120,'Emissions factors'!$C$5:$C$10,0),MATCH('Data Input - Proposed'!K$7,'Emissions factors'!$F$4:$CR$4,0))/1000,0)","v":829.51171353866823},{"$f":"IFERROR(L84*INDEX('Emissions factors'!$F$5:$CR$10,MATCH('Data Input - Proposed'!$D120,'Emissions factors'!$C$5:$C$10,0),MATCH('Data Input - Proposed'!L$7,'Emissions factors'!$F$4:$CR$4,0))/1000,0)","v":706.29239328079632},{"$f":"IFERROR(M84*INDEX('Emissions factors'!$F$5:$CR$10,MATCH('Data Input - Proposed'!$D120,'Emissions factors'!$C$5:$C$10,0),MATCH('Data Input - Proposed'!M$7,'Emissions factors'!$F$4:$CR$4,0))/1000,0)","v":741.68258779755536},{"$f":"IFERROR(N84*INDEX('Emissions factors'!$F$5:$CR$10,MATCH('Data Input - Proposed'!$D120,'Emissions factors'!$C$5:$C$10,0),MATCH('Data Input - Proposed'!N$7,'Emissions factors'!$F$4:$CR$4,0))/1000,0)","v":695.10356862610229},{"$f":"IFERROR(O84*INDEX('Emissions factors'!$F$5:$CR$10,MATCH('Data Input - Proposed'!$D120,'Emissions factors'!$C$5:$C$10,0),MATCH('Data Input - Proposed'!O$7,'Emissions factors'!$F$4:$CR$4,0))/1000,0)","v":617.9056138546847},{"$f":"IFERROR(P84*INDEX('Emissions factors'!$F$5:$CR$10,MATCH('Data Input - Proposed'!$D120,'Emissions factors'!$C$5:$C$10,0),MATCH('Data Input - Proposed'!P$7,'Emissions factors'!$F$4:$CR$4,0))/1000,0)","v":0},{"$f":"IFERROR(Q84*INDEX('Emissions factors'!$F$5:$CR$10,MATCH('Data Input - Proposed'!$D120,'Emissions factors'!$C$5:$C$10,0),MATCH('Data Input - Proposed'!Q$7,'Emissions factors'!$F$4:$CR$4,0))/1000,0)","v":0},{"$f":"IFERROR(R84*INDEX('Emissions factors'!$F$5:$CR$10,MATCH('Data Input - Proposed'!$D120,'Emissions factors'!$C$5:$C$10,0),MATCH('Data Input - Proposed'!R$7,'Emissions factors'!$F$4:$CR$4,0))/1000,0)","v":0},{"$f":"IFERROR(S84*INDEX('Emissions factors'!$F$5:$CR$10,MATCH('Data Input - Proposed'!$D120,'Emissions factors'!$C$5:$C$10,0),MATCH('Data Input - Proposed'!S$7,'Emissions factors'!$F$4:$CR$4,0))/1000,0)","v":0},{"$f":"IFERROR(T84*INDEX('Emissions factors'!$F$5:$CR$10,MATCH('Data Input - Proposed'!$D120,'Emissions factors'!$C$5:$C$10,0),MATCH('Data Input - Proposed'!T$7,'Emissions factors'!$F$4:$CR$4,0))/1000,0)","v":0},{"$f":"IFERROR(U84*INDEX('Emissions factors'!$F$5:$CR$10,MATCH('Data Input - Proposed'!$D120,'Emissions factors'!$C$5:$C$10,0),MATCH('Data Input - Proposed'!U$7,'Emissions factors'!$F$4:$CR$4,0))/1000,0)","v":0},{"$f":"IFERROR(V84*INDEX('Emissions factors'!$F$5:$CR$10,MATCH('Data Input - Proposed'!$D120,'Emissions factors'!$C$5:$C$10,0),MATCH('Data Input - Proposed'!V$7,'Emissions factors'!$F$4:$CR$4,0))/1000,0)","v":0},{"$f":"IFERROR(W84*INDEX('Emissions factors'!$F$5:$CR$10,MATCH('Data Input - Proposed'!$D120,'Emissions factors'!$C$5:$C$10,0),MATCH('Data Input - Proposed'!W$7,'Emissions factors'!$F$4:$CR$4,0))/1000,0)","v":0},{"$f":"IFERROR(X84*INDEX('Emissions factors'!$F$5:$CR$10,MATCH('Data Input - Proposed'!$D120,'Emissions factors'!$C$5:$C$10,0),MATCH('Data Input - Proposed'!X$7,'Emissions factors'!$F$4:$CR$4,0))/1000,0)","v":0},{"$f":"IFERROR(Y84*INDEX('Emissions factors'!$F$5:$CR$10,MATCH('Data Input - Proposed'!$D120,'Emissions factors'!$C$5:$C$10,0),MATCH('Data Input - Proposed'!Y$7,'Emissions factors'!$F$4:$CR$4,0))/1000,0)","v":0},{"$f":"IFERROR(Z84*INDEX('Emissions factors'!$F$5:$CR$10,MATCH('Data Input - Proposed'!$D120,'Emissions factors'!$C$5:$C$10,0),MATCH('Data Input - Proposed'!Z$7,'Emissions factors'!$F$4:$CR$4,0))/1000,0)","v":0},{"$f":"IFERROR(AA84*INDEX('Emissions factors'!$F$5:$CR$10,MATCH('Data Input - Proposed'!$D120,'Emissions factors'!$C$5:$C$10,0),MATCH('Data Input - Proposed'!AA$7,'Emissions factors'!$F$4:$CR$4,0))/1000,0)","v":0},{"$f":"IFERROR(AB84*INDEX('Emissions factors'!$F$5:$CR$10,MATCH('Data Input - Proposed'!$D120,'Emissions factors'!$C$5:$C$10,0),MATCH('Data Input - Proposed'!AB$7,'Emissions factors'!$F$4:$CR$4,0))/1000,0)","v":0},{"$f":"IFERROR(AC84*INDEX('Emissions factors'!$F$5:$CR$10,MATCH('Data Input - Proposed'!$D120,'Emissions factors'!$C$5:$C$10,0),MATCH('Data Input - Proposed'!AC$7,'Emissions factors'!$F$4:$CR$4,0))/1000,0)","v":0},{"$f":"IFERROR(AD84*INDEX('Emissions factors'!$F$5:$CR$10,MATCH('Data Input - Proposed'!$D120,'Emissions factors'!$C$5:$C$10,0),MATCH('Data Input - Proposed'!AD$7,'Emissions factors'!$F$4:$CR$4,0))/1000,0)","v":0},{"$f":"IFERROR(AE84*INDEX('Emissions factors'!$F$5:$CR$10,MATCH('Data Input - Proposed'!$D120,'Emissions factors'!$C$5:$C$10,0),MATCH('Data Input - Proposed'!AE$7,'Emissions factors'!$F$4:$CR$4,0))/1000,0)","v":0},{"$f":"IFERROR(AF84*INDEX('Emissions factors'!$F$5:$CR$10,MATCH('Data Input - Proposed'!$D120,'Emissions factors'!$C$5:$C$10,0),MATCH('Data Input - Proposed'!AF$7,'Emissions factors'!$F$4:$CR$4,0))/1000,0)","v":0},{"$f":"IFERROR(AG84*INDEX('Emissions factors'!$F$5:$CR$10,MATCH('Data Input - Proposed'!$D120,'Emissions factors'!$C$5:$C$10,0),MATCH('Data Input - Proposed'!AG$7,'Emissions factors'!$F$4:$CR$4,0))/1000,0)","v":0},{"$f":"IFERROR(AH84*INDEX('Emissions factors'!$F$5:$CR$10,MATCH('Data Input - Proposed'!$D120,'Emissions factors'!$C$5:$C$10,0),MATCH('Data Input - Proposed'!AH$7,'Emissions factors'!$F$4:$CR$4,0))/1000,0)","v":0},{"$f":"IFERROR(AI84*INDEX('Emissions factors'!$F$5:$CR$10,MATCH('Data Input - Proposed'!$D120,'Emissions factors'!$C$5:$C$10,0),MATCH('Data Input - Proposed'!AI$7,'Emissions factors'!$F$4:$CR$4,0))/1000,0)","v":0},{"$f":"IFERROR(AJ84*INDEX('Emissions factors'!$F$5:$CR$10,MATCH('Data Input - Proposed'!$D120,'Emissions factors'!$C$5:$C$10,0),MATCH('Data Input - Proposed'!AJ$7,'Emissions factors'!$F$4:$CR$4,0))/1000,0)","v":0},{"$f":"IFERROR(AK84*INDEX('Emissions factors'!$F$5:$CR$10,MATCH('Data Input - Proposed'!$D120,'Emissions factors'!$C$5:$C$10,0),MATCH('Data Input - Proposed'!AK$7,'Emissions factors'!$F$4:$CR$4,0))/1000,0)","v":0},{"$f":"IFERROR(AL84*INDEX('Emissions factors'!$F$5:$CR$10,MATCH('Data Input - Proposed'!$D120,'Emissions factors'!$C$5:$C$10,0),MATCH('Data Input - Proposed'!AL$7,'Emissions factors'!$F$4:$CR$4,0))/1000,0)","v":0},{"$f":"IFERROR(AM84*INDEX('Emissions factors'!$F$5:$CR$10,MATCH('Data Input - Proposed'!$D120,'Emissions factors'!$C$5:$C$10,0),MATCH('Data Input - Proposed'!AM$7,'Emissions factors'!$F$4:$CR$4,0))/1000,0)","v":0},{"$f":"IFERROR(AN84*INDEX('Emissions factors'!$F$5:$CR$10,MATCH('Data Input - Proposed'!$D120,'Emissions factors'!$C$5:$C$10,0),MATCH('Data Input - Proposed'!AN$7,'Emissions factors'!$F$4:$CR$4,0))/1000,0)","v":0},{"$f":"IFERROR(AO84*INDEX('Emissions factors'!$F$5:$CR$10,MATCH('Data Input - Proposed'!$D120,'Emissions factors'!$C$5:$C$10,0),MATCH('Data Input - Proposed'!AO$7,'Emissions factors'!$F$4:$CR$4,0))/1000,0)","v":0},{"$f":"IFERROR(AP84*INDEX('Emissions factors'!$F$5:$CR$10,MATCH('Data Input - Proposed'!$D120,'Emissions factors'!$C$5:$C$10,0),MATCH('Data Input - Proposed'!AP$7,'Emissions factors'!$F$4:$CR$4,0))/1000,0)","v":0},{"$f":"IFERROR(AQ84*INDEX('Emissions factors'!$F$5:$CR$10,MATCH('Data Input - Proposed'!$D120,'Emissions factors'!$C$5:$C$10,0),MATCH('Data Input - Proposed'!AQ$7,'Emissions factors'!$F$4:$CR$4,0))/1000,0)","v":0},{"$f":"IFERROR(AR84*INDEX('Emissions factors'!$F$5:$CR$10,MATCH('Data Input - Proposed'!$D120,'Emissions factors'!$C$5:$C$10,0),MATCH('Data Input - Proposed'!AR$7,'Emissions factors'!$F$4:$CR$4,0))/1000,0)","v":0},{"$f":"IFERROR(AS84*INDEX('Emissions factors'!$F$5:$CR$10,MATCH('Data Input - Proposed'!$D120,'Emissions factors'!$C$5:$C$10,0),MATCH('Data Input - Proposed'!AS$7,'Emissions factors'!$F$4:$CR$4,0))/1000,0)","v":0},{"$f":"IFERROR(AT84*INDEX('Emissions factors'!$F$5:$CR$10,MATCH('Data Input - Proposed'!$D120,'Emissions factors'!$C$5:$C$10,0),MATCH('Data Input - Proposed'!AT$7,'Emissions factors'!$F$4:$CR$4,0))/1000,0)","v":0},{"$f":"IFERROR(AU84*INDEX('Emissions factors'!$F$5:$CR$10,MATCH('Data Input - Proposed'!$D120,'Emissions factors'!$C$5:$C$10,0),MATCH('Data Input - Proposed'!AU$7,'Emissions factors'!$F$4:$CR$4,0))/1000,0)","v":0},{"$f":"IFERROR(AV84*INDEX('Emissions factors'!$F$5:$CR$10,MATCH('Data Input - Proposed'!$D120,'Emissions factors'!$C$5:$C$10,0),MATCH('Data Input - Proposed'!AV$7,'Emissions factors'!$F$4:$CR$4,0))/1000,0)","v":0},{"$f":"IFERROR(AW84*INDEX('Emissions factors'!$F$5:$CR$10,MATCH('Data Input - Proposed'!$D120,'Emissions factors'!$C$5:$C$10,0),MATCH('Data Input - Proposed'!AW$7,'Emissions factors'!$F$4:$CR$4,0))/1000,0)","v":0},{"$f":"IFERROR(AX84*INDEX('Emissions factors'!$F$5:$CR$10,MATCH('Data Input - Proposed'!$D120,'Emissions factors'!$C$5:$C$10,0),MATCH('Data Input - Proposed'!AX$7,'Emissions factors'!$F$4:$CR$4,0))/1000,0)","v":0},{"$f":"IFERROR(AY84*INDEX('Emissions factors'!$F$5:$CR$10,MATCH('Data Input - Proposed'!$D120,'Emissions factors'!$C$5:$C$10,0),MATCH('Data Input - Proposed'!AY$7,'Emissions factors'!$F$4:$CR$4,0))/1000,0)","v":0},{"$f":"IFERROR(AZ84*INDEX('Emissions factors'!$F$5:$CR$10,MATCH('Data Input - Proposed'!$D120,'Emissions factors'!$C$5:$C$10,0),MATCH('Data Input - Proposed'!AZ$7,'Emissions factors'!$F$4:$CR$4,0))/1000,0)","v":0},{"$f":"IFERROR(BA84*INDEX('Emissions factors'!$F$5:$CR$10,MATCH('Data Input - Proposed'!$D120,'Emissions factors'!$C$5:$C$10,0),MATCH('Data Input - Proposed'!BA$7,'Emissions factors'!$F$4:$CR$4,0))/1000,0)","v":0},{"$f":"IFERROR(BB84*INDEX('Emissions factors'!$F$5:$CR$10,MATCH('Data Input - Proposed'!$D120,'Emissions factors'!$C$5:$C$10,0),MATCH('Data Input - Proposed'!BB$7,'Emissions factors'!$F$4:$CR$4,0))/1000,0)","v":0},{"$f":"IFERROR(BC84*INDEX('Emissions factors'!$F$5:$CR$10,MATCH('Data Input - Proposed'!$D120,'Emissions factors'!$C$5:$C$10,0),MATCH('Data Input - Proposed'!BC$7,'Emissions factors'!$F$4:$CR$4,0))/1000,0)","v":0},{"$f":"IFERROR(BD84*INDEX('Emissions factors'!$F$5:$CR$10,MATCH('Data Input - Proposed'!$D120,'Emissions factors'!$C$5:$C$10,0),MATCH('Data Input - Proposed'!BD$7,'Emissions factors'!$F$4:$CR$4,0))/1000,0)","v":0},{"$f":"IFERROR(BE84*INDEX('Emissions factors'!$F$5:$CR$10,MATCH('Data Input - Proposed'!$D120,'Emissions factors'!$C$5:$C$10,0),MATCH('Data Input - Proposed'!BE$7,'Emissions factors'!$F$4:$CR$4,0))/1000,0)","v":0},{"$f":"IFERROR(BF84*INDEX('Emissions factors'!$F$5:$CR$10,MATCH('Data Input - Proposed'!$D120,'Emissions factors'!$C$5:$C$10,0),MATCH('Data Input - Proposed'!BF$7,'Emissions factors'!$F$4:$CR$4,0))/1000,0)","v":0},{"$f":"IFERROR(BG84*INDEX('Emissions factors'!$F$5:$CR$10,MATCH('Data Input - Proposed'!$D120,'Emissions factors'!$C$5:$C$10,0),MATCH('Data Input - Proposed'!BG$7,'Emissions factors'!$F$4:$CR$4,0))/1000,0)","v":0},{"$f":"IFERROR(BH84*INDEX('Emissions factors'!$F$5:$CR$10,MATCH('Data Input - Proposed'!$D120,'Emissions factors'!$C$5:$C$10,0),MATCH('Data Input - Proposed'!BH$7,'Emissions factors'!$F$4:$CR$4,0))/1000,0)","v":0},{"$f":"IFERROR(BI84*INDEX('Emissions factors'!$F$5:$CR$10,MATCH('Data Input - Proposed'!$D120,'Emissions factors'!$C$5:$C$10,0),MATCH('Data Input - Proposed'!BI$7,'Emissions factors'!$F$4:$CR$4,0))/1000,0)","v":0},{"$f":"IFERROR(BJ84*INDEX('Emissions factors'!$F$5:$CR$10,MATCH('Data Input - Proposed'!$D120,'Emissions factors'!$C$5:$C$10,0),MATCH('Data Input - Proposed'!BJ$7,'Emissions factors'!$F$4:$CR$4,0))/1000,0)","v":0},{"$f":"IFERROR(BK84*INDEX('Emissions factors'!$F$5:$CR$10,MATCH('Data Input - Proposed'!$D120,'Emissions factors'!$C$5:$C$10,0),MATCH('Data Input - Proposed'!BK$7,'Emissions factors'!$F$4:$CR$4,0))/1000,0)","v":0},{"$f":"IFERROR(BL84*INDEX('Emissions factors'!$F$5:$CR$10,MATCH('Data Input - Proposed'!$D120,'Emissions factors'!$C$5:$C$10,0),MATCH('Data Input - Proposed'!BL$7,'Emissions factors'!$F$4:$CR$4,0))/1000,0)","v":0},{"$f":"IFERROR(BM84*INDEX('Emissions factors'!$F$5:$CR$10,MATCH('Data Input - Proposed'!$D120,'Emissions factors'!$C$5:$C$10,0),MATCH('Data Input - Proposed'!BM$7,'Emissions factors'!$F$4:$CR$4,0))/1000,0)","v":0},{"$f":"IFERROR(BN84*INDEX('Emissions factors'!$F$5:$CR$10,MATCH('Data Input - Proposed'!$D120,'Emissions factors'!$C$5:$C$10,0),MATCH('Data Input - Proposed'!BN$7,'Emissions factors'!$F$4:$CR$4,0))/1000,0)","v":0},{"$f":"IFERROR(BO84*INDEX('Emissions factors'!$F$5:$CR$10,MATCH('Data Input - Proposed'!$D120,'Emissions factors'!$C$5:$C$10,0),MATCH('Data Input - Proposed'!BO$7,'Emissions factors'!$F$4:$CR$4,0))/1000,0)","v":0},{"$f":"IFERROR(BP84*INDEX('Emissions factors'!$F$5:$CR$10,MATCH('Data Input - Proposed'!$D120,'Emissions factors'!$C$5:$C$10,0),MATCH('Data Input - Proposed'!BP$7,'Emissions factors'!$F$4:$CR$4,0))/1000,0)","v":0},{"$f":"IFERROR(BQ84*INDEX('Emissions factors'!$F$5:$CR$10,MATCH('Data Input - Proposed'!$D120,'Emissions factors'!$C$5:$C$10,0),MATCH('Data Input - Proposed'!BQ$7,'Emissions factors'!$F$4:$CR$4,0))/1000,0)","v":0},{"$f":"IFERROR(BR84*INDEX('Emissions factors'!$F$5:$CR$10,MATCH('Data Input - Proposed'!$D120,'Emissions factors'!$C$5:$C$10,0),MATCH('Data Input - Proposed'!BR$7,'Emissions factors'!$F$4:$CR$4,0))/1000,0)","v":0},{"$f":"IFERROR(BS84*INDEX('Emissions factors'!$F$5:$CR$10,MATCH('Data Input - Proposed'!$D120,'Emissions factors'!$C$5:$C$10,0),MATCH('Data Input - Proposed'!BS$7,'Emissions factors'!$F$4:$CR$4,0))/1000,0)","v":0},{"$f":"IFERROR(BT84*INDEX('Emissions factors'!$F$5:$CR$10,MATCH('Data Input - Proposed'!$D120,'Emissions factors'!$C$5:$C$10,0),MATCH('Data Input - Proposed'!BT$7,'Emissions factors'!$F$4:$CR$4,0))/1000,0)","v":0},{"$f":"IFERROR(BU84*INDEX('Emissions factors'!$F$5:$CR$10,MATCH('Data Input - Proposed'!$D120,'Emissions factors'!$C$5:$C$10,0),MATCH('Data Input - Proposed'!BU$7,'Emissions factors'!$F$4:$CR$4,0))/1000,0)","v":0},{"$f":"IFERROR(BV84*INDEX('Emissions factors'!$F$5:$CR$10,MATCH('Data Input - Proposed'!$D120,'Emissions factors'!$C$5:$C$10,0),MATCH('Data Input - Proposed'!BV$7,'Emissions factors'!$F$4:$CR$4,0))/1000,0)","v":0},{"$f":"IFERROR(BW84*INDEX('Emissions factors'!$F$5:$CR$10,MATCH('Data Input - Proposed'!$D120,'Emissions factors'!$C$5:$C$10,0),MATCH('Data Input - Proposed'!BW$7,'Emissions factors'!$F$4:$CR$4,0))/1000,0)","v":0},{"$f":"IFERROR(BX84*INDEX('Emissions factors'!$F$5:$CR$10,MATCH('Data Input - Proposed'!$D120,'Emissions factors'!$C$5:$C$10,0),MATCH('Data Input - Proposed'!BX$7,'Emissions factors'!$F$4:$CR$4,0))/1000,0)","v":0},{"$f":"IFERROR(BY84*INDEX('Emissions factors'!$F$5:$CR$10,MATCH('Data Input - Proposed'!$D120,'Emissions factors'!$C$5:$C$10,0),MATCH('Data Input - Proposed'!BY$7,'Emissions factors'!$F$4:$CR$4,0))/1000,0)","v":0},{"$f":"IFERROR(BZ84*INDEX('Emissions factors'!$F$5:$CR$10,MATCH('Data Input - Proposed'!$D120,'Emissions factors'!$C$5:$C$10,0),MATCH('Data Input - Proposed'!BZ$7,'Emissions factors'!$F$4:$CR$4,0))/1000,0)","v":0},{"$f":"IFERROR(CA84*INDEX('Emissions factors'!$F$5:$CR$10,MATCH('Data Input - Proposed'!$D120,'Emissions factors'!$C$5:$C$10,0),MATCH('Data Input - Proposed'!CA$7,'Emissions factors'!$F$4:$CR$4,0))/1000,0)","v":0},{"$f":"IFERROR(CB84*INDEX('Emissions factors'!$F$5:$CR$10,MATCH('Data Input - Proposed'!$D120,'Emissions factors'!$C$5:$C$10,0),MATCH('Data Input - Proposed'!CB$7,'Emissions factors'!$F$4:$CR$4,0))/1000,0)","v":0},{"$f":"IFERROR(CC84*INDEX('Emissions factors'!$F$5:$CR$10,MATCH('Data Input - Proposed'!$D120,'Emissions factors'!$C$5:$C$10,0),MATCH('Data Input - Proposed'!CC$7,'Emissions factors'!$F$4:$CR$4,0))/1000,0)","v":0},{"$f":"IFERROR(CD84*INDEX('Emissions factors'!$F$5:$CR$10,MATCH('Data Input - Proposed'!$D120,'Emissions factors'!$C$5:$C$10,0),MATCH('Data Input - Proposed'!CD$7,'Emissions factors'!$F$4:$CR$4,0))/1000,0)","v":0},{"$f":"IFERROR(CE84*INDEX('Emissions factors'!$F$5:$CR$10,MATCH('Data Input - Proposed'!$D120,'Emissions factors'!$C$5:$C$10,0),MATCH('Data Input - Proposed'!CE$7,'Emissions factors'!$F$4:$CR$4,0))/1000,0)","v":0},{"$f":"IFERROR(CF84*INDEX('Emissions factors'!$F$5:$CR$10,MATCH('Data Input - Proposed'!$D120,'Emissions factors'!$C$5:$C$10,0),MATCH('Data Input - Proposed'!CF$7,'Emissions factors'!$F$4:$CR$4,0))/1000,0)","v":0},{"$f":"IFERROR(CG84*INDEX('Emissions factors'!$F$5:$CR$10,MATCH('Data Input - Proposed'!$D120,'Emissions factors'!$C$5:$C$10,0),MATCH('Data Input - Proposed'!CG$7,'Emissions factors'!$F$4:$CR$4,0))/1000,0)","v":0},{"$f":"IFERROR(CH84*INDEX('Emissions factors'!$F$5:$CR$10,MATCH('Data Input - Proposed'!$D120,'Emissions factors'!$C$5:$C$10,0),MATCH('Data Input - Proposed'!CH$7,'Emissions factors'!$F$4:$CR$4,0))/1000,0)","v":0},{"$f":"IFERROR(CI84*INDEX('Emissions factors'!$F$5:$CR$10,MATCH('Data Input - Proposed'!$D120,'Emissions factors'!$C$5:$C$10,0),MATCH('Data Input - Proposed'!CI$7,'Emissions factors'!$F$4:$CR$4,0))/1000,0)","v":0},{"$f":"IFERROR(CJ84*INDEX('Emissions factors'!$F$5:$CR$10,MATCH('Data Input - Proposed'!$D120,'Emissions factors'!$C$5:$C$10,0),MATCH('Data Input - Proposed'!CJ$7,'Emissions factors'!$F$4:$CR$4,0))/1000,0)","v":0},{"$f":"IFERROR(CK84*INDEX('Emissions factors'!$F$5:$CR$10,MATCH('Data Input - Proposed'!$D120,'Emissions factors'!$C$5:$C$10,0),MATCH('Data Input - Proposed'!CK$7,'Emissions factors'!$F$4:$CR$4,0))/1000,0)","v":0},{"$f":"IFERROR(CL84*INDEX('Emissions factors'!$F$5:$CR$10,MATCH('Data Input - Proposed'!$D120,'Emissions factors'!$C$5:$C$10,0),MATCH('Data Input - Proposed'!CL$7,'Emissions factors'!$F$4:$CR$4,0))/1000,0)","v":0},{"$f":"IFERROR(CM84*INDEX('Emissions factors'!$F$5:$CR$10,MATCH('Data Input - Proposed'!$D120,'Emissions factors'!$C$5:$C$10,0),MATCH('Data Input - Proposed'!CM$7,'Emissions factors'!$F$4:$CR$4,0))/1000,0)","v":0},{"$f":"IFERROR(CN84*INDEX('Emissions factors'!$F$5:$CR$10,MATCH('Data Input - Proposed'!$D120,'Emissions factors'!$C$5:$C$10,0),MATCH('Data Input - Proposed'!CN$7,'Emissions factors'!$F$4:$CR$4,0))/1000,0)","v":0},{"$f":"IFERROR(CO84*INDEX('Emissions factors'!$F$5:$CR$10,MATCH('Data Input - Proposed'!$D120,'Emissions factors'!$C$5:$C$10,0),MATCH('Data Input - Proposed'!CO$7,'Emissions factors'!$F$4:$CR$4,0))/1000,0)","v":0},{"$f":"IFERROR(CP84*INDEX('Emissions factors'!$F$5:$CR$10,MATCH('Data Input - Proposed'!$D120,'Emissions factors'!$C$5:$C$10,0),MATCH('Data Input - Proposed'!CP$7,'Emissions factors'!$F$4:$CR$4,0))/1000,0)","v":0},{"$f":"IFERROR(CQ84*INDEX('Emissions factors'!$F$5:$CR$10,MATCH('Data Input - Proposed'!$D120,'Emissions factors'!$C$5:$C$10,0),MATCH('Data Input - Proposed'!CQ$7,'Emissions factors'!$F$4:$CR$4,0))/1000,0)","v":0},{"$f":"IFERROR(CR84*INDEX('Emissions factors'!$F$5:$CR$10,MATCH('Data Input - Proposed'!$D120,'Emissions factors'!$C$5:$C$10,0),MATCH('Data Input - Proposed'!CR$7,'Emissions factors'!$F$4:$CR$4,0))/1000,0)","v":0},{"$f":"IFERROR(CS84*INDEX('Emissions factors'!$F$5:$CR$10,MATCH('Data Input - Proposed'!$D120,'Emissions factors'!$C$5:$C$10,0),MATCH('Data Input - Proposed'!CS$7,'Emissions factors'!$F$4:$CR$4,0))/1000,0)","v":0},{"$f":"IFERROR(CT84*INDEX('Emissions factors'!$F$5:$CR$10,MATCH('Data Input - Proposed'!$D120,'Emissions factors'!$C$5:$C$10,0),MATCH('Data Input - Proposed'!CT$7,'Emissions factors'!$F$4:$CR$4,0))/1000,0)","v":0},{"$f":"IFERROR(CU84*INDEX('Emissions factors'!$F$5:$CR$10,MATCH('Data Input - Proposed'!$D120,'Emissions factors'!$C$5:$C$10,0),MATCH('Data Input - Proposed'!CU$7,'Emissions factors'!$F$4:$CR$4,0))/1000,0)","v":0},{"$f":"IFERROR(CV84*INDEX('Emissions factors'!$F$5:$CR$10,MATCH('Data Input - Proposed'!$D120,'Emissions factors'!$C$5:$C$10,0),MATCH('Data Input - Proposed'!CV$7,'Emissions factors'!$F$4:$CR$4,0))/1000,0)","v":0},{"$f":"IFERROR(CW84*INDEX('Emissions factors'!$F$5:$CR$10,MATCH('Data Input - Proposed'!$D120,'Emissions factors'!$C$5:$C$10,0),MATCH('Data Input - Proposed'!CW$7,'Emissions factors'!$F$4:$CR$4,0))/1000,0)","v":0},{"$f":"IFERROR(CX84*INDEX('Emissions factors'!$F$5:$CR$10,MATCH('Data Input - Proposed'!$D120,'Emissions factors'!$C$5:$C$10,0),MATCH('Data Input - Proposed'!CX$7,'Emissions factors'!$F$4:$CR$4,0))/1000,0)","v":0},{"$f":"IFERROR(CY84*INDEX('Emissions factors'!$F$5:$CR$10,MATCH('Data Input - Proposed'!$D120,'Emissions factors'!$C$5:$C$10,0),MATCH('Data Input - Proposed'!CY$7,'Emissions factors'!$F$4:$CR$4,0))/1000,0)","v":0},{"$f":"IFERROR(CZ84*INDEX('Emissions factors'!$F$5:$CR$10,MATCH('Data Input - Proposed'!$D120,'Emissions factors'!$C$5:$C$10,0),MATCH('Data Input - Proposed'!CZ$7,'Emissions factors'!$F$4:$CR$4,0))/1000,0)","v":0},{"$f":"IFERROR(DA84*INDEX('Emissions factors'!$F$5:$CR$10,MATCH('Data Input - Proposed'!$D120,'Emissions factors'!$C$5:$C$10,0),MATCH('Data Input - Proposed'!DA$7,'Emissions factors'!$F$4:$CR$4,0))/1000,0)","v":0},{"$f":"IFERROR(DB84*INDEX('Emissions factors'!$F$5:$CR$10,MATCH('Data Input - Proposed'!$D120,'Emissions factors'!$C$5:$C$10,0),MATCH('Data Input - Proposed'!DB$7,'Emissions factors'!$F$4:$CR$4,0))/1000,0)","v":0},{"$f":"IFERROR(DC84*INDEX('Emissions factors'!$F$5:$CR$10,MATCH('Data Input - Proposed'!$D120,'Emissions factors'!$C$5:$C$10,0),MATCH('Data Input - Proposed'!DC$7,'Emissions factors'!$F$4:$CR$4,0))/1000,0)","v":0}]
[null,null,null,"Natural Gas","tCO2e","(Auto calculated value)",null,{"$f":"IFERROR(H85*INDEX('Emissions factors'!$F$5:$CR$10,MATCH('Data Input - Proposed'!$D121,'Emissions factors'!$C$5:$C$10,0),MATCH('Data Input - Proposed'!H$7,'Emissions factors'!$F$4:$CR$4,0))/1000,0)","v":0},{"$f":"IFERROR(I85*INDEX('Emissions factors'!$F$5:$CR$10,MATCH('Data Input - Proposed'!$D121,'Emissions factors'!$C$5:$C$10,0),MATCH('Data Input - Proposed'!I$7,'Emissions factors'!$F$4:$CR$4,0))/1000,0)","v":0},{"$f":"IFERROR(J85*INDEX('Emissions factors'!$F$5:$CR$10,MATCH('Data Input - Proposed'!$D121,'Emissions factors'!$C$5:$C$10,0),MATCH('Data Input - Proposed'!J$7,'Emissions factors'!$F$4:$CR$4,0))/1000,0)","v":0},{"$f":"IFERROR(K85*INDEX('Emissions factors'!$F$5:$CR$10,MATCH('Data Input - Proposed'!$D121,'Emissions factors'!$C$5:$C$10,0),MATCH('Data Input - Proposed'!K$7,'Emissions factors'!$F$4:$CR$4,0))/1000,0)","v":0},{"$f":"IFERROR(L85*INDEX('Emissions factors'!$F$5:$CR$10,MATCH('Data Input - Proposed'!$D121,'Emissions factors'!$C$5:$C$10,0),MATCH('Data Input - Proposed'!L$7,'Emissions factors'!$F$4:$CR$4,0))/1000,0)","v":0},{"$f":"IFERROR(M85*INDEX('Emissions factors'!$F$5:$CR$10,MATCH('Data Input - Proposed'!$D121,'Emissions factors'!$C$5:$C$10,0),MATCH('Data Input - Proposed'!M$7,'Emissions factors'!$F$4:$CR$4,0))/1000,0)","v":0},{"$f":"IFERROR(N85*INDEX('Emissions factors'!$F$5:$CR$10,MATCH('Data Input - Proposed'!$D121,'Emissions factors'!$C$5:$C$10,0),MATCH('Data Input - Proposed'!N$7,'Emissions factors'!$F$4:$CR$4,0))/1000,0)","v":0},{"$f":"IFERROR(O85*INDEX('Emissions factors'!$F$5:$CR$10,MATCH('Data Input - Proposed'!$D121,'Emissions factors'!$C$5:$C$10,0),MATCH('Data Input - Proposed'!O$7,'Emissions factors'!$F$4:$CR$4,0))/1000,0)","v":0},{"$f":"IFERROR(P85*INDEX('Emissions factors'!$F$5:$CR$10,MATCH('Data Input - Proposed'!$D121,'Emissions factors'!$C$5:$C$10,0),MATCH('Data Input - Proposed'!P$7,'Emissions factors'!$F$4:$CR$4,0))/1000,0)","v":0},{"$f":"IFERROR(Q85*INDEX('Emissions factors'!$F$5:$CR$10,MATCH('Data Input - Proposed'!$D121,'Emissions factors'!$C$5:$C$10,0),MATCH('Data Input - Proposed'!Q$7,'Emissions factors'!$F$4:$CR$4,0))/1000,0)","v":0},{"$f":"IFERROR(R85*INDEX('Emissions factors'!$F$5:$CR$10,MATCH('Data Input - Proposed'!$D121,'Emissions factors'!$C$5:$C$10,0),MATCH('Data Input - Proposed'!R$7,'Emissions factors'!$F$4:$CR$4,0))/1000,0)","v":0},{"$f":"IFERROR(S85*INDEX('Emissions factors'!$F$5:$CR$10,MATCH('Data Input - Proposed'!$D121,'Emissions factors'!$C$5:$C$10,0),MATCH('Data Input - Proposed'!S$7,'Emissions factors'!$F$4:$CR$4,0))/1000,0)","v":0},{"$f":"IFERROR(T85*INDEX('Emissions factors'!$F$5:$CR$10,MATCH('Data Input - Proposed'!$D121,'Emissions factors'!$C$5:$C$10,0),MATCH('Data Input - Proposed'!T$7,'Emissions factors'!$F$4:$CR$4,0))/1000,0)","v":0},{"$f":"IFERROR(U85*INDEX('Emissions factors'!$F$5:$CR$10,MATCH('Data Input - Proposed'!$D121,'Emissions factors'!$C$5:$C$10,0),MATCH('Data Input - Proposed'!U$7,'Emissions factors'!$F$4:$CR$4,0))/1000,0)","v":0},{"$f":"IFERROR(V85*INDEX('Emissions factors'!$F$5:$CR$10,MATCH('Data Input - Proposed'!$D121,'Emissions factors'!$C$5:$C$10,0),MATCH('Data Input - Proposed'!V$7,'Emissions factors'!$F$4:$CR$4,0))/1000,0)","v":0},{"$f":"IFERROR(W85*INDEX('Emissions factors'!$F$5:$CR$10,MATCH('Data Input - Proposed'!$D121,'Emissions factors'!$C$5:$C$10,0),MATCH('Data Input - Proposed'!W$7,'Emissions factors'!$F$4:$CR$4,0))/1000,0)","v":0},{"$f":"IFERROR(X85*INDEX('Emissions factors'!$F$5:$CR$10,MATCH('Data Input - Proposed'!$D121,'Emissions factors'!$C$5:$C$10,0),MATCH('Data Input - Proposed'!X$7,'Emissions factors'!$F$4:$CR$4,0))/1000,0)","v":0},{"$f":"IFERROR(Y85*INDEX('Emissions factors'!$F$5:$CR$10,MATCH('Data Input - Proposed'!$D121,'Emissions factors'!$C$5:$C$10,0),MATCH('Data Input - Proposed'!Y$7,'Emissions factors'!$F$4:$CR$4,0))/1000,0)","v":0},{"$f":"IFERROR(Z85*INDEX('Emissions factors'!$F$5:$CR$10,MATCH('Data Input - Proposed'!$D121,'Emissions factors'!$C$5:$C$10,0),MATCH('Data Input - Proposed'!Z$7,'Emissions factors'!$F$4:$CR$4,0))/1000,0)","v":0},{"$f":"IFERROR(AA85*INDEX('Emissions factors'!$F$5:$CR$10,MATCH('Data Input - Proposed'!$D121,'Emissions factors'!$C$5:$C$10,0),MATCH('Data Input - Proposed'!AA$7,'Emissions factors'!$F$4:$CR$4,0))/1000,0)","v":0},{"$f":"IFERROR(AB85*INDEX('Emissions factors'!$F$5:$CR$10,MATCH('Data Input - Proposed'!$D121,'Emissions factors'!$C$5:$C$10,0),MATCH('Data Input - Proposed'!AB$7,'Emissions factors'!$F$4:$CR$4,0))/1000,0)","v":0},{"$f":"IFERROR(AC85*INDEX('Emissions factors'!$F$5:$CR$10,MATCH('Data Input - Proposed'!$D121,'Emissions factors'!$C$5:$C$10,0),MATCH('Data Input - Proposed'!AC$7,'Emissions factors'!$F$4:$CR$4,0))/1000,0)","v":0},{"$f":"IFERROR(AD85*INDEX('Emissions factors'!$F$5:$CR$10,MATCH('Data Input - Proposed'!$D121,'Emissions factors'!$C$5:$C$10,0),MATCH('Data Input - Proposed'!AD$7,'Emissions factors'!$F$4:$CR$4,0))/1000,0)","v":0},{"$f":"IFERROR(AE85*INDEX('Emissions factors'!$F$5:$CR$10,MATCH('Data Input - Proposed'!$D121,'Emissions factors'!$C$5:$C$10,0),MATCH('Data Input - Proposed'!AE$7,'Emissions factors'!$F$4:$CR$4,0))/1000,0)","v":0},{"$f":"IFERROR(AF85*INDEX('Emissions factors'!$F$5:$CR$10,MATCH('Data Input - Proposed'!$D121,'Emissions factors'!$C$5:$C$10,0),MATCH('Data Input - Proposed'!AF$7,'Emissions factors'!$F$4:$CR$4,0))/1000,0)","v":0},{"$f":"IFERROR(AG85*INDEX('Emissions factors'!$F$5:$CR$10,MATCH('Data Input - Proposed'!$D121,'Emissions factors'!$C$5:$C$10,0),MATCH('Data Input - Proposed'!AG$7,'Emissions factors'!$F$4:$CR$4,0))/1000,0)","v":0},{"$f":"IFERROR(AH85*INDEX('Emissions factors'!$F$5:$CR$10,MATCH('Data Input - Proposed'!$D121,'Emissions factors'!$C$5:$C$10,0),MATCH('Data Input - Proposed'!AH$7,'Emissions factors'!$F$4:$CR$4,0))/1000,0)","v":0},{"$f":"IFERROR(AI85*INDEX('Emissions factors'!$F$5:$CR$10,MATCH('Data Input - Proposed'!$D121,'Emissions factors'!$C$5:$C$10,0),MATCH('Data Input - Proposed'!AI$7,'Emissions factors'!$F$4:$CR$4,0))/1000,0)","v":0},{"$f":"IFERROR(AJ85*INDEX('Emissions factors'!$F$5:$CR$10,MATCH('Data Input - Proposed'!$D121,'Emissions factors'!$C$5:$C$10,0),MATCH('Data Input - Proposed'!AJ$7,'Emissions factors'!$F$4:$CR$4,0))/1000,0)","v":0},{"$f":"IFERROR(AK85*INDEX('Emissions factors'!$F$5:$CR$10,MATCH('Data Input - Proposed'!$D121,'Emissions factors'!$C$5:$C$10,0),MATCH('Data Input - Proposed'!AK$7,'Emissions factors'!$F$4:$CR$4,0))/1000,0)","v":0},{"$f":"IFERROR(AL85*INDEX('Emissions factors'!$F$5:$CR$10,MATCH('Data Input - Proposed'!$D121,'Emissions factors'!$C$5:$C$10,0),MATCH('Data Input - Proposed'!AL$7,'Emissions factors'!$F$4:$CR$4,0))/1000,0)","v":0},{"$f":"IFERROR(AM85*INDEX('Emissions factors'!$F$5:$CR$10,MATCH('Data Input - Proposed'!$D121,'Emissions factors'!$C$5:$C$10,0),MATCH('Data Input - Proposed'!AM$7,'Emissions factors'!$F$4:$CR$4,0))/1000,0)","v":0},{"$f":"IFERROR(AN85*INDEX('Emissions factors'!$F$5:$CR$10,MATCH('Data Input - Proposed'!$D121,'Emissions factors'!$C$5:$C$10,0),MATCH('Data Input - Proposed'!AN$7,'Emissions factors'!$F$4:$CR$4,0))/1000,0)","v":0},{"$f":"IFERROR(AO85*INDEX('Emissions factors'!$F$5:$CR$10,MATCH('Data Input - Proposed'!$D121,'Emissions factors'!$C$5:$C$10,0),MATCH('Data Input - Proposed'!AO$7,'Emissions factors'!$F$4:$CR$4,0))/1000,0)","v":0},{"$f":"IFERROR(AP85*INDEX('Emissions factors'!$F$5:$CR$10,MATCH('Data Input - Proposed'!$D121,'Emissions factors'!$C$5:$C$10,0),MATCH('Data Input - Proposed'!AP$7,'Emissions factors'!$F$4:$CR$4,0))/1000,0)","v":0},{"$f":"IFERROR(AQ85*INDEX('Emissions factors'!$F$5:$CR$10,MATCH('Data Input - Proposed'!$D121,'Emissions factors'!$C$5:$C$10,0),MATCH('Data Input - Proposed'!AQ$7,'Emissions factors'!$F$4:$CR$4,0))/1000,0)","v":0},{"$f":"IFERROR(AR85*INDEX('Emissions factors'!$F$5:$CR$10,MATCH('Data Input - Proposed'!$D121,'Emissions factors'!$C$5:$C$10,0),MATCH('Data Input - Proposed'!AR$7,'Emissions factors'!$F$4:$CR$4,0))/1000,0)","v":0},{"$f":"IFERROR(AS85*INDEX('Emissions factors'!$F$5:$CR$10,MATCH('Data Input - Proposed'!$D121,'Emissions factors'!$C$5:$C$10,0),MATCH('Data Input - Proposed'!AS$7,'Emissions factors'!$F$4:$CR$4,0))/1000,0)","v":0},{"$f":"IFERROR(AT85*INDEX('Emissions factors'!$F$5:$CR$10,MATCH('Data Input - Proposed'!$D121,'Emissions factors'!$C$5:$C$10,0),MATCH('Data Input - Proposed'!AT$7,'Emissions factors'!$F$4:$CR$4,0))/1000,0)","v":0},{"$f":"IFERROR(AU85*INDEX('Emissions factors'!$F$5:$CR$10,MATCH('Data Input - Proposed'!$D121,'Emissions factors'!$C$5:$C$10,0),MATCH('Data Input - Proposed'!AU$7,'Emissions factors'!$F$4:$CR$4,0))/1000,0)","v":0},{"$f":"IFERROR(AV85*INDEX('Emissions factors'!$F$5:$CR$10,MATCH('Data Input - Proposed'!$D121,'Emissions factors'!$C$5:$C$10,0),MATCH('Data Input - Proposed'!AV$7,'Emissions factors'!$F$4:$CR$4,0))/1000,0)","v":0},{"$f":"IFERROR(AW85*INDEX('Emissions factors'!$F$5:$CR$10,MATCH('Data Input - Proposed'!$D121,'Emissions factors'!$C$5:$C$10,0),MATCH('Data Input - Proposed'!AW$7,'Emissions factors'!$F$4:$CR$4,0))/1000,0)","v":0},{"$f":"IFERROR(AX85*INDEX('Emissions factors'!$F$5:$CR$10,MATCH('Data Input - Proposed'!$D121,'Emissions factors'!$C$5:$C$10,0),MATCH('Data Input - Proposed'!AX$7,'Emissions factors'!$F$4:$CR$4,0))/1000,0)","v":0},{"$f":"IFERROR(AY85*INDEX('Emissions factors'!$F$5:$CR$10,MATCH('Data Input - Proposed'!$D121,'Emissions factors'!$C$5:$C$10,0),MATCH('Data Input - Proposed'!AY$7,'Emissions factors'!$F$4:$CR$4,0))/1000,0)","v":0},{"$f":"IFERROR(AZ85*INDEX('Emissions factors'!$F$5:$CR$10,MATCH('Data Input - Proposed'!$D121,'Emissions factors'!$C$5:$C$10,0),MATCH('Data Input - Proposed'!AZ$7,'Emissions factors'!$F$4:$CR$4,0))/1000,0)","v":0},{"$f":"IFERROR(BA85*INDEX('Emissions factors'!$F$5:$CR$10,MATCH('Data Input - Proposed'!$D121,'Emissions factors'!$C$5:$C$10,0),MATCH('Data Input - Proposed'!BA$7,'Emissions factors'!$F$4:$CR$4,0))/1000,0)","v":0},{"$f":"IFERROR(BB85*INDEX('Emissions factors'!$F$5:$CR$10,MATCH('Data Input - Proposed'!$D121,'Emissions factors'!$C$5:$C$10,0),MATCH('Data Input - Proposed'!BB$7,'Emissions factors'!$F$4:$CR$4,0))/1000,0)","v":0},{"$f":"IFERROR(BC85*INDEX('Emissions factors'!$F$5:$CR$10,MATCH('Data Input - Proposed'!$D121,'Emissions factors'!$C$5:$C$10,0),MATCH('Data Input - Proposed'!BC$7,'Emissions factors'!$F$4:$CR$4,0))/1000,0)","v":0},{"$f":"IFERROR(BD85*INDEX('Emissions factors'!$F$5:$CR$10,MATCH('Data Input - Proposed'!$D121,'Emissions factors'!$C$5:$C$10,0),MATCH('Data Input - Proposed'!BD$7,'Emissions factors'!$F$4:$CR$4,0))/1000,0)","v":0},{"$f":"IFERROR(BE85*INDEX('Emissions factors'!$F$5:$CR$10,MATCH('Data Input - Proposed'!$D121,'Emissions factors'!$C$5:$C$10,0),MATCH('Data Input - Proposed'!BE$7,'Emissions factors'!$F$4:$CR$4,0))/1000,0)","v":0},{"$f":"IFERROR(BF85*INDEX('Emissions factors'!$F$5:$CR$10,MATCH('Data Input - Proposed'!$D121,'Emissions factors'!$C$5:$C$10,0),MATCH('Data Input - Proposed'!BF$7,'Emissions factors'!$F$4:$CR$4,0))/1000,0)","v":0},{"$f":"IFERROR(BG85*INDEX('Emissions factors'!$F$5:$CR$10,MATCH('Data Input - Proposed'!$D121,'Emissions factors'!$C$5:$C$10,0),MATCH('Data Input - Proposed'!BG$7,'Emissions factors'!$F$4:$CR$4,0))/1000,0)","v":0},{"$f":"IFERROR(BH85*INDEX('Emissions factors'!$F$5:$CR$10,MATCH('Data Input - Proposed'!$D121,'Emissions factors'!$C$5:$C$10,0),MATCH('Data Input - Proposed'!BH$7,'Emissions factors'!$F$4:$CR$4,0))/1000,0)","v":0},{"$f":"IFERROR(BI85*INDEX('Emissions factors'!$F$5:$CR$10,MATCH('Data Input - Proposed'!$D121,'Emissions factors'!$C$5:$C$10,0),MATCH('Data Input - Proposed'!BI$7,'Emissions factors'!$F$4:$CR$4,0))/1000,0)","v":0},{"$f":"IFERROR(BJ85*INDEX('Emissions factors'!$F$5:$CR$10,MATCH('Data Input - Proposed'!$D121,'Emissions factors'!$C$5:$C$10,0),MATCH('Data Input - Proposed'!BJ$7,'Emissions factors'!$F$4:$CR$4,0))/1000,0)","v":0},{"$f":"IFERROR(BK85*INDEX('Emissions factors'!$F$5:$CR$10,MATCH('Data Input - Proposed'!$D121,'Emissions factors'!$C$5:$C$10,0),MATCH('Data Input - Proposed'!BK$7,'Emissions factors'!$F$4:$CR$4,0))/1000,0)","v":0},{"$f":"IFERROR(BL85*INDEX('Emissions factors'!$F$5:$CR$10,MATCH('Data Input - Proposed'!$D121,'Emissions factors'!$C$5:$C$10,0),MATCH('Data Input - Proposed'!BL$7,'Emissions factors'!$F$4:$CR$4,0))/1000,0)","v":0},{"$f":"IFERROR(BM85*INDEX('Emissions factors'!$F$5:$CR$10,MATCH('Data Input - Proposed'!$D121,'Emissions factors'!$C$5:$C$10,0),MATCH('Data Input - Proposed'!BM$7,'Emissions factors'!$F$4:$CR$4,0))/1000,0)","v":0},{"$f":"IFERROR(BN85*INDEX('Emissions factors'!$F$5:$CR$10,MATCH('Data Input - Proposed'!$D121,'Emissions factors'!$C$5:$C$10,0),MATCH('Data Input - Proposed'!BN$7,'Emissions factors'!$F$4:$CR$4,0))/1000,0)","v":0},{"$f":"IFERROR(BO85*INDEX('Emissions factors'!$F$5:$CR$10,MATCH('Data Input - Proposed'!$D121,'Emissions factors'!$C$5:$C$10,0),MATCH('Data Input - Proposed'!BO$7,'Emissions factors'!$F$4:$CR$4,0))/1000,0)","v":0},{"$f":"IFERROR(BP85*INDEX('Emissions factors'!$F$5:$CR$10,MATCH('Data Input - Proposed'!$D121,'Emissions factors'!$C$5:$C$10,0),MATCH('Data Input - Proposed'!BP$7,'Emissions factors'!$F$4:$CR$4,0))/1000,0)","v":0},{"$f":"IFERROR(BQ85*INDEX('Emissions factors'!$F$5:$CR$10,MATCH('Data Input - Proposed'!$D121,'Emissions factors'!$C$5:$C$10,0),MATCH('Data Input - Proposed'!BQ$7,'Emissions factors'!$F$4:$CR$4,0))/1000,0)","v":0},{"$f":"IFERROR(BR85*INDEX('Emissions factors'!$F$5:$CR$10,MATCH('Data Input - Proposed'!$D121,'Emissions factors'!$C$5:$C$10,0),MATCH('Data Input - Proposed'!BR$7,'Emissions factors'!$F$4:$CR$4,0))/1000,0)","v":0},{"$f":"IFERROR(BS85*INDEX('Emissions factors'!$F$5:$CR$10,MATCH('Data Input - Proposed'!$D121,'Emissions factors'!$C$5:$C$10,0),MATCH('Data Input - Proposed'!BS$7,'Emissions factors'!$F$4:$CR$4,0))/1000,0)","v":0},{"$f":"IFERROR(BT85*INDEX('Emissions factors'!$F$5:$CR$10,MATCH('Data Input - Proposed'!$D121,'Emissions factors'!$C$5:$C$10,0),MATCH('Data Input - Proposed'!BT$7,'Emissions factors'!$F$4:$CR$4,0))/1000,0)","v":0},{"$f":"IFERROR(BU85*INDEX('Emissions factors'!$F$5:$CR$10,MATCH('Data Input - Proposed'!$D121,'Emissions factors'!$C$5:$C$10,0),MATCH('Data Input - Proposed'!BU$7,'Emissions factors'!$F$4:$CR$4,0))/1000,0)","v":0},{"$f":"IFERROR(BV85*INDEX('Emissions factors'!$F$5:$CR$10,MATCH('Data Input - Proposed'!$D121,'Emissions factors'!$C$5:$C$10,0),MATCH('Data Input - Proposed'!BV$7,'Emissions factors'!$F$4:$CR$4,0))/1000,0)","v":0},{"$f":"IFERROR(BW85*INDEX('Emissions factors'!$F$5:$CR$10,MATCH('Data Input - Proposed'!$D121,'Emissions factors'!$C$5:$C$10,0),MATCH('Data Input - Proposed'!BW$7,'Emissions factors'!$F$4:$CR$4,0))/1000,0)","v":0},{"$f":"IFERROR(BX85*INDEX('Emissions factors'!$F$5:$CR$10,MATCH('Data Input - Proposed'!$D121,'Emissions factors'!$C$5:$C$10,0),MATCH('Data Input - Proposed'!BX$7,'Emissions factors'!$F$4:$CR$4,0))/1000,0)","v":0},{"$f":"IFERROR(BY85*INDEX('Emissions factors'!$F$5:$CR$10,MATCH('Data Input - Proposed'!$D121,'Emissions factors'!$C$5:$C$10,0),MATCH('Data Input - Proposed'!BY$7,'Emissions factors'!$F$4:$CR$4,0))/1000,0)","v":0},{"$f":"IFERROR(BZ85*INDEX('Emissions factors'!$F$5:$CR$10,MATCH('Data Input - Proposed'!$D121,'Emissions factors'!$C$5:$C$10,0),MATCH('Data Input - Proposed'!BZ$7,'Emissions factors'!$F$4:$CR$4,0))/1000,0)","v":0},{"$f":"IFERROR(CA85*INDEX('Emissions factors'!$F$5:$CR$10,MATCH('Data Input - Proposed'!$D121,'Emissions factors'!$C$5:$C$10,0),MATCH('Data Input - Proposed'!CA$7,'Emissions factors'!$F$4:$CR$4,0))/1000,0)","v":0},{"$f":"IFERROR(CB85*INDEX('Emissions factors'!$F$5:$CR$10,MATCH('Data Input - Proposed'!$D121,'Emissions factors'!$C$5:$C$10,0),MATCH('Data Input - Proposed'!CB$7,'Emissions factors'!$F$4:$CR$4,0))/1000,0)","v":0},{"$f":"IFERROR(CC85*INDEX('Emissions factors'!$F$5:$CR$10,MATCH('Data Input - Proposed'!$D121,'Emissions factors'!$C$5:$C$10,0),MATCH('Data Input - Proposed'!CC$7,'Emissions factors'!$F$4:$CR$4,0))/1000,0)","v":0},{"$f":"IFERROR(CD85*INDEX('Emissions factors'!$F$5:$CR$10,MATCH('Data Input - Proposed'!$D121,'Emissions factors'!$C$5:$C$10,0),MATCH('Data Input - Proposed'!CD$7,'Emissions factors'!$F$4:$CR$4,0))/1000,0)","v":0},{"$f":"IFERROR(CE85*INDEX('Emissions factors'!$F$5:$CR$10,MATCH('Data Input - Proposed'!$D121,'Emissions factors'!$C$5:$C$10,0),MATCH('Data Input - Proposed'!CE$7,'Emissions factors'!$F$4:$CR$4,0))/1000,0)","v":0},{"$f":"IFERROR(CF85*INDEX('Emissions factors'!$F$5:$CR$10,MATCH('Data Input - Proposed'!$D121,'Emissions factors'!$C$5:$C$10,0),MATCH('Data Input - Proposed'!CF$7,'Emissions factors'!$F$4:$CR$4,0))/1000,0)","v":0},{"$f":"IFERROR(CG85*INDEX('Emissions factors'!$F$5:$CR$10,MATCH('Data Input - Proposed'!$D121,'Emissions factors'!$C$5:$C$10,0),MATCH('Data Input - Proposed'!CG$7,'Emissions factors'!$F$4:$CR$4,0))/1000,0)","v":0},{"$f":"IFERROR(CH85*INDEX('Emissions factors'!$F$5:$CR$10,MATCH('Data Input - Proposed'!$D121,'Emissions factors'!$C$5:$C$10,0),MATCH('Data Input - Proposed'!CH$7,'Emissions factors'!$F$4:$CR$4,0))/1000,0)","v":0},{"$f":"IFERROR(CI85*INDEX('Emissions factors'!$F$5:$CR$10,MATCH('Data Input - Proposed'!$D121,'Emissions factors'!$C$5:$C$10,0),MATCH('Data Input - Proposed'!CI$7,'Emissions factors'!$F$4:$CR$4,0))/1000,0)","v":0},{"$f":"IFERROR(CJ85*INDEX('Emissions factors'!$F$5:$CR$10,MATCH('Data Input - Proposed'!$D121,'Emissions factors'!$C$5:$C$10,0),MATCH('Data Input - Proposed'!CJ$7,'Emissions factors'!$F$4:$CR$4,0))/1000,0)","v":0},{"$f":"IFERROR(CK85*INDEX('Emissions factors'!$F$5:$CR$10,MATCH('Data Input - Proposed'!$D121,'Emissions factors'!$C$5:$C$10,0),MATCH('Data Input - Proposed'!CK$7,'Emissions factors'!$F$4:$CR$4,0))/1000,0)","v":0},{"$f":"IFERROR(CL85*INDEX('Emissions factors'!$F$5:$CR$10,MATCH('Data Input - Proposed'!$D121,'Emissions factors'!$C$5:$C$10,0),MATCH('Data Input - Proposed'!CL$7,'Emissions factors'!$F$4:$CR$4,0))/1000,0)","v":0},{"$f":"IFERROR(CM85*INDEX('Emissions factors'!$F$5:$CR$10,MATCH('Data Input - Proposed'!$D121,'Emissions factors'!$C$5:$C$10,0),MATCH('Data Input - Proposed'!CM$7,'Emissions factors'!$F$4:$CR$4,0))/1000,0)","v":0},{"$f":"IFERROR(CN85*INDEX('Emissions factors'!$F$5:$CR$10,MATCH('Data Input - Proposed'!$D121,'Emissions factors'!$C$5:$C$10,0),MATCH('Data Input - Proposed'!CN$7,'Emissions factors'!$F$4:$CR$4,0))/1000,0)","v":0},{"$f":"IFERROR(CO85*INDEX('Emissions factors'!$F$5:$CR$10,MATCH('Data Input - Proposed'!$D121,'Emissions factors'!$C$5:$C$10,0),MATCH('Data Input - Proposed'!CO$7,'Emissions factors'!$F$4:$CR$4,0))/1000,0)","v":0},{"$f":"IFERROR(CP85*INDEX('Emissions factors'!$F$5:$CR$10,MATCH('Data Input - Proposed'!$D121,'Emissions factors'!$C$5:$C$10,0),MATCH('Data Input - Proposed'!CP$7,'Emissions factors'!$F$4:$CR$4,0))/1000,0)","v":0},{"$f":"IFERROR(CQ85*INDEX('Emissions factors'!$F$5:$CR$10,MATCH('Data Input - Proposed'!$D121,'Emissions factors'!$C$5:$C$10,0),MATCH('Data Input - Proposed'!CQ$7,'Emissions factors'!$F$4:$CR$4,0))/1000,0)","v":0},{"$f":"IFERROR(CR85*INDEX('Emissions factors'!$F$5:$CR$10,MATCH('Data Input - Proposed'!$D121,'Emissions factors'!$C$5:$C$10,0),MATCH('Data Input - Proposed'!CR$7,'Emissions factors'!$F$4:$CR$4,0))/1000,0)","v":0},{"$f":"IFERROR(CS85*INDEX('Emissions factors'!$F$5:$CR$10,MATCH('Data Input - Proposed'!$D121,'Emissions factors'!$C$5:$C$10,0),MATCH('Data Input - Proposed'!CS$7,'Emissions factors'!$F$4:$CR$4,0))/1000,0)","v":0},{"$f":"IFERROR(CT85*INDEX('Emissions factors'!$F$5:$CR$10,MATCH('Data Input - Proposed'!$D121,'Emissions factors'!$C$5:$C$10,0),MATCH('Data Input - Proposed'!CT$7,'Emissions factors'!$F$4:$CR$4,0))/1000,0)","v":0},{"$f":"IFERROR(CU85*INDEX('Emissions factors'!$F$5:$CR$10,MATCH('Data Input - Proposed'!$D121,'Emissions factors'!$C$5:$C$10,0),MATCH('Data Input - Proposed'!CU$7,'Emissions factors'!$F$4:$CR$4,0))/1000,0)","v":0},{"$f":"IFERROR(CV85*INDEX('Emissions factors'!$F$5:$CR$10,MATCH('Data Input - Proposed'!$D121,'Emissions factors'!$C$5:$C$10,0),MATCH('Data Input - Proposed'!CV$7,'Emissions factors'!$F$4:$CR$4,0))/1000,0)","v":0},{"$f":"IFERROR(CW85*INDEX('Emissions factors'!$F$5:$CR$10,MATCH('Data Input - Proposed'!$D121,'Emissions factors'!$C$5:$C$10,0),MATCH('Data Input - Proposed'!CW$7,'Emissions factors'!$F$4:$CR$4,0))/1000,0)","v":0},{"$f":"IFERROR(CX85*INDEX('Emissions factors'!$F$5:$CR$10,MATCH('Data Input - Proposed'!$D121,'Emissions factors'!$C$5:$C$10,0),MATCH('Data Input - Proposed'!CX$7,'Emissions factors'!$F$4:$CR$4,0))/1000,0)","v":0},{"$f":"IFERROR(CY85*INDEX('Emissions factors'!$F$5:$CR$10,MATCH('Data Input - Proposed'!$D121,'Emissions factors'!$C$5:$C$10,0),MATCH('Data Input - Proposed'!CY$7,'Emissions factors'!$F$4:$CR$4,0))/1000,0)","v":0},{"$f":"IFERROR(CZ85*INDEX('Emissions factors'!$F$5:$CR$10,MATCH('Data Input - Proposed'!$D121,'Emissions factors'!$C$5:$C$10,0),MATCH('Data Input - Proposed'!CZ$7,'Emissions factors'!$F$4:$CR$4,0))/1000,0)","v":0},{"$f":"IFERROR(DA85*INDEX('Emissions factors'!$F$5:$CR$10,MATCH('Data Input - Proposed'!$D121,'Emissions factors'!$C$5:$C$10,0),MATCH('Data Input - Proposed'!DA$7,'Emissions factors'!$F$4:$CR$4,0))/1000,0)","v":0},{"$f":"IFERROR(DB85*INDEX('Emissions factors'!$F$5:$CR$10,MATCH('Data Input - Proposed'!$D121,'Emissions factors'!$C$5:$C$10,0),MATCH('Data Input - Proposed'!DB$7,'Emissions factors'!$F$4:$CR$4,0))/1000,0)","v":0},{"$f":"IFERROR(DC85*INDEX('Emissions factors'!$F$5:$CR$10,MATCH('Data Input - Proposed'!$D121,'Emissions factors'!$C$5:$C$10,0),MATCH('Data Input - Proposed'!DC$7,'Emissions factors'!$F$4:$CR$4,0))/1000,0)","v":0}]
[null,null,null,"Coal","tCO2e","(Auto calculated value)",null,{"$f":"IFERROR(H86*INDEX('Emissions factors'!$F$5:$CR$10,MATCH('Data Input - Proposed'!$D122,'Emissions factors'!$C$5:$C$10,0),MATCH('Data Input - Proposed'!H$7,'Emissions factors'!$F$4:$CR$4,0))/1000,0)","v":39953.636752500002},{"$f":"IFERROR(I86*INDEX('Emissions factors'!$F$5:$CR$10,MATCH('Data Input - Proposed'!$D122,'Emissions factors'!$C$5:$C$10,0),MATCH('Data Input - Proposed'!I$7,'Emissions factors'!$F$4:$CR$4,0))/1000,0)","v":39953.636752500002},{"$f":"IFERROR(J86*INDEX('Emissions factors'!$F$5:$CR$10,MATCH('Data Input - Proposed'!$D122,'Emissions factors'!$C$5:$C$10,0),MATCH('Data Input - Proposed'!J$7,'Emissions factors'!$F$4:$CR$4,0))/1000,0)","v":39953.636752500002},{"$f":"IFERROR(K86*INDEX('Emissions factors'!$F$5:$CR$10,MATCH('Data Input - Proposed'!$D122,'Emissions factors'!$C$5:$C$10,0),MATCH('Data Input - Proposed'!K$7,'Emissions factors'!$F$4:$CR$4,0))/1000,0)","v":39953.636752500002},{"$f":"IFERROR(L86*INDEX('Emissions factors'!$F$5:$CR$10,MATCH('Data Input - Proposed'!$D122,'Emissions factors'!$C$5:$C$10,0),MATCH('Data Input - Proposed'!L$7,'Emissions factors'!$F$4:$CR$4,0))/1000,0)","v":39953.636752500002},{"$f":"IFERROR(M86*INDEX('Emissions factors'!$F$5:$CR$10,MATCH('Data Input - Proposed'!$D122,'Emissions factors'!$C$5:$C$10,0),MATCH('Data Input - Proposed'!M$7,'Emissions factors'!$F$4:$CR$4,0))/1000,0)","v":39953.636752500002},{"$f":"IFERROR(N86*INDEX('Emissions factors'!$F$5:$CR$10,MATCH('Data Input - Proposed'!$D122,'Emissions factors'!$C$5:$C$10,0),MATCH('Data Input - Proposed'!N$7,'Emissions factors'!$F$4:$CR$4,0))/1000,0)","v":39953.636752500002},{"$f":"IFERROR(O86*INDEX('Emissions factors'!$F$5:$CR$10,MATCH('Data Input - Proposed'!$D122,'Emissions factors'!$C$5:$C$10,0),MATCH('Data Input - Proposed'!O$7,'Emissions factors'!$F$4:$CR$4,0))/1000,0)","v":39953.636752500002},{"$f":"IFERROR(P86*INDEX('Emissions factors'!$F$5:$CR$10,MATCH('Data Input - Proposed'!$D122,'Emissions factors'!$C$5:$C$10,0),MATCH('Data Input - Proposed'!P$7,'Emissions factors'!$F$4:$CR$4,0))/1000,0)","v":0},{"$f":"IFERROR(Q86*INDEX('Emissions factors'!$F$5:$CR$10,MATCH('Data Input - Proposed'!$D122,'Emissions factors'!$C$5:$C$10,0),MATCH('Data Input - Proposed'!Q$7,'Emissions factors'!$F$4:$CR$4,0))/1000,0)","v":0},{"$f":"IFERROR(R86*INDEX('Emissions factors'!$F$5:$CR$10,MATCH('Data Input - Proposed'!$D122,'Emissions factors'!$C$5:$C$10,0),MATCH('Data Input - Proposed'!R$7,'Emissions factors'!$F$4:$CR$4,0))/1000,0)","v":0},{"$f":"IFERROR(S86*INDEX('Emissions factors'!$F$5:$CR$10,MATCH('Data Input - Proposed'!$D122,'Emissions factors'!$C$5:$C$10,0),MATCH('Data Input - Proposed'!S$7,'Emissions factors'!$F$4:$CR$4,0))/1000,0)","v":0},{"$f":"IFERROR(T86*INDEX('Emissions factors'!$F$5:$CR$10,MATCH('Data Input - Proposed'!$D122,'Emissions factors'!$C$5:$C$10,0),MATCH('Data Input - Proposed'!T$7,'Emissions factors'!$F$4:$CR$4,0))/1000,0)","v":0},{"$f":"IFERROR(U86*INDEX('Emissions factors'!$F$5:$CR$10,MATCH('Data Input - Proposed'!$D122,'Emissions factors'!$C$5:$C$10,0),MATCH('Data Input - Proposed'!U$7,'Emissions factors'!$F$4:$CR$4,0))/1000,0)","v":0},{"$f":"IFERROR(V86*INDEX('Emissions factors'!$F$5:$CR$10,MATCH('Data Input - Proposed'!$D122,'Emissions factors'!$C$5:$C$10,0),MATCH('Data Input - Proposed'!V$7,'Emissions factors'!$F$4:$CR$4,0))/1000,0)","v":0},{"$f":"IFERROR(W86*INDEX('Emissions factors'!$F$5:$CR$10,MATCH('Data Input - Proposed'!$D122,'Emissions factors'!$C$5:$C$10,0),MATCH('Data Input - Proposed'!W$7,'Emissions factors'!$F$4:$CR$4,0))/1000,0)","v":0},{"$f":"IFERROR(X86*INDEX('Emissions factors'!$F$5:$CR$10,MATCH('Data Input - Proposed'!$D122,'Emissions factors'!$C$5:$C$10,0),MATCH('Data Input - Proposed'!X$7,'Emissions factors'!$F$4:$CR$4,0))/1000,0)","v":0},{"$f":"IFERROR(Y86*INDEX('Emissions factors'!$F$5:$CR$10,MATCH('Data Input - Proposed'!$D122,'Emissions factors'!$C$5:$C$10,0),MATCH('Data Input - Proposed'!Y$7,'Emissions factors'!$F$4:$CR$4,0))/1000,0)","v":0},{"$f":"IFERROR(Z86*INDEX('Emissions factors'!$F$5:$CR$10,MATCH('Data Input - Proposed'!$D122,'Emissions factors'!$C$5:$C$10,0),MATCH('Data Input - Proposed'!Z$7,'Emissions factors'!$F$4:$CR$4,0))/1000,0)","v":0},{"$f":"IFERROR(AA86*INDEX('Emissions factors'!$F$5:$CR$10,MATCH('Data Input - Proposed'!$D122,'Emissions factors'!$C$5:$C$10,0),MATCH('Data Input - Proposed'!AA$7,'Emissions factors'!$F$4:$CR$4,0))/1000,0)","v":0},{"$f":"IFERROR(AB86*INDEX('Emissions factors'!$F$5:$CR$10,MATCH('Data Input - Proposed'!$D122,'Emissions factors'!$C$5:$C$10,0),MATCH('Data Input - Proposed'!AB$7,'Emissions factors'!$F$4:$CR$4,0))/1000,0)","v":0},{"$f":"IFERROR(AC86*INDEX('Emissions factors'!$F$5:$CR$10,MATCH('Data Input - Proposed'!$D122,'Emissions factors'!$C$5:$C$10,0),MATCH('Data Input - Proposed'!AC$7,'Emissions factors'!$F$4:$CR$4,0))/1000,0)","v":0},{"$f":"IFERROR(AD86*INDEX('Emissions factors'!$F$5:$CR$10,MATCH('Data Input - Proposed'!$D122,'Emissions factors'!$C$5:$C$10,0),MATCH('Data Input - Proposed'!AD$7,'Emissions factors'!$F$4:$CR$4,0))/1000,0)","v":0},{"$f":"IFERROR(AE86*INDEX('Emissions factors'!$F$5:$CR$10,MATCH('Data Input - Proposed'!$D122,'Emissions factors'!$C$5:$C$10,0),MATCH('Data Input - Proposed'!AE$7,'Emissions factors'!$F$4:$CR$4,0))/1000,0)","v":0},{"$f":"IFERROR(AF86*INDEX('Emissions factors'!$F$5:$CR$10,MATCH('Data Input - Proposed'!$D122,'Emissions factors'!$C$5:$C$10,0),MATCH('Data Input - Proposed'!AF$7,'Emissions factors'!$F$4:$CR$4,0))/1000,0)","v":0},{"$f":"IFERROR(AG86*INDEX('Emissions factors'!$F$5:$CR$10,MATCH('Data Input - Proposed'!$D122,'Emissions factors'!$C$5:$C$10,0),MATCH('Data Input - Proposed'!AG$7,'Emissions factors'!$F$4:$CR$4,0))/1000,0)","v":0},{"$f":"IFERROR(AH86*INDEX('Emissions factors'!$F$5:$CR$10,MATCH('Data Input - Proposed'!$D122,'Emissions factors'!$C$5:$C$10,0),MATCH('Data Input - Proposed'!AH$7,'Emissions factors'!$F$4:$CR$4,0))/1000,0)","v":0},{"$f":"IFERROR(AI86*INDEX('Emissions factors'!$F$5:$CR$10,MATCH('Data Input - Proposed'!$D122,'Emissions factors'!$C$5:$C$10,0),MATCH('Data Input - Proposed'!AI$7,'Emissions factors'!$F$4:$CR$4,0))/1000,0)","v":0},{"$f":"IFERROR(AJ86*INDEX('Emissions factors'!$F$5:$CR$10,MATCH('Data Input - Proposed'!$D122,'Emissions factors'!$C$5:$C$10,0),MATCH('Data Input - Proposed'!AJ$7,'Emissions factors'!$F$4:$CR$4,0))/1000,0)","v":0},{"$f":"IFERROR(AK86*INDEX('Emissions factors'!$F$5:$CR$10,MATCH('Data Input - Proposed'!$D122,'Emissions factors'!$C$5:$C$10,0),MATCH('Data Input - Proposed'!AK$7,'Emissions factors'!$F$4:$CR$4,0))/1000,0)","v":0},{"$f":"IFERROR(AL86*INDEX('Emissions factors'!$F$5:$CR$10,MATCH('Data Input - Proposed'!$D122,'Emissions factors'!$C$5:$C$10,0),MATCH('Data Input - Proposed'!AL$7,'Emissions factors'!$F$4:$CR$4,0))/1000,0)","v":0},{"$f":"IFERROR(AM86*INDEX('Emissions factors'!$F$5:$CR$10,MATCH('Data Input - Proposed'!$D122,'Emissions factors'!$C$5:$C$10,0),MATCH('Data Input - Proposed'!AM$7,'Emissions factors'!$F$4:$CR$4,0))/1000,0)","v":0},{"$f":"IFERROR(AN86*INDEX('Emissions factors'!$F$5:$CR$10,MATCH('Data Input - Proposed'!$D122,'Emissions factors'!$C$5:$C$10,0),MATCH('Data Input - Proposed'!AN$7,'Emissions factors'!$F$4:$CR$4,0))/1000,0)","v":0},{"$f":"IFERROR(AO86*INDEX('Emissions factors'!$F$5:$CR$10,MATCH('Data Input - Proposed'!$D122,'Emissions factors'!$C$5:$C$10,0),MATCH('Data Input - Proposed'!AO$7,'Emissions factors'!$F$4:$CR$4,0))/1000,0)","v":0},{"$f":"IFERROR(AP86*INDEX('Emissions factors'!$F$5:$CR$10,MATCH('Data Input - Proposed'!$D122,'Emissions factors'!$C$5:$C$10,0),MATCH('Data Input - Proposed'!AP$7,'Emissions factors'!$F$4:$CR$4,0))/1000,0)","v":0},{"$f":"IFERROR(AQ86*INDEX('Emissions factors'!$F$5:$CR$10,MATCH('Data Input - Proposed'!$D122,'Emissions factors'!$C$5:$C$10,0),MATCH('Data Input - Proposed'!AQ$7,'Emissions factors'!$F$4:$CR$4,0))/1000,0)","v":0},{"$f":"IFERROR(AR86*INDEX('Emissions factors'!$F$5:$CR$10,MATCH('Data Input - Proposed'!$D122,'Emissions factors'!$C$5:$C$10,0),MATCH('Data Input - Proposed'!AR$7,'Emissions factors'!$F$4:$CR$4,0))/1000,0)","v":0},{"$f":"IFERROR(AS86*INDEX('Emissions factors'!$F$5:$CR$10,MATCH('Data Input - Proposed'!$D122,'Emissions factors'!$C$5:$C$10,0),MATCH('Data Input - Proposed'!AS$7,'Emissions factors'!$F$4:$CR$4,0))/1000,0)","v":0},{"$f":"IFERROR(AT86*INDEX('Emissions factors'!$F$5:$CR$10,MATCH('Data Input - Proposed'!$D122,'Emissions factors'!$C$5:$C$10,0),MATCH('Data Input - Proposed'!AT$7,'Emissions factors'!$F$4:$CR$4,0))/1000,0)","v":0},{"$f":"IFERROR(AU86*INDEX('Emissions factors'!$F$5:$CR$10,MATCH('Data Input - Proposed'!$D122,'Emissions factors'!$C$5:$C$10,0),MATCH('Data Input - Proposed'!AU$7,'Emissions factors'!$F$4:$CR$4,0))/1000,0)","v":0},{"$f":"IFERROR(AV86*INDEX('Emissions factors'!$F$5:$CR$10,MATCH('Data Input - Proposed'!$D122,'Emissions factors'!$C$5:$C$10,0),MATCH('Data Input - Proposed'!AV$7,'Emissions factors'!$F$4:$CR$4,0))/1000,0)","v":0},{"$f":"IFERROR(AW86*INDEX('Emissions factors'!$F$5:$CR$10,MATCH('Data Input - Proposed'!$D122,'Emissions factors'!$C$5:$C$10,0),MATCH('Data Input - Proposed'!AW$7,'Emissions factors'!$F$4:$CR$4,0))/1000,0)","v":0},{"$f":"IFERROR(AX86*INDEX('Emissions factors'!$F$5:$CR$10,MATCH('Data Input - Proposed'!$D122,'Emissions factors'!$C$5:$C$10,0),MATCH('Data Input - Proposed'!AX$7,'Emissions factors'!$F$4:$CR$4,0))/1000,0)","v":0},{"$f":"IFERROR(AY86*INDEX('Emissions factors'!$F$5:$CR$10,MATCH('Data Input - Proposed'!$D122,'Emissions factors'!$C$5:$C$10,0),MATCH('Data Input - Proposed'!AY$7,'Emissions factors'!$F$4:$CR$4,0))/1000,0)","v":0},{"$f":"IFERROR(AZ86*INDEX('Emissions factors'!$F$5:$CR$10,MATCH('Data Input - Proposed'!$D122,'Emissions factors'!$C$5:$C$10,0),MATCH('Data Input - Proposed'!AZ$7,'Emissions factors'!$F$4:$CR$4,0))/1000,0)","v":0},{"$f":"IFERROR(BA86*INDEX('Emissions factors'!$F$5:$CR$10,MATCH('Data Input - Proposed'!$D122,'Emissions factors'!$C$5:$C$10,0),MATCH('Data Input - Proposed'!BA$7,'Emissions factors'!$F$4:$CR$4,0))/1000,0)","v":0},{"$f":"IFERROR(BB86*INDEX('Emissions factors'!$F$5:$CR$10,MATCH('Data Input - Proposed'!$D122,'Emissions factors'!$C$5:$C$10,0),MATCH('Data Input - Proposed'!BB$7,'Emissions factors'!$F$4:$CR$4,0))/1000,0)","v":0},{"$f":"IFERROR(BC86*INDEX('Emissions factors'!$F$5:$CR$10,MATCH('Data Input - Proposed'!$D122,'Emissions factors'!$C$5:$C$10,0),MATCH('Data Input - Proposed'!BC$7,'Emissions factors'!$F$4:$CR$4,0))/1000,0)","v":0},{"$f":"IFERROR(BD86*INDEX('Emissions factors'!$F$5:$CR$10,MATCH('Data Input - Proposed'!$D122,'Emissions factors'!$C$5:$C$10,0),MATCH('Data Input - Proposed'!BD$7,'Emissions factors'!$F$4:$CR$4,0))/1000,0)","v":0},{"$f":"IFERROR(BE86*INDEX('Emissions factors'!$F$5:$CR$10,MATCH('Data Input - Proposed'!$D122,'Emissions factors'!$C$5:$C$10,0),MATCH('Data Input - Proposed'!BE$7,'Emissions factors'!$F$4:$CR$4,0))/1000,0)","v":0},{"$f":"IFERROR(BF86*INDEX('Emissions factors'!$F$5:$CR$10,MATCH('Data Input - Proposed'!$D122,'Emissions factors'!$C$5:$C$10,0),MATCH('Data Input - Proposed'!BF$7,'Emissions factors'!$F$4:$CR$4,0))/1000,0)","v":0},{"$f":"IFERROR(BG86*INDEX('Emissions factors'!$F$5:$CR$10,MATCH('Data Input - Proposed'!$D122,'Emissions factors'!$C$5:$C$10,0),MATCH('Data Input - Proposed'!BG$7,'Emissions factors'!$F$4:$CR$4,0))/1000,0)","v":0},{"$f":"IFERROR(BH86*INDEX('Emissions factors'!$F$5:$CR$10,MATCH('Data Input - Proposed'!$D122,'Emissions factors'!$C$5:$C$10,0),MATCH('Data Input - Proposed'!BH$7,'Emissions factors'!$F$4:$CR$4,0))/1000,0)","v":0},{"$f":"IFERROR(BI86*INDEX('Emissions factors'!$F$5:$CR$10,MATCH('Data Input - Proposed'!$D122,'Emissions factors'!$C$5:$C$10,0),MATCH('Data Input - Proposed'!BI$7,'Emissions factors'!$F$4:$CR$4,0))/1000,0)","v":0},{"$f":"IFERROR(BJ86*INDEX('Emissions factors'!$F$5:$CR$10,MATCH('Data Input - Proposed'!$D122,'Emissions factors'!$C$5:$C$10,0),MATCH('Data Input - Proposed'!BJ$7,'Emissions factors'!$F$4:$CR$4,0))/1000,0)","v":0},{"$f":"IFERROR(BK86*INDEX('Emissions factors'!$F$5:$CR$10,MATCH('Data Input - Proposed'!$D122,'Emissions factors'!$C$5:$C$10,0),MATCH('Data Input - Proposed'!BK$7,'Emissions factors'!$F$4:$CR$4,0))/1000,0)","v":0},{"$f":"IFERROR(BL86*INDEX('Emissions factors'!$F$5:$CR$10,MATCH('Data Input - Proposed'!$D122,'Emissions factors'!$C$5:$C$10,0),MATCH('Data Input - Proposed'!BL$7,'Emissions factors'!$F$4:$CR$4,0))/1000,0)","v":0},{"$f":"IFERROR(BM86*INDEX('Emissions factors'!$F$5:$CR$10,MATCH('Data Input - Proposed'!$D122,'Emissions factors'!$C$5:$C$10,0),MATCH('Data Input - Proposed'!BM$7,'Emissions factors'!$F$4:$CR$4,0))/1000,0)","v":0},{"$f":"IFERROR(BN86*INDEX('Emissions factors'!$F$5:$CR$10,MATCH('Data Input - Proposed'!$D122,'Emissions factors'!$C$5:$C$10,0),MATCH('Data Input - Proposed'!BN$7,'Emissions factors'!$F$4:$CR$4,0))/1000,0)","v":0},{"$f":"IFERROR(BO86*INDEX('Emissions factors'!$F$5:$CR$10,MATCH('Data Input - Proposed'!$D122,'Emissions factors'!$C$5:$C$10,0),MATCH('Data Input - Proposed'!BO$7,'Emissions factors'!$F$4:$CR$4,0))/1000,0)","v":0},{"$f":"IFERROR(BP86*INDEX('Emissions factors'!$F$5:$CR$10,MATCH('Data Input - Proposed'!$D122,'Emissions factors'!$C$5:$C$10,0),MATCH('Data Input - Proposed'!BP$7,'Emissions factors'!$F$4:$CR$4,0))/1000,0)","v":0},{"$f":"IFERROR(BQ86*INDEX('Emissions factors'!$F$5:$CR$10,MATCH('Data Input - Proposed'!$D122,'Emissions factors'!$C$5:$C$10,0),MATCH('Data Input - Proposed'!BQ$7,'Emissions factors'!$F$4:$CR$4,0))/1000,0)","v":0},{"$f":"IFERROR(BR86*INDEX('Emissions factors'!$F$5:$CR$10,MATCH('Data Input - Proposed'!$D122,'Emissions factors'!$C$5:$C$10,0),MATCH('Data Input - Proposed'!BR$7,'Emissions factors'!$F$4:$CR$4,0))/1000,0)","v":0},{"$f":"IFERROR(BS86*INDEX('Emissions factors'!$F$5:$CR$10,MATCH('Data Input - Proposed'!$D122,'Emissions factors'!$C$5:$C$10,0),MATCH('Data Input - Proposed'!BS$7,'Emissions factors'!$F$4:$CR$4,0))/1000,0)","v":0},{"$f":"IFERROR(BT86*INDEX('Emissions factors'!$F$5:$CR$10,MATCH('Data Input - Proposed'!$D122,'Emissions factors'!$C$5:$C$10,0),MATCH('Data Input - Proposed'!BT$7,'Emissions factors'!$F$4:$CR$4,0))/1000,0)","v":0},{"$f":"IFERROR(BU86*INDEX('Emissions factors'!$F$5:$CR$10,MATCH('Data Input - Proposed'!$D122,'Emissions factors'!$C$5:$C$10,0),MATCH('Data Input - Proposed'!BU$7,'Emissions factors'!$F$4:$CR$4,0))/1000,0)","v":0},{"$f":"IFERROR(BV86*INDEX('Emissions factors'!$F$5:$CR$10,MATCH('Data Input - Proposed'!$D122,'Emissions factors'!$C$5:$C$10,0),MATCH('Data Input - Proposed'!BV$7,'Emissions factors'!$F$4:$CR$4,0))/1000,0)","v":0},{"$f":"IFERROR(BW86*INDEX('Emissions factors'!$F$5:$CR$10,MATCH('Data Input - Proposed'!$D122,'Emissions factors'!$C$5:$C$10,0),MATCH('Data Input - Proposed'!BW$7,'Emissions factors'!$F$4:$CR$4,0))/1000,0)","v":0},{"$f":"IFERROR(BX86*INDEX('Emissions factors'!$F$5:$CR$10,MATCH('Data Input - Proposed'!$D122,'Emissions factors'!$C$5:$C$10,0),MATCH('Data Input - Proposed'!BX$7,'Emissions factors'!$F$4:$CR$4,0))/1000,0)","v":0},{"$f":"IFERROR(BY86*INDEX('Emissions factors'!$F$5:$CR$10,MATCH('Data Input - Proposed'!$D122,'Emissions factors'!$C$5:$C$10,0),MATCH('Data Input - Proposed'!BY$7,'Emissions factors'!$F$4:$CR$4,0))/1000,0)","v":0},{"$f":"IFERROR(BZ86*INDEX('Emissions factors'!$F$5:$CR$10,MATCH('Data Input - Proposed'!$D122,'Emissions factors'!$C$5:$C$10,0),MATCH('Data Input - Proposed'!BZ$7,'Emissions factors'!$F$4:$CR$4,0))/1000,0)","v":0},{"$f":"IFERROR(CA86*INDEX('Emissions factors'!$F$5:$CR$10,MATCH('Data Input - Proposed'!$D122,'Emissions factors'!$C$5:$C$10,0),MATCH('Data Input - Proposed'!CA$7,'Emissions factors'!$F$4:$CR$4,0))/1000,0)","v":0},{"$f":"IFERROR(CB86*INDEX('Emissions factors'!$F$5:$CR$10,MATCH('Data Input - Proposed'!$D122,'Emissions factors'!$C$5:$C$10,0),MATCH('Data Input - Proposed'!CB$7,'Emissions factors'!$F$4:$CR$4,0))/1000,0)","v":0},{"$f":"IFERROR(CC86*INDEX('Emissions factors'!$F$5:$CR$10,MATCH('Data Input - Proposed'!$D122,'Emissions factors'!$C$5:$C$10,0),MATCH('Data Input - Proposed'!CC$7,'Emissions factors'!$F$4:$CR$4,0))/1000,0)","v":0},{"$f":"IFERROR(CD86*INDEX('Emissions factors'!$F$5:$CR$10,MATCH('Data Input - Proposed'!$D122,'Emissions factors'!$C$5:$C$10,0),MATCH('Data Input - Proposed'!CD$7,'Emissions factors'!$F$4:$CR$4,0))/1000,0)","v":0},{"$f":"IFERROR(CE86*INDEX('Emissions factors'!$F$5:$CR$10,MATCH('Data Input - Proposed'!$D122,'Emissions factors'!$C$5:$C$10,0),MATCH('Data Input - Proposed'!CE$7,'Emissions factors'!$F$4:$CR$4,0))/1000,0)","v":0},{"$f":"IFERROR(CF86*INDEX('Emissions factors'!$F$5:$CR$10,MATCH('Data Input - Proposed'!$D122,'Emissions factors'!$C$5:$C$10,0),MATCH('Data Input - Proposed'!CF$7,'Emissions factors'!$F$4:$CR$4,0))/1000,0)","v":0},{"$f":"IFERROR(CG86*INDEX('Emissions factors'!$F$5:$CR$10,MATCH('Data Input - Proposed'!$D122,'Emissions factors'!$C$5:$C$10,0),MATCH('Data Input - Proposed'!CG$7,'Emissions factors'!$F$4:$CR$4,0))/1000,0)","v":0},{"$f":"IFERROR(CH86*INDEX('Emissions factors'!$F$5:$CR$10,MATCH('Data Input - Proposed'!$D122,'Emissions factors'!$C$5:$C$10,0),MATCH('Data Input - Proposed'!CH$7,'Emissions factors'!$F$4:$CR$4,0))/1000,0)","v":0},{"$f":"IFERROR(CI86*INDEX('Emissions factors'!$F$5:$CR$10,MATCH('Data Input - Proposed'!$D122,'Emissions factors'!$C$5:$C$10,0),MATCH('Data Input - Proposed'!CI$7,'Emissions factors'!$F$4:$CR$4,0))/1000,0)","v":0},{"$f":"IFERROR(CJ86*INDEX('Emissions factors'!$F$5:$CR$10,MATCH('Data Input - Proposed'!$D122,'Emissions factors'!$C$5:$C$10,0),MATCH('Data Input - Proposed'!CJ$7,'Emissions factors'!$F$4:$CR$4,0))/1000,0)","v":0},{"$f":"IFERROR(CK86*INDEX('Emissions factors'!$F$5:$CR$10,MATCH('Data Input - Proposed'!$D122,'Emissions factors'!$C$5:$C$10,0),MATCH('Data Input - Proposed'!CK$7,'Emissions factors'!$F$4:$CR$4,0))/1000,0)","v":0},{"$f":"IFERROR(CL86*INDEX('Emissions factors'!$F$5:$CR$10,MATCH('Data Input - Proposed'!$D122,'Emissions factors'!$C$5:$C$10,0),MATCH('Data Input - Proposed'!CL$7,'Emissions factors'!$F$4:$CR$4,0))/1000,0)","v":0},{"$f":"IFERROR(CM86*INDEX('Emissions factors'!$F$5:$CR$10,MATCH('Data Input - Proposed'!$D122,'Emissions factors'!$C$5:$C$10,0),MATCH('Data Input - Proposed'!CM$7,'Emissions factors'!$F$4:$CR$4,0))/1000,0)","v":0},{"$f":"IFERROR(CN86*INDEX('Emissions factors'!$F$5:$CR$10,MATCH('Data Input - Proposed'!$D122,'Emissions factors'!$C$5:$C$10,0),MATCH('Data Input - Proposed'!CN$7,'Emissions factors'!$F$4:$CR$4,0))/1000,0)","v":0},{"$f":"IFERROR(CO86*INDEX('Emissions factors'!$F$5:$CR$10,MATCH('Data Input - Proposed'!$D122,'Emissions factors'!$C$5:$C$10,0),MATCH('Data Input - Proposed'!CO$7,'Emissions factors'!$F$4:$CR$4,0))/1000,0)","v":0},{"$f":"IFERROR(CP86*INDEX('Emissions factors'!$F$5:$CR$10,MATCH('Data Input - Proposed'!$D122,'Emissions factors'!$C$5:$C$10,0),MATCH('Data Input - Proposed'!CP$7,'Emissions factors'!$F$4:$CR$4,0))/1000,0)","v":0},{"$f":"IFERROR(CQ86*INDEX('Emissions factors'!$F$5:$CR$10,MATCH('Data Input - Proposed'!$D122,'Emissions factors'!$C$5:$C$10,0),MATCH('Data Input - Proposed'!CQ$7,'Emissions factors'!$F$4:$CR$4,0))/1000,0)","v":0},{"$f":"IFERROR(CR86*INDEX('Emissions factors'!$F$5:$CR$10,MATCH('Data Input - Proposed'!$D122,'Emissions factors'!$C$5:$C$10,0),MATCH('Data Input - Proposed'!CR$7,'Emissions factors'!$F$4:$CR$4,0))/1000,0)","v":0},{"$f":"IFERROR(CS86*INDEX('Emissions factors'!$F$5:$CR$10,MATCH('Data Input - Proposed'!$D122,'Emissions factors'!$C$5:$C$10,0),MATCH('Data Input - Proposed'!CS$7,'Emissions factors'!$F$4:$CR$4,0))/1000,0)","v":0},{"$f":"IFERROR(CT86*INDEX('Emissions factors'!$F$5:$CR$10,MATCH('Data Input - Proposed'!$D122,'Emissions factors'!$C$5:$C$10,0),MATCH('Data Input - Proposed'!CT$7,'Emissions factors'!$F$4:$CR$4,0))/1000,0)","v":0},{"$f":"IFERROR(CU86*INDEX('Emissions factors'!$F$5:$CR$10,MATCH('Data Input - Proposed'!$D122,'Emissions factors'!$C$5:$C$10,0),MATCH('Data Input - Proposed'!CU$7,'Emissions factors'!$F$4:$CR$4,0))/1000,0)","v":0},{"$f":"IFERROR(CV86*INDEX('Emissions factors'!$F$5:$CR$10,MATCH('Data Input - Proposed'!$D122,'Emissions factors'!$C$5:$C$10,0),MATCH('Data Input - Proposed'!CV$7,'Emissions factors'!$F$4:$CR$4,0))/1000,0)","v":0},{"$f":"IFERROR(CW86*INDEX('Emissions factors'!$F$5:$CR$10,MATCH('Data Input - Proposed'!$D122,'Emissions factors'!$C$5:$C$10,0),MATCH('Data Input - Proposed'!CW$7,'Emissions factors'!$F$4:$CR$4,0))/1000,0)","v":0},{"$f":"IFERROR(CX86*INDEX('Emissions factors'!$F$5:$CR$10,MATCH('Data Input - Proposed'!$D122,'Emissions factors'!$C$5:$C$10,0),MATCH('Data Input - Proposed'!CX$7,'Emissions factors'!$F$4:$CR$4,0))/1000,0)","v":0},{"$f":"IFERROR(CY86*INDEX('Emissions factors'!$F$5:$CR$10,MATCH('Data Input - Proposed'!$D122,'Emissions factors'!$C$5:$C$10,0),MATCH('Data Input - Proposed'!CY$7,'Emissions factors'!$F$4:$CR$4,0))/1000,0)","v":0},{"$f":"IFERROR(CZ86*INDEX('Emissions factors'!$F$5:$CR$10,MATCH('Data Input - Proposed'!$D122,'Emissions factors'!$C$5:$C$10,0),MATCH('Data Input - Proposed'!CZ$7,'Emissions factors'!$F$4:$CR$4,0))/1000,0)","v":0},{"$f":"IFERROR(DA86*INDEX('Emissions factors'!$F$5:$CR$10,MATCH('Data Input - Proposed'!$D122,'Emissions factors'!$C$5:$C$10,0),MATCH('Data Input - Proposed'!DA$7,'Emissions factors'!$F$4:$CR$4,0))/1000,0)","v":0},{"$f":"IFERROR(DB86*INDEX('Emissions factors'!$F$5:$CR$10,MATCH('Data Input - Proposed'!$D122,'Emissions factors'!$C$5:$C$10,0),MATCH('Data Input - Proposed'!DB$7,'Emissions factors'!$F$4:$CR$4,0))/1000,0)","v":0},{"$f":"IFERROR(DC86*INDEX('Emissions factors'!$F$5:$CR$10,MATCH('Data Input - Proposed'!$D122,'Emissions factors'!$C$5:$C$10,0),MATCH('Data Input - Proposed'!DC$7,'Emissions factors'!$F$4:$CR$4,0))/1000,0)","v":0}]
[null,null,null,"Gas Oil","tCO2e","(Auto calculated value)",null,{"$f":"IFERROR(H87*INDEX('Emissions factors'!$F$5:$CR$10,MATCH('Data Input - Proposed'!$D123,'Emissions factors'!$C$5:$C$10,0),MATCH('Data Input - Proposed'!H$7,'Emissions factors'!$F$4:$CR$4,0))/1000,0)","v":543.19064937918642},{"$f":"IFERROR(I87*INDEX('Emissions factors'!$F$5:$CR$10,MATCH('Data Input - Proposed'!$D123,'Emissions factors'!$C$5:$C$10,0),MATCH('Data Input - Proposed'!I$7,'Emissions factors'!$F$4:$CR$4,0))/1000,0)","v":533.84551869385984},{"$f":"IFERROR(J87*INDEX('Emissions factors'!$F$5:$CR$10,MATCH('Data Input - Proposed'!$D123,'Emissions factors'!$C$5:$C$10,0),MATCH('Data Input - Proposed'!J$7,'Emissions factors'!$F$4:$CR$4,0))/1000,0)","v":533.84551869385984},{"$f":"IFERROR(K87*INDEX('Emissions factors'!$F$5:$CR$10,MATCH('Data Input - Proposed'!$D123,'Emissions factors'!$C$5:$C$10,0),MATCH('Data Input - Proposed'!K$7,'Emissions factors'!$F$4:$CR$4,0))/1000,0)","v":533.84551869385984},{"$f":"IFERROR(L87*INDEX('Emissions factors'!$F$5:$CR$10,MATCH('Data Input - Proposed'!$D123,'Emissions factors'!$C$5:$C$10,0),MATCH('Data Input - Proposed'!L$7,'Emissions factors'!$F$4:$CR$4,0))/1000,0)","v":533.84551869385984},{"$f":"IFERROR(M87*INDEX('Emissions factors'!$F$5:$CR$10,MATCH('Data Input - Proposed'!$D123,'Emissions factors'!$C$5:$C$10,0),MATCH('Data Input - Proposed'!M$7,'Emissions factors'!$F$4:$CR$4,0))/1000,0)","v":533.84551869385984},{"$f":"IFERROR(N87*INDEX('Emissions factors'!$F$5:$CR$10,MATCH('Data Input - Proposed'!$D123,'Emissions factors'!$C$5:$C$10,0),MATCH('Data Input - Proposed'!N$7,'Emissions factors'!$F$4:$CR$4,0))/1000,0)","v":533.84551869385984},{"$f":"IFERROR(O87*INDEX('Emissions factors'!$F$5:$CR$10,MATCH('Data Input - Proposed'!$D123,'Emissions factors'!$C$5:$C$10,0),MATCH('Data Input - Proposed'!O$7,'Emissions factors'!$F$4:$CR$4,0))/1000,0)","v":533.84551869385984},{"$f":"IFERROR(P87*INDEX('Emissions factors'!$F$5:$CR$10,MATCH('Data Input - Proposed'!$D123,'Emissions factors'!$C$5:$C$10,0),MATCH('Data Input - Proposed'!P$7,'Emissions factors'!$F$4:$CR$4,0))/1000,0)","v":0},{"$f":"IFERROR(Q87*INDEX('Emissions factors'!$F$5:$CR$10,MATCH('Data Input - Proposed'!$D123,'Emissions factors'!$C$5:$C$10,0),MATCH('Data Input - Proposed'!Q$7,'Emissions factors'!$F$4:$CR$4,0))/1000,0)","v":0},{"$f":"IFERROR(R87*INDEX('Emissions factors'!$F$5:$CR$10,MATCH('Data Input - Proposed'!$D123,'Emissions factors'!$C$5:$C$10,0),MATCH('Data Input - Proposed'!R$7,'Emissions factors'!$F$4:$CR$4,0))/1000,0)","v":0},{"$f":"IFERROR(S87*INDEX('Emissions factors'!$F$5:$CR$10,MATCH('Data Input - Proposed'!$D123,'Emissions factors'!$C$5:$C$10,0),MATCH('Data Input - Proposed'!S$7,'Emissions factors'!$F$4:$CR$4,0))/1000,0)","v":0},{"$f":"IFERROR(T87*INDEX('Emissions factors'!$F$5:$CR$10,MATCH('Data Input - Proposed'!$D123,'Emissions factors'!$C$5:$C$10,0),MATCH('Data Input - Proposed'!T$7,'Emissions factors'!$F$4:$CR$4,0))/1000,0)","v":0},{"$f":"IFERROR(U87*INDEX('Emissions factors'!$F$5:$CR$10,MATCH('Data Input - Proposed'!$D123,'Emissions factors'!$C$5:$C$10,0),MATCH('Data Input - Proposed'!U$7,'Emissions factors'!$F$4:$CR$4,0))/1000,0)","v":0},{"$f":"IFERROR(V87*INDEX('Emissions factors'!$F$5:$CR$10,MATCH('Data Input - Proposed'!$D123,'Emissions factors'!$C$5:$C$10,0),MATCH('Data Input - Proposed'!V$7,'Emissions factors'!$F$4:$CR$4,0))/1000,0)","v":0},{"$f":"IFERROR(W87*INDEX('Emissions factors'!$F$5:$CR$10,MATCH('Data Input - Proposed'!$D123,'Emissions factors'!$C$5:$C$10,0),MATCH('Data Input - Proposed'!W$7,'Emissions factors'!$F$4:$CR$4,0))/1000,0)","v":0},{"$f":"IFERROR(X87*INDEX('Emissions factors'!$F$5:$CR$10,MATCH('Data Input - Proposed'!$D123,'Emissions factors'!$C$5:$C$10,0),MATCH('Data Input - Proposed'!X$7,'Emissions factors'!$F$4:$CR$4,0))/1000,0)","v":0},{"$f":"IFERROR(Y87*INDEX('Emissions factors'!$F$5:$CR$10,MATCH('Data Input - Proposed'!$D123,'Emissions factors'!$C$5:$C$10,0),MATCH('Data Input - Proposed'!Y$7,'Emissions factors'!$F$4:$CR$4,0))/1000,0)","v":0},{"$f":"IFERROR(Z87*INDEX('Emissions factors'!$F$5:$CR$10,MATCH('Data Input - Proposed'!$D123,'Emissions factors'!$C$5:$C$10,0),MATCH('Data Input - Proposed'!Z$7,'Emissions factors'!$F$4:$CR$4,0))/1000,0)","v":0},{"$f":"IFERROR(AA87*INDEX('Emissions factors'!$F$5:$CR$10,MATCH('Data Input - Proposed'!$D123,'Emissions factors'!$C$5:$C$10,0),MATCH('Data Input - Proposed'!AA$7,'Emissions factors'!$F$4:$CR$4,0))/1000,0)","v":0},{"$f":"IFERROR(AB87*INDEX('Emissions factors'!$F$5:$CR$10,MATCH('Data Input - Proposed'!$D123,'Emissions factors'!$C$5:$C$10,0),MATCH('Data Input - Proposed'!AB$7,'Emissions factors'!$F$4:$CR$4,0))/1000,0)","v":0},{"$f":"IFERROR(AC87*INDEX('Emissions factors'!$F$5:$CR$10,MATCH('Data Input - Proposed'!$D123,'Emissions factors'!$C$5:$C$10,0),MATCH('Data Input - Proposed'!AC$7,'Emissions factors'!$F$4:$CR$4,0))/1000,0)","v":0},{"$f":"IFERROR(AD87*INDEX('Emissions factors'!$F$5:$CR$10,MATCH('Data Input - Proposed'!$D123,'Emissions factors'!$C$5:$C$10,0),MATCH('Data Input - Proposed'!AD$7,'Emissions factors'!$F$4:$CR$4,0))/1000,0)","v":0},{"$f":"IFERROR(AE87*INDEX('Emissions factors'!$F$5:$CR$10,MATCH('Data Input - Proposed'!$D123,'Emissions factors'!$C$5:$C$10,0),MATCH('Data Input - Proposed'!AE$7,'Emissions factors'!$F$4:$CR$4,0))/1000,0)","v":0},{"$f":"IFERROR(AF87*INDEX('Emissions factors'!$F$5:$CR$10,MATCH('Data Input - Proposed'!$D123,'Emissions factors'!$C$5:$C$10,0),MATCH('Data Input - Proposed'!AF$7,'Emissions factors'!$F$4:$CR$4,0))/1000,0)","v":0},{"$f":"IFERROR(AG87*INDEX('Emissions factors'!$F$5:$CR$10,MATCH('Data Input - Proposed'!$D123,'Emissions factors'!$C$5:$C$10,0),MATCH('Data Input - Proposed'!AG$7,'Emissions factors'!$F$4:$CR$4,0))/1000,0)","v":0},{"$f":"IFERROR(AH87*INDEX('Emissions factors'!$F$5:$CR$10,MATCH('Data Input - Proposed'!$D123,'Emissions factors'!$C$5:$C$10,0),MATCH('Data Input - Proposed'!AH$7,'Emissions factors'!$F$4:$CR$4,0))/1000,0)","v":0},{"$f":"IFERROR(AI87*INDEX('Emissions factors'!$F$5:$CR$10,MATCH('Data Input - Proposed'!$D123,'Emissions factors'!$C$5:$C$10,0),MATCH('Data Input - Proposed'!AI$7,'Emissions factors'!$F$4:$CR$4,0))/1000,0)","v":0},{"$f":"IFERROR(AJ87*INDEX('Emissions factors'!$F$5:$CR$10,MATCH('Data Input - Proposed'!$D123,'Emissions factors'!$C$5:$C$10,0),MATCH('Data Input - Proposed'!AJ$7,'Emissions factors'!$F$4:$CR$4,0))/1000,0)","v":0},{"$f":"IFERROR(AK87*INDEX('Emissions factors'!$F$5:$CR$10,MATCH('Data Input - Proposed'!$D123,'Emissions factors'!$C$5:$C$10,0),MATCH('Data Input - Proposed'!AK$7,'Emissions factors'!$F$4:$CR$4,0))/1000,0)","v":0},{"$f":"IFERROR(AL87*INDEX('Emissions factors'!$F$5:$CR$10,MATCH('Data Input - Proposed'!$D123,'Emissions factors'!$C$5:$C$10,0),MATCH('Data Input - Proposed'!AL$7,'Emissions factors'!$F$4:$CR$4,0))/1000,0)","v":0},{"$f":"IFERROR(AM87*INDEX('Emissions factors'!$F$5:$CR$10,MATCH('Data Input - Proposed'!$D123,'Emissions factors'!$C$5:$C$10,0),MATCH('Data Input - Proposed'!AM$7,'Emissions factors'!$F$4:$CR$4,0))/1000,0)","v":0},{"$f":"IFERROR(AN87*INDEX('Emissions factors'!$F$5:$CR$10,MATCH('Data Input - Proposed'!$D123,'Emissions factors'!$C$5:$C$10,0),MATCH('Data Input - Proposed'!AN$7,'Emissions factors'!$F$4:$CR$4,0))/1000,0)","v":0},{"$f":"IFERROR(AO87*INDEX('Emissions factors'!$F$5:$CR$10,MATCH('Data Input - Proposed'!$D123,'Emissions factors'!$C$5:$C$10,0),MATCH('Data Input - Proposed'!AO$7,'Emissions factors'!$F$4:$CR$4,0))/1000,0)","v":0},{"$f":"IFERROR(AP87*INDEX('Emissions factors'!$F$5:$CR$10,MATCH('Data Input - Proposed'!$D123,'Emissions factors'!$C$5:$C$10,0),MATCH('Data Input - Proposed'!AP$7,'Emissions factors'!$F$4:$CR$4,0))/1000,0)","v":0},{"$f":"IFERROR(AQ87*INDEX('Emissions factors'!$F$5:$CR$10,MATCH('Data Input - Proposed'!$D123,'Emissions factors'!$C$5:$C$10,0),MATCH('Data Input - Proposed'!AQ$7,'Emissions factors'!$F$4:$CR$4,0))/1000,0)","v":0},{"$f":"IFERROR(AR87*INDEX('Emissions factors'!$F$5:$CR$10,MATCH('Data Input - Proposed'!$D123,'Emissions factors'!$C$5:$C$10,0),MATCH('Data Input - Proposed'!AR$7,'Emissions factors'!$F$4:$CR$4,0))/1000,0)","v":0},{"$f":"IFERROR(AS87*INDEX('Emissions factors'!$F$5:$CR$10,MATCH('Data Input - Proposed'!$D123,'Emissions factors'!$C$5:$C$10,0),MATCH('Data Input - Proposed'!AS$7,'Emissions factors'!$F$4:$CR$4,0))/1000,0)","v":0},{"$f":"IFERROR(AT87*INDEX('Emissions factors'!$F$5:$CR$10,MATCH('Data Input - Proposed'!$D123,'Emissions factors'!$C$5:$C$10,0),MATCH('Data Input - Proposed'!AT$7,'Emissions factors'!$F$4:$CR$4,0))/1000,0)","v":0},{"$f":"IFERROR(AU87*INDEX('Emissions factors'!$F$5:$CR$10,MATCH('Data Input - Proposed'!$D123,'Emissions factors'!$C$5:$C$10,0),MATCH('Data Input - Proposed'!AU$7,'Emissions factors'!$F$4:$CR$4,0))/1000,0)","v":0},{"$f":"IFERROR(AV87*INDEX('Emissions factors'!$F$5:$CR$10,MATCH('Data Input - Proposed'!$D123,'Emissions factors'!$C$5:$C$10,0),MATCH('Data Input - Proposed'!AV$7,'Emissions factors'!$F$4:$CR$4,0))/1000,0)","v":0},{"$f":"IFERROR(AW87*INDEX('Emissions factors'!$F$5:$CR$10,MATCH('Data Input - Proposed'!$D123,'Emissions factors'!$C$5:$C$10,0),MATCH('Data Input - Proposed'!AW$7,'Emissions factors'!$F$4:$CR$4,0))/1000,0)","v":0},{"$f":"IFERROR(AX87*INDEX('Emissions factors'!$F$5:$CR$10,MATCH('Data Input - Proposed'!$D123,'Emissions factors'!$C$5:$C$10,0),MATCH('Data Input - Proposed'!AX$7,'Emissions factors'!$F$4:$CR$4,0))/1000,0)","v":0},{"$f":"IFERROR(AY87*INDEX('Emissions factors'!$F$5:$CR$10,MATCH('Data Input - Proposed'!$D123,'Emissions factors'!$C$5:$C$10,0),MATCH('Data Input - Proposed'!AY$7,'Emissions factors'!$F$4:$CR$4,0))/1000,0)","v":0},{"$f":"IFERROR(AZ87*INDEX('Emissions factors'!$F$5:$CR$10,MATCH('Data Input - Proposed'!$D123,'Emissions factors'!$C$5:$C$10,0),MATCH('Data Input - Proposed'!AZ$7,'Emissions factors'!$F$4:$CR$4,0))/1000,0)","v":0},{"$f":"IFERROR(BA87*INDEX('Emissions factors'!$F$5:$CR$10,MATCH('Data Input - Proposed'!$D123,'Emissions factors'!$C$5:$C$10,0),MATCH('Data Input - Proposed'!BA$7,'Emissions factors'!$F$4:$CR$4,0))/1000,0)","v":0},{"$f":"IFERROR(BB87*INDEX('Emissions factors'!$F$5:$CR$10,MATCH('Data Input - Proposed'!$D123,'Emissions factors'!$C$5:$C$10,0),MATCH('Data Input - Proposed'!BB$7,'Emissions factors'!$F$4:$CR$4,0))/1000,0)","v":0},{"$f":"IFERROR(BC87*INDEX('Emissions factors'!$F$5:$CR$10,MATCH('Data Input - Proposed'!$D123,'Emissions factors'!$C$5:$C$10,0),MATCH('Data Input - Proposed'!BC$7,'Emissions factors'!$F$4:$CR$4,0))/1000,0)","v":0},{"$f":"IFERROR(BD87*INDEX('Emissions factors'!$F$5:$CR$10,MATCH('Data Input - Proposed'!$D123,'Emissions factors'!$C$5:$C$10,0),MATCH('Data Input - Proposed'!BD$7,'Emissions factors'!$F$4:$CR$4,0))/1000,0)","v":0},{"$f":"IFERROR(BE87*INDEX('Emissions factors'!$F$5:$CR$10,MATCH('Data Input - Proposed'!$D123,'Emissions factors'!$C$5:$C$10,0),MATCH('Data Input - Proposed'!BE$7,'Emissions factors'!$F$4:$CR$4,0))/1000,0)","v":0},{"$f":"IFERROR(BF87*INDEX('Emissions factors'!$F$5:$CR$10,MATCH('Data Input - Proposed'!$D123,'Emissions factors'!$C$5:$C$10,0),MATCH('Data Input - Proposed'!BF$7,'Emissions factors'!$F$4:$CR$4,0))/1000,0)","v":0},{"$f":"IFERROR(BG87*INDEX('Emissions factors'!$F$5:$CR$10,MATCH('Data Input - Proposed'!$D123,'Emissions factors'!$C$5:$C$10,0),MATCH('Data Input - Proposed'!BG$7,'Emissions factors'!$F$4:$CR$4,0))/1000,0)","v":0},{"$f":"IFERROR(BH87*INDEX('Emissions factors'!$F$5:$CR$10,MATCH('Data Input - Proposed'!$D123,'Emissions factors'!$C$5:$C$10,0),MATCH('Data Input - Proposed'!BH$7,'Emissions factors'!$F$4:$CR$4,0))/1000,0)","v":0},{"$f":"IFERROR(BI87*INDEX('Emissions factors'!$F$5:$CR$10,MATCH('Data Input - Proposed'!$D123,'Emissions factors'!$C$5:$C$10,0),MATCH('Data Input - Proposed'!BI$7,'Emissions factors'!$F$4:$CR$4,0))/1000,0)","v":0},{"$f":"IFERROR(BJ87*INDEX('Emissions factors'!$F$5:$CR$10,MATCH('Data Input - Proposed'!$D123,'Emissions factors'!$C$5:$C$10,0),MATCH('Data Input - Proposed'!BJ$7,'Emissions factors'!$F$4:$CR$4,0))/1000,0)","v":0},{"$f":"IFERROR(BK87*INDEX('Emissions factors'!$F$5:$CR$10,MATCH('Data Input - Proposed'!$D123,'Emissions factors'!$C$5:$C$10,0),MATCH('Data Input - Proposed'!BK$7,'Emissions factors'!$F$4:$CR$4,0))/1000,0)","v":0},{"$f":"IFERROR(BL87*INDEX('Emissions factors'!$F$5:$CR$10,MATCH('Data Input - Proposed'!$D123,'Emissions factors'!$C$5:$C$10,0),MATCH('Data Input - Proposed'!BL$7,'Emissions factors'!$F$4:$CR$4,0))/1000,0)","v":0},{"$f":"IFERROR(BM87*INDEX('Emissions factors'!$F$5:$CR$10,MATCH('Data Input - Proposed'!$D123,'Emissions factors'!$C$5:$C$10,0),MATCH('Data Input - Proposed'!BM$7,'Emissions factors'!$F$4:$CR$4,0))/1000,0)","v":0},{"$f":"IFERROR(BN87*INDEX('Emissions factors'!$F$5:$CR$10,MATCH('Data Input - Proposed'!$D123,'Emissions factors'!$C$5:$C$10,0),MATCH('Data Input - Proposed'!BN$7,'Emissions factors'!$F$4:$CR$4,0))/1000,0)","v":0},{"$f":"IFERROR(BO87*INDEX('Emissions factors'!$F$5:$CR$10,MATCH('Data Input - Proposed'!$D123,'Emissions factors'!$C$5:$C$10,0),MATCH('Data Input - Proposed'!BO$7,'Emissions factors'!$F$4:$CR$4,0))/1000,0)","v":0},{"$f":"IFERROR(BP87*INDEX('Emissions factors'!$F$5:$CR$10,MATCH('Data Input - Proposed'!$D123,'Emissions factors'!$C$5:$C$10,0),MATCH('Data Input - Proposed'!BP$7,'Emissions factors'!$F$4:$CR$4,0))/1000,0)","v":0},{"$f":"IFERROR(BQ87*INDEX('Emissions factors'!$F$5:$CR$10,MATCH('Data Input - Proposed'!$D123,'Emissions factors'!$C$5:$C$10,0),MATCH('Data Input - Proposed'!BQ$7,'Emissions factors'!$F$4:$CR$4,0))/1000,0)","v":0},{"$f":"IFERROR(BR87*INDEX('Emissions factors'!$F$5:$CR$10,MATCH('Data Input - Proposed'!$D123,'Emissions factors'!$C$5:$C$10,0),MATCH('Data Input - Proposed'!BR$7,'Emissions factors'!$F$4:$CR$4,0))/1000,0)","v":0},{"$f":"IFERROR(BS87*INDEX('Emissions factors'!$F$5:$CR$10,MATCH('Data Input - Proposed'!$D123,'Emissions factors'!$C$5:$C$10,0),MATCH('Data Input - Proposed'!BS$7,'Emissions factors'!$F$4:$CR$4,0))/1000,0)","v":0},{"$f":"IFERROR(BT87*INDEX('Emissions factors'!$F$5:$CR$10,MATCH('Data Input - Proposed'!$D123,'Emissions factors'!$C$5:$C$10,0),MATCH('Data Input - Proposed'!BT$7,'Emissions factors'!$F$4:$CR$4,0))/1000,0)","v":0},{"$f":"IFERROR(BU87*INDEX('Emissions factors'!$F$5:$CR$10,MATCH('Data Input - Proposed'!$D123,'Emissions factors'!$C$5:$C$10,0),MATCH('Data Input - Proposed'!BU$7,'Emissions factors'!$F$4:$CR$4,0))/1000,0)","v":0},{"$f":"IFERROR(BV87*INDEX('Emissions factors'!$F$5:$CR$10,MATCH('Data Input - Proposed'!$D123,'Emissions factors'!$C$5:$C$10,0),MATCH('Data Input - Proposed'!BV$7,'Emissions factors'!$F$4:$CR$4,0))/1000,0)","v":0},{"$f":"IFERROR(BW87*INDEX('Emissions factors'!$F$5:$CR$10,MATCH('Data Input - Proposed'!$D123,'Emissions factors'!$C$5:$C$10,0),MATCH('Data Input - Proposed'!BW$7,'Emissions factors'!$F$4:$CR$4,0))/1000,0)","v":0},{"$f":"IFERROR(BX87*INDEX('Emissions factors'!$F$5:$CR$10,MATCH('Data Input - Proposed'!$D123,'Emissions factors'!$C$5:$C$10,0),MATCH('Data Input - Proposed'!BX$7,'Emissions factors'!$F$4:$CR$4,0))/1000,0)","v":0},{"$f":"IFERROR(BY87*INDEX('Emissions factors'!$F$5:$CR$10,MATCH('Data Input - Proposed'!$D123,'Emissions factors'!$C$5:$C$10,0),MATCH('Data Input - Proposed'!BY$7,'Emissions factors'!$F$4:$CR$4,0))/1000,0)","v":0},{"$f":"IFERROR(BZ87*INDEX('Emissions factors'!$F$5:$CR$10,MATCH('Data Input - Proposed'!$D123,'Emissions factors'!$C$5:$C$10,0),MATCH('Data Input - Proposed'!BZ$7,'Emissions factors'!$F$4:$CR$4,0))/1000,0)","v":0},{"$f":"IFERROR(CA87*INDEX('Emissions factors'!$F$5:$CR$10,MATCH('Data Input - Proposed'!$D123,'Emissions factors'!$C$5:$C$10,0),MATCH('Data Input - Proposed'!CA$7,'Emissions factors'!$F$4:$CR$4,0))/1000,0)","v":0},{"$f":"IFERROR(CB87*INDEX('Emissions factors'!$F$5:$CR$10,MATCH('Data Input - Proposed'!$D123,'Emissions factors'!$C$5:$C$10,0),MATCH('Data Input - Proposed'!CB$7,'Emissions factors'!$F$4:$CR$4,0))/1000,0)","v":0},{"$f":"IFERROR(CC87*INDEX('Emissions factors'!$F$5:$CR$10,MATCH('Data Input - Proposed'!$D123,'Emissions factors'!$C$5:$C$10,0),MATCH('Data Input - Proposed'!CC$7,'Emissions factors'!$F$4:$CR$4,0))/1000,0)","v":0},{"$f":"IFERROR(CD87*INDEX('Emissions factors'!$F$5:$CR$10,MATCH('Data Input - Proposed'!$D123,'Emissions factors'!$C$5:$C$10,0),MATCH('Data Input - Proposed'!CD$7,'Emissions factors'!$F$4:$CR$4,0))/1000,0)","v":0},{"$f":"IFERROR(CE87*INDEX('Emissions factors'!$F$5:$CR$10,MATCH('Data Input - Proposed'!$D123,'Emissions factors'!$C$5:$C$10,0),MATCH('Data Input - Proposed'!CE$7,'Emissions factors'!$F$4:$CR$4,0))/1000,0)","v":0},{"$f":"IFERROR(CF87*INDEX('Emissions factors'!$F$5:$CR$10,MATCH('Data Input - Proposed'!$D123,'Emissions factors'!$C$5:$C$10,0),MATCH('Data Input - Proposed'!CF$7,'Emissions factors'!$F$4:$CR$4,0))/1000,0)","v":0},{"$f":"IFERROR(CG87*INDEX('Emissions factors'!$F$5:$CR$10,MATCH('Data Input - Proposed'!$D123,'Emissions factors'!$C$5:$C$10,0),MATCH('Data Input - Proposed'!CG$7,'Emissions factors'!$F$4:$CR$4,0))/1000,0)","v":0},{"$f":"IFERROR(CH87*INDEX('Emissions factors'!$F$5:$CR$10,MATCH('Data Input - Proposed'!$D123,'Emissions factors'!$C$5:$C$10,0),MATCH('Data Input - Proposed'!CH$7,'Emissions factors'!$F$4:$CR$4,0))/1000,0)","v":0},{"$f":"IFERROR(CI87*INDEX('Emissions factors'!$F$5:$CR$10,MATCH('Data Input - Proposed'!$D123,'Emissions factors'!$C$5:$C$10,0),MATCH('Data Input - Proposed'!CI$7,'Emissions factors'!$F$4:$CR$4,0))/1000,0)","v":0},{"$f":"IFERROR(CJ87*INDEX('Emissions factors'!$F$5:$CR$10,MATCH('Data Input - Proposed'!$D123,'Emissions factors'!$C$5:$C$10,0),MATCH('Data Input - Proposed'!CJ$7,'Emissions factors'!$F$4:$CR$4,0))/1000,0)","v":0},{"$f":"IFERROR(CK87*INDEX('Emissions factors'!$F$5:$CR$10,MATCH('Data Input - Proposed'!$D123,'Emissions factors'!$C$5:$C$10,0),MATCH('Data Input - Proposed'!CK$7,'Emissions factors'!$F$4:$CR$4,0))/1000,0)","v":0},{"$f":"IFERROR(CL87*INDEX('Emissions factors'!$F$5:$CR$10,MATCH('Data Input - Proposed'!$D123,'Emissions factors'!$C$5:$C$10,0),MATCH('Data Input - Proposed'!CL$7,'Emissions factors'!$F$4:$CR$4,0))/1000,0)","v":0},{"$f":"IFERROR(CM87*INDEX('Emissions factors'!$F$5:$CR$10,MATCH('Data Input - Proposed'!$D123,'Emissions factors'!$C$5:$C$10,0),MATCH('Data Input - Proposed'!CM$7,'Emissions factors'!$F$4:$CR$4,0))/1000,0)","v":0},{"$f":"IFERROR(CN87*INDEX('Emissions factors'!$F$5:$CR$10,MATCH('Data Input - Proposed'!$D123,'Emissions factors'!$C$5:$C$10,0),MATCH('Data Input - Proposed'!CN$7,'Emissions factors'!$F$4:$CR$4,0))/1000,0)","v":0},{"$f":"IFERROR(CO87*INDEX('Emissions factors'!$F$5:$CR$10,MATCH('Data Input - Proposed'!$D123,'Emissions factors'!$C$5:$C$10,0),MATCH('Data Input - Proposed'!CO$7,'Emissions factors'!$F$4:$CR$4,0))/1000,0)","v":0},{"$f":"IFERROR(CP87*INDEX('Emissions factors'!$F$5:$CR$10,MATCH('Data Input - Proposed'!$D123,'Emissions factors'!$C$5:$C$10,0),MATCH('Data Input - Proposed'!CP$7,'Emissions factors'!$F$4:$CR$4,0))/1000,0)","v":0},{"$f":"IFERROR(CQ87*INDEX('Emissions factors'!$F$5:$CR$10,MATCH('Data Input - Proposed'!$D123,'Emissions factors'!$C$5:$C$10,0),MATCH('Data Input - Proposed'!CQ$7,'Emissions factors'!$F$4:$CR$4,0))/1000,0)","v":0},{"$f":"IFERROR(CR87*INDEX('Emissions factors'!$F$5:$CR$10,MATCH('Data Input - Proposed'!$D123,'Emissions factors'!$C$5:$C$10,0),MATCH('Data Input - Proposed'!CR$7,'Emissions factors'!$F$4:$CR$4,0))/1000,0)","v":0},{"$f":"IFERROR(CS87*INDEX('Emissions factors'!$F$5:$CR$10,MATCH('Data Input - Proposed'!$D123,'Emissions factors'!$C$5:$C$10,0),MATCH('Data Input - Proposed'!CS$7,'Emissions factors'!$F$4:$CR$4,0))/1000,0)","v":0},{"$f":"IFERROR(CT87*INDEX('Emissions factors'!$F$5:$CR$10,MATCH('Data Input - Proposed'!$D123,'Emissions factors'!$C$5:$C$10,0),MATCH('Data Input - Proposed'!CT$7,'Emissions factors'!$F$4:$CR$4,0))/1000,0)","v":0},{"$f":"IFERROR(CU87*INDEX('Emissions factors'!$F$5:$CR$10,MATCH('Data Input - Proposed'!$D123,'Emissions factors'!$C$5:$C$10,0),MATCH('Data Input - Proposed'!CU$7,'Emissions factors'!$F$4:$CR$4,0))/1000,0)","v":0},{"$f":"IFERROR(CV87*INDEX('Emissions factors'!$F$5:$CR$10,MATCH('Data Input - Proposed'!$D123,'Emissions factors'!$C$5:$C$10,0),MATCH('Data Input - Proposed'!CV$7,'Emissions factors'!$F$4:$CR$4,0))/1000,0)","v":0},{"$f":"IFERROR(CW87*INDEX('Emissions factors'!$F$5:$CR$10,MATCH('Data Input - Proposed'!$D123,'Emissions factors'!$C$5:$C$10,0),MATCH('Data Input - Proposed'!CW$7,'Emissions factors'!$F$4:$CR$4,0))/1000,0)","v":0},{"$f":"IFERROR(CX87*INDEX('Emissions factors'!$F$5:$CR$10,MATCH('Data Input - Proposed'!$D123,'Emissions factors'!$C$5:$C$10,0),MATCH('Data Input - Proposed'!CX$7,'Emissions factors'!$F$4:$CR$4,0))/1000,0)","v":0},{"$f":"IFERROR(CY87*INDEX('Emissions factors'!$F$5:$CR$10,MATCH('Data Input - Proposed'!$D123,'Emissions factors'!$C$5:$C$10,0),MATCH('Data Input - Proposed'!CY$7,'Emissions factors'!$F$4:$CR$4,0))/1000,0)","v":0},{"$f":"IFERROR(CZ87*INDEX('Emissions factors'!$F$5:$CR$10,MATCH('Data Input - Proposed'!$D123,'Emissions factors'!$C$5:$C$10,0),MATCH('Data Input - Proposed'!CZ$7,'Emissions factors'!$F$4:$CR$4,0))/1000,0)","v":0},{"$f":"IFERROR(DA87*INDEX('Emissions factors'!$F$5:$CR$10,MATCH('Data Input - Proposed'!$D123,'Emissions factors'!$C$5:$C$10,0),MATCH('Data Input - Proposed'!DA$7,'Emissions factors'!$F$4:$CR$4,0))/1000,0)","v":0},{"$f":"IFERROR(DB87*INDEX('Emissions factors'!$F$5:$CR$10,MATCH('Data Input - Proposed'!$D123,'Emissions factors'!$C$5:$C$10,0),MATCH('Data Input - Proposed'!DB$7,'Emissions factors'!$F$4:$CR$4,0))/1000,0)","v":0},{"$f":"IFERROR(DC87*INDEX('Emissions factors'!$F$5:$CR$10,MATCH('Data Input - Proposed'!$D123,'Emissions factors'!$C$5:$C$10,0),MATCH('Data Input - Proposed'!DC$7,'Emissions factors'!$F$4:$CR$4,0))/1000,0)","v":0}]
[null,null,null,"Road - Petrol","tCO2e","(Auto calculated value)",null,{"$f":"IFERROR(H88*INDEX('Emissions factors'!$F$5:$CR$10,MATCH('Data Input - Proposed'!$D124,'Emissions factors'!$C$5:$C$10,0),MATCH('Data Input - Proposed'!H$7,'Emissions factors'!$F$4:$CR$4,0))/1000,0)","v":0},{"$f":"IFERROR(I88*INDEX('Emissions factors'!$F$5:$CR$10,MATCH('Data Input - Proposed'!$D124,'Emissions factors'!$C$5:$C$10,0),MATCH('Data Input - Proposed'!I$7,'Emissions factors'!$F$4:$CR$4,0))/1000,0)","v":0},{"$f":"IFERROR(J88*INDEX('Emissions factors'!$F$5:$CR$10,MATCH('Data Input - Proposed'!$D124,'Emissions factors'!$C$5:$C$10,0),MATCH('Data Input - Proposed'!J$7,'Emissions factors'!$F$4:$CR$4,0))/1000,0)","v":0},{"$f":"IFERROR(K88*INDEX('Emissions factors'!$F$5:$CR$10,MATCH('Data Input - Proposed'!$D124,'Emissions factors'!$C$5:$C$10,0),MATCH('Data Input - Proposed'!K$7,'Emissions factors'!$F$4:$CR$4,0))/1000,0)","v":0},{"$f":"IFERROR(L88*INDEX('Emissions factors'!$F$5:$CR$10,MATCH('Data Input - Proposed'!$D124,'Emissions factors'!$C$5:$C$10,0),MATCH('Data Input - Proposed'!L$7,'Emissions factors'!$F$4:$CR$4,0))/1000,0)","v":0},{"$f":"IFERROR(M88*INDEX('Emissions factors'!$F$5:$CR$10,MATCH('Data Input - Proposed'!$D124,'Emissions factors'!$C$5:$C$10,0),MATCH('Data Input - Proposed'!M$7,'Emissions factors'!$F$4:$CR$4,0))/1000,0)","v":0},{"$f":"IFERROR(N88*INDEX('Emissions factors'!$F$5:$CR$10,MATCH('Data Input - Proposed'!$D124,'Emissions factors'!$C$5:$C$10,0),MATCH('Data Input - Proposed'!N$7,'Emissions factors'!$F$4:$CR$4,0))/1000,0)","v":0},{"$f":"IFERROR(O88*INDEX('Emissions factors'!$F$5:$CR$10,MATCH('Data Input - Proposed'!$D124,'Emissions factors'!$C$5:$C$10,0),MATCH('Data Input - Proposed'!O$7,'Emissions factors'!$F$4:$CR$4,0))/1000,0)","v":0},{"$f":"IFERROR(P88*INDEX('Emissions factors'!$F$5:$CR$10,MATCH('Data Input - Proposed'!$D124,'Emissions factors'!$C$5:$C$10,0),MATCH('Data Input - Proposed'!P$7,'Emissions factors'!$F$4:$CR$4,0))/1000,0)","v":0},{"$f":"IFERROR(Q88*INDEX('Emissions factors'!$F$5:$CR$10,MATCH('Data Input - Proposed'!$D124,'Emissions factors'!$C$5:$C$10,0),MATCH('Data Input - Proposed'!Q$7,'Emissions factors'!$F$4:$CR$4,0))/1000,0)","v":0},{"$f":"IFERROR(R88*INDEX('Emissions factors'!$F$5:$CR$10,MATCH('Data Input - Proposed'!$D124,'Emissions factors'!$C$5:$C$10,0),MATCH('Data Input - Proposed'!R$7,'Emissions factors'!$F$4:$CR$4,0))/1000,0)","v":0},{"$f":"IFERROR(S88*INDEX('Emissions factors'!$F$5:$CR$10,MATCH('Data Input - Proposed'!$D124,'Emissions factors'!$C$5:$C$10,0),MATCH('Data Input - Proposed'!S$7,'Emissions factors'!$F$4:$CR$4,0))/1000,0)","v":0},{"$f":"IFERROR(T88*INDEX('Emissions factors'!$F$5:$CR$10,MATCH('Data Input - Proposed'!$D124,'Emissions factors'!$C$5:$C$10,0),MATCH('Data Input - Proposed'!T$7,'Emissions factors'!$F$4:$CR$4,0))/1000,0)","v":0},{"$f":"IFERROR(U88*INDEX('Emissions factors'!$F$5:$CR$10,MATCH('Data Input - Proposed'!$D124,'Emissions factors'!$C$5:$C$10,0),MATCH('Data Input - Proposed'!U$7,'Emissions factors'!$F$4:$CR$4,0))/1000,0)","v":0},{"$f":"IFERROR(V88*INDEX('Emissions factors'!$F$5:$CR$10,MATCH('Data Input - Proposed'!$D124,'Emissions factors'!$C$5:$C$10,0),MATCH('Data Input - Proposed'!V$7,'Emissions factors'!$F$4:$CR$4,0))/1000,0)","v":0},{"$f":"IFERROR(W88*INDEX('Emissions factors'!$F$5:$CR$10,MATCH('Data Input - Proposed'!$D124,'Emissions factors'!$C$5:$C$10,0),MATCH('Data Input - Proposed'!W$7,'Emissions factors'!$F$4:$CR$4,0))/1000,0)","v":0},{"$f":"IFERROR(X88*INDEX('Emissions factors'!$F$5:$CR$10,MATCH('Data Input - Proposed'!$D124,'Emissions factors'!$C$5:$C$10,0),MATCH('Data Input - Proposed'!X$7,'Emissions factors'!$F$4:$CR$4,0))/1000,0)","v":0},{"$f":"IFERROR(Y88*INDEX('Emissions factors'!$F$5:$CR$10,MATCH('Data Input - Proposed'!$D124,'Emissions factors'!$C$5:$C$10,0),MATCH('Data Input - Proposed'!Y$7,'Emissions factors'!$F$4:$CR$4,0))/1000,0)","v":0},{"$f":"IFERROR(Z88*INDEX('Emissions factors'!$F$5:$CR$10,MATCH('Data Input - Proposed'!$D124,'Emissions factors'!$C$5:$C$10,0),MATCH('Data Input - Proposed'!Z$7,'Emissions factors'!$F$4:$CR$4,0))/1000,0)","v":0},{"$f":"IFERROR(AA88*INDEX('Emissions factors'!$F$5:$CR$10,MATCH('Data Input - Proposed'!$D124,'Emissions factors'!$C$5:$C$10,0),MATCH('Data Input - Proposed'!AA$7,'Emissions factors'!$F$4:$CR$4,0))/1000,0)","v":0},{"$f":"IFERROR(AB88*INDEX('Emissions factors'!$F$5:$CR$10,MATCH('Data Input - Proposed'!$D124,'Emissions factors'!$C$5:$C$10,0),MATCH('Data Input - Proposed'!AB$7,'Emissions factors'!$F$4:$CR$4,0))/1000,0)","v":0},{"$f":"IFERROR(AC88*INDEX('Emissions factors'!$F$5:$CR$10,MATCH('Data Input - Proposed'!$D124,'Emissions factors'!$C$5:$C$10,0),MATCH('Data Input - Proposed'!AC$7,'Emissions factors'!$F$4:$CR$4,0))/1000,0)","v":0},{"$f":"IFERROR(AD88*INDEX('Emissions factors'!$F$5:$CR$10,MATCH('Data Input - Proposed'!$D124,'Emissions factors'!$C$5:$C$10,0),MATCH('Data Input - Proposed'!AD$7,'Emissions factors'!$F$4:$CR$4,0))/1000,0)","v":0},{"$f":"IFERROR(AE88*INDEX('Emissions factors'!$F$5:$CR$10,MATCH('Data Input - Proposed'!$D124,'Emissions factors'!$C$5:$C$10,0),MATCH('Data Input - Proposed'!AE$7,'Emissions factors'!$F$4:$CR$4,0))/1000,0)","v":0},{"$f":"IFERROR(AF88*INDEX('Emissions factors'!$F$5:$CR$10,MATCH('Data Input - Proposed'!$D124,'Emissions factors'!$C$5:$C$10,0),MATCH('Data Input - Proposed'!AF$7,'Emissions factors'!$F$4:$CR$4,0))/1000,0)","v":0},{"$f":"IFERROR(AG88*INDEX('Emissions factors'!$F$5:$CR$10,MATCH('Data Input - Proposed'!$D124,'Emissions factors'!$C$5:$C$10,0),MATCH('Data Input - Proposed'!AG$7,'Emissions factors'!$F$4:$CR$4,0))/1000,0)","v":0},{"$f":"IFERROR(AH88*INDEX('Emissions factors'!$F$5:$CR$10,MATCH('Data Input - Proposed'!$D124,'Emissions factors'!$C$5:$C$10,0),MATCH('Data Input - Proposed'!AH$7,'Emissions factors'!$F$4:$CR$4,0))/1000,0)","v":0},{"$f":"IFERROR(AI88*INDEX('Emissions factors'!$F$5:$CR$10,MATCH('Data Input - Proposed'!$D124,'Emissions factors'!$C$5:$C$10,0),MATCH('Data Input - Proposed'!AI$7,'Emissions factors'!$F$4:$CR$4,0))/1000,0)","v":0},{"$f":"IFERROR(AJ88*INDEX('Emissions factors'!$F$5:$CR$10,MATCH('Data Input - Proposed'!$D124,'Emissions factors'!$C$5:$C$10,0),MATCH('Data Input - Proposed'!AJ$7,'Emissions factors'!$F$4:$CR$4,0))/1000,0)","v":0},{"$f":"IFERROR(AK88*INDEX('Emissions factors'!$F$5:$CR$10,MATCH('Data Input - Proposed'!$D124,'Emissions factors'!$C$5:$C$10,0),MATCH('Data Input - Proposed'!AK$7,'Emissions factors'!$F$4:$CR$4,0))/1000,0)","v":0},{"$f":"IFERROR(AL88*INDEX('Emissions factors'!$F$5:$CR$10,MATCH('Data Input - Proposed'!$D124,'Emissions factors'!$C$5:$C$10,0),MATCH('Data Input - Proposed'!AL$7,'Emissions factors'!$F$4:$CR$4,0))/1000,0)","v":0},{"$f":"IFERROR(AM88*INDEX('Emissions factors'!$F$5:$CR$10,MATCH('Data Input - Proposed'!$D124,'Emissions factors'!$C$5:$C$10,0),MATCH('Data Input - Proposed'!AM$7,'Emissions factors'!$F$4:$CR$4,0))/1000,0)","v":0},{"$f":"IFERROR(AN88*INDEX('Emissions factors'!$F$5:$CR$10,MATCH('Data Input - Proposed'!$D124,'Emissions factors'!$C$5:$C$10,0),MATCH('Data Input - Proposed'!AN$7,'Emissions factors'!$F$4:$CR$4,0))/1000,0)","v":0},{"$f":"IFERROR(AO88*INDEX('Emissions factors'!$F$5:$CR$10,MATCH('Data Input - Proposed'!$D124,'Emissions factors'!$C$5:$C$10,0),MATCH('Data Input - Proposed'!AO$7,'Emissions factors'!$F$4:$CR$4,0))/1000,0)","v":0},{"$f":"IFERROR(AP88*INDEX('Emissions factors'!$F$5:$CR$10,MATCH('Data Input - Proposed'!$D124,'Emissions factors'!$C$5:$C$10,0),MATCH('Data Input - Proposed'!AP$7,'Emissions factors'!$F$4:$CR$4,0))/1000,0)","v":0},{"$f":"IFERROR(AQ88*INDEX('Emissions factors'!$F$5:$CR$10,MATCH('Data Input - Proposed'!$D124,'Emissions factors'!$C$5:$C$10,0),MATCH('Data Input - Proposed'!AQ$7,'Emissions factors'!$F$4:$CR$4,0))/1000,0)","v":0},{"$f":"IFERROR(AR88*INDEX('Emissions factors'!$F$5:$CR$10,MATCH('Data Input - Proposed'!$D124,'Emissions factors'!$C$5:$C$10,0),MATCH('Data Input - Proposed'!AR$7,'Emissions factors'!$F$4:$CR$4,0))/1000,0)","v":0},{"$f":"IFERROR(AS88*INDEX('Emissions factors'!$F$5:$CR$10,MATCH('Data Input - Proposed'!$D124,'Emissions factors'!$C$5:$C$10,0),MATCH('Data Input - Proposed'!AS$7,'Emissions factors'!$F$4:$CR$4,0))/1000,0)","v":0},{"$f":"IFERROR(AT88*INDEX('Emissions factors'!$F$5:$CR$10,MATCH('Data Input - Proposed'!$D124,'Emissions factors'!$C$5:$C$10,0),MATCH('Data Input - Proposed'!AT$7,'Emissions factors'!$F$4:$CR$4,0))/1000,0)","v":0},{"$f":"IFERROR(AU88*INDEX('Emissions factors'!$F$5:$CR$10,MATCH('Data Input - Proposed'!$D124,'Emissions factors'!$C$5:$C$10,0),MATCH('Data Input - Proposed'!AU$7,'Emissions factors'!$F$4:$CR$4,0))/1000,0)","v":0},{"$f":"IFERROR(AV88*INDEX('Emissions factors'!$F$5:$CR$10,MATCH('Data Input - Proposed'!$D124,'Emissions factors'!$C$5:$C$10,0),MATCH('Data Input - Proposed'!AV$7,'Emissions factors'!$F$4:$CR$4,0))/1000,0)","v":0},{"$f":"IFERROR(AW88*INDEX('Emissions factors'!$F$5:$CR$10,MATCH('Data Input - Proposed'!$D124,'Emissions factors'!$C$5:$C$10,0),MATCH('Data Input - Proposed'!AW$7,'Emissions factors'!$F$4:$CR$4,0))/1000,0)","v":0},{"$f":"IFERROR(AX88*INDEX('Emissions factors'!$F$5:$CR$10,MATCH('Data Input - Proposed'!$D124,'Emissions factors'!$C$5:$C$10,0),MATCH('Data Input - Proposed'!AX$7,'Emissions factors'!$F$4:$CR$4,0))/1000,0)","v":0},{"$f":"IFERROR(AY88*INDEX('Emissions factors'!$F$5:$CR$10,MATCH('Data Input - Proposed'!$D124,'Emissions factors'!$C$5:$C$10,0),MATCH('Data Input - Proposed'!AY$7,'Emissions factors'!$F$4:$CR$4,0))/1000,0)","v":0},{"$f":"IFERROR(AZ88*INDEX('Emissions factors'!$F$5:$CR$10,MATCH('Data Input - Proposed'!$D124,'Emissions factors'!$C$5:$C$10,0),MATCH('Data Input - Proposed'!AZ$7,'Emissions factors'!$F$4:$CR$4,0))/1000,0)","v":0},{"$f":"IFERROR(BA88*INDEX('Emissions factors'!$F$5:$CR$10,MATCH('Data Input - Proposed'!$D124,'Emissions factors'!$C$5:$C$10,0),MATCH('Data Input - Proposed'!BA$7,'Emissions factors'!$F$4:$CR$4,0))/1000,0)","v":0},{"$f":"IFERROR(BB88*INDEX('Emissions factors'!$F$5:$CR$10,MATCH('Data Input - Proposed'!$D124,'Emissions factors'!$C$5:$C$10,0),MATCH('Data Input - Proposed'!BB$7,'Emissions factors'!$F$4:$CR$4,0))/1000,0)","v":0},{"$f":"IFERROR(BC88*INDEX('Emissions factors'!$F$5:$CR$10,MATCH('Data Input - Proposed'!$D124,'Emissions factors'!$C$5:$C$10,0),MATCH('Data Input - Proposed'!BC$7,'Emissions factors'!$F$4:$CR$4,0))/1000,0)","v":0},{"$f":"IFERROR(BD88*INDEX('Emissions factors'!$F$5:$CR$10,MATCH('Data Input - Proposed'!$D124,'Emissions factors'!$C$5:$C$10,0),MATCH('Data Input - Proposed'!BD$7,'Emissions factors'!$F$4:$CR$4,0))/1000,0)","v":0},{"$f":"IFERROR(BE88*INDEX('Emissions factors'!$F$5:$CR$10,MATCH('Data Input - Proposed'!$D124,'Emissions factors'!$C$5:$C$10,0),MATCH('Data Input - Proposed'!BE$7,'Emissions factors'!$F$4:$CR$4,0))/1000,0)","v":0},{"$f":"IFERROR(BF88*INDEX('Emissions factors'!$F$5:$CR$10,MATCH('Data Input - Proposed'!$D124,'Emissions factors'!$C$5:$C$10,0),MATCH('Data Input - Proposed'!BF$7,'Emissions factors'!$F$4:$CR$4,0))/1000,0)","v":0},{"$f":"IFERROR(BG88*INDEX('Emissions factors'!$F$5:$CR$10,MATCH('Data Input - Proposed'!$D124,'Emissions factors'!$C$5:$C$10,0),MATCH('Data Input - Proposed'!BG$7,'Emissions factors'!$F$4:$CR$4,0))/1000,0)","v":0},{"$f":"IFERROR(BH88*INDEX('Emissions factors'!$F$5:$CR$10,MATCH('Data Input - Proposed'!$D124,'Emissions factors'!$C$5:$C$10,0),MATCH('Data Input - Proposed'!BH$7,'Emissions factors'!$F$4:$CR$4,0))/1000,0)","v":0},{"$f":"IFERROR(BI88*INDEX('Emissions factors'!$F$5:$CR$10,MATCH('Data Input - Proposed'!$D124,'Emissions factors'!$C$5:$C$10,0),MATCH('Data Input - Proposed'!BI$7,'Emissions factors'!$F$4:$CR$4,0))/1000,0)","v":0},{"$f":"IFERROR(BJ88*INDEX('Emissions factors'!$F$5:$CR$10,MATCH('Data Input - Proposed'!$D124,'Emissions factors'!$C$5:$C$10,0),MATCH('Data Input - Proposed'!BJ$7,'Emissions factors'!$F$4:$CR$4,0))/1000,0)","v":0},{"$f":"IFERROR(BK88*INDEX('Emissions factors'!$F$5:$CR$10,MATCH('Data Input - Proposed'!$D124,'Emissions factors'!$C$5:$C$10,0),MATCH('Data Input - Proposed'!BK$7,'Emissions factors'!$F$4:$CR$4,0))/1000,0)","v":0},{"$f":"IFERROR(BL88*INDEX('Emissions factors'!$F$5:$CR$10,MATCH('Data Input - Proposed'!$D124,'Emissions factors'!$C$5:$C$10,0),MATCH('Data Input - Proposed'!BL$7,'Emissions factors'!$F$4:$CR$4,0))/1000,0)","v":0},{"$f":"IFERROR(BM88*INDEX('Emissions factors'!$F$5:$CR$10,MATCH('Data Input - Proposed'!$D124,'Emissions factors'!$C$5:$C$10,0),MATCH('Data Input - Proposed'!BM$7,'Emissions factors'!$F$4:$CR$4,0))/1000,0)","v":0},{"$f":"IFERROR(BN88*INDEX('Emissions factors'!$F$5:$CR$10,MATCH('Data Input - Proposed'!$D124,'Emissions factors'!$C$5:$C$10,0),MATCH('Data Input - Proposed'!BN$7,'Emissions factors'!$F$4:$CR$4,0))/1000,0)","v":0},{"$f":"IFERROR(BO88*INDEX('Emissions factors'!$F$5:$CR$10,MATCH('Data Input - Proposed'!$D124,'Emissions factors'!$C$5:$C$10,0),MATCH('Data Input - Proposed'!BO$7,'Emissions factors'!$F$4:$CR$4,0))/1000,0)","v":0},{"$f":"IFERROR(BP88*INDEX('Emissions factors'!$F$5:$CR$10,MATCH('Data Input - Proposed'!$D124,'Emissions factors'!$C$5:$C$10,0),MATCH('Data Input - Proposed'!BP$7,'Emissions factors'!$F$4:$CR$4,0))/1000,0)","v":0},{"$f":"IFERROR(BQ88*INDEX('Emissions factors'!$F$5:$CR$10,MATCH('Data Input - Proposed'!$D124,'Emissions factors'!$C$5:$C$10,0),MATCH('Data Input - Proposed'!BQ$7,'Emissions factors'!$F$4:$CR$4,0))/1000,0)","v":0},{"$f":"IFERROR(BR88*INDEX('Emissions factors'!$F$5:$CR$10,MATCH('Data Input - Proposed'!$D124,'Emissions factors'!$C$5:$C$10,0),MATCH('Data Input - Proposed'!BR$7,'Emissions factors'!$F$4:$CR$4,0))/1000,0)","v":0},{"$f":"IFERROR(BS88*INDEX('Emissions factors'!$F$5:$CR$10,MATCH('Data Input - Proposed'!$D124,'Emissions factors'!$C$5:$C$10,0),MATCH('Data Input - Proposed'!BS$7,'Emissions factors'!$F$4:$CR$4,0))/1000,0)","v":0},{"$f":"IFERROR(BT88*INDEX('Emissions factors'!$F$5:$CR$10,MATCH('Data Input - Proposed'!$D124,'Emissions factors'!$C$5:$C$10,0),MATCH('Data Input - Proposed'!BT$7,'Emissions factors'!$F$4:$CR$4,0))/1000,0)","v":0},{"$f":"IFERROR(BU88*INDEX('Emissions factors'!$F$5:$CR$10,MATCH('Data Input - Proposed'!$D124,'Emissions factors'!$C$5:$C$10,0),MATCH('Data Input - Proposed'!BU$7,'Emissions factors'!$F$4:$CR$4,0))/1000,0)","v":0},{"$f":"IFERROR(BV88*INDEX('Emissions factors'!$F$5:$CR$10,MATCH('Data Input - Proposed'!$D124,'Emissions factors'!$C$5:$C$10,0),MATCH('Data Input - Proposed'!BV$7,'Emissions factors'!$F$4:$CR$4,0))/1000,0)","v":0},{"$f":"IFERROR(BW88*INDEX('Emissions factors'!$F$5:$CR$10,MATCH('Data Input - Proposed'!$D124,'Emissions factors'!$C$5:$C$10,0),MATCH('Data Input - Proposed'!BW$7,'Emissions factors'!$F$4:$CR$4,0))/1000,0)","v":0},{"$f":"IFERROR(BX88*INDEX('Emissions factors'!$F$5:$CR$10,MATCH('Data Input - Proposed'!$D124,'Emissions factors'!$C$5:$C$10,0),MATCH('Data Input - Proposed'!BX$7,'Emissions factors'!$F$4:$CR$4,0))/1000,0)","v":0},{"$f":"IFERROR(BY88*INDEX('Emissions factors'!$F$5:$CR$10,MATCH('Data Input - Proposed'!$D124,'Emissions factors'!$C$5:$C$10,0),MATCH('Data Input - Proposed'!BY$7,'Emissions factors'!$F$4:$CR$4,0))/1000,0)","v":0},{"$f":"IFERROR(BZ88*INDEX('Emissions factors'!$F$5:$CR$10,MATCH('Data Input - Proposed'!$D124,'Emissions factors'!$C$5:$C$10,0),MATCH('Data Input - Proposed'!BZ$7,'Emissions factors'!$F$4:$CR$4,0))/1000,0)","v":0},{"$f":"IFERROR(CA88*INDEX('Emissions factors'!$F$5:$CR$10,MATCH('Data Input - Proposed'!$D124,'Emissions factors'!$C$5:$C$10,0),MATCH('Data Input - Proposed'!CA$7,'Emissions factors'!$F$4:$CR$4,0))/1000,0)","v":0},{"$f":"IFERROR(CB88*INDEX('Emissions factors'!$F$5:$CR$10,MATCH('Data Input - Proposed'!$D124,'Emissions factors'!$C$5:$C$10,0),MATCH('Data Input - Proposed'!CB$7,'Emissions factors'!$F$4:$CR$4,0))/1000,0)","v":0},{"$f":"IFERROR(CC88*INDEX('Emissions factors'!$F$5:$CR$10,MATCH('Data Input - Proposed'!$D124,'Emissions factors'!$C$5:$C$10,0),MATCH('Data Input - Proposed'!CC$7,'Emissions factors'!$F$4:$CR$4,0))/1000,0)","v":0},{"$f":"IFERROR(CD88*INDEX('Emissions factors'!$F$5:$CR$10,MATCH('Data Input - Proposed'!$D124,'Emissions factors'!$C$5:$C$10,0),MATCH('Data Input - Proposed'!CD$7,'Emissions factors'!$F$4:$CR$4,0))/1000,0)","v":0},{"$f":"IFERROR(CE88*INDEX('Emissions factors'!$F$5:$CR$10,MATCH('Data Input - Proposed'!$D124,'Emissions factors'!$C$5:$C$10,0),MATCH('Data Input - Proposed'!CE$7,'Emissions factors'!$F$4:$CR$4,0))/1000,0)","v":0},{"$f":"IFERROR(CF88*INDEX('Emissions factors'!$F$5:$CR$10,MATCH('Data Input - Proposed'!$D124,'Emissions factors'!$C$5:$C$10,0),MATCH('Data Input - Proposed'!CF$7,'Emissions factors'!$F$4:$CR$4,0))/1000,0)","v":0},{"$f":"IFERROR(CG88*INDEX('Emissions factors'!$F$5:$CR$10,MATCH('Data Input - Proposed'!$D124,'Emissions factors'!$C$5:$C$10,0),MATCH('Data Input - Proposed'!CG$7,'Emissions factors'!$F$4:$CR$4,0))/1000,0)","v":0},{"$f":"IFERROR(CH88*INDEX('Emissions factors'!$F$5:$CR$10,MATCH('Data Input - Proposed'!$D124,'Emissions factors'!$C$5:$C$10,0),MATCH('Data Input - Proposed'!CH$7,'Emissions factors'!$F$4:$CR$4,0))/1000,0)","v":0},{"$f":"IFERROR(CI88*INDEX('Emissions factors'!$F$5:$CR$10,MATCH('Data Input - Proposed'!$D124,'Emissions factors'!$C$5:$C$10,0),MATCH('Data Input - Proposed'!CI$7,'Emissions factors'!$F$4:$CR$4,0))/1000,0)","v":0},{"$f":"IFERROR(CJ88*INDEX('Emissions factors'!$F$5:$CR$10,MATCH('Data Input - Proposed'!$D124,'Emissions factors'!$C$5:$C$10,0),MATCH('Data Input - Proposed'!CJ$7,'Emissions factors'!$F$4:$CR$4,0))/1000,0)","v":0},{"$f":"IFERROR(CK88*INDEX('Emissions factors'!$F$5:$CR$10,MATCH('Data Input - Proposed'!$D124,'Emissions factors'!$C$5:$C$10,0),MATCH('Data Input - Proposed'!CK$7,'Emissions factors'!$F$4:$CR$4,0))/1000,0)","v":0},{"$f":"IFERROR(CL88*INDEX('Emissions factors'!$F$5:$CR$10,MATCH('Data Input - Proposed'!$D124,'Emissions factors'!$C$5:$C$10,0),MATCH('Data Input - Proposed'!CL$7,'Emissions factors'!$F$4:$CR$4,0))/1000,0)","v":0},{"$f":"IFERROR(CM88*INDEX('Emissions factors'!$F$5:$CR$10,MATCH('Data Input - Proposed'!$D124,'Emissions factors'!$C$5:$C$10,0),MATCH('Data Input - Proposed'!CM$7,'Emissions factors'!$F$4:$CR$4,0))/1000,0)","v":0},{"$f":"IFERROR(CN88*INDEX('Emissions factors'!$F$5:$CR$10,MATCH('Data Input - Proposed'!$D124,'Emissions factors'!$C$5:$C$10,0),MATCH('Data Input - Proposed'!CN$7,'Emissions factors'!$F$4:$CR$4,0))/1000,0)","v":0},{"$f":"IFERROR(CO88*INDEX('Emissions factors'!$F$5:$CR$10,MATCH('Data Input - Proposed'!$D124,'Emissions factors'!$C$5:$C$10,0),MATCH('Data Input - Proposed'!CO$7,'Emissions factors'!$F$4:$CR$4,0))/1000,0)","v":0},{"$f":"IFERROR(CP88*INDEX('Emissions factors'!$F$5:$CR$10,MATCH('Data Input - Proposed'!$D124,'Emissions factors'!$C$5:$C$10,0),MATCH('Data Input - Proposed'!CP$7,'Emissions factors'!$F$4:$CR$4,0))/1000,0)","v":0},{"$f":"IFERROR(CQ88*INDEX('Emissions factors'!$F$5:$CR$10,MATCH('Data Input - Proposed'!$D124,'Emissions factors'!$C$5:$C$10,0),MATCH('Data Input - Proposed'!CQ$7,'Emissions factors'!$F$4:$CR$4,0))/1000,0)","v":0},{"$f":"IFERROR(CR88*INDEX('Emissions factors'!$F$5:$CR$10,MATCH('Data Input - Proposed'!$D124,'Emissions factors'!$C$5:$C$10,0),MATCH('Data Input - Proposed'!CR$7,'Emissions factors'!$F$4:$CR$4,0))/1000,0)","v":0},{"$f":"IFERROR(CS88*INDEX('Emissions factors'!$F$5:$CR$10,MATCH('Data Input - Proposed'!$D124,'Emissions factors'!$C$5:$C$10,0),MATCH('Data Input - Proposed'!CS$7,'Emissions factors'!$F$4:$CR$4,0))/1000,0)","v":0},{"$f":"IFERROR(CT88*INDEX('Emissions factors'!$F$5:$CR$10,MATCH('Data Input - Proposed'!$D124,'Emissions factors'!$C$5:$C$10,0),MATCH('Data Input - Proposed'!CT$7,'Emissions factors'!$F$4:$CR$4,0))/1000,0)","v":0},{"$f":"IFERROR(CU88*INDEX('Emissions factors'!$F$5:$CR$10,MATCH('Data Input - Proposed'!$D124,'Emissions factors'!$C$5:$C$10,0),MATCH('Data Input - Proposed'!CU$7,'Emissions factors'!$F$4:$CR$4,0))/1000,0)","v":0},{"$f":"IFERROR(CV88*INDEX('Emissions factors'!$F$5:$CR$10,MATCH('Data Input - Proposed'!$D124,'Emissions factors'!$C$5:$C$10,0),MATCH('Data Input - Proposed'!CV$7,'Emissions factors'!$F$4:$CR$4,0))/1000,0)","v":0},{"$f":"IFERROR(CW88*INDEX('Emissions factors'!$F$5:$CR$10,MATCH('Data Input - Proposed'!$D124,'Emissions factors'!$C$5:$C$10,0),MATCH('Data Input - Proposed'!CW$7,'Emissions factors'!$F$4:$CR$4,0))/1000,0)","v":0},{"$f":"IFERROR(CX88*INDEX('Emissions factors'!$F$5:$CR$10,MATCH('Data Input - Proposed'!$D124,'Emissions factors'!$C$5:$C$10,0),MATCH('Data Input - Proposed'!CX$7,'Emissions factors'!$F$4:$CR$4,0))/1000,0)","v":0},{"$f":"IFERROR(CY88*INDEX('Emissions factors'!$F$5:$CR$10,MATCH('Data Input - Proposed'!$D124,'Emissions factors'!$C$5:$C$10,0),MATCH('Data Input - Proposed'!CY$7,'Emissions factors'!$F$4:$CR$4,0))/1000,0)","v":0},{"$f":"IFERROR(CZ88*INDEX('Emissions factors'!$F$5:$CR$10,MATCH('Data Input - Proposed'!$D124,'Emissions factors'!$C$5:$C$10,0),MATCH('Data Input - Proposed'!CZ$7,'Emissions factors'!$F$4:$CR$4,0))/1000,0)","v":0},{"$f":"IFERROR(DA88*INDEX('Emissions factors'!$F$5:$CR$10,MATCH('Data Input - Proposed'!$D124,'Emissions factors'!$C$5:$C$10,0),MATCH('Data Input - Proposed'!DA$7,'Emissions factors'!$F$4:$CR$4,0))/1000,0)","v":0},{"$f":"IFERROR(DB88*INDEX('Emissions factors'!$F$5:$CR$10,MATCH('Data Input - Proposed'!$D124,'Emissions factors'!$C$5:$C$10,0),MATCH('Data Input - Proposed'!DB$7,'Emissions factors'!$F$4:$CR$4,0))/1000,0)","v":0},{"$f":"IFERROR(DC88*INDEX('Emissions factors'!$F$5:$CR$10,MATCH('Data Input - Proposed'!$D124,'Emissions factors'!$C$5:$C$10,0),MATCH('Data Input - Proposed'!DC$7,'Emissions factors'!$F$4:$CR$4,0))/1000,0)","v":0}]
[null,null,null,"Road - Diesel","tCO2e","(Auto calculated value)",null,{"$f":"IFERROR(H89*INDEX('Emissions factors'!$F$5:$CR$10,MATCH('Data Input - Proposed'!$D125,'Emissions factors'!$C$5:$C$10,0),MATCH('Data Input - Proposed'!H$7,'Emissions factors'!$F$4:$CR$4,0))/1000,0)","v":0},{"$f":"IFERROR(I89*INDEX('Emissions factors'!$F$5:$CR$10,MATCH('Data Input - Proposed'!$D125,'Emissions factors'!$C$5:$C$10,0),MATCH('Data Input - Proposed'!I$7,'Emissions factors'!$F$4:$CR$4,0))/1000,0)","v":0},{"$f":"IFERROR(J89*INDEX('Emissions factors'!$F$5:$CR$10,MATCH('Data Input - Proposed'!$D125,'Emissions factors'!$C$5:$C$10,0),MATCH('Data Input - Proposed'!J$7,'Emissions factors'!$F$4:$CR$4,0))/1000,0)","v":0},{"$f":"IFERROR(K89*INDEX('Emissions factors'!$F$5:$CR$10,MATCH('Data Input - Proposed'!$D125,'Emissions factors'!$C$5:$C$10,0),MATCH('Data Input - Proposed'!K$7,'Emissions factors'!$F$4:$CR$4,0))/1000,0)","v":0},{"$f":"IFERROR(L89*INDEX('Emissions factors'!$F$5:$CR$10,MATCH('Data Input - Proposed'!$D125,'Emissions factors'!$C$5:$C$10,0),MATCH('Data Input - Proposed'!L$7,'Emissions factors'!$F$4:$CR$4,0))/1000,0)","v":0},{"$f":"IFERROR(M89*INDEX('Emissions factors'!$F$5:$CR$10,MATCH('Data Input - Proposed'!$D125,'Emissions factors'!$C$5:$C$10,0),MATCH('Data Input - Proposed'!M$7,'Emissions factors'!$F$4:$CR$4,0))/1000,0)","v":0},{"$f":"IFERROR(N89*INDEX('Emissions factors'!$F$5:$CR$10,MATCH('Data Input - Proposed'!$D125,'Emissions factors'!$C$5:$C$10,0),MATCH('Data Input - Proposed'!N$7,'Emissions factors'!$F$4:$CR$4,0))/1000,0)","v":0},{"$f":"IFERROR(O89*INDEX('Emissions factors'!$F$5:$CR$10,MATCH('Data Input - Proposed'!$D125,'Emissions factors'!$C$5:$C$10,0),MATCH('Data Input - Proposed'!O$7,'Emissions factors'!$F$4:$CR$4,0))/1000,0)","v":0},{"$f":"IFERROR(P89*INDEX('Emissions factors'!$F$5:$CR$10,MATCH('Data Input - Proposed'!$D125,'Emissions factors'!$C$5:$C$10,0),MATCH('Data Input - Proposed'!P$7,'Emissions factors'!$F$4:$CR$4,0))/1000,0)","v":0},{"$f":"IFERROR(Q89*INDEX('Emissions factors'!$F$5:$CR$10,MATCH('Data Input - Proposed'!$D125,'Emissions factors'!$C$5:$C$10,0),MATCH('Data Input - Proposed'!Q$7,'Emissions factors'!$F$4:$CR$4,0))/1000,0)","v":0},{"$f":"IFERROR(R89*INDEX('Emissions factors'!$F$5:$CR$10,MATCH('Data Input - Proposed'!$D125,'Emissions factors'!$C$5:$C$10,0),MATCH('Data Input - Proposed'!R$7,'Emissions factors'!$F$4:$CR$4,0))/1000,0)","v":0},{"$f":"IFERROR(S89*INDEX('Emissions factors'!$F$5:$CR$10,MATCH('Data Input - Proposed'!$D125,'Emissions factors'!$C$5:$C$10,0),MATCH('Data Input - Proposed'!S$7,'Emissions factors'!$F$4:$CR$4,0))/1000,0)","v":0},{"$f":"IFERROR(T89*INDEX('Emissions factors'!$F$5:$CR$10,MATCH('Data Input - Proposed'!$D125,'Emissions factors'!$C$5:$C$10,0),MATCH('Data Input - Proposed'!T$7,'Emissions factors'!$F$4:$CR$4,0))/1000,0)","v":0},{"$f":"IFERROR(U89*INDEX('Emissions factors'!$F$5:$CR$10,MATCH('Data Input - Proposed'!$D125,'Emissions factors'!$C$5:$C$10,0),MATCH('Data Input - Proposed'!U$7,'Emissions factors'!$F$4:$CR$4,0))/1000,0)","v":0},{"$f":"IFERROR(V89*INDEX('Emissions factors'!$F$5:$CR$10,MATCH('Data Input - Proposed'!$D125,'Emissions factors'!$C$5:$C$10,0),MATCH('Data Input - Proposed'!V$7,'Emissions factors'!$F$4:$CR$4,0))/1000,0)","v":0},{"$f":"IFERROR(W89*INDEX('Emissions factors'!$F$5:$CR$10,MATCH('Data Input - Proposed'!$D125,'Emissions factors'!$C$5:$C$10,0),MATCH('Data Input - Proposed'!W$7,'Emissions factors'!$F$4:$CR$4,0))/1000,0)","v":0},{"$f":"IFERROR(X89*INDEX('Emissions factors'!$F$5:$CR$10,MATCH('Data Input - Proposed'!$D125,'Emissions factors'!$C$5:$C$10,0),MATCH('Data Input - Proposed'!X$7,'Emissions factors'!$F$4:$CR$4,0))/1000,0)","v":0},{"$f":"IFERROR(Y89*INDEX('Emissions factors'!$F$5:$CR$10,MATCH('Data Input - Proposed'!$D125,'Emissions factors'!$C$5:$C$10,0),MATCH('Data Input - Proposed'!Y$7,'Emissions factors'!$F$4:$CR$4,0))/1000,0)","v":0},{"$f":"IFERROR(Z89*INDEX('Emissions factors'!$F$5:$CR$10,MATCH('Data Input - Proposed'!$D125,'Emissions factors'!$C$5:$C$10,0),MATCH('Data Input - Proposed'!Z$7,'Emissions factors'!$F$4:$CR$4,0))/1000,0)","v":0},{"$f":"IFERROR(AA89*INDEX('Emissions factors'!$F$5:$CR$10,MATCH('Data Input - Proposed'!$D125,'Emissions factors'!$C$5:$C$10,0),MATCH('Data Input - Proposed'!AA$7,'Emissions factors'!$F$4:$CR$4,0))/1000,0)","v":0},{"$f":"IFERROR(AB89*INDEX('Emissions factors'!$F$5:$CR$10,MATCH('Data Input - Proposed'!$D125,'Emissions factors'!$C$5:$C$10,0),MATCH('Data Input - Proposed'!AB$7,'Emissions factors'!$F$4:$CR$4,0))/1000,0)","v":0},{"$f":"IFERROR(AC89*INDEX('Emissions factors'!$F$5:$CR$10,MATCH('Data Input - Proposed'!$D125,'Emissions factors'!$C$5:$C$10,0),MATCH('Data Input - Proposed'!AC$7,'Emissions factors'!$F$4:$CR$4,0))/1000,0)","v":0},{"$f":"IFERROR(AD89*INDEX('Emissions factors'!$F$5:$CR$10,MATCH('Data Input - Proposed'!$D125,'Emissions factors'!$C$5:$C$10,0),MATCH('Data Input - Proposed'!AD$7,'Emissions factors'!$F$4:$CR$4,0))/1000,0)","v":0},{"$f":"IFERROR(AE89*INDEX('Emissions factors'!$F$5:$CR$10,MATCH('Data Input - Proposed'!$D125,'Emissions factors'!$C$5:$C$10,0),MATCH('Data Input - Proposed'!AE$7,'Emissions factors'!$F$4:$CR$4,0))/1000,0)","v":0},{"$f":"IFERROR(AF89*INDEX('Emissions factors'!$F$5:$CR$10,MATCH('Data Input - Proposed'!$D125,'Emissions factors'!$C$5:$C$10,0),MATCH('Data Input - Proposed'!AF$7,'Emissions factors'!$F$4:$CR$4,0))/1000,0)","v":0},{"$f":"IFERROR(AG89*INDEX('Emissions factors'!$F$5:$CR$10,MATCH('Data Input - Proposed'!$D125,'Emissions factors'!$C$5:$C$10,0),MATCH('Data Input - Proposed'!AG$7,'Emissions factors'!$F$4:$CR$4,0))/1000,0)","v":0},{"$f":"IFERROR(AH89*INDEX('Emissions factors'!$F$5:$CR$10,MATCH('Data Input - Proposed'!$D125,'Emissions factors'!$C$5:$C$10,0),MATCH('Data Input - Proposed'!AH$7,'Emissions factors'!$F$4:$CR$4,0))/1000,0)","v":0},{"$f":"IFERROR(AI89*INDEX('Emissions factors'!$F$5:$CR$10,MATCH('Data Input - Proposed'!$D125,'Emissions factors'!$C$5:$C$10,0),MATCH('Data Input - Proposed'!AI$7,'Emissions factors'!$F$4:$CR$4,0))/1000,0)","v":0},{"$f":"IFERROR(AJ89*INDEX('Emissions factors'!$F$5:$CR$10,MATCH('Data Input - Proposed'!$D125,'Emissions factors'!$C$5:$C$10,0),MATCH('Data Input - Proposed'!AJ$7,'Emissions factors'!$F$4:$CR$4,0))/1000,0)","v":0},{"$f":"IFERROR(AK89*INDEX('Emissions factors'!$F$5:$CR$10,MATCH('Data Input - Proposed'!$D125,'Emissions factors'!$C$5:$C$10,0),MATCH('Data Input - Proposed'!AK$7,'Emissions factors'!$F$4:$CR$4,0))/1000,0)","v":0},{"$f":"IFERROR(AL89*INDEX('Emissions factors'!$F$5:$CR$10,MATCH('Data Input - Proposed'!$D125,'Emissions factors'!$C$5:$C$10,0),MATCH('Data Input - Proposed'!AL$7,'Emissions factors'!$F$4:$CR$4,0))/1000,0)","v":0},{"$f":"IFERROR(AM89*INDEX('Emissions factors'!$F$5:$CR$10,MATCH('Data Input - Proposed'!$D125,'Emissions factors'!$C$5:$C$10,0),MATCH('Data Input - Proposed'!AM$7,'Emissions factors'!$F$4:$CR$4,0))/1000,0)","v":0},{"$f":"IFERROR(AN89*INDEX('Emissions factors'!$F$5:$CR$10,MATCH('Data Input - Proposed'!$D125,'Emissions factors'!$C$5:$C$10,0),MATCH('Data Input - Proposed'!AN$7,'Emissions factors'!$F$4:$CR$4,0))/1000,0)","v":0},{"$f":"IFERROR(AO89*INDEX('Emissions factors'!$F$5:$CR$10,MATCH('Data Input - Proposed'!$D125,'Emissions factors'!$C$5:$C$10,0),MATCH('Data Input - Proposed'!AO$7,'Emissions factors'!$F$4:$CR$4,0))/1000,0)","v":0},{"$f":"IFERROR(AP89*INDEX('Emissions factors'!$F$5:$CR$10,MATCH('Data Input - Proposed'!$D125,'Emissions factors'!$C$5:$C$10,0),MATCH('Data Input - Proposed'!AP$7,'Emissions factors'!$F$4:$CR$4,0))/1000,0)","v":0},{"$f":"IFERROR(AQ89*INDEX('Emissions factors'!$F$5:$CR$10,MATCH('Data Input - Proposed'!$D125,'Emissions factors'!$C$5:$C$10,0),MATCH('Data Input - Proposed'!AQ$7,'Emissions factors'!$F$4:$CR$4,0))/1000,0)","v":0},{"$f":"IFERROR(AR89*INDEX('Emissions factors'!$F$5:$CR$10,MATCH('Data Input - Proposed'!$D125,'Emissions factors'!$C$5:$C$10,0),MATCH('Data Input - Proposed'!AR$7,'Emissions factors'!$F$4:$CR$4,0))/1000,0)","v":0},{"$f":"IFERROR(AS89*INDEX('Emissions factors'!$F$5:$CR$10,MATCH('Data Input - Proposed'!$D125,'Emissions factors'!$C$5:$C$10,0),MATCH('Data Input - Proposed'!AS$7,'Emissions factors'!$F$4:$CR$4,0))/1000,0)","v":0},{"$f":"IFERROR(AT89*INDEX('Emissions factors'!$F$5:$CR$10,MATCH('Data Input - Proposed'!$D125,'Emissions factors'!$C$5:$C$10,0),MATCH('Data Input - Proposed'!AT$7,'Emissions factors'!$F$4:$CR$4,0))/1000,0)","v":0},{"$f":"IFERROR(AU89*INDEX('Emissions factors'!$F$5:$CR$10,MATCH('Data Input - Proposed'!$D125,'Emissions factors'!$C$5:$C$10,0),MATCH('Data Input - Proposed'!AU$7,'Emissions factors'!$F$4:$CR$4,0))/1000,0)","v":0},{"$f":"IFERROR(AV89*INDEX('Emissions factors'!$F$5:$CR$10,MATCH('Data Input - Proposed'!$D125,'Emissions factors'!$C$5:$C$10,0),MATCH('Data Input - Proposed'!AV$7,'Emissions factors'!$F$4:$CR$4,0))/1000,0)","v":0},{"$f":"IFERROR(AW89*INDEX('Emissions factors'!$F$5:$CR$10,MATCH('Data Input - Proposed'!$D125,'Emissions factors'!$C$5:$C$10,0),MATCH('Data Input - Proposed'!AW$7,'Emissions factors'!$F$4:$CR$4,0))/1000,0)","v":0},{"$f":"IFERROR(AX89*INDEX('Emissions factors'!$F$5:$CR$10,MATCH('Data Input - Proposed'!$D125,'Emissions factors'!$C$5:$C$10,0),MATCH('Data Input - Proposed'!AX$7,'Emissions factors'!$F$4:$CR$4,0))/1000,0)","v":0},{"$f":"IFERROR(AY89*INDEX('Emissions factors'!$F$5:$CR$10,MATCH('Data Input - Proposed'!$D125,'Emissions factors'!$C$5:$C$10,0),MATCH('Data Input - Proposed'!AY$7,'Emissions factors'!$F$4:$CR$4,0))/1000,0)","v":0},{"$f":"IFERROR(AZ89*INDEX('Emissions factors'!$F$5:$CR$10,MATCH('Data Input - Proposed'!$D125,'Emissions factors'!$C$5:$C$10,0),MATCH('Data Input - Proposed'!AZ$7,'Emissions factors'!$F$4:$CR$4,0))/1000,0)","v":0},{"$f":"IFERROR(BA89*INDEX('Emissions factors'!$F$5:$CR$10,MATCH('Data Input - Proposed'!$D125,'Emissions factors'!$C$5:$C$10,0),MATCH('Data Input - Proposed'!BA$7,'Emissions factors'!$F$4:$CR$4,0))/1000,0)","v":0},{"$f":"IFERROR(BB89*INDEX('Emissions factors'!$F$5:$CR$10,MATCH('Data Input - Proposed'!$D125,'Emissions factors'!$C$5:$C$10,0),MATCH('Data Input - Proposed'!BB$7,'Emissions factors'!$F$4:$CR$4,0))/1000,0)","v":0},{"$f":"IFERROR(BC89*INDEX('Emissions factors'!$F$5:$CR$10,MATCH('Data Input - Proposed'!$D125,'Emissions factors'!$C$5:$C$10,0),MATCH('Data Input - Proposed'!BC$7,'Emissions factors'!$F$4:$CR$4,0))/1000,0)","v":0},{"$f":"IFERROR(BD89*INDEX('Emissions factors'!$F$5:$CR$10,MATCH('Data Input - Proposed'!$D125,'Emissions factors'!$C$5:$C$10,0),MATCH('Data Input - Proposed'!BD$7,'Emissions factors'!$F$4:$CR$4,0))/1000,0)","v":0},{"$f":"IFERROR(BE89*INDEX('Emissions factors'!$F$5:$CR$10,MATCH('Data Input - Proposed'!$D125,'Emissions factors'!$C$5:$C$10,0),MATCH('Data Input - Proposed'!BE$7,'Emissions factors'!$F$4:$CR$4,0))/1000,0)","v":0},{"$f":"IFERROR(BF89*INDEX('Emissions factors'!$F$5:$CR$10,MATCH('Data Input - Proposed'!$D125,'Emissions factors'!$C$5:$C$10,0),MATCH('Data Input - Proposed'!BF$7,'Emissions factors'!$F$4:$CR$4,0))/1000,0)","v":0},{"$f":"IFERROR(BG89*INDEX('Emissions factors'!$F$5:$CR$10,MATCH('Data Input - Proposed'!$D125,'Emissions factors'!$C$5:$C$10,0),MATCH('Data Input - Proposed'!BG$7,'Emissions factors'!$F$4:$CR$4,0))/1000,0)","v":0},{"$f":"IFERROR(BH89*INDEX('Emissions factors'!$F$5:$CR$10,MATCH('Data Input - Proposed'!$D125,'Emissions factors'!$C$5:$C$10,0),MATCH('Data Input - Proposed'!BH$7,'Emissions factors'!$F$4:$CR$4,0))/1000,0)","v":0},{"$f":"IFERROR(BI89*INDEX('Emissions factors'!$F$5:$CR$10,MATCH('Data Input - Proposed'!$D125,'Emissions factors'!$C$5:$C$10,0),MATCH('Data Input - Proposed'!BI$7,'Emissions factors'!$F$4:$CR$4,0))/1000,0)","v":0},{"$f":"IFERROR(BJ89*INDEX('Emissions factors'!$F$5:$CR$10,MATCH('Data Input - Proposed'!$D125,'Emissions factors'!$C$5:$C$10,0),MATCH('Data Input - Proposed'!BJ$7,'Emissions factors'!$F$4:$CR$4,0))/1000,0)","v":0},{"$f":"IFERROR(BK89*INDEX('Emissions factors'!$F$5:$CR$10,MATCH('Data Input - Proposed'!$D125,'Emissions factors'!$C$5:$C$10,0),MATCH('Data Input - Proposed'!BK$7,'Emissions factors'!$F$4:$CR$4,0))/1000,0)","v":0},{"$f":"IFERROR(BL89*INDEX('Emissions factors'!$F$5:$CR$10,MATCH('Data Input - Proposed'!$D125,'Emissions factors'!$C$5:$C$10,0),MATCH('Data Input - Proposed'!BL$7,'Emissions factors'!$F$4:$CR$4,0))/1000,0)","v":0},{"$f":"IFERROR(BM89*INDEX('Emissions factors'!$F$5:$CR$10,MATCH('Data Input - Proposed'!$D125,'Emissions factors'!$C$5:$C$10,0),MATCH('Data Input - Proposed'!BM$7,'Emissions factors'!$F$4:$CR$4,0))/1000,0)","v":0},{"$f":"IFERROR(BN89*INDEX('Emissions factors'!$F$5:$CR$10,MATCH('Data Input - Proposed'!$D125,'Emissions factors'!$C$5:$C$10,0),MATCH('Data Input - Proposed'!BN$7,'Emissions factors'!$F$4:$CR$4,0))/1000,0)","v":0},{"$f":"IFERROR(BO89*INDEX('Emissions factors'!$F$5:$CR$10,MATCH('Data Input - Proposed'!$D125,'Emissions factors'!$C$5:$C$10,0),MATCH('Data Input - Proposed'!BO$7,'Emissions factors'!$F$4:$CR$4,0))/1000,0)","v":0},{"$f":"IFERROR(BP89*INDEX('Emissions factors'!$F$5:$CR$10,MATCH('Data Input - Proposed'!$D125,'Emissions factors'!$C$5:$C$10,0),MATCH('Data Input - Proposed'!BP$7,'Emissions factors'!$F$4:$CR$4,0))/1000,0)","v":0},{"$f":"IFERROR(BQ89*INDEX('Emissions factors'!$F$5:$CR$10,MATCH('Data Input - Proposed'!$D125,'Emissions factors'!$C$5:$C$10,0),MATCH('Data Input - Proposed'!BQ$7,'Emissions factors'!$F$4:$CR$4,0))/1000,0)","v":0},{"$f":"IFERROR(BR89*INDEX('Emissions factors'!$F$5:$CR$10,MATCH('Data Input - Proposed'!$D125,'Emissions factors'!$C$5:$C$10,0),MATCH('Data Input - Proposed'!BR$7,'Emissions factors'!$F$4:$CR$4,0))/1000,0)","v":0},{"$f":"IFERROR(BS89*INDEX('Emissions factors'!$F$5:$CR$10,MATCH('Data Input - Proposed'!$D125,'Emissions factors'!$C$5:$C$10,0),MATCH('Data Input - Proposed'!BS$7,'Emissions factors'!$F$4:$CR$4,0))/1000,0)","v":0},{"$f":"IFERROR(BT89*INDEX('Emissions factors'!$F$5:$CR$10,MATCH('Data Input - Proposed'!$D125,'Emissions factors'!$C$5:$C$10,0),MATCH('Data Input - Proposed'!BT$7,'Emissions factors'!$F$4:$CR$4,0))/1000,0)","v":0},{"$f":"IFERROR(BU89*INDEX('Emissions factors'!$F$5:$CR$10,MATCH('Data Input - Proposed'!$D125,'Emissions factors'!$C$5:$C$10,0),MATCH('Data Input - Proposed'!BU$7,'Emissions factors'!$F$4:$CR$4,0))/1000,0)","v":0},{"$f":"IFERROR(BV89*INDEX('Emissions factors'!$F$5:$CR$10,MATCH('Data Input - Proposed'!$D125,'Emissions factors'!$C$5:$C$10,0),MATCH('Data Input - Proposed'!BV$7,'Emissions factors'!$F$4:$CR$4,0))/1000,0)","v":0},{"$f":"IFERROR(BW89*INDEX('Emissions factors'!$F$5:$CR$10,MATCH('Data Input - Proposed'!$D125,'Emissions factors'!$C$5:$C$10,0),MATCH('Data Input - Proposed'!BW$7,'Emissions factors'!$F$4:$CR$4,0))/1000,0)","v":0},{"$f":"IFERROR(BX89*INDEX('Emissions factors'!$F$5:$CR$10,MATCH('Data Input - Proposed'!$D125,'Emissions factors'!$C$5:$C$10,0),MATCH('Data Input - Proposed'!BX$7,'Emissions factors'!$F$4:$CR$4,0))/1000,0)","v":0},{"$f":"IFERROR(BY89*INDEX('Emissions factors'!$F$5:$CR$10,MATCH('Data Input - Proposed'!$D125,'Emissions factors'!$C$5:$C$10,0),MATCH('Data Input - Proposed'!BY$7,'Emissions factors'!$F$4:$CR$4,0))/1000,0)","v":0},{"$f":"IFERROR(BZ89*INDEX('Emissions factors'!$F$5:$CR$10,MATCH('Data Input - Proposed'!$D125,'Emissions factors'!$C$5:$C$10,0),MATCH('Data Input - Proposed'!BZ$7,'Emissions factors'!$F$4:$CR$4,0))/1000,0)","v":0},{"$f":"IFERROR(CA89*INDEX('Emissions factors'!$F$5:$CR$10,MATCH('Data Input - Proposed'!$D125,'Emissions factors'!$C$5:$C$10,0),MATCH('Data Input - Proposed'!CA$7,'Emissions factors'!$F$4:$CR$4,0))/1000,0)","v":0},{"$f":"IFERROR(CB89*INDEX('Emissions factors'!$F$5:$CR$10,MATCH('Data Input - Proposed'!$D125,'Emissions factors'!$C$5:$C$10,0),MATCH('Data Input - Proposed'!CB$7,'Emissions factors'!$F$4:$CR$4,0))/1000,0)","v":0},{"$f":"IFERROR(CC89*INDEX('Emissions factors'!$F$5:$CR$10,MATCH('Data Input - Proposed'!$D125,'Emissions factors'!$C$5:$C$10,0),MATCH('Data Input - Proposed'!CC$7,'Emissions factors'!$F$4:$CR$4,0))/1000,0)","v":0},{"$f":"IFERROR(CD89*INDEX('Emissions factors'!$F$5:$CR$10,MATCH('Data Input - Proposed'!$D125,'Emissions factors'!$C$5:$C$10,0),MATCH('Data Input - Proposed'!CD$7,'Emissions factors'!$F$4:$CR$4,0))/1000,0)","v":0},{"$f":"IFERROR(CE89*INDEX('Emissions factors'!$F$5:$CR$10,MATCH('Data Input - Proposed'!$D125,'Emissions factors'!$C$5:$C$10,0),MATCH('Data Input - Proposed'!CE$7,'Emissions factors'!$F$4:$CR$4,0))/1000,0)","v":0},{"$f":"IFERROR(CF89*INDEX('Emissions factors'!$F$5:$CR$10,MATCH('Data Input - Proposed'!$D125,'Emissions factors'!$C$5:$C$10,0),MATCH('Data Input - Proposed'!CF$7,'Emissions factors'!$F$4:$CR$4,0))/1000,0)","v":0},{"$f":"IFERROR(CG89*INDEX('Emissions factors'!$F$5:$CR$10,MATCH('Data Input - Proposed'!$D125,'Emissions factors'!$C$5:$C$10,0),MATCH('Data Input - Proposed'!CG$7,'Emissions factors'!$F$4:$CR$4,0))/1000,0)","v":0},{"$f":"IFERROR(CH89*INDEX('Emissions factors'!$F$5:$CR$10,MATCH('Data Input - Proposed'!$D125,'Emissions factors'!$C$5:$C$10,0),MATCH('Data Input - Proposed'!CH$7,'Emissions factors'!$F$4:$CR$4,0))/1000,0)","v":0},{"$f":"IFERROR(CI89*INDEX('Emissions factors'!$F$5:$CR$10,MATCH('Data Input - Proposed'!$D125,'Emissions factors'!$C$5:$C$10,0),MATCH('Data Input - Proposed'!CI$7,'Emissions factors'!$F$4:$CR$4,0))/1000,0)","v":0},{"$f":"IFERROR(CJ89*INDEX('Emissions factors'!$F$5:$CR$10,MATCH('Data Input - Proposed'!$D125,'Emissions factors'!$C$5:$C$10,0),MATCH('Data Input - Proposed'!CJ$7,'Emissions factors'!$F$4:$CR$4,0))/1000,0)","v":0},{"$f":"IFERROR(CK89*INDEX('Emissions factors'!$F$5:$CR$10,MATCH('Data Input - Proposed'!$D125,'Emissions factors'!$C$5:$C$10,0),MATCH('Data Input - Proposed'!CK$7,'Emissions factors'!$F$4:$CR$4,0))/1000,0)","v":0},{"$f":"IFERROR(CL89*INDEX('Emissions factors'!$F$5:$CR$10,MATCH('Data Input - Proposed'!$D125,'Emissions factors'!$C$5:$C$10,0),MATCH('Data Input - Proposed'!CL$7,'Emissions factors'!$F$4:$CR$4,0))/1000,0)","v":0},{"$f":"IFERROR(CM89*INDEX('Emissions factors'!$F$5:$CR$10,MATCH('Data Input - Proposed'!$D125,'Emissions factors'!$C$5:$C$10,0),MATCH('Data Input - Proposed'!CM$7,'Emissions factors'!$F$4:$CR$4,0))/1000,0)","v":0},{"$f":"IFERROR(CN89*INDEX('Emissions factors'!$F$5:$CR$10,MATCH('Data Input - Proposed'!$D125,'Emissions factors'!$C$5:$C$10,0),MATCH('Data Input - Proposed'!CN$7,'Emissions factors'!$F$4:$CR$4,0))/1000,0)","v":0},{"$f":"IFERROR(CO89*INDEX('Emissions factors'!$F$5:$CR$10,MATCH('Data Input - Proposed'!$D125,'Emissions factors'!$C$5:$C$10,0),MATCH('Data Input - Proposed'!CO$7,'Emissions factors'!$F$4:$CR$4,0))/1000,0)","v":0},{"$f":"IFERROR(CP89*INDEX('Emissions factors'!$F$5:$CR$10,MATCH('Data Input - Proposed'!$D125,'Emissions factors'!$C$5:$C$10,0),MATCH('Data Input - Proposed'!CP$7,'Emissions factors'!$F$4:$CR$4,0))/1000,0)","v":0},{"$f":"IFERROR(CQ89*INDEX('Emissions factors'!$F$5:$CR$10,MATCH('Data Input - Proposed'!$D125,'Emissions factors'!$C$5:$C$10,0),MATCH('Data Input - Proposed'!CQ$7,'Emissions factors'!$F$4:$CR$4,0))/1000,0)","v":0},{"$f":"IFERROR(CR89*INDEX('Emissions factors'!$F$5:$CR$10,MATCH('Data Input - Proposed'!$D125,'Emissions factors'!$C$5:$C$10,0),MATCH('Data Input - Proposed'!CR$7,'Emissions factors'!$F$4:$CR$4,0))/1000,0)","v":0},{"$f":"IFERROR(CS89*INDEX('Emissions factors'!$F$5:$CR$10,MATCH('Data Input - Proposed'!$D125,'Emissions factors'!$C$5:$C$10,0),MATCH('Data Input - Proposed'!CS$7,'Emissions factors'!$F$4:$CR$4,0))/1000,0)","v":0},{"$f":"IFERROR(CT89*INDEX('Emissions factors'!$F$5:$CR$10,MATCH('Data Input - Proposed'!$D125,'Emissions factors'!$C$5:$C$10,0),MATCH('Data Input - Proposed'!CT$7,'Emissions factors'!$F$4:$CR$4,0))/1000,0)","v":0},{"$f":"IFERROR(CU89*INDEX('Emissions factors'!$F$5:$CR$10,MATCH('Data Input - Proposed'!$D125,'Emissions factors'!$C$5:$C$10,0),MATCH('Data Input - Proposed'!CU$7,'Emissions factors'!$F$4:$CR$4,0))/1000,0)","v":0},{"$f":"IFERROR(CV89*INDEX('Emissions factors'!$F$5:$CR$10,MATCH('Data Input - Proposed'!$D125,'Emissions factors'!$C$5:$C$10,0),MATCH('Data Input - Proposed'!CV$7,'Emissions factors'!$F$4:$CR$4,0))/1000,0)","v":0},{"$f":"IFERROR(CW89*INDEX('Emissions factors'!$F$5:$CR$10,MATCH('Data Input - Proposed'!$D125,'Emissions factors'!$C$5:$C$10,0),MATCH('Data Input - Proposed'!CW$7,'Emissions factors'!$F$4:$CR$4,0))/1000,0)","v":0},{"$f":"IFERROR(CX89*INDEX('Emissions factors'!$F$5:$CR$10,MATCH('Data Input - Proposed'!$D125,'Emissions factors'!$C$5:$C$10,0),MATCH('Data Input - Proposed'!CX$7,'Emissions factors'!$F$4:$CR$4,0))/1000,0)","v":0},{"$f":"IFERROR(CY89*INDEX('Emissions factors'!$F$5:$CR$10,MATCH('Data Input - Proposed'!$D125,'Emissions factors'!$C$5:$C$10,0),MATCH('Data Input - Proposed'!CY$7,'Emissions factors'!$F$4:$CR$4,0))/1000,0)","v":0},{"$f":"IFERROR(CZ89*INDEX('Emissions factors'!$F$5:$CR$10,MATCH('Data Input - Proposed'!$D125,'Emissions factors'!$C$5:$C$10,0),MATCH('Data Input - Proposed'!CZ$7,'Emissions factors'!$F$4:$CR$4,0))/1000,0)","v":0},{"$f":"IFERROR(DA89*INDEX('Emissions factors'!$F$5:$CR$10,MATCH('Data Input - Proposed'!$D125,'Emissions factors'!$C$5:$C$10,0),MATCH('Data Input - Proposed'!DA$7,'Emissions factors'!$F$4:$CR$4,0))/1000,0)","v":0},{"$f":"IFERROR(DB89*INDEX('Emissions factors'!$F$5:$CR$10,MATCH('Data Input - Proposed'!$D125,'Emissions factors'!$C$5:$C$10,0),MATCH('Data Input - Proposed'!DB$7,'Emissions factors'!$F$4:$CR$4,0))/1000,0)","v":0},{"$f":"IFERROR(DC89*INDEX('Emissions factors'!$F$5:$CR$10,MATCH('Data Input - Proposed'!$D125,'Emissions factors'!$C$5:$C$10,0),MATCH('Data Input - Proposed'!DC$7,'Emissions factors'!$F$4:$CR$4,0))/1000,0)","v":0}]
[null,null,"5.52",0,"tCO2e"]
[]
[null,null,null,"Total fuel-related GHG Emissions","tCO2e","(Auto calculated value)",null,{"$f":"SUM(H$120:H$127)","v":41644.737608250049},{"$f":"SUM(I$120:I$127)","v":41510.233175019348},{"$f":"SUM(J$120:J$127)","v":41388.187501378598},41316.993984732529,41193.774664474658,41229.164858991418,41182.585839819963,41105.387885048549,0,0,0,0,0,0,0,0,0,0,0,0,0,0,0,0,0,0,0,0,0,0,0,0,0,0,0,0,0,0,0,0,0,0,0,0,0,0,0,0,0,0,0,0,0,0,0,0,0,0,0,0,0,0,0,0,0,0,{"$f":"SUM(BV$120:BV$127)","v":0},0,0,0,0,0,0,0,0,0,0,0,0,0,0,0,0,0,0,0,0,0,0,0,0,0,0,0,0,0,0,0,0,0]

{"sheet":"Data Input - BAT","index":15,"n_rows":128,"n_cols":108,"rows_kept":128,"cut":false,"hidden":false,"merged":[[31,7,31,9],[51,7,51,9]]}
[null,{"$f":"\"---- Step 6 - Data Input - BAT-AEL ----\"","v":"---- Step 6 - Data Input - BAT-AEL ----"}]
[]
[]
[]
[null,null,null,null,null,null,null,{"$f":"IF(AND(SUM(H30,H50,H79,H100,H117,H128,#REF!)<>0,H7=0),1,0)","v":{"$error":"#REF!"}},{"$f":"IF(AND(SUM(I30,I50,I79,I100,I117,I128,#REF!)<>0,I7=0),1,0)","v":{"$error":"#REF!"}},{"$f":"IF(AND(SUM(J30,J50,J79,J100,J117,J128,#REF!)<>0,J7=0),1,0)","v":{"$error":"#REF!"}},{"$f":"IF(AND(SUM(K30,K50,K79,K100,K117,K128,#REF!)<>0,K7=0),1,0)","v":{"$error":"#REF!"}},{"$f":"IF(AND(SUM(L30,L50,L79,L100,L117,L128,#REF!)<>0,L7=0),1,0)","v":{"$error":"#REF!"}},{"$f":"IF(AND(SUM(M30,M50,M79,M100,M117,M128,#REF!)<>0,M7=0),1,0)","v":{"$error":"#REF!"}},{"$f":"IF(AND(SUM(N30,N50,N79,N100,N117,N128,#REF!)<>0,N7=0),1,0)","v":{"$error":"#REF!"}},{"$f":"IF(AND(SUM(O30,O50,O79,O100,O117,O128,#REF!)<>0,O7=0),1,0)","v":{"$error":"#REF!"}},{"$f":"IF(AND(SUM(P30,P50,P79,P100,P117,P128,#REF!)<>0,P7=0),1,0)","v":{"$error":"#REF!"}},{"$f":"IF(AND(SUM(Q30,Q50,Q79,Q100,Q117,Q128,#REF!)<>0,Q7=0),1,0)","v":{"$error":"#REF!"}},{"$f":"IF(AND(SUM(R30,R50,R79,R100,R117,R128,#REF!)<>0,R7=0),1,0)","v":{"$error":"#REF!"}},{"$f":"IF(AND(SUM(S30,S50,S79,S100,S117,S128,#REF!)<>0,S7=0),1,0)","v":{"$error":"#REF!"}},{"$f":"IF(AND(SUM(T30,T50,T79,T100,T117,T128,#REF!)<>0,T7=0),1,0)","v":{"$error":"#REF!"}},{"$f":"IF(AND(SUM(U30,U50,U79,U100,U117,U128,#REF!)<>0,U7=0),1,0)","v":{"$error":"#REF!"}},{"$f":"IF(AND(SUM(V30,V50,V79,V100,V117,V128,#REF!)<>0,V7=0),1,0)","v":{"$error":"#REF!"}},{"$f":"IF(AND(SUM(W30,W50,W79,W100,W117,W128,#REF!)<>0,W7=0),1,0)","v":{"$error":"#REF!"}},{"$f":"IF(AND(SUM(X30,X50,X79,X100,X117,X128,#REF!)<>0,X7=0),1,0)","v":{"$error":"#REF!"}},{"$f":"IF(AND(SUM(Y30,Y50,Y79,Y100,Y117,Y128,#REF!)<>0,Y7=0),1,0)","v":{"$error":"#REF!"}},{"$f":"IF(AND(SUM(Z30,Z50,Z79,Z100,Z117,Z128,#REF!)<>0,Z7=0),1,0)","v":{"$error":"#REF!"}},{"$f":"IF(AND(SUM(AA30,AA50,AA79,AA100,AA117,AA128,#REF!)<>0,AA7=0),1,0)","v":{"$error":"#REF!"}},{"$f":"IF(AND(SUM(AB30,AB50,AB79,AB100,AB117,AB128,#REF!)<>0,AB7=0),1,0)","v":{"$error":"#REF!"}},{"$f":"IF(AND(SUM(AC30,AC50,AC79,AC100,AC117,AC128,#REF!)<>0,AC7=0),1,0)","v":{"$error":"#REF!"}},{"$f":"IF(AND(SUM(AD30,AD50,AD79,AD100,AD117,AD128,#REF!)<>0,AD7=0),1,0)","v":{"$error":"#REF!"}},{"$f":"IF(AND(SUM(AE30,AE50,AE79,AE100,AE117,AE128,#REF!)<>0,AE7=0),1,0)","v":{"$error":"#REF!"}},{"$f":"IF(AND(SUM(AF30,AF50,AF79,AF100,AF117,AF128,#REF!)<>0,AF7=0),1,0)","v":{"$error":"#REF!"}},{"$f":"IF(AND(SUM(AG30,AG50,AG79,AG100,AG117,AG128,#REF!)<>0,AG7=0),1,0)","v":{"$error":"#REF!"}},{"$f":"IF(AND(SUM(AH30,AH50,AH79,AH100,AH117,AH128,#REF!)<>0,AH7=0),1,0)","v":{"$error":"#REF!"}},{"$f":"IF(AND(SUM(AI30,AI50,AI79,AI100,AI117,AI128,#REF!)<>0,AI7=0),1,0)","v":{"$error":"#REF!"}},{"$f":"IF(AND(SUM(AJ30,AJ50,AJ79,AJ100,AJ117,AJ128,#REF!)<>0,AJ7=0),1,0)","v":{"$error":"#REF!"}},{"$f":"IF(AND(SUM(AK30,AK50,AK79,AK100,AK117,AK128,#REF!)<>0,AK7=0),1,0)","v":{"$error":"#REF!"}},{"$f":"IF(AND(SUM(AL30,AL50,AL79,AL100,AL117,AL128,#REF!)<>0,AL7=0),1,0)","v":{"$error":"#REF!"}},{"$f":"IF(AND(SUM(AM30,AM50,AM79,AM100,AM117,AM128,#REF!)<>0,AM7=0),1,0)","v":{"$error":"#REF!"}},{"$f":"IF(AND(SUM(AN30,AN50,AN79,AN100,AN117,AN128,#REF!)<>0,AN7=0),1,0)","v":{"$error":"#REF!"}},{"$f":"IF(AND(SUM(AO30,AO50,AO79,AO100,AO117,AO128,#REF!)<>0,AO7=0),1,0)","v":{"$error":"#REF!"}},{"$f":"IF(AND(SUM(AP30,AP50,AP79,AP100,AP117,AP128,#REF!)<>0,AP7=0),1,0)","v":{"$error":"#REF!"}},{"$f":"IF(AND(SUM(AQ30,AQ50,AQ79,AQ100,AQ117,AQ128,#REF!)<>0,AQ7=0),1,0)","v":{"$error":"#REF!"}},{"$f":"IF(AND(SUM(AR30,AR50,AR79,AR100,AR117,AR128,#REF!)<>0,AR7=0),1,0)","v":{"$error":"#REF!"}},{"$f":"IF(AND(SUM(AS30,AS50,AS79,AS100,AS117,AS128,#REF!)<>0,AS7=0),1,0)","v":{"$error":"#REF!"}},{"$f":"IF(AND(SUM(AT30,AT50,AT79,AT100,AT117,AT128,#REF!)<>0,AT7=0),1,0)","v":{"$error":"#REF!"}},{"$f":"IF(AND(SUM(AU30,AU50,AU79,AU100,AU117,AU128,#REF!)<>0,AU7=0),1,0)","v":{"$error":"#REF!"}},{"$f":"IF(AND(SUM(AV30,AV50,AV79,AV100,AV117,AV128,#REF!)<>0,AV7=0),1,0)","v":{"$error":"#REF!"}},{"$f":"IF(AND(SUM(AW30,AW50,AW79,AW100,AW117,AW128,#REF!)<>0,AW7=0),1,0)","v":{"$error":"#REF!"}},{"$f":"IF(AND(SUM(AX30,AX50,AX79,AX100,AX117,AX128,#REF!)<>0,AX7=0),1,0)","v":{"$error":"#REF!"}},{"$f":"IF(AND(SUM(AY30,AY50,AY79,AY100,AY117,AY128,#REF!)<>0,AY7=0),1,0)","v":{"$error":"#REF!"}},{"$f":"IF(AND(SUM(AZ30,AZ50,AZ79,AZ100,AZ117,AZ128,#REF!)<>0,AZ7=0),1,0)","v":{"$error":"#REF!"}},{"$f":"IF(AND(SUM(BA30,BA50,BA79,BA100,BA117,BA128,#REF!)<>0,BA7=0),1,0)","v":{"$error":"#REF!"}},{"$f":"IF(AND(SUM(BB30,BB50,BB79,BB100,BB117,BB128,#REF!)<>0,BB7=0),1,0)","v":{"$error":"#REF!"}},{"$f":"IF(AND(SUM(BC30,BC50,BC79,BC100,BC117,BC128,#REF!)<>0,BC7=0),1,0)","v":{"$error":"#REF!"}},{"$f":"IF(AND(SUM(BD30,BD50,BD79,BD100,BD117,BD128,#REF!)<>0,BD7=0),1,0)","v":{"$error":"#REF!"}},{"$f":"IF(AND(SUM(BE30,BE50,BE79,BE100,BE117,BE128,#REF!)<>0,BE7=0),1,0)","v":{"$error":"#REF!"}},{"$f":"IF(AND(SUM(BF30,BF50,BF79,BF100,BF117,BF128,#REF!)<>0,BF7=0),1,0)","v":{"$error":"#REF!"}},{"$f":"IF(AND(SUM(BG30,BG50,BG79,BG100,BG117,BG128,#REF!)<>0,BG7=0),1,0)","v":{"$error":"#REF!"}},{"$f":"IF(AND(SUM(BH30,BH50,BH79,BH100,BH117,BH128,#REF!)<>0,BH7=0),1,0)","v":{"$error":"#REF!"}},{"$f":"IF(AND(SUM(BI30,BI50,BI79,BI100,BI117,BI128,#REF!)<>0,BI7=0),1,0)","v":{"$error":"#REF!"}},{"$f":"IF(AND(SUM(BJ30,BJ50,BJ79,BJ100,BJ117,BJ128,#REF!)<>0,BJ7=0),1,0)","v":{"$error":"#REF!"}},{"$f":"IF(AND(SUM(BK30,BK50,BK79,BK100,BK117,BK128,#REF!)<>0,BK7=0),1,0)","v":{"$error":"#REF!"}},{"$f":"IF(AND(SUM(BL30,BL50,BL79,BL100,BL117,BL128,#REF!)<>0,BL7=0),1,0)","v":{"$error":"#REF!"}},{"$f":"IF(AND(SUM(BM30,BM50,BM79,BM100,BM117,BM128,#REF!)<>0,BM7=0),1,0)","v":{"$error":"#REF!"}},{"$f":"IF(AND(SUM(BN30,BN50,BN79,BN100,BN117,BN128,#REF!)<>0,BN7=0),1,0)","v":{"$error":"#REF!"}},{"$f":"IF(AND(SUM(BO30,BO50,BO79,BO100,BO117,BO128,#REF!)<>0,BO7=0),1,0)","v":{"$error":"#REF!"}},{"$f":"IF(AND(SUM(BP30,BP50,BP79,BP100,BP117,BP128,#REF!)<>0,BP7=0),1,0)","v":{"$error":"#REF!"}},{"$f":"IF(AND(SUM(BQ30,BQ50,BQ79,BQ100,BQ117,BQ128,#REF!)<>0,BQ7=0),1,0)","v":{"$error":"#REF!"}},{"$f":"IF(AND(SUM(BR30,BR50,BR79,BR100,BR117,BR128,#REF!)<>0,BR7=0),1,0)","v":{"$error":"#REF!"}},{"$f":"IF(AND(SUM(BS30,BS50,BS79,BS100,BS117,BS128,#REF!)<>0,BS7=0),1,0)","v":{"$error":"#REF!"}},{"$f":"IF(AND(SUM(BT30,BT50,BT79,BT100,BT117,BT128,#REF!)<>0,BT7=0),1,0)","v":{"$error":"#REF!"}},{"$f":"IF(AND(SUM(BU30,BU50,BU79,BU100,BU117,BU128,#REF!)<>0,BU7=0),1,0)","v":{"$error":"#REF!"}},{"$f":"IF(AND(SUM(BV30,BV50,BV79,BV100,BV117,BV128,#REF!)<>0,BV7=0),1,0)","v":{"$error":"#REF!"}},{"$f":"IF(AND(SUM(BW30,BW50,BW79,BW100,BW117,BW128,#REF!)<>0,BW7=0),1,0)","v":{"$error":"#REF!"}},{"$f":"IF(AND(SUM(BX30,BX50,BX79,BX100,BX117,BX128,#REF!)<>0,BX7=0),1,0)","v":{"$error":"#REF!"}},{"$f":"IF(AND(SUM(BY30,BY50,BY79,BY100,BY117,BY128,#REF!)<>0,BY7=0),1,0)","v":{"$error":"#REF!"}},{"$f":"IF(AND(SUM(BZ30,BZ50,BZ79,BZ100,BZ117,BZ128,#REF!)<>0,BZ7=0),1,0)","v":{"$error":"#REF!"}},{"$f":"IF(AND(SUM(CA30,CA50,CA79,CA100,CA117,CA128,#REF!)<>0,CA7=0),1,0)","v":{"$error":"#REF!"}},{"$f":"IF(AND(SUM(CB30,CB50,CB79,CB100,CB117,CB128,#REF!)<>0,CB7=0),1,0)","v":{"$error":"#REF!"}},{"$f":"IF(AND(SUM(CC30,CC50,CC79,CC100,CC117,CC128,#REF!)<>0,CC7=0),1,0)","v":{"$error":"#REF!"}},{"$f":"IF(AND(SUM(CD30,CD50,CD79,CD100,CD117,CD128,#REF!)<>0,CD7=0),1,0)","v":{"$error":"#REF!"}},{"$f":"IF(AND(SUM(CE30,CE50,CE79,CE100,CE117,CE128,#REF!)<>0,CE7=0),1,0)","v":{"$error":"#REF!"}},{"$f":"IF(AND(SUM(CF30,CF50,CF79,CF100,CF117,CF128,#REF!)<>0,CF7=0),1,0)","v":{"$error":"#REF!"}},{"$f":"IF(AND(SUM(CG30,CG50,CG79,CG100,CG117,CG128,#REF!)<>0,CG7=0),1,0)","v":{"$error":"#REF!"}},{"$f":"IF(AND(SUM(CH30,CH50,CH79,CH100,CH117,CH128,#REF!)<>0,CH7=0),1,0)","v":{"$error":"#REF!"}},{"$f":"IF(AND(SUM(CI30,CI50,CI79,CI100,CI117,CI128,#REF!)<>0,CI7=0),1,0)","v":{"$error":"#REF!"}},{"$f":"IF(AND(SUM(CJ30,CJ50,CJ79,CJ100,CJ117,CJ128,#REF!)<>0,CJ7=0),1,0)","v":{"$error":"#REF!"}},{"$f":"IF(AND(SUM(CK30,CK50,CK79,CK100,CK117,CK128,#REF!)<>0,CK7=0),1,0)","v":{"$error":"#REF!"}},{"$f":"IF(AND(SUM(CL30,CL50,CL79,CL100,CL117,CL128,#REF!)<>0,CL7=0),1,0)","v":{"$error":"#REF!"}},{"$f":"IF(AND(SUM(CM30,CM50,CM79,CM100,CM117,CM128,#REF!)<>0,CM7=0),1,0)","v":{"$error":"#REF!"}},{"$f":"IF(AND(SUM(CN30,CN50,CN79,CN100,CN117,CN128,#REF!)<>0,CN7=0),1,0)","v":{"$error":"#REF!"}},{"$f":"IF(AND(SUM(CO30,CO50,CO79,CO100,CO117,CO128,#REF!)<>0,CO7=0),1,0)","v":{"$error":"#REF!"}},{"$f":"IF(AND(SUM(CP30,CP50,CP79,CP100,CP117,CP128,#REF!)<>0,CP7=0),1,0)","v":{"$error":"#REF!"}},{"$f":"IF(AND(SUM(CQ30,CQ50,CQ79,CQ100,CQ117,CQ128,#REF!)<>0,CQ7=0),1,0)","v":{"$error":"#REF!"}},{"$f":"IF(AND(SUM(CR30,CR50,CR79,CR100,CR117,CR128,#REF!)<>0,CR7=0),1,0)","v":{"$error":"#REF!"}},{"$f":"IF(AND(SUM(CS30,CS50,CS79,CS100,CS117,CS128,#REF!)<>0,CS7=0),1,0)","v":{"$error":"#REF!"}},{"$f":"IF(AND(SUM(CT30,CT50,CT79,CT100,CT117,CT128,#REF!)<>0,CT7=0),1,0)","v":{"$error":"#REF!"}},{"$f":"IF(AND(SUM(CU30,CU50,CU79,CU100,CU117,CU128,#REF!)<>0,CU7=0),1,0)","v":{"$error":"#REF!"}},{"$f":"IF(AND(SUM(CV30,CV50,CV79,CV100,CV117,CV128,#REF!)<>0,CV7=0),1,0)","v":{"$error":"#REF!"}},{"$f":"IF(AND(SUM(CW30,CW50,CW79,CW100,CW117,CW128,#REF!)<>0,CW7=0),1,0)","v":{"$error":"#REF!"}},{"$f":"IF(AND(SUM(CX30,CX50,CX79,CX100,CX117,CX128,#REF!)<>0,CX7=0),1,0)","v":{"$error":"#REF!"}},{"$f":"IF(AND(SUM(CY30,CY50,CY79,CY100,CY117,CY128,#REF!)<>0,CY7=0),1,0)","v":{"$error":"#REF!"}},{"$f":"IF(AND(SUM(CZ30,CZ50,CZ79,CZ100,CZ117,CZ128,#REF!)<>0,CZ7=0),1,0)","v":{"$error":"#REF!"}},{"$f":"IF(AND(SUM(DA30,DA50,DA79,DA100,DA117,DA128,#REF!)<>0,DA7=0),1,0)","v":{"$error":"#REF!"}},{"$f":"IF(AND(SUM(DB30,DB50,DB79,DB100,DB117,DB128,#REF!)<>0,DB7=0),1,0)","v":{"$error":"#REF!"}},{"$f":"IF(AND(SUM(DC30,DC50,DC79,DC100,DC117,DC128,#REF!)<>0,DC7=0),1,0)","v":{"$error":"#REF!"}}]
[null,null,null,null,null,"Year number",null,0,1,2,3,4,5,6,7,8,9,10,11,12,13,14,15,16,17,18,19,20,21,22,23,24,25,26,27,28,29,30,31,32,33,34,35,36,37,38,39,40,41,42,43,44,45,46,47,48,49,50,51,52,53,54,55,56,57,58,59,60,61,62,63,64,65,66,67,68,69,70,71,72,73,74,75,76,77,78,79,80,81,82,83,84,85,86,87,88,89,90,91,92,93,94,95,96,97,98,99]
[null,null,null,null,null,"Year",null,{"$f":"IF($C$9=0,\"\",IF(H$6+'Data Input - General'!$F$22>'Data Input - General'!$F$34,0,'Data Input - BAT'!H$6+'Data Input - General'!$F$22))","v":2019},{"$f":"IF($C$9=0,\"\",IF(I$6+'Data Input - General'!$F$22>'Data Input - General'!$F$34,0,'Data Input - BAT'!I$6+'Data Input - General'!$F$22))","v":2020},{"$f":"IF($C$9=0,\"\",IF(J$6+'Data Input - General'!$F$22>'Data Input - General'!$F$34,0,'Data Input - BAT'!J$6+'Data Input - General'!$F$22))","v":2021},{"$f":"IF($C$9=0,\"\",IF(K$6+'Data Input - General'!$F$22>'Data Input - General'!$F$34,0,'Data Input - BAT'!K$6+'Data Input - General'!$F$22))","v":2022},{"$f":"IF($C$9=0,\"\",IF(L$6+'Data Input - General'!$F$22>'Data Input - General'!$F$34,0,'Data Input - BAT'!L$6+'Data Input - General'!$F$22))","v":2023},{"$f":"IF($C$9=0,\"\",IF(M$6+'Data Input - General'!$F$22>'Data Input - General'!$F$34,0,'Data Input - BAT'!M$6+'Data Input - General'!$F$22))","v":2024},{"$f":"IF($C$9=0,\"\",IF(N$6+'Data Input - General'!$F$22>'Data Input - General'!$F$34,0,'Data Input - BAT'!N$6+'Data Input - General'!$F$22))","v":2025},{"$f":"IF($C$9=0,\"\",IF(O$6+'Data Input - General'!$F$22>'Data Input - General'!$F$34,0,'Data Input - BAT'!O$6+'Data Input - General'!$F$22))","v":2026},{"$f":"IF($C$9=0,\"\",IF(P$6+'Data Input - General'!$F$22>'Data Input - General'!$F$34,0,'Data Input - BAT'!P$6+'Data Input - General'!$F$22))","v":2027},{"$f":"IF($C$9=0,\"\",IF(Q$6+'Data Input - General'!$F$22>'Data Input - General'!$F$34,0,'Data Input - BAT'!Q$6+'Data Input - General'!$F$22))","v":2028},{"$f":"IF($C$9=0,\"\",IF(R$6+'Data Input - General'!$F$22>'Data Input - General'!$F$34,0,'Data Input - BAT'!R$6+'Data Input - General'!$F$22))","v":2029},{"$f":"IF($C$9=0,\"\",IF(S$6+'Data Input - General'!$F$22>'Data Input - General'!$F$34,0,'Data Input - BAT'!S$6+'Data Input - General'!$F$22))","v":2030},{"$f":"IF($C$9=0,\"\",IF(T$6+'Data Input - General'!$F$22>'Data Input - General'!$F$34,0,'Data Input - BAT'!T$6+'Data Input - General'!$F$22))","v":2031},{"$f":"IF($C$9=0,\"\",IF(U$6+'Data Input - General'!$F$22>'Data Input - General'!$F$34,0,'Data Input - BAT'!U$6+'Data Input - General'!$F$22))","v":2032},{"$f":"IF($C$9=0,\"\",IF(V$6+'Data Input - General'!$F$22>'Data Input - General'!$F$34,0,'Data Input - BAT'!V$6+'Data Input - General'!$F$22))","v":2033},{"$f":"IF($C$9=0,\"\",IF(W$6+'Data Input - General'!$F$22>'Data Input - General'!$F$34,0,'Data Input - BAT'!W$6+'Data Input - General'!$F$22))","v":2034},{"$f":"IF($C$9=0,\"\",IF(X$6+'Data Input - General'!$F$22>'Data Input - General'!$F$34,0,'Data Input - BAT'!X$6+'Data Input - General'!$F$22))","v":2035},{"$f":"IF($C$9=0,\"\",IF(Y$6+'Data Input - General'!$F$22>'Data Input - General'!$F$34,0,'Data Input - BAT'!Y$6+'Data Input - General'!$F$22))","v":2036},{"$f":"IF($C$9=0,\"\",IF(Z$6+'Data Input - General'!$F$22>'Data Input - General'!$F$34,0,'Data Input - BAT'!Z$6+'Data Input - General'!$F$22))","v":2037},{"$f":"IF($C$9=0,\"\",IF(AA$6+'Data Input - General'!$F$22>'Data Input - General'!$F$34,0,'Data Input - BAT'!AA$6+'Data Input - General'!$F$22))","v":2038},{"$f":"IF($C$9=0,\"\",IF(AB$6+'Data Input - General'!$F$22>'Data Input - General'!$F$34,0,'Data Input - BAT'!AB$6+'Data Input - General'!$F$22))","v":2039},{"$f":"IF($C$9=0,\"\",IF(AC$6+'Data Input - General'!$F$22>'Data Input - General'!$F$34,0,'Data Input - BAT'!AC$6+'Data Input - General'!$F$22))","v":2040},{"$f":"IF($C$9=0,\"\",IF(AD$6+'Data Input - General'!$F$22>'Data Input - General'!$F$34,0,'Data Input - BAT'!AD$6+'Data Input - General'!$F$22))","v":2041},{"$f":"IF($C$9=0,\"\",IF(AE$6+'Data Input - General'!$F$22>'Data Input - General'!$F$34,0,'Data Input - BAT'!AE$6+'Data Input - General'!$F$22))","v":2042},{"$f":"IF($C$9=0,\"\",IF(AF$6+'Data Input - General'!$F$22>'Data Input - General'!$F$34,0,'Data Input - BAT'!AF$6+'Data Input - General'!$F$22))","v":2043},{"$f":"IF($C$9=0,\"\",IF(AG$6+'Data Input - General'!$F$22>'Data Input - General'!$F$34,0,'Data Input - BAT'!AG$6+'Data Input - General'!$F$22))","v":2044},{"$f":"IF($C$9=0,\"\",IF(AH$6+'Data Input - General'!$F$22>'Data Input - General'!$F$34,0,'Data Input - BAT'!AH$6+'Data Input - General'!$F$22))","v":2045},{"$f":"IF($C$9=0,\"\",IF(AI$6+'Data Input - General'!$F$22>'Data Input - General'!$F$34,0,'Data Input - BAT'!AI$6+'Data Input - General'!$F$22))","v":2046},{"$f":"IF($C$9=0,\"\",IF(AJ$6+'Data Input - General'!$F$22>'Data Input - General'!$F$34,0,'Data Input - BAT'!AJ$6+'Data Input - General'!$F$22))","v":2047},{"$f":"IF($C$9=0,\"\",IF(AK$6+'Data Input - General'!$F$22>'Data Input - General'!$F$34,0,'Data Input - BAT'!AK$6+'Data Input - General'!$F$22))","v":2048},{"$f":"IF($C$9=0,\"\",IF(AL$6+'Data Input - General'!$F$22>'Data Input - General'!$F$34,0,'Data Input - BAT'!AL$6+'Data Input - General'!$F$22))","v":2049},{"$f":"IF($C$9=0,\"\",IF(AM$6+'Data Input - General'!$F$22>'Data Input - General'!$F$34,0,'Data Input - BAT'!AM$6+'Data Input - General'!$F$22))","v":0},{"$f":"IF($C$9=0,\"\",IF(AN$6+'Data Input - General'!$F$22>'Data Input - General'!$F$34,0,'Data Input - BAT'!AN$6+'Data Input - General'!$F$22))","v":0},{"$f":"IF($C$9=0,\"\",IF(AO$6+'Data Input - General'!$F$22>'Data Input - General'!$F$34,0,'Data Input - BAT'!AO$6+'Data Input - General'!$F$22))","v":0},{"$f":"IF($C$9=0,\"\",IF(AP$6+'Data Input - General'!$F$22>'Data Input - General'!$F$34,0,'Data Input - BAT'!AP$6+'Data Input - General'!$F$22))","v":0},{"$f":"IF($C$9=0,\"\",IF(AQ$6+'Data Input - General'!$F$22>'Data Input - General'!$F$34,0,'Data Input - BAT'!AQ$6+'Data Input - General'!$F$22))","v":0},{"$f":"IF($C$9=0,\"\",IF(AR$6+'Data Input - General'!$F$22>'Data Input - General'!$F$34,0,'Data Input - BAT'!AR$6+'Data Input - General'!$F$22))","v":0},{"$f":"IF($C$9=0,\"\",IF(AS$6+'Data Input - General'!$F$22>'Data Input - General'!$F$34,0,'Data Input - BAT'!AS$6+'Data Input - General'!$F$22))","v":0},{"$f":"IF($C$9=0,\"\",IF(AT$6+'Data Input - General'!$F$22>'Data Input - General'!$F$34,0,'Data Input - BAT'!AT$6+'Data Input - General'!$F$22))","v":0},{"$f":"IF($C$9=0,\"\",IF(AU$6+'Data Input - General'!$F$22>'Data Input - General'!$F$34,0,'Data Input - BAT'!AU$6+'Data Input - General'!$F$22))","v":0},{"$f":"IF($C$9=0,\"\",IF(AV$6+'Data Input - General'!$F$22>'Data Input - General'!$F$34,0,'Data Input - BAT'!AV$6+'Data Input - General'!$F$22))","v":0},{"$f":"IF($C$9=0,\"\",IF(AW$6+'Data Input - General'!$F$22>'Data Input - General'!$F$34,0,'Data Input - BAT'!AW$6+'Data Input - General'!$F$22))","v":0},{"$f":"IF($C$9=0,\"\",IF(AX$6+'Data Input - General'!$F$22>'Data Input - General'!$F$34,0,'Data Input - BAT'!AX$6+'Data Input - General'!$F$22))","v":0},{"$f":"IF($C$9=0,\"\",IF(AY$6+'Data Input - General'!$F$22>'Data Input - General'!$F$34,0,'Data Input - BAT'!AY$6+'Data Input - General'!$F$22))","v":0},{"$f":"IF($C$9=0,\"\",IF(AZ$6+'Data Input - General'!$F$22>'Data Input - General'!$F$34,0,'Data Input - BAT'!AZ$6+'Data Input - General'!$F$22))","v":0},{"$f":"IF($C$9=0,\"\",IF(BA$6+'Data Input - General'!$F$22>'Data Input - General'!$F$34,0,'Data Input - BAT'!BA$6+'Data Input - General'!$F$22))","v":0},{"$f":"IF($C$9=0,\"\",IF(BB$6+'Data Input - General'!$F$22>'Data Input - General'!$F$34,0,'Data Input - BAT'!BB$6+'Data Input - General'!$F$22))","v":0},{"$f":"IF($C$9=0,\"\",IF(BC$6+'Data Input - General'!$F$22>'Data Input - General'!$F$34,0,'Data Input - BAT'!BC$6+'Data Input - General'!$F$22))","v":0},{"$f":"IF($C$9=0,\"\",IF(BD$6+'Data Input - General'!$F$22>'Data Input - General'!$F$34,0,'Data Input - BAT'!BD$6+'Data Input - General'!$F$22))","v":0},{"$f":"IF($C$9=0,\"\",IF(BE$6+'Data Input - General'!$F$22>'Data Input - General'!$F$34,0,'Data Input - BAT'!BE$6+'Data Input - General'!$F$22))","v":0},{"$f":"IF($C$9=0,\"\",IF(BF$6+'Data Input - General'!$F$22>'Data Input - General'!$F$34,0,'Data Input - BAT'!BF$6+'Data Input - General'!$F$22))","v":0},{"$f":"IF($C$9=0,\"\",IF(BG$6+'Data Input - General'!$F$22>'Data Input - General'!$F$34,0,'Data Input - BAT'!BG$6+'Data Input - General'!$F$22))","v":0},{"$f":"IF($C$9=0,\"\",IF(BH$6+'Data Input - General'!$F$22>'Data Input - General'!$F$34,0,'Data Input - BAT'!BH$6+'Data Input - General'!$F$22))","v":0},{"$f":"IF($C$9=0,\"\",IF(BI$6+'Data Input - General'!$F$22>'Data Input - General'!$F$34,0,'Data Input - BAT'!BI$6+'Data Input - General'!$F$22))","v":0},{"$f":"IF($C$9=0,\"\",IF(BJ$6+'Data Input - General'!$F$22>'Data Input - General'!$F$34,0,'Data Input - BAT'!BJ$6+'Data Input - General'!$F$22))","v":0},{"$f":"IF($C$9=0,\"\",IF(BK$6+'Data Input - General'!$F$22>'Data Input - General'!$F$34,0,'Data Input - BAT'!BK$6+'Data Input - General'!$F$22))","v":0},{"$f":"IF($C$9=0,\"\",IF(BL$6+'Data Input - General'!$F$22>'Data Input - General'!$F$34,0,'Data Input - BAT'!BL$6+'Data Input - General'!$F$22))","v":0},{"$f":"IF($C$9=0,\"\",IF(BM$6+'Data Input - General'!$F$22>'Data Input - General'!$F$34,0,'Data Input - BAT'!BM$6+'Data Input - General'!$F$22))","v":0},{"$f":"IF($C$9=0,\"\",IF(BN$6+'Data Input - General'!$F$22>'Data Input - General'!$F$34,0,'Data Input - BAT'!BN$6+'Data Input - General'!$F$22))","v":0},{"$f":"IF($C$9=0,\"\",IF(BO$6+'Data Input - General'!$F$22>'Data Input - General'!$F$34,0,'Data Input - BAT'!BO$6+'Data Input - General'!$F$22))","v":0},{"$f":"IF($C$9=0,\"\",IF(BP$6+'Data Input - General'!$F$22>'Data Input - General'!$F$34,0,'Data Input - BAT'!BP$6+'Data Input - General'!$F$22))","v":0},{"$f":"IF($C$9=0,\"\",IF(BQ$6+'Data Input - General'!$F$22>'Data Input - General'!$F$34,0,'Data Input - BAT'!BQ$6+'Data Input - General'!$F$22))","v":0},{"$f":"IF($C$9=0,\"\",IF(BR$6+'Data Input - General'!$F$22>'Data Input - General'!$F$34,0,'Data Input - BAT'!BR$6+'Data Input - General'!$F$22))","v":0},{"$f":"IF($C$9=0,\"\",IF(BS$6+'Data Input - General'!$F$22>'Data Input - General'!$F$34,0,'Data Input - BAT'!BS$6+'Data Input - General'!$F$22))","v":0},{"$f":"IF($C$9=0,\"\",IF(BT$6+'Data Input - General'!$F$22>'Data Input - General'!$F$34,0,'Data Input - BAT'!BT$6+'Data Input - General'!$F$22))","v":0},{"$f":"IF($C$9=0,\"\",IF(BU$6+'Data Input - General'!$F$22>'Data Input - General'!$F$34,0,'Data Input - BAT'!BU$6+'Data Input - General'!$F$22))","v":0},{"$f":"IF($C$9=0,\"\",IF(BV$6+'Data Input - General'!$F$22>'Data Input - General'!$F$34,0,'Data Input - BAT'!BV$6+'Data Input - General'!$F$22))","v":0},{"$f":"IF($C$9=0,\"\",IF(BW$6+'Data Input - General'!$F$22>'Data Input - General'!$F$34,0,'Data Input - BAT'!BW$6+'Data Input - General'!$F$22))","v":0},{"$f":"IF($C$9=0,\"\",IF(BX$6+'Data Input - General'!$F$22>'Data Input - General'!$F$34,0,'Data Input - BAT'!BX$6+'Data Input - General'!$F$22))","v":0},{"$f":"IF($C$9=0,\"\",IF(BY$6+'Data Input - General'!$F$22>'Data Input - General'!$F$34,0,'Data Input - BAT'!BY$6+'Data Input - General'!$F$22))","v":0},{"$f":"IF($C$9=0,\"\",IF(BZ$6+'Data Input - General'!$F$22>'Data Input - General'!$F$34,0,'Data Input - BAT'!BZ$6+'Data Input - General'!$F$22))","v":0},{"$f":"IF($C$9=0,\"\",IF(CA$6+'Data Input - General'!$F$22>'Data Input - General'!$F$34,0,'Data Input - BAT'!CA$6+'Data Input - General'!$F$22))","v":0},{"$f":"IF($C$9=0,\"\",IF(CB$6+'Data Input - General'!$F$22>'Data Input - General'!$F$34,0,'Data Input - BAT'!CB$6+'Data Input - General'!$F$22))","v":0},{"$f":"IF($C$9=0,\"\",IF(CC$6+'Data Input - General'!$F$22>'Data Input - General'!$F$34,0,'Data Input - BAT'!CC$6+'Data Input - General'!$F$22))","v":0},{"$f":"IF($C$9=0,\"\",IF(CD$6+'Data Input - General'!$F$22>'Data Input - General'!$F$34,0,'Data Input - BAT'!CD$6+'Data Input - General'!$F$22))","v":0},{"$f":"IF($C$9=0,\"\",IF(CE$6+'Data Input - General'!$F$22>'Data Input - General'!$F$34,0,'Data Input - BAT'!CE$6+'Data Input - General'!$F$22))","v":0},{"$f":"IF($C$9=0,\"\",IF(CF$6+'Data Input - General'!$F$22>'Data Input - General'!$F$34,0,'Data Input - BAT'!CF$6+'Data Input - General'!$F$22))","v":0},{"$f":"IF($C$9=0,\"\",IF(CG$6+'Data Input - General'!$F$22>'Data Input - General'!$F$34,0,'Data Input - BAT'!CG$6+'Data Input - General'!$F$22))","v":0},{"$f":"IF($C$9=0,\"\",IF(CH$6+'Data Input - General'!$F$22>'Data Input - General'!$F$34,0,'Data Input - BAT'!CH$6+'Data Input - General'!$F$22))","v":0},{"$f":"IF($C$9=0,\"\",IF(CI$6+'Data Input - General'!$F$22>'Data Input - General'!$F$34,0,'Data Input - BAT'!CI$6+'Data Input - General'!$F$22))","v":0},{"$f":"IF($C$9=0,\"\",IF(CJ$6+'Data Input - General'!$F$22>'Data Input - General'!$F$34,0,'Data Input - BAT'!CJ$6+'Data Input - General'!$F$22))","v":0},{"$f":"IF($C$9=0,\"\",IF(CK$6+'Data Input - General'!$F$22>'Data Input - General'!$F$34,0,'Data Input - BAT'!CK$6+'Data Input - General'!$F$22))","v":0},{"$f":"IF($C$9=0,\"\",IF(CL$6+'Data Input - General'!$F$22>'Data Input - General'!$F$34,0,'Data Input - BAT'!CL$6+'Data Input - General'!$F$22))","v":0},{"$f":"IF($C$9=0,\"\",IF(CM$6+'Data Input - General'!$F$22>'Data Input - General'!$F$34,0,'Data Input - BAT'!CM$6+'Data Input - General'!$F$22))","v":0},{"$f":"IF($C$9=0,\"\",IF(CN$6+'Data Input - General'!$F$22>'Data Input - General'!$F$34,0,'Data Input - BAT'!CN$6+'Data Input - General'!$F$22))","v":0},{"$f":"IF($C$9=0,\"\",IF(CO$6+'Data Input - General'!$F$22>'Data Input - General'!$F$34,0,'Data Input - BAT'!CO$6+'Data Input - General'!$F$22))","v":0},{"$f":"IF($C$9=0,\"\",IF(CP$6+'Data Input - General'!$F$22>'Data Input - General'!$F$34,0,'Data Input - BAT'!CP$6+'Data Input - General'!$F$22))","v":0},{"$f":"IF($C$9=0,\"\",IF(CQ$6+'Data Input - General'!$F$22>'Data Input - General'!$F$34,0,'Data Input - BAT'!CQ$6+'Data Input - General'!$F$22))","v":0},{"$f":"IF($C$9=0,\"\",IF(CR$6+'Data Input - General'!$F$22>'Data Input - General'!$F$34,0,'Data Input - BAT'!CR$6+'Data Input - General'!$F$22))","v":0},{"$f":"IF($C$9=0,\"\",IF(CS$6+'Data Input - General'!$F$22>'Data Input - General'!$F$34,0,'Data Input - BAT'!CS$6+'Data Input - General'!$F$22))","v":0},{"$f":"IF($C$9=0,\"\",IF(CT$6+'Data Input - General'!$F$22>'Data Input - General'!$F$34,0,'Data Input - BAT'!CT$6+'Data Input - General'!$F$22))","v":0},{"$f":"IF($C$9=0,\"\",IF(CU$6+'Data Input - General'!$F$22>'Data Input - General'!$F$34,0,'Data Input - BAT'!CU$6+'Data Input - General'!$F$22))","v":0},{"$f":"IF($C$9=0,\"\",IF(CV$6+'Data Input - General'!$F$22>'Data Input - General'!$F$34,0,'Data Input - BAT'!CV$6+'Data Input - General'!$F$22))","v":0},{"$f":"IF($C$9=0,\"\",IF(CW$6+'Data Input - General'!$F$22>'Data Input - General'!$F$34,0,'Data Input - BAT'!CW$6+'Data Input - General'!$F$22))","v":0},{"$f":"IF($C$9=0,\"\",IF(CX$6+'Data Input - General'!$F$22>'Data Input - General'!$F$34,0,'Data Input - BAT'!CX$6+'Data Input - General'!$F$22))","v":0},{"$f":"IF($C$9=0,\"\",IF(CY$6+'Data Input - General'!$F$22>'Data Input - General'!$F$34,0,'Data Input - BAT'!CY$6+'Data Input - General'!$F$22))","v":0},{"$f":"IF($C$9=0,\"\",IF(CZ$6+'Data Input - General'!$F$22>'Data Input - General'!$F$34,0,'Data Input - BAT'!CZ$6+'Data Input - General'!$F$22))","v":0},{"$f":"IF($C$9=0,\"\",IF(DA$6+'Data Input - General'!$F$22>'Data Input - General'!$F$34,0,'Data Input - BAT'!DA$6+'Data Input - General'!$F$22))","v":0},{"$f":"IF($C$9=0,\"\",IF(DB$6+'Data Input - General'!$F$22>'Data Input - General'!$F$34,0,'Data Input - BAT'!DB$6+'Data Input - General'!$F$22))","v":0},{"$f":"IF($C$9=0,\"\",IF(DC$6+'Data Input - General'!$F$22>'Data Input - General'!$F$34,0,'Data Input - BAT'!DC$6+'Data Input - General'!$F$22))","v":0}]
[]
[null,null,{"$f":"'Data Input - General'!H24","v":"BAT-AEL"},null,"(?)"]
[]
[null,null,"Upfront investment costs",null,"(?)"]
[]
[null,null,null,"Equipment"]
[null,null,6.1,"Primary emission control equipment","£000's",null,null,20,20,50,5500,50,50,50,50]
[null,null,6.2,"Auxiliary equipment","£000's",null,null,500,500,500,500,500,500,500,500]
[null,null,6.3,"Instrumentation","£000's",null,null,6,6,6,6,6,6,6,6]
[null,null,6.4,"Modifications to existing equipment","£000's"]
[null,null,6.5,"Major refurbishment","£000's"]
[null,null,null,"Set-up costs"]
[null,null,"6.6","Land","£000's"]
[null,null,"6.7","Site preparation","£000's"]
[null,null,"6.8","Civils","£000's"]
[null,null,"6.9","Materials","£000's"]
[null,null,"6.10","Other (please specify)","£000's"]
[null,null,null,"Other capex"]
[null,null,"6.11","Residual value of existing technology (where replaced)","£000's"]
[null,null,"6.12","Project planning (if not in civils)","£000's"]
[null,null,"6.13","Other (please specify)","£000's"]
[]
[null,null,null,"Total upfront investment costs by year (non-discounted)","£000's","(Auto calculated value)",null,{"$f":"SUM(H14:H29)","v":526},{"$f":"SUM(I14:I29)","v":526},{"$f":"SUM(J14:J29)","v":556},{"$f":"SUM(K14:K29)","v":6006},{"$f":"SUM(L14:L29)","v":556},556,556,556,0,0,0,0,0,0,0,0,0,0,0,0,0,0,0,0,0,0,0,0,0,0,0,0,0,0,0,0,0,0,0,0,0,0,0,0,0,0,0,0,0,0,0,0,0,0,0,0,0,0,0,0,0,0,0,0,0,0,0,0,{"$f":"SUM(BX14:BX29)","v":0},0,0,0,0,0,0,0,0,0,0,0,0,0,0,0,0,0,0,0,0,0,0,0,0,0,0,0,0,0,0,0]
[]
[null,null,null,"Total upfront investment costs for all years (non-discounted)",null,"(Auto calculated value)",null,{"$f":"SUM(H30:DC30)","v":9838}]
[]
[null,null,"6.14","Uncertainty range around upfront investment costs","+/-%",0.3]
[]
[null,null,null,"Cost of capital (financing)","(?)"]
[null,null,"6.15","Enter financing costs manually?",null,"No",null,"<(Select from dropdown)"]
[]
[null,null,"6.16","Financing costs - WACC (if entered manually)                       (?)","£000's"]
[]
[null,null,"6.17","Financing costs - Low WACC (if entered manually)","£000's"]
[null,null,"6.18","Financing costs - High WACC (if entered manually)","£000's"]
[]
[null,null,"Operating Costs",null,"(?)"]
[]
[null,null,"6.19","Labour                                                                                            (?)","£000's",null,null,50,50,50,50,50,50,50,50]
[null,null,"6.20","Maintenance","£000's",null,null,200,200,200,200,200,200,200,200]
[null,null,"6.21","Hydrated lime","£000's",null,null,0,200,200,200,200,200,200,200]
[]
[null,null,null,"Total operating and maintenance costs by year (non-discounted)","£000's","(Auto calculated value)",null,{"$f":"SUM(H46:H49)","v":250},{"$f":"SUM(I46:I49)","v":450},450,450,450,450,450,450,0,0,0,0,0,0,0,0,0,0,0,0,0,0,0,0,0,0,0,0,0,0,0,0,0,0,0,0,0,0,0,0,0,0,0,0,0,0,0,0,0,0,0,0,0,0,0,0,0,0,0,0,0,0,0,0,0,{"$f":"SUM(BU46:BU49)","v":0},0,0,0,0,0,0,0,0,0,0,0,0,0,0,0,0,0,0,0,0,0,0,0,0,0,0,0,0,0,0,0,0,0,0]
[]
[null,null,null,"Total operating and maintenance costs for all years (non-discounted)",null,"(Auto calculated value)",null,{"$f":"SUM(H50:DC50)","v":3400}]
[]
[null,null,"6.22","Uncertainty range around operating costs","+/-%",0.2]
[]
[null,null,"Waste output",null,"(?)"]
[]
[null,null,null,"Volume of waste"]
[null,null,"6.23","Non-haz waste, reused","Tonnes"]
[null,null,"6.24","Non-haz waste, recycled","Tonnes"]
[null,null,"6.25","Non-haz waste, otherwise recovered","Tonnes"]
[null,null,"6.26","Non-haz waste, disposed","Tonnes"]
[null,null,"6.27","Haz waste, reused","Tonnes"]
[null,null,"6.28","Haz waste, recycled","Tonnes"]
[null,null,"6.29","Haz waste, otherwise recovered","Tonnes"]
[null,null,"6.30","Haz waste, disposed","Tonnes"]
[null,null,"6.31","Test 2","Tonnes",null,"(?)"]
[null,null,null,"Net cost of waste output"]
[null,null,"6.32","Non-haz waste, reused","£000's"]
[null,null,"6.33","Non-haz waste, recycled","£000's"]
[null,null,"6.34","Non-haz waste, otherwise recovered","£000's"]
[null,null,"6.35","Non-haz waste, disposed","£000's"]
[null,null,"6.36","Haz waste, reused","£000's"]
[null,null,"6.37","Haz waste, recycled","£000's"]
[null,null,"6.38","Haz waste, otherwise recovered","£000's"]
[null,null,"6.39","Haz waste, disposed","£000's"]
[null,null,"6.40","Other (please specify)","£000's"]
[]
[null,null,null,"Total cost of waste output","£000's","(Auto calculated value)",null,{"$f":"SUM(H69:H78)","v":0},{"$f":"SUM(I69:I78)","v":0},{"$f":"SUM(J69:J78)","v":0},{"$f":"SUM(K69:K78)","v":0},{"$f":"SUM(L69:L78)","v":0},0,0,0,0,0,0,0,0,0,0,0,0,0,0,0,0,0,0,0,0,0,0,0,0,0,0,0,0,0,0,0,0,0,0,0,0,0,0,0,0,0,0,0,0,0,0,0,0,0,0,0,0,0,0,0,0,0,0,0,0,0,0,0,{"$f":"SUM(BX69:BX78)","v":0},0,0,0,0,0,0,0,0,0,0,0,0,0,0,0,0,0,0,0,0,0,0,0,0,0,0,0,0,0,0,0]
[]
[null,null,"Energy Consumption"]
[]
[null,null,null,"Quantity of energy consumed"]
[null,null,"6.41","Electricity","kWh",null,null,4000000,4000000,4000000,4000000,4000000,4000000,4000000,4000000]
[null,null,"6.42","Natural Gas","kWh",null,null,0,0,0,0,0,0,0,0]
[null,null,"6.43","Coal","kWh",null,null,121624465,121624465,121624465,121624465,121624465,121624465,121624465,121624465]
[null,null,"6.44","Gas Oil","litres",null,null,200000,200000,200000,200000,200000,200000,200000,200000]
[null,null,"6.45","Road - Petrol","litres"]
[null,null,"6.46","Road - Diesel","litres"]
[null,null,"6.47",null,"kWh"]
[null,null,null,"Value of energy consumed","(?)"]
[null,null,null,{"$f":"D84","v":"Electricity"},"£000's","(Auto calculated value)",null,{"$f":"IFERROR(H84*INDEX('Energy Prices'!$F$12:$CR$17,MATCH('Data Input - BAT'!$D92,'Energy Prices'!$C$12:$C$17,0),MATCH('Data Input - BAT'!H$7,'Energy Prices'!$F$11:$CR$11,0))/100000,\"\")","v":446.04663605012496},{"$f":"IFERROR(I84*INDEX('Energy Prices'!$F$12:$CR$17,MATCH('Data Input - BAT'!$D92,'Energy Prices'!$C$12:$C$17,0),MATCH('Data Input - BAT'!I$7,'Energy Prices'!$F$11:$CR$11,0))/100000,\"\")","v":465.69767664411955},{"$f":"IFERROR(J84*INDEX('Energy Prices'!$F$12:$CR$17,MATCH('Data Input - BAT'!$D92,'Energy Prices'!$C$12:$C$17,0),MATCH('Data Input - BAT'!J$7,'Energy Prices'!$F$11:$CR$11,0))/100000,\"\")","v":498.45544107559726},{"$f":"IFERROR(K84*INDEX('Energy Prices'!$F$12:$CR$17,MATCH('Data Input - BAT'!$D92,'Energy Prices'!$C$12:$C$17,0),MATCH('Data Input - BAT'!K$7,'Energy Prices'!$F$11:$CR$11,0))/100000,\"\")","v":509.2569759971895},{"$f":"IFERROR(L84*INDEX('Energy Prices'!$F$12:$CR$17,MATCH('Data Input - BAT'!$D92,'Energy Prices'!$C$12:$C$17,0),MATCH('Data Input - BAT'!L$7,'Energy Prices'!$F$11:$CR$11,0))/100000,\"\")","v":520.1761292448972},{"$f":"IFERROR(M84*INDEX('Energy Prices'!$F$12:$CR$17,MATCH('Data Input - BAT'!$D92,'Energy Prices'!$C$12:$C$17,0),MATCH('Data Input - BAT'!M$7,'Energy Prices'!$F$11:$CR$11,0))/100000,\"\")","v":556.39462304896892},{"$f":"IFERROR(N84*INDEX('Energy Prices'!$F$12:$CR$17,MATCH('Data Input - BAT'!$D92,'Energy Prices'!$C$12:$C$17,0),MATCH('Data Input - BAT'!N$7,'Energy Prices'!$F$11:$CR$11,0))/100000,\"\")","v":580.46041654324722},{"$f":"IFERROR(O84*INDEX('Energy Prices'!$F$12:$CR$17,MATCH('Data Input - BAT'!$D92,'Energy Prices'!$C$12:$C$17,0),MATCH('Data Input - BAT'!O$7,'Energy Prices'!$F$11:$CR$11,0))/100000,\"\")","v":584.29766310550838},{"$f":"IFERROR(P84*INDEX('Energy Prices'!$F$12:$CR$17,MATCH('Data Input - BAT'!$D92,'Energy Prices'!$C$12:$C$17,0),MATCH('Data Input - BAT'!P$7,'Energy Prices'!$F$11:$CR$11,0))/100000,\"\")","v":0},{"$f":"IFERROR(Q84*INDEX('Energy Prices'!$F$12:$CR$17,MATCH('Data Input - BAT'!$D92,'Energy Prices'!$C$12:$C$17,0),MATCH('Data Input - BAT'!Q$7,'Energy Prices'!$F$11:$CR$11,0))/100000,\"\")","v":0},{"$f":"IFERROR(R84*INDEX('Energy Prices'!$F$12:$CR$17,MATCH('Data Input - BAT'!$D92,'Energy Prices'!$C$12:$C$17,0),MATCH('Data Input - BAT'!R$7,'Energy Prices'!$F$11:$CR$11,0))/100000,\"\")","v":0},{"$f":"IFERROR(S84*INDEX('Energy Prices'!$F$12:$CR$17,MATCH('Data Input - BAT'!$D92,'Energy Prices'!$C$12:$C$17,0),MATCH('Data Input - BAT'!S$7,'Energy Prices'!$F$11:$CR$11,0))/100000,\"\")","v":0},{"$f":"IFERROR(T84*INDEX('Energy Prices'!$F$12:$CR$17,MATCH('Data Input - BAT'!$D92,'Energy Prices'!$C$12:$C$17,0),MATCH('Data Input - BAT'!T$7,'Energy Prices'!$F$11:$CR$11,0))/100000,\"\")","v":0},{"$f":"IFERROR(U84*INDEX('Energy Prices'!$F$12:$CR$17,MATCH('Data Input - BAT'!$D92,'Energy Prices'!$C$12:$C$17,0),MATCH('Data Input - BAT'!U$7,'Energy Prices'!$F$11:$CR$11,0))/100000,\"\")","v":0},{"$f":"IFERROR(V84*INDEX('Energy Prices'!$F$12:$CR$17,MATCH('Data Input - BAT'!$D92,'Energy Prices'!$C$12:$C$17,0),MATCH('Data Input - BAT'!V$7,'Energy Prices'!$F$11:$CR$11,0))/100000,\"\")","v":0},{"$f":"IFERROR(W84*INDEX('Energy Prices'!$F$12:$CR$17,MATCH('Data Input - BAT'!$D92,'Energy Prices'!$C$12:$C$17,0),MATCH('Data Input - BAT'!W$7,'Energy Prices'!$F$11:$CR$11,0))/100000,\"\")","v":0},{"$f":"IFERROR(X84*INDEX('Energy Prices'!$F$12:$CR$17,MATCH('Data Input - BAT'!$D92,'Energy Prices'!$C$12:$C$17,0),MATCH('Data Input - BAT'!X$7,'Energy Prices'!$F$11:$CR$11,0))/100000,\"\")","v":0},{"$f":"IFERROR(Y84*INDEX('Energy Prices'!$F$12:$CR$17,MATCH('Data Input - BAT'!$D92,'Energy Prices'!$C$12:$C$17,0),MATCH('Data Input - BAT'!Y$7,'Energy Prices'!$F$11:$CR$11,0))/100000,\"\")","v":0},{"$f":"IFERROR(Z84*INDEX('Energy Prices'!$F$12:$CR$17,MATCH('Data Input - BAT'!$D92,'Energy Prices'!$C$12:$C$17,0),MATCH('Data Input - BAT'!Z$7,'Energy Prices'!$F$11:$CR$11,0))/100000,\"\")","v":0},{"$f":"IFERROR(AA84*INDEX('Energy Prices'!$F$12:$CR$17,MATCH('Data Input - BAT'!$D92,'Energy Prices'!$C$12:$C$17,0),MATCH('Data Input - BAT'!AA$7,'Energy Prices'!$F$11:$CR$11,0))/100000,\"\")","v":0},{"$f":"IFERROR(AB84*INDEX('Energy Prices'!$F$12:$CR$17,MATCH('Data Input - BAT'!$D92,'Energy Prices'!$C$12:$C$17,0),MATCH('Data Input - BAT'!AB$7,'Energy Prices'!$F$11:$CR$11,0))/100000,\"\")","v":0},{"$f":"IFERROR(AC84*INDEX('Energy Prices'!$F$12:$CR$17,MATCH('Data Input - BAT'!$D92,'Energy Prices'!$C$12:$C$17,0),MATCH('Data Input - BAT'!AC$7,'Energy Prices'!$F$11:$CR$11,0))/100000,\"\")","v":0},{"$f":"IFERROR(AD84*INDEX('Energy Prices'!$F$12:$CR$17,MATCH('Data Input - BAT'!$D92,'Energy Prices'!$C$12:$C$17,0),MATCH('Data Input - BAT'!AD$7,'Energy Prices'!$F$11:$CR$11,0))/100000,\"\")","v":0},{"$f":"IFERROR(AE84*INDEX('Energy Prices'!$F$12:$CR$17,MATCH('Data Input - BAT'!$D92,'Energy Prices'!$C$12:$C$17,0),MATCH('Data Input - BAT'!AE$7,'Energy Prices'!$F$11:$CR$11,0))/100000,\"\")","v":0},{"$f":"IFERROR(AF84*INDEX('Energy Prices'!$F$12:$CR$17,MATCH('Data Input - BAT'!$D92,'Energy Prices'!$C$12:$C$17,0),MATCH('Data Input - BAT'!AF$7,'Energy Prices'!$F$11:$CR$11,0))/100000,\"\")","v":0},{"$f":"IFERROR(AG84*INDEX('Energy Prices'!$F$12:$CR$17,MATCH('Data Input - BAT'!$D92,'Energy Prices'!$C$12:$C$17,0),MATCH('Data Input - BAT'!AG$7,'Energy Prices'!$F$11:$CR$11,0))/100000,\"\")","v":0},{"$f":"IFERROR(AH84*INDEX('Energy Prices'!$F$12:$CR$17,MATCH('Data Input - BAT'!$D92,'Energy Prices'!$C$12:$C$17,0),MATCH('Data Input - BAT'!AH$7,'Energy Prices'!$F$11:$CR$11,0))/100000,\"\")","v":0},{"$f":"IFERROR(AI84*INDEX('Energy Prices'!$F$12:$CR$17,MATCH('Data Input - BAT'!$D92,'Energy Prices'!$C$12:$C$17,0),MATCH('Data Input - BAT'!AI$7,'Energy Prices'!$F$11:$CR$11,0))/100000,\"\")","v":0},{"$f":"IFERROR(AJ84*INDEX('Energy Prices'!$F$12:$CR$17,MATCH('Data Input - BAT'!$D92,'Energy Prices'!$C$12:$C$17,0),MATCH('Data Input - BAT'!AJ$7,'Energy Prices'!$F$11:$CR$11,0))/100000,\"\")","v":0},{"$f":"IFERROR(AK84*INDEX('Energy Prices'!$F$12:$CR$17,MATCH('Data Input - BAT'!$D92,'Energy Prices'!$C$12:$C$17,0),MATCH('Data Input - BAT'!AK$7,'Energy Prices'!$F$11:$CR$11,0))/100000,\"\")","v":0},{"$f":"IFERROR(AL84*INDEX('Energy Prices'!$F$12:$CR$17,MATCH('Data Input - BAT'!$D92,'Energy Prices'!$C$12:$C$17,0),MATCH('Data Input - BAT'!AL$7,'Energy Prices'!$F$11:$CR$11,0))/100000,\"\")","v":0},{"$f":"IFERROR(AM84*INDEX('Energy Prices'!$F$12:$CR$17,MATCH('Data Input - BAT'!$D92,'Energy Prices'!$C$12:$C$17,0),MATCH('Data Input - BAT'!AM$7,'Energy Prices'!$F$11:$CR$11,0))/100000,\"\")","v":""},{"$f":"IFERROR(AN84*INDEX('Energy Prices'!$F$12:$CR$17,MATCH('Data Input - BAT'!$D92,'Energy Prices'!$C$12:$C$17,0),MATCH('Data Input - BAT'!AN$7,'Energy Prices'!$F$11:$CR$11,0))/100000,\"\")","v":""},{"$f":"IFERROR(AO84*INDEX('Energy Prices'!$F$12:$CR$17,MATCH('Data Input - BAT'!$D92,'Energy Prices'!$C$12:$C$17,0),MATCH('Data Input - BAT'!AO$7,'Energy Prices'!$F$11:$CR$11,0))/100000,\"\")","v":""},{"$f":"IFERROR(AP84*INDEX('Energy Prices'!$F$12:$CR$17,MATCH('Data Input - BAT'!$D92,'Energy Prices'!$C$12:$C$17,0),MATCH('Data Input - BAT'!AP$7,'Energy Prices'!$F$11:$CR$11,0))/100000,\"\")","v":""},{"$f":"IFERROR(AQ84*INDEX('Energy Prices'!$F$12:$CR$17,MATCH('Data Input - BAT'!$D92,'Energy Prices'!$C$12:$C$17,0),MATCH('Data Input - BAT'!AQ$7,'Energy Prices'!$F$11:$CR$11,0))/100000,\"\")","v":""},{"$f":"IFERROR(AR84*INDEX('Energy Prices'!$F$12:$CR$17,MATCH('Data Input - BAT'!$D92,'Energy Prices'!$C$12:$C$17,0),MATCH('Data Input - BAT'!AR$7,'Energy Prices'!$F$11:$CR$11,0))/100000,\"\")","v":""},{"$f":"IFERROR(AS84*INDEX('Energy Prices'!$F$12:$CR$17,MATCH('Data Input - BAT'!$D92,'Energy Prices'!$C$12:$C$17,0),MATCH('Data Input - BAT'!AS$7,'Energy Prices'!$F$11:$CR$11,0))/100000,\"\")","v":""},{"$f":"IFERROR(AT84*INDEX('Energy Prices'!$F$12:$CR$17,MATCH('Data Input - BAT'!$D92,'Energy Prices'!$C$12:$C$17,0),MATCH('Data Input - BAT'!AT$7,'Energy Prices'!$F$11:$CR$11,0))/100000,\"\")","v":""},{"$f":"IFERROR(AU84*INDEX('Energy Prices'!$F$12:$CR$17,MATCH('Data Input - BAT'!$D92,'Energy Prices'!$C$12:$C$17,0),MATCH('Data Input - BAT'!AU$7,'Energy Prices'!$F$11:$CR$11,0))/100000,\"\")","v":""},{"$f":"IFERROR(AV84*INDEX('Energy Prices'!$F$12:$CR$17,MATCH('Data Input - BAT'!$D92,'Energy Prices'!$C$12:$C$17,0),MATCH('Data Input - BAT'!AV$7,'Energy Prices'!$F$11:$CR$11,0))/100000,\"\")","v":""},{"$f":"IFERROR(AW84*INDEX('Energy Prices'!$F$12:$CR$17,MATCH('Data Input - BAT'!$D92,'Energy Prices'!$C$12:$C$17,0),MATCH('Data Input - BAT'!AW$7,'Energy Prices'!$F$11:$CR$11,0))/100000,\"\")","v":""},{"$f":"IFERROR(AX84*INDEX('Energy Prices'!$F$12:$CR$17,MATCH('Data Input - BAT'!$D92,'Energy Prices'!$C$12:$C$17,0),MATCH('Data Input - BAT'!AX$7,'Energy Prices'!$F$11:$CR$11,0))/100000,\"\")","v":""},{"$f":"IFERROR(AY84*INDEX('Energy Prices'!$F$12:$CR$17,MATCH('Data Input - BAT'!$D92,'Energy Prices'!$C$12:$C$17,0),MATCH('Data Input - BAT'!AY$7,'Energy Prices'!$F$11:$CR$11,0))/100000,\"\")","v":""},{"$f":"IFERROR(AZ84*INDEX('Energy Prices'!$F$12:$CR$17,MATCH('Data Input - BAT'!$D92,'Energy Prices'!$C$12:$C$17,0),MATCH('Data Input - BAT'!AZ$7,'Energy Prices'!$F$11:$CR$11,0))/100000,\"\")","v":""},{"$f":"IFERROR(BA84*INDEX('Energy Prices'!$F$12:$CR$17,MATCH('Data Input - BAT'!$D92,'Energy Prices'!$C$12:$C$17,0),MATCH('Data Input - BAT'!BA$7,'Energy Prices'!$F$11:$CR$11,0))/100000,\"\")","v":""},{"$f":"IFERROR(BB84*INDEX('Energy Prices'!$F$12:$CR$17,MATCH('Data Input - BAT'!$D92,'Energy Prices'!$C$12:$C$17,0),MATCH('Data Input - BAT'!BB$7,'Energy Prices'!$F$11:$CR$11,0))/100000,\"\")","v":""},{"$f":"IFERROR(BC84*INDEX('Energy Prices'!$F$12:$CR$17,MATCH('Data Input - BAT'!$D92,'Energy Prices'!$C$12:$C$17,0),MATCH('Data Input - BAT'!BC$7,'Energy Prices'!$F$11:$CR$11,0))/100000,\"\")","v":""},{"$f":"IFERROR(BD84*INDEX('Energy Prices'!$F$12:$CR$17,MATCH('Data Input - BAT'!$D92,'Energy Prices'!$C$12:$C$17,0),MATCH('Data Input - BAT'!BD$7,'Energy Prices'!$F$11:$CR$11,0))/100000,\"\")","v":""},{"$f":"IFERROR(BE84*INDEX('Energy Prices'!$F$12:$CR$17,MATCH('Data Input - BAT'!$D92,'Energy Prices'!$C$12:$C$17,0),MATCH('Data Input - BAT'!BE$7,'Energy Prices'!$F$11:$CR$11,0))/100000,\"\")","v":""},{"$f":"IFERROR(BF84*INDEX('Energy Prices'!$F$12:$CR$17,MATCH('Data Input - BAT'!$D92,'Energy Prices'!$C$12:$C$17,0),MATCH('Data Input - BAT'!BF$7,'Energy Prices'!$F$11:$CR$11,0))/100000,\"\")","v":""},{"$f":"IFERROR(BG84*INDEX('Energy Prices'!$F$12:$CR$17,MATCH('Data Input - BAT'!$D92,'Energy Prices'!$C$12:$C$17,0),MATCH('Data Input - BAT'!BG$7,'Energy Prices'!$F$11:$CR$11,0))/100000,\"\")","v":""},{"$f":"IFERROR(BH84*INDEX('Energy Prices'!$F$12:$CR$17,MATCH('Data Input - BAT'!$D92,'Energy Prices'!$C$12:$C$17,0),MATCH('Data Input - BAT'!BH$7,'Energy Prices'!$F$11:$CR$11,0))/100000,\"\")","v":""},{"$f":"IFERROR(BI84*INDEX('Energy Prices'!$F$12:$CR$17,MATCH('Data Input - BAT'!$D92,'Energy Prices'!$C$12:$C$17,0),MATCH('Data Input - BAT'!BI$7,'Energy Prices'!$F$11:$CR$11,0))/100000,\"\")","v":""},{"$f":"IFERROR(BJ84*INDEX('Energy Prices'!$F$12:$CR$17,MATCH('Data Input - BAT'!$D92,'Energy Prices'!$C$12:$C$17,0),MATCH('Data Input - BAT'!BJ$7,'Energy Prices'!$F$11:$CR$11,0))/100000,\"\")","v":""},{"$f":"IFERROR(BK84*INDEX('Energy Prices'!$F$12:$CR$17,MATCH('Data Input - BAT'!$D92,'Energy Prices'!$C$12:$C$17,0),MATCH('Data Input - BAT'!BK$7,'Energy Prices'!$F$11:$CR$11,0))/100000,\"\")","v":""},{"$f":"IFERROR(BL84*INDEX('Energy Prices'!$F$12:$CR$17,MATCH('Data Input - BAT'!$D92,'Energy Prices'!$C$12:$C$17,0),MATCH('Data Input - BAT'!BL$7,'Energy Prices'!$F$11:$CR$11,0))/100000,\"\")","v":""},{"$f":"IFERROR(BM84*INDEX('Energy Prices'!$F$12:$CR$17,MATCH('Data Input - BAT'!$D92,'Energy Prices'!$C$12:$C$17,0),MATCH('Data Input - BAT'!BM$7,'Energy Prices'!$F$11:$CR$11,0))/100000,\"\")","v":""},{"$f":"IFERROR(BN84*INDEX('Energy Prices'!$F$12:$CR$17,MATCH('Data Input - BAT'!$D92,'Energy Prices'!$C$12:$C$17,0),MATCH('Data Input - BAT'!BN$7,'Energy Prices'!$F$11:$CR$11,0))/100000,\"\")","v":""},{"$f":"IFERROR(BO84*INDEX('Energy Prices'!$F$12:$CR$17,MATCH('Data Input - BAT'!$D92,'Energy Prices'!$C$12:$C$17,0),MATCH('Data Input - BAT'!BO$7,'Energy Prices'!$F$11:$CR$11,0))/100000,\"\")","v":""},{"$f":"IFERROR(BP84*INDEX('Energy Prices'!$F$12:$CR$17,MATCH('Data Input - BAT'!$D92,'Energy Prices'!$C$12:$C$17,0),MATCH('Data Input - BAT'!BP$7,'Energy Prices'!$F$11:$CR$11,0))/100000,\"\")","v":""},{"$f":"IFERROR(BQ84*INDEX('Energy Prices'!$F$12:$CR$17,MATCH('Data Input - BAT'!$D92,'Energy Prices'!$C$12:$C$17,0),MATCH('Data Input - BAT'!BQ$7,'Energy Prices'!$F$11:$CR$11,0))/100000,\"\")","v":""},{"$f":"IFERROR(BR84*INDEX('Energy Prices'!$F$12:$CR$17,MATCH('Data Input - BAT'!$D92,'Energy Prices'!$C$12:$C$17,0),MATCH('Data Input - BAT'!BR$7,'Energy Prices'!$F$11:$CR$11,0))/100000,\"\")","v":""},{"$f":"IFERROR(BS84*INDEX('Energy Prices'!$F$12:$CR$17,MATCH('Data Input - BAT'!$D92,'Energy Prices'!$C$12:$C$17,0),MATCH('Data Input - BAT'!BS$7,'Energy Prices'!$F$11:$CR$11,0))/100000,\"\")","v":""},{"$f":"IFERROR(BT84*INDEX('Energy Prices'!$F$12:$CR$17,MATCH('Data Input - BAT'!$D92,'Energy Prices'!$C$12:$C$17,0),MATCH('Data Input - BAT'!BT$7,'Energy Prices'!$F$11:$CR$11,0))/100000,\"\")","v":""},{"$f":"IFERROR(BU84*INDEX('Energy Prices'!$F$12:$CR$17,MATCH('Data Input - BAT'!$D92,'Energy Prices'!$C$12:$C$17,0),MATCH('Data Input - BAT'!BU$7,'Energy Prices'!$F$11:$CR$11,0))/100000,\"\")","v":""},{"$f":"IFERROR(BV84*INDEX('Energy Prices'!$F$12:$CR$17,MATCH('Data Input - BAT'!$D92,'Energy Prices'!$C$12:$C$17,0),MATCH('Data Input - BAT'!BV$7,'Energy Prices'!$F$11:$CR$11,0))/100000,\"\")","v":""},{"$f":"IFERROR(BW84*INDEX('Energy Prices'!$F$12:$CR$17,MATCH('Data Input - BAT'!$D92,'Energy Prices'!$C$12:$C$17,0),MATCH('Data Input - BAT'!BW$7,'Energy Prices'!$F$11:$CR$11,0))/100000,\"\")","v":""},{"$f":"IFERROR(BX84*INDEX('Energy Prices'!$F$12:$CR$17,MATCH('Data Input - BAT'!$D92,'Energy Prices'!$C$12:$C$17,0),MATCH('Data Input - BAT'!BX$7,'Energy Prices'!$F$11:$CR$11,0))/100000,\"\")","v":""},{"$f":"IFERROR(BY84*INDEX('Energy Prices'!$F$12:$CR$17,MATCH('Data Input - BAT'!$D92,'Energy Prices'!$C$12:$C$17,0),MATCH('Data Input - BAT'!BY$7,'Energy Prices'!$F$11:$CR$11,0))/100000,\"\")","v":""},{"$f":"IFERROR(BZ84*INDEX('Energy Prices'!$F$12:$CR$17,MATCH('Data Input - BAT'!$D92,'Energy Prices'!$C$12:$C$17,0),MATCH('Data Input - BAT'!BZ$7,'Energy Prices'!$F$11:$CR$11,0))/100000,\"\")","v":""},{"$f":"IFERROR(CA84*INDEX('Energy Prices'!$F$12:$CR$17,MATCH('Data Input - BAT'!$D92,'Energy Prices'!$C$12:$C$17,0),MATCH('Data Input - BAT'!CA$7,'Energy Prices'!$F$11:$CR$11,0))/100000,\"\")","v":""},{"$f":"IFERROR(CB84*INDEX('Energy Prices'!$F$12:$CR$17,MATCH('Data Input - BAT'!$D92,'Energy Prices'!$C$12:$C$17,0),MATCH('Data Input - BAT'!CB$7,'Energy Prices'!$F$11:$CR$11,0))/100000,\"\")","v":""},{"$f":"IFERROR(CC84*INDEX('Energy Prices'!$F$12:$CR$17,MATCH('Data Input - BAT'!$D92,'Energy Prices'!$C$12:$C$17,0),MATCH('Data Input - BAT'!CC$7,'Energy Prices'!$F$11:$CR$11,0))/100000,\"\")","v":""},{"$f":"IFERROR(CD84*INDEX('Energy Prices'!$F$12:$CR$17,MATCH('Data Input - BAT'!$D92,'Energy Prices'!$C$12:$C$17,0),MATCH('Data Input - BAT'!CD$7,'Energy Prices'!$F$11:$CR$11,0))/100000,\"\")","v":""},{"$f":"IFERROR(CE84*INDEX('Energy Prices'!$F$12:$CR$17,MATCH('Data Input - BAT'!$D92,'Energy Prices'!$C$12:$C$17,0),MATCH('Data Input - BAT'!CE$7,'Energy Prices'!$F$11:$CR$11,0))/100000,\"\")","v":""},{"$f":"IFERROR(CF84*INDEX('Energy Prices'!$F$12:$CR$17,MATCH('Data Input - BAT'!$D92,'Energy Prices'!$C$12:$C$17,0),MATCH('Data Input - BAT'!CF$7,'Energy Prices'!$F$11:$CR$11,0))/100000,\"\")","v":""},{"$f":"IFERROR(CG84*INDEX('Energy Prices'!$F$12:$CR$17,MATCH('Data Input - BAT'!$D92,'Energy Prices'!$C$12:$C$17,0),MATCH('Data Input - BAT'!CG$7,'Energy Prices'!$F$11:$CR$11,0))/100000,\"\")","v":""},{"$f":"IFERROR(CH84*INDEX('Energy Prices'!$F$12:$CR$17,MATCH('Data Input - BAT'!$D92,'Energy Prices'!$C$12:$C$17,0),MATCH('Data Input - BAT'!CH$7,'Energy Prices'!$F$11:$CR$11,0))/100000,\"\")","v":""},{"$f":"IFERROR(CI84*INDEX('Energy Prices'!$F$12:$CR$17,MATCH('Data Input - BAT'!$D92,'Energy Prices'!$C$12:$C$17,0),MATCH('Data Input - BAT'!CI$7,'Energy Prices'!$F$11:$CR$11,0))/100000,\"\")","v":""},{"$f":"IFERROR(CJ84*INDEX('Energy Prices'!$F$12:$CR$17,MATCH('Data Input - BAT'!$D92,'Energy Prices'!$C$12:$C$17,0),MATCH('Data Input - BAT'!CJ$7,'Energy Prices'!$F$11:$CR$11,0))/100000,\"\")","v":""},{"$f":"IFERROR(CK84*INDEX('Energy Prices'!$F$12:$CR$17,MATCH('Data Input - BAT'!$D92,'Energy Prices'!$C$12:$C$17,0),MATCH('Data Input - BAT'!CK$7,'Energy Prices'!$F$11:$CR$11,0))/100000,\"\")","v":""},{"$f":"IFERROR(CL84*INDEX('Energy Prices'!$F$12:$CR$17,MATCH('Data Input - BAT'!$D92,'Energy Prices'!$C$12:$C$17,0),MATCH('Data Input - BAT'!CL$7,'Energy Prices'!$F$11:$CR$11,0))/100000,\"\")","v":""},{"$f":"IFERROR(CM84*INDEX('Energy Prices'!$F$12:$CR$17,MATCH('Data Input - BAT'!$D92,'Energy Prices'!$C$12:$C$17,0),MATCH('Data Input - BAT'!CM$7,'Energy Prices'!$F$11:$CR$11,0))/100000,\"\")","v":""},{"$f":"IFERROR(CN84*INDEX('Energy Prices'!$F$12:$CR$17,MATCH('Data Input - BAT'!$D92,'Energy Prices'!$C$12:$C$17,0),MATCH('Data Input - BAT'!CN$7,'Energy Prices'!$F$11:$CR$11,0))/100000,\"\")","v":""},{"$f":"IFERROR(CO84*INDEX('Energy Prices'!$F$12:$CR$17,MATCH('Data Input - BAT'!$D92,'Energy Prices'!$C$12:$C$17,0),MATCH('Data Input - BAT'!CO$7,'Energy Prices'!$F$11:$CR$11,0))/100000,\"\")","v":""},{"$f":"IFERROR(CP84*INDEX('Energy Prices'!$F$12:$CR$17,MATCH('Data Input - BAT'!$D92,'Energy Prices'!$C$12:$C$17,0),MATCH('Data Input - BAT'!CP$7,'Energy Prices'!$F$11:$CR$11,0))/100000,\"\")","v":""},{"$f":"IFERROR(CQ84*INDEX('Energy Prices'!$F$12:$CR$17,MATCH('Data Input - BAT'!$D92,'Energy Prices'!$C$12:$C$17,0),MATCH('Data Input - BAT'!CQ$7,'Energy Prices'!$F$11:$CR$11,0))/100000,\"\")","v":""},{"$f":"IFERROR(CR84*INDEX('Energy Prices'!$F$12:$CR$17,MATCH('Data Input - BAT'!$D92,'Energy Prices'!$C$12:$C$17,0),MATCH('Data Input - BAT'!CR$7,'Energy Prices'!$F$11:$CR$11,0))/100000,\"\")","v":""},{"$f":"IFERROR(CS84*INDEX('Energy Prices'!$F$12:$CR$17,MATCH('Data Input - BAT'!$D92,'Energy Prices'!$C$12:$C$17,0),MATCH('Data Input - BAT'!CS$7,'Energy Prices'!$F$11:$CR$11,0))/100000,\"\")","v":""},{"$f":"IFERROR(CT84*INDEX('Energy Prices'!$F$12:$CR$17,MATCH('Data Input - BAT'!$D92,'Energy Prices'!$C$12:$C$17,0),MATCH('Data Input - BAT'!CT$7,'Energy Prices'!$F$11:$CR$11,0))/100000,\"\")","v":""},{"$f":"IFERROR(CU84*INDEX('Energy Prices'!$F$12:$CR$17,MATCH('Data Input - BAT'!$D92,'Energy Prices'!$C$12:$C$17,0),MATCH('Data Input - BAT'!CU$7,'Energy Prices'!$F$11:$CR$11,0))/100000,\"\")","v":""},{"$f":"IFERROR(CV84*INDEX('Energy Prices'!$F$12:$CR$17,MATCH('Data Input - BAT'!$D92,'Energy Prices'!$C$12:$C$17,0),MATCH('Data Input - BAT'!CV$7,'Energy Prices'!$F$11:$CR$11,0))/100000,\"\")","v":""},{"$f":"IFERROR(CW84*INDEX('Energy Prices'!$F$12:$CR$17,MATCH('Data Input - BAT'!$D92,'Energy Prices'!$C$12:$C$17,0),MATCH('Data Input - BAT'!CW$7,'Energy Prices'!$F$11:$CR$11,0))/100000,\"\")","v":""},{"$f":"IFERROR(CX84*INDEX('Energy Prices'!$F$12:$CR$17,MATCH('Data Input - BAT'!$D92,'Energy Prices'!$C$12:$C$17,0),MATCH('Data Input - BAT'!CX$7,'Energy Prices'!$F$11:$CR$11,0))/100000,\"\")","v":""},{"$f":"IFERROR(CY84*INDEX('Energy Prices'!$F$12:$CR$17,MATCH('Data Input - BAT'!$D92,'Energy Prices'!$C$12:$C$17,0),MATCH('Data Input - BAT'!CY$7,'Energy Prices'!$F$11:$CR$11,0))/100000,\"\")","v":""},{"$f":"IFERROR(CZ84*INDEX('Energy Prices'!$F$12:$CR$17,MATCH('Data Input - BAT'!$D92,'Energy Prices'!$C$12:$C$17,0),MATCH('Data Input - BAT'!CZ$7,'Energy Prices'!$F$11:$CR$11,0))/100000,\"\")","v":""},{"$f":"IFERROR(DA84*INDEX('Energy Prices'!$F$12:$CR$17,MATCH('Data Input - BAT'!$D92,'Energy Prices'!$C$12:$C$17,0),MATCH('Data Input - BAT'!DA$7,'Energy Prices'!$F$11:$CR$11,0))/100000,\"\")","v":""},{"$f":"IFERROR(DB84*INDEX('Energy Prices'!$F$12:$CR$17,MATCH('Data Input - BAT'!$D92,'Energy Prices'!$C$12:$C$17,0),MATCH('Data Input - BAT'!DB$7,'Energy Prices'!$F$11:$CR$11,0))/100000,\"\")","v":""},{"$f":"IFERROR(DC84*INDEX('Energy Prices'!$F$12:$CR$17,MATCH('Data Input - BAT'!$D92,'Energy Prices'!$C$12:$C$17,0),MATCH('Data Input - BAT'!DC$7,'Energy Prices'!$F$11:$CR$11,0))/100000,\"\")","v":""}]
[null,null,null,{"$f":"D85","v":"Natural Gas"},"£000's","(Auto calculated value)",null,{"$f":"IFERROR(H85*INDEX('Energy Prices'!$F$12:$CR$17,MATCH('Data Input - BAT'!$D93,'Energy Prices'!$C$12:$C$17,0),MATCH('Data Input - BAT'!H$7,'Energy Prices'!$F$11:$CR$11,0))/100000,\"\")","v":0},{"$f":"IFERROR(I85*INDEX('Energy Prices'!$F$12:$CR$17,MATCH('Data Input - BAT'!$D93,'Energy Prices'!$C$12:$C$17,0),MATCH('Data Input - BAT'!I$7,'Energy Prices'!$F$11:$CR$11,0))/100000,\"\")","v":0},{"$f":"IFERROR(J85*INDEX('Energy Prices'!$F$12:$CR$17,MATCH('Data Input - BAT'!$D93,'Energy Prices'!$C$12:$C$17,0),MATCH('Data Input - BAT'!J$7,'Energy Prices'!$F$11:$CR$11,0))/100000,\"\")","v":0},{"$f":"IFERROR(K85*INDEX('Energy Prices'!$F$12:$CR$17,MATCH('Data Input - BAT'!$D93,'Energy Prices'!$C$12:$C$17,0),MATCH('Data Input - BAT'!K$7,'Energy Prices'!$F$11:$CR$11,0))/100000,\"\")","v":0},{"$f":"IFERROR(L85*INDEX('Energy Prices'!$F$12:$CR$17,MATCH('Data Input - BAT'!$D93,'Energy Prices'!$C$12:$C$17,0),MATCH('Data Input - BAT'!L$7,'Energy Prices'!$F$11:$CR$11,0))/100000,\"\")","v":0},{"$f":"IFERROR(M85*INDEX('Energy Prices'!$F$12:$CR$17,MATCH('Data Input - BAT'!$D93,'Energy Prices'!$C$12:$C$17,0),MATCH('Data Input - BAT'!M$7,'Energy Prices'!$F$11:$CR$11,0))/100000,\"\")","v":0},{"$f":"IFERROR(N85*INDEX('Energy Prices'!$F$12:$CR$17,MATCH('Data Input - BAT'!$D93,'Energy Prices'!$C$12:$C$17,0),MATCH('Data Input - BAT'!N$7,'Energy Prices'!$F$11:$CR$11,0))/100000,\"\")","v":0},{"$f":"IFERROR(O85*INDEX('Energy Prices'!$F$12:$CR$17,MATCH('Data Input - BAT'!$D93,'Energy Prices'!$C$12:$C$17,0),MATCH('Data Input - BAT'!O$7,'Energy Prices'!$F$11:$CR$11,0))/100000,\"\")","v":0},{"$f":"IFERROR(P85*INDEX('Energy Prices'!$F$12:$CR$17,MATCH('Data Input - BAT'!$D93,'Energy Prices'!$C$12:$C$17,0),MATCH('Data Input - BAT'!P$7,'Energy Prices'!$F$11:$CR$11,0))/100000,\"\")","v":0},{"$f":"IFERROR(Q85*INDEX('Energy Prices'!$F$12:$CR$17,MATCH('Data Input - BAT'!$D93,'Energy Prices'!$C$12:$C$17,0),MATCH('Data Input - BAT'!Q$7,'Energy Prices'!$F$11:$CR$11,0))/100000,\"\")","v":0},{"$f":"IFERROR(R85*INDEX('Energy Prices'!$F$12:$CR$17,MATCH('Data Input - BAT'!$D93,'Energy Prices'!$C$12:$C$17,0),MATCH('Data Input - BAT'!R$7,'Energy Prices'!$F$11:$CR$11,0))/100000,\"\")","v":0},{"$f":"IFERROR(S85*INDEX('Energy Prices'!$F$12:$CR$17,MATCH('Data Input - BAT'!$D93,'Energy Prices'!$C$12:$C$17,0),MATCH('Data Input - BAT'!S$7,'Energy Prices'!$F$11:$CR$11,0))/100000,\"\")","v":0},{"$f":"IFERROR(T85*INDEX('Energy Prices'!$F$12:$CR$17,MATCH('Data Input - BAT'!$D93,'Energy Prices'!$C$12:$C$17,0),MATCH('Data Input - BAT'!T$7,'Energy Prices'!$F$11:$CR$11,0))/100000,\"\")","v":0},{"$f":"IFERROR(U85*INDEX('Energy Prices'!$F$12:$CR$17,MATCH('Data Input - BAT'!$D93,'Energy Prices'!$C$12:$C$17,0),MATCH('Data Input - BAT'!U$7,'Energy Prices'!$F$11:$CR$11,0))/100000,\"\")","v":0},{"$f":"IFERROR(V85*INDEX('Energy Prices'!$F$12:$CR$17,MATCH('Data Input - BAT'!$D93,'Energy Prices'!$C$12:$C$17,0),MATCH('Data Input - BAT'!V$7,'Energy Prices'!$F$11:$CR$11,0))/100000,\"\")","v":0},{"$f":"IFERROR(W85*INDEX('Energy Prices'!$F$12:$CR$17,MATCH('Data Input - BAT'!$D93,'Energy Prices'!$C$12:$C$17,0),MATCH('Data Input - BAT'!W$7,'Energy Prices'!$F$11:$CR$11,0))/100000,\"\")","v":0},{"$f":"IFERROR(X85*INDEX('Energy Prices'!$F$12:$CR$17,MATCH('Data Input - BAT'!$D93,'Energy Prices'!$C$12:$C$17,0),MATCH('Data Input - BAT'!X$7,'Energy Prices'!$F$11:$CR$11,0))/100000,\"\")","v":0},{"$f":"IFERROR(Y85*INDEX('Energy Prices'!$F$12:$CR$17,MATCH('Data Input - BAT'!$D93,'Energy Prices'!$C$12:$C$17,0),MATCH('Data Input - BAT'!Y$7,'Energy Prices'!$F$11:$CR$11,0))/100000,\"\")","v":0},{"$f":"IFERROR(Z85*INDEX('Energy Prices'!$F$12:$CR$17,MATCH('Data Input - BAT'!$D93,'Energy Prices'!$C$12:$C$17,0),MATCH('Data Input - BAT'!Z$7,'Energy Prices'!$F$11:$CR$11,0))/100000,\"\")","v":0},{"$f":"IFERROR(AA85*INDEX('Energy Prices'!$F$12:$CR$17,MATCH('Data Input - BAT'!$D93,'Energy Prices'!$C$12:$C$17,0),MATCH('Data Input - BAT'!AA$7,'Energy Prices'!$F$11:$CR$11,0))/100000,\"\")","v":0},{"$f":"IFERROR(AB85*INDEX('Energy Prices'!$F$12:$CR$17,MATCH('Data Input - BAT'!$D93,'Energy Prices'!$C$12:$C$17,0),MATCH('Data Input - BAT'!AB$7,'Energy Prices'!$F$11:$CR$11,0))/100000,\"\")","v":0},{"$f":"IFERROR(AC85*INDEX('Energy Prices'!$F$12:$CR$17,MATCH('Data Input - BAT'!$D93,'Energy Prices'!$C$12:$C$17,0),MATCH('Data Input - BAT'!AC$7,'Energy Prices'!$F$11:$CR$11,0))/100000,\"\")","v":0},{"$f":"IFERROR(AD85*INDEX('Energy Prices'!$F$12:$CR$17,MATCH('Data Input - BAT'!$D93,'Energy Prices'!$C$12:$C$17,0),MATCH('Data Input - BAT'!AD$7,'Energy Prices'!$F$11:$CR$11,0))/100000,\"\")","v":0},{"$f":"IFERROR(AE85*INDEX('Energy Prices'!$F$12:$CR$17,MATCH('Data Input - BAT'!$D93,'Energy Prices'!$C$12:$C$17,0),MATCH('Data Input - BAT'!AE$7,'Energy Prices'!$F$11:$CR$11,0))/100000,\"\")","v":0},{"$f":"IFERROR(AF85*INDEX('Energy Prices'!$F$12:$CR$17,MATCH('Data Input - BAT'!$D93,'Energy Prices'!$C$12:$C$17,0),MATCH('Data Input - BAT'!AF$7,'Energy Prices'!$F$11:$CR$11,0))/100000,\"\")","v":0},{"$f":"IFERROR(AG85*INDEX('Energy Prices'!$F$12:$CR$17,MATCH('Data Input - BAT'!$D93,'Energy Prices'!$C$12:$C$17,0),MATCH('Data Input - BAT'!AG$7,'Energy Prices'!$F$11:$CR$11,0))/100000,\"\")","v":0},{"$f":"IFERROR(AH85*INDEX('Energy Prices'!$F$12:$CR$17,MATCH('Data Input - BAT'!$D93,'Energy Prices'!$C$12:$C$17,0),MATCH('Data Input - BAT'!AH$7,'Energy Prices'!$F$11:$CR$11,0))/100000,\"\")","v":0},{"$f":"IFERROR(AI85*INDEX('Energy Prices'!$F$12:$CR$17,MATCH('Data Input - BAT'!$D93,'Energy Prices'!$C$12:$C$17,0),MATCH('Data Input - BAT'!AI$7,'Energy Prices'!$F$11:$CR$11,0))/100000,\"\")","v":0},{"$f":"IFERROR(AJ85*INDEX('Energy Prices'!$F$12:$CR$17,MATCH('Data Input - BAT'!$D93,'Energy Prices'!$C$12:$C$17,0),MATCH('Data Input - BAT'!AJ$7,'Energy Prices'!$F$11:$CR$11,0))/100000,\"\")","v":0},{"$f":"IFERROR(AK85*INDEX('Energy Prices'!$F$12:$CR$17,MATCH('Data Input - BAT'!$D93,'Energy Prices'!$C$12:$C$17,0),MATCH('Data Input - BAT'!AK$7,'Energy Prices'!$F$11:$CR$11,0))/100000,\"\")","v":0},{"$f":"IFERROR(AL85*INDEX('Energy Prices'!$F$12:$CR$17,MATCH('Data Input - BAT'!$D93,'Energy Prices'!$C$12:$C$17,0),MATCH('Data Input - BAT'!AL$7,'Energy Prices'!$F$11:$CR$11,0))/100000,\"\")","v":0},{"$f":"IFERROR(AM85*INDEX('Energy Prices'!$F$12:$CR$17,MATCH('Data Input - BAT'!$D93,'Energy Prices'!$C$12:$C$17,0),MATCH('Data Input - BAT'!AM$7,'Energy Prices'!$F$11:$CR$11,0))/100000,\"\")","v":""},{"$f":"IFERROR(AN85*INDEX('Energy Prices'!$F$12:$CR$17,MATCH('Data Input - BAT'!$D93,'Energy Prices'!$C$12:$C$17,0),MATCH('Data Input - BAT'!AN$7,'Energy Prices'!$F$11:$CR$11,0))/100000,\"\")","v":""},{"$f":"IFERROR(AO85*INDEX('Energy Prices'!$F$12:$CR$17,MATCH('Data Input - BAT'!$D93,'Energy Prices'!$C$12:$C$17,0),MATCH('Data Input - BAT'!AO$7,'Energy Prices'!$F$11:$CR$11,0))/100000,\"\")","v":""},{"$f":"IFERROR(AP85*INDEX('Energy Prices'!$F$12:$CR$17,MATCH('Data Input - BAT'!$D93,'Energy Prices'!$C$12:$C$17,0),MATCH('Data Input - BAT'!AP$7,'Energy Prices'!$F$11:$CR$11,0))/100000,\"\")","v":""},{"$f":"IFERROR(AQ85*INDEX('Energy Prices'!$F$12:$CR$17,MATCH('Data Input - BAT'!$D93,'Energy Prices'!$C$12:$C$17,0),MATCH('Data Input - BAT'!AQ$7,'Energy Prices'!$F$11:$CR$11,0))/100000,\"\")","v":""},{"$f":"IFERROR(AR85*INDEX('Energy Prices'!$F$12:$CR$17,MATCH('Data Input - BAT'!$D93,'Energy Prices'!$C$12:$C$17,0),MATCH('Data Input - BAT'!AR$7,'Energy Prices'!$F$11:$CR$11,0))/100000,\"\")","v":""},{"$f":"IFERROR(AS85*INDEX('Energy Prices'!$F$12:$CR$17,MATCH('Data Input - BAT'!$D93,'Energy Prices'!$C$12:$C$17,0),MATCH('Data Input - BAT'!AS$7,'Energy Prices'!$F$11:$CR$11,0))/100000,\"\")","v":""},{"$f":"IFERROR(AT85*INDEX('Energy Prices'!$F$12:$CR$17,MATCH('Data Input - BAT'!$D93,'Energy Prices'!$C$12:$C$17,0),MATCH('Data Input - BAT'!AT$7,'Energy Prices'!$F$11:$CR$11,0))/100000,\"\")","v":""},{"$f":"IFERROR(AU85*INDEX('Energy Prices'!$F$12:$CR$17,MATCH('Data Input - BAT'!$D93,'Energy Prices'!$C$12:$C$17,0),MATCH('Data Input - BAT'!AU$7,'Energy Prices'!$F$11:$CR$11,0))/100000,\"\")","v":""},{"$f":"IFERROR(AV85*INDEX('Energy Prices'!$F$12:$CR$17,MATCH('Data Input - BAT'!$D93,'Energy Prices'!$C$12:$C$17,0),MATCH('Data Input - BAT'!AV$7,'Energy Prices'!$F$11:$CR$11,0))/100000,\"\")","v":""},{"$f":"IFERROR(AW85*INDEX('Energy Prices'!$F$12:$CR$17,MATCH('Data Input - BAT'!$D93,'Energy Prices'!$C$12:$C$17,0),MATCH('Data Input - BAT'!AW$7,'Energy Prices'!$F$11:$CR$11,0))/100000,\"\")","v":""},{"$f":"IFERROR(AX85*INDEX('Energy Prices'!$F$12:$CR$17,MATCH('Data Input - BAT'!$D93,'Energy Prices'!$C$12:$C$17,0),MATCH('Data Input - BAT'!AX$7,'Energy Prices'!$F$11:$CR$11,0))/100000,\"\")","v":""},{"$f":"IFERROR(AY85*INDEX('Energy Prices'!$F$12:$CR$17,MATCH('Data Input - BAT'!$D93,'Energy Prices'!$C$12:$C$17,0),MATCH('Data Input - BAT'!AY$7,'Energy Prices'!$F$11:$CR$11,0))/100000,\"\")","v":""},{"$f":"IFERROR(AZ85*INDEX('Energy Prices'!$F$12:$CR$17,MATCH('Data Input - BAT'!$D93,'Energy Prices'!$C$12:$C$17,0),MATCH('Data Input - BAT'!AZ$7,'Energy Prices'!$F$11:$CR$11,0))/100000,\"\")","v":""},{"$f":"IFERROR(BA85*INDEX('Energy Prices'!$F$12:$CR$17,MATCH('Data Input - BAT'!$D93,'Energy Prices'!$C$12:$C$17,0),MATCH('Data Input - BAT'!BA$7,'Energy Prices'!$F$11:$CR$11,0))/100000,\"\")","v":""},{"$f":"IFERROR(BB85*INDEX('Energy Prices'!$F$12:$CR$17,MATCH('Data Input - BAT'!$D93,'Energy Prices'!$C$12:$C$17,0),MATCH('Data Input - BAT'!BB$7,'Energy Prices'!$F$11:$CR$11,0))/100000,\"\")","v":""},{"$f":"IFERROR(BC85*INDEX('Energy Prices'!$F$12:$CR$17,MATCH('Data Input - BAT'!$D93,'Energy Prices'!$C$12:$C$17,0),MATCH('Data Input - BAT'!BC$7,'Energy Prices'!$F$11:$CR$11,0))/100000,\"\")","v":""},{"$f":"IFERROR(BD85*INDEX('Energy Prices'!$F$12:$CR$17,MATCH('Data Input - BAT'!$D93,'Energy Prices'!$C$12:$C$17,0),MATCH('Data Input - BAT'!BD$7,'Energy Prices'!$F$11:$CR$11,0))/100000,\"\")","v":""},{"$f":"IFERROR(BE85*INDEX('Energy Prices'!$F$12:$CR$17,MATCH('Data Input - BAT'!$D93,'Energy Prices'!$C$12:$C$17,0),MATCH('Data Input - BAT'!BE$7,'Energy Prices'!$F$11:$CR$11,0))/100000,\"\")","v":""},{"$f":"IFERROR(BF85*INDEX('Energy Prices'!$F$12:$CR$17,MATCH('Data Input - BAT'!$D93,'Energy Prices'!$C$12:$C$17,0),MATCH('Data Input - BAT'!BF$7,'Energy Prices'!$F$11:$CR$11,0))/100000,\"\")","v":""},{"$f":"IFERROR(BG85*INDEX('Energy Prices'!$F$12:$CR$17,MATCH('Data Input - BAT'!$D93,'Energy Prices'!$C$12:$C$17,0),MATCH('Data Input - BAT'!BG$7,'Energy Prices'!$F$11:$CR$11,0))/100000,\"\")","v":""},{"$f":"IFERROR(BH85*INDEX('Energy Prices'!$F$12:$CR$17,MATCH('Data Input - BAT'!$D93,'Energy Prices'!$C$12:$C$17,0),MATCH('Data Input - BAT'!BH$7,'Energy Prices'!$F$11:$CR$11,0))/100000,\"\")","v":""},{"$f":"IFERROR(BI85*INDEX('Energy Prices'!$F$12:$CR$17,MATCH('Data Input - BAT'!$D93,'Energy Prices'!$C$12:$C$17,0),MATCH('Data Input - BAT'!BI$7,'Energy Prices'!$F$11:$CR$11,0))/100000,\"\")","v":""},{"$f":"IFERROR(BJ85*INDEX('Energy Prices'!$F$12:$CR$17,MATCH('Data Input - BAT'!$D93,'Energy Prices'!$C$12:$C$17,0),MATCH('Data Input - BAT'!BJ$7,'Energy Prices'!$F$11:$CR$11,0))/100000,\"\")","v":""},{"$f":"IFERROR(BK85*INDEX('Energy Prices'!$F$12:$CR$17,MATCH('Data Input - BAT'!$D93,'Energy Prices'!$C$12:$C$17,0),MATCH('Data Input - BAT'!BK$7,'Energy Prices'!$F$11:$CR$11,0))/100000,\"\")","v":""},{"$f":"IFERROR(BL85*INDEX('Energy Prices'!$F$12:$CR$17,MATCH('Data Input - BAT'!$D93,'Energy Prices'!$C$12:$C$17,0),MATCH('Data Input - BAT'!BL$7,'Energy Prices'!$F$11:$CR$11,0))/100000,\"\")","v":""},{"$f":"IFERROR(BM85*INDEX('Energy Prices'!$F$12:$CR$17,MATCH('Data Input - BAT'!$D93,'Energy Prices'!$C$12:$C$17,0),MATCH('Data Input - BAT'!BM$7,'Energy Prices'!$F$11:$CR$11,0))/100000,\"\")","v":""},{"$f":"IFERROR(BN85*INDEX('Energy Prices'!$F$12:$CR$17,MATCH('Data Input - BAT'!$D93,'Energy Prices'!$C$12:$C$17,0),MATCH('Data Input - BAT'!BN$7,'Energy Prices'!$F$11:$CR$11,0))/100000,\"\")","v":""},{"$f":"IFERROR(BO85*INDEX('Energy Prices'!$F$12:$CR$17,MATCH('Data Input - BAT'!$D93,'Energy Prices'!$C$12:$C$17,0),MATCH('Data Input - BAT'!BO$7,'Energy Prices'!$F$11:$CR$11,0))/100000,\"\")","v":""},{"$f":"IFERROR(BP85*INDEX('Energy Prices'!$F$12:$CR$17,MATCH('Data Input - BAT'!$D93,'Energy Prices'!$C$12:$C$17,0),MATCH('Data Input - BAT'!BP$7,'Energy Prices'!$F$11:$CR$11,0))/100000,\"\")","v":""},{"$f":"IFERROR(BQ85*INDEX('Energy Prices'!$F$12:$CR$17,MATCH('Data Input - BAT'!$D93,'Energy Prices'!$C$12:$C$17,0),MATCH('Data Input - BAT'!BQ$7,'Energy Prices'!$F$11:$CR$11,0))/100000,\"\")","v":""},{"$f":"IFERROR(BR85*INDEX('Energy Prices'!$F$12:$CR$17,MATCH('Data Input - BAT'!$D93,'Energy Prices'!$C$12:$C$17,0),MATCH('Data Input - BAT'!BR$7,'Energy Prices'!$F$11:$CR$11,0))/100000,\"\")","v":""},{"$f":"IFERROR(BS85*INDEX('Energy Prices'!$F$12:$CR$17,MATCH('Data Input - BAT'!$D93,'Energy Prices'!$C$12:$C$17,0),MATCH('Data Input - BAT'!BS$7,'Energy Prices'!$F$11:$CR$11,0))/100000,\"\")","v":""},{"$f":"IFERROR(BT85*INDEX('Energy Prices'!$F$12:$CR$17,MATCH('Data Input - BAT'!$D93,'Energy Prices'!$C$12:$C$17,0),MATCH('Data Input - BAT'!BT$7,'Energy Prices'!$F$11:$CR$11,0))/100000,\"\")","v":""},{"$f":"IFERROR(BU85*INDEX('Energy Prices'!$F$12:$CR$17,MATCH('Data Input - BAT'!$D93,'Energy Prices'!$C$12:$C$17,0),MATCH('Data Input - BAT'!BU$7,'Energy Prices'!$F$11:$CR$11,0))/100000,\"\")","v":""},{"$f":"IFERROR(BV85*INDEX('Energy Prices'!$F$12:$CR$17,MATCH('Data Input - BAT'!$D93,'Energy Prices'!$C$12:$C$17,0),MATCH('Data Input - BAT'!BV$7,'Energy Prices'!$F$11:$CR$11,0))/100000,\"\")","v":""},{"$f":"IFERROR(BW85*INDEX('Energy Prices'!$F$12:$CR$17,MATCH('Data Input - BAT'!$D93,'Energy Prices'!$C$12:$C$17,0),MATCH('Data Input - BAT'!BW$7,'Energy Prices'!$F$11:$CR$11,0))/100000,\"\")","v":""},{"$f":"IFERROR(BX85*INDEX('Energy Prices'!$F$12:$CR$17,MATCH('Data Input - BAT'!$D93,'Energy Prices'!$C$12:$C$17,0),MATCH('Data Input - BAT'!BX$7,'Energy Prices'!$F$11:$CR$11,0))/100000,\"\")","v":""},{"$f":"IFERROR(BY85*INDEX('Energy Prices'!$F$12:$CR$17,MATCH('Data Input - BAT'!$D93,'Energy Prices'!$C$12:$C$17,0),MATCH('Data Input - BAT'!BY$7,'Energy Prices'!$F$11:$CR$11,0))/100000,\"\")","v":""},{"$f":"IFERROR(BZ85*INDEX('Energy Prices'!$F$12:$CR$17,MATCH('Data Input - BAT'!$D93,'Energy Prices'!$C$12:$C$17,0),MATCH('Data Input - BAT'!BZ$7,'Energy Prices'!$F$11:$CR$11,0))/100000,\"\")","v":""},{"$f":"IFERROR(CA85*INDEX('Energy Prices'!$F$12:$CR$17,MATCH('Data Input - BAT'!$D93,'Energy Prices'!$C$12:$C$17,0),MATCH('Data Input - BAT'!CA$7,'Energy Prices'!$F$11:$CR$11,0))/100000,\"\")","v":""},{"$f":"IFERROR(CB85*INDEX('Energy Prices'!$F$12:$CR$17,MATCH('Data Input - BAT'!$D93,'Energy Prices'!$C$12:$C$17,0),MATCH('Data Input - BAT'!CB$7,'Energy Prices'!$F$11:$CR$11,0))/100000,\"\")","v":""},{"$f":"IFERROR(CC85*INDEX('Energy Prices'!$F$12:$CR$17,MATCH('Data Input - BAT'!$D93,'Energy Prices'!$C$12:$C$17,0),MATCH('Data Input - BAT'!CC$7,'Energy Prices'!$F$11:$CR$11,0))/100000,\"\")","v":""},{"$f":"IFERROR(CD85*INDEX('Energy Prices'!$F$12:$CR$17,MATCH('Data Input - BAT'!$D93,'Energy Prices'!$C$12:$C$17,0),MATCH('Data Input - BAT'!CD$7,'Energy Prices'!$F$11:$CR$11,0))/100000,\"\")","v":""},{"$f":"IFERROR(CE85*INDEX('Energy Prices'!$F$12:$CR$17,MATCH('Data Input - BAT'!$D93,'Energy Prices'!$C$12:$C$17,0),MATCH('Data Input - BAT'!CE$7,'Energy Prices'!$F$11:$CR$11,0))/100000,\"\")","v":""},{"$f":"IFERROR(CF85*INDEX('Energy Prices'!$F$12:$CR$17,MATCH('Data Input - BAT'!$D93,'Energy Prices'!$C$12:$C$17,0),MATCH('Data Input - BAT'!CF$7,'Energy Prices'!$F$11:$CR$11,0))/100000,\"\")","v":""},{"$f":"IFERROR(CG85*INDEX('Energy Prices'!$F$12:$CR$17,MATCH('Data Input - BAT'!$D93,'Energy Prices'!$C$12:$C$17,0),MATCH('Data Input - BAT'!CG$7,'Energy Prices'!$F$11:$CR$11,0))/100000,\"\")","v":""},{"$f":"IFERROR(CH85*INDEX('Energy Prices'!$F$12:$CR$17,MATCH('Data Input - BAT'!$D93,'Energy Prices'!$C$12:$C$17,0),MATCH('Data Input - BAT'!CH$7,'Energy Prices'!$F$11:$CR$11,0))/100000,\"\")","v":""},{"$f":"IFERROR(CI85*INDEX('Energy Prices'!$F$12:$CR$17,MATCH('Data Input - BAT'!$D93,'Energy Prices'!$C$12:$C$17,0),MATCH('Data Input - BAT'!CI$7,'Energy Prices'!$F$11:$CR$11,0))/100000,\"\")","v":""},{"$f":"IFERROR(CJ85*INDEX('Energy Prices'!$F$12:$CR$17,MATCH('Data Input - BAT'!$D93,'Energy Prices'!$C$12:$C$17,0),MATCH('Data Input - BAT'!CJ$7,'Energy Prices'!$F$11:$CR$11,0))/100000,\"\")","v":""},{"$f":"IFERROR(CK85*INDEX('Energy Prices'!$F$12:$CR$17,MATCH('Data Input - BAT'!$D93,'Energy Prices'!$C$12:$C$17,0),MATCH('Data Input - BAT'!CK$7,'Energy Prices'!$F$11:$CR$11,0))/100000,\"\")","v":""},{"$f":"IFERROR(CL85*INDEX('Energy Prices'!$F$12:$CR$17,MATCH('Data Input - BAT'!$D93,'Energy Prices'!$C$12:$C$17,0),MATCH('Data Input - BAT'!CL$7,'Energy Prices'!$F$11:$CR$11,0))/100000,\"\")","v":""},{"$f":"IFERROR(CM85*INDEX('Energy Prices'!$F$12:$CR$17,MATCH('Data Input - BAT'!$D93,'Energy Prices'!$C$12:$C$17,0),MATCH('Data Input - BAT'!CM$7,'Energy Prices'!$F$11:$CR$11,0))/100000,\"\")","v":""},{"$f":"IFERROR(CN85*INDEX('Energy Prices'!$F$12:$CR$17,MATCH('Data Input - BAT'!$D93,'Energy Prices'!$C$12:$C$17,0),MATCH('Data Input - BAT'!CN$7,'Energy Prices'!$F$11:$CR$11,0))/100000,\"\")","v":""},{"$f":"IFERROR(CO85*INDEX('Energy Prices'!$F$12:$CR$17,MATCH('Data Input - BAT'!$D93,'Energy Prices'!$C$12:$C$17,0),MATCH('Data Input - BAT'!CO$7,'Energy Prices'!$F$11:$CR$11,0))/100000,\"\")","v":""},{"$f":"IFERROR(CP85*INDEX('Energy Prices'!$F$12:$CR$17,MATCH('Data Input - BAT'!$D93,'Energy Prices'!$C$12:$C$17,0),MATCH('Data Input - BAT'!CP$7,'Energy Prices'!$F$11:$CR$11,0))/100000,\"\")","v":""},{"$f":"IFERROR(CQ85*INDEX('Energy Prices'!$F$12:$CR$17,MATCH('Data Input - BAT'!$D93,'Energy Prices'!$C$12:$C$17,0),MATCH('Data Input - BAT'!CQ$7,'Energy Prices'!$F$11:$CR$11,0))/100000,\"\")","v":""},{"$f":"IFERROR(CR85*INDEX('Energy Prices'!$F$12:$CR$17,MATCH('Data Input - BAT'!$D93,'Energy Prices'!$C$12:$C$17,0),MATCH('Data Input - BAT'!CR$7,'Energy Prices'!$F$11:$CR$11,0))/100000,\"\")","v":""},{"$f":"IFERROR(CS85*INDEX('Energy Prices'!$F$12:$CR$17,MATCH('Data Input - BAT'!$D93,'Energy Prices'!$C$12:$C$17,0),MATCH('Data Input - BAT'!CS$7,'Energy Prices'!$F$11:$CR$11,0))/100000,\"\")","v":""},{"$f":"IFERROR(CT85*INDEX('Energy Prices'!$F$12:$CR$17,MATCH('Data Input - BAT'!$D93,'Energy Prices'!$C$12:$C$17,0),MATCH('Data Input - BAT'!CT$7,'Energy Prices'!$F$11:$CR$11,0))/100000,\"\")","v":""},{"$f":"IFERROR(CU85*INDEX('Energy Prices'!$F$12:$CR$17,MATCH('Data Input - BAT'!$D93,'Energy Prices'!$C$12:$C$17,0),MATCH('Data Input - BAT'!CU$7,'Energy Prices'!$F$11:$CR$11,0))/100000,\"\")","v":""},{"$f":"IFERROR(CV85*INDEX('Energy Prices'!$F$12:$CR$17,MATCH('Data Input - BAT'!$D93,'Energy Prices'!$C$12:$C$17,0),MATCH('Data Input - BAT'!CV$7,'Energy Prices'!$F$11:$CR$11,0))/100000,\"\")","v":""},{"$f":"IFERROR(CW85*INDEX('Energy Prices'!$F$12:$CR$17,MATCH('Data Input - BAT'!$D93,'Energy Prices'!$C$12:$C$17,0),MATCH('Data Input - BAT'!CW$7,'Energy Prices'!$F$11:$CR$11,0))/100000,\"\")","v":""},{"$f":"IFERROR(CX85*INDEX('Energy Prices'!$F$12:$CR$17,MATCH('Data Input - BAT'!$D93,'Energy Prices'!$C$12:$C$17,0),MATCH('Data Input - BAT'!CX$7,'Energy Prices'!$F$11:$CR$11,0))/100000,\"\")","v":""},{"$f":"IFERROR(CY85*INDEX('Energy Prices'!$F$12:$CR$17,MATCH('Data Input - BAT'!$D93,'Energy Prices'!$C$12:$C$17,0),MATCH('Data Input - BAT'!CY$7,'Energy Prices'!$F$11:$CR$11,0))/100000,\"\")","v":""},{"$f":"IFERROR(CZ85*INDEX('Energy Prices'!$F$12:$CR$17,MATCH('Data Input - BAT'!$D93,'Energy Prices'!$C$12:$C$17,0),MATCH('Data Input - BAT'!CZ$7,'Energy Prices'!$F$11:$CR$11,0))/100000,\"\")","v":""},{"$f":"IFERROR(DA85*INDEX('Energy Prices'!$F$12:$CR$17,MATCH('Data Input - BAT'!$D93,'Energy Prices'!$C$12:$C$17,0),MATCH('Data Input - BAT'!DA$7,'Energy Prices'!$F$11:$CR$11,0))/100000,\"\")","v":""},{"$f":"IFERROR(DB85*INDEX('Energy Prices'!$F$12:$CR$17,MATCH('Data Input - BAT'!$D93,'Energy Prices'!$C$12:$C$17,0),MATCH('Data Input - BAT'!DB$7,'Energy Prices'!$F$11:$CR$11,0))/100000,\"\")","v":""},{"$f":"IFERROR(DC85*INDEX('Energy Prices'!$F$12:$CR$17,MATCH('Data Input - BAT'!$D93,'Energy Prices'!$C$12:$C$17,0),MATCH('Data Input - BAT'!DC$7,'Energy Prices'!$F$11:$CR$11,0))/100000,\"\")","v":""}]
[null,null,null,"Coal","£000's","(Auto calculated value)",null,{"$f":"IFERROR(H86*INDEX('Energy Prices'!$F$12:$CR$17,MATCH('Data Input - BAT'!$D94,'Energy Prices'!$C$12:$C$17,0),MATCH('Data Input - BAT'!H$7,'Energy Prices'!$F$11:$CR$11,0))/100000,\"\")","v":937.78976184627777},{"$f":"IFERROR(I86*INDEX('Energy Prices'!$F$12:$CR$17,MATCH('Data Input - BAT'!$D94,'Energy Prices'!$C$12:$C$17,0),MATCH('Data Input - BAT'!I$7,'Energy Prices'!$F$11:$CR$11,0))/100000,\"\")","v":967.04407438200428},{"$f":"IFERROR(J86*INDEX('Energy Prices'!$F$12:$CR$17,MATCH('Data Input - BAT'!$D94,'Energy Prices'!$C$12:$C$17,0),MATCH('Data Input - BAT'!J$7,'Energy Prices'!$F$11:$CR$11,0))/100000,\"\")","v":996.30249432667506},{"$f":"IFERROR(K86*INDEX('Energy Prices'!$F$12:$CR$17,MATCH('Data Input - BAT'!$D94,'Energy Prices'!$C$12:$C$17,0),MATCH('Data Input - BAT'!K$7,'Energy Prices'!$F$11:$CR$11,0))/100000,\"\")","v":1025.5572317276735},{"$f":"IFERROR(L86*INDEX('Energy Prices'!$F$12:$CR$17,MATCH('Data Input - BAT'!$D94,'Energy Prices'!$C$12:$C$17,0),MATCH('Data Input - BAT'!L$7,'Energy Prices'!$F$11:$CR$11,0))/100000,\"\")","v":1054.8121571904517},{"$f":"IFERROR(M86*INDEX('Energy Prices'!$F$12:$CR$17,MATCH('Data Input - BAT'!$D94,'Energy Prices'!$C$12:$C$17,0),MATCH('Data Input - BAT'!M$7,'Energy Prices'!$F$11:$CR$11,0))/100000,\"\")","v":1084.067272001846},{"$f":"IFERROR(N86*INDEX('Energy Prices'!$F$12:$CR$17,MATCH('Data Input - BAT'!$D94,'Energy Prices'!$C$12:$C$17,0),MATCH('Data Input - BAT'!N$7,'Energy Prices'!$F$11:$CR$11,0))/100000,\"\")","v":1113.3225774574967},{"$f":"IFERROR(O86*INDEX('Energy Prices'!$F$12:$CR$17,MATCH('Data Input - BAT'!$D94,'Energy Prices'!$C$12:$C$17,0),MATCH('Data Input - BAT'!O$7,'Energy Prices'!$F$11:$CR$11,0))/100000,\"\")","v":1142.57807486191},{"$f":"IFERROR(P86*INDEX('Energy Prices'!$F$12:$CR$17,MATCH('Data Input - BAT'!$D94,'Energy Prices'!$C$12:$C$17,0),MATCH('Data Input - BAT'!P$7,'Energy Prices'!$F$11:$CR$11,0))/100000,\"\")","v":0},{"$f":"IFERROR(Q86*INDEX('Energy Prices'!$F$12:$CR$17,MATCH('Data Input - BAT'!$D94,'Energy Prices'!$C$12:$C$17,0),MATCH('Data Input - BAT'!Q$7,'Energy Prices'!$F$11:$CR$11,0))/100000,\"\")","v":0},{"$f":"IFERROR(R86*INDEX('Energy Prices'!$F$12:$CR$17,MATCH('Data Input - BAT'!$D94,'Energy Prices'!$C$12:$C$17,0),MATCH('Data Input - BAT'!R$7,'Energy Prices'!$F$11:$CR$11,0))/100000,\"\")","v":0},{"$f":"IFERROR(S86*INDEX('Energy Prices'!$F$12:$CR$17,MATCH('Data Input - BAT'!$D94,'Energy Prices'!$C$12:$C$17,0),MATCH('Data Input - BAT'!S$7,'Energy Prices'!$F$11:$CR$11,0))/100000,\"\")","v":0},{"$f":"IFERROR(T86*INDEX('Energy Prices'!$F$12:$CR$17,MATCH('Data Input - BAT'!$D94,'Energy Prices'!$C$12:$C$17,0),MATCH('Data Input - BAT'!T$7,'Energy Prices'!$F$11:$CR$11,0))/100000,\"\")","v":0},{"$f":"IFERROR(U86*INDEX('Energy Prices'!$F$12:$CR$17,MATCH('Data Input - BAT'!$D94,'Energy Prices'!$C$12:$C$17,0),MATCH('Data Input - BAT'!U$7,'Energy Prices'!$F$11:$CR$11,0))/100000,\"\")","v":0},{"$f":"IFERROR(V86*INDEX('Energy Prices'!$F$12:$CR$17,MATCH('Data Input - BAT'!$D94,'Energy Prices'!$C$12:$C$17,0),MATCH('Data Input - BAT'!V$7,'Energy Prices'!$F$11:$CR$11,0))/100000,\"\")","v":0},{"$f":"IFERROR(W86*INDEX('Energy Prices'!$F$12:$CR$17,MATCH('Data Input - BAT'!$D94,'Energy Prices'!$C$12:$C$17,0),MATCH('Data Input - BAT'!W$7,'Energy Prices'!$F$11:$CR$11,0))/100000,\"\")","v":0},{"$f":"IFERROR(X86*INDEX('Energy Prices'!$F$12:$CR$17,MATCH('Data Input - BAT'!$D94,'Energy Prices'!$C$12:$C$17,0),MATCH('Data Input - BAT'!X$7,'Energy Prices'!$F$11:$CR$11,0))/100000,\"\")","v":0},{"$f":"IFERROR(Y86*INDEX('Energy Prices'!$F$12:$CR$17,MATCH('Data Input - BAT'!$D94,'Energy Prices'!$C$12:$C$17,0),MATCH('Data Input - BAT'!Y$7,'Energy Prices'!$F$11:$CR$11,0))/100000,\"\")","v":0},{"$f":"IFERROR(Z86*INDEX('Energy Prices'!$F$12:$CR$17,MATCH('Data Input - BAT'!$D94,'Energy Prices'!$C$12:$C$17,0),MATCH('Data Input - BAT'!Z$7,'Energy Prices'!$F$11:$CR$11,0))/100000,\"\")","v":0},{"$f":"IFERROR(AA86*INDEX('Energy Prices'!$F$12:$CR$17,MATCH('Data Input - BAT'!$D94,'Energy Prices'!$C$12:$C$17,0),MATCH('Data Input - BAT'!AA$7,'Energy Prices'!$F$11:$CR$11,0))/100000,\"\")","v":0},{"$f":"IFERROR(AB86*INDEX('Energy Prices'!$F$12:$CR$17,MATCH('Data Input - BAT'!$D94,'Energy Prices'!$C$12:$C$17,0),MATCH('Data Input - BAT'!AB$7,'Energy Prices'!$F$11:$CR$11,0))/100000,\"\")","v":0},{"$f":"IFERROR(AC86*INDEX('Energy Prices'!$F$12:$CR$17,MATCH('Data Input - BAT'!$D94,'Energy Prices'!$C$12:$C$17,0),MATCH('Data Input - BAT'!AC$7,'Energy Prices'!$F$11:$CR$11,0))/100000,\"\")","v":0},{"$f":"IFERROR(AD86*INDEX('Energy Prices'!$F$12:$CR$17,MATCH('Data Input - BAT'!$D94,'Energy Prices'!$C$12:$C$17,0),MATCH('Data Input - BAT'!AD$7,'Energy Prices'!$F$11:$CR$11,0))/100000,\"\")","v":0},{"$f":"IFERROR(AE86*INDEX('Energy Prices'!$F$12:$CR$17,MATCH('Data Input - BAT'!$D94,'Energy Prices'!$C$12:$C$17,0),MATCH('Data Input - BAT'!AE$7,'Energy Prices'!$F$11:$CR$11,0))/100000,\"\")","v":0},{"$f":"IFERROR(AF86*INDEX('Energy Prices'!$F$12:$CR$17,MATCH('Data Input - BAT'!$D94,'Energy Prices'!$C$12:$C$17,0),MATCH('Data Input - BAT'!AF$7,'Energy Prices'!$F$11:$CR$11,0))/100000,\"\")","v":0},{"$f":"IFERROR(AG86*INDEX('Energy Prices'!$F$12:$CR$17,MATCH('Data Input - BAT'!$D94,'Energy Prices'!$C$12:$C$17,0),MATCH('Data Input - BAT'!AG$7,'Energy Prices'!$F$11:$CR$11,0))/100000,\"\")","v":0},{"$f":"IFERROR(AH86*INDEX('Energy Prices'!$F$12:$CR$17,MATCH('Data Input - BAT'!$D94,'Energy Prices'!$C$12:$C$17,0),MATCH('Data Input - BAT'!AH$7,'Energy Prices'!$F$11:$CR$11,0))/100000,\"\")","v":0},{"$f":"IFERROR(AI86*INDEX('Energy Prices'!$F$12:$CR$17,MATCH('Data Input - BAT'!$D94,'Energy Prices'!$C$12:$C$17,0),MATCH('Data Input - BAT'!AI$7,'Energy Prices'!$F$11:$CR$11,0))/100000,\"\")","v":0},{"$f":"IFERROR(AJ86*INDEX('Energy Prices'!$F$12:$CR$17,MATCH('Data Input - BAT'!$D94,'Energy Prices'!$C$12:$C$17,0),MATCH('Data Input - BAT'!AJ$7,'Energy Prices'!$F$11:$CR$11,0))/100000,\"\")","v":0},{"$f":"IFERROR(AK86*INDEX('Energy Prices'!$F$12:$CR$17,MATCH('Data Input - BAT'!$D94,'Energy Prices'!$C$12:$C$17,0),MATCH('Data Input - BAT'!AK$7,'Energy Prices'!$F$11:$CR$11,0))/100000,\"\")","v":0},{"$f":"IFERROR(AL86*INDEX('Energy Prices'!$F$12:$CR$17,MATCH('Data Input - BAT'!$D94,'Energy Prices'!$C$12:$C$17,0),MATCH('Data Input - BAT'!AL$7,'Energy Prices'!$F$11:$CR$11,0))/100000,\"\")","v":0},{"$f":"IFERROR(AM86*INDEX('Energy Prices'!$F$12:$CR$17,MATCH('Data Input - BAT'!$D94,'Energy Prices'!$C$12:$C$17,0),MATCH('Data Input - BAT'!AM$7,'Energy Prices'!$F$11:$CR$11,0))/100000,\"\")","v":""},{"$f":"IFERROR(AN86*INDEX('Energy Prices'!$F$12:$CR$17,MATCH('Data Input - BAT'!$D94,'Energy Prices'!$C$12:$C$17,0),MATCH('Data Input - BAT'!AN$7,'Energy Prices'!$F$11:$CR$11,0))/100000,\"\")","v":""},{"$f":"IFERROR(AO86*INDEX('Energy Prices'!$F$12:$CR$17,MATCH('Data Input - BAT'!$D94,'Energy Prices'!$C$12:$C$17,0),MATCH('Data Input - BAT'!AO$7,'Energy Prices'!$F$11:$CR$11,0))/100000,\"\")","v":""},{"$f":"IFERROR(AP86*INDEX('Energy Prices'!$F$12:$CR$17,MATCH('Data Input - BAT'!$D94,'Energy Prices'!$C$12:$C$17,0),MATCH('Data Input - BAT'!AP$7,'Energy Prices'!$F$11:$CR$11,0))/100000,\"\")","v":""},{"$f":"IFERROR(AQ86*INDEX('Energy Prices'!$F$12:$CR$17,MATCH('Data Input - BAT'!$D94,'Energy Prices'!$C$12:$C$17,0),MATCH('Data Input - BAT'!AQ$7,'Energy Prices'!$F$11:$CR$11,0))/100000,\"\")","v":""},{"$f":"IFERROR(AR86*INDEX('Energy Prices'!$F$12:$CR$17,MATCH('Data Input - BAT'!$D94,'Energy Prices'!$C$12:$C$17,0),MATCH('Data Input - BAT'!AR$7,'Energy Prices'!$F$11:$CR$11,0))/100000,\"\")","v":""},{"$f":"IFERROR(AS86*INDEX('Energy Prices'!$F$12:$CR$17,MATCH('Data Input - BAT'!$D94,'Energy Prices'!$C$12:$C$17,0),MATCH('Data Input - BAT'!AS$7,'Energy Prices'!$F$11:$CR$11,0))/100000,\"\")","v":""},{"$f":"IFERROR(AT86*INDEX('Energy Prices'!$F$12:$CR$17,MATCH('Data Input - BAT'!$D94,'Energy Prices'!$C$12:$C$17,0),MATCH('Data Input - BAT'!AT$7,'Energy Prices'!$F$11:$CR$11,0))/100000,\"\")","v":""},{"$f":"IFERROR(AU86*INDEX('Energy Prices'!$F$12:$CR$17,MATCH('Data Input - BAT'!$D94,'Energy Prices'!$C$12:$C$17,0),MATCH('Data Input - BAT'!AU$7,'Energy Prices'!$F$11:$CR$11,0))/100000,\"\")","v":""},{"$f":"IFERROR(AV86*INDEX('Energy Prices'!$F$12:$CR$17,MATCH('Data Input - BAT'!$D94,'Energy Prices'!$C$12:$C$17,0),MATCH('Data Input - BAT'!AV$7,'Energy Prices'!$F$11:$CR$11,0))/100000,\"\")","v":""},{"$f":"IFERROR(AW86*INDEX('Energy Prices'!$F$12:$CR$17,MATCH('Data Input - BAT'!$D94,'Energy Prices'!$C$12:$C$17,0),MATCH('Data Input - BAT'!AW$7,'Energy Prices'!$F$11:$CR$11,0))/100000,\"\")","v":""},{"$f":"IFERROR(AX86*INDEX('Energy Prices'!$F$12:$CR$17,MATCH('Data Input - BAT'!$D94,'Energy Prices'!$C$12:$C$17,0),MATCH('Data Input - BAT'!AX$7,'Energy Prices'!$F$11:$CR$11,0))/100000,\"\")","v":""},{"$f":"IFERROR(AY86*INDEX('Energy Prices'!$F$12:$CR$17,MATCH('Data Input - BAT'!$D94,'Energy Prices'!$C$12:$C$17,0),MATCH('Data Input - BAT'!AY$7,'Energy Prices'!$F$11:$CR$11,0))/100000,\"\")","v":""},{"$f":"IFERROR(AZ86*INDEX('Energy Prices'!$F$12:$CR$17,MATCH('Data Input - BAT'!$D94,'Energy Prices'!$C$12:$C$17,0),MATCH('Data Input - BAT'!AZ$7,'Energy Prices'!$F$11:$CR$11,0))/100000,\"\")","v":""},{"$f":"IFERROR(BA86*INDEX('Energy Prices'!$F$12:$CR$17,MATCH('Data Input - BAT'!$D94,'Energy Prices'!$C$12:$C$17,0),MATCH('Data Input - BAT'!BA$7,'Energy Prices'!$F$11:$CR$11,0))/100000,\"\")","v":""},{"$f":"IFERROR(BB86*INDEX('Energy Prices'!$F$12:$CR$17,MATCH('Data Input - BAT'!$D94,'Energy Prices'!$C$12:$C$17,0),MATCH('Data Input - BAT'!BB$7,'Energy Prices'!$F$11:$CR$11,0))/100000,\"\")","v":""},{"$f":"IFERROR(BC86*INDEX('Energy Prices'!$F$12:$CR$17,MATCH('Data Input - BAT'!$D94,'Energy Prices'!$C$12:$C$17,0),MATCH('Data Input - BAT'!BC$7,'Energy Prices'!$F$11:$CR$11,0))/100000,\"\")","v":""},{"$f":"IFERROR(BD86*INDEX('Energy Prices'!$F$12:$CR$17,MATCH('Data Input - BAT'!$D94,'Energy Prices'!$C$12:$C$17,0),MATCH('Data Input - BAT'!BD$7,'Energy Prices'!$F$11:$CR$11,0))/100000,\"\")","v":""},{"$f":"IFERROR(BE86*INDEX('Energy Prices'!$F$12:$CR$17,MATCH('Data Input - BAT'!$D94,'Energy Prices'!$C$12:$C$17,0),MATCH('Data Input - BAT'!BE$7,'Energy Prices'!$F$11:$CR$11,0))/100000,\"\")","v":""},{"$f":"IFERROR(BF86*INDEX('Energy Prices'!$F$12:$CR$17,MATCH('Data Input - BAT'!$D94,'Energy Prices'!$C$12:$C$17,0),MATCH('Data Input - BAT'!BF$7,'Energy Prices'!$F$11:$CR$11,0))/100000,\"\")","v":""},{"$f":"IFERROR(BG86*INDEX('Energy Prices'!$F$12:$CR$17,MATCH('Data Input - BAT'!$D94,'Energy Prices'!$C$12:$C$17,0),MATCH('Data Input - BAT'!BG$7,'Energy Prices'!$F$11:$CR$11,0))/100000,\"\")","v":""},{"$f":"IFERROR(BH86*INDEX('Energy Prices'!$F$12:$CR$17,MATCH('Data Input - BAT'!$D94,'Energy Prices'!$C$12:$C$17,0),MATCH('Data Input - BAT'!BH$7,'Energy Prices'!$F$11:$CR$11,0))/100000,\"\")","v":""},{"$f":"IFERROR(BI86*INDEX('Energy Prices'!$F$12:$CR$17,MATCH('Data Input - BAT'!$D94,'Energy Prices'!$C$12:$C$17,0),MATCH('Data Input - BAT'!BI$7,'Energy Prices'!$F$11:$CR$11,0))/100000,\"\")","v":""},{"$f":"IFERROR(BJ86*INDEX('Energy Prices'!$F$12:$CR$17,MATCH('Data Input - BAT'!$D94,'Energy Prices'!$C$12:$C$17,0),MATCH('Data Input - BAT'!BJ$7,'Energy Prices'!$F$11:$CR$11,0))/100000,\"\")","v":""},{"$f":"IFERROR(BK86*INDEX('Energy Prices'!$F$12:$CR$17,MATCH('Data Input - BAT'!$D94,'Energy Prices'!$C$12:$C$17,0),MATCH('Data Input - BAT'!BK$7,'Energy Prices'!$F$11:$CR$11,0))/100000,\"\")","v":""},{"$f":"IFERROR(BL86*INDEX('Energy Prices'!$F$12:$CR$17,MATCH('Data Input - BAT'!$D94,'Energy Prices'!$C$12:$C$17,0),MATCH('Data Input - BAT'!BL$7,'Energy Prices'!$F$11:$CR$11,0))/100000,\"\")","v":""},{"$f":"IFERROR(BM86*INDEX('Energy Prices'!$F$12:$CR$17,MATCH('Data Input - BAT'!$D94,'Energy Prices'!$C$12:$C$17,0),MATCH('Data Input - BAT'!BM$7,'Energy Prices'!$F$11:$CR$11,0))/100000,\"\")","v":""},{"$f":"IFERROR(BN86*INDEX('Energy Prices'!$F$12:$CR$17,MATCH('Data Input - BAT'!$D94,'Energy Prices'!$C$12:$C$17,0),MATCH('Data Input - BAT'!BN$7,'Energy Prices'!$F$11:$CR$11,0))/100000,\"\")","v":""},{"$f":"IFERROR(BO86*INDEX('Energy Prices'!$F$12:$CR$17,MATCH('Data Input - BAT'!$D94,'Energy Prices'!$C$12:$C$17,0),MATCH('Data Input - BAT'!BO$7,'Energy Prices'!$F$11:$CR$11,0))/100000,\"\")","v":""},{"$f":"IFERROR(BP86*INDEX('Energy Prices'!$F$12:$CR$17,MATCH('Data Input - BAT'!$D94,'Energy Prices'!$C$12:$C$17,0),MATCH('Data Input - BAT'!BP$7,'Energy Prices'!$F$11:$CR$11,0))/100000,\"\")","v":""},{"$f":"IFERROR(BQ86*INDEX('Energy Prices'!$F$12:$CR$17,MATCH('Data Input - BAT'!$D94,'Energy Prices'!$C$12:$C$17,0),MATCH('Data Input - BAT'!BQ$7,'Energy Prices'!$F$11:$CR$11,0))/100000,\"\")","v":""},{"$f":"IFERROR(BR86*INDEX('Energy Prices'!$F$12:$CR$17,MATCH('Data Input - BAT'!$D94,'Energy Prices'!$C$12:$C$17,0),MATCH('Data Input - BAT'!BR$7,'Energy Prices'!$F$11:$CR$11,0))/100000,\"\")","v":""},{"$f":"IFERROR(BS86*INDEX('Energy Prices'!$F$12:$CR$17,MATCH('Data Input - BAT'!$D94,'Energy Prices'!$C$12:$C$17,0),MATCH('Data Input - BAT'!BS$7,'Energy Prices'!$F$11:$CR$11,0))/100000,\"\")","v":""},{"$f":"IFERROR(BT86*INDEX('Energy Prices'!$F$12:$CR$17,MATCH('Data Input - BAT'!$D94,'Energy Prices'!$C$12:$C$17,0),MATCH('Data Input - BAT'!BT$7,'Energy Prices'!$F$11:$CR$11,0))/100000,\"\")","v":""},{"$f":"IFERROR(BU86*INDEX('Energy Prices'!$F$12:$CR$17,MATCH('Data Input - BAT'!$D94,'Energy Prices'!$C$12:$C$17,0),MATCH('Data Input - BAT'!BU$7,'Energy Prices'!$F$11:$CR$11,0))/100000,\"\")","v":""},{"$f":"IFERROR(BV86*INDEX('Energy Prices'!$F$12:$CR$17,MATCH('Data Input - BAT'!$D94,'Energy Prices'!$C$12:$C$17,0),MATCH('Data Input - BAT'!BV$7,'Energy Prices'!$F$11:$CR$11,0))/100000,\"\")","v":""},{"$f":"IFERROR(BW86*INDEX('Energy Prices'!$F$12:$CR$17,MATCH('Data Input - BAT'!$D94,'Energy Prices'!$C$12:$C$17,0),MATCH('Data Input - BAT'!BW$7,'Energy Prices'!$F$11:$CR$11,0))/100000,\"\")","v":""},{"$f":"IFERROR(BX86*INDEX('Energy Prices'!$F$12:$CR$17,MATCH('Data Input - BAT'!$D94,'Energy Prices'!$C$12:$C$17,0),MATCH('Data Input - BAT'!BX$7,'Energy Prices'!$F$11:$CR$11,0))/100000,\"\")","v":""},{"$f":"IFERROR(BY86*INDEX('Energy Prices'!$F$12:$CR$17,MATCH('Data Input - BAT'!$D94,'Energy Prices'!$C$12:$C$17,0),MATCH('Data Input - BAT'!BY$7,'Energy Prices'!$F$11:$CR$11,0))/100000,\"\")","v":""},{"$f":"IFERROR(BZ86*INDEX('Energy Prices'!$F$12:$CR$17,MATCH('Data Input - BAT'!$D94,'Energy Prices'!$C$12:$C$17,0),MATCH('Data Input - BAT'!BZ$7,'Energy Prices'!$F$11:$CR$11,0))/100000,\"\")","v":""},{"$f":"IFERROR(CA86*INDEX('Energy Prices'!$F$12:$CR$17,MATCH('Data Input - BAT'!$D94,'Energy Prices'!$C$12:$C$17,0),MATCH('Data Input - BAT'!CA$7,'Energy Prices'!$F$11:$CR$11,0))/100000,\"\")","v":""},{"$f":"IFERROR(CB86*INDEX('Energy Prices'!$F$12:$CR$17,MATCH('Data Input - BAT'!$D94,'Energy Prices'!$C$12:$C$17,0),MATCH('Data Input - BAT'!CB$7,'Energy Prices'!$F$11:$CR$11,0))/100000,\"\")","v":""},{"$f":"IFERROR(CC86*INDEX('Energy Prices'!$F$12:$CR$17,MATCH('Data Input - BAT'!$D94,'Energy Prices'!$C$12:$C$17,0),MATCH('Data Input - BAT'!CC$7,'Energy Prices'!$F$11:$CR$11,0))/100000,\"\")","v":""},{"$f":"IFERROR(CD86*INDEX('Energy Prices'!$F$12:$CR$17,MATCH('Data Input - BAT'!$D94,'Energy Prices'!$C$12:$C$17,0),MATCH('Data Input - BAT'!CD$7,'Energy Prices'!$F$11:$CR$11,0))/100000,\"\")","v":""},{"$f":"IFERROR(CE86*INDEX('Energy Prices'!$F$12:$CR$17,MATCH('Data Input - BAT'!$D94,'Energy Prices'!$C$12:$C$17,0),MATCH('Data Input - BAT'!CE$7,'Energy Prices'!$F$11:$CR$11,0))/100000,\"\")","v":""},{"$f":"IFERROR(CF86*INDEX('Energy Prices'!$F$12:$CR$17,MATCH('Data Input - BAT'!$D94,'Energy Prices'!$C$12:$C$17,0),MATCH('Data Input - BAT'!CF$7,'Energy Prices'!$F$11:$CR$11,0))/100000,\"\")","v":""},{"$f":"IFERROR(CG86*INDEX('Energy Prices'!$F$12:$CR$17,MATCH('Data Input - BAT'!$D94,'Energy Prices'!$C$12:$C$17,0),MATCH('Data Input - BAT'!CG$7,'Energy Prices'!$F$11:$CR$11,0))/100000,\"\")","v":""},{"$f":"IFERROR(CH86*INDEX('Energy Prices'!$F$12:$CR$17,MATCH('Data Input - BAT'!$D94,'Energy Prices'!$C$12:$C$17,0),MATCH('Data Input - BAT'!CH$7,'Energy Prices'!$F$11:$CR$11,0))/100000,\"\")","v":""},{"$f":"IFERROR(CI86*INDEX('Energy Prices'!$F$12:$CR$17,MATCH('Data Input - BAT'!$D94,'Energy Prices'!$C$12:$C$17,0),MATCH('Data Input - BAT'!CI$7,'Energy Prices'!$F$11:$CR$11,0))/100000,\"\")","v":""},{"$f":"IFERROR(CJ86*INDEX('Energy Prices'!$F$12:$CR$17,MATCH('Data Input - BAT'!$D94,'Energy Prices'!$C$12:$C$17,0),MATCH('Data Input - BAT'!CJ$7,'Energy Prices'!$F$11:$CR$11,0))/100000,\"\")","v":""},{"$f":"IFERROR(CK86*INDEX('Energy Prices'!$F$12:$CR$17,MATCH('Data Input - BAT'!$D94,'Energy Prices'!$C$12:$C$17,0),MATCH('Data Input - BAT'!CK$7,'Energy Prices'!$F$11:$CR$11,0))/100000,\"\")","v":""},{"$f":"IFERROR(CL86*INDEX('Energy Prices'!$F$12:$CR$17,MATCH('Data Input - BAT'!$D94,'Energy Prices'!$C$12:$C$17,0),MATCH('Data Input - BAT'!CL$7,'Energy Prices'!$F$11:$CR$11,0))/100000,\"\")","v":""},{"$f":"IFERROR(CM86*INDEX('Energy Prices'!$F$12:$CR$17,MATCH('Data Input - BAT'!$D94,'Energy Prices'!$C$12:$C$17,0),MATCH('Data Input - BAT'!CM$7,'Energy Prices'!$F$11:$CR$11,0))/100000,\"\")","v":""},{"$f":"IFERROR(CN86*INDEX('Energy Prices'!$F$12:$CR$17,MATCH('Data Input - BAT'!$D94,'Energy Prices'!$C$12:$C$17,0),MATCH('Data Input - BAT'!CN$7,'Energy Prices'!$F$11:$CR$11,0))/100000,\"\")","v":""},{"$f":"IFERROR(CO86*INDEX('Energy Prices'!$F$12:$CR$17,MATCH('Data Input - BAT'!$D94,'Energy Prices'!$C$12:$C$17,0),MATCH('Data Input - BAT'!CO$7,'Energy Prices'!$F$11:$CR$11,0))/100000,\"\")","v":""},{"$f":"IFERROR(CP86*INDEX('Energy Prices'!$F$12:$CR$17,MATCH('Data Input - BAT'!$D94,'Energy Prices'!$C$12:$C$17,0),MATCH('Data Input - BAT'!CP$7,'Energy Prices'!$F$11:$CR$11,0))/100000,\"\")","v":""},{"$f":"IFERROR(CQ86*INDEX('Energy Prices'!$F$12:$CR$17,MATCH('Data Input - BAT'!$D94,'Energy Prices'!$C$12:$C$17,0),MATCH('Data Input - BAT'!CQ$7,'Energy Prices'!$F$11:$CR$11,0))/100000,\"\")","v":""},{"$f":"IFERROR(CR86*INDEX('Energy Prices'!$F$12:$CR$17,MATCH('Data Input - BAT'!$D94,'Energy Prices'!$C$12:$C$17,0),MATCH('Data Input - BAT'!CR$7,'Energy Prices'!$F$11:$CR$11,0))/100000,\"\")","v":""},{"$f":"IFERROR(CS86*INDEX('Energy Prices'!$F$12:$CR$17,MATCH('Data Input - BAT'!$D94,'Energy Prices'!$C$12:$C$17,0),MATCH('Data Input - BAT'!CS$7,'Energy Prices'!$F$11:$CR$11,0))/100000,\"\")","v":""},{"$f":"IFERROR(CT86*INDEX('Energy Prices'!$F$12:$CR$17,MATCH('Data Input - BAT'!$D94,'Energy Prices'!$C$12:$C$17,0),MATCH('Data Input - BAT'!CT$7,'Energy Prices'!$F$11:$CR$11,0))/100000,\"\")","v":""},{"$f":"IFERROR(CU86*INDEX('Energy Prices'!$F$12:$CR$17,MATCH('Data Input - BAT'!$D94,'Energy Prices'!$C$12:$C$17,0),MATCH('Data Input - BAT'!CU$7,'Energy Prices'!$F$11:$CR$11,0))/100000,\"\")","v":""},{"$f":"IFERROR(CV86*INDEX('Energy Prices'!$F$12:$CR$17,MATCH('Data Input - BAT'!$D94,'Energy Prices'!$C$12:$C$17,0),MATCH('Data Input - BAT'!CV$7,'Energy Prices'!$F$11:$CR$11,0))/100000,\"\")","v":""},{"$f":"IFERROR(CW86*INDEX('Energy Prices'!$F$12:$CR$17,MATCH('Data Input - BAT'!$D94,'Energy Prices'!$C$12:$C$17,0),MATCH('Data Input - BAT'!CW$7,'Energy Prices'!$F$11:$CR$11,0))/100000,\"\")","v":""},{"$f":"IFERROR(CX86*INDEX('Energy Prices'!$F$12:$CR$17,MATCH('Data Input - BAT'!$D94,'Energy Prices'!$C$12:$C$17,0),MATCH('Data Input - BAT'!CX$7,'Energy Prices'!$F$11:$CR$11,0))/100000,\"\")","v":""},{"$f":"IFERROR(CY86*INDEX('Energy Prices'!$F$12:$CR$17,MATCH('Data Input - BAT'!$D94,'Energy Prices'!$C$12:$C$17,0),MATCH('Data Input - BAT'!CY$7,'Energy Prices'!$F$11:$CR$11,0))/100000,\"\")","v":""},{"$f":"IFERROR(CZ86*INDEX('Energy Prices'!$F$12:$CR$17,MATCH('Data Input - BAT'!$D94,'Energy Prices'!$C$12:$C$17,0),MATCH('Data Input - BAT'!CZ$7,'Energy Prices'!$F$11:$CR$11,0))/100000,\"\")","v":""},{"$f":"IFERROR(DA86*INDEX('Energy Prices'!$F$12:$CR$17,MATCH('Data Input - BAT'!$D94,'Energy Prices'!$C$12:$C$17,0),MATCH('Data Input - BAT'!DA$7,'Energy Prices'!$F$11:$CR$11,0))/100000,\"\")","v":""},{"$f":"IFERROR(DB86*INDEX('Energy Prices'!$F$12:$CR$17,MATCH('Data Input - BAT'!$D94,'Energy Prices'!$C$12:$C$17,0),MATCH('Data Input - BAT'!DB$7,'Energy Prices'!$F$11:$CR$11,0))/100000,\"\")","v":""},{"$f":"IFERROR(DC86*INDEX('Energy Prices'!$F$12:$CR$17,MATCH('Data Input - BAT'!$D94,'Energy Prices'!$C$12:$C$17,0),MATCH('Data Input - BAT'!DC$7,'Energy Prices'!$F$11:$CR$11,0))/100000,\"\")","v":""}]
[null,null,null,"Gas Oil","£000's","(Auto calculated value)",null,{"$f":"IFERROR(H87*INDEX('Energy Prices'!$F$12:$CR$17,MATCH('Data Input - BAT'!$D95,'Energy Prices'!$C$12:$C$17,0),MATCH('Data Input - BAT'!H$7,'Energy Prices'!$F$11:$CR$11,0))/100000,\"\")","v":101.86416340890224},{"$f":"IFERROR(I87*INDEX('Energy Prices'!$F$12:$CR$17,MATCH('Data Input - BAT'!$D95,'Energy Prices'!$C$12:$C$17,0),MATCH('Data Input - BAT'!I$7,'Energy Prices'!$F$11:$CR$11,0))/100000,\"\")","v":108.78939751456718},{"$f":"IFERROR(J87*INDEX('Energy Prices'!$F$12:$CR$17,MATCH('Data Input - BAT'!$D95,'Energy Prices'!$C$12:$C$17,0),MATCH('Data Input - BAT'!J$7,'Energy Prices'!$F$11:$CR$11,0))/100000,\"\")","v":115.73394676403002},{"$f":"IFERROR(K87*INDEX('Energy Prices'!$F$12:$CR$17,MATCH('Data Input - BAT'!$D95,'Energy Prices'!$C$12:$C$17,0),MATCH('Data Input - BAT'!K$7,'Energy Prices'!$F$11:$CR$11,0))/100000,\"\")","v":122.66386016968734},{"$f":"IFERROR(L87*INDEX('Energy Prices'!$F$12:$CR$17,MATCH('Data Input - BAT'!$D95,'Energy Prices'!$C$12:$C$17,0),MATCH('Data Input - BAT'!L$7,'Energy Prices'!$F$11:$CR$11,0))/100000,\"\")","v":129.58715518047657},{"$f":"IFERROR(M87*INDEX('Energy Prices'!$F$12:$CR$17,MATCH('Data Input - BAT'!$D95,'Energy Prices'!$C$12:$C$17,0),MATCH('Data Input - BAT'!M$7,'Energy Prices'!$F$11:$CR$11,0))/100000,\"\")","v":136.51160511784934},{"$f":"IFERROR(N87*INDEX('Energy Prices'!$F$12:$CR$17,MATCH('Data Input - BAT'!$D95,'Energy Prices'!$C$12:$C$17,0),MATCH('Data Input - BAT'!N$7,'Energy Prices'!$F$11:$CR$11,0))/100000,\"\")","v":143.43721788452919},{"$f":"IFERROR(O87*INDEX('Energy Prices'!$F$12:$CR$17,MATCH('Data Input - BAT'!$D95,'Energy Prices'!$C$12:$C$17,0),MATCH('Data Input - BAT'!O$7,'Energy Prices'!$F$11:$CR$11,0))/100000,\"\")","v":143.60949069723941},{"$f":"IFERROR(P87*INDEX('Energy Prices'!$F$12:$CR$17,MATCH('Data Input - BAT'!$D95,'Energy Prices'!$C$12:$C$17,0),MATCH('Data Input - BAT'!P$7,'Energy Prices'!$F$11:$CR$11,0))/100000,\"\")","v":0},{"$f":"IFERROR(Q87*INDEX('Energy Prices'!$F$12:$CR$17,MATCH('Data Input - BAT'!$D95,'Energy Prices'!$C$12:$C$17,0),MATCH('Data Input - BAT'!Q$7,'Energy Prices'!$F$11:$CR$11,0))/100000,\"\")","v":0},{"$f":"IFERROR(R87*INDEX('Energy Prices'!$F$12:$CR$17,MATCH('Data Input - BAT'!$D95,'Energy Prices'!$C$12:$C$17,0),MATCH('Data Input - BAT'!R$7,'Energy Prices'!$F$11:$CR$11,0))/100000,\"\")","v":0},{"$f":"IFERROR(S87*INDEX('Energy Prices'!$F$12:$CR$17,MATCH('Data Input - BAT'!$D95,'Energy Prices'!$C$12:$C$17,0),MATCH('Data Input - BAT'!S$7,'Energy Prices'!$F$11:$CR$11,0))/100000,\"\")","v":0},{"$f":"IFERROR(T87*INDEX('Energy Prices'!$F$12:$CR$17,MATCH('Data Input - BAT'!$D95,'Energy Prices'!$C$12:$C$17,0),MATCH('Data Input - BAT'!T$7,'Energy Prices'!$F$11:$CR$11,0))/100000,\"\")","v":0},{"$f":"IFERROR(U87*INDEX('Energy Prices'!$F$12:$CR$17,MATCH('Data Input - BAT'!$D95,'Energy Prices'!$C$12:$C$17,0),MATCH('Data Input - BAT'!U$7,'Energy Prices'!$F$11:$CR$11,0))/100000,\"\")","v":0},{"$f":"IFERROR(V87*INDEX('Energy Prices'!$F$12:$CR$17,MATCH('Data Input - BAT'!$D95,'Energy Prices'!$C$12:$C$17,0),MATCH('Data Input - BAT'!V$7,'Energy Prices'!$F$11:$CR$11,0))/100000,\"\")","v":0},{"$f":"IFERROR(W87*INDEX('Energy Prices'!$F$12:$CR$17,MATCH('Data Input - BAT'!$D95,'Energy Prices'!$C$12:$C$17,0),MATCH('Data Input - BAT'!W$7,'Energy Prices'!$F$11:$CR$11,0))/100000,\"\")","v":0},{"$f":"IFERROR(X87*INDEX('Energy Prices'!$F$12:$CR$17,MATCH('Data Input - BAT'!$D95,'Energy Prices'!$C$12:$C$17,0),MATCH('Data Input - BAT'!X$7,'Energy Prices'!$F$11:$CR$11,0))/100000,\"\")","v":0},{"$f":"IFERROR(Y87*INDEX('Energy Prices'!$F$12:$CR$17,MATCH('Data Input - BAT'!$D95,'Energy Prices'!$C$12:$C$17,0),MATCH('Data Input - BAT'!Y$7,'Energy Prices'!$F$11:$CR$11,0))/100000,\"\")","v":0},{"$f":"IFERROR(Z87*INDEX('Energy Prices'!$F$12:$CR$17,MATCH('Data Input - BAT'!$D95,'Energy Prices'!$C$12:$C$17,0),MATCH('Data Input - BAT'!Z$7,'Energy Prices'!$F$11:$CR$11,0))/100000,\"\")","v":0},{"$f":"IFERROR(AA87*INDEX('Energy Prices'!$F$12:$CR$17,MATCH('Data Input - BAT'!$D95,'Energy Prices'!$C$12:$C$17,0),MATCH('Data Input - BAT'!AA$7,'Energy Prices'!$F$11:$CR$11,0))/100000,\"\")","v":0},{"$f":"IFERROR(AB87*INDEX('Energy Prices'!$F$12:$CR$17,MATCH('Data Input - BAT'!$D95,'Energy Prices'!$C$12:$C$17,0),MATCH('Data Input - BAT'!AB$7,'Energy Prices'!$F$11:$CR$11,0))/100000,\"\")","v":0},{"$f":"IFERROR(AC87*INDEX('Energy Prices'!$F$12:$CR$17,MATCH('Data Input - BAT'!$D95,'Energy Prices'!$C$12:$C$17,0),MATCH('Data Input - BAT'!AC$7,'Energy Prices'!$F$11:$CR$11,0))/100000,\"\")","v":0},{"$f":"IFERROR(AD87*INDEX('Energy Prices'!$F$12:$CR$17,MATCH('Data Input - BAT'!$D95,'Energy Prices'!$C$12:$C$17,0),MATCH('Data Input - BAT'!AD$7,'Energy Prices'!$F$11:$CR$11,0))/100000,\"\")","v":0},{"$f":"IFERROR(AE87*INDEX('Energy Prices'!$F$12:$CR$17,MATCH('Data Input - BAT'!$D95,'Energy Prices'!$C$12:$C$17,0),MATCH('Data Input - BAT'!AE$7,'Energy Prices'!$F$11:$CR$11,0))/100000,\"\")","v":0},{"$f":"IFERROR(AF87*INDEX('Energy Prices'!$F$12:$CR$17,MATCH('Data Input - BAT'!$D95,'Energy Prices'!$C$12:$C$17,0),MATCH('Data Input - BAT'!AF$7,'Energy Prices'!$F$11:$CR$11,0))/100000,\"\")","v":0},{"$f":"IFERROR(AG87*INDEX('Energy Prices'!$F$12:$CR$17,MATCH('Data Input - BAT'!$D95,'Energy Prices'!$C$12:$C$17,0),MATCH('Data Input - BAT'!AG$7,'Energy Prices'!$F$11:$CR$11,0))/100000,\"\")","v":0},{"$f":"IFERROR(AH87*INDEX('Energy Prices'!$F$12:$CR$17,MATCH('Data Input - BAT'!$D95,'Energy Prices'!$C$12:$C$17,0),MATCH('Data Input - BAT'!AH$7,'Energy Prices'!$F$11:$CR$11,0))/100000,\"\")","v":0},{"$f":"IFERROR(AI87*INDEX('Energy Prices'!$F$12:$CR$17,MATCH('Data Input - BAT'!$D95,'Energy Prices'!$C$12:$C$17,0),MATCH('Data Input - BAT'!AI$7,'Energy Prices'!$F$11:$CR$11,0))/100000,\"\")","v":0},{"$f":"IFERROR(AJ87*INDEX('Energy Prices'!$F$12:$CR$17,MATCH('Data Input - BAT'!$D95,'Energy Prices'!$C$12:$C$17,0),MATCH('Data Input - BAT'!AJ$7,'Energy Prices'!$F$11:$CR$11,0))/100000,\"\")","v":0},{"$f":"IFERROR(AK87*INDEX('Energy Prices'!$F$12:$CR$17,MATCH('Data Input - BAT'!$D95,'Energy Prices'!$C$12:$C$17,0),MATCH('Data Input - BAT'!AK$7,'Energy Prices'!$F$11:$CR$11,0))/100000,\"\")","v":0},{"$f":"IFERROR(AL87*INDEX('Energy Prices'!$F$12:$CR$17,MATCH('Data Input - BAT'!$D95,'Energy Prices'!$C$12:$C$17,0),MATCH('Data Input - BAT'!AL$7,'Energy Prices'!$F$11:$CR$11,0))/100000,\"\")","v":0},{"$f":"IFERROR(AM87*INDEX('Energy Prices'!$F$12:$CR$17,MATCH('Data Input - BAT'!$D95,'Energy Prices'!$C$12:$C$17,0),MATCH('Data Input - BAT'!AM$7,'Energy Prices'!$F$11:$CR$11,0))/100000,\"\")","v":""},{"$f":"IFERROR(AN87*INDEX('Energy Prices'!$F$12:$CR$17,MATCH('Data Input - BAT'!$D95,'Energy Prices'!$C$12:$C$17,0),MATCH('Data Input - BAT'!AN$7,'Energy Prices'!$F$11:$CR$11,0))/100000,\"\")","v":""},{"$f":"IFERROR(AO87*INDEX('Energy Prices'!$F$12:$CR$17,MATCH('Data Input - BAT'!$D95,'Energy Prices'!$C$12:$C$17,0),MATCH('Data Input - BAT'!AO$7,'Energy Prices'!$F$11:$CR$11,0))/100000,\"\")","v":""},{"$f":"IFERROR(AP87*INDEX('Energy Prices'!$F$12:$CR$17,MATCH('Data Input - BAT'!$D95,'Energy Prices'!$C$12:$C$17,0),MATCH('Data Input - BAT'!AP$7,'Energy Prices'!$F$11:$CR$11,0))/100000,\"\")","v":""},{"$f":"IFERROR(AQ87*INDEX('Energy Prices'!$F$12:$CR$17,MATCH('Data Input - BAT'!$D95,'Energy Prices'!$C$12:$C$17,0),MATCH('Data Input - BAT'!AQ$7,'Energy Prices'!$F$11:$CR$11,0))/100000,\"\")","v":""},{"$f":"IFERROR(AR87*INDEX('Energy Prices'!$F$12:$CR$17,MATCH('Data Input - BAT'!$D95,'Energy Prices'!$C$12:$C$17,0),MATCH('Data Input - BAT'!AR$7,'Energy Prices'!$F$11:$CR$11,0))/100000,\"\")","v":""},{"$f":"IFERROR(AS87*INDEX('Energy Prices'!$F$12:$CR$17,MATCH('Data Input - BAT'!$D95,'Energy Prices'!$C$12:$C$17,0),MATCH('Data Input - BAT'!AS$7,'Energy Prices'!$F$11:$CR$11,0))/100000,\"\")","v":""},{"$f":"IFERROR(AT87*INDEX('Energy Prices'!$F$12:$CR$17,MATCH('Data Input - BAT'!$D95,'Energy Prices'!$C$12:$C$17,0),MATCH('Data Input - BAT'!AT$7,'Energy Prices'!$F$11:$CR$11,0))/100000,\"\")","v":""},{"$f":"IFERROR(AU87*INDEX('Energy Prices'!$F$12:$CR$17,MATCH('Data Input - BAT'!$D95,'Energy Prices'!$C$12:$C$17,0),MATCH('Data Input - BAT'!AU$7,'Energy Prices'!$F$11:$CR$11,0))/100000,\"\")","v":""},{"$f":"IFERROR(AV87*INDEX('Energy Prices'!$F$12:$CR$17,MATCH('Data Input - BAT'!$D95,'Energy Prices'!$C$12:$C$17,0),MATCH('Data Input - BAT'!AV$7,'Energy Prices'!$F$11:$CR$11,0))/100000,\"\")","v":""},{"$f":"IFERROR(AW87*INDEX('Energy Prices'!$F$12:$CR$17,MATCH('Data Input - BAT'!$D95,'Energy Prices'!$C$12:$C$17,0),MATCH('Data Input - BAT'!AW$7,'Energy Prices'!$F$11:$CR$11,0))/100000,\"\")","v":""},{"$f":"IFERROR(AX87*INDEX('Energy Prices'!$F$12:$CR$17,MATCH('Data Input - BAT'!$D95,'Energy Prices'!$C$12:$C$17,0),MATCH('Data Input - BAT'!AX$7,'Energy Prices'!$F$11:$CR$11,0))/100000,\"\")","v":""},{"$f":"IFERROR(AY87*INDEX('Energy Prices'!$F$12:$CR$17,MATCH('Data Input - BAT'!$D95,'Energy Prices'!$C$12:$C$17,0),MATCH('Data Input - BAT'!AY$7,'Energy Prices'!$F$11:$CR$11,0))/100000,\"\")","v":""},{"$f":"IFERROR(AZ87*INDEX('Energy Prices'!$F$12:$CR$17,MATCH('Data Input - BAT'!$D95,'Energy Prices'!$C$12:$C$17,0),MATCH('Data Input - BAT'!AZ$7,'Energy Prices'!$F$11:$CR$11,0))/100000,\"\")","v":""},{"$f":"IFERROR(BA87*INDEX('Energy Prices'!$F$12:$CR$17,MATCH('Data Input - BAT'!$D95,'Energy Prices'!$C$12:$C$17,0),MATCH('Data Input - BAT'!BA$7,'Energy Prices'!$F$11:$CR$11,0))/100000,\"\")","v":""},{"$f":"IFERROR(BB87*INDEX('Energy Prices'!$F$12:$CR$17,MATCH('Data Input - BAT'!$D95,'Energy Prices'!$C$12:$C$17,0),MATCH('Data Input - BAT'!BB$7,'Energy Prices'!$F$11:$CR$11,0))/100000,\"\")","v":""},{"$f":"IFERROR(BC87*INDEX('Energy Prices'!$F$12:$CR$17,MATCH('Data Input - BAT'!$D95,'Energy Prices'!$C$12:$C$17,0),MATCH('Data Input - BAT'!BC$7,'Energy Prices'!$F$11:$CR$11,0))/100000,\"\")","v":""},{"$f":"IFERROR(BD87*INDEX('Energy Prices'!$F$12:$CR$17,MATCH('Data Input - BAT'!$D95,'Energy Prices'!$C$12:$C$17,0),MATCH('Data Input - BAT'!BD$7,'Energy Prices'!$F$11:$CR$11,0))/100000,\"\")","v":""},{"$f":"IFERROR(BE87*INDEX('Energy Prices'!$F$12:$CR$17,MATCH('Data Input - BAT'!$D95,'Energy Prices'!$C$12:$C$17,0),MATCH('Data Input - BAT'!BE$7,'Energy Prices'!$F$11:$CR$11,0))/100000,\"\")","v":""},{"$f":"IFERROR(BF87*INDEX('Energy Prices'!$F$12:$CR$17,MATCH('Data Input - BAT'!$D95,'Energy Prices'!$C$12:$C$17,0),MATCH('Data Input - BAT'!BF$7,'Energy Prices'!$F$11:$CR$11,0))/100000,\"\")","v":""},{"$f":"IFERROR(BG87*INDEX('Energy Prices'!$F$12:$CR$17,MATCH('Data Input - BAT'!$D95,'Energy Prices'!$C$12:$C$17,0),MATCH('Data Input - BAT'!BG$7,'Energy Prices'!$F$11:$CR$11,0))/100000,\"\")","v":""},{"$f":"IFERROR(BH87*INDEX('Energy Prices'!$F$12:$CR$17,MATCH('Data Input - BAT'!$D95,'Energy Prices'!$C$12:$C$17,0),MATCH('Data Input - BAT'!BH$7,'Energy Prices'!$F$11:$CR$11,0))/100000,\"\")","v":""},{"$f":"IFERROR(BI87*INDEX('Energy Prices'!$F$12:$CR$17,MATCH('Data Input - BAT'!$D95,'Energy Prices'!$C$12:$C$17,0),MATCH('Data Input - BAT'!BI$7,'Energy Prices'!$F$11:$CR$11,0))/100000,\"\")","v":""},{"$f":"IFERROR(BJ87*INDEX('Energy Prices'!$F$12:$CR$17,MATCH('Data Input - BAT'!$D95,'Energy Prices'!$C$12:$C$17,0),MATCH('Data Input - BAT'!BJ$7,'Energy Prices'!$F$11:$CR$11,0))/100000,\"\")","v":""},{"$f":"IFERROR(BK87*INDEX('Energy Prices'!$F$12:$CR$17,MATCH('Data Input - BAT'!$D95,'Energy Prices'!$C$12:$C$17,0),MATCH('Data Input - BAT'!BK$7,'Energy Prices'!$F$11:$CR$11,0))/100000,\"\")","v":""},{"$f":"IFERROR(BL87*INDEX('Energy Prices'!$F$12:$CR$17,MATCH('Data Input - BAT'!$D95,'Energy Prices'!$C$12:$C$17,0),MATCH('Data Input - BAT'!BL$7,'Energy Prices'!$F$11:$CR$11,0))/100000,\"\")","v":""},{"$f":"IFERROR(BM87*INDEX('Energy Prices'!$F$12:$CR$17,MATCH('Data Input - BAT'!$D95,'Energy Prices'!$C$12:$C$17,0),MATCH('Data Input - BAT'!BM$7,'Energy Prices'!$F$11:$CR$11,0))/100000,\"\")","v":""},{"$f":"IFERROR(BN87*INDEX('Energy Prices'!$F$12:$CR$17,MATCH('Data Input - BAT'!$D95,'Energy Prices'!$C$12:$C$17,0),MATCH('Data Input - BAT'!BN$7,'Energy Prices'!$F$11:$CR$11,0))/100000,\"\")","v":""},{"$f":"IFERROR(BO87*INDEX('Energy Prices'!$F$12:$CR$17,MATCH('Data Input - BAT'!$D95,'Energy Prices'!$C$12:$C$17,0),MATCH('Data Input - BAT'!BO$7,'Energy Prices'!$F$11:$CR$11,0))/100000,\"\")","v":""},{"$f":"IFERROR(BP87*INDEX('Energy Prices'!$F$12:$CR$17,MATCH('Data Input - BAT'!$D95,'Energy Prices'!$C$12:$C$17,0),MATCH('Data Input - BAT'!BP$7,'Energy Prices'!$F$11:$CR$11,0))/100000,\"\")","v":""},{"$f":"IFERROR(BQ87*INDEX('Energy Prices'!$F$12:$CR$17,MATCH('Data Input - BAT'!$D95,'Energy Prices'!$C$12:$C$17,0),MATCH('Data Input - BAT'!BQ$7,'Energy Prices'!$F$11:$CR$11,0))/100000,\"\")","v":""},{"$f":"IFERROR(BR87*INDEX('Energy Prices'!$F$12:$CR$17,MATCH('Data Input - BAT'!$D95,'Energy Prices'!$C$12:$C$17,0),MATCH('Data Input - BAT'!BR$7,'Energy Prices'!$F$11:$CR$11,0))/100000,\"\")","v":""},{"$f":"IFERROR(BS87*INDEX('Energy Prices'!$F$12:$CR$17,MATCH('Data Input - BAT'!$D95,'Energy Prices'!$C$12:$C$17,0),MATCH('Data Input - BAT'!BS$7,'Energy Prices'!$F$11:$CR$11,0))/100000,\"\")","v":""},{"$f":"IFERROR(BT87*INDEX('Energy Prices'!$F$12:$CR$17,MATCH('Data Input - BAT'!$D95,'Energy Prices'!$C$12:$C$17,0),MATCH('Data Input - BAT'!BT$7,'Energy Prices'!$F$11:$CR$11,0))/100000,\"\")","v":""},{"$f":"IFERROR(BU87*INDEX('Energy Prices'!$F$12:$CR$17,MATCH('Data Input - BAT'!$D95,'Energy Prices'!$C$12:$C$17,0),MATCH('Data Input - BAT'!BU$7,'Energy Prices'!$F$11:$CR$11,0))/100000,\"\")","v":""},{"$f":"IFERROR(BV87*INDEX('Energy Prices'!$F$12:$CR$17,MATCH('Data Input - BAT'!$D95,'Energy Prices'!$C$12:$C$17,0),MATCH('Data Input - BAT'!BV$7,'Energy Prices'!$F$11:$CR$11,0))/100000,\"\")","v":""},{"$f":"IFERROR(BW87*INDEX('Energy Prices'!$F$12:$CR$17,MATCH('Data Input - BAT'!$D95,'Energy Prices'!$C$12:$C$17,0),MATCH('Data Input - BAT'!BW$7,'Energy Prices'!$F$11:$CR$11,0))/100000,\"\")","v":""},{"$f":"IFERROR(BX87*INDEX('Energy Prices'!$F$12:$CR$17,MATCH('Data Input - BAT'!$D95,'Energy Prices'!$C$12:$C$17,0),MATCH('Data Input - BAT'!BX$7,'Energy Prices'!$F$11:$CR$11,0))/100000,\"\")","v":""},{"$f":"IFERROR(BY87*INDEX('Energy Prices'!$F$12:$CR$17,MATCH('Data Input - BAT'!$D95,'Energy Prices'!$C$12:$C$17,0),MATCH('Data Input - BAT'!BY$7,'Energy Prices'!$F$11:$CR$11,0))/100000,\"\")","v":""},{"$f":"IFERROR(BZ87*INDEX('Energy Prices'!$F$12:$CR$17,MATCH('Data Input - BAT'!$D95,'Energy Prices'!$C$12:$C$17,0),MATCH('Data Input - BAT'!BZ$7,'Energy Prices'!$F$11:$CR$11,0))/100000,\"\")","v":""},{"$f":"IFERROR(CA87*INDEX('Energy Prices'!$F$12:$CR$17,MATCH('Data Input - BAT'!$D95,'Energy Prices'!$C$12:$C$17,0),MATCH('Data Input - BAT'!CA$7,'Energy Prices'!$F$11:$CR$11,0))/100000,\"\")","v":""},{"$f":"IFERROR(CB87*INDEX('Energy Prices'!$F$12:$CR$17,MATCH('Data Input - BAT'!$D95,'Energy Prices'!$C$12:$C$17,0),MATCH('Data Input - BAT'!CB$7,'Energy Prices'!$F$11:$CR$11,0))/100000,\"\")","v":""},{"$f":"IFERROR(CC87*INDEX('Energy Prices'!$F$12:$CR$17,MATCH('Data Input - BAT'!$D95,'Energy Prices'!$C$12:$C$17,0),MATCH('Data Input - BAT'!CC$7,'Energy Prices'!$F$11:$CR$11,0))/100000,\"\")","v":""},{"$f":"IFERROR(CD87*INDEX('Energy Prices'!$F$12:$CR$17,MATCH('Data Input - BAT'!$D95,'Energy Prices'!$C$12:$C$17,0),MATCH('Data Input - BAT'!CD$7,'Energy Prices'!$F$11:$CR$11,0))/100000,\"\")","v":""},{"$f":"IFERROR(CE87*INDEX('Energy Prices'!$F$12:$CR$17,MATCH('Data Input - BAT'!$D95,'Energy Prices'!$C$12:$C$17,0),MATCH('Data Input - BAT'!CE$7,'Energy Prices'!$F$11:$CR$11,0))/100000,\"\")","v":""},{"$f":"IFERROR(CF87*INDEX('Energy Prices'!$F$12:$CR$17,MATCH('Data Input - BAT'!$D95,'Energy Prices'!$C$12:$C$17,0),MATCH('Data Input - BAT'!CF$7,'Energy Prices'!$F$11:$CR$11,0))/100000,\"\")","v":""},{"$f":"IFERROR(CG87*INDEX('Energy Prices'!$F$12:$CR$17,MATCH('Data Input - BAT'!$D95,'Energy Prices'!$C$12:$C$17,0),MATCH('Data Input - BAT'!CG$7,'Energy Prices'!$F$11:$CR$11,0))/100000,\"\")","v":""},{"$f":"IFERROR(CH87*INDEX('Energy Prices'!$F$12:$CR$17,MATCH('Data Input - BAT'!$D95,'Energy Prices'!$C$12:$C$17,0),MATCH('Data Input - BAT'!CH$7,'Energy Prices'!$F$11:$CR$11,0))/100000,\"\")","v":""},{"$f":"IFERROR(CI87*INDEX('Energy Prices'!$F$12:$CR$17,MATCH('Data Input - BAT'!$D95,'Energy Prices'!$C$12:$C$17,0),MATCH('Data Input - BAT'!CI$7,'Energy Prices'!$F$11:$CR$11,0))/100000,\"\")","v":""},{"$f":"IFERROR(CJ87*INDEX('Energy Prices'!$F$12:$CR$17,MATCH('Data Input - BAT'!$D95,'Energy Prices'!$C$12:$C$17,0),MATCH('Data Input - BAT'!CJ$7,'Energy Prices'!$F$11:$CR$11,0))/100000,\"\")","v":""},{"$f":"IFERROR(CK87*INDEX('Energy Prices'!$F$12:$CR$17,MATCH('Data Input - BAT'!$D95,'Energy Prices'!$C$12:$C$17,0),MATCH('Data Input - BAT'!CK$7,'Energy Prices'!$F$11:$CR$11,0))/100000,\"\")","v":""},{"$f":"IFERROR(CL87*INDEX('Energy Prices'!$F$12:$CR$17,MATCH('Data Input - BAT'!$D95,'Energy Prices'!$C$12:$C$17,0),MATCH('Data Input - BAT'!CL$7,'Energy Prices'!$F$11:$CR$11,0))/100000,\"\")","v":""},{"$f":"IFERROR(CM87*INDEX('Energy Prices'!$F$12:$CR$17,MATCH('Data Input - BAT'!$D95,'Energy Prices'!$C$12:$C$17,0),MATCH('Data Input - BAT'!CM$7,'Energy Prices'!$F$11:$CR$11,0))/100000,\"\")","v":""},{"$f":"IFERROR(CN87*INDEX('Energy Prices'!$F$12:$CR$17,MATCH('Data Input - BAT'!$D95,'Energy Prices'!$C$12:$C$17,0),MATCH('Data Input - BAT'!CN$7,'Energy Prices'!$F$11:$CR$11,0))/100000,\"\")","v":""},{"$f":"IFERROR(CO87*INDEX('Energy Prices'!$F$12:$CR$17,MATCH('Data Input - BAT'!$D95,'Energy Prices'!$C$12:$C$17,0),MATCH('Data Input - BAT'!CO$7,'Energy Prices'!$F$11:$CR$11,0))/100000,\"\")","v":""},{"$f":"IFERROR(CP87*INDEX('Energy Prices'!$F$12:$CR$17,MATCH('Data Input - BAT'!$D95,'Energy Prices'!$C$12:$C$17,0),MATCH('Data Input - BAT'!CP$7,'Energy Prices'!$F$11:$CR$11,0))/100000,\"\")","v":""},{"$f":"IFERROR(CQ87*INDEX('Energy Prices'!$F$12:$CR$17,MATCH('Data Input - BAT'!$D95,'Energy Prices'!$C$12:$C$17,0),MATCH('Data Input - BAT'!CQ$7,'Energy Prices'!$F$11:$CR$11,0))/100000,\"\")","v":""},{"$f":"IFERROR(CR87*INDEX('Energy Prices'!$F$12:$CR$17,MATCH('Data Input - BAT'!$D95,'Energy Prices'!$C$12:$C$17,0),MATCH('Data Input - BAT'!CR$7,'Energy Prices'!$F$11:$CR$11,0))/100000,\"\")","v":""},{"$f":"IFERROR(CS87*INDEX('Energy Prices'!$F$12:$CR$17,MATCH('Data Input - BAT'!$D95,'Energy Prices'!$C$12:$C$17,0),MATCH('Data Input - BAT'!CS$7,'Energy Prices'!$F$11:$CR$11,0))/100000,\"\")","v":""},{"$f":"IFERROR(CT87*INDEX('Energy Prices'!$F$12:$CR$17,MATCH('Data Input - BAT'!$D95,'Energy Prices'!$C$12:$C$17,0),MATCH('Data Input - BAT'!CT$7,'Energy Prices'!$F$11:$CR$11,0))/100000,\"\")","v":""},{"$f":"IFERROR(CU87*INDEX('Energy Prices'!$F$12:$CR$17,MATCH('Data Input - BAT'!$D95,'Energy Prices'!$C$12:$C$17,0),MATCH('Data Input - BAT'!CU$7,'Energy Prices'!$F$11:$CR$11,0))/100000,\"\")","v":""},{"$f":"IFERROR(CV87*INDEX('Energy Prices'!$F$12:$CR$17,MATCH('Data Input - BAT'!$D95,'Energy Prices'!$C$12:$C$17,0),MATCH('Data Input - BAT'!CV$7,'Energy Prices'!$F$11:$CR$11,0))/100000,\"\")","v":""},{"$f":"IFERROR(CW87*INDEX('Energy Prices'!$F$12:$CR$17,MATCH('Data Input - BAT'!$D95,'Energy Prices'!$C$12:$C$17,0),MATCH('Data Input - BAT'!CW$7,'Energy Prices'!$F$11:$CR$11,0))/100000,\"\")","v":""},{"$f":"IFERROR(CX87*INDEX('Energy Prices'!$F$12:$CR$17,MATCH('Data Input - BAT'!$D95,'Energy Prices'!$C$12:$C$17,0),MATCH('Data Input - BAT'!CX$7,'Energy Prices'!$F$11:$CR$11,0))/100000,\"\")","v":""},{"$f":"IFERROR(CY87*INDEX('Energy Prices'!$F$12:$CR$17,MATCH('Data Input - BAT'!$D95,'Energy Prices'!$C$12:$C$17,0),MATCH('Data Input - BAT'!CY$7,'Energy Prices'!$F$11:$CR$11,0))/100000,\"\")","v":""},{"$f":"IFERROR(CZ87*INDEX('Energy Prices'!$F$12:$CR$17,MATCH('Data Input - BAT'!$D95,'Energy Prices'!$C$12:$C$17,0),MATCH('Data Input - BAT'!CZ$7,'Energy Prices'!$F$11:$CR$11,0))/100000,\"\")","v":""},{"$f":"IFERROR(DA87*INDEX('Energy Prices'!$F$12:$CR$17,MATCH('Data Input - BAT'!$D95,'Energy Prices'!$C$12:$C$17,0),MATCH('Data Input - BAT'!DA$7,'Energy Prices'!$F$11:$CR$11,0))/100000,\"\")","v":""},{"$f":"IFERROR(DB87*INDEX('Energy Prices'!$F$12:$CR$17,MATCH('Data Input - BAT'!$D95,'Energy Prices'!$C$12:$C$17,0),MATCH('Data Input - BAT'!DB$7,'Energy Prices'!$F$11:$CR$11,0))/100000,\"\")","v":""},{"$f":"IFERROR(DC87*INDEX('Energy Prices'!$F$12:$CR$17,MATCH('Data Input - BAT'!$D95,'Energy Prices'!$C$12:$C$17,0),MATCH('Data Input - BAT'!DC$7,'Energy Prices'!$F$11:$CR$11,0))/100000,\"\")","v":""}]
[null,null,null,"Road - Petrol","£000's","(Auto calculated value)",null,{"$f":"IFERROR(H88*INDEX('Energy Prices'!$F$12:$CR$17,MATCH('Data Input - BAT'!$D96,'Energy Prices'!$C$12:$C$17,0),MATCH('Data Input - BAT'!H$7,'Energy Prices'!$F$11:$CR$11,0))/100000,\"\")","v":0},{"$f":"IFERROR(I88*INDEX('Energy Prices'!$F$12:$CR$17,MATCH('Data Input - BAT'!$D96,'Energy Prices'!$C$12:$C$17,0),MATCH('Data Input - BAT'!I$7,'Energy Prices'!$F$11:$CR$11,0))/100000,\"\")","v":0},{"$f":"IFERROR(J88*INDEX('Energy Prices'!$F$12:$CR$17,MATCH('Data Input - BAT'!$D96,'Energy Prices'!$C$12:$C$17,0),MATCH('Data Input - BAT'!J$7,'Energy Prices'!$F$11:$CR$11,0))/100000,\"\")","v":0},{"$f":"IFERROR(K88*INDEX('Energy Prices'!$F$12:$CR$17,MATCH('Data Input - BAT'!$D96,'Energy Prices'!$C$12:$C$17,0),MATCH('Data Input - BAT'!K$7,'Energy Prices'!$F$11:$CR$11,0))/100000,\"\")","v":0},{"$f":"IFERROR(L88*INDEX('Energy Prices'!$F$12:$CR$17,MATCH('Data Input - BAT'!$D96,'Energy Prices'!$C$12:$C$17,0),MATCH('Data Input - BAT'!L$7,'Energy Prices'!$F$11:$CR$11,0))/100000,\"\")","v":0},{"$f":"IFERROR(M88*INDEX('Energy Prices'!$F$12:$CR$17,MATCH('Data Input - BAT'!$D96,'Energy Prices'!$C$12:$C$17,0),MATCH('Data Input - BAT'!M$7,'Energy Prices'!$F$11:$CR$11,0))/100000,\"\")","v":0},{"$f":"IFERROR(N88*INDEX('Energy Prices'!$F$12:$CR$17,MATCH('Data Input - BAT'!$D96,'Energy Prices'!$C$12:$C$17,0),MATCH('Data Input - BAT'!N$7,'Energy Prices'!$F$11:$CR$11,0))/100000,\"\")","v":0},{"$f":"IFERROR(O88*INDEX('Energy Prices'!$F$12:$CR$17,MATCH('Data Input - BAT'!$D96,'Energy Prices'!$C$12:$C$17,0),MATCH('Data Input - BAT'!O$7,'Energy Prices'!$F$11:$CR$11,0))/100000,\"\")","v":0},{"$f":"IFERROR(P88*INDEX('Energy Prices'!$F$12:$CR$17,MATCH('Data Input - BAT'!$D96,'Energy Prices'!$C$12:$C$17,0),MATCH('Data Input - BAT'!P$7,'Energy Prices'!$F$11:$CR$11,0))/100000,\"\")","v":0},{"$f":"IFERROR(Q88*INDEX('Energy Prices'!$F$12:$CR$17,MATCH('Data Input - BAT'!$D96,'Energy Prices'!$C$12:$C$17,0),MATCH('Data Input - BAT'!Q$7,'Energy Prices'!$F$11:$CR$11,0))/100000,\"\")","v":0},{"$f":"IFERROR(R88*INDEX('Energy Prices'!$F$12:$CR$17,MATCH('Data Input - BAT'!$D96,'Energy Prices'!$C$12:$C$17,0),MATCH('Data Input - BAT'!R$7,'Energy Prices'!$F$11:$CR$11,0))/100000,\"\")","v":0},{"$f":"IFERROR(S88*INDEX('Energy Prices'!$F$12:$CR$17,MATCH('Data Input - BAT'!$D96,'Energy Prices'!$C$12:$C$17,0),MATCH('Data Input - BAT'!S$7,'Energy Prices'!$F$11:$CR$11,0))/100000,\"\")","v":0},{"$f":"IFERROR(T88*INDEX('Energy Prices'!$F$12:$CR$17,MATCH('Data Input - BAT'!$D96,'Energy Prices'!$C$12:$C$17,0),MATCH('Data Input - BAT'!T$7,'Energy Prices'!$F$11:$CR$11,0))/100000,\"\")","v":0},{"$f":"IFERROR(U88*INDEX('Energy Prices'!$F$12:$CR$17,MATCH('Data Input - BAT'!$D96,'Energy Prices'!$C$12:$C$17,0),MATCH('Data Input - BAT'!U$7,'Energy Prices'!$F$11:$CR$11,0))/100000,\"\")","v":0},{"$f":"IFERROR(V88*INDEX('Energy Prices'!$F$12:$CR$17,MATCH('Data Input - BAT'!$D96,'Energy Prices'!$C$12:$C$17,0),MATCH('Data Input - BAT'!V$7,'Energy Prices'!$F$11:$CR$11,0))/100000,\"\")","v":0},{"$f":"IFERROR(W88*INDEX('Energy Prices'!$F$12:$CR$17,MATCH('Data Input - BAT'!$D96,'Energy Prices'!$C$12:$C$17,0),MATCH('Data Input - BAT'!W$7,'Energy Prices'!$F$11:$CR$11,0))/100000,\"\")","v":0},{"$f":"IFERROR(X88*INDEX('Energy Prices'!$F$12:$CR$17,MATCH('Data Input - BAT'!$D96,'Energy Prices'!$C$12:$C$17,0),MATCH('Data Input - BAT'!X$7,'Energy Prices'!$F$11:$CR$11,0))/100000,\"\")","v":0},{"$f":"IFERROR(Y88*INDEX('Energy Prices'!$F$12:$CR$17,MATCH('Data Input - BAT'!$D96,'Energy Prices'!$C$12:$C$17,0),MATCH('Data Input - BAT'!Y$7,'Energy Prices'!$F$11:$CR$11,0))/100000,\"\")","v":0},{"$f":"IFERROR(Z88*INDEX('Energy Prices'!$F$12:$CR$17,MATCH('Data Input - BAT'!$D96,'Energy Prices'!$C$12:$C$17,0),MATCH('Data Input - BAT'!Z$7,'Energy Prices'!$F$11:$CR$11,0))/100000,\"\")","v":0},{"$f":"IFERROR(AA88*INDEX('Energy Prices'!$F$12:$CR$17,MATCH('Data Input - BAT'!$D96,'Energy Prices'!$C$12:$C$17,0),MATCH('Data Input - BAT'!AA$7,'Energy Prices'!$F$11:$CR$11,0))/100000,\"\")","v":0},{"$f":"IFERROR(AB88*INDEX('Energy Prices'!$F$12:$CR$17,MATCH('Data Input - BAT'!$D96,'Energy Prices'!$C$12:$C$17,0),MATCH('Data Input - BAT'!AB$7,'Energy Prices'!$F$11:$CR$11,0))/100000,\"\")","v":0},{"$f":"IFERROR(AC88*INDEX('Energy Prices'!$F$12:$CR$17,MATCH('Data Input - BAT'!$D96,'Energy Prices'!$C$12:$C$17,0),MATCH('Data Input - BAT'!AC$7,'Energy Prices'!$F$11:$CR$11,0))/100000,\"\")","v":0},{"$f":"IFERROR(AD88*INDEX('Energy Prices'!$F$12:$CR$17,MATCH('Data Input - BAT'!$D96,'Energy Prices'!$C$12:$C$17,0),MATCH('Data Input - BAT'!AD$7,'Energy Prices'!$F$11:$CR$11,0))/100000,\"\")","v":0},{"$f":"IFERROR(AE88*INDEX('Energy Prices'!$F$12:$CR$17,MATCH('Data Input - BAT'!$D96,'Energy Prices'!$C$12:$C$17,0),MATCH('Data Input - BAT'!AE$7,'Energy Prices'!$F$11:$CR$11,0))/100000,\"\")","v":0},{"$f":"IFERROR(AF88*INDEX('Energy Prices'!$F$12:$CR$17,MATCH('Data Input - BAT'!$D96,'Energy Prices'!$C$12:$C$17,0),MATCH('Data Input - BAT'!AF$7,'Energy Prices'!$F$11:$CR$11,0))/100000,\"\")","v":0},{"$f":"IFERROR(AG88*INDEX('Energy Prices'!$F$12:$CR$17,MATCH('Data Input - BAT'!$D96,'Energy Prices'!$C$12:$C$17,0),MATCH('Data Input - BAT'!AG$7,'Energy Prices'!$F$11:$CR$11,0))/100000,\"\")","v":0},{"$f":"IFERROR(AH88*INDEX('Energy Prices'!$F$12:$CR$17,MATCH('Data Input - BAT'!$D96,'Energy Prices'!$C$12:$C$17,0),MATCH('Data Input - BAT'!AH$7,'Energy Prices'!$F$11:$CR$11,0))/100000,\"\")","v":0},{"$f":"IFERROR(AI88*INDEX('Energy Prices'!$F$12:$CR$17,MATCH('Data Input - BAT'!$D96,'Energy Prices'!$C$12:$C$17,0),MATCH('Data Input - BAT'!AI$7,'Energy Prices'!$F$11:$CR$11,0))/100000,\"\")","v":0},{"$f":"IFERROR(AJ88*INDEX('Energy Prices'!$F$12:$CR$17,MATCH('Data Input - BAT'!$D96,'Energy Prices'!$C$12:$C$17,0),MATCH('Data Input - BAT'!AJ$7,'Energy Prices'!$F$11:$CR$11,0))/100000,\"\")","v":0},{"$f":"IFERROR(AK88*INDEX('Energy Prices'!$F$12:$CR$17,MATCH('Data Input - BAT'!$D96,'Energy Prices'!$C$12:$C$17,0),MATCH('Data Input - BAT'!AK$7,'Energy Prices'!$F$11:$CR$11,0))/100000,\"\")","v":0},{"$f":"IFERROR(AL88*INDEX('Energy Prices'!$F$12:$CR$17,MATCH('Data Input - BAT'!$D96,'Energy Prices'!$C$12:$C$17,0),MATCH('Data Input - BAT'!AL$7,'Energy Prices'!$F$11:$CR$11,0))/100000,\"\")","v":0},{"$f":"IFERROR(AM88*INDEX('Energy Prices'!$F$12:$CR$17,MATCH('Data Input - BAT'!$D96,'Energy Prices'!$C$12:$C$17,0),MATCH('Data Input - BAT'!AM$7,'Energy Prices'!$F$11:$CR$11,0))/100000,\"\")","v":""},{"$f":"IFERROR(AN88*INDEX('Energy Prices'!$F$12:$CR$17,MATCH('Data Input - BAT'!$D96,'Energy Prices'!$C$12:$C$17,0),MATCH('Data Input - BAT'!AN$7,'Energy Prices'!$F$11:$CR$11,0))/100000,\"\")","v":""},{"$f":"IFERROR(AO88*INDEX('Energy Prices'!$F$12:$CR$17,MATCH('Data Input - BAT'!$D96,'Energy Prices'!$C$12:$C$17,0),MATCH('Data Input - BAT'!AO$7,'Energy Prices'!$F$11:$CR$11,0))/100000,\"\")","v":""},{"$f":"IFERROR(AP88*INDEX('Energy Prices'!$F$12:$CR$17,MATCH('Data Input - BAT'!$D96,'Energy Prices'!$C$12:$C$17,0),MATCH('Data Input - BAT'!AP$7,'Energy Prices'!$F$11:$CR$11,0))/100000,\"\")","v":""},{"$f":"IFERROR(AQ88*INDEX('Energy Prices'!$F$12:$CR$17,MATCH('Data Input - BAT'!$D96,'Energy Prices'!$C$12:$C$17,0),MATCH('Data Input - BAT'!AQ$7,'Energy Prices'!$F$11:$CR$11,0))/100000,\"\")","v":""},{"$f":"IFERROR(AR88*INDEX('Energy Prices'!$F$12:$CR$17,MATCH('Data Input - BAT'!$D96,'Energy Prices'!$C$12:$C$17,0),MATCH('Data Input - BAT'!AR$7,'Energy Prices'!$F$11:$CR$11,0))/100000,\"\")","v":""},{"$f":"IFERROR(AS88*INDEX('Energy Prices'!$F$12:$CR$17,MATCH('Data Input - BAT'!$D96,'Energy Prices'!$C$12:$C$17,0),MATCH('Data Input - BAT'!AS$7,'Energy Prices'!$F$11:$CR$11,0))/100000,\"\")","v":""},{"$f":"IFERROR(AT88*INDEX('Energy Prices'!$F$12:$CR$17,MATCH('Data Input - BAT'!$D96,'Energy Prices'!$C$12:$C$17,0),MATCH('Data Input - BAT'!AT$7,'Energy Prices'!$F$11:$CR$11,0))/100000,\"\")","v":""},{"$f":"IFERROR(AU88*INDEX('Energy Prices'!$F$12:$CR$17,MATCH('Data Input - BAT'!$D96,'Energy Prices'!$C$12:$C$17,0),MATCH('Data Input - BAT'!AU$7,'Energy Prices'!$F$11:$CR$11,0))/100000,\"\")","v":""},{"$f":"IFERROR(AV88*INDEX('Energy Prices'!$F$12:$CR$17,MATCH('Data Input - BAT'!$D96,'Energy Prices'!$C$12:$C$17,0),MATCH('Data Input - BAT'!AV$7,'Energy Prices'!$F$11:$CR$11,0))/100000,\"\")","v":""},{"$f":"IFERROR(AW88*INDEX('Energy Prices'!$F$12:$CR$17,MATCH('Data Input - BAT'!$D96,'Energy Prices'!$C$12:$C$17,0),MATCH('Data Input - BAT'!AW$7,'Energy Prices'!$F$11:$CR$11,0))/100000,\"\")","v":""},{"$f":"IFERROR(AX88*INDEX('Energy Prices'!$F$12:$CR$17,MATCH('Data Input - BAT'!$D96,'Energy Prices'!$C$12:$C$17,0),MATCH('Data Input - BAT'!AX$7,'Energy Prices'!$F$11:$CR$11,0))/100000,\"\")","v":""},{"$f":"IFERROR(AY88*INDEX('Energy Prices'!$F$12:$CR$17,MATCH('Data Input - BAT'!$D96,'Energy Prices'!$C$12:$C$17,0),MATCH('Data Input - BAT'!AY$7,'Energy Prices'!$F$11:$CR$11,0))/100000,\"\")","v":""},{"$f":"IFERROR(AZ88*INDEX('Energy Prices'!$F$12:$CR$17,MATCH('Data Input - BAT'!$D96,'Energy Prices'!$C$12:$C$17,0),MATCH('Data Input - BAT'!AZ$7,'Energy Prices'!$F$11:$CR$11,0))/100000,\"\")","v":""},{"$f":"IFERROR(BA88*INDEX('Energy Prices'!$F$12:$CR$17,MATCH('Data Input - BAT'!$D96,'Energy Prices'!$C$12:$C$17,0),MATCH('Data Input - BAT'!BA$7,'Energy Prices'!$F$11:$CR$11,0))/100000,\"\")","v":""},{"$f":"IFERROR(BB88*INDEX('Energy Prices'!$F$12:$CR$17,MATCH('Data Input - BAT'!$D96,'Energy Prices'!$C$12:$C$17,0),MATCH('Data Input - BAT'!BB$7,'Energy Prices'!$F$11:$CR$11,0))/100000,\"\")","v":""},{"$f":"IFERROR(BC88*INDEX('Energy Prices'!$F$12:$CR$17,MATCH('Data Input - BAT'!$D96,'Energy Prices'!$C$12:$C$17,0),MATCH('Data Input - BAT'!BC$7,'Energy Prices'!$F$11:$CR$11,0))/100000,\"\")","v":""},{"$f":"IFERROR(BD88*INDEX('Energy Prices'!$F$12:$CR$17,MATCH('Data Input - BAT'!$D96,'Energy Prices'!$C$12:$C$17,0),MATCH('Data Input - BAT'!BD$7,'Energy Prices'!$F$11:$CR$11,0))/100000,\"\")","v":""},{"$f":"IFERROR(BE88*INDEX('Energy Prices'!$F$12:$CR$17,MATCH('Data Input - BAT'!$D96,'Energy Prices'!$C$12:$C$17,0),MATCH('Data Input - BAT'!BE$7,'Energy Prices'!$F$11:$CR$11,0))/100000,\"\")","v":""},{"$f":"IFERROR(BF88*INDEX('Energy Prices'!$F$12:$CR$17,MATCH('Data Input - BAT'!$D96,'Energy Prices'!$C$12:$C$17,0),MATCH('Data Input - BAT'!BF$7,'Energy Prices'!$F$11:$CR$11,0))/100000,\"\")","v":""},{"$f":"IFERROR(BG88*INDEX('Energy Prices'!$F$12:$CR$17,MATCH('Data Input - BAT'!$D96,'Energy Prices'!$C$12:$C$17,0),MATCH('Data Input - BAT'!BG$7,'Energy Prices'!$F$11:$CR$11,0))/100000,\"\")","v":""},{"$f":"IFERROR(BH88*INDEX('Energy Prices'!$F$12:$CR$17,MATCH('Data Input - BAT'!$D96,'Energy Prices'!$C$12:$C$17,0),MATCH('Data Input - BAT'!BH$7,'Energy Prices'!$F$11:$CR$11,0))/100000,\"\")","v":""},{"$f":"IFERROR(BI88*INDEX('Energy Prices'!$F$12:$CR$17,MATCH('Data Input - BAT'!$D96,'Energy Prices'!$C$12:$C$17,0),MATCH('Data Input - BAT'!BI$7,'Energy Prices'!$F$11:$CR$11,0))/100000,\"\")","v":""},{"$f":"IFERROR(BJ88*INDEX('Energy Prices'!$F$12:$CR$17,MATCH('Data Input - BAT'!$D96,'Energy Prices'!$C$12:$C$17,0),MATCH('Data Input - BAT'!BJ$7,'Energy Prices'!$F$11:$CR$11,0))/100000,\"\")","v":""},{"$f":"IFERROR(BK88*INDEX('Energy Prices'!$F$12:$CR$17,MATCH('Data Input - BAT'!$D96,'Energy Prices'!$C$12:$C$17,0),MATCH('Data Input - BAT'!BK$7,'Energy Prices'!$F$11:$CR$11,0))/100000,\"\")","v":""},{"$f":"IFERROR(BL88*INDEX('Energy Prices'!$F$12:$CR$17,MATCH('Data Input - BAT'!$D96,'Energy Prices'!$C$12:$C$17,0),MATCH('Data Input - BAT'!BL$7,'Energy Prices'!$F$11:$CR$11,0))/100000,\"\")","v":""},{"$f":"IFERROR(BM88*INDEX('Energy Prices'!$F$12:$CR$17,MATCH('Data Input - BAT'!$D96,'Energy Prices'!$C$12:$C$17,0),MATCH('Data Input - BAT'!BM$7,'Energy Prices'!$F$11:$CR$11,0))/100000,\"\")","v":""},{"$f":"IFERROR(BN88*INDEX('Energy Prices'!$F$12:$CR$17,MATCH('Data Input - BAT'!$D96,'Energy Prices'!$C$12:$C$17,0),MATCH('Data Input - BAT'!BN$7,'Energy Prices'!$F$11:$CR$11,0))/100000,\"\")","v":""},{"$f":"IFERROR(BO88*INDEX('Energy Prices'!$F$12:$CR$17,MATCH('Data Input - BAT'!$D96,'Energy Prices'!$C$12:$C$17,0),MATCH('Data Input - BAT'!BO$7,'Energy Prices'!$F$11:$CR$11,0))/100000,\"\")","v":""},{"$f":"IFERROR(BP88*INDEX('Energy Prices'!$F$12:$CR$17,MATCH('Data Input - BAT'!$D96,'Energy Prices'!$C$12:$C$17,0),MATCH('Data Input - BAT'!BP$7,'Energy Prices'!$F$11:$CR$11,0))/100000,\"\")","v":""},{"$f":"IFERROR(BQ88*INDEX('Energy Prices'!$F$12:$CR$17,MATCH('Data Input - BAT'!$D96,'Energy Prices'!$C$12:$C$17,0),MATCH('Data Input - BAT'!BQ$7,'Energy Prices'!$F$11:$CR$11,0))/100000,\"\")","v":""},{"$f":"IFERROR(BR88*INDEX('Energy Prices'!$F$12:$CR$17,MATCH('Data Input - BAT'!$D96,'Energy Prices'!$C$12:$C$17,0),MATCH('Data Input - BAT'!BR$7,'Energy Prices'!$F$11:$CR$11,0))/100000,\"\")","v":""},{"$f":"IFERROR(BS88*INDEX('Energy Prices'!$F$12:$CR$17,MATCH('Data Input - BAT'!$D96,'Energy Prices'!$C$12:$C$17,0),MATCH('Data Input - BAT'!BS$7,'Energy Prices'!$F$11:$CR$11,0))/100000,\"\")","v":""},{"$f":"IFERROR(BT88*INDEX('Energy Prices'!$F$12:$CR$17,MATCH('Data Input - BAT'!$D96,'Energy Prices'!$C$12:$C$17,0),MATCH('Data Input - BAT'!BT$7,'Energy Prices'!$F$11:$CR$11,0))/100000,\"\")","v":""},{"$f":"IFERROR(BU88*INDEX('Energy Prices'!$F$12:$CR$17,MATCH('Data Input - BAT'!$D96,'Energy Prices'!$C$12:$C$17,0),MATCH('Data Input - BAT'!BU$7,'Energy Prices'!$F$11:$CR$11,0))/100000,\"\")","v":""},{"$f":"IFERROR(BV88*INDEX('Energy Prices'!$F$12:$CR$17,MATCH('Data Input - BAT'!$D96,'Energy Prices'!$C$12:$C$17,0),MATCH('Data Input - BAT'!BV$7,'Energy Prices'!$F$11:$CR$11,0))/100000,\"\")","v":""},{"$f":"IFERROR(BW88*INDEX('Energy Prices'!$F$12:$CR$17,MATCH('Data Input - BAT'!$D96,'Energy Prices'!$C$12:$C$17,0),MATCH('Data Input - BAT'!BW$7,'Energy Prices'!$F$11:$CR$11,0))/100000,\"\")","v":""},{"$f":"IFERROR(BX88*INDEX('Energy Prices'!$F$12:$CR$17,MATCH('Data Input - BAT'!$D96,'Energy Prices'!$C$12:$C$17,0),MATCH('Data Input - BAT'!BX$7,'Energy Prices'!$F$11:$CR$11,0))/100000,\"\")","v":""},{"$f":"IFERROR(BY88*INDEX('Energy Prices'!$F$12:$CR$17,MATCH('Data Input - BAT'!$D96,'Energy Prices'!$C$12:$C$17,0),MATCH('Data Input - BAT'!BY$7,'Energy Prices'!$F$11:$CR$11,0))/100000,\"\")","v":""},{"$f":"IFERROR(BZ88*INDEX('Energy Prices'!$F$12:$CR$17,MATCH('Data Input - BAT'!$D96,'Energy Prices'!$C$12:$C$17,0),MATCH('Data Input - BAT'!BZ$7,'Energy Prices'!$F$11:$CR$11,0))/100000,\"\")","v":""},{"$f":"IFERROR(CA88*INDEX('Energy Prices'!$F$12:$CR$17,MATCH('Data Input - BAT'!$D96,'Energy Prices'!$C$12:$C$17,0),MATCH('Data Input - BAT'!CA$7,'Energy Prices'!$F$11:$CR$11,0))/100000,\"\")","v":""},{"$f":"IFERROR(CB88*INDEX('Energy Prices'!$F$12:$CR$17,MATCH('Data Input - BAT'!$D96,'Energy Prices'!$C$12:$C$17,0),MATCH('Data Input - BAT'!CB$7,'Energy Prices'!$F$11:$CR$11,0))/100000,\"\")","v":""},{"$f":"IFERROR(CC88*INDEX('Energy Prices'!$F$12:$CR$17,MATCH('Data Input - BAT'!$D96,'Energy Prices'!$C$12:$C$17,0),MATCH('Data Input - BAT'!CC$7,'Energy Prices'!$F$11:$CR$11,0))/100000,\"\")","v":""},{"$f":"IFERROR(CD88*INDEX('Energy Prices'!$F$12:$CR$17,MATCH('Data Input - BAT'!$D96,'Energy Prices'!$C$12:$C$17,0),MATCH('Data Input - BAT'!CD$7,'Energy Prices'!$F$11:$CR$11,0))/100000,\"\")","v":""},{"$f":"IFERROR(CE88*INDEX('Energy Prices'!$F$12:$CR$17,MATCH('Data Input - BAT'!$D96,'Energy Prices'!$C$12:$C$17,0),MATCH('Data Input - BAT'!CE$7,'Energy Prices'!$F$11:$CR$11,0))/100000,\"\")","v":""},{"$f":"IFERROR(CF88*INDEX('Energy Prices'!$F$12:$CR$17,MATCH('Data Input - BAT'!$D96,'Energy Prices'!$C$12:$C$17,0),MATCH('Data Input - BAT'!CF$7,'Energy Prices'!$F$11:$CR$11,0))/100000,\"\")","v":""},{"$f":"IFERROR(CG88*INDEX('Energy Prices'!$F$12:$CR$17,MATCH('Data Input - BAT'!$D96,'Energy Prices'!$C$12:$C$17,0),MATCH('Data Input - BAT'!CG$7,'Energy Prices'!$F$11:$CR$11,0))/100000,\"\")","v":""},{"$f":"IFERROR(CH88*INDEX('Energy Prices'!$F$12:$CR$17,MATCH('Data Input - BAT'!$D96,'Energy Prices'!$C$12:$C$17,0),MATCH('Data Input - BAT'!CH$7,'Energy Prices'!$F$11:$CR$11,0))/100000,\"\")","v":""},{"$f":"IFERROR(CI88*INDEX('Energy Prices'!$F$12:$CR$17,MATCH('Data Input - BAT'!$D96,'Energy Prices'!$C$12:$C$17,0),MATCH('Data Input - BAT'!CI$7,'Energy Prices'!$F$11:$CR$11,0))/100000,\"\")","v":""},{"$f":"IFERROR(CJ88*INDEX('Energy Prices'!$F$12:$CR$17,MATCH('Data Input - BAT'!$D96,'Energy Prices'!$C$12:$C$17,0),MATCH('Data Input - BAT'!CJ$7,'Energy Prices'!$F$11:$CR$11,0))/100000,\"\")","v":""},{"$f":"IFERROR(CK88*INDEX('Energy Prices'!$F$12:$CR$17,MATCH('Data Input - BAT'!$D96,'Energy Prices'!$C$12:$C$17,0),MATCH('Data Input - BAT'!CK$7,'Energy Prices'!$F$11:$CR$11,0))/100000,\"\")","v":""},{"$f":"IFERROR(CL88*INDEX('Energy Prices'!$F$12:$CR$17,MATCH('Data Input - BAT'!$D96,'Energy Prices'!$C$12:$C$17,0),MATCH('Data Input - BAT'!CL$7,'Energy Prices'!$F$11:$CR$11,0))/100000,\"\")","v":""},{"$f":"IFERROR(CM88*INDEX('Energy Prices'!$F$12:$CR$17,MATCH('Data Input - BAT'!$D96,'Energy Prices'!$C$12:$C$17,0),MATCH('Data Input - BAT'!CM$7,'Energy Prices'!$F$11:$CR$11,0))/100000,\"\")","v":""},{"$f":"IFERROR(CN88*INDEX('Energy Prices'!$F$12:$CR$17,MATCH('Data Input - BAT'!$D96,'Energy Prices'!$C$12:$C$17,0),MATCH('Data Input - BAT'!CN$7,'Energy Prices'!$F$11:$CR$11,0))/100000,\"\")","v":""},{"$f":"IFERROR(CO88*INDEX('Energy Prices'!$F$12:$CR$17,MATCH('Data Input - BAT'!$D96,'Energy Prices'!$C$12:$C$17,0),MATCH('Data Input - BAT'!CO$7,'Energy Prices'!$F$11:$CR$11,0))/100000,\"\")","v":""},{"$f":"IFERROR(CP88*INDEX('Energy Prices'!$F$12:$CR$17,MATCH('Data Input - BAT'!$D96,'Energy Prices'!$C$12:$C$17,0),MATCH('Data Input - BAT'!CP$7,'Energy Prices'!$F$11:$CR$11,0))/100000,\"\")","v":""},{"$f":"IFERROR(CQ88*INDEX('Energy Prices'!$F$12:$CR$17,MATCH('Data Input - BAT'!$D96,'Energy Prices'!$C$12:$C$17,0),MATCH('Data Input - BAT'!CQ$7,'Energy Prices'!$F$11:$CR$11,0))/100000,\"\")","v":""},{"$f":"IFERROR(CR88*INDEX('Energy Prices'!$F$12:$CR$17,MATCH('Data Input - BAT'!$D96,'Energy Prices'!$C$12:$C$17,0),MATCH('Data Input - BAT'!CR$7,'Energy Prices'!$F$11:$CR$11,0))/100000,\"\")","v":""},{"$f":"IFERROR(CS88*INDEX('Energy Prices'!$F$12:$CR$17,MATCH('Data Input - BAT'!$D96,'Energy Prices'!$C$12:$C$17,0),MATCH('Data Input - BAT'!CS$7,'Energy Prices'!$F$11:$CR$11,0))/100000,\"\")","v":""},{"$f":"IFERROR(CT88*INDEX('Energy Prices'!$F$12:$CR$17,MATCH('Data Input - BAT'!$D96,'Energy Prices'!$C$12:$C$17,0),MATCH('Data Input - BAT'!CT$7,'Energy Prices'!$F$11:$CR$11,0))/100000,\"\")","v":""},{"$f":"IFERROR(CU88*INDEX('Energy Prices'!$F$12:$CR$17,MATCH('Data Input - BAT'!$D96,'Energy Prices'!$C$12:$C$17,0),MATCH('Data Input - BAT'!CU$7,'Energy Prices'!$F$11:$CR$11,0))/100000,\"\")","v":""},{"$f":"IFERROR(CV88*INDEX('Energy Prices'!$F$12:$CR$17,MATCH('Data Input - BAT'!$D96,'Energy Prices'!$C$12:$C$17,0),MATCH('Data Input - BAT'!CV$7,'Energy Prices'!$F$11:$CR$11,0))/100000,\"\")","v":""},{"$f":"IFERROR(CW88*INDEX('Energy Prices'!$F$12:$CR$17,MATCH('Data Input - BAT'!$D96,'Energy Prices'!$C$12:$C$17,0),MATCH('Data Input - BAT'!CW$7,'Energy Prices'!$F$11:$CR$11,0))/100000,\"\")","v":""},{"$f":"IFERROR(CX88*INDEX('Energy Prices'!$F$12:$CR$17,MATCH('Data Input - BAT'!$D96,'Energy Prices'!$C$12:$C$17,0),MATCH('Data Input - BAT'!CX$7,'Energy Prices'!$F$11:$CR$11,0))/100000,\"\")","v":""},{"$f":"IFERROR(CY88*INDEX('Energy Prices'!$F$12:$CR$17,MATCH('Data Input - BAT'!$D96,'Energy Prices'!$C$12:$C$17,0),MATCH('Data Input - BAT'!CY$7,'Energy Prices'!$F$11:$CR$11,0))/100000,\"\")","v":""},{"$f":"IFERROR(CZ88*INDEX('Energy Prices'!$F$12:$CR$17,MATCH('Data Input - BAT'!$D96,'Energy Prices'!$C$12:$C$17,0),MATCH('Data Input - BAT'!CZ$7,'Energy Prices'!$F$11:$CR$11,0))/100000,\"\")","v":""},{"$f":"IFERROR(DA88*INDEX('Energy Prices'!$F$12:$CR$17,MATCH('Data Input - BAT'!$D96,'Energy Prices'!$C$12:$C$17,0),MATCH('Data Input - BAT'!DA$7,'Energy Prices'!$F$11:$CR$11,0))/100000,\"\")","v":""},{"$f":"IFERROR(DB88*INDEX('Energy Prices'!$F$12:$CR$17,MATCH('Data Input - BAT'!$D96,'Energy Prices'!$C$12:$C$17,0),MATCH('Data Input - BAT'!DB$7,'Energy Prices'!$F$11:$CR$11,0))/100000,\"\")","v":""},{"$f":"IFERROR(DC88*INDEX('Energy Prices'!$F$12:$CR$17,MATCH('Data Input - BAT'!$D96,'Energy Prices'!$C$12:$C$17,0),MATCH('Data Input - BAT'!DC$7,'Energy Prices'!$F$11:$CR$11,0))/100000,\"\")","v":""}]
[null,null,null,"Road - Diesel","£000's","(Auto calculated value)",null,{"$f":"IFERROR(H89*INDEX('Energy Prices'!$F$12:$CR$17,MATCH('Data Input - BAT'!$D97,'Energy Prices'!$C$12:$C$17,0),MATCH('Data Input - BAT'!H$7,'Energy Prices'!$F$11:$CR$11,0))/100000,\"\")","v":0},{"$f":"IFERROR(I89*INDEX('Energy Prices'!$F$12:$CR$17,MATCH('Data Input - BAT'!$D97,'Energy Prices'!$C$12:$C$17,0),MATCH('Data Input - BAT'!I$7,'Energy Prices'!$F$11:$CR$11,0))/100000,\"\")","v":0},{"$f":"IFERROR(J89*INDEX('Energy Prices'!$F$12:$CR$17,MATCH('Data Input - BAT'!$D97,'Energy Prices'!$C$12:$C$17,0),MATCH('Data Input - BAT'!J$7,'Energy Prices'!$F$11:$CR$11,0))/100000,\"\")","v":0},{"$f":"IFERROR(K89*INDEX('Energy Prices'!$F$12:$CR$17,MATCH('Data Input - BAT'!$D97,'Energy Prices'!$C$12:$C$17,0),MATCH('Data Input - BAT'!K$7,'Energy Prices'!$F$11:$CR$11,0))/100000,\"\")","v":0},{"$f":"IFERROR(L89*INDEX('Energy Prices'!$F$12:$CR$17,MATCH('Data Input - BAT'!$D97,'Energy Prices'!$C$12:$C$17,0),MATCH('Data Input - BAT'!L$7,'Energy Prices'!$F$11:$CR$11,0))/100000,\"\")","v":0},{"$f":"IFERROR(M89*INDEX('Energy Prices'!$F$12:$CR$17,MATCH('Data Input - BAT'!$D97,'Energy Prices'!$C$12:$C$17,0),MATCH('Data Input - BAT'!M$7,'Energy Prices'!$F$11:$CR$11,0))/100000,\"\")","v":0},{"$f":"IFERROR(N89*INDEX('Energy Prices'!$F$12:$CR$17,MATCH('Data Input - BAT'!$D97,'Energy Prices'!$C$12:$C$17,0),MATCH('Data Input - BAT'!N$7,'Energy Prices'!$F$11:$CR$11,0))/100000,\"\")","v":0},{"$f":"IFERROR(O89*INDEX('Energy Prices'!$F$12:$CR$17,MATCH('Data Input - BAT'!$D97,'Energy Prices'!$C$12:$C$17,0),MATCH('Data Input - BAT'!O$7,'Energy Prices'!$F$11:$CR$11,0))/100000,\"\")","v":0},{"$f":"IFERROR(P89*INDEX('Energy Prices'!$F$12:$CR$17,MATCH('Data Input - BAT'!$D97,'Energy Prices'!$C$12:$C$17,0),MATCH('Data Input - BAT'!P$7,'Energy Prices'!$F$11:$CR$11,0))/100000,\"\")","v":0},{"$f":"IFERROR(Q89*INDEX('Energy Prices'!$F$12:$CR$17,MATCH('Data Input - BAT'!$D97,'Energy Prices'!$C$12:$C$17,0),MATCH('Data Input - BAT'!Q$7,'Energy Prices'!$F$11:$CR$11,0))/100000,\"\")","v":0},{"$f":"IFERROR(R89*INDEX('Energy Prices'!$F$12:$CR$17,MATCH('Data Input - BAT'!$D97,'Energy Prices'!$C$12:$C$17,0),MATCH('Data Input - BAT'!R$7,'Energy Prices'!$F$11:$CR$11,0))/100000,\"\")","v":0},{"$f":"IFERROR(S89*INDEX('Energy Prices'!$F$12:$CR$17,MATCH('Data Input - BAT'!$D97,'Energy Prices'!$C$12:$C$17,0),MATCH('Data Input - BAT'!S$7,'Energy Prices'!$F$11:$CR$11,0))/100000,\"\")","v":0},{"$f":"IFERROR(T89*INDEX('Energy Prices'!$F$12:$CR$17,MATCH('Data Input - BAT'!$D97,'Energy Prices'!$C$12:$C$17,0),MATCH('Data Input - BAT'!T$7,'Energy Prices'!$F$11:$CR$11,0))/100000,\"\")","v":0},{"$f":"IFERROR(U89*INDEX('Energy Prices'!$F$12:$CR$17,MATCH('Data Input - BAT'!$D97,'Energy Prices'!$C$12:$C$17,0),MATCH('Data Input - BAT'!U$7,'Energy Prices'!$F$11:$CR$11,0))/100000,\"\")","v":0},{"$f":"IFERROR(V89*INDEX('Energy Prices'!$F$12:$CR$17,MATCH('Data Input - BAT'!$D97,'Energy Prices'!$C$12:$C$17,0),MATCH('Data Input - BAT'!V$7,'Energy Prices'!$F$11:$CR$11,0))/100000,\"\")","v":0},{"$f":"IFERROR(W89*INDEX('Energy Prices'!$F$12:$CR$17,MATCH('Data Input - BAT'!$D97,'Energy Prices'!$C$12:$C$17,0),MATCH('Data Input - BAT'!W$7,'Energy Prices'!$F$11:$CR$11,0))/100000,\"\")","v":0},{"$f":"IFERROR(X89*INDEX('Energy Prices'!$F$12:$CR$17,MATCH('Data Input - BAT'!$D97,'Energy Prices'!$C$12:$C$17,0),MATCH('Data Input - BAT'!X$7,'Energy Prices'!$F$11:$CR$11,0))/100000,\"\")","v":0},{"$f":"IFERROR(Y89*INDEX('Energy Prices'!$F$12:$CR$17,MATCH('Data Input - BAT'!$D97,'Energy Prices'!$C$12:$C$17,0),MATCH('Data Input - BAT'!Y$7,'Energy Prices'!$F$11:$CR$11,0))/100000,\"\")","v":0},{"$f":"IFERROR(Z89*INDEX('Energy Prices'!$F$12:$CR$17,MATCH('Data Input - BAT'!$D97,'Energy Prices'!$C$12:$C$17,0),MATCH('Data Input - BAT'!Z$7,'Energy Prices'!$F$11:$CR$11,0))/100000,\"\")","v":0},{"$f":"IFERROR(AA89*INDEX('Energy Prices'!$F$12:$CR$17,MATCH('Data Input - BAT'!$D97,'Energy Prices'!$C$12:$C$17,0),MATCH('Data Input - BAT'!AA$7,'Energy Prices'!$F$11:$CR$11,0))/100000,\"\")","v":0},{"$f":"IFERROR(AB89*INDEX('Energy Prices'!$F$12:$CR$17,MATCH('Data Input - BAT'!$D97,'Energy Prices'!$C$12:$C$17,0),MATCH('Data Input - BAT'!AB$7,'Energy Prices'!$F$11:$CR$11,0))/100000,\"\")","v":0},{"$f":"IFERROR(AC89*INDEX('Energy Prices'!$F$12:$CR$17,MATCH('Data Input - BAT'!$D97,'Energy Prices'!$C$12:$C$17,0),MATCH('Data Input - BAT'!AC$7,'Energy Prices'!$F$11:$CR$11,0))/100000,\"\")","v":0},{"$f":"IFERROR(AD89*INDEX('Energy Prices'!$F$12:$CR$17,MATCH('Data Input - BAT'!$D97,'Energy Prices'!$C$12:$C$17,0),MATCH('Data Input - BAT'!AD$7,'Energy Prices'!$F$11:$CR$11,0))/100000,\"\")","v":0},{"$f":"IFERROR(AE89*INDEX('Energy Prices'!$F$12:$CR$17,MATCH('Data Input - BAT'!$D97,'Energy Prices'!$C$12:$C$17,0),MATCH('Data Input - BAT'!AE$7,'Energy Prices'!$F$11:$CR$11,0))/100000,\"\")","v":0},{"$f":"IFERROR(AF89*INDEX('Energy Prices'!$F$12:$CR$17,MATCH('Data Input - BAT'!$D97,'Energy Prices'!$C$12:$C$17,0),MATCH('Data Input - BAT'!AF$7,'Energy Prices'!$F$11:$CR$11,0))/100000,\"\")","v":0},{"$f":"IFERROR(AG89*INDEX('Energy Prices'!$F$12:$CR$17,MATCH('Data Input - BAT'!$D97,'Energy Prices'!$C$12:$C$17,0),MATCH('Data Input - BAT'!AG$7,'Energy Prices'!$F$11:$CR$11,0))/100000,\"\")","v":0},{"$f":"IFERROR(AH89*INDEX('Energy Prices'!$F$12:$CR$17,MATCH('Data Input - BAT'!$D97,'Energy Prices'!$C$12:$C$17,0),MATCH('Data Input - BAT'!AH$7,'Energy Prices'!$F$11:$CR$11,0))/100000,\"\")","v":0},{"$f":"IFERROR(AI89*INDEX('Energy Prices'!$F$12:$CR$17,MATCH('Data Input - BAT'!$D97,'Energy Prices'!$C$12:$C$17,0),MATCH('Data Input - BAT'!AI$7,'Energy Prices'!$F$11:$CR$11,0))/100000,\"\")","v":0},{"$f":"IFERROR(AJ89*INDEX('Energy Prices'!$F$12:$CR$17,MATCH('Data Input - BAT'!$D97,'Energy Prices'!$C$12:$C$17,0),MATCH('Data Input - BAT'!AJ$7,'Energy Prices'!$F$11:$CR$11,0))/100000,\"\")","v":0},{"$f":"IFERROR(AK89*INDEX('Energy Prices'!$F$12:$CR$17,MATCH('Data Input - BAT'!$D97,'Energy Prices'!$C$12:$C$17,0),MATCH('Data Input - BAT'!AK$7,'Energy Prices'!$F$11:$CR$11,0))/100000,\"\")","v":0},{"$f":"IFERROR(AL89*INDEX('Energy Prices'!$F$12:$CR$17,MATCH('Data Input - BAT'!$D97,'Energy Prices'!$C$12:$C$17,0),MATCH('Data Input - BAT'!AL$7,'Energy Prices'!$F$11:$CR$11,0))/100000,\"\")","v":0},{"$f":"IFERROR(AM89*INDEX('Energy Prices'!$F$12:$CR$17,MATCH('Data Input - BAT'!$D97,'Energy Prices'!$C$12:$C$17,0),MATCH('Data Input - BAT'!AM$7,'Energy Prices'!$F$11:$CR$11,0))/100000,\"\")","v":""},{"$f":"IFERROR(AN89*INDEX('Energy Prices'!$F$12:$CR$17,MATCH('Data Input - BAT'!$D97,'Energy Prices'!$C$12:$C$17,0),MATCH('Data Input - BAT'!AN$7,'Energy Prices'!$F$11:$CR$11,0))/100000,\"\")","v":""},{"$f":"IFERROR(AO89*INDEX('Energy Prices'!$F$12:$CR$17,MATCH('Data Input - BAT'!$D97,'Energy Prices'!$C$12:$C$17,0),MATCH('Data Input - BAT'!AO$7,'Energy Prices'!$F$11:$CR$11,0))/100000,\"\")","v":""},{"$f":"IFERROR(AP89*INDEX('Energy Prices'!$F$12:$CR$17,MATCH('Data Input - BAT'!$D97,'Energy Prices'!$C$12:$C$17,0),MATCH('Data Input - BAT'!AP$7,'Energy Prices'!$F$11:$CR$11,0))/100000,\"\")","v":""},{"$f":"IFERROR(AQ89*INDEX('Energy Prices'!$F$12:$CR$17,MATCH('Data Input - BAT'!$D97,'Energy Prices'!$C$12:$C$17,0),MATCH('Data Input - BAT'!AQ$7,'Energy Prices'!$F$11:$CR$11,0))/100000,\"\")","v":""},{"$f":"IFERROR(AR89*INDEX('Energy Prices'!$F$12:$CR$17,MATCH('Data Input - BAT'!$D97,'Energy Prices'!$C$12:$C$17,0),MATCH('Data Input - BAT'!AR$7,'Energy Prices'!$F$11:$CR$11,0))/100000,\"\")","v":""},{"$f":"IFERROR(AS89*INDEX('Energy Prices'!$F$12:$CR$17,MATCH('Data Input - BAT'!$D97,'Energy Prices'!$C$12:$C$17,0),MATCH('Data Input - BAT'!AS$7,'Energy Prices'!$F$11:$CR$11,0))/100000,\"\")","v":""},{"$f":"IFERROR(AT89*INDEX('Energy Prices'!$F$12:$CR$17,MATCH('Data Input - BAT'!$D97,'Energy Prices'!$C$12:$C$17,0),MATCH('Data Input - BAT'!AT$7,'Energy Prices'!$F$11:$CR$11,0))/100000,\"\")","v":""},{"$f":"IFERROR(AU89*INDEX('Energy Prices'!$F$12:$CR$17,MATCH('Data Input - BAT'!$D97,'Energy Prices'!$C$12:$C$17,0),MATCH('Data Input - BAT'!AU$7,'Energy Prices'!$F$11:$CR$11,0))/100000,\"\")","v":""},{"$f":"IFERROR(AV89*INDEX('Energy Prices'!$F$12:$CR$17,MATCH('Data Input - BAT'!$D97,'Energy Prices'!$C$12:$C$17,0),MATCH('Data Input - BAT'!AV$7,'Energy Prices'!$F$11:$CR$11,0))/100000,\"\")","v":""},{"$f":"IFERROR(AW89*INDEX('Energy Prices'!$F$12:$CR$17,MATCH('Data Input - BAT'!$D97,'Energy Prices'!$C$12:$C$17,0),MATCH('Data Input - BAT'!AW$7,'Energy Prices'!$F$11:$CR$11,0))/100000,\"\")","v":""},{"$f":"IFERROR(AX89*INDEX('Energy Prices'!$F$12:$CR$17,MATCH('Data Input - BAT'!$D97,'Energy Prices'!$C$12:$C$17,0),MATCH('Data Input - BAT'!AX$7,'Energy Prices'!$F$11:$CR$11,0))/100000,\"\")","v":""},{"$f":"IFERROR(AY89*INDEX('Energy Prices'!$F$12:$CR$17,MATCH('Data Input - BAT'!$D97,'Energy Prices'!$C$12:$C$17,0),MATCH('Data Input - BAT'!AY$7,'Energy Prices'!$F$11:$CR$11,0))/100000,\"\")","v":""},{"$f":"IFERROR(AZ89*INDEX('Energy Prices'!$F$12:$CR$17,MATCH('Data Input - BAT'!$D97,'Energy Prices'!$C$12:$C$17,0),MATCH('Data Input - BAT'!AZ$7,'Energy Prices'!$F$11:$CR$11,0))/100000,\"\")","v":""},{"$f":"IFERROR(BA89*INDEX('Energy Prices'!$F$12:$CR$17,MATCH('Data Input - BAT'!$D97,'Energy Prices'!$C$12:$C$17,0),MATCH('Data Input - BAT'!BA$7,'Energy Prices'!$F$11:$CR$11,0))/100000,\"\")","v":""},{"$f":"IFERROR(BB89*INDEX('Energy Prices'!$F$12:$CR$17,MATCH('Data Input - BAT'!$D97,'Energy Prices'!$C$12:$C$17,0),MATCH('Data Input - BAT'!BB$7,'Energy Prices'!$F$11:$CR$11,0))/100000,\"\")","v":""},{"$f":"IFERROR(BC89*INDEX('Energy Prices'!$F$12:$CR$17,MATCH('Data Input - BAT'!$D97,'Energy Prices'!$C$12:$C$17,0),MATCH('Data Input - BAT'!BC$7,'Energy Prices'!$F$11:$CR$11,0))/100000,\"\")","v":""},{"$f":"IFERROR(BD89*INDEX('Energy Prices'!$F$12:$CR$17,MATCH('Data Input - BAT'!$D97,'Energy Prices'!$C$12:$C$17,0),MATCH('Data Input - BAT'!BD$7,'Energy Prices'!$F$11:$CR$11,0))/100000,\"\")","v":""},{"$f":"IFERROR(BE89*INDEX('Energy Prices'!$F$12:$CR$17,MATCH('Data Input - BAT'!$D97,'Energy Prices'!$C$12:$C$17,0),MATCH('Data Input - BAT'!BE$7,'Energy Prices'!$F$11:$CR$11,0))/100000,\"\")","v":""},{"$f":"IFERROR(BF89*INDEX('Energy Prices'!$F$12:$CR$17,MATCH('Data Input - BAT'!$D97,'Energy Prices'!$C$12:$C$17,0),MATCH('Data Input - BAT'!BF$7,'Energy Prices'!$F$11:$CR$11,0))/100000,\"\")","v":""},{"$f":"IFERROR(BG89*INDEX('Energy Prices'!$F$12:$CR$17,MATCH('Data Input - BAT'!$D97,'Energy Prices'!$C$12:$C$17,0),MATCH('Data Input - BAT'!BG$7,'Energy Prices'!$F$11:$CR$11,0))/100000,\"\")","v":""},{"$f":"IFERROR(BH89*INDEX('Energy Prices'!$F$12:$CR$17,MATCH('Data Input - BAT'!$D97,'Energy Prices'!$C$12:$C$17,0),MATCH('Data Input - BAT'!BH$7,'Energy Prices'!$F$11:$CR$11,0))/100000,\"\")","v":""},{"$f":"IFERROR(BI89*INDEX('Energy Prices'!$F$12:$CR$17,MATCH('Data Input - BAT'!$D97,'Energy Prices'!$C$12:$C$17,0),MATCH('Data Input - BAT'!BI$7,'Energy Prices'!$F$11:$CR$11,0))/100000,\"\")","v":""},{"$f":"IFERROR(BJ89*INDEX('Energy Prices'!$F$12:$CR$17,MATCH('Data Input - BAT'!$D97,'Energy Prices'!$C$12:$C$17,0),MATCH('Data Input - BAT'!BJ$7,'Energy Prices'!$F$11:$CR$11,0))/100000,\"\")","v":""},{"$f":"IFERROR(BK89*INDEX('Energy Prices'!$F$12:$CR$17,MATCH('Data Input - BAT'!$D97,'Energy Prices'!$C$12:$C$17,0),MATCH('Data Input - BAT'!BK$7,'Energy Prices'!$F$11:$CR$11,0))/100000,\"\")","v":""},{"$f":"IFERROR(BL89*INDEX('Energy Prices'!$F$12:$CR$17,MATCH('Data Input - BAT'!$D97,'Energy Prices'!$C$12:$C$17,0),MATCH('Data Input - BAT'!BL$7,'Energy Prices'!$F$11:$CR$11,0))/100000,\"\")","v":""},{"$f":"IFERROR(BM89*INDEX('Energy Prices'!$F$12:$CR$17,MATCH('Data Input - BAT'!$D97,'Energy Prices'!$C$12:$C$17,0),MATCH('Data Input - BAT'!BM$7,'Energy Prices'!$F$11:$CR$11,0))/100000,\"\")","v":""},{"$f":"IFERROR(BN89*INDEX('Energy Prices'!$F$12:$CR$17,MATCH('Data Input - BAT'!$D97,'Energy Prices'!$C$12:$C$17,0),MATCH('Data Input - BAT'!BN$7,'Energy Prices'!$F$11:$CR$11,0))/100000,\"\")","v":""},{"$f":"IFERROR(BO89*INDEX('Energy Prices'!$F$12:$CR$17,MATCH('Data Input - BAT'!$D97,'Energy Prices'!$C$12:$C$17,0),MATCH('Data Input - BAT'!BO$7,'Energy Prices'!$F$11:$CR$11,0))/100000,\"\")","v":""},{"$f":"IFERROR(BP89*INDEX('Energy Prices'!$F$12:$CR$17,MATCH('Data Input - BAT'!$D97,'Energy Prices'!$C$12:$C$17,0),MATCH('Data Input - BAT'!BP$7,'Energy Prices'!$F$11:$CR$11,0))/100000,\"\")","v":""},{"$f":"IFERROR(BQ89*INDEX('Energy Prices'!$F$12:$CR$17,MATCH('Data Input - BAT'!$D97,'Energy Prices'!$C$12:$C$17,0),MATCH('Data Input - BAT'!BQ$7,'Energy Prices'!$F$11:$CR$11,0))/100000,\"\")","v":""},{"$f":"IFERROR(BR89*INDEX('Energy Prices'!$F$12:$CR$17,MATCH('Data Input - BAT'!$D97,'Energy Prices'!$C$12:$C$17,0),MATCH('Data Input - BAT'!BR$7,'Energy Prices'!$F$11:$CR$11,0))/100000,\"\")","v":""},{"$f":"IFERROR(BS89*INDEX('Energy Prices'!$F$12:$CR$17,MATCH('Data Input - BAT'!$D97,'Energy Prices'!$C$12:$C$17,0),MATCH('Data Input - BAT'!BS$7,'Energy Prices'!$F$11:$CR$11,0))/100000,\"\")","v":""},{"$f":"IFERROR(BT89*INDEX('Energy Prices'!$F$12:$CR$17,MATCH('Data Input - BAT'!$D97,'Energy Prices'!$C$12:$C$17,0),MATCH('Data Input - BAT'!BT$7,'Energy Prices'!$F$11:$CR$11,0))/100000,\"\")","v":""},{"$f":"IFERROR(BU89*INDEX('Energy Prices'!$F$12:$CR$17,MATCH('Data Input - BAT'!$D97,'Energy Prices'!$C$12:$C$17,0),MATCH('Data Input - BAT'!BU$7,'Energy Prices'!$F$11:$CR$11,0))/100000,\"\")","v":""},{"$f":"IFERROR(BV89*INDEX('Energy Prices'!$F$12:$CR$17,MATCH('Data Input - BAT'!$D97,'Energy Prices'!$C$12:$C$17,0),MATCH('Data Input - BAT'!BV$7,'Energy Prices'!$F$11:$CR$11,0))/100000,\"\")","v":""},{"$f":"IFERROR(BW89*INDEX('Energy Prices'!$F$12:$CR$17,MATCH('Data Input - BAT'!$D97,'Energy Prices'!$C$12:$C$17,0),MATCH('Data Input - BAT'!BW$7,'Energy Prices'!$F$11:$CR$11,0))/100000,\"\")","v":""},{"$f":"IFERROR(BX89*INDEX('Energy Prices'!$F$12:$CR$17,MATCH('Data Input - BAT'!$D97,'Energy Prices'!$C$12:$C$17,0),MATCH('Data Input - BAT'!BX$7,'Energy Prices'!$F$11:$CR$11,0))/100000,\"\")","v":""},{"$f":"IFERROR(BY89*INDEX('Energy Prices'!$F$12:$CR$17,MATCH('Data Input - BAT'!$D97,'Energy Prices'!$C$12:$C$17,0),MATCH('Data Input - BAT'!BY$7,'Energy Prices'!$F$11:$CR$11,0))/100000,\"\")","v":""},{"$f":"IFERROR(BZ89*INDEX('Energy Prices'!$F$12:$CR$17,MATCH('Data Input - BAT'!$D97,'Energy Prices'!$C$12:$C$17,0),MATCH('Data Input - BAT'!BZ$7,'Energy Prices'!$F$11:$CR$11,0))/100000,\"\")","v":""},{"$f":"IFERROR(CA89*INDEX('Energy Prices'!$F$12:$CR$17,MATCH('Data Input - BAT'!$D97,'Energy Prices'!$C$12:$C$17,0),MATCH('Data Input - BAT'!CA$7,'Energy Prices'!$F$11:$CR$11,0))/100000,\"\")","v":""},{"$f":"IFERROR(CB89*INDEX('Energy Prices'!$F$12:$CR$17,MATCH('Data Input - BAT'!$D97,'Energy Prices'!$C$12:$C$17,0),MATCH('Data Input - BAT'!CB$7,'Energy Prices'!$F$11:$CR$11,0))/100000,\"\")","v":""},{"$f":"IFERROR(CC89*INDEX('Energy Prices'!$F$12:$CR$17,MATCH('Data Input - BAT'!$D97,'Energy Prices'!$C$12:$C$17,0),MATCH('Data Input - BAT'!CC$7,'Energy Prices'!$F$11:$CR$11,0))/100000,\"\")","v":""},{"$f":"IFERROR(CD89*INDEX('Energy Prices'!$F$12:$CR$17,MATCH('Data Input - BAT'!$D97,'Energy Prices'!$C$12:$C$17,0),MATCH('Data Input - BAT'!CD$7,'Energy Prices'!$F$11:$CR$11,0))/100000,\"\")","v":""},{"$f":"IFERROR(CE89*INDEX('Energy Prices'!$F$12:$CR$17,MATCH('Data Input - BAT'!$D97,'Energy Prices'!$C$12:$C$17,0),MATCH('Data Input - BAT'!CE$7,'Energy Prices'!$F$11:$CR$11,0))/100000,\"\")","v":""},{"$f":"IFERROR(CF89*INDEX('Energy Prices'!$F$12:$CR$17,MATCH('Data Input - BAT'!$D97,'Energy Prices'!$C$12:$C$17,0),MATCH('Data Input - BAT'!CF$7,'Energy Prices'!$F$11:$CR$11,0))/100000,\"\")","v":""},{"$f":"IFERROR(CG89*INDEX('Energy Prices'!$F$12:$CR$17,MATCH('Data Input - BAT'!$D97,'Energy Prices'!$C$12:$C$17,0),MATCH('Data Input - BAT'!CG$7,'Energy Prices'!$F$11:$CR$11,0))/100000,\"\")","v":""},{"$f":"IFERROR(CH89*INDEX('Energy Prices'!$F$12:$CR$17,MATCH('Data Input - BAT'!$D97,'Energy Prices'!$C$12:$C$17,0),MATCH('Data Input - BAT'!CH$7,'Energy Prices'!$F$11:$CR$11,0))/100000,\"\")","v":""},{"$f":"IFERROR(CI89*INDEX('Energy Prices'!$F$12:$CR$17,MATCH('Data Input - BAT'!$D97,'Energy Prices'!$C$12:$C$17,0),MATCH('Data Input - BAT'!CI$7,'Energy Prices'!$F$11:$CR$11,0))/100000,\"\")","v":""},{"$f":"IFERROR(CJ89*INDEX('Energy Prices'!$F$12:$CR$17,MATCH('Data Input - BAT'!$D97,'Energy Prices'!$C$12:$C$17,0),MATCH('Data Input - BAT'!CJ$7,'Energy Prices'!$F$11:$CR$11,0))/100000,\"\")","v":""},{"$f":"IFERROR(CK89*INDEX('Energy Prices'!$F$12:$CR$17,MATCH('Data Input - BAT'!$D97,'Energy Prices'!$C$12:$C$17,0),MATCH('Data Input - BAT'!CK$7,'Energy Prices'!$F$11:$CR$11,0))/100000,\"\")","v":""},{"$f":"IFERROR(CL89*INDEX('Energy Prices'!$F$12:$CR$17,MATCH('Data Input - BAT'!$D97,'Energy Prices'!$C$12:$C$17,0),MATCH('Data Input - BAT'!CL$7,'Energy Prices'!$F$11:$CR$11,0))/100000,\"\")","v":""},{"$f":"IFERROR(CM89*INDEX('Energy Prices'!$F$12:$CR$17,MATCH('Data Input - BAT'!$D97,'Energy Prices'!$C$12:$C$17,0),MATCH('Data Input - BAT'!CM$7,'Energy Prices'!$F$11:$CR$11,0))/100000,\"\")","v":""},{"$f":"IFERROR(CN89*INDEX('Energy Prices'!$F$12:$CR$17,MATCH('Data Input - BAT'!$D97,'Energy Prices'!$C$12:$C$17,0),MATCH('Data Input - BAT'!CN$7,'Energy Prices'!$F$11:$CR$11,0))/100000,\"\")","v":""},{"$f":"IFERROR(CO89*INDEX('Energy Prices'!$F$12:$CR$17,MATCH('Data Input - BAT'!$D97,'Energy Prices'!$C$12:$C$17,0),MATCH('Data Input - BAT'!CO$7,'Energy Prices'!$F$11:$CR$11,0))/100000,\"\")","v":""},{"$f":"IFERROR(CP89*INDEX('Energy Prices'!$F$12:$CR$17,MATCH('Data Input - BAT'!$D97,'Energy Prices'!$C$12:$C$17,0),MATCH('Data Input - BAT'!CP$7,'Energy Prices'!$F$11:$CR$11,0))/100000,\"\")","v":""},{"$f":"IFERROR(CQ89*INDEX('Energy Prices'!$F$12:$CR$17,MATCH('Data Input - BAT'!$D97,'Energy Prices'!$C$12:$C$17,0),MATCH('Data Input - BAT'!CQ$7,'Energy Prices'!$F$11:$CR$11,0))/100000,\"\")","v":""},{"$f":"IFERROR(CR89*INDEX('Energy Prices'!$F$12:$CR$17,MATCH('Data Input - BAT'!$D97,'Energy Prices'!$C$12:$C$17,0),MATCH('Data Input - BAT'!CR$7,'Energy Prices'!$F$11:$CR$11,0))/100000,\"\")","v":""},{"$f":"IFERROR(CS89*INDEX('Energy Prices'!$F$12:$CR$17,MATCH('Data Input - BAT'!$D97,'Energy Prices'!$C$12:$C$17,0),MATCH('Data Input - BAT'!CS$7,'Energy Prices'!$F$11:$CR$11,0))/100000,\"\")","v":""},{"$f":"IFERROR(CT89*INDEX('Energy Prices'!$F$12:$CR$17,MATCH('Data Input - BAT'!$D97,'Energy Prices'!$C$12:$C$17,0),MATCH('Data Input - BAT'!CT$7,'Energy Prices'!$F$11:$CR$11,0))/100000,\"\")","v":""},{"$f":"IFERROR(CU89*INDEX('Energy Prices'!$F$12:$CR$17,MATCH('Data Input - BAT'!$D97,'Energy Prices'!$C$12:$C$17,0),MATCH('Data Input - BAT'!CU$7,'Energy Prices'!$F$11:$CR$11,0))/100000,\"\")","v":""},{"$f":"IFERROR(CV89*INDEX('Energy Prices'!$F$12:$CR$17,MATCH('Data Input - BAT'!$D97,'Energy Prices'!$C$12:$C$17,0),MATCH('Data Input - BAT'!CV$7,'Energy Prices'!$F$11:$CR$11,0))/100000,\"\")","v":""},{"$f":"IFERROR(CW89*INDEX('Energy Prices'!$F$12:$CR$17,MATCH('Data Input - BAT'!$D97,'Energy Prices'!$C$12:$C$17,0),MATCH('Data Input - BAT'!CW$7,'Energy Prices'!$F$11:$CR$11,0))/100000,\"\")","v":""},{"$f":"IFERROR(CX89*INDEX('Energy Prices'!$F$12:$CR$17,MATCH('Data Input - BAT'!$D97,'Energy Prices'!$C$12:$C$17,0),MATCH('Data Input - BAT'!CX$7,'Energy Prices'!$F$11:$CR$11,0))/100000,\"\")","v":""},{"$f":"IFERROR(CY89*INDEX('Energy Prices'!$F$12:$CR$17,MATCH('Data Input - BAT'!$D97,'Energy Prices'!$C$12:$C$17,0),MATCH('Data Input - BAT'!CY$7,'Energy Prices'!$F$11:$CR$11,0))/100000,\"\")","v":""},{"$f":"IFERROR(CZ89*INDEX('Energy Prices'!$F$12:$CR$17,MATCH('Data Input - BAT'!$D97,'Energy Prices'!$C$12:$C$17,0),MATCH('Data Input - BAT'!CZ$7,'Energy Prices'!$F$11:$CR$11,0))/100000,\"\")","v":""},{"$f":"IFERROR(DA89*INDEX('Energy Prices'!$F$12:$CR$17,MATCH('Data Input - BAT'!$D97,'Energy Prices'!$C$12:$C$17,0),MATCH('Data Input - BAT'!DA$7,'Energy Prices'!$F$11:$CR$11,0))/100000,\"\")","v":""},{"$f":"IFERROR(DB89*INDEX('Energy Prices'!$F$12:$CR$17,MATCH('Data Input - BAT'!$D97,'Energy Prices'!$C$12:$C$17,0),MATCH('Data Input - BAT'!DB$7,'Energy Prices'!$F$11:$CR$11,0))/100000,\"\")","v":""},{"$f":"IFERROR(DC89*INDEX('Energy Prices'!$F$12:$CR$17,MATCH('Data Input - BAT'!$D97,'Energy Prices'!$C$12:$C$17,0),MATCH('Data Input - BAT'!DC$7,'Energy Prices'!$F$11:$CR$11,0))/100000,\"\")","v":""}]
[null,null,"6.48",0,"£000's"]
[]
[null,null,null,"Total cost of energy","£000's","(Auto calculated value)",null,{"$f":"SUM(H92:H99)","v":1485.700561305305},{"$f":"SUM(I92:I99)","v":1541.531148540691},{"$f":"SUM(J92:J99)","v":1610.4918821663023},1657.4780678945503,1704.5754416158256,1776.9735001686643,1837.2202118852731,1870.4852286646578,0,0,0,0,0,0,0,0,0,0,0,0,0,0,0,0,0,0,0,0,0,0,0,0,0,0,0,0,0,0,0,0,0,0,0,0,0,0,0,0,0,0,0,0,0,0,0,0,0,0,0,0,0,0,0,0,0,0,{"$f":"SUM(BV92:BV99)","v":0},0,0,0,0,0,0,0,0,0,0,0,0,0,0,0,0,0,0,0,0,0,0,0,0,0,0,0,0,0,0,0,0,0]
[]
[null,null,"Environmental impacts"]
[]
[null,null,null,"Air pollutant emissions","(?)"]
[null,null,"6.49","Sox 2019","Tonnes"," <(Select from dropdown)",null,1,0.26600000000000001,0.26600000000000001,0.26600000000000001,0.26600000000000001,0.26600000000000001,0.26600000000000001,0.26600000000000001]
[null,null,null,null,"Tonnes"," <(Select from dropdown)"]
[null,null,null,null,"Tonnes"," <(Select from dropdown)"]
[null,null,null,null,"Tonnes"," <(Select from dropdown)"]
[null,null,null,null,"Tonnes"," <(Select from dropdown)"]
[null,null,null,null,"Tonnes"," <(Select from dropdown)"]
[]
[null,null,null,"'Process-related' GHG emissions"]
[null,null,"6.50","CO2","Tonnes"," <(Select from dropdown)",null,45000,45000,45000,45000,45000,45000,45000,45000]
[]
[null,null,"6.51","Additional emission type (please specify)","tCO2e","(?)"]
[]
[null,null,null,"Total process GHG Emissions","tCO2e","(Auto calculated value)",null,{"$f":"IFERROR(IF(ISBLANK(H113),0,H113*INDEX(Assumptions!$D$20:$D$53,MATCH($D$113,lkpGreenHouseGases,0)))+IF(ISBLANK(H115),0,H115),0)","v":45000},{"$f":"IFERROR(IF(ISBLANK(I113),0,I113*INDEX(Assumptions!$D$20:$D$53,MATCH($D$113,lkpGreenHouseGases,0)))+IF(ISBLANK(I115),0,I115),0)","v":45000},{"$f":"IFERROR(IF(ISBLANK(J113),0,J113*INDEX(Assumptions!$D$20:$D$53,MATCH($D$113,lkpGreenHouseGases,0)))+IF(ISBLANK(J115),0,J115),0)","v":45000},{"$f":"IFERROR(IF(ISBLANK(K113),0,K113*INDEX(Assumptions!$D$20:$D$53,MATCH($D$113,lkpGreenHouseGases,0)))+IF(ISBLANK(K115),0,K115),0)","v":45000},{"$f":"IFERROR(IF(ISBLANK(L113),0,L113*INDEX(Assumptions!$D$20:$D$53,MATCH($D$113,lkpGreenHouseGases,0)))+IF(ISBLANK(L115),0,L115),0)","v":45000},{"$f":"IFERROR(IF(ISBLANK(M113),0,M113*INDEX(Assumptions!$D$20:$D$53,MATCH($D$113,lkpGreenHouseGases,0)))+IF(ISBLANK(M115),0,M115),0)","v":45000},{"$f":"IFERROR(IF(ISBLANK(N113),0,N113*INDEX(Assumptions!$D$20:$D$53,MATCH($D$113,lkpGreenHouseGases,0)))+IF(ISBLANK(N115),0,N115),0)","v":45000},{"$f":"IFERROR(IF(ISBLANK(O113),0,O113*INDEX(Assumptions!$D$20:$D$53,MATCH($D$113,lkpGreenHouseGases,0)))+IF(ISBLANK(O115),0,O115),0)","v":45000},{"$f":"IFERROR(IF(ISBLANK(P113),0,P113*INDEX(Assumptions!$D$20:$D$53,MATCH($D$113,lkpGreenHouseGases,0)))+IF(ISBLANK(P115),0,P115),0)","v":0},{"$f":"IFERROR(IF(ISBLANK(Q113),0,Q113*INDEX(Assumptions!$D$20:$D$53,MATCH($D$113,lkpGreenHouseGases,0)))+IF(ISBLANK(Q115),0,Q115),0)","v":0},{"$f":"IFERROR(IF(ISBLANK(R113),0,R113*INDEX(Assumptions!$D$20:$D$53,MATCH($D$113,lkpGreenHouseGases,0)))+IF(ISBLANK(R115),0,R115),0)","v":0},{"$f":"IFERROR(IF(ISBLANK(S113),0,S113*INDEX(Assumptions!$D$20:$D$53,MATCH($D$113,lkpGreenHouseGases,0)))+IF(ISBLANK(S115),0,S115),0)","v":0},{"$f":"IFERROR(IF(ISBLANK(T113),0,T113*INDEX(Assumptions!$D$20:$D$53,MATCH($D$113,lkpGreenHouseGases,0)))+IF(ISBLANK(T115),0,T115),0)","v":0},{"$f":"IFERROR(IF(ISBLANK(U113),0,U113*INDEX(Assumptions!$D$20:$D$53,MATCH($D$113,lkpGreenHouseGases,0)))+IF(ISBLANK(U115),0,U115),0)","v":0},{"$f":"IFERROR(IF(ISBLANK(V113),0,V113*INDEX(Assumptions!$D$20:$D$53,MATCH($D$113,lkpGreenHouseGases,0)))+IF(ISBLANK(V115),0,V115),0)","v":0},{"$f":"IFERROR(IF(ISBLANK(W113),0,W113*INDEX(Assumptions!$D$20:$D$53,MATCH($D$113,lkpGreenHouseGases,0)))+IF(ISBLANK(W115),0,W115),0)","v":0},{"$f":"IFERROR(IF(ISBLANK(X113),0,X113*INDEX(Assumptions!$D$20:$D$53,MATCH($D$113,lkpGreenHouseGases,0)))+IF(ISBLANK(X115),0,X115),0)","v":0},{"$f":"IFERROR(IF(ISBLANK(Y113),0,Y113*INDEX(Assumptions!$D$20:$D$53,MATCH($D$113,lkpGreenHouseGases,0)))+IF(ISBLANK(Y115),0,Y115),0)","v":0},{"$f":"IFERROR(IF(ISBLANK(Z113),0,Z113*INDEX(Assumptions!$D$20:$D$53,MATCH($D$113,lkpGreenHouseGases,0)))+IF(ISBLANK(Z115),0,Z115),0)","v":0},{"$f":"IFERROR(IF(ISBLANK(AA113),0,AA113*INDEX(Assumptions!$D$20:$D$53,MATCH($D$113,lkpGreenHouseGases,0)))+IF(ISBLANK(AA115),0,AA115),0)","v":0},{"$f":"IFERROR(IF(ISBLANK(AB113),0,AB113*INDEX(Assumptions!$D$20:$D$53,MATCH($D$113,lkpGreenHouseGases,0)))+IF(ISBLANK(AB115),0,AB115),0)","v":0},{"$f":"IFERROR(IF(ISBLANK(AC113),0,AC113*INDEX(Assumptions!$D$20:$D$53,MATCH($D$113,lkpGreenHouseGases,0)))+IF(ISBLANK(AC115),0,AC115),0)","v":0},{"$f":"IFERROR(IF(ISBLANK(AD113),0,AD113*INDEX(Assumptions!$D$20:$D$53,MATCH($D$113,lkpGreenHouseGases,0)))+IF(ISBLANK(AD115),0,AD115),0)","v":0},{"$f":"IFERROR(IF(ISBLANK(AE113),0,AE113*INDEX(Assumptions!$D$20:$D$53,MATCH($D$113,lkpGreenHouseGases,0)))+IF(ISBLANK(AE115),0,AE115),0)","v":0},{"$f":"IFERROR(IF(ISBLANK(AF113),0,AF113*INDEX(Assumptions!$D$20:$D$53,MATCH($D$113,lkpGreenHouseGases,0)))+IF(ISBLANK(AF115),0,AF115),0)","v":0},{"$f":"IFERROR(IF(ISBLANK(AG113),0,AG113*INDEX(Assumptions!$D$20:$D$53,MATCH($D$113,lkpGreenHouseGases,0)))+IF(ISBLANK(AG115),0,AG115),0)","v":0},{"$f":"IFERROR(IF(ISBLANK(AH113),0,AH113*INDEX(Assumptions!$D$20:$D$53,MATCH($D$113,lkpGreenHouseGases,0)))+IF(ISBLANK(AH115),0,AH115),0)","v":0},{"$f":"IFERROR(IF(ISBLANK(AI113),0,AI113*INDEX(Assumptions!$D$20:$D$53,MATCH($D$113,lkpGreenHouseGases,0)))+IF(ISBLANK(AI115),0,AI115),0)","v":0},{"$f":"IFERROR(IF(ISBLANK(AJ113),0,AJ113*INDEX(Assumptions!$D$20:$D$53,MATCH($D$113,lkpGreenHouseGases,0)))+IF(ISBLANK(AJ115),0,AJ115),0)","v":0},{"$f":"IFERROR(IF(ISBLANK(AK113),0,AK113*INDEX(Assumptions!$D$20:$D$53,MATCH($D$113,lkpGreenHouseGases,0)))+IF(ISBLANK(AK115),0,AK115),0)","v":0},{"$f":"IFERROR(IF(ISBLANK(AL113),0,AL113*INDEX(Assumptions!$D$20:$D$53,MATCH($D$113,lkpGreenHouseGases,0)))+IF(ISBLANK(AL115),0,AL115),0)","v":0},{"$f":"IFERROR(IF(ISBLANK(AM113),0,AM113*INDEX(Assumptions!$D$20:$D$53,MATCH($D$113,lkpGreenHouseGases,0)))+IF(ISBLANK(AM115),0,AM115),0)","v":0},{"$f":"IFERROR(IF(ISBLANK(AN113),0,AN113*INDEX(Assumptions!$D$20:$D$53,MATCH($D$113,lkpGreenHouseGases,0)))+IF(ISBLANK(AN115),0,AN115),0)","v":0},{"$f":"IFERROR(IF(ISBLANK(AO113),0,AO113*INDEX(Assumptions!$D$20:$D$53,MATCH($D$113,lkpGreenHouseGases,0)))+IF(ISBLANK(AO115),0,AO115),0)","v":0},{"$f":"IFERROR(IF(ISBLANK(AP113),0,AP113*INDEX(Assumptions!$D$20:$D$53,MATCH($D$113,lkpGreenHouseGases,0)))+IF(ISBLANK(AP115),0,AP115),0)","v":0},{"$f":"IFERROR(IF(ISBLANK(AQ113),0,AQ113*INDEX(Assumptions!$D$20:$D$53,MATCH($D$113,lkpGreenHouseGases,0)))+IF(ISBLANK(AQ115),0,AQ115),0)","v":0},{"$f":"IFERROR(IF(ISBLANK(AR113),0,AR113*INDEX(Assumptions!$D$20:$D$53,MATCH($D$113,lkpGreenHouseGases,0)))+IF(ISBLANK(AR115),0,AR115),0)","v":0},{"$f":"IFERROR(IF(ISBLANK(AS113),0,AS113*INDEX(Assumptions!$D$20:$D$53,MATCH($D$113,lkpGreenHouseGases,0)))+IF(ISBLANK(AS115),0,AS115),0)","v":0},{"$f":"IFERROR(IF(ISBLANK(AT113),0,AT113*INDEX(Assumptions!$D$20:$D$53,MATCH($D$113,lkpGreenHouseGases,0)))+IF(ISBLANK(AT115),0,AT115),0)","v":0},{"$f":"IFERROR(IF(ISBLANK(AU113),0,AU113*INDEX(Assumptions!$D$20:$D$53,MATCH($D$113,lkpGreenHouseGases,0)))+IF(ISBLANK(AU115),0,AU115),0)","v":0},{"$f":"IFERROR(IF(ISBLANK(AV113),0,AV113*INDEX(Assumptions!$D$20:$D$53,MATCH($D$113,lkpGreenHouseGases,0)))+IF(ISBLANK(AV115),0,AV115),0)","v":0},{"$f":"IFERROR(IF(ISBLANK(AW113),0,AW113*INDEX(Assumptions!$D$20:$D$53,MATCH($D$113,lkpGreenHouseGases,0)))+IF(ISBLANK(AW115),0,AW115),0)","v":0},{"$f":"IFERROR(IF(ISBLANK(AX113),0,AX113*INDEX(Assumptions!$D$20:$D$53,MATCH($D$113,lkpGreenHouseGases,0)))+IF(ISBLANK(AX115),0,AX115),0)","v":0},{"$f":"IFERROR(IF(ISBLANK(AY113),0,AY113*INDEX(Assumptions!$D$20:$D$53,MATCH($D$113,lkpGreenHouseGases,0)))+IF(ISBLANK(AY115),0,AY115),0)","v":0},{"$f":"IFERROR(IF(ISBLANK(AZ113),0,AZ113*INDEX(Assumptions!$D$20:$D$53,MATCH($D$113,lkpGreenHouseGases,0)))+IF(ISBLANK(AZ115),0,AZ115),0)","v":0},{"$f":"IFERROR(IF(ISBLANK(BA113),0,BA113*INDEX(Assumptions!$D$20:$D$53,MATCH($D$113,lkpGreenHouseGases,0)))+IF(ISBLANK(BA115),0,BA115),0)","v":0},{"$f":"IFERROR(IF(ISBLANK(BB113),0,BB113*INDEX(Assumptions!$D$20:$D$53,MATCH($D$113,lkpGreenHouseGases,0)))+IF(ISBLANK(BB115),0,BB115),0)","v":0},{"$f":"IFERROR(IF(ISBLANK(BC113),0,BC113*INDEX(Assumptions!$D$20:$D$53,MATCH($D$113,lkpGreenHouseGases,0)))+IF(ISBLANK(BC115),0,BC115),0)","v":0},{"$f":"IFERROR(IF(ISBLANK(BD113),0,BD113*INDEX(Assumptions!$D$20:$D$53,MATCH($D$113,lkpGreenHouseGases,0)))+IF(ISBLANK(BD115),0,BD115),0)","v":0},{"$f":"IFERROR(IF(ISBLANK(BE113),0,BE113*INDEX(Assumptions!$D$20:$D$53,MATCH($D$113,lkpGreenHouseGases,0)))+IF(ISBLANK(BE115),0,BE115),0)","v":0},{"$f":"IFERROR(IF(ISBLANK(BF113),0,BF113*INDEX(Assumptions!$D$20:$D$53,MATCH($D$113,lkpGreenHouseGases,0)))+IF(ISBLANK(BF115),0,BF115),0)","v":0},{"$f":"IFERROR(IF(ISBLANK(BG113),0,BG113*INDEX(Assumptions!$D$20:$D$53,MATCH($D$113,lkpGreenHouseGases,0)))+IF(ISBLANK(BG115),0,BG115),0)","v":0},{"$f":"IFERROR(IF(ISBLANK(BH113),0,BH113*INDEX(Assumptions!$D$20:$D$53,MATCH($D$113,lkpGreenHouseGases,0)))+IF(ISBLANK(BH115),0,BH115),0)","v":0},{"$f":"IFERROR(IF(ISBLANK(BI113),0,BI113*INDEX(Assumptions!$D$20:$D$53,MATCH($D$113,lkpGreenHouseGases,0)))+IF(ISBLANK(BI115),0,BI115),0)","v":0},{"$f":"IFERROR(IF(ISBLANK(BJ113),0,BJ113*INDEX(Assumptions!$D$20:$D$53,MATCH($D$113,lkpGreenHouseGases,0)))+IF(ISBLANK(BJ115),0,BJ115),0)","v":0},{"$f":"IFERROR(IF(ISBLANK(BK113),0,BK113*INDEX(Assumptions!$D$20:$D$53,MATCH($D$113,lkpGreenHouseGases,0)))+IF(ISBLANK(BK115),0,BK115),0)","v":0},{"$f":"IFERROR(IF(ISBLANK(BL113),0,BL113*INDEX(Assumptions!$D$20:$D$53,MATCH($D$113,lkpGreenHouseGases,0)))+IF(ISBLANK(BL115),0,BL115),0)","v":0},{"$f":"IFERROR(IF(ISBLANK(BM113),0,BM113*INDEX(Assumptions!$D$20:$D$53,MATCH($D$113,lkpGreenHouseGases,0)))+IF(ISBLANK(BM115),0,BM115),0)","v":0},{"$f":"IFERROR(IF(ISBLANK(BN113),0,BN113*INDEX(Assumptions!$D$20:$D$53,MATCH($D$113,lkpGreenHouseGases,0)))+IF(ISBLANK(BN115),0,BN115),0)","v":0},{"$f":"IFERROR(IF(ISBLANK(BO113),0,BO113*INDEX(Assumptions!$D$20:$D$53,MATCH($D$113,lkpGreenHouseGases,0)))+IF(ISBLANK(BO115),0,BO115),0)","v":0},{"$f":"IFERROR(IF(ISBLANK(BP113),0,BP113*INDEX(Assumptions!$D$20:$D$53,MATCH($D$113,lkpGreenHouseGases,0)))+IF(ISBLANK(BP115),0,BP115),0)","v":0},{"$f":"IFERROR(IF(ISBLANK(BQ113),0,BQ113*INDEX(Assumptions!$D$20:$D$53,MATCH($D$113,lkpGreenHouseGases,0)))+IF(ISBLANK(BQ115),0,BQ115),0)","v":0},{"$f":"IFERROR(IF(ISBLANK(BR113),0,BR113*INDEX(Assumptions!$D$20:$D$53,MATCH($D$113,lkpGreenHouseGases,0)))+IF(ISBLANK(BR115),0,BR115),0)","v":0},{"$f":"IFERROR(IF(ISBLANK(BS113),0,BS113*INDEX(Assumptions!$D$20:$D$53,MATCH($D$113,lkpGreenHouseGases,0)))+IF(ISBLANK(BS115),0,BS115),0)","v":0},{"$f":"IFERROR(IF(ISBLANK(BT113),0,BT113*INDEX(Assumptions!$D$20:$D$53,MATCH($D$113,lkpGreenHouseGases,0)))+IF(ISBLANK(BT115),0,BT115),0)","v":0},{"$f":"IFERROR(IF(ISBLANK(BU113),0,BU113*INDEX(Assumptions!$D$20:$D$53,MATCH($D$113,lkpGreenHouseGases,0)))+IF(ISBLANK(BU115),0,BU115),0)","v":0},{"$f":"IFERROR(IF(ISBLANK(BV113),0,BV113*INDEX(Assumptions!$D$20:$D$53,MATCH($D$113,lkpGreenHouseGases,0)))+IF(ISBLANK(BV115),0,BV115),0)","v":0},{"$f":"IFERROR(IF(ISBLANK(BW113),0,BW113*INDEX(Assumptions!$D$20:$D$53,MATCH($D$113,lkpGreenHouseGases,0)))+IF(ISBLANK(BW115),0,BW115),0)","v":0},{"$f":"IFERROR(IF(ISBLANK(BX113),0,BX113*INDEX(Assumptions!$D$20:$D$53,MATCH($D$113,lkpGreenHouseGases,0)))+IF(ISBLANK(BX115),0,BX115),0)","v":0},{"$f":"IFERROR(IF(ISBLANK(BY113),0,BY113*INDEX(Assumptions!$D$20:$D$53,MATCH($D$113,lkpGreenHouseGases,0)))+IF(ISBLANK(BY115),0,BY115),0)","v":0},{"$f":"IFERROR(IF(ISBLANK(BZ113),0,BZ113*INDEX(Assumptions!$D$20:$D$53,MATCH($D$113,lkpGreenHouseGases,0)))+IF(ISBLANK(BZ115),0,BZ115),0)","v":0},{"$f":"IFERROR(IF(ISBLANK(CA113),0,CA113*INDEX(Assumptions!$D$20:$D$53,MATCH($D$113,lkpGreenHouseGases,0)))+IF(ISBLANK(CA115),0,CA115),0)","v":0},{"$f":"IFERROR(IF(ISBLANK(CB113),0,CB113*INDEX(Assumptions!$D$20:$D$53,MATCH($D$113,lkpGreenHouseGases,0)))+IF(ISBLANK(CB115),0,CB115),0)","v":0},{"$f":"IFERROR(IF(ISBLANK(CC113),0,CC113*INDEX(Assumptions!$D$20:$D$53,MATCH($D$113,lkpGreenHouseGases,0)))+IF(ISBLANK(CC115),0,CC115),0)","v":0},{"$f":"IFERROR(IF(ISBLANK(CD113),0,CD113*INDEX(Assumptions!$D$20:$D$53,MATCH($D$113,lkpGreenHouseGases,0)))+IF(ISBLANK(CD115),0,CD115),0)","v":0},{"$f":"IFERROR(IF(ISBLANK(CE113),0,CE113*INDEX(Assumptions!$D$20:$D$53,MATCH($D$113,lkpGreenHouseGases,0)))+IF(ISBLANK(CE115),0,CE115),0)","v":0},{"$f":"IFERROR(IF(ISBLANK(CF113),0,CF113*INDEX(Assumptions!$D$20:$D$53,MATCH($D$113,lkpGreenHouseGases,0)))+IF(ISBLANK(CF115),0,CF115),0)","v":0},{"$f":"IFERROR(IF(ISBLANK(CG113),0,CG113*INDEX(Assumptions!$D$20:$D$53,MATCH($D$113,lkpGreenHouseGases,0)))+IF(ISBLANK(CG115),0,CG115),0)","v":0},{"$f":"IFERROR(IF(ISBLANK(CH113),0,CH113*INDEX(Assumptions!$D$20:$D$53,MATCH($D$113,lkpGreenHouseGases,0)))+IF(ISBLANK(CH115),0,CH115),0)","v":0},{"$f":"IFERROR(IF(ISBLANK(CI113),0,CI113*INDEX(Assumptions!$D$20:$D$53,MATCH($D$113,lkpGreenHouseGases,0)))+IF(ISBLANK(CI115),0,CI115),0)","v":0},{"$f":"IFERROR(IF(ISBLANK(CJ113),0,CJ113*INDEX(Assumptions!$D$20:$D$53,MATCH($D$113,lkpGreenHouseGases,0)))+IF(ISBLANK(CJ115),0,CJ115),0)","v":0},{"$f":"IFERROR(IF(ISBLANK(CK113),0,CK113*INDEX(Assumptions!$D$20:$D$53,MATCH($D$113,lkpGreenHouseGases,0)))+IF(ISBLANK(CK115),0,CK115),0)","v":0},{"$f":"IFERROR(IF(ISBLANK(CL113),0,CL113*INDEX(Assumptions!$D$20:$D$53,MATCH($D$113,lkpGreenHouseGases,0)))+IF(ISBLANK(CL115),0,CL115),0)","v":0},{"$f":"IFERROR(IF(ISBLANK(CM113),0,CM113*INDEX(Assumptions!$D$20:$D$53,MATCH($D$113,lkpGreenHouseGases,0)))+IF(ISBLANK(CM115),0,CM115),0)","v":0},{"$f":"IFERROR(IF(ISBLANK(CN113),0,CN113*INDEX(Assumptions!$D$20:$D$53,MATCH($D$113,lkpGreenHouseGases,0)))+IF(ISBLANK(CN115),0,CN115),0)","v":0},{"$f":"IFERROR(IF(ISBLANK(CO113),0,CO113*INDEX(Assumptions!$D$20:$D$53,MATCH($D$113,lkpGreenHouseGases,0)))+IF(ISBLANK(CO115),0,CO115),0)","v":0},{"$f":"IFERROR(IF(ISBLANK(CP113),0,CP113*INDEX(Assumptions!$D$20:$D$53,MATCH($D$113,lkpGreenHouseGases,0)))+IF(ISBLANK(CP115),0,CP115),0)","v":0},{"$f":"IFERROR(IF(ISBLANK(CQ113),0,CQ113*INDEX(Assumptions!$D$20:$D$53,MATCH($D$113,lkpGreenHouseGases,0)))+IF(ISBLANK(CQ115),0,CQ115),0)","v":0},{"$f":"IFERROR(IF(ISBLANK(CR113),0,CR113*INDEX(Assumptions!$D$20:$D$53,MATCH($D$113,lkpGreenHouseGases,0)))+IF(ISBLANK(CR115),0,CR115),0)","v":0},{"$f":"IFERROR(IF(ISBLANK(CS113),0,CS113*INDEX(Assumptions!$D$20:$D$53,MATCH($D$113,lkpGreenHouseGases,0)))+IF(ISBLANK(CS115),0,CS115),0)","v":0},{"$f":"IFERROR(IF(ISBLANK(CT113),0,CT113*INDEX(Assumptions!$D$20:$D$53,MATCH($D$113,lkpGreenHouseGases,0)))+IF(ISBLANK(CT115),0,CT115),0)","v":0},{"$f":"IFERROR(IF(ISBLANK(CU113),0,CU113*INDEX(Assumptions!$D$20:$D$53,MATCH($D$113,lkpGreenHouseGases,0)))+IF(ISBLANK(CU115),0,CU115),0)","v":0},{"$f":"IFERROR(IF(ISBLANK(CV113),0,CV113*INDEX(Assumptions!$D$20:$D$53,MATCH($D$113,lkpGreenHouseGases,0)))+IF(ISBLANK(CV115),0,CV115),0)","v":0},{"$f":"IFERROR(IF(ISBLANK(CW113),0,CW113*INDEX(Assumptions!$D$20:$D$53,MATCH($D$113,lkpGreenHouseGases,0)))+IF(ISBLANK(CW115),0,CW115),0)","v":0},{"$f":"IFERROR(IF(ISBLANK(CX113),0,CX113*INDEX(Assumptions!$D$20:$D$53,MATCH($D$113,lkpGreenHouseGases,0)))+IF(ISBLANK(CX115),0,CX115),0)","v":0},{"$f":"IFERROR(IF(ISBLANK(CY113),0,CY113*INDEX(Assumptions!$D$20:$D$53,MATCH($D$113,lkpGreenHouseGases,0)))+IF(ISBLANK(CY115),0,CY115),0)","v":0},{"$f":"IFERROR(IF(ISBLANK(CZ113),0,CZ113*INDEX(Assumptions!$D$20:$D$53,MATCH($D$113,lkpGreenHouseGases,0)))+IF(ISBLANK(CZ115),0,CZ115),0)","v":0},{"$f":"IFERROR(IF(ISBLANK(DA113),0,DA113*INDEX(Assumptions!$D$20:$D$53,MATCH($D$113,lkpGreenHouseGases,0)))+IF(ISBLANK(DA115),0,DA115),0)","v":0},{"$f":"IFERROR(IF(ISBLANK(DB113),0,DB113*INDEX(Assumptions!$D$20:$D$53,MATCH($D$113,lkpGreenHouseGases,0)))+IF(ISBLANK(DB115),0,DB115),0)","v":0},{"$f":"IFERROR(IF(ISBLANK(DC113),0,DC113*INDEX(Assumptions!$D$20:$D$53,MATCH($D$113,lkpGreenHouseGases,0)))+IF(ISBLANK(DC115),0,DC115),0)","v":0},{"$f":"IFERROR(IF(ISBLANK(DD113),0,DD113*INDEX(Assumptions!$D$20:$D$53,MATCH($D$113,lkpGreenHouseGases,0)))+IF(ISBLANK(DD115),0,DD115),0)","v":0}]
[]
[null,null,null,"'Fuel-related' GHG emissions","(?)"]
[null,null,null,{"$f":"D92","v":"Electricity"},"tCO2e","(Auto calculated value)",null,{"$f":"IFERROR(H84*INDEX('Emissions factors'!$F$5:$CR$10,MATCH('Data Input - BAT'!$D120,'Emissions factors'!$C$5:$C$10,0),MATCH('Data Input - BAT'!H$7,'Emissions factors'!$F$4:$CR$4,0))/1000,0)","v":1147.9102063708638},{"$f":"IFERROR(I84*INDEX('Emissions factors'!$F$5:$CR$10,MATCH('Data Input - BAT'!$D120,'Emissions factors'!$C$5:$C$10,0),MATCH('Data Input - BAT'!I$7,'Emissions factors'!$F$4:$CR$4,0))/1000,0)","v":1022.7509038254832},{"$f":"IFERROR(J84*INDEX('Emissions factors'!$F$5:$CR$10,MATCH('Data Input - BAT'!$D120,'Emissions factors'!$C$5:$C$10,0),MATCH('Data Input - BAT'!J$7,'Emissions factors'!$F$4:$CR$4,0))/1000,0)","v":900.70523018473978},{"$f":"IFERROR(K84*INDEX('Emissions factors'!$F$5:$CR$10,MATCH('Data Input - BAT'!$D120,'Emissions factors'!$C$5:$C$10,0),MATCH('Data Input - BAT'!K$7,'Emissions factors'!$F$4:$CR$4,0))/1000,0)","v":829.51171353866823},{"$f":"IFERROR(L84*INDEX('Emissions factors'!$F$5:$CR$10,MATCH('Data Input - BAT'!$D120,'Emissions factors'!$C$5:$C$10,0),MATCH('Data Input - BAT'!L$7,'Emissions factors'!$F$4:$CR$4,0))/1000,0)","v":706.29239328079632},{"$f":"IFERROR(M84*INDEX('Emissions factors'!$F$5:$CR$10,MATCH('Data Input - BAT'!$D120,'Emissions factors'!$C$5:$C$10,0),MATCH('Data Input - BAT'!M$7,'Emissions factors'!$F$4:$CR$4,0))/1000,0)","v":741.68258779755536},{"$f":"IFERROR(N84*INDEX('Emissions factors'!$F$5:$CR$10,MATCH('Data Input - BAT'!$D120,'Emissions factors'!$C$5:$C$10,0),MATCH('Data Input - BAT'!N$7,'Emissions factors'!$F$4:$CR$4,0))/1000,0)","v":695.10356862610229},{"$f":"IFERROR(O84*INDEX('Emissions factors'!$F$5:$CR$10,MATCH('Data Input - BAT'!$D120,'Emissions factors'!$C$5:$C$10,0),MATCH('Data Input - BAT'!O$7,'Emissions factors'!$F$4:$CR$4,0))/1000,0)","v":617.9056138546847},{"$f":"IFERROR(P84*INDEX('Emissions factors'!$F$5:$CR$10,MATCH('Data Input - BAT'!$D120,'Emissions factors'!$C$5:$C$10,0),MATCH('Data Input - BAT'!P$7,'Emissions factors'!$F$4:$CR$4,0))/1000,0)","v":0},{"$f":"IFERROR(Q84*INDEX('Emissions factors'!$F$5:$CR$10,MATCH('Data Input - BAT'!$D120,'Emissions factors'!$C$5:$C$10,0),MATCH('Data Input - BAT'!Q$7,'Emissions factors'!$F$4:$CR$4,0))/1000,0)","v":0},{"$f":"IFERROR(R84*INDEX('Emissions factors'!$F$5:$CR$10,MATCH('Data Input - BAT'!$D120,'Emissions factors'!$C$5:$C$10,0),MATCH('Data Input - BAT'!R$7,'Emissions factors'!$F$4:$CR$4,0))/1000,0)","v":0},{"$f":"IFERROR(S84*INDEX('Emissions factors'!$F$5:$CR$10,MATCH('Data Input - BAT'!$D120,'Emissions factors'!$C$5:$C$10,0),MATCH('Data Input - BAT'!S$7,'Emissions factors'!$F$4:$CR$4,0))/1000,0)","v":0},{"$f":"IFERROR(T84*INDEX('Emissions factors'!$F$5:$CR$10,MATCH('Data Input - BAT'!$D120,'Emissions factors'!$C$5:$C$10,0),MATCH('Data Input - BAT'!T$7,'Emissions factors'!$F$4:$CR$4,0))/1000,0)","v":0},{"$f":"IFERROR(U84*INDEX('Emissions factors'!$F$5:$CR$10,MATCH('Data Input - BAT'!$D120,'Emissions factors'!$C$5:$C$10,0),MATCH('Data Input - BAT'!U$7,'Emissions factors'!$F$4:$CR$4,0))/1000,0)","v":0},{"$f":"IFERROR(V84*INDEX('Emissions factors'!$F$5:$CR$10,MATCH('Data Input - BAT'!$D120,'Emissions factors'!$C$5:$C$10,0),MATCH('Data Input - BAT'!V$7,'Emissions factors'!$F$4:$CR$4,0))/1000,0)","v":0},{"$f":"IFERROR(W84*INDEX('Emissions factors'!$F$5:$CR$10,MATCH('Data Input - BAT'!$D120,'Emissions factors'!$C$5:$C$10,0),MATCH('Data Input - BAT'!W$7,'Emissions factors'!$F$4:$CR$4,0))/1000,0)","v":0},{"$f":"IFERROR(X84*INDEX('Emissions factors'!$F$5:$CR$10,MATCH('Data Input - BAT'!$D120,'Emissions factors'!$C$5:$C$10,0),MATCH('Data Input - BAT'!X$7,'Emissions factors'!$F$4:$CR$4,0))/1000,0)","v":0},{"$f":"IFERROR(Y84*INDEX('Emissions factors'!$F$5:$CR$10,MATCH('Data Input - BAT'!$D120,'Emissions factors'!$C$5:$C$10,0),MATCH('Data Input - BAT'!Y$7,'Emissions factors'!$F$4:$CR$4,0))/1000,0)","v":0},{"$f":"IFERROR(Z84*INDEX('Emissions factors'!$F$5:$CR$10,MATCH('Data Input - BAT'!$D120,'Emissions factors'!$C$5:$C$10,0),MATCH('Data Input - BAT'!Z$7,'Emissions factors'!$F$4:$CR$4,0))/1000,0)","v":0},{"$f":"IFERROR(AA84*INDEX('Emissions factors'!$F$5:$CR$10,MATCH('Data Input - BAT'!$D120,'Emissions factors'!$C$5:$C$10,0),MATCH('Data Input - BAT'!AA$7,'Emissions factors'!$F$4:$CR$4,0))/1000,0)","v":0},{"$f":"IFERROR(AB84*INDEX('Emissions factors'!$F$5:$CR$10,MATCH('Data Input - BAT'!$D120,'Emissions factors'!$C$5:$C$10,0),MATCH('Data Input - BAT'!AB$7,'Emissions factors'!$F$4:$CR$4,0))/1000,0)","v":0},{"$f":"IFERROR(AC84*INDEX('Emissions factors'!$F$5:$CR$10,MATCH('Data Input - BAT'!$D120,'Emissions factors'!$C$5:$C$10,0),MATCH('Data Input - BAT'!AC$7,'Emissions factors'!$F$4:$CR$4,0))/1000,0)","v":0},{"$f":"IFERROR(AD84*INDEX('Emissions factors'!$F$5:$CR$10,MATCH('Data Input - BAT'!$D120,'Emissions factors'!$C$5:$C$10,0),MATCH('Data Input - BAT'!AD$7,'Emissions factors'!$F$4:$CR$4,0))/1000,0)","v":0},{"$f":"IFERROR(AE84*INDEX('Emissions factors'!$F$5:$CR$10,MATCH('Data Input - BAT'!$D120,'Emissions factors'!$C$5:$C$10,0),MATCH('Data Input - BAT'!AE$7,'Emissions factors'!$F$4:$CR$4,0))/1000,0)","v":0},{"$f":"IFERROR(AF84*INDEX('Emissions factors'!$F$5:$CR$10,MATCH('Data Input - BAT'!$D120,'Emissions factors'!$C$5:$C$10,0),MATCH('Data Input - BAT'!AF$7,'Emissions factors'!$F$4:$CR$4,0))/1000,0)","v":0},{"$f":"IFERROR(AG84*INDEX('Emissions factors'!$F$5:$CR$10,MATCH('Data Input - BAT'!$D120,'Emissions factors'!$C$5:$C$10,0),MATCH('Data Input - BAT'!AG$7,'Emissions factors'!$F$4:$CR$4,0))/1000,0)","v":0},{"$f":"IFERROR(AH84*INDEX('Emissions factors'!$F$5:$CR$10,MATCH('Data Input - BAT'!$D120,'Emissions factors'!$C$5:$C$10,0),MATCH('Data Input - BAT'!AH$7,'Emissions factors'!$F$4:$CR$4,0))/1000,0)","v":0},{"$f":"IFERROR(AI84*INDEX('Emissions factors'!$F$5:$CR$10,MATCH('Data Input - BAT'!$D120,'Emissions factors'!$C$5:$C$10,0),MATCH('Data Input - BAT'!AI$7,'Emissions factors'!$F$4:$CR$4,0))/1000,0)","v":0},{"$f":"IFERROR(AJ84*INDEX('Emissions factors'!$F$5:$CR$10,MATCH('Data Input - BAT'!$D120,'Emissions factors'!$C$5:$C$10,0),MATCH('Data Input - BAT'!AJ$7,'Emissions factors'!$F$4:$CR$4,0))/1000,0)","v":0},{"$f":"IFERROR(AK84*INDEX('Emissions factors'!$F$5:$CR$10,MATCH('Data Input - BAT'!$D120,'Emissions factors'!$C$5:$C$10,0),MATCH('Data Input - BAT'!AK$7,'Emissions factors'!$F$4:$CR$4,0))/1000,0)","v":0},{"$f":"IFERROR(AL84*INDEX('Emissions factors'!$F$5:$CR$10,MATCH('Data Input - BAT'!$D120,'Emissions factors'!$C$5:$C$10,0),MATCH('Data Input - BAT'!AL$7,'Emissions factors'!$F$4:$CR$4,0))/1000,0)","v":0},{"$f":"IFERROR(AM84*INDEX('Emissions factors'!$F$5:$CR$10,MATCH('Data Input - BAT'!$D120,'Emissions factors'!$C$5:$C$10,0),MATCH('Data Input - BAT'!AM$7,'Emissions factors'!$F$4:$CR$4,0))/1000,0)","v":0},{"$f":"IFERROR(AN84*INDEX('Emissions factors'!$F$5:$CR$10,MATCH('Data Input - BAT'!$D120,'Emissions factors'!$C$5:$C$10,0),MATCH('Data Input - BAT'!AN$7,'Emissions factors'!$F$4:$CR$4,0))/1000,0)","v":0},{"$f":"IFERROR(AO84*INDEX('Emissions factors'!$F$5:$CR$10,MATCH('Data Input - BAT'!$D120,'Emissions factors'!$C$5:$C$10,0),MATCH('Data Input - BAT'!AO$7,'Emissions factors'!$F$4:$CR$4,0))/1000,0)","v":0},{"$f":"IFERROR(AP84*INDEX('Emissions factors'!$F$5:$CR$10,MATCH('Data Input - BAT'!$D120,'Emissions factors'!$C$5:$C$10,0),MATCH('Data Input - BAT'!AP$7,'Emissions factors'!$F$4:$CR$4,0))/1000,0)","v":0},{"$f":"IFERROR(AQ84*INDEX('Emissions factors'!$F$5:$CR$10,MATCH('Data Input - BAT'!$D120,'Emissions factors'!$C$5:$C$10,0),MATCH('Data Input - BAT'!AQ$7,'Emissions factors'!$F$4:$CR$4,0))/1000,0)","v":0},{"$f":"IFERROR(AR84*INDEX('Emissions factors'!$F$5:$CR$10,MATCH('Data Input - BAT'!$D120,'Emissions factors'!$C$5:$C$10,0),MATCH('Data Input - BAT'!AR$7,'Emissions factors'!$F$4:$CR$4,0))/1000,0)","v":0},{"$f":"IFERROR(AS84*INDEX('Emissions factors'!$F$5:$CR$10,MATCH('Data Input - BAT'!$D120,'Emissions factors'!$C$5:$C$10,0),MATCH('Data Input - BAT'!AS$7,'Emissions factors'!$F$4:$CR$4,0))/1000,0)","v":0},{"$f":"IFERROR(AT84*INDEX('Emissions factors'!$F$5:$CR$10,MATCH('Data Input - BAT'!$D120,'Emissions factors'!$C$5:$C$10,0),MATCH('Data Input - BAT'!AT$7,'Emissions factors'!$F$4:$CR$4,0))/1000,0)","v":0},{"$f":"IFERROR(AU84*INDEX('Emissions factors'!$F$5:$CR$10,MATCH('Data Input - BAT'!$D120,'Emissions factors'!$C$5:$C$10,0),MATCH('Data Input - BAT'!AU$7,'Emissions factors'!$F$4:$CR$4,0))/1000,0)","v":0},{"$f":"IFERROR(AV84*INDEX('Emissions factors'!$F$5:$CR$10,MATCH('Data Input - BAT'!$D120,'Emissions factors'!$C$5:$C$10,0),MATCH('Data Input - BAT'!AV$7,'Emissions factors'!$F$4:$CR$4,0))/1000,0)","v":0},{"$f":"IFERROR(AW84*INDEX('Emissions factors'!$F$5:$CR$10,MATCH('Data Input - BAT'!$D120,'Emissions factors'!$C$5:$C$10,0),MATCH('Data Input - BAT'!AW$7,'Emissions factors'!$F$4:$CR$4,0))/1000,0)","v":0},{"$f":"IFERROR(AX84*INDEX('Emissions factors'!$F$5:$CR$10,MATCH('Data Input - BAT'!$D120,'Emissions factors'!$C$5:$C$10,0),MATCH('Data Input - BAT'!AX$7,'Emissions factors'!$F$4:$CR$4,0))/1000,0)","v":0},{"$f":"IFERROR(AY84*INDEX('Emissions factors'!$F$5:$CR$10,MATCH('Data Input - BAT'!$D120,'Emissions factors'!$C$5:$C$10,0),MATCH('Data Input - BAT'!AY$7,'Emissions factors'!$F$4:$CR$4,0))/1000,0)","v":0},{"$f":"IFERROR(AZ84*INDEX('Emissions factors'!$F$5:$CR$10,MATCH('Data Input - BAT'!$D120,'Emissions factors'!$C$5:$C$10,0),MATCH('Data Input - BAT'!AZ$7,'Emissions factors'!$F$4:$CR$4,0))/1000,0)","v":0},{"$f":"IFERROR(BA84*INDEX('Emissions factors'!$F$5:$CR$10,MATCH('Data Input - BAT'!$D120,'Emissions factors'!$C$5:$C$10,0),MATCH('Data Input - BAT'!BA$7,'Emissions factors'!$F$4:$CR$4,0))/1000,0)","v":0},{"$f":"IFERROR(BB84*INDEX('Emissions factors'!$F$5:$CR$10,MATCH('Data Input - BAT'!$D120,'Emissions factors'!$C$5:$C$10,0),MATCH('Data Input - BAT'!BB$7,'Emissions factors'!$F$4:$CR$4,0))/1000,0)","v":0},{"$f":"IFERROR(BC84*INDEX('Emissions factors'!$F$5:$CR$10,MATCH('Data Input - BAT'!$D120,'Emissions factors'!$C$5:$C$10,0),MATCH('Data Input - BAT'!BC$7,'Emissions factors'!$F$4:$CR$4,0))/1000,0)","v":0},{"$f":"IFERROR(BD84*INDEX('Emissions factors'!$F$5:$CR$10,MATCH('Data Input - BAT'!$D120,'Emissions factors'!$C$5:$C$10,0),MATCH('Data Input - BAT'!BD$7,'Emissions factors'!$F$4:$CR$4,0))/1000,0)","v":0},{"$f":"IFERROR(BE84*INDEX('Emissions factors'!$F$5:$CR$10,MATCH('Data Input - BAT'!$D120,'Emissions factors'!$C$5:$C$10,0),MATCH('Data Input - BAT'!BE$7,'Emissions factors'!$F$4:$CR$4,0))/1000,0)","v":0},{"$f":"IFERROR(BF84*INDEX('Emissions factors'!$F$5:$CR$10,MATCH('Data Input - BAT'!$D120,'Emissions factors'!$C$5:$C$10,0),MATCH('Data Input - BAT'!BF$7,'Emissions factors'!$F$4:$CR$4,0))/1000,0)","v":0},{"$f":"IFERROR(BG84*INDEX('Emissions factors'!$F$5:$CR$10,MATCH('Data Input - BAT'!$D120,'Emissions factors'!$C$5:$C$10,0),MATCH('Data Input - BAT'!BG$7,'Emissions factors'!$F$4:$CR$4,0))/1000,0)","v":0},{"$f":"IFERROR(BH84*INDEX('Emissions factors'!$F$5:$CR$10,MATCH('Data Input - BAT'!$D120,'Emissions factors'!$C$5:$C$10,0),MATCH('Data Input - BAT'!BH$7,'Emissions factors'!$F$4:$CR$4,0))/1000,0)","v":0},{"$f":"IFERROR(BI84*INDEX('Emissions factors'!$F$5:$CR$10,MATCH('Data Input - BAT'!$D120,'Emissions factors'!$C$5:$C$10,0),MATCH('Data Input - BAT'!BI$7,'Emissions factors'!$F$4:$CR$4,0))/1000,0)","v":0},{"$f":"IFERROR(BJ84*INDEX('Emissions factors'!$F$5:$CR$10,MATCH('Data Input - BAT'!$D120,'Emissions factors'!$C$5:$C$10,0),MATCH('Data Input - BAT'!BJ$7,'Emissions factors'!$F$4:$CR$4,0))/1000,0)","v":0},{"$f":"IFERROR(BK84*INDEX('Emissions factors'!$F$5:$CR$10,MATCH('Data Input - BAT'!$D120,'Emissions factors'!$C$5:$C$10,0),MATCH('Data Input - BAT'!BK$7,'Emissions factors'!$F$4:$CR$4,0))/1000,0)","v":0},{"$f":"IFERROR(BL84*INDEX('Emissions factors'!$F$5:$CR$10,MATCH('Data Input - BAT'!$D120,'Emissions factors'!$C$5:$C$10,0),MATCH('Data Input - BAT'!BL$7,'Emissions factors'!$F$4:$CR$4,0))/1000,0)","v":0},{"$f":"IFERROR(BM84*INDEX('Emissions factors'!$F$5:$CR$10,MATCH('Data Input - BAT'!$D120,'Emissions factors'!$C$5:$C$10,0),MATCH('Data Input - BAT'!BM$7,'Emissions factors'!$F$4:$CR$4,0))/1000,0)","v":0},{"$f":"IFERROR(BN84*INDEX('Emissions factors'!$F$5:$CR$10,MATCH('Data Input - BAT'!$D120,'Emissions factors'!$C$5:$C$10,0),MATCH('Data Input - BAT'!BN$7,'Emissions factors'!$F$4:$CR$4,0))/1000,0)","v":0},{"$f":"IFERROR(BO84*INDEX('Emissions factors'!$F$5:$CR$10,MATCH('Data Input - BAT'!$D120,'Emissions factors'!$C$5:$C$10,0),MATCH('Data Input - BAT'!BO$7,'Emissions factors'!$F$4:$CR$4,0))/1000,0)","v":0},{"$f":"IFERROR(BP84*INDEX('Emissions factors'!$F$5:$CR$10,MATCH('Data Input - BAT'!$D120,'Emissions factors'!$C$5:$C$10,0),MATCH('Data Input - BAT'!BP$7,'Emissions factors'!$F$4:$CR$4,0))/1000,0)","v":0},{"$f":"IFERROR(BQ84*INDEX('Emissions factors'!$F$5:$CR$10,MATCH('Data Input - BAT'!$D120,'Emissions factors'!$C$5:$C$10,0),MATCH('Data Input - BAT'!BQ$7,'Emissions factors'!$F$4:$CR$4,0))/1000,0)","v":0},{"$f":"IFERROR(BR84*INDEX('Emissions factors'!$F$5:$CR$10,MATCH('Data Input - BAT'!$D120,'Emissions factors'!$C$5:$C$10,0),MATCH('Data Input - BAT'!BR$7,'Emissions factors'!$F$4:$CR$4,0))/1000,0)","v":0},{"$f":"IFERROR(BS84*INDEX('Emissions factors'!$F$5:$CR$10,MATCH('Data Input - BAT'!$D120,'Emissions factors'!$C$5:$C$10,0),MATCH('Data Input - BAT'!BS$7,'Emissions factors'!$F$4:$CR$4,0))/1000,0)","v":0},{"$f":"IFERROR(BT84*INDEX('Emissions factors'!$F$5:$CR$10,MATCH('Data Input - BAT'!$D120,'Emissions factors'!$C$5:$C$10,0),MATCH('Data Input - BAT'!BT$7,'Emissions factors'!$F$4:$CR$4,0))/1000,0)","v":0},{"$f":"IFERROR(BU84*INDEX('Emissions factors'!$F$5:$CR$10,MATCH('Data Input - BAT'!$D120,'Emissions factors'!$C$5:$C$10,0),MATCH('Data Input - BAT'!BU$7,'Emissions factors'!$F$4:$CR$4,0))/1000,0)","v":0},{"$f":"IFERROR(BV84*INDEX('Emissions factors'!$F$5:$CR$10,MATCH('Data Input - BAT'!$D120,'Emissions factors'!$C$5:$C$10,0),MATCH('Data Input - BAT'!BV$7,'Emissions factors'!$F$4:$CR$4,0))/1000,0)","v":0},{"$f":"IFERROR(BW84*INDEX('Emissions factors'!$F$5:$CR$10,MATCH('Data Input - BAT'!$D120,'Emissions factors'!$C$5:$C$10,0),MATCH('Data Input - BAT'!BW$7,'Emissions factors'!$F$4:$CR$4,0))/1000,0)","v":0},{"$f":"IFERROR(BX84*INDEX('Emissions factors'!$F$5:$CR$10,MATCH('Data Input - BAT'!$D120,'Emissions factors'!$C$5:$C$10,0),MATCH('Data Input - BAT'!BX$7,'Emissions factors'!$F$4:$CR$4,0))/1000,0)","v":0},{"$f":"IFERROR(BY84*INDEX('Emissions factors'!$F$5:$CR$10,MATCH('Data Input - BAT'!$D120,'Emissions factors'!$C$5:$C$10,0),MATCH('Data Input - BAT'!BY$7,'Emissions factors'!$F$4:$CR$4,0))/1000,0)","v":0},{"$f":"IFERROR(BZ84*INDEX('Emissions factors'!$F$5:$CR$10,MATCH('Data Input - BAT'!$D120,'Emissions factors'!$C$5:$C$10,0),MATCH('Data Input - BAT'!BZ$7,'Emissions factors'!$F$4:$CR$4,0))/1000,0)","v":0},{"$f":"IFERROR(CA84*INDEX('Emissions factors'!$F$5:$CR$10,MATCH('Data Input - BAT'!$D120,'Emissions factors'!$C$5:$C$10,0),MATCH('Data Input - BAT'!CA$7,'Emissions factors'!$F$4:$CR$4,0))/1000,0)","v":0},{"$f":"IFERROR(CB84*INDEX('Emissions factors'!$F$5:$CR$10,MATCH('Data Input - BAT'!$D120,'Emissions factors'!$C$5:$C$10,0),MATCH('Data Input - BAT'!CB$7,'Emissions factors'!$F$4:$CR$4,0))/1000,0)","v":0},{"$f":"IFERROR(CC84*INDEX('Emissions factors'!$F$5:$CR$10,MATCH('Data Input - BAT'!$D120,'Emissions factors'!$C$5:$C$10,0),MATCH('Data Input - BAT'!CC$7,'Emissions factors'!$F$4:$CR$4,0))/1000,0)","v":0},{"$f":"IFERROR(CD84*INDEX('Emissions factors'!$F$5:$CR$10,MATCH('Data Input - BAT'!$D120,'Emissions factors'!$C$5:$C$10,0),MATCH('Data Input - BAT'!CD$7,'Emissions factors'!$F$4:$CR$4,0))/1000,0)","v":0},{"$f":"IFERROR(CE84*INDEX('Emissions factors'!$F$5:$CR$10,MATCH('Data Input - BAT'!$D120,'Emissions factors'!$C$5:$C$10,0),MATCH('Data Input - BAT'!CE$7,'Emissions factors'!$F$4:$CR$4,0))/1000,0)","v":0},{"$f":"IFERROR(CF84*INDEX('Emissions factors'!$F$5:$CR$10,MATCH('Data Input - BAT'!$D120,'Emissions factors'!$C$5:$C$10,0),MATCH('Data Input - BAT'!CF$7,'Emissions factors'!$F$4:$CR$4,0))/1000,0)","v":0},{"$f":"IFERROR(CG84*INDEX('Emissions factors'!$F$5:$CR$10,MATCH('Data Input - BAT'!$D120,'Emissions factors'!$C$5:$C$10,0),MATCH('Data Input - BAT'!CG$7,'Emissions factors'!$F$4:$CR$4,0))/1000,0)","v":0},{"$f":"IFERROR(CH84*INDEX('Emissions factors'!$F$5:$CR$10,MATCH('Data Input - BAT'!$D120,'Emissions factors'!$C$5:$C$10,0),MATCH('Data Input - BAT'!CH$7,'Emissions factors'!$F$4:$CR$4,0))/1000,0)","v":0},{"$f":"IFERROR(CI84*INDEX('Emissions factors'!$F$5:$CR$10,MATCH('Data Input - BAT'!$D120,'Emissions factors'!$C$5:$C$10,0),MATCH('Data Input - BAT'!CI$7,'Emissions factors'!$F$4:$CR$4,0))/1000,0)","v":0},{"$f":"IFERROR(CJ84*INDEX('Emissions factors'!$F$5:$CR$10,MATCH('Data Input - BAT'!$D120,'Emissions factors'!$C$5:$C$10,0),MATCH('Data Input - BAT'!CJ$7,'Emissions factors'!$F$4:$CR$4,0))/1000,0)","v":0},{"$f":"IFERROR(CK84*INDEX('Emissions factors'!$F$5:$CR$10,MATCH('Data Input - BAT'!$D120,'Emissions factors'!$C$5:$C$10,0),MATCH('Data Input - BAT'!CK$7,'Emissions factors'!$F$4:$CR$4,0))/1000,0)","v":0},{"$f":"IFERROR(CL84*INDEX('Emissions factors'!$F$5:$CR$10,MATCH('Data Input - BAT'!$D120,'Emissions factors'!$C$5:$C$10,0),MATCH('Data Input - BAT'!CL$7,'Emissions factors'!$F$4:$CR$4,0))/1000,0)","v":0},{"$f":"IFERROR(CM84*INDEX('Emissions factors'!$F$5:$CR$10,MATCH('Data Input - BAT'!$D120,'Emissions factors'!$C$5:$C$10,0),MATCH('Data Input - BAT'!CM$7,'Emissions factors'!$F$4:$CR$4,0))/1000,0)","v":0},{"$f":"IFERROR(CN84*INDEX('Emissions factors'!$F$5:$CR$10,MATCH('Data Input - BAT'!$D120,'Emissions factors'!$C$5:$C$10,0),MATCH('Data Input - BAT'!CN$7,'Emissions factors'!$F$4:$CR$4,0))/1000,0)","v":0},{"$f":"IFERROR(CO84*INDEX('Emissions factors'!$F$5:$CR$10,MATCH('Data Input - BAT'!$D120,'Emissions factors'!$C$5:$C$10,0),MATCH('Data Input - BAT'!CO$7,'Emissions factors'!$F$4:$CR$4,0))/1000,0)","v":0},{"$f":"IFERROR(CP84*INDEX('Emissions factors'!$F$5:$CR$10,MATCH('Data Input - BAT'!$D120,'Emissions factors'!$C$5:$C$10,0),MATCH('Data Input - BAT'!CP$7,'Emissions factors'!$F$4:$CR$4,0))/1000,0)","v":0},{"$f":"IFERROR(CQ84*INDEX('Emissions factors'!$F$5:$CR$10,MATCH('Data Input - BAT'!$D120,'Emissions factors'!$C$5:$C$10,0),MATCH('Data Input - BAT'!CQ$7,'Emissions factors'!$F$4:$CR$4,0))/1000,0)","v":0},{"$f":"IFERROR(CR84*INDEX('Emissions factors'!$F$5:$CR$10,MATCH('Data Input - BAT'!$D120,'Emissions factors'!$C$5:$C$10,0),MATCH('Data Input - BAT'!CR$7,'Emissions factors'!$F$4:$CR$4,0))/1000,0)","v":0},{"$f":"IFERROR(CS84*INDEX('Emissions factors'!$F$5:$CR$10,MATCH('Data Input - BAT'!$D120,'Emissions factors'!$C$5:$C$10,0),MATCH('Data Input - BAT'!CS$7,'Emissions factors'!$F$4:$CR$4,0))/1000,0)","v":0},{"$f":"IFERROR(CT84*INDEX('Emissions factors'!$F$5:$CR$10,MATCH('Data Input - BAT'!$D120,'Emissions factors'!$C$5:$C$10,0),MATCH('Data Input - BAT'!CT$7,'Emissions factors'!$F$4:$CR$4,0))/1000,0)","v":0},{"$f":"IFERROR(CU84*INDEX('Emissions factors'!$F$5:$CR$10,MATCH('Data Input - BAT'!$D120,'Emissions factors'!$C$5:$C$10,0),MATCH('Data Input - BAT'!CU$7,'Emissions factors'!$F$4:$CR$4,0))/1000,0)","v":0},{"$f":"IFERROR(CV84*INDEX('Emissions factors'!$F$5:$CR$10,MATCH('Data Input - BAT'!$D120,'Emissions factors'!$C$5:$C$10,0),MATCH('Data Input - BAT'!CV$7,'Emissions factors'!$F$4:$CR$4,0))/1000,0)","v":0},{"$f":"IFERROR(CW84*INDEX('Emissions factors'!$F$5:$CR$10,MATCH('Data Input - BAT'!$D120,'Emissions factors'!$C$5:$C$10,0),MATCH('Data Input - BAT'!CW$7,'Emissions factors'!$F$4:$CR$4,0))/1000,0)","v":0},{"$f":"IFERROR(CX84*INDEX('Emissions factors'!$F$5:$CR$10,MATCH('Data Input - BAT'!$D120,'Emissions factors'!$C$5:$C$10,0),MATCH('Data Input - BAT'!CX$7,'Emissions factors'!$F$4:$CR$4,0))/1000,0)","v":0},{"$f":"IFERROR(CY84*INDEX('Emissions factors'!$F$5:$CR$10,MATCH('Data Input - BAT'!$D120,'Emissions factors'!$C$5:$C$10,0),MATCH('Data Input - BAT'!CY$7,'Emissions factors'!$F$4:$CR$4,0))/1000,0)","v":0},{"$f":"IFERROR(CZ84*INDEX('Emissions factors'!$F$5:$CR$10,MATCH('Data Input - BAT'!$D120,'Emissions factors'!$C$5:$C$10,0),MATCH('Data Input - BAT'!CZ$7,'Emissions factors'!$F$4:$CR$4,0))/1000,0)","v":0},{"$f":"IFERROR(DA84*INDEX('Emissions factors'!$F$5:$CR$10,MATCH('Data Input - BAT'!$D120,'Emissions factors'!$C$5:$C$10,0),MATCH('Data Input - BAT'!DA$7,'Emissions factors'!$F$4:$CR$4,0))/1000,0)","v":0},{"$f":"IFERROR(DB84*INDEX('Emissions factors'!$F$5:$CR$10,MATCH('Data Input - BAT'!$D120,'Emissions factors'!$C$5:$C$10,0),MATCH('Data Input - BAT'!DB$7,'Emissions factors'!$F$4:$CR$4,0))/1000,0)","v":0},{"$f":"IFERROR(DC84*INDEX('Emissions factors'!$F$5:$CR$10,MATCH('Data Input - BAT'!$D120,'Emissions factors'!$C$5:$C$10,0),MATCH('Data Input - BAT'!DC$7,'Emissions factors'!$F$4:$CR$4,0))/1000,0)","v":0}]
[null,null,null,"Natural Gas","tCO2e","(Auto calculated value)",null,{"$f":"IFERROR(H85*INDEX('Emissions factors'!$F$5:$CR$10,MATCH('Data Input - BAT'!$D121,'Emissions factors'!$C$5:$C$10,0),MATCH('Data Input - BAT'!H$7,'Emissions factors'!$F$4:$CR$4,0))/1000,0)","v":0},{"$f":"IFERROR(I85*INDEX('Emissions factors'!$F$5:$CR$10,MATCH('Data Input - BAT'!$D121,'Emissions factors'!$C$5:$C$10,0),MATCH('Data Input - BAT'!I$7,'Emissions factors'!$F$4:$CR$4,0))/1000,0)","v":0},{"$f":"IFERROR(J85*INDEX('Emissions factors'!$F$5:$CR$10,MATCH('Data Input - BAT'!$D121,'Emissions factors'!$C$5:$C$10,0),MATCH('Data Input - BAT'!J$7,'Emissions factors'!$F$4:$CR$4,0))/1000,0)","v":0},{"$f":"IFERROR(K85*INDEX('Emissions factors'!$F$5:$CR$10,MATCH('Data Input - BAT'!$D121,'Emissions factors'!$C$5:$C$10,0),MATCH('Data Input - BAT'!K$7,'Emissions factors'!$F$4:$CR$4,0))/1000,0)","v":0},{"$f":"IFERROR(L85*INDEX('Emissions factors'!$F$5:$CR$10,MATCH('Data Input - BAT'!$D121,'Emissions factors'!$C$5:$C$10,0),MATCH('Data Input - BAT'!L$7,'Emissions factors'!$F$4:$CR$4,0))/1000,0)","v":0},{"$f":"IFERROR(M85*INDEX('Emissions factors'!$F$5:$CR$10,MATCH('Data Input - BAT'!$D121,'Emissions factors'!$C$5:$C$10,0),MATCH('Data Input - BAT'!M$7,'Emissions factors'!$F$4:$CR$4,0))/1000,0)","v":0},{"$f":"IFERROR(N85*INDEX('Emissions factors'!$F$5:$CR$10,MATCH('Data Input - BAT'!$D121,'Emissions factors'!$C$5:$C$10,0),MATCH('Data Input - BAT'!N$7,'Emissions factors'!$F$4:$CR$4,0))/1000,0)","v":0},{"$f":"IFERROR(O85*INDEX('Emissions factors'!$F$5:$CR$10,MATCH('Data Input - BAT'!$D121,'Emissions factors'!$C$5:$C$10,0),MATCH('Data Input - BAT'!O$7,'Emissions factors'!$F$4:$CR$4,0))/1000,0)","v":0},{"$f":"IFERROR(P85*INDEX('Emissions factors'!$F$5:$CR$10,MATCH('Data Input - BAT'!$D121,'Emissions factors'!$C$5:$C$10,0),MATCH('Data Input - BAT'!P$7,'Emissions factors'!$F$4:$CR$4,0))/1000,0)","v":0},{"$f":"IFERROR(Q85*INDEX('Emissions factors'!$F$5:$CR$10,MATCH('Data Input - BAT'!$D121,'Emissions factors'!$C$5:$C$10,0),MATCH('Data Input - BAT'!Q$7,'Emissions factors'!$F$4:$CR$4,0))/1000,0)","v":0},{"$f":"IFERROR(R85*INDEX('Emissions factors'!$F$5:$CR$10,MATCH('Data Input - BAT'!$D121,'Emissions factors'!$C$5:$C$10,0),MATCH('Data Input - BAT'!R$7,'Emissions factors'!$F$4:$CR$4,0))/1000,0)","v":0},{"$f":"IFERROR(S85*INDEX('Emissions factors'!$F$5:$CR$10,MATCH('Data Input - BAT'!$D121,'Emissions factors'!$C$5:$C$10,0),MATCH('Data Input - BAT'!S$7,'Emissions factors'!$F$4:$CR$4,0))/1000,0)","v":0},{"$f":"IFERROR(T85*INDEX('Emissions factors'!$F$5:$CR$10,MATCH('Data Input - BAT'!$D121,'Emissions factors'!$C$5:$C$10,0),MATCH('Data Input - BAT'!T$7,'Emissions factors'!$F$4:$CR$4,0))/1000,0)","v":0},{"$f":"IFERROR(U85*INDEX('Emissions factors'!$F$5:$CR$10,MATCH('Data Input - BAT'!$D121,'Emissions factors'!$C$5:$C$10,0),MATCH('Data Input - BAT'!U$7,'Emissions factors'!$F$4:$CR$4,0))/1000,0)","v":0},{"$f":"IFERROR(V85*INDEX('Emissions factors'!$F$5:$CR$10,MATCH('Data Input - BAT'!$D121,'Emissions factors'!$C$5:$C$10,0),MATCH('Data Input - BAT'!V$7,'Emissions factors'!$F$4:$CR$4,0))/1000,0)","v":0},{"$f":"IFERROR(W85*INDEX('Emissions factors'!$F$5:$CR$10,MATCH('Data Input - BAT'!$D121,'Emissions factors'!$C$5:$C$10,0),MATCH('Data Input - BAT'!W$7,'Emissions factors'!$F$4:$CR$4,0))/1000,0)","v":0},{"$f":"IFERROR(X85*INDEX('Emissions factors'!$F$5:$CR$10,MATCH('Data Input - BAT'!$D121,'Emissions factors'!$C$5:$C$10,0),MATCH('Data Input - BAT'!X$7,'Emissions factors'!$F$4:$CR$4,0))/1000,0)","v":0},{"$f":"IFERROR(Y85*INDEX('Emissions factors'!$F$5:$CR$10,MATCH('Data Input - BAT'!$D121,'Emissions factors'!$C$5:$C$10,0),MATCH('Data Input - BAT'!Y$7,'Emissions factors'!$F$4:$CR$4,0))/1000,0)","v":0},{"$f":"IFERROR(Z85*INDEX('Emissions factors'!$F$5:$CR$10,MATCH('Data Input - BAT'!$D121,'Emissions factors'!$C$5:$C$10,0),MATCH('Data Input - BAT'!Z$7,'Emissions factors'!$F$4:$CR$4,0))/1000,0)","v":0},{"$f":"IFERROR(AA85*INDEX('Emissions factors'!$F$5:$CR$10,MATCH('Data Input - BAT'!$D121,'Emissions factors'!$C$5:$C$10,0),MATCH('Data Input - BAT'!AA$7,'Emissions factors'!$F$4:$CR$4,0))/1000,0)","v":0},{"$f":"IFERROR(AB85*INDEX('Emissions factors'!$F$5:$CR$10,MATCH('Data Input - BAT'!$D121,'Emissions factors'!$C$5:$C$10,0),MATCH('Data Input - BAT'!AB$7,'Emissions factors'!$F$4:$CR$4,0))/1000,0)","v":0},{"$f":"IFERROR(AC85*INDEX('Emissions factors'!$F$5:$CR$10,MATCH('Data Input - BAT'!$D121,'Emissions factors'!$C$5:$C$10,0),MATCH('Data Input - BAT'!AC$7,'Emissions factors'!$F$4:$CR$4,0))/1000,0)","v":0},{"$f":"IFERROR(AD85*INDEX('Emissions factors'!$F$5:$CR$10,MATCH('Data Input - BAT'!$D121,'Emissions factors'!$C$5:$C$10,0),MATCH('Data Input - BAT'!AD$7,'Emissions factors'!$F$4:$CR$4,0))/1000,0)","v":0},{"$f":"IFERROR(AE85*INDEX('Emissions factors'!$F$5:$CR$10,MATCH('Data Input - BAT'!$D121,'Emissions factors'!$C$5:$C$10,0),MATCH('Data Input - BAT'!AE$7,'Emissions factors'!$F$4:$CR$4,0))/1000,0)","v":0},{"$f":"IFERROR(AF85*INDEX('Emissions factors'!$F$5:$CR$10,MATCH('Data Input - BAT'!$D121,'Emissions factors'!$C$5:$C$10,0),MATCH('Data Input - BAT'!AF$7,'Emissions factors'!$F$4:$CR$4,0))/1000,0)","v":0},{"$f":"IFERROR(AG85*INDEX('Emissions factors'!$F$5:$CR$10,MATCH('Data Input - BAT'!$D121,'Emissions factors'!$C$5:$C$10,0),MATCH('Data Input - BAT'!AG$7,'Emissions factors'!$F$4:$CR$4,0))/1000,0)","v":0},{"$f":"IFERROR(AH85*INDEX('Emissions factors'!$F$5:$CR$10,MATCH('Data Input - BAT'!$D121,'Emissions factors'!$C$5:$C$10,0),MATCH('Data Input - BAT'!AH$7,'Emissions factors'!$F$4:$CR$4,0))/1000,0)","v":0},{"$f":"IFERROR(AI85*INDEX('Emissions factors'!$F$5:$CR$10,MATCH('Data Input - BAT'!$D121,'Emissions factors'!$C$5:$C$10,0),MATCH('Data Input - BAT'!AI$7,'Emissions factors'!$F$4:$CR$4,0))/1000,0)","v":0},{"$f":"IFERROR(AJ85*INDEX('Emissions factors'!$F$5:$CR$10,MATCH('Data Input - BAT'!$D121,'Emissions factors'!$C$5:$C$10,0),MATCH('Data Input - BAT'!AJ$7,'Emissions factors'!$F$4:$CR$4,0))/1000,0)","v":0},{"$f":"IFERROR(AK85*INDEX('Emissions factors'!$F$5:$CR$10,MATCH('Data Input - BAT'!$D121,'Emissions factors'!$C$5:$C$10,0),MATCH('Data Input - BAT'!AK$7,'Emissions factors'!$F$4:$CR$4,0))/1000,0)","v":0},{"$f":"IFERROR(AL85*INDEX('Emissions factors'!$F$5:$CR$10,MATCH('Data Input - BAT'!$D121,'Emissions factors'!$C$5:$C$10,0),MATCH('Data Input - BAT'!AL$7,'Emissions factors'!$F$4:$CR$4,0))/1000,0)","v":0},{"$f":"IFERROR(AM85*INDEX('Emissions factors'!$F$5:$CR$10,MATCH('Data Input - BAT'!$D121,'Emissions factors'!$C$5:$C$10,0),MATCH('Data Input - BAT'!AM$7,'Emissions factors'!$F$4:$CR$4,0))/1000,0)","v":0},{"$f":"IFERROR(AN85*INDEX('Emissions factors'!$F$5:$CR$10,MATCH('Data Input - BAT'!$D121,'Emissions factors'!$C$5:$C$10,0),MATCH('Data Input - BAT'!AN$7,'Emissions factors'!$F$4:$CR$4,0))/1000,0)","v":0},{"$f":"IFERROR(AO85*INDEX('Emissions factors'!$F$5:$CR$10,MATCH('Data Input - BAT'!$D121,'Emissions factors'!$C$5:$C$10,0),MATCH('Data Input - BAT'!AO$7,'Emissions factors'!$F$4:$CR$4,0))/1000,0)","v":0},{"$f":"IFERROR(AP85*INDEX('Emissions factors'!$F$5:$CR$10,MATCH('Data Input - BAT'!$D121,'Emissions factors'!$C$5:$C$10,0),MATCH('Data Input - BAT'!AP$7,'Emissions factors'!$F$4:$CR$4,0))/1000,0)","v":0},{"$f":"IFERROR(AQ85*INDEX('Emissions factors'!$F$5:$CR$10,MATCH('Data Input - BAT'!$D121,'Emissions factors'!$C$5:$C$10,0),MATCH('Data Input - BAT'!AQ$7,'Emissions factors'!$F$4:$CR$4,0))/1000,0)","v":0},{"$f":"IFERROR(AR85*INDEX('Emissions factors'!$F$5:$CR$10,MATCH('Data Input - BAT'!$D121,'Emissions factors'!$C$5:$C$10,0),MATCH('Data Input - BAT'!AR$7,'Emissions factors'!$F$4:$CR$4,0))/1000,0)","v":0},{"$f":"IFERROR(AS85*INDEX('Emissions factors'!$F$5:$CR$10,MATCH('Data Input - BAT'!$D121,'Emissions factors'!$C$5:$C$10,0),MATCH('Data Input - BAT'!AS$7,'Emissions factors'!$F$4:$CR$4,0))/1000,0)","v":0},{"$f":"IFERROR(AT85*INDEX('Emissions factors'!$F$5:$CR$10,MATCH('Data Input - BAT'!$D121,'Emissions factors'!$C$5:$C$10,0),MATCH('Data Input - BAT'!AT$7,'Emissions factors'!$F$4:$CR$4,0))/1000,0)","v":0},{"$f":"IFERROR(AU85*INDEX('Emissions factors'!$F$5:$CR$10,MATCH('Data Input - BAT'!$D121,'Emissions factors'!$C$5:$C$10,0),MATCH('Data Input - BAT'!AU$7,'Emissions factors'!$F$4:$CR$4,0))/1000,0)","v":0},{"$f":"IFERROR(AV85*INDEX('Emissions factors'!$F$5:$CR$10,MATCH('Data Input - BAT'!$D121,'Emissions factors'!$C$5:$C$10,0),MATCH('Data Input - BAT'!AV$7,'Emissions factors'!$F$4:$CR$4,0))/1000,0)","v":0},{"$f":"IFERROR(AW85*INDEX('Emissions factors'!$F$5:$CR$10,MATCH('Data Input - BAT'!$D121,'Emissions factors'!$C$5:$C$10,0),MATCH('Data Input - BAT'!AW$7,'Emissions factors'!$F$4:$CR$4,0))/1000,0)","v":0},{"$f":"IFERROR(AX85*INDEX('Emissions factors'!$F$5:$CR$10,MATCH('Data Input - BAT'!$D121,'Emissions factors'!$C$5:$C$10,0),MATCH('Data Input - BAT'!AX$7,'Emissions factors'!$F$4:$CR$4,0))/1000,0)","v":0},{"$f":"IFERROR(AY85*INDEX('Emissions factors'!$F$5:$CR$10,MATCH('Data Input - BAT'!$D121,'Emissions factors'!$C$5:$C$10,0),MATCH('Data Input - BAT'!AY$7,'Emissions factors'!$F$4:$CR$4,0))/1000,0)","v":0},{"$f":"IFERROR(AZ85*INDEX('Emissions factors'!$F$5:$CR$10,MATCH('Data Input - BAT'!$D121,'Emissions factors'!$C$5:$C$10,0),MATCH('Data Input - BAT'!AZ$7,'Emissions factors'!$F$4:$CR$4,0))/1000,0)","v":0},{"$f":"IFERROR(BA85*INDEX('Emissions factors'!$F$5:$CR$10,MATCH('Data Input - BAT'!$D121,'Emissions factors'!$C$5:$C$10,0),MATCH('Data Input - BAT'!BA$7,'Emissions factors'!$F$4:$CR$4,0))/1000,0)","v":0},{"$f":"IFERROR(BB85*INDEX('Emissions factors'!$F$5:$CR$10,MATCH('Data Input - BAT'!$D121,'Emissions factors'!$C$5:$C$10,0),MATCH('Data Input - BAT'!BB$7,'Emissions factors'!$F$4:$CR$4,0))/1000,0)","v":0},{"$f":"IFERROR(BC85*INDEX('Emissions factors'!$F$5:$CR$10,MATCH('Data Input - BAT'!$D121,'Emissions factors'!$C$5:$C$10,0),MATCH('Data Input - BAT'!BC$7,'Emissions factors'!$F$4:$CR$4,0))/1000,0)","v":0},{"$f":"IFERROR(BD85*INDEX('Emissions factors'!$F$5:$CR$10,MATCH('Data Input - BAT'!$D121,'Emissions factors'!$C$5:$C$10,0),MATCH('Data Input - BAT'!BD$7,'Emissions factors'!$F$4:$CR$4,0))/1000,0)","v":0},{"$f":"IFERROR(BE85*INDEX('Emissions factors'!$F$5:$CR$10,MATCH('Data Input - BAT'!$D121,'Emissions factors'!$C$5:$C$10,0),MATCH('Data Input - BAT'!BE$7,'Emissions factors'!$F$4:$CR$4,0))/1000,0)","v":0},{"$f":"IFERROR(BF85*INDEX('Emissions factors'!$F$5:$CR$10,MATCH('Data Input - BAT'!$D121,'Emissions factors'!$C$5:$C$10,0),MATCH('Data Input - BAT'!BF$7,'Emissions factors'!$F$4:$CR$4,0))/1000,0)","v":0},{"$f":"IFERROR(BG85*INDEX('Emissions factors'!$F$5:$CR$10,MATCH('Data Input - BAT'!$D121,'Emissions factors'!$C$5:$C$10,0),MATCH('Data Input - BAT'!BG$7,'Emissions factors'!$F$4:$CR$4,0))/1000,0)","v":0},{"$f":"IFERROR(BH85*INDEX('Emissions factors'!$F$5:$CR$10,MATCH('Data Input - BAT'!$D121,'Emissions factors'!$C$5:$C$10,0),MATCH('Data Input - BAT'!BH$7,'Emissions factors'!$F$4:$CR$4,0))/1000,0)","v":0},{"$f":"IFERROR(BI85*INDEX('Emissions factors'!$F$5:$CR$10,MATCH('Data Input - BAT'!$D121,'Emissions factors'!$C$5:$C$10,0),MATCH('Data Input - BAT'!BI$7,'Emissions factors'!$F$4:$CR$4,0))/1000,0)","v":0},{"$f":"IFERROR(BJ85*INDEX('Emissions factors'!$F$5:$CR$10,MATCH('Data Input - BAT'!$D121,'Emissions factors'!$C$5:$C$10,0),MATCH('Data Input - BAT'!BJ$7,'Emissions factors'!$F$4:$CR$4,0))/1000,0)","v":0},{"$f":"IFERROR(BK85*INDEX('Emissions factors'!$F$5:$CR$10,MATCH('Data Input - BAT'!$D121,'Emissions factors'!$C$5:$C$10,0),MATCH('Data Input - BAT'!BK$7,'Emissions factors'!$F$4:$CR$4,0))/1000,0)","v":0},{"$f":"IFERROR(BL85*INDEX('Emissions factors'!$F$5:$CR$10,MATCH('Data Input - BAT'!$D121,'Emissions factors'!$C$5:$C$10,0),MATCH('Data Input - BAT'!BL$7,'Emissions factors'!$F$4:$CR$4,0))/1000,0)","v":0},{"$f":"IFERROR(BM85*INDEX('Emissions factors'!$F$5:$CR$10,MATCH('Data Input - BAT'!$D121,'Emissions factors'!$C$5:$C$10,0),MATCH('Data Input - BAT'!BM$7,'Emissions factors'!$F$4:$CR$4,0))/1000,0)","v":0},{"$f":"IFERROR(BN85*INDEX('Emissions factors'!$F$5:$CR$10,MATCH('Data Input - BAT'!$D121,'Emissions factors'!$C$5:$C$10,0),MATCH('Data Input - BAT'!BN$7,'Emissions factors'!$F$4:$CR$4,0))/1000,0)","v":0},{"$f":"IFERROR(BO85*INDEX('Emissions factors'!$F$5:$CR$10,MATCH('Data Input - BAT'!$D121,'Emissions factors'!$C$5:$C$10,0),MATCH('Data Input - BAT'!BO$7,'Emissions factors'!$F$4:$CR$4,0))/1000,0)","v":0},{"$f":"IFERROR(BP85*INDEX('Emissions factors'!$F$5:$CR$10,MATCH('Data Input - BAT'!$D121,'Emissions factors'!$C$5:$C$10,0),MATCH('Data Input - BAT'!BP$7,'Emissions factors'!$F$4:$CR$4,0))/1000,0)","v":0},{"$f":"IFERROR(BQ85*INDEX('Emissions factors'!$F$5:$CR$10,MATCH('Data Input - BAT'!$D121,'Emissions factors'!$C$5:$C$10,0),MATCH('Data Input - BAT'!BQ$7,'Emissions factors'!$F$4:$CR$4,0))/1000,0)","v":0},{"$f":"IFERROR(BR85*INDEX('Emissions factors'!$F$5:$CR$10,MATCH('Data Input - BAT'!$D121,'Emissions factors'!$C$5:$C$10,0),MATCH('Data Input - BAT'!BR$7,'Emissions factors'!$F$4:$CR$4,0))/1000,0)","v":0},{"$f":"IFERROR(BS85*INDEX('Emissions factors'!$F$5:$CR$10,MATCH('Data Input - BAT'!$D121,'Emissions factors'!$C$5:$C$10,0),MATCH('Data Input - BAT'!BS$7,'Emissions factors'!$F$4:$CR$4,0))/1000,0)","v":0},{"$f":"IFERROR(BT85*INDEX('Emissions factors'!$F$5:$CR$10,MATCH('Data Input - BAT'!$D121,'Emissions factors'!$C$5:$C$10,0),MATCH('Data Input - BAT'!BT$7,'Emissions factors'!$F$4:$CR$4,0))/1000,0)","v":0},{"$f":"IFERROR(BU85*INDEX('Emissions factors'!$F$5:$CR$10,MATCH('Data Input - BAT'!$D121,'Emissions factors'!$C$5:$C$10,0),MATCH('Data Input - BAT'!BU$7,'Emissions factors'!$F$4:$CR$4,0))/1000,0)","v":0},{"$f":"IFERROR(BV85*INDEX('Emissions factors'!$F$5:$CR$10,MATCH('Data Input - BAT'!$D121,'Emissions factors'!$C$5:$C$10,0),MATCH('Data Input - BAT'!BV$7,'Emissions factors'!$F$4:$CR$4,0))/1000,0)","v":0},{"$f":"IFERROR(BW85*INDEX('Emissions factors'!$F$5:$CR$10,MATCH('Data Input - BAT'!$D121,'Emissions factors'!$C$5:$C$10,0),MATCH('Data Input - BAT'!BW$7,'Emissions factors'!$F$4:$CR$4,0))/1000,0)","v":0},{"$f":"IFERROR(BX85*INDEX('Emissions factors'!$F$5:$CR$10,MATCH('Data Input - BAT'!$D121,'Emissions factors'!$C$5:$C$10,0),MATCH('Data Input - BAT'!BX$7,'Emissions factors'!$F$4:$CR$4,0))/1000,0)","v":0},{"$f":"IFERROR(BY85*INDEX('Emissions factors'!$F$5:$CR$10,MATCH('Data Input - BAT'!$D121,'Emissions factors'!$C$5:$C$10,0),MATCH('Data Input - BAT'!BY$7,'Emissions factors'!$F$4:$CR$4,0))/1000,0)","v":0},{"$f":"IFERROR(BZ85*INDEX('Emissions factors'!$F$5:$CR$10,MATCH('Data Input - BAT'!$D121,'Emissions factors'!$C$5:$C$10,0),MATCH('Data Input - BAT'!BZ$7,'Emissions factors'!$F$4:$CR$4,0))/1000,0)","v":0},{"$f":"IFERROR(CA85*INDEX('Emissions factors'!$F$5:$CR$10,MATCH('Data Input - BAT'!$D121,'Emissions factors'!$C$5:$C$10,0),MATCH('Data Input - BAT'!CA$7,'Emissions factors'!$F$4:$CR$4,0))/1000,0)","v":0},{"$f":"IFERROR(CB85*INDEX('Emissions factors'!$F$5:$CR$10,MATCH('Data Input - BAT'!$D121,'Emissions factors'!$C$5:$C$10,0),MATCH('Data Input - BAT'!CB$7,'Emissions factors'!$F$4:$CR$4,0))/1000,0)","v":0},{"$f":"IFERROR(CC85*INDEX('Emissions factors'!$F$5:$CR$10,MATCH('Data Input - BAT'!$D121,'Emissions factors'!$C$5:$C$10,0),MATCH('Data Input - BAT'!CC$7,'Emissions factors'!$F$4:$CR$4,0))/1000,0)","v":0},{"$f":"IFERROR(CD85*INDEX('Emissions factors'!$F$5:$CR$10,MATCH('Data Input - BAT'!$D121,'Emissions factors'!$C$5:$C$10,0),MATCH('Data Input - BAT'!CD$7,'Emissions factors'!$F$4:$CR$4,0))/1000,0)","v":0},{"$f":"IFERROR(CE85*INDEX('Emissions factors'!$F$5:$CR$10,MATCH('Data Input - BAT'!$D121,'Emissions factors'!$C$5:$C$10,0),MATCH('Data Input - BAT'!CE$7,'Emissions factors'!$F$4:$CR$4,0))/1000,0)","v":0},{"$f":"IFERROR(CF85*INDEX('Emissions factors'!$F$5:$CR$10,MATCH('Data Input - BAT'!$D121,'Emissions factors'!$C$5:$C$10,0),MATCH('Data Input - BAT'!CF$7,'Emissions factors'!$F$4:$CR$4,0))/1000,0)","v":0},{"$f":"IFERROR(CG85*INDEX('Emissions factors'!$F$5:$CR$10,MATCH('Data Input - BAT'!$D121,'Emissions factors'!$C$5:$C$10,0),MATCH('Data Input - BAT'!CG$7,'Emissions factors'!$F$4:$CR$4,0))/1000,0)","v":0},{"$f":"IFERROR(CH85*INDEX('Emissions factors'!$F$5:$CR$10,MATCH('Data Input - BAT'!$D121,'Emissions factors'!$C$5:$C$10,0),MATCH('Data Input - BAT'!CH$7,'Emissions factors'!$F$4:$CR$4,0))/1000,0)","v":0},{"$f":"IFERROR(CI85*INDEX('Emissions factors'!$F$5:$CR$10,MATCH('Data Input - BAT'!$D121,'Emissions factors'!$C$5:$C$10,0),MATCH('Data Input - BAT'!CI$7,'Emissions factors'!$F$4:$CR$4,0))/1000,0)","v":0},{"$f":"IFERROR(CJ85*INDEX('Emissions factors'!$F$5:$CR$10,MATCH('Data Input - BAT'!$D121,'Emissions factors'!$C$5:$C$10,0),MATCH('Data Input - BAT'!CJ$7,'Emissions factors'!$F$4:$CR$4,0))/1000,0)","v":0},{"$f":"IFERROR(CK85*INDEX('Emissions factors'!$F$5:$CR$10,MATCH('Data Input - BAT'!$D121,'Emissions factors'!$C$5:$C$10,0),MATCH('Data Input - BAT'!CK$7,'Emissions factors'!$F$4:$CR$4,0))/1000,0)","v":0},{"$f":"IFERROR(CL85*INDEX('Emissions factors'!$F$5:$CR$10,MATCH('Data Input - BAT'!$D121,'Emissions factors'!$C$5:$C$10,0),MATCH('Data Input - BAT'!CL$7,'Emissions factors'!$F$4:$CR$4,0))/1000,0)","v":0},{"$f":"IFERROR(CM85*INDEX('Emissions factors'!$F$5:$CR$10,MATCH('Data Input - BAT'!$D121,'Emissions factors'!$C$5:$C$10,0),MATCH('Data Input - BAT'!CM$7,'Emissions factors'!$F$4:$CR$4,0))/1000,0)","v":0},{"$f":"IFERROR(CN85*INDEX('Emissions factors'!$F$5:$CR$10,MATCH('Data Input - BAT'!$D121,'Emissions factors'!$C$5:$C$10,0),MATCH('Data Input - BAT'!CN$7,'Emissions factors'!$F$4:$CR$4,0))/1000,0)","v":0},{"$f":"IFERROR(CO85*INDEX('Emissions factors'!$F$5:$CR$10,MATCH('Data Input - BAT'!$D121,'Emissions factors'!$C$5:$C$10,0),MATCH('Data Input - BAT'!CO$7,'Emissions factors'!$F$4:$CR$4,0))/1000,0)","v":0},{"$f":"IFERROR(CP85*INDEX('Emissions factors'!$F$5:$CR$10,MATCH('Data Input - BAT'!$D121,'Emissions factors'!$C$5:$C$10,0),MATCH('Data Input - BAT'!CP$7,'Emissions factors'!$F$4:$CR$4,0))/1000,0)","v":0},{"$f":"IFERROR(CQ85*INDEX('Emissions factors'!$F$5:$CR$10,MATCH('Data Input - BAT'!$D121,'Emissions factors'!$C$5:$C$10,0),MATCH('Data Input - BAT'!CQ$7,'Emissions factors'!$F$4:$CR$4,0))/1000,0)","v":0},{"$f":"IFERROR(CR85*INDEX('Emissions factors'!$F$5:$CR$10,MATCH('Data Input - BAT'!$D121,'Emissions factors'!$C$5:$C$10,0),MATCH('Data Input - BAT'!CR$7,'Emissions factors'!$F$4:$CR$4,0))/1000,0)","v":0},{"$f":"IFERROR(CS85*INDEX('Emissions factors'!$F$5:$CR$10,MATCH('Data Input - BAT'!$D121,'Emissions factors'!$C$5:$C$10,0),MATCH('Data Input - BAT'!CS$7,'Emissions factors'!$F$4:$CR$4,0))/1000,0)","v":0},{"$f":"IFERROR(CT85*INDEX('Emissions factors'!$F$5:$CR$10,MATCH('Data Input - BAT'!$D121,'Emissions factors'!$C$5:$C$10,0),MATCH('Data Input - BAT'!CT$7,'Emissions factors'!$F$4:$CR$4,0))/1000,0)","v":0},{"$f":"IFERROR(CU85*INDEX('Emissions factors'!$F$5:$CR$10,MATCH('Data Input - BAT'!$D121,'Emissions factors'!$C$5:$C$10,0),MATCH('Data Input - BAT'!CU$7,'Emissions factors'!$F$4:$CR$4,0))/1000,0)","v":0},{"$f":"IFERROR(CV85*INDEX('Emissions factors'!$F$5:$CR$10,MATCH('Data Input - BAT'!$D121,'Emissions factors'!$C$5:$C$10,0),MATCH('Data Input - BAT'!CV$7,'Emissions factors'!$F$4:$CR$4,0))/1000,0)","v":0},{"$f":"IFERROR(CW85*INDEX('Emissions factors'!$F$5:$CR$10,MATCH('Data Input - BAT'!$D121,'Emissions factors'!$C$5:$C$10,0),MATCH('Data Input - BAT'!CW$7,'Emissions factors'!$F$4:$CR$4,0))/1000,0)","v":0},{"$f":"IFERROR(CX85*INDEX('Emissions factors'!$F$5:$CR$10,MATCH('Data Input - BAT'!$D121,'Emissions factors'!$C$5:$C$10,0),MATCH('Data Input - BAT'!CX$7,'Emissions factors'!$F$4:$CR$4,0))/1000,0)","v":0},{"$f":"IFERROR(CY85*INDEX('Emissions factors'!$F$5:$CR$10,MATCH('Data Input - BAT'!$D121,'Emissions factors'!$C$5:$C$10,0),MATCH('Data Input - BAT'!CY$7,'Emissions factors'!$F$4:$CR$4,0))/1000,0)","v":0},{"$f":"IFERROR(CZ85*INDEX('Emissions factors'!$F$5:$CR$10,MATCH('Data Input - BAT'!$D121,'Emissions factors'!$C$5:$C$10,0),MATCH('Data Input - BAT'!CZ$7,'Emissions factors'!$F$4:$CR$4,0))/1000,0)","v":0},{"$f":"IFERROR(DA85*INDEX('Emissions factors'!$F$5:$CR$10,MATCH('Data Input - BAT'!$D121,'Emissions factors'!$C$5:$C$10,0),MATCH('Data Input - BAT'!DA$7,'Emissions factors'!$F$4:$CR$4,0))/1000,0)","v":0},{"$f":"IFERROR(DB85*INDEX('Emissions factors'!$F$5:$CR$10,MATCH('Data Input - BAT'!$D121,'Emissions factors'!$C$5:$C$10,0),MATCH('Data Input - BAT'!DB$7,'Emissions factors'!$F$4:$CR$4,0))/1000,0)","v":0},{"$f":"IFERROR(DC85*INDEX('Emissions factors'!$F$5:$CR$10,MATCH('Data Input - BAT'!$D121,'Emissions factors'!$C$5:$C$10,0),MATCH('Data Input - BAT'!DC$7,'Emissions factors'!$F$4:$CR$4,0))/1000,0)","v":0}]
[null,null,null,"Coal","tCO2e","(Auto calculated value)",null,{"$f":"IFERROR(H86*INDEX('Emissions factors'!$F$5:$CR$10,MATCH('Data Input - BAT'!$D122,'Emissions factors'!$C$5:$C$10,0),MATCH('Data Input - BAT'!H$7,'Emissions factors'!$F$4:$CR$4,0))/1000,0)","v":39953.636752500002},{"$f":"IFERROR(I86*INDEX('Emissions factors'!$F$5:$CR$10,MATCH('Data Input - BAT'!$D122,'Emissions factors'!$C$5:$C$10,0),MATCH('Data Input - BAT'!I$7,'Emissions factors'!$F$4:$CR$4,0))/1000,0)","v":39953.636752500002},{"$f":"IFERROR(J86*INDEX('Emissions factors'!$F$5:$CR$10,MATCH('Data Input - BAT'!$D122,'Emissions factors'!$C$5:$C$10,0),MATCH('Data Input - BAT'!J$7,'Emissions factors'!$F$4:$CR$4,0))/1000,0)","v":39953.636752500002},{"$f":"IFERROR(K86*INDEX('Emissions factors'!$F$5:$CR$10,MATCH('Data Input - BAT'!$D122,'Emissions factors'!$C$5:$C$10,0),MATCH('Data Input - BAT'!K$7,'Emissions factors'!$F$4:$CR$4,0))/1000,0)","v":39953.636752500002},{"$f":"IFERROR(L86*INDEX('Emissions factors'!$F$5:$CR$10,MATCH('Data Input - BAT'!$D122,'Emissions factors'!$C$5:$C$10,0),MATCH('Data Input - BAT'!L$7,'Emissions factors'!$F$4:$CR$4,0))/1000,0)","v":39953.636752500002},{"$f":"IFERROR(M86*INDEX('Emissions factors'!$F$5:$CR$10,MATCH('Data Input - BAT'!$D122,'Emissions factors'!$C$5:$C$10,0),MATCH('Data Input - BAT'!M$7,'Emissions factors'!$F$4:$CR$4,0))/1000,0)","v":39953.636752500002},{"$f":"IFERROR(N86*INDEX('Emissions factors'!$F$5:$CR$10,MATCH('Data Input - BAT'!$D122,'Emissions factors'!$C$5:$C$10,0),MATCH('Data Input - BAT'!N$7,'Emissions factors'!$F$4:$CR$4,0))/1000,0)","v":39953.636752500002},{"$f":"IFERROR(O86*INDEX('Emissions factors'!$F$5:$CR$10,MATCH('Data Input - BAT'!$D122,'Emissions factors'!$C$5:$C$10,0),MATCH('Data Input - BAT'!O$7,'Emissions factors'!$F$4:$CR$4,0))/1000,0)","v":39953.636752500002},{"$f":"IFERROR(P86*INDEX('Emissions factors'!$F$5:$CR$10,MATCH('Data Input - BAT'!$D122,'Emissions factors'!$C$5:$C$10,0),MATCH('Data Input - BAT'!P$7,'Emissions factors'!$F$4:$CR$4,0))/1000,0)","v":0},{"$f":"IFERROR(Q86*INDEX('Emissions factors'!$F$5:$CR$10,MATCH('Data Input - BAT'!$D122,'Emissions factors'!$C$5:$C$10,0),MATCH('Data Input - BAT'!Q$7,'Emissions factors'!$F$4:$CR$4,0))/1000,0)","v":0},{"$f":"IFERROR(R86*INDEX('Emissions factors'!$F$5:$CR$10,MATCH('Data Input - BAT'!$D122,'Emissions factors'!$C$5:$C$10,0),MATCH('Data Input - BAT'!R$7,'Emissions factors'!$F$4:$CR$4,0))/1000,0)","v":0},{"$f":"IFERROR(S86*INDEX('Emissions factors'!$F$5:$CR$10,MATCH('Data Input - BAT'!$D122,'Emissions factors'!$C$5:$C$10,0),MATCH('Data Input - BAT'!S$7,'Emissions factors'!$F$4:$CR$4,0))/1000,0)","v":0},{"$f":"IFERROR(T86*INDEX('Emissions factors'!$F$5:$CR$10,MATCH('Data Input - BAT'!$D122,'Emissions factors'!$C$5:$C$10,0),MATCH('Data Input - BAT'!T$7,'Emissions factors'!$F$4:$CR$4,0))/1000,0)","v":0},{"$f":"IFERROR(U86*INDEX('Emissions factors'!$F$5:$CR$10,MATCH('Data Input - BAT'!$D122,'Emissions factors'!$C$5:$C$10,0),MATCH('Data Input - BAT'!U$7,'Emissions factors'!$F$4:$CR$4,0))/1000,0)","v":0},{"$f":"IFERROR(V86*INDEX('Emissions factors'!$F$5:$CR$10,MATCH('Data Input - BAT'!$D122,'Emissions factors'!$C$5:$C$10,0),MATCH('Data Input - BAT'!V$7,'Emissions factors'!$F$4:$CR$4,0))/1000,0)","v":0},{"$f":"IFERROR(W86*INDEX('Emissions factors'!$F$5:$CR$10,MATCH('Data Input - BAT'!$D122,'Emissions factors'!$C$5:$C$10,0),MATCH('Data Input - BAT'!W$7,'Emissions factors'!$F$4:$CR$4,0))/1000,0)","v":0},{"$f":"IFERROR(X86*INDEX('Emissions factors'!$F$5:$CR$10,MATCH('Data Input - BAT'!$D122,'Emissions factors'!$C$5:$C$10,0),MATCH('Data Input - BAT'!X$7,'Emissions factors'!$F$4:$CR$4,0))/1000,0)","v":0},{"$f":"IFERROR(Y86*INDEX('Emissions factors'!$F$5:$CR$10,MATCH('Data Input - BAT'!$D122,'Emissions factors'!$C$5:$C$10,0),MATCH('Data Input - BAT'!Y$7,'Emissions factors'!$F$4:$CR$4,0))/1000,0)","v":0},{"$f":"IFERROR(Z86*INDEX('Emissions factors'!$F$5:$CR$10,MATCH('Data Input - BAT'!$D122,'Emissions factors'!$C$5:$C$10,0),MATCH('Data Input - BAT'!Z$7,'Emissions factors'!$F$4:$CR$4,0))/1000,0)","v":0},{"$f":"IFERROR(AA86*INDEX('Emissions factors'!$F$5:$CR$10,MATCH('Data Input - BAT'!$D122,'Emissions factors'!$C$5:$C$10,0),MATCH('Data Input - BAT'!AA$7,'Emissions factors'!$F$4:$CR$4,0))/1000,0)","v":0},{"$f":"IFERROR(AB86*INDEX('Emissions factors'!$F$5:$CR$10,MATCH('Data Input - BAT'!$D122,'Emissions factors'!$C$5:$C$10,0),MATCH('Data Input - BAT'!AB$7,'Emissions factors'!$F$4:$CR$4,0))/1000,0)","v":0},{"$f":"IFERROR(AC86*INDEX('Emissions factors'!$F$5:$CR$10,MATCH('Data Input - BAT'!$D122,'Emissions factors'!$C$5:$C$10,0),MATCH('Data Input - BAT'!AC$7,'Emissions factors'!$F$4:$CR$4,0))/1000,0)","v":0},{"$f":"IFERROR(AD86*INDEX('Emissions factors'!$F$5:$CR$10,MATCH('Data Input - BAT'!$D122,'Emissions factors'!$C$5:$C$10,0),MATCH('Data Input - BAT'!AD$7,'Emissions factors'!$F$4:$CR$4,0))/1000,0)","v":0},{"$f":"IFERROR(AE86*INDEX('Emissions factors'!$F$5:$CR$10,MATCH('Data Input - BAT'!$D122,'Emissions factors'!$C$5:$C$10,0),MATCH('Data Input - BAT'!AE$7,'Emissions factors'!$F$4:$CR$4,0))/1000,0)","v":0},{"$f":"IFERROR(AF86*INDEX('Emissions factors'!$F$5:$CR$10,MATCH('Data Input - BAT'!$D122,'Emissions factors'!$C$5:$C$10,0),MATCH('Data Input - BAT'!AF$7,'Emissions factors'!$F$4:$CR$4,0))/1000,0)","v":0},{"$f":"IFERROR(AG86*INDEX('Emissions factors'!$F$5:$CR$10,MATCH('Data Input - BAT'!$D122,'Emissions factors'!$C$5:$C$10,0),MATCH('Data Input - BAT'!AG$7,'Emissions factors'!$F$4:$CR$4,0))/1000,0)","v":0},{"$f":"IFERROR(AH86*INDEX('Emissions factors'!$F$5:$CR$10,MATCH('Data Input - BAT'!$D122,'Emissions factors'!$C$5:$C$10,0),MATCH('Data Input - BAT'!AH$7,'Emissions factors'!$F$4:$CR$4,0))/1000,0)","v":0},{"$f":"IFERROR(AI86*INDEX('Emissions factors'!$F$5:$CR$10,MATCH('Data Input - BAT'!$D122,'Emissions factors'!$C$5:$C$10,0),MATCH('Data Input - BAT'!AI$7,'Emissions factors'!$F$4:$CR$4,0))/1000,0)","v":0},{"$f":"IFERROR(AJ86*INDEX('Emissions factors'!$F$5:$CR$10,MATCH('Data Input - BAT'!$D122,'Emissions factors'!$C$5:$C$10,0),MATCH('Data Input - BAT'!AJ$7,'Emissions factors'!$F$4:$CR$4,0))/1000,0)","v":0},{"$f":"IFERROR(AK86*INDEX('Emissions factors'!$F$5:$CR$10,MATCH('Data Input - BAT'!$D122,'Emissions factors'!$C$5:$C$10,0),MATCH('Data Input - BAT'!AK$7,'Emissions factors'!$F$4:$CR$4,0))/1000,0)","v":0},{"$f":"IFERROR(AL86*INDEX('Emissions factors'!$F$5:$CR$10,MATCH('Data Input - BAT'!$D122,'Emissions factors'!$C$5:$C$10,0),MATCH('Data Input - BAT'!AL$7,'Emissions factors'!$F$4:$CR$4,0))/1000,0)","v":0},{"$f":"IFERROR(AM86*INDEX('Emissions factors'!$F$5:$CR$10,MATCH('Data Input - BAT'!$D122,'Emissions factors'!$C$5:$C$10,0),MATCH('Data Input - BAT'!AM$7,'Emissions factors'!$F$4:$CR$4,0))/1000,0)","v":0},{"$f":"IFERROR(AN86*INDEX('Emissions factors'!$F$5:$CR$10,MATCH('Data Input - BAT'!$D122,'Emissions factors'!$C$5:$C$10,0),MATCH('Data Input - BAT'!AN$7,'Emissions factors'!$F$4:$CR$4,0))/1000,0)","v":0},{"$f":"IFERROR(AO86*INDEX('Emissions factors'!$F$5:$CR$10,MATCH('Data Input - BAT'!$D122,'Emissions factors'!$C$5:$C$10,0),MATCH('Data Input - BAT'!AO$7,'Emissions factors'!$F$4:$CR$4,0))/1000,0)","v":0},{"$f":"IFERROR(AP86*INDEX('Emissions factors'!$F$5:$CR$10,MATCH('Data Input - BAT'!$D122,'Emissions factors'!$C$5:$C$10,0),MATCH('Data Input - BAT'!AP$7,'Emissions factors'!$F$4:$CR$4,0))/1000,0)","v":0},{"$f":"IFERROR(AQ86*INDEX('Emissions factors'!$F$5:$CR$10,MATCH('Data Input - BAT'!$D122,'Emissions factors'!$C$5:$C$10,0),MATCH('Data Input - BAT'!AQ$7,'Emissions factors'!$F$4:$CR$4,0))/1000,0)","v":0},{"$f":"IFERROR(AR86*INDEX('Emissions factors'!$F$5:$CR$10,MATCH('Data Input - BAT'!$D122,'Emissions factors'!$C$5:$C$10,0),MATCH('Data Input - BAT'!AR$7,'Emissions factors'!$F$4:$CR$4,0))/1000,0)","v":0},{"$f":"IFERROR(AS86*INDEX('Emissions factors'!$F$5:$CR$10,MATCH('Data Input - BAT'!$D122,'Emissions factors'!$C$5:$C$10,0),MATCH('Data Input - BAT'!AS$7,'Emissions factors'!$F$4:$CR$4,0))/1000,0)","v":0},{"$f":"IFERROR(AT86*INDEX('Emissions factors'!$F$5:$CR$10,MATCH('Data Input - BAT'!$D122,'Emissions factors'!$C$5:$C$10,0),MATCH('Data Input - BAT'!AT$7,'Emissions factors'!$F$4:$CR$4,0))/1000,0)","v":0},{"$f":"IFERROR(AU86*INDEX('Emissions factors'!$F$5:$CR$10,MATCH('Data Input - BAT'!$D122,'Emissions factors'!$C$5:$C$10,0),MATCH('Data Input - BAT'!AU$7,'Emissions factors'!$F$4:$CR$4,0))/1000,0)","v":0},{"$f":"IFERROR(AV86*INDEX('Emissions factors'!$F$5:$CR$10,MATCH('Data Input - BAT'!$D122,'Emissions factors'!$C$5:$C$10,0),MATCH('Data Input - BAT'!AV$7,'Emissions factors'!$F$4:$CR$4,0))/1000,0)","v":0},{"$f":"IFERROR(AW86*INDEX('Emissions factors'!$F$5:$CR$10,MATCH('Data Input - BAT'!$D122,'Emissions factors'!$C$5:$C$10,0),MATCH('Data Input - BAT'!AW$7,'Emissions factors'!$F$4:$CR$4,0))/1000,0)","v":0},{"$f":"IFERROR(AX86*INDEX('Emissions factors'!$F$5:$CR$10,MATCH('Data Input - BAT'!$D122,'Emissions factors'!$C$5:$C$10,0),MATCH('Data Input - BAT'!AX$7,'Emissions factors'!$F$4:$CR$4,0))/1000,0)","v":0},{"$f":"IFERROR(AY86*INDEX('Emissions factors'!$F$5:$CR$10,MATCH('Data Input - BAT'!$D122,'Emissions factors'!$C$5:$C$10,0),MATCH('Data Input - BAT'!AY$7,'Emissions factors'!$F$4:$CR$4,0))/1000,0)","v":0},{"$f":"IFERROR(AZ86*INDEX('Emissions factors'!$F$5:$CR$10,MATCH('Data Input - BAT'!$D122,'Emissions factors'!$C$5:$C$10,0),MATCH('Data Input - BAT'!AZ$7,'Emissions factors'!$F$4:$CR$4,0))/1000,0)","v":0},{"$f":"IFERROR(BA86*INDEX('Emissions factors'!$F$5:$CR$10,MATCH('Data Input - BAT'!$D122,'Emissions factors'!$C$5:$C$10,0),MATCH('Data Input - BAT'!BA$7,'Emissions factors'!$F$4:$CR$4,0))/1000,0)","v":0},{"$f":"IFERROR(BB86*INDEX('Emissions factors'!$F$5:$CR$10,MATCH('Data Input - BAT'!$D122,'Emissions factors'!$C$5:$C$10,0),MATCH('Data Input - BAT'!BB$7,'Emissions factors'!$F$4:$CR$4,0))/1000,0)","v":0},{"$f":"IFERROR(BC86*INDEX('Emissions factors'!$F$5:$CR$10,MATCH('Data Input - BAT'!$D122,'Emissions factors'!$C$5:$C$10,0),MATCH('Data Input - BAT'!BC$7,'Emissions factors'!$F$4:$CR$4,0))/1000,0)","v":0},{"$f":"IFERROR(BD86*INDEX('Emissions factors'!$F$5:$CR$10,MATCH('Data Input - BAT'!$D122,'Emissions factors'!$C$5:$C$10,0),MATCH('Data Input - BAT'!BD$7,'Emissions factors'!$F$4:$CR$4,0))/1000,0)","v":0},{"$f":"IFERROR(BE86*INDEX('Emissions factors'!$F$5:$CR$10,MATCH('Data Input - BAT'!$D122,'Emissions factors'!$C$5:$C$10,0),MATCH('Data Input - BAT'!BE$7,'Emissions factors'!$F$4:$CR$4,0))/1000,0)","v":0},{"$f":"IFERROR(BF86*INDEX('Emissions factors'!$F$5:$CR$10,MATCH('Data Input - BAT'!$D122,'Emissions factors'!$C$5:$C$10,0),MATCH('Data Input - BAT'!BF$7,'Emissions factors'!$F$4:$CR$4,0))/1000,0)","v":0},{"$f":"IFERROR(BG86*INDEX('Emissions factors'!$F$5:$CR$10,MATCH('Data Input - BAT'!$D122,'Emissions factors'!$C$5:$C$10,0),MATCH('Data Input - BAT'!BG$7,'Emissions factors'!$F$4:$CR$4,0))/1000,0)","v":0},{"$f":"IFERROR(BH86*INDEX('Emissions factors'!$F$5:$CR$10,MATCH('Data Input - BAT'!$D122,'Emissions factors'!$C$5:$C$10,0),MATCH('Data Input - BAT'!BH$7,'Emissions factors'!$F$4:$CR$4,0))/1000,0)","v":0},{"$f":"IFERROR(BI86*INDEX('Emissions factors'!$F$5:$CR$10,MATCH('Data Input - BAT'!$D122,'Emissions factors'!$C$5:$C$10,0),MATCH('Data Input - BAT'!BI$7,'Emissions factors'!$F$4:$CR$4,0))/1000,0)","v":0},{"$f":"IFERROR(BJ86*INDEX('Emissions factors'!$F$5:$CR$10,MATCH('Data Input - BAT'!$D122,'Emissions factors'!$C$5:$C$10,0),MATCH('Data Input - BAT'!BJ$7,'Emissions factors'!$F$4:$CR$4,0))/1000,0)","v":0},{"$f":"IFERROR(BK86*INDEX('Emissions factors'!$F$5:$CR$10,MATCH('Data Input - BAT'!$D122,'Emissions factors'!$C$5:$C$10,0),MATCH('Data Input - BAT'!BK$7,'Emissions factors'!$F$4:$CR$4,0))/1000,0)","v":0},{"$f":"IFERROR(BL86*INDEX('Emissions factors'!$F$5:$CR$10,MATCH('Data Input - BAT'!$D122,'Emissions factors'!$C$5:$C$10,0),MATCH('Data Input - BAT'!BL$7,'Emissions factors'!$F$4:$CR$4,0))/1000,0)","v":0},{"$f":"IFERROR(BM86*INDEX('Emissions factors'!$F$5:$CR$10,MATCH('Data Input - BAT'!$D122,'Emissions factors'!$C$5:$C$10,0),MATCH('Data Input - BAT'!BM$7,'Emissions factors'!$F$4:$CR$4,0))/1000,0)","v":0},{"$f":"IFERROR(BN86*INDEX('Emissions factors'!$F$5:$CR$10,MATCH('Data Input - BAT'!$D122,'Emissions factors'!$C$5:$C$10,0),MATCH('Data Input - BAT'!BN$7,'Emissions factors'!$F$4:$CR$4,0))/1000,0)","v":0},{"$f":"IFERROR(BO86*INDEX('Emissions factors'!$F$5:$CR$10,MATCH('Data Input - BAT'!$D122,'Emissions factors'!$C$5:$C$10,0),MATCH('Data Input - BAT'!BO$7,'Emissions factors'!$F$4:$CR$4,0))/1000,0)","v":0},{"$f":"IFERROR(BP86*INDEX('Emissions factors'!$F$5:$CR$10,MATCH('Data Input - BAT'!$D122,'Emissions factors'!$C$5:$C$10,0),MATCH('Data Input - BAT'!BP$7,'Emissions factors'!$F$4:$CR$4,0))/1000,0)","v":0},{"$f":"IFERROR(BQ86*INDEX('Emissions factors'!$F$5:$CR$10,MATCH('Data Input - BAT'!$D122,'Emissions factors'!$C$5:$C$10,0),MATCH('Data Input - BAT'!BQ$7,'Emissions factors'!$F$4:$CR$4,0))/1000,0)","v":0},{"$f":"IFERROR(BR86*INDEX('Emissions factors'!$F$5:$CR$10,MATCH('Data Input - BAT'!$D122,'Emissions factors'!$C$5:$C$10,0),MATCH('Data Input - BAT'!BR$7,'Emissions factors'!$F$4:$CR$4,0))/1000,0)","v":0},{"$f":"IFERROR(BS86*INDEX('Emissions factors'!$F$5:$CR$10,MATCH('Data Input - BAT'!$D122,'Emissions factors'!$C$5:$C$10,0),MATCH('Data Input - BAT'!BS$7,'Emissions factors'!$F$4:$CR$4,0))/1000,0)","v":0},{"$f":"IFERROR(BT86*INDEX('Emissions factors'!$F$5:$CR$10,MATCH('Data Input - BAT'!$D122,'Emissions factors'!$C$5:$C$10,0),MATCH('Data Input - BAT'!BT$7,'Emissions factors'!$F$4:$CR$4,0))/1000,0)","v":0},{"$f":"IFERROR(BU86*INDEX('Emissions factors'!$F$5:$CR$10,MATCH('Data Input - BAT'!$D122,'Emissions factors'!$C$5:$C$10,0),MATCH('Data Input - BAT'!BU$7,'Emissions factors'!$F$4:$CR$4,0))/1000,0)","v":0},{"$f":"IFERROR(BV86*INDEX('Emissions factors'!$F$5:$CR$10,MATCH('Data Input - BAT'!$D122,'Emissions factors'!$C$5:$C$10,0),MATCH('Data Input - BAT'!BV$7,'Emissions factors'!$F$4:$CR$4,0))/1000,0)","v":0},{"$f":"IFERROR(BW86*INDEX('Emissions factors'!$F$5:$CR$10,MATCH('Data Input - BAT'!$D122,'Emissions factors'!$C$5:$C$10,0),MATCH('Data Input - BAT'!BW$7,'Emissions factors'!$F$4:$CR$4,0))/1000,0)","v":0},{"$f":"IFERROR(BX86*INDEX('Emissions factors'!$F$5:$CR$10,MATCH('Data Input - BAT'!$D122,'Emissions factors'!$C$5:$C$10,0),MATCH('Data Input - BAT'!BX$7,'Emissions factors'!$F$4:$CR$4,0))/1000,0)","v":0},{"$f":"IFERROR(BY86*INDEX('Emissions factors'!$F$5:$CR$10,MATCH('Data Input - BAT'!$D122,'Emissions factors'!$C$5:$C$10,0),MATCH('Data Input - BAT'!BY$7,'Emissions factors'!$F$4:$CR$4,0))/1000,0)","v":0},{"$f":"IFERROR(BZ86*INDEX('Emissions factors'!$F$5:$CR$10,MATCH('Data Input - BAT'!$D122,'Emissions factors'!$C$5:$C$10,0),MATCH('Data Input - BAT'!BZ$7,'Emissions factors'!$F$4:$CR$4,0))/1000,0)","v":0},{"$f":"IFERROR(CA86*INDEX('Emissions factors'!$F$5:$CR$10,MATCH('Data Input - BAT'!$D122,'Emissions factors'!$C$5:$C$10,0),MATCH('Data Input - BAT'!CA$7,'Emissions factors'!$F$4:$CR$4,0))/1000,0)","v":0},{"$f":"IFERROR(CB86*INDEX('Emissions factors'!$F$5:$CR$10,MATCH('Data Input - BAT'!$D122,'Emissions factors'!$C$5:$C$10,0),MATCH('Data Input - BAT'!CB$7,'Emissions factors'!$F$4:$CR$4,0))/1000,0)","v":0},{"$f":"IFERROR(CC86*INDEX('Emissions factors'!$F$5:$CR$10,MATCH('Data Input - BAT'!$D122,'Emissions factors'!$C$5:$C$10,0),MATCH('Data Input - BAT'!CC$7,'Emissions factors'!$F$4:$CR$4,0))/1000,0)","v":0},{"$f":"IFERROR(CD86*INDEX('Emissions factors'!$F$5:$CR$10,MATCH('Data Input - BAT'!$D122,'Emissions factors'!$C$5:$C$10,0),MATCH('Data Input - BAT'!CD$7,'Emissions factors'!$F$4:$CR$4,0))/1000,0)","v":0},{"$f":"IFERROR(CE86*INDEX('Emissions factors'!$F$5:$CR$10,MATCH('Data Input - BAT'!$D122,'Emissions factors'!$C$5:$C$10,0),MATCH('Data Input - BAT'!CE$7,'Emissions factors'!$F$4:$CR$4,0))/1000,0)","v":0},{"$f":"IFERROR(CF86*INDEX('Emissions factors'!$F$5:$CR$10,MATCH('Data Input - BAT'!$D122,'Emissions factors'!$C$5:$C$10,0),MATCH('Data Input - BAT'!CF$7,'Emissions factors'!$F$4:$CR$4,0))/1000,0)","v":0},{"$f":"IFERROR(CG86*INDEX('Emissions factors'!$F$5:$CR$10,MATCH('Data Input - BAT'!$D122,'Emissions factors'!$C$5:$C$10,0),MATCH('Data Input - BAT'!CG$7,'Emissions factors'!$F$4:$CR$4,0))/1000,0)","v":0},{"$f":"IFERROR(CH86*INDEX('Emissions factors'!$F$5:$CR$10,MATCH('Data Input - BAT'!$D122,'Emissions factors'!$C$5:$C$10,0),MATCH('Data Input - BAT'!CH$7,'Emissions factors'!$F$4:$CR$4,0))/1000,0)","v":0},{"$f":"IFERROR(CI86*INDEX('Emissions factors'!$F$5:$CR$10,MATCH('Data Input - BAT'!$D122,'Emissions factors'!$C$5:$C$10,0),MATCH('Data Input - BAT'!CI$7,'Emissions factors'!$F$4:$CR$4,0))/1000,0)","v":0},{"$f":"IFERROR(CJ86*INDEX('Emissions factors'!$F$5:$CR$10,MATCH('Data Input - BAT'!$D122,'Emissions factors'!$C$5:$C$10,0),MATCH('Data Input - BAT'!CJ$7,'Emissions factors'!$F$4:$CR$4,0))/1000,0)","v":0},{"$f":"IFERROR(CK86*INDEX('Emissions factors'!$F$5:$CR$10,MATCH('Data Input - BAT'!$D122,'Emissions factors'!$C$5:$C$10,0),MATCH('Data Input - BAT'!CK$7,'Emissions factors'!$F$4:$CR$4,0))/1000,0)","v":0},{"$f":"IFERROR(CL86*INDEX('Emissions factors'!$F$5:$CR$10,MATCH('Data Input - BAT'!$D122,'Emissions factors'!$C$5:$C$10,0),MATCH('Data Input - BAT'!CL$7,'Emissions factors'!$F$4:$CR$4,0))/1000,0)","v":0},{"$f":"IFERROR(CM86*INDEX('Emissions factors'!$F$5:$CR$10,MATCH('Data Input - BAT'!$D122,'Emissions factors'!$C$5:$C$10,0),MATCH('Data Input - BAT'!CM$7,'Emissions factors'!$F$4:$CR$4,0))/1000,0)","v":0},{"$f":"IFERROR(CN86*INDEX('Emissions factors'!$F$5:$CR$10,MATCH('Data Input - BAT'!$D122,'Emissions factors'!$C$5:$C$10,0),MATCH('Data Input - BAT'!CN$7,'Emissions factors'!$F$4:$CR$4,0))/1000,0)","v":0},{"$f":"IFERROR(CO86*INDEX('Emissions factors'!$F$5:$CR$10,MATCH('Data Input - BAT'!$D122,'Emissions factors'!$C$5:$C$10,0),MATCH('Data Input - BAT'!CO$7,'Emissions factors'!$F$4:$CR$4,0))/1000,0)","v":0},{"$f":"IFERROR(CP86*INDEX('Emissions factors'!$F$5:$CR$10,MATCH('Data Input - BAT'!$D122,'Emissions factors'!$C$5:$C$10,0),MATCH('Data Input - BAT'!CP$7,'Emissions factors'!$F$4:$CR$4,0))/1000,0)","v":0},{"$f":"IFERROR(CQ86*INDEX('Emissions factors'!$F$5:$CR$10,MATCH('Data Input - BAT'!$D122,'Emissions factors'!$C$5:$C$10,0),MATCH('Data Input - BAT'!CQ$7,'Emissions factors'!$F$4:$CR$4,0))/1000,0)","v":0},{"$f":"IFERROR(CR86*INDEX('Emissions factors'!$F$5:$CR$10,MATCH('Data Input - BAT'!$D122,'Emissions factors'!$C$5:$C$10,0),MATCH('Data Input - BAT'!CR$7,'Emissions factors'!$F$4:$CR$4,0))/1000,0)","v":0},{"$f":"IFERROR(CS86*INDEX('Emissions factors'!$F$5:$CR$10,MATCH('Data Input - BAT'!$D122,'Emissions factors'!$C$5:$C$10,0),MATCH('Data Input - BAT'!CS$7,'Emissions factors'!$F$4:$CR$4,0))/1000,0)","v":0},{"$f":"IFERROR(CT86*INDEX('Emissions factors'!$F$5:$CR$10,MATCH('Data Input - BAT'!$D122,'Emissions factors'!$C$5:$C$10,0),MATCH('Data Input - BAT'!CT$7,'Emissions factors'!$F$4:$CR$4,0))/1000,0)","v":0},{"$f":"IFERROR(CU86*INDEX('Emissions factors'!$F$5:$CR$10,MATCH('Data Input - BAT'!$D122,'Emissions factors'!$C$5:$C$10,0),MATCH('Data Input - BAT'!CU$7,'Emissions factors'!$F$4:$CR$4,0))/1000,0)","v":0},{"$f":"IFERROR(CV86*INDEX('Emissions factors'!$F$5:$CR$10,MATCH('Data Input - BAT'!$D122,'Emissions factors'!$C$5:$C$10,0),MATCH('Data Input - BAT'!CV$7,'Emissions factors'!$F$4:$CR$4,0))/1000,0)","v":0},{"$f":"IFERROR(CW86*INDEX('Emissions factors'!$F$5:$CR$10,MATCH('Data Input - BAT'!$D122,'Emissions factors'!$C$5:$C$10,0),MATCH('Data Input - BAT'!CW$7,'Emissions factors'!$F$4:$CR$4,0))/1000,0)","v":0},{"$f":"IFERROR(CX86*INDEX('Emissions factors'!$F$5:$CR$10,MATCH('Data Input - BAT'!$D122,'Emissions factors'!$C$5:$C$10,0),MATCH('Data Input - BAT'!CX$7,'Emissions factors'!$F$4:$CR$4,0))/1000,0)","v":0},{"$f":"IFERROR(CY86*INDEX('Emissions factors'!$F$5:$CR$10,MATCH('Data Input - BAT'!$D122,'Emissions factors'!$C$5:$C$10,0),MATCH('Data Input - BAT'!CY$7,'Emissions factors'!$F$4:$CR$4,0))/1000,0)","v":0},{"$f":"IFERROR(CZ86*INDEX('Emissions factors'!$F$5:$CR$10,MATCH('Data Input - BAT'!$D122,'Emissions factors'!$C$5:$C$10,0),MATCH('Data Input - BAT'!CZ$7,'Emissions factors'!$F$4:$CR$4,0))/1000,0)","v":0},{"$f":"IFERROR(DA86*INDEX('Emissions factors'!$F$5:$CR$10,MATCH('Data Input - BAT'!$D122,'Emissions factors'!$C$5:$C$10,0),MATCH('Data Input - BAT'!DA$7,'Emissions factors'!$F$4:$CR$4,0))/1000,0)","v":0},{"$f":"IFERROR(DB86*INDEX('Emissions factors'!$F$5:$CR$10,MATCH('Data Input - BAT'!$D122,'Emissions factors'!$C$5:$C$10,0),MATCH('Data Input - BAT'!DB$7,'Emissions factors'!$F$4:$CR$4,0))/1000,0)","v":0},{"$f":"IFERROR(DC86*INDEX('Emissions factors'!$F$5:$CR$10,MATCH('Data Input - BAT'!$D122,'Emissions factors'!$C$5:$C$10,0),MATCH('Data Input - BAT'!DC$7,'Emissions factors'!$F$4:$CR$4,0))/1000,0)","v":0}]
[null,null,null,"Gas Oil","tCO2e","(Auto calculated value)",null,{"$f":"IFERROR(H87*INDEX('Emissions factors'!$F$5:$CR$10,MATCH('Data Input - BAT'!$D123,'Emissions factors'!$C$5:$C$10,0),MATCH('Data Input - BAT'!H$7,'Emissions factors'!$F$4:$CR$4,0))/1000,0)","v":543.19064937918642},{"$f":"IFERROR(I87*INDEX('Emissions factors'!$F$5:$CR$10,MATCH('Data Input - BAT'!$D123,'Emissions factors'!$C$5:$C$10,0),MATCH('Data Input - BAT'!I$7,'Emissions factors'!$F$4:$CR$4,0))/1000,0)","v":533.84551869385984},{"$f":"IFERROR(J87*INDEX('Emissions factors'!$F$5:$CR$10,MATCH('Data Input - BAT'!$D123,'Emissions factors'!$C$5:$C$10,0),MATCH('Data Input - BAT'!J$7,'Emissions factors'!$F$4:$CR$4,0))/1000,0)","v":533.84551869385984},{"$f":"IFERROR(K87*INDEX('Emissions factors'!$F$5:$CR$10,MATCH('Data Input - BAT'!$D123,'Emissions factors'!$C$5:$C$10,0),MATCH('Data Input - BAT'!K$7,'Emissions factors'!$F$4:$CR$4,0))/1000,0)","v":533.84551869385984},{"$f":"IFERROR(L87*INDEX('Emissions factors'!$F$5:$CR$10,MATCH('Data Input - BAT'!$D123,'Emissions factors'!$C$5:$C$10,0),MATCH('Data Input - BAT'!L$7,'Emissions factors'!$F$4:$CR$4,0))/1000,0)","v":533.84551869385984},{"$f":"IFERROR(M87*INDEX('Emissions factors'!$F$5:$CR$10,MATCH('Data Input - BAT'!$D123,'Emissions factors'!$C$5:$C$10,0),MATCH('Data Input - BAT'!M$7,'Emissions factors'!$F$4:$CR$4,0))/1000,0)","v":533.84551869385984},{"$f":"IFERROR(N87*INDEX('Emissions factors'!$F$5:$CR$10,MATCH('Data Input - BAT'!$D123,'Emissions factors'!$C$5:$C$10,0),MATCH('Data Input - BAT'!N$7,'Emissions factors'!$F$4:$CR$4,0))/1000,0)","v":533.84551869385984},{"$f":"IFERROR(O87*INDEX('Emissions factors'!$F$5:$CR$10,MATCH('Data Input - BAT'!$D123,'Emissions factors'!$C$5:$C$10,0),MATCH('Data Input - BAT'!O$7,'Emissions factors'!$F$4:$CR$4,0))/1000,0)","v":533.84551869385984},{"$f":"IFERROR(P87*INDEX('Emissions factors'!$F$5:$CR$10,MATCH('Data Input - BAT'!$D123,'Emissions factors'!$C$5:$C$10,0),MATCH('Data Input - BAT'!P$7,'Emissions factors'!$F$4:$CR$4,0))/1000,0)","v":0},{"$f":"IFERROR(Q87*INDEX('Emissions factors'!$F$5:$CR$10,MATCH('Data Input - BAT'!$D123,'Emissions factors'!$C$5:$C$10,0),MATCH('Data Input - BAT'!Q$7,'Emissions factors'!$F$4:$CR$4,0))/1000,0)","v":0},{"$f":"IFERROR(R87*INDEX('Emissions factors'!$F$5:$CR$10,MATCH('Data Input - BAT'!$D123,'Emissions factors'!$C$5:$C$10,0),MATCH('Data Input - BAT'!R$7,'Emissions factors'!$F$4:$CR$4,0))/1000,0)","v":0},{"$f":"IFERROR(S87*INDEX('Emissions factors'!$F$5:$CR$10,MATCH('Data Input - BAT'!$D123,'Emissions factors'!$C$5:$C$10,0),MATCH('Data Input - BAT'!S$7,'Emissions factors'!$F$4:$CR$4,0))/1000,0)","v":0},{"$f":"IFERROR(T87*INDEX('Emissions factors'!$F$5:$CR$10,MATCH('Data Input - BAT'!$D123,'Emissions factors'!$C$5:$C$10,0),MATCH('Data Input - BAT'!T$7,'Emissions factors'!$F$4:$CR$4,0))/1000,0)","v":0},{"$f":"IFERROR(U87*INDEX('Emissions factors'!$F$5:$CR$10,MATCH('Data Input - BAT'!$D123,'Emissions factors'!$C$5:$C$10,0),MATCH('Data Input - BAT'!U$7,'Emissions factors'!$F$4:$CR$4,0))/1000,0)","v":0},{"$f":"IFERROR(V87*INDEX('Emissions factors'!$F$5:$CR$10,MATCH('Data Input - BAT'!$D123,'Emissions factors'!$C$5:$C$10,0),MATCH('Data Input - BAT'!V$7,'Emissions factors'!$F$4:$CR$4,0))/1000,0)","v":0},{"$f":"IFERROR(W87*INDEX('Emissions factors'!$F$5:$CR$10,MATCH('Data Input - BAT'!$D123,'Emissions factors'!$C$5:$C$10,0),MATCH('Data Input - BAT'!W$7,'Emissions factors'!$F$4:$CR$4,0))/1000,0)","v":0},{"$f":"IFERROR(X87*INDEX('Emissions factors'!$F$5:$CR$10,MATCH('Data Input - BAT'!$D123,'Emissions factors'!$C$5:$C$10,0),MATCH('Data Input - BAT'!X$7,'Emissions factors'!$F$4:$CR$4,0))/1000,0)","v":0},{"$f":"IFERROR(Y87*INDEX('Emissions factors'!$F$5:$CR$10,MATCH('Data Input - BAT'!$D123,'Emissions factors'!$C$5:$C$10,0),MATCH('Data Input - BAT'!Y$7,'Emissions factors'!$F$4:$CR$4,0))/1000,0)","v":0},{"$f":"IFERROR(Z87*INDEX('Emissions factors'!$F$5:$CR$10,MATCH('Data Input - BAT'!$D123,'Emissions factors'!$C$5:$C$10,0),MATCH('Data Input - BAT'!Z$7,'Emissions factors'!$F$4:$CR$4,0))/1000,0)","v":0},{"$f":"IFERROR(AA87*INDEX('Emissions factors'!$F$5:$CR$10,MATCH('Data Input - BAT'!$D123,'Emissions factors'!$C$5:$C$10,0),MATCH('Data Input - BAT'!AA$7,'Emissions factors'!$F$4:$CR$4,0))/1000,0)","v":0},{"$f":"IFERROR(AB87*INDEX('Emissions factors'!$F$5:$CR$10,MATCH('Data Input - BAT'!$D123,'Emissions factors'!$C$5:$C$10,0),MATCH('Data Input - BAT'!AB$7,'Emissions factors'!$F$4:$CR$4,0))/1000,0)","v":0},{"$f":"IFERROR(AC87*INDEX('Emissions factors'!$F$5:$CR$10,MATCH('Data Input - BAT'!$D123,'Emissions factors'!$C$5:$C$10,0),MATCH('Data Input - BAT'!AC$7,'Emissions factors'!$F$4:$CR$4,0))/1000,0)","v":0},{"$f":"IFERROR(AD87*INDEX('Emissions factors'!$F$5:$CR$10,MATCH('Data Input - BAT'!$D123,'Emissions factors'!$C$5:$C$10,0),MATCH('Data Input - BAT'!AD$7,'Emissions factors'!$F$4:$CR$4,0))/1000,0)","v":0},{"$f":"IFERROR(AE87*INDEX('Emissions factors'!$F$5:$CR$10,MATCH('Data Input - BAT'!$D123,'Emissions factors'!$C$5:$C$10,0),MATCH('Data Input - BAT'!AE$7,'Emissions factors'!$F$4:$CR$4,0))/1000,0)","v":0},{"$f":"IFERROR(AF87*INDEX('Emissions factors'!$F$5:$CR$10,MATCH('Data Input - BAT'!$D123,'Emissions factors'!$C$5:$C$10,0),MATCH('Data Input - BAT'!AF$7,'Emissions factors'!$F$4:$CR$4,0))/1000,0)","v":0},{"$f":"IFERROR(AG87*INDEX('Emissions factors'!$F$5:$CR$10,MATCH('Data Input - BAT'!$D123,'Emissions factors'!$C$5:$C$10,0),MATCH('Data Input - BAT'!AG$7,'Emissions factors'!$F$4:$CR$4,0))/1000,0)","v":0},{"$f":"IFERROR(AH87*INDEX('Emissions factors'!$F$5:$CR$10,MATCH('Data Input - BAT'!$D123,'Emissions factors'!$C$5:$C$10,0),MATCH('Data Input - BAT'!AH$7,'Emissions factors'!$F$4:$CR$4,0))/1000,0)","v":0},{"$f":"IFERROR(AI87*INDEX('Emissions factors'!$F$5:$CR$10,MATCH('Data Input - BAT'!$D123,'Emissions factors'!$C$5:$C$10,0),MATCH('Data Input - BAT'!AI$7,'Emissions factors'!$F$4:$CR$4,0))/1000,0)","v":0},{"$f":"IFERROR(AJ87*INDEX('Emissions factors'!$F$5:$CR$10,MATCH('Data Input - BAT'!$D123,'Emissions factors'!$C$5:$C$10,0),MATCH('Data Input - BAT'!AJ$7,'Emissions factors'!$F$4:$CR$4,0))/1000,0)","v":0},{"$f":"IFERROR(AK87*INDEX('Emissions factors'!$F$5:$CR$10,MATCH('Data Input - BAT'!$D123,'Emissions factors'!$C$5:$C$10,0),MATCH('Data Input - BAT'!AK$7,'Emissions factors'!$F$4:$CR$4,0))/1000,0)","v":0},{"$f":"IFERROR(AL87*INDEX('Emissions factors'!$F$5:$CR$10,MATCH('Data Input - BAT'!$D123,'Emissions factors'!$C$5:$C$10,0),MATCH('Data Input - BAT'!AL$7,'Emissions factors'!$F$4:$CR$4,0))/1000,0)","v":0},{"$f":"IFERROR(AM87*INDEX('Emissions factors'!$F$5:$CR$10,MATCH('Data Input - BAT'!$D123,'Emissions factors'!$C$5:$C$10,0),MATCH('Data Input - BAT'!AM$7,'Emissions factors'!$F$4:$CR$4,0))/1000,0)","v":0},{"$f":"IFERROR(AN87*INDEX('Emissions factors'!$F$5:$CR$10,MATCH('Data Input - BAT'!$D123,'Emissions factors'!$C$5:$C$10,0),MATCH('Data Input - BAT'!AN$7,'Emissions factors'!$F$4:$CR$4,0))/1000,0)","v":0},{"$f":"IFERROR(AO87*INDEX('Emissions factors'!$F$5:$CR$10,MATCH('Data Input - BAT'!$D123,'Emissions factors'!$C$5:$C$10,0),MATCH('Data Input - BAT'!AO$7,'Emissions factors'!$F$4:$CR$4,0))/1000,0)","v":0},{"$f":"IFERROR(AP87*INDEX('Emissions factors'!$F$5:$CR$10,MATCH('Data Input - BAT'!$D123,'Emissions factors'!$C$5:$C$10,0),MATCH('Data Input - BAT'!AP$7,'Emissions factors'!$F$4:$CR$4,0))/1000,0)","v":0},{"$f":"IFERROR(AQ87*INDEX('Emissions factors'!$F$5:$CR$10,MATCH('Data Input - BAT'!$D123,'Emissions factors'!$C$5:$C$10,0),MATCH('Data Input - BAT'!AQ$7,'Emissions factors'!$F$4:$CR$4,0))/1000,0)","v":0},{"$f":"IFERROR(AR87*INDEX('Emissions factors'!$F$5:$CR$10,MATCH('Data Input - BAT'!$D123,'Emissions factors'!$C$5:$C$10,0),MATCH('Data Input - BAT'!AR$7,'Emissions factors'!$F$4:$CR$4,0))/1000,0)","v":0},{"$f":"IFERROR(AS87*INDEX('Emissions factors'!$F$5:$CR$10,MATCH('Data Input - BAT'!$D123,'Emissions factors'!$C$5:$C$10,0),MATCH('Data Input - BAT'!AS$7,'Emissions factors'!$F$4:$CR$4,0))/1000,0)","v":0},{"$f":"IFERROR(AT87*INDEX('Emissions factors'!$F$5:$CR$10,MATCH('Data Input - BAT'!$D123,'Emissions factors'!$C$5:$C$10,0),MATCH('Data Input - BAT'!AT$7,'Emissions factors'!$F$4:$CR$4,0))/1000,0)","v":0},{"$f":"IFERROR(AU87*INDEX('Emissions factors'!$F$5:$CR$10,MATCH('Data Input - BAT'!$D123,'Emissions factors'!$C$5:$C$10,0),MATCH('Data Input - BAT'!AU$7,'Emissions factors'!$F$4:$CR$4,0))/1000,0)","v":0},{"$f":"IFERROR(AV87*INDEX('Emissions factors'!$F$5:$CR$10,MATCH('Data Input - BAT'!$D123,'Emissions factors'!$C$5:$C$10,0),MATCH('Data Input - BAT'!AV$7,'Emissions factors'!$F$4:$CR$4,0))/1000,0)","v":0},{"$f":"IFERROR(AW87*INDEX('Emissions factors'!$F$5:$CR$10,MATCH('Data Input - BAT'!$D123,'Emissions factors'!$C$5:$C$10,0),MATCH('Data Input - BAT'!AW$7,'Emissions factors'!$F$4:$CR$4,0))/1000,0)","v":0},{"$f":"IFERROR(AX87*INDEX('Emissions factors'!$F$5:$CR$10,MATCH('Data Input - BAT'!$D123,'Emissions factors'!$C$5:$C$10,0),MATCH('Data Input - BAT'!AX$7,'Emissions factors'!$F$4:$CR$4,0))/1000,0)","v":0},{"$f":"IFERROR(AY87*INDEX('Emissions factors'!$F$5:$CR$10,MATCH('Data Input - BAT'!$D123,'Emissions factors'!$C$5:$C$10,0),MATCH('Data Input - BAT'!AY$7,'Emissions factors'!$F$4:$CR$4,0))/1000,0)","v":0},{"$f":"IFERROR(AZ87*INDEX('Emissions factors'!$F$5:$CR$10,MATCH('Data Input - BAT'!$D123,'Emissions factors'!$C$5:$C$10,0),MATCH('Data Input - BAT'!AZ$7,'Emissions factors'!$F$4:$CR$4,0))/1000,0)","v":0},{"$f":"IFERROR(BA87*INDEX('Emissions factors'!$F$5:$CR$10,MATCH('Data Input - BAT'!$D123,'Emissions factors'!$C$5:$C$10,0),MATCH('Data Input - BAT'!BA$7,'Emissions factors'!$F$4:$CR$4,0))/1000,0)","v":0},{"$f":"IFERROR(BB87*INDEX('Emissions factors'!$F$5:$CR$10,MATCH('Data Input - BAT'!$D123,'Emissions factors'!$C$5:$C$10,0),MATCH('Data Input - BAT'!BB$7,'Emissions factors'!$F$4:$CR$4,0))/1000,0)","v":0},{"$f":"IFERROR(BC87*INDEX('Emissions factors'!$F$5:$CR$10,MATCH('Data Input - BAT'!$D123,'Emissions factors'!$C$5:$C$10,0),MATCH('Data Input - BAT'!BC$7,'Emissions factors'!$F$4:$CR$4,0))/1000,0)","v":0},{"$f":"IFERROR(BD87*INDEX('Emissions factors'!$F$5:$CR$10,MATCH('Data Input - BAT'!$D123,'Emissions factors'!$C$5:$C$10,0),MATCH('Data Input - BAT'!BD$7,'Emissions factors'!$F$4:$CR$4,0))/1000,0)","v":0},{"$f":"IFERROR(BE87*INDEX('Emissions factors'!$F$5:$CR$10,MATCH('Data Input - BAT'!$D123,'Emissions factors'!$C$5:$C$10,0),MATCH('Data Input - BAT'!BE$7,'Emissions factors'!$F$4:$CR$4,0))/1000,0)","v":0},{"$f":"IFERROR(BF87*INDEX('Emissions factors'!$F$5:$CR$10,MATCH('Data Input - BAT'!$D123,'Emissions factors'!$C$5:$C$10,0),MATCH('Data Input - BAT'!BF$7,'Emissions factors'!$F$4:$CR$4,0))/1000,0)","v":0},{"$f":"IFERROR(BG87*INDEX('Emissions factors'!$F$5:$CR$10,MATCH('Data Input - BAT'!$D123,'Emissions factors'!$C$5:$C$10,0),MATCH('Data Input - BAT'!BG$7,'Emissions factors'!$F$4:$CR$4,0))/1000,0)","v":0},{"$f":"IFERROR(BH87*INDEX('Emissions factors'!$F$5:$CR$10,MATCH('Data Input - BAT'!$D123,'Emissions factors'!$C$5:$C$10,0),MATCH('Data Input - BAT'!BH$7,'Emissions factors'!$F$4:$CR$4,0))/1000,0)","v":0},{"$f":"IFERROR(BI87*INDEX('Emissions factors'!$F$5:$CR$10,MATCH('Data Input - BAT'!$D123,'Emissions factors'!$C$5:$C$10,0),MATCH('Data Input - BAT'!BI$7,'Emissions factors'!$F$4:$CR$4,0))/1000,0)","v":0},{"$f":"IFERROR(BJ87*INDEX('Emissions factors'!$F$5:$CR$10,MATCH('Data Input - BAT'!$D123,'Emissions factors'!$C$5:$C$10,0),MATCH('Data Input - BAT'!BJ$7,'Emissions factors'!$F$4:$CR$4,0))/1000,0)","v":0},{"$f":"IFERROR(BK87*INDEX('Emissions factors'!$F$5:$CR$10,MATCH('Data Input - BAT'!$D123,'Emissions factors'!$C$5:$C$10,0),MATCH('Data Input - BAT'!BK$7,'Emissions factors'!$F$4:$CR$4,0))/1000,0)","v":0},{"$f":"IFERROR(BL87*INDEX('Emissions factors'!$F$5:$CR$10,MATCH('Data Input - BAT'!$D123,'Emissions factors'!$C$5:$C$10,0),MATCH('Data Input - BAT'!BL$7,'Emissions factors'!$F$4:$CR$4,0))/1000,0)","v":0},{"$f":"IFERROR(BM87*INDEX('Emissions factors'!$F$5:$CR$10,MATCH('Data Input - BAT'!$D123,'Emissions factors'!$C$5:$C$10,0),MATCH('Data Input - BAT'!BM$7,'Emissions factors'!$F$4:$CR$4,0))/1000,0)","v":0},{"$f":"IFERROR(BN87*INDEX('Emissions factors'!$F$5:$CR$10,MATCH('Data Input - BAT'!$D123,'Emissions factors'!$C$5:$C$10,0),MATCH('Data Input - BAT'!BN$7,'Emissions factors'!$F$4:$CR$4,0))/1000,0)","v":0},{"$f":"IFERROR(BO87*INDEX('Emissions factors'!$F$5:$CR$10,MATCH('Data Input - BAT'!$D123,'Emissions factors'!$C$5:$C$10,0),MATCH('Data Input - BAT'!BO$7,'Emissions factors'!$F$4:$CR$4,0))/1000,0)","v":0},{"$f":"IFERROR(BP87*INDEX('Emissions factors'!$F$5:$CR$10,MATCH('Data Input - BAT'!$D123,'Emissions factors'!$C$5:$C$10,0),MATCH('Data Input - BAT'!BP$7,'Emissions factors'!$F$4:$CR$4,0))/1000,0)","v":0},{"$f":"IFERROR(BQ87*INDEX('Emissions factors'!$F$5:$CR$10,MATCH('Data Input - BAT'!$D123,'Emissions factors'!$C$5:$C$10,0),MATCH('Data Input - BAT'!BQ$7,'Emissions factors'!$F$4:$CR$4,0))/1000,0)","v":0},{"$f":"IFERROR(BR87*INDEX('Emissions factors'!$F$5:$CR$10,MATCH('Data Input - BAT'!$D123,'Emissions factors'!$C$5:$C$10,0),MATCH('Data Input - BAT'!BR$7,'Emissions factors'!$F$4:$CR$4,0))/1000,0)","v":0},{"$f":"IFERROR(BS87*INDEX('Emissions factors'!$F$5:$CR$10,MATCH('Data Input - BAT'!$D123,'Emissions factors'!$C$5:$C$10,0),MATCH('Data Input - BAT'!BS$7,'Emissions factors'!$F$4:$CR$4,0))/1000,0)","v":0},{"$f":"IFERROR(BT87*INDEX('Emissions factors'!$F$5:$CR$10,MATCH('Data Input - BAT'!$D123,'Emissions factors'!$C$5:$C$10,0),MATCH('Data Input - BAT'!BT$7,'Emissions factors'!$F$4:$CR$4,0))/1000,0)","v":0},{"$f":"IFERROR(BU87*INDEX('Emissions factors'!$F$5:$CR$10,MATCH('Data Input - BAT'!$D123,'Emissions factors'!$C$5:$C$10,0),MATCH('Data Input - BAT'!BU$7,'Emissions factors'!$F$4:$CR$4,0))/1000,0)","v":0},{"$f":"IFERROR(BV87*INDEX('Emissions factors'!$F$5:$CR$10,MATCH('Data Input - BAT'!$D123,'Emissions factors'!$C$5:$C$10,0),MATCH('Data Input - BAT'!BV$7,'Emissions factors'!$F$4:$CR$4,0))/1000,0)","v":0},{"$f":"IFERROR(BW87*INDEX('Emissions factors'!$F$5:$CR$10,MATCH('Data Input - BAT'!$D123,'Emissions factors'!$C$5:$C$10,0),MATCH('Data Input - BAT'!BW$7,'Emissions factors'!$F$4:$CR$4,0))/1000,0)","v":0},{"$f":"IFERROR(BX87*INDEX('Emissions factors'!$F$5:$CR$10,MATCH('Data Input - BAT'!$D123,'Emissions factors'!$C$5:$C$10,0),MATCH('Data Input - BAT'!BX$7,'Emissions factors'!$F$4:$CR$4,0))/1000,0)","v":0},{"$f":"IFERROR(BY87*INDEX('Emissions factors'!$F$5:$CR$10,MATCH('Data Input - BAT'!$D123,'Emissions factors'!$C$5:$C$10,0),MATCH('Data Input - BAT'!BY$7,'Emissions factors'!$F$4:$CR$4,0))/1000,0)","v":0},{"$f":"IFERROR(BZ87*INDEX('Emissions factors'!$F$5:$CR$10,MATCH('Data Input - BAT'!$D123,'Emissions factors'!$C$5:$C$10,0),MATCH('Data Input - BAT'!BZ$7,'Emissions factors'!$F$4:$CR$4,0))/1000,0)","v":0},{"$f":"IFERROR(CA87*INDEX('Emissions factors'!$F$5:$CR$10,MATCH('Data Input - BAT'!$D123,'Emissions factors'!$C$5:$C$10,0),MATCH('Data Input - BAT'!CA$7,'Emissions factors'!$F$4:$CR$4,0))/1000,0)","v":0},{"$f":"IFERROR(CB87*INDEX('Emissions factors'!$F$5:$CR$10,MATCH('Data Input - BAT'!$D123,'Emissions factors'!$C$5:$C$10,0),MATCH('Data Input - BAT'!CB$7,'Emissions factors'!$F$4:$CR$4,0))/1000,0)","v":0},{"$f":"IFERROR(CC87*INDEX('Emissions factors'!$F$5:$CR$10,MATCH('Data Input - BAT'!$D123,'Emissions factors'!$C$5:$C$10,0),MATCH('Data Input - BAT'!CC$7,'Emissions factors'!$F$4:$CR$4,0))/1000,0)","v":0},{"$f":"IFERROR(CD87*INDEX('Emissions factors'!$F$5:$CR$10,MATCH('Data Input - BAT'!$D123,'Emissions factors'!$C$5:$C$10,0),MATCH('Data Input - BAT'!CD$7,'Emissions factors'!$F$4:$CR$4,0))/1000,0)","v":0},{"$f":"IFERROR(CE87*INDEX('Emissions factors'!$F$5:$CR$10,MATCH('Data Input - BAT'!$D123,'Emissions factors'!$C$5:$C$10,0),MATCH('Data Input - BAT'!CE$7,'Emissions factors'!$F$4:$CR$4,0))/1000,0)","v":0},{"$f":"IFERROR(CF87*INDEX('Emissions factors'!$F$5:$CR$10,MATCH('Data Input - BAT'!$D123,'Emissions factors'!$C$5:$C$10,0),MATCH('Data Input - BAT'!CF$7,'Emissions factors'!$F$4:$CR$4,0))/1000,0)","v":0},{"$f":"IFERROR(CG87*INDEX('Emissions factors'!$F$5:$CR$10,MATCH('Data Input - BAT'!$D123,'Emissions factors'!$C$5:$C$10,0),MATCH('Data Input - BAT'!CG$7,'Emissions factors'!$F$4:$CR$4,0))/1000,0)","v":0},{"$f":"IFERROR(CH87*INDEX('Emissions factors'!$F$5:$CR$10,MATCH('Data Input - BAT'!$D123,'Emissions factors'!$C$5:$C$10,0),MATCH('Data Input - BAT'!CH$7,'Emissions factors'!$F$4:$CR$4,0))/1000,0)","v":0},{"$f":"IFERROR(CI87*INDEX('Emissions factors'!$F$5:$CR$10,MATCH('Data Input - BAT'!$D123,'Emissions factors'!$C$5:$C$10,0),MATCH('Data Input - BAT'!CI$7,'Emissions factors'!$F$4:$CR$4,0))/1000,0)","v":0},{"$f":"IFERROR(CJ87*INDEX('Emissions factors'!$F$5:$CR$10,MATCH('Data Input - BAT'!$D123,'Emissions factors'!$C$5:$C$10,0),MATCH('Data Input - BAT'!CJ$7,'Emissions factors'!$F$4:$CR$4,0))/1000,0)","v":0},{"$f":"IFERROR(CK87*INDEX('Emissions factors'!$F$5:$CR$10,MATCH('Data Input - BAT'!$D123,'Emissions factors'!$C$5:$C$10,0),MATCH('Data Input - BAT'!CK$7,'Emissions factors'!$F$4:$CR$4,0))/1000,0)","v":0},{"$f":"IFERROR(CL87*INDEX('Emissions factors'!$F$5:$CR$10,MATCH('Data Input - BAT'!$D123,'Emissions factors'!$C$5:$C$10,0),MATCH('Data Input - BAT'!CL$7,'Emissions factors'!$F$4:$CR$4,0))/1000,0)","v":0},{"$f":"IFERROR(CM87*INDEX('Emissions factors'!$F$5:$CR$10,MATCH('Data Input - BAT'!$D123,'Emissions factors'!$C$5:$C$10,0),MATCH('Data Input - BAT'!CM$7,'Emissions factors'!$F$4:$CR$4,0))/1000,0)","v":0},{"$f":"IFERROR(CN87*INDEX('Emissions factors'!$F$5:$CR$10,MATCH('Data Input - BAT'!$D123,'Emissions factors'!$C$5:$C$10,0),MATCH('Data Input - BAT'!CN$7,'Emissions factors'!$F$4:$CR$4,0))/1000,0)","v":0},{"$f":"IFERROR(CO87*INDEX('Emissions factors'!$F$5:$CR$10,MATCH('Data Input - BAT'!$D123,'Emissions factors'!$C$5:$C$10,0),MATCH('Data Input - BAT'!CO$7,'Emissions factors'!$F$4:$CR$4,0))/1000,0)","v":0},{"$f":"IFERROR(CP87*INDEX('Emissions factors'!$F$5:$CR$10,MATCH('Data Input - BAT'!$D123,'Emissions factors'!$C$5:$C$10,0),MATCH('Data Input - BAT'!CP$7,'Emissions factors'!$F$4:$CR$4,0))/1000,0)","v":0},{"$f":"IFERROR(CQ87*INDEX('Emissions factors'!$F$5:$CR$10,MATCH('Data Input - BAT'!$D123,'Emissions factors'!$C$5:$C$10,0),MATCH('Data Input - BAT'!CQ$7,'Emissions factors'!$F$4:$CR$4,0))/1000,0)","v":0},{"$f":"IFERROR(CR87*INDEX('Emissions factors'!$F$5:$CR$10,MATCH('Data Input - BAT'!$D123,'Emissions factors'!$C$5:$C$10,0),MATCH('Data Input - BAT'!CR$7,'Emissions factors'!$F$4:$CR$4,0))/1000,0)","v":0},{"$f":"IFERROR(CS87*INDEX('Emissions factors'!$F$5:$CR$10,MATCH('Data Input - BAT'!$D123,'Emissions factors'!$C$5:$C$10,0),MATCH('Data Input - BAT'!CS$7,'Emissions factors'!$F$4:$CR$4,0))/1000,0)","v":0},{"$f":"IFERROR(CT87*INDEX('Emissions factors'!$F$5:$CR$10,MATCH('Data Input - BAT'!$D123,'Emissions factors'!$C$5:$C$10,0),MATCH('Data Input - BAT'!CT$7,'Emissions factors'!$F$4:$CR$4,0))/1000,0)","v":0},{"$f":"IFERROR(CU87*INDEX('Emissions factors'!$F$5:$CR$10,MATCH('Data Input - BAT'!$D123,'Emissions factors'!$C$5:$C$10,0),MATCH('Data Input - BAT'!CU$7,'Emissions factors'!$F$4:$CR$4,0))/1000,0)","v":0},{"$f":"IFERROR(CV87*INDEX('Emissions factors'!$F$5:$CR$10,MATCH('Data Input - BAT'!$D123,'Emissions factors'!$C$5:$C$10,0),MATCH('Data Input - BAT'!CV$7,'Emissions factors'!$F$4:$CR$4,0))/1000,0)","v":0},{"$f":"IFERROR(CW87*INDEX('Emissions factors'!$F$5:$CR$10,MATCH('Data Input - BAT'!$D123,'Emissions factors'!$C$5:$C$10,0),MATCH('Data Input - BAT'!CW$7,'Emissions factors'!$F$4:$CR$4,0))/1000,0)","v":0},{"$f":"IFERROR(CX87*INDEX('Emissions factors'!$F$5:$CR$10,MATCH('Data Input - BAT'!$D123,'Emissions factors'!$C$5:$C$10,0),MATCH('Data Input - BAT'!CX$7,'Emissions factors'!$F$4:$CR$4,0))/1000,0)","v":0},{"$f":"IFERROR(CY87*INDEX('Emissions factors'!$F$5:$CR$10,MATCH('Data Input - BAT'!$D123,'Emissions factors'!$C$5:$C$10,0),MATCH('Data Input - BAT'!CY$7,'Emissions factors'!$F$4:$CR$4,0))/1000,0)","v":0},{"$f":"IFERROR(CZ87*INDEX('Emissions factors'!$F$5:$CR$10,MATCH('Data Input - BAT'!$D123,'Emissions factors'!$C$5:$C$10,0),MATCH('Data Input - BAT'!CZ$7,'Emissions factors'!$F$4:$CR$4,0))/1000,0)","v":0},{"$f":"IFERROR(DA87*INDEX('Emissions factors'!$F$5:$CR$10,MATCH('Data Input - BAT'!$D123,'Emissions factors'!$C$5:$C$10,0),MATCH('Data Input - BAT'!DA$7,'Emissions factors'!$F$4:$CR$4,0))/1000,0)","v":0},{"$f":"IFERROR(DB87*INDEX('Emissions factors'!$F$5:$CR$10,MATCH('Data Input - BAT'!$D123,'Emissions factors'!$C$5:$C$10,0),MATCH('Data Input - BAT'!DB$7,'Emissions factors'!$F$4:$CR$4,0))/1000,0)","v":0},{"$f":"IFERROR(DC87*INDEX('Emissions factors'!$F$5:$CR$10,MATCH('Data Input - BAT'!$D123,'Emissions factors'!$C$5:$C$10,0),MATCH('Data Input - BAT'!DC$7,'Emissions factors'!$F$4:$CR$4,0))/1000,0)","v":0}]
[null,null,null,"Road - Petrol","tCO2e","(Auto calculated value)",null,{"$f":"IFERROR(H88*INDEX('Emissions factors'!$F$5:$CR$10,MATCH('Data Input - BAT'!$D124,'Emissions factors'!$C$5:$C$10,0),MATCH('Data Input - BAT'!H$7,'Emissions factors'!$F$4:$CR$4,0))/1000,0)","v":0},{"$f":"IFERROR(I88*INDEX('Emissions factors'!$F$5:$CR$10,MATCH('Data Input - BAT'!$D124,'Emissions factors'!$C$5:$C$10,0),MATCH('Data Input - BAT'!I$7,'Emissions factors'!$F$4:$CR$4,0))/1000,0)","v":0},{"$f":"IFERROR(J88*INDEX('Emissions factors'!$F$5:$CR$10,MATCH('Data Input - BAT'!$D124,'Emissions factors'!$C$5:$C$10,0),MATCH('Data Input - BAT'!J$7,'Emissions factors'!$F$4:$CR$4,0))/1000,0)","v":0},{"$f":"IFERROR(K88*INDEX('Emissions factors'!$F$5:$CR$10,MATCH('Data Input - BAT'!$D124,'Emissions factors'!$C$5:$C$10,0),MATCH('Data Input - BAT'!K$7,'Emissions factors'!$F$4:$CR$4,0))/1000,0)","v":0},{"$f":"IFERROR(L88*INDEX('Emissions factors'!$F$5:$CR$10,MATCH('Data Input - BAT'!$D124,'Emissions factors'!$C$5:$C$10,0),MATCH('Data Input - BAT'!L$7,'Emissions factors'!$F$4:$CR$4,0))/1000,0)","v":0},{"$f":"IFERROR(M88*INDEX('Emissions factors'!$F$5:$CR$10,MATCH('Data Input - BAT'!$D124,'Emissions factors'!$C$5:$C$10,0),MATCH('Data Input - BAT'!M$7,'Emissions factors'!$F$4:$CR$4,0))/1000,0)","v":0},{"$f":"IFERROR(N88*INDEX('Emissions factors'!$F$5:$CR$10,MATCH('Data Input - BAT'!$D124,'Emissions factors'!$C$5:$C$10,0),MATCH('Data Input - BAT'!N$7,'Emissions factors'!$F$4:$CR$4,0))/1000,0)","v":0},{"$f":"IFERROR(O88*INDEX('Emissions factors'!$F$5:$CR$10,MATCH('Data Input - BAT'!$D124,'Emissions factors'!$C$5:$C$10,0),MATCH('Data Input - BAT'!O$7,'Emissions factors'!$F$4:$CR$4,0))/1000,0)","v":0},{"$f":"IFERROR(P88*INDEX('Emissions factors'!$F$5:$CR$10,MATCH('Data Input - BAT'!$D124,'Emissions factors'!$C$5:$C$10,0),MATCH('Data Input - BAT'!P$7,'Emissions factors'!$F$4:$CR$4,0))/1000,0)","v":0},{"$f":"IFERROR(Q88*INDEX('Emissions factors'!$F$5:$CR$10,MATCH('Data Input - BAT'!$D124,'Emissions factors'!$C$5:$C$10,0),MATCH('Data Input - BAT'!Q$7,'Emissions factors'!$F$4:$CR$4,0))/1000,0)","v":0},{"$f":"IFERROR(R88*INDEX('Emissions factors'!$F$5:$CR$10,MATCH('Data Input - BAT'!$D124,'Emissions factors'!$C$5:$C$10,0),MATCH('Data Input - BAT'!R$7,'Emissions factors'!$F$4:$CR$4,0))/1000,0)","v":0},{"$f":"IFERROR(S88*INDEX('Emissions factors'!$F$5:$CR$10,MATCH('Data Input - BAT'!$D124,'Emissions factors'!$C$5:$C$10,0),MATCH('Data Input - BAT'!S$7,'Emissions factors'!$F$4:$CR$4,0))/1000,0)","v":0},{"$f":"IFERROR(T88*INDEX('Emissions factors'!$F$5:$CR$10,MATCH('Data Input - BAT'!$D124,'Emissions factors'!$C$5:$C$10,0),MATCH('Data Input - BAT'!T$7,'Emissions factors'!$F$4:$CR$4,0))/1000,0)","v":0},{"$f":"IFERROR(U88*INDEX('Emissions factors'!$F$5:$CR$10,MATCH('Data Input - BAT'!$D124,'Emissions factors'!$C$5:$C$10,0),MATCH('Data Input - BAT'!U$7,'Emissions factors'!$F$4:$CR$4,0))/1000,0)","v":0},{"$f":"IFERROR(V88*INDEX('Emissions factors'!$F$5:$CR$10,MATCH('Data Input - BAT'!$D124,'Emissions factors'!$C$5:$C$10,0),MATCH('Data Input - BAT'!V$7,'Emissions factors'!$F$4:$CR$4,0))/1000,0)","v":0},{"$f":"IFERROR(W88*INDEX('Emissions factors'!$F$5:$CR$10,MATCH('Data Input - BAT'!$D124,'Emissions factors'!$C$5:$C$10,0),MATCH('Data Input - BAT'!W$7,'Emissions factors'!$F$4:$CR$4,0))/1000,0)","v":0},{"$f":"IFERROR(X88*INDEX('Emissions factors'!$F$5:$CR$10,MATCH('Data Input - BAT'!$D124,'Emissions factors'!$C$5:$C$10,0),MATCH('Data Input - BAT'!X$7,'Emissions factors'!$F$4:$CR$4,0))/1000,0)","v":0},{"$f":"IFERROR(Y88*INDEX('Emissions factors'!$F$5:$CR$10,MATCH('Data Input - BAT'!$D124,'Emissions factors'!$C$5:$C$10,0),MATCH('Data Input - BAT'!Y$7,'Emissions factors'!$F$4:$CR$4,0))/1000,0)","v":0},{"$f":"IFERROR(Z88*INDEX('Emissions factors'!$F$5:$CR$10,MATCH('Data Input - BAT'!$D124,'Emissions factors'!$C$5:$C$10,0),MATCH('Data Input - BAT'!Z$7,'Emissions factors'!$F$4:$CR$4,0))/1000,0)","v":0},{"$f":"IFERROR(AA88*INDEX('Emissions factors'!$F$5:$CR$10,MATCH('Data Input - BAT'!$D124,'Emissions factors'!$C$5:$C$10,0),MATCH('Data Input - BAT'!AA$7,'Emissions factors'!$F$4:$CR$4,0))/1000,0)","v":0},{"$f":"IFERROR(AB88*INDEX('Emissions factors'!$F$5:$CR$10,MATCH('Data Input - BAT'!$D124,'Emissions factors'!$C$5:$C$10,0),MATCH('Data Input - BAT'!AB$7,'Emissions factors'!$F$4:$CR$4,0))/1000,0)","v":0},{"$f":"IFERROR(AC88*INDEX('Emissions factors'!$F$5:$CR$10,MATCH('Data Input - BAT'!$D124,'Emissions factors'!$C$5:$C$10,0),MATCH('Data Input - BAT'!AC$7,'Emissions factors'!$F$4:$CR$4,0))/1000,0)","v":0},{"$f":"IFERROR(AD88*INDEX('Emissions factors'!$F$5:$CR$10,MATCH('Data Input - BAT'!$D124,'Emissions factors'!$C$5:$C$10,0),MATCH('Data Input - BAT'!AD$7,'Emissions factors'!$F$4:$CR$4,0))/1000,0)","v":0},{"$f":"IFERROR(AE88*INDEX('Emissions factors'!$F$5:$CR$10,MATCH('Data Input - BAT'!$D124,'Emissions factors'!$C$5:$C$10,0),MATCH('Data Input - BAT'!AE$7,'Emissions factors'!$F$4:$CR$4,0))/1000,0)","v":0},{"$f":"IFERROR(AF88*INDEX('Emissions factors'!$F$5:$CR$10,MATCH('Data Input - BAT'!$D124,'Emissions factors'!$C$5:$C$10,0),MATCH('Data Input - BAT'!AF$7,'Emissions factors'!$F$4:$CR$4,0))/1000,0)","v":0},{"$f":"IFERROR(AG88*INDEX('Emissions factors'!$F$5:$CR$10,MATCH('Data Input - BAT'!$D124,'Emissions factors'!$C$5:$C$10,0),MATCH('Data Input - BAT'!AG$7,'Emissions factors'!$F$4:$CR$4,0))/1000,0)","v":0},{"$f":"IFERROR(AH88*INDEX('Emissions factors'!$F$5:$CR$10,MATCH('Data Input - BAT'!$D124,'Emissions factors'!$C$5:$C$10,0),MATCH('Data Input - BAT'!AH$7,'Emissions factors'!$F$4:$CR$4,0))/1000,0)","v":0},{"$f":"IFERROR(AI88*INDEX('Emissions factors'!$F$5:$CR$10,MATCH('Data Input - BAT'!$D124,'Emissions factors'!$C$5:$C$10,0),MATCH('Data Input - BAT'!AI$7,'Emissions factors'!$F$4:$CR$4,0))/1000,0)","v":0},{"$f":"IFERROR(AJ88*INDEX('Emissions factors'!$F$5:$CR$10,MATCH('Data Input - BAT'!$D124,'Emissions factors'!$C$5:$C$10,0),MATCH('Data Input - BAT'!AJ$7,'Emissions factors'!$F$4:$CR$4,0))/1000,0)","v":0},{"$f":"IFERROR(AK88*INDEX('Emissions factors'!$F$5:$CR$10,MATCH('Data Input - BAT'!$D124,'Emissions factors'!$C$5:$C$10,0),MATCH('Data Input - BAT'!AK$7,'Emissions factors'!$F$4:$CR$4,0))/1000,0)","v":0},{"$f":"IFERROR(AL88*INDEX('Emissions factors'!$F$5:$CR$10,MATCH('Data Input - BAT'!$D124,'Emissions factors'!$C$5:$C$10,0),MATCH('Data Input - BAT'!AL$7,'Emissions factors'!$F$4:$CR$4,0))/1000,0)","v":0},{"$f":"IFERROR(AM88*INDEX('Emissions factors'!$F$5:$CR$10,MATCH('Data Input - BAT'!$D124,'Emissions factors'!$C$5:$C$10,0),MATCH('Data Input - BAT'!AM$7,'Emissions factors'!$F$4:$CR$4,0))/1000,0)","v":0},{"$f":"IFERROR(AN88*INDEX('Emissions factors'!$F$5:$CR$10,MATCH('Data Input - BAT'!$D124,'Emissions factors'!$C$5:$C$10,0),MATCH('Data Input - BAT'!AN$7,'Emissions factors'!$F$4:$CR$4,0))/1000,0)","v":0},{"$f":"IFERROR(AO88*INDEX('Emissions factors'!$F$5:$CR$10,MATCH('Data Input - BAT'!$D124,'Emissions factors'!$C$5:$C$10,0),MATCH('Data Input - BAT'!AO$7,'Emissions factors'!$F$4:$CR$4,0))/1000,0)","v":0},{"$f":"IFERROR(AP88*INDEX('Emissions factors'!$F$5:$CR$10,MATCH('Data Input - BAT'!$D124,'Emissions factors'!$C$5:$C$10,0),MATCH('Data Input - BAT'!AP$7,'Emissions factors'!$F$4:$CR$4,0))/1000,0)","v":0},{"$f":"IFERROR(AQ88*INDEX('Emissions factors'!$F$5:$CR$10,MATCH('Data Input - BAT'!$D124,'Emissions factors'!$C$5:$C$10,0),MATCH('Data Input - BAT'!AQ$7,'Emissions factors'!$F$4:$CR$4,0))/1000,0)","v":0},{"$f":"IFERROR(AR88*INDEX('Emissions factors'!$F$5:$CR$10,MATCH('Data Input - BAT'!$D124,'Emissions factors'!$C$5:$C$10,0),MATCH('Data Input - BAT'!AR$7,'Emissions factors'!$F$4:$CR$4,0))/1000,0)","v":0},{"$f":"IFERROR(AS88*INDEX('Emissions factors'!$F$5:$CR$10,MATCH('Data Input - BAT'!$D124,'Emissions factors'!$C$5:$C$10,0),MATCH('Data Input - BAT'!AS$7,'Emissions factors'!$F$4:$CR$4,0))/1000,0)","v":0},{"$f":"IFERROR(AT88*INDEX('Emissions factors'!$F$5:$CR$10,MATCH('Data Input - BAT'!$D124,'Emissions factors'!$C$5:$C$10,0),MATCH('Data Input - BAT'!AT$7,'Emissions factors'!$F$4:$CR$4,0))/1000,0)","v":0},{"$f":"IFERROR(AU88*INDEX('Emissions factors'!$F$5:$CR$10,MATCH('Data Input - BAT'!$D124,'Emissions factors'!$C$5:$C$10,0),MATCH('Data Input - BAT'!AU$7,'Emissions factors'!$F$4:$CR$4,0))/1000,0)","v":0},{"$f":"IFERROR(AV88*INDEX('Emissions factors'!$F$5:$CR$10,MATCH('Data Input - BAT'!$D124,'Emissions factors'!$C$5:$C$10,0),MATCH('Data Input - BAT'!AV$7,'Emissions factors'!$F$4:$CR$4,0))/1000,0)","v":0},{"$f":"IFERROR(AW88*INDEX('Emissions factors'!$F$5:$CR$10,MATCH('Data Input - BAT'!$D124,'Emissions factors'!$C$5:$C$10,0),MATCH('Data Input - BAT'!AW$7,'Emissions factors'!$F$4:$CR$4,0))/1000,0)","v":0},{"$f":"IFERROR(AX88*INDEX('Emissions factors'!$F$5:$CR$10,MATCH('Data Input - BAT'!$D124,'Emissions factors'!$C$5:$C$10,0),MATCH('Data Input - BAT'!AX$7,'Emissions factors'!$F$4:$CR$4,0))/1000,0)","v":0},{"$f":"IFERROR(AY88*INDEX('Emissions factors'!$F$5:$CR$10,MATCH('Data Input - BAT'!$D124,'Emissions factors'!$C$5:$C$10,0),MATCH('Data Input - BAT'!AY$7,'Emissions factors'!$F$4:$CR$4,0))/1000,0)","v":0},{"$f":"IFERROR(AZ88*INDEX('Emissions factors'!$F$5:$CR$10,MATCH('Data Input - BAT'!$D124,'Emissions factors'!$C$5:$C$10,0),MATCH('Data Input - BAT'!AZ$7,'Emissions factors'!$F$4:$CR$4,0))/1000,0)","v":0},{"$f":"IFERROR(BA88*INDEX('Emissions factors'!$F$5:$CR$10,MATCH('Data Input - BAT'!$D124,'Emissions factors'!$C$5:$C$10,0),MATCH('Data Input - BAT'!BA$7,'Emissions factors'!$F$4:$CR$4,0))/1000,0)","v":0},{"$f":"IFERROR(BB88*INDEX('Emissions factors'!$F$5:$CR$10,MATCH('Data Input - BAT'!$D124,'Emissions factors'!$C$5:$C$10,0),MATCH('Data Input - BAT'!BB$7,'Emissions factors'!$F$4:$CR$4,0))/1000,0)","v":0},{"$f":"IFERROR(BC88*INDEX('Emissions factors'!$F$5:$CR$10,MATCH('Data Input - BAT'!$D124,'Emissions factors'!$C$5:$C$10,0),MATCH('Data Input - BAT'!BC$7,'Emissions factors'!$F$4:$CR$4,0))/1000,0)","v":0},{"$f":"IFERROR(BD88*INDEX('Emissions factors'!$F$5:$CR$10,MATCH('Data Input - BAT'!$D124,'Emissions factors'!$C$5:$C$10,0),MATCH('Data Input - BAT'!BD$7,'Emissions factors'!$F$4:$CR$4,0))/1000,0)","v":0},{"$f":"IFERROR(BE88*INDEX('Emissions factors'!$F$5:$CR$10,MATCH('Data Input - BAT'!$D124,'Emissions factors'!$C$5:$C$10,0),MATCH('Data Input - BAT'!BE$7,'Emissions factors'!$F$4:$CR$4,0))/1000,0)","v":0},{"$f":"IFERROR(BF88*INDEX('Emissions factors'!$F$5:$CR$10,MATCH('Data Input - BAT'!$D124,'Emissions factors'!$C$5:$C$10,0),MATCH('Data Input - BAT'!BF$7,'Emissions factors'!$F$4:$CR$4,0))/1000,0)","v":0},{"$f":"IFERROR(BG88*INDEX('Emissions factors'!$F$5:$CR$10,MATCH('Data Input - BAT'!$D124,'Emissions factors'!$C$5:$C$10,0),MATCH('Data Input - BAT'!BG$7,'Emissions factors'!$F$4:$CR$4,0))/1000,0)","v":0},{"$f":"IFERROR(BH88*INDEX('Emissions factors'!$F$5:$CR$10,MATCH('Data Input - BAT'!$D124,'Emissions factors'!$C$5:$C$10,0),MATCH('Data Input - BAT'!BH$7,'Emissions factors'!$F$4:$CR$4,0))/1000,0)","v":0},{"$f":"IFERROR(BI88*INDEX('Emissions factors'!$F$5:$CR$10,MATCH('Data Input - BAT'!$D124,'Emissions factors'!$C$5:$C$10,0),MATCH('Data Input - BAT'!BI$7,'Emissions factors'!$F$4:$CR$4,0))/1000,0)","v":0},{"$f":"IFERROR(BJ88*INDEX('Emissions factors'!$F$5:$CR$10,MATCH('Data Input - BAT'!$D124,'Emissions factors'!$C$5:$C$10,0),MATCH('Data Input - BAT'!BJ$7,'Emissions factors'!$F$4:$CR$4,0))/1000,0)","v":0},{"$f":"IFERROR(BK88*INDEX('Emissions factors'!$F$5:$CR$10,MATCH('Data Input - BAT'!$D124,'Emissions factors'!$C$5:$C$10,0),MATCH('Data Input - BAT'!BK$7,'Emissions factors'!$F$4:$CR$4,0))/1000,0)","v":0},{"$f":"IFERROR(BL88*INDEX('Emissions factors'!$F$5:$CR$10,MATCH('Data Input - BAT'!$D124,'Emissions factors'!$C$5:$C$10,0),MATCH('Data Input - BAT'!BL$7,'Emissions factors'!$F$4:$CR$4,0))/1000,0)","v":0},{"$f":"IFERROR(BM88*INDEX('Emissions factors'!$F$5:$CR$10,MATCH('Data Input - BAT'!$D124,'Emissions factors'!$C$5:$C$10,0),MATCH('Data Input - BAT'!BM$7,'Emissions factors'!$F$4:$CR$4,0))/1000,0)","v":0},{"$f":"IFERROR(BN88*INDEX('Emissions factors'!$F$5:$CR$10,MATCH('Data Input - BAT'!$D124,'Emissions factors'!$C$5:$C$10,0),MATCH('Data Input - BAT'!BN$7,'Emissions factors'!$F$4:$CR$4,0))/1000,0)","v":0},{"$f":"IFERROR(BO88*INDEX('Emissions factors'!$F$5:$CR$10,MATCH('Data Input - BAT'!$D124,'Emissions factors'!$C$5:$C$10,0),MATCH('Data Input - BAT'!BO$7,'Emissions factors'!$F$4:$CR$4,0))/1000,0)","v":0},{"$f":"IFERROR(BP88*INDEX('Emissions factors'!$F$5:$CR$10,MATCH('Data Input - BAT'!$D124,'Emissions factors'!$C$5:$C$10,0),MATCH('Data Input - BAT'!BP$7,'Emissions factors'!$F$4:$CR$4,0))/1000,0)","v":0},{"$f":"IFERROR(BQ88*INDEX('Emissions factors'!$F$5:$CR$10,MATCH('Data Input - BAT'!$D124,'Emissions factors'!$C$5:$C$10,0),MATCH('Data Input - BAT'!BQ$7,'Emissions factors'!$F$4:$CR$4,0))/1000,0)","v":0},{"$f":"IFERROR(BR88*INDEX('Emissions factors'!$F$5:$CR$10,MATCH('Data Input - BAT'!$D124,'Emissions factors'!$C$5:$C$10,0),MATCH('Data Input - BAT'!BR$7,'Emissions factors'!$F$4:$CR$4,0))/1000,0)","v":0},{"$f":"IFERROR(BS88*INDEX('Emissions factors'!$F$5:$CR$10,MATCH('Data Input - BAT'!$D124,'Emissions factors'!$C$5:$C$10,0),MATCH('Data Input - BAT'!BS$7,'Emissions factors'!$F$4:$CR$4,0))/1000,0)","v":0},{"$f":"IFERROR(BT88*INDEX('Emissions factors'!$F$5:$CR$10,MATCH('Data Input - BAT'!$D124,'Emissions factors'!$C$5:$C$10,0),MATCH('Data Input - BAT'!BT$7,'Emissions factors'!$F$4:$CR$4,0))/1000,0)","v":0},{"$f":"IFERROR(BU88*INDEX('Emissions factors'!$F$5:$CR$10,MATCH('Data Input - BAT'!$D124,'Emissions factors'!$C$5:$C$10,0),MATCH('Data Input - BAT'!BU$7,'Emissions factors'!$F$4:$CR$4,0))/1000,0)","v":0},{"$f":"IFERROR(BV88*INDEX('Emissions factors'!$F$5:$CR$10,MATCH('Data Input - BAT'!$D124,'Emissions factors'!$C$5:$C$10,0),MATCH('Data Input - BAT'!BV$7,'Emissions factors'!$F$4:$CR$4,0))/1000,0)","v":0},{"$f":"IFERROR(BW88*INDEX('Emissions factors'!$F$5:$CR$10,MATCH('Data Input - BAT'!$D124,'Emissions factors'!$C$5:$C$10,0),MATCH('Data Input - BAT'!BW$7,'Emissions factors'!$F$4:$CR$4,0))/1000,0)","v":0},{"$f":"IFERROR(BX88*INDEX('Emissions factors'!$F$5:$CR$10,MATCH('Data Input - BAT'!$D124,'Emissions factors'!$C$5:$C$10,0),MATCH('Data Input - BAT'!BX$7,'Emissions factors'!$F$4:$CR$4,0))/1000,0)","v":0},{"$f":"IFERROR(BY88*INDEX('Emissions factors'!$F$5:$CR$10,MATCH('Data Input - BAT'!$D124,'Emissions factors'!$C$5:$C$10,0),MATCH('Data Input - BAT'!BY$7,'Emissions factors'!$F$4:$CR$4,0))/1000,0)","v":0},{"$f":"IFERROR(BZ88*INDEX('Emissions factors'!$F$5:$CR$10,MATCH('Data Input - BAT'!$D124,'Emissions factors'!$C$5:$C$10,0),MATCH('Data Input - BAT'!BZ$7,'Emissions factors'!$F$4:$CR$4,0))/1000,0)","v":0},{"$f":"IFERROR(CA88*INDEX('Emissions factors'!$F$5:$CR$10,MATCH('Data Input - BAT'!$D124,'Emissions factors'!$C$5:$C$10,0),MATCH('Data Input - BAT'!CA$7,'Emissions factors'!$F$4:$CR$4,0))/1000,0)","v":0},{"$f":"IFERROR(CB88*INDEX('Emissions factors'!$F$5:$CR$10,MATCH('Data Input - BAT'!$D124,'Emissions factors'!$C$5:$C$10,0),MATCH('Data Input - BAT'!CB$7,'Emissions factors'!$F$4:$CR$4,0))/1000,0)","v":0},{"$f":"IFERROR(CC88*INDEX('Emissions factors'!$F$5:$CR$10,MATCH('Data Input - BAT'!$D124,'Emissions factors'!$C$5:$C$10,0),MATCH('Data Input - BAT'!CC$7,'Emissions factors'!$F$4:$CR$4,0))/1000,0)","v":0},{"$f":"IFERROR(CD88*INDEX('Emissions factors'!$F$5:$CR$10,MATCH('Data Input - BAT'!$D124,'Emissions factors'!$C$5:$C$10,0),MATCH('Data Input - BAT'!CD$7,'Emissions factors'!$F$4:$CR$4,0))/1000,0)","v":0},{"$f":"IFERROR(CE88*INDEX('Emissions factors'!$F$5:$CR$10,MATCH('Data Input - BAT'!$D124,'Emissions factors'!$C$5:$C$10,0),MATCH('Data Input - BAT'!CE$7,'Emissions factors'!$F$4:$CR$4,0))/1000,0)","v":0},{"$f":"IFERROR(CF88*INDEX('Emissions factors'!$F$5:$CR$10,MATCH('Data Input - BAT'!$D124,'Emissions factors'!$C$5:$C$10,0),MATCH('Data Input - BAT'!CF$7,'Emissions factors'!$F$4:$CR$4,0))/1000,0)","v":0},{"$f":"IFERROR(CG88*INDEX('Emissions factors'!$F$5:$CR$10,MATCH('Data Input - BAT'!$D124,'Emissions factors'!$C$5:$C$10,0),MATCH('Data Input - BAT'!CG$7,'Emissions factors'!$F$4:$CR$4,0))/1000,0)","v":0},{"$f":"IFERROR(CH88*INDEX('Emissions factors'!$F$5:$CR$10,MATCH('Data Input - BAT'!$D124,'Emissions factors'!$C$5:$C$10,0),MATCH('Data Input - BAT'!CH$7,'Emissions factors'!$F$4:$CR$4,0))/1000,0)","v":0},{"$f":"IFERROR(CI88*INDEX('Emissions factors'!$F$5:$CR$10,MATCH('Data Input - BAT'!$D124,'Emissions factors'!$C$5:$C$10,0),MATCH('Data Input - BAT'!CI$7,'Emissions factors'!$F$4:$CR$4,0))/1000,0)","v":0},{"$f":"IFERROR(CJ88*INDEX('Emissions factors'!$F$5:$CR$10,MATCH('Data Input - BAT'!$D124,'Emissions factors'!$C$5:$C$10,0),MATCH('Data Input - BAT'!CJ$7,'Emissions factors'!$F$4:$CR$4,0))/1000,0)","v":0},{"$f":"IFERROR(CK88*INDEX('Emissions factors'!$F$5:$CR$10,MATCH('Data Input - BAT'!$D124,'Emissions factors'!$C$5:$C$10,0),MATCH('Data Input - BAT'!CK$7,'Emissions factors'!$F$4:$CR$4,0))/1000,0)","v":0},{"$f":"IFERROR(CL88*INDEX('Emissions factors'!$F$5:$CR$10,MATCH('Data Input - BAT'!$D124,'Emissions factors'!$C$5:$C$10,0),MATCH('Data Input - BAT'!CL$7,'Emissions factors'!$F$4:$CR$4,0))/1000,0)","v":0},{"$f":"IFERROR(CM88*INDEX('Emissions factors'!$F$5:$CR$10,MATCH('Data Input - BAT'!$D124,'Emissions factors'!$C$5:$C$10,0),MATCH('Data Input - BAT'!CM$7,'Emissions factors'!$F$4:$CR$4,0))/1000,0)","v":0},{"$f":"IFERROR(CN88*INDEX('Emissions factors'!$F$5:$CR$10,MATCH('Data Input - BAT'!$D124,'Emissions factors'!$C$5:$C$10,0),MATCH('Data Input - BAT'!CN$7,'Emissions factors'!$F$4:$CR$4,0))/1000,0)","v":0},{"$f":"IFERROR(CO88*INDEX('Emissions factors'!$F$5:$CR$10,MATCH('Data Input - BAT'!$D124,'Emissions factors'!$C$5:$C$10,0),MATCH('Data Input - BAT'!CO$7,'Emissions factors'!$F$4:$CR$4,0))/1000,0)","v":0},{"$f":"IFERROR(CP88*INDEX('Emissions factors'!$F$5:$CR$10,MATCH('Data Input - BAT'!$D124,'Emissions factors'!$C$5:$C$10,0),MATCH('Data Input - BAT'!CP$7,'Emissions factors'!$F$4:$CR$4,0))/1000,0)","v":0},{"$f":"IFERROR(CQ88*INDEX('Emissions factors'!$F$5:$CR$10,MATCH('Data Input - BAT'!$D124,'Emissions factors'!$C$5:$C$10,0),MATCH('Data Input - BAT'!CQ$7,'Emissions factors'!$F$4:$CR$4,0))/1000,0)","v":0},{"$f":"IFERROR(CR88*INDEX('Emissions factors'!$F$5:$CR$10,MATCH('Data Input - BAT'!$D124,'Emissions factors'!$C$5:$C$10,0),MATCH('Data Input - BAT'!CR$7,'Emissions factors'!$F$4:$CR$4,0))/1000,0)","v":0},{"$f":"IFERROR(CS88*INDEX('Emissions factors'!$F$5:$CR$10,MATCH('Data Input - BAT'!$D124,'Emissions factors'!$C$5:$C$10,0),MATCH('Data Input - BAT'!CS$7,'Emissions factors'!$F$4:$CR$4,0))/1000,0)","v":0},{"$f":"IFERROR(CT88*INDEX('Emissions factors'!$F$5:$CR$10,MATCH('Data Input - BAT'!$D124,'Emissions factors'!$C$5:$C$10,0),MATCH('Data Input - BAT'!CT$7,'Emissions factors'!$F$4:$CR$4,0))/1000,0)","v":0},{"$f":"IFERROR(CU88*INDEX('Emissions factors'!$F$5:$CR$10,MATCH('Data Input - BAT'!$D124,'Emissions factors'!$C$5:$C$10,0),MATCH('Data Input - BAT'!CU$7,'Emissions factors'!$F$4:$CR$4,0))/1000,0)","v":0},{"$f":"IFERROR(CV88*INDEX('Emissions factors'!$F$5:$CR$10,MATCH('Data Input - BAT'!$D124,'Emissions factors'!$C$5:$C$10,0),MATCH('Data Input - BAT'!CV$7,'Emissions factors'!$F$4:$CR$4,0))/1000,0)","v":0},{"$f":"IFERROR(CW88*INDEX('Emissions factors'!$F$5:$CR$10,MATCH('Data Input - BAT'!$D124,'Emissions factors'!$C$5:$C$10,0),MATCH('Data Input - BAT'!CW$7,'Emissions factors'!$F$4:$CR$4,0))/1000,0)","v":0},{"$f":"IFERROR(CX88*INDEX('Emissions factors'!$F$5:$CR$10,MATCH('Data Input - BAT'!$D124,'Emissions factors'!$C$5:$C$10,0),MATCH('Data Input - BAT'!CX$7,'Emissions factors'!$F$4:$CR$4,0))/1000,0)","v":0},{"$f":"IFERROR(CY88*INDEX('Emissions factors'!$F$5:$CR$10,MATCH('Data Input - BAT'!$D124,'Emissions factors'!$C$5:$C$10,0),MATCH('Data Input - BAT'!CY$7,'Emissions factors'!$F$4:$CR$4,0))/1000,0)","v":0},{"$f":"IFERROR(CZ88*INDEX('Emissions factors'!$F$5:$CR$10,MATCH('Data Input - BAT'!$D124,'Emissions factors'!$C$5:$C$10,0),MATCH('Data Input - BAT'!CZ$7,'Emissions factors'!$F$4:$CR$4,0))/1000,0)","v":0},{"$f":"IFERROR(DA88*INDEX('Emissions factors'!$F$5:$CR$10,MATCH('Data Input - BAT'!$D124,'Emissions factors'!$C$5:$C$10,0),MATCH('Data Input - BAT'!DA$7,'Emissions factors'!$F$4:$CR$4,0))/1000,0)","v":0},{"$f":"IFERROR(DB88*INDEX('Emissions factors'!$F$5:$CR$10,MATCH('Data Input - BAT'!$D124,'Emissions factors'!$C$5:$C$10,0),MATCH('Data Input - BAT'!DB$7,'Emissions factors'!$F$4:$CR$4,0))/1000,0)","v":0},{"$f":"IFERROR(DC88*INDEX('Emissions factors'!$F$5:$CR$10,MATCH('Data Input - BAT'!$D124,'Emissions factors'!$C$5:$C$10,0),MATCH('Data Input - BAT'!DC$7,'Emissions factors'!$F$4:$CR$4,0))/1000,0)","v":0}]
[null,null,null,"Road - Diesel","tCO2e","(Auto calculated value)",null,{"$f":"IFERROR(H89*INDEX('Emissions factors'!$F$5:$CR$10,MATCH('Data Input - BAT'!$D125,'Emissions factors'!$C$5:$C$10,0),MATCH('Data Input - BAT'!H$7,'Emissions factors'!$F$4:$CR$4,0))/1000,0)","v":0},{"$f":"IFERROR(I89*INDEX('Emissions factors'!$F$5:$CR$10,MATCH('Data Input - BAT'!$D125,'Emissions factors'!$C$5:$C$10,0),MATCH('Data Input - BAT'!I$7,'Emissions factors'!$F$4:$CR$4,0))/1000,0)","v":0},{"$f":"IFERROR(J89*INDEX('Emissions factors'!$F$5:$CR$10,MATCH('Data Input - BAT'!$D125,'Emissions factors'!$C$5:$C$10,0),MATCH('Data Input - BAT'!J$7,'Emissions factors'!$F$4:$CR$4,0))/1000,0)","v":0},{"$f":"IFERROR(K89*INDEX('Emissions factors'!$F$5:$CR$10,MATCH('Data Input - BAT'!$D125,'Emissions factors'!$C$5:$C$10,0),MATCH('Data Input - BAT'!K$7,'Emissions factors'!$F$4:$CR$4,0))/1000,0)","v":0},{"$f":"IFERROR(L89*INDEX('Emissions factors'!$F$5:$CR$10,MATCH('Data Input - BAT'!$D125,'Emissions factors'!$C$5:$C$10,0),MATCH('Data Input - BAT'!L$7,'Emissions factors'!$F$4:$CR$4,0))/1000,0)","v":0},{"$f":"IFERROR(M89*INDEX('Emissions factors'!$F$5:$CR$10,MATCH('Data Input - BAT'!$D125,'Emissions factors'!$C$5:$C$10,0),MATCH('Data Input - BAT'!M$7,'Emissions factors'!$F$4:$CR$4,0))/1000,0)","v":0},{"$f":"IFERROR(N89*INDEX('Emissions factors'!$F$5:$CR$10,MATCH('Data Input - BAT'!$D125,'Emissions factors'!$C$5:$C$10,0),MATCH('Data Input - BAT'!N$7,'Emissions factors'!$F$4:$CR$4,0))/1000,0)","v":0},{"$f":"IFERROR(O89*INDEX('Emissions factors'!$F$5:$CR$10,MATCH('Data Input - BAT'!$D125,'Emissions factors'!$C$5:$C$10,0),MATCH('Data Input - BAT'!O$7,'Emissions factors'!$F$4:$CR$4,0))/1000,0)","v":0},{"$f":"IFERROR(P89*INDEX('Emissions factors'!$F$5:$CR$10,MATCH('Data Input - BAT'!$D125,'Emissions factors'!$C$5:$C$10,0),MATCH('Data Input - BAT'!P$7,'Emissions factors'!$F$4:$CR$4,0))/1000,0)","v":0},{"$f":"IFERROR(Q89*INDEX('Emissions factors'!$F$5:$CR$10,MATCH('Data Input - BAT'!$D125,'Emissions factors'!$C$5:$C$10,0),MATCH('Data Input - BAT'!Q$7,'Emissions factors'!$F$4:$CR$4,0))/1000,0)","v":0},{"$f":"IFERROR(R89*INDEX('Emissions factors'!$F$5:$CR$10,MATCH('Data Input - BAT'!$D125,'Emissions factors'!$C$5:$C$10,0),MATCH('Data Input - BAT'!R$7,'Emissions factors'!$F$4:$CR$4,0))/1000,0)","v":0},{"$f":"IFERROR(S89*INDEX('Emissions factors'!$F$5:$CR$10,MATCH('Data Input - BAT'!$D125,'Emissions factors'!$C$5:$C$10,0),MATCH('Data Input - BAT'!S$7,'Emissions factors'!$F$4:$CR$4,0))/1000,0)","v":0},{"$f":"IFERROR(T89*INDEX('Emissions factors'!$F$5:$CR$10,MATCH('Data Input - BAT'!$D125,'Emissions factors'!$C$5:$C$10,0),MATCH('Data Input - BAT'!T$7,'Emissions factors'!$F$4:$CR$4,0))/1000,0)","v":0},{"$f":"IFERROR(U89*INDEX('Emissions factors'!$F$5:$CR$10,MATCH('Data Input - BAT'!$D125,'Emissions factors'!$C$5:$C$10,0),MATCH('Data Input - BAT'!U$7,'Emissions factors'!$F$4:$CR$4,0))/1000,0)","v":0},{"$f":"IFERROR(V89*INDEX('Emissions factors'!$F$5:$CR$10,MATCH('Data Input - BAT'!$D125,'Emissions factors'!$C$5:$C$10,0),MATCH('Data Input - BAT'!V$7,'Emissions factors'!$F$4:$CR$4,0))/1000,0)","v":0},{"$f":"IFERROR(W89*INDEX('Emissions factors'!$F$5:$CR$10,MATCH('Data Input - BAT'!$D125,'Emissions factors'!$C$5:$C$10,0),MATCH('Data Input - BAT'!W$7,'Emissions factors'!$F$4:$CR$4,0))/1000,0)","v":0},{"$f":"IFERROR(X89*INDEX('Emissions factors'!$F$5:$CR$10,MATCH('Data Input - BAT'!$D125,'Emissions factors'!$C$5:$C$10,0),MATCH('Data Input - BAT'!X$7,'Emissions factors'!$F$4:$CR$4,0))/1000,0)","v":0},{"$f":"IFERROR(Y89*INDEX('Emissions factors'!$F$5:$CR$10,MATCH('Data Input - BAT'!$D125,'Emissions factors'!$C$5:$C$10,0),MATCH('Data Input - BAT'!Y$7,'Emissions factors'!$F$4:$CR$4,0))/1000,0)","v":0},{"$f":"IFERROR(Z89*INDEX('Emissions factors'!$F$5:$CR$10,MATCH('Data Input - BAT'!$D125,'Emissions factors'!$C$5:$C$10,0),MATCH('Data Input - BAT'!Z$7,'Emissions factors'!$F$4:$CR$4,0))/1000,0)","v":0},{"$f":"IFERROR(AA89*INDEX('Emissions factors'!$F$5:$CR$10,MATCH('Data Input - BAT'!$D125,'Emissions factors'!$C$5:$C$10,0),MATCH('Data Input - BAT'!AA$7,'Emissions factors'!$F$4:$CR$4,0))/1000,0)","v":0},{"$f":"IFERROR(AB89*INDEX('Emissions factors'!$F$5:$CR$10,MATCH('Data Input - BAT'!$D125,'Emissions factors'!$C$5:$C$10,0),MATCH('Data Input - BAT'!AB$7,'Emissions factors'!$F$4:$CR$4,0))/1000,0)","v":0},{"$f":"IFERROR(AC89*INDEX('Emissions factors'!$F$5:$CR$10,MATCH('Data Input - BAT'!$D125,'Emissions factors'!$C$5:$C$10,0),MATCH('Data Input - BAT'!AC$7,'Emissions factors'!$F$4:$CR$4,0))/1000,0)","v":0},{"$f":"IFERROR(AD89*INDEX('Emissions factors'!$F$5:$CR$10,MATCH('Data Input - BAT'!$D125,'Emissions factors'!$C$5:$C$10,0),MATCH('Data Input - BAT'!AD$7,'Emissions factors'!$F$4:$CR$4,0))/1000,0)","v":0},{"$f":"IFERROR(AE89*INDEX('Emissions factors'!$F$5:$CR$10,MATCH('Data Input - BAT'!$D125,'Emissions factors'!$C$5:$C$10,0),MATCH('Data Input - BAT'!AE$7,'Emissions factors'!$F$4:$CR$4,0))/1000,0)","v":0},{"$f":"IFERROR(AF89*INDEX('Emissions factors'!$F$5:$CR$10,MATCH('Data Input - BAT'!$D125,'Emissions factors'!$C$5:$C$10,0),MATCH('Data Input - BAT'!AF$7,'Emissions factors'!$F$4:$CR$4,0))/1000,0)","v":0},{"$f":"IFERROR(AG89*INDEX('Emissions factors'!$F$5:$CR$10,MATCH('Data Input - BAT'!$D125,'Emissions factors'!$C$5:$C$10,0),MATCH('Data Input - BAT'!AG$7,'Emissions factors'!$F$4:$CR$4,0))/1000,0)","v":0},{"$f":"IFERROR(AH89*INDEX('Emissions factors'!$F$5:$CR$10,MATCH('Data Input - BAT'!$D125,'Emissions factors'!$C$5:$C$10,0),MATCH('Data Input - BAT'!AH$7,'Emissions factors'!$F$4:$CR$4,0))/1000,0)","v":0},{"$f":"IFERROR(AI89*INDEX('Emissions factors'!$F$5:$CR$10,MATCH('Data Input - BAT'!$D125,'Emissions factors'!$C$5:$C$10,0),MATCH('Data Input - BAT'!AI$7,'Emissions factors'!$F$4:$CR$4,0))/1000,0)","v":0},{"$f":"IFERROR(AJ89*INDEX('Emissions factors'!$F$5:$CR$10,MATCH('Data Input - BAT'!$D125,'Emissions factors'!$C$5:$C$10,0),MATCH('Data Input - BAT'!AJ$7,'Emissions factors'!$F$4:$CR$4,0))/1000,0)","v":0},{"$f":"IFERROR(AK89*INDEX('Emissions factors'!$F$5:$CR$10,MATCH('Data Input - BAT'!$D125,'Emissions factors'!$C$5:$C$10,0),MATCH('Data Input - BAT'!AK$7,'Emissions factors'!$F$4:$CR$4,0))/1000,0)","v":0},{"$f":"IFERROR(AL89*INDEX('Emissions factors'!$F$5:$CR$10,MATCH('Data Input - BAT'!$D125,'Emissions factors'!$C$5:$C$10,0),MATCH('Data Input - BAT'!AL$7,'Emissions factors'!$F$4:$CR$4,0))/1000,0)","v":0},{"$f":"IFERROR(AM89*INDEX('Emissions factors'!$F$5:$CR$10,MATCH('Data Input - BAT'!$D125,'Emissions factors'!$C$5:$C$10,0),MATCH('Data Input - BAT'!AM$7,'Emissions factors'!$F$4:$CR$4,0))/1000,0)","v":0},{"$f":"IFERROR(AN89*INDEX('Emissions factors'!$F$5:$CR$10,MATCH('Data Input - BAT'!$D125,'Emissions factors'!$C$5:$C$10,0),MATCH('Data Input - BAT'!AN$7,'Emissions factors'!$F$4:$CR$4,0))/1000,0)","v":0},{"$f":"IFERROR(AO89*INDEX('Emissions factors'!$F$5:$CR$10,MATCH('Data Input - BAT'!$D125,'Emissions factors'!$C$5:$C$10,0),MATCH('Data Input - BAT'!AO$7,'Emissions factors'!$F$4:$CR$4,0))/1000,0)","v":0},{"$f":"IFERROR(AP89*INDEX('Emissions factors'!$F$5:$CR$10,MATCH('Data Input - BAT'!$D125,'Emissions factors'!$C$5:$C$10,0),MATCH('Data Input - BAT'!AP$7,'Emissions factors'!$F$4:$CR$4,0))/1000,0)","v":0},{"$f":"IFERROR(AQ89*INDEX('Emissions factors'!$F$5:$CR$10,MATCH('Data Input - BAT'!$D125,'Emissions factors'!$C$5:$C$10,0),MATCH('Data Input - BAT'!AQ$7,'Emissions factors'!$F$4:$CR$4,0))/1000,0)","v":0},{"$f":"IFERROR(AR89*INDEX('Emissions factors'!$F$5:$CR$10,MATCH('Data Input - BAT'!$D125,'Emissions factors'!$C$5:$C$10,0),MATCH('Data Input - BAT'!AR$7,'Emissions factors'!$F$4:$CR$4,0))/1000,0)","v":0},{"$f":"IFERROR(AS89*INDEX('Emissions factors'!$F$5:$CR$10,MATCH('Data Input - BAT'!$D125,'Emissions factors'!$C$5:$C$10,0),MATCH('Data Input - BAT'!AS$7,'Emissions factors'!$F$4:$CR$4,0))/1000,0)","v":0},{"$f":"IFERROR(AT89*INDEX('Emissions factors'!$F$5:$CR$10,MATCH('Data Input - BAT'!$D125,'Emissions factors'!$C$5:$C$10,0),MATCH('Data Input - BAT'!AT$7,'Emissions factors'!$F$4:$CR$4,0))/1000,0)","v":0},{"$f":"IFERROR(AU89*INDEX('Emissions factors'!$F$5:$CR$10,MATCH('Data Input - BAT'!$D125,'Emissions factors'!$C$5:$C$10,0),MATCH('Data Input - BAT'!AU$7,'Emissions factors'!$F$4:$CR$4,0))/1000,0)","v":0},{"$f":"IFERROR(AV89*INDEX('Emissions factors'!$F$5:$CR$10,MATCH('Data Input - BAT'!$D125,'Emissions factors'!$C$5:$C$10,0),MATCH('Data Input - BAT'!AV$7,'Emissions factors'!$F$4:$CR$4,0))/1000,0)","v":0},{"$f":"IFERROR(AW89*INDEX('Emissions factors'!$F$5:$CR$10,MATCH('Data Input - BAT'!$D125,'Emissions factors'!$C$5:$C$10,0),MATCH('Data Input - BAT'!AW$7,'Emissions factors'!$F$4:$CR$4,0))/1000,0)","v":0},{"$f":"IFERROR(AX89*INDEX('Emissions factors'!$F$5:$CR$10,MATCH('Data Input - BAT'!$D125,'Emissions factors'!$C$5:$C$10,0),MATCH('Data Input - BAT'!AX$7,'Emissions factors'!$F$4:$CR$4,0))/1000,0)","v":0},{"$f":"IFERROR(AY89*INDEX('Emissions factors'!$F$5:$CR$10,MATCH('Data Input - BAT'!$D125,'Emissions factors'!$C$5:$C$10,0),MATCH('Data Input - BAT'!AY$7,'Emissions factors'!$F$4:$CR$4,0))/1000,0)","v":0},{"$f":"IFERROR(AZ89*INDEX('Emissions factors'!$F$5:$CR$10,MATCH('Data Input - BAT'!$D125,'Emissions factors'!$C$5:$C$10,0),MATCH('Data Input - BAT'!AZ$7,'Emissions factors'!$F$4:$CR$4,0))/1000,0)","v":0},{"$f":"IFERROR(BA89*INDEX('Emissions factors'!$F$5:$CR$10,MATCH('Data Input - BAT'!$D125,'Emissions factors'!$C$5:$C$10,0),MATCH('Data Input - BAT'!BA$7,'Emissions factors'!$F$4:$CR$4,0))/1000,0)","v":0},{"$f":"IFERROR(BB89*INDEX('Emissions factors'!$F$5:$CR$10,MATCH('Data Input - BAT'!$D125,'Emissions factors'!$C$5:$C$10,0),MATCH('Data Input - BAT'!BB$7,'Emissions factors'!$F$4:$CR$4,0))/1000,0)","v":0},{"$f":"IFERROR(BC89*INDEX('Emissions factors'!$F$5:$CR$10,MATCH('Data Input - BAT'!$D125,'Emissions factors'!$C$5:$C$10,0),MATCH('Data Input - BAT'!BC$7,'Emissions factors'!$F$4:$CR$4,0))/1000,0)","v":0},{"$f":"IFERROR(BD89*INDEX('Emissions factors'!$F$5:$CR$10,MATCH('Data Input - BAT'!$D125,'Emissions factors'!$C$5:$C$10,0),MATCH('Data Input - BAT'!BD$7,'Emissions factors'!$F$4:$CR$4,0))/1000,0)","v":0},{"$f":"IFERROR(BE89*INDEX('Emissions factors'!$F$5:$CR$10,MATCH('Data Input - BAT'!$D125,'Emissions factors'!$C$5:$C$10,0),MATCH('Data Input - BAT'!BE$7,'Emissions factors'!$F$4:$CR$4,0))/1000,0)","v":0},{"$f":"IFERROR(BF89*INDEX('Emissions factors'!$F$5:$CR$10,MATCH('Data Input - BAT'!$D125,'Emissions factors'!$C$5:$C$10,0),MATCH('Data Input - BAT'!BF$7,'Emissions factors'!$F$4:$CR$4,0))/1000,0)","v":0},{"$f":"IFERROR(BG89*INDEX('Emissions factors'!$F$5:$CR$10,MATCH('Data Input - BAT'!$D125,'Emissions factors'!$C$5:$C$10,0),MATCH('Data Input - BAT'!BG$7,'Emissions factors'!$F$4:$CR$4,0))/1000,0)","v":0},{"$f":"IFERROR(BH89*INDEX('Emissions factors'!$F$5:$CR$10,MATCH('Data Input - BAT'!$D125,'Emissions factors'!$C$5:$C$10,0),MATCH('Data Input - BAT'!BH$7,'Emissions factors'!$F$4:$CR$4,0))/1000,0)","v":0},{"$f":"IFERROR(BI89*INDEX('Emissions factors'!$F$5:$CR$10,MATCH('Data Input - BAT'!$D125,'Emissions factors'!$C$5:$C$10,0),MATCH('Data Input - BAT'!BI$7,'Emissions factors'!$F$4:$CR$4,0))/1000,0)","v":0},{"$f":"IFERROR(BJ89*INDEX('Emissions factors'!$F$5:$CR$10,MATCH('Data Input - BAT'!$D125,'Emissions factors'!$C$5:$C$10,0),MATCH('Data Input - BAT'!BJ$7,'Emissions factors'!$F$4:$CR$4,0))/1000,0)","v":0},{"$f":"IFERROR(BK89*INDEX('Emissions factors'!$F$5:$CR$10,MATCH('Data Input - BAT'!$D125,'Emissions factors'!$C$5:$C$10,0),MATCH('Data Input - BAT'!BK$7,'Emissions factors'!$F$4:$CR$4,0))/1000,0)","v":0},{"$f":"IFERROR(BL89*INDEX('Emissions factors'!$F$5:$CR$10,MATCH('Data Input - BAT'!$D125,'Emissions factors'!$C$5:$C$10,0),MATCH('Data Input - BAT'!BL$7,'Emissions factors'!$F$4:$CR$4,0))/1000,0)","v":0},{"$f":"IFERROR(BM89*INDEX('Emissions factors'!$F$5:$CR$10,MATCH('Data Input - BAT'!$D125,'Emissions factors'!$C$5:$C$10,0),MATCH('Data Input - BAT'!BM$7,'Emissions factors'!$F$4:$CR$4,0))/1000,0)","v":0},{"$f":"IFERROR(BN89*INDEX('Emissions factors'!$F$5:$CR$10,MATCH('Data Input - BAT'!$D125,'Emissions factors'!$C$5:$C$10,0),MATCH('Data Input - BAT'!BN$7,'Emissions factors'!$F$4:$CR$4,0))/1000,0)","v":0},{"$f":"IFERROR(BO89*INDEX('Emissions factors'!$F$5:$CR$10,MATCH('Data Input - BAT'!$D125,'Emissions factors'!$C$5:$C$10,0),MATCH('Data Input - BAT'!BO$7,'Emissions factors'!$F$4:$CR$4,0))/1000,0)","v":0},{"$f":"IFERROR(BP89*INDEX('Emissions factors'!$F$5:$CR$10,MATCH('Data Input - BAT'!$D125,'Emissions factors'!$C$5:$C$10,0),MATCH('Data Input - BAT'!BP$7,'Emissions factors'!$F$4:$CR$4,0))/1000,0)","v":0},{"$f":"IFERROR(BQ89*INDEX('Emissions factors'!$F$5:$CR$10,MATCH('Data Input - BAT'!$D125,'Emissions factors'!$C$5:$C$10,0),MATCH('Data Input - BAT'!BQ$7,'Emissions factors'!$F$4:$CR$4,0))/1000,0)","v":0},{"$f":"IFERROR(BR89*INDEX('Emissions factors'!$F$5:$CR$10,MATCH('Data Input - BAT'!$D125,'Emissions factors'!$C$5:$C$10,0),MATCH('Data Input - BAT'!BR$7,'Emissions factors'!$F$4:$CR$4,0))/1000,0)","v":0},{"$f":"IFERROR(BS89*INDEX('Emissions factors'!$F$5:$CR$10,MATCH('Data Input - BAT'!$D125,'Emissions factors'!$C$5:$C$10,0),MATCH('Data Input - BAT'!BS$7,'Emissions factors'!$F$4:$CR$4,0))/1000,0)","v":0},{"$f":"IFERROR(BT89*INDEX('Emissions factors'!$F$5:$CR$10,MATCH('Data Input - BAT'!$D125,'Emissions factors'!$C$5:$C$10,0),MATCH('Data Input - BAT'!BT$7,'Emissions factors'!$F$4:$CR$4,0))/1000,0)","v":0},{"$f":"IFERROR(BU89*INDEX('Emissions factors'!$F$5:$CR$10,MATCH('Data Input - BAT'!$D125,'Emissions factors'!$C$5:$C$10,0),MATCH('Data Input - BAT'!BU$7,'Emissions factors'!$F$4:$CR$4,0))/1000,0)","v":0},{"$f":"IFERROR(BV89*INDEX('Emissions factors'!$F$5:$CR$10,MATCH('Data Input - BAT'!$D125,'Emissions factors'!$C$5:$C$10,0),MATCH('Data Input - BAT'!BV$7,'Emissions factors'!$F$4:$CR$4,0))/1000,0)","v":0},{"$f":"IFERROR(BW89*INDEX('Emissions factors'!$F$5:$CR$10,MATCH('Data Input - BAT'!$D125,'Emissions factors'!$C$5:$C$10,0),MATCH('Data Input - BAT'!BW$7,'Emissions factors'!$F$4:$CR$4,0))/1000,0)","v":0},{"$f":"IFERROR(BX89*INDEX('Emissions factors'!$F$5:$CR$10,MATCH('Data Input - BAT'!$D125,'Emissions factors'!$C$5:$C$10,0),MATCH('Data Input - BAT'!BX$7,'Emissions factors'!$F$4:$CR$4,0))/1000,0)","v":0},{"$f":"IFERROR(BY89*INDEX('Emissions factors'!$F$5:$CR$10,MATCH('Data Input - BAT'!$D125,'Emissions factors'!$C$5:$C$10,0),MATCH('Data Input - BAT'!BY$7,'Emissions factors'!$F$4:$CR$4,0))/1000,0)","v":0},{"$f":"IFERROR(BZ89*INDEX('Emissions factors'!$F$5:$CR$10,MATCH('Data Input - BAT'!$D125,'Emissions factors'!$C$5:$C$10,0),MATCH('Data Input - BAT'!BZ$7,'Emissions factors'!$F$4:$CR$4,0))/1000,0)","v":0},{"$f":"IFERROR(CA89*INDEX('Emissions factors'!$F$5:$CR$10,MATCH('Data Input - BAT'!$D125,'Emissions factors'!$C$5:$C$10,0),MATCH('Data Input - BAT'!CA$7,'Emissions factors'!$F$4:$CR$4,0))/1000,0)","v":0},{"$f":"IFERROR(CB89*INDEX('Emissions factors'!$F$5:$CR$10,MATCH('Data Input - BAT'!$D125,'Emissions factors'!$C$5:$C$10,0),MATCH('Data Input - BAT'!CB$7,'Emissions factors'!$F$4:$CR$4,0))/1000,0)","v":0},{"$f":"IFERROR(CC89*INDEX('Emissions factors'!$F$5:$CR$10,MATCH('Data Input - BAT'!$D125,'Emissions factors'!$C$5:$C$10,0),MATCH('Data Input - BAT'!CC$7,'Emissions factors'!$F$4:$CR$4,0))/1000,0)","v":0},{"$f":"IFERROR(CD89*INDEX('Emissions factors'!$F$5:$CR$10,MATCH('Data Input - BAT'!$D125,'Emissions factors'!$C$5:$C$10,0),MATCH('Data Input - BAT'!CD$7,'Emissions factors'!$F$4:$CR$4,0))/1000,0)","v":0},{"$f":"IFERROR(CE89*INDEX('Emissions factors'!$F$5:$CR$10,MATCH('Data Input - BAT'!$D125,'Emissions factors'!$C$5:$C$10,0),MATCH('Data Input - BAT'!CE$7,'Emissions factors'!$F$4:$CR$4,0))/1000,0)","v":0},{"$f":"IFERROR(CF89*INDEX('Emissions factors'!$F$5:$CR$10,MATCH('Data Input - BAT'!$D125,'Emissions factors'!$C$5:$C$10,0),MATCH('Data Input - BAT'!CF$7,'Emissions factors'!$F$4:$CR$4,0))/1000,0)","v":0},{"$f":"IFERROR(CG89*INDEX('Emissions factors'!$F$5:$CR$10,MATCH('Data Input - BAT'!$D125,'Emissions factors'!$C$5:$C$10,0),MATCH('Data Input - BAT'!CG$7,'Emissions factors'!$F$4:$CR$4,0))/1000,0)","v":0},{"$f":"IFERROR(CH89*INDEX('Emissions factors'!$F$5:$CR$10,MATCH('Data Input - BAT'!$D125,'Emissions factors'!$C$5:$C$10,0),MATCH('Data Input - BAT'!CH$7,'Emissions factors'!$F$4:$CR$4,0))/1000,0)","v":0},{"$f":"IFERROR(CI89*INDEX('Emissions factors'!$F$5:$CR$10,MATCH('Data Input - BAT'!$D125,'Emissions factors'!$C$5:$C$10,0),MATCH('Data Input - BAT'!CI$7,'Emissions factors'!$F$4:$CR$4,0))/1000,0)","v":0},{"$f":"IFERROR(CJ89*INDEX('Emissions factors'!$F$5:$CR$10,MATCH('Data Input - BAT'!$D125,'Emissions factors'!$C$5:$C$10,0),MATCH('Data Input - BAT'!CJ$7,'Emissions factors'!$F$4:$CR$4,0))/1000,0)","v":0},{"$f":"IFERROR(CK89*INDEX('Emissions factors'!$F$5:$CR$10,MATCH('Data Input - BAT'!$D125,'Emissions factors'!$C$5:$C$10,0),MATCH('Data Input - BAT'!CK$7,'Emissions factors'!$F$4:$CR$4,0))/1000,0)","v":0},{"$f":"IFERROR(CL89*INDEX('Emissions factors'!$F$5:$CR$10,MATCH('Data Input - BAT'!$D125,'Emissions factors'!$C$5:$C$10,0),MATCH('Data Input - BAT'!CL$7,'Emissions factors'!$F$4:$CR$4,0))/1000,0)","v":0},{"$f":"IFERROR(CM89*INDEX('Emissions factors'!$F$5:$CR$10,MATCH('Data Input - BAT'!$D125,'Emissions factors'!$C$5:$C$10,0),MATCH('Data Input - BAT'!CM$7,'Emissions factors'!$F$4:$CR$4,0))/1000,0)","v":0},{"$f":"IFERROR(CN89*INDEX('Emissions factors'!$F$5:$CR$10,MATCH('Data Input - BAT'!$D125,'Emissions factors'!$C$5:$C$10,0),MATCH('Data Input - BAT'!CN$7,'Emissions factors'!$F$4:$CR$4,0))/1000,0)","v":0},{"$f":"IFERROR(CO89*INDEX('Emissions factors'!$F$5:$CR$10,MATCH('Data Input - BAT'!$D125,'Emissions factors'!$C$5:$C$10,0),MATCH('Data Input - BAT'!CO$7,'Emissions factors'!$F$4:$CR$4,0))/1000,0)","v":0},{"$f":"IFERROR(CP89*INDEX('Emissions factors'!$F$5:$CR$10,MATCH('Data Input - BAT'!$D125,'Emissions factors'!$C$5:$C$10,0),MATCH('Data Input - BAT'!CP$7,'Emissions factors'!$F$4:$CR$4,0))/1000,0)","v":0},{"$f":"IFERROR(CQ89*INDEX('Emissions factors'!$F$5:$CR$10,MATCH('Data Input - BAT'!$D125,'Emissions factors'!$C$5:$C$10,0),MATCH('Data Input - BAT'!CQ$7,'Emissions factors'!$F$4:$CR$4,0))/1000,0)","v":0},{"$f":"IFERROR(CR89*INDEX('Emissions factors'!$F$5:$CR$10,MATCH('Data Input - BAT'!$D125,'Emissions factors'!$C$5:$C$10,0),MATCH('Data Input - BAT'!CR$7,'Emissions factors'!$F$4:$CR$4,0))/1000,0)","v":0},{"$f":"IFERROR(CS89*INDEX('Emissions factors'!$F$5:$CR$10,MATCH('Data Input - BAT'!$D125,'Emissions factors'!$C$5:$C$10,0),MATCH('Data Input - BAT'!CS$7,'Emissions factors'!$F$4:$CR$4,0))/1000,0)","v":0},{"$f":"IFERROR(CT89*INDEX('Emissions factors'!$F$5:$CR$10,MATCH('Data Input - BAT'!$D125,'Emissions factors'!$C$5:$C$10,0),MATCH('Data Input - BAT'!CT$7,'Emissions factors'!$F$4:$CR$4,0))/1000,0)","v":0},{"$f":"IFERROR(CU89*INDEX('Emissions factors'!$F$5:$CR$10,MATCH('Data Input - BAT'!$D125,'Emissions factors'!$C$5:$C$10,0),MATCH('Data Input - BAT'!CU$7,'Emissions factors'!$F$4:$CR$4,0))/1000,0)","v":0},{"$f":"IFERROR(CV89*INDEX('Emissions factors'!$F$5:$CR$10,MATCH('Data Input - BAT'!$D125,'Emissions factors'!$C$5:$C$10,0),MATCH('Data Input - BAT'!CV$7,'Emissions factors'!$F$4:$CR$4,0))/1000,0)","v":0},{"$f":"IFERROR(CW89*INDEX('Emissions factors'!$F$5:$CR$10,MATCH('Data Input - BAT'!$D125,'Emissions factors'!$C$5:$C$10,0),MATCH('Data Input - BAT'!CW$7,'Emissions factors'!$F$4:$CR$4,0))/1000,0)","v":0},{"$f":"IFERROR(CX89*INDEX('Emissions factors'!$F$5:$CR$10,MATCH('Data Input - BAT'!$D125,'Emissions factors'!$C$5:$C$10,0),MATCH('Data Input - BAT'!CX$7,'Emissions factors'!$F$4:$CR$4,0))/1000,0)","v":0},{"$f":"IFERROR(CY89*INDEX('Emissions factors'!$F$5:$CR$10,MATCH('Data Input - BAT'!$D125,'Emissions factors'!$C$5:$C$10,0),MATCH('Data Input - BAT'!CY$7,'Emissions factors'!$F$4:$CR$4,0))/1000,0)","v":0},{"$f":"IFERROR(CZ89*INDEX('Emissions factors'!$F$5:$CR$10,MATCH('Data Input - BAT'!$D125,'Emissions factors'!$C$5:$C$10,0),MATCH('Data Input - BAT'!CZ$7,'Emissions factors'!$F$4:$CR$4,0))/1000,0)","v":0},{"$f":"IFERROR(DA89*INDEX('Emissions factors'!$F$5:$CR$10,MATCH('Data Input - BAT'!$D125,'Emissions factors'!$C$5:$C$10,0),MATCH('Data Input - BAT'!DA$7,'Emissions factors'!$F$4:$CR$4,0))/1000,0)","v":0},{"$f":"IFERROR(DB89*INDEX('Emissions factors'!$F$5:$CR$10,MATCH('Data Input - BAT'!$D125,'Emissions factors'!$C$5:$C$10,0),MATCH('Data Input - BAT'!DB$7,'Emissions factors'!$F$4:$CR$4,0))/1000,0)","v":0},{"$f":"IFERROR(DC89*INDEX('Emissions factors'!$F$5:$CR$10,MATCH('Data Input - BAT'!$D125,'Emissions factors'!$C$5:$C$10,0),MATCH('Data Input - BAT'!DC$7,'Emissions factors'!$F$4:$CR$4,0))/1000,0)","v":0}]
[null,null,"6.52",0,"tCO2e"]
[]
[null,null,null,"Total fuel-related GHG Emissions","tCO2e","(Auto calculated value)",null,{"$f":"SUM(H$120:H$127)","v":41644.737608250049},{"$f":"SUM(I$120:I$127)","v":41510.233175019348},{"$f":"SUM(J$120:J$127)","v":41388.187501378598},41316.993984732529,41193.774664474658,41229.164858991418,41182.585839819963,41105.387885048549,0,0,0,0,0,0,0,0,0,0,0,0,0,0,0,0,0,0,0,0,0,0,0,0,0,0,0,0,0,0,0,0,0,0,0,0,0,0,0,0,0,0,0,0,0,0,0,0,0,0,0,0,0,0,0,0,0,0,{"$f":"SUM(BV$120:BV$127)","v":0},0,0,0,0,0,0,0,0,0,0,0,0,0,0,0,0,0,0,0,0,0,0,0,0,0,0,0,0,0,0,0,0,0]

{"sheet":"Data Input - Option 3","index":16,"n_rows":128,"n_cols":108,"rows_kept":128,"cut":false,"hidden":false,"merged":[[3,3,6,3],[31,7,31,9],[51,7,51,9]]}
[null,{"$f":"\"---- \" & IF($C$9<>\"Nothing Selected - Do not Complete this Section\",\"Step 7 - Data Input - \" & C9, \"Step 7 - Data Input - Option 3\") & \" ----\"","v":"---- Step 7 - Data Input - Waste off ----"}]
[]
[]
[]
[null,null,null,null,null,null,null,{"$f":"IF(AND(SUM(H30,H50,H79,H100,H117,H128,#REF!)<>0,H7=0),1,0)","v":{"$error":"#REF!"}},{"$f":"IF(AND(SUM(I30,I50,I79,I100,I117,I128,#REF!)<>0,I7=0),1,0)","v":{"$error":"#REF!"}},{"$f":"IF(AND(SUM(J30,J50,J79,J100,J117,J128,#REF!)<>0,J7=0),1,0)","v":{"$error":"#REF!"}},{"$f":"IF(AND(SUM(K30,K50,K79,K100,K117,K128,#REF!)<>0,K7=0),1,0)","v":{"$error":"#REF!"}},{"$f":"IF(AND(SUM(L30,L50,L79,L100,L117,L128,#REF!)<>0,L7=0),1,0)","v":{"$error":"#REF!"}},{"$f":"IF(AND(SUM(M30,M50,M79,M100,M117,M128,#REF!)<>0,M7=0),1,0)","v":{"$error":"#REF!"}},{"$f":"IF(AND(SUM(N30,N50,N79,N100,N117,N128,#REF!)<>0,N7=0),1,0)","v":{"$error":"#REF!"}},{"$f":"IF(AND(SUM(O30,O50,O79,O100,O117,O128,#REF!)<>0,O7=0),1,0)","v":{"$error":"#REF!"}},{"$f":"IF(AND(SUM(P30,P50,P79,P100,P117,P128,#REF!)<>0,P7=0),1,0)","v":{"$error":"#REF!"}},{"$f":"IF(AND(SUM(Q30,Q50,Q79,Q100,Q117,Q128,#REF!)<>0,Q7=0),1,0)","v":{"$error":"#REF!"}},{"$f":"IF(AND(SUM(R30,R50,R79,R100,R117,R128,#REF!)<>0,R7=0),1,0)","v":{"$error":"#REF!"}},{"$f":"IF(AND(SUM(S30,S50,S79,S100,S117,S128,#REF!)<>0,S7=0),1,0)","v":{"$error":"#REF!"}},{"$f":"IF(AND(SUM(T30,T50,T79,T100,T117,T128,#REF!)<>0,T7=0),1,0)","v":{"$error":"#REF!"}},{"$f":"IF(AND(SUM(U30,U50,U79,U100,U117,U128,#REF!)<>0,U7=0),1,0)","v":{"$error":"#REF!"}},{"$f":"IF(AND(SUM(V30,V50,V79,V100,V117,V128,#REF!)<>0,V7=0),1,0)","v":{"$error":"#REF!"}},{"$f":"IF(AND(SUM(W30,W50,W79,W100,W117,W128,#REF!)<>0,W7=0),1,0)","v":{"$error":"#REF!"}},{"$f":"IF(AND(SUM(X30,X50,X79,X100,X117,X128,#REF!)<>0,X7=0),1,0)","v":{"$error":"#REF!"}},{"$f":"IF(AND(SUM(Y30,Y50,Y79,Y100,Y117,Y128,#REF!)<>0,Y7=0),1,0)","v":{"$error":"#REF!"}},{"$f":"IF(AND(SUM(Z30,Z50,Z79,Z100,Z117,Z128,#REF!)<>0,Z7=0),1,0)","v":{"$error":"#REF!"}},{"$f":"IF(AND(SUM(AA30,AA50,AA79,AA100,AA117,AA128,#REF!)<>0,AA7=0),1,0)","v":{"$error":"#REF!"}},{"$f":"IF(AND(SUM(AB30,AB50,AB79,AB100,AB117,AB128,#REF!)<>0,AB7=0),1,0)","v":{"$error":"#REF!"}},{"$f":"IF(AND(SUM(AC30,AC50,AC79,AC100,AC117,AC128,#REF!)<>0,AC7=0),1,0)","v":{"$error":"#REF!"}},{"$f":"IF(AND(SUM(AD30,AD50,AD79,AD100,AD117,AD128,#REF!)<>0,AD7=0),1,0)","v":{"$error":"#REF!"}},{"$f":"IF(AND(SUM(AE30,AE50,AE79,AE100,AE117,AE128,#REF!)<>0,AE7=0),1,0)","v":{"$error":"#REF!"}},{"$f":"IF(AND(SUM(AF30,AF50,AF79,AF100,AF117,AF128,#REF!)<>0,AF7=0),1,0)","v":{"$error":"#REF!"}},{"$f":"IF(AND(SUM(AG30,AG50,AG79,AG100,AG117,AG128,#REF!)<>0,AG7=0),1,0)","v":{"$error":"#REF!"}},{"$f":"IF(AND(SUM(AH30,AH50,AH79,AH100,AH117,AH128,#REF!)<>0,AH7=0),1,0)","v":{"$error":"#REF!"}},{"$f":"IF(AND(SUM(AI30,AI50,AI79,AI100,AI117,AI128,#REF!)<>0,AI7=0),1,0)","v":{"$error":"#REF!"}},{"$f":"IF(AND(SUM(AJ30,AJ50,AJ79,AJ100,AJ117,AJ128,#REF!)<>0,AJ7=0),1,0)","v":{"$error":"#REF!"}},{"$f":"IF(AND(SUM(AK30,AK50,AK79,AK100,AK117,AK128,#REF!)<>0,AK7=0),1,0)","v":{"$error":"#REF!"}},{"$f":"IF(AND(SUM(AL30,AL50,AL79,AL100,AL117,AL128,#REF!)<>0,AL7=0),1,0)","v":{"$error":"#REF!"}},{"$f":"IF(AND(SUM(AM30,AM50,AM79,AM100,AM117,AM128,#REF!)<>0,AM7=0),1,0)","v":{"$error":"#REF!"}},{"$f":"IF(AND(SUM(AN30,AN50,AN79,AN100,AN117,AN128,#REF!)<>0,AN7=0),1,0)","v":{"$error":"#REF!"}},{"$f":"IF(AND(SUM(AO30,AO50,AO79,AO100,AO117,AO128,#REF!)<>0,AO7=0),1,0)","v":{"$error":"#REF!"}},{"$f":"IF(AND(SUM(AP30,AP50,AP79,AP100,AP117,AP128,#REF!)<>0,AP7=0),1,0)","v":{"$error":"#REF!"}},{"$f":"IF(AND(SUM(AQ30,AQ50,AQ79,AQ100,AQ117,AQ128,#REF!)<>0,AQ7=0),1,0)","v":{"$error":"#REF!"}},{"$f":"IF(AND(SUM(AR30,AR50,AR79,AR100,AR117,AR128,#REF!)<>0,AR7=0),1,0)","v":{"$error":"#REF!"}},{"$f":"IF(AND(SUM(AS30,AS50,AS79,AS100,AS117,AS128,#REF!)<>0,AS7=0),1,0)","v":{"$error":"#REF!"}},{"$f":"IF(AND(SUM(AT30,AT50,AT79,AT100,AT117,AT128,#REF!)<>0,AT7=0),1,0)","v":{"$error":"#REF!"}},{"$f":"IF(AND(SUM(AU30,AU50,AU79,AU100,AU117,AU128,#REF!)<>0,AU7=0),1,0)","v":{"$error":"#REF!"}},{"$f":"IF(AND(SUM(AV30,AV50,AV79,AV100,AV117,AV128,#REF!)<>0,AV7=0),1,0)","v":{"$error":"#REF!"}},{"$f":"IF(AND(SUM(AW30,AW50,AW79,AW100,AW117,AW128,#REF!)<>0,AW7=0),1,0)","v":{"$error":"#REF!"}},{"$f":"IF(AND(SUM(AX30,AX50,AX79,AX100,AX117,AX128,#REF!)<>0,AX7=0),1,0)","v":{"$error":"#REF!"}},{"$f":"IF(AND(SUM(AY30,AY50,AY79,AY100,AY117,AY128,#REF!)<>0,AY7=0),1,0)","v":{"$error":"#REF!"}},{"$f":"IF(AND(SUM(AZ30,AZ50,AZ79,AZ100,AZ117,AZ128,#REF!)<>0,AZ7=0),1,0)","v":{"$error":"#REF!"}},{"$f":"IF(AND(SUM(BA30,BA50,BA79,BA100,BA117,BA128,#REF!)<>0,BA7=0),1,0)","v":{"$error":"#REF!"}},{"$f":"IF(AND(SUM(BB30,BB50,BB79,BB100,BB117,BB128,#REF!)<>0,BB7=0),1,0)","v":{"$error":"#REF!"}},{"$f":"IF(AND(SUM(BC30,BC50,BC79,BC100,BC117,BC128,#REF!)<>0,BC7=0),1,0)","v":{"$error":"#REF!"}},{"$f":"IF(AND(SUM(BD30,BD50,BD79,BD100,BD117,BD128,#REF!)<>0,BD7=0),1,0)","v":{"$error":"#REF!"}},{"$f":"IF(AND(SUM(BE30,BE50,BE79,BE100,BE117,BE128,#REF!)<>0,BE7=0),1,0)","v":{"$error":"#REF!"}},{"$f":"IF(AND(SUM(BF30,BF50,BF79,BF100,BF117,BF128,#REF!)<>0,BF7=0),1,0)","v":{"$error":"#REF!"}},{"$f":"IF(AND(SUM(BG30,BG50,BG79,BG100,BG117,BG128,#REF!)<>0,BG7=0),1,0)","v":{"$error":"#REF!"}},{"$f":"IF(AND(SUM(BH30,BH50,BH79,BH100,BH117,BH128,#REF!)<>0,BH7=0),1,0)","v":{"$error":"#REF!"}},{"$f":"IF(AND(SUM(BI30,BI50,BI79,BI100,BI117,BI128,#REF!)<>0,BI7=0),1,0)","v":{"$error":"#REF!"}},{"$f":"IF(AND(SUM(BJ30,BJ50,BJ79,BJ100,BJ117,BJ128,#REF!)<>0,BJ7=0),1,0)","v":{"$error":"#REF!"}},{"$f":"IF(AND(SUM(BK30,BK50,BK79,BK100,BK117,BK128,#REF!)<>0,BK7=0),1,0)","v":{"$error":"#REF!"}},{"$f":"IF(AND(SUM(BL30,BL50,BL79,BL100,BL117,BL128,#REF!)<>0,BL7=0),1,0)","v":{"$error":"#REF!"}},{"$f":"IF(AND(SUM(BM30,BM50,BM79,BM100,BM117,BM128,#REF!)<>0,BM7=0),1,0)","v":{"$error":"#REF!"}},{"$f":"IF(AND(SUM(BN30,BN50,BN79,BN100,BN117,BN128,#REF!)<>0,BN7=0),1,0)","v":{"$error":"#REF!"}},{"$f":"IF(AND(SUM(BO30,BO50,BO79,BO100,BO117,BO128,#REF!)<>0,BO7=0),1,0)","v":{"$error":"#REF!"}},{"$f":"IF(AND(SUM(BP30,BP50,BP79,BP100,BP117,BP128,#REF!)<>0,BP7=0),1,0)","v":{"$error":"#REF!"}},{"$f":"IF(AND(SUM(BQ30,BQ50,BQ79,BQ100,BQ117,BQ128,#REF!)<>0,BQ7=0),1,0)","v":{"$error":"#REF!"}},{"$f":"IF(AND(SUM(BR30,BR50,BR79,BR100,BR117,BR128,#REF!)<>0,BR7=0),1,0)","v":{"$error":"#REF!"}},{"$f":"IF(AND(SUM(BS30,BS50,BS79,BS100,BS117,BS128,#REF!)<>0,BS7=0),1,0)","v":{"$error":"#REF!"}},{"$f":"IF(AND(SUM(BT30,BT50,BT79,BT100,BT117,BT128,#REF!)<>0,BT7=0),1,0)","v":{"$error":"#REF!"}},{"$f":"IF(AND(SUM(BU30,BU50,BU79,BU100,BU117,BU128,#REF!)<>0,BU7=0),1,0)","v":{"$error":"#REF!"}},{"$f":"IF(AND(SUM(BV30,BV50,BV79,BV100,BV117,BV128,#REF!)<>0,BV7=0),1,0)","v":{"$error":"#REF!"}},{"$f":"IF(AND(SUM(BW30,BW50,BW79,BW100,BW117,BW128,#REF!)<>0,BW7=0),1,0)","v":{"$error":"#REF!"}},{"$f":"IF(AND(SUM(BX30,BX50,BX79,BX100,BX117,BX128,#REF!)<>0,BX7=0),1,0)","v":{"$error":"#REF!"}},{"$f":"IF(AND(SUM(BY30,BY50,BY79,BY100,BY117,BY128,#REF!)<>0,BY7=0),1,0)","v":{"$error":"#REF!"}},{"$f":"IF(AND(SUM(BZ30,BZ50,BZ79,BZ100,BZ117,BZ128,#REF!)<>0,BZ7=0),1,0)","v":{"$error":"#REF!"}},{"$f":"IF(AND(SUM(CA30,CA50,CA79,CA100,CA117,CA128,#REF!)<>0,CA7=0),1,0)","v":{"$error":"#REF!"}},{"$f":"IF(AND(SUM(CB30,CB50,CB79,CB100,CB117,CB128,#REF!)<>0,CB7=0),1,0)","v":{"$error":"#REF!"}},{"$f":"IF(AND(SUM(CC30,CC50,CC79,CC100,CC117,CC128,#REF!)<>0,CC7=0),1,0)","v":{"$error":"#REF!"}},{"$f":"IF(AND(SUM(CD30,CD50,CD79,CD100,CD117,CD128,#REF!)<>0,CD7=0),1,0)","v":{"$error":"#REF!"}},{"$f":"IF(AND(SUM(CE30,CE50,CE79,CE100,CE117,CE128,#REF!)<>0,CE7=0),1,0)","v":{"$error":"#REF!"}},{"$f":"IF(AND(SUM(CF30,CF50,CF79,CF100,CF117,CF128,#REF!)<>0,CF7=0),1,0)","v":{"$error":"#REF!"}},{"$f":"IF(AND(SUM(CG30,CG50,CG79,CG100,CG117,CG128,#REF!)<>0,CG7=0),1,0)","v":{"$error":"#REF!"}},{"$f":"IF(AND(SUM(CH30,CH50,CH79,CH100,CH117,CH128,#REF!)<>0,CH7=0),1,0)","v":{"$error":"#REF!"}},{"$f":"IF(AND(SUM(CI30,CI50,CI79,CI100,CI117,CI128,#REF!)<>0,CI7=0),1,0)","v":{"$error":"#REF!"}},{"$f":"IF(AND(SUM(CJ30,CJ50,CJ79,CJ100,CJ117,CJ128,#REF!)<>0,CJ7=0),1,0)","v":{"$error":"#REF!"}},{"$f":"IF(AND(SUM(CK30,CK50,CK79,CK100,CK117,CK128,#REF!)<>0,CK7=0),1,0)","v":{"$error":"#REF!"}},{"$f":"IF(AND(SUM(CL30,CL50,CL79,CL100,CL117,CL128,#REF!)<>0,CL7=0),1,0)","v":{"$error":"#REF!"}},{"$f":"IF(AND(SUM(CM30,CM50,CM79,CM100,CM117,CM128,#REF!)<>0,CM7=0),1,0)","v":{"$error":"#REF!"}},{"$f":"IF(AND(SUM(CN30,CN50,CN79,CN100,CN117,CN128,#REF!)<>0,CN7=0),1,0)","v":{"$error":"#REF!"}},{"$f":"IF(AND(SUM(CO30,CO50,CO79,CO100,CO117,CO128,#REF!)<>0,CO7=0),1,0)","v":{"$error":"#REF!"}},{"$f":"IF(AND(SUM(CP30,CP50,CP79,CP100,CP117,CP128,#REF!)<>0,CP7=0),1,0)","v":{"$error":"#REF!"}},{"$f":"IF(AND(SUM(CQ30,CQ50,CQ79,CQ100,CQ117,CQ128,#REF!)<>0,CQ7=0),1,0)","v":{"$error":"#REF!"}},{"$f":"IF(AND(SUM(CR30,CR50,CR79,CR100,CR117,CR128,#REF!)<>0,CR7=0),1,0)","v":{"$error":"#REF!"}},{"$f":"IF(AND(SUM(CS30,CS50,CS79,CS100,CS117,CS128,#REF!)<>0,CS7=0),1,0)","v":{"$error":"#REF!"}},{"$f":"IF(AND(SUM(CT30,CT50,CT79,CT100,CT117,CT128,#REF!)<>0,CT7=0),1,0)","v":{"$error":"#REF!"}},{"$f":"IF(AND(SUM(CU30,CU50,CU79,CU100,CU117,CU128,#REF!)<>0,CU7=0),1,0)","v":{"$error":"#REF!"}},{"$f":"IF(AND(SUM(CV30,CV50,CV79,CV100,CV117,CV128,#REF!)<>0,CV7=0),1,0)","v":{"$error":"#REF!"}},{"$f":"IF(AND(SUM(CW30,CW50,CW79,CW100,CW117,CW128,#REF!)<>0,CW7=0),1,0)","v":{"$error":"#REF!"}},{"$f":"IF(AND(SUM(CX30,CX50,CX79,CX100,CX117,CX128,#REF!)<>0,CX7=0),1,0)","v":{"$error":"#REF!"}},{"$f":"IF(AND(SUM(CY30,CY50,CY79,CY100,CY117,CY128,#REF!)<>0,CY7=0),1,0)","v":{"$error":"#REF!"}},{"$f":"IF(AND(SUM(CZ30,CZ50,CZ79,CZ100,CZ117,CZ128,#REF!)<>0,CZ7=0),1,0)","v":{"$error":"#REF!"}},{"$f":"IF(AND(SUM(DA30,DA50,DA79,DA100,DA117,DA128,#REF!)<>0,DA7=0),1,0)","v":{"$error":"#REF!"}},{"$f":"IF(AND(SUM(DB30,DB50,DB79,DB100,DB117,DB128,#REF!)<>0,DB7=0),1,0)","v":{"$error":"#REF!"}},{"$f":"IF(AND(SUM(DC30,DC50,DC79,DC100,DC117,DC128,#REF!)<>0,DC7=0),1,0)","v":{"$error":"#REF!"}}]
[null,null,null,null,null,"Year number",null,0,1,2,3,4,5,6,7,8,9,10,11,12,13,14,15,16,17,18,19,20,21,22,23,24,25,26,27,28,29,30,31,32,33,34,35,36,37,38,39,40,41,42,43,44,45,46,47,48,49,50,51,52,53,54,55,56,57,58,59,60,61,62,63,64,65,66,67,68,69,70,71,72,73,74,75,76,77,78,79,80,81,82,83,84,85,86,87,88,89,90,91,92,93,94,95,96,97,98,99]
[null,null,null,null,null,"Year",null,{"$f":"IF($C$9=0,\"\",IF(H$6+'Data Input - General'!$F$22>'Data Input - General'!$F$34,0,'Data Input - Option 3'!H$6+'Data Input - General'!$F$22))","v":2019},{"$f":"IF($C$9=0,\"\",IF(I$6+'Data Input - General'!$F$22>'Data Input - General'!$F$34,0,'Data Input - Option 3'!I$6+'Data Input - General'!$F$22))","v":2020},{"$f":"IF($C$9=0,\"\",IF(J$6+'Data Input - General'!$F$22>'Data Input - General'!$F$34,0,'Data Input - Option 3'!J$6+'Data Input - General'!$F$22))","v":2021},{"$f":"IF($C$9=0,\"\",IF(K$6+'Data Input - General'!$F$22>'Data Input - General'!$F$34,0,'Data Input - Option 3'!K$6+'Data Input - General'!$F$22))","v":2022},{"$f":"IF($C$9=0,\"\",IF(L$6+'Data Input - General'!$F$22>'Data Input - General'!$F$34,0,'Data Input - Option 3'!L$6+'Data Input - General'!$F$22))","v":2023},{"$f":"IF($C$9=0,\"\",IF(M$6+'Data Input - General'!$F$22>'Data Input - General'!$F$34,0,'Data Input - Option 3'!M$6+'Data Input - General'!$F$22))","v":2024},{"$f":"IF($C$9=0,\"\",IF(N$6+'Data Input - General'!$F$22>'Data Input - General'!$F$34,0,'Data Input - Option 3'!N$6+'Data Input - General'!$F$22))","v":2025},{"$f":"IF($C$9=0,\"\",IF(O$6+'Data Input - General'!$F$22>'Data Input - General'!$F$34,0,'Data Input - Option 3'!O$6+'Data Input - General'!$F$22))","v":2026},{"$f":"IF($C$9=0,\"\",IF(P$6+'Data Input - General'!$F$22>'Data Input - General'!$F$34,0,'Data Input - Option 3'!P$6+'Data Input - General'!$F$22))","v":2027},{"$f":"IF($C$9=0,\"\",IF(Q$6+'Data Input - General'!$F$22>'Data Input - General'!$F$34,0,'Data Input - Option 3'!Q$6+'Data Input - General'!$F$22))","v":2028},{"$f":"IF($C$9=0,\"\",IF(R$6+'Data Input - General'!$F$22>'Data Input - General'!$F$34,0,'Data Input - Option 3'!R$6+'Data Input - General'!$F$22))","v":2029},{"$f":"IF($C$9=0,\"\",IF(S$6+'Data Input - General'!$F$22>'Data Input - General'!$F$34,0,'Data Input - Option 3'!S$6+'Data Input - General'!$F$22))","v":2030},{"$f":"IF($C$9=0,\"\",IF(T$6+'Data Input - General'!$F$22>'Data Input - General'!$F$34,0,'Data Input - Option 3'!T$6+'Data Input - General'!$F$22))","v":2031},{"$f":"IF($C$9=0,\"\",IF(U$6+'Data Input - General'!$F$22>'Data Input - General'!$F$34,0,'Data Input - Option 3'!U$6+'Data Input - General'!$F$22))","v":2032},{"$f":"IF($C$9=0,\"\",IF(V$6+'Data Input - General'!$F$22>'Data Input - General'!$F$34,0,'Data Input - Option 3'!V$6+'Data Input - General'!$F$22))","v":2033},{"$f":"IF($C$9=0,\"\",IF(W$6+'Data Input - General'!$F$22>'Data Input - General'!$F$34,0,'Data Input - Option 3'!W$6+'Data Input - General'!$F$22))","v":2034},{"$f":"IF($C$9=0,\"\",IF(X$6+'Data Input - General'!$F$22>'Data Input - General'!$F$34,0,'Data Input - Option 3'!X$6+'Data Input - General'!$F$22))","v":2035},{"$f":"IF($C$9=0,\"\",IF(Y$6+'Data Input - General'!$F$22>'Data Input - General'!$F$34,0,'Data Input - Option 3'!Y$6+'Data Input - General'!$F$22))","v":2036},{"$f":"IF($C$9=0,\"\",IF(Z$6+'Data Input - General'!$F$22>'Data Input - General'!$F$34,0,'Data Input - Option 3'!Z$6+'Data Input - General'!$F$22))","v":2037},{"$f":"IF($C$9=0,\"\",IF(AA$6+'Data Input - General'!$F$22>'Data Input - General'!$F$34,0,'Data Input - Option 3'!AA$6+'Data Input - General'!$F$22))","v":2038},{"$f":"IF($C$9=0,\"\",IF(AB$6+'Data Input - General'!$F$22>'Data Input - General'!$F$34,0,'Data Input - Option 3'!AB$6+'Data Input - General'!$F$22))","v":2039},{"$f":"IF($C$9=0,\"\",IF(AC$6+'Data Input - General'!$F$22>'Data Input - General'!$F$34,0,'Data Input - Option 3'!AC$6+'Data Input - General'!$F$22))","v":2040},{"$f":"IF($C$9=0,\"\",IF(AD$6+'Data Input - General'!$F$22>'Data Input - General'!$F$34,0,'Data Input - Option 3'!AD$6+'Data Input - General'!$F$22))","v":2041},{"$f":"IF($C$9=0,\"\",IF(AE$6+'Data Input - General'!$F$22>'Data Input - General'!$F$34,0,'Data Input - Option 3'!AE$6+'Data Input - General'!$F$22))","v":2042},{"$f":"IF($C$9=0,\"\",IF(AF$6+'Data Input - General'!$F$22>'Data Input - General'!$F$34,0,'Data Input - Option 3'!AF$6+'Data Input - General'!$F$22))","v":2043},{"$f":"IF($C$9=0,\"\",IF(AG$6+'Data Input - General'!$F$22>'Data Input - General'!$F$34,0,'Data Input - Option 3'!AG$6+'Data Input - General'!$F$22))","v":2044},{"$f":"IF($C$9=0,\"\",IF(AH$6+'Data Input - General'!$F$22>'Data Input - General'!$F$34,0,'Data Input - Option 3'!AH$6+'Data Input - General'!$F$22))","v":2045},{"$f":"IF($C$9=0,\"\",IF(AI$6+'Data Input - General'!$F$22>'Data Input - General'!$F$34,0,'Data Input - Option 3'!AI$6+'Data Input - General'!$F$22))","v":2046},{"$f":"IF($C$9=0,\"\",IF(AJ$6+'Data Input - General'!$F$22>'Data Input - General'!$F$34,0,'Data Input - Option 3'!AJ$6+'Data Input - General'!$F$22))","v":2047},{"$f":"IF($C$9=0,\"\",IF(AK$6+'Data Input - General'!$F$22>'Data Input - General'!$F$34,0,'Data Input - Option 3'!AK$6+'Data Input - General'!$F$22))","v":2048},{"$f":"IF($C$9=0,\"\",IF(AL$6+'Data Input - General'!$F$22>'Data Input - General'!$F$34,0,'Data Input - Option 3'!AL$6+'Data Input - General'!$F$22))","v":2049},{"$f":"IF($C$9=0,\"\",IF(AM$6+'Data Input - General'!$F$22>'Data Input - General'!$F$34,0,'Data Input - Option 3'!AM$6+'Data Input - General'!$F$22))","v":0},{"$f":"IF($C$9=0,\"\",IF(AN$6+'Data Input - General'!$F$22>'Data Input - General'!$F$34,0,'Data Input - Option 3'!AN$6+'Data Input - General'!$F$22))","v":0},{"$f":"IF($C$9=0,\"\",IF(AO$6+'Data Input - General'!$F$22>'Data Input - General'!$F$34,0,'Data Input - Option 3'!AO$6+'Data Input - General'!$F$22))","v":0},{"$f":"IF($C$9=0,\"\",IF(AP$6+'Data Input - General'!$F$22>'Data Input - General'!$F$34,0,'Data Input - Option 3'!AP$6+'Data Input - General'!$F$22))","v":0},{"$f":"IF($C$9=0,\"\",IF(AQ$6+'Data Input - General'!$F$22>'Data Input - General'!$F$34,0,'Data Input - Option 3'!AQ$6+'Data Input - General'!$F$22))","v":0},{"$f":"IF($C$9=0,\"\",IF(AR$6+'Data Input - General'!$F$22>'Data Input - General'!$F$34,0,'Data Input - Option 3'!AR$6+'Data Input - General'!$F$22))","v":0},{"$f":"IF($C$9=0,\"\",IF(AS$6+'Data Input - General'!$F$22>'Data Input - General'!$F$34,0,'Data Input - Option 3'!AS$6+'Data Input - General'!$F$22))","v":0},{"$f":"IF($C$9=0,\"\",IF(AT$6+'Data Input - General'!$F$22>'Data Input - General'!$F$34,0,'Data Input - Option 3'!AT$6+'Data Input - General'!$F$22))","v":0},{"$f":"IF($C$9=0,\"\",IF(AU$6+'Data Input - General'!$F$22>'Data Input - General'!$F$34,0,'Data Input - Option 3'!AU$6+'Data Input - General'!$F$22))","v":0},{"$f":"IF($C$9=0,\"\",IF(AV$6+'Data Input - General'!$F$22>'Data Input - General'!$F$34,0,'Data Input - Option 3'!AV$6+'Data Input - General'!$F$22))","v":0},{"$f":"IF($C$9=0,\"\",IF(AW$6+'Data Input - General'!$F$22>'Data Input - General'!$F$34,0,'Data Input - Option 3'!AW$6+'Data Input - General'!$F$22))","v":0},{"$f":"IF($C$9=0,\"\",IF(AX$6+'Data Input - General'!$F$22>'Data Input - General'!$F$34,0,'Data Input - Option 3'!AX$6+'Data Input - General'!$F$22))","v":0},{"$f":"IF($C$9=0,\"\",IF(AY$6+'Data Input - General'!$F$22>'Data Input - General'!$F$34,0,'Data Input - Option 3'!AY$6+'Data Input - General'!$F$22))","v":0},{"$f":"IF($C$9=0,\"\",IF(AZ$6+'Data Input - General'!$F$22>'Data Input - General'!$F$34,0,'Data Input - Option 3'!AZ$6+'Data Input - General'!$F$22))","v":0},{"$f":"IF($C$9=0,\"\",IF(BA$6+'Data Input - General'!$F$22>'Data Input - General'!$F$34,0,'Data Input - Option 3'!BA$6+'Data Input - General'!$F$22))","v":0},{"$f":"IF($C$9=0,\"\",IF(BB$6+'Data Input - General'!$F$22>'Data Input - General'!$F$34,0,'Data Input - Option 3'!BB$6+'Data Input - General'!$F$22))","v":0},{"$f":"IF($C$9=0,\"\",IF(BC$6+'Data Input - General'!$F$22>'Data Input - General'!$F$34,0,'Data Input - Option 3'!BC$6+'Data Input - General'!$F$22))","v":0},{"$f":"IF($C$9=0,\"\",IF(BD$6+'Data Input - General'!$F$22>'Data Input - General'!$F$34,0,'Data Input - Option 3'!BD$6+'Data Input - General'!$F$22))","v":0},{"$f":"IF($C$9=0,\"\",IF(BE$6+'Data Input - General'!$F$22>'Data Input - General'!$F$34,0,'Data Input - Option 3'!BE$6+'Data Input - General'!$F$22))","v":0},{"$f":"IF($C$9=0,\"\",IF(BF$6+'Data Input - General'!$F$22>'Data Input - General'!$F$34,0,'Data Input - Option 3'!BF$6+'Data Input - General'!$F$22))","v":0},{"$f":"IF($C$9=0,\"\",IF(BG$6+'Data Input - General'!$F$22>'Data Input - General'!$F$34,0,'Data Input - Option 3'!BG$6+'Data Input - General'!$F$22))","v":0},{"$f":"IF($C$9=0,\"\",IF(BH$6+'Data Input - General'!$F$22>'Data Input - General'!$F$34,0,'Data Input - Option 3'!BH$6+'Data Input - General'!$F$22))","v":0},{"$f":"IF($C$9=0,\"\",IF(BI$6+'Data Input - General'!$F$22>'Data Input - General'!$F$34,0,'Data Input - Option 3'!BI$6+'Data Input - General'!$F$22))","v":0},{"$f":"IF($C$9=0,\"\",IF(BJ$6+'Data Input - General'!$F$22>'Data Input - General'!$F$34,0,'Data Input - Option 3'!BJ$6+'Data Input - General'!$F$22))","v":0},{"$f":"IF($C$9=0,\"\",IF(BK$6+'Data Input - General'!$F$22>'Data Input - General'!$F$34,0,'Data Input - Option 3'!BK$6+'Data Input - General'!$F$22))","v":0},{"$f":"IF($C$9=0,\"\",IF(BL$6+'Data Input - General'!$F$22>'Data Input - General'!$F$34,0,'Data Input - Option 3'!BL$6+'Data Input - General'!$F$22))","v":0},{"$f":"IF($C$9=0,\"\",IF(BM$6+'Data Input - General'!$F$22>'Data Input - General'!$F$34,0,'Data Input - Option 3'!BM$6+'Data Input - General'!$F$22))","v":0},{"$f":"IF($C$9=0,\"\",IF(BN$6+'Data Input - General'!$F$22>'Data Input - General'!$F$34,0,'Data Input - Option 3'!BN$6+'Data Input - General'!$F$22))","v":0},{"$f":"IF($C$9=0,\"\",IF(BO$6+'Data Input - General'!$F$22>'Data Input - General'!$F$34,0,'Data Input - Option 3'!BO$6+'Data Input - General'!$F$22))","v":0},{"$f":"IF($C$9=0,\"\",IF(BP$6+'Data Input - General'!$F$22>'Data Input - General'!$F$34,0,'Data Input - Option 3'!BP$6+'Data Input - General'!$F$22))","v":0},{"$f":"IF($C$9=0,\"\",IF(BQ$6+'Data Input - General'!$F$22>'Data Input - General'!$F$34,0,'Data Input - Option 3'!BQ$6+'Data Input - General'!$F$22))","v":0},{"$f":"IF($C$9=0,\"\",IF(BR$6+'Data Input - General'!$F$22>'Data Input - General'!$F$34,0,'Data Input - Option 3'!BR$6+'Data Input - General'!$F$22))","v":0},{"$f":"IF($C$9=0,\"\",IF(BS$6+'Data Input - General'!$F$22>'Data Input - General'!$F$34,0,'Data Input - Option 3'!BS$6+'Data Input - General'!$F$22))","v":0},{"$f":"IF($C$9=0,\"\",IF(BT$6+'Data Input - General'!$F$22>'Data Input - General'!$F$34,0,'Data Input - Option 3'!BT$6+'Data Input - General'!$F$22))","v":0},{"$f":"IF($C$9=0,\"\",IF(BU$6+'Data Input - General'!$F$22>'Data Input - General'!$F$34,0,'Data Input - Option 3'!BU$6+'Data Input - General'!$F$22))","v":0},{"$f":"IF($C$9=0,\"\",IF(BV$6+'Data Input - General'!$F$22>'Data Input - General'!$F$34,0,'Data Input - Option 3'!BV$6+'Data Input - General'!$F$22))","v":0},{"$f":"IF($C$9=0,\"\",IF(BW$6+'Data Input - General'!$F$22>'Data Input - General'!$F$34,0,'Data Input - Option 3'!BW$6+'Data Input - General'!$F$22))","v":0},{"$f":"IF($C$9=0,\"\",IF(BX$6+'Data Input - General'!$F$22>'Data Input - General'!$F$34,0,'Data Input - Option 3'!BX$6+'Data Input - General'!$F$22))","v":0},{"$f":"IF($C$9=0,\"\",IF(BY$6+'Data Input - General'!$F$22>'Data Input - General'!$F$34,0,'Data Input - Option 3'!BY$6+'Data Input - General'!$F$22))","v":0},{"$f":"IF($C$9=0,\"\",IF(BZ$6+'Data Input - General'!$F$22>'Data Input - General'!$F$34,0,'Data Input - Option 3'!BZ$6+'Data Input - General'!$F$22))","v":0},{"$f":"IF($C$9=0,\"\",IF(CA$6+'Data Input - General'!$F$22>'Data Input - General'!$F$34,0,'Data Input - Option 3'!CA$6+'Data Input - General'!$F$22))","v":0},{"$f":"IF($C$9=0,\"\",IF(CB$6+'Data Input - General'!$F$22>'Data Input - General'!$F$34,0,'Data Input - Option 3'!CB$6+'Data Input - General'!$F$22))","v":0},{"$f":"IF($C$9=0,\"\",IF(CC$6+'Data Input - General'!$F$22>'Data Input - General'!$F$34,0,'Data Input - Option 3'!CC$6+'Data Input - General'!$F$22))","v":0},{"$f":"IF($C$9=0,\"\",IF(CD$6+'Data Input - General'!$F$22>'Data Input - General'!$F$34,0,'Data Input - Option 3'!CD$6+'Data Input - General'!$F$22))","v":0},{"$f":"IF($C$9=0,\"\",IF(CE$6+'Data Input - General'!$F$22>'Data Input - General'!$F$34,0,'Data Input - Option 3'!CE$6+'Data Input - General'!$F$22))","v":0},{"$f":"IF($C$9=0,\"\",IF(CF$6+'Data Input - General'!$F$22>'Data Input - General'!$F$34,0,'Data Input - Option 3'!CF$6+'Data Input - General'!$F$22))","v":0},{"$f":"IF($C$9=0,\"\",IF(CG$6+'Data Input - General'!$F$22>'Data Input - General'!$F$34,0,'Data Input - Option 3'!CG$6+'Data Input - General'!$F$22))","v":0},{"$f":"IF($C$9=0,\"\",IF(CH$6+'Data Input - General'!$F$22>'Data Input - General'!$F$34,0,'Data Input - Option 3'!CH$6+'Data Input - General'!$F$22))","v":0},{"$f":"IF($C$9=0,\"\",IF(CI$6+'Data Input - General'!$F$22>'Data Input - General'!$F$34,0,'Data Input - Option 3'!CI$6+'Data Input - General'!$F$22))","v":0},{"$f":"IF($C$9=0,\"\",IF(CJ$6+'Data Input - General'!$F$22>'Data Input - General'!$F$34,0,'Data Input - Option 3'!CJ$6+'Data Input - General'!$F$22))","v":0},{"$f":"IF($C$9=0,\"\",IF(CK$6+'Data Input - General'!$F$22>'Data Input - General'!$F$34,0,'Data Input - Option 3'!CK$6+'Data Input - General'!$F$22))","v":0},{"$f":"IF($C$9=0,\"\",IF(CL$6+'Data Input - General'!$F$22>'Data Input - General'!$F$34,0,'Data Input - Option 3'!CL$6+'Data Input - General'!$F$22))","v":0},{"$f":"IF($C$9=0,\"\",IF(CM$6+'Data Input - General'!$F$22>'Data Input - General'!$F$34,0,'Data Input - Option 3'!CM$6+'Data Input - General'!$F$22))","v":0},{"$f":"IF($C$9=0,\"\",IF(CN$6+'Data Input - General'!$F$22>'Data Input - General'!$F$34,0,'Data Input - Option 3'!CN$6+'Data Input - General'!$F$22))","v":0},{"$f":"IF($C$9=0,\"\",IF(CO$6+'Data Input - General'!$F$22>'Data Input - General'!$F$34,0,'Data Input - Option 3'!CO$6+'Data Input - General'!$F$22))","v":0},{"$f":"IF($C$9=0,\"\",IF(CP$6+'Data Input - General'!$F$22>'Data Input - General'!$F$34,0,'Data Input - Option 3'!CP$6+'Data Input - General'!$F$22))","v":0},{"$f":"IF($C$9=0,\"\",IF(CQ$6+'Data Input - General'!$F$22>'Data Input - General'!$F$34,0,'Data Input - Option 3'!CQ$6+'Data Input - General'!$F$22))","v":0},{"$f":"IF($C$9=0,\"\",IF(CR$6+'Data Input - General'!$F$22>'Data Input - General'!$F$34,0,'Data Input - Option 3'!CR$6+'Data Input - General'!$F$22))","v":0},{"$f":"IF($C$9=0,\"\",IF(CS$6+'Data Input - General'!$F$22>'Data Input - General'!$F$34,0,'Data Input - Option 3'!CS$6+'Data Input - General'!$F$22))","v":0},{"$f":"IF($C$9=0,\"\",IF(CT$6+'Data Input - General'!$F$22>'Data Input - General'!$F$34,0,'Data Input - Option 3'!CT$6+'Data Input - General'!$F$22))","v":0},{"$f":"IF($C$9=0,\"\",IF(CU$6+'Data Input - General'!$F$22>'Data Input - General'!$F$34,0,'Data Input - Option 3'!CU$6+'Data Input - General'!$F$22))","v":0},{"$f":"IF($C$9=0,\"\",IF(CV$6+'Data Input - General'!$F$22>'Data Input - General'!$F$34,0,'Data Input - Option 3'!CV$6+'Data Input - General'!$F$22))","v":0},{"$f":"IF($C$9=0,\"\",IF(CW$6+'Data Input - General'!$F$22>'Data Input - General'!$F$34,0,'Data Input - Option 3'!CW$6+'Data Input - General'!$F$22))","v":0},{"$f":"IF($C$9=0,\"\",IF(CX$6+'Data Input - General'!$F$22>'Data Input - General'!$F$34,0,'Data Input - Option 3'!CX$6+'Data Input - General'!$F$22))","v":0},{"$f":"IF($C$9=0,\"\",IF(CY$6+'Data Input - General'!$F$22>'Data Input - General'!$F$34,0,'Data Input - Option 3'!CY$6+'Data Input - General'!$F$22))","v":0},{"$f":"IF($C$9=0,\"\",IF(CZ$6+'Data Input - General'!$F$22>'Data Input - General'!$F$34,0,'Data Input - Option 3'!CZ$6+'Data Input - General'!$F$22))","v":0},{"$f":"IF($C$9=0,\"\",IF(DA$6+'Data Input - General'!$F$22>'Data Input - General'!$F$34,0,'Data Input - Option 3'!DA$6+'Data Input - General'!$F$22))","v":0},{"$f":"IF($C$9=0,\"\",IF(DB$6+'Data Input - General'!$F$22>'Data Input - General'!$F$34,0,'Data Input - Option 3'!DB$6+'Data Input - General'!$F$22))","v":0},{"$f":"IF($C$9=0,\"\",IF(DC$6+'Data Input - General'!$F$22>'Data Input - General'!$F$34,0,'Data Input - Option 3'!DC$6+'Data Input - General'!$F$22))","v":0}]
[]
[null,null,{"$f":"IF('Data Input - General'!I24=\"\",\"Nothing Selected - Do not Complete this Section\",'Data Input - General'!I24)","v":"Waste off"},null,"(?)"]
[]
[null,null,"Upfront investment costs",null,"(?)"]
[]
[null,null,null,"Equipment"]
[null,null,7.1,"Primary emission control equipment","£000's",null,null,20,20,20,20,20,20,20]
[null,null,7.2,"Auxiliary equipment","£000's",null,null,450,450,450,450,450,450,450]
[null,null,7.3,"Instrumentation","£000's",null,null,6,6,6,6,6,6,6]
[null,null,7.4,"Modifications to existing equipment","£000's"]
[null,null,7.5,"Major refurbishment","£000's"]
[null,null,null,"Set-up costs"]
[null,null,"7.6","Land","£000's"]
[null,null,"7.7","Site preparation","£000's"]
[null,null,"7.8","Civils","£000's"]
[null,null,"7.9","Materials","£000's"]
[null,null,"7.10","Other (please specify)","£000's"]
[null,null,null,"Other capex"]
[null,null,"7.11","Residual value of existing technology (where replaced)","£000's"]
[null,null,"7.12","Project planning (if not in civils)","£000's"]
[null,null,"7.13","Other (please specify)","£000's"]
[]
[null,null,null,"Total upfront investment costs by year (non-discounted)","£000's","(Auto calculated value)",null,{"$f":"SUM(H14:H29)","v":476},{"$f":"SUM(I14:I29)","v":476},{"$f":"SUM(J14:J29)","v":476},{"$f":"SUM(K14:K29)","v":476},{"$f":"SUM(L14:L29)","v":476},476,476,0,0,0,0,0,0,0,0,0,0,0,0,0,0,0,0,0,0,0,0,0,0,0,0,0,0,0,0,0,0,0,0,0,0,0,0,0,0,0,0,0,0,0,0,0,0,0,0,0,0,0,0,0,0,0,0,0,0,0,0,0,{"$f":"SUM(BX14:BX29)","v":0},0,0,0,0,0,0,0,0,0,0,0,0,0,0,0,0,0,0,0,0,0,0,0,0,0,0,0,0,0,0,0]
[]
[null,null,null,"Total upfront investment costs for all years (non-discounted)",null,"(Auto calculated value)",null,{"$f":"SUM(H30:DC30)","v":3332}]
[]
[null,null,"7.14","Uncertainty range around upfront investment costs","+/-%"]
[]
[null,null,null,"Cost of capital (financing)","(?)"]
[null,null,"7.15","Enter financing costs manually?",null,"No",null,"<(Select from dropdown)"]
[]
[null,null,"7.16","Financing costs - WACC (if entered manually)                       (?)","£000's"]
[]
[null,null,"7.17","Financing costs - Low WACC (if entered manually)","£000's"]
[null,null,"7.18","Financing costs - High WACC (if entered manually)","£000's"]
[]
[null,null,"Operating Costs",null,"(?)"]
[]
[null,null,"7.19","Labour                                                                                           (?)","£000's",null,null,50,50,50,50,50,50,50,50]
[null,null,"7.20","Maintenance","£000's",null,null,200,200,200,200,200,200,200,200]
[null,null,"7.21","test1","£000's"]
[]
[null,null,null,"Total operating and maintenance costs by year (non-discounted)","£000's","(Auto calculated value)",null,{"$f":"SUM(H46:H49)","v":250},{"$f":"SUM(I46:I49)","v":250},250,250,250,250,250,250,0,0,0,0,0,0,0,0,0,0,0,0,0,0,0,0,0,0,0,0,0,0,0,0,0,0,0,0,0,0,0,0,0,0,0,0,0,0,0,0,0,0,0,0,0,0,0,0,0,0,0,0,0,0,0,0,0,{"$f":"SUM(BU46:BU49)","v":0},0,0,0,0,0,0,0,0,0,0,0,0,0,0,0,0,0,0,0,0,0,0,0,0,0,0,0,0,0,0,0,0,0,0]
[]
[null,null,null,"Total operating and maintenance costs for all years (non-discounted)",null,"(Auto calculated value)",null,{"$f":"SUM(H50:DC50)","v":2000}]
[]
[null,null,"7.22","Uncertainty range around operating costs","+/-%",0.2]
[]
[null,null,"Waste output",null,"(?)"]
[]
[null,null,null,"Volume of waste"]
[null,null,"7.23","Non-haz waste, reused","Tonnes"]
[null,null,"7.24","Non-haz waste, recycled","Tonnes"]
[null,null,"7.25","Non-haz waste, otherwise recovered","Tonnes"]
[null,null,"7.26","Non-haz waste, disposed","Tonnes"]
[null,null,"7.27","Haz waste, reused","Tonnes"]
[null,null,"7.28","Haz waste, recycled","Tonnes"]
[null,null,"7.29","Haz waste, otherwise recovered","Tonnes"]
[null,null,"7.30","Haz waste, disposed","Tonnes"]
[null,null,"7.31","Test 2","Tonnes",null,"(?)"]
[null,null,null,"Net cost of waste output"]
[null,null,"7.32","Non-haz waste, reused","£000's"]
[null,null,"7.33","Non-haz waste, recycled","£000's"]
[null,null,"7.34","Non-haz waste, otherwise recovered","£000's"]
[null,null,"7.35","Non-haz waste, disposed","£000's"]
[null,null,"7.36","Haz waste, reused","£000's"]
[null,null,"7.37","Haz waste, recycled","£000's"]
[null,null,"7.38","Haz waste, otherwise recovered","£000's"]
[null,null,"7.39","Haz waste, disposed","£000's"]
[null,null,"7.40","Other (please specify)","£000's"]
[]
[null,null,null,"Total cost of waste output","£000's","(Auto calculated value)",null,{"$f":"SUM(H69:H78)","v":0},{"$f":"SUM(I69:I78)","v":0},{"$f":"SUM(J69:J78)","v":0},{"$f":"SUM(K69:K78)","v":0},{"$f":"SUM(L69:L78)","v":0},0,0,0,0,0,0,0,0,0,0,0,0,0,0,0,0,0,0,0,0,0,0,0,0,0,0,0,0,0,0,0,0,0,0,0,0,0,0,0,0,0,0,0,0,0,0,0,0,0,0,0,0,0,0,0,0,0,0,0,0,0,0,0,{"$f":"SUM(BX69:BX78)","v":0},0,0,0,0,0,0,0,0,0,0,0,0,0,0,0,0,0,0,0,0,0,0,0,0,0,0,0,0,0,0,0]
[]
[null,null,"Energy Consumption"]
[]
[null,null,null,"Quantity of energy consumed"]
[null,null,"7.41","Electricity","kWh",null,null,4000000,4000000,4000000,4000000,4000000,4000000,4000000,4000000]
[null,null,"7.42","Natural Gas","kWh",null,null,0,0,0,0,0,0,0,0]
[null,null,"7.43","Coal","kWh",null,null,152030581.25,152030581.25,152030581.25,152030581.25,152030581.25,152030581.25,152030581.25,152030581.25]
[null,null,"7.44","Gas Oil","litres",null,null,200000,200000,200000,200000,200000,200000,200000,200000]
[null,null,"7.45","Road - Petrol","litres"]
[null,null,"7.46","Road - Diesel","litres"]
[null,null,"7.47",null,"kWh"]
[null,null,null,"Value of energy consumed","(?)"]
[null,null,null,{"$f":"D84","v":"Electricity"},"£000's","(Auto calculated value)",null,{"$f":"IFERROR(H84*INDEX('Energy Prices'!$F$12:$CR$17,MATCH('Data Input - Option 3'!$D92,'Energy Prices'!$C$12:$C$17,0),MATCH('Data Input - Option 3'!H$7,'Energy Prices'!$F$11:$CR$11,0))/100000,\"\")","v":446.04663605012496},{"$f":"IFERROR(I84*INDEX('Energy Prices'!$F$12:$CR$17,MATCH('Data Input - Option 3'!$D92,'Energy Prices'!$C$12:$C$17,0),MATCH('Data Input - Option 3'!I$7,'Energy Prices'!$F$11:$CR$11,0))/100000,\"\")","v":465.69767664411955},{"$f":"IFERROR(J84*INDEX('Energy Prices'!$F$12:$CR$17,MATCH('Data Input - Option 3'!$D92,'Energy Prices'!$C$12:$C$17,0),MATCH('Data Input - Option 3'!J$7,'Energy Prices'!$F$11:$CR$11,0))/100000,\"\")","v":498.45544107559726},{"$f":"IFERROR(K84*INDEX('Energy Prices'!$F$12:$CR$17,MATCH('Data Input - Option 3'!$D92,'Energy Prices'!$C$12:$C$17,0),MATCH('Data Input - Option 3'!K$7,'Energy Prices'!$F$11:$CR$11,0))/100000,\"\")","v":509.2569759971895},{"$f":"IFERROR(L84*INDEX('Energy Prices'!$F$12:$CR$17,MATCH('Data Input - Option 3'!$D92,'Energy Prices'!$C$12:$C$17,0),MATCH('Data Input - Option 3'!L$7,'Energy Prices'!$F$11:$CR$11,0))/100000,\"\")","v":520.1761292448972},{"$f":"IFERROR(M84*INDEX('Energy Prices'!$F$12:$CR$17,MATCH('Data Input - Option 3'!$D92,'Energy Prices'!$C$12:$C$17,0),MATCH('Data Input - Option 3'!M$7,'Energy Prices'!$F$11:$CR$11,0))/100000,\"\")","v":556.39462304896892},{"$f":"IFERROR(N84*INDEX('Energy Prices'!$F$12:$CR$17,MATCH('Data Input - Option 3'!$D92,'Energy Prices'!$C$12:$C$17,0),MATCH('Data Input - Option 3'!N$7,'Energy Prices'!$F$11:$CR$11,0))/100000,\"\")","v":580.46041654324722},{"$f":"IFERROR(O84*INDEX('Energy Prices'!$F$12:$CR$17,MATCH('Data Input - Option 3'!$D92,'Energy Prices'!$C$12:$C$17,0),MATCH('Data Input - Option 3'!O$7,'Energy Prices'!$F$11:$CR$11,0))/100000,\"\")","v":584.29766310550838},{"$f":"IFERROR(P84*INDEX('Energy Prices'!$F$12:$CR$17,MATCH('Data Input - Option 3'!$D92,'Energy Prices'!$C$12:$C$17,0),MATCH('Data Input - Option 3'!P$7,'Energy Prices'!$F$11:$CR$11,0))/100000,\"\")","v":0},{"$f":"IFERROR(Q84*INDEX('Energy Prices'!$F$12:$CR$17,MATCH('Data Input - Option 3'!$D92,'Energy Prices'!$C$12:$C$17,0),MATCH('Data Input - Option 3'!Q$7,'Energy Prices'!$F$11:$CR$11,0))/100000,\"\")","v":0},{"$f":"IFERROR(R84*INDEX('Energy Prices'!$F$12:$CR$17,MATCH('Data Input - Option 3'!$D92,'Energy Prices'!$C$12:$C$17,0),MATCH('Data Input - Option 3'!R$7,'Energy Prices'!$F$11:$CR$11,0))/100000,\"\")","v":0},{"$f":"IFERROR(S84*INDEX('Energy Prices'!$F$12:$CR$17,MATCH('Data Input - Option 3'!$D92,'Energy Prices'!$C$12:$C$17,0),MATCH('Data Input - Option 3'!S$7,'Energy Prices'!$F$11:$CR$11,0))/100000,\"\")","v":0},{"$f":"IFERROR(T84*INDEX('Energy Prices'!$F$12:$CR$17,MATCH('Data Input - Option 3'!$D92,'Energy Prices'!$C$12:$C$17,0),MATCH('Data Input - Option 3'!T$7,'Energy Prices'!$F$11:$CR$11,0))/100000,\"\")","v":0},{"$f":"IFERROR(U84*INDEX('Energy Prices'!$F$12:$CR$17,MATCH('Data Input - Option 3'!$D92,'Energy Prices'!$C$12:$C$17,0),MATCH('Data Input - Option 3'!U$7,'Energy Prices'!$F$11:$CR$11,0))/100000,\"\")","v":0},{"$f":"IFERROR(V84*INDEX('Energy Prices'!$F$12:$CR$17,MATCH('Data Input - Option 3'!$D92,'Energy Prices'!$C$12:$C$17,0),MATCH('Data Input - Option 3'!V$7,'Energy Prices'!$F$11:$CR$11,0))/100000,\"\")","v":0},{"$f":"IFERROR(W84*INDEX('Energy Prices'!$F$12:$CR$17,MATCH('Data Input - Option 3'!$D92,'Energy Prices'!$C$12:$C$17,0),MATCH('Data Input - Option 3'!W$7,'Energy Prices'!$F$11:$CR$11,0))/100000,\"\")","v":0},{"$f":"IFERROR(X84*INDEX('Energy Prices'!$F$12:$CR$17,MATCH('Data Input - Option 3'!$D92,'Energy Prices'!$C$12:$C$17,0),MATCH('Data Input - Option 3'!X$7,'Energy Prices'!$F$11:$CR$11,0))/100000,\"\")","v":0},{"$f":"IFERROR(Y84*INDEX('Energy Prices'!$F$12:$CR$17,MATCH('Data Input - Option 3'!$D92,'Energy Prices'!$C$12:$C$17,0),MATCH('Data Input - Option 3'!Y$7,'Energy Prices'!$F$11:$CR$11,0))/100000,\"\")","v":0},{"$f":"IFERROR(Z84*INDEX('Energy Prices'!$F$12:$CR$17,MATCH('Data Input - Option 3'!$D92,'Energy Prices'!$C$12:$C$17,0),MATCH('Data Input - Option 3'!Z$7,'Energy Prices'!$F$11:$CR$11,0))/100000,\"\")","v":0},{"$f":"IFERROR(AA84*INDEX('Energy Prices'!$F$12:$CR$17,MATCH('Data Input - Option 3'!$D92,'Energy Prices'!$C$12:$C$17,0),MATCH('Data Input - Option 3'!AA$7,'Energy Prices'!$F$11:$CR$11,0))/100000,\"\")","v":0},{"$f":"IFERROR(AB84*INDEX('Energy Prices'!$F$12:$CR$17,MATCH('Data Input - Option 3'!$D92,'Energy Prices'!$C$12:$C$17,0),MATCH('Data Input - Option 3'!AB$7,'Energy Prices'!$F$11:$CR$11,0))/100000,\"\")","v":0},{"$f":"IFERROR(AC84*INDEX('Energy Prices'!$F$12:$CR$17,MATCH('Data Input - Option 3'!$D92,'Energy Prices'!$C$12:$C$17,0),MATCH('Data Input - Option 3'!AC$7,'Energy Prices'!$F$11:$CR$11,0))/100000,\"\")","v":0},{"$f":"IFERROR(AD84*INDEX('Energy Prices'!$F$12:$CR$17,MATCH('Data Input - Option 3'!$D92,'Energy Prices'!$C$12:$C$17,0),MATCH('Data Input - Option 3'!AD$7,'Energy Prices'!$F$11:$CR$11,0))/100000,\"\")","v":0},{"$f":"IFERROR(AE84*INDEX('Energy Prices'!$F$12:$CR$17,MATCH('Data Input - Option 3'!$D92,'Energy Prices'!$C$12:$C$17,0),MATCH('Data Input - Option 3'!AE$7,'Energy Prices'!$F$11:$CR$11,0))/100000,\"\")","v":0},{"$f":"IFERROR(AF84*INDEX('Energy Prices'!$F$12:$CR$17,MATCH('Data Input - Option 3'!$D92,'Energy Prices'!$C$12:$C$17,0),MATCH('Data Input - Option 3'!AF$7,'Energy Prices'!$F$11:$CR$11,0))/100000,\"\")","v":0},{"$f":"IFERROR(AG84*INDEX('Energy Prices'!$F$12:$CR$17,MATCH('Data Input - Option 3'!$D92,'Energy Prices'!$C$12:$C$17,0),MATCH('Data Input - Option 3'!AG$7,'Energy Prices'!$F$11:$CR$11,0))/100000,\"\")","v":0},{"$f":"IFERROR(AH84*INDEX('Energy Prices'!$F$12:$CR$17,MATCH('Data Input - Option 3'!$D92,'Energy Prices'!$C$12:$C$17,0),MATCH('Data Input - Option 3'!AH$7,'Energy Prices'!$F$11:$CR$11,0))/100000,\"\")","v":0},{"$f":"IFERROR(AI84*INDEX('Energy Prices'!$F$12:$CR$17,MATCH('Data Input - Option 3'!$D92,'Energy Prices'!$C$12:$C$17,0),MATCH('Data Input - Option 3'!AI$7,'Energy Prices'!$F$11:$CR$11,0))/100000,\"\")","v":0},{"$f":"IFERROR(AJ84*INDEX('Energy Prices'!$F$12:$CR$17,MATCH('Data Input - Option 3'!$D92,'Energy Prices'!$C$12:$C$17,0),MATCH('Data Input - Option 3'!AJ$7,'Energy Prices'!$F$11:$CR$11,0))/100000,\"\")","v":0},{"$f":"IFERROR(AK84*INDEX('Energy Prices'!$F$12:$CR$17,MATCH('Data Input - Option 3'!$D92,'Energy Prices'!$C$12:$C$17,0),MATCH('Data Input - Option 3'!AK$7,'Energy Prices'!$F$11:$CR$11,0))/100000,\"\")","v":0},{"$f":"IFERROR(AL84*INDEX('Energy Prices'!$F$12:$CR$17,MATCH('Data Input - Option 3'!$D92,'Energy Prices'!$C$12:$C$17,0),MATCH('Data Input - Option 3'!AL$7,'Energy Prices'!$F$11:$CR$11,0))/100000,\"\")","v":0},{"$f":"IFERROR(AM84*INDEX('Energy Prices'!$F$12:$CR$17,MATCH('Data Input - Option 3'!$D92,'Energy Prices'!$C$12:$C$17,0),MATCH('Data Input - Option 3'!AM$7,'Energy Prices'!$F$11:$CR$11,0))/100000,\"\")","v":""},{"$f":"IFERROR(AN84*INDEX('Energy Prices'!$F$12:$CR$17,MATCH('Data Input - Option 3'!$D92,'Energy Prices'!$C$12:$C$17,0),MATCH('Data Input - Option 3'!AN$7,'Energy Prices'!$F$11:$CR$11,0))/100000,\"\")","v":""},{"$f":"IFERROR(AO84*INDEX('Energy Prices'!$F$12:$CR$17,MATCH('Data Input - Option 3'!$D92,'Energy Prices'!$C$12:$C$17,0),MATCH('Data Input - Option 3'!AO$7,'Energy Prices'!$F$11:$CR$11,0))/100000,\"\")","v":""},{"$f":"IFERROR(AP84*INDEX('Energy Prices'!$F$12:$CR$17,MATCH('Data Input - Option 3'!$D92,'Energy Prices'!$C$12:$C$17,0),MATCH('Data Input - Option 3'!AP$7,'Energy Prices'!$F$11:$CR$11,0))/100000,\"\")","v":""},{"$f":"IFERROR(AQ84*INDEX('Energy Prices'!$F$12:$CR$17,MATCH('Data Input - Option 3'!$D92,'Energy Prices'!$C$12:$C$17,0),MATCH('Data Input - Option 3'!AQ$7,'Energy Prices'!$F$11:$CR$11,0))/100000,\"\")","v":""},{"$f":"IFERROR(AR84*INDEX('Energy Prices'!$F$12:$CR$17,MATCH('Data Input - Option 3'!$D92,'Energy Prices'!$C$12:$C$17,0),MATCH('Data Input - Option 3'!AR$7,'Energy Prices'!$F$11:$CR$11,0))/100000,\"\")","v":""},{"$f":"IFERROR(AS84*INDEX('Energy Prices'!$F$12:$CR$17,MATCH('Data Input - Option 3'!$D92,'Energy Prices'!$C$12:$C$17,0),MATCH('Data Input - Option 3'!AS$7,'Energy Prices'!$F$11:$CR$11,0))/100000,\"\")","v":""},{"$f":"IFERROR(AT84*INDEX('Energy Prices'!$F$12:$CR$17,MATCH('Data Input - Option 3'!$D92,'Energy Prices'!$C$12:$C$17,0),MATCH('Data Input - Option 3'!AT$7,'Energy Prices'!$F$11:$CR$11,0))/100000,\"\")","v":""},{"$f":"IFERROR(AU84*INDEX('Energy Prices'!$F$12:$CR$17,MATCH('Data Input - Option 3'!$D92,'Energy Prices'!$C$12:$C$17,0),MATCH('Data Input - Option 3'!AU$7,'Energy Prices'!$F$11:$CR$11,0))/100000,\"\")","v":""},{"$f":"IFERROR(AV84*INDEX('Energy Prices'!$F$12:$CR$17,MATCH('Data Input - Option 3'!$D92,'Energy Prices'!$C$12:$C$17,0),MATCH('Data Input - Option 3'!AV$7,'Energy Prices'!$F$11:$CR$11,0))/100000,\"\")","v":""},{"$f":"IFERROR(AW84*INDEX('Energy Prices'!$F$12:$CR$17,MATCH('Data Input - Option 3'!$D92,'Energy Prices'!$C$12:$C$17,0),MATCH('Data Input - Option 3'!AW$7,'Energy Prices'!$F$11:$CR$11,0))/100000,\"\")","v":""},{"$f":"IFERROR(AX84*INDEX('Energy Prices'!$F$12:$CR$17,MATCH('Data Input - Option 3'!$D92,'Energy Prices'!$C$12:$C$17,0),MATCH('Data Input - Option 3'!AX$7,'Energy Prices'!$F$11:$CR$11,0))/100000,\"\")","v":""},{"$f":"IFERROR(AY84*INDEX('Energy Prices'!$F$12:$CR$17,MATCH('Data Input - Option 3'!$D92,'Energy Prices'!$C$12:$C$17,0),MATCH('Data Input - Option 3'!AY$7,'Energy Prices'!$F$11:$CR$11,0))/100000,\"\")","v":""},{"$f":"IFERROR(AZ84*INDEX('Energy Prices'!$F$12:$CR$17,MATCH('Data Input - Option 3'!$D92,'Energy Prices'!$C$12:$C$17,0),MATCH('Data Input - Option 3'!AZ$7,'Energy Prices'!$F$11:$CR$11,0))/100000,\"\")","v":""},{"$f":"IFERROR(BA84*INDEX('Energy Prices'!$F$12:$CR$17,MATCH('Data Input - Option 3'!$D92,'Energy Prices'!$C$12:$C$17,0),MATCH('Data Input - Option 3'!BA$7,'Energy Prices'!$F$11:$CR$11,0))/100000,\"\")","v":""},{"$f":"IFERROR(BB84*INDEX('Energy Prices'!$F$12:$CR$17,MATCH('Data Input - Option 3'!$D92,'Energy Prices'!$C$12:$C$17,0),MATCH('Data Input - Option 3'!BB$7,'Energy Prices'!$F$11:$CR$11,0))/100000,\"\")","v":""},{"$f":"IFERROR(BC84*INDEX('Energy Prices'!$F$12:$CR$17,MATCH('Data Input - Option 3'!$D92,'Energy Prices'!$C$12:$C$17,0),MATCH('Data Input - Option 3'!BC$7,'Energy Prices'!$F$11:$CR$11,0))/100000,\"\")","v":""},{"$f":"IFERROR(BD84*INDEX('Energy Prices'!$F$12:$CR$17,MATCH('Data Input - Option 3'!$D92,'Energy Prices'!$C$12:$C$17,0),MATCH('Data Input - Option 3'!BD$7,'Energy Prices'!$F$11:$CR$11,0))/100000,\"\")","v":""},{"$f":"IFERROR(BE84*INDEX('Energy Prices'!$F$12:$CR$17,MATCH('Data Input - Option 3'!$D92,'Energy Prices'!$C$12:$C$17,0),MATCH('Data Input - Option 3'!BE$7,'Energy Prices'!$F$11:$CR$11,0))/100000,\"\")","v":""},{"$f":"IFERROR(BF84*INDEX('Energy Prices'!$F$12:$CR$17,MATCH('Data Input - Option 3'!$D92,'Energy Prices'!$C$12:$C$17,0),MATCH('Data Input - Option 3'!BF$7,'Energy Prices'!$F$11:$CR$11,0))/100000,\"\")","v":""},{"$f":"IFERROR(BG84*INDEX('Energy Prices'!$F$12:$CR$17,MATCH('Data Input - Option 3'!$D92,'Energy Prices'!$C$12:$C$17,0),MATCH('Data Input - Option 3'!BG$7,'Energy Prices'!$F$11:$CR$11,0))/100000,\"\")","v":""},{"$f":"IFERROR(BH84*INDEX('Energy Prices'!$F$12:$CR$17,MATCH('Data Input - Option 3'!$D92,'Energy Prices'!$C$12:$C$17,0),MATCH('Data Input - Option 3'!BH$7,'Energy Prices'!$F$11:$CR$11,0))/100000,\"\")","v":""},{"$f":"IFERROR(BI84*INDEX('Energy Prices'!$F$12:$CR$17,MATCH('Data Input - Option 3'!$D92,'Energy Prices'!$C$12:$C$17,0),MATCH('Data Input - Option 3'!BI$7,'Energy Prices'!$F$11:$CR$11,0))/100000,\"\")","v":""},{"$f":"IFERROR(BJ84*INDEX('Energy Prices'!$F$12:$CR$17,MATCH('Data Input - Option 3'!$D92,'Energy Prices'!$C$12:$C$17,0),MATCH('Data Input - Option 3'!BJ$7,'Energy Prices'!$F$11:$CR$11,0))/100000,\"\")","v":""},{"$f":"IFERROR(BK84*INDEX('Energy Prices'!$F$12:$CR$17,MATCH('Data Input - Option 3'!$D92,'Energy Prices'!$C$12:$C$17,0),MATCH('Data Input - Option 3'!BK$7,'Energy Prices'!$F$11:$CR$11,0))/100000,\"\")","v":""},{"$f":"IFERROR(BL84*INDEX('Energy Prices'!$F$12:$CR$17,MATCH('Data Input - Option 3'!$D92,'Energy Prices'!$C$12:$C$17,0),MATCH('Data Input - Option 3'!BL$7,'Energy Prices'!$F$11:$CR$11,0))/100000,\"\")","v":""},{"$f":"IFERROR(BM84*INDEX('Energy Prices'!$F$12:$CR$17,MATCH('Data Input - Option 3'!$D92,'Energy Prices'!$C$12:$C$17,0),MATCH('Data Input - Option 3'!BM$7,'Energy Prices'!$F$11:$CR$11,0))/100000,\"\")","v":""},{"$f":"IFERROR(BN84*INDEX('Energy Prices'!$F$12:$CR$17,MATCH('Data Input - Option 3'!$D92,'Energy Prices'!$C$12:$C$17,0),MATCH('Data Input - Option 3'!BN$7,'Energy Prices'!$F$11:$CR$11,0))/100000,\"\")","v":""},{"$f":"IFERROR(BO84*INDEX('Energy Prices'!$F$12:$CR$17,MATCH('Data Input - Option 3'!$D92,'Energy Prices'!$C$12:$C$17,0),MATCH('Data Input - Option 3'!BO$7,'Energy Prices'!$F$11:$CR$11,0))/100000,\"\")","v":""},{"$f":"IFERROR(BP84*INDEX('Energy Prices'!$F$12:$CR$17,MATCH('Data Input - Option 3'!$D92,'Energy Prices'!$C$12:$C$17,0),MATCH('Data Input - Option 3'!BP$7,'Energy Prices'!$F$11:$CR$11,0))/100000,\"\")","v":""},{"$f":"IFERROR(BQ84*INDEX('Energy Prices'!$F$12:$CR$17,MATCH('Data Input - Option 3'!$D92,'Energy Prices'!$C$12:$C$17,0),MATCH('Data Input - Option 3'!BQ$7,'Energy Prices'!$F$11:$CR$11,0))/100000,\"\")","v":""},{"$f":"IFERROR(BR84*INDEX('Energy Prices'!$F$12:$CR$17,MATCH('Data Input - Option 3'!$D92,'Energy Prices'!$C$12:$C$17,0),MATCH('Data Input - Option 3'!BR$7,'Energy Prices'!$F$11:$CR$11,0))/100000,\"\")","v":""},{"$f":"IFERROR(BS84*INDEX('Energy Prices'!$F$12:$CR$17,MATCH('Data Input - Option 3'!$D92,'Energy Prices'!$C$12:$C$17,0),MATCH('Data Input - Option 3'!BS$7,'Energy Prices'!$F$11:$CR$11,0))/100000,\"\")","v":""},{"$f":"IFERROR(BT84*INDEX('Energy Prices'!$F$12:$CR$17,MATCH('Data Input - Option 3'!$D92,'Energy Prices'!$C$12:$C$17,0),MATCH('Data Input - Option 3'!BT$7,'Energy Prices'!$F$11:$CR$11,0))/100000,\"\")","v":""},{"$f":"IFERROR(BU84*INDEX('Energy Prices'!$F$12:$CR$17,MATCH('Data Input - Option 3'!$D92,'Energy Prices'!$C$12:$C$17,0),MATCH('Data Input - Option 3'!BU$7,'Energy Prices'!$F$11:$CR$11,0))/100000,\"\")","v":""},{"$f":"IFERROR(BV84*INDEX('Energy Prices'!$F$12:$CR$17,MATCH('Data Input - Option 3'!$D92,'Energy Prices'!$C$12:$C$17,0),MATCH('Data Input - Option 3'!BV$7,'Energy Prices'!$F$11:$CR$11,0))/100000,\"\")","v":""},{"$f":"IFERROR(BW84*INDEX('Energy Prices'!$F$12:$CR$17,MATCH('Data Input - Option 3'!$D92,'Energy Prices'!$C$12:$C$17,0),MATCH('Data Input - Option 3'!BW$7,'Energy Prices'!$F$11:$CR$11,0))/100000,\"\")","v":""},{"$f":"IFERROR(BX84*INDEX('Energy Prices'!$F$12:$CR$17,MATCH('Data Input - Option 3'!$D92,'Energy Prices'!$C$12:$C$17,0),MATCH('Data Input - Option 3'!BX$7,'Energy Prices'!$F$11:$CR$11,0))/100000,\"\")","v":""},{"$f":"IFERROR(BY84*INDEX('Energy Prices'!$F$12:$CR$17,MATCH('Data Input - Option 3'!$D92,'Energy Prices'!$C$12:$C$17,0),MATCH('Data Input - Option 3'!BY$7,'Energy Prices'!$F$11:$CR$11,0))/100000,\"\")","v":""},{"$f":"IFERROR(BZ84*INDEX('Energy Prices'!$F$12:$CR$17,MATCH('Data Input - Option 3'!$D92,'Energy Prices'!$C$12:$C$17,0),MATCH('Data Input - Option 3'!BZ$7,'Energy Prices'!$F$11:$CR$11,0))/100000,\"\")","v":""},{"$f":"IFERROR(CA84*INDEX('Energy Prices'!$F$12:$CR$17,MATCH('Data Input - Option 3'!$D92,'Energy Prices'!$C$12:$C$17,0),MATCH('Data Input - Option 3'!CA$7,'Energy Prices'!$F$11:$CR$11,0))/100000,\"\")","v":""},{"$f":"IFERROR(CB84*INDEX('Energy Prices'!$F$12:$CR$17,MATCH('Data Input - Option 3'!$D92,'Energy Prices'!$C$12:$C$17,0),MATCH('Data Input - Option 3'!CB$7,'Energy Prices'!$F$11:$CR$11,0))/100000,\"\")","v":""},{"$f":"IFERROR(CC84*INDEX('Energy Prices'!$F$12:$CR$17,MATCH('Data Input - Option 3'!$D92,'Energy Prices'!$C$12:$C$17,0),MATCH('Data Input - Option 3'!CC$7,'Energy Prices'!$F$11:$CR$11,0))/100000,\"\")","v":""},{"$f":"IFERROR(CD84*INDEX('Energy Prices'!$F$12:$CR$17,MATCH('Data Input - Option 3'!$D92,'Energy Prices'!$C$12:$C$17,0),MATCH('Data Input - Option 3'!CD$7,'Energy Prices'!$F$11:$CR$11,0))/100000,\"\")","v":""},{"$f":"IFERROR(CE84*INDEX('Energy Prices'!$F$12:$CR$17,MATCH('Data Input - Option 3'!$D92,'Energy Prices'!$C$12:$C$17,0),MATCH('Data Input - Option 3'!CE$7,'Energy Prices'!$F$11:$CR$11,0))/100000,\"\")","v":""},{"$f":"IFERROR(CF84*INDEX('Energy Prices'!$F$12:$CR$17,MATCH('Data Input - Option 3'!$D92,'Energy Prices'!$C$12:$C$17,0),MATCH('Data Input - Option 3'!CF$7,'Energy Prices'!$F$11:$CR$11,0))/100000,\"\")","v":""},{"$f":"IFERROR(CG84*INDEX('Energy Prices'!$F$12:$CR$17,MATCH('Data Input - Option 3'!$D92,'Energy Prices'!$C$12:$C$17,0),MATCH('Data Input - Option 3'!CG$7,'Energy Prices'!$F$11:$CR$11,0))/100000,\"\")","v":""},{"$f":"IFERROR(CH84*INDEX('Energy Prices'!$F$12:$CR$17,MATCH('Data Input - Option 3'!$D92,'Energy Prices'!$C$12:$C$17,0),MATCH('Data Input - Option 3'!CH$7,'Energy Prices'!$F$11:$CR$11,0))/100000,\"\")","v":""},{"$f":"IFERROR(CI84*INDEX('Energy Prices'!$F$12:$CR$17,MATCH('Data Input - Option 3'!$D92,'Energy Prices'!$C$12:$C$17,0),MATCH('Data Input - Option 3'!CI$7,'Energy Prices'!$F$11:$CR$11,0))/100000,\"\")","v":""},{"$f":"IFERROR(CJ84*INDEX('Energy Prices'!$F$12:$CR$17,MATCH('Data Input - Option 3'!$D92,'Energy Prices'!$C$12:$C$17,0),MATCH('Data Input - Option 3'!CJ$7,'Energy Prices'!$F$11:$CR$11,0))/100000,\"\")","v":""},{"$f":"IFERROR(CK84*INDEX('Energy Prices'!$F$12:$CR$17,MATCH('Data Input - Option 3'!$D92,'Energy Prices'!$C$12:$C$17,0),MATCH('Data Input - Option 3'!CK$7,'Energy Prices'!$F$11:$CR$11,0))/100000,\"\")","v":""},{"$f":"IFERROR(CL84*INDEX('Energy Prices'!$F$12:$CR$17,MATCH('Data Input - Option 3'!$D92,'Energy Prices'!$C$12:$C$17,0),MATCH('Data Input - Option 3'!CL$7,'Energy Prices'!$F$11:$CR$11,0))/100000,\"\")","v":""},{"$f":"IFERROR(CM84*INDEX('Energy Prices'!$F$12:$CR$17,MATCH('Data Input - Option 3'!$D92,'Energy Prices'!$C$12:$C$17,0),MATCH('Data Input - Option 3'!CM$7,'Energy Prices'!$F$11:$CR$11,0))/100000,\"\")","v":""},{"$f":"IFERROR(CN84*INDEX('Energy Prices'!$F$12:$CR$17,MATCH('Data Input - Option 3'!$D92,'Energy Prices'!$C$12:$C$17,0),MATCH('Data Input - Option 3'!CN$7,'Energy Prices'!$F$11:$CR$11,0))/100000,\"\")","v":""},{"$f":"IFERROR(CO84*INDEX('Energy Prices'!$F$12:$CR$17,MATCH('Data Input - Option 3'!$D92,'Energy Prices'!$C$12:$C$17,0),MATCH('Data Input - Option 3'!CO$7,'Energy Prices'!$F$11:$CR$11,0))/100000,\"\")","v":""},{"$f":"IFERROR(CP84*INDEX('Energy Prices'!$F$12:$CR$17,MATCH('Data Input - Option 3'!$D92,'Energy Prices'!$C$12:$C$17,0),MATCH('Data Input - Option 3'!CP$7,'Energy Prices'!$F$11:$CR$11,0))/100000,\"\")","v":""},{"$f":"IFERROR(CQ84*INDEX('Energy Prices'!$F$12:$CR$17,MATCH('Data Input - Option 3'!$D92,'Energy Prices'!$C$12:$C$17,0),MATCH('Data Input - Option 3'!CQ$7,'Energy Prices'!$F$11:$CR$11,0))/100000,\"\")","v":""},{"$f":"IFERROR(CR84*INDEX('Energy Prices'!$F$12:$CR$17,MATCH('Data Input - Option 3'!$D92,'Energy Prices'!$C$12:$C$17,0),MATCH('Data Input - Option 3'!CR$7,'Energy Prices'!$F$11:$CR$11,0))/100000,\"\")","v":""},{"$f":"IFERROR(CS84*INDEX('Energy Prices'!$F$12:$CR$17,MATCH('Data Input - Option 3'!$D92,'Energy Prices'!$C$12:$C$17,0),MATCH('Data Input - Option 3'!CS$7,'Energy Prices'!$F$11:$CR$11,0))/100000,\"\")","v":""},{"$f":"IFERROR(CT84*INDEX('Energy Prices'!$F$12:$CR$17,MATCH('Data Input - Option 3'!$D92,'Energy Prices'!$C$12:$C$17,0),MATCH('Data Input - Option 3'!CT$7,'Energy Prices'!$F$11:$CR$11,0))/100000,\"\")","v":""},{"$f":"IFERROR(CU84*INDEX('Energy Prices'!$F$12:$CR$17,MATCH('Data Input - Option 3'!$D92,'Energy Prices'!$C$12:$C$17,0),MATCH('Data Input - Option 3'!CU$7,'Energy Prices'!$F$11:$CR$11,0))/100000,\"\")","v":""},{"$f":"IFERROR(CV84*INDEX('Energy Prices'!$F$12:$CR$17,MATCH('Data Input - Option 3'!$D92,'Energy Prices'!$C$12:$C$17,0),MATCH('Data Input - Option 3'!CV$7,'Energy Prices'!$F$11:$CR$11,0))/100000,\"\")","v":""},{"$f":"IFERROR(CW84*INDEX('Energy Prices'!$F$12:$CR$17,MATCH('Data Input - Option 3'!$D92,'Energy Prices'!$C$12:$C$17,0),MATCH('Data Input - Option 3'!CW$7,'Energy Prices'!$F$11:$CR$11,0))/100000,\"\")","v":""},{"$f":"IFERROR(CX84*INDEX('Energy Prices'!$F$12:$CR$17,MATCH('Data Input - Option 3'!$D92,'Energy Prices'!$C$12:$C$17,0),MATCH('Data Input - Option 3'!CX$7,'Energy Prices'!$F$11:$CR$11,0))/100000,\"\")","v":""},{"$f":"IFERROR(CY84*INDEX('Energy Prices'!$F$12:$CR$17,MATCH('Data Input - Option 3'!$D92,'Energy Prices'!$C$12:$C$17,0),MATCH('Data Input - Option 3'!CY$7,'Energy Prices'!$F$11:$CR$11,0))/100000,\"\")","v":""},{"$f":"IFERROR(CZ84*INDEX('Energy Prices'!$F$12:$CR$17,MATCH('Data Input - Option 3'!$D92,'Energy Prices'!$C$12:$C$17,0),MATCH('Data Input - Option 3'!CZ$7,'Energy Prices'!$F$11:$CR$11,0))/100000,\"\")","v":""},{"$f":"IFERROR(DA84*INDEX('Energy Prices'!$F$12:$CR$17,MATCH('Data Input - Option 3'!$D92,'Energy Prices'!$C$12:$C$17,0),MATCH('Data Input - Option 3'!DA$7,'Energy Prices'!$F$11:$CR$11,0))/100000,\"\")","v":""},{"$f":"IFERROR(DB84*INDEX('Energy Prices'!$F$12:$CR$17,MATCH('Data Input - Option 3'!$D92,'Energy Prices'!$C$12:$C$17,0),MATCH('Data Input - Option 3'!DB$7,'Energy Prices'!$F$11:$CR$11,0))/100000,\"\")","v":""},{"$f":"IFERROR(DC84*INDEX('Energy Prices'!$F$12:$CR$17,MATCH('Data Input - Option 3'!$D92,'Energy Prices'!$C$12:$C$17,0),MATCH('Data Input - Option 3'!DC$7,'Energy Prices'!$F$11:$CR$11,0))/100000,\"\")","v":""}]
[null,null,null,{"$f":"D85","v":"Natural Gas"},"£000's","(Auto calculated value)",null,{"$f":"IFERROR(H85*INDEX('Energy Prices'!$F$12:$CR$17,MATCH('Data Input - Option 3'!$D93,'Energy Prices'!$C$12:$C$17,0),MATCH('Data Input - Option 3'!H$7,'Energy Prices'!$F$11:$CR$11,0))/100000,\"\")","v":0},{"$f":"IFERROR(I85*INDEX('Energy Prices'!$F$12:$CR$17,MATCH('Data Input - Option 3'!$D93,'Energy Prices'!$C$12:$C$17,0),MATCH('Data Input - Option 3'!I$7,'Energy Prices'!$F$11:$CR$11,0))/100000,\"\")","v":0},{"$f":"IFERROR(J85*INDEX('Energy Prices'!$F$12:$CR$17,MATCH('Data Input - Option 3'!$D93,'Energy Prices'!$C$12:$C$17,0),MATCH('Data Input - Option 3'!J$7,'Energy Prices'!$F$11:$CR$11,0))/100000,\"\")","v":0},{"$f":"IFERROR(K85*INDEX('Energy Prices'!$F$12:$CR$17,MATCH('Data Input - Option 3'!$D93,'Energy Prices'!$C$12:$C$17,0),MATCH('Data Input - Option 3'!K$7,'Energy Prices'!$F$11:$CR$11,0))/100000,\"\")","v":0},{"$f":"IFERROR(L85*INDEX('Energy Prices'!$F$12:$CR$17,MATCH('Data Input - Option 3'!$D93,'Energy Prices'!$C$12:$C$17,0),MATCH('Data Input - Option 3'!L$7,'Energy Prices'!$F$11:$CR$11,0))/100000,\"\")","v":0},{"$f":"IFERROR(M85*INDEX('Energy Prices'!$F$12:$CR$17,MATCH('Data Input - Option 3'!$D93,'Energy Prices'!$C$12:$C$17,0),MATCH('Data Input - Option 3'!M$7,'Energy Prices'!$F$11:$CR$11,0))/100000,\"\")","v":0},{"$f":"IFERROR(N85*INDEX('Energy Prices'!$F$12:$CR$17,MATCH('Data Input - Option 3'!$D93,'Energy Prices'!$C$12:$C$17,0),MATCH('Data Input - Option 3'!N$7,'Energy Prices'!$F$11:$CR$11,0))/100000,\"\")","v":0},{"$f":"IFERROR(O85*INDEX('Energy Prices'!$F$12:$CR$17,MATCH('Data Input - Option 3'!$D93,'Energy Prices'!$C$12:$C$17,0),MATCH('Data Input - Option 3'!O$7,'Energy Prices'!$F$11:$CR$11,0))/100000,\"\")","v":0},{"$f":"IFERROR(P85*INDEX('Energy Prices'!$F$12:$CR$17,MATCH('Data Input - Option 3'!$D93,'Energy Prices'!$C$12:$C$17,0),MATCH('Data Input - Option 3'!P$7,'Energy Prices'!$F$11:$CR$11,0))/100000,\"\")","v":0},{"$f":"IFERROR(Q85*INDEX('Energy Prices'!$F$12:$CR$17,MATCH('Data Input - Option 3'!$D93,'Energy Prices'!$C$12:$C$17,0),MATCH('Data Input - Option 3'!Q$7,'Energy Prices'!$F$11:$CR$11,0))/100000,\"\")","v":0},{"$f":"IFERROR(R85*INDEX('Energy Prices'!$F$12:$CR$17,MATCH('Data Input - Option 3'!$D93,'Energy Prices'!$C$12:$C$17,0),MATCH('Data Input - Option 3'!R$7,'Energy Prices'!$F$11:$CR$11,0))/100000,\"\")","v":0},{"$f":"IFERROR(S85*INDEX('Energy Prices'!$F$12:$CR$17,MATCH('Data Input - Option 3'!$D93,'Energy Prices'!$C$12:$C$17,0),MATCH('Data Input - Option 3'!S$7,'Energy Prices'!$F$11:$CR$11,0))/100000,\"\")","v":0},{"$f":"IFERROR(T85*INDEX('Energy Prices'!$F$12:$CR$17,MATCH('Data Input - Option 3'!$D93,'Energy Prices'!$C$12:$C$17,0),MATCH('Data Input - Option 3'!T$7,'Energy Prices'!$F$11:$CR$11,0))/100000,\"\")","v":0},{"$f":"IFERROR(U85*INDEX('Energy Prices'!$F$12:$CR$17,MATCH('Data Input - Option 3'!$D93,'Energy Prices'!$C$12:$C$17,0),MATCH('Data Input - Option 3'!U$7,'Energy Prices'!$F$11:$CR$11,0))/100000,\"\")","v":0},{"$f":"IFERROR(V85*INDEX('Energy Prices'!$F$12:$CR$17,MATCH('Data Input - Option 3'!$D93,'Energy Prices'!$C$12:$C$17,0),MATCH('Data Input - Option 3'!V$7,'Energy Prices'!$F$11:$CR$11,0))/100000,\"\")","v":0},{"$f":"IFERROR(W85*INDEX('Energy Prices'!$F$12:$CR$17,MATCH('Data Input - Option 3'!$D93,'Energy Prices'!$C$12:$C$17,0),MATCH('Data Input - Option 3'!W$7,'Energy Prices'!$F$11:$CR$11,0))/100000,\"\")","v":0},{"$f":"IFERROR(X85*INDEX('Energy Prices'!$F$12:$CR$17,MATCH('Data Input - Option 3'!$D93,'Energy Prices'!$C$12:$C$17,0),MATCH('Data Input - Option 3'!X$7,'Energy Prices'!$F$11:$CR$11,0))/100000,\"\")","v":0},{"$f":"IFERROR(Y85*INDEX('Energy Prices'!$F$12:$CR$17,MATCH('Data Input - Option 3'!$D93,'Energy Prices'!$C$12:$C$17,0),MATCH('Data Input - Option 3'!Y$7,'Energy Prices'!$F$11:$CR$11,0))/100000,\"\")","v":0},{"$f":"IFERROR(Z85*INDEX('Energy Prices'!$F$12:$CR$17,MATCH('Data Input - Option 3'!$D93,'Energy Prices'!$C$12:$C$17,0),MATCH('Data Input - Option 3'!Z$7,'Energy Prices'!$F$11:$CR$11,0))/100000,\"\")","v":0},{"$f":"IFERROR(AA85*INDEX('Energy Prices'!$F$12:$CR$17,MATCH('Data Input - Option 3'!$D93,'Energy Prices'!$C$12:$C$17,0),MATCH('Data Input - Option 3'!AA$7,'Energy Prices'!$F$11:$CR$11,0))/100000,\"\")","v":0},{"$f":"IFERROR(AB85*INDEX('Energy Prices'!$F$12:$CR$17,MATCH('Data Input - Option 3'!$D93,'Energy Prices'!$C$12:$C$17,0),MATCH('Data Input - Option 3'!AB$7,'Energy Prices'!$F$11:$CR$11,0))/100000,\"\")","v":0},{"$f":"IFERROR(AC85*INDEX('Energy Prices'!$F$12:$CR$17,MATCH('Data Input - Option 3'!$D93,'Energy Prices'!$C$12:$C$17,0),MATCH('Data Input - Option 3'!AC$7,'Energy Prices'!$F$11:$CR$11,0))/100000,\"\")","v":0},{"$f":"IFERROR(AD85*INDEX('Energy Prices'!$F$12:$CR$17,MATCH('Data Input - Option 3'!$D93,'Energy Prices'!$C$12:$C$17,0),MATCH('Data Input - Option 3'!AD$7,'Energy Prices'!$F$11:$CR$11,0))/100000,\"\")","v":0},{"$f":"IFERROR(AE85*INDEX('Energy Prices'!$F$12:$CR$17,MATCH('Data Input - Option 3'!$D93,'Energy Prices'!$C$12:$C$17,0),MATCH('Data Input - Option 3'!AE$7,'Energy Prices'!$F$11:$CR$11,0))/100000,\"\")","v":0},{"$f":"IFERROR(AF85*INDEX('Energy Prices'!$F$12:$CR$17,MATCH('Data Input - Option 3'!$D93,'Energy Prices'!$C$12:$C$17,0),MATCH('Data Input - Option 3'!AF$7,'Energy Prices'!$F$11:$CR$11,0))/100000,\"\")","v":0},{"$f":"IFERROR(AG85*INDEX('Energy Prices'!$F$12:$CR$17,MATCH('Data Input - Option 3'!$D93,'Energy Prices'!$C$12:$C$17,0),MATCH('Data Input - Option 3'!AG$7,'Energy Prices'!$F$11:$CR$11,0))/100000,\"\")","v":0},{"$f":"IFERROR(AH85*INDEX('Energy Prices'!$F$12:$CR$17,MATCH('Data Input - Option 3'!$D93,'Energy Prices'!$C$12:$C$17,0),MATCH('Data Input - Option 3'!AH$7,'Energy Prices'!$F$11:$CR$11,0))/100000,\"\")","v":0},{"$f":"IFERROR(AI85*INDEX('Energy Prices'!$F$12:$CR$17,MATCH('Data Input - Option 3'!$D93,'Energy Prices'!$C$12:$C$17,0),MATCH('Data Input - Option 3'!AI$7,'Energy Prices'!$F$11:$CR$11,0))/100000,\"\")","v":0},{"$f":"IFERROR(AJ85*INDEX('Energy Prices'!$F$12:$CR$17,MATCH('Data Input - Option 3'!$D93,'Energy Prices'!$C$12:$C$17,0),MATCH('Data Input - Option 3'!AJ$7,'Energy Prices'!$F$11:$CR$11,0))/100000,\"\")","v":0},{"$f":"IFERROR(AK85*INDEX('Energy Prices'!$F$12:$CR$17,MATCH('Data Input - Option 3'!$D93,'Energy Prices'!$C$12:$C$17,0),MATCH('Data Input - Option 3'!AK$7,'Energy Prices'!$F$11:$CR$11,0))/100000,\"\")","v":0},{"$f":"IFERROR(AL85*INDEX('Energy Prices'!$F$12:$CR$17,MATCH('Data Input - Option 3'!$D93,'Energy Prices'!$C$12:$C$17,0),MATCH('Data Input - Option 3'!AL$7,'Energy Prices'!$F$11:$CR$11,0))/100000,\"\")","v":0},{"$f":"IFERROR(AM85*INDEX('Energy Prices'!$F$12:$CR$17,MATCH('Data Input - Option 3'!$D93,'Energy Prices'!$C$12:$C$17,0),MATCH('Data Input - Option 3'!AM$7,'Energy Prices'!$F$11:$CR$11,0))/100000,\"\")","v":""},{"$f":"IFERROR(AN85*INDEX('Energy Prices'!$F$12:$CR$17,MATCH('Data Input - Option 3'!$D93,'Energy Prices'!$C$12:$C$17,0),MATCH('Data Input - Option 3'!AN$7,'Energy Prices'!$F$11:$CR$11,0))/100000,\"\")","v":""},{"$f":"IFERROR(AO85*INDEX('Energy Prices'!$F$12:$CR$17,MATCH('Data Input - Option 3'!$D93,'Energy Prices'!$C$12:$C$17,0),MATCH('Data Input - Option 3'!AO$7,'Energy Prices'!$F$11:$CR$11,0))/100000,\"\")","v":""},{"$f":"IFERROR(AP85*INDEX('Energy Prices'!$F$12:$CR$17,MATCH('Data Input - Option 3'!$D93,'Energy Prices'!$C$12:$C$17,0),MATCH('Data Input - Option 3'!AP$7,'Energy Prices'!$F$11:$CR$11,0))/100000,\"\")","v":""},{"$f":"IFERROR(AQ85*INDEX('Energy Prices'!$F$12:$CR$17,MATCH('Data Input - Option 3'!$D93,'Energy Prices'!$C$12:$C$17,0),MATCH('Data Input - Option 3'!AQ$7,'Energy Prices'!$F$11:$CR$11,0))/100000,\"\")","v":""},{"$f":"IFERROR(AR85*INDEX('Energy Prices'!$F$12:$CR$17,MATCH('Data Input - Option 3'!$D93,'Energy Prices'!$C$12:$C$17,0),MATCH('Data Input - Option 3'!AR$7,'Energy Prices'!$F$11:$CR$11,0))/100000,\"\")","v":""},{"$f":"IFERROR(AS85*INDEX('Energy Prices'!$F$12:$CR$17,MATCH('Data Input - Option 3'!$D93,'Energy Prices'!$C$12:$C$17,0),MATCH('Data Input - Option 3'!AS$7,'Energy Prices'!$F$11:$CR$11,0))/100000,\"\")","v":""},{"$f":"IFERROR(AT85*INDEX('Energy Prices'!$F$12:$CR$17,MATCH('Data Input - Option 3'!$D93,'Energy Prices'!$C$12:$C$17,0),MATCH('Data Input - Option 3'!AT$7,'Energy Prices'!$F$11:$CR$11,0))/100000,\"\")","v":""},{"$f":"IFERROR(AU85*INDEX('Energy Prices'!$F$12:$CR$17,MATCH('Data Input - Option 3'!$D93,'Energy Prices'!$C$12:$C$17,0),MATCH('Data Input - Option 3'!AU$7,'Energy Prices'!$F$11:$CR$11,0))/100000,\"\")","v":""},{"$f":"IFERROR(AV85*INDEX('Energy Prices'!$F$12:$CR$17,MATCH('Data Input - Option 3'!$D93,'Energy Prices'!$C$12:$C$17,0),MATCH('Data Input - Option 3'!AV$7,'Energy Prices'!$F$11:$CR$11,0))/100000,\"\")","v":""},{"$f":"IFERROR(AW85*INDEX('Energy Prices'!$F$12:$CR$17,MATCH('Data Input - Option 3'!$D93,'Energy Prices'!$C$12:$C$17,0),MATCH('Data Input - Option 3'!AW$7,'Energy Prices'!$F$11:$CR$11,0))/100000,\"\")","v":""},{"$f":"IFERROR(AX85*INDEX('Energy Prices'!$F$12:$CR$17,MATCH('Data Input - Option 3'!$D93,'Energy Prices'!$C$12:$C$17,0),MATCH('Data Input - Option 3'!AX$7,'Energy Prices'!$F$11:$CR$11,0))/100000,\"\")","v":""},{"$f":"IFERROR(AY85*INDEX('Energy Prices'!$F$12:$CR$17,MATCH('Data Input - Option 3'!$D93,'Energy Prices'!$C$12:$C$17,0),MATCH('Data Input - Option 3'!AY$7,'Energy Prices'!$F$11:$CR$11,0))/100000,\"\")","v":""},{"$f":"IFERROR(AZ85*INDEX('Energy Prices'!$F$12:$CR$17,MATCH('Data Input - Option 3'!$D93,'Energy Prices'!$C$12:$C$17,0),MATCH('Data Input - Option 3'!AZ$7,'Energy Prices'!$F$11:$CR$11,0))/100000,\"\")","v":""},{"$f":"IFERROR(BA85*INDEX('Energy Prices'!$F$12:$CR$17,MATCH('Data Input - Option 3'!$D93,'Energy Prices'!$C$12:$C$17,0),MATCH('Data Input - Option 3'!BA$7,'Energy Prices'!$F$11:$CR$11,0))/100000,\"\")","v":""},{"$f":"IFERROR(BB85*INDEX('Energy Prices'!$F$12:$CR$17,MATCH('Data Input - Option 3'!$D93,'Energy Prices'!$C$12:$C$17,0),MATCH('Data Input - Option 3'!BB$7,'Energy Prices'!$F$11:$CR$11,0))/100000,\"\")","v":""},{"$f":"IFERROR(BC85*INDEX('Energy Prices'!$F$12:$CR$17,MATCH('Data Input - Option 3'!$D93,'Energy Prices'!$C$12:$C$17,0),MATCH('Data Input - Option 3'!BC$7,'Energy Prices'!$F$11:$CR$11,0))/100000,\"\")","v":""},{"$f":"IFERROR(BD85*INDEX('Energy Prices'!$F$12:$CR$17,MATCH('Data Input - Option 3'!$D93,'Energy Prices'!$C$12:$C$17,0),MATCH('Data Input - Option 3'!BD$7,'Energy Prices'!$F$11:$CR$11,0))/100000,\"\")","v":""},{"$f":"IFERROR(BE85*INDEX('Energy Prices'!$F$12:$CR$17,MATCH('Data Input - Option 3'!$D93,'Energy Prices'!$C$12:$C$17,0),MATCH('Data Input - Option 3'!BE$7,'Energy Prices'!$F$11:$CR$11,0))/100000,\"\")","v":""},{"$f":"IFERROR(BF85*INDEX('Energy Prices'!$F$12:$CR$17,MATCH('Data Input - Option 3'!$D93,'Energy Prices'!$C$12:$C$17,0),MATCH('Data Input - Option 3'!BF$7,'Energy Prices'!$F$11:$CR$11,0))/100000,\"\")","v":""},{"$f":"IFERROR(BG85*INDEX('Energy Prices'!$F$12:$CR$17,MATCH('Data Input - Option 3'!$D93,'Energy Prices'!$C$12:$C$17,0),MATCH('Data Input - Option 3'!BG$7,'Energy Prices'!$F$11:$CR$11,0))/100000,\"\")","v":""},{"$f":"IFERROR(BH85*INDEX('Energy Prices'!$F$12:$CR$17,MATCH('Data Input - Option 3'!$D93,'Energy Prices'!$C$12:$C$17,0),MATCH('Data Input - Option 3'!BH$7,'Energy Prices'!$F$11:$CR$11,0))/100000,\"\")","v":""},{"$f":"IFERROR(BI85*INDEX('Energy Prices'!$F$12:$CR$17,MATCH('Data Input - Option 3'!$D93,'Energy Prices'!$C$12:$C$17,0),MATCH('Data Input - Option 3'!BI$7,'Energy Prices'!$F$11:$CR$11,0))/100000,\"\")","v":""},{"$f":"IFERROR(BJ85*INDEX('Energy Prices'!$F$12:$CR$17,MATCH('Data Input - Option 3'!$D93,'Energy Prices'!$C$12:$C$17,0),MATCH('Data Input - Option 3'!BJ$7,'Energy Prices'!$F$11:$CR$11,0))/100000,\"\")","v":""},{"$f":"IFERROR(BK85*INDEX('Energy Prices'!$F$12:$CR$17,MATCH('Data Input - Option 3'!$D93,'Energy Prices'!$C$12:$C$17,0),MATCH('Data Input - Option 3'!BK$7,'Energy Prices'!$F$11:$CR$11,0))/100000,\"\")","v":""},{"$f":"IFERROR(BL85*INDEX('Energy Prices'!$F$12:$CR$17,MATCH('Data Input - Option 3'!$D93,'Energy Prices'!$C$12:$C$17,0),MATCH('Data Input - Option 3'!BL$7,'Energy Prices'!$F$11:$CR$11,0))/100000,\"\")","v":""},{"$f":"IFERROR(BM85*INDEX('Energy Prices'!$F$12:$CR$17,MATCH('Data Input - Option 3'!$D93,'Energy Prices'!$C$12:$C$17,0),MATCH('Data Input - Option 3'!BM$7,'Energy Prices'!$F$11:$CR$11,0))/100000,\"\")","v":""},{"$f":"IFERROR(BN85*INDEX('Energy Prices'!$F$12:$CR$17,MATCH('Data Input - Option 3'!$D93,'Energy Prices'!$C$12:$C$17,0),MATCH('Data Input - Option 3'!BN$7,'Energy Prices'!$F$11:$CR$11,0))/100000,\"\")","v":""},{"$f":"IFERROR(BO85*INDEX('Energy Prices'!$F$12:$CR$17,MATCH('Data Input - Option 3'!$D93,'Energy Prices'!$C$12:$C$17,0),MATCH('Data Input - Option 3'!BO$7,'Energy Prices'!$F$11:$CR$11,0))/100000,\"\")","v":""},{"$f":"IFERROR(BP85*INDEX('Energy Prices'!$F$12:$CR$17,MATCH('Data Input - Option 3'!$D93,'Energy Prices'!$C$12:$C$17,0),MATCH('Data Input - Option 3'!BP$7,'Energy Prices'!$F$11:$CR$11,0))/100000,\"\")","v":""},{"$f":"IFERROR(BQ85*INDEX('Energy Prices'!$F$12:$CR$17,MATCH('Data Input - Option 3'!$D93,'Energy Prices'!$C$12:$C$17,0),MATCH('Data Input - Option 3'!BQ$7,'Energy Prices'!$F$11:$CR$11,0))/100000,\"\")","v":""},{"$f":"IFERROR(BR85*INDEX('Energy Prices'!$F$12:$CR$17,MATCH('Data Input - Option 3'!$D93,'Energy Prices'!$C$12:$C$17,0),MATCH('Data Input - Option 3'!BR$7,'Energy Prices'!$F$11:$CR$11,0))/100000,\"\")","v":""},{"$f":"IFERROR(BS85*INDEX('Energy Prices'!$F$12:$CR$17,MATCH('Data Input - Option 3'!$D93,'Energy Prices'!$C$12:$C$17,0),MATCH('Data Input - Option 3'!BS$7,'Energy Prices'!$F$11:$CR$11,0))/100000,\"\")","v":""},{"$f":"IFERROR(BT85*INDEX('Energy Prices'!$F$12:$CR$17,MATCH('Data Input - Option 3'!$D93,'Energy Prices'!$C$12:$C$17,0),MATCH('Data Input - Option 3'!BT$7,'Energy Prices'!$F$11:$CR$11,0))/100000,\"\")","v":""},{"$f":"IFERROR(BU85*INDEX('Energy Prices'!$F$12:$CR$17,MATCH('Data Input - Option 3'!$D93,'Energy Prices'!$C$12:$C$17,0),MATCH('Data Input - Option 3'!BU$7,'Energy Prices'!$F$11:$CR$11,0))/100000,\"\")","v":""},{"$f":"IFERROR(BV85*INDEX('Energy Prices'!$F$12:$CR$17,MATCH('Data Input - Option 3'!$D93,'Energy Prices'!$C$12:$C$17,0),MATCH('Data Input - Option 3'!BV$7,'Energy Prices'!$F$11:$CR$11,0))/100000,\"\")","v":""},{"$f":"IFERROR(BW85*INDEX('Energy Prices'!$F$12:$CR$17,MATCH('Data Input - Option 3'!$D93,'Energy Prices'!$C$12:$C$17,0),MATCH('Data Input - Option 3'!BW$7,'Energy Prices'!$F$11:$CR$11,0))/100000,\"\")","v":""},{"$f":"IFERROR(BX85*INDEX('Energy Prices'!$F$12:$CR$17,MATCH('Data Input - Option 3'!$D93,'Energy Prices'!$C$12:$C$17,0),MATCH('Data Input - Option 3'!BX$7,'Energy Prices'!$F$11:$CR$11,0))/100000,\"\")","v":""},{"$f":"IFERROR(BY85*INDEX('Energy Prices'!$F$12:$CR$17,MATCH('Data Input - Option 3'!$D93,'Energy Prices'!$C$12:$C$17,0),MATCH('Data Input - Option 3'!BY$7,'Energy Prices'!$F$11:$CR$11,0))/100000,\"\")","v":""},{"$f":"IFERROR(BZ85*INDEX('Energy Prices'!$F$12:$CR$17,MATCH('Data Input - Option 3'!$D93,'Energy Prices'!$C$12:$C$17,0),MATCH('Data Input - Option 3'!BZ$7,'Energy Prices'!$F$11:$CR$11,0))/100000,\"\")","v":""},{"$f":"IFERROR(CA85*INDEX('Energy Prices'!$F$12:$CR$17,MATCH('Data Input - Option 3'!$D93,'Energy Prices'!$C$12:$C$17,0),MATCH('Data Input - Option 3'!CA$7,'Energy Prices'!$F$11:$CR$11,0))/100000,\"\")","v":""},{"$f":"IFERROR(CB85*INDEX('Energy Prices'!$F$12:$CR$17,MATCH('Data Input - Option 3'!$D93,'Energy Prices'!$C$12:$C$17,0),MATCH('Data Input - Option 3'!CB$7,'Energy Prices'!$F$11:$CR$11,0))/100000,\"\")","v":""},{"$f":"IFERROR(CC85*INDEX('Energy Prices'!$F$12:$CR$17,MATCH('Data Input - Option 3'!$D93,'Energy Prices'!$C$12:$C$17,0),MATCH('Data Input - Option 3'!CC$7,'Energy Prices'!$F$11:$CR$11,0))/100000,\"\")","v":""},{"$f":"IFERROR(CD85*INDEX('Energy Prices'!$F$12:$CR$17,MATCH('Data Input - Option 3'!$D93,'Energy Prices'!$C$12:$C$17,0),MATCH('Data Input - Option 3'!CD$7,'Energy Prices'!$F$11:$CR$11,0))/100000,\"\")","v":""},{"$f":"IFERROR(CE85*INDEX('Energy Prices'!$F$12:$CR$17,MATCH('Data Input - Option 3'!$D93,'Energy Prices'!$C$12:$C$17,0),MATCH('Data Input - Option 3'!CE$7,'Energy Prices'!$F$11:$CR$11,0))/100000,\"\")","v":""},{"$f":"IFERROR(CF85*INDEX('Energy Prices'!$F$12:$CR$17,MATCH('Data Input - Option 3'!$D93,'Energy Prices'!$C$12:$C$17,0),MATCH('Data Input - Option 3'!CF$7,'Energy Prices'!$F$11:$CR$11,0))/100000,\"\")","v":""},{"$f":"IFERROR(CG85*INDEX('Energy Prices'!$F$12:$CR$17,MATCH('Data Input - Option 3'!$D93,'Energy Prices'!$C$12:$C$17,0),MATCH('Data Input - Option 3'!CG$7,'Energy Prices'!$F$11:$CR$11,0))/100000,\"\")","v":""},{"$f":"IFERROR(CH85*INDEX('Energy Prices'!$F$12:$CR$17,MATCH('Data Input - Option 3'!$D93,'Energy Prices'!$C$12:$C$17,0),MATCH('Data Input - Option 3'!CH$7,'Energy Prices'!$F$11:$CR$11,0))/100000,\"\")","v":""},{"$f":"IFERROR(CI85*INDEX('Energy Prices'!$F$12:$CR$17,MATCH('Data Input - Option 3'!$D93,'Energy Prices'!$C$12:$C$17,0),MATCH('Data Input - Option 3'!CI$7,'Energy Prices'!$F$11:$CR$11,0))/100000,\"\")","v":""},{"$f":"IFERROR(CJ85*INDEX('Energy Prices'!$F$12:$CR$17,MATCH('Data Input - Option 3'!$D93,'Energy Prices'!$C$12:$C$17,0),MATCH('Data Input - Option 3'!CJ$7,'Energy Prices'!$F$11:$CR$11,0))/100000,\"\")","v":""},{"$f":"IFERROR(CK85*INDEX('Energy Prices'!$F$12:$CR$17,MATCH('Data Input - Option 3'!$D93,'Energy Prices'!$C$12:$C$17,0),MATCH('Data Input - Option 3'!CK$7,'Energy Prices'!$F$11:$CR$11,0))/100000,\"\")","v":""},{"$f":"IFERROR(CL85*INDEX('Energy Prices'!$F$12:$CR$17,MATCH('Data Input - Option 3'!$D93,'Energy Prices'!$C$12:$C$17,0),MATCH('Data Input - Option 3'!CL$7,'Energy Prices'!$F$11:$CR$11,0))/100000,\"\")","v":""},{"$f":"IFERROR(CM85*INDEX('Energy Prices'!$F$12:$CR$17,MATCH('Data Input - Option 3'!$D93,'Energy Prices'!$C$12:$C$17,0),MATCH('Data Input - Option 3'!CM$7,'Energy Prices'!$F$11:$CR$11,0))/100000,\"\")","v":""},{"$f":"IFERROR(CN85*INDEX('Energy Prices'!$F$12:$CR$17,MATCH('Data Input - Option 3'!$D93,'Energy Prices'!$C$12:$C$17,0),MATCH('Data Input - Option 3'!CN$7,'Energy Prices'!$F$11:$CR$11,0))/100000,\"\")","v":""},{"$f":"IFERROR(CO85*INDEX('Energy Prices'!$F$12:$CR$17,MATCH('Data Input - Option 3'!$D93,'Energy Prices'!$C$12:$C$17,0),MATCH('Data Input - Option 3'!CO$7,'Energy Prices'!$F$11:$CR$11,0))/100000,\"\")","v":""},{"$f":"IFERROR(CP85*INDEX('Energy Prices'!$F$12:$CR$17,MATCH('Data Input - Option 3'!$D93,'Energy Prices'!$C$12:$C$17,0),MATCH('Data Input - Option 3'!CP$7,'Energy Prices'!$F$11:$CR$11,0))/100000,\"\")","v":""},{"$f":"IFERROR(CQ85*INDEX('Energy Prices'!$F$12:$CR$17,MATCH('Data Input - Option 3'!$D93,'Energy Prices'!$C$12:$C$17,0),MATCH('Data Input - Option 3'!CQ$7,'Energy Prices'!$F$11:$CR$11,0))/100000,\"\")","v":""},{"$f":"IFERROR(CR85*INDEX('Energy Prices'!$F$12:$CR$17,MATCH('Data Input - Option 3'!$D93,'Energy Prices'!$C$12:$C$17,0),MATCH('Data Input - Option 3'!CR$7,'Energy Prices'!$F$11:$CR$11,0))/100000,\"\")","v":""},{"$f":"IFERROR(CS85*INDEX('Energy Prices'!$F$12:$CR$17,MATCH('Data Input - Option 3'!$D93,'Energy Prices'!$C$12:$C$17,0),MATCH('Data Input - Option 3'!CS$7,'Energy Prices'!$F$11:$CR$11,0))/100000,\"\")","v":""},{"$f":"IFERROR(CT85*INDEX('Energy Prices'!$F$12:$CR$17,MATCH('Data Input - Option 3'!$D93,'Energy Prices'!$C$12:$C$17,0),MATCH('Data Input - Option 3'!CT$7,'Energy Prices'!$F$11:$CR$11,0))/100000,\"\")","v":""},{"$f":"IFERROR(CU85*INDEX('Energy Prices'!$F$12:$CR$17,MATCH('Data Input - Option 3'!$D93,'Energy Prices'!$C$12:$C$17,0),MATCH('Data Input - Option 3'!CU$7,'Energy Prices'!$F$11:$CR$11,0))/100000,\"\")","v":""},{"$f":"IFERROR(CV85*INDEX('Energy Prices'!$F$12:$CR$17,MATCH('Data Input - Option 3'!$D93,'Energy Prices'!$C$12:$C$17,0),MATCH('Data Input - Option 3'!CV$7,'Energy Prices'!$F$11:$CR$11,0))/100000,\"\")","v":""},{"$f":"IFERROR(CW85*INDEX('Energy Prices'!$F$12:$CR$17,MATCH('Data Input - Option 3'!$D93,'Energy Prices'!$C$12:$C$17,0),MATCH('Data Input - Option 3'!CW$7,'Energy Prices'!$F$11:$CR$11,0))/100000,\"\")","v":""},{"$f":"IFERROR(CX85*INDEX('Energy Prices'!$F$12:$CR$17,MATCH('Data Input - Option 3'!$D93,'Energy Prices'!$C$12:$C$17,0),MATCH('Data Input - Option 3'!CX$7,'Energy Prices'!$F$11:$CR$11,0))/100000,\"\")","v":""},{"$f":"IFERROR(CY85*INDEX('Energy Prices'!$F$12:$CR$17,MATCH('Data Input - Option 3'!$D93,'Energy Prices'!$C$12:$C$17,0),MATCH('Data Input - Option 3'!CY$7,'Energy Prices'!$F$11:$CR$11,0))/100000,\"\")","v":""},{"$f":"IFERROR(CZ85*INDEX('Energy Prices'!$F$12:$CR$17,MATCH('Data Input - Option 3'!$D93,'Energy Prices'!$C$12:$C$17,0),MATCH('Data Input - Option 3'!CZ$7,'Energy Prices'!$F$11:$CR$11,0))/100000,\"\")","v":""},{"$f":"IFERROR(DA85*INDEX('Energy Prices'!$F$12:$CR$17,MATCH('Data Input - Option 3'!$D93,'Energy Prices'!$C$12:$C$17,0),MATCH('Data Input - Option 3'!DA$7,'Energy Prices'!$F$11:$CR$11,0))/100000,\"\")","v":""},{"$f":"IFERROR(DB85*INDEX('Energy Prices'!$F$12:$CR$17,MATCH('Data Input - Option 3'!$D93,'Energy Prices'!$C$12:$C$17,0),MATCH('Data Input - Option 3'!DB$7,'Energy Prices'!$F$11:$CR$11,0))/100000,\"\")","v":""},{"$f":"IFERROR(DC85*INDEX('Energy Prices'!$F$12:$CR$17,MATCH('Data Input - Option 3'!$D93,'Energy Prices'!$C$12:$C$17,0),MATCH('Data Input - Option 3'!DC$7,'Energy Prices'!$F$11:$CR$11,0))/100000,\"\")","v":""}]
[null,null,null,"Coal","£000's","(Auto calculated value)",null,{"$f":"IFERROR(H86*INDEX('Energy Prices'!$F$12:$CR$17,MATCH('Data Input - Option 3'!$D94,'Energy Prices'!$C$12:$C$17,0),MATCH('Data Input - Option 3'!H$7,'Energy Prices'!$F$11:$CR$11,0))/100000,\"\")","v":1172.2372023078472},{"$f":"IFERROR(I86*INDEX('Energy Prices'!$F$12:$CR$17,MATCH('Data Input - Option 3'!$D94,'Energy Prices'!$C$12:$C$17,0),MATCH('Data Input - Option 3'!I$7,'Energy Prices'!$F$11:$CR$11,0))/100000,\"\")","v":1208.8050929775054},{"$f":"IFERROR(J86*INDEX('Energy Prices'!$F$12:$CR$17,MATCH('Data Input - Option 3'!$D94,'Energy Prices'!$C$12:$C$17,0),MATCH('Data Input - Option 3'!J$7,'Energy Prices'!$F$11:$CR$11,0))/100000,\"\")","v":1245.3781179083437},{"$f":"IFERROR(K86*INDEX('Energy Prices'!$F$12:$CR$17,MATCH('Data Input - Option 3'!$D94,'Energy Prices'!$C$12:$C$17,0),MATCH('Data Input - Option 3'!K$7,'Energy Prices'!$F$11:$CR$11,0))/100000,\"\")","v":1281.9465396595917},{"$f":"IFERROR(L86*INDEX('Energy Prices'!$F$12:$CR$17,MATCH('Data Input - Option 3'!$D94,'Energy Prices'!$C$12:$C$17,0),MATCH('Data Input - Option 3'!L$7,'Energy Prices'!$F$11:$CR$11,0))/100000,\"\")","v":1318.5151964880649},{"$f":"IFERROR(M86*INDEX('Energy Prices'!$F$12:$CR$17,MATCH('Data Input - Option 3'!$D94,'Energy Prices'!$C$12:$C$17,0),MATCH('Data Input - Option 3'!M$7,'Energy Prices'!$F$11:$CR$11,0))/100000,\"\")","v":1355.0840900023077},{"$f":"IFERROR(N86*INDEX('Energy Prices'!$F$12:$CR$17,MATCH('Data Input - Option 3'!$D94,'Energy Prices'!$C$12:$C$17,0),MATCH('Data Input - Option 3'!N$7,'Energy Prices'!$F$11:$CR$11,0))/100000,\"\")","v":1391.6532218218708},{"$f":"IFERROR(O86*INDEX('Energy Prices'!$F$12:$CR$17,MATCH('Data Input - Option 3'!$D94,'Energy Prices'!$C$12:$C$17,0),MATCH('Data Input - Option 3'!O$7,'Energy Prices'!$F$11:$CR$11,0))/100000,\"\")","v":1428.2225935773874},{"$f":"IFERROR(P86*INDEX('Energy Prices'!$F$12:$CR$17,MATCH('Data Input - Option 3'!$D94,'Energy Prices'!$C$12:$C$17,0),MATCH('Data Input - Option 3'!P$7,'Energy Prices'!$F$11:$CR$11,0))/100000,\"\")","v":0},{"$f":"IFERROR(Q86*INDEX('Energy Prices'!$F$12:$CR$17,MATCH('Data Input - Option 3'!$D94,'Energy Prices'!$C$12:$C$17,0),MATCH('Data Input - Option 3'!Q$7,'Energy Prices'!$F$11:$CR$11,0))/100000,\"\")","v":0},{"$f":"IFERROR(R86*INDEX('Energy Prices'!$F$12:$CR$17,MATCH('Data Input - Option 3'!$D94,'Energy Prices'!$C$12:$C$17,0),MATCH('Data Input - Option 3'!R$7,'Energy Prices'!$F$11:$CR$11,0))/100000,\"\")","v":0},{"$f":"IFERROR(S86*INDEX('Energy Prices'!$F$12:$CR$17,MATCH('Data Input - Option 3'!$D94,'Energy Prices'!$C$12:$C$17,0),MATCH('Data Input - Option 3'!S$7,'Energy Prices'!$F$11:$CR$11,0))/100000,\"\")","v":0},{"$f":"IFERROR(T86*INDEX('Energy Prices'!$F$12:$CR$17,MATCH('Data Input - Option 3'!$D94,'Energy Prices'!$C$12:$C$17,0),MATCH('Data Input - Option 3'!T$7,'Energy Prices'!$F$11:$CR$11,0))/100000,\"\")","v":0},{"$f":"IFERROR(U86*INDEX('Energy Prices'!$F$12:$CR$17,MATCH('Data Input - Option 3'!$D94,'Energy Prices'!$C$12:$C$17,0),MATCH('Data Input - Option 3'!U$7,'Energy Prices'!$F$11:$CR$11,0))/100000,\"\")","v":0},{"$f":"IFERROR(V86*INDEX('Energy Prices'!$F$12:$CR$17,MATCH('Data Input - Option 3'!$D94,'Energy Prices'!$C$12:$C$17,0),MATCH('Data Input - Option 3'!V$7,'Energy Prices'!$F$11:$CR$11,0))/100000,\"\")","v":0},{"$f":"IFERROR(W86*INDEX('Energy Prices'!$F$12:$CR$17,MATCH('Data Input - Option 3'!$D94,'Energy Prices'!$C$12:$C$17,0),MATCH('Data Input - Option 3'!W$7,'Energy Prices'!$F$11:$CR$11,0))/100000,\"\")","v":0},{"$f":"IFERROR(X86*INDEX('Energy Prices'!$F$12:$CR$17,MATCH('Data Input - Option 3'!$D94,'Energy Prices'!$C$12:$C$17,0),MATCH('Data Input - Option 3'!X$7,'Energy Prices'!$F$11:$CR$11,0))/100000,\"\")","v":0},{"$f":"IFERROR(Y86*INDEX('Energy Prices'!$F$12:$CR$17,MATCH('Data Input - Option 3'!$D94,'Energy Prices'!$C$12:$C$17,0),MATCH('Data Input - Option 3'!Y$7,'Energy Prices'!$F$11:$CR$11,0))/100000,\"\")","v":0},{"$f":"IFERROR(Z86*INDEX('Energy Prices'!$F$12:$CR$17,MATCH('Data Input - Option 3'!$D94,'Energy Prices'!$C$12:$C$17,0),MATCH('Data Input - Option 3'!Z$7,'Energy Prices'!$F$11:$CR$11,0))/100000,\"\")","v":0},{"$f":"IFERROR(AA86*INDEX('Energy Prices'!$F$12:$CR$17,MATCH('Data Input - Option 3'!$D94,'Energy Prices'!$C$12:$C$17,0),MATCH('Data Input - Option 3'!AA$7,'Energy Prices'!$F$11:$CR$11,0))/100000,\"\")","v":0},{"$f":"IFERROR(AB86*INDEX('Energy Prices'!$F$12:$CR$17,MATCH('Data Input - Option 3'!$D94,'Energy Prices'!$C$12:$C$17,0),MATCH('Data Input - Option 3'!AB$7,'Energy Prices'!$F$11:$CR$11,0))/100000,\"\")","v":0},{"$f":"IFERROR(AC86*INDEX('Energy Prices'!$F$12:$CR$17,MATCH('Data Input - Option 3'!$D94,'Energy Prices'!$C$12:$C$17,0),MATCH('Data Input - Option 3'!AC$7,'Energy Prices'!$F$11:$CR$11,0))/100000,\"\")","v":0},{"$f":"IFERROR(AD86*INDEX('Energy Prices'!$F$12:$CR$17,MATCH('Data Input - Option 3'!$D94,'Energy Prices'!$C$12:$C$17,0),MATCH('Data Input - Option 3'!AD$7,'Energy Prices'!$F$11:$CR$11,0))/100000,\"\")","v":0},{"$f":"IFERROR(AE86*INDEX('Energy Prices'!$F$12:$CR$17,MATCH('Data Input - Option 3'!$D94,'Energy Prices'!$C$12:$C$17,0),MATCH('Data Input - Option 3'!AE$7,'Energy Prices'!$F$11:$CR$11,0))/100000,\"\")","v":0},{"$f":"IFERROR(AF86*INDEX('Energy Prices'!$F$12:$CR$17,MATCH('Data Input - Option 3'!$D94,'Energy Prices'!$C$12:$C$17,0),MATCH('Data Input - Option 3'!AF$7,'Energy Prices'!$F$11:$CR$11,0))/100000,\"\")","v":0},{"$f":"IFERROR(AG86*INDEX('Energy Prices'!$F$12:$CR$17,MATCH('Data Input - Option 3'!$D94,'Energy Prices'!$C$12:$C$17,0),MATCH('Data Input - Option 3'!AG$7,'Energy Prices'!$F$11:$CR$11,0))/100000,\"\")","v":0},{"$f":"IFERROR(AH86*INDEX('Energy Prices'!$F$12:$CR$17,MATCH('Data Input - Option 3'!$D94,'Energy Prices'!$C$12:$C$17,0),MATCH('Data Input - Option 3'!AH$7,'Energy Prices'!$F$11:$CR$11,0))/100000,\"\")","v":0},{"$f":"IFERROR(AI86*INDEX('Energy Prices'!$F$12:$CR$17,MATCH('Data Input - Option 3'!$D94,'Energy Prices'!$C$12:$C$17,0),MATCH('Data Input - Option 3'!AI$7,'Energy Prices'!$F$11:$CR$11,0))/100000,\"\")","v":0},{"$f":"IFERROR(AJ86*INDEX('Energy Prices'!$F$12:$CR$17,MATCH('Data Input - Option 3'!$D94,'Energy Prices'!$C$12:$C$17,0),MATCH('Data Input - Option 3'!AJ$7,'Energy Prices'!$F$11:$CR$11,0))/100000,\"\")","v":0},{"$f":"IFERROR(AK86*INDEX('Energy Prices'!$F$12:$CR$17,MATCH('Data Input - Option 3'!$D94,'Energy Prices'!$C$12:$C$17,0),MATCH('Data Input - Option 3'!AK$7,'Energy Prices'!$F$11:$CR$11,0))/100000,\"\")","v":0},{"$f":"IFERROR(AL86*INDEX('Energy Prices'!$F$12:$CR$17,MATCH('Data Input - Option 3'!$D94,'Energy Prices'!$C$12:$C$17,0),MATCH('Data Input - Option 3'!AL$7,'Energy Prices'!$F$11:$CR$11,0))/100000,\"\")","v":0},{"$f":"IFERROR(AM86*INDEX('Energy Prices'!$F$12:$CR$17,MATCH('Data Input - Option 3'!$D94,'Energy Prices'!$C$12:$C$17,0),MATCH('Data Input - Option 3'!AM$7,'Energy Prices'!$F$11:$CR$11,0))/100000,\"\")","v":""},{"$f":"IFERROR(AN86*INDEX('Energy Prices'!$F$12:$CR$17,MATCH('Data Input - Option 3'!$D94,'Energy Prices'!$C$12:$C$17,0),MATCH('Data Input - Option 3'!AN$7,'Energy Prices'!$F$11:$CR$11,0))/100000,\"\")","v":""},{"$f":"IFERROR(AO86*INDEX('Energy Prices'!$F$12:$CR$17,MATCH('Data Input - Option 3'!$D94,'Energy Prices'!$C$12:$C$17,0),MATCH('Data Input - Option 3'!AO$7,'Energy Prices'!$F$11:$CR$11,0))/100000,\"\")","v":""},{"$f":"IFERROR(AP86*INDEX('Energy Prices'!$F$12:$CR$17,MATCH('Data Input - Option 3'!$D94,'Energy Prices'!$C$12:$C$17,0),MATCH('Data Input - Option 3'!AP$7,'Energy Prices'!$F$11:$CR$11,0))/100000,\"\")","v":""},{"$f":"IFERROR(AQ86*INDEX('Energy Prices'!$F$12:$CR$17,MATCH('Data Input - Option 3'!$D94,'Energy Prices'!$C$12:$C$17,0),MATCH('Data Input - Option 3'!AQ$7,'Energy Prices'!$F$11:$CR$11,0))/100000,\"\")","v":""},{"$f":"IFERROR(AR86*INDEX('Energy Prices'!$F$12:$CR$17,MATCH('Data Input - Option 3'!$D94,'Energy Prices'!$C$12:$C$17,0),MATCH('Data Input - Option 3'!AR$7,'Energy Prices'!$F$11:$CR$11,0))/100000,\"\")","v":""},{"$f":"IFERROR(AS86*INDEX('Energy Prices'!$F$12:$CR$17,MATCH('Data Input - Option 3'!$D94,'Energy Prices'!$C$12:$C$17,0),MATCH('Data Input - Option 3'!AS$7,'Energy Prices'!$F$11:$CR$11,0))/100000,\"\")","v":""},{"$f":"IFERROR(AT86*INDEX('Energy Prices'!$F$12:$CR$17,MATCH('Data Input - Option 3'!$D94,'Energy Prices'!$C$12:$C$17,0),MATCH('Data Input - Option 3'!AT$7,'Energy Prices'!$F$11:$CR$11,0))/100000,\"\")","v":""},{"$f":"IFERROR(AU86*INDEX('Energy Prices'!$F$12:$CR$17,MATCH('Data Input - Option 3'!$D94,'Energy Prices'!$C$12:$C$17,0),MATCH('Data Input - Option 3'!AU$7,'Energy Prices'!$F$11:$CR$11,0))/100000,\"\")","v":""},{"$f":"IFERROR(AV86*INDEX('Energy Prices'!$F$12:$CR$17,MATCH('Data Input - Option 3'!$D94,'Energy Prices'!$C$12:$C$17,0),MATCH('Data Input - Option 3'!AV$7,'Energy Prices'!$F$11:$CR$11,0))/100000,\"\")","v":""},{"$f":"IFERROR(AW86*INDEX('Energy Prices'!$F$12:$CR$17,MATCH('Data Input - Option 3'!$D94,'Energy Prices'!$C$12:$C$17,0),MATCH('Data Input - Option 3'!AW$7,'Energy Prices'!$F$11:$CR$11,0))/100000,\"\")","v":""},{"$f":"IFERROR(AX86*INDEX('Energy Prices'!$F$12:$CR$17,MATCH('Data Input - Option 3'!$D94,'Energy Prices'!$C$12:$C$17,0),MATCH('Data Input - Option 3'!AX$7,'Energy Prices'!$F$11:$CR$11,0))/100000,\"\")","v":""},{"$f":"IFERROR(AY86*INDEX('Energy Prices'!$F$12:$CR$17,MATCH('Data Input - Option 3'!$D94,'Energy Prices'!$C$12:$C$17,0),MATCH('Data Input - Option 3'!AY$7,'Energy Prices'!$F$11:$CR$11,0))/100000,\"\")","v":""},{"$f":"IFERROR(AZ86*INDEX('Energy Prices'!$F$12:$CR$17,MATCH('Data Input - Option 3'!$D94,'Energy Prices'!$C$12:$C$17,0),MATCH('Data Input - Option 3'!AZ$7,'Energy Prices'!$F$11:$CR$11,0))/100000,\"\")","v":""},{"$f":"IFERROR(BA86*INDEX('Energy Prices'!$F$12:$CR$17,MATCH('Data Input - Option 3'!$D94,'Energy Prices'!$C$12:$C$17,0),MATCH('Data Input - Option 3'!BA$7,'Energy Prices'!$F$11:$CR$11,0))/100000,\"\")","v":""},{"$f":"IFERROR(BB86*INDEX('Energy Prices'!$F$12:$CR$17,MATCH('Data Input - Option 3'!$D94,'Energy Prices'!$C$12:$C$17,0),MATCH('Data Input - Option 3'!BB$7,'Energy Prices'!$F$11:$CR$11,0))/100000,\"\")","v":""},{"$f":"IFERROR(BC86*INDEX('Energy Prices'!$F$12:$CR$17,MATCH('Data Input - Option 3'!$D94,'Energy Prices'!$C$12:$C$17,0),MATCH('Data Input - Option 3'!BC$7,'Energy Prices'!$F$11:$CR$11,0))/100000,\"\")","v":""},{"$f":"IFERROR(BD86*INDEX('Energy Prices'!$F$12:$CR$17,MATCH('Data Input - Option 3'!$D94,'Energy Prices'!$C$12:$C$17,0),MATCH('Data Input - Option 3'!BD$7,'Energy Prices'!$F$11:$CR$11,0))/100000,\"\")","v":""},{"$f":"IFERROR(BE86*INDEX('Energy Prices'!$F$12:$CR$17,MATCH('Data Input - Option 3'!$D94,'Energy Prices'!$C$12:$C$17,0),MATCH('Data Input - Option 3'!BE$7,'Energy Prices'!$F$11:$CR$11,0))/100000,\"\")","v":""},{"$f":"IFERROR(BF86*INDEX('Energy Prices'!$F$12:$CR$17,MATCH('Data Input - Option 3'!$D94,'Energy Prices'!$C$12:$C$17,0),MATCH('Data Input - Option 3'!BF$7,'Energy Prices'!$F$11:$CR$11,0))/100000,\"\")","v":""},{"$f":"IFERROR(BG86*INDEX('Energy Prices'!$F$12:$CR$17,MATCH('Data Input - Option 3'!$D94,'Energy Prices'!$C$12:$C$17,0),MATCH('Data Input - Option 3'!BG$7,'Energy Prices'!$F$11:$CR$11,0))/100000,\"\")","v":""},{"$f":"IFERROR(BH86*INDEX('Energy Prices'!$F$12:$CR$17,MATCH('Data Input - Option 3'!$D94,'Energy Prices'!$C$12:$C$17,0),MATCH('Data Input - Option 3'!BH$7,'Energy Prices'!$F$11:$CR$11,0))/100000,\"\")","v":""},{"$f":"IFERROR(BI86*INDEX('Energy Prices'!$F$12:$CR$17,MATCH('Data Input - Option 3'!$D94,'Energy Prices'!$C$12:$C$17,0),MATCH('Data Input - Option 3'!BI$7,'Energy Prices'!$F$11:$CR$11,0))/100000,\"\")","v":""},{"$f":"IFERROR(BJ86*INDEX('Energy Prices'!$F$12:$CR$17,MATCH('Data Input - Option 3'!$D94,'Energy Prices'!$C$12:$C$17,0),MATCH('Data Input - Option 3'!BJ$7,'Energy Prices'!$F$11:$CR$11,0))/100000,\"\")","v":""},{"$f":"IFERROR(BK86*INDEX('Energy Prices'!$F$12:$CR$17,MATCH('Data Input - Option 3'!$D94,'Energy Prices'!$C$12:$C$17,0),MATCH('Data Input - Option 3'!BK$7,'Energy Prices'!$F$11:$CR$11,0))/100000,\"\")","v":""},{"$f":"IFERROR(BL86*INDEX('Energy Prices'!$F$12:$CR$17,MATCH('Data Input - Option 3'!$D94,'Energy Prices'!$C$12:$C$17,0),MATCH('Data Input - Option 3'!BL$7,'Energy Prices'!$F$11:$CR$11,0))/100000,\"\")","v":""},{"$f":"IFERROR(BM86*INDEX('Energy Prices'!$F$12:$CR$17,MATCH('Data Input - Option 3'!$D94,'Energy Prices'!$C$12:$C$17,0),MATCH('Data Input - Option 3'!BM$7,'Energy Prices'!$F$11:$CR$11,0))/100000,\"\")","v":""},{"$f":"IFERROR(BN86*INDEX('Energy Prices'!$F$12:$CR$17,MATCH('Data Input - Option 3'!$D94,'Energy Prices'!$C$12:$C$17,0),MATCH('Data Input - Option 3'!BN$7,'Energy Prices'!$F$11:$CR$11,0))/100000,\"\")","v":""},{"$f":"IFERROR(BO86*INDEX('Energy Prices'!$F$12:$CR$17,MATCH('Data Input - Option 3'!$D94,'Energy Prices'!$C$12:$C$17,0),MATCH('Data Input - Option 3'!BO$7,'Energy Prices'!$F$11:$CR$11,0))/100000,\"\")","v":""},{"$f":"IFERROR(BP86*INDEX('Energy Prices'!$F$12:$CR$17,MATCH('Data Input - Option 3'!$D94,'Energy Prices'!$C$12:$C$17,0),MATCH('Data Input - Option 3'!BP$7,'Energy Prices'!$F$11:$CR$11,0))/100000,\"\")","v":""},{"$f":"IFERROR(BQ86*INDEX('Energy Prices'!$F$12:$CR$17,MATCH('Data Input - Option 3'!$D94,'Energy Prices'!$C$12:$C$17,0),MATCH('Data Input - Option 3'!BQ$7,'Energy Prices'!$F$11:$CR$11,0))/100000,\"\")","v":""},{"$f":"IFERROR(BR86*INDEX('Energy Prices'!$F$12:$CR$17,MATCH('Data Input - Option 3'!$D94,'Energy Prices'!$C$12:$C$17,0),MATCH('Data Input - Option 3'!BR$7,'Energy Prices'!$F$11:$CR$11,0))/100000,\"\")","v":""},{"$f":"IFERROR(BS86*INDEX('Energy Prices'!$F$12:$CR$17,MATCH('Data Input - Option 3'!$D94,'Energy Prices'!$C$12:$C$17,0),MATCH('Data Input - Option 3'!BS$7,'Energy Prices'!$F$11:$CR$11,0))/100000,\"\")","v":""},{"$f":"IFERROR(BT86*INDEX('Energy Prices'!$F$12:$CR$17,MATCH('Data Input - Option 3'!$D94,'Energy Prices'!$C$12:$C$17,0),MATCH('Data Input - Option 3'!BT$7,'Energy Prices'!$F$11:$CR$11,0))/100000,\"\")","v":""},{"$f":"IFERROR(BU86*INDEX('Energy Prices'!$F$12:$CR$17,MATCH('Data Input - Option 3'!$D94,'Energy Prices'!$C$12:$C$17,0),MATCH('Data Input - Option 3'!BU$7,'Energy Prices'!$F$11:$CR$11,0))/100000,\"\")","v":""},{"$f":"IFERROR(BV86*INDEX('Energy Prices'!$F$12:$CR$17,MATCH('Data Input - Option 3'!$D94,'Energy Prices'!$C$12:$C$17,0),MATCH('Data Input - Option 3'!BV$7,'Energy Prices'!$F$11:$CR$11,0))/100000,\"\")","v":""},{"$f":"IFERROR(BW86*INDEX('Energy Prices'!$F$12:$CR$17,MATCH('Data Input - Option 3'!$D94,'Energy Prices'!$C$12:$C$17,0),MATCH('Data Input - Option 3'!BW$7,'Energy Prices'!$F$11:$CR$11,0))/100000,\"\")","v":""},{"$f":"IFERROR(BX86*INDEX('Energy Prices'!$F$12:$CR$17,MATCH('Data Input - Option 3'!$D94,'Energy Prices'!$C$12:$C$17,0),MATCH('Data Input - Option 3'!BX$7,'Energy Prices'!$F$11:$CR$11,0))/100000,\"\")","v":""},{"$f":"IFERROR(BY86*INDEX('Energy Prices'!$F$12:$CR$17,MATCH('Data Input - Option 3'!$D94,'Energy Prices'!$C$12:$C$17,0),MATCH('Data Input - Option 3'!BY$7,'Energy Prices'!$F$11:$CR$11,0))/100000,\"\")","v":""},{"$f":"IFERROR(BZ86*INDEX('Energy Prices'!$F$12:$CR$17,MATCH('Data Input - Option 3'!$D94,'Energy Prices'!$C$12:$C$17,0),MATCH('Data Input - Option 3'!BZ$7,'Energy Prices'!$F$11:$CR$11,0))/100000,\"\")","v":""},{"$f":"IFERROR(CA86*INDEX('Energy Prices'!$F$12:$CR$17,MATCH('Data Input - Option 3'!$D94,'Energy Prices'!$C$12:$C$17,0),MATCH('Data Input - Option 3'!CA$7,'Energy Prices'!$F$11:$CR$11,0))/100000,\"\")","v":""},{"$f":"IFERROR(CB86*INDEX('Energy Prices'!$F$12:$CR$17,MATCH('Data Input - Option 3'!$D94,'Energy Prices'!$C$12:$C$17,0),MATCH('Data Input - Option 3'!CB$7,'Energy Prices'!$F$11:$CR$11,0))/100000,\"\")","v":""},{"$f":"IFERROR(CC86*INDEX('Energy Prices'!$F$12:$CR$17,MATCH('Data Input - Option 3'!$D94,'Energy Prices'!$C$12:$C$17,0),MATCH('Data Input - Option 3'!CC$7,'Energy Prices'!$F$11:$CR$11,0))/100000,\"\")","v":""},{"$f":"IFERROR(CD86*INDEX('Energy Prices'!$F$12:$CR$17,MATCH('Data Input - Option 3'!$D94,'Energy Prices'!$C$12:$C$17,0),MATCH('Data Input - Option 3'!CD$7,'Energy Prices'!$F$11:$CR$11,0))/100000,\"\")","v":""},{"$f":"IFERROR(CE86*INDEX('Energy Prices'!$F$12:$CR$17,MATCH('Data Input - Option 3'!$D94,'Energy Prices'!$C$12:$C$17,0),MATCH('Data Input - Option 3'!CE$7,'Energy Prices'!$F$11:$CR$11,0))/100000,\"\")","v":""},{"$f":"IFERROR(CF86*INDEX('Energy Prices'!$F$12:$CR$17,MATCH('Data Input - Option 3'!$D94,'Energy Prices'!$C$12:$C$17,0),MATCH('Data Input - Option 3'!CF$7,'Energy Prices'!$F$11:$CR$11,0))/100000,\"\")","v":""},{"$f":"IFERROR(CG86*INDEX('Energy Prices'!$F$12:$CR$17,MATCH('Data Input - Option 3'!$D94,'Energy Prices'!$C$12:$C$17,0),MATCH('Data Input - Option 3'!CG$7,'Energy Prices'!$F$11:$CR$11,0))/100000,\"\")","v":""},{"$f":"IFERROR(CH86*INDEX('Energy Prices'!$F$12:$CR$17,MATCH('Data Input - Option 3'!$D94,'Energy Prices'!$C$12:$C$17,0),MATCH('Data Input - Option 3'!CH$7,'Energy Prices'!$F$11:$CR$11,0))/100000,\"\")","v":""},{"$f":"IFERROR(CI86*INDEX('Energy Prices'!$F$12:$CR$17,MATCH('Data Input - Option 3'!$D94,'Energy Prices'!$C$12:$C$17,0),MATCH('Data Input - Option 3'!CI$7,'Energy Prices'!$F$11:$CR$11,0))/100000,\"\")","v":""},{"$f":"IFERROR(CJ86*INDEX('Energy Prices'!$F$12:$CR$17,MATCH('Data Input - Option 3'!$D94,'Energy Prices'!$C$12:$C$17,0),MATCH('Data Input - Option 3'!CJ$7,'Energy Prices'!$F$11:$CR$11,0))/100000,\"\")","v":""},{"$f":"IFERROR(CK86*INDEX('Energy Prices'!$F$12:$CR$17,MATCH('Data Input - Option 3'!$D94,'Energy Prices'!$C$12:$C$17,0),MATCH('Data Input - Option 3'!CK$7,'Energy Prices'!$F$11:$CR$11,0))/100000,\"\")","v":""},{"$f":"IFERROR(CL86*INDEX('Energy Prices'!$F$12:$CR$17,MATCH('Data Input - Option 3'!$D94,'Energy Prices'!$C$12:$C$17,0),MATCH('Data Input - Option 3'!CL$7,'Energy Prices'!$F$11:$CR$11,0))/100000,\"\")","v":""},{"$f":"IFERROR(CM86*INDEX('Energy Prices'!$F$12:$CR$17,MATCH('Data Input - Option 3'!$D94,'Energy Prices'!$C$12:$C$17,0),MATCH('Data Input - Option 3'!CM$7,'Energy Prices'!$F$11:$CR$11,0))/100000,\"\")","v":""},{"$f":"IFERROR(CN86*INDEX('Energy Prices'!$F$12:$CR$17,MATCH('Data Input - Option 3'!$D94,'Energy Prices'!$C$12:$C$17,0),MATCH('Data Input - Option 3'!CN$7,'Energy Prices'!$F$11:$CR$11,0))/100000,\"\")","v":""},{"$f":"IFERROR(CO86*INDEX('Energy Prices'!$F$12:$CR$17,MATCH('Data Input - Option 3'!$D94,'Energy Prices'!$C$12:$C$17,0),MATCH('Data Input - Option 3'!CO$7,'Energy Prices'!$F$11:$CR$11,0))/100000,\"\")","v":""},{"$f":"IFERROR(CP86*INDEX('Energy Prices'!$F$12:$CR$17,MATCH('Data Input - Option 3'!$D94,'Energy Prices'!$C$12:$C$17,0),MATCH('Data Input - Option 3'!CP$7,'Energy Prices'!$F$11:$CR$11,0))/100000,\"\")","v":""},{"$f":"IFERROR(CQ86*INDEX('Energy Prices'!$F$12:$CR$17,MATCH('Data Input - Option 3'!$D94,'Energy Prices'!$C$12:$C$17,0),MATCH('Data Input - Option 3'!CQ$7,'Energy Prices'!$F$11:$CR$11,0))/100000,\"\")","v":""},{"$f":"IFERROR(CR86*INDEX('Energy Prices'!$F$12:$CR$17,MATCH('Data Input - Option 3'!$D94,'Energy Prices'!$C$12:$C$17,0),MATCH('Data Input - Option 3'!CR$7,'Energy Prices'!$F$11:$CR$11,0))/100000,\"\")","v":""},{"$f":"IFERROR(CS86*INDEX('Energy Prices'!$F$12:$CR$17,MATCH('Data Input - Option 3'!$D94,'Energy Prices'!$C$12:$C$17,0),MATCH('Data Input - Option 3'!CS$7,'Energy Prices'!$F$11:$CR$11,0))/100000,\"\")","v":""},{"$f":"IFERROR(CT86*INDEX('Energy Prices'!$F$12:$CR$17,MATCH('Data Input - Option 3'!$D94,'Energy Prices'!$C$12:$C$17,0),MATCH('Data Input - Option 3'!CT$7,'Energy Prices'!$F$11:$CR$11,0))/100000,\"\")","v":""},{"$f":"IFERROR(CU86*INDEX('Energy Prices'!$F$12:$CR$17,MATCH('Data Input - Option 3'!$D94,'Energy Prices'!$C$12:$C$17,0),MATCH('Data Input - Option 3'!CU$7,'Energy Prices'!$F$11:$CR$11,0))/100000,\"\")","v":""},{"$f":"IFERROR(CV86*INDEX('Energy Prices'!$F$12:$CR$17,MATCH('Data Input - Option 3'!$D94,'Energy Prices'!$C$12:$C$17,0),MATCH('Data Input - Option 3'!CV$7,'Energy Prices'!$F$11:$CR$11,0))/100000,\"\")","v":""},{"$f":"IFERROR(CW86*INDEX('Energy Prices'!$F$12:$CR$17,MATCH('Data Input - Option 3'!$D94,'Energy Prices'!$C$12:$C$17,0),MATCH('Data Input - Option 3'!CW$7,'Energy Prices'!$F$11:$CR$11,0))/100000,\"\")","v":""},{"$f":"IFERROR(CX86*INDEX('Energy Prices'!$F$12:$CR$17,MATCH('Data Input - Option 3'!$D94,'Energy Prices'!$C$12:$C$17,0),MATCH('Data Input - Option 3'!CX$7,'Energy Prices'!$F$11:$CR$11,0))/100000,\"\")","v":""},{"$f":"IFERROR(CY86*INDEX('Energy Prices'!$F$12:$CR$17,MATCH('Data Input - Option 3'!$D94,'Energy Prices'!$C$12:$C$17,0),MATCH('Data Input - Option 3'!CY$7,'Energy Prices'!$F$11:$CR$11,0))/100000,\"\")","v":""},{"$f":"IFERROR(CZ86*INDEX('Energy Prices'!$F$12:$CR$17,MATCH('Data Input - Option 3'!$D94,'Energy Prices'!$C$12:$C$17,0),MATCH('Data Input - Option 3'!CZ$7,'Energy Prices'!$F$11:$CR$11,0))/100000,\"\")","v":""},{"$f":"IFERROR(DA86*INDEX('Energy Prices'!$F$12:$CR$17,MATCH('Data Input - Option 3'!$D94,'Energy Prices'!$C$12:$C$17,0),MATCH('Data Input - Option 3'!DA$7,'Energy Prices'!$F$11:$CR$11,0))/100000,\"\")","v":""},{"$f":"IFERROR(DB86*INDEX('Energy Prices'!$F$12:$CR$17,MATCH('Data Input - Option 3'!$D94,'Energy Prices'!$C$12:$C$17,0),MATCH('Data Input - Option 3'!DB$7,'Energy Prices'!$F$11:$CR$11,0))/100000,\"\")","v":""},{"$f":"IFERROR(DC86*INDEX('Energy Prices'!$F$12:$CR$17,MATCH('Data Input - Option 3'!$D94,'Energy Prices'!$C$12:$C$17,0),MATCH('Data Input - Option 3'!DC$7,'Energy Prices'!$F$11:$CR$11,0))/100000,\"\")","v":""}]
[null,null,null,"Gas Oil","£000's","(Auto calculated value)",null,{"$f":"IFERROR(H87*INDEX('Energy Prices'!$F$12:$CR$17,MATCH('Data Input - Option 3'!$D95,'Energy Prices'!$C$12:$C$17,0),MATCH('Data Input - Option 3'!H$7,'Energy Prices'!$F$11:$CR$11,0))/100000,\"\")","v":101.86416340890224},{"$f":"IFERROR(I87*INDEX('Energy Prices'!$F$12:$CR$17,MATCH('Data Input - Option 3'!$D95,'Energy Prices'!$C$12:$C$17,0),MATCH('Data Input - Option 3'!I$7,'Energy Prices'!$F$11:$CR$11,0))/100000,\"\")","v":108.78939751456718},{"$f":"IFERROR(J87*INDEX('Energy Prices'!$F$12:$CR$17,MATCH('Data Input - Option 3'!$D95,'Energy Prices'!$C$12:$C$17,0),MATCH('Data Input - Option 3'!J$7,'Energy Prices'!$F$11:$CR$11,0))/100000,\"\")","v":115.73394676403002},{"$f":"IFERROR(K87*INDEX('Energy Prices'!$F$12:$CR$17,MATCH('Data Input - Option 3'!$D95,'Energy Prices'!$C$12:$C$17,0),MATCH('Data Input - Option 3'!K$7,'Energy Prices'!$F$11:$CR$11,0))/100000,\"\")","v":122.66386016968734},{"$f":"IFERROR(L87*INDEX('Energy Prices'!$F$12:$CR$17,MATCH('Data Input - Option 3'!$D95,'Energy Prices'!$C$12:$C$17,0),MATCH('Data Input - Option 3'!L$7,'Energy Prices'!$F$11:$CR$11,0))/100000,\"\")","v":129.58715518047657},{"$f":"IFERROR(M87*INDEX('Energy Prices'!$F$12:$CR$17,MATCH('Data Input - Option 3'!$D95,'Energy Prices'!$C$12:$C$17,0),MATCH('Data Input - Option 3'!M$7,'Energy Prices'!$F$11:$CR$11,0))/100000,\"\")","v":136.51160511784934},{"$f":"IFERROR(N87*INDEX('Energy Prices'!$F$12:$CR$17,MATCH('Data Input - Option 3'!$D95,'Energy Prices'!$C$12:$C$17,0),MATCH('Data Input - Option 3'!N$7,'Energy Prices'!$F$11:$CR$11,0))/100000,\"\")","v":143.43721788452919},{"$f":"IFERROR(O87*INDEX('Energy Prices'!$F$12:$CR$17,MATCH('Data Input - Option 3'!$D95,'Energy Prices'!$C$12:$C$17,0),MATCH('Data Input - Option 3'!O$7,'Energy Prices'!$F$11:$CR$11,0))/100000,\"\")","v":143.60949069723941},{"$f":"IFERROR(P87*INDEX('Energy Prices'!$F$12:$CR$17,MATCH('Data Input - Option 3'!$D95,'Energy Prices'!$C$12:$C$17,0),MATCH('Data Input - Option 3'!P$7,'Energy Prices'!$F$11:$CR$11,0))/100000,\"\")","v":0},{"$f":"IFERROR(Q87*INDEX('Energy Prices'!$F$12:$CR$17,MATCH('Data Input - Option 3'!$D95,'Energy Prices'!$C$12:$C$17,0),MATCH('Data Input - Option 3'!Q$7,'Energy Prices'!$F$11:$CR$11,0))/100000,\"\")","v":0},{"$f":"IFERROR(R87*INDEX('Energy Prices'!$F$12:$CR$17,MATCH('Data Input - Option 3'!$D95,'Energy Prices'!$C$12:$C$17,0),MATCH('Data Input - Option 3'!R$7,'Energy Prices'!$F$11:$CR$11,0))/100000,\"\")","v":0},{"$f":"IFERROR(S87*INDEX('Energy Prices'!$F$12:$CR$17,MATCH('Data Input - Option 3'!$D95,'Energy Prices'!$C$12:$C$17,0),MATCH('Data Input - Option 3'!S$7,'Energy Prices'!$F$11:$CR$11,0))/100000,\"\")","v":0},{"$f":"IFERROR(T87*INDEX('Energy Prices'!$F$12:$CR$17,MATCH('Data Input - Option 3'!$D95,'Energy Prices'!$C$12:$C$17,0),MATCH('Data Input - Option 3'!T$7,'Energy Prices'!$F$11:$CR$11,0))/100000,\"\")","v":0},{"$f":"IFERROR(U87*INDEX('Energy Prices'!$F$12:$CR$17,MATCH('Data Input - Option 3'!$D95,'Energy Prices'!$C$12:$C$17,0),MATCH('Data Input - Option 3'!U$7,'Energy Prices'!$F$11:$CR$11,0))/100000,\"\")","v":0},{"$f":"IFERROR(V87*INDEX('Energy Prices'!$F$12:$CR$17,MATCH('Data Input - Option 3'!$D95,'Energy Prices'!$C$12:$C$17,0),MATCH('Data Input - Option 3'!V$7,'Energy Prices'!$F$11:$CR$11,0))/100000,\"\")","v":0},{"$f":"IFERROR(W87*INDEX('Energy Prices'!$F$12:$CR$17,MATCH('Data Input - Option 3'!$D95,'Energy Prices'!$C$12:$C$17,0),MATCH('Data Input - Option 3'!W$7,'Energy Prices'!$F$11:$CR$11,0))/100000,\"\")","v":0},{"$f":"IFERROR(X87*INDEX('Energy Prices'!$F$12:$CR$17,MATCH('Data Input - Option 3'!$D95,'Energy Prices'!$C$12:$C$17,0),MATCH('Data Input - Option 3'!X$7,'Energy Prices'!$F$11:$CR$11,0))/100000,\"\")","v":0},{"$f":"IFERROR(Y87*INDEX('Energy Prices'!$F$12:$CR$17,MATCH('Data Input - Option 3'!$D95,'Energy Prices'!$C$12:$C$17,0),MATCH('Data Input - Option 3'!Y$7,'Energy Prices'!$F$11:$CR$11,0))/100000,\"\")","v":0},{"$f":"IFERROR(Z87*INDEX('Energy Prices'!$F$12:$CR$17,MATCH('Data Input - Option 3'!$D95,'Energy Prices'!$C$12:$C$17,0),MATCH('Data Input - Option 3'!Z$7,'Energy Prices'!$F$11:$CR$11,0))/100000,\"\")","v":0},{"$f":"IFERROR(AA87*INDEX('Energy Prices'!$F$12:$CR$17,MATCH('Data Input - Option 3'!$D95,'Energy Prices'!$C$12:$C$17,0),MATCH('Data Input - Option 3'!AA$7,'Energy Prices'!$F$11:$CR$11,0))/100000,\"\")","v":0},{"$f":"IFERROR(AB87*INDEX('Energy Prices'!$F$12:$CR$17,MATCH('Data Input - Option 3'!$D95,'Energy Prices'!$C$12:$C$17,0),MATCH('Data Input - Option 3'!AB$7,'Energy Prices'!$F$11:$CR$11,0))/100000,\"\")","v":0},{"$f":"IFERROR(AC87*INDEX('Energy Prices'!$F$12:$CR$17,MATCH('Data Input - Option 3'!$D95,'Energy Prices'!$C$12:$C$17,0),MATCH('Data Input - Option 3'!AC$7,'Energy Prices'!$F$11:$CR$11,0))/100000,\"\")","v":0},{"$f":"IFERROR(AD87*INDEX('Energy Prices'!$F$12:$CR$17,MATCH('Data Input - Option 3'!$D95,'Energy Prices'!$C$12:$C$17,0),MATCH('Data Input - Option 3'!AD$7,'Energy Prices'!$F$11:$CR$11,0))/100000,\"\")","v":0},{"$f":"IFERROR(AE87*INDEX('Energy Prices'!$F$12:$CR$17,MATCH('Data Input - Option 3'!$D95,'Energy Prices'!$C$12:$C$17,0),MATCH('Data Input - Option 3'!AE$7,'Energy Prices'!$F$11:$CR$11,0))/100000,\"\")","v":0},{"$f":"IFERROR(AF87*INDEX('Energy Prices'!$F$12:$CR$17,MATCH('Data Input - Option 3'!$D95,'Energy Prices'!$C$12:$C$17,0),MATCH('Data Input - Option 3'!AF$7,'Energy Prices'!$F$11:$CR$11,0))/100000,\"\")","v":0},{"$f":"IFERROR(AG87*INDEX('Energy Prices'!$F$12:$CR$17,MATCH('Data Input - Option 3'!$D95,'Energy Prices'!$C$12:$C$17,0),MATCH('Data Input - Option 3'!AG$7,'Energy Prices'!$F$11:$CR$11,0))/100000,\"\")","v":0},{"$f":"IFERROR(AH87*INDEX('Energy Prices'!$F$12:$CR$17,MATCH('Data Input - Option 3'!$D95,'Energy Prices'!$C$12:$C$17,0),MATCH('Data Input - Option 3'!AH$7,'Energy Prices'!$F$11:$CR$11,0))/100000,\"\")","v":0},{"$f":"IFERROR(AI87*INDEX('Energy Prices'!$F$12:$CR$17,MATCH('Data Input - Option 3'!$D95,'Energy Prices'!$C$12:$C$17,0),MATCH('Data Input - Option 3'!AI$7,'Energy Prices'!$F$11:$CR$11,0))/100000,\"\")","v":0},{"$f":"IFERROR(AJ87*INDEX('Energy Prices'!$F$12:$CR$17,MATCH('Data Input - Option 3'!$D95,'Energy Prices'!$C$12:$C$17,0),MATCH('Data Input - Option 3'!AJ$7,'Energy Prices'!$F$11:$CR$11,0))/100000,\"\")","v":0},{"$f":"IFERROR(AK87*INDEX('Energy Prices'!$F$12:$CR$17,MATCH('Data Input - Option 3'!$D95,'Energy Prices'!$C$12:$C$17,0),MATCH('Data Input - Option 3'!AK$7,'Energy Prices'!$F$11:$CR$11,0))/100000,\"\")","v":0},{"$f":"IFERROR(AL87*INDEX('Energy Prices'!$F$12:$CR$17,MATCH('Data Input - Option 3'!$D95,'Energy Prices'!$C$12:$C$17,0),MATCH('Data Input - Option 3'!AL$7,'Energy Prices'!$F$11:$CR$11,0))/100000,\"\")","v":0},{"$f":"IFERROR(AM87*INDEX('Energy Prices'!$F$12:$CR$17,MATCH('Data Input - Option 3'!$D95,'Energy Prices'!$C$12:$C$17,0),MATCH('Data Input - Option 3'!AM$7,'Energy Prices'!$F$11:$CR$11,0))/100000,\"\")","v":""},{"$f":"IFERROR(AN87*INDEX('Energy Prices'!$F$12:$CR$17,MATCH('Data Input - Option 3'!$D95,'Energy Prices'!$C$12:$C$17,0),MATCH('Data Input - Option 3'!AN$7,'Energy Prices'!$F$11:$CR$11,0))/100000,\"\")","v":""},{"$f":"IFERROR(AO87*INDEX('Energy Prices'!$F$12:$CR$17,MATCH('Data Input - Option 3'!$D95,'Energy Prices'!$C$12:$C$17,0),MATCH('Data Input - Option 3'!AO$7,'Energy Prices'!$F$11:$CR$11,0))/100000,\"\")","v":""},{"$f":"IFERROR(AP87*INDEX('Energy Prices'!$F$12:$CR$17,MATCH('Data Input - Option 3'!$D95,'Energy Prices'!$C$12:$C$17,0),MATCH('Data Input - Option 3'!AP$7,'Energy Prices'!$F$11:$CR$11,0))/100000,\"\")","v":""},{"$f":"IFERROR(AQ87*INDEX('Energy Prices'!$F$12:$CR$17,MATCH('Data Input - Option 3'!$D95,'Energy Prices'!$C$12:$C$17,0),MATCH('Data Input - Option 3'!AQ$7,'Energy Prices'!$F$11:$CR$11,0))/100000,\"\")","v":""},{"$f":"IFERROR(AR87*INDEX('Energy Prices'!$F$12:$CR$17,MATCH('Data Input - Option 3'!$D95,'Energy Prices'!$C$12:$C$17,0),MATCH('Data Input - Option 3'!AR$7,'Energy Prices'!$F$11:$CR$11,0))/100000,\"\")","v":""},{"$f":"IFERROR(AS87*INDEX('Energy Prices'!$F$12:$CR$17,MATCH('Data Input - Option 3'!$D95,'Energy Prices'!$C$12:$C$17,0),MATCH('Data Input - Option 3'!AS$7,'Energy Prices'!$F$11:$CR$11,0))/100000,\"\")","v":""},{"$f":"IFERROR(AT87*INDEX('Energy Prices'!$F$12:$CR$17,MATCH('Data Input - Option 3'!$D95,'Energy Prices'!$C$12:$C$17,0),MATCH('Data Input - Option 3'!AT$7,'Energy Prices'!$F$11:$CR$11,0))/100000,\"\")","v":""},{"$f":"IFERROR(AU87*INDEX('Energy Prices'!$F$12:$CR$17,MATCH('Data Input - Option 3'!$D95,'Energy Prices'!$C$12:$C$17,0),MATCH('Data Input - Option 3'!AU$7,'Energy Prices'!$F$11:$CR$11,0))/100000,\"\")","v":""},{"$f":"IFERROR(AV87*INDEX('Energy Prices'!$F$12:$CR$17,MATCH('Data Input - Option 3'!$D95,'Energy Prices'!$C$12:$C$17,0),MATCH('Data Input - Option 3'!AV$7,'Energy Prices'!$F$11:$CR$11,0))/100000,\"\")","v":""},{"$f":"IFERROR(AW87*INDEX('Energy Prices'!$F$12:$CR$17,MATCH('Data Input - Option 3'!$D95,'Energy Prices'!$C$12:$C$17,0),MATCH('Data Input - Option 3'!AW$7,'Energy Prices'!$F$11:$CR$11,0))/100000,\"\")","v":""},{"$f":"IFERROR(AX87*INDEX('Energy Prices'!$F$12:$CR$17,MATCH('Data Input - Option 3'!$D95,'Energy Prices'!$C$12:$C$17,0),MATCH('Data Input - Option 3'!AX$7,'Energy Prices'!$F$11:$CR$11,0))/100000,\"\")","v":""},{"$f":"IFERROR(AY87*INDEX('Energy Prices'!$F$12:$CR$17,MATCH('Data Input - Option 3'!$D95,'Energy Prices'!$C$12:$C$17,0),MATCH('Data Input - Option 3'!AY$7,'Energy Prices'!$F$11:$CR$11,0))/100000,\"\")","v":""},{"$f":"IFERROR(AZ87*INDEX('Energy Prices'!$F$12:$CR$17,MATCH('Data Input - Option 3'!$D95,'Energy Prices'!$C$12:$C$17,0),MATCH('Data Input - Option 3'!AZ$7,'Energy Prices'!$F$11:$CR$11,0))/100000,\"\")","v":""},{"$f":"IFERROR(BA87*INDEX('Energy Prices'!$F$12:$CR$17,MATCH('Data Input - Option 3'!$D95,'Energy Prices'!$C$12:$C$17,0),MATCH('Data Input - Option 3'!BA$7,'Energy Prices'!$F$11:$CR$11,0))/100000,\"\")","v":""},{"$f":"IFERROR(BB87*INDEX('Energy Prices'!$F$12:$CR$17,MATCH('Data Input - Option 3'!$D95,'Energy Prices'!$C$12:$C$17,0),MATCH('Data Input - Option 3'!BB$7,'Energy Prices'!$F$11:$CR$11,0))/100000,\"\")","v":""},{"$f":"IFERROR(BC87*INDEX('Energy Prices'!$F$12:$CR$17,MATCH('Data Input - Option 3'!$D95,'Energy Prices'!$C$12:$C$17,0),MATCH('Data Input - Option 3'!BC$7,'Energy Prices'!$F$11:$CR$11,0))/100000,\"\")","v":""},{"$f":"IFERROR(BD87*INDEX('Energy Prices'!$F$12:$CR$17,MATCH('Data Input - Option 3'!$D95,'Energy Prices'!$C$12:$C$17,0),MATCH('Data Input - Option 3'!BD$7,'Energy Prices'!$F$11:$CR$11,0))/100000,\"\")","v":""},{"$f":"IFERROR(BE87*INDEX('Energy Prices'!$F$12:$CR$17,MATCH('Data Input - Option 3'!$D95,'Energy Prices'!$C$12:$C$17,0),MATCH('Data Input - Option 3'!BE$7,'Energy Prices'!$F$11:$CR$11,0))/100000,\"\")","v":""},{"$f":"IFERROR(BF87*INDEX('Energy Prices'!$F$12:$CR$17,MATCH('Data Input - Option 3'!$D95,'Energy Prices'!$C$12:$C$17,0),MATCH('Data Input - Option 3'!BF$7,'Energy Prices'!$F$11:$CR$11,0))/100000,\"\")","v":""},{"$f":"IFERROR(BG87*INDEX('Energy Prices'!$F$12:$CR$17,MATCH('Data Input - Option 3'!$D95,'Energy Prices'!$C$12:$C$17,0),MATCH('Data Input - Option 3'!BG$7,'Energy Prices'!$F$11:$CR$11,0))/100000,\"\")","v":""},{"$f":"IFERROR(BH87*INDEX('Energy Prices'!$F$12:$CR$17,MATCH('Data Input - Option 3'!$D95,'Energy Prices'!$C$12:$C$17,0),MATCH('Data Input - Option 3'!BH$7,'Energy Prices'!$F$11:$CR$11,0))/100000,\"\")","v":""},{"$f":"IFERROR(BI87*INDEX('Energy Prices'!$F$12:$CR$17,MATCH('Data Input - Option 3'!$D95,'Energy Prices'!$C$12:$C$17,0),MATCH('Data Input - Option 3'!BI$7,'Energy Prices'!$F$11:$CR$11,0))/100000,\"\")","v":""},{"$f":"IFERROR(BJ87*INDEX('Energy Prices'!$F$12:$CR$17,MATCH('Data Input - Option 3'!$D95,'Energy Prices'!$C$12:$C$17,0),MATCH('Data Input - Option 3'!BJ$7,'Energy Prices'!$F$11:$CR$11,0))/100000,\"\")","v":""},{"$f":"IFERROR(BK87*INDEX('Energy Prices'!$F$12:$CR$17,MATCH('Data Input - Option 3'!$D95,'Energy Prices'!$C$12:$C$17,0),MATCH('Data Input - Option 3'!BK$7,'Energy Prices'!$F$11:$CR$11,0))/100000,\"\")","v":""},{"$f":"IFERROR(BL87*INDEX('Energy Prices'!$F$12:$CR$17,MATCH('Data Input - Option 3'!$D95,'Energy Prices'!$C$12:$C$17,0),MATCH('Data Input - Option 3'!BL$7,'Energy Prices'!$F$11:$CR$11,0))/100000,\"\")","v":""},{"$f":"IFERROR(BM87*INDEX('Energy Prices'!$F$12:$CR$17,MATCH('Data Input - Option 3'!$D95,'Energy Prices'!$C$12:$C$17,0),MATCH('Data Input - Option 3'!BM$7,'Energy Prices'!$F$11:$CR$11,0))/100000,\"\")","v":""},{"$f":"IFERROR(BN87*INDEX('Energy Prices'!$F$12:$CR$17,MATCH('Data Input - Option 3'!$D95,'Energy Prices'!$C$12:$C$17,0),MATCH('Data Input - Option 3'!BN$7,'Energy Prices'!$F$11:$CR$11,0))/100000,\"\")","v":""},{"$f":"IFERROR(BO87*INDEX('Energy Prices'!$F$12:$CR$17,MATCH('Data Input - Option 3'!$D95,'Energy Prices'!$C$12:$C$17,0),MATCH('Data Input - Option 3'!BO$7,'Energy Prices'!$F$11:$CR$11,0))/100000,\"\")","v":""},{"$f":"IFERROR(BP87*INDEX('Energy Prices'!$F$12:$CR$17,MATCH('Data Input - Option 3'!$D95,'Energy Prices'!$C$12:$C$17,0),MATCH('Data Input - Option 3'!BP$7,'Energy Prices'!$F$11:$CR$11,0))/100000,\"\")","v":""},{"$f":"IFERROR(BQ87*INDEX('Energy Prices'!$F$12:$CR$17,MATCH('Data Input - Option 3'!$D95,'Energy Prices'!$C$12:$C$17,0),MATCH('Data Input - Option 3'!BQ$7,'Energy Prices'!$F$11:$CR$11,0))/100000,\"\")","v":""},{"$f":"IFERROR(BR87*INDEX('Energy Prices'!$F$12:$CR$17,MATCH('Data Input - Option 3'!$D95,'Energy Prices'!$C$12:$C$17,0),MATCH('Data Input - Option 3'!BR$7,'Energy Prices'!$F$11:$CR$11,0))/100000,\"\")","v":""},{"$f":"IFERROR(BS87*INDEX('Energy Prices'!$F$12:$CR$17,MATCH('Data Input - Option 3'!$D95,'Energy Prices'!$C$12:$C$17,0),MATCH('Data Input - Option 3'!BS$7,'Energy Prices'!$F$11:$CR$11,0))/100000,\"\")","v":""},{"$f":"IFERROR(BT87*INDEX('Energy Prices'!$F$12:$CR$17,MATCH('Data Input - Option 3'!$D95,'Energy Prices'!$C$12:$C$17,0),MATCH('Data Input - Option 3'!BT$7,'Energy Prices'!$F$11:$CR$11,0))/100000,\"\")","v":""},{"$f":"IFERROR(BU87*INDEX('Energy Prices'!$F$12:$CR$17,MATCH('Data Input - Option 3'!$D95,'Energy Prices'!$C$12:$C$17,0),MATCH('Data Input - Option 3'!BU$7,'Energy Prices'!$F$11:$CR$11,0))/100000,\"\")","v":""},{"$f":"IFERROR(BV87*INDEX('Energy Prices'!$F$12:$CR$17,MATCH('Data Input - Option 3'!$D95,'Energy Prices'!$C$12:$C$17,0),MATCH('Data Input - Option 3'!BV$7,'Energy Prices'!$F$11:$CR$11,0))/100000,\"\")","v":""},{"$f":"IFERROR(BW87*INDEX('Energy Prices'!$F$12:$CR$17,MATCH('Data Input - Option 3'!$D95,'Energy Prices'!$C$12:$C$17,0),MATCH('Data Input - Option 3'!BW$7,'Energy Prices'!$F$11:$CR$11,0))/100000,\"\")","v":""},{"$f":"IFERROR(BX87*INDEX('Energy Prices'!$F$12:$CR$17,MATCH('Data Input - Option 3'!$D95,'Energy Prices'!$C$12:$C$17,0),MATCH('Data Input - Option 3'!BX$7,'Energy Prices'!$F$11:$CR$11,0))/100000,\"\")","v":""},{"$f":"IFERROR(BY87*INDEX('Energy Prices'!$F$12:$CR$17,MATCH('Data Input - Option 3'!$D95,'Energy Prices'!$C$12:$C$17,0),MATCH('Data Input - Option 3'!BY$7,'Energy Prices'!$F$11:$CR$11,0))/100000,\"\")","v":""},{"$f":"IFERROR(BZ87*INDEX('Energy Prices'!$F$12:$CR$17,MATCH('Data Input - Option 3'!$D95,'Energy Prices'!$C$12:$C$17,0),MATCH('Data Input - Option 3'!BZ$7,'Energy Prices'!$F$11:$CR$11,0))/100000,\"\")","v":""},{"$f":"IFERROR(CA87*INDEX('Energy Prices'!$F$12:$CR$17,MATCH('Data Input - Option 3'!$D95,'Energy Prices'!$C$12:$C$17,0),MATCH('Data Input - Option 3'!CA$7,'Energy Prices'!$F$11:$CR$11,0))/100000,\"\")","v":""},{"$f":"IFERROR(CB87*INDEX('Energy Prices'!$F$12:$CR$17,MATCH('Data Input - Option 3'!$D95,'Energy Prices'!$C$12:$C$17,0),MATCH('Data Input - Option 3'!CB$7,'Energy Prices'!$F$11:$CR$11,0))/100000,\"\")","v":""},{"$f":"IFERROR(CC87*INDEX('Energy Prices'!$F$12:$CR$17,MATCH('Data Input - Option 3'!$D95,'Energy Prices'!$C$12:$C$17,0),MATCH('Data Input - Option 3'!CC$7,'Energy Prices'!$F$11:$CR$11,0))/100000,\"\")","v":""},{"$f":"IFERROR(CD87*INDEX('Energy Prices'!$F$12:$CR$17,MATCH('Data Input - Option 3'!$D95,'Energy Prices'!$C$12:$C$17,0),MATCH('Data Input - Option 3'!CD$7,'Energy Prices'!$F$11:$CR$11,0))/100000,\"\")","v":""},{"$f":"IFERROR(CE87*INDEX('Energy Prices'!$F$12:$CR$17,MATCH('Data Input - Option 3'!$D95,'Energy Prices'!$C$12:$C$17,0),MATCH('Data Input - Option 3'!CE$7,'Energy Prices'!$F$11:$CR$11,0))/100000,\"\")","v":""},{"$f":"IFERROR(CF87*INDEX('Energy Prices'!$F$12:$CR$17,MATCH('Data Input - Option 3'!$D95,'Energy Prices'!$C$12:$C$17,0),MATCH('Data Input - Option 3'!CF$7,'Energy Prices'!$F$11:$CR$11,0))/100000,\"\")","v":""},{"$f":"IFERROR(CG87*INDEX('Energy Prices'!$F$12:$CR$17,MATCH('Data Input - Option 3'!$D95,'Energy Prices'!$C$12:$C$17,0),MATCH('Data Input - Option 3'!CG$7,'Energy Prices'!$F$11:$CR$11,0))/100000,\"\")","v":""},{"$f":"IFERROR(CH87*INDEX('Energy Prices'!$F$12:$CR$17,MATCH('Data Input - Option 3'!$D95,'Energy Prices'!$C$12:$C$17,0),MATCH('Data Input - Option 3'!CH$7,'Energy Prices'!$F$11:$CR$11,0))/100000,\"\")","v":""},{"$f":"IFERROR(CI87*INDEX('Energy Prices'!$F$12:$CR$17,MATCH('Data Input - Option 3'!$D95,'Energy Prices'!$C$12:$C$17,0),MATCH('Data Input - Option 3'!CI$7,'Energy Prices'!$F$11:$CR$11,0))/100000,\"\")","v":""},{"$f":"IFERROR(CJ87*INDEX('Energy Prices'!$F$12:$CR$17,MATCH('Data Input - Option 3'!$D95,'Energy Prices'!$C$12:$C$17,0),MATCH('Data Input - Option 3'!CJ$7,'Energy Prices'!$F$11:$CR$11,0))/100000,\"\")","v":""},{"$f":"IFERROR(CK87*INDEX('Energy Prices'!$F$12:$CR$17,MATCH('Data Input - Option 3'!$D95,'Energy Prices'!$C$12:$C$17,0),MATCH('Data Input - Option 3'!CK$7,'Energy Prices'!$F$11:$CR$11,0))/100000,\"\")","v":""},{"$f":"IFERROR(CL87*INDEX('Energy Prices'!$F$12:$CR$17,MATCH('Data Input - Option 3'!$D95,'Energy Prices'!$C$12:$C$17,0),MATCH('Data Input - Option 3'!CL$7,'Energy Prices'!$F$11:$CR$11,0))/100000,\"\")","v":""},{"$f":"IFERROR(CM87*INDEX('Energy Prices'!$F$12:$CR$17,MATCH('Data Input - Option 3'!$D95,'Energy Prices'!$C$12:$C$17,0),MATCH('Data Input - Option 3'!CM$7,'Energy Prices'!$F$11:$CR$11,0))/100000,\"\")","v":""},{"$f":"IFERROR(CN87*INDEX('Energy Prices'!$F$12:$CR$17,MATCH('Data Input - Option 3'!$D95,'Energy Prices'!$C$12:$C$17,0),MATCH('Data Input - Option 3'!CN$7,'Energy Prices'!$F$11:$CR$11,0))/100000,\"\")","v":""},{"$f":"IFERROR(CO87*INDEX('Energy Prices'!$F$12:$CR$17,MATCH('Data Input - Option 3'!$D95,'Energy Prices'!$C$12:$C$17,0),MATCH('Data Input - Option 3'!CO$7,'Energy Prices'!$F$11:$CR$11,0))/100000,\"\")","v":""},{"$f":"IFERROR(CP87*INDEX('Energy Prices'!$F$12:$CR$17,MATCH('Data Input - Option 3'!$D95,'Energy Prices'!$C$12:$C$17,0),MATCH('Data Input - Option 3'!CP$7,'Energy Prices'!$F$11:$CR$11,0))/100000,\"\")","v":""},{"$f":"IFERROR(CQ87*INDEX('Energy Prices'!$F$12:$CR$17,MATCH('Data Input - Option 3'!$D95,'Energy Prices'!$C$12:$C$17,0),MATCH('Data Input - Option 3'!CQ$7,'Energy Prices'!$F$11:$CR$11,0))/100000,\"\")","v":""},{"$f":"IFERROR(CR87*INDEX('Energy Prices'!$F$12:$CR$17,MATCH('Data Input - Option 3'!$D95,'Energy Prices'!$C$12:$C$17,0),MATCH('Data Input - Option 3'!CR$7,'Energy Prices'!$F$11:$CR$11,0))/100000,\"\")","v":""},{"$f":"IFERROR(CS87*INDEX('Energy Prices'!$F$12:$CR$17,MATCH('Data Input - Option 3'!$D95,'Energy Prices'!$C$12:$C$17,0),MATCH('Data Input - Option 3'!CS$7,'Energy Prices'!$F$11:$CR$11,0))/100000,\"\")","v":""},{"$f":"IFERROR(CT87*INDEX('Energy Prices'!$F$12:$CR$17,MATCH('Data Input - Option 3'!$D95,'Energy Prices'!$C$12:$C$17,0),MATCH('Data Input - Option 3'!CT$7,'Energy Prices'!$F$11:$CR$11,0))/100000,\"\")","v":""},{"$f":"IFERROR(CU87*INDEX('Energy Prices'!$F$12:$CR$17,MATCH('Data Input - Option 3'!$D95,'Energy Prices'!$C$12:$C$17,0),MATCH('Data Input - Option 3'!CU$7,'Energy Prices'!$F$11:$CR$11,0))/100000,\"\")","v":""},{"$f":"IFERROR(CV87*INDEX('Energy Prices'!$F$12:$CR$17,MATCH('Data Input - Option 3'!$D95,'Energy Prices'!$C$12:$C$17,0),MATCH('Data Input - Option 3'!CV$7,'Energy Prices'!$F$11:$CR$11,0))/100000,\"\")","v":""},{"$f":"IFERROR(CW87*INDEX('Energy Prices'!$F$12:$CR$17,MATCH('Data Input - Option 3'!$D95,'Energy Prices'!$C$12:$C$17,0),MATCH('Data Input - Option 3'!CW$7,'Energy Prices'!$F$11:$CR$11,0))/100000,\"\")","v":""},{"$f":"IFERROR(CX87*INDEX('Energy Prices'!$F$12:$CR$17,MATCH('Data Input - Option 3'!$D95,'Energy Prices'!$C$12:$C$17,0),MATCH('Data Input - Option 3'!CX$7,'Energy Prices'!$F$11:$CR$11,0))/100000,\"\")","v":""},{"$f":"IFERROR(CY87*INDEX('Energy Prices'!$F$12:$CR$17,MATCH('Data Input - Option 3'!$D95,'Energy Prices'!$C$12:$C$17,0),MATCH('Data Input - Option 3'!CY$7,'Energy Prices'!$F$11:$CR$11,0))/100000,\"\")","v":""},{"$f":"IFERROR(CZ87*INDEX('Energy Prices'!$F$12:$CR$17,MATCH('Data Input - Option 3'!$D95,'Energy Prices'!$C$12:$C$17,0),MATCH('Data Input - Option 3'!CZ$7,'Energy Prices'!$F$11:$CR$11,0))/100000,\"\")","v":""},{"$f":"IFERROR(DA87*INDEX('Energy Prices'!$F$12:$CR$17,MATCH('Data Input - Option 3'!$D95,'Energy Prices'!$C$12:$C$17,0),MATCH('Data Input - Option 3'!DA$7,'Energy Prices'!$F$11:$CR$11,0))/100000,\"\")","v":""},{"$f":"IFERROR(DB87*INDEX('Energy Prices'!$F$12:$CR$17,MATCH('Data Input - Option 3'!$D95,'Energy Prices'!$C$12:$C$17,0),MATCH('Data Input - Option 3'!DB$7,'Energy Prices'!$F$11:$CR$11,0))/100000,\"\")","v":""},{"$f":"IFERROR(DC87*INDEX('Energy Prices'!$F$12:$CR$17,MATCH('Data Input - Option 3'!$D95,'Energy Prices'!$C$12:$C$17,0),MATCH('Data Input - Option 3'!DC$7,'Energy Prices'!$F$11:$CR$11,0))/100000,\"\")","v":""}]
[null,null,null,"Road - Petrol","£000's","(Auto calculated value)",null,{"$f":"IFERROR(H88*INDEX('Energy Prices'!$F$12:$CR$17,MATCH('Data Input - Option 3'!$D96,'Energy Prices'!$C$12:$C$17,0),MATCH('Data Input - Option 3'!H$7,'Energy Prices'!$F$11:$CR$11,0))/100000,\"\")","v":0},{"$f":"IFERROR(I88*INDEX('Energy Prices'!$F$12:$CR$17,MATCH('Data Input - Option 3'!$D96,'Energy Prices'!$C$12:$C$17,0),MATCH('Data Input - Option 3'!I$7,'Energy Prices'!$F$11:$CR$11,0))/100000,\"\")","v":0},{"$f":"IFERROR(J88*INDEX('Energy Prices'!$F$12:$CR$17,MATCH('Data Input - Option 3'!$D96,'Energy Prices'!$C$12:$C$17,0),MATCH('Data Input - Option 3'!J$7,'Energy Prices'!$F$11:$CR$11,0))/100000,\"\")","v":0},{"$f":"IFERROR(K88*INDEX('Energy Prices'!$F$12:$CR$17,MATCH('Data Input - Option 3'!$D96,'Energy Prices'!$C$12:$C$17,0),MATCH('Data Input - Option 3'!K$7,'Energy Prices'!$F$11:$CR$11,0))/100000,\"\")","v":0},{"$f":"IFERROR(L88*INDEX('Energy Prices'!$F$12:$CR$17,MATCH('Data Input - Option 3'!$D96,'Energy Prices'!$C$12:$C$17,0),MATCH('Data Input - Option 3'!L$7,'Energy Prices'!$F$11:$CR$11,0))/100000,\"\")","v":0},{"$f":"IFERROR(M88*INDEX('Energy Prices'!$F$12:$CR$17,MATCH('Data Input - Option 3'!$D96,'Energy Prices'!$C$12:$C$17,0),MATCH('Data Input - Option 3'!M$7,'Energy Prices'!$F$11:$CR$11,0))/100000,\"\")","v":0},{"$f":"IFERROR(N88*INDEX('Energy Prices'!$F$12:$CR$17,MATCH('Data Input - Option 3'!$D96,'Energy Prices'!$C$12:$C$17,0),MATCH('Data Input - Option 3'!N$7,'Energy Prices'!$F$11:$CR$11,0))/100000,\"\")","v":0},{"$f":"IFERROR(O88*INDEX('Energy Prices'!$F$12:$CR$17,MATCH('Data Input - Option 3'!$D96,'Energy Prices'!$C$12:$C$17,0),MATCH('Data Input - Option 3'!O$7,'Energy Prices'!$F$11:$CR$11,0))/100000,\"\")","v":0},{"$f":"IFERROR(P88*INDEX('Energy Prices'!$F$12:$CR$17,MATCH('Data Input - Option 3'!$D96,'Energy Prices'!$C$12:$C$17,0),MATCH('Data Input - Option 3'!P$7,'Energy Prices'!$F$11:$CR$11,0))/100000,\"\")","v":0},{"$f":"IFERROR(Q88*INDEX('Energy Prices'!$F$12:$CR$17,MATCH('Data Input - Option 3'!$D96,'Energy Prices'!$C$12:$C$17,0),MATCH('Data Input - Option 3'!Q$7,'Energy Prices'!$F$11:$CR$11,0))/100000,\"\")","v":0},{"$f":"IFERROR(R88*INDEX('Energy Prices'!$F$12:$CR$17,MATCH('Data Input - Option 3'!$D96,'Energy Prices'!$C$12:$C$17,0),MATCH('Data Input - Option 3'!R$7,'Energy Prices'!$F$11:$CR$11,0))/100000,\"\")","v":0},{"$f":"IFERROR(S88*INDEX('Energy Prices'!$F$12:$CR$17,MATCH('Data Input - Option 3'!$D96,'Energy Prices'!$C$12:$C$17,0),MATCH('Data Input - Option 3'!S$7,'Energy Prices'!$F$11:$CR$11,0))/100000,\"\")","v":0},{"$f":"IFERROR(T88*INDEX('Energy Prices'!$F$12:$CR$17,MATCH('Data Input - Option 3'!$D96,'Energy Prices'!$C$12:$C$17,0),MATCH('Data Input - Option 3'!T$7,'Energy Prices'!$F$11:$CR$11,0))/100000,\"\")","v":0},{"$f":"IFERROR(U88*INDEX('Energy Prices'!$F$12:$CR$17,MATCH('Data Input - Option 3'!$D96,'Energy Prices'!$C$12:$C$17,0),MATCH('Data Input - Option 3'!U$7,'Energy Prices'!$F$11:$CR$11,0))/100000,\"\")","v":0},{"$f":"IFERROR(V88*INDEX('Energy Prices'!$F$12:$CR$17,MATCH('Data Input - Option 3'!$D96,'Energy Prices'!$C$12:$C$17,0),MATCH('Data Input - Option 3'!V$7,'Energy Prices'!$F$11:$CR$11,0))/100000,\"\")","v":0},{"$f":"IFERROR(W88*INDEX('Energy Prices'!$F$12:$CR$17,MATCH('Data Input - Option 3'!$D96,'Energy Prices'!$C$12:$C$17,0),MATCH('Data Input - Option 3'!W$7,'Energy Prices'!$F$11:$CR$11,0))/100000,\"\")","v":0},{"$f":"IFERROR(X88*INDEX('Energy Prices'!$F$12:$CR$17,MATCH('Data Input - Option 3'!$D96,'Energy Prices'!$C$12:$C$17,0),MATCH('Data Input - Option 3'!X$7,'Energy Prices'!$F$11:$CR$11,0))/100000,\"\")","v":0},{"$f":"IFERROR(Y88*INDEX('Energy Prices'!$F$12:$CR$17,MATCH('Data Input - Option 3'!$D96,'Energy Prices'!$C$12:$C$17,0),MATCH('Data Input - Option 3'!Y$7,'Energy Prices'!$F$11:$CR$11,0))/100000,\"\")","v":0},{"$f":"IFERROR(Z88*INDEX('Energy Prices'!$F$12:$CR$17,MATCH('Data Input - Option 3'!$D96,'Energy Prices'!$C$12:$C$17,0),MATCH('Data Input - Option 3'!Z$7,'Energy Prices'!$F$11:$CR$11,0))/100000,\"\")","v":0},{"$f":"IFERROR(AA88*INDEX('Energy Prices'!$F$12:$CR$17,MATCH('Data Input - Option 3'!$D96,'Energy Prices'!$C$12:$C$17,0),MATCH('Data Input - Option 3'!AA$7,'Energy Prices'!$F$11:$CR$11,0))/100000,\"\")","v":0},{"$f":"IFERROR(AB88*INDEX('Energy Prices'!$F$12:$CR$17,MATCH('Data Input - Option 3'!$D96,'Energy Prices'!$C$12:$C$17,0),MATCH('Data Input - Option 3'!AB$7,'Energy Prices'!$F$11:$CR$11,0))/100000,\"\")","v":0},{"$f":"IFERROR(AC88*INDEX('Energy Prices'!$F$12:$CR$17,MATCH('Data Input - Option 3'!$D96,'Energy Prices'!$C$12:$C$17,0),MATCH('Data Input - Option 3'!AC$7,'Energy Prices'!$F$11:$CR$11,0))/100000,\"\")","v":0},{"$f":"IFERROR(AD88*INDEX('Energy Prices'!$F$12:$CR$17,MATCH('Data Input - Option 3'!$D96,'Energy Prices'!$C$12:$C$17,0),MATCH('Data Input - Option 3'!AD$7,'Energy Prices'!$F$11:$CR$11,0))/100000,\"\")","v":0},{"$f":"IFERROR(AE88*INDEX('Energy Prices'!$F$12:$CR$17,MATCH('Data Input - Option 3'!$D96,'Energy Prices'!$C$12:$C$17,0),MATCH('Data Input - Option 3'!AE$7,'Energy Prices'!$F$11:$CR$11,0))/100000,\"\")","v":0},{"$f":"IFERROR(AF88*INDEX('Energy Prices'!$F$12:$CR$17,MATCH('Data Input - Option 3'!$D96,'Energy Prices'!$C$12:$C$17,0),MATCH('Data Input - Option 3'!AF$7,'Energy Prices'!$F$11:$CR$11,0))/100000,\"\")","v":0},{"$f":"IFERROR(AG88*INDEX('Energy Prices'!$F$12:$CR$17,MATCH('Data Input - Option 3'!$D96,'Energy Prices'!$C$12:$C$17,0),MATCH('Data Input - Option 3'!AG$7,'Energy Prices'!$F$11:$CR$11,0))/100000,\"\")","v":0},{"$f":"IFERROR(AH88*INDEX('Energy Prices'!$F$12:$CR$17,MATCH('Data Input - Option 3'!$D96,'Energy Prices'!$C$12:$C$17,0),MATCH('Data Input - Option 3'!AH$7,'Energy Prices'!$F$11:$CR$11,0))/100000,\"\")","v":0},{"$f":"IFERROR(AI88*INDEX('Energy Prices'!$F$12:$CR$17,MATCH('Data Input - Option 3'!$D96,'Energy Prices'!$C$12:$C$17,0),MATCH('Data Input - Option 3'!AI$7,'Energy Prices'!$F$11:$CR$11,0))/100000,\"\")","v":0},{"$f":"IFERROR(AJ88*INDEX('Energy Prices'!$F$12:$CR$17,MATCH('Data Input - Option 3'!$D96,'Energy Prices'!$C$12:$C$17,0),MATCH('Data Input - Option 3'!AJ$7,'Energy Prices'!$F$11:$CR$11,0))/100000,\"\")","v":0},{"$f":"IFERROR(AK88*INDEX('Energy Prices'!$F$12:$CR$17,MATCH('Data Input - Option 3'!$D96,'Energy Prices'!$C$12:$C$17,0),MATCH('Data Input - Option 3'!AK$7,'Energy Prices'!$F$11:$CR$11,0))/100000,\"\")","v":0},{"$f":"IFERROR(AL88*INDEX('Energy Prices'!$F$12:$CR$17,MATCH('Data Input - Option 3'!$D96,'Energy Prices'!$C$12:$C$17,0),MATCH('Data Input - Option 3'!AL$7,'Energy Prices'!$F$11:$CR$11,0))/100000,\"\")","v":0},{"$f":"IFERROR(AM88*INDEX('Energy Prices'!$F$12:$CR$17,MATCH('Data Input - Option 3'!$D96,'Energy Prices'!$C$12:$C$17,0),MATCH('Data Input - Option 3'!AM$7,'Energy Prices'!$F$11:$CR$11,0))/100000,\"\")","v":""},{"$f":"IFERROR(AN88*INDEX('Energy Prices'!$F$12:$CR$17,MATCH('Data Input - Option 3'!$D96,'Energy Prices'!$C$12:$C$17,0),MATCH('Data Input - Option 3'!AN$7,'Energy Prices'!$F$11:$CR$11,0))/100000,\"\")","v":""},{"$f":"IFERROR(AO88*INDEX('Energy Prices'!$F$12:$CR$17,MATCH('Data Input - Option 3'!$D96,'Energy Prices'!$C$12:$C$17,0),MATCH('Data Input - Option 3'!AO$7,'Energy Prices'!$F$11:$CR$11,0))/100000,\"\")","v":""},{"$f":"IFERROR(AP88*INDEX('Energy Prices'!$F$12:$CR$17,MATCH('Data Input - Option 3'!$D96,'Energy Prices'!$C$12:$C$17,0),MATCH('Data Input - Option 3'!AP$7,'Energy Prices'!$F$11:$CR$11,0))/100000,\"\")","v":""},{"$f":"IFERROR(AQ88*INDEX('Energy Prices'!$F$12:$CR$17,MATCH('Data Input - Option 3'!$D96,'Energy Prices'!$C$12:$C$17,0),MATCH('Data Input - Option 3'!AQ$7,'Energy Prices'!$F$11:$CR$11,0))/100000,\"\")","v":""},{"$f":"IFERROR(AR88*INDEX('Energy Prices'!$F$12:$CR$17,MATCH('Data Input - Option 3'!$D96,'Energy Prices'!$C$12:$C$17,0),MATCH('Data Input - Option 3'!AR$7,'Energy Prices'!$F$11:$CR$11,0))/100000,\"\")","v":""},{"$f":"IFERROR(AS88*INDEX('Energy Prices'!$F$12:$CR$17,MATCH('Data Input - Option 3'!$D96,'Energy Prices'!$C$12:$C$17,0),MATCH('Data Input - Option 3'!AS$7,'Energy Prices'!$F$11:$CR$11,0))/100000,\"\")","v":""},{"$f":"IFERROR(AT88*INDEX('Energy Prices'!$F$12:$CR$17,MATCH('Data Input - Option 3'!$D96,'Energy Prices'!$C$12:$C$17,0),MATCH('Data Input - Option 3'!AT$7,'Energy Prices'!$F$11:$CR$11,0))/100000,\"\")","v":""},{"$f":"IFERROR(AU88*INDEX('Energy Prices'!$F$12:$CR$17,MATCH('Data Input - Option 3'!$D96,'Energy Prices'!$C$12:$C$17,0),MATCH('Data Input - Option 3'!AU$7,'Energy Prices'!$F$11:$CR$11,0))/100000,\"\")","v":""},{"$f":"IFERROR(AV88*INDEX('Energy Prices'!$F$12:$CR$17,MATCH('Data Input - Option 3'!$D96,'Energy Prices'!$C$12:$C$17,0),MATCH('Data Input - Option 3'!AV$7,'Energy Prices'!$F$11:$CR$11,0))/100000,\"\")","v":""},{"$f":"IFERROR(AW88*INDEX('Energy Prices'!$F$12:$CR$17,MATCH('Data Input - Option 3'!$D96,'Energy Prices'!$C$12:$C$17,0),MATCH('Data Input - Option 3'!AW$7,'Energy Prices'!$F$11:$CR$11,0))/100000,\"\")","v":""},{"$f":"IFERROR(AX88*INDEX('Energy Prices'!$F$12:$CR$17,MATCH('Data Input - Option 3'!$D96,'Energy Prices'!$C$12:$C$17,0),MATCH('Data Input - Option 3'!AX$7,'Energy Prices'!$F$11:$CR$11,0))/100000,\"\")","v":""},{"$f":"IFERROR(AY88*INDEX('Energy Prices'!$F$12:$CR$17,MATCH('Data Input - Option 3'!$D96,'Energy Prices'!$C$12:$C$17,0),MATCH('Data Input - Option 3'!AY$7,'Energy Prices'!$F$11:$CR$11,0))/100000,\"\")","v":""},{"$f":"IFERROR(AZ88*INDEX('Energy Prices'!$F$12:$CR$17,MATCH('Data Input - Option 3'!$D96,'Energy Prices'!$C$12:$C$17,0),MATCH('Data Input - Option 3'!AZ$7,'Energy Prices'!$F$11:$CR$11,0))/100000,\"\")","v":""},{"$f":"IFERROR(BA88*INDEX('Energy Prices'!$F$12:$CR$17,MATCH('Data Input - Option 3'!$D96,'Energy Prices'!$C$12:$C$17,0),MATCH('Data Input - Option 3'!BA$7,'Energy Prices'!$F$11:$CR$11,0))/100000,\"\")","v":""},{"$f":"IFERROR(BB88*INDEX('Energy Prices'!$F$12:$CR$17,MATCH('Data Input - Option 3'!$D96,'Energy Prices'!$C$12:$C$17,0),MATCH('Data Input - Option 3'!BB$7,'Energy Prices'!$F$11:$CR$11,0))/100000,\"\")","v":""},{"$f":"IFERROR(BC88*INDEX('Energy Prices'!$F$12:$CR$17,MATCH('Data Input - Option 3'!$D96,'Energy Prices'!$C$12:$C$17,0),MATCH('Data Input - Option 3'!BC$7,'Energy Prices'!$F$11:$CR$11,0))/100000,\"\")","v":""},{"$f":"IFERROR(BD88*INDEX('Energy Prices'!$F$12:$CR$17,MATCH('Data Input - Option 3'!$D96,'Energy Prices'!$C$12:$C$17,0),MATCH('Data Input - Option 3'!BD$7,'Energy Prices'!$F$11:$CR$11,0))/100000,\"\")","v":""},{"$f":"IFERROR(BE88*INDEX('Energy Prices'!$F$12:$CR$17,MATCH('Data Input - Option 3'!$D96,'Energy Prices'!$C$12:$C$17,0),MATCH('Data Input - Option 3'!BE$7,'Energy Prices'!$F$11:$CR$11,0))/100000,\"\")","v":""},{"$f":"IFERROR(BF88*INDEX('Energy Prices'!$F$12:$CR$17,MATCH('Data Input - Option 3'!$D96,'Energy Prices'!$C$12:$C$17,0),MATCH('Data Input - Option 3'!BF$7,'Energy Prices'!$F$11:$CR$11,0))/100000,\"\")","v":""},{"$f":"IFERROR(BG88*INDEX('Energy Prices'!$F$12:$CR$17,MATCH('Data Input - Option 3'!$D96,'Energy Prices'!$C$12:$C$17,0),MATCH('Data Input - Option 3'!BG$7,'Energy Prices'!$F$11:$CR$11,0))/100000,\"\")","v":""},{"$f":"IFERROR(BH88*INDEX('Energy Prices'!$F$12:$CR$17,MATCH('Data Input - Option 3'!$D96,'Energy Prices'!$C$12:$C$17,0),MATCH('Data Input - Option 3'!BH$7,'Energy Prices'!$F$11:$CR$11,0))/100000,\"\")","v":""},{"$f":"IFERROR(BI88*INDEX('Energy Prices'!$F$12:$CR$17,MATCH('Data Input - Option 3'!$D96,'Energy Prices'!$C$12:$C$17,0),MATCH('Data Input - Option 3'!BI$7,'Energy Prices'!$F$11:$CR$11,0))/100000,\"\")","v":""},{"$f":"IFERROR(BJ88*INDEX('Energy Prices'!$F$12:$CR$17,MATCH('Data Input - Option 3'!$D96,'Energy Prices'!$C$12:$C$17,0),MATCH('Data Input - Option 3'!BJ$7,'Energy Prices'!$F$11:$CR$11,0))/100000,\"\")","v":""},{"$f":"IFERROR(BK88*INDEX('Energy Prices'!$F$12:$CR$17,MATCH('Data Input - Option 3'!$D96,'Energy Prices'!$C$12:$C$17,0),MATCH('Data Input - Option 3'!BK$7,'Energy Prices'!$F$11:$CR$11,0))/100000,\"\")","v":""},{"$f":"IFERROR(BL88*INDEX('Energy Prices'!$F$12:$CR$17,MATCH('Data Input - Option 3'!$D96,'Energy Prices'!$C$12:$C$17,0),MATCH('Data Input - Option 3'!BL$7,'Energy Prices'!$F$11:$CR$11,0))/100000,\"\")","v":""},{"$f":"IFERROR(BM88*INDEX('Energy Prices'!$F$12:$CR$17,MATCH('Data Input - Option 3'!$D96,'Energy Prices'!$C$12:$C$17,0),MATCH('Data Input - Option 3'!BM$7,'Energy Prices'!$F$11:$CR$11,0))/100000,\"\")","v":""},{"$f":"IFERROR(BN88*INDEX('Energy Prices'!$F$12:$CR$17,MATCH('Data Input - Option 3'!$D96,'Energy Prices'!$C$12:$C$17,0),MATCH('Data Input - Option 3'!BN$7,'Energy Prices'!$F$11:$CR$11,0))/100000,\"\")","v":""},{"$f":"IFERROR(BO88*INDEX('Energy Prices'!$F$12:$CR$17,MATCH('Data Input - Option 3'!$D96,'Energy Prices'!$C$12:$C$17,0),MATCH('Data Input - Option 3'!BO$7,'Energy Prices'!$F$11:$CR$11,0))/100000,\"\")","v":""},{"$f":"IFERROR(BP88*INDEX('Energy Prices'!$F$12:$CR$17,MATCH('Data Input - Option 3'!$D96,'Energy Prices'!$C$12:$C$17,0),MATCH('Data Input - Option 3'!BP$7,'Energy Prices'!$F$11:$CR$11,0))/100000,\"\")","v":""},{"$f":"IFERROR(BQ88*INDEX('Energy Prices'!$F$12:$CR$17,MATCH('Data Input - Option 3'!$D96,'Energy Prices'!$C$12:$C$17,0),MATCH('Data Input - Option 3'!BQ$7,'Energy Prices'!$F$11:$CR$11,0))/100000,\"\")","v":""},{"$f":"IFERROR(BR88*INDEX('Energy Prices'!$F$12:$CR$17,MATCH('Data Input - Option 3'!$D96,'Energy Prices'!$C$12:$C$17,0),MATCH('Data Input - Option 3'!BR$7,'Energy Prices'!$F$11:$CR$11,0))/100000,\"\")","v":""},{"$f":"IFERROR(BS88*INDEX('Energy Prices'!$F$12:$CR$17,MATCH('Data Input - Option 3'!$D96,'Energy Prices'!$C$12:$C$17,0),MATCH('Data Input - Option 3'!BS$7,'Energy Prices'!$F$11:$CR$11,0))/100000,\"\")","v":""},{"$f":"IFERROR(BT88*INDEX('Energy Prices'!$F$12:$CR$17,MATCH('Data Input - Option 3'!$D96,'Energy Prices'!$C$12:$C$17,0),MATCH('Data Input - Option 3'!BT$7,'Energy Prices'!$F$11:$CR$11,0))/100000,\"\")","v":""},{"$f":"IFERROR(BU88*INDEX('Energy Prices'!$F$12:$CR$17,MATCH('Data Input - Option 3'!$D96,'Energy Prices'!$C$12:$C$17,0),MATCH('Data Input - Option 3'!BU$7,'Energy Prices'!$F$11:$CR$11,0))/100000,\"\")","v":""},{"$f":"IFERROR(BV88*INDEX('Energy Prices'!$F$12:$CR$17,MATCH('Data Input - Option 3'!$D96,'Energy Prices'!$C$12:$C$17,0),MATCH('Data Input - Option 3'!BV$7,'Energy Prices'!$F$11:$CR$11,0))/100000,\"\")","v":""},{"$f":"IFERROR(BW88*INDEX('Energy Prices'!$F$12:$CR$17,MATCH('Data Input - Option 3'!$D96,'Energy Prices'!$C$12:$C$17,0),MATCH('Data Input - Option 3'!BW$7,'Energy Prices'!$F$11:$CR$11,0))/100000,\"\")","v":""},{"$f":"IFERROR(BX88*INDEX('Energy Prices'!$F$12:$CR$17,MATCH('Data Input - Option 3'!$D96,'Energy Prices'!$C$12:$C$17,0),MATCH('Data Input - Option 3'!BX$7,'Energy Prices'!$F$11:$CR$11,0))/100000,\"\")","v":""},{"$f":"IFERROR(BY88*INDEX('Energy Prices'!$F$12:$CR$17,MATCH('Data Input - Option 3'!$D96,'Energy Prices'!$C$12:$C$17,0),MATCH('Data Input - Option 3'!BY$7,'Energy Prices'!$F$11:$CR$11,0))/100000,\"\")","v":""},{"$f":"IFERROR(BZ88*INDEX('Energy Prices'!$F$12:$CR$17,MATCH('Data Input - Option 3'!$D96,'Energy Prices'!$C$12:$C$17,0),MATCH('Data Input - Option 3'!BZ$7,'Energy Prices'!$F$11:$CR$11,0))/100000,\"\")","v":""},{"$f":"IFERROR(CA88*INDEX('Energy Prices'!$F$12:$CR$17,MATCH('Data Input - Option 3'!$D96,'Energy Prices'!$C$12:$C$17,0),MATCH('Data Input - Option 3'!CA$7,'Energy Prices'!$F$11:$CR$11,0))/100000,\"\")","v":""},{"$f":"IFERROR(CB88*INDEX('Energy Prices'!$F$12:$CR$17,MATCH('Data Input - Option 3'!$D96,'Energy Prices'!$C$12:$C$17,0),MATCH('Data Input - Option 3'!CB$7,'Energy Prices'!$F$11:$CR$11,0))/100000,\"\")","v":""},{"$f":"IFERROR(CC88*INDEX('Energy Prices'!$F$12:$CR$17,MATCH('Data Input - Option 3'!$D96,'Energy Prices'!$C$12:$C$17,0),MATCH('Data Input - Option 3'!CC$7,'Energy Prices'!$F$11:$CR$11,0))/100000,\"\")","v":""},{"$f":"IFERROR(CD88*INDEX('Energy Prices'!$F$12:$CR$17,MATCH('Data Input - Option 3'!$D96,'Energy Prices'!$C$12:$C$17,0),MATCH('Data Input - Option 3'!CD$7,'Energy Prices'!$F$11:$CR$11,0))/100000,\"\")","v":""},{"$f":"IFERROR(CE88*INDEX('Energy Prices'!$F$12:$CR$17,MATCH('Data Input - Option 3'!$D96,'Energy Prices'!$C$12:$C$17,0),MATCH('Data Input - Option 3'!CE$7,'Energy Prices'!$F$11:$CR$11,0))/100000,\"\")","v":""},{"$f":"IFERROR(CF88*INDEX('Energy Prices'!$F$12:$CR$17,MATCH('Data Input - Option 3'!$D96,'Energy Prices'!$C$12:$C$17,0),MATCH('Data Input - Option 3'!CF$7,'Energy Prices'!$F$11:$CR$11,0))/100000,\"\")","v":""},{"$f":"IFERROR(CG88*INDEX('Energy Prices'!$F$12:$CR$17,MATCH('Data Input - Option 3'!$D96,'Energy Prices'!$C$12:$C$17,0),MATCH('Data Input - Option 3'!CG$7,'Energy Prices'!$F$11:$CR$11,0))/100000,\"\")","v":""},{"$f":"IFERROR(CH88*INDEX('Energy Prices'!$F$12:$CR$17,MATCH('Data Input - Option 3'!$D96,'Energy Prices'!$C$12:$C$17,0),MATCH('Data Input - Option 3'!CH$7,'Energy Prices'!$F$11:$CR$11,0))/100000,\"\")","v":""},{"$f":"IFERROR(CI88*INDEX('Energy Prices'!$F$12:$CR$17,MATCH('Data Input - Option 3'!$D96,'Energy Prices'!$C$12:$C$17,0),MATCH('Data Input - Option 3'!CI$7,'Energy Prices'!$F$11:$CR$11,0))/100000,\"\")","v":""},{"$f":"IFERROR(CJ88*INDEX('Energy Prices'!$F$12:$CR$17,MATCH('Data Input - Option 3'!$D96,'Energy Prices'!$C$12:$C$17,0),MATCH('Data Input - Option 3'!CJ$7,'Energy Prices'!$F$11:$CR$11,0))/100000,\"\")","v":""},{"$f":"IFERROR(CK88*INDEX('Energy Prices'!$F$12:$CR$17,MATCH('Data Input - Option 3'!$D96,'Energy Prices'!$C$12:$C$17,0),MATCH('Data Input - Option 3'!CK$7,'Energy Prices'!$F$11:$CR$11,0))/100000,\"\")","v":""},{"$f":"IFERROR(CL88*INDEX('Energy Prices'!$F$12:$CR$17,MATCH('Data Input - Option 3'!$D96,'Energy Prices'!$C$12:$C$17,0),MATCH('Data Input - Option 3'!CL$7,'Energy Prices'!$F$11:$CR$11,0))/100000,\"\")","v":""},{"$f":"IFERROR(CM88*INDEX('Energy Prices'!$F$12:$CR$17,MATCH('Data Input - Option 3'!$D96,'Energy Prices'!$C$12:$C$17,0),MATCH('Data Input - Option 3'!CM$7,'Energy Prices'!$F$11:$CR$11,0))/100000,\"\")","v":""},{"$f":"IFERROR(CN88*INDEX('Energy Prices'!$F$12:$CR$17,MATCH('Data Input - Option 3'!$D96,'Energy Prices'!$C$12:$C$17,0),MATCH('Data Input - Option 3'!CN$7,'Energy Prices'!$F$11:$CR$11,0))/100000,\"\")","v":""},{"$f":"IFERROR(CO88*INDEX('Energy Prices'!$F$12:$CR$17,MATCH('Data Input - Option 3'!$D96,'Energy Prices'!$C$12:$C$17,0),MATCH('Data Input - Option 3'!CO$7,'Energy Prices'!$F$11:$CR$11,0))/100000,\"\")","v":""},{"$f":"IFERROR(CP88*INDEX('Energy Prices'!$F$12:$CR$17,MATCH('Data Input - Option 3'!$D96,'Energy Prices'!$C$12:$C$17,0),MATCH('Data Input - Option 3'!CP$7,'Energy Prices'!$F$11:$CR$11,0))/100000,\"\")","v":""},{"$f":"IFERROR(CQ88*INDEX('Energy Prices'!$F$12:$CR$17,MATCH('Data Input - Option 3'!$D96,'Energy Prices'!$C$12:$C$17,0),MATCH('Data Input - Option 3'!CQ$7,'Energy Prices'!$F$11:$CR$11,0))/100000,\"\")","v":""},{"$f":"IFERROR(CR88*INDEX('Energy Prices'!$F$12:$CR$17,MATCH('Data Input - Option 3'!$D96,'Energy Prices'!$C$12:$C$17,0),MATCH('Data Input - Option 3'!CR$7,'Energy Prices'!$F$11:$CR$11,0))/100000,\"\")","v":""},{"$f":"IFERROR(CS88*INDEX('Energy Prices'!$F$12:$CR$17,MATCH('Data Input - Option 3'!$D96,'Energy Prices'!$C$12:$C$17,0),MATCH('Data Input - Option 3'!CS$7,'Energy Prices'!$F$11:$CR$11,0))/100000,\"\")","v":""},{"$f":"IFERROR(CT88*INDEX('Energy Prices'!$F$12:$CR$17,MATCH('Data Input - Option 3'!$D96,'Energy Prices'!$C$12:$C$17,0),MATCH('Data Input - Option 3'!CT$7,'Energy Prices'!$F$11:$CR$11,0))/100000,\"\")","v":""},{"$f":"IFERROR(CU88*INDEX('Energy Prices'!$F$12:$CR$17,MATCH('Data Input - Option 3'!$D96,'Energy Prices'!$C$12:$C$17,0),MATCH('Data Input - Option 3'!CU$7,'Energy Prices'!$F$11:$CR$11,0))/100000,\"\")","v":""},{"$f":"IFERROR(CV88*INDEX('Energy Prices'!$F$12:$CR$17,MATCH('Data Input - Option 3'!$D96,'Energy Prices'!$C$12:$C$17,0),MATCH('Data Input - Option 3'!CV$7,'Energy Prices'!$F$11:$CR$11,0))/100000,\"\")","v":""},{"$f":"IFERROR(CW88*INDEX('Energy Prices'!$F$12:$CR$17,MATCH('Data Input - Option 3'!$D96,'Energy Prices'!$C$12:$C$17,0),MATCH('Data Input - Option 3'!CW$7,'Energy Prices'!$F$11:$CR$11,0))/100000,\"\")","v":""},{"$f":"IFERROR(CX88*INDEX('Energy Prices'!$F$12:$CR$17,MATCH('Data Input - Option 3'!$D96,'Energy Prices'!$C$12:$C$17,0),MATCH('Data Input - Option 3'!CX$7,'Energy Prices'!$F$11:$CR$11,0))/100000,\"\")","v":""},{"$f":"IFERROR(CY88*INDEX('Energy Prices'!$F$12:$CR$17,MATCH('Data Input - Option 3'!$D96,'Energy Prices'!$C$12:$C$17,0),MATCH('Data Input - Option 3'!CY$7,'Energy Prices'!$F$11:$CR$11,0))/100000,\"\")","v":""},{"$f":"IFERROR(CZ88*INDEX('Energy Prices'!$F$12:$CR$17,MATCH('Data Input - Option 3'!$D96,'Energy Prices'!$C$12:$C$17,0),MATCH('Data Input - Option 3'!CZ$7,'Energy Prices'!$F$11:$CR$11,0))/100000,\"\")","v":""},{"$f":"IFERROR(DA88*INDEX('Energy Prices'!$F$12:$CR$17,MATCH('Data Input - Option 3'!$D96,'Energy Prices'!$C$12:$C$17,0),MATCH('Data Input - Option 3'!DA$7,'Energy Prices'!$F$11:$CR$11,0))/100000,\"\")","v":""},{"$f":"IFERROR(DB88*INDEX('Energy Prices'!$F$12:$CR$17,MATCH('Data Input - Option 3'!$D96,'Energy Prices'!$C$12:$C$17,0),MATCH('Data Input - Option 3'!DB$7,'Energy Prices'!$F$11:$CR$11,0))/100000,\"\")","v":""},{"$f":"IFERROR(DC88*INDEX('Energy Prices'!$F$12:$CR$17,MATCH('Data Input - Option 3'!$D96,'Energy Prices'!$C$12:$C$17,0),MATCH('Data Input - Option 3'!DC$7,'Energy Prices'!$F$11:$CR$11,0))/100000,\"\")","v":""}]
[null,null,null,"Road - Diesel","£000's","(Auto calculated value)",null,{"$f":"IFERROR(H89*INDEX('Energy Prices'!$F$12:$CR$17,MATCH('Data Input - Option 3'!$D97,'Energy Prices'!$C$12:$C$17,0),MATCH('Data Input - Option 3'!H$7,'Energy Prices'!$F$11:$CR$11,0))/100000,\"\")","v":0},{"$f":"IFERROR(I89*INDEX('Energy Prices'!$F$12:$CR$17,MATCH('Data Input - Option 3'!$D97,'Energy Prices'!$C$12:$C$17,0),MATCH('Data Input - Option 3'!I$7,'Energy Prices'!$F$11:$CR$11,0))/100000,\"\")","v":0},{"$f":"IFERROR(J89*INDEX('Energy Prices'!$F$12:$CR$17,MATCH('Data Input - Option 3'!$D97,'Energy Prices'!$C$12:$C$17,0),MATCH('Data Input - Option 3'!J$7,'Energy Prices'!$F$11:$CR$11,0))/100000,\"\")","v":0},{"$f":"IFERROR(K89*INDEX('Energy Prices'!$F$12:$CR$17,MATCH('Data Input - Option 3'!$D97,'Energy Prices'!$C$12:$C$17,0),MATCH('Data Input - Option 3'!K$7,'Energy Prices'!$F$11:$CR$11,0))/100000,\"\")","v":0},{"$f":"IFERROR(L89*INDEX('Energy Prices'!$F$12:$CR$17,MATCH('Data Input - Option 3'!$D97,'Energy Prices'!$C$12:$C$17,0),MATCH('Data Input - Option 3'!L$7,'Energy Prices'!$F$11:$CR$11,0))/100000,\"\")","v":0},{"$f":"IFERROR(M89*INDEX('Energy Prices'!$F$12:$CR$17,MATCH('Data Input - Option 3'!$D97,'Energy Prices'!$C$12:$C$17,0),MATCH('Data Input - Option 3'!M$7,'Energy Prices'!$F$11:$CR$11,0))/100000,\"\")","v":0},{"$f":"IFERROR(N89*INDEX('Energy Prices'!$F$12:$CR$17,MATCH('Data Input - Option 3'!$D97,'Energy Prices'!$C$12:$C$17,0),MATCH('Data Input - Option 3'!N$7,'Energy Prices'!$F$11:$CR$11,0))/100000,\"\")","v":0},{"$f":"IFERROR(O89*INDEX('Energy Prices'!$F$12:$CR$17,MATCH('Data Input - Option 3'!$D97,'Energy Prices'!$C$12:$C$17,0),MATCH('Data Input - Option 3'!O$7,'Energy Prices'!$F$11:$CR$11,0))/100000,\"\")","v":0},{"$f":"IFERROR(P89*INDEX('Energy Prices'!$F$12:$CR$17,MATCH('Data Input - Option 3'!$D97,'Energy Prices'!$C$12:$C$17,0),MATCH('Data Input - Option 3'!P$7,'Energy Prices'!$F$11:$CR$11,0))/100000,\"\")","v":0},{"$f":"IFERROR(Q89*INDEX('Energy Prices'!$F$12:$CR$17,MATCH('Data Input - Option 3'!$D97,'Energy Prices'!$C$12:$C$17,0),MATCH('Data Input - Option 3'!Q$7,'Energy Prices'!$F$11:$CR$11,0))/100000,\"\")","v":0},{"$f":"IFERROR(R89*INDEX('Energy Prices'!$F$12:$CR$17,MATCH('Data Input - Option 3'!$D97,'Energy Prices'!$C$12:$C$17,0),MATCH('Data Input - Option 3'!R$7,'Energy Prices'!$F$11:$CR$11,0))/100000,\"\")","v":0},{"$f":"IFERROR(S89*INDEX('Energy Prices'!$F$12:$CR$17,MATCH('Data Input - Option 3'!$D97,'Energy Prices'!$C$12:$C$17,0),MATCH('Data Input - Option 3'!S$7,'Energy Prices'!$F$11:$CR$11,0))/100000,\"\")","v":0},{"$f":"IFERROR(T89*INDEX('Energy Prices'!$F$12:$CR$17,MATCH('Data Input - Option 3'!$D97,'Energy Prices'!$C$12:$C$17,0),MATCH('Data Input - Option 3'!T$7,'Energy Prices'!$F$11:$CR$11,0))/100000,\"\")","v":0},{"$f":"IFERROR(U89*INDEX('Energy Prices'!$F$12:$CR$17,MATCH('Data Input - Option 3'!$D97,'Energy Prices'!$C$12:$C$17,0),MATCH('Data Input - Option 3'!U$7,'Energy Prices'!$F$11:$CR$11,0))/100000,\"\")","v":0},{"$f":"IFERROR(V89*INDEX('Energy Prices'!$F$12:$CR$17,MATCH('Data Input - Option 3'!$D97,'Energy Prices'!$C$12:$C$17,0),MATCH('Data Input - Option 3'!V$7,'Energy Prices'!$F$11:$CR$11,0))/100000,\"\")","v":0},{"$f":"IFERROR(W89*INDEX('Energy Prices'!$F$12:$CR$17,MATCH('Data Input - Option 3'!$D97,'Energy Prices'!$C$12:$C$17,0),MATCH('Data Input - Option 3'!W$7,'Energy Prices'!$F$11:$CR$11,0))/100000,\"\")","v":0},{"$f":"IFERROR(X89*INDEX('Energy Prices'!$F$12:$CR$17,MATCH('Data Input - Option 3'!$D97,'Energy Prices'!$C$12:$C$17,0),MATCH('Data Input - Option 3'!X$7,'Energy Prices'!$F$11:$CR$11,0))/100000,\"\")","v":0},{"$f":"IFERROR(Y89*INDEX('Energy Prices'!$F$12:$CR$17,MATCH('Data Input - Option 3'!$D97,'Energy Prices'!$C$12:$C$17,0),MATCH('Data Input - Option 3'!Y$7,'Energy Prices'!$F$11:$CR$11,0))/100000,\"\")","v":0},{"$f":"IFERROR(Z89*INDEX('Energy Prices'!$F$12:$CR$17,MATCH('Data Input - Option 3'!$D97,'Energy Prices'!$C$12:$C$17,0),MATCH('Data Input - Option 3'!Z$7,'Energy Prices'!$F$11:$CR$11,0))/100000,\"\")","v":0},{"$f":"IFERROR(AA89*INDEX('Energy Prices'!$F$12:$CR$17,MATCH('Data Input - Option 3'!$D97,'Energy Prices'!$C$12:$C$17,0),MATCH('Data Input - Option 3'!AA$7,'Energy Prices'!$F$11:$CR$11,0))/100000,\"\")","v":0},{"$f":"IFERROR(AB89*INDEX('Energy Prices'!$F$12:$CR$17,MATCH('Data Input - Option 3'!$D97,'Energy Prices'!$C$12:$C$17,0),MATCH('Data Input - Option 3'!AB$7,'Energy Prices'!$F$11:$CR$11,0))/100000,\"\")","v":0},{"$f":"IFERROR(AC89*INDEX('Energy Prices'!$F$12:$CR$17,MATCH('Data Input - Option 3'!$D97,'Energy Prices'!$C$12:$C$17,0),MATCH('Data Input - Option 3'!AC$7,'Energy Prices'!$F$11:$CR$11,0))/100000,\"\")","v":0},{"$f":"IFERROR(AD89*INDEX('Energy Prices'!$F$12:$CR$17,MATCH('Data Input - Option 3'!$D97,'Energy Prices'!$C$12:$C$17,0),MATCH('Data Input - Option 3'!AD$7,'Energy Prices'!$F$11:$CR$11,0))/100000,\"\")","v":0},{"$f":"IFERROR(AE89*INDEX('Energy Prices'!$F$12:$CR$17,MATCH('Data Input - Option 3'!$D97,'Energy Prices'!$C$12:$C$17,0),MATCH('Data Input - Option 3'!AE$7,'Energy Prices'!$F$11:$CR$11,0))/100000,\"\")","v":0},{"$f":"IFERROR(AF89*INDEX('Energy Prices'!$F$12:$CR$17,MATCH('Data Input - Option 3'!$D97,'Energy Prices'!$C$12:$C$17,0),MATCH('Data Input - Option 3'!AF$7,'Energy Prices'!$F$11:$CR$11,0))/100000,\"\")","v":0},{"$f":"IFERROR(AG89*INDEX('Energy Prices'!$F$12:$CR$17,MATCH('Data Input - Option 3'!$D97,'Energy Prices'!$C$12:$C$17,0),MATCH('Data Input - Option 3'!AG$7,'Energy Prices'!$F$11:$CR$11,0))/100000,\"\")","v":0},{"$f":"IFERROR(AH89*INDEX('Energy Prices'!$F$12:$CR$17,MATCH('Data Input - Option 3'!$D97,'Energy Prices'!$C$12:$C$17,0),MATCH('Data Input - Option 3'!AH$7,'Energy Prices'!$F$11:$CR$11,0))/100000,\"\")","v":0},{"$f":"IFERROR(AI89*INDEX('Energy Prices'!$F$12:$CR$17,MATCH('Data Input - Option 3'!$D97,'Energy Prices'!$C$12:$C$17,0),MATCH('Data Input - Option 3'!AI$7,'Energy Prices'!$F$11:$CR$11,0))/100000,\"\")","v":0},{"$f":"IFERROR(AJ89*INDEX('Energy Prices'!$F$12:$CR$17,MATCH('Data Input - Option 3'!$D97,'Energy Prices'!$C$12:$C$17,0),MATCH('Data Input - Option 3'!AJ$7,'Energy Prices'!$F$11:$CR$11,0))/100000,\"\")","v":0},{"$f":"IFERROR(AK89*INDEX('Energy Prices'!$F$12:$CR$17,MATCH('Data Input - Option 3'!$D97,'Energy Prices'!$C$12:$C$17,0),MATCH('Data Input - Option 3'!AK$7,'Energy Prices'!$F$11:$CR$11,0))/100000,\"\")","v":0},{"$f":"IFERROR(AL89*INDEX('Energy Prices'!$F$12:$CR$17,MATCH('Data Input - Option 3'!$D97,'Energy Prices'!$C$12:$C$17,0),MATCH('Data Input - Option 3'!AL$7,'Energy Prices'!$F$11:$CR$11,0))/100000,\"\")","v":0},{"$f":"IFERROR(AM89*INDEX('Energy Prices'!$F$12:$CR$17,MATCH('Data Input - Option 3'!$D97,'Energy Prices'!$C$12:$C$17,0),MATCH('Data Input - Option 3'!AM$7,'Energy Prices'!$F$11:$CR$11,0))/100000,\"\")","v":""},{"$f":"IFERROR(AN89*INDEX('Energy Prices'!$F$12:$CR$17,MATCH('Data Input - Option 3'!$D97,'Energy Prices'!$C$12:$C$17,0),MATCH('Data Input - Option 3'!AN$7,'Energy Prices'!$F$11:$CR$11,0))/100000,\"\")","v":""},{"$f":"IFERROR(AO89*INDEX('Energy Prices'!$F$12:$CR$17,MATCH('Data Input - Option 3'!$D97,'Energy Prices'!$C$12:$C$17,0),MATCH('Data Input - Option 3'!AO$7,'Energy Prices'!$F$11:$CR$11,0))/100000,\"\")","v":""},{"$f":"IFERROR(AP89*INDEX('Energy Prices'!$F$12:$CR$17,MATCH('Data Input - Option 3'!$D97,'Energy Prices'!$C$12:$C$17,0),MATCH('Data Input - Option 3'!AP$7,'Energy Prices'!$F$11:$CR$11,0))/100000,\"\")","v":""},{"$f":"IFERROR(AQ89*INDEX('Energy Prices'!$F$12:$CR$17,MATCH('Data Input - Option 3'!$D97,'Energy Prices'!$C$12:$C$17,0),MATCH('Data Input - Option 3'!AQ$7,'Energy Prices'!$F$11:$CR$11,0))/100000,\"\")","v":""},{"$f":"IFERROR(AR89*INDEX('Energy Prices'!$F$12:$CR$17,MATCH('Data Input - Option 3'!$D97,'Energy Prices'!$C$12:$C$17,0),MATCH('Data Input - Option 3'!AR$7,'Energy Prices'!$F$11:$CR$11,0))/100000,\"\")","v":""},{"$f":"IFERROR(AS89*INDEX('Energy Prices'!$F$12:$CR$17,MATCH('Data Input - Option 3'!$D97,'Energy Prices'!$C$12:$C$17,0),MATCH('Data Input - Option 3'!AS$7,'Energy Prices'!$F$11:$CR$11,0))/100000,\"\")","v":""},{"$f":"IFERROR(AT89*INDEX('Energy Prices'!$F$12:$CR$17,MATCH('Data Input - Option 3'!$D97,'Energy Prices'!$C$12:$C$17,0),MATCH('Data Input - Option 3'!AT$7,'Energy Prices'!$F$11:$CR$11,0))/100000,\"\")","v":""},{"$f":"IFERROR(AU89*INDEX('Energy Prices'!$F$12:$CR$17,MATCH('Data Input - Option 3'!$D97,'Energy Prices'!$C$12:$C$17,0),MATCH('Data Input - Option 3'!AU$7,'Energy Prices'!$F$11:$CR$11,0))/100000,\"\")","v":""},{"$f":"IFERROR(AV89*INDEX('Energy Prices'!$F$12:$CR$17,MATCH('Data Input - Option 3'!$D97,'Energy Prices'!$C$12:$C$17,0),MATCH('Data Input - Option 3'!AV$7,'Energy Prices'!$F$11:$CR$11,0))/100000,\"\")","v":""},{"$f":"IFERROR(AW89*INDEX('Energy Prices'!$F$12:$CR$17,MATCH('Data Input - Option 3'!$D97,'Energy Prices'!$C$12:$C$17,0),MATCH('Data Input - Option 3'!AW$7,'Energy Prices'!$F$11:$CR$11,0))/100000,\"\")","v":""},{"$f":"IFERROR(AX89*INDEX('Energy Prices'!$F$12:$CR$17,MATCH('Data Input - Option 3'!$D97,'Energy Prices'!$C$12:$C$17,0),MATCH('Data Input - Option 3'!AX$7,'Energy Prices'!$F$11:$CR$11,0))/100000,\"\")","v":""},{"$f":"IFERROR(AY89*INDEX('Energy Prices'!$F$12:$CR$17,MATCH('Data Input - Option 3'!$D97,'Energy Prices'!$C$12:$C$17,0),MATCH('Data Input - Option 3'!AY$7,'Energy Prices'!$F$11:$CR$11,0))/100000,\"\")","v":""},{"$f":"IFERROR(AZ89*INDEX('Energy Prices'!$F$12:$CR$17,MATCH('Data Input - Option 3'!$D97,'Energy Prices'!$C$12:$C$17,0),MATCH('Data Input - Option 3'!AZ$7,'Energy Prices'!$F$11:$CR$11,0))/100000,\"\")","v":""},{"$f":"IFERROR(BA89*INDEX('Energy Prices'!$F$12:$CR$17,MATCH('Data Input - Option 3'!$D97,'Energy Prices'!$C$12:$C$17,0),MATCH('Data Input - Option 3'!BA$7,'Energy Prices'!$F$11:$CR$11,0))/100000,\"\")","v":""},{"$f":"IFERROR(BB89*INDEX('Energy Prices'!$F$12:$CR$17,MATCH('Data Input - Option 3'!$D97,'Energy Prices'!$C$12:$C$17,0),MATCH('Data Input - Option 3'!BB$7,'Energy Prices'!$F$11:$CR$11,0))/100000,\"\")","v":""},{"$f":"IFERROR(BC89*INDEX('Energy Prices'!$F$12:$CR$17,MATCH('Data Input - Option 3'!$D97,'Energy Prices'!$C$12:$C$17,0),MATCH('Data Input - Option 3'!BC$7,'Energy Prices'!$F$11:$CR$11,0))/100000,\"\")","v":""},{"$f":"IFERROR(BD89*INDEX('Energy Prices'!$F$12:$CR$17,MATCH('Data Input - Option 3'!$D97,'Energy Prices'!$C$12:$C$17,0),MATCH('Data Input - Option 3'!BD$7,'Energy Prices'!$F$11:$CR$11,0))/100000,\"\")","v":""},{"$f":"IFERROR(BE89*INDEX('Energy Prices'!$F$12:$CR$17,MATCH('Data Input - Option 3'!$D97,'Energy Prices'!$C$12:$C$17,0),MATCH('Data Input - Option 3'!BE$7,'Energy Prices'!$F$11:$CR$11,0))/100000,\"\")","v":""},{"$f":"IFERROR(BF89*INDEX('Energy Prices'!$F$12:$CR$17,MATCH('Data Input - Option 3'!$D97,'Energy Prices'!$C$12:$C$17,0),MATCH('Data Input - Option 3'!BF$7,'Energy Prices'!$F$11:$CR$11,0))/100000,\"\")","v":""},{"$f":"IFERROR(BG89*INDEX('Energy Prices'!$F$12:$CR$17,MATCH('Data Input - Option 3'!$D97,'Energy Prices'!$C$12:$C$17,0),MATCH('Data Input - Option 3'!BG$7,'Energy Prices'!$F$11:$CR$11,0))/100000,\"\")","v":""},{"$f":"IFERROR(BH89*INDEX('Energy Prices'!$F$12:$CR$17,MATCH('Data Input - Option 3'!$D97,'Energy Prices'!$C$12:$C$17,0),MATCH('Data Input - Option 3'!BH$7,'Energy Prices'!$F$11:$CR$11,0))/100000,\"\")","v":""},{"$f":"IFERROR(BI89*INDEX('Energy Prices'!$F$12:$CR$17,MATCH('Data Input - Option 3'!$D97,'Energy Prices'!$C$12:$C$17,0),MATCH('Data Input - Option 3'!BI$7,'Energy Prices'!$F$11:$CR$11,0))/100000,\"\")","v":""},{"$f":"IFERROR(BJ89*INDEX('Energy Prices'!$F$12:$CR$17,MATCH('Data Input - Option 3'!$D97,'Energy Prices'!$C$12:$C$17,0),MATCH('Data Input - Option 3'!BJ$7,'Energy Prices'!$F$11:$CR$11,0))/100000,\"\")","v":""},{"$f":"IFERROR(BK89*INDEX('Energy Prices'!$F$12:$CR$17,MATCH('Data Input - Option 3'!$D97,'Energy Prices'!$C$12:$C$17,0),MATCH('Data Input - Option 3'!BK$7,'Energy Prices'!$F$11:$CR$11,0))/100000,\"\")","v":""},{"$f":"IFERROR(BL89*INDEX('Energy Prices'!$F$12:$CR$17,MATCH('Data Input - Option 3'!$D97,'Energy Prices'!$C$12:$C$17,0),MATCH('Data Input - Option 3'!BL$7,'Energy Prices'!$F$11:$CR$11,0))/100000,\"\")","v":""},{"$f":"IFERROR(BM89*INDEX('Energy Prices'!$F$12:$CR$17,MATCH('Data Input - Option 3'!$D97,'Energy Prices'!$C$12:$C$17,0),MATCH('Data Input - Option 3'!BM$7,'Energy Prices'!$F$11:$CR$11,0))/100000,\"\")","v":""},{"$f":"IFERROR(BN89*INDEX('Energy Prices'!$F$12:$CR$17,MATCH('Data Input - Option 3'!$D97,'Energy Prices'!$C$12:$C$17,0),MATCH('Data Input - Option 3'!BN$7,'Energy Prices'!$F$11:$CR$11,0))/100000,\"\")","v":""},{"$f":"IFERROR(BO89*INDEX('Energy Prices'!$F$12:$CR$17,MATCH('Data Input - Option 3'!$D97,'Energy Prices'!$C$12:$C$17,0),MATCH('Data Input - Option 3'!BO$7,'Energy Prices'!$F$11:$CR$11,0))/100000,\"\")","v":""},{"$f":"IFERROR(BP89*INDEX('Energy Prices'!$F$12:$CR$17,MATCH('Data Input - Option 3'!$D97,'Energy Prices'!$C$12:$C$17,0),MATCH('Data Input - Option 3'!BP$7,'Energy Prices'!$F$11:$CR$11,0))/100000,\"\")","v":""},{"$f":"IFERROR(BQ89*INDEX('Energy Prices'!$F$12:$CR$17,MATCH('Data Input - Option 3'!$D97,'Energy Prices'!$C$12:$C$17,0),MATCH('Data Input - Option 3'!BQ$7,'Energy Prices'!$F$11:$CR$11,0))/100000,\"\")","v":""},{"$f":"IFERROR(BR89*INDEX('Energy Prices'!$F$12:$CR$17,MATCH('Data Input - Option 3'!$D97,'Energy Prices'!$C$12:$C$17,0),MATCH('Data Input - Option 3'!BR$7,'Energy Prices'!$F$11:$CR$11,0))/100000,\"\")","v":""},{"$f":"IFERROR(BS89*INDEX('Energy Prices'!$F$12:$CR$17,MATCH('Data Input - Option 3'!$D97,'Energy Prices'!$C$12:$C$17,0),MATCH('Data Input - Option 3'!BS$7,'Energy Prices'!$F$11:$CR$11,0))/100000,\"\")","v":""},{"$f":"IFERROR(BT89*INDEX('Energy Prices'!$F$12:$CR$17,MATCH('Data Input - Option 3'!$D97,'Energy Prices'!$C$12:$C$17,0),MATCH('Data Input - Option 3'!BT$7,'Energy Prices'!$F$11:$CR$11,0))/100000,\"\")","v":""},{"$f":"IFERROR(BU89*INDEX('Energy Prices'!$F$12:$CR$17,MATCH('Data Input - Option 3'!$D97,'Energy Prices'!$C$12:$C$17,0),MATCH('Data Input - Option 3'!BU$7,'Energy Prices'!$F$11:$CR$11,0))/100000,\"\")","v":""},{"$f":"IFERROR(BV89*INDEX('Energy Prices'!$F$12:$CR$17,MATCH('Data Input - Option 3'!$D97,'Energy Prices'!$C$12:$C$17,0),MATCH('Data Input - Option 3'!BV$7,'Energy Prices'!$F$11:$CR$11,0))/100000,\"\")","v":""},{"$f":"IFERROR(BW89*INDEX('Energy Prices'!$F$12:$CR$17,MATCH('Data Input - Option 3'!$D97,'Energy Prices'!$C$12:$C$17,0),MATCH('Data Input - Option 3'!BW$7,'Energy Prices'!$F$11:$CR$11,0))/100000,\"\")","v":""},{"$f":"IFERROR(BX89*INDEX('Energy Prices'!$F$12:$CR$17,MATCH('Data Input - Option 3'!$D97,'Energy Prices'!$C$12:$C$17,0),MATCH('Data Input - Option 3'!BX$7,'Energy Prices'!$F$11:$CR$11,0))/100000,\"\")","v":""},{"$f":"IFERROR(BY89*INDEX('Energy Prices'!$F$12:$CR$17,MATCH('Data Input - Option 3'!$D97,'Energy Prices'!$C$12:$C$17,0),MATCH('Data Input - Option 3'!BY$7,'Energy Prices'!$F$11:$CR$11,0))/100000,\"\")","v":""},{"$f":"IFERROR(BZ89*INDEX('Energy Prices'!$F$12:$CR$17,MATCH('Data Input - Option 3'!$D97,'Energy Prices'!$C$12:$C$17,0),MATCH('Data Input - Option 3'!BZ$7,'Energy Prices'!$F$11:$CR$11,0))/100000,\"\")","v":""},{"$f":"IFERROR(CA89*INDEX('Energy Prices'!$F$12:$CR$17,MATCH('Data Input - Option 3'!$D97,'Energy Prices'!$C$12:$C$17,0),MATCH('Data Input - Option 3'!CA$7,'Energy Prices'!$F$11:$CR$11,0))/100000,\"\")","v":""},{"$f":"IFERROR(CB89*INDEX('Energy Prices'!$F$12:$CR$17,MATCH('Data Input - Option 3'!$D97,'Energy Prices'!$C$12:$C$17,0),MATCH('Data Input - Option 3'!CB$7,'Energy Prices'!$F$11:$CR$11,0))/100000,\"\")","v":""},{"$f":"IFERROR(CC89*INDEX('Energy Prices'!$F$12:$CR$17,MATCH('Data Input - Option 3'!$D97,'Energy Prices'!$C$12:$C$17,0),MATCH('Data Input - Option 3'!CC$7,'Energy Prices'!$F$11:$CR$11,0))/100000,\"\")","v":""},{"$f":"IFERROR(CD89*INDEX('Energy Prices'!$F$12:$CR$17,MATCH('Data Input - Option 3'!$D97,'Energy Prices'!$C$12:$C$17,0),MATCH('Data Input - Option 3'!CD$7,'Energy Prices'!$F$11:$CR$11,0))/100000,\"\")","v":""},{"$f":"IFERROR(CE89*INDEX('Energy Prices'!$F$12:$CR$17,MATCH('Data Input - Option 3'!$D97,'Energy Prices'!$C$12:$C$17,0),MATCH('Data Input - Option 3'!CE$7,'Energy Prices'!$F$11:$CR$11,0))/100000,\"\")","v":""},{"$f":"IFERROR(CF89*INDEX('Energy Prices'!$F$12:$CR$17,MATCH('Data Input - Option 3'!$D97,'Energy Prices'!$C$12:$C$17,0),MATCH('Data Input - Option 3'!CF$7,'Energy Prices'!$F$11:$CR$11,0))/100000,\"\")","v":""},{"$f":"IFERROR(CG89*INDEX('Energy Prices'!$F$12:$CR$17,MATCH('Data Input - Option 3'!$D97,'Energy Prices'!$C$12:$C$17,0),MATCH('Data Input - Option 3'!CG$7,'Energy Prices'!$F$11:$CR$11,0))/100000,\"\")","v":""},{"$f":"IFERROR(CH89*INDEX('Energy Prices'!$F$12:$CR$17,MATCH('Data Input - Option 3'!$D97,'Energy Prices'!$C$12:$C$17,0),MATCH('Data Input - Option 3'!CH$7,'Energy Prices'!$F$11:$CR$11,0))/100000,\"\")","v":""},{"$f":"IFERROR(CI89*INDEX('Energy Prices'!$F$12:$CR$17,MATCH('Data Input - Option 3'!$D97,'Energy Prices'!$C$12:$C$17,0),MATCH('Data Input - Option 3'!CI$7,'Energy Prices'!$F$11:$CR$11,0))/100000,\"\")","v":""},{"$f":"IFERROR(CJ89*INDEX('Energy Prices'!$F$12:$CR$17,MATCH('Data Input - Option 3'!$D97,'Energy Prices'!$C$12:$C$17,0),MATCH('Data Input - Option 3'!CJ$7,'Energy Prices'!$F$11:$CR$11,0))/100000,\"\")","v":""},{"$f":"IFERROR(CK89*INDEX('Energy Prices'!$F$12:$CR$17,MATCH('Data Input - Option 3'!$D97,'Energy Prices'!$C$12:$C$17,0),MATCH('Data Input - Option 3'!CK$7,'Energy Prices'!$F$11:$CR$11,0))/100000,\"\")","v":""},{"$f":"IFERROR(CL89*INDEX('Energy Prices'!$F$12:$CR$17,MATCH('Data Input - Option 3'!$D97,'Energy Prices'!$C$12:$C$17,0),MATCH('Data Input - Option 3'!CL$7,'Energy Prices'!$F$11:$CR$11,0))/100000,\"\")","v":""},{"$f":"IFERROR(CM89*INDEX('Energy Prices'!$F$12:$CR$17,MATCH('Data Input - Option 3'!$D97,'Energy Prices'!$C$12:$C$17,0),MATCH('Data Input - Option 3'!CM$7,'Energy Prices'!$F$11:$CR$11,0))/100000,\"\")","v":""},{"$f":"IFERROR(CN89*INDEX('Energy Prices'!$F$12:$CR$17,MATCH('Data Input - Option 3'!$D97,'Energy Prices'!$C$12:$C$17,0),MATCH('Data Input - Option 3'!CN$7,'Energy Prices'!$F$11:$CR$11,0))/100000,\"\")","v":""},{"$f":"IFERROR(CO89*INDEX('Energy Prices'!$F$12:$CR$17,MATCH('Data Input - Option 3'!$D97,'Energy Prices'!$C$12:$C$17,0),MATCH('Data Input - Option 3'!CO$7,'Energy Prices'!$F$11:$CR$11,0))/100000,\"\")","v":""},{"$f":"IFERROR(CP89*INDEX('Energy Prices'!$F$12:$CR$17,MATCH('Data Input - Option 3'!$D97,'Energy Prices'!$C$12:$C$17,0),MATCH('Data Input - Option 3'!CP$7,'Energy Prices'!$F$11:$CR$11,0))/100000,\"\")","v":""},{"$f":"IFERROR(CQ89*INDEX('Energy Prices'!$F$12:$CR$17,MATCH('Data Input - Option 3'!$D97,'Energy Prices'!$C$12:$C$17,0),MATCH('Data Input - Option 3'!CQ$7,'Energy Prices'!$F$11:$CR$11,0))/100000,\"\")","v":""},{"$f":"IFERROR(CR89*INDEX('Energy Prices'!$F$12:$CR$17,MATCH('Data Input - Option 3'!$D97,'Energy Prices'!$C$12:$C$17,0),MATCH('Data Input - Option 3'!CR$7,'Energy Prices'!$F$11:$CR$11,0))/100000,\"\")","v":""},{"$f":"IFERROR(CS89*INDEX('Energy Prices'!$F$12:$CR$17,MATCH('Data Input - Option 3'!$D97,'Energy Prices'!$C$12:$C$17,0),MATCH('Data Input - Option 3'!CS$7,'Energy Prices'!$F$11:$CR$11,0))/100000,\"\")","v":""},{"$f":"IFERROR(CT89*INDEX('Energy Prices'!$F$12:$CR$17,MATCH('Data Input - Option 3'!$D97,'Energy Prices'!$C$12:$C$17,0),MATCH('Data Input - Option 3'!CT$7,'Energy Prices'!$F$11:$CR$11,0))/100000,\"\")","v":""},{"$f":"IFERROR(CU89*INDEX('Energy Prices'!$F$12:$CR$17,MATCH('Data Input - Option 3'!$D97,'Energy Prices'!$C$12:$C$17,0),MATCH('Data Input - Option 3'!CU$7,'Energy Prices'!$F$11:$CR$11,0))/100000,\"\")","v":""},{"$f":"IFERROR(CV89*INDEX('Energy Prices'!$F$12:$CR$17,MATCH('Data Input - Option 3'!$D97,'Energy Prices'!$C$12:$C$17,0),MATCH('Data Input - Option 3'!CV$7,'Energy Prices'!$F$11:$CR$11,0))/100000,\"\")","v":""},{"$f":"IFERROR(CW89*INDEX('Energy Prices'!$F$12:$CR$17,MATCH('Data Input - Option 3'!$D97,'Energy Prices'!$C$12:$C$17,0),MATCH('Data Input - Option 3'!CW$7,'Energy Prices'!$F$11:$CR$11,0))/100000,\"\")","v":""},{"$f":"IFERROR(CX89*INDEX('Energy Prices'!$F$12:$CR$17,MATCH('Data Input - Option 3'!$D97,'Energy Prices'!$C$12:$C$17,0),MATCH('Data Input - Option 3'!CX$7,'Energy Prices'!$F$11:$CR$11,0))/100000,\"\")","v":""},{"$f":"IFERROR(CY89*INDEX('Energy Prices'!$F$12:$CR$17,MATCH('Data Input - Option 3'!$D97,'Energy Prices'!$C$12:$C$17,0),MATCH('Data Input - Option 3'!CY$7,'Energy Prices'!$F$11:$CR$11,0))/100000,\"\")","v":""},{"$f":"IFERROR(CZ89*INDEX('Energy Prices'!$F$12:$CR$17,MATCH('Data Input - Option 3'!$D97,'Energy Prices'!$C$12:$C$17,0),MATCH('Data Input - Option 3'!CZ$7,'Energy Prices'!$F$11:$CR$11,0))/100000,\"\")","v":""},{"$f":"IFERROR(DA89*INDEX('Energy Prices'!$F$12:$CR$17,MATCH('Data Input - Option 3'!$D97,'Energy Prices'!$C$12:$C$17,0),MATCH('Data Input - Option 3'!DA$7,'Energy Prices'!$F$11:$CR$11,0))/100000,\"\")","v":""},{"$f":"IFERROR(DB89*INDEX('Energy Prices'!$F$12:$CR$17,MATCH('Data Input - Option 3'!$D97,'Energy Prices'!$C$12:$C$17,0),MATCH('Data Input - Option 3'!DB$7,'Energy Prices'!$F$11:$CR$11,0))/100000,\"\")","v":""},{"$f":"IFERROR(DC89*INDEX('Energy Prices'!$F$12:$CR$17,MATCH('Data Input - Option 3'!$D97,'Energy Prices'!$C$12:$C$17,0),MATCH('Data Input - Option 3'!DC$7,'Energy Prices'!$F$11:$CR$11,0))/100000,\"\")","v":""}]
[null,null,"7.48",0,"£000's"]
[]
[null,null,null,"Total cost of energy","£000's","(Auto calculated value)",null,{"$f":"SUM(H92:H99)","v":1720.1480017668744},{"$f":"SUM(I92:I99)","v":1783.2921671361921},{"$f":"SUM(J92:J99)","v":1859.5675057479709},1913.8673758264686,1968.2784809134387,2047.9903181691259,2115.550856249647,2156.1297473801351,0,0,0,0,0,0,0,0,0,0,0,0,0,0,0,0,0,0,0,0,0,0,0,0,0,0,0,0,0,0,0,0,0,0,0,0,0,0,0,0,0,0,0,0,0,0,0,0,0,0,0,0,0,0,0,0,0,0,{"$f":"SUM(BV92:BV99)","v":0},0,0,0,0,0,0,0,0,0,0,0,0,0,0,0,0,0,0,0,0,0,0,0,0,0,0,0,0,0,0,0,0,0]
[]
[null,null,"Environmental impacts"]
[]
[null,null,null,"Air pollutant emissions","(?)"]
[null,null,"7.49","Sox 2019","Tonnes"," <(Select from dropdown)",null,0.26600000000000001,0.26600000000000001,0.26600000000000001,0.26600000000000001,0.26600000000000001,0.26600000000000001,0.26600000000000001,0.26600000000000001]
[null,null,null,null,"Tonnes"," <(Select from dropdown)"]
[null,null,null,null,"Tonnes"," <(Select from dropdown)"]
[null,null,null,null,"Tonnes"," <(Select from dropdown)"]
[null,null,null,null,"Tonnes"," <(Select from dropdown)"]
[null,null,null,null,"Tonnes"," <(Select from dropdown)"]
[]
[null,null,null,"'Process-related' GHG emissions"]
[null,null,"7.50","CO2","Tonnes"," <(Select from dropdown)",null,45000,45000,45000,45000,45000,45000,45000,45000]
[]
[null,null,"7.51","Additional emission type (please specify)","tCO2e","(?)"]
[]
[null,null,null,"Total process GHG Emissions","tCO2e","(Auto calculated value)",null,{"$f":"IFERROR(IF(ISBLANK(H113),0,H113*INDEX(Assumptions!$D$20:$D$53,MATCH($D$113,lkpGreenHouseGases,0)))+IF(ISBLANK(H115),0,H115),0)","v":45000},{"$f":"IFERROR(IF(ISBLANK(I113),0,I113*INDEX(Assumptions!$D$20:$D$53,MATCH($D$113,lkpGreenHouseGases,0)))+IF(ISBLANK(I115),0,I115),0)","v":45000},{"$f":"IFERROR(IF(ISBLANK(J113),0,J113*INDEX(Assumptions!$D$20:$D$53,MATCH($D$113,lkpGreenHouseGases,0)))+IF(ISBLANK(J115),0,J115),0)","v":45000},{"$f":"IFERROR(IF(ISBLANK(K113),0,K113*INDEX(Assumptions!$D$20:$D$53,MATCH($D$113,lkpGreenHouseGases,0)))+IF(ISBLANK(K115),0,K115),0)","v":45000},{"$f":"IFERROR(IF(ISBLANK(L113),0,L113*INDEX(Assumptions!$D$20:$D$53,MATCH($D$113,lkpGreenHouseGases,0)))+IF(ISBLANK(L115),0,L115),0)","v":45000},{"$f":"IFERROR(IF(ISBLANK(M113),0,M113*INDEX(Assumptions!$D$20:$D$53,MATCH($D$113,lkpGreenHouseGases,0)))+IF(ISBLANK(M115),0,M115),0)","v":45000},{"$f":"IFERROR(IF(ISBLANK(N113),0,N113*INDEX(Assumptions!$D$20:$D$53,MATCH($D$113,lkpGreenHouseGases,0)))+IF(ISBLANK(N115),0,N115),0)","v":45000},{"$f":"IFERROR(IF(ISBLANK(O113),0,O113*INDEX(Assumptions!$D$20:$D$53,MATCH($D$113,lkpGreenHouseGases,0)))+IF(ISBLANK(O115),0,O115),0)","v":45000},{"$f":"IFERROR(IF(ISBLANK(P113),0,P113*INDEX(Assumptions!$D$20:$D$53,MATCH($D$113,lkpGreenHouseGases,0)))+IF(ISBLANK(P115),0,P115),0)","v":0},{"$f":"IFERROR(IF(ISBLANK(Q113),0,Q113*INDEX(Assumptions!$D$20:$D$53,MATCH($D$113,lkpGreenHouseGases,0)))+IF(ISBLANK(Q115),0,Q115),0)","v":0},{"$f":"IFERROR(IF(ISBLANK(R113),0,R113*INDEX(Assumptions!$D$20:$D$53,MATCH($D$113,lkpGreenHouseGases,0)))+IF(ISBLANK(R115),0,R115),0)","v":0},{"$f":"IFERROR(IF(ISBLANK(S113),0,S113*INDEX(Assumptions!$D$20:$D$53,MATCH($D$113,lkpGreenHouseGases,0)))+IF(ISBLANK(S115),0,S115),0)","v":0},{"$f":"IFERROR(IF(ISBLANK(T113),0,T113*INDEX(Assumptions!$D$20:$D$53,MATCH($D$113,lkpGreenHouseGases,0)))+IF(ISBLANK(T115),0,T115),0)","v":0},{"$f":"IFERROR(IF(ISBLANK(U113),0,U113*INDEX(Assumptions!$D$20:$D$53,MATCH($D$113,lkpGreenHouseGases,0)))+IF(ISBLANK(U115),0,U115),0)","v":0},{"$f":"IFERROR(IF(ISBLANK(V113),0,V113*INDEX(Assumptions!$D$20:$D$53,MATCH($D$113,lkpGreenHouseGases,0)))+IF(ISBLANK(V115),0,V115),0)","v":0},{"$f":"IFERROR(IF(ISBLANK(W113),0,W113*INDEX(Assumptions!$D$20:$D$53,MATCH($D$113,lkpGreenHouseGases,0)))+IF(ISBLANK(W115),0,W115),0)","v":0},{"$f":"IFERROR(IF(ISBLANK(X113),0,X113*INDEX(Assumptions!$D$20:$D$53,MATCH($D$113,lkpGreenHouseGases,0)))+IF(ISBLANK(X115),0,X115),0)","v":0},{"$f":"IFERROR(IF(ISBLANK(Y113),0,Y113*INDEX(Assumptions!$D$20:$D$53,MATCH($D$113,lkpGreenHouseGases,0)))+IF(ISBLANK(Y115),0,Y115),0)","v":0},{"$f":"IFERROR(IF(ISBLANK(Z113),0,Z113*INDEX(Assumptions!$D$20:$D$53,MATCH($D$113,lkpGreenHouseGases,0)))+IF(ISBLANK(Z115),0,Z115),0)","v":0},{"$f":"IFERROR(IF(ISBLANK(AA113),0,AA113*INDEX(Assumptions!$D$20:$D$53,MATCH($D$113,lkpGreenHouseGases,0)))+IF(ISBLANK(AA115),0,AA115),0)","v":0},{"$f":"IFERROR(IF(ISBLANK(AB113),0,AB113*INDEX(Assumptions!$D$20:$D$53,MATCH($D$113,lkpGreenHouseGases,0)))+IF(ISBLANK(AB115),0,AB115),0)","v":0},{"$f":"IFERROR(IF(ISBLANK(AC113),0,AC113*INDEX(Assumptions!$D$20:$D$53,MATCH($D$113,lkpGreenHouseGases,0)))+IF(ISBLANK(AC115),0,AC115),0)","v":0},{"$f":"IFERROR(IF(ISBLANK(AD113),0,AD113*INDEX(Assumptions!$D$20:$D$53,MATCH($D$113,lkpGreenHouseGases,0)))+IF(ISBLANK(AD115),0,AD115),0)","v":0},{"$f":"IFERROR(IF(ISBLANK(AE113),0,AE113*INDEX(Assumptions!$D$20:$D$53,MATCH($D$113,lkpGreenHouseGases,0)))+IF(ISBLANK(AE115),0,AE115),0)","v":0},{"$f":"IFERROR(IF(ISBLANK(AF113),0,AF113*INDEX(Assumptions!$D$20:$D$53,MATCH($D$113,lkpGreenHouseGases,0)))+IF(ISBLANK(AF115),0,AF115),0)","v":0},{"$f":"IFERROR(IF(ISBLANK(AG113),0,AG113*INDEX(Assumptions!$D$20:$D$53,MATCH($D$113,lkpGreenHouseGases,0)))+IF(ISBLANK(AG115),0,AG115),0)","v":0},{"$f":"IFERROR(IF(ISBLANK(AH113),0,AH113*INDEX(Assumptions!$D$20:$D$53,MATCH($D$113,lkpGreenHouseGases,0)))+IF(ISBLANK(AH115),0,AH115),0)","v":0},{"$f":"IFERROR(IF(ISBLANK(AI113),0,AI113*INDEX(Assumptions!$D$20:$D$53,MATCH($D$113,lkpGreenHouseGases,0)))+IF(ISBLANK(AI115),0,AI115),0)","v":0},{"$f":"IFERROR(IF(ISBLANK(AJ113),0,AJ113*INDEX(Assumptions!$D$20:$D$53,MATCH($D$113,lkpGreenHouseGases,0)))+IF(ISBLANK(AJ115),0,AJ115),0)","v":0},{"$f":"IFERROR(IF(ISBLANK(AK113),0,AK113*INDEX(Assumptions!$D$20:$D$53,MATCH($D$113,lkpGreenHouseGases,0)))+IF(ISBLANK(AK115),0,AK115),0)","v":0},{"$f":"IFERROR(IF(ISBLANK(AL113),0,AL113*INDEX(Assumptions!$D$20:$D$53,MATCH($D$113,lkpGreenHouseGases,0)))+IF(ISBLANK(AL115),0,AL115),0)","v":0},{"$f":"IFERROR(IF(ISBLANK(AM113),0,AM113*INDEX(Assumptions!$D$20:$D$53,MATCH($D$113,lkpGreenHouseGases,0)))+IF(ISBLANK(AM115),0,AM115),0)","v":0},{"$f":"IFERROR(IF(ISBLANK(AN113),0,AN113*INDEX(Assumptions!$D$20:$D$53,MATCH($D$113,lkpGreenHouseGases,0)))+IF(ISBLANK(AN115),0,AN115),0)","v":0},{"$f":"IFERROR(IF(ISBLANK(AO113),0,AO113*INDEX(Assumptions!$D$20:$D$53,MATCH($D$113,lkpGreenHouseGases,0)))+IF(ISBLANK(AO115),0,AO115),0)","v":0},{"$f":"IFERROR(IF(ISBLANK(AP113),0,AP113*INDEX(Assumptions!$D$20:$D$53,MATCH($D$113,lkpGreenHouseGases,0)))+IF(ISBLANK(AP115),0,AP115),0)","v":0},{"$f":"IFERROR(IF(ISBLANK(AQ113),0,AQ113*INDEX(Assumptions!$D$20:$D$53,MATCH($D$113,lkpGreenHouseGases,0)))+IF(ISBLANK(AQ115),0,AQ115),0)","v":0},{"$f":"IFERROR(IF(ISBLANK(AR113),0,AR113*INDEX(Assumptions!$D$20:$D$53,MATCH($D$113,lkpGreenHouseGases,0)))+IF(ISBLANK(AR115),0,AR115),0)","v":0},{"$f":"IFERROR(IF(ISBLANK(AS113),0,AS113*INDEX(Assumptions!$D$20:$D$53,MATCH($D$113,lkpGreenHouseGases,0)))+IF(ISBLANK(AS115),0,AS115),0)","v":0},{"$f":"IFERROR(IF(ISBLANK(AT113),0,AT113*INDEX(Assumptions!$D$20:$D$53,MATCH($D$113,lkpGreenHouseGases,0)))+IF(ISBLANK(AT115),0,AT115),0)","v":0},{"$f":"IFERROR(IF(ISBLANK(AU113),0,AU113*INDEX(Assumptions!$D$20:$D$53,MATCH($D$113,lkpGreenHouseGases,0)))+IF(ISBLANK(AU115),0,AU115),0)","v":0},{"$f":"IFERROR(IF(ISBLANK(AV113),0,AV113*INDEX(Assumptions!$D$20:$D$53,MATCH($D$113,lkpGreenHouseGases,0)))+IF(ISBLANK(AV115),0,AV115),0)","v":0},{"$f":"IFERROR(IF(ISBLANK(AW113),0,AW113*INDEX(Assumptions!$D$20:$D$53,MATCH($D$113,lkpGreenHouseGases,0)))+IF(ISBLANK(AW115),0,AW115),0)","v":0},{"$f":"IFERROR(IF(ISBLANK(AX113),0,AX113*INDEX(Assumptions!$D$20:$D$53,MATCH($D$113,lkpGreenHouseGases,0)))+IF(ISBLANK(AX115),0,AX115),0)","v":0},{"$f":"IFERROR(IF(ISBLANK(AY113),0,AY113*INDEX(Assumptions!$D$20:$D$53,MATCH($D$113,lkpGreenHouseGases,0)))+IF(ISBLANK(AY115),0,AY115),0)","v":0},{"$f":"IFERROR(IF(ISBLANK(AZ113),0,AZ113*INDEX(Assumptions!$D$20:$D$53,MATCH($D$113,lkpGreenHouseGases,0)))+IF(ISBLANK(AZ115),0,AZ115),0)","v":0},{"$f":"IFERROR(IF(ISBLANK(BA113),0,BA113*INDEX(Assumptions!$D$20:$D$53,MATCH($D$113,lkpGreenHouseGases,0)))+IF(ISBLANK(BA115),0,BA115),0)","v":0},{"$f":"IFERROR(IF(ISBLANK(BB113),0,BB113*INDEX(Assumptions!$D$20:$D$53,MATCH($D$113,lkpGreenHouseGases,0)))+IF(ISBLANK(BB115),0,BB115),0)","v":0},{"$f":"IFERROR(IF(ISBLANK(BC113),0,BC113*INDEX(Assumptions!$D$20:$D$53,MATCH($D$113,lkpGreenHouseGases,0)))+IF(ISBLANK(BC115),0,BC115),0)","v":0},{"$f":"IFERROR(IF(ISBLANK(BD113),0,BD113*INDEX(Assumptions!$D$20:$D$53,MATCH($D$113,lkpGreenHouseGases,0)))+IF(ISBLANK(BD115),0,BD115),0)","v":0},{"$f":"IFERROR(IF(ISBLANK(BE113),0,BE113*INDEX(Assumptions!$D$20:$D$53,MATCH($D$113,lkpGreenHouseGases,0)))+IF(ISBLANK(BE115),0,BE115),0)","v":0},{"$f":"IFERROR(IF(ISBLANK(BF113),0,BF113*INDEX(Assumptions!$D$20:$D$53,MATCH($D$113,lkpGreenHouseGases,0)))+IF(ISBLANK(BF115),0,BF115),0)","v":0},{"$f":"IFERROR(IF(ISBLANK(BG113),0,BG113*INDEX(Assumptions!$D$20:$D$53,MATCH($D$113,lkpGreenHouseGases,0)))+IF(ISBLANK(BG115),0,BG115),0)","v":0},{"$f":"IFERROR(IF(ISBLANK(BH113),0,BH113*INDEX(Assumptions!$D$20:$D$53,MATCH($D$113,lkpGreenHouseGases,0)))+IF(ISBLANK(BH115),0,BH115),0)","v":0},{"$f":"IFERROR(IF(ISBLANK(BI113),0,BI113*INDEX(Assumptions!$D$20:$D$53,MATCH($D$113,lkpGreenHouseGases,0)))+IF(ISBLANK(BI115),0,BI115),0)","v":0},{"$f":"IFERROR(IF(ISBLANK(BJ113),0,BJ113*INDEX(Assumptions!$D$20:$D$53,MATCH($D$113,lkpGreenHouseGases,0)))+IF(ISBLANK(BJ115),0,BJ115),0)","v":0},{"$f":"IFERROR(IF(ISBLANK(BK113),0,BK113*INDEX(Assumptions!$D$20:$D$53,MATCH($D$113,lkpGreenHouseGases,0)))+IF(ISBLANK(BK115),0,BK115),0)","v":0},{"$f":"IFERROR(IF(ISBLANK(BL113),0,BL113*INDEX(Assumptions!$D$20:$D$53,MATCH($D$113,lkpGreenHouseGases,0)))+IF(ISBLANK(BL115),0,BL115),0)","v":0},{"$f":"IFERROR(IF(ISBLANK(BM113),0,BM113*INDEX(Assumptions!$D$20:$D$53,MATCH($D$113,lkpGreenHouseGases,0)))+IF(ISBLANK(BM115),0,BM115),0)","v":0},{"$f":"IFERROR(IF(ISBLANK(BN113),0,BN113*INDEX(Assumptions!$D$20:$D$53,MATCH($D$113,lkpGreenHouseGases,0)))+IF(ISBLANK(BN115),0,BN115),0)","v":0},{"$f":"IFERROR(IF(ISBLANK(BO113),0,BO113*INDEX(Assumptions!$D$20:$D$53,MATCH($D$113,lkpGreenHouseGases,0)))+IF(ISBLANK(BO115),0,BO115),0)","v":0},{"$f":"IFERROR(IF(ISBLANK(BP113),0,BP113*INDEX(Assumptions!$D$20:$D$53,MATCH($D$113,lkpGreenHouseGases,0)))+IF(ISBLANK(BP115),0,BP115),0)","v":0},{"$f":"IFERROR(IF(ISBLANK(BQ113),0,BQ113*INDEX(Assumptions!$D$20:$D$53,MATCH($D$113,lkpGreenHouseGases,0)))+IF(ISBLANK(BQ115),0,BQ115),0)","v":0},{"$f":"IFERROR(IF(ISBLANK(BR113),0,BR113*INDEX(Assumptions!$D$20:$D$53,MATCH($D$113,lkpGreenHouseGases,0)))+IF(ISBLANK(BR115),0,BR115),0)","v":0},{"$f":"IFERROR(IF(ISBLANK(BS113),0,BS113*INDEX(Assumptions!$D$20:$D$53,MATCH($D$113,lkpGreenHouseGases,0)))+IF(ISBLANK(BS115),0,BS115),0)","v":0},{"$f":"IFERROR(IF(ISBLANK(BT113),0,BT113*INDEX(Assumptions!$D$20:$D$53,MATCH($D$113,lkpGreenHouseGases,0)))+IF(ISBLANK(BT115),0,BT115),0)","v":0},{"$f":"IFERROR(IF(ISBLANK(BU113),0,BU113*INDEX(Assumptions!$D$20:$D$53,MATCH($D$113,lkpGreenHouseGases,0)))+IF(ISBLANK(BU115),0,BU115),0)","v":0},{"$f":"IFERROR(IF(ISBLANK(BV113),0,BV113*INDEX(Assumptions!$D$20:$D$53,MATCH($D$113,lkpGreenHouseGases,0)))+IF(ISBLANK(BV115),0,BV115),0)","v":0},{"$f":"IFERROR(IF(ISBLANK(BW113),0,BW113*INDEX(Assumptions!$D$20:$D$53,MATCH($D$113,lkpGreenHouseGases,0)))+IF(ISBLANK(BW115),0,BW115),0)","v":0},{"$f":"IFERROR(IF(ISBLANK(BX113),0,BX113*INDEX(Assumptions!$D$20:$D$53,MATCH($D$113,lkpGreenHouseGases,0)))+IF(ISBLANK(BX115),0,BX115),0)","v":0},{"$f":"IFERROR(IF(ISBLANK(BY113),0,BY113*INDEX(Assumptions!$D$20:$D$53,MATCH($D$113,lkpGreenHouseGases,0)))+IF(ISBLANK(BY115),0,BY115),0)","v":0},{"$f":"IFERROR(IF(ISBLANK(BZ113),0,BZ113*INDEX(Assumptions!$D$20:$D$53,MATCH($D$113,lkpGreenHouseGases,0)))+IF(ISBLANK(BZ115),0,BZ115),0)","v":0},{"$f":"IFERROR(IF(ISBLANK(CA113),0,CA113*INDEX(Assumptions!$D$20:$D$53,MATCH($D$113,lkpGreenHouseGases,0)))+IF(ISBLANK(CA115),0,CA115),0)","v":0},{"$f":"IFERROR(IF(ISBLANK(CB113),0,CB113*INDEX(Assumptions!$D$20:$D$53,MATCH($D$113,lkpGreenHouseGases,0)))+IF(ISBLANK(CB115),0,CB115),0)","v":0},{"$f":"IFERROR(IF(ISBLANK(CC113),0,CC113*INDEX(Assumptions!$D$20:$D$53,MATCH($D$113,lkpGreenHouseGases,0)))+IF(ISBLANK(CC115),0,CC115),0)","v":0},{"$f":"IFERROR(IF(ISBLANK(CD113),0,CD113*INDEX(Assumptions!$D$20:$D$53,MATCH($D$113,lkpGreenHouseGases,0)))+IF(ISBLANK(CD115),0,CD115),0)","v":0},{"$f":"IFERROR(IF(ISBLANK(CE113),0,CE113*INDEX(Assumptions!$D$20:$D$53,MATCH($D$113,lkpGreenHouseGases,0)))+IF(ISBLANK(CE115),0,CE115),0)","v":0},{"$f":"IFERROR(IF(ISBLANK(CF113),0,CF113*INDEX(Assumptions!$D$20:$D$53,MATCH($D$113,lkpGreenHouseGases,0)))+IF(ISBLANK(CF115),0,CF115),0)","v":0},{"$f":"IFERROR(IF(ISBLANK(CG113),0,CG113*INDEX(Assumptions!$D$20:$D$53,MATCH($D$113,lkpGreenHouseGases,0)))+IF(ISBLANK(CG115),0,CG115),0)","v":0},{"$f":"IFERROR(IF(ISBLANK(CH113),0,CH113*INDEX(Assumptions!$D$20:$D$53,MATCH($D$113,lkpGreenHouseGases,0)))+IF(ISBLANK(CH115),0,CH115),0)","v":0},{"$f":"IFERROR(IF(ISBLANK(CI113),0,CI113*INDEX(Assumptions!$D$20:$D$53,MATCH($D$113,lkpGreenHouseGases,0)))+IF(ISBLANK(CI115),0,CI115),0)","v":0},{"$f":"IFERROR(IF(ISBLANK(CJ113),0,CJ113*INDEX(Assumptions!$D$20:$D$53,MATCH($D$113,lkpGreenHouseGases,0)))+IF(ISBLANK(CJ115),0,CJ115),0)","v":0},{"$f":"IFERROR(IF(ISBLANK(CK113),0,CK113*INDEX(Assumptions!$D$20:$D$53,MATCH($D$113,lkpGreenHouseGases,0)))+IF(ISBLANK(CK115),0,CK115),0)","v":0},{"$f":"IFERROR(IF(ISBLANK(CL113),0,CL113*INDEX(Assumptions!$D$20:$D$53,MATCH($D$113,lkpGreenHouseGases,0)))+IF(ISBLANK(CL115),0,CL115),0)","v":0},{"$f":"IFERROR(IF(ISBLANK(CM113),0,CM113*INDEX(Assumptions!$D$20:$D$53,MATCH($D$113,lkpGreenHouseGases,0)))+IF(ISBLANK(CM115),0,CM115),0)","v":0},{"$f":"IFERROR(IF(ISBLANK(CN113),0,CN113*INDEX(Assumptions!$D$20:$D$53,MATCH($D$113,lkpGreenHouseGases,0)))+IF(ISBLANK(CN115),0,CN115),0)","v":0},{"$f":"IFERROR(IF(ISBLANK(CO113),0,CO113*INDEX(Assumptions!$D$20:$D$53,MATCH($D$113,lkpGreenHouseGases,0)))+IF(ISBLANK(CO115),0,CO115),0)","v":0},{"$f":"IFERROR(IF(ISBLANK(CP113),0,CP113*INDEX(Assumptions!$D$20:$D$53,MATCH($D$113,lkpGreenHouseGases,0)))+IF(ISBLANK(CP115),0,CP115),0)","v":0},{"$f":"IFERROR(IF(ISBLANK(CQ113),0,CQ113*INDEX(Assumptions!$D$20:$D$53,MATCH($D$113,lkpGreenHouseGases,0)))+IF(ISBLANK(CQ115),0,CQ115),0)","v":0},{"$f":"IFERROR(IF(ISBLANK(CR113),0,CR113*INDEX(Assumptions!$D$20:$D$53,MATCH($D$113,lkpGreenHouseGases,0)))+IF(ISBLANK(CR115),0,CR115),0)","v":0},{"$f":"IFERROR(IF(ISBLANK(CS113),0,CS113*INDEX(Assumptions!$D$20:$D$53,MATCH($D$113,lkpGreenHouseGases,0)))+IF(ISBLANK(CS115),0,CS115),0)","v":0},{"$f":"IFERROR(IF(ISBLANK(CT113),0,CT113*INDEX(Assumptions!$D$20:$D$53,MATCH($D$113,lkpGreenHouseGases,0)))+IF(ISBLANK(CT115),0,CT115),0)","v":0},{"$f":"IFERROR(IF(ISBLANK(CU113),0,CU113*INDEX(Assumptions!$D$20:$D$53,MATCH($D$113,lkpGreenHouseGases,0)))+IF(ISBLANK(CU115),0,CU115),0)","v":0},{"$f":"IFERROR(IF(ISBLANK(CV113),0,CV113*INDEX(Assumptions!$D$20:$D$53,MATCH($D$113,lkpGreenHouseGases,0)))+IF(ISBLANK(CV115),0,CV115),0)","v":0},{"$f":"IFERROR(IF(ISBLANK(CW113),0,CW113*INDEX(Assumptions!$D$20:$D$53,MATCH($D$113,lkpGreenHouseGases,0)))+IF(ISBLANK(CW115),0,CW115),0)","v":0},{"$f":"IFERROR(IF(ISBLANK(CX113),0,CX113*INDEX(Assumptions!$D$20:$D$53,MATCH($D$113,lkpGreenHouseGases,0)))+IF(ISBLANK(CX115),0,CX115),0)","v":0},{"$f":"IFERROR(IF(ISBLANK(CY113),0,CY113*INDEX(Assumptions!$D$20:$D$53,MATCH($D$113,lkpGreenHouseGases,0)))+IF(ISBLANK(CY115),0,CY115),0)","v":0},{"$f":"IFERROR(IF(ISBLANK(CZ113),0,CZ113*INDEX(Assumptions!$D$20:$D$53,MATCH($D$113,lkpGreenHouseGases,0)))+IF(ISBLANK(CZ115),0,CZ115),0)","v":0},{"$f":"IFERROR(IF(ISBLANK(DA113),0,DA113*INDEX(Assumptions!$D$20:$D$53,MATCH($D$113,lkpGreenHouseGases,0)))+IF(ISBLANK(DA115),0,DA115),0)","v":0},{"$f":"IFERROR(IF(ISBLANK(DB113),0,DB113*INDEX(Assumptions!$D$20:$D$53,MATCH($D$113,lkpGreenHouseGases,0)))+IF(ISBLANK(DB115),0,DB115),0)","v":0},{"$f":"IFERROR(IF(ISBLANK(DC113),0,DC113*INDEX(Assumptions!$D$20:$D$53,MATCH($D$113,lkpGreenHouseGases,0)))+IF(ISBLANK(DC115),0,DC115),0)","v":0},{"$f":"IFERROR(IF(ISBLANK(DD113),0,DD113*INDEX(Assumptions!$D$20:$D$53,MATCH($D$113,lkpGreenHouseGases,0)))+IF(ISBLANK(DD115),0,DD115),0)","v":0}]
[]
[null,null,null,"'Fuel-related' GHG emissions","(?)"]
[null,null,null,{"$f":"D92","v":"Electricity"},"tCO2e","(Auto calculated value)",null,{"$f":"IFERROR(H84*INDEX('Emissions factors'!$F$5:$CR$10,MATCH('Data Input - Option 3'!$D120,'Emissions factors'!$C$5:$C$10,0),MATCH('Data Input - Option 3'!H$7,'Emissions factors'!$F$4:$CR$4,0))/1000,0)","v":1147.9102063708638},{"$f":"IFERROR(I84*INDEX('Emissions factors'!$F$5:$CR$10,MATCH('Data Input - Option 3'!$D120,'Emissions factors'!$C$5:$C$10,0),MATCH('Data Input - Option 3'!I$7,'Emissions factors'!$F$4:$CR$4,0))/1000,0)","v":1022.7509038254832},{"$f":"IFERROR(J84*INDEX('Emissions factors'!$F$5:$CR$10,MATCH('Data Input - Option 3'!$D120,'Emissions factors'!$C$5:$C$10,0),MATCH('Data Input - Option 3'!J$7,'Emissions factors'!$F$4:$CR$4,0))/1000,0)","v":900.70523018473978},{"$f":"IFERROR(K84*INDEX('Emissions factors'!$F$5:$CR$10,MATCH('Data Input - Option 3'!$D120,'Emissions factors'!$C$5:$C$10,0),MATCH('Data Input - Option 3'!K$7,'Emissions factors'!$F$4:$CR$4,0))/1000,0)","v":829.51171353866823},{"$f":"IFERROR(L84*INDEX('Emissions factors'!$F$5:$CR$10,MATCH('Data Input - Option 3'!$D120,'Emissions factors'!$C$5:$C$10,0),MATCH('Data Input - Option 3'!L$7,'Emissions factors'!$F$4:$CR$4,0))/1000,0)","v":706.29239328079632},{"$f":"IFERROR(M84*INDEX('Emissions factors'!$F$5:$CR$10,MATCH('Data Input - Option 3'!$D120,'Emissions factors'!$C$5:$C$10,0),MATCH('Data Input - Option 3'!M$7,'Emissions factors'!$F$4:$CR$4,0))/1000,0)","v":741.68258779755536},{"$f":"IFERROR(N84*INDEX('Emissions factors'!$F$5:$CR$10,MATCH('Data Input - Option 3'!$D120,'Emissions factors'!$C$5:$C$10,0),MATCH('Data Input - Option 3'!N$7,'Emissions factors'!$F$4:$CR$4,0))/1000,0)","v":695.10356862610229},{"$f":"IFERROR(O84*INDEX('Emissions factors'!$F$5:$CR$10,MATCH('Data Input - Option 3'!$D120,'Emissions factors'!$C$5:$C$10,0),MATCH('Data Input - Option 3'!O$7,'Emissions factors'!$F$4:$CR$4,0))/1000,0)","v":617.9056138546847},{"$f":"IFERROR(P84*INDEX('Emissions factors'!$F$5:$CR$10,MATCH('Data Input - Option 3'!$D120,'Emissions factors'!$C$5:$C$10,0),MATCH('Data Input - Option 3'!P$7,'Emissions factors'!$F$4:$CR$4,0))/1000,0)","v":0},{"$f":"IFERROR(Q84*INDEX('Emissions factors'!$F$5:$CR$10,MATCH('Data Input - Option 3'!$D120,'Emissions factors'!$C$5:$C$10,0),MATCH('Data Input - Option 3'!Q$7,'Emissions factors'!$F$4:$CR$4,0))/1000,0)","v":0},{"$f":"IFERROR(R84*INDEX('Emissions factors'!$F$5:$CR$10,MATCH('Data Input - Option 3'!$D120,'Emissions factors'!$C$5:$C$10,0),MATCH('Data Input - Option 3'!R$7,'Emissions factors'!$F$4:$CR$4,0))/1000,0)","v":0},{"$f":"IFERROR(S84*INDEX('Emissions factors'!$F$5:$CR$10,MATCH('Data Input - Option 3'!$D120,'Emissions factors'!$C$5:$C$10,0),MATCH('Data Input - Option 3'!S$7,'Emissions factors'!$F$4:$CR$4,0))/1000,0)","v":0},{"$f":"IFERROR(T84*INDEX('Emissions factors'!$F$5:$CR$10,MATCH('Data Input - Option 3'!$D120,'Emissions factors'!$C$5:$C$10,0),MATCH('Data Input - Option 3'!T$7,'Emissions factors'!$F$4:$CR$4,0))/1000,0)","v":0},{"$f":"IFERROR(U84*INDEX('Emissions factors'!$F$5:$CR$10,MATCH('Data Input - Option 3'!$D120,'Emissions factors'!$C$5:$C$10,0),MATCH('Data Input - Option 3'!U$7,'Emissions factors'!$F$4:$CR$4,0))/1000,0)","v":0},{"$f":"IFERROR(V84*INDEX('Emissions factors'!$F$5:$CR$10,MATCH('Data Input - Option 3'!$D120,'Emissions factors'!$C$5:$C$10,0),MATCH('Data Input - Option 3'!V$7,'Emissions factors'!$F$4:$CR$4,0))/1000,0)","v":0},{"$f":"IFERROR(W84*INDEX('Emissions factors'!$F$5:$CR$10,MATCH('Data Input - Option 3'!$D120,'Emissions factors'!$C$5:$C$10,0),MATCH('Data Input - Option 3'!W$7,'Emissions factors'!$F$4:$CR$4,0))/1000,0)","v":0},{"$f":"IFERROR(X84*INDEX('Emissions factors'!$F$5:$CR$10,MATCH('Data Input - Option 3'!$D120,'Emissions factors'!$C$5:$C$10,0),MATCH('Data Input - Option 3'!X$7,'Emissions factors'!$F$4:$CR$4,0))/1000,0)","v":0},{"$f":"IFERROR(Y84*INDEX('Emissions factors'!$F$5:$CR$10,MATCH('Data Input - Option 3'!$D120,'Emissions factors'!$C$5:$C$10,0),MATCH('Data Input - Option 3'!Y$7,'Emissions factors'!$F$4:$CR$4,0))/1000,0)","v":0},{"$f":"IFERROR(Z84*INDEX('Emissions factors'!$F$5:$CR$10,MATCH('Data Input - Option 3'!$D120,'Emissions factors'!$C$5:$C$10,0),MATCH('Data Input - Option 3'!Z$7,'Emissions factors'!$F$4:$CR$4,0))/1000,0)","v":0},{"$f":"IFERROR(AA84*INDEX('Emissions factors'!$F$5:$CR$10,MATCH('Data Input - Option 3'!$D120,'Emissions factors'!$C$5:$C$10,0),MATCH('Data Input - Option 3'!AA$7,'Emissions factors'!$F$4:$CR$4,0))/1000,0)","v":0},{"$f":"IFERROR(AB84*INDEX('Emissions factors'!$F$5:$CR$10,MATCH('Data Input - Option 3'!$D120,'Emissions factors'!$C$5:$C$10,0),MATCH('Data Input - Option 3'!AB$7,'Emissions factors'!$F$4:$CR$4,0))/1000,0)","v":0},{"$f":"IFERROR(AC84*INDEX('Emissions factors'!$F$5:$CR$10,MATCH('Data Input - Option 3'!$D120,'Emissions factors'!$C$5:$C$10,0),MATCH('Data Input - Option 3'!AC$7,'Emissions factors'!$F$4:$CR$4,0))/1000,0)","v":0},{"$f":"IFERROR(AD84*INDEX('Emissions factors'!$F$5:$CR$10,MATCH('Data Input - Option 3'!$D120,'Emissions factors'!$C$5:$C$10,0),MATCH('Data Input - Option 3'!AD$7,'Emissions factors'!$F$4:$CR$4,0))/1000,0)","v":0},{"$f":"IFERROR(AE84*INDEX('Emissions factors'!$F$5:$CR$10,MATCH('Data Input - Option 3'!$D120,'Emissions factors'!$C$5:$C$10,0),MATCH('Data Input - Option 3'!AE$7,'Emissions factors'!$F$4:$CR$4,0))/1000,0)","v":0},{"$f":"IFERROR(AF84*INDEX('Emissions factors'!$F$5:$CR$10,MATCH('Data Input - Option 3'!$D120,'Emissions factors'!$C$5:$C$10,0),MATCH('Data Input - Option 3'!AF$7,'Emissions factors'!$F$4:$CR$4,0))/1000,0)","v":0},{"$f":"IFERROR(AG84*INDEX('Emissions factors'!$F$5:$CR$10,MATCH('Data Input - Option 3'!$D120,'Emissions factors'!$C$5:$C$10,0),MATCH('Data Input - Option 3'!AG$7,'Emissions factors'!$F$4:$CR$4,0))/1000,0)","v":0},{"$f":"IFERROR(AH84*INDEX('Emissions factors'!$F$5:$CR$10,MATCH('Data Input - Option 3'!$D120,'Emissions factors'!$C$5:$C$10,0),MATCH('Data Input - Option 3'!AH$7,'Emissions factors'!$F$4:$CR$4,0))/1000,0)","v":0},{"$f":"IFERROR(AI84*INDEX('Emissions factors'!$F$5:$CR$10,MATCH('Data Input - Option 3'!$D120,'Emissions factors'!$C$5:$C$10,0),MATCH('Data Input - Option 3'!AI$7,'Emissions factors'!$F$4:$CR$4,0))/1000,0)","v":0},{"$f":"IFERROR(AJ84*INDEX('Emissions factors'!$F$5:$CR$10,MATCH('Data Input - Option 3'!$D120,'Emissions factors'!$C$5:$C$10,0),MATCH('Data Input - Option 3'!AJ$7,'Emissions factors'!$F$4:$CR$4,0))/1000,0)","v":0},{"$f":"IFERROR(AK84*INDEX('Emissions factors'!$F$5:$CR$10,MATCH('Data Input - Option 3'!$D120,'Emissions factors'!$C$5:$C$10,0),MATCH('Data Input - Option 3'!AK$7,'Emissions factors'!$F$4:$CR$4,0))/1000,0)","v":0},{"$f":"IFERROR(AL84*INDEX('Emissions factors'!$F$5:$CR$10,MATCH('Data Input - Option 3'!$D120,'Emissions factors'!$C$5:$C$10,0),MATCH('Data Input - Option 3'!AL$7,'Emissions factors'!$F$4:$CR$4,0))/1000,0)","v":0},{"$f":"IFERROR(AM84*INDEX('Emissions factors'!$F$5:$CR$10,MATCH('Data Input - Option 3'!$D120,'Emissions factors'!$C$5:$C$10,0),MATCH('Data Input - Option 3'!AM$7,'Emissions factors'!$F$4:$CR$4,0))/1000,0)","v":0},{"$f":"IFERROR(AN84*INDEX('Emissions factors'!$F$5:$CR$10,MATCH('Data Input - Option 3'!$D120,'Emissions factors'!$C$5:$C$10,0),MATCH('Data Input - Option 3'!AN$7,'Emissions factors'!$F$4:$CR$4,0))/1000,0)","v":0},{"$f":"IFERROR(AO84*INDEX('Emissions factors'!$F$5:$CR$10,MATCH('Data Input - Option 3'!$D120,'Emissions factors'!$C$5:$C$10,0),MATCH('Data Input - Option 3'!AO$7,'Emissions factors'!$F$4:$CR$4,0))/1000,0)","v":0},{"$f":"IFERROR(AP84*INDEX('Emissions factors'!$F$5:$CR$10,MATCH('Data Input - Option 3'!$D120,'Emissions factors'!$C$5:$C$10,0),MATCH('Data Input - Option 3'!AP$7,'Emissions factors'!$F$4:$CR$4,0))/1000,0)","v":0},{"$f":"IFERROR(AQ84*INDEX('Emissions factors'!$F$5:$CR$10,MATCH('Data Input - Option 3'!$D120,'Emissions factors'!$C$5:$C$10,0),MATCH('Data Input - Option 3'!AQ$7,'Emissions factors'!$F$4:$CR$4,0))/1000,0)","v":0},{"$f":"IFERROR(AR84*INDEX('Emissions factors'!$F$5:$CR$10,MATCH('Data Input - Option 3'!$D120,'Emissions factors'!$C$5:$C$10,0),MATCH('Data Input - Option 3'!AR$7,'Emissions factors'!$F$4:$CR$4,0))/1000,0)","v":0},{"$f":"IFERROR(AS84*INDEX('Emissions factors'!$F$5:$CR$10,MATCH('Data Input - Option 3'!$D120,'Emissions factors'!$C$5:$C$10,0),MATCH('Data Input - Option 3'!AS$7,'Emissions factors'!$F$4:$CR$4,0))/1000,0)","v":0},{"$f":"IFERROR(AT84*INDEX('Emissions factors'!$F$5:$CR$10,MATCH('Data Input - Option 3'!$D120,'Emissions factors'!$C$5:$C$10,0),MATCH('Data Input - Option 3'!AT$7,'Emissions factors'!$F$4:$CR$4,0))/1000,0)","v":0},{"$f":"IFERROR(AU84*INDEX('Emissions factors'!$F$5:$CR$10,MATCH('Data Input - Option 3'!$D120,'Emissions factors'!$C$5:$C$10,0),MATCH('Data Input - Option 3'!AU$7,'Emissions factors'!$F$4:$CR$4,0))/1000,0)","v":0},{"$f":"IFERROR(AV84*INDEX('Emissions factors'!$F$5:$CR$10,MATCH('Data Input - Option 3'!$D120,'Emissions factors'!$C$5:$C$10,0),MATCH('Data Input - Option 3'!AV$7,'Emissions factors'!$F$4:$CR$4,0))/1000,0)","v":0},{"$f":"IFERROR(AW84*INDEX('Emissions factors'!$F$5:$CR$10,MATCH('Data Input - Option 3'!$D120,'Emissions factors'!$C$5:$C$10,0),MATCH('Data Input - Option 3'!AW$7,'Emissions factors'!$F$4:$CR$4,0))/1000,0)","v":0},{"$f":"IFERROR(AX84*INDEX('Emissions factors'!$F$5:$CR$10,MATCH('Data Input - Option 3'!$D120,'Emissions factors'!$C$5:$C$10,0),MATCH('Data Input - Option 3'!AX$7,'Emissions factors'!$F$4:$CR$4,0))/1000,0)","v":0},{"$f":"IFERROR(AY84*INDEX('Emissions factors'!$F$5:$CR$10,MATCH('Data Input - Option 3'!$D120,'Emissions factors'!$C$5:$C$10,0),MATCH('Data Input - Option 3'!AY$7,'Emissions factors'!$F$4:$CR$4,0))/1000,0)","v":0},{"$f":"IFERROR(AZ84*INDEX('Emissions factors'!$F$5:$CR$10,MATCH('Data Input - Option 3'!$D120,'Emissions factors'!$C$5:$C$10,0),MATCH('Data Input - Option 3'!AZ$7,'Emissions factors'!$F$4:$CR$4,0))/1000,0)","v":0},{"$f":"IFERROR(BA84*INDEX('Emissions factors'!$F$5:$CR$10,MATCH('Data Input - Option 3'!$D120,'Emissions factors'!$C$5:$C$10,0),MATCH('Data Input - Option 3'!BA$7,'Emissions factors'!$F$4:$CR$4,0))/1000,0)","v":0},{"$f":"IFERROR(BB84*INDEX('Emissions factors'!$F$5:$CR$10,MATCH('Data Input - Option 3'!$D120,'Emissions factors'!$C$5:$C$10,0),MATCH('Data Input - Option 3'!BB$7,'Emissions factors'!$F$4:$CR$4,0))/1000,0)","v":0},{"$f":"IFERROR(BC84*INDEX('Emissions factors'!$F$5:$CR$10,MATCH('Data Input - Option 3'!$D120,'Emissions factors'!$C$5:$C$10,0),MATCH('Data Input - Option 3'!BC$7,'Emissions factors'!$F$4:$CR$4,0))/1000,0)","v":0},{"$f":"IFERROR(BD84*INDEX('Emissions factors'!$F$5:$CR$10,MATCH('Data Input - Option 3'!$D120,'Emissions factors'!$C$5:$C$10,0),MATCH('Data Input - Option 3'!BD$7,'Emissions factors'!$F$4:$CR$4,0))/1000,0)","v":0},{"$f":"IFERROR(BE84*INDEX('Emissions factors'!$F$5:$CR$10,MATCH('Data Input - Option 3'!$D120,'Emissions factors'!$C$5:$C$10,0),MATCH('Data Input - Option 3'!BE$7,'Emissions factors'!$F$4:$CR$4,0))/1000,0)","v":0},{"$f":"IFERROR(BF84*INDEX('Emissions factors'!$F$5:$CR$10,MATCH('Data Input - Option 3'!$D120,'Emissions factors'!$C$5:$C$10,0),MATCH('Data Input - Option 3'!BF$7,'Emissions factors'!$F$4:$CR$4,0))/1000,0)","v":0},{"$f":"IFERROR(BG84*INDEX('Emissions factors'!$F$5:$CR$10,MATCH('Data Input - Option 3'!$D120,'Emissions factors'!$C$5:$C$10,0),MATCH('Data Input - Option 3'!BG$7,'Emissions factors'!$F$4:$CR$4,0))/1000,0)","v":0},{"$f":"IFERROR(BH84*INDEX('Emissions factors'!$F$5:$CR$10,MATCH('Data Input - Option 3'!$D120,'Emissions factors'!$C$5:$C$10,0),MATCH('Data Input - Option 3'!BH$7,'Emissions factors'!$F$4:$CR$4,0))/1000,0)","v":0},{"$f":"IFERROR(BI84*INDEX('Emissions factors'!$F$5:$CR$10,MATCH('Data Input - Option 3'!$D120,'Emissions factors'!$C$5:$C$10,0),MATCH('Data Input - Option 3'!BI$7,'Emissions factors'!$F$4:$CR$4,0))/1000,0)","v":0},{"$f":"IFERROR(BJ84*INDEX('Emissions factors'!$F$5:$CR$10,MATCH('Data Input - Option 3'!$D120,'Emissions factors'!$C$5:$C$10,0),MATCH('Data Input - Option 3'!BJ$7,'Emissions factors'!$F$4:$CR$4,0))/1000,0)","v":0},{"$f":"IFERROR(BK84*INDEX('Emissions factors'!$F$5:$CR$10,MATCH('Data Input - Option 3'!$D120,'Emissions factors'!$C$5:$C$10,0),MATCH('Data Input - Option 3'!BK$7,'Emissions factors'!$F$4:$CR$4,0))/1000,0)","v":0},{"$f":"IFERROR(BL84*INDEX('Emissions factors'!$F$5:$CR$10,MATCH('Data Input - Option 3'!$D120,'Emissions factors'!$C$5:$C$10,0),MATCH('Data Input - Option 3'!BL$7,'Emissions factors'!$F$4:$CR$4,0))/1000,0)","v":0},{"$f":"IFERROR(BM84*INDEX('Emissions factors'!$F$5:$CR$10,MATCH('Data Input - Option 3'!$D120,'Emissions factors'!$C$5:$C$10,0),MATCH('Data Input - Option 3'!BM$7,'Emissions factors'!$F$4:$CR$4,0))/1000,0)","v":0},{"$f":"IFERROR(BN84*INDEX('Emissions factors'!$F$5:$CR$10,MATCH('Data Input - Option 3'!$D120,'Emissions factors'!$C$5:$C$10,0),MATCH('Data Input - Option 3'!BN$7,'Emissions factors'!$F$4:$CR$4,0))/1000,0)","v":0},{"$f":"IFERROR(BO84*INDEX('Emissions factors'!$F$5:$CR$10,MATCH('Data Input - Option 3'!$D120,'Emissions factors'!$C$5:$C$10,0),MATCH('Data Input - Option 3'!BO$7,'Emissions factors'!$F$4:$CR$4,0))/1000,0)","v":0},{"$f":"IFERROR(BP84*INDEX('Emissions factors'!$F$5:$CR$10,MATCH('Data Input - Option 3'!$D120,'Emissions factors'!$C$5:$C$10,0),MATCH('Data Input - Option 3'!BP$7,'Emissions factors'!$F$4:$CR$4,0))/1000,0)","v":0},{"$f":"IFERROR(BQ84*INDEX('Emissions factors'!$F$5:$CR$10,MATCH('Data Input - Option 3'!$D120,'Emissions factors'!$C$5:$C$10,0),MATCH('Data Input - Option 3'!BQ$7,'Emissions factors'!$F$4:$CR$4,0))/1000,0)","v":0},{"$f":"IFERROR(BR84*INDEX('Emissions factors'!$F$5:$CR$10,MATCH('Data Input - Option 3'!$D120,'Emissions factors'!$C$5:$C$10,0),MATCH('Data Input - Option 3'!BR$7,'Emissions factors'!$F$4:$CR$4,0))/1000,0)","v":0},{"$f":"IFERROR(BS84*INDEX('Emissions factors'!$F$5:$CR$10,MATCH('Data Input - Option 3'!$D120,'Emissions factors'!$C$5:$C$10,0),MATCH('Data Input - Option 3'!BS$7,'Emissions factors'!$F$4:$CR$4,0))/1000,0)","v":0},{"$f":"IFERROR(BT84*INDEX('Emissions factors'!$F$5:$CR$10,MATCH('Data Input - Option 3'!$D120,'Emissions factors'!$C$5:$C$10,0),MATCH('Data Input - Option 3'!BT$7,'Emissions factors'!$F$4:$CR$4,0))/1000,0)","v":0},{"$f":"IFERROR(BU84*INDEX('Emissions factors'!$F$5:$CR$10,MATCH('Data Input - Option 3'!$D120,'Emissions factors'!$C$5:$C$10,0),MATCH('Data Input - Option 3'!BU$7,'Emissions factors'!$F$4:$CR$4,0))/1000,0)","v":0},{"$f":"IFERROR(BV84*INDEX('Emissions factors'!$F$5:$CR$10,MATCH('Data Input - Option 3'!$D120,'Emissions factors'!$C$5:$C$10,0),MATCH('Data Input - Option 3'!BV$7,'Emissions factors'!$F$4:$CR$4,0))/1000,0)","v":0},{"$f":"IFERROR(BW84*INDEX('Emissions factors'!$F$5:$CR$10,MATCH('Data Input - Option 3'!$D120,'Emissions factors'!$C$5:$C$10,0),MATCH('Data Input - Option 3'!BW$7,'Emissions factors'!$F$4:$CR$4,0))/1000,0)","v":0},{"$f":"IFERROR(BX84*INDEX('Emissions factors'!$F$5:$CR$10,MATCH('Data Input - Option 3'!$D120,'Emissions factors'!$C$5:$C$10,0),MATCH('Data Input - Option 3'!BX$7,'Emissions factors'!$F$4:$CR$4,0))/1000,0)","v":0},{"$f":"IFERROR(BY84*INDEX('Emissions factors'!$F$5:$CR$10,MATCH('Data Input - Option 3'!$D120,'Emissions factors'!$C$5:$C$10,0),MATCH('Data Input - Option 3'!BY$7,'Emissions factors'!$F$4:$CR$4,0))/1000,0)","v":0},{"$f":"IFERROR(BZ84*INDEX('Emissions factors'!$F$5:$CR$10,MATCH('Data Input - Option 3'!$D120,'Emissions factors'!$C$5:$C$10,0),MATCH('Data Input - Option 3'!BZ$7,'Emissions factors'!$F$4:$CR$4,0))/1000,0)","v":0},{"$f":"IFERROR(CA84*INDEX('Emissions factors'!$F$5:$CR$10,MATCH('Data Input - Option 3'!$D120,'Emissions factors'!$C$5:$C$10,0),MATCH('Data Input - Option 3'!CA$7,'Emissions factors'!$F$4:$CR$4,0))/1000,0)","v":0},{"$f":"IFERROR(CB84*INDEX('Emissions factors'!$F$5:$CR$10,MATCH('Data Input - Option 3'!$D120,'Emissions factors'!$C$5:$C$10,0),MATCH('Data Input - Option 3'!CB$7,'Emissions factors'!$F$4:$CR$4,0))/1000,0)","v":0},{"$f":"IFERROR(CC84*INDEX('Emissions factors'!$F$5:$CR$10,MATCH('Data Input - Option 3'!$D120,'Emissions factors'!$C$5:$C$10,0),MATCH('Data Input - Option 3'!CC$7,'Emissions factors'!$F$4:$CR$4,0))/1000,0)","v":0},{"$f":"IFERROR(CD84*INDEX('Emissions factors'!$F$5:$CR$10,MATCH('Data Input - Option 3'!$D120,'Emissions factors'!$C$5:$C$10,0),MATCH('Data Input - Option 3'!CD$7,'Emissions factors'!$F$4:$CR$4,0))/1000,0)","v":0},{"$f":"IFERROR(CE84*INDEX('Emissions factors'!$F$5:$CR$10,MATCH('Data Input - Option 3'!$D120,'Emissions factors'!$C$5:$C$10,0),MATCH('Data Input - Option 3'!CE$7,'Emissions factors'!$F$4:$CR$4,0))/1000,0)","v":0},{"$f":"IFERROR(CF84*INDEX('Emissions factors'!$F$5:$CR$10,MATCH('Data Input - Option 3'!$D120,'Emissions factors'!$C$5:$C$10,0),MATCH('Data Input - Option 3'!CF$7,'Emissions factors'!$F$4:$CR$4,0))/1000,0)","v":0},{"$f":"IFERROR(CG84*INDEX('Emissions factors'!$F$5:$CR$10,MATCH('Data Input - Option 3'!$D120,'Emissions factors'!$C$5:$C$10,0),MATCH('Data Input - Option 3'!CG$7,'Emissions factors'!$F$4:$CR$4,0))/1000,0)","v":0},{"$f":"IFERROR(CH84*INDEX('Emissions factors'!$F$5:$CR$10,MATCH('Data Input - Option 3'!$D120,'Emissions factors'!$C$5:$C$10,0),MATCH('Data Input - Option 3'!CH$7,'Emissions factors'!$F$4:$CR$4,0))/1000,0)","v":0},{"$f":"IFERROR(CI84*INDEX('Emissions factors'!$F$5:$CR$10,MATCH('Data Input - Option 3'!$D120,'Emissions factors'!$C$5:$C$10,0),MATCH('Data Input - Option 3'!CI$7,'Emissions factors'!$F$4:$CR$4,0))/1000,0)","v":0},{"$f":"IFERROR(CJ84*INDEX('Emissions factors'!$F$5:$CR$10,MATCH('Data Input - Option 3'!$D120,'Emissions factors'!$C$5:$C$10,0),MATCH('Data Input - Option 3'!CJ$7,'Emissions factors'!$F$4:$CR$4,0))/1000,0)","v":0},{"$f":"IFERROR(CK84*INDEX('Emissions factors'!$F$5:$CR$10,MATCH('Data Input - Option 3'!$D120,'Emissions factors'!$C$5:$C$10,0),MATCH('Data Input - Option 3'!CK$7,'Emissions factors'!$F$4:$CR$4,0))/1000,0)","v":0},{"$f":"IFERROR(CL84*INDEX('Emissions factors'!$F$5:$CR$10,MATCH('Data Input - Option 3'!$D120,'Emissions factors'!$C$5:$C$10,0),MATCH('Data Input - Option 3'!CL$7,'Emissions factors'!$F$4:$CR$4,0))/1000,0)","v":0},{"$f":"IFERROR(CM84*INDEX('Emissions factors'!$F$5:$CR$10,MATCH('Data Input - Option 3'!$D120,'Emissions factors'!$C$5:$C$10,0),MATCH('Data Input - Option 3'!CM$7,'Emissions factors'!$F$4:$CR$4,0))/1000,0)","v":0},{"$f":"IFERROR(CN84*INDEX('Emissions factors'!$F$5:$CR$10,MATCH('Data Input - Option 3'!$D120,'Emissions factors'!$C$5:$C$10,0),MATCH('Data Input - Option 3'!CN$7,'Emissions factors'!$F$4:$CR$4,0))/1000,0)","v":0},{"$f":"IFERROR(CO84*INDEX('Emissions factors'!$F$5:$CR$10,MATCH('Data Input - Option 3'!$D120,'Emissions factors'!$C$5:$C$10,0),MATCH('Data Input - Option 3'!CO$7,'Emissions factors'!$F$4:$CR$4,0))/1000,0)","v":0},{"$f":"IFERROR(CP84*INDEX('Emissions factors'!$F$5:$CR$10,MATCH('Data Input - Option 3'!$D120,'Emissions factors'!$C$5:$C$10,0),MATCH('Data Input - Option 3'!CP$7,'Emissions factors'!$F$4:$CR$4,0))/1000,0)","v":0},{"$f":"IFERROR(CQ84*INDEX('Emissions factors'!$F$5:$CR$10,MATCH('Data Input - Option 3'!$D120,'Emissions factors'!$C$5:$C$10,0),MATCH('Data Input - Option 3'!CQ$7,'Emissions factors'!$F$4:$CR$4,0))/1000,0)","v":0},{"$f":"IFERROR(CR84*INDEX('Emissions factors'!$F$5:$CR$10,MATCH('Data Input - Option 3'!$D120,'Emissions factors'!$C$5:$C$10,0),MATCH('Data Input - Option 3'!CR$7,'Emissions factors'!$F$4:$CR$4,0))/1000,0)","v":0},{"$f":"IFERROR(CS84*INDEX('Emissions factors'!$F$5:$CR$10,MATCH('Data Input - Option 3'!$D120,'Emissions factors'!$C$5:$C$10,0),MATCH('Data Input - Option 3'!CS$7,'Emissions factors'!$F$4:$CR$4,0))/1000,0)","v":0},{"$f":"IFERROR(CT84*INDEX('Emissions factors'!$F$5:$CR$10,MATCH('Data Input - Option 3'!$D120,'Emissions factors'!$C$5:$C$10,0),MATCH('Data Input - Option 3'!CT$7,'Emissions factors'!$F$4:$CR$4,0))/1000,0)","v":0},{"$f":"IFERROR(CU84*INDEX('Emissions factors'!$F$5:$CR$10,MATCH('Data Input - Option 3'!$D120,'Emissions factors'!$C$5:$C$10,0),MATCH('Data Input - Option 3'!CU$7,'Emissions factors'!$F$4:$CR$4,0))/1000,0)","v":0},{"$f":"IFERROR(CV84*INDEX('Emissions factors'!$F$5:$CR$10,MATCH('Data Input - Option 3'!$D120,'Emissions factors'!$C$5:$C$10,0),MATCH('Data Input - Option 3'!CV$7,'Emissions factors'!$F$4:$CR$4,0))/1000,0)","v":0},{"$f":"IFERROR(CW84*INDEX('Emissions factors'!$F$5:$CR$10,MATCH('Data Input - Option 3'!$D120,'Emissions factors'!$C$5:$C$10,0),MATCH('Data Input - Option 3'!CW$7,'Emissions factors'!$F$4:$CR$4,0))/1000,0)","v":0},{"$f":"IFERROR(CX84*INDEX('Emissions factors'!$F$5:$CR$10,MATCH('Data Input - Option 3'!$D120,'Emissions factors'!$C$5:$C$10,0),MATCH('Data Input - Option 3'!CX$7,'Emissions factors'!$F$4:$CR$4,0))/1000,0)","v":0},{"$f":"IFERROR(CY84*INDEX('Emissions factors'!$F$5:$CR$10,MATCH('Data Input - Option 3'!$D120,'Emissions factors'!$C$5:$C$10,0),MATCH('Data Input - Option 3'!CY$7,'Emissions factors'!$F$4:$CR$4,0))/1000,0)","v":0},{"$f":"IFERROR(CZ84*INDEX('Emissions factors'!$F$5:$CR$10,MATCH('Data Input - Option 3'!$D120,'Emissions factors'!$C$5:$C$10,0),MATCH('Data Input - Option 3'!CZ$7,'Emissions factors'!$F$4:$CR$4,0))/1000,0)","v":0},{"$f":"IFERROR(DA84*INDEX('Emissions factors'!$F$5:$CR$10,MATCH('Data Input - Option 3'!$D120,'Emissions factors'!$C$5:$C$10,0),MATCH('Data Input - Option 3'!DA$7,'Emissions factors'!$F$4:$CR$4,0))/1000,0)","v":0},{"$f":"IFERROR(DB84*INDEX('Emissions factors'!$F$5:$CR$10,MATCH('Data Input - Option 3'!$D120,'Emissions factors'!$C$5:$C$10,0),MATCH('Data Input - Option 3'!DB$7,'Emissions factors'!$F$4:$CR$4,0))/1000,0)","v":0},{"$f":"IFERROR(DC84*INDEX('Emissions factors'!$F$5:$CR$10,MATCH('Data Input - Option 3'!$D120,'Emissions factors'!$C$5:$C$10,0),MATCH('Data Input - Option 3'!DC$7,'Emissions factors'!$F$4:$CR$4,0))/1000,0)","v":0}]
[null,null,null,"Natural Gas","tCO2e","(Auto calculated value)",null,{"$f":"IFERROR(H85*INDEX('Emissions factors'!$F$5:$CR$10,MATCH('Data Input - Option 3'!$D121,'Emissions factors'!$C$5:$C$10,0),MATCH('Data Input - Option 3'!H$7,'Emissions factors'!$F$4:$CR$4,0))/1000,0)","v":0},{"$f":"IFERROR(I85*INDEX('Emissions factors'!$F$5:$CR$10,MATCH('Data Input - Option 3'!$D121,'Emissions factors'!$C$5:$C$10,0),MATCH('Data Input - Option 3'!I$7,'Emissions factors'!$F$4:$CR$4,0))/1000,0)","v":0},{"$f":"IFERROR(J85*INDEX('Emissions factors'!$F$5:$CR$10,MATCH('Data Input - Option 3'!$D121,'Emissions factors'!$C$5:$C$10,0),MATCH('Data Input - Option 3'!J$7,'Emissions factors'!$F$4:$CR$4,0))/1000,0)","v":0},{"$f":"IFERROR(K85*INDEX('Emissions factors'!$F$5:$CR$10,MATCH('Data Input - Option 3'!$D121,'Emissions factors'!$C$5:$C$10,0),MATCH('Data Input - Option 3'!K$7,'Emissions factors'!$F$4:$CR$4,0))/1000,0)","v":0},{"$f":"IFERROR(L85*INDEX('Emissions factors'!$F$5:$CR$10,MATCH('Data Input - Option 3'!$D121,'Emissions factors'!$C$5:$C$10,0),MATCH('Data Input - Option 3'!L$7,'Emissions factors'!$F$4:$CR$4,0))/1000,0)","v":0},{"$f":"IFERROR(M85*INDEX('Emissions factors'!$F$5:$CR$10,MATCH('Data Input - Option 3'!$D121,'Emissions factors'!$C$5:$C$10,0),MATCH('Data Input - Option 3'!M$7,'Emissions factors'!$F$4:$CR$4,0))/1000,0)","v":0},{"$f":"IFERROR(N85*INDEX('Emissions factors'!$F$5:$CR$10,MATCH('Data Input - Option 3'!$D121,'Emissions factors'!$C$5:$C$10,0),MATCH('Data Input - Option 3'!N$7,'Emissions factors'!$F$4:$CR$4,0))/1000,0)","v":0},{"$f":"IFERROR(O85*INDEX('Emissions factors'!$F$5:$CR$10,MATCH('Data Input - Option 3'!$D121,'Emissions factors'!$C$5:$C$10,0),MATCH('Data Input - Option 3'!O$7,'Emissions factors'!$F$4:$CR$4,0))/1000,0)","v":0},{"$f":"IFERROR(P85*INDEX('Emissions factors'!$F$5:$CR$10,MATCH('Data Input - Option 3'!$D121,'Emissions factors'!$C$5:$C$10,0),MATCH('Data Input - Option 3'!P$7,'Emissions factors'!$F$4:$CR$4,0))/1000,0)","v":0},{"$f":"IFERROR(Q85*INDEX('Emissions factors'!$F$5:$CR$10,MATCH('Data Input - Option 3'!$D121,'Emissions factors'!$C$5:$C$10,0),MATCH('Data Input - Option 3'!Q$7,'Emissions factors'!$F$4:$CR$4,0))/1000,0)","v":0},{"$f":"IFERROR(R85*INDEX('Emissions factors'!$F$5:$CR$10,MATCH('Data Input - Option 3'!$D121,'Emissions factors'!$C$5:$C$10,0),MATCH('Data Input - Option 3'!R$7,'Emissions factors'!$F$4:$CR$4,0))/1000,0)","v":0},{"$f":"IFERROR(S85*INDEX('Emissions factors'!$F$5:$CR$10,MATCH('Data Input - Option 3'!$D121,'Emissions factors'!$C$5:$C$10,0),MATCH('Data Input - Option 3'!S$7,'Emissions factors'!$F$4:$CR$4,0))/1000,0)","v":0},{"$f":"IFERROR(T85*INDEX('Emissions factors'!$F$5:$CR$10,MATCH('Data Input - Option 3'!$D121,'Emissions factors'!$C$5:$C$10,0),MATCH('Data Input - Option 3'!T$7,'Emissions factors'!$F$4:$CR$4,0))/1000,0)","v":0},{"$f":"IFERROR(U85*INDEX('Emissions factors'!$F$5:$CR$10,MATCH('Data Input - Option 3'!$D121,'Emissions factors'!$C$5:$C$10,0),MATCH('Data Input - Option 3'!U$7,'Emissions factors'!$F$4:$CR$4,0))/1000,0)","v":0},{"$f":"IFERROR(V85*INDEX('Emissions factors'!$F$5:$CR$10,MATCH('Data Input - Option 3'!$D121,'Emissions factors'!$C$5:$C$10,0),MATCH('Data Input - Option 3'!V$7,'Emissions factors'!$F$4:$CR$4,0))/1000,0)","v":0},{"$f":"IFERROR(W85*INDEX('Emissions factors'!$F$5:$CR$10,MATCH('Data Input - Option 3'!$D121,'Emissions factors'!$C$5:$C$10,0),MATCH('Data Input - Option 3'!W$7,'Emissions factors'!$F$4:$CR$4,0))/1000,0)","v":0},{"$f":"IFERROR(X85*INDEX('Emissions factors'!$F$5:$CR$10,MATCH('Data Input - Option 3'!$D121,'Emissions factors'!$C$5:$C$10,0),MATCH('Data Input - Option 3'!X$7,'Emissions factors'!$F$4:$CR$4,0))/1000,0)","v":0},{"$f":"IFERROR(Y85*INDEX('Emissions factors'!$F$5:$CR$10,MATCH('Data Input - Option 3'!$D121,'Emissions factors'!$C$5:$C$10,0),MATCH('Data Input - Option 3'!Y$7,'Emissions factors'!$F$4:$CR$4,0))/1000,0)","v":0},{"$f":"IFERROR(Z85*INDEX('Emissions factors'!$F$5:$CR$10,MATCH('Data Input - Option 3'!$D121,'Emissions factors'!$C$5:$C$10,0),MATCH('Data Input - Option 3'!Z$7,'Emissions factors'!$F$4:$CR$4,0))/1000,0)","v":0},{"$f":"IFERROR(AA85*INDEX('Emissions factors'!$F$5:$CR$10,MATCH('Data Input - Option 3'!$D121,'Emissions factors'!$C$5:$C$10,0),MATCH('Data Input - Option 3'!AA$7,'Emissions factors'!$F$4:$CR$4,0))/1000,0)","v":0},{"$f":"IFERROR(AB85*INDEX('Emissions factors'!$F$5:$CR$10,MATCH('Data Input - Option 3'!$D121,'Emissions factors'!$C$5:$C$10,0),MATCH('Data Input - Option 3'!AB$7,'Emissions factors'!$F$4:$CR$4,0))/1000,0)","v":0},{"$f":"IFERROR(AC85*INDEX('Emissions factors'!$F$5:$CR$10,MATCH('Data Input - Option 3'!$D121,'Emissions factors'!$C$5:$C$10,0),MATCH('Data Input - Option 3'!AC$7,'Emissions factors'!$F$4:$CR$4,0))/1000,0)","v":0},{"$f":"IFERROR(AD85*INDEX('Emissions factors'!$F$5:$CR$10,MATCH('Data Input - Option 3'!$D121,'Emissions factors'!$C$5:$C$10,0),MATCH('Data Input - Option 3'!AD$7,'Emissions factors'!$F$4:$CR$4,0))/1000,0)","v":0},{"$f":"IFERROR(AE85*INDEX('Emissions factors'!$F$5:$CR$10,MATCH('Data Input - Option 3'!$D121,'Emissions factors'!$C$5:$C$10,0),MATCH('Data Input - Option 3'!AE$7,'Emissions factors'!$F$4:$CR$4,0))/1000,0)","v":0},{"$f":"IFERROR(AF85*INDEX('Emissions factors'!$F$5:$CR$10,MATCH('Data Input - Option 3'!$D121,'Emissions factors'!$C$5:$C$10,0),MATCH('Data Input - Option 3'!AF$7,'Emissions factors'!$F$4:$CR$4,0))/1000,0)","v":0},{"$f":"IFERROR(AG85*INDEX('Emissions factors'!$F$5:$CR$10,MATCH('Data Input - Option 3'!$D121,'Emissions factors'!$C$5:$C$10,0),MATCH('Data Input - Option 3'!AG$7,'Emissions factors'!$F$4:$CR$4,0))/1000,0)","v":0},{"$f":"IFERROR(AH85*INDEX('Emissions factors'!$F$5:$CR$10,MATCH('Data Input - Option 3'!$D121,'Emissions factors'!$C$5:$C$10,0),MATCH('Data Input - Option 3'!AH$7,'Emissions factors'!$F$4:$CR$4,0))/1000,0)","v":0},{"$f":"IFERROR(AI85*INDEX('Emissions factors'!$F$5:$CR$10,MATCH('Data Input - Option 3'!$D121,'Emissions factors'!$C$5:$C$10,0),MATCH('Data Input - Option 3'!AI$7,'Emissions factors'!$F$4:$CR$4,0))/1000,0)","v":0},{"$f":"IFERROR(AJ85*INDEX('Emissions factors'!$F$5:$CR$10,MATCH('Data Input - Option 3'!$D121,'Emissions factors'!$C$5:$C$10,0),MATCH('Data Input - Option 3'!AJ$7,'Emissions factors'!$F$4:$CR$4,0))/1000,0)","v":0},{"$f":"IFERROR(AK85*INDEX('Emissions factors'!$F$5:$CR$10,MATCH('Data Input - Option 3'!$D121,'Emissions factors'!$C$5:$C$10,0),MATCH('Data Input - Option 3'!AK$7,'Emissions factors'!$F$4:$CR$4,0))/1000,0)","v":0},{"$f":"IFERROR(AL85*INDEX('Emissions factors'!$F$5:$CR$10,MATCH('Data Input - Option 3'!$D121,'Emissions factors'!$C$5:$C$10,0),MATCH('Data Input - Option 3'!AL$7,'Emissions factors'!$F$4:$CR$4,0))/1000,0)","v":0},{"$f":"IFERROR(AM85*INDEX('Emissions factors'!$F$5:$CR$10,MATCH('Data Input - Option 3'!$D121,'Emissions factors'!$C$5:$C$10,0),MATCH('Data Input - Option 3'!AM$7,'Emissions factors'!$F$4:$CR$4,0))/1000,0)","v":0},{"$f":"IFERROR(AN85*INDEX('Emissions factors'!$F$5:$CR$10,MATCH('Data Input - Option 3'!$D121,'Emissions factors'!$C$5:$C$10,0),MATCH('Data Input - Option 3'!AN$7,'Emissions factors'!$F$4:$CR$4,0))/1000,0)","v":0},{"$f":"IFERROR(AO85*INDEX('Emissions factors'!$F$5:$CR$10,MATCH('Data Input - Option 3'!$D121,'Emissions factors'!$C$5:$C$10,0),MATCH('Data Input - Option 3'!AO$7,'Emissions factors'!$F$4:$CR$4,0))/1000,0)","v":0},{"$f":"IFERROR(AP85*INDEX('Emissions factors'!$F$5:$CR$10,MATCH('Data Input - Option 3'!$D121,'Emissions factors'!$C$5:$C$10,0),MATCH('Data Input - Option 3'!AP$7,'Emissions factors'!$F$4:$CR$4,0))/1000,0)","v":0},{"$f":"IFERROR(AQ85*INDEX('Emissions factors'!$F$5:$CR$10,MATCH('Data Input - Option 3'!$D121,'Emissions factors'!$C$5:$C$10,0),MATCH('Data Input - Option 3'!AQ$7,'Emissions factors'!$F$4:$CR$4,0))/1000,0)","v":0},{"$f":"IFERROR(AR85*INDEX('Emissions factors'!$F$5:$CR$10,MATCH('Data Input - Option 3'!$D121,'Emissions factors'!$C$5:$C$10,0),MATCH('Data Input - Option 3'!AR$7,'Emissions factors'!$F$4:$CR$4,0))/1000,0)","v":0},{"$f":"IFERROR(AS85*INDEX('Emissions factors'!$F$5:$CR$10,MATCH('Data Input - Option 3'!$D121,'Emissions factors'!$C$5:$C$10,0),MATCH('Data Input - Option 3'!AS$7,'Emissions factors'!$F$4:$CR$4,0))/1000,0)","v":0},{"$f":"IFERROR(AT85*INDEX('Emissions factors'!$F$5:$CR$10,MATCH('Data Input - Option 3'!$D121,'Emissions factors'!$C$5:$C$10,0),MATCH('Data Input - Option 3'!AT$7,'Emissions factors'!$F$4:$CR$4,0))/1000,0)","v":0},{"$f":"IFERROR(AU85*INDEX('Emissions factors'!$F$5:$CR$10,MATCH('Data Input - Option 3'!$D121,'Emissions factors'!$C$5:$C$10,0),MATCH('Data Input - Option 3'!AU$7,'Emissions factors'!$F$4:$CR$4,0))/1000,0)","v":0},{"$f":"IFERROR(AV85*INDEX('Emissions factors'!$F$5:$CR$10,MATCH('Data Input - Option 3'!$D121,'Emissions factors'!$C$5:$C$10,0),MATCH('Data Input - Option 3'!AV$7,'Emissions factors'!$F$4:$CR$4,0))/1000,0)","v":0},{"$f":"IFERROR(AW85*INDEX('Emissions factors'!$F$5:$CR$10,MATCH('Data Input - Option 3'!$D121,'Emissions factors'!$C$5:$C$10,0),MATCH('Data Input - Option 3'!AW$7,'Emissions factors'!$F$4:$CR$4,0))/1000,0)","v":0},{"$f":"IFERROR(AX85*INDEX('Emissions factors'!$F$5:$CR$10,MATCH('Data Input - Option 3'!$D121,'Emissions factors'!$C$5:$C$10,0),MATCH('Data Input - Option 3'!AX$7,'Emissions factors'!$F$4:$CR$4,0))/1000,0)","v":0},{"$f":"IFERROR(AY85*INDEX('Emissions factors'!$F$5:$CR$10,MATCH('Data Input - Option 3'!$D121,'Emissions factors'!$C$5:$C$10,0),MATCH('Data Input - Option 3'!AY$7,'Emissions factors'!$F$4:$CR$4,0))/1000,0)","v":0},{"$f":"IFERROR(AZ85*INDEX('Emissions factors'!$F$5:$CR$10,MATCH('Data Input - Option 3'!$D121,'Emissions factors'!$C$5:$C$10,0),MATCH('Data Input - Option 3'!AZ$7,'Emissions factors'!$F$4:$CR$4,0))/1000,0)","v":0},{"$f":"IFERROR(BA85*INDEX('Emissions factors'!$F$5:$CR$10,MATCH('Data Input - Option 3'!$D121,'Emissions factors'!$C$5:$C$10,0),MATCH('Data Input - Option 3'!BA$7,'Emissions factors'!$F$4:$CR$4,0))/1000,0)","v":0},{"$f":"IFERROR(BB85*INDEX('Emissions factors'!$F$5:$CR$10,MATCH('Data Input - Option 3'!$D121,'Emissions factors'!$C$5:$C$10,0),MATCH('Data Input - Option 3'!BB$7,'Emissions factors'!$F$4:$CR$4,0))/1000,0)","v":0},{"$f":"IFERROR(BC85*INDEX('Emissions factors'!$F$5:$CR$10,MATCH('Data Input - Option 3'!$D121,'Emissions factors'!$C$5:$C$10,0),MATCH('Data Input - Option 3'!BC$7,'Emissions factors'!$F$4:$CR$4,0))/1000,0)","v":0},{"$f":"IFERROR(BD85*INDEX('Emissions factors'!$F$5:$CR$10,MATCH('Data Input - Option 3'!$D121,'Emissions factors'!$C$5:$C$10,0),MATCH('Data Input - Option 3'!BD$7,'Emissions factors'!$F$4:$CR$4,0))/1000,0)","v":0},{"$f":"IFERROR(BE85*INDEX('Emissions factors'!$F$5:$CR$10,MATCH('Data Input - Option 3'!$D121,'Emissions factors'!$C$5:$C$10,0),MATCH('Data Input - Option 3'!BE$7,'Emissions factors'!$F$4:$CR$4,0))/1000,0)","v":0},{"$f":"IFERROR(BF85*INDEX('Emissions factors'!$F$5:$CR$10,MATCH('Data Input - Option 3'!$D121,'Emissions factors'!$C$5:$C$10,0),MATCH('Data Input - Option 3'!BF$7,'Emissions factors'!$F$4:$CR$4,0))/1000,0)","v":0},{"$f":"IFERROR(BG85*INDEX('Emissions factors'!$F$5:$CR$10,MATCH('Data Input - Option 3'!$D121,'Emissions factors'!$C$5:$C$10,0),MATCH('Data Input - Option 3'!BG$7,'Emissions factors'!$F$4:$CR$4,0))/1000,0)","v":0},{"$f":"IFERROR(BH85*INDEX('Emissions factors'!$F$5:$CR$10,MATCH('Data Input - Option 3'!$D121,'Emissions factors'!$C$5:$C$10,0),MATCH('Data Input - Option 3'!BH$7,'Emissions factors'!$F$4:$CR$4,0))/1000,0)","v":0},{"$f":"IFERROR(BI85*INDEX('Emissions factors'!$F$5:$CR$10,MATCH('Data Input - Option 3'!$D121,'Emissions factors'!$C$5:$C$10,0),MATCH('Data Input - Option 3'!BI$7,'Emissions factors'!$F$4:$CR$4,0))/1000,0)","v":0},{"$f":"IFERROR(BJ85*INDEX('Emissions factors'!$F$5:$CR$10,MATCH('Data Input - Option 3'!$D121,'Emissions factors'!$C$5:$C$10,0),MATCH('Data Input - Option 3'!BJ$7,'Emissions factors'!$F$4:$CR$4,0))/1000,0)","v":0},{"$f":"IFERROR(BK85*INDEX('Emissions factors'!$F$5:$CR$10,MATCH('Data Input - Option 3'!$D121,'Emissions factors'!$C$5:$C$10,0),MATCH('Data Input - Option 3'!BK$7,'Emissions factors'!$F$4:$CR$4,0))/1000,0)","v":0},{"$f":"IFERROR(BL85*INDEX('Emissions factors'!$F$5:$CR$10,MATCH('Data Input - Option 3'!$D121,'Emissions factors'!$C$5:$C$10,0),MATCH('Data Input - Option 3'!BL$7,'Emissions factors'!$F$4:$CR$4,0))/1000,0)","v":0},{"$f":"IFERROR(BM85*INDEX('Emissions factors'!$F$5:$CR$10,MATCH('Data Input - Option 3'!$D121,'Emissions factors'!$C$5:$C$10,0),MATCH('Data Input - Option 3'!BM$7,'Emissions factors'!$F$4:$CR$4,0))/1000,0)","v":0},{"$f":"IFERROR(BN85*INDEX('Emissions factors'!$F$5:$CR$10,MATCH('Data Input - Option 3'!$D121,'Emissions factors'!$C$5:$C$10,0),MATCH('Data Input - Option 3'!BN$7,'Emissions factors'!$F$4:$CR$4,0))/1000,0)","v":0},{"$f":"IFERROR(BO85*INDEX('Emissions factors'!$F$5:$CR$10,MATCH('Data Input - Option 3'!$D121,'Emissions factors'!$C$5:$C$10,0),MATCH('Data Input - Option 3'!BO$7,'Emissions factors'!$F$4:$CR$4,0))/1000,0)","v":0},{"$f":"IFERROR(BP85*INDEX('Emissions factors'!$F$5:$CR$10,MATCH('Data Input - Option 3'!$D121,'Emissions factors'!$C$5:$C$10,0),MATCH('Data Input - Option 3'!BP$7,'Emissions factors'!$F$4:$CR$4,0))/1000,0)","v":0},{"$f":"IFERROR(BQ85*INDEX('Emissions factors'!$F$5:$CR$10,MATCH('Data Input - Option 3'!$D121,'Emissions factors'!$C$5:$C$10,0),MATCH('Data Input - Option 3'!BQ$7,'Emissions factors'!$F$4:$CR$4,0))/1000,0)","v":0},{"$f":"IFERROR(BR85*INDEX('Emissions factors'!$F$5:$CR$10,MATCH('Data Input - Option 3'!$D121,'Emissions factors'!$C$5:$C$10,0),MATCH('Data Input - Option 3'!BR$7,'Emissions factors'!$F$4:$CR$4,0))/1000,0)","v":0},{"$f":"IFERROR(BS85*INDEX('Emissions factors'!$F$5:$CR$10,MATCH('Data Input - Option 3'!$D121,'Emissions factors'!$C$5:$C$10,0),MATCH('Data Input - Option 3'!BS$7,'Emissions factors'!$F$4:$CR$4,0))/1000,0)","v":0},{"$f":"IFERROR(BT85*INDEX('Emissions factors'!$F$5:$CR$10,MATCH('Data Input - Option 3'!$D121,'Emissions factors'!$C$5:$C$10,0),MATCH('Data Input - Option 3'!BT$7,'Emissions factors'!$F$4:$CR$4,0))/1000,0)","v":0},{"$f":"IFERROR(BU85*INDEX('Emissions factors'!$F$5:$CR$10,MATCH('Data Input - Option 3'!$D121,'Emissions factors'!$C$5:$C$10,0),MATCH('Data Input - Option 3'!BU$7,'Emissions factors'!$F$4:$CR$4,0))/1000,0)","v":0},{"$f":"IFERROR(BV85*INDEX('Emissions factors'!$F$5:$CR$10,MATCH('Data Input - Option 3'!$D121,'Emissions factors'!$C$5:$C$10,0),MATCH('Data Input - Option 3'!BV$7,'Emissions factors'!$F$4:$CR$4,0))/1000,0)","v":0},{"$f":"IFERROR(BW85*INDEX('Emissions factors'!$F$5:$CR$10,MATCH('Data Input - Option 3'!$D121,'Emissions factors'!$C$5:$C$10,0),MATCH('Data Input - Option 3'!BW$7,'Emissions factors'!$F$4:$CR$4,0))/1000,0)","v":0},{"$f":"IFERROR(BX85*INDEX('Emissions factors'!$F$5:$CR$10,MATCH('Data Input - Option 3'!$D121,'Emissions factors'!$C$5:$C$10,0),MATCH('Data Input - Option 3'!BX$7,'Emissions factors'!$F$4:$CR$4,0))/1000,0)","v":0},{"$f":"IFERROR(BY85*INDEX('Emissions factors'!$F$5:$CR$10,MATCH('Data Input - Option 3'!$D121,'Emissions factors'!$C$5:$C$10,0),MATCH('Data Input - Option 3'!BY$7,'Emissions factors'!$F$4:$CR$4,0))/1000,0)","v":0},{"$f":"IFERROR(BZ85*INDEX('Emissions factors'!$F$5:$CR$10,MATCH('Data Input - Option 3'!$D121,'Emissions factors'!$C$5:$C$10,0),MATCH('Data Input - Option 3'!BZ$7,'Emissions factors'!$F$4:$CR$4,0))/1000,0)","v":0},{"$f":"IFERROR(CA85*INDEX('Emissions factors'!$F$5:$CR$10,MATCH('Data Input - Option 3'!$D121,'Emissions factors'!$C$5:$C$10,0),MATCH('Data Input - Option 3'!CA$7,'Emissions factors'!$F$4:$CR$4,0))/1000,0)","v":0},{"$f":"IFERROR(CB85*INDEX('Emissions factors'!$F$5:$CR$10,MATCH('Data Input - Option 3'!$D121,'Emissions factors'!$C$5:$C$10,0),MATCH('Data Input - Option 3'!CB$7,'Emissions factors'!$F$4:$CR$4,0))/1000,0)","v":0},{"$f":"IFERROR(CC85*INDEX('Emissions factors'!$F$5:$CR$10,MATCH('Data Input - Option 3'!$D121,'Emissions factors'!$C$5:$C$10,0),MATCH('Data Input - Option 3'!CC$7,'Emissions factors'!$F$4:$CR$4,0))/1000,0)","v":0},{"$f":"IFERROR(CD85*INDEX('Emissions factors'!$F$5:$CR$10,MATCH('Data Input - Option 3'!$D121,'Emissions factors'!$C$5:$C$10,0),MATCH('Data Input - Option 3'!CD$7,'Emissions factors'!$F$4:$CR$4,0))/1000,0)","v":0},{"$f":"IFERROR(CE85*INDEX('Emissions factors'!$F$5:$CR$10,MATCH('Data Input - Option 3'!$D121,'Emissions factors'!$C$5:$C$10,0),MATCH('Data Input - Option 3'!CE$7,'Emissions factors'!$F$4:$CR$4,0))/1000,0)","v":0},{"$f":"IFERROR(CF85*INDEX('Emissions factors'!$F$5:$CR$10,MATCH('Data Input - Option 3'!$D121,'Emissions factors'!$C$5:$C$10,0),MATCH('Data Input - Option 3'!CF$7,'Emissions factors'!$F$4:$CR$4,0))/1000,0)","v":0},{"$f":"IFERROR(CG85*INDEX('Emissions factors'!$F$5:$CR$10,MATCH('Data Input - Option 3'!$D121,'Emissions factors'!$C$5:$C$10,0),MATCH('Data Input - Option 3'!CG$7,'Emissions factors'!$F$4:$CR$4,0))/1000,0)","v":0},{"$f":"IFERROR(CH85*INDEX('Emissions factors'!$F$5:$CR$10,MATCH('Data Input - Option 3'!$D121,'Emissions factors'!$C$5:$C$10,0),MATCH('Data Input - Option 3'!CH$7,'Emissions factors'!$F$4:$CR$4,0))/1000,0)","v":0},{"$f":"IFERROR(CI85*INDEX('Emissions factors'!$F$5:$CR$10,MATCH('Data Input - Option 3'!$D121,'Emissions factors'!$C$5:$C$10,0),MATCH('Data Input - Option 3'!CI$7,'Emissions factors'!$F$4:$CR$4,0))/1000,0)","v":0},{"$f":"IFERROR(CJ85*INDEX('Emissions factors'!$F$5:$CR$10,MATCH('Data Input - Option 3'!$D121,'Emissions factors'!$C$5:$C$10,0),MATCH('Data Input - Option 3'!CJ$7,'Emissions factors'!$F$4:$CR$4,0))/1000,0)","v":0},{"$f":"IFERROR(CK85*INDEX('Emissions factors'!$F$5:$CR$10,MATCH('Data Input - Option 3'!$D121,'Emissions factors'!$C$5:$C$10,0),MATCH('Data Input - Option 3'!CK$7,'Emissions factors'!$F$4:$CR$4,0))/1000,0)","v":0},{"$f":"IFERROR(CL85*INDEX('Emissions factors'!$F$5:$CR$10,MATCH('Data Input - Option 3'!$D121,'Emissions factors'!$C$5:$C$10,0),MATCH('Data Input - Option 3'!CL$7,'Emissions factors'!$F$4:$CR$4,0))/1000,0)","v":0},{"$f":"IFERROR(CM85*INDEX('Emissions factors'!$F$5:$CR$10,MATCH('Data Input - Option 3'!$D121,'Emissions factors'!$C$5:$C$10,0),MATCH('Data Input - Option 3'!CM$7,'Emissions factors'!$F$4:$CR$4,0))/1000,0)","v":0},{"$f":"IFERROR(CN85*INDEX('Emissions factors'!$F$5:$CR$10,MATCH('Data Input - Option 3'!$D121,'Emissions factors'!$C$5:$C$10,0),MATCH('Data Input - Option 3'!CN$7,'Emissions factors'!$F$4:$CR$4,0))/1000,0)","v":0},{"$f":"IFERROR(CO85*INDEX('Emissions factors'!$F$5:$CR$10,MATCH('Data Input - Option 3'!$D121,'Emissions factors'!$C$5:$C$10,0),MATCH('Data Input - Option 3'!CO$7,'Emissions factors'!$F$4:$CR$4,0))/1000,0)","v":0},{"$f":"IFERROR(CP85*INDEX('Emissions factors'!$F$5:$CR$10,MATCH('Data Input - Option 3'!$D121,'Emissions factors'!$C$5:$C$10,0),MATCH('Data Input - Option 3'!CP$7,'Emissions factors'!$F$4:$CR$4,0))/1000,0)","v":0},{"$f":"IFERROR(CQ85*INDEX('Emissions factors'!$F$5:$CR$10,MATCH('Data Input - Option 3'!$D121,'Emissions factors'!$C$5:$C$10,0),MATCH('Data Input - Option 3'!CQ$7,'Emissions factors'!$F$4:$CR$4,0))/1000,0)","v":0},{"$f":"IFERROR(CR85*INDEX('Emissions factors'!$F$5:$CR$10,MATCH('Data Input - Option 3'!$D121,'Emissions factors'!$C$5:$C$10,0),MATCH('Data Input - Option 3'!CR$7,'Emissions factors'!$F$4:$CR$4,0))/1000,0)","v":0},{"$f":"IFERROR(CS85*INDEX('Emissions factors'!$F$5:$CR$10,MATCH('Data Input - Option 3'!$D121,'Emissions factors'!$C$5:$C$10,0),MATCH('Data Input - Option 3'!CS$7,'Emissions factors'!$F$4:$CR$4,0))/1000,0)","v":0},{"$f":"IFERROR(CT85*INDEX('Emissions factors'!$F$5:$CR$10,MATCH('Data Input - Option 3'!$D121,'Emissions factors'!$C$5:$C$10,0),MATCH('Data Input - Option 3'!CT$7,'Emissions factors'!$F$4:$CR$4,0))/1000,0)","v":0},{"$f":"IFERROR(CU85*INDEX('Emissions factors'!$F$5:$CR$10,MATCH('Data Input - Option 3'!$D121,'Emissions factors'!$C$5:$C$10,0),MATCH('Data Input - Option 3'!CU$7,'Emissions factors'!$F$4:$CR$4,0))/1000,0)","v":0},{"$f":"IFERROR(CV85*INDEX('Emissions factors'!$F$5:$CR$10,MATCH('Data Input - Option 3'!$D121,'Emissions factors'!$C$5:$C$10,0),MATCH('Data Input - Option 3'!CV$7,'Emissions factors'!$F$4:$CR$4,0))/1000,0)","v":0},{"$f":"IFERROR(CW85*INDEX('Emissions factors'!$F$5:$CR$10,MATCH('Data Input - Option 3'!$D121,'Emissions factors'!$C$5:$C$10,0),MATCH('Data Input - Option 3'!CW$7,'Emissions factors'!$F$4:$CR$4,0))/1000,0)","v":0},{"$f":"IFERROR(CX85*INDEX('Emissions factors'!$F$5:$CR$10,MATCH('Data Input - Option 3'!$D121,'Emissions factors'!$C$5:$C$10,0),MATCH('Data Input - Option 3'!CX$7,'Emissions factors'!$F$4:$CR$4,0))/1000,0)","v":0},{"$f":"IFERROR(CY85*INDEX('Emissions factors'!$F$5:$CR$10,MATCH('Data Input - Option 3'!$D121,'Emissions factors'!$C$5:$C$10,0),MATCH('Data Input - Option 3'!CY$7,'Emissions factors'!$F$4:$CR$4,0))/1000,0)","v":0},{"$f":"IFERROR(CZ85*INDEX('Emissions factors'!$F$5:$CR$10,MATCH('Data Input - Option 3'!$D121,'Emissions factors'!$C$5:$C$10,0),MATCH('Data Input - Option 3'!CZ$7,'Emissions factors'!$F$4:$CR$4,0))/1000,0)","v":0},{"$f":"IFERROR(DA85*INDEX('Emissions factors'!$F$5:$CR$10,MATCH('Data Input - Option 3'!$D121,'Emissions factors'!$C$5:$C$10,0),MATCH('Data Input - Option 3'!DA$7,'Emissions factors'!$F$4:$CR$4,0))/1000,0)","v":0},{"$f":"IFERROR(DB85*INDEX('Emissions factors'!$F$5:$CR$10,MATCH('Data Input - Option 3'!$D121,'Emissions factors'!$C$5:$C$10,0),MATCH('Data Input - Option 3'!DB$7,'Emissions factors'!$F$4:$CR$4,0))/1000,0)","v":0},{"$f":"IFERROR(DC85*INDEX('Emissions factors'!$F$5:$CR$10,MATCH('Data Input - Option 3'!$D121,'Emissions factors'!$C$5:$C$10,0),MATCH('Data Input - Option 3'!DC$7,'Emissions factors'!$F$4:$CR$4,0))/1000,0)","v":0}]
[null,null,null,"Coal","tCO2e","(Auto calculated value)",null,{"$f":"IFERROR(H86*INDEX('Emissions factors'!$F$5:$CR$10,MATCH('Data Input - Option 3'!$D122,'Emissions factors'!$C$5:$C$10,0),MATCH('Data Input - Option 3'!H$7,'Emissions factors'!$F$4:$CR$4,0))/1000,0)","v":49942.045940625001},{"$f":"IFERROR(I86*INDEX('Emissions factors'!$F$5:$CR$10,MATCH('Data Input - Option 3'!$D122,'Emissions factors'!$C$5:$C$10,0),MATCH('Data Input - Option 3'!I$7,'Emissions factors'!$F$4:$CR$4,0))/1000,0)","v":49942.045940625001},{"$f":"IFERROR(J86*INDEX('Emissions factors'!$F$5:$CR$10,MATCH('Data Input - Option 3'!$D122,'Emissions factors'!$C$5:$C$10,0),MATCH('Data Input - Option 3'!J$7,'Emissions factors'!$F$4:$CR$4,0))/1000,0)","v":49942.045940625001},{"$f":"IFERROR(K86*INDEX('Emissions factors'!$F$5:$CR$10,MATCH('Data Input - Option 3'!$D122,'Emissions factors'!$C$5:$C$10,0),MATCH('Data Input - Option 3'!K$7,'Emissions factors'!$F$4:$CR$4,0))/1000,0)","v":49942.045940625001},{"$f":"IFERROR(L86*INDEX('Emissions factors'!$F$5:$CR$10,MATCH('Data Input - Option 3'!$D122,'Emissions factors'!$C$5:$C$10,0),MATCH('Data Input - Option 3'!L$7,'Emissions factors'!$F$4:$CR$4,0))/1000,0)","v":49942.045940625001},{"$f":"IFERROR(M86*INDEX('Emissions factors'!$F$5:$CR$10,MATCH('Data Input - Option 3'!$D122,'Emissions factors'!$C$5:$C$10,0),MATCH('Data Input - Option 3'!M$7,'Emissions factors'!$F$4:$CR$4,0))/1000,0)","v":49942.045940625001},{"$f":"IFERROR(N86*INDEX('Emissions factors'!$F$5:$CR$10,MATCH('Data Input - Option 3'!$D122,'Emissions factors'!$C$5:$C$10,0),MATCH('Data Input - Option 3'!N$7,'Emissions factors'!$F$4:$CR$4,0))/1000,0)","v":49942.045940625001},{"$f":"IFERROR(O86*INDEX('Emissions factors'!$F$5:$CR$10,MATCH('Data Input - Option 3'!$D122,'Emissions factors'!$C$5:$C$10,0),MATCH('Data Input - Option 3'!O$7,'Emissions factors'!$F$4:$CR$4,0))/1000,0)","v":49942.045940625001},{"$f":"IFERROR(P86*INDEX('Emissions factors'!$F$5:$CR$10,MATCH('Data Input - Option 3'!$D122,'Emissions factors'!$C$5:$C$10,0),MATCH('Data Input - Option 3'!P$7,'Emissions factors'!$F$4:$CR$4,0))/1000,0)","v":0},{"$f":"IFERROR(Q86*INDEX('Emissions factors'!$F$5:$CR$10,MATCH('Data Input - Option 3'!$D122,'Emissions factors'!$C$5:$C$10,0),MATCH('Data Input - Option 3'!Q$7,'Emissions factors'!$F$4:$CR$4,0))/1000,0)","v":0},{"$f":"IFERROR(R86*INDEX('Emissions factors'!$F$5:$CR$10,MATCH('Data Input - Option 3'!$D122,'Emissions factors'!$C$5:$C$10,0),MATCH('Data Input - Option 3'!R$7,'Emissions factors'!$F$4:$CR$4,0))/1000,0)","v":0},{"$f":"IFERROR(S86*INDEX('Emissions factors'!$F$5:$CR$10,MATCH('Data Input - Option 3'!$D122,'Emissions factors'!$C$5:$C$10,0),MATCH('Data Input - Option 3'!S$7,'Emissions factors'!$F$4:$CR$4,0))/1000,0)","v":0},{"$f":"IFERROR(T86*INDEX('Emissions factors'!$F$5:$CR$10,MATCH('Data Input - Option 3'!$D122,'Emissions factors'!$C$5:$C$10,0),MATCH('Data Input - Option 3'!T$7,'Emissions factors'!$F$4:$CR$4,0))/1000,0)","v":0},{"$f":"IFERROR(U86*INDEX('Emissions factors'!$F$5:$CR$10,MATCH('Data Input - Option 3'!$D122,'Emissions factors'!$C$5:$C$10,0),MATCH('Data Input - Option 3'!U$7,'Emissions factors'!$F$4:$CR$4,0))/1000,0)","v":0},{"$f":"IFERROR(V86*INDEX('Emissions factors'!$F$5:$CR$10,MATCH('Data Input - Option 3'!$D122,'Emissions factors'!$C$5:$C$10,0),MATCH('Data Input - Option 3'!V$7,'Emissions factors'!$F$4:$CR$4,0))/1000,0)","v":0},{"$f":"IFERROR(W86*INDEX('Emissions factors'!$F$5:$CR$10,MATCH('Data Input - Option 3'!$D122,'Emissions factors'!$C$5:$C$10,0),MATCH('Data Input - Option 3'!W$7,'Emissions factors'!$F$4:$CR$4,0))/1000,0)","v":0},{"$f":"IFERROR(X86*INDEX('Emissions factors'!$F$5:$CR$10,MATCH('Data Input - Option 3'!$D122,'Emissions factors'!$C$5:$C$10,0),MATCH('Data Input - Option 3'!X$7,'Emissions factors'!$F$4:$CR$4,0))/1000,0)","v":0},{"$f":"IFERROR(Y86*INDEX('Emissions factors'!$F$5:$CR$10,MATCH('Data Input - Option 3'!$D122,'Emissions factors'!$C$5:$C$10,0),MATCH('Data Input - Option 3'!Y$7,'Emissions factors'!$F$4:$CR$4,0))/1000,0)","v":0},{"$f":"IFERROR(Z86*INDEX('Emissions factors'!$F$5:$CR$10,MATCH('Data Input - Option 3'!$D122,'Emissions factors'!$C$5:$C$10,0),MATCH('Data Input - Option 3'!Z$7,'Emissions factors'!$F$4:$CR$4,0))/1000,0)","v":0},{"$f":"IFERROR(AA86*INDEX('Emissions factors'!$F$5:$CR$10,MATCH('Data Input - Option 3'!$D122,'Emissions factors'!$C$5:$C$10,0),MATCH('Data Input - Option 3'!AA$7,'Emissions factors'!$F$4:$CR$4,0))/1000,0)","v":0},{"$f":"IFERROR(AB86*INDEX('Emissions factors'!$F$5:$CR$10,MATCH('Data Input - Option 3'!$D122,'Emissions factors'!$C$5:$C$10,0),MATCH('Data Input - Option 3'!AB$7,'Emissions factors'!$F$4:$CR$4,0))/1000,0)","v":0},{"$f":"IFERROR(AC86*INDEX('Emissions factors'!$F$5:$CR$10,MATCH('Data Input - Option 3'!$D122,'Emissions factors'!$C$5:$C$10,0),MATCH('Data Input - Option 3'!AC$7,'Emissions factors'!$F$4:$CR$4,0))/1000,0)","v":0},{"$f":"IFERROR(AD86*INDEX('Emissions factors'!$F$5:$CR$10,MATCH('Data Input - Option 3'!$D122,'Emissions factors'!$C$5:$C$10,0),MATCH('Data Input - Option 3'!AD$7,'Emissions factors'!$F$4:$CR$4,0))/1000,0)","v":0},{"$f":"IFERROR(AE86*INDEX('Emissions factors'!$F$5:$CR$10,MATCH('Data Input - Option 3'!$D122,'Emissions factors'!$C$5:$C$10,0),MATCH('Data Input - Option 3'!AE$7,'Emissions factors'!$F$4:$CR$4,0))/1000,0)","v":0},{"$f":"IFERROR(AF86*INDEX('Emissions factors'!$F$5:$CR$10,MATCH('Data Input - Option 3'!$D122,'Emissions factors'!$C$5:$C$10,0),MATCH('Data Input - Option 3'!AF$7,'Emissions factors'!$F$4:$CR$4,0))/1000,0)","v":0},{"$f":"IFERROR(AG86*INDEX('Emissions factors'!$F$5:$CR$10,MATCH('Data Input - Option 3'!$D122,'Emissions factors'!$C$5:$C$10,0),MATCH('Data Input - Option 3'!AG$7,'Emissions factors'!$F$4:$CR$4,0))/1000,0)","v":0},{"$f":"IFERROR(AH86*INDEX('Emissions factors'!$F$5:$CR$10,MATCH('Data Input - Option 3'!$D122,'Emissions factors'!$C$5:$C$10,0),MATCH('Data Input - Option 3'!AH$7,'Emissions factors'!$F$4:$CR$4,0))/1000,0)","v":0},{"$f":"IFERROR(AI86*INDEX('Emissions factors'!$F$5:$CR$10,MATCH('Data Input - Option 3'!$D122,'Emissions factors'!$C$5:$C$10,0),MATCH('Data Input - Option 3'!AI$7,'Emissions factors'!$F$4:$CR$4,0))/1000,0)","v":0},{"$f":"IFERROR(AJ86*INDEX('Emissions factors'!$F$5:$CR$10,MATCH('Data Input - Option 3'!$D122,'Emissions factors'!$C$5:$C$10,0),MATCH('Data Input - Option 3'!AJ$7,'Emissions factors'!$F$4:$CR$4,0))/1000,0)","v":0},{"$f":"IFERROR(AK86*INDEX('Emissions factors'!$F$5:$CR$10,MATCH('Data Input - Option 3'!$D122,'Emissions factors'!$C$5:$C$10,0),MATCH('Data Input - Option 3'!AK$7,'Emissions factors'!$F$4:$CR$4,0))/1000,0)","v":0},{"$f":"IFERROR(AL86*INDEX('Emissions factors'!$F$5:$CR$10,MATCH('Data Input - Option 3'!$D122,'Emissions factors'!$C$5:$C$10,0),MATCH('Data Input - Option 3'!AL$7,'Emissions factors'!$F$4:$CR$4,0))/1000,0)","v":0},{"$f":"IFERROR(AM86*INDEX('Emissions factors'!$F$5:$CR$10,MATCH('Data Input - Option 3'!$D122,'Emissions factors'!$C$5:$C$10,0),MATCH('Data Input - Option 3'!AM$7,'Emissions factors'!$F$4:$CR$4,0))/1000,0)","v":0},{"$f":"IFERROR(AN86*INDEX('Emissions factors'!$F$5:$CR$10,MATCH('Data Input - Option 3'!$D122,'Emissions factors'!$C$5:$C$10,0),MATCH('Data Input - Option 3'!AN$7,'Emissions factors'!$F$4:$CR$4,0))/1000,0)","v":0},{"$f":"IFERROR(AO86*INDEX('Emissions factors'!$F$5:$CR$10,MATCH('Data Input - Option 3'!$D122,'Emissions factors'!$C$5:$C$10,0),MATCH('Data Input - Option 3'!AO$7,'Emissions factors'!$F$4:$CR$4,0))/1000,0)","v":0},{"$f":"IFERROR(AP86*INDEX('Emissions factors'!$F$5:$CR$10,MATCH('Data Input - Option 3'!$D122,'Emissions factors'!$C$5:$C$10,0),MATCH('Data Input - Option 3'!AP$7,'Emissions factors'!$F$4:$CR$4,0))/1000,0)","v":0},{"$f":"IFERROR(AQ86*INDEX('Emissions factors'!$F$5:$CR$10,MATCH('Data Input - Option 3'!$D122,'Emissions factors'!$C$5:$C$10,0),MATCH('Data Input - Option 3'!AQ$7,'Emissions factors'!$F$4:$CR$4,0))/1000,0)","v":0},{"$f":"IFERROR(AR86*INDEX('Emissions factors'!$F$5:$CR$10,MATCH('Data Input - Option 3'!$D122,'Emissions factors'!$C$5:$C$10,0),MATCH('Data Input - Option 3'!AR$7,'Emissions factors'!$F$4:$CR$4,0))/1000,0)","v":0},{"$f":"IFERROR(AS86*INDEX('Emissions factors'!$F$5:$CR$10,MATCH('Data Input - Option 3'!$D122,'Emissions factors'!$C$5:$C$10,0),MATCH('Data Input - Option 3'!AS$7,'Emissions factors'!$F$4:$CR$4,0))/1000,0)","v":0},{"$f":"IFERROR(AT86*INDEX('Emissions factors'!$F$5:$CR$10,MATCH('Data Input - Option 3'!$D122,'Emissions factors'!$C$5:$C$10,0),MATCH('Data Input - Option 3'!AT$7,'Emissions factors'!$F$4:$CR$4,0))/1000,0)","v":0},{"$f":"IFERROR(AU86*INDEX('Emissions factors'!$F$5:$CR$10,MATCH('Data Input - Option 3'!$D122,'Emissions factors'!$C$5:$C$10,0),MATCH('Data Input - Option 3'!AU$7,'Emissions factors'!$F$4:$CR$4,0))/1000,0)","v":0},{"$f":"IFERROR(AV86*INDEX('Emissions factors'!$F$5:$CR$10,MATCH('Data Input - Option 3'!$D122,'Emissions factors'!$C$5:$C$10,0),MATCH('Data Input - Option 3'!AV$7,'Emissions factors'!$F$4:$CR$4,0))/1000,0)","v":0},{"$f":"IFERROR(AW86*INDEX('Emissions factors'!$F$5:$CR$10,MATCH('Data Input - Option 3'!$D122,'Emissions factors'!$C$5:$C$10,0),MATCH('Data Input - Option 3'!AW$7,'Emissions factors'!$F$4:$CR$4,0))/1000,0)","v":0},{"$f":"IFERROR(AX86*INDEX('Emissions factors'!$F$5:$CR$10,MATCH('Data Input - Option 3'!$D122,'Emissions factors'!$C$5:$C$10,0),MATCH('Data Input - Option 3'!AX$7,'Emissions factors'!$F$4:$CR$4,0))/1000,0)","v":0},{"$f":"IFERROR(AY86*INDEX('Emissions factors'!$F$5:$CR$10,MATCH('Data Input - Option 3'!$D122,'Emissions factors'!$C$5:$C$10,0),MATCH('Data Input - Option 3'!AY$7,'Emissions factors'!$F$4:$CR$4,0))/1000,0)","v":0},{"$f":"IFERROR(AZ86*INDEX('Emissions factors'!$F$5:$CR$10,MATCH('Data Input - Option 3'!$D122,'Emissions factors'!$C$5:$C$10,0),MATCH('Data Input - Option 3'!AZ$7,'Emissions factors'!$F$4:$CR$4,0))/1000,0)","v":0},{"$f":"IFERROR(BA86*INDEX('Emissions factors'!$F$5:$CR$10,MATCH('Data Input - Option 3'!$D122,'Emissions factors'!$C$5:$C$10,0),MATCH('Data Input - Option 3'!BA$7,'Emissions factors'!$F$4:$CR$4,0))/1000,0)","v":0},{"$f":"IFERROR(BB86*INDEX('Emissions factors'!$F$5:$CR$10,MATCH('Data Input - Option 3'!$D122,'Emissions factors'!$C$5:$C$10,0),MATCH('Data Input - Option 3'!BB$7,'Emissions factors'!$F$4:$CR$4,0))/1000,0)","v":0},{"$f":"IFERROR(BC86*INDEX('Emissions factors'!$F$5:$CR$10,MATCH('Data Input - Option 3'!$D122,'Emissions factors'!$C$5:$C$10,0),MATCH('Data Input - Option 3'!BC$7,'Emissions factors'!$F$4:$CR$4,0))/1000,0)","v":0},{"$f":"IFERROR(BD86*INDEX('Emissions factors'!$F$5:$CR$10,MATCH('Data Input - Option 3'!$D122,'Emissions factors'!$C$5:$C$10,0),MATCH('Data Input - Option 3'!BD$7,'Emissions factors'!$F$4:$CR$4,0))/1000,0)","v":0},{"$f":"IFERROR(BE86*INDEX('Emissions factors'!$F$5:$CR$10,MATCH('Data Input - Option 3'!$D122,'Emissions factors'!$C$5:$C$10,0),MATCH('Data Input - Option 3'!BE$7,'Emissions factors'!$F$4:$CR$4,0))/1000,0)","v":0},{"$f":"IFERROR(BF86*INDEX('Emissions factors'!$F$5:$CR$10,MATCH('Data Input - Option 3'!$D122,'Emissions factors'!$C$5:$C$10,0),MATCH('Data Input - Option 3'!BF$7,'Emissions factors'!$F$4:$CR$4,0))/1000,0)","v":0},{"$f":"IFERROR(BG86*INDEX('Emissions factors'!$F$5:$CR$10,MATCH('Data Input - Option 3'!$D122,'Emissions factors'!$C$5:$C$10,0),MATCH('Data Input - Option 3'!BG$7,'Emissions factors'!$F$4:$CR$4,0))/1000,0)","v":0},{"$f":"IFERROR(BH86*INDEX('Emissions factors'!$F$5:$CR$10,MATCH('Data Input - Option 3'!$D122,'Emissions factors'!$C$5:$C$10,0),MATCH('Data Input - Option 3'!BH$7,'Emissions factors'!$F$4:$CR$4,0))/1000,0)","v":0},{"$f":"IFERROR(BI86*INDEX('Emissions factors'!$F$5:$CR$10,MATCH('Data Input - Option 3'!$D122,'Emissions factors'!$C$5:$C$10,0),MATCH('Data Input - Option 3'!BI$7,'Emissions factors'!$F$4:$CR$4,0))/1000,0)","v":0},{"$f":"IFERROR(BJ86*INDEX('Emissions factors'!$F$5:$CR$10,MATCH('Data Input - Option 3'!$D122,'Emissions factors'!$C$5:$C$10,0),MATCH('Data Input - Option 3'!BJ$7,'Emissions factors'!$F$4:$CR$4,0))/1000,0)","v":0},{"$f":"IFERROR(BK86*INDEX('Emissions factors'!$F$5:$CR$10,MATCH('Data Input - Option 3'!$D122,'Emissions factors'!$C$5:$C$10,0),MATCH('Data Input - Option 3'!BK$7,'Emissions factors'!$F$4:$CR$4,0))/1000,0)","v":0},{"$f":"IFERROR(BL86*INDEX('Emissions factors'!$F$5:$CR$10,MATCH('Data Input - Option 3'!$D122,'Emissions factors'!$C$5:$C$10,0),MATCH('Data Input - Option 3'!BL$7,'Emissions factors'!$F$4:$CR$4,0))/1000,0)","v":0},{"$f":"IFERROR(BM86*INDEX('Emissions factors'!$F$5:$CR$10,MATCH('Data Input - Option 3'!$D122,'Emissions factors'!$C$5:$C$10,0),MATCH('Data Input - Option 3'!BM$7,'Emissions factors'!$F$4:$CR$4,0))/1000,0)","v":0},{"$f":"IFERROR(BN86*INDEX('Emissions factors'!$F$5:$CR$10,MATCH('Data Input - Option 3'!$D122,'Emissions factors'!$C$5:$C$10,0),MATCH('Data Input - Option 3'!BN$7,'Emissions factors'!$F$4:$CR$4,0))/1000,0)","v":0},{"$f":"IFERROR(BO86*INDEX('Emissions factors'!$F$5:$CR$10,MATCH('Data Input - Option 3'!$D122,'Emissions factors'!$C$5:$C$10,0),MATCH('Data Input - Option 3'!BO$7,'Emissions factors'!$F$4:$CR$4,0))/1000,0)","v":0},{"$f":"IFERROR(BP86*INDEX('Emissions factors'!$F$5:$CR$10,MATCH('Data Input - Option 3'!$D122,'Emissions factors'!$C$5:$C$10,0),MATCH('Data Input - Option 3'!BP$7,'Emissions factors'!$F$4:$CR$4,0))/1000,0)","v":0},{"$f":"IFERROR(BQ86*INDEX('Emissions factors'!$F$5:$CR$10,MATCH('Data Input - Option 3'!$D122,'Emissions factors'!$C$5:$C$10,0),MATCH('Data Input - Option 3'!BQ$7,'Emissions factors'!$F$4:$CR$4,0))/1000,0)","v":0},{"$f":"IFERROR(BR86*INDEX('Emissions factors'!$F$5:$CR$10,MATCH('Data Input - Option 3'!$D122,'Emissions factors'!$C$5:$C$10,0),MATCH('Data Input - Option 3'!BR$7,'Emissions factors'!$F$4:$CR$4,0))/1000,0)","v":0},{"$f":"IFERROR(BS86*INDEX('Emissions factors'!$F$5:$CR$10,MATCH('Data Input - Option 3'!$D122,'Emissions factors'!$C$5:$C$10,0),MATCH('Data Input - Option 3'!BS$7,'Emissions factors'!$F$4:$CR$4,0))/1000,0)","v":0},{"$f":"IFERROR(BT86*INDEX('Emissions factors'!$F$5:$CR$10,MATCH('Data Input - Option 3'!$D122,'Emissions factors'!$C$5:$C$10,0),MATCH('Data Input - Option 3'!BT$7,'Emissions factors'!$F$4:$CR$4,0))/1000,0)","v":0},{"$f":"IFERROR(BU86*INDEX('Emissions factors'!$F$5:$CR$10,MATCH('Data Input - Option 3'!$D122,'Emissions factors'!$C$5:$C$10,0),MATCH('Data Input - Option 3'!BU$7,'Emissions factors'!$F$4:$CR$4,0))/1000,0)","v":0},{"$f":"IFERROR(BV86*INDEX('Emissions factors'!$F$5:$CR$10,MATCH('Data Input - Option 3'!$D122,'Emissions factors'!$C$5:$C$10,0),MATCH('Data Input - Option 3'!BV$7,'Emissions factors'!$F$4:$CR$4,0))/1000,0)","v":0},{"$f":"IFERROR(BW86*INDEX('Emissions factors'!$F$5:$CR$10,MATCH('Data Input - Option 3'!$D122,'Emissions factors'!$C$5:$C$10,0),MATCH('Data Input - Option 3'!BW$7,'Emissions factors'!$F$4:$CR$4,0))/1000,0)","v":0},{"$f":"IFERROR(BX86*INDEX('Emissions factors'!$F$5:$CR$10,MATCH('Data Input - Option 3'!$D122,'Emissions factors'!$C$5:$C$10,0),MATCH('Data Input - Option 3'!BX$7,'Emissions factors'!$F$4:$CR$4,0))/1000,0)","v":0},{"$f":"IFERROR(BY86*INDEX('Emissions factors'!$F$5:$CR$10,MATCH('Data Input - Option 3'!$D122,'Emissions factors'!$C$5:$C$10,0),MATCH('Data Input - Option 3'!BY$7,'Emissions factors'!$F$4:$CR$4,0))/1000,0)","v":0},{"$f":"IFERROR(BZ86*INDEX('Emissions factors'!$F$5:$CR$10,MATCH('Data Input - Option 3'!$D122,'Emissions factors'!$C$5:$C$10,0),MATCH('Data Input - Option 3'!BZ$7,'Emissions factors'!$F$4:$CR$4,0))/1000,0)","v":0},{"$f":"IFERROR(CA86*INDEX('Emissions factors'!$F$5:$CR$10,MATCH('Data Input - Option 3'!$D122,'Emissions factors'!$C$5:$C$10,0),MATCH('Data Input - Option 3'!CA$7,'Emissions factors'!$F$4:$CR$4,0))/1000,0)","v":0},{"$f":"IFERROR(CB86*INDEX('Emissions factors'!$F$5:$CR$10,MATCH('Data Input - Option 3'!$D122,'Emissions factors'!$C$5:$C$10,0),MATCH('Data Input - Option 3'!CB$7,'Emissions factors'!$F$4:$CR$4,0))/1000,0)","v":0},{"$f":"IFERROR(CC86*INDEX('Emissions factors'!$F$5:$CR$10,MATCH('Data Input - Option 3'!$D122,'Emissions factors'!$C$5:$C$10,0),MATCH('Data Input - Option 3'!CC$7,'Emissions factors'!$F$4:$CR$4,0))/1000,0)","v":0},{"$f":"IFERROR(CD86*INDEX('Emissions factors'!$F$5:$CR$10,MATCH('Data Input - Option 3'!$D122,'Emissions factors'!$C$5:$C$10,0),MATCH('Data Input - Option 3'!CD$7,'Emissions factors'!$F$4:$CR$4,0))/1000,0)","v":0},{"$f":"IFERROR(CE86*INDEX('Emissions factors'!$F$5:$CR$10,MATCH('Data Input - Option 3'!$D122,'Emissions factors'!$C$5:$C$10,0),MATCH('Data Input - Option 3'!CE$7,'Emissions factors'!$F$4:$CR$4,0))/1000,0)","v":0},{"$f":"IFERROR(CF86*INDEX('Emissions factors'!$F$5:$CR$10,MATCH('Data Input - Option 3'!$D122,'Emissions factors'!$C$5:$C$10,0),MATCH('Data Input - Option 3'!CF$7,'Emissions factors'!$F$4:$CR$4,0))/1000,0)","v":0},{"$f":"IFERROR(CG86*INDEX('Emissions factors'!$F$5:$CR$10,MATCH('Data Input - Option 3'!$D122,'Emissions factors'!$C$5:$C$10,0),MATCH('Data Input - Option 3'!CG$7,'Emissions factors'!$F$4:$CR$4,0))/1000,0)","v":0},{"$f":"IFERROR(CH86*INDEX('Emissions factors'!$F$5:$CR$10,MATCH('Data Input - Option 3'!$D122,'Emissions factors'!$C$5:$C$10,0),MATCH('Data Input - Option 3'!CH$7,'Emissions factors'!$F$4:$CR$4,0))/1000,0)","v":0},{"$f":"IFERROR(CI86*INDEX('Emissions factors'!$F$5:$CR$10,MATCH('Data Input - Option 3'!$D122,'Emissions factors'!$C$5:$C$10,0),MATCH('Data Input - Option 3'!CI$7,'Emissions factors'!$F$4:$CR$4,0))/1000,0)","v":0},{"$f":"IFERROR(CJ86*INDEX('Emissions factors'!$F$5:$CR$10,MATCH('Data Input - Option 3'!$D122,'Emissions factors'!$C$5:$C$10,0),MATCH('Data Input - Option 3'!CJ$7,'Emissions factors'!$F$4:$CR$4,0))/1000,0)","v":0},{"$f":"IFERROR(CK86*INDEX('Emissions factors'!$F$5:$CR$10,MATCH('Data Input - Option 3'!$D122,'Emissions factors'!$C$5:$C$10,0),MATCH('Data Input - Option 3'!CK$7,'Emissions factors'!$F$4:$CR$4,0))/1000,0)","v":0},{"$f":"IFERROR(CL86*INDEX('Emissions factors'!$F$5:$CR$10,MATCH('Data Input - Option 3'!$D122,'Emissions factors'!$C$5:$C$10,0),MATCH('Data Input - Option 3'!CL$7,'Emissions factors'!$F$4:$CR$4,0))/1000,0)","v":0},{"$f":"IFERROR(CM86*INDEX('Emissions factors'!$F$5:$CR$10,MATCH('Data Input - Option 3'!$D122,'Emissions factors'!$C$5:$C$10,0),MATCH('Data Input - Option 3'!CM$7,'Emissions factors'!$F$4:$CR$4,0))/1000,0)","v":0},{"$f":"IFERROR(CN86*INDEX('Emissions factors'!$F$5:$CR$10,MATCH('Data Input - Option 3'!$D122,'Emissions factors'!$C$5:$C$10,0),MATCH('Data Input - Option 3'!CN$7,'Emissions factors'!$F$4:$CR$4,0))/1000,0)","v":0},{"$f":"IFERROR(CO86*INDEX('Emissions factors'!$F$5:$CR$10,MATCH('Data Input - Option 3'!$D122,'Emissions factors'!$C$5:$C$10,0),MATCH('Data Input - Option 3'!CO$7,'Emissions factors'!$F$4:$CR$4,0))/1000,0)","v":0},{"$f":"IFERROR(CP86*INDEX('Emissions factors'!$F$5:$CR$10,MATCH('Data Input - Option 3'!$D122,'Emissions factors'!$C$5:$C$10,0),MATCH('Data Input - Option 3'!CP$7,'Emissions factors'!$F$4:$CR$4,0))/1000,0)","v":0},{"$f":"IFERROR(CQ86*INDEX('Emissions factors'!$F$5:$CR$10,MATCH('Data Input - Option 3'!$D122,'Emissions factors'!$C$5:$C$10,0),MATCH('Data Input - Option 3'!CQ$7,'Emissions factors'!$F$4:$CR$4,0))/1000,0)","v":0},{"$f":"IFERROR(CR86*INDEX('Emissions factors'!$F$5:$CR$10,MATCH('Data Input - Option 3'!$D122,'Emissions factors'!$C$5:$C$10,0),MATCH('Data Input - Option 3'!CR$7,'Emissions factors'!$F$4:$CR$4,0))/1000,0)","v":0},{"$f":"IFERROR(CS86*INDEX('Emissions factors'!$F$5:$CR$10,MATCH('Data Input - Option 3'!$D122,'Emissions factors'!$C$5:$C$10,0),MATCH('Data Input - Option 3'!CS$7,'Emissions factors'!$F$4:$CR$4,0))/1000,0)","v":0},{"$f":"IFERROR(CT86*INDEX('Emissions factors'!$F$5:$CR$10,MATCH('Data Input - Option 3'!$D122,'Emissions factors'!$C$5:$C$10,0),MATCH('Data Input - Option 3'!CT$7,'Emissions factors'!$F$4:$CR$4,0))/1000,0)","v":0},{"$f":"IFERROR(CU86*INDEX('Emissions factors'!$F$5:$CR$10,MATCH('Data Input - Option 3'!$D122,'Emissions factors'!$C$5:$C$10,0),MATCH('Data Input - Option 3'!CU$7,'Emissions factors'!$F$4:$CR$4,0))/1000,0)","v":0},{"$f":"IFERROR(CV86*INDEX('Emissions factors'!$F$5:$CR$10,MATCH('Data Input - Option 3'!$D122,'Emissions factors'!$C$5:$C$10,0),MATCH('Data Input - Option 3'!CV$7,'Emissions factors'!$F$4:$CR$4,0))/1000,0)","v":0},{"$f":"IFERROR(CW86*INDEX('Emissions factors'!$F$5:$CR$10,MATCH('Data Input - Option 3'!$D122,'Emissions factors'!$C$5:$C$10,0),MATCH('Data Input - Option 3'!CW$7,'Emissions factors'!$F$4:$CR$4,0))/1000,0)","v":0},{"$f":"IFERROR(CX86*INDEX('Emissions factors'!$F$5:$CR$10,MATCH('Data Input - Option 3'!$D122,'Emissions factors'!$C$5:$C$10,0),MATCH('Data Input - Option 3'!CX$7,'Emissions factors'!$F$4:$CR$4,0))/1000,0)","v":0},{"$f":"IFERROR(CY86*INDEX('Emissions factors'!$F$5:$CR$10,MATCH('Data Input - Option 3'!$D122,'Emissions factors'!$C$5:$C$10,0),MATCH('Data Input - Option 3'!CY$7,'Emissions factors'!$F$4:$CR$4,0))/1000,0)","v":0},{"$f":"IFERROR(CZ86*INDEX('Emissions factors'!$F$5:$CR$10,MATCH('Data Input - Option 3'!$D122,'Emissions factors'!$C$5:$C$10,0),MATCH('Data Input - Option 3'!CZ$7,'Emissions factors'!$F$4:$CR$4,0))/1000,0)","v":0},{"$f":"IFERROR(DA86*INDEX('Emissions factors'!$F$5:$CR$10,MATCH('Data Input - Option 3'!$D122,'Emissions factors'!$C$5:$C$10,0),MATCH('Data Input - Option 3'!DA$7,'Emissions factors'!$F$4:$CR$4,0))/1000,0)","v":0},{"$f":"IFERROR(DB86*INDEX('Emissions factors'!$F$5:$CR$10,MATCH('Data Input - Option 3'!$D122,'Emissions factors'!$C$5:$C$10,0),MATCH('Data Input - Option 3'!DB$7,'Emissions factors'!$F$4:$CR$4,0))/1000,0)","v":0},{"$f":"IFERROR(DC86*INDEX('Emissions factors'!$F$5:$CR$10,MATCH('Data Input - Option 3'!$D122,'Emissions factors'!$C$5:$C$10,0),MATCH('Data Input - Option 3'!DC$7,'Emissions factors'!$F$4:$CR$4,0))/1000,0)","v":0}]
[null,null,null,"Gas Oil","tCO2e","(Auto calculated value)",null,{"$f":"IFERROR(H87*INDEX('Emissions factors'!$F$5:$CR$10,MATCH('Data Input - Option 3'!$D123,'Emissions factors'!$C$5:$C$10,0),MATCH('Data Input - Option 3'!H$7,'Emissions factors'!$F$4:$CR$4,0))/1000,0)","v":543.19064937918642},{"$f":"IFERROR(I87*INDEX('Emissions factors'!$F$5:$CR$10,MATCH('Data Input - Option 3'!$D123,'Emissions factors'!$C$5:$C$10,0),MATCH('Data Input - Option 3'!I$7,'Emissions factors'!$F$4:$CR$4,0))/1000,0)","v":533.84551869385984},{"$f":"IFERROR(J87*INDEX('Emissions factors'!$F$5:$CR$10,MATCH('Data Input - Option 3'!$D123,'Emissions factors'!$C$5:$C$10,0),MATCH('Data Input - Option 3'!J$7,'Emissions factors'!$F$4:$CR$4,0))/1000,0)","v":533.84551869385984},{"$f":"IFERROR(K87*INDEX('Emissions factors'!$F$5:$CR$10,MATCH('Data Input - Option 3'!$D123,'Emissions factors'!$C$5:$C$10,0),MATCH('Data Input - Option 3'!K$7,'Emissions factors'!$F$4:$CR$4,0))/1000,0)","v":533.84551869385984},{"$f":"IFERROR(L87*INDEX('Emissions factors'!$F$5:$CR$10,MATCH('Data Input - Option 3'!$D123,'Emissions factors'!$C$5:$C$10,0),MATCH('Data Input - Option 3'!L$7,'Emissions factors'!$F$4:$CR$4,0))/1000,0)","v":533.84551869385984},{"$f":"IFERROR(M87*INDEX('Emissions factors'!$F$5:$CR$10,MATCH('Data Input - Option 3'!$D123,'Emissions factors'!$C$5:$C$10,0),MATCH('Data Input - Option 3'!M$7,'Emissions factors'!$F$4:$CR$4,0))/1000,0)","v":533.84551869385984},{"$f":"IFERROR(N87*INDEX('Emissions factors'!$F$5:$CR$10,MATCH('Data Input - Option 3'!$D123,'Emissions factors'!$C$5:$C$10,0),MATCH('Data Input - Option 3'!N$7,'Emissions factors'!$F$4:$CR$4,0))/1000,0)","v":533.84551869385984},{"$f":"IFERROR(O87*INDEX('Emissions factors'!$F$5:$CR$10,MATCH('Data Input - Option 3'!$D123,'Emissions factors'!$C$5:$C$10,0),MATCH('Data Input - Option 3'!O$7,'Emissions factors'!$F$4:$CR$4,0))/1000,0)","v":533.84551869385984},{"$f":"IFERROR(P87*INDEX('Emissions factors'!$F$5:$CR$10,MATCH('Data Input - Option 3'!$D123,'Emissions factors'!$C$5:$C$10,0),MATCH('Data Input - Option 3'!P$7,'Emissions factors'!$F$4:$CR$4,0))/1000,0)","v":0},{"$f":"IFERROR(Q87*INDEX('Emissions factors'!$F$5:$CR$10,MATCH('Data Input - Option 3'!$D123,'Emissions factors'!$C$5:$C$10,0),MATCH('Data Input - Option 3'!Q$7,'Emissions factors'!$F$4:$CR$4,0))/1000,0)","v":0},{"$f":"IFERROR(R87*INDEX('Emissions factors'!$F$5:$CR$10,MATCH('Data Input - Option 3'!$D123,'Emissions factors'!$C$5:$C$10,0),MATCH('Data Input - Option 3'!R$7,'Emissions factors'!$F$4:$CR$4,0))/1000,0)","v":0},{"$f":"IFERROR(S87*INDEX('Emissions factors'!$F$5:$CR$10,MATCH('Data Input - Option 3'!$D123,'Emissions factors'!$C$5:$C$10,0),MATCH('Data Input - Option 3'!S$7,'Emissions factors'!$F$4:$CR$4,0))/1000,0)","v":0},{"$f":"IFERROR(T87*INDEX('Emissions factors'!$F$5:$CR$10,MATCH('Data Input - Option 3'!$D123,'Emissions factors'!$C$5:$C$10,0),MATCH('Data Input - Option 3'!T$7,'Emissions factors'!$F$4:$CR$4,0))/1000,0)","v":0},{"$f":"IFERROR(U87*INDEX('Emissions factors'!$F$5:$CR$10,MATCH('Data Input - Option 3'!$D123,'Emissions factors'!$C$5:$C$10,0),MATCH('Data Input - Option 3'!U$7,'Emissions factors'!$F$4:$CR$4,0))/1000,0)","v":0},{"$f":"IFERROR(V87*INDEX('Emissions factors'!$F$5:$CR$10,MATCH('Data Input - Option 3'!$D123,'Emissions factors'!$C$5:$C$10,0),MATCH('Data Input - Option 3'!V$7,'Emissions factors'!$F$4:$CR$4,0))/1000,0)","v":0},{"$f":"IFERROR(W87*INDEX('Emissions factors'!$F$5:$CR$10,MATCH('Data Input - Option 3'!$D123,'Emissions factors'!$C$5:$C$10,0),MATCH('Data Input - Option 3'!W$7,'Emissions factors'!$F$4:$CR$4,0))/1000,0)","v":0},{"$f":"IFERROR(X87*INDEX('Emissions factors'!$F$5:$CR$10,MATCH('Data Input - Option 3'!$D123,'Emissions factors'!$C$5:$C$10,0),MATCH('Data Input - Option 3'!X$7,'Emissions factors'!$F$4:$CR$4,0))/1000,0)","v":0},{"$f":"IFERROR(Y87*INDEX('Emissions factors'!$F$5:$CR$10,MATCH('Data Input - Option 3'!$D123,'Emissions factors'!$C$5:$C$10,0),MATCH('Data Input - Option 3'!Y$7,'Emissions factors'!$F$4:$CR$4,0))/1000,0)","v":0},{"$f":"IFERROR(Z87*INDEX('Emissions factors'!$F$5:$CR$10,MATCH('Data Input - Option 3'!$D123,'Emissions factors'!$C$5:$C$10,0),MATCH('Data Input - Option 3'!Z$7,'Emissions factors'!$F$4:$CR$4,0))/1000,0)","v":0},{"$f":"IFERROR(AA87*INDEX('Emissions factors'!$F$5:$CR$10,MATCH('Data Input - Option 3'!$D123,'Emissions factors'!$C$5:$C$10,0),MATCH('Data Input - Option 3'!AA$7,'Emissions factors'!$F$4:$CR$4,0))/1000,0)","v":0},{"$f":"IFERROR(AB87*INDEX('Emissions factors'!$F$5:$CR$10,MATCH('Data Input - Option 3'!$D123,'Emissions factors'!$C$5:$C$10,0),MATCH('Data Input - Option 3'!AB$7,'Emissions factors'!$F$4:$CR$4,0))/1000,0)","v":0},{"$f":"IFERROR(AC87*INDEX('Emissions factors'!$F$5:$CR$10,MATCH('Data Input - Option 3'!$D123,'Emissions factors'!$C$5:$C$10,0),MATCH('Data Input - Option 3'!AC$7,'Emissions factors'!$F$4:$CR$4,0))/1000,0)","v":0},{"$f":"IFERROR(AD87*INDEX('Emissions factors'!$F$5:$CR$10,MATCH('Data Input - Option 3'!$D123,'Emissions factors'!$C$5:$C$10,0),MATCH('Data Input - Option 3'!AD$7,'Emissions factors'!$F$4:$CR$4,0))/1000,0)","v":0},{"$f":"IFERROR(AE87*INDEX('Emissions factors'!$F$5:$CR$10,MATCH('Data Input - Option 3'!$D123,'Emissions factors'!$C$5:$C$10,0),MATCH('Data Input - Option 3'!AE$7,'Emissions factors'!$F$4:$CR$4,0))/1000,0)","v":0},{"$f":"IFERROR(AF87*INDEX('Emissions factors'!$F$5:$CR$10,MATCH('Data Input - Option 3'!$D123,'Emissions factors'!$C$5:$C$10,0),MATCH('Data Input - Option 3'!AF$7,'Emissions factors'!$F$4:$CR$4,0))/1000,0)","v":0},{"$f":"IFERROR(AG87*INDEX('Emissions factors'!$F$5:$CR$10,MATCH('Data Input - Option 3'!$D123,'Emissions factors'!$C$5:$C$10,0),MATCH('Data Input - Option 3'!AG$7,'Emissions factors'!$F$4:$CR$4,0))/1000,0)","v":0},{"$f":"IFERROR(AH87*INDEX('Emissions factors'!$F$5:$CR$10,MATCH('Data Input - Option 3'!$D123,'Emissions factors'!$C$5:$C$10,0),MATCH('Data Input - Option 3'!AH$7,'Emissions factors'!$F$4:$CR$4,0))/1000,0)","v":0},{"$f":"IFERROR(AI87*INDEX('Emissions factors'!$F$5:$CR$10,MATCH('Data Input - Option 3'!$D123,'Emissions factors'!$C$5:$C$10,0),MATCH('Data Input - Option 3'!AI$7,'Emissions factors'!$F$4:$CR$4,0))/1000,0)","v":0},{"$f":"IFERROR(AJ87*INDEX('Emissions factors'!$F$5:$CR$10,MATCH('Data Input - Option 3'!$D123,'Emissions factors'!$C$5:$C$10,0),MATCH('Data Input - Option 3'!AJ$7,'Emissions factors'!$F$4:$CR$4,0))/1000,0)","v":0},{"$f":"IFERROR(AK87*INDEX('Emissions factors'!$F$5:$CR$10,MATCH('Data Input - Option 3'!$D123,'Emissions factors'!$C$5:$C$10,0),MATCH('Data Input - Option 3'!AK$7,'Emissions factors'!$F$4:$CR$4,0))/1000,0)","v":0},{"$f":"IFERROR(AL87*INDEX('Emissions factors'!$F$5:$CR$10,MATCH('Data Input - Option 3'!$D123,'Emissions factors'!$C$5:$C$10,0),MATCH('Data Input - Option 3'!AL$7,'Emissions factors'!$F$4:$CR$4,0))/1000,0)","v":0},{"$f":"IFERROR(AM87*INDEX('Emissions factors'!$F$5:$CR$10,MATCH('Data Input - Option 3'!$D123,'Emissions factors'!$C$5:$C$10,0),MATCH('Data Input - Option 3'!AM$7,'Emissions factors'!$F$4:$CR$4,0))/1000,0)","v":0},{"$f":"IFERROR(AN87*INDEX('Emissions factors'!$F$5:$CR$10,MATCH('Data Input - Option 3'!$D123,'Emissions factors'!$C$5:$C$10,0),MATCH('Data Input - Option 3'!AN$7,'Emissions factors'!$F$4:$CR$4,0))/1000,0)","v":0},{"$f":"IFERROR(AO87*INDEX('Emissions factors'!$F$5:$CR$10,MATCH('Data Input - Option 3'!$D123,'Emissions factors'!$C$5:$C$10,0),MATCH('Data Input - Option 3'!AO$7,'Emissions factors'!$F$4:$CR$4,0))/1000,0)","v":0},{"$f":"IFERROR(AP87*INDEX('Emissions factors'!$F$5:$CR$10,MATCH('Data Input - Option 3'!$D123,'Emissions factors'!$C$5:$C$10,0),MATCH('Data Input - Option 3'!AP$7,'Emissions factors'!$F$4:$CR$4,0))/1000,0)","v":0},{"$f":"IFERROR(AQ87*INDEX('Emissions factors'!$F$5:$CR$10,MATCH('Data Input - Option 3'!$D123,'Emissions factors'!$C$5:$C$10,0),MATCH('Data Input - Option 3'!AQ$7,'Emissions factors'!$F$4:$CR$4,0))/1000,0)","v":0},{"$f":"IFERROR(AR87*INDEX('Emissions factors'!$F$5:$CR$10,MATCH('Data Input - Option 3'!$D123,'Emissions factors'!$C$5:$C$10,0),MATCH('Data Input - Option 3'!AR$7,'Emissions factors'!$F$4:$CR$4,0))/1000,0)","v":0},{"$f":"IFERROR(AS87*INDEX('Emissions factors'!$F$5:$CR$10,MATCH('Data Input - Option 3'!$D123,'Emissions factors'!$C$5:$C$10,0),MATCH('Data Input - Option 3'!AS$7,'Emissions factors'!$F$4:$CR$4,0))/1000,0)","v":0},{"$f":"IFERROR(AT87*INDEX('Emissions factors'!$F$5:$CR$10,MATCH('Data Input - Option 3'!$D123,'Emissions factors'!$C$5:$C$10,0),MATCH('Data Input - Option 3'!AT$7,'Emissions factors'!$F$4:$CR$4,0))/1000,0)","v":0},{"$f":"IFERROR(AU87*INDEX('Emissions factors'!$F$5:$CR$10,MATCH('Data Input - Option 3'!$D123,'Emissions factors'!$C$5:$C$10,0),MATCH('Data Input - Option 3'!AU$7,'Emissions factors'!$F$4:$CR$4,0))/1000,0)","v":0},{"$f":"IFERROR(AV87*INDEX('Emissions factors'!$F$5:$CR$10,MATCH('Data Input - Option 3'!$D123,'Emissions factors'!$C$5:$C$10,0),MATCH('Data Input - Option 3'!AV$7,'Emissions factors'!$F$4:$CR$4,0))/1000,0)","v":0},{"$f":"IFERROR(AW87*INDEX('Emissions factors'!$F$5:$CR$10,MATCH('Data Input - Option 3'!$D123,'Emissions factors'!$C$5:$C$10,0),MATCH('Data Input - Option 3'!AW$7,'Emissions factors'!$F$4:$CR$4,0))/1000,0)","v":0},{"$f":"IFERROR(AX87*INDEX('Emissions factors'!$F$5:$CR$10,MATCH('Data Input - Option 3'!$D123,'Emissions factors'!$C$5:$C$10,0),MATCH('Data Input - Option 3'!AX$7,'Emissions factors'!$F$4:$CR$4,0))/1000,0)","v":0},{"$f":"IFERROR(AY87*INDEX('Emissions factors'!$F$5:$CR$10,MATCH('Data Input - Option 3'!$D123,'Emissions factors'!$C$5:$C$10,0),MATCH('Data Input - Option 3'!AY$7,'Emissions factors'!$F$4:$CR$4,0))/1000,0)","v":0},{"$f":"IFERROR(AZ87*INDEX('Emissions factors'!$F$5:$CR$10,MATCH('Data Input - Option 3'!$D123,'Emissions factors'!$C$5:$C$10,0),MATCH('Data Input - Option 3'!AZ$7,'Emissions factors'!$F$4:$CR$4,0))/1000,0)","v":0},{"$f":"IFERROR(BA87*INDEX('Emissions factors'!$F$5:$CR$10,MATCH('Data Input - Option 3'!$D123,'Emissions factors'!$C$5:$C$10,0),MATCH('Data Input - Option 3'!BA$7,'Emissions factors'!$F$4:$CR$4,0))/1000,0)","v":0},{"$f":"IFERROR(BB87*INDEX('Emissions factors'!$F$5:$CR$10,MATCH('Data Input - Option 3'!$D123,'Emissions factors'!$C$5:$C$10,0),MATCH('Data Input - Option 3'!BB$7,'Emissions factors'!$F$4:$CR$4,0))/1000,0)","v":0},{"$f":"IFERROR(BC87*INDEX('Emissions factors'!$F$5:$CR$10,MATCH('Data Input - Option 3'!$D123,'Emissions factors'!$C$5:$C$10,0),MATCH('Data Input - Option 3'!BC$7,'Emissions factors'!$F$4:$CR$4,0))/1000,0)","v":0},{"$f":"IFERROR(BD87*INDEX('Emissions factors'!$F$5:$CR$10,MATCH('Data Input - Option 3'!$D123,'Emissions factors'!$C$5:$C$10,0),MATCH('Data Input - Option 3'!BD$7,'Emissions factors'!$F$4:$CR$4,0))/1000,0)","v":0},{"$f":"IFERROR(BE87*INDEX('Emissions factors'!$F$5:$CR$10,MATCH('Data Input - Option 3'!$D123,'Emissions factors'!$C$5:$C$10,0),MATCH('Data Input - Option 3'!BE$7,'Emissions factors'!$F$4:$CR$4,0))/1000,0)","v":0},{"$f":"IFERROR(BF87*INDEX('Emissions factors'!$F$5:$CR$10,MATCH('Data Input - Option 3'!$D123,'Emissions factors'!$C$5:$C$10,0),MATCH('Data Input - Option 3'!BF$7,'Emissions factors'!$F$4:$CR$4,0))/1000,0)","v":0},{"$f":"IFERROR(BG87*INDEX('Emissions factors'!$F$5:$CR$10,MATCH('Data Input - Option 3'!$D123,'Emissions factors'!$C$5:$C$10,0),MATCH('Data Input - Option 3'!BG$7,'Emissions factors'!$F$4:$CR$4,0))/1000,0)","v":0},{"$f":"IFERROR(BH87*INDEX('Emissions factors'!$F$5:$CR$10,MATCH('Data Input - Option 3'!$D123,'Emissions factors'!$C$5:$C$10,0),MATCH('Data Input - Option 3'!BH$7,'Emissions factors'!$F$4:$CR$4,0))/1000,0)","v":0},{"$f":"IFERROR(BI87*INDEX('Emissions factors'!$F$5:$CR$10,MATCH('Data Input - Option 3'!$D123,'Emissions factors'!$C$5:$C$10,0),MATCH('Data Input - Option 3'!BI$7,'Emissions factors'!$F$4:$CR$4,0))/1000,0)","v":0},{"$f":"IFERROR(BJ87*INDEX('Emissions factors'!$F$5:$CR$10,MATCH('Data Input - Option 3'!$D123,'Emissions factors'!$C$5:$C$10,0),MATCH('Data Input - Option 3'!BJ$7,'Emissions factors'!$F$4:$CR$4,0))/1000,0)","v":0},{"$f":"IFERROR(BK87*INDEX('Emissions factors'!$F$5:$CR$10,MATCH('Data Input - Option 3'!$D123,'Emissions factors'!$C$5:$C$10,0),MATCH('Data Input - Option 3'!BK$7,'Emissions factors'!$F$4:$CR$4,0))/1000,0)","v":0},{"$f":"IFERROR(BL87*INDEX('Emissions factors'!$F$5:$CR$10,MATCH('Data Input - Option 3'!$D123,'Emissions factors'!$C$5:$C$10,0),MATCH('Data Input - Option 3'!BL$7,'Emissions factors'!$F$4:$CR$4,0))/1000,0)","v":0},{"$f":"IFERROR(BM87*INDEX('Emissions factors'!$F$5:$CR$10,MATCH('Data Input - Option 3'!$D123,'Emissions factors'!$C$5:$C$10,0),MATCH('Data Input - Option 3'!BM$7,'Emissions factors'!$F$4:$CR$4,0))/1000,0)","v":0},{"$f":"IFERROR(BN87*INDEX('Emissions factors'!$F$5:$CR$10,MATCH('Data Input - Option 3'!$D123,'Emissions factors'!$C$5:$C$10,0),MATCH('Data Input - Option 3'!BN$7,'Emissions factors'!$F$4:$CR$4,0))/1000,0)","v":0},{"$f":"IFERROR(BO87*INDEX('Emissions factors'!$F$5:$CR$10,MATCH('Data Input - Option 3'!$D123,'Emissions factors'!$C$5:$C$10,0),MATCH('Data Input - Option 3'!BO$7,'Emissions factors'!$F$4:$CR$4,0))/1000,0)","v":0},{"$f":"IFERROR(BP87*INDEX('Emissions factors'!$F$5:$CR$10,MATCH('Data Input - Option 3'!$D123,'Emissions factors'!$C$5:$C$10,0),MATCH('Data Input - Option 3'!BP$7,'Emissions factors'!$F$4:$CR$4,0))/1000,0)","v":0},{"$f":"IFERROR(BQ87*INDEX('Emissions factors'!$F$5:$CR$10,MATCH('Data Input - Option 3'!$D123,'Emissions factors'!$C$5:$C$10,0),MATCH('Data Input - Option 3'!BQ$7,'Emissions factors'!$F$4:$CR$4,0))/1000,0)","v":0},{"$f":"IFERROR(BR87*INDEX('Emissions factors'!$F$5:$CR$10,MATCH('Data Input - Option 3'!$D123,'Emissions factors'!$C$5:$C$10,0),MATCH('Data Input - Option 3'!BR$7,'Emissions factors'!$F$4:$CR$4,0))/1000,0)","v":0},{"$f":"IFERROR(BS87*INDEX('Emissions factors'!$F$5:$CR$10,MATCH('Data Input - Option 3'!$D123,'Emissions factors'!$C$5:$C$10,0),MATCH('Data Input - Option 3'!BS$7,'Emissions factors'!$F$4:$CR$4,0))/1000,0)","v":0},{"$f":"IFERROR(BT87*INDEX('Emissions factors'!$F$5:$CR$10,MATCH('Data Input - Option 3'!$D123,'Emissions factors'!$C$5:$C$10,0),MATCH('Data Input - Option 3'!BT$7,'Emissions factors'!$F$4:$CR$4,0))/1000,0)","v":0},{"$f":"IFERROR(BU87*INDEX('Emissions factors'!$F$5:$CR$10,MATCH('Data Input - Option 3'!$D123,'Emissions factors'!$C$5:$C$10,0),MATCH('Data Input - Option 3'!BU$7,'Emissions factors'!$F$4:$CR$4,0))/1000,0)","v":0},{"$f":"IFERROR(BV87*INDEX('Emissions factors'!$F$5:$CR$10,MATCH('Data Input - Option 3'!$D123,'Emissions factors'!$C$5:$C$10,0),MATCH('Data Input - Option 3'!BV$7,'Emissions factors'!$F$4:$CR$4,0))/1000,0)","v":0},{"$f":"IFERROR(BW87*INDEX('Emissions factors'!$F$5:$CR$10,MATCH('Data Input - Option 3'!$D123,'Emissions factors'!$C$5:$C$10,0),MATCH('Data Input - Option 3'!BW$7,'Emissions factors'!$F$4:$CR$4,0))/1000,0)","v":0},{"$f":"IFERROR(BX87*INDEX('Emissions factors'!$F$5:$CR$10,MATCH('Data Input - Option 3'!$D123,'Emissions factors'!$C$5:$C$10,0),MATCH('Data Input - Option 3'!BX$7,'Emissions factors'!$F$4:$CR$4,0))/1000,0)","v":0},{"$f":"IFERROR(BY87*INDEX('Emissions factors'!$F$5:$CR$10,MATCH('Data Input - Option 3'!$D123,'Emissions factors'!$C$5:$C$10,0),MATCH('Data Input - Option 3'!BY$7,'Emissions factors'!$F$4:$CR$4,0))/1000,0)","v":0},{"$f":"IFERROR(BZ87*INDEX('Emissions factors'!$F$5:$CR$10,MATCH('Data Input - Option 3'!$D123,'Emissions factors'!$C$5:$C$10,0),MATCH('Data Input - Option 3'!BZ$7,'Emissions factors'!$F$4:$CR$4,0))/1000,0)","v":0},{"$f":"IFERROR(CA87*INDEX('Emissions factors'!$F$5:$CR$10,MATCH('Data Input - Option 3'!$D123,'Emissions factors'!$C$5:$C$10,0),MATCH('Data Input - Option 3'!CA$7,'Emissions factors'!$F$4:$CR$4,0))/1000,0)","v":0},{"$f":"IFERROR(CB87*INDEX('Emissions factors'!$F$5:$CR$10,MATCH('Data Input - Option 3'!$D123,'Emissions factors'!$C$5:$C$10,0),MATCH('Data Input - Option 3'!CB$7,'Emissions factors'!$F$4:$CR$4,0))/1000,0)","v":0},{"$f":"IFERROR(CC87*INDEX('Emissions factors'!$F$5:$CR$10,MATCH('Data Input - Option 3'!$D123,'Emissions factors'!$C$5:$C$10,0),MATCH('Data Input - Option 3'!CC$7,'Emissions factors'!$F$4:$CR$4,0))/1000,0)","v":0},{"$f":"IFERROR(CD87*INDEX('Emissions factors'!$F$5:$CR$10,MATCH('Data Input - Option 3'!$D123,'Emissions factors'!$C$5:$C$10,0),MATCH('Data Input - Option 3'!CD$7,'Emissions factors'!$F$4:$CR$4,0))/1000,0)","v":0},{"$f":"IFERROR(CE87*INDEX('Emissions factors'!$F$5:$CR$10,MATCH('Data Input - Option 3'!$D123,'Emissions factors'!$C$5:$C$10,0),MATCH('Data Input - Option 3'!CE$7,'Emissions factors'!$F$4:$CR$4,0))/1000,0)","v":0},{"$f":"IFERROR(CF87*INDEX('Emissions factors'!$F$5:$CR$10,MATCH('Data Input - Option 3'!$D123,'Emissions factors'!$C$5:$C$10,0),MATCH('Data Input - Option 3'!CF$7,'Emissions factors'!$F$4:$CR$4,0))/1000,0)","v":0},{"$f":"IFERROR(CG87*INDEX('Emissions factors'!$F$5:$CR$10,MATCH('Data Input - Option 3'!$D123,'Emissions factors'!$C$5:$C$10,0),MATCH('Data Input - Option 3'!CG$7,'Emissions factors'!$F$4:$CR$4,0))/1000,0)","v":0},{"$f":"IFERROR(CH87*INDEX('Emissions factors'!$F$5:$CR$10,MATCH('Data Input - Option 3'!$D123,'Emissions factors'!$C$5:$C$10,0),MATCH('Data Input - Option 3'!CH$7,'Emissions factors'!$F$4:$CR$4,0))/1000,0)","v":0},{"$f":"IFERROR(CI87*INDEX('Emissions factors'!$F$5:$CR$10,MATCH('Data Input - Option 3'!$D123,'Emissions factors'!$C$5:$C$10,0),MATCH('Data Input - Option 3'!CI$7,'Emissions factors'!$F$4:$CR$4,0))/1000,0)","v":0},{"$f":"IFERROR(CJ87*INDEX('Emissions factors'!$F$5:$CR$10,MATCH('Data Input - Option 3'!$D123,'Emissions factors'!$C$5:$C$10,0),MATCH('Data Input - Option 3'!CJ$7,'Emissions factors'!$F$4:$CR$4,0))/1000,0)","v":0},{"$f":"IFERROR(CK87*INDEX('Emissions factors'!$F$5:$CR$10,MATCH('Data Input - Option 3'!$D123,'Emissions factors'!$C$5:$C$10,0),MATCH('Data Input - Option 3'!CK$7,'Emissions factors'!$F$4:$CR$4,0))/1000,0)","v":0},{"$f":"IFERROR(CL87*INDEX('Emissions factors'!$F$5:$CR$10,MATCH('Data Input - Option 3'!$D123,'Emissions factors'!$C$5:$C$10,0),MATCH('Data Input - Option 3'!CL$7,'Emissions factors'!$F$4:$CR$4,0))/1000,0)","v":0},{"$f":"IFERROR(CM87*INDEX('Emissions factors'!$F$5:$CR$10,MATCH('Data Input - Option 3'!$D123,'Emissions factors'!$C$5:$C$10,0),MATCH('Data Input - Option 3'!CM$7,'Emissions factors'!$F$4:$CR$4,0))/1000,0)","v":0},{"$f":"IFERROR(CN87*INDEX('Emissions factors'!$F$5:$CR$10,MATCH('Data Input - Option 3'!$D123,'Emissions factors'!$C$5:$C$10,0),MATCH('Data Input - Option 3'!CN$7,'Emissions factors'!$F$4:$CR$4,0))/1000,0)","v":0},{"$f":"IFERROR(CO87*INDEX('Emissions factors'!$F$5:$CR$10,MATCH('Data Input - Option 3'!$D123,'Emissions factors'!$C$5:$C$10,0),MATCH('Data Input - Option 3'!CO$7,'Emissions factors'!$F$4:$CR$4,0))/1000,0)","v":0},{"$f":"IFERROR(CP87*INDEX('Emissions factors'!$F$5:$CR$10,MATCH('Data Input - Option 3'!$D123,'Emissions factors'!$C$5:$C$10,0),MATCH('Data Input - Option 3'!CP$7,'Emissions factors'!$F$4:$CR$4,0))/1000,0)","v":0},{"$f":"IFERROR(CQ87*INDEX('Emissions factors'!$F$5:$CR$10,MATCH('Data Input - Option 3'!$D123,'Emissions factors'!$C$5:$C$10,0),MATCH('Data Input - Option 3'!CQ$7,'Emissions factors'!$F$4:$CR$4,0))/1000,0)","v":0},{"$f":"IFERROR(CR87*INDEX('Emissions factors'!$F$5:$CR$10,MATCH('Data Input - Option 3'!$D123,'Emissions factors'!$C$5:$C$10,0),MATCH('Data Input - Option 3'!CR$7,'Emissions factors'!$F$4:$CR$4,0))/1000,0)","v":0},{"$f":"IFERROR(CS87*INDEX('Emissions factors'!$F$5:$CR$10,MATCH('Data Input - Option 3'!$D123,'Emissions factors'!$C$5:$C$10,0),MATCH('Data Input - Option 3'!CS$7,'Emissions factors'!$F$4:$CR$4,0))/1000,0)","v":0},{"$f":"IFERROR(CT87*INDEX('Emissions factors'!$F$5:$CR$10,MATCH('Data Input - Option 3'!$D123,'Emissions factors'!$C$5:$C$10,0),MATCH('Data Input - Option 3'!CT$7,'Emissions factors'!$F$4:$CR$4,0))/1000,0)","v":0},{"$f":"IFERROR(CU87*INDEX('Emissions factors'!$F$5:$CR$10,MATCH('Data Input - Option 3'!$D123,'Emissions factors'!$C$5:$C$10,0),MATCH('Data Input - Option 3'!CU$7,'Emissions factors'!$F$4:$CR$4,0))/1000,0)","v":0},{"$f":"IFERROR(CV87*INDEX('Emissions factors'!$F$5:$CR$10,MATCH('Data Input - Option 3'!$D123,'Emissions factors'!$C$5:$C$10,0),MATCH('Data Input - Option 3'!CV$7,'Emissions factors'!$F$4:$CR$4,0))/1000,0)","v":0},{"$f":"IFERROR(CW87*INDEX('Emissions factors'!$F$5:$CR$10,MATCH('Data Input - Option 3'!$D123,'Emissions factors'!$C$5:$C$10,0),MATCH('Data Input - Option 3'!CW$7,'Emissions factors'!$F$4:$CR$4,0))/1000,0)","v":0},{"$f":"IFERROR(CX87*INDEX('Emissions factors'!$F$5:$CR$10,MATCH('Data Input - Option 3'!$D123,'Emissions factors'!$C$5:$C$10,0),MATCH('Data Input - Option 3'!CX$7,'Emissions factors'!$F$4:$CR$4,0))/1000,0)","v":0},{"$f":"IFERROR(CY87*INDEX('Emissions factors'!$F$5:$CR$10,MATCH('Data Input - Option 3'!$D123,'Emissions factors'!$C$5:$C$10,0),MATCH('Data Input - Option 3'!CY$7,'Emissions factors'!$F$4:$CR$4,0))/1000,0)","v":0},{"$f":"IFERROR(CZ87*INDEX('Emissions factors'!$F$5:$CR$10,MATCH('Data Input - Option 3'!$D123,'Emissions factors'!$C$5:$C$10,0),MATCH('Data Input - Option 3'!CZ$7,'Emissions factors'!$F$4:$CR$4,0))/1000,0)","v":0},{"$f":"IFERROR(DA87*INDEX('Emissions factors'!$F$5:$CR$10,MATCH('Data Input - Option 3'!$D123,'Emissions factors'!$C$5:$C$10,0),MATCH('Data Input - Option 3'!DA$7,'Emissions factors'!$F$4:$CR$4,0))/1000,0)","v":0},{"$f":"IFERROR(DB87*INDEX('Emissions factors'!$F$5:$CR$10,MATCH('Data Input - Option 3'!$D123,'Emissions factors'!$C$5:$C$10,0),MATCH('Data Input - Option 3'!DB$7,'Emissions factors'!$F$4:$CR$4,0))/1000,0)","v":0},{"$f":"IFERROR(DC87*INDEX('Emissions factors'!$F$5:$CR$10,MATCH('Data Input - Option 3'!$D123,'Emissions factors'!$C$5:$C$10,0),MATCH('Data Input - Option 3'!DC$7,'Emissions factors'!$F$4:$CR$4,0))/1000,0)","v":0}]
[null,null,null,"Road - Petrol","tCO2e","(Auto calculated value)",null,{"$f":"IFERROR(H88*INDEX('Emissions factors'!$F$5:$CR$10,MATCH('Data Input - Option 3'!$D124,'Emissions factors'!$C$5:$C$10,0),MATCH('Data Input - Option 3'!H$7,'Emissions factors'!$F$4:$CR$4,0))/1000,0)","v":0},{"$f":"IFERROR(I88*INDEX('Emissions factors'!$F$5:$CR$10,MATCH('Data Input - Option 3'!$D124,'Emissions factors'!$C$5:$C$10,0),MATCH('Data Input - Option 3'!I$7,'Emissions factors'!$F$4:$CR$4,0))/1000,0)","v":0},{"$f":"IFERROR(J88*INDEX('Emissions factors'!$F$5:$CR$10,MATCH('Data Input - Option 3'!$D124,'Emissions factors'!$C$5:$C$10,0),MATCH('Data Input - Option 3'!J$7,'Emissions factors'!$F$4:$CR$4,0))/1000,0)","v":0},{"$f":"IFERROR(K88*INDEX('Emissions factors'!$F$5:$CR$10,MATCH('Data Input - Option 3'!$D124,'Emissions factors'!$C$5:$C$10,0),MATCH('Data Input - Option 3'!K$7,'Emissions factors'!$F$4:$CR$4,0))/1000,0)","v":0},{"$f":"IFERROR(L88*INDEX('Emissions factors'!$F$5:$CR$10,MATCH('Data Input - Option 3'!$D124,'Emissions factors'!$C$5:$C$10,0),MATCH('Data Input - Option 3'!L$7,'Emissions factors'!$F$4:$CR$4,0))/1000,0)","v":0},{"$f":"IFERROR(M88*INDEX('Emissions factors'!$F$5:$CR$10,MATCH('Data Input - Option 3'!$D124,'Emissions factors'!$C$5:$C$10,0),MATCH('Data Input - Option 3'!M$7,'Emissions factors'!$F$4:$CR$4,0))/1000,0)","v":0},{"$f":"IFERROR(N88*INDEX('Emissions factors'!$F$5:$CR$10,MATCH('Data Input - Option 3'!$D124,'Emissions factors'!$C$5:$C$10,0),MATCH('Data Input - Option 3'!N$7,'Emissions factors'!$F$4:$CR$4,0))/1000,0)","v":0},{"$f":"IFERROR(O88*INDEX('Emissions factors'!$F$5:$CR$10,MATCH('Data Input - Option 3'!$D124,'Emissions factors'!$C$5:$C$10,0),MATCH('Data Input - Option 3'!O$7,'Emissions factors'!$F$4:$CR$4,0))/1000,0)","v":0},{"$f":"IFERROR(P88*INDEX('Emissions factors'!$F$5:$CR$10,MATCH('Data Input - Option 3'!$D124,'Emissions factors'!$C$5:$C$10,0),MATCH('Data Input - Option 3'!P$7,'Emissions factors'!$F$4:$CR$4,0))/1000,0)","v":0},{"$f":"IFERROR(Q88*INDEX('Emissions factors'!$F$5:$CR$10,MATCH('Data Input - Option 3'!$D124,'Emissions factors'!$C$5:$C$10,0),MATCH('Data Input - Option 3'!Q$7,'Emissions factors'!$F$4:$CR$4,0))/1000,0)","v":0},{"$f":"IFERROR(R88*INDEX('Emissions factors'!$F$5:$CR$10,MATCH('Data Input - Option 3'!$D124,'Emissions factors'!$C$5:$C$10,0),MATCH('Data Input - Option 3'!R$7,'Emissions factors'!$F$4:$CR$4,0))/1000,0)","v":0},{"$f":"IFERROR(S88*INDEX('Emissions factors'!$F$5:$CR$10,MATCH('Data Input - Option 3'!$D124,'Emissions factors'!$C$5:$C$10,0),MATCH('Data Input - Option 3'!S$7,'Emissions factors'!$F$4:$CR$4,0))/1000,0)","v":0},{"$f":"IFERROR(T88*INDEX('Emissions factors'!$F$5:$CR$10,MATCH('Data Input - Option 3'!$D124,'Emissions factors'!$C$5:$C$10,0),MATCH('Data Input - Option 3'!T$7,'Emissions factors'!$F$4:$CR$4,0))/1000,0)","v":0},{"$f":"IFERROR(U88*INDEX('Emissions factors'!$F$5:$CR$10,MATCH('Data Input - Option 3'!$D124,'Emissions factors'!$C$5:$C$10,0),MATCH('Data Input - Option 3'!U$7,'Emissions factors'!$F$4:$CR$4,0))/1000,0)","v":0},{"$f":"IFERROR(V88*INDEX('Emissions factors'!$F$5:$CR$10,MATCH('Data Input - Option 3'!$D124,'Emissions factors'!$C$5:$C$10,0),MATCH('Data Input - Option 3'!V$7,'Emissions factors'!$F$4:$CR$4,0))/1000,0)","v":0},{"$f":"IFERROR(W88*INDEX('Emissions factors'!$F$5:$CR$10,MATCH('Data Input - Option 3'!$D124,'Emissions factors'!$C$5:$C$10,0),MATCH('Data Input - Option 3'!W$7,'Emissions factors'!$F$4:$CR$4,0))/1000,0)","v":0},{"$f":"IFERROR(X88*INDEX('Emissions factors'!$F$5:$CR$10,MATCH('Data Input - Option 3'!$D124,'Emissions factors'!$C$5:$C$10,0),MATCH('Data Input - Option 3'!X$7,'Emissions factors'!$F$4:$CR$4,0))/1000,0)","v":0},{"$f":"IFERROR(Y88*INDEX('Emissions factors'!$F$5:$CR$10,MATCH('Data Input - Option 3'!$D124,'Emissions factors'!$C$5:$C$10,0),MATCH('Data Input - Option 3'!Y$7,'Emissions factors'!$F$4:$CR$4,0))/1000,0)","v":0},{"$f":"IFERROR(Z88*INDEX('Emissions factors'!$F$5:$CR$10,MATCH('Data Input - Option 3'!$D124,'Emissions factors'!$C$5:$C$10,0),MATCH('Data Input - Option 3'!Z$7,'Emissions factors'!$F$4:$CR$4,0))/1000,0)","v":0},{"$f":"IFERROR(AA88*INDEX('Emissions factors'!$F$5:$CR$10,MATCH('Data Input - Option 3'!$D124,'Emissions factors'!$C$5:$C$10,0),MATCH('Data Input - Option 3'!AA$7,'Emissions factors'!$F$4:$CR$4,0))/1000,0)","v":0},{"$f":"IFERROR(AB88*INDEX('Emissions factors'!$F$5:$CR$10,MATCH('Data Input - Option 3'!$D124,'Emissions factors'!$C$5:$C$10,0),MATCH('Data Input - Option 3'!AB$7,'Emissions factors'!$F$4:$CR$4,0))/1000,0)","v":0},{"$f":"IFERROR(AC88*INDEX('Emissions factors'!$F$5:$CR$10,MATCH('Data Input - Option 3'!$D124,'Emissions factors'!$C$5:$C$10,0),MATCH('Data Input - Option 3'!AC$7,'Emissions factors'!$F$4:$CR$4,0))/1000,0)","v":0},{"$f":"IFERROR(AD88*INDEX('Emissions factors'!$F$5:$CR$10,MATCH('Data Input - Option 3'!$D124,'Emissions factors'!$C$5:$C$10,0),MATCH('Data Input - Option 3'!AD$7,'Emissions factors'!$F$4:$CR$4,0))/1000,0)","v":0},{"$f":"IFERROR(AE88*INDEX('Emissions factors'!$F$5:$CR$10,MATCH('Data Input - Option 3'!$D124,'Emissions factors'!$C$5:$C$10,0),MATCH('Data Input - Option 3'!AE$7,'Emissions factors'!$F$4:$CR$4,0))/1000,0)","v":0},{"$f":"IFERROR(AF88*INDEX('Emissions factors'!$F$5:$CR$10,MATCH('Data Input - Option 3'!$D124,'Emissions factors'!$C$5:$C$10,0),MATCH('Data Input - Option 3'!AF$7,'Emissions factors'!$F$4:$CR$4,0))/1000,0)","v":0},{"$f":"IFERROR(AG88*INDEX('Emissions factors'!$F$5:$CR$10,MATCH('Data Input - Option 3'!$D124,'Emissions factors'!$C$5:$C$10,0),MATCH('Data Input - Option 3'!AG$7,'Emissions factors'!$F$4:$CR$4,0))/1000,0)","v":0},{"$f":"IFERROR(AH88*INDEX('Emissions factors'!$F$5:$CR$10,MATCH('Data Input - Option 3'!$D124,'Emissions factors'!$C$5:$C$10,0),MATCH('Data Input - Option 3'!AH$7,'Emissions factors'!$F$4:$CR$4,0))/1000,0)","v":0},{"$f":"IFERROR(AI88*INDEX('Emissions factors'!$F$5:$CR$10,MATCH('Data Input - Option 3'!$D124,'Emissions factors'!$C$5:$C$10,0),MATCH('Data Input - Option 3'!AI$7,'Emissions factors'!$F$4:$CR$4,0))/1000,0)","v":0},{"$f":"IFERROR(AJ88*INDEX('Emissions factors'!$F$5:$CR$10,MATCH('Data Input - Option 3'!$D124,'Emissions factors'!$C$5:$C$10,0),MATCH('Data Input - Option 3'!AJ$7,'Emissions factors'!$F$4:$CR$4,0))/1000,0)","v":0},{"$f":"IFERROR(AK88*INDEX('Emissions factors'!$F$5:$CR$10,MATCH('Data Input - Option 3'!$D124,'Emissions factors'!$C$5:$C$10,0),MATCH('Data Input - Option 3'!AK$7,'Emissions factors'!$F$4:$CR$4,0))/1000,0)","v":0},{"$f":"IFERROR(AL88*INDEX('Emissions factors'!$F$5:$CR$10,MATCH('Data Input - Option 3'!$D124,'Emissions factors'!$C$5:$C$10,0),MATCH('Data Input - Option 3'!AL$7,'Emissions factors'!$F$4:$CR$4,0))/1000,0)","v":0},{"$f":"IFERROR(AM88*INDEX('Emissions factors'!$F$5:$CR$10,MATCH('Data Input - Option 3'!$D124,'Emissions factors'!$C$5:$C$10,0),MATCH('Data Input - Option 3'!AM$7,'Emissions factors'!$F$4:$CR$4,0))/1000,0)","v":0},{"$f":"IFERROR(AN88*INDEX('Emissions factors'!$F$5:$CR$10,MATCH('Data Input - Option 3'!$D124,'Emissions factors'!$C$5:$C$10,0),MATCH('Data Input - Option 3'!AN$7,'Emissions factors'!$F$4:$CR$4,0))/1000,0)","v":0},{"$f":"IFERROR(AO88*INDEX('Emissions factors'!$F$5:$CR$10,MATCH('Data Input - Option 3'!$D124,'Emissions factors'!$C$5:$C$10,0),MATCH('Data Input - Option 3'!AO$7,'Emissions factors'!$F$4:$CR$4,0))/1000,0)","v":0},{"$f":"IFERROR(AP88*INDEX('Emissions factors'!$F$5:$CR$10,MATCH('Data Input - Option 3'!$D124,'Emissions factors'!$C$5:$C$10,0),MATCH('Data Input - Option 3'!AP$7,'Emissions factors'!$F$4:$CR$4,0))/1000,0)","v":0},{"$f":"IFERROR(AQ88*INDEX('Emissions factors'!$F$5:$CR$10,MATCH('Data Input - Option 3'!$D124,'Emissions factors'!$C$5:$C$10,0),MATCH('Data Input - Option 3'!AQ$7,'Emissions factors'!$F$4:$CR$4,0))/1000,0)","v":0},{"$f":"IFERROR(AR88*INDEX('Emissions factors'!$F$5:$CR$10,MATCH('Data Input - Option 3'!$D124,'Emissions factors'!$C$5:$C$10,0),MATCH('Data Input - Option 3'!AR$7,'Emissions factors'!$F$4:$CR$4,0))/1000,0)","v":0},{"$f":"IFERROR(AS88*INDEX('Emissions factors'!$F$5:$CR$10,MATCH('Data Input - Option 3'!$D124,'Emissions factors'!$C$5:$C$10,0),MATCH('Data Input - Option 3'!AS$7,'Emissions factors'!$F$4:$CR$4,0))/1000,0)","v":0},{"$f":"IFERROR(AT88*INDEX('Emissions factors'!$F$5:$CR$10,MATCH('Data Input - Option 3'!$D124,'Emissions factors'!$C$5:$C$10,0),MATCH('Data Input - Option 3'!AT$7,'Emissions factors'!$F$4:$CR$4,0))/1000,0)","v":0},{"$f":"IFERROR(AU88*INDEX('Emissions factors'!$F$5:$CR$10,MATCH('Data Input - Option 3'!$D124,'Emissions factors'!$C$5:$C$10,0),MATCH('Data Input - Option 3'!AU$7,'Emissions factors'!$F$4:$CR$4,0))/1000,0)","v":0},{"$f":"IFERROR(AV88*INDEX('Emissions factors'!$F$5:$CR$10,MATCH('Data Input - Option 3'!$D124,'Emissions factors'!$C$5:$C$10,0),MATCH('Data Input - Option 3'!AV$7,'Emissions factors'!$F$4:$CR$4,0))/1000,0)","v":0},{"$f":"IFERROR(AW88*INDEX('Emissions factors'!$F$5:$CR$10,MATCH('Data Input - Option 3'!$D124,'Emissions factors'!$C$5:$C$10,0),MATCH('Data Input - Option 3'!AW$7,'Emissions factors'!$F$4:$CR$4,0))/1000,0)","v":0},{"$f":"IFERROR(AX88*INDEX('Emissions factors'!$F$5:$CR$10,MATCH('Data Input - Option 3'!$D124,'Emissions factors'!$C$5:$C$10,0),MATCH('Data Input - Option 3'!AX$7,'Emissions factors'!$F$4:$CR$4,0))/1000,0)","v":0},{"$f":"IFERROR(AY88*INDEX('Emissions factors'!$F$5:$CR$10,MATCH('Data Input - Option 3'!$D124,'Emissions factors'!$C$5:$C$10,0),MATCH('Data Input - Option 3'!AY$7,'Emissions factors'!$F$4:$CR$4,0))/1000,0)","v":0},{"$f":"IFERROR(AZ88*INDEX('Emissions factors'!$F$5:$CR$10,MATCH('Data Input - Option 3'!$D124,'Emissions factors'!$C$5:$C$10,0),MATCH('Data Input - Option 3'!AZ$7,'Emissions factors'!$F$4:$CR$4,0))/1000,0)","v":0},{"$f":"IFERROR(BA88*INDEX('Emissions factors'!$F$5:$CR$10,MATCH('Data Input - Option 3'!$D124,'Emissions factors'!$C$5:$C$10,0),MATCH('Data Input - Option 3'!BA$7,'Emissions factors'!$F$4:$CR$4,0))/1000,0)","v":0},{"$f":"IFERROR(BB88*INDEX('Emissions factors'!$F$5:$CR$10,MATCH('Data Input - Option 3'!$D124,'Emissions factors'!$C$5:$C$10,0),MATCH('Data Input - Option 3'!BB$7,'Emissions factors'!$F$4:$CR$4,0))/1000,0)","v":0},{"$f":"IFERROR(BC88*INDEX('Emissions factors'!$F$5:$CR$10,MATCH('Data Input - Option 3'!$D124,'Emissions factors'!$C$5:$C$10,0),MATCH('Data Input - Option 3'!BC$7,'Emissions factors'!$F$4:$CR$4,0))/1000,0)","v":0},{"$f":"IFERROR(BD88*INDEX('Emissions factors'!$F$5:$CR$10,MATCH('Data Input - Option 3'!$D124,'Emissions factors'!$C$5:$C$10,0),MATCH('Data Input - Option 3'!BD$7,'Emissions factors'!$F$4:$CR$4,0))/1000,0)","v":0},{"$f":"IFERROR(BE88*INDEX('Emissions factors'!$F$5:$CR$10,MATCH('Data Input - Option 3'!$D124,'Emissions factors'!$C$5:$C$10,0),MATCH('Data Input - Option 3'!BE$7,'Emissions factors'!$F$4:$CR$4,0))/1000,0)","v":0},{"$f":"IFERROR(BF88*INDEX('Emissions factors'!$F$5:$CR$10,MATCH('Data Input - Option 3'!$D124,'Emissions factors'!$C$5:$C$10,0),MATCH('Data Input - Option 3'!BF$7,'Emissions factors'!$F$4:$CR$4,0))/1000,0)","v":0},{"$f":"IFERROR(BG88*INDEX('Emissions factors'!$F$5:$CR$10,MATCH('Data Input - Option 3'!$D124,'Emissions factors'!$C$5:$C$10,0),MATCH('Data Input - Option 3'!BG$7,'Emissions factors'!$F$4:$CR$4,0))/1000,0)","v":0},{"$f":"IFERROR(BH88*INDEX('Emissions factors'!$F$5:$CR$10,MATCH('Data Input - Option 3'!$D124,'Emissions factors'!$C$5:$C$10,0),MATCH('Data Input - Option 3'!BH$7,'Emissions factors'!$F$4:$CR$4,0))/1000,0)","v":0},{"$f":"IFERROR(BI88*INDEX('Emissions factors'!$F$5:$CR$10,MATCH('Data Input - Option 3'!$D124,'Emissions factors'!$C$5:$C$10,0),MATCH('Data Input - Option 3'!BI$7,'Emissions factors'!$F$4:$CR$4,0))/1000,0)","v":0},{"$f":"IFERROR(BJ88*INDEX('Emissions factors'!$F$5:$CR$10,MATCH('Data Input - Option 3'!$D124,'Emissions factors'!$C$5:$C$10,0),MATCH('Data Input - Option 3'!BJ$7,'Emissions factors'!$F$4:$CR$4,0))/1000,0)","v":0},{"$f":"IFERROR(BK88*INDEX('Emissions factors'!$F$5:$CR$10,MATCH('Data Input - Option 3'!$D124,'Emissions factors'!$C$5:$C$10,0),MATCH('Data Input - Option 3'!BK$7,'Emissions factors'!$F$4:$CR$4,0))/1000,0)","v":0},{"$f":"IFERROR(BL88*INDEX('Emissions factors'!$F$5:$CR$10,MATCH('Data Input - Option 3'!$D124,'Emissions factors'!$C$5:$C$10,0),MATCH('Data Input - Option 3'!BL$7,'Emissions factors'!$F$4:$CR$4,0))/1000,0)","v":0},{"$f":"IFERROR(BM88*INDEX('Emissions factors'!$F$5:$CR$10,MATCH('Data Input - Option 3'!$D124,'Emissions factors'!$C$5:$C$10,0),MATCH('Data Input - Option 3'!BM$7,'Emissions factors'!$F$4:$CR$4,0))/1000,0)","v":0},{"$f":"IFERROR(BN88*INDEX('Emissions factors'!$F$5:$CR$10,MATCH('Data Input - Option 3'!$D124,'Emissions factors'!$C$5:$C$10,0),MATCH('Data Input - Option 3'!BN$7,'Emissions factors'!$F$4:$CR$4,0))/1000,0)","v":0},{"$f":"IFERROR(BO88*INDEX('Emissions factors'!$F$5:$CR$10,MATCH('Data Input - Option 3'!$D124,'Emissions factors'!$C$5:$C$10,0),MATCH('Data Input - Option 3'!BO$7,'Emissions factors'!$F$4:$CR$4,0))/1000,0)","v":0},{"$f":"IFERROR(BP88*INDEX('Emissions factors'!$F$5:$CR$10,MATCH('Data Input - Option 3'!$D124,'Emissions factors'!$C$5:$C$10,0),MATCH('Data Input - Option 3'!BP$7,'Emissions factors'!$F$4:$CR$4,0))/1000,0)","v":0},{"$f":"IFERROR(BQ88*INDEX('Emissions factors'!$F$5:$CR$10,MATCH('Data Input - Option 3'!$D124,'Emissions factors'!$C$5:$C$10,0),MATCH('Data Input - Option 3'!BQ$7,'Emissions factors'!$F$4:$CR$4,0))/1000,0)","v":0},{"$f":"IFERROR(BR88*INDEX('Emissions factors'!$F$5:$CR$10,MATCH('Data Input - Option 3'!$D124,'Emissions factors'!$C$5:$C$10,0),MATCH('Data Input - Option 3'!BR$7,'Emissions factors'!$F$4:$CR$4,0))/1000,0)","v":0},{"$f":"IFERROR(BS88*INDEX('Emissions factors'!$F$5:$CR$10,MATCH('Data Input - Option 3'!$D124,'Emissions factors'!$C$5:$C$10,0),MATCH('Data Input - Option 3'!BS$7,'Emissions factors'!$F$4:$CR$4,0))/1000,0)","v":0},{"$f":"IFERROR(BT88*INDEX('Emissions factors'!$F$5:$CR$10,MATCH('Data Input - Option 3'!$D124,'Emissions factors'!$C$5:$C$10,0),MATCH('Data Input - Option 3'!BT$7,'Emissions factors'!$F$4:$CR$4,0))/1000,0)","v":0},{"$f":"IFERROR(BU88*INDEX('Emissions factors'!$F$5:$CR$10,MATCH('Data Input - Option 3'!$D124,'Emissions factors'!$C$5:$C$10,0),MATCH('Data Input - Option 3'!BU$7,'Emissions factors'!$F$4:$CR$4,0))/1000,0)","v":0},{"$f":"IFERROR(BV88*INDEX('Emissions factors'!$F$5:$CR$10,MATCH('Data Input - Option 3'!$D124,'Emissions factors'!$C$5:$C$10,0),MATCH('Data Input - Option 3'!BV$7,'Emissions factors'!$F$4:$CR$4,0))/1000,0)","v":0},{"$f":"IFERROR(BW88*INDEX('Emissions factors'!$F$5:$CR$10,MATCH('Data Input - Option 3'!$D124,'Emissions factors'!$C$5:$C$10,0),MATCH('Data Input - Option 3'!BW$7,'Emissions factors'!$F$4:$CR$4,0))/1000,0)","v":0},{"$f":"IFERROR(BX88*INDEX('Emissions factors'!$F$5:$CR$10,MATCH('Data Input - Option 3'!$D124,'Emissions factors'!$C$5:$C$10,0),MATCH('Data Input - Option 3'!BX$7,'Emissions factors'!$F$4:$CR$4,0))/1000,0)","v":0},{"$f":"IFERROR(BY88*INDEX('Emissions factors'!$F$5:$CR$10,MATCH('Data Input - Option 3'!$D124,'Emissions factors'!$C$5:$C$10,0),MATCH('Data Input - Option 3'!BY$7,'Emissions factors'!$F$4:$CR$4,0))/1000,0)","v":0},{"$f":"IFERROR(BZ88*INDEX('Emissions factors'!$F$5:$CR$10,MATCH('Data Input - Option 3'!$D124,'Emissions factors'!$C$5:$C$10,0),MATCH('Data Input - Option 3'!BZ$7,'Emissions factors'!$F$4:$CR$4,0))/1000,0)","v":0},{"$f":"IFERROR(CA88*INDEX('Emissions factors'!$F$5:$CR$10,MATCH('Data Input - Option 3'!$D124,'Emissions factors'!$C$5:$C$10,0),MATCH('Data Input - Option 3'!CA$7,'Emissions factors'!$F$4:$CR$4,0))/1000,0)","v":0},{"$f":"IFERROR(CB88*INDEX('Emissions factors'!$F$5:$CR$10,MATCH('Data Input - Option 3'!$D124,'Emissions factors'!$C$5:$C$10,0),MATCH('Data Input - Option 3'!CB$7,'Emissions factors'!$F$4:$CR$4,0))/1000,0)","v":0},{"$f":"IFERROR(CC88*INDEX('Emissions factors'!$F$5:$CR$10,MATCH('Data Input - Option 3'!$D124,'Emissions factors'!$C$5:$C$10,0),MATCH('Data Input - Option 3'!CC$7,'Emissions factors'!$F$4:$CR$4,0))/1000,0)","v":0},{"$f":"IFERROR(CD88*INDEX('Emissions factors'!$F$5:$CR$10,MATCH('Data Input - Option 3'!$D124,'Emissions factors'!$C$5:$C$10,0),MATCH('Data Input - Option 3'!CD$7,'Emissions factors'!$F$4:$CR$4,0))/1000,0)","v":0},{"$f":"IFERROR(CE88*INDEX('Emissions factors'!$F$5:$CR$10,MATCH('Data Input - Option 3'!$D124,'Emissions factors'!$C$5:$C$10,0),MATCH('Data Input - Option 3'!CE$7,'Emissions factors'!$F$4:$CR$4,0))/1000,0)","v":0},{"$f":"IFERROR(CF88*INDEX('Emissions factors'!$F$5:$CR$10,MATCH('Data Input - Option 3'!$D124,'Emissions factors'!$C$5:$C$10,0),MATCH('Data Input - Option 3'!CF$7,'Emissions factors'!$F$4:$CR$4,0))/1000,0)","v":0},{"$f":"IFERROR(CG88*INDEX('Emissions factors'!$F$5:$CR$10,MATCH('Data Input - Option 3'!$D124,'Emissions factors'!$C$5:$C$10,0),MATCH('Data Input - Option 3'!CG$7,'Emissions factors'!$F$4:$CR$4,0))/1000,0)","v":0},{"$f":"IFERROR(CH88*INDEX('Emissions factors'!$F$5:$CR$10,MATCH('Data Input - Option 3'!$D124,'Emissions factors'!$C$5:$C$10,0),MATCH('Data Input - Option 3'!CH$7,'Emissions factors'!$F$4:$CR$4,0))/1000,0)","v":0},{"$f":"IFERROR(CI88*INDEX('Emissions factors'!$F$5:$CR$10,MATCH('Data Input - Option 3'!$D124,'Emissions factors'!$C$5:$C$10,0),MATCH('Data Input - Option 3'!CI$7,'Emissions factors'!$F$4:$CR$4,0))/1000,0)","v":0},{"$f":"IFERROR(CJ88*INDEX('Emissions factors'!$F$5:$CR$10,MATCH('Data Input - Option 3'!$D124,'Emissions factors'!$C$5:$C$10,0),MATCH('Data Input - Option 3'!CJ$7,'Emissions factors'!$F$4:$CR$4,0))/1000,0)","v":0},{"$f":"IFERROR(CK88*INDEX('Emissions factors'!$F$5:$CR$10,MATCH('Data Input - Option 3'!$D124,'Emissions factors'!$C$5:$C$10,0),MATCH('Data Input - Option 3'!CK$7,'Emissions factors'!$F$4:$CR$4,0))/1000,0)","v":0},{"$f":"IFERROR(CL88*INDEX('Emissions factors'!$F$5:$CR$10,MATCH('Data Input - Option 3'!$D124,'Emissions factors'!$C$5:$C$10,0),MATCH('Data Input - Option 3'!CL$7,'Emissions factors'!$F$4:$CR$4,0))/1000,0)","v":0},{"$f":"IFERROR(CM88*INDEX('Emissions factors'!$F$5:$CR$10,MATCH('Data Input - Option 3'!$D124,'Emissions factors'!$C$5:$C$10,0),MATCH('Data Input - Option 3'!CM$7,'Emissions factors'!$F$4:$CR$4,0))/1000,0)","v":0},{"$f":"IFERROR(CN88*INDEX('Emissions factors'!$F$5:$CR$10,MATCH('Data Input - Option 3'!$D124,'Emissions factors'!$C$5:$C$10,0),MATCH('Data Input - Option 3'!CN$7,'Emissions factors'!$F$4:$CR$4,0))/1000,0)","v":0},{"$f":"IFERROR(CO88*INDEX('Emissions factors'!$F$5:$CR$10,MATCH('Data Input - Option 3'!$D124,'Emissions factors'!$C$5:$C$10,0),MATCH('Data Input - Option 3'!CO$7,'Emissions factors'!$F$4:$CR$4,0))/1000,0)","v":0},{"$f":"IFERROR(CP88*INDEX('Emissions factors'!$F$5:$CR$10,MATCH('Data Input - Option 3'!$D124,'Emissions factors'!$C$5:$C$10,0),MATCH('Data Input - Option 3'!CP$7,'Emissions factors'!$F$4:$CR$4,0))/1000,0)","v":0},{"$f":"IFERROR(CQ88*INDEX('Emissions factors'!$F$5:$CR$10,MATCH('Data Input - Option 3'!$D124,'Emissions factors'!$C$5:$C$10,0),MATCH('Data Input - Option 3'!CQ$7,'Emissions factors'!$F$4:$CR$4,0))/1000,0)","v":0},{"$f":"IFERROR(CR88*INDEX('Emissions factors'!$F$5:$CR$10,MATCH('Data Input - Option 3'!$D124,'Emissions factors'!$C$5:$C$10,0),MATCH('Data Input - Option 3'!CR$7,'Emissions factors'!$F$4:$CR$4,0))/1000,0)","v":0},{"$f":"IFERROR(CS88*INDEX('Emissions factors'!$F$5:$CR$10,MATCH('Data Input - Option 3'!$D124,'Emissions factors'!$C$5:$C$10,0),MATCH('Data Input - Option 3'!CS$7,'Emissions factors'!$F$4:$CR$4,0))/1000,0)","v":0},{"$f":"IFERROR(CT88*INDEX('Emissions factors'!$F$5:$CR$10,MATCH('Data Input - Option 3'!$D124,'Emissions factors'!$C$5:$C$10,0),MATCH('Data Input - Option 3'!CT$7,'Emissions factors'!$F$4:$CR$4,0))/1000,0)","v":0},{"$f":"IFERROR(CU88*INDEX('Emissions factors'!$F$5:$CR$10,MATCH('Data Input - Option 3'!$D124,'Emissions factors'!$C$5:$C$10,0),MATCH('Data Input - Option 3'!CU$7,'Emissions factors'!$F$4:$CR$4,0))/1000,0)","v":0},{"$f":"IFERROR(CV88*INDEX('Emissions factors'!$F$5:$CR$10,MATCH('Data Input - Option 3'!$D124,'Emissions factors'!$C$5:$C$10,0),MATCH('Data Input - Option 3'!CV$7,'Emissions factors'!$F$4:$CR$4,0))/1000,0)","v":0},{"$f":"IFERROR(CW88*INDEX('Emissions factors'!$F$5:$CR$10,MATCH('Data Input - Option 3'!$D124,'Emissions factors'!$C$5:$C$10,0),MATCH('Data Input - Option 3'!CW$7,'Emissions factors'!$F$4:$CR$4,0))/1000,0)","v":0},{"$f":"IFERROR(CX88*INDEX('Emissions factors'!$F$5:$CR$10,MATCH('Data Input - Option 3'!$D124,'Emissions factors'!$C$5:$C$10,0),MATCH('Data Input - Option 3'!CX$7,'Emissions factors'!$F$4:$CR$4,0))/1000,0)","v":0},{"$f":"IFERROR(CY88*INDEX('Emissions factors'!$F$5:$CR$10,MATCH('Data Input - Option 3'!$D124,'Emissions factors'!$C$5:$C$10,0),MATCH('Data Input - Option 3'!CY$7,'Emissions factors'!$F$4:$CR$4,0))/1000,0)","v":0},{"$f":"IFERROR(CZ88*INDEX('Emissions factors'!$F$5:$CR$10,MATCH('Data Input - Option 3'!$D124,'Emissions factors'!$C$5:$C$10,0),MATCH('Data Input - Option 3'!CZ$7,'Emissions factors'!$F$4:$CR$4,0))/1000,0)","v":0},{"$f":"IFERROR(DA88*INDEX('Emissions factors'!$F$5:$CR$10,MATCH('Data Input - Option 3'!$D124,'Emissions factors'!$C$5:$C$10,0),MATCH('Data Input - Option 3'!DA$7,'Emissions factors'!$F$4:$CR$4,0))/1000,0)","v":0},{"$f":"IFERROR(DB88*INDEX('Emissions factors'!$F$5:$CR$10,MATCH('Data Input - Option 3'!$D124,'Emissions factors'!$C$5:$C$10,0),MATCH('Data Input - Option 3'!DB$7,'Emissions factors'!$F$4:$CR$4,0))/1000,0)","v":0},{"$f":"IFERROR(DC88*INDEX('Emissions factors'!$F$5:$CR$10,MATCH('Data Input - Option 3'!$D124,'Emissions factors'!$C$5:$C$10,0),MATCH('Data Input - Option 3'!DC$7,'Emissions factors'!$F$4:$CR$4,0))/1000,0)","v":0}]
[null,null,null,"Road - Diesel","tCO2e","(Auto calculated value)",null,{"$f":"IFERROR(H89*INDEX('Emissions factors'!$F$5:$CR$10,MATCH('Data Input - Option 3'!$D125,'Emissions factors'!$C$5:$C$10,0),MATCH('Data Input - Option 3'!H$7,'Emissions factors'!$F$4:$CR$4,0))/1000,0)","v":0},{"$f":"IFERROR(I89*INDEX('Emissions factors'!$F$5:$CR$10,MATCH('Data Input - Option 3'!$D125,'Emissions factors'!$C$5:$C$10,0),MATCH('Data Input - Option 3'!I$7,'Emissions factors'!$F$4:$CR$4,0))/1000,0)","v":0},{"$f":"IFERROR(J89*INDEX('Emissions factors'!$F$5:$CR$10,MATCH('Data Input - Option 3'!$D125,'Emissions factors'!$C$5:$C$10,0),MATCH('Data Input - Option 3'!J$7,'Emissions factors'!$F$4:$CR$4,0))/1000,0)","v":0},{"$f":"IFERROR(K89*INDEX('Emissions factors'!$F$5:$CR$10,MATCH('Data Input - Option 3'!$D125,'Emissions factors'!$C$5:$C$10,0),MATCH('Data Input - Option 3'!K$7,'Emissions factors'!$F$4:$CR$4,0))/1000,0)","v":0},{"$f":"IFERROR(L89*INDEX('Emissions factors'!$F$5:$CR$10,MATCH('Data Input - Option 3'!$D125,'Emissions factors'!$C$5:$C$10,0),MATCH('Data Input - Option 3'!L$7,'Emissions factors'!$F$4:$CR$4,0))/1000,0)","v":0},{"$f":"IFERROR(M89*INDEX('Emissions factors'!$F$5:$CR$10,MATCH('Data Input - Option 3'!$D125,'Emissions factors'!$C$5:$C$10,0),MATCH('Data Input - Option 3'!M$7,'Emissions factors'!$F$4:$CR$4,0))/1000,0)","v":0},{"$f":"IFERROR(N89*INDEX('Emissions factors'!$F$5:$CR$10,MATCH('Data Input - Option 3'!$D125,'Emissions factors'!$C$5:$C$10,0),MATCH('Data Input - Option 3'!N$7,'Emissions factors'!$F$4:$CR$4,0))/1000,0)","v":0},{"$f":"IFERROR(O89*INDEX('Emissions factors'!$F$5:$CR$10,MATCH('Data Input - Option 3'!$D125,'Emissions factors'!$C$5:$C$10,0),MATCH('Data Input - Option 3'!O$7,'Emissions factors'!$F$4:$CR$4,0))/1000,0)","v":0},{"$f":"IFERROR(P89*INDEX('Emissions factors'!$F$5:$CR$10,MATCH('Data Input - Option 3'!$D125,'Emissions factors'!$C$5:$C$10,0),MATCH('Data Input - Option 3'!P$7,'Emissions factors'!$F$4:$CR$4,0))/1000,0)","v":0},{"$f":"IFERROR(Q89*INDEX('Emissions factors'!$F$5:$CR$10,MATCH('Data Input - Option 3'!$D125,'Emissions factors'!$C$5:$C$10,0),MATCH('Data Input - Option 3'!Q$7,'Emissions factors'!$F$4:$CR$4,0))/1000,0)","v":0},{"$f":"IFERROR(R89*INDEX('Emissions factors'!$F$5:$CR$10,MATCH('Data Input - Option 3'!$D125,'Emissions factors'!$C$5:$C$10,0),MATCH('Data Input - Option 3'!R$7,'Emissions factors'!$F$4:$CR$4,0))/1000,0)","v":0},{"$f":"IFERROR(S89*INDEX('Emissions factors'!$F$5:$CR$10,MATCH('Data Input - Option 3'!$D125,'Emissions factors'!$C$5:$C$10,0),MATCH('Data Input - Option 3'!S$7,'Emissions factors'!$F$4:$CR$4,0))/1000,0)","v":0},{"$f":"IFERROR(T89*INDEX('Emissions factors'!$F$5:$CR$10,MATCH('Data Input - Option 3'!$D125,'Emissions factors'!$C$5:$C$10,0),MATCH('Data Input - Option 3'!T$7,'Emissions factors'!$F$4:$CR$4,0))/1000,0)","v":0},{"$f":"IFERROR(U89*INDEX('Emissions factors'!$F$5:$CR$10,MATCH('Data Input - Option 3'!$D125,'Emissions factors'!$C$5:$C$10,0),MATCH('Data Input - Option 3'!U$7,'Emissions factors'!$F$4:$CR$4,0))/1000,0)","v":0},{"$f":"IFERROR(V89*INDEX('Emissions factors'!$F$5:$CR$10,MATCH('Data Input - Option 3'!$D125,'Emissions factors'!$C$5:$C$10,0),MATCH('Data Input - Option 3'!V$7,'Emissions factors'!$F$4:$CR$4,0))/1000,0)","v":0},{"$f":"IFERROR(W89*INDEX('Emissions factors'!$F$5:$CR$10,MATCH('Data Input - Option 3'!$D125,'Emissions factors'!$C$5:$C$10,0),MATCH('Data Input - Option 3'!W$7,'Emissions factors'!$F$4:$CR$4,0))/1000,0)","v":0},{"$f":"IFERROR(X89*INDEX('Emissions factors'!$F$5:$CR$10,MATCH('Data Input - Option 3'!$D125,'Emissions factors'!$C$5:$C$10,0),MATCH('Data Input - Option 3'!X$7,'Emissions factors'!$F$4:$CR$4,0))/1000,0)","v":0},{"$f":"IFERROR(Y89*INDEX('Emissions factors'!$F$5:$CR$10,MATCH('Data Input - Option 3'!$D125,'Emissions factors'!$C$5:$C$10,0),MATCH('Data Input - Option 3'!Y$7,'Emissions factors'!$F$4:$CR$4,0))/1000,0)","v":0},{"$f":"IFERROR(Z89*INDEX('Emissions factors'!$F$5:$CR$10,MATCH('Data Input - Option 3'!$D125,'Emissions factors'!$C$5:$C$10,0),MATCH('Data Input - Option 3'!Z$7,'Emissions factors'!$F$4:$CR$4,0))/1000,0)","v":0},{"$f":"IFERROR(AA89*INDEX('Emissions factors'!$F$5:$CR$10,MATCH('Data Input - Option 3'!$D125,'Emissions factors'!$C$5:$C$10,0),MATCH('Data Input - Option 3'!AA$7,'Emissions factors'!$F$4:$CR$4,0))/1000,0)","v":0},{"$f":"IFERROR(AB89*INDEX('Emissions factors'!$F$5:$CR$10,MATCH('Data Input - Option 3'!$D125,'Emissions factors'!$C$5:$C$10,0),MATCH('Data Input - Option 3'!AB$7,'Emissions factors'!$F$4:$CR$4,0))/1000,0)","v":0},{"$f":"IFERROR(AC89*INDEX('Emissions factors'!$F$5:$CR$10,MATCH('Data Input - Option 3'!$D125,'Emissions factors'!$C$5:$C$10,0),MATCH('Data Input - Option 3'!AC$7,'Emissions factors'!$F$4:$CR$4,0))/1000,0)","v":0},{"$f":"IFERROR(AD89*INDEX('Emissions factors'!$F$5:$CR$10,MATCH('Data Input - Option 3'!$D125,'Emissions factors'!$C$5:$C$10,0),MATCH('Data Input - Option 3'!AD$7,'Emissions factors'!$F$4:$CR$4,0))/1000,0)","v":0},{"$f":"IFERROR(AE89*INDEX('Emissions factors'!$F$5:$CR$10,MATCH('Data Input - Option 3'!$D125,'Emissions factors'!$C$5:$C$10,0),MATCH('Data Input - Option 3'!AE$7,'Emissions factors'!$F$4:$CR$4,0))/1000,0)","v":0},{"$f":"IFERROR(AF89*INDEX('Emissions factors'!$F$5:$CR$10,MATCH('Data Input - Option 3'!$D125,'Emissions factors'!$C$5:$C$10,0),MATCH('Data Input - Option 3'!AF$7,'Emissions factors'!$F$4:$CR$4,0))/1000,0)","v":0},{"$f":"IFERROR(AG89*INDEX('Emissions factors'!$F$5:$CR$10,MATCH('Data Input - Option 3'!$D125,'Emissions factors'!$C$5:$C$10,0),MATCH('Data Input - Option 3'!AG$7,'Emissions factors'!$F$4:$CR$4,0))/1000,0)","v":0},{"$f":"IFERROR(AH89*INDEX('Emissions factors'!$F$5:$CR$10,MATCH('Data Input - Option 3'!$D125,'Emissions factors'!$C$5:$C$10,0),MATCH('Data Input - Option 3'!AH$7,'Emissions factors'!$F$4:$CR$4,0))/1000,0)","v":0},{"$f":"IFERROR(AI89*INDEX('Emissions factors'!$F$5:$CR$10,MATCH('Data Input - Option 3'!$D125,'Emissions factors'!$C$5:$C$10,0),MATCH('Data Input - Option 3'!AI$7,'Emissions factors'!$F$4:$CR$4,0))/1000,0)","v":0},{"$f":"IFERROR(AJ89*INDEX('Emissions factors'!$F$5:$CR$10,MATCH('Data Input - Option 3'!$D125,'Emissions factors'!$C$5:$C$10,0),MATCH('Data Input - Option 3'!AJ$7,'Emissions factors'!$F$4:$CR$4,0))/1000,0)","v":0},{"$f":"IFERROR(AK89*INDEX('Emissions factors'!$F$5:$CR$10,MATCH('Data Input - Option 3'!$D125,'Emissions factors'!$C$5:$C$10,0),MATCH('Data Input - Option 3'!AK$7,'Emissions factors'!$F$4:$CR$4,0))/1000,0)","v":0},{"$f":"IFERROR(AL89*INDEX('Emissions factors'!$F$5:$CR$10,MATCH('Data Input - Option 3'!$D125,'Emissions factors'!$C$5:$C$10,0),MATCH('Data Input - Option 3'!AL$7,'Emissions factors'!$F$4:$CR$4,0))/1000,0)","v":0},{"$f":"IFERROR(AM89*INDEX('Emissions factors'!$F$5:$CR$10,MATCH('Data Input - Option 3'!$D125,'Emissions factors'!$C$5:$C$10,0),MATCH('Data Input - Option 3'!AM$7,'Emissions factors'!$F$4:$CR$4,0))/1000,0)","v":0},{"$f":"IFERROR(AN89*INDEX('Emissions factors'!$F$5:$CR$10,MATCH('Data Input - Option 3'!$D125,'Emissions factors'!$C$5:$C$10,0),MATCH('Data Input - Option 3'!AN$7,'Emissions factors'!$F$4:$CR$4,0))/1000,0)","v":0},{"$f":"IFERROR(AO89*INDEX('Emissions factors'!$F$5:$CR$10,MATCH('Data Input - Option 3'!$D125,'Emissions factors'!$C$5:$C$10,0),MATCH('Data Input - Option 3'!AO$7,'Emissions factors'!$F$4:$CR$4,0))/1000,0)","v":0},{"$f":"IFERROR(AP89*INDEX('Emissions factors'!$F$5:$CR$10,MATCH('Data Input - Option 3'!$D125,'Emissions factors'!$C$5:$C$10,0),MATCH('Data Input - Option 3'!AP$7,'Emissions factors'!$F$4:$CR$4,0))/1000,0)","v":0},{"$f":"IFERROR(AQ89*INDEX('Emissions factors'!$F$5:$CR$10,MATCH('Data Input - Option 3'!$D125,'Emissions factors'!$C$5:$C$10,0),MATCH('Data Input - Option 3'!AQ$7,'Emissions factors'!$F$4:$CR$4,0))/1000,0)","v":0},{"$f":"IFERROR(AR89*INDEX('Emissions factors'!$F$5:$CR$10,MATCH('Data Input - Option 3'!$D125,'Emissions factors'!$C$5:$C$10,0),MATCH('Data Input - Option 3'!AR$7,'Emissions factors'!$F$4:$CR$4,0))/1000,0)","v":0},{"$f":"IFERROR(AS89*INDEX('Emissions factors'!$F$5:$CR$10,MATCH('Data Input - Option 3'!$D125,'Emissions factors'!$C$5:$C$10,0),MATCH('Data Input - Option 3'!AS$7,'Emissions factors'!$F$4:$CR$4,0))/1000,0)","v":0},{"$f":"IFERROR(AT89*INDEX('Emissions factors'!$F$5:$CR$10,MATCH('Data Input - Option 3'!$D125,'Emissions factors'!$C$5:$C$10,0),MATCH('Data Input - Option 3'!AT$7,'Emissions factors'!$F$4:$CR$4,0))/1000,0)","v":0},{"$f":"IFERROR(AU89*INDEX('Emissions factors'!$F$5:$CR$10,MATCH('Data Input - Option 3'!$D125,'Emissions factors'!$C$5:$C$10,0),MATCH('Data Input - Option 3'!AU$7,'Emissions factors'!$F$4:$CR$4,0))/1000,0)","v":0},{"$f":"IFERROR(AV89*INDEX('Emissions factors'!$F$5:$CR$10,MATCH('Data Input - Option 3'!$D125,'Emissions factors'!$C$5:$C$10,0),MATCH('Data Input - Option 3'!AV$7,'Emissions factors'!$F$4:$CR$4,0))/1000,0)","v":0},{"$f":"IFERROR(AW89*INDEX('Emissions factors'!$F$5:$CR$10,MATCH('Data Input - Option 3'!$D125,'Emissions factors'!$C$5:$C$10,0),MATCH('Data Input - Option 3'!AW$7,'Emissions factors'!$F$4:$CR$4,0))/1000,0)","v":0},{"$f":"IFERROR(AX89*INDEX('Emissions factors'!$F$5:$CR$10,MATCH('Data Input - Option 3'!$D125,'Emissions factors'!$C$5:$C$10,0),MATCH('Data Input - Option 3'!AX$7,'Emissions factors'!$F$4:$CR$4,0))/1000,0)","v":0},{"$f":"IFERROR(AY89*INDEX('Emissions factors'!$F$5:$CR$10,MATCH('Data Input - Option 3'!$D125,'Emissions factors'!$C$5:$C$10,0),MATCH('Data Input - Option 3'!AY$7,'Emissions factors'!$F$4:$CR$4,0))/1000,0)","v":0},{"$f":"IFERROR(AZ89*INDEX('Emissions factors'!$F$5:$CR$10,MATCH('Data Input - Option 3'!$D125,'Emissions factors'!$C$5:$C$10,0),MATCH('Data Input - Option 3'!AZ$7,'Emissions factors'!$F$4:$CR$4,0))/1000,0)","v":0},{"$f":"IFERROR(BA89*INDEX('Emissions factors'!$F$5:$CR$10,MATCH('Data Input - Option 3'!$D125,'Emissions factors'!$C$5:$C$10,0),MATCH('Data Input - Option 3'!BA$7,'Emissions factors'!$F$4:$CR$4,0))/1000,0)","v":0},{"$f":"IFERROR(BB89*INDEX('Emissions factors'!$F$5:$CR$10,MATCH('Data Input - Option 3'!$D125,'Emissions factors'!$C$5:$C$10,0),MATCH('Data Input - Option 3'!BB$7,'Emissions factors'!$F$4:$CR$4,0))/1000,0)","v":0},{"$f":"IFERROR(BC89*INDEX('Emissions factors'!$F$5:$CR$10,MATCH('Data Input - Option 3'!$D125,'Emissions factors'!$C$5:$C$10,0),MATCH('Data Input - Option 3'!BC$7,'Emissions factors'!$F$4:$CR$4,0))/1000,0)","v":0},{"$f":"IFERROR(BD89*INDEX('Emissions factors'!$F$5:$CR$10,MATCH('Data Input - Option 3'!$D125,'Emissions factors'!$C$5:$C$10,0),MATCH('Data Input - Option 3'!BD$7,'Emissions factors'!$F$4:$CR$4,0))/1000,0)","v":0},{"$f":"IFERROR(BE89*INDEX('Emissions factors'!$F$5:$CR$10,MATCH('Data Input - Option 3'!$D125,'Emissions factors'!$C$5:$C$10,0),MATCH('Data Input - Option 3'!BE$7,'Emissions factors'!$F$4:$CR$4,0))/1000,0)","v":0},{"$f":"IFERROR(BF89*INDEX('Emissions factors'!$F$5:$CR$10,MATCH('Data Input - Option 3'!$D125,'Emissions factors'!$C$5:$C$10,0),MATCH('Data Input - Option 3'!BF$7,'Emissions factors'!$F$4:$CR$4,0))/1000,0)","v":0},{"$f":"IFERROR(BG89*INDEX('Emissions factors'!$F$5:$CR$10,MATCH('Data Input - Option 3'!$D125,'Emissions factors'!$C$5:$C$10,0),MATCH('Data Input - Option 3'!BG$7,'Emissions factors'!$F$4:$CR$4,0))/1000,0)","v":0},{"$f":"IFERROR(BH89*INDEX('Emissions factors'!$F$5:$CR$10,MATCH('Data Input - Option 3'!$D125,'Emissions factors'!$C$5:$C$10,0),MATCH('Data Input - Option 3'!BH$7,'Emissions factors'!$F$4:$CR$4,0))/1000,0)","v":0},{"$f":"IFERROR(BI89*INDEX('Emissions factors'!$F$5:$CR$10,MATCH('Data Input - Option 3'!$D125,'Emissions factors'!$C$5:$C$10,0),MATCH('Data Input - Option 3'!BI$7,'Emissions factors'!$F$4:$CR$4,0))/1000,0)","v":0},{"$f":"IFERROR(BJ89*INDEX('Emissions factors'!$F$5:$CR$10,MATCH('Data Input - Option 3'!$D125,'Emissions factors'!$C$5:$C$10,0),MATCH('Data Input - Option 3'!BJ$7,'Emissions factors'!$F$4:$CR$4,0))/1000,0)","v":0},{"$f":"IFERROR(BK89*INDEX('Emissions factors'!$F$5:$CR$10,MATCH('Data Input - Option 3'!$D125,'Emissions factors'!$C$5:$C$10,0),MATCH('Data Input - Option 3'!BK$7,'Emissions factors'!$F$4:$CR$4,0))/1000,0)","v":0},{"$f":"IFERROR(BL89*INDEX('Emissions factors'!$F$5:$CR$10,MATCH('Data Input - Option 3'!$D125,'Emissions factors'!$C$5:$C$10,0),MATCH('Data Input - Option 3'!BL$7,'Emissions factors'!$F$4:$CR$4,0))/1000,0)","v":0},{"$f":"IFERROR(BM89*INDEX('Emissions factors'!$F$5:$CR$10,MATCH('Data Input - Option 3'!$D125,'Emissions factors'!$C$5:$C$10,0),MATCH('Data Input - Option 3'!BM$7,'Emissions factors'!$F$4:$CR$4,0))/1000,0)","v":0},{"$f":"IFERROR(BN89*INDEX('Emissions factors'!$F$5:$CR$10,MATCH('Data Input - Option 3'!$D125,'Emissions factors'!$C$5:$C$10,0),MATCH('Data Input - Option 3'!BN$7,'Emissions factors'!$F$4:$CR$4,0))/1000,0)","v":0},{"$f":"IFERROR(BO89*INDEX('Emissions factors'!$F$5:$CR$10,MATCH('Data Input - Option 3'!$D125,'Emissions factors'!$C$5:$C$10,0),MATCH('Data Input - Option 3'!BO$7,'Emissions factors'!$F$4:$CR$4,0))/1000,0)","v":0},{"$f":"IFERROR(BP89*INDEX('Emissions factors'!$F$5:$CR$10,MATCH('Data Input - Option 3'!$D125,'Emissions factors'!$C$5:$C$10,0),MATCH('Data Input - Option 3'!BP$7,'Emissions factors'!$F$4:$CR$4,0))/1000,0)","v":0},{"$f":"IFERROR(BQ89*INDEX('Emissions factors'!$F$5:$CR$10,MATCH('Data Input - Option 3'!$D125,'Emissions factors'!$C$5:$C$10,0),MATCH('Data Input - Option 3'!BQ$7,'Emissions factors'!$F$4:$CR$4,0))/1000,0)","v":0},{"$f":"IFERROR(BR89*INDEX('Emissions factors'!$F$5:$CR$10,MATCH('Data Input - Option 3'!$D125,'Emissions factors'!$C$5:$C$10,0),MATCH('Data Input - Option 3'!BR$7,'Emissions factors'!$F$4:$CR$4,0))/1000,0)","v":0},{"$f":"IFERROR(BS89*INDEX('Emissions factors'!$F$5:$CR$10,MATCH('Data Input - Option 3'!$D125,'Emissions factors'!$C$5:$C$10,0),MATCH('Data Input - Option 3'!BS$7,'Emissions factors'!$F$4:$CR$4,0))/1000,0)","v":0},{"$f":"IFERROR(BT89*INDEX('Emissions factors'!$F$5:$CR$10,MATCH('Data Input - Option 3'!$D125,'Emissions factors'!$C$5:$C$10,0),MATCH('Data Input - Option 3'!BT$7,'Emissions factors'!$F$4:$CR$4,0))/1000,0)","v":0},{"$f":"IFERROR(BU89*INDEX('Emissions factors'!$F$5:$CR$10,MATCH('Data Input - Option 3'!$D125,'Emissions factors'!$C$5:$C$10,0),MATCH('Data Input - Option 3'!BU$7,'Emissions factors'!$F$4:$CR$4,0))/1000,0)","v":0},{"$f":"IFERROR(BV89*INDEX('Emissions factors'!$F$5:$CR$10,MATCH('Data Input - Option 3'!$D125,'Emissions factors'!$C$5:$C$10,0),MATCH('Data Input - Option 3'!BV$7,'Emissions factors'!$F$4:$CR$4,0))/1000,0)","v":0},{"$f":"IFERROR(BW89*INDEX('Emissions factors'!$F$5:$CR$10,MATCH('Data Input - Option 3'!$D125,'Emissions factors'!$C$5:$C$10,0),MATCH('Data Input - Option 3'!BW$7,'Emissions factors'!$F$4:$CR$4,0))/1000,0)","v":0},{"$f":"IFERROR(BX89*INDEX('Emissions factors'!$F$5:$CR$10,MATCH('Data Input - Option 3'!$D125,'Emissions factors'!$C$5:$C$10,0),MATCH('Data Input - Option 3'!BX$7,'Emissions factors'!$F$4:$CR$4,0))/1000,0)","v":0},{"$f":"IFERROR(BY89*INDEX('Emissions factors'!$F$5:$CR$10,MATCH('Data Input - Option 3'!$D125,'Emissions factors'!$C$5:$C$10,0),MATCH('Data Input - Option 3'!BY$7,'Emissions factors'!$F$4:$CR$4,0))/1000,0)","v":0},{"$f":"IFERROR(BZ89*INDEX('Emissions factors'!$F$5:$CR$10,MATCH('Data Input - Option 3'!$D125,'Emissions factors'!$C$5:$C$10,0),MATCH('Data Input - Option 3'!BZ$7,'Emissions factors'!$F$4:$CR$4,0))/1000,0)","v":0},{"$f":"IFERROR(CA89*INDEX('Emissions factors'!$F$5:$CR$10,MATCH('Data Input - Option 3'!$D125,'Emissions factors'!$C$5:$C$10,0),MATCH('Data Input - Option 3'!CA$7,'Emissions factors'!$F$4:$CR$4,0))/1000,0)","v":0},{"$f":"IFERROR(CB89*INDEX('Emissions factors'!$F$5:$CR$10,MATCH('Data Input - Option 3'!$D125,'Emissions factors'!$C$5:$C$10,0),MATCH('Data Input - Option 3'!CB$7,'Emissions factors'!$F$4:$CR$4,0))/1000,0)","v":0},{"$f":"IFERROR(CC89*INDEX('Emissions factors'!$F$5:$CR$10,MATCH('Data Input - Option 3'!$D125,'Emissions factors'!$C$5:$C$10,0),MATCH('Data Input - Option 3'!CC$7,'Emissions factors'!$F$4:$CR$4,0))/1000,0)","v":0},{"$f":"IFERROR(CD89*INDEX('Emissions factors'!$F$5:$CR$10,MATCH('Data Input - Option 3'!$D125,'Emissions factors'!$C$5:$C$10,0),MATCH('Data Input - Option 3'!CD$7,'Emissions factors'!$F$4:$CR$4,0))/1000,0)","v":0},{"$f":"IFERROR(CE89*INDEX('Emissions factors'!$F$5:$CR$10,MATCH('Data Input - Option 3'!$D125,'Emissions factors'!$C$5:$C$10,0),MATCH('Data Input - Option 3'!CE$7,'Emissions factors'!$F$4:$CR$4,0))/1000,0)","v":0},{"$f":"IFERROR(CF89*INDEX('Emissions factors'!$F$5:$CR$10,MATCH('Data Input - Option 3'!$D125,'Emissions factors'!$C$5:$C$10,0),MATCH('Data Input - Option 3'!CF$7,'Emissions factors'!$F$4:$CR$4,0))/1000,0)","v":0},{"$f":"IFERROR(CG89*INDEX('Emissions factors'!$F$5:$CR$10,MATCH('Data Input - Option 3'!$D125,'Emissions factors'!$C$5:$C$10,0),MATCH('Data Input - Option 3'!CG$7,'Emissions factors'!$F$4:$CR$4,0))/1000,0)","v":0},{"$f":"IFERROR(CH89*INDEX('Emissions factors'!$F$5:$CR$10,MATCH('Data Input - Option 3'!$D125,'Emissions factors'!$C$5:$C$10,0),MATCH('Data Input - Option 3'!CH$7,'Emissions factors'!$F$4:$CR$4,0))/1000,0)","v":0},{"$f":"IFERROR(CI89*INDEX('Emissions factors'!$F$5:$CR$10,MATCH('Data Input - Option 3'!$D125,'Emissions factors'!$C$5:$C$10,0),MATCH('Data Input - Option 3'!CI$7,'Emissions factors'!$F$4:$CR$4,0))/1000,0)","v":0},{"$f":"IFERROR(CJ89*INDEX('Emissions factors'!$F$5:$CR$10,MATCH('Data Input - Option 3'!$D125,'Emissions factors'!$C$5:$C$10,0),MATCH('Data Input - Option 3'!CJ$7,'Emissions factors'!$F$4:$CR$4,0))/1000,0)","v":0},{"$f":"IFERROR(CK89*INDEX('Emissions factors'!$F$5:$CR$10,MATCH('Data Input - Option 3'!$D125,'Emissions factors'!$C$5:$C$10,0),MATCH('Data Input - Option 3'!CK$7,'Emissions factors'!$F$4:$CR$4,0))/1000,0)","v":0},{"$f":"IFERROR(CL89*INDEX('Emissions factors'!$F$5:$CR$10,MATCH('Data Input - Option 3'!$D125,'Emissions factors'!$C$5:$C$10,0),MATCH('Data Input - Option 3'!CL$7,'Emissions factors'!$F$4:$CR$4,0))/1000,0)","v":0},{"$f":"IFERROR(CM89*INDEX('Emissions factors'!$F$5:$CR$10,MATCH('Data Input - Option 3'!$D125,'Emissions factors'!$C$5:$C$10,0),MATCH('Data Input - Option 3'!CM$7,'Emissions factors'!$F$4:$CR$4,0))/1000,0)","v":0},{"$f":"IFERROR(CN89*INDEX('Emissions factors'!$F$5:$CR$10,MATCH('Data Input - Option 3'!$D125,'Emissions factors'!$C$5:$C$10,0),MATCH('Data Input - Option 3'!CN$7,'Emissions factors'!$F$4:$CR$4,0))/1000,0)","v":0},{"$f":"IFERROR(CO89*INDEX('Emissions factors'!$F$5:$CR$10,MATCH('Data Input - Option 3'!$D125,'Emissions factors'!$C$5:$C$10,0),MATCH('Data Input - Option 3'!CO$7,'Emissions factors'!$F$4:$CR$4,0))/1000,0)","v":0},{"$f":"IFERROR(CP89*INDEX('Emissions factors'!$F$5:$CR$10,MATCH('Data Input - Option 3'!$D125,'Emissions factors'!$C$5:$C$10,0),MATCH('Data Input - Option 3'!CP$7,'Emissions factors'!$F$4:$CR$4,0))/1000,0)","v":0},{"$f":"IFERROR(CQ89*INDEX('Emissions factors'!$F$5:$CR$10,MATCH('Data Input - Option 3'!$D125,'Emissions factors'!$C$5:$C$10,0),MATCH('Data Input - Option 3'!CQ$7,'Emissions factors'!$F$4:$CR$4,0))/1000,0)","v":0},{"$f":"IFERROR(CR89*INDEX('Emissions factors'!$F$5:$CR$10,MATCH('Data Input - Option 3'!$D125,'Emissions factors'!$C$5:$C$10,0),MATCH('Data Input - Option 3'!CR$7,'Emissions factors'!$F$4:$CR$4,0))/1000,0)","v":0},{"$f":"IFERROR(CS89*INDEX('Emissions factors'!$F$5:$CR$10,MATCH('Data Input - Option 3'!$D125,'Emissions factors'!$C$5:$C$10,0),MATCH('Data Input - Option 3'!CS$7,'Emissions factors'!$F$4:$CR$4,0))/1000,0)","v":0},{"$f":"IFERROR(CT89*INDEX('Emissions factors'!$F$5:$CR$10,MATCH('Data Input - Option 3'!$D125,'Emissions factors'!$C$5:$C$10,0),MATCH('Data Input - Option 3'!CT$7,'Emissions factors'!$F$4:$CR$4,0))/1000,0)","v":0},{"$f":"IFERROR(CU89*INDEX('Emissions factors'!$F$5:$CR$10,MATCH('Data Input - Option 3'!$D125,'Emissions factors'!$C$5:$C$10,0),MATCH('Data Input - Option 3'!CU$7,'Emissions factors'!$F$4:$CR$4,0))/1000,0)","v":0},{"$f":"IFERROR(CV89*INDEX('Emissions factors'!$F$5:$CR$10,MATCH('Data Input - Option 3'!$D125,'Emissions factors'!$C$5:$C$10,0),MATCH('Data Input - Option 3'!CV$7,'Emissions factors'!$F$4:$CR$4,0))/1000,0)","v":0},{"$f":"IFERROR(CW89*INDEX('Emissions factors'!$F$5:$CR$10,MATCH('Data Input - Option 3'!$D125,'Emissions factors'!$C$5:$C$10,0),MATCH('Data Input - Option 3'!CW$7,'Emissions factors'!$F$4:$CR$4,0))/1000,0)","v":0},{"$f":"IFERROR(CX89*INDEX('Emissions factors'!$F$5:$CR$10,MATCH('Data Input - Option 3'!$D125,'Emissions factors'!$C$5:$C$10,0),MATCH('Data Input - Option 3'!CX$7,'Emissions factors'!$F$4:$CR$4,0))/1000,0)","v":0},{"$f":"IFERROR(CY89*INDEX('Emissions factors'!$F$5:$CR$10,MATCH('Data Input - Option 3'!$D125,'Emissions factors'!$C$5:$C$10,0),MATCH('Data Input - Option 3'!CY$7,'Emissions factors'!$F$4:$CR$4,0))/1000,0)","v":0},{"$f":"IFERROR(CZ89*INDEX('Emissions factors'!$F$5:$CR$10,MATCH('Data Input - Option 3'!$D125,'Emissions factors'!$C$5:$C$10,0),MATCH('Data Input - Option 3'!CZ$7,'Emissions factors'!$F$4:$CR$4,0))/1000,0)","v":0},{"$f":"IFERROR(DA89*INDEX('Emissions factors'!$F$5:$CR$10,MATCH('Data Input - Option 3'!$D125,'Emissions factors'!$C$5:$C$10,0),MATCH('Data Input - Option 3'!DA$7,'Emissions factors'!$F$4:$CR$4,0))/1000,0)","v":0},{"$f":"IFERROR(DB89*INDEX('Emissions factors'!$F$5:$CR$10,MATCH('Data Input - Option 3'!$D125,'Emissions factors'!$C$5:$C$10,0),MATCH('Data Input - Option 3'!DB$7,'Emissions factors'!$F$4:$CR$4,0))/1000,0)","v":0},{"$f":"IFERROR(DC89*INDEX('Emissions factors'!$F$5:$CR$10,MATCH('Data Input - Option 3'!$D125,'Emissions factors'!$C$5:$C$10,0),MATCH('Data Input - Option 3'!DC$7,'Emissions factors'!$F$4:$CR$4,0))/1000,0)","v":0}]
[null,null,"7.52",0,"tCO2e"]
[]
[null,null,null,"Total fuel-related GHG Emissions","tCO2e","(Auto calculated value)",null,{"$f":"SUM(H$120:H$127)","v":51633.146796375047},{"$f":"SUM(I$120:I$127)","v":51498.642363144347},{"$f":"SUM(J$120:J$127)","v":51376.596689503604},51305.403172857528,51182.183852599657,51217.574047116417,51170.995027944962,51093.797073173548,0,0,0,0,0,0,0,0,0,0,0,0,0,0,0,0,0,0,0,0,0,0,0,0,0,0,0,0,0,0,0,0,0,0,0,0,0,0,0,0,0,0,0,0,0,0,0,0,0,0,0,0,0,0,0,0,0,0,{"$f":"SUM(BV$120:BV$127)","v":0},0,0,0,0,0,0,0,0,0,0,0,0,0,0,0,0,0,0,0,0,0,0,0,0,0,0,0,0,0,0,0,0,0]

{"sheet":"Data Input - Option 4","index":17,"n_rows":128,"n_cols":108,"rows_kept":128,"cut":false,"hidden":false,"merged":[[3,3,6,3],[31,7,31,9],[51,7,51,9]]}
[null,{"$f":"\"---- \" & IF($C$9<>\"Nothing Selected - Do not Complete this Section\",\"Step 8 - Data Input - \" & C9, \"Step 8 - Data Input - Option 4\") & \" ----\"","v":"---- Step 8 - Data Input - Option 4 ----"}]
[]
[]
[]
[null,null,null,null,null,null,null,{"$f":"IF(AND(SUM(H30,H50,H79,H100,H117,H128,#REF!)<>0,H7=0),1,0)","v":{"$error":"#REF!"}},{"$f":"IF(AND(SUM(I30,I50,I79,I100,I117,I128,#REF!)<>0,I7=0),1,0)","v":{"$error":"#REF!"}},{"$f":"IF(AND(SUM(J30,J50,J79,J100,J117,J128,#REF!)<>0,J7=0),1,0)","v":{"$error":"#REF!"}},{"$f":"IF(AND(SUM(K30,K50,K79,K100,K117,K128,#REF!)<>0,K7=0),1,0)","v":{"$error":"#REF!"}},{"$f":"IF(AND(SUM(L30,L50,L79,L100,L117,L128,#REF!)<>0,L7=0),1,0)","v":{"$error":"#REF!"}},{"$f":"IF(AND(SUM(M30,M50,M79,M100,M117,M128,#REF!)<>0,M7=0),1,0)","v":{"$error":"#REF!"}},{"$f":"IF(AND(SUM(N30,N50,N79,N100,N117,N128,#REF!)<>0,N7=0),1,0)","v":{"$error":"#REF!"}},{"$f":"IF(AND(SUM(O30,O50,O79,O100,O117,O128,#REF!)<>0,O7=0),1,0)","v":{"$error":"#REF!"}},{"$f":"IF(AND(SUM(P30,P50,P79,P100,P117,P128,#REF!)<>0,P7=0),1,0)","v":{"$error":"#REF!"}},{"$f":"IF(AND(SUM(Q30,Q50,Q79,Q100,Q117,Q128,#REF!)<>0,Q7=0),1,0)","v":{"$error":"#REF!"}},{"$f":"IF(AND(SUM(R30,R50,R79,R100,R117,R128,#REF!)<>0,R7=0),1,0)","v":{"$error":"#REF!"}},{"$f":"IF(AND(SUM(S30,S50,S79,S100,S117,S128,#REF!)<>0,S7=0),1,0)","v":{"$error":"#REF!"}},{"$f":"IF(AND(SUM(T30,T50,T79,T100,T117,T128,#REF!)<>0,T7=0),1,0)","v":{"$error":"#REF!"}},{"$f":"IF(AND(SUM(U30,U50,U79,U100,U117,U128,#REF!)<>0,U7=0),1,0)","v":{"$error":"#REF!"}},{"$f":"IF(AND(SUM(V30,V50,V79,V100,V117,V128,#REF!)<>0,V7=0),1,0)","v":{"$error":"#REF!"}},{"$f":"IF(AND(SUM(W30,W50,W79,W100,W117,W128,#REF!)<>0,W7=0),1,0)","v":{"$error":"#REF!"}},{"$f":"IF(AND(SUM(X30,X50,X79,X100,X117,X128,#REF!)<>0,X7=0),1,0)","v":{"$error":"#REF!"}},{"$f":"IF(AND(SUM(Y30,Y50,Y79,Y100,Y117,Y128,#REF!)<>0,Y7=0),1,0)","v":{"$error":"#REF!"}},{"$f":"IF(AND(SUM(Z30,Z50,Z79,Z100,Z117,Z128,#REF!)<>0,Z7=0),1,0)","v":{"$error":"#REF!"}},{"$f":"IF(AND(SUM(AA30,AA50,AA79,AA100,AA117,AA128,#REF!)<>0,AA7=0),1,0)","v":{"$error":"#REF!"}},{"$f":"IF(AND(SUM(AB30,AB50,AB79,AB100,AB117,AB128,#REF!)<>0,AB7=0),1,0)","v":{"$error":"#REF!"}},{"$f":"IF(AND(SUM(AC30,AC50,AC79,AC100,AC117,AC128,#REF!)<>0,AC7=0),1,0)","v":{"$error":"#REF!"}},{"$f":"IF(AND(SUM(AD30,AD50,AD79,AD100,AD117,AD128,#REF!)<>0,AD7=0),1,0)","v":{"$error":"#REF!"}},{"$f":"IF(AND(SUM(AE30,AE50,AE79,AE100,AE117,AE128,#REF!)<>0,AE7=0),1,0)","v":{"$error":"#REF!"}},{"$f":"IF(AND(SUM(AF30,AF50,AF79,AF100,AF117,AF128,#REF!)<>0,AF7=0),1,0)","v":{"$error":"#REF!"}},{"$f":"IF(AND(SUM(AG30,AG50,AG79,AG100,AG117,AG128,#REF!)<>0,AG7=0),1,0)","v":{"$error":"#REF!"}},{"$f":"IF(AND(SUM(AH30,AH50,AH79,AH100,AH117,AH128,#REF!)<>0,AH7=0),1,0)","v":{"$error":"#REF!"}},{"$f":"IF(AND(SUM(AI30,AI50,AI79,AI100,AI117,AI128,#REF!)<>0,AI7=0),1,0)","v":{"$error":"#REF!"}},{"$f":"IF(AND(SUM(AJ30,AJ50,AJ79,AJ100,AJ117,AJ128,#REF!)<>0,AJ7=0),1,0)","v":{"$error":"#REF!"}},{"$f":"IF(AND(SUM(AK30,AK50,AK79,AK100,AK117,AK128,#REF!)<>0,AK7=0),1,0)","v":{"$error":"#REF!"}},{"$f":"IF(AND(SUM(AL30,AL50,AL79,AL100,AL117,AL128,#REF!)<>0,AL7=0),1,0)","v":{"$error":"#REF!"}},{"$f":"IF(AND(SUM(AM30,AM50,AM79,AM100,AM117,AM128,#REF!)<>0,AM7=0),1,0)","v":{"$error":"#REF!"}},{"$f":"IF(AND(SUM(AN30,AN50,AN79,AN100,AN117,AN128,#REF!)<>0,AN7=0),1,0)","v":{"$error":"#REF!"}},{"$f":"IF(AND(SUM(AO30,AO50,AO79,AO100,AO117,AO128,#REF!)<>0,AO7=0),1,0)","v":{"$error":"#REF!"}},{"$f":"IF(AND(SUM(AP30,AP50,AP79,AP100,AP117,AP128,#REF!)<>0,AP7=0),1,0)","v":{"$error":"#REF!"}},{"$f":"IF(AND(SUM(AQ30,AQ50,AQ79,AQ100,AQ117,AQ128,#REF!)<>0,AQ7=0),1,0)","v":{"$error":"#REF!"}},{"$f":"IF(AND(SUM(AR30,AR50,AR79,AR100,AR117,AR128,#REF!)<>0,AR7=0),1,0)","v":{"$error":"#REF!"}},{"$f":"IF(AND(SUM(AS30,AS50,AS79,AS100,AS117,AS128,#REF!)<>0,AS7=0),1,0)","v":{"$error":"#REF!"}},{"$f":"IF(AND(SUM(AT30,AT50,AT79,AT100,AT117,AT128,#REF!)<>0,AT7=0),1,0)","v":{"$error":"#REF!"}},{"$f":"IF(AND(SUM(AU30,AU50,AU79,AU100,AU117,AU128,#REF!)<>0,AU7=0),1,0)","v":{"$error":"#REF!"}},{"$f":"IF(AND(SUM(AV30,AV50,AV79,AV100,AV117,AV128,#REF!)<>0,AV7=0),1,0)","v":{"$error":"#REF!"}},{"$f":"IF(AND(SUM(AW30,AW50,AW79,AW100,AW117,AW128,#REF!)<>0,AW7=0),1,0)","v":{"$error":"#REF!"}},{"$f":"IF(AND(SUM(AX30,AX50,AX79,AX100,AX117,AX128,#REF!)<>0,AX7=0),1,0)","v":{"$error":"#REF!"}},{"$f":"IF(AND(SUM(AY30,AY50,AY79,AY100,AY117,AY128,#REF!)<>0,AY7=0),1,0)","v":{"$error":"#REF!"}},{"$f":"IF(AND(SUM(AZ30,AZ50,AZ79,AZ100,AZ117,AZ128,#REF!)<>0,AZ7=0),1,0)","v":{"$error":"#REF!"}},{"$f":"IF(AND(SUM(BA30,BA50,BA79,BA100,BA117,BA128,#REF!)<>0,BA7=0),1,0)","v":{"$error":"#REF!"}},{"$f":"IF(AND(SUM(BB30,BB50,BB79,BB100,BB117,BB128,#REF!)<>0,BB7=0),1,0)","v":{"$error":"#REF!"}},{"$f":"IF(AND(SUM(BC30,BC50,BC79,BC100,BC117,BC128,#REF!)<>0,BC7=0),1,0)","v":{"$error":"#REF!"}},{"$f":"IF(AND(SUM(BD30,BD50,BD79,BD100,BD117,BD128,#REF!)<>0,BD7=0),1,0)","v":{"$error":"#REF!"}},{"$f":"IF(AND(SUM(BE30,BE50,BE79,BE100,BE117,BE128,#REF!)<>0,BE7=0),1,0)","v":{"$error":"#REF!"}},{"$f":"IF(AND(SUM(BF30,BF50,BF79,BF100,BF117,BF128,#REF!)<>0,BF7=0),1,0)","v":{"$error":"#REF!"}},{"$f":"IF(AND(SUM(BG30,BG50,BG79,BG100,BG117,BG128,#REF!)<>0,BG7=0),1,0)","v":{"$error":"#REF!"}},{"$f":"IF(AND(SUM(BH30,BH50,BH79,BH100,BH117,BH128,#REF!)<>0,BH7=0),1,0)","v":{"$error":"#REF!"}},{"$f":"IF(AND(SUM(BI30,BI50,BI79,BI100,BI117,BI128,#REF!)<>0,BI7=0),1,0)","v":{"$error":"#REF!"}},{"$f":"IF(AND(SUM(BJ30,BJ50,BJ79,BJ100,BJ117,BJ128,#REF!)<>0,BJ7=0),1,0)","v":{"$error":"#REF!"}},{"$f":"IF(AND(SUM(BK30,BK50,BK79,BK100,BK117,BK128,#REF!)<>0,BK7=0),1,0)","v":{"$error":"#REF!"}},{"$f":"IF(AND(SUM(BL30,BL50,BL79,BL100,BL117,BL128,#REF!)<>0,BL7=0),1,0)","v":{"$error":"#REF!"}},{"$f":"IF(AND(SUM(BM30,BM50,BM79,BM100,BM117,BM128,#REF!)<>0,BM7=0),1,0)","v":{"$error":"#REF!"}},{"$f":"IF(AND(SUM(BN30,BN50,BN79,BN100,BN117,BN128,#REF!)<>0,BN7=0),1,0)","v":{"$error":"#REF!"}},{"$f":"IF(AND(SUM(BO30,BO50,BO79,BO100,BO117,BO128,#REF!)<>0,BO7=0),1,0)","v":{"$error":"#REF!"}},{"$f":"IF(AND(SUM(BP30,BP50,BP79,BP100,BP117,BP128,#REF!)<>0,BP7=0),1,0)","v":{"$error":"#REF!"}},{"$f":"IF(AND(SUM(BQ30,BQ50,BQ79,BQ100,BQ117,BQ128,#REF!)<>0,BQ7=0),1,0)","v":{"$error":"#REF!"}},{"$f":"IF(AND(SUM(BR30,BR50,BR79,BR100,BR117,BR128,#REF!)<>0,BR7=0),1,0)","v":{"$error":"#REF!"}},{"$f":"IF(AND(SUM(BS30,BS50,BS79,BS100,BS117,BS128,#REF!)<>0,BS7=0),1,0)","v":{"$error":"#REF!"}},{"$f":"IF(AND(SUM(BT30,BT50,BT79,BT100,BT117,BT128,#REF!)<>0,BT7=0),1,0)","v":{"$error":"#REF!"}},{"$f":"IF(AND(SUM(BU30,BU50,BU79,BU100,BU117,BU128,#REF!)<>0,BU7=0),1,0)","v":{"$error":"#REF!"}},{"$f":"IF(AND(SUM(BV30,BV50,BV79,BV100,BV117,BV128,#REF!)<>0,BV7=0),1,0)","v":{"$error":"#REF!"}},{"$f":"IF(AND(SUM(BW30,BW50,BW79,BW100,BW117,BW128,#REF!)<>0,BW7=0),1,0)","v":{"$error":"#REF!"}},{"$f":"IF(AND(SUM(BX30,BX50,BX79,BX100,BX117,BX128,#REF!)<>0,BX7=0),1,0)","v":{"$error":"#REF!"}},{"$f":"IF(AND(SUM(BY30,BY50,BY79,BY100,BY117,BY128,#REF!)<>0,BY7=0),1,0)","v":{"$error":"#REF!"}},{"$f":"IF(AND(SUM(BZ30,BZ50,BZ79,BZ100,BZ117,BZ128,#REF!)<>0,BZ7=0),1,0)","v":{"$error":"#REF!"}},{"$f":"IF(AND(SUM(CA30,CA50,CA79,CA100,CA117,CA128,#REF!)<>0,CA7=0),1,0)","v":{"$error":"#REF!"}},{"$f":"IF(AND(SUM(CB30,CB50,CB79,CB100,CB117,CB128,#REF!)<>0,CB7=0),1,0)","v":{"$error":"#REF!"}},{"$f":"IF(AND(SUM(CC30,CC50,CC79,CC100,CC117,CC128,#REF!)<>0,CC7=0),1,0)","v":{"$error":"#REF!"}},{"$f":"IF(AND(SUM(CD30,CD50,CD79,CD100,CD117,CD128,#REF!)<>0,CD7=0),1,0)","v":{"$error":"#REF!"}},{"$f":"IF(AND(SUM(CE30,CE50,CE79,CE100,CE117,CE128,#REF!)<>0,CE7=0),1,0)","v":{"$error":"#REF!"}},{"$f":"IF(AND(SUM(CF30,CF50,CF79,CF100,CF117,CF128,#REF!)<>0,CF7=0),1,0)","v":{"$error":"#REF!"}},{"$f":"IF(AND(SUM(CG30,CG50,CG79,CG100,CG117,CG128,#REF!)<>0,CG7=0),1,0)","v":{"$error":"#REF!"}},{"$f":"IF(AND(SUM(CH30,CH50,CH79,CH100,CH117,CH128,#REF!)<>0,CH7=0),1,0)","v":{"$error":"#REF!"}},{"$f":"IF(AND(SUM(CI30,CI50,CI79,CI100,CI117,CI128,#REF!)<>0,CI7=0),1,0)","v":{"$error":"#REF!"}},{"$f":"IF(AND(SUM(CJ30,CJ50,CJ79,CJ100,CJ117,CJ128,#REF!)<>0,CJ7=0),1,0)","v":{"$error":"#REF!"}},{"$f":"IF(AND(SUM(CK30,CK50,CK79,CK100,CK117,CK128,#REF!)<>0,CK7=0),1,0)","v":{"$error":"#REF!"}},{"$f":"IF(AND(SUM(CL30,CL50,CL79,CL100,CL117,CL128,#REF!)<>0,CL7=0),1,0)","v":{"$error":"#REF!"}},{"$f":"IF(AND(SUM(CM30,CM50,CM79,CM100,CM117,CM128,#REF!)<>0,CM7=0),1,0)","v":{"$error":"#REF!"}},{"$f":"IF(AND(SUM(CN30,CN50,CN79,CN100,CN117,CN128,#REF!)<>0,CN7=0),1,0)","v":{"$error":"#REF!"}},{"$f":"IF(AND(SUM(CO30,CO50,CO79,CO100,CO117,CO128,#REF!)<>0,CO7=0),1,0)","v":{"$error":"#REF!"}},{"$f":"IF(AND(SUM(CP30,CP50,CP79,CP100,CP117,CP128,#REF!)<>0,CP7=0),1,0)","v":{"$error":"#REF!"}},{"$f":"IF(AND(SUM(CQ30,CQ50,CQ79,CQ100,CQ117,CQ128,#REF!)<>0,CQ7=0),1,0)","v":{"$error":"#REF!"}},{"$f":"IF(AND(SUM(CR30,CR50,CR79,CR100,CR117,CR128,#REF!)<>0,CR7=0),1,0)","v":{"$error":"#REF!"}},{"$f":"IF(AND(SUM(CS30,CS50,CS79,CS100,CS117,CS128,#REF!)<>0,CS7=0),1,0)","v":{"$error":"#REF!"}},{"$f":"IF(AND(SUM(CT30,CT50,CT79,CT100,CT117,CT128,#REF!)<>0,CT7=0),1,0)","v":{"$error":"#REF!"}},{"$f":"IF(AND(SUM(CU30,CU50,CU79,CU100,CU117,CU128,#REF!)<>0,CU7=0),1,0)","v":{"$error":"#REF!"}},{"$f":"IF(AND(SUM(CV30,CV50,CV79,CV100,CV117,CV128,#REF!)<>0,CV7=0),1,0)","v":{"$error":"#REF!"}},{"$f":"IF(AND(SUM(CW30,CW50,CW79,CW100,CW117,CW128,#REF!)<>0,CW7=0),1,0)","v":{"$error":"#REF!"}},{"$f":"IF(AND(SUM(CX30,CX50,CX79,CX100,CX117,CX128,#REF!)<>0,CX7=0),1,0)","v":{"$error":"#REF!"}},{"$f":"IF(AND(SUM(CY30,CY50,CY79,CY100,CY117,CY128,#REF!)<>0,CY7=0),1,0)","v":{"$error":"#REF!"}},{"$f":"IF(AND(SUM(CZ30,CZ50,CZ79,CZ100,CZ117,CZ128,#REF!)<>0,CZ7=0),1,0)","v":{"$error":"#REF!"}},{"$f":"IF(AND(SUM(DA30,DA50,DA79,DA100,DA117,DA128,#REF!)<>0,DA7=0),1,0)","v":{"$error":"#REF!"}},{"$f":"IF(AND(SUM(DB30,DB50,DB79,DB100,DB117,DB128,#REF!)<>0,DB7=0),1,0)","v":{"$error":"#REF!"}},{"$f":"IF(AND(SUM(DC30,DC50,DC79,DC100,DC117,DC128,#REF!)<>0,DC7=0),1,0)","v":{"$error":"#REF!"}}]
[null,null,null,null,null,"Year number",null,0,1,2,3,4,5,6,7,8,9,10,11,12,13,14,15,16,17,18,19,20,21,22,23,24,25,26,27,28,29,30,31,32,33,34,35,36,37,38,39,40,41,42,43,44,45,46,47,48,49,50,51,52,53,54,55,56,57,58,59,60,61,62,63,64,65,66,67,68,69,70,71,72,73,74,75,76,77,78,79,80,81,82,83,84,85,86,87,88,89,90,91,92,93,94,95,96,97,98,99]
[null,null,null,null,null,"Year",null,{"$f":"IF($C$9=0,\"\",IF(H$6+'Data Input - General'!$F$22>'Data Input - General'!$F$34,0,'Data Input - Option 4'!H$6+'Data Input - General'!$F$22))","v":2019},{"$f":"IF($C$9=0,\"\",IF(I$6+'Data Input - General'!$F$22>'Data Input - General'!$F$34,0,'Data Input - Option 4'!I$6+'Data Input - General'!$F$22))","v":2020},{"$f":"IF($C$9=0,\"\",IF(J$6+'Data Input - General'!$F$22>'Data Input - General'!$F$34,0,'Data Input - Option 4'!J$6+'Data Input - General'!$F$22))","v":2021},{"$f":"IF($C$9=0,\"\",IF(K$6+'Data Input - General'!$F$22>'Data Input - General'!$F$34,0,'Data Input - Option 4'!K$6+'Data Input - General'!$F$22))","v":2022},{"$f":"IF($C$9=0,\"\",IF(L$6+'Data Input - General'!$F$22>'Data Input - General'!$F$34,0,'Data Input - Option 4'!L$6+'Data Input - General'!$F$22))","v":2023},{"$f":"IF($C$9=0,\"\",IF(M$6+'Data Input - General'!$F$22>'Data Input - General'!$F$34,0,'Data Input - Option 4'!M$6+'Data Input - General'!$F$22))","v":2024},{"$f":"IF($C$9=0,\"\",IF(N$6+'Data Input - General'!$F$22>'Data Input - General'!$F$34,0,'Data Input - Option 4'!N$6+'Data Input - General'!$F$22))","v":2025},{"$f":"IF($C$9=0,\"\",IF(O$6+'Data Input - General'!$F$22>'Data Input - General'!$F$34,0,'Data Input - Option 4'!O$6+'Data Input - General'!$F$22))","v":2026},{"$f":"IF($C$9=0,\"\",IF(P$6+'Data Input - General'!$F$22>'Data Input - General'!$F$34,0,'Data Input - Option 4'!P$6+'Data Input - General'!$F$22))","v":2027},{"$f":"IF($C$9=0,\"\",IF(Q$6+'Data Input - General'!$F$22>'Data Input - General'!$F$34,0,'Data Input - Option 4'!Q$6+'Data Input - General'!$F$22))","v":2028},{"$f":"IF($C$9=0,\"\",IF(R$6+'Data Input - General'!$F$22>'Data Input - General'!$F$34,0,'Data Input - Option 4'!R$6+'Data Input - General'!$F$22))","v":2029},{"$f":"IF($C$9=0,\"\",IF(S$6+'Data Input - General'!$F$22>'Data Input - General'!$F$34,0,'Data Input - Option 4'!S$6+'Data Input - General'!$F$22))","v":2030},{"$f":"IF($C$9=0,\"\",IF(T$6+'Data Input - General'!$F$22>'Data Input - General'!$F$34,0,'Data Input - Option 4'!T$6+'Data Input - General'!$F$22))","v":2031},{"$f":"IF($C$9=0,\"\",IF(U$6+'Data Input - General'!$F$22>'Data Input - General'!$F$34,0,'Data Input - Option 4'!U$6+'Data Input - General'!$F$22))","v":2032},{"$f":"IF($C$9=0,\"\",IF(V$6+'Data Input - General'!$F$22>'Data Input - General'!$F$34,0,'Data Input - Option 4'!V$6+'Data Input - General'!$F$22))","v":2033},{"$f":"IF($C$9=0,\"\",IF(W$6+'Data Input - General'!$F$22>'Data Input - General'!$F$34,0,'Data Input - Option 4'!W$6+'Data Input - General'!$F$22))","v":2034},{"$f":"IF($C$9=0,\"\",IF(X$6+'Data Input - General'!$F$22>'Data Input - General'!$F$34,0,'Data Input - Option 4'!X$6+'Data Input - General'!$F$22))","v":2035},{"$f":"IF($C$9=0,\"\",IF(Y$6+'Data Input - General'!$F$22>'Data Input - General'!$F$34,0,'Data Input - Option 4'!Y$6+'Data Input - General'!$F$22))","v":2036},{"$f":"IF($C$9=0,\"\",IF(Z$6+'Data Input - General'!$F$22>'Data Input - General'!$F$34,0,'Data Input - Option 4'!Z$6+'Data Input - General'!$F$22))","v":2037},{"$f":"IF($C$9=0,\"\",IF(AA$6+'Data Input - General'!$F$22>'Data Input - General'!$F$34,0,'Data Input - Option 4'!AA$6+'Data Input - General'!$F$22))","v":2038},{"$f":"IF($C$9=0,\"\",IF(AB$6+'Data Input - General'!$F$22>'Data Input - General'!$F$34,0,'Data Input - Option 4'!AB$6+'Data Input - General'!$F$22))","v":2039},{"$f":"IF($C$9=0,\"\",IF(AC$6+'Data Input - General'!$F$22>'Data Input - General'!$F$34,0,'Data Input - Option 4'!AC$6+'Data Input - General'!$F$22))","v":2040},{"$f":"IF($C$9=0,\"\",IF(AD$6+'Data Input - General'!$F$22>'Data Input - General'!$F$34,0,'Data Input - Option 4'!AD$6+'Data Input - General'!$F$22))","v":2041},{"$f":"IF($C$9=0,\"\",IF(AE$6+'Data Input - General'!$F$22>'Data Input - General'!$F$34,0,'Data Input - Option 4'!AE$6+'Data Input - General'!$F$22))","v":2042},{"$f":"IF($C$9=0,\"\",IF(AF$6+'Data Input - General'!$F$22>'Data Input - General'!$F$34,0,'Data Input - Option 4'!AF$6+'Data Input - General'!$F$22))","v":2043},{"$f":"IF($C$9=0,\"\",IF(AG$6+'Data Input - General'!$F$22>'Data Input - General'!$F$34,0,'Data Input - Option 4'!AG$6+'Data Input - General'!$F$22))","v":2044},{"$f":"IF($C$9=0,\"\",IF(AH$6+'Data Input - General'!$F$22>'Data Input - General'!$F$34,0,'Data Input - Option 4'!AH$6+'Data Input - General'!$F$22))","v":2045},{"$f":"IF($C$9=0,\"\",IF(AI$6+'Data Input - General'!$F$22>'Data Input - General'!$F$34,0,'Data Input - Option 4'!AI$6+'Data Input - General'!$F$22))","v":2046},{"$f":"IF($C$9=0,\"\",IF(AJ$6+'Data Input - General'!$F$22>'Data Input - General'!$F$34,0,'Data Input - Option 4'!AJ$6+'Data Input - General'!$F$22))","v":2047},{"$f":"IF($C$9=0,\"\",IF(AK$6+'Data Input - General'!$F$22>'Data Input - General'!$F$34,0,'Data Input - Option 4'!AK$6+'Data Input - General'!$F$22))","v":2048},{"$f":"IF($C$9=0,\"\",IF(AL$6+'Data Input - General'!$F$22>'Data Input - General'!$F$34,0,'Data Input - Option 4'!AL$6+'Data Input - General'!$F$22))","v":2049},{"$f":"IF($C$9=0,\"\",IF(AM$6+'Data Input - General'!$F$22>'Data Input - General'!$F$34,0,'Data Input - Option 4'!AM$6+'Data Input - General'!$F$22))","v":0},{"$f":"IF($C$9=0,\"\",IF(AN$6+'Data Input - General'!$F$22>'Data Input - General'!$F$34,0,'Data Input - Option 4'!AN$6+'Data Input - General'!$F$22))","v":0},{"$f":"IF($C$9=0,\"\",IF(AO$6+'Data Input - General'!$F$22>'Data Input - General'!$F$34,0,'Data Input - Option 4'!AO$6+'Data Input - General'!$F$22))","v":0},{"$f":"IF($C$9=0,\"\",IF(AP$6+'Data Input - General'!$F$22>'Data Input - General'!$F$34,0,'Data Input - Option 4'!AP$6+'Data Input - General'!$F$22))","v":0},{"$f":"IF($C$9=0,\"\",IF(AQ$6+'Data Input - General'!$F$22>'Data Input - General'!$F$34,0,'Data Input - Option 4'!AQ$6+'Data Input - General'!$F$22))","v":0},{"$f":"IF($C$9=0,\"\",IF(AR$6+'Data Input - General'!$F$22>'Data Input - General'!$F$34,0,'Data Input - Option 4'!AR$6+'Data Input - General'!$F$22))","v":0},{"$f":"IF($C$9=0,\"\",IF(AS$6+'Data Input - General'!$F$22>'Data Input - General'!$F$34,0,'Data Input - Option 4'!AS$6+'Data Input - General'!$F$22))","v":0},{"$f":"IF($C$9=0,\"\",IF(AT$6+'Data Input - General'!$F$22>'Data Input - General'!$F$34,0,'Data Input - Option 4'!AT$6+'Data Input - General'!$F$22))","v":0},{"$f":"IF($C$9=0,\"\",IF(AU$6+'Data Input - General'!$F$22>'Data Input - General'!$F$34,0,'Data Input - Option 4'!AU$6+'Data Input - General'!$F$22))","v":0},{"$f":"IF($C$9=0,\"\",IF(AV$6+'Data Input - General'!$F$22>'Data Input - General'!$F$34,0,'Data Input - Option 4'!AV$6+'Data Input - General'!$F$22))","v":0},{"$f":"IF($C$9=0,\"\",IF(AW$6+'Data Input - General'!$F$22>'Data Input - General'!$F$34,0,'Data Input - Option 4'!AW$6+'Data Input - General'!$F$22))","v":0},{"$f":"IF($C$9=0,\"\",IF(AX$6+'Data Input - General'!$F$22>'Data Input - General'!$F$34,0,'Data Input - Option 4'!AX$6+'Data Input - General'!$F$22))","v":0},{"$f":"IF($C$9=0,\"\",IF(AY$6+'Data Input - General'!$F$22>'Data Input - General'!$F$34,0,'Data Input - Option 4'!AY$6+'Data Input - General'!$F$22))","v":0},{"$f":"IF($C$9=0,\"\",IF(AZ$6+'Data Input - General'!$F$22>'Data Input - General'!$F$34,0,'Data Input - Option 4'!AZ$6+'Data Input - General'!$F$22))","v":0},{"$f":"IF($C$9=0,\"\",IF(BA$6+'Data Input - General'!$F$22>'Data Input - General'!$F$34,0,'Data Input - Option 4'!BA$6+'Data Input - General'!$F$22))","v":0},{"$f":"IF($C$9=0,\"\",IF(BB$6+'Data Input - General'!$F$22>'Data Input - General'!$F$34,0,'Data Input - Option 4'!BB$6+'Data Input - General'!$F$22))","v":0},{"$f":"IF($C$9=0,\"\",IF(BC$6+'Data Input - General'!$F$22>'Data Input - General'!$F$34,0,'Data Input - Option 4'!BC$6+'Data Input - General'!$F$22))","v":0},{"$f":"IF($C$9=0,\"\",IF(BD$6+'Data Input - General'!$F$22>'Data Input - General'!$F$34,0,'Data Input - Option 4'!BD$6+'Data Input - General'!$F$22))","v":0},{"$f":"IF($C$9=0,\"\",IF(BE$6+'Data Input - General'!$F$22>'Data Input - General'!$F$34,0,'Data Input - Option 4'!BE$6+'Data Input - General'!$F$22))","v":0},{"$f":"IF($C$9=0,\"\",IF(BF$6+'Data Input - General'!$F$22>'Data Input - General'!$F$34,0,'Data Input - Option 4'!BF$6+'Data Input - General'!$F$22))","v":0},{"$f":"IF($C$9=0,\"\",IF(BG$6+'Data Input - General'!$F$22>'Data Input - General'!$F$34,0,'Data Input - Option 4'!BG$6+'Data Input - General'!$F$22))","v":0},{"$f":"IF($C$9=0,\"\",IF(BH$6+'Data Input - General'!$F$22>'Data Input - General'!$F$34,0,'Data Input - Option 4'!BH$6+'Data Input - General'!$F$22))","v":0},{"$f":"IF($C$9=0,\"\",IF(BI$6+'Data Input - General'!$F$22>'Data Input - General'!$F$34,0,'Data Input - Option 4'!BI$6+'Data Input - General'!$F$22))","v":0},{"$f":"IF($C$9=0,\"\",IF(BJ$6+'Data Input - General'!$F$22>'Data Input - General'!$F$34,0,'Data Input - Option 4'!BJ$6+'Data Input - General'!$F$22))","v":0},{"$f":"IF($C$9=0,\"\",IF(BK$6+'Data Input - General'!$F$22>'Data Input - General'!$F$34,0,'Data Input - Option 4'!BK$6+'Data Input - General'!$F$22))","v":0},{"$f":"IF($C$9=0,\"\",IF(BL$6+'Data Input - General'!$F$22>'Data Input - General'!$F$34,0,'Data Input - Option 4'!BL$6+'Data Input - General'!$F$22))","v":0},{"$f":"IF($C$9=0,\"\",IF(BM$6+'Data Input - General'!$F$22>'Data Input - General'!$F$34,0,'Data Input - Option 4'!BM$6+'Data Input - General'!$F$22))","v":0},{"$f":"IF($C$9=0,\"\",IF(BN$6+'Data Input - General'!$F$22>'Data Input - General'!$F$34,0,'Data Input - Option 4'!BN$6+'Data Input - General'!$F$22))","v":0},{"$f":"IF($C$9=0,\"\",IF(BO$6+'Data Input - General'!$F$22>'Data Input - General'!$F$34,0,'Data Input - Option 4'!BO$6+'Data Input - General'!$F$22))","v":0},{"$f":"IF($C$9=0,\"\",IF(BP$6+'Data Input - General'!$F$22>'Data Input - General'!$F$34,0,'Data Input - Option 4'!BP$6+'Data Input - General'!$F$22))","v":0},{"$f":"IF($C$9=0,\"\",IF(BQ$6+'Data Input - General'!$F$22>'Data Input - General'!$F$34,0,'Data Input - Option 4'!BQ$6+'Data Input - General'!$F$22))","v":0},{"$f":"IF($C$9=0,\"\",IF(BR$6+'Data Input - General'!$F$22>'Data Input - General'!$F$34,0,'Data Input - Option 4'!BR$6+'Data Input - General'!$F$22))","v":0},{"$f":"IF($C$9=0,\"\",IF(BS$6+'Data Input - General'!$F$22>'Data Input - General'!$F$34,0,'Data Input - Option 4'!BS$6+'Data Input - General'!$F$22))","v":0},{"$f":"IF($C$9=0,\"\",IF(BT$6+'Data Input - General'!$F$22>'Data Input - General'!$F$34,0,'Data Input - Option 4'!BT$6+'Data Input - General'!$F$22))","v":0},{"$f":"IF($C$9=0,\"\",IF(BU$6+'Data Input - General'!$F$22>'Data Input - General'!$F$34,0,'Data Input - Option 4'!BU$6+'Data Input - General'!$F$22))","v":0},{"$f":"IF($C$9=0,\"\",IF(BV$6+'Data Input - General'!$F$22>'Data Input - General'!$F$34,0,'Data Input - Option 4'!BV$6+'Data Input - General'!$F$22))","v":0},{"$f":"IF($C$9=0,\"\",IF(BW$6+'Data Input - General'!$F$22>'Data Input - General'!$F$34,0,'Data Input - Option 4'!BW$6+'Data Input - General'!$F$22))","v":0},{"$f":"IF($C$9=0,\"\",IF(BX$6+'Data Input - General'!$F$22>'Data Input - General'!$F$34,0,'Data Input - Option 4'!BX$6+'Data Input - General'!$F$22))","v":0},{"$f":"IF($C$9=0,\"\",IF(BY$6+'Data Input - General'!$F$22>'Data Input - General'!$F$34,0,'Data Input - Option 4'!BY$6+'Data Input - General'!$F$22))","v":0},{"$f":"IF($C$9=0,\"\",IF(BZ$6+'Data Input - General'!$F$22>'Data Input - General'!$F$34,0,'Data Input - Option 4'!BZ$6+'Data Input - General'!$F$22))","v":0},{"$f":"IF($C$9=0,\"\",IF(CA$6+'Data Input - General'!$F$22>'Data Input - General'!$F$34,0,'Data Input - Option 4'!CA$6+'Data Input - General'!$F$22))","v":0},{"$f":"IF($C$9=0,\"\",IF(CB$6+'Data Input - General'!$F$22>'Data Input - General'!$F$34,0,'Data Input - Option 4'!CB$6+'Data Input - General'!$F$22))","v":0},{"$f":"IF($C$9=0,\"\",IF(CC$6+'Data Input - General'!$F$22>'Data Input - General'!$F$34,0,'Data Input - Option 4'!CC$6+'Data Input - General'!$F$22))","v":0},{"$f":"IF($C$9=0,\"\",IF(CD$6+'Data Input - General'!$F$22>'Data Input - General'!$F$34,0,'Data Input - Option 4'!CD$6+'Data Input - General'!$F$22))","v":0},{"$f":"IF($C$9=0,\"\",IF(CE$6+'Data Input - General'!$F$22>'Data Input - General'!$F$34,0,'Data Input - Option 4'!CE$6+'Data Input - General'!$F$22))","v":0},{"$f":"IF($C$9=0,\"\",IF(CF$6+'Data Input - General'!$F$22>'Data Input - General'!$F$34,0,'Data Input - Option 4'!CF$6+'Data Input - General'!$F$22))","v":0},{"$f":"IF($C$9=0,\"\",IF(CG$6+'Data Input - General'!$F$22>'Data Input - General'!$F$34,0,'Data Input - Option 4'!CG$6+'Data Input - General'!$F$22))","v":0},{"$f":"IF($C$9=0,\"\",IF(CH$6+'Data Input - General'!$F$22>'Data Input - General'!$F$34,0,'Data Input - Option 4'!CH$6+'Data Input - General'!$F$22))","v":0},{"$f":"IF($C$9=0,\"\",IF(CI$6+'Data Input - General'!$F$22>'Data Input - General'!$F$34,0,'Data Input - Option 4'!CI$6+'Data Input - General'!$F$22))","v":0},{"$f":"IF($C$9=0,\"\",IF(CJ$6+'Data Input - General'!$F$22>'Data Input - General'!$F$34,0,'Data Input - Option 4'!CJ$6+'Data Input - General'!$F$22))","v":0},{"$f":"IF($C$9=0,\"\",IF(CK$6+'Data Input - General'!$F$22>'Data Input - General'!$F$34,0,'Data Input - Option 4'!CK$6+'Data Input - General'!$F$22))","v":0},{"$f":"IF($C$9=0,\"\",IF(CL$6+'Data Input - General'!$F$22>'Data Input - General'!$F$34,0,'Data Input - Option 4'!CL$6+'Data Input - General'!$F$22))","v":0},{"$f":"IF($C$9=0,\"\",IF(CM$6+'Data Input - General'!$F$22>'Data Input - General'!$F$34,0,'Data Input - Option 4'!CM$6+'Data Input - General'!$F$22))","v":0},{"$f":"IF($C$9=0,\"\",IF(CN$6+'Data Input - General'!$F$22>'Data Input - General'!$F$34,0,'Data Input - Option 4'!CN$6+'Data Input - General'!$F$22))","v":0},{"$f":"IF($C$9=0,\"\",IF(CO$6+'Data Input - General'!$F$22>'Data Input - General'!$F$34,0,'Data Input - Option 4'!CO$6+'Data Input - General'!$F$22))","v":0},{"$f":"IF($C$9=0,\"\",IF(CP$6+'Data Input - General'!$F$22>'Data Input - General'!$F$34,0,'Data Input - Option 4'!CP$6+'Data Input - General'!$F$22))","v":0},{"$f":"IF($C$9=0,\"\",IF(CQ$6+'Data Input - General'!$F$22>'Data Input - General'!$F$34,0,'Data Input - Option 4'!CQ$6+'Data Input - General'!$F$22))","v":0},{"$f":"IF($C$9=0,\"\",IF(CR$6+'Data Input - General'!$F$22>'Data Input - General'!$F$34,0,'Data Input - Option 4'!CR$6+'Data Input - General'!$F$22))","v":0},{"$f":"IF($C$9=0,\"\",IF(CS$6+'Data Input - General'!$F$22>'Data Input - General'!$F$34,0,'Data Input - Option 4'!CS$6+'Data Input - General'!$F$22))","v":0},{"$f":"IF($C$9=0,\"\",IF(CT$6+'Data Input - General'!$F$22>'Data Input - General'!$F$34,0,'Data Input - Option 4'!CT$6+'Data Input - General'!$F$22))","v":0},{"$f":"IF($C$9=0,\"\",IF(CU$6+'Data Input - General'!$F$22>'Data Input - General'!$F$34,0,'Data Input - Option 4'!CU$6+'Data Input - General'!$F$22))","v":0},{"$f":"IF($C$9=0,\"\",IF(CV$6+'Data Input - General'!$F$22>'Data Input - General'!$F$34,0,'Data Input - Option 4'!CV$6+'Data Input - General'!$F$22))","v":0},{"$f":"IF($C$9=0,\"\",IF(CW$6+'Data Input - General'!$F$22>'Data Input - General'!$F$34,0,'Data Input - Option 4'!CW$6+'Data Input - General'!$F$22))","v":0},{"$f":"IF($C$9=0,\"\",IF(CX$6+'Data Input - General'!$F$22>'Data Input - General'!$F$34,0,'Data Input - Option 4'!CX$6+'Data Input - General'!$F$22))","v":0},{"$f":"IF($C$9=0,\"\",IF(CY$6+'Data Input - General'!$F$22>'Data Input - General'!$F$34,0,'Data Input - Option 4'!CY$6+'Data Input - General'!$F$22))","v":0},{"$f":"IF($C$9=0,\"\",IF(CZ$6+'Data Input - General'!$F$22>'Data Input - General'!$F$34,0,'Data Input - Option 4'!CZ$6+'Data Input - General'!$F$22))","v":0},{"$f":"IF($C$9=0,\"\",IF(DA$6+'Data Input - General'!$F$22>'Data Input - General'!$F$34,0,'Data Input - Option 4'!DA$6+'Data Input - General'!$F$22))","v":0},{"$f":"IF($C$9=0,\"\",IF(DB$6+'Data Input - General'!$F$22>'Data Input - General'!$F$34,0,'Data Input - Option 4'!DB$6+'Data Input - General'!$F$22))","v":0},{"$f":"IF($C$9=0,\"\",IF(DC$6+'Data Input - General'!$F$22>'Data Input - General'!$F$34,0,'Data Input - Option 4'!DC$6+'Data Input - General'!$F$22))","v":0}]
[]
[null,null,{"$f":"IF('Data Input - General'!J24=\"\",\"Nothing Selected - Do not Complete this Section\",'Data Input - General'!J24)","v":"Nothing Selected - Do not Complete this Section"},null,"(?)"]
[]
[null,null,"Upfront investment costs",null,"(?)"]
[]
[null,null,null,"Equipment"]
[null,null,8.1,"Primary emission control equipment","£000's"]
[null,null,8.1999999999999993,"Auxiliary equipment","£000's"]
[null,null,8.3000000000000007,"Instrumentation","£000's"]
[null,null,8.4,"Modifications to existing equipment","£000's"]
[null,null,8.5,"Major refurbishment","£000's"]
[null,null,null,"Set-up costs"]
[null,null,"8.6","Land","£000's"]
[null,null,"8.7","Site preparation","£000's"]
[null,null,"8.8","Civils","£000's"]
[null,null,"8.9","Materials","£000's"]
[null,null,"8.10","Other (please specify)","£000's"]
[null,null,null,"Other capex"]
[null,null,"8.11","Residual value of existing technology (where replaced)","£000's"]
[null,null,"8.12","Project planning (if not in civils)","£000's"]
[null,null,"8.13","Other (please specify)","£000's"]
[]
[null,null,null,"Total upfront investment costs by year (non-discounted)","£000's","(Auto calculated value)",null,{"$f":"SUM(H14:H29)","v":0},{"$f":"SUM(I14:I29)","v":0},{"$f":"SUM(J14:J29)","v":0},{"$f":"SUM(K14:K29)","v":0},{"$f":"SUM(L14:L29)","v":0},0,0,0,0,0,0,0,0,0,0,0,0,0,0,0,0,0,0,0,0,0,0,0,0,0,0,0,0,0,0,0,0,0,0,0,0,0,0,0,0,0,0,0,0,0,0,0,0,0,0,0,0,0,0,0,0,0,0,0,0,0,0,0,{"$f":"SUM(BX14:BX29)","v":0},0,0,0,0,0,0,0,0,0,0,0,0,0,0,0,0,0,0,0,0,0,0,0,0,0,0,0,0,0,0,0]
[]
[null,null,null,"Total upfront investment costs for all years (non-discounted)",null,"(Auto calculated value)",null,{"$f":"SUM(H30:DC30)","v":0}]
[]
[null,null,"8.14","Uncertainty range around upfront investment costs","+/-%"]
[]
[null,null,null,"Cost of capital (financing)","(?)"]
[null,null,"8.15","Enter financing costs manually?",null,null,null,"<(Select from dropdown)"]
[]
[null,null,"8.16","Financing costs - WACC (if entered manually)                       (?)","£000's"]
[]
[null,null,"8.17","Financing costs - Low WACC (if entered manually)","£000's"]
[null,null,"8.18","Financing costs - High WACC (if entered manually)","£000's"]
[]
[null,null,"Operating Costs",null,"(?)"]
[]
[null,null,"8.19","Labour                                                                                           (?)","£000's",null,null,1]
[null,null,"8.20","Maintenance","£000's"]
[null,null,"8.21","Other (please specify)","£000's"]
[]
[null,null,null,"Total operating and maintenance costs by year (non-discounted)","£000's","(Auto calculated value)",null,{"$f":"SUM(H46:H49)","v":1},{"$f":"SUM(I46:I49)","v":0},0,0,0,0,0,0,0,0,0,0,0,0,0,0,0,0,0,0,0,0,0,0,0,0,0,0,0,0,0,0,0,0,0,0,0,0,0,0,0,0,0,0,0,0,0,0,0,0,0,0,0,0,0,0,0,0,0,0,0,0,0,0,0,{"$f":"SUM(BU46:BU49)","v":0},0,0,0,0,0,0,0,0,0,0,0,0,0,0,0,0,0,0,0,0,0,0,0,0,0,0,0,0,0,0,0,0,0,0]
[]
[null,null,null,"Total operating and maintenance costs for all years (non-discounted)",null,"(Auto calculated value)",null,{"$f":"SUM(H50:DC50)","v":1}]
[]
[null,null,"8.22","Uncertainty range around operating costs","+/-%",0.25]
[]
[null,null,"Waste output",null,"(?)"]
[]
[null,null,null,"Volume of waste"]
[null,null,"8.23","Non-haz waste, reused","Tonnes"]
[null,null,"8.24","Non-haz waste, recycled","Tonnes"]
[null,null,"8.25","Non-haz waste, otherwise recovered","Tonnes"]
[null,null,"8.26","Non-haz waste, disposed","Tonnes"]
[null,null,"8.27","Haz waste, reused","Tonnes"]
[null,null,"8.28","Haz waste, recycled","Tonnes"]
[null,null,"8.29","Haz waste, otherwise recovered","Tonnes"]
[null,null,"8.30","Haz waste, disposed","Tonnes"]
[null,null,"8.31","Other (please specify)","Tonnes",null,"(?)"]
[null,null,null,"Net cost of waste output"]
[null,null,"8.32","Non-haz waste, reused","£000's"]
[null,null,"8.33","Non-haz waste, recycled","£000's"]
[null,null,"8.34","Non-haz waste, otherwise recovered","£000's"]
[null,null,"8.35","Non-haz waste, disposed","£000's"]
[null,null,"8.36","Haz waste, reused","£000's"]
[null,null,"8.37","Haz waste, recycled","£000's"]
[null,null,"8.38","Haz waste, otherwise recovered","£000's"]
[null,null,"8.39","Haz waste, disposed","£000's"]
[null,null,"8.40","Other (please specify)","£000's"]
[]
[null,null,null,"Total cost of waste output","£000's","(Auto calculated value)",null,{"$f":"SUM(H69:H78)","v":0},{"$f":"SUM(I69:I78)","v":0},{"$f":"SUM(J69:J78)","v":0},{"$f":"SUM(K69:K78)","v":0},{"$f":"SUM(L69:L78)","v":0},0,0,0,0,0,0,0,0,0,0,0,0,0,0,0,0,0,0,0,0,0,0,0,0,0,0,0,0,0,0,0,0,0,0,0,0,0,0,0,0,0,0,0,0,0,0,0,0,0,0,0,0,0,0,0,0,0,0,0,0,0,0,0,{"$f":"SUM(BX69:BX78)","v":0},0,0,0,0,0,0,0,0,0,0,0,0,0,0,0,0,0,0,0,0,0,0,0,0,0,0,0,0,0,0,0]
[]
[null,null,"Energy Consumption"]
[]
[null,null,null,"Quantity of energy consumed"]
[null,null,"8.41","Electricity","kWh"]
[null,null,"8.42","Natural Gas","kWh"]
[null,null,"8.43","Coal","kWh"]
[null,null,"8.44","Gas Oil","litres",null,null,1]
[null,null,"8.45","Road - Petrol","litres"]
[null,null,"8.46","Road - Diesel","litres"]
[null,null,"8.47","test 3","kWh"]
[null,null,null,"Value of energy consumed","(?)"]
[null,null,null,{"$f":"D84","v":"Electricity"},"£000's","(Auto calculated value)",null,{"$f":"IFERROR(H84*INDEX('Energy Prices'!$F$12:$CR$17,MATCH('Data Input - Option 4'!$D92,'Energy Prices'!$C$12:$C$17,0),MATCH('Data Input - Option 4'!H$7,'Energy Prices'!$F$11:$CR$11,0))/100000,\"\")","v":0},{"$f":"IFERROR(I84*INDEX('Energy Prices'!$F$12:$CR$17,MATCH('Data Input - Option 4'!$D92,'Energy Prices'!$C$12:$C$17,0),MATCH('Data Input - Option 4'!I$7,'Energy Prices'!$F$11:$CR$11,0))/100000,\"\")","v":0},{"$f":"IFERROR(J84*INDEX('Energy Prices'!$F$12:$CR$17,MATCH('Data Input - Option 4'!$D92,'Energy Prices'!$C$12:$C$17,0),MATCH('Data Input - Option 4'!J$7,'Energy Prices'!$F$11:$CR$11,0))/100000,\"\")","v":0},{"$f":"IFERROR(K84*INDEX('Energy Prices'!$F$12:$CR$17,MATCH('Data Input - Option 4'!$D92,'Energy Prices'!$C$12:$C$17,0),MATCH('Data Input - Option 4'!K$7,'Energy Prices'!$F$11:$CR$11,0))/100000,\"\")","v":0},{"$f":"IFERROR(L84*INDEX('Energy Prices'!$F$12:$CR$17,MATCH('Data Input - Option 4'!$D92,'Energy Prices'!$C$12:$C$17,0),MATCH('Data Input - Option 4'!L$7,'Energy Prices'!$F$11:$CR$11,0))/100000,\"\")","v":0},{"$f":"IFERROR(M84*INDEX('Energy Prices'!$F$12:$CR$17,MATCH('Data Input - Option 4'!$D92,'Energy Prices'!$C$12:$C$17,0),MATCH('Data Input - Option 4'!M$7,'Energy Prices'!$F$11:$CR$11,0))/100000,\"\")","v":0},{"$f":"IFERROR(N84*INDEX('Energy Prices'!$F$12:$CR$17,MATCH('Data Input - Option 4'!$D92,'Energy Prices'!$C$12:$C$17,0),MATCH('Data Input - Option 4'!N$7,'Energy Prices'!$F$11:$CR$11,0))/100000,\"\")","v":0},{"$f":"IFERROR(O84*INDEX('Energy Prices'!$F$12:$CR$17,MATCH('Data Input - Option 4'!$D92,'Energy Prices'!$C$12:$C$17,0),MATCH('Data Input - Option 4'!O$7,'Energy Prices'!$F$11:$CR$11,0))/100000,\"\")","v":0},{"$f":"IFERROR(P84*INDEX('Energy Prices'!$F$12:$CR$17,MATCH('Data Input - Option 4'!$D92,'Energy Prices'!$C$12:$C$17,0),MATCH('Data Input - Option 4'!P$7,'Energy Prices'!$F$11:$CR$11,0))/100000,\"\")","v":0},{"$f":"IFERROR(Q84*INDEX('Energy Prices'!$F$12:$CR$17,MATCH('Data Input - Option 4'!$D92,'Energy Prices'!$C$12:$C$17,0),MATCH('Data Input - Option 4'!Q$7,'Energy Prices'!$F$11:$CR$11,0))/100000,\"\")","v":0},{"$f":"IFERROR(R84*INDEX('Energy Prices'!$F$12:$CR$17,MATCH('Data Input - Option 4'!$D92,'Energy Prices'!$C$12:$C$17,0),MATCH('Data Input - Option 4'!R$7,'Energy Prices'!$F$11:$CR$11,0))/100000,\"\")","v":0},{"$f":"IFERROR(S84*INDEX('Energy Prices'!$F$12:$CR$17,MATCH('Data Input - Option 4'!$D92,'Energy Prices'!$C$12:$C$17,0),MATCH('Data Input - Option 4'!S$7,'Energy Prices'!$F$11:$CR$11,0))/100000,\"\")","v":0},{"$f":"IFERROR(T84*INDEX('Energy Prices'!$F$12:$CR$17,MATCH('Data Input - Option 4'!$D92,'Energy Prices'!$C$12:$C$17,0),MATCH('Data Input - Option 4'!T$7,'Energy Prices'!$F$11:$CR$11,0))/100000,\"\")","v":0},{"$f":"IFERROR(U84*INDEX('Energy Prices'!$F$12:$CR$17,MATCH('Data Input - Option 4'!$D92,'Energy Prices'!$C$12:$C$17,0),MATCH('Data Input - Option 4'!U$7,'Energy Prices'!$F$11:$CR$11,0))/100000,\"\")","v":0},{"$f":"IFERROR(V84*INDEX('Energy Prices'!$F$12:$CR$17,MATCH('Data Input - Option 4'!$D92,'Energy Prices'!$C$12:$C$17,0),MATCH('Data Input - Option 4'!V$7,'Energy Prices'!$F$11:$CR$11,0))/100000,\"\")","v":0},{"$f":"IFERROR(W84*INDEX('Energy Prices'!$F$12:$CR$17,MATCH('Data Input - Option 4'!$D92,'Energy Prices'!$C$12:$C$17,0),MATCH('Data Input - Option 4'!W$7,'Energy Prices'!$F$11:$CR$11,0))/100000,\"\")","v":0},{"$f":"IFERROR(X84*INDEX('Energy Prices'!$F$12:$CR$17,MATCH('Data Input - Option 4'!$D92,'Energy Prices'!$C$12:$C$17,0),MATCH('Data Input - Option 4'!X$7,'Energy Prices'!$F$11:$CR$11,0))/100000,\"\")","v":0},{"$f":"IFERROR(Y84*INDEX('Energy Prices'!$F$12:$CR$17,MATCH('Data Input - Option 4'!$D92,'Energy Prices'!$C$12:$C$17,0),MATCH('Data Input - Option 4'!Y$7,'Energy Prices'!$F$11:$CR$11,0))/100000,\"\")","v":0},{"$f":"IFERROR(Z84*INDEX('Energy Prices'!$F$12:$CR$17,MATCH('Data Input - Option 4'!$D92,'Energy Prices'!$C$12:$C$17,0),MATCH('Data Input - Option 4'!Z$7,'Energy Prices'!$F$11:$CR$11,0))/100000,\"\")","v":0},{"$f":"IFERROR(AA84*INDEX('Energy Prices'!$F$12:$CR$17,MATCH('Data Input - Option 4'!$D92,'Energy Prices'!$C$12:$C$17,0),MATCH('Data Input - Option 4'!AA$7,'Energy Prices'!$F$11:$CR$11,0))/100000,\"\")","v":0},{"$f":"IFERROR(AB84*INDEX('Energy Prices'!$F$12:$CR$17,MATCH('Data Input - Option 4'!$D92,'Energy Prices'!$C$12:$C$17,0),MATCH('Data Input - Option 4'!AB$7,'Energy Prices'!$F$11:$CR$11,0))/100000,\"\")","v":0},{"$f":"IFERROR(AC84*INDEX('Energy Prices'!$F$12:$CR$17,MATCH('Data Input - Option 4'!$D92,'Energy Prices'!$C$12:$C$17,0),MATCH('Data Input - Option 4'!AC$7,'Energy Prices'!$F$11:$CR$11,0))/100000,\"\")","v":0},{"$f":"IFERROR(AD84*INDEX('Energy Prices'!$F$12:$CR$17,MATCH('Data Input - Option 4'!$D92,'Energy Prices'!$C$12:$C$17,0),MATCH('Data Input - Option 4'!AD$7,'Energy Prices'!$F$11:$CR$11,0))/100000,\"\")","v":0},{"$f":"IFERROR(AE84*INDEX('Energy Prices'!$F$12:$CR$17,MATCH('Data Input - Option 4'!$D92,'Energy Prices'!$C$12:$C$17,0),MATCH('Data Input - Option 4'!AE$7,'Energy Prices'!$F$11:$CR$11,0))/100000,\"\")","v":0},{"$f":"IFERROR(AF84*INDEX('Energy Prices'!$F$12:$CR$17,MATCH('Data Input - Option 4'!$D92,'Energy Prices'!$C$12:$C$17,0),MATCH('Data Input - Option 4'!AF$7,'Energy Prices'!$F$11:$CR$11,0))/100000,\"\")","v":0},{"$f":"IFERROR(AG84*INDEX('Energy Prices'!$F$12:$CR$17,MATCH('Data Input - Option 4'!$D92,'Energy Prices'!$C$12:$C$17,0),MATCH('Data Input - Option 4'!AG$7,'Energy Prices'!$F$11:$CR$11,0))/100000,\"\")","v":0},{"$f":"IFERROR(AH84*INDEX('Energy Prices'!$F$12:$CR$17,MATCH('Data Input - Option 4'!$D92,'Energy Prices'!$C$12:$C$17,0),MATCH('Data Input - Option 4'!AH$7,'Energy Prices'!$F$11:$CR$11,0))/100000,\"\")","v":0},{"$f":"IFERROR(AI84*INDEX('Energy Prices'!$F$12:$CR$17,MATCH('Data Input - Option 4'!$D92,'Energy Prices'!$C$12:$C$17,0),MATCH('Data Input - Option 4'!AI$7,'Energy Prices'!$F$11:$CR$11,0))/100000,\"\")","v":0},{"$f":"IFERROR(AJ84*INDEX('Energy Prices'!$F$12:$CR$17,MATCH('Data Input - Option 4'!$D92,'Energy Prices'!$C$12:$C$17,0),MATCH('Data Input - Option 4'!AJ$7,'Energy Prices'!$F$11:$CR$11,0))/100000,\"\")","v":0},{"$f":"IFERROR(AK84*INDEX('Energy Prices'!$F$12:$CR$17,MATCH('Data Input - Option 4'!$D92,'Energy Prices'!$C$12:$C$17,0),MATCH('Data Input - Option 4'!AK$7,'Energy Prices'!$F$11:$CR$11,0))/100000,\"\")","v":0},{"$f":"IFERROR(AL84*INDEX('Energy Prices'!$F$12:$CR$17,MATCH('Data Input - Option 4'!$D92,'Energy Prices'!$C$12:$C$17,0),MATCH('Data Input - Option 4'!AL$7,'Energy Prices'!$F$11:$CR$11,0))/100000,\"\")","v":0},{"$f":"IFERROR(AM84*INDEX('Energy Prices'!$F$12:$CR$17,MATCH('Data Input - Option 4'!$D92,'Energy Prices'!$C$12:$C$17,0),MATCH('Data Input - Option 4'!AM$7,'Energy Prices'!$F$11:$CR$11,0))/100000,\"\")","v":""},{"$f":"IFERROR(AN84*INDEX('Energy Prices'!$F$12:$CR$17,MATCH('Data Input - Option 4'!$D92,'Energy Prices'!$C$12:$C$17,0),MATCH('Data Input - Option 4'!AN$7,'Energy Prices'!$F$11:$CR$11,0))/100000,\"\")","v":""},{"$f":"IFERROR(AO84*INDEX('Energy Prices'!$F$12:$CR$17,MATCH('Data Input - Option 4'!$D92,'Energy Prices'!$C$12:$C$17,0),MATCH('Data Input - Option 4'!AO$7,'Energy Prices'!$F$11:$CR$11,0))/100000,\"\")","v":""},{"$f":"IFERROR(AP84*INDEX('Energy Prices'!$F$12:$CR$17,MATCH('Data Input - Option 4'!$D92,'Energy Prices'!$C$12:$C$17,0),MATCH('Data Input - Option 4'!AP$7,'Energy Prices'!$F$11:$CR$11,0))/100000,\"\")","v":""},{"$f":"IFERROR(AQ84*INDEX('Energy Prices'!$F$12:$CR$17,MATCH('Data Input - Option 4'!$D92,'Energy Prices'!$C$12:$C$17,0),MATCH('Data Input - Option 4'!AQ$7,'Energy Prices'!$F$11:$CR$11,0))/100000,\"\")","v":""},{"$f":"IFERROR(AR84*INDEX('Energy Prices'!$F$12:$CR$17,MATCH('Data Input - Option 4'!$D92,'Energy Prices'!$C$12:$C$17,0),MATCH('Data Input - Option 4'!AR$7,'Energy Prices'!$F$11:$CR$11,0))/100000,\"\")","v":""},{"$f":"IFERROR(AS84*INDEX('Energy Prices'!$F$12:$CR$17,MATCH('Data Input - Option 4'!$D92,'Energy Prices'!$C$12:$C$17,0),MATCH('Data Input - Option 4'!AS$7,'Energy Prices'!$F$11:$CR$11,0))/100000,\"\")","v":""},{"$f":"IFERROR(AT84*INDEX('Energy Prices'!$F$12:$CR$17,MATCH('Data Input - Option 4'!$D92,'Energy Prices'!$C$12:$C$17,0),MATCH('Data Input - Option 4'!AT$7,'Energy Prices'!$F$11:$CR$11,0))/100000,\"\")","v":""},{"$f":"IFERROR(AU84*INDEX('Energy Prices'!$F$12:$CR$17,MATCH('Data Input - Option 4'!$D92,'Energy Prices'!$C$12:$C$17,0),MATCH('Data Input - Option 4'!AU$7,'Energy Prices'!$F$11:$CR$11,0))/100000,\"\")","v":""},{"$f":"IFERROR(AV84*INDEX('Energy Prices'!$F$12:$CR$17,MATCH('Data Input - Option 4'!$D92,'Energy Prices'!$C$12:$C$17,0),MATCH('Data Input - Option 4'!AV$7,'Energy Prices'!$F$11:$CR$11,0))/100000,\"\")","v":""},{"$f":"IFERROR(AW84*INDEX('Energy Prices'!$F$12:$CR$17,MATCH('Data Input - Option 4'!$D92,'Energy Prices'!$C$12:$C$17,0),MATCH('Data Input - Option 4'!AW$7,'Energy Prices'!$F$11:$CR$11,0))/100000,\"\")","v":""},{"$f":"IFERROR(AX84*INDEX('Energy Prices'!$F$12:$CR$17,MATCH('Data Input - Option 4'!$D92,'Energy Prices'!$C$12:$C$17,0),MATCH('Data Input - Option 4'!AX$7,'Energy Prices'!$F$11:$CR$11,0))/100000,\"\")","v":""},{"$f":"IFERROR(AY84*INDEX('Energy Prices'!$F$12:$CR$17,MATCH('Data Input - Option 4'!$D92,'Energy Prices'!$C$12:$C$17,0),MATCH('Data Input - Option 4'!AY$7,'Energy Prices'!$F$11:$CR$11,0))/100000,\"\")","v":""},{"$f":"IFERROR(AZ84*INDEX('Energy Prices'!$F$12:$CR$17,MATCH('Data Input - Option 4'!$D92,'Energy Prices'!$C$12:$C$17,0),MATCH('Data Input - Option 4'!AZ$7,'Energy Prices'!$F$11:$CR$11,0))/100000,\"\")","v":""},{"$f":"IFERROR(BA84*INDEX('Energy Prices'!$F$12:$CR$17,MATCH('Data Input - Option 4'!$D92,'Energy Prices'!$C$12:$C$17,0),MATCH('Data Input - Option 4'!BA$7,'Energy Prices'!$F$11:$CR$11,0))/100000,\"\")","v":""},{"$f":"IFERROR(BB84*INDEX('Energy Prices'!$F$12:$CR$17,MATCH('Data Input - Option 4'!$D92,'Energy Prices'!$C$12:$C$17,0),MATCH('Data Input - Option 4'!BB$7,'Energy Prices'!$F$11:$CR$11,0))/100000,\"\")","v":""},{"$f":"IFERROR(BC84*INDEX('Energy Prices'!$F$12:$CR$17,MATCH('Data Input - Option 4'!$D92,'Energy Prices'!$C$12:$C$17,0),MATCH('Data Input - Option 4'!BC$7,'Energy Prices'!$F$11:$CR$11,0))/100000,\"\")","v":""},{"$f":"IFERROR(BD84*INDEX('Energy Prices'!$F$12:$CR$17,MATCH('Data Input - Option 4'!$D92,'Energy Prices'!$C$12:$C$17,0),MATCH('Data Input - Option 4'!BD$7,'Energy Prices'!$F$11:$CR$11,0))/100000,\"\")","v":""},{"$f":"IFERROR(BE84*INDEX('Energy Prices'!$F$12:$CR$17,MATCH('Data Input - Option 4'!$D92,'Energy Prices'!$C$12:$C$17,0),MATCH('Data Input - Option 4'!BE$7,'Energy Prices'!$F$11:$CR$11,0))/100000,\"\")","v":""},{"$f":"IFERROR(BF84*INDEX('Energy Prices'!$F$12:$CR$17,MATCH('Data Input - Option 4'!$D92,'Energy Prices'!$C$12:$C$17,0),MATCH('Data Input - Option 4'!BF$7,'Energy Prices'!$F$11:$CR$11,0))/100000,\"\")","v":""},{"$f":"IFERROR(BG84*INDEX('Energy Prices'!$F$12:$CR$17,MATCH('Data Input - Option 4'!$D92,'Energy Prices'!$C$12:$C$17,0),MATCH('Data Input - Option 4'!BG$7,'Energy Prices'!$F$11:$CR$11,0))/100000,\"\")","v":""},{"$f":"IFERROR(BH84*INDEX('Energy Prices'!$F$12:$CR$17,MATCH('Data Input - Option 4'!$D92,'Energy Prices'!$C$12:$C$17,0),MATCH('Data Input - Option 4'!BH$7,'Energy Prices'!$F$11:$CR$11,0))/100000,\"\")","v":""},{"$f":"IFERROR(BI84*INDEX('Energy Prices'!$F$12:$CR$17,MATCH('Data Input - Option 4'!$D92,'Energy Prices'!$C$12:$C$17,0),MATCH('Data Input - Option 4'!BI$7,'Energy Prices'!$F$11:$CR$11,0))/100000,\"\")","v":""},{"$f":"IFERROR(BJ84*INDEX('Energy Prices'!$F$12:$CR$17,MATCH('Data Input - Option 4'!$D92,'Energy Prices'!$C$12:$C$17,0),MATCH('Data Input - Option 4'!BJ$7,'Energy Prices'!$F$11:$CR$11,0))/100000,\"\")","v":""},{"$f":"IFERROR(BK84*INDEX('Energy Prices'!$F$12:$CR$17,MATCH('Data Input - Option 4'!$D92,'Energy Prices'!$C$12:$C$17,0),MATCH('Data Input - Option 4'!BK$7,'Energy Prices'!$F$11:$CR$11,0))/100000,\"\")","v":""},{"$f":"IFERROR(BL84*INDEX('Energy Prices'!$F$12:$CR$17,MATCH('Data Input - Option 4'!$D92,'Energy Prices'!$C$12:$C$17,0),MATCH('Data Input - Option 4'!BL$7,'Energy Prices'!$F$11:$CR$11,0))/100000,\"\")","v":""},{"$f":"IFERROR(BM84*INDEX('Energy Prices'!$F$12:$CR$17,MATCH('Data Input - Option 4'!$D92,'Energy Prices'!$C$12:$C$17,0),MATCH('Data Input - Option 4'!BM$7,'Energy Prices'!$F$11:$CR$11,0))/100000,\"\")","v":""},{"$f":"IFERROR(BN84*INDEX('Energy Prices'!$F$12:$CR$17,MATCH('Data Input - Option 4'!$D92,'Energy Prices'!$C$12:$C$17,0),MATCH('Data Input - Option 4'!BN$7,'Energy Prices'!$F$11:$CR$11,0))/100000,\"\")","v":""},{"$f":"IFERROR(BO84*INDEX('Energy Prices'!$F$12:$CR$17,MATCH('Data Input - Option 4'!$D92,'Energy Prices'!$C$12:$C$17,0),MATCH('Data Input - Option 4'!BO$7,'Energy Prices'!$F$11:$CR$11,0))/100000,\"\")","v":""},{"$f":"IFERROR(BP84*INDEX('Energy Prices'!$F$12:$CR$17,MATCH('Data Input - Option 4'!$D92,'Energy Prices'!$C$12:$C$17,0),MATCH('Data Input - Option 4'!BP$7,'Energy Prices'!$F$11:$CR$11,0))/100000,\"\")","v":""},{"$f":"IFERROR(BQ84*INDEX('Energy Prices'!$F$12:$CR$17,MATCH('Data Input - Option 4'!$D92,'Energy Prices'!$C$12:$C$17,0),MATCH('Data Input - Option 4'!BQ$7,'Energy Prices'!$F$11:$CR$11,0))/100000,\"\")","v":""},{"$f":"IFERROR(BR84*INDEX('Energy Prices'!$F$12:$CR$17,MATCH('Data Input - Option 4'!$D92,'Energy Prices'!$C$12:$C$17,0),MATCH('Data Input - Option 4'!BR$7,'Energy Prices'!$F$11:$CR$11,0))/100000,\"\")","v":""},{"$f":"IFERROR(BS84*INDEX('Energy Prices'!$F$12:$CR$17,MATCH('Data Input - Option 4'!$D92,'Energy Prices'!$C$12:$C$17,0),MATCH('Data Input - Option 4'!BS$7,'Energy Prices'!$F$11:$CR$11,0))/100000,\"\")","v":""},{"$f":"IFERROR(BT84*INDEX('Energy Prices'!$F$12:$CR$17,MATCH('Data Input - Option 4'!$D92,'Energy Prices'!$C$12:$C$17,0),MATCH('Data Input - Option 4'!BT$7,'Energy Prices'!$F$11:$CR$11,0))/100000,\"\")","v":""},{"$f":"IFERROR(BU84*INDEX('Energy Prices'!$F$12:$CR$17,MATCH('Data Input - Option 4'!$D92,'Energy Prices'!$C$12:$C$17,0),MATCH('Data Input - Option 4'!BU$7,'Energy Prices'!$F$11:$CR$11,0))/100000,\"\")","v":""},{"$f":"IFERROR(BV84*INDEX('Energy Prices'!$F$12:$CR$17,MATCH('Data Input - Option 4'!$D92,'Energy Prices'!$C$12:$C$17,0),MATCH('Data Input - Option 4'!BV$7,'Energy Prices'!$F$11:$CR$11,0))/100000,\"\")","v":""},{"$f":"IFERROR(BW84*INDEX('Energy Prices'!$F$12:$CR$17,MATCH('Data Input - Option 4'!$D92,'Energy Prices'!$C$12:$C$17,0),MATCH('Data Input - Option 4'!BW$7,'Energy Prices'!$F$11:$CR$11,0))/100000,\"\")","v":""},{"$f":"IFERROR(BX84*INDEX('Energy Prices'!$F$12:$CR$17,MATCH('Data Input - Option 4'!$D92,'Energy Prices'!$C$12:$C$17,0),MATCH('Data Input - Option 4'!BX$7,'Energy Prices'!$F$11:$CR$11,0))/100000,\"\")","v":""},{"$f":"IFERROR(BY84*INDEX('Energy Prices'!$F$12:$CR$17,MATCH('Data Input - Option 4'!$D92,'Energy Prices'!$C$12:$C$17,0),MATCH('Data Input - Option 4'!BY$7,'Energy Prices'!$F$11:$CR$11,0))/100000,\"\")","v":""},{"$f":"IFERROR(BZ84*INDEX('Energy Prices'!$F$12:$CR$17,MATCH('Data Input - Option 4'!$D92,'Energy Prices'!$C$12:$C$17,0),MATCH('Data Input - Option 4'!BZ$7,'Energy Prices'!$F$11:$CR$11,0))/100000,\"\")","v":""},{"$f":"IFERROR(CA84*INDEX('Energy Prices'!$F$12:$CR$17,MATCH('Data Input - Option 4'!$D92,'Energy Prices'!$C$12:$C$17,0),MATCH('Data Input - Option 4'!CA$7,'Energy Prices'!$F$11:$CR$11,0))/100000,\"\")","v":""},{"$f":"IFERROR(CB84*INDEX('Energy Prices'!$F$12:$CR$17,MATCH('Data Input - Option 4'!$D92,'Energy Prices'!$C$12:$C$17,0),MATCH('Data Input - Option 4'!CB$7,'Energy Prices'!$F$11:$CR$11,0))/100000,\"\")","v":""},{"$f":"IFERROR(CC84*INDEX('Energy Prices'!$F$12:$CR$17,MATCH('Data Input - Option 4'!$D92,'Energy Prices'!$C$12:$C$17,0),MATCH('Data Input - Option 4'!CC$7,'Energy Prices'!$F$11:$CR$11,0))/100000,\"\")","v":""},{"$f":"IFERROR(CD84*INDEX('Energy Prices'!$F$12:$CR$17,MATCH('Data Input - Option 4'!$D92,'Energy Prices'!$C$12:$C$17,0),MATCH('Data Input - Option 4'!CD$7,'Energy Prices'!$F$11:$CR$11,0))/100000,\"\")","v":""},{"$f":"IFERROR(CE84*INDEX('Energy Prices'!$F$12:$CR$17,MATCH('Data Input - Option 4'!$D92,'Energy Prices'!$C$12:$C$17,0),MATCH('Data Input - Option 4'!CE$7,'Energy Prices'!$F$11:$CR$11,0))/100000,\"\")","v":""},{"$f":"IFERROR(CF84*INDEX('Energy Prices'!$F$12:$CR$17,MATCH('Data Input - Option 4'!$D92,'Energy Prices'!$C$12:$C$17,0),MATCH('Data Input - Option 4'!CF$7,'Energy Prices'!$F$11:$CR$11,0))/100000,\"\")","v":""},{"$f":"IFERROR(CG84*INDEX('Energy Prices'!$F$12:$CR$17,MATCH('Data Input - Option 4'!$D92,'Energy Prices'!$C$12:$C$17,0),MATCH('Data Input - Option 4'!CG$7,'Energy Prices'!$F$11:$CR$11,0))/100000,\"\")","v":""},{"$f":"IFERROR(CH84*INDEX('Energy Prices'!$F$12:$CR$17,MATCH('Data Input - Option 4'!$D92,'Energy Prices'!$C$12:$C$17,0),MATCH('Data Input - Option 4'!CH$7,'Energy Prices'!$F$11:$CR$11,0))/100000,\"\")","v":""},{"$f":"IFERROR(CI84*INDEX('Energy Prices'!$F$12:$CR$17,MATCH('Data Input - Option 4'!$D92,'Energy Prices'!$C$12:$C$17,0),MATCH('Data Input - Option 4'!CI$7,'Energy Prices'!$F$11:$CR$11,0))/100000,\"\")","v":""},{"$f":"IFERROR(CJ84*INDEX('Energy Prices'!$F$12:$CR$17,MATCH('Data Input - Option 4'!$D92,'Energy Prices'!$C$12:$C$17,0),MATCH('Data Input - Option 4'!CJ$7,'Energy Prices'!$F$11:$CR$11,0))/100000,\"\")","v":""},{"$f":"IFERROR(CK84*INDEX('Energy Prices'!$F$12:$CR$17,MATCH('Data Input - Option 4'!$D92,'Energy Prices'!$C$12:$C$17,0),MATCH('Data Input - Option 4'!CK$7,'Energy Prices'!$F$11:$CR$11,0))/100000,\"\")","v":""},{"$f":"IFERROR(CL84*INDEX('Energy Prices'!$F$12:$CR$17,MATCH('Data Input - Option 4'!$D92,'Energy Prices'!$C$12:$C$17,0),MATCH('Data Input - Option 4'!CL$7,'Energy Prices'!$F$11:$CR$11,0))/100000,\"\")","v":""},{"$f":"IFERROR(CM84*INDEX('Energy Prices'!$F$12:$CR$17,MATCH('Data Input - Option 4'!$D92,'Energy Prices'!$C$12:$C$17,0),MATCH('Data Input - Option 4'!CM$7,'Energy Prices'!$F$11:$CR$11,0))/100000,\"\")","v":""},{"$f":"IFERROR(CN84*INDEX('Energy Prices'!$F$12:$CR$17,MATCH('Data Input - Option 4'!$D92,'Energy Prices'!$C$12:$C$17,0),MATCH('Data Input - Option 4'!CN$7,'Energy Prices'!$F$11:$CR$11,0))/100000,\"\")","v":""},{"$f":"IFERROR(CO84*INDEX('Energy Prices'!$F$12:$CR$17,MATCH('Data Input - Option 4'!$D92,'Energy Prices'!$C$12:$C$17,0),MATCH('Data Input - Option 4'!CO$7,'Energy Prices'!$F$11:$CR$11,0))/100000,\"\")","v":""},{"$f":"IFERROR(CP84*INDEX('Energy Prices'!$F$12:$CR$17,MATCH('Data Input - Option 4'!$D92,'Energy Prices'!$C$12:$C$17,0),MATCH('Data Input - Option 4'!CP$7,'Energy Prices'!$F$11:$CR$11,0))/100000,\"\")","v":""},{"$f":"IFERROR(CQ84*INDEX('Energy Prices'!$F$12:$CR$17,MATCH('Data Input - Option 4'!$D92,'Energy Prices'!$C$12:$C$17,0),MATCH('Data Input - Option 4'!CQ$7,'Energy Prices'!$F$11:$CR$11,0))/100000,\"\")","v":""},{"$f":"IFERROR(CR84*INDEX('Energy Prices'!$F$12:$CR$17,MATCH('Data Input - Option 4'!$D92,'Energy Prices'!$C$12:$C$17,0),MATCH('Data Input - Option 4'!CR$7,'Energy Prices'!$F$11:$CR$11,0))/100000,\"\")","v":""},{"$f":"IFERROR(CS84*INDEX('Energy Prices'!$F$12:$CR$17,MATCH('Data Input - Option 4'!$D92,'Energy Prices'!$C$12:$C$17,0),MATCH('Data Input - Option 4'!CS$7,'Energy Prices'!$F$11:$CR$11,0))/100000,\"\")","v":""},{"$f":"IFERROR(CT84*INDEX('Energy Prices'!$F$12:$CR$17,MATCH('Data Input - Option 4'!$D92,'Energy Prices'!$C$12:$C$17,0),MATCH('Data Input - Option 4'!CT$7,'Energy Prices'!$F$11:$CR$11,0))/100000,\"\")","v":""},{"$f":"IFERROR(CU84*INDEX('Energy Prices'!$F$12:$CR$17,MATCH('Data Input - Option 4'!$D92,'Energy Prices'!$C$12:$C$17,0),MATCH('Data Input - Option 4'!CU$7,'Energy Prices'!$F$11:$CR$11,0))/100000,\"\")","v":""},{"$f":"IFERROR(CV84*INDEX('Energy Prices'!$F$12:$CR$17,MATCH('Data Input - Option 4'!$D92,'Energy Prices'!$C$12:$C$17,0),MATCH('Data Input - Option 4'!CV$7,'Energy Prices'!$F$11:$CR$11,0))/100000,\"\")","v":""},{"$f":"IFERROR(CW84*INDEX('Energy Prices'!$F$12:$CR$17,MATCH('Data Input - Option 4'!$D92,'Energy Prices'!$C$12:$C$17,0),MATCH('Data Input - Option 4'!CW$7,'Energy Prices'!$F$11:$CR$11,0))/100000,\"\")","v":""},{"$f":"IFERROR(CX84*INDEX('Energy Prices'!$F$12:$CR$17,MATCH('Data Input - Option 4'!$D92,'Energy Prices'!$C$12:$C$17,0),MATCH('Data Input - Option 4'!CX$7,'Energy Prices'!$F$11:$CR$11,0))/100000,\"\")","v":""},{"$f":"IFERROR(CY84*INDEX('Energy Prices'!$F$12:$CR$17,MATCH('Data Input - Option 4'!$D92,'Energy Prices'!$C$12:$C$17,0),MATCH('Data Input - Option 4'!CY$7,'Energy Prices'!$F$11:$CR$11,0))/100000,\"\")","v":""},{"$f":"IFERROR(CZ84*INDEX('Energy Prices'!$F$12:$CR$17,MATCH('Data Input - Option 4'!$D92,'Energy Prices'!$C$12:$C$17,0),MATCH('Data Input - Option 4'!CZ$7,'Energy Prices'!$F$11:$CR$11,0))/100000,\"\")","v":""},{"$f":"IFERROR(DA84*INDEX('Energy Prices'!$F$12:$CR$17,MATCH('Data Input - Option 4'!$D92,'Energy Prices'!$C$12:$C$17,0),MATCH('Data Input - Option 4'!DA$7,'Energy Prices'!$F$11:$CR$11,0))/100000,\"\")","v":""},{"$f":"IFERROR(DB84*INDEX('Energy Prices'!$F$12:$CR$17,MATCH('Data Input - Option 4'!$D92,'Energy Prices'!$C$12:$C$17,0),MATCH('Data Input - Option 4'!DB$7,'Energy Prices'!$F$11:$CR$11,0))/100000,\"\")","v":""},{"$f":"IFERROR(DC84*INDEX('Energy Prices'!$F$12:$CR$17,MATCH('Data Input - Option 4'!$D92,'Energy Prices'!$C$12:$C$17,0),MATCH('Data Input - Option 4'!DC$7,'Energy Prices'!$F$11:$CR$11,0))/100000,\"\")","v":""}]
[null,null,null,{"$f":"D85","v":"Natural Gas"},"£000's","(Auto calculated value)",null,{"$f":"IFERROR(H85*INDEX('Energy Prices'!$F$12:$CR$17,MATCH('Data Input - Option 4'!$D93,'Energy Prices'!$C$12:$C$17,0),MATCH('Data Input - Option 4'!H$7,'Energy Prices'!$F$11:$CR$11,0))/100000,\"\")","v":0},{"$f":"IFERROR(I85*INDEX('Energy Prices'!$F$12:$CR$17,MATCH('Data Input - Option 4'!$D93,'Energy Prices'!$C$12:$C$17,0),MATCH('Data Input - Option 4'!I$7,'Energy Prices'!$F$11:$CR$11,0))/100000,\"\")","v":0},{"$f":"IFERROR(J85*INDEX('Energy Prices'!$F$12:$CR$17,MATCH('Data Input - Option 4'!$D93,'Energy Prices'!$C$12:$C$17,0),MATCH('Data Input - Option 4'!J$7,'Energy Prices'!$F$11:$CR$11,0))/100000,\"\")","v":0},{"$f":"IFERROR(K85*INDEX('Energy Prices'!$F$12:$CR$17,MATCH('Data Input - Option 4'!$D93,'Energy Prices'!$C$12:$C$17,0),MATCH('Data Input - Option 4'!K$7,'Energy Prices'!$F$11:$CR$11,0))/100000,\"\")","v":0},{"$f":"IFERROR(L85*INDEX('Energy Prices'!$F$12:$CR$17,MATCH('Data Input - Option 4'!$D93,'Energy Prices'!$C$12:$C$17,0),MATCH('Data Input - Option 4'!L$7,'Energy Prices'!$F$11:$CR$11,0))/100000,\"\")","v":0},{"$f":"IFERROR(M85*INDEX('Energy Prices'!$F$12:$CR$17,MATCH('Data Input - Option 4'!$D93,'Energy Prices'!$C$12:$C$17,0),MATCH('Data Input - Option 4'!M$7,'Energy Prices'!$F$11:$CR$11,0))/100000,\"\")","v":0},{"$f":"IFERROR(N85*INDEX('Energy Prices'!$F$12:$CR$17,MATCH('Data Input - Option 4'!$D93,'Energy Prices'!$C$12:$C$17,0),MATCH('Data Input - Option 4'!N$7,'Energy Prices'!$F$11:$CR$11,0))/100000,\"\")","v":0},{"$f":"IFERROR(O85*INDEX('Energy Prices'!$F$12:$CR$17,MATCH('Data Input - Option 4'!$D93,'Energy Prices'!$C$12:$C$17,0),MATCH('Data Input - Option 4'!O$7,'Energy Prices'!$F$11:$CR$11,0))/100000,\"\")","v":0},{"$f":"IFERROR(P85*INDEX('Energy Prices'!$F$12:$CR$17,MATCH('Data Input - Option 4'!$D93,'Energy Prices'!$C$12:$C$17,0),MATCH('Data Input - Option 4'!P$7,'Energy Prices'!$F$11:$CR$11,0))/100000,\"\")","v":0},{"$f":"IFERROR(Q85*INDEX('Energy Prices'!$F$12:$CR$17,MATCH('Data Input - Option 4'!$D93,'Energy Prices'!$C$12:$C$17,0),MATCH('Data Input - Option 4'!Q$7,'Energy Prices'!$F$11:$CR$11,0))/100000,\"\")","v":0},{"$f":"IFERROR(R85*INDEX('Energy Prices'!$F$12:$CR$17,MATCH('Data Input - Option 4'!$D93,'Energy Prices'!$C$12:$C$17,0),MATCH('Data Input - Option 4'!R$7,'Energy Prices'!$F$11:$CR$11,0))/100000,\"\")","v":0},{"$f":"IFERROR(S85*INDEX('Energy Prices'!$F$12:$CR$17,MATCH('Data Input - Option 4'!$D93,'Energy Prices'!$C$12:$C$17,0),MATCH('Data Input - Option 4'!S$7,'Energy Prices'!$F$11:$CR$11,0))/100000,\"\")","v":0},{"$f":"IFERROR(T85*INDEX('Energy Prices'!$F$12:$CR$17,MATCH('Data Input - Option 4'!$D93,'Energy Prices'!$C$12:$C$17,0),MATCH('Data Input - Option 4'!T$7,'Energy Prices'!$F$11:$CR$11,0))/100000,\"\")","v":0},{"$f":"IFERROR(U85*INDEX('Energy Prices'!$F$12:$CR$17,MATCH('Data Input - Option 4'!$D93,'Energy Prices'!$C$12:$C$17,0),MATCH('Data Input - Option 4'!U$7,'Energy Prices'!$F$11:$CR$11,0))/100000,\"\")","v":0},{"$f":"IFERROR(V85*INDEX('Energy Prices'!$F$12:$CR$17,MATCH('Data Input - Option 4'!$D93,'Energy Prices'!$C$12:$C$17,0),MATCH('Data Input - Option 4'!V$7,'Energy Prices'!$F$11:$CR$11,0))/100000,\"\")","v":0},{"$f":"IFERROR(W85*INDEX('Energy Prices'!$F$12:$CR$17,MATCH('Data Input - Option 4'!$D93,'Energy Prices'!$C$12:$C$17,0),MATCH('Data Input - Option 4'!W$7,'Energy Prices'!$F$11:$CR$11,0))/100000,\"\")","v":0},{"$f":"IFERROR(X85*INDEX('Energy Prices'!$F$12:$CR$17,MATCH('Data Input - Option 4'!$D93,'Energy Prices'!$C$12:$C$17,0),MATCH('Data Input - Option 4'!X$7,'Energy Prices'!$F$11:$CR$11,0))/100000,\"\")","v":0},{"$f":"IFERROR(Y85*INDEX('Energy Prices'!$F$12:$CR$17,MATCH('Data Input - Option 4'!$D93,'Energy Prices'!$C$12:$C$17,0),MATCH('Data Input - Option 4'!Y$7,'Energy Prices'!$F$11:$CR$11,0))/100000,\"\")","v":0},{"$f":"IFERROR(Z85*INDEX('Energy Prices'!$F$12:$CR$17,MATCH('Data Input - Option 4'!$D93,'Energy Prices'!$C$12:$C$17,0),MATCH('Data Input - Option 4'!Z$7,'Energy Prices'!$F$11:$CR$11,0))/100000,\"\")","v":0},{"$f":"IFERROR(AA85*INDEX('Energy Prices'!$F$12:$CR$17,MATCH('Data Input - Option 4'!$D93,'Energy Prices'!$C$12:$C$17,0),MATCH('Data Input - Option 4'!AA$7,'Energy Prices'!$F$11:$CR$11,0))/100000,\"\")","v":0},{"$f":"IFERROR(AB85*INDEX('Energy Prices'!$F$12:$CR$17,MATCH('Data Input - Option 4'!$D93,'Energy Prices'!$C$12:$C$17,0),MATCH('Data Input - Option 4'!AB$7,'Energy Prices'!$F$11:$CR$11,0))/100000,\"\")","v":0},{"$f":"IFERROR(AC85*INDEX('Energy Prices'!$F$12:$CR$17,MATCH('Data Input - Option 4'!$D93,'Energy Prices'!$C$12:$C$17,0),MATCH('Data Input - Option 4'!AC$7,'Energy Prices'!$F$11:$CR$11,0))/100000,\"\")","v":0},{"$f":"IFERROR(AD85*INDEX('Energy Prices'!$F$12:$CR$17,MATCH('Data Input - Option 4'!$D93,'Energy Prices'!$C$12:$C$17,0),MATCH('Data Input - Option 4'!AD$7,'Energy Prices'!$F$11:$CR$11,0))/100000,\"\")","v":0},{"$f":"IFERROR(AE85*INDEX('Energy Prices'!$F$12:$CR$17,MATCH('Data Input - Option 4'!$D93,'Energy Prices'!$C$12:$C$17,0),MATCH('Data Input - Option 4'!AE$7,'Energy Prices'!$F$11:$CR$11,0))/100000,\"\")","v":0},{"$f":"IFERROR(AF85*INDEX('Energy Prices'!$F$12:$CR$17,MATCH('Data Input - Option 4'!$D93,'Energy Prices'!$C$12:$C$17,0),MATCH('Data Input - Option 4'!AF$7,'Energy Prices'!$F$11:$CR$11,0))/100000,\"\")","v":0},{"$f":"IFERROR(AG85*INDEX('Energy Prices'!$F$12:$CR$17,MATCH('Data Input - Option 4'!$D93,'Energy Prices'!$C$12:$C$17,0),MATCH('Data Input - Option 4'!AG$7,'Energy Prices'!$F$11:$CR$11,0))/100000,\"\")","v":0},{"$f":"IFERROR(AH85*INDEX('Energy Prices'!$F$12:$CR$17,MATCH('Data Input - Option 4'!$D93,'Energy Prices'!$C$12:$C$17,0),MATCH('Data Input - Option 4'!AH$7,'Energy Prices'!$F$11:$CR$11,0))/100000,\"\")","v":0},{"$f":"IFERROR(AI85*INDEX('Energy Prices'!$F$12:$CR$17,MATCH('Data Input - Option 4'!$D93,'Energy Prices'!$C$12:$C$17,0),MATCH('Data Input - Option 4'!AI$7,'Energy Prices'!$F$11:$CR$11,0))/100000,\"\")","v":0},{"$f":"IFERROR(AJ85*INDEX('Energy Prices'!$F$12:$CR$17,MATCH('Data Input - Option 4'!$D93,'Energy Prices'!$C$12:$C$17,0),MATCH('Data Input - Option 4'!AJ$7,'Energy Prices'!$F$11:$CR$11,0))/100000,\"\")","v":0},{"$f":"IFERROR(AK85*INDEX('Energy Prices'!$F$12:$CR$17,MATCH('Data Input - Option 4'!$D93,'Energy Prices'!$C$12:$C$17,0),MATCH('Data Input - Option 4'!AK$7,'Energy Prices'!$F$11:$CR$11,0))/100000,\"\")","v":0},{"$f":"IFERROR(AL85*INDEX('Energy Prices'!$F$12:$CR$17,MATCH('Data Input - Option 4'!$D93,'Energy Prices'!$C$12:$C$17,0),MATCH('Data Input - Option 4'!AL$7,'Energy Prices'!$F$11:$CR$11,0))/100000,\"\")","v":0},{"$f":"IFERROR(AM85*INDEX('Energy Prices'!$F$12:$CR$17,MATCH('Data Input - Option 4'!$D93,'Energy Prices'!$C$12:$C$17,0),MATCH('Data Input - Option 4'!AM$7,'Energy Prices'!$F$11:$CR$11,0))/100000,\"\")","v":""},{"$f":"IFERROR(AN85*INDEX('Energy Prices'!$F$12:$CR$17,MATCH('Data Input - Option 4'!$D93,'Energy Prices'!$C$12:$C$17,0),MATCH('Data Input - Option 4'!AN$7,'Energy Prices'!$F$11:$CR$11,0))/100000,\"\")","v":""},{"$f":"IFERROR(AO85*INDEX('Energy Prices'!$F$12:$CR$17,MATCH('Data Input - Option 4'!$D93,'Energy Prices'!$C$12:$C$17,0),MATCH('Data Input - Option 4'!AO$7,'Energy Prices'!$F$11:$CR$11,0))/100000,\"\")","v":""},{"$f":"IFERROR(AP85*INDEX('Energy Prices'!$F$12:$CR$17,MATCH('Data Input - Option 4'!$D93,'Energy Prices'!$C$12:$C$17,0),MATCH('Data Input - Option 4'!AP$7,'Energy Prices'!$F$11:$CR$11,0))/100000,\"\")","v":""},{"$f":"IFERROR(AQ85*INDEX('Energy Prices'!$F$12:$CR$17,MATCH('Data Input - Option 4'!$D93,'Energy Prices'!$C$12:$C$17,0),MATCH('Data Input - Option 4'!AQ$7,'Energy Prices'!$F$11:$CR$11,0))/100000,\"\")","v":""},{"$f":"IFERROR(AR85*INDEX('Energy Prices'!$F$12:$CR$17,MATCH('Data Input - Option 4'!$D93,'Energy Prices'!$C$12:$C$17,0),MATCH('Data Input - Option 4'!AR$7,'Energy Prices'!$F$11:$CR$11,0))/100000,\"\")","v":""},{"$f":"IFERROR(AS85*INDEX('Energy Prices'!$F$12:$CR$17,MATCH('Data Input - Option 4'!$D93,'Energy Prices'!$C$12:$C$17,0),MATCH('Data Input - Option 4'!AS$7,'Energy Prices'!$F$11:$CR$11,0))/100000,\"\")","v":""},{"$f":"IFERROR(AT85*INDEX('Energy Prices'!$F$12:$CR$17,MATCH('Data Input - Option 4'!$D93,'Energy Prices'!$C$12:$C$17,0),MATCH('Data Input - Option 4'!AT$7,'Energy Prices'!$F$11:$CR$11,0))/100000,\"\")","v":""},{"$f":"IFERROR(AU85*INDEX('Energy Prices'!$F$12:$CR$17,MATCH('Data Input - Option 4'!$D93,'Energy Prices'!$C$12:$C$17,0),MATCH('Data Input - Option 4'!AU$7,'Energy Prices'!$F$11:$CR$11,0))/100000,\"\")","v":""},{"$f":"IFERROR(AV85*INDEX('Energy Prices'!$F$12:$CR$17,MATCH('Data Input - Option 4'!$D93,'Energy Prices'!$C$12:$C$17,0),MATCH('Data Input - Option 4'!AV$7,'Energy Prices'!$F$11:$CR$11,0))/100000,\"\")","v":""},{"$f":"IFERROR(AW85*INDEX('Energy Prices'!$F$12:$CR$17,MATCH('Data Input - Option 4'!$D93,'Energy Prices'!$C$12:$C$17,0),MATCH('Data Input - Option 4'!AW$7,'Energy Prices'!$F$11:$CR$11,0))/100000,\"\")","v":""},{"$f":"IFERROR(AX85*INDEX('Energy Prices'!$F$12:$CR$17,MATCH('Data Input - Option 4'!$D93,'Energy Prices'!$C$12:$C$17,0),MATCH('Data Input - Option 4'!AX$7,'Energy Prices'!$F$11:$CR$11,0))/100000,\"\")","v":""},{"$f":"IFERROR(AY85*INDEX('Energy Prices'!$F$12:$CR$17,MATCH('Data Input - Option 4'!$D93,'Energy Prices'!$C$12:$C$17,0),MATCH('Data Input - Option 4'!AY$7,'Energy Prices'!$F$11:$CR$11,0))/100000,\"\")","v":""},{"$f":"IFERROR(AZ85*INDEX('Energy Prices'!$F$12:$CR$17,MATCH('Data Input - Option 4'!$D93,'Energy Prices'!$C$12:$C$17,0),MATCH('Data Input - Option 4'!AZ$7,'Energy Prices'!$F$11:$CR$11,0))/100000,\"\")","v":""},{"$f":"IFERROR(BA85*INDEX('Energy Prices'!$F$12:$CR$17,MATCH('Data Input - Option 4'!$D93,'Energy Prices'!$C$12:$C$17,0),MATCH('Data Input - Option 4'!BA$7,'Energy Prices'!$F$11:$CR$11,0))/100000,\"\")","v":""},{"$f":"IFERROR(BB85*INDEX('Energy Prices'!$F$12:$CR$17,MATCH('Data Input - Option 4'!$D93,'Energy Prices'!$C$12:$C$17,0),MATCH('Data Input - Option 4'!BB$7,'Energy Prices'!$F$11:$CR$11,0))/100000,\"\")","v":""},{"$f":"IFERROR(BC85*INDEX('Energy Prices'!$F$12:$CR$17,MATCH('Data Input - Option 4'!$D93,'Energy Prices'!$C$12:$C$17,0),MATCH('Data Input - Option 4'!BC$7,'Energy Prices'!$F$11:$CR$11,0))/100000,\"\")","v":""},{"$f":"IFERROR(BD85*INDEX('Energy Prices'!$F$12:$CR$17,MATCH('Data Input - Option 4'!$D93,'Energy Prices'!$C$12:$C$17,0),MATCH('Data Input - Option 4'!BD$7,'Energy Prices'!$F$11:$CR$11,0))/100000,\"\")","v":""},{"$f":"IFERROR(BE85*INDEX('Energy Prices'!$F$12:$CR$17,MATCH('Data Input - Option 4'!$D93,'Energy Prices'!$C$12:$C$17,0),MATCH('Data Input - Option 4'!BE$7,'Energy Prices'!$F$11:$CR$11,0))/100000,\"\")","v":""},{"$f":"IFERROR(BF85*INDEX('Energy Prices'!$F$12:$CR$17,MATCH('Data Input - Option 4'!$D93,'Energy Prices'!$C$12:$C$17,0),MATCH('Data Input - Option 4'!BF$7,'Energy Prices'!$F$11:$CR$11,0))/100000,\"\")","v":""},{"$f":"IFERROR(BG85*INDEX('Energy Prices'!$F$12:$CR$17,MATCH('Data Input - Option 4'!$D93,'Energy Prices'!$C$12:$C$17,0),MATCH('Data Input - Option 4'!BG$7,'Energy Prices'!$F$11:$CR$11,0))/100000,\"\")","v":""},{"$f":"IFERROR(BH85*INDEX('Energy Prices'!$F$12:$CR$17,MATCH('Data Input - Option 4'!$D93,'Energy Prices'!$C$12:$C$17,0),MATCH('Data Input - Option 4'!BH$7,'Energy Prices'!$F$11:$CR$11,0))/100000,\"\")","v":""},{"$f":"IFERROR(BI85*INDEX('Energy Prices'!$F$12:$CR$17,MATCH('Data Input - Option 4'!$D93,'Energy Prices'!$C$12:$C$17,0),MATCH('Data Input - Option 4'!BI$7,'Energy Prices'!$F$11:$CR$11,0))/100000,\"\")","v":""},{"$f":"IFERROR(BJ85*INDEX('Energy Prices'!$F$12:$CR$17,MATCH('Data Input - Option 4'!$D93,'Energy Prices'!$C$12:$C$17,0),MATCH('Data Input - Option 4'!BJ$7,'Energy Prices'!$F$11:$CR$11,0))/100000,\"\")","v":""},{"$f":"IFERROR(BK85*INDEX('Energy Prices'!$F$12:$CR$17,MATCH('Data Input - Option 4'!$D93,'Energy Prices'!$C$12:$C$17,0),MATCH('Data Input - Option 4'!BK$7,'Energy Prices'!$F$11:$CR$11,0))/100000,\"\")","v":""},{"$f":"IFERROR(BL85*INDEX('Energy Prices'!$F$12:$CR$17,MATCH('Data Input - Option 4'!$D93,'Energy Prices'!$C$12:$C$17,0),MATCH('Data Input - Option 4'!BL$7,'Energy Prices'!$F$11:$CR$11,0))/100000,\"\")","v":""},{"$f":"IFERROR(BM85*INDEX('Energy Prices'!$F$12:$CR$17,MATCH('Data Input - Option 4'!$D93,'Energy Prices'!$C$12:$C$17,0),MATCH('Data Input - Option 4'!BM$7,'Energy Prices'!$F$11:$CR$11,0))/100000,\"\")","v":""},{"$f":"IFERROR(BN85*INDEX('Energy Prices'!$F$12:$CR$17,MATCH('Data Input - Option 4'!$D93,'Energy Prices'!$C$12:$C$17,0),MATCH('Data Input - Option 4'!BN$7,'Energy Prices'!$F$11:$CR$11,0))/100000,\"\")","v":""},{"$f":"IFERROR(BO85*INDEX('Energy Prices'!$F$12:$CR$17,MATCH('Data Input - Option 4'!$D93,'Energy Prices'!$C$12:$C$17,0),MATCH('Data Input - Option 4'!BO$7,'Energy Prices'!$F$11:$CR$11,0))/100000,\"\")","v":""},{"$f":"IFERROR(BP85*INDEX('Energy Prices'!$F$12:$CR$17,MATCH('Data Input - Option 4'!$D93,'Energy Prices'!$C$12:$C$17,0),MATCH('Data Input - Option 4'!BP$7,'Energy Prices'!$F$11:$CR$11,0))/100000,\"\")","v":""},{"$f":"IFERROR(BQ85*INDEX('Energy Prices'!$F$12:$CR$17,MATCH('Data Input - Option 4'!$D93,'Energy Prices'!$C$12:$C$17,0),MATCH('Data Input - Option 4'!BQ$7,'Energy Prices'!$F$11:$CR$11,0))/100000,\"\")","v":""},{"$f":"IFERROR(BR85*INDEX('Energy Prices'!$F$12:$CR$17,MATCH('Data Input - Option 4'!$D93,'Energy Prices'!$C$12:$C$17,0),MATCH('Data Input - Option 4'!BR$7,'Energy Prices'!$F$11:$CR$11,0))/100000,\"\")","v":""},{"$f":"IFERROR(BS85*INDEX('Energy Prices'!$F$12:$CR$17,MATCH('Data Input - Option 4'!$D93,'Energy Prices'!$C$12:$C$17,0),MATCH('Data Input - Option 4'!BS$7,'Energy Prices'!$F$11:$CR$11,0))/100000,\"\")","v":""},{"$f":"IFERROR(BT85*INDEX('Energy Prices'!$F$12:$CR$17,MATCH('Data Input - Option 4'!$D93,'Energy Prices'!$C$12:$C$17,0),MATCH('Data Input - Option 4'!BT$7,'Energy Prices'!$F$11:$CR$11,0))/100000,\"\")","v":""},{"$f":"IFERROR(BU85*INDEX('Energy Prices'!$F$12:$CR$17,MATCH('Data Input - Option 4'!$D93,'Energy Prices'!$C$12:$C$17,0),MATCH('Data Input - Option 4'!BU$7,'Energy Prices'!$F$11:$CR$11,0))/100000,\"\")","v":""},{"$f":"IFERROR(BV85*INDEX('Energy Prices'!$F$12:$CR$17,MATCH('Data Input - Option 4'!$D93,'Energy Prices'!$C$12:$C$17,0),MATCH('Data Input - Option 4'!BV$7,'Energy Prices'!$F$11:$CR$11,0))/100000,\"\")","v":""},{"$f":"IFERROR(BW85*INDEX('Energy Prices'!$F$12:$CR$17,MATCH('Data Input - Option 4'!$D93,'Energy Prices'!$C$12:$C$17,0),MATCH('Data Input - Option 4'!BW$7,'Energy Prices'!$F$11:$CR$11,0))/100000,\"\")","v":""},{"$f":"IFERROR(BX85*INDEX('Energy Prices'!$F$12:$CR$17,MATCH('Data Input - Option 4'!$D93,'Energy Prices'!$C$12:$C$17,0),MATCH('Data Input - Option 4'!BX$7,'Energy Prices'!$F$11:$CR$11,0))/100000,\"\")","v":""},{"$f":"IFERROR(BY85*INDEX('Energy Prices'!$F$12:$CR$17,MATCH('Data Input - Option 4'!$D93,'Energy Prices'!$C$12:$C$17,0),MATCH('Data Input - Option 4'!BY$7,'Energy Prices'!$F$11:$CR$11,0))/100000,\"\")","v":""},{"$f":"IFERROR(BZ85*INDEX('Energy Prices'!$F$12:$CR$17,MATCH('Data Input - Option 4'!$D93,'Energy Prices'!$C$12:$C$17,0),MATCH('Data Input - Option 4'!BZ$7,'Energy Prices'!$F$11:$CR$11,0))/100000,\"\")","v":""},{"$f":"IFERROR(CA85*INDEX('Energy Prices'!$F$12:$CR$17,MATCH('Data Input - Option 4'!$D93,'Energy Prices'!$C$12:$C$17,0),MATCH('Data Input - Option 4'!CA$7,'Energy Prices'!$F$11:$CR$11,0))/100000,\"\")","v":""},{"$f":"IFERROR(CB85*INDEX('Energy Prices'!$F$12:$CR$17,MATCH('Data Input - Option 4'!$D93,'Energy Prices'!$C$12:$C$17,0),MATCH('Data Input - Option 4'!CB$7,'Energy Prices'!$F$11:$CR$11,0))/100000,\"\")","v":""},{"$f":"IFERROR(CC85*INDEX('Energy Prices'!$F$12:$CR$17,MATCH('Data Input - Option 4'!$D93,'Energy Prices'!$C$12:$C$17,0),MATCH('Data Input - Option 4'!CC$7,'Energy Prices'!$F$11:$CR$11,0))/100000,\"\")","v":""},{"$f":"IFERROR(CD85*INDEX('Energy Prices'!$F$12:$CR$17,MATCH('Data Input - Option 4'!$D93,'Energy Prices'!$C$12:$C$17,0),MATCH('Data Input - Option 4'!CD$7,'Energy Prices'!$F$11:$CR$11,0))/100000,\"\")","v":""},{"$f":"IFERROR(CE85*INDEX('Energy Prices'!$F$12:$CR$17,MATCH('Data Input - Option 4'!$D93,'Energy Prices'!$C$12:$C$17,0),MATCH('Data Input - Option 4'!CE$7,'Energy Prices'!$F$11:$CR$11,0))/100000,\"\")","v":""},{"$f":"IFERROR(CF85*INDEX('Energy Prices'!$F$12:$CR$17,MATCH('Data Input - Option 4'!$D93,'Energy Prices'!$C$12:$C$17,0),MATCH('Data Input - Option 4'!CF$7,'Energy Prices'!$F$11:$CR$11,0))/100000,\"\")","v":""},{"$f":"IFERROR(CG85*INDEX('Energy Prices'!$F$12:$CR$17,MATCH('Data Input - Option 4'!$D93,'Energy Prices'!$C$12:$C$17,0),MATCH('Data Input - Option 4'!CG$7,'Energy Prices'!$F$11:$CR$11,0))/100000,\"\")","v":""},{"$f":"IFERROR(CH85*INDEX('Energy Prices'!$F$12:$CR$17,MATCH('Data Input - Option 4'!$D93,'Energy Prices'!$C$12:$C$17,0),MATCH('Data Input - Option 4'!CH$7,'Energy Prices'!$F$11:$CR$11,0))/100000,\"\")","v":""},{"$f":"IFERROR(CI85*INDEX('Energy Prices'!$F$12:$CR$17,MATCH('Data Input - Option 4'!$D93,'Energy Prices'!$C$12:$C$17,0),MATCH('Data Input - Option 4'!CI$7,'Energy Prices'!$F$11:$CR$11,0))/100000,\"\")","v":""},{"$f":"IFERROR(CJ85*INDEX('Energy Prices'!$F$12:$CR$17,MATCH('Data Input - Option 4'!$D93,'Energy Prices'!$C$12:$C$17,0),MATCH('Data Input - Option 4'!CJ$7,'Energy Prices'!$F$11:$CR$11,0))/100000,\"\")","v":""},{"$f":"IFERROR(CK85*INDEX('Energy Prices'!$F$12:$CR$17,MATCH('Data Input - Option 4'!$D93,'Energy Prices'!$C$12:$C$17,0),MATCH('Data Input - Option 4'!CK$7,'Energy Prices'!$F$11:$CR$11,0))/100000,\"\")","v":""},{"$f":"IFERROR(CL85*INDEX('Energy Prices'!$F$12:$CR$17,MATCH('Data Input - Option 4'!$D93,'Energy Prices'!$C$12:$C$17,0),MATCH('Data Input - Option 4'!CL$7,'Energy Prices'!$F$11:$CR$11,0))/100000,\"\")","v":""},{"$f":"IFERROR(CM85*INDEX('Energy Prices'!$F$12:$CR$17,MATCH('Data Input - Option 4'!$D93,'Energy Prices'!$C$12:$C$17,0),MATCH('Data Input - Option 4'!CM$7,'Energy Prices'!$F$11:$CR$11,0))/100000,\"\")","v":""},{"$f":"IFERROR(CN85*INDEX('Energy Prices'!$F$12:$CR$17,MATCH('Data Input - Option 4'!$D93,'Energy Prices'!$C$12:$C$17,0),MATCH('Data Input - Option 4'!CN$7,'Energy Prices'!$F$11:$CR$11,0))/100000,\"\")","v":""},{"$f":"IFERROR(CO85*INDEX('Energy Prices'!$F$12:$CR$17,MATCH('Data Input - Option 4'!$D93,'Energy Prices'!$C$12:$C$17,0),MATCH('Data Input - Option 4'!CO$7,'Energy Prices'!$F$11:$CR$11,0))/100000,\"\")","v":""},{"$f":"IFERROR(CP85*INDEX('Energy Prices'!$F$12:$CR$17,MATCH('Data Input - Option 4'!$D93,'Energy Prices'!$C$12:$C$17,0),MATCH('Data Input - Option 4'!CP$7,'Energy Prices'!$F$11:$CR$11,0))/100000,\"\")","v":""},{"$f":"IFERROR(CQ85*INDEX('Energy Prices'!$F$12:$CR$17,MATCH('Data Input - Option 4'!$D93,'Energy Prices'!$C$12:$C$17,0),MATCH('Data Input - Option 4'!CQ$7,'Energy Prices'!$F$11:$CR$11,0))/100000,\"\")","v":""},{"$f":"IFERROR(CR85*INDEX('Energy Prices'!$F$12:$CR$17,MATCH('Data Input - Option 4'!$D93,'Energy Prices'!$C$12:$C$17,0),MATCH('Data Input - Option 4'!CR$7,'Energy Prices'!$F$11:$CR$11,0))/100000,\"\")","v":""},{"$f":"IFERROR(CS85*INDEX('Energy Prices'!$F$12:$CR$17,MATCH('Data Input - Option 4'!$D93,'Energy Prices'!$C$12:$C$17,0),MATCH('Data Input - Option 4'!CS$7,'Energy Prices'!$F$11:$CR$11,0))/100000,\"\")","v":""},{"$f":"IFERROR(CT85*INDEX('Energy Prices'!$F$12:$CR$17,MATCH('Data Input - Option 4'!$D93,'Energy Prices'!$C$12:$C$17,0),MATCH('Data Input - Option 4'!CT$7,'Energy Prices'!$F$11:$CR$11,0))/100000,\"\")","v":""},{"$f":"IFERROR(CU85*INDEX('Energy Prices'!$F$12:$CR$17,MATCH('Data Input - Option 4'!$D93,'Energy Prices'!$C$12:$C$17,0),MATCH('Data Input - Option 4'!CU$7,'Energy Prices'!$F$11:$CR$11,0))/100000,\"\")","v":""},{"$f":"IFERROR(CV85*INDEX('Energy Prices'!$F$12:$CR$17,MATCH('Data Input - Option 4'!$D93,'Energy Prices'!$C$12:$C$17,0),MATCH('Data Input - Option 4'!CV$7,'Energy Prices'!$F$11:$CR$11,0))/100000,\"\")","v":""},{"$f":"IFERROR(CW85*INDEX('Energy Prices'!$F$12:$CR$17,MATCH('Data Input - Option 4'!$D93,'Energy Prices'!$C$12:$C$17,0),MATCH('Data Input - Option 4'!CW$7,'Energy Prices'!$F$11:$CR$11,0))/100000,\"\")","v":""},{"$f":"IFERROR(CX85*INDEX('Energy Prices'!$F$12:$CR$17,MATCH('Data Input - Option 4'!$D93,'Energy Prices'!$C$12:$C$17,0),MATCH('Data Input - Option 4'!CX$7,'Energy Prices'!$F$11:$CR$11,0))/100000,\"\")","v":""},{"$f":"IFERROR(CY85*INDEX('Energy Prices'!$F$12:$CR$17,MATCH('Data Input - Option 4'!$D93,'Energy Prices'!$C$12:$C$17,0),MATCH('Data Input - Option 4'!CY$7,'Energy Prices'!$F$11:$CR$11,0))/100000,\"\")","v":""},{"$f":"IFERROR(CZ85*INDEX('Energy Prices'!$F$12:$CR$17,MATCH('Data Input - Option 4'!$D93,'Energy Prices'!$C$12:$C$17,0),MATCH('Data Input - Option 4'!CZ$7,'Energy Prices'!$F$11:$CR$11,0))/100000,\"\")","v":""},{"$f":"IFERROR(DA85*INDEX('Energy Prices'!$F$12:$CR$17,MATCH('Data Input - Option 4'!$D93,'Energy Prices'!$C$12:$C$17,0),MATCH('Data Input - Option 4'!DA$7,'Energy Prices'!$F$11:$CR$11,0))/100000,\"\")","v":""},{"$f":"IFERROR(DB85*INDEX('Energy Prices'!$F$12:$CR$17,MATCH('Data Input - Option 4'!$D93,'Energy Prices'!$C$12:$C$17,0),MATCH('Data Input - Option 4'!DB$7,'Energy Prices'!$F$11:$CR$11,0))/100000,\"\")","v":""},{"$f":"IFERROR(DC85*INDEX('Energy Prices'!$F$12:$CR$17,MATCH('Data Input - Option 4'!$D93,'Energy Prices'!$C$12:$C$17,0),MATCH('Data Input - Option 4'!DC$7,'Energy Prices'!$F$11:$CR$11,0))/100000,\"\")","v":""}]
[null,null,null,"Coal","£000's","(Auto calculated value)",null,{"$f":"IFERROR(H86*INDEX('Energy Prices'!$F$12:$CR$17,MATCH('Data Input - Option 4'!$D94,'Energy Prices'!$C$12:$C$17,0),MATCH('Data Input - Option 4'!H$7,'Energy Prices'!$F$11:$CR$11,0))/100000,\"\")","v":0},{"$f":"IFERROR(I86*INDEX('Energy Prices'!$F$12:$CR$17,MATCH('Data Input - Option 4'!$D94,'Energy Prices'!$C$12:$C$17,0),MATCH('Data Input - Option 4'!I$7,'Energy Prices'!$F$11:$CR$11,0))/100000,\"\")","v":0},{"$f":"IFERROR(J86*INDEX('Energy Prices'!$F$12:$CR$17,MATCH('Data Input - Option 4'!$D94,'Energy Prices'!$C$12:$C$17,0),MATCH('Data Input - Option 4'!J$7,'Energy Prices'!$F$11:$CR$11,0))/100000,\"\")","v":0},{"$f":"IFERROR(K86*INDEX('Energy Prices'!$F$12:$CR$17,MATCH('Data Input - Option 4'!$D94,'Energy Prices'!$C$12:$C$17,0),MATCH('Data Input - Option 4'!K$7,'Energy Prices'!$F$11:$CR$11,0))/100000,\"\")","v":0},{"$f":"IFERROR(L86*INDEX('Energy Prices'!$F$12:$CR$17,MATCH('Data Input - Option 4'!$D94,'Energy Prices'!$C$12:$C$17,0),MATCH('Data Input - Option 4'!L$7,'Energy Prices'!$F$11:$CR$11,0))/100000,\"\")","v":0},{"$f":"IFERROR(M86*INDEX('Energy Prices'!$F$12:$CR$17,MATCH('Data Input - Option 4'!$D94,'Energy Prices'!$C$12:$C$17,0),MATCH('Data Input - Option 4'!M$7,'Energy Prices'!$F$11:$CR$11,0))/100000,\"\")","v":0},{"$f":"IFERROR(N86*INDEX('Energy Prices'!$F$12:$CR$17,MATCH('Data Input - Option 4'!$D94,'Energy Prices'!$C$12:$C$17,0),MATCH('Data Input - Option 4'!N$7,'Energy Prices'!$F$11:$CR$11,0))/100000,\"\")","v":0},{"$f":"IFERROR(O86*INDEX('Energy Prices'!$F$12:$CR$17,MATCH('Data Input - Option 4'!$D94,'Energy Prices'!$C$12:$C$17,0),MATCH('Data Input - Option 4'!O$7,'Energy Prices'!$F$11:$CR$11,0))/100000,\"\")","v":0},{"$f":"IFERROR(P86*INDEX('Energy Prices'!$F$12:$CR$17,MATCH('Data Input - Option 4'!$D94,'Energy Prices'!$C$12:$C$17,0),MATCH('Data Input - Option 4'!P$7,'Energy Prices'!$F$11:$CR$11,0))/100000,\"\")","v":0},{"$f":"IFERROR(Q86*INDEX('Energy Prices'!$F$12:$CR$17,MATCH('Data Input - Option 4'!$D94,'Energy Prices'!$C$12:$C$17,0),MATCH('Data Input - Option 4'!Q$7,'Energy Prices'!$F$11:$CR$11,0))/100000,\"\")","v":0},{"$f":"IFERROR(R86*INDEX('Energy Prices'!$F$12:$CR$17,MATCH('Data Input - Option 4'!$D94,'Energy Prices'!$C$12:$C$17,0),MATCH('Data Input - Option 4'!R$7,'Energy Prices'!$F$11:$CR$11,0))/100000,\"\")","v":0},{"$f":"IFERROR(S86*INDEX('Energy Prices'!$F$12:$CR$17,MATCH('Data Input - Option 4'!$D94,'Energy Prices'!$C$12:$C$17,0),MATCH('Data Input - Option 4'!S$7,'Energy Prices'!$F$11:$CR$11,0))/100000,\"\")","v":0},{"$f":"IFERROR(T86*INDEX('Energy Prices'!$F$12:$CR$17,MATCH('Data Input - Option 4'!$D94,'Energy Prices'!$C$12:$C$17,0),MATCH('Data Input - Option 4'!T$7,'Energy Prices'!$F$11:$CR$11,0))/100000,\"\")","v":0},{"$f":"IFERROR(U86*INDEX('Energy Prices'!$F$12:$CR$17,MATCH('Data Input - Option 4'!$D94,'Energy Prices'!$C$12:$C$17,0),MATCH('Data Input - Option 4'!U$7,'Energy Prices'!$F$11:$CR$11,0))/100000,\"\")","v":0},{"$f":"IFERROR(V86*INDEX('Energy Prices'!$F$12:$CR$17,MATCH('Data Input - Option 4'!$D94,'Energy Prices'!$C$12:$C$17,0),MATCH('Data Input - Option 4'!V$7,'Energy Prices'!$F$11:$CR$11,0))/100000,\"\")","v":0},{"$f":"IFERROR(W86*INDEX('Energy Prices'!$F$12:$CR$17,MATCH('Data Input - Option 4'!$D94,'Energy Prices'!$C$12:$C$17,0),MATCH('Data Input - Option 4'!W$7,'Energy Prices'!$F$11:$CR$11,0))/100000,\"\")","v":0},{"$f":"IFERROR(X86*INDEX('Energy Prices'!$F$12:$CR$17,MATCH('Data Input - Option 4'!$D94,'Energy Prices'!$C$12:$C$17,0),MATCH('Data Input - Option 4'!X$7,'Energy Prices'!$F$11:$CR$11,0))/100000,\"\")","v":0},{"$f":"IFERROR(Y86*INDEX('Energy Prices'!$F$12:$CR$17,MATCH('Data Input - Option 4'!$D94,'Energy Prices'!$C$12:$C$17,0),MATCH('Data Input - Option 4'!Y$7,'Energy Prices'!$F$11:$CR$11,0))/100000,\"\")","v":0},{"$f":"IFERROR(Z86*INDEX('Energy Prices'!$F$12:$CR$17,MATCH('Data Input - Option 4'!$D94,'Energy Prices'!$C$12:$C$17,0),MATCH('Data Input - Option 4'!Z$7,'Energy Prices'!$F$11:$CR$11,0))/100000,\"\")","v":0},{"$f":"IFERROR(AA86*INDEX('Energy Prices'!$F$12:$CR$17,MATCH('Data Input - Option 4'!$D94,'Energy Prices'!$C$12:$C$17,0),MATCH('Data Input - Option 4'!AA$7,'Energy Prices'!$F$11:$CR$11,0))/100000,\"\")","v":0},{"$f":"IFERROR(AB86*INDEX('Energy Prices'!$F$12:$CR$17,MATCH('Data Input - Option 4'!$D94,'Energy Prices'!$C$12:$C$17,0),MATCH('Data Input - Option 4'!AB$7,'Energy Prices'!$F$11:$CR$11,0))/100000,\"\")","v":0},{"$f":"IFERROR(AC86*INDEX('Energy Prices'!$F$12:$CR$17,MATCH('Data Input - Option 4'!$D94,'Energy Prices'!$C$12:$C$17,0),MATCH('Data Input - Option 4'!AC$7,'Energy Prices'!$F$11:$CR$11,0))/100000,\"\")","v":0},{"$f":"IFERROR(AD86*INDEX('Energy Prices'!$F$12:$CR$17,MATCH('Data Input - Option 4'!$D94,'Energy Prices'!$C$12:$C$17,0),MATCH('Data Input - Option 4'!AD$7,'Energy Prices'!$F$11:$CR$11,0))/100000,\"\")","v":0},{"$f":"IFERROR(AE86*INDEX('Energy Prices'!$F$12:$CR$17,MATCH('Data Input - Option 4'!$D94,'Energy Prices'!$C$12:$C$17,0),MATCH('Data Input - Option 4'!AE$7,'Energy Prices'!$F$11:$CR$11,0))/100000,\"\")","v":0},{"$f":"IFERROR(AF86*INDEX('Energy Prices'!$F$12:$CR$17,MATCH('Data Input - Option 4'!$D94,'Energy Prices'!$C$12:$C$17,0),MATCH('Data Input - Option 4'!AF$7,'Energy Prices'!$F$11:$CR$11,0))/100000,\"\")","v":0},{"$f":"IFERROR(AG86*INDEX('Energy Prices'!$F$12:$CR$17,MATCH('Data Input - Option 4'!$D94,'Energy Prices'!$C$12:$C$17,0),MATCH('Data Input - Option 4'!AG$7,'Energy Prices'!$F$11:$CR$11,0))/100000,\"\")","v":0},{"$f":"IFERROR(AH86*INDEX('Energy Prices'!$F$12:$CR$17,MATCH('Data Input - Option 4'!$D94,'Energy Prices'!$C$12:$C$17,0),MATCH('Data Input - Option 4'!AH$7,'Energy Prices'!$F$11:$CR$11,0))/100000,\"\")","v":0},{"$f":"IFERROR(AI86*INDEX('Energy Prices'!$F$12:$CR$17,MATCH('Data Input - Option 4'!$D94,'Energy Prices'!$C$12:$C$17,0),MATCH('Data Input - Option 4'!AI$7,'Energy Prices'!$F$11:$CR$11,0))/100000,\"\")","v":0},{"$f":"IFERROR(AJ86*INDEX('Energy Prices'!$F$12:$CR$17,MATCH('Data Input - Option 4'!$D94,'Energy Prices'!$C$12:$C$17,0),MATCH('Data Input - Option 4'!AJ$7,'Energy Prices'!$F$11:$CR$11,0))/100000,\"\")","v":0},{"$f":"IFERROR(AK86*INDEX('Energy Prices'!$F$12:$CR$17,MATCH('Data Input - Option 4'!$D94,'Energy Prices'!$C$12:$C$17,0),MATCH('Data Input - Option 4'!AK$7,'Energy Prices'!$F$11:$CR$11,0))/100000,\"\")","v":0},{"$f":"IFERROR(AL86*INDEX('Energy Prices'!$F$12:$CR$17,MATCH('Data Input - Option 4'!$D94,'Energy Prices'!$C$12:$C$17,0),MATCH('Data Input - Option 4'!AL$7,'Energy Prices'!$F$11:$CR$11,0))/100000,\"\")","v":0},{"$f":"IFERROR(AM86*INDEX('Energy Prices'!$F$12:$CR$17,MATCH('Data Input - Option 4'!$D94,'Energy Prices'!$C$12:$C$17,0),MATCH('Data Input - Option 4'!AM$7,'Energy Prices'!$F$11:$CR$11,0))/100000,\"\")","v":""},{"$f":"IFERROR(AN86*INDEX('Energy Prices'!$F$12:$CR$17,MATCH('Data Input - Option 4'!$D94,'Energy Prices'!$C$12:$C$17,0),MATCH('Data Input - Option 4'!AN$7,'Energy Prices'!$F$11:$CR$11,0))/100000,\"\")","v":""},{"$f":"IFERROR(AO86*INDEX('Energy Prices'!$F$12:$CR$17,MATCH('Data Input - Option 4'!$D94,'Energy Prices'!$C$12:$C$17,0),MATCH('Data Input - Option 4'!AO$7,'Energy Prices'!$F$11:$CR$11,0))/100000,\"\")","v":""},{"$f":"IFERROR(AP86*INDEX('Energy Prices'!$F$12:$CR$17,MATCH('Data Input - Option 4'!$D94,'Energy Prices'!$C$12:$C$17,0),MATCH('Data Input - Option 4'!AP$7,'Energy Prices'!$F$11:$CR$11,0))/100000,\"\")","v":""},{"$f":"IFERROR(AQ86*INDEX('Energy Prices'!$F$12:$CR$17,MATCH('Data Input - Option 4'!$D94,'Energy Prices'!$C$12:$C$17,0),MATCH('Data Input - Option 4'!AQ$7,'Energy Prices'!$F$11:$CR$11,0))/100000,\"\")","v":""},{"$f":"IFERROR(AR86*INDEX('Energy Prices'!$F$12:$CR$17,MATCH('Data Input - Option 4'!$D94,'Energy Prices'!$C$12:$C$17,0),MATCH('Data Input - Option 4'!AR$7,'Energy Prices'!$F$11:$CR$11,0))/100000,\"\")","v":""},{"$f":"IFERROR(AS86*INDEX('Energy Prices'!$F$12:$CR$17,MATCH('Data Input - Option 4'!$D94,'Energy Prices'!$C$12:$C$17,0),MATCH('Data Input - Option 4'!AS$7,'Energy Prices'!$F$11:$CR$11,0))/100000,\"\")","v":""},{"$f":"IFERROR(AT86*INDEX('Energy Prices'!$F$12:$CR$17,MATCH('Data Input - Option 4'!$D94,'Energy Prices'!$C$12:$C$17,0),MATCH('Data Input - Option 4'!AT$7,'Energy Prices'!$F$11:$CR$11,0))/100000,\"\")","v":""},{"$f":"IFERROR(AU86*INDEX('Energy Prices'!$F$12:$CR$17,MATCH('Data Input - Option 4'!$D94,'Energy Prices'!$C$12:$C$17,0),MATCH('Data Input - Option 4'!AU$7,'Energy Prices'!$F$11:$CR$11,0))/100000,\"\")","v":""},{"$f":"IFERROR(AV86*INDEX('Energy Prices'!$F$12:$CR$17,MATCH('Data Input - Option 4'!$D94,'Energy Prices'!$C$12:$C$17,0),MATCH('Data Input - Option 4'!AV$7,'Energy Prices'!$F$11:$CR$11,0))/100000,\"\")","v":""},{"$f":"IFERROR(AW86*INDEX('Energy Prices'!$F$12:$CR$17,MATCH('Data Input - Option 4'!$D94,'Energy Prices'!$C$12:$C$17,0),MATCH('Data Input - Option 4'!AW$7,'Energy Prices'!$F$11:$CR$11,0))/100000,\"\")","v":""},{"$f":"IFERROR(AX86*INDEX('Energy Prices'!$F$12:$CR$17,MATCH('Data Input - Option 4'!$D94,'Energy Prices'!$C$12:$C$17,0),MATCH('Data Input - Option 4'!AX$7,'Energy Prices'!$F$11:$CR$11,0))/100000,\"\")","v":""},{"$f":"IFERROR(AY86*INDEX('Energy Prices'!$F$12:$CR$17,MATCH('Data Input - Option 4'!$D94,'Energy Prices'!$C$12:$C$17,0),MATCH('Data Input - Option 4'!AY$7,'Energy Prices'!$F$11:$CR$11,0))/100000,\"\")","v":""},{"$f":"IFERROR(AZ86*INDEX('Energy Prices'!$F$12:$CR$17,MATCH('Data Input - Option 4'!$D94,'Energy Prices'!$C$12:$C$17,0),MATCH('Data Input - Option 4'!AZ$7,'Energy Prices'!$F$11:$CR$11,0))/100000,\"\")","v":""},{"$f":"IFERROR(BA86*INDEX('Energy Prices'!$F$12:$CR$17,MATCH('Data Input - Option 4'!$D94,'Energy Prices'!$C$12:$C$17,0),MATCH('Data Input - Option 4'!BA$7,'Energy Prices'!$F$11:$CR$11,0))/100000,\"\")","v":""},{"$f":"IFERROR(BB86*INDEX('Energy Prices'!$F$12:$CR$17,MATCH('Data Input - Option 4'!$D94,'Energy Prices'!$C$12:$C$17,0),MATCH('Data Input - Option 4'!BB$7,'Energy Prices'!$F$11:$CR$11,0))/100000,\"\")","v":""},{"$f":"IFERROR(BC86*INDEX('Energy Prices'!$F$12:$CR$17,MATCH('Data Input - Option 4'!$D94,'Energy Prices'!$C$12:$C$17,0),MATCH('Data Input - Option 4'!BC$7,'Energy Prices'!$F$11:$CR$11,0))/100000,\"\")","v":""},{"$f":"IFERROR(BD86*INDEX('Energy Prices'!$F$12:$CR$17,MATCH('Data Input - Option 4'!$D94,'Energy Prices'!$C$12:$C$17,0),MATCH('Data Input - Option 4'!BD$7,'Energy Prices'!$F$11:$CR$11,0))/100000,\"\")","v":""},{"$f":"IFERROR(BE86*INDEX('Energy Prices'!$F$12:$CR$17,MATCH('Data Input - Option 4'!$D94,'Energy Prices'!$C$12:$C$17,0),MATCH('Data Input - Option 4'!BE$7,'Energy Prices'!$F$11:$CR$11,0))/100000,\"\")","v":""},{"$f":"IFERROR(BF86*INDEX('Energy Prices'!$F$12:$CR$17,MATCH('Data Input - Option 4'!$D94,'Energy Prices'!$C$12:$C$17,0),MATCH('Data Input - Option 4'!BF$7,'Energy Prices'!$F$11:$CR$11,0))/100000,\"\")","v":""},{"$f":"IFERROR(BG86*INDEX('Energy Prices'!$F$12:$CR$17,MATCH('Data Input - Option 4'!$D94,'Energy Prices'!$C$12:$C$17,0),MATCH('Data Input - Option 4'!BG$7,'Energy Prices'!$F$11:$CR$11,0))/100000,\"\")","v":""},{"$f":"IFERROR(BH86*INDEX('Energy Prices'!$F$12:$CR$17,MATCH('Data Input - Option 4'!$D94,'Energy Prices'!$C$12:$C$17,0),MATCH('Data Input - Option 4'!BH$7,'Energy Prices'!$F$11:$CR$11,0))/100000,\"\")","v":""},{"$f":"IFERROR(BI86*INDEX('Energy Prices'!$F$12:$CR$17,MATCH('Data Input - Option 4'!$D94,'Energy Prices'!$C$12:$C$17,0),MATCH('Data Input - Option 4'!BI$7,'Energy Prices'!$F$11:$CR$11,0))/100000,\"\")","v":""},{"$f":"IFERROR(BJ86*INDEX('Energy Prices'!$F$12:$CR$17,MATCH('Data Input - Option 4'!$D94,'Energy Prices'!$C$12:$C$17,0),MATCH('Data Input - Option 4'!BJ$7,'Energy Prices'!$F$11:$CR$11,0))/100000,\"\")","v":""},{"$f":"IFERROR(BK86*INDEX('Energy Prices'!$F$12:$CR$17,MATCH('Data Input - Option 4'!$D94,'Energy Prices'!$C$12:$C$17,0),MATCH('Data Input - Option 4'!BK$7,'Energy Prices'!$F$11:$CR$11,0))/100000,\"\")","v":""},{"$f":"IFERROR(BL86*INDEX('Energy Prices'!$F$12:$CR$17,MATCH('Data Input - Option 4'!$D94,'Energy Prices'!$C$12:$C$17,0),MATCH('Data Input - Option 4'!BL$7,'Energy Prices'!$F$11:$CR$11,0))/100000,\"\")","v":""},{"$f":"IFERROR(BM86*INDEX('Energy Prices'!$F$12:$CR$17,MATCH('Data Input - Option 4'!$D94,'Energy Prices'!$C$12:$C$17,0),MATCH('Data Input - Option 4'!BM$7,'Energy Prices'!$F$11:$CR$11,0))/100000,\"\")","v":""},{"$f":"IFERROR(BN86*INDEX('Energy Prices'!$F$12:$CR$17,MATCH('Data Input - Option 4'!$D94,'Energy Prices'!$C$12:$C$17,0),MATCH('Data Input - Option 4'!BN$7,'Energy Prices'!$F$11:$CR$11,0))/100000,\"\")","v":""},{"$f":"IFERROR(BO86*INDEX('Energy Prices'!$F$12:$CR$17,MATCH('Data Input - Option 4'!$D94,'Energy Prices'!$C$12:$C$17,0),MATCH('Data Input - Option 4'!BO$7,'Energy Prices'!$F$11:$CR$11,0))/100000,\"\")","v":""},{"$f":"IFERROR(BP86*INDEX('Energy Prices'!$F$12:$CR$17,MATCH('Data Input - Option 4'!$D94,'Energy Prices'!$C$12:$C$17,0),MATCH('Data Input - Option 4'!BP$7,'Energy Prices'!$F$11:$CR$11,0))/100000,\"\")","v":""},{"$f":"IFERROR(BQ86*INDEX('Energy Prices'!$F$12:$CR$17,MATCH('Data Input - Option 4'!$D94,'Energy Prices'!$C$12:$C$17,0),MATCH('Data Input - Option 4'!BQ$7,'Energy Prices'!$F$11:$CR$11,0))/100000,\"\")","v":""},{"$f":"IFERROR(BR86*INDEX('Energy Prices'!$F$12:$CR$17,MATCH('Data Input - Option 4'!$D94,'Energy Prices'!$C$12:$C$17,0),MATCH('Data Input - Option 4'!BR$7,'Energy Prices'!$F$11:$CR$11,0))/100000,\"\")","v":""},{"$f":"IFERROR(BS86*INDEX('Energy Prices'!$F$12:$CR$17,MATCH('Data Input - Option 4'!$D94,'Energy Prices'!$C$12:$C$17,0),MATCH('Data Input - Option 4'!BS$7,'Energy Prices'!$F$11:$CR$11,0))/100000,\"\")","v":""},{"$f":"IFERROR(BT86*INDEX('Energy Prices'!$F$12:$CR$17,MATCH('Data Input - Option 4'!$D94,'Energy Prices'!$C$12:$C$17,0),MATCH('Data Input - Option 4'!BT$7,'Energy Prices'!$F$11:$CR$11,0))/100000,\"\")","v":""},{"$f":"IFERROR(BU86*INDEX('Energy Prices'!$F$12:$CR$17,MATCH('Data Input - Option 4'!$D94,'Energy Prices'!$C$12:$C$17,0),MATCH('Data Input - Option 4'!BU$7,'Energy Prices'!$F$11:$CR$11,0))/100000,\"\")","v":""},{"$f":"IFERROR(BV86*INDEX('Energy Prices'!$F$12:$CR$17,MATCH('Data Input - Option 4'!$D94,'Energy Prices'!$C$12:$C$17,0),MATCH('Data Input - Option 4'!BV$7,'Energy Prices'!$F$11:$CR$11,0))/100000,\"\")","v":""},{"$f":"IFERROR(BW86*INDEX('Energy Prices'!$F$12:$CR$17,MATCH('Data Input - Option 4'!$D94,'Energy Prices'!$C$12:$C$17,0),MATCH('Data Input - Option 4'!BW$7,'Energy Prices'!$F$11:$CR$11,0))/100000,\"\")","v":""},{"$f":"IFERROR(BX86*INDEX('Energy Prices'!$F$12:$CR$17,MATCH('Data Input - Option 4'!$D94,'Energy Prices'!$C$12:$C$17,0),MATCH('Data Input - Option 4'!BX$7,'Energy Prices'!$F$11:$CR$11,0))/100000,\"\")","v":""},{"$f":"IFERROR(BY86*INDEX('Energy Prices'!$F$12:$CR$17,MATCH('Data Input - Option 4'!$D94,'Energy Prices'!$C$12:$C$17,0),MATCH('Data Input - Option 4'!BY$7,'Energy Prices'!$F$11:$CR$11,0))/100000,\"\")","v":""},{"$f":"IFERROR(BZ86*INDEX('Energy Prices'!$F$12:$CR$17,MATCH('Data Input - Option 4'!$D94,'Energy Prices'!$C$12:$C$17,0),MATCH('Data Input - Option 4'!BZ$7,'Energy Prices'!$F$11:$CR$11,0))/100000,\"\")","v":""},{"$f":"IFERROR(CA86*INDEX('Energy Prices'!$F$12:$CR$17,MATCH('Data Input - Option 4'!$D94,'Energy Prices'!$C$12:$C$17,0),MATCH('Data Input - Option 4'!CA$7,'Energy Prices'!$F$11:$CR$11,0))/100000,\"\")","v":""},{"$f":"IFERROR(CB86*INDEX('Energy Prices'!$F$12:$CR$17,MATCH('Data Input - Option 4'!$D94,'Energy Prices'!$C$12:$C$17,0),MATCH('Data Input - Option 4'!CB$7,'Energy Prices'!$F$11:$CR$11,0))/100000,\"\")","v":""},{"$f":"IFERROR(CC86*INDEX('Energy Prices'!$F$12:$CR$17,MATCH('Data Input - Option 4'!$D94,'Energy Prices'!$C$12:$C$17,0),MATCH('Data Input - Option 4'!CC$7,'Energy Prices'!$F$11:$CR$11,0))/100000,\"\")","v":""},{"$f":"IFERROR(CD86*INDEX('Energy Prices'!$F$12:$CR$17,MATCH('Data Input - Option 4'!$D94,'Energy Prices'!$C$12:$C$17,0),MATCH('Data Input - Option 4'!CD$7,'Energy Prices'!$F$11:$CR$11,0))/100000,\"\")","v":""},{"$f":"IFERROR(CE86*INDEX('Energy Prices'!$F$12:$CR$17,MATCH('Data Input - Option 4'!$D94,'Energy Prices'!$C$12:$C$17,0),MATCH('Data Input - Option 4'!CE$7,'Energy Prices'!$F$11:$CR$11,0))/100000,\"\")","v":""},{"$f":"IFERROR(CF86*INDEX('Energy Prices'!$F$12:$CR$17,MATCH('Data Input - Option 4'!$D94,'Energy Prices'!$C$12:$C$17,0),MATCH('Data Input - Option 4'!CF$7,'Energy Prices'!$F$11:$CR$11,0))/100000,\"\")","v":""},{"$f":"IFERROR(CG86*INDEX('Energy Prices'!$F$12:$CR$17,MATCH('Data Input - Option 4'!$D94,'Energy Prices'!$C$12:$C$17,0),MATCH('Data Input - Option 4'!CG$7,'Energy Prices'!$F$11:$CR$11,0))/100000,\"\")","v":""},{"$f":"IFERROR(CH86*INDEX('Energy Prices'!$F$12:$CR$17,MATCH('Data Input - Option 4'!$D94,'Energy Prices'!$C$12:$C$17,0),MATCH('Data Input - Option 4'!CH$7,'Energy Prices'!$F$11:$CR$11,0))/100000,\"\")","v":""},{"$f":"IFERROR(CI86*INDEX('Energy Prices'!$F$12:$CR$17,MATCH('Data Input - Option 4'!$D94,'Energy Prices'!$C$12:$C$17,0),MATCH('Data Input - Option 4'!CI$7,'Energy Prices'!$F$11:$CR$11,0))/100000,\"\")","v":""},{"$f":"IFERROR(CJ86*INDEX('Energy Prices'!$F$12:$CR$17,MATCH('Data Input - Option 4'!$D94,'Energy Prices'!$C$12:$C$17,0),MATCH('Data Input - Option 4'!CJ$7,'Energy Prices'!$F$11:$CR$11,0))/100000,\"\")","v":""},{"$f":"IFERROR(CK86*INDEX('Energy Prices'!$F$12:$CR$17,MATCH('Data Input - Option 4'!$D94,'Energy Prices'!$C$12:$C$17,0),MATCH('Data Input - Option 4'!CK$7,'Energy Prices'!$F$11:$CR$11,0))/100000,\"\")","v":""},{"$f":"IFERROR(CL86*INDEX('Energy Prices'!$F$12:$CR$17,MATCH('Data Input - Option 4'!$D94,'Energy Prices'!$C$12:$C$17,0),MATCH('Data Input - Option 4'!CL$7,'Energy Prices'!$F$11:$CR$11,0))/100000,\"\")","v":""},{"$f":"IFERROR(CM86*INDEX('Energy Prices'!$F$12:$CR$17,MATCH('Data Input - Option 4'!$D94,'Energy Prices'!$C$12:$C$17,0),MATCH('Data Input - Option 4'!CM$7,'Energy Prices'!$F$11:$CR$11,0))/100000,\"\")","v":""},{"$f":"IFERROR(CN86*INDEX('Energy Prices'!$F$12:$CR$17,MATCH('Data Input - Option 4'!$D94,'Energy Prices'!$C$12:$C$17,0),MATCH('Data Input - Option 4'!CN$7,'Energy Prices'!$F$11:$CR$11,0))/100000,\"\")","v":""},{"$f":"IFERROR(CO86*INDEX('Energy Prices'!$F$12:$CR$17,MATCH('Data Input - Option 4'!$D94,'Energy Prices'!$C$12:$C$17,0),MATCH('Data Input - Option 4'!CO$7,'Energy Prices'!$F$11:$CR$11,0))/100000,\"\")","v":""},{"$f":"IFERROR(CP86*INDEX('Energy Prices'!$F$12:$CR$17,MATCH('Data Input - Option 4'!$D94,'Energy Prices'!$C$12:$C$17,0),MATCH('Data Input - Option 4'!CP$7,'Energy Prices'!$F$11:$CR$11,0))/100000,\"\")","v":""},{"$f":"IFERROR(CQ86*INDEX('Energy Prices'!$F$12:$CR$17,MATCH('Data Input - Option 4'!$D94,'Energy Prices'!$C$12:$C$17,0),MATCH('Data Input - Option 4'!CQ$7,'Energy Prices'!$F$11:$CR$11,0))/100000,\"\")","v":""},{"$f":"IFERROR(CR86*INDEX('Energy Prices'!$F$12:$CR$17,MATCH('Data Input - Option 4'!$D94,'Energy Prices'!$C$12:$C$17,0),MATCH('Data Input - Option 4'!CR$7,'Energy Prices'!$F$11:$CR$11,0))/100000,\"\")","v":""},{"$f":"IFERROR(CS86*INDEX('Energy Prices'!$F$12:$CR$17,MATCH('Data Input - Option 4'!$D94,'Energy Prices'!$C$12:$C$17,0),MATCH('Data Input - Option 4'!CS$7,'Energy Prices'!$F$11:$CR$11,0))/100000,\"\")","v":""},{"$f":"IFERROR(CT86*INDEX('Energy Prices'!$F$12:$CR$17,MATCH('Data Input - Option 4'!$D94,'Energy Prices'!$C$12:$C$17,0),MATCH('Data Input - Option 4'!CT$7,'Energy Prices'!$F$11:$CR$11,0))/100000,\"\")","v":""},{"$f":"IFERROR(CU86*INDEX('Energy Prices'!$F$12:$CR$17,MATCH('Data Input - Option 4'!$D94,'Energy Prices'!$C$12:$C$17,0),MATCH('Data Input - Option 4'!CU$7,'Energy Prices'!$F$11:$CR$11,0))/100000,\"\")","v":""},{"$f":"IFERROR(CV86*INDEX('Energy Prices'!$F$12:$CR$17,MATCH('Data Input - Option 4'!$D94,'Energy Prices'!$C$12:$C$17,0),MATCH('Data Input - Option 4'!CV$7,'Energy Prices'!$F$11:$CR$11,0))/100000,\"\")","v":""},{"$f":"IFERROR(CW86*INDEX('Energy Prices'!$F$12:$CR$17,MATCH('Data Input - Option 4'!$D94,'Energy Prices'!$C$12:$C$17,0),MATCH('Data Input - Option 4'!CW$7,'Energy Prices'!$F$11:$CR$11,0))/100000,\"\")","v":""},{"$f":"IFERROR(CX86*INDEX('Energy Prices'!$F$12:$CR$17,MATCH('Data Input - Option 4'!$D94,'Energy Prices'!$C$12:$C$17,0),MATCH('Data Input - Option 4'!CX$7,'Energy Prices'!$F$11:$CR$11,0))/100000,\"\")","v":""},{"$f":"IFERROR(CY86*INDEX('Energy Prices'!$F$12:$CR$17,MATCH('Data Input - Option 4'!$D94,'Energy Prices'!$C$12:$C$17,0),MATCH('Data Input - Option 4'!CY$7,'Energy Prices'!$F$11:$CR$11,0))/100000,\"\")","v":""},{"$f":"IFERROR(CZ86*INDEX('Energy Prices'!$F$12:$CR$17,MATCH('Data Input - Option 4'!$D94,'Energy Prices'!$C$12:$C$17,0),MATCH('Data Input - Option 4'!CZ$7,'Energy Prices'!$F$11:$CR$11,0))/100000,\"\")","v":""},{"$f":"IFERROR(DA86*INDEX('Energy Prices'!$F$12:$CR$17,MATCH('Data Input - Option 4'!$D94,'Energy Prices'!$C$12:$C$17,0),MATCH('Data Input - Option 4'!DA$7,'Energy Prices'!$F$11:$CR$11,0))/100000,\"\")","v":""},{"$f":"IFERROR(DB86*INDEX('Energy Prices'!$F$12:$CR$17,MATCH('Data Input - Option 4'!$D94,'Energy Prices'!$C$12:$C$17,0),MATCH('Data Input - Option 4'!DB$7,'Energy Prices'!$F$11:$CR$11,0))/100000,\"\")","v":""},{"$f":"IFERROR(DC86*INDEX('Energy Prices'!$F$12:$CR$17,MATCH('Data Input - Option 4'!$D94,'Energy Prices'!$C$12:$C$17,0),MATCH('Data Input - Option 4'!DC$7,'Energy Prices'!$F$11:$CR$11,0))/100000,\"\")","v":""}]
[null,null,null,"Gas Oil","£000's","(Auto calculated value)",null,{"$f":"IFERROR(H87*INDEX('Energy Prices'!$F$12:$CR$17,MATCH('Data Input - Option 4'!$D95,'Energy Prices'!$C$12:$C$17,0),MATCH('Data Input - Option 4'!H$7,'Energy Prices'!$F$11:$CR$11,0))/100000,\"\")","v":5.0932081704451121E-4},{"$f":"IFERROR(I87*INDEX('Energy Prices'!$F$12:$CR$17,MATCH('Data Input - Option 4'!$D95,'Energy Prices'!$C$12:$C$17,0),MATCH('Data Input - Option 4'!I$7,'Energy Prices'!$F$11:$CR$11,0))/100000,\"\")","v":0},{"$f":"IFERROR(J87*INDEX('Energy Prices'!$F$12:$CR$17,MATCH('Data Input - Option 4'!$D95,'Energy Prices'!$C$12:$C$17,0),MATCH('Data Input - Option 4'!J$7,'Energy Prices'!$F$11:$CR$11,0))/100000,\"\")","v":0},{"$f":"IFERROR(K87*INDEX('Energy Prices'!$F$12:$CR$17,MATCH('Data Input - Option 4'!$D95,'Energy Prices'!$C$12:$C$17,0),MATCH('Data Input - Option 4'!K$7,'Energy Prices'!$F$11:$CR$11,0))/100000,\"\")","v":0},{"$f":"IFERROR(L87*INDEX('Energy Prices'!$F$12:$CR$17,MATCH('Data Input - Option 4'!$D95,'Energy Prices'!$C$12:$C$17,0),MATCH('Data Input - Option 4'!L$7,'Energy Prices'!$F$11:$CR$11,0))/100000,\"\")","v":0},{"$f":"IFERROR(M87*INDEX('Energy Prices'!$F$12:$CR$17,MATCH('Data Input - Option 4'!$D95,'Energy Prices'!$C$12:$C$17,0),MATCH('Data Input - Option 4'!M$7,'Energy Prices'!$F$11:$CR$11,0))/100000,\"\")","v":0},{"$f":"IFERROR(N87*INDEX('Energy Prices'!$F$12:$CR$17,MATCH('Data Input - Option 4'!$D95,'Energy Prices'!$C$12:$C$17,0),MATCH('Data Input - Option 4'!N$7,'Energy Prices'!$F$11:$CR$11,0))/100000,\"\")","v":0},{"$f":"IFERROR(O87*INDEX('Energy Prices'!$F$12:$CR$17,MATCH('Data Input - Option 4'!$D95,'Energy Prices'!$C$12:$C$17,0),MATCH('Data Input - Option 4'!O$7,'Energy Prices'!$F$11:$CR$11,0))/100000,\"\")","v":0},{"$f":"IFERROR(P87*INDEX('Energy Prices'!$F$12:$CR$17,MATCH('Data Input - Option 4'!$D95,'Energy Prices'!$C$12:$C$17,0),MATCH('Data Input - Option 4'!P$7,'Energy Prices'!$F$11:$CR$11,0))/100000,\"\")","v":0},{"$f":"IFERROR(Q87*INDEX('Energy Prices'!$F$12:$CR$17,MATCH('Data Input - Option 4'!$D95,'Energy Prices'!$C$12:$C$17,0),MATCH('Data Input - Option 4'!Q$7,'Energy Prices'!$F$11:$CR$11,0))/100000,\"\")","v":0},{"$f":"IFERROR(R87*INDEX('Energy Prices'!$F$12:$CR$17,MATCH('Data Input - Option 4'!$D95,'Energy Prices'!$C$12:$C$17,0),MATCH('Data Input - Option 4'!R$7,'Energy Prices'!$F$11:$CR$11,0))/100000,\"\")","v":0},{"$f":"IFERROR(S87*INDEX('Energy Prices'!$F$12:$CR$17,MATCH('Data Input - Option 4'!$D95,'Energy Prices'!$C$12:$C$17,0),MATCH('Data Input - Option 4'!S$7,'Energy Prices'!$F$11:$CR$11,0))/100000,\"\")","v":0},{"$f":"IFERROR(T87*INDEX('Energy Prices'!$F$12:$CR$17,MATCH('Data Input - Option 4'!$D95,'Energy Prices'!$C$12:$C$17,0),MATCH('Data Input - Option 4'!T$7,'Energy Prices'!$F$11:$CR$11,0))/100000,\"\")","v":0},{"$f":"IFERROR(U87*INDEX('Energy Prices'!$F$12:$CR$17,MATCH('Data Input - Option 4'!$D95,'Energy Prices'!$C$12:$C$17,0),MATCH('Data Input - Option 4'!U$7,'Energy Prices'!$F$11:$CR$11,0))/100000,\"\")","v":0},{"$f":"IFERROR(V87*INDEX('Energy Prices'!$F$12:$CR$17,MATCH('Data Input - Option 4'!$D95,'Energy Prices'!$C$12:$C$17,0),MATCH('Data Input - Option 4'!V$7,'Energy Prices'!$F$11:$CR$11,0))/100000,\"\")","v":0},{"$f":"IFERROR(W87*INDEX('Energy Prices'!$F$12:$CR$17,MATCH('Data Input - Option 4'!$D95,'Energy Prices'!$C$12:$C$17,0),MATCH('Data Input - Option 4'!W$7,'Energy Prices'!$F$11:$CR$11,0))/100000,\"\")","v":0},{"$f":"IFERROR(X87*INDEX('Energy Prices'!$F$12:$CR$17,MATCH('Data Input - Option 4'!$D95,'Energy Prices'!$C$12:$C$17,0),MATCH('Data Input - Option 4'!X$7,'Energy Prices'!$F$11:$CR$11,0))/100000,\"\")","v":0},{"$f":"IFERROR(Y87*INDEX('Energy Prices'!$F$12:$CR$17,MATCH('Data Input - Option 4'!$D95,'Energy Prices'!$C$12:$C$17,0),MATCH('Data Input - Option 4'!Y$7,'Energy Prices'!$F$11:$CR$11,0))/100000,\"\")","v":0},{"$f":"IFERROR(Z87*INDEX('Energy Prices'!$F$12:$CR$17,MATCH('Data Input - Option 4'!$D95,'Energy Prices'!$C$12:$C$17,0),MATCH('Data Input - Option 4'!Z$7,'Energy Prices'!$F$11:$CR$11,0))/100000,\"\")","v":0},{"$f":"IFERROR(AA87*INDEX('Energy Prices'!$F$12:$CR$17,MATCH('Data Input - Option 4'!$D95,'Energy Prices'!$C$12:$C$17,0),MATCH('Data Input - Option 4'!AA$7,'Energy Prices'!$F$11:$CR$11,0))/100000,\"\")","v":0},{"$f":"IFERROR(AB87*INDEX('Energy Prices'!$F$12:$CR$17,MATCH('Data Input - Option 4'!$D95,'Energy Prices'!$C$12:$C$17,0),MATCH('Data Input - Option 4'!AB$7,'Energy Prices'!$F$11:$CR$11,0))/100000,\"\")","v":0},{"$f":"IFERROR(AC87*INDEX('Energy Prices'!$F$12:$CR$17,MATCH('Data Input - Option 4'!$D95,'Energy Prices'!$C$12:$C$17,0),MATCH('Data Input - Option 4'!AC$7,'Energy Prices'!$F$11:$CR$11,0))/100000,\"\")","v":0},{"$f":"IFERROR(AD87*INDEX('Energy Prices'!$F$12:$CR$17,MATCH('Data Input - Option 4'!$D95,'Energy Prices'!$C$12:$C$17,0),MATCH('Data Input - Option 4'!AD$7,'Energy Prices'!$F$11:$CR$11,0))/100000,\"\")","v":0},{"$f":"IFERROR(AE87*INDEX('Energy Prices'!$F$12:$CR$17,MATCH('Data Input - Option 4'!$D95,'Energy Prices'!$C$12:$C$17,0),MATCH('Data Input - Option 4'!AE$7,'Energy Prices'!$F$11:$CR$11,0))/100000,\"\")","v":0},{"$f":"IFERROR(AF87*INDEX('Energy Prices'!$F$12:$CR$17,MATCH('Data Input - Option 4'!$D95,'Energy Prices'!$C$12:$C$17,0),MATCH('Data Input - Option 4'!AF$7,'Energy Prices'!$F$11:$CR$11,0))/100000,\"\")","v":0},{"$f":"IFERROR(AG87*INDEX('Energy Prices'!$F$12:$CR$17,MATCH('Data Input - Option 4'!$D95,'Energy Prices'!$C$12:$C$17,0),MATCH('Data Input - Option 4'!AG$7,'Energy Prices'!$F$11:$CR$11,0))/100000,\"\")","v":0},{"$f":"IFERROR(AH87*INDEX('Energy Prices'!$F$12:$CR$17,MATCH('Data Input - Option 4'!$D95,'Energy Prices'!$C$12:$C$17,0),MATCH('Data Input - Option 4'!AH$7,'Energy Prices'!$F$11:$CR$11,0))/100000,\"\")","v":0},{"$f":"IFERROR(AI87*INDEX('Energy Prices'!$F$12:$CR$17,MATCH('Data Input - Option 4'!$D95,'Energy Prices'!$C$12:$C$17,0),MATCH('Data Input - Option 4'!AI$7,'Energy Prices'!$F$11:$CR$11,0))/100000,\"\")","v":0},{"$f":"IFERROR(AJ87*INDEX('Energy Prices'!$F$12:$CR$17,MATCH('Data Input - Option 4'!$D95,'Energy Prices'!$C$12:$C$17,0),MATCH('Data Input - Option 4'!AJ$7,'Energy Prices'!$F$11:$CR$11,0))/100000,\"\")","v":0},{"$f":"IFERROR(AK87*INDEX('Energy Prices'!$F$12:$CR$17,MATCH('Data Input - Option 4'!$D95,'Energy Prices'!$C$12:$C$17,0),MATCH('Data Input - Option 4'!AK$7,'Energy Prices'!$F$11:$CR$11,0))/100000,\"\")","v":0},{"$f":"IFERROR(AL87*INDEX('Energy Prices'!$F$12:$CR$17,MATCH('Data Input - Option 4'!$D95,'Energy Prices'!$C$12:$C$17,0),MATCH('Data Input - Option 4'!AL$7,'Energy Prices'!$F$11:$CR$11,0))/100000,\"\")","v":0},{"$f":"IFERROR(AM87*INDEX('Energy Prices'!$F$12:$CR$17,MATCH('Data Input - Option 4'!$D95,'Energy Prices'!$C$12:$C$17,0),MATCH('Data Input - Option 4'!AM$7,'Energy Prices'!$F$11:$CR$11,0))/100000,\"\")","v":""},{"$f":"IFERROR(AN87*INDEX('Energy Prices'!$F$12:$CR$17,MATCH('Data Input - Option 4'!$D95,'Energy Prices'!$C$12:$C$17,0),MATCH('Data Input - Option 4'!AN$7,'Energy Prices'!$F$11:$CR$11,0))/100000,\"\")","v":""},{"$f":"IFERROR(AO87*INDEX('Energy Prices'!$F$12:$CR$17,MATCH('Data Input - Option 4'!$D95,'Energy Prices'!$C$12:$C$17,0),MATCH('Data Input - Option 4'!AO$7,'Energy Prices'!$F$11:$CR$11,0))/100000,\"\")","v":""},{"$f":"IFERROR(AP87*INDEX('Energy Prices'!$F$12:$CR$17,MATCH('Data Input - Option 4'!$D95,'Energy Prices'!$C$12:$C$17,0),MATCH('Data Input - Option 4'!AP$7,'Energy Prices'!$F$11:$CR$11,0))/100000,\"\")","v":""},{"$f":"IFERROR(AQ87*INDEX('Energy Prices'!$F$12:$CR$17,MATCH('Data Input - Option 4'!$D95,'Energy Prices'!$C$12:$C$17,0),MATCH('Data Input - Option 4'!AQ$7,'Energy Prices'!$F$11:$CR$11,0))/100000,\"\")","v":""},{"$f":"IFERROR(AR87*INDEX('Energy Prices'!$F$12:$CR$17,MATCH('Data Input - Option 4'!$D95,'Energy Prices'!$C$12:$C$17,0),MATCH('Data Input - Option 4'!AR$7,'Energy Prices'!$F$11:$CR$11,0))/100000,\"\")","v":""},{"$f":"IFERROR(AS87*INDEX('Energy Prices'!$F$12:$CR$17,MATCH('Data Input - Option 4'!$D95,'Energy Prices'!$C$12:$C$17,0),MATCH('Data Input - Option 4'!AS$7,'Energy Prices'!$F$11:$CR$11,0))/100000,\"\")","v":""},{"$f":"IFERROR(AT87*INDEX('Energy Prices'!$F$12:$CR$17,MATCH('Data Input - Option 4'!$D95,'Energy Prices'!$C$12:$C$17,0),MATCH('Data Input - Option 4'!AT$7,'Energy Prices'!$F$11:$CR$11,0))/100000,\"\")","v":""},{"$f":"IFERROR(AU87*INDEX('Energy Prices'!$F$12:$CR$17,MATCH('Data Input - Option 4'!$D95,'Energy Prices'!$C$12:$C$17,0),MATCH('Data Input - Option 4'!AU$7,'Energy Prices'!$F$11:$CR$11,0))/100000,\"\")","v":""},{"$f":"IFERROR(AV87*INDEX('Energy Prices'!$F$12:$CR$17,MATCH('Data Input - Option 4'!$D95,'Energy Prices'!$C$12:$C$17,0),MATCH('Data Input - Option 4'!AV$7,'Energy Prices'!$F$11:$CR$11,0))/100000,\"\")","v":""},{"$f":"IFERROR(AW87*INDEX('Energy Prices'!$F$12:$CR$17,MATCH('Data Input - Option 4'!$D95,'Energy Prices'!$C$12:$C$17,0),MATCH('Data Input - Option 4'!AW$7,'Energy Prices'!$F$11:$CR$11,0))/100000,\"\")","v":""},{"$f":"IFERROR(AX87*INDEX('Energy Prices'!$F$12:$CR$17,MATCH('Data Input - Option 4'!$D95,'Energy Prices'!$C$12:$C$17,0),MATCH('Data Input - Option 4'!AX$7,'Energy Prices'!$F$11:$CR$11,0))/100000,\"\")","v":""},{"$f":"IFERROR(AY87*INDEX('Energy Prices'!$F$12:$CR$17,MATCH('Data Input - Option 4'!$D95,'Energy Prices'!$C$12:$C$17,0),MATCH('Data Input - Option 4'!AY$7,'Energy Prices'!$F$11:$CR$11,0))/100000,\"\")","v":""},{"$f":"IFERROR(AZ87*INDEX('Energy Prices'!$F$12:$CR$17,MATCH('Data Input - Option 4'!$D95,'Energy Prices'!$C$12:$C$17,0),MATCH('Data Input - Option 4'!AZ$7,'Energy Prices'!$F$11:$CR$11,0))/100000,\"\")","v":""},{"$f":"IFERROR(BA87*INDEX('Energy Prices'!$F$12:$CR$17,MATCH('Data Input - Option 4'!$D95,'Energy Prices'!$C$12:$C$17,0),MATCH('Data Input - Option 4'!BA$7,'Energy Prices'!$F$11:$CR$11,0))/100000,\"\")","v":""},{"$f":"IFERROR(BB87*INDEX('Energy Prices'!$F$12:$CR$17,MATCH('Data Input - Option 4'!$D95,'Energy Prices'!$C$12:$C$17,0),MATCH('Data Input - Option 4'!BB$7,'Energy Prices'!$F$11:$CR$11,0))/100000,\"\")","v":""},{"$f":"IFERROR(BC87*INDEX('Energy Prices'!$F$12:$CR$17,MATCH('Data Input - Option 4'!$D95,'Energy Prices'!$C$12:$C$17,0),MATCH('Data Input - Option 4'!BC$7,'Energy Prices'!$F$11:$CR$11,0))/100000,\"\")","v":""},{"$f":"IFERROR(BD87*INDEX('Energy Prices'!$F$12:$CR$17,MATCH('Data Input - Option 4'!$D95,'Energy Prices'!$C$12:$C$17,0),MATCH('Data Input - Option 4'!BD$7,'Energy Prices'!$F$11:$CR$11,0))/100000,\"\")","v":""},{"$f":"IFERROR(BE87*INDEX('Energy Prices'!$F$12:$CR$17,MATCH('Data Input - Option 4'!$D95,'Energy Prices'!$C$12:$C$17,0),MATCH('Data Input - Option 4'!BE$7,'Energy Prices'!$F$11:$CR$11,0))/100000,\"\")","v":""},{"$f":"IFERROR(BF87*INDEX('Energy Prices'!$F$12:$CR$17,MATCH('Data Input - Option 4'!$D95,'Energy Prices'!$C$12:$C$17,0),MATCH('Data Input - Option 4'!BF$7,'Energy Prices'!$F$11:$CR$11,0))/100000,\"\")","v":""},{"$f":"IFERROR(BG87*INDEX('Energy Prices'!$F$12:$CR$17,MATCH('Data Input - Option 4'!$D95,'Energy Prices'!$C$12:$C$17,0),MATCH('Data Input - Option 4'!BG$7,'Energy Prices'!$F$11:$CR$11,0))/100000,\"\")","v":""},{"$f":"IFERROR(BH87*INDEX('Energy Prices'!$F$12:$CR$17,MATCH('Data Input - Option 4'!$D95,'Energy Prices'!$C$12:$C$17,0),MATCH('Data Input - Option 4'!BH$7,'Energy Prices'!$F$11:$CR$11,0))/100000,\"\")","v":""},{"$f":"IFERROR(BI87*INDEX('Energy Prices'!$F$12:$CR$17,MATCH('Data Input - Option 4'!$D95,'Energy Prices'!$C$12:$C$17,0),MATCH('Data Input - Option 4'!BI$7,'Energy Prices'!$F$11:$CR$11,0))/100000,\"\")","v":""},{"$f":"IFERROR(BJ87*INDEX('Energy Prices'!$F$12:$CR$17,MATCH('Data Input - Option 4'!$D95,'Energy Prices'!$C$12:$C$17,0),MATCH('Data Input - Option 4'!BJ$7,'Energy Prices'!$F$11:$CR$11,0))/100000,\"\")","v":""},{"$f":"IFERROR(BK87*INDEX('Energy Prices'!$F$12:$CR$17,MATCH('Data Input - Option 4'!$D95,'Energy Prices'!$C$12:$C$17,0),MATCH('Data Input - Option 4'!BK$7,'Energy Prices'!$F$11:$CR$11,0))/100000,\"\")","v":""},{"$f":"IFERROR(BL87*INDEX('Energy Prices'!$F$12:$CR$17,MATCH('Data Input - Option 4'!$D95,'Energy Prices'!$C$12:$C$17,0),MATCH('Data Input - Option 4'!BL$7,'Energy Prices'!$F$11:$CR$11,0))/100000,\"\")","v":""},{"$f":"IFERROR(BM87*INDEX('Energy Prices'!$F$12:$CR$17,MATCH('Data Input - Option 4'!$D95,'Energy Prices'!$C$12:$C$17,0),MATCH('Data Input - Option 4'!BM$7,'Energy Prices'!$F$11:$CR$11,0))/100000,\"\")","v":""},{"$f":"IFERROR(BN87*INDEX('Energy Prices'!$F$12:$CR$17,MATCH('Data Input - Option 4'!$D95,'Energy Prices'!$C$12:$C$17,0),MATCH('Data Input - Option 4'!BN$7,'Energy Prices'!$F$11:$CR$11,0))/100000,\"\")","v":""},{"$f":"IFERROR(BO87*INDEX('Energy Prices'!$F$12:$CR$17,MATCH('Data Input - Option 4'!$D95,'Energy Prices'!$C$12:$C$17,0),MATCH('Data Input - Option 4'!BO$7,'Energy Prices'!$F$11:$CR$11,0))/100000,\"\")","v":""},{"$f":"IFERROR(BP87*INDEX('Energy Prices'!$F$12:$CR$17,MATCH('Data Input - Option 4'!$D95,'Energy Prices'!$C$12:$C$17,0),MATCH('Data Input - Option 4'!BP$7,'Energy Prices'!$F$11:$CR$11,0))/100000,\"\")","v":""},{"$f":"IFERROR(BQ87*INDEX('Energy Prices'!$F$12:$CR$17,MATCH('Data Input - Option 4'!$D95,'Energy Prices'!$C$12:$C$17,0),MATCH('Data Input - Option 4'!BQ$7,'Energy Prices'!$F$11:$CR$11,0))/100000,\"\")","v":""},{"$f":"IFERROR(BR87*INDEX('Energy Prices'!$F$12:$CR$17,MATCH('Data Input - Option 4'!$D95,'Energy Prices'!$C$12:$C$17,0),MATCH('Data Input - Option 4'!BR$7,'Energy Prices'!$F$11:$CR$11,0))/100000,\"\")","v":""},{"$f":"IFERROR(BS87*INDEX('Energy Prices'!$F$12:$CR$17,MATCH('Data Input - Option 4'!$D95,'Energy Prices'!$C$12:$C$17,0),MATCH('Data Input - Option 4'!BS$7,'Energy Prices'!$F$11:$CR$11,0))/100000,\"\")","v":""},{"$f":"IFERROR(BT87*INDEX('Energy Prices'!$F$12:$CR$17,MATCH('Data Input - Option 4'!$D95,'Energy Prices'!$C$12:$C$17,0),MATCH('Data Input - Option 4'!BT$7,'Energy Prices'!$F$11:$CR$11,0))/100000,\"\")","v":""},{"$f":"IFERROR(BU87*INDEX('Energy Prices'!$F$12:$CR$17,MATCH('Data Input - Option 4'!$D95,'Energy Prices'!$C$12:$C$17,0),MATCH('Data Input - Option 4'!BU$7,'Energy Prices'!$F$11:$CR$11,0))/100000,\"\")","v":""},{"$f":"IFERROR(BV87*INDEX('Energy Prices'!$F$12:$CR$17,MATCH('Data Input - Option 4'!$D95,'Energy Prices'!$C$12:$C$17,0),MATCH('Data Input - Option 4'!BV$7,'Energy Prices'!$F$11:$CR$11,0))/100000,\"\")","v":""},{"$f":"IFERROR(BW87*INDEX('Energy Prices'!$F$12:$CR$17,MATCH('Data Input - Option 4'!$D95,'Energy Prices'!$C$12:$C$17,0),MATCH('Data Input - Option 4'!BW$7,'Energy Prices'!$F$11:$CR$11,0))/100000,\"\")","v":""},{"$f":"IFERROR(BX87*INDEX('Energy Prices'!$F$12:$CR$17,MATCH('Data Input - Option 4'!$D95,'Energy Prices'!$C$12:$C$17,0),MATCH('Data Input - Option 4'!BX$7,'Energy Prices'!$F$11:$CR$11,0))/100000,\"\")","v":""},{"$f":"IFERROR(BY87*INDEX('Energy Prices'!$F$12:$CR$17,MATCH('Data Input - Option 4'!$D95,'Energy Prices'!$C$12:$C$17,0),MATCH('Data Input - Option 4'!BY$7,'Energy Prices'!$F$11:$CR$11,0))/100000,\"\")","v":""},{"$f":"IFERROR(BZ87*INDEX('Energy Prices'!$F$12:$CR$17,MATCH('Data Input - Option 4'!$D95,'Energy Prices'!$C$12:$C$17,0),MATCH('Data Input - Option 4'!BZ$7,'Energy Prices'!$F$11:$CR$11,0))/100000,\"\")","v":""},{"$f":"IFERROR(CA87*INDEX('Energy Prices'!$F$12:$CR$17,MATCH('Data Input - Option 4'!$D95,'Energy Prices'!$C$12:$C$17,0),MATCH('Data Input - Option 4'!CA$7,'Energy Prices'!$F$11:$CR$11,0))/100000,\"\")","v":""},{"$f":"IFERROR(CB87*INDEX('Energy Prices'!$F$12:$CR$17,MATCH('Data Input - Option 4'!$D95,'Energy Prices'!$C$12:$C$17,0),MATCH('Data Input - Option 4'!CB$7,'Energy Prices'!$F$11:$CR$11,0))/100000,\"\")","v":""},{"$f":"IFERROR(CC87*INDEX('Energy Prices'!$F$12:$CR$17,MATCH('Data Input - Option 4'!$D95,'Energy Prices'!$C$12:$C$17,0),MATCH('Data Input - Option 4'!CC$7,'Energy Prices'!$F$11:$CR$11,0))/100000,\"\")","v":""},{"$f":"IFERROR(CD87*INDEX('Energy Prices'!$F$12:$CR$17,MATCH('Data Input - Option 4'!$D95,'Energy Prices'!$C$12:$C$17,0),MATCH('Data Input - Option 4'!CD$7,'Energy Prices'!$F$11:$CR$11,0))/100000,\"\")","v":""},{"$f":"IFERROR(CE87*INDEX('Energy Prices'!$F$12:$CR$17,MATCH('Data Input - Option 4'!$D95,'Energy Prices'!$C$12:$C$17,0),MATCH('Data Input - Option 4'!CE$7,'Energy Prices'!$F$11:$CR$11,0))/100000,\"\")","v":""},{"$f":"IFERROR(CF87*INDEX('Energy Prices'!$F$12:$CR$17,MATCH('Data Input - Option 4'!$D95,'Energy Prices'!$C$12:$C$17,0),MATCH('Data Input - Option 4'!CF$7,'Energy Prices'!$F$11:$CR$11,0))/100000,\"\")","v":""},{"$f":"IFERROR(CG87*INDEX('Energy Prices'!$F$12:$CR$17,MATCH('Data Input - Option 4'!$D95,'Energy Prices'!$C$12:$C$17,0),MATCH('Data Input - Option 4'!CG$7,'Energy Prices'!$F$11:$CR$11,0))/100000,\"\")","v":""},{"$f":"IFERROR(CH87*INDEX('Energy Prices'!$F$12:$CR$17,MATCH('Data Input - Option 4'!$D95,'Energy Prices'!$C$12:$C$17,0),MATCH('Data Input - Option 4'!CH$7,'Energy Prices'!$F$11:$CR$11,0))/100000,\"\")","v":""},{"$f":"IFERROR(CI87*INDEX('Energy Prices'!$F$12:$CR$17,MATCH('Data Input - Option 4'!$D95,'Energy Prices'!$C$12:$C$17,0),MATCH('Data Input - Option 4'!CI$7,'Energy Prices'!$F$11:$CR$11,0))/100000,\"\")","v":""},{"$f":"IFERROR(CJ87*INDEX('Energy Prices'!$F$12:$CR$17,MATCH('Data Input - Option 4'!$D95,'Energy Prices'!$C$12:$C$17,0),MATCH('Data Input - Option 4'!CJ$7,'Energy Prices'!$F$11:$CR$11,0))/100000,\"\")","v":""},{"$f":"IFERROR(CK87*INDEX('Energy Prices'!$F$12:$CR$17,MATCH('Data Input - Option 4'!$D95,'Energy Prices'!$C$12:$C$17,0),MATCH('Data Input - Option 4'!CK$7,'Energy Prices'!$F$11:$CR$11,0))/100000,\"\")","v":""},{"$f":"IFERROR(CL87*INDEX('Energy Prices'!$F$12:$CR$17,MATCH('Data Input - Option 4'!$D95,'Energy Prices'!$C$12:$C$17,0),MATCH('Data Input - Option 4'!CL$7,'Energy Prices'!$F$11:$CR$11,0))/100000,\"\")","v":""},{"$f":"IFERROR(CM87*INDEX('Energy Prices'!$F$12:$CR$17,MATCH('Data Input - Option 4'!$D95,'Energy Prices'!$C$12:$C$17,0),MATCH('Data Input - Option 4'!CM$7,'Energy Prices'!$F$11:$CR$11,0))/100000,\"\")","v":""},{"$f":"IFERROR(CN87*INDEX('Energy Prices'!$F$12:$CR$17,MATCH('Data Input - Option 4'!$D95,'Energy Prices'!$C$12:$C$17,0),MATCH('Data Input - Option 4'!CN$7,'Energy Prices'!$F$11:$CR$11,0))/100000,\"\")","v":""},{"$f":"IFERROR(CO87*INDEX('Energy Prices'!$F$12:$CR$17,MATCH('Data Input - Option 4'!$D95,'Energy Prices'!$C$12:$C$17,0),MATCH('Data Input - Option 4'!CO$7,'Energy Prices'!$F$11:$CR$11,0))/100000,\"\")","v":""},{"$f":"IFERROR(CP87*INDEX('Energy Prices'!$F$12:$CR$17,MATCH('Data Input - Option 4'!$D95,'Energy Prices'!$C$12:$C$17,0),MATCH('Data Input - Option 4'!CP$7,'Energy Prices'!$F$11:$CR$11,0))/100000,\"\")","v":""},{"$f":"IFERROR(CQ87*INDEX('Energy Prices'!$F$12:$CR$17,MATCH('Data Input - Option 4'!$D95,'Energy Prices'!$C$12:$C$17,0),MATCH('Data Input - Option 4'!CQ$7,'Energy Prices'!$F$11:$CR$11,0))/100000,\"\")","v":""},{"$f":"IFERROR(CR87*INDEX('Energy Prices'!$F$12:$CR$17,MATCH('Data Input - Option 4'!$D95,'Energy Prices'!$C$12:$C$17,0),MATCH('Data Input - Option 4'!CR$7,'Energy Prices'!$F$11:$CR$11,0))/100000,\"\")","v":""},{"$f":"IFERROR(CS87*INDEX('Energy Prices'!$F$12:$CR$17,MATCH('Data Input - Option 4'!$D95,'Energy Prices'!$C$12:$C$17,0),MATCH('Data Input - Option 4'!CS$7,'Energy Prices'!$F$11:$CR$11,0))/100000,\"\")","v":""},{"$f":"IFERROR(CT87*INDEX('Energy Prices'!$F$12:$CR$17,MATCH('Data Input - Option 4'!$D95,'Energy Prices'!$C$12:$C$17,0),MATCH('Data Input - Option 4'!CT$7,'Energy Prices'!$F$11:$CR$11,0))/100000,\"\")","v":""},{"$f":"IFERROR(CU87*INDEX('Energy Prices'!$F$12:$CR$17,MATCH('Data Input - Option 4'!$D95,'Energy Prices'!$C$12:$C$17,0),MATCH('Data Input - Option 4'!CU$7,'Energy Prices'!$F$11:$CR$11,0))/100000,\"\")","v":""},{"$f":"IFERROR(CV87*INDEX('Energy Prices'!$F$12:$CR$17,MATCH('Data Input - Option 4'!$D95,'Energy Prices'!$C$12:$C$17,0),MATCH('Data Input - Option 4'!CV$7,'Energy Prices'!$F$11:$CR$11,0))/100000,\"\")","v":""},{"$f":"IFERROR(CW87*INDEX('Energy Prices'!$F$12:$CR$17,MATCH('Data Input - Option 4'!$D95,'Energy Prices'!$C$12:$C$17,0),MATCH('Data Input - Option 4'!CW$7,'Energy Prices'!$F$11:$CR$11,0))/100000,\"\")","v":""},{"$f":"IFERROR(CX87*INDEX('Energy Prices'!$F$12:$CR$17,MATCH('Data Input - Option 4'!$D95,'Energy Prices'!$C$12:$C$17,0),MATCH('Data Input - Option 4'!CX$7,'Energy Prices'!$F$11:$CR$11,0))/100000,\"\")","v":""},{"$f":"IFERROR(CY87*INDEX('Energy Prices'!$F$12:$CR$17,MATCH('Data Input - Option 4'!$D95,'Energy Prices'!$C$12:$C$17,0),MATCH('Data Input - Option 4'!CY$7,'Energy Prices'!$F$11:$CR$11,0))/100000,\"\")","v":""},{"$f":"IFERROR(CZ87*INDEX('Energy Prices'!$F$12:$CR$17,MATCH('Data Input - Option 4'!$D95,'Energy Prices'!$C$12:$C$17,0),MATCH('Data Input - Option 4'!CZ$7,'Energy Prices'!$F$11:$CR$11,0))/100000,\"\")","v":""},{"$f":"IFERROR(DA87*INDEX('Energy Prices'!$F$12:$CR$17,MATCH('Data Input - Option 4'!$D95,'Energy Prices'!$C$12:$C$17,0),MATCH('Data Input - Option 4'!DA$7,'Energy Prices'!$F$11:$CR$11,0))/100000,\"\")","v":""},{"$f":"IFERROR(DB87*INDEX('Energy Prices'!$F$12:$CR$17,MATCH('Data Input - Option 4'!$D95,'Energy Prices'!$C$12:$C$17,0),MATCH('Data Input - Option 4'!DB$7,'Energy Prices'!$F$11:$CR$11,0))/100000,\"\")","v":""},{"$f":"IFERROR(DC87*INDEX('Energy Prices'!$F$12:$CR$17,MATCH('Data Input - Option 4'!$D95,'Energy Prices'!$C$12:$C$17,0),MATCH('Data Input - Option 4'!DC$7,'Energy Prices'!$F$11:$CR$11,0))/100000,\"\")","v":""}]
[null,null,null,"Road - Petrol","£000's","(Auto calculated value)",null,{"$f":"IFERROR(H88*INDEX('Energy Prices'!$F$12:$CR$17,MATCH('Data Input - Option 4'!$D96,'Energy Prices'!$C$12:$C$17,0),MATCH('Data Input - Option 4'!H$7,'Energy Prices'!$F$11:$CR$11,0))/100000,\"\")","v":0},{"$f":"IFERROR(I88*INDEX('Energy Prices'!$F$12:$CR$17,MATCH('Data Input - Option 4'!$D96,'Energy Prices'!$C$12:$C$17,0),MATCH('Data Input - Option 4'!I$7,'Energy Prices'!$F$11:$CR$11,0))/100000,\"\")","v":0},{"$f":"IFERROR(J88*INDEX('Energy Prices'!$F$12:$CR$17,MATCH('Data Input - Option 4'!$D96,'Energy Prices'!$C$12:$C$17,0),MATCH('Data Input - Option 4'!J$7,'Energy Prices'!$F$11:$CR$11,0))/100000,\"\")","v":0},{"$f":"IFERROR(K88*INDEX('Energy Prices'!$F$12:$CR$17,MATCH('Data Input - Option 4'!$D96,'Energy Prices'!$C$12:$C$17,0),MATCH('Data Input - Option 4'!K$7,'Energy Prices'!$F$11:$CR$11,0))/100000,\"\")","v":0},{"$f":"IFERROR(L88*INDEX('Energy Prices'!$F$12:$CR$17,MATCH('Data Input - Option 4'!$D96,'Energy Prices'!$C$12:$C$17,0),MATCH('Data Input - Option 4'!L$7,'Energy Prices'!$F$11:$CR$11,0))/100000,\"\")","v":0},{"$f":"IFERROR(M88*INDEX('Energy Prices'!$F$12:$CR$17,MATCH('Data Input - Option 4'!$D96,'Energy Prices'!$C$12:$C$17,0),MATCH('Data Input - Option 4'!M$7,'Energy Prices'!$F$11:$CR$11,0))/100000,\"\")","v":0},{"$f":"IFERROR(N88*INDEX('Energy Prices'!$F$12:$CR$17,MATCH('Data Input - Option 4'!$D96,'Energy Prices'!$C$12:$C$17,0),MATCH('Data Input - Option 4'!N$7,'Energy Prices'!$F$11:$CR$11,0))/100000,\"\")","v":0},{"$f":"IFERROR(O88*INDEX('Energy Prices'!$F$12:$CR$17,MATCH('Data Input - Option 4'!$D96,'Energy Prices'!$C$12:$C$17,0),MATCH('Data Input - Option 4'!O$7,'Energy Prices'!$F$11:$CR$11,0))/100000,\"\")","v":0},{"$f":"IFERROR(P88*INDEX('Energy Prices'!$F$12:$CR$17,MATCH('Data Input - Option 4'!$D96,'Energy Prices'!$C$12:$C$17,0),MATCH('Data Input - Option 4'!P$7,'Energy Prices'!$F$11:$CR$11,0))/100000,\"\")","v":0},{"$f":"IFERROR(Q88*INDEX('Energy Prices'!$F$12:$CR$17,MATCH('Data Input - Option 4'!$D96,'Energy Prices'!$C$12:$C$17,0),MATCH('Data Input - Option 4'!Q$7,'Energy Prices'!$F$11:$CR$11,0))/100000,\"\")","v":0},{"$f":"IFERROR(R88*INDEX('Energy Prices'!$F$12:$CR$17,MATCH('Data Input - Option 4'!$D96,'Energy Prices'!$C$12:$C$17,0),MATCH('Data Input - Option 4'!R$7,'Energy Prices'!$F$11:$CR$11,0))/100000,\"\")","v":0},{"$f":"IFERROR(S88*INDEX('Energy Prices'!$F$12:$CR$17,MATCH('Data Input - Option 4'!$D96,'Energy Prices'!$C$12:$C$17,0),MATCH('Data Input - Option 4'!S$7,'Energy Prices'!$F$11:$CR$11,0))/100000,\"\")","v":0},{"$f":"IFERROR(T88*INDEX('Energy Prices'!$F$12:$CR$17,MATCH('Data Input - Option 4'!$D96,'Energy Prices'!$C$12:$C$17,0),MATCH('Data Input - Option 4'!T$7,'Energy Prices'!$F$11:$CR$11,0))/100000,\"\")","v":0},{"$f":"IFERROR(U88*INDEX('Energy Prices'!$F$12:$CR$17,MATCH('Data Input - Option 4'!$D96,'Energy Prices'!$C$12:$C$17,0),MATCH('Data Input - Option 4'!U$7,'Energy Prices'!$F$11:$CR$11,0))/100000,\"\")","v":0},{"$f":"IFERROR(V88*INDEX('Energy Prices'!$F$12:$CR$17,MATCH('Data Input - Option 4'!$D96,'Energy Prices'!$C$12:$C$17,0),MATCH('Data Input - Option 4'!V$7,'Energy Prices'!$F$11:$CR$11,0))/100000,\"\")","v":0},{"$f":"IFERROR(W88*INDEX('Energy Prices'!$F$12:$CR$17,MATCH('Data Input - Option 4'!$D96,'Energy Prices'!$C$12:$C$17,0),MATCH('Data Input - Option 4'!W$7,'Energy Prices'!$F$11:$CR$11,0))/100000,\"\")","v":0},{"$f":"IFERROR(X88*INDEX('Energy Prices'!$F$12:$CR$17,MATCH('Data Input - Option 4'!$D96,'Energy Prices'!$C$12:$C$17,0),MATCH('Data Input - Option 4'!X$7,'Energy Prices'!$F$11:$CR$11,0))/100000,\"\")","v":0},{"$f":"IFERROR(Y88*INDEX('Energy Prices'!$F$12:$CR$17,MATCH('Data Input - Option 4'!$D96,'Energy Prices'!$C$12:$C$17,0),MATCH('Data Input - Option 4'!Y$7,'Energy Prices'!$F$11:$CR$11,0))/100000,\"\")","v":0},{"$f":"IFERROR(Z88*INDEX('Energy Prices'!$F$12:$CR$17,MATCH('Data Input - Option 4'!$D96,'Energy Prices'!$C$12:$C$17,0),MATCH('Data Input - Option 4'!Z$7,'Energy Prices'!$F$11:$CR$11,0))/100000,\"\")","v":0},{"$f":"IFERROR(AA88*INDEX('Energy Prices'!$F$12:$CR$17,MATCH('Data Input - Option 4'!$D96,'Energy Prices'!$C$12:$C$17,0),MATCH('Data Input - Option 4'!AA$7,'Energy Prices'!$F$11:$CR$11,0))/100000,\"\")","v":0},{"$f":"IFERROR(AB88*INDEX('Energy Prices'!$F$12:$CR$17,MATCH('Data Input - Option 4'!$D96,'Energy Prices'!$C$12:$C$17,0),MATCH('Data Input - Option 4'!AB$7,'Energy Prices'!$F$11:$CR$11,0))/100000,\"\")","v":0},{"$f":"IFERROR(AC88*INDEX('Energy Prices'!$F$12:$CR$17,MATCH('Data Input - Option 4'!$D96,'Energy Prices'!$C$12:$C$17,0),MATCH('Data Input - Option 4'!AC$7,'Energy Prices'!$F$11:$CR$11,0))/100000,\"\")","v":0},{"$f":"IFERROR(AD88*INDEX('Energy Prices'!$F$12:$CR$17,MATCH('Data Input - Option 4'!$D96,'Energy Prices'!$C$12:$C$17,0),MATCH('Data Input - Option 4'!AD$7,'Energy Prices'!$F$11:$CR$11,0))/100000,\"\")","v":0},{"$f":"IFERROR(AE88*INDEX('Energy Prices'!$F$12:$CR$17,MATCH('Data Input - Option 4'!$D96,'Energy Prices'!$C$12:$C$17,0),MATCH('Data Input - Option 4'!AE$7,'Energy Prices'!$F$11:$CR$11,0))/100000,\"\")","v":0},{"$f":"IFERROR(AF88*INDEX('Energy Prices'!$F$12:$CR$17,MATCH('Data Input - Option 4'!$D96,'Energy Prices'!$C$12:$C$17,0),MATCH('Data Input - Option 4'!AF$7,'Energy Prices'!$F$11:$CR$11,0))/100000,\"\")","v":0},{"$f":"IFERROR(AG88*INDEX('Energy Prices'!$F$12:$CR$17,MATCH('Data Input - Option 4'!$D96,'Energy Prices'!$C$12:$C$17,0),MATCH('Data Input - Option 4'!AG$7,'Energy Prices'!$F$11:$CR$11,0))/100000,\"\")","v":0},{"$f":"IFERROR(AH88*INDEX('Energy Prices'!$F$12:$CR$17,MATCH('Data Input - Option 4'!$D96,'Energy Prices'!$C$12:$C$17,0),MATCH('Data Input - Option 4'!AH$7,'Energy Prices'!$F$11:$CR$11,0))/100000,\"\")","v":0},{"$f":"IFERROR(AI88*INDEX('Energy Prices'!$F$12:$CR$17,MATCH('Data Input - Option 4'!$D96,'Energy Prices'!$C$12:$C$17,0),MATCH('Data Input - Option 4'!AI$7,'Energy Prices'!$F$11:$CR$11,0))/100000,\"\")","v":0},{"$f":"IFERROR(AJ88*INDEX('Energy Prices'!$F$12:$CR$17,MATCH('Data Input - Option 4'!$D96,'Energy Prices'!$C$12:$C$17,0),MATCH('Data Input - Option 4'!AJ$7,'Energy Prices'!$F$11:$CR$11,0))/100000,\"\")","v":0},{"$f":"IFERROR(AK88*INDEX('Energy Prices'!$F$12:$CR$17,MATCH('Data Input - Option 4'!$D96,'Energy Prices'!$C$12:$C$17,0),MATCH('Data Input - Option 4'!AK$7,'Energy Prices'!$F$11:$CR$11,0))/100000,\"\")","v":0},{"$f":"IFERROR(AL88*INDEX('Energy Prices'!$F$12:$CR$17,MATCH('Data Input - Option 4'!$D96,'Energy Prices'!$C$12:$C$17,0),MATCH('Data Input - Option 4'!AL$7,'Energy Prices'!$F$11:$CR$11,0))/100000,\"\")","v":0},{"$f":"IFERROR(AM88*INDEX('Energy Prices'!$F$12:$CR$17,MATCH('Data Input - Option 4'!$D96,'Energy Prices'!$C$12:$C$17,0),MATCH('Data Input - Option 4'!AM$7,'Energy Prices'!$F$11:$CR$11,0))/100000,\"\")","v":""},{"$f":"IFERROR(AN88*INDEX('Energy Prices'!$F$12:$CR$17,MATCH('Data Input - Option 4'!$D96,'Energy Prices'!$C$12:$C$17,0),MATCH('Data Input - Option 4'!AN$7,'Energy Prices'!$F$11:$CR$11,0))/100000,\"\")","v":""},{"$f":"IFERROR(AO88*INDEX('Energy Prices'!$F$12:$CR$17,MATCH('Data Input - Option 4'!$D96,'Energy Prices'!$C$12:$C$17,0),MATCH('Data Input - Option 4'!AO$7,'Energy Prices'!$F$11:$CR$11,0))/100000,\"\")","v":""},{"$f":"IFERROR(AP88*INDEX('Energy Prices'!$F$12:$CR$17,MATCH('Data Input - Option 4'!$D96,'Energy Prices'!$C$12:$C$17,0),MATCH('Data Input - Option 4'!AP$7,'Energy Prices'!$F$11:$CR$11,0))/100000,\"\")","v":""},{"$f":"IFERROR(AQ88*INDEX('Energy Prices'!$F$12:$CR$17,MATCH('Data Input - Option 4'!$D96,'Energy Prices'!$C$12:$C$17,0),MATCH('Data Input - Option 4'!AQ$7,'Energy Prices'!$F$11:$CR$11,0))/100000,\"\")","v":""},{"$f":"IFERROR(AR88*INDEX('Energy Prices'!$F$12:$CR$17,MATCH('Data Input - Option 4'!$D96,'Energy Prices'!$C$12:$C$17,0),MATCH('Data Input - Option 4'!AR$7,'Energy Prices'!$F$11:$CR$11,0))/100000,\"\")","v":""},{"$f":"IFERROR(AS88*INDEX('Energy Prices'!$F$12:$CR$17,MATCH('Data Input - Option 4'!$D96,'Energy Prices'!$C$12:$C$17,0),MATCH('Data Input - Option 4'!AS$7,'Energy Prices'!$F$11:$CR$11,0))/100000,\"\")","v":""},{"$f":"IFERROR(AT88*INDEX('Energy Prices'!$F$12:$CR$17,MATCH('Data Input - Option 4'!$D96,'Energy Prices'!$C$12:$C$17,0),MATCH('Data Input - Option 4'!AT$7,'Energy Prices'!$F$11:$CR$11,0))/100000,\"\")","v":""},{"$f":"IFERROR(AU88*INDEX('Energy Prices'!$F$12:$CR$17,MATCH('Data Input - Option 4'!$D96,'Energy Prices'!$C$12:$C$17,0),MATCH('Data Input - Option 4'!AU$7,'Energy Prices'!$F$11:$CR$11,0))/100000,\"\")","v":""},{"$f":"IFERROR(AV88*INDEX('Energy Prices'!$F$12:$CR$17,MATCH('Data Input - Option 4'!$D96,'Energy Prices'!$C$12:$C$17,0),MATCH('Data Input - Option 4'!AV$7,'Energy Prices'!$F$11:$CR$11,0))/100000,\"\")","v":""},{"$f":"IFERROR(AW88*INDEX('Energy Prices'!$F$12:$CR$17,MATCH('Data Input - Option 4'!$D96,'Energy Prices'!$C$12:$C$17,0),MATCH('Data Input - Option 4'!AW$7,'Energy Prices'!$F$11:$CR$11,0))/100000,\"\")","v":""},{"$f":"IFERROR(AX88*INDEX('Energy Prices'!$F$12:$CR$17,MATCH('Data Input - Option 4'!$D96,'Energy Prices'!$C$12:$C$17,0),MATCH('Data Input - Option 4'!AX$7,'Energy Prices'!$F$11:$CR$11,0))/100000,\"\")","v":""},{"$f":"IFERROR(AY88*INDEX('Energy Prices'!$F$12:$CR$17,MATCH('Data Input - Option 4'!$D96,'Energy Prices'!$C$12:$C$17,0),MATCH('Data Input - Option 4'!AY$7,'Energy Prices'!$F$11:$CR$11,0))/100000,\"\")","v":""},{"$f":"IFERROR(AZ88*INDEX('Energy Prices'!$F$12:$CR$17,MATCH('Data Input - Option 4'!$D96,'Energy Prices'!$C$12:$C$17,0),MATCH('Data Input - Option 4'!AZ$7,'Energy Prices'!$F$11:$CR$11,0))/100000,\"\")","v":""},{"$f":"IFERROR(BA88*INDEX('Energy Prices'!$F$12:$CR$17,MATCH('Data Input - Option 4'!$D96,'Energy Prices'!$C$12:$C$17,0),MATCH('Data Input - Option 4'!BA$7,'Energy Prices'!$F$11:$CR$11,0))/100000,\"\")","v":""},{"$f":"IFERROR(BB88*INDEX('Energy Prices'!$F$12:$CR$17,MATCH('Data Input - Option 4'!$D96,'Energy Prices'!$C$12:$C$17,0),MATCH('Data Input - Option 4'!BB$7,'Energy Prices'!$F$11:$CR$11,0))/100000,\"\")","v":""},{"$f":"IFERROR(BC88*INDEX('Energy Prices'!$F$12:$CR$17,MATCH('Data Input - Option 4'!$D96,'Energy Prices'!$C$12:$C$17,0),MATCH('Data Input - Option 4'!BC$7,'Energy Prices'!$F$11:$CR$11,0))/100000,\"\")","v":""},{"$f":"IFERROR(BD88*INDEX('Energy Prices'!$F$12:$CR$17,MATCH('Data Input - Option 4'!$D96,'Energy Prices'!$C$12:$C$17,0),MATCH('Data Input - Option 4'!BD$7,'Energy Prices'!$F$11:$CR$11,0))/100000,\"\")","v":""},{"$f":"IFERROR(BE88*INDEX('Energy Prices'!$F$12:$CR$17,MATCH('Data Input - Option 4'!$D96,'Energy Prices'!$C$12:$C$17,0),MATCH('Data Input - Option 4'!BE$7,'Energy Prices'!$F$11:$CR$11,0))/100000,\"\")","v":""},{"$f":"IFERROR(BF88*INDEX('Energy Prices'!$F$12:$CR$17,MATCH('Data Input - Option 4'!$D96,'Energy Prices'!$C$12:$C$17,0),MATCH('Data Input - Option 4'!BF$7,'Energy Prices'!$F$11:$CR$11,0))/100000,\"\")","v":""},{"$f":"IFERROR(BG88*INDEX('Energy Prices'!$F$12:$CR$17,MATCH('Data Input - Option 4'!$D96,'Energy Prices'!$C$12:$C$17,0),MATCH('Data Input - Option 4'!BG$7,'Energy Prices'!$F$11:$CR$11,0))/100000,\"\")","v":""},{"$f":"IFERROR(BH88*INDEX('Energy Prices'!$F$12:$CR$17,MATCH('Data Input - Option 4'!$D96,'Energy Prices'!$C$12:$C$17,0),MATCH('Data Input - Option 4'!BH$7,'Energy Prices'!$F$11:$CR$11,0))/100000,\"\")","v":""},{"$f":"IFERROR(BI88*INDEX('Energy Prices'!$F$12:$CR$17,MATCH('Data Input - Option 4'!$D96,'Energy Prices'!$C$12:$C$17,0),MATCH('Data Input - Option 4'!BI$7,'Energy Prices'!$F$11:$CR$11,0))/100000,\"\")","v":""},{"$f":"IFERROR(BJ88*INDEX('Energy Prices'!$F$12:$CR$17,MATCH('Data Input - Option 4'!$D96,'Energy Prices'!$C$12:$C$17,0),MATCH('Data Input - Option 4'!BJ$7,'Energy Prices'!$F$11:$CR$11,0))/100000,\"\")","v":""},{"$f":"IFERROR(BK88*INDEX('Energy Prices'!$F$12:$CR$17,MATCH('Data Input - Option 4'!$D96,'Energy Prices'!$C$12:$C$17,0),MATCH('Data Input - Option 4'!BK$7,'Energy Prices'!$F$11:$CR$11,0))/100000,\"\")","v":""},{"$f":"IFERROR(BL88*INDEX('Energy Prices'!$F$12:$CR$17,MATCH('Data Input - Option 4'!$D96,'Energy Prices'!$C$12:$C$17,0),MATCH('Data Input - Option 4'!BL$7,'Energy Prices'!$F$11:$CR$11,0))/100000,\"\")","v":""},{"$f":"IFERROR(BM88*INDEX('Energy Prices'!$F$12:$CR$17,MATCH('Data Input - Option 4'!$D96,'Energy Prices'!$C$12:$C$17,0),MATCH('Data Input - Option 4'!BM$7,'Energy Prices'!$F$11:$CR$11,0))/100000,\"\")","v":""},{"$f":"IFERROR(BN88*INDEX('Energy Prices'!$F$12:$CR$17,MATCH('Data Input - Option 4'!$D96,'Energy Prices'!$C$12:$C$17,0),MATCH('Data Input - Option 4'!BN$7,'Energy Prices'!$F$11:$CR$11,0))/100000,\"\")","v":""},{"$f":"IFERROR(BO88*INDEX('Energy Prices'!$F$12:$CR$17,MATCH('Data Input - Option 4'!$D96,'Energy Prices'!$C$12:$C$17,0),MATCH('Data Input - Option 4'!BO$7,'Energy Prices'!$F$11:$CR$11,0))/100000,\"\")","v":""},{"$f":"IFERROR(BP88*INDEX('Energy Prices'!$F$12:$CR$17,MATCH('Data Input - Option 4'!$D96,'Energy Prices'!$C$12:$C$17,0),MATCH('Data Input - Option 4'!BP$7,'Energy Prices'!$F$11:$CR$11,0))/100000,\"\")","v":""},{"$f":"IFERROR(BQ88*INDEX('Energy Prices'!$F$12:$CR$17,MATCH('Data Input - Option 4'!$D96,'Energy Prices'!$C$12:$C$17,0),MATCH('Data Input - Option 4'!BQ$7,'Energy Prices'!$F$11:$CR$11,0))/100000,\"\")","v":""},{"$f":"IFERROR(BR88*INDEX('Energy Prices'!$F$12:$CR$17,MATCH('Data Input - Option 4'!$D96,'Energy Prices'!$C$12:$C$17,0),MATCH('Data Input - Option 4'!BR$7,'Energy Prices'!$F$11:$CR$11,0))/100000,\"\")","v":""},{"$f":"IFERROR(BS88*INDEX('Energy Prices'!$F$12:$CR$17,MATCH('Data Input - Option 4'!$D96,'Energy Prices'!$C$12:$C$17,0),MATCH('Data Input - Option 4'!BS$7,'Energy Prices'!$F$11:$CR$11,0))/100000,\"\")","v":""},{"$f":"IFERROR(BT88*INDEX('Energy Prices'!$F$12:$CR$17,MATCH('Data Input - Option 4'!$D96,'Energy Prices'!$C$12:$C$17,0),MATCH('Data Input - Option 4'!BT$7,'Energy Prices'!$F$11:$CR$11,0))/100000,\"\")","v":""},{"$f":"IFERROR(BU88*INDEX('Energy Prices'!$F$12:$CR$17,MATCH('Data Input - Option 4'!$D96,'Energy Prices'!$C$12:$C$17,0),MATCH('Data Input - Option 4'!BU$7,'Energy Prices'!$F$11:$CR$11,0))/100000,\"\")","v":""},{"$f":"IFERROR(BV88*INDEX('Energy Prices'!$F$12:$CR$17,MATCH('Data Input - Option 4'!$D96,'Energy Prices'!$C$12:$C$17,0),MATCH('Data Input - Option 4'!BV$7,'Energy Prices'!$F$11:$CR$11,0))/100000,\"\")","v":""},{"$f":"IFERROR(BW88*INDEX('Energy Prices'!$F$12:$CR$17,MATCH('Data Input - Option 4'!$D96,'Energy Prices'!$C$12:$C$17,0),MATCH('Data Input - Option 4'!BW$7,'Energy Prices'!$F$11:$CR$11,0))/100000,\"\")","v":""},{"$f":"IFERROR(BX88*INDEX('Energy Prices'!$F$12:$CR$17,MATCH('Data Input - Option 4'!$D96,'Energy Prices'!$C$12:$C$17,0),MATCH('Data Input - Option 4'!BX$7,'Energy Prices'!$F$11:$CR$11,0))/100000,\"\")","v":""},{"$f":"IFERROR(BY88*INDEX('Energy Prices'!$F$12:$CR$17,MATCH('Data Input - Option 4'!$D96,'Energy Prices'!$C$12:$C$17,0),MATCH('Data Input - Option 4'!BY$7,'Energy Prices'!$F$11:$CR$11,0))/100000,\"\")","v":""},{"$f":"IFERROR(BZ88*INDEX('Energy Prices'!$F$12:$CR$17,MATCH('Data Input - Option 4'!$D96,'Energy Prices'!$C$12:$C$17,0),MATCH('Data Input - Option 4'!BZ$7,'Energy Prices'!$F$11:$CR$11,0))/100000,\"\")","v":""},{"$f":"IFERROR(CA88*INDEX('Energy Prices'!$F$12:$CR$17,MATCH('Data Input - Option 4'!$D96,'Energy Prices'!$C$12:$C$17,0),MATCH('Data Input - Option 4'!CA$7,'Energy Prices'!$F$11:$CR$11,0))/100000,\"\")","v":""},{"$f":"IFERROR(CB88*INDEX('Energy Prices'!$F$12:$CR$17,MATCH('Data Input - Option 4'!$D96,'Energy Prices'!$C$12:$C$17,0),MATCH('Data Input - Option 4'!CB$7,'Energy Prices'!$F$11:$CR$11,0))/100000,\"\")","v":""},{"$f":"IFERROR(CC88*INDEX('Energy Prices'!$F$12:$CR$17,MATCH('Data Input - Option 4'!$D96,'Energy Prices'!$C$12:$C$17,0),MATCH('Data Input - Option 4'!CC$7,'Energy Prices'!$F$11:$CR$11,0))/100000,\"\")","v":""},{"$f":"IFERROR(CD88*INDEX('Energy Prices'!$F$12:$CR$17,MATCH('Data Input - Option 4'!$D96,'Energy Prices'!$C$12:$C$17,0),MATCH('Data Input - Option 4'!CD$7,'Energy Prices'!$F$11:$CR$11,0))/100000,\"\")","v":""},{"$f":"IFERROR(CE88*INDEX('Energy Prices'!$F$12:$CR$17,MATCH('Data Input - Option 4'!$D96,'Energy Prices'!$C$12:$C$17,0),MATCH('Data Input - Option 4'!CE$7,'Energy Prices'!$F$11:$CR$11,0))/100000,\"\")","v":""},{"$f":"IFERROR(CF88*INDEX('Energy Prices'!$F$12:$CR$17,MATCH('Data Input - Option 4'!$D96,'Energy Prices'!$C$12:$C$17,0),MATCH('Data Input - Option 4'!CF$7,'Energy Prices'!$F$11:$CR$11,0))/100000,\"\")","v":""},{"$f":"IFERROR(CG88*INDEX('Energy Prices'!$F$12:$CR$17,MATCH('Data Input - Option 4'!$D96,'Energy Prices'!$C$12:$C$17,0),MATCH('Data Input - Option 4'!CG$7,'Energy Prices'!$F$11:$CR$11,0))/100000,\"\")","v":""},{"$f":"IFERROR(CH88*INDEX('Energy Prices'!$F$12:$CR$17,MATCH('Data Input - Option 4'!$D96,'Energy Prices'!$C$12:$C$17,0),MATCH('Data Input - Option 4'!CH$7,'Energy Prices'!$F$11:$CR$11,0))/100000,\"\")","v":""},{"$f":"IFERROR(CI88*INDEX('Energy Prices'!$F$12:$CR$17,MATCH('Data Input - Option 4'!$D96,'Energy Prices'!$C$12:$C$17,0),MATCH('Data Input - Option 4'!CI$7,'Energy Prices'!$F$11:$CR$11,0))/100000,\"\")","v":""},{"$f":"IFERROR(CJ88*INDEX('Energy Prices'!$F$12:$CR$17,MATCH('Data Input - Option 4'!$D96,'Energy Prices'!$C$12:$C$17,0),MATCH('Data Input - Option 4'!CJ$7,'Energy Prices'!$F$11:$CR$11,0))/100000,\"\")","v":""},{"$f":"IFERROR(CK88*INDEX('Energy Prices'!$F$12:$CR$17,MATCH('Data Input - Option 4'!$D96,'Energy Prices'!$C$12:$C$17,0),MATCH('Data Input - Option 4'!CK$7,'Energy Prices'!$F$11:$CR$11,0))/100000,\"\")","v":""},{"$f":"IFERROR(CL88*INDEX('Energy Prices'!$F$12:$CR$17,MATCH('Data Input - Option 4'!$D96,'Energy Prices'!$C$12:$C$17,0),MATCH('Data Input - Option 4'!CL$7,'Energy Prices'!$F$11:$CR$11,0))/100000,\"\")","v":""},{"$f":"IFERROR(CM88*INDEX('Energy Prices'!$F$12:$CR$17,MATCH('Data Input - Option 4'!$D96,'Energy Prices'!$C$12:$C$17,0),MATCH('Data Input - Option 4'!CM$7,'Energy Prices'!$F$11:$CR$11,0))/100000,\"\")","v":""},{"$f":"IFERROR(CN88*INDEX('Energy Prices'!$F$12:$CR$17,MATCH('Data Input - Option 4'!$D96,'Energy Prices'!$C$12:$C$17,0),MATCH('Data Input - Option 4'!CN$7,'Energy Prices'!$F$11:$CR$11,0))/100000,\"\")","v":""},{"$f":"IFERROR(CO88*INDEX('Energy Prices'!$F$12:$CR$17,MATCH('Data Input - Option 4'!$D96,'Energy Prices'!$C$12:$C$17,0),MATCH('Data Input - Option 4'!CO$7,'Energy Prices'!$F$11:$CR$11,0))/100000,\"\")","v":""},{"$f":"IFERROR(CP88*INDEX('Energy Prices'!$F$12:$CR$17,MATCH('Data Input - Option 4'!$D96,'Energy Prices'!$C$12:$C$17,0),MATCH('Data Input - Option 4'!CP$7,'Energy Prices'!$F$11:$CR$11,0))/100000,\"\")","v":""},{"$f":"IFERROR(CQ88*INDEX('Energy Prices'!$F$12:$CR$17,MATCH('Data Input - Option 4'!$D96,'Energy Prices'!$C$12:$C$17,0),MATCH('Data Input - Option 4'!CQ$7,'Energy Prices'!$F$11:$CR$11,0))/100000,\"\")","v":""},{"$f":"IFERROR(CR88*INDEX('Energy Prices'!$F$12:$CR$17,MATCH('Data Input - Option 4'!$D96,'Energy Prices'!$C$12:$C$17,0),MATCH('Data Input - Option 4'!CR$7,'Energy Prices'!$F$11:$CR$11,0))/100000,\"\")","v":""},{"$f":"IFERROR(CS88*INDEX('Energy Prices'!$F$12:$CR$17,MATCH('Data Input - Option 4'!$D96,'Energy Prices'!$C$12:$C$17,0),MATCH('Data Input - Option 4'!CS$7,'Energy Prices'!$F$11:$CR$11,0))/100000,\"\")","v":""},{"$f":"IFERROR(CT88*INDEX('Energy Prices'!$F$12:$CR$17,MATCH('Data Input - Option 4'!$D96,'Energy Prices'!$C$12:$C$17,0),MATCH('Data Input - Option 4'!CT$7,'Energy Prices'!$F$11:$CR$11,0))/100000,\"\")","v":""},{"$f":"IFERROR(CU88*INDEX('Energy Prices'!$F$12:$CR$17,MATCH('Data Input - Option 4'!$D96,'Energy Prices'!$C$12:$C$17,0),MATCH('Data Input - Option 4'!CU$7,'Energy Prices'!$F$11:$CR$11,0))/100000,\"\")","v":""},{"$f":"IFERROR(CV88*INDEX('Energy Prices'!$F$12:$CR$17,MATCH('Data Input - Option 4'!$D96,'Energy Prices'!$C$12:$C$17,0),MATCH('Data Input - Option 4'!CV$7,'Energy Prices'!$F$11:$CR$11,0))/100000,\"\")","v":""},{"$f":"IFERROR(CW88*INDEX('Energy Prices'!$F$12:$CR$17,MATCH('Data Input - Option 4'!$D96,'Energy Prices'!$C$12:$C$17,0),MATCH('Data Input - Option 4'!CW$7,'Energy Prices'!$F$11:$CR$11,0))/100000,\"\")","v":""},{"$f":"IFERROR(CX88*INDEX('Energy Prices'!$F$12:$CR$17,MATCH('Data Input - Option 4'!$D96,'Energy Prices'!$C$12:$C$17,0),MATCH('Data Input - Option 4'!CX$7,'Energy Prices'!$F$11:$CR$11,0))/100000,\"\")","v":""},{"$f":"IFERROR(CY88*INDEX('Energy Prices'!$F$12:$CR$17,MATCH('Data Input - Option 4'!$D96,'Energy Prices'!$C$12:$C$17,0),MATCH('Data Input - Option 4'!CY$7,'Energy Prices'!$F$11:$CR$11,0))/100000,\"\")","v":""},{"$f":"IFERROR(CZ88*INDEX('Energy Prices'!$F$12:$CR$17,MATCH('Data Input - Option 4'!$D96,'Energy Prices'!$C$12:$C$17,0),MATCH('Data Input - Option 4'!CZ$7,'Energy Prices'!$F$11:$CR$11,0))/100000,\"\")","v":""},{"$f":"IFERROR(DA88*INDEX('Energy Prices'!$F$12:$CR$17,MATCH('Data Input - Option 4'!$D96,'Energy Prices'!$C$12:$C$17,0),MATCH('Data Input - Option 4'!DA$7,'Energy Prices'!$F$11:$CR$11,0))/100000,\"\")","v":""},{"$f":"IFERROR(DB88*INDEX('Energy Prices'!$F$12:$CR$17,MATCH('Data Input - Option 4'!$D96,'Energy Prices'!$C$12:$C$17,0),MATCH('Data Input - Option 4'!DB$7,'Energy Prices'!$F$11:$CR$11,0))/100000,\"\")","v":""},{"$f":"IFERROR(DC88*INDEX('Energy Prices'!$F$12:$CR$17,MATCH('Data Input - Option 4'!$D96,'Energy Prices'!$C$12:$C$17,0),MATCH('Data Input - Option 4'!DC$7,'Energy Prices'!$F$11:$CR$11,0))/100000,\"\")","v":""}]
[null,null,null,"Road - Diesel","£000's","(Auto calculated value)",null,{"$f":"IFERROR(H89*INDEX('Energy Prices'!$F$12:$CR$17,MATCH('Data Input - Option 4'!$D97,'Energy Prices'!$C$12:$C$17,0),MATCH('Data Input - Option 4'!H$7,'Energy Prices'!$F$11:$CR$11,0))/100000,\"\")","v":0},{"$f":"IFERROR(I89*INDEX('Energy Prices'!$F$12:$CR$17,MATCH('Data Input - Option 4'!$D97,'Energy Prices'!$C$12:$C$17,0),MATCH('Data Input - Option 4'!I$7,'Energy Prices'!$F$11:$CR$11,0))/100000,\"\")","v":0},{"$f":"IFERROR(J89*INDEX('Energy Prices'!$F$12:$CR$17,MATCH('Data Input - Option 4'!$D97,'Energy Prices'!$C$12:$C$17,0),MATCH('Data Input - Option 4'!J$7,'Energy Prices'!$F$11:$CR$11,0))/100000,\"\")","v":0},{"$f":"IFERROR(K89*INDEX('Energy Prices'!$F$12:$CR$17,MATCH('Data Input - Option 4'!$D97,'Energy Prices'!$C$12:$C$17,0),MATCH('Data Input - Option 4'!K$7,'Energy Prices'!$F$11:$CR$11,0))/100000,\"\")","v":0},{"$f":"IFERROR(L89*INDEX('Energy Prices'!$F$12:$CR$17,MATCH('Data Input - Option 4'!$D97,'Energy Prices'!$C$12:$C$17,0),MATCH('Data Input - Option 4'!L$7,'Energy Prices'!$F$11:$CR$11,0))/100000,\"\")","v":0},{"$f":"IFERROR(M89*INDEX('Energy Prices'!$F$12:$CR$17,MATCH('Data Input - Option 4'!$D97,'Energy Prices'!$C$12:$C$17,0),MATCH('Data Input - Option 4'!M$7,'Energy Prices'!$F$11:$CR$11,0))/100000,\"\")","v":0},{"$f":"IFERROR(N89*INDEX('Energy Prices'!$F$12:$CR$17,MATCH('Data Input - Option 4'!$D97,'Energy Prices'!$C$12:$C$17,0),MATCH('Data Input - Option 4'!N$7,'Energy Prices'!$F$11:$CR$11,0))/100000,\"\")","v":0},{"$f":"IFERROR(O89*INDEX('Energy Prices'!$F$12:$CR$17,MATCH('Data Input - Option 4'!$D97,'Energy Prices'!$C$12:$C$17,0),MATCH('Data Input - Option 4'!O$7,'Energy Prices'!$F$11:$CR$11,0))/100000,\"\")","v":0},{"$f":"IFERROR(P89*INDEX('Energy Prices'!$F$12:$CR$17,MATCH('Data Input - Option 4'!$D97,'Energy Prices'!$C$12:$C$17,0),MATCH('Data Input - Option 4'!P$7,'Energy Prices'!$F$11:$CR$11,0))/100000,\"\")","v":0},{"$f":"IFERROR(Q89*INDEX('Energy Prices'!$F$12:$CR$17,MATCH('Data Input - Option 4'!$D97,'Energy Prices'!$C$12:$C$17,0),MATCH('Data Input - Option 4'!Q$7,'Energy Prices'!$F$11:$CR$11,0))/100000,\"\")","v":0},{"$f":"IFERROR(R89*INDEX('Energy Prices'!$F$12:$CR$17,MATCH('Data Input - Option 4'!$D97,'Energy Prices'!$C$12:$C$17,0),MATCH('Data Input - Option 4'!R$7,'Energy Prices'!$F$11:$CR$11,0))/100000,\"\")","v":0},{"$f":"IFERROR(S89*INDEX('Energy Prices'!$F$12:$CR$17,MATCH('Data Input - Option 4'!$D97,'Energy Prices'!$C$12:$C$17,0),MATCH('Data Input - Option 4'!S$7,'Energy Prices'!$F$11:$CR$11,0))/100000,\"\")","v":0},{"$f":"IFERROR(T89*INDEX('Energy Prices'!$F$12:$CR$17,MATCH('Data Input - Option 4'!$D97,'Energy Prices'!$C$12:$C$17,0),MATCH('Data Input - Option 4'!T$7,'Energy Prices'!$F$11:$CR$11,0))/100000,\"\")","v":0},{"$f":"IFERROR(U89*INDEX('Energy Prices'!$F$12:$CR$17,MATCH('Data Input - Option 4'!$D97,'Energy Prices'!$C$12:$C$17,0),MATCH('Data Input - Option 4'!U$7,'Energy Prices'!$F$11:$CR$11,0))/100000,\"\")","v":0},{"$f":"IFERROR(V89*INDEX('Energy Prices'!$F$12:$CR$17,MATCH('Data Input - Option 4'!$D97,'Energy Prices'!$C$12:$C$17,0),MATCH('Data Input - Option 4'!V$7,'Energy Prices'!$F$11:$CR$11,0))/100000,\"\")","v":0},{"$f":"IFERROR(W89*INDEX('Energy Prices'!$F$12:$CR$17,MATCH('Data Input - Option 4'!$D97,'Energy Prices'!$C$12:$C$17,0),MATCH('Data Input - Option 4'!W$7,'Energy Prices'!$F$11:$CR$11,0))/100000,\"\")","v":0},{"$f":"IFERROR(X89*INDEX('Energy Prices'!$F$12:$CR$17,MATCH('Data Input - Option 4'!$D97,'Energy Prices'!$C$12:$C$17,0),MATCH('Data Input - Option 4'!X$7,'Energy Prices'!$F$11:$CR$11,0))/100000,\"\")","v":0},{"$f":"IFERROR(Y89*INDEX('Energy Prices'!$F$12:$CR$17,MATCH('Data Input - Option 4'!$D97,'Energy Prices'!$C$12:$C$17,0),MATCH('Data Input - Option 4'!Y$7,'Energy Prices'!$F$11:$CR$11,0))/100000,\"\")","v":0},{"$f":"IFERROR(Z89*INDEX('Energy Prices'!$F$12:$CR$17,MATCH('Data Input - Option 4'!$D97,'Energy Prices'!$C$12:$C$17,0),MATCH('Data Input - Option 4'!Z$7,'Energy Prices'!$F$11:$CR$11,0))/100000,\"\")","v":0},{"$f":"IFERROR(AA89*INDEX('Energy Prices'!$F$12:$CR$17,MATCH('Data Input - Option 4'!$D97,'Energy Prices'!$C$12:$C$17,0),MATCH('Data Input - Option 4'!AA$7,'Energy Prices'!$F$11:$CR$11,0))/100000,\"\")","v":0},{"$f":"IFERROR(AB89*INDEX('Energy Prices'!$F$12:$CR$17,MATCH('Data Input - Option 4'!$D97,'Energy Prices'!$C$12:$C$17,0),MATCH('Data Input - Option 4'!AB$7,'Energy Prices'!$F$11:$CR$11,0))/100000,\"\")","v":0},{"$f":"IFERROR(AC89*INDEX('Energy Prices'!$F$12:$CR$17,MATCH('Data Input - Option 4'!$D97,'Energy Prices'!$C$12:$C$17,0),MATCH('Data Input - Option 4'!AC$7,'Energy Prices'!$F$11:$CR$11,0))/100000,\"\")","v":0},{"$f":"IFERROR(AD89*INDEX('Energy Prices'!$F$12:$CR$17,MATCH('Data Input - Option 4'!$D97,'Energy Prices'!$C$12:$C$17,0),MATCH('Data Input - Option 4'!AD$7,'Energy Prices'!$F$11:$CR$11,0))/100000,\"\")","v":0},{"$f":"IFERROR(AE89*INDEX('Energy Prices'!$F$12:$CR$17,MATCH('Data Input - Option 4'!$D97,'Energy Prices'!$C$12:$C$17,0),MATCH('Data Input - Option 4'!AE$7,'Energy Prices'!$F$11:$CR$11,0))/100000,\"\")","v":0},{"$f":"IFERROR(AF89*INDEX('Energy Prices'!$F$12:$CR$17,MATCH('Data Input - Option 4'!$D97,'Energy Prices'!$C$12:$C$17,0),MATCH('Data Input - Option 4'!AF$7,'Energy Prices'!$F$11:$CR$11,0))/100000,\"\")","v":0},{"$f":"IFERROR(AG89*INDEX('Energy Prices'!$F$12:$CR$17,MATCH('Data Input - Option 4'!$D97,'Energy Prices'!$C$12:$C$17,0),MATCH('Data Input - Option 4'!AG$7,'Energy Prices'!$F$11:$CR$11,0))/100000,\"\")","v":0},{"$f":"IFERROR(AH89*INDEX('Energy Prices'!$F$12:$CR$17,MATCH('Data Input - Option 4'!$D97,'Energy Prices'!$C$12:$C$17,0),MATCH('Data Input - Option 4'!AH$7,'Energy Prices'!$F$11:$CR$11,0))/100000,\"\")","v":0},{"$f":"IFERROR(AI89*INDEX('Energy Prices'!$F$12:$CR$17,MATCH('Data Input - Option 4'!$D97,'Energy Prices'!$C$12:$C$17,0),MATCH('Data Input - Option 4'!AI$7,'Energy Prices'!$F$11:$CR$11,0))/100000,\"\")","v":0},{"$f":"IFERROR(AJ89*INDEX('Energy Prices'!$F$12:$CR$17,MATCH('Data Input - Option 4'!$D97,'Energy Prices'!$C$12:$C$17,0),MATCH('Data Input - Option 4'!AJ$7,'Energy Prices'!$F$11:$CR$11,0))/100000,\"\")","v":0},{"$f":"IFERROR(AK89*INDEX('Energy Prices'!$F$12:$CR$17,MATCH('Data Input - Option 4'!$D97,'Energy Prices'!$C$12:$C$17,0),MATCH('Data Input - Option 4'!AK$7,'Energy Prices'!$F$11:$CR$11,0))/100000,\"\")","v":0},{"$f":"IFERROR(AL89*INDEX('Energy Prices'!$F$12:$CR$17,MATCH('Data Input - Option 4'!$D97,'Energy Prices'!$C$12:$C$17,0),MATCH('Data Input - Option 4'!AL$7,'Energy Prices'!$F$11:$CR$11,0))/100000,\"\")","v":0},{"$f":"IFERROR(AM89*INDEX('Energy Prices'!$F$12:$CR$17,MATCH('Data Input - Option 4'!$D97,'Energy Prices'!$C$12:$C$17,0),MATCH('Data Input - Option 4'!AM$7,'Energy Prices'!$F$11:$CR$11,0))/100000,\"\")","v":""},{"$f":"IFERROR(AN89*INDEX('Energy Prices'!$F$12:$CR$17,MATCH('Data Input - Option 4'!$D97,'Energy Prices'!$C$12:$C$17,0),MATCH('Data Input - Option 4'!AN$7,'Energy Prices'!$F$11:$CR$11,0))/100000,\"\")","v":""},{"$f":"IFERROR(AO89*INDEX('Energy Prices'!$F$12:$CR$17,MATCH('Data Input - Option 4'!$D97,'Energy Prices'!$C$12:$C$17,0),MATCH('Data Input - Option 4'!AO$7,'Energy Prices'!$F$11:$CR$11,0))/100000,\"\")","v":""},{"$f":"IFERROR(AP89*INDEX('Energy Prices'!$F$12:$CR$17,MATCH('Data Input - Option 4'!$D97,'Energy Prices'!$C$12:$C$17,0),MATCH('Data Input - Option 4'!AP$7,'Energy Prices'!$F$11:$CR$11,0))/100000,\"\")","v":""},{"$f":"IFERROR(AQ89*INDEX('Energy Prices'!$F$12:$CR$17,MATCH('Data Input - Option 4'!$D97,'Energy Prices'!$C$12:$C$17,0),MATCH('Data Input - Option 4'!AQ$7,'Energy Prices'!$F$11:$CR$11,0))/100000,\"\")","v":""},{"$f":"IFERROR(AR89*INDEX('Energy Prices'!$F$12:$CR$17,MATCH('Data Input - Option 4'!$D97,'Energy Prices'!$C$12:$C$17,0),MATCH('Data Input - Option 4'!AR$7,'Energy Prices'!$F$11:$CR$11,0))/100000,\"\")","v":""},{"$f":"IFERROR(AS89*INDEX('Energy Prices'!$F$12:$CR$17,MATCH('Data Input - Option 4'!$D97,'Energy Prices'!$C$12:$C$17,0),MATCH('Data Input - Option 4'!AS$7,'Energy Prices'!$F$11:$CR$11,0))/100000,\"\")","v":""},{"$f":"IFERROR(AT89*INDEX('Energy Prices'!$F$12:$CR$17,MATCH('Data Input - Option 4'!$D97,'Energy Prices'!$C$12:$C$17,0),MATCH('Data Input - Option 4'!AT$7,'Energy Prices'!$F$11:$CR$11,0))/100000,\"\")","v":""},{"$f":"IFERROR(AU89*INDEX('Energy Prices'!$F$12:$CR$17,MATCH('Data Input - Option 4'!$D97,'Energy Prices'!$C$12:$C$17,0),MATCH('Data Input - Option 4'!AU$7,'Energy Prices'!$F$11:$CR$11,0))/100000,\"\")","v":""},{"$f":"IFERROR(AV89*INDEX('Energy Prices'!$F$12:$CR$17,MATCH('Data Input - Option 4'!$D97,'Energy Prices'!$C$12:$C$17,0),MATCH('Data Input - Option 4'!AV$7,'Energy Prices'!$F$11:$CR$11,0))/100000,\"\")","v":""},{"$f":"IFERROR(AW89*INDEX('Energy Prices'!$F$12:$CR$17,MATCH('Data Input - Option 4'!$D97,'Energy Prices'!$C$12:$C$17,0),MATCH('Data Input - Option 4'!AW$7,'Energy Prices'!$F$11:$CR$11,0))/100000,\"\")","v":""},{"$f":"IFERROR(AX89*INDEX('Energy Prices'!$F$12:$CR$17,MATCH('Data Input - Option 4'!$D97,'Energy Prices'!$C$12:$C$17,0),MATCH('Data Input - Option 4'!AX$7,'Energy Prices'!$F$11:$CR$11,0))/100000,\"\")","v":""},{"$f":"IFERROR(AY89*INDEX('Energy Prices'!$F$12:$CR$17,MATCH('Data Input - Option 4'!$D97,'Energy Prices'!$C$12:$C$17,0),MATCH('Data Input - Option 4'!AY$7,'Energy Prices'!$F$11:$CR$11,0))/100000,\"\")","v":""},{"$f":"IFERROR(AZ89*INDEX('Energy Prices'!$F$12:$CR$17,MATCH('Data Input - Option 4'!$D97,'Energy Prices'!$C$12:$C$17,0),MATCH('Data Input - Option 4'!AZ$7,'Energy Prices'!$F$11:$CR$11,0))/100000,\"\")","v":""},{"$f":"IFERROR(BA89*INDEX('Energy Prices'!$F$12:$CR$17,MATCH('Data Input - Option 4'!$D97,'Energy Prices'!$C$12:$C$17,0),MATCH('Data Input - Option 4'!BA$7,'Energy Prices'!$F$11:$CR$11,0))/100000,\"\")","v":""},{"$f":"IFERROR(BB89*INDEX('Energy Prices'!$F$12:$CR$17,MATCH('Data Input - Option 4'!$D97,'Energy Prices'!$C$12:$C$17,0),MATCH('Data Input - Option 4'!BB$7,'Energy Prices'!$F$11:$CR$11,0))/100000,\"\")","v":""},{"$f":"IFERROR(BC89*INDEX('Energy Prices'!$F$12:$CR$17,MATCH('Data Input - Option 4'!$D97,'Energy Prices'!$C$12:$C$17,0),MATCH('Data Input - Option 4'!BC$7,'Energy Prices'!$F$11:$CR$11,0))/100000,\"\")","v":""},{"$f":"IFERROR(BD89*INDEX('Energy Prices'!$F$12:$CR$17,MATCH('Data Input - Option 4'!$D97,'Energy Prices'!$C$12:$C$17,0),MATCH('Data Input - Option 4'!BD$7,'Energy Prices'!$F$11:$CR$11,0))/100000,\"\")","v":""},{"$f":"IFERROR(BE89*INDEX('Energy Prices'!$F$12:$CR$17,MATCH('Data Input - Option 4'!$D97,'Energy Prices'!$C$12:$C$17,0),MATCH('Data Input - Option 4'!BE$7,'Energy Prices'!$F$11:$CR$11,0))/100000,\"\")","v":""},{"$f":"IFERROR(BF89*INDEX('Energy Prices'!$F$12:$CR$17,MATCH('Data Input - Option 4'!$D97,'Energy Prices'!$C$12:$C$17,0),MATCH('Data Input - Option 4'!BF$7,'Energy Prices'!$F$11:$CR$11,0))/100000,\"\")","v":""},{"$f":"IFERROR(BG89*INDEX('Energy Prices'!$F$12:$CR$17,MATCH('Data Input - Option 4'!$D97,'Energy Prices'!$C$12:$C$17,0),MATCH('Data Input - Option 4'!BG$7,'Energy Prices'!$F$11:$CR$11,0))/100000,\"\")","v":""},{"$f":"IFERROR(BH89*INDEX('Energy Prices'!$F$12:$CR$17,MATCH('Data Input - Option 4'!$D97,'Energy Prices'!$C$12:$C$17,0),MATCH('Data Input - Option 4'!BH$7,'Energy Prices'!$F$11:$CR$11,0))/100000,\"\")","v":""},{"$f":"IFERROR(BI89*INDEX('Energy Prices'!$F$12:$CR$17,MATCH('Data Input - Option 4'!$D97,'Energy Prices'!$C$12:$C$17,0),MATCH('Data Input - Option 4'!BI$7,'Energy Prices'!$F$11:$CR$11,0))/100000,\"\")","v":""},{"$f":"IFERROR(BJ89*INDEX('Energy Prices'!$F$12:$CR$17,MATCH('Data Input - Option 4'!$D97,'Energy Prices'!$C$12:$C$17,0),MATCH('Data Input - Option 4'!BJ$7,'Energy Prices'!$F$11:$CR$11,0))/100000,\"\")","v":""},{"$f":"IFERROR(BK89*INDEX('Energy Prices'!$F$12:$CR$17,MATCH('Data Input - Option 4'!$D97,'Energy Prices'!$C$12:$C$17,0),MATCH('Data Input - Option 4'!BK$7,'Energy Prices'!$F$11:$CR$11,0))/100000,\"\")","v":""},{"$f":"IFERROR(BL89*INDEX('Energy Prices'!$F$12:$CR$17,MATCH('Data Input - Option 4'!$D97,'Energy Prices'!$C$12:$C$17,0),MATCH('Data Input - Option 4'!BL$7,'Energy Prices'!$F$11:$CR$11,0))/100000,\"\")","v":""},{"$f":"IFERROR(BM89*INDEX('Energy Prices'!$F$12:$CR$17,MATCH('Data Input - Option 4'!$D97,'Energy Prices'!$C$12:$C$17,0),MATCH('Data Input - Option 4'!BM$7,'Energy Prices'!$F$11:$CR$11,0))/100000,\"\")","v":""},{"$f":"IFERROR(BN89*INDEX('Energy Prices'!$F$12:$CR$17,MATCH('Data Input - Option 4'!$D97,'Energy Prices'!$C$12:$C$17,0),MATCH('Data Input - Option 4'!BN$7,'Energy Prices'!$F$11:$CR$11,0))/100000,\"\")","v":""},{"$f":"IFERROR(BO89*INDEX('Energy Prices'!$F$12:$CR$17,MATCH('Data Input - Option 4'!$D97,'Energy Prices'!$C$12:$C$17,0),MATCH('Data Input - Option 4'!BO$7,'Energy Prices'!$F$11:$CR$11,0))/100000,\"\")","v":""},{"$f":"IFERROR(BP89*INDEX('Energy Prices'!$F$12:$CR$17,MATCH('Data Input - Option 4'!$D97,'Energy Prices'!$C$12:$C$17,0),MATCH('Data Input - Option 4'!BP$7,'Energy Prices'!$F$11:$CR$11,0))/100000,\"\")","v":""},{"$f":"IFERROR(BQ89*INDEX('Energy Prices'!$F$12:$CR$17,MATCH('Data Input - Option 4'!$D97,'Energy Prices'!$C$12:$C$17,0),MATCH('Data Input - Option 4'!BQ$7,'Energy Prices'!$F$11:$CR$11,0))/100000,\"\")","v":""},{"$f":"IFERROR(BR89*INDEX('Energy Prices'!$F$12:$CR$17,MATCH('Data Input - Option 4'!$D97,'Energy Prices'!$C$12:$C$17,0),MATCH('Data Input - Option 4'!BR$7,'Energy Prices'!$F$11:$CR$11,0))/100000,\"\")","v":""},{"$f":"IFERROR(BS89*INDEX('Energy Prices'!$F$12:$CR$17,MATCH('Data Input - Option 4'!$D97,'Energy Prices'!$C$12:$C$17,0),MATCH('Data Input - Option 4'!BS$7,'Energy Prices'!$F$11:$CR$11,0))/100000,\"\")","v":""},{"$f":"IFERROR(BT89*INDEX('Energy Prices'!$F$12:$CR$17,MATCH('Data Input - Option 4'!$D97,'Energy Prices'!$C$12:$C$17,0),MATCH('Data Input - Option 4'!BT$7,'Energy Prices'!$F$11:$CR$11,0))/100000,\"\")","v":""},{"$f":"IFERROR(BU89*INDEX('Energy Prices'!$F$12:$CR$17,MATCH('Data Input - Option 4'!$D97,'Energy Prices'!$C$12:$C$17,0),MATCH('Data Input - Option 4'!BU$7,'Energy Prices'!$F$11:$CR$11,0))/100000,\"\")","v":""},{"$f":"IFERROR(BV89*INDEX('Energy Prices'!$F$12:$CR$17,MATCH('Data Input - Option 4'!$D97,'Energy Prices'!$C$12:$C$17,0),MATCH('Data Input - Option 4'!BV$7,'Energy Prices'!$F$11:$CR$11,0))/100000,\"\")","v":""},{"$f":"IFERROR(BW89*INDEX('Energy Prices'!$F$12:$CR$17,MATCH('Data Input - Option 4'!$D97,'Energy Prices'!$C$12:$C$17,0),MATCH('Data Input - Option 4'!BW$7,'Energy Prices'!$F$11:$CR$11,0))/100000,\"\")","v":""},{"$f":"IFERROR(BX89*INDEX('Energy Prices'!$F$12:$CR$17,MATCH('Data Input - Option 4'!$D97,'Energy Prices'!$C$12:$C$17,0),MATCH('Data Input - Option 4'!BX$7,'Energy Prices'!$F$11:$CR$11,0))/100000,\"\")","v":""},{"$f":"IFERROR(BY89*INDEX('Energy Prices'!$F$12:$CR$17,MATCH('Data Input - Option 4'!$D97,'Energy Prices'!$C$12:$C$17,0),MATCH('Data Input - Option 4'!BY$7,'Energy Prices'!$F$11:$CR$11,0))/100000,\"\")","v":""},{"$f":"IFERROR(BZ89*INDEX('Energy Prices'!$F$12:$CR$17,MATCH('Data Input - Option 4'!$D97,'Energy Prices'!$C$12:$C$17,0),MATCH('Data Input - Option 4'!BZ$7,'Energy Prices'!$F$11:$CR$11,0))/100000,\"\")","v":""},{"$f":"IFERROR(CA89*INDEX('Energy Prices'!$F$12:$CR$17,MATCH('Data Input - Option 4'!$D97,'Energy Prices'!$C$12:$C$17,0),MATCH('Data Input - Option 4'!CA$7,'Energy Prices'!$F$11:$CR$11,0))/100000,\"\")","v":""},{"$f":"IFERROR(CB89*INDEX('Energy Prices'!$F$12:$CR$17,MATCH('Data Input - Option 4'!$D97,'Energy Prices'!$C$12:$C$17,0),MATCH('Data Input - Option 4'!CB$7,'Energy Prices'!$F$11:$CR$11,0))/100000,\"\")","v":""},{"$f":"IFERROR(CC89*INDEX('Energy Prices'!$F$12:$CR$17,MATCH('Data Input - Option 4'!$D97,'Energy Prices'!$C$12:$C$17,0),MATCH('Data Input - Option 4'!CC$7,'Energy Prices'!$F$11:$CR$11,0))/100000,\"\")","v":""},{"$f":"IFERROR(CD89*INDEX('Energy Prices'!$F$12:$CR$17,MATCH('Data Input - Option 4'!$D97,'Energy Prices'!$C$12:$C$17,0),MATCH('Data Input - Option 4'!CD$7,'Energy Prices'!$F$11:$CR$11,0))/100000,\"\")","v":""},{"$f":"IFERROR(CE89*INDEX('Energy Prices'!$F$12:$CR$17,MATCH('Data Input - Option 4'!$D97,'Energy Prices'!$C$12:$C$17,0),MATCH('Data Input - Option 4'!CE$7,'Energy Prices'!$F$11:$CR$11,0))/100000,\"\")","v":""},{"$f":"IFERROR(CF89*INDEX('Energy Prices'!$F$12:$CR$17,MATCH('Data Input - Option 4'!$D97,'Energy Prices'!$C$12:$C$17,0),MATCH('Data Input - Option 4'!CF$7,'Energy Prices'!$F$11:$CR$11,0))/100000,\"\")","v":""},{"$f":"IFERROR(CG89*INDEX('Energy Prices'!$F$12:$CR$17,MATCH('Data Input - Option 4'!$D97,'Energy Prices'!$C$12:$C$17,0),MATCH('Data Input - Option 4'!CG$7,'Energy Prices'!$F$11:$CR$11,0))/100000,\"\")","v":""},{"$f":"IFERROR(CH89*INDEX('Energy Prices'!$F$12:$CR$17,MATCH('Data Input - Option 4'!$D97,'Energy Prices'!$C$12:$C$17,0),MATCH('Data Input - Option 4'!CH$7,'Energy Prices'!$F$11:$CR$11,0))/100000,\"\")","v":""},{"$f":"IFERROR(CI89*INDEX('Energy Prices'!$F$12:$CR$17,MATCH('Data Input - Option 4'!$D97,'Energy Prices'!$C$12:$C$17,0),MATCH('Data Input - Option 4'!CI$7,'Energy Prices'!$F$11:$CR$11,0))/100000,\"\")","v":""},{"$f":"IFERROR(CJ89*INDEX('Energy Prices'!$F$12:$CR$17,MATCH('Data Input - Option 4'!$D97,'Energy Prices'!$C$12:$C$17,0),MATCH('Data Input - Option 4'!CJ$7,'Energy Prices'!$F$11:$CR$11,0))/100000,\"\")","v":""},{"$f":"IFERROR(CK89*INDEX('Energy Prices'!$F$12:$CR$17,MATCH('Data Input - Option 4'!$D97,'Energy Prices'!$C$12:$C$17,0),MATCH('Data Input - Option 4'!CK$7,'Energy Prices'!$F$11:$CR$11,0))/100000,\"\")","v":""},{"$f":"IFERROR(CL89*INDEX('Energy Prices'!$F$12:$CR$17,MATCH('Data Input - Option 4'!$D97,'Energy Prices'!$C$12:$C$17,0),MATCH('Data Input - Option 4'!CL$7,'Energy Prices'!$F$11:$CR$11,0))/100000,\"\")","v":""},{"$f":"IFERROR(CM89*INDEX('Energy Prices'!$F$12:$CR$17,MATCH('Data Input - Option 4'!$D97,'Energy Prices'!$C$12:$C$17,0),MATCH('Data Input - Option 4'!CM$7,'Energy Prices'!$F$11:$CR$11,0))/100000,\"\")","v":""},{"$f":"IFERROR(CN89*INDEX('Energy Prices'!$F$12:$CR$17,MATCH('Data Input - Option 4'!$D97,'Energy Prices'!$C$12:$C$17,0),MATCH('Data Input - Option 4'!CN$7,'Energy Prices'!$F$11:$CR$11,0))/100000,\"\")","v":""},{"$f":"IFERROR(CO89*INDEX('Energy Prices'!$F$12:$CR$17,MATCH('Data Input - Option 4'!$D97,'Energy Prices'!$C$12:$C$17,0),MATCH('Data Input - Option 4'!CO$7,'Energy Prices'!$F$11:$CR$11,0))/100000,\"\")","v":""},{"$f":"IFERROR(CP89*INDEX('Energy Prices'!$F$12:$CR$17,MATCH('Data Input - Option 4'!$D97,'Energy Prices'!$C$12:$C$17,0),MATCH('Data Input - Option 4'!CP$7,'Energy Prices'!$F$11:$CR$11,0))/100000,\"\")","v":""},{"$f":"IFERROR(CQ89*INDEX('Energy Prices'!$F$12:$CR$17,MATCH('Data Input - Option 4'!$D97,'Energy Prices'!$C$12:$C$17,0),MATCH('Data Input - Option 4'!CQ$7,'Energy Prices'!$F$11:$CR$11,0))/100000,\"\")","v":""},{"$f":"IFERROR(CR89*INDEX('Energy Prices'!$F$12:$CR$17,MATCH('Data Input - Option 4'!$D97,'Energy Prices'!$C$12:$C$17,0),MATCH('Data Input - Option 4'!CR$7,'Energy Prices'!$F$11:$CR$11,0))/100000,\"\")","v":""},{"$f":"IFERROR(CS89*INDEX('Energy Prices'!$F$12:$CR$17,MATCH('Data Input - Option 4'!$D97,'Energy Prices'!$C$12:$C$17,0),MATCH('Data Input - Option 4'!CS$7,'Energy Prices'!$F$11:$CR$11,0))/100000,\"\")","v":""},{"$f":"IFERROR(CT89*INDEX('Energy Prices'!$F$12:$CR$17,MATCH('Data Input - Option 4'!$D97,'Energy Prices'!$C$12:$C$17,0),MATCH('Data Input - Option 4'!CT$7,'Energy Prices'!$F$11:$CR$11,0))/100000,\"\")","v":""},{"$f":"IFERROR(CU89*INDEX('Energy Prices'!$F$12:$CR$17,MATCH('Data Input - Option 4'!$D97,'Energy Prices'!$C$12:$C$17,0),MATCH('Data Input - Option 4'!CU$7,'Energy Prices'!$F$11:$CR$11,0))/100000,\"\")","v":""},{"$f":"IFERROR(CV89*INDEX('Energy Prices'!$F$12:$CR$17,MATCH('Data Input - Option 4'!$D97,'Energy Prices'!$C$12:$C$17,0),MATCH('Data Input - Option 4'!CV$7,'Energy Prices'!$F$11:$CR$11,0))/100000,\"\")","v":""},{"$f":"IFERROR(CW89*INDEX('Energy Prices'!$F$12:$CR$17,MATCH('Data Input - Option 4'!$D97,'Energy Prices'!$C$12:$C$17,0),MATCH('Data Input - Option 4'!CW$7,'Energy Prices'!$F$11:$CR$11,0))/100000,\"\")","v":""},{"$f":"IFERROR(CX89*INDEX('Energy Prices'!$F$12:$CR$17,MATCH('Data Input - Option 4'!$D97,'Energy Prices'!$C$12:$C$17,0),MATCH('Data Input - Option 4'!CX$7,'Energy Prices'!$F$11:$CR$11,0))/100000,\"\")","v":""},{"$f":"IFERROR(CY89*INDEX('Energy Prices'!$F$12:$CR$17,MATCH('Data Input - Option 4'!$D97,'Energy Prices'!$C$12:$C$17,0),MATCH('Data Input - Option 4'!CY$7,'Energy Prices'!$F$11:$CR$11,0))/100000,\"\")","v":""},{"$f":"IFERROR(CZ89*INDEX('Energy Prices'!$F$12:$CR$17,MATCH('Data Input - Option 4'!$D97,'Energy Prices'!$C$12:$C$17,0),MATCH('Data Input - Option 4'!CZ$7,'Energy Prices'!$F$11:$CR$11,0))/100000,\"\")","v":""},{"$f":"IFERROR(DA89*INDEX('Energy Prices'!$F$12:$CR$17,MATCH('Data Input - Option 4'!$D97,'Energy Prices'!$C$12:$C$17,0),MATCH('Data Input - Option 4'!DA$7,'Energy Prices'!$F$11:$CR$11,0))/100000,\"\")","v":""},{"$f":"IFERROR(DB89*INDEX('Energy Prices'!$F$12:$CR$17,MATCH('Data Input - Option 4'!$D97,'Energy Prices'!$C$12:$C$17,0),MATCH('Data Input - Option 4'!DB$7,'Energy Prices'!$F$11:$CR$11,0))/100000,\"\")","v":""},{"$f":"IFERROR(DC89*INDEX('Energy Prices'!$F$12:$CR$17,MATCH('Data Input - Option 4'!$D97,'Energy Prices'!$C$12:$C$17,0),MATCH('Data Input - Option 4'!DC$7,'Energy Prices'!$F$11:$CR$11,0))/100000,\"\")","v":""}]
[null,null,"8.48","test 3","£000's"]
[]
[null,null,null,"Total cost of energy","£000's","(Auto calculated value)",null,{"$f":"SUM(H92:H99)","v":5.0932081704451121E-4},{"$f":"SUM(I92:I99)","v":0},{"$f":"SUM(J92:J99)","v":0},0,0,0,0,0,0,0,0,0,0,0,0,0,0,0,0,0,0,0,0,0,0,0,0,0,0,0,0,0,0,0,0,0,0,0,0,0,0,0,0,0,0,0,0,0,0,0,0,0,0,0,0,0,0,0,0,0,0,0,0,0,0,0,{"$f":"SUM(BV92:BV99)","v":0},0,0,0,0,0,0,0,0,0,0,0,0,0,0,0,0,0,0,0,0,0,0,0,0,0,0,0,0,0,0,0,0,0]
[]
[null,null,"Environmental impacts"]
[]
[null,null,null,"Air pollutant emissions","(?)"]
[null,null,"8.49",null,"Tonnes"," <(Select from dropdown)"]
[null,null,null,null,"Tonnes"," <(Select from dropdown)"]
[null,null,null,null,"Tonnes"," <(Select from dropdown)"]
[null,null,null,null,"Tonnes"," <(Select from dropdown)"]
[null,null,null,null,"Tonnes"," <(Select from dropdown)"]
[null,null,null,null,"Tonnes"," <(Select from dropdown)"]
[]
[null,null,null,"'Process-related' GHG emissions"]
[null,null,"8.50",null,"Tonnes"," <(Select from dropdown)"]
[]
[null,null,"8.51","Additional emission type (please specify)","tCO2e","(?)"]
[]
[null,null,null,"Total process GHG Emissions","tCO2e","(Auto calculated value)",null,{"$f":"IFERROR(IF(ISBLANK(H113),0,H113*INDEX(Assumptions!$D$20:$D$53,MATCH($D$113,lkpGreenHouseGases,0)))+IF(ISBLANK(H115),0,H115),0)","v":0},{"$f":"IFERROR(IF(ISBLANK(I113),0,I113*INDEX(Assumptions!$D$20:$D$53,MATCH($D$113,lkpGreenHouseGases,0)))+IF(ISBLANK(I115),0,I115),0)","v":0},{"$f":"IFERROR(IF(ISBLANK(J113),0,J113*INDEX(Assumptions!$D$20:$D$53,MATCH($D$113,lkpGreenHouseGases,0)))+IF(ISBLANK(J115),0,J115),0)","v":0},{"$f":"IFERROR(IF(ISBLANK(K113),0,K113*INDEX(Assumptions!$D$20:$D$53,MATCH($D$113,lkpGreenHouseGases,0)))+IF(ISBLANK(K115),0,K115),0)","v":0},{"$f":"IFERROR(IF(ISBLANK(L113),0,L113*INDEX(Assumptions!$D$20:$D$53,MATCH($D$113,lkpGreenHouseGases,0)))+IF(ISBLANK(L115),0,L115),0)","v":0},{"$f":"IFERROR(IF(ISBLANK(M113),0,M113*INDEX(Assumptions!$D$20:$D$53,MATCH($D$113,lkpGreenHouseGases,0)))+IF(ISBLANK(M115),0,M115),0)","v":0},{"$f":"IFERROR(IF(ISBLANK(N113),0,N113*INDEX(Assumptions!$D$20:$D$53,MATCH($D$113,lkpGreenHouseGases,0)))+IF(ISBLANK(N115),0,N115),0)","v":0},{"$f":"IFERROR(IF(ISBLANK(O113),0,O113*INDEX(Assumptions!$D$20:$D$53,MATCH($D$113,lkpGreenHouseGases,0)))+IF(ISBLANK(O115),0,O115),0)","v":0},{"$f":"IFERROR(IF(ISBLANK(P113),0,P113*INDEX(Assumptions!$D$20:$D$53,MATCH($D$113,lkpGreenHouseGases,0)))+IF(ISBLANK(P115),0,P115),0)","v":0},{"$f":"IFERROR(IF(ISBLANK(Q113),0,Q113*INDEX(Assumptions!$D$20:$D$53,MATCH($D$113,lkpGreenHouseGases,0)))+IF(ISBLANK(Q115),0,Q115),0)","v":0},{"$f":"IFERROR(IF(ISBLANK(R113),0,R113*INDEX(Assumptions!$D$20:$D$53,MATCH($D$113,lkpGreenHouseGases,0)))+IF(ISBLANK(R115),0,R115),0)","v":0},{"$f":"IFERROR(IF(ISBLANK(S113),0,S113*INDEX(Assumptions!$D$20:$D$53,MATCH($D$113,lkpGreenHouseGases,0)))+IF(ISBLANK(S115),0,S115),0)","v":0},{"$f":"IFERROR(IF(ISBLANK(T113),0,T113*INDEX(Assumptions!$D$20:$D$53,MATCH($D$113,lkpGreenHouseGases,0)))+IF(ISBLANK(T115),0,T115),0)","v":0},{"$f":"IFERROR(IF(ISBLANK(U113),0,U113*INDEX(Assumptions!$D$20:$D$53,MATCH($D$113,lkpGreenHouseGases,0)))+IF(ISBLANK(U115),0,U115),0)","v":0},{"$f":"IFERROR(IF(ISBLANK(V113),0,V113*INDEX(Assumptions!$D$20:$D$53,MATCH($D$113,lkpGreenHouseGases,0)))+IF(ISBLANK(V115),0,V115),0)","v":0},{"$f":"IFERROR(IF(ISBLANK(W113),0,W113*INDEX(Assumptions!$D$20:$D$53,MATCH($D$113,lkpGreenHouseGases,0)))+IF(ISBLANK(W115),0,W115),0)","v":0},{"$f":"IFERROR(IF(ISBLANK(X113),0,X113*INDEX(Assumptions!$D$20:$D$53,MATCH($D$113,lkpGreenHouseGases,0)))+IF(ISBLANK(X115),0,X115),0)","v":0},{"$f":"IFERROR(IF(ISBLANK(Y113),0,Y113*INDEX(Assumptions!$D$20:$D$53,MATCH($D$113,lkpGreenHouseGases,0)))+IF(ISBLANK(Y115),0,Y115),0)","v":0},{"$f":"IFERROR(IF(ISBLANK(Z113),0,Z113*INDEX(Assumptions!$D$20:$D$53,MATCH($D$113,lkpGreenHouseGases,0)))+IF(ISBLANK(Z115),0,Z115),0)","v":0},{"$f":"IFERROR(IF(ISBLANK(AA113),0,AA113*INDEX(Assumptions!$D$20:$D$53,MATCH($D$113,lkpGreenHouseGases,0)))+IF(ISBLANK(AA115),0,AA115),0)","v":0},{"$f":"IFERROR(IF(ISBLANK(AB113),0,AB113*INDEX(Assumptions!$D$20:$D$53,MATCH($D$113,lkpGreenHouseGases,0)))+IF(ISBLANK(AB115),0,AB115),0)","v":0},{"$f":"IFERROR(IF(ISBLANK(AC113),0,AC113*INDEX(Assumptions!$D$20:$D$53,MATCH($D$113,lkpGreenHouseGases,0)))+IF(ISBLANK(AC115),0,AC115),0)","v":0},{"$f":"IFERROR(IF(ISBLANK(AD113),0,AD113*INDEX(Assumptions!$D$20:$D$53,MATCH($D$113,lkpGreenHouseGases,0)))+IF(ISBLANK(AD115),0,AD115),0)","v":0},{"$f":"IFERROR(IF(ISBLANK(AE113),0,AE113*INDEX(Assumptions!$D$20:$D$53,MATCH($D$113,lkpGreenHouseGases,0)))+IF(ISBLANK(AE115),0,AE115),0)","v":0},{"$f":"IFERROR(IF(ISBLANK(AF113),0,AF113*INDEX(Assumptions!$D$20:$D$53,MATCH($D$113,lkpGreenHouseGases,0)))+IF(ISBLANK(AF115),0,AF115),0)","v":0},{"$f":"IFERROR(IF(ISBLANK(AG113),0,AG113*INDEX(Assumptions!$D$20:$D$53,MATCH($D$113,lkpGreenHouseGases,0)))+IF(ISBLANK(AG115),0,AG115),0)","v":0},{"$f":"IFERROR(IF(ISBLANK(AH113),0,AH113*INDEX(Assumptions!$D$20:$D$53,MATCH($D$113,lkpGreenHouseGases,0)))+IF(ISBLANK(AH115),0,AH115),0)","v":0},{"$f":"IFERROR(IF(ISBLANK(AI113),0,AI113*INDEX(Assumptions!$D$20:$D$53,MATCH($D$113,lkpGreenHouseGases,0)))+IF(ISBLANK(AI115),0,AI115),0)","v":0},{"$f":"IFERROR(IF(ISBLANK(AJ113),0,AJ113*INDEX(Assumptions!$D$20:$D$53,MATCH($D$113,lkpGreenHouseGases,0)))+IF(ISBLANK(AJ115),0,AJ115),0)","v":0},{"$f":"IFERROR(IF(ISBLANK(AK113),0,AK113*INDEX(Assumptions!$D$20:$D$53,MATCH($D$113,lkpGreenHouseGases,0)))+IF(ISBLANK(AK115),0,AK115),0)","v":0},{"$f":"IFERROR(IF(ISBLANK(AL113),0,AL113*INDEX(Assumptions!$D$20:$D$53,MATCH($D$113,lkpGreenHouseGases,0)))+IF(ISBLANK(AL115),0,AL115),0)","v":0},{"$f":"IFERROR(IF(ISBLANK(AM113),0,AM113*INDEX(Assumptions!$D$20:$D$53,MATCH($D$113,lkpGreenHouseGases,0)))+IF(ISBLANK(AM115),0,AM115),0)","v":0},{"$f":"IFERROR(IF(ISBLANK(AN113),0,AN113*INDEX(Assumptions!$D$20:$D$53,MATCH($D$113,lkpGreenHouseGases,0)))+IF(ISBLANK(AN115),0,AN115),0)","v":0},{"$f":"IFERROR(IF(ISBLANK(AO113),0,AO113*INDEX(Assumptions!$D$20:$D$53,MATCH($D$113,lkpGreenHouseGases,0)))+IF(ISBLANK(AO115),0,AO115),0)","v":0},{"$f":"IFERROR(IF(ISBLANK(AP113),0,AP113*INDEX(Assumptions!$D$20:$D$53,MATCH($D$113,lkpGreenHouseGases,0)))+IF(ISBLANK(AP115),0,AP115),0)","v":0},{"$f":"IFERROR(IF(ISBLANK(AQ113),0,AQ113*INDEX(Assumptions!$D$20:$D$53,MATCH($D$113,lkpGreenHouseGases,0)))+IF(ISBLANK(AQ115),0,AQ115),0)","v":0},{"$f":"IFERROR(IF(ISBLANK(AR113),0,AR113*INDEX(Assumptions!$D$20:$D$53,MATCH($D$113,lkpGreenHouseGases,0)))+IF(ISBLANK(AR115),0,AR115),0)","v":0},{"$f":"IFERROR(IF(ISBLANK(AS113),0,AS113*INDEX(Assumptions!$D$20:$D$53,MATCH($D$113,lkpGreenHouseGases,0)))+IF(ISBLANK(AS115),0,AS115),0)","v":0},{"$f":"IFERROR(IF(ISBLANK(AT113),0,AT113*INDEX(Assumptions!$D$20:$D$53,MATCH($D$113,lkpGreenHouseGases,0)))+IF(ISBLANK(AT115),0,AT115),0)","v":0},{"$f":"IFERROR(IF(ISBLANK(AU113),0,AU113*INDEX(Assumptions!$D$20:$D$53,MATCH($D$113,lkpGreenHouseGases,0)))+IF(ISBLANK(AU115),0,AU115),0)","v":0},{"$f":"IFERROR(IF(ISBLANK(AV113),0,AV113*INDEX(Assumptions!$D$20:$D$53,MATCH($D$113,lkpGreenHouseGases,0)))+IF(ISBLANK(AV115),0,AV115),0)","v":0},{"$f":"IFERROR(IF(ISBLANK(AW113),0,AW113*INDEX(Assumptions!$D$20:$D$53,MATCH($D$113,lkpGreenHouseGases,0)))+IF(ISBLANK(AW115),0,AW115),0)","v":0},{"$f":"IFERROR(IF(ISBLANK(AX113),0,AX113*INDEX(Assumptions!$D$20:$D$53,MATCH($D$113,lkpGreenHouseGases,0)))+IF(ISBLANK(AX115),0,AX115),0)","v":0},{"$f":"IFERROR(IF(ISBLANK(AY113),0,AY113*INDEX(Assumptions!$D$20:$D$53,MATCH($D$113,lkpGreenHouseGases,0)))+IF(ISBLANK(AY115),0,AY115),0)","v":0},{"$f":"IFERROR(IF(ISBLANK(AZ113),0,AZ113*INDEX(Assumptions!$D$20:$D$53,MATCH($D$113,lkpGreenHouseGases,0)))+IF(ISBLANK(AZ115),0,AZ115),0)","v":0},{"$f":"IFERROR(IF(ISBLANK(BA113),0,BA113*INDEX(Assumptions!$D$20:$D$53,MATCH($D$113,lkpGreenHouseGases,0)))+IF(ISBLANK(BA115),0,BA115),0)","v":0},{"$f":"IFERROR(IF(ISBLANK(BB113),0,BB113*INDEX(Assumptions!$D$20:$D$53,MATCH($D$113,lkpGreenHouseGases,0)))+IF(ISBLANK(BB115),0,BB115),0)","v":0},{"$f":"IFERROR(IF(ISBLANK(BC113),0,BC113*INDEX(Assumptions!$D$20:$D$53,MATCH($D$113,lkpGreenHouseGases,0)))+IF(ISBLANK(BC115),0,BC115),0)","v":0},{"$f":"IFERROR(IF(ISBLANK(BD113),0,BD113*INDEX(Assumptions!$D$20:$D$53,MATCH($D$113,lkpGreenHouseGases,0)))+IF(ISBLANK(BD115),0,BD115),0)","v":0},{"$f":"IFERROR(IF(ISBLANK(BE113),0,BE113*INDEX(Assumptions!$D$20:$D$53,MATCH($D$113,lkpGreenHouseGases,0)))+IF(ISBLANK(BE115),0,BE115),0)","v":0},{"$f":"IFERROR(IF(ISBLANK(BF113),0,BF113*INDEX(Assumptions!$D$20:$D$53,MATCH($D$113,lkpGreenHouseGases,0)))+IF(ISBLANK(BF115),0,BF115),0)","v":0},{"$f":"IFERROR(IF(ISBLANK(BG113),0,BG113*INDEX(Assumptions!$D$20:$D$53,MATCH($D$113,lkpGreenHouseGases,0)))+IF(ISBLANK(BG115),0,BG115),0)","v":0},{"$f":"IFERROR(IF(ISBLANK(BH113),0,BH113*INDEX(Assumptions!$D$20:$D$53,MATCH($D$113,lkpGreenHouseGases,0)))+IF(ISBLANK(BH115),0,BH115),0)","v":0},{"$f":"IFERROR(IF(ISBLANK(BI113),0,BI113*INDEX(Assumptions!$D$20:$D$53,MATCH($D$113,lkpGreenHouseGases,0)))+IF(ISBLANK(BI115),0,BI115),0)","v":0},{"$f":"IFERROR(IF(ISBLANK(BJ113),0,BJ113*INDEX(Assumptions!$D$20:$D$53,MATCH($D$113,lkpGreenHouseGases,0)))+IF(ISBLANK(BJ115),0,BJ115),0)","v":0},{"$f":"IFERROR(IF(ISBLANK(BK113),0,BK113*INDEX(Assumptions!$D$20:$D$53,MATCH($D$113,lkpGreenHouseGases,0)))+IF(ISBLANK(BK115),0,BK115),0)","v":0},{"$f":"IFERROR(IF(ISBLANK(BL113),0,BL113*INDEX(Assumptions!$D$20:$D$53,MATCH($D$113,lkpGreenHouseGases,0)))+IF(ISBLANK(BL115),0,BL115),0)","v":0},{"$f":"IFERROR(IF(ISBLANK(BM113),0,BM113*INDEX(Assumptions!$D$20:$D$53,MATCH($D$113,lkpGreenHouseGases,0)))+IF(ISBLANK(BM115),0,BM115),0)","v":0},{"$f":"IFERROR(IF(ISBLANK(BN113),0,BN113*INDEX(Assumptions!$D$20:$D$53,MATCH($D$113,lkpGreenHouseGases,0)))+IF(ISBLANK(BN115),0,BN115),0)","v":0},{"$f":"IFERROR(IF(ISBLANK(BO113),0,BO113*INDEX(Assumptions!$D$20:$D$53,MATCH($D$113,lkpGreenHouseGases,0)))+IF(ISBLANK(BO115),0,BO115),0)","v":0},{"$f":"IFERROR(IF(ISBLANK(BP113),0,BP113*INDEX(Assumptions!$D$20:$D$53,MATCH($D$113,lkpGreenHouseGases,0)))+IF(ISBLANK(BP115),0,BP115),0)","v":0},{"$f":"IFERROR(IF(ISBLANK(BQ113),0,BQ113*INDEX(Assumptions!$D$20:$D$53,MATCH($D$113,lkpGreenHouseGases,0)))+IF(ISBLANK(BQ115),0,BQ115),0)","v":0},{"$f":"IFERROR(IF(ISBLANK(BR113),0,BR113*INDEX(Assumptions!$D$20:$D$53,MATCH($D$113,lkpGreenHouseGases,0)))+IF(ISBLANK(BR115),0,BR115),0)","v":0},{"$f":"IFERROR(IF(ISBLANK(BS113),0,BS113*INDEX(Assumptions!$D$20:$D$53,MATCH($D$113,lkpGreenHouseGases,0)))+IF(ISBLANK(BS115),0,BS115),0)","v":0},{"$f":"IFERROR(IF(ISBLANK(BT113),0,BT113*INDEX(Assumptions!$D$20:$D$53,MATCH($D$113,lkpGreenHouseGases,0)))+IF(ISBLANK(BT115),0,BT115),0)","v":0},{"$f":"IFERROR(IF(ISBLANK(BU113),0,BU113*INDEX(Assumptions!$D$20:$D$53,MATCH($D$113,lkpGreenHouseGases,0)))+IF(ISBLANK(BU115),0,BU115),0)","v":0},{"$f":"IFERROR(IF(ISBLANK(BV113),0,BV113*INDEX(Assumptions!$D$20:$D$53,MATCH($D$113,lkpGreenHouseGases,0)))+IF(ISBLANK(BV115),0,BV115),0)","v":0},{"$f":"IFERROR(IF(ISBLANK(BW113),0,BW113*INDEX(Assumptions!$D$20:$D$53,MATCH($D$113,lkpGreenHouseGases,0)))+IF(ISBLANK(BW115),0,BW115),0)","v":0},{"$f":"IFERROR(IF(ISBLANK(BX113),0,BX113*INDEX(Assumptions!$D$20:$D$53,MATCH($D$113,lkpGreenHouseGases,0)))+IF(ISBLANK(BX115),0,BX115),0)","v":0},{"$f":"IFERROR(IF(ISBLANK(BY113),0,BY113*INDEX(Assumptions!$D$20:$D$53,MATCH($D$113,lkpGreenHouseGases,0)))+IF(ISBLANK(BY115),0,BY115),0)","v":0},{"$f":"IFERROR(IF(ISBLANK(BZ113),0,BZ113*INDEX(Assumptions!$D$20:$D$53,MATCH($D$113,lkpGreenHouseGases,0)))+IF(ISBLANK(BZ115),0,BZ115),0)","v":0},{"$f":"IFERROR(IF(ISBLANK(CA113),0,CA113*INDEX(Assumptions!$D$20:$D$53,MATCH($D$113,lkpGreenHouseGases,0)))+IF(ISBLANK(CA115),0,CA115),0)","v":0},{"$f":"IFERROR(IF(ISBLANK(CB113),0,CB113*INDEX(Assumptions!$D$20:$D$53,MATCH($D$113,lkpGreenHouseGases,0)))+IF(ISBLANK(CB115),0,CB115),0)","v":0},{"$f":"IFERROR(IF(ISBLANK(CC113),0,CC113*INDEX(Assumptions!$D$20:$D$53,MATCH($D$113,lkpGreenHouseGases,0)))+IF(ISBLANK(CC115),0,CC115),0)","v":0},{"$f":"IFERROR(IF(ISBLANK(CD113),0,CD113*INDEX(Assumptions!$D$20:$D$53,MATCH($D$113,lkpGreenHouseGases,0)))+IF(ISBLANK(CD115),0,CD115),0)","v":0},{"$f":"IFERROR(IF(ISBLANK(CE113),0,CE113*INDEX(Assumptions!$D$20:$D$53,MATCH($D$113,lkpGreenHouseGases,0)))+IF(ISBLANK(CE115),0,CE115),0)","v":0},{"$f":"IFERROR(IF(ISBLANK(CF113),0,CF113*INDEX(Assumptions!$D$20:$D$53,MATCH($D$113,lkpGreenHouseGases,0)))+IF(ISBLANK(CF115),0,CF115),0)","v":0},{"$f":"IFERROR(IF(ISBLANK(CG113),0,CG113*INDEX(Assumptions!$D$20:$D$53,MATCH($D$113,lkpGreenHouseGases,0)))+IF(ISBLANK(CG115),0,CG115),0)","v":0},{"$f":"IFERROR(IF(ISBLANK(CH113),0,CH113*INDEX(Assumptions!$D$20:$D$53,MATCH($D$113,lkpGreenHouseGases,0)))+IF(ISBLANK(CH115),0,CH115),0)","v":0},{"$f":"IFERROR(IF(ISBLANK(CI113),0,CI113*INDEX(Assumptions!$D$20:$D$53,MATCH($D$113,lkpGreenHouseGases,0)))+IF(ISBLANK(CI115),0,CI115),0)","v":0},{"$f":"IFERROR(IF(ISBLANK(CJ113),0,CJ113*INDEX(Assumptions!$D$20:$D$53,MATCH($D$113,lkpGreenHouseGases,0)))+IF(ISBLANK(CJ115),0,CJ115),0)","v":0},{"$f":"IFERROR(IF(ISBLANK(CK113),0,CK113*INDEX(Assumptions!$D$20:$D$53,MATCH($D$113,lkpGreenHouseGases,0)))+IF(ISBLANK(CK115),0,CK115),0)","v":0},{"$f":"IFERROR(IF(ISBLANK(CL113),0,CL113*INDEX(Assumptions!$D$20:$D$53,MATCH($D$113,lkpGreenHouseGases,0)))+IF(ISBLANK(CL115),0,CL115),0)","v":0},{"$f":"IFERROR(IF(ISBLANK(CM113),0,CM113*INDEX(Assumptions!$D$20:$D$53,MATCH($D$113,lkpGreenHouseGases,0)))+IF(ISBLANK(CM115),0,CM115),0)","v":0},{"$f":"IFERROR(IF(ISBLANK(CN113),0,CN113*INDEX(Assumptions!$D$20:$D$53,MATCH($D$113,lkpGreenHouseGases,0)))+IF(ISBLANK(CN115),0,CN115),0)","v":0},{"$f":"IFERROR(IF(ISBLANK(CO113),0,CO113*INDEX(Assumptions!$D$20:$D$53,MATCH($D$113,lkpGreenHouseGases,0)))+IF(ISBLANK(CO115),0,CO115),0)","v":0},{"$f":"IFERROR(IF(ISBLANK(CP113),0,CP113*INDEX(Assumptions!$D$20:$D$53,MATCH($D$113,lkpGreenHouseGases,0)))+IF(ISBLANK(CP115),0,CP115),0)","v":0},{"$f":"IFERROR(IF(ISBLANK(CQ113),0,CQ113*INDEX(Assumptions!$D$20:$D$53,MATCH($D$113,lkpGreenHouseGases,0)))+IF(ISBLANK(CQ115),0,CQ115),0)","v":0},{"$f":"IFERROR(IF(ISBLANK(CR113),0,CR113*INDEX(Assumptions!$D$20:$D$53,MATCH($D$113,lkpGreenHouseGases,0)))+IF(ISBLANK(CR115),0,CR115),0)","v":0},{"$f":"IFERROR(IF(ISBLANK(CS113),0,CS113*INDEX(Assumptions!$D$20:$D$53,MATCH($D$113,lkpGreenHouseGases,0)))+IF(ISBLANK(CS115),0,CS115),0)","v":0},{"$f":"IFERROR(IF(ISBLANK(CT113),0,CT113*INDEX(Assumptions!$D$20:$D$53,MATCH($D$113,lkpGreenHouseGases,0)))+IF(ISBLANK(CT115),0,CT115),0)","v":0},{"$f":"IFERROR(IF(ISBLANK(CU113),0,CU113*INDEX(Assumptions!$D$20:$D$53,MATCH($D$113,lkpGreenHouseGases,0)))+IF(ISBLANK(CU115),0,CU115),0)","v":0},{"$f":"IFERROR(IF(ISBLANK(CV113),0,CV113*INDEX(Assumptions!$D$20:$D$53,MATCH($D$113,lkpGreenHouseGases,0)))+IF(ISBLANK(CV115),0,CV115),0)","v":0},{"$f":"IFERROR(IF(ISBLANK(CW113),0,CW113*INDEX(Assumptions!$D$20:$D$53,MATCH($D$113,lkpGreenHouseGases,0)))+IF(ISBLANK(CW115),0,CW115),0)","v":0},{"$f":"IFERROR(IF(ISBLANK(CX113),0,CX113*INDEX(Assumptions!$D$20:$D$53,MATCH($D$113,lkpGreenHouseGases,0)))+IF(ISBLANK(CX115),0,CX115),0)","v":0},{"$f":"IFERROR(IF(ISBLANK(CY113),0,CY113*INDEX(Assumptions!$D$20:$D$53,MATCH($D$113,lkpGreenHouseGases,0)))+IF(ISBLANK(CY115),0,CY115),0)","v":0},{"$f":"IFERROR(IF(ISBLANK(CZ113),0,CZ113*INDEX(Assumptions!$D$20:$D$53,MATCH($D$113,lkpGreenHouseGases,0)))+IF(ISBLANK(CZ115),0,CZ115),0)","v":0},{"$f":"IFERROR(IF(ISBLANK(DA113),0,DA113*INDEX(Assumptions!$D$20:$D$53,MATCH($D$113,lkpGreenHouseGases,0)))+IF(ISBLANK(DA115),0,DA115),0)","v":0},{"$f":"IFERROR(IF(ISBLANK(DB113),0,DB113*INDEX(Assumptions!$D$20:$D$53,MATCH($D$113,lkpGreenHouseGases,0)))+IF(ISBLANK(DB115),0,DB115),0)","v":0},{"$f":"IFERROR(IF(ISBLANK(DC113),0,DC113*INDEX(Assumptions!$D$20:$D$53,MATCH($D$113,lkpGreenHouseGases,0)))+IF(ISBLANK(DC115),0,DC115),0)","v":0},{"$f":"IFERROR(IF(ISBLANK(DD113),0,DD113*INDEX(Assumptions!$D$20:$D$53,MATCH($D$113,lkpGreenHouseGases,0)))+IF(ISBLANK(DD115),0,DD115),0)","v":0}]
[]
[null,null,null,"'Fuel-related' GHG emissions","(?)"]
[null,null,null,{"$f":"D92","v":"Electricity"},"tCO2e","(Auto calculated value)",null,{"$f":"IFERROR(H84*INDEX('Emissions factors'!$F$5:$CR$10,MATCH('Data Input - Option 4'!$D120,'Emissions factors'!$C$5:$C$10,0),MATCH('Data Input - Option 4'!H$7,'Emissions factors'!$F$4:$CR$4,0))/1000,0)","v":0},{"$f":"IFERROR(I84*INDEX('Emissions factors'!$F$5:$CR$10,MATCH('Data Input - Option 4'!$D120,'Emissions factors'!$C$5:$C$10,0),MATCH('Data Input - Option 4'!I$7,'Emissions factors'!$F$4:$CR$4,0))/1000,0)","v":0},{"$f":"IFERROR(J84*INDEX('Emissions factors'!$F$5:$CR$10,MATCH('Data Input - Option 4'!$D120,'Emissions factors'!$C$5:$C$10,0),MATCH('Data Input - Option 4'!J$7,'Emissions factors'!$F$4:$CR$4,0))/1000,0)","v":0},{"$f":"IFERROR(K84*INDEX('Emissions factors'!$F$5:$CR$10,MATCH('Data Input - Option 4'!$D120,'Emissions factors'!$C$5:$C$10,0),MATCH('Data Input - Option 4'!K$7,'Emissions factors'!$F$4:$CR$4,0))/1000,0)","v":0},{"$f":"IFERROR(L84*INDEX('Emissions factors'!$F$5:$CR$10,MATCH('Data Input - Option 4'!$D120,'Emissions factors'!$C$5:$C$10,0),MATCH('Data Input - Option 4'!L$7,'Emissions factors'!$F$4:$CR$4,0))/1000,0)","v":0},{"$f":"IFERROR(M84*INDEX('Emissions factors'!$F$5:$CR$10,MATCH('Data Input - Option 4'!$D120,'Emissions factors'!$C$5:$C$10,0),MATCH('Data Input - Option 4'!M$7,'Emissions factors'!$F$4:$CR$4,0))/1000,0)","v":0},{"$f":"IFERROR(N84*INDEX('Emissions factors'!$F$5:$CR$10,MATCH('Data Input - Option 4'!$D120,'Emissions factors'!$C$5:$C$10,0),MATCH('Data Input - Option 4'!N$7,'Emissions factors'!$F$4:$CR$4,0))/1000,0)","v":0},{"$f":"IFERROR(O84*INDEX('Emissions factors'!$F$5:$CR$10,MATCH('Data Input - Option 4'!$D120,'Emissions factors'!$C$5:$C$10,0),MATCH('Data Input - Option 4'!O$7,'Emissions factors'!$F$4:$CR$4,0))/1000,0)","v":0},{"$f":"IFERROR(P84*INDEX('Emissions factors'!$F$5:$CR$10,MATCH('Data Input - Option 4'!$D120,'Emissions factors'!$C$5:$C$10,0),MATCH('Data Input - Option 4'!P$7,'Emissions factors'!$F$4:$CR$4,0))/1000,0)","v":0},{"$f":"IFERROR(Q84*INDEX('Emissions factors'!$F$5:$CR$10,MATCH('Data Input - Option 4'!$D120,'Emissions factors'!$C$5:$C$10,0),MATCH('Data Input - Option 4'!Q$7,'Emissions factors'!$F$4:$CR$4,0))/1000,0)","v":0},{"$f":"IFERROR(R84*INDEX('Emissions factors'!$F$5:$CR$10,MATCH('Data Input - Option 4'!$D120,'Emissions factors'!$C$5:$C$10,0),MATCH('Data Input - Option 4'!R$7,'Emissions factors'!$F$4:$CR$4,0))/1000,0)","v":0},{"$f":"IFERROR(S84*INDEX('Emissions factors'!$F$5:$CR$10,MATCH('Data Input - Option 4'!$D120,'Emissions factors'!$C$5:$C$10,0),MATCH('Data Input - Option 4'!S$7,'Emissions factors'!$F$4:$CR$4,0))/1000,0)","v":0},{"$f":"IFERROR(T84*INDEX('Emissions factors'!$F$5:$CR$10,MATCH('Data Input - Option 4'!$D120,'Emissions factors'!$C$5:$C$10,0),MATCH('Data Input - Option 4'!T$7,'Emissions factors'!$F$4:$CR$4,0))/1000,0)","v":0},{"$f":"IFERROR(U84*INDEX('Emissions factors'!$F$5:$CR$10,MATCH('Data Input - Option 4'!$D120,'Emissions factors'!$C$5:$C$10,0),MATCH('Data Input - Option 4'!U$7,'Emissions factors'!$F$4:$CR$4,0))/1000,0)","v":0},{"$f":"IFERROR(V84*INDEX('Emissions factors'!$F$5:$CR$10,MATCH('Data Input - Option 4'!$D120,'Emissions factors'!$C$5:$C$10,0),MATCH('Data Input - Option 4'!V$7,'Emissions factors'!$F$4:$CR$4,0))/1000,0)","v":0},{"$f":"IFERROR(W84*INDEX('Emissions factors'!$F$5:$CR$10,MATCH('Data Input - Option 4'!$D120,'Emissions factors'!$C$5:$C$10,0),MATCH('Data Input - Option 4'!W$7,'Emissions factors'!$F$4:$CR$4,0))/1000,0)","v":0},{"$f":"IFERROR(X84*INDEX('Emissions factors'!$F$5:$CR$10,MATCH('Data Input - Option 4'!$D120,'Emissions factors'!$C$5:$C$10,0),MATCH('Data Input - Option 4'!X$7,'Emissions factors'!$F$4:$CR$4,0))/1000,0)","v":0},{"$f":"IFERROR(Y84*INDEX('Emissions factors'!$F$5:$CR$10,MATCH('Data Input - Option 4'!$D120,'Emissions factors'!$C$5:$C$10,0),MATCH('Data Input - Option 4'!Y$7,'Emissions factors'!$F$4:$CR$4,0))/1000,0)","v":0},{"$f":"IFERROR(Z84*INDEX('Emissions factors'!$F$5:$CR$10,MATCH('Data Input - Option 4'!$D120,'Emissions factors'!$C$5:$C$10,0),MATCH('Data Input - Option 4'!Z$7,'Emissions factors'!$F$4:$CR$4,0))/1000,0)","v":0},{"$f":"IFERROR(AA84*INDEX('Emissions factors'!$F$5:$CR$10,MATCH('Data Input - Option 4'!$D120,'Emissions factors'!$C$5:$C$10,0),MATCH('Data Input - Option 4'!AA$7,'Emissions factors'!$F$4:$CR$4,0))/1000,0)","v":0},{"$f":"IFERROR(AB84*INDEX('Emissions factors'!$F$5:$CR$10,MATCH('Data Input - Option 4'!$D120,'Emissions factors'!$C$5:$C$10,0),MATCH('Data Input - Option 4'!AB$7,'Emissions factors'!$F$4:$CR$4,0))/1000,0)","v":0},{"$f":"IFERROR(AC84*INDEX('Emissions factors'!$F$5:$CR$10,MATCH('Data Input - Option 4'!$D120,'Emissions factors'!$C$5:$C$10,0),MATCH('Data Input - Option 4'!AC$7,'Emissions factors'!$F$4:$CR$4,0))/1000,0)","v":0},{"$f":"IFERROR(AD84*INDEX('Emissions factors'!$F$5:$CR$10,MATCH('Data Input - Option 4'!$D120,'Emissions factors'!$C$5:$C$10,0),MATCH('Data Input - Option 4'!AD$7,'Emissions factors'!$F$4:$CR$4,0))/1000,0)","v":0},{"$f":"IFERROR(AE84*INDEX('Emissions factors'!$F$5:$CR$10,MATCH('Data Input - Option 4'!$D120,'Emissions factors'!$C$5:$C$10,0),MATCH('Data Input - Option 4'!AE$7,'Emissions factors'!$F$4:$CR$4,0))/1000,0)","v":0},{"$f":"IFERROR(AF84*INDEX('Emissions factors'!$F$5:$CR$10,MATCH('Data Input - Option 4'!$D120,'Emissions factors'!$C$5:$C$10,0),MATCH('Data Input - Option 4'!AF$7,'Emissions factors'!$F$4:$CR$4,0))/1000,0)","v":0},{"$f":"IFERROR(AG84*INDEX('Emissions factors'!$F$5:$CR$10,MATCH('Data Input - Option 4'!$D120,'Emissions factors'!$C$5:$C$10,0),MATCH('Data Input - Option 4'!AG$7,'Emissions factors'!$F$4:$CR$4,0))/1000,0)","v":0},{"$f":"IFERROR(AH84*INDEX('Emissions factors'!$F$5:$CR$10,MATCH('Data Input - Option 4'!$D120,'Emissions factors'!$C$5:$C$10,0),MATCH('Data Input - Option 4'!AH$7,'Emissions factors'!$F$4:$CR$4,0))/1000,0)","v":0},{"$f":"IFERROR(AI84*INDEX('Emissions factors'!$F$5:$CR$10,MATCH('Data Input - Option 4'!$D120,'Emissions factors'!$C$5:$C$10,0),MATCH('Data Input - Option 4'!AI$7,'Emissions factors'!$F$4:$CR$4,0))/1000,0)","v":0},{"$f":"IFERROR(AJ84*INDEX('Emissions factors'!$F$5:$CR$10,MATCH('Data Input - Option 4'!$D120,'Emissions factors'!$C$5:$C$10,0),MATCH('Data Input - Option 4'!AJ$7,'Emissions factors'!$F$4:$CR$4,0))/1000,0)","v":0},{"$f":"IFERROR(AK84*INDEX('Emissions factors'!$F$5:$CR$10,MATCH('Data Input - Option 4'!$D120,'Emissions factors'!$C$5:$C$10,0),MATCH('Data Input - Option 4'!AK$7,'Emissions factors'!$F$4:$CR$4,0))/1000,0)","v":0},{"$f":"IFERROR(AL84*INDEX('Emissions factors'!$F$5:$CR$10,MATCH('Data Input - Option 4'!$D120,'Emissions factors'!$C$5:$C$10,0),MATCH('Data Input - Option 4'!AL$7,'Emissions factors'!$F$4:$CR$4,0))/1000,0)","v":0},{"$f":"IFERROR(AM84*INDEX('Emissions factors'!$F$5:$CR$10,MATCH('Data Input - Option 4'!$D120,'Emissions factors'!$C$5:$C$10,0),MATCH('Data Input - Option 4'!AM$7,'Emissions factors'!$F$4:$CR$4,0))/1000,0)","v":0},{"$f":"IFERROR(AN84*INDEX('Emissions factors'!$F$5:$CR$10,MATCH('Data Input - Option 4'!$D120,'Emissions factors'!$C$5:$C$10,0),MATCH('Data Input - Option 4'!AN$7,'Emissions factors'!$F$4:$CR$4,0))/1000,0)","v":0},{"$f":"IFERROR(AO84*INDEX('Emissions factors'!$F$5:$CR$10,MATCH('Data Input - Option 4'!$D120,'Emissions factors'!$C$5:$C$10,0),MATCH('Data Input - Option 4'!AO$7,'Emissions factors'!$F$4:$CR$4,0))/1000,0)","v":0},{"$f":"IFERROR(AP84*INDEX('Emissions factors'!$F$5:$CR$10,MATCH('Data Input - Option 4'!$D120,'Emissions factors'!$C$5:$C$10,0),MATCH('Data Input - Option 4'!AP$7,'Emissions factors'!$F$4:$CR$4,0))/1000,0)","v":0},{"$f":"IFERROR(AQ84*INDEX('Emissions factors'!$F$5:$CR$10,MATCH('Data Input - Option 4'!$D120,'Emissions factors'!$C$5:$C$10,0),MATCH('Data Input - Option 4'!AQ$7,'Emissions factors'!$F$4:$CR$4,0))/1000,0)","v":0},{"$f":"IFERROR(AR84*INDEX('Emissions factors'!$F$5:$CR$10,MATCH('Data Input - Option 4'!$D120,'Emissions factors'!$C$5:$C$10,0),MATCH('Data Input - Option 4'!AR$7,'Emissions factors'!$F$4:$CR$4,0))/1000,0)","v":0},{"$f":"IFERROR(AS84*INDEX('Emissions factors'!$F$5:$CR$10,MATCH('Data Input - Option 4'!$D120,'Emissions factors'!$C$5:$C$10,0),MATCH('Data Input - Option 4'!AS$7,'Emissions factors'!$F$4:$CR$4,0))/1000,0)","v":0},{"$f":"IFERROR(AT84*INDEX('Emissions factors'!$F$5:$CR$10,MATCH('Data Input - Option 4'!$D120,'Emissions factors'!$C$5:$C$10,0),MATCH('Data Input - Option 4'!AT$7,'Emissions factors'!$F$4:$CR$4,0))/1000,0)","v":0},{"$f":"IFERROR(AU84*INDEX('Emissions factors'!$F$5:$CR$10,MATCH('Data Input - Option 4'!$D120,'Emissions factors'!$C$5:$C$10,0),MATCH('Data Input - Option 4'!AU$7,'Emissions factors'!$F$4:$CR$4,0))/1000,0)","v":0},{"$f":"IFERROR(AV84*INDEX('Emissions factors'!$F$5:$CR$10,MATCH('Data Input - Option 4'!$D120,'Emissions factors'!$C$5:$C$10,0),MATCH('Data Input - Option 4'!AV$7,'Emissions factors'!$F$4:$CR$4,0))/1000,0)","v":0},{"$f":"IFERROR(AW84*INDEX('Emissions factors'!$F$5:$CR$10,MATCH('Data Input - Option 4'!$D120,'Emissions factors'!$C$5:$C$10,0),MATCH('Data Input - Option 4'!AW$7,'Emissions factors'!$F$4:$CR$4,0))/1000,0)","v":0},{"$f":"IFERROR(AX84*INDEX('Emissions factors'!$F$5:$CR$10,MATCH('Data Input - Option 4'!$D120,'Emissions factors'!$C$5:$C$10,0),MATCH('Data Input - Option 4'!AX$7,'Emissions factors'!$F$4:$CR$4,0))/1000,0)","v":0},{"$f":"IFERROR(AY84*INDEX('Emissions factors'!$F$5:$CR$10,MATCH('Data Input - Option 4'!$D120,'Emissions factors'!$C$5:$C$10,0),MATCH('Data Input - Option 4'!AY$7,'Emissions factors'!$F$4:$CR$4,0))/1000,0)","v":0},{"$f":"IFERROR(AZ84*INDEX('Emissions factors'!$F$5:$CR$10,MATCH('Data Input - Option 4'!$D120,'Emissions factors'!$C$5:$C$10,0),MATCH('Data Input - Option 4'!AZ$7,'Emissions factors'!$F$4:$CR$4,0))/1000,0)","v":0},{"$f":"IFERROR(BA84*INDEX('Emissions factors'!$F$5:$CR$10,MATCH('Data Input - Option 4'!$D120,'Emissions factors'!$C$5:$C$10,0),MATCH('Data Input - Option 4'!BA$7,'Emissions factors'!$F$4:$CR$4,0))/1000,0)","v":0},{"$f":"IFERROR(BB84*INDEX('Emissions factors'!$F$5:$CR$10,MATCH('Data Input - Option 4'!$D120,'Emissions factors'!$C$5:$C$10,0),MATCH('Data Input - Option 4'!BB$7,'Emissions factors'!$F$4:$CR$4,0))/1000,0)","v":0},{"$f":"IFERROR(BC84*INDEX('Emissions factors'!$F$5:$CR$10,MATCH('Data Input - Option 4'!$D120,'Emissions factors'!$C$5:$C$10,0),MATCH('Data Input - Option 4'!BC$7,'Emissions factors'!$F$4:$CR$4,0))/1000,0)","v":0},{"$f":"IFERROR(BD84*INDEX('Emissions factors'!$F$5:$CR$10,MATCH('Data Input - Option 4'!$D120,'Emissions factors'!$C$5:$C$10,0),MATCH('Data Input - Option 4'!BD$7,'Emissions factors'!$F$4:$CR$4,0))/1000,0)","v":0},{"$f":"IFERROR(BE84*INDEX('Emissions factors'!$F$5:$CR$10,MATCH('Data Input - Option 4'!$D120,'Emissions factors'!$C$5:$C$10,0),MATCH('Data Input - Option 4'!BE$7,'Emissions factors'!$F$4:$CR$4,0))/1000,0)","v":0},{"$f":"IFERROR(BF84*INDEX('Emissions factors'!$F$5:$CR$10,MATCH('Data Input - Option 4'!$D120,'Emissions factors'!$C$5:$C$10,0),MATCH('Data Input - Option 4'!BF$7,'Emissions factors'!$F$4:$CR$4,0))/1000,0)","v":0},{"$f":"IFERROR(BG84*INDEX('Emissions factors'!$F$5:$CR$10,MATCH('Data Input - Option 4'!$D120,'Emissions factors'!$C$5:$C$10,0),MATCH('Data Input - Option 4'!BG$7,'Emissions factors'!$F$4:$CR$4,0))/1000,0)","v":0},{"$f":"IFERROR(BH84*INDEX('Emissions factors'!$F$5:$CR$10,MATCH('Data Input - Option 4'!$D120,'Emissions factors'!$C$5:$C$10,0),MATCH('Data Input - Option 4'!BH$7,'Emissions factors'!$F$4:$CR$4,0))/1000,0)","v":0},{"$f":"IFERROR(BI84*INDEX('Emissions factors'!$F$5:$CR$10,MATCH('Data Input - Option 4'!$D120,'Emissions factors'!$C$5:$C$10,0),MATCH('Data Input - Option 4'!BI$7,'Emissions factors'!$F$4:$CR$4,0))/1000,0)","v":0},{"$f":"IFERROR(BJ84*INDEX('Emissions factors'!$F$5:$CR$10,MATCH('Data Input - Option 4'!$D120,'Emissions factors'!$C$5:$C$10,0),MATCH('Data Input - Option 4'!BJ$7,'Emissions factors'!$F$4:$CR$4,0))/1000,0)","v":0},{"$f":"IFERROR(BK84*INDEX('Emissions factors'!$F$5:$CR$10,MATCH('Data Input - Option 4'!$D120,'Emissions factors'!$C$5:$C$10,0),MATCH('Data Input - Option 4'!BK$7,'Emissions factors'!$F$4:$CR$4,0))/1000,0)","v":0},{"$f":"IFERROR(BL84*INDEX('Emissions factors'!$F$5:$CR$10,MATCH('Data Input - Option 4'!$D120,'Emissions factors'!$C$5:$C$10,0),MATCH('Data Input - Option 4'!BL$7,'Emissions factors'!$F$4:$CR$4,0))/1000,0)","v":0},{"$f":"IFERROR(BM84*INDEX('Emissions factors'!$F$5:$CR$10,MATCH('Data Input - Option 4'!$D120,'Emissions factors'!$C$5:$C$10,0),MATCH('Data Input - Option 4'!BM$7,'Emissions factors'!$F$4:$CR$4,0))/1000,0)","v":0},{"$f":"IFERROR(BN84*INDEX('Emissions factors'!$F$5:$CR$10,MATCH('Data Input - Option 4'!$D120,'Emissions factors'!$C$5:$C$10,0),MATCH('Data Input - Option 4'!BN$7,'Emissions factors'!$F$4:$CR$4,0))/1000,0)","v":0},{"$f":"IFERROR(BO84*INDEX('Emissions factors'!$F$5:$CR$10,MATCH('Data Input - Option 4'!$D120,'Emissions factors'!$C$5:$C$10,0),MATCH('Data Input - Option 4'!BO$7,'Emissions factors'!$F$4:$CR$4,0))/1000,0)","v":0},{"$f":"IFERROR(BP84*INDEX('Emissions factors'!$F$5:$CR$10,MATCH('Data Input - Option 4'!$D120,'Emissions factors'!$C$5:$C$10,0),MATCH('Data Input - Option 4'!BP$7,'Emissions factors'!$F$4:$CR$4,0))/1000,0)","v":0},{"$f":"IFERROR(BQ84*INDEX('Emissions factors'!$F$5:$CR$10,MATCH('Data Input - Option 4'!$D120,'Emissions factors'!$C$5:$C$10,0),MATCH('Data Input - Option 4'!BQ$7,'Emissions factors'!$F$4:$CR$4,0))/1000,0)","v":0},{"$f":"IFERROR(BR84*INDEX('Emissions factors'!$F$5:$CR$10,MATCH('Data Input - Option 4'!$D120,'Emissions factors'!$C$5:$C$10,0),MATCH('Data Input - Option 4'!BR$7,'Emissions factors'!$F$4:$CR$4,0))/1000,0)","v":0},{"$f":"IFERROR(BS84*INDEX('Emissions factors'!$F$5:$CR$10,MATCH('Data Input - Option 4'!$D120,'Emissions factors'!$C$5:$C$10,0),MATCH('Data Input - Option 4'!BS$7,'Emissions factors'!$F$4:$CR$4,0))/1000,0)","v":0},{"$f":"IFERROR(BT84*INDEX('Emissions factors'!$F$5:$CR$10,MATCH('Data Input - Option 4'!$D120,'Emissions factors'!$C$5:$C$10,0),MATCH('Data Input - Option 4'!BT$7,'Emissions factors'!$F$4:$CR$4,0))/1000,0)","v":0},{"$f":"IFERROR(BU84*INDEX('Emissions factors'!$F$5:$CR$10,MATCH('Data Input - Option 4'!$D120,'Emissions factors'!$C$5:$C$10,0),MATCH('Data Input - Option 4'!BU$7,'Emissions factors'!$F$4:$CR$4,0))/1000,0)","v":0},{"$f":"IFERROR(BV84*INDEX('Emissions factors'!$F$5:$CR$10,MATCH('Data Input - Option 4'!$D120,'Emissions factors'!$C$5:$C$10,0),MATCH('Data Input - Option 4'!BV$7,'Emissions factors'!$F$4:$CR$4,0))/1000,0)","v":0},{"$f":"IFERROR(BW84*INDEX('Emissions factors'!$F$5:$CR$10,MATCH('Data Input - Option 4'!$D120,'Emissions factors'!$C$5:$C$10,0),MATCH('Data Input - Option 4'!BW$7,'Emissions factors'!$F$4:$CR$4,0))/1000,0)","v":0},{"$f":"IFERROR(BX84*INDEX('Emissions factors'!$F$5:$CR$10,MATCH('Data Input - Option 4'!$D120,'Emissions factors'!$C$5:$C$10,0),MATCH('Data Input - Option 4'!BX$7,'Emissions factors'!$F$4:$CR$4,0))/1000,0)","v":0},{"$f":"IFERROR(BY84*INDEX('Emissions factors'!$F$5:$CR$10,MATCH('Data Input - Option 4'!$D120,'Emissions factors'!$C$5:$C$10,0),MATCH('Data Input - Option 4'!BY$7,'Emissions factors'!$F$4:$CR$4,0))/1000,0)","v":0},{"$f":"IFERROR(BZ84*INDEX('Emissions factors'!$F$5:$CR$10,MATCH('Data Input - Option 4'!$D120,'Emissions factors'!$C$5:$C$10,0),MATCH('Data Input - Option 4'!BZ$7,'Emissions factors'!$F$4:$CR$4,0))/1000,0)","v":0},{"$f":"IFERROR(CA84*INDEX('Emissions factors'!$F$5:$CR$10,MATCH('Data Input - Option 4'!$D120,'Emissions factors'!$C$5:$C$10,0),MATCH('Data Input - Option 4'!CA$7,'Emissions factors'!$F$4:$CR$4,0))/1000,0)","v":0},{"$f":"IFERROR(CB84*INDEX('Emissions factors'!$F$5:$CR$10,MATCH('Data Input - Option 4'!$D120,'Emissions factors'!$C$5:$C$10,0),MATCH('Data Input - Option 4'!CB$7,'Emissions factors'!$F$4:$CR$4,0))/1000,0)","v":0},{"$f":"IFERROR(CC84*INDEX('Emissions factors'!$F$5:$CR$10,MATCH('Data Input - Option 4'!$D120,'Emissions factors'!$C$5:$C$10,0),MATCH('Data Input - Option 4'!CC$7,'Emissions factors'!$F$4:$CR$4,0))/1000,0)","v":0},{"$f":"IFERROR(CD84*INDEX('Emissions factors'!$F$5:$CR$10,MATCH('Data Input - Option 4'!$D120,'Emissions factors'!$C$5:$C$10,0),MATCH('Data Input - Option 4'!CD$7,'Emissions factors'!$F$4:$CR$4,0))/1000,0)","v":0},{"$f":"IFERROR(CE84*INDEX('Emissions factors'!$F$5:$CR$10,MATCH('Data Input - Option 4'!$D120,'Emissions factors'!$C$5:$C$10,0),MATCH('Data Input - Option 4'!CE$7,'Emissions factors'!$F$4:$CR$4,0))/1000,0)","v":0},{"$f":"IFERROR(CF84*INDEX('Emissions factors'!$F$5:$CR$10,MATCH('Data Input - Option 4'!$D120,'Emissions factors'!$C$5:$C$10,0),MATCH('Data Input - Option 4'!CF$7,'Emissions factors'!$F$4:$CR$4,0))/1000,0)","v":0},{"$f":"IFERROR(CG84*INDEX('Emissions factors'!$F$5:$CR$10,MATCH('Data Input - Option 4'!$D120,'Emissions factors'!$C$5:$C$10,0),MATCH('Data Input - Option 4'!CG$7,'Emissions factors'!$F$4:$CR$4,0))/1000,0)","v":0},{"$f":"IFERROR(CH84*INDEX('Emissions factors'!$F$5:$CR$10,MATCH('Data Input - Option 4'!$D120,'Emissions factors'!$C$5:$C$10,0),MATCH('Data Input - Option 4'!CH$7,'Emissions factors'!$F$4:$CR$4,0))/1000,0)","v":0},{"$f":"IFERROR(CI84*INDEX('Emissions factors'!$F$5:$CR$10,MATCH('Data Input - Option 4'!$D120,'Emissions factors'!$C$5:$C$10,0),MATCH('Data Input - Option 4'!CI$7,'Emissions factors'!$F$4:$CR$4,0))/1000,0)","v":0},{"$f":"IFERROR(CJ84*INDEX('Emissions factors'!$F$5:$CR$10,MATCH('Data Input - Option 4'!$D120,'Emissions factors'!$C$5:$C$10,0),MATCH('Data Input - Option 4'!CJ$7,'Emissions factors'!$F$4:$CR$4,0))/1000,0)","v":0},{"$f":"IFERROR(CK84*INDEX('Emissions factors'!$F$5:$CR$10,MATCH('Data Input - Option 4'!$D120,'Emissions factors'!$C$5:$C$10,0),MATCH('Data Input - Option 4'!CK$7,'Emissions factors'!$F$4:$CR$4,0))/1000,0)","v":0},{"$f":"IFERROR(CL84*INDEX('Emissions factors'!$F$5:$CR$10,MATCH('Data Input - Option 4'!$D120,'Emissions factors'!$C$5:$C$10,0),MATCH('Data Input - Option 4'!CL$7,'Emissions factors'!$F$4:$CR$4,0))/1000,0)","v":0},{"$f":"IFERROR(CM84*INDEX('Emissions factors'!$F$5:$CR$10,MATCH('Data Input - Option 4'!$D120,'Emissions factors'!$C$5:$C$10,0),MATCH('Data Input - Option 4'!CM$7,'Emissions factors'!$F$4:$CR$4,0))/1000,0)","v":0},{"$f":"IFERROR(CN84*INDEX('Emissions factors'!$F$5:$CR$10,MATCH('Data Input - Option 4'!$D120,'Emissions factors'!$C$5:$C$10,0),MATCH('Data Input - Option 4'!CN$7,'Emissions factors'!$F$4:$CR$4,0))/1000,0)","v":0},{"$f":"IFERROR(CO84*INDEX('Emissions factors'!$F$5:$CR$10,MATCH('Data Input - Option 4'!$D120,'Emissions factors'!$C$5:$C$10,0),MATCH('Data Input - Option 4'!CO$7,'Emissions factors'!$F$4:$CR$4,0))/1000,0)","v":0},{"$f":"IFERROR(CP84*INDEX('Emissions factors'!$F$5:$CR$10,MATCH('Data Input - Option 4'!$D120,'Emissions factors'!$C$5:$C$10,0),MATCH('Data Input - Option 4'!CP$7,'Emissions factors'!$F$4:$CR$4,0))/1000,0)","v":0},{"$f":"IFERROR(CQ84*INDEX('Emissions factors'!$F$5:$CR$10,MATCH('Data Input - Option 4'!$D120,'Emissions factors'!$C$5:$C$10,0),MATCH('Data Input - Option 4'!CQ$7,'Emissions factors'!$F$4:$CR$4,0))/1000,0)","v":0},{"$f":"IFERROR(CR84*INDEX('Emissions factors'!$F$5:$CR$10,MATCH('Data Input - Option 4'!$D120,'Emissions factors'!$C$5:$C$10,0),MATCH('Data Input - Option 4'!CR$7,'Emissions factors'!$F$4:$CR$4,0))/1000,0)","v":0},{"$f":"IFERROR(CS84*INDEX('Emissions factors'!$F$5:$CR$10,MATCH('Data Input - Option 4'!$D120,'Emissions factors'!$C$5:$C$10,0),MATCH('Data Input - Option 4'!CS$7,'Emissions factors'!$F$4:$CR$4,0))/1000,0)","v":0},{"$f":"IFERROR(CT84*INDEX('Emissions factors'!$F$5:$CR$10,MATCH('Data Input - Option 4'!$D120,'Emissions factors'!$C$5:$C$10,0),MATCH('Data Input - Option 4'!CT$7,'Emissions factors'!$F$4:$CR$4,0))/1000,0)","v":0},{"$f":"IFERROR(CU84*INDEX('Emissions factors'!$F$5:$CR$10,MATCH('Data Input - Option 4'!$D120,'Emissions factors'!$C$5:$C$10,0),MATCH('Data Input - Option 4'!CU$7,'Emissions factors'!$F$4:$CR$4,0))/1000,0)","v":0},{"$f":"IFERROR(CV84*INDEX('Emissions factors'!$F$5:$CR$10,MATCH('Data Input - Option 4'!$D120,'Emissions factors'!$C$5:$C$10,0),MATCH('Data Input - Option 4'!CV$7,'Emissions factors'!$F$4:$CR$4,0))/1000,0)","v":0},{"$f":"IFERROR(CW84*INDEX('Emissions factors'!$F$5:$CR$10,MATCH('Data Input - Option 4'!$D120,'Emissions factors'!$C$5:$C$10,0),MATCH('Data Input - Option 4'!CW$7,'Emissions factors'!$F$4:$CR$4,0))/1000,0)","v":0},{"$f":"IFERROR(CX84*INDEX('Emissions factors'!$F$5:$CR$10,MATCH('Data Input - Option 4'!$D120,'Emissions factors'!$C$5:$C$10,0),MATCH('Data Input - Option 4'!CX$7,'Emissions factors'!$F$4:$CR$4,0))/1000,0)","v":0},{"$f":"IFERROR(CY84*INDEX('Emissions factors'!$F$5:$CR$10,MATCH('Data Input - Option 4'!$D120,'Emissions factors'!$C$5:$C$10,0),MATCH('Data Input - Option 4'!CY$7,'Emissions factors'!$F$4:$CR$4,0))/1000,0)","v":0},{"$f":"IFERROR(CZ84*INDEX('Emissions factors'!$F$5:$CR$10,MATCH('Data Input - Option 4'!$D120,'Emissions factors'!$C$5:$C$10,0),MATCH('Data Input - Option 4'!CZ$7,'Emissions factors'!$F$4:$CR$4,0))/1000,0)","v":0},{"$f":"IFERROR(DA84*INDEX('Emissions factors'!$F$5:$CR$10,MATCH('Data Input - Option 4'!$D120,'Emissions factors'!$C$5:$C$10,0),MATCH('Data Input - Option 4'!DA$7,'Emissions factors'!$F$4:$CR$4,0))/1000,0)","v":0},{"$f":"IFERROR(DB84*INDEX('Emissions factors'!$F$5:$CR$10,MATCH('Data Input - Option 4'!$D120,'Emissions factors'!$C$5:$C$10,0),MATCH('Data Input - Option 4'!DB$7,'Emissions factors'!$F$4:$CR$4,0))/1000,0)","v":0},{"$f":"IFERROR(DC84*INDEX('Emissions factors'!$F$5:$CR$10,MATCH('Data Input - Option 4'!$D120,'Emissions factors'!$C$5:$C$10,0),MATCH('Data Input - Option 4'!DC$7,'Emissions factors'!$F$4:$CR$4,0))/1000,0)","v":0}]
[null,null,null,"Natural Gas","tCO2e","(Auto calculated value)",null,{"$f":"IFERROR(H85*INDEX('Emissions factors'!$F$5:$CR$10,MATCH('Data Input - Option 4'!$D121,'Emissions factors'!$C$5:$C$10,0),MATCH('Data Input - Option 4'!H$7,'Emissions factors'!$F$4:$CR$4,0))/1000,0)","v":0},{"$f":"IFERROR(I85*INDEX('Emissions factors'!$F$5:$CR$10,MATCH('Data Input - Option 4'!$D121,'Emissions factors'!$C$5:$C$10,0),MATCH('Data Input - Option 4'!I$7,'Emissions factors'!$F$4:$CR$4,0))/1000,0)","v":0},{"$f":"IFERROR(J85*INDEX('Emissions factors'!$F$5:$CR$10,MATCH('Data Input - Option 4'!$D121,'Emissions factors'!$C$5:$C$10,0),MATCH('Data Input - Option 4'!J$7,'Emissions factors'!$F$4:$CR$4,0))/1000,0)","v":0},{"$f":"IFERROR(K85*INDEX('Emissions factors'!$F$5:$CR$10,MATCH('Data Input - Option 4'!$D121,'Emissions factors'!$C$5:$C$10,0),MATCH('Data Input - Option 4'!K$7,'Emissions factors'!$F$4:$CR$4,0))/1000,0)","v":0},{"$f":"IFERROR(L85*INDEX('Emissions factors'!$F$5:$CR$10,MATCH('Data Input - Option 4'!$D121,'Emissions factors'!$C$5:$C$10,0),MATCH('Data Input - Option 4'!L$7,'Emissions factors'!$F$4:$CR$4,0))/1000,0)","v":0},{"$f":"IFERROR(M85*INDEX('Emissions factors'!$F$5:$CR$10,MATCH('Data Input - Option 4'!$D121,'Emissions factors'!$C$5:$C$10,0),MATCH('Data Input - Option 4'!M$7,'Emissions factors'!$F$4:$CR$4,0))/1000,0)","v":0},{"$f":"IFERROR(N85*INDEX('Emissions factors'!$F$5:$CR$10,MATCH('Data Input - Option 4'!$D121,'Emissions factors'!$C$5:$C$10,0),MATCH('Data Input - Option 4'!N$7,'Emissions factors'!$F$4:$CR$4,0))/1000,0)","v":0},{"$f":"IFERROR(O85*INDEX('Emissions factors'!$F$5:$CR$10,MATCH('Data Input - Option 4'!$D121,'Emissions factors'!$C$5:$C$10,0),MATCH('Data Input - Option 4'!O$7,'Emissions factors'!$F$4:$CR$4,0))/1000,0)","v":0},{"$f":"IFERROR(P85*INDEX('Emissions factors'!$F$5:$CR$10,MATCH('Data Input - Option 4'!$D121,'Emissions factors'!$C$5:$C$10,0),MATCH('Data Input - Option 4'!P$7,'Emissions factors'!$F$4:$CR$4,0))/1000,0)","v":0},{"$f":"IFERROR(Q85*INDEX('Emissions factors'!$F$5:$CR$10,MATCH('Data Input - Option 4'!$D121,'Emissions factors'!$C$5:$C$10,0),MATCH('Data Input - Option 4'!Q$7,'Emissions factors'!$F$4:$CR$4,0))/1000,0)","v":0},{"$f":"IFERROR(R85*INDEX('Emissions factors'!$F$5:$CR$10,MATCH('Data Input - Option 4'!$D121,'Emissions factors'!$C$5:$C$10,0),MATCH('Data Input - Option 4'!R$7,'Emissions factors'!$F$4:$CR$4,0))/1000,0)","v":0},{"$f":"IFERROR(S85*INDEX('Emissions factors'!$F$5:$CR$10,MATCH('Data Input - Option 4'!$D121,'Emissions factors'!$C$5:$C$10,0),MATCH('Data Input - Option 4'!S$7,'Emissions factors'!$F$4:$CR$4,0))/1000,0)","v":0},{"$f":"IFERROR(T85*INDEX('Emissions factors'!$F$5:$CR$10,MATCH('Data Input - Option 4'!$D121,'Emissions factors'!$C$5:$C$10,0),MATCH('Data Input - Option 4'!T$7,'Emissions factors'!$F$4:$CR$4,0))/1000,0)","v":0},{"$f":"IFERROR(U85*INDEX('Emissions factors'!$F$5:$CR$10,MATCH('Data Input - Option 4'!$D121,'Emissions factors'!$C$5:$C$10,0),MATCH('Data Input - Option 4'!U$7,'Emissions factors'!$F$4:$CR$4,0))/1000,0)","v":0},{"$f":"IFERROR(V85*INDEX('Emissions factors'!$F$5:$CR$10,MATCH('Data Input - Option 4'!$D121,'Emissions factors'!$C$5:$C$10,0),MATCH('Data Input - Option 4'!V$7,'Emissions factors'!$F$4:$CR$4,0))/1000,0)","v":0},{"$f":"IFERROR(W85*INDEX('Emissions factors'!$F$5:$CR$10,MATCH('Data Input - Option 4'!$D121,'Emissions factors'!$C$5:$C$10,0),MATCH('Data Input - Option 4'!W$7,'Emissions factors'!$F$4:$CR$4,0))/1000,0)","v":0},{"$f":"IFERROR(X85*INDEX('Emissions factors'!$F$5:$CR$10,MATCH('Data Input - Option 4'!$D121,'Emissions factors'!$C$5:$C$10,0),MATCH('Data Input - Option 4'!X$7,'Emissions factors'!$F$4:$CR$4,0))/1000,0)","v":0},{"$f":"IFERROR(Y85*INDEX('Emissions factors'!$F$5:$CR$10,MATCH('Data Input - Option 4'!$D121,'Emissions factors'!$C$5:$C$10,0),MATCH('Data Input - Option 4'!Y$7,'Emissions factors'!$F$4:$CR$4,0))/1000,0)","v":0},{"$f":"IFERROR(Z85*INDEX('Emissions factors'!$F$5:$CR$10,MATCH('Data Input - Option 4'!$D121,'Emissions factors'!$C$5:$C$10,0),MATCH('Data Input - Option 4'!Z$7,'Emissions factors'!$F$4:$CR$4,0))/1000,0)","v":0},{"$f":"IFERROR(AA85*INDEX('Emissions factors'!$F$5:$CR$10,MATCH('Data Input - Option 4'!$D121,'Emissions factors'!$C$5:$C$10,0),MATCH('Data Input - Option 4'!AA$7,'Emissions factors'!$F$4:$CR$4,0))/1000,0)","v":0},{"$f":"IFERROR(AB85*INDEX('Emissions factors'!$F$5:$CR$10,MATCH('Data Input - Option 4'!$D121,'Emissions factors'!$C$5:$C$10,0),MATCH('Data Input - Option 4'!AB$7,'Emissions factors'!$F$4:$CR$4,0))/1000,0)","v":0},{"$f":"IFERROR(AC85*INDEX('Emissions factors'!$F$5:$CR$10,MATCH('Data Input - Option 4'!$D121,'Emissions factors'!$C$5:$C$10,0),MATCH('Data Input - Option 4'!AC$7,'Emissions factors'!$F$4:$CR$4,0))/1000,0)","v":0},{"$f":"IFERROR(AD85*INDEX('Emissions factors'!$F$5:$CR$10,MATCH('Data Input - Option 4'!$D121,'Emissions factors'!$C$5:$C$10,0),MATCH('Data Input - Option 4'!AD$7,'Emissions factors'!$F$4:$CR$4,0))/1000,0)","v":0},{"$f":"IFERROR(AE85*INDEX('Emissions factors'!$F$5:$CR$10,MATCH('Data Input - Option 4'!$D121,'Emissions factors'!$C$5:$C$10,0),MATCH('Data Input - Option 4'!AE$7,'Emissions factors'!$F$4:$CR$4,0))/1000,0)","v":0},{"$f":"IFERROR(AF85*INDEX('Emissions factors'!$F$5:$CR$10,MATCH('Data Input - Option 4'!$D121,'Emissions factors'!$C$5:$C$10,0),MATCH('Data Input - Option 4'!AF$7,'Emissions factors'!$F$4:$CR$4,0))/1000,0)","v":0},{"$f":"IFERROR(AG85*INDEX('Emissions factors'!$F$5:$CR$10,MATCH('Data Input - Option 4'!$D121,'Emissions factors'!$C$5:$C$10,0),MATCH('Data Input - Option 4'!AG$7,'Emissions factors'!$F$4:$CR$4,0))/1000,0)","v":0},{"$f":"IFERROR(AH85*INDEX('Emissions factors'!$F$5:$CR$10,MATCH('Data Input - Option 4'!$D121,'Emissions factors'!$C$5:$C$10,0),MATCH('Data Input - Option 4'!AH$7,'Emissions factors'!$F$4:$CR$4,0))/1000,0)","v":0},{"$f":"IFERROR(AI85*INDEX('Emissions factors'!$F$5:$CR$10,MATCH('Data Input - Option 4'!$D121,'Emissions factors'!$C$5:$C$10,0),MATCH('Data Input - Option 4'!AI$7,'Emissions factors'!$F$4:$CR$4,0))/1000,0)","v":0},{"$f":"IFERROR(AJ85*INDEX('Emissions factors'!$F$5:$CR$10,MATCH('Data Input - Option 4'!$D121,'Emissions factors'!$C$5:$C$10,0),MATCH('Data Input - Option 4'!AJ$7,'Emissions factors'!$F$4:$CR$4,0))/1000,0)","v":0},{"$f":"IFERROR(AK85*INDEX('Emissions factors'!$F$5:$CR$10,MATCH('Data Input - Option 4'!$D121,'Emissions factors'!$C$5:$C$10,0),MATCH('Data Input - Option 4'!AK$7,'Emissions factors'!$F$4:$CR$4,0))/1000,0)","v":0},{"$f":"IFERROR(AL85*INDEX('Emissions factors'!$F$5:$CR$10,MATCH('Data Input - Option 4'!$D121,'Emissions factors'!$C$5:$C$10,0),MATCH('Data Input - Option 4'!AL$7,'Emissions factors'!$F$4:$CR$4,0))/1000,0)","v":0},{"$f":"IFERROR(AM85*INDEX('Emissions factors'!$F$5:$CR$10,MATCH('Data Input - Option 4'!$D121,'Emissions factors'!$C$5:$C$10,0),MATCH('Data Input - Option 4'!AM$7,'Emissions factors'!$F$4:$CR$4,0))/1000,0)","v":0},{"$f":"IFERROR(AN85*INDEX('Emissions factors'!$F$5:$CR$10,MATCH('Data Input - Option 4'!$D121,'Emissions factors'!$C$5:$C$10,0),MATCH('Data Input - Option 4'!AN$7,'Emissions factors'!$F$4:$CR$4,0))/1000,0)","v":0},{"$f":"IFERROR(AO85*INDEX('Emissions factors'!$F$5:$CR$10,MATCH('Data Input - Option 4'!$D121,'Emissions factors'!$C$5:$C$10,0),MATCH('Data Input - Option 4'!AO$7,'Emissions factors'!$F$4:$CR$4,0))/1000,0)","v":0},{"$f":"IFERROR(AP85*INDEX('Emissions factors'!$F$5:$CR$10,MATCH('Data Input - Option 4'!$D121,'Emissions factors'!$C$5:$C$10,0),MATCH('Data Input - Option 4'!AP$7,'Emissions factors'!$F$4:$CR$4,0))/1000,0)","v":0},{"$f":"IFERROR(AQ85*INDEX('Emissions factors'!$F$5:$CR$10,MATCH('Data Input - Option 4'!$D121,'Emissions factors'!$C$5:$C$10,0),MATCH('Data Input - Option 4'!AQ$7,'Emissions factors'!$F$4:$CR$4,0))/1000,0)","v":0},{"$f":"IFERROR(AR85*INDEX('Emissions factors'!$F$5:$CR$10,MATCH('Data Input - Option 4'!$D121,'Emissions factors'!$C$5:$C$10,0),MATCH('Data Input - Option 4'!AR$7,'Emissions factors'!$F$4:$CR$4,0))/1000,0)","v":0},{"$f":"IFERROR(AS85*INDEX('Emissions factors'!$F$5:$CR$10,MATCH('Data Input - Option 4'!$D121,'Emissions factors'!$C$5:$C$10,0),MATCH('Data Input - Option 4'!AS$7,'Emissions factors'!$F$4:$CR$4,0))/1000,0)","v":0},{"$f":"IFERROR(AT85*INDEX('Emissions factors'!$F$5:$CR$10,MATCH('Data Input - Option 4'!$D121,'Emissions factors'!$C$5:$C$10,0),MATCH('Data Input - Option 4'!AT$7,'Emissions factors'!$F$4:$CR$4,0))/1000,0)","v":0},{"$f":"IFERROR(AU85*INDEX('Emissions factors'!$F$5:$CR$10,MATCH('Data Input - Option 4'!$D121,'Emissions factors'!$C$5:$C$10,0),MATCH('Data Input - Option 4'!AU$7,'Emissions factors'!$F$4:$CR$4,0))/1000,0)","v":0},{"$f":"IFERROR(AV85*INDEX('Emissions factors'!$F$5:$CR$10,MATCH('Data Input - Option 4'!$D121,'Emissions factors'!$C$5:$C$10,0),MATCH('Data Input - Option 4'!AV$7,'Emissions factors'!$F$4:$CR$4,0))/1000,0)","v":0},{"$f":"IFERROR(AW85*INDEX('Emissions factors'!$F$5:$CR$10,MATCH('Data Input - Option 4'!$D121,'Emissions factors'!$C$5:$C$10,0),MATCH('Data Input - Option 4'!AW$7,'Emissions factors'!$F$4:$CR$4,0))/1000,0)","v":0},{"$f":"IFERROR(AX85*INDEX('Emissions factors'!$F$5:$CR$10,MATCH('Data Input - Option 4'!$D121,'Emissions factors'!$C$5:$C$10,0),MATCH('Data Input - Option 4'!AX$7,'Emissions factors'!$F$4:$CR$4,0))/1000,0)","v":0},{"$f":"IFERROR(AY85*INDEX('Emissions factors'!$F$5:$CR$10,MATCH('Data Input - Option 4'!$D121,'Emissions factors'!$C$5:$C$10,0),MATCH('Data Input - Option 4'!AY$7,'Emissions factors'!$F$4:$CR$4,0))/1000,0)","v":0},{"$f":"IFERROR(AZ85*INDEX('Emissions factors'!$F$5:$CR$10,MATCH('Data Input - Option 4'!$D121,'Emissions factors'!$C$5:$C$10,0),MATCH('Data Input - Option 4'!AZ$7,'Emissions factors'!$F$4:$CR$4,0))/1000,0)","v":0},{"$f":"IFERROR(BA85*INDEX('Emissions factors'!$F$5:$CR$10,MATCH('Data Input - Option 4'!$D121,'Emissions factors'!$C$5:$C$10,0),MATCH('Data Input - Option 4'!BA$7,'Emissions factors'!$F$4:$CR$4,0))/1000,0)","v":0},{"$f":"IFERROR(BB85*INDEX('Emissions factors'!$F$5:$CR$10,MATCH('Data Input - Option 4'!$D121,'Emissions factors'!$C$5:$C$10,0),MATCH('Data Input - Option 4'!BB$7,'Emissions factors'!$F$4:$CR$4,0))/1000,0)","v":0},{"$f":"IFERROR(BC85*INDEX('Emissions factors'!$F$5:$CR$10,MATCH('Data Input - Option 4'!$D121,'Emissions factors'!$C$5:$C$10,0),MATCH('Data Input - Option 4'!BC$7,'Emissions factors'!$F$4:$CR$4,0))/1000,0)","v":0},{"$f":"IFERROR(BD85*INDEX('Emissions factors'!$F$5:$CR$10,MATCH('Data Input - Option 4'!$D121,'Emissions factors'!$C$5:$C$10,0),MATCH('Data Input - Option 4'!BD$7,'Emissions factors'!$F$4:$CR$4,0))/1000,0)","v":0},{"$f":"IFERROR(BE85*INDEX('Emissions factors'!$F$5:$CR$10,MATCH('Data Input - Option 4'!$D121,'Emissions factors'!$C$5:$C$10,0),MATCH('Data Input - Option 4'!BE$7,'Emissions factors'!$F$4:$CR$4,0))/1000,0)","v":0},{"$f":"IFERROR(BF85*INDEX('Emissions factors'!$F$5:$CR$10,MATCH('Data Input - Option 4'!$D121,'Emissions factors'!$C$5:$C$10,0),MATCH('Data Input - Option 4'!BF$7,'Emissions factors'!$F$4:$CR$4,0))/1000,0)","v":0},{"$f":"IFERROR(BG85*INDEX('Emissions factors'!$F$5:$CR$10,MATCH('Data Input - Option 4'!$D121,'Emissions factors'!$C$5:$C$10,0),MATCH('Data Input - Option 4'!BG$7,'Emissions factors'!$F$4:$CR$4,0))/1000,0)","v":0},{"$f":"IFERROR(BH85*INDEX('Emissions factors'!$F$5:$CR$10,MATCH('Data Input - Option 4'!$D121,'Emissions factors'!$C$5:$C$10,0),MATCH('Data Input - Option 4'!BH$7,'Emissions factors'!$F$4:$CR$4,0))/1000,0)","v":0},{"$f":"IFERROR(BI85*INDEX('Emissions factors'!$F$5:$CR$10,MATCH('Data Input - Option 4'!$D121,'Emissions factors'!$C$5:$C$10,0),MATCH('Data Input - Option 4'!BI$7,'Emissions factors'!$F$4:$CR$4,0))/1000,0)","v":0},{"$f":"IFERROR(BJ85*INDEX('Emissions factors'!$F$5:$CR$10,MATCH('Data Input - Option 4'!$D121,'Emissions factors'!$C$5:$C$10,0),MATCH('Data Input - Option 4'!BJ$7,'Emissions factors'!$F$4:$CR$4,0))/1000,0)","v":0},{"$f":"IFERROR(BK85*INDEX('Emissions factors'!$F$5:$CR$10,MATCH('Data Input - Option 4'!$D121,'Emissions factors'!$C$5:$C$10,0),MATCH('Data Input - Option 4'!BK$7,'Emissions factors'!$F$4:$CR$4,0))/1000,0)","v":0},{"$f":"IFERROR(BL85*INDEX('Emissions factors'!$F$5:$CR$10,MATCH('Data Input - Option 4'!$D121,'Emissions factors'!$C$5:$C$10,0),MATCH('Data Input - Option 4'!BL$7,'Emissions factors'!$F$4:$CR$4,0))/1000,0)","v":0},{"$f":"IFERROR(BM85*INDEX('Emissions factors'!$F$5:$CR$10,MATCH('Data Input - Option 4'!$D121,'Emissions factors'!$C$5:$C$10,0),MATCH('Data Input - Option 4'!BM$7,'Emissions factors'!$F$4:$CR$4,0))/1000,0)","v":0},{"$f":"IFERROR(BN85*INDEX('Emissions factors'!$F$5:$CR$10,MATCH('Data Input - Option 4'!$D121,'Emissions factors'!$C$5:$C$10,0),MATCH('Data Input - Option 4'!BN$7,'Emissions factors'!$F$4:$CR$4,0))/1000,0)","v":0},{"$f":"IFERROR(BO85*INDEX('Emissions factors'!$F$5:$CR$10,MATCH('Data Input - Option 4'!$D121,'Emissions factors'!$C$5:$C$10,0),MATCH('Data Input - Option 4'!BO$7,'Emissions factors'!$F$4:$CR$4,0))/1000,0)","v":0},{"$f":"IFERROR(BP85*INDEX('Emissions factors'!$F$5:$CR$10,MATCH('Data Input - Option 4'!$D121,'Emissions factors'!$C$5:$C$10,0),MATCH('Data Input - Option 4'!BP$7,'Emissions factors'!$F$4:$CR$4,0))/1000,0)","v":0},{"$f":"IFERROR(BQ85*INDEX('Emissions factors'!$F$5:$CR$10,MATCH('Data Input - Option 4'!$D121,'Emissions factors'!$C$5:$C$10,0),MATCH('Data Input - Option 4'!BQ$7,'Emissions factors'!$F$4:$CR$4,0))/1000,0)","v":0},{"$f":"IFERROR(BR85*INDEX('Emissions factors'!$F$5:$CR$10,MATCH('Data Input - Option 4'!$D121,'Emissions factors'!$C$5:$C$10,0),MATCH('Data Input - Option 4'!BR$7,'Emissions factors'!$F$4:$CR$4,0))/1000,0)","v":0},{"$f":"IFERROR(BS85*INDEX('Emissions factors'!$F$5:$CR$10,MATCH('Data Input - Option 4'!$D121,'Emissions factors'!$C$5:$C$10,0),MATCH('Data Input - Option 4'!BS$7,'Emissions factors'!$F$4:$CR$4,0))/1000,0)","v":0},{"$f":"IFERROR(BT85*INDEX('Emissions factors'!$F$5:$CR$10,MATCH('Data Input - Option 4'!$D121,'Emissions factors'!$C$5:$C$10,0),MATCH('Data Input - Option 4'!BT$7,'Emissions factors'!$F$4:$CR$4,0))/1000,0)","v":0},{"$f":"IFERROR(BU85*INDEX('Emissions factors'!$F$5:$CR$10,MATCH('Data Input - Option 4'!$D121,'Emissions factors'!$C$5:$C$10,0),MATCH('Data Input - Option 4'!BU$7,'Emissions factors'!$F$4:$CR$4,0))/1000,0)","v":0},{"$f":"IFERROR(BV85*INDEX('Emissions factors'!$F$5:$CR$10,MATCH('Data Input - Option 4'!$D121,'Emissions factors'!$C$5:$C$10,0),MATCH('Data Input - Option 4'!BV$7,'Emissions factors'!$F$4:$CR$4,0))/1000,0)","v":0},{"$f":"IFERROR(BW85*INDEX('Emissions factors'!$F$5:$CR$10,MATCH('Data Input - Option 4'!$D121,'Emissions factors'!$C$5:$C$10,0),MATCH('Data Input - Option 4'!BW$7,'Emissions factors'!$F$4:$CR$4,0))/1000,0)","v":0},{"$f":"IFERROR(BX85*INDEX('Emissions factors'!$F$5:$CR$10,MATCH('Data Input - Option 4'!$D121,'Emissions factors'!$C$5:$C$10,0),MATCH('Data Input - Option 4'!BX$7,'Emissions factors'!$F$4:$CR$4,0))/1000,0)","v":0},{"$f":"IFERROR(BY85*INDEX('Emissions factors'!$F$5:$CR$10,MATCH('Data Input - Option 4'!$D121,'Emissions factors'!$C$5:$C$10,0),MATCH('Data Input - Option 4'!BY$7,'Emissions factors'!$F$4:$CR$4,0))/1000,0)","v":0},{"$f":"IFERROR(BZ85*INDEX('Emissions factors'!$F$5:$CR$10,MATCH('Data Input - Option 4'!$D121,'Emissions factors'!$C$5:$C$10,0),MATCH('Data Input - Option 4'!BZ$7,'Emissions factors'!$F$4:$CR$4,0))/1000,0)","v":0},{"$f":"IFERROR(CA85*INDEX('Emissions factors'!$F$5:$CR$10,MATCH('Data Input - Option 4'!$D121,'Emissions factors'!$C$5:$C$10,0),MATCH('Data Input - Option 4'!CA$7,'Emissions factors'!$F$4:$CR$4,0))/1000,0)","v":0},{"$f":"IFERROR(CB85*INDEX('Emissions factors'!$F$5:$CR$10,MATCH('Data Input - Option 4'!$D121,'Emissions factors'!$C$5:$C$10,0),MATCH('Data Input - Option 4'!CB$7,'Emissions factors'!$F$4:$CR$4,0))/1000,0)","v":0},{"$f":"IFERROR(CC85*INDEX('Emissions factors'!$F$5:$CR$10,MATCH('Data Input - Option 4'!$D121,'Emissions factors'!$C$5:$C$10,0),MATCH('Data Input - Option 4'!CC$7,'Emissions factors'!$F$4:$CR$4,0))/1000,0)","v":0},{"$f":"IFERROR(CD85*INDEX('Emissions factors'!$F$5:$CR$10,MATCH('Data Input - Option 4'!$D121,'Emissions factors'!$C$5:$C$10,0),MATCH('Data Input - Option 4'!CD$7,'Emissions factors'!$F$4:$CR$4,0))/1000,0)","v":0},{"$f":"IFERROR(CE85*INDEX('Emissions factors'!$F$5:$CR$10,MATCH('Data Input - Option 4'!$D121,'Emissions factors'!$C$5:$C$10,0),MATCH('Data Input - Option 4'!CE$7,'Emissions factors'!$F$4:$CR$4,0))/1000,0)","v":0},{"$f":"IFERROR(CF85*INDEX('Emissions factors'!$F$5:$CR$10,MATCH('Data Input - Option 4'!$D121,'Emissions factors'!$C$5:$C$10,0),MATCH('Data Input - Option 4'!CF$7,'Emissions factors'!$F$4:$CR$4,0))/1000,0)","v":0},{"$f":"IFERROR(CG85*INDEX('Emissions factors'!$F$5:$CR$10,MATCH('Data Input - Option 4'!$D121,'Emissions factors'!$C$5:$C$10,0),MATCH('Data Input - Option 4'!CG$7,'Emissions factors'!$F$4:$CR$4,0))/1000,0)","v":0},{"$f":"IFERROR(CH85*INDEX('Emissions factors'!$F$5:$CR$10,MATCH('Data Input - Option 4'!$D121,'Emissions factors'!$C$5:$C$10,0),MATCH('Data Input - Option 4'!CH$7,'Emissions factors'!$F$4:$CR$4,0))/1000,0)","v":0},{"$f":"IFERROR(CI85*INDEX('Emissions factors'!$F$5:$CR$10,MATCH('Data Input - Option 4'!$D121,'Emissions factors'!$C$5:$C$10,0),MATCH('Data Input - Option 4'!CI$7,'Emissions factors'!$F$4:$CR$4,0))/1000,0)","v":0},{"$f":"IFERROR(CJ85*INDEX('Emissions factors'!$F$5:$CR$10,MATCH('Data Input - Option 4'!$D121,'Emissions factors'!$C$5:$C$10,0),MATCH('Data Input - Option 4'!CJ$7,'Emissions factors'!$F$4:$CR$4,0))/1000,0)","v":0},{"$f":"IFERROR(CK85*INDEX('Emissions factors'!$F$5:$CR$10,MATCH('Data Input - Option 4'!$D121,'Emissions factors'!$C$5:$C$10,0),MATCH('Data Input - Option 4'!CK$7,'Emissions factors'!$F$4:$CR$4,0))/1000,0)","v":0},{"$f":"IFERROR(CL85*INDEX('Emissions factors'!$F$5:$CR$10,MATCH('Data Input - Option 4'!$D121,'Emissions factors'!$C$5:$C$10,0),MATCH('Data Input - Option 4'!CL$7,'Emissions factors'!$F$4:$CR$4,0))/1000,0)","v":0},{"$f":"IFERROR(CM85*INDEX('Emissions factors'!$F$5:$CR$10,MATCH('Data Input - Option 4'!$D121,'Emissions factors'!$C$5:$C$10,0),MATCH('Data Input - Option 4'!CM$7,'Emissions factors'!$F$4:$CR$4,0))/1000,0)","v":0},{"$f":"IFERROR(CN85*INDEX('Emissions factors'!$F$5:$CR$10,MATCH('Data Input - Option 4'!$D121,'Emissions factors'!$C$5:$C$10,0),MATCH('Data Input - Option 4'!CN$7,'Emissions factors'!$F$4:$CR$4,0))/1000,0)","v":0},{"$f":"IFERROR(CO85*INDEX('Emissions factors'!$F$5:$CR$10,MATCH('Data Input - Option 4'!$D121,'Emissions factors'!$C$5:$C$10,0),MATCH('Data Input - Option 4'!CO$7,'Emissions factors'!$F$4:$CR$4,0))/1000,0)","v":0},{"$f":"IFERROR(CP85*INDEX('Emissions factors'!$F$5:$CR$10,MATCH('Data Input - Option 4'!$D121,'Emissions factors'!$C$5:$C$10,0),MATCH('Data Input - Option 4'!CP$7,'Emissions factors'!$F$4:$CR$4,0))/1000,0)","v":0},{"$f":"IFERROR(CQ85*INDEX('Emissions factors'!$F$5:$CR$10,MATCH('Data Input - Option 4'!$D121,'Emissions factors'!$C$5:$C$10,0),MATCH('Data Input - Option 4'!CQ$7,'Emissions factors'!$F$4:$CR$4,0))/1000,0)","v":0},{"$f":"IFERROR(CR85*INDEX('Emissions factors'!$F$5:$CR$10,MATCH('Data Input - Option 4'!$D121,'Emissions factors'!$C$5:$C$10,0),MATCH('Data Input - Option 4'!CR$7,'Emissions factors'!$F$4:$CR$4,0))/1000,0)","v":0},{"$f":"IFERROR(CS85*INDEX('Emissions factors'!$F$5:$CR$10,MATCH('Data Input - Option 4'!$D121,'Emissions factors'!$C$5:$C$10,0),MATCH('Data Input - Option 4'!CS$7,'Emissions factors'!$F$4:$CR$4,0))/1000,0)","v":0},{"$f":"IFERROR(CT85*INDEX('Emissions factors'!$F$5:$CR$10,MATCH('Data Input - Option 4'!$D121,'Emissions factors'!$C$5:$C$10,0),MATCH('Data Input - Option 4'!CT$7,'Emissions factors'!$F$4:$CR$4,0))/1000,0)","v":0},{"$f":"IFERROR(CU85*INDEX('Emissions factors'!$F$5:$CR$10,MATCH('Data Input - Option 4'!$D121,'Emissions factors'!$C$5:$C$10,0),MATCH('Data Input - Option 4'!CU$7,'Emissions factors'!$F$4:$CR$4,0))/1000,0)","v":0},{"$f":"IFERROR(CV85*INDEX('Emissions factors'!$F$5:$CR$10,MATCH('Data Input - Option 4'!$D121,'Emissions factors'!$C$5:$C$10,0),MATCH('Data Input - Option 4'!CV$7,'Emissions factors'!$F$4:$CR$4,0))/1000,0)","v":0},{"$f":"IFERROR(CW85*INDEX('Emissions factors'!$F$5:$CR$10,MATCH('Data Input - Option 4'!$D121,'Emissions factors'!$C$5:$C$10,0),MATCH('Data Input - Option 4'!CW$7,'Emissions factors'!$F$4:$CR$4,0))/1000,0)","v":0},{"$f":"IFERROR(CX85*INDEX('Emissions factors'!$F$5:$CR$10,MATCH('Data Input - Option 4'!$D121,'Emissions factors'!$C$5:$C$10,0),MATCH('Data Input - Option 4'!CX$7,'Emissions factors'!$F$4:$CR$4,0))/1000,0)","v":0},{"$f":"IFERROR(CY85*INDEX('Emissions factors'!$F$5:$CR$10,MATCH('Data Input - Option 4'!$D121,'Emissions factors'!$C$5:$C$10,0),MATCH('Data Input - Option 4'!CY$7,'Emissions factors'!$F$4:$CR$4,0))/1000,0)","v":0},{"$f":"IFERROR(CZ85*INDEX('Emissions factors'!$F$5:$CR$10,MATCH('Data Input - Option 4'!$D121,'Emissions factors'!$C$5:$C$10,0),MATCH('Data Input - Option 4'!CZ$7,'Emissions factors'!$F$4:$CR$4,0))/1000,0)","v":0},{"$f":"IFERROR(DA85*INDEX('Emissions factors'!$F$5:$CR$10,MATCH('Data Input - Option 4'!$D121,'Emissions factors'!$C$5:$C$10,0),MATCH('Data Input - Option 4'!DA$7,'Emissions factors'!$F$4:$CR$4,0))/1000,0)","v":0},{"$f":"IFERROR(DB85*INDEX('Emissions factors'!$F$5:$CR$10,MATCH('Data Input - Option 4'!$D121,'Emissions factors'!$C$5:$C$10,0),MATCH('Data Input - Option 4'!DB$7,'Emissions factors'!$F$4:$CR$4,0))/1000,0)","v":0},{"$f":"IFERROR(DC85*INDEX('Emissions factors'!$F$5:$CR$10,MATCH('Data Input - Option 4'!$D121,'Emissions factors'!$C$5:$C$10,0),MATCH('Data Input - Option 4'!DC$7,'Emissions factors'!$F$4:$CR$4,0))/1000,0)","v":0}]
[null,null,null,"Coal","tCO2e","(Auto calculated value)",null,{"$f":"IFERROR(H86*INDEX('Emissions factors'!$F$5:$CR$10,MATCH('Data Input - Option 4'!$D122,'Emissions factors'!$C$5:$C$10,0),MATCH('Data Input - Option 4'!H$7,'Emissions factors'!$F$4:$CR$4,0))/1000,0)","v":0},{"$f":"IFERROR(I86*INDEX('Emissions factors'!$F$5:$CR$10,MATCH('Data Input - Option 4'!$D122,'Emissions factors'!$C$5:$C$10,0),MATCH('Data Input - Option 4'!I$7,'Emissions factors'!$F$4:$CR$4,0))/1000,0)","v":0},{"$f":"IFERROR(J86*INDEX('Emissions factors'!$F$5:$CR$10,MATCH('Data Input - Option 4'!$D122,'Emissions factors'!$C$5:$C$10,0),MATCH('Data Input - Option 4'!J$7,'Emissions factors'!$F$4:$CR$4,0))/1000,0)","v":0},{"$f":"IFERROR(K86*INDEX('Emissions factors'!$F$5:$CR$10,MATCH('Data Input - Option 4'!$D122,'Emissions factors'!$C$5:$C$10,0),MATCH('Data Input - Option 4'!K$7,'Emissions factors'!$F$4:$CR$4,0))/1000,0)","v":0},{"$f":"IFERROR(L86*INDEX('Emissions factors'!$F$5:$CR$10,MATCH('Data Input - Option 4'!$D122,'Emissions factors'!$C$5:$C$10,0),MATCH('Data Input - Option 4'!L$7,'Emissions factors'!$F$4:$CR$4,0))/1000,0)","v":0},{"$f":"IFERROR(M86*INDEX('Emissions factors'!$F$5:$CR$10,MATCH('Data Input - Option 4'!$D122,'Emissions factors'!$C$5:$C$10,0),MATCH('Data Input - Option 4'!M$7,'Emissions factors'!$F$4:$CR$4,0))/1000,0)","v":0},{"$f":"IFERROR(N86*INDEX('Emissions factors'!$F$5:$CR$10,MATCH('Data Input - Option 4'!$D122,'Emissions factors'!$C$5:$C$10,0),MATCH('Data Input - Option 4'!N$7,'Emissions factors'!$F$4:$CR$4,0))/1000,0)","v":0},{"$f":"IFERROR(O86*INDEX('Emissions factors'!$F$5:$CR$10,MATCH('Data Input - Option 4'!$D122,'Emissions factors'!$C$5:$C$10,0),MATCH('Data Input - Option 4'!O$7,'Emissions factors'!$F$4:$CR$4,0))/1000,0)","v":0},{"$f":"IFERROR(P86*INDEX('Emissions factors'!$F$5:$CR$10,MATCH('Data Input - Option 4'!$D122,'Emissions factors'!$C$5:$C$10,0),MATCH('Data Input - Option 4'!P$7,'Emissions factors'!$F$4:$CR$4,0))/1000,0)","v":0},{"$f":"IFERROR(Q86*INDEX('Emissions factors'!$F$5:$CR$10,MATCH('Data Input - Option 4'!$D122,'Emissions factors'!$C$5:$C$10,0),MATCH('Data Input - Option 4'!Q$7,'Emissions factors'!$F$4:$CR$4,0))/1000,0)","v":0},{"$f":"IFERROR(R86*INDEX('Emissions factors'!$F$5:$CR$10,MATCH('Data Input - Option 4'!$D122,'Emissions factors'!$C$5:$C$10,0),MATCH('Data Input - Option 4'!R$7,'Emissions factors'!$F$4:$CR$4,0))/1000,0)","v":0},{"$f":"IFERROR(S86*INDEX('Emissions factors'!$F$5:$CR$10,MATCH('Data Input - Option 4'!$D122,'Emissions factors'!$C$5:$C$10,0),MATCH('Data Input - Option 4'!S$7,'Emissions factors'!$F$4:$CR$4,0))/1000,0)","v":0},{"$f":"IFERROR(T86*INDEX('Emissions factors'!$F$5:$CR$10,MATCH('Data Input - Option 4'!$D122,'Emissions factors'!$C$5:$C$10,0),MATCH('Data Input - Option 4'!T$7,'Emissions factors'!$F$4:$CR$4,0))/1000,0)","v":0},{"$f":"IFERROR(U86*INDEX('Emissions factors'!$F$5:$CR$10,MATCH('Data Input - Option 4'!$D122,'Emissions factors'!$C$5:$C$10,0),MATCH('Data Input - Option 4'!U$7,'Emissions factors'!$F$4:$CR$4,0))/1000,0)","v":0},{"$f":"IFERROR(V86*INDEX('Emissions factors'!$F$5:$CR$10,MATCH('Data Input - Option 4'!$D122,'Emissions factors'!$C$5:$C$10,0),MATCH('Data Input - Option 4'!V$7,'Emissions factors'!$F$4:$CR$4,0))/1000,0)","v":0},{"$f":"IFERROR(W86*INDEX('Emissions factors'!$F$5:$CR$10,MATCH('Data Input - Option 4'!$D122,'Emissions factors'!$C$5:$C$10,0),MATCH('Data Input - Option 4'!W$7,'Emissions factors'!$F$4:$CR$4,0))/1000,0)","v":0},{"$f":"IFERROR(X86*INDEX('Emissions factors'!$F$5:$CR$10,MATCH('Data Input - Option 4'!$D122,'Emissions factors'!$C$5:$C$10,0),MATCH('Data Input - Option 4'!X$7,'Emissions factors'!$F$4:$CR$4,0))/1000,0)","v":0},{"$f":"IFERROR(Y86*INDEX('Emissions factors'!$F$5:$CR$10,MATCH('Data Input - Option 4'!$D122,'Emissions factors'!$C$5:$C$10,0),MATCH('Data Input - Option 4'!Y$7,'Emissions factors'!$F$4:$CR$4,0))/1000,0)","v":0},{"$f":"IFERROR(Z86*INDEX('Emissions factors'!$F$5:$CR$10,MATCH('Data Input - Option 4'!$D122,'Emissions factors'!$C$5:$C$10,0),MATCH('Data Input - Option 4'!Z$7,'Emissions factors'!$F$4:$CR$4,0))/1000,0)","v":0},{"$f":"IFERROR(AA86*INDEX('Emissions factors'!$F$5:$CR$10,MATCH('Data Input - Option 4'!$D122,'Emissions factors'!$C$5:$C$10,0),MATCH('Data Input - Option 4'!AA$7,'Emissions factors'!$F$4:$CR$4,0))/1000,0)","v":0},{"$f":"IFERROR(AB86*INDEX('Emissions factors'!$F$5:$CR$10,MATCH('Data Input - Option 4'!$D122,'Emissions factors'!$C$5:$C$10,0),MATCH('Data Input - Option 4'!AB$7,'Emissions factors'!$F$4:$CR$4,0))/1000,0)","v":0},{"$f":"IFERROR(AC86*INDEX('Emissions factors'!$F$5:$CR$10,MATCH('Data Input - Option 4'!$D122,'Emissions factors'!$C$5:$C$10,0),MATCH('Data Input - Option 4'!AC$7,'Emissions factors'!$F$4:$CR$4,0))/1000,0)","v":0},{"$f":"IFERROR(AD86*INDEX('Emissions factors'!$F$5:$CR$10,MATCH('Data Input - Option 4'!$D122,'Emissions factors'!$C$5:$C$10,0),MATCH('Data Input - Option 4'!AD$7,'Emissions factors'!$F$4:$CR$4,0))/1000,0)","v":0},{"$f":"IFERROR(AE86*INDEX('Emissions factors'!$F$5:$CR$10,MATCH('Data Input - Option 4'!$D122,'Emissions factors'!$C$5:$C$10,0),MATCH('Data Input - Option 4'!AE$7,'Emissions factors'!$F$4:$CR$4,0))/1000,0)","v":0},{"$f":"IFERROR(AF86*INDEX('Emissions factors'!$F$5:$CR$10,MATCH('Data Input - Option 4'!$D122,'Emissions factors'!$C$5:$C$10,0),MATCH('Data Input - Option 4'!AF$7,'Emissions factors'!$F$4:$CR$4,0))/1000,0)","v":0},{"$f":"IFERROR(AG86*INDEX('Emissions factors'!$F$5:$CR$10,MATCH('Data Input - Option 4'!$D122,'Emissions factors'!$C$5:$C$10,0),MATCH('Data Input - Option 4'!AG$7,'Emissions factors'!$F$4:$CR$4,0))/1000,0)","v":0},{"$f":"IFERROR(AH86*INDEX('Emissions factors'!$F$5:$CR$10,MATCH('Data Input - Option 4'!$D122,'Emissions factors'!$C$5:$C$10,0),MATCH('Data Input - Option 4'!AH$7,'Emissions factors'!$F$4:$CR$4,0))/1000,0)","v":0},{"$f":"IFERROR(AI86*INDEX('Emissions factors'!$F$5:$CR$10,MATCH('Data Input - Option 4'!$D122,'Emissions factors'!$C$5:$C$10,0),MATCH('Data Input - Option 4'!AI$7,'Emissions factors'!$F$4:$CR$4,0))/1000,0)","v":0},{"$f":"IFERROR(AJ86*INDEX('Emissions factors'!$F$5:$CR$10,MATCH('Data Input - Option 4'!$D122,'Emissions factors'!$C$5:$C$10,0),MATCH('Data Input - Option 4'!AJ$7,'Emissions factors'!$F$4:$CR$4,0))/1000,0)","v":0},{"$f":"IFERROR(AK86*INDEX('Emissions factors'!$F$5:$CR$10,MATCH('Data Input - Option 4'!$D122,'Emissions factors'!$C$5:$C$10,0),MATCH('Data Input - Option 4'!AK$7,'Emissions factors'!$F$4:$CR$4,0))/1000,0)","v":0},{"$f":"IFERROR(AL86*INDEX('Emissions factors'!$F$5:$CR$10,MATCH('Data Input - Option 4'!$D122,'Emissions factors'!$C$5:$C$10,0),MATCH('Data Input - Option 4'!AL$7,'Emissions factors'!$F$4:$CR$4,0))/1000,0)","v":0},{"$f":"IFERROR(AM86*INDEX('Emissions factors'!$F$5:$CR$10,MATCH('Data Input - Option 4'!$D122,'Emissions factors'!$C$5:$C$10,0),MATCH('Data Input - Option 4'!AM$7,'Emissions factors'!$F$4:$CR$4,0))/1000,0)","v":0},{"$f":"IFERROR(AN86*INDEX('Emissions factors'!$F$5:$CR$10,MATCH('Data Input - Option 4'!$D122,'Emissions factors'!$C$5:$C$10,0),MATCH('Data Input - Option 4'!AN$7,'Emissions factors'!$F$4:$CR$4,0))/1000,0)","v":0},{"$f":"IFERROR(AO86*INDEX('Emissions factors'!$F$5:$CR$10,MATCH('Data Input - Option 4'!$D122,'Emissions factors'!$C$5:$C$10,0),MATCH('Data Input - Option 4'!AO$7,'Emissions factors'!$F$4:$CR$4,0))/1000,0)","v":0},{"$f":"IFERROR(AP86*INDEX('Emissions factors'!$F$5:$CR$10,MATCH('Data Input - Option 4'!$D122,'Emissions factors'!$C$5:$C$10,0),MATCH('Data Input - Option 4'!AP$7,'Emissions factors'!$F$4:$CR$4,0))/1000,0)","v":0},{"$f":"IFERROR(AQ86*INDEX('Emissions factors'!$F$5:$CR$10,MATCH('Data Input - Option 4'!$D122,'Emissions factors'!$C$5:$C$10,0),MATCH('Data Input - Option 4'!AQ$7,'Emissions factors'!$F$4:$CR$4,0))/1000,0)","v":0},{"$f":"IFERROR(AR86*INDEX('Emissions factors'!$F$5:$CR$10,MATCH('Data Input - Option 4'!$D122,'Emissions factors'!$C$5:$C$10,0),MATCH('Data Input - Option 4'!AR$7,'Emissions factors'!$F$4:$CR$4,0))/1000,0)","v":0},{"$f":"IFERROR(AS86*INDEX('Emissions factors'!$F$5:$CR$10,MATCH('Data Input - Option 4'!$D122,'Emissions factors'!$C$5:$C$10,0),MATCH('Data Input - Option 4'!AS$7,'Emissions factors'!$F$4:$CR$4,0))/1000,0)","v":0},{"$f":"IFERROR(AT86*INDEX('Emissions factors'!$F$5:$CR$10,MATCH('Data Input - Option 4'!$D122,'Emissions factors'!$C$5:$C$10,0),MATCH('Data Input - Option 4'!AT$7,'Emissions factors'!$F$4:$CR$4,0))/1000,0)","v":0},{"$f":"IFERROR(AU86*INDEX('Emissions factors'!$F$5:$CR$10,MATCH('Data Input - Option 4'!$D122,'Emissions factors'!$C$5:$C$10,0),MATCH('Data Input - Option 4'!AU$7,'Emissions factors'!$F$4:$CR$4,0))/1000,0)","v":0},{"$f":"IFERROR(AV86*INDEX('Emissions factors'!$F$5:$CR$10,MATCH('Data Input - Option 4'!$D122,'Emissions factors'!$C$5:$C$10,0),MATCH('Data Input - Option 4'!AV$7,'Emissions factors'!$F$4:$CR$4,0))/1000,0)","v":0},{"$f":"IFERROR(AW86*INDEX('Emissions factors'!$F$5:$CR$10,MATCH('Data Input - Option 4'!$D122,'Emissions factors'!$C$5:$C$10,0),MATCH('Data Input - Option 4'!AW$7,'Emissions factors'!$F$4:$CR$4,0))/1000,0)","v":0},{"$f":"IFERROR(AX86*INDEX('Emissions factors'!$F$5:$CR$10,MATCH('Data Input - Option 4'!$D122,'Emissions factors'!$C$5:$C$10,0),MATCH('Data Input - Option 4'!AX$7,'Emissions factors'!$F$4:$CR$4,0))/1000,0)","v":0},{"$f":"IFERROR(AY86*INDEX('Emissions factors'!$F$5:$CR$10,MATCH('Data Input - Option 4'!$D122,'Emissions factors'!$C$5:$C$10,0),MATCH('Data Input - Option 4'!AY$7,'Emissions factors'!$F$4:$CR$4,0))/1000,0)","v":0},{"$f":"IFERROR(AZ86*INDEX('Emissions factors'!$F$5:$CR$10,MATCH('Data Input - Option 4'!$D122,'Emissions factors'!$C$5:$C$10,0),MATCH('Data Input - Option 4'!AZ$7,'Emissions factors'!$F$4:$CR$4,0))/1000,0)","v":0},{"$f":"IFERROR(BA86*INDEX('Emissions factors'!$F$5:$CR$10,MATCH('Data Input - Option 4'!$D122,'Emissions factors'!$C$5:$C$10,0),MATCH('Data Input - Option 4'!BA$7,'Emissions factors'!$F$4:$CR$4,0))/1000,0)","v":0},{"$f":"IFERROR(BB86*INDEX('Emissions factors'!$F$5:$CR$10,MATCH('Data Input - Option 4'!$D122,'Emissions factors'!$C$5:$C$10,0),MATCH('Data Input - Option 4'!BB$7,'Emissions factors'!$F$4:$CR$4,0))/1000,0)","v":0},{"$f":"IFERROR(BC86*INDEX('Emissions factors'!$F$5:$CR$10,MATCH('Data Input - Option 4'!$D122,'Emissions factors'!$C$5:$C$10,0),MATCH('Data Input - Option 4'!BC$7,'Emissions factors'!$F$4:$CR$4,0))/1000,0)","v":0},{"$f":"IFERROR(BD86*INDEX('Emissions factors'!$F$5:$CR$10,MATCH('Data Input - Option 4'!$D122,'Emissions factors'!$C$5:$C$10,0),MATCH('Data Input - Option 4'!BD$7,'Emissions factors'!$F$4:$CR$4,0))/1000,0)","v":0},{"$f":"IFERROR(BE86*INDEX('Emissions factors'!$F$5:$CR$10,MATCH('Data Input - Option 4'!$D122,'Emissions factors'!$C$5:$C$10,0),MATCH('Data Input - Option 4'!BE$7,'Emissions factors'!$F$4:$CR$4,0))/1000,0)","v":0},{"$f":"IFERROR(BF86*INDEX('Emissions factors'!$F$5:$CR$10,MATCH('Data Input - Option 4'!$D122,'Emissions factors'!$C$5:$C$10,0),MATCH('Data Input - Option 4'!BF$7,'Emissions factors'!$F$4:$CR$4,0))/1000,0)","v":0},{"$f":"IFERROR(BG86*INDEX('Emissions factors'!$F$5:$CR$10,MATCH('Data Input - Option 4'!$D122,'Emissions factors'!$C$5:$C$10,0),MATCH('Data Input - Option 4'!BG$7,'Emissions factors'!$F$4:$CR$4,0))/1000,0)","v":0},{"$f":"IFERROR(BH86*INDEX('Emissions factors'!$F$5:$CR$10,MATCH('Data Input - Option 4'!$D122,'Emissions factors'!$C$5:$C$10,0),MATCH('Data Input - Option 4'!BH$7,'Emissions factors'!$F$4:$CR$4,0))/1000,0)","v":0},{"$f":"IFERROR(BI86*INDEX('Emissions factors'!$F$5:$CR$10,MATCH('Data Input - Option 4'!$D122,'Emissions factors'!$C$5:$C$10,0),MATCH('Data Input - Option 4'!BI$7,'Emissions factors'!$F$4:$CR$4,0))/1000,0)","v":0},{"$f":"IFERROR(BJ86*INDEX('Emissions factors'!$F$5:$CR$10,MATCH('Data Input - Option 4'!$D122,'Emissions factors'!$C$5:$C$10,0),MATCH('Data Input - Option 4'!BJ$7,'Emissions factors'!$F$4:$CR$4,0))/1000,0)","v":0},{"$f":"IFERROR(BK86*INDEX('Emissions factors'!$F$5:$CR$10,MATCH('Data Input - Option 4'!$D122,'Emissions factors'!$C$5:$C$10,0),MATCH('Data Input - Option 4'!BK$7,'Emissions factors'!$F$4:$CR$4,0))/1000,0)","v":0},{"$f":"IFERROR(BL86*INDEX('Emissions factors'!$F$5:$CR$10,MATCH('Data Input - Option 4'!$D122,'Emissions factors'!$C$5:$C$10,0),MATCH('Data Input - Option 4'!BL$7,'Emissions factors'!$F$4:$CR$4,0))/1000,0)","v":0},{"$f":"IFERROR(BM86*INDEX('Emissions factors'!$F$5:$CR$10,MATCH('Data Input - Option 4'!$D122,'Emissions factors'!$C$5:$C$10,0),MATCH('Data Input - Option 4'!BM$7,'Emissions factors'!$F$4:$CR$4,0))/1000,0)","v":0},{"$f":"IFERROR(BN86*INDEX('Emissions factors'!$F$5:$CR$10,MATCH('Data Input - Option 4'!$D122,'Emissions factors'!$C$5:$C$10,0),MATCH('Data Input - Option 4'!BN$7,'Emissions factors'!$F$4:$CR$4,0))/1000,0)","v":0},{"$f":"IFERROR(BO86*INDEX('Emissions factors'!$F$5:$CR$10,MATCH('Data Input - Option 4'!$D122,'Emissions factors'!$C$5:$C$10,0),MATCH('Data Input - Option 4'!BO$7,'Emissions factors'!$F$4:$CR$4,0))/1000,0)","v":0},{"$f":"IFERROR(BP86*INDEX('Emissions factors'!$F$5:$CR$10,MATCH('Data Input - Option 4'!$D122,'Emissions factors'!$C$5:$C$10,0),MATCH('Data Input - Option 4'!BP$7,'Emissions factors'!$F$4:$CR$4,0))/1000,0)","v":0},{"$f":"IFERROR(BQ86*INDEX('Emissions factors'!$F$5:$CR$10,MATCH('Data Input - Option 4'!$D122,'Emissions factors'!$C$5:$C$10,0),MATCH('Data Input - Option 4'!BQ$7,'Emissions factors'!$F$4:$CR$4,0))/1000,0)","v":0},{"$f":"IFERROR(BR86*INDEX('Emissions factors'!$F$5:$CR$10,MATCH('Data Input - Option 4'!$D122,'Emissions factors'!$C$5:$C$10,0),MATCH('Data Input - Option 4'!BR$7,'Emissions factors'!$F$4:$CR$4,0))/1000,0)","v":0},{"$f":"IFERROR(BS86*INDEX('Emissions factors'!$F$5:$CR$10,MATCH('Data Input - Option 4'!$D122,'Emissions factors'!$C$5:$C$10,0),MATCH('Data Input - Option 4'!BS$7,'Emissions factors'!$F$4:$CR$4,0))/1000,0)","v":0},{"$f":"IFERROR(BT86*INDEX('Emissions factors'!$F$5:$CR$10,MATCH('Data Input - Option 4'!$D122,'Emissions factors'!$C$5:$C$10,0),MATCH('Data Input - Option 4'!BT$7,'Emissions factors'!$F$4:$CR$4,0))/1000,0)","v":0},{"$f":"IFERROR(BU86*INDEX('Emissions factors'!$F$5:$CR$10,MATCH('Data Input - Option 4'!$D122,'Emissions factors'!$C$5:$C$10,0),MATCH('Data Input - Option 4'!BU$7,'Emissions factors'!$F$4:$CR$4,0))/1000,0)","v":0},{"$f":"IFERROR(BV86*INDEX('Emissions factors'!$F$5:$CR$10,MATCH('Data Input - Option 4'!$D122,'Emissions factors'!$C$5:$C$10,0),MATCH('Data Input - Option 4'!BV$7,'Emissions factors'!$F$4:$CR$4,0))/1000,0)","v":0},{"$f":"IFERROR(BW86*INDEX('Emissions factors'!$F$5:$CR$10,MATCH('Data Input - Option 4'!$D122,'Emissions factors'!$C$5:$C$10,0),MATCH('Data Input - Option 4'!BW$7,'Emissions factors'!$F$4:$CR$4,0))/1000,0)","v":0},{"$f":"IFERROR(BX86*INDEX('Emissions factors'!$F$5:$CR$10,MATCH('Data Input - Option 4'!$D122,'Emissions factors'!$C$5:$C$10,0),MATCH('Data Input - Option 4'!BX$7,'Emissions factors'!$F$4:$CR$4,0))/1000,0)","v":0},{"$f":"IFERROR(BY86*INDEX('Emissions factors'!$F$5:$CR$10,MATCH('Data Input - Option 4'!$D122,'Emissions factors'!$C$5:$C$10,0),MATCH('Data Input - Option 4'!BY$7,'Emissions factors'!$F$4:$CR$4,0))/1000,0)","v":0},{"$f":"IFERROR(BZ86*INDEX('Emissions factors'!$F$5:$CR$10,MATCH('Data Input - Option 4'!$D122,'Emissions factors'!$C$5:$C$10,0),MATCH('Data Input - Option 4'!BZ$7,'Emissions factors'!$F$4:$CR$4,0))/1000,0)","v":0},{"$f":"IFERROR(CA86*INDEX('Emissions factors'!$F$5:$CR$10,MATCH('Data Input - Option 4'!$D122,'Emissions factors'!$C$5:$C$10,0),MATCH('Data Input - Option 4'!CA$7,'Emissions factors'!$F$4:$CR$4,0))/1000,0)","v":0},{"$f":"IFERROR(CB86*INDEX('Emissions factors'!$F$5:$CR$10,MATCH('Data Input - Option 4'!$D122,'Emissions factors'!$C$5:$C$10,0),MATCH('Data Input - Option 4'!CB$7,'Emissions factors'!$F$4:$CR$4,0))/1000,0)","v":0},{"$f":"IFERROR(CC86*INDEX('Emissions factors'!$F$5:$CR$10,MATCH('Data Input - Option 4'!$D122,'Emissions factors'!$C$5:$C$10,0),MATCH('Data Input - Option 4'!CC$7,'Emissions factors'!$F$4:$CR$4,0))/1000,0)","v":0},{"$f":"IFERROR(CD86*INDEX('Emissions factors'!$F$5:$CR$10,MATCH('Data Input - Option 4'!$D122,'Emissions factors'!$C$5:$C$10,0),MATCH('Data Input - Option 4'!CD$7,'Emissions factors'!$F$4:$CR$4,0))/1000,0)","v":0},{"$f":"IFERROR(CE86*INDEX('Emissions factors'!$F$5:$CR$10,MATCH('Data Input - Option 4'!$D122,'Emissions factors'!$C$5:$C$10,0),MATCH('Data Input - Option 4'!CE$7,'Emissions factors'!$F$4:$CR$4,0))/1000,0)","v":0},{"$f":"IFERROR(CF86*INDEX('Emissions factors'!$F$5:$CR$10,MATCH('Data Input - Option 4'!$D122,'Emissions factors'!$C$5:$C$10,0),MATCH('Data Input - Option 4'!CF$7,'Emissions factors'!$F$4:$CR$4,0))/1000,0)","v":0},{"$f":"IFERROR(CG86*INDEX('Emissions factors'!$F$5:$CR$10,MATCH('Data Input - Option 4'!$D122,'Emissions factors'!$C$5:$C$10,0),MATCH('Data Input - Option 4'!CG$7,'Emissions factors'!$F$4:$CR$4,0))/1000,0)","v":0},{"$f":"IFERROR(CH86*INDEX('Emissions factors'!$F$5:$CR$10,MATCH('Data Input - Option 4'!$D122,'Emissions factors'!$C$5:$C$10,0),MATCH('Data Input - Option 4'!CH$7,'Emissions factors'!$F$4:$CR$4,0))/1000,0)","v":0},{"$f":"IFERROR(CI86*INDEX('Emissions factors'!$F$5:$CR$10,MATCH('Data Input - Option 4'!$D122,'Emissions factors'!$C$5:$C$10,0),MATCH('Data Input - Option 4'!CI$7,'Emissions factors'!$F$4:$CR$4,0))/1000,0)","v":0},{"$f":"IFERROR(CJ86*INDEX('Emissions factors'!$F$5:$CR$10,MATCH('Data Input - Option 4'!$D122,'Emissions factors'!$C$5:$C$10,0),MATCH('Data Input - Option 4'!CJ$7,'Emissions factors'!$F$4:$CR$4,0))/1000,0)","v":0},{"$f":"IFERROR(CK86*INDEX('Emissions factors'!$F$5:$CR$10,MATCH('Data Input - Option 4'!$D122,'Emissions factors'!$C$5:$C$10,0),MATCH('Data Input - Option 4'!CK$7,'Emissions factors'!$F$4:$CR$4,0))/1000,0)","v":0},{"$f":"IFERROR(CL86*INDEX('Emissions factors'!$F$5:$CR$10,MATCH('Data Input - Option 4'!$D122,'Emissions factors'!$C$5:$C$10,0),MATCH('Data Input - Option 4'!CL$7,'Emissions factors'!$F$4:$CR$4,0))/1000,0)","v":0},{"$f":"IFERROR(CM86*INDEX('Emissions factors'!$F$5:$CR$10,MATCH('Data Input - Option 4'!$D122,'Emissions factors'!$C$5:$C$10,0),MATCH('Data Input - Option 4'!CM$7,'Emissions factors'!$F$4:$CR$4,0))/1000,0)","v":0},{"$f":"IFERROR(CN86*INDEX('Emissions factors'!$F$5:$CR$10,MATCH('Data Input - Option 4'!$D122,'Emissions factors'!$C$5:$C$10,0),MATCH('Data Input - Option 4'!CN$7,'Emissions factors'!$F$4:$CR$4,0))/1000,0)","v":0},{"$f":"IFERROR(CO86*INDEX('Emissions factors'!$F$5:$CR$10,MATCH('Data Input - Option 4'!$D122,'Emissions factors'!$C$5:$C$10,0),MATCH('Data Input - Option 4'!CO$7,'Emissions factors'!$F$4:$CR$4,0))/1000,0)","v":0},{"$f":"IFERROR(CP86*INDEX('Emissions factors'!$F$5:$CR$10,MATCH('Data Input - Option 4'!$D122,'Emissions factors'!$C$5:$C$10,0),MATCH('Data Input - Option 4'!CP$7,'Emissions factors'!$F$4:$CR$4,0))/1000,0)","v":0},{"$f":"IFERROR(CQ86*INDEX('Emissions factors'!$F$5:$CR$10,MATCH('Data Input - Option 4'!$D122,'Emissions factors'!$C$5:$C$10,0),MATCH('Data Input - Option 4'!CQ$7,'Emissions factors'!$F$4:$CR$4,0))/1000,0)","v":0},{"$f":"IFERROR(CR86*INDEX('Emissions factors'!$F$5:$CR$10,MATCH('Data Input - Option 4'!$D122,'Emissions factors'!$C$5:$C$10,0),MATCH('Data Input - Option 4'!CR$7,'Emissions factors'!$F$4:$CR$4,0))/1000,0)","v":0},{"$f":"IFERROR(CS86*INDEX('Emissions factors'!$F$5:$CR$10,MATCH('Data Input - Option 4'!$D122,'Emissions factors'!$C$5:$C$10,0),MATCH('Data Input - Option 4'!CS$7,'Emissions factors'!$F$4:$CR$4,0))/1000,0)","v":0},{"$f":"IFERROR(CT86*INDEX('Emissions factors'!$F$5:$CR$10,MATCH('Data Input - Option 4'!$D122,'Emissions factors'!$C$5:$C$10,0),MATCH('Data Input - Option 4'!CT$7,'Emissions factors'!$F$4:$CR$4,0))/1000,0)","v":0},{"$f":"IFERROR(CU86*INDEX('Emissions factors'!$F$5:$CR$10,MATCH('Data Input - Option 4'!$D122,'Emissions factors'!$C$5:$C$10,0),MATCH('Data Input - Option 4'!CU$7,'Emissions factors'!$F$4:$CR$4,0))/1000,0)","v":0},{"$f":"IFERROR(CV86*INDEX('Emissions factors'!$F$5:$CR$10,MATCH('Data Input - Option 4'!$D122,'Emissions factors'!$C$5:$C$10,0),MATCH('Data Input - Option 4'!CV$7,'Emissions factors'!$F$4:$CR$4,0))/1000,0)","v":0},{"$f":"IFERROR(CW86*INDEX('Emissions factors'!$F$5:$CR$10,MATCH('Data Input - Option 4'!$D122,'Emissions factors'!$C$5:$C$10,0),MATCH('Data Input - Option 4'!CW$7,'Emissions factors'!$F$4:$CR$4,0))/1000,0)","v":0},{"$f":"IFERROR(CX86*INDEX('Emissions factors'!$F$5:$CR$10,MATCH('Data Input - Option 4'!$D122,'Emissions factors'!$C$5:$C$10,0),MATCH('Data Input - Option 4'!CX$7,'Emissions factors'!$F$4:$CR$4,0))/1000,0)","v":0},{"$f":"IFERROR(CY86*INDEX('Emissions factors'!$F$5:$CR$10,MATCH('Data Input - Option 4'!$D122,'Emissions factors'!$C$5:$C$10,0),MATCH('Data Input - Option 4'!CY$7,'Emissions factors'!$F$4:$CR$4,0))/1000,0)","v":0},{"$f":"IFERROR(CZ86*INDEX('Emissions factors'!$F$5:$CR$10,MATCH('Data Input - Option 4'!$D122,'Emissions factors'!$C$5:$C$10,0),MATCH('Data Input - Option 4'!CZ$7,'Emissions factors'!$F$4:$CR$4,0))/1000,0)","v":0},{"$f":"IFERROR(DA86*INDEX('Emissions factors'!$F$5:$CR$10,MATCH('Data Input - Option 4'!$D122,'Emissions factors'!$C$5:$C$10,0),MATCH('Data Input - Option 4'!DA$7,'Emissions factors'!$F$4:$CR$4,0))/1000,0)","v":0},{"$f":"IFERROR(DB86*INDEX('Emissions factors'!$F$5:$CR$10,MATCH('Data Input - Option 4'!$D122,'Emissions factors'!$C$5:$C$10,0),MATCH('Data Input - Option 4'!DB$7,'Emissions factors'!$F$4:$CR$4,0))/1000,0)","v":0},{"$f":"IFERROR(DC86*INDEX('Emissions factors'!$F$5:$CR$10,MATCH('Data Input - Option 4'!$D122,'Emissions factors'!$C$5:$C$10,0),MATCH('Data Input - Option 4'!DC$7,'Emissions factors'!$F$4:$CR$4,0))/1000,0)","v":0}]
[null,null,null,"Gas Oil","tCO2e","(Auto calculated value)",null,{"$f":"IFERROR(H87*INDEX('Emissions factors'!$F$5:$CR$10,MATCH('Data Input - Option 4'!$D123,'Emissions factors'!$C$5:$C$10,0),MATCH('Data Input - Option 4'!H$7,'Emissions factors'!$F$4:$CR$4,0))/1000,0)","v":2.7159532468959326E-3},{"$f":"IFERROR(I87*INDEX('Emissions factors'!$F$5:$CR$10,MATCH('Data Input - Option 4'!$D123,'Emissions factors'!$C$5:$C$10,0),MATCH('Data Input - Option 4'!I$7,'Emissions factors'!$F$4:$CR$4,0))/1000,0)","v":0},{"$f":"IFERROR(J87*INDEX('Emissions factors'!$F$5:$CR$10,MATCH('Data Input - Option 4'!$D123,'Emissions factors'!$C$5:$C$10,0),MATCH('Data Input - Option 4'!J$7,'Emissions factors'!$F$4:$CR$4,0))/1000,0)","v":0},{"$f":"IFERROR(K87*INDEX('Emissions factors'!$F$5:$CR$10,MATCH('Data Input - Option 4'!$D123,'Emissions factors'!$C$5:$C$10,0),MATCH('Data Input - Option 4'!K$7,'Emissions factors'!$F$4:$CR$4,0))/1000,0)","v":0},{"$f":"IFERROR(L87*INDEX('Emissions factors'!$F$5:$CR$10,MATCH('Data Input - Option 4'!$D123,'Emissions factors'!$C$5:$C$10,0),MATCH('Data Input - Option 4'!L$7,'Emissions factors'!$F$4:$CR$4,0))/1000,0)","v":0},{"$f":"IFERROR(M87*INDEX('Emissions factors'!$F$5:$CR$10,MATCH('Data Input - Option 4'!$D123,'Emissions factors'!$C$5:$C$10,0),MATCH('Data Input - Option 4'!M$7,'Emissions factors'!$F$4:$CR$4,0))/1000,0)","v":0},{"$f":"IFERROR(N87*INDEX('Emissions factors'!$F$5:$CR$10,MATCH('Data Input - Option 4'!$D123,'Emissions factors'!$C$5:$C$10,0),MATCH('Data Input - Option 4'!N$7,'Emissions factors'!$F$4:$CR$4,0))/1000,0)","v":0},{"$f":"IFERROR(O87*INDEX('Emissions factors'!$F$5:$CR$10,MATCH('Data Input - Option 4'!$D123,'Emissions factors'!$C$5:$C$10,0),MATCH('Data Input - Option 4'!O$7,'Emissions factors'!$F$4:$CR$4,0))/1000,0)","v":0},{"$f":"IFERROR(P87*INDEX('Emissions factors'!$F$5:$CR$10,MATCH('Data Input - Option 4'!$D123,'Emissions factors'!$C$5:$C$10,0),MATCH('Data Input - Option 4'!P$7,'Emissions factors'!$F$4:$CR$4,0))/1000,0)","v":0},{"$f":"IFERROR(Q87*INDEX('Emissions factors'!$F$5:$CR$10,MATCH('Data Input - Option 4'!$D123,'Emissions factors'!$C$5:$C$10,0),MATCH('Data Input - Option 4'!Q$7,'Emissions factors'!$F$4:$CR$4,0))/1000,0)","v":0},{"$f":"IFERROR(R87*INDEX('Emissions factors'!$F$5:$CR$10,MATCH('Data Input - Option 4'!$D123,'Emissions factors'!$C$5:$C$10,0),MATCH('Data Input - Option 4'!R$7,'Emissions factors'!$F$4:$CR$4,0))/1000,0)","v":0},{"$f":"IFERROR(S87*INDEX('Emissions factors'!$F$5:$CR$10,MATCH('Data Input - Option 4'!$D123,'Emissions factors'!$C$5:$C$10,0),MATCH('Data Input - Option 4'!S$7,'Emissions factors'!$F$4:$CR$4,0))/1000,0)","v":0},{"$f":"IFERROR(T87*INDEX('Emissions factors'!$F$5:$CR$10,MATCH('Data Input - Option 4'!$D123,'Emissions factors'!$C$5:$C$10,0),MATCH('Data Input - Option 4'!T$7,'Emissions factors'!$F$4:$CR$4,0))/1000,0)","v":0},{"$f":"IFERROR(U87*INDEX('Emissions factors'!$F$5:$CR$10,MATCH('Data Input - Option 4'!$D123,'Emissions factors'!$C$5:$C$10,0),MATCH('Data Input - Option 4'!U$7,'Emissions factors'!$F$4:$CR$4,0))/1000,0)","v":0},{"$f":"IFERROR(V87*INDEX('Emissions factors'!$F$5:$CR$10,MATCH('Data Input - Option 4'!$D123,'Emissions factors'!$C$5:$C$10,0),MATCH('Data Input - Option 4'!V$7,'Emissions factors'!$F$4:$CR$4,0))/1000,0)","v":0},{"$f":"IFERROR(W87*INDEX('Emissions factors'!$F$5:$CR$10,MATCH('Data Input - Option 4'!$D123,'Emissions factors'!$C$5:$C$10,0),MATCH('Data Input - Option 4'!W$7,'Emissions factors'!$F$4:$CR$4,0))/1000,0)","v":0},{"$f":"IFERROR(X87*INDEX('Emissions factors'!$F$5:$CR$10,MATCH('Data Input - Option 4'!$D123,'Emissions factors'!$C$5:$C$10,0),MATCH('Data Input - Option 4'!X$7,'Emissions factors'!$F$4:$CR$4,0))/1000,0)","v":0},{"$f":"IFERROR(Y87*INDEX('Emissions factors'!$F$5:$CR$10,MATCH('Data Input - Option 4'!$D123,'Emissions factors'!$C$5:$C$10,0),MATCH('Data Input - Option 4'!Y$7,'Emissions factors'!$F$4:$CR$4,0))/1000,0)","v":0},{"$f":"IFERROR(Z87*INDEX('Emissions factors'!$F$5:$CR$10,MATCH('Data Input - Option 4'!$D123,'Emissions factors'!$C$5:$C$10,0),MATCH('Data Input - Option 4'!Z$7,'Emissions factors'!$F$4:$CR$4,0))/1000,0)","v":0},{"$f":"IFERROR(AA87*INDEX('Emissions factors'!$F$5:$CR$10,MATCH('Data Input - Option 4'!$D123,'Emissions factors'!$C$5:$C$10,0),MATCH('Data Input - Option 4'!AA$7,'Emissions factors'!$F$4:$CR$4,0))/1000,0)","v":0},{"$f":"IFERROR(AB87*INDEX('Emissions factors'!$F$5:$CR$10,MATCH('Data Input - Option 4'!$D123,'Emissions factors'!$C$5:$C$10,0),MATCH('Data Input - Option 4'!AB$7,'Emissions factors'!$F$4:$CR$4,0))/1000,0)","v":0},{"$f":"IFERROR(AC87*INDEX('Emissions factors'!$F$5:$CR$10,MATCH('Data Input - Option 4'!$D123,'Emissions factors'!$C$5:$C$10,0),MATCH('Data Input - Option 4'!AC$7,'Emissions factors'!$F$4:$CR$4,0))/1000,0)","v":0},{"$f":"IFERROR(AD87*INDEX('Emissions factors'!$F$5:$CR$10,MATCH('Data Input - Option 4'!$D123,'Emissions factors'!$C$5:$C$10,0),MATCH('Data Input - Option 4'!AD$7,'Emissions factors'!$F$4:$CR$4,0))/1000,0)","v":0},{"$f":"IFERROR(AE87*INDEX('Emissions factors'!$F$5:$CR$10,MATCH('Data Input - Option 4'!$D123,'Emissions factors'!$C$5:$C$10,0),MATCH('Data Input - Option 4'!AE$7,'Emissions factors'!$F$4:$CR$4,0))/1000,0)","v":0},{"$f":"IFERROR(AF87*INDEX('Emissions factors'!$F$5:$CR$10,MATCH('Data Input - Option 4'!$D123,'Emissions factors'!$C$5:$C$10,0),MATCH('Data Input - Option 4'!AF$7,'Emissions factors'!$F$4:$CR$4,0))/1000,0)","v":0},{"$f":"IFERROR(AG87*INDEX('Emissions factors'!$F$5:$CR$10,MATCH('Data Input - Option 4'!$D123,'Emissions factors'!$C$5:$C$10,0),MATCH('Data Input - Option 4'!AG$7,'Emissions factors'!$F$4:$CR$4,0))/1000,0)","v":0},{"$f":"IFERROR(AH87*INDEX('Emissions factors'!$F$5:$CR$10,MATCH('Data Input - Option 4'!$D123,'Emissions factors'!$C$5:$C$10,0),MATCH('Data Input - Option 4'!AH$7,'Emissions factors'!$F$4:$CR$4,0))/1000,0)","v":0},{"$f":"IFERROR(AI87*INDEX('Emissions factors'!$F$5:$CR$10,MATCH('Data Input - Option 4'!$D123,'Emissions factors'!$C$5:$C$10,0),MATCH('Data Input - Option 4'!AI$7,'Emissions factors'!$F$4:$CR$4,0))/1000,0)","v":0},{"$f":"IFERROR(AJ87*INDEX('Emissions factors'!$F$5:$CR$10,MATCH('Data Input - Option 4'!$D123,'Emissions factors'!$C$5:$C$10,0),MATCH('Data Input - Option 4'!AJ$7,'Emissions factors'!$F$4:$CR$4,0))/1000,0)","v":0},{"$f":"IFERROR(AK87*INDEX('Emissions factors'!$F$5:$CR$10,MATCH('Data Input - Option 4'!$D123,'Emissions factors'!$C$5:$C$10,0),MATCH('Data Input - Option 4'!AK$7,'Emissions factors'!$F$4:$CR$4,0))/1000,0)","v":0},{"$f":"IFERROR(AL87*INDEX('Emissions factors'!$F$5:$CR$10,MATCH('Data Input - Option 4'!$D123,'Emissions factors'!$C$5:$C$10,0),MATCH('Data Input - Option 4'!AL$7,'Emissions factors'!$F$4:$CR$4,0))/1000,0)","v":0},{"$f":"IFERROR(AM87*INDEX('Emissions factors'!$F$5:$CR$10,MATCH('Data Input - Option 4'!$D123,'Emissions factors'!$C$5:$C$10,0),MATCH('Data Input - Option 4'!AM$7,'Emissions factors'!$F$4:$CR$4,0))/1000,0)","v":0},{"$f":"IFERROR(AN87*INDEX('Emissions factors'!$F$5:$CR$10,MATCH('Data Input - Option 4'!$D123,'Emissions factors'!$C$5:$C$10,0),MATCH('Data Input - Option 4'!AN$7,'Emissions factors'!$F$4:$CR$4,0))/1000,0)","v":0},{"$f":"IFERROR(AO87*INDEX('Emissions factors'!$F$5:$CR$10,MATCH('Data Input - Option 4'!$D123,'Emissions factors'!$C$5:$C$10,0),MATCH('Data Input - Option 4'!AO$7,'Emissions factors'!$F$4:$CR$4,0))/1000,0)","v":0},{"$f":"IFERROR(AP87*INDEX('Emissions factors'!$F$5:$CR$10,MATCH('Data Input - Option 4'!$D123,'Emissions factors'!$C$5:$C$10,0),MATCH('Data Input - Option 4'!AP$7,'Emissions factors'!$F$4:$CR$4,0))/1000,0)","v":0},{"$f":"IFERROR(AQ87*INDEX('Emissions factors'!$F$5:$CR$10,MATCH('Data Input - Option 4'!$D123,'Emissions factors'!$C$5:$C$10,0),MATCH('Data Input - Option 4'!AQ$7,'Emissions factors'!$F$4:$CR$4,0))/1000,0)","v":0},{"$f":"IFERROR(AR87*INDEX('Emissions factors'!$F$5:$CR$10,MATCH('Data Input - Option 4'!$D123,'Emissions factors'!$C$5:$C$10,0),MATCH('Data Input - Option 4'!AR$7,'Emissions factors'!$F$4:$CR$4,0))/1000,0)","v":0},{"$f":"IFERROR(AS87*INDEX('Emissions factors'!$F$5:$CR$10,MATCH('Data Input - Option 4'!$D123,'Emissions factors'!$C$5:$C$10,0),MATCH('Data Input - Option 4'!AS$7,'Emissions factors'!$F$4:$CR$4,0))/1000,0)","v":0},{"$f":"IFERROR(AT87*INDEX('Emissions factors'!$F$5:$CR$10,MATCH('Data Input - Option 4'!$D123,'Emissions factors'!$C$5:$C$10,0),MATCH('Data Input - Option 4'!AT$7,'Emissions factors'!$F$4:$CR$4,0))/1000,0)","v":0},{"$f":"IFERROR(AU87*INDEX('Emissions factors'!$F$5:$CR$10,MATCH('Data Input - Option 4'!$D123,'Emissions factors'!$C$5:$C$10,0),MATCH('Data Input - Option 4'!AU$7,'Emissions factors'!$F$4:$CR$4,0))/1000,0)","v":0},{"$f":"IFERROR(AV87*INDEX('Emissions factors'!$F$5:$CR$10,MATCH('Data Input - Option 4'!$D123,'Emissions factors'!$C$5:$C$10,0),MATCH('Data Input - Option 4'!AV$7,'Emissions factors'!$F$4:$CR$4,0))/1000,0)","v":0},{"$f":"IFERROR(AW87*INDEX('Emissions factors'!$F$5:$CR$10,MATCH('Data Input - Option 4'!$D123,'Emissions factors'!$C$5:$C$10,0),MATCH('Data Input - Option 4'!AW$7,'Emissions factors'!$F$4:$CR$4,0))/1000,0)","v":0},{"$f":"IFERROR(AX87*INDEX('Emissions factors'!$F$5:$CR$10,MATCH('Data Input - Option 4'!$D123,'Emissions factors'!$C$5:$C$10,0),MATCH('Data Input - Option 4'!AX$7,'Emissions factors'!$F$4:$CR$4,0))/1000,0)","v":0},{"$f":"IFERROR(AY87*INDEX('Emissions factors'!$F$5:$CR$10,MATCH('Data Input - Option 4'!$D123,'Emissions factors'!$C$5:$C$10,0),MATCH('Data Input - Option 4'!AY$7,'Emissions factors'!$F$4:$CR$4,0))/1000,0)","v":0},{"$f":"IFERROR(AZ87*INDEX('Emissions factors'!$F$5:$CR$10,MATCH('Data Input - Option 4'!$D123,'Emissions factors'!$C$5:$C$10,0),MATCH('Data Input - Option 4'!AZ$7,'Emissions factors'!$F$4:$CR$4,0))/1000,0)","v":0},{"$f":"IFERROR(BA87*INDEX('Emissions factors'!$F$5:$CR$10,MATCH('Data Input - Option 4'!$D123,'Emissions factors'!$C$5:$C$10,0),MATCH('Data Input - Option 4'!BA$7,'Emissions factors'!$F$4:$CR$4,0))/1000,0)","v":0},{"$f":"IFERROR(BB87*INDEX('Emissions factors'!$F$5:$CR$10,MATCH('Data Input - Option 4'!$D123,'Emissions factors'!$C$5:$C$10,0),MATCH('Data Input - Option 4'!BB$7,'Emissions factors'!$F$4:$CR$4,0))/1000,0)","v":0},{"$f":"IFERROR(BC87*INDEX('Emissions factors'!$F$5:$CR$10,MATCH('Data Input - Option 4'!$D123,'Emissions factors'!$C$5:$C$10,0),MATCH('Data Input - Option 4'!BC$7,'Emissions factors'!$F$4:$CR$4,0))/1000,0)","v":0},{"$f":"IFERROR(BD87*INDEX('Emissions factors'!$F$5:$CR$10,MATCH('Data Input - Option 4'!$D123,'Emissions factors'!$C$5:$C$10,0),MATCH('Data Input - Option 4'!BD$7,'Emissions factors'!$F$4:$CR$4,0))/1000,0)","v":0},{"$f":"IFERROR(BE87*INDEX('Emissions factors'!$F$5:$CR$10,MATCH('Data Input - Option 4'!$D123,'Emissions factors'!$C$5:$C$10,0),MATCH('Data Input - Option 4'!BE$7,'Emissions factors'!$F$4:$CR$4,0))/1000,0)","v":0},{"$f":"IFERROR(BF87*INDEX('Emissions factors'!$F$5:$CR$10,MATCH('Data Input - Option 4'!$D123,'Emissions factors'!$C$5:$C$10,0),MATCH('Data Input - Option 4'!BF$7,'Emissions factors'!$F$4:$CR$4,0))/1000,0)","v":0},{"$f":"IFERROR(BG87*INDEX('Emissions factors'!$F$5:$CR$10,MATCH('Data Input - Option 4'!$D123,'Emissions factors'!$C$5:$C$10,0),MATCH('Data Input - Option 4'!BG$7,'Emissions factors'!$F$4:$CR$4,0))/1000,0)","v":0},{"$f":"IFERROR(BH87*INDEX('Emissions factors'!$F$5:$CR$10,MATCH('Data Input - Option 4'!$D123,'Emissions factors'!$C$5:$C$10,0),MATCH('Data Input - Option 4'!BH$7,'Emissions factors'!$F$4:$CR$4,0))/1000,0)","v":0},{"$f":"IFERROR(BI87*INDEX('Emissions factors'!$F$5:$CR$10,MATCH('Data Input - Option 4'!$D123,'Emissions factors'!$C$5:$C$10,0),MATCH('Data Input - Option 4'!BI$7,'Emissions factors'!$F$4:$CR$4,0))/1000,0)","v":0},{"$f":"IFERROR(BJ87*INDEX('Emissions factors'!$F$5:$CR$10,MATCH('Data Input - Option 4'!$D123,'Emissions factors'!$C$5:$C$10,0),MATCH('Data Input - Option 4'!BJ$7,'Emissions factors'!$F$4:$CR$4,0))/1000,0)","v":0},{"$f":"IFERROR(BK87*INDEX('Emissions factors'!$F$5:$CR$10,MATCH('Data Input - Option 4'!$D123,'Emissions factors'!$C$5:$C$10,0),MATCH('Data Input - Option 4'!BK$7,'Emissions factors'!$F$4:$CR$4,0))/1000,0)","v":0},{"$f":"IFERROR(BL87*INDEX('Emissions factors'!$F$5:$CR$10,MATCH('Data Input - Option 4'!$D123,'Emissions factors'!$C$5:$C$10,0),MATCH('Data Input - Option 4'!BL$7,'Emissions factors'!$F$4:$CR$4,0))/1000,0)","v":0},{"$f":"IFERROR(BM87*INDEX('Emissions factors'!$F$5:$CR$10,MATCH('Data Input - Option 4'!$D123,'Emissions factors'!$C$5:$C$10,0),MATCH('Data Input - Option 4'!BM$7,'Emissions factors'!$F$4:$CR$4,0))/1000,0)","v":0},{"$f":"IFERROR(BN87*INDEX('Emissions factors'!$F$5:$CR$10,MATCH('Data Input - Option 4'!$D123,'Emissions factors'!$C$5:$C$10,0),MATCH('Data Input - Option 4'!BN$7,'Emissions factors'!$F$4:$CR$4,0))/1000,0)","v":0},{"$f":"IFERROR(BO87*INDEX('Emissions factors'!$F$5:$CR$10,MATCH('Data Input - Option 4'!$D123,'Emissions factors'!$C$5:$C$10,0),MATCH('Data Input - Option 4'!BO$7,'Emissions factors'!$F$4:$CR$4,0))/1000,0)","v":0},{"$f":"IFERROR(BP87*INDEX('Emissions factors'!$F$5:$CR$10,MATCH('Data Input - Option 4'!$D123,'Emissions factors'!$C$5:$C$10,0),MATCH('Data Input - Option 4'!BP$7,'Emissions factors'!$F$4:$CR$4,0))/1000,0)","v":0},{"$f":"IFERROR(BQ87*INDEX('Emissions factors'!$F$5:$CR$10,MATCH('Data Input - Option 4'!$D123,'Emissions factors'!$C$5:$C$10,0),MATCH('Data Input - Option 4'!BQ$7,'Emissions factors'!$F$4:$CR$4,0))/1000,0)","v":0},{"$f":"IFERROR(BR87*INDEX('Emissions factors'!$F$5:$CR$10,MATCH('Data Input - Option 4'!$D123,'Emissions factors'!$C$5:$C$10,0),MATCH('Data Input - Option 4'!BR$7,'Emissions factors'!$F$4:$CR$4,0))/1000,0)","v":0},{"$f":"IFERROR(BS87*INDEX('Emissions factors'!$F$5:$CR$10,MATCH('Data Input - Option 4'!$D123,'Emissions factors'!$C$5:$C$10,0),MATCH('Data Input - Option 4'!BS$7,'Emissions factors'!$F$4:$CR$4,0))/1000,0)","v":0},{"$f":"IFERROR(BT87*INDEX('Emissions factors'!$F$5:$CR$10,MATCH('Data Input - Option 4'!$D123,'Emissions factors'!$C$5:$C$10,0),MATCH('Data Input - Option 4'!BT$7,'Emissions factors'!$F$4:$CR$4,0))/1000,0)","v":0},{"$f":"IFERROR(BU87*INDEX('Emissions factors'!$F$5:$CR$10,MATCH('Data Input - Option 4'!$D123,'Emissions factors'!$C$5:$C$10,0),MATCH('Data Input - Option 4'!BU$7,'Emissions factors'!$F$4:$CR$4,0))/1000,0)","v":0},{"$f":"IFERROR(BV87*INDEX('Emissions factors'!$F$5:$CR$10,MATCH('Data Input - Option 4'!$D123,'Emissions factors'!$C$5:$C$10,0),MATCH('Data Input - Option 4'!BV$7,'Emissions factors'!$F$4:$CR$4,0))/1000,0)","v":0},{"$f":"IFERROR(BW87*INDEX('Emissions factors'!$F$5:$CR$10,MATCH('Data Input - Option 4'!$D123,'Emissions factors'!$C$5:$C$10,0),MATCH('Data Input - Option 4'!BW$7,'Emissions factors'!$F$4:$CR$4,0))/1000,0)","v":0},{"$f":"IFERROR(BX87*INDEX('Emissions factors'!$F$5:$CR$10,MATCH('Data Input - Option 4'!$D123,'Emissions factors'!$C$5:$C$10,0),MATCH('Data Input - Option 4'!BX$7,'Emissions factors'!$F$4:$CR$4,0))/1000,0)","v":0},{"$f":"IFERROR(BY87*INDEX('Emissions factors'!$F$5:$CR$10,MATCH('Data Input - Option 4'!$D123,'Emissions factors'!$C$5:$C$10,0),MATCH('Data Input - Option 4'!BY$7,'Emissions factors'!$F$4:$CR$4,0))/1000,0)","v":0},{"$f":"IFERROR(BZ87*INDEX('Emissions factors'!$F$5:$CR$10,MATCH('Data Input - Option 4'!$D123,'Emissions factors'!$C$5:$C$10,0),MATCH('Data Input - Option 4'!BZ$7,'Emissions factors'!$F$4:$CR$4,0))/1000,0)","v":0},{"$f":"IFERROR(CA87*INDEX('Emissions factors'!$F$5:$CR$10,MATCH('Data Input - Option 4'!$D123,'Emissions factors'!$C$5:$C$10,0),MATCH('Data Input - Option 4'!CA$7,'Emissions factors'!$F$4:$CR$4,0))/1000,0)","v":0},{"$f":"IFERROR(CB87*INDEX('Emissions factors'!$F$5:$CR$10,MATCH('Data Input - Option 4'!$D123,'Emissions factors'!$C$5:$C$10,0),MATCH('Data Input - Option 4'!CB$7,'Emissions factors'!$F$4:$CR$4,0))/1000,0)","v":0},{"$f":"IFERROR(CC87*INDEX('Emissions factors'!$F$5:$CR$10,MATCH('Data Input - Option 4'!$D123,'Emissions factors'!$C$5:$C$10,0),MATCH('Data Input - Option 4'!CC$7,'Emissions factors'!$F$4:$CR$4,0))/1000,0)","v":0},{"$f":"IFERROR(CD87*INDEX('Emissions factors'!$F$5:$CR$10,MATCH('Data Input - Option 4'!$D123,'Emissions factors'!$C$5:$C$10,0),MATCH('Data Input - Option 4'!CD$7,'Emissions factors'!$F$4:$CR$4,0))/1000,0)","v":0},{"$f":"IFERROR(CE87*INDEX('Emissions factors'!$F$5:$CR$10,MATCH('Data Input - Option 4'!$D123,'Emissions factors'!$C$5:$C$10,0),MATCH('Data Input - Option 4'!CE$7,'Emissions factors'!$F$4:$CR$4,0))/1000,0)","v":0},{"$f":"IFERROR(CF87*INDEX('Emissions factors'!$F$5:$CR$10,MATCH('Data Input - Option 4'!$D123,'Emissions factors'!$C$5:$C$10,0),MATCH('Data Input - Option 4'!CF$7,'Emissions factors'!$F$4:$CR$4,0))/1000,0)","v":0},{"$f":"IFERROR(CG87*INDEX('Emissions factors'!$F$5:$CR$10,MATCH('Data Input - Option 4'!$D123,'Emissions factors'!$C$5:$C$10,0),MATCH('Data Input - Option 4'!CG$7,'Emissions factors'!$F$4:$CR$4,0))/1000,0)","v":0},{"$f":"IFERROR(CH87*INDEX('Emissions factors'!$F$5:$CR$10,MATCH('Data Input - Option 4'!$D123,'Emissions factors'!$C$5:$C$10,0),MATCH('Data Input - Option 4'!CH$7,'Emissions factors'!$F$4:$CR$4,0))/1000,0)","v":0},{"$f":"IFERROR(CI87*INDEX('Emissions factors'!$F$5:$CR$10,MATCH('Data Input - Option 4'!$D123,'Emissions factors'!$C$5:$C$10,0),MATCH('Data Input - Option 4'!CI$7,'Emissions factors'!$F$4:$CR$4,0))/1000,0)","v":0},{"$f":"IFERROR(CJ87*INDEX('Emissions factors'!$F$5:$CR$10,MATCH('Data Input - Option 4'!$D123,'Emissions factors'!$C$5:$C$10,0),MATCH('Data Input - Option 4'!CJ$7,'Emissions factors'!$F$4:$CR$4,0))/1000,0)","v":0},{"$f":"IFERROR(CK87*INDEX('Emissions factors'!$F$5:$CR$10,MATCH('Data Input - Option 4'!$D123,'Emissions factors'!$C$5:$C$10,0),MATCH('Data Input - Option 4'!CK$7,'Emissions factors'!$F$4:$CR$4,0))/1000,0)","v":0},{"$f":"IFERROR(CL87*INDEX('Emissions factors'!$F$5:$CR$10,MATCH('Data Input - Option 4'!$D123,'Emissions factors'!$C$5:$C$10,0),MATCH('Data Input - Option 4'!CL$7,'Emissions factors'!$F$4:$CR$4,0))/1000,0)","v":0},{"$f":"IFERROR(CM87*INDEX('Emissions factors'!$F$5:$CR$10,MATCH('Data Input - Option 4'!$D123,'Emissions factors'!$C$5:$C$10,0),MATCH('Data Input - Option 4'!CM$7,'Emissions factors'!$F$4:$CR$4,0))/1000,0)","v":0},{"$f":"IFERROR(CN87*INDEX('Emissions factors'!$F$5:$CR$10,MATCH('Data Input - Option 4'!$D123,'Emissions factors'!$C$5:$C$10,0),MATCH('Data Input - Option 4'!CN$7,'Emissions factors'!$F$4:$CR$4,0))/1000,0)","v":0},{"$f":"IFERROR(CO87*INDEX('Emissions factors'!$F$5:$CR$10,MATCH('Data Input - Option 4'!$D123,'Emissions factors'!$C$5:$C$10,0),MATCH('Data Input - Option 4'!CO$7,'Emissions factors'!$F$4:$CR$4,0))/1000,0)","v":0},{"$f":"IFERROR(CP87*INDEX('Emissions factors'!$F$5:$CR$10,MATCH('Data Input - Option 4'!$D123,'Emissions factors'!$C$5:$C$10,0),MATCH('Data Input - Option 4'!CP$7,'Emissions factors'!$F$4:$CR$4,0))/1000,0)","v":0},{"$f":"IFERROR(CQ87*INDEX('Emissions factors'!$F$5:$CR$10,MATCH('Data Input - Option 4'!$D123,'Emissions factors'!$C$5:$C$10,0),MATCH('Data Input - Option 4'!CQ$7,'Emissions factors'!$F$4:$CR$4,0))/1000,0)","v":0},{"$f":"IFERROR(CR87*INDEX('Emissions factors'!$F$5:$CR$10,MATCH('Data Input - Option 4'!$D123,'Emissions factors'!$C$5:$C$10,0),MATCH('Data Input - Option 4'!CR$7,'Emissions factors'!$F$4:$CR$4,0))/1000,0)","v":0},{"$f":"IFERROR(CS87*INDEX('Emissions factors'!$F$5:$CR$10,MATCH('Data Input - Option 4'!$D123,'Emissions factors'!$C$5:$C$10,0),MATCH('Data Input - Option 4'!CS$7,'Emissions factors'!$F$4:$CR$4,0))/1000,0)","v":0},{"$f":"IFERROR(CT87*INDEX('Emissions factors'!$F$5:$CR$10,MATCH('Data Input - Option 4'!$D123,'Emissions factors'!$C$5:$C$10,0),MATCH('Data Input - Option 4'!CT$7,'Emissions factors'!$F$4:$CR$4,0))/1000,0)","v":0},{"$f":"IFERROR(CU87*INDEX('Emissions factors'!$F$5:$CR$10,MATCH('Data Input - Option 4'!$D123,'Emissions factors'!$C$5:$C$10,0),MATCH('Data Input - Option 4'!CU$7,'Emissions factors'!$F$4:$CR$4,0))/1000,0)","v":0},{"$f":"IFERROR(CV87*INDEX('Emissions factors'!$F$5:$CR$10,MATCH('Data Input - Option 4'!$D123,'Emissions factors'!$C$5:$C$10,0),MATCH('Data Input - Option 4'!CV$7,'Emissions factors'!$F$4:$CR$4,0))/1000,0)","v":0},{"$f":"IFERROR(CW87*INDEX('Emissions factors'!$F$5:$CR$10,MATCH('Data Input - Option 4'!$D123,'Emissions factors'!$C$5:$C$10,0),MATCH('Data Input - Option 4'!CW$7,'Emissions factors'!$F$4:$CR$4,0))/1000,0)","v":0},{"$f":"IFERROR(CX87*INDEX('Emissions factors'!$F$5:$CR$10,MATCH('Data Input - Option 4'!$D123,'Emissions factors'!$C$5:$C$10,0),MATCH('Data Input - Option 4'!CX$7,'Emissions factors'!$F$4:$CR$4,0))/1000,0)","v":0},{"$f":"IFERROR(CY87*INDEX('Emissions factors'!$F$5:$CR$10,MATCH('Data Input - Option 4'!$D123,'Emissions factors'!$C$5:$C$10,0),MATCH('Data Input - Option 4'!CY$7,'Emissions factors'!$F$4:$CR$4,0))/1000,0)","v":0},{"$f":"IFERROR(CZ87*INDEX('Emissions factors'!$F$5:$CR$10,MATCH('Data Input - Option 4'!$D123,'Emissions factors'!$C$5:$C$10,0),MATCH('Data Input - Option 4'!CZ$7,'Emissions factors'!$F$4:$CR$4,0))/1000,0)","v":0},{"$f":"IFERROR(DA87*INDEX('Emissions factors'!$F$5:$CR$10,MATCH('Data Input - Option 4'!$D123,'Emissions factors'!$C$5:$C$10,0),MATCH('Data Input - Option 4'!DA$7,'Emissions factors'!$F$4:$CR$4,0))/1000,0)","v":0},{"$f":"IFERROR(DB87*INDEX('Emissions factors'!$F$5:$CR$10,MATCH('Data Input - Option 4'!$D123,'Emissions factors'!$C$5:$C$10,0),MATCH('Data Input - Option 4'!DB$7,'Emissions factors'!$F$4:$CR$4,0))/1000,0)","v":0},{"$f":"IFERROR(DC87*INDEX('Emissions factors'!$F$5:$CR$10,MATCH('Data Input - Option 4'!$D123,'Emissions factors'!$C$5:$C$10,0),MATCH('Data Input - Option 4'!DC$7,'Emissions factors'!$F$4:$CR$4,0))/1000,0)","v":0}]
[null,null,null,"Road - Petrol","tCO2e","(Auto calculated value)",null,{"$f":"IFERROR(H88*INDEX('Emissions factors'!$F$5:$CR$10,MATCH('Data Input - Option 4'!$D124,'Emissions factors'!$C$5:$C$10,0),MATCH('Data Input - Option 4'!H$7,'Emissions factors'!$F$4:$CR$4,0))/1000,0)","v":0},{"$f":"IFERROR(I88*INDEX('Emissions factors'!$F$5:$CR$10,MATCH('Data Input - Option 4'!$D124,'Emissions factors'!$C$5:$C$10,0),MATCH('Data Input - Option 4'!I$7,'Emissions factors'!$F$4:$CR$4,0))/1000,0)","v":0},{"$f":"IFERROR(J88*INDEX('Emissions factors'!$F$5:$CR$10,MATCH('Data Input - Option 4'!$D124,'Emissions factors'!$C$5:$C$10,0),MATCH('Data Input - Option 4'!J$7,'Emissions factors'!$F$4:$CR$4,0))/1000,0)","v":0},{"$f":"IFERROR(K88*INDEX('Emissions factors'!$F$5:$CR$10,MATCH('Data Input - Option 4'!$D124,'Emissions factors'!$C$5:$C$10,0),MATCH('Data Input - Option 4'!K$7,'Emissions factors'!$F$4:$CR$4,0))/1000,0)","v":0},{"$f":"IFERROR(L88*INDEX('Emissions factors'!$F$5:$CR$10,MATCH('Data Input - Option 4'!$D124,'Emissions factors'!$C$5:$C$10,0),MATCH('Data Input - Option 4'!L$7,'Emissions factors'!$F$4:$CR$4,0))/1000,0)","v":0},{"$f":"IFERROR(M88*INDEX('Emissions factors'!$F$5:$CR$10,MATCH('Data Input - Option 4'!$D124,'Emissions factors'!$C$5:$C$10,0),MATCH('Data Input - Option 4'!M$7,'Emissions factors'!$F$4:$CR$4,0))/1000,0)","v":0},{"$f":"IFERROR(N88*INDEX('Emissions factors'!$F$5:$CR$10,MATCH('Data Input - Option 4'!$D124,'Emissions factors'!$C$5:$C$10,0),MATCH('Data Input - Option 4'!N$7,'Emissions factors'!$F$4:$CR$4,0))/1000,0)","v":0},{"$f":"IFERROR(O88*INDEX('Emissions factors'!$F$5:$CR$10,MATCH('Data Input - Option 4'!$D124,'Emissions factors'!$C$5:$C$10,0),MATCH('Data Input - Option 4'!O$7,'Emissions factors'!$F$4:$CR$4,0))/1000,0)","v":0},{"$f":"IFERROR(P88*INDEX('Emissions factors'!$F$5:$CR$10,MATCH('Data Input - Option 4'!$D124,'Emissions factors'!$C$5:$C$10,0),MATCH('Data Input - Option 4'!P$7,'Emissions factors'!$F$4:$CR$4,0))/1000,0)","v":0},{"$f":"IFERROR(Q88*INDEX('Emissions factors'!$F$5:$CR$10,MATCH('Data Input - Option 4'!$D124,'Emissions factors'!$C$5:$C$10,0),MATCH('Data Input - Option 4'!Q$7,'Emissions factors'!$F$4:$CR$4,0))/1000,0)","v":0},{"$f":"IFERROR(R88*INDEX('Emissions factors'!$F$5:$CR$10,MATCH('Data Input - Option 4'!$D124,'Emissions factors'!$C$5:$C$10,0),MATCH('Data Input - Option 4'!R$7,'Emissions factors'!$F$4:$CR$4,0))/1000,0)","v":0},{"$f":"IFERROR(S88*INDEX('Emissions factors'!$F$5:$CR$10,MATCH('Data Input - Option 4'!$D124,'Emissions factors'!$C$5:$C$10,0),MATCH('Data Input - Option 4'!S$7,'Emissions factors'!$F$4:$CR$4,0))/1000,0)","v":0},{"$f":"IFERROR(T88*INDEX('Emissions factors'!$F$5:$CR$10,MATCH('Data Input - Option 4'!$D124,'Emissions factors'!$C$5:$C$10,0),MATCH('Data Input - Option 4'!T$7,'Emissions factors'!$F$4:$CR$4,0))/1000,0)","v":0},{"$f":"IFERROR(U88*INDEX('Emissions factors'!$F$5:$CR$10,MATCH('Data Input - Option 4'!$D124,'Emissions factors'!$C$5:$C$10,0),MATCH('Data Input - Option 4'!U$7,'Emissions factors'!$F$4:$CR$4,0))/1000,0)","v":0},{"$f":"IFERROR(V88*INDEX('Emissions factors'!$F$5:$CR$10,MATCH('Data Input - Option 4'!$D124,'Emissions factors'!$C$5:$C$10,0),MATCH('Data Input - Option 4'!V$7,'Emissions factors'!$F$4:$CR$4,0))/1000,0)","v":0},{"$f":"IFERROR(W88*INDEX('Emissions factors'!$F$5:$CR$10,MATCH('Data Input - Option 4'!$D124,'Emissions factors'!$C$5:$C$10,0),MATCH('Data Input - Option 4'!W$7,'Emissions factors'!$F$4:$CR$4,0))/1000,0)","v":0},{"$f":"IFERROR(X88*INDEX('Emissions factors'!$F$5:$CR$10,MATCH('Data Input - Option 4'!$D124,'Emissions factors'!$C$5:$C$10,0),MATCH('Data Input - Option 4'!X$7,'Emissions factors'!$F$4:$CR$4,0))/1000,0)","v":0},{"$f":"IFERROR(Y88*INDEX('Emissions factors'!$F$5:$CR$10,MATCH('Data Input - Option 4'!$D124,'Emissions factors'!$C$5:$C$10,0),MATCH('Data Input - Option 4'!Y$7,'Emissions factors'!$F$4:$CR$4,0))/1000,0)","v":0},{"$f":"IFERROR(Z88*INDEX('Emissions factors'!$F$5:$CR$10,MATCH('Data Input - Option 4'!$D124,'Emissions factors'!$C$5:$C$10,0),MATCH('Data Input - Option 4'!Z$7,'Emissions factors'!$F$4:$CR$4,0))/1000,0)","v":0},{"$f":"IFERROR(AA88*INDEX('Emissions factors'!$F$5:$CR$10,MATCH('Data Input - Option 4'!$D124,'Emissions factors'!$C$5:$C$10,0),MATCH('Data Input - Option 4'!AA$7,'Emissions factors'!$F$4:$CR$4,0))/1000,0)","v":0},{"$f":"IFERROR(AB88*INDEX('Emissions factors'!$F$5:$CR$10,MATCH('Data Input - Option 4'!$D124,'Emissions factors'!$C$5:$C$10,0),MATCH('Data Input - Option 4'!AB$7,'Emissions factors'!$F$4:$CR$4,0))/1000,0)","v":0},{"$f":"IFERROR(AC88*INDEX('Emissions factors'!$F$5:$CR$10,MATCH('Data Input - Option 4'!$D124,'Emissions factors'!$C$5:$C$10,0),MATCH('Data Input - Option 4'!AC$7,'Emissions factors'!$F$4:$CR$4,0))/1000,0)","v":0},{"$f":"IFERROR(AD88*INDEX('Emissions factors'!$F$5:$CR$10,MATCH('Data Input - Option 4'!$D124,'Emissions factors'!$C$5:$C$10,0),MATCH('Data Input - Option 4'!AD$7,'Emissions factors'!$F$4:$CR$4,0))/1000,0)","v":0},{"$f":"IFERROR(AE88*INDEX('Emissions factors'!$F$5:$CR$10,MATCH('Data Input - Option 4'!$D124,'Emissions factors'!$C$5:$C$10,0),MATCH('Data Input - Option 4'!AE$7,'Emissions factors'!$F$4:$CR$4,0))/1000,0)","v":0},{"$f":"IFERROR(AF88*INDEX('Emissions factors'!$F$5:$CR$10,MATCH('Data Input - Option 4'!$D124,'Emissions factors'!$C$5:$C$10,0),MATCH('Data Input - Option 4'!AF$7,'Emissions factors'!$F$4:$CR$4,0))/1000,0)","v":0},{"$f":"IFERROR(AG88*INDEX('Emissions factors'!$F$5:$CR$10,MATCH('Data Input - Option 4'!$D124,'Emissions factors'!$C$5:$C$10,0),MATCH('Data Input - Option 4'!AG$7,'Emissions factors'!$F$4:$CR$4,0))/1000,0)","v":0},{"$f":"IFERROR(AH88*INDEX('Emissions factors'!$F$5:$CR$10,MATCH('Data Input - Option 4'!$D124,'Emissions factors'!$C$5:$C$10,0),MATCH('Data Input - Option 4'!AH$7,'Emissions factors'!$F$4:$CR$4,0))/1000,0)","v":0},{"$f":"IFERROR(AI88*INDEX('Emissions factors'!$F$5:$CR$10,MATCH('Data Input - Option 4'!$D124,'Emissions factors'!$C$5:$C$10,0),MATCH('Data Input - Option 4'!AI$7,'Emissions factors'!$F$4:$CR$4,0))/1000,0)","v":0},{"$f":"IFERROR(AJ88*INDEX('Emissions factors'!$F$5:$CR$10,MATCH('Data Input - Option 4'!$D124,'Emissions factors'!$C$5:$C$10,0),MATCH('Data Input - Option 4'!AJ$7,'Emissions factors'!$F$4:$CR$4,0))/1000,0)","v":0},{"$f":"IFERROR(AK88*INDEX('Emissions factors'!$F$5:$CR$10,MATCH('Data Input - Option 4'!$D124,'Emissions factors'!$C$5:$C$10,0),MATCH('Data Input - Option 4'!AK$7,'Emissions factors'!$F$4:$CR$4,0))/1000,0)","v":0},{"$f":"IFERROR(AL88*INDEX('Emissions factors'!$F$5:$CR$10,MATCH('Data Input - Option 4'!$D124,'Emissions factors'!$C$5:$C$10,0),MATCH('Data Input - Option 4'!AL$7,'Emissions factors'!$F$4:$CR$4,0))/1000,0)","v":0},{"$f":"IFERROR(AM88*INDEX('Emissions factors'!$F$5:$CR$10,MATCH('Data Input - Option 4'!$D124,'Emissions factors'!$C$5:$C$10,0),MATCH('Data Input - Option 4'!AM$7,'Emissions factors'!$F$4:$CR$4,0))/1000,0)","v":0},{"$f":"IFERROR(AN88*INDEX('Emissions factors'!$F$5:$CR$10,MATCH('Data Input - Option 4'!$D124,'Emissions factors'!$C$5:$C$10,0),MATCH('Data Input - Option 4'!AN$7,'Emissions factors'!$F$4:$CR$4,0))/1000,0)","v":0},{"$f":"IFERROR(AO88*INDEX('Emissions factors'!$F$5:$CR$10,MATCH('Data Input - Option 4'!$D124,'Emissions factors'!$C$5:$C$10,0),MATCH('Data Input - Option 4'!AO$7,'Emissions factors'!$F$4:$CR$4,0))/1000,0)","v":0},{"$f":"IFERROR(AP88*INDEX('Emissions factors'!$F$5:$CR$10,MATCH('Data Input - Option 4'!$D124,'Emissions factors'!$C$5:$C$10,0),MATCH('Data Input - Option 4'!AP$7,'Emissions factors'!$F$4:$CR$4,0))/1000,0)","v":0},{"$f":"IFERROR(AQ88*INDEX('Emissions factors'!$F$5:$CR$10,MATCH('Data Input - Option 4'!$D124,'Emissions factors'!$C$5:$C$10,0),MATCH('Data Input - Option 4'!AQ$7,'Emissions factors'!$F$4:$CR$4,0))/1000,0)","v":0},{"$f":"IFERROR(AR88*INDEX('Emissions factors'!$F$5:$CR$10,MATCH('Data Input - Option 4'!$D124,'Emissions factors'!$C$5:$C$10,0),MATCH('Data Input - Option 4'!AR$7,'Emissions factors'!$F$4:$CR$4,0))/1000,0)","v":0},{"$f":"IFERROR(AS88*INDEX('Emissions factors'!$F$5:$CR$10,MATCH('Data Input - Option 4'!$D124,'Emissions factors'!$C$5:$C$10,0),MATCH('Data Input - Option 4'!AS$7,'Emissions factors'!$F$4:$CR$4,0))/1000,0)","v":0},{"$f":"IFERROR(AT88*INDEX('Emissions factors'!$F$5:$CR$10,MATCH('Data Input - Option 4'!$D124,'Emissions factors'!$C$5:$C$10,0),MATCH('Data Input - Option 4'!AT$7,'Emissions factors'!$F$4:$CR$4,0))/1000,0)","v":0},{"$f":"IFERROR(AU88*INDEX('Emissions factors'!$F$5:$CR$10,MATCH('Data Input - Option 4'!$D124,'Emissions factors'!$C$5:$C$10,0),MATCH('Data Input - Option 4'!AU$7,'Emissions factors'!$F$4:$CR$4,0))/1000,0)","v":0},{"$f":"IFERROR(AV88*INDEX('Emissions factors'!$F$5:$CR$10,MATCH('Data Input - Option 4'!$D124,'Emissions factors'!$C$5:$C$10,0),MATCH('Data Input - Option 4'!AV$7,'Emissions factors'!$F$4:$CR$4,0))/1000,0)","v":0},{"$f":"IFERROR(AW88*INDEX('Emissions factors'!$F$5:$CR$10,MATCH('Data Input - Option 4'!$D124,'Emissions factors'!$C$5:$C$10,0),MATCH('Data Input - Option 4'!AW$7,'Emissions factors'!$F$4:$CR$4,0))/1000,0)","v":0},{"$f":"IFERROR(AX88*INDEX('Emissions factors'!$F$5:$CR$10,MATCH('Data Input - Option 4'!$D124,'Emissions factors'!$C$5:$C$10,0),MATCH('Data Input - Option 4'!AX$7,'Emissions factors'!$F$4:$CR$4,0))/1000,0)","v":0},{"$f":"IFERROR(AY88*INDEX('Emissions factors'!$F$5:$CR$10,MATCH('Data Input - Option 4'!$D124,'Emissions factors'!$C$5:$C$10,0),MATCH('Data Input - Option 4'!AY$7,'Emissions factors'!$F$4:$CR$4,0))/1000,0)","v":0},{"$f":"IFERROR(AZ88*INDEX('Emissions factors'!$F$5:$CR$10,MATCH('Data Input - Option 4'!$D124,'Emissions factors'!$C$5:$C$10,0),MATCH('Data Input - Option 4'!AZ$7,'Emissions factors'!$F$4:$CR$4,0))/1000,0)","v":0},{"$f":"IFERROR(BA88*INDEX('Emissions factors'!$F$5:$CR$10,MATCH('Data Input - Option 4'!$D124,'Emissions factors'!$C$5:$C$10,0),MATCH('Data Input - Option 4'!BA$7,'Emissions factors'!$F$4:$CR$4,0))/1000,0)","v":0},{"$f":"IFERROR(BB88*INDEX('Emissions factors'!$F$5:$CR$10,MATCH('Data Input - Option 4'!$D124,'Emissions factors'!$C$5:$C$10,0),MATCH('Data Input - Option 4'!BB$7,'Emissions factors'!$F$4:$CR$4,0))/1000,0)","v":0},{"$f":"IFERROR(BC88*INDEX('Emissions factors'!$F$5:$CR$10,MATCH('Data Input - Option 4'!$D124,'Emissions factors'!$C$5:$C$10,0),MATCH('Data Input - Option 4'!BC$7,'Emissions factors'!$F$4:$CR$4,0))/1000,0)","v":0},{"$f":"IFERROR(BD88*INDEX('Emissions factors'!$F$5:$CR$10,MATCH('Data Input - Option 4'!$D124,'Emissions factors'!$C$5:$C$10,0),MATCH('Data Input - Option 4'!BD$7,'Emissions factors'!$F$4:$CR$4,0))/1000,0)","v":0},{"$f":"IFERROR(BE88*INDEX('Emissions factors'!$F$5:$CR$10,MATCH('Data Input - Option 4'!$D124,'Emissions factors'!$C$5:$C$10,0),MATCH('Data Input - Option 4'!BE$7,'Emissions factors'!$F$4:$CR$4,0))/1000,0)","v":0},{"$f":"IFERROR(BF88*INDEX('Emissions factors'!$F$5:$CR$10,MATCH('Data Input - Option 4'!$D124,'Emissions factors'!$C$5:$C$10,0),MATCH('Data Input - Option 4'!BF$7,'Emissions factors'!$F$4:$CR$4,0))/1000,0)","v":0},{"$f":"IFERROR(BG88*INDEX('Emissions factors'!$F$5:$CR$10,MATCH('Data Input - Option 4'!$D124,'Emissions factors'!$C$5:$C$10,0),MATCH('Data Input - Option 4'!BG$7,'Emissions factors'!$F$4:$CR$4,0))/1000,0)","v":0},{"$f":"IFERROR(BH88*INDEX('Emissions factors'!$F$5:$CR$10,MATCH('Data Input - Option 4'!$D124,'Emissions factors'!$C$5:$C$10,0),MATCH('Data Input - Option 4'!BH$7,'Emissions factors'!$F$4:$CR$4,0))/1000,0)","v":0},{"$f":"IFERROR(BI88*INDEX('Emissions factors'!$F$5:$CR$10,MATCH('Data Input - Option 4'!$D124,'Emissions factors'!$C$5:$C$10,0),MATCH('Data Input - Option 4'!BI$7,'Emissions factors'!$F$4:$CR$4,0))/1000,0)","v":0},{"$f":"IFERROR(BJ88*INDEX('Emissions factors'!$F$5:$CR$10,MATCH('Data Input - Option 4'!$D124,'Emissions factors'!$C$5:$C$10,0),MATCH('Data Input - Option 4'!BJ$7,'Emissions factors'!$F$4:$CR$4,0))/1000,0)","v":0},{"$f":"IFERROR(BK88*INDEX('Emissions factors'!$F$5:$CR$10,MATCH('Data Input - Option 4'!$D124,'Emissions factors'!$C$5:$C$10,0),MATCH('Data Input - Option 4'!BK$7,'Emissions factors'!$F$4:$CR$4,0))/1000,0)","v":0},{"$f":"IFERROR(BL88*INDEX('Emissions factors'!$F$5:$CR$10,MATCH('Data Input - Option 4'!$D124,'Emissions factors'!$C$5:$C$10,0),MATCH('Data Input - Option 4'!BL$7,'Emissions factors'!$F$4:$CR$4,0))/1000,0)","v":0},{"$f":"IFERROR(BM88*INDEX('Emissions factors'!$F$5:$CR$10,MATCH('Data Input - Option 4'!$D124,'Emissions factors'!$C$5:$C$10,0),MATCH('Data Input - Option 4'!BM$7,'Emissions factors'!$F$4:$CR$4,0))/1000,0)","v":0},{"$f":"IFERROR(BN88*INDEX('Emissions factors'!$F$5:$CR$10,MATCH('Data Input - Option 4'!$D124,'Emissions factors'!$C$5:$C$10,0),MATCH('Data Input - Option 4'!BN$7,'Emissions factors'!$F$4:$CR$4,0))/1000,0)","v":0},{"$f":"IFERROR(BO88*INDEX('Emissions factors'!$F$5:$CR$10,MATCH('Data Input - Option 4'!$D124,'Emissions factors'!$C$5:$C$10,0),MATCH('Data Input - Option 4'!BO$7,'Emissions factors'!$F$4:$CR$4,0))/1000,0)","v":0},{"$f":"IFERROR(BP88*INDEX('Emissions factors'!$F$5:$CR$10,MATCH('Data Input - Option 4'!$D124,'Emissions factors'!$C$5:$C$10,0),MATCH('Data Input - Option 4'!BP$7,'Emissions factors'!$F$4:$CR$4,0))/1000,0)","v":0},{"$f":"IFERROR(BQ88*INDEX('Emissions factors'!$F$5:$CR$10,MATCH('Data Input - Option 4'!$D124,'Emissions factors'!$C$5:$C$10,0),MATCH('Data Input - Option 4'!BQ$7,'Emissions factors'!$F$4:$CR$4,0))/1000,0)","v":0},{"$f":"IFERROR(BR88*INDEX('Emissions factors'!$F$5:$CR$10,MATCH('Data Input - Option 4'!$D124,'Emissions factors'!$C$5:$C$10,0),MATCH('Data Input - Option 4'!BR$7,'Emissions factors'!$F$4:$CR$4,0))/1000,0)","v":0},{"$f":"IFERROR(BS88*INDEX('Emissions factors'!$F$5:$CR$10,MATCH('Data Input - Option 4'!$D124,'Emissions factors'!$C$5:$C$10,0),MATCH('Data Input - Option 4'!BS$7,'Emissions factors'!$F$4:$CR$4,0))/1000,0)","v":0},{"$f":"IFERROR(BT88*INDEX('Emissions factors'!$F$5:$CR$10,MATCH('Data Input - Option 4'!$D124,'Emissions factors'!$C$5:$C$10,0),MATCH('Data Input - Option 4'!BT$7,'Emissions factors'!$F$4:$CR$4,0))/1000,0)","v":0},{"$f":"IFERROR(BU88*INDEX('Emissions factors'!$F$5:$CR$10,MATCH('Data Input - Option 4'!$D124,'Emissions factors'!$C$5:$C$10,0),MATCH('Data Input - Option 4'!BU$7,'Emissions factors'!$F$4:$CR$4,0))/1000,0)","v":0},{"$f":"IFERROR(BV88*INDEX('Emissions factors'!$F$5:$CR$10,MATCH('Data Input - Option 4'!$D124,'Emissions factors'!$C$5:$C$10,0),MATCH('Data Input - Option 4'!BV$7,'Emissions factors'!$F$4:$CR$4,0))/1000,0)","v":0},{"$f":"IFERROR(BW88*INDEX('Emissions factors'!$F$5:$CR$10,MATCH('Data Input - Option 4'!$D124,'Emissions factors'!$C$5:$C$10,0),MATCH('Data Input - Option 4'!BW$7,'Emissions factors'!$F$4:$CR$4,0))/1000,0)","v":0},{"$f":"IFERROR(BX88*INDEX('Emissions factors'!$F$5:$CR$10,MATCH('Data Input - Option 4'!$D124,'Emissions factors'!$C$5:$C$10,0),MATCH('Data Input - Option 4'!BX$7,'Emissions factors'!$F$4:$CR$4,0))/1000,0)","v":0},{"$f":"IFERROR(BY88*INDEX('Emissions factors'!$F$5:$CR$10,MATCH('Data Input - Option 4'!$D124,'Emissions factors'!$C$5:$C$10,0),MATCH('Data Input - Option 4'!BY$7,'Emissions factors'!$F$4:$CR$4,0))/1000,0)","v":0},{"$f":"IFERROR(BZ88*INDEX('Emissions factors'!$F$5:$CR$10,MATCH('Data Input - Option 4'!$D124,'Emissions factors'!$C$5:$C$10,0),MATCH('Data Input - Option 4'!BZ$7,'Emissions factors'!$F$4:$CR$4,0))/1000,0)","v":0},{"$f":"IFERROR(CA88*INDEX('Emissions factors'!$F$5:$CR$10,MATCH('Data Input - Option 4'!$D124,'Emissions factors'!$C$5:$C$10,0),MATCH('Data Input - Option 4'!CA$7,'Emissions factors'!$F$4:$CR$4,0))/1000,0)","v":0},{"$f":"IFERROR(CB88*INDEX('Emissions factors'!$F$5:$CR$10,MATCH('Data Input - Option 4'!$D124,'Emissions factors'!$C$5:$C$10,0),MATCH('Data Input - Option 4'!CB$7,'Emissions factors'!$F$4:$CR$4,0))/1000,0)","v":0},{"$f":"IFERROR(CC88*INDEX('Emissions factors'!$F$5:$CR$10,MATCH('Data Input - Option 4'!$D124,'Emissions factors'!$C$5:$C$10,0),MATCH('Data Input - Option 4'!CC$7,'Emissions factors'!$F$4:$CR$4,0))/1000,0)","v":0},{"$f":"IFERROR(CD88*INDEX('Emissions factors'!$F$5:$CR$10,MATCH('Data Input - Option 4'!$D124,'Emissions factors'!$C$5:$C$10,0),MATCH('Data Input - Option 4'!CD$7,'Emissions factors'!$F$4:$CR$4,0))/1000,0)","v":0},{"$f":"IFERROR(CE88*INDEX('Emissions factors'!$F$5:$CR$10,MATCH('Data Input - Option 4'!$D124,'Emissions factors'!$C$5:$C$10,0),MATCH('Data Input - Option 4'!CE$7,'Emissions factors'!$F$4:$CR$4,0))/1000,0)","v":0},{"$f":"IFERROR(CF88*INDEX('Emissions factors'!$F$5:$CR$10,MATCH('Data Input - Option 4'!$D124,'Emissions factors'!$C$5:$C$10,0),MATCH('Data Input - Option 4'!CF$7,'Emissions factors'!$F$4:$CR$4,0))/1000,0)","v":0},{"$f":"IFERROR(CG88*INDEX('Emissions factors'!$F$5:$CR$10,MATCH('Data Input - Option 4'!$D124,'Emissions factors'!$C$5:$C$10,0),MATCH('Data Input - Option 4'!CG$7,'Emissions factors'!$F$4:$CR$4,0))/1000,0)","v":0},{"$f":"IFERROR(CH88*INDEX('Emissions factors'!$F$5:$CR$10,MATCH('Data Input - Option 4'!$D124,'Emissions factors'!$C$5:$C$10,0),MATCH('Data Input - Option 4'!CH$7,'Emissions factors'!$F$4:$CR$4,0))/1000,0)","v":0},{"$f":"IFERROR(CI88*INDEX('Emissions factors'!$F$5:$CR$10,MATCH('Data Input - Option 4'!$D124,'Emissions factors'!$C$5:$C$10,0),MATCH('Data Input - Option 4'!CI$7,'Emissions factors'!$F$4:$CR$4,0))/1000,0)","v":0},{"$f":"IFERROR(CJ88*INDEX('Emissions factors'!$F$5:$CR$10,MATCH('Data Input - Option 4'!$D124,'Emissions factors'!$C$5:$C$10,0),MATCH('Data Input - Option 4'!CJ$7,'Emissions factors'!$F$4:$CR$4,0))/1000,0)","v":0},{"$f":"IFERROR(CK88*INDEX('Emissions factors'!$F$5:$CR$10,MATCH('Data Input - Option 4'!$D124,'Emissions factors'!$C$5:$C$10,0),MATCH('Data Input - Option 4'!CK$7,'Emissions factors'!$F$4:$CR$4,0))/1000,0)","v":0},{"$f":"IFERROR(CL88*INDEX('Emissions factors'!$F$5:$CR$10,MATCH('Data Input - Option 4'!$D124,'Emissions factors'!$C$5:$C$10,0),MATCH('Data Input - Option 4'!CL$7,'Emissions factors'!$F$4:$CR$4,0))/1000,0)","v":0},{"$f":"IFERROR(CM88*INDEX('Emissions factors'!$F$5:$CR$10,MATCH('Data Input - Option 4'!$D124,'Emissions factors'!$C$5:$C$10,0),MATCH('Data Input - Option 4'!CM$7,'Emissions factors'!$F$4:$CR$4,0))/1000,0)","v":0},{"$f":"IFERROR(CN88*INDEX('Emissions factors'!$F$5:$CR$10,MATCH('Data Input - Option 4'!$D124,'Emissions factors'!$C$5:$C$10,0),MATCH('Data Input - Option 4'!CN$7,'Emissions factors'!$F$4:$CR$4,0))/1000,0)","v":0},{"$f":"IFERROR(CO88*INDEX('Emissions factors'!$F$5:$CR$10,MATCH('Data Input - Option 4'!$D124,'Emissions factors'!$C$5:$C$10,0),MATCH('Data Input - Option 4'!CO$7,'Emissions factors'!$F$4:$CR$4,0))/1000,0)","v":0},{"$f":"IFERROR(CP88*INDEX('Emissions factors'!$F$5:$CR$10,MATCH('Data Input - Option 4'!$D124,'Emissions factors'!$C$5:$C$10,0),MATCH('Data Input - Option 4'!CP$7,'Emissions factors'!$F$4:$CR$4,0))/1000,0)","v":0},{"$f":"IFERROR(CQ88*INDEX('Emissions factors'!$F$5:$CR$10,MATCH('Data Input - Option 4'!$D124,'Emissions factors'!$C$5:$C$10,0),MATCH('Data Input - Option 4'!CQ$7,'Emissions factors'!$F$4:$CR$4,0))/1000,0)","v":0},{"$f":"IFERROR(CR88*INDEX('Emissions factors'!$F$5:$CR$10,MATCH('Data Input - Option 4'!$D124,'Emissions factors'!$C$5:$C$10,0),MATCH('Data Input - Option 4'!CR$7,'Emissions factors'!$F$4:$CR$4,0))/1000,0)","v":0},{"$f":"IFERROR(CS88*INDEX('Emissions factors'!$F$5:$CR$10,MATCH('Data Input - Option 4'!$D124,'Emissions factors'!$C$5:$C$10,0),MATCH('Data Input - Option 4'!CS$7,'Emissions factors'!$F$4:$CR$4,0))/1000,0)","v":0},{"$f":"IFERROR(CT88*INDEX('Emissions factors'!$F$5:$CR$10,MATCH('Data Input - Option 4'!$D124,'Emissions factors'!$C$5:$C$10,0),MATCH('Data Input - Option 4'!CT$7,'Emissions factors'!$F$4:$CR$4,0))/1000,0)","v":0},{"$f":"IFERROR(CU88*INDEX('Emissions factors'!$F$5:$CR$10,MATCH('Data Input - Option 4'!$D124,'Emissions factors'!$C$5:$C$10,0),MATCH('Data Input - Option 4'!CU$7,'Emissions factors'!$F$4:$CR$4,0))/1000,0)","v":0},{"$f":"IFERROR(CV88*INDEX('Emissions factors'!$F$5:$CR$10,MATCH('Data Input - Option 4'!$D124,'Emissions factors'!$C$5:$C$10,0),MATCH('Data Input - Option 4'!CV$7,'Emissions factors'!$F$4:$CR$4,0))/1000,0)","v":0},{"$f":"IFERROR(CW88*INDEX('Emissions factors'!$F$5:$CR$10,MATCH('Data Input - Option 4'!$D124,'Emissions factors'!$C$5:$C$10,0),MATCH('Data Input - Option 4'!CW$7,'Emissions factors'!$F$4:$CR$4,0))/1000,0)","v":0},{"$f":"IFERROR(CX88*INDEX('Emissions factors'!$F$5:$CR$10,MATCH('Data Input - Option 4'!$D124,'Emissions factors'!$C$5:$C$10,0),MATCH('Data Input - Option 4'!CX$7,'Emissions factors'!$F$4:$CR$4,0))/1000,0)","v":0},{"$f":"IFERROR(CY88*INDEX('Emissions factors'!$F$5:$CR$10,MATCH('Data Input - Option 4'!$D124,'Emissions factors'!$C$5:$C$10,0),MATCH('Data Input - Option 4'!CY$7,'Emissions factors'!$F$4:$CR$4,0))/1000,0)","v":0},{"$f":"IFERROR(CZ88*INDEX('Emissions factors'!$F$5:$CR$10,MATCH('Data Input - Option 4'!$D124,'Emissions factors'!$C$5:$C$10,0),MATCH('Data Input - Option 4'!CZ$7,'Emissions factors'!$F$4:$CR$4,0))/1000,0)","v":0},{"$f":"IFERROR(DA88*INDEX('Emissions factors'!$F$5:$CR$10,MATCH('Data Input - Option 4'!$D124,'Emissions factors'!$C$5:$C$10,0),MATCH('Data Input - Option 4'!DA$7,'Emissions factors'!$F$4:$CR$4,0))/1000,0)","v":0},{"$f":"IFERROR(DB88*INDEX('Emissions factors'!$F$5:$CR$10,MATCH('Data Input - Option 4'!$D124,'Emissions factors'!$C$5:$C$10,0),MATCH('Data Input - Option 4'!DB$7,'Emissions factors'!$F$4:$CR$4,0))/1000,0)","v":0},{"$f":"IFERROR(DC88*INDEX('Emissions factors'!$F$5:$CR$10,MATCH('Data Input - Option 4'!$D124,'Emissions factors'!$C$5:$C$10,0),MATCH('Data Input - Option 4'!DC$7,'Emissions factors'!$F$4:$CR$4,0))/1000,0)","v":0}]
[null,null,null,"Road - Diesel","tCO2e","(Auto calculated value)",null,{"$f":"IFERROR(H89*INDEX('Emissions factors'!$F$5:$CR$10,MATCH('Data Input - Option 4'!$D125,'Emissions factors'!$C$5:$C$10,0),MATCH('Data Input - Option 4'!H$7,'Emissions factors'!$F$4:$CR$4,0))/1000,0)","v":0},{"$f":"IFERROR(I89*INDEX('Emissions factors'!$F$5:$CR$10,MATCH('Data Input - Option 4'!$D125,'Emissions factors'!$C$5:$C$10,0),MATCH('Data Input - Option 4'!I$7,'Emissions factors'!$F$4:$CR$4,0))/1000,0)","v":0},{"$f":"IFERROR(J89*INDEX('Emissions factors'!$F$5:$CR$10,MATCH('Data Input - Option 4'!$D125,'Emissions factors'!$C$5:$C$10,0),MATCH('Data Input - Option 4'!J$7,'Emissions factors'!$F$4:$CR$4,0))/1000,0)","v":0},{"$f":"IFERROR(K89*INDEX('Emissions factors'!$F$5:$CR$10,MATCH('Data Input - Option 4'!$D125,'Emissions factors'!$C$5:$C$10,0),MATCH('Data Input - Option 4'!K$7,'Emissions factors'!$F$4:$CR$4,0))/1000,0)","v":0},{"$f":"IFERROR(L89*INDEX('Emissions factors'!$F$5:$CR$10,MATCH('Data Input - Option 4'!$D125,'Emissions factors'!$C$5:$C$10,0),MATCH('Data Input - Option 4'!L$7,'Emissions factors'!$F$4:$CR$4,0))/1000,0)","v":0},{"$f":"IFERROR(M89*INDEX('Emissions factors'!$F$5:$CR$10,MATCH('Data Input - Option 4'!$D125,'Emissions factors'!$C$5:$C$10,0),MATCH('Data Input - Option 4'!M$7,'Emissions factors'!$F$4:$CR$4,0))/1000,0)","v":0},{"$f":"IFERROR(N89*INDEX('Emissions factors'!$F$5:$CR$10,MATCH('Data Input - Option 4'!$D125,'Emissions factors'!$C$5:$C$10,0),MATCH('Data Input - Option 4'!N$7,'Emissions factors'!$F$4:$CR$4,0))/1000,0)","v":0},{"$f":"IFERROR(O89*INDEX('Emissions factors'!$F$5:$CR$10,MATCH('Data Input - Option 4'!$D125,'Emissions factors'!$C$5:$C$10,0),MATCH('Data Input - Option 4'!O$7,'Emissions factors'!$F$4:$CR$4,0))/1000,0)","v":0},{"$f":"IFERROR(P89*INDEX('Emissions factors'!$F$5:$CR$10,MATCH('Data Input - Option 4'!$D125,'Emissions factors'!$C$5:$C$10,0),MATCH('Data Input - Option 4'!P$7,'Emissions factors'!$F$4:$CR$4,0))/1000,0)","v":0},{"$f":"IFERROR(Q89*INDEX('Emissions factors'!$F$5:$CR$10,MATCH('Data Input - Option 4'!$D125,'Emissions factors'!$C$5:$C$10,0),MATCH('Data Input - Option 4'!Q$7,'Emissions factors'!$F$4:$CR$4,0))/1000,0)","v":0},{"$f":"IFERROR(R89*INDEX('Emissions factors'!$F$5:$CR$10,MATCH('Data Input - Option 4'!$D125,'Emissions factors'!$C$5:$C$10,0),MATCH('Data Input - Option 4'!R$7,'Emissions factors'!$F$4:$CR$4,0))/1000,0)","v":0},{"$f":"IFERROR(S89*INDEX('Emissions factors'!$F$5:$CR$10,MATCH('Data Input - Option 4'!$D125,'Emissions factors'!$C$5:$C$10,0),MATCH('Data Input - Option 4'!S$7,'Emissions factors'!$F$4:$CR$4,0))/1000,0)","v":0},{"$f":"IFERROR(T89*INDEX('Emissions factors'!$F$5:$CR$10,MATCH('Data Input - Option 4'!$D125,'Emissions factors'!$C$5:$C$10,0),MATCH('Data Input - Option 4'!T$7,'Emissions factors'!$F$4:$CR$4,0))/1000,0)","v":0},{"$f":"IFERROR(U89*INDEX('Emissions factors'!$F$5:$CR$10,MATCH('Data Input - Option 4'!$D125,'Emissions factors'!$C$5:$C$10,0),MATCH('Data Input - Option 4'!U$7,'Emissions factors'!$F$4:$CR$4,0))/1000,0)","v":0},{"$f":"IFERROR(V89*INDEX('Emissions factors'!$F$5:$CR$10,MATCH('Data Input - Option 4'!$D125,'Emissions factors'!$C$5:$C$10,0),MATCH('Data Input - Option 4'!V$7,'Emissions factors'!$F$4:$CR$4,0))/1000,0)","v":0},{"$f":"IFERROR(W89*INDEX('Emissions factors'!$F$5:$CR$10,MATCH('Data Input - Option 4'!$D125,'Emissions factors'!$C$5:$C$10,0),MATCH('Data Input - Option 4'!W$7,'Emissions factors'!$F$4:$CR$4,0))/1000,0)","v":0},{"$f":"IFERROR(X89*INDEX('Emissions factors'!$F$5:$CR$10,MATCH('Data Input - Option 4'!$D125,'Emissions factors'!$C$5:$C$10,0),MATCH('Data Input - Option 4'!X$7,'Emissions factors'!$F$4:$CR$4,0))/1000,0)","v":0},{"$f":"IFERROR(Y89*INDEX('Emissions factors'!$F$5:$CR$10,MATCH('Data Input - Option 4'!$D125,'Emissions factors'!$C$5:$C$10,0),MATCH('Data Input - Option 4'!Y$7,'Emissions factors'!$F$4:$CR$4,0))/1000,0)","v":0},{"$f":"IFERROR(Z89*INDEX('Emissions factors'!$F$5:$CR$10,MATCH('Data Input - Option 4'!$D125,'Emissions factors'!$C$5:$C$10,0),MATCH('Data Input - Option 4'!Z$7,'Emissions factors'!$F$4:$CR$4,0))/1000,0)","v":0},{"$f":"IFERROR(AA89*INDEX('Emissions factors'!$F$5:$CR$10,MATCH('Data Input - Option 4'!$D125,'Emissions factors'!$C$5:$C$10,0),MATCH('Data Input - Option 4'!AA$7,'Emissions factors'!$F$4:$CR$4,0))/1000,0)","v":0},{"$f":"IFERROR(AB89*INDEX('Emissions factors'!$F$5:$CR$10,MATCH('Data Input - Option 4'!$D125,'Emissions factors'!$C$5:$C$10,0),MATCH('Data Input - Option 4'!AB$7,'Emissions factors'!$F$4:$CR$4,0))/1000,0)","v":0},{"$f":"IFERROR(AC89*INDEX('Emissions factors'!$F$5:$CR$10,MATCH('Data Input - Option 4'!$D125,'Emissions factors'!$C$5:$C$10,0),MATCH('Data Input - Option 4'!AC$7,'Emissions factors'!$F$4:$CR$4,0))/1000,0)","v":0},{"$f":"IFERROR(AD89*INDEX('Emissions factors'!$F$5:$CR$10,MATCH('Data Input - Option 4'!$D125,'Emissions factors'!$C$5:$C$10,0),MATCH('Data Input - Option 4'!AD$7,'Emissions factors'!$F$4:$CR$4,0))/1000,0)","v":0},{"$f":"IFERROR(AE89*INDEX('Emissions factors'!$F$5:$CR$10,MATCH('Data Input - Option 4'!$D125,'Emissions factors'!$C$5:$C$10,0),MATCH('Data Input - Option 4'!AE$7,'Emissions factors'!$F$4:$CR$4,0))/1000,0)","v":0},{"$f":"IFERROR(AF89*INDEX('Emissions factors'!$F$5:$CR$10,MATCH('Data Input - Option 4'!$D125,'Emissions factors'!$C$5:$C$10,0),MATCH('Data Input - Option 4'!AF$7,'Emissions factors'!$F$4:$CR$4,0))/1000,0)","v":0},{"$f":"IFERROR(AG89*INDEX('Emissions factors'!$F$5:$CR$10,MATCH('Data Input - Option 4'!$D125,'Emissions factors'!$C$5:$C$10,0),MATCH('Data Input - Option 4'!AG$7,'Emissions factors'!$F$4:$CR$4,0))/1000,0)","v":0},{"$f":"IFERROR(AH89*INDEX('Emissions factors'!$F$5:$CR$10,MATCH('Data Input - Option 4'!$D125,'Emissions factors'!$C$5:$C$10,0),MATCH('Data Input - Option 4'!AH$7,'Emissions factors'!$F$4:$CR$4,0))/1000,0)","v":0},{"$f":"IFERROR(AI89*INDEX('Emissions factors'!$F$5:$CR$10,MATCH('Data Input - Option 4'!$D125,'Emissions factors'!$C$5:$C$10,0),MATCH('Data Input - Option 4'!AI$7,'Emissions factors'!$F$4:$CR$4,0))/1000,0)","v":0},{"$f":"IFERROR(AJ89*INDEX('Emissions factors'!$F$5:$CR$10,MATCH('Data Input - Option 4'!$D125,'Emissions factors'!$C$5:$C$10,0),MATCH('Data Input - Option 4'!AJ$7,'Emissions factors'!$F$4:$CR$4,0))/1000,0)","v":0},{"$f":"IFERROR(AK89*INDEX('Emissions factors'!$F$5:$CR$10,MATCH('Data Input - Option 4'!$D125,'Emissions factors'!$C$5:$C$10,0),MATCH('Data Input - Option 4'!AK$7,'Emissions factors'!$F$4:$CR$4,0))/1000,0)","v":0},{"$f":"IFERROR(AL89*INDEX('Emissions factors'!$F$5:$CR$10,MATCH('Data Input - Option 4'!$D125,'Emissions factors'!$C$5:$C$10,0),MATCH('Data Input - Option 4'!AL$7,'Emissions factors'!$F$4:$CR$4,0))/1000,0)","v":0},{"$f":"IFERROR(AM89*INDEX('Emissions factors'!$F$5:$CR$10,MATCH('Data Input - Option 4'!$D125,'Emissions factors'!$C$5:$C$10,0),MATCH('Data Input - Option 4'!AM$7,'Emissions factors'!$F$4:$CR$4,0))/1000,0)","v":0},{"$f":"IFERROR(AN89*INDEX('Emissions factors'!$F$5:$CR$10,MATCH('Data Input - Option 4'!$D125,'Emissions factors'!$C$5:$C$10,0),MATCH('Data Input - Option 4'!AN$7,'Emissions factors'!$F$4:$CR$4,0))/1000,0)","v":0},{"$f":"IFERROR(AO89*INDEX('Emissions factors'!$F$5:$CR$10,MATCH('Data Input - Option 4'!$D125,'Emissions factors'!$C$5:$C$10,0),MATCH('Data Input - Option 4'!AO$7,'Emissions factors'!$F$4:$CR$4,0))/1000,0)","v":0},{"$f":"IFERROR(AP89*INDEX('Emissions factors'!$F$5:$CR$10,MATCH('Data Input - Option 4'!$D125,'Emissions factors'!$C$5:$C$10,0),MATCH('Data Input - Option 4'!AP$7,'Emissions factors'!$F$4:$CR$4,0))/1000,0)","v":0},{"$f":"IFERROR(AQ89*INDEX('Emissions factors'!$F$5:$CR$10,MATCH('Data Input - Option 4'!$D125,'Emissions factors'!$C$5:$C$10,0),MATCH('Data Input - Option 4'!AQ$7,'Emissions factors'!$F$4:$CR$4,0))/1000,0)","v":0},{"$f":"IFERROR(AR89*INDEX('Emissions factors'!$F$5:$CR$10,MATCH('Data Input - Option 4'!$D125,'Emissions factors'!$C$5:$C$10,0),MATCH('Data Input - Option 4'!AR$7,'Emissions factors'!$F$4:$CR$4,0))/1000,0)","v":0},{"$f":"IFERROR(AS89*INDEX('Emissions factors'!$F$5:$CR$10,MATCH('Data Input - Option 4'!$D125,'Emissions factors'!$C$5:$C$10,0),MATCH('Data Input - Option 4'!AS$7,'Emissions factors'!$F$4:$CR$4,0))/1000,0)","v":0},{"$f":"IFERROR(AT89*INDEX('Emissions factors'!$F$5:$CR$10,MATCH('Data Input - Option 4'!$D125,'Emissions factors'!$C$5:$C$10,0),MATCH('Data Input - Option 4'!AT$7,'Emissions factors'!$F$4:$CR$4,0))/1000,0)","v":0},{"$f":"IFERROR(AU89*INDEX('Emissions factors'!$F$5:$CR$10,MATCH('Data Input - Option 4'!$D125,'Emissions factors'!$C$5:$C$10,0),MATCH('Data Input - Option 4'!AU$7,'Emissions factors'!$F$4:$CR$4,0))/1000,0)","v":0},{"$f":"IFERROR(AV89*INDEX('Emissions factors'!$F$5:$CR$10,MATCH('Data Input - Option 4'!$D125,'Emissions factors'!$C$5:$C$10,0),MATCH('Data Input - Option 4'!AV$7,'Emissions factors'!$F$4:$CR$4,0))/1000,0)","v":0},{"$f":"IFERROR(AW89*INDEX('Emissions factors'!$F$5:$CR$10,MATCH('Data Input - Option 4'!$D125,'Emissions factors'!$C$5:$C$10,0),MATCH('Data Input - Option 4'!AW$7,'Emissions factors'!$F$4:$CR$4,0))/1000,0)","v":0},{"$f":"IFERROR(AX89*INDEX('Emissions factors'!$F$5:$CR$10,MATCH('Data Input - Option 4'!$D125,'Emissions factors'!$C$5:$C$10,0),MATCH('Data Input - Option 4'!AX$7,'Emissions factors'!$F$4:$CR$4,0))/1000,0)","v":0},{"$f":"IFERROR(AY89*INDEX('Emissions factors'!$F$5:$CR$10,MATCH('Data Input - Option 4'!$D125,'Emissions factors'!$C$5:$C$10,0),MATCH('Data Input - Option 4'!AY$7,'Emissions factors'!$F$4:$CR$4,0))/1000,0)","v":0},{"$f":"IFERROR(AZ89*INDEX('Emissions factors'!$F$5:$CR$10,MATCH('Data Input - Option 4'!$D125,'Emissions factors'!$C$5:$C$10,0),MATCH('Data Input - Option 4'!AZ$7,'Emissions factors'!$F$4:$CR$4,0))/1000,0)","v":0},{"$f":"IFERROR(BA89*INDEX('Emissions factors'!$F$5:$CR$10,MATCH('Data Input - Option 4'!$D125,'Emissions factors'!$C$5:$C$10,0),MATCH('Data Input - Option 4'!BA$7,'Emissions factors'!$F$4:$CR$4,0))/1000,0)","v":0},{"$f":"IFERROR(BB89*INDEX('Emissions factors'!$F$5:$CR$10,MATCH('Data Input - Option 4'!$D125,'Emissions factors'!$C$5:$C$10,0),MATCH('Data Input - Option 4'!BB$7,'Emissions factors'!$F$4:$CR$4,0))/1000,0)","v":0},{"$f":"IFERROR(BC89*INDEX('Emissions factors'!$F$5:$CR$10,MATCH('Data Input - Option 4'!$D125,'Emissions factors'!$C$5:$C$10,0),MATCH('Data Input - Option 4'!BC$7,'Emissions factors'!$F$4:$CR$4,0))/1000,0)","v":0},{"$f":"IFERROR(BD89*INDEX('Emissions factors'!$F$5:$CR$10,MATCH('Data Input - Option 4'!$D125,'Emissions factors'!$C$5:$C$10,0),MATCH('Data Input - Option 4'!BD$7,'Emissions factors'!$F$4:$CR$4,0))/1000,0)","v":0},{"$f":"IFERROR(BE89*INDEX('Emissions factors'!$F$5:$CR$10,MATCH('Data Input - Option 4'!$D125,'Emissions factors'!$C$5:$C$10,0),MATCH('Data Input - Option 4'!BE$7,'Emissions factors'!$F$4:$CR$4,0))/1000,0)","v":0},{"$f":"IFERROR(BF89*INDEX('Emissions factors'!$F$5:$CR$10,MATCH('Data Input - Option 4'!$D125,'Emissions factors'!$C$5:$C$10,0),MATCH('Data Input - Option 4'!BF$7,'Emissions factors'!$F$4:$CR$4,0))/1000,0)","v":0},{"$f":"IFERROR(BG89*INDEX('Emissions factors'!$F$5:$CR$10,MATCH('Data Input - Option 4'!$D125,'Emissions factors'!$C$5:$C$10,0),MATCH('Data Input - Option 4'!BG$7,'Emissions factors'!$F$4:$CR$4,0))/1000,0)","v":0},{"$f":"IFERROR(BH89*INDEX('Emissions factors'!$F$5:$CR$10,MATCH('Data Input - Option 4'!$D125,'Emissions factors'!$C$5:$C$10,0),MATCH('Data Input - Option 4'!BH$7,'Emissions factors'!$F$4:$CR$4,0))/1000,0)","v":0},{"$f":"IFERROR(BI89*INDEX('Emissions factors'!$F$5:$CR$10,MATCH('Data Input - Option 4'!$D125,'Emissions factors'!$C$5:$C$10,0),MATCH('Data Input - Option 4'!BI$7,'Emissions factors'!$F$4:$CR$4,0))/1000,0)","v":0},{"$f":"IFERROR(BJ89*INDEX('Emissions factors'!$F$5:$CR$10,MATCH('Data Input - Option 4'!$D125,'Emissions factors'!$C$5:$C$10,0),MATCH('Data Input - Option 4'!BJ$7,'Emissions factors'!$F$4:$CR$4,0))/1000,0)","v":0},{"$f":"IFERROR(BK89*INDEX('Emissions factors'!$F$5:$CR$10,MATCH('Data Input - Option 4'!$D125,'Emissions factors'!$C$5:$C$10,0),MATCH('Data Input - Option 4'!BK$7,'Emissions factors'!$F$4:$CR$4,0))/1000,0)","v":0},{"$f":"IFERROR(BL89*INDEX('Emissions factors'!$F$5:$CR$10,MATCH('Data Input - Option 4'!$D125,'Emissions factors'!$C$5:$C$10,0),MATCH('Data Input - Option 4'!BL$7,'Emissions factors'!$F$4:$CR$4,0))/1000,0)","v":0},{"$f":"IFERROR(BM89*INDEX('Emissions factors'!$F$5:$CR$10,MATCH('Data Input - Option 4'!$D125,'Emissions factors'!$C$5:$C$10,0),MATCH('Data Input - Option 4'!BM$7,'Emissions factors'!$F$4:$CR$4,0))/1000,0)","v":0},{"$f":"IFERROR(BN89*INDEX('Emissions factors'!$F$5:$CR$10,MATCH('Data Input - Option 4'!$D125,'Emissions factors'!$C$5:$C$10,0),MATCH('Data Input - Option 4'!BN$7,'Emissions factors'!$F$4:$CR$4,0))/1000,0)","v":0},{"$f":"IFERROR(BO89*INDEX('Emissions factors'!$F$5:$CR$10,MATCH('Data Input - Option 4'!$D125,'Emissions factors'!$C$5:$C$10,0),MATCH('Data Input - Option 4'!BO$7,'Emissions factors'!$F$4:$CR$4,0))/1000,0)","v":0},{"$f":"IFERROR(BP89*INDEX('Emissions factors'!$F$5:$CR$10,MATCH('Data Input - Option 4'!$D125,'Emissions factors'!$C$5:$C$10,0),MATCH('Data Input - Option 4'!BP$7,'Emissions factors'!$F$4:$CR$4,0))/1000,0)","v":0},{"$f":"IFERROR(BQ89*INDEX('Emissions factors'!$F$5:$CR$10,MATCH('Data Input - Option 4'!$D125,'Emissions factors'!$C$5:$C$10,0),MATCH('Data Input - Option 4'!BQ$7,'Emissions factors'!$F$4:$CR$4,0))/1000,0)","v":0},{"$f":"IFERROR(BR89*INDEX('Emissions factors'!$F$5:$CR$10,MATCH('Data Input - Option 4'!$D125,'Emissions factors'!$C$5:$C$10,0),MATCH('Data Input - Option 4'!BR$7,'Emissions factors'!$F$4:$CR$4,0))/1000,0)","v":0},{"$f":"IFERROR(BS89*INDEX('Emissions factors'!$F$5:$CR$10,MATCH('Data Input - Option 4'!$D125,'Emissions factors'!$C$5:$C$10,0),MATCH('Data Input - Option 4'!BS$7,'Emissions factors'!$F$4:$CR$4,0))/1000,0)","v":0},{"$f":"IFERROR(BT89*INDEX('Emissions factors'!$F$5:$CR$10,MATCH('Data Input - Option 4'!$D125,'Emissions factors'!$C$5:$C$10,0),MATCH('Data Input - Option 4'!BT$7,'Emissions factors'!$F$4:$CR$4,0))/1000,0)","v":0},{"$f":"IFERROR(BU89*INDEX('Emissions factors'!$F$5:$CR$10,MATCH('Data Input - Option 4'!$D125,'Emissions factors'!$C$5:$C$10,0),MATCH('Data Input - Option 4'!BU$7,'Emissions factors'!$F$4:$CR$4,0))/1000,0)","v":0},{"$f":"IFERROR(BV89*INDEX('Emissions factors'!$F$5:$CR$10,MATCH('Data Input - Option 4'!$D125,'Emissions factors'!$C$5:$C$10,0),MATCH('Data Input - Option 4'!BV$7,'Emissions factors'!$F$4:$CR$4,0))/1000,0)","v":0},{"$f":"IFERROR(BW89*INDEX('Emissions factors'!$F$5:$CR$10,MATCH('Data Input - Option 4'!$D125,'Emissions factors'!$C$5:$C$10,0),MATCH('Data Input - Option 4'!BW$7,'Emissions factors'!$F$4:$CR$4,0))/1000,0)","v":0},{"$f":"IFERROR(BX89*INDEX('Emissions factors'!$F$5:$CR$10,MATCH('Data Input - Option 4'!$D125,'Emissions factors'!$C$5:$C$10,0),MATCH('Data Input - Option 4'!BX$7,'Emissions factors'!$F$4:$CR$4,0))/1000,0)","v":0},{"$f":"IFERROR(BY89*INDEX('Emissions factors'!$F$5:$CR$10,MATCH('Data Input - Option 4'!$D125,'Emissions factors'!$C$5:$C$10,0),MATCH('Data Input - Option 4'!BY$7,'Emissions factors'!$F$4:$CR$4,0))/1000,0)","v":0},{"$f":"IFERROR(BZ89*INDEX('Emissions factors'!$F$5:$CR$10,MATCH('Data Input - Option 4'!$D125,'Emissions factors'!$C$5:$C$10,0),MATCH('Data Input - Option 4'!BZ$7,'Emissions factors'!$F$4:$CR$4,0))/1000,0)","v":0},{"$f":"IFERROR(CA89*INDEX('Emissions factors'!$F$5:$CR$10,MATCH('Data Input - Option 4'!$D125,'Emissions factors'!$C$5:$C$10,0),MATCH('Data Input - Option 4'!CA$7,'Emissions factors'!$F$4:$CR$4,0))/1000,0)","v":0},{"$f":"IFERROR(CB89*INDEX('Emissions factors'!$F$5:$CR$10,MATCH('Data Input - Option 4'!$D125,'Emissions factors'!$C$5:$C$10,0),MATCH('Data Input - Option 4'!CB$7,'Emissions factors'!$F$4:$CR$4,0))/1000,0)","v":0},{"$f":"IFERROR(CC89*INDEX('Emissions factors'!$F$5:$CR$10,MATCH('Data Input - Option 4'!$D125,'Emissions factors'!$C$5:$C$10,0),MATCH('Data Input - Option 4'!CC$7,'Emissions factors'!$F$4:$CR$4,0))/1000,0)","v":0},{"$f":"IFERROR(CD89*INDEX('Emissions factors'!$F$5:$CR$10,MATCH('Data Input - Option 4'!$D125,'Emissions factors'!$C$5:$C$10,0),MATCH('Data Input - Option 4'!CD$7,'Emissions factors'!$F$4:$CR$4,0))/1000,0)","v":0},{"$f":"IFERROR(CE89*INDEX('Emissions factors'!$F$5:$CR$10,MATCH('Data Input - Option 4'!$D125,'Emissions factors'!$C$5:$C$10,0),MATCH('Data Input - Option 4'!CE$7,'Emissions factors'!$F$4:$CR$4,0))/1000,0)","v":0},{"$f":"IFERROR(CF89*INDEX('Emissions factors'!$F$5:$CR$10,MATCH('Data Input - Option 4'!$D125,'Emissions factors'!$C$5:$C$10,0),MATCH('Data Input - Option 4'!CF$7,'Emissions factors'!$F$4:$CR$4,0))/1000,0)","v":0},{"$f":"IFERROR(CG89*INDEX('Emissions factors'!$F$5:$CR$10,MATCH('Data Input - Option 4'!$D125,'Emissions factors'!$C$5:$C$10,0),MATCH('Data Input - Option 4'!CG$7,'Emissions factors'!$F$4:$CR$4,0))/1000,0)","v":0},{"$f":"IFERROR(CH89*INDEX('Emissions factors'!$F$5:$CR$10,MATCH('Data Input - Option 4'!$D125,'Emissions factors'!$C$5:$C$10,0),MATCH('Data Input - Option 4'!CH$7,'Emissions factors'!$F$4:$CR$4,0))/1000,0)","v":0},{"$f":"IFERROR(CI89*INDEX('Emissions factors'!$F$5:$CR$10,MATCH('Data Input - Option 4'!$D125,'Emissions factors'!$C$5:$C$10,0),MATCH('Data Input - Option 4'!CI$7,'Emissions factors'!$F$4:$CR$4,0))/1000,0)","v":0},{"$f":"IFERROR(CJ89*INDEX('Emissions factors'!$F$5:$CR$10,MATCH('Data Input - Option 4'!$D125,'Emissions factors'!$C$5:$C$10,0),MATCH('Data Input - Option 4'!CJ$7,'Emissions factors'!$F$4:$CR$4,0))/1000,0)","v":0},{"$f":"IFERROR(CK89*INDEX('Emissions factors'!$F$5:$CR$10,MATCH('Data Input - Option 4'!$D125,'Emissions factors'!$C$5:$C$10,0),MATCH('Data Input - Option 4'!CK$7,'Emissions factors'!$F$4:$CR$4,0))/1000,0)","v":0},{"$f":"IFERROR(CL89*INDEX('Emissions factors'!$F$5:$CR$10,MATCH('Data Input - Option 4'!$D125,'Emissions factors'!$C$5:$C$10,0),MATCH('Data Input - Option 4'!CL$7,'Emissions factors'!$F$4:$CR$4,0))/1000,0)","v":0},{"$f":"IFERROR(CM89*INDEX('Emissions factors'!$F$5:$CR$10,MATCH('Data Input - Option 4'!$D125,'Emissions factors'!$C$5:$C$10,0),MATCH('Data Input - Option 4'!CM$7,'Emissions factors'!$F$4:$CR$4,0))/1000,0)","v":0},{"$f":"IFERROR(CN89*INDEX('Emissions factors'!$F$5:$CR$10,MATCH('Data Input - Option 4'!$D125,'Emissions factors'!$C$5:$C$10,0),MATCH('Data Input - Option 4'!CN$7,'Emissions factors'!$F$4:$CR$4,0))/1000,0)","v":0},{"$f":"IFERROR(CO89*INDEX('Emissions factors'!$F$5:$CR$10,MATCH('Data Input - Option 4'!$D125,'Emissions factors'!$C$5:$C$10,0),MATCH('Data Input - Option 4'!CO$7,'Emissions factors'!$F$4:$CR$4,0))/1000,0)","v":0},{"$f":"IFERROR(CP89*INDEX('Emissions factors'!$F$5:$CR$10,MATCH('Data Input - Option 4'!$D125,'Emissions factors'!$C$5:$C$10,0),MATCH('Data Input - Option 4'!CP$7,'Emissions factors'!$F$4:$CR$4,0))/1000,0)","v":0},{"$f":"IFERROR(CQ89*INDEX('Emissions factors'!$F$5:$CR$10,MATCH('Data Input - Option 4'!$D125,'Emissions factors'!$C$5:$C$10,0),MATCH('Data Input - Option 4'!CQ$7,'Emissions factors'!$F$4:$CR$4,0))/1000,0)","v":0},{"$f":"IFERROR(CR89*INDEX('Emissions factors'!$F$5:$CR$10,MATCH('Data Input - Option 4'!$D125,'Emissions factors'!$C$5:$C$10,0),MATCH('Data Input - Option 4'!CR$7,'Emissions factors'!$F$4:$CR$4,0))/1000,0)","v":0},{"$f":"IFERROR(CS89*INDEX('Emissions factors'!$F$5:$CR$10,MATCH('Data Input - Option 4'!$D125,'Emissions factors'!$C$5:$C$10,0),MATCH('Data Input - Option 4'!CS$7,'Emissions factors'!$F$4:$CR$4,0))/1000,0)","v":0},{"$f":"IFERROR(CT89*INDEX('Emissions factors'!$F$5:$CR$10,MATCH('Data Input - Option 4'!$D125,'Emissions factors'!$C$5:$C$10,0),MATCH('Data Input - Option 4'!CT$7,'Emissions factors'!$F$4:$CR$4,0))/1000,0)","v":0},{"$f":"IFERROR(CU89*INDEX('Emissions factors'!$F$5:$CR$10,MATCH('Data Input - Option 4'!$D125,'Emissions factors'!$C$5:$C$10,0),MATCH('Data Input - Option 4'!CU$7,'Emissions factors'!$F$4:$CR$4,0))/1000,0)","v":0},{"$f":"IFERROR(CV89*INDEX('Emissions factors'!$F$5:$CR$10,MATCH('Data Input - Option 4'!$D125,'Emissions factors'!$C$5:$C$10,0),MATCH('Data Input - Option 4'!CV$7,'Emissions factors'!$F$4:$CR$4,0))/1000,0)","v":0},{"$f":"IFERROR(CW89*INDEX('Emissions factors'!$F$5:$CR$10,MATCH('Data Input - Option 4'!$D125,'Emissions factors'!$C$5:$C$10,0),MATCH('Data Input - Option 4'!CW$7,'Emissions factors'!$F$4:$CR$4,0))/1000,0)","v":0},{"$f":"IFERROR(CX89*INDEX('Emissions factors'!$F$5:$CR$10,MATCH('Data Input - Option 4'!$D125,'Emissions factors'!$C$5:$C$10,0),MATCH('Data Input - Option 4'!CX$7,'Emissions factors'!$F$4:$CR$4,0))/1000,0)","v":0},{"$f":"IFERROR(CY89*INDEX('Emissions factors'!$F$5:$CR$10,MATCH('Data Input - Option 4'!$D125,'Emissions factors'!$C$5:$C$10,0),MATCH('Data Input - Option 4'!CY$7,'Emissions factors'!$F$4:$CR$4,0))/1000,0)","v":0},{"$f":"IFERROR(CZ89*INDEX('Emissions factors'!$F$5:$CR$10,MATCH('Data Input - Option 4'!$D125,'Emissions factors'!$C$5:$C$10,0),MATCH('Data Input - Option 4'!CZ$7,'Emissions factors'!$F$4:$CR$4,0))/1000,0)","v":0},{"$f":"IFERROR(DA89*INDEX('Emissions factors'!$F$5:$CR$10,MATCH('Data Input - Option 4'!$D125,'Emissions factors'!$C$5:$C$10,0),MATCH('Data Input - Option 4'!DA$7,'Emissions factors'!$F$4:$CR$4,0))/1000,0)","v":0},{"$f":"IFERROR(DB89*INDEX('Emissions factors'!$F$5:$CR$10,MATCH('Data Input - Option 4'!$D125,'Emissions factors'!$C$5:$C$10,0),MATCH('Data Input - Option 4'!DB$7,'Emissions factors'!$F$4:$CR$4,0))/1000,0)","v":0},{"$f":"IFERROR(DC89*INDEX('Emissions factors'!$F$5:$CR$10,MATCH('Data Input - Option 4'!$D125,'Emissions factors'!$C$5:$C$10,0),MATCH('Data Input - Option 4'!DC$7,'Emissions factors'!$F$4:$CR$4,0))/1000,0)","v":0}]
[null,null,"8.52","test 3","tCO2e"]
[]
[null,null,null,"Total fuel-related GHG Emissions","tCO2e","(Auto calculated value)",null,{"$f":"SUM(H$120:H$127)","v":2.7159532468959326E-3},{"$f":"SUM(I$120:I$127)","v":0},{"$f":"SUM(J$120:J$127)","v":0},0,0,0,0,0,0,0,0,0,0,0,0,0,0,0,0,0,0,0,0,0,0,0,0,0,0,0,0,0,0,0,0,0,0,0,0,0,0,0,0,0,0,0,0,0,0,0,0,0,0,0,0,0,0,0,0,0,0,0,0,0,0,0,{"$f":"SUM(BV$120:BV$127)","v":0},0,0,0,0,0,0,0,0,0,0,0,0,0,0,0,0,0,0,0,0,0,0,0,0,0,0,0,0,0,0,0,0,0]

{"sheet":"Data Input - Option 5","index":18,"n_rows":128,"n_cols":108,"rows_kept":128,"cut":false,"hidden":false,"merged":[[3,3,6,3],[31,7,31,9],[51,7,51,9]]}
[null,{"$f":"\"---- \" & IF($C$9<>\"Nothing Selected - Do not Complete this Section\",\"Step 9 - Data Input - \" & C9, \"Step 9 - Data Input - Option 5\") & \" ----\"","v":"---- Step 9 - Data Input - Option 5 ----"}]
[]
[]
[]
[null,null,null,null,null,null,null,{"$f":"IF(AND(SUM(H30,H50,H79,H100,H117,H128,#REF!)<>0,H7=0),1,0)","v":{"$error":"#REF!"}},{"$f":"IF(AND(SUM(I30,I50,I79,I100,I117,I128,#REF!)<>0,I7=0),1,0)","v":{"$error":"#REF!"}},{"$f":"IF(AND(SUM(J30,J50,J79,J100,J117,J128,#REF!)<>0,J7=0),1,0)","v":{"$error":"#REF!"}},{"$f":"IF(AND(SUM(K30,K50,K79,K100,K117,K128,#REF!)<>0,K7=0),1,0)","v":{"$error":"#REF!"}},{"$f":"IF(AND(SUM(L30,L50,L79,L100,L117,L128,#REF!)<>0,L7=0),1,0)","v":{"$error":"#REF!"}},{"$f":"IF(AND(SUM(M30,M50,M79,M100,M117,M128,#REF!)<>0,M7=0),1,0)","v":{"$error":"#REF!"}},{"$f":"IF(AND(SUM(N30,N50,N79,N100,N117,N128,#REF!)<>0,N7=0),1,0)","v":{"$error":"#REF!"}},{"$f":"IF(AND(SUM(O30,O50,O79,O100,O117,O128,#REF!)<>0,O7=0),1,0)","v":{"$error":"#REF!"}},{"$f":"IF(AND(SUM(P30,P50,P79,P100,P117,P128,#REF!)<>0,P7=0),1,0)","v":{"$error":"#REF!"}},{"$f":"IF(AND(SUM(Q30,Q50,Q79,Q100,Q117,Q128,#REF!)<>0,Q7=0),1,0)","v":{"$error":"#REF!"}},{"$f":"IF(AND(SUM(R30,R50,R79,R100,R117,R128,#REF!)<>0,R7=0),1,0)","v":{"$error":"#REF!"}},{"$f":"IF(AND(SUM(S30,S50,S79,S100,S117,S128,#REF!)<>0,S7=0),1,0)","v":{"$error":"#REF!"}},{"$f":"IF(AND(SUM(T30,T50,T79,T100,T117,T128,#REF!)<>0,T7=0),1,0)","v":{"$error":"#REF!"}},{"$f":"IF(AND(SUM(U30,U50,U79,U100,U117,U128,#REF!)<>0,U7=0),1,0)","v":{"$error":"#REF!"}},{"$f":"IF(AND(SUM(V30,V50,V79,V100,V117,V128,#REF!)<>0,V7=0),1,0)","v":{"$error":"#REF!"}},{"$f":"IF(AND(SUM(W30,W50,W79,W100,W117,W128,#REF!)<>0,W7=0),1,0)","v":{"$error":"#REF!"}},{"$f":"IF(AND(SUM(X30,X50,X79,X100,X117,X128,#REF!)<>0,X7=0),1,0)","v":{"$error":"#REF!"}},{"$f":"IF(AND(SUM(Y30,Y50,Y79,Y100,Y117,Y128,#REF!)<>0,Y7=0),1,0)","v":{"$error":"#REF!"}},{"$f":"IF(AND(SUM(Z30,Z50,Z79,Z100,Z117,Z128,#REF!)<>0,Z7=0),1,0)","v":{"$error":"#REF!"}},{"$f":"IF(AND(SUM(AA30,AA50,AA79,AA100,AA117,AA128,#REF!)<>0,AA7=0),1,0)","v":{"$error":"#REF!"}},{"$f":"IF(AND(SUM(AB30,AB50,AB79,AB100,AB117,AB128,#REF!)<>0,AB7=0),1,0)","v":{"$error":"#REF!"}},{"$f":"IF(AND(SUM(AC30,AC50,AC79,AC100,AC117,AC128,#REF!)<>0,AC7=0),1,0)","v":{"$error":"#REF!"}},{"$f":"IF(AND(SUM(AD30,AD50,AD79,AD100,AD117,AD128,#REF!)<>0,AD7=0),1,0)","v":{"$error":"#REF!"}},{"$f":"IF(AND(SUM(AE30,AE50,AE79,AE100,AE117,AE128,#REF!)<>0,AE7=0),1,0)","v":{"$error":"#REF!"}},{"$f":"IF(AND(SUM(AF30,AF50,AF79,AF100,AF117,AF128,#REF!)<>0,AF7=0),1,0)","v":{"$error":"#REF!"}},{"$f":"IF(AND(SUM(AG30,AG50,AG79,AG100,AG117,AG128,#REF!)<>0,AG7=0),1,0)","v":{"$error":"#REF!"}},{"$f":"IF(AND(SUM(AH30,AH50,AH79,AH100,AH117,AH128,#REF!)<>0,AH7=0),1,0)","v":{"$error":"#REF!"}},{"$f":"IF(AND(SUM(AI30,AI50,AI79,AI100,AI117,AI128,#REF!)<>0,AI7=0),1,0)","v":{"$error":"#REF!"}},{"$f":"IF(AND(SUM(AJ30,AJ50,AJ79,AJ100,AJ117,AJ128,#REF!)<>0,AJ7=0),1,0)","v":{"$error":"#REF!"}},{"$f":"IF(AND(SUM(AK30,AK50,AK79,AK100,AK117,AK128,#REF!)<>0,AK7=0),1,0)","v":{"$error":"#REF!"}},{"$f":"IF(AND(SUM(AL30,AL50,AL79,AL100,AL117,AL128,#REF!)<>0,AL7=0),1,0)","v":{"$error":"#REF!"}},{"$f":"IF(AND(SUM(AM30,AM50,AM79,AM100,AM117,AM128,#REF!)<>0,AM7=0),1,0)","v":{"$error":"#REF!"}},{"$f":"IF(AND(SUM(AN30,AN50,AN79,AN100,AN117,AN128,#REF!)<>0,AN7=0),1,0)","v":{"$error":"#REF!"}},{"$f":"IF(AND(SUM(AO30,AO50,AO79,AO100,AO117,AO128,#REF!)<>0,AO7=0),1,0)","v":{"$error":"#REF!"}},{"$f":"IF(AND(SUM(AP30,AP50,AP79,AP100,AP117,AP128,#REF!)<>0,AP7=0),1,0)","v":{"$error":"#REF!"}},{"$f":"IF(AND(SUM(AQ30,AQ50,AQ79,AQ100,AQ117,AQ128,#REF!)<>0,AQ7=0),1,0)","v":{"$error":"#REF!"}},{"$f":"IF(AND(SUM(AR30,AR50,AR79,AR100,AR117,AR128,#REF!)<>0,AR7=0),1,0)","v":{"$error":"#REF!"}},{"$f":"IF(AND(SUM(AS30,AS50,AS79,AS100,AS117,AS128,#REF!)<>0,AS7=0),1,0)","v":{"$error":"#REF!"}},{"$f":"IF(AND(SUM(AT30,AT50,AT79,AT100,AT117,AT128,#REF!)<>0,AT7=0),1,0)","v":{"$error":"#REF!"}},{"$f":"IF(AND(SUM(AU30,AU50,AU79,AU100,AU117,AU128,#REF!)<>0,AU7=0),1,0)","v":{"$error":"#REF!"}},{"$f":"IF(AND(SUM(AV30,AV50,AV79,AV100,AV117,AV128,#REF!)<>0,AV7=0),1,0)","v":{"$error":"#REF!"}},{"$f":"IF(AND(SUM(AW30,AW50,AW79,AW100,AW117,AW128,#REF!)<>0,AW7=0),1,0)","v":{"$error":"#REF!"}},{"$f":"IF(AND(SUM(AX30,AX50,AX79,AX100,AX117,AX128,#REF!)<>0,AX7=0),1,0)","v":{"$error":"#REF!"}},{"$f":"IF(AND(SUM(AY30,AY50,AY79,AY100,AY117,AY128,#REF!)<>0,AY7=0),1,0)","v":{"$error":"#REF!"}},{"$f":"IF(AND(SUM(AZ30,AZ50,AZ79,AZ100,AZ117,AZ128,#REF!)<>0,AZ7=0),1,0)","v":{"$error":"#REF!"}},{"$f":"IF(AND(SUM(BA30,BA50,BA79,BA100,BA117,BA128,#REF!)<>0,BA7=0),1,0)","v":{"$error":"#REF!"}},{"$f":"IF(AND(SUM(BB30,BB50,BB79,BB100,BB117,BB128,#REF!)<>0,BB7=0),1,0)","v":{"$error":"#REF!"}},{"$f":"IF(AND(SUM(BC30,BC50,BC79,BC100,BC117,BC128,#REF!)<>0,BC7=0),1,0)","v":{"$error":"#REF!"}},{"$f":"IF(AND(SUM(BD30,BD50,BD79,BD100,BD117,BD128,#REF!)<>0,BD7=0),1,0)","v":{"$error":"#REF!"}},{"$f":"IF(AND(SUM(BE30,BE50,BE79,BE100,BE117,BE128,#REF!)<>0,BE7=0),1,0)","v":{"$error":"#REF!"}},{"$f":"IF(AND(SUM(BF30,BF50,BF79,BF100,BF117,BF128,#REF!)<>0,BF7=0),1,0)","v":{"$error":"#REF!"}},{"$f":"IF(AND(SUM(BG30,BG50,BG79,BG100,BG117,BG128,#REF!)<>0,BG7=0),1,0)","v":{"$error":"#REF!"}},{"$f":"IF(AND(SUM(BH30,BH50,BH79,BH100,BH117,BH128,#REF!)<>0,BH7=0),1,0)","v":{"$error":"#REF!"}},{"$f":"IF(AND(SUM(BI30,BI50,BI79,BI100,BI117,BI128,#REF!)<>0,BI7=0),1,0)","v":{"$error":"#REF!"}},{"$f":"IF(AND(SUM(BJ30,BJ50,BJ79,BJ100,BJ117,BJ128,#REF!)<>0,BJ7=0),1,0)","v":{"$error":"#REF!"}},{"$f":"IF(AND(SUM(BK30,BK50,BK79,BK100,BK117,BK128,#REF!)<>0,BK7=0),1,0)","v":{"$error":"#REF!"}},{"$f":"IF(AND(SUM(BL30,BL50,BL79,BL100,BL117,BL128,#REF!)<>0,BL7=0),1,0)","v":{"$error":"#REF!"}},{"$f":"IF(AND(SUM(BM30,BM50,BM79,BM100,BM117,BM128,#REF!)<>0,BM7=0),1,0)","v":{"$error":"#REF!"}},{"$f":"IF(AND(SUM(BN30,BN50,BN79,BN100,BN117,BN128,#REF!)<>0,BN7=0),1,0)","v":{"$error":"#REF!"}},{"$f":"IF(AND(SUM(BO30,BO50,BO79,BO100,BO117,BO128,#REF!)<>0,BO7=0),1,0)","v":{"$error":"#REF!"}},{"$f":"IF(AND(SUM(BP30,BP50,BP79,BP100,BP117,BP128,#REF!)<>0,BP7=0),1,0)","v":{"$error":"#REF!"}},{"$f":"IF(AND(SUM(BQ30,BQ50,BQ79,BQ100,BQ117,BQ128,#REF!)<>0,BQ7=0),1,0)","v":{"$error":"#REF!"}},{"$f":"IF(AND(SUM(BR30,BR50,BR79,BR100,BR117,BR128,#REF!)<>0,BR7=0),1,0)","v":{"$error":"#REF!"}},{"$f":"IF(AND(SUM(BS30,BS50,BS79,BS100,BS117,BS128,#REF!)<>0,BS7=0),1,0)","v":{"$error":"#REF!"}},{"$f":"IF(AND(SUM(BT30,BT50,BT79,BT100,BT117,BT128,#REF!)<>0,BT7=0),1,0)","v":{"$error":"#REF!"}},{"$f":"IF(AND(SUM(BU30,BU50,BU79,BU100,BU117,BU128,#REF!)<>0,BU7=0),1,0)","v":{"$error":"#REF!"}},{"$f":"IF(AND(SUM(BV30,BV50,BV79,BV100,BV117,BV128,#REF!)<>0,BV7=0),1,0)","v":{"$error":"#REF!"}},{"$f":"IF(AND(SUM(BW30,BW50,BW79,BW100,BW117,BW128,#REF!)<>0,BW7=0),1,0)","v":{"$error":"#REF!"}},{"$f":"IF(AND(SUM(BX30,BX50,BX79,BX100,BX117,BX128,#REF!)<>0,BX7=0),1,0)","v":{"$error":"#REF!"}},{"$f":"IF(AND(SUM(BY30,BY50,BY79,BY100,BY117,BY128,#REF!)<>0,BY7=0),1,0)","v":{"$error":"#REF!"}},{"$f":"IF(AND(SUM(BZ30,BZ50,BZ79,BZ100,BZ117,BZ128,#REF!)<>0,BZ7=0),1,0)","v":{"$error":"#REF!"}},{"$f":"IF(AND(SUM(CA30,CA50,CA79,CA100,CA117,CA128,#REF!)<>0,CA7=0),1,0)","v":{"$error":"#REF!"}},{"$f":"IF(AND(SUM(CB30,CB50,CB79,CB100,CB117,CB128,#REF!)<>0,CB7=0),1,0)","v":{"$error":"#REF!"}},{"$f":"IF(AND(SUM(CC30,CC50,CC79,CC100,CC117,CC128,#REF!)<>0,CC7=0),1,0)","v":{"$error":"#REF!"}},{"$f":"IF(AND(SUM(CD30,CD50,CD79,CD100,CD117,CD128,#REF!)<>0,CD7=0),1,0)","v":{"$error":"#REF!"}},{"$f":"IF(AND(SUM(CE30,CE50,CE79,CE100,CE117,CE128,#REF!)<>0,CE7=0),1,0)","v":{"$error":"#REF!"}},{"$f":"IF(AND(SUM(CF30,CF50,CF79,CF100,CF117,CF128,#REF!)<>0,CF7=0),1,0)","v":{"$error":"#REF!"}},{"$f":"IF(AND(SUM(CG30,CG50,CG79,CG100,CG117,CG128,#REF!)<>0,CG7=0),1,0)","v":{"$error":"#REF!"}},{"$f":"IF(AND(SUM(CH30,CH50,CH79,CH100,CH117,CH128,#REF!)<>0,CH7=0),1,0)","v":{"$error":"#REF!"}},{"$f":"IF(AND(SUM(CI30,CI50,CI79,CI100,CI117,CI128,#REF!)<>0,CI7=0),1,0)","v":{"$error":"#REF!"}},{"$f":"IF(AND(SUM(CJ30,CJ50,CJ79,CJ100,CJ117,CJ128,#REF!)<>0,CJ7=0),1,0)","v":{"$error":"#REF!"}},{"$f":"IF(AND(SUM(CK30,CK50,CK79,CK100,CK117,CK128,#REF!)<>0,CK7=0),1,0)","v":{"$error":"#REF!"}},{"$f":"IF(AND(SUM(CL30,CL50,CL79,CL100,CL117,CL128,#REF!)<>0,CL7=0),1,0)","v":{"$error":"#REF!"}},{"$f":"IF(AND(SUM(CM30,CM50,CM79,CM100,CM117,CM128,#REF!)<>0,CM7=0),1,0)","v":{"$error":"#REF!"}},{"$f":"IF(AND(SUM(CN30,CN50,CN79,CN100,CN117,CN128,#REF!)<>0,CN7=0),1,0)","v":{"$error":"#REF!"}},{"$f":"IF(AND(SUM(CO30,CO50,CO79,CO100,CO117,CO128,#REF!)<>0,CO7=0),1,0)","v":{"$error":"#REF!"}},{"$f":"IF(AND(SUM(CP30,CP50,CP79,CP100,CP117,CP128,#REF!)<>0,CP7=0),1,0)","v":{"$error":"#REF!"}},{"$f":"IF(AND(SUM(CQ30,CQ50,CQ79,CQ100,CQ117,CQ128,#REF!)<>0,CQ7=0),1,0)","v":{"$error":"#REF!"}},{"$f":"IF(AND(SUM(CR30,CR50,CR79,CR100,CR117,CR128,#REF!)<>0,CR7=0),1,0)","v":{"$error":"#REF!"}},{"$f":"IF(AND(SUM(CS30,CS50,CS79,CS100,CS117,CS128,#REF!)<>0,CS7=0),1,0)","v":{"$error":"#REF!"}},{"$f":"IF(AND(SUM(CT30,CT50,CT79,CT100,CT117,CT128,#REF!)<>0,CT7=0),1,0)","v":{"$error":"#REF!"}},{"$f":"IF(AND(SUM(CU30,CU50,CU79,CU100,CU117,CU128,#REF!)<>0,CU7=0),1,0)","v":{"$error":"#REF!"}},{"$f":"IF(AND(SUM(CV30,CV50,CV79,CV100,CV117,CV128,#REF!)<>0,CV7=0),1,0)","v":{"$error":"#REF!"}},{"$f":"IF(AND(SUM(CW30,CW50,CW79,CW100,CW117,CW128,#REF!)<>0,CW7=0),1,0)","v":{"$error":"#REF!"}},{"$f":"IF(AND(SUM(CX30,CX50,CX79,CX100,CX117,CX128,#REF!)<>0,CX7=0),1,0)","v":{"$error":"#REF!"}},{"$f":"IF(AND(SUM(CY30,CY50,CY79,CY100,CY117,CY128,#REF!)<>0,CY7=0),1,0)","v":{"$error":"#REF!"}},{"$f":"IF(AND(SUM(CZ30,CZ50,CZ79,CZ100,CZ117,CZ128,#REF!)<>0,CZ7=0),1,0)","v":{"$error":"#REF!"}},{"$f":"IF(AND(SUM(DA30,DA50,DA79,DA100,DA117,DA128,#REF!)<>0,DA7=0),1,0)","v":{"$error":"#REF!"}},{"$f":"IF(AND(SUM(DB30,DB50,DB79,DB100,DB117,DB128,#REF!)<>0,DB7=0),1,0)","v":{"$error":"#REF!"}},{"$f":"IF(AND(SUM(DC30,DC50,DC79,DC100,DC117,DC128,#REF!)<>0,DC7=0),1,0)","v":{"$error":"#REF!"}}]
[null,null,null,null,null,"Year number",null,0,1,2,3,4,5,6,7,8,9,10,11,12,13,14,15,16,17,18,19,20,21,22,23,24,25,26,27,28,29,30,31,32,33,34,35,36,37,38,39,40,41,42,43,44,45,46,47,48,49,50,51,52,53,54,55,56,57,58,59,60,61,62,63,64,65,66,67,68,69,70,71,72,73,74,75,76,77,78,79,80,81,82,83,84,85,86,87,88,89,90,91,92,93,94,95,96,97,98,99]
[null,null,null,null,null,"Year",null,{"$f":"IF($C$9=0,\"\",IF(H$6+'Data Input - General'!$F$22>'Data Input - General'!$F$34,0,'Data Input - Option 5'!H$6+'Data Input - General'!$F$22))","v":2019},{"$f":"IF($C$9=0,\"\",IF(I$6+'Data Input - General'!$F$22>'Data Input - General'!$F$34,0,'Data Input - Option 5'!I$6+'Data Input - General'!$F$22))","v":2020},{"$f":"IF($C$9=0,\"\",IF(J$6+'Data Input - General'!$F$22>'Data Input - General'!$F$34,0,'Data Input - Option 5'!J$6+'Data Input - General'!$F$22))","v":2021},{"$f":"IF($C$9=0,\"\",IF(K$6+'Data Input - General'!$F$22>'Data Input - General'!$F$34,0,'Data Input - Option 5'!K$6+'Data Input - General'!$F$22))","v":2022},{"$f":"IF($C$9=0,\"\",IF(L$6+'Data Input - General'!$F$22>'Data Input - General'!$F$34,0,'Data Input - Option 5'!L$6+'Data Input - General'!$F$22))","v":2023},{"$f":"IF($C$9=0,\"\",IF(M$6+'Data Input - General'!$F$22>'Data Input - General'!$F$34,0,'Data Input - Option 5'!M$6+'Data Input - General'!$F$22))","v":2024},{"$f":"IF($C$9=0,\"\",IF(N$6+'Data Input - General'!$F$22>'Data Input - General'!$F$34,0,'Data Input - Option 5'!N$6+'Data Input - General'!$F$22))","v":2025},{"$f":"IF($C$9=0,\"\",IF(O$6+'Data Input - General'!$F$22>'Data Input - General'!$F$34,0,'Data Input - Option 5'!O$6+'Data Input - General'!$F$22))","v":2026},{"$f":"IF($C$9=0,\"\",IF(P$6+'Data Input - General'!$F$22>'Data Input - General'!$F$34,0,'Data Input - Option 5'!P$6+'Data Input - General'!$F$22))","v":2027},{"$f":"IF($C$9=0,\"\",IF(Q$6+'Data Input - General'!$F$22>'Data Input - General'!$F$34,0,'Data Input - Option 5'!Q$6+'Data Input - General'!$F$22))","v":2028},{"$f":"IF($C$9=0,\"\",IF(R$6+'Data Input - General'!$F$22>'Data Input - General'!$F$34,0,'Data Input - Option 5'!R$6+'Data Input - General'!$F$22))","v":2029},{"$f":"IF($C$9=0,\"\",IF(S$6+'Data Input - General'!$F$22>'Data Input - General'!$F$34,0,'Data Input - Option 5'!S$6+'Data Input - General'!$F$22))","v":2030},{"$f":"IF($C$9=0,\"\",IF(T$6+'Data Input - General'!$F$22>'Data Input - General'!$F$34,0,'Data Input - Option 5'!T$6+'Data Input - General'!$F$22))","v":2031},{"$f":"IF($C$9=0,\"\",IF(U$6+'Data Input - General'!$F$22>'Data Input - General'!$F$34,0,'Data Input - Option 5'!U$6+'Data Input - General'!$F$22))","v":2032},{"$f":"IF($C$9=0,\"\",IF(V$6+'Data Input - General'!$F$22>'Data Input - General'!$F$34,0,'Data Input - Option 5'!V$6+'Data Input - General'!$F$22))","v":2033},{"$f":"IF($C$9=0,\"\",IF(W$6+'Data Input - General'!$F$22>'Data Input - General'!$F$34,0,'Data Input - Option 5'!W$6+'Data Input - General'!$F$22))","v":2034},{"$f":"IF($C$9=0,\"\",IF(X$6+'Data Input - General'!$F$22>'Data Input - General'!$F$34,0,'Data Input - Option 5'!X$6+'Data Input - General'!$F$22))","v":2035},{"$f":"IF($C$9=0,\"\",IF(Y$6+'Data Input - General'!$F$22>'Data Input - General'!$F$34,0,'Data Input - Option 5'!Y$6+'Data Input - General'!$F$22))","v":2036},{"$f":"IF($C$9=0,\"\",IF(Z$6+'Data Input - General'!$F$22>'Data Input - General'!$F$34,0,'Data Input - Option 5'!Z$6+'Data Input - General'!$F$22))","v":2037},{"$f":"IF($C$9=0,\"\",IF(AA$6+'Data Input - General'!$F$22>'Data Input - General'!$F$34,0,'Data Input - Option 5'!AA$6+'Data Input - General'!$F$22))","v":2038},{"$f":"IF($C$9=0,\"\",IF(AB$6+'Data Input - General'!$F$22>'Data Input - General'!$F$34,0,'Data Input - Option 5'!AB$6+'Data Input - General'!$F$22))","v":2039},{"$f":"IF($C$9=0,\"\",IF(AC$6+'Data Input - General'!$F$22>'Data Input - General'!$F$34,0,'Data Input - Option 5'!AC$6+'Data Input - General'!$F$22))","v":2040},{"$f":"IF($C$9=0,\"\",IF(AD$6+'Data Input - General'!$F$22>'Data Input - General'!$F$34,0,'Data Input - Option 5'!AD$6+'Data Input - General'!$F$22))","v":2041},{"$f":"IF($C$9=0,\"\",IF(AE$6+'Data Input - General'!$F$22>'Data Input - General'!$F$34,0,'Data Input - Option 5'!AE$6+'Data Input - General'!$F$22))","v":2042},{"$f":"IF($C$9=0,\"\",IF(AF$6+'Data Input - General'!$F$22>'Data Input - General'!$F$34,0,'Data Input - Option 5'!AF$6+'Data Input - General'!$F$22))","v":2043},{"$f":"IF($C$9=0,\"\",IF(AG$6+'Data Input - General'!$F$22>'Data Input - General'!$F$34,0,'Data Input - Option 5'!AG$6+'Data Input - General'!$F$22))","v":2044},{"$f":"IF($C$9=0,\"\",IF(AH$6+'Data Input - General'!$F$22>'Data Input - General'!$F$34,0,'Data Input - Option 5'!AH$6+'Data Input - General'!$F$22))","v":2045},{"$f":"IF($C$9=0,\"\",IF(AI$6+'Data Input - General'!$F$22>'Data Input - General'!$F$34,0,'Data Input - Option 5'!AI$6+'Data Input - General'!$F$22))","v":2046},{"$f":"IF($C$9=0,\"\",IF(AJ$6+'Data Input - General'!$F$22>'Data Input - General'!$F$34,0,'Data Input - Option 5'!AJ$6+'Data Input - General'!$F$22))","v":2047},{"$f":"IF($C$9=0,\"\",IF(AK$6+'Data Input - General'!$F$22>'Data Input - General'!$F$34,0,'Data Input - Option 5'!AK$6+'Data Input - General'!$F$22))","v":2048},{"$f":"IF($C$9=0,\"\",IF(AL$6+'Data Input - General'!$F$22>'Data Input - General'!$F$34,0,'Data Input - Option 5'!AL$6+'Data Input - General'!$F$22))","v":2049},{"$f":"IF($C$9=0,\"\",IF(AM$6+'Data Input - General'!$F$22>'Data Input - General'!$F$34,0,'Data Input - Option 5'!AM$6+'Data Input - General'!$F$22))","v":0},{"$f":"IF($C$9=0,\"\",IF(AN$6+'Data Input - General'!$F$22>'Data Input - General'!$F$34,0,'Data Input - Option 5'!AN$6+'Data Input - General'!$F$22))","v":0},{"$f":"IF($C$9=0,\"\",IF(AO$6+'Data Input - General'!$F$22>'Data Input - General'!$F$34,0,'Data Input - Option 5'!AO$6+'Data Input - General'!$F$22))","v":0},{"$f":"IF($C$9=0,\"\",IF(AP$6+'Data Input - General'!$F$22>'Data Input - General'!$F$34,0,'Data Input - Option 5'!AP$6+'Data Input - General'!$F$22))","v":0},{"$f":"IF($C$9=0,\"\",IF(AQ$6+'Data Input - General'!$F$22>'Data Input - General'!$F$34,0,'Data Input - Option 5'!AQ$6+'Data Input - General'!$F$22))","v":0},{"$f":"IF($C$9=0,\"\",IF(AR$6+'Data Input - General'!$F$22>'Data Input - General'!$F$34,0,'Data Input - Option 5'!AR$6+'Data Input - General'!$F$22))","v":0},{"$f":"IF($C$9=0,\"\",IF(AS$6+'Data Input - General'!$F$22>'Data Input - General'!$F$34,0,'Data Input - Option 5'!AS$6+'Data Input - General'!$F$22))","v":0},{"$f":"IF($C$9=0,\"\",IF(AT$6+'Data Input - General'!$F$22>'Data Input - General'!$F$34,0,'Data Input - Option 5'!AT$6+'Data Input - General'!$F$22))","v":0},{"$f":"IF($C$9=0,\"\",IF(AU$6+'Data Input - General'!$F$22>'Data Input - General'!$F$34,0,'Data Input - Option 5'!AU$6+'Data Input - General'!$F$22))","v":0},{"$f":"IF($C$9=0,\"\",IF(AV$6+'Data Input - General'!$F$22>'Data Input - General'!$F$34,0,'Data Input - Option 5'!AV$6+'Data Input - General'!$F$22))","v":0},{"$f":"IF($C$9=0,\"\",IF(AW$6+'Data Input - General'!$F$22>'Data Input - General'!$F$34,0,'Data Input - Option 5'!AW$6+'Data Input - General'!$F$22))","v":0},{"$f":"IF($C$9=0,\"\",IF(AX$6+'Data Input - General'!$F$22>'Data Input - General'!$F$34,0,'Data Input - Option 5'!AX$6+'Data Input - General'!$F$22))","v":0},{"$f":"IF($C$9=0,\"\",IF(AY$6+'Data Input - General'!$F$22>'Data Input - General'!$F$34,0,'Data Input - Option 5'!AY$6+'Data Input - General'!$F$22))","v":0},{"$f":"IF($C$9=0,\"\",IF(AZ$6+'Data Input - General'!$F$22>'Data Input - General'!$F$34,0,'Data Input - Option 5'!AZ$6+'Data Input - General'!$F$22))","v":0},{"$f":"IF($C$9=0,\"\",IF(BA$6+'Data Input - General'!$F$22>'Data Input - General'!$F$34,0,'Data Input - Option 5'!BA$6+'Data Input - General'!$F$22))","v":0},{"$f":"IF($C$9=0,\"\",IF(BB$6+'Data Input - General'!$F$22>'Data Input - General'!$F$34,0,'Data Input - Option 5'!BB$6+'Data Input - General'!$F$22))","v":0},{"$f":"IF($C$9=0,\"\",IF(BC$6+'Data Input - General'!$F$22>'Data Input - General'!$F$34,0,'Data Input - Option 5'!BC$6+'Data Input - General'!$F$22))","v":0},{"$f":"IF($C$9=0,\"\",IF(BD$6+'Data Input - General'!$F$22>'Data Input - General'!$F$34,0,'Data Input - Option 5'!BD$6+'Data Input - General'!$F$22))","v":0},{"$f":"IF($C$9=0,\"\",IF(BE$6+'Data Input - General'!$F$22>'Data Input - General'!$F$34,0,'Data Input - Option 5'!BE$6+'Data Input - General'!$F$22))","v":0},{"$f":"IF($C$9=0,\"\",IF(BF$6+'Data Input - General'!$F$22>'Data Input - General'!$F$34,0,'Data Input - Option 5'!BF$6+'Data Input - General'!$F$22))","v":0},{"$f":"IF($C$9=0,\"\",IF(BG$6+'Data Input - General'!$F$22>'Data Input - General'!$F$34,0,'Data Input - Option 5'!BG$6+'Data Input - General'!$F$22))","v":0},{"$f":"IF($C$9=0,\"\",IF(BH$6+'Data Input - General'!$F$22>'Data Input - General'!$F$34,0,'Data Input - Option 5'!BH$6+'Data Input - General'!$F$22))","v":0},{"$f":"IF($C$9=0,\"\",IF(BI$6+'Data Input - General'!$F$22>'Data Input - General'!$F$34,0,'Data Input - Option 5'!BI$6+'Data Input - General'!$F$22))","v":0},{"$f":"IF($C$9=0,\"\",IF(BJ$6+'Data Input - General'!$F$22>'Data Input - General'!$F$34,0,'Data Input - Option 5'!BJ$6+'Data Input - General'!$F$22))","v":0},{"$f":"IF($C$9=0,\"\",IF(BK$6+'Data Input - General'!$F$22>'Data Input - General'!$F$34,0,'Data Input - Option 5'!BK$6+'Data Input - General'!$F$22))","v":0},{"$f":"IF($C$9=0,\"\",IF(BL$6+'Data Input - General'!$F$22>'Data Input - General'!$F$34,0,'Data Input - Option 5'!BL$6+'Data Input - General'!$F$22))","v":0},{"$f":"IF($C$9=0,\"\",IF(BM$6+'Data Input - General'!$F$22>'Data Input - General'!$F$34,0,'Data Input - Option 5'!BM$6+'Data Input - General'!$F$22))","v":0},{"$f":"IF($C$9=0,\"\",IF(BN$6+'Data Input - General'!$F$22>'Data Input - General'!$F$34,0,'Data Input - Option 5'!BN$6+'Data Input - General'!$F$22))","v":0},{"$f":"IF($C$9=0,\"\",IF(BO$6+'Data Input - General'!$F$22>'Data Input - General'!$F$34,0,'Data Input - Option 5'!BO$6+'Data Input - General'!$F$22))","v":0},{"$f":"IF($C$9=0,\"\",IF(BP$6+'Data Input - General'!$F$22>'Data Input - General'!$F$34,0,'Data Input - Option 5'!BP$6+'Data Input - General'!$F$22))","v":0},{"$f":"IF($C$9=0,\"\",IF(BQ$6+'Data Input - General'!$F$22>'Data Input - General'!$F$34,0,'Data Input - Option 5'!BQ$6+'Data Input - General'!$F$22))","v":0},{"$f":"IF($C$9=0,\"\",IF(BR$6+'Data Input - General'!$F$22>'Data Input - General'!$F$34,0,'Data Input - Option 5'!BR$6+'Data Input - General'!$F$22))","v":0},{"$f":"IF($C$9=0,\"\",IF(BS$6+'Data Input - General'!$F$22>'Data Input - General'!$F$34,0,'Data Input - Option 5'!BS$6+'Data Input - General'!$F$22))","v":0},{"$f":"IF($C$9=0,\"\",IF(BT$6+'Data Input - General'!$F$22>'Data Input - General'!$F$34,0,'Data Input - Option 5'!BT$6+'Data Input - General'!$F$22))","v":0},{"$f":"IF($C$9=0,\"\",IF(BU$6+'Data Input - General'!$F$22>'Data Input - General'!$F$34,0,'Data Input - Option 5'!BU$6+'Data Input - General'!$F$22))","v":0},{"$f":"IF($C$9=0,\"\",IF(BV$6+'Data Input - General'!$F$22>'Data Input - General'!$F$34,0,'Data Input - Option 5'!BV$6+'Data Input - General'!$F$22))","v":0},{"$f":"IF($C$9=0,\"\",IF(BW$6+'Data Input - General'!$F$22>'Data Input - General'!$F$34,0,'Data Input - Option 5'!BW$6+'Data Input - General'!$F$22))","v":0},{"$f":"IF($C$9=0,\"\",IF(BX$6+'Data Input - General'!$F$22>'Data Input - General'!$F$34,0,'Data Input - Option 5'!BX$6+'Data Input - General'!$F$22))","v":0},{"$f":"IF($C$9=0,\"\",IF(BY$6+'Data Input - General'!$F$22>'Data Input - General'!$F$34,0,'Data Input - Option 5'!BY$6+'Data Input - General'!$F$22))","v":0},{"$f":"IF($C$9=0,\"\",IF(BZ$6+'Data Input - General'!$F$22>'Data Input - General'!$F$34,0,'Data Input - Option 5'!BZ$6+'Data Input - General'!$F$22))","v":0},{"$f":"IF($C$9=0,\"\",IF(CA$6+'Data Input - General'!$F$22>'Data Input - General'!$F$34,0,'Data Input - Option 5'!CA$6+'Data Input - General'!$F$22))","v":0},{"$f":"IF($C$9=0,\"\",IF(CB$6+'Data Input - General'!$F$22>'Data Input - General'!$F$34,0,'Data Input - Option 5'!CB$6+'Data Input - General'!$F$22))","v":0},{"$f":"IF($C$9=0,\"\",IF(CC$6+'Data Input - General'!$F$22>'Data Input - General'!$F$34,0,'Data Input - Option 5'!CC$6+'Data Input - General'!$F$22))","v":0},{"$f":"IF($C$9=0,\"\",IF(CD$6+'Data Input - General'!$F$22>'Data Input - General'!$F$34,0,'Data Input - Option 5'!CD$6+'Data Input - General'!$F$22))","v":0},{"$f":"IF($C$9=0,\"\",IF(CE$6+'Data Input - General'!$F$22>'Data Input - General'!$F$34,0,'Data Input - Option 5'!CE$6+'Data Input - General'!$F$22))","v":0},{"$f":"IF($C$9=0,\"\",IF(CF$6+'Data Input - General'!$F$22>'Data Input - General'!$F$34,0,'Data Input - Option 5'!CF$6+'Data Input - General'!$F$22))","v":0},{"$f":"IF($C$9=0,\"\",IF(CG$6+'Data Input - General'!$F$22>'Data Input - General'!$F$34,0,'Data Input - Option 5'!CG$6+'Data Input - General'!$F$22))","v":0},{"$f":"IF($C$9=0,\"\",IF(CH$6+'Data Input - General'!$F$22>'Data Input - General'!$F$34,0,'Data Input - Option 5'!CH$6+'Data Input - General'!$F$22))","v":0},{"$f":"IF($C$9=0,\"\",IF(CI$6+'Data Input - General'!$F$22>'Data Input - General'!$F$34,0,'Data Input - Option 5'!CI$6+'Data Input - General'!$F$22))","v":0},{"$f":"IF($C$9=0,\"\",IF(CJ$6+'Data Input - General'!$F$22>'Data Input - General'!$F$34,0,'Data Input - Option 5'!CJ$6+'Data Input - General'!$F$22))","v":0},{"$f":"IF($C$9=0,\"\",IF(CK$6+'Data Input - General'!$F$22>'Data Input - General'!$F$34,0,'Data Input - Option 5'!CK$6+'Data Input - General'!$F$22))","v":0},{"$f":"IF($C$9=0,\"\",IF(CL$6+'Data Input - General'!$F$22>'Data Input - General'!$F$34,0,'Data Input - Option 5'!CL$6+'Data Input - General'!$F$22))","v":0},{"$f":"IF($C$9=0,\"\",IF(CM$6+'Data Input - General'!$F$22>'Data Input - General'!$F$34,0,'Data Input - Option 5'!CM$6+'Data Input - General'!$F$22))","v":0},{"$f":"IF($C$9=0,\"\",IF(CN$6+'Data Input - General'!$F$22>'Data Input - General'!$F$34,0,'Data Input - Option 5'!CN$6+'Data Input - General'!$F$22))","v":0},{"$f":"IF($C$9=0,\"\",IF(CO$6+'Data Input - General'!$F$22>'Data Input - General'!$F$34,0,'Data Input - Option 5'!CO$6+'Data Input - General'!$F$22))","v":0},{"$f":"IF($C$9=0,\"\",IF(CP$6+'Data Input - General'!$F$22>'Data Input - General'!$F$34,0,'Data Input - Option 5'!CP$6+'Data Input - General'!$F$22))","v":0},{"$f":"IF($C$9=0,\"\",IF(CQ$6+'Data Input - General'!$F$22>'Data Input - General'!$F$34,0,'Data Input - Option 5'!CQ$6+'Data Input - General'!$F$22))","v":0},{"$f":"IF($C$9=0,\"\",IF(CR$6+'Data Input - General'!$F$22>'Data Input - General'!$F$34,0,'Data Input - Option 5'!CR$6+'Data Input - General'!$F$22))","v":0},{"$f":"IF($C$9=0,\"\",IF(CS$6+'Data Input - General'!$F$22>'Data Input - General'!$F$34,0,'Data Input - Option 5'!CS$6+'Data Input - General'!$F$22))","v":0},{"$f":"IF($C$9=0,\"\",IF(CT$6+'Data Input - General'!$F$22>'Data Input - General'!$F$34,0,'Data Input - Option 5'!CT$6+'Data Input - General'!$F$22))","v":0},{"$f":"IF($C$9=0,\"\",IF(CU$6+'Data Input - General'!$F$22>'Data Input - General'!$F$34,0,'Data Input - Option 5'!CU$6+'Data Input - General'!$F$22))","v":0},{"$f":"IF($C$9=0,\"\",IF(CV$6+'Data Input - General'!$F$22>'Data Input - General'!$F$34,0,'Data Input - Option 5'!CV$6+'Data Input - General'!$F$22))","v":0},{"$f":"IF($C$9=0,\"\",IF(CW$6+'Data Input - General'!$F$22>'Data Input - General'!$F$34,0,'Data Input - Option 5'!CW$6+'Data Input - General'!$F$22))","v":0},{"$f":"IF($C$9=0,\"\",IF(CX$6+'Data Input - General'!$F$22>'Data Input - General'!$F$34,0,'Data Input - Option 5'!CX$6+'Data Input - General'!$F$22))","v":0},{"$f":"IF($C$9=0,\"\",IF(CY$6+'Data Input - General'!$F$22>'Data Input - General'!$F$34,0,'Data Input - Option 5'!CY$6+'Data Input - General'!$F$22))","v":0},{"$f":"IF($C$9=0,\"\",IF(CZ$6+'Data Input - General'!$F$22>'Data Input - General'!$F$34,0,'Data Input - Option 5'!CZ$6+'Data Input - General'!$F$22))","v":0},{"$f":"IF($C$9=0,\"\",IF(DA$6+'Data Input - General'!$F$22>'Data Input - General'!$F$34,0,'Data Input - Option 5'!DA$6+'Data Input - General'!$F$22))","v":0},{"$f":"IF($C$9=0,\"\",IF(DB$6+'Data Input - General'!$F$22>'Data Input - General'!$F$34,0,'Data Input - Option 5'!DB$6+'Data Input - General'!$F$22))","v":0},{"$f":"IF($C$9=0,\"\",IF(DC$6+'Data Input - General'!$F$22>'Data Input - General'!$F$34,0,'Data Input - Option 5'!DC$6+'Data Input - General'!$F$22))","v":0}]
[]
[null,null,{"$f":"IF('Data Input - General'!K24=\"\",\"Nothing Selected - Do not Complete this Section\",'Data Input - General'!K24)","v":"Nothing Selected - Do not Complete this Section"},null,"(?)"]
[]
[null,null,"Upfront investment costs",null,"(?)"]
[]
[null,null,null,"Equipment"]
[null,null,9.1,"Primary emission control equipment","£000's"]
[null,null,9.1999999999999993,"Auxiliary equipment","£000's"]
[null,null,9.3000000000000007,"Instrumentation","£000's"]
[null,null,9.4,"Modifications to existing equipment","£000's"]
[null,null,9.5,"Major refurbishment","£000's"]
[null,null,null,"Set-up costs"]
[null,null,"9.6","Land","£000's"]
[null,null,"9.7","Site preparation","£000's"]
[null,null,"9.8","Civils","£000's"]
[null,null,"9.9","Materials","£000's"]
[null,null,"9.10","Other (please specify)","£000's"]
[null,null,null,"Other capex"]
[null,null,"9.11","Residual value of existing technology (where replaced)","£000's"]
[null,null,"9.12","Project planning (if not in civils)","£000's"]
[null,null,"9.13","Other (please specify)","£000's"]
[]
[null,null,null,"Total upfront investment costs by year (non-discounted)","£000's","(Auto calculated value)",null,{"$f":"SUM(H14:H29)","v":0},{"$f":"SUM(I14:I29)","v":0},{"$f":"SUM(J14:J29)","v":0},{"$f":"SUM(K14:K29)","v":0},{"$f":"SUM(L14:L29)","v":0},0,0,0,0,0,0,0,0,0,0,0,0,0,0,0,0,0,0,0,0,0,0,0,0,0,0,0,0,0,0,0,0,0,0,0,0,0,0,0,0,0,0,0,0,0,0,0,0,0,0,0,0,0,0,0,0,0,0,0,0,0,0,0,{"$f":"SUM(BX14:BX29)","v":0},0,0,0,0,0,0,0,0,0,0,0,0,0,0,0,0,0,0,0,0,0,0,0,0,0,0,0,0,0,0,0]
[]
[null,null,null,"Total upfront investment costs for all years (non-discounted)",null,"(Auto calculated value)",null,{"$f":"SUM(H30:DC30)","v":0}]
[]
[null,null,"9.14","Uncertainty range around upfront investment costs","+/-%"]
[]
[null,null,null,"Cost of capital (financing)","(?)"]
[null,null,"9.15","Enter financing costs manually?",null,null,null,"<(Select from dropdown)"]
[]
[null,null,"9.16","Financing costs - WACC (if entered manually)                       (?)","£000's"]
[]
[null,null,"9.17","Financing costs - Low WACC (if entered manually)","£000's"]
[null,null,"9.18","Financing costs - High WACC (if entered manually)","£000's"]
[]
[null,null,"Operating Costs",null,"(?)"]
[]
[null,null,"9.19","Labour                                                                                           (?)","£000's"]
[null,null,"9.20","Maintenance","£000's"]
[null,null,"9.21","Other (please specify)","£000's"]
[]
[null,null,null,"Total operating and maintenance costs by year (non-discounted)","£000's","(Auto calculated value)",null,{"$f":"SUM(H46:H49)","v":0},{"$f":"SUM(I46:I49)","v":0},0,0,0,0,0,0,0,0,0,0,0,0,0,0,0,0,0,0,0,0,0,0,0,0,0,0,0,0,0,0,0,0,0,0,0,0,0,0,0,0,0,0,0,0,0,0,0,0,0,0,0,0,0,0,0,0,0,0,0,0,0,0,0,{"$f":"SUM(BU46:BU49)","v":0},0,0,0,0,0,0,0,0,0,0,0,0,0,0,0,0,0,0,0,0,0,0,0,0,0,0,0,0,0,0,0,0,0,0]
[]
[null,null,null,"Total operating and maintenance costs for all years (non-discounted)",null,"(Auto calculated value)",null,{"$f":"SUM(H50:DC50)","v":0}]
[]
[null,null,"9.22","Uncertainty range around operating costs","+/-%"]
[]
[null,null,"Waste output",null,"(?)"]
[]
[null,null,null,"Volume of waste"]
[null,null,"9.23","Non-haz waste, reused","Tonnes"]
[null,null,"9.24","Non-haz waste, recycled","Tonnes"]
[null,null,"9.25","Non-haz waste, otherwise recovered","Tonnes"]
[null,null,"9.26","Non-haz waste, disposed","Tonnes"]
[null,null,"9.27","Haz waste, reused","Tonnes"]
[null,null,"9.28","Haz waste, recycled","Tonnes"]
[null,null,"9.29","Haz waste, otherwise recovered","Tonnes"]
[null,null,"9.30","Haz waste, disposed","Tonnes"]
[null,null,"9.31","Other (please specify)","Tonnes ",null,"(?)"]
[null,null,null,"Net cost of waste output"]
[null,null,"9.32","Non-haz waste, reused","£000's"]
[null,null,"9.33","Non-haz waste, recycled","£000's"]
[null,null,"9.34","Non-haz waste, otherwise recovered","£000's"]
[null,null,"9.35","Non-haz waste, disposed","£000's"]
[null,null,"9.36","Haz waste, reused","£000's"]
[null,null,"9.37","Haz waste, recycled","£000's"]
[null,null,"9.38","Haz waste, otherwise recovered","£000's"]
[null,null,"9.39","Haz waste, disposed","£000's"]
[null,null,"9.40","Other (please specify)","£000's"]
[]
[null,null,null,"Total cost of waste output","£000's","(Auto calculated value)",null,{"$f":"SUM(H69:H78)","v":0},{"$f":"SUM(I69:I78)","v":0},{"$f":"SUM(J69:J78)","v":0},{"$f":"SUM(K69:K78)","v":0},{"$f":"SUM(L69:L78)","v":0},0,0,0,0,0,0,0,0,0,0,0,0,0,0,0,0,0,0,0,0,0,0,0,0,0,0,0,0,0,0,0,0,0,0,0,0,0,0,0,0,0,0,0,0,0,0,0,0,0,0,0,0,0,0,0,0,0,0,0,0,0,0,0,{"$f":"SUM(BX69:BX78)","v":0},0,0,0,0,0,0,0,0,0,0,0,0,0,0,0,0,0,0,0,0,0,0,0,0,0,0,0,0,0,0,0]
[]
[null,null,"Energy Consumption"]
[]
[null,null,null,"Quantity of energy consumed"]
[null,null,"9.41","Electricity","kWh"]
[null,null,"9.42","Natural Gas","kWh"]
[null,null,"9.43","Coal","kWh"]
[null,null,"9.44","Gas Oil","litres"]
[null,null,"9.45","Road - Petrol","litres"]
[null,null,"9.46","Road - Diesel","litres"]
[null,null,"9.47","Other (please specify)","kWh"]
[null,null,null,"Value of energy consumed","(?)"]
[null,null,null,{"$f":"D84","v":"Electricity"},"£000's","(Auto calculated value)",null,{"$f":"IFERROR(H84*INDEX('Energy Prices'!$F$12:$CR$17,MATCH('Data Input - Option 5'!$D92,'Energy Prices'!$C$12:$C$17,0),MATCH('Data Input - Option 5'!H$7,'Energy Prices'!$F$11:$CR$11,0))/100000,\"\")","v":0},{"$f":"IFERROR(I84*INDEX('Energy Prices'!$F$12:$CR$17,MATCH('Data Input - Option 5'!$D92,'Energy Prices'!$C$12:$C$17,0),MATCH('Data Input - Option 5'!I$7,'Energy Prices'!$F$11:$CR$11,0))/100000,\"\")","v":0},{"$f":"IFERROR(J84*INDEX('Energy Prices'!$F$12:$CR$17,MATCH('Data Input - Option 5'!$D92,'Energy Prices'!$C$12:$C$17,0),MATCH('Data Input - Option 5'!J$7,'Energy Prices'!$F$11:$CR$11,0))/100000,\"\")","v":0},{"$f":"IFERROR(K84*INDEX('Energy Prices'!$F$12:$CR$17,MATCH('Data Input - Option 5'!$D92,'Energy Prices'!$C$12:$C$17,0),MATCH('Data Input - Option 5'!K$7,'Energy Prices'!$F$11:$CR$11,0))/100000,\"\")","v":0},{"$f":"IFERROR(L84*INDEX('Energy Prices'!$F$12:$CR$17,MATCH('Data Input - Option 5'!$D92,'Energy Prices'!$C$12:$C$17,0),MATCH('Data Input - Option 5'!L$7,'Energy Prices'!$F$11:$CR$11,0))/100000,\"\")","v":0},{"$f":"IFERROR(M84*INDEX('Energy Prices'!$F$12:$CR$17,MATCH('Data Input - Option 5'!$D92,'Energy Prices'!$C$12:$C$17,0),MATCH('Data Input - Option 5'!M$7,'Energy Prices'!$F$11:$CR$11,0))/100000,\"\")","v":0},{"$f":"IFERROR(N84*INDEX('Energy Prices'!$F$12:$CR$17,MATCH('Data Input - Option 5'!$D92,'Energy Prices'!$C$12:$C$17,0),MATCH('Data Input - Option 5'!N$7,'Energy Prices'!$F$11:$CR$11,0))/100000,\"\")","v":0},{"$f":"IFERROR(O84*INDEX('Energy Prices'!$F$12:$CR$17,MATCH('Data Input - Option 5'!$D92,'Energy Prices'!$C$12:$C$17,0),MATCH('Data Input - Option 5'!O$7,'Energy Prices'!$F$11:$CR$11,0))/100000,\"\")","v":0},{"$f":"IFERROR(P84*INDEX('Energy Prices'!$F$12:$CR$17,MATCH('Data Input - Option 5'!$D92,'Energy Prices'!$C$12:$C$17,0),MATCH('Data Input - Option 5'!P$7,'Energy Prices'!$F$11:$CR$11,0))/100000,\"\")","v":0},{"$f":"IFERROR(Q84*INDEX('Energy Prices'!$F$12:$CR$17,MATCH('Data Input - Option 5'!$D92,'Energy Prices'!$C$12:$C$17,0),MATCH('Data Input - Option 5'!Q$7,'Energy Prices'!$F$11:$CR$11,0))/100000,\"\")","v":0},{"$f":"IFERROR(R84*INDEX('Energy Prices'!$F$12:$CR$17,MATCH('Data Input - Option 5'!$D92,'Energy Prices'!$C$12:$C$17,0),MATCH('Data Input - Option 5'!R$7,'Energy Prices'!$F$11:$CR$11,0))/100000,\"\")","v":0},{"$f":"IFERROR(S84*INDEX('Energy Prices'!$F$12:$CR$17,MATCH('Data Input - Option 5'!$D92,'Energy Prices'!$C$12:$C$17,0),MATCH('Data Input - Option 5'!S$7,'Energy Prices'!$F$11:$CR$11,0))/100000,\"\")","v":0},{"$f":"IFERROR(T84*INDEX('Energy Prices'!$F$12:$CR$17,MATCH('Data Input - Option 5'!$D92,'Energy Prices'!$C$12:$C$17,0),MATCH('Data Input - Option 5'!T$7,'Energy Prices'!$F$11:$CR$11,0))/100000,\"\")","v":0},{"$f":"IFERROR(U84*INDEX('Energy Prices'!$F$12:$CR$17,MATCH('Data Input - Option 5'!$D92,'Energy Prices'!$C$12:$C$17,0),MATCH('Data Input - Option 5'!U$7,'Energy Prices'!$F$11:$CR$11,0))/100000,\"\")","v":0},{"$f":"IFERROR(V84*INDEX('Energy Prices'!$F$12:$CR$17,MATCH('Data Input - Option 5'!$D92,'Energy Prices'!$C$12:$C$17,0),MATCH('Data Input - Option 5'!V$7,'Energy Prices'!$F$11:$CR$11,0))/100000,\"\")","v":0},{"$f":"IFERROR(W84*INDEX('Energy Prices'!$F$12:$CR$17,MATCH('Data Input - Option 5'!$D92,'Energy Prices'!$C$12:$C$17,0),MATCH('Data Input - Option 5'!W$7,'Energy Prices'!$F$11:$CR$11,0))/100000,\"\")","v":0},{"$f":"IFERROR(X84*INDEX('Energy Prices'!$F$12:$CR$17,MATCH('Data Input - Option 5'!$D92,'Energy Prices'!$C$12:$C$17,0),MATCH('Data Input - Option 5'!X$7,'Energy Prices'!$F$11:$CR$11,0))/100000,\"\")","v":0},{"$f":"IFERROR(Y84*INDEX('Energy Prices'!$F$12:$CR$17,MATCH('Data Input - Option 5'!$D92,'Energy Prices'!$C$12:$C$17,0),MATCH('Data Input - Option 5'!Y$7,'Energy Prices'!$F$11:$CR$11,0))/100000,\"\")","v":0},{"$f":"IFERROR(Z84*INDEX('Energy Prices'!$F$12:$CR$17,MATCH('Data Input - Option 5'!$D92,'Energy Prices'!$C$12:$C$17,0),MATCH('Data Input - Option 5'!Z$7,'Energy Prices'!$F$11:$CR$11,0))/100000,\"\")","v":0},{"$f":"IFERROR(AA84*INDEX('Energy Prices'!$F$12:$CR$17,MATCH('Data Input - Option 5'!$D92,'Energy Prices'!$C$12:$C$17,0),MATCH('Data Input - Option 5'!AA$7,'Energy Prices'!$F$11:$CR$11,0))/100000,\"\")","v":0},{"$f":"IFERROR(AB84*INDEX('Energy Prices'!$F$12:$CR$17,MATCH('Data Input - Option 5'!$D92,'Energy Prices'!$C$12:$C$17,0),MATCH('Data Input - Option 5'!AB$7,'Energy Prices'!$F$11:$CR$11,0))/100000,\"\")","v":0},{"$f":"IFERROR(AC84*INDEX('Energy Prices'!$F$12:$CR$17,MATCH('Data Input - Option 5'!$D92,'Energy Prices'!$C$12:$C$17,0),MATCH('Data Input - Option 5'!AC$7,'Energy Prices'!$F$11:$CR$11,0))/100000,\"\")","v":0},{"$f":"IFERROR(AD84*INDEX('Energy Prices'!$F$12:$CR$17,MATCH('Data Input - Option 5'!$D92,'Energy Prices'!$C$12:$C$17,0),MATCH('Data Input - Option 5'!AD$7,'Energy Prices'!$F$11:$CR$11,0))/100000,\"\")","v":0},{"$f":"IFERROR(AE84*INDEX('Energy Prices'!$F$12:$CR$17,MATCH('Data Input - Option 5'!$D92,'Energy Prices'!$C$12:$C$17,0),MATCH('Data Input - Option 5'!AE$7,'Energy Prices'!$F$11:$CR$11,0))/100000,\"\")","v":0},{"$f":"IFERROR(AF84*INDEX('Energy Prices'!$F$12:$CR$17,MATCH('Data Input - Option 5'!$D92,'Energy Prices'!$C$12:$C$17,0),MATCH('Data Input - Option 5'!AF$7,'Energy Prices'!$F$11:$CR$11,0))/100000,\"\")","v":0},{"$f":"IFERROR(AG84*INDEX('Energy Prices'!$F$12:$CR$17,MATCH('Data Input - Option 5'!$D92,'Energy Prices'!$C$12:$C$17,0),MATCH('Data Input - Option 5'!AG$7,'Energy Prices'!$F$11:$CR$11,0))/100000,\"\")","v":0},{"$f":"IFERROR(AH84*INDEX('Energy Prices'!$F$12:$CR$17,MATCH('Data Input - Option 5'!$D92,'Energy Prices'!$C$12:$C$17,0),MATCH('Data Input - Option 5'!AH$7,'Energy Prices'!$F$11:$CR$11,0))/100000,\"\")","v":0},{"$f":"IFERROR(AI84*INDEX('Energy Prices'!$F$12:$CR$17,MATCH('Data Input - Option 5'!$D92,'Energy Prices'!$C$12:$C$17,0),MATCH('Data Input - Option 5'!AI$7,'Energy Prices'!$F$11:$CR$11,0))/100000,\"\")","v":0},{"$f":"IFERROR(AJ84*INDEX('Energy Prices'!$F$12:$CR$17,MATCH('Data Input - Option 5'!$D92,'Energy Prices'!$C$12:$C$17,0),MATCH('Data Input - Option 5'!AJ$7,'Energy Prices'!$F$11:$CR$11,0))/100000,\"\")","v":0},{"$f":"IFERROR(AK84*INDEX('Energy Prices'!$F$12:$CR$17,MATCH('Data Input - Option 5'!$D92,'Energy Prices'!$C$12:$C$17,0),MATCH('Data Input - Option 5'!AK$7,'Energy Prices'!$F$11:$CR$11,0))/100000,\"\")","v":0},{"$f":"IFERROR(AL84*INDEX('Energy Prices'!$F$12:$CR$17,MATCH('Data Input - Option 5'!$D92,'Energy Prices'!$C$12:$C$17,0),MATCH('Data Input - Option 5'!AL$7,'Energy Prices'!$F$11:$CR$11,0))/100000,\"\")","v":0},{"$f":"IFERROR(AM84*INDEX('Energy Prices'!$F$12:$CR$17,MATCH('Data Input - Option 5'!$D92,'Energy Prices'!$C$12:$C$17,0),MATCH('Data Input - Option 5'!AM$7,'Energy Prices'!$F$11:$CR$11,0))/100000,\"\")","v":""},{"$f":"IFERROR(AN84*INDEX('Energy Prices'!$F$12:$CR$17,MATCH('Data Input - Option 5'!$D92,'Energy Prices'!$C$12:$C$17,0),MATCH('Data Input - Option 5'!AN$7,'Energy Prices'!$F$11:$CR$11,0))/100000,\"\")","v":""},{"$f":"IFERROR(AO84*INDEX('Energy Prices'!$F$12:$CR$17,MATCH('Data Input - Option 5'!$D92,'Energy Prices'!$C$12:$C$17,0),MATCH('Data Input - Option 5'!AO$7,'Energy Prices'!$F$11:$CR$11,0))/100000,\"\")","v":""},{"$f":"IFERROR(AP84*INDEX('Energy Prices'!$F$12:$CR$17,MATCH('Data Input - Option 5'!$D92,'Energy Prices'!$C$12:$C$17,0),MATCH('Data Input - Option 5'!AP$7,'Energy Prices'!$F$11:$CR$11,0))/100000,\"\")","v":""},{"$f":"IFERROR(AQ84*INDEX('Energy Prices'!$F$12:$CR$17,MATCH('Data Input - Option 5'!$D92,'Energy Prices'!$C$12:$C$17,0),MATCH('Data Input - Option 5'!AQ$7,'Energy Prices'!$F$11:$CR$11,0))/100000,\"\")","v":""},{"$f":"IFERROR(AR84*INDEX('Energy Prices'!$F$12:$CR$17,MATCH('Data Input - Option 5'!$D92,'Energy Prices'!$C$12:$C$17,0),MATCH('Data Input - Option 5'!AR$7,'Energy Prices'!$F$11:$CR$11,0))/100000,\"\")","v":""},{"$f":"IFERROR(AS84*INDEX('Energy Prices'!$F$12:$CR$17,MATCH('Data Input - Option 5'!$D92,'Energy Prices'!$C$12:$C$17,0),MATCH('Data Input - Option 5'!AS$7,'Energy Prices'!$F$11:$CR$11,0))/100000,\"\")","v":""},{"$f":"IFERROR(AT84*INDEX('Energy Prices'!$F$12:$CR$17,MATCH('Data Input - Option 5'!$D92,'Energy Prices'!$C$12:$C$17,0),MATCH('Data Input - Option 5'!AT$7,'Energy Prices'!$F$11:$CR$11,0))/100000,\"\")","v":""},{"$f":"IFERROR(AU84*INDEX('Energy Prices'!$F$12:$CR$17,MATCH('Data Input - Option 5'!$D92,'Energy Prices'!$C$12:$C$17,0),MATCH('Data Input - Option 5'!AU$7,'Energy Prices'!$F$11:$CR$11,0))/100000,\"\")","v":""},{"$f":"IFERROR(AV84*INDEX('Energy Prices'!$F$12:$CR$17,MATCH('Data Input - Option 5'!$D92,'Energy Prices'!$C$12:$C$17,0),MATCH('Data Input - Option 5'!AV$7,'Energy Prices'!$F$11:$CR$11,0))/100000,\"\")","v":""},{"$f":"IFERROR(AW84*INDEX('Energy Prices'!$F$12:$CR$17,MATCH('Data Input - Option 5'!$D92,'Energy Prices'!$C$12:$C$17,0),MATCH('Data Input - Option 5'!AW$7,'Energy Prices'!$F$11:$CR$11,0))/100000,\"\")","v":""},{"$f":"IFERROR(AX84*INDEX('Energy Prices'!$F$12:$CR$17,MATCH('Data Input - Option 5'!$D92,'Energy Prices'!$C$12:$C$17,0),MATCH('Data Input - Option 5'!AX$7,'Energy Prices'!$F$11:$CR$11,0))/100000,\"\")","v":""},{"$f":"IFERROR(AY84*INDEX('Energy Prices'!$F$12:$CR$17,MATCH('Data Input - Option 5'!$D92,'Energy Prices'!$C$12:$C$17,0),MATCH('Data Input - Option 5'!AY$7,'Energy Prices'!$F$11:$CR$11,0))/100000,\"\")","v":""},{"$f":"IFERROR(AZ84*INDEX('Energy Prices'!$F$12:$CR$17,MATCH('Data Input - Option 5'!$D92,'Energy Prices'!$C$12:$C$17,0),MATCH('Data Input - Option 5'!AZ$7,'Energy Prices'!$F$11:$CR$11,0))/100000,\"\")","v":""},{"$f":"IFERROR(BA84*INDEX('Energy Prices'!$F$12:$CR$17,MATCH('Data Input - Option 5'!$D92,'Energy Prices'!$C$12:$C$17,0),MATCH('Data Input - Option 5'!BA$7,'Energy Prices'!$F$11:$CR$11,0))/100000,\"\")","v":""},{"$f":"IFERROR(BB84*INDEX('Energy Prices'!$F$12:$CR$17,MATCH('Data Input - Option 5'!$D92,'Energy Prices'!$C$12:$C$17,0),MATCH('Data Input - Option 5'!BB$7,'Energy Prices'!$F$11:$CR$11,0))/100000,\"\")","v":""},{"$f":"IFERROR(BC84*INDEX('Energy Prices'!$F$12:$CR$17,MATCH('Data Input - Option 5'!$D92,'Energy Prices'!$C$12:$C$17,0),MATCH('Data Input - Option 5'!BC$7,'Energy Prices'!$F$11:$CR$11,0))/100000,\"\")","v":""},{"$f":"IFERROR(BD84*INDEX('Energy Prices'!$F$12:$CR$17,MATCH('Data Input - Option 5'!$D92,'Energy Prices'!$C$12:$C$17,0),MATCH('Data Input - Option 5'!BD$7,'Energy Prices'!$F$11:$CR$11,0))/100000,\"\")","v":""},{"$f":"IFERROR(BE84*INDEX('Energy Prices'!$F$12:$CR$17,MATCH('Data Input - Option 5'!$D92,'Energy Prices'!$C$12:$C$17,0),MATCH('Data Input - Option 5'!BE$7,'Energy Prices'!$F$11:$CR$11,0))/100000,\"\")","v":""},{"$f":"IFERROR(BF84*INDEX('Energy Prices'!$F$12:$CR$17,MATCH('Data Input - Option 5'!$D92,'Energy Prices'!$C$12:$C$17,0),MATCH('Data Input - Option 5'!BF$7,'Energy Prices'!$F$11:$CR$11,0))/100000,\"\")","v":""},{"$f":"IFERROR(BG84*INDEX('Energy Prices'!$F$12:$CR$17,MATCH('Data Input - Option 5'!$D92,'Energy Prices'!$C$12:$C$17,0),MATCH('Data Input - Option 5'!BG$7,'Energy Prices'!$F$11:$CR$11,0))/100000,\"\")","v":""},{"$f":"IFERROR(BH84*INDEX('Energy Prices'!$F$12:$CR$17,MATCH('Data Input - Option 5'!$D92,'Energy Prices'!$C$12:$C$17,0),MATCH('Data Input - Option 5'!BH$7,'Energy Prices'!$F$11:$CR$11,0))/100000,\"\")","v":""},{"$f":"IFERROR(BI84*INDEX('Energy Prices'!$F$12:$CR$17,MATCH('Data Input - Option 5'!$D92,'Energy Prices'!$C$12:$C$17,0),MATCH('Data Input - Option 5'!BI$7,'Energy Prices'!$F$11:$CR$11,0))/100000,\"\")","v":""},{"$f":"IFERROR(BJ84*INDEX('Energy Prices'!$F$12:$CR$17,MATCH('Data Input - Option 5'!$D92,'Energy Prices'!$C$12:$C$17,0),MATCH('Data Input - Option 5'!BJ$7,'Energy Prices'!$F$11:$CR$11,0))/100000,\"\")","v":""},{"$f":"IFERROR(BK84*INDEX('Energy Prices'!$F$12:$CR$17,MATCH('Data Input - Option 5'!$D92,'Energy Prices'!$C$12:$C$17,0),MATCH('Data Input - Option 5'!BK$7,'Energy Prices'!$F$11:$CR$11,0))/100000,\"\")","v":""},{"$f":"IFERROR(BL84*INDEX('Energy Prices'!$F$12:$CR$17,MATCH('Data Input - Option 5'!$D92,'Energy Prices'!$C$12:$C$17,0),MATCH('Data Input - Option 5'!BL$7,'Energy Prices'!$F$11:$CR$11,0))/100000,\"\")","v":""},{"$f":"IFERROR(BM84*INDEX('Energy Prices'!$F$12:$CR$17,MATCH('Data Input - Option 5'!$D92,'Energy Prices'!$C$12:$C$17,0),MATCH('Data Input - Option 5'!BM$7,'Energy Prices'!$F$11:$CR$11,0))/100000,\"\")","v":""},{"$f":"IFERROR(BN84*INDEX('Energy Prices'!$F$12:$CR$17,MATCH('Data Input - Option 5'!$D92,'Energy Prices'!$C$12:$C$17,0),MATCH('Data Input - Option 5'!BN$7,'Energy Prices'!$F$11:$CR$11,0))/100000,\"\")","v":""},{"$f":"IFERROR(BO84*INDEX('Energy Prices'!$F$12:$CR$17,MATCH('Data Input - Option 5'!$D92,'Energy Prices'!$C$12:$C$17,0),MATCH('Data Input - Option 5'!BO$7,'Energy Prices'!$F$11:$CR$11,0))/100000,\"\")","v":""},{"$f":"IFERROR(BP84*INDEX('Energy Prices'!$F$12:$CR$17,MATCH('Data Input - Option 5'!$D92,'Energy Prices'!$C$12:$C$17,0),MATCH('Data Input - Option 5'!BP$7,'Energy Prices'!$F$11:$CR$11,0))/100000,\"\")","v":""},{"$f":"IFERROR(BQ84*INDEX('Energy Prices'!$F$12:$CR$17,MATCH('Data Input - Option 5'!$D92,'Energy Prices'!$C$12:$C$17,0),MATCH('Data Input - Option 5'!BQ$7,'Energy Prices'!$F$11:$CR$11,0))/100000,\"\")","v":""},{"$f":"IFERROR(BR84*INDEX('Energy Prices'!$F$12:$CR$17,MATCH('Data Input - Option 5'!$D92,'Energy Prices'!$C$12:$C$17,0),MATCH('Data Input - Option 5'!BR$7,'Energy Prices'!$F$11:$CR$11,0))/100000,\"\")","v":""},{"$f":"IFERROR(BS84*INDEX('Energy Prices'!$F$12:$CR$17,MATCH('Data Input - Option 5'!$D92,'Energy Prices'!$C$12:$C$17,0),MATCH('Data Input - Option 5'!BS$7,'Energy Prices'!$F$11:$CR$11,0))/100000,\"\")","v":""},{"$f":"IFERROR(BT84*INDEX('Energy Prices'!$F$12:$CR$17,MATCH('Data Input - Option 5'!$D92,'Energy Prices'!$C$12:$C$17,0),MATCH('Data Input - Option 5'!BT$7,'Energy Prices'!$F$11:$CR$11,0))/100000,\"\")","v":""},{"$f":"IFERROR(BU84*INDEX('Energy Prices'!$F$12:$CR$17,MATCH('Data Input - Option 5'!$D92,'Energy Prices'!$C$12:$C$17,0),MATCH('Data Input - Option 5'!BU$7,'Energy Prices'!$F$11:$CR$11,0))/100000,\"\")","v":""},{"$f":"IFERROR(BV84*INDEX('Energy Prices'!$F$12:$CR$17,MATCH('Data Input - Option 5'!$D92,'Energy Prices'!$C$12:$C$17,0),MATCH('Data Input - Option 5'!BV$7,'Energy Prices'!$F$11:$CR$11,0))/100000,\"\")","v":""},{"$f":"IFERROR(BW84*INDEX('Energy Prices'!$F$12:$CR$17,MATCH('Data Input - Option 5'!$D92,'Energy Prices'!$C$12:$C$17,0),MATCH('Data Input - Option 5'!BW$7,'Energy Prices'!$F$11:$CR$11,0))/100000,\"\")","v":""},{"$f":"IFERROR(BX84*INDEX('Energy Prices'!$F$12:$CR$17,MATCH('Data Input - Option 5'!$D92,'Energy Prices'!$C$12:$C$17,0),MATCH('Data Input - Option 5'!BX$7,'Energy Prices'!$F$11:$CR$11,0))/100000,\"\")","v":""},{"$f":"IFERROR(BY84*INDEX('Energy Prices'!$F$12:$CR$17,MATCH('Data Input - Option 5'!$D92,'Energy Prices'!$C$12:$C$17,0),MATCH('Data Input - Option 5'!BY$7,'Energy Prices'!$F$11:$CR$11,0))/100000,\"\")","v":""},{"$f":"IFERROR(BZ84*INDEX('Energy Prices'!$F$12:$CR$17,MATCH('Data Input - Option 5'!$D92,'Energy Prices'!$C$12:$C$17,0),MATCH('Data Input - Option 5'!BZ$7,'Energy Prices'!$F$11:$CR$11,0))/100000,\"\")","v":""},{"$f":"IFERROR(CA84*INDEX('Energy Prices'!$F$12:$CR$17,MATCH('Data Input - Option 5'!$D92,'Energy Prices'!$C$12:$C$17,0),MATCH('Data Input - Option 5'!CA$7,'Energy Prices'!$F$11:$CR$11,0))/100000,\"\")","v":""},{"$f":"IFERROR(CB84*INDEX('Energy Prices'!$F$12:$CR$17,MATCH('Data Input - Option 5'!$D92,'Energy Prices'!$C$12:$C$17,0),MATCH('Data Input - Option 5'!CB$7,'Energy Prices'!$F$11:$CR$11,0))/100000,\"\")","v":""},{"$f":"IFERROR(CC84*INDEX('Energy Prices'!$F$12:$CR$17,MATCH('Data Input - Option 5'!$D92,'Energy Prices'!$C$12:$C$17,0),MATCH('Data Input - Option 5'!CC$7,'Energy Prices'!$F$11:$CR$11,0))/100000,\"\")","v":""},{"$f":"IFERROR(CD84*INDEX('Energy Prices'!$F$12:$CR$17,MATCH('Data Input - Option 5'!$D92,'Energy Prices'!$C$12:$C$17,0),MATCH('Data Input - Option 5'!CD$7,'Energy Prices'!$F$11:$CR$11,0))/100000,\"\")","v":""},{"$f":"IFERROR(CE84*INDEX('Energy Prices'!$F$12:$CR$17,MATCH('Data Input - Option 5'!$D92,'Energy Prices'!$C$12:$C$17,0),MATCH('Data Input - Option 5'!CE$7,'Energy Prices'!$F$11:$CR$11,0))/100000,\"\")","v":""},{"$f":"IFERROR(CF84*INDEX('Energy Prices'!$F$12:$CR$17,MATCH('Data Input - Option 5'!$D92,'Energy Prices'!$C$12:$C$17,0),MATCH('Data Input - Option 5'!CF$7,'Energy Prices'!$F$11:$CR$11,0))/100000,\"\")","v":""},{"$f":"IFERROR(CG84*INDEX('Energy Prices'!$F$12:$CR$17,MATCH('Data Input - Option 5'!$D92,'Energy Prices'!$C$12:$C$17,0),MATCH('Data Input - Option 5'!CG$7,'Energy Prices'!$F$11:$CR$11,0))/100000,\"\")","v":""},{"$f":"IFERROR(CH84*INDEX('Energy Prices'!$F$12:$CR$17,MATCH('Data Input - Option 5'!$D92,'Energy Prices'!$C$12:$C$17,0),MATCH('Data Input - Option 5'!CH$7,'Energy Prices'!$F$11:$CR$11,0))/100000,\"\")","v":""},{"$f":"IFERROR(CI84*INDEX('Energy Prices'!$F$12:$CR$17,MATCH('Data Input - Option 5'!$D92,'Energy Prices'!$C$12:$C$17,0),MATCH('Data Input - Option 5'!CI$7,'Energy Prices'!$F$11:$CR$11,0))/100000,\"\")","v":""},{"$f":"IFERROR(CJ84*INDEX('Energy Prices'!$F$12:$CR$17,MATCH('Data Input - Option 5'!$D92,'Energy Prices'!$C$12:$C$17,0),MATCH('Data Input - Option 5'!CJ$7,'Energy Prices'!$F$11:$CR$11,0))/100000,\"\")","v":""},{"$f":"IFERROR(CK84*INDEX('Energy Prices'!$F$12:$CR$17,MATCH('Data Input - Option 5'!$D92,'Energy Prices'!$C$12:$C$17,0),MATCH('Data Input - Option 5'!CK$7,'Energy Prices'!$F$11:$CR$11,0))/100000,\"\")","v":""},{"$f":"IFERROR(CL84*INDEX('Energy Prices'!$F$12:$CR$17,MATCH('Data Input - Option 5'!$D92,'Energy Prices'!$C$12:$C$17,0),MATCH('Data Input - Option 5'!CL$7,'Energy Prices'!$F$11:$CR$11,0))/100000,\"\")","v":""},{"$f":"IFERROR(CM84*INDEX('Energy Prices'!$F$12:$CR$17,MATCH('Data Input - Option 5'!$D92,'Energy Prices'!$C$12:$C$17,0),MATCH('Data Input - Option 5'!CM$7,'Energy Prices'!$F$11:$CR$11,0))/100000,\"\")","v":""},{"$f":"IFERROR(CN84*INDEX('Energy Prices'!$F$12:$CR$17,MATCH('Data Input - Option 5'!$D92,'Energy Prices'!$C$12:$C$17,0),MATCH('Data Input - Option 5'!CN$7,'Energy Prices'!$F$11:$CR$11,0))/100000,\"\")","v":""},{"$f":"IFERROR(CO84*INDEX('Energy Prices'!$F$12:$CR$17,MATCH('Data Input - Option 5'!$D92,'Energy Prices'!$C$12:$C$17,0),MATCH('Data Input - Option 5'!CO$7,'Energy Prices'!$F$11:$CR$11,0))/100000,\"\")","v":""},{"$f":"IFERROR(CP84*INDEX('Energy Prices'!$F$12:$CR$17,MATCH('Data Input - Option 5'!$D92,'Energy Prices'!$C$12:$C$17,0),MATCH('Data Input - Option 5'!CP$7,'Energy Prices'!$F$11:$CR$11,0))/100000,\"\")","v":""},{"$f":"IFERROR(CQ84*INDEX('Energy Prices'!$F$12:$CR$17,MATCH('Data Input - Option 5'!$D92,'Energy Prices'!$C$12:$C$17,0),MATCH('Data Input - Option 5'!CQ$7,'Energy Prices'!$F$11:$CR$11,0))/100000,\"\")","v":""},{"$f":"IFERROR(CR84*INDEX('Energy Prices'!$F$12:$CR$17,MATCH('Data Input - Option 5'!$D92,'Energy Prices'!$C$12:$C$17,0),MATCH('Data Input - Option 5'!CR$7,'Energy Prices'!$F$11:$CR$11,0))/100000,\"\")","v":""},{"$f":"IFERROR(CS84*INDEX('Energy Prices'!$F$12:$CR$17,MATCH('Data Input - Option 5'!$D92,'Energy Prices'!$C$12:$C$17,0),MATCH('Data Input - Option 5'!CS$7,'Energy Prices'!$F$11:$CR$11,0))/100000,\"\")","v":""},{"$f":"IFERROR(CT84*INDEX('Energy Prices'!$F$12:$CR$17,MATCH('Data Input - Option 5'!$D92,'Energy Prices'!$C$12:$C$17,0),MATCH('Data Input - Option 5'!CT$7,'Energy Prices'!$F$11:$CR$11,0))/100000,\"\")","v":""},{"$f":"IFERROR(CU84*INDEX('Energy Prices'!$F$12:$CR$17,MATCH('Data Input - Option 5'!$D92,'Energy Prices'!$C$12:$C$17,0),MATCH('Data Input - Option 5'!CU$7,'Energy Prices'!$F$11:$CR$11,0))/100000,\"\")","v":""},{"$f":"IFERROR(CV84*INDEX('Energy Prices'!$F$12:$CR$17,MATCH('Data Input - Option 5'!$D92,'Energy Prices'!$C$12:$C$17,0),MATCH('Data Input - Option 5'!CV$7,'Energy Prices'!$F$11:$CR$11,0))/100000,\"\")","v":""},{"$f":"IFERROR(CW84*INDEX('Energy Prices'!$F$12:$CR$17,MATCH('Data Input - Option 5'!$D92,'Energy Prices'!$C$12:$C$17,0),MATCH('Data Input - Option 5'!CW$7,'Energy Prices'!$F$11:$CR$11,0))/100000,\"\")","v":""},{"$f":"IFERROR(CX84*INDEX('Energy Prices'!$F$12:$CR$17,MATCH('Data Input - Option 5'!$D92,'Energy Prices'!$C$12:$C$17,0),MATCH('Data Input - Option 5'!CX$7,'Energy Prices'!$F$11:$CR$11,0))/100000,\"\")","v":""},{"$f":"IFERROR(CY84*INDEX('Energy Prices'!$F$12:$CR$17,MATCH('Data Input - Option 5'!$D92,'Energy Prices'!$C$12:$C$17,0),MATCH('Data Input - Option 5'!CY$7,'Energy Prices'!$F$11:$CR$11,0))/100000,\"\")","v":""},{"$f":"IFERROR(CZ84*INDEX('Energy Prices'!$F$12:$CR$17,MATCH('Data Input - Option 5'!$D92,'Energy Prices'!$C$12:$C$17,0),MATCH('Data Input - Option 5'!CZ$7,'Energy Prices'!$F$11:$CR$11,0))/100000,\"\")","v":""},{"$f":"IFERROR(DA84*INDEX('Energy Prices'!$F$12:$CR$17,MATCH('Data Input - Option 5'!$D92,'Energy Prices'!$C$12:$C$17,0),MATCH('Data Input - Option 5'!DA$7,'Energy Prices'!$F$11:$CR$11,0))/100000,\"\")","v":""},{"$f":"IFERROR(DB84*INDEX('Energy Prices'!$F$12:$CR$17,MATCH('Data Input - Option 5'!$D92,'Energy Prices'!$C$12:$C$17,0),MATCH('Data Input - Option 5'!DB$7,'Energy Prices'!$F$11:$CR$11,0))/100000,\"\")","v":""},{"$f":"IFERROR(DC84*INDEX('Energy Prices'!$F$12:$CR$17,MATCH('Data Input - Option 5'!$D92,'Energy Prices'!$C$12:$C$17,0),MATCH('Data Input - Option 5'!DC$7,'Energy Prices'!$F$11:$CR$11,0))/100000,\"\")","v":""}]
[null,null,null,{"$f":"D85","v":"Natural Gas"},"£000's","(Auto calculated value)",null,{"$f":"IFERROR(H85*INDEX('Energy Prices'!$F$12:$CR$17,MATCH('Data Input - Option 5'!$D93,'Energy Prices'!$C$12:$C$17,0),MATCH('Data Input - Option 5'!H$7,'Energy Prices'!$F$11:$CR$11,0))/100000,\"\")","v":0},{"$f":"IFERROR(I85*INDEX('Energy Prices'!$F$12:$CR$17,MATCH('Data Input - Option 5'!$D93,'Energy Prices'!$C$12:$C$17,0),MATCH('Data Input - Option 5'!I$7,'Energy Prices'!$F$11:$CR$11,0))/100000,\"\")","v":0},{"$f":"IFERROR(J85*INDEX('Energy Prices'!$F$12:$CR$17,MATCH('Data Input - Option 5'!$D93,'Energy Prices'!$C$12:$C$17,0),MATCH('Data Input - Option 5'!J$7,'Energy Prices'!$F$11:$CR$11,0))/100000,\"\")","v":0},{"$f":"IFERROR(K85*INDEX('Energy Prices'!$F$12:$CR$17,MATCH('Data Input - Option 5'!$D93,'Energy Prices'!$C$12:$C$17,0),MATCH('Data Input - Option 5'!K$7,'Energy Prices'!$F$11:$CR$11,0))/100000,\"\")","v":0},{"$f":"IFERROR(L85*INDEX('Energy Prices'!$F$12:$CR$17,MATCH('Data Input - Option 5'!$D93,'Energy Prices'!$C$12:$C$17,0),MATCH('Data Input - Option 5'!L$7,'Energy Prices'!$F$11:$CR$11,0))/100000,\"\")","v":0},{"$f":"IFERROR(M85*INDEX('Energy Prices'!$F$12:$CR$17,MATCH('Data Input - Option 5'!$D93,'Energy Prices'!$C$12:$C$17,0),MATCH('Data Input - Option 5'!M$7,'Energy Prices'!$F$11:$CR$11,0))/100000,\"\")","v":0},{"$f":"IFERROR(N85*INDEX('Energy Prices'!$F$12:$CR$17,MATCH('Data Input - Option 5'!$D93,'Energy Prices'!$C$12:$C$17,0),MATCH('Data Input - Option 5'!N$7,'Energy Prices'!$F$11:$CR$11,0))/100000,\"\")","v":0},{"$f":"IFERROR(O85*INDEX('Energy Prices'!$F$12:$CR$17,MATCH('Data Input - Option 5'!$D93,'Energy Prices'!$C$12:$C$17,0),MATCH('Data Input - Option 5'!O$7,'Energy Prices'!$F$11:$CR$11,0))/100000,\"\")","v":0},{"$f":"IFERROR(P85*INDEX('Energy Prices'!$F$12:$CR$17,MATCH('Data Input - Option 5'!$D93,'Energy Prices'!$C$12:$C$17,0),MATCH('Data Input - Option 5'!P$7,'Energy Prices'!$F$11:$CR$11,0))/100000,\"\")","v":0},{"$f":"IFERROR(Q85*INDEX('Energy Prices'!$F$12:$CR$17,MATCH('Data Input - Option 5'!$D93,'Energy Prices'!$C$12:$C$17,0),MATCH('Data Input - Option 5'!Q$7,'Energy Prices'!$F$11:$CR$11,0))/100000,\"\")","v":0},{"$f":"IFERROR(R85*INDEX('Energy Prices'!$F$12:$CR$17,MATCH('Data Input - Option 5'!$D93,'Energy Prices'!$C$12:$C$17,0),MATCH('Data Input - Option 5'!R$7,'Energy Prices'!$F$11:$CR$11,0))/100000,\"\")","v":0},{"$f":"IFERROR(S85*INDEX('Energy Prices'!$F$12:$CR$17,MATCH('Data Input - Option 5'!$D93,'Energy Prices'!$C$12:$C$17,0),MATCH('Data Input - Option 5'!S$7,'Energy Prices'!$F$11:$CR$11,0))/100000,\"\")","v":0},{"$f":"IFERROR(T85*INDEX('Energy Prices'!$F$12:$CR$17,MATCH('Data Input - Option 5'!$D93,'Energy Prices'!$C$12:$C$17,0),MATCH('Data Input - Option 5'!T$7,'Energy Prices'!$F$11:$CR$11,0))/100000,\"\")","v":0},{"$f":"IFERROR(U85*INDEX('Energy Prices'!$F$12:$CR$17,MATCH('Data Input - Option 5'!$D93,'Energy Prices'!$C$12:$C$17,0),MATCH('Data Input - Option 5'!U$7,'Energy Prices'!$F$11:$CR$11,0))/100000,\"\")","v":0},{"$f":"IFERROR(V85*INDEX('Energy Prices'!$F$12:$CR$17,MATCH('Data Input - Option 5'!$D93,'Energy Prices'!$C$12:$C$17,0),MATCH('Data Input - Option 5'!V$7,'Energy Prices'!$F$11:$CR$11,0))/100000,\"\")","v":0},{"$f":"IFERROR(W85*INDEX('Energy Prices'!$F$12:$CR$17,MATCH('Data Input - Option 5'!$D93,'Energy Prices'!$C$12:$C$17,0),MATCH('Data Input - Option 5'!W$7,'Energy Prices'!$F$11:$CR$11,0))/100000,\"\")","v":0},{"$f":"IFERROR(X85*INDEX('Energy Prices'!$F$12:$CR$17,MATCH('Data Input - Option 5'!$D93,'Energy Prices'!$C$12:$C$17,0),MATCH('Data Input - Option 5'!X$7,'Energy Prices'!$F$11:$CR$11,0))/100000,\"\")","v":0},{"$f":"IFERROR(Y85*INDEX('Energy Prices'!$F$12:$CR$17,MATCH('Data Input - Option 5'!$D93,'Energy Prices'!$C$12:$C$17,0),MATCH('Data Input - Option 5'!Y$7,'Energy Prices'!$F$11:$CR$11,0))/100000,\"\")","v":0},{"$f":"IFERROR(Z85*INDEX('Energy Prices'!$F$12:$CR$17,MATCH('Data Input - Option 5'!$D93,'Energy Prices'!$C$12:$C$17,0),MATCH('Data Input - Option 5'!Z$7,'Energy Prices'!$F$11:$CR$11,0))/100000,\"\")","v":0},{"$f":"IFERROR(AA85*INDEX('Energy Prices'!$F$12:$CR$17,MATCH('Data Input - Option 5'!$D93,'Energy Prices'!$C$12:$C$17,0),MATCH('Data Input - Option 5'!AA$7,'Energy Prices'!$F$11:$CR$11,0))/100000,\"\")","v":0},{"$f":"IFERROR(AB85*INDEX('Energy Prices'!$F$12:$CR$17,MATCH('Data Input - Option 5'!$D93,'Energy Prices'!$C$12:$C$17,0),MATCH('Data Input - Option 5'!AB$7,'Energy Prices'!$F$11:$CR$11,0))/100000,\"\")","v":0},{"$f":"IFERROR(AC85*INDEX('Energy Prices'!$F$12:$CR$17,MATCH('Data Input - Option 5'!$D93,'Energy Prices'!$C$12:$C$17,0),MATCH('Data Input - Option 5'!AC$7,'Energy Prices'!$F$11:$CR$11,0))/100000,\"\")","v":0},{"$f":"IFERROR(AD85*INDEX('Energy Prices'!$F$12:$CR$17,MATCH('Data Input - Option 5'!$D93,'Energy Prices'!$C$12:$C$17,0),MATCH('Data Input - Option 5'!AD$7,'Energy Prices'!$F$11:$CR$11,0))/100000,\"\")","v":0},{"$f":"IFERROR(AE85*INDEX('Energy Prices'!$F$12:$CR$17,MATCH('Data Input - Option 5'!$D93,'Energy Prices'!$C$12:$C$17,0),MATCH('Data Input - Option 5'!AE$7,'Energy Prices'!$F$11:$CR$11,0))/100000,\"\")","v":0},{"$f":"IFERROR(AF85*INDEX('Energy Prices'!$F$12:$CR$17,MATCH('Data Input - Option 5'!$D93,'Energy Prices'!$C$12:$C$17,0),MATCH('Data Input - Option 5'!AF$7,'Energy Prices'!$F$11:$CR$11,0))/100000,\"\")","v":0},{"$f":"IFERROR(AG85*INDEX('Energy Prices'!$F$12:$CR$17,MATCH('Data Input - Option 5'!$D93,'Energy Prices'!$C$12:$C$17,0),MATCH('Data Input - Option 5'!AG$7,'Energy Prices'!$F$11:$CR$11,0))/100000,\"\")","v":0},{"$f":"IFERROR(AH85*INDEX('Energy Prices'!$F$12:$CR$17,MATCH('Data Input - Option 5'!$D93,'Energy Prices'!$C$12:$C$17,0),MATCH('Data Input - Option 5'!AH$7,'Energy Prices'!$F$11:$CR$11,0))/100000,\"\")","v":0},{"$f":"IFERROR(AI85*INDEX('Energy Prices'!$F$12:$CR$17,MATCH('Data Input - Option 5'!$D93,'Energy Prices'!$C$12:$C$17,0),MATCH('Data Input - Option 5'!AI$7,'Energy Prices'!$F$11:$CR$11,0))/100000,\"\")","v":0},{"$f":"IFERROR(AJ85*INDEX('Energy Prices'!$F$12:$CR$17,MATCH('Data Input - Option 5'!$D93,'Energy Prices'!$C$12:$C$17,0),MATCH('Data Input - Option 5'!AJ$7,'Energy Prices'!$F$11:$CR$11,0))/100000,\"\")","v":0},{"$f":"IFERROR(AK85*INDEX('Energy Prices'!$F$12:$CR$17,MATCH('Data Input - Option 5'!$D93,'Energy Prices'!$C$12:$C$17,0),MATCH('Data Input - Option 5'!AK$7,'Energy Prices'!$F$11:$CR$11,0))/100000,\"\")","v":0},{"$f":"IFERROR(AL85*INDEX('Energy Prices'!$F$12:$CR$17,MATCH('Data Input - Option 5'!$D93,'Energy Prices'!$C$12:$C$17,0),MATCH('Data Input - Option 5'!AL$7,'Energy Prices'!$F$11:$CR$11,0))/100000,\"\")","v":0},{"$f":"IFERROR(AM85*INDEX('Energy Prices'!$F$12:$CR$17,MATCH('Data Input - Option 5'!$D93,'Energy Prices'!$C$12:$C$17,0),MATCH('Data Input - Option 5'!AM$7,'Energy Prices'!$F$11:$CR$11,0))/100000,\"\")","v":""},{"$f":"IFERROR(AN85*INDEX('Energy Prices'!$F$12:$CR$17,MATCH('Data Input - Option 5'!$D93,'Energy Prices'!$C$12:$C$17,0),MATCH('Data Input - Option 5'!AN$7,'Energy Prices'!$F$11:$CR$11,0))/100000,\"\")","v":""},{"$f":"IFERROR(AO85*INDEX('Energy Prices'!$F$12:$CR$17,MATCH('Data Input - Option 5'!$D93,'Energy Prices'!$C$12:$C$17,0),MATCH('Data Input - Option 5'!AO$7,'Energy Prices'!$F$11:$CR$11,0))/100000,\"\")","v":""},{"$f":"IFERROR(AP85*INDEX('Energy Prices'!$F$12:$CR$17,MATCH('Data Input - Option 5'!$D93,'Energy Prices'!$C$12:$C$17,0),MATCH('Data Input - Option 5'!AP$7,'Energy Prices'!$F$11:$CR$11,0))/100000,\"\")","v":""},{"$f":"IFERROR(AQ85*INDEX('Energy Prices'!$F$12:$CR$17,MATCH('Data Input - Option 5'!$D93,'Energy Prices'!$C$12:$C$17,0),MATCH('Data Input - Option 5'!AQ$7,'Energy Prices'!$F$11:$CR$11,0))/100000,\"\")","v":""},{"$f":"IFERROR(AR85*INDEX('Energy Prices'!$F$12:$CR$17,MATCH('Data Input - Option 5'!$D93,'Energy Prices'!$C$12:$C$17,0),MATCH('Data Input - Option 5'!AR$7,'Energy Prices'!$F$11:$CR$11,0))/100000,\"\")","v":""},{"$f":"IFERROR(AS85*INDEX('Energy Prices'!$F$12:$CR$17,MATCH('Data Input - Option 5'!$D93,'Energy Prices'!$C$12:$C$17,0),MATCH('Data Input - Option 5'!AS$7,'Energy Prices'!$F$11:$CR$11,0))/100000,\"\")","v":""},{"$f":"IFERROR(AT85*INDEX('Energy Prices'!$F$12:$CR$17,MATCH('Data Input - Option 5'!$D93,'Energy Prices'!$C$12:$C$17,0),MATCH('Data Input - Option 5'!AT$7,'Energy Prices'!$F$11:$CR$11,0))/100000,\"\")","v":""},{"$f":"IFERROR(AU85*INDEX('Energy Prices'!$F$12:$CR$17,MATCH('Data Input - Option 5'!$D93,'Energy Prices'!$C$12:$C$17,0),MATCH('Data Input - Option 5'!AU$7,'Energy Prices'!$F$11:$CR$11,0))/100000,\"\")","v":""},{"$f":"IFERROR(AV85*INDEX('Energy Prices'!$F$12:$CR$17,MATCH('Data Input - Option 5'!$D93,'Energy Prices'!$C$12:$C$17,0),MATCH('Data Input - Option 5'!AV$7,'Energy Prices'!$F$11:$CR$11,0))/100000,\"\")","v":""},{"$f":"IFERROR(AW85*INDEX('Energy Prices'!$F$12:$CR$17,MATCH('Data Input - Option 5'!$D93,'Energy Prices'!$C$12:$C$17,0),MATCH('Data Input - Option 5'!AW$7,'Energy Prices'!$F$11:$CR$11,0))/100000,\"\")","v":""},{"$f":"IFERROR(AX85*INDEX('Energy Prices'!$F$12:$CR$17,MATCH('Data Input - Option 5'!$D93,'Energy Prices'!$C$12:$C$17,0),MATCH('Data Input - Option 5'!AX$7,'Energy Prices'!$F$11:$CR$11,0))/100000,\"\")","v":""},{"$f":"IFERROR(AY85*INDEX('Energy Prices'!$F$12:$CR$17,MATCH('Data Input - Option 5'!$D93,'Energy Prices'!$C$12:$C$17,0),MATCH('Data Input - Option 5'!AY$7,'Energy Prices'!$F$11:$CR$11,0))/100000,\"\")","v":""},{"$f":"IFERROR(AZ85*INDEX('Energy Prices'!$F$12:$CR$17,MATCH('Data Input - Option 5'!$D93,'Energy Prices'!$C$12:$C$17,0),MATCH('Data Input - Option 5'!AZ$7,'Energy Prices'!$F$11:$CR$11,0))/100000,\"\")","v":""},{"$f":"IFERROR(BA85*INDEX('Energy Prices'!$F$12:$CR$17,MATCH('Data Input - Option 5'!$D93,'Energy Prices'!$C$12:$C$17,0),MATCH('Data Input - Option 5'!BA$7,'Energy Prices'!$F$11:$CR$11,0))/100000,\"\")","v":""},{"$f":"IFERROR(BB85*INDEX('Energy Prices'!$F$12:$CR$17,MATCH('Data Input - Option 5'!$D93,'Energy Prices'!$C$12:$C$17,0),MATCH('Data Input - Option 5'!BB$7,'Energy Prices'!$F$11:$CR$11,0))/100000,\"\")","v":""},{"$f":"IFERROR(BC85*INDEX('Energy Prices'!$F$12:$CR$17,MATCH('Data Input - Option 5'!$D93,'Energy Prices'!$C$12:$C$17,0),MATCH('Data Input - Option 5'!BC$7,'Energy Prices'!$F$11:$CR$11,0))/100000,\"\")","v":""},{"$f":"IFERROR(BD85*INDEX('Energy Prices'!$F$12:$CR$17,MATCH('Data Input - Option 5'!$D93,'Energy Prices'!$C$12:$C$17,0),MATCH('Data Input - Option 5'!BD$7,'Energy Prices'!$F$11:$CR$11,0))/100000,\"\")","v":""},{"$f":"IFERROR(BE85*INDEX('Energy Prices'!$F$12:$CR$17,MATCH('Data Input - Option 5'!$D93,'Energy Prices'!$C$12:$C$17,0),MATCH('Data Input - Option 5'!BE$7,'Energy Prices'!$F$11:$CR$11,0))/100000,\"\")","v":""},{"$f":"IFERROR(BF85*INDEX('Energy Prices'!$F$12:$CR$17,MATCH('Data Input - Option 5'!$D93,'Energy Prices'!$C$12:$C$17,0),MATCH('Data Input - Option 5'!BF$7,'Energy Prices'!$F$11:$CR$11,0))/100000,\"\")","v":""},{"$f":"IFERROR(BG85*INDEX('Energy Prices'!$F$12:$CR$17,MATCH('Data Input - Option 5'!$D93,'Energy Prices'!$C$12:$C$17,0),MATCH('Data Input - Option 5'!BG$7,'Energy Prices'!$F$11:$CR$11,0))/100000,\"\")","v":""},{"$f":"IFERROR(BH85*INDEX('Energy Prices'!$F$12:$CR$17,MATCH('Data Input - Option 5'!$D93,'Energy Prices'!$C$12:$C$17,0),MATCH('Data Input - Option 5'!BH$7,'Energy Prices'!$F$11:$CR$11,0))/100000,\"\")","v":""},{"$f":"IFERROR(BI85*INDEX('Energy Prices'!$F$12:$CR$17,MATCH('Data Input - Option 5'!$D93,'Energy Prices'!$C$12:$C$17,0),MATCH('Data Input - Option 5'!BI$7,'Energy Prices'!$F$11:$CR$11,0))/100000,\"\")","v":""},{"$f":"IFERROR(BJ85*INDEX('Energy Prices'!$F$12:$CR$17,MATCH('Data Input - Option 5'!$D93,'Energy Prices'!$C$12:$C$17,0),MATCH('Data Input - Option 5'!BJ$7,'Energy Prices'!$F$11:$CR$11,0))/100000,\"\")","v":""},{"$f":"IFERROR(BK85*INDEX('Energy Prices'!$F$12:$CR$17,MATCH('Data Input - Option 5'!$D93,'Energy Prices'!$C$12:$C$17,0),MATCH('Data Input - Option 5'!BK$7,'Energy Prices'!$F$11:$CR$11,0))/100000,\"\")","v":""},{"$f":"IFERROR(BL85*INDEX('Energy Prices'!$F$12:$CR$17,MATCH('Data Input - Option 5'!$D93,'Energy Prices'!$C$12:$C$17,0),MATCH('Data Input - Option 5'!BL$7,'Energy Prices'!$F$11:$CR$11,0))/100000,\"\")","v":""},{"$f":"IFERROR(BM85*INDEX('Energy Prices'!$F$12:$CR$17,MATCH('Data Input - Option 5'!$D93,'Energy Prices'!$C$12:$C$17,0),MATCH('Data Input - Option 5'!BM$7,'Energy Prices'!$F$11:$CR$11,0))/100000,\"\")","v":""},{"$f":"IFERROR(BN85*INDEX('Energy Prices'!$F$12:$CR$17,MATCH('Data Input - Option 5'!$D93,'Energy Prices'!$C$12:$C$17,0),MATCH('Data Input - Option 5'!BN$7,'Energy Prices'!$F$11:$CR$11,0))/100000,\"\")","v":""},{"$f":"IFERROR(BO85*INDEX('Energy Prices'!$F$12:$CR$17,MATCH('Data Input - Option 5'!$D93,'Energy Prices'!$C$12:$C$17,0),MATCH('Data Input - Option 5'!BO$7,'Energy Prices'!$F$11:$CR$11,0))/100000,\"\")","v":""},{"$f":"IFERROR(BP85*INDEX('Energy Prices'!$F$12:$CR$17,MATCH('Data Input - Option 5'!$D93,'Energy Prices'!$C$12:$C$17,0),MATCH('Data Input - Option 5'!BP$7,'Energy Prices'!$F$11:$CR$11,0))/100000,\"\")","v":""},{"$f":"IFERROR(BQ85*INDEX('Energy Prices'!$F$12:$CR$17,MATCH('Data Input - Option 5'!$D93,'Energy Prices'!$C$12:$C$17,0),MATCH('Data Input - Option 5'!BQ$7,'Energy Prices'!$F$11:$CR$11,0))/100000,\"\")","v":""},{"$f":"IFERROR(BR85*INDEX('Energy Prices'!$F$12:$CR$17,MATCH('Data Input - Option 5'!$D93,'Energy Prices'!$C$12:$C$17,0),MATCH('Data Input - Option 5'!BR$7,'Energy Prices'!$F$11:$CR$11,0))/100000,\"\")","v":""},{"$f":"IFERROR(BS85*INDEX('Energy Prices'!$F$12:$CR$17,MATCH('Data Input - Option 5'!$D93,'Energy Prices'!$C$12:$C$17,0),MATCH('Data Input - Option 5'!BS$7,'Energy Prices'!$F$11:$CR$11,0))/100000,\"\")","v":""},{"$f":"IFERROR(BT85*INDEX('Energy Prices'!$F$12:$CR$17,MATCH('Data Input - Option 5'!$D93,'Energy Prices'!$C$12:$C$17,0),MATCH('Data Input - Option 5'!BT$7,'Energy Prices'!$F$11:$CR$11,0))/100000,\"\")","v":""},{"$f":"IFERROR(BU85*INDEX('Energy Prices'!$F$12:$CR$17,MATCH('Data Input - Option 5'!$D93,'Energy Prices'!$C$12:$C$17,0),MATCH('Data Input - Option 5'!BU$7,'Energy Prices'!$F$11:$CR$11,0))/100000,\"\")","v":""},{"$f":"IFERROR(BV85*INDEX('Energy Prices'!$F$12:$CR$17,MATCH('Data Input - Option 5'!$D93,'Energy Prices'!$C$12:$C$17,0),MATCH('Data Input - Option 5'!BV$7,'Energy Prices'!$F$11:$CR$11,0))/100000,\"\")","v":""},{"$f":"IFERROR(BW85*INDEX('Energy Prices'!$F$12:$CR$17,MATCH('Data Input - Option 5'!$D93,'Energy Prices'!$C$12:$C$17,0),MATCH('Data Input - Option 5'!BW$7,'Energy Prices'!$F$11:$CR$11,0))/100000,\"\")","v":""},{"$f":"IFERROR(BX85*INDEX('Energy Prices'!$F$12:$CR$17,MATCH('Data Input - Option 5'!$D93,'Energy Prices'!$C$12:$C$17,0),MATCH('Data Input - Option 5'!BX$7,'Energy Prices'!$F$11:$CR$11,0))/100000,\"\")","v":""},{"$f":"IFERROR(BY85*INDEX('Energy Prices'!$F$12:$CR$17,MATCH('Data Input - Option 5'!$D93,'Energy Prices'!$C$12:$C$17,0),MATCH('Data Input - Option 5'!BY$7,'Energy Prices'!$F$11:$CR$11,0))/100000,\"\")","v":""},{"$f":"IFERROR(BZ85*INDEX('Energy Prices'!$F$12:$CR$17,MATCH('Data Input - Option 5'!$D93,'Energy Prices'!$C$12:$C$17,0),MATCH('Data Input - Option 5'!BZ$7,'Energy Prices'!$F$11:$CR$11,0))/100000,\"\")","v":""},{"$f":"IFERROR(CA85*INDEX('Energy Prices'!$F$12:$CR$17,MATCH('Data Input - Option 5'!$D93,'Energy Prices'!$C$12:$C$17,0),MATCH('Data Input - Option 5'!CA$7,'Energy Prices'!$F$11:$CR$11,0))/100000,\"\")","v":""},{"$f":"IFERROR(CB85*INDEX('Energy Prices'!$F$12:$CR$17,MATCH('Data Input - Option 5'!$D93,'Energy Prices'!$C$12:$C$17,0),MATCH('Data Input - Option 5'!CB$7,'Energy Prices'!$F$11:$CR$11,0))/100000,\"\")","v":""},{"$f":"IFERROR(CC85*INDEX('Energy Prices'!$F$12:$CR$17,MATCH('Data Input - Option 5'!$D93,'Energy Prices'!$C$12:$C$17,0),MATCH('Data Input - Option 5'!CC$7,'Energy Prices'!$F$11:$CR$11,0))/100000,\"\")","v":""},{"$f":"IFERROR(CD85*INDEX('Energy Prices'!$F$12:$CR$17,MATCH('Data Input - Option 5'!$D93,'Energy Prices'!$C$12:$C$17,0),MATCH('Data Input - Option 5'!CD$7,'Energy Prices'!$F$11:$CR$11,0))/100000,\"\")","v":""},{"$f":"IFERROR(CE85*INDEX('Energy Prices'!$F$12:$CR$17,MATCH('Data Input - Option 5'!$D93,'Energy Prices'!$C$12:$C$17,0),MATCH('Data Input - Option 5'!CE$7,'Energy Prices'!$F$11:$CR$11,0))/100000,\"\")","v":""},{"$f":"IFERROR(CF85*INDEX('Energy Prices'!$F$12:$CR$17,MATCH('Data Input - Option 5'!$D93,'Energy Prices'!$C$12:$C$17,0),MATCH('Data Input - Option 5'!CF$7,'Energy Prices'!$F$11:$CR$11,0))/100000,\"\")","v":""},{"$f":"IFERROR(CG85*INDEX('Energy Prices'!$F$12:$CR$17,MATCH('Data Input - Option 5'!$D93,'Energy Prices'!$C$12:$C$17,0),MATCH('Data Input - Option 5'!CG$7,'Energy Prices'!$F$11:$CR$11,0))/100000,\"\")","v":""},{"$f":"IFERROR(CH85*INDEX('Energy Prices'!$F$12:$CR$17,MATCH('Data Input - Option 5'!$D93,'Energy Prices'!$C$12:$C$17,0),MATCH('Data Input - Option 5'!CH$7,'Energy Prices'!$F$11:$CR$11,0))/100000,\"\")","v":""},{"$f":"IFERROR(CI85*INDEX('Energy Prices'!$F$12:$CR$17,MATCH('Data Input - Option 5'!$D93,'Energy Prices'!$C$12:$C$17,0),MATCH('Data Input - Option 5'!CI$7,'Energy Prices'!$F$11:$CR$11,0))/100000,\"\")","v":""},{"$f":"IFERROR(CJ85*INDEX('Energy Prices'!$F$12:$CR$17,MATCH('Data Input - Option 5'!$D93,'Energy Prices'!$C$12:$C$17,0),MATCH('Data Input - Option 5'!CJ$7,'Energy Prices'!$F$11:$CR$11,0))/100000,\"\")","v":""},{"$f":"IFERROR(CK85*INDEX('Energy Prices'!$F$12:$CR$17,MATCH('Data Input - Option 5'!$D93,'Energy Prices'!$C$12:$C$17,0),MATCH('Data Input - Option 5'!CK$7,'Energy Prices'!$F$11:$CR$11,0))/100000,\"\")","v":""},{"$f":"IFERROR(CL85*INDEX('Energy Prices'!$F$12:$CR$17,MATCH('Data Input - Option 5'!$D93,'Energy Prices'!$C$12:$C$17,0),MATCH('Data Input - Option 5'!CL$7,'Energy Prices'!$F$11:$CR$11,0))/100000,\"\")","v":""},{"$f":"IFERROR(CM85*INDEX('Energy Prices'!$F$12:$CR$17,MATCH('Data Input - Option 5'!$D93,'Energy Prices'!$C$12:$C$17,0),MATCH('Data Input - Option 5'!CM$7,'Energy Prices'!$F$11:$CR$11,0))/100000,\"\")","v":""},{"$f":"IFERROR(CN85*INDEX('Energy Prices'!$F$12:$CR$17,MATCH('Data Input - Option 5'!$D93,'Energy Prices'!$C$12:$C$17,0),MATCH('Data Input - Option 5'!CN$7,'Energy Prices'!$F$11:$CR$11,0))/100000,\"\")","v":""},{"$f":"IFERROR(CO85*INDEX('Energy Prices'!$F$12:$CR$17,MATCH('Data Input - Option 5'!$D93,'Energy Prices'!$C$12:$C$17,0),MATCH('Data Input - Option 5'!CO$7,'Energy Prices'!$F$11:$CR$11,0))/100000,\"\")","v":""},{"$f":"IFERROR(CP85*INDEX('Energy Prices'!$F$12:$CR$17,MATCH('Data Input - Option 5'!$D93,'Energy Prices'!$C$12:$C$17,0),MATCH('Data Input - Option 5'!CP$7,'Energy Prices'!$F$11:$CR$11,0))/100000,\"\")","v":""},{"$f":"IFERROR(CQ85*INDEX('Energy Prices'!$F$12:$CR$17,MATCH('Data Input - Option 5'!$D93,'Energy Prices'!$C$12:$C$17,0),MATCH('Data Input - Option 5'!CQ$7,'Energy Prices'!$F$11:$CR$11,0))/100000,\"\")","v":""},{"$f":"IFERROR(CR85*INDEX('Energy Prices'!$F$12:$CR$17,MATCH('Data Input - Option 5'!$D93,'Energy Prices'!$C$12:$C$17,0),MATCH('Data Input - Option 5'!CR$7,'Energy Prices'!$F$11:$CR$11,0))/100000,\"\")","v":""},{"$f":"IFERROR(CS85*INDEX('Energy Prices'!$F$12:$CR$17,MATCH('Data Input - Option 5'!$D93,'Energy Prices'!$C$12:$C$17,0),MATCH('Data Input - Option 5'!CS$7,'Energy Prices'!$F$11:$CR$11,0))/100000,\"\")","v":""},{"$f":"IFERROR(CT85*INDEX('Energy Prices'!$F$12:$CR$17,MATCH('Data Input - Option 5'!$D93,'Energy Prices'!$C$12:$C$17,0),MATCH('Data Input - Option 5'!CT$7,'Energy Prices'!$F$11:$CR$11,0))/100000,\"\")","v":""},{"$f":"IFERROR(CU85*INDEX('Energy Prices'!$F$12:$CR$17,MATCH('Data Input - Option 5'!$D93,'Energy Prices'!$C$12:$C$17,0),MATCH('Data Input - Option 5'!CU$7,'Energy Prices'!$F$11:$CR$11,0))/100000,\"\")","v":""},{"$f":"IFERROR(CV85*INDEX('Energy Prices'!$F$12:$CR$17,MATCH('Data Input - Option 5'!$D93,'Energy Prices'!$C$12:$C$17,0),MATCH('Data Input - Option 5'!CV$7,'Energy Prices'!$F$11:$CR$11,0))/100000,\"\")","v":""},{"$f":"IFERROR(CW85*INDEX('Energy Prices'!$F$12:$CR$17,MATCH('Data Input - Option 5'!$D93,'Energy Prices'!$C$12:$C$17,0),MATCH('Data Input - Option 5'!CW$7,'Energy Prices'!$F$11:$CR$11,0))/100000,\"\")","v":""},{"$f":"IFERROR(CX85*INDEX('Energy Prices'!$F$12:$CR$17,MATCH('Data Input - Option 5'!$D93,'Energy Prices'!$C$12:$C$17,0),MATCH('Data Input - Option 5'!CX$7,'Energy Prices'!$F$11:$CR$11,0))/100000,\"\")","v":""},{"$f":"IFERROR(CY85*INDEX('Energy Prices'!$F$12:$CR$17,MATCH('Data Input - Option 5'!$D93,'Energy Prices'!$C$12:$C$17,0),MATCH('Data Input - Option 5'!CY$7,'Energy Prices'!$F$11:$CR$11,0))/100000,\"\")","v":""},{"$f":"IFERROR(CZ85*INDEX('Energy Prices'!$F$12:$CR$17,MATCH('Data Input - Option 5'!$D93,'Energy Prices'!$C$12:$C$17,0),MATCH('Data Input - Option 5'!CZ$7,'Energy Prices'!$F$11:$CR$11,0))/100000,\"\")","v":""},{"$f":"IFERROR(DA85*INDEX('Energy Prices'!$F$12:$CR$17,MATCH('Data Input - Option 5'!$D93,'Energy Prices'!$C$12:$C$17,0),MATCH('Data Input - Option 5'!DA$7,'Energy Prices'!$F$11:$CR$11,0))/100000,\"\")","v":""},{"$f":"IFERROR(DB85*INDEX('Energy Prices'!$F$12:$CR$17,MATCH('Data Input - Option 5'!$D93,'Energy Prices'!$C$12:$C$17,0),MATCH('Data Input - Option 5'!DB$7,'Energy Prices'!$F$11:$CR$11,0))/100000,\"\")","v":""},{"$f":"IFERROR(DC85*INDEX('Energy Prices'!$F$12:$CR$17,MATCH('Data Input - Option 5'!$D93,'Energy Prices'!$C$12:$C$17,0),MATCH('Data Input - Option 5'!DC$7,'Energy Prices'!$F$11:$CR$11,0))/100000,\"\")","v":""}]
[null,null,null,"Coal","£000's","(Auto calculated value)",null,{"$f":"IFERROR(H86*INDEX('Energy Prices'!$F$12:$CR$17,MATCH('Data Input - Option 5'!$D94,'Energy Prices'!$C$12:$C$17,0),MATCH('Data Input - Option 5'!H$7,'Energy Prices'!$F$11:$CR$11,0))/100000,\"\")","v":0},{"$f":"IFERROR(I86*INDEX('Energy Prices'!$F$12:$CR$17,MATCH('Data Input - Option 5'!$D94,'Energy Prices'!$C$12:$C$17,0),MATCH('Data Input - Option 5'!I$7,'Energy Prices'!$F$11:$CR$11,0))/100000,\"\")","v":0},{"$f":"IFERROR(J86*INDEX('Energy Prices'!$F$12:$CR$17,MATCH('Data Input - Option 5'!$D94,'Energy Prices'!$C$12:$C$17,0),MATCH('Data Input - Option 5'!J$7,'Energy Prices'!$F$11:$CR$11,0))/100000,\"\")","v":0},{"$f":"IFERROR(K86*INDEX('Energy Prices'!$F$12:$CR$17,MATCH('Data Input - Option 5'!$D94,'Energy Prices'!$C$12:$C$17,0),MATCH('Data Input - Option 5'!K$7,'Energy Prices'!$F$11:$CR$11,0))/100000,\"\")","v":0},{"$f":"IFERROR(L86*INDEX('Energy Prices'!$F$12:$CR$17,MATCH('Data Input - Option 5'!$D94,'Energy Prices'!$C$12:$C$17,0),MATCH('Data Input - Option 5'!L$7,'Energy Prices'!$F$11:$CR$11,0))/100000,\"\")","v":0},{"$f":"IFERROR(M86*INDEX('Energy Prices'!$F$12:$CR$17,MATCH('Data Input - Option 5'!$D94,'Energy Prices'!$C$12:$C$17,0),MATCH('Data Input - Option 5'!M$7,'Energy Prices'!$F$11:$CR$11,0))/100000,\"\")","v":0},{"$f":"IFERROR(N86*INDEX('Energy Prices'!$F$12:$CR$17,MATCH('Data Input - Option 5'!$D94,'Energy Prices'!$C$12:$C$17,0),MATCH('Data Input - Option 5'!N$7,'Energy Prices'!$F$11:$CR$11,0))/100000,\"\")","v":0},{"$f":"IFERROR(O86*INDEX('Energy Prices'!$F$12:$CR$17,MATCH('Data Input - Option 5'!$D94,'Energy Prices'!$C$12:$C$17,0),MATCH('Data Input - Option 5'!O$7,'Energy Prices'!$F$11:$CR$11,0))/100000,\"\")","v":0},{"$f":"IFERROR(P86*INDEX('Energy Prices'!$F$12:$CR$17,MATCH('Data Input - Option 5'!$D94,'Energy Prices'!$C$12:$C$17,0),MATCH('Data Input - Option 5'!P$7,'Energy Prices'!$F$11:$CR$11,0))/100000,\"\")","v":0},{"$f":"IFERROR(Q86*INDEX('Energy Prices'!$F$12:$CR$17,MATCH('Data Input - Option 5'!$D94,'Energy Prices'!$C$12:$C$17,0),MATCH('Data Input - Option 5'!Q$7,'Energy Prices'!$F$11:$CR$11,0))/100000,\"\")","v":0},{"$f":"IFERROR(R86*INDEX('Energy Prices'!$F$12:$CR$17,MATCH('Data Input - Option 5'!$D94,'Energy Prices'!$C$12:$C$17,0),MATCH('Data Input - Option 5'!R$7,'Energy Prices'!$F$11:$CR$11,0))/100000,\"\")","v":0},{"$f":"IFERROR(S86*INDEX('Energy Prices'!$F$12:$CR$17,MATCH('Data Input - Option 5'!$D94,'Energy Prices'!$C$12:$C$17,0),MATCH('Data Input - Option 5'!S$7,'Energy Prices'!$F$11:$CR$11,0))/100000,\"\")","v":0},{"$f":"IFERROR(T86*INDEX('Energy Prices'!$F$12:$CR$17,MATCH('Data Input - Option 5'!$D94,'Energy Prices'!$C$12:$C$17,0),MATCH('Data Input - Option 5'!T$7,'Energy Prices'!$F$11:$CR$11,0))/100000,\"\")","v":0},{"$f":"IFERROR(U86*INDEX('Energy Prices'!$F$12:$CR$17,MATCH('Data Input - Option 5'!$D94,'Energy Prices'!$C$12:$C$17,0),MATCH('Data Input - Option 5'!U$7,'Energy Prices'!$F$11:$CR$11,0))/100000,\"\")","v":0},{"$f":"IFERROR(V86*INDEX('Energy Prices'!$F$12:$CR$17,MATCH('Data Input - Option 5'!$D94,'Energy Prices'!$C$12:$C$17,0),MATCH('Data Input - Option 5'!V$7,'Energy Prices'!$F$11:$CR$11,0))/100000,\"\")","v":0},{"$f":"IFERROR(W86*INDEX('Energy Prices'!$F$12:$CR$17,MATCH('Data Input - Option 5'!$D94,'Energy Prices'!$C$12:$C$17,0),MATCH('Data Input - Option 5'!W$7,'Energy Prices'!$F$11:$CR$11,0))/100000,\"\")","v":0},{"$f":"IFERROR(X86*INDEX('Energy Prices'!$F$12:$CR$17,MATCH('Data Input - Option 5'!$D94,'Energy Prices'!$C$12:$C$17,0),MATCH('Data Input - Option 5'!X$7,'Energy Prices'!$F$11:$CR$11,0))/100000,\"\")","v":0},{"$f":"IFERROR(Y86*INDEX('Energy Prices'!$F$12:$CR$17,MATCH('Data Input - Option 5'!$D94,'Energy Prices'!$C$12:$C$17,0),MATCH('Data Input - Option 5'!Y$7,'Energy Prices'!$F$11:$CR$11,0))/100000,\"\")","v":0},{"$f":"IFERROR(Z86*INDEX('Energy Prices'!$F$12:$CR$17,MATCH('Data Input - Option 5'!$D94,'Energy Prices'!$C$12:$C$17,0),MATCH('Data Input - Option 5'!Z$7,'Energy Prices'!$F$11:$CR$11,0))/100000,\"\")","v":0},{"$f":"IFERROR(AA86*INDEX('Energy Prices'!$F$12:$CR$17,MATCH('Data Input - Option 5'!$D94,'Energy Prices'!$C$12:$C$17,0),MATCH('Data Input - Option 5'!AA$7,'Energy Prices'!$F$11:$CR$11,0))/100000,\"\")","v":0},{"$f":"IFERROR(AB86*INDEX('Energy Prices'!$F$12:$CR$17,MATCH('Data Input - Option 5'!$D94,'Energy Prices'!$C$12:$C$17,0),MATCH('Data Input - Option 5'!AB$7,'Energy Prices'!$F$11:$CR$11,0))/100000,\"\")","v":0},{"$f":"IFERROR(AC86*INDEX('Energy Prices'!$F$12:$CR$17,MATCH('Data Input - Option 5'!$D94,'Energy Prices'!$C$12:$C$17,0),MATCH('Data Input - Option 5'!AC$7,'Energy Prices'!$F$11:$CR$11,0))/100000,\"\")","v":0},{"$f":"IFERROR(AD86*INDEX('Energy Prices'!$F$12:$CR$17,MATCH('Data Input - Option 5'!$D94,'Energy Prices'!$C$12:$C$17,0),MATCH('Data Input - Option 5'!AD$7,'Energy Prices'!$F$11:$CR$11,0))/100000,\"\")","v":0},{"$f":"IFERROR(AE86*INDEX('Energy Prices'!$F$12:$CR$17,MATCH('Data Input - Option 5'!$D94,'Energy Prices'!$C$12:$C$17,0),MATCH('Data Input - Option 5'!AE$7,'Energy Prices'!$F$11:$CR$11,0))/100000,\"\")","v":0},{"$f":"IFERROR(AF86*INDEX('Energy Prices'!$F$12:$CR$17,MATCH('Data Input - Option 5'!$D94,'Energy Prices'!$C$12:$C$17,0),MATCH('Data Input - Option 5'!AF$7,'Energy Prices'!$F$11:$CR$11,0))/100000,\"\")","v":0},{"$f":"IFERROR(AG86*INDEX('Energy Prices'!$F$12:$CR$17,MATCH('Data Input - Option 5'!$D94,'Energy Prices'!$C$12:$C$17,0),MATCH('Data Input - Option 5'!AG$7,'Energy Prices'!$F$11:$CR$11,0))/100000,\"\")","v":0},{"$f":"IFERROR(AH86*INDEX('Energy Prices'!$F$12:$CR$17,MATCH('Data Input - Option 5'!$D94,'Energy Prices'!$C$12:$C$17,0),MATCH('Data Input - Option 5'!AH$7,'Energy Prices'!$F$11:$CR$11,0))/100000,\"\")","v":0},{"$f":"IFERROR(AI86*INDEX('Energy Prices'!$F$12:$CR$17,MATCH('Data Input - Option 5'!$D94,'Energy Prices'!$C$12:$C$17,0),MATCH('Data Input - Option 5'!AI$7,'Energy Prices'!$F$11:$CR$11,0))/100000,\"\")","v":0},{"$f":"IFERROR(AJ86*INDEX('Energy Prices'!$F$12:$CR$17,MATCH('Data Input - Option 5'!$D94,'Energy Prices'!$C$12:$C$17,0),MATCH('Data Input - Option 5'!AJ$7,'Energy Prices'!$F$11:$CR$11,0))/100000,\"\")","v":0},{"$f":"IFERROR(AK86*INDEX('Energy Prices'!$F$12:$CR$17,MATCH('Data Input - Option 5'!$D94,'Energy Prices'!$C$12:$C$17,0),MATCH('Data Input - Option 5'!AK$7,'Energy Prices'!$F$11:$CR$11,0))/100000,\"\")","v":0},{"$f":"IFERROR(AL86*INDEX('Energy Prices'!$F$12:$CR$17,MATCH('Data Input - Option 5'!$D94,'Energy Prices'!$C$12:$C$17,0),MATCH('Data Input - Option 5'!AL$7,'Energy Prices'!$F$11:$CR$11,0))/100000,\"\")","v":0},{"$f":"IFERROR(AM86*INDEX('Energy Prices'!$F$12:$CR$17,MATCH('Data Input - Option 5'!$D94,'Energy Prices'!$C$12:$C$17,0),MATCH('Data Input - Option 5'!AM$7,'Energy Prices'!$F$11:$CR$11,0))/100000,\"\")","v":""},{"$f":"IFERROR(AN86*INDEX('Energy Prices'!$F$12:$CR$17,MATCH('Data Input - Option 5'!$D94,'Energy Prices'!$C$12:$C$17,0),MATCH('Data Input - Option 5'!AN$7,'Energy Prices'!$F$11:$CR$11,0))/100000,\"\")","v":""},{"$f":"IFERROR(AO86*INDEX('Energy Prices'!$F$12:$CR$17,MATCH('Data Input - Option 5'!$D94,'Energy Prices'!$C$12:$C$17,0),MATCH('Data Input - Option 5'!AO$7,'Energy Prices'!$F$11:$CR$11,0))/100000,\"\")","v":""},{"$f":"IFERROR(AP86*INDEX('Energy Prices'!$F$12:$CR$17,MATCH('Data Input - Option 5'!$D94,'Energy Prices'!$C$12:$C$17,0),MATCH('Data Input - Option 5'!AP$7,'Energy Prices'!$F$11:$CR$11,0))/100000,\"\")","v":""},{"$f":"IFERROR(AQ86*INDEX('Energy Prices'!$F$12:$CR$17,MATCH('Data Input - Option 5'!$D94,'Energy Prices'!$C$12:$C$17,0),MATCH('Data Input - Option 5'!AQ$7,'Energy Prices'!$F$11:$CR$11,0))/100000,\"\")","v":""},{"$f":"IFERROR(AR86*INDEX('Energy Prices'!$F$12:$CR$17,MATCH('Data Input - Option 5'!$D94,'Energy Prices'!$C$12:$C$17,0),MATCH('Data Input - Option 5'!AR$7,'Energy Prices'!$F$11:$CR$11,0))/100000,\"\")","v":""},{"$f":"IFERROR(AS86*INDEX('Energy Prices'!$F$12:$CR$17,MATCH('Data Input - Option 5'!$D94,'Energy Prices'!$C$12:$C$17,0),MATCH('Data Input - Option 5'!AS$7,'Energy Prices'!$F$11:$CR$11,0))/100000,\"\")","v":""},{"$f":"IFERROR(AT86*INDEX('Energy Prices'!$F$12:$CR$17,MATCH('Data Input - Option 5'!$D94,'Energy Prices'!$C$12:$C$17,0),MATCH('Data Input - Option 5'!AT$7,'Energy Prices'!$F$11:$CR$11,0))/100000,\"\")","v":""},{"$f":"IFERROR(AU86*INDEX('Energy Prices'!$F$12:$CR$17,MATCH('Data Input - Option 5'!$D94,'Energy Prices'!$C$12:$C$17,0),MATCH('Data Input - Option 5'!AU$7,'Energy Prices'!$F$11:$CR$11,0))/100000,\"\")","v":""},{"$f":"IFERROR(AV86*INDEX('Energy Prices'!$F$12:$CR$17,MATCH('Data Input - Option 5'!$D94,'Energy Prices'!$C$12:$C$17,0),MATCH('Data Input - Option 5'!AV$7,'Energy Prices'!$F$11:$CR$11,0))/100000,\"\")","v":""},{"$f":"IFERROR(AW86*INDEX('Energy Prices'!$F$12:$CR$17,MATCH('Data Input - Option 5'!$D94,'Energy Prices'!$C$12:$C$17,0),MATCH('Data Input - Option 5'!AW$7,'Energy Prices'!$F$11:$CR$11,0))/100000,\"\")","v":""},{"$f":"IFERROR(AX86*INDEX('Energy Prices'!$F$12:$CR$17,MATCH('Data Input - Option 5'!$D94,'Energy Prices'!$C$12:$C$17,0),MATCH('Data Input - Option 5'!AX$7,'Energy Prices'!$F$11:$CR$11,0))/100000,\"\")","v":""},{"$f":"IFERROR(AY86*INDEX('Energy Prices'!$F$12:$CR$17,MATCH('Data Input - Option 5'!$D94,'Energy Prices'!$C$12:$C$17,0),MATCH('Data Input - Option 5'!AY$7,'Energy Prices'!$F$11:$CR$11,0))/100000,\"\")","v":""},{"$f":"IFERROR(AZ86*INDEX('Energy Prices'!$F$12:$CR$17,MATCH('Data Input - Option 5'!$D94,'Energy Prices'!$C$12:$C$17,0),MATCH('Data Input - Option 5'!AZ$7,'Energy Prices'!$F$11:$CR$11,0))/100000,\"\")","v":""},{"$f":"IFERROR(BA86*INDEX('Energy Prices'!$F$12:$CR$17,MATCH('Data Input - Option 5'!$D94,'Energy Prices'!$C$12:$C$17,0),MATCH('Data Input - Option 5'!BA$7,'Energy Prices'!$F$11:$CR$11,0))/100000,\"\")","v":""},{"$f":"IFERROR(BB86*INDEX('Energy Prices'!$F$12:$CR$17,MATCH('Data Input - Option 5'!$D94,'Energy Prices'!$C$12:$C$17,0),MATCH('Data Input - Option 5'!BB$7,'Energy Prices'!$F$11:$CR$11,0))/100000,\"\")","v":""},{"$f":"IFERROR(BC86*INDEX('Energy Prices'!$F$12:$CR$17,MATCH('Data Input - Option 5'!$D94,'Energy Prices'!$C$12:$C$17,0),MATCH('Data Input - Option 5'!BC$7,'Energy Prices'!$F$11:$CR$11,0))/100000,\"\")","v":""},{"$f":"IFERROR(BD86*INDEX('Energy Prices'!$F$12:$CR$17,MATCH('Data Input - Option 5'!$D94,'Energy Prices'!$C$12:$C$17,0),MATCH('Data Input - Option 5'!BD$7,'Energy Prices'!$F$11:$CR$11,0))/100000,\"\")","v":""},{"$f":"IFERROR(BE86*INDEX('Energy Prices'!$F$12:$CR$17,MATCH('Data Input - Option 5'!$D94,'Energy Prices'!$C$12:$C$17,0),MATCH('Data Input - Option 5'!BE$7,'Energy Prices'!$F$11:$CR$11,0))/100000,\"\")","v":""},{"$f":"IFERROR(BF86*INDEX('Energy Prices'!$F$12:$CR$17,MATCH('Data Input - Option 5'!$D94,'Energy Prices'!$C$12:$C$17,0),MATCH('Data Input - Option 5'!BF$7,'Energy Prices'!$F$11:$CR$11,0))/100000,\"\")","v":""},{"$f":"IFERROR(BG86*INDEX('Energy Prices'!$F$12:$CR$17,MATCH('Data Input - Option 5'!$D94,'Energy Prices'!$C$12:$C$17,0),MATCH('Data Input - Option 5'!BG$7,'Energy Prices'!$F$11:$CR$11,0))/100000,\"\")","v":""},{"$f":"IFERROR(BH86*INDEX('Energy Prices'!$F$12:$CR$17,MATCH('Data Input - Option 5'!$D94,'Energy Prices'!$C$12:$C$17,0),MATCH('Data Input - Option 5'!BH$7,'Energy Prices'!$F$11:$CR$11,0))/100000,\"\")","v":""},{"$f":"IFERROR(BI86*INDEX('Energy Prices'!$F$12:$CR$17,MATCH('Data Input - Option 5'!$D94,'Energy Prices'!$C$12:$C$17,0),MATCH('Data Input - Option 5'!BI$7,'Energy Prices'!$F$11:$CR$11,0))/100000,\"\")","v":""},{"$f":"IFERROR(BJ86*INDEX('Energy Prices'!$F$12:$CR$17,MATCH('Data Input - Option 5'!$D94,'Energy Prices'!$C$12:$C$17,0),MATCH('Data Input - Option 5'!BJ$7,'Energy Prices'!$F$11:$CR$11,0))/100000,\"\")","v":""},{"$f":"IFERROR(BK86*INDEX('Energy Prices'!$F$12:$CR$17,MATCH('Data Input - Option 5'!$D94,'Energy Prices'!$C$12:$C$17,0),MATCH('Data Input - Option 5'!BK$7,'Energy Prices'!$F$11:$CR$11,0))/100000,\"\")","v":""},{"$f":"IFERROR(BL86*INDEX('Energy Prices'!$F$12:$CR$17,MATCH('Data Input - Option 5'!$D94,'Energy Prices'!$C$12:$C$17,0),MATCH('Data Input - Option 5'!BL$7,'Energy Prices'!$F$11:$CR$11,0))/100000,\"\")","v":""},{"$f":"IFERROR(BM86*INDEX('Energy Prices'!$F$12:$CR$17,MATCH('Data Input - Option 5'!$D94,'Energy Prices'!$C$12:$C$17,0),MATCH('Data Input - Option 5'!BM$7,'Energy Prices'!$F$11:$CR$11,0))/100000,\"\")","v":""},{"$f":"IFERROR(BN86*INDEX('Energy Prices'!$F$12:$CR$17,MATCH('Data Input - Option 5'!$D94,'Energy Prices'!$C$12:$C$17,0),MATCH('Data Input - Option 5'!BN$7,'Energy Prices'!$F$11:$CR$11,0))/100000,\"\")","v":""},{"$f":"IFERROR(BO86*INDEX('Energy Prices'!$F$12:$CR$17,MATCH('Data Input - Option 5'!$D94,'Energy Prices'!$C$12:$C$17,0),MATCH('Data Input - Option 5'!BO$7,'Energy Prices'!$F$11:$CR$11,0))/100000,\"\")","v":""},{"$f":"IFERROR(BP86*INDEX('Energy Prices'!$F$12:$CR$17,MATCH('Data Input - Option 5'!$D94,'Energy Prices'!$C$12:$C$17,0),MATCH('Data Input - Option 5'!BP$7,'Energy Prices'!$F$11:$CR$11,0))/100000,\"\")","v":""},{"$f":"IFERROR(BQ86*INDEX('Energy Prices'!$F$12:$CR$17,MATCH('Data Input - Option 5'!$D94,'Energy Prices'!$C$12:$C$17,0),MATCH('Data Input - Option 5'!BQ$7,'Energy Prices'!$F$11:$CR$11,0))/100000,\"\")","v":""},{"$f":"IFERROR(BR86*INDEX('Energy Prices'!$F$12:$CR$17,MATCH('Data Input - Option 5'!$D94,'Energy Prices'!$C$12:$C$17,0),MATCH('Data Input - Option 5'!BR$7,'Energy Prices'!$F$11:$CR$11,0))/100000,\"\")","v":""},{"$f":"IFERROR(BS86*INDEX('Energy Prices'!$F$12:$CR$17,MATCH('Data Input - Option 5'!$D94,'Energy Prices'!$C$12:$C$17,0),MATCH('Data Input - Option 5'!BS$7,'Energy Prices'!$F$11:$CR$11,0))/100000,\"\")","v":""},{"$f":"IFERROR(BT86*INDEX('Energy Prices'!$F$12:$CR$17,MATCH('Data Input - Option 5'!$D94,'Energy Prices'!$C$12:$C$17,0),MATCH('Data Input - Option 5'!BT$7,'Energy Prices'!$F$11:$CR$11,0))/100000,\"\")","v":""},{"$f":"IFERROR(BU86*INDEX('Energy Prices'!$F$12:$CR$17,MATCH('Data Input - Option 5'!$D94,'Energy Prices'!$C$12:$C$17,0),MATCH('Data Input - Option 5'!BU$7,'Energy Prices'!$F$11:$CR$11,0))/100000,\"\")","v":""},{"$f":"IFERROR(BV86*INDEX('Energy Prices'!$F$12:$CR$17,MATCH('Data Input - Option 5'!$D94,'Energy Prices'!$C$12:$C$17,0),MATCH('Data Input - Option 5'!BV$7,'Energy Prices'!$F$11:$CR$11,0))/100000,\"\")","v":""},{"$f":"IFERROR(BW86*INDEX('Energy Prices'!$F$12:$CR$17,MATCH('Data Input - Option 5'!$D94,'Energy Prices'!$C$12:$C$17,0),MATCH('Data Input - Option 5'!BW$7,'Energy Prices'!$F$11:$CR$11,0))/100000,\"\")","v":""},{"$f":"IFERROR(BX86*INDEX('Energy Prices'!$F$12:$CR$17,MATCH('Data Input - Option 5'!$D94,'Energy Prices'!$C$12:$C$17,0),MATCH('Data Input - Option 5'!BX$7,'Energy Prices'!$F$11:$CR$11,0))/100000,\"\")","v":""},{"$f":"IFERROR(BY86*INDEX('Energy Prices'!$F$12:$CR$17,MATCH('Data Input - Option 5'!$D94,'Energy Prices'!$C$12:$C$17,0),MATCH('Data Input - Option 5'!BY$7,'Energy Prices'!$F$11:$CR$11,0))/100000,\"\")","v":""},{"$f":"IFERROR(BZ86*INDEX('Energy Prices'!$F$12:$CR$17,MATCH('Data Input - Option 5'!$D94,'Energy Prices'!$C$12:$C$17,0),MATCH('Data Input - Option 5'!BZ$7,'Energy Prices'!$F$11:$CR$11,0))/100000,\"\")","v":""},{"$f":"IFERROR(CA86*INDEX('Energy Prices'!$F$12:$CR$17,MATCH('Data Input - Option 5'!$D94,'Energy Prices'!$C$12:$C$17,0),MATCH('Data Input - Option 5'!CA$7,'Energy Prices'!$F$11:$CR$11,0))/100000,\"\")","v":""},{"$f":"IFERROR(CB86*INDEX('Energy Prices'!$F$12:$CR$17,MATCH('Data Input - Option 5'!$D94,'Energy Prices'!$C$12:$C$17,0),MATCH('Data Input - Option 5'!CB$7,'Energy Prices'!$F$11:$CR$11,0))/100000,\"\")","v":""},{"$f":"IFERROR(CC86*INDEX('Energy Prices'!$F$12:$CR$17,MATCH('Data Input - Option 5'!$D94,'Energy Prices'!$C$12:$C$17,0),MATCH('Data Input - Option 5'!CC$7,'Energy Prices'!$F$11:$CR$11,0))/100000,\"\")","v":""},{"$f":"IFERROR(CD86*INDEX('Energy Prices'!$F$12:$CR$17,MATCH('Data Input - Option 5'!$D94,'Energy Prices'!$C$12:$C$17,0),MATCH('Data Input - Option 5'!CD$7,'Energy Prices'!$F$11:$CR$11,0))/100000,\"\")","v":""},{"$f":"IFERROR(CE86*INDEX('Energy Prices'!$F$12:$CR$17,MATCH('Data Input - Option 5'!$D94,'Energy Prices'!$C$12:$C$17,0),MATCH('Data Input - Option 5'!CE$7,'Energy Prices'!$F$11:$CR$11,0))/100000,\"\")","v":""},{"$f":"IFERROR(CF86*INDEX('Energy Prices'!$F$12:$CR$17,MATCH('Data Input - Option 5'!$D94,'Energy Prices'!$C$12:$C$17,0),MATCH('Data Input - Option 5'!CF$7,'Energy Prices'!$F$11:$CR$11,0))/100000,\"\")","v":""},{"$f":"IFERROR(CG86*INDEX('Energy Prices'!$F$12:$CR$17,MATCH('Data Input - Option 5'!$D94,'Energy Prices'!$C$12:$C$17,0),MATCH('Data Input - Option 5'!CG$7,'Energy Prices'!$F$11:$CR$11,0))/100000,\"\")","v":""},{"$f":"IFERROR(CH86*INDEX('Energy Prices'!$F$12:$CR$17,MATCH('Data Input - Option 5'!$D94,'Energy Prices'!$C$12:$C$17,0),MATCH('Data Input - Option 5'!CH$7,'Energy Prices'!$F$11:$CR$11,0))/100000,\"\")","v":""},{"$f":"IFERROR(CI86*INDEX('Energy Prices'!$F$12:$CR$17,MATCH('Data Input - Option 5'!$D94,'Energy Prices'!$C$12:$C$17,0),MATCH('Data Input - Option 5'!CI$7,'Energy Prices'!$F$11:$CR$11,0))/100000,\"\")","v":""},{"$f":"IFERROR(CJ86*INDEX('Energy Prices'!$F$12:$CR$17,MATCH('Data Input - Option 5'!$D94,'Energy Prices'!$C$12:$C$17,0),MATCH('Data Input - Option 5'!CJ$7,'Energy Prices'!$F$11:$CR$11,0))/100000,\"\")","v":""},{"$f":"IFERROR(CK86*INDEX('Energy Prices'!$F$12:$CR$17,MATCH('Data Input - Option 5'!$D94,'Energy Prices'!$C$12:$C$17,0),MATCH('Data Input - Option 5'!CK$7,'Energy Prices'!$F$11:$CR$11,0))/100000,\"\")","v":""},{"$f":"IFERROR(CL86*INDEX('Energy Prices'!$F$12:$CR$17,MATCH('Data Input - Option 5'!$D94,'Energy Prices'!$C$12:$C$17,0),MATCH('Data Input - Option 5'!CL$7,'Energy Prices'!$F$11:$CR$11,0))/100000,\"\")","v":""},{"$f":"IFERROR(CM86*INDEX('Energy Prices'!$F$12:$CR$17,MATCH('Data Input - Option 5'!$D94,'Energy Prices'!$C$12:$C$17,0),MATCH('Data Input - Option 5'!CM$7,'Energy Prices'!$F$11:$CR$11,0))/100000,\"\")","v":""},{"$f":"IFERROR(CN86*INDEX('Energy Prices'!$F$12:$CR$17,MATCH('Data Input - Option 5'!$D94,'Energy Prices'!$C$12:$C$17,0),MATCH('Data Input - Option 5'!CN$7,'Energy Prices'!$F$11:$CR$11,0))/100000,\"\")","v":""},{"$f":"IFERROR(CO86*INDEX('Energy Prices'!$F$12:$CR$17,MATCH('Data Input - Option 5'!$D94,'Energy Prices'!$C$12:$C$17,0),MATCH('Data Input - Option 5'!CO$7,'Energy Prices'!$F$11:$CR$11,0))/100000,\"\")","v":""},{"$f":"IFERROR(CP86*INDEX('Energy Prices'!$F$12:$CR$17,MATCH('Data Input - Option 5'!$D94,'Energy Prices'!$C$12:$C$17,0),MATCH('Data Input - Option 5'!CP$7,'Energy Prices'!$F$11:$CR$11,0))/100000,\"\")","v":""},{"$f":"IFERROR(CQ86*INDEX('Energy Prices'!$F$12:$CR$17,MATCH('Data Input - Option 5'!$D94,'Energy Prices'!$C$12:$C$17,0),MATCH('Data Input - Option 5'!CQ$7,'Energy Prices'!$F$11:$CR$11,0))/100000,\"\")","v":""},{"$f":"IFERROR(CR86*INDEX('Energy Prices'!$F$12:$CR$17,MATCH('Data Input - Option 5'!$D94,'Energy Prices'!$C$12:$C$17,0),MATCH('Data Input - Option 5'!CR$7,'Energy Prices'!$F$11:$CR$11,0))/100000,\"\")","v":""},{"$f":"IFERROR(CS86*INDEX('Energy Prices'!$F$12:$CR$17,MATCH('Data Input - Option 5'!$D94,'Energy Prices'!$C$12:$C$17,0),MATCH('Data Input - Option 5'!CS$7,'Energy Prices'!$F$11:$CR$11,0))/100000,\"\")","v":""},{"$f":"IFERROR(CT86*INDEX('Energy Prices'!$F$12:$CR$17,MATCH('Data Input - Option 5'!$D94,'Energy Prices'!$C$12:$C$17,0),MATCH('Data Input - Option 5'!CT$7,'Energy Prices'!$F$11:$CR$11,0))/100000,\"\")","v":""},{"$f":"IFERROR(CU86*INDEX('Energy Prices'!$F$12:$CR$17,MATCH('Data Input - Option 5'!$D94,'Energy Prices'!$C$12:$C$17,0),MATCH('Data Input - Option 5'!CU$7,'Energy Prices'!$F$11:$CR$11,0))/100000,\"\")","v":""},{"$f":"IFERROR(CV86*INDEX('Energy Prices'!$F$12:$CR$17,MATCH('Data Input - Option 5'!$D94,'Energy Prices'!$C$12:$C$17,0),MATCH('Data Input - Option 5'!CV$7,'Energy Prices'!$F$11:$CR$11,0))/100000,\"\")","v":""},{"$f":"IFERROR(CW86*INDEX('Energy Prices'!$F$12:$CR$17,MATCH('Data Input - Option 5'!$D94,'Energy Prices'!$C$12:$C$17,0),MATCH('Data Input - Option 5'!CW$7,'Energy Prices'!$F$11:$CR$11,0))/100000,\"\")","v":""},{"$f":"IFERROR(CX86*INDEX('Energy Prices'!$F$12:$CR$17,MATCH('Data Input - Option 5'!$D94,'Energy Prices'!$C$12:$C$17,0),MATCH('Data Input - Option 5'!CX$7,'Energy Prices'!$F$11:$CR$11,0))/100000,\"\")","v":""},{"$f":"IFERROR(CY86*INDEX('Energy Prices'!$F$12:$CR$17,MATCH('Data Input - Option 5'!$D94,'Energy Prices'!$C$12:$C$17,0),MATCH('Data Input - Option 5'!CY$7,'Energy Prices'!$F$11:$CR$11,0))/100000,\"\")","v":""},{"$f":"IFERROR(CZ86*INDEX('Energy Prices'!$F$12:$CR$17,MATCH('Data Input - Option 5'!$D94,'Energy Prices'!$C$12:$C$17,0),MATCH('Data Input - Option 5'!CZ$7,'Energy Prices'!$F$11:$CR$11,0))/100000,\"\")","v":""},{"$f":"IFERROR(DA86*INDEX('Energy Prices'!$F$12:$CR$17,MATCH('Data Input - Option 5'!$D94,'Energy Prices'!$C$12:$C$17,0),MATCH('Data Input - Option 5'!DA$7,'Energy Prices'!$F$11:$CR$11,0))/100000,\"\")","v":""},{"$f":"IFERROR(DB86*INDEX('Energy Prices'!$F$12:$CR$17,MATCH('Data Input - Option 5'!$D94,'Energy Prices'!$C$12:$C$17,0),MATCH('Data Input - Option 5'!DB$7,'Energy Prices'!$F$11:$CR$11,0))/100000,\"\")","v":""},{"$f":"IFERROR(DC86*INDEX('Energy Prices'!$F$12:$CR$17,MATCH('Data Input - Option 5'!$D94,'Energy Prices'!$C$12:$C$17,0),MATCH('Data Input - Option 5'!DC$7,'Energy Prices'!$F$11:$CR$11,0))/100000,\"\")","v":""}]
[null,null,null,"Gas Oil","£000's","(Auto calculated value)",null,{"$f":"IFERROR(H87*INDEX('Energy Prices'!$F$12:$CR$17,MATCH('Data Input - Option 5'!$D95,'Energy Prices'!$C$12:$C$17,0),MATCH('Data Input - Option 5'!H$7,'Energy Prices'!$F$11:$CR$11,0))/100000,\"\")","v":0},{"$f":"IFERROR(I87*INDEX('Energy Prices'!$F$12:$CR$17,MATCH('Data Input - Option 5'!$D95,'Energy Prices'!$C$12:$C$17,0),MATCH('Data Input - Option 5'!I$7,'Energy Prices'!$F$11:$CR$11,0))/100000,\"\")","v":0},{"$f":"IFERROR(J87*INDEX('Energy Prices'!$F$12:$CR$17,MATCH('Data Input - Option 5'!$D95,'Energy Prices'!$C$12:$C$17,0),MATCH('Data Input - Option 5'!J$7,'Energy Prices'!$F$11:$CR$11,0))/100000,\"\")","v":0},{"$f":"IFERROR(K87*INDEX('Energy Prices'!$F$12:$CR$17,MATCH('Data Input - Option 5'!$D95,'Energy Prices'!$C$12:$C$17,0),MATCH('Data Input - Option 5'!K$7,'Energy Prices'!$F$11:$CR$11,0))/100000,\"\")","v":0},{"$f":"IFERROR(L87*INDEX('Energy Prices'!$F$12:$CR$17,MATCH('Data Input - Option 5'!$D95,'Energy Prices'!$C$12:$C$17,0),MATCH('Data Input - Option 5'!L$7,'Energy Prices'!$F$11:$CR$11,0))/100000,\"\")","v":0},{"$f":"IFERROR(M87*INDEX('Energy Prices'!$F$12:$CR$17,MATCH('Data Input - Option 5'!$D95,'Energy Prices'!$C$12:$C$17,0),MATCH('Data Input - Option 5'!M$7,'Energy Prices'!$F$11:$CR$11,0))/100000,\"\")","v":0},{"$f":"IFERROR(N87*INDEX('Energy Prices'!$F$12:$CR$17,MATCH('Data Input - Option 5'!$D95,'Energy Prices'!$C$12:$C$17,0),MATCH('Data Input - Option 5'!N$7,'Energy Prices'!$F$11:$CR$11,0))/100000,\"\")","v":0},{"$f":"IFERROR(O87*INDEX('Energy Prices'!$F$12:$CR$17,MATCH('Data Input - Option 5'!$D95,'Energy Prices'!$C$12:$C$17,0),MATCH('Data Input - Option 5'!O$7,'Energy Prices'!$F$11:$CR$11,0))/100000,\"\")","v":0},{"$f":"IFERROR(P87*INDEX('Energy Prices'!$F$12:$CR$17,MATCH('Data Input - Option 5'!$D95,'Energy Prices'!$C$12:$C$17,0),MATCH('Data Input - Option 5'!P$7,'Energy Prices'!$F$11:$CR$11,0))/100000,\"\")","v":0},{"$f":"IFERROR(Q87*INDEX('Energy Prices'!$F$12:$CR$17,MATCH('Data Input - Option 5'!$D95,'Energy Prices'!$C$12:$C$17,0),MATCH('Data Input - Option 5'!Q$7,'Energy Prices'!$F$11:$CR$11,0))/100000,\"\")","v":0},{"$f":"IFERROR(R87*INDEX('Energy Prices'!$F$12:$CR$17,MATCH('Data Input - Option 5'!$D95,'Energy Prices'!$C$12:$C$17,0),MATCH('Data Input - Option 5'!R$7,'Energy Prices'!$F$11:$CR$11,0))/100000,\"\")","v":0},{"$f":"IFERROR(S87*INDEX('Energy Prices'!$F$12:$CR$17,MATCH('Data Input - Option 5'!$D95,'Energy Prices'!$C$12:$C$17,0),MATCH('Data Input - Option 5'!S$7,'Energy Prices'!$F$11:$CR$11,0))/100000,\"\")","v":0},{"$f":"IFERROR(T87*INDEX('Energy Prices'!$F$12:$CR$17,MATCH('Data Input - Option 5'!$D95,'Energy Prices'!$C$12:$C$17,0),MATCH('Data Input - Option 5'!T$7,'Energy Prices'!$F$11:$CR$11,0))/100000,\"\")","v":0},{"$f":"IFERROR(U87*INDEX('Energy Prices'!$F$12:$CR$17,MATCH('Data Input - Option 5'!$D95,'Energy Prices'!$C$12:$C$17,0),MATCH('Data Input - Option 5'!U$7,'Energy Prices'!$F$11:$CR$11,0))/100000,\"\")","v":0},{"$f":"IFERROR(V87*INDEX('Energy Prices'!$F$12:$CR$17,MATCH('Data Input - Option 5'!$D95,'Energy Prices'!$C$12:$C$17,0),MATCH('Data Input - Option 5'!V$7,'Energy Prices'!$F$11:$CR$11,0))/100000,\"\")","v":0},{"$f":"IFERROR(W87*INDEX('Energy Prices'!$F$12:$CR$17,MATCH('Data Input - Option 5'!$D95,'Energy Prices'!$C$12:$C$17,0),MATCH('Data Input - Option 5'!W$7,'Energy Prices'!$F$11:$CR$11,0))/100000,\"\")","v":0},{"$f":"IFERROR(X87*INDEX('Energy Prices'!$F$12:$CR$17,MATCH('Data Input - Option 5'!$D95,'Energy Prices'!$C$12:$C$17,0),MATCH('Data Input - Option 5'!X$7,'Energy Prices'!$F$11:$CR$11,0))/100000,\"\")","v":0},{"$f":"IFERROR(Y87*INDEX('Energy Prices'!$F$12:$CR$17,MATCH('Data Input - Option 5'!$D95,'Energy Prices'!$C$12:$C$17,0),MATCH('Data Input - Option 5'!Y$7,'Energy Prices'!$F$11:$CR$11,0))/100000,\"\")","v":0},{"$f":"IFERROR(Z87*INDEX('Energy Prices'!$F$12:$CR$17,MATCH('Data Input - Option 5'!$D95,'Energy Prices'!$C$12:$C$17,0),MATCH('Data Input - Option 5'!Z$7,'Energy Prices'!$F$11:$CR$11,0))/100000,\"\")","v":0},{"$f":"IFERROR(AA87*INDEX('Energy Prices'!$F$12:$CR$17,MATCH('Data Input - Option 5'!$D95,'Energy Prices'!$C$12:$C$17,0),MATCH('Data Input - Option 5'!AA$7,'Energy Prices'!$F$11:$CR$11,0))/100000,\"\")","v":0},{"$f":"IFERROR(AB87*INDEX('Energy Prices'!$F$12:$CR$17,MATCH('Data Input - Option 5'!$D95,'Energy Prices'!$C$12:$C$17,0),MATCH('Data Input - Option 5'!AB$7,'Energy Prices'!$F$11:$CR$11,0))/100000,\"\")","v":0},{"$f":"IFERROR(AC87*INDEX('Energy Prices'!$F$12:$CR$17,MATCH('Data Input - Option 5'!$D95,'Energy Prices'!$C$12:$C$17,0),MATCH('Data Input - Option 5'!AC$7,'Energy Prices'!$F$11:$CR$11,0))/100000,\"\")","v":0},{"$f":"IFERROR(AD87*INDEX('Energy Prices'!$F$12:$CR$17,MATCH('Data Input - Option 5'!$D95,'Energy Prices'!$C$12:$C$17,0),MATCH('Data Input - Option 5'!AD$7,'Energy Prices'!$F$11:$CR$11,0))/100000,\"\")","v":0},{"$f":"IFERROR(AE87*INDEX('Energy Prices'!$F$12:$CR$17,MATCH('Data Input - Option 5'!$D95,'Energy Prices'!$C$12:$C$17,0),MATCH('Data Input - Option 5'!AE$7,'Energy Prices'!$F$11:$CR$11,0))/100000,\"\")","v":0},{"$f":"IFERROR(AF87*INDEX('Energy Prices'!$F$12:$CR$17,MATCH('Data Input - Option 5'!$D95,'Energy Prices'!$C$12:$C$17,0),MATCH('Data Input - Option 5'!AF$7,'Energy Prices'!$F$11:$CR$11,0))/100000,\"\")","v":0},{"$f":"IFERROR(AG87*INDEX('Energy Prices'!$F$12:$CR$17,MATCH('Data Input - Option 5'!$D95,'Energy Prices'!$C$12:$C$17,0),MATCH('Data Input - Option 5'!AG$7,'Energy Prices'!$F$11:$CR$11,0))/100000,\"\")","v":0},{"$f":"IFERROR(AH87*INDEX('Energy Prices'!$F$12:$CR$17,MATCH('Data Input - Option 5'!$D95,'Energy Prices'!$C$12:$C$17,0),MATCH('Data Input - Option 5'!AH$7,'Energy Prices'!$F$11:$CR$11,0))/100000,\"\")","v":0},{"$f":"IFERROR(AI87*INDEX('Energy Prices'!$F$12:$CR$17,MATCH('Data Input - Option 5'!$D95,'Energy Prices'!$C$12:$C$17,0),MATCH('Data Input - Option 5'!AI$7,'Energy Prices'!$F$11:$CR$11,0))/100000,\"\")","v":0},{"$f":"IFERROR(AJ87*INDEX('Energy Prices'!$F$12:$CR$17,MATCH('Data Input - Option 5'!$D95,'Energy Prices'!$C$12:$C$17,0),MATCH('Data Input - Option 5'!AJ$7,'Energy Prices'!$F$11:$CR$11,0))/100000,\"\")","v":0},{"$f":"IFERROR(AK87*INDEX('Energy Prices'!$F$12:$CR$17,MATCH('Data Input - Option 5'!$D95,'Energy Prices'!$C$12:$C$17,0),MATCH('Data Input - Option 5'!AK$7,'Energy Prices'!$F$11:$CR$11,0))/100000,\"\")","v":0},{"$f":"IFERROR(AL87*INDEX('Energy Prices'!$F$12:$CR$17,MATCH('Data Input - Option 5'!$D95,'Energy Prices'!$C$12:$C$17,0),MATCH('Data Input - Option 5'!AL$7,'Energy Prices'!$F$11:$CR$11,0))/100000,\"\")","v":0},{"$f":"IFERROR(AM87*INDEX('Energy Prices'!$F$12:$CR$17,MATCH('Data Input - Option 5'!$D95,'Energy Prices'!$C$12:$C$17,0),MATCH('Data Input - Option 5'!AM$7,'Energy Prices'!$F$11:$CR$11,0))/100000,\"\")","v":""},{"$f":"IFERROR(AN87*INDEX('Energy Prices'!$F$12:$CR$17,MATCH('Data Input - Option 5'!$D95,'Energy Prices'!$C$12:$C$17,0),MATCH('Data Input - Option 5'!AN$7,'Energy Prices'!$F$11:$CR$11,0))/100000,\"\")","v":""},{"$f":"IFERROR(AO87*INDEX('Energy Prices'!$F$12:$CR$17,MATCH('Data Input - Option 5'!$D95,'Energy Prices'!$C$12:$C$17,0),MATCH('Data Input - Option 5'!AO$7,'Energy Prices'!$F$11:$CR$11,0))/100000,\"\")","v":""},{"$f":"IFERROR(AP87*INDEX('Energy Prices'!$F$12:$CR$17,MATCH('Data Input - Option 5'!$D95,'Energy Prices'!$C$12:$C$17,0),MATCH('Data Input - Option 5'!AP$7,'Energy Prices'!$F$11:$CR$11,0))/100000,\"\")","v":""},{"$f":"IFERROR(AQ87*INDEX('Energy Prices'!$F$12:$CR$17,MATCH('Data Input - Option 5'!$D95,'Energy Prices'!$C$12:$C$17,0),MATCH('Data Input - Option 5'!AQ$7,'Energy Prices'!$F$11:$CR$11,0))/100000,\"\")","v":""},{"$f":"IFERROR(AR87*INDEX('Energy Prices'!$F$12:$CR$17,MATCH('Data Input - Option 5'!$D95,'Energy Prices'!$C$12:$C$17,0),MATCH('Data Input - Option 5'!AR$7,'Energy Prices'!$F$11:$CR$11,0))/100000,\"\")","v":""},{"$f":"IFERROR(AS87*INDEX('Energy Prices'!$F$12:$CR$17,MATCH('Data Input - Option 5'!$D95,'Energy Prices'!$C$12:$C$17,0),MATCH('Data Input - Option 5'!AS$7,'Energy Prices'!$F$11:$CR$11,0))/100000,\"\")","v":""},{"$f":"IFERROR(AT87*INDEX('Energy Prices'!$F$12:$CR$17,MATCH('Data Input - Option 5'!$D95,'Energy Prices'!$C$12:$C$17,0),MATCH('Data Input - Option 5'!AT$7,'Energy Prices'!$F$11:$CR$11,0))/100000,\"\")","v":""},{"$f":"IFERROR(AU87*INDEX('Energy Prices'!$F$12:$CR$17,MATCH('Data Input - Option 5'!$D95,'Energy Prices'!$C$12:$C$17,0),MATCH('Data Input - Option 5'!AU$7,'Energy Prices'!$F$11:$CR$11,0))/100000,\"\")","v":""},{"$f":"IFERROR(AV87*INDEX('Energy Prices'!$F$12:$CR$17,MATCH('Data Input - Option 5'!$D95,'Energy Prices'!$C$12:$C$17,0),MATCH('Data Input - Option 5'!AV$7,'Energy Prices'!$F$11:$CR$11,0))/100000,\"\")","v":""},{"$f":"IFERROR(AW87*INDEX('Energy Prices'!$F$12:$CR$17,MATCH('Data Input - Option 5'!$D95,'Energy Prices'!$C$12:$C$17,0),MATCH('Data Input - Option 5'!AW$7,'Energy Prices'!$F$11:$CR$11,0))/100000,\"\")","v":""},{"$f":"IFERROR(AX87*INDEX('Energy Prices'!$F$12:$CR$17,MATCH('Data Input - Option 5'!$D95,'Energy Prices'!$C$12:$C$17,0),MATCH('Data Input - Option 5'!AX$7,'Energy Prices'!$F$11:$CR$11,0))/100000,\"\")","v":""},{"$f":"IFERROR(AY87*INDEX('Energy Prices'!$F$12:$CR$17,MATCH('Data Input - Option 5'!$D95,'Energy Prices'!$C$12:$C$17,0),MATCH('Data Input - Option 5'!AY$7,'Energy Prices'!$F$11:$CR$11,0))/100000,\"\")","v":""},{"$f":"IFERROR(AZ87*INDEX('Energy Prices'!$F$12:$CR$17,MATCH('Data Input - Option 5'!$D95,'Energy Prices'!$C$12:$C$17,0),MATCH('Data Input - Option 5'!AZ$7,'Energy Prices'!$F$11:$CR$11,0))/100000,\"\")","v":""},{"$f":"IFERROR(BA87*INDEX('Energy Prices'!$F$12:$CR$17,MATCH('Data Input - Option 5'!$D95,'Energy Prices'!$C$12:$C$17,0),MATCH('Data Input - Option 5'!BA$7,'Energy Prices'!$F$11:$CR$11,0))/100000,\"\")","v":""},{"$f":"IFERROR(BB87*INDEX('Energy Prices'!$F$12:$CR$17,MATCH('Data Input - Option 5'!$D95,'Energy Prices'!$C$12:$C$17,0),MATCH('Data Input - Option 5'!BB$7,'Energy Prices'!$F$11:$CR$11,0))/100000,\"\")","v":""},{"$f":"IFERROR(BC87*INDEX('Energy Prices'!$F$12:$CR$17,MATCH('Data Input - Option 5'!$D95,'Energy Prices'!$C$12:$C$17,0),MATCH('Data Input - Option 5'!BC$7,'Energy Prices'!$F$11:$CR$11,0))/100000,\"\")","v":""},{"$f":"IFERROR(BD87*INDEX('Energy Prices'!$F$12:$CR$17,MATCH('Data Input - Option 5'!$D95,'Energy Prices'!$C$12:$C$17,0),MATCH('Data Input - Option 5'!BD$7,'Energy Prices'!$F$11:$CR$11,0))/100000,\"\")","v":""},{"$f":"IFERROR(BE87*INDEX('Energy Prices'!$F$12:$CR$17,MATCH('Data Input - Option 5'!$D95,'Energy Prices'!$C$12:$C$17,0),MATCH('Data Input - Option 5'!BE$7,'Energy Prices'!$F$11:$CR$11,0))/100000,\"\")","v":""},{"$f":"IFERROR(BF87*INDEX('Energy Prices'!$F$12:$CR$17,MATCH('Data Input - Option 5'!$D95,'Energy Prices'!$C$12:$C$17,0),MATCH('Data Input - Option 5'!BF$7,'Energy Prices'!$F$11:$CR$11,0))/100000,\"\")","v":""},{"$f":"IFERROR(BG87*INDEX('Energy Prices'!$F$12:$CR$17,MATCH('Data Input - Option 5'!$D95,'Energy Prices'!$C$12:$C$17,0),MATCH('Data Input - Option 5'!BG$7,'Energy Prices'!$F$11:$CR$11,0))/100000,\"\")","v":""},{"$f":"IFERROR(BH87*INDEX('Energy Prices'!$F$12:$CR$17,MATCH('Data Input - Option 5'!$D95,'Energy Prices'!$C$12:$C$17,0),MATCH('Data Input - Option 5'!BH$7,'Energy Prices'!$F$11:$CR$11,0))/100000,\"\")","v":""},{"$f":"IFERROR(BI87*INDEX('Energy Prices'!$F$12:$CR$17,MATCH('Data Input - Option 5'!$D95,'Energy Prices'!$C$12:$C$17,0),MATCH('Data Input - Option 5'!BI$7,'Energy Prices'!$F$11:$CR$11,0))/100000,\"\")","v":""},{"$f":"IFERROR(BJ87*INDEX('Energy Prices'!$F$12:$CR$17,MATCH('Data Input - Option 5'!$D95,'Energy Prices'!$C$12:$C$17,0),MATCH('Data Input - Option 5'!BJ$7,'Energy Prices'!$F$11:$CR$11,0))/100000,\"\")","v":""},{"$f":"IFERROR(BK87*INDEX('Energy Prices'!$F$12:$CR$17,MATCH('Data Input - Option 5'!$D95,'Energy Prices'!$C$12:$C$17,0),MATCH('Data Input - Option 5'!BK$7,'Energy Prices'!$F$11:$CR$11,0))/100000,\"\")","v":""},{"$f":"IFERROR(BL87*INDEX('Energy Prices'!$F$12:$CR$17,MATCH('Data Input - Option 5'!$D95,'Energy Prices'!$C$12:$C$17,0),MATCH('Data Input - Option 5'!BL$7,'Energy Prices'!$F$11:$CR$11,0))/100000,\"\")","v":""},{"$f":"IFERROR(BM87*INDEX('Energy Prices'!$F$12:$CR$17,MATCH('Data Input - Option 5'!$D95,'Energy Prices'!$C$12:$C$17,0),MATCH('Data Input - Option 5'!BM$7,'Energy Prices'!$F$11:$CR$11,0))/100000,\"\")","v":""},{"$f":"IFERROR(BN87*INDEX('Energy Prices'!$F$12:$CR$17,MATCH('Data Input - Option 5'!$D95,'Energy Prices'!$C$12:$C$17,0),MATCH('Data Input - Option 5'!BN$7,'Energy Prices'!$F$11:$CR$11,0))/100000,\"\")","v":""},{"$f":"IFERROR(BO87*INDEX('Energy Prices'!$F$12:$CR$17,MATCH('Data Input - Option 5'!$D95,'Energy Prices'!$C$12:$C$17,0),MATCH('Data Input - Option 5'!BO$7,'Energy Prices'!$F$11:$CR$11,0))/100000,\"\")","v":""},{"$f":"IFERROR(BP87*INDEX('Energy Prices'!$F$12:$CR$17,MATCH('Data Input - Option 5'!$D95,'Energy Prices'!$C$12:$C$17,0),MATCH('Data Input - Option 5'!BP$7,'Energy Prices'!$F$11:$CR$11,0))/100000,\"\")","v":""},{"$f":"IFERROR(BQ87*INDEX('Energy Prices'!$F$12:$CR$17,MATCH('Data Input - Option 5'!$D95,'Energy Prices'!$C$12:$C$17,0),MATCH('Data Input - Option 5'!BQ$7,'Energy Prices'!$F$11:$CR$11,0))/100000,\"\")","v":""},{"$f":"IFERROR(BR87*INDEX('Energy Prices'!$F$12:$CR$17,MATCH('Data Input - Option 5'!$D95,'Energy Prices'!$C$12:$C$17,0),MATCH('Data Input - Option 5'!BR$7,'Energy Prices'!$F$11:$CR$11,0))/100000,\"\")","v":""},{"$f":"IFERROR(BS87*INDEX('Energy Prices'!$F$12:$CR$17,MATCH('Data Input - Option 5'!$D95,'Energy Prices'!$C$12:$C$17,0),MATCH('Data Input - Option 5'!BS$7,'Energy Prices'!$F$11:$CR$11,0))/100000,\"\")","v":""},{"$f":"IFERROR(BT87*INDEX('Energy Prices'!$F$12:$CR$17,MATCH('Data Input - Option 5'!$D95,'Energy Prices'!$C$12:$C$17,0),MATCH('Data Input - Option 5'!BT$7,'Energy Prices'!$F$11:$CR$11,0))/100000,\"\")","v":""},{"$f":"IFERROR(BU87*INDEX('Energy Prices'!$F$12:$CR$17,MATCH('Data Input - Option 5'!$D95,'Energy Prices'!$C$12:$C$17,0),MATCH('Data Input - Option 5'!BU$7,'Energy Prices'!$F$11:$CR$11,0))/100000,\"\")","v":""},{"$f":"IFERROR(BV87*INDEX('Energy Prices'!$F$12:$CR$17,MATCH('Data Input - Option 5'!$D95,'Energy Prices'!$C$12:$C$17,0),MATCH('Data Input - Option 5'!BV$7,'Energy Prices'!$F$11:$CR$11,0))/100000,\"\")","v":""},{"$f":"IFERROR(BW87*INDEX('Energy Prices'!$F$12:$CR$17,MATCH('Data Input - Option 5'!$D95,'Energy Prices'!$C$12:$C$17,0),MATCH('Data Input - Option 5'!BW$7,'Energy Prices'!$F$11:$CR$11,0))/100000,\"\")","v":""},{"$f":"IFERROR(BX87*INDEX('Energy Prices'!$F$12:$CR$17,MATCH('Data Input - Option 5'!$D95,'Energy Prices'!$C$12:$C$17,0),MATCH('Data Input - Option 5'!BX$7,'Energy Prices'!$F$11:$CR$11,0))/100000,\"\")","v":""},{"$f":"IFERROR(BY87*INDEX('Energy Prices'!$F$12:$CR$17,MATCH('Data Input - Option 5'!$D95,'Energy Prices'!$C$12:$C$17,0),MATCH('Data Input - Option 5'!BY$7,'Energy Prices'!$F$11:$CR$11,0))/100000,\"\")","v":""},{"$f":"IFERROR(BZ87*INDEX('Energy Prices'!$F$12:$CR$17,MATCH('Data Input - Option 5'!$D95,'Energy Prices'!$C$12:$C$17,0),MATCH('Data Input - Option 5'!BZ$7,'Energy Prices'!$F$11:$CR$11,0))/100000,\"\")","v":""},{"$f":"IFERROR(CA87*INDEX('Energy Prices'!$F$12:$CR$17,MATCH('Data Input - Option 5'!$D95,'Energy Prices'!$C$12:$C$17,0),MATCH('Data Input - Option 5'!CA$7,'Energy Prices'!$F$11:$CR$11,0))/100000,\"\")","v":""},{"$f":"IFERROR(CB87*INDEX('Energy Prices'!$F$12:$CR$17,MATCH('Data Input - Option 5'!$D95,'Energy Prices'!$C$12:$C$17,0),MATCH('Data Input - Option 5'!CB$7,'Energy Prices'!$F$11:$CR$11,0))/100000,\"\")","v":""},{"$f":"IFERROR(CC87*INDEX('Energy Prices'!$F$12:$CR$17,MATCH('Data Input - Option 5'!$D95,'Energy Prices'!$C$12:$C$17,0),MATCH('Data Input - Option 5'!CC$7,'Energy Prices'!$F$11:$CR$11,0))/100000,\"\")","v":""},{"$f":"IFERROR(CD87*INDEX('Energy Prices'!$F$12:$CR$17,MATCH('Data Input - Option 5'!$D95,'Energy Prices'!$C$12:$C$17,0),MATCH('Data Input - Option 5'!CD$7,'Energy Prices'!$F$11:$CR$11,0))/100000,\"\")","v":""},{"$f":"IFERROR(CE87*INDEX('Energy Prices'!$F$12:$CR$17,MATCH('Data Input - Option 5'!$D95,'Energy Prices'!$C$12:$C$17,0),MATCH('Data Input - Option 5'!CE$7,'Energy Prices'!$F$11:$CR$11,0))/100000,\"\")","v":""},{"$f":"IFERROR(CF87*INDEX('Energy Prices'!$F$12:$CR$17,MATCH('Data Input - Option 5'!$D95,'Energy Prices'!$C$12:$C$17,0),MATCH('Data Input - Option 5'!CF$7,'Energy Prices'!$F$11:$CR$11,0))/100000,\"\")","v":""},{"$f":"IFERROR(CG87*INDEX('Energy Prices'!$F$12:$CR$17,MATCH('Data Input - Option 5'!$D95,'Energy Prices'!$C$12:$C$17,0),MATCH('Data Input - Option 5'!CG$7,'Energy Prices'!$F$11:$CR$11,0))/100000,\"\")","v":""},{"$f":"IFERROR(CH87*INDEX('Energy Prices'!$F$12:$CR$17,MATCH('Data Input - Option 5'!$D95,'Energy Prices'!$C$12:$C$17,0),MATCH('Data Input - Option 5'!CH$7,'Energy Prices'!$F$11:$CR$11,0))/100000,\"\")","v":""},{"$f":"IFERROR(CI87*INDEX('Energy Prices'!$F$12:$CR$17,MATCH('Data Input - Option 5'!$D95,'Energy Prices'!$C$12:$C$17,0),MATCH('Data Input - Option 5'!CI$7,'Energy Prices'!$F$11:$CR$11,0))/100000,\"\")","v":""},{"$f":"IFERROR(CJ87*INDEX('Energy Prices'!$F$12:$CR$17,MATCH('Data Input - Option 5'!$D95,'Energy Prices'!$C$12:$C$17,0),MATCH('Data Input - Option 5'!CJ$7,'Energy Prices'!$F$11:$CR$11,0))/100000,\"\")","v":""},{"$f":"IFERROR(CK87*INDEX('Energy Prices'!$F$12:$CR$17,MATCH('Data Input - Option 5'!$D95,'Energy Prices'!$C$12:$C$17,0),MATCH('Data Input - Option 5'!CK$7,'Energy Prices'!$F$11:$CR$11,0))/100000,\"\")","v":""},{"$f":"IFERROR(CL87*INDEX('Energy Prices'!$F$12:$CR$17,MATCH('Data Input - Option 5'!$D95,'Energy Prices'!$C$12:$C$17,0),MATCH('Data Input - Option 5'!CL$7,'Energy Prices'!$F$11:$CR$11,0))/100000,\"\")","v":""},{"$f":"IFERROR(CM87*INDEX('Energy Prices'!$F$12:$CR$17,MATCH('Data Input - Option 5'!$D95,'Energy Prices'!$C$12:$C$17,0),MATCH('Data Input - Option 5'!CM$7,'Energy Prices'!$F$11:$CR$11,0))/100000,\"\")","v":""},{"$f":"IFERROR(CN87*INDEX('Energy Prices'!$F$12:$CR$17,MATCH('Data Input - Option 5'!$D95,'Energy Prices'!$C$12:$C$17,0),MATCH('Data Input - Option 5'!CN$7,'Energy Prices'!$F$11:$CR$11,0))/100000,\"\")","v":""},{"$f":"IFERROR(CO87*INDEX('Energy Prices'!$F$12:$CR$17,MATCH('Data Input - Option 5'!$D95,'Energy Prices'!$C$12:$C$17,0),MATCH('Data Input - Option 5'!CO$7,'Energy Prices'!$F$11:$CR$11,0))/100000,\"\")","v":""},{"$f":"IFERROR(CP87*INDEX('Energy Prices'!$F$12:$CR$17,MATCH('Data Input - Option 5'!$D95,'Energy Prices'!$C$12:$C$17,0),MATCH('Data Input - Option 5'!CP$7,'Energy Prices'!$F$11:$CR$11,0))/100000,\"\")","v":""},{"$f":"IFERROR(CQ87*INDEX('Energy Prices'!$F$12:$CR$17,MATCH('Data Input - Option 5'!$D95,'Energy Prices'!$C$12:$C$17,0),MATCH('Data Input - Option 5'!CQ$7,'Energy Prices'!$F$11:$CR$11,0))/100000,\"\")","v":""},{"$f":"IFERROR(CR87*INDEX('Energy Prices'!$F$12:$CR$17,MATCH('Data Input - Option 5'!$D95,'Energy Prices'!$C$12:$C$17,0),MATCH('Data Input - Option 5'!CR$7,'Energy Prices'!$F$11:$CR$11,0))/100000,\"\")","v":""},{"$f":"IFERROR(CS87*INDEX('Energy Prices'!$F$12:$CR$17,MATCH('Data Input - Option 5'!$D95,'Energy Prices'!$C$12:$C$17,0),MATCH('Data Input - Option 5'!CS$7,'Energy Prices'!$F$11:$CR$11,0))/100000,\"\")","v":""},{"$f":"IFERROR(CT87*INDEX('Energy Prices'!$F$12:$CR$17,MATCH('Data Input - Option 5'!$D95,'Energy Prices'!$C$12:$C$17,0),MATCH('Data Input - Option 5'!CT$7,'Energy Prices'!$F$11:$CR$11,0))/100000,\"\")","v":""},{"$f":"IFERROR(CU87*INDEX('Energy Prices'!$F$12:$CR$17,MATCH('Data Input - Option 5'!$D95,'Energy Prices'!$C$12:$C$17,0),MATCH('Data Input - Option 5'!CU$7,'Energy Prices'!$F$11:$CR$11,0))/100000,\"\")","v":""},{"$f":"IFERROR(CV87*INDEX('Energy Prices'!$F$12:$CR$17,MATCH('Data Input - Option 5'!$D95,'Energy Prices'!$C$12:$C$17,0),MATCH('Data Input - Option 5'!CV$7,'Energy Prices'!$F$11:$CR$11,0))/100000,\"\")","v":""},{"$f":"IFERROR(CW87*INDEX('Energy Prices'!$F$12:$CR$17,MATCH('Data Input - Option 5'!$D95,'Energy Prices'!$C$12:$C$17,0),MATCH('Data Input - Option 5'!CW$7,'Energy Prices'!$F$11:$CR$11,0))/100000,\"\")","v":""},{"$f":"IFERROR(CX87*INDEX('Energy Prices'!$F$12:$CR$17,MATCH('Data Input - Option 5'!$D95,'Energy Prices'!$C$12:$C$17,0),MATCH('Data Input - Option 5'!CX$7,'Energy Prices'!$F$11:$CR$11,0))/100000,\"\")","v":""},{"$f":"IFERROR(CY87*INDEX('Energy Prices'!$F$12:$CR$17,MATCH('Data Input - Option 5'!$D95,'Energy Prices'!$C$12:$C$17,0),MATCH('Data Input - Option 5'!CY$7,'Energy Prices'!$F$11:$CR$11,0))/100000,\"\")","v":""},{"$f":"IFERROR(CZ87*INDEX('Energy Prices'!$F$12:$CR$17,MATCH('Data Input - Option 5'!$D95,'Energy Prices'!$C$12:$C$17,0),MATCH('Data Input - Option 5'!CZ$7,'Energy Prices'!$F$11:$CR$11,0))/100000,\"\")","v":""},{"$f":"IFERROR(DA87*INDEX('Energy Prices'!$F$12:$CR$17,MATCH('Data Input - Option 5'!$D95,'Energy Prices'!$C$12:$C$17,0),MATCH('Data Input - Option 5'!DA$7,'Energy Prices'!$F$11:$CR$11,0))/100000,\"\")","v":""},{"$f":"IFERROR(DB87*INDEX('Energy Prices'!$F$12:$CR$17,MATCH('Data Input - Option 5'!$D95,'Energy Prices'!$C$12:$C$17,0),MATCH('Data Input - Option 5'!DB$7,'Energy Prices'!$F$11:$CR$11,0))/100000,\"\")","v":""},{"$f":"IFERROR(DC87*INDEX('Energy Prices'!$F$12:$CR$17,MATCH('Data Input - Option 5'!$D95,'Energy Prices'!$C$12:$C$17,0),MATCH('Data Input - Option 5'!DC$7,'Energy Prices'!$F$11:$CR$11,0))/100000,\"\")","v":""}]
[null,null,null,"Road - Petrol","£000's","(Auto calculated value)",null,{"$f":"IFERROR(H88*INDEX('Energy Prices'!$F$12:$CR$17,MATCH('Data Input - Option 5'!$D96,'Energy Prices'!$C$12:$C$17,0),MATCH('Data Input - Option 5'!H$7,'Energy Prices'!$F$11:$CR$11,0))/100000,\"\")","v":0},{"$f":"IFERROR(I88*INDEX('Energy Prices'!$F$12:$CR$17,MATCH('Data Input - Option 5'!$D96,'Energy Prices'!$C$12:$C$17,0),MATCH('Data Input - Option 5'!I$7,'Energy Prices'!$F$11:$CR$11,0))/100000,\"\")","v":0},{"$f":"IFERROR(J88*INDEX('Energy Prices'!$F$12:$CR$17,MATCH('Data Input - Option 5'!$D96,'Energy Prices'!$C$12:$C$17,0),MATCH('Data Input - Option 5'!J$7,'Energy Prices'!$F$11:$CR$11,0))/100000,\"\")","v":0},{"$f":"IFERROR(K88*INDEX('Energy Prices'!$F$12:$CR$17,MATCH('Data Input - Option 5'!$D96,'Energy Prices'!$C$12:$C$17,0),MATCH('Data Input - Option 5'!K$7,'Energy Prices'!$F$11:$CR$11,0))/100000,\"\")","v":0},{"$f":"IFERROR(L88*INDEX('Energy Prices'!$F$12:$CR$17,MATCH('Data Input - Option 5'!$D96,'Energy Prices'!$C$12:$C$17,0),MATCH('Data Input - Option 5'!L$7,'Energy Prices'!$F$11:$CR$11,0))/100000,\"\")","v":0},{"$f":"IFERROR(M88*INDEX('Energy Prices'!$F$12:$CR$17,MATCH('Data Input - Option 5'!$D96,'Energy Prices'!$C$12:$C$17,0),MATCH('Data Input - Option 5'!M$7,'Energy Prices'!$F$11:$CR$11,0))/100000,\"\")","v":0},{"$f":"IFERROR(N88*INDEX('Energy Prices'!$F$12:$CR$17,MATCH('Data Input - Option 5'!$D96,'Energy Prices'!$C$12:$C$17,0),MATCH('Data Input - Option 5'!N$7,'Energy Prices'!$F$11:$CR$11,0))/100000,\"\")","v":0},{"$f":"IFERROR(O88*INDEX('Energy Prices'!$F$12:$CR$17,MATCH('Data Input - Option 5'!$D96,'Energy Prices'!$C$12:$C$17,0),MATCH('Data Input - Option 5'!O$7,'Energy Prices'!$F$11:$CR$11,0))/100000,\"\")","v":0},{"$f":"IFERROR(P88*INDEX('Energy Prices'!$F$12:$CR$17,MATCH('Data Input - Option 5'!$D96,'Energy Prices'!$C$12:$C$17,0),MATCH('Data Input - Option 5'!P$7,'Energy Prices'!$F$11:$CR$11,0))/100000,\"\")","v":0},{"$f":"IFERROR(Q88*INDEX('Energy Prices'!$F$12:$CR$17,MATCH('Data Input - Option 5'!$D96,'Energy Prices'!$C$12:$C$17,0),MATCH('Data Input - Option 5'!Q$7,'Energy Prices'!$F$11:$CR$11,0))/100000,\"\")","v":0},{"$f":"IFERROR(R88*INDEX('Energy Prices'!$F$12:$CR$17,MATCH('Data Input - Option 5'!$D96,'Energy Prices'!$C$12:$C$17,0),MATCH('Data Input - Option 5'!R$7,'Energy Prices'!$F$11:$CR$11,0))/100000,\"\")","v":0},{"$f":"IFERROR(S88*INDEX('Energy Prices'!$F$12:$CR$17,MATCH('Data Input - Option 5'!$D96,'Energy Prices'!$C$12:$C$17,0),MATCH('Data Input - Option 5'!S$7,'Energy Prices'!$F$11:$CR$11,0))/100000,\"\")","v":0},{"$f":"IFERROR(T88*INDEX('Energy Prices'!$F$12:$CR$17,MATCH('Data Input - Option 5'!$D96,'Energy Prices'!$C$12:$C$17,0),MATCH('Data Input - Option 5'!T$7,'Energy Prices'!$F$11:$CR$11,0))/100000,\"\")","v":0},{"$f":"IFERROR(U88*INDEX('Energy Prices'!$F$12:$CR$17,MATCH('Data Input - Option 5'!$D96,'Energy Prices'!$C$12:$C$17,0),MATCH('Data Input - Option 5'!U$7,'Energy Prices'!$F$11:$CR$11,0))/100000,\"\")","v":0},{"$f":"IFERROR(V88*INDEX('Energy Prices'!$F$12:$CR$17,MATCH('Data Input - Option 5'!$D96,'Energy Prices'!$C$12:$C$17,0),MATCH('Data Input - Option 5'!V$7,'Energy Prices'!$F$11:$CR$11,0))/100000,\"\")","v":0},{"$f":"IFERROR(W88*INDEX('Energy Prices'!$F$12:$CR$17,MATCH('Data Input - Option 5'!$D96,'Energy Prices'!$C$12:$C$17,0),MATCH('Data Input - Option 5'!W$7,'Energy Prices'!$F$11:$CR$11,0))/100000,\"\")","v":0},{"$f":"IFERROR(X88*INDEX('Energy Prices'!$F$12:$CR$17,MATCH('Data Input - Option 5'!$D96,'Energy Prices'!$C$12:$C$17,0),MATCH('Data Input - Option 5'!X$7,'Energy Prices'!$F$11:$CR$11,0))/100000,\"\")","v":0},{"$f":"IFERROR(Y88*INDEX('Energy Prices'!$F$12:$CR$17,MATCH('Data Input - Option 5'!$D96,'Energy Prices'!$C$12:$C$17,0),MATCH('Data Input - Option 5'!Y$7,'Energy Prices'!$F$11:$CR$11,0))/100000,\"\")","v":0},{"$f":"IFERROR(Z88*INDEX('Energy Prices'!$F$12:$CR$17,MATCH('Data Input - Option 5'!$D96,'Energy Prices'!$C$12:$C$17,0),MATCH('Data Input - Option 5'!Z$7,'Energy Prices'!$F$11:$CR$11,0))/100000,\"\")","v":0},{"$f":"IFERROR(AA88*INDEX('Energy Prices'!$F$12:$CR$17,MATCH('Data Input - Option 5'!$D96,'Energy Prices'!$C$12:$C$17,0),MATCH('Data Input - Option 5'!AA$7,'Energy Prices'!$F$11:$CR$11,0))/100000,\"\")","v":0},{"$f":"IFERROR(AB88*INDEX('Energy Prices'!$F$12:$CR$17,MATCH('Data Input - Option 5'!$D96,'Energy Prices'!$C$12:$C$17,0),MATCH('Data Input - Option 5'!AB$7,'Energy Prices'!$F$11:$CR$11,0))/100000,\"\")","v":0},{"$f":"IFERROR(AC88*INDEX('Energy Prices'!$F$12:$CR$17,MATCH('Data Input - Option 5'!$D96,'Energy Prices'!$C$12:$C$17,0),MATCH('Data Input - Option 5'!AC$7,'Energy Prices'!$F$11:$CR$11,0))/100000,\"\")","v":0},{"$f":"IFERROR(AD88*INDEX('Energy Prices'!$F$12:$CR$17,MATCH('Data Input - Option 5'!$D96,'Energy Prices'!$C$12:$C$17,0),MATCH('Data Input - Option 5'!AD$7,'Energy Prices'!$F$11:$CR$11,0))/100000,\"\")","v":0},{"$f":"IFERROR(AE88*INDEX('Energy Prices'!$F$12:$CR$17,MATCH('Data Input - Option 5'!$D96,'Energy Prices'!$C$12:$C$17,0),MATCH('Data Input - Option 5'!AE$7,'Energy Prices'!$F$11:$CR$11,0))/100000,\"\")","v":0},{"$f":"IFERROR(AF88*INDEX('Energy Prices'!$F$12:$CR$17,MATCH('Data Input - Option 5'!$D96,'Energy Prices'!$C$12:$C$17,0),MATCH('Data Input - Option 5'!AF$7,'Energy Prices'!$F$11:$CR$11,0))/100000,\"\")","v":0},{"$f":"IFERROR(AG88*INDEX('Energy Prices'!$F$12:$CR$17,MATCH('Data Input - Option 5'!$D96,'Energy Prices'!$C$12:$C$17,0),MATCH('Data Input - Option 5'!AG$7,'Energy Prices'!$F$11:$CR$11,0))/100000,\"\")","v":0},{"$f":"IFERROR(AH88*INDEX('Energy Prices'!$F$12:$CR$17,MATCH('Data Input - Option 5'!$D96,'Energy Prices'!$C$12:$C$17,0),MATCH('Data Input - Option 5'!AH$7,'Energy Prices'!$F$11:$CR$11,0))/100000,\"\")","v":0},{"$f":"IFERROR(AI88*INDEX('Energy Prices'!$F$12:$CR$17,MATCH('Data Input - Option 5'!$D96,'Energy Prices'!$C$12:$C$17,0),MATCH('Data Input - Option 5'!AI$7,'Energy Prices'!$F$11:$CR$11,0))/100000,\"\")","v":0},{"$f":"IFERROR(AJ88*INDEX('Energy Prices'!$F$12:$CR$17,MATCH('Data Input - Option 5'!$D96,'Energy Prices'!$C$12:$C$17,0),MATCH('Data Input - Option 5'!AJ$7,'Energy Prices'!$F$11:$CR$11,0))/100000,\"\")","v":0},{"$f":"IFERROR(AK88*INDEX('Energy Prices'!$F$12:$CR$17,MATCH('Data Input - Option 5'!$D96,'Energy Prices'!$C$12:$C$17,0),MATCH('Data Input - Option 5'!AK$7,'Energy Prices'!$F$11:$CR$11,0))/100000,\"\")","v":0},{"$f":"IFERROR(AL88*INDEX('Energy Prices'!$F$12:$CR$17,MATCH('Data Input - Option 5'!$D96,'Energy Prices'!$C$12:$C$17,0),MATCH('Data Input - Option 5'!AL$7,'Energy Prices'!$F$11:$CR$11,0))/100000,\"\")","v":0},{"$f":"IFERROR(AM88*INDEX('Energy Prices'!$F$12:$CR$17,MATCH('Data Input - Option 5'!$D96,'Energy Prices'!$C$12:$C$17,0),MATCH('Data Input - Option 5'!AM$7,'Energy Prices'!$F$11:$CR$11,0))/100000,\"\")","v":""},{"$f":"IFERROR(AN88*INDEX('Energy Prices'!$F$12:$CR$17,MATCH('Data Input - Option 5'!$D96,'Energy Prices'!$C$12:$C$17,0),MATCH('Data Input - Option 5'!AN$7,'Energy Prices'!$F$11:$CR$11,0))/100000,\"\")","v":""},{"$f":"IFERROR(AO88*INDEX('Energy Prices'!$F$12:$CR$17,MATCH('Data Input - Option 5'!$D96,'Energy Prices'!$C$12:$C$17,0),MATCH('Data Input - Option 5'!AO$7,'Energy Prices'!$F$11:$CR$11,0))/100000,\"\")","v":""},{"$f":"IFERROR(AP88*INDEX('Energy Prices'!$F$12:$CR$17,MATCH('Data Input - Option 5'!$D96,'Energy Prices'!$C$12:$C$17,0),MATCH('Data Input - Option 5'!AP$7,'Energy Prices'!$F$11:$CR$11,0))/100000,\"\")","v":""},{"$f":"IFERROR(AQ88*INDEX('Energy Prices'!$F$12:$CR$17,MATCH('Data Input - Option 5'!$D96,'Energy Prices'!$C$12:$C$17,0),MATCH('Data Input - Option 5'!AQ$7,'Energy Prices'!$F$11:$CR$11,0))/100000,\"\")","v":""},{"$f":"IFERROR(AR88*INDEX('Energy Prices'!$F$12:$CR$17,MATCH('Data Input - Option 5'!$D96,'Energy Prices'!$C$12:$C$17,0),MATCH('Data Input - Option 5'!AR$7,'Energy Prices'!$F$11:$CR$11,0))/100000,\"\")","v":""},{"$f":"IFERROR(AS88*INDEX('Energy Prices'!$F$12:$CR$17,MATCH('Data Input - Option 5'!$D96,'Energy Prices'!$C$12:$C$17,0),MATCH('Data Input - Option 5'!AS$7,'Energy Prices'!$F$11:$CR$11,0))/100000,\"\")","v":""},{"$f":"IFERROR(AT88*INDEX('Energy Prices'!$F$12:$CR$17,MATCH('Data Input - Option 5'!$D96,'Energy Prices'!$C$12:$C$17,0),MATCH('Data Input - Option 5'!AT$7,'Energy Prices'!$F$11:$CR$11,0))/100000,\"\")","v":""},{"$f":"IFERROR(AU88*INDEX('Energy Prices'!$F$12:$CR$17,MATCH('Data Input - Option 5'!$D96,'Energy Prices'!$C$12:$C$17,0),MATCH('Data Input - Option 5'!AU$7,'Energy Prices'!$F$11:$CR$11,0))/100000,\"\")","v":""},{"$f":"IFERROR(AV88*INDEX('Energy Prices'!$F$12:$CR$17,MATCH('Data Input - Option 5'!$D96,'Energy Prices'!$C$12:$C$17,0),MATCH('Data Input - Option 5'!AV$7,'Energy Prices'!$F$11:$CR$11,0))/100000,\"\")","v":""},{"$f":"IFERROR(AW88*INDEX('Energy Prices'!$F$12:$CR$17,MATCH('Data Input - Option 5'!$D96,'Energy Prices'!$C$12:$C$17,0),MATCH('Data Input - Option 5'!AW$7,'Energy Prices'!$F$11:$CR$11,0))/100000,\"\")","v":""},{"$f":"IFERROR(AX88*INDEX('Energy Prices'!$F$12:$CR$17,MATCH('Data Input - Option 5'!$D96,'Energy Prices'!$C$12:$C$17,0),MATCH('Data Input - Option 5'!AX$7,'Energy Prices'!$F$11:$CR$11,0))/100000,\"\")","v":""},{"$f":"IFERROR(AY88*INDEX('Energy Prices'!$F$12:$CR$17,MATCH('Data Input - Option 5'!$D96,'Energy Prices'!$C$12:$C$17,0),MATCH('Data Input - Option 5'!AY$7,'Energy Prices'!$F$11:$CR$11,0))/100000,\"\")","v":""},{"$f":"IFERROR(AZ88*INDEX('Energy Prices'!$F$12:$CR$17,MATCH('Data Input - Option 5'!$D96,'Energy Prices'!$C$12:$C$17,0),MATCH('Data Input - Option 5'!AZ$7,'Energy Prices'!$F$11:$CR$11,0))/100000,\"\")","v":""},{"$f":"IFERROR(BA88*INDEX('Energy Prices'!$F$12:$CR$17,MATCH('Data Input - Option 5'!$D96,'Energy Prices'!$C$12:$C$17,0),MATCH('Data Input - Option 5'!BA$7,'Energy Prices'!$F$11:$CR$11,0))/100000,\"\")","v":""},{"$f":"IFERROR(BB88*INDEX('Energy Prices'!$F$12:$CR$17,MATCH('Data Input - Option 5'!$D96,'Energy Prices'!$C$12:$C$17,0),MATCH('Data Input - Option 5'!BB$7,'Energy Prices'!$F$11:$CR$11,0))/100000,\"\")","v":""},{"$f":"IFERROR(BC88*INDEX('Energy Prices'!$F$12:$CR$17,MATCH('Data Input - Option 5'!$D96,'Energy Prices'!$C$12:$C$17,0),MATCH('Data Input - Option 5'!BC$7,'Energy Prices'!$F$11:$CR$11,0))/100000,\"\")","v":""},{"$f":"IFERROR(BD88*INDEX('Energy Prices'!$F$12:$CR$17,MATCH('Data Input - Option 5'!$D96,'Energy Prices'!$C$12:$C$17,0),MATCH('Data Input - Option 5'!BD$7,'Energy Prices'!$F$11:$CR$11,0))/100000,\"\")","v":""},{"$f":"IFERROR(BE88*INDEX('Energy Prices'!$F$12:$CR$17,MATCH('Data Input - Option 5'!$D96,'Energy Prices'!$C$12:$C$17,0),MATCH('Data Input - Option 5'!BE$7,'Energy Prices'!$F$11:$CR$11,0))/100000,\"\")","v":""},{"$f":"IFERROR(BF88*INDEX('Energy Prices'!$F$12:$CR$17,MATCH('Data Input - Option 5'!$D96,'Energy Prices'!$C$12:$C$17,0),MATCH('Data Input - Option 5'!BF$7,'Energy Prices'!$F$11:$CR$11,0))/100000,\"\")","v":""},{"$f":"IFERROR(BG88*INDEX('Energy Prices'!$F$12:$CR$17,MATCH('Data Input - Option 5'!$D96,'Energy Prices'!$C$12:$C$17,0),MATCH('Data Input - Option 5'!BG$7,'Energy Prices'!$F$11:$CR$11,0))/100000,\"\")","v":""},{"$f":"IFERROR(BH88*INDEX('Energy Prices'!$F$12:$CR$17,MATCH('Data Input - Option 5'!$D96,'Energy Prices'!$C$12:$C$17,0),MATCH('Data Input - Option 5'!BH$7,'Energy Prices'!$F$11:$CR$11,0))/100000,\"\")","v":""},{"$f":"IFERROR(BI88*INDEX('Energy Prices'!$F$12:$CR$17,MATCH('Data Input - Option 5'!$D96,'Energy Prices'!$C$12:$C$17,0),MATCH('Data Input - Option 5'!BI$7,'Energy Prices'!$F$11:$CR$11,0))/100000,\"\")","v":""},{"$f":"IFERROR(BJ88*INDEX('Energy Prices'!$F$12:$CR$17,MATCH('Data Input - Option 5'!$D96,'Energy Prices'!$C$12:$C$17,0),MATCH('Data Input - Option 5'!BJ$7,'Energy Prices'!$F$11:$CR$11,0))/100000,\"\")","v":""},{"$f":"IFERROR(BK88*INDEX('Energy Prices'!$F$12:$CR$17,MATCH('Data Input - Option 5'!$D96,'Energy Prices'!$C$12:$C$17,0),MATCH('Data Input - Option 5'!BK$7,'Energy Prices'!$F$11:$CR$11,0))/100000,\"\")","v":""},{"$f":"IFERROR(BL88*INDEX('Energy Prices'!$F$12:$CR$17,MATCH('Data Input - Option 5'!$D96,'Energy Prices'!$C$12:$C$17,0),MATCH('Data Input - Option 5'!BL$7,'Energy Prices'!$F$11:$CR$11,0))/100000,\"\")","v":""},{"$f":"IFERROR(BM88*INDEX('Energy Prices'!$F$12:$CR$17,MATCH('Data Input - Option 5'!$D96,'Energy Prices'!$C$12:$C$17,0),MATCH('Data Input - Option 5'!BM$7,'Energy Prices'!$F$11:$CR$11,0))/100000,\"\")","v":""},{"$f":"IFERROR(BN88*INDEX('Energy Prices'!$F$12:$CR$17,MATCH('Data Input - Option 5'!$D96,'Energy Prices'!$C$12:$C$17,0),MATCH('Data Input - Option 5'!BN$7,'Energy Prices'!$F$11:$CR$11,0))/100000,\"\")","v":""},{"$f":"IFERROR(BO88*INDEX('Energy Prices'!$F$12:$CR$17,MATCH('Data Input - Option 5'!$D96,'Energy Prices'!$C$12:$C$17,0),MATCH('Data Input - Option 5'!BO$7,'Energy Prices'!$F$11:$CR$11,0))/100000,\"\")","v":""},{"$f":"IFERROR(BP88*INDEX('Energy Prices'!$F$12:$CR$17,MATCH('Data Input - Option 5'!$D96,'Energy Prices'!$C$12:$C$17,0),MATCH('Data Input - Option 5'!BP$7,'Energy Prices'!$F$11:$CR$11,0))/100000,\"\")","v":""},{"$f":"IFERROR(BQ88*INDEX('Energy Prices'!$F$12:$CR$17,MATCH('Data Input - Option 5'!$D96,'Energy Prices'!$C$12:$C$17,0),MATCH('Data Input - Option 5'!BQ$7,'Energy Prices'!$F$11:$CR$11,0))/100000,\"\")","v":""},{"$f":"IFERROR(BR88*INDEX('Energy Prices'!$F$12:$CR$17,MATCH('Data Input - Option 5'!$D96,'Energy Prices'!$C$12:$C$17,0),MATCH('Data Input - Option 5'!BR$7,'Energy Prices'!$F$11:$CR$11,0))/100000,\"\")","v":""},{"$f":"IFERROR(BS88*INDEX('Energy Prices'!$F$12:$CR$17,MATCH('Data Input - Option 5'!$D96,'Energy Prices'!$C$12:$C$17,0),MATCH('Data Input - Option 5'!BS$7,'Energy Prices'!$F$11:$CR$11,0))/100000,\"\")","v":""},{"$f":"IFERROR(BT88*INDEX('Energy Prices'!$F$12:$CR$17,MATCH('Data Input - Option 5'!$D96,'Energy Prices'!$C$12:$C$17,0),MATCH('Data Input - Option 5'!BT$7,'Energy Prices'!$F$11:$CR$11,0))/100000,\"\")","v":""},{"$f":"IFERROR(BU88*INDEX('Energy Prices'!$F$12:$CR$17,MATCH('Data Input - Option 5'!$D96,'Energy Prices'!$C$12:$C$17,0),MATCH('Data Input - Option 5'!BU$7,'Energy Prices'!$F$11:$CR$11,0))/100000,\"\")","v":""},{"$f":"IFERROR(BV88*INDEX('Energy Prices'!$F$12:$CR$17,MATCH('Data Input - Option 5'!$D96,'Energy Prices'!$C$12:$C$17,0),MATCH('Data Input - Option 5'!BV$7,'Energy Prices'!$F$11:$CR$11,0))/100000,\"\")","v":""},{"$f":"IFERROR(BW88*INDEX('Energy Prices'!$F$12:$CR$17,MATCH('Data Input - Option 5'!$D96,'Energy Prices'!$C$12:$C$17,0),MATCH('Data Input - Option 5'!BW$7,'Energy Prices'!$F$11:$CR$11,0))/100000,\"\")","v":""},{"$f":"IFERROR(BX88*INDEX('Energy Prices'!$F$12:$CR$17,MATCH('Data Input - Option 5'!$D96,'Energy Prices'!$C$12:$C$17,0),MATCH('Data Input - Option 5'!BX$7,'Energy Prices'!$F$11:$CR$11,0))/100000,\"\")","v":""},{"$f":"IFERROR(BY88*INDEX('Energy Prices'!$F$12:$CR$17,MATCH('Data Input - Option 5'!$D96,'Energy Prices'!$C$12:$C$17,0),MATCH('Data Input - Option 5'!BY$7,'Energy Prices'!$F$11:$CR$11,0))/100000,\"\")","v":""},{"$f":"IFERROR(BZ88*INDEX('Energy Prices'!$F$12:$CR$17,MATCH('Data Input - Option 5'!$D96,'Energy Prices'!$C$12:$C$17,0),MATCH('Data Input - Option 5'!BZ$7,'Energy Prices'!$F$11:$CR$11,0))/100000,\"\")","v":""},{"$f":"IFERROR(CA88*INDEX('Energy Prices'!$F$12:$CR$17,MATCH('Data Input - Option 5'!$D96,'Energy Prices'!$C$12:$C$17,0),MATCH('Data Input - Option 5'!CA$7,'Energy Prices'!$F$11:$CR$11,0))/100000,\"\")","v":""},{"$f":"IFERROR(CB88*INDEX('Energy Prices'!$F$12:$CR$17,MATCH('Data Input - Option 5'!$D96,'Energy Prices'!$C$12:$C$17,0),MATCH('Data Input - Option 5'!CB$7,'Energy Prices'!$F$11:$CR$11,0))/100000,\"\")","v":""},{"$f":"IFERROR(CC88*INDEX('Energy Prices'!$F$12:$CR$17,MATCH('Data Input - Option 5'!$D96,'Energy Prices'!$C$12:$C$17,0),MATCH('Data Input - Option 5'!CC$7,'Energy Prices'!$F$11:$CR$11,0))/100000,\"\")","v":""},{"$f":"IFERROR(CD88*INDEX('Energy Prices'!$F$12:$CR$17,MATCH('Data Input - Option 5'!$D96,'Energy Prices'!$C$12:$C$17,0),MATCH('Data Input - Option 5'!CD$7,'Energy Prices'!$F$11:$CR$11,0))/100000,\"\")","v":""},{"$f":"IFERROR(CE88*INDEX('Energy Prices'!$F$12:$CR$17,MATCH('Data Input - Option 5'!$D96,'Energy Prices'!$C$12:$C$17,0),MATCH('Data Input - Option 5'!CE$7,'Energy Prices'!$F$11:$CR$11,0))/100000,\"\")","v":""},{"$f":"IFERROR(CF88*INDEX('Energy Prices'!$F$12:$CR$17,MATCH('Data Input - Option 5'!$D96,'Energy Prices'!$C$12:$C$17,0),MATCH('Data Input - Option 5'!CF$7,'Energy Prices'!$F$11:$CR$11,0))/100000,\"\")","v":""},{"$f":"IFERROR(CG88*INDEX('Energy Prices'!$F$12:$CR$17,MATCH('Data Input - Option 5'!$D96,'Energy Prices'!$C$12:$C$17,0),MATCH('Data Input - Option 5'!CG$7,'Energy Prices'!$F$11:$CR$11,0))/100000,\"\")","v":""},{"$f":"IFERROR(CH88*INDEX('Energy Prices'!$F$12:$CR$17,MATCH('Data Input - Option 5'!$D96,'Energy Prices'!$C$12:$C$17,0),MATCH('Data Input - Option 5'!CH$7,'Energy Prices'!$F$11:$CR$11,0))/100000,\"\")","v":""},{"$f":"IFERROR(CI88*INDEX('Energy Prices'!$F$12:$CR$17,MATCH('Data Input - Option 5'!$D96,'Energy Prices'!$C$12:$C$17,0),MATCH('Data Input - Option 5'!CI$7,'Energy Prices'!$F$11:$CR$11,0))/100000,\"\")","v":""},{"$f":"IFERROR(CJ88*INDEX('Energy Prices'!$F$12:$CR$17,MATCH('Data Input - Option 5'!$D96,'Energy Prices'!$C$12:$C$17,0),MATCH('Data Input - Option 5'!CJ$7,'Energy Prices'!$F$11:$CR$11,0))/100000,\"\")","v":""},{"$f":"IFERROR(CK88*INDEX('Energy Prices'!$F$12:$CR$17,MATCH('Data Input - Option 5'!$D96,'Energy Prices'!$C$12:$C$17,0),MATCH('Data Input - Option 5'!CK$7,'Energy Prices'!$F$11:$CR$11,0))/100000,\"\")","v":""},{"$f":"IFERROR(CL88*INDEX('Energy Prices'!$F$12:$CR$17,MATCH('Data Input - Option 5'!$D96,'Energy Prices'!$C$12:$C$17,0),MATCH('Data Input - Option 5'!CL$7,'Energy Prices'!$F$11:$CR$11,0))/100000,\"\")","v":""},{"$f":"IFERROR(CM88*INDEX('Energy Prices'!$F$12:$CR$17,MATCH('Data Input - Option 5'!$D96,'Energy Prices'!$C$12:$C$17,0),MATCH('Data Input - Option 5'!CM$7,'Energy Prices'!$F$11:$CR$11,0))/100000,\"\")","v":""},{"$f":"IFERROR(CN88*INDEX('Energy Prices'!$F$12:$CR$17,MATCH('Data Input - Option 5'!$D96,'Energy Prices'!$C$12:$C$17,0),MATCH('Data Input - Option 5'!CN$7,'Energy Prices'!$F$11:$CR$11,0))/100000,\"\")","v":""},{"$f":"IFERROR(CO88*INDEX('Energy Prices'!$F$12:$CR$17,MATCH('Data Input - Option 5'!$D96,'Energy Prices'!$C$12:$C$17,0),MATCH('Data Input - Option 5'!CO$7,'Energy Prices'!$F$11:$CR$11,0))/100000,\"\")","v":""},{"$f":"IFERROR(CP88*INDEX('Energy Prices'!$F$12:$CR$17,MATCH('Data Input - Option 5'!$D96,'Energy Prices'!$C$12:$C$17,0),MATCH('Data Input - Option 5'!CP$7,'Energy Prices'!$F$11:$CR$11,0))/100000,\"\")","v":""},{"$f":"IFERROR(CQ88*INDEX('Energy Prices'!$F$12:$CR$17,MATCH('Data Input - Option 5'!$D96,'Energy Prices'!$C$12:$C$17,0),MATCH('Data Input - Option 5'!CQ$7,'Energy Prices'!$F$11:$CR$11,0))/100000,\"\")","v":""},{"$f":"IFERROR(CR88*INDEX('Energy Prices'!$F$12:$CR$17,MATCH('Data Input - Option 5'!$D96,'Energy Prices'!$C$12:$C$17,0),MATCH('Data Input - Option 5'!CR$7,'Energy Prices'!$F$11:$CR$11,0))/100000,\"\")","v":""},{"$f":"IFERROR(CS88*INDEX('Energy Prices'!$F$12:$CR$17,MATCH('Data Input - Option 5'!$D96,'Energy Prices'!$C$12:$C$17,0),MATCH('Data Input - Option 5'!CS$7,'Energy Prices'!$F$11:$CR$11,0))/100000,\"\")","v":""},{"$f":"IFERROR(CT88*INDEX('Energy Prices'!$F$12:$CR$17,MATCH('Data Input - Option 5'!$D96,'Energy Prices'!$C$12:$C$17,0),MATCH('Data Input - Option 5'!CT$7,'Energy Prices'!$F$11:$CR$11,0))/100000,\"\")","v":""},{"$f":"IFERROR(CU88*INDEX('Energy Prices'!$F$12:$CR$17,MATCH('Data Input - Option 5'!$D96,'Energy Prices'!$C$12:$C$17,0),MATCH('Data Input - Option 5'!CU$7,'Energy Prices'!$F$11:$CR$11,0))/100000,\"\")","v":""},{"$f":"IFERROR(CV88*INDEX('Energy Prices'!$F$12:$CR$17,MATCH('Data Input - Option 5'!$D96,'Energy Prices'!$C$12:$C$17,0),MATCH('Data Input - Option 5'!CV$7,'Energy Prices'!$F$11:$CR$11,0))/100000,\"\")","v":""},{"$f":"IFERROR(CW88*INDEX('Energy Prices'!$F$12:$CR$17,MATCH('Data Input - Option 5'!$D96,'Energy Prices'!$C$12:$C$17,0),MATCH('Data Input - Option 5'!CW$7,'Energy Prices'!$F$11:$CR$11,0))/100000,\"\")","v":""},{"$f":"IFERROR(CX88*INDEX('Energy Prices'!$F$12:$CR$17,MATCH('Data Input - Option 5'!$D96,'Energy Prices'!$C$12:$C$17,0),MATCH('Data Input - Option 5'!CX$7,'Energy Prices'!$F$11:$CR$11,0))/100000,\"\")","v":""},{"$f":"IFERROR(CY88*INDEX('Energy Prices'!$F$12:$CR$17,MATCH('Data Input - Option 5'!$D96,'Energy Prices'!$C$12:$C$17,0),MATCH('Data Input - Option 5'!CY$7,'Energy Prices'!$F$11:$CR$11,0))/100000,\"\")","v":""},{"$f":"IFERROR(CZ88*INDEX('Energy Prices'!$F$12:$CR$17,MATCH('Data Input - Option 5'!$D96,'Energy Prices'!$C$12:$C$17,0),MATCH('Data Input - Option 5'!CZ$7,'Energy Prices'!$F$11:$CR$11,0))/100000,\"\")","v":""},{"$f":"IFERROR(DA88*INDEX('Energy Prices'!$F$12:$CR$17,MATCH('Data Input - Option 5'!$D96,'Energy Prices'!$C$12:$C$17,0),MATCH('Data Input - Option 5'!DA$7,'Energy Prices'!$F$11:$CR$11,0))/100000,\"\")","v":""},{"$f":"IFERROR(DB88*INDEX('Energy Prices'!$F$12:$CR$17,MATCH('Data Input - Option 5'!$D96,'Energy Prices'!$C$12:$C$17,0),MATCH('Data Input - Option 5'!DB$7,'Energy Prices'!$F$11:$CR$11,0))/100000,\"\")","v":""},{"$f":"IFERROR(DC88*INDEX('Energy Prices'!$F$12:$CR$17,MATCH('Data Input - Option 5'!$D96,'Energy Prices'!$C$12:$C$17,0),MATCH('Data Input - Option 5'!DC$7,'Energy Prices'!$F$11:$CR$11,0))/100000,\"\")","v":""}]
[null,null,null,"Road - Diesel","£000's","(Auto calculated value)",null,{"$f":"IFERROR(H89*INDEX('Energy Prices'!$F$12:$CR$17,MATCH('Data Input - Option 5'!$D97,'Energy Prices'!$C$12:$C$17,0),MATCH('Data Input - Option 5'!H$7,'Energy Prices'!$F$11:$CR$11,0))/100000,\"\")","v":0},{"$f":"IFERROR(I89*INDEX('Energy Prices'!$F$12:$CR$17,MATCH('Data Input - Option 5'!$D97,'Energy Prices'!$C$12:$C$17,0),MATCH('Data Input - Option 5'!I$7,'Energy Prices'!$F$11:$CR$11,0))/100000,\"\")","v":0},{"$f":"IFERROR(J89*INDEX('Energy Prices'!$F$12:$CR$17,MATCH('Data Input - Option 5'!$D97,'Energy Prices'!$C$12:$C$17,0),MATCH('Data Input - Option 5'!J$7,'Energy Prices'!$F$11:$CR$11,0))/100000,\"\")","v":0},{"$f":"IFERROR(K89*INDEX('Energy Prices'!$F$12:$CR$17,MATCH('Data Input - Option 5'!$D97,'Energy Prices'!$C$12:$C$17,0),MATCH('Data Input - Option 5'!K$7,'Energy Prices'!$F$11:$CR$11,0))/100000,\"\")","v":0},{"$f":"IFERROR(L89*INDEX('Energy Prices'!$F$12:$CR$17,MATCH('Data Input - Option 5'!$D97,'Energy Prices'!$C$12:$C$17,0),MATCH('Data Input - Option 5'!L$7,'Energy Prices'!$F$11:$CR$11,0))/100000,\"\")","v":0},{"$f":"IFERROR(M89*INDEX('Energy Prices'!$F$12:$CR$17,MATCH('Data Input - Option 5'!$D97,'Energy Prices'!$C$12:$C$17,0),MATCH('Data Input - Option 5'!M$7,'Energy Prices'!$F$11:$CR$11,0))/100000,\"\")","v":0},{"$f":"IFERROR(N89*INDEX('Energy Prices'!$F$12:$CR$17,MATCH('Data Input - Option 5'!$D97,'Energy Prices'!$C$12:$C$17,0),MATCH('Data Input - Option 5'!N$7,'Energy Prices'!$F$11:$CR$11,0))/100000,\"\")","v":0},{"$f":"IFERROR(O89*INDEX('Energy Prices'!$F$12:$CR$17,MATCH('Data Input - Option 5'!$D97,'Energy Prices'!$C$12:$C$17,0),MATCH('Data Input - Option 5'!O$7,'Energy Prices'!$F$11:$CR$11,0))/100000,\"\")","v":0},{"$f":"IFERROR(P89*INDEX('Energy Prices'!$F$12:$CR$17,MATCH('Data Input - Option 5'!$D97,'Energy Prices'!$C$12:$C$17,0),MATCH('Data Input - Option 5'!P$7,'Energy Prices'!$F$11:$CR$11,0))/100000,\"\")","v":0},{"$f":"IFERROR(Q89*INDEX('Energy Prices'!$F$12:$CR$17,MATCH('Data Input - Option 5'!$D97,'Energy Prices'!$C$12:$C$17,0),MATCH('Data Input - Option 5'!Q$7,'Energy Prices'!$F$11:$CR$11,0))/100000,\"\")","v":0},{"$f":"IFERROR(R89*INDEX('Energy Prices'!$F$12:$CR$17,MATCH('Data Input - Option 5'!$D97,'Energy Prices'!$C$12:$C$17,0),MATCH('Data Input - Option 5'!R$7,'Energy Prices'!$F$11:$CR$11,0))/100000,\"\")","v":0},{"$f":"IFERROR(S89*INDEX('Energy Prices'!$F$12:$CR$17,MATCH('Data Input - Option 5'!$D97,'Energy Prices'!$C$12:$C$17,0),MATCH('Data Input - Option 5'!S$7,'Energy Prices'!$F$11:$CR$11,0))/100000,\"\")","v":0},{"$f":"IFERROR(T89*INDEX('Energy Prices'!$F$12:$CR$17,MATCH('Data Input - Option 5'!$D97,'Energy Prices'!$C$12:$C$17,0),MATCH('Data Input - Option 5'!T$7,'Energy Prices'!$F$11:$CR$11,0))/100000,\"\")","v":0},{"$f":"IFERROR(U89*INDEX('Energy Prices'!$F$12:$CR$17,MATCH('Data Input - Option 5'!$D97,'Energy Prices'!$C$12:$C$17,0),MATCH('Data Input - Option 5'!U$7,'Energy Prices'!$F$11:$CR$11,0))/100000,\"\")","v":0},{"$f":"IFERROR(V89*INDEX('Energy Prices'!$F$12:$CR$17,MATCH('Data Input - Option 5'!$D97,'Energy Prices'!$C$12:$C$17,0),MATCH('Data Input - Option 5'!V$7,'Energy Prices'!$F$11:$CR$11,0))/100000,\"\")","v":0},{"$f":"IFERROR(W89*INDEX('Energy Prices'!$F$12:$CR$17,MATCH('Data Input - Option 5'!$D97,'Energy Prices'!$C$12:$C$17,0),MATCH('Data Input - Option 5'!W$7,'Energy Prices'!$F$11:$CR$11,0))/100000,\"\")","v":0},{"$f":"IFERROR(X89*INDEX('Energy Prices'!$F$12:$CR$17,MATCH('Data Input - Option 5'!$D97,'Energy Prices'!$C$12:$C$17,0),MATCH('Data Input - Option 5'!X$7,'Energy Prices'!$F$11:$CR$11,0))/100000,\"\")","v":0},{"$f":"IFERROR(Y89*INDEX('Energy Prices'!$F$12:$CR$17,MATCH('Data Input - Option 5'!$D97,'Energy Prices'!$C$12:$C$17,0),MATCH('Data Input - Option 5'!Y$7,'Energy Prices'!$F$11:$CR$11,0))/100000,\"\")","v":0},{"$f":"IFERROR(Z89*INDEX('Energy Prices'!$F$12:$CR$17,MATCH('Data Input - Option 5'!$D97,'Energy Prices'!$C$12:$C$17,0),MATCH('Data Input - Option 5'!Z$7,'Energy Prices'!$F$11:$CR$11,0))/100000,\"\")","v":0},{"$f":"IFERROR(AA89*INDEX('Energy Prices'!$F$12:$CR$17,MATCH('Data Input - Option 5'!$D97,'Energy Prices'!$C$12:$C$17,0),MATCH('Data Input - Option 5'!AA$7,'Energy Prices'!$F$11:$CR$11,0))/100000,\"\")","v":0},{"$f":"IFERROR(AB89*INDEX('Energy Prices'!$F$12:$CR$17,MATCH('Data Input - Option 5'!$D97,'Energy Prices'!$C$12:$C$17,0),MATCH('Data Input - Option 5'!AB$7,'Energy Prices'!$F$11:$CR$11,0))/100000,\"\")","v":0},{"$f":"IFERROR(AC89*INDEX('Energy Prices'!$F$12:$CR$17,MATCH('Data Input - Option 5'!$D97,'Energy Prices'!$C$12:$C$17,0),MATCH('Data Input - Option 5'!AC$7,'Energy Prices'!$F$11:$CR$11,0))/100000,\"\")","v":0},{"$f":"IFERROR(AD89*INDEX('Energy Prices'!$F$12:$CR$17,MATCH('Data Input - Option 5'!$D97,'Energy Prices'!$C$12:$C$17,0),MATCH('Data Input - Option 5'!AD$7,'Energy Prices'!$F$11:$CR$11,0))/100000,\"\")","v":0},{"$f":"IFERROR(AE89*INDEX('Energy Prices'!$F$12:$CR$17,MATCH('Data Input - Option 5'!$D97,'Energy Prices'!$C$12:$C$17,0),MATCH('Data Input - Option 5'!AE$7,'Energy Prices'!$F$11:$CR$11,0))/100000,\"\")","v":0},{"$f":"IFERROR(AF89*INDEX('Energy Prices'!$F$12:$CR$17,MATCH('Data Input - Option 5'!$D97,'Energy Prices'!$C$12:$C$17,0),MATCH('Data Input - Option 5'!AF$7,'Energy Prices'!$F$11:$CR$11,0))/100000,\"\")","v":0},{"$f":"IFERROR(AG89*INDEX('Energy Prices'!$F$12:$CR$17,MATCH('Data Input - Option 5'!$D97,'Energy Prices'!$C$12:$C$17,0),MATCH('Data Input - Option 5'!AG$7,'Energy Prices'!$F$11:$CR$11,0))/100000,\"\")","v":0},{"$f":"IFERROR(AH89*INDEX('Energy Prices'!$F$12:$CR$17,MATCH('Data Input - Option 5'!$D97,'Energy Prices'!$C$12:$C$17,0),MATCH('Data Input - Option 5'!AH$7,'Energy Prices'!$F$11:$CR$11,0))/100000,\"\")","v":0},{"$f":"IFERROR(AI89*INDEX('Energy Prices'!$F$12:$CR$17,MATCH('Data Input - Option 5'!$D97,'Energy Prices'!$C$12:$C$17,0),MATCH('Data Input - Option 5'!AI$7,'Energy Prices'!$F$11:$CR$11,0))/100000,\"\")","v":0},{"$f":"IFERROR(AJ89*INDEX('Energy Prices'!$F$12:$CR$17,MATCH('Data Input - Option 5'!$D97,'Energy Prices'!$C$12:$C$17,0),MATCH('Data Input - Option 5'!AJ$7,'Energy Prices'!$F$11:$CR$11,0))/100000,\"\")","v":0},{"$f":"IFERROR(AK89*INDEX('Energy Prices'!$F$12:$CR$17,MATCH('Data Input - Option 5'!$D97,'Energy Prices'!$C$12:$C$17,0),MATCH('Data Input - Option 5'!AK$7,'Energy Prices'!$F$11:$CR$11,0))/100000,\"\")","v":0},{"$f":"IFERROR(AL89*INDEX('Energy Prices'!$F$12:$CR$17,MATCH('Data Input - Option 5'!$D97,'Energy Prices'!$C$12:$C$17,0),MATCH('Data Input - Option 5'!AL$7,'Energy Prices'!$F$11:$CR$11,0))/100000,\"\")","v":0},{"$f":"IFERROR(AM89*INDEX('Energy Prices'!$F$12:$CR$17,MATCH('Data Input - Option 5'!$D97,'Energy Prices'!$C$12:$C$17,0),MATCH('Data Input - Option 5'!AM$7,'Energy Prices'!$F$11:$CR$11,0))/100000,\"\")","v":""},{"$f":"IFERROR(AN89*INDEX('Energy Prices'!$F$12:$CR$17,MATCH('Data Input - Option 5'!$D97,'Energy Prices'!$C$12:$C$17,0),MATCH('Data Input - Option 5'!AN$7,'Energy Prices'!$F$11:$CR$11,0))/100000,\"\")","v":""},{"$f":"IFERROR(AO89*INDEX('Energy Prices'!$F$12:$CR$17,MATCH('Data Input - Option 5'!$D97,'Energy Prices'!$C$12:$C$17,0),MATCH('Data Input - Option 5'!AO$7,'Energy Prices'!$F$11:$CR$11,0))/100000,\"\")","v":""},{"$f":"IFERROR(AP89*INDEX('Energy Prices'!$F$12:$CR$17,MATCH('Data Input - Option 5'!$D97,'Energy Prices'!$C$12:$C$17,0),MATCH('Data Input - Option 5'!AP$7,'Energy Prices'!$F$11:$CR$11,0))/100000,\"\")","v":""},{"$f":"IFERROR(AQ89*INDEX('Energy Prices'!$F$12:$CR$17,MATCH('Data Input - Option 5'!$D97,'Energy Prices'!$C$12:$C$17,0),MATCH('Data Input - Option 5'!AQ$7,'Energy Prices'!$F$11:$CR$11,0))/100000,\"\")","v":""},{"$f":"IFERROR(AR89*INDEX('Energy Prices'!$F$12:$CR$17,MATCH('Data Input - Option 5'!$D97,'Energy Prices'!$C$12:$C$17,0),MATCH('Data Input - Option 5'!AR$7,'Energy Prices'!$F$11:$CR$11,0))/100000,\"\")","v":""},{"$f":"IFERROR(AS89*INDEX('Energy Prices'!$F$12:$CR$17,MATCH('Data Input - Option 5'!$D97,'Energy Prices'!$C$12:$C$17,0),MATCH('Data Input - Option 5'!AS$7,'Energy Prices'!$F$11:$CR$11,0))/100000,\"\")","v":""},{"$f":"IFERROR(AT89*INDEX('Energy Prices'!$F$12:$CR$17,MATCH('Data Input - Option 5'!$D97,'Energy Prices'!$C$12:$C$17,0),MATCH('Data Input - Option 5'!AT$7,'Energy Prices'!$F$11:$CR$11,0))/100000,\"\")","v":""},{"$f":"IFERROR(AU89*INDEX('Energy Prices'!$F$12:$CR$17,MATCH('Data Input - Option 5'!$D97,'Energy Prices'!$C$12:$C$17,0),MATCH('Data Input - Option 5'!AU$7,'Energy Prices'!$F$11:$CR$11,0))/100000,\"\")","v":""},{"$f":"IFERROR(AV89*INDEX('Energy Prices'!$F$12:$CR$17,MATCH('Data Input - Option 5'!$D97,'Energy Prices'!$C$12:$C$17,0),MATCH('Data Input - Option 5'!AV$7,'Energy Prices'!$F$11:$CR$11,0))/100000,\"\")","v":""},{"$f":"IFERROR(AW89*INDEX('Energy Prices'!$F$12:$CR$17,MATCH('Data Input - Option 5'!$D97,'Energy Prices'!$C$12:$C$17,0),MATCH('Data Input - Option 5'!AW$7,'Energy Prices'!$F$11:$CR$11,0))/100000,\"\")","v":""},{"$f":"IFERROR(AX89*INDEX('Energy Prices'!$F$12:$CR$17,MATCH('Data Input - Option 5'!$D97,'Energy Prices'!$C$12:$C$17,0),MATCH('Data Input - Option 5'!AX$7,'Energy Prices'!$F$11:$CR$11,0))/100000,\"\")","v":""},{"$f":"IFERROR(AY89*INDEX('Energy Prices'!$F$12:$CR$17,MATCH('Data Input - Option 5'!$D97,'Energy Prices'!$C$12:$C$17,0),MATCH('Data Input - Option 5'!AY$7,'Energy Prices'!$F$11:$CR$11,0))/100000,\"\")","v":""},{"$f":"IFERROR(AZ89*INDEX('Energy Prices'!$F$12:$CR$17,MATCH('Data Input - Option 5'!$D97,'Energy Prices'!$C$12:$C$17,0),MATCH('Data Input - Option 5'!AZ$7,'Energy Prices'!$F$11:$CR$11,0))/100000,\"\")","v":""},{"$f":"IFERROR(BA89*INDEX('Energy Prices'!$F$12:$CR$17,MATCH('Data Input - Option 5'!$D97,'Energy Prices'!$C$12:$C$17,0),MATCH('Data Input - Option 5'!BA$7,'Energy Prices'!$F$11:$CR$11,0))/100000,\"\")","v":""},{"$f":"IFERROR(BB89*INDEX('Energy Prices'!$F$12:$CR$17,MATCH('Data Input - Option 5'!$D97,'Energy Prices'!$C$12:$C$17,0),MATCH('Data Input - Option 5'!BB$7,'Energy Prices'!$F$11:$CR$11,0))/100000,\"\")","v":""},{"$f":"IFERROR(BC89*INDEX('Energy Prices'!$F$12:$CR$17,MATCH('Data Input - Option 5'!$D97,'Energy Prices'!$C$12:$C$17,0),MATCH('Data Input - Option 5'!BC$7,'Energy Prices'!$F$11:$CR$11,0))/100000,\"\")","v":""},{"$f":"IFERROR(BD89*INDEX('Energy Prices'!$F$12:$CR$17,MATCH('Data Input - Option 5'!$D97,'Energy Prices'!$C$12:$C$17,0),MATCH('Data Input - Option 5'!BD$7,'Energy Prices'!$F$11:$CR$11,0))/100000,\"\")","v":""},{"$f":"IFERROR(BE89*INDEX('Energy Prices'!$F$12:$CR$17,MATCH('Data Input - Option 5'!$D97,'Energy Prices'!$C$12:$C$17,0),MATCH('Data Input - Option 5'!BE$7,'Energy Prices'!$F$11:$CR$11,0))/100000,\"\")","v":""},{"$f":"IFERROR(BF89*INDEX('Energy Prices'!$F$12:$CR$17,MATCH('Data Input - Option 5'!$D97,'Energy Prices'!$C$12:$C$17,0),MATCH('Data Input - Option 5'!BF$7,'Energy Prices'!$F$11:$CR$11,0))/100000,\"\")","v":""},{"$f":"IFERROR(BG89*INDEX('Energy Prices'!$F$12:$CR$17,MATCH('Data Input - Option 5'!$D97,'Energy Prices'!$C$12:$C$17,0),MATCH('Data Input - Option 5'!BG$7,'Energy Prices'!$F$11:$CR$11,0))/100000,\"\")","v":""},{"$f":"IFERROR(BH89*INDEX('Energy Prices'!$F$12:$CR$17,MATCH('Data Input - Option 5'!$D97,'Energy Prices'!$C$12:$C$17,0),MATCH('Data Input - Option 5'!BH$7,'Energy Prices'!$F$11:$CR$11,0))/100000,\"\")","v":""},{"$f":"IFERROR(BI89*INDEX('Energy Prices'!$F$12:$CR$17,MATCH('Data Input - Option 5'!$D97,'Energy Prices'!$C$12:$C$17,0),MATCH('Data Input - Option 5'!BI$7,'Energy Prices'!$F$11:$CR$11,0))/100000,\"\")","v":""},{"$f":"IFERROR(BJ89*INDEX('Energy Prices'!$F$12:$CR$17,MATCH('Data Input - Option 5'!$D97,'Energy Prices'!$C$12:$C$17,0),MATCH('Data Input - Option 5'!BJ$7,'Energy Prices'!$F$11:$CR$11,0))/100000,\"\")","v":""},{"$f":"IFERROR(BK89*INDEX('Energy Prices'!$F$12:$CR$17,MATCH('Data Input - Option 5'!$D97,'Energy Prices'!$C$12:$C$17,0),MATCH('Data Input - Option 5'!BK$7,'Energy Prices'!$F$11:$CR$11,0))/100000,\"\")","v":""},{"$f":"IFERROR(BL89*INDEX('Energy Prices'!$F$12:$CR$17,MATCH('Data Input - Option 5'!$D97,'Energy Prices'!$C$12:$C$17,0),MATCH('Data Input - Option 5'!BL$7,'Energy Prices'!$F$11:$CR$11,0))/100000,\"\")","v":""},{"$f":"IFERROR(BM89*INDEX('Energy Prices'!$F$12:$CR$17,MATCH('Data Input - Option 5'!$D97,'Energy Prices'!$C$12:$C$17,0),MATCH('Data Input - Option 5'!BM$7,'Energy Prices'!$F$11:$CR$11,0))/100000,\"\")","v":""},{"$f":"IFERROR(BN89*INDEX('Energy Prices'!$F$12:$CR$17,MATCH('Data Input - Option 5'!$D97,'Energy Prices'!$C$12:$C$17,0),MATCH('Data Input - Option 5'!BN$7,'Energy Prices'!$F$11:$CR$11,0))/100000,\"\")","v":""},{"$f":"IFERROR(BO89*INDEX('Energy Prices'!$F$12:$CR$17,MATCH('Data Input - Option 5'!$D97,'Energy Prices'!$C$12:$C$17,0),MATCH('Data Input - Option 5'!BO$7,'Energy Prices'!$F$11:$CR$11,0))/100000,\"\")","v":""},{"$f":"IFERROR(BP89*INDEX('Energy Prices'!$F$12:$CR$17,MATCH('Data Input - Option 5'!$D97,'Energy Prices'!$C$12:$C$17,0),MATCH('Data Input - Option 5'!BP$7,'Energy Prices'!$F$11:$CR$11,0))/100000,\"\")","v":""},{"$f":"IFERROR(BQ89*INDEX('Energy Prices'!$F$12:$CR$17,MATCH('Data Input - Option 5'!$D97,'Energy Prices'!$C$12:$C$17,0),MATCH('Data Input - Option 5'!BQ$7,'Energy Prices'!$F$11:$CR$11,0))/100000,\"\")","v":""},{"$f":"IFERROR(BR89*INDEX('Energy Prices'!$F$12:$CR$17,MATCH('Data Input - Option 5'!$D97,'Energy Prices'!$C$12:$C$17,0),MATCH('Data Input - Option 5'!BR$7,'Energy Prices'!$F$11:$CR$11,0))/100000,\"\")","v":""},{"$f":"IFERROR(BS89*INDEX('Energy Prices'!$F$12:$CR$17,MATCH('Data Input - Option 5'!$D97,'Energy Prices'!$C$12:$C$17,0),MATCH('Data Input - Option 5'!BS$7,'Energy Prices'!$F$11:$CR$11,0))/100000,\"\")","v":""},{"$f":"IFERROR(BT89*INDEX('Energy Prices'!$F$12:$CR$17,MATCH('Data Input - Option 5'!$D97,'Energy Prices'!$C$12:$C$17,0),MATCH('Data Input - Option 5'!BT$7,'Energy Prices'!$F$11:$CR$11,0))/100000,\"\")","v":""},{"$f":"IFERROR(BU89*INDEX('Energy Prices'!$F$12:$CR$17,MATCH('Data Input - Option 5'!$D97,'Energy Prices'!$C$12:$C$17,0),MATCH('Data Input - Option 5'!BU$7,'Energy Prices'!$F$11:$CR$11,0))/100000,\"\")","v":""},{"$f":"IFERROR(BV89*INDEX('Energy Prices'!$F$12:$CR$17,MATCH('Data Input - Option 5'!$D97,'Energy Prices'!$C$12:$C$17,0),MATCH('Data Input - Option 5'!BV$7,'Energy Prices'!$F$11:$CR$11,0))/100000,\"\")","v":""},{"$f":"IFERROR(BW89*INDEX('Energy Prices'!$F$12:$CR$17,MATCH('Data Input - Option 5'!$D97,'Energy Prices'!$C$12:$C$17,0),MATCH('Data Input - Option 5'!BW$7,'Energy Prices'!$F$11:$CR$11,0))/100000,\"\")","v":""},{"$f":"IFERROR(BX89*INDEX('Energy Prices'!$F$12:$CR$17,MATCH('Data Input - Option 5'!$D97,'Energy Prices'!$C$12:$C$17,0),MATCH('Data Input - Option 5'!BX$7,'Energy Prices'!$F$11:$CR$11,0))/100000,\"\")","v":""},{"$f":"IFERROR(BY89*INDEX('Energy Prices'!$F$12:$CR$17,MATCH('Data Input - Option 5'!$D97,'Energy Prices'!$C$12:$C$17,0),MATCH('Data Input - Option 5'!BY$7,'Energy Prices'!$F$11:$CR$11,0))/100000,\"\")","v":""},{"$f":"IFERROR(BZ89*INDEX('Energy Prices'!$F$12:$CR$17,MATCH('Data Input - Option 5'!$D97,'Energy Prices'!$C$12:$C$17,0),MATCH('Data Input - Option 5'!BZ$7,'Energy Prices'!$F$11:$CR$11,0))/100000,\"\")","v":""},{"$f":"IFERROR(CA89*INDEX('Energy Prices'!$F$12:$CR$17,MATCH('Data Input - Option 5'!$D97,'Energy Prices'!$C$12:$C$17,0),MATCH('Data Input - Option 5'!CA$7,'Energy Prices'!$F$11:$CR$11,0))/100000,\"\")","v":""},{"$f":"IFERROR(CB89*INDEX('Energy Prices'!$F$12:$CR$17,MATCH('Data Input - Option 5'!$D97,'Energy Prices'!$C$12:$C$17,0),MATCH('Data Input - Option 5'!CB$7,'Energy Prices'!$F$11:$CR$11,0))/100000,\"\")","v":""},{"$f":"IFERROR(CC89*INDEX('Energy Prices'!$F$12:$CR$17,MATCH('Data Input - Option 5'!$D97,'Energy Prices'!$C$12:$C$17,0),MATCH('Data Input - Option 5'!CC$7,'Energy Prices'!$F$11:$CR$11,0))/100000,\"\")","v":""},{"$f":"IFERROR(CD89*INDEX('Energy Prices'!$F$12:$CR$17,MATCH('Data Input - Option 5'!$D97,'Energy Prices'!$C$12:$C$17,0),MATCH('Data Input - Option 5'!CD$7,'Energy Prices'!$F$11:$CR$11,0))/100000,\"\")","v":""},{"$f":"IFERROR(CE89*INDEX('Energy Prices'!$F$12:$CR$17,MATCH('Data Input - Option 5'!$D97,'Energy Prices'!$C$12:$C$17,0),MATCH('Data Input - Option 5'!CE$7,'Energy Prices'!$F$11:$CR$11,0))/100000,\"\")","v":""},{"$f":"IFERROR(CF89*INDEX('Energy Prices'!$F$12:$CR$17,MATCH('Data Input - Option 5'!$D97,'Energy Prices'!$C$12:$C$17,0),MATCH('Data Input - Option 5'!CF$7,'Energy Prices'!$F$11:$CR$11,0))/100000,\"\")","v":""},{"$f":"IFERROR(CG89*INDEX('Energy Prices'!$F$12:$CR$17,MATCH('Data Input - Option 5'!$D97,'Energy Prices'!$C$12:$C$17,0),MATCH('Data Input - Option 5'!CG$7,'Energy Prices'!$F$11:$CR$11,0))/100000,\"\")","v":""},{"$f":"IFERROR(CH89*INDEX('Energy Prices'!$F$12:$CR$17,MATCH('Data Input - Option 5'!$D97,'Energy Prices'!$C$12:$C$17,0),MATCH('Data Input - Option 5'!CH$7,'Energy Prices'!$F$11:$CR$11,0))/100000,\"\")","v":""},{"$f":"IFERROR(CI89*INDEX('Energy Prices'!$F$12:$CR$17,MATCH('Data Input - Option 5'!$D97,'Energy Prices'!$C$12:$C$17,0),MATCH('Data Input - Option 5'!CI$7,'Energy Prices'!$F$11:$CR$11,0))/100000,\"\")","v":""},{"$f":"IFERROR(CJ89*INDEX('Energy Prices'!$F$12:$CR$17,MATCH('Data Input - Option 5'!$D97,'Energy Prices'!$C$12:$C$17,0),MATCH('Data Input - Option 5'!CJ$7,'Energy Prices'!$F$11:$CR$11,0))/100000,\"\")","v":""},{"$f":"IFERROR(CK89*INDEX('Energy Prices'!$F$12:$CR$17,MATCH('Data Input - Option 5'!$D97,'Energy Prices'!$C$12:$C$17,0),MATCH('Data Input - Option 5'!CK$7,'Energy Prices'!$F$11:$CR$11,0))/100000,\"\")","v":""},{"$f":"IFERROR(CL89*INDEX('Energy Prices'!$F$12:$CR$17,MATCH('Data Input - Option 5'!$D97,'Energy Prices'!$C$12:$C$17,0),MATCH('Data Input - Option 5'!CL$7,'Energy Prices'!$F$11:$CR$11,0))/100000,\"\")","v":""},{"$f":"IFERROR(CM89*INDEX('Energy Prices'!$F$12:$CR$17,MATCH('Data Input - Option 5'!$D97,'Energy Prices'!$C$12:$C$17,0),MATCH('Data Input - Option 5'!CM$7,'Energy Prices'!$F$11:$CR$11,0))/100000,\"\")","v":""},{"$f":"IFERROR(CN89*INDEX('Energy Prices'!$F$12:$CR$17,MATCH('Data Input - Option 5'!$D97,'Energy Prices'!$C$12:$C$17,0),MATCH('Data Input - Option 5'!CN$7,'Energy Prices'!$F$11:$CR$11,0))/100000,\"\")","v":""},{"$f":"IFERROR(CO89*INDEX('Energy Prices'!$F$12:$CR$17,MATCH('Data Input - Option 5'!$D97,'Energy Prices'!$C$12:$C$17,0),MATCH('Data Input - Option 5'!CO$7,'Energy Prices'!$F$11:$CR$11,0))/100000,\"\")","v":""},{"$f":"IFERROR(CP89*INDEX('Energy Prices'!$F$12:$CR$17,MATCH('Data Input - Option 5'!$D97,'Energy Prices'!$C$12:$C$17,0),MATCH('Data Input - Option 5'!CP$7,'Energy Prices'!$F$11:$CR$11,0))/100000,\"\")","v":""},{"$f":"IFERROR(CQ89*INDEX('Energy Prices'!$F$12:$CR$17,MATCH('Data Input - Option 5'!$D97,'Energy Prices'!$C$12:$C$17,0),MATCH('Data Input - Option 5'!CQ$7,'Energy Prices'!$F$11:$CR$11,0))/100000,\"\")","v":""},{"$f":"IFERROR(CR89*INDEX('Energy Prices'!$F$12:$CR$17,MATCH('Data Input - Option 5'!$D97,'Energy Prices'!$C$12:$C$17,0),MATCH('Data Input - Option 5'!CR$7,'Energy Prices'!$F$11:$CR$11,0))/100000,\"\")","v":""},{"$f":"IFERROR(CS89*INDEX('Energy Prices'!$F$12:$CR$17,MATCH('Data Input - Option 5'!$D97,'Energy Prices'!$C$12:$C$17,0),MATCH('Data Input - Option 5'!CS$7,'Energy Prices'!$F$11:$CR$11,0))/100000,\"\")","v":""},{"$f":"IFERROR(CT89*INDEX('Energy Prices'!$F$12:$CR$17,MATCH('Data Input - Option 5'!$D97,'Energy Prices'!$C$12:$C$17,0),MATCH('Data Input - Option 5'!CT$7,'Energy Prices'!$F$11:$CR$11,0))/100000,\"\")","v":""},{"$f":"IFERROR(CU89*INDEX('Energy Prices'!$F$12:$CR$17,MATCH('Data Input - Option 5'!$D97,'Energy Prices'!$C$12:$C$17,0),MATCH('Data Input - Option 5'!CU$7,'Energy Prices'!$F$11:$CR$11,0))/100000,\"\")","v":""},{"$f":"IFERROR(CV89*INDEX('Energy Prices'!$F$12:$CR$17,MATCH('Data Input - Option 5'!$D97,'Energy Prices'!$C$12:$C$17,0),MATCH('Data Input - Option 5'!CV$7,'Energy Prices'!$F$11:$CR$11,0))/100000,\"\")","v":""},{"$f":"IFERROR(CW89*INDEX('Energy Prices'!$F$12:$CR$17,MATCH('Data Input - Option 5'!$D97,'Energy Prices'!$C$12:$C$17,0),MATCH('Data Input - Option 5'!CW$7,'Energy Prices'!$F$11:$CR$11,0))/100000,\"\")","v":""},{"$f":"IFERROR(CX89*INDEX('Energy Prices'!$F$12:$CR$17,MATCH('Data Input - Option 5'!$D97,'Energy Prices'!$C$12:$C$17,0),MATCH('Data Input - Option 5'!CX$7,'Energy Prices'!$F$11:$CR$11,0))/100000,\"\")","v":""},{"$f":"IFERROR(CY89*INDEX('Energy Prices'!$F$12:$CR$17,MATCH('Data Input - Option 5'!$D97,'Energy Prices'!$C$12:$C$17,0),MATCH('Data Input - Option 5'!CY$7,'Energy Prices'!$F$11:$CR$11,0))/100000,\"\")","v":""},{"$f":"IFERROR(CZ89*INDEX('Energy Prices'!$F$12:$CR$17,MATCH('Data Input - Option 5'!$D97,'Energy Prices'!$C$12:$C$17,0),MATCH('Data Input - Option 5'!CZ$7,'Energy Prices'!$F$11:$CR$11,0))/100000,\"\")","v":""},{"$f":"IFERROR(DA89*INDEX('Energy Prices'!$F$12:$CR$17,MATCH('Data Input - Option 5'!$D97,'Energy Prices'!$C$12:$C$17,0),MATCH('Data Input - Option 5'!DA$7,'Energy Prices'!$F$11:$CR$11,0))/100000,\"\")","v":""},{"$f":"IFERROR(DB89*INDEX('Energy Prices'!$F$12:$CR$17,MATCH('Data Input - Option 5'!$D97,'Energy Prices'!$C$12:$C$17,0),MATCH('Data Input - Option 5'!DB$7,'Energy Prices'!$F$11:$CR$11,0))/100000,\"\")","v":""},{"$f":"IFERROR(DC89*INDEX('Energy Prices'!$F$12:$CR$17,MATCH('Data Input - Option 5'!$D97,'Energy Prices'!$C$12:$C$17,0),MATCH('Data Input - Option 5'!DC$7,'Energy Prices'!$F$11:$CR$11,0))/100000,\"\")","v":""}]
[null,null,"9.48","Other (please specify)","£000's"]
[]
[null,null,null,"Total cost of energy","£000's","(Auto calculated value)",null,{"$f":"SUM(H92:H99)","v":0},{"$f":"SUM(I92:I99)","v":0},{"$f":"SUM(J92:J99)","v":0},0,0,0,0,0,0,0,0,0,0,0,0,0,0,0,0,0,0,0,0,0,0,0,0,0,0,0,0,0,0,0,0,0,0,0,0,0,0,0,0,0,0,0,0,0,0,0,0,0,0,0,0,0,0,0,0,0,0,0,0,0,0,0,{"$f":"SUM(BV92:BV99)","v":0},0,0,0,0,0,0,0,0,0,0,0,0,0,0,0,0,0,0,0,0,0,0,0,0,0,0,0,0,0,0,0,0,0]
[]
[null,null,"Environmental impacts"]
[]
[null,null,null,"Air pollutant emissions","(?)"]
[null,null,"9.49",null,"Tonnes"," <(Select from dropdown)"]
[null,null,null,null,"Tonnes"," <(Select from dropdown)"]
[null,null,null,null,"Tonnes"," <(Select from dropdown)"]
[null,null,null,null,"Tonnes"," <(Select from dropdown)"]
[null,null,null,null,"Tonnes"," <(Select from dropdown)"]
[null,null,null,null,"Tonnes"," <(Select from dropdown)"]
[]
[null,null,null,"'Process-related' GHG emissions"]
[null,null,"9.50",null,"Tonnes"," <(Select from dropdown)"]
[]
[null,null,"9.51","Additional emission type (please specify)","tCO2e","(?)"]
[]
[null,null,null,"Total process GHG Emissions","tCO2e","(Auto calculated value)",null,{"$f":"IFERROR(IF(ISBLANK(H113),0,H113*INDEX(Assumptions!$D$20:$D$53,MATCH($D$113,lkpGreenHouseGases,0)))+IF(ISBLANK(H115),0,H115),0)","v":0},{"$f":"IFERROR(IF(ISBLANK(I113),0,I113*INDEX(Assumptions!$D$20:$D$53,MATCH($D$113,lkpGreenHouseGases,0)))+IF(ISBLANK(I115),0,I115),0)","v":0},{"$f":"IFERROR(IF(ISBLANK(J113),0,J113*INDEX(Assumptions!$D$20:$D$53,MATCH($D$113,lkpGreenHouseGases,0)))+IF(ISBLANK(J115),0,J115),0)","v":0},{"$f":"IFERROR(IF(ISBLANK(K113),0,K113*INDEX(Assumptions!$D$20:$D$53,MATCH($D$113,lkpGreenHouseGases,0)))+IF(ISBLANK(K115),0,K115),0)","v":0},{"$f":"IFERROR(IF(ISBLANK(L113),0,L113*INDEX(Assumptions!$D$20:$D$53,MATCH($D$113,lkpGreenHouseGases,0)))+IF(ISBLANK(L115),0,L115),0)","v":0},{"$f":"IFERROR(IF(ISBLANK(M113),0,M113*INDEX(Assumptions!$D$20:$D$53,MATCH($D$113,lkpGreenHouseGases,0)))+IF(ISBLANK(M115),0,M115),0)","v":0},{"$f":"IFERROR(IF(ISBLANK(N113),0,N113*INDEX(Assumptions!$D$20:$D$53,MATCH($D$113,lkpGreenHouseGases,0)))+IF(ISBLANK(N115),0,N115),0)","v":0},{"$f":"IFERROR(IF(ISBLANK(O113),0,O113*INDEX(Assumptions!$D$20:$D$53,MATCH($D$113,lkpGreenHouseGases,0)))+IF(ISBLANK(O115),0,O115),0)","v":0},{"$f":"IFERROR(IF(ISBLANK(P113),0,P113*INDEX(Assumptions!$D$20:$D$53,MATCH($D$113,lkpGreenHouseGases,0)))+IF(ISBLANK(P115),0,P115),0)","v":0},{"$f":"IFERROR(IF(ISBLANK(Q113),0,Q113*INDEX(Assumptions!$D$20:$D$53,MATCH($D$113,lkpGreenHouseGases,0)))+IF(ISBLANK(Q115),0,Q115),0)","v":0},{"$f":"IFERROR(IF(ISBLANK(R113),0,R113*INDEX(Assumptions!$D$20:$D$53,MATCH($D$113,lkpGreenHouseGases,0)))+IF(ISBLANK(R115),0,R115),0)","v":0},{"$f":"IFERROR(IF(ISBLANK(S113),0,S113*INDEX(Assumptions!$D$20:$D$53,MATCH($D$113,lkpGreenHouseGases,0)))+IF(ISBLANK(S115),0,S115),0)","v":0},{"$f":"IFERROR(IF(ISBLANK(T113),0,T113*INDEX(Assumptions!$D$20:$D$53,MATCH($D$113,lkpGreenHouseGases,0)))+IF(ISBLANK(T115),0,T115),0)","v":0},{"$f":"IFERROR(IF(ISBLANK(U113),0,U113*INDEX(Assumptions!$D$20:$D$53,MATCH($D$113,lkpGreenHouseGases,0)))+IF(ISBLANK(U115),0,U115),0)","v":0},{"$f":"IFERROR(IF(ISBLANK(V113),0,V113*INDEX(Assumptions!$D$20:$D$53,MATCH($D$113,lkpGreenHouseGases,0)))+IF(ISBLANK(V115),0,V115),0)","v":0},{"$f":"IFERROR(IF(ISBLANK(W113),0,W113*INDEX(Assumptions!$D$20:$D$53,MATCH($D$113,lkpGreenHouseGases,0)))+IF(ISBLANK(W115),0,W115),0)","v":0},{"$f":"IFERROR(IF(ISBLANK(X113),0,X113*INDEX(Assumptions!$D$20:$D$53,MATCH($D$113,lkpGreenHouseGases,0)))+IF(ISBLANK(X115),0,X115),0)","v":0},{"$f":"IFERROR(IF(ISBLANK(Y113),0,Y113*INDEX(Assumptions!$D$20:$D$53,MATCH($D$113,lkpGreenHouseGases,0)))+IF(ISBLANK(Y115),0,Y115),0)","v":0},{"$f":"IFERROR(IF(ISBLANK(Z113),0,Z113*INDEX(Assumptions!$D$20:$D$53,MATCH($D$113,lkpGreenHouseGases,0)))+IF(ISBLANK(Z115),0,Z115),0)","v":0},{"$f":"IFERROR(IF(ISBLANK(AA113),0,AA113*INDEX(Assumptions!$D$20:$D$53,MATCH($D$113,lkpGreenHouseGases,0)))+IF(ISBLANK(AA115),0,AA115),0)","v":0},{"$f":"IFERROR(IF(ISBLANK(AB113),0,AB113*INDEX(Assumptions!$D$20:$D$53,MATCH($D$113,lkpGreenHouseGases,0)))+IF(ISBLANK(AB115),0,AB115),0)","v":0},{"$f":"IFERROR(IF(ISBLANK(AC113),0,AC113*INDEX(Assumptions!$D$20:$D$53,MATCH($D$113,lkpGreenHouseGases,0)))+IF(ISBLANK(AC115),0,AC115),0)","v":0},{"$f":"IFERROR(IF(ISBLANK(AD113),0,AD113*INDEX(Assumptions!$D$20:$D$53,MATCH($D$113,lkpGreenHouseGases,0)))+IF(ISBLANK(AD115),0,AD115),0)","v":0},{"$f":"IFERROR(IF(ISBLANK(AE113),0,AE113*INDEX(Assumptions!$D$20:$D$53,MATCH($D$113,lkpGreenHouseGases,0)))+IF(ISBLANK(AE115),0,AE115),0)","v":0},{"$f":"IFERROR(IF(ISBLANK(AF113),0,AF113*INDEX(Assumptions!$D$20:$D$53,MATCH($D$113,lkpGreenHouseGases,0)))+IF(ISBLANK(AF115),0,AF115),0)","v":0},{"$f":"IFERROR(IF(ISBLANK(AG113),0,AG113*INDEX(Assumptions!$D$20:$D$53,MATCH($D$113,lkpGreenHouseGases,0)))+IF(ISBLANK(AG115),0,AG115),0)","v":0},{"$f":"IFERROR(IF(ISBLANK(AH113),0,AH113*INDEX(Assumptions!$D$20:$D$53,MATCH($D$113,lkpGreenHouseGases,0)))+IF(ISBLANK(AH115),0,AH115),0)","v":0},{"$f":"IFERROR(IF(ISBLANK(AI113),0,AI113*INDEX(Assumptions!$D$20:$D$53,MATCH($D$113,lkpGreenHouseGases,0)))+IF(ISBLANK(AI115),0,AI115),0)","v":0},{"$f":"IFERROR(IF(ISBLANK(AJ113),0,AJ113*INDEX(Assumptions!$D$20:$D$53,MATCH($D$113,lkpGreenHouseGases,0)))+IF(ISBLANK(AJ115),0,AJ115),0)","v":0},{"$f":"IFERROR(IF(ISBLANK(AK113),0,AK113*INDEX(Assumptions!$D$20:$D$53,MATCH($D$113,lkpGreenHouseGases,0)))+IF(ISBLANK(AK115),0,AK115),0)","v":0},{"$f":"IFERROR(IF(ISBLANK(AL113),0,AL113*INDEX(Assumptions!$D$20:$D$53,MATCH($D$113,lkpGreenHouseGases,0)))+IF(ISBLANK(AL115),0,AL115),0)","v":0},{"$f":"IFERROR(IF(ISBLANK(AM113),0,AM113*INDEX(Assumptions!$D$20:$D$53,MATCH($D$113,lkpGreenHouseGases,0)))+IF(ISBLANK(AM115),0,AM115),0)","v":0},{"$f":"IFERROR(IF(ISBLANK(AN113),0,AN113*INDEX(Assumptions!$D$20:$D$53,MATCH($D$113,lkpGreenHouseGases,0)))+IF(ISBLANK(AN115),0,AN115),0)","v":0},{"$f":"IFERROR(IF(ISBLANK(AO113),0,AO113*INDEX(Assumptions!$D$20:$D$53,MATCH($D$113,lkpGreenHouseGases,0)))+IF(ISBLANK(AO115),0,AO115),0)","v":0},{"$f":"IFERROR(IF(ISBLANK(AP113),0,AP113*INDEX(Assumptions!$D$20:$D$53,MATCH($D$113,lkpGreenHouseGases,0)))+IF(ISBLANK(AP115),0,AP115),0)","v":0},{"$f":"IFERROR(IF(ISBLANK(AQ113),0,AQ113*INDEX(Assumptions!$D$20:$D$53,MATCH($D$113,lkpGreenHouseGases,0)))+IF(ISBLANK(AQ115),0,AQ115),0)","v":0},{"$f":"IFERROR(IF(ISBLANK(AR113),0,AR113*INDEX(Assumptions!$D$20:$D$53,MATCH($D$113,lkpGreenHouseGases,0)))+IF(ISBLANK(AR115),0,AR115),0)","v":0},{"$f":"IFERROR(IF(ISBLANK(AS113),0,AS113*INDEX(Assumptions!$D$20:$D$53,MATCH($D$113,lkpGreenHouseGases,0)))+IF(ISBLANK(AS115),0,AS115),0)","v":0},{"$f":"IFERROR(IF(ISBLANK(AT113),0,AT113*INDEX(Assumptions!$D$20:$D$53,MATCH($D$113,lkpGreenHouseGases,0)))+IF(ISBLANK(AT115),0,AT115),0)","v":0},{"$f":"IFERROR(IF(ISBLANK(AU113),0,AU113*INDEX(Assumptions!$D$20:$D$53,MATCH($D$113,lkpGreenHouseGases,0)))+IF(ISBLANK(AU115),0,AU115),0)","v":0},{"$f":"IFERROR(IF(ISBLANK(AV113),0,AV113*INDEX(Assumptions!$D$20:$D$53,MATCH($D$113,lkpGreenHouseGases,0)))+IF(ISBLANK(AV115),0,AV115),0)","v":0},{"$f":"IFERROR(IF(ISBLANK(AW113),0,AW113*INDEX(Assumptions!$D$20:$D$53,MATCH($D$113,lkpGreenHouseGases,0)))+IF(ISBLANK(AW115),0,AW115),0)","v":0},{"$f":"IFERROR(IF(ISBLANK(AX113),0,AX113*INDEX(Assumptions!$D$20:$D$53,MATCH($D$113,lkpGreenHouseGases,0)))+IF(ISBLANK(AX115),0,AX115),0)","v":0},{"$f":"IFERROR(IF(ISBLANK(AY113),0,AY113*INDEX(Assumptions!$D$20:$D$53,MATCH($D$113,lkpGreenHouseGases,0)))+IF(ISBLANK(AY115),0,AY115),0)","v":0},{"$f":"IFERROR(IF(ISBLANK(AZ113),0,AZ113*INDEX(Assumptions!$D$20:$D$53,MATCH($D$113,lkpGreenHouseGases,0)))+IF(ISBLANK(AZ115),0,AZ115),0)","v":0},{"$f":"IFERROR(IF(ISBLANK(BA113),0,BA113*INDEX(Assumptions!$D$20:$D$53,MATCH($D$113,lkpGreenHouseGases,0)))+IF(ISBLANK(BA115),0,BA115),0)","v":0},{"$f":"IFERROR(IF(ISBLANK(BB113),0,BB113*INDEX(Assumptions!$D$20:$D$53,MATCH($D$113,lkpGreenHouseGases,0)))+IF(ISBLANK(BB115),0,BB115),0)","v":0},{"$f":"IFERROR(IF(ISBLANK(BC113),0,BC113*INDEX(Assumptions!$D$20:$D$53,MATCH($D$113,lkpGreenHouseGases,0)))+IF(ISBLANK(BC115),0,BC115),0)","v":0},{"$f":"IFERROR(IF(ISBLANK(BD113),0,BD113*INDEX(Assumptions!$D$20:$D$53,MATCH($D$113,lkpGreenHouseGases,0)))+IF(ISBLANK(BD115),0,BD115),0)","v":0},{"$f":"IFERROR(IF(ISBLANK(BE113),0,BE113*INDEX(Assumptions!$D$20:$D$53,MATCH($D$113,lkpGreenHouseGases,0)))+IF(ISBLANK(BE115),0,BE115),0)","v":0},{"$f":"IFERROR(IF(ISBLANK(BF113),0,BF113*INDEX(Assumptions!$D$20:$D$53,MATCH($D$113,lkpGreenHouseGases,0)))+IF(ISBLANK(BF115),0,BF115),0)","v":0},{"$f":"IFERROR(IF(ISBLANK(BG113),0,BG113*INDEX(Assumptions!$D$20:$D$53,MATCH($D$113,lkpGreenHouseGases,0)))+IF(ISBLANK(BG115),0,BG115),0)","v":0},{"$f":"IFERROR(IF(ISBLANK(BH113),0,BH113*INDEX(Assumptions!$D$20:$D$53,MATCH($D$113,lkpGreenHouseGases,0)))+IF(ISBLANK(BH115),0,BH115),0)","v":0},{"$f":"IFERROR(IF(ISBLANK(BI113),0,BI113*INDEX(Assumptions!$D$20:$D$53,MATCH($D$113,lkpGreenHouseGases,0)))+IF(ISBLANK(BI115),0,BI115),0)","v":0},{"$f":"IFERROR(IF(ISBLANK(BJ113),0,BJ113*INDEX(Assumptions!$D$20:$D$53,MATCH($D$113,lkpGreenHouseGases,0)))+IF(ISBLANK(BJ115),0,BJ115),0)","v":0},{"$f":"IFERROR(IF(ISBLANK(BK113),0,BK113*INDEX(Assumptions!$D$20:$D$53,MATCH($D$113,lkpGreenHouseGases,0)))+IF(ISBLANK(BK115),0,BK115),0)","v":0},{"$f":"IFERROR(IF(ISBLANK(BL113),0,BL113*INDEX(Assumptions!$D$20:$D$53,MATCH($D$113,lkpGreenHouseGases,0)))+IF(ISBLANK(BL115),0,BL115),0)","v":0},{"$f":"IFERROR(IF(ISBLANK(BM113),0,BM113*INDEX(Assumptions!$D$20:$D$53,MATCH($D$113,lkpGreenHouseGases,0)))+IF(ISBLANK(BM115),0,BM115),0)","v":0},{"$f":"IFERROR(IF(ISBLANK(BN113),0,BN113*INDEX(Assumptions!$D$20:$D$53,MATCH($D$113,lkpGreenHouseGases,0)))+IF(ISBLANK(BN115),0,BN115),0)","v":0},{"$f":"IFERROR(IF(ISBLANK(BO113),0,BO113*INDEX(Assumptions!$D$20:$D$53,MATCH($D$113,lkpGreenHouseGases,0)))+IF(ISBLANK(BO115),0,BO115),0)","v":0},{"$f":"IFERROR(IF(ISBLANK(BP113),0,BP113*INDEX(Assumptions!$D$20:$D$53,MATCH($D$113,lkpGreenHouseGases,0)))+IF(ISBLANK(BP115),0,BP115),0)","v":0},{"$f":"IFERROR(IF(ISBLANK(BQ113),0,BQ113*INDEX(Assumptions!$D$20:$D$53,MATCH($D$113,lkpGreenHouseGases,0)))+IF(ISBLANK(BQ115),0,BQ115),0)","v":0},{"$f":"IFERROR(IF(ISBLANK(BR113),0,BR113*INDEX(Assumptions!$D$20:$D$53,MATCH($D$113,lkpGreenHouseGases,0)))+IF(ISBLANK(BR115),0,BR115),0)","v":0},{"$f":"IFERROR(IF(ISBLANK(BS113),0,BS113*INDEX(Assumptions!$D$20:$D$53,MATCH($D$113,lkpGreenHouseGases,0)))+IF(ISBLANK(BS115),0,BS115),0)","v":0},{"$f":"IFERROR(IF(ISBLANK(BT113),0,BT113*INDEX(Assumptions!$D$20:$D$53,MATCH($D$113,lkpGreenHouseGases,0)))+IF(ISBLANK(BT115),0,BT115),0)","v":0},{"$f":"IFERROR(IF(ISBLANK(BU113),0,BU113*INDEX(Assumptions!$D$20:$D$53,MATCH($D$113,lkpGreenHouseGases,0)))+IF(ISBLANK(BU115),0,BU115),0)","v":0},{"$f":"IFERROR(IF(ISBLANK(BV113),0,BV113*INDEX(Assumptions!$D$20:$D$53,MATCH($D$113,lkpGreenHouseGases,0)))+IF(ISBLANK(BV115),0,BV115),0)","v":0},{"$f":"IFERROR(IF(ISBLANK(BW113),0,BW113*INDEX(Assumptions!$D$20:$D$53,MATCH($D$113,lkpGreenHouseGases,0)))+IF(ISBLANK(BW115),0,BW115),0)","v":0},{"$f":"IFERROR(IF(ISBLANK(BX113),0,BX113*INDEX(Assumptions!$D$20:$D$53,MATCH($D$113,lkpGreenHouseGases,0)))+IF(ISBLANK(BX115),0,BX115),0)","v":0},{"$f":"IFERROR(IF(ISBLANK(BY113),0,BY113*INDEX(Assumptions!$D$20:$D$53,MATCH($D$113,lkpGreenHouseGases,0)))+IF(ISBLANK(BY115),0,BY115),0)","v":0},{"$f":"IFERROR(IF(ISBLANK(BZ113),0,BZ113*INDEX(Assumptions!$D$20:$D$53,MATCH($D$113,lkpGreenHouseGases,0)))+IF(ISBLANK(BZ115),0,BZ115),0)","v":0},{"$f":"IFERROR(IF(ISBLANK(CA113),0,CA113*INDEX(Assumptions!$D$20:$D$53,MATCH($D$113,lkpGreenHouseGases,0)))+IF(ISBLANK(CA115),0,CA115),0)","v":0},{"$f":"IFERROR(IF(ISBLANK(CB113),0,CB113*INDEX(Assumptions!$D$20:$D$53,MATCH($D$113,lkpGreenHouseGases,0)))+IF(ISBLANK(CB115),0,CB115),0)","v":0},{"$f":"IFERROR(IF(ISBLANK(CC113),0,CC113*INDEX(Assumptions!$D$20:$D$53,MATCH($D$113,lkpGreenHouseGases,0)))+IF(ISBLANK(CC115),0,CC115),0)","v":0},{"$f":"IFERROR(IF(ISBLANK(CD113),0,CD113*INDEX(Assumptions!$D$20:$D$53,MATCH($D$113,lkpGreenHouseGases,0)))+IF(ISBLANK(CD115),0,CD115),0)","v":0},{"$f":"IFERROR(IF(ISBLANK(CE113),0,CE113*INDEX(Assumptions!$D$20:$D$53,MATCH($D$113,lkpGreenHouseGases,0)))+IF(ISBLANK(CE115),0,CE115),0)","v":0},{"$f":"IFERROR(IF(ISBLANK(CF113),0,CF113*INDEX(Assumptions!$D$20:$D$53,MATCH($D$113,lkpGreenHouseGases,0)))+IF(ISBLANK(CF115),0,CF115),0)","v":0},{"$f":"IFERROR(IF(ISBLANK(CG113),0,CG113*INDEX(Assumptions!$D$20:$D$53,MATCH($D$113,lkpGreenHouseGases,0)))+IF(ISBLANK(CG115),0,CG115),0)","v":0},{"$f":"IFERROR(IF(ISBLANK(CH113),0,CH113*INDEX(Assumptions!$D$20:$D$53,MATCH($D$113,lkpGreenHouseGases,0)))+IF(ISBLANK(CH115),0,CH115),0)","v":0},{"$f":"IFERROR(IF(ISBLANK(CI113),0,CI113*INDEX(Assumptions!$D$20:$D$53,MATCH($D$113,lkpGreenHouseGases,0)))+IF(ISBLANK(CI115),0,CI115),0)","v":0},{"$f":"IFERROR(IF(ISBLANK(CJ113),0,CJ113*INDEX(Assumptions!$D$20:$D$53,MATCH($D$113,lkpGreenHouseGases,0)))+IF(ISBLANK(CJ115),0,CJ115),0)","v":0},{"$f":"IFERROR(IF(ISBLANK(CK113),0,CK113*INDEX(Assumptions!$D$20:$D$53,MATCH($D$113,lkpGreenHouseGases,0)))+IF(ISBLANK(CK115),0,CK115),0)","v":0},{"$f":"IFERROR(IF(ISBLANK(CL113),0,CL113*INDEX(Assumptions!$D$20:$D$53,MATCH($D$113,lkpGreenHouseGases,0)))+IF(ISBLANK(CL115),0,CL115),0)","v":0},{"$f":"IFERROR(IF(ISBLANK(CM113),0,CM113*INDEX(Assumptions!$D$20:$D$53,MATCH($D$113,lkpGreenHouseGases,0)))+IF(ISBLANK(CM115),0,CM115),0)","v":0},{"$f":"IFERROR(IF(ISBLANK(CN113),0,CN113*INDEX(Assumptions!$D$20:$D$53,MATCH($D$113,lkpGreenHouseGases,0)))+IF(ISBLANK(CN115),0,CN115),0)","v":0},{"$f":"IFERROR(IF(ISBLANK(CO113),0,CO113*INDEX(Assumptions!$D$20:$D$53,MATCH($D$113,lkpGreenHouseGases,0)))+IF(ISBLANK(CO115),0,CO115),0)","v":0},{"$f":"IFERROR(IF(ISBLANK(CP113),0,CP113*INDEX(Assumptions!$D$20:$D$53,MATCH($D$113,lkpGreenHouseGases,0)))+IF(ISBLANK(CP115),0,CP115),0)","v":0},{"$f":"IFERROR(IF(ISBLANK(CQ113),0,CQ113*INDEX(Assumptions!$D$20:$D$53,MATCH($D$113,lkpGreenHouseGases,0)))+IF(ISBLANK(CQ115),0,CQ115),0)","v":0},{"$f":"IFERROR(IF(ISBLANK(CR113),0,CR113*INDEX(Assumptions!$D$20:$D$53,MATCH($D$113,lkpGreenHouseGases,0)))+IF(ISBLANK(CR115),0,CR115),0)","v":0},{"$f":"IFERROR(IF(ISBLANK(CS113),0,CS113*INDEX(Assumptions!$D$20:$D$53,MATCH($D$113,lkpGreenHouseGases,0)))+IF(ISBLANK(CS115),0,CS115),0)","v":0},{"$f":"IFERROR(IF(ISBLANK(CT113),0,CT113*INDEX(Assumptions!$D$20:$D$53,MATCH($D$113,lkpGreenHouseGases,0)))+IF(ISBLANK(CT115),0,CT115),0)","v":0},{"$f":"IFERROR(IF(ISBLANK(CU113),0,CU113*INDEX(Assumptions!$D$20:$D$53,MATCH($D$113,lkpGreenHouseGases,0)))+IF(ISBLANK(CU115),0,CU115),0)","v":0},{"$f":"IFERROR(IF(ISBLANK(CV113),0,CV113*INDEX(Assumptions!$D$20:$D$53,MATCH($D$113,lkpGreenHouseGases,0)))+IF(ISBLANK(CV115),0,CV115),0)","v":0},{"$f":"IFERROR(IF(ISBLANK(CW113),0,CW113*INDEX(Assumptions!$D$20:$D$53,MATCH($D$113,lkpGreenHouseGases,0)))+IF(ISBLANK(CW115),0,CW115),0)","v":0},{"$f":"IFERROR(IF(ISBLANK(CX113),0,CX113*INDEX(Assumptions!$D$20:$D$53,MATCH($D$113,lkpGreenHouseGases,0)))+IF(ISBLANK(CX115),0,CX115),0)","v":0},{"$f":"IFERROR(IF(ISBLANK(CY113),0,CY113*INDEX(Assumptions!$D$20:$D$53,MATCH($D$113,lkpGreenHouseGases,0)))+IF(ISBLANK(CY115),0,CY115),0)","v":0},{"$f":"IFERROR(IF(ISBLANK(CZ113),0,CZ113*INDEX(Assumptions!$D$20:$D$53,MATCH($D$113,lkpGreenHouseGases,0)))+IF(ISBLANK(CZ115),0,CZ115),0)","v":0},{"$f":"IFERROR(IF(ISBLANK(DA113),0,DA113*INDEX(Assumptions!$D$20:$D$53,MATCH($D$113,lkpGreenHouseGases,0)))+IF(ISBLANK(DA115),0,DA115),0)","v":0},{"$f":"IFERROR(IF(ISBLANK(DB113),0,DB113*INDEX(Assumptions!$D$20:$D$53,MATCH($D$113,lkpGreenHouseGases,0)))+IF(ISBLANK(DB115),0,DB115),0)","v":0},{"$f":"IFERROR(IF(ISBLANK(DC113),0,DC113*INDEX(Assumptions!$D$20:$D$53,MATCH($D$113,lkpGreenHouseGases,0)))+IF(ISBLANK(DC115),0,DC115),0)","v":0},{"$f":"IFERROR(IF(ISBLANK(DD113),0,DD113*INDEX(Assumptions!$D$20:$D$53,MATCH($D$113,lkpGreenHouseGases,0)))+IF(ISBLANK(DD115),0,DD115),0)","v":0}]
[]
[null,null,null,"'Fuel-related' GHG emissions","(?)"]
[null,null,null,{"$f":"D92","v":"Electricity"},"tCO2e","(Auto calculated value)",null,{"$f":"IFERROR(H84*INDEX('Emissions factors'!$F$5:$CR$10,MATCH('Data Input - Option 5'!$D120,'Emissions factors'!$C$5:$C$10,0),MATCH('Data Input - Option 5'!H$7,'Emissions factors'!$F$4:$CR$4,0))/1000,0)","v":0},{"$f":"IFERROR(I84*INDEX('Emissions factors'!$F$5:$CR$10,MATCH('Data Input - Option 5'!$D120,'Emissions factors'!$C$5:$C$10,0),MATCH('Data Input - Option 5'!I$7,'Emissions factors'!$F$4:$CR$4,0))/1000,0)","v":0},{"$f":"IFERROR(J84*INDEX('Emissions factors'!$F$5:$CR$10,MATCH('Data Input - Option 5'!$D120,'Emissions factors'!$C$5:$C$10,0),MATCH('Data Input - Option 5'!J$7,'Emissions factors'!$F$4:$CR$4,0))/1000,0)","v":0},{"$f":"IFERROR(K84*INDEX('Emissions factors'!$F$5:$CR$10,MATCH('Data Input - Option 5'!$D120,'Emissions factors'!$C$5:$C$10,0),MATCH('Data Input - Option 5'!K$7,'Emissions factors'!$F$4:$CR$4,0))/1000,0)","v":0},{"$f":"IFERROR(L84*INDEX('Emissions factors'!$F$5:$CR$10,MATCH('Data Input - Option 5'!$D120,'Emissions factors'!$C$5:$C$10,0),MATCH('Data Input - Option 5'!L$7,'Emissions factors'!$F$4:$CR$4,0))/1000,0)","v":0},{"$f":"IFERROR(M84*INDEX('Emissions factors'!$F$5:$CR$10,MATCH('Data Input - Option 5'!$D120,'Emissions factors'!$C$5:$C$10,0),MATCH('Data Input - Option 5'!M$7,'Emissions factors'!$F$4:$CR$4,0))/1000,0)","v":0},{"$f":"IFERROR(N84*INDEX('Emissions factors'!$F$5:$CR$10,MATCH('Data Input - Option 5'!$D120,'Emissions factors'!$C$5:$C$10,0),MATCH('Data Input - Option 5'!N$7,'Emissions factors'!$F$4:$CR$4,0))/1000,0)","v":0},{"$f":"IFERROR(O84*INDEX('Emissions factors'!$F$5:$CR$10,MATCH('Data Input - Option 5'!$D120,'Emissions factors'!$C$5:$C$10,0),MATCH('Data Input - Option 5'!O$7,'Emissions factors'!$F$4:$CR$4,0))/1000,0)","v":0},{"$f":"IFERROR(P84*INDEX('Emissions factors'!$F$5:$CR$10,MATCH('Data Input - Option 5'!$D120,'Emissions factors'!$C$5:$C$10,0),MATCH('Data Input - Option 5'!P$7,'Emissions factors'!$F$4:$CR$4,0))/1000,0)","v":0},{"$f":"IFERROR(Q84*INDEX('Emissions factors'!$F$5:$CR$10,MATCH('Data Input - Option 5'!$D120,'Emissions factors'!$C$5:$C$10,0),MATCH('Data Input - Option 5'!Q$7,'Emissions factors'!$F$4:$CR$4,0))/1000,0)","v":0},{"$f":"IFERROR(R84*INDEX('Emissions factors'!$F$5:$CR$10,MATCH('Data Input - Option 5'!$D120,'Emissions factors'!$C$5:$C$10,0),MATCH('Data Input - Option 5'!R$7,'Emissions factors'!$F$4:$CR$4,0))/1000,0)","v":0},{"$f":"IFERROR(S84*INDEX('Emissions factors'!$F$5:$CR$10,MATCH('Data Input - Option 5'!$D120,'Emissions factors'!$C$5:$C$10,0),MATCH('Data Input - Option 5'!S$7,'Emissions factors'!$F$4:$CR$4,0))/1000,0)","v":0},{"$f":"IFERROR(T84*INDEX('Emissions factors'!$F$5:$CR$10,MATCH('Data Input - Option 5'!$D120,'Emissions factors'!$C$5:$C$10,0),MATCH('Data Input - Option 5'!T$7,'Emissions factors'!$F$4:$CR$4,0))/1000,0)","v":0},{"$f":"IFERROR(U84*INDEX('Emissions factors'!$F$5:$CR$10,MATCH('Data Input - Option 5'!$D120,'Emissions factors'!$C$5:$C$10,0),MATCH('Data Input - Option 5'!U$7,'Emissions factors'!$F$4:$CR$4,0))/1000,0)","v":0},{"$f":"IFERROR(V84*INDEX('Emissions factors'!$F$5:$CR$10,MATCH('Data Input - Option 5'!$D120,'Emissions factors'!$C$5:$C$10,0),MATCH('Data Input - Option 5'!V$7,'Emissions factors'!$F$4:$CR$4,0))/1000,0)","v":0},{"$f":"IFERROR(W84*INDEX('Emissions factors'!$F$5:$CR$10,MATCH('Data Input - Option 5'!$D120,'Emissions factors'!$C$5:$C$10,0),MATCH('Data Input - Option 5'!W$7,'Emissions factors'!$F$4:$CR$4,0))/1000,0)","v":0},{"$f":"IFERROR(X84*INDEX('Emissions factors'!$F$5:$CR$10,MATCH('Data Input - Option 5'!$D120,'Emissions factors'!$C$5:$C$10,0),MATCH('Data Input - Option 5'!X$7,'Emissions factors'!$F$4:$CR$4,0))/1000,0)","v":0},{"$f":"IFERROR(Y84*INDEX('Emissions factors'!$F$5:$CR$10,MATCH('Data Input - Option 5'!$D120,'Emissions factors'!$C$5:$C$10,0),MATCH('Data Input - Option 5'!Y$7,'Emissions factors'!$F$4:$CR$4,0))/1000,0)","v":0},{"$f":"IFERROR(Z84*INDEX('Emissions factors'!$F$5:$CR$10,MATCH('Data Input - Option 5'!$D120,'Emissions factors'!$C$5:$C$10,0),MATCH('Data Input - Option 5'!Z$7,'Emissions factors'!$F$4:$CR$4,0))/1000,0)","v":0},{"$f":"IFERROR(AA84*INDEX('Emissions factors'!$F$5:$CR$10,MATCH('Data Input - Option 5'!$D120,'Emissions factors'!$C$5:$C$10,0),MATCH('Data Input - Option 5'!AA$7,'Emissions factors'!$F$4:$CR$4,0))/1000,0)","v":0},{"$f":"IFERROR(AB84*INDEX('Emissions factors'!$F$5:$CR$10,MATCH('Data Input - Option 5'!$D120,'Emissions factors'!$C$5:$C$10,0),MATCH('Data Input - Option 5'!AB$7,'Emissions factors'!$F$4:$CR$4,0))/1000,0)","v":0},{"$f":"IFERROR(AC84*INDEX('Emissions factors'!$F$5:$CR$10,MATCH('Data Input - Option 5'!$D120,'Emissions factors'!$C$5:$C$10,0),MATCH('Data Input - Option 5'!AC$7,'Emissions factors'!$F$4:$CR$4,0))/1000,0)","v":0},{"$f":"IFERROR(AD84*INDEX('Emissions factors'!$F$5:$CR$10,MATCH('Data Input - Option 5'!$D120,'Emissions factors'!$C$5:$C$10,0),MATCH('Data Input - Option 5'!AD$7,'Emissions factors'!$F$4:$CR$4,0))/1000,0)","v":0},{"$f":"IFERROR(AE84*INDEX('Emissions factors'!$F$5:$CR$10,MATCH('Data Input - Option 5'!$D120,'Emissions factors'!$C$5:$C$10,0),MATCH('Data Input - Option 5'!AE$7,'Emissions factors'!$F$4:$CR$4,0))/1000,0)","v":0},{"$f":"IFERROR(AF84*INDEX('Emissions factors'!$F$5:$CR$10,MATCH('Data Input - Option 5'!$D120,'Emissions factors'!$C$5:$C$10,0),MATCH('Data Input - Option 5'!AF$7,'Emissions factors'!$F$4:$CR$4,0))/1000,0)","v":0},{"$f":"IFERROR(AG84*INDEX('Emissions factors'!$F$5:$CR$10,MATCH('Data Input - Option 5'!$D120,'Emissions factors'!$C$5:$C$10,0),MATCH('Data Input - Option 5'!AG$7,'Emissions factors'!$F$4:$CR$4,0))/1000,0)","v":0},{"$f":"IFERROR(AH84*INDEX('Emissions factors'!$F$5:$CR$10,MATCH('Data Input - Option 5'!$D120,'Emissions factors'!$C$5:$C$10,0),MATCH('Data Input - Option 5'!AH$7,'Emissions factors'!$F$4:$CR$4,0))/1000,0)","v":0},{"$f":"IFERROR(AI84*INDEX('Emissions factors'!$F$5:$CR$10,MATCH('Data Input - Option 5'!$D120,'Emissions factors'!$C$5:$C$10,0),MATCH('Data Input - Option 5'!AI$7,'Emissions factors'!$F$4:$CR$4,0))/1000,0)","v":0},{"$f":"IFERROR(AJ84*INDEX('Emissions factors'!$F$5:$CR$10,MATCH('Data Input - Option 5'!$D120,'Emissions factors'!$C$5:$C$10,0),MATCH('Data Input - Option 5'!AJ$7,'Emissions factors'!$F$4:$CR$4,0))/1000,0)","v":0},{"$f":"IFERROR(AK84*INDEX('Emissions factors'!$F$5:$CR$10,MATCH('Data Input - Option 5'!$D120,'Emissions factors'!$C$5:$C$10,0),MATCH('Data Input - Option 5'!AK$7,'Emissions factors'!$F$4:$CR$4,0))/1000,0)","v":0},{"$f":"IFERROR(AL84*INDEX('Emissions factors'!$F$5:$CR$10,MATCH('Data Input - Option 5'!$D120,'Emissions factors'!$C$5:$C$10,0),MATCH('Data Input - Option 5'!AL$7,'Emissions factors'!$F$4:$CR$4,0))/1000,0)","v":0},{"$f":"IFERROR(AM84*INDEX('Emissions factors'!$F$5:$CR$10,MATCH('Data Input - Option 5'!$D120,'Emissions factors'!$C$5:$C$10,0),MATCH('Data Input - Option 5'!AM$7,'Emissions factors'!$F$4:$CR$4,0))/1000,0)","v":0},{"$f":"IFERROR(AN84*INDEX('Emissions factors'!$F$5:$CR$10,MATCH('Data Input - Option 5'!$D120,'Emissions factors'!$C$5:$C$10,0),MATCH('Data Input - Option 5'!AN$7,'Emissions factors'!$F$4:$CR$4,0))/1000,0)","v":0},{"$f":"IFERROR(AO84*INDEX('Emissions factors'!$F$5:$CR$10,MATCH('Data Input - Option 5'!$D120,'Emissions factors'!$C$5:$C$10,0),MATCH('Data Input - Option 5'!AO$7,'Emissions factors'!$F$4:$CR$4,0))/1000,0)","v":0},{"$f":"IFERROR(AP84*INDEX('Emissions factors'!$F$5:$CR$10,MATCH('Data Input - Option 5'!$D120,'Emissions factors'!$C$5:$C$10,0),MATCH('Data Input - Option 5'!AP$7,'Emissions factors'!$F$4:$CR$4,0))/1000,0)","v":0},{"$f":"IFERROR(AQ84*INDEX('Emissions factors'!$F$5:$CR$10,MATCH('Data Input - Option 5'!$D120,'Emissions factors'!$C$5:$C$10,0),MATCH('Data Input - Option 5'!AQ$7,'Emissions factors'!$F$4:$CR$4,0))/1000,0)","v":0},{"$f":"IFERROR(AR84*INDEX('Emissions factors'!$F$5:$CR$10,MATCH('Data Input - Option 5'!$D120,'Emissions factors'!$C$5:$C$10,0),MATCH('Data Input - Option 5'!AR$7,'Emissions factors'!$F$4:$CR$4,0))/1000,0)","v":0},{"$f":"IFERROR(AS84*INDEX('Emissions factors'!$F$5:$CR$10,MATCH('Data Input - Option 5'!$D120,'Emissions factors'!$C$5:$C$10,0),MATCH('Data Input - Option 5'!AS$7,'Emissions factors'!$F$4:$CR$4,0))/1000,0)","v":0},{"$f":"IFERROR(AT84*INDEX('Emissions factors'!$F$5:$CR$10,MATCH('Data Input - Option 5'!$D120,'Emissions factors'!$C$5:$C$10,0),MATCH('Data Input - Option 5'!AT$7,'Emissions factors'!$F$4:$CR$4,0))/1000,0)","v":0},{"$f":"IFERROR(AU84*INDEX('Emissions factors'!$F$5:$CR$10,MATCH('Data Input - Option 5'!$D120,'Emissions factors'!$C$5:$C$10,0),MATCH('Data Input - Option 5'!AU$7,'Emissions factors'!$F$4:$CR$4,0))/1000,0)","v":0},{"$f":"IFERROR(AV84*INDEX('Emissions factors'!$F$5:$CR$10,MATCH('Data Input - Option 5'!$D120,'Emissions factors'!$C$5:$C$10,0),MATCH('Data Input - Option 5'!AV$7,'Emissions factors'!$F$4:$CR$4,0))/1000,0)","v":0},{"$f":"IFERROR(AW84*INDEX('Emissions factors'!$F$5:$CR$10,MATCH('Data Input - Option 5'!$D120,'Emissions factors'!$C$5:$C$10,0),MATCH('Data Input - Option 5'!AW$7,'Emissions factors'!$F$4:$CR$4,0))/1000,0)","v":0},{"$f":"IFERROR(AX84*INDEX('Emissions factors'!$F$5:$CR$10,MATCH('Data Input - Option 5'!$D120,'Emissions factors'!$C$5:$C$10,0),MATCH('Data Input - Option 5'!AX$7,'Emissions factors'!$F$4:$CR$4,0))/1000,0)","v":0},{"$f":"IFERROR(AY84*INDEX('Emissions factors'!$F$5:$CR$10,MATCH('Data Input - Option 5'!$D120,'Emissions factors'!$C$5:$C$10,0),MATCH('Data Input - Option 5'!AY$7,'Emissions factors'!$F$4:$CR$4,0))/1000,0)","v":0},{"$f":"IFERROR(AZ84*INDEX('Emissions factors'!$F$5:$CR$10,MATCH('Data Input - Option 5'!$D120,'Emissions factors'!$C$5:$C$10,0),MATCH('Data Input - Option 5'!AZ$7,'Emissions factors'!$F$4:$CR$4,0))/1000,0)","v":0},{"$f":"IFERROR(BA84*INDEX('Emissions factors'!$F$5:$CR$10,MATCH('Data Input - Option 5'!$D120,'Emissions factors'!$C$5:$C$10,0),MATCH('Data Input - Option 5'!BA$7,'Emissions factors'!$F$4:$CR$4,0))/1000,0)","v":0},{"$f":"IFERROR(BB84*INDEX('Emissions factors'!$F$5:$CR$10,MATCH('Data Input - Option 5'!$D120,'Emissions factors'!$C$5:$C$10,0),MATCH('Data Input - Option 5'!BB$7,'Emissions factors'!$F$4:$CR$4,0))/1000,0)","v":0},{"$f":"IFERROR(BC84*INDEX('Emissions factors'!$F$5:$CR$10,MATCH('Data Input - Option 5'!$D120,'Emissions factors'!$C$5:$C$10,0),MATCH('Data Input - Option 5'!BC$7,'Emissions factors'!$F$4:$CR$4,0))/1000,0)","v":0},{"$f":"IFERROR(BD84*INDEX('Emissions factors'!$F$5:$CR$10,MATCH('Data Input - Option 5'!$D120,'Emissions factors'!$C$5:$C$10,0),MATCH('Data Input - Option 5'!BD$7,'Emissions factors'!$F$4:$CR$4,0))/1000,0)","v":0},{"$f":"IFERROR(BE84*INDEX('Emissions factors'!$F$5:$CR$10,MATCH('Data Input - Option 5'!$D120,'Emissions factors'!$C$5:$C$10,0),MATCH('Data Input - Option 5'!BE$7,'Emissions factors'!$F$4:$CR$4,0))/1000,0)","v":0},{"$f":"IFERROR(BF84*INDEX('Emissions factors'!$F$5:$CR$10,MATCH('Data Input - Option 5'!$D120,'Emissions factors'!$C$5:$C$10,0),MATCH('Data Input - Option 5'!BF$7,'Emissions factors'!$F$4:$CR$4,0))/1000,0)","v":0},{"$f":"IFERROR(BG84*INDEX('Emissions factors'!$F$5:$CR$10,MATCH('Data Input - Option 5'!$D120,'Emissions factors'!$C$5:$C$10,0),MATCH('Data Input - Option 5'!BG$7,'Emissions factors'!$F$4:$CR$4,0))/1000,0)","v":0},{"$f":"IFERROR(BH84*INDEX('Emissions factors'!$F$5:$CR$10,MATCH('Data Input - Option 5'!$D120,'Emissions factors'!$C$5:$C$10,0),MATCH('Data Input - Option 5'!BH$7,'Emissions factors'!$F$4:$CR$4,0))/1000,0)","v":0},{"$f":"IFERROR(BI84*INDEX('Emissions factors'!$F$5:$CR$10,MATCH('Data Input - Option 5'!$D120,'Emissions factors'!$C$5:$C$10,0),MATCH('Data Input - Option 5'!BI$7,'Emissions factors'!$F$4:$CR$4,0))/1000,0)","v":0},{"$f":"IFERROR(BJ84*INDEX('Emissions factors'!$F$5:$CR$10,MATCH('Data Input - Option 5'!$D120,'Emissions factors'!$C$5:$C$10,0),MATCH('Data Input - Option 5'!BJ$7,'Emissions factors'!$F$4:$CR$4,0))/1000,0)","v":0},{"$f":"IFERROR(BK84*INDEX('Emissions factors'!$F$5:$CR$10,MATCH('Data Input - Option 5'!$D120,'Emissions factors'!$C$5:$C$10,0),MATCH('Data Input - Option 5'!BK$7,'Emissions factors'!$F$4:$CR$4,0))/1000,0)","v":0},{"$f":"IFERROR(BL84*INDEX('Emissions factors'!$F$5:$CR$10,MATCH('Data Input - Option 5'!$D120,'Emissions factors'!$C$5:$C$10,0),MATCH('Data Input - Option 5'!BL$7,'Emissions factors'!$F$4:$CR$4,0))/1000,0)","v":0},{"$f":"IFERROR(BM84*INDEX('Emissions factors'!$F$5:$CR$10,MATCH('Data Input - Option 5'!$D120,'Emissions factors'!$C$5:$C$10,0),MATCH('Data Input - Option 5'!BM$7,'Emissions factors'!$F$4:$CR$4,0))/1000,0)","v":0},{"$f":"IFERROR(BN84*INDEX('Emissions factors'!$F$5:$CR$10,MATCH('Data Input - Option 5'!$D120,'Emissions factors'!$C$5:$C$10,0),MATCH('Data Input - Option 5'!BN$7,'Emissions factors'!$F$4:$CR$4,0))/1000,0)","v":0},{"$f":"IFERROR(BO84*INDEX('Emissions factors'!$F$5:$CR$10,MATCH('Data Input - Option 5'!$D120,'Emissions factors'!$C$5:$C$10,0),MATCH('Data Input - Option 5'!BO$7,'Emissions factors'!$F$4:$CR$4,0))/1000,0)","v":0},{"$f":"IFERROR(BP84*INDEX('Emissions factors'!$F$5:$CR$10,MATCH('Data Input - Option 5'!$D120,'Emissions factors'!$C$5:$C$10,0),MATCH('Data Input - Option 5'!BP$7,'Emissions factors'!$F$4:$CR$4,0))/1000,0)","v":0},{"$f":"IFERROR(BQ84*INDEX('Emissions factors'!$F$5:$CR$10,MATCH('Data Input - Option 5'!$D120,'Emissions factors'!$C$5:$C$10,0),MATCH('Data Input - Option 5'!BQ$7,'Emissions factors'!$F$4:$CR$4,0))/1000,0)","v":0},{"$f":"IFERROR(BR84*INDEX('Emissions factors'!$F$5:$CR$10,MATCH('Data Input - Option 5'!$D120,'Emissions factors'!$C$5:$C$10,0),MATCH('Data Input - Option 5'!BR$7,'Emissions factors'!$F$4:$CR$4,0))/1000,0)","v":0},{"$f":"IFERROR(BS84*INDEX('Emissions factors'!$F$5:$CR$10,MATCH('Data Input - Option 5'!$D120,'Emissions factors'!$C$5:$C$10,0),MATCH('Data Input - Option 5'!BS$7,'Emissions factors'!$F$4:$CR$4,0))/1000,0)","v":0},{"$f":"IFERROR(BT84*INDEX('Emissions factors'!$F$5:$CR$10,MATCH('Data Input - Option 5'!$D120,'Emissions factors'!$C$5:$C$10,0),MATCH('Data Input - Option 5'!BT$7,'Emissions factors'!$F$4:$CR$4,0))/1000,0)","v":0},{"$f":"IFERROR(BU84*INDEX('Emissions factors'!$F$5:$CR$10,MATCH('Data Input - Option 5'!$D120,'Emissions factors'!$C$5:$C$10,0),MATCH('Data Input - Option 5'!BU$7,'Emissions factors'!$F$4:$CR$4,0))/1000,0)","v":0},{"$f":"IFERROR(BV84*INDEX('Emissions factors'!$F$5:$CR$10,MATCH('Data Input - Option 5'!$D120,'Emissions factors'!$C$5:$C$10,0),MATCH('Data Input - Option 5'!BV$7,'Emissions factors'!$F$4:$CR$4,0))/1000,0)","v":0},{"$f":"IFERROR(BW84*INDEX('Emissions factors'!$F$5:$CR$10,MATCH('Data Input - Option 5'!$D120,'Emissions factors'!$C$5:$C$10,0),MATCH('Data Input - Option 5'!BW$7,'Emissions factors'!$F$4:$CR$4,0))/1000,0)","v":0},{"$f":"IFERROR(BX84*INDEX('Emissions factors'!$F$5:$CR$10,MATCH('Data Input - Option 5'!$D120,'Emissions factors'!$C$5:$C$10,0),MATCH('Data Input - Option 5'!BX$7,'Emissions factors'!$F$4:$CR$4,0))/1000,0)","v":0},{"$f":"IFERROR(BY84*INDEX('Emissions factors'!$F$5:$CR$10,MATCH('Data Input - Option 5'!$D120,'Emissions factors'!$C$5:$C$10,0),MATCH('Data Input - Option 5'!BY$7,'Emissions factors'!$F$4:$CR$4,0))/1000,0)","v":0},{"$f":"IFERROR(BZ84*INDEX('Emissions factors'!$F$5:$CR$10,MATCH('Data Input - Option 5'!$D120,'Emissions factors'!$C$5:$C$10,0),MATCH('Data Input - Option 5'!BZ$7,'Emissions factors'!$F$4:$CR$4,0))/1000,0)","v":0},{"$f":"IFERROR(CA84*INDEX('Emissions factors'!$F$5:$CR$10,MATCH('Data Input - Option 5'!$D120,'Emissions factors'!$C$5:$C$10,0),MATCH('Data Input - Option 5'!CA$7,'Emissions factors'!$F$4:$CR$4,0))/1000,0)","v":0},{"$f":"IFERROR(CB84*INDEX('Emissions factors'!$F$5:$CR$10,MATCH('Data Input - Option 5'!$D120,'Emissions factors'!$C$5:$C$10,0),MATCH('Data Input - Option 5'!CB$7,'Emissions factors'!$F$4:$CR$4,0))/1000,0)","v":0},{"$f":"IFERROR(CC84*INDEX('Emissions factors'!$F$5:$CR$10,MATCH('Data Input - Option 5'!$D120,'Emissions factors'!$C$5:$C$10,0),MATCH('Data Input - Option 5'!CC$7,'Emissions factors'!$F$4:$CR$4,0))/1000,0)","v":0},{"$f":"IFERROR(CD84*INDEX('Emissions factors'!$F$5:$CR$10,MATCH('Data Input - Option 5'!$D120,'Emissions factors'!$C$5:$C$10,0),MATCH('Data Input - Option 5'!CD$7,'Emissions factors'!$F$4:$CR$4,0))/1000,0)","v":0},{"$f":"IFERROR(CE84*INDEX('Emissions factors'!$F$5:$CR$10,MATCH('Data Input - Option 5'!$D120,'Emissions factors'!$C$5:$C$10,0),MATCH('Data Input - Option 5'!CE$7,'Emissions factors'!$F$4:$CR$4,0))/1000,0)","v":0},{"$f":"IFERROR(CF84*INDEX('Emissions factors'!$F$5:$CR$10,MATCH('Data Input - Option 5'!$D120,'Emissions factors'!$C$5:$C$10,0),MATCH('Data Input - Option 5'!CF$7,'Emissions factors'!$F$4:$CR$4,0))/1000,0)","v":0},{"$f":"IFERROR(CG84*INDEX('Emissions factors'!$F$5:$CR$10,MATCH('Data Input - Option 5'!$D120,'Emissions factors'!$C$5:$C$10,0),MATCH('Data Input - Option 5'!CG$7,'Emissions factors'!$F$4:$CR$4,0))/1000,0)","v":0},{"$f":"IFERROR(CH84*INDEX('Emissions factors'!$F$5:$CR$10,MATCH('Data Input - Option 5'!$D120,'Emissions factors'!$C$5:$C$10,0),MATCH('Data Input - Option 5'!CH$7,'Emissions factors'!$F$4:$CR$4,0))/1000,0)","v":0},{"$f":"IFERROR(CI84*INDEX('Emissions factors'!$F$5:$CR$10,MATCH('Data Input - Option 5'!$D120,'Emissions factors'!$C$5:$C$10,0),MATCH('Data Input - Option 5'!CI$7,'Emissions factors'!$F$4:$CR$4,0))/1000,0)","v":0},{"$f":"IFERROR(CJ84*INDEX('Emissions factors'!$F$5:$CR$10,MATCH('Data Input - Option 5'!$D120,'Emissions factors'!$C$5:$C$10,0),MATCH('Data Input - Option 5'!CJ$7,'Emissions factors'!$F$4:$CR$4,0))/1000,0)","v":0},{"$f":"IFERROR(CK84*INDEX('Emissions factors'!$F$5:$CR$10,MATCH('Data Input - Option 5'!$D120,'Emissions factors'!$C$5:$C$10,0),MATCH('Data Input - Option 5'!CK$7,'Emissions factors'!$F$4:$CR$4,0))/1000,0)","v":0},{"$f":"IFERROR(CL84*INDEX('Emissions factors'!$F$5:$CR$10,MATCH('Data Input - Option 5'!$D120,'Emissions factors'!$C$5:$C$10,0),MATCH('Data Input - Option 5'!CL$7,'Emissions factors'!$F$4:$CR$4,0))/1000,0)","v":0},{"$f":"IFERROR(CM84*INDEX('Emissions factors'!$F$5:$CR$10,MATCH('Data Input - Option 5'!$D120,'Emissions factors'!$C$5:$C$10,0),MATCH('Data Input - Option 5'!CM$7,'Emissions factors'!$F$4:$CR$4,0))/1000,0)","v":0},{"$f":"IFERROR(CN84*INDEX('Emissions factors'!$F$5:$CR$10,MATCH('Data Input - Option 5'!$D120,'Emissions factors'!$C$5:$C$10,0),MATCH('Data Input - Option 5'!CN$7,'Emissions factors'!$F$4:$CR$4,0))/1000,0)","v":0},{"$f":"IFERROR(CO84*INDEX('Emissions factors'!$F$5:$CR$10,MATCH('Data Input - Option 5'!$D120,'Emissions factors'!$C$5:$C$10,0),MATCH('Data Input - Option 5'!CO$7,'Emissions factors'!$F$4:$CR$4,0))/1000,0)","v":0},{"$f":"IFERROR(CP84*INDEX('Emissions factors'!$F$5:$CR$10,MATCH('Data Input - Option 5'!$D120,'Emissions factors'!$C$5:$C$10,0),MATCH('Data Input - Option 5'!CP$7,'Emissions factors'!$F$4:$CR$4,0))/1000,0)","v":0},{"$f":"IFERROR(CQ84*INDEX('Emissions factors'!$F$5:$CR$10,MATCH('Data Input - Option 5'!$D120,'Emissions factors'!$C$5:$C$10,0),MATCH('Data Input - Option 5'!CQ$7,'Emissions factors'!$F$4:$CR$4,0))/1000,0)","v":0},{"$f":"IFERROR(CR84*INDEX('Emissions factors'!$F$5:$CR$10,MATCH('Data Input - Option 5'!$D120,'Emissions factors'!$C$5:$C$10,0),MATCH('Data Input - Option 5'!CR$7,'Emissions factors'!$F$4:$CR$4,0))/1000,0)","v":0},{"$f":"IFERROR(CS84*INDEX('Emissions factors'!$F$5:$CR$10,MATCH('Data Input - Option 5'!$D120,'Emissions factors'!$C$5:$C$10,0),MATCH('Data Input - Option 5'!CS$7,'Emissions factors'!$F$4:$CR$4,0))/1000,0)","v":0},{"$f":"IFERROR(CT84*INDEX('Emissions factors'!$F$5:$CR$10,MATCH('Data Input - Option 5'!$D120,'Emissions factors'!$C$5:$C$10,0),MATCH('Data Input - Option 5'!CT$7,'Emissions factors'!$F$4:$CR$4,0))/1000,0)","v":0},{"$f":"IFERROR(CU84*INDEX('Emissions factors'!$F$5:$CR$10,MATCH('Data Input - Option 5'!$D120,'Emissions factors'!$C$5:$C$10,0),MATCH('Data Input - Option 5'!CU$7,'Emissions factors'!$F$4:$CR$4,0))/1000,0)","v":0},{"$f":"IFERROR(CV84*INDEX('Emissions factors'!$F$5:$CR$10,MATCH('Data Input - Option 5'!$D120,'Emissions factors'!$C$5:$C$10,0),MATCH('Data Input - Option 5'!CV$7,'Emissions factors'!$F$4:$CR$4,0))/1000,0)","v":0},{"$f":"IFERROR(CW84*INDEX('Emissions factors'!$F$5:$CR$10,MATCH('Data Input - Option 5'!$D120,'Emissions factors'!$C$5:$C$10,0),MATCH('Data Input - Option 5'!CW$7,'Emissions factors'!$F$4:$CR$4,0))/1000,0)","v":0},{"$f":"IFERROR(CX84*INDEX('Emissions factors'!$F$5:$CR$10,MATCH('Data Input - Option 5'!$D120,'Emissions factors'!$C$5:$C$10,0),MATCH('Data Input - Option 5'!CX$7,'Emissions factors'!$F$4:$CR$4,0))/1000,0)","v":0},{"$f":"IFERROR(CY84*INDEX('Emissions factors'!$F$5:$CR$10,MATCH('Data Input - Option 5'!$D120,'Emissions factors'!$C$5:$C$10,0),MATCH('Data Input - Option 5'!CY$7,'Emissions factors'!$F$4:$CR$4,0))/1000,0)","v":0},{"$f":"IFERROR(CZ84*INDEX('Emissions factors'!$F$5:$CR$10,MATCH('Data Input - Option 5'!$D120,'Emissions factors'!$C$5:$C$10,0),MATCH('Data Input - Option 5'!CZ$7,'Emissions factors'!$F$4:$CR$4,0))/1000,0)","v":0},{"$f":"IFERROR(DA84*INDEX('Emissions factors'!$F$5:$CR$10,MATCH('Data Input - Option 5'!$D120,'Emissions factors'!$C$5:$C$10,0),MATCH('Data Input - Option 5'!DA$7,'Emissions factors'!$F$4:$CR$4,0))/1000,0)","v":0},{"$f":"IFERROR(DB84*INDEX('Emissions factors'!$F$5:$CR$10,MATCH('Data Input - Option 5'!$D120,'Emissions factors'!$C$5:$C$10,0),MATCH('Data Input - Option 5'!DB$7,'Emissions factors'!$F$4:$CR$4,0))/1000,0)","v":0},{"$f":"IFERROR(DC84*INDEX('Emissions factors'!$F$5:$CR$10,MATCH('Data Input - Option 5'!$D120,'Emissions factors'!$C$5:$C$10,0),MATCH('Data Input - Option 5'!DC$7,'Emissions factors'!$F$4:$CR$4,0))/1000,0)","v":0}]
[null,null,null,"Natural Gas","tCO2e","(Auto calculated value)",null,{"$f":"IFERROR(H85*INDEX('Emissions factors'!$F$5:$CR$10,MATCH('Data Input - Option 5'!$D121,'Emissions factors'!$C$5:$C$10,0),MATCH('Data Input - Option 5'!H$7,'Emissions factors'!$F$4:$CR$4,0))/1000,0)","v":0},{"$f":"IFERROR(I85*INDEX('Emissions factors'!$F$5:$CR$10,MATCH('Data Input - Option 5'!$D121,'Emissions factors'!$C$5:$C$10,0),MATCH('Data Input - Option 5'!I$7,'Emissions factors'!$F$4:$CR$4,0))/1000,0)","v":0},{"$f":"IFERROR(J85*INDEX('Emissions factors'!$F$5:$CR$10,MATCH('Data Input - Option 5'!$D121,'Emissions factors'!$C$5:$C$10,0),MATCH('Data Input - Option 5'!J$7,'Emissions factors'!$F$4:$CR$4,0))/1000,0)","v":0},{"$f":"IFERROR(K85*INDEX('Emissions factors'!$F$5:$CR$10,MATCH('Data Input - Option 5'!$D121,'Emissions factors'!$C$5:$C$10,0),MATCH('Data Input - Option 5'!K$7,'Emissions factors'!$F$4:$CR$4,0))/1000,0)","v":0},{"$f":"IFERROR(L85*INDEX('Emissions factors'!$F$5:$CR$10,MATCH('Data Input - Option 5'!$D121,'Emissions factors'!$C$5:$C$10,0),MATCH('Data Input - Option 5'!L$7,'Emissions factors'!$F$4:$CR$4,0))/1000,0)","v":0},{"$f":"IFERROR(M85*INDEX('Emissions factors'!$F$5:$CR$10,MATCH('Data Input - Option 5'!$D121,'Emissions factors'!$C$5:$C$10,0),MATCH('Data Input - Option 5'!M$7,'Emissions factors'!$F$4:$CR$4,0))/1000,0)","v":0},{"$f":"IFERROR(N85*INDEX('Emissions factors'!$F$5:$CR$10,MATCH('Data Input - Option 5'!$D121,'Emissions factors'!$C$5:$C$10,0),MATCH('Data Input - Option 5'!N$7,'Emissions factors'!$F$4:$CR$4,0))/1000,0)","v":0},{"$f":"IFERROR(O85*INDEX('Emissions factors'!$F$5:$CR$10,MATCH('Data Input - Option 5'!$D121,'Emissions factors'!$C$5:$C$10,0),MATCH('Data Input - Option 5'!O$7,'Emissions factors'!$F$4:$CR$4,0))/1000,0)","v":0},{"$f":"IFERROR(P85*INDEX('Emissions factors'!$F$5:$CR$10,MATCH('Data Input - Option 5'!$D121,'Emissions factors'!$C$5:$C$10,0),MATCH('Data Input - Option 5'!P$7,'Emissions factors'!$F$4:$CR$4,0))/1000,0)","v":0},{"$f":"IFERROR(Q85*INDEX('Emissions factors'!$F$5:$CR$10,MATCH('Data Input - Option 5'!$D121,'Emissions factors'!$C$5:$C$10,0),MATCH('Data Input - Option 5'!Q$7,'Emissions factors'!$F$4:$CR$4,0))/1000,0)","v":0},{"$f":"IFERROR(R85*INDEX('Emissions factors'!$F$5:$CR$10,MATCH('Data Input - Option 5'!$D121,'Emissions factors'!$C$5:$C$10,0),MATCH('Data Input - Option 5'!R$7,'Emissions factors'!$F$4:$CR$4,0))/1000,0)","v":0},{"$f":"IFERROR(S85*INDEX('Emissions factors'!$F$5:$CR$10,MATCH('Data Input - Option 5'!$D121,'Emissions factors'!$C$5:$C$10,0),MATCH('Data Input - Option 5'!S$7,'Emissions factors'!$F$4:$CR$4,0))/1000,0)","v":0},{"$f":"IFERROR(T85*INDEX('Emissions factors'!$F$5:$CR$10,MATCH('Data Input - Option 5'!$D121,'Emissions factors'!$C$5:$C$10,0),MATCH('Data Input - Option 5'!T$7,'Emissions factors'!$F$4:$CR$4,0))/1000,0)","v":0},{"$f":"IFERROR(U85*INDEX('Emissions factors'!$F$5:$CR$10,MATCH('Data Input - Option 5'!$D121,'Emissions factors'!$C$5:$C$10,0),MATCH('Data Input - Option 5'!U$7,'Emissions factors'!$F$4:$CR$4,0))/1000,0)","v":0},{"$f":"IFERROR(V85*INDEX('Emissions factors'!$F$5:$CR$10,MATCH('Data Input - Option 5'!$D121,'Emissions factors'!$C$5:$C$10,0),MATCH('Data Input - Option 5'!V$7,'Emissions factors'!$F$4:$CR$4,0))/1000,0)","v":0},{"$f":"IFERROR(W85*INDEX('Emissions factors'!$F$5:$CR$10,MATCH('Data Input - Option 5'!$D121,'Emissions factors'!$C$5:$C$10,0),MATCH('Data Input - Option 5'!W$7,'Emissions factors'!$F$4:$CR$4,0))/1000,0)","v":0},{"$f":"IFERROR(X85*INDEX('Emissions factors'!$F$5:$CR$10,MATCH('Data Input - Option 5'!$D121,'Emissions factors'!$C$5:$C$10,0),MATCH('Data Input - Option 5'!X$7,'Emissions factors'!$F$4:$CR$4,0))/1000,0)","v":0},{"$f":"IFERROR(Y85*INDEX('Emissions factors'!$F$5:$CR$10,MATCH('Data Input - Option 5'!$D121,'Emissions factors'!$C$5:$C$10,0),MATCH('Data Input - Option 5'!Y$7,'Emissions factors'!$F$4:$CR$4,0))/1000,0)","v":0},{"$f":"IFERROR(Z85*INDEX('Emissions factors'!$F$5:$CR$10,MATCH('Data Input - Option 5'!$D121,'Emissions factors'!$C$5:$C$10,0),MATCH('Data Input - Option 5'!Z$7,'Emissions factors'!$F$4:$CR$4,0))/1000,0)","v":0},{"$f":"IFERROR(AA85*INDEX('Emissions factors'!$F$5:$CR$10,MATCH('Data Input - Option 5'!$D121,'Emissions factors'!$C$5:$C$10,0),MATCH('Data Input - Option 5'!AA$7,'Emissions factors'!$F$4:$CR$4,0))/1000,0)","v":0},{"$f":"IFERROR(AB85*INDEX('Emissions factors'!$F$5:$CR$10,MATCH('Data Input - Option 5'!$D121,'Emissions factors'!$C$5:$C$10,0),MATCH('Data Input - Option 5'!AB$7,'Emissions factors'!$F$4:$CR$4,0))/1000,0)","v":0},{"$f":"IFERROR(AC85*INDEX('Emissions factors'!$F$5:$CR$10,MATCH('Data Input - Option 5'!$D121,'Emissions factors'!$C$5:$C$10,0),MATCH('Data Input - Option 5'!AC$7,'Emissions factors'!$F$4:$CR$4,0))/1000,0)","v":0},{"$f":"IFERROR(AD85*INDEX('Emissions factors'!$F$5:$CR$10,MATCH('Data Input - Option 5'!$D121,'Emissions factors'!$C$5:$C$10,0),MATCH('Data Input - Option 5'!AD$7,'Emissions factors'!$F$4:$CR$4,0))/1000,0)","v":0},{"$f":"IFERROR(AE85*INDEX('Emissions factors'!$F$5:$CR$10,MATCH('Data Input - Option 5'!$D121,'Emissions factors'!$C$5:$C$10,0),MATCH('Data Input - Option 5'!AE$7,'Emissions factors'!$F$4:$CR$4,0))/1000,0)","v":0},{"$f":"IFERROR(AF85*INDEX('Emissions factors'!$F$5:$CR$10,MATCH('Data Input - Option 5'!$D121,'Emissions factors'!$C$5:$C$10,0),MATCH('Data Input - Option 5'!AF$7,'Emissions factors'!$F$4:$CR$4,0))/1000,0)","v":0},{"$f":"IFERROR(AG85*INDEX('Emissions factors'!$F$5:$CR$10,MATCH('Data Input - Option 5'!$D121,'Emissions factors'!$C$5:$C$10,0),MATCH('Data Input - Option 5'!AG$7,'Emissions factors'!$F$4:$CR$4,0))/1000,0)","v":0},{"$f":"IFERROR(AH85*INDEX('Emissions factors'!$F$5:$CR$10,MATCH('Data Input - Option 5'!$D121,'Emissions factors'!$C$5:$C$10,0),MATCH('Data Input - Option 5'!AH$7,'Emissions factors'!$F$4:$CR$4,0))/1000,0)","v":0},{"$f":"IFERROR(AI85*INDEX('Emissions factors'!$F$5:$CR$10,MATCH('Data Input - Option 5'!$D121,'Emissions factors'!$C$5:$C$10,0),MATCH('Data Input - Option 5'!AI$7,'Emissions factors'!$F$4:$CR$4,0))/1000,0)","v":0},{"$f":"IFERROR(AJ85*INDEX('Emissions factors'!$F$5:$CR$10,MATCH('Data Input - Option 5'!$D121,'Emissions factors'!$C$5:$C$10,0),MATCH('Data Input - Option 5'!AJ$7,'Emissions factors'!$F$4:$CR$4,0))/1000,0)","v":0},{"$f":"IFERROR(AK85*INDEX('Emissions factors'!$F$5:$CR$10,MATCH('Data Input - Option 5'!$D121,'Emissions factors'!$C$5:$C$10,0),MATCH('Data Input - Option 5'!AK$7,'Emissions factors'!$F$4:$CR$4,0))/1000,0)","v":0},{"$f":"IFERROR(AL85*INDEX('Emissions factors'!$F$5:$CR$10,MATCH('Data Input - Option 5'!$D121,'Emissions factors'!$C$5:$C$10,0),MATCH('Data Input - Option 5'!AL$7,'Emissions factors'!$F$4:$CR$4,0))/1000,0)","v":0},{"$f":"IFERROR(AM85*INDEX('Emissions factors'!$F$5:$CR$10,MATCH('Data Input - Option 5'!$D121,'Emissions factors'!$C$5:$C$10,0),MATCH('Data Input - Option 5'!AM$7,'Emissions factors'!$F$4:$CR$4,0))/1000,0)","v":0},{"$f":"IFERROR(AN85*INDEX('Emissions factors'!$F$5:$CR$10,MATCH('Data Input - Option 5'!$D121,'Emissions factors'!$C$5:$C$10,0),MATCH('Data Input - Option 5'!AN$7,'Emissions factors'!$F$4:$CR$4,0))/1000,0)","v":0},{"$f":"IFERROR(AO85*INDEX('Emissions factors'!$F$5:$CR$10,MATCH('Data Input - Option 5'!$D121,'Emissions factors'!$C$5:$C$10,0),MATCH('Data Input - Option 5'!AO$7,'Emissions factors'!$F$4:$CR$4,0))/1000,0)","v":0},{"$f":"IFERROR(AP85*INDEX('Emissions factors'!$F$5:$CR$10,MATCH('Data Input - Option 5'!$D121,'Emissions factors'!$C$5:$C$10,0),MATCH('Data Input - Option 5'!AP$7,'Emissions factors'!$F$4:$CR$4,0))/1000,0)","v":0},{"$f":"IFERROR(AQ85*INDEX('Emissions factors'!$F$5:$CR$10,MATCH('Data Input - Option 5'!$D121,'Emissions factors'!$C$5:$C$10,0),MATCH('Data Input - Option 5'!AQ$7,'Emissions factors'!$F$4:$CR$4,0))/1000,0)","v":0},{"$f":"IFERROR(AR85*INDEX('Emissions factors'!$F$5:$CR$10,MATCH('Data Input - Option 5'!$D121,'Emissions factors'!$C$5:$C$10,0),MATCH('Data Input - Option 5'!AR$7,'Emissions factors'!$F$4:$CR$4,0))/1000,0)","v":0},{"$f":"IFERROR(AS85*INDEX('Emissions factors'!$F$5:$CR$10,MATCH('Data Input - Option 5'!$D121,'Emissions factors'!$C$5:$C$10,0),MATCH('Data Input - Option 5'!AS$7,'Emissions factors'!$F$4:$CR$4,0))/1000,0)","v":0},{"$f":"IFERROR(AT85*INDEX('Emissions factors'!$F$5:$CR$10,MATCH('Data Input - Option 5'!$D121,'Emissions factors'!$C$5:$C$10,0),MATCH('Data Input - Option 5'!AT$7,'Emissions factors'!$F$4:$CR$4,0))/1000,0)","v":0},{"$f":"IFERROR(AU85*INDEX('Emissions factors'!$F$5:$CR$10,MATCH('Data Input - Option 5'!$D121,'Emissions factors'!$C$5:$C$10,0),MATCH('Data Input - Option 5'!AU$7,'Emissions factors'!$F$4:$CR$4,0))/1000,0)","v":0},{"$f":"IFERROR(AV85*INDEX('Emissions factors'!$F$5:$CR$10,MATCH('Data Input - Option 5'!$D121,'Emissions factors'!$C$5:$C$10,0),MATCH('Data Input - Option 5'!AV$7,'Emissions factors'!$F$4:$CR$4,0))/1000,0)","v":0},{"$f":"IFERROR(AW85*INDEX('Emissions factors'!$F$5:$CR$10,MATCH('Data Input - Option 5'!$D121,'Emissions factors'!$C$5:$C$10,0),MATCH('Data Input - Option 5'!AW$7,'Emissions factors'!$F$4:$CR$4,0))/1000,0)","v":0},{"$f":"IFERROR(AX85*INDEX('Emissions factors'!$F$5:$CR$10,MATCH('Data Input - Option 5'!$D121,'Emissions factors'!$C$5:$C$10,0),MATCH('Data Input - Option 5'!AX$7,'Emissions factors'!$F$4:$CR$4,0))/1000,0)","v":0},{"$f":"IFERROR(AY85*INDEX('Emissions factors'!$F$5:$CR$10,MATCH('Data Input - Option 5'!$D121,'Emissions factors'!$C$5:$C$10,0),MATCH('Data Input - Option 5'!AY$7,'Emissions factors'!$F$4:$CR$4,0))/1000,0)","v":0},{"$f":"IFERROR(AZ85*INDEX('Emissions factors'!$F$5:$CR$10,MATCH('Data Input - Option 5'!$D121,'Emissions factors'!$C$5:$C$10,0),MATCH('Data Input - Option 5'!AZ$7,'Emissions factors'!$F$4:$CR$4,0))/1000,0)","v":0},{"$f":"IFERROR(BA85*INDEX('Emissions factors'!$F$5:$CR$10,MATCH('Data Input - Option 5'!$D121,'Emissions factors'!$C$5:$C$10,0),MATCH('Data Input - Option 5'!BA$7,'Emissions factors'!$F$4:$CR$4,0))/1000,0)","v":0},{"$f":"IFERROR(BB85*INDEX('Emissions factors'!$F$5:$CR$10,MATCH('Data Input - Option 5'!$D121,'Emissions factors'!$C$5:$C$10,0),MATCH('Data Input - Option 5'!BB$7,'Emissions factors'!$F$4:$CR$4,0))/1000,0)","v":0},{"$f":"IFERROR(BC85*INDEX('Emissions factors'!$F$5:$CR$10,MATCH('Data Input - Option 5'!$D121,'Emissions factors'!$C$5:$C$10,0),MATCH('Data Input - Option 5'!BC$7,'Emissions factors'!$F$4:$CR$4,0))/1000,0)","v":0},{"$f":"IFERROR(BD85*INDEX('Emissions factors'!$F$5:$CR$10,MATCH('Data Input - Option 5'!$D121,'Emissions factors'!$C$5:$C$10,0),MATCH('Data Input - Option 5'!BD$7,'Emissions factors'!$F$4:$CR$4,0))/1000,0)","v":0},{"$f":"IFERROR(BE85*INDEX('Emissions factors'!$F$5:$CR$10,MATCH('Data Input - Option 5'!$D121,'Emissions factors'!$C$5:$C$10,0),MATCH('Data Input - Option 5'!BE$7,'Emissions factors'!$F$4:$CR$4,0))/1000,0)","v":0},{"$f":"IFERROR(BF85*INDEX('Emissions factors'!$F$5:$CR$10,MATCH('Data Input - Option 5'!$D121,'Emissions factors'!$C$5:$C$10,0),MATCH('Data Input - Option 5'!BF$7,'Emissions factors'!$F$4:$CR$4,0))/1000,0)","v":0},{"$f":"IFERROR(BG85*INDEX('Emissions factors'!$F$5:$CR$10,MATCH('Data Input - Option 5'!$D121,'Emissions factors'!$C$5:$C$10,0),MATCH('Data Input - Option 5'!BG$7,'Emissions factors'!$F$4:$CR$4,0))/1000,0)","v":0},{"$f":"IFERROR(BH85*INDEX('Emissions factors'!$F$5:$CR$10,MATCH('Data Input - Option 5'!$D121,'Emissions factors'!$C$5:$C$10,0),MATCH('Data Input - Option 5'!BH$7,'Emissions factors'!$F$4:$CR$4,0))/1000,0)","v":0},{"$f":"IFERROR(BI85*INDEX('Emissions factors'!$F$5:$CR$10,MATCH('Data Input - Option 5'!$D121,'Emissions factors'!$C$5:$C$10,0),MATCH('Data Input - Option 5'!BI$7,'Emissions factors'!$F$4:$CR$4,0))/1000,0)","v":0},{"$f":"IFERROR(BJ85*INDEX('Emissions factors'!$F$5:$CR$10,MATCH('Data Input - Option 5'!$D121,'Emissions factors'!$C$5:$C$10,0),MATCH('Data Input - Option 5'!BJ$7,'Emissions factors'!$F$4:$CR$4,0))/1000,0)","v":0},{"$f":"IFERROR(BK85*INDEX('Emissions factors'!$F$5:$CR$10,MATCH('Data Input - Option 5'!$D121,'Emissions factors'!$C$5:$C$10,0),MATCH('Data Input - Option 5'!BK$7,'Emissions factors'!$F$4:$CR$4,0))/1000,0)","v":0},{"$f":"IFERROR(BL85*INDEX('Emissions factors'!$F$5:$CR$10,MATCH('Data Input - Option 5'!$D121,'Emissions factors'!$C$5:$C$10,0),MATCH('Data Input - Option 5'!BL$7,'Emissions factors'!$F$4:$CR$4,0))/1000,0)","v":0},{"$f":"IFERROR(BM85*INDEX('Emissions factors'!$F$5:$CR$10,MATCH('Data Input - Option 5'!$D121,'Emissions factors'!$C$5:$C$10,0),MATCH('Data Input - Option 5'!BM$7,'Emissions factors'!$F$4:$CR$4,0))/1000,0)","v":0},{"$f":"IFERROR(BN85*INDEX('Emissions factors'!$F$5:$CR$10,MATCH('Data Input - Option 5'!$D121,'Emissions factors'!$C$5:$C$10,0),MATCH('Data Input - Option 5'!BN$7,'Emissions factors'!$F$4:$CR$4,0))/1000,0)","v":0},{"$f":"IFERROR(BO85*INDEX('Emissions factors'!$F$5:$CR$10,MATCH('Data Input - Option 5'!$D121,'Emissions factors'!$C$5:$C$10,0),MATCH('Data Input - Option 5'!BO$7,'Emissions factors'!$F$4:$CR$4,0))/1000,0)","v":0},{"$f":"IFERROR(BP85*INDEX('Emissions factors'!$F$5:$CR$10,MATCH('Data Input - Option 5'!$D121,'Emissions factors'!$C$5:$C$10,0),MATCH('Data Input - Option 5'!BP$7,'Emissions factors'!$F$4:$CR$4,0))/1000,0)","v":0},{"$f":"IFERROR(BQ85*INDEX('Emissions factors'!$F$5:$CR$10,MATCH('Data Input - Option 5'!$D121,'Emissions factors'!$C$5:$C$10,0),MATCH('Data Input - Option 5'!BQ$7,'Emissions factors'!$F$4:$CR$4,0))/1000,0)","v":0},{"$f":"IFERROR(BR85*INDEX('Emissions factors'!$F$5:$CR$10,MATCH('Data Input - Option 5'!$D121,'Emissions factors'!$C$5:$C$10,0),MATCH('Data Input - Option 5'!BR$7,'Emissions factors'!$F$4:$CR$4,0))/1000,0)","v":0},{"$f":"IFERROR(BS85*INDEX('Emissions factors'!$F$5:$CR$10,MATCH('Data Input - Option 5'!$D121,'Emissions factors'!$C$5:$C$10,0),MATCH('Data Input - Option 5'!BS$7,'Emissions factors'!$F$4:$CR$4,0))/1000,0)","v":0},{"$f":"IFERROR(BT85*INDEX('Emissions factors'!$F$5:$CR$10,MATCH('Data Input - Option 5'!$D121,'Emissions factors'!$C$5:$C$10,0),MATCH('Data Input - Option 5'!BT$7,'Emissions factors'!$F$4:$CR$4,0))/1000,0)","v":0},{"$f":"IFERROR(BU85*INDEX('Emissions factors'!$F$5:$CR$10,MATCH('Data Input - Option 5'!$D121,'Emissions factors'!$C$5:$C$10,0),MATCH('Data Input - Option 5'!BU$7,'Emissions factors'!$F$4:$CR$4,0))/1000,0)","v":0},{"$f":"IFERROR(BV85*INDEX('Emissions factors'!$F$5:$CR$10,MATCH('Data Input - Option 5'!$D121,'Emissions factors'!$C$5:$C$10,0),MATCH('Data Input - Option 5'!BV$7,'Emissions factors'!$F$4:$CR$4,0))/1000,0)","v":0},{"$f":"IFERROR(BW85*INDEX('Emissions factors'!$F$5:$CR$10,MATCH('Data Input - Option 5'!$D121,'Emissions factors'!$C$5:$C$10,0),MATCH('Data Input - Option 5'!BW$7,'Emissions factors'!$F$4:$CR$4,0))/1000,0)","v":0},{"$f":"IFERROR(BX85*INDEX('Emissions factors'!$F$5:$CR$10,MATCH('Data Input - Option 5'!$D121,'Emissions factors'!$C$5:$C$10,0),MATCH('Data Input - Option 5'!BX$7,'Emissions factors'!$F$4:$CR$4,0))/1000,0)","v":0},{"$f":"IFERROR(BY85*INDEX('Emissions factors'!$F$5:$CR$10,MATCH('Data Input - Option 5'!$D121,'Emissions factors'!$C$5:$C$10,0),MATCH('Data Input - Option 5'!BY$7,'Emissions factors'!$F$4:$CR$4,0))/1000,0)","v":0},{"$f":"IFERROR(BZ85*INDEX('Emissions factors'!$F$5:$CR$10,MATCH('Data Input - Option 5'!$D121,'Emissions factors'!$C$5:$C$10,0),MATCH('Data Input - Option 5'!BZ$7,'Emissions factors'!$F$4:$CR$4,0))/1000,0)","v":0},{"$f":"IFERROR(CA85*INDEX('Emissions factors'!$F$5:$CR$10,MATCH('Data Input - Option 5'!$D121,'Emissions factors'!$C$5:$C$10,0),MATCH('Data Input - Option 5'!CA$7,'Emissions factors'!$F$4:$CR$4,0))/1000,0)","v":0},{"$f":"IFERROR(CB85*INDEX('Emissions factors'!$F$5:$CR$10,MATCH('Data Input - Option 5'!$D121,'Emissions factors'!$C$5:$C$10,0),MATCH('Data Input - Option 5'!CB$7,'Emissions factors'!$F$4:$CR$4,0))/1000,0)","v":0},{"$f":"IFERROR(CC85*INDEX('Emissions factors'!$F$5:$CR$10,MATCH('Data Input - Option 5'!$D121,'Emissions factors'!$C$5:$C$10,0),MATCH('Data Input - Option 5'!CC$7,'Emissions factors'!$F$4:$CR$4,0))/1000,0)","v":0},{"$f":"IFERROR(CD85*INDEX('Emissions factors'!$F$5:$CR$10,MATCH('Data Input - Option 5'!$D121,'Emissions factors'!$C$5:$C$10,0),MATCH('Data Input - Option 5'!CD$7,'Emissions factors'!$F$4:$CR$4,0))/1000,0)","v":0},{"$f":"IFERROR(CE85*INDEX('Emissions factors'!$F$5:$CR$10,MATCH('Data Input - Option 5'!$D121,'Emissions factors'!$C$5:$C$10,0),MATCH('Data Input - Option 5'!CE$7,'Emissions factors'!$F$4:$CR$4,0))/1000,0)","v":0},{"$f":"IFERROR(CF85*INDEX('Emissions factors'!$F$5:$CR$10,MATCH('Data Input - Option 5'!$D121,'Emissions factors'!$C$5:$C$10,0),MATCH('Data Input - Option 5'!CF$7,'Emissions factors'!$F$4:$CR$4,0))/1000,0)","v":0},{"$f":"IFERROR(CG85*INDEX('Emissions factors'!$F$5:$CR$10,MATCH('Data Input - Option 5'!$D121,'Emissions factors'!$C$5:$C$10,0),MATCH('Data Input - Option 5'!CG$7,'Emissions factors'!$F$4:$CR$4,0))/1000,0)","v":0},{"$f":"IFERROR(CH85*INDEX('Emissions factors'!$F$5:$CR$10,MATCH('Data Input - Option 5'!$D121,'Emissions factors'!$C$5:$C$10,0),MATCH('Data Input - Option 5'!CH$7,'Emissions factors'!$F$4:$CR$4,0))/1000,0)","v":0},{"$f":"IFERROR(CI85*INDEX('Emissions factors'!$F$5:$CR$10,MATCH('Data Input - Option 5'!$D121,'Emissions factors'!$C$5:$C$10,0),MATCH('Data Input - Option 5'!CI$7,'Emissions factors'!$F$4:$CR$4,0))/1000,0)","v":0},{"$f":"IFERROR(CJ85*INDEX('Emissions factors'!$F$5:$CR$10,MATCH('Data Input - Option 5'!$D121,'Emissions factors'!$C$5:$C$10,0),MATCH('Data Input - Option 5'!CJ$7,'Emissions factors'!$F$4:$CR$4,0))/1000,0)","v":0},{"$f":"IFERROR(CK85*INDEX('Emissions factors'!$F$5:$CR$10,MATCH('Data Input - Option 5'!$D121,'Emissions factors'!$C$5:$C$10,0),MATCH('Data Input - Option 5'!CK$7,'Emissions factors'!$F$4:$CR$4,0))/1000,0)","v":0},{"$f":"IFERROR(CL85*INDEX('Emissions factors'!$F$5:$CR$10,MATCH('Data Input - Option 5'!$D121,'Emissions factors'!$C$5:$C$10,0),MATCH('Data Input - Option 5'!CL$7,'Emissions factors'!$F$4:$CR$4,0))/1000,0)","v":0},{"$f":"IFERROR(CM85*INDEX('Emissions factors'!$F$5:$CR$10,MATCH('Data Input - Option 5'!$D121,'Emissions factors'!$C$5:$C$10,0),MATCH('Data Input - Option 5'!CM$7,'Emissions factors'!$F$4:$CR$4,0))/1000,0)","v":0},{"$f":"IFERROR(CN85*INDEX('Emissions factors'!$F$5:$CR$10,MATCH('Data Input - Option 5'!$D121,'Emissions factors'!$C$5:$C$10,0),MATCH('Data Input - Option 5'!CN$7,'Emissions factors'!$F$4:$CR$4,0))/1000,0)","v":0},{"$f":"IFERROR(CO85*INDEX('Emissions factors'!$F$5:$CR$10,MATCH('Data Input - Option 5'!$D121,'Emissions factors'!$C$5:$C$10,0),MATCH('Data Input - Option 5'!CO$7,'Emissions factors'!$F$4:$CR$4,0))/1000,0)","v":0},{"$f":"IFERROR(CP85*INDEX('Emissions factors'!$F$5:$CR$10,MATCH('Data Input - Option 5'!$D121,'Emissions factors'!$C$5:$C$10,0),MATCH('Data Input - Option 5'!CP$7,'Emissions factors'!$F$4:$CR$4,0))/1000,0)","v":0},{"$f":"IFERROR(CQ85*INDEX('Emissions factors'!$F$5:$CR$10,MATCH('Data Input - Option 5'!$D121,'Emissions factors'!$C$5:$C$10,0),MATCH('Data Input - Option 5'!CQ$7,'Emissions factors'!$F$4:$CR$4,0))/1000,0)","v":0},{"$f":"IFERROR(CR85*INDEX('Emissions factors'!$F$5:$CR$10,MATCH('Data Input - Option 5'!$D121,'Emissions factors'!$C$5:$C$10,0),MATCH('Data Input - Option 5'!CR$7,'Emissions factors'!$F$4:$CR$4,0))/1000,0)","v":0},{"$f":"IFERROR(CS85*INDEX('Emissions factors'!$F$5:$CR$10,MATCH('Data Input - Option 5'!$D121,'Emissions factors'!$C$5:$C$10,0),MATCH('Data Input - Option 5'!CS$7,'Emissions factors'!$F$4:$CR$4,0))/1000,0)","v":0},{"$f":"IFERROR(CT85*INDEX('Emissions factors'!$F$5:$CR$10,MATCH('Data Input - Option 5'!$D121,'Emissions factors'!$C$5:$C$10,0),MATCH('Data Input - Option 5'!CT$7,'Emissions factors'!$F$4:$CR$4,0))/1000,0)","v":0},{"$f":"IFERROR(CU85*INDEX('Emissions factors'!$F$5:$CR$10,MATCH('Data Input - Option 5'!$D121,'Emissions factors'!$C$5:$C$10,0),MATCH('Data Input - Option 5'!CU$7,'Emissions factors'!$F$4:$CR$4,0))/1000,0)","v":0},{"$f":"IFERROR(CV85*INDEX('Emissions factors'!$F$5:$CR$10,MATCH('Data Input - Option 5'!$D121,'Emissions factors'!$C$5:$C$10,0),MATCH('Data Input - Option 5'!CV$7,'Emissions factors'!$F$4:$CR$4,0))/1000,0)","v":0},{"$f":"IFERROR(CW85*INDEX('Emissions factors'!$F$5:$CR$10,MATCH('Data Input - Option 5'!$D121,'Emissions factors'!$C$5:$C$10,0),MATCH('Data Input - Option 5'!CW$7,'Emissions factors'!$F$4:$CR$4,0))/1000,0)","v":0},{"$f":"IFERROR(CX85*INDEX('Emissions factors'!$F$5:$CR$10,MATCH('Data Input - Option 5'!$D121,'Emissions factors'!$C$5:$C$10,0),MATCH('Data Input - Option 5'!CX$7,'Emissions factors'!$F$4:$CR$4,0))/1000,0)","v":0},{"$f":"IFERROR(CY85*INDEX('Emissions factors'!$F$5:$CR$10,MATCH('Data Input - Option 5'!$D121,'Emissions factors'!$C$5:$C$10,0),MATCH('Data Input - Option 5'!CY$7,'Emissions factors'!$F$4:$CR$4,0))/1000,0)","v":0},{"$f":"IFERROR(CZ85*INDEX('Emissions factors'!$F$5:$CR$10,MATCH('Data Input - Option 5'!$D121,'Emissions factors'!$C$5:$C$10,0),MATCH('Data Input - Option 5'!CZ$7,'Emissions factors'!$F$4:$CR$4,0))/1000,0)","v":0},{"$f":"IFERROR(DA85*INDEX('Emissions factors'!$F$5:$CR$10,MATCH('Data Input - Option 5'!$D121,'Emissions factors'!$C$5:$C$10,0),MATCH('Data Input - Option 5'!DA$7,'Emissions factors'!$F$4:$CR$4,0))/1000,0)","v":0},{"$f":"IFERROR(DB85*INDEX('Emissions factors'!$F$5:$CR$10,MATCH('Data Input - Option 5'!$D121,'Emissions factors'!$C$5:$C$10,0),MATCH('Data Input - Option 5'!DB$7,'Emissions factors'!$F$4:$CR$4,0))/1000,0)","v":0},{"$f":"IFERROR(DC85*INDEX('Emissions factors'!$F$5:$CR$10,MATCH('Data Input - Option 5'!$D121,'Emissions factors'!$C$5:$C$10,0),MATCH('Data Input - Option 5'!DC$7,'Emissions factors'!$F$4:$CR$4,0))/1000,0)","v":0}]
[null,null,null,"Coal","tCO2e","(Auto calculated value)",null,{"$f":"IFERROR(H86*INDEX('Emissions factors'!$F$5:$CR$10,MATCH('Data Input - Option 5'!$D122,'Emissions factors'!$C$5:$C$10,0),MATCH('Data Input - Option 5'!H$7,'Emissions factors'!$F$4:$CR$4,0))/1000,0)","v":0},{"$f":"IFERROR(I86*INDEX('Emissions factors'!$F$5:$CR$10,MATCH('Data Input - Option 5'!$D122,'Emissions factors'!$C$5:$C$10,0),MATCH('Data Input - Option 5'!I$7,'Emissions factors'!$F$4:$CR$4,0))/1000,0)","v":0},{"$f":"IFERROR(J86*INDEX('Emissions factors'!$F$5:$CR$10,MATCH('Data Input - Option 5'!$D122,'Emissions factors'!$C$5:$C$10,0),MATCH('Data Input - Option 5'!J$7,'Emissions factors'!$F$4:$CR$4,0))/1000,0)","v":0},{"$f":"IFERROR(K86*INDEX('Emissions factors'!$F$5:$CR$10,MATCH('Data Input - Option 5'!$D122,'Emissions factors'!$C$5:$C$10,0),MATCH('Data Input - Option 5'!K$7,'Emissions factors'!$F$4:$CR$4,0))/1000,0)","v":0},{"$f":"IFERROR(L86*INDEX('Emissions factors'!$F$5:$CR$10,MATCH('Data Input - Option 5'!$D122,'Emissions factors'!$C$5:$C$10,0),MATCH('Data Input - Option 5'!L$7,'Emissions factors'!$F$4:$CR$4,0))/1000,0)","v":0},{"$f":"IFERROR(M86*INDEX('Emissions factors'!$F$5:$CR$10,MATCH('Data Input - Option 5'!$D122,'Emissions factors'!$C$5:$C$10,0),MATCH('Data Input - Option 5'!M$7,'Emissions factors'!$F$4:$CR$4,0))/1000,0)","v":0},{"$f":"IFERROR(N86*INDEX('Emissions factors'!$F$5:$CR$10,MATCH('Data Input - Option 5'!$D122,'Emissions factors'!$C$5:$C$10,0),MATCH('Data Input - Option 5'!N$7,'Emissions factors'!$F$4:$CR$4,0))/1000,0)","v":0},{"$f":"IFERROR(O86*INDEX('Emissions factors'!$F$5:$CR$10,MATCH('Data Input - Option 5'!$D122,'Emissions factors'!$C$5:$C$10,0),MATCH('Data Input - Option 5'!O$7,'Emissions factors'!$F$4:$CR$4,0))/1000,0)","v":0},{"$f":"IFERROR(P86*INDEX('Emissions factors'!$F$5:$CR$10,MATCH('Data Input - Option 5'!$D122,'Emissions factors'!$C$5:$C$10,0),MATCH('Data Input - Option 5'!P$7,'Emissions factors'!$F$4:$CR$4,0))/1000,0)","v":0},{"$f":"IFERROR(Q86*INDEX('Emissions factors'!$F$5:$CR$10,MATCH('Data Input - Option 5'!$D122,'Emissions factors'!$C$5:$C$10,0),MATCH('Data Input - Option 5'!Q$7,'Emissions factors'!$F$4:$CR$4,0))/1000,0)","v":0},{"$f":"IFERROR(R86*INDEX('Emissions factors'!$F$5:$CR$10,MATCH('Data Input - Option 5'!$D122,'Emissions factors'!$C$5:$C$10,0),MATCH('Data Input - Option 5'!R$7,'Emissions factors'!$F$4:$CR$4,0))/1000,0)","v":0},{"$f":"IFERROR(S86*INDEX('Emissions factors'!$F$5:$CR$10,MATCH('Data Input - Option 5'!$D122,'Emissions factors'!$C$5:$C$10,0),MATCH('Data Input - Option 5'!S$7,'Emissions factors'!$F$4:$CR$4,0))/1000,0)","v":0},{"$f":"IFERROR(T86*INDEX('Emissions factors'!$F$5:$CR$10,MATCH('Data Input - Option 5'!$D122,'Emissions factors'!$C$5:$C$10,0),MATCH('Data Input - Option 5'!T$7,'Emissions factors'!$F$4:$CR$4,0))/1000,0)","v":0},{"$f":"IFERROR(U86*INDEX('Emissions factors'!$F$5:$CR$10,MATCH('Data Input - Option 5'!$D122,'Emissions factors'!$C$5:$C$10,0),MATCH('Data Input - Option 5'!U$7,'Emissions factors'!$F$4:$CR$4,0))/1000,0)","v":0},{"$f":"IFERROR(V86*INDEX('Emissions factors'!$F$5:$CR$10,MATCH('Data Input - Option 5'!$D122,'Emissions factors'!$C$5:$C$10,0),MATCH('Data Input - Option 5'!V$7,'Emissions factors'!$F$4:$CR$4,0))/1000,0)","v":0},{"$f":"IFERROR(W86*INDEX('Emissions factors'!$F$5:$CR$10,MATCH('Data Input - Option 5'!$D122,'Emissions factors'!$C$5:$C$10,0),MATCH('Data Input - Option 5'!W$7,'Emissions factors'!$F$4:$CR$4,0))/1000,0)","v":0},{"$f":"IFERROR(X86*INDEX('Emissions factors'!$F$5:$CR$10,MATCH('Data Input - Option 5'!$D122,'Emissions factors'!$C$5:$C$10,0),MATCH('Data Input - Option 5'!X$7,'Emissions factors'!$F$4:$CR$4,0))/1000,0)","v":0},{"$f":"IFERROR(Y86*INDEX('Emissions factors'!$F$5:$CR$10,MATCH('Data Input - Option 5'!$D122,'Emissions factors'!$C$5:$C$10,0),MATCH('Data Input - Option 5'!Y$7,'Emissions factors'!$F$4:$CR$4,0))/1000,0)","v":0},{"$f":"IFERROR(Z86*INDEX('Emissions factors'!$F$5:$CR$10,MATCH('Data Input - Option 5'!$D122,'Emissions factors'!$C$5:$C$10,0),MATCH('Data Input - Option 5'!Z$7,'Emissions factors'!$F$4:$CR$4,0))/1000,0)","v":0},{"$f":"IFERROR(AA86*INDEX('Emissions factors'!$F$5:$CR$10,MATCH('Data Input - Option 5'!$D122,'Emissions factors'!$C$5:$C$10,0),MATCH('Data Input - Option 5'!AA$7,'Emissions factors'!$F$4:$CR$4,0))/1000,0)","v":0},{"$f":"IFERROR(AB86*INDEX('Emissions factors'!$F$5:$CR$10,MATCH('Data Input - Option 5'!$D122,'Emissions factors'!$C$5:$C$10,0),MATCH('Data Input - Option 5'!AB$7,'Emissions factors'!$F$4:$CR$4,0))/1000,0)","v":0},{"$f":"IFERROR(AC86*INDEX('Emissions factors'!$F$5:$CR$10,MATCH('Data Input - Option 5'!$D122,'Emissions factors'!$C$5:$C$10,0),MATCH('Data Input - Option 5'!AC$7,'Emissions factors'!$F$4:$CR$4,0))/1000,0)","v":0},{"$f":"IFERROR(AD86*INDEX('Emissions factors'!$F$5:$CR$10,MATCH('Data Input - Option 5'!$D122,'Emissions factors'!$C$5:$C$10,0),MATCH('Data Input - Option 5'!AD$7,'Emissions factors'!$F$4:$CR$4,0))/1000,0)","v":0},{"$f":"IFERROR(AE86*INDEX('Emissions factors'!$F$5:$CR$10,MATCH('Data Input - Option 5'!$D122,'Emissions factors'!$C$5:$C$10,0),MATCH('Data Input - Option 5'!AE$7,'Emissions factors'!$F$4:$CR$4,0))/1000,0)","v":0},{"$f":"IFERROR(AF86*INDEX('Emissions factors'!$F$5:$CR$10,MATCH('Data Input - Option 5'!$D122,'Emissions factors'!$C$5:$C$10,0),MATCH('Data Input - Option 5'!AF$7,'Emissions factors'!$F$4:$CR$4,0))/1000,0)","v":0},{"$f":"IFERROR(AG86*INDEX('Emissions factors'!$F$5:$CR$10,MATCH('Data Input - Option 5'!$D122,'Emissions factors'!$C$5:$C$10,0),MATCH('Data Input - Option 5'!AG$7,'Emissions factors'!$F$4:$CR$4,0))/1000,0)","v":0},{"$f":"IFERROR(AH86*INDEX('Emissions factors'!$F$5:$CR$10,MATCH('Data Input - Option 5'!$D122,'Emissions factors'!$C$5:$C$10,0),MATCH('Data Input - Option 5'!AH$7,'Emissions factors'!$F$4:$CR$4,0))/1000,0)","v":0},{"$f":"IFERROR(AI86*INDEX('Emissions factors'!$F$5:$CR$10,MATCH('Data Input - Option 5'!$D122,'Emissions factors'!$C$5:$C$10,0),MATCH('Data Input - Option 5'!AI$7,'Emissions factors'!$F$4:$CR$4,0))/1000,0)","v":0},{"$f":"IFERROR(AJ86*INDEX('Emissions factors'!$F$5:$CR$10,MATCH('Data Input - Option 5'!$D122,'Emissions factors'!$C$5:$C$10,0),MATCH('Data Input - Option 5'!AJ$7,'Emissions factors'!$F$4:$CR$4,0))/1000,0)","v":0},{"$f":"IFERROR(AK86*INDEX('Emissions factors'!$F$5:$CR$10,MATCH('Data Input - Option 5'!$D122,'Emissions factors'!$C$5:$C$10,0),MATCH('Data Input - Option 5'!AK$7,'Emissions factors'!$F$4:$CR$4,0))/1000,0)","v":0},{"$f":"IFERROR(AL86*INDEX('Emissions factors'!$F$5:$CR$10,MATCH('Data Input - Option 5'!$D122,'Emissions factors'!$C$5:$C$10,0),MATCH('Data Input - Option 5'!AL$7,'Emissions factors'!$F$4:$CR$4,0))/1000,0)","v":0},{"$f":"IFERROR(AM86*INDEX('Emissions factors'!$F$5:$CR$10,MATCH('Data Input - Option 5'!$D122,'Emissions factors'!$C$5:$C$10,0),MATCH('Data Input - Option 5'!AM$7,'Emissions factors'!$F$4:$CR$4,0))/1000,0)","v":0},{"$f":"IFERROR(AN86*INDEX('Emissions factors'!$F$5:$CR$10,MATCH('Data Input - Option 5'!$D122,'Emissions factors'!$C$5:$C$10,0),MATCH('Data Input - Option 5'!AN$7,'Emissions factors'!$F$4:$CR$4,0))/1000,0)","v":0},{"$f":"IFERROR(AO86*INDEX('Emissions factors'!$F$5:$CR$10,MATCH('Data Input - Option 5'!$D122,'Emissions factors'!$C$5:$C$10,0),MATCH('Data Input - Option 5'!AO$7,'Emissions factors'!$F$4:$CR$4,0))/1000,0)","v":0},{"$f":"IFERROR(AP86*INDEX('Emissions factors'!$F$5:$CR$10,MATCH('Data Input - Option 5'!$D122,'Emissions factors'!$C$5:$C$10,0),MATCH('Data Input - Option 5'!AP$7,'Emissions factors'!$F$4:$CR$4,0))/1000,0)","v":0},{"$f":"IFERROR(AQ86*INDEX('Emissions factors'!$F$5:$CR$10,MATCH('Data Input - Option 5'!$D122,'Emissions factors'!$C$5:$C$10,0),MATCH('Data Input - Option 5'!AQ$7,'Emissions factors'!$F$4:$CR$4,0))/1000,0)","v":0},{"$f":"IFERROR(AR86*INDEX('Emissions factors'!$F$5:$CR$10,MATCH('Data Input - Option 5'!$D122,'Emissions factors'!$C$5:$C$10,0),MATCH('Data Input - Option 5'!AR$7,'Emissions factors'!$F$4:$CR$4,0))/1000,0)","v":0},{"$f":"IFERROR(AS86*INDEX('Emissions factors'!$F$5:$CR$10,MATCH('Data Input - Option 5'!$D122,'Emissions factors'!$C$5:$C$10,0),MATCH('Data Input - Option 5'!AS$7,'Emissions factors'!$F$4:$CR$4,0))/1000,0)","v":0},{"$f":"IFERROR(AT86*INDEX('Emissions factors'!$F$5:$CR$10,MATCH('Data Input - Option 5'!$D122,'Emissions factors'!$C$5:$C$10,0),MATCH('Data Input - Option 5'!AT$7,'Emissions factors'!$F$4:$CR$4,0))/1000,0)","v":0},{"$f":"IFERROR(AU86*INDEX('Emissions factors'!$F$5:$CR$10,MATCH('Data Input - Option 5'!$D122,'Emissions factors'!$C$5:$C$10,0),MATCH('Data Input - Option 5'!AU$7,'Emissions factors'!$F$4:$CR$4,0))/1000,0)","v":0},{"$f":"IFERROR(AV86*INDEX('Emissions factors'!$F$5:$CR$10,MATCH('Data Input - Option 5'!$D122,'Emissions factors'!$C$5:$C$10,0),MATCH('Data Input - Option 5'!AV$7,'Emissions factors'!$F$4:$CR$4,0))/1000,0)","v":0},{"$f":"IFERROR(AW86*INDEX('Emissions factors'!$F$5:$CR$10,MATCH('Data Input - Option 5'!$D122,'Emissions factors'!$C$5:$C$10,0),MATCH('Data Input - Option 5'!AW$7,'Emissions factors'!$F$4:$CR$4,0))/1000,0)","v":0},{"$f":"IFERROR(AX86*INDEX('Emissions factors'!$F$5:$CR$10,MATCH('Data Input - Option 5'!$D122,'Emissions factors'!$C$5:$C$10,0),MATCH('Data Input - Option 5'!AX$7,'Emissions factors'!$F$4:$CR$4,0))/1000,0)","v":0},{"$f":"IFERROR(AY86*INDEX('Emissions factors'!$F$5:$CR$10,MATCH('Data Input - Option 5'!$D122,'Emissions factors'!$C$5:$C$10,0),MATCH('Data Input - Option 5'!AY$7,'Emissions factors'!$F$4:$CR$4,0))/1000,0)","v":0},{"$f":"IFERROR(AZ86*INDEX('Emissions factors'!$F$5:$CR$10,MATCH('Data Input - Option 5'!$D122,'Emissions factors'!$C$5:$C$10,0),MATCH('Data Input - Option 5'!AZ$7,'Emissions factors'!$F$4:$CR$4,0))/1000,0)","v":0},{"$f":"IFERROR(BA86*INDEX('Emissions factors'!$F$5:$CR$10,MATCH('Data Input - Option 5'!$D122,'Emissions factors'!$C$5:$C$10,0),MATCH('Data Input - Option 5'!BA$7,'Emissions factors'!$F$4:$CR$4,0))/1000,0)","v":0},{"$f":"IFERROR(BB86*INDEX('Emissions factors'!$F$5:$CR$10,MATCH('Data Input - Option 5'!$D122,'Emissions factors'!$C$5:$C$10,0),MATCH('Data Input - Option 5'!BB$7,'Emissions factors'!$F$4:$CR$4,0))/1000,0)","v":0},{"$f":"IFERROR(BC86*INDEX('Emissions factors'!$F$5:$CR$10,MATCH('Data Input - Option 5'!$D122,'Emissions factors'!$C$5:$C$10,0),MATCH('Data Input - Option 5'!BC$7,'Emissions factors'!$F$4:$CR$4,0))/1000,0)","v":0},{"$f":"IFERROR(BD86*INDEX('Emissions factors'!$F$5:$CR$10,MATCH('Data Input - Option 5'!$D122,'Emissions factors'!$C$5:$C$10,0),MATCH('Data Input - Option 5'!BD$7,'Emissions factors'!$F$4:$CR$4,0))/1000,0)","v":0},{"$f":"IFERROR(BE86*INDEX('Emissions factors'!$F$5:$CR$10,MATCH('Data Input - Option 5'!$D122,'Emissions factors'!$C$5:$C$10,0),MATCH('Data Input - Option 5'!BE$7,'Emissions factors'!$F$4:$CR$4,0))/1000,0)","v":0},{"$f":"IFERROR(BF86*INDEX('Emissions factors'!$F$5:$CR$10,MATCH('Data Input - Option 5'!$D122,'Emissions factors'!$C$5:$C$10,0),MATCH('Data Input - Option 5'!BF$7,'Emissions factors'!$F$4:$CR$4,0))/1000,0)","v":0},{"$f":"IFERROR(BG86*INDEX('Emissions factors'!$F$5:$CR$10,MATCH('Data Input - Option 5'!$D122,'Emissions factors'!$C$5:$C$10,0),MATCH('Data Input - Option 5'!BG$7,'Emissions factors'!$F$4:$CR$4,0))/1000,0)","v":0},{"$f":"IFERROR(BH86*INDEX('Emissions factors'!$F$5:$CR$10,MATCH('Data Input - Option 5'!$D122,'Emissions factors'!$C$5:$C$10,0),MATCH('Data Input - Option 5'!BH$7,'Emissions factors'!$F$4:$CR$4,0))/1000,0)","v":0},{"$f":"IFERROR(BI86*INDEX('Emissions factors'!$F$5:$CR$10,MATCH('Data Input - Option 5'!$D122,'Emissions factors'!$C$5:$C$10,0),MATCH('Data Input - Option 5'!BI$7,'Emissions factors'!$F$4:$CR$4,0))/1000,0)","v":0},{"$f":"IFERROR(BJ86*INDEX('Emissions factors'!$F$5:$CR$10,MATCH('Data Input - Option 5'!$D122,'Emissions factors'!$C$5:$C$10,0),MATCH('Data Input - Option 5'!BJ$7,'Emissions factors'!$F$4:$CR$4,0))/1000,0)","v":0},{"$f":"IFERROR(BK86*INDEX('Emissions factors'!$F$5:$CR$10,MATCH('Data Input - Option 5'!$D122,'Emissions factors'!$C$5:$C$10,0),MATCH('Data Input - Option 5'!BK$7,'Emissions factors'!$F$4:$CR$4,0))/1000,0)","v":0},{"$f":"IFERROR(BL86*INDEX('Emissions factors'!$F$5:$CR$10,MATCH('Data Input - Option 5'!$D122,'Emissions factors'!$C$5:$C$10,0),MATCH('Data Input - Option 5'!BL$7,'Emissions factors'!$F$4:$CR$4,0))/1000,0)","v":0},{"$f":"IFERROR(BM86*INDEX('Emissions factors'!$F$5:$CR$10,MATCH('Data Input - Option 5'!$D122,'Emissions factors'!$C$5:$C$10,0),MATCH('Data Input - Option 5'!BM$7,'Emissions factors'!$F$4:$CR$4,0))/1000,0)","v":0},{"$f":"IFERROR(BN86*INDEX('Emissions factors'!$F$5:$CR$10,MATCH('Data Input - Option 5'!$D122,'Emissions factors'!$C$5:$C$10,0),MATCH('Data Input - Option 5'!BN$7,'Emissions factors'!$F$4:$CR$4,0))/1000,0)","v":0},{"$f":"IFERROR(BO86*INDEX('Emissions factors'!$F$5:$CR$10,MATCH('Data Input - Option 5'!$D122,'Emissions factors'!$C$5:$C$10,0),MATCH('Data Input - Option 5'!BO$7,'Emissions factors'!$F$4:$CR$4,0))/1000,0)","v":0},{"$f":"IFERROR(BP86*INDEX('Emissions factors'!$F$5:$CR$10,MATCH('Data Input - Option 5'!$D122,'Emissions factors'!$C$5:$C$10,0),MATCH('Data Input - Option 5'!BP$7,'Emissions factors'!$F$4:$CR$4,0))/1000,0)","v":0},{"$f":"IFERROR(BQ86*INDEX('Emissions factors'!$F$5:$CR$10,MATCH('Data Input - Option 5'!$D122,'Emissions factors'!$C$5:$C$10,0),MATCH('Data Input - Option 5'!BQ$7,'Emissions factors'!$F$4:$CR$4,0))/1000,0)","v":0},{"$f":"IFERROR(BR86*INDEX('Emissions factors'!$F$5:$CR$10,MATCH('Data Input - Option 5'!$D122,'Emissions factors'!$C$5:$C$10,0),MATCH('Data Input - Option 5'!BR$7,'Emissions factors'!$F$4:$CR$4,0))/1000,0)","v":0},{"$f":"IFERROR(BS86*INDEX('Emissions factors'!$F$5:$CR$10,MATCH('Data Input - Option 5'!$D122,'Emissions factors'!$C$5:$C$10,0),MATCH('Data Input - Option 5'!BS$7,'Emissions factors'!$F$4:$CR$4,0))/1000,0)","v":0},{"$f":"IFERROR(BT86*INDEX('Emissions factors'!$F$5:$CR$10,MATCH('Data Input - Option 5'!$D122,'Emissions factors'!$C$5:$C$10,0),MATCH('Data Input - Option 5'!BT$7,'Emissions factors'!$F$4:$CR$4,0))/1000,0)","v":0},{"$f":"IFERROR(BU86*INDEX('Emissions factors'!$F$5:$CR$10,MATCH('Data Input - Option 5'!$D122,'Emissions factors'!$C$5:$C$10,0),MATCH('Data Input - Option 5'!BU$7,'Emissions factors'!$F$4:$CR$4,0))/1000,0)","v":0},{"$f":"IFERROR(BV86*INDEX('Emissions factors'!$F$5:$CR$10,MATCH('Data Input - Option 5'!$D122,'Emissions factors'!$C$5:$C$10,0),MATCH('Data Input - Option 5'!BV$7,'Emissions factors'!$F$4:$CR$4,0))/1000,0)","v":0},{"$f":"IFERROR(BW86*INDEX('Emissions factors'!$F$5:$CR$10,MATCH('Data Input - Option 5'!$D122,'Emissions factors'!$C$5:$C$10,0),MATCH('Data Input - Option 5'!BW$7,'Emissions factors'!$F$4:$CR$4,0))/1000,0)","v":0},{"$f":"IFERROR(BX86*INDEX('Emissions factors'!$F$5:$CR$10,MATCH('Data Input - Option 5'!$D122,'Emissions factors'!$C$5:$C$10,0),MATCH('Data Input - Option 5'!BX$7,'Emissions factors'!$F$4:$CR$4,0))/1000,0)","v":0},{"$f":"IFERROR(BY86*INDEX('Emissions factors'!$F$5:$CR$10,MATCH('Data Input - Option 5'!$D122,'Emissions factors'!$C$5:$C$10,0),MATCH('Data Input - Option 5'!BY$7,'Emissions factors'!$F$4:$CR$4,0))/1000,0)","v":0},{"$f":"IFERROR(BZ86*INDEX('Emissions factors'!$F$5:$CR$10,MATCH('Data Input - Option 5'!$D122,'Emissions factors'!$C$5:$C$10,0),MATCH('Data Input - Option 5'!BZ$7,'Emissions factors'!$F$4:$CR$4,0))/1000,0)","v":0},{"$f":"IFERROR(CA86*INDEX('Emissions factors'!$F$5:$CR$10,MATCH('Data Input - Option 5'!$D122,'Emissions factors'!$C$5:$C$10,0),MATCH('Data Input - Option 5'!CA$7,'Emissions factors'!$F$4:$CR$4,0))/1000,0)","v":0},{"$f":"IFERROR(CB86*INDEX('Emissions factors'!$F$5:$CR$10,MATCH('Data Input - Option 5'!$D122,'Emissions factors'!$C$5:$C$10,0),MATCH('Data Input - Option 5'!CB$7,'Emissions factors'!$F$4:$CR$4,0))/1000,0)","v":0},{"$f":"IFERROR(CC86*INDEX('Emissions factors'!$F$5:$CR$10,MATCH('Data Input - Option 5'!$D122,'Emissions factors'!$C$5:$C$10,0),MATCH('Data Input - Option 5'!CC$7,'Emissions factors'!$F$4:$CR$4,0))/1000,0)","v":0},{"$f":"IFERROR(CD86*INDEX('Emissions factors'!$F$5:$CR$10,MATCH('Data Input - Option 5'!$D122,'Emissions factors'!$C$5:$C$10,0),MATCH('Data Input - Option 5'!CD$7,'Emissions factors'!$F$4:$CR$4,0))/1000,0)","v":0},{"$f":"IFERROR(CE86*INDEX('Emissions factors'!$F$5:$CR$10,MATCH('Data Input - Option 5'!$D122,'Emissions factors'!$C$5:$C$10,0),MATCH('Data Input - Option 5'!CE$7,'Emissions factors'!$F$4:$CR$4,0))/1000,0)","v":0},{"$f":"IFERROR(CF86*INDEX('Emissions factors'!$F$5:$CR$10,MATCH('Data Input - Option 5'!$D122,'Emissions factors'!$C$5:$C$10,0),MATCH('Data Input - Option 5'!CF$7,'Emissions factors'!$F$4:$CR$4,0))/1000,0)","v":0},{"$f":"IFERROR(CG86*INDEX('Emissions factors'!$F$5:$CR$10,MATCH('Data Input - Option 5'!$D122,'Emissions factors'!$C$5:$C$10,0),MATCH('Data Input - Option 5'!CG$7,'Emissions factors'!$F$4:$CR$4,0))/1000,0)","v":0},{"$f":"IFERROR(CH86*INDEX('Emissions factors'!$F$5:$CR$10,MATCH('Data Input - Option 5'!$D122,'Emissions factors'!$C$5:$C$10,0),MATCH('Data Input - Option 5'!CH$7,'Emissions factors'!$F$4:$CR$4,0))/1000,0)","v":0},{"$f":"IFERROR(CI86*INDEX('Emissions factors'!$F$5:$CR$10,MATCH('Data Input - Option 5'!$D122,'Emissions factors'!$C$5:$C$10,0),MATCH('Data Input - Option 5'!CI$7,'Emissions factors'!$F$4:$CR$4,0))/1000,0)","v":0},{"$f":"IFERROR(CJ86*INDEX('Emissions factors'!$F$5:$CR$10,MATCH('Data Input - Option 5'!$D122,'Emissions factors'!$C$5:$C$10,0),MATCH('Data Input - Option 5'!CJ$7,'Emissions factors'!$F$4:$CR$4,0))/1000,0)","v":0},{"$f":"IFERROR(CK86*INDEX('Emissions factors'!$F$5:$CR$10,MATCH('Data Input - Option 5'!$D122,'Emissions factors'!$C$5:$C$10,0),MATCH('Data Input - Option 5'!CK$7,'Emissions factors'!$F$4:$CR$4,0))/1000,0)","v":0},{"$f":"IFERROR(CL86*INDEX('Emissions factors'!$F$5:$CR$10,MATCH('Data Input - Option 5'!$D122,'Emissions factors'!$C$5:$C$10,0),MATCH('Data Input - Option 5'!CL$7,'Emissions factors'!$F$4:$CR$4,0))/1000,0)","v":0},{"$f":"IFERROR(CM86*INDEX('Emissions factors'!$F$5:$CR$10,MATCH('Data Input - Option 5'!$D122,'Emissions factors'!$C$5:$C$10,0),MATCH('Data Input - Option 5'!CM$7,'Emissions factors'!$F$4:$CR$4,0))/1000,0)","v":0},{"$f":"IFERROR(CN86*INDEX('Emissions factors'!$F$5:$CR$10,MATCH('Data Input - Option 5'!$D122,'Emissions factors'!$C$5:$C$10,0),MATCH('Data Input - Option 5'!CN$7,'Emissions factors'!$F$4:$CR$4,0))/1000,0)","v":0},{"$f":"IFERROR(CO86*INDEX('Emissions factors'!$F$5:$CR$10,MATCH('Data Input - Option 5'!$D122,'Emissions factors'!$C$5:$C$10,0),MATCH('Data Input - Option 5'!CO$7,'Emissions factors'!$F$4:$CR$4,0))/1000,0)","v":0},{"$f":"IFERROR(CP86*INDEX('Emissions factors'!$F$5:$CR$10,MATCH('Data Input - Option 5'!$D122,'Emissions factors'!$C$5:$C$10,0),MATCH('Data Input - Option 5'!CP$7,'Emissions factors'!$F$4:$CR$4,0))/1000,0)","v":0},{"$f":"IFERROR(CQ86*INDEX('Emissions factors'!$F$5:$CR$10,MATCH('Data Input - Option 5'!$D122,'Emissions factors'!$C$5:$C$10,0),MATCH('Data Input - Option 5'!CQ$7,'Emissions factors'!$F$4:$CR$4,0))/1000,0)","v":0},{"$f":"IFERROR(CR86*INDEX('Emissions factors'!$F$5:$CR$10,MATCH('Data Input - Option 5'!$D122,'Emissions factors'!$C$5:$C$10,0),MATCH('Data Input - Option 5'!CR$7,'Emissions factors'!$F$4:$CR$4,0))/1000,0)","v":0},{"$f":"IFERROR(CS86*INDEX('Emissions factors'!$F$5:$CR$10,MATCH('Data Input - Option 5'!$D122,'Emissions factors'!$C$5:$C$10,0),MATCH('Data Input - Option 5'!CS$7,'Emissions factors'!$F$4:$CR$4,0))/1000,0)","v":0},{"$f":"IFERROR(CT86*INDEX('Emissions factors'!$F$5:$CR$10,MATCH('Data Input - Option 5'!$D122,'Emissions factors'!$C$5:$C$10,0),MATCH('Data Input - Option 5'!CT$7,'Emissions factors'!$F$4:$CR$4,0))/1000,0)","v":0},{"$f":"IFERROR(CU86*INDEX('Emissions factors'!$F$5:$CR$10,MATCH('Data Input - Option 5'!$D122,'Emissions factors'!$C$5:$C$10,0),MATCH('Data Input - Option 5'!CU$7,'Emissions factors'!$F$4:$CR$4,0))/1000,0)","v":0},{"$f":"IFERROR(CV86*INDEX('Emissions factors'!$F$5:$CR$10,MATCH('Data Input - Option 5'!$D122,'Emissions factors'!$C$5:$C$10,0),MATCH('Data Input - Option 5'!CV$7,'Emissions factors'!$F$4:$CR$4,0))/1000,0)","v":0},{"$f":"IFERROR(CW86*INDEX('Emissions factors'!$F$5:$CR$10,MATCH('Data Input - Option 5'!$D122,'Emissions factors'!$C$5:$C$10,0),MATCH('Data Input - Option 5'!CW$7,'Emissions factors'!$F$4:$CR$4,0))/1000,0)","v":0},{"$f":"IFERROR(CX86*INDEX('Emissions factors'!$F$5:$CR$10,MATCH('Data Input - Option 5'!$D122,'Emissions factors'!$C$5:$C$10,0),MATCH('Data Input - Option 5'!CX$7,'Emissions factors'!$F$4:$CR$4,0))/1000,0)","v":0},{"$f":"IFERROR(CY86*INDEX('Emissions factors'!$F$5:$CR$10,MATCH('Data Input - Option 5'!$D122,'Emissions factors'!$C$5:$C$10,0),MATCH('Data Input - Option 5'!CY$7,'Emissions factors'!$F$4:$CR$4,0))/1000,0)","v":0},{"$f":"IFERROR(CZ86*INDEX('Emissions factors'!$F$5:$CR$10,MATCH('Data Input - Option 5'!$D122,'Emissions factors'!$C$5:$C$10,0),MATCH('Data Input - Option 5'!CZ$7,'Emissions factors'!$F$4:$CR$4,0))/1000,0)","v":0},{"$f":"IFERROR(DA86*INDEX('Emissions factors'!$F$5:$CR$10,MATCH('Data Input - Option 5'!$D122,'Emissions factors'!$C$5:$C$10,0),MATCH('Data Input - Option 5'!DA$7,'Emissions factors'!$F$4:$CR$4,0))/1000,0)","v":0},{"$f":"IFERROR(DB86*INDEX('Emissions factors'!$F$5:$CR$10,MATCH('Data Input - Option 5'!$D122,'Emissions factors'!$C$5:$C$10,0),MATCH('Data Input - Option 5'!DB$7,'Emissions factors'!$F$4:$CR$4,0))/1000,0)","v":0},{"$f":"IFERROR(DC86*INDEX('Emissions factors'!$F$5:$CR$10,MATCH('Data Input - Option 5'!$D122,'Emissions factors'!$C$5:$C$10,0),MATCH('Data Input - Option 5'!DC$7,'Emissions factors'!$F$4:$CR$4,0))/1000,0)","v":0}]
[null,null,null,"Gas Oil","tCO2e","(Auto calculated value)",null,{"$f":"IFERROR(H87*INDEX('Emissions factors'!$F$5:$CR$10,MATCH('Data Input - Option 5'!$D123,'Emissions factors'!$C$5:$C$10,0),MATCH('Data Input - Option 5'!H$7,'Emissions factors'!$F$4:$CR$4,0))/1000,0)","v":0},{"$f":"IFERROR(I87*INDEX('Emissions factors'!$F$5:$CR$10,MATCH('Data Input - Option 5'!$D123,'Emissions factors'!$C$5:$C$10,0),MATCH('Data Input - Option 5'!I$7,'Emissions factors'!$F$4:$CR$4,0))/1000,0)","v":0},{"$f":"IFERROR(J87*INDEX('Emissions factors'!$F$5:$CR$10,MATCH('Data Input - Option 5'!$D123,'Emissions factors'!$C$5:$C$10,0),MATCH('Data Input - Option 5'!J$7,'Emissions factors'!$F$4:$CR$4,0))/1000,0)","v":0},{"$f":"IFERROR(K87*INDEX('Emissions factors'!$F$5:$CR$10,MATCH('Data Input - Option 5'!$D123,'Emissions factors'!$C$5:$C$10,0),MATCH('Data Input - Option 5'!K$7,'Emissions factors'!$F$4:$CR$4,0))/1000,0)","v":0},{"$f":"IFERROR(L87*INDEX('Emissions factors'!$F$5:$CR$10,MATCH('Data Input - Option 5'!$D123,'Emissions factors'!$C$5:$C$10,0),MATCH('Data Input - Option 5'!L$7,'Emissions factors'!$F$4:$CR$4,0))/1000,0)","v":0},{"$f":"IFERROR(M87*INDEX('Emissions factors'!$F$5:$CR$10,MATCH('Data Input - Option 5'!$D123,'Emissions factors'!$C$5:$C$10,0),MATCH('Data Input - Option 5'!M$7,'Emissions factors'!$F$4:$CR$4,0))/1000,0)","v":0},{"$f":"IFERROR(N87*INDEX('Emissions factors'!$F$5:$CR$10,MATCH('Data Input - Option 5'!$D123,'Emissions factors'!$C$5:$C$10,0),MATCH('Data Input - Option 5'!N$7,'Emissions factors'!$F$4:$CR$4,0))/1000,0)","v":0},{"$f":"IFERROR(O87*INDEX('Emissions factors'!$F$5:$CR$10,MATCH('Data Input - Option 5'!$D123,'Emissions factors'!$C$5:$C$10,0),MATCH('Data Input - Option 5'!O$7,'Emissions factors'!$F$4:$CR$4,0))/1000,0)","v":0},{"$f":"IFERROR(P87*INDEX('Emissions factors'!$F$5:$CR$10,MATCH('Data Input - Option 5'!$D123,'Emissions factors'!$C$5:$C$10,0),MATCH('Data Input - Option 5'!P$7,'Emissions factors'!$F$4:$CR$4,0))/1000,0)","v":0},{"$f":"IFERROR(Q87*INDEX('Emissions factors'!$F$5:$CR$10,MATCH('Data Input - Option 5'!$D123,'Emissions factors'!$C$5:$C$10,0),MATCH('Data Input - Option 5'!Q$7,'Emissions factors'!$F$4:$CR$4,0))/1000,0)","v":0},{"$f":"IFERROR(R87*INDEX('Emissions factors'!$F$5:$CR$10,MATCH('Data Input - Option 5'!$D123,'Emissions factors'!$C$5:$C$10,0),MATCH('Data Input - Option 5'!R$7,'Emissions factors'!$F$4:$CR$4,0))/1000,0)","v":0},{"$f":"IFERROR(S87*INDEX('Emissions factors'!$F$5:$CR$10,MATCH('Data Input - Option 5'!$D123,'Emissions factors'!$C$5:$C$10,0),MATCH('Data Input - Option 5'!S$7,'Emissions factors'!$F$4:$CR$4,0))/1000,0)","v":0},{"$f":"IFERROR(T87*INDEX('Emissions factors'!$F$5:$CR$10,MATCH('Data Input - Option 5'!$D123,'Emissions factors'!$C$5:$C$10,0),MATCH('Data Input - Option 5'!T$7,'Emissions factors'!$F$4:$CR$4,0))/1000,0)","v":0},{"$f":"IFERROR(U87*INDEX('Emissions factors'!$F$5:$CR$10,MATCH('Data Input - Option 5'!$D123,'Emissions factors'!$C$5:$C$10,0),MATCH('Data Input - Option 5'!U$7,'Emissions factors'!$F$4:$CR$4,0))/1000,0)","v":0},{"$f":"IFERROR(V87*INDEX('Emissions factors'!$F$5:$CR$10,MATCH('Data Input - Option 5'!$D123,'Emissions factors'!$C$5:$C$10,0),MATCH('Data Input - Option 5'!V$7,'Emissions factors'!$F$4:$CR$4,0))/1000,0)","v":0},{"$f":"IFERROR(W87*INDEX('Emissions factors'!$F$5:$CR$10,MATCH('Data Input - Option 5'!$D123,'Emissions factors'!$C$5:$C$10,0),MATCH('Data Input - Option 5'!W$7,'Emissions factors'!$F$4:$CR$4,0))/1000,0)","v":0},{"$f":"IFERROR(X87*INDEX('Emissions factors'!$F$5:$CR$10,MATCH('Data Input - Option 5'!$D123,'Emissions factors'!$C$5:$C$10,0),MATCH('Data Input - Option 5'!X$7,'Emissions factors'!$F$4:$CR$4,0))/1000,0)","v":0},{"$f":"IFERROR(Y87*INDEX('Emissions factors'!$F$5:$CR$10,MATCH('Data Input - Option 5'!$D123,'Emissions factors'!$C$5:$C$10,0),MATCH('Data Input - Option 5'!Y$7,'Emissions factors'!$F$4:$CR$4,0))/1000,0)","v":0},{"$f":"IFERROR(Z87*INDEX('Emissions factors'!$F$5:$CR$10,MATCH('Data Input - Option 5'!$D123,'Emissions factors'!$C$5:$C$10,0),MATCH('Data Input - Option 5'!Z$7,'Emissions factors'!$F$4:$CR$4,0))/1000,0)","v":0},{"$f":"IFERROR(AA87*INDEX('Emissions factors'!$F$5:$CR$10,MATCH('Data Input - Option 5'!$D123,'Emissions factors'!$C$5:$C$10,0),MATCH('Data Input - Option 5'!AA$7,'Emissions factors'!$F$4:$CR$4,0))/1000,0)","v":0},{"$f":"IFERROR(AB87*INDEX('Emissions factors'!$F$5:$CR$10,MATCH('Data Input - Option 5'!$D123,'Emissions factors'!$C$5:$C$10,0),MATCH('Data Input - Option 5'!AB$7,'Emissions factors'!$F$4:$CR$4,0))/1000,0)","v":0},{"$f":"IFERROR(AC87*INDEX('Emissions factors'!$F$5:$CR$10,MATCH('Data Input - Option 5'!$D123,'Emissions factors'!$C$5:$C$10,0),MATCH('Data Input - Option 5'!AC$7,'Emissions factors'!$F$4:$CR$4,0))/1000,0)","v":0},{"$f":"IFERROR(AD87*INDEX('Emissions factors'!$F$5:$CR$10,MATCH('Data Input - Option 5'!$D123,'Emissions factors'!$C$5:$C$10,0),MATCH('Data Input - Option 5'!AD$7,'Emissions factors'!$F$4:$CR$4,0))/1000,0)","v":0},{"$f":"IFERROR(AE87*INDEX('Emissions factors'!$F$5:$CR$10,MATCH('Data Input - Option 5'!$D123,'Emissions factors'!$C$5:$C$10,0),MATCH('Data Input - Option 5'!AE$7,'Emissions factors'!$F$4:$CR$4,0))/1000,0)","v":0},{"$f":"IFERROR(AF87*INDEX('Emissions factors'!$F$5:$CR$10,MATCH('Data Input - Option 5'!$D123,'Emissions factors'!$C$5:$C$10,0),MATCH('Data Input - Option 5'!AF$7,'Emissions factors'!$F$4:$CR$4,0))/1000,0)","v":0},{"$f":"IFERROR(AG87*INDEX('Emissions factors'!$F$5:$CR$10,MATCH('Data Input - Option 5'!$D123,'Emissions factors'!$C$5:$C$10,0),MATCH('Data Input - Option 5'!AG$7,'Emissions factors'!$F$4:$CR$4,0))/1000,0)","v":0},{"$f":"IFERROR(AH87*INDEX('Emissions factors'!$F$5:$CR$10,MATCH('Data Input - Option 5'!$D123,'Emissions factors'!$C$5:$C$10,0),MATCH('Data Input - Option 5'!AH$7,'Emissions factors'!$F$4:$CR$4,0))/1000,0)","v":0},{"$f":"IFERROR(AI87*INDEX('Emissions factors'!$F$5:$CR$10,MATCH('Data Input - Option 5'!$D123,'Emissions factors'!$C$5:$C$10,0),MATCH('Data Input - Option 5'!AI$7,'Emissions factors'!$F$4:$CR$4,0))/1000,0)","v":0},{"$f":"IFERROR(AJ87*INDEX('Emissions factors'!$F$5:$CR$10,MATCH('Data Input - Option 5'!$D123,'Emissions factors'!$C$5:$C$10,0),MATCH('Data Input - Option 5'!AJ$7,'Emissions factors'!$F$4:$CR$4,0))/1000,0)","v":0},{"$f":"IFERROR(AK87*INDEX('Emissions factors'!$F$5:$CR$10,MATCH('Data Input - Option 5'!$D123,'Emissions factors'!$C$5:$C$10,0),MATCH('Data Input - Option 5'!AK$7,'Emissions factors'!$F$4:$CR$4,0))/1000,0)","v":0},{"$f":"IFERROR(AL87*INDEX('Emissions factors'!$F$5:$CR$10,MATCH('Data Input - Option 5'!$D123,'Emissions factors'!$C$5:$C$10,0),MATCH('Data Input - Option 5'!AL$7,'Emissions factors'!$F$4:$CR$4,0))/1000,0)","v":0},{"$f":"IFERROR(AM87*INDEX('Emissions factors'!$F$5:$CR$10,MATCH('Data Input - Option 5'!$D123,'Emissions factors'!$C$5:$C$10,0),MATCH('Data Input - Option 5'!AM$7,'Emissions factors'!$F$4:$CR$4,0))/1000,0)","v":0},{"$f":"IFERROR(AN87*INDEX('Emissions factors'!$F$5:$CR$10,MATCH('Data Input - Option 5'!$D123,'Emissions factors'!$C$5:$C$10,0),MATCH('Data Input - Option 5'!AN$7,'Emissions factors'!$F$4:$CR$4,0))/1000,0)","v":0},{"$f":"IFERROR(AO87*INDEX('Emissions factors'!$F$5:$CR$10,MATCH('Data Input - Option 5'!$D123,'Emissions factors'!$C$5:$C$10,0),MATCH('Data Input - Option 5'!AO$7,'Emissions factors'!$F$4:$CR$4,0))/1000,0)","v":0},{"$f":"IFERROR(AP87*INDEX('Emissions factors'!$F$5:$CR$10,MATCH('Data Input - Option 5'!$D123,'Emissions factors'!$C$5:$C$10,0),MATCH('Data Input - Option 5'!AP$7,'Emissions factors'!$F$4:$CR$4,0))/1000,0)","v":0},{"$f":"IFERROR(AQ87*INDEX('Emissions factors'!$F$5:$CR$10,MATCH('Data Input - Option 5'!$D123,'Emissions factors'!$C$5:$C$10,0),MATCH('Data Input - Option 5'!AQ$7,'Emissions factors'!$F$4:$CR$4,0))/1000,0)","v":0},{"$f":"IFERROR(AR87*INDEX('Emissions factors'!$F$5:$CR$10,MATCH('Data Input - Option 5'!$D123,'Emissions factors'!$C$5:$C$10,0),MATCH('Data Input - Option 5'!AR$7,'Emissions factors'!$F$4:$CR$4,0))/1000,0)","v":0},{"$f":"IFERROR(AS87*INDEX('Emissions factors'!$F$5:$CR$10,MATCH('Data Input - Option 5'!$D123,'Emissions factors'!$C$5:$C$10,0),MATCH('Data Input - Option 5'!AS$7,'Emissions factors'!$F$4:$CR$4,0))/1000,0)","v":0},{"$f":"IFERROR(AT87*INDEX('Emissions factors'!$F$5:$CR$10,MATCH('Data Input - Option 5'!$D123,'Emissions factors'!$C$5:$C$10,0),MATCH('Data Input - Option 5'!AT$7,'Emissions factors'!$F$4:$CR$4,0))/1000,0)","v":0},{"$f":"IFERROR(AU87*INDEX('Emissions factors'!$F$5:$CR$10,MATCH('Data Input - Option 5'!$D123,'Emissions factors'!$C$5:$C$10,0),MATCH('Data Input - Option 5'!AU$7,'Emissions factors'!$F$4:$CR$4,0))/1000,0)","v":0},{"$f":"IFERROR(AV87*INDEX('Emissions factors'!$F$5:$CR$10,MATCH('Data Input - Option 5'!$D123,'Emissions factors'!$C$5:$C$10,0),MATCH('Data Input - Option 5'!AV$7,'Emissions factors'!$F$4:$CR$4,0))/1000,0)","v":0},{"$f":"IFERROR(AW87*INDEX('Emissions factors'!$F$5:$CR$10,MATCH('Data Input - Option 5'!$D123,'Emissions factors'!$C$5:$C$10,0),MATCH('Data Input - Option 5'!AW$7,'Emissions factors'!$F$4:$CR$4,0))/1000,0)","v":0},{"$f":"IFERROR(AX87*INDEX('Emissions factors'!$F$5:$CR$10,MATCH('Data Input - Option 5'!$D123,'Emissions factors'!$C$5:$C$10,0),MATCH('Data Input - Option 5'!AX$7,'Emissions factors'!$F$4:$CR$4,0))/1000,0)","v":0},{"$f":"IFERROR(AY87*INDEX('Emissions factors'!$F$5:$CR$10,MATCH('Data Input - Option 5'!$D123,'Emissions factors'!$C$5:$C$10,0),MATCH('Data Input - Option 5'!AY$7,'Emissions factors'!$F$4:$CR$4,0))/1000,0)","v":0},{"$f":"IFERROR(AZ87*INDEX('Emissions factors'!$F$5:$CR$10,MATCH('Data Input - Option 5'!$D123,'Emissions factors'!$C$5:$C$10,0),MATCH('Data Input - Option 5'!AZ$7,'Emissions factors'!$F$4:$CR$4,0))/1000,0)","v":0},{"$f":"IFERROR(BA87*INDEX('Emissions factors'!$F$5:$CR$10,MATCH('Data Input - Option 5'!$D123,'Emissions factors'!$C$5:$C$10,0),MATCH('Data Input - Option 5'!BA$7,'Emissions factors'!$F$4:$CR$4,0))/1000,0)","v":0},{"$f":"IFERROR(BB87*INDEX('Emissions factors'!$F$5:$CR$10,MATCH('Data Input - Option 5'!$D123,'Emissions factors'!$C$5:$C$10,0),MATCH('Data Input - Option 5'!BB$7,'Emissions factors'!$F$4:$CR$4,0))/1000,0)","v":0},{"$f":"IFERROR(BC87*INDEX('Emissions factors'!$F$5:$CR$10,MATCH('Data Input - Option 5'!$D123,'Emissions factors'!$C$5:$C$10,0),MATCH('Data Input - Option 5'!BC$7,'Emissions factors'!$F$4:$CR$4,0))/1000,0)","v":0},{"$f":"IFERROR(BD87*INDEX('Emissions factors'!$F$5:$CR$10,MATCH('Data Input - Option 5'!$D123,'Emissions factors'!$C$5:$C$10,0),MATCH('Data Input - Option 5'!BD$7,'Emissions factors'!$F$4:$CR$4,0))/1000,0)","v":0},{"$f":"IFERROR(BE87*INDEX('Emissions factors'!$F$5:$CR$10,MATCH('Data Input - Option 5'!$D123,'Emissions factors'!$C$5:$C$10,0),MATCH('Data Input - Option 5'!BE$7,'Emissions factors'!$F$4:$CR$4,0))/1000,0)","v":0},{"$f":"IFERROR(BF87*INDEX('Emissions factors'!$F$5:$CR$10,MATCH('Data Input - Option 5'!$D123,'Emissions factors'!$C$5:$C$10,0),MATCH('Data Input - Option 5'!BF$7,'Emissions factors'!$F$4:$CR$4,0))/1000,0)","v":0},{"$f":"IFERROR(BG87*INDEX('Emissions factors'!$F$5:$CR$10,MATCH('Data Input - Option 5'!$D123,'Emissions factors'!$C$5:$C$10,0),MATCH('Data Input - Option 5'!BG$7,'Emissions factors'!$F$4:$CR$4,0))/1000,0)","v":0},{"$f":"IFERROR(BH87*INDEX('Emissions factors'!$F$5:$CR$10,MATCH('Data Input - Option 5'!$D123,'Emissions factors'!$C$5:$C$10,0),MATCH('Data Input - Option 5'!BH$7,'Emissions factors'!$F$4:$CR$4,0))/1000,0)","v":0},{"$f":"IFERROR(BI87*INDEX('Emissions factors'!$F$5:$CR$10,MATCH('Data Input - Option 5'!$D123,'Emissions factors'!$C$5:$C$10,0),MATCH('Data Input - Option 5'!BI$7,'Emissions factors'!$F$4:$CR$4,0))/1000,0)","v":0},{"$f":"IFERROR(BJ87*INDEX('Emissions factors'!$F$5:$CR$10,MATCH('Data Input - Option 5'!$D123,'Emissions factors'!$C$5:$C$10,0),MATCH('Data Input - Option 5'!BJ$7,'Emissions factors'!$F$4:$CR$4,0))/1000,0)","v":0},{"$f":"IFERROR(BK87*INDEX('Emissions factors'!$F$5:$CR$10,MATCH('Data Input - Option 5'!$D123,'Emissions factors'!$C$5:$C$10,0),MATCH('Data Input - Option 5'!BK$7,'Emissions factors'!$F$4:$CR$4,0))/1000,0)","v":0},{"$f":"IFERROR(BL87*INDEX('Emissions factors'!$F$5:$CR$10,MATCH('Data Input - Option 5'!$D123,'Emissions factors'!$C$5:$C$10,0),MATCH('Data Input - Option 5'!BL$7,'Emissions factors'!$F$4:$CR$4,0))/1000,0)","v":0},{"$f":"IFERROR(BM87*INDEX('Emissions factors'!$F$5:$CR$10,MATCH('Data Input - Option 5'!$D123,'Emissions factors'!$C$5:$C$10,0),MATCH('Data Input - Option 5'!BM$7,'Emissions factors'!$F$4:$CR$4,0))/1000,0)","v":0},{"$f":"IFERROR(BN87*INDEX('Emissions factors'!$F$5:$CR$10,MATCH('Data Input - Option 5'!$D123,'Emissions factors'!$C$5:$C$10,0),MATCH('Data Input - Option 5'!BN$7,'Emissions factors'!$F$4:$CR$4,0))/1000,0)","v":0},{"$f":"IFERROR(BO87*INDEX('Emissions factors'!$F$5:$CR$10,MATCH('Data Input - Option 5'!$D123,'Emissions factors'!$C$5:$C$10,0),MATCH('Data Input - Option 5'!BO$7,'Emissions factors'!$F$4:$CR$4,0))/1000,0)","v":0},{"$f":"IFERROR(BP87*INDEX('Emissions factors'!$F$5:$CR$10,MATCH('Data Input - Option 5'!$D123,'Emissions factors'!$C$5:$C$10,0),MATCH('Data Input - Option 5'!BP$7,'Emissions factors'!$F$4:$CR$4,0))/1000,0)","v":0},{"$f":"IFERROR(BQ87*INDEX('Emissions factors'!$F$5:$CR$10,MATCH('Data Input - Option 5'!$D123,'Emissions factors'!$C$5:$C$10,0),MATCH('Data Input - Option 5'!BQ$7,'Emissions factors'!$F$4:$CR$4,0))/1000,0)","v":0},{"$f":"IFERROR(BR87*INDEX('Emissions factors'!$F$5:$CR$10,MATCH('Data Input - Option 5'!$D123,'Emissions factors'!$C$5:$C$10,0),MATCH('Data Input - Option 5'!BR$7,'Emissions factors'!$F$4:$CR$4,0))/1000,0)","v":0},{"$f":"IFERROR(BS87*INDEX('Emissions factors'!$F$5:$CR$10,MATCH('Data Input - Option 5'!$D123,'Emissions factors'!$C$5:$C$10,0),MATCH('Data Input - Option 5'!BS$7,'Emissions factors'!$F$4:$CR$4,0))/1000,0)","v":0},{"$f":"IFERROR(BT87*INDEX('Emissions factors'!$F$5:$CR$10,MATCH('Data Input - Option 5'!$D123,'Emissions factors'!$C$5:$C$10,0),MATCH('Data Input - Option 5'!BT$7,'Emissions factors'!$F$4:$CR$4,0))/1000,0)","v":0},{"$f":"IFERROR(BU87*INDEX('Emissions factors'!$F$5:$CR$10,MATCH('Data Input - Option 5'!$D123,'Emissions factors'!$C$5:$C$10,0),MATCH('Data Input - Option 5'!BU$7,'Emissions factors'!$F$4:$CR$4,0))/1000,0)","v":0},{"$f":"IFERROR(BV87*INDEX('Emissions factors'!$F$5:$CR$10,MATCH('Data Input - Option 5'!$D123,'Emissions factors'!$C$5:$C$10,0),MATCH('Data Input - Option 5'!BV$7,'Emissions factors'!$F$4:$CR$4,0))/1000,0)","v":0},{"$f":"IFERROR(BW87*INDEX('Emissions factors'!$F$5:$CR$10,MATCH('Data Input - Option 5'!$D123,'Emissions factors'!$C$5:$C$10,0),MATCH('Data Input - Option 5'!BW$7,'Emissions factors'!$F$4:$CR$4,0))/1000,0)","v":0},{"$f":"IFERROR(BX87*INDEX('Emissions factors'!$F$5:$CR$10,MATCH('Data Input - Option 5'!$D123,'Emissions factors'!$C$5:$C$10,0),MATCH('Data Input - Option 5'!BX$7,'Emissions factors'!$F$4:$CR$4,0))/1000,0)","v":0},{"$f":"IFERROR(BY87*INDEX('Emissions factors'!$F$5:$CR$10,MATCH('Data Input - Option 5'!$D123,'Emissions factors'!$C$5:$C$10,0),MATCH('Data Input - Option 5'!BY$7,'Emissions factors'!$F$4:$CR$4,0))/1000,0)","v":0},{"$f":"IFERROR(BZ87*INDEX('Emissions factors'!$F$5:$CR$10,MATCH('Data Input - Option 5'!$D123,'Emissions factors'!$C$5:$C$10,0),MATCH('Data Input - Option 5'!BZ$7,'Emissions factors'!$F$4:$CR$4,0))/1000,0)","v":0},{"$f":"IFERROR(CA87*INDEX('Emissions factors'!$F$5:$CR$10,MATCH('Data Input - Option 5'!$D123,'Emissions factors'!$C$5:$C$10,0),MATCH('Data Input - Option 5'!CA$7,'Emissions factors'!$F$4:$CR$4,0))/1000,0)","v":0},{"$f":"IFERROR(CB87*INDEX('Emissions factors'!$F$5:$CR$10,MATCH('Data Input - Option 5'!$D123,'Emissions factors'!$C$5:$C$10,0),MATCH('Data Input - Option 5'!CB$7,'Emissions factors'!$F$4:$CR$4,0))/1000,0)","v":0},{"$f":"IFERROR(CC87*INDEX('Emissions factors'!$F$5:$CR$10,MATCH('Data Input - Option 5'!$D123,'Emissions factors'!$C$5:$C$10,0),MATCH('Data Input - Option 5'!CC$7,'Emissions factors'!$F$4:$CR$4,0))/1000,0)","v":0},{"$f":"IFERROR(CD87*INDEX('Emissions factors'!$F$5:$CR$10,MATCH('Data Input - Option 5'!$D123,'Emissions factors'!$C$5:$C$10,0),MATCH('Data Input - Option 5'!CD$7,'Emissions factors'!$F$4:$CR$4,0))/1000,0)","v":0},{"$f":"IFERROR(CE87*INDEX('Emissions factors'!$F$5:$CR$10,MATCH('Data Input - Option 5'!$D123,'Emissions factors'!$C$5:$C$10,0),MATCH('Data Input - Option 5'!CE$7,'Emissions factors'!$F$4:$CR$4,0))/1000,0)","v":0},{"$f":"IFERROR(CF87*INDEX('Emissions factors'!$F$5:$CR$10,MATCH('Data Input - Option 5'!$D123,'Emissions factors'!$C$5:$C$10,0),MATCH('Data Input - Option 5'!CF$7,'Emissions factors'!$F$4:$CR$4,0))/1000,0)","v":0},{"$f":"IFERROR(CG87*INDEX('Emissions factors'!$F$5:$CR$10,MATCH('Data Input - Option 5'!$D123,'Emissions factors'!$C$5:$C$10,0),MATCH('Data Input - Option 5'!CG$7,'Emissions factors'!$F$4:$CR$4,0))/1000,0)","v":0},{"$f":"IFERROR(CH87*INDEX('Emissions factors'!$F$5:$CR$10,MATCH('Data Input - Option 5'!$D123,'Emissions factors'!$C$5:$C$10,0),MATCH('Data Input - Option 5'!CH$7,'Emissions factors'!$F$4:$CR$4,0))/1000,0)","v":0},{"$f":"IFERROR(CI87*INDEX('Emissions factors'!$F$5:$CR$10,MATCH('Data Input - Option 5'!$D123,'Emissions factors'!$C$5:$C$10,0),MATCH('Data Input - Option 5'!CI$7,'Emissions factors'!$F$4:$CR$4,0))/1000,0)","v":0},{"$f":"IFERROR(CJ87*INDEX('Emissions factors'!$F$5:$CR$10,MATCH('Data Input - Option 5'!$D123,'Emissions factors'!$C$5:$C$10,0),MATCH('Data Input - Option 5'!CJ$7,'Emissions factors'!$F$4:$CR$4,0))/1000,0)","v":0},{"$f":"IFERROR(CK87*INDEX('Emissions factors'!$F$5:$CR$10,MATCH('Data Input - Option 5'!$D123,'Emissions factors'!$C$5:$C$10,0),MATCH('Data Input - Option 5'!CK$7,'Emissions factors'!$F$4:$CR$4,0))/1000,0)","v":0},{"$f":"IFERROR(CL87*INDEX('Emissions factors'!$F$5:$CR$10,MATCH('Data Input - Option 5'!$D123,'Emissions factors'!$C$5:$C$10,0),MATCH('Data Input - Option 5'!CL$7,'Emissions factors'!$F$4:$CR$4,0))/1000,0)","v":0},{"$f":"IFERROR(CM87*INDEX('Emissions factors'!$F$5:$CR$10,MATCH('Data Input - Option 5'!$D123,'Emissions factors'!$C$5:$C$10,0),MATCH('Data Input - Option 5'!CM$7,'Emissions factors'!$F$4:$CR$4,0))/1000,0)","v":0},{"$f":"IFERROR(CN87*INDEX('Emissions factors'!$F$5:$CR$10,MATCH('Data Input - Option 5'!$D123,'Emissions factors'!$C$5:$C$10,0),MATCH('Data Input - Option 5'!CN$7,'Emissions factors'!$F$4:$CR$4,0))/1000,0)","v":0},{"$f":"IFERROR(CO87*INDEX('Emissions factors'!$F$5:$CR$10,MATCH('Data Input - Option 5'!$D123,'Emissions factors'!$C$5:$C$10,0),MATCH('Data Input - Option 5'!CO$7,'Emissions factors'!$F$4:$CR$4,0))/1000,0)","v":0},{"$f":"IFERROR(CP87*INDEX('Emissions factors'!$F$5:$CR$10,MATCH('Data Input - Option 5'!$D123,'Emissions factors'!$C$5:$C$10,0),MATCH('Data Input - Option 5'!CP$7,'Emissions factors'!$F$4:$CR$4,0))/1000,0)","v":0},{"$f":"IFERROR(CQ87*INDEX('Emissions factors'!$F$5:$CR$10,MATCH('Data Input - Option 5'!$D123,'Emissions factors'!$C$5:$C$10,0),MATCH('Data Input - Option 5'!CQ$7,'Emissions factors'!$F$4:$CR$4,0))/1000,0)","v":0},{"$f":"IFERROR(CR87*INDEX('Emissions factors'!$F$5:$CR$10,MATCH('Data Input - Option 5'!$D123,'Emissions factors'!$C$5:$C$10,0),MATCH('Data Input - Option 5'!CR$7,'Emissions factors'!$F$4:$CR$4,0))/1000,0)","v":0},{"$f":"IFERROR(CS87*INDEX('Emissions factors'!$F$5:$CR$10,MATCH('Data Input - Option 5'!$D123,'Emissions factors'!$C$5:$C$10,0),MATCH('Data Input - Option 5'!CS$7,'Emissions factors'!$F$4:$CR$4,0))/1000,0)","v":0},{"$f":"IFERROR(CT87*INDEX('Emissions factors'!$F$5:$CR$10,MATCH('Data Input - Option 5'!$D123,'Emissions factors'!$C$5:$C$10,0),MATCH('Data Input - Option 5'!CT$7,'Emissions factors'!$F$4:$CR$4,0))/1000,0)","v":0},{"$f":"IFERROR(CU87*INDEX('Emissions factors'!$F$5:$CR$10,MATCH('Data Input - Option 5'!$D123,'Emissions factors'!$C$5:$C$10,0),MATCH('Data Input - Option 5'!CU$7,'Emissions factors'!$F$4:$CR$4,0))/1000,0)","v":0},{"$f":"IFERROR(CV87*INDEX('Emissions factors'!$F$5:$CR$10,MATCH('Data Input - Option 5'!$D123,'Emissions factors'!$C$5:$C$10,0),MATCH('Data Input - Option 5'!CV$7,'Emissions factors'!$F$4:$CR$4,0))/1000,0)","v":0},{"$f":"IFERROR(CW87*INDEX('Emissions factors'!$F$5:$CR$10,MATCH('Data Input - Option 5'!$D123,'Emissions factors'!$C$5:$C$10,0),MATCH('Data Input - Option 5'!CW$7,'Emissions factors'!$F$4:$CR$4,0))/1000,0)","v":0},{"$f":"IFERROR(CX87*INDEX('Emissions factors'!$F$5:$CR$10,MATCH('Data Input - Option 5'!$D123,'Emissions factors'!$C$5:$C$10,0),MATCH('Data Input - Option 5'!CX$7,'Emissions factors'!$F$4:$CR$4,0))/1000,0)","v":0},{"$f":"IFERROR(CY87*INDEX('Emissions factors'!$F$5:$CR$10,MATCH('Data Input - Option 5'!$D123,'Emissions factors'!$C$5:$C$10,0),MATCH('Data Input - Option 5'!CY$7,'Emissions factors'!$F$4:$CR$4,0))/1000,0)","v":0},{"$f":"IFERROR(CZ87*INDEX('Emissions factors'!$F$5:$CR$10,MATCH('Data Input - Option 5'!$D123,'Emissions factors'!$C$5:$C$10,0),MATCH('Data Input - Option 5'!CZ$7,'Emissions factors'!$F$4:$CR$4,0))/1000,0)","v":0},{"$f":"IFERROR(DA87*INDEX('Emissions factors'!$F$5:$CR$10,MATCH('Data Input - Option 5'!$D123,'Emissions factors'!$C$5:$C$10,0),MATCH('Data Input - Option 5'!DA$7,'Emissions factors'!$F$4:$CR$4,0))/1000,0)","v":0},{"$f":"IFERROR(DB87*INDEX('Emissions factors'!$F$5:$CR$10,MATCH('Data Input - Option 5'!$D123,'Emissions factors'!$C$5:$C$10,0),MATCH('Data Input - Option 5'!DB$7,'Emissions factors'!$F$4:$CR$4,0))/1000,0)","v":0},{"$f":"IFERROR(DC87*INDEX('Emissions factors'!$F$5:$CR$10,MATCH('Data Input - Option 5'!$D123,'Emissions factors'!$C$5:$C$10,0),MATCH('Data Input - Option 5'!DC$7,'Emissions factors'!$F$4:$CR$4,0))/1000,0)","v":0}]
[null,null,null,"Road - Petrol","tCO2e","(Auto calculated value)",null,{"$f":"IFERROR(H88*INDEX('Emissions factors'!$F$5:$CR$10,MATCH('Data Input - Option 5'!$D124,'Emissions factors'!$C$5:$C$10,0),MATCH('Data Input - Option 5'!H$7,'Emissions factors'!$F$4:$CR$4,0))/1000,0)","v":0},{"$f":"IFERROR(I88*INDEX('Emissions factors'!$F$5:$CR$10,MATCH('Data Input - Option 5'!$D124,'Emissions factors'!$C$5:$C$10,0),MATCH('Data Input - Option 5'!I$7,'Emissions factors'!$F$4:$CR$4,0))/1000,0)","v":0},{"$f":"IFERROR(J88*INDEX('Emissions factors'!$F$5:$CR$10,MATCH('Data Input - Option 5'!$D124,'Emissions factors'!$C$5:$C$10,0),MATCH('Data Input - Option 5'!J$7,'Emissions factors'!$F$4:$CR$4,0))/1000,0)","v":0},{"$f":"IFERROR(K88*INDEX('Emissions factors'!$F$5:$CR$10,MATCH('Data Input - Option 5'!$D124,'Emissions factors'!$C$5:$C$10,0),MATCH('Data Input - Option 5'!K$7,'Emissions factors'!$F$4:$CR$4,0))/1000,0)","v":0},{"$f":"IFERROR(L88*INDEX('Emissions factors'!$F$5:$CR$10,MATCH('Data Input - Option 5'!$D124,'Emissions factors'!$C$5:$C$10,0),MATCH('Data Input - Option 5'!L$7,'Emissions factors'!$F$4:$CR$4,0))/1000,0)","v":0},{"$f":"IFERROR(M88*INDEX('Emissions factors'!$F$5:$CR$10,MATCH('Data Input - Option 5'!$D124,'Emissions factors'!$C$5:$C$10,0),MATCH('Data Input - Option 5'!M$7,'Emissions factors'!$F$4:$CR$4,0))/1000,0)","v":0},{"$f":"IFERROR(N88*INDEX('Emissions factors'!$F$5:$CR$10,MATCH('Data Input - Option 5'!$D124,'Emissions factors'!$C$5:$C$10,0),MATCH('Data Input - Option 5'!N$7,'Emissions factors'!$F$4:$CR$4,0))/1000,0)","v":0},{"$f":"IFERROR(O88*INDEX('Emissions factors'!$F$5:$CR$10,MATCH('Data Input - Option 5'!$D124,'Emissions factors'!$C$5:$C$10,0),MATCH('Data Input - Option 5'!O$7,'Emissions factors'!$F$4:$CR$4,0))/1000,0)","v":0},{"$f":"IFERROR(P88*INDEX('Emissions factors'!$F$5:$CR$10,MATCH('Data Input - Option 5'!$D124,'Emissions factors'!$C$5:$C$10,0),MATCH('Data Input - Option 5'!P$7,'Emissions factors'!$F$4:$CR$4,0))/1000,0)","v":0},{"$f":"IFERROR(Q88*INDEX('Emissions factors'!$F$5:$CR$10,MATCH('Data Input - Option 5'!$D124,'Emissions factors'!$C$5:$C$10,0),MATCH('Data Input - Option 5'!Q$7,'Emissions factors'!$F$4:$CR$4,0))/1000,0)","v":0},{"$f":"IFERROR(R88*INDEX('Emissions factors'!$F$5:$CR$10,MATCH('Data Input - Option 5'!$D124,'Emissions factors'!$C$5:$C$10,0),MATCH('Data Input - Option 5'!R$7,'Emissions factors'!$F$4:$CR$4,0))/1000,0)","v":0},{"$f":"IFERROR(S88*INDEX('Emissions factors'!$F$5:$CR$10,MATCH('Data Input - Option 5'!$D124,'Emissions factors'!$C$5:$C$10,0),MATCH('Data Input - Option 5'!S$7,'Emissions factors'!$F$4:$CR$4,0))/1000,0)","v":0},{"$f":"IFERROR(T88*INDEX('Emissions factors'!$F$5:$CR$10,MATCH('Data Input - Option 5'!$D124,'Emissions factors'!$C$5:$C$10,0),MATCH('Data Input - Option 5'!T$7,'Emissions factors'!$F$4:$CR$4,0))/1000,0)","v":0},{"$f":"IFERROR(U88*INDEX('Emissions factors'!$F$5:$CR$10,MATCH('Data Input - Option 5'!$D124,'Emissions factors'!$C$5:$C$10,0),MATCH('Data Input - Option 5'!U$7,'Emissions factors'!$F$4:$CR$4,0))/1000,0)","v":0},{"$f":"IFERROR(V88*INDEX('Emissions factors'!$F$5:$CR$10,MATCH('Data Input - Option 5'!$D124,'Emissions factors'!$C$5:$C$10,0),MATCH('Data Input - Option 5'!V$7,'Emissions factors'!$F$4:$CR$4,0))/1000,0)","v":0},{"$f":"IFERROR(W88*INDEX('Emissions factors'!$F$5:$CR$10,MATCH('Data Input - Option 5'!$D124,'Emissions factors'!$C$5:$C$10,0),MATCH('Data Input - Option 5'!W$7,'Emissions factors'!$F$4:$CR$4,0))/1000,0)","v":0},{"$f":"IFERROR(X88*INDEX('Emissions factors'!$F$5:$CR$10,MATCH('Data Input - Option 5'!$D124,'Emissions factors'!$C$5:$C$10,0),MATCH('Data Input - Option 5'!X$7,'Emissions factors'!$F$4:$CR$4,0))/1000,0)","v":0},{"$f":"IFERROR(Y88*INDEX('Emissions factors'!$F$5:$CR$10,MATCH('Data Input - Option 5'!$D124,'Emissions factors'!$C$5:$C$10,0),MATCH('Data Input - Option 5'!Y$7,'Emissions factors'!$F$4:$CR$4,0))/1000,0)","v":0},{"$f":"IFERROR(Z88*INDEX('Emissions factors'!$F$5:$CR$10,MATCH('Data Input - Option 5'!$D124,'Emissions factors'!$C$5:$C$10,0),MATCH('Data Input - Option 5'!Z$7,'Emissions factors'!$F$4:$CR$4,0))/1000,0)","v":0},{"$f":"IFERROR(AA88*INDEX('Emissions factors'!$F$5:$CR$10,MATCH('Data Input - Option 5'!$D124,'Emissions factors'!$C$5:$C$10,0),MATCH('Data Input - Option 5'!AA$7,'Emissions factors'!$F$4:$CR$4,0))/1000,0)","v":0},{"$f":"IFERROR(AB88*INDEX('Emissions factors'!$F$5:$CR$10,MATCH('Data Input - Option 5'!$D124,'Emissions factors'!$C$5:$C$10,0),MATCH('Data Input - Option 5'!AB$7,'Emissions factors'!$F$4:$CR$4,0))/1000,0)","v":0},{"$f":"IFERROR(AC88*INDEX('Emissions factors'!$F$5:$CR$10,MATCH('Data Input - Option 5'!$D124,'Emissions factors'!$C$5:$C$10,0),MATCH('Data Input - Option 5'!AC$7,'Emissions factors'!$F$4:$CR$4,0))/1000,0)","v":0},{"$f":"IFERROR(AD88*INDEX('Emissions factors'!$F$5:$CR$10,MATCH('Data Input - Option 5'!$D124,'Emissions factors'!$C$5:$C$10,0),MATCH('Data Input - Option 5'!AD$7,'Emissions factors'!$F$4:$CR$4,0))/1000,0)","v":0},{"$f":"IFERROR(AE88*INDEX('Emissions factors'!$F$5:$CR$10,MATCH('Data Input - Option 5'!$D124,'Emissions factors'!$C$5:$C$10,0),MATCH('Data Input - Option 5'!AE$7,'Emissions factors'!$F$4:$CR$4,0))/1000,0)","v":0},{"$f":"IFERROR(AF88*INDEX('Emissions factors'!$F$5:$CR$10,MATCH('Data Input - Option 5'!$D124,'Emissions factors'!$C$5:$C$10,0),MATCH('Data Input - Option 5'!AF$7,'Emissions factors'!$F$4:$CR$4,0))/1000,0)","v":0},{"$f":"IFERROR(AG88*INDEX('Emissions factors'!$F$5:$CR$10,MATCH('Data Input - Option 5'!$D124,'Emissions factors'!$C$5:$C$10,0),MATCH('Data Input - Option 5'!AG$7,'Emissions factors'!$F$4:$CR$4,0))/1000,0)","v":0},{"$f":"IFERROR(AH88*INDEX('Emissions factors'!$F$5:$CR$10,MATCH('Data Input - Option 5'!$D124,'Emissions factors'!$C$5:$C$10,0),MATCH('Data Input - Option 5'!AH$7,'Emissions factors'!$F$4:$CR$4,0))/1000,0)","v":0},{"$f":"IFERROR(AI88*INDEX('Emissions factors'!$F$5:$CR$10,MATCH('Data Input - Option 5'!$D124,'Emissions factors'!$C$5:$C$10,0),MATCH('Data Input - Option 5'!AI$7,'Emissions factors'!$F$4:$CR$4,0))/1000,0)","v":0},{"$f":"IFERROR(AJ88*INDEX('Emissions factors'!$F$5:$CR$10,MATCH('Data Input - Option 5'!$D124,'Emissions factors'!$C$5:$C$10,0),MATCH('Data Input - Option 5'!AJ$7,'Emissions factors'!$F$4:$CR$4,0))/1000,0)","v":0},{"$f":"IFERROR(AK88*INDEX('Emissions factors'!$F$5:$CR$10,MATCH('Data Input - Option 5'!$D124,'Emissions factors'!$C$5:$C$10,0),MATCH('Data Input - Option 5'!AK$7,'Emissions factors'!$F$4:$CR$4,0))/1000,0)","v":0},{"$f":"IFERROR(AL88*INDEX('Emissions factors'!$F$5:$CR$10,MATCH('Data Input - Option 5'!$D124,'Emissions factors'!$C$5:$C$10,0),MATCH('Data Input - Option 5'!AL$7,'Emissions factors'!$F$4:$CR$4,0))/1000,0)","v":0},{"$f":"IFERROR(AM88*INDEX('Emissions factors'!$F$5:$CR$10,MATCH('Data Input - Option 5'!$D124,'Emissions factors'!$C$5:$C$10,0),MATCH('Data Input - Option 5'!AM$7,'Emissions factors'!$F$4:$CR$4,0))/1000,0)","v":0},{"$f":"IFERROR(AN88*INDEX('Emissions factors'!$F$5:$CR$10,MATCH('Data Input - Option 5'!$D124,'Emissions factors'!$C$5:$C$10,0),MATCH('Data Input - Option 5'!AN$7,'Emissions factors'!$F$4:$CR$4,0))/1000,0)","v":0},{"$f":"IFERROR(AO88*INDEX('Emissions factors'!$F$5:$CR$10,MATCH('Data Input - Option 5'!$D124,'Emissions factors'!$C$5:$C$10,0),MATCH('Data Input - Option 5'!AO$7,'Emissions factors'!$F$4:$CR$4,0))/1000,0)","v":0},{"$f":"IFERROR(AP88*INDEX('Emissions factors'!$F$5:$CR$10,MATCH('Data Input - Option 5'!$D124,'Emissions factors'!$C$5:$C$10,0),MATCH('Data Input - Option 5'!AP$7,'Emissions factors'!$F$4:$CR$4,0))/1000,0)","v":0},{"$f":"IFERROR(AQ88*INDEX('Emissions factors'!$F$5:$CR$10,MATCH('Data Input - Option 5'!$D124,'Emissions factors'!$C$5:$C$10,0),MATCH('Data Input - Option 5'!AQ$7,'Emissions factors'!$F$4:$CR$4,0))/1000,0)","v":0},{"$f":"IFERROR(AR88*INDEX('Emissions factors'!$F$5:$CR$10,MATCH('Data Input - Option 5'!$D124,'Emissions factors'!$C$5:$C$10,0),MATCH('Data Input - Option 5'!AR$7,'Emissions factors'!$F$4:$CR$4,0))/1000,0)","v":0},{"$f":"IFERROR(AS88*INDEX('Emissions factors'!$F$5:$CR$10,MATCH('Data Input - Option 5'!$D124,'Emissions factors'!$C$5:$C$10,0),MATCH('Data Input - Option 5'!AS$7,'Emissions factors'!$F$4:$CR$4,0))/1000,0)","v":0},{"$f":"IFERROR(AT88*INDEX('Emissions factors'!$F$5:$CR$10,MATCH('Data Input - Option 5'!$D124,'Emissions factors'!$C$5:$C$10,0),MATCH('Data Input - Option 5'!AT$7,'Emissions factors'!$F$4:$CR$4,0))/1000,0)","v":0},{"$f":"IFERROR(AU88*INDEX('Emissions factors'!$F$5:$CR$10,MATCH('Data Input - Option 5'!$D124,'Emissions factors'!$C$5:$C$10,0),MATCH('Data Input - Option 5'!AU$7,'Emissions factors'!$F$4:$CR$4,0))/1000,0)","v":0},{"$f":"IFERROR(AV88*INDEX('Emissions factors'!$F$5:$CR$10,MATCH('Data Input - Option 5'!$D124,'Emissions factors'!$C$5:$C$10,0),MATCH('Data Input - Option 5'!AV$7,'Emissions factors'!$F$4:$CR$4,0))/1000,0)","v":0},{"$f":"IFERROR(AW88*INDEX('Emissions factors'!$F$5:$CR$10,MATCH('Data Input - Option 5'!$D124,'Emissions factors'!$C$5:$C$10,0),MATCH('Data Input - Option 5'!AW$7,'Emissions factors'!$F$4:$CR$4,0))/1000,0)","v":0},{"$f":"IFERROR(AX88*INDEX('Emissions factors'!$F$5:$CR$10,MATCH('Data Input - Option 5'!$D124,'Emissions factors'!$C$5:$C$10,0),MATCH('Data Input - Option 5'!AX$7,'Emissions factors'!$F$4:$CR$4,0))/1000,0)","v":0},{"$f":"IFERROR(AY88*INDEX('Emissions factors'!$F$5:$CR$10,MATCH('Data Input - Option 5'!$D124,'Emissions factors'!$C$5:$C$10,0),MATCH('Data Input - Option 5'!AY$7,'Emissions factors'!$F$4:$CR$4,0))/1000,0)","v":0},{"$f":"IFERROR(AZ88*INDEX('Emissions factors'!$F$5:$CR$10,MATCH('Data Input - Option 5'!$D124,'Emissions factors'!$C$5:$C$10,0),MATCH('Data Input - Option 5'!AZ$7,'Emissions factors'!$F$4:$CR$4,0))/1000,0)","v":0},{"$f":"IFERROR(BA88*INDEX('Emissions factors'!$F$5:$CR$10,MATCH('Data Input - Option 5'!$D124,'Emissions factors'!$C$5:$C$10,0),MATCH('Data Input - Option 5'!BA$7,'Emissions factors'!$F$4:$CR$4,0))/1000,0)","v":0},{"$f":"IFERROR(BB88*INDEX('Emissions factors'!$F$5:$CR$10,MATCH('Data Input - Option 5'!$D124,'Emissions factors'!$C$5:$C$10,0),MATCH('Data Input - Option 5'!BB$7,'Emissions factors'!$F$4:$CR$4,0))/1000,0)","v":0},{"$f":"IFERROR(BC88*INDEX('Emissions factors'!$F$5:$CR$10,MATCH('Data Input - Option 5'!$D124,'Emissions factors'!$C$5:$C$10,0),MATCH('Data Input - Option 5'!BC$7,'Emissions factors'!$F$4:$CR$4,0))/1000,0)","v":0},{"$f":"IFERROR(BD88*INDEX('Emissions factors'!$F$5:$CR$10,MATCH('Data Input - Option 5'!$D124,'Emissions factors'!$C$5:$C$10,0),MATCH('Data Input - Option 5'!BD$7,'Emissions factors'!$F$4:$CR$4,0))/1000,0)","v":0},{"$f":"IFERROR(BE88*INDEX('Emissions factors'!$F$5:$CR$10,MATCH('Data Input - Option 5'!$D124,'Emissions factors'!$C$5:$C$10,0),MATCH('Data Input - Option 5'!BE$7,'Emissions factors'!$F$4:$CR$4,0))/1000,0)","v":0},{"$f":"IFERROR(BF88*INDEX('Emissions factors'!$F$5:$CR$10,MATCH('Data Input - Option 5'!$D124,'Emissions factors'!$C$5:$C$10,0),MATCH('Data Input - Option 5'!BF$7,'Emissions factors'!$F$4:$CR$4,0))/1000,0)","v":0},{"$f":"IFERROR(BG88*INDEX('Emissions factors'!$F$5:$CR$10,MATCH('Data Input - Option 5'!$D124,'Emissions factors'!$C$5:$C$10,0),MATCH('Data Input - Option 5'!BG$7,'Emissions factors'!$F$4:$CR$4,0))/1000,0)","v":0},{"$f":"IFERROR(BH88*INDEX('Emissions factors'!$F$5:$CR$10,MATCH('Data Input - Option 5'!$D124,'Emissions factors'!$C$5:$C$10,0),MATCH('Data Input - Option 5'!BH$7,'Emissions factors'!$F$4:$CR$4,0))/1000,0)","v":0},{"$f":"IFERROR(BI88*INDEX('Emissions factors'!$F$5:$CR$10,MATCH('Data Input - Option 5'!$D124,'Emissions factors'!$C$5:$C$10,0),MATCH('Data Input - Option 5'!BI$7,'Emissions factors'!$F$4:$CR$4,0))/1000,0)","v":0},{"$f":"IFERROR(BJ88*INDEX('Emissions factors'!$F$5:$CR$10,MATCH('Data Input - Option 5'!$D124,'Emissions factors'!$C$5:$C$10,0),MATCH('Data Input - Option 5'!BJ$7,'Emissions factors'!$F$4:$CR$4,0))/1000,0)","v":0},{"$f":"IFERROR(BK88*INDEX('Emissions factors'!$F$5:$CR$10,MATCH('Data Input - Option 5'!$D124,'Emissions factors'!$C$5:$C$10,0),MATCH('Data Input - Option 5'!BK$7,'Emissions factors'!$F$4:$CR$4,0))/1000,0)","v":0},{"$f":"IFERROR(BL88*INDEX('Emissions factors'!$F$5:$CR$10,MATCH('Data Input - Option 5'!$D124,'Emissions factors'!$C$5:$C$10,0),MATCH('Data Input - Option 5'!BL$7,'Emissions factors'!$F$4:$CR$4,0))/1000,0)","v":0},{"$f":"IFERROR(BM88*INDEX('Emissions factors'!$F$5:$CR$10,MATCH('Data Input - Option 5'!$D124,'Emissions factors'!$C$5:$C$10,0),MATCH('Data Input - Option 5'!BM$7,'Emissions factors'!$F$4:$CR$4,0))/1000,0)","v":0},{"$f":"IFERROR(BN88*INDEX('Emissions factors'!$F$5:$CR$10,MATCH('Data Input - Option 5'!$D124,'Emissions factors'!$C$5:$C$10,0),MATCH('Data Input - Option 5'!BN$7,'Emissions factors'!$F$4:$CR$4,0))/1000,0)","v":0},{"$f":"IFERROR(BO88*INDEX('Emissions factors'!$F$5:$CR$10,MATCH('Data Input - Option 5'!$D124,'Emissions factors'!$C$5:$C$10,0),MATCH('Data Input - Option 5'!BO$7,'Emissions factors'!$F$4:$CR$4,0))/1000,0)","v":0},{"$f":"IFERROR(BP88*INDEX('Emissions factors'!$F$5:$CR$10,MATCH('Data Input - Option 5'!$D124,'Emissions factors'!$C$5:$C$10,0),MATCH('Data Input - Option 5'!BP$7,'Emissions factors'!$F$4:$CR$4,0))/1000,0)","v":0},{"$f":"IFERROR(BQ88*INDEX('Emissions factors'!$F$5:$CR$10,MATCH('Data Input - Option 5'!$D124,'Emissions factors'!$C$5:$C$10,0),MATCH('Data Input - Option 5'!BQ$7,'Emissions factors'!$F$4:$CR$4,0))/1000,0)","v":0},{"$f":"IFERROR(BR88*INDEX('Emissions factors'!$F$5:$CR$10,MATCH('Data Input - Option 5'!$D124,'Emissions factors'!$C$5:$C$10,0),MATCH('Data Input - Option 5'!BR$7,'Emissions factors'!$F$4:$CR$4,0))/1000,0)","v":0},{"$f":"IFERROR(BS88*INDEX('Emissions factors'!$F$5:$CR$10,MATCH('Data Input - Option 5'!$D124,'Emissions factors'!$C$5:$C$10,0),MATCH('Data Input - Option 5'!BS$7,'Emissions factors'!$F$4:$CR$4,0))/1000,0)","v":0},{"$f":"IFERROR(BT88*INDEX('Emissions factors'!$F$5:$CR$10,MATCH('Data Input - Option 5'!$D124,'Emissions factors'!$C$5:$C$10,0),MATCH('Data Input - Option 5'!BT$7,'Emissions factors'!$F$4:$CR$4,0))/1000,0)","v":0},{"$f":"IFERROR(BU88*INDEX('Emissions factors'!$F$5:$CR$10,MATCH('Data Input - Option 5'!$D124,'Emissions factors'!$C$5:$C$10,0),MATCH('Data Input - Option 5'!BU$7,'Emissions factors'!$F$4:$CR$4,0))/1000,0)","v":0},{"$f":"IFERROR(BV88*INDEX('Emissions factors'!$F$5:$CR$10,MATCH('Data Input - Option 5'!$D124,'Emissions factors'!$C$5:$C$10,0),MATCH('Data Input - Option 5'!BV$7,'Emissions factors'!$F$4:$CR$4,0))/1000,0)","v":0},{"$f":"IFERROR(BW88*INDEX('Emissions factors'!$F$5:$CR$10,MATCH('Data Input - Option 5'!$D124,'Emissions factors'!$C$5:$C$10,0),MATCH('Data Input - Option 5'!BW$7,'Emissions factors'!$F$4:$CR$4,0))/1000,0)","v":0},{"$f":"IFERROR(BX88*INDEX('Emissions factors'!$F$5:$CR$10,MATCH('Data Input - Option 5'!$D124,'Emissions factors'!$C$5:$C$10,0),MATCH('Data Input - Option 5'!BX$7,'Emissions factors'!$F$4:$CR$4,0))/1000,0)","v":0},{"$f":"IFERROR(BY88*INDEX('Emissions factors'!$F$5:$CR$10,MATCH('Data Input - Option 5'!$D124,'Emissions factors'!$C$5:$C$10,0),MATCH('Data Input - Option 5'!BY$7,'Emissions factors'!$F$4:$CR$4,0))/1000,0)","v":0},{"$f":"IFERROR(BZ88*INDEX('Emissions factors'!$F$5:$CR$10,MATCH('Data Input - Option 5'!$D124,'Emissions factors'!$C$5:$C$10,0),MATCH('Data Input - Option 5'!BZ$7,'Emissions factors'!$F$4:$CR$4,0))/1000,0)","v":0},{"$f":"IFERROR(CA88*INDEX('Emissions factors'!$F$5:$CR$10,MATCH('Data Input - Option 5'!$D124,'Emissions factors'!$C$5:$C$10,0),MATCH('Data Input - Option 5'!CA$7,'Emissions factors'!$F$4:$CR$4,0))/1000,0)","v":0},{"$f":"IFERROR(CB88*INDEX('Emissions factors'!$F$5:$CR$10,MATCH('Data Input - Option 5'!$D124,'Emissions factors'!$C$5:$C$10,0),MATCH('Data Input - Option 5'!CB$7,'Emissions factors'!$F$4:$CR$4,0))/1000,0)","v":0},{"$f":"IFERROR(CC88*INDEX('Emissions factors'!$F$5:$CR$10,MATCH('Data Input - Option 5'!$D124,'Emissions factors'!$C$5:$C$10,0),MATCH('Data Input - Option 5'!CC$7,'Emissions factors'!$F$4:$CR$4,0))/1000,0)","v":0},{"$f":"IFERROR(CD88*INDEX('Emissions factors'!$F$5:$CR$10,MATCH('Data Input - Option 5'!$D124,'Emissions factors'!$C$5:$C$10,0),MATCH('Data Input - Option 5'!CD$7,'Emissions factors'!$F$4:$CR$4,0))/1000,0)","v":0},{"$f":"IFERROR(CE88*INDEX('Emissions factors'!$F$5:$CR$10,MATCH('Data Input - Option 5'!$D124,'Emissions factors'!$C$5:$C$10,0),MATCH('Data Input - Option 5'!CE$7,'Emissions factors'!$F$4:$CR$4,0))/1000,0)","v":0},{"$f":"IFERROR(CF88*INDEX('Emissions factors'!$F$5:$CR$10,MATCH('Data Input - Option 5'!$D124,'Emissions factors'!$C$5:$C$10,0),MATCH('Data Input - Option 5'!CF$7,'Emissions factors'!$F$4:$CR$4,0))/1000,0)","v":0},{"$f":"IFERROR(CG88*INDEX('Emissions factors'!$F$5:$CR$10,MATCH('Data Input - Option 5'!$D124,'Emissions factors'!$C$5:$C$10,0),MATCH('Data Input - Option 5'!CG$7,'Emissions factors'!$F$4:$CR$4,0))/1000,0)","v":0},{"$f":"IFERROR(CH88*INDEX('Emissions factors'!$F$5:$CR$10,MATCH('Data Input - Option 5'!$D124,'Emissions factors'!$C$5:$C$10,0),MATCH('Data Input - Option 5'!CH$7,'Emissions factors'!$F$4:$CR$4,0))/1000,0)","v":0},{"$f":"IFERROR(CI88*INDEX('Emissions factors'!$F$5:$CR$10,MATCH('Data Input - Option 5'!$D124,'Emissions factors'!$C$5:$C$10,0),MATCH('Data Input - Option 5'!CI$7,'Emissions factors'!$F$4:$CR$4,0))/1000,0)","v":0},{"$f":"IFERROR(CJ88*INDEX('Emissions factors'!$F$5:$CR$10,MATCH('Data Input - Option 5'!$D124,'Emissions factors'!$C$5:$C$10,0),MATCH('Data Input - Option 5'!CJ$7,'Emissions factors'!$F$4:$CR$4,0))/1000,0)","v":0},{"$f":"IFERROR(CK88*INDEX('Emissions factors'!$F$5:$CR$10,MATCH('Data Input - Option 5'!$D124,'Emissions factors'!$C$5:$C$10,0),MATCH('Data Input - Option 5'!CK$7,'Emissions factors'!$F$4:$CR$4,0))/1000,0)","v":0},{"$f":"IFERROR(CL88*INDEX('Emissions factors'!$F$5:$CR$10,MATCH('Data Input - Option 5'!$D124,'Emissions factors'!$C$5:$C$10,0),MATCH('Data Input - Option 5'!CL$7,'Emissions factors'!$F$4:$CR$4,0))/1000,0)","v":0},{"$f":"IFERROR(CM88*INDEX('Emissions factors'!$F$5:$CR$10,MATCH('Data Input - Option 5'!$D124,'Emissions factors'!$C$5:$C$10,0),MATCH('Data Input - Option 5'!CM$7,'Emissions factors'!$F$4:$CR$4,0))/1000,0)","v":0},{"$f":"IFERROR(CN88*INDEX('Emissions factors'!$F$5:$CR$10,MATCH('Data Input - Option 5'!$D124,'Emissions factors'!$C$5:$C$10,0),MATCH('Data Input - Option 5'!CN$7,'Emissions factors'!$F$4:$CR$4,0))/1000,0)","v":0},{"$f":"IFERROR(CO88*INDEX('Emissions factors'!$F$5:$CR$10,MATCH('Data Input - Option 5'!$D124,'Emissions factors'!$C$5:$C$10,0),MATCH('Data Input - Option 5'!CO$7,'Emissions factors'!$F$4:$CR$4,0))/1000,0)","v":0},{"$f":"IFERROR(CP88*INDEX('Emissions factors'!$F$5:$CR$10,MATCH('Data Input - Option 5'!$D124,'Emissions factors'!$C$5:$C$10,0),MATCH('Data Input - Option 5'!CP$7,'Emissions factors'!$F$4:$CR$4,0))/1000,0)","v":0},{"$f":"IFERROR(CQ88*INDEX('Emissions factors'!$F$5:$CR$10,MATCH('Data Input - Option 5'!$D124,'Emissions factors'!$C$5:$C$10,0),MATCH('Data Input - Option 5'!CQ$7,'Emissions factors'!$F$4:$CR$4,0))/1000,0)","v":0},{"$f":"IFERROR(CR88*INDEX('Emissions factors'!$F$5:$CR$10,MATCH('Data Input - Option 5'!$D124,'Emissions factors'!$C$5:$C$10,0),MATCH('Data Input - Option 5'!CR$7,'Emissions factors'!$F$4:$CR$4,0))/1000,0)","v":0},{"$f":"IFERROR(CS88*INDEX('Emissions factors'!$F$5:$CR$10,MATCH('Data Input - Option 5'!$D124,'Emissions factors'!$C$5:$C$10,0),MATCH('Data Input - Option 5'!CS$7,'Emissions factors'!$F$4:$CR$4,0))/1000,0)","v":0},{"$f":"IFERROR(CT88*INDEX('Emissions factors'!$F$5:$CR$10,MATCH('Data Input - Option 5'!$D124,'Emissions factors'!$C$5:$C$10,0),MATCH('Data Input - Option 5'!CT$7,'Emissions factors'!$F$4:$CR$4,0))/1000,0)","v":0},{"$f":"IFERROR(CU88*INDEX('Emissions factors'!$F$5:$CR$10,MATCH('Data Input - Option 5'!$D124,'Emissions factors'!$C$5:$C$10,0),MATCH('Data Input - Option 5'!CU$7,'Emissions factors'!$F$4:$CR$4,0))/1000,0)","v":0},{"$f":"IFERROR(CV88*INDEX('Emissions factors'!$F$5:$CR$10,MATCH('Data Input - Option 5'!$D124,'Emissions factors'!$C$5:$C$10,0),MATCH('Data Input - Option 5'!CV$7,'Emissions factors'!$F$4:$CR$4,0))/1000,0)","v":0},{"$f":"IFERROR(CW88*INDEX('Emissions factors'!$F$5:$CR$10,MATCH('Data Input - Option 5'!$D124,'Emissions factors'!$C$5:$C$10,0),MATCH('Data Input - Option 5'!CW$7,'Emissions factors'!$F$4:$CR$4,0))/1000,0)","v":0},{"$f":"IFERROR(CX88*INDEX('Emissions factors'!$F$5:$CR$10,MATCH('Data Input - Option 5'!$D124,'Emissions factors'!$C$5:$C$10,0),MATCH('Data Input - Option 5'!CX$7,'Emissions factors'!$F$4:$CR$4,0))/1000,0)","v":0},{"$f":"IFERROR(CY88*INDEX('Emissions factors'!$F$5:$CR$10,MATCH('Data Input - Option 5'!$D124,'Emissions factors'!$C$5:$C$10,0),MATCH('Data Input - Option 5'!CY$7,'Emissions factors'!$F$4:$CR$4,0))/1000,0)","v":0},{"$f":"IFERROR(CZ88*INDEX('Emissions factors'!$F$5:$CR$10,MATCH('Data Input - Option 5'!$D124,'Emissions factors'!$C$5:$C$10,0),MATCH('Data Input - Option 5'!CZ$7,'Emissions factors'!$F$4:$CR$4,0))/1000,0)","v":0},{"$f":"IFERROR(DA88*INDEX('Emissions factors'!$F$5:$CR$10,MATCH('Data Input - Option 5'!$D124,'Emissions factors'!$C$5:$C$10,0),MATCH('Data Input - Option 5'!DA$7,'Emissions factors'!$F$4:$CR$4,0))/1000,0)","v":0},{"$f":"IFERROR(DB88*INDEX('Emissions factors'!$F$5:$CR$10,MATCH('Data Input - Option 5'!$D124,'Emissions factors'!$C$5:$C$10,0),MATCH('Data Input - Option 5'!DB$7,'Emissions factors'!$F$4:$CR$4,0))/1000,0)","v":0},{"$f":"IFERROR(DC88*INDEX('Emissions factors'!$F$5:$CR$10,MATCH('Data Input - Option 5'!$D124,'Emissions factors'!$C$5:$C$10,0),MATCH('Data Input - Option 5'!DC$7,'Emissions factors'!$F$4:$CR$4,0))/1000,0)","v":0}]
[null,null,null,"Road - Diesel","tCO2e","(Auto calculated value)",null,{"$f":"IFERROR(H89*INDEX('Emissions factors'!$F$5:$CR$10,MATCH('Data Input - Option 5'!$D125,'Emissions factors'!$C$5:$C$10,0),MATCH('Data Input - Option 5'!H$7,'Emissions factors'!$F$4:$CR$4,0))/1000,0)","v":0},{"$f":"IFERROR(I89*INDEX('Emissions factors'!$F$5:$CR$10,MATCH('Data Input - Option 5'!$D125,'Emissions factors'!$C$5:$C$10,0),MATCH('Data Input - Option 5'!I$7,'Emissions factors'!$F$4:$CR$4,0))/1000,0)","v":0},{"$f":"IFERROR(J89*INDEX('Emissions factors'!$F$5:$CR$10,MATCH('Data Input - Option 5'!$D125,'Emissions factors'!$C$5:$C$10,0),MATCH('Data Input - Option 5'!J$7,'Emissions factors'!$F$4:$CR$4,0))/1000,0)","v":0},{"$f":"IFERROR(K89*INDEX('Emissions factors'!$F$5:$CR$10,MATCH('Data Input - Option 5'!$D125,'Emissions factors'!$C$5:$C$10,0),MATCH('Data Input - Option 5'!K$7,'Emissions factors'!$F$4:$CR$4,0))/1000,0)","v":0},{"$f":"IFERROR(L89*INDEX('Emissions factors'!$F$5:$CR$10,MATCH('Data Input - Option 5'!$D125,'Emissions factors'!$C$5:$C$10,0),MATCH('Data Input - Option 5'!L$7,'Emissions factors'!$F$4:$CR$4,0))/1000,0)","v":0},{"$f":"IFERROR(M89*INDEX('Emissions factors'!$F$5:$CR$10,MATCH('Data Input - Option 5'!$D125,'Emissions factors'!$C$5:$C$10,0),MATCH('Data Input - Option 5'!M$7,'Emissions factors'!$F$4:$CR$4,0))/1000,0)","v":0},{"$f":"IFERROR(N89*INDEX('Emissions factors'!$F$5:$CR$10,MATCH('Data Input - Option 5'!$D125,'Emissions factors'!$C$5:$C$10,0),MATCH('Data Input - Option 5'!N$7,'Emissions factors'!$F$4:$CR$4,0))/1000,0)","v":0},{"$f":"IFERROR(O89*INDEX('Emissions factors'!$F$5:$CR$10,MATCH('Data Input - Option 5'!$D125,'Emissions factors'!$C$5:$C$10,0),MATCH('Data Input - Option 5'!O$7,'Emissions factors'!$F$4:$CR$4,0))/1000,0)","v":0},{"$f":"IFERROR(P89*INDEX('Emissions factors'!$F$5:$CR$10,MATCH('Data Input - Option 5'!$D125,'Emissions factors'!$C$5:$C$10,0),MATCH('Data Input - Option 5'!P$7,'Emissions factors'!$F$4:$CR$4,0))/1000,0)","v":0},{"$f":"IFERROR(Q89*INDEX('Emissions factors'!$F$5:$CR$10,MATCH('Data Input - Option 5'!$D125,'Emissions factors'!$C$5:$C$10,0),MATCH('Data Input - Option 5'!Q$7,'Emissions factors'!$F$4:$CR$4,0))/1000,0)","v":0},{"$f":"IFERROR(R89*INDEX('Emissions factors'!$F$5:$CR$10,MATCH('Data Input - Option 5'!$D125,'Emissions factors'!$C$5:$C$10,0),MATCH('Data Input - Option 5'!R$7,'Emissions factors'!$F$4:$CR$4,0))/1000,0)","v":0},{"$f":"IFERROR(S89*INDEX('Emissions factors'!$F$5:$CR$10,MATCH('Data Input - Option 5'!$D125,'Emissions factors'!$C$5:$C$10,0),MATCH('Data Input - Option 5'!S$7,'Emissions factors'!$F$4:$CR$4,0))/1000,0)","v":0},{"$f":"IFERROR(T89*INDEX('Emissions factors'!$F$5:$CR$10,MATCH('Data Input - Option 5'!$D125,'Emissions factors'!$C$5:$C$10,0),MATCH('Data Input - Option 5'!T$7,'Emissions factors'!$F$4:$CR$4,0))/1000,0)","v":0},{"$f":"IFERROR(U89*INDEX('Emissions factors'!$F$5:$CR$10,MATCH('Data Input - Option 5'!$D125,'Emissions factors'!$C$5:$C$10,0),MATCH('Data Input - Option 5'!U$7,'Emissions factors'!$F$4:$CR$4,0))/1000,0)","v":0},{"$f":"IFERROR(V89*INDEX('Emissions factors'!$F$5:$CR$10,MATCH('Data Input - Option 5'!$D125,'Emissions factors'!$C$5:$C$10,0),MATCH('Data Input - Option 5'!V$7,'Emissions factors'!$F$4:$CR$4,0))/1000,0)","v":0},{"$f":"IFERROR(W89*INDEX('Emissions factors'!$F$5:$CR$10,MATCH('Data Input - Option 5'!$D125,'Emissions factors'!$C$5:$C$10,0),MATCH('Data Input - Option 5'!W$7,'Emissions factors'!$F$4:$CR$4,0))/1000,0)","v":0},{"$f":"IFERROR(X89*INDEX('Emissions factors'!$F$5:$CR$10,MATCH('Data Input - Option 5'!$D125,'Emissions factors'!$C$5:$C$10,0),MATCH('Data Input - Option 5'!X$7,'Emissions factors'!$F$4:$CR$4,0))/1000,0)","v":0},{"$f":"IFERROR(Y89*INDEX('Emissions factors'!$F$5:$CR$10,MATCH('Data Input - Option 5'!$D125,'Emissions factors'!$C$5:$C$10,0),MATCH('Data Input - Option 5'!Y$7,'Emissions factors'!$F$4:$CR$4,0))/1000,0)","v":0},{"$f":"IFERROR(Z89*INDEX('Emissions factors'!$F$5:$CR$10,MATCH('Data Input - Option 5'!$D125,'Emissions factors'!$C$5:$C$10,0),MATCH('Data Input - Option 5'!Z$7,'Emissions factors'!$F$4:$CR$4,0))/1000,0)","v":0},{"$f":"IFERROR(AA89*INDEX('Emissions factors'!$F$5:$CR$10,MATCH('Data Input - Option 5'!$D125,'Emissions factors'!$C$5:$C$10,0),MATCH('Data Input - Option 5'!AA$7,'Emissions factors'!$F$4:$CR$4,0))/1000,0)","v":0},{"$f":"IFERROR(AB89*INDEX('Emissions factors'!$F$5:$CR$10,MATCH('Data Input - Option 5'!$D125,'Emissions factors'!$C$5:$C$10,0),MATCH('Data Input - Option 5'!AB$7,'Emissions factors'!$F$4:$CR$4,0))/1000,0)","v":0},{"$f":"IFERROR(AC89*INDEX('Emissions factors'!$F$5:$CR$10,MATCH('Data Input - Option 5'!$D125,'Emissions factors'!$C$5:$C$10,0),MATCH('Data Input - Option 5'!AC$7,'Emissions factors'!$F$4:$CR$4,0))/1000,0)","v":0},{"$f":"IFERROR(AD89*INDEX('Emissions factors'!$F$5:$CR$10,MATCH('Data Input - Option 5'!$D125,'Emissions factors'!$C$5:$C$10,0),MATCH('Data Input - Option 5'!AD$7,'Emissions factors'!$F$4:$CR$4,0))/1000,0)","v":0},{"$f":"IFERROR(AE89*INDEX('Emissions factors'!$F$5:$CR$10,MATCH('Data Input - Option 5'!$D125,'Emissions factors'!$C$5:$C$10,0),MATCH('Data Input - Option 5'!AE$7,'Emissions factors'!$F$4:$CR$4,0))/1000,0)","v":0},{"$f":"IFERROR(AF89*INDEX('Emissions factors'!$F$5:$CR$10,MATCH('Data Input - Option 5'!$D125,'Emissions factors'!$C$5:$C$10,0),MATCH('Data Input - Option 5'!AF$7,'Emissions factors'!$F$4:$CR$4,0))/1000,0)","v":0},{"$f":"IFERROR(AG89*INDEX('Emissions factors'!$F$5:$CR$10,MATCH('Data Input - Option 5'!$D125,'Emissions factors'!$C$5:$C$10,0),MATCH('Data Input - Option 5'!AG$7,'Emissions factors'!$F$4:$CR$4,0))/1000,0)","v":0},{"$f":"IFERROR(AH89*INDEX('Emissions factors'!$F$5:$CR$10,MATCH('Data Input - Option 5'!$D125,'Emissions factors'!$C$5:$C$10,0),MATCH('Data Input - Option 5'!AH$7,'Emissions factors'!$F$4:$CR$4,0))/1000,0)","v":0},{"$f":"IFERROR(AI89*INDEX('Emissions factors'!$F$5:$CR$10,MATCH('Data Input - Option 5'!$D125,'Emissions factors'!$C$5:$C$10,0),MATCH('Data Input - Option 5'!AI$7,'Emissions factors'!$F$4:$CR$4,0))/1000,0)","v":0},{"$f":"IFERROR(AJ89*INDEX('Emissions factors'!$F$5:$CR$10,MATCH('Data Input - Option 5'!$D125,'Emissions factors'!$C$5:$C$10,0),MATCH('Data Input - Option 5'!AJ$7,'Emissions factors'!$F$4:$CR$4,0))/1000,0)","v":0},{"$f":"IFERROR(AK89*INDEX('Emissions factors'!$F$5:$CR$10,MATCH('Data Input - Option 5'!$D125,'Emissions factors'!$C$5:$C$10,0),MATCH('Data Input - Option 5'!AK$7,'Emissions factors'!$F$4:$CR$4,0))/1000,0)","v":0},{"$f":"IFERROR(AL89*INDEX('Emissions factors'!$F$5:$CR$10,MATCH('Data Input - Option 5'!$D125,'Emissions factors'!$C$5:$C$10,0),MATCH('Data Input - Option 5'!AL$7,'Emissions factors'!$F$4:$CR$4,0))/1000,0)","v":0},{"$f":"IFERROR(AM89*INDEX('Emissions factors'!$F$5:$CR$10,MATCH('Data Input - Option 5'!$D125,'Emissions factors'!$C$5:$C$10,0),MATCH('Data Input - Option 5'!AM$7,'Emissions factors'!$F$4:$CR$4,0))/1000,0)","v":0},{"$f":"IFERROR(AN89*INDEX('Emissions factors'!$F$5:$CR$10,MATCH('Data Input - Option 5'!$D125,'Emissions factors'!$C$5:$C$10,0),MATCH('Data Input - Option 5'!AN$7,'Emissions factors'!$F$4:$CR$4,0))/1000,0)","v":0},{"$f":"IFERROR(AO89*INDEX('Emissions factors'!$F$5:$CR$10,MATCH('Data Input - Option 5'!$D125,'Emissions factors'!$C$5:$C$10,0),MATCH('Data Input - Option 5'!AO$7,'Emissions factors'!$F$4:$CR$4,0))/1000,0)","v":0},{"$f":"IFERROR(AP89*INDEX('Emissions factors'!$F$5:$CR$10,MATCH('Data Input - Option 5'!$D125,'Emissions factors'!$C$5:$C$10,0),MATCH('Data Input - Option 5'!AP$7,'Emissions factors'!$F$4:$CR$4,0))/1000,0)","v":0},{"$f":"IFERROR(AQ89*INDEX('Emissions factors'!$F$5:$CR$10,MATCH('Data Input - Option 5'!$D125,'Emissions factors'!$C$5:$C$10,0),MATCH('Data Input - Option 5'!AQ$7,'Emissions factors'!$F$4:$CR$4,0))/1000,0)","v":0},{"$f":"IFERROR(AR89*INDEX('Emissions factors'!$F$5:$CR$10,MATCH('Data Input - Option 5'!$D125,'Emissions factors'!$C$5:$C$10,0),MATCH('Data Input - Option 5'!AR$7,'Emissions factors'!$F$4:$CR$4,0))/1000,0)","v":0},{"$f":"IFERROR(AS89*INDEX('Emissions factors'!$F$5:$CR$10,MATCH('Data Input - Option 5'!$D125,'Emissions factors'!$C$5:$C$10,0),MATCH('Data Input - Option 5'!AS$7,'Emissions factors'!$F$4:$CR$4,0))/1000,0)","v":0},{"$f":"IFERROR(AT89*INDEX('Emissions factors'!$F$5:$CR$10,MATCH('Data Input - Option 5'!$D125,'Emissions factors'!$C$5:$C$10,0),MATCH('Data Input - Option 5'!AT$7,'Emissions factors'!$F$4:$CR$4,0))/1000,0)","v":0},{"$f":"IFERROR(AU89*INDEX('Emissions factors'!$F$5:$CR$10,MATCH('Data Input - Option 5'!$D125,'Emissions factors'!$C$5:$C$10,0),MATCH('Data Input - Option 5'!AU$7,'Emissions factors'!$F$4:$CR$4,0))/1000,0)","v":0},{"$f":"IFERROR(AV89*INDEX('Emissions factors'!$F$5:$CR$10,MATCH('Data Input - Option 5'!$D125,'Emissions factors'!$C$5:$C$10,0),MATCH('Data Input - Option 5'!AV$7,'Emissions factors'!$F$4:$CR$4,0))/1000,0)","v":0},{"$f":"IFERROR(AW89*INDEX('Emissions factors'!$F$5:$CR$10,MATCH('Data Input - Option 5'!$D125,'Emissions factors'!$C$5:$C$10,0),MATCH('Data Input - Option 5'!AW$7,'Emissions factors'!$F$4:$CR$4,0))/1000,0)","v":0},{"$f":"IFERROR(AX89*INDEX('Emissions factors'!$F$5:$CR$10,MATCH('Data Input - Option 5'!$D125,'Emissions factors'!$C$5:$C$10,0),MATCH('Data Input - Option 5'!AX$7,'Emissions factors'!$F$4:$CR$4,0))/1000,0)","v":0},{"$f":"IFERROR(AY89*INDEX('Emissions factors'!$F$5:$CR$10,MATCH('Data Input - Option 5'!$D125,'Emissions factors'!$C$5:$C$10,0),MATCH('Data Input - Option 5'!AY$7,'Emissions factors'!$F$4:$CR$4,0))/1000,0)","v":0},{"$f":"IFERROR(AZ89*INDEX('Emissions factors'!$F$5:$CR$10,MATCH('Data Input - Option 5'!$D125,'Emissions factors'!$C$5:$C$10,0),MATCH('Data Input - Option 5'!AZ$7,'Emissions factors'!$F$4:$CR$4,0))/1000,0)","v":0},{"$f":"IFERROR(BA89*INDEX('Emissions factors'!$F$5:$CR$10,MATCH('Data Input - Option 5'!$D125,'Emissions factors'!$C$5:$C$10,0),MATCH('Data Input - Option 5'!BA$7,'Emissions factors'!$F$4:$CR$4,0))/1000,0)","v":0},{"$f":"IFERROR(BB89*INDEX('Emissions factors'!$F$5:$CR$10,MATCH('Data Input - Option 5'!$D125,'Emissions factors'!$C$5:$C$10,0),MATCH('Data Input - Option 5'!BB$7,'Emissions factors'!$F$4:$CR$4,0))/1000,0)","v":0},{"$f":"IFERROR(BC89*INDEX('Emissions factors'!$F$5:$CR$10,MATCH('Data Input - Option 5'!$D125,'Emissions factors'!$C$5:$C$10,0),MATCH('Data Input - Option 5'!BC$7,'Emissions factors'!$F$4:$CR$4,0))/1000,0)","v":0},{"$f":"IFERROR(BD89*INDEX('Emissions factors'!$F$5:$CR$10,MATCH('Data Input - Option 5'!$D125,'Emissions factors'!$C$5:$C$10,0),MATCH('Data Input - Option 5'!BD$7,'Emissions factors'!$F$4:$CR$4,0))/1000,0)","v":0},{"$f":"IFERROR(BE89*INDEX('Emissions factors'!$F$5:$CR$10,MATCH('Data Input - Option 5'!$D125,'Emissions factors'!$C$5:$C$10,0),MATCH('Data Input - Option 5'!BE$7,'Emissions factors'!$F$4:$CR$4,0))/1000,0)","v":0},{"$f":"IFERROR(BF89*INDEX('Emissions factors'!$F$5:$CR$10,MATCH('Data Input - Option 5'!$D125,'Emissions factors'!$C$5:$C$10,0),MATCH('Data Input - Option 5'!BF$7,'Emissions factors'!$F$4:$CR$4,0))/1000,0)","v":0},{"$f":"IFERROR(BG89*INDEX('Emissions factors'!$F$5:$CR$10,MATCH('Data Input - Option 5'!$D125,'Emissions factors'!$C$5:$C$10,0),MATCH('Data Input - Option 5'!BG$7,'Emissions factors'!$F$4:$CR$4,0))/1000,0)","v":0},{"$f":"IFERROR(BH89*INDEX('Emissions factors'!$F$5:$CR$10,MATCH('Data Input - Option 5'!$D125,'Emissions factors'!$C$5:$C$10,0),MATCH('Data Input - Option 5'!BH$7,'Emissions factors'!$F$4:$CR$4,0))/1000,0)","v":0},{"$f":"IFERROR(BI89*INDEX('Emissions factors'!$F$5:$CR$10,MATCH('Data Input - Option 5'!$D125,'Emissions factors'!$C$5:$C$10,0),MATCH('Data Input - Option 5'!BI$7,'Emissions factors'!$F$4:$CR$4,0))/1000,0)","v":0},{"$f":"IFERROR(BJ89*INDEX('Emissions factors'!$F$5:$CR$10,MATCH('Data Input - Option 5'!$D125,'Emissions factors'!$C$5:$C$10,0),MATCH('Data Input - Option 5'!BJ$7,'Emissions factors'!$F$4:$CR$4,0))/1000,0)","v":0},{"$f":"IFERROR(BK89*INDEX('Emissions factors'!$F$5:$CR$10,MATCH('Data Input - Option 5'!$D125,'Emissions factors'!$C$5:$C$10,0),MATCH('Data Input - Option 5'!BK$7,'Emissions factors'!$F$4:$CR$4,0))/1000,0)","v":0},{"$f":"IFERROR(BL89*INDEX('Emissions factors'!$F$5:$CR$10,MATCH('Data Input - Option 5'!$D125,'Emissions factors'!$C$5:$C$10,0),MATCH('Data Input - Option 5'!BL$7,'Emissions factors'!$F$4:$CR$4,0))/1000,0)","v":0},{"$f":"IFERROR(BM89*INDEX('Emissions factors'!$F$5:$CR$10,MATCH('Data Input - Option 5'!$D125,'Emissions factors'!$C$5:$C$10,0),MATCH('Data Input - Option 5'!BM$7,'Emissions factors'!$F$4:$CR$4,0))/1000,0)","v":0},{"$f":"IFERROR(BN89*INDEX('Emissions factors'!$F$5:$CR$10,MATCH('Data Input - Option 5'!$D125,'Emissions factors'!$C$5:$C$10,0),MATCH('Data Input - Option 5'!BN$7,'Emissions factors'!$F$4:$CR$4,0))/1000,0)","v":0},{"$f":"IFERROR(BO89*INDEX('Emissions factors'!$F$5:$CR$10,MATCH('Data Input - Option 5'!$D125,'Emissions factors'!$C$5:$C$10,0),MATCH('Data Input - Option 5'!BO$7,'Emissions factors'!$F$4:$CR$4,0))/1000,0)","v":0},{"$f":"IFERROR(BP89*INDEX('Emissions factors'!$F$5:$CR$10,MATCH('Data Input - Option 5'!$D125,'Emissions factors'!$C$5:$C$10,0),MATCH('Data Input - Option 5'!BP$7,'Emissions factors'!$F$4:$CR$4,0))/1000,0)","v":0},{"$f":"IFERROR(BQ89*INDEX('Emissions factors'!$F$5:$CR$10,MATCH('Data Input - Option 5'!$D125,'Emissions factors'!$C$5:$C$10,0),MATCH('Data Input - Option 5'!BQ$7,'Emissions factors'!$F$4:$CR$4,0))/1000,0)","v":0},{"$f":"IFERROR(BR89*INDEX('Emissions factors'!$F$5:$CR$10,MATCH('Data Input - Option 5'!$D125,'Emissions factors'!$C$5:$C$10,0),MATCH('Data Input - Option 5'!BR$7,'Emissions factors'!$F$4:$CR$4,0))/1000,0)","v":0},{"$f":"IFERROR(BS89*INDEX('Emissions factors'!$F$5:$CR$10,MATCH('Data Input - Option 5'!$D125,'Emissions factors'!$C$5:$C$10,0),MATCH('Data Input - Option 5'!BS$7,'Emissions factors'!$F$4:$CR$4,0))/1000,0)","v":0},{"$f":"IFERROR(BT89*INDEX('Emissions factors'!$F$5:$CR$10,MATCH('Data Input - Option 5'!$D125,'Emissions factors'!$C$5:$C$10,0),MATCH('Data Input - Option 5'!BT$7,'Emissions factors'!$F$4:$CR$4,0))/1000,0)","v":0},{"$f":"IFERROR(BU89*INDEX('Emissions factors'!$F$5:$CR$10,MATCH('Data Input - Option 5'!$D125,'Emissions factors'!$C$5:$C$10,0),MATCH('Data Input - Option 5'!BU$7,'Emissions factors'!$F$4:$CR$4,0))/1000,0)","v":0},{"$f":"IFERROR(BV89*INDEX('Emissions factors'!$F$5:$CR$10,MATCH('Data Input - Option 5'!$D125,'Emissions factors'!$C$5:$C$10,0),MATCH('Data Input - Option 5'!BV$7,'Emissions factors'!$F$4:$CR$4,0))/1000,0)","v":0},{"$f":"IFERROR(BW89*INDEX('Emissions factors'!$F$5:$CR$10,MATCH('Data Input - Option 5'!$D125,'Emissions factors'!$C$5:$C$10,0),MATCH('Data Input - Option 5'!BW$7,'Emissions factors'!$F$4:$CR$4,0))/1000,0)","v":0},{"$f":"IFERROR(BX89*INDEX('Emissions factors'!$F$5:$CR$10,MATCH('Data Input - Option 5'!$D125,'Emissions factors'!$C$5:$C$10,0),MATCH('Data Input - Option 5'!BX$7,'Emissions factors'!$F$4:$CR$4,0))/1000,0)","v":0},{"$f":"IFERROR(BY89*INDEX('Emissions factors'!$F$5:$CR$10,MATCH('Data Input - Option 5'!$D125,'Emissions factors'!$C$5:$C$10,0),MATCH('Data Input - Option 5'!BY$7,'Emissions factors'!$F$4:$CR$4,0))/1000,0)","v":0},{"$f":"IFERROR(BZ89*INDEX('Emissions factors'!$F$5:$CR$10,MATCH('Data Input - Option 5'!$D125,'Emissions factors'!$C$5:$C$10,0),MATCH('Data Input - Option 5'!BZ$7,'Emissions factors'!$F$4:$CR$4,0))/1000,0)","v":0},{"$f":"IFERROR(CA89*INDEX('Emissions factors'!$F$5:$CR$10,MATCH('Data Input - Option 5'!$D125,'Emissions factors'!$C$5:$C$10,0),MATCH('Data Input - Option 5'!CA$7,'Emissions factors'!$F$4:$CR$4,0))/1000,0)","v":0},{"$f":"IFERROR(CB89*INDEX('Emissions factors'!$F$5:$CR$10,MATCH('Data Input - Option 5'!$D125,'Emissions factors'!$C$5:$C$10,0),MATCH('Data Input - Option 5'!CB$7,'Emissions factors'!$F$4:$CR$4,0))/1000,0)","v":0},{"$f":"IFERROR(CC89*INDEX('Emissions factors'!$F$5:$CR$10,MATCH('Data Input - Option 5'!$D125,'Emissions factors'!$C$5:$C$10,0),MATCH('Data Input - Option 5'!CC$7,'Emissions factors'!$F$4:$CR$4,0))/1000,0)","v":0},{"$f":"IFERROR(CD89*INDEX('Emissions factors'!$F$5:$CR$10,MATCH('Data Input - Option 5'!$D125,'Emissions factors'!$C$5:$C$10,0),MATCH('Data Input - Option 5'!CD$7,'Emissions factors'!$F$4:$CR$4,0))/1000,0)","v":0},{"$f":"IFERROR(CE89*INDEX('Emissions factors'!$F$5:$CR$10,MATCH('Data Input - Option 5'!$D125,'Emissions factors'!$C$5:$C$10,0),MATCH('Data Input - Option 5'!CE$7,'Emissions factors'!$F$4:$CR$4,0))/1000,0)","v":0},{"$f":"IFERROR(CF89*INDEX('Emissions factors'!$F$5:$CR$10,MATCH('Data Input - Option 5'!$D125,'Emissions factors'!$C$5:$C$10,0),MATCH('Data Input - Option 5'!CF$7,'Emissions factors'!$F$4:$CR$4,0))/1000,0)","v":0},{"$f":"IFERROR(CG89*INDEX('Emissions factors'!$F$5:$CR$10,MATCH('Data Input - Option 5'!$D125,'Emissions factors'!$C$5:$C$10,0),MATCH('Data Input - Option 5'!CG$7,'Emissions factors'!$F$4:$CR$4,0))/1000,0)","v":0},{"$f":"IFERROR(CH89*INDEX('Emissions factors'!$F$5:$CR$10,MATCH('Data Input - Option 5'!$D125,'Emissions factors'!$C$5:$C$10,0),MATCH('Data Input - Option 5'!CH$7,'Emissions factors'!$F$4:$CR$4,0))/1000,0)","v":0},{"$f":"IFERROR(CI89*INDEX('Emissions factors'!$F$5:$CR$10,MATCH('Data Input - Option 5'!$D125,'Emissions factors'!$C$5:$C$10,0),MATCH('Data Input - Option 5'!CI$7,'Emissions factors'!$F$4:$CR$4,0))/1000,0)","v":0},{"$f":"IFERROR(CJ89*INDEX('Emissions factors'!$F$5:$CR$10,MATCH('Data Input - Option 5'!$D125,'Emissions factors'!$C$5:$C$10,0),MATCH('Data Input - Option 5'!CJ$7,'Emissions factors'!$F$4:$CR$4,0))/1000,0)","v":0},{"$f":"IFERROR(CK89*INDEX('Emissions factors'!$F$5:$CR$10,MATCH('Data Input - Option 5'!$D125,'Emissions factors'!$C$5:$C$10,0),MATCH('Data Input - Option 5'!CK$7,'Emissions factors'!$F$4:$CR$4,0))/1000,0)","v":0},{"$f":"IFERROR(CL89*INDEX('Emissions factors'!$F$5:$CR$10,MATCH('Data Input - Option 5'!$D125,'Emissions factors'!$C$5:$C$10,0),MATCH('Data Input - Option 5'!CL$7,'Emissions factors'!$F$4:$CR$4,0))/1000,0)","v":0},{"$f":"IFERROR(CM89*INDEX('Emissions factors'!$F$5:$CR$10,MATCH('Data Input - Option 5'!$D125,'Emissions factors'!$C$5:$C$10,0),MATCH('Data Input - Option 5'!CM$7,'Emissions factors'!$F$4:$CR$4,0))/1000,0)","v":0},{"$f":"IFERROR(CN89*INDEX('Emissions factors'!$F$5:$CR$10,MATCH('Data Input - Option 5'!$D125,'Emissions factors'!$C$5:$C$10,0),MATCH('Data Input - Option 5'!CN$7,'Emissions factors'!$F$4:$CR$4,0))/1000,0)","v":0},{"$f":"IFERROR(CO89*INDEX('Emissions factors'!$F$5:$CR$10,MATCH('Data Input - Option 5'!$D125,'Emissions factors'!$C$5:$C$10,0),MATCH('Data Input - Option 5'!CO$7,'Emissions factors'!$F$4:$CR$4,0))/1000,0)","v":0},{"$f":"IFERROR(CP89*INDEX('Emissions factors'!$F$5:$CR$10,MATCH('Data Input - Option 5'!$D125,'Emissions factors'!$C$5:$C$10,0),MATCH('Data Input - Option 5'!CP$7,'Emissions factors'!$F$4:$CR$4,0))/1000,0)","v":0},{"$f":"IFERROR(CQ89*INDEX('Emissions factors'!$F$5:$CR$10,MATCH('Data Input - Option 5'!$D125,'Emissions factors'!$C$5:$C$10,0),MATCH('Data Input - Option 5'!CQ$7,'Emissions factors'!$F$4:$CR$4,0))/1000,0)","v":0},{"$f":"IFERROR(CR89*INDEX('Emissions factors'!$F$5:$CR$10,MATCH('Data Input - Option 5'!$D125,'Emissions factors'!$C$5:$C$10,0),MATCH('Data Input - Option 5'!CR$7,'Emissions factors'!$F$4:$CR$4,0))/1000,0)","v":0},{"$f":"IFERROR(CS89*INDEX('Emissions factors'!$F$5:$CR$10,MATCH('Data Input - Option 5'!$D125,'Emissions factors'!$C$5:$C$10,0),MATCH('Data Input - Option 5'!CS$7,'Emissions factors'!$F$4:$CR$4,0))/1000,0)","v":0},{"$f":"IFERROR(CT89*INDEX('Emissions factors'!$F$5:$CR$10,MATCH('Data Input - Option 5'!$D125,'Emissions factors'!$C$5:$C$10,0),MATCH('Data Input - Option 5'!CT$7,'Emissions factors'!$F$4:$CR$4,0))/1000,0)","v":0},{"$f":"IFERROR(CU89*INDEX('Emissions factors'!$F$5:$CR$10,MATCH('Data Input - Option 5'!$D125,'Emissions factors'!$C$5:$C$10,0),MATCH('Data Input - Option 5'!CU$7,'Emissions factors'!$F$4:$CR$4,0))/1000,0)","v":0},{"$f":"IFERROR(CV89*INDEX('Emissions factors'!$F$5:$CR$10,MATCH('Data Input - Option 5'!$D125,'Emissions factors'!$C$5:$C$10,0),MATCH('Data Input - Option 5'!CV$7,'Emissions factors'!$F$4:$CR$4,0))/1000,0)","v":0},{"$f":"IFERROR(CW89*INDEX('Emissions factors'!$F$5:$CR$10,MATCH('Data Input - Option 5'!$D125,'Emissions factors'!$C$5:$C$10,0),MATCH('Data Input - Option 5'!CW$7,'Emissions factors'!$F$4:$CR$4,0))/1000,0)","v":0},{"$f":"IFERROR(CX89*INDEX('Emissions factors'!$F$5:$CR$10,MATCH('Data Input - Option 5'!$D125,'Emissions factors'!$C$5:$C$10,0),MATCH('Data Input - Option 5'!CX$7,'Emissions factors'!$F$4:$CR$4,0))/1000,0)","v":0},{"$f":"IFERROR(CY89*INDEX('Emissions factors'!$F$5:$CR$10,MATCH('Data Input - Option 5'!$D125,'Emissions factors'!$C$5:$C$10,0),MATCH('Data Input - Option 5'!CY$7,'Emissions factors'!$F$4:$CR$4,0))/1000,0)","v":0},{"$f":"IFERROR(CZ89*INDEX('Emissions factors'!$F$5:$CR$10,MATCH('Data Input - Option 5'!$D125,'Emissions factors'!$C$5:$C$10,0),MATCH('Data Input - Option 5'!CZ$7,'Emissions factors'!$F$4:$CR$4,0))/1000,0)","v":0},{"$f":"IFERROR(DA89*INDEX('Emissions factors'!$F$5:$CR$10,MATCH('Data Input - Option 5'!$D125,'Emissions factors'!$C$5:$C$10,0),MATCH('Data Input - Option 5'!DA$7,'Emissions factors'!$F$4:$CR$4,0))/1000,0)","v":0},{"$f":"IFERROR(DB89*INDEX('Emissions factors'!$F$5:$CR$10,MATCH('Data Input - Option 5'!$D125,'Emissions factors'!$C$5:$C$10,0),MATCH('Data Input - Option 5'!DB$7,'Emissions factors'!$F$4:$CR$4,0))/1000,0)","v":0},{"$f":"IFERROR(DC89*INDEX('Emissions factors'!$F$5:$CR$10,MATCH('Data Input - Option 5'!$D125,'Emissions factors'!$C$5:$C$10,0),MATCH('Data Input - Option 5'!DC$7,'Emissions factors'!$F$4:$CR$4,0))/1000,0)","v":0}]
[null,null,"9.52","Other (please specify)","tCO2e"]
[]
[null,null,null,"Total fuel-related GHG Emissions","tCO2e","(Auto calculated value)",null,{"$f":"SUM(H$120:H$127)","v":0},{"$f":"SUM(I$120:I$127)","v":0},{"$f":"SUM(J$120:J$127)","v":0},0,0,0,0,0,0,0,0,0,0,0,0,0,0,0,0,0,0,0,0,0,0,0,0,0,0,0,0,0,0,0,0,0,0,0,0,0,0,0,0,0,0,0,0,0,0,0,0,0,0,0,0,0,0,0,0,0,0,0,0,0,0,0,{"$f":"SUM(BV$120:BV$127)","v":0},0,0,0,0,0,0,0,0,0,0,0,0,0,0,0,0,0,0,0,0,0,0,0,0,0,0,0,0,0,0,0,0,0]

{"sheet":"Calc_BAU","index":19,"n_rows":283,"n_cols":103,"rows_kept":283,"cut":false,"hidden":false,"merged":[]}
[]
[null,"Calculations - Business as Usual (BAU)","<< BACK to Data Input"]
[null,"BAU"]
[null,"First year",{"$f":"IF('Data Input - General'!F25=0,'Data Input - General'!F22,'Data Input - General'!F25)","v":2019}]
[null,"Year number",null,0,1,2,3,4,5,6,7,8,9,10,11,12,13,14,15,16,17,18,19,20,21,22,23,24,25,26,27,28,29,30,31,32,33,34,35,36,37,38,39,40,41,42,43,44,45,46,47,48,49,50,51,52,53,54,55,56,57,58,59]
[null,"Year",null,{"$f":"'Data Input - BAU'!H7","v":2019},{"$f":"'Data Input - BAU'!I7","v":2020},{"$f":"'Data Input - BAU'!J7","v":2021},{"$f":"'Data Input - BAU'!K7","v":2022},{"$f":"'Data Input - BAU'!L7","v":2023},{"$f":"'Data Input - BAU'!M7","v":2024},{"$f":"'Data Input - BAU'!N7","v":2025},{"$f":"'Data Input - BAU'!O7","v":2026},{"$f":"'Data Input - BAU'!P7","v":2027},{"$f":"'Data Input - BAU'!Q7","v":2028},{"$f":"'Data Input - BAU'!R7","v":2029},{"$f":"'Data Input - BAU'!S7","v":2030},{"$f":"'Data Input - BAU'!T7","v":2031},{"$f":"'Data Input - BAU'!U7","v":2032},{"$f":"'Data Input - BAU'!V7","v":2033},{"$f":"'Data Input - BAU'!W7","v":2034},{"$f":"'Data Input - BAU'!X7","v":2035},{"$f":"'Data Input - BAU'!Y7","v":2036},{"$f":"'Data Input - BAU'!Z7","v":2037},{"$f":"'Data Input - BAU'!AA7","v":2038},{"$f":"'Data Input - BAU'!AB7","v":2039},{"$f":"'Data Input - BAU'!AC7","v":2040},{"$f":"'Data Input - BAU'!AD7","v":2041},{"$f":"'Data Input - BAU'!AE7","v":2042},{"$f":"'Data Input - BAU'!AF7","v":2043},{"$f":"'Data Input - BAU'!AG7","v":2044},{"$f":"'Data Input - BAU'!AH7","v":2045},{"$f":"'Data Input - BAU'!AI7","v":2046},{"$f":"'Data Input - BAU'!AJ7","v":2047},{"$f":"'Data Input - BAU'!AK7","v":2048},{"$f":"'Data Input - BAU'!AL7","v":2049},{"$f":"'Data Input - BAU'!AM7","v":0},{"$f":"'Data Input - BAU'!AN7","v":0},{"$f":"'Data Input - BAU'!AO7","v":0},{"$f":"'Data Input - BAU'!AP7","v":0},{"$f":"'Data Input - BAU'!AQ7","v":0},{"$f":"'Data Input - BAU'!AR7","v":0},{"$f":"'Data Input - BAU'!AS7","v":0},{"$f":"'Data Input - BAU'!AT7","v":0},{"$f":"'Data Input - BAU'!AU7","v":0},{"$f":"'Data Input - BAU'!AV7","v":0},{"$f":"'Data Input - BAU'!AW7","v":0},{"$f":"'Data Input - BAU'!AX7","v":0},{"$f":"'Data Input - BAU'!AY7","v":0},{"$f":"'Data Input - BAU'!AZ7","v":0},{"$f":"'Data Input - BAU'!BA7","v":0},{"$f":"'Data Input - BAU'!BB7","v":0},{"$f":"'Data Input - BAU'!BC7","v":0},{"$f":"'Data Input - BAU'!BD7","v":0},{"$f":"'Data Input - BAU'!BE7","v":0},{"$f":"'Data Input - BAU'!BF7","v":0},{"$f":"'Data Input - BAU'!BG7","v":0},{"$f":"'Data Input - BAU'!BH7","v":0},{"$f":"'Data Input - BAU'!BI7","v":0},{"$f":"'Data Input - BAU'!BJ7","v":0},{"$f":"'Data Input - BAU'!BK7","v":0},{"$f":"'Data Input - BAU'!BL7","v":0},{"$f":"'Data Input - BAU'!BM7","v":0},{"$f":"'Data Input - BAU'!BN7","v":0},{"$f":"'Data Input - BAU'!BO7","v":0},{"$f":"'Data Input - BAU'!BP7","v":0},{"$f":"'Data Input - BAU'!BQ7","v":0},{"$f":"'Data Input - BAU'!BR7","v":0},{"$f":"'Data Input - BAU'!BS7","v":0},{"$f":"'Data Input - BAU'!BT7","v":0},{"$f":"'Data Input - BAU'!BU7","v":0},{"$f":"'Data Input - BAU'!BV7","v":0},{"$f":"'Data Input - BAU'!BW7","v":0},{"$f":"'Data Input - BAU'!BX7","v":0},{"$f":"'Data Input - BAU'!BY7","v":0},{"$f":"'Data Input - BAU'!BZ7","v":0},{"$f":"'Data Input - BAU'!CA7","v":0},{"$f":"'Data Input - BAU'!CB7","v":0},{"$f":"'Data Input - BAU'!CC7","v":0},{"$f":"'Data Input - BAU'!CD7","v":0},{"$f":"'Data Input - BAU'!CE7","v":0},{"$f":"'Data Input - BAU'!CF7","v":0},{"$f":"'Data Input - BAU'!CG7","v":0},{"$f":"'Data Input - BAU'!CH7","v":0},{"$f":"'Data Input - BAU'!CI7","v":0},{"$f":"'Data Input - BAU'!CJ7","v":0},{"$f":"'Data Input - BAU'!CK7","v":0},{"$f":"'Data Input - BAU'!CL7","v":0},{"$f":"'Data Input - BAU'!CM7","v":0},{"$f":"'Data Input - BAU'!CN7","v":0},{"$f":"'Data Input - BAU'!CO7","v":0},{"$f":"'Data Input - BAU'!CP7","v":0},{"$f":"'Data Input - BAU'!CQ7","v":0},{"$f":"'Data Input - BAU'!CR7","v":0},{"$f":"'Data Input - BAU'!CS7","v":0},{"$f":"'Data Input - BAU'!CT7","v":0},{"$f":"'Data Input - BAU'!CU7","v":0},{"$f":"'Data Input - BAU'!CV7","v":0},{"$f":"'Data Input - BAU'!CW7","v":0},{"$f":"'Data Input - BAU'!CX7","v":0},{"$f":"'Data Input - BAU'!CY7","v":0},{"$f":"'Data Input - BAU'!CZ7","v":0},{"$f":"'Data Input - BAU'!DA7","v":0},{"$f":"'Data Input - BAU'!DB7","v":0},{"$f":"'Data Input - BAU'!DC7","v":0}]
[null,"Discount factor",null,{"$f":"IF(D6=0,0,'Discount and deflators'!F12)","v":1},{"$f":"IF(E6=0,0,'Discount and deflators'!G12)","v":0.96618357487922713},{"$f":"IF(F6=0,0,'Discount and deflators'!H12)","v":0.93351070036640305},{"$f":"IF(G6=0,0,'Discount and deflators'!I12)","v":0.90194270566802237},{"$f":"IF(H6=0,0,'Discount and deflators'!J12)","v":0.87144222769857238},{"$f":"IF(I6=0,0,'Discount and deflators'!K12)","v":0.84197316685852408},{"$f":"IF(J6=0,0,'Discount and deflators'!L12)","v":0.81350064430775282},{"$f":"IF(K6=0,0,'Discount and deflators'!M12)","v":0.78599096068381924},{"$f":"IF(L6=0,0,'Discount and deflators'!N12)","v":0.75941155621625056},{"$f":"IF(M6=0,0,'Discount and deflators'!O12)","v":0.73373097218961414},{"$f":"IF(N6=0,0,'Discount and deflators'!P12)","v":0.70891881370977217},{"$f":"IF(O6=0,0,'Discount and deflators'!Q12)","v":0.68494571372924851},{"$f":"IF(P6=0,0,'Discount and deflators'!R12)","v":0.66178329828912907},{"$f":"IF(Q6=0,0,'Discount and deflators'!S12)","v":0.63940415293635666},{"$f":"IF(R6=0,0,'Discount and deflators'!T12)","v":0.61778179027667313},{"$f":"IF(S6=0,0,'Discount and deflators'!U12)","v":0.59689061862480497},{"$f":"IF(T6=0,0,'Discount and deflators'!V12)","v":0.57670591171478747},{"$f":"IF(U6=0,0,'Discount and deflators'!W12)","v":0.55720377943457733},{"$f":"IF(V6=0,0,'Discount and deflators'!X12)","v":0.53836113955031628},{"$f":"IF(W6=0,0,'Discount and deflators'!Y12)","v":0.520155690386779},{"$f":"IF(X6=0,0,'Discount and deflators'!Z12)","v":0.50256588443167061},{"$f":"IF(Y6=0,0,'Discount and deflators'!AA12)","v":0.48557090283253201},{"$f":"IF(Z6=0,0,'Discount and deflators'!AB12)","v":0.46915063075606961},{"$f":"IF(AA6=0,0,'Discount and deflators'!AC12)","v":0.45328563358074364},{"$f":"IF(AB6=0,0,'Discount and deflators'!AD12)","v":0.43795713389443836},{"$f":"IF(AC6=0,0,'Discount and deflators'!AE12)","v":0.42314698926998878},{"$f":"IF(AD6=0,0,'Discount and deflators'!AF12)","v":0.40883767079225974},{"$f":"IF(AE6=0,0,'Discount and deflators'!AG12)","v":0.39501224231136212},{"$f":"IF(AF6=0,0,'Discount and deflators'!AH12)","v":0.38165434039745133},{"$f":"IF(AG6=0,0,'Discount and deflators'!AI12)","v":0.36874815497338298},{"$f":"IF(AH6=0,0,'Discount and deflators'!AJ12)","v":0.35800791744988636},{"$f":"IF(AI6=0,0,'Discount and deflators'!AK12)","v":0},{"$f":"IF(AJ6=0,0,'Discount and deflators'!AL12)","v":0},{"$f":"IF(AK6=0,0,'Discount and deflators'!AM12)","v":0},{"$f":"IF(AL6=0,0,'Discount and deflators'!AN12)","v":0},{"$f":"IF(AM6=0,0,'Discount and deflators'!AO12)","v":0},{"$f":"IF(AN6=0,0,'Discount and deflators'!AP12)","v":0},{"$f":"IF(AO6=0,0,'Discount and deflators'!AQ12)","v":0},{"$f":"IF(AP6=0,0,'Discount and deflators'!AR12)","v":0},{"$f":"IF(AQ6=0,0,'Discount and deflators'!AS12)","v":0},{"$f":"IF(AR6=0,0,'Discount and deflators'!AT12)","v":0},{"$f":"IF(AS6=0,0,'Discount and deflators'!AU12)","v":0},{"$f":"IF(AT6=0,0,'Discount and deflators'!AV12)","v":0},{"$f":"IF(AU6=0,0,'Discount and deflators'!AW12)","v":0},{"$f":"IF(AV6=0,0,'Discount and deflators'!AX12)","v":0},{"$f":"IF(AW6=0,0,'Discount and deflators'!AY12)","v":0},{"$f":"IF(AX6=0,0,'Discount and deflators'!AZ12)","v":0},{"$f":"IF(AY6=0,0,'Discount and deflators'!BA12)","v":0},{"$f":"IF(AZ6=0,0,'Discount and deflators'!BB12)","v":0},{"$f":"IF(BA6=0,0,'Discount and deflators'!BC12)","v":0},{"$f":"IF(BB6=0,0,'Discount and deflators'!BD12)","v":0},{"$f":"IF(BC6=0,0,'Discount and deflators'!BE12)","v":0},{"$f":"IF(BD6=0,0,'Discount and deflators'!BF12)","v":0},{"$f":"IF(BE6=0,0,'Discount and deflators'!BG12)","v":0},{"$f":"IF(BF6=0,0,'Discount and deflators'!BH12)","v":0},{"$f":"IF(BG6=0,0,'Discount and deflators'!BI12)","v":0},{"$f":"IF(BH6=0,0,'Discount and deflators'!BJ12)","v":0},{"$f":"IF(BI6=0,0,'Discount and deflators'!BK12)","v":0},{"$f":"IF(BJ6=0,0,'Discount and deflators'!BL12)","v":0},{"$f":"IF(BK6=0,0,'Discount and deflators'!BM12)","v":0},{"$f":"IF(BL6=0,0,'Discount and deflators'!BN12)","v":0},{"$f":"IF(BM6=0,0,'Discount and deflators'!BO12)","v":0},{"$f":"IF(BN6=0,0,'Discount and deflators'!BP12)","v":0},{"$f":"IF(BO6=0,0,'Discount and deflators'!BQ12)","v":0},{"$f":"IF(BP6=0,0,'Discount and deflators'!BR12)","v":0},{"$f":"IF(BQ6=0,0,'Discount and deflators'!BS12)","v":0},{"$f":"IF(BR6=0,0,'Discount and deflators'!BT12)","v":0},{"$f":"IF(BS6=0,0,'Discount and deflators'!BU12)","v":0},{"$f":"IF(BT6=0,0,'Discount and deflators'!BV12)","v":0},{"$f":"IF(BU6=0,0,'Discount and deflators'!BW12)","v":0},{"$f":"IF(BV6=0,0,'Discount and deflators'!BX12)","v":0},{"$f":"IF(BW6=0,0,'Discount and deflators'!BY12)","v":0},{"$f":"IF(BX6=0,0,'Discount and deflators'!BZ12)","v":0},{"$f":"IF(BY6=0,0,'Discount and deflators'!CA12)","v":0},{"$f":"IF(BZ6=0,0,'Discount and deflators'!CB12)","v":0},{"$f":"IF(CA6=0,0,'Discount and deflators'!CC12)","v":0},{"$f":"IF(CB6=0,0,'Discount and deflators'!CD12)","v":0},{"$f":"IF(CC6=0,0,'Discount and deflators'!CE12)","v":0},{"$f":"IF(CD6=0,0,'Discount and deflators'!CF12)","v":0},{"$f":"IF(CE6=0,0,'Discount and deflators'!CG12)","v":0},{"$f":"IF(CF6=0,0,'Discount and deflators'!CH12)","v":0},{"$f":"IF(CG6=0,0,'Discount and deflators'!CI12)","v":0},{"$f":"IF(CH6=0,0,'Discount and deflators'!CJ12)","v":0},{"$f":"IF(CI6=0,0,'Discount and deflators'!CK12)","v":0},{"$f":"IF(CJ6=0,0,'Discount and deflators'!CL12)","v":0},{"$f":"IF(CK6=0,0,'Discount and deflators'!CM12)","v":0},{"$f":"IF(CL6=0,0,'Discount and deflators'!CN12)","v":0},{"$f":"IF(CM6=0,0,'Discount and deflators'!CO12)","v":0},{"$f":"IF(CN6=0,0,'Discount and deflators'!CP12)","v":0},{"$f":"IF(CO6=0,0,'Discount and deflators'!CQ12)","v":0},{"$f":"IF(CP6=0,0,'Discount and deflators'!CR12)","v":0},{"$f":"IF(CQ6=0,0,'Discount and deflators'!CS12)","v":0},{"$f":"IF(CR6=0,0,'Discount and deflators'!CT12)","v":0},{"$f":"IF(CS6=0,0,'Discount and deflators'!CU12)","v":0},{"$f":"IF(CT6=0,0,'Discount and deflators'!CV12)","v":0},{"$f":"IF(CU6=0,0,'Discount and deflators'!CW12)","v":0},{"$f":"IF(CV6=0,0,'Discount and deflators'!CX12)","v":0},{"$f":"IF(CW6=0,0,'Discount and deflators'!CY12)","v":0},{"$f":"IF(CX6=0,0,'Discount and deflators'!CZ12)","v":0},{"$f":"IF(CY6=0,0,'Discount and deflators'!DA12)","v":0}]
[]
[null,"CENTRAL CALCULATIONS"]
[]
[null,"Capital Costs (total)"]
[null,"Total Capex","£000's",{"$f":"'Data Input - BAU'!H30","v":476},{"$f":"'Data Input - BAU'!I30","v":476},{"$f":"'Data Input - BAU'!J30","v":476},{"$f":"'Data Input - BAU'!K30","v":476},{"$f":"'Data Input - BAU'!L30","v":476},{"$f":"'Data Input - BAU'!M30","v":476},{"$f":"'Data Input - BAU'!N30","v":476},{"$f":"'Data Input - BAU'!O30","v":476},{"$f":"'Data Input - BAU'!P30","v":0},{"$f":"'Data Input - BAU'!Q30","v":0},{"$f":"'Data Input - BAU'!R30","v":0},{"$f":"'Data Input - BAU'!S30","v":0},{"$f":"'Data Input - BAU'!T30","v":0},{"$f":"'Data Input - BAU'!U30","v":0},{"$f":"'Data Input - BAU'!V30","v":0},{"$f":"'Data Input - BAU'!W30","v":0},{"$f":"'Data Input - BAU'!X30","v":0},{"$f":"'Data Input - BAU'!Y30","v":0},{"$f":"'Data Input - BAU'!Z30","v":0},{"$f":"'Data Input - BAU'!AA30","v":0},{"$f":"'Data Input - BAU'!AB30","v":0},{"$f":"'Data Input - BAU'!AC30","v":0},{"$f":"'Data Input - BAU'!AD30","v":0},{"$f":"'Data Input - BAU'!AE30","v":0},{"$f":"'Data Input - BAU'!AF30","v":0},{"$f":"'Data Input - BAU'!AG30","v":0},{"$f":"'Data Input - BAU'!AH30","v":0},{"$f":"'Data Input - BAU'!AI30","v":0},{"$f":"'Data Input - BAU'!AJ30","v":0},{"$f":"'Data Input - BAU'!AK30","v":0},{"$f":"'Data Input - BAU'!AL30","v":0},{"$f":"'Data Input - BAU'!AM30","v":0},{"$f":"'Data Input - BAU'!AN30","v":0},{"$f":"'Data Input - BAU'!AO30","v":0},{"$f":"'Data Input - BAU'!AP30","v":0},{"$f":"'Data Input - BAU'!AQ30","v":0},{"$f":"'Data Input - BAU'!AR30","v":0},{"$f":"'Data Input - BAU'!AS30","v":0},{"$f":"'Data Input - BAU'!AT30","v":0},{"$f":"'Data Input - BAU'!AU30","v":0},{"$f":"'Data Input - BAU'!AV30","v":0},{"$f":"'Data Input - BAU'!AW30","v":0},{"$f":"'Data Input - BAU'!AX30","v":0},{"$f":"'Data Input - BAU'!AY30","v":0},{"$f":"'Data Input - BAU'!AZ30","v":0},{"$f":"'Data Input - BAU'!BA30","v":0},{"$f":"'Data Input - BAU'!BB30","v":0},{"$f":"'Data Input - BAU'!BC30","v":0},{"$f":"'Data Input - BAU'!BD30","v":0},{"$f":"'Data Input - BAU'!BE30","v":0},{"$f":"'Data Input - BAU'!BF30","v":0},{"$f":"'Data Input - BAU'!BG30","v":0},{"$f":"'Data Input - BAU'!BH30","v":0},{"$f":"'Data Input - BAU'!BI30","v":0},{"$f":"'Data Input - BAU'!BJ30","v":0},{"$f":"'Data Input - BAU'!BK30","v":0},{"$f":"'Data Input - BAU'!BL30","v":0},{"$f":"'Data Input - BAU'!BM30","v":0},{"$f":"'Data Input - BAU'!BN30","v":0},{"$f":"'Data Input - BAU'!BO30","v":0},{"$f":"'Data Input - BAU'!BP30","v":0},{"$f":"'Data Input - BAU'!BQ30","v":0},{"$f":"'Data Input - BAU'!BR30","v":0},{"$f":"'Data Input - BAU'!BS30","v":0},{"$f":"'Data Input - BAU'!BT30","v":0},{"$f":"'Data Input - BAU'!BU30","v":0},{"$f":"'Data Input - BAU'!BV30","v":0},{"$f":"'Data Input - BAU'!BW30","v":0},{"$f":"'Data Input - BAU'!BX30","v":0},{"$f":"'Data Input - BAU'!BY30","v":0},{"$f":"'Data Input - BAU'!BZ30","v":0},{"$f":"'Data Input - BAU'!CA30","v":0},{"$f":"'Data Input - BAU'!CB30","v":0},{"$f":"'Data Input - BAU'!CC30","v":0},{"$f":"'Data Input - BAU'!CD30","v":0},{"$f":"'Data Input - BAU'!CE30","v":0},{"$f":"'Data Input - BAU'!CF30","v":0},{"$f":"'Data Input - BAU'!CG30","v":0},{"$f":"'Data Input - BAU'!CH30","v":0},{"$f":"'Data Input - BAU'!CI30","v":0},{"$f":"'Data Input - BAU'!CJ30","v":0},{"$f":"'Data Input - BAU'!CK30","v":0},{"$f":"'Data Input - BAU'!CL30","v":0},{"$f":"'Data Input - BAU'!CM30","v":0},{"$f":"'Data Input - BAU'!CN30","v":0},{"$f":"'Data Input - BAU'!CO30","v":0},{"$f":"'Data Input - BAU'!CP30","v":0},{"$f":"'Data Input - BAU'!CQ30","v":0},{"$f":"'Data Input - BAU'!CR30","v":0},{"$f":"'Data Input - BAU'!CS30","v":0},{"$f":"'Data Input - BAU'!CT30","v":0},{"$f":"'Data Input - BAU'!CU30","v":0},{"$f":"'Data Input - BAU'!CV30","v":0},{"$f":"'Data Input - BAU'!CW30","v":0},{"$f":"'Data Input - BAU'!CX30","v":0},{"$f":"'Data Input - BAU'!CY30","v":0},{"$f":"'Data Input - BAU'!CZ30","v":0},{"$f":"'Data Input - BAU'!DA30","v":0},{"$f":"'Data Input - BAU'!DB30","v":0},{"$f":"'Data Input - BAU'!DC30","v":0}]
[null,"Total capex discounted","£000's",{"$f":"D12*D$7","v":476},{"$f":"E12*E$7","v":459.9033816425121},444.35109337440787,429.32472789797868,414.80650038452046,400.77922742465745,387.22630669049033,374.13169728549798,0,0,0,0,0,0,0,0,0,0,0,0,0,0,0,0,0,0,0,0,0,0,0,0,0,0,0,0,0,0,0,0,0,0,0,0,0,0,0,0,0,0,0,0,0,0,0,0,0,0,0,0,0,0,0,0,0,{"$f":"BQ12*BQ$7","v":0},0,0,0,0,0,0,0,0,0,0,0,0,0,0,0,0,0,0,0,0,0,0,0,0,0,0,0,0,0,0,0,0,0,0]
[]
[null,"First Year of upfront costs? - Array",null,{"$f":"IF(D12<>0,TRUE,FALSE)","v":true},{"$f":"IF(D15=TRUE,\"ALREADY FOUND\",IF(E12<>0,TRUE,FALSE))","v":"ALREADY FOUND"},{"$f":"IF(E15=\"ALREADY FOUND\",\"ALREADY FOUND\",IF(E15=TRUE,\"ALREADY FOUND\",IF(F12<>0,TRUE,FALSE)))","v":"ALREADY FOUND"},{"$f":"IF(F15=\"ALREADY FOUND\",\"ALREADY FOUND\",IF(F15=TRUE,\"ALREADY FOUND\",IF(G12<>0,TRUE,FALSE)))","v":"ALREADY FOUND"},"ALREADY FOUND","ALREADY FOUND","ALREADY FOUND","ALREADY FOUND","ALREADY FOUND","ALREADY FOUND","ALREADY FOUND","ALREADY FOUND","ALREADY FOUND","ALREADY FOUND","ALREADY FOUND","ALREADY FOUND","ALREADY FOUND","ALREADY FOUND","ALREADY FOUND","ALREADY FOUND","ALREADY FOUND","ALREADY FOUND","ALREADY FOUND","ALREADY FOUND","ALREADY FOUND","ALREADY FOUND","ALREADY FOUND","ALREADY FOUND","ALREADY FOUND","ALREADY FOUND","ALREADY FOUND","ALREADY FOUND","ALREADY FOUND","ALREADY FOUND","ALREADY FOUND","ALREADY FOUND","ALREADY FOUND","ALREADY FOUND","ALREADY FOUND","ALREADY FOUND","ALREADY FOUND","ALREADY FOUND","ALREADY FOUND","ALREADY FOUND","ALREADY FOUND","ALREADY FOUND","ALREADY FOUND","ALREADY FOUND","ALREADY FOUND","ALREADY FOUND","ALREADY FOUND","ALREADY FOUND","ALREADY FOUND","ALREADY FOUND","ALREADY FOUND","ALREADY FOUND","ALREADY FOUND","ALREADY FOUND","ALREADY FOUND","ALREADY FOUND","ALREADY FOUND","ALREADY FOUND","ALREADY FOUND","ALREADY FOUND","ALREADY FOUND","ALREADY FOUND","ALREADY FOUND",{"$f":"IF(BR15=\"ALREADY FOUND\",\"ALREADY FOUND\",IF(BR15=TRUE,\"ALREADY FOUND\",IF(BS12<>0,TRUE,FALSE)))","v":"ALREADY FOUND"},"ALREADY FOUND","ALREADY FOUND","ALREADY FOUND","ALREADY FOUND","ALREADY FOUND","ALREADY FOUND","ALREADY FOUND","ALREADY FOUND","ALREADY FOUND","ALREADY FOUND","ALREADY FOUND","ALREADY FOUND","ALREADY FOUND","ALREADY FOUND","ALREADY FOUND","ALREADY FOUND","ALREADY FOUND","ALREADY FOUND","ALREADY FOUND","ALREADY FOUND","ALREADY FOUND","ALREADY FOUND","ALREADY FOUND","ALREADY FOUND","ALREADY FOUND","ALREADY FOUND","ALREADY FOUND","ALREADY FOUND","ALREADY FOUND","ALREADY FOUND","ALREADY FOUND"]
[null,"First Year of upfront costs",null,{"$f":"INDEX($D$6:$CX$6,MATCH(TRUE,$D$15:$CX$15,0))","v":2019}]
[null,"Final Year of upfront costs? - Array",null,{"$f":"IF(D6<$D$16,FALSE,IF(D12+E12=0,TRUE,FALSE))","v":false},{"$f":"IF(D17=TRUE,\"N/A\",IF(D17=\"N/A\",\"N/A\",IF(E6<$D$16,FALSE,IF(E12+F12=0,TRUE,FALSE))))","v":false},{"$f":"IF(E17=TRUE,\"N/A\",IF(E17=\"N/A\",\"N/A\",IF(F6<$D$16,FALSE,IF(F12+G12=0,TRUE,FALSE))))","v":false},{"$f":"IF(F17=TRUE,\"N/A\",IF(F17=\"N/A\",\"N/A\",IF(G6<$D$16,FALSE,IF(G12+H12=0,TRUE,FALSE))))","v":false},{"$f":"IF(G17=TRUE,\"N/A\",IF(G17=\"N/A\",\"N/A\",IF(H6<$D$16,FALSE,IF(H12+I12=0,TRUE,FALSE))))","v":false},{"$f":"IF(H17=TRUE,\"N/A\",IF(H17=\"N/A\",\"N/A\",IF(I6<$D$16,FALSE,IF(I12+J12=0,TRUE,FALSE))))","v":false},{"$f":"IF(I17=TRUE,\"N/A\",IF(I17=\"N/A\",\"N/A\",IF(J6<$D$16,FALSE,IF(J12+K12=0,TRUE,FALSE))))","v":false},false,true,"N/A","N/A","N/A","N/A","N/A","N/A","N/A","N/A","N/A","N/A","N/A","N/A","N/A","N/A","N/A","N/A","N/A","N/A","N/A","N/A","N/A","N/A","N/A","N/A","N/A","N/A","N/A","N/A","N/A","N/A","N/A","N/A","N/A","N/A","N/A","N/A","N/A","N/A","N/A","N/A","N/A","N/A","N/A","N/A","N/A","N/A","N/A","N/A","N/A","N/A","N/A","N/A","N/A","N/A","N/A","N/A","N/A","N/A","N/A","N/A","N/A",{"$f":"IF(BU17=TRUE,\"N/A\",IF(BU17=\"N/A\",\"N/A\",IF(BV6<$D$16,FALSE,IF(BV12+BW12=0,TRUE,FALSE))))","v":"N/A"},"N/A","N/A","N/A","N/A","N/A","N/A","N/A","N/A","N/A","N/A","N/A","N/A","N/A","N/A","N/A","N/A","N/A","N/A","N/A","N/A","N/A","N/A","N/A","N/A","N/A","N/A","N/A","N/A"]
[null,"Final Year of upfront costs",null,{"$f":"INDEX($D$6:$CX$6,MATCH(TRUE,$D$17:$CX$17,0))","v":2027}]
[null,"Include undiscounted total capex in SUM?",null,{"$f":"IF(AND(OR(D6=$D$16,D6>$D$16),OR(D6=$D$18,D6<$D$18)),D12,0)","v":476},{"$f":"IF(AND(OR(E6=$D$16,E6>$D$16),OR(E6=$D$18,E6<$D$18)),E12,0)","v":476},476,476,{"$f":"IF(AND(OR(H6=$D$16,H6>$D$16),OR(H6=$D$18,H6<$D$18)),H12,0)","v":476},{"$f":"IF(AND(OR(I6=$D$16,I6>$D$16),OR(I6=$D$18,I6<$D$18)),I12,0)","v":476},476,476,0,0,0,0,0,0,0,0,0,0,0,0,0,0,0,0,0,0,0,0,0,0,0,0,0,0,0,0,0,0,0,0,0,0,0,0,0,0,0,0,0,0,0,0,0,0,0,0,0,0,0,0,0,0,0,0,0,0,0,0,0,{"$f":"IF(AND(OR(BU6=$D$16,BU6>$D$16),OR(BU6=$D$18,BU6<$D$18)),BU12,0)","v":0},0,0,0,0,0,0,0,0,0,0,0,0,0,0,0,0,0,0,0,0,0,0,0,0,0,0,0,0,0]
[null,"Total upfront investment cost for first installation only",null,{"$f":"SUM(D19:CX19)","v":3808}]
[null,"New invesment/refurbishment cost?",null,null,null,null,{"$f":"IF(OR(AND(SUM(D12:F12)=0,G12>0,G15=\"ALREADY FOUND\"),AND(F21=TRUE,G12>0),AND(F21=TRUE,SUM(H12:I12)>0)),TRUE,FALSE)","v":false},{"$f":"IF(OR(AND(SUM(E12:G12)=0,H12>0,H15=\"ALREADY FOUND\"),AND(G21=TRUE,H12>0),AND(G21=TRUE,SUM(I12:J12)>0)),TRUE,FALSE)","v":false},false,false,false,false,false,false,false,false,false,false,false,false,false,false,false,false,false,false,false,false,false,false,false,false,false,false,false,false,false,false,false,false,false,false,false,false,false,false,false,false,false,false,false,false,false,false,false,false,false,false,false,false,false,false,false,false,false,false,false,false,false,false,false,{"$f":"IF(OR(AND(SUM(BQ12:BS12)=0,BT12>0,BT15=\"ALREADY FOUND\"),AND(BS21=TRUE,BT12>0),AND(BS21=TRUE,SUM(BU12:BV12)>0)),TRUE,FALSE)","v":false},false,false,false,false,false,false,false,false,false,false,false,false,false,false,false,false,false,false,false,false,false,false,false,false,false,false,false,false,false,false]
[null,"New invesment/refurbishment counter",null,null,null,null,{"$f":"IF(G21=FALSE,0,IF(F22<>0,F22,MAX($D$22:F22)+1))","v":0},{"$f":"IF(H21=FALSE,0,IF(G22<>0,G22,MAX($D$22:G22)+1))","v":0},{"$f":"IF(I21=FALSE,0,IF(H22<>0,H22,MAX($D$22:H22)+1))","v":0},{"$f":"IF(J21=FALSE,0,IF(I22<>0,I22,MAX($D$22:I22)+1))","v":0},{"$f":"IF(K21=FALSE,0,IF(J22<>0,J22,MAX($D$22:J22)+1))","v":0},{"$f":"IF(L21=FALSE,0,IF(K22<>0,K22,MAX($D$22:K22)+1))","v":0},{"$f":"IF(M21=FALSE,0,IF(L22<>0,L22,MAX($D$22:L22)+1))","v":0},{"$f":"IF(N21=FALSE,0,IF(M22<>0,M22,MAX($D$22:M22)+1))","v":0},{"$f":"IF(O21=FALSE,0,IF(N22<>0,N22,MAX($D$22:N22)+1))","v":0},{"$f":"IF(P21=FALSE,0,IF(O22<>0,O22,MAX($D$22:O22)+1))","v":0},{"$f":"IF(Q21=FALSE,0,IF(P22<>0,P22,MAX($D$22:P22)+1))","v":0},{"$f":"IF(R21=FALSE,0,IF(Q22<>0,Q22,MAX($D$22:Q22)+1))","v":0},{"$f":"IF(S21=FALSE,0,IF(R22<>0,R22,MAX($D$22:R22)+1))","v":0},{"$f":"IF(T21=FALSE,0,IF(S22<>0,S22,MAX($D$22:S22)+1))","v":0},{"$f":"IF(U21=FALSE,0,IF(T22<>0,T22,MAX($D$22:T22)+1))","v":0},{"$f":"IF(V21=FALSE,0,IF(U22<>0,U22,MAX($D$22:U22)+1))","v":0},{"$f":"IF(W21=FALSE,0,IF(V22<>0,V22,MAX($D$22:V22)+1))","v":0},{"$f":"IF(X21=FALSE,0,IF(W22<>0,W22,MAX($D$22:W22)+1))","v":0},{"$f":"IF(Y21=FALSE,0,IF(X22<>0,X22,MAX($D$22:X22)+1))","v":0},{"$f":"IF(Z21=FALSE,0,IF(Y22<>0,Y22,MAX($D$22:Y22)+1))","v":0},{"$f":"IF(AA21=FALSE,0,IF(Z22<>0,Z22,MAX($D$22:Z22)+1))","v":0},{"$f":"IF(AB21=FALSE,0,IF(AA22<>0,AA22,MAX($D$22:AA22)+1))","v":0},{"$f":"IF(AC21=FALSE,0,IF(AB22<>0,AB22,MAX($D$22:AB22)+1))","v":0},{"$f":"IF(AD21=FALSE,0,IF(AC22<>0,AC22,MAX($D$22:AC22)+1))","v":0},{"$f":"IF(AE21=FALSE,0,IF(AD22<>0,AD22,MAX($D$22:AD22)+1))","v":0},{"$f":"IF(AF21=FALSE,0,IF(AE22<>0,AE22,MAX($D$22:AE22)+1))","v":0},{"$f":"IF(AG21=FALSE,0,IF(AF22<>0,AF22,MAX($D$22:AF22)+1))","v":0},{"$f":"IF(AH21=FALSE,0,IF(AG22<>0,AG22,MAX($D$22:AG22)+1))","v":0},{"$f":"IF(AI21=FALSE,0,IF(AH22<>0,AH22,MAX($D$22:AH22)+1))","v":0},{"$f":"IF(AJ21=FALSE,0,IF(AI22<>0,AI22,MAX($D$22:AI22)+1))","v":0},{"$f":"IF(AK21=FALSE,0,IF(AJ22<>0,AJ22,MAX($D$22:AJ22)+1))","v":0},{"$f":"IF(AL21=FALSE,0,IF(AK22<>0,AK22,MAX($D$22:AK22)+1))","v":0},{"$f":"IF(AM21=FALSE,0,IF(AL22<>0,AL22,MAX($D$22:AL22)+1))","v":0},{"$f":"IF(AN21=FALSE,0,IF(AM22<>0,AM22,MAX($D$22:AM22)+1))","v":0},{"$f":"IF(AO21=FALSE,0,IF(AN22<>0,AN22,MAX($D$22:AN22)+1))","v":0},{"$f":"IF(AP21=FALSE,0,IF(AO22<>0,AO22,MAX($D$22:AO22)+1))","v":0},{"$f":"IF(AQ21=FALSE,0,IF(AP22<>0,AP22,MAX($D$22:AP22)+1))","v":0},{"$f":"IF(AR21=FALSE,0,IF(AQ22<>0,AQ22,MAX($D$22:AQ22)+1))","v":0},{"$f":"IF(AS21=FALSE,0,IF(AR22<>0,AR22,MAX($D$22:AR22)+1))","v":0},{"$f":"IF(AT21=FALSE,0,IF(AS22<>0,AS22,MAX($D$22:AS22)+1))","v":0},{"$f":"IF(AU21=FALSE,0,IF(AT22<>0,AT22,MAX($D$22:AT22)+1))","v":0},{"$f":"IF(AV21=FALSE,0,IF(AU22<>0,AU22,MAX($D$22:AU22)+1))","v":0},{"$f":"IF(AW21=FALSE,0,IF(AV22<>0,AV22,MAX($D$22:AV22)+1))","v":0},{"$f":"IF(AX21=FALSE,0,IF(AW22<>0,AW22,MAX($D$22:AW22)+1))","v":0},{"$f":"IF(AY21=FALSE,0,IF(AX22<>0,AX22,MAX($D$22:AX22)+1))","v":0},{"$f":"IF(AZ21=FALSE,0,IF(AY22<>0,AY22,MAX($D$22:AY22)+1))","v":0},{"$f":"IF(BA21=FALSE,0,IF(AZ22<>0,AZ22,MAX($D$22:AZ22)+1))","v":0},{"$f":"IF(BB21=FALSE,0,IF(BA22<>0,BA22,MAX($D$22:BA22)+1))","v":0},{"$f":"IF(BC21=FALSE,0,IF(BB22<>0,BB22,MAX($D$22:BB22)+1))","v":0},{"$f":"IF(BD21=FALSE,0,IF(BC22<>0,BC22,MAX($D$22:BC22)+1))","v":0},{"$f":"IF(BE21=FALSE,0,IF(BD22<>0,BD22,MAX($D$22:BD22)+1))","v":0},{"$f":"IF(BF21=FALSE,0,IF(BE22<>0,BE22,MAX($D$22:BE22)+1))","v":0},{"$f":"IF(BG21=FALSE,0,IF(BF22<>0,BF22,MAX($D$22:BF22)+1))","v":0},{"$f":"IF(BH21=FALSE,0,IF(BG22<>0,BG22,MAX($D$22:BG22)+1))","v":0},{"$f":"IF(BI21=FALSE,0,IF(BH22<>0,BH22,MAX($D$22:BH22)+1))","v":0},{"$f":"IF(BJ21=FALSE,0,IF(BI22<>0,BI22,MAX($D$22:BI22)+1))","v":0},{"$f":"IF(BK21=FALSE,0,IF(BJ22<>0,BJ22,MAX($D$22:BJ22)+1))","v":0},{"$f":"IF(BL21=FALSE,0,IF(BK22<>0,BK22,MAX($D$22:BK22)+1))","v":0},{"$f":"IF(BM21=FALSE,0,IF(BL22<>0,BL22,MAX($D$22:BL22)+1))","v":0},{"$f":"IF(BN21=FALSE,0,IF(BM22<>0,BM22,MAX($D$22:BM22)+1))","v":0},{"$f":"IF(BO21=FALSE,0,IF(BN22<>0,BN22,MAX($D$22:BN22)+1))","v":0},{"$f":"IF(BP21=FALSE,0,IF(BO22<>0,BO22,MAX($D$22:BO22)+1))","v":0},{"$f":"IF(BQ21=FALSE,0,IF(BP22<>0,BP22,MAX($D$22:BP22)+1))","v":0},{"$f":"IF(BR21=FALSE,0,IF(BQ22<>0,BQ22,MAX($D$22:BQ22)+1))","v":0},{"$f":"IF(BS21=FALSE,0,IF(BR22<>0,BR22,MAX($D$22:BR22)+1))","v":0},{"$f":"IF(BT21=FALSE,0,IF(BS22<>0,BS22,MAX($D$22:BS22)+1))","v":0},{"$f":"IF(BU21=FALSE,0,IF(BT22<>0,BT22,MAX($D$22:BT22)+1))","v":0},{"$f":"IF(BV21=FALSE,0,IF(BU22<>0,BU22,MAX($D$22:BU22)+1))","v":0},{"$f":"IF(BW21=FALSE,0,IF(BV22<>0,BV22,MAX($D$22:BV22)+1))","v":0},{"$f":"IF(BX21=FALSE,0,IF(BW22<>0,BW22,MAX($D$22:BW22)+1))","v":0},{"$f":"IF(BY21=FALSE,0,IF(BX22<>0,BX22,MAX($D$22:BX22)+1))","v":0},{"$f":"IF(BZ21=FALSE,0,IF(BY22<>0,BY22,MAX($D$22:BY22)+1))","v":0},{"$f":"IF(CA21=FALSE,0,IF(BZ22<>0,BZ22,MAX($D$22:BZ22)+1))","v":0},{"$f":"IF(CB21=FALSE,0,IF(CA22<>0,CA22,MAX($D$22:CA22)+1))","v":0},{"$f":"IF(CC21=FALSE,0,IF(CB22<>0,CB22,MAX($D$22:CB22)+1))","v":0},{"$f":"IF(CD21=FALSE,0,IF(CC22<>0,CC22,MAX($D$22:CC22)+1))","v":0},{"$f":"IF(CE21=FALSE,0,IF(CD22<>0,CD22,MAX($D$22:CD22)+1))","v":0},{"$f":"IF(CF21=FALSE,0,IF(CE22<>0,CE22,MAX($D$22:CE22)+1))","v":0},{"$f":"IF(CG21=FALSE,0,IF(CF22<>0,CF22,MAX($D$22:CF22)+1))","v":0},{"$f":"IF(CH21=FALSE,0,IF(CG22<>0,CG22,MAX($D$22:CG22)+1))","v":0},{"$f":"IF(CI21=FALSE,0,IF(CH22<>0,CH22,MAX($D$22:CH22)+1))","v":0},{"$f":"IF(CJ21=FALSE,0,IF(CI22<>0,CI22,MAX($D$22:CI22)+1))","v":0},{"$f":"IF(CK21=FALSE,0,IF(CJ22<>0,CJ22,MAX($D$22:CJ22)+1))","v":0},{"$f":"IF(CL21=FALSE,0,IF(CK22<>0,CK22,MAX($D$22:CK22)+1))","v":0},{"$f":"IF(CM21=FALSE,0,IF(CL22<>0,CL22,MAX($D$22:CL22)+1))","v":0},{"$f":"IF(CN21=FALSE,0,IF(CM22<>0,CM22,MAX($D$22:CM22)+1))","v":0},{"$f":"IF(CO21=FALSE,0,IF(CN22<>0,CN22,MAX($D$22:CN22)+1))","v":0},{"$f":"IF(CP21=FALSE,0,IF(CO22<>0,CO22,MAX($D$22:CO22)+1))","v":0},{"$f":"IF(CQ21=FALSE,0,IF(CP22<>0,CP22,MAX($D$22:CP22)+1))","v":0},{"$f":"IF(CR21=FALSE,0,IF(CQ22<>0,CQ22,MAX($D$22:CQ22)+1))","v":0},{"$f":"IF(CS21=FALSE,0,IF(CR22<>0,CR22,MAX($D$22:CR22)+1))","v":0},{"$f":"IF(CT21=FALSE,0,IF(CS22<>0,CS22,MAX($D$22:CS22)+1))","v":0},{"$f":"IF(CU21=FALSE,0,IF(CT22<>0,CT22,MAX($D$22:CT22)+1))","v":0},{"$f":"IF(CV21=FALSE,0,IF(CU22<>0,CU22,MAX($D$22:CU22)+1))","v":0},{"$f":"IF(CW21=FALSE,0,IF(CV22<>0,CV22,MAX($D$22:CV22)+1))","v":0},{"$f":"IF(CX21=FALSE,0,IF(CW22<>0,CW22,MAX($D$22:CW22)+1))","v":0}]
[null,"Total upfront investment cost for given invesment/refurb",null,null,null,null,{"$f":"IF(G21=TRUE,SUMIF($G$22:$CX$22,G22,$G$13:$CY$13),0)","v":0},{"$f":"IF(H21=TRUE,SUMIF($G$22:$CX$22,H22,$G$13:$CY$13),0)","v":0},0,0,0,0,0,0,0,0,0,0,0,0,0,0,{"$f":"IF(W21=TRUE,SUMIF($G$22:$CX$22,W22,$G$13:$CY$13),0)","v":0},{"$f":"IF(X21=TRUE,SUMIF($G$22:$CX$22,X22,$G$13:$CY$13),0)","v":0},{"$f":"IF(Y21=TRUE,SUMIF($G$22:$CX$22,Y22,$G$13:$CY$13),0)","v":0},{"$f":"IF(Z21=TRUE,SUMIF($G$22:$CX$22,Z22,$G$13:$CY$13),0)","v":0},{"$f":"IF(AA21=TRUE,SUMIF($G$22:$CX$22,AA22,$G$13:$CY$13),0)","v":0},{"$f":"IF(AB21=TRUE,SUMIF($G$22:$CX$22,AB22,$G$13:$CY$13),0)","v":0},{"$f":"IF(AC21=TRUE,SUMIF($G$22:$CX$22,AC22,$G$13:$CY$13),0)","v":0},{"$f":"IF(AD21=TRUE,SUMIF($G$22:$CX$22,AD22,$G$13:$CY$13),0)","v":0},0,{"$f":"IF(AF21=TRUE,SUMIF($G$22:$CX$22,AF22,$G$13:$CY$13),0)","v":0},{"$f":"IF(AG21=TRUE,SUMIF($G$22:$CX$22,AG22,$G$13:$CY$13),0)","v":0},{"$f":"IF(AH21=TRUE,SUMIF($G$22:$CX$22,AH22,$G$13:$CY$13),0)","v":0},{"$f":"IF(AI21=TRUE,SUMIF($G$22:$CX$22,AI22,$G$13:$CY$13),0)","v":0},{"$f":"IF(AJ21=TRUE,SUMIF($G$22:$CX$22,AJ22,$G$13:$CY$13),0)","v":0},{"$f":"IF(AK21=TRUE,SUMIF($G$22:$CX$22,AK22,$G$13:$CY$13),0)","v":0},{"$f":"IF(AL21=TRUE,SUMIF($G$22:$CX$22,AL22,$G$13:$CY$13),0)","v":0},{"$f":"IF(AM21=TRUE,SUMIF($G$22:$CX$22,AM22,$G$13:$CY$13),0)","v":0},{"$f":"IF(AN21=TRUE,SUMIF($G$22:$CX$22,AN22,$G$13:$CY$13),0)","v":0},{"$f":"IF(AO21=TRUE,SUMIF($G$22:$CX$22,AO22,$G$13:$CY$13),0)","v":0},{"$f":"IF(AP21=TRUE,SUMIF($G$22:$CX$22,AP22,$G$13:$CY$13),0)","v":0},{"$f":"IF(AQ21=TRUE,SUMIF($G$22:$CX$22,AQ22,$G$13:$CY$13),0)","v":0},{"$f":"IF(AR21=TRUE,SUMIF($G$22:$CX$22,AR22,$G$13:$CY$13),0)","v":0},{"$f":"IF(AS21=TRUE,SUMIF($G$22:$CX$22,AS22,$G$13:$CY$13),0)","v":0},{"$f":"IF(AT21=TRUE,SUMIF($G$22:$CX$22,AT22,$G$13:$CY$13),0)","v":0},0,{"$f":"IF(AV21=TRUE,SUMIF($G$22:$CX$22,AV22,$G$13:$CY$13),0)","v":0},{"$f":"IF(AW21=TRUE,SUMIF($G$22:$CX$22,AW22,$G$13:$CY$13),0)","v":0},{"$f":"IF(AX21=TRUE,SUMIF($G$22:$CX$22,AX22,$G$13:$CY$13),0)","v":0},{"$f":"IF(AY21=TRUE,SUMIF($G$22:$CX$22,AY22,$G$13:$CY$13),0)","v":0},{"$f":"IF(AZ21=TRUE,SUMIF($G$22:$CX$22,AZ22,$G$13:$CY$13),0)","v":0},{"$f":"IF(BA21=TRUE,SUMIF($G$22:$CX$22,BA22,$G$13:$CY$13),0)","v":0},{"$f":"IF(BB21=TRUE,SUMIF($G$22:$CX$22,BB22,$G$13:$CY$13),0)","v":0},0,{"$f":"IF(BD21=TRUE,SUMIF($G$22:$CX$22,BD22,$G$13:$CY$13),0)","v":0},{"$f":"IF(BE21=TRUE,SUMIF($G$22:$CX$22,BE22,$G$13:$CY$13),0)","v":0},{"$f":"IF(BF21=TRUE,SUMIF($G$22:$CX$22,BF22,$G$13:$CY$13),0)","v":0},{"$f":"IF(BG21=TRUE,SUMIF($G$22:$CX$22,BG22,$G$13:$CY$13),0)","v":0},{"$f":"IF(BH21=TRUE,SUMIF($G$22:$CX$22,BH22,$G$13:$CY$13),0)","v":0},{"$f":"IF(BI21=TRUE,SUMIF($G$22:$CX$22,BI22,$G$13:$CY$13),0)","v":0},{"$f":"IF(BJ21=TRUE,SUMIF($G$22:$CX$22,BJ22,$G$13:$CY$13),0)","v":0},{"$f":"IF(BK21=TRUE,SUMIF($G$22:$CX$22,BK22,$G$13:$CY$13),0)","v":0},{"$f":"IF(BL21=TRUE,SUMIF($G$22:$CX$22,BL22,$G$13:$CY$13),0)","v":0},{"$f":"IF(BM21=TRUE,SUMIF($G$22:$CX$22,BM22,$G$13:$CY$13),0)","v":0},{"$f":"IF(BN21=TRUE,SUMIF($G$22:$CX$22,BN22,$G$13:$CY$13),0)","v":0},{"$f":"IF(BO21=TRUE,SUMIF($G$22:$CX$22,BO22,$G$13:$CY$13),0)","v":0},{"$f":"IF(BP21=TRUE,SUMIF($G$22:$CX$22,BP22,$G$13:$CY$13),0)","v":0},{"$f":"IF(BQ21=TRUE,SUMIF($G$22:$CX$22,BQ22,$G$13:$CY$13),0)","v":0},{"$f":"IF(BR21=TRUE,SUMIF($G$22:$CX$22,BR22,$G$13:$CY$13),0)","v":0},0,{"$f":"IF(BT21=TRUE,SUMIF($G$22:$CX$22,BT22,$G$13:$CY$13),0)","v":0},{"$f":"IF(BU21=TRUE,SUMIF($G$22:$CX$22,BU22,$G$13:$CY$13),0)","v":0},{"$f":"IF(BV21=TRUE,SUMIF($G$22:$CX$22,BV22,$G$13:$CY$13),0)","v":0},{"$f":"IF(BW21=TRUE,SUMIF($G$22:$CX$22,BW22,$G$13:$CY$13),0)","v":0},{"$f":"IF(BX21=TRUE,SUMIF($G$22:$CX$22,BX22,$G$13:$CY$13),0)","v":0},{"$f":"IF(BY21=TRUE,SUMIF($G$22:$CX$22,BY22,$G$13:$CY$13),0)","v":0},{"$f":"IF(BZ21=TRUE,SUMIF($G$22:$CX$22,BZ22,$G$13:$CY$13),0)","v":0},0,{"$f":"IF(CB21=TRUE,SUMIF($G$22:$CX$22,CB22,$G$13:$CY$13),0)","v":0},{"$f":"IF(CC21=TRUE,SUMIF($G$22:$CX$22,CC22,$G$13:$CY$13),0)","v":0},{"$f":"IF(CD21=TRUE,SUMIF($G$22:$CX$22,CD22,$G$13:$CY$13),0)","v":0},{"$f":"IF(CE21=TRUE,SUMIF($G$22:$CX$22,CE22,$G$13:$CY$13),0)","v":0},{"$f":"IF(CF21=TRUE,SUMIF($G$22:$CX$22,CF22,$G$13:$CY$13),0)","v":0},{"$f":"IF(CG21=TRUE,SUMIF($G$22:$CX$22,CG22,$G$13:$CY$13),0)","v":0},{"$f":"IF(CH21=TRUE,SUMIF($G$22:$CX$22,CH22,$G$13:$CY$13),0)","v":0},{"$f":"IF(CI21=TRUE,SUMIF($G$22:$CX$22,CI22,$G$13:$CY$13),0)","v":0},{"$f":"IF(CJ21=TRUE,SUMIF($G$22:$CX$22,CJ22,$G$13:$CY$13),0)","v":0},{"$f":"IF(CK21=TRUE,SUMIF($G$22:$CX$22,CK22,$G$13:$CY$13),0)","v":0},{"$f":"IF(CL21=TRUE,SUMIF($G$22:$CX$22,CL22,$G$13:$CY$13),0)","v":0},{"$f":"IF(CM21=TRUE,SUMIF($G$22:$CX$22,CM22,$G$13:$CY$13),0)","v":0},{"$f":"IF(CN21=TRUE,SUMIF($G$22:$CX$22,CN22,$G$13:$CY$13),0)","v":0},{"$f":"IF(CO21=TRUE,SUMIF($G$22:$CX$22,CO22,$G$13:$CY$13),0)","v":0},{"$f":"IF(CP21=TRUE,SUMIF($G$22:$CX$22,CP22,$G$13:$CY$13),0)","v":0},0,{"$f":"IF(CR21=TRUE,SUMIF($G$22:$CX$22,CR22,$G$13:$CY$13),0)","v":0},{"$f":"IF(CS21=TRUE,SUMIF($G$22:$CX$22,CS22,$G$13:$CY$13),0)","v":0},{"$f":"IF(CT21=TRUE,SUMIF($G$22:$CX$22,CT22,$G$13:$CY$13),0)","v":0},{"$f":"IF(CU21=TRUE,SUMIF($G$22:$CX$22,CU22,$G$13:$CY$13),0)","v":0},{"$f":"IF(CV21=TRUE,SUMIF($G$22:$CX$22,CV22,$G$13:$CY$13),0)","v":0},{"$f":"IF(CW21=TRUE,SUMIF($G$22:$CX$22,CW22,$G$13:$CY$13),0)","v":0},{"$f":"IF(CX21=TRUE,SUMIF($G$22:$CX$22,CX22,$G$13:$CY$13),0)","v":0}]
[]
[null,"WACC"]
[null,"Annualised payment","£000's",{"$f":"IFERROR(-PMT('Data Input - General'!$G$16,SUM('Data Input - General'!$F$26:$F$28),D20*1000)/1000,0)","v":291.60690007242755}]
[null,"Annualised payment - additional invesment or refurbishments","£000's",0,0,0,{"$f":"IFERROR(IF(G15=FALSE,0,IF(G21=TRUE,-PMT('Data Input - General'!$G$16,SUM('Data Input - General'!$F$26:$F$28),G23*1000)/1000,0)),0)","v":0},{"$f":"IFERROR(IF(H15=FALSE,0,IF(H21=TRUE,-PMT('Data Input - General'!$G$16,SUM('Data Input - General'!$F$26:$F$28),H23*1000)/1000,0)),0)","v":0},{"$f":"IFERROR(IF(I15=FALSE,0,IF(I21=TRUE,-PMT('Data Input - General'!$G$16,SUM('Data Input - General'!$F$26:$F$28),I23*1000)/1000,0)),0)","v":0},{"$f":"IFERROR(IF(J15=FALSE,0,IF(J21=TRUE,-PMT('Data Input - General'!$G$16,SUM('Data Input - General'!$F$26:$F$28),J23*1000)/1000,0)),0)","v":0},{"$f":"IFERROR(IF(K15=FALSE,0,IF(K21=TRUE,-PMT('Data Input - General'!$G$16,SUM('Data Input - General'!$F$26:$F$28),K23*1000)/1000,0)),0)","v":0},{"$f":"IFERROR(IF(L15=FALSE,0,IF(L21=TRUE,-PMT('Data Input - General'!$G$16,SUM('Data Input - General'!$F$26:$F$28),L23*1000)/1000,0)),0)","v":0},{"$f":"IFERROR(IF(M15=FALSE,0,IF(M21=TRUE,-PMT('Data Input - General'!$G$16,SUM('Data Input - General'!$F$26:$F$28),M23*1000)/1000,0)),0)","v":0},{"$f":"IFERROR(IF(N15=FALSE,0,IF(N21=TRUE,-PMT('Data Input - General'!$G$16,SUM('Data Input - General'!$F$26:$F$28),N23*1000)/1000,0)),0)","v":0},{"$f":"IFERROR(IF(O15=FALSE,0,IF(O21=TRUE,-PMT('Data Input - General'!$G$16,SUM('Data Input - General'!$F$26:$F$28),O23*1000)/1000,0)),0)","v":0},{"$f":"IFERROR(IF(P15=FALSE,0,IF(P21=TRUE,-PMT('Data Input - General'!$G$16,SUM('Data Input - General'!$F$26:$F$28),P23*1000)/1000,0)),0)","v":0},{"$f":"IFERROR(IF(Q15=FALSE,0,IF(Q21=TRUE,-PMT('Data Input - General'!$G$16,SUM('Data Input - General'!$F$26:$F$28),Q23*1000)/1000,0)),0)","v":0},{"$f":"IFERROR(IF(R15=FALSE,0,IF(R21=TRUE,-PMT('Data Input - General'!$G$16,SUM('Data Input - General'!$F$26:$F$28),R23*1000)/1000,0)),0)","v":0},{"$f":"IFERROR(IF(S15=FALSE,0,IF(S21=TRUE,-PMT('Data Input - General'!$G$16,SUM('Data Input - General'!$F$26:$F$28),S23*1000)/1000,0)),0)","v":0},{"$f":"IFERROR(IF(T15=FALSE,0,IF(T21=TRUE,-PMT('Data Input - General'!$G$16,SUM('Data Input - General'!$F$26:$F$28),T23*1000)/1000,0)),0)","v":0},{"$f":"IFERROR(IF(U15=FALSE,0,IF(U21=TRUE,-PMT('Data Input - General'!$G$16,SUM('Data Input - General'!$F$26:$F$28),U23*1000)/1000,0)),0)","v":0},{"$f":"IFERROR(IF(V15=FALSE,0,IF(V21=TRUE,-PMT('Data Input - General'!$G$16,SUM('Data Input - General'!$F$26:$F$28),V23*1000)/1000,0)),0)","v":0},{"$f":"IFERROR(IF(W15=FALSE,0,IF(W21=TRUE,-PMT('Data Input - General'!$G$16,SUM('Data Input - General'!$F$26:$F$28),W23*1000)/1000,0)),0)","v":0},{"$f":"IFERROR(IF(X15=FALSE,0,IF(X21=TRUE,-PMT('Data Input - General'!$G$16,SUM('Data Input - General'!$F$26:$F$28),X23*1000)/1000,0)),0)","v":0},{"$f":"IFERROR(IF(Y15=FALSE,0,IF(Y21=TRUE,-PMT('Data Input - General'!$G$16,SUM('Data Input - General'!$F$26:$F$28),Y23*1000)/1000,0)),0)","v":0},{"$f":"IFERROR(IF(Z15=FALSE,0,IF(Z21=TRUE,-PMT('Data Input - General'!$G$16,SUM('Data Input - General'!$F$26:$F$28),Z23*1000)/1000,0)),0)","v":0},{"$f":"IFERROR(IF(AA15=FALSE,0,IF(AA21=TRUE,-PMT('Data Input - General'!$G$16,SUM('Data Input - General'!$F$26:$F$28),AA23*1000)/1000,0)),0)","v":0},{"$f":"IFERROR(IF(AB15=FALSE,0,IF(AB21=TRUE,-PMT('Data Input - General'!$G$16,SUM('Data Input - General'!$F$26:$F$28),AB23*1000)/1000,0)),0)","v":0},{"$f":"IFERROR(IF(AC15=FALSE,0,IF(AC21=TRUE,-PMT('Data Input - General'!$G$16,SUM('Data Input - General'!$F$26:$F$28),AC23*1000)/1000,0)),0)","v":0},{"$f":"IFERROR(IF(AD15=FALSE,0,IF(AD21=TRUE,-PMT('Data Input - General'!$G$16,SUM('Data Input - General'!$F$26:$F$28),AD23*1000)/1000,0)),0)","v":0},{"$f":"IFERROR(IF(AE15=FALSE,0,IF(AE21=TRUE,-PMT('Data Input - General'!$G$16,SUM('Data Input - General'!$F$26:$F$28),AE23*1000)/1000,0)),0)","v":0},{"$f":"IFERROR(IF(AF15=FALSE,0,IF(AF21=TRUE,-PMT('Data Input - General'!$G$16,SUM('Data Input - General'!$F$26:$F$28),AF23*1000)/1000,0)),0)","v":0},{"$f":"IFERROR(IF(AG15=FALSE,0,IF(AG21=TRUE,-PMT('Data Input - General'!$G$16,SUM('Data Input - General'!$F$26:$F$28),AG23*1000)/1000,0)),0)","v":0},{"$f":"IFERROR(IF(AH15=FALSE,0,IF(AH21=TRUE,-PMT('Data Input - General'!$G$16,SUM('Data Input - General'!$F$26:$F$28),AH23*1000)/1000,0)),0)","v":0},{"$f":"IFERROR(IF(AI15=FALSE,0,IF(AI21=TRUE,-PMT('Data Input - General'!$G$16,SUM('Data Input - General'!$F$26:$F$28),AI23*1000)/1000,0)),0)","v":0},{"$f":"IFERROR(IF(AJ15=FALSE,0,IF(AJ21=TRUE,-PMT('Data Input - General'!$G$16,SUM('Data Input - General'!$F$26:$F$28),AJ23*1000)/1000,0)),0)","v":0},{"$f":"IFERROR(IF(AK15=FALSE,0,IF(AK21=TRUE,-PMT('Data Input - General'!$G$16,SUM('Data Input - General'!$F$26:$F$28),AK23*1000)/1000,0)),0)","v":0},{"$f":"IFERROR(IF(AL15=FALSE,0,IF(AL21=TRUE,-PMT('Data Input - General'!$G$16,SUM('Data Input - General'!$F$26:$F$28),AL23*1000)/1000,0)),0)","v":0},{"$f":"IFERROR(IF(AM15=FALSE,0,IF(AM21=TRUE,-PMT('Data Input - General'!$G$16,SUM('Data Input - General'!$F$26:$F$28),AM23*1000)/1000,0)),0)","v":0},{"$f":"IFERROR(IF(AN15=FALSE,0,IF(AN21=TRUE,-PMT('Data Input - General'!$G$16,SUM('Data Input - General'!$F$26:$F$28),AN23*1000)/1000,0)),0)","v":0},{"$f":"IFERROR(IF(AO15=FALSE,0,IF(AO21=TRUE,-PMT('Data Input - General'!$G$16,SUM('Data Input - General'!$F$26:$F$28),AO23*1000)/1000,0)),0)","v":0},{"$f":"IFERROR(IF(AP15=FALSE,0,IF(AP21=TRUE,-PMT('Data Input - General'!$G$16,SUM('Data Input - General'!$F$26:$F$28),AP23*1000)/1000,0)),0)","v":0},{"$f":"IFERROR(IF(AQ15=FALSE,0,IF(AQ21=TRUE,-PMT('Data Input - General'!$G$16,SUM('Data Input - General'!$F$26:$F$28),AQ23*1000)/1000,0)),0)","v":0},{"$f":"IFERROR(IF(AR15=FALSE,0,IF(AR21=TRUE,-PMT('Data Input - General'!$G$16,SUM('Data Input - General'!$F$26:$F$28),AR23*1000)/1000,0)),0)","v":0},{"$f":"IFERROR(IF(AS15=FALSE,0,IF(AS21=TRUE,-PMT('Data Input - General'!$G$16,SUM('Data Input - General'!$F$26:$F$28),AS23*1000)/1000,0)),0)","v":0},{"$f":"IFERROR(IF(AT15=FALSE,0,IF(AT21=TRUE,-PMT('Data Input - General'!$G$16,SUM('Data Input - General'!$F$26:$F$28),AT23*1000)/1000,0)),0)","v":0},{"$f":"IFERROR(IF(AU15=FALSE,0,IF(AU21=TRUE,-PMT('Data Input - General'!$G$16,SUM('Data Input - General'!$F$26:$F$28),AU23*1000)/1000,0)),0)","v":0},{"$f":"IFERROR(IF(AV15=FALSE,0,IF(AV21=TRUE,-PMT('Data Input - General'!$G$16,SUM('Data Input - General'!$F$26:$F$28),AV23*1000)/1000,0)),0)","v":0},{"$f":"IFERROR(IF(AW15=FALSE,0,IF(AW21=TRUE,-PMT('Data Input - General'!$G$16,SUM('Data Input - General'!$F$26:$F$28),AW23*1000)/1000,0)),0)","v":0},{"$f":"IFERROR(IF(AX15=FALSE,0,IF(AX21=TRUE,-PMT('Data Input - General'!$G$16,SUM('Data Input - General'!$F$26:$F$28),AX23*1000)/1000,0)),0)","v":0},{"$f":"IFERROR(IF(AY15=FALSE,0,IF(AY21=TRUE,-PMT('Data Input - General'!$G$16,SUM('Data Input - General'!$F$26:$F$28),AY23*1000)/1000,0)),0)","v":0},{"$f":"IFERROR(IF(AZ15=FALSE,0,IF(AZ21=TRUE,-PMT('Data Input - General'!$G$16,SUM('Data Input - General'!$F$26:$F$28),AZ23*1000)/1000,0)),0)","v":0},{"$f":"IFERROR(IF(BA15=FALSE,0,IF(BA21=TRUE,-PMT('Data Input - General'!$G$16,SUM('Data Input - General'!$F$26:$F$28),BA23*1000)/1000,0)),0)","v":0},{"$f":"IFERROR(IF(BB15=FALSE,0,IF(BB21=TRUE,-PMT('Data Input - General'!$G$16,SUM('Data Input - General'!$F$26:$F$28),BB23*1000)/1000,0)),0)","v":0},{"$f":"IFERROR(IF(BC15=FALSE,0,IF(BC21=TRUE,-PMT('Data Input - General'!$G$16,SUM('Data Input - General'!$F$26:$F$28),BC23*1000)/1000,0)),0)","v":0},{"$f":"IFERROR(IF(BD15=FALSE,0,IF(BD21=TRUE,-PMT('Data Input - General'!$G$16,SUM('Data Input - General'!$F$26:$F$28),BD23*1000)/1000,0)),0)","v":0},{"$f":"IFERROR(IF(BE15=FALSE,0,IF(BE21=TRUE,-PMT('Data Input - General'!$G$16,SUM('Data Input - General'!$F$26:$F$28),BE23*1000)/1000,0)),0)","v":0},{"$f":"IFERROR(IF(BF15=FALSE,0,IF(BF21=TRUE,-PMT('Data Input - General'!$G$16,SUM('Data Input - General'!$F$26:$F$28),BF23*1000)/1000,0)),0)","v":0},{"$f":"IFERROR(IF(BG15=FALSE,0,IF(BG21=TRUE,-PMT('Data Input - General'!$G$16,SUM('Data Input - General'!$F$26:$F$28),BG23*1000)/1000,0)),0)","v":0},{"$f":"IFERROR(IF(BH15=FALSE,0,IF(BH21=TRUE,-PMT('Data Input - General'!$G$16,SUM('Data Input - General'!$F$26:$F$28),BH23*1000)/1000,0)),0)","v":0},{"$f":"IFERROR(IF(BI15=FALSE,0,IF(BI21=TRUE,-PMT('Data Input - General'!$G$16,SUM('Data Input - General'!$F$26:$F$28),BI23*1000)/1000,0)),0)","v":0},{"$f":"IFERROR(IF(BJ15=FALSE,0,IF(BJ21=TRUE,-PMT('Data Input - General'!$G$16,SUM('Data Input - General'!$F$26:$F$28),BJ23*1000)/1000,0)),0)","v":0},{"$f":"IFERROR(IF(BK15=FALSE,0,IF(BK21=TRUE,-PMT('Data Input - General'!$G$16,SUM('Data Input - General'!$F$26:$F$28),BK23*1000)/1000,0)),0)","v":0},{"$f":"IFERROR(IF(BL15=FALSE,0,IF(BL21=TRUE,-PMT('Data Input - General'!$G$16,SUM('Data Input - General'!$F$26:$F$28),BL23*1000)/1000,0)),0)","v":0},{"$f":"IFERROR(IF(BM15=FALSE,0,IF(BM21=TRUE,-PMT('Data Input - General'!$G$16,SUM('Data Input - General'!$F$26:$F$28),BM23*1000)/1000,0)),0)","v":0},{"$f":"IFERROR(IF(BN15=FALSE,0,IF(BN21=TRUE,-PMT('Data Input - General'!$G$16,SUM('Data Input - General'!$F$26:$F$28),BN23*1000)/1000,0)),0)","v":0},{"$f":"IFERROR(IF(BO15=FALSE,0,IF(BO21=TRUE,-PMT('Data Input - General'!$G$16,SUM('Data Input - General'!$F$26:$F$28),BO23*1000)/1000,0)),0)","v":0},{"$f":"IFERROR(IF(BP15=FALSE,0,IF(BP21=TRUE,-PMT('Data Input - General'!$G$16,SUM('Data Input - General'!$F$26:$F$28),BP23*1000)/1000,0)),0)","v":0},{"$f":"IFERROR(IF(BQ15=FALSE,0,IF(BQ21=TRUE,-PMT('Data Input - General'!$G$16,SUM('Data Input - General'!$F$26:$F$28),BQ23*1000)/1000,0)),0)","v":0},{"$f":"IFERROR(IF(BR15=FALSE,0,IF(BR21=TRUE,-PMT('Data Input - General'!$G$16,SUM('Data Input - General'!$F$26:$F$28),BR23*1000)/1000,0)),0)","v":0},{"$f":"IFERROR(IF(BS15=FALSE,0,IF(BS21=TRUE,-PMT('Data Input - General'!$G$16,SUM('Data Input - General'!$F$26:$F$28),BS23*1000)/1000,0)),0)","v":0},{"$f":"IFERROR(IF(BT15=FALSE,0,IF(BT21=TRUE,-PMT('Data Input - General'!$G$16,SUM('Data Input - General'!$F$26:$F$28),BT23*1000)/1000,0)),0)","v":0},{"$f":"IFERROR(IF(BU15=FALSE,0,IF(BU21=TRUE,-PMT('Data Input - General'!$G$16,SUM('Data Input - General'!$F$26:$F$28),BU23*1000)/1000,0)),0)","v":0},{"$f":"IFERROR(IF(BV15=FALSE,0,IF(BV21=TRUE,-PMT('Data Input - General'!$G$16,SUM('Data Input - General'!$F$26:$F$28),BV23*1000)/1000,0)),0)","v":0},{"$f":"IFERROR(IF(BW15=FALSE,0,IF(BW21=TRUE,-PMT('Data Input - General'!$G$16,SUM('Data Input - General'!$F$26:$F$28),BW23*1000)/1000,0)),0)","v":0},{"$f":"IFERROR(IF(BX15=FALSE,0,IF(BX21=TRUE,-PMT('Data Input - General'!$G$16,SUM('Data Input - General'!$F$26:$F$28),BX23*1000)/1000,0)),0)","v":0},{"$f":"IFERROR(IF(BY15=FALSE,0,IF(BY21=TRUE,-PMT('Data Input - General'!$G$16,SUM('Data Input - General'!$F$26:$F$28),BY23*1000)/1000,0)),0)","v":0},{"$f":"IFERROR(IF(BZ15=FALSE,0,IF(BZ21=TRUE,-PMT('Data Input - General'!$G$16,SUM('Data Input - General'!$F$26:$F$28),BZ23*1000)/1000,0)),0)","v":0},{"$f":"IFERROR(IF(CA15=FALSE,0,IF(CA21=TRUE,-PMT('Data Input - General'!$G$16,SUM('Data Input - General'!$F$26:$F$28),CA23*1000)/1000,0)),0)","v":0},{"$f":"IFERROR(IF(CB15=FALSE,0,IF(CB21=TRUE,-PMT('Data Input - General'!$G$16,SUM('Data Input - General'!$F$26:$F$28),CB23*1000)/1000,0)),0)","v":0},{"$f":"IFERROR(IF(CC15=FALSE,0,IF(CC21=TRUE,-PMT('Data Input - General'!$G$16,SUM('Data Input - General'!$F$26:$F$28),CC23*1000)/1000,0)),0)","v":0},{"$f":"IFERROR(IF(CD15=FALSE,0,IF(CD21=TRUE,-PMT('Data Input - General'!$G$16,SUM('Data Input - General'!$F$26:$F$28),CD23*1000)/1000,0)),0)","v":0},{"$f":"IFERROR(IF(CE15=FALSE,0,IF(CE21=TRUE,-PMT('Data Input - General'!$G$16,SUM('Data Input - General'!$F$26:$F$28),CE23*1000)/1000,0)),0)","v":0},{"$f":"IFERROR(IF(CF15=FALSE,0,IF(CF21=TRUE,-PMT('Data Input - General'!$G$16,SUM('Data Input - General'!$F$26:$F$28),CF23*1000)/1000,0)),0)","v":0},{"$f":"IFERROR(IF(CG15=FALSE,0,IF(CG21=TRUE,-PMT('Data Input - General'!$G$16,SUM('Data Input - General'!$F$26:$F$28),CG23*1000)/1000,0)),0)","v":0},{"$f":"IFERROR(IF(CH15=FALSE,0,IF(CH21=TRUE,-PMT('Data Input - General'!$G$16,SUM('Data Input - General'!$F$26:$F$28),CH23*1000)/1000,0)),0)","v":0},{"$f":"IFERROR(IF(CI15=FALSE,0,IF(CI21=TRUE,-PMT('Data Input - General'!$G$16,SUM('Data Input - General'!$F$26:$F$28),CI23*1000)/1000,0)),0)","v":0},{"$f":"IFERROR(IF(CJ15=FALSE,0,IF(CJ21=TRUE,-PMT('Data Input - General'!$G$16,SUM('Data Input - General'!$F$26:$F$28),CJ23*1000)/1000,0)),0)","v":0},{"$f":"IFERROR(IF(CK15=FALSE,0,IF(CK21=TRUE,-PMT('Data Input - General'!$G$16,SUM('Data Input - General'!$F$26:$F$28),CK23*1000)/1000,0)),0)","v":0},{"$f":"IFERROR(IF(CL15=FALSE,0,IF(CL21=TRUE,-PMT('Data Input - General'!$G$16,SUM('Data Input - General'!$F$26:$F$28),CL23*1000)/1000,0)),0)","v":0},{"$f":"IFERROR(IF(CM15=FALSE,0,IF(CM21=TRUE,-PMT('Data Input - General'!$G$16,SUM('Data Input - General'!$F$26:$F$28),CM23*1000)/1000,0)),0)","v":0},{"$f":"IFERROR(IF(CN15=FALSE,0,IF(CN21=TRUE,-PMT('Data Input - General'!$G$16,SUM('Data Input - General'!$F$26:$F$28),CN23*1000)/1000,0)),0)","v":0},{"$f":"IFERROR(IF(CO15=FALSE,0,IF(CO21=TRUE,-PMT('Data Input - General'!$G$16,SUM('Data Input - General'!$F$26:$F$28),CO23*1000)/1000,0)),0)","v":0},{"$f":"IFERROR(IF(CP15=FALSE,0,IF(CP21=TRUE,-PMT('Data Input - General'!$G$16,SUM('Data Input - General'!$F$26:$F$28),CP23*1000)/1000,0)),0)","v":0},{"$f":"IFERROR(IF(CQ15=FALSE,0,IF(CQ21=TRUE,-PMT('Data Input - General'!$G$16,SUM('Data Input - General'!$F$26:$F$28),CQ23*1000)/1000,0)),0)","v":0},{"$f":"IFERROR(IF(CR15=FALSE,0,IF(CR21=TRUE,-PMT('Data Input - General'!$G$16,SUM('Data Input - General'!$F$26:$F$28),CR23*1000)/1000,0)),0)","v":0},{"$f":"IFERROR(IF(CS15=FALSE,0,IF(CS21=TRUE,-PMT('Data Input - General'!$G$16,SUM('Data Input - General'!$F$26:$F$28),CS23*1000)/1000,0)),0)","v":0},{"$f":"IFERROR(IF(CT15=FALSE,0,IF(CT21=TRUE,-PMT('Data Input - General'!$G$16,SUM('Data Input - General'!$F$26:$F$28),CT23*1000)/1000,0)),0)","v":0},{"$f":"IFERROR(IF(CU15=FALSE,0,IF(CU21=TRUE,-PMT('Data Input - General'!$G$16,SUM('Data Input - General'!$F$26:$F$28),CU23*1000)/1000,0)),0)","v":0},{"$f":"IFERROR(IF(CV15=FALSE,0,IF(CV21=TRUE,-PMT('Data Input - General'!$G$16,SUM('Data Input - General'!$F$26:$F$28),CV23*1000)/1000,0)),0)","v":0},{"$f":"IFERROR(IF(CW15=FALSE,0,IF(CW21=TRUE,-PMT('Data Input - General'!$G$16,SUM('Data Input - General'!$F$26:$F$28),CW23*1000)/1000,0)),0)","v":0},{"$f":"IFERROR(IF(CX15=FALSE,0,IF(CX21=TRUE,-PMT('Data Input - General'!$G$16,SUM('Data Input - General'!$F$26:$F$28),CX23*1000)/1000,0)),0)","v":0},{"$f":"IFERROR(IF(CY15=FALSE,0,IF(CY21=TRUE,-PMT('Data Input - General'!$G$16,SUM('Data Input - General'!$F$26:$F$28),CY23*1000)/1000,0)),0)","v":0}]
[null,"Cummulative annualised payment","£000's",0,0,0,{"$f":"IF(G27=0,F28,IF(F27=G27,F28,F28+G27))","v":0},{"$f":"IF(H27=0,G28,IF(G27=H27,G28,G28+H27))","v":0},0,0,0,0,0,0,0,0,0,0,0,0,0,0,0,0,0,0,0,0,0,0,0,0,0,0,0,0,0,0,0,0,0,0,0,0,0,0,0,0,0,0,0,0,0,0,0,0,0,0,0,0,0,0,0,0,0,0,0,0,0,0,0,{"$f":"IF(BT27=0,BS28,IF(BS27=BT27,BS28,BS28+BT27))","v":0},0,0,0,0,0,0,0,0,0,0,0,0,0,0,0,0,0,0,0,0,0,0,0,0,0,0,0,0,0,0,0]
[null,"Annual value (taking into account installation year)","£000's",{"$f":"IF(D15=FALSE,0,IF(D28=0,$D$26,D28))","v":291.60690007242755},{"$f":"IF(E15=FALSE,0,IF(E28=0,$D$26,E28))","v":291.60690007242755},291.60690007242755,291.60690007242755,291.60690007242755,291.60690007242755,291.60690007242755,291.60690007242755,291.60690007242755,291.60690007242755,291.60690007242755,291.60690007242755,291.60690007242755,291.60690007242755,291.60690007242755,291.60690007242755,291.60690007242755,291.60690007242755,291.60690007242755,291.60690007242755,291.60690007242755,291.60690007242755,291.60690007242755,291.60690007242755,291.60690007242755,291.60690007242755,291.60690007242755,291.60690007242755,291.60690007242755,291.60690007242755,291.60690007242755,291.60690007242755,291.60690007242755,291.60690007242755,291.60690007242755,291.60690007242755,291.60690007242755,291.60690007242755,291.60690007242755,291.60690007242755,291.60690007242755,291.60690007242755,291.60690007242755,291.60690007242755,291.60690007242755,291.60690007242755,291.60690007242755,291.60690007242755,291.60690007242755,291.60690007242755,291.60690007242755,291.60690007242755,291.60690007242755,291.60690007242755,291.60690007242755,291.60690007242755,291.60690007242755,291.60690007242755,291.60690007242755,291.60690007242755,291.60690007242755,291.60690007242755,291.60690007242755,291.60690007242755,291.60690007242755,{"$f":"IF(BQ15=FALSE,0,IF(BQ28=0,$D$26,BQ28))","v":291.60690007242755},291.60690007242755,291.60690007242755,291.60690007242755,291.60690007242755,291.60690007242755,291.60690007242755,291.60690007242755,291.60690007242755,291.60690007242755,291.60690007242755,291.60690007242755,291.60690007242755,291.60690007242755,291.60690007242755,291.60690007242755,291.60690007242755,291.60690007242755,291.60690007242755,291.60690007242755,291.60690007242755,291.60690007242755,291.60690007242755,291.60690007242755,291.60690007242755,291.60690007242755,291.60690007242755,291.60690007242755,291.60690007242755,291.60690007242755,291.60690007242755,291.60690007242755,291.60690007242755,291.60690007242755,0]
[null,"Discounted annual value","£000's",{"$f":"D29*D$7","v":291.60690007242755},{"$f":"E29*E$7","v":281.74579717142763},272.21816151828756,263.01271644278995,254.11856661139126,245.52518513177901,237.22240109350631,229.20038752995779,221.44964978739887,213.96101428734192,206.7256176689294,199.73489629848254,192.98057613379959,186.45466293120734,180.14943278377521,174.05742297949297,168.17142316859224,162.48446682955776,156.9898230237273,151.68098842872203,146.55167964127733,141.5958257403646,136.80756110180155,132.18121845584693,127.71132217956226,123.39258181600219,119.21988581256252,115.18829547107491,111.29303910248784,107.52950637921532,104.39757900894691,0,0,0,0,0,0,0,0,0,0,0,0,0,0,0,0,0,0,0,0,0,0,0,0,0,0,0,0,0,0,0,0,0,0,{"$f":"BQ29*BQ$7","v":0},0,0,0,0,0,0,0,0,0,0,0,0,0,0,0,0,0,0,0,0,0,0,0,0,0,0,0,0,0,0,0,0,0,0]
[]
[null,"Cost of Capital (finance)"]
[null,"Financing costs (when entered manually)","£000's",{"$f":"'Data Input - BAU'!H39","v":0},{"$f":"'Data Input - BAU'!I39","v":0},{"$f":"'Data Input - BAU'!J39","v":0},{"$f":"'Data Input - BAU'!K39","v":0},{"$f":"'Data Input - BAU'!L39","v":0},{"$f":"'Data Input - BAU'!M39","v":0},{"$f":"'Data Input - BAU'!N39","v":0},{"$f":"'Data Input - BAU'!O39","v":0},{"$f":"'Data Input - BAU'!P39","v":0},{"$f":"'Data Input - BAU'!Q39","v":0},{"$f":"'Data Input - BAU'!R39","v":0},{"$f":"'Data Input - BAU'!S39","v":0},{"$f":"'Data Input - BAU'!T39","v":0},{"$f":"'Data Input - BAU'!U39","v":0},{"$f":"'Data Input - BAU'!V39","v":0},{"$f":"'Data Input - BAU'!W39","v":0},{"$f":"'Data Input - BAU'!X39","v":0},{"$f":"'Data Input - BAU'!Y39","v":0},{"$f":"'Data Input - BAU'!Z39","v":0},{"$f":"'Data Input - BAU'!AA39","v":0},{"$f":"'Data Input - BAU'!AB39","v":0},{"$f":"'Data Input - BAU'!AC39","v":0},{"$f":"'Data Input - BAU'!AD39","v":0},{"$f":"'Data Input - BAU'!AE39","v":0},{"$f":"'Data Input - BAU'!AF39","v":0},{"$f":"'Data Input - BAU'!AG39","v":0},{"$f":"'Data Input - BAU'!AH39","v":0},{"$f":"'Data Input - BAU'!AI39","v":0},{"$f":"'Data Input - BAU'!AJ39","v":0},{"$f":"'Data Input - BAU'!AK39","v":0},{"$f":"'Data Input - BAU'!AL39","v":0},{"$f":"'Data Input - BAU'!AM39","v":0},{"$f":"'Data Input - BAU'!AN39","v":0},{"$f":"'Data Input - BAU'!AO39","v":0},{"$f":"'Data Input - BAU'!AP39","v":0},{"$f":"'Data Input - BAU'!AQ39","v":0},{"$f":"'Data Input - BAU'!AR39","v":0},{"$f":"'Data Input - BAU'!AS39","v":0},{"$f":"'Data Input - BAU'!AT39","v":0},{"$f":"'Data Input - BAU'!AU39","v":0},{"$f":"'Data Input - BAU'!AV39","v":0},{"$f":"'Data Input - BAU'!AW39","v":0},{"$f":"'Data Input - BAU'!AX39","v":0},{"$f":"'Data Input - BAU'!AY39","v":0},{"$f":"'Data Input - BAU'!AZ39","v":0},{"$f":"'Data Input - BAU'!BA39","v":0},{"$f":"'Data Input - BAU'!BB39","v":0},{"$f":"'Data Input - BAU'!BC39","v":0},{"$f":"'Data Input - BAU'!BD39","v":0},{"$f":"'Data Input - BAU'!BE39","v":0},{"$f":"'Data Input - BAU'!BF39","v":0},{"$f":"'Data Input - BAU'!BG39","v":0},{"$f":"'Data Input - BAU'!BH39","v":0},{"$f":"'Data Input - BAU'!BI39","v":0},{"$f":"'Data Input - BAU'!BJ39","v":0},{"$f":"'Data Input - BAU'!BK39","v":0},{"$f":"'Data Input - BAU'!BL39","v":0},{"$f":"'Data Input - BAU'!BM39","v":0},{"$f":"'Data Input - BAU'!BN39","v":0},{"$f":"'Data Input - BAU'!BO39","v":0},{"$f":"'Data Input - BAU'!BP39","v":0},{"$f":"'Data Input - BAU'!BQ39","v":0},{"$f":"'Data Input - BAU'!BR39","v":0},{"$f":"'Data Input - BAU'!BS39","v":0},{"$f":"'Data Input - BAU'!BT39","v":0},{"$f":"'Data Input - BAU'!BU39","v":0},{"$f":"'Data Input - BAU'!BV39","v":0},{"$f":"'Data Input - BAU'!BW39","v":0},{"$f":"'Data Input - BAU'!BX39","v":0},{"$f":"'Data Input - BAU'!BY39","v":0},{"$f":"'Data Input - BAU'!BZ39","v":0},{"$f":"'Data Input - BAU'!CA39","v":0},{"$f":"'Data Input - BAU'!CB39","v":0},{"$f":"'Data Input - BAU'!CC39","v":0},{"$f":"'Data Input - BAU'!CD39","v":0},{"$f":"'Data Input - BAU'!CE39","v":0},{"$f":"'Data Input - BAU'!CF39","v":0},{"$f":"'Data Input - BAU'!CG39","v":0},{"$f":"'Data Input - BAU'!CH39","v":0},{"$f":"'Data Input - BAU'!CI39","v":0},{"$f":"'Data Input - BAU'!CJ39","v":0},{"$f":"'Data Input - BAU'!CK39","v":0},{"$f":"'Data Input - BAU'!CL39","v":0},{"$f":"'Data Input - BAU'!CM39","v":0},{"$f":"'Data Input - BAU'!CN39","v":0},{"$f":"'Data Input - BAU'!CO39","v":0},{"$f":"'Data Input - BAU'!CP39","v":0},{"$f":"'Data Input - BAU'!CQ39","v":0},{"$f":"'Data Input - BAU'!CR39","v":0},{"$f":"'Data Input - BAU'!CS39","v":0},{"$f":"'Data Input - BAU'!CT39","v":0},{"$f":"'Data Input - BAU'!CU39","v":0},{"$f":"'Data Input - BAU'!CV39","v":0},{"$f":"'Data Input - BAU'!CW39","v":0},{"$f":"'Data Input - BAU'!CX39","v":0},{"$f":"'Data Input - BAU'!CY39","v":0},{"$f":"'Data Input - BAU'!CZ39","v":0},{"$f":"'Data Input - BAU'!DA39","v":0},{"$f":"'Data Input - BAU'!DB39","v":0},{"$f":"'Data Input - BAU'!DC39","v":0}]
[null,"Discounted finacning","£000's",{"$f":"D33*D$7","v":0},{"$f":"E33*E$7","v":0},{"$f":"F33*F$7","v":0},0,0,0,0,0,0,0,0,0,0,0,0,0,0,0,0,0,0,0,0,0,0,0,0,0,0,0,0,0,0,0,0,0,0,0,0,0,0,0,0,0,0,0,0,0,0,0,0,0,0,0,0,0,0,0,0,0,0,0,0,0,0,{"$f":"BQ33*BQ$7","v":0},0,0,0,0,0,0,0,0,0,0,0,0,0,0,0,0,0,0,0,0,0,0,0,0,0,0,0,0,0,0,0,0,0,0]
[]
[null,"Total capex","£000's",{"$f":"IF('Data Input - BAU'!$F$37=\"Yes\",D34+D13,D30)","v":291.60690007242755},{"$f":"IF('Data Input - BAU'!$F$37=\"Yes\",E34+E13,E30)","v":281.74579717142763},{"$f":"IF('Data Input - BAU'!$F$37=\"Yes\",F34+F13,F30)","v":272.21816151828756},{"$f":"IF('Data Input - BAU'!$F$37=\"Yes\",G34+G13,G30)","v":263.01271644278995},{"$f":"IF('Data Input - BAU'!$F$37=\"Yes\",H34+H13,H30)","v":254.11856661139126},{"$f":"IF('Data Input - BAU'!$F$37=\"Yes\",I34+I13,I30)","v":245.52518513177901},{"$f":"IF('Data Input - BAU'!$F$37=\"Yes\",J34+J13,J30)","v":237.22240109350631},{"$f":"IF('Data Input - BAU'!$F$37=\"Yes\",K34+K13,K30)","v":229.20038752995779},{"$f":"IF('Data Input - BAU'!$F$37=\"Yes\",L34+L13,L30)","v":221.44964978739887},{"$f":"IF('Data Input - BAU'!$F$37=\"Yes\",M34+M13,M30)","v":213.96101428734192},{"$f":"IF('Data Input - BAU'!$F$37=\"Yes\",N34+N13,N30)","v":206.7256176689294},{"$f":"IF('Data Input - BAU'!$F$37=\"Yes\",O34+O13,O30)","v":199.73489629848254},{"$f":"IF('Data Input - BAU'!$F$37=\"Yes\",P34+P13,P30)","v":192.98057613379959},{"$f":"IF('Data Input - BAU'!$F$37=\"Yes\",Q34+Q13,Q30)","v":186.45466293120734},{"$f":"IF('Data Input - BAU'!$F$37=\"Yes\",R34+R13,R30)","v":180.14943278377521},{"$f":"IF('Data Input - BAU'!$F$37=\"Yes\",S34+S13,S30)","v":174.05742297949297},{"$f":"IF('Data Input - BAU'!$F$37=\"Yes\",T34+T13,T30)","v":168.17142316859224},{"$f":"IF('Data Input - BAU'!$F$37=\"Yes\",U34+U13,U30)","v":162.48446682955776},{"$f":"IF('Data Input - BAU'!$F$37=\"Yes\",V34+V13,V30)","v":156.9898230237273},{"$f":"IF('Data Input - BAU'!$F$37=\"Yes\",W34+W13,W30)","v":151.68098842872203},{"$f":"IF('Data Input - BAU'!$F$37=\"Yes\",X34+X13,X30)","v":146.55167964127733},{"$f":"IF('Data Input - BAU'!$F$37=\"Yes\",Y34+Y13,Y30)","v":141.5958257403646},{"$f":"IF('Data Input - BAU'!$F$37=\"Yes\",Z34+Z13,Z30)","v":136.80756110180155},{"$f":"IF('Data Input - BAU'!$F$37=\"Yes\",AA34+AA13,AA30)","v":132.18121845584693},{"$f":"IF('Data Input - BAU'!$F$37=\"Yes\",AB34+AB13,AB30)","v":127.71132217956226},{"$f":"IF('Data Input - BAU'!$F$37=\"Yes\",AC34+AC13,AC30)","v":123.39258181600219},{"$f":"IF('Data Input - BAU'!$F$37=\"Yes\",AD34+AD13,AD30)","v":119.21988581256252},{"$f":"IF('Data Input - BAU'!$F$37=\"Yes\",AE34+AE13,AE30)","v":115.18829547107491},{"$f":"IF('Data Input - BAU'!$F$37=\"Yes\",AF34+AF13,AF30)","v":111.29303910248784},{"$f":"IF('Data Input - BAU'!$F$37=\"Yes\",AG34+AG13,AG30)","v":107.52950637921532},{"$f":"IF('Data Input - BAU'!$F$37=\"Yes\",AH34+AH13,AH30)","v":104.39757900894691},{"$f":"IF('Data Input - BAU'!$F$37=\"Yes\",AI34+AI13,AI30)","v":0},{"$f":"IF('Data Input - BAU'!$F$37=\"Yes\",AJ34+AJ13,AJ30)","v":0},{"$f":"IF('Data Input - BAU'!$F$37=\"Yes\",AK34+AK13,AK30)","v":0},{"$f":"IF('Data Input - BAU'!$F$37=\"Yes\",AL34+AL13,AL30)","v":0},{"$f":"IF('Data Input - BAU'!$F$37=\"Yes\",AM34+AM13,AM30)","v":0},{"$f":"IF('Data Input - BAU'!$F$37=\"Yes\",AN34+AN13,AN30)","v":0},{"$f":"IF('Data Input - BAU'!$F$37=\"Yes\",AO34+AO13,AO30)","v":0},{"$f":"IF('Data Input - BAU'!$F$37=\"Yes\",AP34+AP13,AP30)","v":0},{"$f":"IF('Data Input - BAU'!$F$37=\"Yes\",AQ34+AQ13,AQ30)","v":0},{"$f":"IF('Data Input - BAU'!$F$37=\"Yes\",AR34+AR13,AR30)","v":0},{"$f":"IF('Data Input - BAU'!$F$37=\"Yes\",AS34+AS13,AS30)","v":0},{"$f":"IF('Data Input - BAU'!$F$37=\"Yes\",AT34+AT13,AT30)","v":0},{"$f":"IF('Data Input - BAU'!$F$37=\"Yes\",AU34+AU13,AU30)","v":0},{"$f":"IF('Data Input - BAU'!$F$37=\"Yes\",AV34+AV13,AV30)","v":0},{"$f":"IF('Data Input - BAU'!$F$37=\"Yes\",AW34+AW13,AW30)","v":0},{"$f":"IF('Data Input - BAU'!$F$37=\"Yes\",AX34+AX13,AX30)","v":0},{"$f":"IF('Data Input - BAU'!$F$37=\"Yes\",AY34+AY13,AY30)","v":0},{"$f":"IF('Data Input - BAU'!$F$37=\"Yes\",AZ34+AZ13,AZ30)","v":0},{"$f":"IF('Data Input - BAU'!$F$37=\"Yes\",BA34+BA13,BA30)","v":0},{"$f":"IF('Data Input - BAU'!$F$37=\"Yes\",BB34+BB13,BB30)","v":0},{"$f":"IF('Data Input - BAU'!$F$37=\"Yes\",BC34+BC13,BC30)","v":0},{"$f":"IF('Data Input - BAU'!$F$37=\"Yes\",BD34+BD13,BD30)","v":0},{"$f":"IF('Data Input - BAU'!$F$37=\"Yes\",BE34+BE13,BE30)","v":0},{"$f":"IF('Data Input - BAU'!$F$37=\"Yes\",BF34+BF13,BF30)","v":0},{"$f":"IF('Data Input - BAU'!$F$37=\"Yes\",BG34+BG13,BG30)","v":0},{"$f":"IF('Data Input - BAU'!$F$37=\"Yes\",BH34+BH13,BH30)","v":0},{"$f":"IF('Data Input - BAU'!$F$37=\"Yes\",BI34+BI13,BI30)","v":0},{"$f":"IF('Data Input - BAU'!$F$37=\"Yes\",BJ34+BJ13,BJ30)","v":0},{"$f":"IF('Data Input - BAU'!$F$37=\"Yes\",BK34+BK13,BK30)","v":0},{"$f":"IF('Data Input - BAU'!$F$37=\"Yes\",BL34+BL13,BL30)","v":0},{"$f":"IF('Data Input - BAU'!$F$37=\"Yes\",BM34+BM13,BM30)","v":0},{"$f":"IF('Data Input - BAU'!$F$37=\"Yes\",BN34+BN13,BN30)","v":0},{"$f":"IF('Data Input - BAU'!$F$37=\"Yes\",BO34+BO13,BO30)","v":0},{"$f":"IF('Data Input - BAU'!$F$37=\"Yes\",BP34+BP13,BP30)","v":0},{"$f":"IF('Data Input - BAU'!$F$37=\"Yes\",BQ34+BQ13,BQ30)","v":0},{"$f":"IF('Data Input - BAU'!$F$37=\"Yes\",BR34+BR13,BR30)","v":0},{"$f":"IF('Data Input - BAU'!$F$37=\"Yes\",BS34+BS13,BS30)","v":0},{"$f":"IF('Data Input - BAU'!$F$37=\"Yes\",BT34+BT13,BT30)","v":0},{"$f":"IF('Data Input - BAU'!$F$37=\"Yes\",BU34+BU13,BU30)","v":0},{"$f":"IF('Data Input - BAU'!$F$37=\"Yes\",BV34+BV13,BV30)","v":0},{"$f":"IF('Data Input - BAU'!$F$37=\"Yes\",BW34+BW13,BW30)","v":0},{"$f":"IF('Data Input - BAU'!$F$37=\"Yes\",BX34+BX13,BX30)","v":0},{"$f":"IF('Data Input - BAU'!$F$37=\"Yes\",BY34+BY13,BY30)","v":0},{"$f":"IF('Data Input - BAU'!$F$37=\"Yes\",BZ34+BZ13,BZ30)","v":0},{"$f":"IF('Data Input - BAU'!$F$37=\"Yes\",CA34+CA13,CA30)","v":0},{"$f":"IF('Data Input - BAU'!$F$37=\"Yes\",CB34+CB13,CB30)","v":0},{"$f":"IF('Data Input - BAU'!$F$37=\"Yes\",CC34+CC13,CC30)","v":0},{"$f":"IF('Data Input - BAU'!$F$37=\"Yes\",CD34+CD13,CD30)","v":0},{"$f":"IF('Data Input - BAU'!$F$37=\"Yes\",CE34+CE13,CE30)","v":0},{"$f":"IF('Data Input - BAU'!$F$37=\"Yes\",CF34+CF13,CF30)","v":0},{"$f":"IF('Data Input - BAU'!$F$37=\"Yes\",CG34+CG13,CG30)","v":0},{"$f":"IF('Data Input - BAU'!$F$37=\"Yes\",CH34+CH13,CH30)","v":0},{"$f":"IF('Data Input - BAU'!$F$37=\"Yes\",CI34+CI13,CI30)","v":0},{"$f":"IF('Data Input - BAU'!$F$37=\"Yes\",CJ34+CJ13,CJ30)","v":0},{"$f":"IF('Data Input - BAU'!$F$37=\"Yes\",CK34+CK13,CK30)","v":0},{"$f":"IF('Data Input - BAU'!$F$37=\"Yes\",CL34+CL13,CL30)","v":0},{"$f":"IF('Data Input - BAU'!$F$37=\"Yes\",CM34+CM13,CM30)","v":0},{"$f":"IF('Data Input - BAU'!$F$37=\"Yes\",CN34+CN13,CN30)","v":0},{"$f":"IF('Data Input - BAU'!$F$37=\"Yes\",CO34+CO13,CO30)","v":0},{"$f":"IF('Data Input - BAU'!$F$37=\"Yes\",CP34+CP13,CP30)","v":0},{"$f":"IF('Data Input - BAU'!$F$37=\"Yes\",CQ34+CQ13,CQ30)","v":0},{"$f":"IF('Data Input - BAU'!$F$37=\"Yes\",CR34+CR13,CR30)","v":0},{"$f":"IF('Data Input - BAU'!$F$37=\"Yes\",CS34+CS13,CS30)","v":0},{"$f":"IF('Data Input - BAU'!$F$37=\"Yes\",CT34+CT13,CT30)","v":0},{"$f":"IF('Data Input - BAU'!$F$37=\"Yes\",CU34+CU13,CU30)","v":0},{"$f":"IF('Data Input - BAU'!$F$37=\"Yes\",CV34+CV13,CV30)","v":0},{"$f":"IF('Data Input - BAU'!$F$37=\"Yes\",CW34+CW13,CW30)","v":0},{"$f":"IF('Data Input - BAU'!$F$37=\"Yes\",CX34+CX13,CX30)","v":0},{"$f":"IF('Data Input - BAU'!$F$37=\"Yes\",CY34+CY13,CY30)","v":0}]
[]
[null,"Operating costs (non-energy, per annum)"]
[null,"Total Opex","£000's",{"$f":"'Data Input - BAU'!H50","v":250},{"$f":"'Data Input - BAU'!I50","v":250},{"$f":"'Data Input - BAU'!J50","v":250},{"$f":"'Data Input - BAU'!K50","v":250},{"$f":"'Data Input - BAU'!L50","v":250},{"$f":"'Data Input - BAU'!M50","v":250},{"$f":"'Data Input - BAU'!N50","v":250},{"$f":"'Data Input - BAU'!O50","v":250},{"$f":"'Data Input - BAU'!P50","v":0},{"$f":"'Data Input - BAU'!Q50","v":0},{"$f":"'Data Input - BAU'!R50","v":0},{"$f":"'Data Input - BAU'!S50","v":0},{"$f":"'Data Input - BAU'!T50","v":0},{"$f":"'Data Input - BAU'!U50","v":0},{"$f":"'Data Input - BAU'!V50","v":0},{"$f":"'Data Input - BAU'!W50","v":0},{"$f":"'Data Input - BAU'!X50","v":0},{"$f":"'Data Input - BAU'!Y50","v":0},{"$f":"'Data Input - BAU'!Z50","v":0},{"$f":"'Data Input - BAU'!AA50","v":0},{"$f":"'Data Input - BAU'!AB50","v":0},{"$f":"'Data Input - BAU'!AC50","v":0},{"$f":"'Data Input - BAU'!AD50","v":0},{"$f":"'Data Input - BAU'!AE50","v":0},{"$f":"'Data Input - BAU'!AF50","v":0},{"$f":"'Data Input - BAU'!AG50","v":0},{"$f":"'Data Input - BAU'!AH50","v":0},{"$f":"'Data Input - BAU'!AI50","v":0},{"$f":"'Data Input - BAU'!AJ50","v":0},{"$f":"'Data Input - BAU'!AK50","v":0},{"$f":"'Data Input - BAU'!AL50","v":0},{"$f":"'Data Input - BAU'!AM50","v":0},{"$f":"'Data Input - BAU'!AN50","v":0},{"$f":"'Data Input - BAU'!AO50","v":0},{"$f":"'Data Input - BAU'!AP50","v":0},{"$f":"'Data Input - BAU'!AQ50","v":0},{"$f":"'Data Input - BAU'!AR50","v":0},{"$f":"'Data Input - BAU'!AS50","v":0},{"$f":"'Data Input - BAU'!AT50","v":0},{"$f":"'Data Input - BAU'!AU50","v":0},{"$f":"'Data Input - BAU'!AV50","v":0},{"$f":"'Data Input - BAU'!AW50","v":0},{"$f":"'Data Input - BAU'!AX50","v":0},{"$f":"'Data Input - BAU'!AY50","v":0},{"$f":"'Data Input - BAU'!AZ50","v":0},{"$f":"'Data Input - BAU'!BA50","v":0},{"$f":"'Data Input - BAU'!BB50","v":0},{"$f":"'Data Input - BAU'!BC50","v":0},{"$f":"'Data Input - BAU'!BD50","v":0},{"$f":"'Data Input - BAU'!BE50","v":0},{"$f":"'Data Input - BAU'!BF50","v":0},{"$f":"'Data Input - BAU'!BG50","v":0},{"$f":"'Data Input - BAU'!BH50","v":0},{"$f":"'Data Input - BAU'!BI50","v":0},{"$f":"'Data Input - BAU'!BJ50","v":0},{"$f":"'Data Input - BAU'!BK50","v":0},{"$f":"'Data Input - BAU'!BL50","v":0},{"$f":"'Data Input - BAU'!BM50","v":0},{"$f":"'Data Input - BAU'!BN50","v":0},{"$f":"'Data Input - BAU'!BO50","v":0},{"$f":"'Data Input - BAU'!BP50","v":0},{"$f":"'Data Input - BAU'!BQ50","v":0},{"$f":"'Data Input - BAU'!BR50","v":0},{"$f":"'Data Input - BAU'!BS50","v":0},{"$f":"'Data Input - BAU'!BT50","v":0},{"$f":"'Data Input - BAU'!BU50","v":0},{"$f":"'Data Input - BAU'!BV50","v":0},{"$f":"'Data Input - BAU'!BW50","v":0},{"$f":"'Data Input - BAU'!BX50","v":0},{"$f":"'Data Input - BAU'!BY50","v":0},{"$f":"'Data Input - BAU'!BZ50","v":0},{"$f":"'Data Input - BAU'!CA50","v":0},{"$f":"'Data Input - BAU'!CB50","v":0},{"$f":"'Data Input - BAU'!CC50","v":0},{"$f":"'Data Input - BAU'!CD50","v":0},{"$f":"'Data Input - BAU'!CE50","v":0},{"$f":"'Data Input - BAU'!CF50","v":0},{"$f":"'Data Input - BAU'!CG50","v":0},{"$f":"'Data Input - BAU'!CH50","v":0},{"$f":"'Data Input - BAU'!CI50","v":0},{"$f":"'Data Input - BAU'!CJ50","v":0},{"$f":"'Data Input - BAU'!CK50","v":0},{"$f":"'Data Input - BAU'!CL50","v":0},{"$f":"'Data Input - BAU'!CM50","v":0},{"$f":"'Data Input - BAU'!CN50","v":0},{"$f":"'Data Input - BAU'!CO50","v":0},{"$f":"'Data Input - BAU'!CP50","v":0},{"$f":"'Data Input - BAU'!CQ50","v":0},{"$f":"'Data Input - BAU'!CR50","v":0},{"$f":"'Data Input - BAU'!CS50","v":0},{"$f":"'Data Input - BAU'!CT50","v":0},{"$f":"'Data Input - BAU'!CU50","v":0},{"$f":"'Data Input - BAU'!CV50","v":0},{"$f":"'Data Input - BAU'!CW50","v":0},{"$f":"'Data Input - BAU'!CX50","v":0},{"$f":"'Data Input - BAU'!CY50","v":0},{"$f":"'Data Input - BAU'!CZ50","v":0},{"$f":"'Data Input - BAU'!DA50","v":0},{"$f":"'Data Input - BAU'!DB50","v":0},{"$f":"'Data Input - BAU'!DC50","v":0}]
[null,"Discounted total opex","£000's",{"$f":"D39*D$7","v":250},{"$f":"E39*E$7","v":241.54589371980677},233.37767509160076,225.48567641700561,217.86055692464311,210.49329171463103,203.37516107693821,196.49774017095481,0,0,0,0,0,0,0,0,0,0,0,0,0,0,0,0,0,0,0,0,0,0,0,0,0,0,0,0,0,0,0,0,0,0,0,0,0,0,0,0,0,0,0,0,0,0,0,0,0,0,0,0,0,0,0,0,0,{"$f":"BQ39*BQ$7","v":0},0,0,0,0,0,0,0,0,0,0,0,0,0,0,0,0,0,0,0,0,0,0,0,0,0,0,0,0,0,0,0,0,0,0]
[]
[null,"Waste output (annual amount generated"]
[null,"Total","£000's",{"$f":"'Data Input - BAU'!H79","v":0},{"$f":"'Data Input - BAU'!I79","v":0},{"$f":"'Data Input - BAU'!J79","v":0},{"$f":"'Data Input - BAU'!K79","v":0},{"$f":"'Data Input - BAU'!L79","v":0},{"$f":"'Data Input - BAU'!M79","v":0},{"$f":"'Data Input - BAU'!N79","v":0},{"$f":"'Data Input - BAU'!O79","v":0},{"$f":"'Data Input - BAU'!P79","v":0},{"$f":"'Data Input - BAU'!Q79","v":0},{"$f":"'Data Input - BAU'!R79","v":0},{"$f":"'Data Input - BAU'!S79","v":0},{"$f":"'Data Input - BAU'!T79","v":0},{"$f":"'Data Input - BAU'!U79","v":0},{"$f":"'Data Input - BAU'!V79","v":0},{"$f":"'Data Input - BAU'!W79","v":0},{"$f":"'Data Input - BAU'!X79","v":0},{"$f":"'Data Input - BAU'!Y79","v":0},{"$f":"'Data Input - BAU'!Z79","v":0},{"$f":"'Data Input - BAU'!AA79","v":0},{"$f":"'Data Input - BAU'!AB79","v":0},{"$f":"'Data Input - BAU'!AC79","v":0},{"$f":"'Data Input - BAU'!AD79","v":0},{"$f":"'Data Input - BAU'!AE79","v":0},{"$f":"'Data Input - BAU'!AF79","v":0},{"$f":"'Data Input - BAU'!AG79","v":0},{"$f":"'Data Input - BAU'!AH79","v":0},{"$f":"'Data Input - BAU'!AI79","v":0},{"$f":"'Data Input - BAU'!AJ79","v":0},{"$f":"'Data Input - BAU'!AK79","v":0},{"$f":"'Data Input - BAU'!AL79","v":0},{"$f":"'Data Input - BAU'!AM79","v":0},{"$f":"'Data Input - BAU'!AN79","v":0},{"$f":"'Data Input - BAU'!AO79","v":0},{"$f":"'Data Input - BAU'!AP79","v":0},{"$f":"'Data Input - BAU'!AQ79","v":0},{"$f":"'Data Input - BAU'!AR79","v":0},{"$f":"'Data Input - BAU'!AS79","v":0},{"$f":"'Data Input - BAU'!AT79","v":0},{"$f":"'Data Input - BAU'!AU79","v":0},{"$f":"'Data Input - BAU'!AV79","v":0},{"$f":"'Data Input - BAU'!AW79","v":0},{"$f":"'Data Input - BAU'!AX79","v":0},{"$f":"'Data Input - BAU'!AY79","v":0},{"$f":"'Data Input - BAU'!AZ79","v":0},{"$f":"'Data Input - BAU'!BA79","v":0},{"$f":"'Data Input - BAU'!BB79","v":0},{"$f":"'Data Input - BAU'!BC79","v":0},{"$f":"'Data Input - BAU'!BD79","v":0},{"$f":"'Data Input - BAU'!BE79","v":0},{"$f":"'Data Input - BAU'!BF79","v":0},{"$f":"'Data Input - BAU'!BG79","v":0},{"$f":"'Data Input - BAU'!BH79","v":0},{"$f":"'Data Input - BAU'!BI79","v":0},{"$f":"'Data Input - BAU'!BJ79","v":0},{"$f":"'Data Input - BAU'!BK79","v":0},{"$f":"'Data Input - BAU'!BL79","v":0},{"$f":"'Data Input - BAU'!BM79","v":0},{"$f":"'Data Input - BAU'!BN79","v":0},{"$f":"'Data Input - BAU'!BO79","v":0},{"$f":"'Data Input - BAU'!BP79","v":0},{"$f":"'Data Input - BAU'!BQ79","v":0},{"$f":"'Data Input - BAU'!BR79","v":0},{"$f":"'Data Input - BAU'!BS79","v":0},{"$f":"'Data Input - BAU'!BT79","v":0},{"$f":"'Data Input - BAU'!BU79","v":0},{"$f":"'Data Input - BAU'!BV79","v":0},{"$f":"'Data Input - BAU'!BW79","v":0},{"$f":"'Data Input - BAU'!BX79","v":0},{"$f":"'Data Input - BAU'!BY79","v":0},{"$f":"'Data Input - BAU'!BZ79","v":0},{"$f":"'Data Input - BAU'!CA79","v":0},{"$f":"'Data Input - BAU'!CB79","v":0},{"$f":"'Data Input - BAU'!CC79","v":0},{"$f":"'Data Input - BAU'!CD79","v":0},{"$f":"'Data Input - BAU'!CE79","v":0},{"$f":"'Data Input - BAU'!CF79","v":0},{"$f":"'Data Input - BAU'!CG79","v":0},{"$f":"'Data Input - BAU'!CH79","v":0},{"$f":"'Data Input - BAU'!CI79","v":0},{"$f":"'Data Input - BAU'!CJ79","v":0},{"$f":"'Data Input - BAU'!CK79","v":0},{"$f":"'Data Input - BAU'!CL79","v":0},{"$f":"'Data Input - BAU'!CM79","v":0},{"$f":"'Data Input - BAU'!CN79","v":0},{"$f":"'Data Input - BAU'!CO79","v":0},{"$f":"'Data Input - BAU'!CP79","v":0},{"$f":"'Data Input - BAU'!CQ79","v":0},{"$f":"'Data Input - BAU'!CR79","v":0},{"$f":"'Data Input - BAU'!CS79","v":0},{"$f":"'Data Input - BAU'!CT79","v":0},{"$f":"'Data Input - BAU'!CU79","v":0},{"$f":"'Data Input - BAU'!CV79","v":0},{"$f":"'Data Input - BAU'!CW79","v":0},{"$f":"'Data Input - BAU'!CX79","v":0},{"$f":"'Data Input - BAU'!CY79","v":0},{"$f":"'Data Input - BAU'!CZ79","v":0},{"$f":"'Data Input - BAU'!DA79","v":0},{"$f":"'Data Input - BAU'!DB79","v":0},{"$f":"'Data Input - BAU'!DC79","v":0}]
[null,"Discounted total waste cost","£000's",{"$f":"D43*D$7","v":0},{"$f":"E43*E$7","v":0},0,0,0,0,0,0,0,0,0,0,0,0,0,0,0,0,0,0,0,0,0,0,0,0,0,0,0,0,0,0,0,0,0,0,0,0,0,0,0,0,0,0,0,0,0,0,0,0,0,0,0,0,0,0,0,0,0,0,0,0,0,0,0,{"$f":"BQ43*BQ$7","v":0},0,0,0,0,0,0,0,0,0,0,0,0,0,0,0,0,0,0,0,0,0,0,0,0,0,0,0,0,0,0,0,0,0,0]
[]
[null,"Energy Consumption"]
[null,"Total","£000's",{"$f":"'Data Input - BAU'!H100","v":1485.700561305305},{"$f":"'Data Input - BAU'!I100","v":1541.531148540691},{"$f":"'Data Input - BAU'!J100","v":1610.4918821663023},{"$f":"'Data Input - BAU'!K100","v":1657.4780678945503},{"$f":"'Data Input - BAU'!L100","v":1704.5754416158256},{"$f":"'Data Input - BAU'!M100","v":1776.9735001686643},{"$f":"'Data Input - BAU'!N100","v":1837.2202118852731},{"$f":"'Data Input - BAU'!O100","v":1870.4852286646578},{"$f":"'Data Input - BAU'!P100","v":0},{"$f":"'Data Input - BAU'!Q100","v":0},{"$f":"'Data Input - BAU'!R100","v":0},{"$f":"'Data Input - BAU'!S100","v":0},{"$f":"'Data Input - BAU'!T100","v":0},{"$f":"'Data Input - BAU'!U100","v":0},{"$f":"'Data Input - BAU'!V100","v":0},{"$f":"'Data Input - BAU'!W100","v":0},{"$f":"'Data Input - BAU'!X100","v":0},{"$f":"'Data Input - BAU'!Y100","v":0},{"$f":"'Data Input - BAU'!Z100","v":0},{"$f":"'Data Input - BAU'!AA100","v":0},{"$f":"'Data Input - BAU'!AB100","v":0},{"$f":"'Data Input - BAU'!AC100","v":0},{"$f":"'Data Input - BAU'!AD100","v":0},{"$f":"'Data Input - BAU'!AE100","v":0},{"$f":"'Data Input - BAU'!AF100","v":0},{"$f":"'Data Input - BAU'!AG100","v":0},{"$f":"'Data Input - BAU'!AH100","v":0},{"$f":"'Data Input - BAU'!AI100","v":0},{"$f":"'Data Input - BAU'!AJ100","v":0},{"$f":"'Data Input - BAU'!AK100","v":0},{"$f":"'Data Input - BAU'!AL100","v":0},{"$f":"'Data Input - BAU'!AM100","v":0},{"$f":"'Data Input - BAU'!AN100","v":0},{"$f":"'Data Input - BAU'!AO100","v":0},{"$f":"'Data Input - BAU'!AP100","v":0},{"$f":"'Data Input - BAU'!AQ100","v":0},{"$f":"'Data Input - BAU'!AR100","v":0},{"$f":"'Data Input - BAU'!AS100","v":0},{"$f":"'Data Input - BAU'!AT100","v":0},{"$f":"'Data Input - BAU'!AU100","v":0},{"$f":"'Data Input - BAU'!AV100","v":0},{"$f":"'Data Input - BAU'!AW100","v":0},{"$f":"'Data Input - BAU'!AX100","v":0},{"$f":"'Data Input - BAU'!AY100","v":0},{"$f":"'Data Input - BAU'!AZ100","v":0},{"$f":"'Data Input - BAU'!BA100","v":0},{"$f":"'Data Input - BAU'!BB100","v":0},{"$f":"'Data Input - BAU'!BC100","v":0},{"$f":"'Data Input - BAU'!BD100","v":0},{"$f":"'Data Input - BAU'!BE100","v":0},{"$f":"'Data Input - BAU'!BF100","v":0},{"$f":"'Data Input - BAU'!BG100","v":0},{"$f":"'Data Input - BAU'!BH100","v":0},{"$f":"'Data Input - BAU'!BI100","v":0},{"$f":"'Data Input - BAU'!BJ100","v":0},{"$f":"'Data Input - BAU'!BK100","v":0},{"$f":"'Data Input - BAU'!BL100","v":0},{"$f":"'Data Input - BAU'!BM100","v":0},{"$f":"'Data Input - BAU'!BN100","v":0},{"$f":"'Data Input - BAU'!BO100","v":0},{"$f":"'Data Input - BAU'!BP100","v":0},{"$f":"'Data Input - BAU'!BQ100","v":0},{"$f":"'Data Input - BAU'!BR100","v":0},{"$f":"'Data Input - BAU'!BS100","v":0},{"$f":"'Data Input - BAU'!BT100","v":0},{"$f":"'Data Input - BAU'!BU100","v":0},{"$f":"'Data Input - BAU'!BV100","v":0},{"$f":"'Data Input - BAU'!BW100","v":0},{"$f":"'Data Input - BAU'!BX100","v":0},{"$f":"'Data Input - BAU'!BY100","v":0},{"$f":"'Data Input - BAU'!BZ100","v":0},{"$f":"'Data Input - BAU'!CA100","v":0},{"$f":"'Data Input - BAU'!CB100","v":0},{"$f":"'Data Input - BAU'!CC100","v":0},{"$f":"'Data Input - BAU'!CD100","v":0},{"$f":"'Data Input - BAU'!CE100","v":0},{"$f":"'Data Input - BAU'!CF100","v":0},{"$f":"'Data Input - BAU'!CG100","v":0},{"$f":"'Data Input - BAU'!CH100","v":0},{"$f":"'Data Input - BAU'!CI100","v":0},{"$f":"'Data Input - BAU'!CJ100","v":0},{"$f":"'Data Input - BAU'!CK100","v":0},{"$f":"'Data Input - BAU'!CL100","v":0},{"$f":"'Data Input - BAU'!CM100","v":0},{"$f":"'Data Input - BAU'!CN100","v":0},{"$f":"'Data Input - BAU'!CO100","v":0},{"$f":"'Data Input - BAU'!CP100","v":0},{"$f":"'Data Input - BAU'!CQ100","v":0},{"$f":"'Data Input - BAU'!CR100","v":0},{"$f":"'Data Input - BAU'!CS100","v":0},{"$f":"'Data Input - BAU'!CT100","v":0},{"$f":"'Data Input - BAU'!CU100","v":0},{"$f":"'Data Input - BAU'!CV100","v":0},{"$f":"'Data Input - BAU'!CW100","v":0},{"$f":"'Data Input - BAU'!CX100","v":0},{"$f":"'Data Input - BAU'!CY100","v":0},{"$f":"'Data Input - BAU'!CZ100","v":0},{"$f":"'Data Input - BAU'!DA100","v":0},{"$f":"'Data Input - BAU'!DB100","v":0},{"$f":"'Data Input - BAU'!DC100","v":0}]
[null,"Discounted energy consumption","£000's",{"$f":"D47*D$7","v":1485.700561305305},{"$f":"E47*E$7","v":1489.4020758847257},1503.4114048554716,1494.9502531422168,1485.4390201219728,1496.1640053606864,1494.5798261038958,1470.1844818230277,0,0,0,0,0,0,0,0,0,0,0,0,0,0,0,0,0,0,0,0,0,0,0,0,0,0,0,0,0,0,0,0,0,0,0,0,0,0,0,0,0,0,0,0,0,0,0,0,0,0,0,0,0,0,0,0,0,{"$f":"BQ47*BQ$7","v":0},0,0,0,0,0,0,0,0,0,0,0,0,0,0,0,0,0,0,0,0,0,0,0,0,0,0,0,0,0,0,0,0,0,0]
[null,"Excluding those for which DECC prices used","£000's",{"$f":"('Data Input - BAU'!H100-SUM('Data Input - BAU'!H92:H97))*Calc_BAU!D$7","v":0},{"$f":"('Data Input - BAU'!I100-SUM('Data Input - BAU'!I92:I97))*Calc_BAU!E$7","v":0},{"$f":"('Data Input - BAU'!J100-SUM('Data Input - BAU'!J92:J97))*Calc_BAU!F$7","v":0},{"$f":"('Data Input - BAU'!K100-SUM('Data Input - BAU'!K92:K97))*Calc_BAU!G$7","v":0},{"$f":"('Data Input - BAU'!L100-SUM('Data Input - BAU'!L92:L97))*Calc_BAU!H$7","v":0},{"$f":"('Data Input - BAU'!M100-SUM('Data Input - BAU'!M92:M97))*Calc_BAU!I$7","v":0},{"$f":"('Data Input - BAU'!N100-SUM('Data Input - BAU'!N92:N97))*Calc_BAU!J$7","v":0},{"$f":"('Data Input - BAU'!O100-SUM('Data Input - BAU'!O92:O97))*Calc_BAU!K$7","v":0},{"$f":"('Data Input - BAU'!P100-SUM('Data Input - BAU'!P92:P97))*Calc_BAU!L$7","v":0},{"$f":"('Data Input - BAU'!Q100-SUM('Data Input - BAU'!Q92:Q97))*Calc_BAU!M$7","v":0},{"$f":"('Data Input - BAU'!R100-SUM('Data Input - BAU'!R92:R97))*Calc_BAU!N$7","v":0},{"$f":"('Data Input - BAU'!S100-SUM('Data Input - BAU'!S92:S97))*Calc_BAU!O$7","v":0},{"$f":"('Data Input - BAU'!T100-SUM('Data Input - BAU'!T92:T97))*Calc_BAU!P$7","v":0},{"$f":"('Data Input - BAU'!U100-SUM('Data Input - BAU'!U92:U97))*Calc_BAU!Q$7","v":0},{"$f":"('Data Input - BAU'!V100-SUM('Data Input - BAU'!V92:V97))*Calc_BAU!R$7","v":0},{"$f":"('Data Input - BAU'!W100-SUM('Data Input - BAU'!W92:W97))*Calc_BAU!S$7","v":0},{"$f":"('Data Input - BAU'!X100-SUM('Data Input - BAU'!X92:X97))*Calc_BAU!T$7","v":0},{"$f":"('Data Input - BAU'!Y100-SUM('Data Input - BAU'!Y92:Y97))*Calc_BAU!U$7","v":0},{"$f":"('Data Input - BAU'!Z100-SUM('Data Input - BAU'!Z92:Z97))*Calc_BAU!V$7","v":0},{"$f":"('Data Input - BAU'!AA100-SUM('Data Input - BAU'!AA92:AA97))*Calc_BAU!W$7","v":0},{"$f":"('Data Input - BAU'!AB100-SUM('Data Input - BAU'!AB92:AB97))*Calc_BAU!X$7","v":0},{"$f":"('Data Input - BAU'!AC100-SUM('Data Input - BAU'!AC92:AC97))*Calc_BAU!Y$7","v":0},{"$f":"('Data Input - BAU'!AD100-SUM('Data Input - BAU'!AD92:AD97))*Calc_BAU!Z$7","v":0},{"$f":"('Data Input - BAU'!AE100-SUM('Data Input - BAU'!AE92:AE97))*Calc_BAU!AA$7","v":0},{"$f":"('Data Input - BAU'!AF100-SUM('Data Input - BAU'!AF92:AF97))*Calc_BAU!AB$7","v":0},{"$f":"('Data Input - BAU'!AG100-SUM('Data Input - BAU'!AG92:AG97))*Calc_BAU!AC$7","v":0},{"$f":"('Data Input - BAU'!AH100-SUM('Data Input - BAU'!AH92:AH97))*Calc_BAU!AD$7","v":0},{"$f":"('Data Input - BAU'!AI100-SUM('Data Input - BAU'!AI92:AI97))*Calc_BAU!AE$7","v":0},{"$f":"('Data Input - BAU'!AJ100-SUM('Data Input - BAU'!AJ92:AJ97))*Calc_BAU!AF$7","v":0},{"$f":"('Data Input - BAU'!AK100-SUM('Data Input - BAU'!AK92:AK97))*Calc_BAU!AG$7","v":0},{"$f":"('Data Input - BAU'!AL100-SUM('Data Input - BAU'!AL92:AL97))*Calc_BAU!AH$7","v":0},{"$f":"('Data Input - BAU'!AM100-SUM('Data Input - BAU'!AM92:AM97))*Calc_BAU!AI$7","v":0},{"$f":"('Data Input - BAU'!AN100-SUM('Data Input - BAU'!AN92:AN97))*Calc_BAU!AJ$7","v":0},{"$f":"('Data Input - BAU'!AO100-SUM('Data Input - BAU'!AO92:AO97))*Calc_BAU!AK$7","v":0},{"$f":"('Data Input - BAU'!AP100-SUM('Data Input - BAU'!AP92:AP97))*Calc_BAU!AL$7","v":0},{"$f":"('Data Input - BAU'!AQ100-SUM('Data Input - BAU'!AQ92:AQ97))*Calc_BAU!AM$7","v":0},{"$f":"('Data Input - BAU'!AR100-SUM('Data Input - BAU'!AR92:AR97))*Calc_BAU!AN$7","v":0},{"$f":"('Data Input - BAU'!AS100-SUM('Data Input - BAU'!AS92:AS97))*Calc_BAU!AO$7","v":0},{"$f":"('Data Input - BAU'!AT100-SUM('Data Input - BAU'!AT92:AT97))*Calc_BAU!AP$7","v":0},{"$f":"('Data Input - BAU'!AU100-SUM('Data Input - BAU'!AU92:AU97))*Calc_BAU!AQ$7","v":0},{"$f":"('Data Input - BAU'!AV100-SUM('Data Input - BAU'!AV92:AV97))*Calc_BAU!AR$7","v":0},{"$f":"('Data Input - BAU'!AW100-SUM('Data Input - BAU'!AW92:AW97))*Calc_BAU!AS$7","v":0},{"$f":"('Data Input - BAU'!AX100-SUM('Data Input - BAU'!AX92:AX97))*Calc_BAU!AT$7","v":0},{"$f":"('Data Input - BAU'!AY100-SUM('Data Input - BAU'!AY92:AY97))*Calc_BAU!AU$7","v":0},{"$f":"('Data Input - BAU'!AZ100-SUM('Data Input - BAU'!AZ92:AZ97))*Calc_BAU!AV$7","v":0},{"$f":"('Data Input - BAU'!BA100-SUM('Data Input - BAU'!BA92:BA97))*Calc_BAU!AW$7","v":0},{"$f":"('Data Input - BAU'!BB100-SUM('Data Input - BAU'!BB92:BB97))*Calc_BAU!AX$7","v":0},{"$f":"('Data Input - BAU'!BC100-SUM('Data Input - BAU'!BC92:BC97))*Calc_BAU!AY$7","v":0},{"$f":"('Data Input - BAU'!BD100-SUM('Data Input - BAU'!BD92:BD97))*Calc_BAU!AZ$7","v":0},{"$f":"('Data Input - BAU'!BE100-SUM('Data Input - BAU'!BE92:BE97))*Calc_BAU!BA$7","v":0},{"$f":"('Data Input - BAU'!BF100-SUM('Data Input - BAU'!BF92:BF97))*Calc_BAU!BB$7","v":0},{"$f":"('Data Input - BAU'!BG100-SUM('Data Input - BAU'!BG92:BG97))*Calc_BAU!BC$7","v":0},{"$f":"('Data Input - BAU'!BH100-SUM('Data Input - BAU'!BH92:BH97))*Calc_BAU!BD$7","v":0},{"$f":"('Data Input - BAU'!BI100-SUM('Data Input - BAU'!BI92:BI97))*Calc_BAU!BE$7","v":0},{"$f":"('Data Input - BAU'!BJ100-SUM('Data Input - BAU'!BJ92:BJ97))*Calc_BAU!BF$7","v":0},{"$f":"('Data Input - BAU'!BK100-SUM('Data Input - BAU'!BK92:BK97))*Calc_BAU!BG$7","v":0},{"$f":"('Data Input - BAU'!BL100-SUM('Data Input - BAU'!BL92:BL97))*Calc_BAU!BH$7","v":0},{"$f":"('Data Input - BAU'!BM100-SUM('Data Input - BAU'!BM92:BM97))*Calc_BAU!BI$7","v":0},{"$f":"('Data Input - BAU'!BN100-SUM('Data Input - BAU'!BN92:BN97))*Calc_BAU!BJ$7","v":0},{"$f":"('Data Input - BAU'!BO100-SUM('Data Input - BAU'!BO92:BO97))*Calc_BAU!BK$7","v":0},{"$f":"('Data Input - BAU'!BP100-SUM('Data Input - BAU'!BP92:BP97))*Calc_BAU!BL$7","v":0},{"$f":"('Data Input - BAU'!BQ100-SUM('Data Input - BAU'!BQ92:BQ97))*Calc_BAU!BM$7","v":0},{"$f":"('Data Input - BAU'!BR100-SUM('Data Input - BAU'!BR92:BR97))*Calc_BAU!BN$7","v":0},{"$f":"('Data Input - BAU'!BS100-SUM('Data Input - BAU'!BS92:BS97))*Calc_BAU!BO$7","v":0},{"$f":"('Data Input - BAU'!BT100-SUM('Data Input - BAU'!BT92:BT97))*Calc_BAU!BP$7","v":0},{"$f":"('Data Input - BAU'!BU100-SUM('Data Input - BAU'!BU92:BU97))*Calc_BAU!BQ$7","v":0},{"$f":"('Data Input - BAU'!BV100-SUM('Data Input - BAU'!BV92:BV97))*Calc_BAU!BR$7","v":0},{"$f":"('Data Input - BAU'!BW100-SUM('Data Input - BAU'!BW92:BW97))*Calc_BAU!BS$7","v":0},{"$f":"('Data Input - BAU'!BX100-SUM('Data Input - BAU'!BX92:BX97))*Calc_BAU!BT$7","v":0},{"$f":"('Data Input - BAU'!BY100-SUM('Data Input - BAU'!BY92:BY97))*Calc_BAU!BU$7","v":0},{"$f":"('Data Input - BAU'!BZ100-SUM('Data Input - BAU'!BZ92:BZ97))*Calc_BAU!BV$7","v":0},{"$f":"('Data Input - BAU'!CA100-SUM('Data Input - BAU'!CA92:CA97))*Calc_BAU!BW$7","v":0},{"$f":"('Data Input - BAU'!CB100-SUM('Data Input - BAU'!CB92:CB97))*Calc_BAU!BX$7","v":0},{"$f":"('Data Input - BAU'!CC100-SUM('Data Input - BAU'!CC92:CC97))*Calc_BAU!BY$7","v":0},{"$f":"('Data Input - BAU'!CD100-SUM('Data Input - BAU'!CD92:CD97))*Calc_BAU!BZ$7","v":0},{"$f":"('Data Input - BAU'!CE100-SUM('Data Input - BAU'!CE92:CE97))*Calc_BAU!CA$7","v":0},{"$f":"('Data Input - BAU'!CF100-SUM('Data Input - BAU'!CF92:CF97))*Calc_BAU!CB$7","v":0},{"$f":"('Data Input - BAU'!CG100-SUM('Data Input - BAU'!CG92:CG97))*Calc_BAU!CC$7","v":0},{"$f":"('Data Input - BAU'!CH100-SUM('Data Input - BAU'!CH92:CH97))*Calc_BAU!CD$7","v":0},{"$f":"('Data Input - BAU'!CI100-SUM('Data Input - BAU'!CI92:CI97))*Calc_BAU!CE$7","v":0},{"$f":"('Data Input - BAU'!CJ100-SUM('Data Input - BAU'!CJ92:CJ97))*Calc_BAU!CF$7","v":0},{"$f":"('Data Input - BAU'!CK100-SUM('Data Input - BAU'!CK92:CK97))*Calc_BAU!CG$7","v":0},{"$f":"('Data Input - BAU'!CL100-SUM('Data Input - BAU'!CL92:CL97))*Calc_BAU!CH$7","v":0},{"$f":"('Data Input - BAU'!CM100-SUM('Data Input - BAU'!CM92:CM97))*Calc_BAU!CI$7","v":0},{"$f":"('Data Input - BAU'!CN100-SUM('Data Input - BAU'!CN92:CN97))*Calc_BAU!CJ$7","v":0},{"$f":"('Data Input - BAU'!CO100-SUM('Data Input - BAU'!CO92:CO97))*Calc_BAU!CK$7","v":0},{"$f":"('Data Input - BAU'!CP100-SUM('Data Input - BAU'!CP92:CP97))*Calc_BAU!CL$7","v":0},{"$f":"('Data Input - BAU'!CQ100-SUM('Data Input - BAU'!CQ92:CQ97))*Calc_BAU!CM$7","v":0},{"$f":"('Data Input - BAU'!CR100-SUM('Data Input - BAU'!CR92:CR97))*Calc_BAU!CN$7","v":0},{"$f":"('Data Input - BAU'!CS100-SUM('Data Input - BAU'!CS92:CS97))*Calc_BAU!CO$7","v":0},{"$f":"('Data Input - BAU'!CT100-SUM('Data Input - BAU'!CT92:CT97))*Calc_BAU!CP$7","v":0},{"$f":"('Data Input - BAU'!CU100-SUM('Data Input - BAU'!CU92:CU97))*Calc_BAU!CQ$7","v":0},{"$f":"('Data Input - BAU'!CV100-SUM('Data Input - BAU'!CV92:CV97))*Calc_BAU!CR$7","v":0},{"$f":"('Data Input - BAU'!CW100-SUM('Data Input - BAU'!CW92:CW97))*Calc_BAU!CS$7","v":0},{"$f":"('Data Input - BAU'!CX100-SUM('Data Input - BAU'!CX92:CX97))*Calc_BAU!CT$7","v":0},{"$f":"('Data Input - BAU'!CY100-SUM('Data Input - BAU'!CY92:CY97))*Calc_BAU!CU$7","v":0},{"$f":"('Data Input - BAU'!CZ100-SUM('Data Input - BAU'!CZ92:CZ97))*Calc_BAU!CV$7","v":0},{"$f":"('Data Input - BAU'!DA100-SUM('Data Input - BAU'!DA92:DA97))*Calc_BAU!CW$7","v":0},{"$f":"('Data Input - BAU'!DB100-SUM('Data Input - BAU'!DB92:DB97))*Calc_BAU!CX$7","v":0},{"$f":"('Data Input - BAU'!DC100-SUM('Data Input - BAU'!DC92:DC97))*Calc_BAU!CY$7","v":0}]
[]
[null,"Environmental impacts"]
[null,"Air pollutant emissions"]
[null,{"$f":"'Data Input - BAU'!D105","v":"Sox 2019"},"Tonnes pa",{"$f":"'Data Input - BAU'!H105","v":1},{"$f":"'Data Input - BAU'!I105","v":1},{"$f":"'Data Input - BAU'!J105","v":1},{"$f":"'Data Input - BAU'!K105","v":1},{"$f":"'Data Input - BAU'!L105","v":1},{"$f":"'Data Input - BAU'!M105","v":1},{"$f":"'Data Input - BAU'!N105","v":1},{"$f":"'Data Input - BAU'!O105","v":0},{"$f":"'Data Input - BAU'!P105","v":0},{"$f":"'Data Input - BAU'!Q105","v":0},{"$f":"'Data Input - BAU'!R105","v":0},{"$f":"'Data Input - BAU'!S105","v":0},{"$f":"'Data Input - BAU'!T105","v":0},{"$f":"'Data Input - BAU'!U105","v":0},{"$f":"'Data Input - BAU'!V105","v":0},{"$f":"'Data Input - BAU'!W105","v":0},{"$f":"'Data Input - BAU'!X105","v":0},{"$f":"'Data Input - BAU'!Y105","v":0},{"$f":"'Data Input - BAU'!Z105","v":0},{"$f":"'Data Input - BAU'!AA105","v":0},{"$f":"'Data Input - BAU'!AB105","v":0},{"$f":"'Data Input - BAU'!AC105","v":0},{"$f":"'Data Input - BAU'!AD105","v":0},{"$f":"'Data Input - BAU'!AE105","v":0},{"$f":"'Data Input - BAU'!AF105","v":0},{"$f":"'Data Input - BAU'!AG105","v":0},{"$f":"'Data Input - BAU'!AH105","v":0},{"$f":"'Data Input - BAU'!AI105","v":0},{"$f":"'Data Input - BAU'!AJ105","v":0},{"$f":"'Data Input - BAU'!AK105","v":0},{"$f":"'Data Input - BAU'!AL105","v":0},{"$f":"'Data Input - BAU'!AM105","v":0},{"$f":"'Data Input - BAU'!AN105","v":0},{"$f":"'Data Input - BAU'!AO105","v":0},{"$f":"'Data Input - BAU'!AP105","v":0},{"$f":"'Data Input - BAU'!AQ105","v":0},{"$f":"'Data Input - BAU'!AR105","v":0},{"$f":"'Data Input - BAU'!AS105","v":0},{"$f":"'Data Input - BAU'!AT105","v":0},{"$f":"'Data Input - BAU'!AU105","v":0},{"$f":"'Data Input - BAU'!AV105","v":0},{"$f":"'Data Input - BAU'!AW105","v":0},{"$f":"'Data Input - BAU'!AX105","v":0},{"$f":"'Data Input - BAU'!AY105","v":0},{"$f":"'Data Input - BAU'!AZ105","v":0},{"$f":"'Data Input - BAU'!BA105","v":0},{"$f":"'Data Input - BAU'!BB105","v":0},{"$f":"'Data Input - BAU'!BC105","v":0},{"$f":"'Data Input - BAU'!BD105","v":0},{"$f":"'Data Input - BAU'!BE105","v":0},{"$f":"'Data Input - BAU'!BF105","v":0},{"$f":"'Data Input - BAU'!BG105","v":0},{"$f":"'Data Input - BAU'!BH105","v":0},{"$f":"'Data Input - BAU'!BI105","v":0},{"$f":"'Data Input - BAU'!BJ105","v":0},{"$f":"'Data Input - BAU'!BK105","v":0},{"$f":"'Data Input - BAU'!BL105","v":0},{"$f":"'Data Input - BAU'!BM105","v":0},{"$f":"'Data Input - BAU'!BN105","v":0},{"$f":"'Data Input - BAU'!BO105","v":0},{"$f":"'Data Input - BAU'!BP105","v":0},{"$f":"'Data Input - BAU'!BQ105","v":0},{"$f":"'Data Input - BAU'!BR105","v":0},{"$f":"'Data Input - BAU'!BS105","v":0},{"$f":"'Data Input - BAU'!BT105","v":0},{"$f":"'Data Input - BAU'!BU105","v":0},{"$f":"'Data Input - BAU'!BV105","v":0},{"$f":"'Data Input - BAU'!BW105","v":0},{"$f":"'Data Input - BAU'!BX105","v":0},{"$f":"'Data Input - BAU'!BY105","v":0},{"$f":"'Data Input - BAU'!BZ105","v":0},{"$f":"'Data Input - BAU'!CA105","v":0},{"$f":"'Data Input - BAU'!CB105","v":0},{"$f":"'Data Input - BAU'!CC105","v":0},{"$f":"'Data Input - BAU'!CD105","v":0},{"$f":"'Data Input - BAU'!CE105","v":0},{"$f":"'Data Input - BAU'!CF105","v":0},{"$f":"'Data Input - BAU'!CG105","v":0},{"$f":"'Data Input - BAU'!CH105","v":0},{"$f":"'Data Input - BAU'!CI105","v":0},{"$f":"'Data Input - BAU'!CJ105","v":0},{"$f":"'Data Input - BAU'!CK105","v":0},{"$f":"'Data Input - BAU'!CL105","v":0},{"$f":"'Data Input - BAU'!CM105","v":0},{"$f":"'Data Input - BAU'!CN105","v":0},{"$f":"'Data Input - BAU'!CO105","v":0},{"$f":"'Data Input - BAU'!CP105","v":0},{"$f":"'Data Input - BAU'!CQ105","v":0},{"$f":"'Data Input - BAU'!CR105","v":0},{"$f":"'Data Input - BAU'!CS105","v":0},{"$f":"'Data Input - BAU'!CT105","v":0},{"$f":"'Data Input - BAU'!CU105","v":0},{"$f":"'Data Input - BAU'!CV105","v":0},{"$f":"'Data Input - BAU'!CW105","v":0},{"$f":"'Data Input - BAU'!CX105","v":0},{"$f":"'Data Input - BAU'!CY105","v":0},{"$f":"'Data Input - BAU'!CZ105","v":0},{"$f":"'Data Input - BAU'!DA105","v":0},{"$f":"'Data Input - BAU'!DB105","v":0},{"$f":"'Data Input - BAU'!DC105","v":0}]
[null,{"$f":"'Data Input - BAU'!D106","v":0},"Tonnes pa",{"$f":"'Data Input - BAU'!H106","v":0},{"$f":"'Data Input - BAU'!I106","v":0},{"$f":"'Data Input - BAU'!J106","v":0},{"$f":"'Data Input - BAU'!K106","v":0},{"$f":"'Data Input - BAU'!L106","v":0},{"$f":"'Data Input - BAU'!M106","v":0},{"$f":"'Data Input - BAU'!N106","v":0},{"$f":"'Data Input - BAU'!O106","v":0},{"$f":"'Data Input - BAU'!P106","v":0},{"$f":"'Data Input - BAU'!Q106","v":0},{"$f":"'Data Input - BAU'!R106","v":0},{"$f":"'Data Input - BAU'!S106","v":0},{"$f":"'Data Input - BAU'!T106","v":0},{"$f":"'Data Input - BAU'!U106","v":0},{"$f":"'Data Input - BAU'!V106","v":0},{"$f":"'Data Input - BAU'!W106","v":0},{"$f":"'Data Input - BAU'!X106","v":0},{"$f":"'Data Input - BAU'!Y106","v":0},{"$f":"'Data Input - BAU'!Z106","v":0},{"$f":"'Data Input - BAU'!AA106","v":0},{"$f":"'Data Input - BAU'!AB106","v":0},{"$f":"'Data Input - BAU'!AC106","v":0},{"$f":"'Data Input - BAU'!AD106","v":0},{"$f":"'Data Input - BAU'!AE106","v":0},{"$f":"'Data Input - BAU'!AF106","v":0},{"$f":"'Data Input - BAU'!AG106","v":0},{"$f":"'Data Input - BAU'!AH106","v":0},{"$f":"'Data Input - BAU'!AI106","v":0},{"$f":"'Data Input - BAU'!AJ106","v":0},{"$f":"'Data Input - BAU'!AK106","v":0},{"$f":"'Data Input - BAU'!AL106","v":0},{"$f":"'Data Input - BAU'!AM106","v":0},{"$f":"'Data Input - BAU'!AN106","v":0},{"$f":"'Data Input - BAU'!AO106","v":0},{"$f":"'Data Input - BAU'!AP106","v":0},{"$f":"'Data Input - BAU'!AQ106","v":0},{"$f":"'Data Input - BAU'!AR106","v":0},{"$f":"'Data Input - BAU'!AS106","v":0},{"$f":"'Data Input - BAU'!AT106","v":0},{"$f":"'Data Input - BAU'!AU106","v":0},{"$f":"'Data Input - BAU'!AV106","v":0},{"$f":"'Data Input - BAU'!AW106","v":0},{"$f":"'Data Input - BAU'!AX106","v":0},{"$f":"'Data Input - BAU'!AY106","v":0},{"$f":"'Data Input - BAU'!AZ106","v":0},{"$f":"'Data Input - BAU'!BA106","v":0},{"$f":"'Data Input - BAU'!BB106","v":0},{"$f":"'Data Input - BAU'!BC106","v":0},{"$f":"'Data Input - BAU'!BD106","v":0},{"$f":"'Data Input - BAU'!BE106","v":0},{"$f":"'Data Input - BAU'!BF106","v":0},{"$f":"'Data Input - BAU'!BG106","v":0},{"$f":"'Data Input - BAU'!BH106","v":0},{"$f":"'Data Input - BAU'!BI106","v":0},{"$f":"'Data Input - BAU'!BJ106","v":0},{"$f":"'Data Input - BAU'!BK106","v":0},{"$f":"'Data Input - BAU'!BL106","v":0},{"$f":"'Data Input - BAU'!BM106","v":0},{"$f":"'Data Input - BAU'!BN106","v":0},{"$f":"'Data Input - BAU'!BO106","v":0},{"$f":"'Data Input - BAU'!BP106","v":0},{"$f":"'Data Input - BAU'!BQ106","v":0},{"$f":"'Data Input - BAU'!BR106","v":0},{"$f":"'Data Input - BAU'!BS106","v":0},{"$f":"'Data Input - BAU'!BT106","v":0},{"$f":"'Data Input - BAU'!BU106","v":0},{"$f":"'Data Input - BAU'!BV106","v":0},{"$f":"'Data Input - BAU'!BW106","v":0},{"$f":"'Data Input - BAU'!BX106","v":0},{"$f":"'Data Input - BAU'!BY106","v":0},{"$f":"'Data Input - BAU'!BZ106","v":0},{"$f":"'Data Input - BAU'!CA106","v":0},{"$f":"'Data Input - BAU'!CB106","v":0},{"$f":"'Data Input - BAU'!CC106","v":0},{"$f":"'Data Input - BAU'!CD106","v":0},{"$f":"'Data Input - BAU'!CE106","v":0},{"$f":"'Data Input - BAU'!CF106","v":0},{"$f":"'Data Input - BAU'!CG106","v":0},{"$f":"'Data Input - BAU'!CH106","v":0},{"$f":"'Data Input - BAU'!CI106","v":0},{"$f":"'Data Input - BAU'!CJ106","v":0},{"$f":"'Data Input - BAU'!CK106","v":0},{"$f":"'Data Input - BAU'!CL106","v":0},{"$f":"'Data Input - BAU'!CM106","v":0},{"$f":"'Data Input - BAU'!CN106","v":0},{"$f":"'Data Input - BAU'!CO106","v":0},{"$f":"'Data Input - BAU'!CP106","v":0},{"$f":"'Data Input - BAU'!CQ106","v":0},{"$f":"'Data Input - BAU'!CR106","v":0},{"$f":"'Data Input - BAU'!CS106","v":0},{"$f":"'Data Input - BAU'!CT106","v":0},{"$f":"'Data Input - BAU'!CU106","v":0},{"$f":"'Data Input - BAU'!CV106","v":0},{"$f":"'Data Input - BAU'!CW106","v":0},{"$f":"'Data Input - BAU'!CX106","v":0},{"$f":"'Data Input - BAU'!CY106","v":0},{"$f":"'Data Input - BAU'!CZ106","v":0},{"$f":"'Data Input - BAU'!DA106","v":0},{"$f":"'Data Input - BAU'!DB106","v":0},{"$f":"'Data Input - BAU'!DC106","v":0}]
[null,{"$f":"'Data Input - BAU'!D107","v":0},"Tonnes pa",{"$f":"'Data Input - BAU'!H107","v":0},{"$f":"'Data Input - BAU'!I107","v":0},{"$f":"'Data Input - BAU'!J107","v":0},{"$f":"'Data Input - BAU'!K107","v":0},{"$f":"'Data Input - BAU'!L107","v":0},{"$f":"'Data Input - BAU'!M107","v":0},{"$f":"'Data Input - BAU'!N107","v":0},{"$f":"'Data Input - BAU'!O107","v":0},{"$f":"'Data Input - BAU'!P107","v":0},{"$f":"'Data Input - BAU'!Q107","v":0},{"$f":"'Data Input - BAU'!R107","v":0},{"$f":"'Data Input - BAU'!S107","v":0},{"$f":"'Data Input - BAU'!T107","v":0},{"$f":"'Data Input - BAU'!U107","v":0},{"$f":"'Data Input - BAU'!V107","v":0},{"$f":"'Data Input - BAU'!W107","v":0},{"$f":"'Data Input - BAU'!X107","v":0},{"$f":"'Data Input - BAU'!Y107","v":0},{"$f":"'Data Input - BAU'!Z107","v":0},{"$f":"'Data Input - BAU'!AA107","v":0},{"$f":"'Data Input - BAU'!AB107","v":0},{"$f":"'Data Input - BAU'!AC107","v":0},{"$f":"'Data Input - BAU'!AD107","v":0},{"$f":"'Data Input - BAU'!AE107","v":0},{"$f":"'Data Input - BAU'!AF107","v":0},{"$f":"'Data Input - BAU'!AG107","v":0},{"$f":"'Data Input - BAU'!AH107","v":0},{"$f":"'Data Input - BAU'!AI107","v":0},{"$f":"'Data Input - BAU'!AJ107","v":0},{"$f":"'Data Input - BAU'!AK107","v":0},{"$f":"'Data Input - BAU'!AL107","v":0},{"$f":"'Data Input - BAU'!AM107","v":0},{"$f":"'Data Input - BAU'!AN107","v":0},{"$f":"'Data Input - BAU'!AO107","v":0},{"$f":"'Data Input - BAU'!AP107","v":0},{"$f":"'Data Input - BAU'!AQ107","v":0},{"$f":"'Data Input - BAU'!AR107","v":0},{"$f":"'Data Input - BAU'!AS107","v":0},{"$f":"'Data Input - BAU'!AT107","v":0},{"$f":"'Data Input - BAU'!AU107","v":0},{"$f":"'Data Input - BAU'!AV107","v":0},{"$f":"'Data Input - BAU'!AW107","v":0},{"$f":"'Data Input - BAU'!AX107","v":0},{"$f":"'Data Input - BAU'!AY107","v":0},{"$f":"'Data Input - BAU'!AZ107","v":0},{"$f":"'Data Input - BAU'!BA107","v":0},{"$f":"'Data Input - BAU'!BB107","v":0},{"$f":"'Data Input - BAU'!BC107","v":0},{"$f":"'Data Input - BAU'!BD107","v":0},{"$f":"'Data Input - BAU'!BE107","v":0},{"$f":"'Data Input - BAU'!BF107","v":0},{"$f":"'Data Input - BAU'!BG107","v":0},{"$f":"'Data Input - BAU'!BH107","v":0},{"$f":"'Data Input - BAU'!BI107","v":0},{"$f":"'Data Input - BAU'!BJ107","v":0},{"$f":"'Data Input - BAU'!BK107","v":0},{"$f":"'Data Input - BAU'!BL107","v":0},{"$f":"'Data Input - BAU'!BM107","v":0},{"$f":"'Data Input - BAU'!BN107","v":0},{"$f":"'Data Input - BAU'!BO107","v":0},{"$f":"'Data Input - BAU'!BP107","v":0},{"$f":"'Data Input - BAU'!BQ107","v":0},{"$f":"'Data Input - BAU'!BR107","v":0},{"$f":"'Data Input - BAU'!BS107","v":0},{"$f":"'Data Input - BAU'!BT107","v":0},{"$f":"'Data Input - BAU'!BU107","v":0},{"$f":"'Data Input - BAU'!BV107","v":0},{"$f":"'Data Input - BAU'!BW107","v":0},{"$f":"'Data Input - BAU'!BX107","v":0},{"$f":"'Data Input - BAU'!BY107","v":0},{"$f":"'Data Input - BAU'!BZ107","v":0},{"$f":"'Data Input - BAU'!CA107","v":0},{"$f":"'Data Input - BAU'!CB107","v":0},{"$f":"'Data Input - BAU'!CC107","v":0},{"$f":"'Data Input - BAU'!CD107","v":0},{"$f":"'Data Input - BAU'!CE107","v":0},{"$f":"'Data Input - BAU'!CF107","v":0},{"$f":"'Data Input - BAU'!CG107","v":0},{"$f":"'Data Input - BAU'!CH107","v":0},{"$f":"'Data Input - BAU'!CI107","v":0},{"$f":"'Data Input - BAU'!CJ107","v":0},{"$f":"'Data Input - BAU'!CK107","v":0},{"$f":"'Data Input - BAU'!CL107","v":0},{"$f":"'Data Input - BAU'!CM107","v":0},{"$f":"'Data Input - BAU'!CN107","v":0},{"$f":"'Data Input - BAU'!CO107","v":0},{"$f":"'Data Input - BAU'!CP107","v":0},{"$f":"'Data Input - BAU'!CQ107","v":0},{"$f":"'Data Input - BAU'!CR107","v":0},{"$f":"'Data Input - BAU'!CS107","v":0},{"$f":"'Data Input - BAU'!CT107","v":0},{"$f":"'Data Input - BAU'!CU107","v":0},{"$f":"'Data Input - BAU'!CV107","v":0},{"$f":"'Data Input - BAU'!CW107","v":0},{"$f":"'Data Input - BAU'!CX107","v":0},{"$f":"'Data Input - BAU'!CY107","v":0},{"$f":"'Data Input - BAU'!CZ107","v":0},{"$f":"'Data Input - BAU'!DA107","v":0},{"$f":"'Data Input - BAU'!DB107","v":0},{"$f":"'Data Input - BAU'!DC107","v":0}]
[null,{"$f":"'Data Input - BAU'!D108","v":0},"Tonnes pa",{"$f":"'Data Input - BAU'!H108","v":0},{"$f":"'Data Input - BAU'!I108","v":0},{"$f":"'Data Input - BAU'!J108","v":0},{"$f":"'Data Input - BAU'!K108","v":0},{"$f":"'Data Input - BAU'!L108","v":0},{"$f":"'Data Input - BAU'!M108","v":0},{"$f":"'Data Input - BAU'!N108","v":0},{"$f":"'Data Input - BAU'!O108","v":0},{"$f":"'Data Input - BAU'!P108","v":0},{"$f":"'Data Input - BAU'!Q108","v":0},{"$f":"'Data Input - BAU'!R108","v":0},{"$f":"'Data Input - BAU'!S108","v":0},{"$f":"'Data Input - BAU'!T108","v":0},{"$f":"'Data Input - BAU'!U108","v":0},{"$f":"'Data Input - BAU'!V108","v":0},{"$f":"'Data Input - BAU'!W108","v":0},{"$f":"'Data Input - BAU'!X108","v":0},{"$f":"'Data Input - BAU'!Y108","v":0},{"$f":"'Data Input - BAU'!Z108","v":0},{"$f":"'Data Input - BAU'!AA108","v":0},{"$f":"'Data Input - BAU'!AB108","v":0},{"$f":"'Data Input - BAU'!AC108","v":0},{"$f":"'Data Input - BAU'!AD108","v":0},{"$f":"'Data Input - BAU'!AE108","v":0},{"$f":"'Data Input - BAU'!AF108","v":0},{"$f":"'Data Input - BAU'!AG108","v":0},{"$f":"'Data Input - BAU'!AH108","v":0},{"$f":"'Data Input - BAU'!AI108","v":0},{"$f":"'Data Input - BAU'!AJ108","v":0},{"$f":"'Data Input - BAU'!AK108","v":0},{"$f":"'Data Input - BAU'!AL108","v":0},{"$f":"'Data Input - BAU'!AM108","v":0},{"$f":"'Data Input - BAU'!AN108","v":0},{"$f":"'Data Input - BAU'!AO108","v":0},{"$f":"'Data Input - BAU'!AP108","v":0},{"$f":"'Data Input - BAU'!AQ108","v":0},{"$f":"'Data Input - BAU'!AR108","v":0},{"$f":"'Data Input - BAU'!AS108","v":0},{"$f":"'Data Input - BAU'!AT108","v":0},{"$f":"'Data Input - BAU'!AU108","v":0},{"$f":"'Data Input - BAU'!AV108","v":0},{"$f":"'Data Input - BAU'!AW108","v":0},{"$f":"'Data Input - BAU'!AX108","v":0},{"$f":"'Data Input - BAU'!AY108","v":0},{"$f":"'Data Input - BAU'!AZ108","v":0},{"$f":"'Data Input - BAU'!BA108","v":0},{"$f":"'Data Input - BAU'!BB108","v":0},{"$f":"'Data Input - BAU'!BC108","v":0},{"$f":"'Data Input - BAU'!BD108","v":0},{"$f":"'Data Input - BAU'!BE108","v":0},{"$f":"'Data Input - BAU'!BF108","v":0},{"$f":"'Data Input - BAU'!BG108","v":0},{"$f":"'Data Input - BAU'!BH108","v":0},{"$f":"'Data Input - BAU'!BI108","v":0},{"$f":"'Data Input - BAU'!BJ108","v":0},{"$f":"'Data Input - BAU'!BK108","v":0},{"$f":"'Data Input - BAU'!BL108","v":0},{"$f":"'Data Input - BAU'!BM108","v":0},{"$f":"'Data Input - BAU'!BN108","v":0},{"$f":"'Data Input - BAU'!BO108","v":0},{"$f":"'Data Input - BAU'!BP108","v":0},{"$f":"'Data Input - BAU'!BQ108","v":0},{"$f":"'Data Input - BAU'!BR108","v":0},{"$f":"'Data Input - BAU'!BS108","v":0},{"$f":"'Data Input - BAU'!BT108","v":0},{"$f":"'Data Input - BAU'!BU108","v":0},{"$f":"'Data Input - BAU'!BV108","v":0},{"$f":"'Data Input - BAU'!BW108","v":0},{"$f":"'Data Input - BAU'!BX108","v":0},{"$f":"'Data Input - BAU'!BY108","v":0},{"$f":"'Data Input - BAU'!BZ108","v":0},{"$f":"'Data Input - BAU'!CA108","v":0},{"$f":"'Data Input - BAU'!CB108","v":0},{"$f":"'Data Input - BAU'!CC108","v":0},{"$f":"'Data Input - BAU'!CD108","v":0},{"$f":"'Data Input - BAU'!CE108","v":0},{"$f":"'Data Input - BAU'!CF108","v":0},{"$f":"'Data Input - BAU'!CG108","v":0},{"$f":"'Data Input - BAU'!CH108","v":0},{"$f":"'Data Input - BAU'!CI108","v":0},{"$f":"'Data Input - BAU'!CJ108","v":0},{"$f":"'Data Input - BAU'!CK108","v":0},{"$f":"'Data Input - BAU'!CL108","v":0},{"$f":"'Data Input - BAU'!CM108","v":0},{"$f":"'Data Input - BAU'!CN108","v":0},{"$f":"'Data Input - BAU'!CO108","v":0},{"$f":"'Data Input - BAU'!CP108","v":0},{"$f":"'Data Input - BAU'!CQ108","v":0},{"$f":"'Data Input - BAU'!CR108","v":0},{"$f":"'Data Input - BAU'!CS108","v":0},{"$f":"'Data Input - BAU'!CT108","v":0},{"$f":"'Data Input - BAU'!CU108","v":0},{"$f":"'Data Input - BAU'!CV108","v":0},{"$f":"'Data Input - BAU'!CW108","v":0},{"$f":"'Data Input - BAU'!CX108","v":0},{"$f":"'Data Input - BAU'!CY108","v":0},{"$f":"'Data Input - BAU'!CZ108","v":0},{"$f":"'Data Input - BAU'!DA108","v":0},{"$f":"'Data Input - BAU'!DB108","v":0},{"$f":"'Data Input - BAU'!DC108","v":0}]
[null,{"$f":"'Data Input - BAU'!D109","v":0},"Tonnes pa",{"$f":"'Data Input - BAU'!H109","v":0},{"$f":"'Data Input - BAU'!I109","v":0},{"$f":"'Data Input - BAU'!J109","v":0},{"$f":"'Data Input - BAU'!K109","v":0},{"$f":"'Data Input - BAU'!L109","v":0},{"$f":"'Data Input - BAU'!M109","v":0},{"$f":"'Data Input - BAU'!N109","v":0},{"$f":"'Data Input - BAU'!O109","v":0},{"$f":"'Data Input - BAU'!P109","v":0},{"$f":"'Data Input - BAU'!Q109","v":0},{"$f":"'Data Input - BAU'!R109","v":0},{"$f":"'Data Input - BAU'!S109","v":0},{"$f":"'Data Input - BAU'!T109","v":0},{"$f":"'Data Input - BAU'!U109","v":0},{"$f":"'Data Input - BAU'!V109","v":0},{"$f":"'Data Input - BAU'!W109","v":0},{"$f":"'Data Input - BAU'!X109","v":0},{"$f":"'Data Input - BAU'!Y109","v":0},{"$f":"'Data Input - BAU'!Z109","v":0},{"$f":"'Data Input - BAU'!AA109","v":0},{"$f":"'Data Input - BAU'!AB109","v":0},{"$f":"'Data Input - BAU'!AC109","v":0},{"$f":"'Data Input - BAU'!AD109","v":0},{"$f":"'Data Input - BAU'!AE109","v":0},{"$f":"'Data Input - BAU'!AF109","v":0},{"$f":"'Data Input - BAU'!AG109","v":0},{"$f":"'Data Input - BAU'!AH109","v":0},{"$f":"'Data Input - BAU'!AI109","v":0},{"$f":"'Data Input - BAU'!AJ109","v":0},{"$f":"'Data Input - BAU'!AK109","v":0},{"$f":"'Data Input - BAU'!AL109","v":0},{"$f":"'Data Input - BAU'!AM109","v":0},{"$f":"'Data Input - BAU'!AN109","v":0},{"$f":"'Data Input - BAU'!AO109","v":0},{"$f":"'Data Input - BAU'!AP109","v":0},{"$f":"'Data Input - BAU'!AQ109","v":0},{"$f":"'Data Input - BAU'!AR109","v":0},{"$f":"'Data Input - BAU'!AS109","v":0},{"$f":"'Data Input - BAU'!AT109","v":0},{"$f":"'Data Input - BAU'!AU109","v":0},{"$f":"'Data Input - BAU'!AV109","v":0},{"$f":"'Data Input - BAU'!AW109","v":0},{"$f":"'Data Input - BAU'!AX109","v":0},{"$f":"'Data Input - BAU'!AY109","v":0},{"$f":"'Data Input - BAU'!AZ109","v":0},{"$f":"'Data Input - BAU'!BA109","v":0},{"$f":"'Data Input - BAU'!BB109","v":0},{"$f":"'Data Input - BAU'!BC109","v":0},{"$f":"'Data Input - BAU'!BD109","v":0},{"$f":"'Data Input - BAU'!BE109","v":0},{"$f":"'Data Input - BAU'!BF109","v":0},{"$f":"'Data Input - BAU'!BG109","v":0},{"$f":"'Data Input - BAU'!BH109","v":0},{"$f":"'Data Input - BAU'!BI109","v":0},{"$f":"'Data Input - BAU'!BJ109","v":0},{"$f":"'Data Input - BAU'!BK109","v":0},{"$f":"'Data Input - BAU'!BL109","v":0},{"$f":"'Data Input - BAU'!BM109","v":0},{"$f":"'Data Input - BAU'!BN109","v":0},{"$f":"'Data Input - BAU'!BO109","v":0},{"$f":"'Data Input - BAU'!BP109","v":0},{"$f":"'Data Input - BAU'!BQ109","v":0},{"$f":"'Data Input - BAU'!BR109","v":0},{"$f":"'Data Input - BAU'!BS109","v":0},{"$f":"'Data Input - BAU'!BT109","v":0},{"$f":"'Data Input - BAU'!BU109","v":0},{"$f":"'Data Input - BAU'!BV109","v":0},{"$f":"'Data Input - BAU'!BW109","v":0},{"$f":"'Data Input - BAU'!BX109","v":0},{"$f":"'Data Input - BAU'!BY109","v":0},{"$f":"'Data Input - BAU'!BZ109","v":0},{"$f":"'Data Input - BAU'!CA109","v":0},{"$f":"'Data Input - BAU'!CB109","v":0},{"$f":"'Data Input - BAU'!CC109","v":0},{"$f":"'Data Input - BAU'!CD109","v":0},{"$f":"'Data Input - BAU'!CE109","v":0},{"$f":"'Data Input - BAU'!CF109","v":0},{"$f":"'Data Input - BAU'!CG109","v":0},{"$f":"'Data Input - BAU'!CH109","v":0},{"$f":"'Data Input - BAU'!CI109","v":0},{"$f":"'Data Input - BAU'!CJ109","v":0},{"$f":"'Data Input - BAU'!CK109","v":0},{"$f":"'Data Input - BAU'!CL109","v":0},{"$f":"'Data Input - BAU'!CM109","v":0},{"$f":"'Data Input - BAU'!CN109","v":0},{"$f":"'Data Input - BAU'!CO109","v":0},{"$f":"'Data Input - BAU'!CP109","v":0},{"$f":"'Data Input - BAU'!CQ109","v":0},{"$f":"'Data Input - BAU'!CR109","v":0},{"$f":"'Data Input - BAU'!CS109","v":0},{"$f":"'Data Input - BAU'!CT109","v":0},{"$f":"'Data Input - BAU'!CU109","v":0},{"$f":"'Data Input - BAU'!CV109","v":0},{"$f":"'Data Input - BAU'!CW109","v":0},{"$f":"'Data Input - BAU'!CX109","v":0},{"$f":"'Data Input - BAU'!CY109","v":0},{"$f":"'Data Input - BAU'!CZ109","v":0},{"$f":"'Data Input - BAU'!DA109","v":0},{"$f":"'Data Input - BAU'!DB109","v":0},{"$f":"'Data Input - BAU'!DC109","v":0}]
[null,{"$f":"'Data Input - BAU'!D110","v":0},"Tonnes pa",{"$f":"'Data Input - BAU'!H110","v":0},{"$f":"'Data Input - BAU'!I110","v":0},{"$f":"'Data Input - BAU'!J110","v":0},{"$f":"'Data Input - BAU'!K110","v":0},{"$f":"'Data Input - BAU'!L110","v":0},{"$f":"'Data Input - BAU'!M110","v":0},{"$f":"'Data Input - BAU'!N110","v":0},{"$f":"'Data Input - BAU'!O110","v":0},{"$f":"'Data Input - BAU'!P110","v":0},{"$f":"'Data Input - BAU'!Q110","v":0},{"$f":"'Data Input - BAU'!R110","v":0},{"$f":"'Data Input - BAU'!S110","v":0},{"$f":"'Data Input - BAU'!T110","v":0},{"$f":"'Data Input - BAU'!U110","v":0},{"$f":"'Data Input - BAU'!V110","v":0},{"$f":"'Data Input - BAU'!W110","v":0},{"$f":"'Data Input - BAU'!X110","v":0},{"$f":"'Data Input - BAU'!Y110","v":0},{"$f":"'Data Input - BAU'!Z110","v":0},{"$f":"'Data Input - BAU'!AA110","v":0},{"$f":"'Data Input - BAU'!AB110","v":0},{"$f":"'Data Input - BAU'!AC110","v":0},{"$f":"'Data Input - BAU'!AD110","v":0},{"$f":"'Data Input - BAU'!AE110","v":0},{"$f":"'Data Input - BAU'!AF110","v":0},{"$f":"'Data Input - BAU'!AG110","v":0},{"$f":"'Data Input - BAU'!AH110","v":0},{"$f":"'Data Input - BAU'!AI110","v":0},{"$f":"'Data Input - BAU'!AJ110","v":0},{"$f":"'Data Input - BAU'!AK110","v":0},{"$f":"'Data Input - BAU'!AL110","v":0},{"$f":"'Data Input - BAU'!AM110","v":0},{"$f":"'Data Input - BAU'!AN110","v":0},{"$f":"'Data Input - BAU'!AO110","v":0},{"$f":"'Data Input - BAU'!AP110","v":0},{"$f":"'Data Input - BAU'!AQ110","v":0},{"$f":"'Data Input - BAU'!AR110","v":0},{"$f":"'Data Input - BAU'!AS110","v":0},{"$f":"'Data Input - BAU'!AT110","v":0},{"$f":"'Data Input - BAU'!AU110","v":0},{"$f":"'Data Input - BAU'!AV110","v":0},{"$f":"'Data Input - BAU'!AW110","v":0},{"$f":"'Data Input - BAU'!AX110","v":0},{"$f":"'Data Input - BAU'!AY110","v":0},{"$f":"'Data Input - BAU'!AZ110","v":0},{"$f":"'Data Input - BAU'!BA110","v":0},{"$f":"'Data Input - BAU'!BB110","v":0},{"$f":"'Data Input - BAU'!BC110","v":0},{"$f":"'Data Input - BAU'!BD110","v":0},{"$f":"'Data Input - BAU'!BE110","v":0},{"$f":"'Data Input - BAU'!BF110","v":0},{"$f":"'Data Input - BAU'!BG110","v":0},{"$f":"'Data Input - BAU'!BH110","v":0},{"$f":"'Data Input - BAU'!BI110","v":0},{"$f":"'Data Input - BAU'!BJ110","v":0},{"$f":"'Data Input - BAU'!BK110","v":0},{"$f":"'Data Input - BAU'!BL110","v":0},{"$f":"'Data Input - BAU'!BM110","v":0},{"$f":"'Data Input - BAU'!BN110","v":0},{"$f":"'Data Input - BAU'!BO110","v":0},{"$f":"'Data Input - BAU'!BP110","v":0},{"$f":"'Data Input - BAU'!BQ110","v":0},{"$f":"'Data Input - BAU'!BR110","v":0},{"$f":"'Data Input - BAU'!BS110","v":0},{"$f":"'Data Input - BAU'!BT110","v":0},{"$f":"'Data Input - BAU'!BU110","v":0},{"$f":"'Data Input - BAU'!BV110","v":0},{"$f":"'Data Input - BAU'!BW110","v":0},{"$f":"'Data Input - BAU'!BX110","v":0},{"$f":"'Data Input - BAU'!BY110","v":0},{"$f":"'Data Input - BAU'!BZ110","v":0},{"$f":"'Data Input - BAU'!CA110","v":0},{"$f":"'Data Input - BAU'!CB110","v":0},{"$f":"'Data Input - BAU'!CC110","v":0},{"$f":"'Data Input - BAU'!CD110","v":0},{"$f":"'Data Input - BAU'!CE110","v":0},{"$f":"'Data Input - BAU'!CF110","v":0},{"$f":"'Data Input - BAU'!CG110","v":0},{"$f":"'Data Input - BAU'!CH110","v":0},{"$f":"'Data Input - BAU'!CI110","v":0},{"$f":"'Data Input - BAU'!CJ110","v":0},{"$f":"'Data Input - BAU'!CK110","v":0},{"$f":"'Data Input - BAU'!CL110","v":0},{"$f":"'Data Input - BAU'!CM110","v":0},{"$f":"'Data Input - BAU'!CN110","v":0},{"$f":"'Data Input - BAU'!CO110","v":0},{"$f":"'Data Input - BAU'!CP110","v":0},{"$f":"'Data Input - BAU'!CQ110","v":0},{"$f":"'Data Input - BAU'!CR110","v":0},{"$f":"'Data Input - BAU'!CS110","v":0},{"$f":"'Data Input - BAU'!CT110","v":0},{"$f":"'Data Input - BAU'!CU110","v":0},{"$f":"'Data Input - BAU'!CV110","v":0},{"$f":"'Data Input - BAU'!CW110","v":0},{"$f":"'Data Input - BAU'!CX110","v":0},{"$f":"'Data Input - BAU'!CY110","v":0},{"$f":"'Data Input - BAU'!CZ110","v":0},{"$f":"'Data Input - BAU'!DA110","v":0},{"$f":"'Data Input - BAU'!DB110","v":0},{"$f":"'Data Input - BAU'!DC110","v":0}]
[]
[null,"Air pollutant emissions- value"]
[null,{"$f":"B53","v":"Sox 2019"},"£000's",{"$f":"IFERROR(IF(OR($C$67=FALSE,LEFT($B61,3)<>\"NOX\"),D53*INDEX('Damage costs'!$O$16:$O$43,MATCH($B61,'Damage costs'!$C$16:$C$43,0))/1000,D53*INDEX('Damage costs'!$S$16:$S$43,MATCH($B61,'Damage costs'!$C$16:$C$43,0))/1000),\"\")","v":6.7435895540131199},{"$f":"IFERROR(IF(OR($C$67=FALSE,LEFT($B61,3)<>\"NOX\"),E53*INDEX('Damage costs'!$O$16:$O$43,MATCH($B61,'Damage costs'!$C$16:$C$43,0))/1000,E53*INDEX('Damage costs'!$S$16:$S$43,MATCH($B61,'Damage costs'!$C$16:$C$43,0))/1000),\"\")","v":6.7435895540131199},{"$f":"IFERROR(IF(OR($C$67=FALSE,LEFT($B61,3)<>\"NOX\"),F53*INDEX('Damage costs'!$O$16:$O$43,MATCH($B61,'Damage costs'!$C$16:$C$43,0))/1000,F53*INDEX('Damage costs'!$S$16:$S$43,MATCH($B61,'Damage costs'!$C$16:$C$43,0))/1000),\"\")","v":6.7435895540131199},{"$f":"IFERROR(IF(OR($C$67=FALSE,LEFT($B61,3)<>\"NOX\"),G53*INDEX('Damage costs'!$O$16:$O$43,MATCH($B61,'Damage costs'!$C$16:$C$43,0))/1000,G53*INDEX('Damage costs'!$S$16:$S$43,MATCH($B61,'Damage costs'!$C$16:$C$43,0))/1000),\"\")","v":6.7435895540131199},{"$f":"IFERROR(IF(OR($C$67=FALSE,LEFT($B61,3)<>\"NOX\"),H53*INDEX('Damage costs'!$O$16:$O$43,MATCH($B61,'Damage costs'!$C$16:$C$43,0))/1000,H53*INDEX('Damage costs'!$S$16:$S$43,MATCH($B61,'Damage costs'!$C$16:$C$43,0))/1000),\"\")","v":6.7435895540131199},{"$f":"IFERROR(IF(OR($C$67=FALSE,LEFT($B61,3)<>\"NOX\"),I53*INDEX('Damage costs'!$O$16:$O$43,MATCH($B61,'Damage costs'!$C$16:$C$43,0))/1000,I53*INDEX('Damage costs'!$S$16:$S$43,MATCH($B61,'Damage costs'!$C$16:$C$43,0))/1000),\"\")","v":6.7435895540131199},{"$f":"IFERROR(IF(OR($C$67=FALSE,LEFT($B61,3)<>\"NOX\"),J53*INDEX('Damage costs'!$O$16:$O$43,MATCH($B61,'Damage costs'!$C$16:$C$43,0))/1000,J53*INDEX('Damage costs'!$S$16:$S$43,MATCH($B61,'Damage costs'!$C$16:$C$43,0))/1000),\"\")","v":6.7435895540131199},{"$f":"IFERROR(IF(OR($C$67=FALSE,LEFT($B61,3)<>\"NOX\"),K53*INDEX('Damage costs'!$O$16:$O$43,MATCH($B61,'Damage costs'!$C$16:$C$43,0))/1000,K53*INDEX('Damage costs'!$S$16:$S$43,MATCH($B61,'Damage costs'!$C$16:$C$43,0))/1000),\"\")","v":0},{"$f":"IFERROR(IF(OR($C$67=FALSE,LEFT($B61,3)<>\"NOX\"),L53*INDEX('Damage costs'!$O$16:$O$43,MATCH($B61,'Damage costs'!$C$16:$C$43,0))/1000,L53*INDEX('Damage costs'!$S$16:$S$43,MATCH($B61,'Damage costs'!$C$16:$C$43,0))/1000),\"\")","v":0},{"$f":"IFERROR(IF(OR($C$67=FALSE,LEFT($B61,3)<>\"NOX\"),M53*INDEX('Damage costs'!$O$16:$O$43,MATCH($B61,'Damage costs'!$C$16:$C$43,0))/1000,M53*INDEX('Damage costs'!$S$16:$S$43,MATCH($B61,'Damage costs'!$C$16:$C$43,0))/1000),\"\")","v":0},{"$f":"IFERROR(IF(OR($C$67=FALSE,LEFT($B61,3)<>\"NOX\"),N53*INDEX('Damage costs'!$O$16:$O$43,MATCH($B61,'Damage costs'!$C$16:$C$43,0))/1000,N53*INDEX('Damage costs'!$S$16:$S$43,MATCH($B61,'Damage costs'!$C$16:$C$43,0))/1000),\"\")","v":0},{"$f":"IFERROR(IF(OR($C$67=FALSE,LEFT($B61,3)<>\"NOX\"),O53*INDEX('Damage costs'!$O$16:$O$43,MATCH($B61,'Damage costs'!$C$16:$C$43,0))/1000,O53*INDEX('Damage costs'!$S$16:$S$43,MATCH($B61,'Damage costs'!$C$16:$C$43,0))/1000),\"\")","v":0},{"$f":"IFERROR(IF(OR($C$67=FALSE,LEFT($B61,3)<>\"NOX\"),P53*INDEX('Damage costs'!$O$16:$O$43,MATCH($B61,'Damage costs'!$C$16:$C$43,0))/1000,P53*INDEX('Damage costs'!$S$16:$S$43,MATCH($B61,'Damage costs'!$C$16:$C$43,0))/1000),\"\")","v":0},{"$f":"IFERROR(IF(OR($C$67=FALSE,LEFT($B61,3)<>\"NOX\"),Q53*INDEX('Damage costs'!$O$16:$O$43,MATCH($B61,'Damage costs'!$C$16:$C$43,0))/1000,Q53*INDEX('Damage costs'!$S$16:$S$43,MATCH($B61,'Damage costs'!$C$16:$C$43,0))/1000),\"\")","v":0},{"$f":"IFERROR(IF(OR($C$67=FALSE,LEFT($B61,3)<>\"NOX\"),R53*INDEX('Damage costs'!$O$16:$O$43,MATCH($B61,'Damage costs'!$C$16:$C$43,0))/1000,R53*INDEX('Damage costs'!$S$16:$S$43,MATCH($B61,'Damage costs'!$C$16:$C$43,0))/1000),\"\")","v":0},{"$f":"IFERROR(IF(OR($C$67=FALSE,LEFT($B61,3)<>\"NOX\"),S53*INDEX('Damage costs'!$O$16:$O$43,MATCH($B61,'Damage costs'!$C$16:$C$43,0))/1000,S53*INDEX('Damage costs'!$S$16:$S$43,MATCH($B61,'Damage costs'!$C$16:$C$43,0))/1000),\"\")","v":0},{"$f":"IFERROR(IF(OR($C$67=FALSE,LEFT($B61,3)<>\"NOX\"),T53*INDEX('Damage costs'!$O$16:$O$43,MATCH($B61,'Damage costs'!$C$16:$C$43,0))/1000,T53*INDEX('Damage costs'!$S$16:$S$43,MATCH($B61,'Damage costs'!$C$16:$C$43,0))/1000),\"\")","v":0},{"$f":"IFERROR(IF(OR($C$67=FALSE,LEFT($B61,3)<>\"NOX\"),U53*INDEX('Damage costs'!$O$16:$O$43,MATCH($B61,'Damage costs'!$C$16:$C$43,0))/1000,U53*INDEX('Damage costs'!$S$16:$S$43,MATCH($B61,'Damage costs'!$C$16:$C$43,0))/1000),\"\")","v":0},{"$f":"IFERROR(IF(OR($C$67=FALSE,LEFT($B61,3)<>\"NOX\"),V53*INDEX('Damage costs'!$O$16:$O$43,MATCH($B61,'Damage costs'!$C$16:$C$43,0))/1000,V53*INDEX('Damage costs'!$S$16:$S$43,MATCH($B61,'Damage costs'!$C$16:$C$43,0))/1000),\"\")","v":0},{"$f":"IFERROR(IF(OR($C$67=FALSE,LEFT($B61,3)<>\"NOX\"),W53*INDEX('Damage costs'!$O$16:$O$43,MATCH($B61,'Damage costs'!$C$16:$C$43,0))/1000,W53*INDEX('Damage costs'!$S$16:$S$43,MATCH($B61,'Damage costs'!$C$16:$C$43,0))/1000),\"\")","v":0},{"$f":"IFERROR(IF(OR($C$67=FALSE,LEFT($B61,3)<>\"NOX\"),X53*INDEX('Damage costs'!$O$16:$O$43,MATCH($B61,'Damage costs'!$C$16:$C$43,0))/1000,X53*INDEX('Damage costs'!$S$16:$S$43,MATCH($B61,'Damage costs'!$C$16:$C$43,0))/1000),\"\")","v":0},{"$f":"IFERROR(IF(OR($C$67=FALSE,LEFT($B61,3)<>\"NOX\"),Y53*INDEX('Damage costs'!$O$16:$O$43,MATCH($B61,'Damage costs'!$C$16:$C$43,0))/1000,Y53*INDEX('Damage costs'!$S$16:$S$43,MATCH($B61,'Damage costs'!$C$16:$C$43,0))/1000),\"\")","v":0},{"$f":"IFERROR(IF(OR($C$67=FALSE,LEFT($B61,3)<>\"NOX\"),Z53*INDEX('Damage costs'!$O$16:$O$43,MATCH($B61,'Damage costs'!$C$16:$C$43,0))/1000,Z53*INDEX('Damage costs'!$S$16:$S$43,MATCH($B61,'Damage costs'!$C$16:$C$43,0))/1000),\"\")","v":0},{"$f":"IFERROR(IF(OR($C$67=FALSE,LEFT($B61,3)<>\"NOX\"),AA53*INDEX('Damage costs'!$O$16:$O$43,MATCH($B61,'Damage costs'!$C$16:$C$43,0))/1000,AA53*INDEX('Damage costs'!$S$16:$S$43,MATCH($B61,'Damage costs'!$C$16:$C$43,0))/1000),\"\")","v":0},{"$f":"IFERROR(IF(OR($C$67=FALSE,LEFT($B61,3)<>\"NOX\"),AB53*INDEX('Damage costs'!$O$16:$O$43,MATCH($B61,'Damage costs'!$C$16:$C$43,0))/1000,AB53*INDEX('Damage costs'!$S$16:$S$43,MATCH($B61,'Damage costs'!$C$16:$C$43,0))/1000),\"\")","v":0},{"$f":"IFERROR(IF(OR($C$67=FALSE,LEFT($B61,3)<>\"NOX\"),AC53*INDEX('Damage costs'!$O$16:$O$43,MATCH($B61,'Damage costs'!$C$16:$C$43,0))/1000,AC53*INDEX('Damage costs'!$S$16:$S$43,MATCH($B61,'Damage costs'!$C$16:$C$43,0))/1000),\"\")","v":0},{"$f":"IFERROR(IF(OR($C$67=FALSE,LEFT($B61,3)<>\"NOX\"),AD53*INDEX('Damage costs'!$O$16:$O$43,MATCH($B61,'Damage costs'!$C$16:$C$43,0))/1000,AD53*INDEX('Damage costs'!$S$16:$S$43,MATCH($B61,'Damage costs'!$C$16:$C$43,0))/1000),\"\")","v":0},{"$f":"IFERROR(IF(OR($C$67=FALSE,LEFT($B61,3)<>\"NOX\"),AE53*INDEX('Damage costs'!$O$16:$O$43,MATCH($B61,'Damage costs'!$C$16:$C$43,0))/1000,AE53*INDEX('Damage costs'!$S$16:$S$43,MATCH($B61,'Damage costs'!$C$16:$C$43,0))/1000),\"\")","v":0},{"$f":"IFERROR(IF(OR($C$67=FALSE,LEFT($B61,3)<>\"NOX\"),AF53*INDEX('Damage costs'!$O$16:$O$43,MATCH($B61,'Damage costs'!$C$16:$C$43,0))/1000,AF53*INDEX('Damage costs'!$S$16:$S$43,MATCH($B61,'Damage costs'!$C$16:$C$43,0))/1000),\"\")","v":0},{"$f":"IFERROR(IF(OR($C$67=FALSE,LEFT($B61,3)<>\"NOX\"),AG53*INDEX('Damage costs'!$O$16:$O$43,MATCH($B61,'Damage costs'!$C$16:$C$43,0))/1000,AG53*INDEX('Damage costs'!$S$16:$S$43,MATCH($B61,'Damage costs'!$C$16:$C$43,0))/1000),\"\")","v":0},{"$f":"IFERROR(IF(OR($C$67=FALSE,LEFT($B61,3)<>\"NOX\"),AH53*INDEX('Damage costs'!$O$16:$O$43,MATCH($B61,'Damage costs'!$C$16:$C$43,0))/1000,AH53*INDEX('Damage costs'!$S$16:$S$43,MATCH($B61,'Damage costs'!$C$16:$C$43,0))/1000),\"\")","v":0},{"$f":"IFERROR(IF(OR($C$67=FALSE,LEFT($B61,3)<>\"NOX\"),AI53*INDEX('Damage costs'!$O$16:$O$43,MATCH($B61,'Damage costs'!$C$16:$C$43,0))/1000,AI53*INDEX('Damage costs'!$S$16:$S$43,MATCH($B61,'Damage costs'!$C$16:$C$43,0))/1000),\"\")","v":0},{"$f":"IFERROR(IF(OR($C$67=FALSE,LEFT($B61,3)<>\"NOX\"),AJ53*INDEX('Damage costs'!$O$16:$O$43,MATCH($B61,'Damage costs'!$C$16:$C$43,0))/1000,AJ53*INDEX('Damage costs'!$S$16:$S$43,MATCH($B61,'Damage costs'!$C$16:$C$43,0))/1000),\"\")","v":0},{"$f":"IFERROR(IF(OR($C$67=FALSE,LEFT($B61,3)<>\"NOX\"),AK53*INDEX('Damage costs'!$O$16:$O$43,MATCH($B61,'Damage costs'!$C$16:$C$43,0))/1000,AK53*INDEX('Damage costs'!$S$16:$S$43,MATCH($B61,'Damage costs'!$C$16:$C$43,0))/1000),\"\")","v":0},{"$f":"IFERROR(IF(OR($C$67=FALSE,LEFT($B61,3)<>\"NOX\"),AL53*INDEX('Damage costs'!$O$16:$O$43,MATCH($B61,'Damage costs'!$C$16:$C$43,0))/1000,AL53*INDEX('Damage costs'!$S$16:$S$43,MATCH($B61,'Damage costs'!$C$16:$C$43,0))/1000),\"\")","v":0},{"$f":"IFERROR(IF(OR($C$67=FALSE,LEFT($B61,3)<>\"NOX\"),AM53*INDEX('Damage costs'!$O$16:$O$43,MATCH($B61,'Damage costs'!$C$16:$C$43,0))/1000,AM53*INDEX('Damage costs'!$S$16:$S$43,MATCH($B61,'Damage costs'!$C$16:$C$43,0))/1000),\"\")","v":0},{"$f":"IFERROR(IF(OR($C$67=FALSE,LEFT($B61,3)<>\"NOX\"),AN53*INDEX('Damage costs'!$O$16:$O$43,MATCH($B61,'Damage costs'!$C$16:$C$43,0))/1000,AN53*INDEX('Damage costs'!$S$16:$S$43,MATCH($B61,'Damage costs'!$C$16:$C$43,0))/1000),\"\")","v":0},{"$f":"IFERROR(IF(OR($C$67=FALSE,LEFT($B61,3)<>\"NOX\"),AO53*INDEX('Damage costs'!$O$16:$O$43,MATCH($B61,'Damage costs'!$C$16:$C$43,0))/1000,AO53*INDEX('Damage costs'!$S$16:$S$43,MATCH($B61,'Damage costs'!$C$16:$C$43,0))/1000),\"\")","v":0},{"$f":"IFERROR(IF(OR($C$67=FALSE,LEFT($B61,3)<>\"NOX\"),AP53*INDEX('Damage costs'!$O$16:$O$43,MATCH($B61,'Damage costs'!$C$16:$C$43,0))/1000,AP53*INDEX('Damage costs'!$S$16:$S$43,MATCH($B61,'Damage costs'!$C$16:$C$43,0))/1000),\"\")","v":0},{"$f":"IFERROR(IF(OR($C$67=FALSE,LEFT($B61,3)<>\"NOX\"),AQ53*INDEX('Damage costs'!$O$16:$O$43,MATCH($B61,'Damage costs'!$C$16:$C$43,0))/1000,AQ53*INDEX('Damage costs'!$S$16:$S$43,MATCH($B61,'Damage costs'!$C$16:$C$43,0))/1000),\"\")","v":0},{"$f":"IFERROR(IF(OR($C$67=FALSE,LEFT($B61,3)<>\"NOX\"),AR53*INDEX('Damage costs'!$O$16:$O$43,MATCH($B61,'Damage costs'!$C$16:$C$43,0))/1000,AR53*INDEX('Damage costs'!$S$16:$S$43,MATCH($B61,'Damage costs'!$C$16:$C$43,0))/1000),\"\")","v":0},{"$f":"IFERROR(IF(OR($C$67=FALSE,LEFT($B61,3)<>\"NOX\"),AS53*INDEX('Damage costs'!$O$16:$O$43,MATCH($B61,'Damage costs'!$C$16:$C$43,0))/1000,AS53*INDEX('Damage costs'!$S$16:$S$43,MATCH($B61,'Damage costs'!$C$16:$C$43,0))/1000),\"\")","v":0},{"$f":"IFERROR(IF(OR($C$67=FALSE,LEFT($B61,3)<>\"NOX\"),AT53*INDEX('Damage costs'!$O$16:$O$43,MATCH($B61,'Damage costs'!$C$16:$C$43,0))/1000,AT53*INDEX('Damage costs'!$S$16:$S$43,MATCH($B61,'Damage costs'!$C$16:$C$43,0))/1000),\"\")","v":0},{"$f":"IFERROR(IF(OR($C$67=FALSE,LEFT($B61,3)<>\"NOX\"),AU53*INDEX('Damage costs'!$O$16:$O$43,MATCH($B61,'Damage costs'!$C$16:$C$43,0))/1000,AU53*INDEX('Damage costs'!$S$16:$S$43,MATCH($B61,'Damage costs'!$C$16:$C$43,0))/1000),\"\")","v":0},{"$f":"IFERROR(IF(OR($C$67=FALSE,LEFT($B61,3)<>\"NOX\"),AV53*INDEX('Damage costs'!$O$16:$O$43,MATCH($B61,'Damage costs'!$C$16:$C$43,0))/1000,AV53*INDEX('Damage costs'!$S$16:$S$43,MATCH($B61,'Damage costs'!$C$16:$C$43,0))/1000),\"\")","v":0},{"$f":"IFERROR(IF(OR($C$67=FALSE,LEFT($B61,3)<>\"NOX\"),AW53*INDEX('Damage costs'!$O$16:$O$43,MATCH($B61,'Damage costs'!$C$16:$C$43,0))/1000,AW53*INDEX('Damage costs'!$S$16:$S$43,MATCH($B61,'Damage costs'!$C$16:$C$43,0))/1000),\"\")","v":0},{"$f":"IFERROR(IF(OR($C$67=FALSE,LEFT($B61,3)<>\"NOX\"),AX53*INDEX('Damage costs'!$O$16:$O$43,MATCH($B61,'Damage costs'!$C$16:$C$43,0))/1000,AX53*INDEX('Damage costs'!$S$16:$S$43,MATCH($B61,'Damage costs'!$C$16:$C$43,0))/1000),\"\")","v":0},{"$f":"IFERROR(IF(OR($C$67=FALSE,LEFT($B61,3)<>\"NOX\"),AY53*INDEX('Damage costs'!$O$16:$O$43,MATCH($B61,'Damage costs'!$C$16:$C$43,0))/1000,AY53*INDEX('Damage costs'!$S$16:$S$43,MATCH($B61,'Damage costs'!$C$16:$C$43,0))/1000),\"\")","v":0},{"$f":"IFERROR(IF(OR($C$67=FALSE,LEFT($B61,3)<>\"NOX\"),AZ53*INDEX('Damage costs'!$O$16:$O$43,MATCH($B61,'Damage costs'!$C$16:$C$43,0))/1000,AZ53*INDEX('Damage costs'!$S$16:$S$43,MATCH($B61,'Damage costs'!$C$16:$C$43,0))/1000),\"\")","v":0},{"$f":"IFERROR(IF(OR($C$67=FALSE,LEFT($B61,3)<>\"NOX\"),BA53*INDEX('Damage costs'!$O$16:$O$43,MATCH($B61,'Damage costs'!$C$16:$C$43,0))/1000,BA53*INDEX('Damage costs'!$S$16:$S$43,MATCH($B61,'Damage costs'!$C$16:$C$43,0))/1000),\"\")","v":0},{"$f":"IFERROR(IF(OR($C$67=FALSE,LEFT($B61,3)<>\"NOX\"),BB53*INDEX('Damage costs'!$O$16:$O$43,MATCH($B61,'Damage costs'!$C$16:$C$43,0))/1000,BB53*INDEX('Damage costs'!$S$16:$S$43,MATCH($B61,'Damage costs'!$C$16:$C$43,0))/1000),\"\")","v":0},{"$f":"IFERROR(IF(OR($C$67=FALSE,LEFT($B61,3)<>\"NOX\"),BC53*INDEX('Damage costs'!$O$16:$O$43,MATCH($B61,'Damage costs'!$C$16:$C$43,0))/1000,BC53*INDEX('Damage costs'!$S$16:$S$43,MATCH($B61,'Damage costs'!$C$16:$C$43,0))/1000),\"\")","v":0},{"$f":"IFERROR(IF(OR($C$67=FALSE,LEFT($B61,3)<>\"NOX\"),BD53*INDEX('Damage costs'!$O$16:$O$43,MATCH($B61,'Damage costs'!$C$16:$C$43,0))/1000,BD53*INDEX('Damage costs'!$S$16:$S$43,MATCH($B61,'Damage costs'!$C$16:$C$43,0))/1000),\"\")","v":0},{"$f":"IFERROR(IF(OR($C$67=FALSE,LEFT($B61,3)<>\"NOX\"),BE53*INDEX('Damage costs'!$O$16:$O$43,MATCH($B61,'Damage costs'!$C$16:$C$43,0))/1000,BE53*INDEX('Damage costs'!$S$16:$S$43,MATCH($B61,'Damage costs'!$C$16:$C$43,0))/1000),\"\")","v":0},{"$f":"IFERROR(IF(OR($C$67=FALSE,LEFT($B61,3)<>\"NOX\"),BF53*INDEX('Damage costs'!$O$16:$O$43,MATCH($B61,'Damage costs'!$C$16:$C$43,0))/1000,BF53*INDEX('Damage costs'!$S$16:$S$43,MATCH($B61,'Damage costs'!$C$16:$C$43,0))/1000),\"\")","v":0},{"$f":"IFERROR(IF(OR($C$67=FALSE,LEFT($B61,3)<>\"NOX\"),BG53*INDEX('Damage costs'!$O$16:$O$43,MATCH($B61,'Damage costs'!$C$16:$C$43,0))/1000,BG53*INDEX('Damage costs'!$S$16:$S$43,MATCH($B61,'Damage costs'!$C$16:$C$43,0))/1000),\"\")","v":0},{"$f":"IFERROR(IF(OR($C$67=FALSE,LEFT($B61,3)<>\"NOX\"),BH53*INDEX('Damage costs'!$O$16:$O$43,MATCH($B61,'Damage costs'!$C$16:$C$43,0))/1000,BH53*INDEX('Damage costs'!$S$16:$S$43,MATCH($B61,'Damage costs'!$C$16:$C$43,0))/1000),\"\")","v":0},{"$f":"IFERROR(IF(OR($C$67=FALSE,LEFT($B61,3)<>\"NOX\"),BI53*INDEX('Damage costs'!$O$16:$O$43,MATCH($B61,'Damage costs'!$C$16:$C$43,0))/1000,BI53*INDEX('Damage costs'!$S$16:$S$43,MATCH($B61,'Damage costs'!$C$16:$C$43,0))/1000),\"\")","v":0},{"$f":"IFERROR(IF(OR($C$67=FALSE,LEFT($B61,3)<>\"NOX\"),BJ53*INDEX('Damage costs'!$O$16:$O$43,MATCH($B61,'Damage costs'!$C$16:$C$43,0))/1000,BJ53*INDEX('Damage costs'!$S$16:$S$43,MATCH($B61,'Damage costs'!$C$16:$C$43,0))/1000),\"\")","v":0},{"$f":"IFERROR(IF(OR($C$67=FALSE,LEFT($B61,3)<>\"NOX\"),BK53*INDEX('Damage costs'!$O$16:$O$43,MATCH($B61,'Damage costs'!$C$16:$C$43,0))/1000,BK53*INDEX('Damage costs'!$S$16:$S$43,MATCH($B61,'Damage costs'!$C$16:$C$43,0))/1000),\"\")","v":0},{"$f":"IFERROR(IF(OR($C$67=FALSE,LEFT($B61,3)<>\"NOX\"),BL53*INDEX('Damage costs'!$O$16:$O$43,MATCH($B61,'Damage costs'!$C$16:$C$43,0))/1000,BL53*INDEX('Damage costs'!$S$16:$S$43,MATCH($B61,'Damage costs'!$C$16:$C$43,0))/1000),\"\")","v":0},{"$f":"IFERROR(IF(OR($C$67=FALSE,LEFT($B61,3)<>\"NOX\"),BM53*INDEX('Damage costs'!$O$16:$O$43,MATCH($B61,'Damage costs'!$C$16:$C$43,0))/1000,BM53*INDEX('Damage costs'!$S$16:$S$43,MATCH($B61,'Damage costs'!$C$16:$C$43,0))/1000),\"\")","v":0},{"$f":"IFERROR(IF(OR($C$67=FALSE,LEFT($B61,3)<>\"NOX\"),BN53*INDEX('Damage costs'!$O$16:$O$43,MATCH($B61,'Damage costs'!$C$16:$C$43,0))/1000,BN53*INDEX('Damage costs'!$S$16:$S$43,MATCH($B61,'Damage costs'!$C$16:$C$43,0))/1000),\"\")","v":0},{"$f":"IFERROR(IF(OR($C$67=FALSE,LEFT($B61,3)<>\"NOX\"),BO53*INDEX('Damage costs'!$O$16:$O$43,MATCH($B61,'Damage costs'!$C$16:$C$43,0))/1000,BO53*INDEX('Damage costs'!$S$16:$S$43,MATCH($B61,'Damage costs'!$C$16:$C$43,0))/1000),\"\")","v":0},{"$f":"IFERROR(IF(OR($C$67=FALSE,LEFT($B61,3)<>\"NOX\"),BP53*INDEX('Damage costs'!$O$16:$O$43,MATCH($B61,'Damage costs'!$C$16:$C$43,0))/1000,BP53*INDEX('Damage costs'!$S$16:$S$43,MATCH($B61,'Damage costs'!$C$16:$C$43,0))/1000),\"\")","v":0},{"$f":"IFERROR(IF(OR($C$67=FALSE,LEFT($B61,3)<>\"NOX\"),BQ53*INDEX('Damage costs'!$O$16:$O$43,MATCH($B61,'Damage costs'!$C$16:$C$43,0))/1000,BQ53*INDEX('Damage costs'!$S$16:$S$43,MATCH($B61,'Damage costs'!$C$16:$C$43,0))/1000),\"\")","v":0},{"$f":"IFERROR(IF(OR($C$67=FALSE,LEFT($B61,3)<>\"NOX\"),BR53*INDEX('Damage costs'!$O$16:$O$43,MATCH($B61,'Damage costs'!$C$16:$C$43,0))/1000,BR53*INDEX('Damage costs'!$S$16:$S$43,MATCH($B61,'Damage costs'!$C$16:$C$43,0))/1000),\"\")","v":0},{"$f":"IFERROR(IF(OR($C$67=FALSE,LEFT($B61,3)<>\"NOX\"),BS53*INDEX('Damage costs'!$O$16:$O$43,MATCH($B61,'Damage costs'!$C$16:$C$43,0))/1000,BS53*INDEX('Damage costs'!$S$16:$S$43,MATCH($B61,'Damage costs'!$C$16:$C$43,0))/1000),\"\")","v":0},{"$f":"IFERROR(IF(OR($C$67=FALSE,LEFT($B61,3)<>\"NOX\"),BT53*INDEX('Damage costs'!$O$16:$O$43,MATCH($B61,'Damage costs'!$C$16:$C$43,0))/1000,BT53*INDEX('Damage costs'!$S$16:$S$43,MATCH($B61,'Damage costs'!$C$16:$C$43,0))/1000),\"\")","v":0},{"$f":"IFERROR(IF(OR($C$67=FALSE,LEFT($B61,3)<>\"NOX\"),BU53*INDEX('Damage costs'!$O$16:$O$43,MATCH($B61,'Damage costs'!$C$16:$C$43,0))/1000,BU53*INDEX('Damage costs'!$S$16:$S$43,MATCH($B61,'Damage costs'!$C$16:$C$43,0))/1000),\"\")","v":0},{"$f":"IFERROR(IF(OR($C$67=FALSE,LEFT($B61,3)<>\"NOX\"),BV53*INDEX('Damage costs'!$O$16:$O$43,MATCH($B61,'Damage costs'!$C$16:$C$43,0))/1000,BV53*INDEX('Damage costs'!$S$16:$S$43,MATCH($B61,'Damage costs'!$C$16:$C$43,0))/1000),\"\")","v":0},{"$f":"IFERROR(IF(OR($C$67=FALSE,LEFT($B61,3)<>\"NOX\"),BW53*INDEX('Damage costs'!$O$16:$O$43,MATCH($B61,'Damage costs'!$C$16:$C$43,0))/1000,BW53*INDEX('Damage costs'!$S$16:$S$43,MATCH($B61,'Damage costs'!$C$16:$C$43,0))/1000),\"\")","v":0},{"$f":"IFERROR(IF(OR($C$67=FALSE,LEFT($B61,3)<>\"NOX\"),BX53*INDEX('Damage costs'!$O$16:$O$43,MATCH($B61,'Damage costs'!$C$16:$C$43,0))/1000,BX53*INDEX('Damage costs'!$S$16:$S$43,MATCH($B61,'Damage costs'!$C$16:$C$43,0))/1000),\"\")","v":0},{"$f":"IFERROR(IF(OR($C$67=FALSE,LEFT($B61,3)<>\"NOX\"),BY53*INDEX('Damage costs'!$O$16:$O$43,MATCH($B61,'Damage costs'!$C$16:$C$43,0))/1000,BY53*INDEX('Damage costs'!$S$16:$S$43,MATCH($B61,'Damage costs'!$C$16:$C$43,0))/1000),\"\")","v":0},{"$f":"IFERROR(IF(OR($C$67=FALSE,LEFT($B61,3)<>\"NOX\"),BZ53*INDEX('Damage costs'!$O$16:$O$43,MATCH($B61,'Damage costs'!$C$16:$C$43,0))/1000,BZ53*INDEX('Damage costs'!$S$16:$S$43,MATCH($B61,'Damage costs'!$C$16:$C$43,0))/1000),\"\")","v":0},{"$f":"IFERROR(IF(OR($C$67=FALSE,LEFT($B61,3)<>\"NOX\"),CA53*INDEX('Damage costs'!$O$16:$O$43,MATCH($B61,'Damage costs'!$C$16:$C$43,0))/1000,CA53*INDEX('Damage costs'!$S$16:$S$43,MATCH($B61,'Damage costs'!$C$16:$C$43,0))/1000),\"\")","v":0},{"$f":"IFERROR(IF(OR($C$67=FALSE,LEFT($B61,3)<>\"NOX\"),CB53*INDEX('Damage costs'!$O$16:$O$43,MATCH($B61,'Damage costs'!$C$16:$C$43,0))/1000,CB53*INDEX('Damage costs'!$S$16:$S$43,MATCH($B61,'Damage costs'!$C$16:$C$43,0))/1000),\"\")","v":0},{"$f":"IFERROR(IF(OR($C$67=FALSE,LEFT($B61,3)<>\"NOX\"),CC53*INDEX('Damage costs'!$O$16:$O$43,MATCH($B61,'Damage costs'!$C$16:$C$43,0))/1000,CC53*INDEX('Damage costs'!$S$16:$S$43,MATCH($B61,'Damage costs'!$C$16:$C$43,0))/1000),\"\")","v":0},{"$f":"IFERROR(IF(OR($C$67=FALSE,LEFT($B61,3)<>\"NOX\"),CD53*INDEX('Damage costs'!$O$16:$O$43,MATCH($B61,'Damage costs'!$C$16:$C$43,0))/1000,CD53*INDEX('Damage costs'!$S$16:$S$43,MATCH($B61,'Damage costs'!$C$16:$C$43,0))/1000),\"\")","v":0},{"$f":"IFERROR(IF(OR($C$67=FALSE,LEFT($B61,3)<>\"NOX\"),CE53*INDEX('Damage costs'!$O$16:$O$43,MATCH($B61,'Damage costs'!$C$16:$C$43,0))/1000,CE53*INDEX('Damage costs'!$S$16:$S$43,MATCH($B61,'Damage costs'!$C$16:$C$43,0))/1000),\"\")","v":0},{"$f":"IFERROR(IF(OR($C$67=FALSE,LEFT($B61,3)<>\"NOX\"),CF53*INDEX('Damage costs'!$O$16:$O$43,MATCH($B61,'Damage costs'!$C$16:$C$43,0))/1000,CF53*INDEX('Damage costs'!$S$16:$S$43,MATCH($B61,'Damage costs'!$C$16:$C$43,0))/1000),\"\")","v":0},{"$f":"IFERROR(IF(OR($C$67=FALSE,LEFT($B61,3)<>\"NOX\"),CG53*INDEX('Damage costs'!$O$16:$O$43,MATCH($B61,'Damage costs'!$C$16:$C$43,0))/1000,CG53*INDEX('Damage costs'!$S$16:$S$43,MATCH($B61,'Damage costs'!$C$16:$C$43,0))/1000),\"\")","v":0},{"$f":"IFERROR(IF(OR($C$67=FALSE,LEFT($B61,3)<>\"NOX\"),CH53*INDEX('Damage costs'!$O$16:$O$43,MATCH($B61,'Damage costs'!$C$16:$C$43,0))/1000,CH53*INDEX('Damage costs'!$S$16:$S$43,MATCH($B61,'Damage costs'!$C$16:$C$43,0))/1000),\"\")","v":0},{"$f":"IFERROR(IF(OR($C$67=FALSE,LEFT($B61,3)<>\"NOX\"),CI53*INDEX('Damage costs'!$O$16:$O$43,MATCH($B61,'Damage costs'!$C$16:$C$43,0))/1000,CI53*INDEX('Damage costs'!$S$16:$S$43,MATCH($B61,'Damage costs'!$C$16:$C$43,0))/1000),\"\")","v":0},{"$f":"IFERROR(IF(OR($C$67=FALSE,LEFT($B61,3)<>\"NOX\"),CJ53*INDEX('Damage costs'!$O$16:$O$43,MATCH($B61,'Damage costs'!$C$16:$C$43,0))/1000,CJ53*INDEX('Damage costs'!$S$16:$S$43,MATCH($B61,'Damage costs'!$C$16:$C$43,0))/1000),\"\")","v":0},{"$f":"IFERROR(IF(OR($C$67=FALSE,LEFT($B61,3)<>\"NOX\"),CK53*INDEX('Damage costs'!$O$16:$O$43,MATCH($B61,'Damage costs'!$C$16:$C$43,0))/1000,CK53*INDEX('Damage costs'!$S$16:$S$43,MATCH($B61,'Damage costs'!$C$16:$C$43,0))/1000),\"\")","v":0},{"$f":"IFERROR(IF(OR($C$67=FALSE,LEFT($B61,3)<>\"NOX\"),CL53*INDEX('Damage costs'!$O$16:$O$43,MATCH($B61,'Damage costs'!$C$16:$C$43,0))/1000,CL53*INDEX('Damage costs'!$S$16:$S$43,MATCH($B61,'Damage costs'!$C$16:$C$43,0))/1000),\"\")","v":0},{"$f":"IFERROR(IF(OR($C$67=FALSE,LEFT($B61,3)<>\"NOX\"),CM53*INDEX('Damage costs'!$O$16:$O$43,MATCH($B61,'Damage costs'!$C$16:$C$43,0))/1000,CM53*INDEX('Damage costs'!$S$16:$S$43,MATCH($B61,'Damage costs'!$C$16:$C$43,0))/1000),\"\")","v":0},{"$f":"IFERROR(IF(OR($C$67=FALSE,LEFT($B61,3)<>\"NOX\"),CN53*INDEX('Damage costs'!$O$16:$O$43,MATCH($B61,'Damage costs'!$C$16:$C$43,0))/1000,CN53*INDEX('Damage costs'!$S$16:$S$43,MATCH($B61,'Damage costs'!$C$16:$C$43,0))/1000),\"\")","v":0},{"$f":"IFERROR(IF(OR($C$67=FALSE,LEFT($B61,3)<>\"NOX\"),CO53*INDEX('Damage costs'!$O$16:$O$43,MATCH($B61,'Damage costs'!$C$16:$C$43,0))/1000,CO53*INDEX('Damage costs'!$S$16:$S$43,MATCH($B61,'Damage costs'!$C$16:$C$43,0))/1000),\"\")","v":0},{"$f":"IFERROR(IF(OR($C$67=FALSE,LEFT($B61,3)<>\"NOX\"),CP53*INDEX('Damage costs'!$O$16:$O$43,MATCH($B61,'Damage costs'!$C$16:$C$43,0))/1000,CP53*INDEX('Damage costs'!$S$16:$S$43,MATCH($B61,'Damage costs'!$C$16:$C$43,0))/1000),\"\")","v":0},{"$f":"IFERROR(IF(OR($C$67=FALSE,LEFT($B61,3)<>\"NOX\"),CQ53*INDEX('Damage costs'!$O$16:$O$43,MATCH($B61,'Damage costs'!$C$16:$C$43,0))/1000,CQ53*INDEX('Damage costs'!$S$16:$S$43,MATCH($B61,'Damage costs'!$C$16:$C$43,0))/1000),\"\")","v":0},{"$f":"IFERROR(IF(OR($C$67=FALSE,LEFT($B61,3)<>\"NOX\"),CR53*INDEX('Damage costs'!$O$16:$O$43,MATCH($B61,'Damage costs'!$C$16:$C$43,0))/1000,CR53*INDEX('Damage costs'!$S$16:$S$43,MATCH($B61,'Damage costs'!$C$16:$C$43,0))/1000),\"\")","v":0},{"$f":"IFERROR(IF(OR($C$67=FALSE,LEFT($B61,3)<>\"NOX\"),CS53*INDEX('Damage costs'!$O$16:$O$43,MATCH($B61,'Damage costs'!$C$16:$C$43,0))/1000,CS53*INDEX('Damage costs'!$S$16:$S$43,MATCH($B61,'Damage costs'!$C$16:$C$43,0))/1000),\"\")","v":0},{"$f":"IFERROR(IF(OR($C$67=FALSE,LEFT($B61,3)<>\"NOX\"),CT53*INDEX('Damage costs'!$O$16:$O$43,MATCH($B61,'Damage costs'!$C$16:$C$43,0))/1000,CT53*INDEX('Damage costs'!$S$16:$S$43,MATCH($B61,'Damage costs'!$C$16:$C$43,0))/1000),\"\")","v":0},{"$f":"IFERROR(IF(OR($C$67=FALSE,LEFT($B61,3)<>\"NOX\"),CU53*INDEX('Damage costs'!$O$16:$O$43,MATCH($B61,'Damage costs'!$C$16:$C$43,0))/1000,CU53*INDEX('Damage costs'!$S$16:$S$43,MATCH($B61,'Damage costs'!$C$16:$C$43,0))/1000),\"\")","v":0},{"$f":"IFERROR(IF(OR($C$67=FALSE,LEFT($B61,3)<>\"NOX\"),CV53*INDEX('Damage costs'!$O$16:$O$43,MATCH($B61,'Damage costs'!$C$16:$C$43,0))/1000,CV53*INDEX('Damage costs'!$S$16:$S$43,MATCH($B61,'Damage costs'!$C$16:$C$43,0))/1000),\"\")","v":0},{"$f":"IFERROR(IF(OR($C$67=FALSE,LEFT($B61,3)<>\"NOX\"),CW53*INDEX('Damage costs'!$O$16:$O$43,MATCH($B61,'Damage costs'!$C$16:$C$43,0))/1000,CW53*INDEX('Damage costs'!$S$16:$S$43,MATCH($B61,'Damage costs'!$C$16:$C$43,0))/1000),\"\")","v":0},{"$f":"IFERROR(IF(OR($C$67=FALSE,LEFT($B61,3)<>\"NOX\"),CX53*INDEX('Damage costs'!$O$16:$O$43,MATCH($B61,'Damage costs'!$C$16:$C$43,0))/1000,CX53*INDEX('Damage costs'!$S$16:$S$43,MATCH($B61,'Damage costs'!$C$16:$C$43,0))/1000),\"\")","v":0},{"$f":"IFERROR(IF(OR($C$67=FALSE,LEFT($B61,3)<>\"NOX\"),CY53*INDEX('Damage costs'!$O$16:$O$43,MATCH($B61,'Damage costs'!$C$16:$C$43,0))/1000,CY53*INDEX('Damage costs'!$S$16:$S$43,MATCH($B61,'Damage costs'!$C$16:$C$43,0))/1000),\"\")","v":0}]
[null,0,"£000's",{"$f":"IFERROR(IF(OR($C$67=FALSE,LEFT($B62,3)<>\"NOX\"),D54*INDEX('Damage costs'!$O$16:$O$43,MATCH($B62,'Damage costs'!$C$16:$C$43,0))/1000,D54*INDEX('Damage costs'!$S$16:$S$43,MATCH($B62,'Damage costs'!$C$16:$C$43,0))/1000),\"\")","v":""},{"$f":"IFERROR(IF(OR($C$67=FALSE,LEFT($B62,3)<>\"NOX\"),E54*INDEX('Damage costs'!$O$16:$O$43,MATCH($B62,'Damage costs'!$C$16:$C$43,0))/1000,E54*INDEX('Damage costs'!$S$16:$S$43,MATCH($B62,'Damage costs'!$C$16:$C$43,0))/1000),\"\")","v":""},{"$f":"IFERROR(IF(OR($C$67=FALSE,LEFT($B62,3)<>\"NOX\"),F54*INDEX('Damage costs'!$O$16:$O$43,MATCH($B62,'Damage costs'!$C$16:$C$43,0))/1000,F54*INDEX('Damage costs'!$S$16:$S$43,MATCH($B62,'Damage costs'!$C$16:$C$43,0))/1000),\"\")","v":""},{"$f":"IFERROR(IF(OR($C$67=FALSE,LEFT($B62,3)<>\"NOX\"),G54*INDEX('Damage costs'!$O$16:$O$43,MATCH($B62,'Damage costs'!$C$16:$C$43,0))/1000,G54*INDEX('Damage costs'!$S$16:$S$43,MATCH($B62,'Damage costs'!$C$16:$C$43,0))/1000),\"\")","v":""},{"$f":"IFERROR(IF(OR($C$67=FALSE,LEFT($B62,3)<>\"NOX\"),H54*INDEX('Damage costs'!$O$16:$O$43,MATCH($B62,'Damage costs'!$C$16:$C$43,0))/1000,H54*INDEX('Damage costs'!$S$16:$S$43,MATCH($B62,'Damage costs'!$C$16:$C$43,0))/1000),\"\")","v":""},{"$f":"IFERROR(IF(OR($C$67=FALSE,LEFT($B62,3)<>\"NOX\"),I54*INDEX('Damage costs'!$O$16:$O$43,MATCH($B62,'Damage costs'!$C$16:$C$43,0))/1000,I54*INDEX('Damage costs'!$S$16:$S$43,MATCH($B62,'Damage costs'!$C$16:$C$43,0))/1000),\"\")","v":""},{"$f":"IFERROR(IF(OR($C$67=FALSE,LEFT($B62,3)<>\"NOX\"),J54*INDEX('Damage costs'!$O$16:$O$43,MATCH($B62,'Damage costs'!$C$16:$C$43,0))/1000,J54*INDEX('Damage costs'!$S$16:$S$43,MATCH($B62,'Damage costs'!$C$16:$C$43,0))/1000),\"\")","v":""},{"$f":"IFERROR(IF(OR($C$67=FALSE,LEFT($B62,3)<>\"NOX\"),K54*INDEX('Damage costs'!$O$16:$O$43,MATCH($B62,'Damage costs'!$C$16:$C$43,0))/1000,K54*INDEX('Damage costs'!$S$16:$S$43,MATCH($B62,'Damage costs'!$C$16:$C$43,0))/1000),\"\")","v":""},{"$f":"IFERROR(IF(OR($C$67=FALSE,LEFT($B62,3)<>\"NOX\"),L54*INDEX('Damage costs'!$O$16:$O$43,MATCH($B62,'Damage costs'!$C$16:$C$43,0))/1000,L54*INDEX('Damage costs'!$S$16:$S$43,MATCH($B62,'Damage costs'!$C$16:$C$43,0))/1000),\"\")","v":""},{"$f":"IFERROR(IF(OR($C$67=FALSE,LEFT($B62,3)<>\"NOX\"),M54*INDEX('Damage costs'!$O$16:$O$43,MATCH($B62,'Damage costs'!$C$16:$C$43,0))/1000,M54*INDEX('Damage costs'!$S$16:$S$43,MATCH($B62,'Damage costs'!$C$16:$C$43,0))/1000),\"\")","v":""},{"$f":"IFERROR(IF(OR($C$67=FALSE,LEFT($B62,3)<>\"NOX\"),N54*INDEX('Damage costs'!$O$16:$O$43,MATCH($B62,'Damage costs'!$C$16:$C$43,0))/1000,N54*INDEX('Damage costs'!$S$16:$S$43,MATCH($B62,'Damage costs'!$C$16:$C$43,0))/1000),\"\")","v":""},{"$f":"IFERROR(IF(OR($C$67=FALSE,LEFT($B62,3)<>\"NOX\"),O54*INDEX('Damage costs'!$O$16:$O$43,MATCH($B62,'Damage costs'!$C$16:$C$43,0))/1000,O54*INDEX('Damage costs'!$S$16:$S$43,MATCH($B62,'Damage costs'!$C$16:$C$43,0))/1000),\"\")","v":""},{"$f":"IFERROR(IF(OR($C$67=FALSE,LEFT($B62,3)<>\"NOX\"),P54*INDEX('Damage costs'!$O$16:$O$43,MATCH($B62,'Damage costs'!$C$16:$C$43,0))/1000,P54*INDEX('Damage costs'!$S$16:$S$43,MATCH($B62,'Damage costs'!$C$16:$C$43,0))/1000),\"\")","v":""},{"$f":"IFERROR(IF(OR($C$67=FALSE,LEFT($B62,3)<>\"NOX\"),Q54*INDEX('Damage costs'!$O$16:$O$43,MATCH($B62,'Damage costs'!$C$16:$C$43,0))/1000,Q54*INDEX('Damage costs'!$S$16:$S$43,MATCH($B62,'Damage costs'!$C$16:$C$43,0))/1000),\"\")","v":""},{"$f":"IFERROR(IF(OR($C$67=FALSE,LEFT($B62,3)<>\"NOX\"),R54*INDEX('Damage costs'!$O$16:$O$43,MATCH($B62,'Damage costs'!$C$16:$C$43,0))/1000,R54*INDEX('Damage costs'!$S$16:$S$43,MATCH($B62,'Damage costs'!$C$16:$C$43,0))/1000),\"\")","v":""},{"$f":"IFERROR(IF(OR($C$67=FALSE,LEFT($B62,3)<>\"NOX\"),S54*INDEX('Damage costs'!$O$16:$O$43,MATCH($B62,'Damage costs'!$C$16:$C$43,0))/1000,S54*INDEX('Damage costs'!$S$16:$S$43,MATCH($B62,'Damage costs'!$C$16:$C$43,0))/1000),\"\")","v":""},{"$f":"IFERROR(IF(OR($C$67=FALSE,LEFT($B62,3)<>\"NOX\"),T54*INDEX('Damage costs'!$O$16:$O$43,MATCH($B62,'Damage costs'!$C$16:$C$43,0))/1000,T54*INDEX('Damage costs'!$S$16:$S$43,MATCH($B62,'Damage costs'!$C$16:$C$43,0))/1000),\"\")","v":""},{"$f":"IFERROR(IF(OR($C$67=FALSE,LEFT($B62,3)<>\"NOX\"),U54*INDEX('Damage costs'!$O$16:$O$43,MATCH($B62,'Damage costs'!$C$16:$C$43,0))/1000,U54*INDEX('Damage costs'!$S$16:$S$43,MATCH($B62,'Damage costs'!$C$16:$C$43,0))/1000),\"\")","v":""},{"$f":"IFERROR(IF(OR($C$67=FALSE,LEFT($B62,3)<>\"NOX\"),V54*INDEX('Damage costs'!$O$16:$O$43,MATCH($B62,'Damage costs'!$C$16:$C$43,0))/1000,V54*INDEX('Damage costs'!$S$16:$S$43,MATCH($B62,'Damage costs'!$C$16:$C$43,0))/1000),\"\")","v":""},{"$f":"IFERROR(IF(OR($C$67=FALSE,LEFT($B62,3)<>\"NOX\"),W54*INDEX('Damage costs'!$O$16:$O$43,MATCH($B62,'Damage costs'!$C$16:$C$43,0))/1000,W54*INDEX('Damage costs'!$S$16:$S$43,MATCH($B62,'Damage costs'!$C$16:$C$43,0))/1000),\"\")","v":""},{"$f":"IFERROR(IF(OR($C$67=FALSE,LEFT($B62,3)<>\"NOX\"),X54*INDEX('Damage costs'!$O$16:$O$43,MATCH($B62,'Damage costs'!$C$16:$C$43,0))/1000,X54*INDEX('Damage costs'!$S$16:$S$43,MATCH($B62,'Damage costs'!$C$16:$C$43,0))/1000),\"\")","v":""},{"$f":"IFERROR(IF(OR($C$67=FALSE,LEFT($B62,3)<>\"NOX\"),Y54*INDEX('Damage costs'!$O$16:$O$43,MATCH($B62,'Damage costs'!$C$16:$C$43,0))/1000,Y54*INDEX('Damage costs'!$S$16:$S$43,MATCH($B62,'Damage costs'!$C$16:$C$43,0))/1000),\"\")","v":""},{"$f":"IFERROR(IF(OR($C$67=FALSE,LEFT($B62,3)<>\"NOX\"),Z54*INDEX('Damage costs'!$O$16:$O$43,MATCH($B62,'Damage costs'!$C$16:$C$43,0))/1000,Z54*INDEX('Damage costs'!$S$16:$S$43,MATCH($B62,'Damage costs'!$C$16:$C$43,0))/1000),\"\")","v":""},{"$f":"IFERROR(IF(OR($C$67=FALSE,LEFT($B62,3)<>\"NOX\"),AA54*INDEX('Damage costs'!$O$16:$O$43,MATCH($B62,'Damage costs'!$C$16:$C$43,0))/1000,AA54*INDEX('Damage costs'!$S$16:$S$43,MATCH($B62,'Damage costs'!$C$16:$C$43,0))/1000),\"\")","v":""},{"$f":"IFERROR(IF(OR($C$67=FALSE,LEFT($B62,3)<>\"NOX\"),AB54*INDEX('Damage costs'!$O$16:$O$43,MATCH($B62,'Damage costs'!$C$16:$C$43,0))/1000,AB54*INDEX('Damage costs'!$S$16:$S$43,MATCH($B62,'Damage costs'!$C$16:$C$43,0))/1000),\"\")","v":""},{"$f":"IFERROR(IF(OR($C$67=FALSE,LEFT($B62,3)<>\"NOX\"),AC54*INDEX('Damage costs'!$O$16:$O$43,MATCH($B62,'Damage costs'!$C$16:$C$43,0))/1000,AC54*INDEX('Damage costs'!$S$16:$S$43,MATCH($B62,'Damage costs'!$C$16:$C$43,0))/1000),\"\")","v":""},{"$f":"IFERROR(IF(OR($C$67=FALSE,LEFT($B62,3)<>\"NOX\"),AD54*INDEX('Damage costs'!$O$16:$O$43,MATCH($B62,'Damage costs'!$C$16:$C$43,0))/1000,AD54*INDEX('Damage costs'!$S$16:$S$43,MATCH($B62,'Damage costs'!$C$16:$C$43,0))/1000),\"\")","v":""},{"$f":"IFERROR(IF(OR($C$67=FALSE,LEFT($B62,3)<>\"NOX\"),AE54*INDEX('Damage costs'!$O$16:$O$43,MATCH($B62,'Damage costs'!$C$16:$C$43,0))/1000,AE54*INDEX('Damage costs'!$S$16:$S$43,MATCH($B62,'Damage costs'!$C$16:$C$43,0))/1000),\"\")","v":""},{"$f":"IFERROR(IF(OR($C$67=FALSE,LEFT($B62,3)<>\"NOX\"),AF54*INDEX('Damage costs'!$O$16:$O$43,MATCH($B62,'Damage costs'!$C$16:$C$43,0))/1000,AF54*INDEX('Damage costs'!$S$16:$S$43,MATCH($B62,'Damage costs'!$C$16:$C$43,0))/1000),\"\")","v":""},{"$f":"IFERROR(IF(OR($C$67=FALSE,LEFT($B62,3)<>\"NOX\"),AG54*INDEX('Damage costs'!$O$16:$O$43,MATCH($B62,'Damage costs'!$C$16:$C$43,0))/1000,AG54*INDEX('Damage costs'!$S$16:$S$43,MATCH($B62,'Damage costs'!$C$16:$C$43,0))/1000),\"\")","v":""},{"$f":"IFERROR(IF(OR($C$67=FALSE,LEFT($B62,3)<>\"NOX\"),AH54*INDEX('Damage costs'!$O$16:$O$43,MATCH($B62,'Damage costs'!$C$16:$C$43,0))/1000,AH54*INDEX('Damage costs'!$S$16:$S$43,MATCH($B62,'Damage costs'!$C$16:$C$43,0))/1000),\"\")","v":""},{"$f":"IFERROR(IF(OR($C$67=FALSE,LEFT($B62,3)<>\"NOX\"),AI54*INDEX('Damage costs'!$O$16:$O$43,MATCH($B62,'Damage costs'!$C$16:$C$43,0))/1000,AI54*INDEX('Damage costs'!$S$16:$S$43,MATCH($B62,'Damage costs'!$C$16:$C$43,0))/1000),\"\")","v":""},{"$f":"IFERROR(IF(OR($C$67=FALSE,LEFT($B62,3)<>\"NOX\"),AJ54*INDEX('Damage costs'!$O$16:$O$43,MATCH($B62,'Damage costs'!$C$16:$C$43,0))/1000,AJ54*INDEX('Damage costs'!$S$16:$S$43,MATCH($B62,'Damage costs'!$C$16:$C$43,0))/1000),\"\")","v":""},{"$f":"IFERROR(IF(OR($C$67=FALSE,LEFT($B62,3)<>\"NOX\"),AK54*INDEX('Damage costs'!$O$16:$O$43,MATCH($B62,'Damage costs'!$C$16:$C$43,0))/1000,AK54*INDEX('Damage costs'!$S$16:$S$43,MATCH($B62,'Damage costs'!$C$16:$C$43,0))/1000),\"\")","v":""},{"$f":"IFERROR(IF(OR($C$67=FALSE,LEFT($B62,3)<>\"NOX\"),AL54*INDEX('Damage costs'!$O$16:$O$43,MATCH($B62,'Damage costs'!$C$16:$C$43,0))/1000,AL54*INDEX('Damage costs'!$S$16:$S$43,MATCH($B62,'Damage costs'!$C$16:$C$43,0))/1000),\"\")","v":""},{"$f":"IFERROR(IF(OR($C$67=FALSE,LEFT($B62,3)<>\"NOX\"),AM54*INDEX('Damage costs'!$O$16:$O$43,MATCH($B62,'Damage costs'!$C$16:$C$43,0))/1000,AM54*INDEX('Damage costs'!$S$16:$S$43,MATCH($B62,'Damage costs'!$C$16:$C$43,0))/1000),\"\")","v":""},{"$f":"IFERROR(IF(OR($C$67=FALSE,LEFT($B62,3)<>\"NOX\"),AN54*INDEX('Damage costs'!$O$16:$O$43,MATCH($B62,'Damage costs'!$C$16:$C$43,0))/1000,AN54*INDEX('Damage costs'!$S$16:$S$43,MATCH($B62,'Damage costs'!$C$16:$C$43,0))/1000),\"\")","v":""},{"$f":"IFERROR(IF(OR($C$67=FALSE,LEFT($B62,3)<>\"NOX\"),AO54*INDEX('Damage costs'!$O$16:$O$43,MATCH($B62,'Damage costs'!$C$16:$C$43,0))/1000,AO54*INDEX('Damage costs'!$S$16:$S$43,MATCH($B62,'Damage costs'!$C$16:$C$43,0))/1000),\"\")","v":""},{"$f":"IFERROR(IF(OR($C$67=FALSE,LEFT($B62,3)<>\"NOX\"),AP54*INDEX('Damage costs'!$O$16:$O$43,MATCH($B62,'Damage costs'!$C$16:$C$43,0))/1000,AP54*INDEX('Damage costs'!$S$16:$S$43,MATCH($B62,'Damage costs'!$C$16:$C$43,0))/1000),\"\")","v":""},{"$f":"IFERROR(IF(OR($C$67=FALSE,LEFT($B62,3)<>\"NOX\"),AQ54*INDEX('Damage costs'!$O$16:$O$43,MATCH($B62,'Damage costs'!$C$16:$C$43,0))/1000,AQ54*INDEX('Damage costs'!$S$16:$S$43,MATCH($B62,'Damage costs'!$C$16:$C$43,0))/1000),\"\")","v":""},{"$f":"IFERROR(IF(OR($C$67=FALSE,LEFT($B62,3)<>\"NOX\"),AR54*INDEX('Damage costs'!$O$16:$O$43,MATCH($B62,'Damage costs'!$C$16:$C$43,0))/1000,AR54*INDEX('Damage costs'!$S$16:$S$43,MATCH($B62,'Damage costs'!$C$16:$C$43,0))/1000),\"\")","v":""},{"$f":"IFERROR(IF(OR($C$67=FALSE,LEFT($B62,3)<>\"NOX\"),AS54*INDEX('Damage costs'!$O$16:$O$43,MATCH($B62,'Damage costs'!$C$16:$C$43,0))/1000,AS54*INDEX('Damage costs'!$S$16:$S$43,MATCH($B62,'Damage costs'!$C$16:$C$43,0))/1000),\"\")","v":""},{"$f":"IFERROR(IF(OR($C$67=FALSE,LEFT($B62,3)<>\"NOX\"),AT54*INDEX('Damage costs'!$O$16:$O$43,MATCH($B62,'Damage costs'!$C$16:$C$43,0))/1000,AT54*INDEX('Damage costs'!$S$16:$S$43,MATCH($B62,'Damage costs'!$C$16:$C$43,0))/1000),\"\")","v":""},{"$f":"IFERROR(IF(OR($C$67=FALSE,LEFT($B62,3)<>\"NOX\"),AU54*INDEX('Damage costs'!$O$16:$O$43,MATCH($B62,'Damage costs'!$C$16:$C$43,0))/1000,AU54*INDEX('Damage costs'!$S$16:$S$43,MATCH($B62,'Damage costs'!$C$16:$C$43,0))/1000),\"\")","v":""},{"$f":"IFERROR(IF(OR($C$67=FALSE,LEFT($B62,3)<>\"NOX\"),AV54*INDEX('Damage costs'!$O$16:$O$43,MATCH($B62,'Damage costs'!$C$16:$C$43,0))/1000,AV54*INDEX('Damage costs'!$S$16:$S$43,MATCH($B62,'Damage costs'!$C$16:$C$43,0))/1000),\"\")","v":""},{"$f":"IFERROR(IF(OR($C$67=FALSE,LEFT($B62,3)<>\"NOX\"),AW54*INDEX('Damage costs'!$O$16:$O$43,MATCH($B62,'Damage costs'!$C$16:$C$43,0))/1000,AW54*INDEX('Damage costs'!$S$16:$S$43,MATCH($B62,'Damage costs'!$C$16:$C$43,0))/1000),\"\")","v":""},{"$f":"IFERROR(IF(OR($C$67=FALSE,LEFT($B62,3)<>\"NOX\"),AX54*INDEX('Damage costs'!$O$16:$O$43,MATCH($B62,'Damage costs'!$C$16:$C$43,0))/1000,AX54*INDEX('Damage costs'!$S$16:$S$43,MATCH($B62,'Damage costs'!$C$16:$C$43,0))/1000),\"\")","v":""},{"$f":"IFERROR(IF(OR($C$67=FALSE,LEFT($B62,3)<>\"NOX\"),AY54*INDEX('Damage costs'!$O$16:$O$43,MATCH($B62,'Damage costs'!$C$16:$C$43,0))/1000,AY54*INDEX('Damage costs'!$S$16:$S$43,MATCH($B62,'Damage costs'!$C$16:$C$43,0))/1000),\"\")","v":""},{"$f":"IFERROR(IF(OR($C$67=FALSE,LEFT($B62,3)<>\"NOX\"),AZ54*INDEX('Damage costs'!$O$16:$O$43,MATCH($B62,'Damage costs'!$C$16:$C$43,0))/1000,AZ54*INDEX('Damage costs'!$S$16:$S$43,MATCH($B62,'Damage costs'!$C$16:$C$43,0))/1000),\"\")","v":""},{"$f":"IFERROR(IF(OR($C$67=FALSE,LEFT($B62,3)<>\"NOX\"),BA54*INDEX('Damage costs'!$O$16:$O$43,MATCH($B62,'Damage costs'!$C$16:$C$43,0))/1000,BA54*INDEX('Damage costs'!$S$16:$S$43,MATCH($B62,'Damage costs'!$C$16:$C$43,0))/1000),\"\")","v":""},{"$f":"IFERROR(IF(OR($C$67=FALSE,LEFT($B62,3)<>\"NOX\"),BB54*INDEX('Damage costs'!$O$16:$O$43,MATCH($B62,'Damage costs'!$C$16:$C$43,0))/1000,BB54*INDEX('Damage costs'!$S$16:$S$43,MATCH($B62,'Damage costs'!$C$16:$C$43,0))/1000),\"\")","v":""},{"$f":"IFERROR(IF(OR($C$67=FALSE,LEFT($B62,3)<>\"NOX\"),BC54*INDEX('Damage costs'!$O$16:$O$43,MATCH($B62,'Damage costs'!$C$16:$C$43,0))/1000,BC54*INDEX('Damage costs'!$S$16:$S$43,MATCH($B62,'Damage costs'!$C$16:$C$43,0))/1000),\"\")","v":""},{"$f":"IFERROR(IF(OR($C$67=FALSE,LEFT($B62,3)<>\"NOX\"),BD54*INDEX('Damage costs'!$O$16:$O$43,MATCH($B62,'Damage costs'!$C$16:$C$43,0))/1000,BD54*INDEX('Damage costs'!$S$16:$S$43,MATCH($B62,'Damage costs'!$C$16:$C$43,0))/1000),\"\")","v":""},{"$f":"IFERROR(IF(OR($C$67=FALSE,LEFT($B62,3)<>\"NOX\"),BE54*INDEX('Damage costs'!$O$16:$O$43,MATCH($B62,'Damage costs'!$C$16:$C$43,0))/1000,BE54*INDEX('Damage costs'!$S$16:$S$43,MATCH($B62,'Damage costs'!$C$16:$C$43,0))/1000),\"\")","v":""},{"$f":"IFERROR(IF(OR($C$67=FALSE,LEFT($B62,3)<>\"NOX\"),BF54*INDEX('Damage costs'!$O$16:$O$43,MATCH($B62,'Damage costs'!$C$16:$C$43,0))/1000,BF54*INDEX('Damage costs'!$S$16:$S$43,MATCH($B62,'Damage costs'!$C$16:$C$43,0))/1000),\"\")","v":""},{"$f":"IFERROR(IF(OR($C$67=FALSE,LEFT($B62,3)<>\"NOX\"),BG54*INDEX('Damage costs'!$O$16:$O$43,MATCH($B62,'Damage costs'!$C$16:$C$43,0))/1000,BG54*INDEX('Damage costs'!$S$16:$S$43,MATCH($B62,'Damage costs'!$C$16:$C$43,0))/1000),\"\")","v":""},{"$f":"IFERROR(IF(OR($C$67=FALSE,LEFT($B62,3)<>\"NOX\"),BH54*INDEX('Damage costs'!$O$16:$O$43,MATCH($B62,'Damage costs'!$C$16:$C$43,0))/1000,BH54*INDEX('Damage costs'!$S$16:$S$43,MATCH($B62,'Damage costs'!$C$16:$C$43,0))/1000),\"\")","v":""},{"$f":"IFERROR(IF(OR($C$67=FALSE,LEFT($B62,3)<>\"NOX\"),BI54*INDEX('Damage costs'!$O$16:$O$43,MATCH($B62,'Damage costs'!$C$16:$C$43,0))/1000,BI54*INDEX('Damage costs'!$S$16:$S$43,MATCH($B62,'Damage costs'!$C$16:$C$43,0))/1000),\"\")","v":""},{"$f":"IFERROR(IF(OR($C$67=FALSE,LEFT($B62,3)<>\"NOX\"),BJ54*INDEX('Damage costs'!$O$16:$O$43,MATCH($B62,'Damage costs'!$C$16:$C$43,0))/1000,BJ54*INDEX('Damage costs'!$S$16:$S$43,MATCH($B62,'Damage costs'!$C$16:$C$43,0))/1000),\"\")","v":""},{"$f":"IFERROR(IF(OR($C$67=FALSE,LEFT($B62,3)<>\"NOX\"),BK54*INDEX('Damage costs'!$O$16:$O$43,MATCH($B62,'Damage costs'!$C$16:$C$43,0))/1000,BK54*INDEX('Damage costs'!$S$16:$S$43,MATCH($B62,'Damage costs'!$C$16:$C$43,0))/1000),\"\")","v":""},{"$f":"IFERROR(IF(OR($C$67=FALSE,LEFT($B62,3)<>\"NOX\"),BL54*INDEX('Damage costs'!$O$16:$O$43,MATCH($B62,'Damage costs'!$C$16:$C$43,0))/1000,BL54*INDEX('Damage costs'!$S$16:$S$43,MATCH($B62,'Damage costs'!$C$16:$C$43,0))/1000),\"\")","v":""},{"$f":"IFERROR(IF(OR($C$67=FALSE,LEFT($B62,3)<>\"NOX\"),BM54*INDEX('Damage costs'!$O$16:$O$43,MATCH($B62,'Damage costs'!$C$16:$C$43,0))/1000,BM54*INDEX('Damage costs'!$S$16:$S$43,MATCH($B62,'Damage costs'!$C$16:$C$43,0))/1000),\"\")","v":""},{"$f":"IFERROR(IF(OR($C$67=FALSE,LEFT($B62,3)<>\"NOX\"),BN54*INDEX('Damage costs'!$O$16:$O$43,MATCH($B62,'Damage costs'!$C$16:$C$43,0))/1000,BN54*INDEX('Damage costs'!$S$16:$S$43,MATCH($B62,'Damage costs'!$C$16:$C$43,0))/1000),\"\")","v":""},{"$f":"IFERROR(IF(OR($C$67=FALSE,LEFT($B62,3)<>\"NOX\"),BO54*INDEX('Damage costs'!$O$16:$O$43,MATCH($B62,'Damage costs'!$C$16:$C$43,0))/1000,BO54*INDEX('Damage costs'!$S$16:$S$43,MATCH($B62,'Damage costs'!$C$16:$C$43,0))/1000),\"\")","v":""},{"$f":"IFERROR(IF(OR($C$67=FALSE,LEFT($B62,3)<>\"NOX\"),BP54*INDEX('Damage costs'!$O$16:$O$43,MATCH($B62,'Damage costs'!$C$16:$C$43,0))/1000,BP54*INDEX('Damage costs'!$S$16:$S$43,MATCH($B62,'Damage costs'!$C$16:$C$43,0))/1000),\"\")","v":""},{"$f":"IFERROR(IF(OR($C$67=FALSE,LEFT($B62,3)<>\"NOX\"),BQ54*INDEX('Damage costs'!$O$16:$O$43,MATCH($B62,'Damage costs'!$C$16:$C$43,0))/1000,BQ54*INDEX('Damage costs'!$S$16:$S$43,MATCH($B62,'Damage costs'!$C$16:$C$43,0))/1000),\"\")","v":""},{"$f":"IFERROR(IF(OR($C$67=FALSE,LEFT($B62,3)<>\"NOX\"),BR54*INDEX('Damage costs'!$O$16:$O$43,MATCH($B62,'Damage costs'!$C$16:$C$43,0))/1000,BR54*INDEX('Damage costs'!$S$16:$S$43,MATCH($B62,'Damage costs'!$C$16:$C$43,0))/1000),\"\")","v":""},{"$f":"IFERROR(IF(OR($C$67=FALSE,LEFT($B62,3)<>\"NOX\"),BS54*INDEX('Damage costs'!$O$16:$O$43,MATCH($B62,'Damage costs'!$C$16:$C$43,0))/1000,BS54*INDEX('Damage costs'!$S$16:$S$43,MATCH($B62,'Damage costs'!$C$16:$C$43,0))/1000),\"\")","v":""},{"$f":"IFERROR(IF(OR($C$67=FALSE,LEFT($B62,3)<>\"NOX\"),BT54*INDEX('Damage costs'!$O$16:$O$43,MATCH($B62,'Damage costs'!$C$16:$C$43,0))/1000,BT54*INDEX('Damage costs'!$S$16:$S$43,MATCH($B62,'Damage costs'!$C$16:$C$43,0))/1000),\"\")","v":""},{"$f":"IFERROR(IF(OR($C$67=FALSE,LEFT($B62,3)<>\"NOX\"),BU54*INDEX('Damage costs'!$O$16:$O$43,MATCH($B62,'Damage costs'!$C$16:$C$43,0))/1000,BU54*INDEX('Damage costs'!$S$16:$S$43,MATCH($B62,'Damage costs'!$C$16:$C$43,0))/1000),\"\")","v":""},{"$f":"IFERROR(IF(OR($C$67=FALSE,LEFT($B62,3)<>\"NOX\"),BV54*INDEX('Damage costs'!$O$16:$O$43,MATCH($B62,'Damage costs'!$C$16:$C$43,0))/1000,BV54*INDEX('Damage costs'!$S$16:$S$43,MATCH($B62,'Damage costs'!$C$16:$C$43,0))/1000),\"\")","v":""},{"$f":"IFERROR(IF(OR($C$67=FALSE,LEFT($B62,3)<>\"NOX\"),BW54*INDEX('Damage costs'!$O$16:$O$43,MATCH($B62,'Damage costs'!$C$16:$C$43,0))/1000,BW54*INDEX('Damage costs'!$S$16:$S$43,MATCH($B62,'Damage costs'!$C$16:$C$43,0))/1000),\"\")","v":""},{"$f":"IFERROR(IF(OR($C$67=FALSE,LEFT($B62,3)<>\"NOX\"),BX54*INDEX('Damage costs'!$O$16:$O$43,MATCH($B62,'Damage costs'!$C$16:$C$43,0))/1000,BX54*INDEX('Damage costs'!$S$16:$S$43,MATCH($B62,'Damage costs'!$C$16:$C$43,0))/1000),\"\")","v":""},{"$f":"IFERROR(IF(OR($C$67=FALSE,LEFT($B62,3)<>\"NOX\"),BY54*INDEX('Damage costs'!$O$16:$O$43,MATCH($B62,'Damage costs'!$C$16:$C$43,0))/1000,BY54*INDEX('Damage costs'!$S$16:$S$43,MATCH($B62,'Damage costs'!$C$16:$C$43,0))/1000),\"\")","v":""},{"$f":"IFERROR(IF(OR($C$67=FALSE,LEFT($B62,3)<>\"NOX\"),BZ54*INDEX('Damage costs'!$O$16:$O$43,MATCH($B62,'Damage costs'!$C$16:$C$43,0))/1000,BZ54*INDEX('Damage costs'!$S$16:$S$43,MATCH($B62,'Damage costs'!$C$16:$C$43,0))/1000),\"\")","v":""},{"$f":"IFERROR(IF(OR($C$67=FALSE,LEFT($B62,3)<>\"NOX\"),CA54*INDEX('Damage costs'!$O$16:$O$43,MATCH($B62,'Damage costs'!$C$16:$C$43,0))/1000,CA54*INDEX('Damage costs'!$S$16:$S$43,MATCH($B62,'Damage costs'!$C$16:$C$43,0))/1000),\"\")","v":""},{"$f":"IFERROR(IF(OR($C$67=FALSE,LEFT($B62,3)<>\"NOX\"),CB54*INDEX('Damage costs'!$O$16:$O$43,MATCH($B62,'Damage costs'!$C$16:$C$43,0))/1000,CB54*INDEX('Damage costs'!$S$16:$S$43,MATCH($B62,'Damage costs'!$C$16:$C$43,0))/1000),\"\")","v":""},{"$f":"IFERROR(IF(OR($C$67=FALSE,LEFT($B62,3)<>\"NOX\"),CC54*INDEX('Damage costs'!$O$16:$O$43,MATCH($B62,'Damage costs'!$C$16:$C$43,0))/1000,CC54*INDEX('Damage costs'!$S$16:$S$43,MATCH($B62,'Damage costs'!$C$16:$C$43,0))/1000),\"\")","v":""},{"$f":"IFERROR(IF(OR($C$67=FALSE,LEFT($B62,3)<>\"NOX\"),CD54*INDEX('Damage costs'!$O$16:$O$43,MATCH($B62,'Damage costs'!$C$16:$C$43,0))/1000,CD54*INDEX('Damage costs'!$S$16:$S$43,MATCH($B62,'Damage costs'!$C$16:$C$43,0))/1000),\"\")","v":""},{"$f":"IFERROR(IF(OR($C$67=FALSE,LEFT($B62,3)<>\"NOX\"),CE54*INDEX('Damage costs'!$O$16:$O$43,MATCH($B62,'Damage costs'!$C$16:$C$43,0))/1000,CE54*INDEX('Damage costs'!$S$16:$S$43,MATCH($B62,'Damage costs'!$C$16:$C$43,0))/1000),\"\")","v":""},{"$f":"IFERROR(IF(OR($C$67=FALSE,LEFT($B62,3)<>\"NOX\"),CF54*INDEX('Damage costs'!$O$16:$O$43,MATCH($B62,'Damage costs'!$C$16:$C$43,0))/1000,CF54*INDEX('Damage costs'!$S$16:$S$43,MATCH($B62,'Damage costs'!$C$16:$C$43,0))/1000),\"\")","v":""},{"$f":"IFERROR(IF(OR($C$67=FALSE,LEFT($B62,3)<>\"NOX\"),CG54*INDEX('Damage costs'!$O$16:$O$43,MATCH($B62,'Damage costs'!$C$16:$C$43,0))/1000,CG54*INDEX('Damage costs'!$S$16:$S$43,MATCH($B62,'Damage costs'!$C$16:$C$43,0))/1000),\"\")","v":""},{"$f":"IFERROR(IF(OR($C$67=FALSE,LEFT($B62,3)<>\"NOX\"),CH54*INDEX('Damage costs'!$O$16:$O$43,MATCH($B62,'Damage costs'!$C$16:$C$43,0))/1000,CH54*INDEX('Damage costs'!$S$16:$S$43,MATCH($B62,'Damage costs'!$C$16:$C$43,0))/1000),\"\")","v":""},{"$f":"IFERROR(IF(OR($C$67=FALSE,LEFT($B62,3)<>\"NOX\"),CI54*INDEX('Damage costs'!$O$16:$O$43,MATCH($B62,'Damage costs'!$C$16:$C$43,0))/1000,CI54*INDEX('Damage costs'!$S$16:$S$43,MATCH($B62,'Damage costs'!$C$16:$C$43,0))/1000),\"\")","v":""},{"$f":"IFERROR(IF(OR($C$67=FALSE,LEFT($B62,3)<>\"NOX\"),CJ54*INDEX('Damage costs'!$O$16:$O$43,MATCH($B62,'Damage costs'!$C$16:$C$43,0))/1000,CJ54*INDEX('Damage costs'!$S$16:$S$43,MATCH($B62,'Damage costs'!$C$16:$C$43,0))/1000),\"\")","v":""},{"$f":"IFERROR(IF(OR($C$67=FALSE,LEFT($B62,3)<>\"NOX\"),CK54*INDEX('Damage costs'!$O$16:$O$43,MATCH($B62,'Damage costs'!$C$16:$C$43,0))/1000,CK54*INDEX('Damage costs'!$S$16:$S$43,MATCH($B62,'Damage costs'!$C$16:$C$43,0))/1000),\"\")","v":""},{"$f":"IFERROR(IF(OR($C$67=FALSE,LEFT($B62,3)<>\"NOX\"),CL54*INDEX('Damage costs'!$O$16:$O$43,MATCH($B62,'Damage costs'!$C$16:$C$43,0))/1000,CL54*INDEX('Damage costs'!$S$16:$S$43,MATCH($B62,'Damage costs'!$C$16:$C$43,0))/1000),\"\")","v":""},{"$f":"IFERROR(IF(OR($C$67=FALSE,LEFT($B62,3)<>\"NOX\"),CM54*INDEX('Damage costs'!$O$16:$O$43,MATCH($B62,'Damage costs'!$C$16:$C$43,0))/1000,CM54*INDEX('Damage costs'!$S$16:$S$43,MATCH($B62,'Damage costs'!$C$16:$C$43,0))/1000),\"\")","v":""},{"$f":"IFERROR(IF(OR($C$67=FALSE,LEFT($B62,3)<>\"NOX\"),CN54*INDEX('Damage costs'!$O$16:$O$43,MATCH($B62,'Damage costs'!$C$16:$C$43,0))/1000,CN54*INDEX('Damage costs'!$S$16:$S$43,MATCH($B62,'Damage costs'!$C$16:$C$43,0))/1000),\"\")","v":""},{"$f":"IFERROR(IF(OR($C$67=FALSE,LEFT($B62,3)<>\"NOX\"),CO54*INDEX('Damage costs'!$O$16:$O$43,MATCH($B62,'Damage costs'!$C$16:$C$43,0))/1000,CO54*INDEX('Damage costs'!$S$16:$S$43,MATCH($B62,'Damage costs'!$C$16:$C$43,0))/1000),\"\")","v":""},{"$f":"IFERROR(IF(OR($C$67=FALSE,LEFT($B62,3)<>\"NOX\"),CP54*INDEX('Damage costs'!$O$16:$O$43,MATCH($B62,'Damage costs'!$C$16:$C$43,0))/1000,CP54*INDEX('Damage costs'!$S$16:$S$43,MATCH($B62,'Damage costs'!$C$16:$C$43,0))/1000),\"\")","v":""},{"$f":"IFERROR(IF(OR($C$67=FALSE,LEFT($B62,3)<>\"NOX\"),CQ54*INDEX('Damage costs'!$O$16:$O$43,MATCH($B62,'Damage costs'!$C$16:$C$43,0))/1000,CQ54*INDEX('Damage costs'!$S$16:$S$43,MATCH($B62,'Damage costs'!$C$16:$C$43,0))/1000),\"\")","v":""},{"$f":"IFERROR(IF(OR($C$67=FALSE,LEFT($B62,3)<>\"NOX\"),CR54*INDEX('Damage costs'!$O$16:$O$43,MATCH($B62,'Damage costs'!$C$16:$C$43,0))/1000,CR54*INDEX('Damage costs'!$S$16:$S$43,MATCH($B62,'Damage costs'!$C$16:$C$43,0))/1000),\"\")","v":""},{"$f":"IFERROR(IF(OR($C$67=FALSE,LEFT($B62,3)<>\"NOX\"),CS54*INDEX('Damage costs'!$O$16:$O$43,MATCH($B62,'Damage costs'!$C$16:$C$43,0))/1000,CS54*INDEX('Damage costs'!$S$16:$S$43,MATCH($B62,'Damage costs'!$C$16:$C$43,0))/1000),\"\")","v":""},{"$f":"IFERROR(IF(OR($C$67=FALSE,LEFT($B62,3)<>\"NOX\"),CT54*INDEX('Damage costs'!$O$16:$O$43,MATCH($B62,'Damage costs'!$C$16:$C$43,0))/1000,CT54*INDEX('Damage costs'!$S$16:$S$43,MATCH($B62,'Damage costs'!$C$16:$C$43,0))/1000),\"\")","v":""},{"$f":"IFERROR(IF(OR($C$67=FALSE,LEFT($B62,3)<>\"NOX\"),CU54*INDEX('Damage costs'!$O$16:$O$43,MATCH($B62,'Damage costs'!$C$16:$C$43,0))/1000,CU54*INDEX('Damage costs'!$S$16:$S$43,MATCH($B62,'Damage costs'!$C$16:$C$43,0))/1000),\"\")","v":""},{"$f":"IFERROR(IF(OR($C$67=FALSE,LEFT($B62,3)<>\"NOX\"),CV54*INDEX('Damage costs'!$O$16:$O$43,MATCH($B62,'Damage costs'!$C$16:$C$43,0))/1000,CV54*INDEX('Damage costs'!$S$16:$S$43,MATCH($B62,'Damage costs'!$C$16:$C$43,0))/1000),\"\")","v":""},{"$f":"IFERROR(IF(OR($C$67=FALSE,LEFT($B62,3)<>\"NOX\"),CW54*INDEX('Damage costs'!$O$16:$O$43,MATCH($B62,'Damage costs'!$C$16:$C$43,0))/1000,CW54*INDEX('Damage costs'!$S$16:$S$43,MATCH($B62,'Damage costs'!$C$16:$C$43,0))/1000),\"\")","v":""},{"$f":"IFERROR(IF(OR($C$67=FALSE,LEFT($B62,3)<>\"NOX\"),CX54*INDEX('Damage costs'!$O$16:$O$43,MATCH($B62,'Damage costs'!$C$16:$C$43,0))/1000,CX54*INDEX('Damage costs'!$S$16:$S$43,MATCH($B62,'Damage costs'!$C$16:$C$43,0))/1000),\"\")","v":""},{"$f":"IFERROR(IF(OR($C$67=FALSE,LEFT($B62,3)<>\"NOX\"),CY54*INDEX('Damage costs'!$O$16:$O$43,MATCH($B62,'Damage costs'!$C$16:$C$43,0))/1000,CY54*INDEX('Damage costs'!$S$16:$S$43,MATCH($B62,'Damage costs'!$C$16:$C$43,0))/1000),\"\")","v":""}]
[null,0,"£000's",{"$f":"IFERROR(IF(OR($C$67=FALSE,LEFT($B63,3)<>\"NOX\"),D55*INDEX('Damage costs'!$O$16:$O$43,MATCH($B63,'Damage costs'!$C$16:$C$43,0))/1000,D55*INDEX('Damage costs'!$S$16:$S$43,MATCH($B63,'Damage costs'!$C$16:$C$43,0))/1000),\"\")","v":""},{"$f":"IFERROR(IF(OR($C$67=FALSE,LEFT($B63,3)<>\"NOX\"),E55*INDEX('Damage costs'!$O$16:$O$43,MATCH($B63,'Damage costs'!$C$16:$C$43,0))/1000,E55*INDEX('Damage costs'!$S$16:$S$43,MATCH($B63,'Damage costs'!$C$16:$C$43,0))/1000),\"\")","v":""},{"$f":"IFERROR(IF(OR($C$67=FALSE,LEFT($B63,3)<>\"NOX\"),F55*INDEX('Damage costs'!$O$16:$O$43,MATCH($B63,'Damage costs'!$C$16:$C$43,0))/1000,F55*INDEX('Damage costs'!$S$16:$S$43,MATCH($B63,'Damage costs'!$C$16:$C$43,0))/1000),\"\")","v":""},{"$f":"IFERROR(IF(OR($C$67=FALSE,LEFT($B63,3)<>\"NOX\"),G55*INDEX('Damage costs'!$O$16:$O$43,MATCH($B63,'Damage costs'!$C$16:$C$43,0))/1000,G55*INDEX('Damage costs'!$S$16:$S$43,MATCH($B63,'Damage costs'!$C$16:$C$43,0))/1000),\"\")","v":""},{"$f":"IFERROR(IF(OR($C$67=FALSE,LEFT($B63,3)<>\"NOX\"),H55*INDEX('Damage costs'!$O$16:$O$43,MATCH($B63,'Damage costs'!$C$16:$C$43,0))/1000,H55*INDEX('Damage costs'!$S$16:$S$43,MATCH($B63,'Damage costs'!$C$16:$C$43,0))/1000),\"\")","v":""},{"$f":"IFERROR(IF(OR($C$67=FALSE,LEFT($B63,3)<>\"NOX\"),I55*INDEX('Damage costs'!$O$16:$O$43,MATCH($B63,'Damage costs'!$C$16:$C$43,0))/1000,I55*INDEX('Damage costs'!$S$16:$S$43,MATCH($B63,'Damage costs'!$C$16:$C$43,0))/1000),\"\")","v":""},{"$f":"IFERROR(IF(OR($C$67=FALSE,LEFT($B63,3)<>\"NOX\"),J55*INDEX('Damage costs'!$O$16:$O$43,MATCH($B63,'Damage costs'!$C$16:$C$43,0))/1000,J55*INDEX('Damage costs'!$S$16:$S$43,MATCH($B63,'Damage costs'!$C$16:$C$43,0))/1000),\"\")","v":""},{"$f":"IFERROR(IF(OR($C$67=FALSE,LEFT($B63,3)<>\"NOX\"),K55*INDEX('Damage costs'!$O$16:$O$43,MATCH($B63,'Damage costs'!$C$16:$C$43,0))/1000,K55*INDEX('Damage costs'!$S$16:$S$43,MATCH($B63,'Damage costs'!$C$16:$C$43,0))/1000),\"\")","v":""},{"$f":"IFERROR(IF(OR($C$67=FALSE,LEFT($B63,3)<>\"NOX\"),L55*INDEX('Damage costs'!$O$16:$O$43,MATCH($B63,'Damage costs'!$C$16:$C$43,0))/1000,L55*INDEX('Damage costs'!$S$16:$S$43,MATCH($B63,'Damage costs'!$C$16:$C$43,0))/1000),\"\")","v":""},{"$f":"IFERROR(IF(OR($C$67=FALSE,LEFT($B63,3)<>\"NOX\"),M55*INDEX('Damage costs'!$O$16:$O$43,MATCH($B63,'Damage costs'!$C$16:$C$43,0))/1000,M55*INDEX('Damage costs'!$S$16:$S$43,MATCH($B63,'Damage costs'!$C$16:$C$43,0))/1000),\"\")","v":""},{"$f":"IFERROR(IF(OR($C$67=FALSE,LEFT($B63,3)<>\"NOX\"),N55*INDEX('Damage costs'!$O$16:$O$43,MATCH($B63,'Damage costs'!$C$16:$C$43,0))/1000,N55*INDEX('Damage costs'!$S$16:$S$43,MATCH($B63,'Damage costs'!$C$16:$C$43,0))/1000),\"\")","v":""},{"$f":"IFERROR(IF(OR($C$67=FALSE,LEFT($B63,3)<>\"NOX\"),O55*INDEX('Damage costs'!$O$16:$O$43,MATCH($B63,'Damage costs'!$C$16:$C$43,0))/1000,O55*INDEX('Damage costs'!$S$16:$S$43,MATCH($B63,'Damage costs'!$C$16:$C$43,0))/1000),\"\")","v":""},{"$f":"IFERROR(IF(OR($C$67=FALSE,LEFT($B63,3)<>\"NOX\"),P55*INDEX('Damage costs'!$O$16:$O$43,MATCH($B63,'Damage costs'!$C$16:$C$43,0))/1000,P55*INDEX('Damage costs'!$S$16:$S$43,MATCH($B63,'Damage costs'!$C$16:$C$43,0))/1000),\"\")","v":""},{"$f":"IFERROR(IF(OR($C$67=FALSE,LEFT($B63,3)<>\"NOX\"),Q55*INDEX('Damage costs'!$O$16:$O$43,MATCH($B63,'Damage costs'!$C$16:$C$43,0))/1000,Q55*INDEX('Damage costs'!$S$16:$S$43,MATCH($B63,'Damage costs'!$C$16:$C$43,0))/1000),\"\")","v":""},{"$f":"IFERROR(IF(OR($C$67=FALSE,LEFT($B63,3)<>\"NOX\"),R55*INDEX('Damage costs'!$O$16:$O$43,MATCH($B63,'Damage costs'!$C$16:$C$43,0))/1000,R55*INDEX('Damage costs'!$S$16:$S$43,MATCH($B63,'Damage costs'!$C$16:$C$43,0))/1000),\"\")","v":""},{"$f":"IFERROR(IF(OR($C$67=FALSE,LEFT($B63,3)<>\"NOX\"),S55*INDEX('Damage costs'!$O$16:$O$43,MATCH($B63,'Damage costs'!$C$16:$C$43,0))/1000,S55*INDEX('Damage costs'!$S$16:$S$43,MATCH($B63,'Damage costs'!$C$16:$C$43,0))/1000),\"\")","v":""},{"$f":"IFERROR(IF(OR($C$67=FALSE,LEFT($B63,3)<>\"NOX\"),T55*INDEX('Damage costs'!$O$16:$O$43,MATCH($B63,'Damage costs'!$C$16:$C$43,0))/1000,T55*INDEX('Damage costs'!$S$16:$S$43,MATCH($B63,'Damage costs'!$C$16:$C$43,0))/1000),\"\")","v":""},{"$f":"IFERROR(IF(OR($C$67=FALSE,LEFT($B63,3)<>\"NOX\"),U55*INDEX('Damage costs'!$O$16:$O$43,MATCH($B63,'Damage costs'!$C$16:$C$43,0))/1000,U55*INDEX('Damage costs'!$S$16:$S$43,MATCH($B63,'Damage costs'!$C$16:$C$43,0))/1000),\"\")","v":""},{"$f":"IFERROR(IF(OR($C$67=FALSE,LEFT($B63,3)<>\"NOX\"),V55*INDEX('Damage costs'!$O$16:$O$43,MATCH($B63,'Damage costs'!$C$16:$C$43,0))/1000,V55*INDEX('Damage costs'!$S$16:$S$43,MATCH($B63,'Damage costs'!$C$16:$C$43,0))/1000),\"\")","v":""},{"$f":"IFERROR(IF(OR($C$67=FALSE,LEFT($B63,3)<>\"NOX\"),W55*INDEX('Damage costs'!$O$16:$O$43,MATCH($B63,'Damage costs'!$C$16:$C$43,0))/1000,W55*INDEX('Damage costs'!$S$16:$S$43,MATCH($B63,'Damage costs'!$C$16:$C$43,0))/1000),\"\")","v":""},{"$f":"IFERROR(IF(OR($C$67=FALSE,LEFT($B63,3)<>\"NOX\"),X55*INDEX('Damage costs'!$O$16:$O$43,MATCH($B63,'Damage costs'!$C$16:$C$43,0))/1000,X55*INDEX('Damage costs'!$S$16:$S$43,MATCH($B63,'Damage costs'!$C$16:$C$43,0))/1000),\"\")","v":""},{"$f":"IFERROR(IF(OR($C$67=FALSE,LEFT($B63,3)<>\"NOX\"),Y55*INDEX('Damage costs'!$O$16:$O$43,MATCH($B63,'Damage costs'!$C$16:$C$43,0))/1000,Y55*INDEX('Damage costs'!$S$16:$S$43,MATCH($B63,'Damage costs'!$C$16:$C$43,0))/1000),\"\")","v":""},{"$f":"IFERROR(IF(OR($C$67=FALSE,LEFT($B63,3)<>\"NOX\"),Z55*INDEX('Damage costs'!$O$16:$O$43,MATCH($B63,'Damage costs'!$C$16:$C$43,0))/1000,Z55*INDEX('Damage costs'!$S$16:$S$43,MATCH($B63,'Damage costs'!$C$16:$C$43,0))/1000),\"\")","v":""},{"$f":"IFERROR(IF(OR($C$67=FALSE,LEFT($B63,3)<>\"NOX\"),AA55*INDEX('Damage costs'!$O$16:$O$43,MATCH($B63,'Damage costs'!$C$16:$C$43,0))/1000,AA55*INDEX('Damage costs'!$S$16:$S$43,MATCH($B63,'Damage costs'!$C$16:$C$43,0))/1000),\"\")","v":""},{"$f":"IFERROR(IF(OR($C$67=FALSE,LEFT($B63,3)<>\"NOX\"),AB55*INDEX('Damage costs'!$O$16:$O$43,MATCH($B63,'Damage costs'!$C$16:$C$43,0))/1000,AB55*INDEX('Damage costs'!$S$16:$S$43,MATCH($B63,'Damage costs'!$C$16:$C$43,0))/1000),\"\")","v":""},{"$f":"IFERROR(IF(OR($C$67=FALSE,LEFT($B63,3)<>\"NOX\"),AC55*INDEX('Damage costs'!$O$16:$O$43,MATCH($B63,'Damage costs'!$C$16:$C$43,0))/1000,AC55*INDEX('Damage costs'!$S$16:$S$43,MATCH($B63,'Damage costs'!$C$16:$C$43,0))/1000),\"\")","v":""},{"$f":"IFERROR(IF(OR($C$67=FALSE,LEFT($B63,3)<>\"NOX\"),AD55*INDEX('Damage costs'!$O$16:$O$43,MATCH($B63,'Damage costs'!$C$16:$C$43,0))/1000,AD55*INDEX('Damage costs'!$S$16:$S$43,MATCH($B63,'Damage costs'!$C$16:$C$43,0))/1000),\"\")","v":""},{"$f":"IFERROR(IF(OR($C$67=FALSE,LEFT($B63,3)<>\"NOX\"),AE55*INDEX('Damage costs'!$O$16:$O$43,MATCH($B63,'Damage costs'!$C$16:$C$43,0))/1000,AE55*INDEX('Damage costs'!$S$16:$S$43,MATCH($B63,'Damage costs'!$C$16:$C$43,0))/1000),\"\")","v":""},{"$f":"IFERROR(IF(OR($C$67=FALSE,LEFT($B63,3)<>\"NOX\"),AF55*INDEX('Damage costs'!$O$16:$O$43,MATCH($B63,'Damage costs'!$C$16:$C$43,0))/1000,AF55*INDEX('Damage costs'!$S$16:$S$43,MATCH($B63,'Damage costs'!$C$16:$C$43,0))/1000),\"\")","v":""},{"$f":"IFERROR(IF(OR($C$67=FALSE,LEFT($B63,3)<>\"NOX\"),AG55*INDEX('Damage costs'!$O$16:$O$43,MATCH($B63,'Damage costs'!$C$16:$C$43,0))/1000,AG55*INDEX('Damage costs'!$S$16:$S$43,MATCH($B63,'Damage costs'!$C$16:$C$43,0))/1000),\"\")","v":""},{"$f":"IFERROR(IF(OR($C$67=FALSE,LEFT($B63,3)<>\"NOX\"),AH55*INDEX('Damage costs'!$O$16:$O$43,MATCH($B63,'Damage costs'!$C$16:$C$43,0))/1000,AH55*INDEX('Damage costs'!$S$16:$S$43,MATCH($B63,'Damage costs'!$C$16:$C$43,0))/1000),\"\")","v":""},{"$f":"IFERROR(IF(OR($C$67=FALSE,LEFT($B63,3)<>\"NOX\"),AI55*INDEX('Damage costs'!$O$16:$O$43,MATCH($B63,'Damage costs'!$C$16:$C$43,0))/1000,AI55*INDEX('Damage costs'!$S$16:$S$43,MATCH($B63,'Damage costs'!$C$16:$C$43,0))/1000),\"\")","v":""},{"$f":"IFERROR(IF(OR($C$67=FALSE,LEFT($B63,3)<>\"NOX\"),AJ55*INDEX('Damage costs'!$O$16:$O$43,MATCH($B63,'Damage costs'!$C$16:$C$43,0))/1000,AJ55*INDEX('Damage costs'!$S$16:$S$43,MATCH($B63,'Damage costs'!$C$16:$C$43,0))/1000),\"\")","v":""},{"$f":"IFERROR(IF(OR($C$67=FALSE,LEFT($B63,3)<>\"NOX\"),AK55*INDEX('Damage costs'!$O$16:$O$43,MATCH($B63,'Damage costs'!$C$16:$C$43,0))/1000,AK55*INDEX('Damage costs'!$S$16:$S$43,MATCH($B63,'Damage costs'!$C$16:$C$43,0))/1000),\"\")","v":""},{"$f":"IFERROR(IF(OR($C$67=FALSE,LEFT($B63,3)<>\"NOX\"),AL55*INDEX('Damage costs'!$O$16:$O$43,MATCH($B63,'Damage costs'!$C$16:$C$43,0))/1000,AL55*INDEX('Damage costs'!$S$16:$S$43,MATCH($B63,'Damage costs'!$C$16:$C$43,0))/1000),\"\")","v":""},{"$f":"IFERROR(IF(OR($C$67=FALSE,LEFT($B63,3)<>\"NOX\"),AM55*INDEX('Damage costs'!$O$16:$O$43,MATCH($B63,'Damage costs'!$C$16:$C$43,0))/1000,AM55*INDEX('Damage costs'!$S$16:$S$43,MATCH($B63,'Damage costs'!$C$16:$C$43,0))/1000),\"\")","v":""},{"$f":"IFERROR(IF(OR($C$67=FALSE,LEFT($B63,3)<>\"NOX\"),AN55*INDEX('Damage costs'!$O$16:$O$43,MATCH($B63,'Damage costs'!$C$16:$C$43,0))/1000,AN55*INDEX('Damage costs'!$S$16:$S$43,MATCH($B63,'Damage costs'!$C$16:$C$43,0))/1000),\"\")","v":""},{"$f":"IFERROR(IF(OR($C$67=FALSE,LEFT($B63,3)<>\"NOX\"),AO55*INDEX('Damage costs'!$O$16:$O$43,MATCH($B63,'Damage costs'!$C$16:$C$43,0))/1000,AO55*INDEX('Damage costs'!$S$16:$S$43,MATCH($B63,'Damage costs'!$C$16:$C$43,0))/1000),\"\")","v":""},{"$f":"IFERROR(IF(OR($C$67=FALSE,LEFT($B63,3)<>\"NOX\"),AP55*INDEX('Damage costs'!$O$16:$O$43,MATCH($B63,'Damage costs'!$C$16:$C$43,0))/1000,AP55*INDEX('Damage costs'!$S$16:$S$43,MATCH($B63,'Damage costs'!$C$16:$C$43,0))/1000),\"\")","v":""},{"$f":"IFERROR(IF(OR($C$67=FALSE,LEFT($B63,3)<>\"NOX\"),AQ55*INDEX('Damage costs'!$O$16:$O$43,MATCH($B63,'Damage costs'!$C$16:$C$43,0))/1000,AQ55*INDEX('Damage costs'!$S$16:$S$43,MATCH($B63,'Damage costs'!$C$16:$C$43,0))/1000),\"\")","v":""},{"$f":"IFERROR(IF(OR($C$67=FALSE,LEFT($B63,3)<>\"NOX\"),AR55*INDEX('Damage costs'!$O$16:$O$43,MATCH($B63,'Damage costs'!$C$16:$C$43,0))/1000,AR55*INDEX('Damage costs'!$S$16:$S$43,MATCH($B63,'Damage costs'!$C$16:$C$43,0))/1000),\"\")","v":""},{"$f":"IFERROR(IF(OR($C$67=FALSE,LEFT($B63,3)<>\"NOX\"),AS55*INDEX('Damage costs'!$O$16:$O$43,MATCH($B63,'Damage costs'!$C$16:$C$43,0))/1000,AS55*INDEX('Damage costs'!$S$16:$S$43,MATCH($B63,'Damage costs'!$C$16:$C$43,0))/1000),\"\")","v":""},{"$f":"IFERROR(IF(OR($C$67=FALSE,LEFT($B63,3)<>\"NOX\"),AT55*INDEX('Damage costs'!$O$16:$O$43,MATCH($B63,'Damage costs'!$C$16:$C$43,0))/1000,AT55*INDEX('Damage costs'!$S$16:$S$43,MATCH($B63,'Damage costs'!$C$16:$C$43,0))/1000),\"\")","v":""},{"$f":"IFERROR(IF(OR($C$67=FALSE,LEFT($B63,3)<>\"NOX\"),AU55*INDEX('Damage costs'!$O$16:$O$43,MATCH($B63,'Damage costs'!$C$16:$C$43,0))/1000,AU55*INDEX('Damage costs'!$S$16:$S$43,MATCH($B63,'Damage costs'!$C$16:$C$43,0))/1000),\"\")","v":""},{"$f":"IFERROR(IF(OR($C$67=FALSE,LEFT($B63,3)<>\"NOX\"),AV55*INDEX('Damage costs'!$O$16:$O$43,MATCH($B63,'Damage costs'!$C$16:$C$43,0))/1000,AV55*INDEX('Damage costs'!$S$16:$S$43,MATCH($B63,'Damage costs'!$C$16:$C$43,0))/1000),\"\")","v":""},{"$f":"IFERROR(IF(OR($C$67=FALSE,LEFT($B63,3)<>\"NOX\"),AW55*INDEX('Damage costs'!$O$16:$O$43,MATCH($B63,'Damage costs'!$C$16:$C$43,0))/1000,AW55*INDEX('Damage costs'!$S$16:$S$43,MATCH($B63,'Damage costs'!$C$16:$C$43,0))/1000),\"\")","v":""},{"$f":"IFERROR(IF(OR($C$67=FALSE,LEFT($B63,3)<>\"NOX\"),AX55*INDEX('Damage costs'!$O$16:$O$43,MATCH($B63,'Damage costs'!$C$16:$C$43,0))/1000,AX55*INDEX('Damage costs'!$S$16:$S$43,MATCH($B63,'Damage costs'!$C$16:$C$43,0))/1000),\"\")","v":""},{"$f":"IFERROR(IF(OR($C$67=FALSE,LEFT($B63,3)<>\"NOX\"),AY55*INDEX('Damage costs'!$O$16:$O$43,MATCH($B63,'Damage costs'!$C$16:$C$43,0))/1000,AY55*INDEX('Damage costs'!$S$16:$S$43,MATCH($B63,'Damage costs'!$C$16:$C$43,0))/1000),\"\")","v":""},{"$f":"IFERROR(IF(OR($C$67=FALSE,LEFT($B63,3)<>\"NOX\"),AZ55*INDEX('Damage costs'!$O$16:$O$43,MATCH($B63,'Damage costs'!$C$16:$C$43,0))/1000,AZ55*INDEX('Damage costs'!$S$16:$S$43,MATCH($B63,'Damage costs'!$C$16:$C$43,0))/1000),\"\")","v":""},{"$f":"IFERROR(IF(OR($C$67=FALSE,LEFT($B63,3)<>\"NOX\"),BA55*INDEX('Damage costs'!$O$16:$O$43,MATCH($B63,'Damage costs'!$C$16:$C$43,0))/1000,BA55*INDEX('Damage costs'!$S$16:$S$43,MATCH($B63,'Damage costs'!$C$16:$C$43,0))/1000),\"\")","v":""},{"$f":"IFERROR(IF(OR($C$67=FALSE,LEFT($B63,3)<>\"NOX\"),BB55*INDEX('Damage costs'!$O$16:$O$43,MATCH($B63,'Damage costs'!$C$16:$C$43,0))/1000,BB55*INDEX('Damage costs'!$S$16:$S$43,MATCH($B63,'Damage costs'!$C$16:$C$43,0))/1000),\"\")","v":""},{"$f":"IFERROR(IF(OR($C$67=FALSE,LEFT($B63,3)<>\"NOX\"),BC55*INDEX('Damage costs'!$O$16:$O$43,MATCH($B63,'Damage costs'!$C$16:$C$43,0))/1000,BC55*INDEX('Damage costs'!$S$16:$S$43,MATCH($B63,'Damage costs'!$C$16:$C$43,0))/1000),\"\")","v":""},{"$f":"IFERROR(IF(OR($C$67=FALSE,LEFT($B63,3)<>\"NOX\"),BD55*INDEX('Damage costs'!$O$16:$O$43,MATCH($B63,'Damage costs'!$C$16:$C$43,0))/1000,BD55*INDEX('Damage costs'!$S$16:$S$43,MATCH($B63,'Damage costs'!$C$16:$C$43,0))/1000),\"\")","v":""},{"$f":"IFERROR(IF(OR($C$67=FALSE,LEFT($B63,3)<>\"NOX\"),BE55*INDEX('Damage costs'!$O$16:$O$43,MATCH($B63,'Damage costs'!$C$16:$C$43,0))/1000,BE55*INDEX('Damage costs'!$S$16:$S$43,MATCH($B63,'Damage costs'!$C$16:$C$43,0))/1000),\"\")","v":""},{"$f":"IFERROR(IF(OR($C$67=FALSE,LEFT($B63,3)<>\"NOX\"),BF55*INDEX('Damage costs'!$O$16:$O$43,MATCH($B63,'Damage costs'!$C$16:$C$43,0))/1000,BF55*INDEX('Damage costs'!$S$16:$S$43,MATCH($B63,'Damage costs'!$C$16:$C$43,0))/1000),\"\")","v":""},{"$f":"IFERROR(IF(OR($C$67=FALSE,LEFT($B63,3)<>\"NOX\"),BG55*INDEX('Damage costs'!$O$16:$O$43,MATCH($B63,'Damage costs'!$C$16:$C$43,0))/1000,BG55*INDEX('Damage costs'!$S$16:$S$43,MATCH($B63,'Damage costs'!$C$16:$C$43,0))/1000),\"\")","v":""},{"$f":"IFERROR(IF(OR($C$67=FALSE,LEFT($B63,3)<>\"NOX\"),BH55*INDEX('Damage costs'!$O$16:$O$43,MATCH($B63,'Damage costs'!$C$16:$C$43,0))/1000,BH55*INDEX('Damage costs'!$S$16:$S$43,MATCH($B63,'Damage costs'!$C$16:$C$43,0))/1000),\"\")","v":""},{"$f":"IFERROR(IF(OR($C$67=FALSE,LEFT($B63,3)<>\"NOX\"),BI55*INDEX('Damage costs'!$O$16:$O$43,MATCH($B63,'Damage costs'!$C$16:$C$43,0))/1000,BI55*INDEX('Damage costs'!$S$16:$S$43,MATCH($B63,'Damage costs'!$C$16:$C$43,0))/1000),\"\")","v":""},{"$f":"IFERROR(IF(OR($C$67=FALSE,LEFT($B63,3)<>\"NOX\"),BJ55*INDEX('Damage costs'!$O$16:$O$43,MATCH($B63,'Damage costs'!$C$16:$C$43,0))/1000,BJ55*INDEX('Damage costs'!$S$16:$S$43,MATCH($B63,'Damage costs'!$C$16:$C$43,0))/1000),\"\")","v":""},{"$f":"IFERROR(IF(OR($C$67=FALSE,LEFT($B63,3)<>\"NOX\"),BK55*INDEX('Damage costs'!$O$16:$O$43,MATCH($B63,'Damage costs'!$C$16:$C$43,0))/1000,BK55*INDEX('Damage costs'!$S$16:$S$43,MATCH($B63,'Damage costs'!$C$16:$C$43,0))/1000),\"\")","v":""},{"$f":"IFERROR(IF(OR($C$67=FALSE,LEFT($B63,3)<>\"NOX\"),BL55*INDEX('Damage costs'!$O$16:$O$43,MATCH($B63,'Damage costs'!$C$16:$C$43,0))/1000,BL55*INDEX('Damage costs'!$S$16:$S$43,MATCH($B63,'Damage costs'!$C$16:$C$43,0))/1000),\"\")","v":""},{"$f":"IFERROR(IF(OR($C$67=FALSE,LEFT($B63,3)<>\"NOX\"),BM55*INDEX('Damage costs'!$O$16:$O$43,MATCH($B63,'Damage costs'!$C$16:$C$43,0))/1000,BM55*INDEX('Damage costs'!$S$16:$S$43,MATCH($B63,'Damage costs'!$C$16:$C$43,0))/1000),\"\")","v":""},{"$f":"IFERROR(IF(OR($C$67=FALSE,LEFT($B63,3)<>\"NOX\"),BN55*INDEX('Damage costs'!$O$16:$O$43,MATCH($B63,'Damage costs'!$C$16:$C$43,0))/1000,BN55*INDEX('Damage costs'!$S$16:$S$43,MATCH($B63,'Damage costs'!$C$16:$C$43,0))/1000),\"\")","v":""},{"$f":"IFERROR(IF(OR($C$67=FALSE,LEFT($B63,3)<>\"NOX\"),BO55*INDEX('Damage costs'!$O$16:$O$43,MATCH($B63,'Damage costs'!$C$16:$C$43,0))/1000,BO55*INDEX('Damage costs'!$S$16:$S$43,MATCH($B63,'Damage costs'!$C$16:$C$43,0))/1000),\"\")","v":""},{"$f":"IFERROR(IF(OR($C$67=FALSE,LEFT($B63,3)<>\"NOX\"),BP55*INDEX('Damage costs'!$O$16:$O$43,MATCH($B63,'Damage costs'!$C$16:$C$43,0))/1000,BP55*INDEX('Damage costs'!$S$16:$S$43,MATCH($B63,'Damage costs'!$C$16:$C$43,0))/1000),\"\")","v":""},{"$f":"IFERROR(IF(OR($C$67=FALSE,LEFT($B63,3)<>\"NOX\"),BQ55*INDEX('Damage costs'!$O$16:$O$43,MATCH($B63,'Damage costs'!$C$16:$C$43,0))/1000,BQ55*INDEX('Damage costs'!$S$16:$S$43,MATCH($B63,'Damage costs'!$C$16:$C$43,0))/1000),\"\")","v":""},{"$f":"IFERROR(IF(OR($C$67=FALSE,LEFT($B63,3)<>\"NOX\"),BR55*INDEX('Damage costs'!$O$16:$O$43,MATCH($B63,'Damage costs'!$C$16:$C$43,0))/1000,BR55*INDEX('Damage costs'!$S$16:$S$43,MATCH($B63,'Damage costs'!$C$16:$C$43,0))/1000),\"\")","v":""},{"$f":"IFERROR(IF(OR($C$67=FALSE,LEFT($B63,3)<>\"NOX\"),BS55*INDEX('Damage costs'!$O$16:$O$43,MATCH($B63,'Damage costs'!$C$16:$C$43,0))/1000,BS55*INDEX('Damage costs'!$S$16:$S$43,MATCH($B63,'Damage costs'!$C$16:$C$43,0))/1000),\"\")","v":""},{"$f":"IFERROR(IF(OR($C$67=FALSE,LEFT($B63,3)<>\"NOX\"),BT55*INDEX('Damage costs'!$O$16:$O$43,MATCH($B63,'Damage costs'!$C$16:$C$43,0))/1000,BT55*INDEX('Damage costs'!$S$16:$S$43,MATCH($B63,'Damage costs'!$C$16:$C$43,0))/1000),\"\")","v":""},{"$f":"IFERROR(IF(OR($C$67=FALSE,LEFT($B63,3)<>\"NOX\"),BU55*INDEX('Damage costs'!$O$16:$O$43,MATCH($B63,'Damage costs'!$C$16:$C$43,0))/1000,BU55*INDEX('Damage costs'!$S$16:$S$43,MATCH($B63,'Damage costs'!$C$16:$C$43,0))/1000),\"\")","v":""},{"$f":"IFERROR(IF(OR($C$67=FALSE,LEFT($B63,3)<>\"NOX\"),BV55*INDEX('Damage costs'!$O$16:$O$43,MATCH($B63,'Damage costs'!$C$16:$C$43,0))/1000,BV55*INDEX('Damage costs'!$S$16:$S$43,MATCH($B63,'Damage costs'!$C$16:$C$43,0))/1000),\"\")","v":""},{"$f":"IFERROR(IF(OR($C$67=FALSE,LEFT($B63,3)<>\"NOX\"),BW55*INDEX('Damage costs'!$O$16:$O$43,MATCH($B63,'Damage costs'!$C$16:$C$43,0))/1000,BW55*INDEX('Damage costs'!$S$16:$S$43,MATCH($B63,'Damage costs'!$C$16:$C$43,0))/1000),\"\")","v":""},{"$f":"IFERROR(IF(OR($C$67=FALSE,LEFT($B63,3)<>\"NOX\"),BX55*INDEX('Damage costs'!$O$16:$O$43,MATCH($B63,'Damage costs'!$C$16:$C$43,0))/1000,BX55*INDEX('Damage costs'!$S$16:$S$43,MATCH($B63,'Damage costs'!$C$16:$C$43,0))/1000),\"\")","v":""},{"$f":"IFERROR(IF(OR($C$67=FALSE,LEFT($B63,3)<>\"NOX\"),BY55*INDEX('Damage costs'!$O$16:$O$43,MATCH($B63,'Damage costs'!$C$16:$C$43,0))/1000,BY55*INDEX('Damage costs'!$S$16:$S$43,MATCH($B63,'Damage costs'!$C$16:$C$43,0))/1000),\"\")","v":""},{"$f":"IFERROR(IF(OR($C$67=FALSE,LEFT($B63,3)<>\"NOX\"),BZ55*INDEX('Damage costs'!$O$16:$O$43,MATCH($B63,'Damage costs'!$C$16:$C$43,0))/1000,BZ55*INDEX('Damage costs'!$S$16:$S$43,MATCH($B63,'Damage costs'!$C$16:$C$43,0))/1000),\"\")","v":""},{"$f":"IFERROR(IF(OR($C$67=FALSE,LEFT($B63,3)<>\"NOX\"),CA55*INDEX('Damage costs'!$O$16:$O$43,MATCH($B63,'Damage costs'!$C$16:$C$43,0))/1000,CA55*INDEX('Damage costs'!$S$16:$S$43,MATCH($B63,'Damage costs'!$C$16:$C$43,0))/1000),\"\")","v":""},{"$f":"IFERROR(IF(OR($C$67=FALSE,LEFT($B63,3)<>\"NOX\"),CB55*INDEX('Damage costs'!$O$16:$O$43,MATCH($B63,'Damage costs'!$C$16:$C$43,0))/1000,CB55*INDEX('Damage costs'!$S$16:$S$43,MATCH($B63,'Damage costs'!$C$16:$C$43,0))/1000),\"\")","v":""},{"$f":"IFERROR(IF(OR($C$67=FALSE,LEFT($B63,3)<>\"NOX\"),CC55*INDEX('Damage costs'!$O$16:$O$43,MATCH($B63,'Damage costs'!$C$16:$C$43,0))/1000,CC55*INDEX('Damage costs'!$S$16:$S$43,MATCH($B63,'Damage costs'!$C$16:$C$43,0))/1000),\"\")","v":""},{"$f":"IFERROR(IF(OR($C$67=FALSE,LEFT($B63,3)<>\"NOX\"),CD55*INDEX('Damage costs'!$O$16:$O$43,MATCH($B63,'Damage costs'!$C$16:$C$43,0))/1000,CD55*INDEX('Damage costs'!$S$16:$S$43,MATCH($B63,'Damage costs'!$C$16:$C$43,0))/1000),\"\")","v":""},{"$f":"IFERROR(IF(OR($C$67=FALSE,LEFT($B63,3)<>\"NOX\"),CE55*INDEX('Damage costs'!$O$16:$O$43,MATCH($B63,'Damage costs'!$C$16:$C$43,0))/1000,CE55*INDEX('Damage costs'!$S$16:$S$43,MATCH($B63,'Damage costs'!$C$16:$C$43,0))/1000),\"\")","v":""},{"$f":"IFERROR(IF(OR($C$67=FALSE,LEFT($B63,3)<>\"NOX\"),CF55*INDEX('Damage costs'!$O$16:$O$43,MATCH($B63,'Damage costs'!$C$16:$C$43,0))/1000,CF55*INDEX('Damage costs'!$S$16:$S$43,MATCH($B63,'Damage costs'!$C$16:$C$43,0))/1000),\"\")","v":""},{"$f":"IFERROR(IF(OR($C$67=FALSE,LEFT($B63,3)<>\"NOX\"),CG55*INDEX('Damage costs'!$O$16:$O$43,MATCH($B63,'Damage costs'!$C$16:$C$43,0))/1000,CG55*INDEX('Damage costs'!$S$16:$S$43,MATCH($B63,'Damage costs'!$C$16:$C$43,0))/1000),\"\")","v":""},{"$f":"IFERROR(IF(OR($C$67=FALSE,LEFT($B63,3)<>\"NOX\"),CH55*INDEX('Damage costs'!$O$16:$O$43,MATCH($B63,'Damage costs'!$C$16:$C$43,0))/1000,CH55*INDEX('Damage costs'!$S$16:$S$43,MATCH($B63,'Damage costs'!$C$16:$C$43,0))/1000),\"\")","v":""},{"$f":"IFERROR(IF(OR($C$67=FALSE,LEFT($B63,3)<>\"NOX\"),CI55*INDEX('Damage costs'!$O$16:$O$43,MATCH($B63,'Damage costs'!$C$16:$C$43,0))/1000,CI55*INDEX('Damage costs'!$S$16:$S$43,MATCH($B63,'Damage costs'!$C$16:$C$43,0))/1000),\"\")","v":""},{"$f":"IFERROR(IF(OR($C$67=FALSE,LEFT($B63,3)<>\"NOX\"),CJ55*INDEX('Damage costs'!$O$16:$O$43,MATCH($B63,'Damage costs'!$C$16:$C$43,0))/1000,CJ55*INDEX('Damage costs'!$S$16:$S$43,MATCH($B63,'Damage costs'!$C$16:$C$43,0))/1000),\"\")","v":""},{"$f":"IFERROR(IF(OR($C$67=FALSE,LEFT($B63,3)<>\"NOX\"),CK55*INDEX('Damage costs'!$O$16:$O$43,MATCH($B63,'Damage costs'!$C$16:$C$43,0))/1000,CK55*INDEX('Damage costs'!$S$16:$S$43,MATCH($B63,'Damage costs'!$C$16:$C$43,0))/1000),\"\")","v":""},{"$f":"IFERROR(IF(OR($C$67=FALSE,LEFT($B63,3)<>\"NOX\"),CL55*INDEX('Damage costs'!$O$16:$O$43,MATCH($B63,'Damage costs'!$C$16:$C$43,0))/1000,CL55*INDEX('Damage costs'!$S$16:$S$43,MATCH($B63,'Damage costs'!$C$16:$C$43,0))/1000),\"\")","v":""},{"$f":"IFERROR(IF(OR($C$67=FALSE,LEFT($B63,3)<>\"NOX\"),CM55*INDEX('Damage costs'!$O$16:$O$43,MATCH($B63,'Damage costs'!$C$16:$C$43,0))/1000,CM55*INDEX('Damage costs'!$S$16:$S$43,MATCH($B63,'Damage costs'!$C$16:$C$43,0))/1000),\"\")","v":""},{"$f":"IFERROR(IF(OR($C$67=FALSE,LEFT($B63,3)<>\"NOX\"),CN55*INDEX('Damage costs'!$O$16:$O$43,MATCH($B63,'Damage costs'!$C$16:$C$43,0))/1000,CN55*INDEX('Damage costs'!$S$16:$S$43,MATCH($B63,'Damage costs'!$C$16:$C$43,0))/1000),\"\")","v":""},{"$f":"IFERROR(IF(OR($C$67=FALSE,LEFT($B63,3)<>\"NOX\"),CO55*INDEX('Damage costs'!$O$16:$O$43,MATCH($B63,'Damage costs'!$C$16:$C$43,0))/1000,CO55*INDEX('Damage costs'!$S$16:$S$43,MATCH($B63,'Damage costs'!$C$16:$C$43,0))/1000),\"\")","v":""},{"$f":"IFERROR(IF(OR($C$67=FALSE,LEFT($B63,3)<>\"NOX\"),CP55*INDEX('Damage costs'!$O$16:$O$43,MATCH($B63,'Damage costs'!$C$16:$C$43,0))/1000,CP55*INDEX('Damage costs'!$S$16:$S$43,MATCH($B63,'Damage costs'!$C$16:$C$43,0))/1000),\"\")","v":""},{"$f":"IFERROR(IF(OR($C$67=FALSE,LEFT($B63,3)<>\"NOX\"),CQ55*INDEX('Damage costs'!$O$16:$O$43,MATCH($B63,'Damage costs'!$C$16:$C$43,0))/1000,CQ55*INDEX('Damage costs'!$S$16:$S$43,MATCH($B63,'Damage costs'!$C$16:$C$43,0))/1000),\"\")","v":""},{"$f":"IFERROR(IF(OR($C$67=FALSE,LEFT($B63,3)<>\"NOX\"),CR55*INDEX('Damage costs'!$O$16:$O$43,MATCH($B63,'Damage costs'!$C$16:$C$43,0))/1000,CR55*INDEX('Damage costs'!$S$16:$S$43,MATCH($B63,'Damage costs'!$C$16:$C$43,0))/1000),\"\")","v":""},{"$f":"IFERROR(IF(OR($C$67=FALSE,LEFT($B63,3)<>\"NOX\"),CS55*INDEX('Damage costs'!$O$16:$O$43,MATCH($B63,'Damage costs'!$C$16:$C$43,0))/1000,CS55*INDEX('Damage costs'!$S$16:$S$43,MATCH($B63,'Damage costs'!$C$16:$C$43,0))/1000),\"\")","v":""},{"$f":"IFERROR(IF(OR($C$67=FALSE,LEFT($B63,3)<>\"NOX\"),CT55*INDEX('Damage costs'!$O$16:$O$43,MATCH($B63,'Damage costs'!$C$16:$C$43,0))/1000,CT55*INDEX('Damage costs'!$S$16:$S$43,MATCH($B63,'Damage costs'!$C$16:$C$43,0))/1000),\"\")","v":""},{"$f":"IFERROR(IF(OR($C$67=FALSE,LEFT($B63,3)<>\"NOX\"),CU55*INDEX('Damage costs'!$O$16:$O$43,MATCH($B63,'Damage costs'!$C$16:$C$43,0))/1000,CU55*INDEX('Damage costs'!$S$16:$S$43,MATCH($B63,'Damage costs'!$C$16:$C$43,0))/1000),\"\")","v":""},{"$f":"IFERROR(IF(OR($C$67=FALSE,LEFT($B63,3)<>\"NOX\"),CV55*INDEX('Damage costs'!$O$16:$O$43,MATCH($B63,'Damage costs'!$C$16:$C$43,0))/1000,CV55*INDEX('Damage costs'!$S$16:$S$43,MATCH($B63,'Damage costs'!$C$16:$C$43,0))/1000),\"\")","v":""},{"$f":"IFERROR(IF(OR($C$67=FALSE,LEFT($B63,3)<>\"NOX\"),CW55*INDEX('Damage costs'!$O$16:$O$43,MATCH($B63,'Damage costs'!$C$16:$C$43,0))/1000,CW55*INDEX('Damage costs'!$S$16:$S$43,MATCH($B63,'Damage costs'!$C$16:$C$43,0))/1000),\"\")","v":""},{"$f":"IFERROR(IF(OR($C$67=FALSE,LEFT($B63,3)<>\"NOX\"),CX55*INDEX('Damage costs'!$O$16:$O$43,MATCH($B63,'Damage costs'!$C$16:$C$43,0))/1000,CX55*INDEX('Damage costs'!$S$16:$S$43,MATCH($B63,'Damage costs'!$C$16:$C$43,0))/1000),\"\")","v":""},{"$f":"IFERROR(IF(OR($C$67=FALSE,LEFT($B63,3)<>\"NOX\"),CY55*INDEX('Damage costs'!$O$16:$O$43,MATCH($B63,'Damage costs'!$C$16:$C$43,0))/1000,CY55*INDEX('Damage costs'!$S$16:$S$43,MATCH($B63,'Damage costs'!$C$16:$C$43,0))/1000),\"\")","v":""}]
[null,0,"£000's",{"$f":"IFERROR(IF(OR($C$67=FALSE,LEFT($B64,3)<>\"NOX\"),D56*INDEX('Damage costs'!$O$16:$O$43,MATCH($B64,'Damage costs'!$C$16:$C$43,0))/1000,D56*INDEX('Damage costs'!$S$16:$S$43,MATCH($B64,'Damage costs'!$C$16:$C$43,0))/1000),\"\")","v":""},{"$f":"IFERROR(IF(OR($C$67=FALSE,LEFT($B64,3)<>\"NOX\"),E56*INDEX('Damage costs'!$O$16:$O$43,MATCH($B64,'Damage costs'!$C$16:$C$43,0))/1000,E56*INDEX('Damage costs'!$S$16:$S$43,MATCH($B64,'Damage costs'!$C$16:$C$43,0))/1000),\"\")","v":""},{"$f":"IFERROR(IF(OR($C$67=FALSE,LEFT($B64,3)<>\"NOX\"),F56*INDEX('Damage costs'!$O$16:$O$43,MATCH($B64,'Damage costs'!$C$16:$C$43,0))/1000,F56*INDEX('Damage costs'!$S$16:$S$43,MATCH($B64,'Damage costs'!$C$16:$C$43,0))/1000),\"\")","v":""},{"$f":"IFERROR(IF(OR($C$67=FALSE,LEFT($B64,3)<>\"NOX\"),G56*INDEX('Damage costs'!$O$16:$O$43,MATCH($B64,'Damage costs'!$C$16:$C$43,0))/1000,G56*INDEX('Damage costs'!$S$16:$S$43,MATCH($B64,'Damage costs'!$C$16:$C$43,0))/1000),\"\")","v":""},{"$f":"IFERROR(IF(OR($C$67=FALSE,LEFT($B64,3)<>\"NOX\"),H56*INDEX('Damage costs'!$O$16:$O$43,MATCH($B64,'Damage costs'!$C$16:$C$43,0))/1000,H56*INDEX('Damage costs'!$S$16:$S$43,MATCH($B64,'Damage costs'!$C$16:$C$43,0))/1000),\"\")","v":""},{"$f":"IFERROR(IF(OR($C$67=FALSE,LEFT($B64,3)<>\"NOX\"),I56*INDEX('Damage costs'!$O$16:$O$43,MATCH($B64,'Damage costs'!$C$16:$C$43,0))/1000,I56*INDEX('Damage costs'!$S$16:$S$43,MATCH($B64,'Damage costs'!$C$16:$C$43,0))/1000),\"\")","v":""},{"$f":"IFERROR(IF(OR($C$67=FALSE,LEFT($B64,3)<>\"NOX\"),J56*INDEX('Damage costs'!$O$16:$O$43,MATCH($B64,'Damage costs'!$C$16:$C$43,0))/1000,J56*INDEX('Damage costs'!$S$16:$S$43,MATCH($B64,'Damage costs'!$C$16:$C$43,0))/1000),\"\")","v":""},{"$f":"IFERROR(IF(OR($C$67=FALSE,LEFT($B64,3)<>\"NOX\"),K56*INDEX('Damage costs'!$O$16:$O$43,MATCH($B64,'Damage costs'!$C$16:$C$43,0))/1000,K56*INDEX('Damage costs'!$S$16:$S$43,MATCH($B64,'Damage costs'!$C$16:$C$43,0))/1000),\"\")","v":""},{"$f":"IFERROR(IF(OR($C$67=FALSE,LEFT($B64,3)<>\"NOX\"),L56*INDEX('Damage costs'!$O$16:$O$43,MATCH($B64,'Damage costs'!$C$16:$C$43,0))/1000,L56*INDEX('Damage costs'!$S$16:$S$43,MATCH($B64,'Damage costs'!$C$16:$C$43,0))/1000),\"\")","v":""},{"$f":"IFERROR(IF(OR($C$67=FALSE,LEFT($B64,3)<>\"NOX\"),M56*INDEX('Damage costs'!$O$16:$O$43,MATCH($B64,'Damage costs'!$C$16:$C$43,0))/1000,M56*INDEX('Damage costs'!$S$16:$S$43,MATCH($B64,'Damage costs'!$C$16:$C$43,0))/1000),\"\")","v":""},{"$f":"IFERROR(IF(OR($C$67=FALSE,LEFT($B64,3)<>\"NOX\"),N56*INDEX('Damage costs'!$O$16:$O$43,MATCH($B64,'Damage costs'!$C$16:$C$43,0))/1000,N56*INDEX('Damage costs'!$S$16:$S$43,MATCH($B64,'Damage costs'!$C$16:$C$43,0))/1000),\"\")","v":""},{"$f":"IFERROR(IF(OR($C$67=FALSE,LEFT($B64,3)<>\"NOX\"),O56*INDEX('Damage costs'!$O$16:$O$43,MATCH($B64,'Damage costs'!$C$16:$C$43,0))/1000,O56*INDEX('Damage costs'!$S$16:$S$43,MATCH($B64,'Damage costs'!$C$16:$C$43,0))/1000),\"\")","v":""},{"$f":"IFERROR(IF(OR($C$67=FALSE,LEFT($B64,3)<>\"NOX\"),P56*INDEX('Damage costs'!$O$16:$O$43,MATCH($B64,'Damage costs'!$C$16:$C$43,0))/1000,P56*INDEX('Damage costs'!$S$16:$S$43,MATCH($B64,'Damage costs'!$C$16:$C$43,0))/1000),\"\")","v":""},{"$f":"IFERROR(IF(OR($C$67=FALSE,LEFT($B64,3)<>\"NOX\"),Q56*INDEX('Damage costs'!$O$16:$O$43,MATCH($B64,'Damage costs'!$C$16:$C$43,0))/1000,Q56*INDEX('Damage costs'!$S$16:$S$43,MATCH($B64,'Damage costs'!$C$16:$C$43,0))/1000),\"\")","v":""},{"$f":"IFERROR(IF(OR($C$67=FALSE,LEFT($B64,3)<>\"NOX\"),R56*INDEX('Damage costs'!$O$16:$O$43,MATCH($B64,'Damage costs'!$C$16:$C$43,0))/1000,R56*INDEX('Damage costs'!$S$16:$S$43,MATCH($B64,'Damage costs'!$C$16:$C$43,0))/1000),\"\")","v":""},{"$f":"IFERROR(IF(OR($C$67=FALSE,LEFT($B64,3)<>\"NOX\"),S56*INDEX('Damage costs'!$O$16:$O$43,MATCH($B64,'Damage costs'!$C$16:$C$43,0))/1000,S56*INDEX('Damage costs'!$S$16:$S$43,MATCH($B64,'Damage costs'!$C$16:$C$43,0))/1000),\"\")","v":""},{"$f":"IFERROR(IF(OR($C$67=FALSE,LEFT($B64,3)<>\"NOX\"),T56*INDEX('Damage costs'!$O$16:$O$43,MATCH($B64,'Damage costs'!$C$16:$C$43,0))/1000,T56*INDEX('Damage costs'!$S$16:$S$43,MATCH($B64,'Damage costs'!$C$16:$C$43,0))/1000),\"\")","v":""},{"$f":"IFERROR(IF(OR($C$67=FALSE,LEFT($B64,3)<>\"NOX\"),U56*INDEX('Damage costs'!$O$16:$O$43,MATCH($B64,'Damage costs'!$C$16:$C$43,0))/1000,U56*INDEX('Damage costs'!$S$16:$S$43,MATCH($B64,'Damage costs'!$C$16:$C$43,0))/1000),\"\")","v":""},{"$f":"IFERROR(IF(OR($C$67=FALSE,LEFT($B64,3)<>\"NOX\"),V56*INDEX('Damage costs'!$O$16:$O$43,MATCH($B64,'Damage costs'!$C$16:$C$43,0))/1000,V56*INDEX('Damage costs'!$S$16:$S$43,MATCH($B64,'Damage costs'!$C$16:$C$43,0))/1000),\"\")","v":""},{"$f":"IFERROR(IF(OR($C$67=FALSE,LEFT($B64,3)<>\"NOX\"),W56*INDEX('Damage costs'!$O$16:$O$43,MATCH($B64,'Damage costs'!$C$16:$C$43,0))/1000,W56*INDEX('Damage costs'!$S$16:$S$43,MATCH($B64,'Damage costs'!$C$16:$C$43,0))/1000),\"\")","v":""},{"$f":"IFERROR(IF(OR($C$67=FALSE,LEFT($B64,3)<>\"NOX\"),X56*INDEX('Damage costs'!$O$16:$O$43,MATCH($B64,'Damage costs'!$C$16:$C$43,0))/1000,X56*INDEX('Damage costs'!$S$16:$S$43,MATCH($B64,'Damage costs'!$C$16:$C$43,0))/1000),\"\")","v":""},{"$f":"IFERROR(IF(OR($C$67=FALSE,LEFT($B64,3)<>\"NOX\"),Y56*INDEX('Damage costs'!$O$16:$O$43,MATCH($B64,'Damage costs'!$C$16:$C$43,0))/1000,Y56*INDEX('Damage costs'!$S$16:$S$43,MATCH($B64,'Damage costs'!$C$16:$C$43,0))/1000),\"\")","v":""},{"$f":"IFERROR(IF(OR($C$67=FALSE,LEFT($B64,3)<>\"NOX\"),Z56*INDEX('Damage costs'!$O$16:$O$43,MATCH($B64,'Damage costs'!$C$16:$C$43,0))/1000,Z56*INDEX('Damage costs'!$S$16:$S$43,MATCH($B64,'Damage costs'!$C$16:$C$43,0))/1000),\"\")","v":""},{"$f":"IFERROR(IF(OR($C$67=FALSE,LEFT($B64,3)<>\"NOX\"),AA56*INDEX('Damage costs'!$O$16:$O$43,MATCH($B64,'Damage costs'!$C$16:$C$43,0))/1000,AA56*INDEX('Damage costs'!$S$16:$S$43,MATCH($B64,'Damage costs'!$C$16:$C$43,0))/1000),\"\")","v":""},{"$f":"IFERROR(IF(OR($C$67=FALSE,LEFT($B64,3)<>\"NOX\"),AB56*INDEX('Damage costs'!$O$16:$O$43,MATCH($B64,'Damage costs'!$C$16:$C$43,0))/1000,AB56*INDEX('Damage costs'!$S$16:$S$43,MATCH($B64,'Damage costs'!$C$16:$C$43,0))/1000),\"\")","v":""},{"$f":"IFERROR(IF(OR($C$67=FALSE,LEFT($B64,3)<>\"NOX\"),AC56*INDEX('Damage costs'!$O$16:$O$43,MATCH($B64,'Damage costs'!$C$16:$C$43,0))/1000,AC56*INDEX('Damage costs'!$S$16:$S$43,MATCH($B64,'Damage costs'!$C$16:$C$43,0))/1000),\"\")","v":""},{"$f":"IFERROR(IF(OR($C$67=FALSE,LEFT($B64,3)<>\"NOX\"),AD56*INDEX('Damage costs'!$O$16:$O$43,MATCH($B64,'Damage costs'!$C$16:$C$43,0))/1000,AD56*INDEX('Damage costs'!$S$16:$S$43,MATCH($B64,'Damage costs'!$C$16:$C$43,0))/1000),\"\")","v":""},{"$f":"IFERROR(IF(OR($C$67=FALSE,LEFT($B64,3)<>\"NOX\"),AE56*INDEX('Damage costs'!$O$16:$O$43,MATCH($B64,'Damage costs'!$C$16:$C$43,0))/1000,AE56*INDEX('Damage costs'!$S$16:$S$43,MATCH($B64,'Damage costs'!$C$16:$C$43,0))/1000),\"\")","v":""},{"$f":"IFERROR(IF(OR($C$67=FALSE,LEFT($B64,3)<>\"NOX\"),AF56*INDEX('Damage costs'!$O$16:$O$43,MATCH($B64,'Damage costs'!$C$16:$C$43,0))/1000,AF56*INDEX('Damage costs'!$S$16:$S$43,MATCH($B64,'Damage costs'!$C$16:$C$43,0))/1000),\"\")","v":""},{"$f":"IFERROR(IF(OR($C$67=FALSE,LEFT($B64,3)<>\"NOX\"),AG56*INDEX('Damage costs'!$O$16:$O$43,MATCH($B64,'Damage costs'!$C$16:$C$43,0))/1000,AG56*INDEX('Damage costs'!$S$16:$S$43,MATCH($B64,'Damage costs'!$C$16:$C$43,0))/1000),\"\")","v":""},{"$f":"IFERROR(IF(OR($C$67=FALSE,LEFT($B64,3)<>\"NOX\"),AH56*INDEX('Damage costs'!$O$16:$O$43,MATCH($B64,'Damage costs'!$C$16:$C$43,0))/1000,AH56*INDEX('Damage costs'!$S$16:$S$43,MATCH($B64,'Damage costs'!$C$16:$C$43,0))/1000),\"\")","v":""},{"$f":"IFERROR(IF(OR($C$67=FALSE,LEFT($B64,3)<>\"NOX\"),AI56*INDEX('Damage costs'!$O$16:$O$43,MATCH($B64,'Damage costs'!$C$16:$C$43,0))/1000,AI56*INDEX('Damage costs'!$S$16:$S$43,MATCH($B64,'Damage costs'!$C$16:$C$43,0))/1000),\"\")","v":""},{"$f":"IFERROR(IF(OR($C$67=FALSE,LEFT($B64,3)<>\"NOX\"),AJ56*INDEX('Damage costs'!$O$16:$O$43,MATCH($B64,'Damage costs'!$C$16:$C$43,0))/1000,AJ56*INDEX('Damage costs'!$S$16:$S$43,MATCH($B64,'Damage costs'!$C$16:$C$43,0))/1000),\"\")","v":""},{"$f":"IFERROR(IF(OR($C$67=FALSE,LEFT($B64,3)<>\"NOX\"),AK56*INDEX('Damage costs'!$O$16:$O$43,MATCH($B64,'Damage costs'!$C$16:$C$43,0))/1000,AK56*INDEX('Damage costs'!$S$16:$S$43,MATCH($B64,'Damage costs'!$C$16:$C$43,0))/1000),\"\")","v":""},{"$f":"IFERROR(IF(OR($C$67=FALSE,LEFT($B64,3)<>\"NOX\"),AL56*INDEX('Damage costs'!$O$16:$O$43,MATCH($B64,'Damage costs'!$C$16:$C$43,0))/1000,AL56*INDEX('Damage costs'!$S$16:$S$43,MATCH($B64,'Damage costs'!$C$16:$C$43,0))/1000),\"\")","v":""},{"$f":"IFERROR(IF(OR($C$67=FALSE,LEFT($B64,3)<>\"NOX\"),AM56*INDEX('Damage costs'!$O$16:$O$43,MATCH($B64,'Damage costs'!$C$16:$C$43,0))/1000,AM56*INDEX('Damage costs'!$S$16:$S$43,MATCH($B64,'Damage costs'!$C$16:$C$43,0))/1000),\"\")","v":""},{"$f":"IFERROR(IF(OR($C$67=FALSE,LEFT($B64,3)<>\"NOX\"),AN56*INDEX('Damage costs'!$O$16:$O$43,MATCH($B64,'Damage costs'!$C$16:$C$43,0))/1000,AN56*INDEX('Damage costs'!$S$16:$S$43,MATCH($B64,'Damage costs'!$C$16:$C$43,0))/1000),\"\")","v":""},{"$f":"IFERROR(IF(OR($C$67=FALSE,LEFT($B64,3)<>\"NOX\"),AO56*INDEX('Damage costs'!$O$16:$O$43,MATCH($B64,'Damage costs'!$C$16:$C$43,0))/1000,AO56*INDEX('Damage costs'!$S$16:$S$43,MATCH($B64,'Damage costs'!$C$16:$C$43,0))/1000),\"\")","v":""},{"$f":"IFERROR(IF(OR($C$67=FALSE,LEFT($B64,3)<>\"NOX\"),AP56*INDEX('Damage costs'!$O$16:$O$43,MATCH($B64,'Damage costs'!$C$16:$C$43,0))/1000,AP56*INDEX('Damage costs'!$S$16:$S$43,MATCH($B64,'Damage costs'!$C$16:$C$43,0))/1000),\"\")","v":""},{"$f":"IFERROR(IF(OR($C$67=FALSE,LEFT($B64,3)<>\"NOX\"),AQ56*INDEX('Damage costs'!$O$16:$O$43,MATCH($B64,'Damage costs'!$C$16:$C$43,0))/1000,AQ56*INDEX('Damage costs'!$S$16:$S$43,MATCH($B64,'Damage costs'!$C$16:$C$43,0))/1000),\"\")","v":""},{"$f":"IFERROR(IF(OR($C$67=FALSE,LEFT($B64,3)<>\"NOX\"),AR56*INDEX('Damage costs'!$O$16:$O$43,MATCH($B64,'Damage costs'!$C$16:$C$43,0))/1000,AR56*INDEX('Damage costs'!$S$16:$S$43,MATCH($B64,'Damage costs'!$C$16:$C$43,0))/1000),\"\")","v":""},{"$f":"IFERROR(IF(OR($C$67=FALSE,LEFT($B64,3)<>\"NOX\"),AS56*INDEX('Damage costs'!$O$16:$O$43,MATCH($B64,'Damage costs'!$C$16:$C$43,0))/1000,AS56*INDEX('Damage costs'!$S$16:$S$43,MATCH($B64,'Damage costs'!$C$16:$C$43,0))/1000),\"\")","v":""},{"$f":"IFERROR(IF(OR($C$67=FALSE,LEFT($B64,3)<>\"NOX\"),AT56*INDEX('Damage costs'!$O$16:$O$43,MATCH($B64,'Damage costs'!$C$16:$C$43,0))/1000,AT56*INDEX('Damage costs'!$S$16:$S$43,MATCH($B64,'Damage costs'!$C$16:$C$43,0))/1000),\"\")","v":""},{"$f":"IFERROR(IF(OR($C$67=FALSE,LEFT($B64,3)<>\"NOX\"),AU56*INDEX('Damage costs'!$O$16:$O$43,MATCH($B64,'Damage costs'!$C$16:$C$43,0))/1000,AU56*INDEX('Damage costs'!$S$16:$S$43,MATCH($B64,'Damage costs'!$C$16:$C$43,0))/1000),\"\")","v":""},{"$f":"IFERROR(IF(OR($C$67=FALSE,LEFT($B64,3)<>\"NOX\"),AV56*INDEX('Damage costs'!$O$16:$O$43,MATCH($B64,'Damage costs'!$C$16:$C$43,0))/1000,AV56*INDEX('Damage costs'!$S$16:$S$43,MATCH($B64,'Damage costs'!$C$16:$C$43,0))/1000),\"\")","v":""},{"$f":"IFERROR(IF(OR($C$67=FALSE,LEFT($B64,3)<>\"NOX\"),AW56*INDEX('Damage costs'!$O$16:$O$43,MATCH($B64,'Damage costs'!$C$16:$C$43,0))/1000,AW56*INDEX('Damage costs'!$S$16:$S$43,MATCH($B64,'Damage costs'!$C$16:$C$43,0))/1000),\"\")","v":""},{"$f":"IFERROR(IF(OR($C$67=FALSE,LEFT($B64,3)<>\"NOX\"),AX56*INDEX('Damage costs'!$O$16:$O$43,MATCH($B64,'Damage costs'!$C$16:$C$43,0))/1000,AX56*INDEX('Damage costs'!$S$16:$S$43,MATCH($B64,'Damage costs'!$C$16:$C$43,0))/1000),\"\")","v":""},{"$f":"IFERROR(IF(OR($C$67=FALSE,LEFT($B64,3)<>\"NOX\"),AY56*INDEX('Damage costs'!$O$16:$O$43,MATCH($B64,'Damage costs'!$C$16:$C$43,0))/1000,AY56*INDEX('Damage costs'!$S$16:$S$43,MATCH($B64,'Damage costs'!$C$16:$C$43,0))/1000),\"\")","v":""},{"$f":"IFERROR(IF(OR($C$67=FALSE,LEFT($B64,3)<>\"NOX\"),AZ56*INDEX('Damage costs'!$O$16:$O$43,MATCH($B64,'Damage costs'!$C$16:$C$43,0))/1000,AZ56*INDEX('Damage costs'!$S$16:$S$43,MATCH($B64,'Damage costs'!$C$16:$C$43,0))/1000),\"\")","v":""},{"$f":"IFERROR(IF(OR($C$67=FALSE,LEFT($B64,3)<>\"NOX\"),BA56*INDEX('Damage costs'!$O$16:$O$43,MATCH($B64,'Damage costs'!$C$16:$C$43,0))/1000,BA56*INDEX('Damage costs'!$S$16:$S$43,MATCH($B64,'Damage costs'!$C$16:$C$43,0))/1000),\"\")","v":""},{"$f":"IFERROR(IF(OR($C$67=FALSE,LEFT($B64,3)<>\"NOX\"),BB56*INDEX('Damage costs'!$O$16:$O$43,MATCH($B64,'Damage costs'!$C$16:$C$43,0))/1000,BB56*INDEX('Damage costs'!$S$16:$S$43,MATCH($B64,'Damage costs'!$C$16:$C$43,0))/1000),\"\")","v":""},{"$f":"IFERROR(IF(OR($C$67=FALSE,LEFT($B64,3)<>\"NOX\"),BC56*INDEX('Damage costs'!$O$16:$O$43,MATCH($B64,'Damage costs'!$C$16:$C$43,0))/1000,BC56*INDEX('Damage costs'!$S$16:$S$43,MATCH($B64,'Damage costs'!$C$16:$C$43,0))/1000),\"\")","v":""},{"$f":"IFERROR(IF(OR($C$67=FALSE,LEFT($B64,3)<>\"NOX\"),BD56*INDEX('Damage costs'!$O$16:$O$43,MATCH($B64,'Damage costs'!$C$16:$C$43,0))/1000,BD56*INDEX('Damage costs'!$S$16:$S$43,MATCH($B64,'Damage costs'!$C$16:$C$43,0))/1000),\"\")","v":""},{"$f":"IFERROR(IF(OR($C$67=FALSE,LEFT($B64,3)<>\"NOX\"),BE56*INDEX('Damage costs'!$O$16:$O$43,MATCH($B64,'Damage costs'!$C$16:$C$43,0))/1000,BE56*INDEX('Damage costs'!$S$16:$S$43,MATCH($B64,'Damage costs'!$C$16:$C$43,0))/1000),\"\")","v":""},{"$f":"IFERROR(IF(OR($C$67=FALSE,LEFT($B64,3)<>\"NOX\"),BF56*INDEX('Damage costs'!$O$16:$O$43,MATCH($B64,'Damage costs'!$C$16:$C$43,0))/1000,BF56*INDEX('Damage costs'!$S$16:$S$43,MATCH($B64,'Damage costs'!$C$16:$C$43,0))/1000),\"\")","v":""},{"$f":"IFERROR(IF(OR($C$67=FALSE,LEFT($B64,3)<>\"NOX\"),BG56*INDEX('Damage costs'!$O$16:$O$43,MATCH($B64,'Damage costs'!$C$16:$C$43,0))/1000,BG56*INDEX('Damage costs'!$S$16:$S$43,MATCH($B64,'Damage costs'!$C$16:$C$43,0))/1000),\"\")","v":""},{"$f":"IFERROR(IF(OR($C$67=FALSE,LEFT($B64,3)<>\"NOX\"),BH56*INDEX('Damage costs'!$O$16:$O$43,MATCH($B64,'Damage costs'!$C$16:$C$43,0))/1000,BH56*INDEX('Damage costs'!$S$16:$S$43,MATCH($B64,'Damage costs'!$C$16:$C$43,0))/1000),\"\")","v":""},{"$f":"IFERROR(IF(OR($C$67=FALSE,LEFT($B64,3)<>\"NOX\"),BI56*INDEX('Damage costs'!$O$16:$O$43,MATCH($B64,'Damage costs'!$C$16:$C$43,0))/1000,BI56*INDEX('Damage costs'!$S$16:$S$43,MATCH($B64,'Damage costs'!$C$16:$C$43,0))/1000),\"\")","v":""},{"$f":"IFERROR(IF(OR($C$67=FALSE,LEFT($B64,3)<>\"NOX\"),BJ56*INDEX('Damage costs'!$O$16:$O$43,MATCH($B64,'Damage costs'!$C$16:$C$43,0))/1000,BJ56*INDEX('Damage costs'!$S$16:$S$43,MATCH($B64,'Damage costs'!$C$16:$C$43,0))/1000),\"\")","v":""},{"$f":"IFERROR(IF(OR($C$67=FALSE,LEFT($B64,3)<>\"NOX\"),BK56*INDEX('Damage costs'!$O$16:$O$43,MATCH($B64,'Damage costs'!$C$16:$C$43,0))/1000,BK56*INDEX('Damage costs'!$S$16:$S$43,MATCH($B64,'Damage costs'!$C$16:$C$43,0))/1000),\"\")","v":""},{"$f":"IFERROR(IF(OR($C$67=FALSE,LEFT($B64,3)<>\"NOX\"),BL56*INDEX('Damage costs'!$O$16:$O$43,MATCH($B64,'Damage costs'!$C$16:$C$43,0))/1000,BL56*INDEX('Damage costs'!$S$16:$S$43,MATCH($B64,'Damage costs'!$C$16:$C$43,0))/1000),\"\")","v":""},{"$f":"IFERROR(IF(OR($C$67=FALSE,LEFT($B64,3)<>\"NOX\"),BM56*INDEX('Damage costs'!$O$16:$O$43,MATCH($B64,'Damage costs'!$C$16:$C$43,0))/1000,BM56*INDEX('Damage costs'!$S$16:$S$43,MATCH($B64,'Damage costs'!$C$16:$C$43,0))/1000),\"\")","v":""},{"$f":"IFERROR(IF(OR($C$67=FALSE,LEFT($B64,3)<>\"NOX\"),BN56*INDEX('Damage costs'!$O$16:$O$43,MATCH($B64,'Damage costs'!$C$16:$C$43,0))/1000,BN56*INDEX('Damage costs'!$S$16:$S$43,MATCH($B64,'Damage costs'!$C$16:$C$43,0))/1000),\"\")","v":""},{"$f":"IFERROR(IF(OR($C$67=FALSE,LEFT($B64,3)<>\"NOX\"),BO56*INDEX('Damage costs'!$O$16:$O$43,MATCH($B64,'Damage costs'!$C$16:$C$43,0))/1000,BO56*INDEX('Damage costs'!$S$16:$S$43,MATCH($B64,'Damage costs'!$C$16:$C$43,0))/1000),\"\")","v":""},{"$f":"IFERROR(IF(OR($C$67=FALSE,LEFT($B64,3)<>\"NOX\"),BP56*INDEX('Damage costs'!$O$16:$O$43,MATCH($B64,'Damage costs'!$C$16:$C$43,0))/1000,BP56*INDEX('Damage costs'!$S$16:$S$43,MATCH($B64,'Damage costs'!$C$16:$C$43,0))/1000),\"\")","v":""},{"$f":"IFERROR(IF(OR($C$67=FALSE,LEFT($B64,3)<>\"NOX\"),BQ56*INDEX('Damage costs'!$O$16:$O$43,MATCH($B64,'Damage costs'!$C$16:$C$43,0))/1000,BQ56*INDEX('Damage costs'!$S$16:$S$43,MATCH($B64,'Damage costs'!$C$16:$C$43,0))/1000),\"\")","v":""},{"$f":"IFERROR(IF(OR($C$67=FALSE,LEFT($B64,3)<>\"NOX\"),BR56*INDEX('Damage costs'!$O$16:$O$43,MATCH($B64,'Damage costs'!$C$16:$C$43,0))/1000,BR56*INDEX('Damage costs'!$S$16:$S$43,MATCH($B64,'Damage costs'!$C$16:$C$43,0))/1000),\"\")","v":""},{"$f":"IFERROR(IF(OR($C$67=FALSE,LEFT($B64,3)<>\"NOX\"),BS56*INDEX('Damage costs'!$O$16:$O$43,MATCH($B64,'Damage costs'!$C$16:$C$43,0))/1000,BS56*INDEX('Damage costs'!$S$16:$S$43,MATCH($B64,'Damage costs'!$C$16:$C$43,0))/1000),\"\")","v":""},{"$f":"IFERROR(IF(OR($C$67=FALSE,LEFT($B64,3)<>\"NOX\"),BT56*INDEX('Damage costs'!$O$16:$O$43,MATCH($B64,'Damage costs'!$C$16:$C$43,0))/1000,BT56*INDEX('Damage costs'!$S$16:$S$43,MATCH($B64,'Damage costs'!$C$16:$C$43,0))/1000),\"\")","v":""},{"$f":"IFERROR(IF(OR($C$67=FALSE,LEFT($B64,3)<>\"NOX\"),BU56*INDEX('Damage costs'!$O$16:$O$43,MATCH($B64,'Damage costs'!$C$16:$C$43,0))/1000,BU56*INDEX('Damage costs'!$S$16:$S$43,MATCH($B64,'Damage costs'!$C$16:$C$43,0))/1000),\"\")","v":""},{"$f":"IFERROR(IF(OR($C$67=FALSE,LEFT($B64,3)<>\"NOX\"),BV56*INDEX('Damage costs'!$O$16:$O$43,MATCH($B64,'Damage costs'!$C$16:$C$43,0))/1000,BV56*INDEX('Damage costs'!$S$16:$S$43,MATCH($B64,'Damage costs'!$C$16:$C$43,0))/1000),\"\")","v":""},{"$f":"IFERROR(IF(OR($C$67=FALSE,LEFT($B64,3)<>\"NOX\"),BW56*INDEX('Damage costs'!$O$16:$O$43,MATCH($B64,'Damage costs'!$C$16:$C$43,0))/1000,BW56*INDEX('Damage costs'!$S$16:$S$43,MATCH($B64,'Damage costs'!$C$16:$C$43,0))/1000),\"\")","v":""},{"$f":"IFERROR(IF(OR($C$67=FALSE,LEFT($B64,3)<>\"NOX\"),BX56*INDEX('Damage costs'!$O$16:$O$43,MATCH($B64,'Damage costs'!$C$16:$C$43,0))/1000,BX56*INDEX('Damage costs'!$S$16:$S$43,MATCH($B64,'Damage costs'!$C$16:$C$43,0))/1000),\"\")","v":""},{"$f":"IFERROR(IF(OR($C$67=FALSE,LEFT($B64,3)<>\"NOX\"),BY56*INDEX('Damage costs'!$O$16:$O$43,MATCH($B64,'Damage costs'!$C$16:$C$43,0))/1000,BY56*INDEX('Damage costs'!$S$16:$S$43,MATCH($B64,'Damage costs'!$C$16:$C$43,0))/1000),\"\")","v":""},{"$f":"IFERROR(IF(OR($C$67=FALSE,LEFT($B64,3)<>\"NOX\"),BZ56*INDEX('Damage costs'!$O$16:$O$43,MATCH($B64,'Damage costs'!$C$16:$C$43,0))/1000,BZ56*INDEX('Damage costs'!$S$16:$S$43,MATCH($B64,'Damage costs'!$C$16:$C$43,0))/1000),\"\")","v":""},{"$f":"IFERROR(IF(OR($C$67=FALSE,LEFT($B64,3)<>\"NOX\"),CA56*INDEX('Damage costs'!$O$16:$O$43,MATCH($B64,'Damage costs'!$C$16:$C$43,0))/1000,CA56*INDEX('Damage costs'!$S$16:$S$43,MATCH($B64,'Damage costs'!$C$16:$C$43,0))/1000),\"\")","v":""},{"$f":"IFERROR(IF(OR($C$67=FALSE,LEFT($B64,3)<>\"NOX\"),CB56*INDEX('Damage costs'!$O$16:$O$43,MATCH($B64,'Damage costs'!$C$16:$C$43,0))/1000,CB56*INDEX('Damage costs'!$S$16:$S$43,MATCH($B64,'Damage costs'!$C$16:$C$43,0))/1000),\"\")","v":""},{"$f":"IFERROR(IF(OR($C$67=FALSE,LEFT($B64,3)<>\"NOX\"),CC56*INDEX('Damage costs'!$O$16:$O$43,MATCH($B64,'Damage costs'!$C$16:$C$43,0))/1000,CC56*INDEX('Damage costs'!$S$16:$S$43,MATCH($B64,'Damage costs'!$C$16:$C$43,0))/1000),\"\")","v":""},{"$f":"IFERROR(IF(OR($C$67=FALSE,LEFT($B64,3)<>\"NOX\"),CD56*INDEX('Damage costs'!$O$16:$O$43,MATCH($B64,'Damage costs'!$C$16:$C$43,0))/1000,CD56*INDEX('Damage costs'!$S$16:$S$43,MATCH($B64,'Damage costs'!$C$16:$C$43,0))/1000),\"\")","v":""},{"$f":"IFERROR(IF(OR($C$67=FALSE,LEFT($B64,3)<>\"NOX\"),CE56*INDEX('Damage costs'!$O$16:$O$43,MATCH($B64,'Damage costs'!$C$16:$C$43,0))/1000,CE56*INDEX('Damage costs'!$S$16:$S$43,MATCH($B64,'Damage costs'!$C$16:$C$43,0))/1000),\"\")","v":""},{"$f":"IFERROR(IF(OR($C$67=FALSE,LEFT($B64,3)<>\"NOX\"),CF56*INDEX('Damage costs'!$O$16:$O$43,MATCH($B64,'Damage costs'!$C$16:$C$43,0))/1000,CF56*INDEX('Damage costs'!$S$16:$S$43,MATCH($B64,'Damage costs'!$C$16:$C$43,0))/1000),\"\")","v":""},{"$f":"IFERROR(IF(OR($C$67=FALSE,LEFT($B64,3)<>\"NOX\"),CG56*INDEX('Damage costs'!$O$16:$O$43,MATCH($B64,'Damage costs'!$C$16:$C$43,0))/1000,CG56*INDEX('Damage costs'!$S$16:$S$43,MATCH($B64,'Damage costs'!$C$16:$C$43,0))/1000),\"\")","v":""},{"$f":"IFERROR(IF(OR($C$67=FALSE,LEFT($B64,3)<>\"NOX\"),CH56*INDEX('Damage costs'!$O$16:$O$43,MATCH($B64,'Damage costs'!$C$16:$C$43,0))/1000,CH56*INDEX('Damage costs'!$S$16:$S$43,MATCH($B64,'Damage costs'!$C$16:$C$43,0))/1000),\"\")","v":""},{"$f":"IFERROR(IF(OR($C$67=FALSE,LEFT($B64,3)<>\"NOX\"),CI56*INDEX('Damage costs'!$O$16:$O$43,MATCH($B64,'Damage costs'!$C$16:$C$43,0))/1000,CI56*INDEX('Damage costs'!$S$16:$S$43,MATCH($B64,'Damage costs'!$C$16:$C$43,0))/1000),\"\")","v":""},{"$f":"IFERROR(IF(OR($C$67=FALSE,LEFT($B64,3)<>\"NOX\"),CJ56*INDEX('Damage costs'!$O$16:$O$43,MATCH($B64,'Damage costs'!$C$16:$C$43,0))/1000,CJ56*INDEX('Damage costs'!$S$16:$S$43,MATCH($B64,'Damage costs'!$C$16:$C$43,0))/1000),\"\")","v":""},{"$f":"IFERROR(IF(OR($C$67=FALSE,LEFT($B64,3)<>\"NOX\"),CK56*INDEX('Damage costs'!$O$16:$O$43,MATCH($B64,'Damage costs'!$C$16:$C$43,0))/1000,CK56*INDEX('Damage costs'!$S$16:$S$43,MATCH($B64,'Damage costs'!$C$16:$C$43,0))/1000),\"\")","v":""},{"$f":"IFERROR(IF(OR($C$67=FALSE,LEFT($B64,3)<>\"NOX\"),CL56*INDEX('Damage costs'!$O$16:$O$43,MATCH($B64,'Damage costs'!$C$16:$C$43,0))/1000,CL56*INDEX('Damage costs'!$S$16:$S$43,MATCH($B64,'Damage costs'!$C$16:$C$43,0))/1000),\"\")","v":""},{"$f":"IFERROR(IF(OR($C$67=FALSE,LEFT($B64,3)<>\"NOX\"),CM56*INDEX('Damage costs'!$O$16:$O$43,MATCH($B64,'Damage costs'!$C$16:$C$43,0))/1000,CM56*INDEX('Damage costs'!$S$16:$S$43,MATCH($B64,'Damage costs'!$C$16:$C$43,0))/1000),\"\")","v":""},{"$f":"IFERROR(IF(OR($C$67=FALSE,LEFT($B64,3)<>\"NOX\"),CN56*INDEX('Damage costs'!$O$16:$O$43,MATCH($B64,'Damage costs'!$C$16:$C$43,0))/1000,CN56*INDEX('Damage costs'!$S$16:$S$43,MATCH($B64,'Damage costs'!$C$16:$C$43,0))/1000),\"\")","v":""},{"$f":"IFERROR(IF(OR($C$67=FALSE,LEFT($B64,3)<>\"NOX\"),CO56*INDEX('Damage costs'!$O$16:$O$43,MATCH($B64,'Damage costs'!$C$16:$C$43,0))/1000,CO56*INDEX('Damage costs'!$S$16:$S$43,MATCH($B64,'Damage costs'!$C$16:$C$43,0))/1000),\"\")","v":""},{"$f":"IFERROR(IF(OR($C$67=FALSE,LEFT($B64,3)<>\"NOX\"),CP56*INDEX('Damage costs'!$O$16:$O$43,MATCH($B64,'Damage costs'!$C$16:$C$43,0))/1000,CP56*INDEX('Damage costs'!$S$16:$S$43,MATCH($B64,'Damage costs'!$C$16:$C$43,0))/1000),\"\")","v":""},{"$f":"IFERROR(IF(OR($C$67=FALSE,LEFT($B64,3)<>\"NOX\"),CQ56*INDEX('Damage costs'!$O$16:$O$43,MATCH($B64,'Damage costs'!$C$16:$C$43,0))/1000,CQ56*INDEX('Damage costs'!$S$16:$S$43,MATCH($B64,'Damage costs'!$C$16:$C$43,0))/1000),\"\")","v":""},{"$f":"IFERROR(IF(OR($C$67=FALSE,LEFT($B64,3)<>\"NOX\"),CR56*INDEX('Damage costs'!$O$16:$O$43,MATCH($B64,'Damage costs'!$C$16:$C$43,0))/1000,CR56*INDEX('Damage costs'!$S$16:$S$43,MATCH($B64,'Damage costs'!$C$16:$C$43,0))/1000),\"\")","v":""},{"$f":"IFERROR(IF(OR($C$67=FALSE,LEFT($B64,3)<>\"NOX\"),CS56*INDEX('Damage costs'!$O$16:$O$43,MATCH($B64,'Damage costs'!$C$16:$C$43,0))/1000,CS56*INDEX('Damage costs'!$S$16:$S$43,MATCH($B64,'Damage costs'!$C$16:$C$43,0))/1000),\"\")","v":""},{"$f":"IFERROR(IF(OR($C$67=FALSE,LEFT($B64,3)<>\"NOX\"),CT56*INDEX('Damage costs'!$O$16:$O$43,MATCH($B64,'Damage costs'!$C$16:$C$43,0))/1000,CT56*INDEX('Damage costs'!$S$16:$S$43,MATCH($B64,'Damage costs'!$C$16:$C$43,0))/1000),\"\")","v":""},{"$f":"IFERROR(IF(OR($C$67=FALSE,LEFT($B64,3)<>\"NOX\"),CU56*INDEX('Damage costs'!$O$16:$O$43,MATCH($B64,'Damage costs'!$C$16:$C$43,0))/1000,CU56*INDEX('Damage costs'!$S$16:$S$43,MATCH($B64,'Damage costs'!$C$16:$C$43,0))/1000),\"\")","v":""},{"$f":"IFERROR(IF(OR($C$67=FALSE,LEFT($B64,3)<>\"NOX\"),CV56*INDEX('Damage costs'!$O$16:$O$43,MATCH($B64,'Damage costs'!$C$16:$C$43,0))/1000,CV56*INDEX('Damage costs'!$S$16:$S$43,MATCH($B64,'Damage costs'!$C$16:$C$43,0))/1000),\"\")","v":""},{"$f":"IFERROR(IF(OR($C$67=FALSE,LEFT($B64,3)<>\"NOX\"),CW56*INDEX('Damage costs'!$O$16:$O$43,MATCH($B64,'Damage costs'!$C$16:$C$43,0))/1000,CW56*INDEX('Damage costs'!$S$16:$S$43,MATCH($B64,'Damage costs'!$C$16:$C$43,0))/1000),\"\")","v":""},{"$f":"IFERROR(IF(OR($C$67=FALSE,LEFT($B64,3)<>\"NOX\"),CX56*INDEX('Damage costs'!$O$16:$O$43,MATCH($B64,'Damage costs'!$C$16:$C$43,0))/1000,CX56*INDEX('Damage costs'!$S$16:$S$43,MATCH($B64,'Damage costs'!$C$16:$C$43,0))/1000),\"\")","v":""},{"$f":"IFERROR(IF(OR($C$67=FALSE,LEFT($B64,3)<>\"NOX\"),CY56*INDEX('Damage costs'!$O$16:$O$43,MATCH($B64,'Damage costs'!$C$16:$C$43,0))/1000,CY56*INDEX('Damage costs'!$S$16:$S$43,MATCH($B64,'Damage costs'!$C$16:$C$43,0))/1000),\"\")","v":""}]
[null,0,"£000's",{"$f":"IFERROR(IF(OR($C$67=FALSE,LEFT($B65,3)<>\"NOX\"),D57*INDEX('Damage costs'!$O$16:$O$43,MATCH($B65,'Damage costs'!$C$16:$C$43,0))/1000,D57*INDEX('Damage costs'!$S$16:$S$43,MATCH($B65,'Damage costs'!$C$16:$C$43,0))/1000),\"\")","v":""},{"$f":"IFERROR(IF(OR($C$67=FALSE,LEFT($B65,3)<>\"NOX\"),E57*INDEX('Damage costs'!$O$16:$O$43,MATCH($B65,'Damage costs'!$C$16:$C$43,0))/1000,E57*INDEX('Damage costs'!$S$16:$S$43,MATCH($B65,'Damage costs'!$C$16:$C$43,0))/1000),\"\")","v":""},{"$f":"IFERROR(IF(OR($C$67=FALSE,LEFT($B65,3)<>\"NOX\"),F57*INDEX('Damage costs'!$O$16:$O$43,MATCH($B65,'Damage costs'!$C$16:$C$43,0))/1000,F57*INDEX('Damage costs'!$S$16:$S$43,MATCH($B65,'Damage costs'!$C$16:$C$43,0))/1000),\"\")","v":""},{"$f":"IFERROR(IF(OR($C$67=FALSE,LEFT($B65,3)<>\"NOX\"),G57*INDEX('Damage costs'!$O$16:$O$43,MATCH($B65,'Damage costs'!$C$16:$C$43,0))/1000,G57*INDEX('Damage costs'!$S$16:$S$43,MATCH($B65,'Damage costs'!$C$16:$C$43,0))/1000),\"\")","v":""},{"$f":"IFERROR(IF(OR($C$67=FALSE,LEFT($B65,3)<>\"NOX\"),H57*INDEX('Damage costs'!$O$16:$O$43,MATCH($B65,'Damage costs'!$C$16:$C$43,0))/1000,H57*INDEX('Damage costs'!$S$16:$S$43,MATCH($B65,'Damage costs'!$C$16:$C$43,0))/1000),\"\")","v":""},{"$f":"IFERROR(IF(OR($C$67=FALSE,LEFT($B65,3)<>\"NOX\"),I57*INDEX('Damage costs'!$O$16:$O$43,MATCH($B65,'Damage costs'!$C$16:$C$43,0))/1000,I57*INDEX('Damage costs'!$S$16:$S$43,MATCH($B65,'Damage costs'!$C$16:$C$43,0))/1000),\"\")","v":""},{"$f":"IFERROR(IF(OR($C$67=FALSE,LEFT($B65,3)<>\"NOX\"),J57*INDEX('Damage costs'!$O$16:$O$43,MATCH($B65,'Damage costs'!$C$16:$C$43,0))/1000,J57*INDEX('Damage costs'!$S$16:$S$43,MATCH($B65,'Damage costs'!$C$16:$C$43,0))/1000),\"\")","v":""},{"$f":"IFERROR(IF(OR($C$67=FALSE,LEFT($B65,3)<>\"NOX\"),K57*INDEX('Damage costs'!$O$16:$O$43,MATCH($B65,'Damage costs'!$C$16:$C$43,0))/1000,K57*INDEX('Damage costs'!$S$16:$S$43,MATCH($B65,'Damage costs'!$C$16:$C$43,0))/1000),\"\")","v":""},{"$f":"IFERROR(IF(OR($C$67=FALSE,LEFT($B65,3)<>\"NOX\"),L57*INDEX('Damage costs'!$O$16:$O$43,MATCH($B65,'Damage costs'!$C$16:$C$43,0))/1000,L57*INDEX('Damage costs'!$S$16:$S$43,MATCH($B65,'Damage costs'!$C$16:$C$43,0))/1000),\"\")","v":""},{"$f":"IFERROR(IF(OR($C$67=FALSE,LEFT($B65,3)<>\"NOX\"),M57*INDEX('Damage costs'!$O$16:$O$43,MATCH($B65,'Damage costs'!$C$16:$C$43,0))/1000,M57*INDEX('Damage costs'!$S$16:$S$43,MATCH($B65,'Damage costs'!$C$16:$C$43,0))/1000),\"\")","v":""},{"$f":"IFERROR(IF(OR($C$67=FALSE,LEFT($B65,3)<>\"NOX\"),N57*INDEX('Damage costs'!$O$16:$O$43,MATCH($B65,'Damage costs'!$C$16:$C$43,0))/1000,N57*INDEX('Damage costs'!$S$16:$S$43,MATCH($B65,'Damage costs'!$C$16:$C$43,0))/1000),\"\")","v":""},{"$f":"IFERROR(IF(OR($C$67=FALSE,LEFT($B65,3)<>\"NOX\"),O57*INDEX('Damage costs'!$O$16:$O$43,MATCH($B65,'Damage costs'!$C$16:$C$43,0))/1000,O57*INDEX('Damage costs'!$S$16:$S$43,MATCH($B65,'Damage costs'!$C$16:$C$43,0))/1000),\"\")","v":""},{"$f":"IFERROR(IF(OR($C$67=FALSE,LEFT($B65,3)<>\"NOX\"),P57*INDEX('Damage costs'!$O$16:$O$43,MATCH($B65,'Damage costs'!$C$16:$C$43,0))/1000,P57*INDEX('Damage costs'!$S$16:$S$43,MATCH($B65,'Damage costs'!$C$16:$C$43,0))/1000),\"\")","v":""},{"$f":"IFERROR(IF(OR($C$67=FALSE,LEFT($B65,3)<>\"NOX\"),Q57*INDEX('Damage costs'!$O$16:$O$43,MATCH($B65,'Damage costs'!$C$16:$C$43,0))/1000,Q57*INDEX('Damage costs'!$S$16:$S$43,MATCH($B65,'Damage costs'!$C$16:$C$43,0))/1000),\"\")","v":""},{"$f":"IFERROR(IF(OR($C$67=FALSE,LEFT($B65,3)<>\"NOX\"),R57*INDEX('Damage costs'!$O$16:$O$43,MATCH($B65,'Damage costs'!$C$16:$C$43,0))/1000,R57*INDEX('Damage costs'!$S$16:$S$43,MATCH($B65,'Damage costs'!$C$16:$C$43,0))/1000),\"\")","v":""},{"$f":"IFERROR(IF(OR($C$67=FALSE,LEFT($B65,3)<>\"NOX\"),S57*INDEX('Damage costs'!$O$16:$O$43,MATCH($B65,'Damage costs'!$C$16:$C$43,0))/1000,S57*INDEX('Damage costs'!$S$16:$S$43,MATCH($B65,'Damage costs'!$C$16:$C$43,0))/1000),\"\")","v":""},{"$f":"IFERROR(IF(OR($C$67=FALSE,LEFT($B65,3)<>\"NOX\"),T57*INDEX('Damage costs'!$O$16:$O$43,MATCH($B65,'Damage costs'!$C$16:$C$43,0))/1000,T57*INDEX('Damage costs'!$S$16:$S$43,MATCH($B65,'Damage costs'!$C$16:$C$43,0))/1000),\"\")","v":""},{"$f":"IFERROR(IF(OR($C$67=FALSE,LEFT($B65,3)<>\"NOX\"),U57*INDEX('Damage costs'!$O$16:$O$43,MATCH($B65,'Damage costs'!$C$16:$C$43,0))/1000,U57*INDEX('Damage costs'!$S$16:$S$43,MATCH($B65,'Damage costs'!$C$16:$C$43,0))/1000),\"\")","v":""},{"$f":"IFERROR(IF(OR($C$67=FALSE,LEFT($B65,3)<>\"NOX\"),V57*INDEX('Damage costs'!$O$16:$O$43,MATCH($B65,'Damage costs'!$C$16:$C$43,0))/1000,V57*INDEX('Damage costs'!$S$16:$S$43,MATCH($B65,'Damage costs'!$C$16:$C$43,0))/1000),\"\")","v":""},{"$f":"IFERROR(IF(OR($C$67=FALSE,LEFT($B65,3)<>\"NOX\"),W57*INDEX('Damage costs'!$O$16:$O$43,MATCH($B65,'Damage costs'!$C$16:$C$43,0))/1000,W57*INDEX('Damage costs'!$S$16:$S$43,MATCH($B65,'Damage costs'!$C$16:$C$43,0))/1000),\"\")","v":""},{"$f":"IFERROR(IF(OR($C$67=FALSE,LEFT($B65,3)<>\"NOX\"),X57*INDEX('Damage costs'!$O$16:$O$43,MATCH($B65,'Damage costs'!$C$16:$C$43,0))/1000,X57*INDEX('Damage costs'!$S$16:$S$43,MATCH($B65,'Damage costs'!$C$16:$C$43,0))/1000),\"\")","v":""},{"$f":"IFERROR(IF(OR($C$67=FALSE,LEFT($B65,3)<>\"NOX\"),Y57*INDEX('Damage costs'!$O$16:$O$43,MATCH($B65,'Damage costs'!$C$16:$C$43,0))/1000,Y57*INDEX('Damage costs'!$S$16:$S$43,MATCH($B65,'Damage costs'!$C$16:$C$43,0))/1000),\"\")","v":""},{"$f":"IFERROR(IF(OR($C$67=FALSE,LEFT($B65,3)<>\"NOX\"),Z57*INDEX('Damage costs'!$O$16:$O$43,MATCH($B65,'Damage costs'!$C$16:$C$43,0))/1000,Z57*INDEX('Damage costs'!$S$16:$S$43,MATCH($B65,'Damage costs'!$C$16:$C$43,0))/1000),\"\")","v":""},{"$f":"IFERROR(IF(OR($C$67=FALSE,LEFT($B65,3)<>\"NOX\"),AA57*INDEX('Damage costs'!$O$16:$O$43,MATCH($B65,'Damage costs'!$C$16:$C$43,0))/1000,AA57*INDEX('Damage costs'!$S$16:$S$43,MATCH($B65,'Damage costs'!$C$16:$C$43,0))/1000),\"\")","v":""},{"$f":"IFERROR(IF(OR($C$67=FALSE,LEFT($B65,3)<>\"NOX\"),AB57*INDEX('Damage costs'!$O$16:$O$43,MATCH($B65,'Damage costs'!$C$16:$C$43,0))/1000,AB57*INDEX('Damage costs'!$S$16:$S$43,MATCH($B65,'Damage costs'!$C$16:$C$43,0))/1000),\"\")","v":""},{"$f":"IFERROR(IF(OR($C$67=FALSE,LEFT($B65,3)<>\"NOX\"),AC57*INDEX('Damage costs'!$O$16:$O$43,MATCH($B65,'Damage costs'!$C$16:$C$43,0))/1000,AC57*INDEX('Damage costs'!$S$16:$S$43,MATCH($B65,'Damage costs'!$C$16:$C$43,0))/1000),\"\")","v":""},{"$f":"IFERROR(IF(OR($C$67=FALSE,LEFT($B65,3)<>\"NOX\"),AD57*INDEX('Damage costs'!$O$16:$O$43,MATCH($B65,'Damage costs'!$C$16:$C$43,0))/1000,AD57*INDEX('Damage costs'!$S$16:$S$43,MATCH($B65,'Damage costs'!$C$16:$C$43,0))/1000),\"\")","v":""},{"$f":"IFERROR(IF(OR($C$67=FALSE,LEFT($B65,3)<>\"NOX\"),AE57*INDEX('Damage costs'!$O$16:$O$43,MATCH($B65,'Damage costs'!$C$16:$C$43,0))/1000,AE57*INDEX('Damage costs'!$S$16:$S$43,MATCH($B65,'Damage costs'!$C$16:$C$43,0))/1000),\"\")","v":""},{"$f":"IFERROR(IF(OR($C$67=FALSE,LEFT($B65,3)<>\"NOX\"),AF57*INDEX('Damage costs'!$O$16:$O$43,MATCH($B65,'Damage costs'!$C$16:$C$43,0))/1000,AF57*INDEX('Damage costs'!$S$16:$S$43,MATCH($B65,'Damage costs'!$C$16:$C$43,0))/1000),\"\")","v":""},{"$f":"IFERROR(IF(OR($C$67=FALSE,LEFT($B65,3)<>\"NOX\"),AG57*INDEX('Damage costs'!$O$16:$O$43,MATCH($B65,'Damage costs'!$C$16:$C$43,0))/1000,AG57*INDEX('Damage costs'!$S$16:$S$43,MATCH($B65,'Damage costs'!$C$16:$C$43,0))/1000),\"\")","v":""},{"$f":"IFERROR(IF(OR($C$67=FALSE,LEFT($B65,3)<>\"NOX\"),AH57*INDEX('Damage costs'!$O$16:$O$43,MATCH($B65,'Damage costs'!$C$16:$C$43,0))/1000,AH57*INDEX('Damage costs'!$S$16:$S$43,MATCH($B65,'Damage costs'!$C$16:$C$43,0))/1000),\"\")","v":""},{"$f":"IFERROR(IF(OR($C$67=FALSE,LEFT($B65,3)<>\"NOX\"),AI57*INDEX('Damage costs'!$O$16:$O$43,MATCH($B65,'Damage costs'!$C$16:$C$43,0))/1000,AI57*INDEX('Damage costs'!$S$16:$S$43,MATCH($B65,'Damage costs'!$C$16:$C$43,0))/1000),\"\")","v":""},{"$f":"IFERROR(IF(OR($C$67=FALSE,LEFT($B65,3)<>\"NOX\"),AJ57*INDEX('Damage costs'!$O$16:$O$43,MATCH($B65,'Damage costs'!$C$16:$C$43,0))/1000,AJ57*INDEX('Damage costs'!$S$16:$S$43,MATCH($B65,'Damage costs'!$C$16:$C$43,0))/1000),\"\")","v":""},{"$f":"IFERROR(IF(OR($C$67=FALSE,LEFT($B65,3)<>\"NOX\"),AK57*INDEX('Damage costs'!$O$16:$O$43,MATCH($B65,'Damage costs'!$C$16:$C$43,0))/1000,AK57*INDEX('Damage costs'!$S$16:$S$43,MATCH($B65,'Damage costs'!$C$16:$C$43,0))/1000),\"\")","v":""},{"$f":"IFERROR(IF(OR($C$67=FALSE,LEFT($B65,3)<>\"NOX\"),AL57*INDEX('Damage costs'!$O$16:$O$43,MATCH($B65,'Damage costs'!$C$16:$C$43,0))/1000,AL57*INDEX('Damage costs'!$S$16:$S$43,MATCH($B65,'Damage costs'!$C$16:$C$43,0))/1000),\"\")","v":""},{"$f":"IFERROR(IF(OR($C$67=FALSE,LEFT($B65,3)<>\"NOX\"),AM57*INDEX('Damage costs'!$O$16:$O$43,MATCH($B65,'Damage costs'!$C$16:$C$43,0))/1000,AM57*INDEX('Damage costs'!$S$16:$S$43,MATCH($B65,'Damage costs'!$C$16:$C$43,0))/1000),\"\")","v":""},{"$f":"IFERROR(IF(OR($C$67=FALSE,LEFT($B65,3)<>\"NOX\"),AN57*INDEX('Damage costs'!$O$16:$O$43,MATCH($B65,'Damage costs'!$C$16:$C$43,0))/1000,AN57*INDEX('Damage costs'!$S$16:$S$43,MATCH($B65,'Damage costs'!$C$16:$C$43,0))/1000),\"\")","v":""},{"$f":"IFERROR(IF(OR($C$67=FALSE,LEFT($B65,3)<>\"NOX\"),AO57*INDEX('Damage costs'!$O$16:$O$43,MATCH($B65,'Damage costs'!$C$16:$C$43,0))/1000,AO57*INDEX('Damage costs'!$S$16:$S$43,MATCH($B65,'Damage costs'!$C$16:$C$43,0))/1000),\"\")","v":""},{"$f":"IFERROR(IF(OR($C$67=FALSE,LEFT($B65,3)<>\"NOX\"),AP57*INDEX('Damage costs'!$O$16:$O$43,MATCH($B65,'Damage costs'!$C$16:$C$43,0))/1000,AP57*INDEX('Damage costs'!$S$16:$S$43,MATCH($B65,'Damage costs'!$C$16:$C$43,0))/1000),\"\")","v":""},{"$f":"IFERROR(IF(OR($C$67=FALSE,LEFT($B65,3)<>\"NOX\"),AQ57*INDEX('Damage costs'!$O$16:$O$43,MATCH($B65,'Damage costs'!$C$16:$C$43,0))/1000,AQ57*INDEX('Damage costs'!$S$16:$S$43,MATCH($B65,'Damage costs'!$C$16:$C$43,0))/1000),\"\")","v":""},{"$f":"IFERROR(IF(OR($C$67=FALSE,LEFT($B65,3)<>\"NOX\"),AR57*INDEX('Damage costs'!$O$16:$O$43,MATCH($B65,'Damage costs'!$C$16:$C$43,0))/1000,AR57*INDEX('Damage costs'!$S$16:$S$43,MATCH($B65,'Damage costs'!$C$16:$C$43,0))/1000),\"\")","v":""},{"$f":"IFERROR(IF(OR($C$67=FALSE,LEFT($B65,3)<>\"NOX\"),AS57*INDEX('Damage costs'!$O$16:$O$43,MATCH($B65,'Damage costs'!$C$16:$C$43,0))/1000,AS57*INDEX('Damage costs'!$S$16:$S$43,MATCH($B65,'Damage costs'!$C$16:$C$43,0))/1000),\"\")","v":""},{"$f":"IFERROR(IF(OR($C$67=FALSE,LEFT($B65,3)<>\"NOX\"),AT57*INDEX('Damage costs'!$O$16:$O$43,MATCH($B65,'Damage costs'!$C$16:$C$43,0))/1000,AT57*INDEX('Damage costs'!$S$16:$S$43,MATCH($B65,'Damage costs'!$C$16:$C$43,0))/1000),\"\")","v":""},{"$f":"IFERROR(IF(OR($C$67=FALSE,LEFT($B65,3)<>\"NOX\"),AU57*INDEX('Damage costs'!$O$16:$O$43,MATCH($B65,'Damage costs'!$C$16:$C$43,0))/1000,AU57*INDEX('Damage costs'!$S$16:$S$43,MATCH($B65,'Damage costs'!$C$16:$C$43,0))/1000),\"\")","v":""},{"$f":"IFERROR(IF(OR($C$67=FALSE,LEFT($B65,3)<>\"NOX\"),AV57*INDEX('Damage costs'!$O$16:$O$43,MATCH($B65,'Damage costs'!$C$16:$C$43,0))/1000,AV57*INDEX('Damage costs'!$S$16:$S$43,MATCH($B65,'Damage costs'!$C$16:$C$43,0))/1000),\"\")","v":""},{"$f":"IFERROR(IF(OR($C$67=FALSE,LEFT($B65,3)<>\"NOX\"),AW57*INDEX('Damage costs'!$O$16:$O$43,MATCH($B65,'Damage costs'!$C$16:$C$43,0))/1000,AW57*INDEX('Damage costs'!$S$16:$S$43,MATCH($B65,'Damage costs'!$C$16:$C$43,0))/1000),\"\")","v":""},{"$f":"IFERROR(IF(OR($C$67=FALSE,LEFT($B65,3)<>\"NOX\"),AX57*INDEX('Damage costs'!$O$16:$O$43,MATCH($B65,'Damage costs'!$C$16:$C$43,0))/1000,AX57*INDEX('Damage costs'!$S$16:$S$43,MATCH($B65,'Damage costs'!$C$16:$C$43,0))/1000),\"\")","v":""},{"$f":"IFERROR(IF(OR($C$67=FALSE,LEFT($B65,3)<>\"NOX\"),AY57*INDEX('Damage costs'!$O$16:$O$43,MATCH($B65,'Damage costs'!$C$16:$C$43,0))/1000,AY57*INDEX('Damage costs'!$S$16:$S$43,MATCH($B65,'Damage costs'!$C$16:$C$43,0))/1000),\"\")","v":""},{"$f":"IFERROR(IF(OR($C$67=FALSE,LEFT($B65,3)<>\"NOX\"),AZ57*INDEX('Damage costs'!$O$16:$O$43,MATCH($B65,'Damage costs'!$C$16:$C$43,0))/1000,AZ57*INDEX('Damage costs'!$S$16:$S$43,MATCH($B65,'Damage costs'!$C$16:$C$43,0))/1000),\"\")","v":""},{"$f":"IFERROR(IF(OR($C$67=FALSE,LEFT($B65,3)<>\"NOX\"),BA57*INDEX('Damage costs'!$O$16:$O$43,MATCH($B65,'Damage costs'!$C$16:$C$43,0))/1000,BA57*INDEX('Damage costs'!$S$16:$S$43,MATCH($B65,'Damage costs'!$C$16:$C$43,0))/1000),\"\")","v":""},{"$f":"IFERROR(IF(OR($C$67=FALSE,LEFT($B65,3)<>\"NOX\"),BB57*INDEX('Damage costs'!$O$16:$O$43,MATCH($B65,'Damage costs'!$C$16:$C$43,0))/1000,BB57*INDEX('Damage costs'!$S$16:$S$43,MATCH($B65,'Damage costs'!$C$16:$C$43,0))/1000),\"\")","v":""},{"$f":"IFERROR(IF(OR($C$67=FALSE,LEFT($B65,3)<>\"NOX\"),BC57*INDEX('Damage costs'!$O$16:$O$43,MATCH($B65,'Damage costs'!$C$16:$C$43,0))/1000,BC57*INDEX('Damage costs'!$S$16:$S$43,MATCH($B65,'Damage costs'!$C$16:$C$43,0))/1000),\"\")","v":""},{"$f":"IFERROR(IF(OR($C$67=FALSE,LEFT($B65,3)<>\"NOX\"),BD57*INDEX('Damage costs'!$O$16:$O$43,MATCH($B65,'Damage costs'!$C$16:$C$43,0))/1000,BD57*INDEX('Damage costs'!$S$16:$S$43,MATCH($B65,'Damage costs'!$C$16:$C$43,0))/1000),\"\")","v":""},{"$f":"IFERROR(IF(OR($C$67=FALSE,LEFT($B65,3)<>\"NOX\"),BE57*INDEX('Damage costs'!$O$16:$O$43,MATCH($B65,'Damage costs'!$C$16:$C$43,0))/1000,BE57*INDEX('Damage costs'!$S$16:$S$43,MATCH($B65,'Damage costs'!$C$16:$C$43,0))/1000),\"\")","v":""},{"$f":"IFERROR(IF(OR($C$67=FALSE,LEFT($B65,3)<>\"NOX\"),BF57*INDEX('Damage costs'!$O$16:$O$43,MATCH($B65,'Damage costs'!$C$16:$C$43,0))/1000,BF57*INDEX('Damage costs'!$S$16:$S$43,MATCH($B65,'Damage costs'!$C$16:$C$43,0))/1000),\"\")","v":""},{"$f":"IFERROR(IF(OR($C$67=FALSE,LEFT($B65,3)<>\"NOX\"),BG57*INDEX('Damage costs'!$O$16:$O$43,MATCH($B65,'Damage costs'!$C$16:$C$43,0))/1000,BG57*INDEX('Damage costs'!$S$16:$S$43,MATCH($B65,'Damage costs'!$C$16:$C$43,0))/1000),\"\")","v":""},{"$f":"IFERROR(IF(OR($C$67=FALSE,LEFT($B65,3)<>\"NOX\"),BH57*INDEX('Damage costs'!$O$16:$O$43,MATCH($B65,'Damage costs'!$C$16:$C$43,0))/1000,BH57*INDEX('Damage costs'!$S$16:$S$43,MATCH($B65,'Damage costs'!$C$16:$C$43,0))/1000),\"\")","v":""},{"$f":"IFERROR(IF(OR($C$67=FALSE,LEFT($B65,3)<>\"NOX\"),BI57*INDEX('Damage costs'!$O$16:$O$43,MATCH($B65,'Damage costs'!$C$16:$C$43,0))/1000,BI57*INDEX('Damage costs'!$S$16:$S$43,MATCH($B65,'Damage costs'!$C$16:$C$43,0))/1000),\"\")","v":""},{"$f":"IFERROR(IF(OR($C$67=FALSE,LEFT($B65,3)<>\"NOX\"),BJ57*INDEX('Damage costs'!$O$16:$O$43,MATCH($B65,'Damage costs'!$C$16:$C$43,0))/1000,BJ57*INDEX('Damage costs'!$S$16:$S$43,MATCH($B65,'Damage costs'!$C$16:$C$43,0))/1000),\"\")","v":""},{"$f":"IFERROR(IF(OR($C$67=FALSE,LEFT($B65,3)<>\"NOX\"),BK57*INDEX('Damage costs'!$O$16:$O$43,MATCH($B65,'Damage costs'!$C$16:$C$43,0))/1000,BK57*INDEX('Damage costs'!$S$16:$S$43,MATCH($B65,'Damage costs'!$C$16:$C$43,0))/1000),\"\")","v":""},{"$f":"IFERROR(IF(OR($C$67=FALSE,LEFT($B65,3)<>\"NOX\"),BL57*INDEX('Damage costs'!$O$16:$O$43,MATCH($B65,'Damage costs'!$C$16:$C$43,0))/1000,BL57*INDEX('Damage costs'!$S$16:$S$43,MATCH($B65,'Damage costs'!$C$16:$C$43,0))/1000),\"\")","v":""},{"$f":"IFERROR(IF(OR($C$67=FALSE,LEFT($B65,3)<>\"NOX\"),BM57*INDEX('Damage costs'!$O$16:$O$43,MATCH($B65,'Damage costs'!$C$16:$C$43,0))/1000,BM57*INDEX('Damage costs'!$S$16:$S$43,MATCH($B65,'Damage costs'!$C$16:$C$43,0))/1000),\"\")","v":""},{"$f":"IFERROR(IF(OR($C$67=FALSE,LEFT($B65,3)<>\"NOX\"),BN57*INDEX('Damage costs'!$O$16:$O$43,MATCH($B65,'Damage costs'!$C$16:$C$43,0))/1000,BN57*INDEX('Damage costs'!$S$16:$S$43,MATCH($B65,'Damage costs'!$C$16:$C$43,0))/1000),\"\")","v":""},{"$f":"IFERROR(IF(OR($C$67=FALSE,LEFT($B65,3)<>\"NOX\"),BO57*INDEX('Damage costs'!$O$16:$O$43,MATCH($B65,'Damage costs'!$C$16:$C$43,0))/1000,BO57*INDEX('Damage costs'!$S$16:$S$43,MATCH($B65,'Damage costs'!$C$16:$C$43,0))/1000),\"\")","v":""},{"$f":"IFERROR(IF(OR($C$67=FALSE,LEFT($B65,3)<>\"NOX\"),BP57*INDEX('Damage costs'!$O$16:$O$43,MATCH($B65,'Damage costs'!$C$16:$C$43,0))/1000,BP57*INDEX('Damage costs'!$S$16:$S$43,MATCH($B65,'Damage costs'!$C$16:$C$43,0))/1000),\"\")","v":""},{"$f":"IFERROR(IF(OR($C$67=FALSE,LEFT($B65,3)<>\"NOX\"),BQ57*INDEX('Damage costs'!$O$16:$O$43,MATCH($B65,'Damage costs'!$C$16:$C$43,0))/1000,BQ57*INDEX('Damage costs'!$S$16:$S$43,MATCH($B65,'Damage costs'!$C$16:$C$43,0))/1000),\"\")","v":""},{"$f":"IFERROR(IF(OR($C$67=FALSE,LEFT($B65,3)<>\"NOX\"),BR57*INDEX('Damage costs'!$O$16:$O$43,MATCH($B65,'Damage costs'!$C$16:$C$43,0))/1000,BR57*INDEX('Damage costs'!$S$16:$S$43,MATCH($B65,'Damage costs'!$C$16:$C$43,0))/1000),\"\")","v":""},{"$f":"IFERROR(IF(OR($C$67=FALSE,LEFT($B65,3)<>\"NOX\"),BS57*INDEX('Damage costs'!$O$16:$O$43,MATCH($B65,'Damage costs'!$C$16:$C$43,0))/1000,BS57*INDEX('Damage costs'!$S$16:$S$43,MATCH($B65,'Damage costs'!$C$16:$C$43,0))/1000),\"\")","v":""},{"$f":"IFERROR(IF(OR($C$67=FALSE,LEFT($B65,3)<>\"NOX\"),BT57*INDEX('Damage costs'!$O$16:$O$43,MATCH($B65,'Damage costs'!$C$16:$C$43,0))/1000,BT57*INDEX('Damage costs'!$S$16:$S$43,MATCH($B65,'Damage costs'!$C$16:$C$43,0))/1000),\"\")","v":""},{"$f":"IFERROR(IF(OR($C$67=FALSE,LEFT($B65,3)<>\"NOX\"),BU57*INDEX('Damage costs'!$O$16:$O$43,MATCH($B65,'Damage costs'!$C$16:$C$43,0))/1000,BU57*INDEX('Damage costs'!$S$16:$S$43,MATCH($B65,'Damage costs'!$C$16:$C$43,0))/1000),\"\")","v":""},{"$f":"IFERROR(IF(OR($C$67=FALSE,LEFT($B65,3)<>\"NOX\"),BV57*INDEX('Damage costs'!$O$16:$O$43,MATCH($B65,'Damage costs'!$C$16:$C$43,0))/1000,BV57*INDEX('Damage costs'!$S$16:$S$43,MATCH($B65,'Damage costs'!$C$16:$C$43,0))/1000),\"\")","v":""},{"$f":"IFERROR(IF(OR($C$67=FALSE,LEFT($B65,3)<>\"NOX\"),BW57*INDEX('Damage costs'!$O$16:$O$43,MATCH($B65,'Damage costs'!$C$16:$C$43,0))/1000,BW57*INDEX('Damage costs'!$S$16:$S$43,MATCH($B65,'Damage costs'!$C$16:$C$43,0))/1000),\"\")","v":""},{"$f":"IFERROR(IF(OR($C$67=FALSE,LEFT($B65,3)<>\"NOX\"),BX57*INDEX('Damage costs'!$O$16:$O$43,MATCH($B65,'Damage costs'!$C$16:$C$43,0))/1000,BX57*INDEX('Damage costs'!$S$16:$S$43,MATCH($B65,'Damage costs'!$C$16:$C$43,0))/1000),\"\")","v":""},{"$f":"IFERROR(IF(OR($C$67=FALSE,LEFT($B65,3)<>\"NOX\"),BY57*INDEX('Damage costs'!$O$16:$O$43,MATCH($B65,'Damage costs'!$C$16:$C$43,0))/1000,BY57*INDEX('Damage costs'!$S$16:$S$43,MATCH($B65,'Damage costs'!$C$16:$C$43,0))/1000),\"\")","v":""},{"$f":"IFERROR(IF(OR($C$67=FALSE,LEFT($B65,3)<>\"NOX\"),BZ57*INDEX('Damage costs'!$O$16:$O$43,MATCH($B65,'Damage costs'!$C$16:$C$43,0))/1000,BZ57*INDEX('Damage costs'!$S$16:$S$43,MATCH($B65,'Damage costs'!$C$16:$C$43,0))/1000),\"\")","v":""},{"$f":"IFERROR(IF(OR($C$67=FALSE,LEFT($B65,3)<>\"NOX\"),CA57*INDEX('Damage costs'!$O$16:$O$43,MATCH($B65,'Damage costs'!$C$16:$C$43,0))/1000,CA57*INDEX('Damage costs'!$S$16:$S$43,MATCH($B65,'Damage costs'!$C$16:$C$43,0))/1000),\"\")","v":""},{"$f":"IFERROR(IF(OR($C$67=FALSE,LEFT($B65,3)<>\"NOX\"),CB57*INDEX('Damage costs'!$O$16:$O$43,MATCH($B65,'Damage costs'!$C$16:$C$43,0))/1000,CB57*INDEX('Damage costs'!$S$16:$S$43,MATCH($B65,'Damage costs'!$C$16:$C$43,0))/1000),\"\")","v":""},{"$f":"IFERROR(IF(OR($C$67=FALSE,LEFT($B65,3)<>\"NOX\"),CC57*INDEX('Damage costs'!$O$16:$O$43,MATCH($B65,'Damage costs'!$C$16:$C$43,0))/1000,CC57*INDEX('Damage costs'!$S$16:$S$43,MATCH($B65,'Damage costs'!$C$16:$C$43,0))/1000),\"\")","v":""},{"$f":"IFERROR(IF(OR($C$67=FALSE,LEFT($B65,3)<>\"NOX\"),CD57*INDEX('Damage costs'!$O$16:$O$43,MATCH($B65,'Damage costs'!$C$16:$C$43,0))/1000,CD57*INDEX('Damage costs'!$S$16:$S$43,MATCH($B65,'Damage costs'!$C$16:$C$43,0))/1000),\"\")","v":""},{"$f":"IFERROR(IF(OR($C$67=FALSE,LEFT($B65,3)<>\"NOX\"),CE57*INDEX('Damage costs'!$O$16:$O$43,MATCH($B65,'Damage costs'!$C$16:$C$43,0))/1000,CE57*INDEX('Damage costs'!$S$16:$S$43,MATCH($B65,'Damage costs'!$C$16:$C$43,0))/1000),\"\")","v":""},{"$f":"IFERROR(IF(OR($C$67=FALSE,LEFT($B65,3)<>\"NOX\"),CF57*INDEX('Damage costs'!$O$16:$O$43,MATCH($B65,'Damage costs'!$C$16:$C$43,0))/1000,CF57*INDEX('Damage costs'!$S$16:$S$43,MATCH($B65,'Damage costs'!$C$16:$C$43,0))/1000),\"\")","v":""},{"$f":"IFERROR(IF(OR($C$67=FALSE,LEFT($B65,3)<>\"NOX\"),CG57*INDEX('Damage costs'!$O$16:$O$43,MATCH($B65,'Damage costs'!$C$16:$C$43,0))/1000,CG57*INDEX('Damage costs'!$S$16:$S$43,MATCH($B65,'Damage costs'!$C$16:$C$43,0))/1000),\"\")","v":""},{"$f":"IFERROR(IF(OR($C$67=FALSE,LEFT($B65,3)<>\"NOX\"),CH57*INDEX('Damage costs'!$O$16:$O$43,MATCH($B65,'Damage costs'!$C$16:$C$43,0))/1000,CH57*INDEX('Damage costs'!$S$16:$S$43,MATCH($B65,'Damage costs'!$C$16:$C$43,0))/1000),\"\")","v":""},{"$f":"IFERROR(IF(OR($C$67=FALSE,LEFT($B65,3)<>\"NOX\"),CI57*INDEX('Damage costs'!$O$16:$O$43,MATCH($B65,'Damage costs'!$C$16:$C$43,0))/1000,CI57*INDEX('Damage costs'!$S$16:$S$43,MATCH($B65,'Damage costs'!$C$16:$C$43,0))/1000),\"\")","v":""},{"$f":"IFERROR(IF(OR($C$67=FALSE,LEFT($B65,3)<>\"NOX\"),CJ57*INDEX('Damage costs'!$O$16:$O$43,MATCH($B65,'Damage costs'!$C$16:$C$43,0))/1000,CJ57*INDEX('Damage costs'!$S$16:$S$43,MATCH($B65,'Damage costs'!$C$16:$C$43,0))/1000),\"\")","v":""},{"$f":"IFERROR(IF(OR($C$67=FALSE,LEFT($B65,3)<>\"NOX\"),CK57*INDEX('Damage costs'!$O$16:$O$43,MATCH($B65,'Damage costs'!$C$16:$C$43,0))/1000,CK57*INDEX('Damage costs'!$S$16:$S$43,MATCH($B65,'Damage costs'!$C$16:$C$43,0))/1000),\"\")","v":""},{"$f":"IFERROR(IF(OR($C$67=FALSE,LEFT($B65,3)<>\"NOX\"),CL57*INDEX('Damage costs'!$O$16:$O$43,MATCH($B65,'Damage costs'!$C$16:$C$43,0))/1000,CL57*INDEX('Damage costs'!$S$16:$S$43,MATCH($B65,'Damage costs'!$C$16:$C$43,0))/1000),\"\")","v":""},{"$f":"IFERROR(IF(OR($C$67=FALSE,LEFT($B65,3)<>\"NOX\"),CM57*INDEX('Damage costs'!$O$16:$O$43,MATCH($B65,'Damage costs'!$C$16:$C$43,0))/1000,CM57*INDEX('Damage costs'!$S$16:$S$43,MATCH($B65,'Damage costs'!$C$16:$C$43,0))/1000),\"\")","v":""},{"$f":"IFERROR(IF(OR($C$67=FALSE,LEFT($B65,3)<>\"NOX\"),CN57*INDEX('Damage costs'!$O$16:$O$43,MATCH($B65,'Damage costs'!$C$16:$C$43,0))/1000,CN57*INDEX('Damage costs'!$S$16:$S$43,MATCH($B65,'Damage costs'!$C$16:$C$43,0))/1000),\"\")","v":""},{"$f":"IFERROR(IF(OR($C$67=FALSE,LEFT($B65,3)<>\"NOX\"),CO57*INDEX('Damage costs'!$O$16:$O$43,MATCH($B65,'Damage costs'!$C$16:$C$43,0))/1000,CO57*INDEX('Damage costs'!$S$16:$S$43,MATCH($B65,'Damage costs'!$C$16:$C$43,0))/1000),\"\")","v":""},{"$f":"IFERROR(IF(OR($C$67=FALSE,LEFT($B65,3)<>\"NOX\"),CP57*INDEX('Damage costs'!$O$16:$O$43,MATCH($B65,'Damage costs'!$C$16:$C$43,0))/1000,CP57*INDEX('Damage costs'!$S$16:$S$43,MATCH($B65,'Damage costs'!$C$16:$C$43,0))/1000),\"\")","v":""},{"$f":"IFERROR(IF(OR($C$67=FALSE,LEFT($B65,3)<>\"NOX\"),CQ57*INDEX('Damage costs'!$O$16:$O$43,MATCH($B65,'Damage costs'!$C$16:$C$43,0))/1000,CQ57*INDEX('Damage costs'!$S$16:$S$43,MATCH($B65,'Damage costs'!$C$16:$C$43,0))/1000),\"\")","v":""},{"$f":"IFERROR(IF(OR($C$67=FALSE,LEFT($B65,3)<>\"NOX\"),CR57*INDEX('Damage costs'!$O$16:$O$43,MATCH($B65,'Damage costs'!$C$16:$C$43,0))/1000,CR57*INDEX('Damage costs'!$S$16:$S$43,MATCH($B65,'Damage costs'!$C$16:$C$43,0))/1000),\"\")","v":""},{"$f":"IFERROR(IF(OR($C$67=FALSE,LEFT($B65,3)<>\"NOX\"),CS57*INDEX('Damage costs'!$O$16:$O$43,MATCH($B65,'Damage costs'!$C$16:$C$43,0))/1000,CS57*INDEX('Damage costs'!$S$16:$S$43,MATCH($B65,'Damage costs'!$C$16:$C$43,0))/1000),\"\")","v":""},{"$f":"IFERROR(IF(OR($C$67=FALSE,LEFT($B65,3)<>\"NOX\"),CT57*INDEX('Damage costs'!$O$16:$O$43,MATCH($B65,'Damage costs'!$C$16:$C$43,0))/1000,CT57*INDEX('Damage costs'!$S$16:$S$43,MATCH($B65,'Damage costs'!$C$16:$C$43,0))/1000),\"\")","v":""},{"$f":"IFERROR(IF(OR($C$67=FALSE,LEFT($B65,3)<>\"NOX\"),CU57*INDEX('Damage costs'!$O$16:$O$43,MATCH($B65,'Damage costs'!$C$16:$C$43,0))/1000,CU57*INDEX('Damage costs'!$S$16:$S$43,MATCH($B65,'Damage costs'!$C$16:$C$43,0))/1000),\"\")","v":""},{"$f":"IFERROR(IF(OR($C$67=FALSE,LEFT($B65,3)<>\"NOX\"),CV57*INDEX('Damage costs'!$O$16:$O$43,MATCH($B65,'Damage costs'!$C$16:$C$43,0))/1000,CV57*INDEX('Damage costs'!$S$16:$S$43,MATCH($B65,'Damage costs'!$C$16:$C$43,0))/1000),\"\")","v":""},{"$f":"IFERROR(IF(OR($C$67=FALSE,LEFT($B65,3)<>\"NOX\"),CW57*INDEX('Damage costs'!$O$16:$O$43,MATCH($B65,'Damage costs'!$C$16:$C$43,0))/1000,CW57*INDEX('Damage costs'!$S$16:$S$43,MATCH($B65,'Damage costs'!$C$16:$C$43,0))/1000),\"\")","v":""},{"$f":"IFERROR(IF(OR($C$67=FALSE,LEFT($B65,3)<>\"NOX\"),CX57*INDEX('Damage costs'!$O$16:$O$43,MATCH($B65,'Damage costs'!$C$16:$C$43,0))/1000,CX57*INDEX('Damage costs'!$S$16:$S$43,MATCH($B65,'Damage costs'!$C$16:$C$43,0))/1000),\"\")","v":""},{"$f":"IFERROR(IF(OR($C$67=FALSE,LEFT($B65,3)<>\"NOX\"),CY57*INDEX('Damage costs'!$O$16:$O$43,MATCH($B65,'Damage costs'!$C$16:$C$43,0))/1000,CY57*INDEX('Damage costs'!$S$16:$S$43,MATCH($B65,'Damage costs'!$C$16:$C$43,0))/1000),\"\")","v":""}]
[null,0,"£000's",{"$f":"IFERROR(IF(OR($C$67=FALSE,LEFT($B66,3)<>\"NOX\"),D58*INDEX('Damage costs'!$O$16:$O$43,MATCH($B66,'Damage costs'!$C$16:$C$43,0))/1000,D58*INDEX('Damage costs'!$S$16:$S$43,MATCH($B66,'Damage costs'!$C$16:$C$43,0))/1000),\"\")","v":""},{"$f":"IFERROR(IF(OR($C$67=FALSE,LEFT($B66,3)<>\"NOX\"),E58*INDEX('Damage costs'!$O$16:$O$43,MATCH($B66,'Damage costs'!$C$16:$C$43,0))/1000,E58*INDEX('Damage costs'!$S$16:$S$43,MATCH($B66,'Damage costs'!$C$16:$C$43,0))/1000),\"\")","v":""},{"$f":"IFERROR(IF(OR($C$67=FALSE,LEFT($B66,3)<>\"NOX\"),F58*INDEX('Damage costs'!$O$16:$O$43,MATCH($B66,'Damage costs'!$C$16:$C$43,0))/1000,F58*INDEX('Damage costs'!$S$16:$S$43,MATCH($B66,'Damage costs'!$C$16:$C$43,0))/1000),\"\")","v":""},{"$f":"IFERROR(IF(OR($C$67=FALSE,LEFT($B66,3)<>\"NOX\"),G58*INDEX('Damage costs'!$O$16:$O$43,MATCH($B66,'Damage costs'!$C$16:$C$43,0))/1000,G58*INDEX('Damage costs'!$S$16:$S$43,MATCH($B66,'Damage costs'!$C$16:$C$43,0))/1000),\"\")","v":""},{"$f":"IFERROR(IF(OR($C$67=FALSE,LEFT($B66,3)<>\"NOX\"),H58*INDEX('Damage costs'!$O$16:$O$43,MATCH($B66,'Damage costs'!$C$16:$C$43,0))/1000,H58*INDEX('Damage costs'!$S$16:$S$43,MATCH($B66,'Damage costs'!$C$16:$C$43,0))/1000),\"\")","v":""},{"$f":"IFERROR(IF(OR($C$67=FALSE,LEFT($B66,3)<>\"NOX\"),I58*INDEX('Damage costs'!$O$16:$O$43,MATCH($B66,'Damage costs'!$C$16:$C$43,0))/1000,I58*INDEX('Damage costs'!$S$16:$S$43,MATCH($B66,'Damage costs'!$C$16:$C$43,0))/1000),\"\")","v":""},{"$f":"IFERROR(IF(OR($C$67=FALSE,LEFT($B66,3)<>\"NOX\"),J58*INDEX('Damage costs'!$O$16:$O$43,MATCH($B66,'Damage costs'!$C$16:$C$43,0))/1000,J58*INDEX('Damage costs'!$S$16:$S$43,MATCH($B66,'Damage costs'!$C$16:$C$43,0))/1000),\"\")","v":""},{"$f":"IFERROR(IF(OR($C$67=FALSE,LEFT($B66,3)<>\"NOX\"),K58*INDEX('Damage costs'!$O$16:$O$43,MATCH($B66,'Damage costs'!$C$16:$C$43,0))/1000,K58*INDEX('Damage costs'!$S$16:$S$43,MATCH($B66,'Damage costs'!$C$16:$C$43,0))/1000),\"\")","v":""},{"$f":"IFERROR(IF(OR($C$67=FALSE,LEFT($B66,3)<>\"NOX\"),L58*INDEX('Damage costs'!$O$16:$O$43,MATCH($B66,'Damage costs'!$C$16:$C$43,0))/1000,L58*INDEX('Damage costs'!$S$16:$S$43,MATCH($B66,'Damage costs'!$C$16:$C$43,0))/1000),\"\")","v":""},{"$f":"IFERROR(IF(OR($C$67=FALSE,LEFT($B66,3)<>\"NOX\"),M58*INDEX('Damage costs'!$O$16:$O$43,MATCH($B66,'Damage costs'!$C$16:$C$43,0))/1000,M58*INDEX('Damage costs'!$S$16:$S$43,MATCH($B66,'Damage costs'!$C$16:$C$43,0))/1000),\"\")","v":""},{"$f":"IFERROR(IF(OR($C$67=FALSE,LEFT($B66,3)<>\"NOX\"),N58*INDEX('Damage costs'!$O$16:$O$43,MATCH($B66,'Damage costs'!$C$16:$C$43,0))/1000,N58*INDEX('Damage costs'!$S$16:$S$43,MATCH($B66,'Damage costs'!$C$16:$C$43,0))/1000),\"\")","v":""},{"$f":"IFERROR(IF(OR($C$67=FALSE,LEFT($B66,3)<>\"NOX\"),O58*INDEX('Damage costs'!$O$16:$O$43,MATCH($B66,'Damage costs'!$C$16:$C$43,0))/1000,O58*INDEX('Damage costs'!$S$16:$S$43,MATCH($B66,'Damage costs'!$C$16:$C$43,0))/1000),\"\")","v":""},{"$f":"IFERROR(IF(OR($C$67=FALSE,LEFT($B66,3)<>\"NOX\"),P58*INDEX('Damage costs'!$O$16:$O$43,MATCH($B66,'Damage costs'!$C$16:$C$43,0))/1000,P58*INDEX('Damage costs'!$S$16:$S$43,MATCH($B66,'Damage costs'!$C$16:$C$43,0))/1000),\"\")","v":""},{"$f":"IFERROR(IF(OR($C$67=FALSE,LEFT($B66,3)<>\"NOX\"),Q58*INDEX('Damage costs'!$O$16:$O$43,MATCH($B66,'Damage costs'!$C$16:$C$43,0))/1000,Q58*INDEX('Damage costs'!$S$16:$S$43,MATCH($B66,'Damage costs'!$C$16:$C$43,0))/1000),\"\")","v":""},{"$f":"IFERROR(IF(OR($C$67=FALSE,LEFT($B66,3)<>\"NOX\"),R58*INDEX('Damage costs'!$O$16:$O$43,MATCH($B66,'Damage costs'!$C$16:$C$43,0))/1000,R58*INDEX('Damage costs'!$S$16:$S$43,MATCH($B66,'Damage costs'!$C$16:$C$43,0))/1000),\"\")","v":""},{"$f":"IFERROR(IF(OR($C$67=FALSE,LEFT($B66,3)<>\"NOX\"),S58*INDEX('Damage costs'!$O$16:$O$43,MATCH($B66,'Damage costs'!$C$16:$C$43,0))/1000,S58*INDEX('Damage costs'!$S$16:$S$43,MATCH($B66,'Damage costs'!$C$16:$C$43,0))/1000),\"\")","v":""},{"$f":"IFERROR(IF(OR($C$67=FALSE,LEFT($B66,3)<>\"NOX\"),T58*INDEX('Damage costs'!$O$16:$O$43,MATCH($B66,'Damage costs'!$C$16:$C$43,0))/1000,T58*INDEX('Damage costs'!$S$16:$S$43,MATCH($B66,'Damage costs'!$C$16:$C$43,0))/1000),\"\")","v":""},{"$f":"IFERROR(IF(OR($C$67=FALSE,LEFT($B66,3)<>\"NOX\"),U58*INDEX('Damage costs'!$O$16:$O$43,MATCH($B66,'Damage costs'!$C$16:$C$43,0))/1000,U58*INDEX('Damage costs'!$S$16:$S$43,MATCH($B66,'Damage costs'!$C$16:$C$43,0))/1000),\"\")","v":""},{"$f":"IFERROR(IF(OR($C$67=FALSE,LEFT($B66,3)<>\"NOX\"),V58*INDEX('Damage costs'!$O$16:$O$43,MATCH($B66,'Damage costs'!$C$16:$C$43,0))/1000,V58*INDEX('Damage costs'!$S$16:$S$43,MATCH($B66,'Damage costs'!$C$16:$C$43,0))/1000),\"\")","v":""},{"$f":"IFERROR(IF(OR($C$67=FALSE,LEFT($B66,3)<>\"NOX\"),W58*INDEX('Damage costs'!$O$16:$O$43,MATCH($B66,'Damage costs'!$C$16:$C$43,0))/1000,W58*INDEX('Damage costs'!$S$16:$S$43,MATCH($B66,'Damage costs'!$C$16:$C$43,0))/1000),\"\")","v":""},{"$f":"IFERROR(IF(OR($C$67=FALSE,LEFT($B66,3)<>\"NOX\"),X58*INDEX('Damage costs'!$O$16:$O$43,MATCH($B66,'Damage costs'!$C$16:$C$43,0))/1000,X58*INDEX('Damage costs'!$S$16:$S$43,MATCH($B66,'Damage costs'!$C$16:$C$43,0))/1000),\"\")","v":""},{"$f":"IFERROR(IF(OR($C$67=FALSE,LEFT($B66,3)<>\"NOX\"),Y58*INDEX('Damage costs'!$O$16:$O$43,MATCH($B66,'Damage costs'!$C$16:$C$43,0))/1000,Y58*INDEX('Damage costs'!$S$16:$S$43,MATCH($B66,'Damage costs'!$C$16:$C$43,0))/1000),\"\")","v":""},{"$f":"IFERROR(IF(OR($C$67=FALSE,LEFT($B66,3)<>\"NOX\"),Z58*INDEX('Damage costs'!$O$16:$O$43,MATCH($B66,'Damage costs'!$C$16:$C$43,0))/1000,Z58*INDEX('Damage costs'!$S$16:$S$43,MATCH($B66,'Damage costs'!$C$16:$C$43,0))/1000),\"\")","v":""},{"$f":"IFERROR(IF(OR($C$67=FALSE,LEFT($B66,3)<>\"NOX\"),AA58*INDEX('Damage costs'!$O$16:$O$43,MATCH($B66,'Damage costs'!$C$16:$C$43,0))/1000,AA58*INDEX('Damage costs'!$S$16:$S$43,MATCH($B66,'Damage costs'!$C$16:$C$43,0))/1000),\"\")","v":""},{"$f":"IFERROR(IF(OR($C$67=FALSE,LEFT($B66,3)<>\"NOX\"),AB58*INDEX('Damage costs'!$O$16:$O$43,MATCH($B66,'Damage costs'!$C$16:$C$43,0))/1000,AB58*INDEX('Damage costs'!$S$16:$S$43,MATCH($B66,'Damage costs'!$C$16:$C$43,0))/1000),\"\")","v":""},{"$f":"IFERROR(IF(OR($C$67=FALSE,LEFT($B66,3)<>\"NOX\"),AC58*INDEX('Damage costs'!$O$16:$O$43,MATCH($B66,'Damage costs'!$C$16:$C$43,0))/1000,AC58*INDEX('Damage costs'!$S$16:$S$43,MATCH($B66,'Damage costs'!$C$16:$C$43,0))/1000),\"\")","v":""},{"$f":"IFERROR(IF(OR($C$67=FALSE,LEFT($B66,3)<>\"NOX\"),AD58*INDEX('Damage costs'!$O$16:$O$43,MATCH($B66,'Damage costs'!$C$16:$C$43,0))/1000,AD58*INDEX('Damage costs'!$S$16:$S$43,MATCH($B66,'Damage costs'!$C$16:$C$43,0))/1000),\"\")","v":""},{"$f":"IFERROR(IF(OR($C$67=FALSE,LEFT($B66,3)<>\"NOX\"),AE58*INDEX('Damage costs'!$O$16:$O$43,MATCH($B66,'Damage costs'!$C$16:$C$43,0))/1000,AE58*INDEX('Damage costs'!$S$16:$S$43,MATCH($B66,'Damage costs'!$C$16:$C$43,0))/1000),\"\")","v":""},{"$f":"IFERROR(IF(OR($C$67=FALSE,LEFT($B66,3)<>\"NOX\"),AF58*INDEX('Damage costs'!$O$16:$O$43,MATCH($B66,'Damage costs'!$C$16:$C$43,0))/1000,AF58*INDEX('Damage costs'!$S$16:$S$43,MATCH($B66,'Damage costs'!$C$16:$C$43,0))/1000),\"\")","v":""},{"$f":"IFERROR(IF(OR($C$67=FALSE,LEFT($B66,3)<>\"NOX\"),AG58*INDEX('Damage costs'!$O$16:$O$43,MATCH($B66,'Damage costs'!$C$16:$C$43,0))/1000,AG58*INDEX('Damage costs'!$S$16:$S$43,MATCH($B66,'Damage costs'!$C$16:$C$43,0))/1000),\"\")","v":""},{"$f":"IFERROR(IF(OR($C$67=FALSE,LEFT($B66,3)<>\"NOX\"),AH58*INDEX('Damage costs'!$O$16:$O$43,MATCH($B66,'Damage costs'!$C$16:$C$43,0))/1000,AH58*INDEX('Damage costs'!$S$16:$S$43,MATCH($B66,'Damage costs'!$C$16:$C$43,0))/1000),\"\")","v":""},{"$f":"IFERROR(IF(OR($C$67=FALSE,LEFT($B66,3)<>\"NOX\"),AI58*INDEX('Damage costs'!$O$16:$O$43,MATCH($B66,'Damage costs'!$C$16:$C$43,0))/1000,AI58*INDEX('Damage costs'!$S$16:$S$43,MATCH($B66,'Damage costs'!$C$16:$C$43,0))/1000),\"\")","v":""},{"$f":"IFERROR(IF(OR($C$67=FALSE,LEFT($B66,3)<>\"NOX\"),AJ58*INDEX('Damage costs'!$O$16:$O$43,MATCH($B66,'Damage costs'!$C$16:$C$43,0))/1000,AJ58*INDEX('Damage costs'!$S$16:$S$43,MATCH($B66,'Damage costs'!$C$16:$C$43,0))/1000),\"\")","v":""},{"$f":"IFERROR(IF(OR($C$67=FALSE,LEFT($B66,3)<>\"NOX\"),AK58*INDEX('Damage costs'!$O$16:$O$43,MATCH($B66,'Damage costs'!$C$16:$C$43,0))/1000,AK58*INDEX('Damage costs'!$S$16:$S$43,MATCH($B66,'Damage costs'!$C$16:$C$43,0))/1000),\"\")","v":""},{"$f":"IFERROR(IF(OR($C$67=FALSE,LEFT($B66,3)<>\"NOX\"),AL58*INDEX('Damage costs'!$O$16:$O$43,MATCH($B66,'Damage costs'!$C$16:$C$43,0))/1000,AL58*INDEX('Damage costs'!$S$16:$S$43,MATCH($B66,'Damage costs'!$C$16:$C$43,0))/1000),\"\")","v":""},{"$f":"IFERROR(IF(OR($C$67=FALSE,LEFT($B66,3)<>\"NOX\"),AM58*INDEX('Damage costs'!$O$16:$O$43,MATCH($B66,'Damage costs'!$C$16:$C$43,0))/1000,AM58*INDEX('Damage costs'!$S$16:$S$43,MATCH($B66,'Damage costs'!$C$16:$C$43,0))/1000),\"\")","v":""},{"$f":"IFERROR(IF(OR($C$67=FALSE,LEFT($B66,3)<>\"NOX\"),AN58*INDEX('Damage costs'!$O$16:$O$43,MATCH($B66,'Damage costs'!$C$16:$C$43,0))/1000,AN58*INDEX('Damage costs'!$S$16:$S$43,MATCH($B66,'Damage costs'!$C$16:$C$43,0))/1000),\"\")","v":""},{"$f":"IFERROR(IF(OR($C$67=FALSE,LEFT($B66,3)<>\"NOX\"),AO58*INDEX('Damage costs'!$O$16:$O$43,MATCH($B66,'Damage costs'!$C$16:$C$43,0))/1000,AO58*INDEX('Damage costs'!$S$16:$S$43,MATCH($B66,'Damage costs'!$C$16:$C$43,0))/1000),\"\")","v":""},{"$f":"IFERROR(IF(OR($C$67=FALSE,LEFT($B66,3)<>\"NOX\"),AP58*INDEX('Damage costs'!$O$16:$O$43,MATCH($B66,'Damage costs'!$C$16:$C$43,0))/1000,AP58*INDEX('Damage costs'!$S$16:$S$43,MATCH($B66,'Damage costs'!$C$16:$C$43,0))/1000),\"\")","v":""},{"$f":"IFERROR(IF(OR($C$67=FALSE,LEFT($B66,3)<>\"NOX\"),AQ58*INDEX('Damage costs'!$O$16:$O$43,MATCH($B66,'Damage costs'!$C$16:$C$43,0))/1000,AQ58*INDEX('Damage costs'!$S$16:$S$43,MATCH($B66,'Damage costs'!$C$16:$C$43,0))/1000),\"\")","v":""},{"$f":"IFERROR(IF(OR($C$67=FALSE,LEFT($B66,3)<>\"NOX\"),AR58*INDEX('Damage costs'!$O$16:$O$43,MATCH($B66,'Damage costs'!$C$16:$C$43,0))/1000,AR58*INDEX('Damage costs'!$S$16:$S$43,MATCH($B66,'Damage costs'!$C$16:$C$43,0))/1000),\"\")","v":""},{"$f":"IFERROR(IF(OR($C$67=FALSE,LEFT($B66,3)<>\"NOX\"),AS58*INDEX('Damage costs'!$O$16:$O$43,MATCH($B66,'Damage costs'!$C$16:$C$43,0))/1000,AS58*INDEX('Damage costs'!$S$16:$S$43,MATCH($B66,'Damage costs'!$C$16:$C$43,0))/1000),\"\")","v":""},{"$f":"IFERROR(IF(OR($C$67=FALSE,LEFT($B66,3)<>\"NOX\"),AT58*INDEX('Damage costs'!$O$16:$O$43,MATCH($B66,'Damage costs'!$C$16:$C$43,0))/1000,AT58*INDEX('Damage costs'!$S$16:$S$43,MATCH($B66,'Damage costs'!$C$16:$C$43,0))/1000),\"\")","v":""},{"$f":"IFERROR(IF(OR($C$67=FALSE,LEFT($B66,3)<>\"NOX\"),AU58*INDEX('Damage costs'!$O$16:$O$43,MATCH($B66,'Damage costs'!$C$16:$C$43,0))/1000,AU58*INDEX('Damage costs'!$S$16:$S$43,MATCH($B66,'Damage costs'!$C$16:$C$43,0))/1000),\"\")","v":""},{"$f":"IFERROR(IF(OR($C$67=FALSE,LEFT($B66,3)<>\"NOX\"),AV58*INDEX('Damage costs'!$O$16:$O$43,MATCH($B66,'Damage costs'!$C$16:$C$43,0))/1000,AV58*INDEX('Damage costs'!$S$16:$S$43,MATCH($B66,'Damage costs'!$C$16:$C$43,0))/1000),\"\")","v":""},{"$f":"IFERROR(IF(OR($C$67=FALSE,LEFT($B66,3)<>\"NOX\"),AW58*INDEX('Damage costs'!$O$16:$O$43,MATCH($B66,'Damage costs'!$C$16:$C$43,0))/1000,AW58*INDEX('Damage costs'!$S$16:$S$43,MATCH($B66,'Damage costs'!$C$16:$C$43,0))/1000),\"\")","v":""},{"$f":"IFERROR(IF(OR($C$67=FALSE,LEFT($B66,3)<>\"NOX\"),AX58*INDEX('Damage costs'!$O$16:$O$43,MATCH($B66,'Damage costs'!$C$16:$C$43,0))/1000,AX58*INDEX('Damage costs'!$S$16:$S$43,MATCH($B66,'Damage costs'!$C$16:$C$43,0))/1000),\"\")","v":""},{"$f":"IFERROR(IF(OR($C$67=FALSE,LEFT($B66,3)<>\"NOX\"),AY58*INDEX('Damage costs'!$O$16:$O$43,MATCH($B66,'Damage costs'!$C$16:$C$43,0))/1000,AY58*INDEX('Damage costs'!$S$16:$S$43,MATCH($B66,'Damage costs'!$C$16:$C$43,0))/1000),\"\")","v":""},{"$f":"IFERROR(IF(OR($C$67=FALSE,LEFT($B66,3)<>\"NOX\"),AZ58*INDEX('Damage costs'!$O$16:$O$43,MATCH($B66,'Damage costs'!$C$16:$C$43,0))/1000,AZ58*INDEX('Damage costs'!$S$16:$S$43,MATCH($B66,'Damage costs'!$C$16:$C$43,0))/1000),\"\")","v":""},{"$f":"IFERROR(IF(OR($C$67=FALSE,LEFT($B66,3)<>\"NOX\"),BA58*INDEX('Damage costs'!$O$16:$O$43,MATCH($B66,'Damage costs'!$C$16:$C$43,0))/1000,BA58*INDEX('Damage costs'!$S$16:$S$43,MATCH($B66,'Damage costs'!$C$16:$C$43,0))/1000),\"\")","v":""},{"$f":"IFERROR(IF(OR($C$67=FALSE,LEFT($B66,3)<>\"NOX\"),BB58*INDEX('Damage costs'!$O$16:$O$43,MATCH($B66,'Damage costs'!$C$16:$C$43,0))/1000,BB58*INDEX('Damage costs'!$S$16:$S$43,MATCH($B66,'Damage costs'!$C$16:$C$43,0))/1000),\"\")","v":""},{"$f":"IFERROR(IF(OR($C$67=FALSE,LEFT($B66,3)<>\"NOX\"),BC58*INDEX('Damage costs'!$O$16:$O$43,MATCH($B66,'Damage costs'!$C$16:$C$43,0))/1000,BC58*INDEX('Damage costs'!$S$16:$S$43,MATCH($B66,'Damage costs'!$C$16:$C$43,0))/1000),\"\")","v":""},{"$f":"IFERROR(IF(OR($C$67=FALSE,LEFT($B66,3)<>\"NOX\"),BD58*INDEX('Damage costs'!$O$16:$O$43,MATCH($B66,'Damage costs'!$C$16:$C$43,0))/1000,BD58*INDEX('Damage costs'!$S$16:$S$43,MATCH($B66,'Damage costs'!$C$16:$C$43,0))/1000),\"\")","v":""},{"$f":"IFERROR(IF(OR($C$67=FALSE,LEFT($B66,3)<>\"NOX\"),BE58*INDEX('Damage costs'!$O$16:$O$43,MATCH($B66,'Damage costs'!$C$16:$C$43,0))/1000,BE58*INDEX('Damage costs'!$S$16:$S$43,MATCH($B66,'Damage costs'!$C$16:$C$43,0))/1000),\"\")","v":""},{"$f":"IFERROR(IF(OR($C$67=FALSE,LEFT($B66,3)<>\"NOX\"),BF58*INDEX('Damage costs'!$O$16:$O$43,MATCH($B66,'Damage costs'!$C$16:$C$43,0))/1000,BF58*INDEX('Damage costs'!$S$16:$S$43,MATCH($B66,'Damage costs'!$C$16:$C$43,0))/1000),\"\")","v":""},{"$f":"IFERROR(IF(OR($C$67=FALSE,LEFT($B66,3)<>\"NOX\"),BG58*INDEX('Damage costs'!$O$16:$O$43,MATCH($B66,'Damage costs'!$C$16:$C$43,0))/1000,BG58*INDEX('Damage costs'!$S$16:$S$43,MATCH($B66,'Damage costs'!$C$16:$C$43,0))/1000),\"\")","v":""},{"$f":"IFERROR(IF(OR($C$67=FALSE,LEFT($B66,3)<>\"NOX\"),BH58*INDEX('Damage costs'!$O$16:$O$43,MATCH($B66,'Damage costs'!$C$16:$C$43,0))/1000,BH58*INDEX('Damage costs'!$S$16:$S$43,MATCH($B66,'Damage costs'!$C$16:$C$43,0))/1000),\"\")","v":""},{"$f":"IFERROR(IF(OR($C$67=FALSE,LEFT($B66,3)<>\"NOX\"),BI58*INDEX('Damage costs'!$O$16:$O$43,MATCH($B66,'Damage costs'!$C$16:$C$43,0))/1000,BI58*INDEX('Damage costs'!$S$16:$S$43,MATCH($B66,'Damage costs'!$C$16:$C$43,0))/1000),\"\")","v":""},{"$f":"IFERROR(IF(OR($C$67=FALSE,LEFT($B66,3)<>\"NOX\"),BJ58*INDEX('Damage costs'!$O$16:$O$43,MATCH($B66,'Damage costs'!$C$16:$C$43,0))/1000,BJ58*INDEX('Damage costs'!$S$16:$S$43,MATCH($B66,'Damage costs'!$C$16:$C$43,0))/1000),\"\")","v":""},{"$f":"IFERROR(IF(OR($C$67=FALSE,LEFT($B66,3)<>\"NOX\"),BK58*INDEX('Damage costs'!$O$16:$O$43,MATCH($B66,'Damage costs'!$C$16:$C$43,0))/1000,BK58*INDEX('Damage costs'!$S$16:$S$43,MATCH($B66,'Damage costs'!$C$16:$C$43,0))/1000),\"\")","v":""},{"$f":"IFERROR(IF(OR($C$67=FALSE,LEFT($B66,3)<>\"NOX\"),BL58*INDEX('Damage costs'!$O$16:$O$43,MATCH($B66,'Damage costs'!$C$16:$C$43,0))/1000,BL58*INDEX('Damage costs'!$S$16:$S$43,MATCH($B66,'Damage costs'!$C$16:$C$43,0))/1000),\"\")","v":""},{"$f":"IFERROR(IF(OR($C$67=FALSE,LEFT($B66,3)<>\"NOX\"),BM58*INDEX('Damage costs'!$O$16:$O$43,MATCH($B66,'Damage costs'!$C$16:$C$43,0))/1000,BM58*INDEX('Damage costs'!$S$16:$S$43,MATCH($B66,'Damage costs'!$C$16:$C$43,0))/1000),\"\")","v":""},{"$f":"IFERROR(IF(OR($C$67=FALSE,LEFT($B66,3)<>\"NOX\"),BN58*INDEX('Damage costs'!$O$16:$O$43,MATCH($B66,'Damage costs'!$C$16:$C$43,0))/1000,BN58*INDEX('Damage costs'!$S$16:$S$43,MATCH($B66,'Damage costs'!$C$16:$C$43,0))/1000),\"\")","v":""},{"$f":"IFERROR(IF(OR($C$67=FALSE,LEFT($B66,3)<>\"NOX\"),BO58*INDEX('Damage costs'!$O$16:$O$43,MATCH($B66,'Damage costs'!$C$16:$C$43,0))/1000,BO58*INDEX('Damage costs'!$S$16:$S$43,MATCH($B66,'Damage costs'!$C$16:$C$43,0))/1000),\"\")","v":""},{"$f":"IFERROR(IF(OR($C$67=FALSE,LEFT($B66,3)<>\"NOX\"),BP58*INDEX('Damage costs'!$O$16:$O$43,MATCH($B66,'Damage costs'!$C$16:$C$43,0))/1000,BP58*INDEX('Damage costs'!$S$16:$S$43,MATCH($B66,'Damage costs'!$C$16:$C$43,0))/1000),\"\")","v":""},{"$f":"IFERROR(IF(OR($C$67=FALSE,LEFT($B66,3)<>\"NOX\"),BQ58*INDEX('Damage costs'!$O$16:$O$43,MATCH($B66,'Damage costs'!$C$16:$C$43,0))/1000,BQ58*INDEX('Damage costs'!$S$16:$S$43,MATCH($B66,'Damage costs'!$C$16:$C$43,0))/1000),\"\")","v":""},{"$f":"IFERROR(IF(OR($C$67=FALSE,LEFT($B66,3)<>\"NOX\"),BR58*INDEX('Damage costs'!$O$16:$O$43,MATCH($B66,'Damage costs'!$C$16:$C$43,0))/1000,BR58*INDEX('Damage costs'!$S$16:$S$43,MATCH($B66,'Damage costs'!$C$16:$C$43,0))/1000),\"\")","v":""},{"$f":"IFERROR(IF(OR($C$67=FALSE,LEFT($B66,3)<>\"NOX\"),BS58*INDEX('Damage costs'!$O$16:$O$43,MATCH($B66,'Damage costs'!$C$16:$C$43,0))/1000,BS58*INDEX('Damage costs'!$S$16:$S$43,MATCH($B66,'Damage costs'!$C$16:$C$43,0))/1000),\"\")","v":""},{"$f":"IFERROR(IF(OR($C$67=FALSE,LEFT($B66,3)<>\"NOX\"),BT58*INDEX('Damage costs'!$O$16:$O$43,MATCH($B66,'Damage costs'!$C$16:$C$43,0))/1000,BT58*INDEX('Damage costs'!$S$16:$S$43,MATCH($B66,'Damage costs'!$C$16:$C$43,0))/1000),\"\")","v":""},{"$f":"IFERROR(IF(OR($C$67=FALSE,LEFT($B66,3)<>\"NOX\"),BU58*INDEX('Damage costs'!$O$16:$O$43,MATCH($B66,'Damage costs'!$C$16:$C$43,0))/1000,BU58*INDEX('Damage costs'!$S$16:$S$43,MATCH($B66,'Damage costs'!$C$16:$C$43,0))/1000),\"\")","v":""},{"$f":"IFERROR(IF(OR($C$67=FALSE,LEFT($B66,3)<>\"NOX\"),BV58*INDEX('Damage costs'!$O$16:$O$43,MATCH($B66,'Damage costs'!$C$16:$C$43,0))/1000,BV58*INDEX('Damage costs'!$S$16:$S$43,MATCH($B66,'Damage costs'!$C$16:$C$43,0))/1000),\"\")","v":""},{"$f":"IFERROR(IF(OR($C$67=FALSE,LEFT($B66,3)<>\"NOX\"),BW58*INDEX('Damage costs'!$O$16:$O$43,MATCH($B66,'Damage costs'!$C$16:$C$43,0))/1000,BW58*INDEX('Damage costs'!$S$16:$S$43,MATCH($B66,'Damage costs'!$C$16:$C$43,0))/1000),\"\")","v":""},{"$f":"IFERROR(IF(OR($C$67=FALSE,LEFT($B66,3)<>\"NOX\"),BX58*INDEX('Damage costs'!$O$16:$O$43,MATCH($B66,'Damage costs'!$C$16:$C$43,0))/1000,BX58*INDEX('Damage costs'!$S$16:$S$43,MATCH($B66,'Damage costs'!$C$16:$C$43,0))/1000),\"\")","v":""},{"$f":"IFERROR(IF(OR($C$67=FALSE,LEFT($B66,3)<>\"NOX\"),BY58*INDEX('Damage costs'!$O$16:$O$43,MATCH($B66,'Damage costs'!$C$16:$C$43,0))/1000,BY58*INDEX('Damage costs'!$S$16:$S$43,MATCH($B66,'Damage costs'!$C$16:$C$43,0))/1000),\"\")","v":""},{"$f":"IFERROR(IF(OR($C$67=FALSE,LEFT($B66,3)<>\"NOX\"),BZ58*INDEX('Damage costs'!$O$16:$O$43,MATCH($B66,'Damage costs'!$C$16:$C$43,0))/1000,BZ58*INDEX('Damage costs'!$S$16:$S$43,MATCH($B66,'Damage costs'!$C$16:$C$43,0))/1000),\"\")","v":""},{"$f":"IFERROR(IF(OR($C$67=FALSE,LEFT($B66,3)<>\"NOX\"),CA58*INDEX('Damage costs'!$O$16:$O$43,MATCH($B66,'Damage costs'!$C$16:$C$43,0))/1000,CA58*INDEX('Damage costs'!$S$16:$S$43,MATCH($B66,'Damage costs'!$C$16:$C$43,0))/1000),\"\")","v":""},{"$f":"IFERROR(IF(OR($C$67=FALSE,LEFT($B66,3)<>\"NOX\"),CB58*INDEX('Damage costs'!$O$16:$O$43,MATCH($B66,'Damage costs'!$C$16:$C$43,0))/1000,CB58*INDEX('Damage costs'!$S$16:$S$43,MATCH($B66,'Damage costs'!$C$16:$C$43,0))/1000),\"\")","v":""},{"$f":"IFERROR(IF(OR($C$67=FALSE,LEFT($B66,3)<>\"NOX\"),CC58*INDEX('Damage costs'!$O$16:$O$43,MATCH($B66,'Damage costs'!$C$16:$C$43,0))/1000,CC58*INDEX('Damage costs'!$S$16:$S$43,MATCH($B66,'Damage costs'!$C$16:$C$43,0))/1000),\"\")","v":""},{"$f":"IFERROR(IF(OR($C$67=FALSE,LEFT($B66,3)<>\"NOX\"),CD58*INDEX('Damage costs'!$O$16:$O$43,MATCH($B66,'Damage costs'!$C$16:$C$43,0))/1000,CD58*INDEX('Damage costs'!$S$16:$S$43,MATCH($B66,'Damage costs'!$C$16:$C$43,0))/1000),\"\")","v":""},{"$f":"IFERROR(IF(OR($C$67=FALSE,LEFT($B66,3)<>\"NOX\"),CE58*INDEX('Damage costs'!$O$16:$O$43,MATCH($B66,'Damage costs'!$C$16:$C$43,0))/1000,CE58*INDEX('Damage costs'!$S$16:$S$43,MATCH($B66,'Damage costs'!$C$16:$C$43,0))/1000),\"\")","v":""},{"$f":"IFERROR(IF(OR($C$67=FALSE,LEFT($B66,3)<>\"NOX\"),CF58*INDEX('Damage costs'!$O$16:$O$43,MATCH($B66,'Damage costs'!$C$16:$C$43,0))/1000,CF58*INDEX('Damage costs'!$S$16:$S$43,MATCH($B66,'Damage costs'!$C$16:$C$43,0))/1000),\"\")","v":""},{"$f":"IFERROR(IF(OR($C$67=FALSE,LEFT($B66,3)<>\"NOX\"),CG58*INDEX('Damage costs'!$O$16:$O$43,MATCH($B66,'Damage costs'!$C$16:$C$43,0))/1000,CG58*INDEX('Damage costs'!$S$16:$S$43,MATCH($B66,'Damage costs'!$C$16:$C$43,0))/1000),\"\")","v":""},{"$f":"IFERROR(IF(OR($C$67=FALSE,LEFT($B66,3)<>\"NOX\"),CH58*INDEX('Damage costs'!$O$16:$O$43,MATCH($B66,'Damage costs'!$C$16:$C$43,0))/1000,CH58*INDEX('Damage costs'!$S$16:$S$43,MATCH($B66,'Damage costs'!$C$16:$C$43,0))/1000),\"\")","v":""},{"$f":"IFERROR(IF(OR($C$67=FALSE,LEFT($B66,3)<>\"NOX\"),CI58*INDEX('Damage costs'!$O$16:$O$43,MATCH($B66,'Damage costs'!$C$16:$C$43,0))/1000,CI58*INDEX('Damage costs'!$S$16:$S$43,MATCH($B66,'Damage costs'!$C$16:$C$43,0))/1000),\"\")","v":""},{"$f":"IFERROR(IF(OR($C$67=FALSE,LEFT($B66,3)<>\"NOX\"),CJ58*INDEX('Damage costs'!$O$16:$O$43,MATCH($B66,'Damage costs'!$C$16:$C$43,0))/1000,CJ58*INDEX('Damage costs'!$S$16:$S$43,MATCH($B66,'Damage costs'!$C$16:$C$43,0))/1000),\"\")","v":""},{"$f":"IFERROR(IF(OR($C$67=FALSE,LEFT($B66,3)<>\"NOX\"),CK58*INDEX('Damage costs'!$O$16:$O$43,MATCH($B66,'Damage costs'!$C$16:$C$43,0))/1000,CK58*INDEX('Damage costs'!$S$16:$S$43,MATCH($B66,'Damage costs'!$C$16:$C$43,0))/1000),\"\")","v":""},{"$f":"IFERROR(IF(OR($C$67=FALSE,LEFT($B66,3)<>\"NOX\"),CL58*INDEX('Damage costs'!$O$16:$O$43,MATCH($B66,'Damage costs'!$C$16:$C$43,0))/1000,CL58*INDEX('Damage costs'!$S$16:$S$43,MATCH($B66,'Damage costs'!$C$16:$C$43,0))/1000),\"\")","v":""},{"$f":"IFERROR(IF(OR($C$67=FALSE,LEFT($B66,3)<>\"NOX\"),CM58*INDEX('Damage costs'!$O$16:$O$43,MATCH($B66,'Damage costs'!$C$16:$C$43,0))/1000,CM58*INDEX('Damage costs'!$S$16:$S$43,MATCH($B66,'Damage costs'!$C$16:$C$43,0))/1000),\"\")","v":""},{"$f":"IFERROR(IF(OR($C$67=FALSE,LEFT($B66,3)<>\"NOX\"),CN58*INDEX('Damage costs'!$O$16:$O$43,MATCH($B66,'Damage costs'!$C$16:$C$43,0))/1000,CN58*INDEX('Damage costs'!$S$16:$S$43,MATCH($B66,'Damage costs'!$C$16:$C$43,0))/1000),\"\")","v":""},{"$f":"IFERROR(IF(OR($C$67=FALSE,LEFT($B66,3)<>\"NOX\"),CO58*INDEX('Damage costs'!$O$16:$O$43,MATCH($B66,'Damage costs'!$C$16:$C$43,0))/1000,CO58*INDEX('Damage costs'!$S$16:$S$43,MATCH($B66,'Damage costs'!$C$16:$C$43,0))/1000),\"\")","v":""},{"$f":"IFERROR(IF(OR($C$67=FALSE,LEFT($B66,3)<>\"NOX\"),CP58*INDEX('Damage costs'!$O$16:$O$43,MATCH($B66,'Damage costs'!$C$16:$C$43,0))/1000,CP58*INDEX('Damage costs'!$S$16:$S$43,MATCH($B66,'Damage costs'!$C$16:$C$43,0))/1000),\"\")","v":""},{"$f":"IFERROR(IF(OR($C$67=FALSE,LEFT($B66,3)<>\"NOX\"),CQ58*INDEX('Damage costs'!$O$16:$O$43,MATCH($B66,'Damage costs'!$C$16:$C$43,0))/1000,CQ58*INDEX('Damage costs'!$S$16:$S$43,MATCH($B66,'Damage costs'!$C$16:$C$43,0))/1000),\"\")","v":""},{"$f":"IFERROR(IF(OR($C$67=FALSE,LEFT($B66,3)<>\"NOX\"),CR58*INDEX('Damage costs'!$O$16:$O$43,MATCH($B66,'Damage costs'!$C$16:$C$43,0))/1000,CR58*INDEX('Damage costs'!$S$16:$S$43,MATCH($B66,'Damage costs'!$C$16:$C$43,0))/1000),\"\")","v":""},{"$f":"IFERROR(IF(OR($C$67=FALSE,LEFT($B66,3)<>\"NOX\"),CS58*INDEX('Damage costs'!$O$16:$O$43,MATCH($B66,'Damage costs'!$C$16:$C$43,0))/1000,CS58*INDEX('Damage costs'!$S$16:$S$43,MATCH($B66,'Damage costs'!$C$16:$C$43,0))/1000),\"\")","v":""},{"$f":"IFERROR(IF(OR($C$67=FALSE,LEFT($B66,3)<>\"NOX\"),CT58*INDEX('Damage costs'!$O$16:$O$43,MATCH($B66,'Damage costs'!$C$16:$C$43,0))/1000,CT58*INDEX('Damage costs'!$S$16:$S$43,MATCH($B66,'Damage costs'!$C$16:$C$43,0))/1000),\"\")","v":""},{"$f":"IFERROR(IF(OR($C$67=FALSE,LEFT($B66,3)<>\"NOX\"),CU58*INDEX('Damage costs'!$O$16:$O$43,MATCH($B66,'Damage costs'!$C$16:$C$43,0))/1000,CU58*INDEX('Damage costs'!$S$16:$S$43,MATCH($B66,'Damage costs'!$C$16:$C$43,0))/1000),\"\")","v":""},{"$f":"IFERROR(IF(OR($C$67=FALSE,LEFT($B66,3)<>\"NOX\"),CV58*INDEX('Damage costs'!$O$16:$O$43,MATCH($B66,'Damage costs'!$C$16:$C$43,0))/1000,CV58*INDEX('Damage costs'!$S$16:$S$43,MATCH($B66,'Damage costs'!$C$16:$C$43,0))/1000),\"\")","v":""},{"$f":"IFERROR(IF(OR($C$67=FALSE,LEFT($B66,3)<>\"NOX\"),CW58*INDEX('Damage costs'!$O$16:$O$43,MATCH($B66,'Damage costs'!$C$16:$C$43,0))/1000,CW58*INDEX('Damage costs'!$S$16:$S$43,MATCH($B66,'Damage costs'!$C$16:$C$43,0))/1000),\"\")","v":""},{"$f":"IFERROR(IF(OR($C$67=FALSE,LEFT($B66,3)<>\"NOX\"),CX58*INDEX('Damage costs'!$O$16:$O$43,MATCH($B66,'Damage costs'!$C$16:$C$43,0))/1000,CX58*INDEX('Damage costs'!$S$16:$S$43,MATCH($B66,'Damage costs'!$C$16:$C$43,0))/1000),\"\")","v":""},{"$f":"IFERROR(IF(OR($C$67=FALSE,LEFT($B66,3)<>\"NOX\"),CY58*INDEX('Damage costs'!$O$16:$O$43,MATCH($B66,'Damage costs'!$C$16:$C$43,0))/1000,CY58*INDEX('Damage costs'!$S$16:$S$43,MATCH($B66,'Damage costs'!$C$16:$C$43,0))/1000),\"\")","v":""}]
[null,"PM10 Used",{"$f":"IF(OR(LEFT(B61,4)=\"PM10\",LEFT(B62,4)=\"PM10\",LEFT(B63,4)=\"PM10\",LEFT(B64,4)=\"PM10\",LEFT(B65,4)=\"PM10\",LEFT(B66,4)=\"PM10\"),TRUE,FALSE)","v":false}]
[]
[null,"Uplift pa","%",{"$f":"'Discount and deflators'!$H$5","v":0.02}]
[null,"Uplift factor",null,{"$f":"IF(D$6=0,0,(1+$D69)^(D$6-'Data Input - General'!$F$22))","v":1},{"$f":"IF(E$6=0,0,(1+$D69)^(E$6-'Data Input - General'!$F$22))","v":1.02},{"$f":"IF(F$6=0,0,(1+$D69)^(F$6-'Data Input - General'!$F$22))","v":1.0404},{"$f":"IF(G$6=0,0,(1+$D69)^(G$6-'Data Input - General'!$F$22))","v":1.0612079999999999},{"$f":"IF(H$6=0,0,(1+$D69)^(H$6-'Data Input - General'!$F$22))","v":1.08243216},{"$f":"IF(I$6=0,0,(1+$D69)^(I$6-'Data Input - General'!$F$22))","v":1.1040808032},{"$f":"IF(J$6=0,0,(1+$D69)^(J$6-'Data Input - General'!$F$22))","v":1.1261624192640001},{"$f":"IF(K$6=0,0,(1+$D69)^(K$6-'Data Input - General'!$F$22))","v":1.1486856676492798},{"$f":"IF(L$6=0,0,(1+$D69)^(L$6-'Data Input - General'!$F$22))","v":1.1716593810022655},{"$f":"IF(M$6=0,0,(1+$D69)^(M$6-'Data Input - General'!$F$22))","v":1.1950925686223108},{"$f":"IF(N$6=0,0,(1+$D69)^(N$6-'Data Input - General'!$F$22))","v":1.2189944199947571},{"$f":"IF(O$6=0,0,(1+$D69)^(O$6-'Data Input - General'!$F$22))","v":1.243374308394652},{"$f":"IF(P$6=0,0,(1+$D69)^(P$6-'Data Input - General'!$F$22))","v":1.2682417945625453},{"$f":"IF(Q$6=0,0,(1+$D69)^(Q$6-'Data Input - General'!$F$22))","v":1.2936066304537961},{"$f":"IF(R$6=0,0,(1+$D69)^(R$6-'Data Input - General'!$F$22))","v":1.3194787630628722},{"$f":"IF(S$6=0,0,(1+$D69)^(S$6-'Data Input - General'!$F$22))","v":1.3458683383241292},{"$f":"IF(T$6=0,0,(1+$D69)^(T$6-'Data Input - General'!$F$22))","v":1.372785705090612},{"$f":"IF(U$6=0,0,(1+$D69)^(U$6-'Data Input - General'!$F$22))","v":1.4002414191924244},{"$f":"IF(V$6=0,0,(1+$D69)^(V$6-'Data Input - General'!$F$22))","v":1.4282462475762727},{"$f":"IF(W$6=0,0,(1+$D69)^(W$6-'Data Input - General'!$F$22))","v":1.4568111725277981},{"$f":"IF(X$6=0,0,(1+$D69)^(X$6-'Data Input - General'!$F$22))","v":1.4859473959783542},{"$f":"IF(Y$6=0,0,(1+$D69)^(Y$6-'Data Input - General'!$F$22))","v":1.5156663438979212},{"$f":"IF(Z$6=0,0,(1+$D69)^(Z$6-'Data Input - General'!$F$22))","v":1.5459796707758797},{"$f":"IF(AA$6=0,0,(1+$D69)^(AA$6-'Data Input - General'!$F$22))","v":1.576899264191397},{"$f":"IF(AB$6=0,0,(1+$D69)^(AB$6-'Data Input - General'!$F$22))","v":1.608437249475225},{"$f":"IF(AC$6=0,0,(1+$D69)^(AC$6-'Data Input - General'!$F$22))","v":1.6406059944647295},{"$f":"IF(AD$6=0,0,(1+$D69)^(AD$6-'Data Input - General'!$F$22))","v":1.6734181143540243},{"$f":"IF(AE$6=0,0,(1+$D69)^(AE$6-'Data Input - General'!$F$22))","v":1.7068864766411045},{"$f":"IF(AF$6=0,0,(1+$D69)^(AF$6-'Data Input - General'!$F$22))","v":1.7410242061739269},{"$f":"IF(AG$6=0,0,(1+$D69)^(AG$6-'Data Input - General'!$F$22))","v":1.7758446902974052},{"$f":"IF(AH$6=0,0,(1+$D69)^(AH$6-'Data Input - General'!$F$22))","v":1.8113615841033535},{"$f":"IF(AI$6=0,0,(1+$D69)^(AI$6-'Data Input - General'!$F$22))","v":0},{"$f":"IF(AJ$6=0,0,(1+$D69)^(AJ$6-'Data Input - General'!$F$22))","v":0},{"$f":"IF(AK$6=0,0,(1+$D69)^(AK$6-'Data Input - General'!$F$22))","v":0},{"$f":"IF(AL$6=0,0,(1+$D69)^(AL$6-'Data Input - General'!$F$22))","v":0},{"$f":"IF(AM$6=0,0,(1+$D69)^(AM$6-'Data Input - General'!$F$22))","v":0},{"$f":"IF(AN$6=0,0,(1+$D69)^(AN$6-'Data Input - General'!$F$22))","v":0},{"$f":"IF(AO$6=0,0,(1+$D69)^(AO$6-'Data Input - General'!$F$22))","v":0},{"$f":"IF(AP$6=0,0,(1+$D69)^(AP$6-'Data Input - General'!$F$22))","v":0},{"$f":"IF(AQ$6=0,0,(1+$D69)^(AQ$6-'Data Input - General'!$F$22))","v":0},{"$f":"IF(AR$6=0,0,(1+$D69)^(AR$6-'Data Input - General'!$F$22))","v":0},{"$f":"IF(AS$6=0,0,(1+$D69)^(AS$6-'Data Input - General'!$F$22))","v":0},{"$f":"IF(AT$6=0,0,(1+$D69)^(AT$6-'Data Input - General'!$F$22))","v":0},{"$f":"IF(AU$6=0,0,(1+$D69)^(AU$6-'Data Input - General'!$F$22))","v":0},{"$f":"IF(AV$6=0,0,(1+$D69)^(AV$6-'Data Input - General'!$F$22))","v":0},{"$f":"IF(AW$6=0,0,(1+$D69)^(AW$6-'Data Input - General'!$F$22))","v":0},{"$f":"IF(AX$6=0,0,(1+$D69)^(AX$6-'Data Input - General'!$F$22))","v":0},{"$f":"IF(AY$6=0,0,(1+$D69)^(AY$6-'Data Input - General'!$F$22))","v":0},{"$f":"IF(AZ$6=0,0,(1+$D69)^(AZ$6-'Data Input - General'!$F$22))","v":0},{"$f":"IF(BA$6=0,0,(1+$D69)^(BA$6-'Data Input - General'!$F$22))","v":0},{"$f":"IF(BB$6=0,0,(1+$D69)^(BB$6-'Data Input - General'!$F$22))","v":0},{"$f":"IF(BC$6=0,0,(1+$D69)^(BC$6-'Data Input - General'!$F$22))","v":0},{"$f":"IF(BD$6=0,0,(1+$D69)^(BD$6-'Data Input - General'!$F$22))","v":0},{"$f":"IF(BE$6=0,0,(1+$D69)^(BE$6-'Data Input - General'!$F$22))","v":0},{"$f":"IF(BF$6=0,0,(1+$D69)^(BF$6-'Data Input - General'!$F$22))","v":0},{"$f":"IF(BG$6=0,0,(1+$D69)^(BG$6-'Data Input - General'!$F$22))","v":0},{"$f":"IF(BH$6=0,0,(1+$D69)^(BH$6-'Data Input - General'!$F$22))","v":0},{"$f":"IF(BI$6=0,0,(1+$D69)^(BI$6-'Data Input - General'!$F$22))","v":0},{"$f":"IF(BJ$6=0,0,(1+$D69)^(BJ$6-'Data Input - General'!$F$22))","v":0},{"$f":"IF(BK$6=0,0,(1+$D69)^(BK$6-'Data Input - General'!$F$22))","v":0},{"$f":"IF(BL$6=0,0,(1+$D69)^(BL$6-'Data Input - General'!$F$22))","v":0},{"$f":"IF(BM$6=0,0,(1+$D69)^(BM$6-'Data Input - General'!$F$22))","v":0},{"$f":"IF(BN$6=0,0,(1+$D69)^(BN$6-'Data Input - General'!$F$22))","v":0},{"$f":"IF(BO$6=0,0,(1+$D69)^(BO$6-'Data Input - General'!$F$22))","v":0},{"$f":"IF(BP$6=0,0,(1+$D69)^(BP$6-'Data Input - General'!$F$22))","v":0},{"$f":"IF(BQ$6=0,0,(1+$D69)^(BQ$6-'Data Input - General'!$F$22))","v":0},{"$f":"IF(BR$6=0,0,(1+$D69)^(BR$6-'Data Input - General'!$F$22))","v":0},{"$f":"IF(BS$6=0,0,(1+$D69)^(BS$6-'Data Input - General'!$F$22))","v":0},{"$f":"IF(BT$6=0,0,(1+$D69)^(BT$6-'Data Input - General'!$F$22))","v":0},{"$f":"IF(BU$6=0,0,(1+$D69)^(BU$6-'Data Input - General'!$F$22))","v":0},{"$f":"IF(BV$6=0,0,(1+$D69)^(BV$6-'Data Input - General'!$F$22))","v":0},{"$f":"IF(BW$6=0,0,(1+$D69)^(BW$6-'Data Input - General'!$F$22))","v":0},{"$f":"IF(BX$6=0,0,(1+$D69)^(BX$6-'Data Input - General'!$F$22))","v":0},{"$f":"IF(BY$6=0,0,(1+$D69)^(BY$6-'Data Input - General'!$F$22))","v":0},{"$f":"IF(BZ$6=0,0,(1+$D69)^(BZ$6-'Data Input - General'!$F$22))","v":0},{"$f":"IF(CA$6=0,0,(1+$D69)^(CA$6-'Data Input - General'!$F$22))","v":0},{"$f":"IF(CB$6=0,0,(1+$D69)^(CB$6-'Data Input - General'!$F$22))","v":0},{"$f":"IF(CC$6=0,0,(1+$D69)^(CC$6-'Data Input - General'!$F$22))","v":0},{"$f":"IF(CD$6=0,0,(1+$D69)^(CD$6-'Data Input - General'!$F$22))","v":0},{"$f":"IF(CE$6=0,0,(1+$D69)^(CE$6-'Data Input - General'!$F$22))","v":0},{"$f":"IF(CF$6=0,0,(1+$D69)^(CF$6-'Data Input - General'!$F$22))","v":0},{"$f":"IF(CG$6=0,0,(1+$D69)^(CG$6-'Data Input - General'!$F$22))","v":0},{"$f":"IF(CH$6=0,0,(1+$D69)^(CH$6-'Data Input - General'!$F$22))","v":0},{"$f":"IF(CI$6=0,0,(1+$D69)^(CI$6-'Data Input - General'!$F$22))","v":0},{"$f":"IF(CJ$6=0,0,(1+$D69)^(CJ$6-'Data Input - General'!$F$22))","v":0},{"$f":"IF(CK$6=0,0,(1+$D69)^(CK$6-'Data Input - General'!$F$22))","v":0},{"$f":"IF(CL$6=0,0,(1+$D69)^(CL$6-'Data Input - General'!$F$22))","v":0},{"$f":"IF(CM$6=0,0,(1+$D69)^(CM$6-'Data Input - General'!$F$22))","v":0},{"$f":"IF(CN$6=0,0,(1+$D69)^(CN$6-'Data Input - General'!$F$22))","v":0},{"$f":"IF(CO$6=0,0,(1+$D69)^(CO$6-'Data Input - General'!$F$22))","v":0},{"$f":"IF(CP$6=0,0,(1+$D69)^(CP$6-'Data Input - General'!$F$22))","v":0},{"$f":"IF(CQ$6=0,0,(1+$D69)^(CQ$6-'Data Input - General'!$F$22))","v":0},{"$f":"IF(CR$6=0,0,(1+$D69)^(CR$6-'Data Input - General'!$F$22))","v":0},{"$f":"IF(CS$6=0,0,(1+$D69)^(CS$6-'Data Input - General'!$F$22))","v":0},{"$f":"IF(CT$6=0,0,(1+$D69)^(CT$6-'Data Input - General'!$F$22))","v":0},{"$f":"IF(CU$6=0,0,(1+$D69)^(CU$6-'Data Input - General'!$F$22))","v":0},{"$f":"IF(CV$6=0,0,(1+$D69)^(CV$6-'Data Input - General'!$F$22))","v":0},{"$f":"IF(CW$6=0,0,(1+$D69)^(CW$6-'Data Input - General'!$F$22))","v":0},{"$f":"IF(CX$6=0,0,(1+$D69)^(CX$6-'Data Input - General'!$F$22))","v":0},{"$f":"IF(CY$6=0,0,(1+$D69)^(CY$6-'Data Input - General'!$F$22))","v":0}]
[null,"Total value","£000's",{"$f":"SUM(D61:D66)*D70","v":6.7435895540131199},{"$f":"SUM(E61:E66)*E70","v":6.878461345093382},{"$f":"SUM(F61:F66)*F70","v":7.01603057199525},{"$f":"SUM(G61:G66)*G70","v":7.1563511834351541},7.2994782071038582,7.4454677712459354,7.594377126670854,0,0,0,0,0,0,0,0,0,0,0,0,0,0,0,0,0,0,0,0,0,0,0,0,0,{"$f":"SUM(AJ61:AJ66)*AJ70","v":0},0,0,0,0,0,0,0,0,0,0,0,0,0,0,0,0,0,0,0,0,0,0,0,0,0,0,0,{"$f":"SUM(BL61:BL66)*BL70","v":0},0,0,0,0,0,0,0,0,0,0,0,0,0,0,0,0,0,0,0,0,0,0,0,0,0,0,0,0,0,0,0,0,0,0,0,0,0,0,0]
[null,"Discounted total value","£000's",{"$f":"D71*D$7","v":6.7435895540131199},{"$f":"E71*E$7","v":6.6458563720709014},{"$f":"F71*F$7","v":6.5495396130553809},6.4546187490980564,6.3610735498357673,6.2688840780990169,6.1780306856628,0,0,0,0,0,0,0,0,0,0,0,0,0,0,0,0,0,0,0,0,0,0,0,0,0,0,0,0,0,0,0,0,0,0,0,0,0,0,0,0,0,0,0,0,0,0,0,0,0,0,0,0,0,0,0,0,0,0,0,{"$f":"BR71*BR$7","v":0},0,0,0,0,0,0,0,0,0,0,0,0,0,0,0,0,0,0,0,0,0,0,0,0,0,0,0,0,0,0,0,0,0]
[]
[null,"Greenhouse gas emissions (not associated with fuel use)"]
[null,"Emissions","tCO2e",{"$f":"'Data Input - BAU'!H117","v":45000},{"$f":"'Data Input - BAU'!I117","v":45000},{"$f":"'Data Input - BAU'!J117","v":45000},{"$f":"'Data Input - BAU'!K117","v":45000},{"$f":"'Data Input - BAU'!L117","v":45000},{"$f":"'Data Input - BAU'!M117","v":45000},{"$f":"'Data Input - BAU'!N117","v":45000},{"$f":"'Data Input - BAU'!O117","v":0},{"$f":"'Data Input - BAU'!P117","v":0},{"$f":"'Data Input - BAU'!Q117","v":0},{"$f":"'Data Input - BAU'!R117","v":0},{"$f":"'Data Input - BAU'!S117","v":0},{"$f":"'Data Input - BAU'!T117","v":0},{"$f":"'Data Input - BAU'!U117","v":0},{"$f":"'Data Input - BAU'!V117","v":0},{"$f":"'Data Input - BAU'!W117","v":0},{"$f":"'Data Input - BAU'!X117","v":0},{"$f":"'Data Input - BAU'!Y117","v":0},{"$f":"'Data Input - BAU'!Z117","v":0},{"$f":"'Data Input - BAU'!AA117","v":0},{"$f":"'Data Input - BAU'!AB117","v":0},{"$f":"'Data Input - BAU'!AC117","v":0},{"$f":"'Data Input - BAU'!AD117","v":0},{"$f":"'Data Input - BAU'!AE117","v":0},{"$f":"'Data Input - BAU'!AF117","v":0},{"$f":"'Data Input - BAU'!AG117","v":0},{"$f":"'Data Input - BAU'!AH117","v":0},{"$f":"'Data Input - BAU'!AI117","v":0},{"$f":"'Data Input - BAU'!AJ117","v":0},{"$f":"'Data Input - BAU'!AK117","v":0},{"$f":"'Data Input - BAU'!AL117","v":0},{"$f":"'Data Input - BAU'!AM117","v":0},{"$f":"'Data Input - BAU'!AN117","v":0},{"$f":"'Data Input - BAU'!AO117","v":0},{"$f":"'Data Input - BAU'!AP117","v":0},{"$f":"'Data Input - BAU'!AQ117","v":0},{"$f":"'Data Input - BAU'!AR117","v":0},{"$f":"'Data Input - BAU'!AS117","v":0},{"$f":"'Data Input - BAU'!AT117","v":0},{"$f":"'Data Input - BAU'!AU117","v":0},{"$f":"'Data Input - BAU'!AV117","v":0},{"$f":"'Data Input - BAU'!AW117","v":0},{"$f":"'Data Input - BAU'!AX117","v":0},{"$f":"'Data Input - BAU'!AY117","v":0},{"$f":"'Data Input - BAU'!AZ117","v":0},{"$f":"'Data Input - BAU'!BA117","v":0},{"$f":"'Data Input - BAU'!BB117","v":0},{"$f":"'Data Input - BAU'!BC117","v":0},{"$f":"'Data Input - BAU'!BD117","v":0},{"$f":"'Data Input - BAU'!BE117","v":0},{"$f":"'Data Input - BAU'!BF117","v":0},{"$f":"'Data Input - BAU'!BG117","v":0},{"$f":"'Data Input - BAU'!BH117","v":0},{"$f":"'Data Input - BAU'!BI117","v":0},{"$f":"'Data Input - BAU'!BJ117","v":0},{"$f":"'Data Input - BAU'!BK117","v":0},{"$f":"'Data Input - BAU'!BL117","v":0},{"$f":"'Data Input - BAU'!BM117","v":0},{"$f":"'Data Input - BAU'!BN117","v":0},{"$f":"'Data Input - BAU'!BO117","v":0},{"$f":"'Data Input - BAU'!BP117","v":0},{"$f":"'Data Input - BAU'!BQ117","v":0},{"$f":"'Data Input - BAU'!BR117","v":0},{"$f":"'Data Input - BAU'!BS117","v":0},{"$f":"'Data Input - BAU'!BT117","v":0},{"$f":"'Data Input - BAU'!BU117","v":0},{"$f":"'Data Input - BAU'!BV117","v":0},{"$f":"'Data Input - BAU'!BW117","v":0},{"$f":"'Data Input - BAU'!BX117","v":0},{"$f":"'Data Input - BAU'!BY117","v":0},{"$f":"'Data Input - BAU'!BZ117","v":0},{"$f":"'Data Input - BAU'!CA117","v":0},{"$f":"'Data Input - BAU'!CB117","v":0},{"$f":"'Data Input - BAU'!CC117","v":0},{"$f":"'Data Input - BAU'!CD117","v":0},{"$f":"'Data Input - BAU'!CE117","v":0},{"$f":"'Data Input - BAU'!CF117","v":0},{"$f":"'Data Input - BAU'!CG117","v":0},{"$f":"'Data Input - BAU'!CH117","v":0},{"$f":"'Data Input - BAU'!CI117","v":0},{"$f":"'Data Input - BAU'!CJ117","v":0},{"$f":"'Data Input - BAU'!CK117","v":0},{"$f":"'Data Input - BAU'!CL117","v":0},{"$f":"'Data Input - BAU'!CM117","v":0},{"$f":"'Data Input - BAU'!CN117","v":0},{"$f":"'Data Input - BAU'!CO117","v":0},{"$f":"'Data Input - BAU'!CP117","v":0},{"$f":"'Data Input - BAU'!CQ117","v":0},{"$f":"'Data Input - BAU'!CR117","v":0},{"$f":"'Data Input - BAU'!CS117","v":0},{"$f":"'Data Input - BAU'!CT117","v":0},{"$f":"'Data Input - BAU'!CU117","v":0},{"$f":"'Data Input - BAU'!CV117","v":0},{"$f":"'Data Input - BAU'!CW117","v":0},{"$f":"'Data Input - BAU'!CX117","v":0},{"$f":"'Data Input - BAU'!CY117","v":0},{"$f":"'Data Input - BAU'!CZ117","v":0},{"$f":"'Data Input - BAU'!DA117","v":0},{"$f":"'Data Input - BAU'!DB117","v":0},{"$f":"'Data Input - BAU'!DC117","v":0}]
[null,"Unit value","£000's",{"$f":"IFERROR(IF('Data Input - General'!$F$12=\"Yes\",HLOOKUP(Calc_BAU!D$6,'Carbon Prices'!$D$9:$CP$15,3,FALSE),HLOOKUP(Calc_BAU!D$6,'Carbon Prices'!$D$9:$CP$15,6,FALSE)),0)","v":6.8248086829049139},{"$f":"IFERROR(IF('Data Input - General'!$F$12=\"Yes\",HLOOKUP(Calc_BAU!E$6,'Carbon Prices'!$D$9:$CP$15,3,FALSE),HLOOKUP(Calc_BAU!E$6,'Carbon Prices'!$D$9:$CP$15,6,FALSE)),0)","v":7.0841514128553005},{"$f":"IFERROR(IF('Data Input - General'!$F$12=\"Yes\",HLOOKUP(Calc_BAU!F$6,'Carbon Prices'!$D$9:$CP$15,3,FALSE),HLOOKUP(Calc_BAU!F$6,'Carbon Prices'!$D$9:$CP$15,6,FALSE)),0)","v":14.809366678834097},{"$f":"IFERROR(IF('Data Input - General'!$F$12=\"Yes\",HLOOKUP(Calc_BAU!G$6,'Carbon Prices'!$D$9:$CP$15,3,FALSE),HLOOKUP(Calc_BAU!G$6,'Carbon Prices'!$D$9:$CP$15,6,FALSE)),0)","v":22.534581944812892},{"$f":"IFERROR(IF('Data Input - General'!$F$12=\"Yes\",HLOOKUP(Calc_BAU!H$6,'Carbon Prices'!$D$9:$CP$15,3,FALSE),HLOOKUP(Calc_BAU!H$6,'Carbon Prices'!$D$9:$CP$15,6,FALSE)),0)","v":30.259797210791689},{"$f":"IFERROR(IF('Data Input - General'!$F$12=\"Yes\",HLOOKUP(Calc_BAU!I$6,'Carbon Prices'!$D$9:$CP$15,3,FALSE),HLOOKUP(Calc_BAU!I$6,'Carbon Prices'!$D$9:$CP$15,6,FALSE)),0)","v":37.985012476770486},{"$f":"IFERROR(IF('Data Input - General'!$F$12=\"Yes\",HLOOKUP(Calc_BAU!J$6,'Carbon Prices'!$D$9:$CP$15,3,FALSE),HLOOKUP(Calc_BAU!J$6,'Carbon Prices'!$D$9:$CP$15,6,FALSE)),0)","v":45.710227742749282},{"$f":"IFERROR(IF('Data Input - General'!$F$12=\"Yes\",HLOOKUP(Calc_BAU!K$6,'Carbon Prices'!$D$9:$CP$15,3,FALSE),HLOOKUP(Calc_BAU!K$6,'Carbon Prices'!$D$9:$CP$15,6,FALSE)),0)","v":53.435443008728079},{"$f":"IFERROR(IF('Data Input - General'!$F$12=\"Yes\",HLOOKUP(Calc_BAU!L$6,'Carbon Prices'!$D$9:$CP$15,3,FALSE),HLOOKUP(Calc_BAU!L$6,'Carbon Prices'!$D$9:$CP$15,6,FALSE)),0)","v":61.160658274706876},{"$f":"IFERROR(IF('Data Input - General'!$F$12=\"Yes\",HLOOKUP(Calc_BAU!M$6,'Carbon Prices'!$D$9:$CP$15,3,FALSE),HLOOKUP(Calc_BAU!M$6,'Carbon Prices'!$D$9:$CP$15,6,FALSE)),0)","v":68.885873540685665},{"$f":"IFERROR(IF('Data Input - General'!$F$12=\"Yes\",HLOOKUP(Calc_BAU!N$6,'Carbon Prices'!$D$9:$CP$15,3,FALSE),HLOOKUP(Calc_BAU!N$6,'Carbon Prices'!$D$9:$CP$15,6,FALSE)),0)","v":76.611088806664469},{"$f":"IFERROR(IF('Data Input - General'!$F$12=\"Yes\",HLOOKUP(Calc_BAU!O$6,'Carbon Prices'!$D$9:$CP$15,3,FALSE),HLOOKUP(Calc_BAU!O$6,'Carbon Prices'!$D$9:$CP$15,6,FALSE)),0)","v":84.336304072643259},{"$f":"IFERROR(IF('Data Input - General'!$F$12=\"Yes\",HLOOKUP(Calc_BAU!P$6,'Carbon Prices'!$D$9:$CP$15,3,FALSE),HLOOKUP(Calc_BAU!P$6,'Carbon Prices'!$D$9:$CP$15,6,FALSE)),0)","v":92.167532307960172},{"$f":"IFERROR(IF('Data Input - General'!$F$12=\"Yes\",HLOOKUP(Calc_BAU!Q$6,'Carbon Prices'!$D$9:$CP$15,3,FALSE),HLOOKUP(Calc_BAU!Q$6,'Carbon Prices'!$D$9:$CP$15,6,FALSE)),0)","v":99.998760543277044},{"$f":"IFERROR(IF('Data Input - General'!$F$12=\"Yes\",HLOOKUP(Calc_BAU!R$6,'Carbon Prices'!$D$9:$CP$15,3,FALSE),HLOOKUP(Calc_BAU!R$6,'Carbon Prices'!$D$9:$CP$15,6,FALSE)),0)","v":107.82998877859391},{"$f":"IFERROR(IF('Data Input - General'!$F$12=\"Yes\",HLOOKUP(Calc_BAU!S$6,'Carbon Prices'!$D$9:$CP$15,3,FALSE),HLOOKUP(Calc_BAU!S$6,'Carbon Prices'!$D$9:$CP$15,6,FALSE)),0)","v":115.6612170139108},{"$f":"IFERROR(IF('Data Input - General'!$F$12=\"Yes\",HLOOKUP(Calc_BAU!T$6,'Carbon Prices'!$D$9:$CP$15,3,FALSE),HLOOKUP(Calc_BAU!T$6,'Carbon Prices'!$D$9:$CP$15,6,FALSE)),0)","v":123.49244524922767},{"$f":"IFERROR(IF('Data Input - General'!$F$12=\"Yes\",HLOOKUP(Calc_BAU!U$6,'Carbon Prices'!$D$9:$CP$15,3,FALSE),HLOOKUP(Calc_BAU!U$6,'Carbon Prices'!$D$9:$CP$15,6,FALSE)),0)","v":131.32367348454454},{"$f":"IFERROR(IF('Data Input - General'!$F$12=\"Yes\",HLOOKUP(Calc_BAU!V$6,'Carbon Prices'!$D$9:$CP$15,3,FALSE),HLOOKUP(Calc_BAU!V$6,'Carbon Prices'!$D$9:$CP$15,6,FALSE)),0)","v":139.15490171986141},{"$f":"IFERROR(IF('Data Input - General'!$F$12=\"Yes\",HLOOKUP(Calc_BAU!W$6,'Carbon Prices'!$D$9:$CP$15,3,FALSE),HLOOKUP(Calc_BAU!W$6,'Carbon Prices'!$D$9:$CP$15,6,FALSE)),0)","v":146.98612995517828},{"$f":"IFERROR(IF('Data Input - General'!$F$12=\"Yes\",HLOOKUP(Calc_BAU!X$6,'Carbon Prices'!$D$9:$CP$15,3,FALSE),HLOOKUP(Calc_BAU!X$6,'Carbon Prices'!$D$9:$CP$15,6,FALSE)),0)","v":154.81735819049521},{"$f":"IFERROR(IF('Data Input - General'!$F$12=\"Yes\",HLOOKUP(Calc_BAU!Y$6,'Carbon Prices'!$D$9:$CP$15,3,FALSE),HLOOKUP(Calc_BAU!Y$6,'Carbon Prices'!$D$9:$CP$15,6,FALSE)),0)","v":162.64858642581208},{"$f":"IFERROR(IF('Data Input - General'!$F$12=\"Yes\",HLOOKUP(Calc_BAU!Z$6,'Carbon Prices'!$D$9:$CP$15,3,FALSE),HLOOKUP(Calc_BAU!Z$6,'Carbon Prices'!$D$9:$CP$15,6,FALSE)),0)","v":170.47981466112896},{"$f":"IFERROR(IF('Data Input - General'!$F$12=\"Yes\",HLOOKUP(Calc_BAU!AA$6,'Carbon Prices'!$D$9:$CP$15,3,FALSE),HLOOKUP(Calc_BAU!AA$6,'Carbon Prices'!$D$9:$CP$15,6,FALSE)),0)","v":178.31104289644583},{"$f":"IFERROR(IF('Data Input - General'!$F$12=\"Yes\",HLOOKUP(Calc_BAU!AB$6,'Carbon Prices'!$D$9:$CP$15,3,FALSE),HLOOKUP(Calc_BAU!AB$6,'Carbon Prices'!$D$9:$CP$15,6,FALSE)),0)","v":186.1422711317627},{"$f":"IFERROR(IF('Data Input - General'!$F$12=\"Yes\",HLOOKUP(Calc_BAU!AC$6,'Carbon Prices'!$D$9:$CP$15,3,FALSE),HLOOKUP(Calc_BAU!AC$6,'Carbon Prices'!$D$9:$CP$15,6,FALSE)),0)","v":193.97349936707957},{"$f":"IFERROR(IF('Data Input - General'!$F$12=\"Yes\",HLOOKUP(Calc_BAU!AD$6,'Carbon Prices'!$D$9:$CP$15,3,FALSE),HLOOKUP(Calc_BAU!AD$6,'Carbon Prices'!$D$9:$CP$15,6,FALSE)),0)","v":201.80472760239644},{"$f":"IFERROR(IF('Data Input - General'!$F$12=\"Yes\",HLOOKUP(Calc_BAU!AE$6,'Carbon Prices'!$D$9:$CP$15,3,FALSE),HLOOKUP(Calc_BAU!AE$6,'Carbon Prices'!$D$9:$CP$15,6,FALSE)),0)","v":209.63595583771331},{"$f":"IFERROR(IF('Data Input - General'!$F$12=\"Yes\",HLOOKUP(Calc_BAU!AF$6,'Carbon Prices'!$D$9:$CP$15,3,FALSE),HLOOKUP(Calc_BAU!AF$6,'Carbon Prices'!$D$9:$CP$15,6,FALSE)),0)","v":217.46718407303021},{"$f":"IFERROR(IF('Data Input - General'!$F$12=\"Yes\",HLOOKUP(Calc_BAU!AG$6,'Carbon Prices'!$D$9:$CP$15,3,FALSE),HLOOKUP(Calc_BAU!AG$6,'Carbon Prices'!$D$9:$CP$15,6,FALSE)),0)","v":225.29841230834708},{"$f":"IFERROR(IF('Data Input - General'!$F$12=\"Yes\",HLOOKUP(Calc_BAU!AH$6,'Carbon Prices'!$D$9:$CP$15,3,FALSE),HLOOKUP(Calc_BAU!AH$6,'Carbon Prices'!$D$9:$CP$15,6,FALSE)),0)","v":233.12964054366395},{"$f":"IFERROR(IF('Data Input - General'!$F$12=\"Yes\",HLOOKUP(Calc_BAU!AI$6,'Carbon Prices'!$D$9:$CP$15,3,FALSE),HLOOKUP(Calc_BAU!AI$6,'Carbon Prices'!$D$9:$CP$15,6,FALSE)),0)","v":0},{"$f":"IFERROR(IF('Data Input - General'!$F$12=\"Yes\",HLOOKUP(Calc_BAU!AJ$6,'Carbon Prices'!$D$9:$CP$15,3,FALSE),HLOOKUP(Calc_BAU!AJ$6,'Carbon Prices'!$D$9:$CP$15,6,FALSE)),0)","v":0},{"$f":"IFERROR(IF('Data Input - General'!$F$12=\"Yes\",HLOOKUP(Calc_BAU!AK$6,'Carbon Prices'!$D$9:$CP$15,3,FALSE),HLOOKUP(Calc_BAU!AK$6,'Carbon Prices'!$D$9:$CP$15,6,FALSE)),0)","v":0},{"$f":"IFERROR(IF('Data Input - General'!$F$12=\"Yes\",HLOOKUP(Calc_BAU!AL$6,'Carbon Prices'!$D$9:$CP$15,3,FALSE),HLOOKUP(Calc_BAU!AL$6,'Carbon Prices'!$D$9:$CP$15,6,FALSE)),0)","v":0},{"$f":"IFERROR(IF('Data Input - General'!$F$12=\"Yes\",HLOOKUP(Calc_BAU!AM$6,'Carbon Prices'!$D$9:$CP$15,3,FALSE),HLOOKUP(Calc_BAU!AM$6,'Carbon Prices'!$D$9:$CP$15,6,FALSE)),0)","v":0},{"$f":"IFERROR(IF('Data Input - General'!$F$12=\"Yes\",HLOOKUP(Calc_BAU!AN$6,'Carbon Prices'!$D$9:$CP$15,3,FALSE),HLOOKUP(Calc_BAU!AN$6,'Carbon Prices'!$D$9:$CP$15,6,FALSE)),0)","v":0},{"$f":"IFERROR(IF('Data Input - General'!$F$12=\"Yes\",HLOOKUP(Calc_BAU!AO$6,'Carbon Prices'!$D$9:$CP$15,3,FALSE),HLOOKUP(Calc_BAU!AO$6,'Carbon Prices'!$D$9:$CP$15,6,FALSE)),0)","v":0},{"$f":"IFERROR(IF('Data Input - General'!$F$12=\"Yes\",HLOOKUP(Calc_BAU!AP$6,'Carbon Prices'!$D$9:$CP$15,3,FALSE),HLOOKUP(Calc_BAU!AP$6,'Carbon Prices'!$D$9:$CP$15,6,FALSE)),0)","v":0},{"$f":"IFERROR(IF('Data Input - General'!$F$12=\"Yes\",HLOOKUP(Calc_BAU!AQ$6,'Carbon Prices'!$D$9:$CP$15,3,FALSE),HLOOKUP(Calc_BAU!AQ$6,'Carbon Prices'!$D$9:$CP$15,6,FALSE)),0)","v":0},{"$f":"IFERROR(IF('Data Input - General'!$F$12=\"Yes\",HLOOKUP(Calc_BAU!AR$6,'Carbon Prices'!$D$9:$CP$15,3,FALSE),HLOOKUP(Calc_BAU!AR$6,'Carbon Prices'!$D$9:$CP$15,6,FALSE)),0)","v":0},{"$f":"IFERROR(IF('Data Input - General'!$F$12=\"Yes\",HLOOKUP(Calc_BAU!AS$6,'Carbon Prices'!$D$9:$CP$15,3,FALSE),HLOOKUP(Calc_BAU!AS$6,'Carbon Prices'!$D$9:$CP$15,6,FALSE)),0)","v":0},{"$f":"IFERROR(IF('Data Input - General'!$F$12=\"Yes\",HLOOKUP(Calc_BAU!AT$6,'Carbon Prices'!$D$9:$CP$15,3,FALSE),HLOOKUP(Calc_BAU!AT$6,'Carbon Prices'!$D$9:$CP$15,6,FALSE)),0)","v":0},{"$f":"IFERROR(IF('Data Input - General'!$F$12=\"Yes\",HLOOKUP(Calc_BAU!AU$6,'Carbon Prices'!$D$9:$CP$15,3,FALSE),HLOOKUP(Calc_BAU!AU$6,'Carbon Prices'!$D$9:$CP$15,6,FALSE)),0)","v":0},{"$f":"IFERROR(IF('Data Input - General'!$F$12=\"Yes\",HLOOKUP(Calc_BAU!AV$6,'Carbon Prices'!$D$9:$CP$15,3,FALSE),HLOOKUP(Calc_BAU!AV$6,'Carbon Prices'!$D$9:$CP$15,6,FALSE)),0)","v":0},{"$f":"IFERROR(IF('Data Input - General'!$F$12=\"Yes\",HLOOKUP(Calc_BAU!AW$6,'Carbon Prices'!$D$9:$CP$15,3,FALSE),HLOOKUP(Calc_BAU!AW$6,'Carbon Prices'!$D$9:$CP$15,6,FALSE)),0)","v":0},{"$f":"IFERROR(IF('Data Input - General'!$F$12=\"Yes\",HLOOKUP(Calc_BAU!AX$6,'Carbon Prices'!$D$9:$CP$15,3,FALSE),HLOOKUP(Calc_BAU!AX$6,'Carbon Prices'!$D$9:$CP$15,6,FALSE)),0)","v":0},{"$f":"IFERROR(IF('Data Input - General'!$F$12=\"Yes\",HLOOKUP(Calc_BAU!AY$6,'Carbon Prices'!$D$9:$CP$15,3,FALSE),HLOOKUP(Calc_BAU!AY$6,'Carbon Prices'!$D$9:$CP$15,6,FALSE)),0)","v":0},{"$f":"IFERROR(IF('Data Input - General'!$F$12=\"Yes\",HLOOKUP(Calc_BAU!AZ$6,'Carbon Prices'!$D$9:$CP$15,3,FALSE),HLOOKUP(Calc_BAU!AZ$6,'Carbon Prices'!$D$9:$CP$15,6,FALSE)),0)","v":0},{"$f":"IFERROR(IF('Data Input - General'!$F$12=\"Yes\",HLOOKUP(Calc_BAU!BA$6,'Carbon Prices'!$D$9:$CP$15,3,FALSE),HLOOKUP(Calc_BAU!BA$6,'Carbon Prices'!$D$9:$CP$15,6,FALSE)),0)","v":0},{"$f":"IFERROR(IF('Data Input - General'!$F$12=\"Yes\",HLOOKUP(Calc_BAU!BB$6,'Carbon Prices'!$D$9:$CP$15,3,FALSE),HLOOKUP(Calc_BAU!BB$6,'Carbon Prices'!$D$9:$CP$15,6,FALSE)),0)","v":0},{"$f":"IFERROR(IF('Data Input - General'!$F$12=\"Yes\",HLOOKUP(Calc_BAU!BC$6,'Carbon Prices'!$D$9:$CP$15,3,FALSE),HLOOKUP(Calc_BAU!BC$6,'Carbon Prices'!$D$9:$CP$15,6,FALSE)),0)","v":0},{"$f":"IFERROR(IF('Data Input - General'!$F$12=\"Yes\",HLOOKUP(Calc_BAU!BD$6,'Carbon Prices'!$D$9:$CP$15,3,FALSE),HLOOKUP(Calc_BAU!BD$6,'Carbon Prices'!$D$9:$CP$15,6,FALSE)),0)","v":0},{"$f":"IFERROR(IF('Data Input - General'!$F$12=\"Yes\",HLOOKUP(Calc_BAU!BE$6,'Carbon Prices'!$D$9:$CP$15,3,FALSE),HLOOKUP(Calc_BAU!BE$6,'Carbon Prices'!$D$9:$CP$15,6,FALSE)),0)","v":0},{"$f":"IFERROR(IF('Data Input - General'!$F$12=\"Yes\",HLOOKUP(Calc_BAU!BF$6,'Carbon Prices'!$D$9:$CP$15,3,FALSE),HLOOKUP(Calc_BAU!BF$6,'Carbon Prices'!$D$9:$CP$15,6,FALSE)),0)","v":0},{"$f":"IFERROR(IF('Data Input - General'!$F$12=\"Yes\",HLOOKUP(Calc_BAU!BG$6,'Carbon Prices'!$D$9:$CP$15,3,FALSE),HLOOKUP(Calc_BAU!BG$6,'Carbon Prices'!$D$9:$CP$15,6,FALSE)),0)","v":0},{"$f":"IFERROR(IF('Data Input - General'!$F$12=\"Yes\",HLOOKUP(Calc_BAU!BH$6,'Carbon Prices'!$D$9:$CP$15,3,FALSE),HLOOKUP(Calc_BAU!BH$6,'Carbon Prices'!$D$9:$CP$15,6,FALSE)),0)","v":0},{"$f":"IFERROR(IF('Data Input - General'!$F$12=\"Yes\",HLOOKUP(Calc_BAU!BI$6,'Carbon Prices'!$D$9:$CP$15,3,FALSE),HLOOKUP(Calc_BAU!BI$6,'Carbon Prices'!$D$9:$CP$15,6,FALSE)),0)","v":0},{"$f":"IFERROR(IF('Data Input - General'!$F$12=\"Yes\",HLOOKUP(Calc_BAU!BJ$6,'Carbon Prices'!$D$9:$CP$15,3,FALSE),HLOOKUP(Calc_BAU!BJ$6,'Carbon Prices'!$D$9:$CP$15,6,FALSE)),0)","v":0},{"$f":"IFERROR(IF('Data Input - General'!$F$12=\"Yes\",HLOOKUP(Calc_BAU!BK$6,'Carbon Prices'!$D$9:$CP$15,3,FALSE),HLOOKUP(Calc_BAU!BK$6,'Carbon Prices'!$D$9:$CP$15,6,FALSE)),0)","v":0},{"$f":"IFERROR(IF('Data Input - General'!$F$12=\"Yes\",HLOOKUP(Calc_BAU!BL$6,'Carbon Prices'!$D$9:$CP$15,3,FALSE),HLOOKUP(Calc_BAU!BL$6,'Carbon Prices'!$D$9:$CP$15,6,FALSE)),0)","v":0},{"$f":"IFERROR(IF('Data Input - General'!$F$12=\"Yes\",HLOOKUP(Calc_BAU!BM$6,'Carbon Prices'!$D$9:$CP$15,3,FALSE),HLOOKUP(Calc_BAU!BM$6,'Carbon Prices'!$D$9:$CP$15,6,FALSE)),0)","v":0},{"$f":"IFERROR(IF('Data Input - General'!$F$12=\"Yes\",HLOOKUP(Calc_BAU!BN$6,'Carbon Prices'!$D$9:$CP$15,3,FALSE),HLOOKUP(Calc_BAU!BN$6,'Carbon Prices'!$D$9:$CP$15,6,FALSE)),0)","v":0},{"$f":"IFERROR(IF('Data Input - General'!$F$12=\"Yes\",HLOOKUP(Calc_BAU!BO$6,'Carbon Prices'!$D$9:$CP$15,3,FALSE),HLOOKUP(Calc_BAU!BO$6,'Carbon Prices'!$D$9:$CP$15,6,FALSE)),0)","v":0},{"$f":"IFERROR(IF('Data Input - General'!$F$12=\"Yes\",HLOOKUP(Calc_BAU!BP$6,'Carbon Prices'!$D$9:$CP$15,3,FALSE),HLOOKUP(Calc_BAU!BP$6,'Carbon Prices'!$D$9:$CP$15,6,FALSE)),0)","v":0},{"$f":"IFERROR(IF('Data Input - General'!$F$12=\"Yes\",HLOOKUP(Calc_BAU!BQ$6,'Carbon Prices'!$D$9:$CP$15,3,FALSE),HLOOKUP(Calc_BAU!BQ$6,'Carbon Prices'!$D$9:$CP$15,6,FALSE)),0)","v":0},{"$f":"IFERROR(IF('Data Input - General'!$F$12=\"Yes\",HLOOKUP(Calc_BAU!BR$6,'Carbon Prices'!$D$9:$CP$15,3,FALSE),HLOOKUP(Calc_BAU!BR$6,'Carbon Prices'!$D$9:$CP$15,6,FALSE)),0)","v":0},{"$f":"IFERROR(IF('Data Input - General'!$F$12=\"Yes\",HLOOKUP(Calc_BAU!BS$6,'Carbon Prices'!$D$9:$CP$15,3,FALSE),HLOOKUP(Calc_BAU!BS$6,'Carbon Prices'!$D$9:$CP$15,6,FALSE)),0)","v":0},{"$f":"IFERROR(IF('Data Input - General'!$F$12=\"Yes\",HLOOKUP(Calc_BAU!BT$6,'Carbon Prices'!$D$9:$CP$15,3,FALSE),HLOOKUP(Calc_BAU!BT$6,'Carbon Prices'!$D$9:$CP$15,6,FALSE)),0)","v":0},{"$f":"IFERROR(IF('Data Input - General'!$F$12=\"Yes\",HLOOKUP(Calc_BAU!BU$6,'Carbon Prices'!$D$9:$CP$15,3,FALSE),HLOOKUP(Calc_BAU!BU$6,'Carbon Prices'!$D$9:$CP$15,6,FALSE)),0)","v":0},{"$f":"IFERROR(IF('Data Input - General'!$F$12=\"Yes\",HLOOKUP(Calc_BAU!BV$6,'Carbon Prices'!$D$9:$CP$15,3,FALSE),HLOOKUP(Calc_BAU!BV$6,'Carbon Prices'!$D$9:$CP$15,6,FALSE)),0)","v":0},{"$f":"IFERROR(IF('Data Input - General'!$F$12=\"Yes\",HLOOKUP(Calc_BAU!BW$6,'Carbon Prices'!$D$9:$CP$15,3,FALSE),HLOOKUP(Calc_BAU!BW$6,'Carbon Prices'!$D$9:$CP$15,6,FALSE)),0)","v":0},{"$f":"IFERROR(IF('Data Input - General'!$F$12=\"Yes\",HLOOKUP(Calc_BAU!BX$6,'Carbon Prices'!$D$9:$CP$15,3,FALSE),HLOOKUP(Calc_BAU!BX$6,'Carbon Prices'!$D$9:$CP$15,6,FALSE)),0)","v":0},{"$f":"IFERROR(IF('Data Input - General'!$F$12=\"Yes\",HLOOKUP(Calc_BAU!BY$6,'Carbon Prices'!$D$9:$CP$15,3,FALSE),HLOOKUP(Calc_BAU!BY$6,'Carbon Prices'!$D$9:$CP$15,6,FALSE)),0)","v":0},{"$f":"IFERROR(IF('Data Input - General'!$F$12=\"Yes\",HLOOKUP(Calc_BAU!BZ$6,'Carbon Prices'!$D$9:$CP$15,3,FALSE),HLOOKUP(Calc_BAU!BZ$6,'Carbon Prices'!$D$9:$CP$15,6,FALSE)),0)","v":0},{"$f":"IFERROR(IF('Data Input - General'!$F$12=\"Yes\",HLOOKUP(Calc_BAU!CA$6,'Carbon Prices'!$D$9:$CP$15,3,FALSE),HLOOKUP(Calc_BAU!CA$6,'Carbon Prices'!$D$9:$CP$15,6,FALSE)),0)","v":0},{"$f":"IFERROR(IF('Data Input - General'!$F$12=\"Yes\",HLOOKUP(Calc_BAU!CB$6,'Carbon Prices'!$D$9:$CP$15,3,FALSE),HLOOKUP(Calc_BAU!CB$6,'Carbon Prices'!$D$9:$CP$15,6,FALSE)),0)","v":0},{"$f":"IFERROR(IF('Data Input - General'!$F$12=\"Yes\",HLOOKUP(Calc_BAU!CC$6,'Carbon Prices'!$D$9:$CP$15,3,FALSE),HLOOKUP(Calc_BAU!CC$6,'Carbon Prices'!$D$9:$CP$15,6,FALSE)),0)","v":0},{"$f":"IFERROR(IF('Data Input - General'!$F$12=\"Yes\",HLOOKUP(Calc_BAU!CD$6,'Carbon Prices'!$D$9:$CP$15,3,FALSE),HLOOKUP(Calc_BAU!CD$6,'Carbon Prices'!$D$9:$CP$15,6,FALSE)),0)","v":0},{"$f":"IFERROR(IF('Data Input - General'!$F$12=\"Yes\",HLOOKUP(Calc_BAU!CE$6,'Carbon Prices'!$D$9:$CP$15,3,FALSE),HLOOKUP(Calc_BAU!CE$6,'Carbon Prices'!$D$9:$CP$15,6,FALSE)),0)","v":0},{"$f":"IFERROR(IF('Data Input - General'!$F$12=\"Yes\",HLOOKUP(Calc_BAU!CF$6,'Carbon Prices'!$D$9:$CP$15,3,FALSE),HLOOKUP(Calc_BAU!CF$6,'Carbon Prices'!$D$9:$CP$15,6,FALSE)),0)","v":0},{"$f":"IFERROR(IF('Data Input - General'!$F$12=\"Yes\",HLOOKUP(Calc_BAU!CG$6,'Carbon Prices'!$D$9:$CP$15,3,FALSE),HLOOKUP(Calc_BAU!CG$6,'Carbon Prices'!$D$9:$CP$15,6,FALSE)),0)","v":0},{"$f":"IFERROR(IF('Data Input - General'!$F$12=\"Yes\",HLOOKUP(Calc_BAU!CH$6,'Carbon Prices'!$D$9:$CP$15,3,FALSE),HLOOKUP(Calc_BAU!CH$6,'Carbon Prices'!$D$9:$CP$15,6,FALSE)),0)","v":0},{"$f":"IFERROR(IF('Data Input - General'!$F$12=\"Yes\",HLOOKUP(Calc_BAU!CI$6,'Carbon Prices'!$D$9:$CP$15,3,FALSE),HLOOKUP(Calc_BAU!CI$6,'Carbon Prices'!$D$9:$CP$15,6,FALSE)),0)","v":0},{"$f":"IFERROR(IF('Data Input - General'!$F$12=\"Yes\",HLOOKUP(Calc_BAU!CJ$6,'Carbon Prices'!$D$9:$CP$15,3,FALSE),HLOOKUP(Calc_BAU!CJ$6,'Carbon Prices'!$D$9:$CP$15,6,FALSE)),0)","v":0},{"$f":"IFERROR(IF('Data Input - General'!$F$12=\"Yes\",HLOOKUP(Calc_BAU!CK$6,'Carbon Prices'!$D$9:$CP$15,3,FALSE),HLOOKUP(Calc_BAU!CK$6,'Carbon Prices'!$D$9:$CP$15,6,FALSE)),0)","v":0},{"$f":"IFERROR(IF('Data Input - General'!$F$12=\"Yes\",HLOOKUP(Calc_BAU!CL$6,'Carbon Prices'!$D$9:$CP$15,3,FALSE),HLOOKUP(Calc_BAU!CL$6,'Carbon Prices'!$D$9:$CP$15,6,FALSE)),0)","v":0},{"$f":"IFERROR(IF('Data Input - General'!$F$12=\"Yes\",HLOOKUP(Calc_BAU!CM$6,'Carbon Prices'!$D$9:$CP$15,3,FALSE),HLOOKUP(Calc_BAU!CM$6,'Carbon Prices'!$D$9:$CP$15,6,FALSE)),0)","v":0},{"$f":"IFERROR(IF('Data Input - General'!$F$12=\"Yes\",HLOOKUP(Calc_BAU!CN$6,'Carbon Prices'!$D$9:$CP$15,3,FALSE),HLOOKUP(Calc_BAU!CN$6,'Carbon Prices'!$D$9:$CP$15,6,FALSE)),0)","v":0},{"$f":"IFERROR(IF('Data Input - General'!$F$12=\"Yes\",HLOOKUP(Calc_BAU!CO$6,'Carbon Prices'!$D$9:$CP$15,3,FALSE),HLOOKUP(Calc_BAU!CO$6,'Carbon Prices'!$D$9:$CP$15,6,FALSE)),0)","v":0},{"$f":"IFERROR(IF('Data Input - General'!$F$12=\"Yes\",HLOOKUP(Calc_BAU!CP$6,'Carbon Prices'!$D$9:$CP$15,3,FALSE),HLOOKUP(Calc_BAU!CP$6,'Carbon Prices'!$D$9:$CP$15,6,FALSE)),0)","v":0},{"$f":"IFERROR(IF('Data Input - General'!$F$12=\"Yes\",HLOOKUP(Calc_BAU!CQ$6,'Carbon Prices'!$D$9:$CP$15,3,FALSE),HLOOKUP(Calc_BAU!CQ$6,'Carbon Prices'!$D$9:$CP$15,6,FALSE)),0)","v":0},{"$f":"IFERROR(IF('Data Input - General'!$F$12=\"Yes\",HLOOKUP(Calc_BAU!CR$6,'Carbon Prices'!$D$9:$CP$15,3,FALSE),HLOOKUP(Calc_BAU!CR$6,'Carbon Prices'!$D$9:$CP$15,6,FALSE)),0)","v":0},{"$f":"IFERROR(IF('Data Input - General'!$F$12=\"Yes\",HLOOKUP(Calc_BAU!CS$6,'Carbon Prices'!$D$9:$CP$15,3,FALSE),HLOOKUP(Calc_BAU!CS$6,'Carbon Prices'!$D$9:$CP$15,6,FALSE)),0)","v":0},{"$f":"IFERROR(IF('Data Input - General'!$F$12=\"Yes\",HLOOKUP(Calc_BAU!CT$6,'Carbon Prices'!$D$9:$CP$15,3,FALSE),HLOOKUP(Calc_BAU!CT$6,'Carbon Prices'!$D$9:$CP$15,6,FALSE)),0)","v":0},{"$f":"IFERROR(IF('Data Input - General'!$F$12=\"Yes\",HLOOKUP(Calc_BAU!CU$6,'Carbon Prices'!$D$9:$CP$15,3,FALSE),HLOOKUP(Calc_BAU!CU$6,'Carbon Prices'!$D$9:$CP$15,6,FALSE)),0)","v":0},{"$f":"IFERROR(IF('Data Input - General'!$F$12=\"Yes\",HLOOKUP(Calc_BAU!CV$6,'Carbon Prices'!$D$9:$CP$15,3,FALSE),HLOOKUP(Calc_BAU!CV$6,'Carbon Prices'!$D$9:$CP$15,6,FALSE)),0)","v":0},{"$f":"IFERROR(IF('Data Input - General'!$F$12=\"Yes\",HLOOKUP(Calc_BAU!CW$6,'Carbon Prices'!$D$9:$CP$15,3,FALSE),HLOOKUP(Calc_BAU!CW$6,'Carbon Prices'!$D$9:$CP$15,6,FALSE)),0)","v":0},{"$f":"IFERROR(IF('Data Input - General'!$F$12=\"Yes\",HLOOKUP(Calc_BAU!CX$6,'Carbon Prices'!$D$9:$CP$15,3,FALSE),HLOOKUP(Calc_BAU!CX$6,'Carbon Prices'!$D$9:$CP$15,6,FALSE)),0)","v":0},{"$f":"IFERROR(IF('Data Input - General'!$F$12=\"Yes\",HLOOKUP(Calc_BAU!CY$6,'Carbon Prices'!$D$9:$CP$15,3,FALSE),HLOOKUP(Calc_BAU!CY$6,'Carbon Prices'!$D$9:$CP$15,6,FALSE)),0)","v":0}]
[null,"Total value","£000's",{"$f":"IFERROR(D75*D76,0)","v":307116.39073072112},{"$f":"IFERROR(E75*E76,0)","v":318786.81357848854},{"$f":"IFERROR(F75*F76,0)","v":666421.50054753432},{"$f":"IFERROR(G75*G76,0)","v":1014056.1875165801},1361690.8744856259,1709325.5614546719,2056960.2484237177,0,0,0,0,0,0,0,0,0,0,0,0,0,0,0,0,0,0,0,0,0,0,0,0,0,0,0,0,0,0,0,0,0,0,0,0,0,0,0,0,0,0,0,0,0,0,0,0,0,0,0,0,0,0,0,0,0,0,0,0,{"$f":"IFERROR(BS75*BS76,0)","v":0},0,0,0,0,0,0,0,0,0,0,0,0,0,0,0,0,0,0,0,0,0,0,0,0,0,0,0,0,0,0,0,0]
[]
[null,"Greenhouse gas emissions (associated with fuel use)"]
[null,"Elec","tCO2e",{"$f":"'Data Input - BAU'!H120","v":1147.9102063708638},{"$f":"'Data Input - BAU'!I120","v":1022.7509038254832},{"$f":"'Data Input - BAU'!J120","v":900.70523018473978},{"$f":"'Data Input - BAU'!K120","v":829.51171353866823},{"$f":"'Data Input - BAU'!L120","v":706.29239328079632},{"$f":"'Data Input - BAU'!M120","v":741.68258779755536},{"$f":"'Data Input - BAU'!N120","v":695.10356862610229},{"$f":"'Data Input - BAU'!O120","v":617.9056138546847},{"$f":"'Data Input - BAU'!P120","v":0},{"$f":"'Data Input - BAU'!Q120","v":0},{"$f":"'Data Input - BAU'!R120","v":0},{"$f":"'Data Input - BAU'!S120","v":0},{"$f":"'Data Input - BAU'!T120","v":0},{"$f":"'Data Input - BAU'!U120","v":0},{"$f":"'Data Input - BAU'!V120","v":0},{"$f":"'Data Input - BAU'!W120","v":0},{"$f":"'Data Input - BAU'!X120","v":0},{"$f":"'Data Input - BAU'!Y120","v":0},{"$f":"'Data Input - BAU'!Z120","v":0},{"$f":"'Data Input - BAU'!AA120","v":0},{"$f":"'Data Input - BAU'!AB120","v":0},{"$f":"'Data Input - BAU'!AC120","v":0},{"$f":"'Data Input - BAU'!AD120","v":0},{"$f":"'Data Input - BAU'!AE120","v":0},{"$f":"'Data Input - BAU'!AF120","v":0},{"$f":"'Data Input - BAU'!AG120","v":0},{"$f":"'Data Input - BAU'!AH120","v":0},{"$f":"'Data Input - BAU'!AI120","v":0},{"$f":"'Data Input - BAU'!AJ120","v":0},{"$f":"'Data Input - BAU'!AK120","v":0},{"$f":"'Data Input - BAU'!AL120","v":0},{"$f":"'Data Input - BAU'!AM120","v":0},{"$f":"'Data Input - BAU'!AN120","v":0},{"$f":"'Data Input - BAU'!AO120","v":0},{"$f":"'Data Input - BAU'!AP120","v":0},{"$f":"'Data Input - BAU'!AQ120","v":0},{"$f":"'Data Input - BAU'!AR120","v":0},{"$f":"'Data Input - BAU'!AS120","v":0},{"$f":"'Data Input - BAU'!AT120","v":0},{"$f":"'Data Input - BAU'!AU120","v":0},{"$f":"'Data Input - BAU'!AV120","v":0},{"$f":"'Data Input - BAU'!AW120","v":0},{"$f":"'Data Input - BAU'!AX120","v":0},{"$f":"'Data Input - BAU'!AY120","v":0},{"$f":"'Data Input - BAU'!AZ120","v":0},{"$f":"'Data Input - BAU'!BA120","v":0},{"$f":"'Data Input - BAU'!BB120","v":0},{"$f":"'Data Input - BAU'!BC120","v":0},{"$f":"'Data Input - BAU'!BD120","v":0},{"$f":"'Data Input - BAU'!BE120","v":0},{"$f":"'Data Input - BAU'!BF120","v":0},{"$f":"'Data Input - BAU'!BG120","v":0},{"$f":"'Data Input - BAU'!BH120","v":0},{"$f":"'Data Input - BAU'!BI120","v":0},{"$f":"'Data Input - BAU'!BJ120","v":0},{"$f":"'Data Input - BAU'!BK120","v":0},{"$f":"'Data Input - BAU'!BL120","v":0},{"$f":"'Data Input - BAU'!BM120","v":0},{"$f":"'Data Input - BAU'!BN120","v":0},{"$f":"'Data Input - BAU'!BO120","v":0},{"$f":"'Data Input - BAU'!BP120","v":0},{"$f":"'Data Input - BAU'!BQ120","v":0},{"$f":"'Data Input - BAU'!BR120","v":0},{"$f":"'Data Input - BAU'!BS120","v":0},{"$f":"'Data Input - BAU'!BT120","v":0},{"$f":"'Data Input - BAU'!BU120","v":0},{"$f":"'Data Input - BAU'!BV120","v":0},{"$f":"'Data Input - BAU'!BW120","v":0},{"$f":"'Data Input - BAU'!BX120","v":0},{"$f":"'Data Input - BAU'!BY120","v":0},{"$f":"'Data Input - BAU'!BZ120","v":0},{"$f":"'Data Input - BAU'!CA120","v":0},{"$f":"'Data Input - BAU'!CB120","v":0},{"$f":"'Data Input - BAU'!CC120","v":0},{"$f":"'Data Input - BAU'!CD120","v":0},{"$f":"'Data Input - BAU'!CE120","v":0},{"$f":"'Data Input - BAU'!CF120","v":0},{"$f":"'Data Input - BAU'!CG120","v":0},{"$f":"'Data Input - BAU'!CH120","v":0},{"$f":"'Data Input - BAU'!CI120","v":0},{"$f":"'Data Input - BAU'!CJ120","v":0},{"$f":"'Data Input - BAU'!CK120","v":0},{"$f":"'Data Input - BAU'!CL120","v":0},{"$f":"'Data Input - BAU'!CM120","v":0},{"$f":"'Data Input - BAU'!CN120","v":0},{"$f":"'Data Input - BAU'!CO120","v":0},{"$f":"'Data Input - BAU'!CP120","v":0},{"$f":"'Data Input - BAU'!CQ120","v":0},{"$f":"'Data Input - BAU'!CR120","v":0},{"$f":"'Data Input - BAU'!CS120","v":0},{"$f":"'Data Input - BAU'!CT120","v":0},{"$f":"'Data Input - BAU'!CU120","v":0},{"$f":"'Data Input - BAU'!CV120","v":0},{"$f":"'Data Input - BAU'!CW120","v":0},{"$f":"'Data Input - BAU'!CX120","v":0},{"$f":"'Data Input - BAU'!CY120","v":0},{"$f":"'Data Input - BAU'!CZ120","v":0},{"$f":"'Data Input - BAU'!DA120","v":0},{"$f":"'Data Input - BAU'!DB120","v":0},{"$f":"'Data Input - BAU'!DC120","v":0}]
[null,"Non-elec","tCO2e",{"$f":"'Data Input - BAU'!H128-'Data Input - BAU'!H120","v":40496.827401879185},{"$f":"'Data Input - BAU'!I128-'Data Input - BAU'!I120","v":40487.482271193861},{"$f":"'Data Input - BAU'!J128-'Data Input - BAU'!J120","v":40487.482271193861},{"$f":"'Data Input - BAU'!K128-'Data Input - BAU'!K120","v":40487.482271193861},{"$f":"'Data Input - BAU'!L128-'Data Input - BAU'!L120","v":40487.482271193861},{"$f":"'Data Input - BAU'!M128-'Data Input - BAU'!M120","v":40487.482271193861},{"$f":"'Data Input - BAU'!N128-'Data Input - BAU'!N120","v":40487.482271193861},{"$f":"'Data Input - BAU'!O128-'Data Input - BAU'!O120","v":40487.482271193861},{"$f":"'Data Input - BAU'!P128-'Data Input - BAU'!P120","v":0},{"$f":"'Data Input - BAU'!Q128-'Data Input - BAU'!Q120","v":0},{"$f":"'Data Input - BAU'!R128-'Data Input - BAU'!R120","v":0},{"$f":"'Data Input - BAU'!S128-'Data Input - BAU'!S120","v":0},{"$f":"'Data Input - BAU'!T128-'Data Input - BAU'!T120","v":0},{"$f":"'Data Input - BAU'!U128-'Data Input - BAU'!U120","v":0},{"$f":"'Data Input - BAU'!V128-'Data Input - BAU'!V120","v":0},{"$f":"'Data Input - BAU'!W128-'Data Input - BAU'!W120","v":0},{"$f":"'Data Input - BAU'!X128-'Data Input - BAU'!X120","v":0},{"$f":"'Data Input - BAU'!Y128-'Data Input - BAU'!Y120","v":0},{"$f":"'Data Input - BAU'!Z128-'Data Input - BAU'!Z120","v":0},{"$f":"'Data Input - BAU'!AA128-'Data Input - BAU'!AA120","v":0},{"$f":"'Data Input - BAU'!AB128-'Data Input - BAU'!AB120","v":0},{"$f":"'Data Input - BAU'!AC128-'Data Input - BAU'!AC120","v":0},{"$f":"'Data Input - BAU'!AD128-'Data Input - BAU'!AD120","v":0},{"$f":"'Data Input - BAU'!AE128-'Data Input - BAU'!AE120","v":0},{"$f":"'Data Input - BAU'!AF128-'Data Input - BAU'!AF120","v":0},{"$f":"'Data Input - BAU'!AG128-'Data Input - BAU'!AG120","v":0},{"$f":"'Data Input - BAU'!AH128-'Data Input - BAU'!AH120","v":0},{"$f":"'Data Input - BAU'!AI128-'Data Input - BAU'!AI120","v":0},{"$f":"'Data Input - BAU'!AJ128-'Data Input - BAU'!AJ120","v":0},{"$f":"'Data Input - BAU'!AK128-'Data Input - BAU'!AK120","v":0},{"$f":"'Data Input - BAU'!AL128-'Data Input - BAU'!AL120","v":0},{"$f":"'Data Input - BAU'!AM128-'Data Input - BAU'!AM120","v":0},{"$f":"'Data Input - BAU'!AN128-'Data Input - BAU'!AN120","v":0},{"$f":"'Data Input - BAU'!AO128-'Data Input - BAU'!AO120","v":0},{"$f":"'Data Input - BAU'!AP128-'Data Input - BAU'!AP120","v":0},{"$f":"'Data Input - BAU'!AQ128-'Data Input - BAU'!AQ120","v":0},{"$f":"'Data Input - BAU'!AR128-'Data Input - BAU'!AR120","v":0},{"$f":"'Data Input - BAU'!AS128-'Data Input - BAU'!AS120","v":0},{"$f":"'Data Input - BAU'!AT128-'Data Input - BAU'!AT120","v":0},{"$f":"'Data Input - BAU'!AU128-'Data Input - BAU'!AU120","v":0},{"$f":"'Data Input - BAU'!AV128-'Data Input - BAU'!AV120","v":0},{"$f":"'Data Input - BAU'!AW128-'Data Input - BAU'!AW120","v":0},{"$f":"'Data Input - BAU'!AX128-'Data Input - BAU'!AX120","v":0},{"$f":"'Data Input - BAU'!AY128-'Data Input - BAU'!AY120","v":0},{"$f":"'Data Input - BAU'!AZ128-'Data Input - BAU'!AZ120","v":0},{"$f":"'Data Input - BAU'!BA128-'Data Input - BAU'!BA120","v":0},{"$f":"'Data Input - BAU'!BB128-'Data Input - BAU'!BB120","v":0},{"$f":"'Data Input - BAU'!BC128-'Data Input - BAU'!BC120","v":0},{"$f":"'Data Input - BAU'!BD128-'Data Input - BAU'!BD120","v":0},{"$f":"'Data Input - BAU'!BE128-'Data Input - BAU'!BE120","v":0},{"$f":"'Data Input - BAU'!BF128-'Data Input - BAU'!BF120","v":0},{"$f":"'Data Input - BAU'!BG128-'Data Input - BAU'!BG120","v":0},{"$f":"'Data Input - BAU'!BH128-'Data Input - BAU'!BH120","v":0},{"$f":"'Data Input - BAU'!BI128-'Data Input - BAU'!BI120","v":0},{"$f":"'Data Input - BAU'!BJ128-'Data Input - BAU'!BJ120","v":0},{"$f":"'Data Input - BAU'!BK128-'Data Input - BAU'!BK120","v":0},{"$f":"'Data Input - BAU'!BL128-'Data Input - BAU'!BL120","v":0},{"$f":"'Data Input - BAU'!BM128-'Data Input - BAU'!BM120","v":0},{"$f":"'Data Input - BAU'!BN128-'Data Input - BAU'!BN120","v":0},{"$f":"'Data Input - BAU'!BO128-'Data Input - BAU'!BO120","v":0},{"$f":"'Data Input - BAU'!BP128-'Data Input - BAU'!BP120","v":0},{"$f":"'Data Input - BAU'!BQ128-'Data Input - BAU'!BQ120","v":0},{"$f":"'Data Input - BAU'!BR128-'Data Input - BAU'!BR120","v":0},{"$f":"'Data Input - BAU'!BS128-'Data Input - BAU'!BS120","v":0},{"$f":"'Data Input - BAU'!BT128-'Data Input - BAU'!BT120","v":0},{"$f":"'Data Input - BAU'!BU128-'Data Input - BAU'!BU120","v":0},{"$f":"'Data Input - BAU'!BV128-'Data Input - BAU'!BV120","v":0},{"$f":"'Data Input - BAU'!BW128-'Data Input - BAU'!BW120","v":0},{"$f":"'Data Input - BAU'!BX128-'Data Input - BAU'!BX120","v":0},{"$f":"'Data Input - BAU'!BY128-'Data Input - BAU'!BY120","v":0},{"$f":"'Data Input - BAU'!BZ128-'Data Input - BAU'!BZ120","v":0},{"$f":"'Data Input - BAU'!CA128-'Data Input - BAU'!CA120","v":0},{"$f":"'Data Input - BAU'!CB128-'Data Input - BAU'!CB120","v":0},{"$f":"'Data Input - BAU'!CC128-'Data Input - BAU'!CC120","v":0},{"$f":"'Data Input - BAU'!CD128-'Data Input - BAU'!CD120","v":0},{"$f":"'Data Input - BAU'!CE128-'Data Input - BAU'!CE120","v":0},{"$f":"'Data Input - BAU'!CF128-'Data Input - BAU'!CF120","v":0},{"$f":"'Data Input - BAU'!CG128-'Data Input - BAU'!CG120","v":0},{"$f":"'Data Input - BAU'!CH128-'Data Input - BAU'!CH120","v":0},{"$f":"'Data Input - BAU'!CI128-'Data Input - BAU'!CI120","v":0},{"$f":"'Data Input - BAU'!CJ128-'Data Input - BAU'!CJ120","v":0},{"$f":"'Data Input - BAU'!CK128-'Data Input - BAU'!CK120","v":0},{"$f":"'Data Input - BAU'!CL128-'Data Input - BAU'!CL120","v":0},{"$f":"'Data Input - BAU'!CM128-'Data Input - BAU'!CM120","v":0},{"$f":"'Data Input - BAU'!CN128-'Data Input - BAU'!CN120","v":0},{"$f":"'Data Input - BAU'!CO128-'Data Input - BAU'!CO120","v":0},{"$f":"'Data Input - BAU'!CP128-'Data Input - BAU'!CP120","v":0},{"$f":"'Data Input - BAU'!CQ128-'Data Input - BAU'!CQ120","v":0},{"$f":"'Data Input - BAU'!CR128-'Data Input - BAU'!CR120","v":0},{"$f":"'Data Input - BAU'!CS128-'Data Input - BAU'!CS120","v":0},{"$f":"'Data Input - BAU'!CT128-'Data Input - BAU'!CT120","v":0},{"$f":"'Data Input - BAU'!CU128-'Data Input - BAU'!CU120","v":0},{"$f":"'Data Input - BAU'!CV128-'Data Input - BAU'!CV120","v":0},{"$f":"'Data Input - BAU'!CW128-'Data Input - BAU'!CW120","v":0},{"$f":"'Data Input - BAU'!CX128-'Data Input - BAU'!CX120","v":0},{"$f":"'Data Input - BAU'!CY128-'Data Input - BAU'!CY120","v":0},{"$f":"'Data Input - BAU'!CZ128-'Data Input - BAU'!CZ120","v":0},{"$f":"'Data Input - BAU'!DA128-'Data Input - BAU'!DA120","v":0},{"$f":"'Data Input - BAU'!DB128-'Data Input - BAU'!DB120","v":0},{"$f":"'Data Input - BAU'!DC128-'Data Input - BAU'!DC120","v":0}]
[null,"Value elec","£000's",{"$f":"HLOOKUP(Calc_BAU!D$6,'Carbon Prices'!$D$9:$CP$15,3,FALSE)","v":6.8248086829049139},{"$f":"HLOOKUP(Calc_BAU!E$6,'Carbon Prices'!$D$9:$CP$15,3,FALSE)","v":7.0841514128553005},{"$f":"HLOOKUP(Calc_BAU!F$6,'Carbon Prices'!$D$9:$CP$15,3,FALSE)","v":14.809366678834097},{"$f":"HLOOKUP(Calc_BAU!G$6,'Carbon Prices'!$D$9:$CP$15,3,FALSE)","v":22.534581944812892},{"$f":"HLOOKUP(Calc_BAU!H$6,'Carbon Prices'!$D$9:$CP$15,3,FALSE)","v":30.259797210791689},{"$f":"HLOOKUP(Calc_BAU!I$6,'Carbon Prices'!$D$9:$CP$15,3,FALSE)","v":37.985012476770486},{"$f":"HLOOKUP(Calc_BAU!J$6,'Carbon Prices'!$D$9:$CP$15,3,FALSE)","v":45.710227742749282},{"$f":"HLOOKUP(Calc_BAU!K$6,'Carbon Prices'!$D$9:$CP$15,3,FALSE)","v":53.435443008728079},{"$f":"HLOOKUP(Calc_BAU!L$6,'Carbon Prices'!$D$9:$CP$15,3,FALSE)","v":61.160658274706876},{"$f":"HLOOKUP(Calc_BAU!M$6,'Carbon Prices'!$D$9:$CP$15,3,FALSE)","v":68.885873540685665},{"$f":"HLOOKUP(Calc_BAU!N$6,'Carbon Prices'!$D$9:$CP$15,3,FALSE)","v":76.611088806664469},{"$f":"HLOOKUP(Calc_BAU!O$6,'Carbon Prices'!$D$9:$CP$15,3,FALSE)","v":84.336304072643259},{"$f":"HLOOKUP(Calc_BAU!P$6,'Carbon Prices'!$D$9:$CP$15,3,FALSE)","v":92.167532307960172},{"$f":"HLOOKUP(Calc_BAU!Q$6,'Carbon Prices'!$D$9:$CP$15,3,FALSE)","v":99.998760543277044},{"$f":"HLOOKUP(Calc_BAU!R$6,'Carbon Prices'!$D$9:$CP$15,3,FALSE)","v":107.82998877859391},{"$f":"HLOOKUP(Calc_BAU!S$6,'Carbon Prices'!$D$9:$CP$15,3,FALSE)","v":115.6612170139108},{"$f":"HLOOKUP(Calc_BAU!T$6,'Carbon Prices'!$D$9:$CP$15,3,FALSE)","v":123.49244524922767},{"$f":"HLOOKUP(Calc_BAU!U$6,'Carbon Prices'!$D$9:$CP$15,3,FALSE)","v":131.32367348454454},{"$f":"HLOOKUP(Calc_BAU!V$6,'Carbon Prices'!$D$9:$CP$15,3,FALSE)","v":139.15490171986141},{"$f":"HLOOKUP(Calc_BAU!W$6,'Carbon Prices'!$D$9:$CP$15,3,FALSE)","v":146.98612995517828},{"$f":"HLOOKUP(Calc_BAU!X$6,'Carbon Prices'!$D$9:$CP$15,3,FALSE)","v":154.81735819049521},{"$f":"HLOOKUP(Calc_BAU!Y$6,'Carbon Prices'!$D$9:$CP$15,3,FALSE)","v":162.64858642581208},{"$f":"HLOOKUP(Calc_BAU!Z$6,'Carbon Prices'!$D$9:$CP$15,3,FALSE)","v":170.47981466112896},{"$f":"HLOOKUP(Calc_BAU!AA$6,'Carbon Prices'!$D$9:$CP$15,3,FALSE)","v":178.31104289644583},{"$f":"HLOOKUP(Calc_BAU!AB$6,'Carbon Prices'!$D$9:$CP$15,3,FALSE)","v":186.1422711317627},{"$f":"HLOOKUP(Calc_BAU!AC$6,'Carbon Prices'!$D$9:$CP$15,3,FALSE)","v":193.97349936707957},{"$f":"HLOOKUP(Calc_BAU!AD$6,'Carbon Prices'!$D$9:$CP$15,3,FALSE)","v":201.80472760239644},{"$f":"HLOOKUP(Calc_BAU!AE$6,'Carbon Prices'!$D$9:$CP$15,3,FALSE)","v":209.63595583771331},{"$f":"HLOOKUP(Calc_BAU!AF$6,'Carbon Prices'!$D$9:$CP$15,3,FALSE)","v":217.46718407303021},{"$f":"HLOOKUP(Calc_BAU!AG$6,'Carbon Prices'!$D$9:$CP$15,3,FALSE)","v":225.29841230834708},{"$f":"HLOOKUP(Calc_BAU!AH$6,'Carbon Prices'!$D$9:$CP$15,3,FALSE)","v":233.12964054366395},{"$f":"HLOOKUP(Calc_BAU!AI$6,'Carbon Prices'!$D$9:$CP$15,3,FALSE)","v":{"$error":"#N/A"}},{"$f":"HLOOKUP(Calc_BAU!AJ$6,'Carbon Prices'!$D$9:$CP$15,3,FALSE)","v":{"$error":"#N/A"}},{"$f":"HLOOKUP(Calc_BAU!AK$6,'Carbon Prices'!$D$9:$CP$15,3,FALSE)","v":{"$error":"#N/A"}},{"$f":"HLOOKUP(Calc_BAU!AL$6,'Carbon Prices'!$D$9:$CP$15,3,FALSE)","v":{"$error":"#N/A"}},{"$f":"HLOOKUP(Calc_BAU!AM$6,'Carbon Prices'!$D$9:$CP$15,3,FALSE)","v":{"$error":"#N/A"}},{"$f":"HLOOKUP(Calc_BAU!AN$6,'Carbon Prices'!$D$9:$CP$15,3,FALSE)","v":{"$error":"#N/A"}},{"$f":"HLOOKUP(Calc_BAU!AO$6,'Carbon Prices'!$D$9:$CP$15,3,FALSE)","v":{"$error":"#N/A"}},{"$f":"HLOOKUP(Calc_BAU!AP$6,'Carbon Prices'!$D$9:$CP$15,3,FALSE)","v":{"$error":"#N/A"}},{"$f":"HLOOKUP(Calc_BAU!AQ$6,'Carbon Prices'!$D$9:$CP$15,3,FALSE)","v":{"$error":"#N/A"}},{"$f":"HLOOKUP(Calc_BAU!AR$6,'Carbon Prices'!$D$9:$CP$15,3,FALSE)","v":{"$error":"#N/A"}},{"$f":"HLOOKUP(Calc_BAU!AS$6,'Carbon Prices'!$D$9:$CP$15,3,FALSE)","v":{"$error":"#N/A"}},{"$f":"HLOOKUP(Calc_BAU!AT$6,'Carbon Prices'!$D$9:$CP$15,3,FALSE)","v":{"$error":"#N/A"}},{"$f":"HLOOKUP(Calc_BAU!AU$6,'Carbon Prices'!$D$9:$CP$15,3,FALSE)","v":{"$error":"#N/A"}},{"$f":"HLOOKUP(Calc_BAU!AV$6,'Carbon Prices'!$D$9:$CP$15,3,FALSE)","v":{"$error":"#N/A"}},{"$f":"HLOOKUP(Calc_BAU!AW$6,'Carbon Prices'!$D$9:$CP$15,3,FALSE)","v":{"$error":"#N/A"}},{"$f":"HLOOKUP(Calc_BAU!AX$6,'Carbon Prices'!$D$9:$CP$15,3,FALSE)","v":{"$error":"#N/A"}},{"$f":"HLOOKUP(Calc_BAU!AY$6,'Carbon Prices'!$D$9:$CP$15,3,FALSE)","v":{"$error":"#N/A"}},{"$f":"HLOOKUP(Calc_BAU!AZ$6,'Carbon Prices'!$D$9:$CP$15,3,FALSE)","v":{"$error":"#N/A"}},{"$f":"HLOOKUP(Calc_BAU!BA$6,'Carbon Prices'!$D$9:$CP$15,3,FALSE)","v":{"$error":"#N/A"}},{"$f":"HLOOKUP(Calc_BAU!BB$6,'Carbon Prices'!$D$9:$CP$15,3,FALSE)","v":{"$error":"#N/A"}},{"$f":"HLOOKUP(Calc_BAU!BC$6,'Carbon Prices'!$D$9:$CP$15,3,FALSE)","v":{"$error":"#N/A"}},{"$f":"HLOOKUP(Calc_BAU!BD$6,'Carbon Prices'!$D$9:$CP$15,3,FALSE)","v":{"$error":"#N/A"}},{"$f":"HLOOKUP(Calc_BAU!BE$6,'Carbon Prices'!$D$9:$CP$15,3,FALSE)","v":{"$error":"#N/A"}},{"$f":"HLOOKUP(Calc_BAU!BF$6,'Carbon Prices'!$D$9:$CP$15,3,FALSE)","v":{"$error":"#N/A"}},{"$f":"HLOOKUP(Calc_BAU!BG$6,'Carbon Prices'!$D$9:$CP$15,3,FALSE)","v":{"$error":"#N/A"}},{"$f":"HLOOKUP(Calc_BAU!BH$6,'Carbon Prices'!$D$9:$CP$15,3,FALSE)","v":{"$error":"#N/A"}},{"$f":"HLOOKUP(Calc_BAU!BI$6,'Carbon Prices'!$D$9:$CP$15,3,FALSE)","v":{"$error":"#N/A"}},{"$f":"HLOOKUP(Calc_BAU!BJ$6,'Carbon Prices'!$D$9:$CP$15,3,FALSE)","v":{"$error":"#N/A"}},{"$f":"HLOOKUP(Calc_BAU!BK$6,'Carbon Prices'!$D$9:$CP$15,3,FALSE)","v":{"$error":"#N/A"}},{"$f":"HLOOKUP(Calc_BAU!BL$6,'Carbon Prices'!$D$9:$CP$15,3,FALSE)","v":{"$error":"#N/A"}},{"$f":"HLOOKUP(Calc_BAU!BM$6,'Carbon Prices'!$D$9:$CP$15,3,FALSE)","v":{"$error":"#N/A"}},{"$f":"HLOOKUP(Calc_BAU!BN$6,'Carbon Prices'!$D$9:$CP$15,3,FALSE)","v":{"$error":"#N/A"}},{"$f":"HLOOKUP(Calc_BAU!BO$6,'Carbon Prices'!$D$9:$CP$15,3,FALSE)","v":{"$error":"#N/A"}},{"$f":"HLOOKUP(Calc_BAU!BP$6,'Carbon Prices'!$D$9:$CP$15,3,FALSE)","v":{"$error":"#N/A"}},{"$f":"HLOOKUP(Calc_BAU!BQ$6,'Carbon Prices'!$D$9:$CP$15,3,FALSE)","v":{"$error":"#N/A"}},{"$f":"HLOOKUP(Calc_BAU!BR$6,'Carbon Prices'!$D$9:$CP$15,3,FALSE)","v":{"$error":"#N/A"}},{"$f":"HLOOKUP(Calc_BAU!BS$6,'Carbon Prices'!$D$9:$CP$15,3,FALSE)","v":{"$error":"#N/A"}},{"$f":"HLOOKUP(Calc_BAU!BT$6,'Carbon Prices'!$D$9:$CP$15,3,FALSE)","v":{"$error":"#N/A"}},{"$f":"HLOOKUP(Calc_BAU!BU$6,'Carbon Prices'!$D$9:$CP$15,3,FALSE)","v":{"$error":"#N/A"}},{"$f":"HLOOKUP(Calc_BAU!BV$6,'Carbon Prices'!$D$9:$CP$15,3,FALSE)","v":{"$error":"#N/A"}},{"$f":"HLOOKUP(Calc_BAU!BW$6,'Carbon Prices'!$D$9:$CP$15,3,FALSE)","v":{"$error":"#N/A"}},{"$f":"HLOOKUP(Calc_BAU!BX$6,'Carbon Prices'!$D$9:$CP$15,3,FALSE)","v":{"$error":"#N/A"}},{"$f":"HLOOKUP(Calc_BAU!BY$6,'Carbon Prices'!$D$9:$CP$15,3,FALSE)","v":{"$error":"#N/A"}},{"$f":"HLOOKUP(Calc_BAU!BZ$6,'Carbon Prices'!$D$9:$CP$15,3,FALSE)","v":{"$error":"#N/A"}},{"$f":"HLOOKUP(Calc_BAU!CA$6,'Carbon Prices'!$D$9:$CP$15,3,FALSE)","v":{"$error":"#N/A"}},{"$f":"HLOOKUP(Calc_BAU!CB$6,'Carbon Prices'!$D$9:$CP$15,3,FALSE)","v":{"$error":"#N/A"}},{"$f":"HLOOKUP(Calc_BAU!CC$6,'Carbon Prices'!$D$9:$CP$15,3,FALSE)","v":{"$error":"#N/A"}},{"$f":"HLOOKUP(Calc_BAU!CD$6,'Carbon Prices'!$D$9:$CP$15,3,FALSE)","v":{"$error":"#N/A"}},{"$f":"HLOOKUP(Calc_BAU!CE$6,'Carbon Prices'!$D$9:$CP$15,3,FALSE)","v":{"$error":"#N/A"}},{"$f":"HLOOKUP(Calc_BAU!CF$6,'Carbon Prices'!$D$9:$CP$15,3,FALSE)","v":{"$error":"#N/A"}},{"$f":"HLOOKUP(Calc_BAU!CG$6,'Carbon Prices'!$D$9:$CP$15,3,FALSE)","v":{"$error":"#N/A"}},{"$f":"HLOOKUP(Calc_BAU!CH$6,'Carbon Prices'!$D$9:$CP$15,3,FALSE)","v":{"$error":"#N/A"}},{"$f":"HLOOKUP(Calc_BAU!CI$6,'Carbon Prices'!$D$9:$CP$15,3,FALSE)","v":{"$error":"#N/A"}},{"$f":"HLOOKUP(Calc_BAU!CJ$6,'Carbon Prices'!$D$9:$CP$15,3,FALSE)","v":{"$error":"#N/A"}},{"$f":"HLOOKUP(Calc_BAU!CK$6,'Carbon Prices'!$D$9:$CP$15,3,FALSE)","v":{"$error":"#N/A"}},{"$f":"HLOOKUP(Calc_BAU!CL$6,'Carbon Prices'!$D$9:$CP$15,3,FALSE)","v":{"$error":"#N/A"}},{"$f":"HLOOKUP(Calc_BAU!CM$6,'Carbon Prices'!$D$9:$CP$15,3,FALSE)","v":{"$error":"#N/A"}},{"$f":"HLOOKUP(Calc_BAU!CN$6,'Carbon Prices'!$D$9:$CP$15,3,FALSE)","v":{"$error":"#N/A"}},{"$f":"HLOOKUP(Calc_BAU!CO$6,'Carbon Prices'!$D$9:$CP$15,3,FALSE)","v":{"$error":"#N/A"}},{"$f":"HLOOKUP(Calc_BAU!CP$6,'Carbon Prices'!$D$9:$CP$15,3,FALSE)","v":{"$error":"#N/A"}},{"$f":"HLOOKUP(Calc_BAU!CQ$6,'Carbon Prices'!$D$9:$CP$15,3,FALSE)","v":{"$error":"#N/A"}},{"$f":"HLOOKUP(Calc_BAU!CR$6,'Carbon Prices'!$D$9:$CP$15,3,FALSE)","v":{"$error":"#N/A"}},{"$f":"HLOOKUP(Calc_BAU!CS$6,'Carbon Prices'!$D$9:$CP$15,3,FALSE)","v":{"$error":"#N/A"}},{"$f":"HLOOKUP(Calc_BAU!CT$6,'Carbon Prices'!$D$9:$CP$15,3,FALSE)","v":{"$error":"#N/A"}},{"$f":"HLOOKUP(Calc_BAU!CU$6,'Carbon Prices'!$D$9:$CP$15,3,FALSE)","v":{"$error":"#N/A"}},{"$f":"HLOOKUP(Calc_BAU!CV$6,'Carbon Prices'!$D$9:$CP$15,3,FALSE)","v":{"$error":"#N/A"}},{"$f":"HLOOKUP(Calc_BAU!CW$6,'Carbon Prices'!$D$9:$CP$15,3,FALSE)","v":{"$error":"#N/A"}},{"$f":"HLOOKUP(Calc_BAU!CX$6,'Carbon Prices'!$D$9:$CP$15,3,FALSE)","v":{"$error":"#N/A"}},{"$f":"HLOOKUP(Calc_BAU!CY$6,'Carbon Prices'!$D$9:$CP$15,3,FALSE)","v":{"$error":"#N/A"}}]
[null,"Value non-elec","£000's",{"$f":"IF('Data Input - General'!$F$10=\"Yes\",HLOOKUP(Calc_BAU!D$6,'Carbon Prices'!$D$9:$CP$15,3,FALSE),HLOOKUP(Calc_BAU!D$6,'Carbon Prices'!$D$9:$CP$15,6,FALSE))","v":6.8248086829049139},{"$f":"IF('Data Input - General'!$F$10=\"Yes\",HLOOKUP(Calc_BAU!E$6,'Carbon Prices'!$D$9:$CP$15,3,FALSE),HLOOKUP(Calc_BAU!E$6,'Carbon Prices'!$D$9:$CP$15,6,FALSE))","v":7.0841514128553005},{"$f":"IF('Data Input - General'!$F$10=\"Yes\",HLOOKUP(Calc_BAU!F$6,'Carbon Prices'!$D$9:$CP$15,3,FALSE),HLOOKUP(Calc_BAU!F$6,'Carbon Prices'!$D$9:$CP$15,6,FALSE))","v":14.809366678834097},{"$f":"IF('Data Input - General'!$F$10=\"Yes\",HLOOKUP(Calc_BAU!G$6,'Carbon Prices'!$D$9:$CP$15,3,FALSE),HLOOKUP(Calc_BAU!G$6,'Carbon Prices'!$D$9:$CP$15,6,FALSE))","v":22.534581944812892},{"$f":"IF('Data Input - General'!$F$10=\"Yes\",HLOOKUP(Calc_BAU!H$6,'Carbon Prices'!$D$9:$CP$15,3,FALSE),HLOOKUP(Calc_BAU!H$6,'Carbon Prices'!$D$9:$CP$15,6,FALSE))","v":30.259797210791689},{"$f":"IF('Data Input - General'!$F$10=\"Yes\",HLOOKUP(Calc_BAU!I$6,'Carbon Prices'!$D$9:$CP$15,3,FALSE),HLOOKUP(Calc_BAU!I$6,'Carbon Prices'!$D$9:$CP$15,6,FALSE))","v":37.985012476770486},{"$f":"IF('Data Input - General'!$F$10=\"Yes\",HLOOKUP(Calc_BAU!J$6,'Carbon Prices'!$D$9:$CP$15,3,FALSE),HLOOKUP(Calc_BAU!J$6,'Carbon Prices'!$D$9:$CP$15,6,FALSE))","v":45.710227742749282},{"$f":"IF('Data Input - General'!$F$10=\"Yes\",HLOOKUP(Calc_BAU!K$6,'Carbon Prices'!$D$9:$CP$15,3,FALSE),HLOOKUP(Calc_BAU!K$6,'Carbon Prices'!$D$9:$CP$15,6,FALSE))","v":53.435443008728079},{"$f":"IF('Data Input - General'!$F$10=\"Yes\",HLOOKUP(Calc_BAU!L$6,'Carbon Prices'!$D$9:$CP$15,3,FALSE),HLOOKUP(Calc_BAU!L$6,'Carbon Prices'!$D$9:$CP$15,6,FALSE))","v":61.160658274706876},{"$f":"IF('Data Input - General'!$F$10=\"Yes\",HLOOKUP(Calc_BAU!M$6,'Carbon Prices'!$D$9:$CP$15,3,FALSE),HLOOKUP(Calc_BAU!M$6,'Carbon Prices'!$D$9:$CP$15,6,FALSE))","v":68.885873540685665},{"$f":"IF('Data Input - General'!$F$10=\"Yes\",HLOOKUP(Calc_BAU!N$6,'Carbon Prices'!$D$9:$CP$15,3,FALSE),HLOOKUP(Calc_BAU!N$6,'Carbon Prices'!$D$9:$CP$15,6,FALSE))","v":76.611088806664469},{"$f":"IF('Data Input - General'!$F$10=\"Yes\",HLOOKUP(Calc_BAU!O$6,'Carbon Prices'!$D$9:$CP$15,3,FALSE),HLOOKUP(Calc_BAU!O$6,'Carbon Prices'!$D$9:$CP$15,6,FALSE))","v":84.336304072643259},{"$f":"IF('Data Input - General'!$F$10=\"Yes\",HLOOKUP(Calc_BAU!P$6,'Carbon Prices'!$D$9:$CP$15,3,FALSE),HLOOKUP(Calc_BAU!P$6,'Carbon Prices'!$D$9:$CP$15,6,FALSE))","v":92.167532307960172},{"$f":"IF('Data Input - General'!$F$10=\"Yes\",HLOOKUP(Calc_BAU!Q$6,'Carbon Prices'!$D$9:$CP$15,3,FALSE),HLOOKUP(Calc_BAU!Q$6,'Carbon Prices'!$D$9:$CP$15,6,FALSE))","v":99.998760543277044},{"$f":"IF('Data Input - General'!$F$10=\"Yes\",HLOOKUP(Calc_BAU!R$6,'Carbon Prices'!$D$9:$CP$15,3,FALSE),HLOOKUP(Calc_BAU!R$6,'Carbon Prices'!$D$9:$CP$15,6,FALSE))","v":107.82998877859391},{"$f":"IF('Data Input - General'!$F$10=\"Yes\",HLOOKUP(Calc_BAU!S$6,'Carbon Prices'!$D$9:$CP$15,3,FALSE),HLOOKUP(Calc_BAU!S$6,'Carbon Prices'!$D$9:$CP$15,6,FALSE))","v":115.6612170139108},{"$f":"IF('Data Input - General'!$F$10=\"Yes\",HLOOKUP(Calc_BAU!T$6,'Carbon Prices'!$D$9:$CP$15,3,FALSE),HLOOKUP(Calc_BAU!T$6,'Carbon Prices'!$D$9:$CP$15,6,FALSE))","v":123.49244524922767},{"$f":"IF('Data Input - General'!$F$10=\"Yes\",HLOOKUP(Calc_BAU!U$6,'Carbon Prices'!$D$9:$CP$15,3,FALSE),HLOOKUP(Calc_BAU!U$6,'Carbon Prices'!$D$9:$CP$15,6,FALSE))","v":131.32367348454454},{"$f":"IF('Data Input - General'!$F$10=\"Yes\",HLOOKUP(Calc_BAU!V$6,'Carbon Prices'!$D$9:$CP$15,3,FALSE),HLOOKUP(Calc_BAU!V$6,'Carbon Prices'!$D$9:$CP$15,6,FALSE))","v":139.15490171986141},{"$f":"IF('Data Input - General'!$F$10=\"Yes\",HLOOKUP(Calc_BAU!W$6,'Carbon Prices'!$D$9:$CP$15,3,FALSE),HLOOKUP(Calc_BAU!W$6,'Carbon Prices'!$D$9:$CP$15,6,FALSE))","v":146.98612995517828},{"$f":"IF('Data Input - General'!$F$10=\"Yes\",HLOOKUP(Calc_BAU!X$6,'Carbon Prices'!$D$9:$CP$15,3,FALSE),HLOOKUP(Calc_BAU!X$6,'Carbon Prices'!$D$9:$CP$15,6,FALSE))","v":154.81735819049521},{"$f":"IF('Data Input - General'!$F$10=\"Yes\",HLOOKUP(Calc_BAU!Y$6,'Carbon Prices'!$D$9:$CP$15,3,FALSE),HLOOKUP(Calc_BAU!Y$6,'Carbon Prices'!$D$9:$CP$15,6,FALSE))","v":162.64858642581208},{"$f":"IF('Data Input - General'!$F$10=\"Yes\",HLOOKUP(Calc_BAU!Z$6,'Carbon Prices'!$D$9:$CP$15,3,FALSE),HLOOKUP(Calc_BAU!Z$6,'Carbon Prices'!$D$9:$CP$15,6,FALSE))","v":170.47981466112896},{"$f":"IF('Data Input - General'!$F$10=\"Yes\",HLOOKUP(Calc_BAU!AA$6,'Carbon Prices'!$D$9:$CP$15,3,FALSE),HLOOKUP(Calc_BAU!AA$6,'Carbon Prices'!$D$9:$CP$15,6,FALSE))","v":178.31104289644583},{"$f":"IF('Data Input - General'!$F$10=\"Yes\",HLOOKUP(Calc_BAU!AB$6,'Carbon Prices'!$D$9:$CP$15,3,FALSE),HLOOKUP(Calc_BAU!AB$6,'Carbon Prices'!$D$9:$CP$15,6,FALSE))","v":186.1422711317627},{"$f":"IF('Data Input - General'!$F$10=\"Yes\",HLOOKUP(Calc_BAU!AC$6,'Carbon Prices'!$D$9:$CP$15,3,FALSE),HLOOKUP(Calc_BAU!AC$6,'Carbon Prices'!$D$9:$CP$15,6,FALSE))","v":193.97349936707957},{"$f":"IF('Data Input - General'!$F$10=\"Yes\",HLOOKUP(Calc_BAU!AD$6,'Carbon Prices'!$D$9:$CP$15,3,FALSE),HLOOKUP(Calc_BAU!AD$6,'Carbon Prices'!$D$9:$CP$15,6,FALSE))","v":201.80472760239644},{"$f":"IF('Data Input - General'!$F$10=\"Yes\",HLOOKUP(Calc_BAU!AE$6,'Carbon Prices'!$D$9:$CP$15,3,FALSE),HLOOKUP(Calc_BAU!AE$6,'Carbon Prices'!$D$9:$CP$15,6,FALSE))","v":209.63595583771331},{"$f":"IF('Data Input - General'!$F$10=\"Yes\",HLOOKUP(Calc_BAU!AF$6,'Carbon Prices'!$D$9:$CP$15,3,FALSE),HLOOKUP(Calc_BAU!AF$6,'Carbon Prices'!$D$9:$CP$15,6,FALSE))","v":217.46718407303021},{"$f":"IF('Data Input - General'!$F$10=\"Yes\",HLOOKUP(Calc_BAU!AG$6,'Carbon Prices'!$D$9:$CP$15,3,FALSE),HLOOKUP(Calc_BAU!AG$6,'Carbon Prices'!$D$9:$CP$15,6,FALSE))","v":225.29841230834708},{"$f":"IF('Data Input - General'!$F$10=\"Yes\",HLOOKUP(Calc_BAU!AH$6,'Carbon Prices'!$D$9:$CP$15,3,FALSE),HLOOKUP(Calc_BAU!AH$6,'Carbon Prices'!$D$9:$CP$15,6,FALSE))","v":233.12964054366395},{"$f":"IF('Data Input - General'!$F$10=\"Yes\",HLOOKUP(Calc_BAU!AI$6,'Carbon Prices'!$D$9:$CP$15,3,FALSE),HLOOKUP(Calc_BAU!AI$6,'Carbon Prices'!$D$9:$CP$15,6,FALSE))","v":{"$error":"#N/A"}},{"$f":"IF('Data Input - General'!$F$10=\"Yes\",HLOOKUP(Calc_BAU!AJ$6,'Carbon Prices'!$D$9:$CP$15,3,FALSE),HLOOKUP(Calc_BAU!AJ$6,'Carbon Prices'!$D$9:$CP$15,6,FALSE))","v":{"$error":"#N/A"}},{"$f":"IF('Data Input - General'!$F$10=\"Yes\",HLOOKUP(Calc_BAU!AK$6,'Carbon Prices'!$D$9:$CP$15,3,FALSE),HLOOKUP(Calc_BAU!AK$6,'Carbon Prices'!$D$9:$CP$15,6,FALSE))","v":{"$error":"#N/A"}},{"$f":"IF('Data Input - General'!$F$10=\"Yes\",HLOOKUP(Calc_BAU!AL$6,'Carbon Prices'!$D$9:$CP$15,3,FALSE),HLOOKUP(Calc_BAU!AL$6,'Carbon Prices'!$D$9:$CP$15,6,FALSE))","v":{"$error":"#N/A"}},{"$f":"IF('Data Input - General'!$F$10=\"Yes\",HLOOKUP(Calc_BAU!AM$6,'Carbon Prices'!$D$9:$CP$15,3,FALSE),HLOOKUP(Calc_BAU!AM$6,'Carbon Prices'!$D$9:$CP$15,6,FALSE))","v":{"$error":"#N/A"}},{"$f":"IF('Data Input - General'!$F$10=\"Yes\",HLOOKUP(Calc_BAU!AN$6,'Carbon Prices'!$D$9:$CP$15,3,FALSE),HLOOKUP(Calc_BAU!AN$6,'Carbon Prices'!$D$9:$CP$15,6,FALSE))","v":{"$error":"#N/A"}},{"$f":"IF('Data Input - General'!$F$10=\"Yes\",HLOOKUP(Calc_BAU!AO$6,'Carbon Prices'!$D$9:$CP$15,3,FALSE),HLOOKUP(Calc_BAU!AO$6,'Carbon Prices'!$D$9:$CP$15,6,FALSE))","v":{"$error":"#N/A"}},{"$f":"IF('Data Input - General'!$F$10=\"Yes\",HLOOKUP(Calc_BAU!AP$6,'Carbon Prices'!$D$9:$CP$15,3,FALSE),HLOOKUP(Calc_BAU!AP$6,'Carbon Prices'!$D$9:$CP$15,6,FALSE))","v":{"$error":"#N/A"}},{"$f":"IF('Data Input - General'!$F$10=\"Yes\",HLOOKUP(Calc_BAU!AQ$6,'Carbon Prices'!$D$9:$CP$15,3,FALSE),HLOOKUP(Calc_BAU!AQ$6,'Carbon Prices'!$D$9:$CP$15,6,FALSE))","v":{"$error":"#N/A"}},{"$f":"IF('Data Input - General'!$F$10=\"Yes\",HLOOKUP(Calc_BAU!AR$6,'Carbon Prices'!$D$9:$CP$15,3,FALSE),HLOOKUP(Calc_BAU!AR$6,'Carbon Prices'!$D$9:$CP$15,6,FALSE))","v":{"$error":"#N/A"}},{"$f":"IF('Data Input - General'!$F$10=\"Yes\",HLOOKUP(Calc_BAU!AS$6,'Carbon Prices'!$D$9:$CP$15,3,FALSE),HLOOKUP(Calc_BAU!AS$6,'Carbon Prices'!$D$9:$CP$15,6,FALSE))","v":{"$error":"#N/A"}},{"$f":"IF('Data Input - General'!$F$10=\"Yes\",HLOOKUP(Calc_BAU!AT$6,'Carbon Prices'!$D$9:$CP$15,3,FALSE),HLOOKUP(Calc_BAU!AT$6,'Carbon Prices'!$D$9:$CP$15,6,FALSE))","v":{"$error":"#N/A"}},{"$f":"IF('Data Input - General'!$F$10=\"Yes\",HLOOKUP(Calc_BAU!AU$6,'Carbon Prices'!$D$9:$CP$15,3,FALSE),HLOOKUP(Calc_BAU!AU$6,'Carbon Prices'!$D$9:$CP$15,6,FALSE))","v":{"$error":"#N/A"}},{"$f":"IF('Data Input - General'!$F$10=\"Yes\",HLOOKUP(Calc_BAU!AV$6,'Carbon Prices'!$D$9:$CP$15,3,FALSE),HLOOKUP(Calc_BAU!AV$6,'Carbon Prices'!$D$9:$CP$15,6,FALSE))","v":{"$error":"#N/A"}},{"$f":"IF('Data Input - General'!$F$10=\"Yes\",HLOOKUP(Calc_BAU!AW$6,'Carbon Prices'!$D$9:$CP$15,3,FALSE),HLOOKUP(Calc_BAU!AW$6,'Carbon Prices'!$D$9:$CP$15,6,FALSE))","v":{"$error":"#N/A"}},{"$f":"IF('Data Input - General'!$F$10=\"Yes\",HLOOKUP(Calc_BAU!AX$6,'Carbon Prices'!$D$9:$CP$15,3,FALSE),HLOOKUP(Calc_BAU!AX$6,'Carbon Prices'!$D$9:$CP$15,6,FALSE))","v":{"$error":"#N/A"}},{"$f":"IF('Data Input - General'!$F$10=\"Yes\",HLOOKUP(Calc_BAU!AY$6,'Carbon Prices'!$D$9:$CP$15,3,FALSE),HLOOKUP(Calc_BAU!AY$6,'Carbon Prices'!$D$9:$CP$15,6,FALSE))","v":{"$error":"#N/A"}},{"$f":"IF('Data Input - General'!$F$10=\"Yes\",HLOOKUP(Calc_BAU!AZ$6,'Carbon Prices'!$D$9:$CP$15,3,FALSE),HLOOKUP(Calc_BAU!AZ$6,'Carbon Prices'!$D$9:$CP$15,6,FALSE))","v":{"$error":"#N/A"}},{"$f":"IF('Data Input - General'!$F$10=\"Yes\",HLOOKUP(Calc_BAU!BA$6,'Carbon Prices'!$D$9:$CP$15,3,FALSE),HLOOKUP(Calc_BAU!BA$6,'Carbon Prices'!$D$9:$CP$15,6,FALSE))","v":{"$error":"#N/A"}},{"$f":"IF('Data Input - General'!$F$10=\"Yes\",HLOOKUP(Calc_BAU!BB$6,'Carbon Prices'!$D$9:$CP$15,3,FALSE),HLOOKUP(Calc_BAU!BB$6,'Carbon Prices'!$D$9:$CP$15,6,FALSE))","v":{"$error":"#N/A"}},{"$f":"IF('Data Input - General'!$F$10=\"Yes\",HLOOKUP(Calc_BAU!BC$6,'Carbon Prices'!$D$9:$CP$15,3,FALSE),HLOOKUP(Calc_BAU!BC$6,'Carbon Prices'!$D$9:$CP$15,6,FALSE))","v":{"$error":"#N/A"}},{"$f":"IF('Data Input - General'!$F$10=\"Yes\",HLOOKUP(Calc_BAU!BD$6,'Carbon Prices'!$D$9:$CP$15,3,FALSE),HLOOKUP(Calc_BAU!BD$6,'Carbon Prices'!$D$9:$CP$15,6,FALSE))","v":{"$error":"#N/A"}},{"$f":"IF('Data Input - General'!$F$10=\"Yes\",HLOOKUP(Calc_BAU!BE$6,'Carbon Prices'!$D$9:$CP$15,3,FALSE),HLOOKUP(Calc_BAU!BE$6,'Carbon Prices'!$D$9:$CP$15,6,FALSE))","v":{"$error":"#N/A"}},{"$f":"IF('Data Input - General'!$F$10=\"Yes\",HLOOKUP(Calc_BAU!BF$6,'Carbon Prices'!$D$9:$CP$15,3,FALSE),HLOOKUP(Calc_BAU!BF$6,'Carbon Prices'!$D$9:$CP$15,6,FALSE))","v":{"$error":"#N/A"}},{"$f":"IF('Data Input - General'!$F$10=\"Yes\",HLOOKUP(Calc_BAU!BG$6,'Carbon Prices'!$D$9:$CP$15,3,FALSE),HLOOKUP(Calc_BAU!BG$6,'Carbon Prices'!$D$9:$CP$15,6,FALSE))","v":{"$error":"#N/A"}},{"$f":"IF('Data Input - General'!$F$10=\"Yes\",HLOOKUP(Calc_BAU!BH$6,'Carbon Prices'!$D$9:$CP$15,3,FALSE),HLOOKUP(Calc_BAU!BH$6,'Carbon Prices'!$D$9:$CP$15,6,FALSE))","v":{"$error":"#N/A"}},{"$f":"IF('Data Input - General'!$F$10=\"Yes\",HLOOKUP(Calc_BAU!BI$6,'Carbon Prices'!$D$9:$CP$15,3,FALSE),HLOOKUP(Calc_BAU!BI$6,'Carbon Prices'!$D$9:$CP$15,6,FALSE))","v":{"$error":"#N/A"}},{"$f":"IF('Data Input - General'!$F$10=\"Yes\",HLOOKUP(Calc_BAU!BJ$6,'Carbon Prices'!$D$9:$CP$15,3,FALSE),HLOOKUP(Calc_BAU!BJ$6,'Carbon Prices'!$D$9:$CP$15,6,FALSE))","v":{"$error":"#N/A"}},{"$f":"IF('Data Input - General'!$F$10=\"Yes\",HLOOKUP(Calc_BAU!BK$6,'Carbon Prices'!$D$9:$CP$15,3,FALSE),HLOOKUP(Calc_BAU!BK$6,'Carbon Prices'!$D$9:$CP$15,6,FALSE))","v":{"$error":"#N/A"}},{"$f":"IF('Data Input - General'!$F$10=\"Yes\",HLOOKUP(Calc_BAU!BL$6,'Carbon Prices'!$D$9:$CP$15,3,FALSE),HLOOKUP(Calc_BAU!BL$6,'Carbon Prices'!$D$9:$CP$15,6,FALSE))","v":{"$error":"#N/A"}},{"$f":"IF('Data Input - General'!$F$10=\"Yes\",HLOOKUP(Calc_BAU!BM$6,'Carbon Prices'!$D$9:$CP$15,3,FALSE),HLOOKUP(Calc_BAU!BM$6,'Carbon Prices'!$D$9:$CP$15,6,FALSE))","v":{"$error":"#N/A"}},{"$f":"IF('Data Input - General'!$F$10=\"Yes\",HLOOKUP(Calc_BAU!BN$6,'Carbon Prices'!$D$9:$CP$15,3,FALSE),HLOOKUP(Calc_BAU!BN$6,'Carbon Prices'!$D$9:$CP$15,6,FALSE))","v":{"$error":"#N/A"}},{"$f":"IF('Data Input - General'!$F$10=\"Yes\",HLOOKUP(Calc_BAU!BO$6,'Carbon Prices'!$D$9:$CP$15,3,FALSE),HLOOKUP(Calc_BAU!BO$6,'Carbon Prices'!$D$9:$CP$15,6,FALSE))","v":{"$error":"#N/A"}},{"$f":"IF('Data Input - General'!$F$10=\"Yes\",HLOOKUP(Calc_BAU!BP$6,'Carbon Prices'!$D$9:$CP$15,3,FALSE),HLOOKUP(Calc_BAU!BP$6,'Carbon Prices'!$D$9:$CP$15,6,FALSE))","v":{"$error":"#N/A"}},{"$f":"IF('Data Input - General'!$F$10=\"Yes\",HLOOKUP(Calc_BAU!BQ$6,'Carbon Prices'!$D$9:$CP$15,3,FALSE),HLOOKUP(Calc_BAU!BQ$6,'Carbon Prices'!$D$9:$CP$15,6,FALSE))","v":{"$error":"#N/A"}},{"$f":"IF('Data Input - General'!$F$10=\"Yes\",HLOOKUP(Calc_BAU!BR$6,'Carbon Prices'!$D$9:$CP$15,3,FALSE),HLOOKUP(Calc_BAU!BR$6,'Carbon Prices'!$D$9:$CP$15,6,FALSE))","v":{"$error":"#N/A"}},{"$f":"IF('Data Input - General'!$F$10=\"Yes\",HLOOKUP(Calc_BAU!BS$6,'Carbon Prices'!$D$9:$CP$15,3,FALSE),HLOOKUP(Calc_BAU!BS$6,'Carbon Prices'!$D$9:$CP$15,6,FALSE))","v":{"$error":"#N/A"}},{"$f":"IF('Data Input - General'!$F$10=\"Yes\",HLOOKUP(Calc_BAU!BT$6,'Carbon Prices'!$D$9:$CP$15,3,FALSE),HLOOKUP(Calc_BAU!BT$6,'Carbon Prices'!$D$9:$CP$15,6,FALSE))","v":{"$error":"#N/A"}},{"$f":"IF('Data Input - General'!$F$10=\"Yes\",HLOOKUP(Calc_BAU!BU$6,'Carbon Prices'!$D$9:$CP$15,3,FALSE),HLOOKUP(Calc_BAU!BU$6,'Carbon Prices'!$D$9:$CP$15,6,FALSE))","v":{"$error":"#N/A"}},{"$f":"IF('Data Input - General'!$F$10=\"Yes\",HLOOKUP(Calc_BAU!BV$6,'Carbon Prices'!$D$9:$CP$15,3,FALSE),HLOOKUP(Calc_BAU!BV$6,'Carbon Prices'!$D$9:$CP$15,6,FALSE))","v":{"$error":"#N/A"}},{"$f":"IF('Data Input - General'!$F$10=\"Yes\",HLOOKUP(Calc_BAU!BW$6,'Carbon Prices'!$D$9:$CP$15,3,FALSE),HLOOKUP(Calc_BAU!BW$6,'Carbon Prices'!$D$9:$CP$15,6,FALSE))","v":{"$error":"#N/A"}},{"$f":"IF('Data Input - General'!$F$10=\"Yes\",HLOOKUP(Calc_BAU!BX$6,'Carbon Prices'!$D$9:$CP$15,3,FALSE),HLOOKUP(Calc_BAU!BX$6,'Carbon Prices'!$D$9:$CP$15,6,FALSE))","v":{"$error":"#N/A"}},{"$f":"IF('Data Input - General'!$F$10=\"Yes\",HLOOKUP(Calc_BAU!BY$6,'Carbon Prices'!$D$9:$CP$15,3,FALSE),HLOOKUP(Calc_BAU!BY$6,'Carbon Prices'!$D$9:$CP$15,6,FALSE))","v":{"$error":"#N/A"}},{"$f":"IF('Data Input - General'!$F$10=\"Yes\",HLOOKUP(Calc_BAU!BZ$6,'Carbon Prices'!$D$9:$CP$15,3,FALSE),HLOOKUP(Calc_BAU!BZ$6,'Carbon Prices'!$D$9:$CP$15,6,FALSE))","v":{"$error":"#N/A"}},{"$f":"IF('Data Input - General'!$F$10=\"Yes\",HLOOKUP(Calc_BAU!CA$6,'Carbon Prices'!$D$9:$CP$15,3,FALSE),HLOOKUP(Calc_BAU!CA$6,'Carbon Prices'!$D$9:$CP$15,6,FALSE))","v":{"$error":"#N/A"}},{"$f":"IF('Data Input - General'!$F$10=\"Yes\",HLOOKUP(Calc_BAU!CB$6,'Carbon Prices'!$D$9:$CP$15,3,FALSE),HLOOKUP(Calc_BAU!CB$6,'Carbon Prices'!$D$9:$CP$15,6,FALSE))","v":{"$error":"#N/A"}},{"$f":"IF('Data Input - General'!$F$10=\"Yes\",HLOOKUP(Calc_BAU!CC$6,'Carbon Prices'!$D$9:$CP$15,3,FALSE),HLOOKUP(Calc_BAU!CC$6,'Carbon Prices'!$D$9:$CP$15,6,FALSE))","v":{"$error":"#N/A"}},{"$f":"IF('Data Input - General'!$F$10=\"Yes\",HLOOKUP(Calc_BAU!CD$6,'Carbon Prices'!$D$9:$CP$15,3,FALSE),HLOOKUP(Calc_BAU!CD$6,'Carbon Prices'!$D$9:$CP$15,6,FALSE))","v":{"$error":"#N/A"}},{"$f":"IF('Data Input - General'!$F$10=\"Yes\",HLOOKUP(Calc_BAU!CE$6,'Carbon Prices'!$D$9:$CP$15,3,FALSE),HLOOKUP(Calc_BAU!CE$6,'Carbon Prices'!$D$9:$CP$15,6,FALSE))","v":{"$error":"#N/A"}},{"$f":"IF('Data Input - General'!$F$10=\"Yes\",HLOOKUP(Calc_BAU!CF$6,'Carbon Prices'!$D$9:$CP$15,3,FALSE),HLOOKUP(Calc_BAU!CF$6,'Carbon Prices'!$D$9:$CP$15,6,FALSE))","v":{"$error":"#N/A"}},{"$f":"IF('Data Input - General'!$F$10=\"Yes\",HLOOKUP(Calc_BAU!CG$6,'Carbon Prices'!$D$9:$CP$15,3,FALSE),HLOOKUP(Calc_BAU!CG$6,'Carbon Prices'!$D$9:$CP$15,6,FALSE))","v":{"$error":"#N/A"}},{"$f":"IF('Data Input - General'!$F$10=\"Yes\",HLOOKUP(Calc_BAU!CH$6,'Carbon Prices'!$D$9:$CP$15,3,FALSE),HLOOKUP(Calc_BAU!CH$6,'Carbon Prices'!$D$9:$CP$15,6,FALSE))","v":{"$error":"#N/A"}},{"$f":"IF('Data Input - General'!$F$10=\"Yes\",HLOOKUP(Calc_BAU!CI$6,'Carbon Prices'!$D$9:$CP$15,3,FALSE),HLOOKUP(Calc_BAU!CI$6,'Carbon Prices'!$D$9:$CP$15,6,FALSE))","v":{"$error":"#N/A"}},{"$f":"IF('Data Input - General'!$F$10=\"Yes\",HLOOKUP(Calc_BAU!CJ$6,'Carbon Prices'!$D$9:$CP$15,3,FALSE),HLOOKUP(Calc_BAU!CJ$6,'Carbon Prices'!$D$9:$CP$15,6,FALSE))","v":{"$error":"#N/A"}},{"$f":"IF('Data Input - General'!$F$10=\"Yes\",HLOOKUP(Calc_BAU!CK$6,'Carbon Prices'!$D$9:$CP$15,3,FALSE),HLOOKUP(Calc_BAU!CK$6,'Carbon Prices'!$D$9:$CP$15,6,FALSE))","v":{"$error":"#N/A"}},{"$f":"IF('Data Input - General'!$F$10=\"Yes\",HLOOKUP(Calc_BAU!CL$6,'Carbon Prices'!$D$9:$CP$15,3,FALSE),HLOOKUP(Calc_BAU!CL$6,'Carbon Prices'!$D$9:$CP$15,6,FALSE))","v":{"$error":"#N/A"}},{"$f":"IF('Data Input - General'!$F$10=\"Yes\",HLOOKUP(Calc_BAU!CM$6,'Carbon Prices'!$D$9:$CP$15,3,FALSE),HLOOKUP(Calc_BAU!CM$6,'Carbon Prices'!$D$9:$CP$15,6,FALSE))","v":{"$error":"#N/A"}},{"$f":"IF('Data Input - General'!$F$10=\"Yes\",HLOOKUP(Calc_BAU!CN$6,'Carbon Prices'!$D$9:$CP$15,3,FALSE),HLOOKUP(Calc_BAU!CN$6,'Carbon Prices'!$D$9:$CP$15,6,FALSE))","v":{"$error":"#N/A"}},{"$f":"IF('Data Input - General'!$F$10=\"Yes\",HLOOKUP(Calc_BAU!CO$6,'Carbon Prices'!$D$9:$CP$15,3,FALSE),HLOOKUP(Calc_BAU!CO$6,'Carbon Prices'!$D$9:$CP$15,6,FALSE))","v":{"$error":"#N/A"}},{"$f":"IF('Data Input - General'!$F$10=\"Yes\",HLOOKUP(Calc_BAU!CP$6,'Carbon Prices'!$D$9:$CP$15,3,FALSE),HLOOKUP(Calc_BAU!CP$6,'Carbon Prices'!$D$9:$CP$15,6,FALSE))","v":{"$error":"#N/A"}},{"$f":"IF('Data Input - General'!$F$10=\"Yes\",HLOOKUP(Calc_BAU!CQ$6,'Carbon Prices'!$D$9:$CP$15,3,FALSE),HLOOKUP(Calc_BAU!CQ$6,'Carbon Prices'!$D$9:$CP$15,6,FALSE))","v":{"$error":"#N/A"}},{"$f":"IF('Data Input - General'!$F$10=\"Yes\",HLOOKUP(Calc_BAU!CR$6,'Carbon Prices'!$D$9:$CP$15,3,FALSE),HLOOKUP(Calc_BAU!CR$6,'Carbon Prices'!$D$9:$CP$15,6,FALSE))","v":{"$error":"#N/A"}},{"$f":"IF('Data Input - General'!$F$10=\"Yes\",HLOOKUP(Calc_BAU!CS$6,'Carbon Prices'!$D$9:$CP$15,3,FALSE),HLOOKUP(Calc_BAU!CS$6,'Carbon Prices'!$D$9:$CP$15,6,FALSE))","v":{"$error":"#N/A"}},{"$f":"IF('Data Input - General'!$F$10=\"Yes\",HLOOKUP(Calc_BAU!CT$6,'Carbon Prices'!$D$9:$CP$15,3,FALSE),HLOOKUP(Calc_BAU!CT$6,'Carbon Prices'!$D$9:$CP$15,6,FALSE))","v":{"$error":"#N/A"}},{"$f":"IF('Data Input - General'!$F$10=\"Yes\",HLOOKUP(Calc_BAU!CU$6,'Carbon Prices'!$D$9:$CP$15,3,FALSE),HLOOKUP(Calc_BAU!CU$6,'Carbon Prices'!$D$9:$CP$15,6,FALSE))","v":{"$error":"#N/A"}},{"$f":"IF('Data Input - General'!$F$10=\"Yes\",HLOOKUP(Calc_BAU!CV$6,'Carbon Prices'!$D$9:$CP$15,3,FALSE),HLOOKUP(Calc_BAU!CV$6,'Carbon Prices'!$D$9:$CP$15,6,FALSE))","v":{"$error":"#N/A"}},{"$f":"IF('Data Input - General'!$F$10=\"Yes\",HLOOKUP(Calc_BAU!CW$6,'Carbon Prices'!$D$9:$CP$15,3,FALSE),HLOOKUP(Calc_BAU!CW$6,'Carbon Prices'!$D$9:$CP$15,6,FALSE))","v":{"$error":"#N/A"}},{"$f":"IF('Data Input - General'!$F$10=\"Yes\",HLOOKUP(Calc_BAU!CX$6,'Carbon Prices'!$D$9:$CP$15,3,FALSE),HLOOKUP(Calc_BAU!CX$6,'Carbon Prices'!$D$9:$CP$15,6,FALSE))","v":{"$error":"#N/A"}},{"$f":"IF('Data Input - General'!$F$10=\"Yes\",HLOOKUP(Calc_BAU!CY$6,'Carbon Prices'!$D$9:$CP$15,3,FALSE),HLOOKUP(Calc_BAU!CY$6,'Carbon Prices'!$D$9:$CP$15,6,FALSE))","v":{"$error":"#N/A"}}]
[null,"Total value elec","£000's",{"$f":"IFERROR(D80*D82,0)","v":7834.2675436350428},{"$f":"IFERROR(E80*E82,0)","v":7245.322260334332},{"$f":"IFERROR(F80*F82,0)","v":13338.874023349481},18692.699682919276,21372.264592201627,28172.822351293562,31773.34242669689,33018.060213905141,0,0,0,0,0,0,0,0,0,0,0,0,0,0,0,0,0,0,0,0,0,0,0,0,0,0,0,0,0,0,0,0,0,0,0,0,0,0,0,0,0,0,0,0,0,0,0,0,0,0,0,0,0,0,0,0,0,0,{"$f":"IFERROR(BR80*BR82,0)","v":0},0,0,0,0,0,0,0,0,0,0,0,0,0,0,0,0,0,0,0,0,0,0,0,0,0,0,0,0,0,0,0,0,0]
[null,"Total value non-elec","£000's",{"$f":"IFERROR(D81*D83,0)","v":276383.09928244672},{"$f":"IFERROR(E81*E83,0)","v":286819.45473443193},599593.97085690463,912368.48697937722,1225143.0031018499,1537917.5192243226,1850692.0353467953,2163466.5514692683,0,0,0,0,0,0,0,0,0,0,0,0,0,0,0,0,0,0,0,0,0,0,0,0,0,0,0,0,0,0,0,0,0,0,0,0,0,0,0,0,0,0,0,0,0,0,0,0,0,0,0,0,0,0,0,0,0,0,0,0,0,0,0,0,0,0,0,0,0,0,0,0,0,0,0,0,0,0,0,0,0,0,0,0,0,0,0,0,0,0,0,0]
[]
[null,"Discounted total GHG","£000's",{"$f":"SUM(D84:D85,D77)*D$7/1000","v":591.33375755680288},{"$f":"SUM(E84:E85,E77)*E$7/1000","v":592.12714065048772},1194.2909710170957,1754.384427308775,2272.9009708381573,2757.8123006531841,3204.7252851139028,1726.4170500640832,0,0,0,0,0,0,0,0,0,0,0,0,0,0,0,0,0,0,0,0,0,0,0,0,0,0,0,0,0,0,0,0,0,0,0,0,0,0,0,0,0,0,0,0,0,0,0,0,0,0,0,0,0,0,0,0,0,{"$f":"SUM(BQ84:BQ85,BQ77)*BQ$7/1000","v":0},0,0,0,0,0,0,0,0,0,0,0,0,0,0,0,0,0,0,0,0,0,0,0,0,0,0,0,0,0,0,0,0,0,0]
[]
[null,"SENSITIVITY ANALYSIS"]
[]
[null,"Low values"]
[]
[null,"Energy Consumption"]
[null,"Electricity","£000's",{"$f":"IFERROR('Data Input - BAU'!H84*INDEX('Energy Prices'!$F$19:$CR$24,MATCH($B94,'Energy Prices'!$C$19:$C$24,0),MATCH(Calc_BAU!D$6,'Energy Prices'!$F$11:$CR$11,0))/100000,\"\")","v":381.14765882209355},{"$f":"IFERROR('Data Input - BAU'!I84*INDEX('Energy Prices'!$F$19:$CR$24,MATCH($B94,'Energy Prices'!$C$19:$C$24,0),MATCH(Calc_BAU!E$6,'Energy Prices'!$F$11:$CR$11,0))/100000,\"\")","v":419.92655846774767},{"$f":"IFERROR('Data Input - BAU'!J84*INDEX('Energy Prices'!$F$19:$CR$24,MATCH($B94,'Energy Prices'!$C$19:$C$24,0),MATCH(Calc_BAU!F$6,'Energy Prices'!$F$11:$CR$11,0))/100000,\"\")","v":423.88884434102221},{"$f":"IFERROR('Data Input - BAU'!K84*INDEX('Energy Prices'!$F$19:$CR$24,MATCH($B94,'Energy Prices'!$C$19:$C$24,0),MATCH(Calc_BAU!G$6,'Energy Prices'!$F$11:$CR$11,0))/100000,\"\")","v":455.56962244407958},{"$f":"IFERROR('Data Input - BAU'!L84*INDEX('Energy Prices'!$F$19:$CR$24,MATCH($B94,'Energy Prices'!$C$19:$C$24,0),MATCH(Calc_BAU!H$6,'Energy Prices'!$F$11:$CR$11,0))/100000,\"\")","v":454.23873487734414},{"$f":"IFERROR('Data Input - BAU'!M84*INDEX('Energy Prices'!$F$19:$CR$24,MATCH($B94,'Energy Prices'!$C$19:$C$24,0),MATCH(Calc_BAU!I$6,'Energy Prices'!$F$11:$CR$11,0))/100000,\"\")","v":489.76258839178865},{"$f":"IFERROR('Data Input - BAU'!N84*INDEX('Energy Prices'!$F$19:$CR$24,MATCH($B94,'Energy Prices'!$C$19:$C$24,0),MATCH(Calc_BAU!J$6,'Energy Prices'!$F$11:$CR$11,0))/100000,\"\")","v":515.2556060578778},{"$f":"IFERROR('Data Input - BAU'!O84*INDEX('Energy Prices'!$F$19:$CR$24,MATCH($B94,'Energy Prices'!$C$19:$C$24,0),MATCH(Calc_BAU!K$6,'Energy Prices'!$F$11:$CR$11,0))/100000,\"\")","v":509.17496416322342},{"$f":"IFERROR('Data Input - BAU'!P84*INDEX('Energy Prices'!$F$19:$CR$24,MATCH($B94,'Energy Prices'!$C$19:$C$24,0),MATCH(Calc_BAU!L$6,'Energy Prices'!$F$11:$CR$11,0))/100000,\"\")","v":0},{"$f":"IFERROR('Data Input - BAU'!Q84*INDEX('Energy Prices'!$F$19:$CR$24,MATCH($B94,'Energy Prices'!$C$19:$C$24,0),MATCH(Calc_BAU!M$6,'Energy Prices'!$F$11:$CR$11,0))/100000,\"\")","v":0},{"$f":"IFERROR('Data Input - BAU'!R84*INDEX('Energy Prices'!$F$19:$CR$24,MATCH($B94,'Energy Prices'!$C$19:$C$24,0),MATCH(Calc_BAU!N$6,'Energy Prices'!$F$11:$CR$11,0))/100000,\"\")","v":0},{"$f":"IFERROR('Data Input - BAU'!S84*INDEX('Energy Prices'!$F$19:$CR$24,MATCH($B94,'Energy Prices'!$C$19:$C$24,0),MATCH(Calc_BAU!O$6,'Energy Prices'!$F$11:$CR$11,0))/100000,\"\")","v":0},{"$f":"IFERROR('Data Input - BAU'!T84*INDEX('Energy Prices'!$F$19:$CR$24,MATCH($B94,'Energy Prices'!$C$19:$C$24,0),MATCH(Calc_BAU!P$6,'Energy Prices'!$F$11:$CR$11,0))/100000,\"\")","v":0},{"$f":"IFERROR('Data Input - BAU'!U84*INDEX('Energy Prices'!$F$19:$CR$24,MATCH($B94,'Energy Prices'!$C$19:$C$24,0),MATCH(Calc_BAU!Q$6,'Energy Prices'!$F$11:$CR$11,0))/100000,\"\")","v":0},{"$f":"IFERROR('Data Input - BAU'!V84*INDEX('Energy Prices'!$F$19:$CR$24,MATCH($B94,'Energy Prices'!$C$19:$C$24,0),MATCH(Calc_BAU!R$6,'Energy Prices'!$F$11:$CR$11,0))/100000,\"\")","v":0},{"$f":"IFERROR('Data Input - BAU'!W84*INDEX('Energy Prices'!$F$19:$CR$24,MATCH($B94,'Energy Prices'!$C$19:$C$24,0),MATCH(Calc_BAU!S$6,'Energy Prices'!$F$11:$CR$11,0))/100000,\"\")","v":0},{"$f":"IFERROR('Data Input - BAU'!X84*INDEX('Energy Prices'!$F$19:$CR$24,MATCH($B94,'Energy Prices'!$C$19:$C$24,0),MATCH(Calc_BAU!T$6,'Energy Prices'!$F$11:$CR$11,0))/100000,\"\")","v":0},{"$f":"IFERROR('Data Input - BAU'!Y84*INDEX('Energy Prices'!$F$19:$CR$24,MATCH($B94,'Energy Prices'!$C$19:$C$24,0),MATCH(Calc_BAU!U$6,'Energy Prices'!$F$11:$CR$11,0))/100000,\"\")","v":0},{"$f":"IFERROR('Data Input - BAU'!Z84*INDEX('Energy Prices'!$F$19:$CR$24,MATCH($B94,'Energy Prices'!$C$19:$C$24,0),MATCH(Calc_BAU!V$6,'Energy Prices'!$F$11:$CR$11,0))/100000,\"\")","v":0},{"$f":"IFERROR('Data Input - BAU'!AA84*INDEX('Energy Prices'!$F$19:$CR$24,MATCH($B94,'Energy Prices'!$C$19:$C$24,0),MATCH(Calc_BAU!W$6,'Energy Prices'!$F$11:$CR$11,0))/100000,\"\")","v":0},{"$f":"IFERROR('Data Input - BAU'!AB84*INDEX('Energy Prices'!$F$19:$CR$24,MATCH($B94,'Energy Prices'!$C$19:$C$24,0),MATCH(Calc_BAU!X$6,'Energy Prices'!$F$11:$CR$11,0))/100000,\"\")","v":0},{"$f":"IFERROR('Data Input - BAU'!AC84*INDEX('Energy Prices'!$F$19:$CR$24,MATCH($B94,'Energy Prices'!$C$19:$C$24,0),MATCH(Calc_BAU!Y$6,'Energy Prices'!$F$11:$CR$11,0))/100000,\"\")","v":0},{"$f":"IFERROR('Data Input - BAU'!AD84*INDEX('Energy Prices'!$F$19:$CR$24,MATCH($B94,'Energy Prices'!$C$19:$C$24,0),MATCH(Calc_BAU!Z$6,'Energy Prices'!$F$11:$CR$11,0))/100000,\"\")","v":0},{"$f":"IFERROR('Data Input - BAU'!AE84*INDEX('Energy Prices'!$F$19:$CR$24,MATCH($B94,'Energy Prices'!$C$19:$C$24,0),MATCH(Calc_BAU!AA$6,'Energy Prices'!$F$11:$CR$11,0))/100000,\"\")","v":0},{"$f":"IFERROR('Data Input - BAU'!AF84*INDEX('Energy Prices'!$F$19:$CR$24,MATCH($B94,'Energy Prices'!$C$19:$C$24,0),MATCH(Calc_BAU!AB$6,'Energy Prices'!$F$11:$CR$11,0))/100000,\"\")","v":0},{"$f":"IFERROR('Data Input - BAU'!AG84*INDEX('Energy Prices'!$F$19:$CR$24,MATCH($B94,'Energy Prices'!$C$19:$C$24,0),MATCH(Calc_BAU!AC$6,'Energy Prices'!$F$11:$CR$11,0))/100000,\"\")","v":0},{"$f":"IFERROR('Data Input - BAU'!AH84*INDEX('Energy Prices'!$F$19:$CR$24,MATCH($B94,'Energy Prices'!$C$19:$C$24,0),MATCH(Calc_BAU!AD$6,'Energy Prices'!$F$11:$CR$11,0))/100000,\"\")","v":0},{"$f":"IFERROR('Data Input - BAU'!AI84*INDEX('Energy Prices'!$F$19:$CR$24,MATCH($B94,'Energy Prices'!$C$19:$C$24,0),MATCH(Calc_BAU!AE$6,'Energy Prices'!$F$11:$CR$11,0))/100000,\"\")","v":0},{"$f":"IFERROR('Data Input - BAU'!AJ84*INDEX('Energy Prices'!$F$19:$CR$24,MATCH($B94,'Energy Prices'!$C$19:$C$24,0),MATCH(Calc_BAU!AF$6,'Energy Prices'!$F$11:$CR$11,0))/100000,\"\")","v":0},{"$f":"IFERROR('Data Input - BAU'!AK84*INDEX('Energy Prices'!$F$19:$CR$24,MATCH($B94,'Energy Prices'!$C$19:$C$24,0),MATCH(Calc_BAU!AG$6,'Energy Prices'!$F$11:$CR$11,0))/100000,\"\")","v":0},{"$f":"IFERROR('Data Input - BAU'!AL84*INDEX('Energy Prices'!$F$19:$CR$24,MATCH($B94,'Energy Prices'!$C$19:$C$24,0),MATCH(Calc_BAU!AH$6,'Energy Prices'!$F$11:$CR$11,0))/100000,\"\")","v":0},{"$f":"IFERROR('Data Input - BAU'!AM84*INDEX('Energy Prices'!$F$19:$CR$24,MATCH($B94,'Energy Prices'!$C$19:$C$24,0),MATCH(Calc_BAU!AI$6,'Energy Prices'!$F$11:$CR$11,0))/100000,\"\")","v":""},{"$f":"IFERROR('Data Input - BAU'!AN84*INDEX('Energy Prices'!$F$19:$CR$24,MATCH($B94,'Energy Prices'!$C$19:$C$24,0),MATCH(Calc_BAU!AJ$6,'Energy Prices'!$F$11:$CR$11,0))/100000,\"\")","v":""},{"$f":"IFERROR('Data Input - BAU'!AO84*INDEX('Energy Prices'!$F$19:$CR$24,MATCH($B94,'Energy Prices'!$C$19:$C$24,0),MATCH(Calc_BAU!AK$6,'Energy Prices'!$F$11:$CR$11,0))/100000,\"\")","v":""},{"$f":"IFERROR('Data Input - BAU'!AP84*INDEX('Energy Prices'!$F$19:$CR$24,MATCH($B94,'Energy Prices'!$C$19:$C$24,0),MATCH(Calc_BAU!AL$6,'Energy Prices'!$F$11:$CR$11,0))/100000,\"\")","v":""},{"$f":"IFERROR('Data Input - BAU'!AQ84*INDEX('Energy Prices'!$F$19:$CR$24,MATCH($B94,'Energy Prices'!$C$19:$C$24,0),MATCH(Calc_BAU!AM$6,'Energy Prices'!$F$11:$CR$11,0))/100000,\"\")","v":""},{"$f":"IFERROR('Data Input - BAU'!AR84*INDEX('Energy Prices'!$F$19:$CR$24,MATCH($B94,'Energy Prices'!$C$19:$C$24,0),MATCH(Calc_BAU!AN$6,'Energy Prices'!$F$11:$CR$11,0))/100000,\"\")","v":""},{"$f":"IFERROR('Data Input - BAU'!AS84*INDEX('Energy Prices'!$F$19:$CR$24,MATCH($B94,'Energy Prices'!$C$19:$C$24,0),MATCH(Calc_BAU!AO$6,'Energy Prices'!$F$11:$CR$11,0))/100000,\"\")","v":""},{"$f":"IFERROR('Data Input - BAU'!AT84*INDEX('Energy Prices'!$F$19:$CR$24,MATCH($B94,'Energy Prices'!$C$19:$C$24,0),MATCH(Calc_BAU!AP$6,'Energy Prices'!$F$11:$CR$11,0))/100000,\"\")","v":""},{"$f":"IFERROR('Data Input - BAU'!AU84*INDEX('Energy Prices'!$F$19:$CR$24,MATCH($B94,'Energy Prices'!$C$19:$C$24,0),MATCH(Calc_BAU!AQ$6,'Energy Prices'!$F$11:$CR$11,0))/100000,\"\")","v":""},{"$f":"IFERROR('Data Input - BAU'!AV84*INDEX('Energy Prices'!$F$19:$CR$24,MATCH($B94,'Energy Prices'!$C$19:$C$24,0),MATCH(Calc_BAU!AR$6,'Energy Prices'!$F$11:$CR$11,0))/100000,\"\")","v":""},{"$f":"IFERROR('Data Input - BAU'!AW84*INDEX('Energy Prices'!$F$19:$CR$24,MATCH($B94,'Energy Prices'!$C$19:$C$24,0),MATCH(Calc_BAU!AS$6,'Energy Prices'!$F$11:$CR$11,0))/100000,\"\")","v":""},{"$f":"IFERROR('Data Input - BAU'!AX84*INDEX('Energy Prices'!$F$19:$CR$24,MATCH($B94,'Energy Prices'!$C$19:$C$24,0),MATCH(Calc_BAU!AT$6,'Energy Prices'!$F$11:$CR$11,0))/100000,\"\")","v":""},{"$f":"IFERROR('Data Input - BAU'!AY84*INDEX('Energy Prices'!$F$19:$CR$24,MATCH($B94,'Energy Prices'!$C$19:$C$24,0),MATCH(Calc_BAU!AU$6,'Energy Prices'!$F$11:$CR$11,0))/100000,\"\")","v":""},{"$f":"IFERROR('Data Input - BAU'!AZ84*INDEX('Energy Prices'!$F$19:$CR$24,MATCH($B94,'Energy Prices'!$C$19:$C$24,0),MATCH(Calc_BAU!AV$6,'Energy Prices'!$F$11:$CR$11,0))/100000,\"\")","v":""},{"$f":"IFERROR('Data Input - BAU'!BA84*INDEX('Energy Prices'!$F$19:$CR$24,MATCH($B94,'Energy Prices'!$C$19:$C$24,0),MATCH(Calc_BAU!AW$6,'Energy Prices'!$F$11:$CR$11,0))/100000,\"\")","v":""},{"$f":"IFERROR('Data Input - BAU'!BB84*INDEX('Energy Prices'!$F$19:$CR$24,MATCH($B94,'Energy Prices'!$C$19:$C$24,0),MATCH(Calc_BAU!AX$6,'Energy Prices'!$F$11:$CR$11,0))/100000,\"\")","v":""},{"$f":"IFERROR('Data Input - BAU'!BC84*INDEX('Energy Prices'!$F$19:$CR$24,MATCH($B94,'Energy Prices'!$C$19:$C$24,0),MATCH(Calc_BAU!AY$6,'Energy Prices'!$F$11:$CR$11,0))/100000,\"\")","v":""},{"$f":"IFERROR('Data Input - BAU'!BD84*INDEX('Energy Prices'!$F$19:$CR$24,MATCH($B94,'Energy Prices'!$C$19:$C$24,0),MATCH(Calc_BAU!AZ$6,'Energy Prices'!$F$11:$CR$11,0))/100000,\"\")","v":""},{"$f":"IFERROR('Data Input - BAU'!BE84*INDEX('Energy Prices'!$F$19:$CR$24,MATCH($B94,'Energy Prices'!$C$19:$C$24,0),MATCH(Calc_BAU!BA$6,'Energy Prices'!$F$11:$CR$11,0))/100000,\"\")","v":""},{"$f":"IFERROR('Data Input - BAU'!BF84*INDEX('Energy Prices'!$F$19:$CR$24,MATCH($B94,'Energy Prices'!$C$19:$C$24,0),MATCH(Calc_BAU!BB$6,'Energy Prices'!$F$11:$CR$11,0))/100000,\"\")","v":""},{"$f":"IFERROR('Data Input - BAU'!BG84*INDEX('Energy Prices'!$F$19:$CR$24,MATCH($B94,'Energy Prices'!$C$19:$C$24,0),MATCH(Calc_BAU!BC$6,'Energy Prices'!$F$11:$CR$11,0))/100000,\"\")","v":""},{"$f":"IFERROR('Data Input - BAU'!BH84*INDEX('Energy Prices'!$F$19:$CR$24,MATCH($B94,'Energy Prices'!$C$19:$C$24,0),MATCH(Calc_BAU!BD$6,'Energy Prices'!$F$11:$CR$11,0))/100000,\"\")","v":""},{"$f":"IFERROR('Data Input - BAU'!BI84*INDEX('Energy Prices'!$F$19:$CR$24,MATCH($B94,'Energy Prices'!$C$19:$C$24,0),MATCH(Calc_BAU!BE$6,'Energy Prices'!$F$11:$CR$11,0))/100000,\"\")","v":""},{"$f":"IFERROR('Data Input - BAU'!BJ84*INDEX('Energy Prices'!$F$19:$CR$24,MATCH($B94,'Energy Prices'!$C$19:$C$24,0),MATCH(Calc_BAU!BF$6,'Energy Prices'!$F$11:$CR$11,0))/100000,\"\")","v":""},{"$f":"IFERROR('Data Input - BAU'!BK84*INDEX('Energy Prices'!$F$19:$CR$24,MATCH($B94,'Energy Prices'!$C$19:$C$24,0),MATCH(Calc_BAU!BG$6,'Energy Prices'!$F$11:$CR$11,0))/100000,\"\")","v":""},{"$f":"IFERROR('Data Input - BAU'!BL84*INDEX('Energy Prices'!$F$19:$CR$24,MATCH($B94,'Energy Prices'!$C$19:$C$24,0),MATCH(Calc_BAU!BH$6,'Energy Prices'!$F$11:$CR$11,0))/100000,\"\")","v":""},{"$f":"IFERROR('Data Input - BAU'!BM84*INDEX('Energy Prices'!$F$19:$CR$24,MATCH($B94,'Energy Prices'!$C$19:$C$24,0),MATCH(Calc_BAU!BI$6,'Energy Prices'!$F$11:$CR$11,0))/100000,\"\")","v":""},{"$f":"IFERROR('Data Input - BAU'!BN84*INDEX('Energy Prices'!$F$19:$CR$24,MATCH($B94,'Energy Prices'!$C$19:$C$24,0),MATCH(Calc_BAU!BJ$6,'Energy Prices'!$F$11:$CR$11,0))/100000,\"\")","v":""},{"$f":"IFERROR('Data Input - BAU'!BO84*INDEX('Energy Prices'!$F$19:$CR$24,MATCH($B94,'Energy Prices'!$C$19:$C$24,0),MATCH(Calc_BAU!BK$6,'Energy Prices'!$F$11:$CR$11,0))/100000,\"\")","v":""},{"$f":"IFERROR('Data Input - BAU'!BP84*INDEX('Energy Prices'!$F$19:$CR$24,MATCH($B94,'Energy Prices'!$C$19:$C$24,0),MATCH(Calc_BAU!BL$6,'Energy Prices'!$F$11:$CR$11,0))/100000,\"\")","v":""},{"$f":"IFERROR('Data Input - BAU'!BQ84*INDEX('Energy Prices'!$F$19:$CR$24,MATCH($B94,'Energy Prices'!$C$19:$C$24,0),MATCH(Calc_BAU!BM$6,'Energy Prices'!$F$11:$CR$11,0))/100000,\"\")","v":""},{"$f":"IFERROR('Data Input - BAU'!BR84*INDEX('Energy Prices'!$F$19:$CR$24,MATCH($B94,'Energy Prices'!$C$19:$C$24,0),MATCH(Calc_BAU!BN$6,'Energy Prices'!$F$11:$CR$11,0))/100000,\"\")","v":""},{"$f":"IFERROR('Data Input - BAU'!BS84*INDEX('Energy Prices'!$F$19:$CR$24,MATCH($B94,'Energy Prices'!$C$19:$C$24,0),MATCH(Calc_BAU!BO$6,'Energy Prices'!$F$11:$CR$11,0))/100000,\"\")","v":""},{"$f":"IFERROR('Data Input - BAU'!BT84*INDEX('Energy Prices'!$F$19:$CR$24,MATCH($B94,'Energy Prices'!$C$19:$C$24,0),MATCH(Calc_BAU!BP$6,'Energy Prices'!$F$11:$CR$11,0))/100000,\"\")","v":""},{"$f":"IFERROR('Data Input - BAU'!BU84*INDEX('Energy Prices'!$F$19:$CR$24,MATCH($B94,'Energy Prices'!$C$19:$C$24,0),MATCH(Calc_BAU!BQ$6,'Energy Prices'!$F$11:$CR$11,0))/100000,\"\")","v":""},{"$f":"IFERROR('Data Input - BAU'!BV84*INDEX('Energy Prices'!$F$19:$CR$24,MATCH($B94,'Energy Prices'!$C$19:$C$24,0),MATCH(Calc_BAU!BR$6,'Energy Prices'!$F$11:$CR$11,0))/100000,\"\")","v":""},{"$f":"IFERROR('Data Input - BAU'!BW84*INDEX('Energy Prices'!$F$19:$CR$24,MATCH($B94,'Energy Prices'!$C$19:$C$24,0),MATCH(Calc_BAU!BS$6,'Energy Prices'!$F$11:$CR$11,0))/100000,\"\")","v":""},{"$f":"IFERROR('Data Input - BAU'!BX84*INDEX('Energy Prices'!$F$19:$CR$24,MATCH($B94,'Energy Prices'!$C$19:$C$24,0),MATCH(Calc_BAU!BT$6,'Energy Prices'!$F$11:$CR$11,0))/100000,\"\")","v":""},{"$f":"IFERROR('Data Input - BAU'!BY84*INDEX('Energy Prices'!$F$19:$CR$24,MATCH($B94,'Energy Prices'!$C$19:$C$24,0),MATCH(Calc_BAU!BU$6,'Energy Prices'!$F$11:$CR$11,0))/100000,\"\")","v":""},{"$f":"IFERROR('Data Input - BAU'!BZ84*INDEX('Energy Prices'!$F$19:$CR$24,MATCH($B94,'Energy Prices'!$C$19:$C$24,0),MATCH(Calc_BAU!BV$6,'Energy Prices'!$F$11:$CR$11,0))/100000,\"\")","v":""},{"$f":"IFERROR('Data Input - BAU'!CA84*INDEX('Energy Prices'!$F$19:$CR$24,MATCH($B94,'Energy Prices'!$C$19:$C$24,0),MATCH(Calc_BAU!BW$6,'Energy Prices'!$F$11:$CR$11,0))/100000,\"\")","v":""},{"$f":"IFERROR('Data Input - BAU'!CB84*INDEX('Energy Prices'!$F$19:$CR$24,MATCH($B94,'Energy Prices'!$C$19:$C$24,0),MATCH(Calc_BAU!BX$6,'Energy Prices'!$F$11:$CR$11,0))/100000,\"\")","v":""},{"$f":"IFERROR('Data Input - BAU'!CC84*INDEX('Energy Prices'!$F$19:$CR$24,MATCH($B94,'Energy Prices'!$C$19:$C$24,0),MATCH(Calc_BAU!BY$6,'Energy Prices'!$F$11:$CR$11,0))/100000,\"\")","v":""},{"$f":"IFERROR('Data Input - BAU'!CD84*INDEX('Energy Prices'!$F$19:$CR$24,MATCH($B94,'Energy Prices'!$C$19:$C$24,0),MATCH(Calc_BAU!BZ$6,'Energy Prices'!$F$11:$CR$11,0))/100000,\"\")","v":""},{"$f":"IFERROR('Data Input - BAU'!CE84*INDEX('Energy Prices'!$F$19:$CR$24,MATCH($B94,'Energy Prices'!$C$19:$C$24,0),MATCH(Calc_BAU!CA$6,'Energy Prices'!$F$11:$CR$11,0))/100000,\"\")","v":""},{"$f":"IFERROR('Data Input - BAU'!CF84*INDEX('Energy Prices'!$F$19:$CR$24,MATCH($B94,'Energy Prices'!$C$19:$C$24,0),MATCH(Calc_BAU!CB$6,'Energy Prices'!$F$11:$CR$11,0))/100000,\"\")","v":""},{"$f":"IFERROR('Data Input - BAU'!CG84*INDEX('Energy Prices'!$F$19:$CR$24,MATCH($B94,'Energy Prices'!$C$19:$C$24,0),MATCH(Calc_BAU!CC$6,'Energy Prices'!$F$11:$CR$11,0))/100000,\"\")","v":""},{"$f":"IFERROR('Data Input - BAU'!CH84*INDEX('Energy Prices'!$F$19:$CR$24,MATCH($B94,'Energy Prices'!$C$19:$C$24,0),MATCH(Calc_BAU!CD$6,'Energy Prices'!$F$11:$CR$11,0))/100000,\"\")","v":""},{"$f":"IFERROR('Data Input - BAU'!CI84*INDEX('Energy Prices'!$F$19:$CR$24,MATCH($B94,'Energy Prices'!$C$19:$C$24,0),MATCH(Calc_BAU!CE$6,'Energy Prices'!$F$11:$CR$11,0))/100000,\"\")","v":""},{"$f":"IFERROR('Data Input - BAU'!CJ84*INDEX('Energy Prices'!$F$19:$CR$24,MATCH($B94,'Energy Prices'!$C$19:$C$24,0),MATCH(Calc_BAU!CF$6,'Energy Prices'!$F$11:$CR$11,0))/100000,\"\")","v":""},{"$f":"IFERROR('Data Input - BAU'!CK84*INDEX('Energy Prices'!$F$19:$CR$24,MATCH($B94,'Energy Prices'!$C$19:$C$24,0),MATCH(Calc_BAU!CG$6,'Energy Prices'!$F$11:$CR$11,0))/100000,\"\")","v":""},{"$f":"IFERROR('Data Input - BAU'!CL84*INDEX('Energy Prices'!$F$19:$CR$24,MATCH($B94,'Energy Prices'!$C$19:$C$24,0),MATCH(Calc_BAU!CH$6,'Energy Prices'!$F$11:$CR$11,0))/100000,\"\")","v":""},{"$f":"IFERROR('Data Input - BAU'!CM84*INDEX('Energy Prices'!$F$19:$CR$24,MATCH($B94,'Energy Prices'!$C$19:$C$24,0),MATCH(Calc_BAU!CI$6,'Energy Prices'!$F$11:$CR$11,0))/100000,\"\")","v":""},{"$f":"IFERROR('Data Input - BAU'!CN84*INDEX('Energy Prices'!$F$19:$CR$24,MATCH($B94,'Energy Prices'!$C$19:$C$24,0),MATCH(Calc_BAU!CJ$6,'Energy Prices'!$F$11:$CR$11,0))/100000,\"\")","v":""},{"$f":"IFERROR('Data Input - BAU'!CO84*INDEX('Energy Prices'!$F$19:$CR$24,MATCH($B94,'Energy Prices'!$C$19:$C$24,0),MATCH(Calc_BAU!CK$6,'Energy Prices'!$F$11:$CR$11,0))/100000,\"\")","v":""},{"$f":"IFERROR('Data Input - BAU'!CP84*INDEX('Energy Prices'!$F$19:$CR$24,MATCH($B94,'Energy Prices'!$C$19:$C$24,0),MATCH(Calc_BAU!CL$6,'Energy Prices'!$F$11:$CR$11,0))/100000,\"\")","v":""},{"$f":"IFERROR('Data Input - BAU'!CQ84*INDEX('Energy Prices'!$F$19:$CR$24,MATCH($B94,'Energy Prices'!$C$19:$C$24,0),MATCH(Calc_BAU!CM$6,'Energy Prices'!$F$11:$CR$11,0))/100000,\"\")","v":""},{"$f":"IFERROR('Data Input - BAU'!CR84*INDEX('Energy Prices'!$F$19:$CR$24,MATCH($B94,'Energy Prices'!$C$19:$C$24,0),MATCH(Calc_BAU!CN$6,'Energy Prices'!$F$11:$CR$11,0))/100000,\"\")","v":""},{"$f":"IFERROR('Data Input - BAU'!CS84*INDEX('Energy Prices'!$F$19:$CR$24,MATCH($B94,'Energy Prices'!$C$19:$C$24,0),MATCH(Calc_BAU!CO$6,'Energy Prices'!$F$11:$CR$11,0))/100000,\"\")","v":""},{"$f":"IFERROR('Data Input - BAU'!CT84*INDEX('Energy Prices'!$F$19:$CR$24,MATCH($B94,'Energy Prices'!$C$19:$C$24,0),MATCH(Calc_BAU!CP$6,'Energy Prices'!$F$11:$CR$11,0))/100000,\"\")","v":""},{"$f":"IFERROR('Data Input - BAU'!CU84*INDEX('Energy Prices'!$F$19:$CR$24,MATCH($B94,'Energy Prices'!$C$19:$C$24,0),MATCH(Calc_BAU!CQ$6,'Energy Prices'!$F$11:$CR$11,0))/100000,\"\")","v":""},{"$f":"IFERROR('Data Input - BAU'!CV84*INDEX('Energy Prices'!$F$19:$CR$24,MATCH($B94,'Energy Prices'!$C$19:$C$24,0),MATCH(Calc_BAU!CR$6,'Energy Prices'!$F$11:$CR$11,0))/100000,\"\")","v":""},{"$f":"IFERROR('Data Input - BAU'!CW84*INDEX('Energy Prices'!$F$19:$CR$24,MATCH($B94,'Energy Prices'!$C$19:$C$24,0),MATCH(Calc_BAU!CS$6,'Energy Prices'!$F$11:$CR$11,0))/100000,\"\")","v":""},{"$f":"IFERROR('Data Input - BAU'!CX84*INDEX('Energy Prices'!$F$19:$CR$24,MATCH($B94,'Energy Prices'!$C$19:$C$24,0),MATCH(Calc_BAU!CT$6,'Energy Prices'!$F$11:$CR$11,0))/100000,\"\")","v":""},{"$f":"IFERROR('Data Input - BAU'!CY84*INDEX('Energy Prices'!$F$19:$CR$24,MATCH($B94,'Energy Prices'!$C$19:$C$24,0),MATCH(Calc_BAU!CU$6,'Energy Prices'!$F$11:$CR$11,0))/100000,\"\")","v":""},{"$f":"IFERROR('Data Input - BAU'!CZ84*INDEX('Energy Prices'!$F$19:$CR$24,MATCH($B94,'Energy Prices'!$C$19:$C$24,0),MATCH(Calc_BAU!CV$6,'Energy Prices'!$F$11:$CR$11,0))/100000,\"\")","v":""},{"$f":"IFERROR('Data Input - BAU'!DA84*INDEX('Energy Prices'!$F$19:$CR$24,MATCH($B94,'Energy Prices'!$C$19:$C$24,0),MATCH(Calc_BAU!CW$6,'Energy Prices'!$F$11:$CR$11,0))/100000,\"\")","v":""},{"$f":"IFERROR('Data Input - BAU'!DB84*INDEX('Energy Prices'!$F$19:$CR$24,MATCH($B94,'Energy Prices'!$C$19:$C$24,0),MATCH(Calc_BAU!CX$6,'Energy Prices'!$F$11:$CR$11,0))/100000,\"\")","v":""},{"$f":"IFERROR('Data Input - BAU'!DC84*INDEX('Energy Prices'!$F$19:$CR$24,MATCH($B94,'Energy Prices'!$C$19:$C$24,0),MATCH(Calc_BAU!CY$6,'Energy Prices'!$F$11:$CR$11,0))/100000,\"\")","v":""}]
[null,"Natural Gas","£000's",{"$f":"IFERROR('Data Input - BAU'!H85*INDEX('Energy Prices'!$F$19:$CR$24,MATCH($B95,'Energy Prices'!$C$19:$C$24,0),MATCH(Calc_BAU!D$6,'Energy Prices'!$F$11:$CR$11,0))/100000,\"\")","v":0},{"$f":"IFERROR('Data Input - BAU'!I85*INDEX('Energy Prices'!$F$19:$CR$24,MATCH($B95,'Energy Prices'!$C$19:$C$24,0),MATCH(Calc_BAU!E$6,'Energy Prices'!$F$11:$CR$11,0))/100000,\"\")","v":0},{"$f":"IFERROR('Data Input - BAU'!J85*INDEX('Energy Prices'!$F$19:$CR$24,MATCH($B95,'Energy Prices'!$C$19:$C$24,0),MATCH(Calc_BAU!F$6,'Energy Prices'!$F$11:$CR$11,0))/100000,\"\")","v":0},{"$f":"IFERROR('Data Input - BAU'!K85*INDEX('Energy Prices'!$F$19:$CR$24,MATCH($B95,'Energy Prices'!$C$19:$C$24,0),MATCH(Calc_BAU!G$6,'Energy Prices'!$F$11:$CR$11,0))/100000,\"\")","v":0},{"$f":"IFERROR('Data Input - BAU'!L85*INDEX('Energy Prices'!$F$19:$CR$24,MATCH($B95,'Energy Prices'!$C$19:$C$24,0),MATCH(Calc_BAU!H$6,'Energy Prices'!$F$11:$CR$11,0))/100000,\"\")","v":0},{"$f":"IFERROR('Data Input - BAU'!M85*INDEX('Energy Prices'!$F$19:$CR$24,MATCH($B95,'Energy Prices'!$C$19:$C$24,0),MATCH(Calc_BAU!I$6,'Energy Prices'!$F$11:$CR$11,0))/100000,\"\")","v":0},{"$f":"IFERROR('Data Input - BAU'!N85*INDEX('Energy Prices'!$F$19:$CR$24,MATCH($B95,'Energy Prices'!$C$19:$C$24,0),MATCH(Calc_BAU!J$6,'Energy Prices'!$F$11:$CR$11,0))/100000,\"\")","v":0},{"$f":"IFERROR('Data Input - BAU'!O85*INDEX('Energy Prices'!$F$19:$CR$24,MATCH($B95,'Energy Prices'!$C$19:$C$24,0),MATCH(Calc_BAU!K$6,'Energy Prices'!$F$11:$CR$11,0))/100000,\"\")","v":0},{"$f":"IFERROR('Data Input - BAU'!P85*INDEX('Energy Prices'!$F$19:$CR$24,MATCH($B95,'Energy Prices'!$C$19:$C$24,0),MATCH(Calc_BAU!L$6,'Energy Prices'!$F$11:$CR$11,0))/100000,\"\")","v":0},{"$f":"IFERROR('Data Input - BAU'!Q85*INDEX('Energy Prices'!$F$19:$CR$24,MATCH($B95,'Energy Prices'!$C$19:$C$24,0),MATCH(Calc_BAU!M$6,'Energy Prices'!$F$11:$CR$11,0))/100000,\"\")","v":0},{"$f":"IFERROR('Data Input - BAU'!R85*INDEX('Energy Prices'!$F$19:$CR$24,MATCH($B95,'Energy Prices'!$C$19:$C$24,0),MATCH(Calc_BAU!N$6,'Energy Prices'!$F$11:$CR$11,0))/100000,\"\")","v":0},{"$f":"IFERROR('Data Input - BAU'!S85*INDEX('Energy Prices'!$F$19:$CR$24,MATCH($B95,'Energy Prices'!$C$19:$C$24,0),MATCH(Calc_BAU!O$6,'Energy Prices'!$F$11:$CR$11,0))/100000,\"\")","v":0},{"$f":"IFERROR('Data Input - BAU'!T85*INDEX('Energy Prices'!$F$19:$CR$24,MATCH($B95,'Energy Prices'!$C$19:$C$24,0),MATCH(Calc_BAU!P$6,'Energy Prices'!$F$11:$CR$11,0))/100000,\"\")","v":0},{"$f":"IFERROR('Data Input - BAU'!U85*INDEX('Energy Prices'!$F$19:$CR$24,MATCH($B95,'Energy Prices'!$C$19:$C$24,0),MATCH(Calc_BAU!Q$6,'Energy Prices'!$F$11:$CR$11,0))/100000,\"\")","v":0},{"$f":"IFERROR('Data Input - BAU'!V85*INDEX('Energy Prices'!$F$19:$CR$24,MATCH($B95,'Energy Prices'!$C$19:$C$24,0),MATCH(Calc_BAU!R$6,'Energy Prices'!$F$11:$CR$11,0))/100000,\"\")","v":0},{"$f":"IFERROR('Data Input - BAU'!W85*INDEX('Energy Prices'!$F$19:$CR$24,MATCH($B95,'Energy Prices'!$C$19:$C$24,0),MATCH(Calc_BAU!S$6,'Energy Prices'!$F$11:$CR$11,0))/100000,\"\")","v":0},{"$f":"IFERROR('Data Input - BAU'!X85*INDEX('Energy Prices'!$F$19:$CR$24,MATCH($B95,'Energy Prices'!$C$19:$C$24,0),MATCH(Calc_BAU!T$6,'Energy Prices'!$F$11:$CR$11,0))/100000,\"\")","v":0},{"$f":"IFERROR('Data Input - BAU'!Y85*INDEX('Energy Prices'!$F$19:$CR$24,MATCH($B95,'Energy Prices'!$C$19:$C$24,0),MATCH(Calc_BAU!U$6,'Energy Prices'!$F$11:$CR$11,0))/100000,\"\")","v":0},{"$f":"IFERROR('Data Input - BAU'!Z85*INDEX('Energy Prices'!$F$19:$CR$24,MATCH($B95,'Energy Prices'!$C$19:$C$24,0),MATCH(Calc_BAU!V$6,'Energy Prices'!$F$11:$CR$11,0))/100000,\"\")","v":0},{"$f":"IFERROR('Data Input - BAU'!AA85*INDEX('Energy Prices'!$F$19:$CR$24,MATCH($B95,'Energy Prices'!$C$19:$C$24,0),MATCH(Calc_BAU!W$6,'Energy Prices'!$F$11:$CR$11,0))/100000,\"\")","v":0},{"$f":"IFERROR('Data Input - BAU'!AB85*INDEX('Energy Prices'!$F$19:$CR$24,MATCH($B95,'Energy Prices'!$C$19:$C$24,0),MATCH(Calc_BAU!X$6,'Energy Prices'!$F$11:$CR$11,0))/100000,\"\")","v":0},{"$f":"IFERROR('Data Input - BAU'!AC85*INDEX('Energy Prices'!$F$19:$CR$24,MATCH($B95,'Energy Prices'!$C$19:$C$24,0),MATCH(Calc_BAU!Y$6,'Energy Prices'!$F$11:$CR$11,0))/100000,\"\")","v":0},{"$f":"IFERROR('Data Input - BAU'!AD85*INDEX('Energy Prices'!$F$19:$CR$24,MATCH($B95,'Energy Prices'!$C$19:$C$24,0),MATCH(Calc_BAU!Z$6,'Energy Prices'!$F$11:$CR$11,0))/100000,\"\")","v":0},{"$f":"IFERROR('Data Input - BAU'!AE85*INDEX('Energy Prices'!$F$19:$CR$24,MATCH($B95,'Energy Prices'!$C$19:$C$24,0),MATCH(Calc_BAU!AA$6,'Energy Prices'!$F$11:$CR$11,0))/100000,\"\")","v":0},{"$f":"IFERROR('Data Input - BAU'!AF85*INDEX('Energy Prices'!$F$19:$CR$24,MATCH($B95,'Energy Prices'!$C$19:$C$24,0),MATCH(Calc_BAU!AB$6,'Energy Prices'!$F$11:$CR$11,0))/100000,\"\")","v":0},{"$f":"IFERROR('Data Input - BAU'!AG85*INDEX('Energy Prices'!$F$19:$CR$24,MATCH($B95,'Energy Prices'!$C$19:$C$24,0),MATCH(Calc_BAU!AC$6,'Energy Prices'!$F$11:$CR$11,0))/100000,\"\")","v":0},{"$f":"IFERROR('Data Input - BAU'!AH85*INDEX('Energy Prices'!$F$19:$CR$24,MATCH($B95,'Energy Prices'!$C$19:$C$24,0),MATCH(Calc_BAU!AD$6,'Energy Prices'!$F$11:$CR$11,0))/100000,\"\")","v":0},{"$f":"IFERROR('Data Input - BAU'!AI85*INDEX('Energy Prices'!$F$19:$CR$24,MATCH($B95,'Energy Prices'!$C$19:$C$24,0),MATCH(Calc_BAU!AE$6,'Energy Prices'!$F$11:$CR$11,0))/100000,\"\")","v":0},{"$f":"IFERROR('Data Input - BAU'!AJ85*INDEX('Energy Prices'!$F$19:$CR$24,MATCH($B95,'Energy Prices'!$C$19:$C$24,0),MATCH(Calc_BAU!AF$6,'Energy Prices'!$F$11:$CR$11,0))/100000,\"\")","v":0},{"$f":"IFERROR('Data Input - BAU'!AK85*INDEX('Energy Prices'!$F$19:$CR$24,MATCH($B95,'Energy Prices'!$C$19:$C$24,0),MATCH(Calc_BAU!AG$6,'Energy Prices'!$F$11:$CR$11,0))/100000,\"\")","v":0},{"$f":"IFERROR('Data Input - BAU'!AL85*INDEX('Energy Prices'!$F$19:$CR$24,MATCH($B95,'Energy Prices'!$C$19:$C$24,0),MATCH(Calc_BAU!AH$6,'Energy Prices'!$F$11:$CR$11,0))/100000,\"\")","v":0},{"$f":"IFERROR('Data Input - BAU'!AM85*INDEX('Energy Prices'!$F$19:$CR$24,MATCH($B95,'Energy Prices'!$C$19:$C$24,0),MATCH(Calc_BAU!AI$6,'Energy Prices'!$F$11:$CR$11,0))/100000,\"\")","v":""},{"$f":"IFERROR('Data Input - BAU'!AN85*INDEX('Energy Prices'!$F$19:$CR$24,MATCH($B95,'Energy Prices'!$C$19:$C$24,0),MATCH(Calc_BAU!AJ$6,'Energy Prices'!$F$11:$CR$11,0))/100000,\"\")","v":""},{"$f":"IFERROR('Data Input - BAU'!AO85*INDEX('Energy Prices'!$F$19:$CR$24,MATCH($B95,'Energy Prices'!$C$19:$C$24,0),MATCH(Calc_BAU!AK$6,'Energy Prices'!$F$11:$CR$11,0))/100000,\"\")","v":""},{"$f":"IFERROR('Data Input - BAU'!AP85*INDEX('Energy Prices'!$F$19:$CR$24,MATCH($B95,'Energy Prices'!$C$19:$C$24,0),MATCH(Calc_BAU!AL$6,'Energy Prices'!$F$11:$CR$11,0))/100000,\"\")","v":""},{"$f":"IFERROR('Data Input - BAU'!AQ85*INDEX('Energy Prices'!$F$19:$CR$24,MATCH($B95,'Energy Prices'!$C$19:$C$24,0),MATCH(Calc_BAU!AM$6,'Energy Prices'!$F$11:$CR$11,0))/100000,\"\")","v":""},{"$f":"IFERROR('Data Input - BAU'!AR85*INDEX('Energy Prices'!$F$19:$CR$24,MATCH($B95,'Energy Prices'!$C$19:$C$24,0),MATCH(Calc_BAU!AN$6,'Energy Prices'!$F$11:$CR$11,0))/100000,\"\")","v":""},{"$f":"IFERROR('Data Input - BAU'!AS85*INDEX('Energy Prices'!$F$19:$CR$24,MATCH($B95,'Energy Prices'!$C$19:$C$24,0),MATCH(Calc_BAU!AO$6,'Energy Prices'!$F$11:$CR$11,0))/100000,\"\")","v":""},{"$f":"IFERROR('Data Input - BAU'!AT85*INDEX('Energy Prices'!$F$19:$CR$24,MATCH($B95,'Energy Prices'!$C$19:$C$24,0),MATCH(Calc_BAU!AP$6,'Energy Prices'!$F$11:$CR$11,0))/100000,\"\")","v":""},{"$f":"IFERROR('Data Input - BAU'!AU85*INDEX('Energy Prices'!$F$19:$CR$24,MATCH($B95,'Energy Prices'!$C$19:$C$24,0),MATCH(Calc_BAU!AQ$6,'Energy Prices'!$F$11:$CR$11,0))/100000,\"\")","v":""},{"$f":"IFERROR('Data Input - BAU'!AV85*INDEX('Energy Prices'!$F$19:$CR$24,MATCH($B95,'Energy Prices'!$C$19:$C$24,0),MATCH(Calc_BAU!AR$6,'Energy Prices'!$F$11:$CR$11,0))/100000,\"\")","v":""},{"$f":"IFERROR('Data Input - BAU'!AW85*INDEX('Energy Prices'!$F$19:$CR$24,MATCH($B95,'Energy Prices'!$C$19:$C$24,0),MATCH(Calc_BAU!AS$6,'Energy Prices'!$F$11:$CR$11,0))/100000,\"\")","v":""},{"$f":"IFERROR('Data Input - BAU'!AX85*INDEX('Energy Prices'!$F$19:$CR$24,MATCH($B95,'Energy Prices'!$C$19:$C$24,0),MATCH(Calc_BAU!AT$6,'Energy Prices'!$F$11:$CR$11,0))/100000,\"\")","v":""},{"$f":"IFERROR('Data Input - BAU'!AY85*INDEX('Energy Prices'!$F$19:$CR$24,MATCH($B95,'Energy Prices'!$C$19:$C$24,0),MATCH(Calc_BAU!AU$6,'Energy Prices'!$F$11:$CR$11,0))/100000,\"\")","v":""},{"$f":"IFERROR('Data Input - BAU'!AZ85*INDEX('Energy Prices'!$F$19:$CR$24,MATCH($B95,'Energy Prices'!$C$19:$C$24,0),MATCH(Calc_BAU!AV$6,'Energy Prices'!$F$11:$CR$11,0))/100000,\"\")","v":""},{"$f":"IFERROR('Data Input - BAU'!BA85*INDEX('Energy Prices'!$F$19:$CR$24,MATCH($B95,'Energy Prices'!$C$19:$C$24,0),MATCH(Calc_BAU!AW$6,'Energy Prices'!$F$11:$CR$11,0))/100000,\"\")","v":""},{"$f":"IFERROR('Data Input - BAU'!BB85*INDEX('Energy Prices'!$F$19:$CR$24,MATCH($B95,'Energy Prices'!$C$19:$C$24,0),MATCH(Calc_BAU!AX$6,'Energy Prices'!$F$11:$CR$11,0))/100000,\"\")","v":""},{"$f":"IFERROR('Data Input - BAU'!BC85*INDEX('Energy Prices'!$F$19:$CR$24,MATCH($B95,'Energy Prices'!$C$19:$C$24,0),MATCH(Calc_BAU!AY$6,'Energy Prices'!$F$11:$CR$11,0))/100000,\"\")","v":""},{"$f":"IFERROR('Data Input - BAU'!BD85*INDEX('Energy Prices'!$F$19:$CR$24,MATCH($B95,'Energy Prices'!$C$19:$C$24,0),MATCH(Calc_BAU!AZ$6,'Energy Prices'!$F$11:$CR$11,0))/100000,\"\")","v":""},{"$f":"IFERROR('Data Input - BAU'!BE85*INDEX('Energy Prices'!$F$19:$CR$24,MATCH($B95,'Energy Prices'!$C$19:$C$24,0),MATCH(Calc_BAU!BA$6,'Energy Prices'!$F$11:$CR$11,0))/100000,\"\")","v":""},{"$f":"IFERROR('Data Input - BAU'!BF85*INDEX('Energy Prices'!$F$19:$CR$24,MATCH($B95,'Energy Prices'!$C$19:$C$24,0),MATCH(Calc_BAU!BB$6,'Energy Prices'!$F$11:$CR$11,0))/100000,\"\")","v":""},{"$f":"IFERROR('Data Input - BAU'!BG85*INDEX('Energy Prices'!$F$19:$CR$24,MATCH($B95,'Energy Prices'!$C$19:$C$24,0),MATCH(Calc_BAU!BC$6,'Energy Prices'!$F$11:$CR$11,0))/100000,\"\")","v":""},{"$f":"IFERROR('Data Input - BAU'!BH85*INDEX('Energy Prices'!$F$19:$CR$24,MATCH($B95,'Energy Prices'!$C$19:$C$24,0),MATCH(Calc_BAU!BD$6,'Energy Prices'!$F$11:$CR$11,0))/100000,\"\")","v":""},{"$f":"IFERROR('Data Input - BAU'!BI85*INDEX('Energy Prices'!$F$19:$CR$24,MATCH($B95,'Energy Prices'!$C$19:$C$24,0),MATCH(Calc_BAU!BE$6,'Energy Prices'!$F$11:$CR$11,0))/100000,\"\")","v":""},{"$f":"IFERROR('Data Input - BAU'!BJ85*INDEX('Energy Prices'!$F$19:$CR$24,MATCH($B95,'Energy Prices'!$C$19:$C$24,0),MATCH(Calc_BAU!BF$6,'Energy Prices'!$F$11:$CR$11,0))/100000,\"\")","v":""},{"$f":"IFERROR('Data Input - BAU'!BK85*INDEX('Energy Prices'!$F$19:$CR$24,MATCH($B95,'Energy Prices'!$C$19:$C$24,0),MATCH(Calc_BAU!BG$6,'Energy Prices'!$F$11:$CR$11,0))/100000,\"\")","v":""},{"$f":"IFERROR('Data Input - BAU'!BL85*INDEX('Energy Prices'!$F$19:$CR$24,MATCH($B95,'Energy Prices'!$C$19:$C$24,0),MATCH(Calc_BAU!BH$6,'Energy Prices'!$F$11:$CR$11,0))/100000,\"\")","v":""},{"$f":"IFERROR('Data Input - BAU'!BM85*INDEX('Energy Prices'!$F$19:$CR$24,MATCH($B95,'Energy Prices'!$C$19:$C$24,0),MATCH(Calc_BAU!BI$6,'Energy Prices'!$F$11:$CR$11,0))/100000,\"\")","v":""},{"$f":"IFERROR('Data Input - BAU'!BN85*INDEX('Energy Prices'!$F$19:$CR$24,MATCH($B95,'Energy Prices'!$C$19:$C$24,0),MATCH(Calc_BAU!BJ$6,'Energy Prices'!$F$11:$CR$11,0))/100000,\"\")","v":""},{"$f":"IFERROR('Data Input - BAU'!BO85*INDEX('Energy Prices'!$F$19:$CR$24,MATCH($B95,'Energy Prices'!$C$19:$C$24,0),MATCH(Calc_BAU!BK$6,'Energy Prices'!$F$11:$CR$11,0))/100000,\"\")","v":""},{"$f":"IFERROR('Data Input - BAU'!BP85*INDEX('Energy Prices'!$F$19:$CR$24,MATCH($B95,'Energy Prices'!$C$19:$C$24,0),MATCH(Calc_BAU!BL$6,'Energy Prices'!$F$11:$CR$11,0))/100000,\"\")","v":""},{"$f":"IFERROR('Data Input - BAU'!BQ85*INDEX('Energy Prices'!$F$19:$CR$24,MATCH($B95,'Energy Prices'!$C$19:$C$24,0),MATCH(Calc_BAU!BM$6,'Energy Prices'!$F$11:$CR$11,0))/100000,\"\")","v":""},{"$f":"IFERROR('Data Input - BAU'!BR85*INDEX('Energy Prices'!$F$19:$CR$24,MATCH($B95,'Energy Prices'!$C$19:$C$24,0),MATCH(Calc_BAU!BN$6,'Energy Prices'!$F$11:$CR$11,0))/100000,\"\")","v":""},{"$f":"IFERROR('Data Input - BAU'!BS85*INDEX('Energy Prices'!$F$19:$CR$24,MATCH($B95,'Energy Prices'!$C$19:$C$24,0),MATCH(Calc_BAU!BO$6,'Energy Prices'!$F$11:$CR$11,0))/100000,\"\")","v":""},{"$f":"IFERROR('Data Input - BAU'!BT85*INDEX('Energy Prices'!$F$19:$CR$24,MATCH($B95,'Energy Prices'!$C$19:$C$24,0),MATCH(Calc_BAU!BP$6,'Energy Prices'!$F$11:$CR$11,0))/100000,\"\")","v":""},{"$f":"IFERROR('Data Input - BAU'!BU85*INDEX('Energy Prices'!$F$19:$CR$24,MATCH($B95,'Energy Prices'!$C$19:$C$24,0),MATCH(Calc_BAU!BQ$6,'Energy Prices'!$F$11:$CR$11,0))/100000,\"\")","v":""},{"$f":"IFERROR('Data Input - BAU'!BV85*INDEX('Energy Prices'!$F$19:$CR$24,MATCH($B95,'Energy Prices'!$C$19:$C$24,0),MATCH(Calc_BAU!BR$6,'Energy Prices'!$F$11:$CR$11,0))/100000,\"\")","v":""},{"$f":"IFERROR('Data Input - BAU'!BW85*INDEX('Energy Prices'!$F$19:$CR$24,MATCH($B95,'Energy Prices'!$C$19:$C$24,0),MATCH(Calc_BAU!BS$6,'Energy Prices'!$F$11:$CR$11,0))/100000,\"\")","v":""},{"$f":"IFERROR('Data Input - BAU'!BX85*INDEX('Energy Prices'!$F$19:$CR$24,MATCH($B95,'Energy Prices'!$C$19:$C$24,0),MATCH(Calc_BAU!BT$6,'Energy Prices'!$F$11:$CR$11,0))/100000,\"\")","v":""},{"$f":"IFERROR('Data Input - BAU'!BY85*INDEX('Energy Prices'!$F$19:$CR$24,MATCH($B95,'Energy Prices'!$C$19:$C$24,0),MATCH(Calc_BAU!BU$6,'Energy Prices'!$F$11:$CR$11,0))/100000,\"\")","v":""},{"$f":"IFERROR('Data Input - BAU'!BZ85*INDEX('Energy Prices'!$F$19:$CR$24,MATCH($B95,'Energy Prices'!$C$19:$C$24,0),MATCH(Calc_BAU!BV$6,'Energy Prices'!$F$11:$CR$11,0))/100000,\"\")","v":""},{"$f":"IFERROR('Data Input - BAU'!CA85*INDEX('Energy Prices'!$F$19:$CR$24,MATCH($B95,'Energy Prices'!$C$19:$C$24,0),MATCH(Calc_BAU!BW$6,'Energy Prices'!$F$11:$CR$11,0))/100000,\"\")","v":""},{"$f":"IFERROR('Data Input - BAU'!CB85*INDEX('Energy Prices'!$F$19:$CR$24,MATCH($B95,'Energy Prices'!$C$19:$C$24,0),MATCH(Calc_BAU!BX$6,'Energy Prices'!$F$11:$CR$11,0))/100000,\"\")","v":""},{"$f":"IFERROR('Data Input - BAU'!CC85*INDEX('Energy Prices'!$F$19:$CR$24,MATCH($B95,'Energy Prices'!$C$19:$C$24,0),MATCH(Calc_BAU!BY$6,'Energy Prices'!$F$11:$CR$11,0))/100000,\"\")","v":""},{"$f":"IFERROR('Data Input - BAU'!CD85*INDEX('Energy Prices'!$F$19:$CR$24,MATCH($B95,'Energy Prices'!$C$19:$C$24,0),MATCH(Calc_BAU!BZ$6,'Energy Prices'!$F$11:$CR$11,0))/100000,\"\")","v":""},{"$f":"IFERROR('Data Input - BAU'!CE85*INDEX('Energy Prices'!$F$19:$CR$24,MATCH($B95,'Energy Prices'!$C$19:$C$24,0),MATCH(Calc_BAU!CA$6,'Energy Prices'!$F$11:$CR$11,0))/100000,\"\")","v":""},{"$f":"IFERROR('Data Input - BAU'!CF85*INDEX('Energy Prices'!$F$19:$CR$24,MATCH($B95,'Energy Prices'!$C$19:$C$24,0),MATCH(Calc_BAU!CB$6,'Energy Prices'!$F$11:$CR$11,0))/100000,\"\")","v":""},{"$f":"IFERROR('Data Input - BAU'!CG85*INDEX('Energy Prices'!$F$19:$CR$24,MATCH($B95,'Energy Prices'!$C$19:$C$24,0),MATCH(Calc_BAU!CC$6,'Energy Prices'!$F$11:$CR$11,0))/100000,\"\")","v":""},{"$f":"IFERROR('Data Input - BAU'!CH85*INDEX('Energy Prices'!$F$19:$CR$24,MATCH($B95,'Energy Prices'!$C$19:$C$24,0),MATCH(Calc_BAU!CD$6,'Energy Prices'!$F$11:$CR$11,0))/100000,\"\")","v":""},{"$f":"IFERROR('Data Input - BAU'!CI85*INDEX('Energy Prices'!$F$19:$CR$24,MATCH($B95,'Energy Prices'!$C$19:$C$24,0),MATCH(Calc_BAU!CE$6,'Energy Prices'!$F$11:$CR$11,0))/100000,\"\")","v":""},{"$f":"IFERROR('Data Input - BAU'!CJ85*INDEX('Energy Prices'!$F$19:$CR$24,MATCH($B95,'Energy Prices'!$C$19:$C$24,0),MATCH(Calc_BAU!CF$6,'Energy Prices'!$F$11:$CR$11,0))/100000,\"\")","v":""},{"$f":"IFERROR('Data Input - BAU'!CK85*INDEX('Energy Prices'!$F$19:$CR$24,MATCH($B95,'Energy Prices'!$C$19:$C$24,0),MATCH(Calc_BAU!CG$6,'Energy Prices'!$F$11:$CR$11,0))/100000,\"\")","v":""},{"$f":"IFERROR('Data Input - BAU'!CL85*INDEX('Energy Prices'!$F$19:$CR$24,MATCH($B95,'Energy Prices'!$C$19:$C$24,0),MATCH(Calc_BAU!CH$6,'Energy Prices'!$F$11:$CR$11,0))/100000,\"\")","v":""},{"$f":"IFERROR('Data Input - BAU'!CM85*INDEX('Energy Prices'!$F$19:$CR$24,MATCH($B95,'Energy Prices'!$C$19:$C$24,0),MATCH(Calc_BAU!CI$6,'Energy Prices'!$F$11:$CR$11,0))/100000,\"\")","v":""},{"$f":"IFERROR('Data Input - BAU'!CN85*INDEX('Energy Prices'!$F$19:$CR$24,MATCH($B95,'Energy Prices'!$C$19:$C$24,0),MATCH(Calc_BAU!CJ$6,'Energy Prices'!$F$11:$CR$11,0))/100000,\"\")","v":""},{"$f":"IFERROR('Data Input - BAU'!CO85*INDEX('Energy Prices'!$F$19:$CR$24,MATCH($B95,'Energy Prices'!$C$19:$C$24,0),MATCH(Calc_BAU!CK$6,'Energy Prices'!$F$11:$CR$11,0))/100000,\"\")","v":""},{"$f":"IFERROR('Data Input - BAU'!CP85*INDEX('Energy Prices'!$F$19:$CR$24,MATCH($B95,'Energy Prices'!$C$19:$C$24,0),MATCH(Calc_BAU!CL$6,'Energy Prices'!$F$11:$CR$11,0))/100000,\"\")","v":""},{"$f":"IFERROR('Data Input - BAU'!CQ85*INDEX('Energy Prices'!$F$19:$CR$24,MATCH($B95,'Energy Prices'!$C$19:$C$24,0),MATCH(Calc_BAU!CM$6,'Energy Prices'!$F$11:$CR$11,0))/100000,\"\")","v":""},{"$f":"IFERROR('Data Input - BAU'!CR85*INDEX('Energy Prices'!$F$19:$CR$24,MATCH($B95,'Energy Prices'!$C$19:$C$24,0),MATCH(Calc_BAU!CN$6,'Energy Prices'!$F$11:$CR$11,0))/100000,\"\")","v":""},{"$f":"IFERROR('Data Input - BAU'!CS85*INDEX('Energy Prices'!$F$19:$CR$24,MATCH($B95,'Energy Prices'!$C$19:$C$24,0),MATCH(Calc_BAU!CO$6,'Energy Prices'!$F$11:$CR$11,0))/100000,\"\")","v":""},{"$f":"IFERROR('Data Input - BAU'!CT85*INDEX('Energy Prices'!$F$19:$CR$24,MATCH($B95,'Energy Prices'!$C$19:$C$24,0),MATCH(Calc_BAU!CP$6,'Energy Prices'!$F$11:$CR$11,0))/100000,\"\")","v":""},{"$f":"IFERROR('Data Input - BAU'!CU85*INDEX('Energy Prices'!$F$19:$CR$24,MATCH($B95,'Energy Prices'!$C$19:$C$24,0),MATCH(Calc_BAU!CQ$6,'Energy Prices'!$F$11:$CR$11,0))/100000,\"\")","v":""},{"$f":"IFERROR('Data Input - BAU'!CV85*INDEX('Energy Prices'!$F$19:$CR$24,MATCH($B95,'Energy Prices'!$C$19:$C$24,0),MATCH(Calc_BAU!CR$6,'Energy Prices'!$F$11:$CR$11,0))/100000,\"\")","v":""},{"$f":"IFERROR('Data Input - BAU'!CW85*INDEX('Energy Prices'!$F$19:$CR$24,MATCH($B95,'Energy Prices'!$C$19:$C$24,0),MATCH(Calc_BAU!CS$6,'Energy Prices'!$F$11:$CR$11,0))/100000,\"\")","v":""},{"$f":"IFERROR('Data Input - BAU'!CX85*INDEX('Energy Prices'!$F$19:$CR$24,MATCH($B95,'Energy Prices'!$C$19:$C$24,0),MATCH(Calc_BAU!CT$6,'Energy Prices'!$F$11:$CR$11,0))/100000,\"\")","v":""},{"$f":"IFERROR('Data Input - BAU'!CY85*INDEX('Energy Prices'!$F$19:$CR$24,MATCH($B95,'Energy Prices'!$C$19:$C$24,0),MATCH(Calc_BAU!CU$6,'Energy Prices'!$F$11:$CR$11,0))/100000,\"\")","v":""},{"$f":"IFERROR('Data Input - BAU'!CZ85*INDEX('Energy Prices'!$F$19:$CR$24,MATCH($B95,'Energy Prices'!$C$19:$C$24,0),MATCH(Calc_BAU!CV$6,'Energy Prices'!$F$11:$CR$11,0))/100000,\"\")","v":""},{"$f":"IFERROR('Data Input - BAU'!DA85*INDEX('Energy Prices'!$F$19:$CR$24,MATCH($B95,'Energy Prices'!$C$19:$C$24,0),MATCH(Calc_BAU!CW$6,'Energy Prices'!$F$11:$CR$11,0))/100000,\"\")","v":""},{"$f":"IFERROR('Data Input - BAU'!DB85*INDEX('Energy Prices'!$F$19:$CR$24,MATCH($B95,'Energy Prices'!$C$19:$C$24,0),MATCH(Calc_BAU!CX$6,'Energy Prices'!$F$11:$CR$11,0))/100000,\"\")","v":""},{"$f":"IFERROR('Data Input - BAU'!DC85*INDEX('Energy Prices'!$F$19:$CR$24,MATCH($B95,'Energy Prices'!$C$19:$C$24,0),MATCH(Calc_BAU!CY$6,'Energy Prices'!$F$11:$CR$11,0))/100000,\"\")","v":""}]
[null,"Coal","£000's",{"$f":"IFERROR('Data Input - BAU'!H86*INDEX('Energy Prices'!$F$19:$CR$24,MATCH($B96,'Energy Prices'!$C$19:$C$24,0),MATCH(Calc_BAU!D$6,'Energy Prices'!$F$11:$CR$11,0))/100000,\"\")","v":759.63719790738185},{"$f":"IFERROR('Data Input - BAU'!I86*INDEX('Energy Prices'!$F$19:$CR$24,MATCH($B96,'Energy Prices'!$C$19:$C$24,0),MATCH(Calc_BAU!E$6,'Energy Prices'!$F$11:$CR$11,0))/100000,\"\")","v":795.46900458389712},{"$f":"IFERROR('Data Input - BAU'!J86*INDEX('Energy Prices'!$F$19:$CR$24,MATCH($B96,'Energy Prices'!$C$19:$C$24,0),MATCH(Calc_BAU!F$6,'Energy Prices'!$F$11:$CR$11,0))/100000,\"\")","v":831.30491866935665},{"$f":"IFERROR('Data Input - BAU'!K86*INDEX('Energy Prices'!$F$19:$CR$24,MATCH($B96,'Energy Prices'!$C$19:$C$24,0),MATCH(Calc_BAU!G$6,'Energy Prices'!$F$11:$CR$11,0))/100000,\"\")","v":867.13715021114353},{"$f":"IFERROR('Data Input - BAU'!L86*INDEX('Energy Prices'!$F$19:$CR$24,MATCH($B96,'Energy Prices'!$C$19:$C$24,0),MATCH(Calc_BAU!H$6,'Energy Prices'!$F$11:$CR$11,0))/100000,\"\")","v":902.96956981471021},{"$f":"IFERROR('Data Input - BAU'!M86*INDEX('Energy Prices'!$F$19:$CR$24,MATCH($B96,'Energy Prices'!$C$19:$C$24,0),MATCH(Calc_BAU!I$6,'Energy Prices'!$F$11:$CR$11,0))/100000,\"\")","v":938.80217876689312},{"$f":"IFERROR('Data Input - BAU'!N86*INDEX('Energy Prices'!$F$19:$CR$24,MATCH($B96,'Energy Prices'!$C$19:$C$24,0),MATCH(Calc_BAU!J$6,'Energy Prices'!$F$11:$CR$11,0))/100000,\"\")","v":974.63497836333215},{"$f":"IFERROR('Data Input - BAU'!O86*INDEX('Energy Prices'!$F$19:$CR$24,MATCH($B96,'Energy Prices'!$C$19:$C$24,0),MATCH(Calc_BAU!K$6,'Energy Prices'!$F$11:$CR$11,0))/100000,\"\")","v":1010.4679699085341},{"$f":"IFERROR('Data Input - BAU'!P86*INDEX('Energy Prices'!$F$19:$CR$24,MATCH($B96,'Energy Prices'!$C$19:$C$24,0),MATCH(Calc_BAU!L$6,'Energy Prices'!$F$11:$CR$11,0))/100000,\"\")","v":0},{"$f":"IFERROR('Data Input - BAU'!Q86*INDEX('Energy Prices'!$F$19:$CR$24,MATCH($B96,'Energy Prices'!$C$19:$C$24,0),MATCH(Calc_BAU!M$6,'Energy Prices'!$F$11:$CR$11,0))/100000,\"\")","v":0},{"$f":"IFERROR('Data Input - BAU'!R86*INDEX('Energy Prices'!$F$19:$CR$24,MATCH($B96,'Energy Prices'!$C$19:$C$24,0),MATCH(Calc_BAU!N$6,'Energy Prices'!$F$11:$CR$11,0))/100000,\"\")","v":0},{"$f":"IFERROR('Data Input - BAU'!S86*INDEX('Energy Prices'!$F$19:$CR$24,MATCH($B96,'Energy Prices'!$C$19:$C$24,0),MATCH(Calc_BAU!O$6,'Energy Prices'!$F$11:$CR$11,0))/100000,\"\")","v":0},{"$f":"IFERROR('Data Input - BAU'!T86*INDEX('Energy Prices'!$F$19:$CR$24,MATCH($B96,'Energy Prices'!$C$19:$C$24,0),MATCH(Calc_BAU!P$6,'Energy Prices'!$F$11:$CR$11,0))/100000,\"\")","v":0},{"$f":"IFERROR('Data Input - BAU'!U86*INDEX('Energy Prices'!$F$19:$CR$24,MATCH($B96,'Energy Prices'!$C$19:$C$24,0),MATCH(Calc_BAU!Q$6,'Energy Prices'!$F$11:$CR$11,0))/100000,\"\")","v":0},{"$f":"IFERROR('Data Input - BAU'!V86*INDEX('Energy Prices'!$F$19:$CR$24,MATCH($B96,'Energy Prices'!$C$19:$C$24,0),MATCH(Calc_BAU!R$6,'Energy Prices'!$F$11:$CR$11,0))/100000,\"\")","v":0},{"$f":"IFERROR('Data Input - BAU'!W86*INDEX('Energy Prices'!$F$19:$CR$24,MATCH($B96,'Energy Prices'!$C$19:$C$24,0),MATCH(Calc_BAU!S$6,'Energy Prices'!$F$11:$CR$11,0))/100000,\"\")","v":0},{"$f":"IFERROR('Data Input - BAU'!X86*INDEX('Energy Prices'!$F$19:$CR$24,MATCH($B96,'Energy Prices'!$C$19:$C$24,0),MATCH(Calc_BAU!T$6,'Energy Prices'!$F$11:$CR$11,0))/100000,\"\")","v":0},{"$f":"IFERROR('Data Input - BAU'!Y86*INDEX('Energy Prices'!$F$19:$CR$24,MATCH($B96,'Energy Prices'!$C$19:$C$24,0),MATCH(Calc_BAU!U$6,'Energy Prices'!$F$11:$CR$11,0))/100000,\"\")","v":0},{"$f":"IFERROR('Data Input - BAU'!Z86*INDEX('Energy Prices'!$F$19:$CR$24,MATCH($B96,'Energy Prices'!$C$19:$C$24,0),MATCH(Calc_BAU!V$6,'Energy Prices'!$F$11:$CR$11,0))/100000,\"\")","v":0},{"$f":"IFERROR('Data Input - BAU'!AA86*INDEX('Energy Prices'!$F$19:$CR$24,MATCH($B96,'Energy Prices'!$C$19:$C$24,0),MATCH(Calc_BAU!W$6,'Energy Prices'!$F$11:$CR$11,0))/100000,\"\")","v":0},{"$f":"IFERROR('Data Input - BAU'!AB86*INDEX('Energy Prices'!$F$19:$CR$24,MATCH($B96,'Energy Prices'!$C$19:$C$24,0),MATCH(Calc_BAU!X$6,'Energy Prices'!$F$11:$CR$11,0))/100000,\"\")","v":0},{"$f":"IFERROR('Data Input - BAU'!AC86*INDEX('Energy Prices'!$F$19:$CR$24,MATCH($B96,'Energy Prices'!$C$19:$C$24,0),MATCH(Calc_BAU!Y$6,'Energy Prices'!$F$11:$CR$11,0))/100000,\"\")","v":0},{"$f":"IFERROR('Data Input - BAU'!AD86*INDEX('Energy Prices'!$F$19:$CR$24,MATCH($B96,'Energy Prices'!$C$19:$C$24,0),MATCH(Calc_BAU!Z$6,'Energy Prices'!$F$11:$CR$11,0))/100000,\"\")","v":0},{"$f":"IFERROR('Data Input - BAU'!AE86*INDEX('Energy Prices'!$F$19:$CR$24,MATCH($B96,'Energy Prices'!$C$19:$C$24,0),MATCH(Calc_BAU!AA$6,'Energy Prices'!$F$11:$CR$11,0))/100000,\"\")","v":0},{"$f":"IFERROR('Data Input - BAU'!AF86*INDEX('Energy Prices'!$F$19:$CR$24,MATCH($B96,'Energy Prices'!$C$19:$C$24,0),MATCH(Calc_BAU!AB$6,'Energy Prices'!$F$11:$CR$11,0))/100000,\"\")","v":0},{"$f":"IFERROR('Data Input - BAU'!AG86*INDEX('Energy Prices'!$F$19:$CR$24,MATCH($B96,'Energy Prices'!$C$19:$C$24,0),MATCH(Calc_BAU!AC$6,'Energy Prices'!$F$11:$CR$11,0))/100000,\"\")","v":0},{"$f":"IFERROR('Data Input - BAU'!AH86*INDEX('Energy Prices'!$F$19:$CR$24,MATCH($B96,'Energy Prices'!$C$19:$C$24,0),MATCH(Calc_BAU!AD$6,'Energy Prices'!$F$11:$CR$11,0))/100000,\"\")","v":0},{"$f":"IFERROR('Data Input - BAU'!AI86*INDEX('Energy Prices'!$F$19:$CR$24,MATCH($B96,'Energy Prices'!$C$19:$C$24,0),MATCH(Calc_BAU!AE$6,'Energy Prices'!$F$11:$CR$11,0))/100000,\"\")","v":0},{"$f":"IFERROR('Data Input - BAU'!AJ86*INDEX('Energy Prices'!$F$19:$CR$24,MATCH($B96,'Energy Prices'!$C$19:$C$24,0),MATCH(Calc_BAU!AF$6,'Energy Prices'!$F$11:$CR$11,0))/100000,\"\")","v":0},{"$f":"IFERROR('Data Input - BAU'!AK86*INDEX('Energy Prices'!$F$19:$CR$24,MATCH($B96,'Energy Prices'!$C$19:$C$24,0),MATCH(Calc_BAU!AG$6,'Energy Prices'!$F$11:$CR$11,0))/100000,\"\")","v":0},{"$f":"IFERROR('Data Input - BAU'!AL86*INDEX('Energy Prices'!$F$19:$CR$24,MATCH($B96,'Energy Prices'!$C$19:$C$24,0),MATCH(Calc_BAU!AH$6,'Energy Prices'!$F$11:$CR$11,0))/100000,\"\")","v":0},{"$f":"IFERROR('Data Input - BAU'!AM86*INDEX('Energy Prices'!$F$19:$CR$24,MATCH($B96,'Energy Prices'!$C$19:$C$24,0),MATCH(Calc_BAU!AI$6,'Energy Prices'!$F$11:$CR$11,0))/100000,\"\")","v":""},{"$f":"IFERROR('Data Input - BAU'!AN86*INDEX('Energy Prices'!$F$19:$CR$24,MATCH($B96,'Energy Prices'!$C$19:$C$24,0),MATCH(Calc_BAU!AJ$6,'Energy Prices'!$F$11:$CR$11,0))/100000,\"\")","v":""},{"$f":"IFERROR('Data Input - BAU'!AO86*INDEX('Energy Prices'!$F$19:$CR$24,MATCH($B96,'Energy Prices'!$C$19:$C$24,0),MATCH(Calc_BAU!AK$6,'Energy Prices'!$F$11:$CR$11,0))/100000,\"\")","v":""},{"$f":"IFERROR('Data Input - BAU'!AP86*INDEX('Energy Prices'!$F$19:$CR$24,MATCH($B96,'Energy Prices'!$C$19:$C$24,0),MATCH(Calc_BAU!AL$6,'Energy Prices'!$F$11:$CR$11,0))/100000,\"\")","v":""},{"$f":"IFERROR('Data Input - BAU'!AQ86*INDEX('Energy Prices'!$F$19:$CR$24,MATCH($B96,'Energy Prices'!$C$19:$C$24,0),MATCH(Calc_BAU!AM$6,'Energy Prices'!$F$11:$CR$11,0))/100000,\"\")","v":""},{"$f":"IFERROR('Data Input - BAU'!AR86*INDEX('Energy Prices'!$F$19:$CR$24,MATCH($B96,'Energy Prices'!$C$19:$C$24,0),MATCH(Calc_BAU!AN$6,'Energy Prices'!$F$11:$CR$11,0))/100000,\"\")","v":""},{"$f":"IFERROR('Data Input - BAU'!AS86*INDEX('Energy Prices'!$F$19:$CR$24,MATCH($B96,'Energy Prices'!$C$19:$C$24,0),MATCH(Calc_BAU!AO$6,'Energy Prices'!$F$11:$CR$11,0))/100000,\"\")","v":""},{"$f":"IFERROR('Data Input - BAU'!AT86*INDEX('Energy Prices'!$F$19:$CR$24,MATCH($B96,'Energy Prices'!$C$19:$C$24,0),MATCH(Calc_BAU!AP$6,'Energy Prices'!$F$11:$CR$11,0))/100000,\"\")","v":""},{"$f":"IFERROR('Data Input - BAU'!AU86*INDEX('Energy Prices'!$F$19:$CR$24,MATCH($B96,'Energy Prices'!$C$19:$C$24,0),MATCH(Calc_BAU!AQ$6,'Energy Prices'!$F$11:$CR$11,0))/100000,\"\")","v":""},{"$f":"IFERROR('Data Input - BAU'!AV86*INDEX('Energy Prices'!$F$19:$CR$24,MATCH($B96,'Energy Prices'!$C$19:$C$24,0),MATCH(Calc_BAU!AR$6,'Energy Prices'!$F$11:$CR$11,0))/100000,\"\")","v":""},{"$f":"IFERROR('Data Input - BAU'!AW86*INDEX('Energy Prices'!$F$19:$CR$24,MATCH($B96,'Energy Prices'!$C$19:$C$24,0),MATCH(Calc_BAU!AS$6,'Energy Prices'!$F$11:$CR$11,0))/100000,\"\")","v":""},{"$f":"IFERROR('Data Input - BAU'!AX86*INDEX('Energy Prices'!$F$19:$CR$24,MATCH($B96,'Energy Prices'!$C$19:$C$24,0),MATCH(Calc_BAU!AT$6,'Energy Prices'!$F$11:$CR$11,0))/100000,\"\")","v":""},{"$f":"IFERROR('Data Input - BAU'!AY86*INDEX('Energy Prices'!$F$19:$CR$24,MATCH($B96,'Energy Prices'!$C$19:$C$24,0),MATCH(Calc_BAU!AU$6,'Energy Prices'!$F$11:$CR$11,0))/100000,\"\")","v":""},{"$f":"IFERROR('Data Input - BAU'!AZ86*INDEX('Energy Prices'!$F$19:$CR$24,MATCH($B96,'Energy Prices'!$C$19:$C$24,0),MATCH(Calc_BAU!AV$6,'Energy Prices'!$F$11:$CR$11,0))/100000,\"\")","v":""},{"$f":"IFERROR('Data Input - BAU'!BA86*INDEX('Energy Prices'!$F$19:$CR$24,MATCH($B96,'Energy Prices'!$C$19:$C$24,0),MATCH(Calc_BAU!AW$6,'Energy Prices'!$F$11:$CR$11,0))/100000,\"\")","v":""},{"$f":"IFERROR('Data Input - BAU'!BB86*INDEX('Energy Prices'!$F$19:$CR$24,MATCH($B96,'Energy Prices'!$C$19:$C$24,0),MATCH(Calc_BAU!AX$6,'Energy Prices'!$F$11:$CR$11,0))/100000,\"\")","v":""},{"$f":"IFERROR('Data Input - BAU'!BC86*INDEX('Energy Prices'!$F$19:$CR$24,MATCH($B96,'Energy Prices'!$C$19:$C$24,0),MATCH(Calc_BAU!AY$6,'Energy Prices'!$F$11:$CR$11,0))/100000,\"\")","v":""},{"$f":"IFERROR('Data Input - BAU'!BD86*INDEX('Energy Prices'!$F$19:$CR$24,MATCH($B96,'Energy Prices'!$C$19:$C$24,0),MATCH(Calc_BAU!AZ$6,'Energy Prices'!$F$11:$CR$11,0))/100000,\"\")","v":""},{"$f":"IFERROR('Data Input - BAU'!BE86*INDEX('Energy Prices'!$F$19:$CR$24,MATCH($B96,'Energy Prices'!$C$19:$C$24,0),MATCH(Calc_BAU!BA$6,'Energy Prices'!$F$11:$CR$11,0))/100000,\"\")","v":""},{"$f":"IFERROR('Data Input - BAU'!BF86*INDEX('Energy Prices'!$F$19:$CR$24,MATCH($B96,'Energy Prices'!$C$19:$C$24,0),MATCH(Calc_BAU!BB$6,'Energy Prices'!$F$11:$CR$11,0))/100000,\"\")","v":""},{"$f":"IFERROR('Data Input - BAU'!BG86*INDEX('Energy Prices'!$F$19:$CR$24,MATCH($B96,'Energy Prices'!$C$19:$C$24,0),MATCH(Calc_BAU!BC$6,'Energy Prices'!$F$11:$CR$11,0))/100000,\"\")","v":""},{"$f":"IFERROR('Data Input - BAU'!BH86*INDEX('Energy Prices'!$F$19:$CR$24,MATCH($B96,'Energy Prices'!$C$19:$C$24,0),MATCH(Calc_BAU!BD$6,'Energy Prices'!$F$11:$CR$11,0))/100000,\"\")","v":""},{"$f":"IFERROR('Data Input - BAU'!BI86*INDEX('Energy Prices'!$F$19:$CR$24,MATCH($B96,'Energy Prices'!$C$19:$C$24,0),MATCH(Calc_BAU!BE$6,'Energy Prices'!$F$11:$CR$11,0))/100000,\"\")","v":""},{"$f":"IFERROR('Data Input - BAU'!BJ86*INDEX('Energy Prices'!$F$19:$CR$24,MATCH($B96,'Energy Prices'!$C$19:$C$24,0),MATCH(Calc_BAU!BF$6,'Energy Prices'!$F$11:$CR$11,0))/100000,\"\")","v":""},{"$f":"IFERROR('Data Input - BAU'!BK86*INDEX('Energy Prices'!$F$19:$CR$24,MATCH($B96,'Energy Prices'!$C$19:$C$24,0),MATCH(Calc_BAU!BG$6,'Energy Prices'!$F$11:$CR$11,0))/100000,\"\")","v":""},{"$f":"IFERROR('Data Input - BAU'!BL86*INDEX('Energy Prices'!$F$19:$CR$24,MATCH($B96,'Energy Prices'!$C$19:$C$24,0),MATCH(Calc_BAU!BH$6,'Energy Prices'!$F$11:$CR$11,0))/100000,\"\")","v":""},{"$f":"IFERROR('Data Input - BAU'!BM86*INDEX('Energy Prices'!$F$19:$CR$24,MATCH($B96,'Energy Prices'!$C$19:$C$24,0),MATCH(Calc_BAU!BI$6,'Energy Prices'!$F$11:$CR$11,0))/100000,\"\")","v":""},{"$f":"IFERROR('Data Input - BAU'!BN86*INDEX('Energy Prices'!$F$19:$CR$24,MATCH($B96,'Energy Prices'!$C$19:$C$24,0),MATCH(Calc_BAU!BJ$6,'Energy Prices'!$F$11:$CR$11,0))/100000,\"\")","v":""},{"$f":"IFERROR('Data Input - BAU'!BO86*INDEX('Energy Prices'!$F$19:$CR$24,MATCH($B96,'Energy Prices'!$C$19:$C$24,0),MATCH(Calc_BAU!BK$6,'Energy Prices'!$F$11:$CR$11,0))/100000,\"\")","v":""},{"$f":"IFERROR('Data Input - BAU'!BP86*INDEX('Energy Prices'!$F$19:$CR$24,MATCH($B96,'Energy Prices'!$C$19:$C$24,0),MATCH(Calc_BAU!BL$6,'Energy Prices'!$F$11:$CR$11,0))/100000,\"\")","v":""},{"$f":"IFERROR('Data Input - BAU'!BQ86*INDEX('Energy Prices'!$F$19:$CR$24,MATCH($B96,'Energy Prices'!$C$19:$C$24,0),MATCH(Calc_BAU!BM$6,'Energy Prices'!$F$11:$CR$11,0))/100000,\"\")","v":""},{"$f":"IFERROR('Data Input - BAU'!BR86*INDEX('Energy Prices'!$F$19:$CR$24,MATCH($B96,'Energy Prices'!$C$19:$C$24,0),MATCH(Calc_BAU!BN$6,'Energy Prices'!$F$11:$CR$11,0))/100000,\"\")","v":""},{"$f":"IFERROR('Data Input - BAU'!BS86*INDEX('Energy Prices'!$F$19:$CR$24,MATCH($B96,'Energy Prices'!$C$19:$C$24,0),MATCH(Calc_BAU!BO$6,'Energy Prices'!$F$11:$CR$11,0))/100000,\"\")","v":""},{"$f":"IFERROR('Data Input - BAU'!BT86*INDEX('Energy Prices'!$F$19:$CR$24,MATCH($B96,'Energy Prices'!$C$19:$C$24,0),MATCH(Calc_BAU!BP$6,'Energy Prices'!$F$11:$CR$11,0))/100000,\"\")","v":""},{"$f":"IFERROR('Data Input - BAU'!BU86*INDEX('Energy Prices'!$F$19:$CR$24,MATCH($B96,'Energy Prices'!$C$19:$C$24,0),MATCH(Calc_BAU!BQ$6,'Energy Prices'!$F$11:$CR$11,0))/100000,\"\")","v":""},{"$f":"IFERROR('Data Input - BAU'!BV86*INDEX('Energy Prices'!$F$19:$CR$24,MATCH($B96,'Energy Prices'!$C$19:$C$24,0),MATCH(Calc_BAU!BR$6,'Energy Prices'!$F$11:$CR$11,0))/100000,\"\")","v":""},{"$f":"IFERROR('Data Input - BAU'!BW86*INDEX('Energy Prices'!$F$19:$CR$24,MATCH($B96,'Energy Prices'!$C$19:$C$24,0),MATCH(Calc_BAU!BS$6,'Energy Prices'!$F$11:$CR$11,0))/100000,\"\")","v":""},{"$f":"IFERROR('Data Input - BAU'!BX86*INDEX('Energy Prices'!$F$19:$CR$24,MATCH($B96,'Energy Prices'!$C$19:$C$24,0),MATCH(Calc_BAU!BT$6,'Energy Prices'!$F$11:$CR$11,0))/100000,\"\")","v":""},{"$f":"IFERROR('Data Input - BAU'!BY86*INDEX('Energy Prices'!$F$19:$CR$24,MATCH($B96,'Energy Prices'!$C$19:$C$24,0),MATCH(Calc_BAU!BU$6,'Energy Prices'!$F$11:$CR$11,0))/100000,\"\")","v":""},{"$f":"IFERROR('Data Input - BAU'!BZ86*INDEX('Energy Prices'!$F$19:$CR$24,MATCH($B96,'Energy Prices'!$C$19:$C$24,0),MATCH(Calc_BAU!BV$6,'Energy Prices'!$F$11:$CR$11,0))/100000,\"\")","v":""},{"$f":"IFERROR('Data Input - BAU'!CA86*INDEX('Energy Prices'!$F$19:$CR$24,MATCH($B96,'Energy Prices'!$C$19:$C$24,0),MATCH(Calc_BAU!BW$6,'Energy Prices'!$F$11:$CR$11,0))/100000,\"\")","v":""},{"$f":"IFERROR('Data Input - BAU'!CB86*INDEX('Energy Prices'!$F$19:$CR$24,MATCH($B96,'Energy Prices'!$C$19:$C$24,0),MATCH(Calc_BAU!BX$6,'Energy Prices'!$F$11:$CR$11,0))/100000,\"\")","v":""},{"$f":"IFERROR('Data Input - BAU'!CC86*INDEX('Energy Prices'!$F$19:$CR$24,MATCH($B96,'Energy Prices'!$C$19:$C$24,0),MATCH(Calc_BAU!BY$6,'Energy Prices'!$F$11:$CR$11,0))/100000,\"\")","v":""},{"$f":"IFERROR('Data Input - BAU'!CD86*INDEX('Energy Prices'!$F$19:$CR$24,MATCH($B96,'Energy Prices'!$C$19:$C$24,0),MATCH(Calc_BAU!BZ$6,'Energy Prices'!$F$11:$CR$11,0))/100000,\"\")","v":""},{"$f":"IFERROR('Data Input - BAU'!CE86*INDEX('Energy Prices'!$F$19:$CR$24,MATCH($B96,'Energy Prices'!$C$19:$C$24,0),MATCH(Calc_BAU!CA$6,'Energy Prices'!$F$11:$CR$11,0))/100000,\"\")","v":""},{"$f":"IFERROR('Data Input - BAU'!CF86*INDEX('Energy Prices'!$F$19:$CR$24,MATCH($B96,'Energy Prices'!$C$19:$C$24,0),MATCH(Calc_BAU!CB$6,'Energy Prices'!$F$11:$CR$11,0))/100000,\"\")","v":""},{"$f":"IFERROR('Data Input - BAU'!CG86*INDEX('Energy Prices'!$F$19:$CR$24,MATCH($B96,'Energy Prices'!$C$19:$C$24,0),MATCH(Calc_BAU!CC$6,'Energy Prices'!$F$11:$CR$11,0))/100000,\"\")","v":""},{"$f":"IFERROR('Data Input - BAU'!CH86*INDEX('Energy Prices'!$F$19:$CR$24,MATCH($B96,'Energy Prices'!$C$19:$C$24,0),MATCH(Calc_BAU!CD$6,'Energy Prices'!$F$11:$CR$11,0))/100000,\"\")","v":""},{"$f":"IFERROR('Data Input - BAU'!CI86*INDEX('Energy Prices'!$F$19:$CR$24,MATCH($B96,'Energy Prices'!$C$19:$C$24,0),MATCH(Calc_BAU!CE$6,'Energy Prices'!$F$11:$CR$11,0))/100000,\"\")","v":""},{"$f":"IFERROR('Data Input - BAU'!CJ86*INDEX('Energy Prices'!$F$19:$CR$24,MATCH($B96,'Energy Prices'!$C$19:$C$24,0),MATCH(Calc_BAU!CF$6,'Energy Prices'!$F$11:$CR$11,0))/100000,\"\")","v":""},{"$f":"IFERROR('Data Input - BAU'!CK86*INDEX('Energy Prices'!$F$19:$CR$24,MATCH($B96,'Energy Prices'!$C$19:$C$24,0),MATCH(Calc_BAU!CG$6,'Energy Prices'!$F$11:$CR$11,0))/100000,\"\")","v":""},{"$f":"IFERROR('Data Input - BAU'!CL86*INDEX('Energy Prices'!$F$19:$CR$24,MATCH($B96,'Energy Prices'!$C$19:$C$24,0),MATCH(Calc_BAU!CH$6,'Energy Prices'!$F$11:$CR$11,0))/100000,\"\")","v":""},{"$f":"IFERROR('Data Input - BAU'!CM86*INDEX('Energy Prices'!$F$19:$CR$24,MATCH($B96,'Energy Prices'!$C$19:$C$24,0),MATCH(Calc_BAU!CI$6,'Energy Prices'!$F$11:$CR$11,0))/100000,\"\")","v":""},{"$f":"IFERROR('Data Input - BAU'!CN86*INDEX('Energy Prices'!$F$19:$CR$24,MATCH($B96,'Energy Prices'!$C$19:$C$24,0),MATCH(Calc_BAU!CJ$6,'Energy Prices'!$F$11:$CR$11,0))/100000,\"\")","v":""},{"$f":"IFERROR('Data Input - BAU'!CO86*INDEX('Energy Prices'!$F$19:$CR$24,MATCH($B96,'Energy Prices'!$C$19:$C$24,0),MATCH(Calc_BAU!CK$6,'Energy Prices'!$F$11:$CR$11,0))/100000,\"\")","v":""},{"$f":"IFERROR('Data Input - BAU'!CP86*INDEX('Energy Prices'!$F$19:$CR$24,MATCH($B96,'Energy Prices'!$C$19:$C$24,0),MATCH(Calc_BAU!CL$6,'Energy Prices'!$F$11:$CR$11,0))/100000,\"\")","v":""},{"$f":"IFERROR('Data Input - BAU'!CQ86*INDEX('Energy Prices'!$F$19:$CR$24,MATCH($B96,'Energy Prices'!$C$19:$C$24,0),MATCH(Calc_BAU!CM$6,'Energy Prices'!$F$11:$CR$11,0))/100000,\"\")","v":""},{"$f":"IFERROR('Data Input - BAU'!CR86*INDEX('Energy Prices'!$F$19:$CR$24,MATCH($B96,'Energy Prices'!$C$19:$C$24,0),MATCH(Calc_BAU!CN$6,'Energy Prices'!$F$11:$CR$11,0))/100000,\"\")","v":""},{"$f":"IFERROR('Data Input - BAU'!CS86*INDEX('Energy Prices'!$F$19:$CR$24,MATCH($B96,'Energy Prices'!$C$19:$C$24,0),MATCH(Calc_BAU!CO$6,'Energy Prices'!$F$11:$CR$11,0))/100000,\"\")","v":""},{"$f":"IFERROR('Data Input - BAU'!CT86*INDEX('Energy Prices'!$F$19:$CR$24,MATCH($B96,'Energy Prices'!$C$19:$C$24,0),MATCH(Calc_BAU!CP$6,'Energy Prices'!$F$11:$CR$11,0))/100000,\"\")","v":""},{"$f":"IFERROR('Data Input - BAU'!CU86*INDEX('Energy Prices'!$F$19:$CR$24,MATCH($B96,'Energy Prices'!$C$19:$C$24,0),MATCH(Calc_BAU!CQ$6,'Energy Prices'!$F$11:$CR$11,0))/100000,\"\")","v":""},{"$f":"IFERROR('Data Input - BAU'!CV86*INDEX('Energy Prices'!$F$19:$CR$24,MATCH($B96,'Energy Prices'!$C$19:$C$24,0),MATCH(Calc_BAU!CR$6,'Energy Prices'!$F$11:$CR$11,0))/100000,\"\")","v":""},{"$f":"IFERROR('Data Input - BAU'!CW86*INDEX('Energy Prices'!$F$19:$CR$24,MATCH($B96,'Energy Prices'!$C$19:$C$24,0),MATCH(Calc_BAU!CS$6,'Energy Prices'!$F$11:$CR$11,0))/100000,\"\")","v":""},{"$f":"IFERROR('Data Input - BAU'!CX86*INDEX('Energy Prices'!$F$19:$CR$24,MATCH($B96,'Energy Prices'!$C$19:$C$24,0),MATCH(Calc_BAU!CT$6,'Energy Prices'!$F$11:$CR$11,0))/100000,\"\")","v":""},{"$f":"IFERROR('Data Input - BAU'!CY86*INDEX('Energy Prices'!$F$19:$CR$24,MATCH($B96,'Energy Prices'!$C$19:$C$24,0),MATCH(Calc_BAU!CU$6,'Energy Prices'!$F$11:$CR$11,0))/100000,\"\")","v":""},{"$f":"IFERROR('Data Input - BAU'!CZ86*INDEX('Energy Prices'!$F$19:$CR$24,MATCH($B96,'Energy Prices'!$C$19:$C$24,0),MATCH(Calc_BAU!CV$6,'Energy Prices'!$F$11:$CR$11,0))/100000,\"\")","v":""},{"$f":"IFERROR('Data Input - BAU'!DA86*INDEX('Energy Prices'!$F$19:$CR$24,MATCH($B96,'Energy Prices'!$C$19:$C$24,0),MATCH(Calc_BAU!CW$6,'Energy Prices'!$F$11:$CR$11,0))/100000,\"\")","v":""},{"$f":"IFERROR('Data Input - BAU'!DB86*INDEX('Energy Prices'!$F$19:$CR$24,MATCH($B96,'Energy Prices'!$C$19:$C$24,0),MATCH(Calc_BAU!CX$6,'Energy Prices'!$F$11:$CR$11,0))/100000,\"\")","v":""},{"$f":"IFERROR('Data Input - BAU'!DC86*INDEX('Energy Prices'!$F$19:$CR$24,MATCH($B96,'Energy Prices'!$C$19:$C$24,0),MATCH(Calc_BAU!CY$6,'Energy Prices'!$F$11:$CR$11,0))/100000,\"\")","v":""}]
[null,"Gas Oil","£000's",{"$f":"IFERROR('Data Input - BAU'!H87*INDEX('Energy Prices'!$F$19:$CR$24,MATCH($B97,'Energy Prices'!$C$19:$C$24,0),MATCH(Calc_BAU!D$6,'Energy Prices'!$F$11:$CR$11,0))/100000,\"\")","v":55.666248959960114},{"$f":"IFERROR('Data Input - BAU'!I87*INDEX('Energy Prices'!$F$19:$CR$24,MATCH($B97,'Energy Prices'!$C$19:$C$24,0),MATCH(Calc_BAU!E$6,'Energy Prices'!$F$11:$CR$11,0))/100000,\"\")","v":63.064053899665872},{"$f":"IFERROR('Data Input - BAU'!J87*INDEX('Energy Prices'!$F$19:$CR$24,MATCH($B97,'Energy Prices'!$C$19:$C$24,0),MATCH(Calc_BAU!F$6,'Energy Prices'!$F$11:$CR$11,0))/100000,\"\")","v":70.481173983169569},{"$f":"IFERROR('Data Input - BAU'!K87*INDEX('Energy Prices'!$F$19:$CR$24,MATCH($B97,'Energy Prices'!$C$19:$C$24,0),MATCH(Calc_BAU!G$6,'Energy Prices'!$F$11:$CR$11,0))/100000,\"\")","v":77.883658222867751},{"$f":"IFERROR('Data Input - BAU'!L87*INDEX('Energy Prices'!$F$19:$CR$24,MATCH($B97,'Energy Prices'!$C$19:$C$24,0),MATCH(Calc_BAU!H$6,'Energy Prices'!$F$11:$CR$11,0))/100000,\"\")","v":85.279524067697764},{"$f":"IFERROR('Data Input - BAU'!M87*INDEX('Energy Prices'!$F$19:$CR$24,MATCH($B97,'Energy Prices'!$C$19:$C$24,0),MATCH(Calc_BAU!I$6,'Energy Prices'!$F$11:$CR$11,0))/100000,\"\")","v":92.676544839111386},{"$f":"IFERROR('Data Input - BAU'!N87*INDEX('Energy Prices'!$F$19:$CR$24,MATCH($B97,'Energy Prices'!$C$19:$C$24,0),MATCH(Calc_BAU!J$6,'Energy Prices'!$F$11:$CR$11,0))/100000,\"\")","v":100.07472843983201},{"$f":"IFERROR('Data Input - BAU'!O87*INDEX('Energy Prices'!$F$19:$CR$24,MATCH($B97,'Energy Prices'!$C$19:$C$24,0),MATCH(Calc_BAU!K$6,'Energy Prices'!$F$11:$CR$11,0))/100000,\"\")","v":100.24700125254226},{"$f":"IFERROR('Data Input - BAU'!P87*INDEX('Energy Prices'!$F$19:$CR$24,MATCH($B97,'Energy Prices'!$C$19:$C$24,0),MATCH(Calc_BAU!L$6,'Energy Prices'!$F$11:$CR$11,0))/100000,\"\")","v":0},{"$f":"IFERROR('Data Input - BAU'!Q87*INDEX('Energy Prices'!$F$19:$CR$24,MATCH($B97,'Energy Prices'!$C$19:$C$24,0),MATCH(Calc_BAU!M$6,'Energy Prices'!$F$11:$CR$11,0))/100000,\"\")","v":0},{"$f":"IFERROR('Data Input - BAU'!R87*INDEX('Energy Prices'!$F$19:$CR$24,MATCH($B97,'Energy Prices'!$C$19:$C$24,0),MATCH(Calc_BAU!N$6,'Energy Prices'!$F$11:$CR$11,0))/100000,\"\")","v":0},{"$f":"IFERROR('Data Input - BAU'!S87*INDEX('Energy Prices'!$F$19:$CR$24,MATCH($B97,'Energy Prices'!$C$19:$C$24,0),MATCH(Calc_BAU!O$6,'Energy Prices'!$F$11:$CR$11,0))/100000,\"\")","v":0},{"$f":"IFERROR('Data Input - BAU'!T87*INDEX('Energy Prices'!$F$19:$CR$24,MATCH($B97,'Energy Prices'!$C$19:$C$24,0),MATCH(Calc_BAU!P$6,'Energy Prices'!$F$11:$CR$11,0))/100000,\"\")","v":0},{"$f":"IFERROR('Data Input - BAU'!U87*INDEX('Energy Prices'!$F$19:$CR$24,MATCH($B97,'Energy Prices'!$C$19:$C$24,0),MATCH(Calc_BAU!Q$6,'Energy Prices'!$F$11:$CR$11,0))/100000,\"\")","v":0},{"$f":"IFERROR('Data Input - BAU'!V87*INDEX('Energy Prices'!$F$19:$CR$24,MATCH($B97,'Energy Prices'!$C$19:$C$24,0),MATCH(Calc_BAU!R$6,'Energy Prices'!$F$11:$CR$11,0))/100000,\"\")","v":0},{"$f":"IFERROR('Data Input - BAU'!W87*INDEX('Energy Prices'!$F$19:$CR$24,MATCH($B97,'Energy Prices'!$C$19:$C$24,0),MATCH(Calc_BAU!S$6,'Energy Prices'!$F$11:$CR$11,0))/100000,\"\")","v":0},{"$f":"IFERROR('Data Input - BAU'!X87*INDEX('Energy Prices'!$F$19:$CR$24,MATCH($B97,'Energy Prices'!$C$19:$C$24,0),MATCH(Calc_BAU!T$6,'Energy Prices'!$F$11:$CR$11,0))/100000,\"\")","v":0},{"$f":"IFERROR('Data Input - BAU'!Y87*INDEX('Energy Prices'!$F$19:$CR$24,MATCH($B97,'Energy Prices'!$C$19:$C$24,0),MATCH(Calc_BAU!U$6,'Energy Prices'!$F$11:$CR$11,0))/100000,\"\")","v":0},{"$f":"IFERROR('Data Input - BAU'!Z87*INDEX('Energy Prices'!$F$19:$CR$24,MATCH($B97,'Energy Prices'!$C$19:$C$24,0),MATCH(Calc_BAU!V$6,'Energy Prices'!$F$11:$CR$11,0))/100000,\"\")","v":0},{"$f":"IFERROR('Data Input - BAU'!AA87*INDEX('Energy Prices'!$F$19:$CR$24,MATCH($B97,'Energy Prices'!$C$19:$C$24,0),MATCH(Calc_BAU!W$6,'Energy Prices'!$F$11:$CR$11,0))/100000,\"\")","v":0},{"$f":"IFERROR('Data Input - BAU'!AB87*INDEX('Energy Prices'!$F$19:$CR$24,MATCH($B97,'Energy Prices'!$C$19:$C$24,0),MATCH(Calc_BAU!X$6,'Energy Prices'!$F$11:$CR$11,0))/100000,\"\")","v":0},{"$f":"IFERROR('Data Input - BAU'!AC87*INDEX('Energy Prices'!$F$19:$CR$24,MATCH($B97,'Energy Prices'!$C$19:$C$24,0),MATCH(Calc_BAU!Y$6,'Energy Prices'!$F$11:$CR$11,0))/100000,\"\")","v":0},{"$f":"IFERROR('Data Input - BAU'!AD87*INDEX('Energy Prices'!$F$19:$CR$24,MATCH($B97,'Energy Prices'!$C$19:$C$24,0),MATCH(Calc_BAU!Z$6,'Energy Prices'!$F$11:$CR$11,0))/100000,\"\")","v":0},{"$f":"IFERROR('Data Input - BAU'!AE87*INDEX('Energy Prices'!$F$19:$CR$24,MATCH($B97,'Energy Prices'!$C$19:$C$24,0),MATCH(Calc_BAU!AA$6,'Energy Prices'!$F$11:$CR$11,0))/100000,\"\")","v":0},{"$f":"IFERROR('Data Input - BAU'!AF87*INDEX('Energy Prices'!$F$19:$CR$24,MATCH($B97,'Energy Prices'!$C$19:$C$24,0),MATCH(Calc_BAU!AB$6,'Energy Prices'!$F$11:$CR$11,0))/100000,\"\")","v":0},{"$f":"IFERROR('Data Input - BAU'!AG87*INDEX('Energy Prices'!$F$19:$CR$24,MATCH($B97,'Energy Prices'!$C$19:$C$24,0),MATCH(Calc_BAU!AC$6,'Energy Prices'!$F$11:$CR$11,0))/100000,\"\")","v":0},{"$f":"IFERROR('Data Input - BAU'!AH87*INDEX('Energy Prices'!$F$19:$CR$24,MATCH($B97,'Energy Prices'!$C$19:$C$24,0),MATCH(Calc_BAU!AD$6,'Energy Prices'!$F$11:$CR$11,0))/100000,\"\")","v":0},{"$f":"IFERROR('Data Input - BAU'!AI87*INDEX('Energy Prices'!$F$19:$CR$24,MATCH($B97,'Energy Prices'!$C$19:$C$24,0),MATCH(Calc_BAU!AE$6,'Energy Prices'!$F$11:$CR$11,0))/100000,\"\")","v":0},{"$f":"IFERROR('Data Input - BAU'!AJ87*INDEX('Energy Prices'!$F$19:$CR$24,MATCH($B97,'Energy Prices'!$C$19:$C$24,0),MATCH(Calc_BAU!AF$6,'Energy Prices'!$F$11:$CR$11,0))/100000,\"\")","v":0},{"$f":"IFERROR('Data Input - BAU'!AK87*INDEX('Energy Prices'!$F$19:$CR$24,MATCH($B97,'Energy Prices'!$C$19:$C$24,0),MATCH(Calc_BAU!AG$6,'Energy Prices'!$F$11:$CR$11,0))/100000,\"\")","v":0},{"$f":"IFERROR('Data Input - BAU'!AL87*INDEX('Energy Prices'!$F$19:$CR$24,MATCH($B97,'Energy Prices'!$C$19:$C$24,0),MATCH(Calc_BAU!AH$6,'Energy Prices'!$F$11:$CR$11,0))/100000,\"\")","v":0},{"$f":"IFERROR('Data Input - BAU'!AM87*INDEX('Energy Prices'!$F$19:$CR$24,MATCH($B97,'Energy Prices'!$C$19:$C$24,0),MATCH(Calc_BAU!AI$6,'Energy Prices'!$F$11:$CR$11,0))/100000,\"\")","v":""},{"$f":"IFERROR('Data Input - BAU'!AN87*INDEX('Energy Prices'!$F$19:$CR$24,MATCH($B97,'Energy Prices'!$C$19:$C$24,0),MATCH(Calc_BAU!AJ$6,'Energy Prices'!$F$11:$CR$11,0))/100000,\"\")","v":""},{"$f":"IFERROR('Data Input - BAU'!AO87*INDEX('Energy Prices'!$F$19:$CR$24,MATCH($B97,'Energy Prices'!$C$19:$C$24,0),MATCH(Calc_BAU!AK$6,'Energy Prices'!$F$11:$CR$11,0))/100000,\"\")","v":""},{"$f":"IFERROR('Data Input - BAU'!AP87*INDEX('Energy Prices'!$F$19:$CR$24,MATCH($B97,'Energy Prices'!$C$19:$C$24,0),MATCH(Calc_BAU!AL$6,'Energy Prices'!$F$11:$CR$11,0))/100000,\"\")","v":""},{"$f":"IFERROR('Data Input - BAU'!AQ87*INDEX('Energy Prices'!$F$19:$CR$24,MATCH($B97,'Energy Prices'!$C$19:$C$24,0),MATCH(Calc_BAU!AM$6,'Energy Prices'!$F$11:$CR$11,0))/100000,\"\")","v":""},{"$f":"IFERROR('Data Input - BAU'!AR87*INDEX('Energy Prices'!$F$19:$CR$24,MATCH($B97,'Energy Prices'!$C$19:$C$24,0),MATCH(Calc_BAU!AN$6,'Energy Prices'!$F$11:$CR$11,0))/100000,\"\")","v":""},{"$f":"IFERROR('Data Input - BAU'!AS87*INDEX('Energy Prices'!$F$19:$CR$24,MATCH($B97,'Energy Prices'!$C$19:$C$24,0),MATCH(Calc_BAU!AO$6,'Energy Prices'!$F$11:$CR$11,0))/100000,\"\")","v":""},{"$f":"IFERROR('Data Input - BAU'!AT87*INDEX('Energy Prices'!$F$19:$CR$24,MATCH($B97,'Energy Prices'!$C$19:$C$24,0),MATCH(Calc_BAU!AP$6,'Energy Prices'!$F$11:$CR$11,0))/100000,\"\")","v":""},{"$f":"IFERROR('Data Input - BAU'!AU87*INDEX('Energy Prices'!$F$19:$CR$24,MATCH($B97,'Energy Prices'!$C$19:$C$24,0),MATCH(Calc_BAU!AQ$6,'Energy Prices'!$F$11:$CR$11,0))/100000,\"\")","v":""},{"$f":"IFERROR('Data Input - BAU'!AV87*INDEX('Energy Prices'!$F$19:$CR$24,MATCH($B97,'Energy Prices'!$C$19:$C$24,0),MATCH(Calc_BAU!AR$6,'Energy Prices'!$F$11:$CR$11,0))/100000,\"\")","v":""},{"$f":"IFERROR('Data Input - BAU'!AW87*INDEX('Energy Prices'!$F$19:$CR$24,MATCH($B97,'Energy Prices'!$C$19:$C$24,0),MATCH(Calc_BAU!AS$6,'Energy Prices'!$F$11:$CR$11,0))/100000,\"\")","v":""},{"$f":"IFERROR('Data Input - BAU'!AX87*INDEX('Energy Prices'!$F$19:$CR$24,MATCH($B97,'Energy Prices'!$C$19:$C$24,0),MATCH(Calc_BAU!AT$6,'Energy Prices'!$F$11:$CR$11,0))/100000,\"\")","v":""},{"$f":"IFERROR('Data Input - BAU'!AY87*INDEX('Energy Prices'!$F$19:$CR$24,MATCH($B97,'Energy Prices'!$C$19:$C$24,0),MATCH(Calc_BAU!AU$6,'Energy Prices'!$F$11:$CR$11,0))/100000,\"\")","v":""},{"$f":"IFERROR('Data Input - BAU'!AZ87*INDEX('Energy Prices'!$F$19:$CR$24,MATCH($B97,'Energy Prices'!$C$19:$C$24,0),MATCH(Calc_BAU!AV$6,'Energy Prices'!$F$11:$CR$11,0))/100000,\"\")","v":""},{"$f":"IFERROR('Data Input - BAU'!BA87*INDEX('Energy Prices'!$F$19:$CR$24,MATCH($B97,'Energy Prices'!$C$19:$C$24,0),MATCH(Calc_BAU!AW$6,'Energy Prices'!$F$11:$CR$11,0))/100000,\"\")","v":""},{"$f":"IFERROR('Data Input - BAU'!BB87*INDEX('Energy Prices'!$F$19:$CR$24,MATCH($B97,'Energy Prices'!$C$19:$C$24,0),MATCH(Calc_BAU!AX$6,'Energy Prices'!$F$11:$CR$11,0))/100000,\"\")","v":""},{"$f":"IFERROR('Data Input - BAU'!BC87*INDEX('Energy Prices'!$F$19:$CR$24,MATCH($B97,'Energy Prices'!$C$19:$C$24,0),MATCH(Calc_BAU!AY$6,'Energy Prices'!$F$11:$CR$11,0))/100000,\"\")","v":""},{"$f":"IFERROR('Data Input - BAU'!BD87*INDEX('Energy Prices'!$F$19:$CR$24,MATCH($B97,'Energy Prices'!$C$19:$C$24,0),MATCH(Calc_BAU!AZ$6,'Energy Prices'!$F$11:$CR$11,0))/100000,\"\")","v":""},{"$f":"IFERROR('Data Input - BAU'!BE87*INDEX('Energy Prices'!$F$19:$CR$24,MATCH($B97,'Energy Prices'!$C$19:$C$24,0),MATCH(Calc_BAU!BA$6,'Energy Prices'!$F$11:$CR$11,0))/100000,\"\")","v":""},{"$f":"IFERROR('Data Input - BAU'!BF87*INDEX('Energy Prices'!$F$19:$CR$24,MATCH($B97,'Energy Prices'!$C$19:$C$24,0),MATCH(Calc_BAU!BB$6,'Energy Prices'!$F$11:$CR$11,0))/100000,\"\")","v":""},{"$f":"IFERROR('Data Input - BAU'!BG87*INDEX('Energy Prices'!$F$19:$CR$24,MATCH($B97,'Energy Prices'!$C$19:$C$24,0),MATCH(Calc_BAU!BC$6,'Energy Prices'!$F$11:$CR$11,0))/100000,\"\")","v":""},{"$f":"IFERROR('Data Input - BAU'!BH87*INDEX('Energy Prices'!$F$19:$CR$24,MATCH($B97,'Energy Prices'!$C$19:$C$24,0),MATCH(Calc_BAU!BD$6,'Energy Prices'!$F$11:$CR$11,0))/100000,\"\")","v":""},{"$f":"IFERROR('Data Input - BAU'!BI87*INDEX('Energy Prices'!$F$19:$CR$24,MATCH($B97,'Energy Prices'!$C$19:$C$24,0),MATCH(Calc_BAU!BE$6,'Energy Prices'!$F$11:$CR$11,0))/100000,\"\")","v":""},{"$f":"IFERROR('Data Input - BAU'!BJ87*INDEX('Energy Prices'!$F$19:$CR$24,MATCH($B97,'Energy Prices'!$C$19:$C$24,0),MATCH(Calc_BAU!BF$6,'Energy Prices'!$F$11:$CR$11,0))/100000,\"\")","v":""},{"$f":"IFERROR('Data Input - BAU'!BK87*INDEX('Energy Prices'!$F$19:$CR$24,MATCH($B97,'Energy Prices'!$C$19:$C$24,0),MATCH(Calc_BAU!BG$6,'Energy Prices'!$F$11:$CR$11,0))/100000,\"\")","v":""},{"$f":"IFERROR('Data Input - BAU'!BL87*INDEX('Energy Prices'!$F$19:$CR$24,MATCH($B97,'Energy Prices'!$C$19:$C$24,0),MATCH(Calc_BAU!BH$6,'Energy Prices'!$F$11:$CR$11,0))/100000,\"\")","v":""},{"$f":"IFERROR('Data Input - BAU'!BM87*INDEX('Energy Prices'!$F$19:$CR$24,MATCH($B97,'Energy Prices'!$C$19:$C$24,0),MATCH(Calc_BAU!BI$6,'Energy Prices'!$F$11:$CR$11,0))/100000,\"\")","v":""},{"$f":"IFERROR('Data Input - BAU'!BN87*INDEX('Energy Prices'!$F$19:$CR$24,MATCH($B97,'Energy Prices'!$C$19:$C$24,0),MATCH(Calc_BAU!BJ$6,'Energy Prices'!$F$11:$CR$11,0))/100000,\"\")","v":""},{"$f":"IFERROR('Data Input - BAU'!BO87*INDEX('Energy Prices'!$F$19:$CR$24,MATCH($B97,'Energy Prices'!$C$19:$C$24,0),MATCH(Calc_BAU!BK$6,'Energy Prices'!$F$11:$CR$11,0))/100000,\"\")","v":""},{"$f":"IFERROR('Data Input - BAU'!BP87*INDEX('Energy Prices'!$F$19:$CR$24,MATCH($B97,'Energy Prices'!$C$19:$C$24,0),MATCH(Calc_BAU!BL$6,'Energy Prices'!$F$11:$CR$11,0))/100000,\"\")","v":""},{"$f":"IFERROR('Data Input - BAU'!BQ87*INDEX('Energy Prices'!$F$19:$CR$24,MATCH($B97,'Energy Prices'!$C$19:$C$24,0),MATCH(Calc_BAU!BM$6,'Energy Prices'!$F$11:$CR$11,0))/100000,\"\")","v":""},{"$f":"IFERROR('Data Input - BAU'!BR87*INDEX('Energy Prices'!$F$19:$CR$24,MATCH($B97,'Energy Prices'!$C$19:$C$24,0),MATCH(Calc_BAU!BN$6,'Energy Prices'!$F$11:$CR$11,0))/100000,\"\")","v":""},{"$f":"IFERROR('Data Input - BAU'!BS87*INDEX('Energy Prices'!$F$19:$CR$24,MATCH($B97,'Energy Prices'!$C$19:$C$24,0),MATCH(Calc_BAU!BO$6,'Energy Prices'!$F$11:$CR$11,0))/100000,\"\")","v":""},{"$f":"IFERROR('Data Input - BAU'!BT87*INDEX('Energy Prices'!$F$19:$CR$24,MATCH($B97,'Energy Prices'!$C$19:$C$24,0),MATCH(Calc_BAU!BP$6,'Energy Prices'!$F$11:$CR$11,0))/100000,\"\")","v":""},{"$f":"IFERROR('Data Input - BAU'!BU87*INDEX('Energy Prices'!$F$19:$CR$24,MATCH($B97,'Energy Prices'!$C$19:$C$24,0),MATCH(Calc_BAU!BQ$6,'Energy Prices'!$F$11:$CR$11,0))/100000,\"\")","v":""},{"$f":"IFERROR('Data Input - BAU'!BV87*INDEX('Energy Prices'!$F$19:$CR$24,MATCH($B97,'Energy Prices'!$C$19:$C$24,0),MATCH(Calc_BAU!BR$6,'Energy Prices'!$F$11:$CR$11,0))/100000,\"\")","v":""},{"$f":"IFERROR('Data Input - BAU'!BW87*INDEX('Energy Prices'!$F$19:$CR$24,MATCH($B97,'Energy Prices'!$C$19:$C$24,0),MATCH(Calc_BAU!BS$6,'Energy Prices'!$F$11:$CR$11,0))/100000,\"\")","v":""},{"$f":"IFERROR('Data Input - BAU'!BX87*INDEX('Energy Prices'!$F$19:$CR$24,MATCH($B97,'Energy Prices'!$C$19:$C$24,0),MATCH(Calc_BAU!BT$6,'Energy Prices'!$F$11:$CR$11,0))/100000,\"\")","v":""},{"$f":"IFERROR('Data Input - BAU'!BY87*INDEX('Energy Prices'!$F$19:$CR$24,MATCH($B97,'Energy Prices'!$C$19:$C$24,0),MATCH(Calc_BAU!BU$6,'Energy Prices'!$F$11:$CR$11,0))/100000,\"\")","v":""},{"$f":"IFERROR('Data Input - BAU'!BZ87*INDEX('Energy Prices'!$F$19:$CR$24,MATCH($B97,'Energy Prices'!$C$19:$C$24,0),MATCH(Calc_BAU!BV$6,'Energy Prices'!$F$11:$CR$11,0))/100000,\"\")","v":""},{"$f":"IFERROR('Data Input - BAU'!CA87*INDEX('Energy Prices'!$F$19:$CR$24,MATCH($B97,'Energy Prices'!$C$19:$C$24,0),MATCH(Calc_BAU!BW$6,'Energy Prices'!$F$11:$CR$11,0))/100000,\"\")","v":""},{"$f":"IFERROR('Data Input - BAU'!CB87*INDEX('Energy Prices'!$F$19:$CR$24,MATCH($B97,'Energy Prices'!$C$19:$C$24,0),MATCH(Calc_BAU!BX$6,'Energy Prices'!$F$11:$CR$11,0))/100000,\"\")","v":""},{"$f":"IFERROR('Data Input - BAU'!CC87*INDEX('Energy Prices'!$F$19:$CR$24,MATCH($B97,'Energy Prices'!$C$19:$C$24,0),MATCH(Calc_BAU!BY$6,'Energy Prices'!$F$11:$CR$11,0))/100000,\"\")","v":""},{"$f":"IFERROR('Data Input - BAU'!CD87*INDEX('Energy Prices'!$F$19:$CR$24,MATCH($B97,'Energy Prices'!$C$19:$C$24,0),MATCH(Calc_BAU!BZ$6,'Energy Prices'!$F$11:$CR$11,0))/100000,\"\")","v":""},{"$f":"IFERROR('Data Input - BAU'!CE87*INDEX('Energy Prices'!$F$19:$CR$24,MATCH($B97,'Energy Prices'!$C$19:$C$24,0),MATCH(Calc_BAU!CA$6,'Energy Prices'!$F$11:$CR$11,0))/100000,\"\")","v":""},{"$f":"IFERROR('Data Input - BAU'!CF87*INDEX('Energy Prices'!$F$19:$CR$24,MATCH($B97,'Energy Prices'!$C$19:$C$24,0),MATCH(Calc_BAU!CB$6,'Energy Prices'!$F$11:$CR$11,0))/100000,\"\")","v":""},{"$f":"IFERROR('Data Input - BAU'!CG87*INDEX('Energy Prices'!$F$19:$CR$24,MATCH($B97,'Energy Prices'!$C$19:$C$24,0),MATCH(Calc_BAU!CC$6,'Energy Prices'!$F$11:$CR$11,0))/100000,\"\")","v":""},{"$f":"IFERROR('Data Input - BAU'!CH87*INDEX('Energy Prices'!$F$19:$CR$24,MATCH($B97,'Energy Prices'!$C$19:$C$24,0),MATCH(Calc_BAU!CD$6,'Energy Prices'!$F$11:$CR$11,0))/100000,\"\")","v":""},{"$f":"IFERROR('Data Input - BAU'!CI87*INDEX('Energy Prices'!$F$19:$CR$24,MATCH($B97,'Energy Prices'!$C$19:$C$24,0),MATCH(Calc_BAU!CE$6,'Energy Prices'!$F$11:$CR$11,0))/100000,\"\")","v":""},{"$f":"IFERROR('Data Input - BAU'!CJ87*INDEX('Energy Prices'!$F$19:$CR$24,MATCH($B97,'Energy Prices'!$C$19:$C$24,0),MATCH(Calc_BAU!CF$6,'Energy Prices'!$F$11:$CR$11,0))/100000,\"\")","v":""},{"$f":"IFERROR('Data Input - BAU'!CK87*INDEX('Energy Prices'!$F$19:$CR$24,MATCH($B97,'Energy Prices'!$C$19:$C$24,0),MATCH(Calc_BAU!CG$6,'Energy Prices'!$F$11:$CR$11,0))/100000,\"\")","v":""},{"$f":"IFERROR('Data Input - BAU'!CL87*INDEX('Energy Prices'!$F$19:$CR$24,MATCH($B97,'Energy Prices'!$C$19:$C$24,0),MATCH(Calc_BAU!CH$6,'Energy Prices'!$F$11:$CR$11,0))/100000,\"\")","v":""},{"$f":"IFERROR('Data Input - BAU'!CM87*INDEX('Energy Prices'!$F$19:$CR$24,MATCH($B97,'Energy Prices'!$C$19:$C$24,0),MATCH(Calc_BAU!CI$6,'Energy Prices'!$F$11:$CR$11,0))/100000,\"\")","v":""},{"$f":"IFERROR('Data Input - BAU'!CN87*INDEX('Energy Prices'!$F$19:$CR$24,MATCH($B97,'Energy Prices'!$C$19:$C$24,0),MATCH(Calc_BAU!CJ$6,'Energy Prices'!$F$11:$CR$11,0))/100000,\"\")","v":""},{"$f":"IFERROR('Data Input - BAU'!CO87*INDEX('Energy Prices'!$F$19:$CR$24,MATCH($B97,'Energy Prices'!$C$19:$C$24,0),MATCH(Calc_BAU!CK$6,'Energy Prices'!$F$11:$CR$11,0))/100000,\"\")","v":""},{"$f":"IFERROR('Data Input - BAU'!CP87*INDEX('Energy Prices'!$F$19:$CR$24,MATCH($B97,'Energy Prices'!$C$19:$C$24,0),MATCH(Calc_BAU!CL$6,'Energy Prices'!$F$11:$CR$11,0))/100000,\"\")","v":""},{"$f":"IFERROR('Data Input - BAU'!CQ87*INDEX('Energy Prices'!$F$19:$CR$24,MATCH($B97,'Energy Prices'!$C$19:$C$24,0),MATCH(Calc_BAU!CM$6,'Energy Prices'!$F$11:$CR$11,0))/100000,\"\")","v":""},{"$f":"IFERROR('Data Input - BAU'!CR87*INDEX('Energy Prices'!$F$19:$CR$24,MATCH($B97,'Energy Prices'!$C$19:$C$24,0),MATCH(Calc_BAU!CN$6,'Energy Prices'!$F$11:$CR$11,0))/100000,\"\")","v":""},{"$f":"IFERROR('Data Input - BAU'!CS87*INDEX('Energy Prices'!$F$19:$CR$24,MATCH($B97,'Energy Prices'!$C$19:$C$24,0),MATCH(Calc_BAU!CO$6,'Energy Prices'!$F$11:$CR$11,0))/100000,\"\")","v":""},{"$f":"IFERROR('Data Input - BAU'!CT87*INDEX('Energy Prices'!$F$19:$CR$24,MATCH($B97,'Energy Prices'!$C$19:$C$24,0),MATCH(Calc_BAU!CP$6,'Energy Prices'!$F$11:$CR$11,0))/100000,\"\")","v":""},{"$f":"IFERROR('Data Input - BAU'!CU87*INDEX('Energy Prices'!$F$19:$CR$24,MATCH($B97,'Energy Prices'!$C$19:$C$24,0),MATCH(Calc_BAU!CQ$6,'Energy Prices'!$F$11:$CR$11,0))/100000,\"\")","v":""},{"$f":"IFERROR('Data Input - BAU'!CV87*INDEX('Energy Prices'!$F$19:$CR$24,MATCH($B97,'Energy Prices'!$C$19:$C$24,0),MATCH(Calc_BAU!CR$6,'Energy Prices'!$F$11:$CR$11,0))/100000,\"\")","v":""},{"$f":"IFERROR('Data Input - BAU'!CW87*INDEX('Energy Prices'!$F$19:$CR$24,MATCH($B97,'Energy Prices'!$C$19:$C$24,0),MATCH(Calc_BAU!CS$6,'Energy Prices'!$F$11:$CR$11,0))/100000,\"\")","v":""},{"$f":"IFERROR('Data Input - BAU'!CX87*INDEX('Energy Prices'!$F$19:$CR$24,MATCH($B97,'Energy Prices'!$C$19:$C$24,0),MATCH(Calc_BAU!CT$6,'Energy Prices'!$F$11:$CR$11,0))/100000,\"\")","v":""},{"$f":"IFERROR('Data Input - BAU'!CY87*INDEX('Energy Prices'!$F$19:$CR$24,MATCH($B97,'Energy Prices'!$C$19:$C$24,0),MATCH(Calc_BAU!CU$6,'Energy Prices'!$F$11:$CR$11,0))/100000,\"\")","v":""},{"$f":"IFERROR('Data Input - BAU'!CZ87*INDEX('Energy Prices'!$F$19:$CR$24,MATCH($B97,'Energy Prices'!$C$19:$C$24,0),MATCH(Calc_BAU!CV$6,'Energy Prices'!$F$11:$CR$11,0))/100000,\"\")","v":""},{"$f":"IFERROR('Data Input - BAU'!DA87*INDEX('Energy Prices'!$F$19:$CR$24,MATCH($B97,'Energy Prices'!$C$19:$C$24,0),MATCH(Calc_BAU!CW$6,'Energy Prices'!$F$11:$CR$11,0))/100000,\"\")","v":""},{"$f":"IFERROR('Data Input - BAU'!DB87*INDEX('Energy Prices'!$F$19:$CR$24,MATCH($B97,'Energy Prices'!$C$19:$C$24,0),MATCH(Calc_BAU!CX$6,'Energy Prices'!$F$11:$CR$11,0))/100000,\"\")","v":""},{"$f":"IFERROR('Data Input - BAU'!DC87*INDEX('Energy Prices'!$F$19:$CR$24,MATCH($B97,'Energy Prices'!$C$19:$C$24,0),MATCH(Calc_BAU!CY$6,'Energy Prices'!$F$11:$CR$11,0))/100000,\"\")","v":""}]
[null,"Road - Petrol","£000's",{"$f":"IFERROR('Data Input - BAU'!H88*INDEX('Energy Prices'!$F$19:$CR$24,MATCH($B98,'Energy Prices'!$C$19:$C$24,0),MATCH(Calc_BAU!D$6,'Energy Prices'!$F$11:$CR$11,0))/100000,\"\")","v":0},{"$f":"IFERROR('Data Input - BAU'!I88*INDEX('Energy Prices'!$F$19:$CR$24,MATCH($B98,'Energy Prices'!$C$19:$C$24,0),MATCH(Calc_BAU!E$6,'Energy Prices'!$F$11:$CR$11,0))/100000,\"\")","v":0},{"$f":"IFERROR('Data Input - BAU'!J88*INDEX('Energy Prices'!$F$19:$CR$24,MATCH($B98,'Energy Prices'!$C$19:$C$24,0),MATCH(Calc_BAU!F$6,'Energy Prices'!$F$11:$CR$11,0))/100000,\"\")","v":0},{"$f":"IFERROR('Data Input - BAU'!K88*INDEX('Energy Prices'!$F$19:$CR$24,MATCH($B98,'Energy Prices'!$C$19:$C$24,0),MATCH(Calc_BAU!G$6,'Energy Prices'!$F$11:$CR$11,0))/100000,\"\")","v":0},{"$f":"IFERROR('Data Input - BAU'!L88*INDEX('Energy Prices'!$F$19:$CR$24,MATCH($B98,'Energy Prices'!$C$19:$C$24,0),MATCH(Calc_BAU!H$6,'Energy Prices'!$F$11:$CR$11,0))/100000,\"\")","v":0},{"$f":"IFERROR('Data Input - BAU'!M88*INDEX('Energy Prices'!$F$19:$CR$24,MATCH($B98,'Energy Prices'!$C$19:$C$24,0),MATCH(Calc_BAU!I$6,'Energy Prices'!$F$11:$CR$11,0))/100000,\"\")","v":0},{"$f":"IFERROR('Data Input - BAU'!N88*INDEX('Energy Prices'!$F$19:$CR$24,MATCH($B98,'Energy Prices'!$C$19:$C$24,0),MATCH(Calc_BAU!J$6,'Energy Prices'!$F$11:$CR$11,0))/100000,\"\")","v":0},{"$f":"IFERROR('Data Input - BAU'!O88*INDEX('Energy Prices'!$F$19:$CR$24,MATCH($B98,'Energy Prices'!$C$19:$C$24,0),MATCH(Calc_BAU!K$6,'Energy Prices'!$F$11:$CR$11,0))/100000,\"\")","v":0},{"$f":"IFERROR('Data Input - BAU'!P88*INDEX('Energy Prices'!$F$19:$CR$24,MATCH($B98,'Energy Prices'!$C$19:$C$24,0),MATCH(Calc_BAU!L$6,'Energy Prices'!$F$11:$CR$11,0))/100000,\"\")","v":0},{"$f":"IFERROR('Data Input - BAU'!Q88*INDEX('Energy Prices'!$F$19:$CR$24,MATCH($B98,'Energy Prices'!$C$19:$C$24,0),MATCH(Calc_BAU!M$6,'Energy Prices'!$F$11:$CR$11,0))/100000,\"\")","v":0},{"$f":"IFERROR('Data Input - BAU'!R88*INDEX('Energy Prices'!$F$19:$CR$24,MATCH($B98,'Energy Prices'!$C$19:$C$24,0),MATCH(Calc_BAU!N$6,'Energy Prices'!$F$11:$CR$11,0))/100000,\"\")","v":0},{"$f":"IFERROR('Data Input - BAU'!S88*INDEX('Energy Prices'!$F$19:$CR$24,MATCH($B98,'Energy Prices'!$C$19:$C$24,0),MATCH(Calc_BAU!O$6,'Energy Prices'!$F$11:$CR$11,0))/100000,\"\")","v":0},{"$f":"IFERROR('Data Input - BAU'!T88*INDEX('Energy Prices'!$F$19:$CR$24,MATCH($B98,'Energy Prices'!$C$19:$C$24,0),MATCH(Calc_BAU!P$6,'Energy Prices'!$F$11:$CR$11,0))/100000,\"\")","v":0},{"$f":"IFERROR('Data Input - BAU'!U88*INDEX('Energy Prices'!$F$19:$CR$24,MATCH($B98,'Energy Prices'!$C$19:$C$24,0),MATCH(Calc_BAU!Q$6,'Energy Prices'!$F$11:$CR$11,0))/100000,\"\")","v":0},{"$f":"IFERROR('Data Input - BAU'!V88*INDEX('Energy Prices'!$F$19:$CR$24,MATCH($B98,'Energy Prices'!$C$19:$C$24,0),MATCH(Calc_BAU!R$6,'Energy Prices'!$F$11:$CR$11,0))/100000,\"\")","v":0},{"$f":"IFERROR('Data Input - BAU'!W88*INDEX('Energy Prices'!$F$19:$CR$24,MATCH($B98,'Energy Prices'!$C$19:$C$24,0),MATCH(Calc_BAU!S$6,'Energy Prices'!$F$11:$CR$11,0))/100000,\"\")","v":0},{"$f":"IFERROR('Data Input - BAU'!X88*INDEX('Energy Prices'!$F$19:$CR$24,MATCH($B98,'Energy Prices'!$C$19:$C$24,0),MATCH(Calc_BAU!T$6,'Energy Prices'!$F$11:$CR$11,0))/100000,\"\")","v":0},{"$f":"IFERROR('Data Input - BAU'!Y88*INDEX('Energy Prices'!$F$19:$CR$24,MATCH($B98,'Energy Prices'!$C$19:$C$24,0),MATCH(Calc_BAU!U$6,'Energy Prices'!$F$11:$CR$11,0))/100000,\"\")","v":0},{"$f":"IFERROR('Data Input - BAU'!Z88*INDEX('Energy Prices'!$F$19:$CR$24,MATCH($B98,'Energy Prices'!$C$19:$C$24,0),MATCH(Calc_BAU!V$6,'Energy Prices'!$F$11:$CR$11,0))/100000,\"\")","v":0},{"$f":"IFERROR('Data Input - BAU'!AA88*INDEX('Energy Prices'!$F$19:$CR$24,MATCH($B98,'Energy Prices'!$C$19:$C$24,0),MATCH(Calc_BAU!W$6,'Energy Prices'!$F$11:$CR$11,0))/100000,\"\")","v":0},{"$f":"IFERROR('Data Input - BAU'!AB88*INDEX('Energy Prices'!$F$19:$CR$24,MATCH($B98,'Energy Prices'!$C$19:$C$24,0),MATCH(Calc_BAU!X$6,'Energy Prices'!$F$11:$CR$11,0))/100000,\"\")","v":0},{"$f":"IFERROR('Data Input - BAU'!AC88*INDEX('Energy Prices'!$F$19:$CR$24,MATCH($B98,'Energy Prices'!$C$19:$C$24,0),MATCH(Calc_BAU!Y$6,'Energy Prices'!$F$11:$CR$11,0))/100000,\"\")","v":0},{"$f":"IFERROR('Data Input - BAU'!AD88*INDEX('Energy Prices'!$F$19:$CR$24,MATCH($B98,'Energy Prices'!$C$19:$C$24,0),MATCH(Calc_BAU!Z$6,'Energy Prices'!$F$11:$CR$11,0))/100000,\"\")","v":0},{"$f":"IFERROR('Data Input - BAU'!AE88*INDEX('Energy Prices'!$F$19:$CR$24,MATCH($B98,'Energy Prices'!$C$19:$C$24,0),MATCH(Calc_BAU!AA$6,'Energy Prices'!$F$11:$CR$11,0))/100000,\"\")","v":0},{"$f":"IFERROR('Data Input - BAU'!AF88*INDEX('Energy Prices'!$F$19:$CR$24,MATCH($B98,'Energy Prices'!$C$19:$C$24,0),MATCH(Calc_BAU!AB$6,'Energy Prices'!$F$11:$CR$11,0))/100000,\"\")","v":0},{"$f":"IFERROR('Data Input - BAU'!AG88*INDEX('Energy Prices'!$F$19:$CR$24,MATCH($B98,'Energy Prices'!$C$19:$C$24,0),MATCH(Calc_BAU!AC$6,'Energy Prices'!$F$11:$CR$11,0))/100000,\"\")","v":0},{"$f":"IFERROR('Data Input - BAU'!AH88*INDEX('Energy Prices'!$F$19:$CR$24,MATCH($B98,'Energy Prices'!$C$19:$C$24,0),MATCH(Calc_BAU!AD$6,'Energy Prices'!$F$11:$CR$11,0))/100000,\"\")","v":0},{"$f":"IFERROR('Data Input - BAU'!AI88*INDEX('Energy Prices'!$F$19:$CR$24,MATCH($B98,'Energy Prices'!$C$19:$C$24,0),MATCH(Calc_BAU!AE$6,'Energy Prices'!$F$11:$CR$11,0))/100000,\"\")","v":0},{"$f":"IFERROR('Data Input - BAU'!AJ88*INDEX('Energy Prices'!$F$19:$CR$24,MATCH($B98,'Energy Prices'!$C$19:$C$24,0),MATCH(Calc_BAU!AF$6,'Energy Prices'!$F$11:$CR$11,0))/100000,\"\")","v":0},{"$f":"IFERROR('Data Input - BAU'!AK88*INDEX('Energy Prices'!$F$19:$CR$24,MATCH($B98,'Energy Prices'!$C$19:$C$24,0),MATCH(Calc_BAU!AG$6,'Energy Prices'!$F$11:$CR$11,0))/100000,\"\")","v":0},{"$f":"IFERROR('Data Input - BAU'!AL88*INDEX('Energy Prices'!$F$19:$CR$24,MATCH($B98,'Energy Prices'!$C$19:$C$24,0),MATCH(Calc_BAU!AH$6,'Energy Prices'!$F$11:$CR$11,0))/100000,\"\")","v":0},{"$f":"IFERROR('Data Input - BAU'!AM88*INDEX('Energy Prices'!$F$19:$CR$24,MATCH($B98,'Energy Prices'!$C$19:$C$24,0),MATCH(Calc_BAU!AI$6,'Energy Prices'!$F$11:$CR$11,0))/100000,\"\")","v":""},{"$f":"IFERROR('Data Input - BAU'!AN88*INDEX('Energy Prices'!$F$19:$CR$24,MATCH($B98,'Energy Prices'!$C$19:$C$24,0),MATCH(Calc_BAU!AJ$6,'Energy Prices'!$F$11:$CR$11,0))/100000,\"\")","v":""},{"$f":"IFERROR('Data Input - BAU'!AO88*INDEX('Energy Prices'!$F$19:$CR$24,MATCH($B98,'Energy Prices'!$C$19:$C$24,0),MATCH(Calc_BAU!AK$6,'Energy Prices'!$F$11:$CR$11,0))/100000,\"\")","v":""},{"$f":"IFERROR('Data Input - BAU'!AP88*INDEX('Energy Prices'!$F$19:$CR$24,MATCH($B98,'Energy Prices'!$C$19:$C$24,0),MATCH(Calc_BAU!AL$6,'Energy Prices'!$F$11:$CR$11,0))/100000,\"\")","v":""},{"$f":"IFERROR('Data Input - BAU'!AQ88*INDEX('Energy Prices'!$F$19:$CR$24,MATCH($B98,'Energy Prices'!$C$19:$C$24,0),MATCH(Calc_BAU!AM$6,'Energy Prices'!$F$11:$CR$11,0))/100000,\"\")","v":""},{"$f":"IFERROR('Data Input - BAU'!AR88*INDEX('Energy Prices'!$F$19:$CR$24,MATCH($B98,'Energy Prices'!$C$19:$C$24,0),MATCH(Calc_BAU!AN$6,'Energy Prices'!$F$11:$CR$11,0))/100000,\"\")","v":""},{"$f":"IFERROR('Data Input - BAU'!AS88*INDEX('Energy Prices'!$F$19:$CR$24,MATCH($B98,'Energy Prices'!$C$19:$C$24,0),MATCH(Calc_BAU!AO$6,'Energy Prices'!$F$11:$CR$11,0))/100000,\"\")","v":""},{"$f":"IFERROR('Data Input - BAU'!AT88*INDEX('Energy Prices'!$F$19:$CR$24,MATCH($B98,'Energy Prices'!$C$19:$C$24,0),MATCH(Calc_BAU!AP$6,'Energy Prices'!$F$11:$CR$11,0))/100000,\"\")","v":""},{"$f":"IFERROR('Data Input - BAU'!AU88*INDEX('Energy Prices'!$F$19:$CR$24,MATCH($B98,'Energy Prices'!$C$19:$C$24,0),MATCH(Calc_BAU!AQ$6,'Energy Prices'!$F$11:$CR$11,0))/100000,\"\")","v":""},{"$f":"IFERROR('Data Input - BAU'!AV88*INDEX('Energy Prices'!$F$19:$CR$24,MATCH($B98,'Energy Prices'!$C$19:$C$24,0),MATCH(Calc_BAU!AR$6,'Energy Prices'!$F$11:$CR$11,0))/100000,\"\")","v":""},{"$f":"IFERROR('Data Input - BAU'!AW88*INDEX('Energy Prices'!$F$19:$CR$24,MATCH($B98,'Energy Prices'!$C$19:$C$24,0),MATCH(Calc_BAU!AS$6,'Energy Prices'!$F$11:$CR$11,0))/100000,\"\")","v":""},{"$f":"IFERROR('Data Input - BAU'!AX88*INDEX('Energy Prices'!$F$19:$CR$24,MATCH($B98,'Energy Prices'!$C$19:$C$24,0),MATCH(Calc_BAU!AT$6,'Energy Prices'!$F$11:$CR$11,0))/100000,\"\")","v":""},{"$f":"IFERROR('Data Input - BAU'!AY88*INDEX('Energy Prices'!$F$19:$CR$24,MATCH($B98,'Energy Prices'!$C$19:$C$24,0),MATCH(Calc_BAU!AU$6,'Energy Prices'!$F$11:$CR$11,0))/100000,\"\")","v":""},{"$f":"IFERROR('Data Input - BAU'!AZ88*INDEX('Energy Prices'!$F$19:$CR$24,MATCH($B98,'Energy Prices'!$C$19:$C$24,0),MATCH(Calc_BAU!AV$6,'Energy Prices'!$F$11:$CR$11,0))/100000,\"\")","v":""},{"$f":"IFERROR('Data Input - BAU'!BA88*INDEX('Energy Prices'!$F$19:$CR$24,MATCH($B98,'Energy Prices'!$C$19:$C$24,0),MATCH(Calc_BAU!AW$6,'Energy Prices'!$F$11:$CR$11,0))/100000,\"\")","v":""},{"$f":"IFERROR('Data Input - BAU'!BB88*INDEX('Energy Prices'!$F$19:$CR$24,MATCH($B98,'Energy Prices'!$C$19:$C$24,0),MATCH(Calc_BAU!AX$6,'Energy Prices'!$F$11:$CR$11,0))/100000,\"\")","v":""},{"$f":"IFERROR('Data Input - BAU'!BC88*INDEX('Energy Prices'!$F$19:$CR$24,MATCH($B98,'Energy Prices'!$C$19:$C$24,0),MATCH(Calc_BAU!AY$6,'Energy Prices'!$F$11:$CR$11,0))/100000,\"\")","v":""},{"$f":"IFERROR('Data Input - BAU'!BD88*INDEX('Energy Prices'!$F$19:$CR$24,MATCH($B98,'Energy Prices'!$C$19:$C$24,0),MATCH(Calc_BAU!AZ$6,'Energy Prices'!$F$11:$CR$11,0))/100000,\"\")","v":""},{"$f":"IFERROR('Data Input - BAU'!BE88*INDEX('Energy Prices'!$F$19:$CR$24,MATCH($B98,'Energy Prices'!$C$19:$C$24,0),MATCH(Calc_BAU!BA$6,'Energy Prices'!$F$11:$CR$11,0))/100000,\"\")","v":""},{"$f":"IFERROR('Data Input - BAU'!BF88*INDEX('Energy Prices'!$F$19:$CR$24,MATCH($B98,'Energy Prices'!$C$19:$C$24,0),MATCH(Calc_BAU!BB$6,'Energy Prices'!$F$11:$CR$11,0))/100000,\"\")","v":""},{"$f":"IFERROR('Data Input - BAU'!BG88*INDEX('Energy Prices'!$F$19:$CR$24,MATCH($B98,'Energy Prices'!$C$19:$C$24,0),MATCH(Calc_BAU!BC$6,'Energy Prices'!$F$11:$CR$11,0))/100000,\"\")","v":""},{"$f":"IFERROR('Data Input - BAU'!BH88*INDEX('Energy Prices'!$F$19:$CR$24,MATCH($B98,'Energy Prices'!$C$19:$C$24,0),MATCH(Calc_BAU!BD$6,'Energy Prices'!$F$11:$CR$11,0))/100000,\"\")","v":""},{"$f":"IFERROR('Data Input - BAU'!BI88*INDEX('Energy Prices'!$F$19:$CR$24,MATCH($B98,'Energy Prices'!$C$19:$C$24,0),MATCH(Calc_BAU!BE$6,'Energy Prices'!$F$11:$CR$11,0))/100000,\"\")","v":""},{"$f":"IFERROR('Data Input - BAU'!BJ88*INDEX('Energy Prices'!$F$19:$CR$24,MATCH($B98,'Energy Prices'!$C$19:$C$24,0),MATCH(Calc_BAU!BF$6,'Energy Prices'!$F$11:$CR$11,0))/100000,\"\")","v":""},{"$f":"IFERROR('Data Input - BAU'!BK88*INDEX('Energy Prices'!$F$19:$CR$24,MATCH($B98,'Energy Prices'!$C$19:$C$24,0),MATCH(Calc_BAU!BG$6,'Energy Prices'!$F$11:$CR$11,0))/100000,\"\")","v":""},{"$f":"IFERROR('Data Input - BAU'!BL88*INDEX('Energy Prices'!$F$19:$CR$24,MATCH($B98,'Energy Prices'!$C$19:$C$24,0),MATCH(Calc_BAU!BH$6,'Energy Prices'!$F$11:$CR$11,0))/100000,\"\")","v":""},{"$f":"IFERROR('Data Input - BAU'!BM88*INDEX('Energy Prices'!$F$19:$CR$24,MATCH($B98,'Energy Prices'!$C$19:$C$24,0),MATCH(Calc_BAU!BI$6,'Energy Prices'!$F$11:$CR$11,0))/100000,\"\")","v":""},{"$f":"IFERROR('Data Input - BAU'!BN88*INDEX('Energy Prices'!$F$19:$CR$24,MATCH($B98,'Energy Prices'!$C$19:$C$24,0),MATCH(Calc_BAU!BJ$6,'Energy Prices'!$F$11:$CR$11,0))/100000,\"\")","v":""},{"$f":"IFERROR('Data Input - BAU'!BO88*INDEX('Energy Prices'!$F$19:$CR$24,MATCH($B98,'Energy Prices'!$C$19:$C$24,0),MATCH(Calc_BAU!BK$6,'Energy Prices'!$F$11:$CR$11,0))/100000,\"\")","v":""},{"$f":"IFERROR('Data Input - BAU'!BP88*INDEX('Energy Prices'!$F$19:$CR$24,MATCH($B98,'Energy Prices'!$C$19:$C$24,0),MATCH(Calc_BAU!BL$6,'Energy Prices'!$F$11:$CR$11,0))/100000,\"\")","v":""},{"$f":"IFERROR('Data Input - BAU'!BQ88*INDEX('Energy Prices'!$F$19:$CR$24,MATCH($B98,'Energy Prices'!$C$19:$C$24,0),MATCH(Calc_BAU!BM$6,'Energy Prices'!$F$11:$CR$11,0))/100000,\"\")","v":""},{"$f":"IFERROR('Data Input - BAU'!BR88*INDEX('Energy Prices'!$F$19:$CR$24,MATCH($B98,'Energy Prices'!$C$19:$C$24,0),MATCH(Calc_BAU!BN$6,'Energy Prices'!$F$11:$CR$11,0))/100000,\"\")","v":""},{"$f":"IFERROR('Data Input - BAU'!BS88*INDEX('Energy Prices'!$F$19:$CR$24,MATCH($B98,'Energy Prices'!$C$19:$C$24,0),MATCH(Calc_BAU!BO$6,'Energy Prices'!$F$11:$CR$11,0))/100000,\"\")","v":""},{"$f":"IFERROR('Data Input - BAU'!BT88*INDEX('Energy Prices'!$F$19:$CR$24,MATCH($B98,'Energy Prices'!$C$19:$C$24,0),MATCH(Calc_BAU!BP$6,'Energy Prices'!$F$11:$CR$11,0))/100000,\"\")","v":""},{"$f":"IFERROR('Data Input - BAU'!BU88*INDEX('Energy Prices'!$F$19:$CR$24,MATCH($B98,'Energy Prices'!$C$19:$C$24,0),MATCH(Calc_BAU!BQ$6,'Energy Prices'!$F$11:$CR$11,0))/100000,\"\")","v":""},{"$f":"IFERROR('Data Input - BAU'!BV88*INDEX('Energy Prices'!$F$19:$CR$24,MATCH($B98,'Energy Prices'!$C$19:$C$24,0),MATCH(Calc_BAU!BR$6,'Energy Prices'!$F$11:$CR$11,0))/100000,\"\")","v":""},{"$f":"IFERROR('Data Input - BAU'!BW88*INDEX('Energy Prices'!$F$19:$CR$24,MATCH($B98,'Energy Prices'!$C$19:$C$24,0),MATCH(Calc_BAU!BS$6,'Energy Prices'!$F$11:$CR$11,0))/100000,\"\")","v":""},{"$f":"IFERROR('Data Input - BAU'!BX88*INDEX('Energy Prices'!$F$19:$CR$24,MATCH($B98,'Energy Prices'!$C$19:$C$24,0),MATCH(Calc_BAU!BT$6,'Energy Prices'!$F$11:$CR$11,0))/100000,\"\")","v":""},{"$f":"IFERROR('Data Input - BAU'!BY88*INDEX('Energy Prices'!$F$19:$CR$24,MATCH($B98,'Energy Prices'!$C$19:$C$24,0),MATCH(Calc_BAU!BU$6,'Energy Prices'!$F$11:$CR$11,0))/100000,\"\")","v":""},{"$f":"IFERROR('Data Input - BAU'!BZ88*INDEX('Energy Prices'!$F$19:$CR$24,MATCH($B98,'Energy Prices'!$C$19:$C$24,0),MATCH(Calc_BAU!BV$6,'Energy Prices'!$F$11:$CR$11,0))/100000,\"\")","v":""},{"$f":"IFERROR('Data Input - BAU'!CA88*INDEX('Energy Prices'!$F$19:$CR$24,MATCH($B98,'Energy Prices'!$C$19:$C$24,0),MATCH(Calc_BAU!BW$6,'Energy Prices'!$F$11:$CR$11,0))/100000,\"\")","v":""},{"$f":"IFERROR('Data Input - BAU'!CB88*INDEX('Energy Prices'!$F$19:$CR$24,MATCH($B98,'Energy Prices'!$C$19:$C$24,0),MATCH(Calc_BAU!BX$6,'Energy Prices'!$F$11:$CR$11,0))/100000,\"\")","v":""},{"$f":"IFERROR('Data Input - BAU'!CC88*INDEX('Energy Prices'!$F$19:$CR$24,MATCH($B98,'Energy Prices'!$C$19:$C$24,0),MATCH(Calc_BAU!BY$6,'Energy Prices'!$F$11:$CR$11,0))/100000,\"\")","v":""},{"$f":"IFERROR('Data Input - BAU'!CD88*INDEX('Energy Prices'!$F$19:$CR$24,MATCH($B98,'Energy Prices'!$C$19:$C$24,0),MATCH(Calc_BAU!BZ$6,'Energy Prices'!$F$11:$CR$11,0))/100000,\"\")","v":""},{"$f":"IFERROR('Data Input - BAU'!CE88*INDEX('Energy Prices'!$F$19:$CR$24,MATCH($B98,'Energy Prices'!$C$19:$C$24,0),MATCH(Calc_BAU!CA$6,'Energy Prices'!$F$11:$CR$11,0))/100000,\"\")","v":""},{"$f":"IFERROR('Data Input - BAU'!CF88*INDEX('Energy Prices'!$F$19:$CR$24,MATCH($B98,'Energy Prices'!$C$19:$C$24,0),MATCH(Calc_BAU!CB$6,'Energy Prices'!$F$11:$CR$11,0))/100000,\"\")","v":""},{"$f":"IFERROR('Data Input - BAU'!CG88*INDEX('Energy Prices'!$F$19:$CR$24,MATCH($B98,'Energy Prices'!$C$19:$C$24,0),MATCH(Calc_BAU!CC$6,'Energy Prices'!$F$11:$CR$11,0))/100000,\"\")","v":""},{"$f":"IFERROR('Data Input - BAU'!CH88*INDEX('Energy Prices'!$F$19:$CR$24,MATCH($B98,'Energy Prices'!$C$19:$C$24,0),MATCH(Calc_BAU!CD$6,'Energy Prices'!$F$11:$CR$11,0))/100000,\"\")","v":""},{"$f":"IFERROR('Data Input - BAU'!CI88*INDEX('Energy Prices'!$F$19:$CR$24,MATCH($B98,'Energy Prices'!$C$19:$C$24,0),MATCH(Calc_BAU!CE$6,'Energy Prices'!$F$11:$CR$11,0))/100000,\"\")","v":""},{"$f":"IFERROR('Data Input - BAU'!CJ88*INDEX('Energy Prices'!$F$19:$CR$24,MATCH($B98,'Energy Prices'!$C$19:$C$24,0),MATCH(Calc_BAU!CF$6,'Energy Prices'!$F$11:$CR$11,0))/100000,\"\")","v":""},{"$f":"IFERROR('Data Input - BAU'!CK88*INDEX('Energy Prices'!$F$19:$CR$24,MATCH($B98,'Energy Prices'!$C$19:$C$24,0),MATCH(Calc_BAU!CG$6,'Energy Prices'!$F$11:$CR$11,0))/100000,\"\")","v":""},{"$f":"IFERROR('Data Input - BAU'!CL88*INDEX('Energy Prices'!$F$19:$CR$24,MATCH($B98,'Energy Prices'!$C$19:$C$24,0),MATCH(Calc_BAU!CH$6,'Energy Prices'!$F$11:$CR$11,0))/100000,\"\")","v":""},{"$f":"IFERROR('Data Input - BAU'!CM88*INDEX('Energy Prices'!$F$19:$CR$24,MATCH($B98,'Energy Prices'!$C$19:$C$24,0),MATCH(Calc_BAU!CI$6,'Energy Prices'!$F$11:$CR$11,0))/100000,\"\")","v":""},{"$f":"IFERROR('Data Input - BAU'!CN88*INDEX('Energy Prices'!$F$19:$CR$24,MATCH($B98,'Energy Prices'!$C$19:$C$24,0),MATCH(Calc_BAU!CJ$6,'Energy Prices'!$F$11:$CR$11,0))/100000,\"\")","v":""},{"$f":"IFERROR('Data Input - BAU'!CO88*INDEX('Energy Prices'!$F$19:$CR$24,MATCH($B98,'Energy Prices'!$C$19:$C$24,0),MATCH(Calc_BAU!CK$6,'Energy Prices'!$F$11:$CR$11,0))/100000,\"\")","v":""},{"$f":"IFERROR('Data Input - BAU'!CP88*INDEX('Energy Prices'!$F$19:$CR$24,MATCH($B98,'Energy Prices'!$C$19:$C$24,0),MATCH(Calc_BAU!CL$6,'Energy Prices'!$F$11:$CR$11,0))/100000,\"\")","v":""},{"$f":"IFERROR('Data Input - BAU'!CQ88*INDEX('Energy Prices'!$F$19:$CR$24,MATCH($B98,'Energy Prices'!$C$19:$C$24,0),MATCH(Calc_BAU!CM$6,'Energy Prices'!$F$11:$CR$11,0))/100000,\"\")","v":""},{"$f":"IFERROR('Data Input - BAU'!CR88*INDEX('Energy Prices'!$F$19:$CR$24,MATCH($B98,'Energy Prices'!$C$19:$C$24,0),MATCH(Calc_BAU!CN$6,'Energy Prices'!$F$11:$CR$11,0))/100000,\"\")","v":""},{"$f":"IFERROR('Data Input - BAU'!CS88*INDEX('Energy Prices'!$F$19:$CR$24,MATCH($B98,'Energy Prices'!$C$19:$C$24,0),MATCH(Calc_BAU!CO$6,'Energy Prices'!$F$11:$CR$11,0))/100000,\"\")","v":""},{"$f":"IFERROR('Data Input - BAU'!CT88*INDEX('Energy Prices'!$F$19:$CR$24,MATCH($B98,'Energy Prices'!$C$19:$C$24,0),MATCH(Calc_BAU!CP$6,'Energy Prices'!$F$11:$CR$11,0))/100000,\"\")","v":""},{"$f":"IFERROR('Data Input - BAU'!CU88*INDEX('Energy Prices'!$F$19:$CR$24,MATCH($B98,'Energy Prices'!$C$19:$C$24,0),MATCH(Calc_BAU!CQ$6,'Energy Prices'!$F$11:$CR$11,0))/100000,\"\")","v":""},{"$f":"IFERROR('Data Input - BAU'!CV88*INDEX('Energy Prices'!$F$19:$CR$24,MATCH($B98,'Energy Prices'!$C$19:$C$24,0),MATCH(Calc_BAU!CR$6,'Energy Prices'!$F$11:$CR$11,0))/100000,\"\")","v":""},{"$f":"IFERROR('Data Input - BAU'!CW88*INDEX('Energy Prices'!$F$19:$CR$24,MATCH($B98,'Energy Prices'!$C$19:$C$24,0),MATCH(Calc_BAU!CS$6,'Energy Prices'!$F$11:$CR$11,0))/100000,\"\")","v":""},{"$f":"IFERROR('Data Input - BAU'!CX88*INDEX('Energy Prices'!$F$19:$CR$24,MATCH($B98,'Energy Prices'!$C$19:$C$24,0),MATCH(Calc_BAU!CT$6,'Energy Prices'!$F$11:$CR$11,0))/100000,\"\")","v":""},{"$f":"IFERROR('Data Input - BAU'!CY88*INDEX('Energy Prices'!$F$19:$CR$24,MATCH($B98,'Energy Prices'!$C$19:$C$24,0),MATCH(Calc_BAU!CU$6,'Energy Prices'!$F$11:$CR$11,0))/100000,\"\")","v":""},{"$f":"IFERROR('Data Input - BAU'!CZ88*INDEX('Energy Prices'!$F$19:$CR$24,MATCH($B98,'Energy Prices'!$C$19:$C$24,0),MATCH(Calc_BAU!CV$6,'Energy Prices'!$F$11:$CR$11,0))/100000,\"\")","v":""},{"$f":"IFERROR('Data Input - BAU'!DA88*INDEX('Energy Prices'!$F$19:$CR$24,MATCH($B98,'Energy Prices'!$C$19:$C$24,0),MATCH(Calc_BAU!CW$6,'Energy Prices'!$F$11:$CR$11,0))/100000,\"\")","v":""},{"$f":"IFERROR('Data Input - BAU'!DB88*INDEX('Energy Prices'!$F$19:$CR$24,MATCH($B98,'Energy Prices'!$C$19:$C$24,0),MATCH(Calc_BAU!CX$6,'Energy Prices'!$F$11:$CR$11,0))/100000,\"\")","v":""},{"$f":"IFERROR('Data Input - BAU'!DC88*INDEX('Energy Prices'!$F$19:$CR$24,MATCH($B98,'Energy Prices'!$C$19:$C$24,0),MATCH(Calc_BAU!CY$6,'Energy Prices'!$F$11:$CR$11,0))/100000,\"\")","v":""}]
[null,"Road - Diesel","£000's",{"$f":"IFERROR('Data Input - BAU'!H89*INDEX('Energy Prices'!$F$19:$CR$24,MATCH($B99,'Energy Prices'!$C$19:$C$24,0),MATCH(Calc_BAU!D$6,'Energy Prices'!$F$11:$CR$11,0))/100000,\"\")","v":0},{"$f":"IFERROR('Data Input - BAU'!I89*INDEX('Energy Prices'!$F$19:$CR$24,MATCH($B99,'Energy Prices'!$C$19:$C$24,0),MATCH(Calc_BAU!E$6,'Energy Prices'!$F$11:$CR$11,0))/100000,\"\")","v":0},{"$f":"IFERROR('Data Input - BAU'!J89*INDEX('Energy Prices'!$F$19:$CR$24,MATCH($B99,'Energy Prices'!$C$19:$C$24,0),MATCH(Calc_BAU!F$6,'Energy Prices'!$F$11:$CR$11,0))/100000,\"\")","v":0},{"$f":"IFERROR('Data Input - BAU'!K89*INDEX('Energy Prices'!$F$19:$CR$24,MATCH($B99,'Energy Prices'!$C$19:$C$24,0),MATCH(Calc_BAU!G$6,'Energy Prices'!$F$11:$CR$11,0))/100000,\"\")","v":0},{"$f":"IFERROR('Data Input - BAU'!L89*INDEX('Energy Prices'!$F$19:$CR$24,MATCH($B99,'Energy Prices'!$C$19:$C$24,0),MATCH(Calc_BAU!H$6,'Energy Prices'!$F$11:$CR$11,0))/100000,\"\")","v":0},{"$f":"IFERROR('Data Input - BAU'!M89*INDEX('Energy Prices'!$F$19:$CR$24,MATCH($B99,'Energy Prices'!$C$19:$C$24,0),MATCH(Calc_BAU!I$6,'Energy Prices'!$F$11:$CR$11,0))/100000,\"\")","v":0},{"$f":"IFERROR('Data Input - BAU'!N89*INDEX('Energy Prices'!$F$19:$CR$24,MATCH($B99,'Energy Prices'!$C$19:$C$24,0),MATCH(Calc_BAU!J$6,'Energy Prices'!$F$11:$CR$11,0))/100000,\"\")","v":0},{"$f":"IFERROR('Data Input - BAU'!O89*INDEX('Energy Prices'!$F$19:$CR$24,MATCH($B99,'Energy Prices'!$C$19:$C$24,0),MATCH(Calc_BAU!K$6,'Energy Prices'!$F$11:$CR$11,0))/100000,\"\")","v":0},{"$f":"IFERROR('Data Input - BAU'!P89*INDEX('Energy Prices'!$F$19:$CR$24,MATCH($B99,'Energy Prices'!$C$19:$C$24,0),MATCH(Calc_BAU!L$6,'Energy Prices'!$F$11:$CR$11,0))/100000,\"\")","v":0},{"$f":"IFERROR('Data Input - BAU'!Q89*INDEX('Energy Prices'!$F$19:$CR$24,MATCH($B99,'Energy Prices'!$C$19:$C$24,0),MATCH(Calc_BAU!M$6,'Energy Prices'!$F$11:$CR$11,0))/100000,\"\")","v":0},{"$f":"IFERROR('Data Input - BAU'!R89*INDEX('Energy Prices'!$F$19:$CR$24,MATCH($B99,'Energy Prices'!$C$19:$C$24,0),MATCH(Calc_BAU!N$6,'Energy Prices'!$F$11:$CR$11,0))/100000,\"\")","v":0},{"$f":"IFERROR('Data Input - BAU'!S89*INDEX('Energy Prices'!$F$19:$CR$24,MATCH($B99,'Energy Prices'!$C$19:$C$24,0),MATCH(Calc_BAU!O$6,'Energy Prices'!$F$11:$CR$11,0))/100000,\"\")","v":0},{"$f":"IFERROR('Data Input - BAU'!T89*INDEX('Energy Prices'!$F$19:$CR$24,MATCH($B99,'Energy Prices'!$C$19:$C$24,0),MATCH(Calc_BAU!P$6,'Energy Prices'!$F$11:$CR$11,0))/100000,\"\")","v":0},{"$f":"IFERROR('Data Input - BAU'!U89*INDEX('Energy Prices'!$F$19:$CR$24,MATCH($B99,'Energy Prices'!$C$19:$C$24,0),MATCH(Calc_BAU!Q$6,'Energy Prices'!$F$11:$CR$11,0))/100000,\"\")","v":0},{"$f":"IFERROR('Data Input - BAU'!V89*INDEX('Energy Prices'!$F$19:$CR$24,MATCH($B99,'Energy Prices'!$C$19:$C$24,0),MATCH(Calc_BAU!R$6,'Energy Prices'!$F$11:$CR$11,0))/100000,\"\")","v":0},{"$f":"IFERROR('Data Input - BAU'!W89*INDEX('Energy Prices'!$F$19:$CR$24,MATCH($B99,'Energy Prices'!$C$19:$C$24,0),MATCH(Calc_BAU!S$6,'Energy Prices'!$F$11:$CR$11,0))/100000,\"\")","v":0},{"$f":"IFERROR('Data Input - BAU'!X89*INDEX('Energy Prices'!$F$19:$CR$24,MATCH($B99,'Energy Prices'!$C$19:$C$24,0),MATCH(Calc_BAU!T$6,'Energy Prices'!$F$11:$CR$11,0))/100000,\"\")","v":0},{"$f":"IFERROR('Data Input - BAU'!Y89*INDEX('Energy Prices'!$F$19:$CR$24,MATCH($B99,'Energy Prices'!$C$19:$C$24,0),MATCH(Calc_BAU!U$6,'Energy Prices'!$F$11:$CR$11,0))/100000,\"\")","v":0},{"$f":"IFERROR('Data Input - BAU'!Z89*INDEX('Energy Prices'!$F$19:$CR$24,MATCH($B99,'Energy Prices'!$C$19:$C$24,0),MATCH(Calc_BAU!V$6,'Energy Prices'!$F$11:$CR$11,0))/100000,\"\")","v":0},{"$f":"IFERROR('Data Input - BAU'!AA89*INDEX('Energy Prices'!$F$19:$CR$24,MATCH($B99,'Energy Prices'!$C$19:$C$24,0),MATCH(Calc_BAU!W$6,'Energy Prices'!$F$11:$CR$11,0))/100000,\"\")","v":0},{"$f":"IFERROR('Data Input - BAU'!AB89*INDEX('Energy Prices'!$F$19:$CR$24,MATCH($B99,'Energy Prices'!$C$19:$C$24,0),MATCH(Calc_BAU!X$6,'Energy Prices'!$F$11:$CR$11,0))/100000,\"\")","v":0},{"$f":"IFERROR('Data Input - BAU'!AC89*INDEX('Energy Prices'!$F$19:$CR$24,MATCH($B99,'Energy Prices'!$C$19:$C$24,0),MATCH(Calc_BAU!Y$6,'Energy Prices'!$F$11:$CR$11,0))/100000,\"\")","v":0},{"$f":"IFERROR('Data Input - BAU'!AD89*INDEX('Energy Prices'!$F$19:$CR$24,MATCH($B99,'Energy Prices'!$C$19:$C$24,0),MATCH(Calc_BAU!Z$6,'Energy Prices'!$F$11:$CR$11,0))/100000,\"\")","v":0},{"$f":"IFERROR('Data Input - BAU'!AE89*INDEX('Energy Prices'!$F$19:$CR$24,MATCH($B99,'Energy Prices'!$C$19:$C$24,0),MATCH(Calc_BAU!AA$6,'Energy Prices'!$F$11:$CR$11,0))/100000,\"\")","v":0},{"$f":"IFERROR('Data Input - BAU'!AF89*INDEX('Energy Prices'!$F$19:$CR$24,MATCH($B99,'Energy Prices'!$C$19:$C$24,0),MATCH(Calc_BAU!AB$6,'Energy Prices'!$F$11:$CR$11,0))/100000,\"\")","v":0},{"$f":"IFERROR('Data Input - BAU'!AG89*INDEX('Energy Prices'!$F$19:$CR$24,MATCH($B99,'Energy Prices'!$C$19:$C$24,0),MATCH(Calc_BAU!AC$6,'Energy Prices'!$F$11:$CR$11,0))/100000,\"\")","v":0},{"$f":"IFERROR('Data Input - BAU'!AH89*INDEX('Energy Prices'!$F$19:$CR$24,MATCH($B99,'Energy Prices'!$C$19:$C$24,0),MATCH(Calc_BAU!AD$6,'Energy Prices'!$F$11:$CR$11,0))/100000,\"\")","v":0},{"$f":"IFERROR('Data Input - BAU'!AI89*INDEX('Energy Prices'!$F$19:$CR$24,MATCH($B99,'Energy Prices'!$C$19:$C$24,0),MATCH(Calc_BAU!AE$6,'Energy Prices'!$F$11:$CR$11,0))/100000,\"\")","v":0},{"$f":"IFERROR('Data Input - BAU'!AJ89*INDEX('Energy Prices'!$F$19:$CR$24,MATCH($B99,'Energy Prices'!$C$19:$C$24,0),MATCH(Calc_BAU!AF$6,'Energy Prices'!$F$11:$CR$11,0))/100000,\"\")","v":0},{"$f":"IFERROR('Data Input - BAU'!AK89*INDEX('Energy Prices'!$F$19:$CR$24,MATCH($B99,'Energy Prices'!$C$19:$C$24,0),MATCH(Calc_BAU!AG$6,'Energy Prices'!$F$11:$CR$11,0))/100000,\"\")","v":0},{"$f":"IFERROR('Data Input - BAU'!AL89*INDEX('Energy Prices'!$F$19:$CR$24,MATCH($B99,'Energy Prices'!$C$19:$C$24,0),MATCH(Calc_BAU!AH$6,'Energy Prices'!$F$11:$CR$11,0))/100000,\"\")","v":0},{"$f":"IFERROR('Data Input - BAU'!AM89*INDEX('Energy Prices'!$F$19:$CR$24,MATCH($B99,'Energy Prices'!$C$19:$C$24,0),MATCH(Calc_BAU!AI$6,'Energy Prices'!$F$11:$CR$11,0))/100000,\"\")","v":""},{"$f":"IFERROR('Data Input - BAU'!AN89*INDEX('Energy Prices'!$F$19:$CR$24,MATCH($B99,'Energy Prices'!$C$19:$C$24,0),MATCH(Calc_BAU!AJ$6,'Energy Prices'!$F$11:$CR$11,0))/100000,\"\")","v":""},{"$f":"IFERROR('Data Input - BAU'!AO89*INDEX('Energy Prices'!$F$19:$CR$24,MATCH($B99,'Energy Prices'!$C$19:$C$24,0),MATCH(Calc_BAU!AK$6,'Energy Prices'!$F$11:$CR$11,0))/100000,\"\")","v":""},{"$f":"IFERROR('Data Input - BAU'!AP89*INDEX('Energy Prices'!$F$19:$CR$24,MATCH($B99,'Energy Prices'!$C$19:$C$24,0),MATCH(Calc_BAU!AL$6,'Energy Prices'!$F$11:$CR$11,0))/100000,\"\")","v":""},{"$f":"IFERROR('Data Input - BAU'!AQ89*INDEX('Energy Prices'!$F$19:$CR$24,MATCH($B99,'Energy Prices'!$C$19:$C$24,0),MATCH(Calc_BAU!AM$6,'Energy Prices'!$F$11:$CR$11,0))/100000,\"\")","v":""},{"$f":"IFERROR('Data Input - BAU'!AR89*INDEX('Energy Prices'!$F$19:$CR$24,MATCH($B99,'Energy Prices'!$C$19:$C$24,0),MATCH(Calc_BAU!AN$6,'Energy Prices'!$F$11:$CR$11,0))/100000,\"\")","v":""},{"$f":"IFERROR('Data Input - BAU'!AS89*INDEX('Energy Prices'!$F$19:$CR$24,MATCH($B99,'Energy Prices'!$C$19:$C$24,0),MATCH(Calc_BAU!AO$6,'Energy Prices'!$F$11:$CR$11,0))/100000,\"\")","v":""},{"$f":"IFERROR('Data Input - BAU'!AT89*INDEX('Energy Prices'!$F$19:$CR$24,MATCH($B99,'Energy Prices'!$C$19:$C$24,0),MATCH(Calc_BAU!AP$6,'Energy Prices'!$F$11:$CR$11,0))/100000,\"\")","v":""},{"$f":"IFERROR('Data Input - BAU'!AU89*INDEX('Energy Prices'!$F$19:$CR$24,MATCH($B99,'Energy Prices'!$C$19:$C$24,0),MATCH(Calc_BAU!AQ$6,'Energy Prices'!$F$11:$CR$11,0))/100000,\"\")","v":""},{"$f":"IFERROR('Data Input - BAU'!AV89*INDEX('Energy Prices'!$F$19:$CR$24,MATCH($B99,'Energy Prices'!$C$19:$C$24,0),MATCH(Calc_BAU!AR$6,'Energy Prices'!$F$11:$CR$11,0))/100000,\"\")","v":""},{"$f":"IFERROR('Data Input - BAU'!AW89*INDEX('Energy Prices'!$F$19:$CR$24,MATCH($B99,'Energy Prices'!$C$19:$C$24,0),MATCH(Calc_BAU!AS$6,'Energy Prices'!$F$11:$CR$11,0))/100000,\"\")","v":""},{"$f":"IFERROR('Data Input - BAU'!AX89*INDEX('Energy Prices'!$F$19:$CR$24,MATCH($B99,'Energy Prices'!$C$19:$C$24,0),MATCH(Calc_BAU!AT$6,'Energy Prices'!$F$11:$CR$11,0))/100000,\"\")","v":""},{"$f":"IFERROR('Data Input - BAU'!AY89*INDEX('Energy Prices'!$F$19:$CR$24,MATCH($B99,'Energy Prices'!$C$19:$C$24,0),MATCH(Calc_BAU!AU$6,'Energy Prices'!$F$11:$CR$11,0))/100000,\"\")","v":""},{"$f":"IFERROR('Data Input - BAU'!AZ89*INDEX('Energy Prices'!$F$19:$CR$24,MATCH($B99,'Energy Prices'!$C$19:$C$24,0),MATCH(Calc_BAU!AV$6,'Energy Prices'!$F$11:$CR$11,0))/100000,\"\")","v":""},{"$f":"IFERROR('Data Input - BAU'!BA89*INDEX('Energy Prices'!$F$19:$CR$24,MATCH($B99,'Energy Prices'!$C$19:$C$24,0),MATCH(Calc_BAU!AW$6,'Energy Prices'!$F$11:$CR$11,0))/100000,\"\")","v":""},{"$f":"IFERROR('Data Input - BAU'!BB89*INDEX('Energy Prices'!$F$19:$CR$24,MATCH($B99,'Energy Prices'!$C$19:$C$24,0),MATCH(Calc_BAU!AX$6,'Energy Prices'!$F$11:$CR$11,0))/100000,\"\")","v":""},{"$f":"IFERROR('Data Input - BAU'!BC89*INDEX('Energy Prices'!$F$19:$CR$24,MATCH($B99,'Energy Prices'!$C$19:$C$24,0),MATCH(Calc_BAU!AY$6,'Energy Prices'!$F$11:$CR$11,0))/100000,\"\")","v":""},{"$f":"IFERROR('Data Input - BAU'!BD89*INDEX('Energy Prices'!$F$19:$CR$24,MATCH($B99,'Energy Prices'!$C$19:$C$24,0),MATCH(Calc_BAU!AZ$6,'Energy Prices'!$F$11:$CR$11,0))/100000,\"\")","v":""},{"$f":"IFERROR('Data Input - BAU'!BE89*INDEX('Energy Prices'!$F$19:$CR$24,MATCH($B99,'Energy Prices'!$C$19:$C$24,0),MATCH(Calc_BAU!BA$6,'Energy Prices'!$F$11:$CR$11,0))/100000,\"\")","v":""},{"$f":"IFERROR('Data Input - BAU'!BF89*INDEX('Energy Prices'!$F$19:$CR$24,MATCH($B99,'Energy Prices'!$C$19:$C$24,0),MATCH(Calc_BAU!BB$6,'Energy Prices'!$F$11:$CR$11,0))/100000,\"\")","v":""},{"$f":"IFERROR('Data Input - BAU'!BG89*INDEX('Energy Prices'!$F$19:$CR$24,MATCH($B99,'Energy Prices'!$C$19:$C$24,0),MATCH(Calc_BAU!BC$6,'Energy Prices'!$F$11:$CR$11,0))/100000,\"\")","v":""},{"$f":"IFERROR('Data Input - BAU'!BH89*INDEX('Energy Prices'!$F$19:$CR$24,MATCH($B99,'Energy Prices'!$C$19:$C$24,0),MATCH(Calc_BAU!BD$6,'Energy Prices'!$F$11:$CR$11,0))/100000,\"\")","v":""},{"$f":"IFERROR('Data Input - BAU'!BI89*INDEX('Energy Prices'!$F$19:$CR$24,MATCH($B99,'Energy Prices'!$C$19:$C$24,0),MATCH(Calc_BAU!BE$6,'Energy Prices'!$F$11:$CR$11,0))/100000,\"\")","v":""},{"$f":"IFERROR('Data Input - BAU'!BJ89*INDEX('Energy Prices'!$F$19:$CR$24,MATCH($B99,'Energy Prices'!$C$19:$C$24,0),MATCH(Calc_BAU!BF$6,'Energy Prices'!$F$11:$CR$11,0))/100000,\"\")","v":""},{"$f":"IFERROR('Data Input - BAU'!BK89*INDEX('Energy Prices'!$F$19:$CR$24,MATCH($B99,'Energy Prices'!$C$19:$C$24,0),MATCH(Calc_BAU!BG$6,'Energy Prices'!$F$11:$CR$11,0))/100000,\"\")","v":""},{"$f":"IFERROR('Data Input - BAU'!BL89*INDEX('Energy Prices'!$F$19:$CR$24,MATCH($B99,'Energy Prices'!$C$19:$C$24,0),MATCH(Calc_BAU!BH$6,'Energy Prices'!$F$11:$CR$11,0))/100000,\"\")","v":""},{"$f":"IFERROR('Data Input - BAU'!BM89*INDEX('Energy Prices'!$F$19:$CR$24,MATCH($B99,'Energy Prices'!$C$19:$C$24,0),MATCH(Calc_BAU!BI$6,'Energy Prices'!$F$11:$CR$11,0))/100000,\"\")","v":""},{"$f":"IFERROR('Data Input - BAU'!BN89*INDEX('Energy Prices'!$F$19:$CR$24,MATCH($B99,'Energy Prices'!$C$19:$C$24,0),MATCH(Calc_BAU!BJ$6,'Energy Prices'!$F$11:$CR$11,0))/100000,\"\")","v":""},{"$f":"IFERROR('Data Input - BAU'!BO89*INDEX('Energy Prices'!$F$19:$CR$24,MATCH($B99,'Energy Prices'!$C$19:$C$24,0),MATCH(Calc_BAU!BK$6,'Energy Prices'!$F$11:$CR$11,0))/100000,\"\")","v":""},{"$f":"IFERROR('Data Input - BAU'!BP89*INDEX('Energy Prices'!$F$19:$CR$24,MATCH($B99,'Energy Prices'!$C$19:$C$24,0),MATCH(Calc_BAU!BL$6,'Energy Prices'!$F$11:$CR$11,0))/100000,\"\")","v":""},{"$f":"IFERROR('Data Input - BAU'!BQ89*INDEX('Energy Prices'!$F$19:$CR$24,MATCH($B99,'Energy Prices'!$C$19:$C$24,0),MATCH(Calc_BAU!BM$6,'Energy Prices'!$F$11:$CR$11,0))/100000,\"\")","v":""},{"$f":"IFERROR('Data Input - BAU'!BR89*INDEX('Energy Prices'!$F$19:$CR$24,MATCH($B99,'Energy Prices'!$C$19:$C$24,0),MATCH(Calc_BAU!BN$6,'Energy Prices'!$F$11:$CR$11,0))/100000,\"\")","v":""},{"$f":"IFERROR('Data Input - BAU'!BS89*INDEX('Energy Prices'!$F$19:$CR$24,MATCH($B99,'Energy Prices'!$C$19:$C$24,0),MATCH(Calc_BAU!BO$6,'Energy Prices'!$F$11:$CR$11,0))/100000,\"\")","v":""},{"$f":"IFERROR('Data Input - BAU'!BT89*INDEX('Energy Prices'!$F$19:$CR$24,MATCH($B99,'Energy Prices'!$C$19:$C$24,0),MATCH(Calc_BAU!BP$6,'Energy Prices'!$F$11:$CR$11,0))/100000,\"\")","v":""},{"$f":"IFERROR('Data Input - BAU'!BU89*INDEX('Energy Prices'!$F$19:$CR$24,MATCH($B99,'Energy Prices'!$C$19:$C$24,0),MATCH(Calc_BAU!BQ$6,'Energy Prices'!$F$11:$CR$11,0))/100000,\"\")","v":""},{"$f":"IFERROR('Data Input - BAU'!BV89*INDEX('Energy Prices'!$F$19:$CR$24,MATCH($B99,'Energy Prices'!$C$19:$C$24,0),MATCH(Calc_BAU!BR$6,'Energy Prices'!$F$11:$CR$11,0))/100000,\"\")","v":""},{"$f":"IFERROR('Data Input - BAU'!BW89*INDEX('Energy Prices'!$F$19:$CR$24,MATCH($B99,'Energy Prices'!$C$19:$C$24,0),MATCH(Calc_BAU!BS$6,'Energy Prices'!$F$11:$CR$11,0))/100000,\"\")","v":""},{"$f":"IFERROR('Data Input - BAU'!BX89*INDEX('Energy Prices'!$F$19:$CR$24,MATCH($B99,'Energy Prices'!$C$19:$C$24,0),MATCH(Calc_BAU!BT$6,'Energy Prices'!$F$11:$CR$11,0))/100000,\"\")","v":""},{"$f":"IFERROR('Data Input - BAU'!BY89*INDEX('Energy Prices'!$F$19:$CR$24,MATCH($B99,'Energy Prices'!$C$19:$C$24,0),MATCH(Calc_BAU!BU$6,'Energy Prices'!$F$11:$CR$11,0))/100000,\"\")","v":""},{"$f":"IFERROR('Data Input - BAU'!BZ89*INDEX('Energy Prices'!$F$19:$CR$24,MATCH($B99,'Energy Prices'!$C$19:$C$24,0),MATCH(Calc_BAU!BV$6,'Energy Prices'!$F$11:$CR$11,0))/100000,\"\")","v":""},{"$f":"IFERROR('Data Input - BAU'!CA89*INDEX('Energy Prices'!$F$19:$CR$24,MATCH($B99,'Energy Prices'!$C$19:$C$24,0),MATCH(Calc_BAU!BW$6,'Energy Prices'!$F$11:$CR$11,0))/100000,\"\")","v":""},{"$f":"IFERROR('Data Input - BAU'!CB89*INDEX('Energy Prices'!$F$19:$CR$24,MATCH($B99,'Energy Prices'!$C$19:$C$24,0),MATCH(Calc_BAU!BX$6,'Energy Prices'!$F$11:$CR$11,0))/100000,\"\")","v":""},{"$f":"IFERROR('Data Input - BAU'!CC89*INDEX('Energy Prices'!$F$19:$CR$24,MATCH($B99,'Energy Prices'!$C$19:$C$24,0),MATCH(Calc_BAU!BY$6,'Energy Prices'!$F$11:$CR$11,0))/100000,\"\")","v":""},{"$f":"IFERROR('Data Input - BAU'!CD89*INDEX('Energy Prices'!$F$19:$CR$24,MATCH($B99,'Energy Prices'!$C$19:$C$24,0),MATCH(Calc_BAU!BZ$6,'Energy Prices'!$F$11:$CR$11,0))/100000,\"\")","v":""},{"$f":"IFERROR('Data Input - BAU'!CE89*INDEX('Energy Prices'!$F$19:$CR$24,MATCH($B99,'Energy Prices'!$C$19:$C$24,0),MATCH(Calc_BAU!CA$6,'Energy Prices'!$F$11:$CR$11,0))/100000,\"\")","v":""},{"$f":"IFERROR('Data Input - BAU'!CF89*INDEX('Energy Prices'!$F$19:$CR$24,MATCH($B99,'Energy Prices'!$C$19:$C$24,0),MATCH(Calc_BAU!CB$6,'Energy Prices'!$F$11:$CR$11,0))/100000,\"\")","v":""},{"$f":"IFERROR('Data Input - BAU'!CG89*INDEX('Energy Prices'!$F$19:$CR$24,MATCH($B99,'Energy Prices'!$C$19:$C$24,0),MATCH(Calc_BAU!CC$6,'Energy Prices'!$F$11:$CR$11,0))/100000,\"\")","v":""},{"$f":"IFERROR('Data Input - BAU'!CH89*INDEX('Energy Prices'!$F$19:$CR$24,MATCH($B99,'Energy Prices'!$C$19:$C$24,0),MATCH(Calc_BAU!CD$6,'Energy Prices'!$F$11:$CR$11,0))/100000,\"\")","v":""},{"$f":"IFERROR('Data Input - BAU'!CI89*INDEX('Energy Prices'!$F$19:$CR$24,MATCH($B99,'Energy Prices'!$C$19:$C$24,0),MATCH(Calc_BAU!CE$6,'Energy Prices'!$F$11:$CR$11,0))/100000,\"\")","v":""},{"$f":"IFERROR('Data Input - BAU'!CJ89*INDEX('Energy Prices'!$F$19:$CR$24,MATCH($B99,'Energy Prices'!$C$19:$C$24,0),MATCH(Calc_BAU!CF$6,'Energy Prices'!$F$11:$CR$11,0))/100000,\"\")","v":""},{"$f":"IFERROR('Data Input - BAU'!CK89*INDEX('Energy Prices'!$F$19:$CR$24,MATCH($B99,'Energy Prices'!$C$19:$C$24,0),MATCH(Calc_BAU!CG$6,'Energy Prices'!$F$11:$CR$11,0))/100000,\"\")","v":""},{"$f":"IFERROR('Data Input - BAU'!CL89*INDEX('Energy Prices'!$F$19:$CR$24,MATCH($B99,'Energy Prices'!$C$19:$C$24,0),MATCH(Calc_BAU!CH$6,'Energy Prices'!$F$11:$CR$11,0))/100000,\"\")","v":""},{"$f":"IFERROR('Data Input - BAU'!CM89*INDEX('Energy Prices'!$F$19:$CR$24,MATCH($B99,'Energy Prices'!$C$19:$C$24,0),MATCH(Calc_BAU!CI$6,'Energy Prices'!$F$11:$CR$11,0))/100000,\"\")","v":""},{"$f":"IFERROR('Data Input - BAU'!CN89*INDEX('Energy Prices'!$F$19:$CR$24,MATCH($B99,'Energy Prices'!$C$19:$C$24,0),MATCH(Calc_BAU!CJ$6,'Energy Prices'!$F$11:$CR$11,0))/100000,\"\")","v":""},{"$f":"IFERROR('Data Input - BAU'!CO89*INDEX('Energy Prices'!$F$19:$CR$24,MATCH($B99,'Energy Prices'!$C$19:$C$24,0),MATCH(Calc_BAU!CK$6,'Energy Prices'!$F$11:$CR$11,0))/100000,\"\")","v":""},{"$f":"IFERROR('Data Input - BAU'!CP89*INDEX('Energy Prices'!$F$19:$CR$24,MATCH($B99,'Energy Prices'!$C$19:$C$24,0),MATCH(Calc_BAU!CL$6,'Energy Prices'!$F$11:$CR$11,0))/100000,\"\")","v":""},{"$f":"IFERROR('Data Input - BAU'!CQ89*INDEX('Energy Prices'!$F$19:$CR$24,MATCH($B99,'Energy Prices'!$C$19:$C$24,0),MATCH(Calc_BAU!CM$6,'Energy Prices'!$F$11:$CR$11,0))/100000,\"\")","v":""},{"$f":"IFERROR('Data Input - BAU'!CR89*INDEX('Energy Prices'!$F$19:$CR$24,MATCH($B99,'Energy Prices'!$C$19:$C$24,0),MATCH(Calc_BAU!CN$6,'Energy Prices'!$F$11:$CR$11,0))/100000,\"\")","v":""},{"$f":"IFERROR('Data Input - BAU'!CS89*INDEX('Energy Prices'!$F$19:$CR$24,MATCH($B99,'Energy Prices'!$C$19:$C$24,0),MATCH(Calc_BAU!CO$6,'Energy Prices'!$F$11:$CR$11,0))/100000,\"\")","v":""},{"$f":"IFERROR('Data Input - BAU'!CT89*INDEX('Energy Prices'!$F$19:$CR$24,MATCH($B99,'Energy Prices'!$C$19:$C$24,0),MATCH(Calc_BAU!CP$6,'Energy Prices'!$F$11:$CR$11,0))/100000,\"\")","v":""},{"$f":"IFERROR('Data Input - BAU'!CU89*INDEX('Energy Prices'!$F$19:$CR$24,MATCH($B99,'Energy Prices'!$C$19:$C$24,0),MATCH(Calc_BAU!CQ$6,'Energy Prices'!$F$11:$CR$11,0))/100000,\"\")","v":""},{"$f":"IFERROR('Data Input - BAU'!CV89*INDEX('Energy Prices'!$F$19:$CR$24,MATCH($B99,'Energy Prices'!$C$19:$C$24,0),MATCH(Calc_BAU!CR$6,'Energy Prices'!$F$11:$CR$11,0))/100000,\"\")","v":""},{"$f":"IFERROR('Data Input - BAU'!CW89*INDEX('Energy Prices'!$F$19:$CR$24,MATCH($B99,'Energy Prices'!$C$19:$C$24,0),MATCH(Calc_BAU!CS$6,'Energy Prices'!$F$11:$CR$11,0))/100000,\"\")","v":""},{"$f":"IFERROR('Data Input - BAU'!CX89*INDEX('Energy Prices'!$F$19:$CR$24,MATCH($B99,'Energy Prices'!$C$19:$C$24,0),MATCH(Calc_BAU!CT$6,'Energy Prices'!$F$11:$CR$11,0))/100000,\"\")","v":""},{"$f":"IFERROR('Data Input - BAU'!CY89*INDEX('Energy Prices'!$F$19:$CR$24,MATCH($B99,'Energy Prices'!$C$19:$C$24,0),MATCH(Calc_BAU!CU$6,'Energy Prices'!$F$11:$CR$11,0))/100000,\"\")","v":""},{"$f":"IFERROR('Data Input - BAU'!CZ89*INDEX('Energy Prices'!$F$19:$CR$24,MATCH($B99,'Energy Prices'!$C$19:$C$24,0),MATCH(Calc_BAU!CV$6,'Energy Prices'!$F$11:$CR$11,0))/100000,\"\")","v":""},{"$f":"IFERROR('Data Input - BAU'!DA89*INDEX('Energy Prices'!$F$19:$CR$24,MATCH($B99,'Energy Prices'!$C$19:$C$24,0),MATCH(Calc_BAU!CW$6,'Energy Prices'!$F$11:$CR$11,0))/100000,\"\")","v":""},{"$f":"IFERROR('Data Input - BAU'!DB89*INDEX('Energy Prices'!$F$19:$CR$24,MATCH($B99,'Energy Prices'!$C$19:$C$24,0),MATCH(Calc_BAU!CX$6,'Energy Prices'!$F$11:$CR$11,0))/100000,\"\")","v":""},{"$f":"IFERROR('Data Input - BAU'!DC89*INDEX('Energy Prices'!$F$19:$CR$24,MATCH($B99,'Energy Prices'!$C$19:$C$24,0),MATCH(Calc_BAU!CY$6,'Energy Prices'!$F$11:$CR$11,0))/100000,\"\")","v":""}]
[]
[null,"Discounted energy","£000's",{"$f":"SUM(D94:D99)*D$7","v":1196.4511056894355},{"$f":"SUM(E94:E99)*E$7","v":1235.2266830447447},1237.5317388910346,1263.2523227589265,1257.0448069224751,1280.8443650187978,1293.4378064394352,1273.2188464675962,0,0,0,0,0,0,0,0,0,0,0,0,0,0,0,0,0,0,0,0,0,0,0,0,0,0,0,0,0,0,0,0,0,0,0,0,0,0,0,0,0,0,0,0,0,0,0,0,0,0,0,0,{"$f":"SUM(BL94:BL99)*BL$7","v":0},0,0,0,0,0,0,0,0,0,0,0,0,0,0,0,0,0,0,0,0,0,0,0,0,0,0,0,0,0,0,0,0,0,0,0,0,0,0,0]
[]
[null,"Air pollutant emissions- value"]
[null,{"$f":"B61","v":"Sox 2019"},"£000's",{"$f":"IFERROR(IF(OR($C$110=FALSE,LEFT($B104,3)<>\"NOX\"),D53*INDEX('Damage costs'!$W$16:$W$43,MATCH($B104,'Damage costs'!$C$16:$C$43,0))/1000,D53*INDEX('Damage costs'!$AA$16:$AA$43,MATCH($B104,'Damage costs'!$C$16:$C$43,0))/1000),\"\")","v":1.6028522278070398},{"$f":"IFERROR(IF(OR($C$110=FALSE,LEFT($B104,3)<>\"NOX\"),E53*INDEX('Damage costs'!$W$16:$W$43,MATCH($B104,'Damage costs'!$C$16:$C$43,0))/1000,E53*INDEX('Damage costs'!$AA$16:$AA$43,MATCH($B104,'Damage costs'!$C$16:$C$43,0))/1000),\"\")","v":1.6028522278070398},{"$f":"IFERROR(IF(OR($C$110=FALSE,LEFT($B104,3)<>\"NOX\"),F53*INDEX('Damage costs'!$W$16:$W$43,MATCH($B104,'Damage costs'!$C$16:$C$43,0))/1000,F53*INDEX('Damage costs'!$AA$16:$AA$43,MATCH($B104,'Damage costs'!$C$16:$C$43,0))/1000),\"\")","v":1.6028522278070398},{"$f":"IFERROR(IF(OR($C$110=FALSE,LEFT($B104,3)<>\"NOX\"),G53*INDEX('Damage costs'!$W$16:$W$43,MATCH($B104,'Damage costs'!$C$16:$C$43,0))/1000,G53*INDEX('Damage costs'!$AA$16:$AA$43,MATCH($B104,'Damage costs'!$C$16:$C$43,0))/1000),\"\")","v":1.6028522278070398},{"$f":"IFERROR(IF(OR($C$110=FALSE,LEFT($B104,3)<>\"NOX\"),H53*INDEX('Damage costs'!$W$16:$W$43,MATCH($B104,'Damage costs'!$C$16:$C$43,0))/1000,H53*INDEX('Damage costs'!$AA$16:$AA$43,MATCH($B104,'Damage costs'!$C$16:$C$43,0))/1000),\"\")","v":1.6028522278070398},{"$f":"IFERROR(IF(OR($C$110=FALSE,LEFT($B104,3)<>\"NOX\"),I53*INDEX('Damage costs'!$W$16:$W$43,MATCH($B104,'Damage costs'!$C$16:$C$43,0))/1000,I53*INDEX('Damage costs'!$AA$16:$AA$43,MATCH($B104,'Damage costs'!$C$16:$C$43,0))/1000),\"\")","v":1.6028522278070398},{"$f":"IFERROR(IF(OR($C$110=FALSE,LEFT($B104,3)<>\"NOX\"),J53*INDEX('Damage costs'!$W$16:$W$43,MATCH($B104,'Damage costs'!$C$16:$C$43,0))/1000,J53*INDEX('Damage costs'!$AA$16:$AA$43,MATCH($B104,'Damage costs'!$C$16:$C$43,0))/1000),\"\")","v":1.6028522278070398},{"$f":"IFERROR(IF(OR($C$110=FALSE,LEFT($B104,3)<>\"NOX\"),K53*INDEX('Damage costs'!$W$16:$W$43,MATCH($B104,'Damage costs'!$C$16:$C$43,0))/1000,K53*INDEX('Damage costs'!$AA$16:$AA$43,MATCH($B104,'Damage costs'!$C$16:$C$43,0))/1000),\"\")","v":0},{"$f":"IFERROR(IF(OR($C$110=FALSE,LEFT($B104,3)<>\"NOX\"),L53*INDEX('Damage costs'!$W$16:$W$43,MATCH($B104,'Damage costs'!$C$16:$C$43,0))/1000,L53*INDEX('Damage costs'!$AA$16:$AA$43,MATCH($B104,'Damage costs'!$C$16:$C$43,0))/1000),\"\")","v":0},{"$f":"IFERROR(IF(OR($C$110=FALSE,LEFT($B104,3)<>\"NOX\"),M53*INDEX('Damage costs'!$W$16:$W$43,MATCH($B104,'Damage costs'!$C$16:$C$43,0))/1000,M53*INDEX('Damage costs'!$AA$16:$AA$43,MATCH($B104,'Damage costs'!$C$16:$C$43,0))/1000),\"\")","v":0},{"$f":"IFERROR(IF(OR($C$110=FALSE,LEFT($B104,3)<>\"NOX\"),N53*INDEX('Damage costs'!$W$16:$W$43,MATCH($B104,'Damage costs'!$C$16:$C$43,0))/1000,N53*INDEX('Damage costs'!$AA$16:$AA$43,MATCH($B104,'Damage costs'!$C$16:$C$43,0))/1000),\"\")","v":0},{"$f":"IFERROR(IF(OR($C$110=FALSE,LEFT($B104,3)<>\"NOX\"),O53*INDEX('Damage costs'!$W$16:$W$43,MATCH($B104,'Damage costs'!$C$16:$C$43,0))/1000,O53*INDEX('Damage costs'!$AA$16:$AA$43,MATCH($B104,'Damage costs'!$C$16:$C$43,0))/1000),\"\")","v":0},{"$f":"IFERROR(IF(OR($C$110=FALSE,LEFT($B104,3)<>\"NOX\"),P53*INDEX('Damage costs'!$W$16:$W$43,MATCH($B104,'Damage costs'!$C$16:$C$43,0))/1000,P53*INDEX('Damage costs'!$AA$16:$AA$43,MATCH($B104,'Damage costs'!$C$16:$C$43,0))/1000),\"\")","v":0},{"$f":"IFERROR(IF(OR($C$110=FALSE,LEFT($B104,3)<>\"NOX\"),Q53*INDEX('Damage costs'!$W$16:$W$43,MATCH($B104,'Damage costs'!$C$16:$C$43,0))/1000,Q53*INDEX('Damage costs'!$AA$16:$AA$43,MATCH($B104,'Damage costs'!$C$16:$C$43,0))/1000),\"\")","v":0},{"$f":"IFERROR(IF(OR($C$110=FALSE,LEFT($B104,3)<>\"NOX\"),R53*INDEX('Damage costs'!$W$16:$W$43,MATCH($B104,'Damage costs'!$C$16:$C$43,0))/1000,R53*INDEX('Damage costs'!$AA$16:$AA$43,MATCH($B104,'Damage costs'!$C$16:$C$43,0))/1000),\"\")","v":0},{"$f":"IFERROR(IF(OR($C$110=FALSE,LEFT($B104,3)<>\"NOX\"),S53*INDEX('Damage costs'!$W$16:$W$43,MATCH($B104,'Damage costs'!$C$16:$C$43,0))/1000,S53*INDEX('Damage costs'!$AA$16:$AA$43,MATCH($B104,'Damage costs'!$C$16:$C$43,0))/1000),\"\")","v":0},{"$f":"IFERROR(IF(OR($C$110=FALSE,LEFT($B104,3)<>\"NOX\"),T53*INDEX('Damage costs'!$W$16:$W$43,MATCH($B104,'Damage costs'!$C$16:$C$43,0))/1000,T53*INDEX('Damage costs'!$AA$16:$AA$43,MATCH($B104,'Damage costs'!$C$16:$C$43,0))/1000),\"\")","v":0},{"$f":"IFERROR(IF(OR($C$110=FALSE,LEFT($B104,3)<>\"NOX\"),U53*INDEX('Damage costs'!$W$16:$W$43,MATCH($B104,'Damage costs'!$C$16:$C$43,0))/1000,U53*INDEX('Damage costs'!$AA$16:$AA$43,MATCH($B104,'Damage costs'!$C$16:$C$43,0))/1000),\"\")","v":0},{"$f":"IFERROR(IF(OR($C$110=FALSE,LEFT($B104,3)<>\"NOX\"),V53*INDEX('Damage costs'!$W$16:$W$43,MATCH($B104,'Damage costs'!$C$16:$C$43,0))/1000,V53*INDEX('Damage costs'!$AA$16:$AA$43,MATCH($B104,'Damage costs'!$C$16:$C$43,0))/1000),\"\")","v":0},{"$f":"IFERROR(IF(OR($C$110=FALSE,LEFT($B104,3)<>\"NOX\"),W53*INDEX('Damage costs'!$W$16:$W$43,MATCH($B104,'Damage costs'!$C$16:$C$43,0))/1000,W53*INDEX('Damage costs'!$AA$16:$AA$43,MATCH($B104,'Damage costs'!$C$16:$C$43,0))/1000),\"\")","v":0},{"$f":"IFERROR(IF(OR($C$110=FALSE,LEFT($B104,3)<>\"NOX\"),X53*INDEX('Damage costs'!$W$16:$W$43,MATCH($B104,'Damage costs'!$C$16:$C$43,0))/1000,X53*INDEX('Damage costs'!$AA$16:$AA$43,MATCH($B104,'Damage costs'!$C$16:$C$43,0))/1000),\"\")","v":0},{"$f":"IFERROR(IF(OR($C$110=FALSE,LEFT($B104,3)<>\"NOX\"),Y53*INDEX('Damage costs'!$W$16:$W$43,MATCH($B104,'Damage costs'!$C$16:$C$43,0))/1000,Y53*INDEX('Damage costs'!$AA$16:$AA$43,MATCH($B104,'Damage costs'!$C$16:$C$43,0))/1000),\"\")","v":0},{"$f":"IFERROR(IF(OR($C$110=FALSE,LEFT($B104,3)<>\"NOX\"),Z53*INDEX('Damage costs'!$W$16:$W$43,MATCH($B104,'Damage costs'!$C$16:$C$43,0))/1000,Z53*INDEX('Damage costs'!$AA$16:$AA$43,MATCH($B104,'Damage costs'!$C$16:$C$43,0))/1000),\"\")","v":0},{"$f":"IFERROR(IF(OR($C$110=FALSE,LEFT($B104,3)<>\"NOX\"),AA53*INDEX('Damage costs'!$W$16:$W$43,MATCH($B104,'Damage costs'!$C$16:$C$43,0))/1000,AA53*INDEX('Damage costs'!$AA$16:$AA$43,MATCH($B104,'Damage costs'!$C$16:$C$43,0))/1000),\"\")","v":0},{"$f":"IFERROR(IF(OR($C$110=FALSE,LEFT($B104,3)<>\"NOX\"),AB53*INDEX('Damage costs'!$W$16:$W$43,MATCH($B104,'Damage costs'!$C$16:$C$43,0))/1000,AB53*INDEX('Damage costs'!$AA$16:$AA$43,MATCH($B104,'Damage costs'!$C$16:$C$43,0))/1000),\"\")","v":0},{"$f":"IFERROR(IF(OR($C$110=FALSE,LEFT($B104,3)<>\"NOX\"),AC53*INDEX('Damage costs'!$W$16:$W$43,MATCH($B104,'Damage costs'!$C$16:$C$43,0))/1000,AC53*INDEX('Damage costs'!$AA$16:$AA$43,MATCH($B104,'Damage costs'!$C$16:$C$43,0))/1000),\"\")","v":0},{"$f":"IFERROR(IF(OR($C$110=FALSE,LEFT($B104,3)<>\"NOX\"),AD53*INDEX('Damage costs'!$W$16:$W$43,MATCH($B104,'Damage costs'!$C$16:$C$43,0))/1000,AD53*INDEX('Damage costs'!$AA$16:$AA$43,MATCH($B104,'Damage costs'!$C$16:$C$43,0))/1000),\"\")","v":0},{"$f":"IFERROR(IF(OR($C$110=FALSE,LEFT($B104,3)<>\"NOX\"),AE53*INDEX('Damage costs'!$W$16:$W$43,MATCH($B104,'Damage costs'!$C$16:$C$43,0))/1000,AE53*INDEX('Damage costs'!$AA$16:$AA$43,MATCH($B104,'Damage costs'!$C$16:$C$43,0))/1000),\"\")","v":0},{"$f":"IFERROR(IF(OR($C$110=FALSE,LEFT($B104,3)<>\"NOX\"),AF53*INDEX('Damage costs'!$W$16:$W$43,MATCH($B104,'Damage costs'!$C$16:$C$43,0))/1000,AF53*INDEX('Damage costs'!$AA$16:$AA$43,MATCH($B104,'Damage costs'!$C$16:$C$43,0))/1000),\"\")","v":0},{"$f":"IFERROR(IF(OR($C$110=FALSE,LEFT($B104,3)<>\"NOX\"),AG53*INDEX('Damage costs'!$W$16:$W$43,MATCH($B104,'Damage costs'!$C$16:$C$43,0))/1000,AG53*INDEX('Damage costs'!$AA$16:$AA$43,MATCH($B104,'Damage costs'!$C$16:$C$43,0))/1000),\"\")","v":0},{"$f":"IFERROR(IF(OR($C$110=FALSE,LEFT($B104,3)<>\"NOX\"),AH53*INDEX('Damage costs'!$W$16:$W$43,MATCH($B104,'Damage costs'!$C$16:$C$43,0))/1000,AH53*INDEX('Damage costs'!$AA$16:$AA$43,MATCH($B104,'Damage costs'!$C$16:$C$43,0))/1000),\"\")","v":0},{"$f":"IFERROR(IF(OR($C$110=FALSE,LEFT($B104,3)<>\"NOX\"),AI53*INDEX('Damage costs'!$W$16:$W$43,MATCH($B104,'Damage costs'!$C$16:$C$43,0))/1000,AI53*INDEX('Damage costs'!$AA$16:$AA$43,MATCH($B104,'Damage costs'!$C$16:$C$43,0))/1000),\"\")","v":0},{"$f":"IFERROR(IF(OR($C$110=FALSE,LEFT($B104,3)<>\"NOX\"),AJ53*INDEX('Damage costs'!$W$16:$W$43,MATCH($B104,'Damage costs'!$C$16:$C$43,0))/1000,AJ53*INDEX('Damage costs'!$AA$16:$AA$43,MATCH($B104,'Damage costs'!$C$16:$C$43,0))/1000),\"\")","v":0},{"$f":"IFERROR(IF(OR($C$110=FALSE,LEFT($B104,3)<>\"NOX\"),AK53*INDEX('Damage costs'!$W$16:$W$43,MATCH($B104,'Damage costs'!$C$16:$C$43,0))/1000,AK53*INDEX('Damage costs'!$AA$16:$AA$43,MATCH($B104,'Damage costs'!$C$16:$C$43,0))/1000),\"\")","v":0},{"$f":"IFERROR(IF(OR($C$110=FALSE,LEFT($B104,3)<>\"NOX\"),AL53*INDEX('Damage costs'!$W$16:$W$43,MATCH($B104,'Damage costs'!$C$16:$C$43,0))/1000,AL53*INDEX('Damage costs'!$AA$16:$AA$43,MATCH($B104,'Damage costs'!$C$16:$C$43,0))/1000),\"\")","v":0},{"$f":"IFERROR(IF(OR($C$110=FALSE,LEFT($B104,3)<>\"NOX\"),AM53*INDEX('Damage costs'!$W$16:$W$43,MATCH($B104,'Damage costs'!$C$16:$C$43,0))/1000,AM53*INDEX('Damage costs'!$AA$16:$AA$43,MATCH($B104,'Damage costs'!$C$16:$C$43,0))/1000),\"\")","v":0},{"$f":"IFERROR(IF(OR($C$110=FALSE,LEFT($B104,3)<>\"NOX\"),AN53*INDEX('Damage costs'!$W$16:$W$43,MATCH($B104,'Damage costs'!$C$16:$C$43,0))/1000,AN53*INDEX('Damage costs'!$AA$16:$AA$43,MATCH($B104,'Damage costs'!$C$16:$C$43,0))/1000),\"\")","v":0},{"$f":"IFERROR(IF(OR($C$110=FALSE,LEFT($B104,3)<>\"NOX\"),AO53*INDEX('Damage costs'!$W$16:$W$43,MATCH($B104,'Damage costs'!$C$16:$C$43,0))/1000,AO53*INDEX('Damage costs'!$AA$16:$AA$43,MATCH($B104,'Damage costs'!$C$16:$C$43,0))/1000),\"\")","v":0},{"$f":"IFERROR(IF(OR($C$110=FALSE,LEFT($B104,3)<>\"NOX\"),AP53*INDEX('Damage costs'!$W$16:$W$43,MATCH($B104,'Damage costs'!$C$16:$C$43,0))/1000,AP53*INDEX('Damage costs'!$AA$16:$AA$43,MATCH($B104,'Damage costs'!$C$16:$C$43,0))/1000),\"\")","v":0},{"$f":"IFERROR(IF(OR($C$110=FALSE,LEFT($B104,3)<>\"NOX\"),AQ53*INDEX('Damage costs'!$W$16:$W$43,MATCH($B104,'Damage costs'!$C$16:$C$43,0))/1000,AQ53*INDEX('Damage costs'!$AA$16:$AA$43,MATCH($B104,'Damage costs'!$C$16:$C$43,0))/1000),\"\")","v":0},{"$f":"IFERROR(IF(OR($C$110=FALSE,LEFT($B104,3)<>\"NOX\"),AR53*INDEX('Damage costs'!$W$16:$W$43,MATCH($B104,'Damage costs'!$C$16:$C$43,0))/1000,AR53*INDEX('Damage costs'!$AA$16:$AA$43,MATCH($B104,'Damage costs'!$C$16:$C$43,0))/1000),\"\")","v":0},{"$f":"IFERROR(IF(OR($C$110=FALSE,LEFT($B104,3)<>\"NOX\"),AS53*INDEX('Damage costs'!$W$16:$W$43,MATCH($B104,'Damage costs'!$C$16:$C$43,0))/1000,AS53*INDEX('Damage costs'!$AA$16:$AA$43,MATCH($B104,'Damage costs'!$C$16:$C$43,0))/1000),\"\")","v":0},{"$f":"IFERROR(IF(OR($C$110=FALSE,LEFT($B104,3)<>\"NOX\"),AT53*INDEX('Damage costs'!$W$16:$W$43,MATCH($B104,'Damage costs'!$C$16:$C$43,0))/1000,AT53*INDEX('Damage costs'!$AA$16:$AA$43,MATCH($B104,'Damage costs'!$C$16:$C$43,0))/1000),\"\")","v":0},{"$f":"IFERROR(IF(OR($C$110=FALSE,LEFT($B104,3)<>\"NOX\"),AU53*INDEX('Damage costs'!$W$16:$W$43,MATCH($B104,'Damage costs'!$C$16:$C$43,0))/1000,AU53*INDEX('Damage costs'!$AA$16:$AA$43,MATCH($B104,'Damage costs'!$C$16:$C$43,0))/1000),\"\")","v":0},{"$f":"IFERROR(IF(OR($C$110=FALSE,LEFT($B104,3)<>\"NOX\"),AV53*INDEX('Damage costs'!$W$16:$W$43,MATCH($B104,'Damage costs'!$C$16:$C$43,0))/1000,AV53*INDEX('Damage costs'!$AA$16:$AA$43,MATCH($B104,'Damage costs'!$C$16:$C$43,0))/1000),\"\")","v":0},{"$f":"IFERROR(IF(OR($C$110=FALSE,LEFT($B104,3)<>\"NOX\"),AW53*INDEX('Damage costs'!$W$16:$W$43,MATCH($B104,'Damage costs'!$C$16:$C$43,0))/1000,AW53*INDEX('Damage costs'!$AA$16:$AA$43,MATCH($B104,'Damage costs'!$C$16:$C$43,0))/1000),\"\")","v":0},{"$f":"IFERROR(IF(OR($C$110=FALSE,LEFT($B104,3)<>\"NOX\"),AX53*INDEX('Damage costs'!$W$16:$W$43,MATCH($B104,'Damage costs'!$C$16:$C$43,0))/1000,AX53*INDEX('Damage costs'!$AA$16:$AA$43,MATCH($B104,'Damage costs'!$C$16:$C$43,0))/1000),\"\")","v":0},{"$f":"IFERROR(IF(OR($C$110=FALSE,LEFT($B104,3)<>\"NOX\"),AY53*INDEX('Damage costs'!$W$16:$W$43,MATCH($B104,'Damage costs'!$C$16:$C$43,0))/1000,AY53*INDEX('Damage costs'!$AA$16:$AA$43,MATCH($B104,'Damage costs'!$C$16:$C$43,0))/1000),\"\")","v":0},{"$f":"IFERROR(IF(OR($C$110=FALSE,LEFT($B104,3)<>\"NOX\"),AZ53*INDEX('Damage costs'!$W$16:$W$43,MATCH($B104,'Damage costs'!$C$16:$C$43,0))/1000,AZ53*INDEX('Damage costs'!$AA$16:$AA$43,MATCH($B104,'Damage costs'!$C$16:$C$43,0))/1000),\"\")","v":0},{"$f":"IFERROR(IF(OR($C$110=FALSE,LEFT($B104,3)<>\"NOX\"),BA53*INDEX('Damage costs'!$W$16:$W$43,MATCH($B104,'Damage costs'!$C$16:$C$43,0))/1000,BA53*INDEX('Damage costs'!$AA$16:$AA$43,MATCH($B104,'Damage costs'!$C$16:$C$43,0))/1000),\"\")","v":0},{"$f":"IFERROR(IF(OR($C$110=FALSE,LEFT($B104,3)<>\"NOX\"),BB53*INDEX('Damage costs'!$W$16:$W$43,MATCH($B104,'Damage costs'!$C$16:$C$43,0))/1000,BB53*INDEX('Damage costs'!$AA$16:$AA$43,MATCH($B104,'Damage costs'!$C$16:$C$43,0))/1000),\"\")","v":0},{"$f":"IFERROR(IF(OR($C$110=FALSE,LEFT($B104,3)<>\"NOX\"),BC53*INDEX('Damage costs'!$W$16:$W$43,MATCH($B104,'Damage costs'!$C$16:$C$43,0))/1000,BC53*INDEX('Damage costs'!$AA$16:$AA$43,MATCH($B104,'Damage costs'!$C$16:$C$43,0))/1000),\"\")","v":0},{"$f":"IFERROR(IF(OR($C$110=FALSE,LEFT($B104,3)<>\"NOX\"),BD53*INDEX('Damage costs'!$W$16:$W$43,MATCH($B104,'Damage costs'!$C$16:$C$43,0))/1000,BD53*INDEX('Damage costs'!$AA$16:$AA$43,MATCH($B104,'Damage costs'!$C$16:$C$43,0))/1000),\"\")","v":0},{"$f":"IFERROR(IF(OR($C$110=FALSE,LEFT($B104,3)<>\"NOX\"),BE53*INDEX('Damage costs'!$W$16:$W$43,MATCH($B104,'Damage costs'!$C$16:$C$43,0))/1000,BE53*INDEX('Damage costs'!$AA$16:$AA$43,MATCH($B104,'Damage costs'!$C$16:$C$43,0))/1000),\"\")","v":0},{"$f":"IFERROR(IF(OR($C$110=FALSE,LEFT($B104,3)<>\"NOX\"),BF53*INDEX('Damage costs'!$W$16:$W$43,MATCH($B104,'Damage costs'!$C$16:$C$43,0))/1000,BF53*INDEX('Damage costs'!$AA$16:$AA$43,MATCH($B104,'Damage costs'!$C$16:$C$43,0))/1000),\"\")","v":0},{"$f":"IFERROR(IF(OR($C$110=FALSE,LEFT($B104,3)<>\"NOX\"),BG53*INDEX('Damage costs'!$W$16:$W$43,MATCH($B104,'Damage costs'!$C$16:$C$43,0))/1000,BG53*INDEX('Damage costs'!$AA$16:$AA$43,MATCH($B104,'Damage costs'!$C$16:$C$43,0))/1000),\"\")","v":0},{"$f":"IFERROR(IF(OR($C$110=FALSE,LEFT($B104,3)<>\"NOX\"),BH53*INDEX('Damage costs'!$W$16:$W$43,MATCH($B104,'Damage costs'!$C$16:$C$43,0))/1000,BH53*INDEX('Damage costs'!$AA$16:$AA$43,MATCH($B104,'Damage costs'!$C$16:$C$43,0))/1000),\"\")","v":0},{"$f":"IFERROR(IF(OR($C$110=FALSE,LEFT($B104,3)<>\"NOX\"),BI53*INDEX('Damage costs'!$W$16:$W$43,MATCH($B104,'Damage costs'!$C$16:$C$43,0))/1000,BI53*INDEX('Damage costs'!$AA$16:$AA$43,MATCH($B104,'Damage costs'!$C$16:$C$43,0))/1000),\"\")","v":0},{"$f":"IFERROR(IF(OR($C$110=FALSE,LEFT($B104,3)<>\"NOX\"),BJ53*INDEX('Damage costs'!$W$16:$W$43,MATCH($B104,'Damage costs'!$C$16:$C$43,0))/1000,BJ53*INDEX('Damage costs'!$AA$16:$AA$43,MATCH($B104,'Damage costs'!$C$16:$C$43,0))/1000),\"\")","v":0},{"$f":"IFERROR(IF(OR($C$110=FALSE,LEFT($B104,3)<>\"NOX\"),BK53*INDEX('Damage costs'!$W$16:$W$43,MATCH($B104,'Damage costs'!$C$16:$C$43,0))/1000,BK53*INDEX('Damage costs'!$AA$16:$AA$43,MATCH($B104,'Damage costs'!$C$16:$C$43,0))/1000),\"\")","v":0},{"$f":"IFERROR(IF(OR($C$110=FALSE,LEFT($B104,3)<>\"NOX\"),BL53*INDEX('Damage costs'!$W$16:$W$43,MATCH($B104,'Damage costs'!$C$16:$C$43,0))/1000,BL53*INDEX('Damage costs'!$AA$16:$AA$43,MATCH($B104,'Damage costs'!$C$16:$C$43,0))/1000),\"\")","v":0},{"$f":"IFERROR(IF(OR($C$110=FALSE,LEFT($B104,3)<>\"NOX\"),BM53*INDEX('Damage costs'!$W$16:$W$43,MATCH($B104,'Damage costs'!$C$16:$C$43,0))/1000,BM53*INDEX('Damage costs'!$AA$16:$AA$43,MATCH($B104,'Damage costs'!$C$16:$C$43,0))/1000),\"\")","v":0},{"$f":"IFERROR(IF(OR($C$110=FALSE,LEFT($B104,3)<>\"NOX\"),BN53*INDEX('Damage costs'!$W$16:$W$43,MATCH($B104,'Damage costs'!$C$16:$C$43,0))/1000,BN53*INDEX('Damage costs'!$AA$16:$AA$43,MATCH($B104,'Damage costs'!$C$16:$C$43,0))/1000),\"\")","v":0},{"$f":"IFERROR(IF(OR($C$110=FALSE,LEFT($B104,3)<>\"NOX\"),BO53*INDEX('Damage costs'!$W$16:$W$43,MATCH($B104,'Damage costs'!$C$16:$C$43,0))/1000,BO53*INDEX('Damage costs'!$AA$16:$AA$43,MATCH($B104,'Damage costs'!$C$16:$C$43,0))/1000),\"\")","v":0},{"$f":"IFERROR(IF(OR($C$110=FALSE,LEFT($B104,3)<>\"NOX\"),BP53*INDEX('Damage costs'!$W$16:$W$43,MATCH($B104,'Damage costs'!$C$16:$C$43,0))/1000,BP53*INDEX('Damage costs'!$AA$16:$AA$43,MATCH($B104,'Damage costs'!$C$16:$C$43,0))/1000),\"\")","v":0},{"$f":"IFERROR(IF(OR($C$110=FALSE,LEFT($B104,3)<>\"NOX\"),BQ53*INDEX('Damage costs'!$W$16:$W$43,MATCH($B104,'Damage costs'!$C$16:$C$43,0))/1000,BQ53*INDEX('Damage costs'!$AA$16:$AA$43,MATCH($B104,'Damage costs'!$C$16:$C$43,0))/1000),\"\")","v":0},{"$f":"IFERROR(IF(OR($C$110=FALSE,LEFT($B104,3)<>\"NOX\"),BR53*INDEX('Damage costs'!$W$16:$W$43,MATCH($B104,'Damage costs'!$C$16:$C$43,0))/1000,BR53*INDEX('Damage costs'!$AA$16:$AA$43,MATCH($B104,'Damage costs'!$C$16:$C$43,0))/1000),\"\")","v":0},{"$f":"IFERROR(IF(OR($C$110=FALSE,LEFT($B104,3)<>\"NOX\"),BS53*INDEX('Damage costs'!$W$16:$W$43,MATCH($B104,'Damage costs'!$C$16:$C$43,0))/1000,BS53*INDEX('Damage costs'!$AA$16:$AA$43,MATCH($B104,'Damage costs'!$C$16:$C$43,0))/1000),\"\")","v":0},{"$f":"IFERROR(IF(OR($C$110=FALSE,LEFT($B104,3)<>\"NOX\"),BT53*INDEX('Damage costs'!$W$16:$W$43,MATCH($B104,'Damage costs'!$C$16:$C$43,0))/1000,BT53*INDEX('Damage costs'!$AA$16:$AA$43,MATCH($B104,'Damage costs'!$C$16:$C$43,0))/1000),\"\")","v":0},{"$f":"IFERROR(IF(OR($C$110=FALSE,LEFT($B104,3)<>\"NOX\"),BU53*INDEX('Damage costs'!$W$16:$W$43,MATCH($B104,'Damage costs'!$C$16:$C$43,0))/1000,BU53*INDEX('Damage costs'!$AA$16:$AA$43,MATCH($B104,'Damage costs'!$C$16:$C$43,0))/1000),\"\")","v":0},{"$f":"IFERROR(IF(OR($C$110=FALSE,LEFT($B104,3)<>\"NOX\"),BV53*INDEX('Damage costs'!$W$16:$W$43,MATCH($B104,'Damage costs'!$C$16:$C$43,0))/1000,BV53*INDEX('Damage costs'!$AA$16:$AA$43,MATCH($B104,'Damage costs'!$C$16:$C$43,0))/1000),\"\")","v":0},{"$f":"IFERROR(IF(OR($C$110=FALSE,LEFT($B104,3)<>\"NOX\"),BW53*INDEX('Damage costs'!$W$16:$W$43,MATCH($B104,'Damage costs'!$C$16:$C$43,0))/1000,BW53*INDEX('Damage costs'!$AA$16:$AA$43,MATCH($B104,'Damage costs'!$C$16:$C$43,0))/1000),\"\")","v":0},{"$f":"IFERROR(IF(OR($C$110=FALSE,LEFT($B104,3)<>\"NOX\"),BX53*INDEX('Damage costs'!$W$16:$W$43,MATCH($B104,'Damage costs'!$C$16:$C$43,0))/1000,BX53*INDEX('Damage costs'!$AA$16:$AA$43,MATCH($B104,'Damage costs'!$C$16:$C$43,0))/1000),\"\")","v":0},{"$f":"IFERROR(IF(OR($C$110=FALSE,LEFT($B104,3)<>\"NOX\"),BY53*INDEX('Damage costs'!$W$16:$W$43,MATCH($B104,'Damage costs'!$C$16:$C$43,0))/1000,BY53*INDEX('Damage costs'!$AA$16:$AA$43,MATCH($B104,'Damage costs'!$C$16:$C$43,0))/1000),\"\")","v":0},{"$f":"IFERROR(IF(OR($C$110=FALSE,LEFT($B104,3)<>\"NOX\"),BZ53*INDEX('Damage costs'!$W$16:$W$43,MATCH($B104,'Damage costs'!$C$16:$C$43,0))/1000,BZ53*INDEX('Damage costs'!$AA$16:$AA$43,MATCH($B104,'Damage costs'!$C$16:$C$43,0))/1000),\"\")","v":0},{"$f":"IFERROR(IF(OR($C$110=FALSE,LEFT($B104,3)<>\"NOX\"),CA53*INDEX('Damage costs'!$W$16:$W$43,MATCH($B104,'Damage costs'!$C$16:$C$43,0))/1000,CA53*INDEX('Damage costs'!$AA$16:$AA$43,MATCH($B104,'Damage costs'!$C$16:$C$43,0))/1000),\"\")","v":0},{"$f":"IFERROR(IF(OR($C$110=FALSE,LEFT($B104,3)<>\"NOX\"),CB53*INDEX('Damage costs'!$W$16:$W$43,MATCH($B104,'Damage costs'!$C$16:$C$43,0))/1000,CB53*INDEX('Damage costs'!$AA$16:$AA$43,MATCH($B104,'Damage costs'!$C$16:$C$43,0))/1000),\"\")","v":0},{"$f":"IFERROR(IF(OR($C$110=FALSE,LEFT($B104,3)<>\"NOX\"),CC53*INDEX('Damage costs'!$W$16:$W$43,MATCH($B104,'Damage costs'!$C$16:$C$43,0))/1000,CC53*INDEX('Damage costs'!$AA$16:$AA$43,MATCH($B104,'Damage costs'!$C$16:$C$43,0))/1000),\"\")","v":0},{"$f":"IFERROR(IF(OR($C$110=FALSE,LEFT($B104,3)<>\"NOX\"),CD53*INDEX('Damage costs'!$W$16:$W$43,MATCH($B104,'Damage costs'!$C$16:$C$43,0))/1000,CD53*INDEX('Damage costs'!$AA$16:$AA$43,MATCH($B104,'Damage costs'!$C$16:$C$43,0))/1000),\"\")","v":0},{"$f":"IFERROR(IF(OR($C$110=FALSE,LEFT($B104,3)<>\"NOX\"),CE53*INDEX('Damage costs'!$W$16:$W$43,MATCH($B104,'Damage costs'!$C$16:$C$43,0))/1000,CE53*INDEX('Damage costs'!$AA$16:$AA$43,MATCH($B104,'Damage costs'!$C$16:$C$43,0))/1000),\"\")","v":0},{"$f":"IFERROR(IF(OR($C$110=FALSE,LEFT($B104,3)<>\"NOX\"),CF53*INDEX('Damage costs'!$W$16:$W$43,MATCH($B104,'Damage costs'!$C$16:$C$43,0))/1000,CF53*INDEX('Damage costs'!$AA$16:$AA$43,MATCH($B104,'Damage costs'!$C$16:$C$43,0))/1000),\"\")","v":0},{"$f":"IFERROR(IF(OR($C$110=FALSE,LEFT($B104,3)<>\"NOX\"),CG53*INDEX('Damage costs'!$W$16:$W$43,MATCH($B104,'Damage costs'!$C$16:$C$43,0))/1000,CG53*INDEX('Damage costs'!$AA$16:$AA$43,MATCH($B104,'Damage costs'!$C$16:$C$43,0))/1000),\"\")","v":0},{"$f":"IFERROR(IF(OR($C$110=FALSE,LEFT($B104,3)<>\"NOX\"),CH53*INDEX('Damage costs'!$W$16:$W$43,MATCH($B104,'Damage costs'!$C$16:$C$43,0))/1000,CH53*INDEX('Damage costs'!$AA$16:$AA$43,MATCH($B104,'Damage costs'!$C$16:$C$43,0))/1000),\"\")","v":0},{"$f":"IFERROR(IF(OR($C$110=FALSE,LEFT($B104,3)<>\"NOX\"),CI53*INDEX('Damage costs'!$W$16:$W$43,MATCH($B104,'Damage costs'!$C$16:$C$43,0))/1000,CI53*INDEX('Damage costs'!$AA$16:$AA$43,MATCH($B104,'Damage costs'!$C$16:$C$43,0))/1000),\"\")","v":0},{"$f":"IFERROR(IF(OR($C$110=FALSE,LEFT($B104,3)<>\"NOX\"),CJ53*INDEX('Damage costs'!$W$16:$W$43,MATCH($B104,'Damage costs'!$C$16:$C$43,0))/1000,CJ53*INDEX('Damage costs'!$AA$16:$AA$43,MATCH($B104,'Damage costs'!$C$16:$C$43,0))/1000),\"\")","v":0},{"$f":"IFERROR(IF(OR($C$110=FALSE,LEFT($B104,3)<>\"NOX\"),CK53*INDEX('Damage costs'!$W$16:$W$43,MATCH($B104,'Damage costs'!$C$16:$C$43,0))/1000,CK53*INDEX('Damage costs'!$AA$16:$AA$43,MATCH($B104,'Damage costs'!$C$16:$C$43,0))/1000),\"\")","v":0},{"$f":"IFERROR(IF(OR($C$110=FALSE,LEFT($B104,3)<>\"NOX\"),CL53*INDEX('Damage costs'!$W$16:$W$43,MATCH($B104,'Damage costs'!$C$16:$C$43,0))/1000,CL53*INDEX('Damage costs'!$AA$16:$AA$43,MATCH($B104,'Damage costs'!$C$16:$C$43,0))/1000),\"\")","v":0},{"$f":"IFERROR(IF(OR($C$110=FALSE,LEFT($B104,3)<>\"NOX\"),CM53*INDEX('Damage costs'!$W$16:$W$43,MATCH($B104,'Damage costs'!$C$16:$C$43,0))/1000,CM53*INDEX('Damage costs'!$AA$16:$AA$43,MATCH($B104,'Damage costs'!$C$16:$C$43,0))/1000),\"\")","v":0},{"$f":"IFERROR(IF(OR($C$110=FALSE,LEFT($B104,3)<>\"NOX\"),CN53*INDEX('Damage costs'!$W$16:$W$43,MATCH($B104,'Damage costs'!$C$16:$C$43,0))/1000,CN53*INDEX('Damage costs'!$AA$16:$AA$43,MATCH($B104,'Damage costs'!$C$16:$C$43,0))/1000),\"\")","v":0},{"$f":"IFERROR(IF(OR($C$110=FALSE,LEFT($B104,3)<>\"NOX\"),CO53*INDEX('Damage costs'!$W$16:$W$43,MATCH($B104,'Damage costs'!$C$16:$C$43,0))/1000,CO53*INDEX('Damage costs'!$AA$16:$AA$43,MATCH($B104,'Damage costs'!$C$16:$C$43,0))/1000),\"\")","v":0},{"$f":"IFERROR(IF(OR($C$110=FALSE,LEFT($B104,3)<>\"NOX\"),CP53*INDEX('Damage costs'!$W$16:$W$43,MATCH($B104,'Damage costs'!$C$16:$C$43,0))/1000,CP53*INDEX('Damage costs'!$AA$16:$AA$43,MATCH($B104,'Damage costs'!$C$16:$C$43,0))/1000),\"\")","v":0},{"$f":"IFERROR(IF(OR($C$110=FALSE,LEFT($B104,3)<>\"NOX\"),CQ53*INDEX('Damage costs'!$W$16:$W$43,MATCH($B104,'Damage costs'!$C$16:$C$43,0))/1000,CQ53*INDEX('Damage costs'!$AA$16:$AA$43,MATCH($B104,'Damage costs'!$C$16:$C$43,0))/1000),\"\")","v":0},{"$f":"IFERROR(IF(OR($C$110=FALSE,LEFT($B104,3)<>\"NOX\"),CR53*INDEX('Damage costs'!$W$16:$W$43,MATCH($B104,'Damage costs'!$C$16:$C$43,0))/1000,CR53*INDEX('Damage costs'!$AA$16:$AA$43,MATCH($B104,'Damage costs'!$C$16:$C$43,0))/1000),\"\")","v":0},{"$f":"IFERROR(IF(OR($C$110=FALSE,LEFT($B104,3)<>\"NOX\"),CS53*INDEX('Damage costs'!$W$16:$W$43,MATCH($B104,'Damage costs'!$C$16:$C$43,0))/1000,CS53*INDEX('Damage costs'!$AA$16:$AA$43,MATCH($B104,'Damage costs'!$C$16:$C$43,0))/1000),\"\")","v":0},{"$f":"IFERROR(IF(OR($C$110=FALSE,LEFT($B104,3)<>\"NOX\"),CT53*INDEX('Damage costs'!$W$16:$W$43,MATCH($B104,'Damage costs'!$C$16:$C$43,0))/1000,CT53*INDEX('Damage costs'!$AA$16:$AA$43,MATCH($B104,'Damage costs'!$C$16:$C$43,0))/1000),\"\")","v":0},{"$f":"IFERROR(IF(OR($C$110=FALSE,LEFT($B104,3)<>\"NOX\"),CU53*INDEX('Damage costs'!$W$16:$W$43,MATCH($B104,'Damage costs'!$C$16:$C$43,0))/1000,CU53*INDEX('Damage costs'!$AA$16:$AA$43,MATCH($B104,'Damage costs'!$C$16:$C$43,0))/1000),\"\")","v":0},{"$f":"IFERROR(IF(OR($C$110=FALSE,LEFT($B104,3)<>\"NOX\"),CV53*INDEX('Damage costs'!$W$16:$W$43,MATCH($B104,'Damage costs'!$C$16:$C$43,0))/1000,CV53*INDEX('Damage costs'!$AA$16:$AA$43,MATCH($B104,'Damage costs'!$C$16:$C$43,0))/1000),\"\")","v":0},{"$f":"IFERROR(IF(OR($C$110=FALSE,LEFT($B104,3)<>\"NOX\"),CW53*INDEX('Damage costs'!$W$16:$W$43,MATCH($B104,'Damage costs'!$C$16:$C$43,0))/1000,CW53*INDEX('Damage costs'!$AA$16:$AA$43,MATCH($B104,'Damage costs'!$C$16:$C$43,0))/1000),\"\")","v":0},{"$f":"IFERROR(IF(OR($C$110=FALSE,LEFT($B104,3)<>\"NOX\"),CX53*INDEX('Damage costs'!$W$16:$W$43,MATCH($B104,'Damage costs'!$C$16:$C$43,0))/1000,CX53*INDEX('Damage costs'!$AA$16:$AA$43,MATCH($B104,'Damage costs'!$C$16:$C$43,0))/1000),\"\")","v":0},{"$f":"IFERROR(IF(OR($C$110=FALSE,LEFT($B104,3)<>\"NOX\"),CY53*INDEX('Damage costs'!$W$16:$W$43,MATCH($B104,'Damage costs'!$C$16:$C$43,0))/1000,CY53*INDEX('Damage costs'!$AA$16:$AA$43,MATCH($B104,'Damage costs'!$C$16:$C$43,0))/1000),\"\")","v":0}]
[null,0,"£000's",{"$f":"IFERROR(IF(OR($C$110=FALSE,LEFT($B105,3)<>\"NOX\"),D54*INDEX('Damage costs'!$W$16:$W$43,MATCH($B105,'Damage costs'!$C$16:$C$43,0))/1000,D54*INDEX('Damage costs'!$AA$16:$AA$43,MATCH($B105,'Damage costs'!$C$16:$C$43,0))/1000),\"\")","v":""},{"$f":"IFERROR(IF(OR($C$110=FALSE,LEFT($B105,3)<>\"NOX\"),E54*INDEX('Damage costs'!$W$16:$W$43,MATCH($B105,'Damage costs'!$C$16:$C$43,0))/1000,E54*INDEX('Damage costs'!$AA$16:$AA$43,MATCH($B105,'Damage costs'!$C$16:$C$43,0))/1000),\"\")","v":""},{"$f":"IFERROR(IF(OR($C$110=FALSE,LEFT($B105,3)<>\"NOX\"),F54*INDEX('Damage costs'!$W$16:$W$43,MATCH($B105,'Damage costs'!$C$16:$C$43,0))/1000,F54*INDEX('Damage costs'!$AA$16:$AA$43,MATCH($B105,'Damage costs'!$C$16:$C$43,0))/1000),\"\")","v":""},{"$f":"IFERROR(IF(OR($C$110=FALSE,LEFT($B105,3)<>\"NOX\"),G54*INDEX('Damage costs'!$W$16:$W$43,MATCH($B105,'Damage costs'!$C$16:$C$43,0))/1000,G54*INDEX('Damage costs'!$AA$16:$AA$43,MATCH($B105,'Damage costs'!$C$16:$C$43,0))/1000),\"\")","v":""},{"$f":"IFERROR(IF(OR($C$110=FALSE,LEFT($B105,3)<>\"NOX\"),H54*INDEX('Damage costs'!$W$16:$W$43,MATCH($B105,'Damage costs'!$C$16:$C$43,0))/1000,H54*INDEX('Damage costs'!$AA$16:$AA$43,MATCH($B105,'Damage costs'!$C$16:$C$43,0))/1000),\"\")","v":""},{"$f":"IFERROR(IF(OR($C$110=FALSE,LEFT($B105,3)<>\"NOX\"),I54*INDEX('Damage costs'!$W$16:$W$43,MATCH($B105,'Damage costs'!$C$16:$C$43,0))/1000,I54*INDEX('Damage costs'!$AA$16:$AA$43,MATCH($B105,'Damage costs'!$C$16:$C$43,0))/1000),\"\")","v":""},{"$f":"IFERROR(IF(OR($C$110=FALSE,LEFT($B105,3)<>\"NOX\"),J54*INDEX('Damage costs'!$W$16:$W$43,MATCH($B105,'Damage costs'!$C$16:$C$43,0))/1000,J54*INDEX('Damage costs'!$AA$16:$AA$43,MATCH($B105,'Damage costs'!$C$16:$C$43,0))/1000),\"\")","v":""},{"$f":"IFERROR(IF(OR($C$110=FALSE,LEFT($B105,3)<>\"NOX\"),K54*INDEX('Damage costs'!$W$16:$W$43,MATCH($B105,'Damage costs'!$C$16:$C$43,0))/1000,K54*INDEX('Damage costs'!$AA$16:$AA$43,MATCH($B105,'Damage costs'!$C$16:$C$43,0))/1000),\"\")","v":""},{"$f":"IFERROR(IF(OR($C$110=FALSE,LEFT($B105,3)<>\"NOX\"),L54*INDEX('Damage costs'!$W$16:$W$43,MATCH($B105,'Damage costs'!$C$16:$C$43,0))/1000,L54*INDEX('Damage costs'!$AA$16:$AA$43,MATCH($B105,'Damage costs'!$C$16:$C$43,0))/1000),\"\")","v":""},{"$f":"IFERROR(IF(OR($C$110=FALSE,LEFT($B105,3)<>\"NOX\"),M54*INDEX('Damage costs'!$W$16:$W$43,MATCH($B105,'Damage costs'!$C$16:$C$43,0))/1000,M54*INDEX('Damage costs'!$AA$16:$AA$43,MATCH($B105,'Damage costs'!$C$16:$C$43,0))/1000),\"\")","v":""},{"$f":"IFERROR(IF(OR($C$110=FALSE,LEFT($B105,3)<>\"NOX\"),N54*INDEX('Damage costs'!$W$16:$W$43,MATCH($B105,'Damage costs'!$C$16:$C$43,0))/1000,N54*INDEX('Damage costs'!$AA$16:$AA$43,MATCH($B105,'Damage costs'!$C$16:$C$43,0))/1000),\"\")","v":""},{"$f":"IFERROR(IF(OR($C$110=FALSE,LEFT($B105,3)<>\"NOX\"),O54*INDEX('Damage costs'!$W$16:$W$43,MATCH($B105,'Damage costs'!$C$16:$C$43,0))/1000,O54*INDEX('Damage costs'!$AA$16:$AA$43,MATCH($B105,'Damage costs'!$C$16:$C$43,0))/1000),\"\")","v":""},{"$f":"IFERROR(IF(OR($C$110=FALSE,LEFT($B105,3)<>\"NOX\"),P54*INDEX('Damage costs'!$W$16:$W$43,MATCH($B105,'Damage costs'!$C$16:$C$43,0))/1000,P54*INDEX('Damage costs'!$AA$16:$AA$43,MATCH($B105,'Damage costs'!$C$16:$C$43,0))/1000),\"\")","v":""},{"$f":"IFERROR(IF(OR($C$110=FALSE,LEFT($B105,3)<>\"NOX\"),Q54*INDEX('Damage costs'!$W$16:$W$43,MATCH($B105,'Damage costs'!$C$16:$C$43,0))/1000,Q54*INDEX('Damage costs'!$AA$16:$AA$43,MATCH($B105,'Damage costs'!$C$16:$C$43,0))/1000),\"\")","v":""},{"$f":"IFERROR(IF(OR($C$110=FALSE,LEFT($B105,3)<>\"NOX\"),R54*INDEX('Damage costs'!$W$16:$W$43,MATCH($B105,'Damage costs'!$C$16:$C$43,0))/1000,R54*INDEX('Damage costs'!$AA$16:$AA$43,MATCH($B105,'Damage costs'!$C$16:$C$43,0))/1000),\"\")","v":""},{"$f":"IFERROR(IF(OR($C$110=FALSE,LEFT($B105,3)<>\"NOX\"),S54*INDEX('Damage costs'!$W$16:$W$43,MATCH($B105,'Damage costs'!$C$16:$C$43,0))/1000,S54*INDEX('Damage costs'!$AA$16:$AA$43,MATCH($B105,'Damage costs'!$C$16:$C$43,0))/1000),\"\")","v":""},{"$f":"IFERROR(IF(OR($C$110=FALSE,LEFT($B105,3)<>\"NOX\"),T54*INDEX('Damage costs'!$W$16:$W$43,MATCH($B105,'Damage costs'!$C$16:$C$43,0))/1000,T54*INDEX('Damage costs'!$AA$16:$AA$43,MATCH($B105,'Damage costs'!$C$16:$C$43,0))/1000),\"\")","v":""},{"$f":"IFERROR(IF(OR($C$110=FALSE,LEFT($B105,3)<>\"NOX\"),U54*INDEX('Damage costs'!$W$16:$W$43,MATCH($B105,'Damage costs'!$C$16:$C$43,0))/1000,U54*INDEX('Damage costs'!$AA$16:$AA$43,MATCH($B105,'Damage costs'!$C$16:$C$43,0))/1000),\"\")","v":""},{"$f":"IFERROR(IF(OR($C$110=FALSE,LEFT($B105,3)<>\"NOX\"),V54*INDEX('Damage costs'!$W$16:$W$43,MATCH($B105,'Damage costs'!$C$16:$C$43,0))/1000,V54*INDEX('Damage costs'!$AA$16:$AA$43,MATCH($B105,'Damage costs'!$C$16:$C$43,0))/1000),\"\")","v":""},{"$f":"IFERROR(IF(OR($C$110=FALSE,LEFT($B105,3)<>\"NOX\"),W54*INDEX('Damage costs'!$W$16:$W$43,MATCH($B105,'Damage costs'!$C$16:$C$43,0))/1000,W54*INDEX('Damage costs'!$AA$16:$AA$43,MATCH($B105,'Damage costs'!$C$16:$C$43,0))/1000),\"\")","v":""},{"$f":"IFERROR(IF(OR($C$110=FALSE,LEFT($B105,3)<>\"NOX\"),X54*INDEX('Damage costs'!$W$16:$W$43,MATCH($B105,'Damage costs'!$C$16:$C$43,0))/1000,X54*INDEX('Damage costs'!$AA$16:$AA$43,MATCH($B105,'Damage costs'!$C$16:$C$43,0))/1000),\"\")","v":""},{"$f":"IFERROR(IF(OR($C$110=FALSE,LEFT($B105,3)<>\"NOX\"),Y54*INDEX('Damage costs'!$W$16:$W$43,MATCH($B105,'Damage costs'!$C$16:$C$43,0))/1000,Y54*INDEX('Damage costs'!$AA$16:$AA$43,MATCH($B105,'Damage costs'!$C$16:$C$43,0))/1000),\"\")","v":""},{"$f":"IFERROR(IF(OR($C$110=FALSE,LEFT($B105,3)<>\"NOX\"),Z54*INDEX('Damage costs'!$W$16:$W$43,MATCH($B105,'Damage costs'!$C$16:$C$43,0))/1000,Z54*INDEX('Damage costs'!$AA$16:$AA$43,MATCH($B105,'Damage costs'!$C$16:$C$43,0))/1000),\"\")","v":""},{"$f":"IFERROR(IF(OR($C$110=FALSE,LEFT($B105,3)<>\"NOX\"),AA54*INDEX('Damage costs'!$W$16:$W$43,MATCH($B105,'Damage costs'!$C$16:$C$43,0))/1000,AA54*INDEX('Damage costs'!$AA$16:$AA$43,MATCH($B105,'Damage costs'!$C$16:$C$43,0))/1000),\"\")","v":""},{"$f":"IFERROR(IF(OR($C$110=FALSE,LEFT($B105,3)<>\"NOX\"),AB54*INDEX('Damage costs'!$W$16:$W$43,MATCH($B105,'Damage costs'!$C$16:$C$43,0))/1000,AB54*INDEX('Damage costs'!$AA$16:$AA$43,MATCH($B105,'Damage costs'!$C$16:$C$43,0))/1000),\"\")","v":""},{"$f":"IFERROR(IF(OR($C$110=FALSE,LEFT($B105,3)<>\"NOX\"),AC54*INDEX('Damage costs'!$W$16:$W$43,MATCH($B105,'Damage costs'!$C$16:$C$43,0))/1000,AC54*INDEX('Damage costs'!$AA$16:$AA$43,MATCH($B105,'Damage costs'!$C$16:$C$43,0))/1000),\"\")","v":""},{"$f":"IFERROR(IF(OR($C$110=FALSE,LEFT($B105,3)<>\"NOX\"),AD54*INDEX('Damage costs'!$W$16:$W$43,MATCH($B105,'Damage costs'!$C$16:$C$43,0))/1000,AD54*INDEX('Damage costs'!$AA$16:$AA$43,MATCH($B105,'Damage costs'!$C$16:$C$43,0))/1000),\"\")","v":""},{"$f":"IFERROR(IF(OR($C$110=FALSE,LEFT($B105,3)<>\"NOX\"),AE54*INDEX('Damage costs'!$W$16:$W$43,MATCH($B105,'Damage costs'!$C$16:$C$43,0))/1000,AE54*INDEX('Damage costs'!$AA$16:$AA$43,MATCH($B105,'Damage costs'!$C$16:$C$43,0))/1000),\"\")","v":""},{"$f":"IFERROR(IF(OR($C$110=FALSE,LEFT($B105,3)<>\"NOX\"),AF54*INDEX('Damage costs'!$W$16:$W$43,MATCH($B105,'Damage costs'!$C$16:$C$43,0))/1000,AF54*INDEX('Damage costs'!$AA$16:$AA$43,MATCH($B105,'Damage costs'!$C$16:$C$43,0))/1000),\"\")","v":""},{"$f":"IFERROR(IF(OR($C$110=FALSE,LEFT($B105,3)<>\"NOX\"),AG54*INDEX('Damage costs'!$W$16:$W$43,MATCH($B105,'Damage costs'!$C$16:$C$43,0))/1000,AG54*INDEX('Damage costs'!$AA$16:$AA$43,MATCH($B105,'Damage costs'!$C$16:$C$43,0))/1000),\"\")","v":""},{"$f":"IFERROR(IF(OR($C$110=FALSE,LEFT($B105,3)<>\"NOX\"),AH54*INDEX('Damage costs'!$W$16:$W$43,MATCH($B105,'Damage costs'!$C$16:$C$43,0))/1000,AH54*INDEX('Damage costs'!$AA$16:$AA$43,MATCH($B105,'Damage costs'!$C$16:$C$43,0))/1000),\"\")","v":""},{"$f":"IFERROR(IF(OR($C$110=FALSE,LEFT($B105,3)<>\"NOX\"),AI54*INDEX('Damage costs'!$W$16:$W$43,MATCH($B105,'Damage costs'!$C$16:$C$43,0))/1000,AI54*INDEX('Damage costs'!$AA$16:$AA$43,MATCH($B105,'Damage costs'!$C$16:$C$43,0))/1000),\"\")","v":""},{"$f":"IFERROR(IF(OR($C$110=FALSE,LEFT($B105,3)<>\"NOX\"),AJ54*INDEX('Damage costs'!$W$16:$W$43,MATCH($B105,'Damage costs'!$C$16:$C$43,0))/1000,AJ54*INDEX('Damage costs'!$AA$16:$AA$43,MATCH($B105,'Damage costs'!$C$16:$C$43,0))/1000),\"\")","v":""},{"$f":"IFERROR(IF(OR($C$110=FALSE,LEFT($B105,3)<>\"NOX\"),AK54*INDEX('Damage costs'!$W$16:$W$43,MATCH($B105,'Damage costs'!$C$16:$C$43,0))/1000,AK54*INDEX('Damage costs'!$AA$16:$AA$43,MATCH($B105,'Damage costs'!$C$16:$C$43,0))/1000),\"\")","v":""},{"$f":"IFERROR(IF(OR($C$110=FALSE,LEFT($B105,3)<>\"NOX\"),AL54*INDEX('Damage costs'!$W$16:$W$43,MATCH($B105,'Damage costs'!$C$16:$C$43,0))/1000,AL54*INDEX('Damage costs'!$AA$16:$AA$43,MATCH($B105,'Damage costs'!$C$16:$C$43,0))/1000),\"\")","v":""},{"$f":"IFERROR(IF(OR($C$110=FALSE,LEFT($B105,3)<>\"NOX\"),AM54*INDEX('Damage costs'!$W$16:$W$43,MATCH($B105,'Damage costs'!$C$16:$C$43,0))/1000,AM54*INDEX('Damage costs'!$AA$16:$AA$43,MATCH($B105,'Damage costs'!$C$16:$C$43,0))/1000),\"\")","v":""},{"$f":"IFERROR(IF(OR($C$110=FALSE,LEFT($B105,3)<>\"NOX\"),AN54*INDEX('Damage costs'!$W$16:$W$43,MATCH($B105,'Damage costs'!$C$16:$C$43,0))/1000,AN54*INDEX('Damage costs'!$AA$16:$AA$43,MATCH($B105,'Damage costs'!$C$16:$C$43,0))/1000),\"\")","v":""},{"$f":"IFERROR(IF(OR($C$110=FALSE,LEFT($B105,3)<>\"NOX\"),AO54*INDEX('Damage costs'!$W$16:$W$43,MATCH($B105,'Damage costs'!$C$16:$C$43,0))/1000,AO54*INDEX('Damage costs'!$AA$16:$AA$43,MATCH($B105,'Damage costs'!$C$16:$C$43,0))/1000),\"\")","v":""},{"$f":"IFERROR(IF(OR($C$110=FALSE,LEFT($B105,3)<>\"NOX\"),AP54*INDEX('Damage costs'!$W$16:$W$43,MATCH($B105,'Damage costs'!$C$16:$C$43,0))/1000,AP54*INDEX('Damage costs'!$AA$16:$AA$43,MATCH($B105,'Damage costs'!$C$16:$C$43,0))/1000),\"\")","v":""},{"$f":"IFERROR(IF(OR($C$110=FALSE,LEFT($B105,3)<>\"NOX\"),AQ54*INDEX('Damage costs'!$W$16:$W$43,MATCH($B105,'Damage costs'!$C$16:$C$43,0))/1000,AQ54*INDEX('Damage costs'!$AA$16:$AA$43,MATCH($B105,'Damage costs'!$C$16:$C$43,0))/1000),\"\")","v":""},{"$f":"IFERROR(IF(OR($C$110=FALSE,LEFT($B105,3)<>\"NOX\"),AR54*INDEX('Damage costs'!$W$16:$W$43,MATCH($B105,'Damage costs'!$C$16:$C$43,0))/1000,AR54*INDEX('Damage costs'!$AA$16:$AA$43,MATCH($B105,'Damage costs'!$C$16:$C$43,0))/1000),\"\")","v":""},{"$f":"IFERROR(IF(OR($C$110=FALSE,LEFT($B105,3)<>\"NOX\"),AS54*INDEX('Damage costs'!$W$16:$W$43,MATCH($B105,'Damage costs'!$C$16:$C$43,0))/1000,AS54*INDEX('Damage costs'!$AA$16:$AA$43,MATCH($B105,'Damage costs'!$C$16:$C$43,0))/1000),\"\")","v":""},{"$f":"IFERROR(IF(OR($C$110=FALSE,LEFT($B105,3)<>\"NOX\"),AT54*INDEX('Damage costs'!$W$16:$W$43,MATCH($B105,'Damage costs'!$C$16:$C$43,0))/1000,AT54*INDEX('Damage costs'!$AA$16:$AA$43,MATCH($B105,'Damage costs'!$C$16:$C$43,0))/1000),\"\")","v":""},{"$f":"IFERROR(IF(OR($C$110=FALSE,LEFT($B105,3)<>\"NOX\"),AU54*INDEX('Damage costs'!$W$16:$W$43,MATCH($B105,'Damage costs'!$C$16:$C$43,0))/1000,AU54*INDEX('Damage costs'!$AA$16:$AA$43,MATCH($B105,'Damage costs'!$C$16:$C$43,0))/1000),\"\")","v":""},{"$f":"IFERROR(IF(OR($C$110=FALSE,LEFT($B105,3)<>\"NOX\"),AV54*INDEX('Damage costs'!$W$16:$W$43,MATCH($B105,'Damage costs'!$C$16:$C$43,0))/1000,AV54*INDEX('Damage costs'!$AA$16:$AA$43,MATCH($B105,'Damage costs'!$C$16:$C$43,0))/1000),\"\")","v":""},{"$f":"IFERROR(IF(OR($C$110=FALSE,LEFT($B105,3)<>\"NOX\"),AW54*INDEX('Damage costs'!$W$16:$W$43,MATCH($B105,'Damage costs'!$C$16:$C$43,0))/1000,AW54*INDEX('Damage costs'!$AA$16:$AA$43,MATCH($B105,'Damage costs'!$C$16:$C$43,0))/1000),\"\")","v":""},{"$f":"IFERROR(IF(OR($C$110=FALSE,LEFT($B105,3)<>\"NOX\"),AX54*INDEX('Damage costs'!$W$16:$W$43,MATCH($B105,'Damage costs'!$C$16:$C$43,0))/1000,AX54*INDEX('Damage costs'!$AA$16:$AA$43,MATCH($B105,'Damage costs'!$C$16:$C$43,0))/1000),\"\")","v":""},{"$f":"IFERROR(IF(OR($C$110=FALSE,LEFT($B105,3)<>\"NOX\"),AY54*INDEX('Damage costs'!$W$16:$W$43,MATCH($B105,'Damage costs'!$C$16:$C$43,0))/1000,AY54*INDEX('Damage costs'!$AA$16:$AA$43,MATCH($B105,'Damage costs'!$C$16:$C$43,0))/1000),\"\")","v":""},{"$f":"IFERROR(IF(OR($C$110=FALSE,LEFT($B105,3)<>\"NOX\"),AZ54*INDEX('Damage costs'!$W$16:$W$43,MATCH($B105,'Damage costs'!$C$16:$C$43,0))/1000,AZ54*INDEX('Damage costs'!$AA$16:$AA$43,MATCH($B105,'Damage costs'!$C$16:$C$43,0))/1000),\"\")","v":""},{"$f":"IFERROR(IF(OR($C$110=FALSE,LEFT($B105,3)<>\"NOX\"),BA54*INDEX('Damage costs'!$W$16:$W$43,MATCH($B105,'Damage costs'!$C$16:$C$43,0))/1000,BA54*INDEX('Damage costs'!$AA$16:$AA$43,MATCH($B105,'Damage costs'!$C$16:$C$43,0))/1000),\"\")","v":""},{"$f":"IFERROR(IF(OR($C$110=FALSE,LEFT($B105,3)<>\"NOX\"),BB54*INDEX('Damage costs'!$W$16:$W$43,MATCH($B105,'Damage costs'!$C$16:$C$43,0))/1000,BB54*INDEX('Damage costs'!$AA$16:$AA$43,MATCH($B105,'Damage costs'!$C$16:$C$43,0))/1000),\"\")","v":""},{"$f":"IFERROR(IF(OR($C$110=FALSE,LEFT($B105,3)<>\"NOX\"),BC54*INDEX('Damage costs'!$W$16:$W$43,MATCH($B105,'Damage costs'!$C$16:$C$43,0))/1000,BC54*INDEX('Damage costs'!$AA$16:$AA$43,MATCH($B105,'Damage costs'!$C$16:$C$43,0))/1000),\"\")","v":""},{"$f":"IFERROR(IF(OR($C$110=FALSE,LEFT($B105,3)<>\"NOX\"),BD54*INDEX('Damage costs'!$W$16:$W$43,MATCH($B105,'Damage costs'!$C$16:$C$43,0))/1000,BD54*INDEX('Damage costs'!$AA$16:$AA$43,MATCH($B105,'Damage costs'!$C$16:$C$43,0))/1000),\"\")","v":""},{"$f":"IFERROR(IF(OR($C$110=FALSE,LEFT($B105,3)<>\"NOX\"),BE54*INDEX('Damage costs'!$W$16:$W$43,MATCH($B105,'Damage costs'!$C$16:$C$43,0))/1000,BE54*INDEX('Damage costs'!$AA$16:$AA$43,MATCH($B105,'Damage costs'!$C$16:$C$43,0))/1000),\"\")","v":""},{"$f":"IFERROR(IF(OR($C$110=FALSE,LEFT($B105,3)<>\"NOX\"),BF54*INDEX('Damage costs'!$W$16:$W$43,MATCH($B105,'Damage costs'!$C$16:$C$43,0))/1000,BF54*INDEX('Damage costs'!$AA$16:$AA$43,MATCH($B105,'Damage costs'!$C$16:$C$43,0))/1000),\"\")","v":""},{"$f":"IFERROR(IF(OR($C$110=FALSE,LEFT($B105,3)<>\"NOX\"),BG54*INDEX('Damage costs'!$W$16:$W$43,MATCH($B105,'Damage costs'!$C$16:$C$43,0))/1000,BG54*INDEX('Damage costs'!$AA$16:$AA$43,MATCH($B105,'Damage costs'!$C$16:$C$43,0))/1000),\"\")","v":""},{"$f":"IFERROR(IF(OR($C$110=FALSE,LEFT($B105,3)<>\"NOX\"),BH54*INDEX('Damage costs'!$W$16:$W$43,MATCH($B105,'Damage costs'!$C$16:$C$43,0))/1000,BH54*INDEX('Damage costs'!$AA$16:$AA$43,MATCH($B105,'Damage costs'!$C$16:$C$43,0))/1000),\"\")","v":""},{"$f":"IFERROR(IF(OR($C$110=FALSE,LEFT($B105,3)<>\"NOX\"),BI54*INDEX('Damage costs'!$W$16:$W$43,MATCH($B105,'Damage costs'!$C$16:$C$43,0))/1000,BI54*INDEX('Damage costs'!$AA$16:$AA$43,MATCH($B105,'Damage costs'!$C$16:$C$43,0))/1000),\"\")","v":""},{"$f":"IFERROR(IF(OR($C$110=FALSE,LEFT($B105,3)<>\"NOX\"),BJ54*INDEX('Damage costs'!$W$16:$W$43,MATCH($B105,'Damage costs'!$C$16:$C$43,0))/1000,BJ54*INDEX('Damage costs'!$AA$16:$AA$43,MATCH($B105,'Damage costs'!$C$16:$C$43,0))/1000),\"\")","v":""},{"$f":"IFERROR(IF(OR($C$110=FALSE,LEFT($B105,3)<>\"NOX\"),BK54*INDEX('Damage costs'!$W$16:$W$43,MATCH($B105,'Damage costs'!$C$16:$C$43,0))/1000,BK54*INDEX('Damage costs'!$AA$16:$AA$43,MATCH($B105,'Damage costs'!$C$16:$C$43,0))/1000),\"\")","v":""},{"$f":"IFERROR(IF(OR($C$110=FALSE,LEFT($B105,3)<>\"NOX\"),BL54*INDEX('Damage costs'!$W$16:$W$43,MATCH($B105,'Damage costs'!$C$16:$C$43,0))/1000,BL54*INDEX('Damage costs'!$AA$16:$AA$43,MATCH($B105,'Damage costs'!$C$16:$C$43,0))/1000),\"\")","v":""},{"$f":"IFERROR(IF(OR($C$110=FALSE,LEFT($B105,3)<>\"NOX\"),BM54*INDEX('Damage costs'!$W$16:$W$43,MATCH($B105,'Damage costs'!$C$16:$C$43,0))/1000,BM54*INDEX('Damage costs'!$AA$16:$AA$43,MATCH($B105,'Damage costs'!$C$16:$C$43,0))/1000),\"\")","v":""},{"$f":"IFERROR(IF(OR($C$110=FALSE,LEFT($B105,3)<>\"NOX\"),BN54*INDEX('Damage costs'!$W$16:$W$43,MATCH($B105,'Damage costs'!$C$16:$C$43,0))/1000,BN54*INDEX('Damage costs'!$AA$16:$AA$43,MATCH($B105,'Damage costs'!$C$16:$C$43,0))/1000),\"\")","v":""},{"$f":"IFERROR(IF(OR($C$110=FALSE,LEFT($B105,3)<>\"NOX\"),BO54*INDEX('Damage costs'!$W$16:$W$43,MATCH($B105,'Damage costs'!$C$16:$C$43,0))/1000,BO54*INDEX('Damage costs'!$AA$16:$AA$43,MATCH($B105,'Damage costs'!$C$16:$C$43,0))/1000),\"\")","v":""},{"$f":"IFERROR(IF(OR($C$110=FALSE,LEFT($B105,3)<>\"NOX\"),BP54*INDEX('Damage costs'!$W$16:$W$43,MATCH($B105,'Damage costs'!$C$16:$C$43,0))/1000,BP54*INDEX('Damage costs'!$AA$16:$AA$43,MATCH($B105,'Damage costs'!$C$16:$C$43,0))/1000),\"\")","v":""},{"$f":"IFERROR(IF(OR($C$110=FALSE,LEFT($B105,3)<>\"NOX\"),BQ54*INDEX('Damage costs'!$W$16:$W$43,MATCH($B105,'Damage costs'!$C$16:$C$43,0))/1000,BQ54*INDEX('Damage costs'!$AA$16:$AA$43,MATCH($B105,'Damage costs'!$C$16:$C$43,0))/1000),\"\")","v":""},{"$f":"IFERROR(IF(OR($C$110=FALSE,LEFT($B105,3)<>\"NOX\"),BR54*INDEX('Damage costs'!$W$16:$W$43,MATCH($B105,'Damage costs'!$C$16:$C$43,0))/1000,BR54*INDEX('Damage costs'!$AA$16:$AA$43,MATCH($B105,'Damage costs'!$C$16:$C$43,0))/1000),\"\")","v":""},{"$f":"IFERROR(IF(OR($C$110=FALSE,LEFT($B105,3)<>\"NOX\"),BS54*INDEX('Damage costs'!$W$16:$W$43,MATCH($B105,'Damage costs'!$C$16:$C$43,0))/1000,BS54*INDEX('Damage costs'!$AA$16:$AA$43,MATCH($B105,'Damage costs'!$C$16:$C$43,0))/1000),\"\")","v":""},{"$f":"IFERROR(IF(OR($C$110=FALSE,LEFT($B105,3)<>\"NOX\"),BT54*INDEX('Damage costs'!$W$16:$W$43,MATCH($B105,'Damage costs'!$C$16:$C$43,0))/1000,BT54*INDEX('Damage costs'!$AA$16:$AA$43,MATCH($B105,'Damage costs'!$C$16:$C$43,0))/1000),\"\")","v":""},{"$f":"IFERROR(IF(OR($C$110=FALSE,LEFT($B105,3)<>\"NOX\"),BU54*INDEX('Damage costs'!$W$16:$W$43,MATCH($B105,'Damage costs'!$C$16:$C$43,0))/1000,BU54*INDEX('Damage costs'!$AA$16:$AA$43,MATCH($B105,'Damage costs'!$C$16:$C$43,0))/1000),\"\")","v":""},{"$f":"IFERROR(IF(OR($C$110=FALSE,LEFT($B105,3)<>\"NOX\"),BV54*INDEX('Damage costs'!$W$16:$W$43,MATCH($B105,'Damage costs'!$C$16:$C$43,0))/1000,BV54*INDEX('Damage costs'!$AA$16:$AA$43,MATCH($B105,'Damage costs'!$C$16:$C$43,0))/1000),\"\")","v":""},{"$f":"IFERROR(IF(OR($C$110=FALSE,LEFT($B105,3)<>\"NOX\"),BW54*INDEX('Damage costs'!$W$16:$W$43,MATCH($B105,'Damage costs'!$C$16:$C$43,0))/1000,BW54*INDEX('Damage costs'!$AA$16:$AA$43,MATCH($B105,'Damage costs'!$C$16:$C$43,0))/1000),\"\")","v":""},{"$f":"IFERROR(IF(OR($C$110=FALSE,LEFT($B105,3)<>\"NOX\"),BX54*INDEX('Damage costs'!$W$16:$W$43,MATCH($B105,'Damage costs'!$C$16:$C$43,0))/1000,BX54*INDEX('Damage costs'!$AA$16:$AA$43,MATCH($B105,'Damage costs'!$C$16:$C$43,0))/1000),\"\")","v":""},{"$f":"IFERROR(IF(OR($C$110=FALSE,LEFT($B105,3)<>\"NOX\"),BY54*INDEX('Damage costs'!$W$16:$W$43,MATCH($B105,'Damage costs'!$C$16:$C$43,0))/1000,BY54*INDEX('Damage costs'!$AA$16:$AA$43,MATCH($B105,'Damage costs'!$C$16:$C$43,0))/1000),\"\")","v":""},{"$f":"IFERROR(IF(OR($C$110=FALSE,LEFT($B105,3)<>\"NOX\"),BZ54*INDEX('Damage costs'!$W$16:$W$43,MATCH($B105,'Damage costs'!$C$16:$C$43,0))/1000,BZ54*INDEX('Damage costs'!$AA$16:$AA$43,MATCH($B105,'Damage costs'!$C$16:$C$43,0))/1000),\"\")","v":""},{"$f":"IFERROR(IF(OR($C$110=FALSE,LEFT($B105,3)<>\"NOX\"),CA54*INDEX('Damage costs'!$W$16:$W$43,MATCH($B105,'Damage costs'!$C$16:$C$43,0))/1000,CA54*INDEX('Damage costs'!$AA$16:$AA$43,MATCH($B105,'Damage costs'!$C$16:$C$43,0))/1000),\"\")","v":""},{"$f":"IFERROR(IF(OR($C$110=FALSE,LEFT($B105,3)<>\"NOX\"),CB54*INDEX('Damage costs'!$W$16:$W$43,MATCH($B105,'Damage costs'!$C$16:$C$43,0))/1000,CB54*INDEX('Damage costs'!$AA$16:$AA$43,MATCH($B105,'Damage costs'!$C$16:$C$43,0))/1000),\"\")","v":""},{"$f":"IFERROR(IF(OR($C$110=FALSE,LEFT($B105,3)<>\"NOX\"),CC54*INDEX('Damage costs'!$W$16:$W$43,MATCH($B105,'Damage costs'!$C$16:$C$43,0))/1000,CC54*INDEX('Damage costs'!$AA$16:$AA$43,MATCH($B105,'Damage costs'!$C$16:$C$43,0))/1000),\"\")","v":""},{"$f":"IFERROR(IF(OR($C$110=FALSE,LEFT($B105,3)<>\"NOX\"),CD54*INDEX('Damage costs'!$W$16:$W$43,MATCH($B105,'Damage costs'!$C$16:$C$43,0))/1000,CD54*INDEX('Damage costs'!$AA$16:$AA$43,MATCH($B105,'Damage costs'!$C$16:$C$43,0))/1000),\"\")","v":""},{"$f":"IFERROR(IF(OR($C$110=FALSE,LEFT($B105,3)<>\"NOX\"),CE54*INDEX('Damage costs'!$W$16:$W$43,MATCH($B105,'Damage costs'!$C$16:$C$43,0))/1000,CE54*INDEX('Damage costs'!$AA$16:$AA$43,MATCH($B105,'Damage costs'!$C$16:$C$43,0))/1000),\"\")","v":""},{"$f":"IFERROR(IF(OR($C$110=FALSE,LEFT($B105,3)<>\"NOX\"),CF54*INDEX('Damage costs'!$W$16:$W$43,MATCH($B105,'Damage costs'!$C$16:$C$43,0))/1000,CF54*INDEX('Damage costs'!$AA$16:$AA$43,MATCH($B105,'Damage costs'!$C$16:$C$43,0))/1000),\"\")","v":""},{"$f":"IFERROR(IF(OR($C$110=FALSE,LEFT($B105,3)<>\"NOX\"),CG54*INDEX('Damage costs'!$W$16:$W$43,MATCH($B105,'Damage costs'!$C$16:$C$43,0))/1000,CG54*INDEX('Damage costs'!$AA$16:$AA$43,MATCH($B105,'Damage costs'!$C$16:$C$43,0))/1000),\"\")","v":""},{"$f":"IFERROR(IF(OR($C$110=FALSE,LEFT($B105,3)<>\"NOX\"),CH54*INDEX('Damage costs'!$W$16:$W$43,MATCH($B105,'Damage costs'!$C$16:$C$43,0))/1000,CH54*INDEX('Damage costs'!$AA$16:$AA$43,MATCH($B105,'Damage costs'!$C$16:$C$43,0))/1000),\"\")","v":""},{"$f":"IFERROR(IF(OR($C$110=FALSE,LEFT($B105,3)<>\"NOX\"),CI54*INDEX('Damage costs'!$W$16:$W$43,MATCH($B105,'Damage costs'!$C$16:$C$43,0))/1000,CI54*INDEX('Damage costs'!$AA$16:$AA$43,MATCH($B105,'Damage costs'!$C$16:$C$43,0))/1000),\"\")","v":""},{"$f":"IFERROR(IF(OR($C$110=FALSE,LEFT($B105,3)<>\"NOX\"),CJ54*INDEX('Damage costs'!$W$16:$W$43,MATCH($B105,'Damage costs'!$C$16:$C$43,0))/1000,CJ54*INDEX('Damage costs'!$AA$16:$AA$43,MATCH($B105,'Damage costs'!$C$16:$C$43,0))/1000),\"\")","v":""},{"$f":"IFERROR(IF(OR($C$110=FALSE,LEFT($B105,3)<>\"NOX\"),CK54*INDEX('Damage costs'!$W$16:$W$43,MATCH($B105,'Damage costs'!$C$16:$C$43,0))/1000,CK54*INDEX('Damage costs'!$AA$16:$AA$43,MATCH($B105,'Damage costs'!$C$16:$C$43,0))/1000),\"\")","v":""},{"$f":"IFERROR(IF(OR($C$110=FALSE,LEFT($B105,3)<>\"NOX\"),CL54*INDEX('Damage costs'!$W$16:$W$43,MATCH($B105,'Damage costs'!$C$16:$C$43,0))/1000,CL54*INDEX('Damage costs'!$AA$16:$AA$43,MATCH($B105,'Damage costs'!$C$16:$C$43,0))/1000),\"\")","v":""},{"$f":"IFERROR(IF(OR($C$110=FALSE,LEFT($B105,3)<>\"NOX\"),CM54*INDEX('Damage costs'!$W$16:$W$43,MATCH($B105,'Damage costs'!$C$16:$C$43,0))/1000,CM54*INDEX('Damage costs'!$AA$16:$AA$43,MATCH($B105,'Damage costs'!$C$16:$C$43,0))/1000),\"\")","v":""},{"$f":"IFERROR(IF(OR($C$110=FALSE,LEFT($B105,3)<>\"NOX\"),CN54*INDEX('Damage costs'!$W$16:$W$43,MATCH($B105,'Damage costs'!$C$16:$C$43,0))/1000,CN54*INDEX('Damage costs'!$AA$16:$AA$43,MATCH($B105,'Damage costs'!$C$16:$C$43,0))/1000),\"\")","v":""},{"$f":"IFERROR(IF(OR($C$110=FALSE,LEFT($B105,3)<>\"NOX\"),CO54*INDEX('Damage costs'!$W$16:$W$43,MATCH($B105,'Damage costs'!$C$16:$C$43,0))/1000,CO54*INDEX('Damage costs'!$AA$16:$AA$43,MATCH($B105,'Damage costs'!$C$16:$C$43,0))/1000),\"\")","v":""},{"$f":"IFERROR(IF(OR($C$110=FALSE,LEFT($B105,3)<>\"NOX\"),CP54*INDEX('Damage costs'!$W$16:$W$43,MATCH($B105,'Damage costs'!$C$16:$C$43,0))/1000,CP54*INDEX('Damage costs'!$AA$16:$AA$43,MATCH($B105,'Damage costs'!$C$16:$C$43,0))/1000),\"\")","v":""},{"$f":"IFERROR(IF(OR($C$110=FALSE,LEFT($B105,3)<>\"NOX\"),CQ54*INDEX('Damage costs'!$W$16:$W$43,MATCH($B105,'Damage costs'!$C$16:$C$43,0))/1000,CQ54*INDEX('Damage costs'!$AA$16:$AA$43,MATCH($B105,'Damage costs'!$C$16:$C$43,0))/1000),\"\")","v":""},{"$f":"IFERROR(IF(OR($C$110=FALSE,LEFT($B105,3)<>\"NOX\"),CR54*INDEX('Damage costs'!$W$16:$W$43,MATCH($B105,'Damage costs'!$C$16:$C$43,0))/1000,CR54*INDEX('Damage costs'!$AA$16:$AA$43,MATCH($B105,'Damage costs'!$C$16:$C$43,0))/1000),\"\")","v":""},{"$f":"IFERROR(IF(OR($C$110=FALSE,LEFT($B105,3)<>\"NOX\"),CS54*INDEX('Damage costs'!$W$16:$W$43,MATCH($B105,'Damage costs'!$C$16:$C$43,0))/1000,CS54*INDEX('Damage costs'!$AA$16:$AA$43,MATCH($B105,'Damage costs'!$C$16:$C$43,0))/1000),\"\")","v":""},{"$f":"IFERROR(IF(OR($C$110=FALSE,LEFT($B105,3)<>\"NOX\"),CT54*INDEX('Damage costs'!$W$16:$W$43,MATCH($B105,'Damage costs'!$C$16:$C$43,0))/1000,CT54*INDEX('Damage costs'!$AA$16:$AA$43,MATCH($B105,'Damage costs'!$C$16:$C$43,0))/1000),\"\")","v":""},{"$f":"IFERROR(IF(OR($C$110=FALSE,LEFT($B105,3)<>\"NOX\"),CU54*INDEX('Damage costs'!$W$16:$W$43,MATCH($B105,'Damage costs'!$C$16:$C$43,0))/1000,CU54*INDEX('Damage costs'!$AA$16:$AA$43,MATCH($B105,'Damage costs'!$C$16:$C$43,0))/1000),\"\")","v":""},{"$f":"IFERROR(IF(OR($C$110=FALSE,LEFT($B105,3)<>\"NOX\"),CV54*INDEX('Damage costs'!$W$16:$W$43,MATCH($B105,'Damage costs'!$C$16:$C$43,0))/1000,CV54*INDEX('Damage costs'!$AA$16:$AA$43,MATCH($B105,'Damage costs'!$C$16:$C$43,0))/1000),\"\")","v":""},{"$f":"IFERROR(IF(OR($C$110=FALSE,LEFT($B105,3)<>\"NOX\"),CW54*INDEX('Damage costs'!$W$16:$W$43,MATCH($B105,'Damage costs'!$C$16:$C$43,0))/1000,CW54*INDEX('Damage costs'!$AA$16:$AA$43,MATCH($B105,'Damage costs'!$C$16:$C$43,0))/1000),\"\")","v":""},{"$f":"IFERROR(IF(OR($C$110=FALSE,LEFT($B105,3)<>\"NOX\"),CX54*INDEX('Damage costs'!$W$16:$W$43,MATCH($B105,'Damage costs'!$C$16:$C$43,0))/1000,CX54*INDEX('Damage costs'!$AA$16:$AA$43,MATCH($B105,'Damage costs'!$C$16:$C$43,0))/1000),\"\")","v":""},{"$f":"IFERROR(IF(OR($C$110=FALSE,LEFT($B105,3)<>\"NOX\"),CY54*INDEX('Damage costs'!$W$16:$W$43,MATCH($B105,'Damage costs'!$C$16:$C$43,0))/1000,CY54*INDEX('Damage costs'!$AA$16:$AA$43,MATCH($B105,'Damage costs'!$C$16:$C$43,0))/1000),\"\")","v":""}]
[null,0,"£000's",{"$f":"IFERROR(IF(OR($C$110=FALSE,LEFT($B106,3)<>\"NOX\"),D55*INDEX('Damage costs'!$W$16:$W$43,MATCH($B106,'Damage costs'!$C$16:$C$43,0))/1000,D55*INDEX('Damage costs'!$AA$16:$AA$43,MATCH($B106,'Damage costs'!$C$16:$C$43,0))/1000),\"\")","v":""},{"$f":"IFERROR(IF(OR($C$110=FALSE,LEFT($B106,3)<>\"NOX\"),E55*INDEX('Damage costs'!$W$16:$W$43,MATCH($B106,'Damage costs'!$C$16:$C$43,0))/1000,E55*INDEX('Damage costs'!$AA$16:$AA$43,MATCH($B106,'Damage costs'!$C$16:$C$43,0))/1000),\"\")","v":""},{"$f":"IFERROR(IF(OR($C$110=FALSE,LEFT($B106,3)<>\"NOX\"),F55*INDEX('Damage costs'!$W$16:$W$43,MATCH($B106,'Damage costs'!$C$16:$C$43,0))/1000,F55*INDEX('Damage costs'!$AA$16:$AA$43,MATCH($B106,'Damage costs'!$C$16:$C$43,0))/1000),\"\")","v":""},{"$f":"IFERROR(IF(OR($C$110=FALSE,LEFT($B106,3)<>\"NOX\"),G55*INDEX('Damage costs'!$W$16:$W$43,MATCH($B106,'Damage costs'!$C$16:$C$43,0))/1000,G55*INDEX('Damage costs'!$AA$16:$AA$43,MATCH($B106,'Damage costs'!$C$16:$C$43,0))/1000),\"\")","v":""},{"$f":"IFERROR(IF(OR($C$110=FALSE,LEFT($B106,3)<>\"NOX\"),H55*INDEX('Damage costs'!$W$16:$W$43,MATCH($B106,'Damage costs'!$C$16:$C$43,0))/1000,H55*INDEX('Damage costs'!$AA$16:$AA$43,MATCH($B106,'Damage costs'!$C$16:$C$43,0))/1000),\"\")","v":""},{"$f":"IFERROR(IF(OR($C$110=FALSE,LEFT($B106,3)<>\"NOX\"),I55*INDEX('Damage costs'!$W$16:$W$43,MATCH($B106,'Damage costs'!$C$16:$C$43,0))/1000,I55*INDEX('Damage costs'!$AA$16:$AA$43,MATCH($B106,'Damage costs'!$C$16:$C$43,0))/1000),\"\")","v":""},{"$f":"IFERROR(IF(OR($C$110=FALSE,LEFT($B106,3)<>\"NOX\"),J55*INDEX('Damage costs'!$W$16:$W$43,MATCH($B106,'Damage costs'!$C$16:$C$43,0))/1000,J55*INDEX('Damage costs'!$AA$16:$AA$43,MATCH($B106,'Damage costs'!$C$16:$C$43,0))/1000),\"\")","v":""},{"$f":"IFERROR(IF(OR($C$110=FALSE,LEFT($B106,3)<>\"NOX\"),K55*INDEX('Damage costs'!$W$16:$W$43,MATCH($B106,'Damage costs'!$C$16:$C$43,0))/1000,K55*INDEX('Damage costs'!$AA$16:$AA$43,MATCH($B106,'Damage costs'!$C$16:$C$43,0))/1000),\"\")","v":""},{"$f":"IFERROR(IF(OR($C$110=FALSE,LEFT($B106,3)<>\"NOX\"),L55*INDEX('Damage costs'!$W$16:$W$43,MATCH($B106,'Damage costs'!$C$16:$C$43,0))/1000,L55*INDEX('Damage costs'!$AA$16:$AA$43,MATCH($B106,'Damage costs'!$C$16:$C$43,0))/1000),\"\")","v":""},{"$f":"IFERROR(IF(OR($C$110=FALSE,LEFT($B106,3)<>\"NOX\"),M55*INDEX('Damage costs'!$W$16:$W$43,MATCH($B106,'Damage costs'!$C$16:$C$43,0))/1000,M55*INDEX('Damage costs'!$AA$16:$AA$43,MATCH($B106,'Damage costs'!$C$16:$C$43,0))/1000),\"\")","v":""},{"$f":"IFERROR(IF(OR($C$110=FALSE,LEFT($B106,3)<>\"NOX\"),N55*INDEX('Damage costs'!$W$16:$W$43,MATCH($B106,'Damage costs'!$C$16:$C$43,0))/1000,N55*INDEX('Damage costs'!$AA$16:$AA$43,MATCH($B106,'Damage costs'!$C$16:$C$43,0))/1000),\"\")","v":""},{"$f":"IFERROR(IF(OR($C$110=FALSE,LEFT($B106,3)<>\"NOX\"),O55*INDEX('Damage costs'!$W$16:$W$43,MATCH($B106,'Damage costs'!$C$16:$C$43,0))/1000,O55*INDEX('Damage costs'!$AA$16:$AA$43,MATCH($B106,'Damage costs'!$C$16:$C$43,0))/1000),\"\")","v":""},{"$f":"IFERROR(IF(OR($C$110=FALSE,LEFT($B106,3)<>\"NOX\"),P55*INDEX('Damage costs'!$W$16:$W$43,MATCH($B106,'Damage costs'!$C$16:$C$43,0))/1000,P55*INDEX('Damage costs'!$AA$16:$AA$43,MATCH($B106,'Damage costs'!$C$16:$C$43,0))/1000),\"\")","v":""},{"$f":"IFERROR(IF(OR($C$110=FALSE,LEFT($B106,3)<>\"NOX\"),Q55*INDEX('Damage costs'!$W$16:$W$43,MATCH($B106,'Damage costs'!$C$16:$C$43,0))/1000,Q55*INDEX('Damage costs'!$AA$16:$AA$43,MATCH($B106,'Damage costs'!$C$16:$C$43,0))/1000),\"\")","v":""},{"$f":"IFERROR(IF(OR($C$110=FALSE,LEFT($B106,3)<>\"NOX\"),R55*INDEX('Damage costs'!$W$16:$W$43,MATCH($B106,'Damage costs'!$C$16:$C$43,0))/1000,R55*INDEX('Damage costs'!$AA$16:$AA$43,MATCH($B106,'Damage costs'!$C$16:$C$43,0))/1000),\"\")","v":""},{"$f":"IFERROR(IF(OR($C$110=FALSE,LEFT($B106,3)<>\"NOX\"),S55*INDEX('Damage costs'!$W$16:$W$43,MATCH($B106,'Damage costs'!$C$16:$C$43,0))/1000,S55*INDEX('Damage costs'!$AA$16:$AA$43,MATCH($B106,'Damage costs'!$C$16:$C$43,0))/1000),\"\")","v":""},{"$f":"IFERROR(IF(OR($C$110=FALSE,LEFT($B106,3)<>\"NOX\"),T55*INDEX('Damage costs'!$W$16:$W$43,MATCH($B106,'Damage costs'!$C$16:$C$43,0))/1000,T55*INDEX('Damage costs'!$AA$16:$AA$43,MATCH($B106,'Damage costs'!$C$16:$C$43,0))/1000),\"\")","v":""},{"$f":"IFERROR(IF(OR($C$110=FALSE,LEFT($B106,3)<>\"NOX\"),U55*INDEX('Damage costs'!$W$16:$W$43,MATCH($B106,'Damage costs'!$C$16:$C$43,0))/1000,U55*INDEX('Damage costs'!$AA$16:$AA$43,MATCH($B106,'Damage costs'!$C$16:$C$43,0))/1000),\"\")","v":""},{"$f":"IFERROR(IF(OR($C$110=FALSE,LEFT($B106,3)<>\"NOX\"),V55*INDEX('Damage costs'!$W$16:$W$43,MATCH($B106,'Damage costs'!$C$16:$C$43,0))/1000,V55*INDEX('Damage costs'!$AA$16:$AA$43,MATCH($B106,'Damage costs'!$C$16:$C$43,0))/1000),\"\")","v":""},{"$f":"IFERROR(IF(OR($C$110=FALSE,LEFT($B106,3)<>\"NOX\"),W55*INDEX('Damage costs'!$W$16:$W$43,MATCH($B106,'Damage costs'!$C$16:$C$43,0))/1000,W55*INDEX('Damage costs'!$AA$16:$AA$43,MATCH($B106,'Damage costs'!$C$16:$C$43,0))/1000),\"\")","v":""},{"$f":"IFERROR(IF(OR($C$110=FALSE,LEFT($B106,3)<>\"NOX\"),X55*INDEX('Damage costs'!$W$16:$W$43,MATCH($B106,'Damage costs'!$C$16:$C$43,0))/1000,X55*INDEX('Damage costs'!$AA$16:$AA$43,MATCH($B106,'Damage costs'!$C$16:$C$43,0))/1000),\"\")","v":""},{"$f":"IFERROR(IF(OR($C$110=FALSE,LEFT($B106,3)<>\"NOX\"),Y55*INDEX('Damage costs'!$W$16:$W$43,MATCH($B106,'Damage costs'!$C$16:$C$43,0))/1000,Y55*INDEX('Damage costs'!$AA$16:$AA$43,MATCH($B106,'Damage costs'!$C$16:$C$43,0))/1000),\"\")","v":""},{"$f":"IFERROR(IF(OR($C$110=FALSE,LEFT($B106,3)<>\"NOX\"),Z55*INDEX('Damage costs'!$W$16:$W$43,MATCH($B106,'Damage costs'!$C$16:$C$43,0))/1000,Z55*INDEX('Damage costs'!$AA$16:$AA$43,MATCH($B106,'Damage costs'!$C$16:$C$43,0))/1000),\"\")","v":""},{"$f":"IFERROR(IF(OR($C$110=FALSE,LEFT($B106,3)<>\"NOX\"),AA55*INDEX('Damage costs'!$W$16:$W$43,MATCH($B106,'Damage costs'!$C$16:$C$43,0))/1000,AA55*INDEX('Damage costs'!$AA$16:$AA$43,MATCH($B106,'Damage costs'!$C$16:$C$43,0))/1000),\"\")","v":""},{"$f":"IFERROR(IF(OR($C$110=FALSE,LEFT($B106,3)<>\"NOX\"),AB55*INDEX('Damage costs'!$W$16:$W$43,MATCH($B106,'Damage costs'!$C$16:$C$43,0))/1000,AB55*INDEX('Damage costs'!$AA$16:$AA$43,MATCH($B106,'Damage costs'!$C$16:$C$43,0))/1000),\"\")","v":""},{"$f":"IFERROR(IF(OR($C$110=FALSE,LEFT($B106,3)<>\"NOX\"),AC55*INDEX('Damage costs'!$W$16:$W$43,MATCH($B106,'Damage costs'!$C$16:$C$43,0))/1000,AC55*INDEX('Damage costs'!$AA$16:$AA$43,MATCH($B106,'Damage costs'!$C$16:$C$43,0))/1000),\"\")","v":""},{"$f":"IFERROR(IF(OR($C$110=FALSE,LEFT($B106,3)<>\"NOX\"),AD55*INDEX('Damage costs'!$W$16:$W$43,MATCH($B106,'Damage costs'!$C$16:$C$43,0))/1000,AD55*INDEX('Damage costs'!$AA$16:$AA$43,MATCH($B106,'Damage costs'!$C$16:$C$43,0))/1000),\"\")","v":""},{"$f":"IFERROR(IF(OR($C$110=FALSE,LEFT($B106,3)<>\"NOX\"),AE55*INDEX('Damage costs'!$W$16:$W$43,MATCH($B106,'Damage costs'!$C$16:$C$43,0))/1000,AE55*INDEX('Damage costs'!$AA$16:$AA$43,MATCH($B106,'Damage costs'!$C$16:$C$43,0))/1000),\"\")","v":""},{"$f":"IFERROR(IF(OR($C$110=FALSE,LEFT($B106,3)<>\"NOX\"),AF55*INDEX('Damage costs'!$W$16:$W$43,MATCH($B106,'Damage costs'!$C$16:$C$43,0))/1000,AF55*INDEX('Damage costs'!$AA$16:$AA$43,MATCH($B106,'Damage costs'!$C$16:$C$43,0))/1000),\"\")","v":""},{"$f":"IFERROR(IF(OR($C$110=FALSE,LEFT($B106,3)<>\"NOX\"),AG55*INDEX('Damage costs'!$W$16:$W$43,MATCH($B106,'Damage costs'!$C$16:$C$43,0))/1000,AG55*INDEX('Damage costs'!$AA$16:$AA$43,MATCH($B106,'Damage costs'!$C$16:$C$43,0))/1000),\"\")","v":""},{"$f":"IFERROR(IF(OR($C$110=FALSE,LEFT($B106,3)<>\"NOX\"),AH55*INDEX('Damage costs'!$W$16:$W$43,MATCH($B106,'Damage costs'!$C$16:$C$43,0))/1000,AH55*INDEX('Damage costs'!$AA$16:$AA$43,MATCH($B106,'Damage costs'!$C$16:$C$43,0))/1000),\"\")","v":""},{"$f":"IFERROR(IF(OR($C$110=FALSE,LEFT($B106,3)<>\"NOX\"),AI55*INDEX('Damage costs'!$W$16:$W$43,MATCH($B106,'Damage costs'!$C$16:$C$43,0))/1000,AI55*INDEX('Damage costs'!$AA$16:$AA$43,MATCH($B106,'Damage costs'!$C$16:$C$43,0))/1000),\"\")","v":""},{"$f":"IFERROR(IF(OR($C$110=FALSE,LEFT($B106,3)<>\"NOX\"),AJ55*INDEX('Damage costs'!$W$16:$W$43,MATCH($B106,'Damage costs'!$C$16:$C$43,0))/1000,AJ55*INDEX('Damage costs'!$AA$16:$AA$43,MATCH($B106,'Damage costs'!$C$16:$C$43,0))/1000),\"\")","v":""},{"$f":"IFERROR(IF(OR($C$110=FALSE,LEFT($B106,3)<>\"NOX\"),AK55*INDEX('Damage costs'!$W$16:$W$43,MATCH($B106,'Damage costs'!$C$16:$C$43,0))/1000,AK55*INDEX('Damage costs'!$AA$16:$AA$43,MATCH($B106,'Damage costs'!$C$16:$C$43,0))/1000),\"\")","v":""},{"$f":"IFERROR(IF(OR($C$110=FALSE,LEFT($B106,3)<>\"NOX\"),AL55*INDEX('Damage costs'!$W$16:$W$43,MATCH($B106,'Damage costs'!$C$16:$C$43,0))/1000,AL55*INDEX('Damage costs'!$AA$16:$AA$43,MATCH($B106,'Damage costs'!$C$16:$C$43,0))/1000),\"\")","v":""},{"$f":"IFERROR(IF(OR($C$110=FALSE,LEFT($B106,3)<>\"NOX\"),AM55*INDEX('Damage costs'!$W$16:$W$43,MATCH($B106,'Damage costs'!$C$16:$C$43,0))/1000,AM55*INDEX('Damage costs'!$AA$16:$AA$43,MATCH($B106,'Damage costs'!$C$16:$C$43,0))/1000),\"\")","v":""},{"$f":"IFERROR(IF(OR($C$110=FALSE,LEFT($B106,3)<>\"NOX\"),AN55*INDEX('Damage costs'!$W$16:$W$43,MATCH($B106,'Damage costs'!$C$16:$C$43,0))/1000,AN55*INDEX('Damage costs'!$AA$16:$AA$43,MATCH($B106,'Damage costs'!$C$16:$C$43,0))/1000),\"\")","v":""},{"$f":"IFERROR(IF(OR($C$110=FALSE,LEFT($B106,3)<>\"NOX\"),AO55*INDEX('Damage costs'!$W$16:$W$43,MATCH($B106,'Damage costs'!$C$16:$C$43,0))/1000,AO55*INDEX('Damage costs'!$AA$16:$AA$43,MATCH($B106,'Damage costs'!$C$16:$C$43,0))/1000),\"\")","v":""},{"$f":"IFERROR(IF(OR($C$110=FALSE,LEFT($B106,3)<>\"NOX\"),AP55*INDEX('Damage costs'!$W$16:$W$43,MATCH($B106,'Damage costs'!$C$16:$C$43,0))/1000,AP55*INDEX('Damage costs'!$AA$16:$AA$43,MATCH($B106,'Damage costs'!$C$16:$C$43,0))/1000),\"\")","v":""},{"$f":"IFERROR(IF(OR($C$110=FALSE,LEFT($B106,3)<>\"NOX\"),AQ55*INDEX('Damage costs'!$W$16:$W$43,MATCH($B106,'Damage costs'!$C$16:$C$43,0))/1000,AQ55*INDEX('Damage costs'!$AA$16:$AA$43,MATCH($B106,'Damage costs'!$C$16:$C$43,0))/1000),\"\")","v":""},{"$f":"IFERROR(IF(OR($C$110=FALSE,LEFT($B106,3)<>\"NOX\"),AR55*INDEX('Damage costs'!$W$16:$W$43,MATCH($B106,'Damage costs'!$C$16:$C$43,0))/1000,AR55*INDEX('Damage costs'!$AA$16:$AA$43,MATCH($B106,'Damage costs'!$C$16:$C$43,0))/1000),\"\")","v":""},{"$f":"IFERROR(IF(OR($C$110=FALSE,LEFT($B106,3)<>\"NOX\"),AS55*INDEX('Damage costs'!$W$16:$W$43,MATCH($B106,'Damage costs'!$C$16:$C$43,0))/1000,AS55*INDEX('Damage costs'!$AA$16:$AA$43,MATCH($B106,'Damage costs'!$C$16:$C$43,0))/1000),\"\")","v":""},{"$f":"IFERROR(IF(OR($C$110=FALSE,LEFT($B106,3)<>\"NOX\"),AT55*INDEX('Damage costs'!$W$16:$W$43,MATCH($B106,'Damage costs'!$C$16:$C$43,0))/1000,AT55*INDEX('Damage costs'!$AA$16:$AA$43,MATCH($B106,'Damage costs'!$C$16:$C$43,0))/1000),\"\")","v":""},{"$f":"IFERROR(IF(OR($C$110=FALSE,LEFT($B106,3)<>\"NOX\"),AU55*INDEX('Damage costs'!$W$16:$W$43,MATCH($B106,'Damage costs'!$C$16:$C$43,0))/1000,AU55*INDEX('Damage costs'!$AA$16:$AA$43,MATCH($B106,'Damage costs'!$C$16:$C$43,0))/1000),\"\")","v":""},{"$f":"IFERROR(IF(OR($C$110=FALSE,LEFT($B106,3)<>\"NOX\"),AV55*INDEX('Damage costs'!$W$16:$W$43,MATCH($B106,'Damage costs'!$C$16:$C$43,0))/1000,AV55*INDEX('Damage costs'!$AA$16:$AA$43,MATCH($B106,'Damage costs'!$C$16:$C$43,0))/1000),\"\")","v":""},{"$f":"IFERROR(IF(OR($C$110=FALSE,LEFT($B106,3)<>\"NOX\"),AW55*INDEX('Damage costs'!$W$16:$W$43,MATCH($B106,'Damage costs'!$C$16:$C$43,0))/1000,AW55*INDEX('Damage costs'!$AA$16:$AA$43,MATCH($B106,'Damage costs'!$C$16:$C$43,0))/1000),\"\")","v":""},{"$f":"IFERROR(IF(OR($C$110=FALSE,LEFT($B106,3)<>\"NOX\"),AX55*INDEX('Damage costs'!$W$16:$W$43,MATCH($B106,'Damage costs'!$C$16:$C$43,0))/1000,AX55*INDEX('Damage costs'!$AA$16:$AA$43,MATCH($B106,'Damage costs'!$C$16:$C$43,0))/1000),\"\")","v":""},{"$f":"IFERROR(IF(OR($C$110=FALSE,LEFT($B106,3)<>\"NOX\"),AY55*INDEX('Damage costs'!$W$16:$W$43,MATCH($B106,'Damage costs'!$C$16:$C$43,0))/1000,AY55*INDEX('Damage costs'!$AA$16:$AA$43,MATCH($B106,'Damage costs'!$C$16:$C$43,0))/1000),\"\")","v":""},{"$f":"IFERROR(IF(OR($C$110=FALSE,LEFT($B106,3)<>\"NOX\"),AZ55*INDEX('Damage costs'!$W$16:$W$43,MATCH($B106,'Damage costs'!$C$16:$C$43,0))/1000,AZ55*INDEX('Damage costs'!$AA$16:$AA$43,MATCH($B106,'Damage costs'!$C$16:$C$43,0))/1000),\"\")","v":""},{"$f":"IFERROR(IF(OR($C$110=FALSE,LEFT($B106,3)<>\"NOX\"),BA55*INDEX('Damage costs'!$W$16:$W$43,MATCH($B106,'Damage costs'!$C$16:$C$43,0))/1000,BA55*INDEX('Damage costs'!$AA$16:$AA$43,MATCH($B106,'Damage costs'!$C$16:$C$43,0))/1000),\"\")","v":""},{"$f":"IFERROR(IF(OR($C$110=FALSE,LEFT($B106,3)<>\"NOX\"),BB55*INDEX('Damage costs'!$W$16:$W$43,MATCH($B106,'Damage costs'!$C$16:$C$43,0))/1000,BB55*INDEX('Damage costs'!$AA$16:$AA$43,MATCH($B106,'Damage costs'!$C$16:$C$43,0))/1000),\"\")","v":""},{"$f":"IFERROR(IF(OR($C$110=FALSE,LEFT($B106,3)<>\"NOX\"),BC55*INDEX('Damage costs'!$W$16:$W$43,MATCH($B106,'Damage costs'!$C$16:$C$43,0))/1000,BC55*INDEX('Damage costs'!$AA$16:$AA$43,MATCH($B106,'Damage costs'!$C$16:$C$43,0))/1000),\"\")","v":""},{"$f":"IFERROR(IF(OR($C$110=FALSE,LEFT($B106,3)<>\"NOX\"),BD55*INDEX('Damage costs'!$W$16:$W$43,MATCH($B106,'Damage costs'!$C$16:$C$43,0))/1000,BD55*INDEX('Damage costs'!$AA$16:$AA$43,MATCH($B106,'Damage costs'!$C$16:$C$43,0))/1000),\"\")","v":""},{"$f":"IFERROR(IF(OR($C$110=FALSE,LEFT($B106,3)<>\"NOX\"),BE55*INDEX('Damage costs'!$W$16:$W$43,MATCH($B106,'Damage costs'!$C$16:$C$43,0))/1000,BE55*INDEX('Damage costs'!$AA$16:$AA$43,MATCH($B106,'Damage costs'!$C$16:$C$43,0))/1000),\"\")","v":""},{"$f":"IFERROR(IF(OR($C$110=FALSE,LEFT($B106,3)<>\"NOX\"),BF55*INDEX('Damage costs'!$W$16:$W$43,MATCH($B106,'Damage costs'!$C$16:$C$43,0))/1000,BF55*INDEX('Damage costs'!$AA$16:$AA$43,MATCH($B106,'Damage costs'!$C$16:$C$43,0))/1000),\"\")","v":""},{"$f":"IFERROR(IF(OR($C$110=FALSE,LEFT($B106,3)<>\"NOX\"),BG55*INDEX('Damage costs'!$W$16:$W$43,MATCH($B106,'Damage costs'!$C$16:$C$43,0))/1000,BG55*INDEX('Damage costs'!$AA$16:$AA$43,MATCH($B106,'Damage costs'!$C$16:$C$43,0))/1000),\"\")","v":""},{"$f":"IFERROR(IF(OR($C$110=FALSE,LEFT($B106,3)<>\"NOX\"),BH55*INDEX('Damage costs'!$W$16:$W$43,MATCH($B106,'Damage costs'!$C$16:$C$43,0))/1000,BH55*INDEX('Damage costs'!$AA$16:$AA$43,MATCH($B106,'Damage costs'!$C$16:$C$43,0))/1000),\"\")","v":""},{"$f":"IFERROR(IF(OR($C$110=FALSE,LEFT($B106,3)<>\"NOX\"),BI55*INDEX('Damage costs'!$W$16:$W$43,MATCH($B106,'Damage costs'!$C$16:$C$43,0))/1000,BI55*INDEX('Damage costs'!$AA$16:$AA$43,MATCH($B106,'Damage costs'!$C$16:$C$43,0))/1000),\"\")","v":""},{"$f":"IFERROR(IF(OR($C$110=FALSE,LEFT($B106,3)<>\"NOX\"),BJ55*INDEX('Damage costs'!$W$16:$W$43,MATCH($B106,'Damage costs'!$C$16:$C$43,0))/1000,BJ55*INDEX('Damage costs'!$AA$16:$AA$43,MATCH($B106,'Damage costs'!$C$16:$C$43,0))/1000),\"\")","v":""},{"$f":"IFERROR(IF(OR($C$110=FALSE,LEFT($B106,3)<>\"NOX\"),BK55*INDEX('Damage costs'!$W$16:$W$43,MATCH($B106,'Damage costs'!$C$16:$C$43,0))/1000,BK55*INDEX('Damage costs'!$AA$16:$AA$43,MATCH($B106,'Damage costs'!$C$16:$C$43,0))/1000),\"\")","v":""},{"$f":"IFERROR(IF(OR($C$110=FALSE,LEFT($B106,3)<>\"NOX\"),BL55*INDEX('Damage costs'!$W$16:$W$43,MATCH($B106,'Damage costs'!$C$16:$C$43,0))/1000,BL55*INDEX('Damage costs'!$AA$16:$AA$43,MATCH($B106,'Damage costs'!$C$16:$C$43,0))/1000),\"\")","v":""},{"$f":"IFERROR(IF(OR($C$110=FALSE,LEFT($B106,3)<>\"NOX\"),BM55*INDEX('Damage costs'!$W$16:$W$43,MATCH($B106,'Damage costs'!$C$16:$C$43,0))/1000,BM55*INDEX('Damage costs'!$AA$16:$AA$43,MATCH($B106,'Damage costs'!$C$16:$C$43,0))/1000),\"\")","v":""},{"$f":"IFERROR(IF(OR($C$110=FALSE,LEFT($B106,3)<>\"NOX\"),BN55*INDEX('Damage costs'!$W$16:$W$43,MATCH($B106,'Damage costs'!$C$16:$C$43,0))/1000,BN55*INDEX('Damage costs'!$AA$16:$AA$43,MATCH($B106,'Damage costs'!$C$16:$C$43,0))/1000),\"\")","v":""},{"$f":"IFERROR(IF(OR($C$110=FALSE,LEFT($B106,3)<>\"NOX\"),BO55*INDEX('Damage costs'!$W$16:$W$43,MATCH($B106,'Damage costs'!$C$16:$C$43,0))/1000,BO55*INDEX('Damage costs'!$AA$16:$AA$43,MATCH($B106,'Damage costs'!$C$16:$C$43,0))/1000),\"\")","v":""},{"$f":"IFERROR(IF(OR($C$110=FALSE,LEFT($B106,3)<>\"NOX\"),BP55*INDEX('Damage costs'!$W$16:$W$43,MATCH($B106,'Damage costs'!$C$16:$C$43,0))/1000,BP55*INDEX('Damage costs'!$AA$16:$AA$43,MATCH($B106,'Damage costs'!$C$16:$C$43,0))/1000),\"\")","v":""},{"$f":"IFERROR(IF(OR($C$110=FALSE,LEFT($B106,3)<>\"NOX\"),BQ55*INDEX('Damage costs'!$W$16:$W$43,MATCH($B106,'Damage costs'!$C$16:$C$43,0))/1000,BQ55*INDEX('Damage costs'!$AA$16:$AA$43,MATCH($B106,'Damage costs'!$C$16:$C$43,0))/1000),\"\")","v":""},{"$f":"IFERROR(IF(OR($C$110=FALSE,LEFT($B106,3)<>\"NOX\"),BR55*INDEX('Damage costs'!$W$16:$W$43,MATCH($B106,'Damage costs'!$C$16:$C$43,0))/1000,BR55*INDEX('Damage costs'!$AA$16:$AA$43,MATCH($B106,'Damage costs'!$C$16:$C$43,0))/1000),\"\")","v":""},{"$f":"IFERROR(IF(OR($C$110=FALSE,LEFT($B106,3)<>\"NOX\"),BS55*INDEX('Damage costs'!$W$16:$W$43,MATCH($B106,'Damage costs'!$C$16:$C$43,0))/1000,BS55*INDEX('Damage costs'!$AA$16:$AA$43,MATCH($B106,'Damage costs'!$C$16:$C$43,0))/1000),\"\")","v":""},{"$f":"IFERROR(IF(OR($C$110=FALSE,LEFT($B106,3)<>\"NOX\"),BT55*INDEX('Damage costs'!$W$16:$W$43,MATCH($B106,'Damage costs'!$C$16:$C$43,0))/1000,BT55*INDEX('Damage costs'!$AA$16:$AA$43,MATCH($B106,'Damage costs'!$C$16:$C$43,0))/1000),\"\")","v":""},{"$f":"IFERROR(IF(OR($C$110=FALSE,LEFT($B106,3)<>\"NOX\"),BU55*INDEX('Damage costs'!$W$16:$W$43,MATCH($B106,'Damage costs'!$C$16:$C$43,0))/1000,BU55*INDEX('Damage costs'!$AA$16:$AA$43,MATCH($B106,'Damage costs'!$C$16:$C$43,0))/1000),\"\")","v":""},{"$f":"IFERROR(IF(OR($C$110=FALSE,LEFT($B106,3)<>\"NOX\"),BV55*INDEX('Damage costs'!$W$16:$W$43,MATCH($B106,'Damage costs'!$C$16:$C$43,0))/1000,BV55*INDEX('Damage costs'!$AA$16:$AA$43,MATCH($B106,'Damage costs'!$C$16:$C$43,0))/1000),\"\")","v":""},{"$f":"IFERROR(IF(OR($C$110=FALSE,LEFT($B106,3)<>\"NOX\"),BW55*INDEX('Damage costs'!$W$16:$W$43,MATCH($B106,'Damage costs'!$C$16:$C$43,0))/1000,BW55*INDEX('Damage costs'!$AA$16:$AA$43,MATCH($B106,'Damage costs'!$C$16:$C$43,0))/1000),\"\")","v":""},{"$f":"IFERROR(IF(OR($C$110=FALSE,LEFT($B106,3)<>\"NOX\"),BX55*INDEX('Damage costs'!$W$16:$W$43,MATCH($B106,'Damage costs'!$C$16:$C$43,0))/1000,BX55*INDEX('Damage costs'!$AA$16:$AA$43,MATCH($B106,'Damage costs'!$C$16:$C$43,0))/1000),\"\")","v":""},{"$f":"IFERROR(IF(OR($C$110=FALSE,LEFT($B106,3)<>\"NOX\"),BY55*INDEX('Damage costs'!$W$16:$W$43,MATCH($B106,'Damage costs'!$C$16:$C$43,0))/1000,BY55*INDEX('Damage costs'!$AA$16:$AA$43,MATCH($B106,'Damage costs'!$C$16:$C$43,0))/1000),\"\")","v":""},{"$f":"IFERROR(IF(OR($C$110=FALSE,LEFT($B106,3)<>\"NOX\"),BZ55*INDEX('Damage costs'!$W$16:$W$43,MATCH($B106,'Damage costs'!$C$16:$C$43,0))/1000,BZ55*INDEX('Damage costs'!$AA$16:$AA$43,MATCH($B106,'Damage costs'!$C$16:$C$43,0))/1000),\"\")","v":""},{"$f":"IFERROR(IF(OR($C$110=FALSE,LEFT($B106,3)<>\"NOX\"),CA55*INDEX('Damage costs'!$W$16:$W$43,MATCH($B106,'Damage costs'!$C$16:$C$43,0))/1000,CA55*INDEX('Damage costs'!$AA$16:$AA$43,MATCH($B106,'Damage costs'!$C$16:$C$43,0))/1000),\"\")","v":""},{"$f":"IFERROR(IF(OR($C$110=FALSE,LEFT($B106,3)<>\"NOX\"),CB55*INDEX('Damage costs'!$W$16:$W$43,MATCH($B106,'Damage costs'!$C$16:$C$43,0))/1000,CB55*INDEX('Damage costs'!$AA$16:$AA$43,MATCH($B106,'Damage costs'!$C$16:$C$43,0))/1000),\"\")","v":""},{"$f":"IFERROR(IF(OR($C$110=FALSE,LEFT($B106,3)<>\"NOX\"),CC55*INDEX('Damage costs'!$W$16:$W$43,MATCH($B106,'Damage costs'!$C$16:$C$43,0))/1000,CC55*INDEX('Damage costs'!$AA$16:$AA$43,MATCH($B106,'Damage costs'!$C$16:$C$43,0))/1000),\"\")","v":""},{"$f":"IFERROR(IF(OR($C$110=FALSE,LEFT($B106,3)<>\"NOX\"),CD55*INDEX('Damage costs'!$W$16:$W$43,MATCH($B106,'Damage costs'!$C$16:$C$43,0))/1000,CD55*INDEX('Damage costs'!$AA$16:$AA$43,MATCH($B106,'Damage costs'!$C$16:$C$43,0))/1000),\"\")","v":""},{"$f":"IFERROR(IF(OR($C$110=FALSE,LEFT($B106,3)<>\"NOX\"),CE55*INDEX('Damage costs'!$W$16:$W$43,MATCH($B106,'Damage costs'!$C$16:$C$43,0))/1000,CE55*INDEX('Damage costs'!$AA$16:$AA$43,MATCH($B106,'Damage costs'!$C$16:$C$43,0))/1000),\"\")","v":""},{"$f":"IFERROR(IF(OR($C$110=FALSE,LEFT($B106,3)<>\"NOX\"),CF55*INDEX('Damage costs'!$W$16:$W$43,MATCH($B106,'Damage costs'!$C$16:$C$43,0))/1000,CF55*INDEX('Damage costs'!$AA$16:$AA$43,MATCH($B106,'Damage costs'!$C$16:$C$43,0))/1000),\"\")","v":""},{"$f":"IFERROR(IF(OR($C$110=FALSE,LEFT($B106,3)<>\"NOX\"),CG55*INDEX('Damage costs'!$W$16:$W$43,MATCH($B106,'Damage costs'!$C$16:$C$43,0))/1000,CG55*INDEX('Damage costs'!$AA$16:$AA$43,MATCH($B106,'Damage costs'!$C$16:$C$43,0))/1000),\"\")","v":""},{"$f":"IFERROR(IF(OR($C$110=FALSE,LEFT($B106,3)<>\"NOX\"),CH55*INDEX('Damage costs'!$W$16:$W$43,MATCH($B106,'Damage costs'!$C$16:$C$43,0))/1000,CH55*INDEX('Damage costs'!$AA$16:$AA$43,MATCH($B106,'Damage costs'!$C$16:$C$43,0))/1000),\"\")","v":""},{"$f":"IFERROR(IF(OR($C$110=FALSE,LEFT($B106,3)<>\"NOX\"),CI55*INDEX('Damage costs'!$W$16:$W$43,MATCH($B106,'Damage costs'!$C$16:$C$43,0))/1000,CI55*INDEX('Damage costs'!$AA$16:$AA$43,MATCH($B106,'Damage costs'!$C$16:$C$43,0))/1000),\"\")","v":""},{"$f":"IFERROR(IF(OR($C$110=FALSE,LEFT($B106,3)<>\"NOX\"),CJ55*INDEX('Damage costs'!$W$16:$W$43,MATCH($B106,'Damage costs'!$C$16:$C$43,0))/1000,CJ55*INDEX('Damage costs'!$AA$16:$AA$43,MATCH($B106,'Damage costs'!$C$16:$C$43,0))/1000),\"\")","v":""},{"$f":"IFERROR(IF(OR($C$110=FALSE,LEFT($B106,3)<>\"NOX\"),CK55*INDEX('Damage costs'!$W$16:$W$43,MATCH($B106,'Damage costs'!$C$16:$C$43,0))/1000,CK55*INDEX('Damage costs'!$AA$16:$AA$43,MATCH($B106,'Damage costs'!$C$16:$C$43,0))/1000),\"\")","v":""},{"$f":"IFERROR(IF(OR($C$110=FALSE,LEFT($B106,3)<>\"NOX\"),CL55*INDEX('Damage costs'!$W$16:$W$43,MATCH($B106,'Damage costs'!$C$16:$C$43,0))/1000,CL55*INDEX('Damage costs'!$AA$16:$AA$43,MATCH($B106,'Damage costs'!$C$16:$C$43,0))/1000),\"\")","v":""},{"$f":"IFERROR(IF(OR($C$110=FALSE,LEFT($B106,3)<>\"NOX\"),CM55*INDEX('Damage costs'!$W$16:$W$43,MATCH($B106,'Damage costs'!$C$16:$C$43,0))/1000,CM55*INDEX('Damage costs'!$AA$16:$AA$43,MATCH($B106,'Damage costs'!$C$16:$C$43,0))/1000),\"\")","v":""},{"$f":"IFERROR(IF(OR($C$110=FALSE,LEFT($B106,3)<>\"NOX\"),CN55*INDEX('Damage costs'!$W$16:$W$43,MATCH($B106,'Damage costs'!$C$16:$C$43,0))/1000,CN55*INDEX('Damage costs'!$AA$16:$AA$43,MATCH($B106,'Damage costs'!$C$16:$C$43,0))/1000),\"\")","v":""},{"$f":"IFERROR(IF(OR($C$110=FALSE,LEFT($B106,3)<>\"NOX\"),CO55*INDEX('Damage costs'!$W$16:$W$43,MATCH($B106,'Damage costs'!$C$16:$C$43,0))/1000,CO55*INDEX('Damage costs'!$AA$16:$AA$43,MATCH($B106,'Damage costs'!$C$16:$C$43,0))/1000),\"\")","v":""},{"$f":"IFERROR(IF(OR($C$110=FALSE,LEFT($B106,3)<>\"NOX\"),CP55*INDEX('Damage costs'!$W$16:$W$43,MATCH($B106,'Damage costs'!$C$16:$C$43,0))/1000,CP55*INDEX('Damage costs'!$AA$16:$AA$43,MATCH($B106,'Damage costs'!$C$16:$C$43,0))/1000),\"\")","v":""},{"$f":"IFERROR(IF(OR($C$110=FALSE,LEFT($B106,3)<>\"NOX\"),CQ55*INDEX('Damage costs'!$W$16:$W$43,MATCH($B106,'Damage costs'!$C$16:$C$43,0))/1000,CQ55*INDEX('Damage costs'!$AA$16:$AA$43,MATCH($B106,'Damage costs'!$C$16:$C$43,0))/1000),\"\")","v":""},{"$f":"IFERROR(IF(OR($C$110=FALSE,LEFT($B106,3)<>\"NOX\"),CR55*INDEX('Damage costs'!$W$16:$W$43,MATCH($B106,'Damage costs'!$C$16:$C$43,0))/1000,CR55*INDEX('Damage costs'!$AA$16:$AA$43,MATCH($B106,'Damage costs'!$C$16:$C$43,0))/1000),\"\")","v":""},{"$f":"IFERROR(IF(OR($C$110=FALSE,LEFT($B106,3)<>\"NOX\"),CS55*INDEX('Damage costs'!$W$16:$W$43,MATCH($B106,'Damage costs'!$C$16:$C$43,0))/1000,CS55*INDEX('Damage costs'!$AA$16:$AA$43,MATCH($B106,'Damage costs'!$C$16:$C$43,0))/1000),\"\")","v":""},{"$f":"IFERROR(IF(OR($C$110=FALSE,LEFT($B106,3)<>\"NOX\"),CT55*INDEX('Damage costs'!$W$16:$W$43,MATCH($B106,'Damage costs'!$C$16:$C$43,0))/1000,CT55*INDEX('Damage costs'!$AA$16:$AA$43,MATCH($B106,'Damage costs'!$C$16:$C$43,0))/1000),\"\")","v":""},{"$f":"IFERROR(IF(OR($C$110=FALSE,LEFT($B106,3)<>\"NOX\"),CU55*INDEX('Damage costs'!$W$16:$W$43,MATCH($B106,'Damage costs'!$C$16:$C$43,0))/1000,CU55*INDEX('Damage costs'!$AA$16:$AA$43,MATCH($B106,'Damage costs'!$C$16:$C$43,0))/1000),\"\")","v":""},{"$f":"IFERROR(IF(OR($C$110=FALSE,LEFT($B106,3)<>\"NOX\"),CV55*INDEX('Damage costs'!$W$16:$W$43,MATCH($B106,'Damage costs'!$C$16:$C$43,0))/1000,CV55*INDEX('Damage costs'!$AA$16:$AA$43,MATCH($B106,'Damage costs'!$C$16:$C$43,0))/1000),\"\")","v":""},{"$f":"IFERROR(IF(OR($C$110=FALSE,LEFT($B106,3)<>\"NOX\"),CW55*INDEX('Damage costs'!$W$16:$W$43,MATCH($B106,'Damage costs'!$C$16:$C$43,0))/1000,CW55*INDEX('Damage costs'!$AA$16:$AA$43,MATCH($B106,'Damage costs'!$C$16:$C$43,0))/1000),\"\")","v":""},{"$f":"IFERROR(IF(OR($C$110=FALSE,LEFT($B106,3)<>\"NOX\"),CX55*INDEX('Damage costs'!$W$16:$W$43,MATCH($B106,'Damage costs'!$C$16:$C$43,0))/1000,CX55*INDEX('Damage costs'!$AA$16:$AA$43,MATCH($B106,'Damage costs'!$C$16:$C$43,0))/1000),\"\")","v":""},{"$f":"IFERROR(IF(OR($C$110=FALSE,LEFT($B106,3)<>\"NOX\"),CY55*INDEX('Damage costs'!$W$16:$W$43,MATCH($B106,'Damage costs'!$C$16:$C$43,0))/1000,CY55*INDEX('Damage costs'!$AA$16:$AA$43,MATCH($B106,'Damage costs'!$C$16:$C$43,0))/1000),\"\")","v":""}]
[null,0,"£000's",{"$f":"IFERROR(IF(OR($C$110=FALSE,LEFT($B107,3)<>\"NOX\"),D56*INDEX('Damage costs'!$W$16:$W$43,MATCH($B107,'Damage costs'!$C$16:$C$43,0))/1000,D56*INDEX('Damage costs'!$AA$16:$AA$43,MATCH($B107,'Damage costs'!$C$16:$C$43,0))/1000),\"\")","v":""},{"$f":"IFERROR(IF(OR($C$110=FALSE,LEFT($B107,3)<>\"NOX\"),E56*INDEX('Damage costs'!$W$16:$W$43,MATCH($B107,'Damage costs'!$C$16:$C$43,0))/1000,E56*INDEX('Damage costs'!$AA$16:$AA$43,MATCH($B107,'Damage costs'!$C$16:$C$43,0))/1000),\"\")","v":""},{"$f":"IFERROR(IF(OR($C$110=FALSE,LEFT($B107,3)<>\"NOX\"),F56*INDEX('Damage costs'!$W$16:$W$43,MATCH($B107,'Damage costs'!$C$16:$C$43,0))/1000,F56*INDEX('Damage costs'!$AA$16:$AA$43,MATCH($B107,'Damage costs'!$C$16:$C$43,0))/1000),\"\")","v":""},{"$f":"IFERROR(IF(OR($C$110=FALSE,LEFT($B107,3)<>\"NOX\"),G56*INDEX('Damage costs'!$W$16:$W$43,MATCH($B107,'Damage costs'!$C$16:$C$43,0))/1000,G56*INDEX('Damage costs'!$AA$16:$AA$43,MATCH($B107,'Damage costs'!$C$16:$C$43,0))/1000),\"\")","v":""},{"$f":"IFERROR(IF(OR($C$110=FALSE,LEFT($B107,3)<>\"NOX\"),H56*INDEX('Damage costs'!$W$16:$W$43,MATCH($B107,'Damage costs'!$C$16:$C$43,0))/1000,H56*INDEX('Damage costs'!$AA$16:$AA$43,MATCH($B107,'Damage costs'!$C$16:$C$43,0))/1000),\"\")","v":""},{"$f":"IFERROR(IF(OR($C$110=FALSE,LEFT($B107,3)<>\"NOX\"),I56*INDEX('Damage costs'!$W$16:$W$43,MATCH($B107,'Damage costs'!$C$16:$C$43,0))/1000,I56*INDEX('Damage costs'!$AA$16:$AA$43,MATCH($B107,'Damage costs'!$C$16:$C$43,0))/1000),\"\")","v":""},{"$f":"IFERROR(IF(OR($C$110=FALSE,LEFT($B107,3)<>\"NOX\"),J56*INDEX('Damage costs'!$W$16:$W$43,MATCH($B107,'Damage costs'!$C$16:$C$43,0))/1000,J56*INDEX('Damage costs'!$AA$16:$AA$43,MATCH($B107,'Damage costs'!$C$16:$C$43,0))/1000),\"\")","v":""},{"$f":"IFERROR(IF(OR($C$110=FALSE,LEFT($B107,3)<>\"NOX\"),K56*INDEX('Damage costs'!$W$16:$W$43,MATCH($B107,'Damage costs'!$C$16:$C$43,0))/1000,K56*INDEX('Damage costs'!$AA$16:$AA$43,MATCH($B107,'Damage costs'!$C$16:$C$43,0))/1000),\"\")","v":""},{"$f":"IFERROR(IF(OR($C$110=FALSE,LEFT($B107,3)<>\"NOX\"),L56*INDEX('Damage costs'!$W$16:$W$43,MATCH($B107,'Damage costs'!$C$16:$C$43,0))/1000,L56*INDEX('Damage costs'!$AA$16:$AA$43,MATCH($B107,'Damage costs'!$C$16:$C$43,0))/1000),\"\")","v":""},{"$f":"IFERROR(IF(OR($C$110=FALSE,LEFT($B107,3)<>\"NOX\"),M56*INDEX('Damage costs'!$W$16:$W$43,MATCH($B107,'Damage costs'!$C$16:$C$43,0))/1000,M56*INDEX('Damage costs'!$AA$16:$AA$43,MATCH($B107,'Damage costs'!$C$16:$C$43,0))/1000),\"\")","v":""},{"$f":"IFERROR(IF(OR($C$110=FALSE,LEFT($B107,3)<>\"NOX\"),N56*INDEX('Damage costs'!$W$16:$W$43,MATCH($B107,'Damage costs'!$C$16:$C$43,0))/1000,N56*INDEX('Damage costs'!$AA$16:$AA$43,MATCH($B107,'Damage costs'!$C$16:$C$43,0))/1000),\"\")","v":""},{"$f":"IFERROR(IF(OR($C$110=FALSE,LEFT($B107,3)<>\"NOX\"),O56*INDEX('Damage costs'!$W$16:$W$43,MATCH($B107,'Damage costs'!$C$16:$C$43,0))/1000,O56*INDEX('Damage costs'!$AA$16:$AA$43,MATCH($B107,'Damage costs'!$C$16:$C$43,0))/1000),\"\")","v":""},{"$f":"IFERROR(IF(OR($C$110=FALSE,LEFT($B107,3)<>\"NOX\"),P56*INDEX('Damage costs'!$W$16:$W$43,MATCH($B107,'Damage costs'!$C$16:$C$43,0))/1000,P56*INDEX('Damage costs'!$AA$16:$AA$43,MATCH($B107,'Damage costs'!$C$16:$C$43,0))/1000),\"\")","v":""},{"$f":"IFERROR(IF(OR($C$110=FALSE,LEFT($B107,3)<>\"NOX\"),Q56*INDEX('Damage costs'!$W$16:$W$43,MATCH($B107,'Damage costs'!$C$16:$C$43,0))/1000,Q56*INDEX('Damage costs'!$AA$16:$AA$43,MATCH($B107,'Damage costs'!$C$16:$C$43,0))/1000),\"\")","v":""},{"$f":"IFERROR(IF(OR($C$110=FALSE,LEFT($B107,3)<>\"NOX\"),R56*INDEX('Damage costs'!$W$16:$W$43,MATCH($B107,'Damage costs'!$C$16:$C$43,0))/1000,R56*INDEX('Damage costs'!$AA$16:$AA$43,MATCH($B107,'Damage costs'!$C$16:$C$43,0))/1000),\"\")","v":""},{"$f":"IFERROR(IF(OR($C$110=FALSE,LEFT($B107,3)<>\"NOX\"),S56*INDEX('Damage costs'!$W$16:$W$43,MATCH($B107,'Damage costs'!$C$16:$C$43,0))/1000,S56*INDEX('Damage costs'!$AA$16:$AA$43,MATCH($B107,'Damage costs'!$C$16:$C$43,0))/1000),\"\")","v":""},{"$f":"IFERROR(IF(OR($C$110=FALSE,LEFT($B107,3)<>\"NOX\"),T56*INDEX('Damage costs'!$W$16:$W$43,MATCH($B107,'Damage costs'!$C$16:$C$43,0))/1000,T56*INDEX('Damage costs'!$AA$16:$AA$43,MATCH($B107,'Damage costs'!$C$16:$C$43,0))/1000),\"\")","v":""},{"$f":"IFERROR(IF(OR($C$110=FALSE,LEFT($B107,3)<>\"NOX\"),U56*INDEX('Damage costs'!$W$16:$W$43,MATCH($B107,'Damage costs'!$C$16:$C$43,0))/1000,U56*INDEX('Damage costs'!$AA$16:$AA$43,MATCH($B107,'Damage costs'!$C$16:$C$43,0))/1000),\"\")","v":""},{"$f":"IFERROR(IF(OR($C$110=FALSE,LEFT($B107,3)<>\"NOX\"),V56*INDEX('Damage costs'!$W$16:$W$43,MATCH($B107,'Damage costs'!$C$16:$C$43,0))/1000,V56*INDEX('Damage costs'!$AA$16:$AA$43,MATCH($B107,'Damage costs'!$C$16:$C$43,0))/1000),\"\")","v":""},{"$f":"IFERROR(IF(OR($C$110=FALSE,LEFT($B107,3)<>\"NOX\"),W56*INDEX('Damage costs'!$W$16:$W$43,MATCH($B107,'Damage costs'!$C$16:$C$43,0))/1000,W56*INDEX('Damage costs'!$AA$16:$AA$43,MATCH($B107,'Damage costs'!$C$16:$C$43,0))/1000),\"\")","v":""},{"$f":"IFERROR(IF(OR($C$110=FALSE,LEFT($B107,3)<>\"NOX\"),X56*INDEX('Damage costs'!$W$16:$W$43,MATCH($B107,'Damage costs'!$C$16:$C$43,0))/1000,X56*INDEX('Damage costs'!$AA$16:$AA$43,MATCH($B107,'Damage costs'!$C$16:$C$43,0))/1000),\"\")","v":""},{"$f":"IFERROR(IF(OR($C$110=FALSE,LEFT($B107,3)<>\"NOX\"),Y56*INDEX('Damage costs'!$W$16:$W$43,MATCH($B107,'Damage costs'!$C$16:$C$43,0))/1000,Y56*INDEX('Damage costs'!$AA$16:$AA$43,MATCH($B107,'Damage costs'!$C$16:$C$43,0))/1000),\"\")","v":""},{"$f":"IFERROR(IF(OR($C$110=FALSE,LEFT($B107,3)<>\"NOX\"),Z56*INDEX('Damage costs'!$W$16:$W$43,MATCH($B107,'Damage costs'!$C$16:$C$43,0))/1000,Z56*INDEX('Damage costs'!$AA$16:$AA$43,MATCH($B107,'Damage costs'!$C$16:$C$43,0))/1000),\"\")","v":""},{"$f":"IFERROR(IF(OR($C$110=FALSE,LEFT($B107,3)<>\"NOX\"),AA56*INDEX('Damage costs'!$W$16:$W$43,MATCH($B107,'Damage costs'!$C$16:$C$43,0))/1000,AA56*INDEX('Damage costs'!$AA$16:$AA$43,MATCH($B107,'Damage costs'!$C$16:$C$43,0))/1000),\"\")","v":""},{"$f":"IFERROR(IF(OR($C$110=FALSE,LEFT($B107,3)<>\"NOX\"),AB56*INDEX('Damage costs'!$W$16:$W$43,MATCH($B107,'Damage costs'!$C$16:$C$43,0))/1000,AB56*INDEX('Damage costs'!$AA$16:$AA$43,MATCH($B107,'Damage costs'!$C$16:$C$43,0))/1000),\"\")","v":""},{"$f":"IFERROR(IF(OR($C$110=FALSE,LEFT($B107,3)<>\"NOX\"),AC56*INDEX('Damage costs'!$W$16:$W$43,MATCH($B107,'Damage costs'!$C$16:$C$43,0))/1000,AC56*INDEX('Damage costs'!$AA$16:$AA$43,MATCH($B107,'Damage costs'!$C$16:$C$43,0))/1000),\"\")","v":""},{"$f":"IFERROR(IF(OR($C$110=FALSE,LEFT($B107,3)<>\"NOX\"),AD56*INDEX('Damage costs'!$W$16:$W$43,MATCH($B107,'Damage costs'!$C$16:$C$43,0))/1000,AD56*INDEX('Damage costs'!$AA$16:$AA$43,MATCH($B107,'Damage costs'!$C$16:$C$43,0))/1000),\"\")","v":""},{"$f":"IFERROR(IF(OR($C$110=FALSE,LEFT($B107,3)<>\"NOX\"),AE56*INDEX('Damage costs'!$W$16:$W$43,MATCH($B107,'Damage costs'!$C$16:$C$43,0))/1000,AE56*INDEX('Damage costs'!$AA$16:$AA$43,MATCH($B107,'Damage costs'!$C$16:$C$43,0))/1000),\"\")","v":""},{"$f":"IFERROR(IF(OR($C$110=FALSE,LEFT($B107,3)<>\"NOX\"),AF56*INDEX('Damage costs'!$W$16:$W$43,MATCH($B107,'Damage costs'!$C$16:$C$43,0))/1000,AF56*INDEX('Damage costs'!$AA$16:$AA$43,MATCH($B107,'Damage costs'!$C$16:$C$43,0))/1000),\"\")","v":""},{"$f":"IFERROR(IF(OR($C$110=FALSE,LEFT($B107,3)<>\"NOX\"),AG56*INDEX('Damage costs'!$W$16:$W$43,MATCH($B107,'Damage costs'!$C$16:$C$43,0))/1000,AG56*INDEX('Damage costs'!$AA$16:$AA$43,MATCH($B107,'Damage costs'!$C$16:$C$43,0))/1000),\"\")","v":""},{"$f":"IFERROR(IF(OR($C$110=FALSE,LEFT($B107,3)<>\"NOX\"),AH56*INDEX('Damage costs'!$W$16:$W$43,MATCH($B107,'Damage costs'!$C$16:$C$43,0))/1000,AH56*INDEX('Damage costs'!$AA$16:$AA$43,MATCH($B107,'Damage costs'!$C$16:$C$43,0))/1000),\"\")","v":""},{"$f":"IFERROR(IF(OR($C$110=FALSE,LEFT($B107,3)<>\"NOX\"),AI56*INDEX('Damage costs'!$W$16:$W$43,MATCH($B107,'Damage costs'!$C$16:$C$43,0))/1000,AI56*INDEX('Damage costs'!$AA$16:$AA$43,MATCH($B107,'Damage costs'!$C$16:$C$43,0))/1000),\"\")","v":""},{"$f":"IFERROR(IF(OR($C$110=FALSE,LEFT($B107,3)<>\"NOX\"),AJ56*INDEX('Damage costs'!$W$16:$W$43,MATCH($B107,'Damage costs'!$C$16:$C$43,0))/1000,AJ56*INDEX('Damage costs'!$AA$16:$AA$43,MATCH($B107,'Damage costs'!$C$16:$C$43,0))/1000),\"\")","v":""},{"$f":"IFERROR(IF(OR($C$110=FALSE,LEFT($B107,3)<>\"NOX\"),AK56*INDEX('Damage costs'!$W$16:$W$43,MATCH($B107,'Damage costs'!$C$16:$C$43,0))/1000,AK56*INDEX('Damage costs'!$AA$16:$AA$43,MATCH($B107,'Damage costs'!$C$16:$C$43,0))/1000),\"\")","v":""},{"$f":"IFERROR(IF(OR($C$110=FALSE,LEFT($B107,3)<>\"NOX\"),AL56*INDEX('Damage costs'!$W$16:$W$43,MATCH($B107,'Damage costs'!$C$16:$C$43,0))/1000,AL56*INDEX('Damage costs'!$AA$16:$AA$43,MATCH($B107,'Damage costs'!$C$16:$C$43,0))/1000),\"\")","v":""},{"$f":"IFERROR(IF(OR($C$110=FALSE,LEFT($B107,3)<>\"NOX\"),AM56*INDEX('Damage costs'!$W$16:$W$43,MATCH($B107,'Damage costs'!$C$16:$C$43,0))/1000,AM56*INDEX('Damage costs'!$AA$16:$AA$43,MATCH($B107,'Damage costs'!$C$16:$C$43,0))/1000),\"\")","v":""},{"$f":"IFERROR(IF(OR($C$110=FALSE,LEFT($B107,3)<>\"NOX\"),AN56*INDEX('Damage costs'!$W$16:$W$43,MATCH($B107,'Damage costs'!$C$16:$C$43,0))/1000,AN56*INDEX('Damage costs'!$AA$16:$AA$43,MATCH($B107,'Damage costs'!$C$16:$C$43,0))/1000),\"\")","v":""},{"$f":"IFERROR(IF(OR($C$110=FALSE,LEFT($B107,3)<>\"NOX\"),AO56*INDEX('Damage costs'!$W$16:$W$43,MATCH($B107,'Damage costs'!$C$16:$C$43,0))/1000,AO56*INDEX('Damage costs'!$AA$16:$AA$43,MATCH($B107,'Damage costs'!$C$16:$C$43,0))/1000),\"\")","v":""},{"$f":"IFERROR(IF(OR($C$110=FALSE,LEFT($B107,3)<>\"NOX\"),AP56*INDEX('Damage costs'!$W$16:$W$43,MATCH($B107,'Damage costs'!$C$16:$C$43,0))/1000,AP56*INDEX('Damage costs'!$AA$16:$AA$43,MATCH($B107,'Damage costs'!$C$16:$C$43,0))/1000),\"\")","v":""},{"$f":"IFERROR(IF(OR($C$110=FALSE,LEFT($B107,3)<>\"NOX\"),AQ56*INDEX('Damage costs'!$W$16:$W$43,MATCH($B107,'Damage costs'!$C$16:$C$43,0))/1000,AQ56*INDEX('Damage costs'!$AA$16:$AA$43,MATCH($B107,'Damage costs'!$C$16:$C$43,0))/1000),\"\")","v":""},{"$f":"IFERROR(IF(OR($C$110=FALSE,LEFT($B107,3)<>\"NOX\"),AR56*INDEX('Damage costs'!$W$16:$W$43,MATCH($B107,'Damage costs'!$C$16:$C$43,0))/1000,AR56*INDEX('Damage costs'!$AA$16:$AA$43,MATCH($B107,'Damage costs'!$C$16:$C$43,0))/1000),\"\")","v":""},{"$f":"IFERROR(IF(OR($C$110=FALSE,LEFT($B107,3)<>\"NOX\"),AS56*INDEX('Damage costs'!$W$16:$W$43,MATCH($B107,'Damage costs'!$C$16:$C$43,0))/1000,AS56*INDEX('Damage costs'!$AA$16:$AA$43,MATCH($B107,'Damage costs'!$C$16:$C$43,0))/1000),\"\")","v":""},{"$f":"IFERROR(IF(OR($C$110=FALSE,LEFT($B107,3)<>\"NOX\"),AT56*INDEX('Damage costs'!$W$16:$W$43,MATCH($B107,'Damage costs'!$C$16:$C$43,0))/1000,AT56*INDEX('Damage costs'!$AA$16:$AA$43,MATCH($B107,'Damage costs'!$C$16:$C$43,0))/1000),\"\")","v":""},{"$f":"IFERROR(IF(OR($C$110=FALSE,LEFT($B107,3)<>\"NOX\"),AU56*INDEX('Damage costs'!$W$16:$W$43,MATCH($B107,'Damage costs'!$C$16:$C$43,0))/1000,AU56*INDEX('Damage costs'!$AA$16:$AA$43,MATCH($B107,'Damage costs'!$C$16:$C$43,0))/1000),\"\")","v":""},{"$f":"IFERROR(IF(OR($C$110=FALSE,LEFT($B107,3)<>\"NOX\"),AV56*INDEX('Damage costs'!$W$16:$W$43,MATCH($B107,'Damage costs'!$C$16:$C$43,0))/1000,AV56*INDEX('Damage costs'!$AA$16:$AA$43,MATCH($B107,'Damage costs'!$C$16:$C$43,0))/1000),\"\")","v":""},{"$f":"IFERROR(IF(OR($C$110=FALSE,LEFT($B107,3)<>\"NOX\"),AW56*INDEX('Damage costs'!$W$16:$W$43,MATCH($B107,'Damage costs'!$C$16:$C$43,0))/1000,AW56*INDEX('Damage costs'!$AA$16:$AA$43,MATCH($B107,'Damage costs'!$C$16:$C$43,0))/1000),\"\")","v":""},{"$f":"IFERROR(IF(OR($C$110=FALSE,LEFT($B107,3)<>\"NOX\"),AX56*INDEX('Damage costs'!$W$16:$W$43,MATCH($B107,'Damage costs'!$C$16:$C$43,0))/1000,AX56*INDEX('Damage costs'!$AA$16:$AA$43,MATCH($B107,'Damage costs'!$C$16:$C$43,0))/1000),\"\")","v":""},{"$f":"IFERROR(IF(OR($C$110=FALSE,LEFT($B107,3)<>\"NOX\"),AY56*INDEX('Damage costs'!$W$16:$W$43,MATCH($B107,'Damage costs'!$C$16:$C$43,0))/1000,AY56*INDEX('Damage costs'!$AA$16:$AA$43,MATCH($B107,'Damage costs'!$C$16:$C$43,0))/1000),\"\")","v":""},{"$f":"IFERROR(IF(OR($C$110=FALSE,LEFT($B107,3)<>\"NOX\"),AZ56*INDEX('Damage costs'!$W$16:$W$43,MATCH($B107,'Damage costs'!$C$16:$C$43,0))/1000,AZ56*INDEX('Damage costs'!$AA$16:$AA$43,MATCH($B107,'Damage costs'!$C$16:$C$43,0))/1000),\"\")","v":""},{"$f":"IFERROR(IF(OR($C$110=FALSE,LEFT($B107,3)<>\"NOX\"),BA56*INDEX('Damage costs'!$W$16:$W$43,MATCH($B107,'Damage costs'!$C$16:$C$43,0))/1000,BA56*INDEX('Damage costs'!$AA$16:$AA$43,MATCH($B107,'Damage costs'!$C$16:$C$43,0))/1000),\"\")","v":""},{"$f":"IFERROR(IF(OR($C$110=FALSE,LEFT($B107,3)<>\"NOX\"),BB56*INDEX('Damage costs'!$W$16:$W$43,MATCH($B107,'Damage costs'!$C$16:$C$43,0))/1000,BB56*INDEX('Damage costs'!$AA$16:$AA$43,MATCH($B107,'Damage costs'!$C$16:$C$43,0))/1000),\"\")","v":""},{"$f":"IFERROR(IF(OR($C$110=FALSE,LEFT($B107,3)<>\"NOX\"),BC56*INDEX('Damage costs'!$W$16:$W$43,MATCH($B107,'Damage costs'!$C$16:$C$43,0))/1000,BC56*INDEX('Damage costs'!$AA$16:$AA$43,MATCH($B107,'Damage costs'!$C$16:$C$43,0))/1000),\"\")","v":""},{"$f":"IFERROR(IF(OR($C$110=FALSE,LEFT($B107,3)<>\"NOX\"),BD56*INDEX('Damage costs'!$W$16:$W$43,MATCH($B107,'Damage costs'!$C$16:$C$43,0))/1000,BD56*INDEX('Damage costs'!$AA$16:$AA$43,MATCH($B107,'Damage costs'!$C$16:$C$43,0))/1000),\"\")","v":""},{"$f":"IFERROR(IF(OR($C$110=FALSE,LEFT($B107,3)<>\"NOX\"),BE56*INDEX('Damage costs'!$W$16:$W$43,MATCH($B107,'Damage costs'!$C$16:$C$43,0))/1000,BE56*INDEX('Damage costs'!$AA$16:$AA$43,MATCH($B107,'Damage costs'!$C$16:$C$43,0))/1000),\"\")","v":""},{"$f":"IFERROR(IF(OR($C$110=FALSE,LEFT($B107,3)<>\"NOX\"),BF56*INDEX('Damage costs'!$W$16:$W$43,MATCH($B107,'Damage costs'!$C$16:$C$43,0))/1000,BF56*INDEX('Damage costs'!$AA$16:$AA$43,MATCH($B107,'Damage costs'!$C$16:$C$43,0))/1000),\"\")","v":""},{"$f":"IFERROR(IF(OR($C$110=FALSE,LEFT($B107,3)<>\"NOX\"),BG56*INDEX('Damage costs'!$W$16:$W$43,MATCH($B107,'Damage costs'!$C$16:$C$43,0))/1000,BG56*INDEX('Damage costs'!$AA$16:$AA$43,MATCH($B107,'Damage costs'!$C$16:$C$43,0))/1000),\"\")","v":""},{"$f":"IFERROR(IF(OR($C$110=FALSE,LEFT($B107,3)<>\"NOX\"),BH56*INDEX('Damage costs'!$W$16:$W$43,MATCH($B107,'Damage costs'!$C$16:$C$43,0))/1000,BH56*INDEX('Damage costs'!$AA$16:$AA$43,MATCH($B107,'Damage costs'!$C$16:$C$43,0))/1000),\"\")","v":""},{"$f":"IFERROR(IF(OR($C$110=FALSE,LEFT($B107,3)<>\"NOX\"),BI56*INDEX('Damage costs'!$W$16:$W$43,MATCH($B107,'Damage costs'!$C$16:$C$43,0))/1000,BI56*INDEX('Damage costs'!$AA$16:$AA$43,MATCH($B107,'Damage costs'!$C$16:$C$43,0))/1000),\"\")","v":""},{"$f":"IFERROR(IF(OR($C$110=FALSE,LEFT($B107,3)<>\"NOX\"),BJ56*INDEX('Damage costs'!$W$16:$W$43,MATCH($B107,'Damage costs'!$C$16:$C$43,0))/1000,BJ56*INDEX('Damage costs'!$AA$16:$AA$43,MATCH($B107,'Damage costs'!$C$16:$C$43,0))/1000),\"\")","v":""},{"$f":"IFERROR(IF(OR($C$110=FALSE,LEFT($B107,3)<>\"NOX\"),BK56*INDEX('Damage costs'!$W$16:$W$43,MATCH($B107,'Damage costs'!$C$16:$C$43,0))/1000,BK56*INDEX('Damage costs'!$AA$16:$AA$43,MATCH($B107,'Damage costs'!$C$16:$C$43,0))/1000),\"\")","v":""},{"$f":"IFERROR(IF(OR($C$110=FALSE,LEFT($B107,3)<>\"NOX\"),BL56*INDEX('Damage costs'!$W$16:$W$43,MATCH($B107,'Damage costs'!$C$16:$C$43,0))/1000,BL56*INDEX('Damage costs'!$AA$16:$AA$43,MATCH($B107,'Damage costs'!$C$16:$C$43,0))/1000),\"\")","v":""},{"$f":"IFERROR(IF(OR($C$110=FALSE,LEFT($B107,3)<>\"NOX\"),BM56*INDEX('Damage costs'!$W$16:$W$43,MATCH($B107,'Damage costs'!$C$16:$C$43,0))/1000,BM56*INDEX('Damage costs'!$AA$16:$AA$43,MATCH($B107,'Damage costs'!$C$16:$C$43,0))/1000),\"\")","v":""},{"$f":"IFERROR(IF(OR($C$110=FALSE,LEFT($B107,3)<>\"NOX\"),BN56*INDEX('Damage costs'!$W$16:$W$43,MATCH($B107,'Damage costs'!$C$16:$C$43,0))/1000,BN56*INDEX('Damage costs'!$AA$16:$AA$43,MATCH($B107,'Damage costs'!$C$16:$C$43,0))/1000),\"\")","v":""},{"$f":"IFERROR(IF(OR($C$110=FALSE,LEFT($B107,3)<>\"NOX\"),BO56*INDEX('Damage costs'!$W$16:$W$43,MATCH($B107,'Damage costs'!$C$16:$C$43,0))/1000,BO56*INDEX('Damage costs'!$AA$16:$AA$43,MATCH($B107,'Damage costs'!$C$16:$C$43,0))/1000),\"\")","v":""},{"$f":"IFERROR(IF(OR($C$110=FALSE,LEFT($B107,3)<>\"NOX\"),BP56*INDEX('Damage costs'!$W$16:$W$43,MATCH($B107,'Damage costs'!$C$16:$C$43,0))/1000,BP56*INDEX('Damage costs'!$AA$16:$AA$43,MATCH($B107,'Damage costs'!$C$16:$C$43,0))/1000),\"\")","v":""},{"$f":"IFERROR(IF(OR($C$110=FALSE,LEFT($B107,3)<>\"NOX\"),BQ56*INDEX('Damage costs'!$W$16:$W$43,MATCH($B107,'Damage costs'!$C$16:$C$43,0))/1000,BQ56*INDEX('Damage costs'!$AA$16:$AA$43,MATCH($B107,'Damage costs'!$C$16:$C$43,0))/1000),\"\")","v":""},{"$f":"IFERROR(IF(OR($C$110=FALSE,LEFT($B107,3)<>\"NOX\"),BR56*INDEX('Damage costs'!$W$16:$W$43,MATCH($B107,'Damage costs'!$C$16:$C$43,0))/1000,BR56*INDEX('Damage costs'!$AA$16:$AA$43,MATCH($B107,'Damage costs'!$C$16:$C$43,0))/1000),\"\")","v":""},{"$f":"IFERROR(IF(OR($C$110=FALSE,LEFT($B107,3)<>\"NOX\"),BS56*INDEX('Damage costs'!$W$16:$W$43,MATCH($B107,'Damage costs'!$C$16:$C$43,0))/1000,BS56*INDEX('Damage costs'!$AA$16:$AA$43,MATCH($B107,'Damage costs'!$C$16:$C$43,0))/1000),\"\")","v":""},{"$f":"IFERROR(IF(OR($C$110=FALSE,LEFT($B107,3)<>\"NOX\"),BT56*INDEX('Damage costs'!$W$16:$W$43,MATCH($B107,'Damage costs'!$C$16:$C$43,0))/1000,BT56*INDEX('Damage costs'!$AA$16:$AA$43,MATCH($B107,'Damage costs'!$C$16:$C$43,0))/1000),\"\")","v":""},{"$f":"IFERROR(IF(OR($C$110=FALSE,LEFT($B107,3)<>\"NOX\"),BU56*INDEX('Damage costs'!$W$16:$W$43,MATCH($B107,'Damage costs'!$C$16:$C$43,0))/1000,BU56*INDEX('Damage costs'!$AA$16:$AA$43,MATCH($B107,'Damage costs'!$C$16:$C$43,0))/1000),\"\")","v":""},{"$f":"IFERROR(IF(OR($C$110=FALSE,LEFT($B107,3)<>\"NOX\"),BV56*INDEX('Damage costs'!$W$16:$W$43,MATCH($B107,'Damage costs'!$C$16:$C$43,0))/1000,BV56*INDEX('Damage costs'!$AA$16:$AA$43,MATCH($B107,'Damage costs'!$C$16:$C$43,0))/1000),\"\")","v":""},{"$f":"IFERROR(IF(OR($C$110=FALSE,LEFT($B107,3)<>\"NOX\"),BW56*INDEX('Damage costs'!$W$16:$W$43,MATCH($B107,'Damage costs'!$C$16:$C$43,0))/1000,BW56*INDEX('Damage costs'!$AA$16:$AA$43,MATCH($B107,'Damage costs'!$C$16:$C$43,0))/1000),\"\")","v":""},{"$f":"IFERROR(IF(OR($C$110=FALSE,LEFT($B107,3)<>\"NOX\"),BX56*INDEX('Damage costs'!$W$16:$W$43,MATCH($B107,'Damage costs'!$C$16:$C$43,0))/1000,BX56*INDEX('Damage costs'!$AA$16:$AA$43,MATCH($B107,'Damage costs'!$C$16:$C$43,0))/1000),\"\")","v":""},{"$f":"IFERROR(IF(OR($C$110=FALSE,LEFT($B107,3)<>\"NOX\"),BY56*INDEX('Damage costs'!$W$16:$W$43,MATCH($B107,'Damage costs'!$C$16:$C$43,0))/1000,BY56*INDEX('Damage costs'!$AA$16:$AA$43,MATCH($B107,'Damage costs'!$C$16:$C$43,0))/1000),\"\")","v":""},{"$f":"IFERROR(IF(OR($C$110=FALSE,LEFT($B107,3)<>\"NOX\"),BZ56*INDEX('Damage costs'!$W$16:$W$43,MATCH($B107,'Damage costs'!$C$16:$C$43,0))/1000,BZ56*INDEX('Damage costs'!$AA$16:$AA$43,MATCH($B107,'Damage costs'!$C$16:$C$43,0))/1000),\"\")","v":""},{"$f":"IFERROR(IF(OR($C$110=FALSE,LEFT($B107,3)<>\"NOX\"),CA56*INDEX('Damage costs'!$W$16:$W$43,MATCH($B107,'Damage costs'!$C$16:$C$43,0))/1000,CA56*INDEX('Damage costs'!$AA$16:$AA$43,MATCH($B107,'Damage costs'!$C$16:$C$43,0))/1000),\"\")","v":""},{"$f":"IFERROR(IF(OR($C$110=FALSE,LEFT($B107,3)<>\"NOX\"),CB56*INDEX('Damage costs'!$W$16:$W$43,MATCH($B107,'Damage costs'!$C$16:$C$43,0))/1000,CB56*INDEX('Damage costs'!$AA$16:$AA$43,MATCH($B107,'Damage costs'!$C$16:$C$43,0))/1000),\"\")","v":""},{"$f":"IFERROR(IF(OR($C$110=FALSE,LEFT($B107,3)<>\"NOX\"),CC56*INDEX('Damage costs'!$W$16:$W$43,MATCH($B107,'Damage costs'!$C$16:$C$43,0))/1000,CC56*INDEX('Damage costs'!$AA$16:$AA$43,MATCH($B107,'Damage costs'!$C$16:$C$43,0))/1000),\"\")","v":""},{"$f":"IFERROR(IF(OR($C$110=FALSE,LEFT($B107,3)<>\"NOX\"),CD56*INDEX('Damage costs'!$W$16:$W$43,MATCH($B107,'Damage costs'!$C$16:$C$43,0))/1000,CD56*INDEX('Damage costs'!$AA$16:$AA$43,MATCH($B107,'Damage costs'!$C$16:$C$43,0))/1000),\"\")","v":""},{"$f":"IFERROR(IF(OR($C$110=FALSE,LEFT($B107,3)<>\"NOX\"),CE56*INDEX('Damage costs'!$W$16:$W$43,MATCH($B107,'Damage costs'!$C$16:$C$43,0))/1000,CE56*INDEX('Damage costs'!$AA$16:$AA$43,MATCH($B107,'Damage costs'!$C$16:$C$43,0))/1000),\"\")","v":""},{"$f":"IFERROR(IF(OR($C$110=FALSE,LEFT($B107,3)<>\"NOX\"),CF56*INDEX('Damage costs'!$W$16:$W$43,MATCH($B107,'Damage costs'!$C$16:$C$43,0))/1000,CF56*INDEX('Damage costs'!$AA$16:$AA$43,MATCH($B107,'Damage costs'!$C$16:$C$43,0))/1000),\"\")","v":""},{"$f":"IFERROR(IF(OR($C$110=FALSE,LEFT($B107,3)<>\"NOX\"),CG56*INDEX('Damage costs'!$W$16:$W$43,MATCH($B107,'Damage costs'!$C$16:$C$43,0))/1000,CG56*INDEX('Damage costs'!$AA$16:$AA$43,MATCH($B107,'Damage costs'!$C$16:$C$43,0))/1000),\"\")","v":""},{"$f":"IFERROR(IF(OR($C$110=FALSE,LEFT($B107,3)<>\"NOX\"),CH56*INDEX('Damage costs'!$W$16:$W$43,MATCH($B107,'Damage costs'!$C$16:$C$43,0))/1000,CH56*INDEX('Damage costs'!$AA$16:$AA$43,MATCH($B107,'Damage costs'!$C$16:$C$43,0))/1000),\"\")","v":""},{"$f":"IFERROR(IF(OR($C$110=FALSE,LEFT($B107,3)<>\"NOX\"),CI56*INDEX('Damage costs'!$W$16:$W$43,MATCH($B107,'Damage costs'!$C$16:$C$43,0))/1000,CI56*INDEX('Damage costs'!$AA$16:$AA$43,MATCH($B107,'Damage costs'!$C$16:$C$43,0))/1000),\"\")","v":""},{"$f":"IFERROR(IF(OR($C$110=FALSE,LEFT($B107,3)<>\"NOX\"),CJ56*INDEX('Damage costs'!$W$16:$W$43,MATCH($B107,'Damage costs'!$C$16:$C$43,0))/1000,CJ56*INDEX('Damage costs'!$AA$16:$AA$43,MATCH($B107,'Damage costs'!$C$16:$C$43,0))/1000),\"\")","v":""},{"$f":"IFERROR(IF(OR($C$110=FALSE,LEFT($B107,3)<>\"NOX\"),CK56*INDEX('Damage costs'!$W$16:$W$43,MATCH($B107,'Damage costs'!$C$16:$C$43,0))/1000,CK56*INDEX('Damage costs'!$AA$16:$AA$43,MATCH($B107,'Damage costs'!$C$16:$C$43,0))/1000),\"\")","v":""},{"$f":"IFERROR(IF(OR($C$110=FALSE,LEFT($B107,3)<>\"NOX\"),CL56*INDEX('Damage costs'!$W$16:$W$43,MATCH($B107,'Damage costs'!$C$16:$C$43,0))/1000,CL56*INDEX('Damage costs'!$AA$16:$AA$43,MATCH($B107,'Damage costs'!$C$16:$C$43,0))/1000),\"\")","v":""},{"$f":"IFERROR(IF(OR($C$110=FALSE,LEFT($B107,3)<>\"NOX\"),CM56*INDEX('Damage costs'!$W$16:$W$43,MATCH($B107,'Damage costs'!$C$16:$C$43,0))/1000,CM56*INDEX('Damage costs'!$AA$16:$AA$43,MATCH($B107,'Damage costs'!$C$16:$C$43,0))/1000),\"\")","v":""},{"$f":"IFERROR(IF(OR($C$110=FALSE,LEFT($B107,3)<>\"NOX\"),CN56*INDEX('Damage costs'!$W$16:$W$43,MATCH($B107,'Damage costs'!$C$16:$C$43,0))/1000,CN56*INDEX('Damage costs'!$AA$16:$AA$43,MATCH($B107,'Damage costs'!$C$16:$C$43,0))/1000),\"\")","v":""},{"$f":"IFERROR(IF(OR($C$110=FALSE,LEFT($B107,3)<>\"NOX\"),CO56*INDEX('Damage costs'!$W$16:$W$43,MATCH($B107,'Damage costs'!$C$16:$C$43,0))/1000,CO56*INDEX('Damage costs'!$AA$16:$AA$43,MATCH($B107,'Damage costs'!$C$16:$C$43,0))/1000),\"\")","v":""},{"$f":"IFERROR(IF(OR($C$110=FALSE,LEFT($B107,3)<>\"NOX\"),CP56*INDEX('Damage costs'!$W$16:$W$43,MATCH($B107,'Damage costs'!$C$16:$C$43,0))/1000,CP56*INDEX('Damage costs'!$AA$16:$AA$43,MATCH($B107,'Damage costs'!$C$16:$C$43,0))/1000),\"\")","v":""},{"$f":"IFERROR(IF(OR($C$110=FALSE,LEFT($B107,3)<>\"NOX\"),CQ56*INDEX('Damage costs'!$W$16:$W$43,MATCH($B107,'Damage costs'!$C$16:$C$43,0))/1000,CQ56*INDEX('Damage costs'!$AA$16:$AA$43,MATCH($B107,'Damage costs'!$C$16:$C$43,0))/1000),\"\")","v":""},{"$f":"IFERROR(IF(OR($C$110=FALSE,LEFT($B107,3)<>\"NOX\"),CR56*INDEX('Damage costs'!$W$16:$W$43,MATCH($B107,'Damage costs'!$C$16:$C$43,0))/1000,CR56*INDEX('Damage costs'!$AA$16:$AA$43,MATCH($B107,'Damage costs'!$C$16:$C$43,0))/1000),\"\")","v":""},{"$f":"IFERROR(IF(OR($C$110=FALSE,LEFT($B107,3)<>\"NOX\"),CS56*INDEX('Damage costs'!$W$16:$W$43,MATCH($B107,'Damage costs'!$C$16:$C$43,0))/1000,CS56*INDEX('Damage costs'!$AA$16:$AA$43,MATCH($B107,'Damage costs'!$C$16:$C$43,0))/1000),\"\")","v":""},{"$f":"IFERROR(IF(OR($C$110=FALSE,LEFT($B107,3)<>\"NOX\"),CT56*INDEX('Damage costs'!$W$16:$W$43,MATCH($B107,'Damage costs'!$C$16:$C$43,0))/1000,CT56*INDEX('Damage costs'!$AA$16:$AA$43,MATCH($B107,'Damage costs'!$C$16:$C$43,0))/1000),\"\")","v":""},{"$f":"IFERROR(IF(OR($C$110=FALSE,LEFT($B107,3)<>\"NOX\"),CU56*INDEX('Damage costs'!$W$16:$W$43,MATCH($B107,'Damage costs'!$C$16:$C$43,0))/1000,CU56*INDEX('Damage costs'!$AA$16:$AA$43,MATCH($B107,'Damage costs'!$C$16:$C$43,0))/1000),\"\")","v":""},{"$f":"IFERROR(IF(OR($C$110=FALSE,LEFT($B107,3)<>\"NOX\"),CV56*INDEX('Damage costs'!$W$16:$W$43,MATCH($B107,'Damage costs'!$C$16:$C$43,0))/1000,CV56*INDEX('Damage costs'!$AA$16:$AA$43,MATCH($B107,'Damage costs'!$C$16:$C$43,0))/1000),\"\")","v":""},{"$f":"IFERROR(IF(OR($C$110=FALSE,LEFT($B107,3)<>\"NOX\"),CW56*INDEX('Damage costs'!$W$16:$W$43,MATCH($B107,'Damage costs'!$C$16:$C$43,0))/1000,CW56*INDEX('Damage costs'!$AA$16:$AA$43,MATCH($B107,'Damage costs'!$C$16:$C$43,0))/1000),\"\")","v":""},{"$f":"IFERROR(IF(OR($C$110=FALSE,LEFT($B107,3)<>\"NOX\"),CX56*INDEX('Damage costs'!$W$16:$W$43,MATCH($B107,'Damage costs'!$C$16:$C$43,0))/1000,CX56*INDEX('Damage costs'!$AA$16:$AA$43,MATCH($B107,'Damage costs'!$C$16:$C$43,0))/1000),\"\")","v":""},{"$f":"IFERROR(IF(OR($C$110=FALSE,LEFT($B107,3)<>\"NOX\"),CY56*INDEX('Damage costs'!$W$16:$W$43,MATCH($B107,'Damage costs'!$C$16:$C$43,0))/1000,CY56*INDEX('Damage costs'!$AA$16:$AA$43,MATCH($B107,'Damage costs'!$C$16:$C$43,0))/1000),\"\")","v":""}]
[null,0,"£000's",{"$f":"IFERROR(IF(OR($C$110=FALSE,LEFT($B108,3)<>\"NOX\"),D57*INDEX('Damage costs'!$W$16:$W$43,MATCH($B108,'Damage costs'!$C$16:$C$43,0))/1000,D57*INDEX('Damage costs'!$AA$16:$AA$43,MATCH($B108,'Damage costs'!$C$16:$C$43,0))/1000),\"\")","v":""},{"$f":"IFERROR(IF(OR($C$110=FALSE,LEFT($B108,3)<>\"NOX\"),E57*INDEX('Damage costs'!$W$16:$W$43,MATCH($B108,'Damage costs'!$C$16:$C$43,0))/1000,E57*INDEX('Damage costs'!$AA$16:$AA$43,MATCH($B108,'Damage costs'!$C$16:$C$43,0))/1000),\"\")","v":""},{"$f":"IFERROR(IF(OR($C$110=FALSE,LEFT($B108,3)<>\"NOX\"),F57*INDEX('Damage costs'!$W$16:$W$43,MATCH($B108,'Damage costs'!$C$16:$C$43,0))/1000,F57*INDEX('Damage costs'!$AA$16:$AA$43,MATCH($B108,'Damage costs'!$C$16:$C$43,0))/1000),\"\")","v":""},{"$f":"IFERROR(IF(OR($C$110=FALSE,LEFT($B108,3)<>\"NOX\"),G57*INDEX('Damage costs'!$W$16:$W$43,MATCH($B108,'Damage costs'!$C$16:$C$43,0))/1000,G57*INDEX('Damage costs'!$AA$16:$AA$43,MATCH($B108,'Damage costs'!$C$16:$C$43,0))/1000),\"\")","v":""},{"$f":"IFERROR(IF(OR($C$110=FALSE,LEFT($B108,3)<>\"NOX\"),H57*INDEX('Damage costs'!$W$16:$W$43,MATCH($B108,'Damage costs'!$C$16:$C$43,0))/1000,H57*INDEX('Damage costs'!$AA$16:$AA$43,MATCH($B108,'Damage costs'!$C$16:$C$43,0))/1000),\"\")","v":""},{"$f":"IFERROR(IF(OR($C$110=FALSE,LEFT($B108,3)<>\"NOX\"),I57*INDEX('Damage costs'!$W$16:$W$43,MATCH($B108,'Damage costs'!$C$16:$C$43,0))/1000,I57*INDEX('Damage costs'!$AA$16:$AA$43,MATCH($B108,'Damage costs'!$C$16:$C$43,0))/1000),\"\")","v":""},{"$f":"IFERROR(IF(OR($C$110=FALSE,LEFT($B108,3)<>\"NOX\"),J57*INDEX('Damage costs'!$W$16:$W$43,MATCH($B108,'Damage costs'!$C$16:$C$43,0))/1000,J57*INDEX('Damage costs'!$AA$16:$AA$43,MATCH($B108,'Damage costs'!$C$16:$C$43,0))/1000),\"\")","v":""},{"$f":"IFERROR(IF(OR($C$110=FALSE,LEFT($B108,3)<>\"NOX\"),K57*INDEX('Damage costs'!$W$16:$W$43,MATCH($B108,'Damage costs'!$C$16:$C$43,0))/1000,K57*INDEX('Damage costs'!$AA$16:$AA$43,MATCH($B108,'Damage costs'!$C$16:$C$43,0))/1000),\"\")","v":""},{"$f":"IFERROR(IF(OR($C$110=FALSE,LEFT($B108,3)<>\"NOX\"),L57*INDEX('Damage costs'!$W$16:$W$43,MATCH($B108,'Damage costs'!$C$16:$C$43,0))/1000,L57*INDEX('Damage costs'!$AA$16:$AA$43,MATCH($B108,'Damage costs'!$C$16:$C$43,0))/1000),\"\")","v":""},{"$f":"IFERROR(IF(OR($C$110=FALSE,LEFT($B108,3)<>\"NOX\"),M57*INDEX('Damage costs'!$W$16:$W$43,MATCH($B108,'Damage costs'!$C$16:$C$43,0))/1000,M57*INDEX('Damage costs'!$AA$16:$AA$43,MATCH($B108,'Damage costs'!$C$16:$C$43,0))/1000),\"\")","v":""},{"$f":"IFERROR(IF(OR($C$110=FALSE,LEFT($B108,3)<>\"NOX\"),N57*INDEX('Damage costs'!$W$16:$W$43,MATCH($B108,'Damage costs'!$C$16:$C$43,0))/1000,N57*INDEX('Damage costs'!$AA$16:$AA$43,MATCH($B108,'Damage costs'!$C$16:$C$43,0))/1000),\"\")","v":""},{"$f":"IFERROR(IF(OR($C$110=FALSE,LEFT($B108,3)<>\"NOX\"),O57*INDEX('Damage costs'!$W$16:$W$43,MATCH($B108,'Damage costs'!$C$16:$C$43,0))/1000,O57*INDEX('Damage costs'!$AA$16:$AA$43,MATCH($B108,'Damage costs'!$C$16:$C$43,0))/1000),\"\")","v":""},{"$f":"IFERROR(IF(OR($C$110=FALSE,LEFT($B108,3)<>\"NOX\"),P57*INDEX('Damage costs'!$W$16:$W$43,MATCH($B108,'Damage costs'!$C$16:$C$43,0))/1000,P57*INDEX('Damage costs'!$AA$16:$AA$43,MATCH($B108,'Damage costs'!$C$16:$C$43,0))/1000),\"\")","v":""},{"$f":"IFERROR(IF(OR($C$110=FALSE,LEFT($B108,3)<>\"NOX\"),Q57*INDEX('Damage costs'!$W$16:$W$43,MATCH($B108,'Damage costs'!$C$16:$C$43,0))/1000,Q57*INDEX('Damage costs'!$AA$16:$AA$43,MATCH($B108,'Damage costs'!$C$16:$C$43,0))/1000),\"\")","v":""},{"$f":"IFERROR(IF(OR($C$110=FALSE,LEFT($B108,3)<>\"NOX\"),R57*INDEX('Damage costs'!$W$16:$W$43,MATCH($B108,'Damage costs'!$C$16:$C$43,0))/1000,R57*INDEX('Damage costs'!$AA$16:$AA$43,MATCH($B108,'Damage costs'!$C$16:$C$43,0))/1000),\"\")","v":""},{"$f":"IFERROR(IF(OR($C$110=FALSE,LEFT($B108,3)<>\"NOX\"),S57*INDEX('Damage costs'!$W$16:$W$43,MATCH($B108,'Damage costs'!$C$16:$C$43,0))/1000,S57*INDEX('Damage costs'!$AA$16:$AA$43,MATCH($B108,'Damage costs'!$C$16:$C$43,0))/1000),\"\")","v":""},{"$f":"IFERROR(IF(OR($C$110=FALSE,LEFT($B108,3)<>\"NOX\"),T57*INDEX('Damage costs'!$W$16:$W$43,MATCH($B108,'Damage costs'!$C$16:$C$43,0))/1000,T57*INDEX('Damage costs'!$AA$16:$AA$43,MATCH($B108,'Damage costs'!$C$16:$C$43,0))/1000),\"\")","v":""},{"$f":"IFERROR(IF(OR($C$110=FALSE,LEFT($B108,3)<>\"NOX\"),U57*INDEX('Damage costs'!$W$16:$W$43,MATCH($B108,'Damage costs'!$C$16:$C$43,0))/1000,U57*INDEX('Damage costs'!$AA$16:$AA$43,MATCH($B108,'Damage costs'!$C$16:$C$43,0))/1000),\"\")","v":""},{"$f":"IFERROR(IF(OR($C$110=FALSE,LEFT($B108,3)<>\"NOX\"),V57*INDEX('Damage costs'!$W$16:$W$43,MATCH($B108,'Damage costs'!$C$16:$C$43,0))/1000,V57*INDEX('Damage costs'!$AA$16:$AA$43,MATCH($B108,'Damage costs'!$C$16:$C$43,0))/1000),\"\")","v":""},{"$f":"IFERROR(IF(OR($C$110=FALSE,LEFT($B108,3)<>\"NOX\"),W57*INDEX('Damage costs'!$W$16:$W$43,MATCH($B108,'Damage costs'!$C$16:$C$43,0))/1000,W57*INDEX('Damage costs'!$AA$16:$AA$43,MATCH($B108,'Damage costs'!$C$16:$C$43,0))/1000),\"\")","v":""},{"$f":"IFERROR(IF(OR($C$110=FALSE,LEFT($B108,3)<>\"NOX\"),X57*INDEX('Damage costs'!$W$16:$W$43,MATCH($B108,'Damage costs'!$C$16:$C$43,0))/1000,X57*INDEX('Damage costs'!$AA$16:$AA$43,MATCH($B108,'Damage costs'!$C$16:$C$43,0))/1000),\"\")","v":""},{"$f":"IFERROR(IF(OR($C$110=FALSE,LEFT($B108,3)<>\"NOX\"),Y57*INDEX('Damage costs'!$W$16:$W$43,MATCH($B108,'Damage costs'!$C$16:$C$43,0))/1000,Y57*INDEX('Damage costs'!$AA$16:$AA$43,MATCH($B108,'Damage costs'!$C$16:$C$43,0))/1000),\"\")","v":""},{"$f":"IFERROR(IF(OR($C$110=FALSE,LEFT($B108,3)<>\"NOX\"),Z57*INDEX('Damage costs'!$W$16:$W$43,MATCH($B108,'Damage costs'!$C$16:$C$43,0))/1000,Z57*INDEX('Damage costs'!$AA$16:$AA$43,MATCH($B108,'Damage costs'!$C$16:$C$43,0))/1000),\"\")","v":""},{"$f":"IFERROR(IF(OR($C$110=FALSE,LEFT($B108,3)<>\"NOX\"),AA57*INDEX('Damage costs'!$W$16:$W$43,MATCH($B108,'Damage costs'!$C$16:$C$43,0))/1000,AA57*INDEX('Damage costs'!$AA$16:$AA$43,MATCH($B108,'Damage costs'!$C$16:$C$43,0))/1000),\"\")","v":""},{"$f":"IFERROR(IF(OR($C$110=FALSE,LEFT($B108,3)<>\"NOX\"),AB57*INDEX('Damage costs'!$W$16:$W$43,MATCH($B108,'Damage costs'!$C$16:$C$43,0))/1000,AB57*INDEX('Damage costs'!$AA$16:$AA$43,MATCH($B108,'Damage costs'!$C$16:$C$43,0))/1000),\"\")","v":""},{"$f":"IFERROR(IF(OR($C$110=FALSE,LEFT($B108,3)<>\"NOX\"),AC57*INDEX('Damage costs'!$W$16:$W$43,MATCH($B108,'Damage costs'!$C$16:$C$43,0))/1000,AC57*INDEX('Damage costs'!$AA$16:$AA$43,MATCH($B108,'Damage costs'!$C$16:$C$43,0))/1000),\"\")","v":""},{"$f":"IFERROR(IF(OR($C$110=FALSE,LEFT($B108,3)<>\"NOX\"),AD57*INDEX('Damage costs'!$W$16:$W$43,MATCH($B108,'Damage costs'!$C$16:$C$43,0))/1000,AD57*INDEX('Damage costs'!$AA$16:$AA$43,MATCH($B108,'Damage costs'!$C$16:$C$43,0))/1000),\"\")","v":""},{"$f":"IFERROR(IF(OR($C$110=FALSE,LEFT($B108,3)<>\"NOX\"),AE57*INDEX('Damage costs'!$W$16:$W$43,MATCH($B108,'Damage costs'!$C$16:$C$43,0))/1000,AE57*INDEX('Damage costs'!$AA$16:$AA$43,MATCH($B108,'Damage costs'!$C$16:$C$43,0))/1000),\"\")","v":""},{"$f":"IFERROR(IF(OR($C$110=FALSE,LEFT($B108,3)<>\"NOX\"),AF57*INDEX('Damage costs'!$W$16:$W$43,MATCH($B108,'Damage costs'!$C$16:$C$43,0))/1000,AF57*INDEX('Damage costs'!$AA$16:$AA$43,MATCH($B108,'Damage costs'!$C$16:$C$43,0))/1000),\"\")","v":""},{"$f":"IFERROR(IF(OR($C$110=FALSE,LEFT($B108,3)<>\"NOX\"),AG57*INDEX('Damage costs'!$W$16:$W$43,MATCH($B108,'Damage costs'!$C$16:$C$43,0))/1000,AG57*INDEX('Damage costs'!$AA$16:$AA$43,MATCH($B108,'Damage costs'!$C$16:$C$43,0))/1000),\"\")","v":""},{"$f":"IFERROR(IF(OR($C$110=FALSE,LEFT($B108,3)<>\"NOX\"),AH57*INDEX('Damage costs'!$W$16:$W$43,MATCH($B108,'Damage costs'!$C$16:$C$43,0))/1000,AH57*INDEX('Damage costs'!$AA$16:$AA$43,MATCH($B108,'Damage costs'!$C$16:$C$43,0))/1000),\"\")","v":""},{"$f":"IFERROR(IF(OR($C$110=FALSE,LEFT($B108,3)<>\"NOX\"),AI57*INDEX('Damage costs'!$W$16:$W$43,MATCH($B108,'Damage costs'!$C$16:$C$43,0))/1000,AI57*INDEX('Damage costs'!$AA$16:$AA$43,MATCH($B108,'Damage costs'!$C$16:$C$43,0))/1000),\"\")","v":""},{"$f":"IFERROR(IF(OR($C$110=FALSE,LEFT($B108,3)<>\"NOX\"),AJ57*INDEX('Damage costs'!$W$16:$W$43,MATCH($B108,'Damage costs'!$C$16:$C$43,0))/1000,AJ57*INDEX('Damage costs'!$AA$16:$AA$43,MATCH($B108,'Damage costs'!$C$16:$C$43,0))/1000),\"\")","v":""},{"$f":"IFERROR(IF(OR($C$110=FALSE,LEFT($B108,3)<>\"NOX\"),AK57*INDEX('Damage costs'!$W$16:$W$43,MATCH($B108,'Damage costs'!$C$16:$C$43,0))/1000,AK57*INDEX('Damage costs'!$AA$16:$AA$43,MATCH($B108,'Damage costs'!$C$16:$C$43,0))/1000),\"\")","v":""},{"$f":"IFERROR(IF(OR($C$110=FALSE,LEFT($B108,3)<>\"NOX\"),AL57*INDEX('Damage costs'!$W$16:$W$43,MATCH($B108,'Damage costs'!$C$16:$C$43,0))/1000,AL57*INDEX('Damage costs'!$AA$16:$AA$43,MATCH($B108,'Damage costs'!$C$16:$C$43,0))/1000),\"\")","v":""},{"$f":"IFERROR(IF(OR($C$110=FALSE,LEFT($B108,3)<>\"NOX\"),AM57*INDEX('Damage costs'!$W$16:$W$43,MATCH($B108,'Damage costs'!$C$16:$C$43,0))/1000,AM57*INDEX('Damage costs'!$AA$16:$AA$43,MATCH($B108,'Damage costs'!$C$16:$C$43,0))/1000),\"\")","v":""},{"$f":"IFERROR(IF(OR($C$110=FALSE,LEFT($B108,3)<>\"NOX\"),AN57*INDEX('Damage costs'!$W$16:$W$43,MATCH($B108,'Damage costs'!$C$16:$C$43,0))/1000,AN57*INDEX('Damage costs'!$AA$16:$AA$43,MATCH($B108,'Damage costs'!$C$16:$C$43,0))/1000),\"\")","v":""},{"$f":"IFERROR(IF(OR($C$110=FALSE,LEFT($B108,3)<>\"NOX\"),AO57*INDEX('Damage costs'!$W$16:$W$43,MATCH($B108,'Damage costs'!$C$16:$C$43,0))/1000,AO57*INDEX('Damage costs'!$AA$16:$AA$43,MATCH($B108,'Damage costs'!$C$16:$C$43,0))/1000),\"\")","v":""},{"$f":"IFERROR(IF(OR($C$110=FALSE,LEFT($B108,3)<>\"NOX\"),AP57*INDEX('Damage costs'!$W$16:$W$43,MATCH($B108,'Damage costs'!$C$16:$C$43,0))/1000,AP57*INDEX('Damage costs'!$AA$16:$AA$43,MATCH($B108,'Damage costs'!$C$16:$C$43,0))/1000),\"\")","v":""},{"$f":"IFERROR(IF(OR($C$110=FALSE,LEFT($B108,3)<>\"NOX\"),AQ57*INDEX('Damage costs'!$W$16:$W$43,MATCH($B108,'Damage costs'!$C$16:$C$43,0))/1000,AQ57*INDEX('Damage costs'!$AA$16:$AA$43,MATCH($B108,'Damage costs'!$C$16:$C$43,0))/1000),\"\")","v":""},{"$f":"IFERROR(IF(OR($C$110=FALSE,LEFT($B108,3)<>\"NOX\"),AR57*INDEX('Damage costs'!$W$16:$W$43,MATCH($B108,'Damage costs'!$C$16:$C$43,0))/1000,AR57*INDEX('Damage costs'!$AA$16:$AA$43,MATCH($B108,'Damage costs'!$C$16:$C$43,0))/1000),\"\")","v":""},{"$f":"IFERROR(IF(OR($C$110=FALSE,LEFT($B108,3)<>\"NOX\"),AS57*INDEX('Damage costs'!$W$16:$W$43,MATCH($B108,'Damage costs'!$C$16:$C$43,0))/1000,AS57*INDEX('Damage costs'!$AA$16:$AA$43,MATCH($B108,'Damage costs'!$C$16:$C$43,0))/1000),\"\")","v":""},{"$f":"IFERROR(IF(OR($C$110=FALSE,LEFT($B108,3)<>\"NOX\"),AT57*INDEX('Damage costs'!$W$16:$W$43,MATCH($B108,'Damage costs'!$C$16:$C$43,0))/1000,AT57*INDEX('Damage costs'!$AA$16:$AA$43,MATCH($B108,'Damage costs'!$C$16:$C$43,0))/1000),\"\")","v":""},{"$f":"IFERROR(IF(OR($C$110=FALSE,LEFT($B108,3)<>\"NOX\"),AU57*INDEX('Damage costs'!$W$16:$W$43,MATCH($B108,'Damage costs'!$C$16:$C$43,0))/1000,AU57*INDEX('Damage costs'!$AA$16:$AA$43,MATCH($B108,'Damage costs'!$C$16:$C$43,0))/1000),\"\")","v":""},{"$f":"IFERROR(IF(OR($C$110=FALSE,LEFT($B108,3)<>\"NOX\"),AV57*INDEX('Damage costs'!$W$16:$W$43,MATCH($B108,'Damage costs'!$C$16:$C$43,0))/1000,AV57*INDEX('Damage costs'!$AA$16:$AA$43,MATCH($B108,'Damage costs'!$C$16:$C$43,0))/1000),\"\")","v":""},{"$f":"IFERROR(IF(OR($C$110=FALSE,LEFT($B108,3)<>\"NOX\"),AW57*INDEX('Damage costs'!$W$16:$W$43,MATCH($B108,'Damage costs'!$C$16:$C$43,0))/1000,AW57*INDEX('Damage costs'!$AA$16:$AA$43,MATCH($B108,'Damage costs'!$C$16:$C$43,0))/1000),\"\")","v":""},{"$f":"IFERROR(IF(OR($C$110=FALSE,LEFT($B108,3)<>\"NOX\"),AX57*INDEX('Damage costs'!$W$16:$W$43,MATCH($B108,'Damage costs'!$C$16:$C$43,0))/1000,AX57*INDEX('Damage costs'!$AA$16:$AA$43,MATCH($B108,'Damage costs'!$C$16:$C$43,0))/1000),\"\")","v":""},{"$f":"IFERROR(IF(OR($C$110=FALSE,LEFT($B108,3)<>\"NOX\"),AY57*INDEX('Damage costs'!$W$16:$W$43,MATCH($B108,'Damage costs'!$C$16:$C$43,0))/1000,AY57*INDEX('Damage costs'!$AA$16:$AA$43,MATCH($B108,'Damage costs'!$C$16:$C$43,0))/1000),\"\")","v":""},{"$f":"IFERROR(IF(OR($C$110=FALSE,LEFT($B108,3)<>\"NOX\"),AZ57*INDEX('Damage costs'!$W$16:$W$43,MATCH($B108,'Damage costs'!$C$16:$C$43,0))/1000,AZ57*INDEX('Damage costs'!$AA$16:$AA$43,MATCH($B108,'Damage costs'!$C$16:$C$43,0))/1000),\"\")","v":""},{"$f":"IFERROR(IF(OR($C$110=FALSE,LEFT($B108,3)<>\"NOX\"),BA57*INDEX('Damage costs'!$W$16:$W$43,MATCH($B108,'Damage costs'!$C$16:$C$43,0))/1000,BA57*INDEX('Damage costs'!$AA$16:$AA$43,MATCH($B108,'Damage costs'!$C$16:$C$43,0))/1000),\"\")","v":""},{"$f":"IFERROR(IF(OR($C$110=FALSE,LEFT($B108,3)<>\"NOX\"),BB57*INDEX('Damage costs'!$W$16:$W$43,MATCH($B108,'Damage costs'!$C$16:$C$43,0))/1000,BB57*INDEX('Damage costs'!$AA$16:$AA$43,MATCH($B108,'Damage costs'!$C$16:$C$43,0))/1000),\"\")","v":""},{"$f":"IFERROR(IF(OR($C$110=FALSE,LEFT($B108,3)<>\"NOX\"),BC57*INDEX('Damage costs'!$W$16:$W$43,MATCH($B108,'Damage costs'!$C$16:$C$43,0))/1000,BC57*INDEX('Damage costs'!$AA$16:$AA$43,MATCH($B108,'Damage costs'!$C$16:$C$43,0))/1000),\"\")","v":""},{"$f":"IFERROR(IF(OR($C$110=FALSE,LEFT($B108,3)<>\"NOX\"),BD57*INDEX('Damage costs'!$W$16:$W$43,MATCH($B108,'Damage costs'!$C$16:$C$43,0))/1000,BD57*INDEX('Damage costs'!$AA$16:$AA$43,MATCH($B108,'Damage costs'!$C$16:$C$43,0))/1000),\"\")","v":""},{"$f":"IFERROR(IF(OR($C$110=FALSE,LEFT($B108,3)<>\"NOX\"),BE57*INDEX('Damage costs'!$W$16:$W$43,MATCH($B108,'Damage costs'!$C$16:$C$43,0))/1000,BE57*INDEX('Damage costs'!$AA$16:$AA$43,MATCH($B108,'Damage costs'!$C$16:$C$43,0))/1000),\"\")","v":""},{"$f":"IFERROR(IF(OR($C$110=FALSE,LEFT($B108,3)<>\"NOX\"),BF57*INDEX('Damage costs'!$W$16:$W$43,MATCH($B108,'Damage costs'!$C$16:$C$43,0))/1000,BF57*INDEX('Damage costs'!$AA$16:$AA$43,MATCH($B108,'Damage costs'!$C$16:$C$43,0))/1000),\"\")","v":""},{"$f":"IFERROR(IF(OR($C$110=FALSE,LEFT($B108,3)<>\"NOX\"),BG57*INDEX('Damage costs'!$W$16:$W$43,MATCH($B108,'Damage costs'!$C$16:$C$43,0))/1000,BG57*INDEX('Damage costs'!$AA$16:$AA$43,MATCH($B108,'Damage costs'!$C$16:$C$43,0))/1000),\"\")","v":""},{"$f":"IFERROR(IF(OR($C$110=FALSE,LEFT($B108,3)<>\"NOX\"),BH57*INDEX('Damage costs'!$W$16:$W$43,MATCH($B108,'Damage costs'!$C$16:$C$43,0))/1000,BH57*INDEX('Damage costs'!$AA$16:$AA$43,MATCH($B108,'Damage costs'!$C$16:$C$43,0))/1000),\"\")","v":""},{"$f":"IFERROR(IF(OR($C$110=FALSE,LEFT($B108,3)<>\"NOX\"),BI57*INDEX('Damage costs'!$W$16:$W$43,MATCH($B108,'Damage costs'!$C$16:$C$43,0))/1000,BI57*INDEX('Damage costs'!$AA$16:$AA$43,MATCH($B108,'Damage costs'!$C$16:$C$43,0))/1000),\"\")","v":""},{"$f":"IFERROR(IF(OR($C$110=FALSE,LEFT($B108,3)<>\"NOX\"),BJ57*INDEX('Damage costs'!$W$16:$W$43,MATCH($B108,'Damage costs'!$C$16:$C$43,0))/1000,BJ57*INDEX('Damage costs'!$AA$16:$AA$43,MATCH($B108,'Damage costs'!$C$16:$C$43,0))/1000),\"\")","v":""},{"$f":"IFERROR(IF(OR($C$110=FALSE,LEFT($B108,3)<>\"NOX\"),BK57*INDEX('Damage costs'!$W$16:$W$43,MATCH($B108,'Damage costs'!$C$16:$C$43,0))/1000,BK57*INDEX('Damage costs'!$AA$16:$AA$43,MATCH($B108,'Damage costs'!$C$16:$C$43,0))/1000),\"\")","v":""},{"$f":"IFERROR(IF(OR($C$110=FALSE,LEFT($B108,3)<>\"NOX\"),BL57*INDEX('Damage costs'!$W$16:$W$43,MATCH($B108,'Damage costs'!$C$16:$C$43,0))/1000,BL57*INDEX('Damage costs'!$AA$16:$AA$43,MATCH($B108,'Damage costs'!$C$16:$C$43,0))/1000),\"\")","v":""},{"$f":"IFERROR(IF(OR($C$110=FALSE,LEFT($B108,3)<>\"NOX\"),BM57*INDEX('Damage costs'!$W$16:$W$43,MATCH($B108,'Damage costs'!$C$16:$C$43,0))/1000,BM57*INDEX('Damage costs'!$AA$16:$AA$43,MATCH($B108,'Damage costs'!$C$16:$C$43,0))/1000),\"\")","v":""},{"$f":"IFERROR(IF(OR($C$110=FALSE,LEFT($B108,3)<>\"NOX\"),BN57*INDEX('Damage costs'!$W$16:$W$43,MATCH($B108,'Damage costs'!$C$16:$C$43,0))/1000,BN57*INDEX('Damage costs'!$AA$16:$AA$43,MATCH($B108,'Damage costs'!$C$16:$C$43,0))/1000),\"\")","v":""},{"$f":"IFERROR(IF(OR($C$110=FALSE,LEFT($B108,3)<>\"NOX\"),BO57*INDEX('Damage costs'!$W$16:$W$43,MATCH($B108,'Damage costs'!$C$16:$C$43,0))/1000,BO57*INDEX('Damage costs'!$AA$16:$AA$43,MATCH($B108,'Damage costs'!$C$16:$C$43,0))/1000),\"\")","v":""},{"$f":"IFERROR(IF(OR($C$110=FALSE,LEFT($B108,3)<>\"NOX\"),BP57*INDEX('Damage costs'!$W$16:$W$43,MATCH($B108,'Damage costs'!$C$16:$C$43,0))/1000,BP57*INDEX('Damage costs'!$AA$16:$AA$43,MATCH($B108,'Damage costs'!$C$16:$C$43,0))/1000),\"\")","v":""},{"$f":"IFERROR(IF(OR($C$110=FALSE,LEFT($B108,3)<>\"NOX\"),BQ57*INDEX('Damage costs'!$W$16:$W$43,MATCH($B108,'Damage costs'!$C$16:$C$43,0))/1000,BQ57*INDEX('Damage costs'!$AA$16:$AA$43,MATCH($B108,'Damage costs'!$C$16:$C$43,0))/1000),\"\")","v":""},{"$f":"IFERROR(IF(OR($C$110=FALSE,LEFT($B108,3)<>\"NOX\"),BR57*INDEX('Damage costs'!$W$16:$W$43,MATCH($B108,'Damage costs'!$C$16:$C$43,0))/1000,BR57*INDEX('Damage costs'!$AA$16:$AA$43,MATCH($B108,'Damage costs'!$C$16:$C$43,0))/1000),\"\")","v":""},{"$f":"IFERROR(IF(OR($C$110=FALSE,LEFT($B108,3)<>\"NOX\"),BS57*INDEX('Damage costs'!$W$16:$W$43,MATCH($B108,'Damage costs'!$C$16:$C$43,0))/1000,BS57*INDEX('Damage costs'!$AA$16:$AA$43,MATCH($B108,'Damage costs'!$C$16:$C$43,0))/1000),\"\")","v":""},{"$f":"IFERROR(IF(OR($C$110=FALSE,LEFT($B108,3)<>\"NOX\"),BT57*INDEX('Damage costs'!$W$16:$W$43,MATCH($B108,'Damage costs'!$C$16:$C$43,0))/1000,BT57*INDEX('Damage costs'!$AA$16:$AA$43,MATCH($B108,'Damage costs'!$C$16:$C$43,0))/1000),\"\")","v":""},{"$f":"IFERROR(IF(OR($C$110=FALSE,LEFT($B108,3)<>\"NOX\"),BU57*INDEX('Damage costs'!$W$16:$W$43,MATCH($B108,'Damage costs'!$C$16:$C$43,0))/1000,BU57*INDEX('Damage costs'!$AA$16:$AA$43,MATCH($B108,'Damage costs'!$C$16:$C$43,0))/1000),\"\")","v":""},{"$f":"IFERROR(IF(OR($C$110=FALSE,LEFT($B108,3)<>\"NOX\"),BV57*INDEX('Damage costs'!$W$16:$W$43,MATCH($B108,'Damage costs'!$C$16:$C$43,0))/1000,BV57*INDEX('Damage costs'!$AA$16:$AA$43,MATCH($B108,'Damage costs'!$C$16:$C$43,0))/1000),\"\")","v":""},{"$f":"IFERROR(IF(OR($C$110=FALSE,LEFT($B108,3)<>\"NOX\"),BW57*INDEX('Damage costs'!$W$16:$W$43,MATCH($B108,'Damage costs'!$C$16:$C$43,0))/1000,BW57*INDEX('Damage costs'!$AA$16:$AA$43,MATCH($B108,'Damage costs'!$C$16:$C$43,0))/1000),\"\")","v":""},{"$f":"IFERROR(IF(OR($C$110=FALSE,LEFT($B108,3)<>\"NOX\"),BX57*INDEX('Damage costs'!$W$16:$W$43,MATCH($B108,'Damage costs'!$C$16:$C$43,0))/1000,BX57*INDEX('Damage costs'!$AA$16:$AA$43,MATCH($B108,'Damage costs'!$C$16:$C$43,0))/1000),\"\")","v":""},{"$f":"IFERROR(IF(OR($C$110=FALSE,LEFT($B108,3)<>\"NOX\"),BY57*INDEX('Damage costs'!$W$16:$W$43,MATCH($B108,'Damage costs'!$C$16:$C$43,0))/1000,BY57*INDEX('Damage costs'!$AA$16:$AA$43,MATCH($B108,'Damage costs'!$C$16:$C$43,0))/1000),\"\")","v":""},{"$f":"IFERROR(IF(OR($C$110=FALSE,LEFT($B108,3)<>\"NOX\"),BZ57*INDEX('Damage costs'!$W$16:$W$43,MATCH($B108,'Damage costs'!$C$16:$C$43,0))/1000,BZ57*INDEX('Damage costs'!$AA$16:$AA$43,MATCH($B108,'Damage costs'!$C$16:$C$43,0))/1000),\"\")","v":""},{"$f":"IFERROR(IF(OR($C$110=FALSE,LEFT($B108,3)<>\"NOX\"),CA57*INDEX('Damage costs'!$W$16:$W$43,MATCH($B108,'Damage costs'!$C$16:$C$43,0))/1000,CA57*INDEX('Damage costs'!$AA$16:$AA$43,MATCH($B108,'Damage costs'!$C$16:$C$43,0))/1000),\"\")","v":""},{"$f":"IFERROR(IF(OR($C$110=FALSE,LEFT($B108,3)<>\"NOX\"),CB57*INDEX('Damage costs'!$W$16:$W$43,MATCH($B108,'Damage costs'!$C$16:$C$43,0))/1000,CB57*INDEX('Damage costs'!$AA$16:$AA$43,MATCH($B108,'Damage costs'!$C$16:$C$43,0))/1000),\"\")","v":""},{"$f":"IFERROR(IF(OR($C$110=FALSE,LEFT($B108,3)<>\"NOX\"),CC57*INDEX('Damage costs'!$W$16:$W$43,MATCH($B108,'Damage costs'!$C$16:$C$43,0))/1000,CC57*INDEX('Damage costs'!$AA$16:$AA$43,MATCH($B108,'Damage costs'!$C$16:$C$43,0))/1000),\"\")","v":""},{"$f":"IFERROR(IF(OR($C$110=FALSE,LEFT($B108,3)<>\"NOX\"),CD57*INDEX('Damage costs'!$W$16:$W$43,MATCH($B108,'Damage costs'!$C$16:$C$43,0))/1000,CD57*INDEX('Damage costs'!$AA$16:$AA$43,MATCH($B108,'Damage costs'!$C$16:$C$43,0))/1000),\"\")","v":""},{"$f":"IFERROR(IF(OR($C$110=FALSE,LEFT($B108,3)<>\"NOX\"),CE57*INDEX('Damage costs'!$W$16:$W$43,MATCH($B108,'Damage costs'!$C$16:$C$43,0))/1000,CE57*INDEX('Damage costs'!$AA$16:$AA$43,MATCH($B108,'Damage costs'!$C$16:$C$43,0))/1000),\"\")","v":""},{"$f":"IFERROR(IF(OR($C$110=FALSE,LEFT($B108,3)<>\"NOX\"),CF57*INDEX('Damage costs'!$W$16:$W$43,MATCH($B108,'Damage costs'!$C$16:$C$43,0))/1000,CF57*INDEX('Damage costs'!$AA$16:$AA$43,MATCH($B108,'Damage costs'!$C$16:$C$43,0))/1000),\"\")","v":""},{"$f":"IFERROR(IF(OR($C$110=FALSE,LEFT($B108,3)<>\"NOX\"),CG57*INDEX('Damage costs'!$W$16:$W$43,MATCH($B108,'Damage costs'!$C$16:$C$43,0))/1000,CG57*INDEX('Damage costs'!$AA$16:$AA$43,MATCH($B108,'Damage costs'!$C$16:$C$43,0))/1000),\"\")","v":""},{"$f":"IFERROR(IF(OR($C$110=FALSE,LEFT($B108,3)<>\"NOX\"),CH57*INDEX('Damage costs'!$W$16:$W$43,MATCH($B108,'Damage costs'!$C$16:$C$43,0))/1000,CH57*INDEX('Damage costs'!$AA$16:$AA$43,MATCH($B108,'Damage costs'!$C$16:$C$43,0))/1000),\"\")","v":""},{"$f":"IFERROR(IF(OR($C$110=FALSE,LEFT($B108,3)<>\"NOX\"),CI57*INDEX('Damage costs'!$W$16:$W$43,MATCH($B108,'Damage costs'!$C$16:$C$43,0))/1000,CI57*INDEX('Damage costs'!$AA$16:$AA$43,MATCH($B108,'Damage costs'!$C$16:$C$43,0))/1000),\"\")","v":""},{"$f":"IFERROR(IF(OR($C$110=FALSE,LEFT($B108,3)<>\"NOX\"),CJ57*INDEX('Damage costs'!$W$16:$W$43,MATCH($B108,'Damage costs'!$C$16:$C$43,0))/1000,CJ57*INDEX('Damage costs'!$AA$16:$AA$43,MATCH($B108,'Damage costs'!$C$16:$C$43,0))/1000),\"\")","v":""},{"$f":"IFERROR(IF(OR($C$110=FALSE,LEFT($B108,3)<>\"NOX\"),CK57*INDEX('Damage costs'!$W$16:$W$43,MATCH($B108,'Damage costs'!$C$16:$C$43,0))/1000,CK57*INDEX('Damage costs'!$AA$16:$AA$43,MATCH($B108,'Damage costs'!$C$16:$C$43,0))/1000),\"\")","v":""},{"$f":"IFERROR(IF(OR($C$110=FALSE,LEFT($B108,3)<>\"NOX\"),CL57*INDEX('Damage costs'!$W$16:$W$43,MATCH($B108,'Damage costs'!$C$16:$C$43,0))/1000,CL57*INDEX('Damage costs'!$AA$16:$AA$43,MATCH($B108,'Damage costs'!$C$16:$C$43,0))/1000),\"\")","v":""},{"$f":"IFERROR(IF(OR($C$110=FALSE,LEFT($B108,3)<>\"NOX\"),CM57*INDEX('Damage costs'!$W$16:$W$43,MATCH($B108,'Damage costs'!$C$16:$C$43,0))/1000,CM57*INDEX('Damage costs'!$AA$16:$AA$43,MATCH($B108,'Damage costs'!$C$16:$C$43,0))/1000),\"\")","v":""},{"$f":"IFERROR(IF(OR($C$110=FALSE,LEFT($B108,3)<>\"NOX\"),CN57*INDEX('Damage costs'!$W$16:$W$43,MATCH($B108,'Damage costs'!$C$16:$C$43,0))/1000,CN57*INDEX('Damage costs'!$AA$16:$AA$43,MATCH($B108,'Damage costs'!$C$16:$C$43,0))/1000),\"\")","v":""},{"$f":"IFERROR(IF(OR($C$110=FALSE,LEFT($B108,3)<>\"NOX\"),CO57*INDEX('Damage costs'!$W$16:$W$43,MATCH($B108,'Damage costs'!$C$16:$C$43,0))/1000,CO57*INDEX('Damage costs'!$AA$16:$AA$43,MATCH($B108,'Damage costs'!$C$16:$C$43,0))/1000),\"\")","v":""},{"$f":"IFERROR(IF(OR($C$110=FALSE,LEFT($B108,3)<>\"NOX\"),CP57*INDEX('Damage costs'!$W$16:$W$43,MATCH($B108,'Damage costs'!$C$16:$C$43,0))/1000,CP57*INDEX('Damage costs'!$AA$16:$AA$43,MATCH($B108,'Damage costs'!$C$16:$C$43,0))/1000),\"\")","v":""},{"$f":"IFERROR(IF(OR($C$110=FALSE,LEFT($B108,3)<>\"NOX\"),CQ57*INDEX('Damage costs'!$W$16:$W$43,MATCH($B108,'Damage costs'!$C$16:$C$43,0))/1000,CQ57*INDEX('Damage costs'!$AA$16:$AA$43,MATCH($B108,'Damage costs'!$C$16:$C$43,0))/1000),\"\")","v":""},{"$f":"IFERROR(IF(OR($C$110=FALSE,LEFT($B108,3)<>\"NOX\"),CR57*INDEX('Damage costs'!$W$16:$W$43,MATCH($B108,'Damage costs'!$C$16:$C$43,0))/1000,CR57*INDEX('Damage costs'!$AA$16:$AA$43,MATCH($B108,'Damage costs'!$C$16:$C$43,0))/1000),\"\")","v":""},{"$f":"IFERROR(IF(OR($C$110=FALSE,LEFT($B108,3)<>\"NOX\"),CS57*INDEX('Damage costs'!$W$16:$W$43,MATCH($B108,'Damage costs'!$C$16:$C$43,0))/1000,CS57*INDEX('Damage costs'!$AA$16:$AA$43,MATCH($B108,'Damage costs'!$C$16:$C$43,0))/1000),\"\")","v":""},{"$f":"IFERROR(IF(OR($C$110=FALSE,LEFT($B108,3)<>\"NOX\"),CT57*INDEX('Damage costs'!$W$16:$W$43,MATCH($B108,'Damage costs'!$C$16:$C$43,0))/1000,CT57*INDEX('Damage costs'!$AA$16:$AA$43,MATCH($B108,'Damage costs'!$C$16:$C$43,0))/1000),\"\")","v":""},{"$f":"IFERROR(IF(OR($C$110=FALSE,LEFT($B108,3)<>\"NOX\"),CU57*INDEX('Damage costs'!$W$16:$W$43,MATCH($B108,'Damage costs'!$C$16:$C$43,0))/1000,CU57*INDEX('Damage costs'!$AA$16:$AA$43,MATCH($B108,'Damage costs'!$C$16:$C$43,0))/1000),\"\")","v":""},{"$f":"IFERROR(IF(OR($C$110=FALSE,LEFT($B108,3)<>\"NOX\"),CV57*INDEX('Damage costs'!$W$16:$W$43,MATCH($B108,'Damage costs'!$C$16:$C$43,0))/1000,CV57*INDEX('Damage costs'!$AA$16:$AA$43,MATCH($B108,'Damage costs'!$C$16:$C$43,0))/1000),\"\")","v":""},{"$f":"IFERROR(IF(OR($C$110=FALSE,LEFT($B108,3)<>\"NOX\"),CW57*INDEX('Damage costs'!$W$16:$W$43,MATCH($B108,'Damage costs'!$C$16:$C$43,0))/1000,CW57*INDEX('Damage costs'!$AA$16:$AA$43,MATCH($B108,'Damage costs'!$C$16:$C$43,0))/1000),\"\")","v":""},{"$f":"IFERROR(IF(OR($C$110=FALSE,LEFT($B108,3)<>\"NOX\"),CX57*INDEX('Damage costs'!$W$16:$W$43,MATCH($B108,'Damage costs'!$C$16:$C$43,0))/1000,CX57*INDEX('Damage costs'!$AA$16:$AA$43,MATCH($B108,'Damage costs'!$C$16:$C$43,0))/1000),\"\")","v":""},{"$f":"IFERROR(IF(OR($C$110=FALSE,LEFT($B108,3)<>\"NOX\"),CY57*INDEX('Damage costs'!$W$16:$W$43,MATCH($B108,'Damage costs'!$C$16:$C$43,0))/1000,CY57*INDEX('Damage costs'!$AA$16:$AA$43,MATCH($B108,'Damage costs'!$C$16:$C$43,0))/1000),\"\")","v":""}]
[null,0,"£000's",{"$f":"IFERROR(IF(OR($C$110=FALSE,LEFT($B109,3)<>\"NOX\"),D58*INDEX('Damage costs'!$W$16:$W$43,MATCH($B109,'Damage costs'!$C$16:$C$43,0))/1000,D58*INDEX('Damage costs'!$AA$16:$AA$43,MATCH($B109,'Damage costs'!$C$16:$C$43,0))/1000),\"\")","v":""},{"$f":"IFERROR(IF(OR($C$110=FALSE,LEFT($B109,3)<>\"NOX\"),E58*INDEX('Damage costs'!$W$16:$W$43,MATCH($B109,'Damage costs'!$C$16:$C$43,0))/1000,E58*INDEX('Damage costs'!$AA$16:$AA$43,MATCH($B109,'Damage costs'!$C$16:$C$43,0))/1000),\"\")","v":""},{"$f":"IFERROR(IF(OR($C$110=FALSE,LEFT($B109,3)<>\"NOX\"),F58*INDEX('Damage costs'!$W$16:$W$43,MATCH($B109,'Damage costs'!$C$16:$C$43,0))/1000,F58*INDEX('Damage costs'!$AA$16:$AA$43,MATCH($B109,'Damage costs'!$C$16:$C$43,0))/1000),\"\")","v":""},{"$f":"IFERROR(IF(OR($C$110=FALSE,LEFT($B109,3)<>\"NOX\"),G58*INDEX('Damage costs'!$W$16:$W$43,MATCH($B109,'Damage costs'!$C$16:$C$43,0))/1000,G58*INDEX('Damage costs'!$AA$16:$AA$43,MATCH($B109,'Damage costs'!$C$16:$C$43,0))/1000),\"\")","v":""},{"$f":"IFERROR(IF(OR($C$110=FALSE,LEFT($B109,3)<>\"NOX\"),H58*INDEX('Damage costs'!$W$16:$W$43,MATCH($B109,'Damage costs'!$C$16:$C$43,0))/1000,H58*INDEX('Damage costs'!$AA$16:$AA$43,MATCH($B109,'Damage costs'!$C$16:$C$43,0))/1000),\"\")","v":""},{"$f":"IFERROR(IF(OR($C$110=FALSE,LEFT($B109,3)<>\"NOX\"),I58*INDEX('Damage costs'!$W$16:$W$43,MATCH($B109,'Damage costs'!$C$16:$C$43,0))/1000,I58*INDEX('Damage costs'!$AA$16:$AA$43,MATCH($B109,'Damage costs'!$C$16:$C$43,0))/1000),\"\")","v":""},{"$f":"IFERROR(IF(OR($C$110=FALSE,LEFT($B109,3)<>\"NOX\"),J58*INDEX('Damage costs'!$W$16:$W$43,MATCH($B109,'Damage costs'!$C$16:$C$43,0))/1000,J58*INDEX('Damage costs'!$AA$16:$AA$43,MATCH($B109,'Damage costs'!$C$16:$C$43,0))/1000),\"\")","v":""},{"$f":"IFERROR(IF(OR($C$110=FALSE,LEFT($B109,3)<>\"NOX\"),K58*INDEX('Damage costs'!$W$16:$W$43,MATCH($B109,'Damage costs'!$C$16:$C$43,0))/1000,K58*INDEX('Damage costs'!$AA$16:$AA$43,MATCH($B109,'Damage costs'!$C$16:$C$43,0))/1000),\"\")","v":""},{"$f":"IFERROR(IF(OR($C$110=FALSE,LEFT($B109,3)<>\"NOX\"),L58*INDEX('Damage costs'!$W$16:$W$43,MATCH($B109,'Damage costs'!$C$16:$C$43,0))/1000,L58*INDEX('Damage costs'!$AA$16:$AA$43,MATCH($B109,'Damage costs'!$C$16:$C$43,0))/1000),\"\")","v":""},{"$f":"IFERROR(IF(OR($C$110=FALSE,LEFT($B109,3)<>\"NOX\"),M58*INDEX('Damage costs'!$W$16:$W$43,MATCH($B109,'Damage costs'!$C$16:$C$43,0))/1000,M58*INDEX('Damage costs'!$AA$16:$AA$43,MATCH($B109,'Damage costs'!$C$16:$C$43,0))/1000),\"\")","v":""},{"$f":"IFERROR(IF(OR($C$110=FALSE,LEFT($B109,3)<>\"NOX\"),N58*INDEX('Damage costs'!$W$16:$W$43,MATCH($B109,'Damage costs'!$C$16:$C$43,0))/1000,N58*INDEX('Damage costs'!$AA$16:$AA$43,MATCH($B109,'Damage costs'!$C$16:$C$43,0))/1000),\"\")","v":""},{"$f":"IFERROR(IF(OR($C$110=FALSE,LEFT($B109,3)<>\"NOX\"),O58*INDEX('Damage costs'!$W$16:$W$43,MATCH($B109,'Damage costs'!$C$16:$C$43,0))/1000,O58*INDEX('Damage costs'!$AA$16:$AA$43,MATCH($B109,'Damage costs'!$C$16:$C$43,0))/1000),\"\")","v":""},{"$f":"IFERROR(IF(OR($C$110=FALSE,LEFT($B109,3)<>\"NOX\"),P58*INDEX('Damage costs'!$W$16:$W$43,MATCH($B109,'Damage costs'!$C$16:$C$43,0))/1000,P58*INDEX('Damage costs'!$AA$16:$AA$43,MATCH($B109,'Damage costs'!$C$16:$C$43,0))/1000),\"\")","v":""},{"$f":"IFERROR(IF(OR($C$110=FALSE,LEFT($B109,3)<>\"NOX\"),Q58*INDEX('Damage costs'!$W$16:$W$43,MATCH($B109,'Damage costs'!$C$16:$C$43,0))/1000,Q58*INDEX('Damage costs'!$AA$16:$AA$43,MATCH($B109,'Damage costs'!$C$16:$C$43,0))/1000),\"\")","v":""},{"$f":"IFERROR(IF(OR($C$110=FALSE,LEFT($B109,3)<>\"NOX\"),R58*INDEX('Damage costs'!$W$16:$W$43,MATCH($B109,'Damage costs'!$C$16:$C$43,0))/1000,R58*INDEX('Damage costs'!$AA$16:$AA$43,MATCH($B109,'Damage costs'!$C$16:$C$43,0))/1000),\"\")","v":""},{"$f":"IFERROR(IF(OR($C$110=FALSE,LEFT($B109,3)<>\"NOX\"),S58*INDEX('Damage costs'!$W$16:$W$43,MATCH($B109,'Damage costs'!$C$16:$C$43,0))/1000,S58*INDEX('Damage costs'!$AA$16:$AA$43,MATCH($B109,'Damage costs'!$C$16:$C$43,0))/1000),\"\")","v":""},{"$f":"IFERROR(IF(OR($C$110=FALSE,LEFT($B109,3)<>\"NOX\"),T58*INDEX('Damage costs'!$W$16:$W$43,MATCH($B109,'Damage costs'!$C$16:$C$43,0))/1000,T58*INDEX('Damage costs'!$AA$16:$AA$43,MATCH($B109,'Damage costs'!$C$16:$C$43,0))/1000),\"\")","v":""},{"$f":"IFERROR(IF(OR($C$110=FALSE,LEFT($B109,3)<>\"NOX\"),U58*INDEX('Damage costs'!$W$16:$W$43,MATCH($B109,'Damage costs'!$C$16:$C$43,0))/1000,U58*INDEX('Damage costs'!$AA$16:$AA$43,MATCH($B109,'Damage costs'!$C$16:$C$43,0))/1000),\"\")","v":""},{"$f":"IFERROR(IF(OR($C$110=FALSE,LEFT($B109,3)<>\"NOX\"),V58*INDEX('Damage costs'!$W$16:$W$43,MATCH($B109,'Damage costs'!$C$16:$C$43,0))/1000,V58*INDEX('Damage costs'!$AA$16:$AA$43,MATCH($B109,'Damage costs'!$C$16:$C$43,0))/1000),\"\")","v":""},{"$f":"IFERROR(IF(OR($C$110=FALSE,LEFT($B109,3)<>\"NOX\"),W58*INDEX('Damage costs'!$W$16:$W$43,MATCH($B109,'Damage costs'!$C$16:$C$43,0))/1000,W58*INDEX('Damage costs'!$AA$16:$AA$43,MATCH($B109,'Damage costs'!$C$16:$C$43,0))/1000),\"\")","v":""},{"$f":"IFERROR(IF(OR($C$110=FALSE,LEFT($B109,3)<>\"NOX\"),X58*INDEX('Damage costs'!$W$16:$W$43,MATCH($B109,'Damage costs'!$C$16:$C$43,0))/1000,X58*INDEX('Damage costs'!$AA$16:$AA$43,MATCH($B109,'Damage costs'!$C$16:$C$43,0))/1000),\"\")","v":""},{"$f":"IFERROR(IF(OR($C$110=FALSE,LEFT($B109,3)<>\"NOX\"),Y58*INDEX('Damage costs'!$W$16:$W$43,MATCH($B109,'Damage costs'!$C$16:$C$43,0))/1000,Y58*INDEX('Damage costs'!$AA$16:$AA$43,MATCH($B109,'Damage costs'!$C$16:$C$43,0))/1000),\"\")","v":""},{"$f":"IFERROR(IF(OR($C$110=FALSE,LEFT($B109,3)<>\"NOX\"),Z58*INDEX('Damage costs'!$W$16:$W$43,MATCH($B109,'Damage costs'!$C$16:$C$43,0))/1000,Z58*INDEX('Damage costs'!$AA$16:$AA$43,MATCH($B109,'Damage costs'!$C$16:$C$43,0))/1000),\"\")","v":""},{"$f":"IFERROR(IF(OR($C$110=FALSE,LEFT($B109,3)<>\"NOX\"),AA58*INDEX('Damage costs'!$W$16:$W$43,MATCH($B109,'Damage costs'!$C$16:$C$43,0))/1000,AA58*INDEX('Damage costs'!$AA$16:$AA$43,MATCH($B109,'Damage costs'!$C$16:$C$43,0))/1000),\"\")","v":""},{"$f":"IFERROR(IF(OR($C$110=FALSE,LEFT($B109,3)<>\"NOX\"),AB58*INDEX('Damage costs'!$W$16:$W$43,MATCH($B109,'Damage costs'!$C$16:$C$43,0))/1000,AB58*INDEX('Damage costs'!$AA$16:$AA$43,MATCH($B109,'Damage costs'!$C$16:$C$43,0))/1000),\"\")","v":""},{"$f":"IFERROR(IF(OR($C$110=FALSE,LEFT($B109,3)<>\"NOX\"),AC58*INDEX('Damage costs'!$W$16:$W$43,MATCH($B109,'Damage costs'!$C$16:$C$43,0))/1000,AC58*INDEX('Damage costs'!$AA$16:$AA$43,MATCH($B109,'Damage costs'!$C$16:$C$43,0))/1000),\"\")","v":""},{"$f":"IFERROR(IF(OR($C$110=FALSE,LEFT($B109,3)<>\"NOX\"),AD58*INDEX('Damage costs'!$W$16:$W$43,MATCH($B109,'Damage costs'!$C$16:$C$43,0))/1000,AD58*INDEX('Damage costs'!$AA$16:$AA$43,MATCH($B109,'Damage costs'!$C$16:$C$43,0))/1000),\"\")","v":""},{"$f":"IFERROR(IF(OR($C$110=FALSE,LEFT($B109,3)<>\"NOX\"),AE58*INDEX('Damage costs'!$W$16:$W$43,MATCH($B109,'Damage costs'!$C$16:$C$43,0))/1000,AE58*INDEX('Damage costs'!$AA$16:$AA$43,MATCH($B109,'Damage costs'!$C$16:$C$43,0))/1000),\"\")","v":""},{"$f":"IFERROR(IF(OR($C$110=FALSE,LEFT($B109,3)<>\"NOX\"),AF58*INDEX('Damage costs'!$W$16:$W$43,MATCH($B109,'Damage costs'!$C$16:$C$43,0))/1000,AF58*INDEX('Damage costs'!$AA$16:$AA$43,MATCH($B109,'Damage costs'!$C$16:$C$43,0))/1000),\"\")","v":""},{"$f":"IFERROR(IF(OR($C$110=FALSE,LEFT($B109,3)<>\"NOX\"),AG58*INDEX('Damage costs'!$W$16:$W$43,MATCH($B109,'Damage costs'!$C$16:$C$43,0))/1000,AG58*INDEX('Damage costs'!$AA$16:$AA$43,MATCH($B109,'Damage costs'!$C$16:$C$43,0))/1000),\"\")","v":""},{"$f":"IFERROR(IF(OR($C$110=FALSE,LEFT($B109,3)<>\"NOX\"),AH58*INDEX('Damage costs'!$W$16:$W$43,MATCH($B109,'Damage costs'!$C$16:$C$43,0))/1000,AH58*INDEX('Damage costs'!$AA$16:$AA$43,MATCH($B109,'Damage costs'!$C$16:$C$43,0))/1000),\"\")","v":""},{"$f":"IFERROR(IF(OR($C$110=FALSE,LEFT($B109,3)<>\"NOX\"),AI58*INDEX('Damage costs'!$W$16:$W$43,MATCH($B109,'Damage costs'!$C$16:$C$43,0))/1000,AI58*INDEX('Damage costs'!$AA$16:$AA$43,MATCH($B109,'Damage costs'!$C$16:$C$43,0))/1000),\"\")","v":""},{"$f":"IFERROR(IF(OR($C$110=FALSE,LEFT($B109,3)<>\"NOX\"),AJ58*INDEX('Damage costs'!$W$16:$W$43,MATCH($B109,'Damage costs'!$C$16:$C$43,0))/1000,AJ58*INDEX('Damage costs'!$AA$16:$AA$43,MATCH($B109,'Damage costs'!$C$16:$C$43,0))/1000),\"\")","v":""},{"$f":"IFERROR(IF(OR($C$110=FALSE,LEFT($B109,3)<>\"NOX\"),AK58*INDEX('Damage costs'!$W$16:$W$43,MATCH($B109,'Damage costs'!$C$16:$C$43,0))/1000,AK58*INDEX('Damage costs'!$AA$16:$AA$43,MATCH($B109,'Damage costs'!$C$16:$C$43,0))/1000),\"\")","v":""},{"$f":"IFERROR(IF(OR($C$110=FALSE,LEFT($B109,3)<>\"NOX\"),AL58*INDEX('Damage costs'!$W$16:$W$43,MATCH($B109,'Damage costs'!$C$16:$C$43,0))/1000,AL58*INDEX('Damage costs'!$AA$16:$AA$43,MATCH($B109,'Damage costs'!$C$16:$C$43,0))/1000),\"\")","v":""},{"$f":"IFERROR(IF(OR($C$110=FALSE,LEFT($B109,3)<>\"NOX\"),AM58*INDEX('Damage costs'!$W$16:$W$43,MATCH($B109,'Damage costs'!$C$16:$C$43,0))/1000,AM58*INDEX('Damage costs'!$AA$16:$AA$43,MATCH($B109,'Damage costs'!$C$16:$C$43,0))/1000),\"\")","v":""},{"$f":"IFERROR(IF(OR($C$110=FALSE,LEFT($B109,3)<>\"NOX\"),AN58*INDEX('Damage costs'!$W$16:$W$43,MATCH($B109,'Damage costs'!$C$16:$C$43,0))/1000,AN58*INDEX('Damage costs'!$AA$16:$AA$43,MATCH($B109,'Damage costs'!$C$16:$C$43,0))/1000),\"\")","v":""},{"$f":"IFERROR(IF(OR($C$110=FALSE,LEFT($B109,3)<>\"NOX\"),AO58*INDEX('Damage costs'!$W$16:$W$43,MATCH($B109,'Damage costs'!$C$16:$C$43,0))/1000,AO58*INDEX('Damage costs'!$AA$16:$AA$43,MATCH($B109,'Damage costs'!$C$16:$C$43,0))/1000),\"\")","v":""},{"$f":"IFERROR(IF(OR($C$110=FALSE,LEFT($B109,3)<>\"NOX\"),AP58*INDEX('Damage costs'!$W$16:$W$43,MATCH($B109,'Damage costs'!$C$16:$C$43,0))/1000,AP58*INDEX('Damage costs'!$AA$16:$AA$43,MATCH($B109,'Damage costs'!$C$16:$C$43,0))/1000),\"\")","v":""},{"$f":"IFERROR(IF(OR($C$110=FALSE,LEFT($B109,3)<>\"NOX\"),AQ58*INDEX('Damage costs'!$W$16:$W$43,MATCH($B109,'Damage costs'!$C$16:$C$43,0))/1000,AQ58*INDEX('Damage costs'!$AA$16:$AA$43,MATCH($B109,'Damage costs'!$C$16:$C$43,0))/1000),\"\")","v":""},{"$f":"IFERROR(IF(OR($C$110=FALSE,LEFT($B109,3)<>\"NOX\"),AR58*INDEX('Damage costs'!$W$16:$W$43,MATCH($B109,'Damage costs'!$C$16:$C$43,0))/1000,AR58*INDEX('Damage costs'!$AA$16:$AA$43,MATCH($B109,'Damage costs'!$C$16:$C$43,0))/1000),\"\")","v":""},{"$f":"IFERROR(IF(OR($C$110=FALSE,LEFT($B109,3)<>\"NOX\"),AS58*INDEX('Damage costs'!$W$16:$W$43,MATCH($B109,'Damage costs'!$C$16:$C$43,0))/1000,AS58*INDEX('Damage costs'!$AA$16:$AA$43,MATCH($B109,'Damage costs'!$C$16:$C$43,0))/1000),\"\")","v":""},{"$f":"IFERROR(IF(OR($C$110=FALSE,LEFT($B109,3)<>\"NOX\"),AT58*INDEX('Damage costs'!$W$16:$W$43,MATCH($B109,'Damage costs'!$C$16:$C$43,0))/1000,AT58*INDEX('Damage costs'!$AA$16:$AA$43,MATCH($B109,'Damage costs'!$C$16:$C$43,0))/1000),\"\")","v":""},{"$f":"IFERROR(IF(OR($C$110=FALSE,LEFT($B109,3)<>\"NOX\"),AU58*INDEX('Damage costs'!$W$16:$W$43,MATCH($B109,'Damage costs'!$C$16:$C$43,0))/1000,AU58*INDEX('Damage costs'!$AA$16:$AA$43,MATCH($B109,'Damage costs'!$C$16:$C$43,0))/1000),\"\")","v":""},{"$f":"IFERROR(IF(OR($C$110=FALSE,LEFT($B109,3)<>\"NOX\"),AV58*INDEX('Damage costs'!$W$16:$W$43,MATCH($B109,'Damage costs'!$C$16:$C$43,0))/1000,AV58*INDEX('Damage costs'!$AA$16:$AA$43,MATCH($B109,'Damage costs'!$C$16:$C$43,0))/1000),\"\")","v":""},{"$f":"IFERROR(IF(OR($C$110=FALSE,LEFT($B109,3)<>\"NOX\"),AW58*INDEX('Damage costs'!$W$16:$W$43,MATCH($B109,'Damage costs'!$C$16:$C$43,0))/1000,AW58*INDEX('Damage costs'!$AA$16:$AA$43,MATCH($B109,'Damage costs'!$C$16:$C$43,0))/1000),\"\")","v":""},{"$f":"IFERROR(IF(OR($C$110=FALSE,LEFT($B109,3)<>\"NOX\"),AX58*INDEX('Damage costs'!$W$16:$W$43,MATCH($B109,'Damage costs'!$C$16:$C$43,0))/1000,AX58*INDEX('Damage costs'!$AA$16:$AA$43,MATCH($B109,'Damage costs'!$C$16:$C$43,0))/1000),\"\")","v":""},{"$f":"IFERROR(IF(OR($C$110=FALSE,LEFT($B109,3)<>\"NOX\"),AY58*INDEX('Damage costs'!$W$16:$W$43,MATCH($B109,'Damage costs'!$C$16:$C$43,0))/1000,AY58*INDEX('Damage costs'!$AA$16:$AA$43,MATCH($B109,'Damage costs'!$C$16:$C$43,0))/1000),\"\")","v":""},{"$f":"IFERROR(IF(OR($C$110=FALSE,LEFT($B109,3)<>\"NOX\"),AZ58*INDEX('Damage costs'!$W$16:$W$43,MATCH($B109,'Damage costs'!$C$16:$C$43,0))/1000,AZ58*INDEX('Damage costs'!$AA$16:$AA$43,MATCH($B109,'Damage costs'!$C$16:$C$43,0))/1000),\"\")","v":""},{"$f":"IFERROR(IF(OR($C$110=FALSE,LEFT($B109,3)<>\"NOX\"),BA58*INDEX('Damage costs'!$W$16:$W$43,MATCH($B109,'Damage costs'!$C$16:$C$43,0))/1000,BA58*INDEX('Damage costs'!$AA$16:$AA$43,MATCH($B109,'Damage costs'!$C$16:$C$43,0))/1000),\"\")","v":""},{"$f":"IFERROR(IF(OR($C$110=FALSE,LEFT($B109,3)<>\"NOX\"),BB58*INDEX('Damage costs'!$W$16:$W$43,MATCH($B109,'Damage costs'!$C$16:$C$43,0))/1000,BB58*INDEX('Damage costs'!$AA$16:$AA$43,MATCH($B109,'Damage costs'!$C$16:$C$43,0))/1000),\"\")","v":""},{"$f":"IFERROR(IF(OR($C$110=FALSE,LEFT($B109,3)<>\"NOX\"),BC58*INDEX('Damage costs'!$W$16:$W$43,MATCH($B109,'Damage costs'!$C$16:$C$43,0))/1000,BC58*INDEX('Damage costs'!$AA$16:$AA$43,MATCH($B109,'Damage costs'!$C$16:$C$43,0))/1000),\"\")","v":""},{"$f":"IFERROR(IF(OR($C$110=FALSE,LEFT($B109,3)<>\"NOX\"),BD58*INDEX('Damage costs'!$W$16:$W$43,MATCH($B109,'Damage costs'!$C$16:$C$43,0))/1000,BD58*INDEX('Damage costs'!$AA$16:$AA$43,MATCH($B109,'Damage costs'!$C$16:$C$43,0))/1000),\"\")","v":""},{"$f":"IFERROR(IF(OR($C$110=FALSE,LEFT($B109,3)<>\"NOX\"),BE58*INDEX('Damage costs'!$W$16:$W$43,MATCH($B109,'Damage costs'!$C$16:$C$43,0))/1000,BE58*INDEX('Damage costs'!$AA$16:$AA$43,MATCH($B109,'Damage costs'!$C$16:$C$43,0))/1000),\"\")","v":""},{"$f":"IFERROR(IF(OR($C$110=FALSE,LEFT($B109,3)<>\"NOX\"),BF58*INDEX('Damage costs'!$W$16:$W$43,MATCH($B109,'Damage costs'!$C$16:$C$43,0))/1000,BF58*INDEX('Damage costs'!$AA$16:$AA$43,MATCH($B109,'Damage costs'!$C$16:$C$43,0))/1000),\"\")","v":""},{"$f":"IFERROR(IF(OR($C$110=FALSE,LEFT($B109,3)<>\"NOX\"),BG58*INDEX('Damage costs'!$W$16:$W$43,MATCH($B109,'Damage costs'!$C$16:$C$43,0))/1000,BG58*INDEX('Damage costs'!$AA$16:$AA$43,MATCH($B109,'Damage costs'!$C$16:$C$43,0))/1000),\"\")","v":""},{"$f":"IFERROR(IF(OR($C$110=FALSE,LEFT($B109,3)<>\"NOX\"),BH58*INDEX('Damage costs'!$W$16:$W$43,MATCH($B109,'Damage costs'!$C$16:$C$43,0))/1000,BH58*INDEX('Damage costs'!$AA$16:$AA$43,MATCH($B109,'Damage costs'!$C$16:$C$43,0))/1000),\"\")","v":""},{"$f":"IFERROR(IF(OR($C$110=FALSE,LEFT($B109,3)<>\"NOX\"),BI58*INDEX('Damage costs'!$W$16:$W$43,MATCH($B109,'Damage costs'!$C$16:$C$43,0))/1000,BI58*INDEX('Damage costs'!$AA$16:$AA$43,MATCH($B109,'Damage costs'!$C$16:$C$43,0))/1000),\"\")","v":""},{"$f":"IFERROR(IF(OR($C$110=FALSE,LEFT($B109,3)<>\"NOX\"),BJ58*INDEX('Damage costs'!$W$16:$W$43,MATCH($B109,'Damage costs'!$C$16:$C$43,0))/1000,BJ58*INDEX('Damage costs'!$AA$16:$AA$43,MATCH($B109,'Damage costs'!$C$16:$C$43,0))/1000),\"\")","v":""},{"$f":"IFERROR(IF(OR($C$110=FALSE,LEFT($B109,3)<>\"NOX\"),BK58*INDEX('Damage costs'!$W$16:$W$43,MATCH($B109,'Damage costs'!$C$16:$C$43,0))/1000,BK58*INDEX('Damage costs'!$AA$16:$AA$43,MATCH($B109,'Damage costs'!$C$16:$C$43,0))/1000),\"\")","v":""},{"$f":"IFERROR(IF(OR($C$110=FALSE,LEFT($B109,3)<>\"NOX\"),BL58*INDEX('Damage costs'!$W$16:$W$43,MATCH($B109,'Damage costs'!$C$16:$C$43,0))/1000,BL58*INDEX('Damage costs'!$AA$16:$AA$43,MATCH($B109,'Damage costs'!$C$16:$C$43,0))/1000),\"\")","v":""},{"$f":"IFERROR(IF(OR($C$110=FALSE,LEFT($B109,3)<>\"NOX\"),BM58*INDEX('Damage costs'!$W$16:$W$43,MATCH($B109,'Damage costs'!$C$16:$C$43,0))/1000,BM58*INDEX('Damage costs'!$AA$16:$AA$43,MATCH($B109,'Damage costs'!$C$16:$C$43,0))/1000),\"\")","v":""},{"$f":"IFERROR(IF(OR($C$110=FALSE,LEFT($B109,3)<>\"NOX\"),BN58*INDEX('Damage costs'!$W$16:$W$43,MATCH($B109,'Damage costs'!$C$16:$C$43,0))/1000,BN58*INDEX('Damage costs'!$AA$16:$AA$43,MATCH($B109,'Damage costs'!$C$16:$C$43,0))/1000),\"\")","v":""},{"$f":"IFERROR(IF(OR($C$110=FALSE,LEFT($B109,3)<>\"NOX\"),BO58*INDEX('Damage costs'!$W$16:$W$43,MATCH($B109,'Damage costs'!$C$16:$C$43,0))/1000,BO58*INDEX('Damage costs'!$AA$16:$AA$43,MATCH($B109,'Damage costs'!$C$16:$C$43,0))/1000),\"\")","v":""},{"$f":"IFERROR(IF(OR($C$110=FALSE,LEFT($B109,3)<>\"NOX\"),BP58*INDEX('Damage costs'!$W$16:$W$43,MATCH($B109,'Damage costs'!$C$16:$C$43,0))/1000,BP58*INDEX('Damage costs'!$AA$16:$AA$43,MATCH($B109,'Damage costs'!$C$16:$C$43,0))/1000),\"\")","v":""},{"$f":"IFERROR(IF(OR($C$110=FALSE,LEFT($B109,3)<>\"NOX\"),BQ58*INDEX('Damage costs'!$W$16:$W$43,MATCH($B109,'Damage costs'!$C$16:$C$43,0))/1000,BQ58*INDEX('Damage costs'!$AA$16:$AA$43,MATCH($B109,'Damage costs'!$C$16:$C$43,0))/1000),\"\")","v":""},{"$f":"IFERROR(IF(OR($C$110=FALSE,LEFT($B109,3)<>\"NOX\"),BR58*INDEX('Damage costs'!$W$16:$W$43,MATCH($B109,'Damage costs'!$C$16:$C$43,0))/1000,BR58*INDEX('Damage costs'!$AA$16:$AA$43,MATCH($B109,'Damage costs'!$C$16:$C$43,0))/1000),\"\")","v":""},{"$f":"IFERROR(IF(OR($C$110=FALSE,LEFT($B109,3)<>\"NOX\"),BS58*INDEX('Damage costs'!$W$16:$W$43,MATCH($B109,'Damage costs'!$C$16:$C$43,0))/1000,BS58*INDEX('Damage costs'!$AA$16:$AA$43,MATCH($B109,'Damage costs'!$C$16:$C$43,0))/1000),\"\")","v":""},{"$f":"IFERROR(IF(OR($C$110=FALSE,LEFT($B109,3)<>\"NOX\"),BT58*INDEX('Damage costs'!$W$16:$W$43,MATCH($B109,'Damage costs'!$C$16:$C$43,0))/1000,BT58*INDEX('Damage costs'!$AA$16:$AA$43,MATCH($B109,'Damage costs'!$C$16:$C$43,0))/1000),\"\")","v":""},{"$f":"IFERROR(IF(OR($C$110=FALSE,LEFT($B109,3)<>\"NOX\"),BU58*INDEX('Damage costs'!$W$16:$W$43,MATCH($B109,'Damage costs'!$C$16:$C$43,0))/1000,BU58*INDEX('Damage costs'!$AA$16:$AA$43,MATCH($B109,'Damage costs'!$C$16:$C$43,0))/1000),\"\")","v":""},{"$f":"IFERROR(IF(OR($C$110=FALSE,LEFT($B109,3)<>\"NOX\"),BV58*INDEX('Damage costs'!$W$16:$W$43,MATCH($B109,'Damage costs'!$C$16:$C$43,0))/1000,BV58*INDEX('Damage costs'!$AA$16:$AA$43,MATCH($B109,'Damage costs'!$C$16:$C$43,0))/1000),\"\")","v":""},{"$f":"IFERROR(IF(OR($C$110=FALSE,LEFT($B109,3)<>\"NOX\"),BW58*INDEX('Damage costs'!$W$16:$W$43,MATCH($B109,'Damage costs'!$C$16:$C$43,0))/1000,BW58*INDEX('Damage costs'!$AA$16:$AA$43,MATCH($B109,'Damage costs'!$C$16:$C$43,0))/1000),\"\")","v":""},{"$f":"IFERROR(IF(OR($C$110=FALSE,LEFT($B109,3)<>\"NOX\"),BX58*INDEX('Damage costs'!$W$16:$W$43,MATCH($B109,'Damage costs'!$C$16:$C$43,0))/1000,BX58*INDEX('Damage costs'!$AA$16:$AA$43,MATCH($B109,'Damage costs'!$C$16:$C$43,0))/1000),\"\")","v":""},{"$f":"IFERROR(IF(OR($C$110=FALSE,LEFT($B109,3)<>\"NOX\"),BY58*INDEX('Damage costs'!$W$16:$W$43,MATCH($B109,'Damage costs'!$C$16:$C$43,0))/1000,BY58*INDEX('Damage costs'!$AA$16:$AA$43,MATCH($B109,'Damage costs'!$C$16:$C$43,0))/1000),\"\")","v":""},{"$f":"IFERROR(IF(OR($C$110=FALSE,LEFT($B109,3)<>\"NOX\"),BZ58*INDEX('Damage costs'!$W$16:$W$43,MATCH($B109,'Damage costs'!$C$16:$C$43,0))/1000,BZ58*INDEX('Damage costs'!$AA$16:$AA$43,MATCH($B109,'Damage costs'!$C$16:$C$43,0))/1000),\"\")","v":""},{"$f":"IFERROR(IF(OR($C$110=FALSE,LEFT($B109,3)<>\"NOX\"),CA58*INDEX('Damage costs'!$W$16:$W$43,MATCH($B109,'Damage costs'!$C$16:$C$43,0))/1000,CA58*INDEX('Damage costs'!$AA$16:$AA$43,MATCH($B109,'Damage costs'!$C$16:$C$43,0))/1000),\"\")","v":""},{"$f":"IFERROR(IF(OR($C$110=FALSE,LEFT($B109,3)<>\"NOX\"),CB58*INDEX('Damage costs'!$W$16:$W$43,MATCH($B109,'Damage costs'!$C$16:$C$43,0))/1000,CB58*INDEX('Damage costs'!$AA$16:$AA$43,MATCH($B109,'Damage costs'!$C$16:$C$43,0))/1000),\"\")","v":""},{"$f":"IFERROR(IF(OR($C$110=FALSE,LEFT($B109,3)<>\"NOX\"),CC58*INDEX('Damage costs'!$W$16:$W$43,MATCH($B109,'Damage costs'!$C$16:$C$43,0))/1000,CC58*INDEX('Damage costs'!$AA$16:$AA$43,MATCH($B109,'Damage costs'!$C$16:$C$43,0))/1000),\"\")","v":""},{"$f":"IFERROR(IF(OR($C$110=FALSE,LEFT($B109,3)<>\"NOX\"),CD58*INDEX('Damage costs'!$W$16:$W$43,MATCH($B109,'Damage costs'!$C$16:$C$43,0))/1000,CD58*INDEX('Damage costs'!$AA$16:$AA$43,MATCH($B109,'Damage costs'!$C$16:$C$43,0))/1000),\"\")","v":""},{"$f":"IFERROR(IF(OR($C$110=FALSE,LEFT($B109,3)<>\"NOX\"),CE58*INDEX('Damage costs'!$W$16:$W$43,MATCH($B109,'Damage costs'!$C$16:$C$43,0))/1000,CE58*INDEX('Damage costs'!$AA$16:$AA$43,MATCH($B109,'Damage costs'!$C$16:$C$43,0))/1000),\"\")","v":""},{"$f":"IFERROR(IF(OR($C$110=FALSE,LEFT($B109,3)<>\"NOX\"),CF58*INDEX('Damage costs'!$W$16:$W$43,MATCH($B109,'Damage costs'!$C$16:$C$43,0))/1000,CF58*INDEX('Damage costs'!$AA$16:$AA$43,MATCH($B109,'Damage costs'!$C$16:$C$43,0))/1000),\"\")","v":""},{"$f":"IFERROR(IF(OR($C$110=FALSE,LEFT($B109,3)<>\"NOX\"),CG58*INDEX('Damage costs'!$W$16:$W$43,MATCH($B109,'Damage costs'!$C$16:$C$43,0))/1000,CG58*INDEX('Damage costs'!$AA$16:$AA$43,MATCH($B109,'Damage costs'!$C$16:$C$43,0))/1000),\"\")","v":""},{"$f":"IFERROR(IF(OR($C$110=FALSE,LEFT($B109,3)<>\"NOX\"),CH58*INDEX('Damage costs'!$W$16:$W$43,MATCH($B109,'Damage costs'!$C$16:$C$43,0))/1000,CH58*INDEX('Damage costs'!$AA$16:$AA$43,MATCH($B109,'Damage costs'!$C$16:$C$43,0))/1000),\"\")","v":""},{"$f":"IFERROR(IF(OR($C$110=FALSE,LEFT($B109,3)<>\"NOX\"),CI58*INDEX('Damage costs'!$W$16:$W$43,MATCH($B109,'Damage costs'!$C$16:$C$43,0))/1000,CI58*INDEX('Damage costs'!$AA$16:$AA$43,MATCH($B109,'Damage costs'!$C$16:$C$43,0))/1000),\"\")","v":""},{"$f":"IFERROR(IF(OR($C$110=FALSE,LEFT($B109,3)<>\"NOX\"),CJ58*INDEX('Damage costs'!$W$16:$W$43,MATCH($B109,'Damage costs'!$C$16:$C$43,0))/1000,CJ58*INDEX('Damage costs'!$AA$16:$AA$43,MATCH($B109,'Damage costs'!$C$16:$C$43,0))/1000),\"\")","v":""},{"$f":"IFERROR(IF(OR($C$110=FALSE,LEFT($B109,3)<>\"NOX\"),CK58*INDEX('Damage costs'!$W$16:$W$43,MATCH($B109,'Damage costs'!$C$16:$C$43,0))/1000,CK58*INDEX('Damage costs'!$AA$16:$AA$43,MATCH($B109,'Damage costs'!$C$16:$C$43,0))/1000),\"\")","v":""},{"$f":"IFERROR(IF(OR($C$110=FALSE,LEFT($B109,3)<>\"NOX\"),CL58*INDEX('Damage costs'!$W$16:$W$43,MATCH($B109,'Damage costs'!$C$16:$C$43,0))/1000,CL58*INDEX('Damage costs'!$AA$16:$AA$43,MATCH($B109,'Damage costs'!$C$16:$C$43,0))/1000),\"\")","v":""},{"$f":"IFERROR(IF(OR($C$110=FALSE,LEFT($B109,3)<>\"NOX\"),CM58*INDEX('Damage costs'!$W$16:$W$43,MATCH($B109,'Damage costs'!$C$16:$C$43,0))/1000,CM58*INDEX('Damage costs'!$AA$16:$AA$43,MATCH($B109,'Damage costs'!$C$16:$C$43,0))/1000),\"\")","v":""},{"$f":"IFERROR(IF(OR($C$110=FALSE,LEFT($B109,3)<>\"NOX\"),CN58*INDEX('Damage costs'!$W$16:$W$43,MATCH($B109,'Damage costs'!$C$16:$C$43,0))/1000,CN58*INDEX('Damage costs'!$AA$16:$AA$43,MATCH($B109,'Damage costs'!$C$16:$C$43,0))/1000),\"\")","v":""},{"$f":"IFERROR(IF(OR($C$110=FALSE,LEFT($B109,3)<>\"NOX\"),CO58*INDEX('Damage costs'!$W$16:$W$43,MATCH($B109,'Damage costs'!$C$16:$C$43,0))/1000,CO58*INDEX('Damage costs'!$AA$16:$AA$43,MATCH($B109,'Damage costs'!$C$16:$C$43,0))/1000),\"\")","v":""},{"$f":"IFERROR(IF(OR($C$110=FALSE,LEFT($B109,3)<>\"NOX\"),CP58*INDEX('Damage costs'!$W$16:$W$43,MATCH($B109,'Damage costs'!$C$16:$C$43,0))/1000,CP58*INDEX('Damage costs'!$AA$16:$AA$43,MATCH($B109,'Damage costs'!$C$16:$C$43,0))/1000),\"\")","v":""},{"$f":"IFERROR(IF(OR($C$110=FALSE,LEFT($B109,3)<>\"NOX\"),CQ58*INDEX('Damage costs'!$W$16:$W$43,MATCH($B109,'Damage costs'!$C$16:$C$43,0))/1000,CQ58*INDEX('Damage costs'!$AA$16:$AA$43,MATCH($B109,'Damage costs'!$C$16:$C$43,0))/1000),\"\")","v":""},{"$f":"IFERROR(IF(OR($C$110=FALSE,LEFT($B109,3)<>\"NOX\"),CR58*INDEX('Damage costs'!$W$16:$W$43,MATCH($B109,'Damage costs'!$C$16:$C$43,0))/1000,CR58*INDEX('Damage costs'!$AA$16:$AA$43,MATCH($B109,'Damage costs'!$C$16:$C$43,0))/1000),\"\")","v":""},{"$f":"IFERROR(IF(OR($C$110=FALSE,LEFT($B109,3)<>\"NOX\"),CS58*INDEX('Damage costs'!$W$16:$W$43,MATCH($B109,'Damage costs'!$C$16:$C$43,0))/1000,CS58*INDEX('Damage costs'!$AA$16:$AA$43,MATCH($B109,'Damage costs'!$C$16:$C$43,0))/1000),\"\")","v":""},{"$f":"IFERROR(IF(OR($C$110=FALSE,LEFT($B109,3)<>\"NOX\"),CT58*INDEX('Damage costs'!$W$16:$W$43,MATCH($B109,'Damage costs'!$C$16:$C$43,0))/1000,CT58*INDEX('Damage costs'!$AA$16:$AA$43,MATCH($B109,'Damage costs'!$C$16:$C$43,0))/1000),\"\")","v":""},{"$f":"IFERROR(IF(OR($C$110=FALSE,LEFT($B109,3)<>\"NOX\"),CU58*INDEX('Damage costs'!$W$16:$W$43,MATCH($B109,'Damage costs'!$C$16:$C$43,0))/1000,CU58*INDEX('Damage costs'!$AA$16:$AA$43,MATCH($B109,'Damage costs'!$C$16:$C$43,0))/1000),\"\")","v":""},{"$f":"IFERROR(IF(OR($C$110=FALSE,LEFT($B109,3)<>\"NOX\"),CV58*INDEX('Damage costs'!$W$16:$W$43,MATCH($B109,'Damage costs'!$C$16:$C$43,0))/1000,CV58*INDEX('Damage costs'!$AA$16:$AA$43,MATCH($B109,'Damage costs'!$C$16:$C$43,0))/1000),\"\")","v":""},{"$f":"IFERROR(IF(OR($C$110=FALSE,LEFT($B109,3)<>\"NOX\"),CW58*INDEX('Damage costs'!$W$16:$W$43,MATCH($B109,'Damage costs'!$C$16:$C$43,0))/1000,CW58*INDEX('Damage costs'!$AA$16:$AA$43,MATCH($B109,'Damage costs'!$C$16:$C$43,0))/1000),\"\")","v":""},{"$f":"IFERROR(IF(OR($C$110=FALSE,LEFT($B109,3)<>\"NOX\"),CX58*INDEX('Damage costs'!$W$16:$W$43,MATCH($B109,'Damage costs'!$C$16:$C$43,0))/1000,CX58*INDEX('Damage costs'!$AA$16:$AA$43,MATCH($B109,'Damage costs'!$C$16:$C$43,0))/1000),\"\")","v":""},{"$f":"IFERROR(IF(OR($C$110=FALSE,LEFT($B109,3)<>\"NOX\"),CY58*INDEX('Damage costs'!$W$16:$W$43,MATCH($B109,'Damage costs'!$C$16:$C$43,0))/1000,CY58*INDEX('Damage costs'!$AA$16:$AA$43,MATCH($B109,'Damage costs'!$C$16:$C$43,0))/1000),\"\")","v":""}]
[null,"PM10 Used",{"$f":"IF(OR(LEFT(B104,4)=\"PM10\",LEFT(B105,4)=\"PM10\",LEFT(B106,4)=\"PM10\",LEFT(B107,4)=\"PM10\",LEFT(B108,4)=\"PM10\",LEFT(B109,4)=\"PM10\"),TRUE,FALSE)","v":false}]
[]
[null,"Uplift pa","%",{"$f":"'Discount and deflators'!$H$5","v":0.02}]
[null,"Uplift factor",null,{"$f":"IF(D$6=0,0,(1+$D112)^(D$6-'Data Input - General'!$F$22))","v":1},{"$f":"IF(E$6=0,0,(1+$D112)^(E$6-'Data Input - General'!$F$22))","v":1.02},{"$f":"IF(F$6=0,0,(1+$D112)^(F$6-'Data Input - General'!$F$22))","v":1.0404},{"$f":"IF(G$6=0,0,(1+$D112)^(G$6-'Data Input - General'!$F$22))","v":1.0612079999999999},{"$f":"IF(H$6=0,0,(1+$D112)^(H$6-'Data Input - General'!$F$22))","v":1.08243216},{"$f":"IF(I$6=0,0,(1+$D112)^(I$6-'Data Input - General'!$F$22))","v":1.1040808032},{"$f":"IF(J$6=0,0,(1+$D112)^(J$6-'Data Input - General'!$F$22))","v":1.1261624192640001},{"$f":"IF(K$6=0,0,(1+$D112)^(K$6-'Data Input - General'!$F$22))","v":1.1486856676492798},{"$f":"IF(L$6=0,0,(1+$D112)^(L$6-'Data Input - General'!$F$22))","v":1.1716593810022655},{"$f":"IF(M$6=0,0,(1+$D112)^(M$6-'Data Input - General'!$F$22))","v":1.1950925686223108},{"$f":"IF(N$6=0,0,(1+$D112)^(N$6-'Data Input - General'!$F$22))","v":1.2189944199947571},{"$f":"IF(O$6=0,0,(1+$D112)^(O$6-'Data Input - General'!$F$22))","v":1.243374308394652},{"$f":"IF(P$6=0,0,(1+$D112)^(P$6-'Data Input - General'!$F$22))","v":1.2682417945625453},{"$f":"IF(Q$6=0,0,(1+$D112)^(Q$6-'Data Input - General'!$F$22))","v":1.2936066304537961},{"$f":"IF(R$6=0,0,(1+$D112)^(R$6-'Data Input - General'!$F$22))","v":1.3194787630628722},{"$f":"IF(S$6=0,0,(1+$D112)^(S$6-'Data Input - General'!$F$22))","v":1.3458683383241292},{"$f":"IF(T$6=0,0,(1+$D112)^(T$6-'Data Input - General'!$F$22))","v":1.372785705090612},{"$f":"IF(U$6=0,0,(1+$D112)^(U$6-'Data Input - General'!$F$22))","v":1.4002414191924244},{"$f":"IF(V$6=0,0,(1+$D112)^(V$6-'Data Input - General'!$F$22))","v":1.4282462475762727},{"$f":"IF(W$6=0,0,(1+$D112)^(W$6-'Data Input - General'!$F$22))","v":1.4568111725277981},{"$f":"IF(X$6=0,0,(1+$D112)^(X$6-'Data Input - General'!$F$22))","v":1.4859473959783542},{"$f":"IF(Y$6=0,0,(1+$D112)^(Y$6-'Data Input - General'!$F$22))","v":1.5156663438979212},{"$f":"IF(Z$6=0,0,(1+$D112)^(Z$6-'Data Input - General'!$F$22))","v":1.5459796707758797},{"$f":"IF(AA$6=0,0,(1+$D112)^(AA$6-'Data Input - General'!$F$22))","v":1.576899264191397},{"$f":"IF(AB$6=0,0,(1+$D112)^(AB$6-'Data Input - General'!$F$22))","v":1.608437249475225},{"$f":"IF(AC$6=0,0,(1+$D112)^(AC$6-'Data Input - General'!$F$22))","v":1.6406059944647295},{"$f":"IF(AD$6=0,0,(1+$D112)^(AD$6-'Data Input - General'!$F$22))","v":1.6734181143540243},{"$f":"IF(AE$6=0,0,(1+$D112)^(AE$6-'Data Input - General'!$F$22))","v":1.7068864766411045},{"$f":"IF(AF$6=0,0,(1+$D112)^(AF$6-'Data Input - General'!$F$22))","v":1.7410242061739269},{"$f":"IF(AG$6=0,0,(1+$D112)^(AG$6-'Data Input - General'!$F$22))","v":1.7758446902974052},{"$f":"IF(AH$6=0,0,(1+$D112)^(AH$6-'Data Input - General'!$F$22))","v":1.8113615841033535},{"$f":"IF(AI$6=0,0,(1+$D112)^(AI$6-'Data Input - General'!$F$22))","v":0},{"$f":"IF(AJ$6=0,0,(1+$D112)^(AJ$6-'Data Input - General'!$F$22))","v":0},{"$f":"IF(AK$6=0,0,(1+$D112)^(AK$6-'Data Input - General'!$F$22))","v":0},{"$f":"IF(AL$6=0,0,(1+$D112)^(AL$6-'Data Input - General'!$F$22))","v":0},{"$f":"IF(AM$6=0,0,(1+$D112)^(AM$6-'Data Input - General'!$F$22))","v":0},{"$f":"IF(AN$6=0,0,(1+$D112)^(AN$6-'Data Input - General'!$F$22))","v":0},{"$f":"IF(AO$6=0,0,(1+$D112)^(AO$6-'Data Input - General'!$F$22))","v":0},{"$f":"IF(AP$6=0,0,(1+$D112)^(AP$6-'Data Input - General'!$F$22))","v":0},{"$f":"IF(AQ$6=0,0,(1+$D112)^(AQ$6-'Data Input - General'!$F$22))","v":0},{"$f":"IF(AR$6=0,0,(1+$D112)^(AR$6-'Data Input - General'!$F$22))","v":0},{"$f":"IF(AS$6=0,0,(1+$D112)^(AS$6-'Data Input - General'!$F$22))","v":0},{"$f":"IF(AT$6=0,0,(1+$D112)^(AT$6-'Data Input - General'!$F$22))","v":0},{"$f":"IF(AU$6=0,0,(1+$D112)^(AU$6-'Data Input - General'!$F$22))","v":0},{"$f":"IF(AV$6=0,0,(1+$D112)^(AV$6-'Data Input - General'!$F$22))","v":0},{"$f":"IF(AW$6=0,0,(1+$D112)^(AW$6-'Data Input - General'!$F$22))","v":0},{"$f":"IF(AX$6=0,0,(1+$D112)^(AX$6-'Data Input - General'!$F$22))","v":0},{"$f":"IF(AY$6=0,0,(1+$D112)^(AY$6-'Data Input - General'!$F$22))","v":0},{"$f":"IF(AZ$6=0,0,(1+$D112)^(AZ$6-'Data Input - General'!$F$22))","v":0},{"$f":"IF(BA$6=0,0,(1+$D112)^(BA$6-'Data Input - General'!$F$22))","v":0},{"$f":"IF(BB$6=0,0,(1+$D112)^(BB$6-'Data Input - General'!$F$22))","v":0},{"$f":"IF(BC$6=0,0,(1+$D112)^(BC$6-'Data Input - General'!$F$22))","v":0},{"$f":"IF(BD$6=0,0,(1+$D112)^(BD$6-'Data Input - General'!$F$22))","v":0},{"$f":"IF(BE$6=0,0,(1+$D112)^(BE$6-'Data Input - General'!$F$22))","v":0},{"$f":"IF(BF$6=0,0,(1+$D112)^(BF$6-'Data Input - General'!$F$22))","v":0},{"$f":"IF(BG$6=0,0,(1+$D112)^(BG$6-'Data Input - General'!$F$22))","v":0},{"$f":"IF(BH$6=0,0,(1+$D112)^(BH$6-'Data Input - General'!$F$22))","v":0},{"$f":"IF(BI$6=0,0,(1+$D112)^(BI$6-'Data Input - General'!$F$22))","v":0},{"$f":"IF(BJ$6=0,0,(1+$D112)^(BJ$6-'Data Input - General'!$F$22))","v":0},{"$f":"IF(BK$6=0,0,(1+$D112)^(BK$6-'Data Input - General'!$F$22))","v":0},{"$f":"IF(BL$6=0,0,(1+$D112)^(BL$6-'Data Input - General'!$F$22))","v":0},{"$f":"IF(BM$6=0,0,(1+$D112)^(BM$6-'Data Input - General'!$F$22))","v":0},{"$f":"IF(BN$6=0,0,(1+$D112)^(BN$6-'Data Input - General'!$F$22))","v":0},{"$f":"IF(BO$6=0,0,(1+$D112)^(BO$6-'Data Input - General'!$F$22))","v":0},{"$f":"IF(BP$6=0,0,(1+$D112)^(BP$6-'Data Input - General'!$F$22))","v":0},{"$f":"IF(BQ$6=0,0,(1+$D112)^(BQ$6-'Data Input - General'!$F$22))","v":0},{"$f":"IF(BR$6=0,0,(1+$D112)^(BR$6-'Data Input - General'!$F$22))","v":0},{"$f":"IF(BS$6=0,0,(1+$D112)^(BS$6-'Data Input - General'!$F$22))","v":0},{"$f":"IF(BT$6=0,0,(1+$D112)^(BT$6-'Data Input - General'!$F$22))","v":0},{"$f":"IF(BU$6=0,0,(1+$D112)^(BU$6-'Data Input - General'!$F$22))","v":0},{"$f":"IF(BV$6=0,0,(1+$D112)^(BV$6-'Data Input - General'!$F$22))","v":0},{"$f":"IF(BW$6=0,0,(1+$D112)^(BW$6-'Data Input - General'!$F$22))","v":0},{"$f":"IF(BX$6=0,0,(1+$D112)^(BX$6-'Data Input - General'!$F$22))","v":0},{"$f":"IF(BY$6=0,0,(1+$D112)^(BY$6-'Data Input - General'!$F$22))","v":0},{"$f":"IF(BZ$6=0,0,(1+$D112)^(BZ$6-'Data Input - General'!$F$22))","v":0},{"$f":"IF(CA$6=0,0,(1+$D112)^(CA$6-'Data Input - General'!$F$22))","v":0},{"$f":"IF(CB$6=0,0,(1+$D112)^(CB$6-'Data Input - General'!$F$22))","v":0},{"$f":"IF(CC$6=0,0,(1+$D112)^(CC$6-'Data Input - General'!$F$22))","v":0},{"$f":"IF(CD$6=0,0,(1+$D112)^(CD$6-'Data Input - General'!$F$22))","v":0},{"$f":"IF(CE$6=0,0,(1+$D112)^(CE$6-'Data Input - General'!$F$22))","v":0},{"$f":"IF(CF$6=0,0,(1+$D112)^(CF$6-'Data Input - General'!$F$22))","v":0},{"$f":"IF(CG$6=0,0,(1+$D112)^(CG$6-'Data Input - General'!$F$22))","v":0},{"$f":"IF(CH$6=0,0,(1+$D112)^(CH$6-'Data Input - General'!$F$22))","v":0},{"$f":"IF(CI$6=0,0,(1+$D112)^(CI$6-'Data Input - General'!$F$22))","v":0},{"$f":"IF(CJ$6=0,0,(1+$D112)^(CJ$6-'Data Input - General'!$F$22))","v":0},{"$f":"IF(CK$6=0,0,(1+$D112)^(CK$6-'Data Input - General'!$F$22))","v":0},{"$f":"IF(CL$6=0,0,(1+$D112)^(CL$6-'Data Input - General'!$F$22))","v":0},{"$f":"IF(CM$6=0,0,(1+$D112)^(CM$6-'Data Input - General'!$F$22))","v":0},{"$f":"IF(CN$6=0,0,(1+$D112)^(CN$6-'Data Input - General'!$F$22))","v":0},{"$f":"IF(CO$6=0,0,(1+$D112)^(CO$6-'Data Input - General'!$F$22))","v":0},{"$f":"IF(CP$6=0,0,(1+$D112)^(CP$6-'Data Input - General'!$F$22))","v":0},{"$f":"IF(CQ$6=0,0,(1+$D112)^(CQ$6-'Data Input - General'!$F$22))","v":0},{"$f":"IF(CR$6=0,0,(1+$D112)^(CR$6-'Data Input - General'!$F$22))","v":0},{"$f":"IF(CS$6=0,0,(1+$D112)^(CS$6-'Data Input - General'!$F$22))","v":0},{"$f":"IF(CT$6=0,0,(1+$D112)^(CT$6-'Data Input - General'!$F$22))","v":0},{"$f":"IF(CU$6=0,0,(1+$D112)^(CU$6-'Data Input - General'!$F$22))","v":0},{"$f":"IF(CV$6=0,0,(1+$D112)^(CV$6-'Data Input - General'!$F$22))","v":0},{"$f":"IF(CW$6=0,0,(1+$D112)^(CW$6-'Data Input - General'!$F$22))","v":0},{"$f":"IF(CX$6=0,0,(1+$D112)^(CX$6-'Data Input - General'!$F$22))","v":0},{"$f":"IF(CY$6=0,0,(1+$D112)^(CY$6-'Data Input - General'!$F$22))","v":0}]
[null,"Total value","£000's",{"$f":"SUM(D104:D109)*D113","v":1.6028522278070398},{"$f":"SUM(E104:E109)*E113","v":1.6349092723631806},{"$f":"SUM(F104:F109)*F113","v":1.6676074578104443},1.700959606966653,1.7349787991059862,1.769678375088106,1.8050719425898683,0,0,0,0,0,0,0,0,0,0,0,0,0,0,0,0,0,0,0,0,0,0,0,0,0,{"$f":"SUM(AJ104:AJ109)*AJ113","v":0},0,0,0,0,0,0,0,0,0,0,0,0,0,0,0,0,0,0,0,0,0,0,0,0,0,0,0,{"$f":"SUM(BL104:BL109)*BL113","v":0},0,0,0,0,0,0,0,0,0,0,0,0,0,0,0,0,0,0,0,0,0,0,0,0,0,0,0,0,0,0,0,0,0,0,0,0,0,0,0]
[null,"Discounted total value","£000's",{"$f":"D114*D$7","v":1.6028522278070398},{"$f":"E114*E$7","v":1.5796224853750538},{"$f":"F114*F$7","v":1.5567294058768648},{"$f":"G114*G$7","v":1.534168110139519},1.5119337897027145,1.4900217057939795,1.4684271883187048,0,0,0,0,0,0,0,0,0,0,0,0,0,0,0,0,0,0,0,0,0,0,0,0,0,0,0,0,0,0,0,0,0,0,0,0,0,0,0,0,0,0,0,0,0,0,0,0,0,0,0,0,0,0,0,0,0,0,0,0,{"$f":"BS114*BS$7","v":0},0,0,0,0,0,0,0,0,0,0,0,0,0,0,0,0,0,0,0,0,0,0,0,0,0,0,0,0,0,0,0,0]
[]
[null,"GHG emissions"]
[null,"Traded","tCO2e",{"$f":"D80+IF('Data Input - General'!$F$10=\"Yes\",Calc_BAU!D$81,0)+IF('Data Input - General'!$F$12=\"Yes\",Calc_BAU!D$75,0)","v":86644.737608250056},{"$f":"E80+IF('Data Input - General'!$F$10=\"Yes\",Calc_BAU!E$81,0)+IF('Data Input - General'!$F$12=\"Yes\",Calc_BAU!E$75,0)","v":86510.233175019355},{"$f":"F80+IF('Data Input - General'!$F$10=\"Yes\",Calc_BAU!F$81,0)+IF('Data Input - General'!$F$12=\"Yes\",Calc_BAU!F$75,0)","v":86388.187501378605},{"$f":"G80+IF('Data Input - General'!$F$10=\"Yes\",Calc_BAU!G$81,0)+IF('Data Input - General'!$F$12=\"Yes\",Calc_BAU!G$75,0)","v":86316.993984732529},{"$f":"H80+IF('Data Input - General'!$F$10=\"Yes\",Calc_BAU!H$81,0)+IF('Data Input - General'!$F$12=\"Yes\",Calc_BAU!H$75,0)","v":86193.774664474651},{"$f":"I80+IF('Data Input - General'!$F$10=\"Yes\",Calc_BAU!I$81,0)+IF('Data Input - General'!$F$12=\"Yes\",Calc_BAU!I$75,0)","v":86229.164858991426},{"$f":"J80+IF('Data Input - General'!$F$10=\"Yes\",Calc_BAU!J$81,0)+IF('Data Input - General'!$F$12=\"Yes\",Calc_BAU!J$75,0)","v":86182.585839819963},{"$f":"K80+IF('Data Input - General'!$F$10=\"Yes\",Calc_BAU!K$81,0)+IF('Data Input - General'!$F$12=\"Yes\",Calc_BAU!K$75,0)","v":41105.387885048549},{"$f":"L80+IF('Data Input - General'!$F$10=\"Yes\",Calc_BAU!L$81,0)+IF('Data Input - General'!$F$12=\"Yes\",Calc_BAU!L$75,0)","v":0},{"$f":"M80+IF('Data Input - General'!$F$10=\"Yes\",Calc_BAU!M$81,0)+IF('Data Input - General'!$F$12=\"Yes\",Calc_BAU!M$75,0)","v":0},{"$f":"N80+IF('Data Input - General'!$F$10=\"Yes\",Calc_BAU!N$81,0)+IF('Data Input - General'!$F$12=\"Yes\",Calc_BAU!N$75,0)","v":0},{"$f":"O80+IF('Data Input - General'!$F$10=\"Yes\",Calc_BAU!O$81,0)+IF('Data Input - General'!$F$12=\"Yes\",Calc_BAU!O$75,0)","v":0},{"$f":"P80+IF('Data Input - General'!$F$10=\"Yes\",Calc_BAU!P$81,0)+IF('Data Input - General'!$F$12=\"Yes\",Calc_BAU!P$75,0)","v":0},{"$f":"Q80+IF('Data Input - General'!$F$10=\"Yes\",Calc_BAU!Q$81,0)+IF('Data Input - General'!$F$12=\"Yes\",Calc_BAU!Q$75,0)","v":0},{"$f":"R80+IF('Data Input - General'!$F$10=\"Yes\",Calc_BAU!R$81,0)+IF('Data Input - General'!$F$12=\"Yes\",Calc_BAU!R$75,0)","v":0},{"$f":"S80+IF('Data Input - General'!$F$10=\"Yes\",Calc_BAU!S$81,0)+IF('Data Input - General'!$F$12=\"Yes\",Calc_BAU!S$75,0)","v":0},{"$f":"T80+IF('Data Input - General'!$F$10=\"Yes\",Calc_BAU!T$81,0)+IF('Data Input - General'!$F$12=\"Yes\",Calc_BAU!T$75,0)","v":0},{"$f":"U80+IF('Data Input - General'!$F$10=\"Yes\",Calc_BAU!U$81,0)+IF('Data Input - General'!$F$12=\"Yes\",Calc_BAU!U$75,0)","v":0},{"$f":"V80+IF('Data Input - General'!$F$10=\"Yes\",Calc_BAU!V$81,0)+IF('Data Input - General'!$F$12=\"Yes\",Calc_BAU!V$75,0)","v":0},{"$f":"W80+IF('Data Input - General'!$F$10=\"Yes\",Calc_BAU!W$81,0)+IF('Data Input - General'!$F$12=\"Yes\",Calc_BAU!W$75,0)","v":0},{"$f":"X80+IF('Data Input - General'!$F$10=\"Yes\",Calc_BAU!X$81,0)+IF('Data Input - General'!$F$12=\"Yes\",Calc_BAU!X$75,0)","v":0},{"$f":"Y80+IF('Data Input - General'!$F$10=\"Yes\",Calc_BAU!Y$81,0)+IF('Data Input - General'!$F$12=\"Yes\",Calc_BAU!Y$75,0)","v":0},{"$f":"Z80+IF('Data Input - General'!$F$10=\"Yes\",Calc_BAU!Z$81,0)+IF('Data Input - General'!$F$12=\"Yes\",Calc_BAU!Z$75,0)","v":0},{"$f":"AA80+IF('Data Input - General'!$F$10=\"Yes\",Calc_BAU!AA$81,0)+IF('Data Input - General'!$F$12=\"Yes\",Calc_BAU!AA$75,0)","v":0},{"$f":"AB80+IF('Data Input - General'!$F$10=\"Yes\",Calc_BAU!AB$81,0)+IF('Data Input - General'!$F$12=\"Yes\",Calc_BAU!AB$75,0)","v":0},{"$f":"AC80+IF('Data Input - General'!$F$10=\"Yes\",Calc_BAU!AC$81,0)+IF('Data Input - General'!$F$12=\"Yes\",Calc_BAU!AC$75,0)","v":0},{"$f":"AD80+IF('Data Input - General'!$F$10=\"Yes\",Calc_BAU!AD$81,0)+IF('Data Input - General'!$F$12=\"Yes\",Calc_BAU!AD$75,0)","v":0},{"$f":"AE80+IF('Data Input - General'!$F$10=\"Yes\",Calc_BAU!AE$81,0)+IF('Data Input - General'!$F$12=\"Yes\",Calc_BAU!AE$75,0)","v":0},{"$f":"AF80+IF('Data Input - General'!$F$10=\"Yes\",Calc_BAU!AF$81,0)+IF('Data Input - General'!$F$12=\"Yes\",Calc_BAU!AF$75,0)","v":0},{"$f":"AG80+IF('Data Input - General'!$F$10=\"Yes\",Calc_BAU!AG$81,0)+IF('Data Input - General'!$F$12=\"Yes\",Calc_BAU!AG$75,0)","v":0},{"$f":"AH80+IF('Data Input - General'!$F$10=\"Yes\",Calc_BAU!AH$81,0)+IF('Data Input - General'!$F$12=\"Yes\",Calc_BAU!AH$75,0)","v":0},{"$f":"AI80+IF('Data Input - General'!$F$10=\"Yes\",Calc_BAU!AI$81,0)+IF('Data Input - General'!$F$12=\"Yes\",Calc_BAU!AI$75,0)","v":0},{"$f":"AJ80+IF('Data Input - General'!$F$10=\"Yes\",Calc_BAU!AJ$81,0)+IF('Data Input - General'!$F$12=\"Yes\",Calc_BAU!AJ$75,0)","v":0},{"$f":"AK80+IF('Data Input - General'!$F$10=\"Yes\",Calc_BAU!AK$81,0)+IF('Data Input - General'!$F$12=\"Yes\",Calc_BAU!AK$75,0)","v":0},{"$f":"AL80+IF('Data Input - General'!$F$10=\"Yes\",Calc_BAU!AL$81,0)+IF('Data Input - General'!$F$12=\"Yes\",Calc_BAU!AL$75,0)","v":0},{"$f":"AM80+IF('Data Input - General'!$F$10=\"Yes\",Calc_BAU!AM$81,0)+IF('Data Input - General'!$F$12=\"Yes\",Calc_BAU!AM$75,0)","v":0},{"$f":"AN80+IF('Data Input - General'!$F$10=\"Yes\",Calc_BAU!AN$81,0)+IF('Data Input - General'!$F$12=\"Yes\",Calc_BAU!AN$75,0)","v":0},{"$f":"AO80+IF('Data Input - General'!$F$10=\"Yes\",Calc_BAU!AO$81,0)+IF('Data Input - General'!$F$12=\"Yes\",Calc_BAU!AO$75,0)","v":0},{"$f":"AP80+IF('Data Input - General'!$F$10=\"Yes\",Calc_BAU!AP$81,0)+IF('Data Input - General'!$F$12=\"Yes\",Calc_BAU!AP$75,0)","v":0},{"$f":"AQ80+IF('Data Input - General'!$F$10=\"Yes\",Calc_BAU!AQ$81,0)+IF('Data Input - General'!$F$12=\"Yes\",Calc_BAU!AQ$75,0)","v":0},{"$f":"AR80+IF('Data Input - General'!$F$10=\"Yes\",Calc_BAU!AR$81,0)+IF('Data Input - General'!$F$12=\"Yes\",Calc_BAU!AR$75,0)","v":0},{"$f":"AS80+IF('Data Input - General'!$F$10=\"Yes\",Calc_BAU!AS$81,0)+IF('Data Input - General'!$F$12=\"Yes\",Calc_BAU!AS$75,0)","v":0},{"$f":"AT80+IF('Data Input - General'!$F$10=\"Yes\",Calc_BAU!AT$81,0)+IF('Data Input - General'!$F$12=\"Yes\",Calc_BAU!AT$75,0)","v":0},{"$f":"AU80+IF('Data Input - General'!$F$10=\"Yes\",Calc_BAU!AU$81,0)+IF('Data Input - General'!$F$12=\"Yes\",Calc_BAU!AU$75,0)","v":0},{"$f":"AV80+IF('Data Input - General'!$F$10=\"Yes\",Calc_BAU!AV$81,0)+IF('Data Input - General'!$F$12=\"Yes\",Calc_BAU!AV$75,0)","v":0},{"$f":"AW80+IF('Data Input - General'!$F$10=\"Yes\",Calc_BAU!AW$81,0)+IF('Data Input - General'!$F$12=\"Yes\",Calc_BAU!AW$75,0)","v":0},{"$f":"AX80+IF('Data Input - General'!$F$10=\"Yes\",Calc_BAU!AX$81,0)+IF('Data Input - General'!$F$12=\"Yes\",Calc_BAU!AX$75,0)","v":0},{"$f":"AY80+IF('Data Input - General'!$F$10=\"Yes\",Calc_BAU!AY$81,0)+IF('Data Input - General'!$F$12=\"Yes\",Calc_BAU!AY$75,0)","v":0},{"$f":"AZ80+IF('Data Input - General'!$F$10=\"Yes\",Calc_BAU!AZ$81,0)+IF('Data Input - General'!$F$12=\"Yes\",Calc_BAU!AZ$75,0)","v":0},{"$f":"BA80+IF('Data Input - General'!$F$10=\"Yes\",Calc_BAU!BA$81,0)+IF('Data Input - General'!$F$12=\"Yes\",Calc_BAU!BA$75,0)","v":0},{"$f":"BB80+IF('Data Input - General'!$F$10=\"Yes\",Calc_BAU!BB$81,0)+IF('Data Input - General'!$F$12=\"Yes\",Calc_BAU!BB$75,0)","v":0},{"$f":"BC80+IF('Data Input - General'!$F$10=\"Yes\",Calc_BAU!BC$81,0)+IF('Data Input - General'!$F$12=\"Yes\",Calc_BAU!BC$75,0)","v":0},{"$f":"BD80+IF('Data Input - General'!$F$10=\"Yes\",Calc_BAU!BD$81,0)+IF('Data Input - General'!$F$12=\"Yes\",Calc_BAU!BD$75,0)","v":0},{"$f":"BE80+IF('Data Input - General'!$F$10=\"Yes\",Calc_BAU!BE$81,0)+IF('Data Input - General'!$F$12=\"Yes\",Calc_BAU!BE$75,0)","v":0},{"$f":"BF80+IF('Data Input - General'!$F$10=\"Yes\",Calc_BAU!BF$81,0)+IF('Data Input - General'!$F$12=\"Yes\",Calc_BAU!BF$75,0)","v":0},{"$f":"BG80+IF('Data Input - General'!$F$10=\"Yes\",Calc_BAU!BG$81,0)+IF('Data Input - General'!$F$12=\"Yes\",Calc_BAU!BG$75,0)","v":0},{"$f":"BH80+IF('Data Input - General'!$F$10=\"Yes\",Calc_BAU!BH$81,0)+IF('Data Input - General'!$F$12=\"Yes\",Calc_BAU!BH$75,0)","v":0},{"$f":"BI80+IF('Data Input - General'!$F$10=\"Yes\",Calc_BAU!BI$81,0)+IF('Data Input - General'!$F$12=\"Yes\",Calc_BAU!BI$75,0)","v":0},{"$f":"BJ80+IF('Data Input - General'!$F$10=\"Yes\",Calc_BAU!BJ$81,0)+IF('Data Input - General'!$F$12=\"Yes\",Calc_BAU!BJ$75,0)","v":0},{"$f":"BK80+IF('Data Input - General'!$F$10=\"Yes\",Calc_BAU!BK$81,0)+IF('Data Input - General'!$F$12=\"Yes\",Calc_BAU!BK$75,0)","v":0},{"$f":"BL80+IF('Data Input - General'!$F$10=\"Yes\",Calc_BAU!BL$81,0)+IF('Data Input - General'!$F$12=\"Yes\",Calc_BAU!BL$75,0)","v":0},{"$f":"BM80+IF('Data Input - General'!$F$10=\"Yes\",Calc_BAU!BM$81,0)+IF('Data Input - General'!$F$12=\"Yes\",Calc_BAU!BM$75,0)","v":0},{"$f":"BN80+IF('Data Input - General'!$F$10=\"Yes\",Calc_BAU!BN$81,0)+IF('Data Input - General'!$F$12=\"Yes\",Calc_BAU!BN$75,0)","v":0},{"$f":"BO80+IF('Data Input - General'!$F$10=\"Yes\",Calc_BAU!BO$81,0)+IF('Data Input - General'!$F$12=\"Yes\",Calc_BAU!BO$75,0)","v":0},{"$f":"BP80+IF('Data Input - General'!$F$10=\"Yes\",Calc_BAU!BP$81,0)+IF('Data Input - General'!$F$12=\"Yes\",Calc_BAU!BP$75,0)","v":0},{"$f":"BQ80+IF('Data Input - General'!$F$10=\"Yes\",Calc_BAU!BQ$81,0)+IF('Data Input - General'!$F$12=\"Yes\",Calc_BAU!BQ$75,0)","v":0},{"$f":"BR80+IF('Data Input - General'!$F$10=\"Yes\",Calc_BAU!BR$81,0)+IF('Data Input - General'!$F$12=\"Yes\",Calc_BAU!BR$75,0)","v":0},{"$f":"BS80+IF('Data Input - General'!$F$10=\"Yes\",Calc_BAU!BS$81,0)+IF('Data Input - General'!$F$12=\"Yes\",Calc_BAU!BS$75,0)","v":0},{"$f":"BT80+IF('Data Input - General'!$F$10=\"Yes\",Calc_BAU!BT$81,0)+IF('Data Input - General'!$F$12=\"Yes\",Calc_BAU!BT$75,0)","v":0},{"$f":"BU80+IF('Data Input - General'!$F$10=\"Yes\",Calc_BAU!BU$81,0)+IF('Data Input - General'!$F$12=\"Yes\",Calc_BAU!BU$75,0)","v":0},{"$f":"BV80+IF('Data Input - General'!$F$10=\"Yes\",Calc_BAU!BV$81,0)+IF('Data Input - General'!$F$12=\"Yes\",Calc_BAU!BV$75,0)","v":0},{"$f":"BW80+IF('Data Input - General'!$F$10=\"Yes\",Calc_BAU!BW$81,0)+IF('Data Input - General'!$F$12=\"Yes\",Calc_BAU!BW$75,0)","v":0},{"$f":"BX80+IF('Data Input - General'!$F$10=\"Yes\",Calc_BAU!BX$81,0)+IF('Data Input - General'!$F$12=\"Yes\",Calc_BAU!BX$75,0)","v":0},{"$f":"BY80+IF('Data Input - General'!$F$10=\"Yes\",Calc_BAU!BY$81,0)+IF('Data Input - General'!$F$12=\"Yes\",Calc_BAU!BY$75,0)","v":0},{"$f":"BZ80+IF('Data Input - General'!$F$10=\"Yes\",Calc_BAU!BZ$81,0)+IF('Data Input - General'!$F$12=\"Yes\",Calc_BAU!BZ$75,0)","v":0},{"$f":"CA80+IF('Data Input - General'!$F$10=\"Yes\",Calc_BAU!CA$81,0)+IF('Data Input - General'!$F$12=\"Yes\",Calc_BAU!CA$75,0)","v":0},{"$f":"CB80+IF('Data Input - General'!$F$10=\"Yes\",Calc_BAU!CB$81,0)+IF('Data Input - General'!$F$12=\"Yes\",Calc_BAU!CB$75,0)","v":0},{"$f":"CC80+IF('Data Input - General'!$F$10=\"Yes\",Calc_BAU!CC$81,0)+IF('Data Input - General'!$F$12=\"Yes\",Calc_BAU!CC$75,0)","v":0},{"$f":"CD80+IF('Data Input - General'!$F$10=\"Yes\",Calc_BAU!CD$81,0)+IF('Data Input - General'!$F$12=\"Yes\",Calc_BAU!CD$75,0)","v":0},{"$f":"CE80+IF('Data Input - General'!$F$10=\"Yes\",Calc_BAU!CE$81,0)+IF('Data Input - General'!$F$12=\"Yes\",Calc_BAU!CE$75,0)","v":0},{"$f":"CF80+IF('Data Input - General'!$F$10=\"Yes\",Calc_BAU!CF$81,0)+IF('Data Input - General'!$F$12=\"Yes\",Calc_BAU!CF$75,0)","v":0},{"$f":"CG80+IF('Data Input - General'!$F$10=\"Yes\",Calc_BAU!CG$81,0)+IF('Data Input - General'!$F$12=\"Yes\",Calc_BAU!CG$75,0)","v":0},{"$f":"CH80+IF('Data Input - General'!$F$10=\"Yes\",Calc_BAU!CH$81,0)+IF('Data Input - General'!$F$12=\"Yes\",Calc_BAU!CH$75,0)","v":0},{"$f":"CI80+IF('Data Input - General'!$F$10=\"Yes\",Calc_BAU!CI$81,0)+IF('Data Input - General'!$F$12=\"Yes\",Calc_BAU!CI$75,0)","v":0},{"$f":"CJ80+IF('Data Input - General'!$F$10=\"Yes\",Calc_BAU!CJ$81,0)+IF('Data Input - General'!$F$12=\"Yes\",Calc_BAU!CJ$75,0)","v":0},{"$f":"CK80+IF('Data Input - General'!$F$10=\"Yes\",Calc_BAU!CK$81,0)+IF('Data Input - General'!$F$12=\"Yes\",Calc_BAU!CK$75,0)","v":0},{"$f":"CL80+IF('Data Input - General'!$F$10=\"Yes\",Calc_BAU!CL$81,0)+IF('Data Input - General'!$F$12=\"Yes\",Calc_BAU!CL$75,0)","v":0},{"$f":"CM80+IF('Data Input - General'!$F$10=\"Yes\",Calc_BAU!CM$81,0)+IF('Data Input - General'!$F$12=\"Yes\",Calc_BAU!CM$75,0)","v":0},{"$f":"CN80+IF('Data Input - General'!$F$10=\"Yes\",Calc_BAU!CN$81,0)+IF('Data Input - General'!$F$12=\"Yes\",Calc_BAU!CN$75,0)","v":0},{"$f":"CO80+IF('Data Input - General'!$F$10=\"Yes\",Calc_BAU!CO$81,0)+IF('Data Input - General'!$F$12=\"Yes\",Calc_BAU!CO$75,0)","v":0},{"$f":"CP80+IF('Data Input - General'!$F$10=\"Yes\",Calc_BAU!CP$81,0)+IF('Data Input - General'!$F$12=\"Yes\",Calc_BAU!CP$75,0)","v":0},{"$f":"CQ80+IF('Data Input - General'!$F$10=\"Yes\",Calc_BAU!CQ$81,0)+IF('Data Input - General'!$F$12=\"Yes\",Calc_BAU!CQ$75,0)","v":0},{"$f":"CR80+IF('Data Input - General'!$F$10=\"Yes\",Calc_BAU!CR$81,0)+IF('Data Input - General'!$F$12=\"Yes\",Calc_BAU!CR$75,0)","v":0},{"$f":"CS80+IF('Data Input - General'!$F$10=\"Yes\",Calc_BAU!CS$81,0)+IF('Data Input - General'!$F$12=\"Yes\",Calc_BAU!CS$75,0)","v":0},{"$f":"CT80+IF('Data Input - General'!$F$10=\"Yes\",Calc_BAU!CT$81,0)+IF('Data Input - General'!$F$12=\"Yes\",Calc_BAU!CT$75,0)","v":0},{"$f":"CU80+IF('Data Input - General'!$F$10=\"Yes\",Calc_BAU!CU$81,0)+IF('Data Input - General'!$F$12=\"Yes\",Calc_BAU!CU$75,0)","v":0},{"$f":"CV80+IF('Data Input - General'!$F$10=\"Yes\",Calc_BAU!CV$81,0)+IF('Data Input - General'!$F$12=\"Yes\",Calc_BAU!CV$75,0)","v":0},{"$f":"CW80+IF('Data Input - General'!$F$10=\"Yes\",Calc_BAU!CW$81,0)+IF('Data Input - General'!$F$12=\"Yes\",Calc_BAU!CW$75,0)","v":0},{"$f":"CX80+IF('Data Input - General'!$F$10=\"Yes\",Calc_BAU!CX$81,0)+IF('Data Input - General'!$F$12=\"Yes\",Calc_BAU!CX$75,0)","v":0},{"$f":"CY80+IF('Data Input - General'!$F$10=\"Yes\",Calc_BAU!CY$81,0)+IF('Data Input - General'!$F$12=\"Yes\",Calc_BAU!CY$75,0)","v":0}]
[null,"Non-traded","tCO2e",{"$f":"IF('Data Input - General'!$F$10=\"Yes\",0,Calc_BAU!D$81)+IF('Data Input - General'!$F$12=\"Yes\",0,Calc_BAU!D$75)","v":0},{"$f":"IF('Data Input - General'!$F$10=\"Yes\",0,Calc_BAU!E$81)+IF('Data Input - General'!$F$12=\"Yes\",0,Calc_BAU!E$75)","v":0},{"$f":"IF('Data Input - General'!$F$10=\"Yes\",0,Calc_BAU!F$81)+IF('Data Input - General'!$F$12=\"Yes\",0,Calc_BAU!F$75)","v":0},{"$f":"IF('Data Input - General'!$F$10=\"Yes\",0,Calc_BAU!G$81)+IF('Data Input - General'!$F$12=\"Yes\",0,Calc_BAU!G$75)","v":0},{"$f":"IF('Data Input - General'!$F$10=\"Yes\",0,Calc_BAU!H$81)+IF('Data Input - General'!$F$12=\"Yes\",0,Calc_BAU!H$75)","v":0},{"$f":"IF('Data Input - General'!$F$10=\"Yes\",0,Calc_BAU!I$81)+IF('Data Input - General'!$F$12=\"Yes\",0,Calc_BAU!I$75)","v":0},{"$f":"IF('Data Input - General'!$F$10=\"Yes\",0,Calc_BAU!J$81)+IF('Data Input - General'!$F$12=\"Yes\",0,Calc_BAU!J$75)","v":0},{"$f":"IF('Data Input - General'!$F$10=\"Yes\",0,Calc_BAU!K$81)+IF('Data Input - General'!$F$12=\"Yes\",0,Calc_BAU!K$75)","v":0},{"$f":"IF('Data Input - General'!$F$10=\"Yes\",0,Calc_BAU!L$81)+IF('Data Input - General'!$F$12=\"Yes\",0,Calc_BAU!L$75)","v":0},{"$f":"IF('Data Input - General'!$F$10=\"Yes\",0,Calc_BAU!M$81)+IF('Data Input - General'!$F$12=\"Yes\",0,Calc_BAU!M$75)","v":0},{"$f":"IF('Data Input - General'!$F$10=\"Yes\",0,Calc_BAU!N$81)+IF('Data Input - General'!$F$12=\"Yes\",0,Calc_BAU!N$75)","v":0},{"$f":"IF('Data Input - General'!$F$10=\"Yes\",0,Calc_BAU!O$81)+IF('Data Input - General'!$F$12=\"Yes\",0,Calc_BAU!O$75)","v":0},{"$f":"IF('Data Input - General'!$F$10=\"Yes\",0,Calc_BAU!P$81)+IF('Data Input - General'!$F$12=\"Yes\",0,Calc_BAU!P$75)","v":0},{"$f":"IF('Data Input - General'!$F$10=\"Yes\",0,Calc_BAU!Q$81)+IF('Data Input - General'!$F$12=\"Yes\",0,Calc_BAU!Q$75)","v":0},{"$f":"IF('Data Input - General'!$F$10=\"Yes\",0,Calc_BAU!R$81)+IF('Data Input - General'!$F$12=\"Yes\",0,Calc_BAU!R$75)","v":0},{"$f":"IF('Data Input - General'!$F$10=\"Yes\",0,Calc_BAU!S$81)+IF('Data Input - General'!$F$12=\"Yes\",0,Calc_BAU!S$75)","v":0},{"$f":"IF('Data Input - General'!$F$10=\"Yes\",0,Calc_BAU!T$81)+IF('Data Input - General'!$F$12=\"Yes\",0,Calc_BAU!T$75)","v":0},{"$f":"IF('Data Input - General'!$F$10=\"Yes\",0,Calc_BAU!U$81)+IF('Data Input - General'!$F$12=\"Yes\",0,Calc_BAU!U$75)","v":0},{"$f":"IF('Data Input - General'!$F$10=\"Yes\",0,Calc_BAU!V$81)+IF('Data Input - General'!$F$12=\"Yes\",0,Calc_BAU!V$75)","v":0},{"$f":"IF('Data Input - General'!$F$10=\"Yes\",0,Calc_BAU!W$81)+IF('Data Input - General'!$F$12=\"Yes\",0,Calc_BAU!W$75)","v":0},{"$f":"IF('Data Input - General'!$F$10=\"Yes\",0,Calc_BAU!X$81)+IF('Data Input - General'!$F$12=\"Yes\",0,Calc_BAU!X$75)","v":0},{"$f":"IF('Data Input - General'!$F$10=\"Yes\",0,Calc_BAU!Y$81)+IF('Data Input - General'!$F$12=\"Yes\",0,Calc_BAU!Y$75)","v":0},{"$f":"IF('Data Input - General'!$F$10=\"Yes\",0,Calc_BAU!Z$81)+IF('Data Input - General'!$F$12=\"Yes\",0,Calc_BAU!Z$75)","v":0},{"$f":"IF('Data Input - General'!$F$10=\"Yes\",0,Calc_BAU!AA$81)+IF('Data Input - General'!$F$12=\"Yes\",0,Calc_BAU!AA$75)","v":0},{"$f":"IF('Data Input - General'!$F$10=\"Yes\",0,Calc_BAU!AB$81)+IF('Data Input - General'!$F$12=\"Yes\",0,Calc_BAU!AB$75)","v":0},{"$f":"IF('Data Input - General'!$F$10=\"Yes\",0,Calc_BAU!AC$81)+IF('Data Input - General'!$F$12=\"Yes\",0,Calc_BAU!AC$75)","v":0},{"$f":"IF('Data Input - General'!$F$10=\"Yes\",0,Calc_BAU!AD$81)+IF('Data Input - General'!$F$12=\"Yes\",0,Calc_BAU!AD$75)","v":0},{"$f":"IF('Data Input - General'!$F$10=\"Yes\",0,Calc_BAU!AE$81)+IF('Data Input - General'!$F$12=\"Yes\",0,Calc_BAU!AE$75)","v":0},{"$f":"IF('Data Input - General'!$F$10=\"Yes\",0,Calc_BAU!AF$81)+IF('Data Input - General'!$F$12=\"Yes\",0,Calc_BAU!AF$75)","v":0},{"$f":"IF('Data Input - General'!$F$10=\"Yes\",0,Calc_BAU!AG$81)+IF('Data Input - General'!$F$12=\"Yes\",0,Calc_BAU!AG$75)","v":0},{"$f":"IF('Data Input - General'!$F$10=\"Yes\",0,Calc_BAU!AH$81)+IF('Data Input - General'!$F$12=\"Yes\",0,Calc_BAU!AH$75)","v":0},{"$f":"IF('Data Input - General'!$F$10=\"Yes\",0,Calc_BAU!AI$81)+IF('Data Input - General'!$F$12=\"Yes\",0,Calc_BAU!AI$75)","v":0},{"$f":"IF('Data Input - General'!$F$10=\"Yes\",0,Calc_BAU!AJ$81)+IF('Data Input - General'!$F$12=\"Yes\",0,Calc_BAU!AJ$75)","v":0},{"$f":"IF('Data Input - General'!$F$10=\"Yes\",0,Calc_BAU!AK$81)+IF('Data Input - General'!$F$12=\"Yes\",0,Calc_BAU!AK$75)","v":0},{"$f":"IF('Data Input - General'!$F$10=\"Yes\",0,Calc_BAU!AL$81)+IF('Data Input - General'!$F$12=\"Yes\",0,Calc_BAU!AL$75)","v":0},{"$f":"IF('Data Input - General'!$F$10=\"Yes\",0,Calc_BAU!AM$81)+IF('Data Input - General'!$F$12=\"Yes\",0,Calc_BAU!AM$75)","v":0},{"$f":"IF('Data Input - General'!$F$10=\"Yes\",0,Calc_BAU!AN$81)+IF('Data Input - General'!$F$12=\"Yes\",0,Calc_BAU!AN$75)","v":0},{"$f":"IF('Data Input - General'!$F$10=\"Yes\",0,Calc_BAU!AO$81)+IF('Data Input - General'!$F$12=\"Yes\",0,Calc_BAU!AO$75)","v":0},{"$f":"IF('Data Input - General'!$F$10=\"Yes\",0,Calc_BAU!AP$81)+IF('Data Input - General'!$F$12=\"Yes\",0,Calc_BAU!AP$75)","v":0},{"$f":"IF('Data Input - General'!$F$10=\"Yes\",0,Calc_BAU!AQ$81)+IF('Data Input - General'!$F$12=\"Yes\",0,Calc_BAU!AQ$75)","v":0},{"$f":"IF('Data Input - General'!$F$10=\"Yes\",0,Calc_BAU!AR$81)+IF('Data Input - General'!$F$12=\"Yes\",0,Calc_BAU!AR$75)","v":0},{"$f":"IF('Data Input - General'!$F$10=\"Yes\",0,Calc_BAU!AS$81)+IF('Data Input - General'!$F$12=\"Yes\",0,Calc_BAU!AS$75)","v":0},{"$f":"IF('Data Input - General'!$F$10=\"Yes\",0,Calc_BAU!AT$81)+IF('Data Input - General'!$F$12=\"Yes\",0,Calc_BAU!AT$75)","v":0},{"$f":"IF('Data Input - General'!$F$10=\"Yes\",0,Calc_BAU!AU$81)+IF('Data Input - General'!$F$12=\"Yes\",0,Calc_BAU!AU$75)","v":0},{"$f":"IF('Data Input - General'!$F$10=\"Yes\",0,Calc_BAU!AV$81)+IF('Data Input - General'!$F$12=\"Yes\",0,Calc_BAU!AV$75)","v":0},{"$f":"IF('Data Input - General'!$F$10=\"Yes\",0,Calc_BAU!AW$81)+IF('Data Input - General'!$F$12=\"Yes\",0,Calc_BAU!AW$75)","v":0},{"$f":"IF('Data Input - General'!$F$10=\"Yes\",0,Calc_BAU!AX$81)+IF('Data Input - General'!$F$12=\"Yes\",0,Calc_BAU!AX$75)","v":0},{"$f":"IF('Data Input - General'!$F$10=\"Yes\",0,Calc_BAU!AY$81)+IF('Data Input - General'!$F$12=\"Yes\",0,Calc_BAU!AY$75)","v":0},{"$f":"IF('Data Input - General'!$F$10=\"Yes\",0,Calc_BAU!AZ$81)+IF('Data Input - General'!$F$12=\"Yes\",0,Calc_BAU!AZ$75)","v":0},{"$f":"IF('Data Input - General'!$F$10=\"Yes\",0,Calc_BAU!BA$81)+IF('Data Input - General'!$F$12=\"Yes\",0,Calc_BAU!BA$75)","v":0},{"$f":"IF('Data Input - General'!$F$10=\"Yes\",0,Calc_BAU!BB$81)+IF('Data Input - General'!$F$12=\"Yes\",0,Calc_BAU!BB$75)","v":0},{"$f":"IF('Data Input - General'!$F$10=\"Yes\",0,Calc_BAU!BC$81)+IF('Data Input - General'!$F$12=\"Yes\",0,Calc_BAU!BC$75)","v":0},{"$f":"IF('Data Input - General'!$F$10=\"Yes\",0,Calc_BAU!BD$81)+IF('Data Input - General'!$F$12=\"Yes\",0,Calc_BAU!BD$75)","v":0},{"$f":"IF('Data Input - General'!$F$10=\"Yes\",0,Calc_BAU!BE$81)+IF('Data Input - General'!$F$12=\"Yes\",0,Calc_BAU!BE$75)","v":0},{"$f":"IF('Data Input - General'!$F$10=\"Yes\",0,Calc_BAU!BF$81)+IF('Data Input - General'!$F$12=\"Yes\",0,Calc_BAU!BF$75)","v":0},{"$f":"IF('Data Input - General'!$F$10=\"Yes\",0,Calc_BAU!BG$81)+IF('Data Input - General'!$F$12=\"Yes\",0,Calc_BAU!BG$75)","v":0},{"$f":"IF('Data Input - General'!$F$10=\"Yes\",0,Calc_BAU!BH$81)+IF('Data Input - General'!$F$12=\"Yes\",0,Calc_BAU!BH$75)","v":0},{"$f":"IF('Data Input - General'!$F$10=\"Yes\",0,Calc_BAU!BI$81)+IF('Data Input - General'!$F$12=\"Yes\",0,Calc_BAU!BI$75)","v":0},{"$f":"IF('Data Input - General'!$F$10=\"Yes\",0,Calc_BAU!BJ$81)+IF('Data Input - General'!$F$12=\"Yes\",0,Calc_BAU!BJ$75)","v":0},{"$f":"IF('Data Input - General'!$F$10=\"Yes\",0,Calc_BAU!BK$81)+IF('Data Input - General'!$F$12=\"Yes\",0,Calc_BAU!BK$75)","v":0},{"$f":"IF('Data Input - General'!$F$10=\"Yes\",0,Calc_BAU!BL$81)+IF('Data Input - General'!$F$12=\"Yes\",0,Calc_BAU!BL$75)","v":0},{"$f":"IF('Data Input - General'!$F$10=\"Yes\",0,Calc_BAU!BM$81)+IF('Data Input - General'!$F$12=\"Yes\",0,Calc_BAU!BM$75)","v":0},{"$f":"IF('Data Input - General'!$F$10=\"Yes\",0,Calc_BAU!BN$81)+IF('Data Input - General'!$F$12=\"Yes\",0,Calc_BAU!BN$75)","v":0},{"$f":"IF('Data Input - General'!$F$10=\"Yes\",0,Calc_BAU!BO$81)+IF('Data Input - General'!$F$12=\"Yes\",0,Calc_BAU!BO$75)","v":0},{"$f":"IF('Data Input - General'!$F$10=\"Yes\",0,Calc_BAU!BP$81)+IF('Data Input - General'!$F$12=\"Yes\",0,Calc_BAU!BP$75)","v":0},{"$f":"IF('Data Input - General'!$F$10=\"Yes\",0,Calc_BAU!BQ$81)+IF('Data Input - General'!$F$12=\"Yes\",0,Calc_BAU!BQ$75)","v":0},{"$f":"IF('Data Input - General'!$F$10=\"Yes\",0,Calc_BAU!BR$81)+IF('Data Input - General'!$F$12=\"Yes\",0,Calc_BAU!BR$75)","v":0},{"$f":"IF('Data Input - General'!$F$10=\"Yes\",0,Calc_BAU!BS$81)+IF('Data Input - General'!$F$12=\"Yes\",0,Calc_BAU!BS$75)","v":0},{"$f":"IF('Data Input - General'!$F$10=\"Yes\",0,Calc_BAU!BT$81)+IF('Data Input - General'!$F$12=\"Yes\",0,Calc_BAU!BT$75)","v":0},{"$f":"IF('Data Input - General'!$F$10=\"Yes\",0,Calc_BAU!BU$81)+IF('Data Input - General'!$F$12=\"Yes\",0,Calc_BAU!BU$75)","v":0},{"$f":"IF('Data Input - General'!$F$10=\"Yes\",0,Calc_BAU!BV$81)+IF('Data Input - General'!$F$12=\"Yes\",0,Calc_BAU!BV$75)","v":0},{"$f":"IF('Data Input - General'!$F$10=\"Yes\",0,Calc_BAU!BW$81)+IF('Data Input - General'!$F$12=\"Yes\",0,Calc_BAU!BW$75)","v":0},{"$f":"IF('Data Input - General'!$F$10=\"Yes\",0,Calc_BAU!BX$81)+IF('Data Input - General'!$F$12=\"Yes\",0,Calc_BAU!BX$75)","v":0},{"$f":"IF('Data Input - General'!$F$10=\"Yes\",0,Calc_BAU!BY$81)+IF('Data Input - General'!$F$12=\"Yes\",0,Calc_BAU!BY$75)","v":0},{"$f":"IF('Data Input - General'!$F$10=\"Yes\",0,Calc_BAU!BZ$81)+IF('Data Input - General'!$F$12=\"Yes\",0,Calc_BAU!BZ$75)","v":0},{"$f":"IF('Data Input - General'!$F$10=\"Yes\",0,Calc_BAU!CA$81)+IF('Data Input - General'!$F$12=\"Yes\",0,Calc_BAU!CA$75)","v":0},{"$f":"IF('Data Input - General'!$F$10=\"Yes\",0,Calc_BAU!CB$81)+IF('Data Input - General'!$F$12=\"Yes\",0,Calc_BAU!CB$75)","v":0},{"$f":"IF('Data Input - General'!$F$10=\"Yes\",0,Calc_BAU!CC$81)+IF('Data Input - General'!$F$12=\"Yes\",0,Calc_BAU!CC$75)","v":0},{"$f":"IF('Data Input - General'!$F$10=\"Yes\",0,Calc_BAU!CD$81)+IF('Data Input - General'!$F$12=\"Yes\",0,Calc_BAU!CD$75)","v":0},{"$f":"IF('Data Input - General'!$F$10=\"Yes\",0,Calc_BAU!CE$81)+IF('Data Input - General'!$F$12=\"Yes\",0,Calc_BAU!CE$75)","v":0},{"$f":"IF('Data Input - General'!$F$10=\"Yes\",0,Calc_BAU!CF$81)+IF('Data Input - General'!$F$12=\"Yes\",0,Calc_BAU!CF$75)","v":0},{"$f":"IF('Data Input - General'!$F$10=\"Yes\",0,Calc_BAU!CG$81)+IF('Data Input - General'!$F$12=\"Yes\",0,Calc_BAU!CG$75)","v":0},{"$f":"IF('Data Input - General'!$F$10=\"Yes\",0,Calc_BAU!CH$81)+IF('Data Input - General'!$F$12=\"Yes\",0,Calc_BAU!CH$75)","v":0},{"$f":"IF('Data Input - General'!$F$10=\"Yes\",0,Calc_BAU!CI$81)+IF('Data Input - General'!$F$12=\"Yes\",0,Calc_BAU!CI$75)","v":0},{"$f":"IF('Data Input - General'!$F$10=\"Yes\",0,Calc_BAU!CJ$81)+IF('Data Input - General'!$F$12=\"Yes\",0,Calc_BAU!CJ$75)","v":0},{"$f":"IF('Data Input - General'!$F$10=\"Yes\",0,Calc_BAU!CK$81)+IF('Data Input - General'!$F$12=\"Yes\",0,Calc_BAU!CK$75)","v":0},{"$f":"IF('Data Input - General'!$F$10=\"Yes\",0,Calc_BAU!CL$81)+IF('Data Input - General'!$F$12=\"Yes\",0,Calc_BAU!CL$75)","v":0},{"$f":"IF('Data Input - General'!$F$10=\"Yes\",0,Calc_BAU!CM$81)+IF('Data Input - General'!$F$12=\"Yes\",0,Calc_BAU!CM$75)","v":0},{"$f":"IF('Data Input - General'!$F$10=\"Yes\",0,Calc_BAU!CN$81)+IF('Data Input - General'!$F$12=\"Yes\",0,Calc_BAU!CN$75)","v":0},{"$f":"IF('Data Input - General'!$F$10=\"Yes\",0,Calc_BAU!CO$81)+IF('Data Input - General'!$F$12=\"Yes\",0,Calc_BAU!CO$75)","v":0},{"$f":"IF('Data Input - General'!$F$10=\"Yes\",0,Calc_BAU!CP$81)+IF('Data Input - General'!$F$12=\"Yes\",0,Calc_BAU!CP$75)","v":0},{"$f":"IF('Data Input - General'!$F$10=\"Yes\",0,Calc_BAU!CQ$81)+IF('Data Input - General'!$F$12=\"Yes\",0,Calc_BAU!CQ$75)","v":0},{"$f":"IF('Data Input - General'!$F$10=\"Yes\",0,Calc_BAU!CR$81)+IF('Data Input - General'!$F$12=\"Yes\",0,Calc_BAU!CR$75)","v":0},{"$f":"IF('Data Input - General'!$F$10=\"Yes\",0,Calc_BAU!CS$81)+IF('Data Input - General'!$F$12=\"Yes\",0,Calc_BAU!CS$75)","v":0},{"$f":"IF('Data Input - General'!$F$10=\"Yes\",0,Calc_BAU!CT$81)+IF('Data Input - General'!$F$12=\"Yes\",0,Calc_BAU!CT$75)","v":0},{"$f":"IF('Data Input - General'!$F$10=\"Yes\",0,Calc_BAU!CU$81)+IF('Data Input - General'!$F$12=\"Yes\",0,Calc_BAU!CU$75)","v":0},{"$f":"IF('Data Input - General'!$F$10=\"Yes\",0,Calc_BAU!CV$81)+IF('Data Input - General'!$F$12=\"Yes\",0,Calc_BAU!CV$75)","v":0},{"$f":"IF('Data Input - General'!$F$10=\"Yes\",0,Calc_BAU!CW$81)+IF('Data Input - General'!$F$12=\"Yes\",0,Calc_BAU!CW$75)","v":0},{"$f":"IF('Data Input - General'!$F$10=\"Yes\",0,Calc_BAU!CX$81)+IF('Data Input - General'!$F$12=\"Yes\",0,Calc_BAU!CX$75)","v":0},{"$f":"IF('Data Input - General'!$F$10=\"Yes\",0,Calc_BAU!CY$81)+IF('Data Input - General'!$F$12=\"Yes\",0,Calc_BAU!CY$75)","v":0}]
[null,"Value TRADED","£000's",{"$f":"IFERROR(INDEX('Carbon Prices'!$D$10:$CP$15,1,MATCH(Calc_BAU!D$6,'Carbon Prices'!$D$9:$CP$9,0))/1000,0)","v":0},{"$f":"IFERROR(INDEX('Carbon Prices'!$D$10:$CP$15,1,MATCH(Calc_BAU!E$6,'Carbon Prices'!$D$9:$CP$9,0))/1000,0)","v":0},{"$f":"IFERROR(INDEX('Carbon Prices'!$D$10:$CP$15,1,MATCH(Calc_BAU!F$6,'Carbon Prices'!$D$9:$CP$9,0))/1000,0)","v":4.2168152036321628E-3},{"$f":"IFERROR(INDEX('Carbon Prices'!$D$10:$CP$15,1,MATCH(Calc_BAU!G$6,'Carbon Prices'!$D$9:$CP$9,0))/1000,0)","v":8.4336304072643257E-3},{"$f":"IFERROR(INDEX('Carbon Prices'!$D$10:$CP$15,1,MATCH(Calc_BAU!H$6,'Carbon Prices'!$D$9:$CP$9,0))/1000,0)","v":1.2650445610896488E-2},{"$f":"IFERROR(INDEX('Carbon Prices'!$D$10:$CP$15,1,MATCH(Calc_BAU!I$6,'Carbon Prices'!$D$9:$CP$9,0))/1000,0)","v":1.6867260814528651E-2},{"$f":"IFERROR(INDEX('Carbon Prices'!$D$10:$CP$15,1,MATCH(Calc_BAU!J$6,'Carbon Prices'!$D$9:$CP$9,0))/1000,0)","v":2.1084076018160813E-2},{"$f":"IFERROR(INDEX('Carbon Prices'!$D$10:$CP$15,1,MATCH(Calc_BAU!K$6,'Carbon Prices'!$D$9:$CP$9,0))/1000,0)","v":2.5300891221792975E-2},{"$f":"IFERROR(INDEX('Carbon Prices'!$D$10:$CP$15,1,MATCH(Calc_BAU!L$6,'Carbon Prices'!$D$9:$CP$9,0))/1000,0)","v":2.9517706425425144E-2},{"$f":"IFERROR(INDEX('Carbon Prices'!$D$10:$CP$15,1,MATCH(Calc_BAU!M$6,'Carbon Prices'!$D$9:$CP$9,0))/1000,0)","v":3.3734521629057303E-2},{"$f":"IFERROR(INDEX('Carbon Prices'!$D$10:$CP$15,1,MATCH(Calc_BAU!N$6,'Carbon Prices'!$D$9:$CP$9,0))/1000,0)","v":3.7951336832689468E-2},{"$f":"IFERROR(INDEX('Carbon Prices'!$D$10:$CP$15,1,MATCH(Calc_BAU!O$6,'Carbon Prices'!$D$9:$CP$9,0))/1000,0)","v":4.2168152036321627E-2},{"$f":"IFERROR(INDEX('Carbon Prices'!$D$10:$CP$15,1,MATCH(Calc_BAU!P$6,'Carbon Prices'!$D$9:$CP$9,0))/1000,0)","v":4.6083766153980084E-2},{"$f":"IFERROR(INDEX('Carbon Prices'!$D$10:$CP$15,1,MATCH(Calc_BAU!Q$6,'Carbon Prices'!$D$9:$CP$9,0))/1000,0)","v":4.999938027163852E-2},{"$f":"IFERROR(INDEX('Carbon Prices'!$D$10:$CP$15,1,MATCH(Calc_BAU!R$6,'Carbon Prices'!$D$9:$CP$9,0))/1000,0)","v":5.3914994389296957E-2},{"$f":"IFERROR(INDEX('Carbon Prices'!$D$10:$CP$15,1,MATCH(Calc_BAU!S$6,'Carbon Prices'!$D$9:$CP$9,0))/1000,0)","v":5.78306085069554E-2},{"$f":"IFERROR(INDEX('Carbon Prices'!$D$10:$CP$15,1,MATCH(Calc_BAU!T$6,'Carbon Prices'!$D$9:$CP$9,0))/1000,0)","v":6.1746222624613836E-2},{"$f":"IFERROR(INDEX('Carbon Prices'!$D$10:$CP$15,1,MATCH(Calc_BAU!U$6,'Carbon Prices'!$D$9:$CP$9,0))/1000,0)","v":6.5661836742272273E-2},{"$f":"IFERROR(INDEX('Carbon Prices'!$D$10:$CP$15,1,MATCH(Calc_BAU!V$6,'Carbon Prices'!$D$9:$CP$9,0))/1000,0)","v":6.9577450859930709E-2},{"$f":"IFERROR(INDEX('Carbon Prices'!$D$10:$CP$15,1,MATCH(Calc_BAU!W$6,'Carbon Prices'!$D$9:$CP$9,0))/1000,0)","v":7.3493064977589145E-2},{"$f":"IFERROR(INDEX('Carbon Prices'!$D$10:$CP$15,1,MATCH(Calc_BAU!X$6,'Carbon Prices'!$D$9:$CP$9,0))/1000,0)","v":7.7408679095247609E-2},{"$f":"IFERROR(INDEX('Carbon Prices'!$D$10:$CP$15,1,MATCH(Calc_BAU!Y$6,'Carbon Prices'!$D$9:$CP$9,0))/1000,0)","v":8.1324293212906046E-2},{"$f":"IFERROR(INDEX('Carbon Prices'!$D$10:$CP$15,1,MATCH(Calc_BAU!Z$6,'Carbon Prices'!$D$9:$CP$9,0))/1000,0)","v":8.5239907330564482E-2},{"$f":"IFERROR(INDEX('Carbon Prices'!$D$10:$CP$15,1,MATCH(Calc_BAU!AA$6,'Carbon Prices'!$D$9:$CP$9,0))/1000,0)","v":8.9155521448222919E-2},{"$f":"IFERROR(INDEX('Carbon Prices'!$D$10:$CP$15,1,MATCH(Calc_BAU!AB$6,'Carbon Prices'!$D$9:$CP$9,0))/1000,0)","v":9.3071135565881355E-2},{"$f":"IFERROR(INDEX('Carbon Prices'!$D$10:$CP$15,1,MATCH(Calc_BAU!AC$6,'Carbon Prices'!$D$9:$CP$9,0))/1000,0)","v":9.6986749683539791E-2},{"$f":"IFERROR(INDEX('Carbon Prices'!$D$10:$CP$15,1,MATCH(Calc_BAU!AD$6,'Carbon Prices'!$D$9:$CP$9,0))/1000,0)","v":0.10090236380119821},{"$f":"IFERROR(INDEX('Carbon Prices'!$D$10:$CP$15,1,MATCH(Calc_BAU!AE$6,'Carbon Prices'!$D$9:$CP$9,0))/1000,0)","v":0.10481797791885665},{"$f":"IFERROR(INDEX('Carbon Prices'!$D$10:$CP$15,1,MATCH(Calc_BAU!AF$6,'Carbon Prices'!$D$9:$CP$9,0))/1000,0)","v":0.1087335920365151},{"$f":"IFERROR(INDEX('Carbon Prices'!$D$10:$CP$15,1,MATCH(Calc_BAU!AG$6,'Carbon Prices'!$D$9:$CP$9,0))/1000,0)","v":0.11264920615417354},{"$f":"IFERROR(INDEX('Carbon Prices'!$D$10:$CP$15,1,MATCH(Calc_BAU!AH$6,'Carbon Prices'!$D$9:$CP$9,0))/1000,0)","v":0.11656482027183197},{"$f":"IFERROR(INDEX('Carbon Prices'!$D$10:$CP$15,1,MATCH(Calc_BAU!AI$6,'Carbon Prices'!$D$9:$CP$9,0))/1000,0)","v":0},{"$f":"IFERROR(INDEX('Carbon Prices'!$D$10:$CP$15,1,MATCH(Calc_BAU!AJ$6,'Carbon Prices'!$D$9:$CP$9,0))/1000,0)","v":0},{"$f":"IFERROR(INDEX('Carbon Prices'!$D$10:$CP$15,1,MATCH(Calc_BAU!AK$6,'Carbon Prices'!$D$9:$CP$9,0))/1000,0)","v":0},{"$f":"IFERROR(INDEX('Carbon Prices'!$D$10:$CP$15,1,MATCH(Calc_BAU!AL$6,'Carbon Prices'!$D$9:$CP$9,0))/1000,0)","v":0},{"$f":"IFERROR(INDEX('Carbon Prices'!$D$10:$CP$15,1,MATCH(Calc_BAU!AM$6,'Carbon Prices'!$D$9:$CP$9,0))/1000,0)","v":0},{"$f":"IFERROR(INDEX('Carbon Prices'!$D$10:$CP$15,1,MATCH(Calc_BAU!AN$6,'Carbon Prices'!$D$9:$CP$9,0))/1000,0)","v":0},{"$f":"IFERROR(INDEX('Carbon Prices'!$D$10:$CP$15,1,MATCH(Calc_BAU!AO$6,'Carbon Prices'!$D$9:$CP$9,0))/1000,0)","v":0},{"$f":"IFERROR(INDEX('Carbon Prices'!$D$10:$CP$15,1,MATCH(Calc_BAU!AP$6,'Carbon Prices'!$D$9:$CP$9,0))/1000,0)","v":0},{"$f":"IFERROR(INDEX('Carbon Prices'!$D$10:$CP$15,1,MATCH(Calc_BAU!AQ$6,'Carbon Prices'!$D$9:$CP$9,0))/1000,0)","v":0},{"$f":"IFERROR(INDEX('Carbon Prices'!$D$10:$CP$15,1,MATCH(Calc_BAU!AR$6,'Carbon Prices'!$D$9:$CP$9,0))/1000,0)","v":0},{"$f":"IFERROR(INDEX('Carbon Prices'!$D$10:$CP$15,1,MATCH(Calc_BAU!AS$6,'Carbon Prices'!$D$9:$CP$9,0))/1000,0)","v":0},{"$f":"IFERROR(INDEX('Carbon Prices'!$D$10:$CP$15,1,MATCH(Calc_BAU!AT$6,'Carbon Prices'!$D$9:$CP$9,0))/1000,0)","v":0},{"$f":"IFERROR(INDEX('Carbon Prices'!$D$10:$CP$15,1,MATCH(Calc_BAU!AU$6,'Carbon Prices'!$D$9:$CP$9,0))/1000,0)","v":0},{"$f":"IFERROR(INDEX('Carbon Prices'!$D$10:$CP$15,1,MATCH(Calc_BAU!AV$6,'Carbon Prices'!$D$9:$CP$9,0))/1000,0)","v":0},{"$f":"IFERROR(INDEX('Carbon Prices'!$D$10:$CP$15,1,MATCH(Calc_BAU!AW$6,'Carbon Prices'!$D$9:$CP$9,0))/1000,0)","v":0},{"$f":"IFERROR(INDEX('Carbon Prices'!$D$10:$CP$15,1,MATCH(Calc_BAU!AX$6,'Carbon Prices'!$D$9:$CP$9,0))/1000,0)","v":0},{"$f":"IFERROR(INDEX('Carbon Prices'!$D$10:$CP$15,1,MATCH(Calc_BAU!AY$6,'Carbon Prices'!$D$9:$CP$9,0))/1000,0)","v":0},{"$f":"IFERROR(INDEX('Carbon Prices'!$D$10:$CP$15,1,MATCH(Calc_BAU!AZ$6,'Carbon Prices'!$D$9:$CP$9,0))/1000,0)","v":0},{"$f":"IFERROR(INDEX('Carbon Prices'!$D$10:$CP$15,1,MATCH(Calc_BAU!BA$6,'Carbon Prices'!$D$9:$CP$9,0))/1000,0)","v":0},{"$f":"IFERROR(INDEX('Carbon Prices'!$D$10:$CP$15,1,MATCH(Calc_BAU!BB$6,'Carbon Prices'!$D$9:$CP$9,0))/1000,0)","v":0},{"$f":"IFERROR(INDEX('Carbon Prices'!$D$10:$CP$15,1,MATCH(Calc_BAU!BC$6,'Carbon Prices'!$D$9:$CP$9,0))/1000,0)","v":0},{"$f":"IFERROR(INDEX('Carbon Prices'!$D$10:$CP$15,1,MATCH(Calc_BAU!BD$6,'Carbon Prices'!$D$9:$CP$9,0))/1000,0)","v":0},{"$f":"IFERROR(INDEX('Carbon Prices'!$D$10:$CP$15,1,MATCH(Calc_BAU!BE$6,'Carbon Prices'!$D$9:$CP$9,0))/1000,0)","v":0},{"$f":"IFERROR(INDEX('Carbon Prices'!$D$10:$CP$15,1,MATCH(Calc_BAU!BF$6,'Carbon Prices'!$D$9:$CP$9,0))/1000,0)","v":0},{"$f":"IFERROR(INDEX('Carbon Prices'!$D$10:$CP$15,1,MATCH(Calc_BAU!BG$6,'Carbon Prices'!$D$9:$CP$9,0))/1000,0)","v":0},{"$f":"IFERROR(INDEX('Carbon Prices'!$D$10:$CP$15,1,MATCH(Calc_BAU!BH$6,'Carbon Prices'!$D$9:$CP$9,0))/1000,0)","v":0},{"$f":"IFERROR(INDEX('Carbon Prices'!$D$10:$CP$15,1,MATCH(Calc_BAU!BI$6,'Carbon Prices'!$D$9:$CP$9,0))/1000,0)","v":0},{"$f":"IFERROR(INDEX('Carbon Prices'!$D$10:$CP$15,1,MATCH(Calc_BAU!BJ$6,'Carbon Prices'!$D$9:$CP$9,0))/1000,0)","v":0},{"$f":"IFERROR(INDEX('Carbon Prices'!$D$10:$CP$15,1,MATCH(Calc_BAU!BK$6,'Carbon Prices'!$D$9:$CP$9,0))/1000,0)","v":0},{"$f":"IFERROR(INDEX('Carbon Prices'!$D$10:$CP$15,1,MATCH(Calc_BAU!BL$6,'Carbon Prices'!$D$9:$CP$9,0))/1000,0)","v":0},{"$f":"IFERROR(INDEX('Carbon Prices'!$D$10:$CP$15,1,MATCH(Calc_BAU!BM$6,'Carbon Prices'!$D$9:$CP$9,0))/1000,0)","v":0},{"$f":"IFERROR(INDEX('Carbon Prices'!$D$10:$CP$15,1,MATCH(Calc_BAU!BN$6,'Carbon Prices'!$D$9:$CP$9,0))/1000,0)","v":0},{"$f":"IFERROR(INDEX('Carbon Prices'!$D$10:$CP$15,1,MATCH(Calc_BAU!BO$6,'Carbon Prices'!$D$9:$CP$9,0))/1000,0)","v":0},{"$f":"IFERROR(INDEX('Carbon Prices'!$D$10:$CP$15,1,MATCH(Calc_BAU!BP$6,'Carbon Prices'!$D$9:$CP$9,0))/1000,0)","v":0},{"$f":"IFERROR(INDEX('Carbon Prices'!$D$10:$CP$15,1,MATCH(Calc_BAU!BQ$6,'Carbon Prices'!$D$9:$CP$9,0))/1000,0)","v":0},{"$f":"IFERROR(INDEX('Carbon Prices'!$D$10:$CP$15,1,MATCH(Calc_BAU!BR$6,'Carbon Prices'!$D$9:$CP$9,0))/1000,0)","v":0},{"$f":"IFERROR(INDEX('Carbon Prices'!$D$10:$CP$15,1,MATCH(Calc_BAU!BS$6,'Carbon Prices'!$D$9:$CP$9,0))/1000,0)","v":0},{"$f":"IFERROR(INDEX('Carbon Prices'!$D$10:$CP$15,1,MATCH(Calc_BAU!BT$6,'Carbon Prices'!$D$9:$CP$9,0))/1000,0)","v":0},{"$f":"IFERROR(INDEX('Carbon Prices'!$D$10:$CP$15,1,MATCH(Calc_BAU!BU$6,'Carbon Prices'!$D$9:$CP$9,0))/1000,0)","v":0},{"$f":"IFERROR(INDEX('Carbon Prices'!$D$10:$CP$15,1,MATCH(Calc_BAU!BV$6,'Carbon Prices'!$D$9:$CP$9,0))/1000,0)","v":0},{"$f":"IFERROR(INDEX('Carbon Prices'!$D$10:$CP$15,1,MATCH(Calc_BAU!BW$6,'Carbon Prices'!$D$9:$CP$9,0))/1000,0)","v":0},{"$f":"IFERROR(INDEX('Carbon Prices'!$D$10:$CP$15,1,MATCH(Calc_BAU!BX$6,'Carbon Prices'!$D$9:$CP$9,0))/1000,0)","v":0},{"$f":"IFERROR(INDEX('Carbon Prices'!$D$10:$CP$15,1,MATCH(Calc_BAU!BY$6,'Carbon Prices'!$D$9:$CP$9,0))/1000,0)","v":0},{"$f":"IFERROR(INDEX('Carbon Prices'!$D$10:$CP$15,1,MATCH(Calc_BAU!BZ$6,'Carbon Prices'!$D$9:$CP$9,0))/1000,0)","v":0},{"$f":"IFERROR(INDEX('Carbon Prices'!$D$10:$CP$15,1,MATCH(Calc_BAU!CA$6,'Carbon Prices'!$D$9:$CP$9,0))/1000,0)","v":0},{"$f":"IFERROR(INDEX('Carbon Prices'!$D$10:$CP$15,1,MATCH(Calc_BAU!CB$6,'Carbon Prices'!$D$9:$CP$9,0))/1000,0)","v":0},{"$f":"IFERROR(INDEX('Carbon Prices'!$D$10:$CP$15,1,MATCH(Calc_BAU!CC$6,'Carbon Prices'!$D$9:$CP$9,0))/1000,0)","v":0},{"$f":"IFERROR(INDEX('Carbon Prices'!$D$10:$CP$15,1,MATCH(Calc_BAU!CD$6,'Carbon Prices'!$D$9:$CP$9,0))/1000,0)","v":0},{"$f":"IFERROR(INDEX('Carbon Prices'!$D$10:$CP$15,1,MATCH(Calc_BAU!CE$6,'Carbon Prices'!$D$9:$CP$9,0))/1000,0)","v":0},{"$f":"IFERROR(INDEX('Carbon Prices'!$D$10:$CP$15,1,MATCH(Calc_BAU!CF$6,'Carbon Prices'!$D$9:$CP$9,0))/1000,0)","v":0},{"$f":"IFERROR(INDEX('Carbon Prices'!$D$10:$CP$15,1,MATCH(Calc_BAU!CG$6,'Carbon Prices'!$D$9:$CP$9,0))/1000,0)","v":0},{"$f":"IFERROR(INDEX('Carbon Prices'!$D$10:$CP$15,1,MATCH(Calc_BAU!CH$6,'Carbon Prices'!$D$9:$CP$9,0))/1000,0)","v":0},{"$f":"IFERROR(INDEX('Carbon Prices'!$D$10:$CP$15,1,MATCH(Calc_BAU!CI$6,'Carbon Prices'!$D$9:$CP$9,0))/1000,0)","v":0},{"$f":"IFERROR(INDEX('Carbon Prices'!$D$10:$CP$15,1,MATCH(Calc_BAU!CJ$6,'Carbon Prices'!$D$9:$CP$9,0))/1000,0)","v":0},{"$f":"IFERROR(INDEX('Carbon Prices'!$D$10:$CP$15,1,MATCH(Calc_BAU!CK$6,'Carbon Prices'!$D$9:$CP$9,0))/1000,0)","v":0},{"$f":"IFERROR(INDEX('Carbon Prices'!$D$10:$CP$15,1,MATCH(Calc_BAU!CL$6,'Carbon Prices'!$D$9:$CP$9,0))/1000,0)","v":0},{"$f":"IFERROR(INDEX('Carbon Prices'!$D$10:$CP$15,1,MATCH(Calc_BAU!CM$6,'Carbon Prices'!$D$9:$CP$9,0))/1000,0)","v":0},{"$f":"IFERROR(INDEX('Carbon Prices'!$D$10:$CP$15,1,MATCH(Calc_BAU!CN$6,'Carbon Prices'!$D$9:$CP$9,0))/1000,0)","v":0},{"$f":"IFERROR(INDEX('Carbon Prices'!$D$10:$CP$15,1,MATCH(Calc_BAU!CO$6,'Carbon Prices'!$D$9:$CP$9,0))/1000,0)","v":0},{"$f":"IFERROR(INDEX('Carbon Prices'!$D$10:$CP$15,1,MATCH(Calc_BAU!CP$6,'Carbon Prices'!$D$9:$CP$9,0))/1000,0)","v":0},{"$f":"IFERROR(INDEX('Carbon Prices'!$D$10:$CP$15,1,MATCH(Calc_BAU!CQ$6,'Carbon Prices'!$D$9:$CP$9,0))/1000,0)","v":0},{"$f":"IFERROR(INDEX('Carbon Prices'!$D$10:$CP$15,1,MATCH(Calc_BAU!CR$6,'Carbon Prices'!$D$9:$CP$9,0))/1000,0)","v":0},{"$f":"IFERROR(INDEX('Carbon Prices'!$D$10:$CP$15,1,MATCH(Calc_BAU!CS$6,'Carbon Prices'!$D$9:$CP$9,0))/1000,0)","v":0},{"$f":"IFERROR(INDEX('Carbon Prices'!$D$10:$CP$15,1,MATCH(Calc_BAU!CT$6,'Carbon Prices'!$D$9:$CP$9,0))/1000,0)","v":0},{"$f":"IFERROR(INDEX('Carbon Prices'!$D$10:$CP$15,1,MATCH(Calc_BAU!CU$6,'Carbon Prices'!$D$9:$CP$9,0))/1000,0)","v":0},{"$f":"IFERROR(INDEX('Carbon Prices'!$D$10:$CP$15,1,MATCH(Calc_BAU!CV$6,'Carbon Prices'!$D$9:$CP$9,0))/1000,0)","v":0},{"$f":"IFERROR(INDEX('Carbon Prices'!$D$10:$CP$15,1,MATCH(Calc_BAU!CW$6,'Carbon Prices'!$D$9:$CP$9,0))/1000,0)","v":0},{"$f":"IFERROR(INDEX('Carbon Prices'!$D$10:$CP$15,1,MATCH(Calc_BAU!CX$6,'Carbon Prices'!$D$9:$CP$9,0))/1000,0)","v":0},{"$f":"IFERROR(INDEX('Carbon Prices'!$D$10:$CP$15,1,MATCH(Calc_BAU!CY$6,'Carbon Prices'!$D$9:$CP$9,0))/1000,0)","v":0}]
[null,"Total NON-TRADED","£000's",{"$f":"IFERROR(INDEX('Carbon Prices'!$D$10:$CP$15,4,MATCH(Calc_BAU!D$6,'Carbon Prices'!$D$9:$CP$9,0))/1000,0)","v":3.560998060773117E-2},{"$f":"IFERROR(INDEX('Carbon Prices'!$D$10:$CP$15,4,MATCH(Calc_BAU!E$6,'Carbon Prices'!$D$9:$CP$9,0))/1000,0)","v":3.6144130316847128E-2},{"$f":"IFERROR(INDEX('Carbon Prices'!$D$10:$CP$15,4,MATCH(Calc_BAU!F$6,'Carbon Prices'!$D$9:$CP$9,0))/1000,0)","v":3.6746532488794573E-2},{"$f":"IFERROR(INDEX('Carbon Prices'!$D$10:$CP$15,4,MATCH(Calc_BAU!G$6,'Carbon Prices'!$D$9:$CP$9,0))/1000,0)","v":3.7348934660742031E-2},{"$f":"IFERROR(INDEX('Carbon Prices'!$D$10:$CP$15,4,MATCH(Calc_BAU!H$6,'Carbon Prices'!$D$9:$CP$9,0))/1000,0)","v":3.7951336832689482E-2},{"$f":"IFERROR(INDEX('Carbon Prices'!$D$10:$CP$15,4,MATCH(Calc_BAU!I$6,'Carbon Prices'!$D$9:$CP$9,0))/1000,0)","v":3.8553739004636933E-2},{"$f":"IFERROR(INDEX('Carbon Prices'!$D$10:$CP$15,4,MATCH(Calc_BAU!J$6,'Carbon Prices'!$D$9:$CP$9,0))/1000,0)","v":3.9156141176584384E-2},{"$f":"IFERROR(INDEX('Carbon Prices'!$D$10:$CP$15,4,MATCH(Calc_BAU!K$6,'Carbon Prices'!$D$9:$CP$9,0))/1000,0)","v":3.9758543348531836E-2},{"$f":"IFERROR(INDEX('Carbon Prices'!$D$10:$CP$15,4,MATCH(Calc_BAU!L$6,'Carbon Prices'!$D$9:$CP$9,0))/1000,0)","v":4.0360945520479294E-2},{"$f":"IFERROR(INDEX('Carbon Prices'!$D$10:$CP$15,4,MATCH(Calc_BAU!M$6,'Carbon Prices'!$D$9:$CP$9,0))/1000,0)","v":4.0963347692426738E-2},{"$f":"IFERROR(INDEX('Carbon Prices'!$D$10:$CP$15,4,MATCH(Calc_BAU!N$6,'Carbon Prices'!$D$9:$CP$9,0))/1000,0)","v":4.1565749864374189E-2},{"$f":"IFERROR(INDEX('Carbon Prices'!$D$10:$CP$15,4,MATCH(Calc_BAU!O$6,'Carbon Prices'!$D$9:$CP$9,0))/1000,0)","v":4.2168152036321647E-2},{"$f":"IFERROR(INDEX('Carbon Prices'!$D$10:$CP$15,4,MATCH(Calc_BAU!P$6,'Carbon Prices'!$D$9:$CP$9,0))/1000,0)","v":4.6083766153980084E-2},{"$f":"IFERROR(INDEX('Carbon Prices'!$D$10:$CP$15,4,MATCH(Calc_BAU!Q$6,'Carbon Prices'!$D$9:$CP$9,0))/1000,0)","v":4.999938027163852E-2},{"$f":"IFERROR(INDEX('Carbon Prices'!$D$10:$CP$15,4,MATCH(Calc_BAU!R$6,'Carbon Prices'!$D$9:$CP$9,0))/1000,0)","v":5.3914994389296957E-2},{"$f":"IFERROR(INDEX('Carbon Prices'!$D$10:$CP$15,4,MATCH(Calc_BAU!S$6,'Carbon Prices'!$D$9:$CP$9,0))/1000,0)","v":5.78306085069554E-2},{"$f":"IFERROR(INDEX('Carbon Prices'!$D$10:$CP$15,4,MATCH(Calc_BAU!T$6,'Carbon Prices'!$D$9:$CP$9,0))/1000,0)","v":6.1746222624613836E-2},{"$f":"IFERROR(INDEX('Carbon Prices'!$D$10:$CP$15,4,MATCH(Calc_BAU!U$6,'Carbon Prices'!$D$9:$CP$9,0))/1000,0)","v":6.5661836742272273E-2},{"$f":"IFERROR(INDEX('Carbon Prices'!$D$10:$CP$15,4,MATCH(Calc_BAU!V$6,'Carbon Prices'!$D$9:$CP$9,0))/1000,0)","v":6.9577450859930709E-2},{"$f":"IFERROR(INDEX('Carbon Prices'!$D$10:$CP$15,4,MATCH(Calc_BAU!W$6,'Carbon Prices'!$D$9:$CP$9,0))/1000,0)","v":7.3493064977589145E-2},{"$f":"IFERROR(INDEX('Carbon Prices'!$D$10:$CP$15,4,MATCH(Calc_BAU!X$6,'Carbon Prices'!$D$9:$CP$9,0))/1000,0)","v":7.7408679095247609E-2},{"$f":"IFERROR(INDEX('Carbon Prices'!$D$10:$CP$15,4,MATCH(Calc_BAU!Y$6,'Carbon Prices'!$D$9:$CP$9,0))/1000,0)","v":8.1324293212906046E-2},{"$f":"IFERROR(INDEX('Carbon Prices'!$D$10:$CP$15,4,MATCH(Calc_BAU!Z$6,'Carbon Prices'!$D$9:$CP$9,0))/1000,0)","v":8.5239907330564482E-2},{"$f":"IFERROR(INDEX('Carbon Prices'!$D$10:$CP$15,4,MATCH(Calc_BAU!AA$6,'Carbon Prices'!$D$9:$CP$9,0))/1000,0)","v":8.9155521448222919E-2},{"$f":"IFERROR(INDEX('Carbon Prices'!$D$10:$CP$15,4,MATCH(Calc_BAU!AB$6,'Carbon Prices'!$D$9:$CP$9,0))/1000,0)","v":9.3071135565881355E-2},{"$f":"IFERROR(INDEX('Carbon Prices'!$D$10:$CP$15,4,MATCH(Calc_BAU!AC$6,'Carbon Prices'!$D$9:$CP$9,0))/1000,0)","v":9.6986749683539791E-2},{"$f":"IFERROR(INDEX('Carbon Prices'!$D$10:$CP$15,4,MATCH(Calc_BAU!AD$6,'Carbon Prices'!$D$9:$CP$9,0))/1000,0)","v":0.10090236380119821},{"$f":"IFERROR(INDEX('Carbon Prices'!$D$10:$CP$15,4,MATCH(Calc_BAU!AE$6,'Carbon Prices'!$D$9:$CP$9,0))/1000,0)","v":0.10481797791885665},{"$f":"IFERROR(INDEX('Carbon Prices'!$D$10:$CP$15,4,MATCH(Calc_BAU!AF$6,'Carbon Prices'!$D$9:$CP$9,0))/1000,0)","v":0.1087335920365151},{"$f":"IFERROR(INDEX('Carbon Prices'!$D$10:$CP$15,4,MATCH(Calc_BAU!AG$6,'Carbon Prices'!$D$9:$CP$9,0))/1000,0)","v":0.11264920615417354},{"$f":"IFERROR(INDEX('Carbon Prices'!$D$10:$CP$15,4,MATCH(Calc_BAU!AH$6,'Carbon Prices'!$D$9:$CP$9,0))/1000,0)","v":0.11656482027183197},{"$f":"IFERROR(INDEX('Carbon Prices'!$D$10:$CP$15,4,MATCH(Calc_BAU!AI$6,'Carbon Prices'!$D$9:$CP$9,0))/1000,0)","v":0},{"$f":"IFERROR(INDEX('Carbon Prices'!$D$10:$CP$15,4,MATCH(Calc_BAU!AJ$6,'Carbon Prices'!$D$9:$CP$9,0))/1000,0)","v":0},{"$f":"IFERROR(INDEX('Carbon Prices'!$D$10:$CP$15,4,MATCH(Calc_BAU!AK$6,'Carbon Prices'!$D$9:$CP$9,0))/1000,0)","v":0},{"$f":"IFERROR(INDEX('Carbon Prices'!$D$10:$CP$15,4,MATCH(Calc_BAU!AL$6,'Carbon Prices'!$D$9:$CP$9,0))/1000,0)","v":0},{"$f":"IFERROR(INDEX('Carbon Prices'!$D$10:$CP$15,4,MATCH(Calc_BAU!AM$6,'Carbon Prices'!$D$9:$CP$9,0))/1000,0)","v":0},{"$f":"IFERROR(INDEX('Carbon Prices'!$D$10:$CP$15,4,MATCH(Calc_BAU!AN$6,'Carbon Prices'!$D$9:$CP$9,0))/1000,0)","v":0},{"$f":"IFERROR(INDEX('Carbon Prices'!$D$10:$CP$15,4,MATCH(Calc_BAU!AO$6,'Carbon Prices'!$D$9:$CP$9,0))/1000,0)","v":0},{"$f":"IFERROR(INDEX('Carbon Prices'!$D$10:$CP$15,4,MATCH(Calc_BAU!AP$6,'Carbon Prices'!$D$9:$CP$9,0))/1000,0)","v":0},{"$f":"IFERROR(INDEX('Carbon Prices'!$D$10:$CP$15,4,MATCH(Calc_BAU!AQ$6,'Carbon Prices'!$D$9:$CP$9,0))/1000,0)","v":0},{"$f":"IFERROR(INDEX('Carbon Prices'!$D$10:$CP$15,4,MATCH(Calc_BAU!AR$6,'Carbon Prices'!$D$9:$CP$9,0))/1000,0)","v":0},{"$f":"IFERROR(INDEX('Carbon Prices'!$D$10:$CP$15,4,MATCH(Calc_BAU!AS$6,'Carbon Prices'!$D$9:$CP$9,0))/1000,0)","v":0},{"$f":"IFERROR(INDEX('Carbon Prices'!$D$10:$CP$15,4,MATCH(Calc_BAU!AT$6,'Carbon Prices'!$D$9:$CP$9,0))/1000,0)","v":0},{"$f":"IFERROR(INDEX('Carbon Prices'!$D$10:$CP$15,4,MATCH(Calc_BAU!AU$6,'Carbon Prices'!$D$9:$CP$9,0))/1000,0)","v":0},{"$f":"IFERROR(INDEX('Carbon Prices'!$D$10:$CP$15,4,MATCH(Calc_BAU!AV$6,'Carbon Prices'!$D$9:$CP$9,0))/1000,0)","v":0},{"$f":"IFERROR(INDEX('Carbon Prices'!$D$10:$CP$15,4,MATCH(Calc_BAU!AW$6,'Carbon Prices'!$D$9:$CP$9,0))/1000,0)","v":0},{"$f":"IFERROR(INDEX('Carbon Prices'!$D$10:$CP$15,4,MATCH(Calc_BAU!AX$6,'Carbon Prices'!$D$9:$CP$9,0))/1000,0)","v":0},{"$f":"IFERROR(INDEX('Carbon Prices'!$D$10:$CP$15,4,MATCH(Calc_BAU!AY$6,'Carbon Prices'!$D$9:$CP$9,0))/1000,0)","v":0},{"$f":"IFERROR(INDEX('Carbon Prices'!$D$10:$CP$15,4,MATCH(Calc_BAU!AZ$6,'Carbon Prices'!$D$9:$CP$9,0))/1000,0)","v":0},{"$f":"IFERROR(INDEX('Carbon Prices'!$D$10:$CP$15,4,MATCH(Calc_BAU!BA$6,'Carbon Prices'!$D$9:$CP$9,0))/1000,0)","v":0},{"$f":"IFERROR(INDEX('Carbon Prices'!$D$10:$CP$15,4,MATCH(Calc_BAU!BB$6,'Carbon Prices'!$D$9:$CP$9,0))/1000,0)","v":0},{"$f":"IFERROR(INDEX('Carbon Prices'!$D$10:$CP$15,4,MATCH(Calc_BAU!BC$6,'Carbon Prices'!$D$9:$CP$9,0))/1000,0)","v":0},{"$f":"IFERROR(INDEX('Carbon Prices'!$D$10:$CP$15,4,MATCH(Calc_BAU!BD$6,'Carbon Prices'!$D$9:$CP$9,0))/1000,0)","v":0},{"$f":"IFERROR(INDEX('Carbon Prices'!$D$10:$CP$15,4,MATCH(Calc_BAU!BE$6,'Carbon Prices'!$D$9:$CP$9,0))/1000,0)","v":0},{"$f":"IFERROR(INDEX('Carbon Prices'!$D$10:$CP$15,4,MATCH(Calc_BAU!BF$6,'Carbon Prices'!$D$9:$CP$9,0))/1000,0)","v":0},{"$f":"IFERROR(INDEX('Carbon Prices'!$D$10:$CP$15,4,MATCH(Calc_BAU!BG$6,'Carbon Prices'!$D$9:$CP$9,0))/1000,0)","v":0},{"$f":"IFERROR(INDEX('Carbon Prices'!$D$10:$CP$15,4,MATCH(Calc_BAU!BH$6,'Carbon Prices'!$D$9:$CP$9,0))/1000,0)","v":0},{"$f":"IFERROR(INDEX('Carbon Prices'!$D$10:$CP$15,4,MATCH(Calc_BAU!BI$6,'Carbon Prices'!$D$9:$CP$9,0))/1000,0)","v":0},{"$f":"IFERROR(INDEX('Carbon Prices'!$D$10:$CP$15,4,MATCH(Calc_BAU!BJ$6,'Carbon Prices'!$D$9:$CP$9,0))/1000,0)","v":0},{"$f":"IFERROR(INDEX('Carbon Prices'!$D$10:$CP$15,4,MATCH(Calc_BAU!BK$6,'Carbon Prices'!$D$9:$CP$9,0))/1000,0)","v":0},{"$f":"IFERROR(INDEX('Carbon Prices'!$D$10:$CP$15,4,MATCH(Calc_BAU!BL$6,'Carbon Prices'!$D$9:$CP$9,0))/1000,0)","v":0},{"$f":"IFERROR(INDEX('Carbon Prices'!$D$10:$CP$15,4,MATCH(Calc_BAU!BM$6,'Carbon Prices'!$D$9:$CP$9,0))/1000,0)","v":0},{"$f":"IFERROR(INDEX('Carbon Prices'!$D$10:$CP$15,4,MATCH(Calc_BAU!BN$6,'Carbon Prices'!$D$9:$CP$9,0))/1000,0)","v":0},{"$f":"IFERROR(INDEX('Carbon Prices'!$D$10:$CP$15,4,MATCH(Calc_BAU!BO$6,'Carbon Prices'!$D$9:$CP$9,0))/1000,0)","v":0},{"$f":"IFERROR(INDEX('Carbon Prices'!$D$10:$CP$15,4,MATCH(Calc_BAU!BP$6,'Carbon Prices'!$D$9:$CP$9,0))/1000,0)","v":0},{"$f":"IFERROR(INDEX('Carbon Prices'!$D$10:$CP$15,4,MATCH(Calc_BAU!BQ$6,'Carbon Prices'!$D$9:$CP$9,0))/1000,0)","v":0},{"$f":"IFERROR(INDEX('Carbon Prices'!$D$10:$CP$15,4,MATCH(Calc_BAU!BR$6,'Carbon Prices'!$D$9:$CP$9,0))/1000,0)","v":0},{"$f":"IFERROR(INDEX('Carbon Prices'!$D$10:$CP$15,4,MATCH(Calc_BAU!BS$6,'Carbon Prices'!$D$9:$CP$9,0))/1000,0)","v":0},{"$f":"IFERROR(INDEX('Carbon Prices'!$D$10:$CP$15,4,MATCH(Calc_BAU!BT$6,'Carbon Prices'!$D$9:$CP$9,0))/1000,0)","v":0},{"$f":"IFERROR(INDEX('Carbon Prices'!$D$10:$CP$15,4,MATCH(Calc_BAU!BU$6,'Carbon Prices'!$D$9:$CP$9,0))/1000,0)","v":0},{"$f":"IFERROR(INDEX('Carbon Prices'!$D$10:$CP$15,4,MATCH(Calc_BAU!BV$6,'Carbon Prices'!$D$9:$CP$9,0))/1000,0)","v":0},{"$f":"IFERROR(INDEX('Carbon Prices'!$D$10:$CP$15,4,MATCH(Calc_BAU!BW$6,'Carbon Prices'!$D$9:$CP$9,0))/1000,0)","v":0},{"$f":"IFERROR(INDEX('Carbon Prices'!$D$10:$CP$15,4,MATCH(Calc_BAU!BX$6,'Carbon Prices'!$D$9:$CP$9,0))/1000,0)","v":0},{"$f":"IFERROR(INDEX('Carbon Prices'!$D$10:$CP$15,4,MATCH(Calc_BAU!BY$6,'Carbon Prices'!$D$9:$CP$9,0))/1000,0)","v":0},{"$f":"IFERROR(INDEX('Carbon Prices'!$D$10:$CP$15,4,MATCH(Calc_BAU!BZ$6,'Carbon Prices'!$D$9:$CP$9,0))/1000,0)","v":0},{"$f":"IFERROR(INDEX('Carbon Prices'!$D$10:$CP$15,4,MATCH(Calc_BAU!CA$6,'Carbon Prices'!$D$9:$CP$9,0))/1000,0)","v":0},{"$f":"IFERROR(INDEX('Carbon Prices'!$D$10:$CP$15,4,MATCH(Calc_BAU!CB$6,'Carbon Prices'!$D$9:$CP$9,0))/1000,0)","v":0},{"$f":"IFERROR(INDEX('Carbon Prices'!$D$10:$CP$15,4,MATCH(Calc_BAU!CC$6,'Carbon Prices'!$D$9:$CP$9,0))/1000,0)","v":0},{"$f":"IFERROR(INDEX('Carbon Prices'!$D$10:$CP$15,4,MATCH(Calc_BAU!CD$6,'Carbon Prices'!$D$9:$CP$9,0))/1000,0)","v":0},{"$f":"IFERROR(INDEX('Carbon Prices'!$D$10:$CP$15,4,MATCH(Calc_BAU!CE$6,'Carbon Prices'!$D$9:$CP$9,0))/1000,0)","v":0},{"$f":"IFERROR(INDEX('Carbon Prices'!$D$10:$CP$15,4,MATCH(Calc_BAU!CF$6,'Carbon Prices'!$D$9:$CP$9,0))/1000,0)","v":0},{"$f":"IFERROR(INDEX('Carbon Prices'!$D$10:$CP$15,4,MATCH(Calc_BAU!CG$6,'Carbon Prices'!$D$9:$CP$9,0))/1000,0)","v":0},{"$f":"IFERROR(INDEX('Carbon Prices'!$D$10:$CP$15,4,MATCH(Calc_BAU!CH$6,'Carbon Prices'!$D$9:$CP$9,0))/1000,0)","v":0},{"$f":"IFERROR(INDEX('Carbon Prices'!$D$10:$CP$15,4,MATCH(Calc_BAU!CI$6,'Carbon Prices'!$D$9:$CP$9,0))/1000,0)","v":0},{"$f":"IFERROR(INDEX('Carbon Prices'!$D$10:$CP$15,4,MATCH(Calc_BAU!CJ$6,'Carbon Prices'!$D$9:$CP$9,0))/1000,0)","v":0},{"$f":"IFERROR(INDEX('Carbon Prices'!$D$10:$CP$15,4,MATCH(Calc_BAU!CK$6,'Carbon Prices'!$D$9:$CP$9,0))/1000,0)","v":0},{"$f":"IFERROR(INDEX('Carbon Prices'!$D$10:$CP$15,4,MATCH(Calc_BAU!CL$6,'Carbon Prices'!$D$9:$CP$9,0))/1000,0)","v":0},{"$f":"IFERROR(INDEX('Carbon Prices'!$D$10:$CP$15,4,MATCH(Calc_BAU!CM$6,'Carbon Prices'!$D$9:$CP$9,0))/1000,0)","v":0},{"$f":"IFERROR(INDEX('Carbon Prices'!$D$10:$CP$15,4,MATCH(Calc_BAU!CN$6,'Carbon Prices'!$D$9:$CP$9,0))/1000,0)","v":0},{"$f":"IFERROR(INDEX('Carbon Prices'!$D$10:$CP$15,4,MATCH(Calc_BAU!CO$6,'Carbon Prices'!$D$9:$CP$9,0))/1000,0)","v":0},{"$f":"IFERROR(INDEX('Carbon Prices'!$D$10:$CP$15,4,MATCH(Calc_BAU!CP$6,'Carbon Prices'!$D$9:$CP$9,0))/1000,0)","v":0},{"$f":"IFERROR(INDEX('Carbon Prices'!$D$10:$CP$15,4,MATCH(Calc_BAU!CQ$6,'Carbon Prices'!$D$9:$CP$9,0))/1000,0)","v":0},{"$f":"IFERROR(INDEX('Carbon Prices'!$D$10:$CP$15,4,MATCH(Calc_BAU!CR$6,'Carbon Prices'!$D$9:$CP$9,0))/1000,0)","v":0},{"$f":"IFERROR(INDEX('Carbon Prices'!$D$10:$CP$15,4,MATCH(Calc_BAU!CS$6,'Carbon Prices'!$D$9:$CP$9,0))/1000,0)","v":0},{"$f":"IFERROR(INDEX('Carbon Prices'!$D$10:$CP$15,4,MATCH(Calc_BAU!CT$6,'Carbon Prices'!$D$9:$CP$9,0))/1000,0)","v":0},{"$f":"IFERROR(INDEX('Carbon Prices'!$D$10:$CP$15,4,MATCH(Calc_BAU!CU$6,'Carbon Prices'!$D$9:$CP$9,0))/1000,0)","v":0},{"$f":"IFERROR(INDEX('Carbon Prices'!$D$10:$CP$15,4,MATCH(Calc_BAU!CV$6,'Carbon Prices'!$D$9:$CP$9,0))/1000,0)","v":0},{"$f":"IFERROR(INDEX('Carbon Prices'!$D$10:$CP$15,4,MATCH(Calc_BAU!CW$6,'Carbon Prices'!$D$9:$CP$9,0))/1000,0)","v":0},{"$f":"IFERROR(INDEX('Carbon Prices'!$D$10:$CP$15,4,MATCH(Calc_BAU!CX$6,'Carbon Prices'!$D$9:$CP$9,0))/1000,0)","v":0},{"$f":"IFERROR(INDEX('Carbon Prices'!$D$10:$CP$15,4,MATCH(Calc_BAU!CY$6,'Carbon Prices'!$D$9:$CP$9,0))/1000,0)","v":0}]
[null,"Discounted total","£000's",{"$f":"(D118*D120)+(D119*D121)*D$7","v":0},{"$f":"(E118*E120)+(E119*E121)*E$7","v":0},364.28302247003927,727.96562513329218,1090.3896583908042,1454.449813495597,1817.0801912884338,1040.0029475092201,0,0,0,0,0,0,0,0,0,0,0,0,0,0,0,0,0,0,0,0,0,0,0,0,0,0,0,0,0,0,0,0,0,0,0,0,0,0,0,0,0,0,0,0,0,0,0,0,0,0,0,0,0,0,0,0,0,{"$f":"(BQ118*BQ120)+(BQ119*BQ121)*BQ$7","v":0},0,0,0,0,0,0,0,0,0,0,0,0,0,0,0,0,0,0,0,0,0,0,0,0,0,0,0,0,0,0,0,0,0,0]
[]
[]
[null,"High values"]
[]
[null,"Energy Consumption"]
[null,"Electricity","£000's",{"$f":"IFERROR('Data Input - BAU'!H84*INDEX('Energy Prices'!$F$26:$CR$31,MATCH($B128,'Energy Prices'!$C$26:$C$31,0),MATCH(Calc_BAU!D$6,'Energy Prices'!$F$11:$CR$11,0))/100000,0)","v":510.4472426746147},{"$f":"IFERROR('Data Input - BAU'!I84*INDEX('Energy Prices'!$F$26:$CR$31,MATCH($B128,'Energy Prices'!$C$26:$C$31,0),MATCH(Calc_BAU!E$6,'Energy Prices'!$F$11:$CR$11,0))/100000,0)","v":521.90154191402712},{"$f":"IFERROR('Data Input - BAU'!J84*INDEX('Energy Prices'!$F$26:$CR$31,MATCH($B128,'Energy Prices'!$C$26:$C$31,0),MATCH(Calc_BAU!F$6,'Energy Prices'!$F$11:$CR$11,0))/100000,0)","v":567.55914390054477},{"$f":"IFERROR('Data Input - BAU'!K84*INDEX('Energy Prices'!$F$26:$CR$31,MATCH($B128,'Energy Prices'!$C$26:$C$31,0),MATCH(Calc_BAU!G$6,'Energy Prices'!$F$11:$CR$11,0))/100000,0)","v":566.26766982012589},{"$f":"IFERROR('Data Input - BAU'!L84*INDEX('Energy Prices'!$F$26:$CR$31,MATCH($B128,'Energy Prices'!$C$26:$C$31,0),MATCH(Calc_BAU!H$6,'Energy Prices'!$F$11:$CR$11,0))/100000,0)","v":588.7100968226282},{"$f":"IFERROR('Data Input - BAU'!M84*INDEX('Energy Prices'!$F$26:$CR$31,MATCH($B128,'Energy Prices'!$C$26:$C$31,0),MATCH(Calc_BAU!I$6,'Energy Prices'!$F$11:$CR$11,0))/100000,0)","v":618.69761981242652},{"$f":"IFERROR('Data Input - BAU'!N84*INDEX('Energy Prices'!$F$26:$CR$31,MATCH($B128,'Energy Prices'!$C$26:$C$31,0),MATCH(Calc_BAU!J$6,'Energy Prices'!$F$11:$CR$11,0))/100000,0)","v":642.5681104029253},{"$f":"IFERROR('Data Input - BAU'!O84*INDEX('Energy Prices'!$F$26:$CR$31,MATCH($B128,'Energy Prices'!$C$26:$C$31,0),MATCH(Calc_BAU!K$6,'Energy Prices'!$F$11:$CR$11,0))/100000,0)","v":628.25817918514724},{"$f":"IFERROR('Data Input - BAU'!P84*INDEX('Energy Prices'!$F$26:$CR$31,MATCH($B128,'Energy Prices'!$C$26:$C$31,0),MATCH(Calc_BAU!L$6,'Energy Prices'!$F$11:$CR$11,0))/100000,0)","v":0},{"$f":"IFERROR('Data Input - BAU'!Q84*INDEX('Energy Prices'!$F$26:$CR$31,MATCH($B128,'Energy Prices'!$C$26:$C$31,0),MATCH(Calc_BAU!M$6,'Energy Prices'!$F$11:$CR$11,0))/100000,0)","v":0},{"$f":"IFERROR('Data Input - BAU'!R84*INDEX('Energy Prices'!$F$26:$CR$31,MATCH($B128,'Energy Prices'!$C$26:$C$31,0),MATCH(Calc_BAU!N$6,'Energy Prices'!$F$11:$CR$11,0))/100000,0)","v":0},{"$f":"IFERROR('Data Input - BAU'!S84*INDEX('Energy Prices'!$F$26:$CR$31,MATCH($B128,'Energy Prices'!$C$26:$C$31,0),MATCH(Calc_BAU!O$6,'Energy Prices'!$F$11:$CR$11,0))/100000,0)","v":0},{"$f":"IFERROR('Data Input - BAU'!T84*INDEX('Energy Prices'!$F$26:$CR$31,MATCH($B128,'Energy Prices'!$C$26:$C$31,0),MATCH(Calc_BAU!P$6,'Energy Prices'!$F$11:$CR$11,0))/100000,0)","v":0},{"$f":"IFERROR('Data Input - BAU'!U84*INDEX('Energy Prices'!$F$26:$CR$31,MATCH($B128,'Energy Prices'!$C$26:$C$31,0),MATCH(Calc_BAU!Q$6,'Energy Prices'!$F$11:$CR$11,0))/100000,0)","v":0},{"$f":"IFERROR('Data Input - BAU'!V84*INDEX('Energy Prices'!$F$26:$CR$31,MATCH($B128,'Energy Prices'!$C$26:$C$31,0),MATCH(Calc_BAU!R$6,'Energy Prices'!$F$11:$CR$11,0))/100000,0)","v":0},{"$f":"IFERROR('Data Input - BAU'!W84*INDEX('Energy Prices'!$F$26:$CR$31,MATCH($B128,'Energy Prices'!$C$26:$C$31,0),MATCH(Calc_BAU!S$6,'Energy Prices'!$F$11:$CR$11,0))/100000,0)","v":0},{"$f":"IFERROR('Data Input - BAU'!X84*INDEX('Energy Prices'!$F$26:$CR$31,MATCH($B128,'Energy Prices'!$C$26:$C$31,0),MATCH(Calc_BAU!T$6,'Energy Prices'!$F$11:$CR$11,0))/100000,0)","v":0},{"$f":"IFERROR('Data Input - BAU'!Y84*INDEX('Energy Prices'!$F$26:$CR$31,MATCH($B128,'Energy Prices'!$C$26:$C$31,0),MATCH(Calc_BAU!U$6,'Energy Prices'!$F$11:$CR$11,0))/100000,0)","v":0},{"$f":"IFERROR('Data Input - BAU'!Z84*INDEX('Energy Prices'!$F$26:$CR$31,MATCH($B128,'Energy Prices'!$C$26:$C$31,0),MATCH(Calc_BAU!V$6,'Energy Prices'!$F$11:$CR$11,0))/100000,0)","v":0},{"$f":"IFERROR('Data Input - BAU'!AA84*INDEX('Energy Prices'!$F$26:$CR$31,MATCH($B128,'Energy Prices'!$C$26:$C$31,0),MATCH(Calc_BAU!W$6,'Energy Prices'!$F$11:$CR$11,0))/100000,0)","v":0},{"$f":"IFERROR('Data Input - BAU'!AB84*INDEX('Energy Prices'!$F$26:$CR$31,MATCH($B128,'Energy Prices'!$C$26:$C$31,0),MATCH(Calc_BAU!X$6,'Energy Prices'!$F$11:$CR$11,0))/100000,0)","v":0},{"$f":"IFERROR('Data Input - BAU'!AC84*INDEX('Energy Prices'!$F$26:$CR$31,MATCH($B128,'Energy Prices'!$C$26:$C$31,0),MATCH(Calc_BAU!Y$6,'Energy Prices'!$F$11:$CR$11,0))/100000,0)","v":0},{"$f":"IFERROR('Data Input - BAU'!AD84*INDEX('Energy Prices'!$F$26:$CR$31,MATCH($B128,'Energy Prices'!$C$26:$C$31,0),MATCH(Calc_BAU!Z$6,'Energy Prices'!$F$11:$CR$11,0))/100000,0)","v":0},{"$f":"IFERROR('Data Input - BAU'!AE84*INDEX('Energy Prices'!$F$26:$CR$31,MATCH($B128,'Energy Prices'!$C$26:$C$31,0),MATCH(Calc_BAU!AA$6,'Energy Prices'!$F$11:$CR$11,0))/100000,0)","v":0},{"$f":"IFERROR('Data Input - BAU'!AF84*INDEX('Energy Prices'!$F$26:$CR$31,MATCH($B128,'Energy Prices'!$C$26:$C$31,0),MATCH(Calc_BAU!AB$6,'Energy Prices'!$F$11:$CR$11,0))/100000,0)","v":0},{"$f":"IFERROR('Data Input - BAU'!AG84*INDEX('Energy Prices'!$F$26:$CR$31,MATCH($B128,'Energy Prices'!$C$26:$C$31,0),MATCH(Calc_BAU!AC$6,'Energy Prices'!$F$11:$CR$11,0))/100000,0)","v":0},{"$f":"IFERROR('Data Input - BAU'!AH84*INDEX('Energy Prices'!$F$26:$CR$31,MATCH($B128,'Energy Prices'!$C$26:$C$31,0),MATCH(Calc_BAU!AD$6,'Energy Prices'!$F$11:$CR$11,0))/100000,0)","v":0},{"$f":"IFERROR('Data Input - BAU'!AI84*INDEX('Energy Prices'!$F$26:$CR$31,MATCH($B128,'Energy Prices'!$C$26:$C$31,0),MATCH(Calc_BAU!AE$6,'Energy Prices'!$F$11:$CR$11,0))/100000,0)","v":0},{"$f":"IFERROR('Data Input - BAU'!AJ84*INDEX('Energy Prices'!$F$26:$CR$31,MATCH($B128,'Energy Prices'!$C$26:$C$31,0),MATCH(Calc_BAU!AF$6,'Energy Prices'!$F$11:$CR$11,0))/100000,0)","v":0},{"$f":"IFERROR('Data Input - BAU'!AK84*INDEX('Energy Prices'!$F$26:$CR$31,MATCH($B128,'Energy Prices'!$C$26:$C$31,0),MATCH(Calc_BAU!AG$6,'Energy Prices'!$F$11:$CR$11,0))/100000,0)","v":0},{"$f":"IFERROR('Data Input - BAU'!AL84*INDEX('Energy Prices'!$F$26:$CR$31,MATCH($B128,'Energy Prices'!$C$26:$C$31,0),MATCH(Calc_BAU!AH$6,'Energy Prices'!$F$11:$CR$11,0))/100000,0)","v":0},{"$f":"IFERROR('Data Input - BAU'!AM84*INDEX('Energy Prices'!$F$26:$CR$31,MATCH($B128,'Energy Prices'!$C$26:$C$31,0),MATCH(Calc_BAU!AI$6,'Energy Prices'!$F$11:$CR$11,0))/100000,0)","v":0},{"$f":"IFERROR('Data Input - BAU'!AN84*INDEX('Energy Prices'!$F$26:$CR$31,MATCH($B128,'Energy Prices'!$C$26:$C$31,0),MATCH(Calc_BAU!AJ$6,'Energy Prices'!$F$11:$CR$11,0))/100000,0)","v":0},{"$f":"IFERROR('Data Input - BAU'!AO84*INDEX('Energy Prices'!$F$26:$CR$31,MATCH($B128,'Energy Prices'!$C$26:$C$31,0),MATCH(Calc_BAU!AK$6,'Energy Prices'!$F$11:$CR$11,0))/100000,0)","v":0},{"$f":"IFERROR('Data Input - BAU'!AP84*INDEX('Energy Prices'!$F$26:$CR$31,MATCH($B128,'Energy Prices'!$C$26:$C$31,0),MATCH(Calc_BAU!AL$6,'Energy Prices'!$F$11:$CR$11,0))/100000,0)","v":0},{"$f":"IFERROR('Data Input - BAU'!AQ84*INDEX('Energy Prices'!$F$26:$CR$31,MATCH($B128,'Energy Prices'!$C$26:$C$31,0),MATCH(Calc_BAU!AM$6,'Energy Prices'!$F$11:$CR$11,0))/100000,0)","v":0},{"$f":"IFERROR('Data Input - BAU'!AR84*INDEX('Energy Prices'!$F$26:$CR$31,MATCH($B128,'Energy Prices'!$C$26:$C$31,0),MATCH(Calc_BAU!AN$6,'Energy Prices'!$F$11:$CR$11,0))/100000,0)","v":0},{"$f":"IFERROR('Data Input - BAU'!AS84*INDEX('Energy Prices'!$F$26:$CR$31,MATCH($B128,'Energy Prices'!$C$26:$C$31,0),MATCH(Calc_BAU!AO$6,'Energy Prices'!$F$11:$CR$11,0))/100000,0)","v":0},{"$f":"IFERROR('Data Input - BAU'!AT84*INDEX('Energy Prices'!$F$26:$CR$31,MATCH($B128,'Energy Prices'!$C$26:$C$31,0),MATCH(Calc_BAU!AP$6,'Energy Prices'!$F$11:$CR$11,0))/100000,0)","v":0},{"$f":"IFERROR('Data Input - BAU'!AU84*INDEX('Energy Prices'!$F$26:$CR$31,MATCH($B128,'Energy Prices'!$C$26:$C$31,0),MATCH(Calc_BAU!AQ$6,'Energy Prices'!$F$11:$CR$11,0))/100000,0)","v":0},{"$f":"IFERROR('Data Input - BAU'!AV84*INDEX('Energy Prices'!$F$26:$CR$31,MATCH($B128,'Energy Prices'!$C$26:$C$31,0),MATCH(Calc_BAU!AR$6,'Energy Prices'!$F$11:$CR$11,0))/100000,0)","v":0},{"$f":"IFERROR('Data Input - BAU'!AW84*INDEX('Energy Prices'!$F$26:$CR$31,MATCH($B128,'Energy Prices'!$C$26:$C$31,0),MATCH(Calc_BAU!AS$6,'Energy Prices'!$F$11:$CR$11,0))/100000,0)","v":0},{"$f":"IFERROR('Data Input - BAU'!AX84*INDEX('Energy Prices'!$F$26:$CR$31,MATCH($B128,'Energy Prices'!$C$26:$C$31,0),MATCH(Calc_BAU!AT$6,'Energy Prices'!$F$11:$CR$11,0))/100000,0)","v":0},{"$f":"IFERROR('Data Input - BAU'!AY84*INDEX('Energy Prices'!$F$26:$CR$31,MATCH($B128,'Energy Prices'!$C$26:$C$31,0),MATCH(Calc_BAU!AU$6,'Energy Prices'!$F$11:$CR$11,0))/100000,0)","v":0},{"$f":"IFERROR('Data Input - BAU'!AZ84*INDEX('Energy Prices'!$F$26:$CR$31,MATCH($B128,'Energy Prices'!$C$26:$C$31,0),MATCH(Calc_BAU!AV$6,'Energy Prices'!$F$11:$CR$11,0))/100000,0)","v":0},{"$f":"IFERROR('Data Input - BAU'!BA84*INDEX('Energy Prices'!$F$26:$CR$31,MATCH($B128,'Energy Prices'!$C$26:$C$31,0),MATCH(Calc_BAU!AW$6,'Energy Prices'!$F$11:$CR$11,0))/100000,0)","v":0},{"$f":"IFERROR('Data Input - BAU'!BB84*INDEX('Energy Prices'!$F$26:$CR$31,MATCH($B128,'Energy Prices'!$C$26:$C$31,0),MATCH(Calc_BAU!AX$6,'Energy Prices'!$F$11:$CR$11,0))/100000,0)","v":0},{"$f":"IFERROR('Data Input - BAU'!BC84*INDEX('Energy Prices'!$F$26:$CR$31,MATCH($B128,'Energy Prices'!$C$26:$C$31,0),MATCH(Calc_BAU!AY$6,'Energy Prices'!$F$11:$CR$11,0))/100000,0)","v":0},{"$f":"IFERROR('Data Input - BAU'!BD84*INDEX('Energy Prices'!$F$26:$CR$31,MATCH($B128,'Energy Prices'!$C$26:$C$31,0),MATCH(Calc_BAU!AZ$6,'Energy Prices'!$F$11:$CR$11,0))/100000,0)","v":0},{"$f":"IFERROR('Data Input - BAU'!BE84*INDEX('Energy Prices'!$F$26:$CR$31,MATCH($B128,'Energy Prices'!$C$26:$C$31,0),MATCH(Calc_BAU!BA$6,'Energy Prices'!$F$11:$CR$11,0))/100000,0)","v":0},{"$f":"IFERROR('Data Input - BAU'!BF84*INDEX('Energy Prices'!$F$26:$CR$31,MATCH($B128,'Energy Prices'!$C$26:$C$31,0),MATCH(Calc_BAU!BB$6,'Energy Prices'!$F$11:$CR$11,0))/100000,0)","v":0},{"$f":"IFERROR('Data Input - BAU'!BG84*INDEX('Energy Prices'!$F$26:$CR$31,MATCH($B128,'Energy Prices'!$C$26:$C$31,0),MATCH(Calc_BAU!BC$6,'Energy Prices'!$F$11:$CR$11,0))/100000,0)","v":0},{"$f":"IFERROR('Data Input - BAU'!BH84*INDEX('Energy Prices'!$F$26:$CR$31,MATCH($B128,'Energy Prices'!$C$26:$C$31,0),MATCH(Calc_BAU!BD$6,'Energy Prices'!$F$11:$CR$11,0))/100000,0)","v":0},{"$f":"IFERROR('Data Input - BAU'!BI84*INDEX('Energy Prices'!$F$26:$CR$31,MATCH($B128,'Energy Prices'!$C$26:$C$31,0),MATCH(Calc_BAU!BE$6,'Energy Prices'!$F$11:$CR$11,0))/100000,0)","v":0},{"$f":"IFERROR('Data Input - BAU'!BJ84*INDEX('Energy Prices'!$F$26:$CR$31,MATCH($B128,'Energy Prices'!$C$26:$C$31,0),MATCH(Calc_BAU!BF$6,'Energy Prices'!$F$11:$CR$11,0))/100000,0)","v":0},{"$f":"IFERROR('Data Input - BAU'!BK84*INDEX('Energy Prices'!$F$26:$CR$31,MATCH($B128,'Energy Prices'!$C$26:$C$31,0),MATCH(Calc_BAU!BG$6,'Energy Prices'!$F$11:$CR$11,0))/100000,0)","v":0},{"$f":"IFERROR('Data Input - BAU'!BL84*INDEX('Energy Prices'!$F$26:$CR$31,MATCH($B128,'Energy Prices'!$C$26:$C$31,0),MATCH(Calc_BAU!BH$6,'Energy Prices'!$F$11:$CR$11,0))/100000,0)","v":0},{"$f":"IFERROR('Data Input - BAU'!BM84*INDEX('Energy Prices'!$F$26:$CR$31,MATCH($B128,'Energy Prices'!$C$26:$C$31,0),MATCH(Calc_BAU!BI$6,'Energy Prices'!$F$11:$CR$11,0))/100000,0)","v":0},{"$f":"IFERROR('Data Input - BAU'!BN84*INDEX('Energy Prices'!$F$26:$CR$31,MATCH($B128,'Energy Prices'!$C$26:$C$31,0),MATCH(Calc_BAU!BJ$6,'Energy Prices'!$F$11:$CR$11,0))/100000,0)","v":0},{"$f":"IFERROR('Data Input - BAU'!BO84*INDEX('Energy Prices'!$F$26:$CR$31,MATCH($B128,'Energy Prices'!$C$26:$C$31,0),MATCH(Calc_BAU!BK$6,'Energy Prices'!$F$11:$CR$11,0))/100000,0)","v":0},{"$f":"IFERROR('Data Input - BAU'!BP84*INDEX('Energy Prices'!$F$26:$CR$31,MATCH($B128,'Energy Prices'!$C$26:$C$31,0),MATCH(Calc_BAU!BL$6,'Energy Prices'!$F$11:$CR$11,0))/100000,0)","v":0},{"$f":"IFERROR('Data Input - BAU'!BQ84*INDEX('Energy Prices'!$F$26:$CR$31,MATCH($B128,'Energy Prices'!$C$26:$C$31,0),MATCH(Calc_BAU!BM$6,'Energy Prices'!$F$11:$CR$11,0))/100000,0)","v":0},{"$f":"IFERROR('Data Input - BAU'!BR84*INDEX('Energy Prices'!$F$26:$CR$31,MATCH($B128,'Energy Prices'!$C$26:$C$31,0),MATCH(Calc_BAU!BN$6,'Energy Prices'!$F$11:$CR$11,0))/100000,0)","v":0},{"$f":"IFERROR('Data Input - BAU'!BS84*INDEX('Energy Prices'!$F$26:$CR$31,MATCH($B128,'Energy Prices'!$C$26:$C$31,0),MATCH(Calc_BAU!BO$6,'Energy Prices'!$F$11:$CR$11,0))/100000,0)","v":0},{"$f":"IFERROR('Data Input - BAU'!BT84*INDEX('Energy Prices'!$F$26:$CR$31,MATCH($B128,'Energy Prices'!$C$26:$C$31,0),MATCH(Calc_BAU!BP$6,'Energy Prices'!$F$11:$CR$11,0))/100000,0)","v":0},{"$f":"IFERROR('Data Input - BAU'!BU84*INDEX('Energy Prices'!$F$26:$CR$31,MATCH($B128,'Energy Prices'!$C$26:$C$31,0),MATCH(Calc_BAU!BQ$6,'Energy Prices'!$F$11:$CR$11,0))/100000,0)","v":0},{"$f":"IFERROR('Data Input - BAU'!BV84*INDEX('Energy Prices'!$F$26:$CR$31,MATCH($B128,'Energy Prices'!$C$26:$C$31,0),MATCH(Calc_BAU!BR$6,'Energy Prices'!$F$11:$CR$11,0))/100000,0)","v":0},{"$f":"IFERROR('Data Input - BAU'!BW84*INDEX('Energy Prices'!$F$26:$CR$31,MATCH($B128,'Energy Prices'!$C$26:$C$31,0),MATCH(Calc_BAU!BS$6,'Energy Prices'!$F$11:$CR$11,0))/100000,0)","v":0},{"$f":"IFERROR('Data Input - BAU'!BX84*INDEX('Energy Prices'!$F$26:$CR$31,MATCH($B128,'Energy Prices'!$C$26:$C$31,0),MATCH(Calc_BAU!BT$6,'Energy Prices'!$F$11:$CR$11,0))/100000,0)","v":0},{"$f":"IFERROR('Data Input - BAU'!BY84*INDEX('Energy Prices'!$F$26:$CR$31,MATCH($B128,'Energy Prices'!$C$26:$C$31,0),MATCH(Calc_BAU!BU$6,'Energy Prices'!$F$11:$CR$11,0))/100000,0)","v":0},{"$f":"IFERROR('Data Input - BAU'!BZ84*INDEX('Energy Prices'!$F$26:$CR$31,MATCH($B128,'Energy Prices'!$C$26:$C$31,0),MATCH(Calc_BAU!BV$6,'Energy Prices'!$F$11:$CR$11,0))/100000,0)","v":0},{"$f":"IFERROR('Data Input - BAU'!CA84*INDEX('Energy Prices'!$F$26:$CR$31,MATCH($B128,'Energy Prices'!$C$26:$C$31,0),MATCH(Calc_BAU!BW$6,'Energy Prices'!$F$11:$CR$11,0))/100000,0)","v":0},{"$f":"IFERROR('Data Input - BAU'!CB84*INDEX('Energy Prices'!$F$26:$CR$31,MATCH($B128,'Energy Prices'!$C$26:$C$31,0),MATCH(Calc_BAU!BX$6,'Energy Prices'!$F$11:$CR$11,0))/100000,0)","v":0},{"$f":"IFERROR('Data Input - BAU'!CC84*INDEX('Energy Prices'!$F$26:$CR$31,MATCH($B128,'Energy Prices'!$C$26:$C$31,0),MATCH(Calc_BAU!BY$6,'Energy Prices'!$F$11:$CR$11,0))/100000,0)","v":0},{"$f":"IFERROR('Data Input - BAU'!CD84*INDEX('Energy Prices'!$F$26:$CR$31,MATCH($B128,'Energy Prices'!$C$26:$C$31,0),MATCH(Calc_BAU!BZ$6,'Energy Prices'!$F$11:$CR$11,0))/100000,0)","v":0},{"$f":"IFERROR('Data Input - BAU'!CE84*INDEX('Energy Prices'!$F$26:$CR$31,MATCH($B128,'Energy Prices'!$C$26:$C$31,0),MATCH(Calc_BAU!CA$6,'Energy Prices'!$F$11:$CR$11,0))/100000,0)","v":0},{"$f":"IFERROR('Data Input - BAU'!CF84*INDEX('Energy Prices'!$F$26:$CR$31,MATCH($B128,'Energy Prices'!$C$26:$C$31,0),MATCH(Calc_BAU!CB$6,'Energy Prices'!$F$11:$CR$11,0))/100000,0)","v":0},{"$f":"IFERROR('Data Input - BAU'!CG84*INDEX('Energy Prices'!$F$26:$CR$31,MATCH($B128,'Energy Prices'!$C$26:$C$31,0),MATCH(Calc_BAU!CC$6,'Energy Prices'!$F$11:$CR$11,0))/100000,0)","v":0},{"$f":"IFERROR('Data Input - BAU'!CH84*INDEX('Energy Prices'!$F$26:$CR$31,MATCH($B128,'Energy Prices'!$C$26:$C$31,0),MATCH(Calc_BAU!CD$6,'Energy Prices'!$F$11:$CR$11,0))/100000,0)","v":0},{"$f":"IFERROR('Data Input - BAU'!CI84*INDEX('Energy Prices'!$F$26:$CR$31,MATCH($B128,'Energy Prices'!$C$26:$C$31,0),MATCH(Calc_BAU!CE$6,'Energy Prices'!$F$11:$CR$11,0))/100000,0)","v":0},{"$f":"IFERROR('Data Input - BAU'!CJ84*INDEX('Energy Prices'!$F$26:$CR$31,MATCH($B128,'Energy Prices'!$C$26:$C$31,0),MATCH(Calc_BAU!CF$6,'Energy Prices'!$F$11:$CR$11,0))/100000,0)","v":0},{"$f":"IFERROR('Data Input - BAU'!CK84*INDEX('Energy Prices'!$F$26:$CR$31,MATCH($B128,'Energy Prices'!$C$26:$C$31,0),MATCH(Calc_BAU!CG$6,'Energy Prices'!$F$11:$CR$11,0))/100000,0)","v":0},{"$f":"IFERROR('Data Input - BAU'!CL84*INDEX('Energy Prices'!$F$26:$CR$31,MATCH($B128,'Energy Prices'!$C$26:$C$31,0),MATCH(Calc_BAU!CH$6,'Energy Prices'!$F$11:$CR$11,0))/100000,0)","v":0},{"$f":"IFERROR('Data Input - BAU'!CM84*INDEX('Energy Prices'!$F$26:$CR$31,MATCH($B128,'Energy Prices'!$C$26:$C$31,0),MATCH(Calc_BAU!CI$6,'Energy Prices'!$F$11:$CR$11,0))/100000,0)","v":0},{"$f":"IFERROR('Data Input - BAU'!CN84*INDEX('Energy Prices'!$F$26:$CR$31,MATCH($B128,'Energy Prices'!$C$26:$C$31,0),MATCH(Calc_BAU!CJ$6,'Energy Prices'!$F$11:$CR$11,0))/100000,0)","v":0},{"$f":"IFERROR('Data Input - BAU'!CO84*INDEX('Energy Prices'!$F$26:$CR$31,MATCH($B128,'Energy Prices'!$C$26:$C$31,0),MATCH(Calc_BAU!CK$6,'Energy Prices'!$F$11:$CR$11,0))/100000,0)","v":0},{"$f":"IFERROR('Data Input - BAU'!CP84*INDEX('Energy Prices'!$F$26:$CR$31,MATCH($B128,'Energy Prices'!$C$26:$C$31,0),MATCH(Calc_BAU!CL$6,'Energy Prices'!$F$11:$CR$11,0))/100000,0)","v":0},{"$f":"IFERROR('Data Input - BAU'!CQ84*INDEX('Energy Prices'!$F$26:$CR$31,MATCH($B128,'Energy Prices'!$C$26:$C$31,0),MATCH(Calc_BAU!CM$6,'Energy Prices'!$F$11:$CR$11,0))/100000,0)","v":0},{"$f":"IFERROR('Data Input - BAU'!CR84*INDEX('Energy Prices'!$F$26:$CR$31,MATCH($B128,'Energy Prices'!$C$26:$C$31,0),MATCH(Calc_BAU!CN$6,'Energy Prices'!$F$11:$CR$11,0))/100000,0)","v":0},{"$f":"IFERROR('Data Input - BAU'!CS84*INDEX('Energy Prices'!$F$26:$CR$31,MATCH($B128,'Energy Prices'!$C$26:$C$31,0),MATCH(Calc_BAU!CO$6,'Energy Prices'!$F$11:$CR$11,0))/100000,0)","v":0},{"$f":"IFERROR('Data Input - BAU'!CT84*INDEX('Energy Prices'!$F$26:$CR$31,MATCH($B128,'Energy Prices'!$C$26:$C$31,0),MATCH(Calc_BAU!CP$6,'Energy Prices'!$F$11:$CR$11,0))/100000,0)","v":0},{"$f":"IFERROR('Data Input - BAU'!CU84*INDEX('Energy Prices'!$F$26:$CR$31,MATCH($B128,'Energy Prices'!$C$26:$C$31,0),MATCH(Calc_BAU!CQ$6,'Energy Prices'!$F$11:$CR$11,0))/100000,0)","v":0},{"$f":"IFERROR('Data Input - BAU'!CV84*INDEX('Energy Prices'!$F$26:$CR$31,MATCH($B128,'Energy Prices'!$C$26:$C$31,0),MATCH(Calc_BAU!CR$6,'Energy Prices'!$F$11:$CR$11,0))/100000,0)","v":0},{"$f":"IFERROR('Data Input - BAU'!CW84*INDEX('Energy Prices'!$F$26:$CR$31,MATCH($B128,'Energy Prices'!$C$26:$C$31,0),MATCH(Calc_BAU!CS$6,'Energy Prices'!$F$11:$CR$11,0))/100000,0)","v":0},{"$f":"IFERROR('Data Input - BAU'!CX84*INDEX('Energy Prices'!$F$26:$CR$31,MATCH($B128,'Energy Prices'!$C$26:$C$31,0),MATCH(Calc_BAU!CT$6,'Energy Prices'!$F$11:$CR$11,0))/100000,0)","v":0},{"$f":"IFERROR('Data Input - BAU'!CY84*INDEX('Energy Prices'!$F$26:$CR$31,MATCH($B128,'Energy Prices'!$C$26:$C$31,0),MATCH(Calc_BAU!CU$6,'Energy Prices'!$F$11:$CR$11,0))/100000,0)","v":0},{"$f":"IFERROR('Data Input - BAU'!CZ84*INDEX('Energy Prices'!$F$26:$CR$31,MATCH($B128,'Energy Prices'!$C$26:$C$31,0),MATCH(Calc_BAU!CV$6,'Energy Prices'!$F$11:$CR$11,0))/100000,0)","v":0},{"$f":"IFERROR('Data Input - BAU'!DA84*INDEX('Energy Prices'!$F$26:$CR$31,MATCH($B128,'Energy Prices'!$C$26:$C$31,0),MATCH(Calc_BAU!CW$6,'Energy Prices'!$F$11:$CR$11,0))/100000,0)","v":0},{"$f":"IFERROR('Data Input - BAU'!DB84*INDEX('Energy Prices'!$F$26:$CR$31,MATCH($B128,'Energy Prices'!$C$26:$C$31,0),MATCH(Calc_BAU!CX$6,'Energy Prices'!$F$11:$CR$11,0))/100000,0)","v":0},{"$f":"IFERROR('Data Input - BAU'!DC84*INDEX('Energy Prices'!$F$26:$CR$31,MATCH($B128,'Energy Prices'!$C$26:$C$31,0),MATCH(Calc_BAU!CY$6,'Energy Prices'!$F$11:$CR$11,0))/100000,0)","v":0}]
[null,"Natural Gas","£000's",{"$f":"IFERROR('Data Input - BAU'!H85*INDEX('Energy Prices'!$F$26:$CR$31,MATCH($B129,'Energy Prices'!$C$26:$C$31,0),MATCH(Calc_BAU!D$6,'Energy Prices'!$F$11:$CR$11,0))/100000,0)","v":0},{"$f":"IFERROR('Data Input - BAU'!I85*INDEX('Energy Prices'!$F$26:$CR$31,MATCH($B129,'Energy Prices'!$C$26:$C$31,0),MATCH(Calc_BAU!E$6,'Energy Prices'!$F$11:$CR$11,0))/100000,0)","v":0},{"$f":"IFERROR('Data Input - BAU'!J85*INDEX('Energy Prices'!$F$26:$CR$31,MATCH($B129,'Energy Prices'!$C$26:$C$31,0),MATCH(Calc_BAU!F$6,'Energy Prices'!$F$11:$CR$11,0))/100000,0)","v":0},{"$f":"IFERROR('Data Input - BAU'!K85*INDEX('Energy Prices'!$F$26:$CR$31,MATCH($B129,'Energy Prices'!$C$26:$C$31,0),MATCH(Calc_BAU!G$6,'Energy Prices'!$F$11:$CR$11,0))/100000,0)","v":0},{"$f":"IFERROR('Data Input - BAU'!L85*INDEX('Energy Prices'!$F$26:$CR$31,MATCH($B129,'Energy Prices'!$C$26:$C$31,0),MATCH(Calc_BAU!H$6,'Energy Prices'!$F$11:$CR$11,0))/100000,0)","v":0},{"$f":"IFERROR('Data Input - BAU'!M85*INDEX('Energy Prices'!$F$26:$CR$31,MATCH($B129,'Energy Prices'!$C$26:$C$31,0),MATCH(Calc_BAU!I$6,'Energy Prices'!$F$11:$CR$11,0))/100000,0)","v":0},{"$f":"IFERROR('Data Input - BAU'!N85*INDEX('Energy Prices'!$F$26:$CR$31,MATCH($B129,'Energy Prices'!$C$26:$C$31,0),MATCH(Calc_BAU!J$6,'Energy Prices'!$F$11:$CR$11,0))/100000,0)","v":0},{"$f":"IFERROR('Data Input - BAU'!O85*INDEX('Energy Prices'!$F$26:$CR$31,MATCH($B129,'Energy Prices'!$C$26:$C$31,0),MATCH(Calc_BAU!K$6,'Energy Prices'!$F$11:$CR$11,0))/100000,0)","v":0},{"$f":"IFERROR('Data Input - BAU'!P85*INDEX('Energy Prices'!$F$26:$CR$31,MATCH($B129,'Energy Prices'!$C$26:$C$31,0),MATCH(Calc_BAU!L$6,'Energy Prices'!$F$11:$CR$11,0))/100000,0)","v":0},{"$f":"IFERROR('Data Input - BAU'!Q85*INDEX('Energy Prices'!$F$26:$CR$31,MATCH($B129,'Energy Prices'!$C$26:$C$31,0),MATCH(Calc_BAU!M$6,'Energy Prices'!$F$11:$CR$11,0))/100000,0)","v":0},{"$f":"IFERROR('Data Input - BAU'!R85*INDEX('Energy Prices'!$F$26:$CR$31,MATCH($B129,'Energy Prices'!$C$26:$C$31,0),MATCH(Calc_BAU!N$6,'Energy Prices'!$F$11:$CR$11,0))/100000,0)","v":0},{"$f":"IFERROR('Data Input - BAU'!S85*INDEX('Energy Prices'!$F$26:$CR$31,MATCH($B129,'Energy Prices'!$C$26:$C$31,0),MATCH(Calc_BAU!O$6,'Energy Prices'!$F$11:$CR$11,0))/100000,0)","v":0},{"$f":"IFERROR('Data Input - BAU'!T85*INDEX('Energy Prices'!$F$26:$CR$31,MATCH($B129,'Energy Prices'!$C$26:$C$31,0),MATCH(Calc_BAU!P$6,'Energy Prices'!$F$11:$CR$11,0))/100000,0)","v":0},{"$f":"IFERROR('Data Input - BAU'!U85*INDEX('Energy Prices'!$F$26:$CR$31,MATCH($B129,'Energy Prices'!$C$26:$C$31,0),MATCH(Calc_BAU!Q$6,'Energy Prices'!$F$11:$CR$11,0))/100000,0)","v":0},{"$f":"IFERROR('Data Input - BAU'!V85*INDEX('Energy Prices'!$F$26:$CR$31,MATCH($B129,'Energy Prices'!$C$26:$C$31,0),MATCH(Calc_BAU!R$6,'Energy Prices'!$F$11:$CR$11,0))/100000,0)","v":0},{"$f":"IFERROR('Data Input - BAU'!W85*INDEX('Energy Prices'!$F$26:$CR$31,MATCH($B129,'Energy Prices'!$C$26:$C$31,0),MATCH(Calc_BAU!S$6,'Energy Prices'!$F$11:$CR$11,0))/100000,0)","v":0},{"$f":"IFERROR('Data Input - BAU'!X85*INDEX('Energy Prices'!$F$26:$CR$31,MATCH($B129,'Energy Prices'!$C$26:$C$31,0),MATCH(Calc_BAU!T$6,'Energy Prices'!$F$11:$CR$11,0))/100000,0)","v":0},{"$f":"IFERROR('Data Input - BAU'!Y85*INDEX('Energy Prices'!$F$26:$CR$31,MATCH($B129,'Energy Prices'!$C$26:$C$31,0),MATCH(Calc_BAU!U$6,'Energy Prices'!$F$11:$CR$11,0))/100000,0)","v":0},{"$f":"IFERROR('Data Input - BAU'!Z85*INDEX('Energy Prices'!$F$26:$CR$31,MATCH($B129,'Energy Prices'!$C$26:$C$31,0),MATCH(Calc_BAU!V$6,'Energy Prices'!$F$11:$CR$11,0))/100000,0)","v":0},{"$f":"IFERROR('Data Input - BAU'!AA85*INDEX('Energy Prices'!$F$26:$CR$31,MATCH($B129,'Energy Prices'!$C$26:$C$31,0),MATCH(Calc_BAU!W$6,'Energy Prices'!$F$11:$CR$11,0))/100000,0)","v":0},{"$f":"IFERROR('Data Input - BAU'!AB85*INDEX('Energy Prices'!$F$26:$CR$31,MATCH($B129,'Energy Prices'!$C$26:$C$31,0),MATCH(Calc_BAU!X$6,'Energy Prices'!$F$11:$CR$11,0))/100000,0)","v":0},{"$f":"IFERROR('Data Input - BAU'!AC85*INDEX('Energy Prices'!$F$26:$CR$31,MATCH($B129,'Energy Prices'!$C$26:$C$31,0),MATCH(Calc_BAU!Y$6,'Energy Prices'!$F$11:$CR$11,0))/100000,0)","v":0},{"$f":"IFERROR('Data Input - BAU'!AD85*INDEX('Energy Prices'!$F$26:$CR$31,MATCH($B129,'Energy Prices'!$C$26:$C$31,0),MATCH(Calc_BAU!Z$6,'Energy Prices'!$F$11:$CR$11,0))/100000,0)","v":0},{"$f":"IFERROR('Data Input - BAU'!AE85*INDEX('Energy Prices'!$F$26:$CR$31,MATCH($B129,'Energy Prices'!$C$26:$C$31,0),MATCH(Calc_BAU!AA$6,'Energy Prices'!$F$11:$CR$11,0))/100000,0)","v":0},{"$f":"IFERROR('Data Input - BAU'!AF85*INDEX('Energy Prices'!$F$26:$CR$31,MATCH($B129,'Energy Prices'!$C$26:$C$31,0),MATCH(Calc_BAU!AB$6,'Energy Prices'!$F$11:$CR$11,0))/100000,0)","v":0},{"$f":"IFERROR('Data Input - BAU'!AG85*INDEX('Energy Prices'!$F$26:$CR$31,MATCH($B129,'Energy Prices'!$C$26:$C$31,0),MATCH(Calc_BAU!AC$6,'Energy Prices'!$F$11:$CR$11,0))/100000,0)","v":0},{"$f":"IFERROR('Data Input - BAU'!AH85*INDEX('Energy Prices'!$F$26:$CR$31,MATCH($B129,'Energy Prices'!$C$26:$C$31,0),MATCH(Calc_BAU!AD$6,'Energy Prices'!$F$11:$CR$11,0))/100000,0)","v":0},{"$f":"IFERROR('Data Input - BAU'!AI85*INDEX('Energy Prices'!$F$26:$CR$31,MATCH($B129,'Energy Prices'!$C$26:$C$31,0),MATCH(Calc_BAU!AE$6,'Energy Prices'!$F$11:$CR$11,0))/100000,0)","v":0},{"$f":"IFERROR('Data Input - BAU'!AJ85*INDEX('Energy Prices'!$F$26:$CR$31,MATCH($B129,'Energy Prices'!$C$26:$C$31,0),MATCH(Calc_BAU!AF$6,'Energy Prices'!$F$11:$CR$11,0))/100000,0)","v":0},{"$f":"IFERROR('Data Input - BAU'!AK85*INDEX('Energy Prices'!$F$26:$CR$31,MATCH($B129,'Energy Prices'!$C$26:$C$31,0),MATCH(Calc_BAU!AG$6,'Energy Prices'!$F$11:$CR$11,0))/100000,0)","v":0},{"$f":"IFERROR('Data Input - BAU'!AL85*INDEX('Energy Prices'!$F$26:$CR$31,MATCH($B129,'Energy Prices'!$C$26:$C$31,0),MATCH(Calc_BAU!AH$6,'Energy Prices'!$F$11:$CR$11,0))/100000,0)","v":0},{"$f":"IFERROR('Data Input - BAU'!AM85*INDEX('Energy Prices'!$F$26:$CR$31,MATCH($B129,'Energy Prices'!$C$26:$C$31,0),MATCH(Calc_BAU!AI$6,'Energy Prices'!$F$11:$CR$11,0))/100000,0)","v":0},{"$f":"IFERROR('Data Input - BAU'!AN85*INDEX('Energy Prices'!$F$26:$CR$31,MATCH($B129,'Energy Prices'!$C$26:$C$31,0),MATCH(Calc_BAU!AJ$6,'Energy Prices'!$F$11:$CR$11,0))/100000,0)","v":0},{"$f":"IFERROR('Data Input - BAU'!AO85*INDEX('Energy Prices'!$F$26:$CR$31,MATCH($B129,'Energy Prices'!$C$26:$C$31,0),MATCH(Calc_BAU!AK$6,'Energy Prices'!$F$11:$CR$11,0))/100000,0)","v":0},{"$f":"IFERROR('Data Input - BAU'!AP85*INDEX('Energy Prices'!$F$26:$CR$31,MATCH($B129,'Energy Prices'!$C$26:$C$31,0),MATCH(Calc_BAU!AL$6,'Energy Prices'!$F$11:$CR$11,0))/100000,0)","v":0},{"$f":"IFERROR('Data Input - BAU'!AQ85*INDEX('Energy Prices'!$F$26:$CR$31,MATCH($B129,'Energy Prices'!$C$26:$C$31,0),MATCH(Calc_BAU!AM$6,'Energy Prices'!$F$11:$CR$11,0))/100000,0)","v":0},{"$f":"IFERROR('Data Input - BAU'!AR85*INDEX('Energy Prices'!$F$26:$CR$31,MATCH($B129,'Energy Prices'!$C$26:$C$31,0),MATCH(Calc_BAU!AN$6,'Energy Prices'!$F$11:$CR$11,0))/100000,0)","v":0},{"$f":"IFERROR('Data Input - BAU'!AS85*INDEX('Energy Prices'!$F$26:$CR$31,MATCH($B129,'Energy Prices'!$C$26:$C$31,0),MATCH(Calc_BAU!AO$6,'Energy Prices'!$F$11:$CR$11,0))/100000,0)","v":0},{"$f":"IFERROR('Data Input - BAU'!AT85*INDEX('Energy Prices'!$F$26:$CR$31,MATCH($B129,'Energy Prices'!$C$26:$C$31,0),MATCH(Calc_BAU!AP$6,'Energy Prices'!$F$11:$CR$11,0))/100000,0)","v":0},{"$f":"IFERROR('Data Input - BAU'!AU85*INDEX('Energy Prices'!$F$26:$CR$31,MATCH($B129,'Energy Prices'!$C$26:$C$31,0),MATCH(Calc_BAU!AQ$6,'Energy Prices'!$F$11:$CR$11,0))/100000,0)","v":0},{"$f":"IFERROR('Data Input - BAU'!AV85*INDEX('Energy Prices'!$F$26:$CR$31,MATCH($B129,'Energy Prices'!$C$26:$C$31,0),MATCH(Calc_BAU!AR$6,'Energy Prices'!$F$11:$CR$11,0))/100000,0)","v":0},{"$f":"IFERROR('Data Input - BAU'!AW85*INDEX('Energy Prices'!$F$26:$CR$31,MATCH($B129,'Energy Prices'!$C$26:$C$31,0),MATCH(Calc_BAU!AS$6,'Energy Prices'!$F$11:$CR$11,0))/100000,0)","v":0},{"$f":"IFERROR('Data Input - BAU'!AX85*INDEX('Energy Prices'!$F$26:$CR$31,MATCH($B129,'Energy Prices'!$C$26:$C$31,0),MATCH(Calc_BAU!AT$6,'Energy Prices'!$F$11:$CR$11,0))/100000,0)","v":0},{"$f":"IFERROR('Data Input - BAU'!AY85*INDEX('Energy Prices'!$F$26:$CR$31,MATCH($B129,'Energy Prices'!$C$26:$C$31,0),MATCH(Calc_BAU!AU$6,'Energy Prices'!$F$11:$CR$11,0))/100000,0)","v":0},{"$f":"IFERROR('Data Input - BAU'!AZ85*INDEX('Energy Prices'!$F$26:$CR$31,MATCH($B129,'Energy Prices'!$C$26:$C$31,0),MATCH(Calc_BAU!AV$6,'Energy Prices'!$F$11:$CR$11,0))/100000,0)","v":0},{"$f":"IFERROR('Data Input - BAU'!BA85*INDEX('Energy Prices'!$F$26:$CR$31,MATCH($B129,'Energy Prices'!$C$26:$C$31,0),MATCH(Calc_BAU!AW$6,'Energy Prices'!$F$11:$CR$11,0))/100000,0)","v":0},{"$f":"IFERROR('Data Input - BAU'!BB85*INDEX('Energy Prices'!$F$26:$CR$31,MATCH($B129,'Energy Prices'!$C$26:$C$31,0),MATCH(Calc_BAU!AX$6,'Energy Prices'!$F$11:$CR$11,0))/100000,0)","v":0},{"$f":"IFERROR('Data Input - BAU'!BC85*INDEX('Energy Prices'!$F$26:$CR$31,MATCH($B129,'Energy Prices'!$C$26:$C$31,0),MATCH(Calc_BAU!AY$6,'Energy Prices'!$F$11:$CR$11,0))/100000,0)","v":0},{"$f":"IFERROR('Data Input - BAU'!BD85*INDEX('Energy Prices'!$F$26:$CR$31,MATCH($B129,'Energy Prices'!$C$26:$C$31,0),MATCH(Calc_BAU!AZ$6,'Energy Prices'!$F$11:$CR$11,0))/100000,0)","v":0},{"$f":"IFERROR('Data Input - BAU'!BE85*INDEX('Energy Prices'!$F$26:$CR$31,MATCH($B129,'Energy Prices'!$C$26:$C$31,0),MATCH(Calc_BAU!BA$6,'Energy Prices'!$F$11:$CR$11,0))/100000,0)","v":0},{"$f":"IFERROR('Data Input - BAU'!BF85*INDEX('Energy Prices'!$F$26:$CR$31,MATCH($B129,'Energy Prices'!$C$26:$C$31,0),MATCH(Calc_BAU!BB$6,'Energy Prices'!$F$11:$CR$11,0))/100000,0)","v":0},{"$f":"IFERROR('Data Input - BAU'!BG85*INDEX('Energy Prices'!$F$26:$CR$31,MATCH($B129,'Energy Prices'!$C$26:$C$31,0),MATCH(Calc_BAU!BC$6,'Energy Prices'!$F$11:$CR$11,0))/100000,0)","v":0},{"$f":"IFERROR('Data Input - BAU'!BH85*INDEX('Energy Prices'!$F$26:$CR$31,MATCH($B129,'Energy Prices'!$C$26:$C$31,0),MATCH(Calc_BAU!BD$6,'Energy Prices'!$F$11:$CR$11,0))/100000,0)","v":0},{"$f":"IFERROR('Data Input - BAU'!BI85*INDEX('Energy Prices'!$F$26:$CR$31,MATCH($B129,'Energy Prices'!$C$26:$C$31,0),MATCH(Calc_BAU!BE$6,'Energy Prices'!$F$11:$CR$11,0))/100000,0)","v":0},{"$f":"IFERROR('Data Input - BAU'!BJ85*INDEX('Energy Prices'!$F$26:$CR$31,MATCH($B129,'Energy Prices'!$C$26:$C$31,0),MATCH(Calc_BAU!BF$6,'Energy Prices'!$F$11:$CR$11,0))/100000,0)","v":0},{"$f":"IFERROR('Data Input - BAU'!BK85*INDEX('Energy Prices'!$F$26:$CR$31,MATCH($B129,'Energy Prices'!$C$26:$C$31,0),MATCH(Calc_BAU!BG$6,'Energy Prices'!$F$11:$CR$11,0))/100000,0)","v":0},{"$f":"IFERROR('Data Input - BAU'!BL85*INDEX('Energy Prices'!$F$26:$CR$31,MATCH($B129,'Energy Prices'!$C$26:$C$31,0),MATCH(Calc_BAU!BH$6,'Energy Prices'!$F$11:$CR$11,0))/100000,0)","v":0},{"$f":"IFERROR('Data Input - BAU'!BM85*INDEX('Energy Prices'!$F$26:$CR$31,MATCH($B129,'Energy Prices'!$C$26:$C$31,0),MATCH(Calc_BAU!BI$6,'Energy Prices'!$F$11:$CR$11,0))/100000,0)","v":0},{"$f":"IFERROR('Data Input - BAU'!BN85*INDEX('Energy Prices'!$F$26:$CR$31,MATCH($B129,'Energy Prices'!$C$26:$C$31,0),MATCH(Calc_BAU!BJ$6,'Energy Prices'!$F$11:$CR$11,0))/100000,0)","v":0},{"$f":"IFERROR('Data Input - BAU'!BO85*INDEX('Energy Prices'!$F$26:$CR$31,MATCH($B129,'Energy Prices'!$C$26:$C$31,0),MATCH(Calc_BAU!BK$6,'Energy Prices'!$F$11:$CR$11,0))/100000,0)","v":0},{"$f":"IFERROR('Data Input - BAU'!BP85*INDEX('Energy Prices'!$F$26:$CR$31,MATCH($B129,'Energy Prices'!$C$26:$C$31,0),MATCH(Calc_BAU!BL$6,'Energy Prices'!$F$11:$CR$11,0))/100000,0)","v":0},{"$f":"IFERROR('Data Input - BAU'!BQ85*INDEX('Energy Prices'!$F$26:$CR$31,MATCH($B129,'Energy Prices'!$C$26:$C$31,0),MATCH(Calc_BAU!BM$6,'Energy Prices'!$F$11:$CR$11,0))/100000,0)","v":0},{"$f":"IFERROR('Data Input - BAU'!BR85*INDEX('Energy Prices'!$F$26:$CR$31,MATCH($B129,'Energy Prices'!$C$26:$C$31,0),MATCH(Calc_BAU!BN$6,'Energy Prices'!$F$11:$CR$11,0))/100000,0)","v":0},{"$f":"IFERROR('Data Input - BAU'!BS85*INDEX('Energy Prices'!$F$26:$CR$31,MATCH($B129,'Energy Prices'!$C$26:$C$31,0),MATCH(Calc_BAU!BO$6,'Energy Prices'!$F$11:$CR$11,0))/100000,0)","v":0},{"$f":"IFERROR('Data Input - BAU'!BT85*INDEX('Energy Prices'!$F$26:$CR$31,MATCH($B129,'Energy Prices'!$C$26:$C$31,0),MATCH(Calc_BAU!BP$6,'Energy Prices'!$F$11:$CR$11,0))/100000,0)","v":0},{"$f":"IFERROR('Data Input - BAU'!BU85*INDEX('Energy Prices'!$F$26:$CR$31,MATCH($B129,'Energy Prices'!$C$26:$C$31,0),MATCH(Calc_BAU!BQ$6,'Energy Prices'!$F$11:$CR$11,0))/100000,0)","v":0},{"$f":"IFERROR('Data Input - BAU'!BV85*INDEX('Energy Prices'!$F$26:$CR$31,MATCH($B129,'Energy Prices'!$C$26:$C$31,0),MATCH(Calc_BAU!BR$6,'Energy Prices'!$F$11:$CR$11,0))/100000,0)","v":0},{"$f":"IFERROR('Data Input - BAU'!BW85*INDEX('Energy Prices'!$F$26:$CR$31,MATCH($B129,'Energy Prices'!$C$26:$C$31,0),MATCH(Calc_BAU!BS$6,'Energy Prices'!$F$11:$CR$11,0))/100000,0)","v":0},{"$f":"IFERROR('Data Input - BAU'!BX85*INDEX('Energy Prices'!$F$26:$CR$31,MATCH($B129,'Energy Prices'!$C$26:$C$31,0),MATCH(Calc_BAU!BT$6,'Energy Prices'!$F$11:$CR$11,0))/100000,0)","v":0},{"$f":"IFERROR('Data Input - BAU'!BY85*INDEX('Energy Prices'!$F$26:$CR$31,MATCH($B129,'Energy Prices'!$C$26:$C$31,0),MATCH(Calc_BAU!BU$6,'Energy Prices'!$F$11:$CR$11,0))/100000,0)","v":0},{"$f":"IFERROR('Data Input - BAU'!BZ85*INDEX('Energy Prices'!$F$26:$CR$31,MATCH($B129,'Energy Prices'!$C$26:$C$31,0),MATCH(Calc_BAU!BV$6,'Energy Prices'!$F$11:$CR$11,0))/100000,0)","v":0},{"$f":"IFERROR('Data Input - BAU'!CA85*INDEX('Energy Prices'!$F$26:$CR$31,MATCH($B129,'Energy Prices'!$C$26:$C$31,0),MATCH(Calc_BAU!BW$6,'Energy Prices'!$F$11:$CR$11,0))/100000,0)","v":0},{"$f":"IFERROR('Data Input - BAU'!CB85*INDEX('Energy Prices'!$F$26:$CR$31,MATCH($B129,'Energy Prices'!$C$26:$C$31,0),MATCH(Calc_BAU!BX$6,'Energy Prices'!$F$11:$CR$11,0))/100000,0)","v":0},{"$f":"IFERROR('Data Input - BAU'!CC85*INDEX('Energy Prices'!$F$26:$CR$31,MATCH($B129,'Energy Prices'!$C$26:$C$31,0),MATCH(Calc_BAU!BY$6,'Energy Prices'!$F$11:$CR$11,0))/100000,0)","v":0},{"$f":"IFERROR('Data Input - BAU'!CD85*INDEX('Energy Prices'!$F$26:$CR$31,MATCH($B129,'Energy Prices'!$C$26:$C$31,0),MATCH(Calc_BAU!BZ$6,'Energy Prices'!$F$11:$CR$11,0))/100000,0)","v":0},{"$f":"IFERROR('Data Input - BAU'!CE85*INDEX('Energy Prices'!$F$26:$CR$31,MATCH($B129,'Energy Prices'!$C$26:$C$31,0),MATCH(Calc_BAU!CA$6,'Energy Prices'!$F$11:$CR$11,0))/100000,0)","v":0},{"$f":"IFERROR('Data Input - BAU'!CF85*INDEX('Energy Prices'!$F$26:$CR$31,MATCH($B129,'Energy Prices'!$C$26:$C$31,0),MATCH(Calc_BAU!CB$6,'Energy Prices'!$F$11:$CR$11,0))/100000,0)","v":0},{"$f":"IFERROR('Data Input - BAU'!CG85*INDEX('Energy Prices'!$F$26:$CR$31,MATCH($B129,'Energy Prices'!$C$26:$C$31,0),MATCH(Calc_BAU!CC$6,'Energy Prices'!$F$11:$CR$11,0))/100000,0)","v":0},{"$f":"IFERROR('Data Input - BAU'!CH85*INDEX('Energy Prices'!$F$26:$CR$31,MATCH($B129,'Energy Prices'!$C$26:$C$31,0),MATCH(Calc_BAU!CD$6,'Energy Prices'!$F$11:$CR$11,0))/100000,0)","v":0},{"$f":"IFERROR('Data Input - BAU'!CI85*INDEX('Energy Prices'!$F$26:$CR$31,MATCH($B129,'Energy Prices'!$C$26:$C$31,0),MATCH(Calc_BAU!CE$6,'Energy Prices'!$F$11:$CR$11,0))/100000,0)","v":0},{"$f":"IFERROR('Data Input - BAU'!CJ85*INDEX('Energy Prices'!$F$26:$CR$31,MATCH($B129,'Energy Prices'!$C$26:$C$31,0),MATCH(Calc_BAU!CF$6,'Energy Prices'!$F$11:$CR$11,0))/100000,0)","v":0},{"$f":"IFERROR('Data Input - BAU'!CK85*INDEX('Energy Prices'!$F$26:$CR$31,MATCH($B129,'Energy Prices'!$C$26:$C$31,0),MATCH(Calc_BAU!CG$6,'Energy Prices'!$F$11:$CR$11,0))/100000,0)","v":0},{"$f":"IFERROR('Data Input - BAU'!CL85*INDEX('Energy Prices'!$F$26:$CR$31,MATCH($B129,'Energy Prices'!$C$26:$C$31,0),MATCH(Calc_BAU!CH$6,'Energy Prices'!$F$11:$CR$11,0))/100000,0)","v":0},{"$f":"IFERROR('Data Input - BAU'!CM85*INDEX('Energy Prices'!$F$26:$CR$31,MATCH($B129,'Energy Prices'!$C$26:$C$31,0),MATCH(Calc_BAU!CI$6,'Energy Prices'!$F$11:$CR$11,0))/100000,0)","v":0},{"$f":"IFERROR('Data Input - BAU'!CN85*INDEX('Energy Prices'!$F$26:$CR$31,MATCH($B129,'Energy Prices'!$C$26:$C$31,0),MATCH(Calc_BAU!CJ$6,'Energy Prices'!$F$11:$CR$11,0))/100000,0)","v":0},{"$f":"IFERROR('Data Input - BAU'!CO85*INDEX('Energy Prices'!$F$26:$CR$31,MATCH($B129,'Energy Prices'!$C$26:$C$31,0),MATCH(Calc_BAU!CK$6,'Energy Prices'!$F$11:$CR$11,0))/100000,0)","v":0},{"$f":"IFERROR('Data Input - BAU'!CP85*INDEX('Energy Prices'!$F$26:$CR$31,MATCH($B129,'Energy Prices'!$C$26:$C$31,0),MATCH(Calc_BAU!CL$6,'Energy Prices'!$F$11:$CR$11,0))/100000,0)","v":0},{"$f":"IFERROR('Data Input - BAU'!CQ85*INDEX('Energy Prices'!$F$26:$CR$31,MATCH($B129,'Energy Prices'!$C$26:$C$31,0),MATCH(Calc_BAU!CM$6,'Energy Prices'!$F$11:$CR$11,0))/100000,0)","v":0},{"$f":"IFERROR('Data Input - BAU'!CR85*INDEX('Energy Prices'!$F$26:$CR$31,MATCH($B129,'Energy Prices'!$C$26:$C$31,0),MATCH(Calc_BAU!CN$6,'Energy Prices'!$F$11:$CR$11,0))/100000,0)","v":0},{"$f":"IFERROR('Data Input - BAU'!CS85*INDEX('Energy Prices'!$F$26:$CR$31,MATCH($B129,'Energy Prices'!$C$26:$C$31,0),MATCH(Calc_BAU!CO$6,'Energy Prices'!$F$11:$CR$11,0))/100000,0)","v":0},{"$f":"IFERROR('Data Input - BAU'!CT85*INDEX('Energy Prices'!$F$26:$CR$31,MATCH($B129,'Energy Prices'!$C$26:$C$31,0),MATCH(Calc_BAU!CP$6,'Energy Prices'!$F$11:$CR$11,0))/100000,0)","v":0},{"$f":"IFERROR('Data Input - BAU'!CU85*INDEX('Energy Prices'!$F$26:$CR$31,MATCH($B129,'Energy Prices'!$C$26:$C$31,0),MATCH(Calc_BAU!CQ$6,'Energy Prices'!$F$11:$CR$11,0))/100000,0)","v":0},{"$f":"IFERROR('Data Input - BAU'!CV85*INDEX('Energy Prices'!$F$26:$CR$31,MATCH($B129,'Energy Prices'!$C$26:$C$31,0),MATCH(Calc_BAU!CR$6,'Energy Prices'!$F$11:$CR$11,0))/100000,0)","v":0},{"$f":"IFERROR('Data Input - BAU'!CW85*INDEX('Energy Prices'!$F$26:$CR$31,MATCH($B129,'Energy Prices'!$C$26:$C$31,0),MATCH(Calc_BAU!CS$6,'Energy Prices'!$F$11:$CR$11,0))/100000,0)","v":0},{"$f":"IFERROR('Data Input - BAU'!CX85*INDEX('Energy Prices'!$F$26:$CR$31,MATCH($B129,'Energy Prices'!$C$26:$C$31,0),MATCH(Calc_BAU!CT$6,'Energy Prices'!$F$11:$CR$11,0))/100000,0)","v":0},{"$f":"IFERROR('Data Input - BAU'!CY85*INDEX('Energy Prices'!$F$26:$CR$31,MATCH($B129,'Energy Prices'!$C$26:$C$31,0),MATCH(Calc_BAU!CU$6,'Energy Prices'!$F$11:$CR$11,0))/100000,0)","v":0},{"$f":"IFERROR('Data Input - BAU'!CZ85*INDEX('Energy Prices'!$F$26:$CR$31,MATCH($B129,'Energy Prices'!$C$26:$C$31,0),MATCH(Calc_BAU!CV$6,'Energy Prices'!$F$11:$CR$11,0))/100000,0)","v":0},{"$f":"IFERROR('Data Input - BAU'!DA85*INDEX('Energy Prices'!$F$26:$CR$31,MATCH($B129,'Energy Prices'!$C$26:$C$31,0),MATCH(Calc_BAU!CW$6,'Energy Prices'!$F$11:$CR$11,0))/100000,0)","v":0},{"$f":"IFERROR('Data Input - BAU'!DB85*INDEX('Energy Prices'!$F$26:$CR$31,MATCH($B129,'Energy Prices'!$C$26:$C$31,0),MATCH(Calc_BAU!CX$6,'Energy Prices'!$F$11:$CR$11,0))/100000,0)","v":0},{"$f":"IFERROR('Data Input - BAU'!DC85*INDEX('Energy Prices'!$F$26:$CR$31,MATCH($B129,'Energy Prices'!$C$26:$C$31,0),MATCH(Calc_BAU!CY$6,'Energy Prices'!$F$11:$CR$11,0))/100000,0)","v":0}]
[null,"Coal","£000's",{"$f":"IFERROR('Data Input - BAU'!H86*INDEX('Energy Prices'!$F$26:$CR$31,MATCH($B130,'Energy Prices'!$C$26:$C$31,0),MATCH(Calc_BAU!D$6,'Energy Prices'!$F$11:$CR$11,0))/100000,0)","v":1115.9423257851734},{"$f":"IFERROR('Data Input - BAU'!I86*INDEX('Energy Prices'!$F$26:$CR$31,MATCH($B130,'Energy Prices'!$C$26:$C$31,0),MATCH(Calc_BAU!E$6,'Energy Prices'!$F$11:$CR$11,0))/100000,0)","v":1145.3793368593567},{"$f":"IFERROR('Data Input - BAU'!J86*INDEX('Energy Prices'!$F$26:$CR$31,MATCH($B130,'Energy Prices'!$C$26:$C$31,0),MATCH(Calc_BAU!F$6,'Energy Prices'!$F$11:$CR$11,0))/100000,0)","v":1174.8204553424844},{"$f":"IFERROR('Data Input - BAU'!K86*INDEX('Energy Prices'!$F$26:$CR$31,MATCH($B130,'Energy Prices'!$C$26:$C$31,0),MATCH(Calc_BAU!G$6,'Energy Prices'!$F$11:$CR$11,0))/100000,0)","v":1204.2578912819392},{"$f":"IFERROR('Data Input - BAU'!L86*INDEX('Energy Prices'!$F$26:$CR$31,MATCH($B130,'Energy Prices'!$C$26:$C$31,0),MATCH(Calc_BAU!H$6,'Energy Prices'!$F$11:$CR$11,0))/100000,0)","v":1233.6955152831745},{"$f":"IFERROR('Data Input - BAU'!M86*INDEX('Energy Prices'!$F$26:$CR$31,MATCH($B130,'Energy Prices'!$C$26:$C$31,0),MATCH(Calc_BAU!I$6,'Energy Prices'!$F$11:$CR$11,0))/100000,0)","v":1263.1333286330253},{"$f":"IFERROR('Data Input - BAU'!N86*INDEX('Energy Prices'!$F$26:$CR$31,MATCH($B130,'Energy Prices'!$C$26:$C$31,0),MATCH(Calc_BAU!J$6,'Energy Prices'!$F$11:$CR$11,0))/100000,0)","v":1292.5713326271323},{"$f":"IFERROR('Data Input - BAU'!O86*INDEX('Energy Prices'!$F$26:$CR$31,MATCH($B130,'Energy Prices'!$C$26:$C$31,0),MATCH(Calc_BAU!K$6,'Energy Prices'!$F$11:$CR$11,0))/100000,0)","v":1322.009528570002},{"$f":"IFERROR('Data Input - BAU'!P86*INDEX('Energy Prices'!$F$26:$CR$31,MATCH($B130,'Energy Prices'!$C$26:$C$31,0),MATCH(Calc_BAU!L$6,'Energy Prices'!$F$11:$CR$11,0))/100000,0)","v":0},{"$f":"IFERROR('Data Input - BAU'!Q86*INDEX('Energy Prices'!$F$26:$CR$31,MATCH($B130,'Energy Prices'!$C$26:$C$31,0),MATCH(Calc_BAU!M$6,'Energy Prices'!$F$11:$CR$11,0))/100000,0)","v":0},{"$f":"IFERROR('Data Input - BAU'!R86*INDEX('Energy Prices'!$F$26:$CR$31,MATCH($B130,'Energy Prices'!$C$26:$C$31,0),MATCH(Calc_BAU!N$6,'Energy Prices'!$F$11:$CR$11,0))/100000,0)","v":0},{"$f":"IFERROR('Data Input - BAU'!S86*INDEX('Energy Prices'!$F$26:$CR$31,MATCH($B130,'Energy Prices'!$C$26:$C$31,0),MATCH(Calc_BAU!O$6,'Energy Prices'!$F$11:$CR$11,0))/100000,0)","v":0},{"$f":"IFERROR('Data Input - BAU'!T86*INDEX('Energy Prices'!$F$26:$CR$31,MATCH($B130,'Energy Prices'!$C$26:$C$31,0),MATCH(Calc_BAU!P$6,'Energy Prices'!$F$11:$CR$11,0))/100000,0)","v":0},{"$f":"IFERROR('Data Input - BAU'!U86*INDEX('Energy Prices'!$F$26:$CR$31,MATCH($B130,'Energy Prices'!$C$26:$C$31,0),MATCH(Calc_BAU!Q$6,'Energy Prices'!$F$11:$CR$11,0))/100000,0)","v":0},{"$f":"IFERROR('Data Input - BAU'!V86*INDEX('Energy Prices'!$F$26:$CR$31,MATCH($B130,'Energy Prices'!$C$26:$C$31,0),MATCH(Calc_BAU!R$6,'Energy Prices'!$F$11:$CR$11,0))/100000,0)","v":0},{"$f":"IFERROR('Data Input - BAU'!W86*INDEX('Energy Prices'!$F$26:$CR$31,MATCH($B130,'Energy Prices'!$C$26:$C$31,0),MATCH(Calc_BAU!S$6,'Energy Prices'!$F$11:$CR$11,0))/100000,0)","v":0},{"$f":"IFERROR('Data Input - BAU'!X86*INDEX('Energy Prices'!$F$26:$CR$31,MATCH($B130,'Energy Prices'!$C$26:$C$31,0),MATCH(Calc_BAU!T$6,'Energy Prices'!$F$11:$CR$11,0))/100000,0)","v":0},{"$f":"IFERROR('Data Input - BAU'!Y86*INDEX('Energy Prices'!$F$26:$CR$31,MATCH($B130,'Energy Prices'!$C$26:$C$31,0),MATCH(Calc_BAU!U$6,'Energy Prices'!$F$11:$CR$11,0))/100000,0)","v":0},{"$f":"IFERROR('Data Input - BAU'!Z86*INDEX('Energy Prices'!$F$26:$CR$31,MATCH($B130,'Energy Prices'!$C$26:$C$31,0),MATCH(Calc_BAU!V$6,'Energy Prices'!$F$11:$CR$11,0))/100000,0)","v":0},{"$f":"IFERROR('Data Input - BAU'!AA86*INDEX('Energy Prices'!$F$26:$CR$31,MATCH($B130,'Energy Prices'!$C$26:$C$31,0),MATCH(Calc_BAU!W$6,'Energy Prices'!$F$11:$CR$11,0))/100000,0)","v":0},{"$f":"IFERROR('Data Input - BAU'!AB86*INDEX('Energy Prices'!$F$26:$CR$31,MATCH($B130,'Energy Prices'!$C$26:$C$31,0),MATCH(Calc_BAU!X$6,'Energy Prices'!$F$11:$CR$11,0))/100000,0)","v":0},{"$f":"IFERROR('Data Input - BAU'!AC86*INDEX('Energy Prices'!$F$26:$CR$31,MATCH($B130,'Energy Prices'!$C$26:$C$31,0),MATCH(Calc_BAU!Y$6,'Energy Prices'!$F$11:$CR$11,0))/100000,0)","v":0},{"$f":"IFERROR('Data Input - BAU'!AD86*INDEX('Energy Prices'!$F$26:$CR$31,MATCH($B130,'Energy Prices'!$C$26:$C$31,0),MATCH(Calc_BAU!Z$6,'Energy Prices'!$F$11:$CR$11,0))/100000,0)","v":0},{"$f":"IFERROR('Data Input - BAU'!AE86*INDEX('Energy Prices'!$F$26:$CR$31,MATCH($B130,'Energy Prices'!$C$26:$C$31,0),MATCH(Calc_BAU!AA$6,'Energy Prices'!$F$11:$CR$11,0))/100000,0)","v":0},{"$f":"IFERROR('Data Input - BAU'!AF86*INDEX('Energy Prices'!$F$26:$CR$31,MATCH($B130,'Energy Prices'!$C$26:$C$31,0),MATCH(Calc_BAU!AB$6,'Energy Prices'!$F$11:$CR$11,0))/100000,0)","v":0},{"$f":"IFERROR('Data Input - BAU'!AG86*INDEX('Energy Prices'!$F$26:$CR$31,MATCH($B130,'Energy Prices'!$C$26:$C$31,0),MATCH(Calc_BAU!AC$6,'Energy Prices'!$F$11:$CR$11,0))/100000,0)","v":0},{"$f":"IFERROR('Data Input - BAU'!AH86*INDEX('Energy Prices'!$F$26:$CR$31,MATCH($B130,'Energy Prices'!$C$26:$C$31,0),MATCH(Calc_BAU!AD$6,'Energy Prices'!$F$11:$CR$11,0))/100000,0)","v":0},{"$f":"IFERROR('Data Input - BAU'!AI86*INDEX('Energy Prices'!$F$26:$CR$31,MATCH($B130,'Energy Prices'!$C$26:$C$31,0),MATCH(Calc_BAU!AE$6,'Energy Prices'!$F$11:$CR$11,0))/100000,0)","v":0},{"$f":"IFERROR('Data Input - BAU'!AJ86*INDEX('Energy Prices'!$F$26:$CR$31,MATCH($B130,'Energy Prices'!$C$26:$C$31,0),MATCH(Calc_BAU!AF$6,'Energy Prices'!$F$11:$CR$11,0))/100000,0)","v":0},{"$f":"IFERROR('Data Input - BAU'!AK86*INDEX('Energy Prices'!$F$26:$CR$31,MATCH($B130,'Energy Prices'!$C$26:$C$31,0),MATCH(Calc_BAU!AG$6,'Energy Prices'!$F$11:$CR$11,0))/100000,0)","v":0},{"$f":"IFERROR('Data Input - BAU'!AL86*INDEX('Energy Prices'!$F$26:$CR$31,MATCH($B130,'Energy Prices'!$C$26:$C$31,0),MATCH(Calc_BAU!AH$6,'Energy Prices'!$F$11:$CR$11,0))/100000,0)","v":0},{"$f":"IFERROR('Data Input - BAU'!AM86*INDEX('Energy Prices'!$F$26:$CR$31,MATCH($B130,'Energy Prices'!$C$26:$C$31,0),MATCH(Calc_BAU!AI$6,'Energy Prices'!$F$11:$CR$11,0))/100000,0)","v":0},{"$f":"IFERROR('Data Input - BAU'!AN86*INDEX('Energy Prices'!$F$26:$CR$31,MATCH($B130,'Energy Prices'!$C$26:$C$31,0),MATCH(Calc_BAU!AJ$6,'Energy Prices'!$F$11:$CR$11,0))/100000,0)","v":0},{"$f":"IFERROR('Data Input - BAU'!AO86*INDEX('Energy Prices'!$F$26:$CR$31,MATCH($B130,'Energy Prices'!$C$26:$C$31,0),MATCH(Calc_BAU!AK$6,'Energy Prices'!$F$11:$CR$11,0))/100000,0)","v":0},{"$f":"IFERROR('Data Input - BAU'!AP86*INDEX('Energy Prices'!$F$26:$CR$31,MATCH($B130,'Energy Prices'!$C$26:$C$31,0),MATCH(Calc_BAU!AL$6,'Energy Prices'!$F$11:$CR$11,0))/100000,0)","v":0},{"$f":"IFERROR('Data Input - BAU'!AQ86*INDEX('Energy Prices'!$F$26:$CR$31,MATCH($B130,'Energy Prices'!$C$26:$C$31,0),MATCH(Calc_BAU!AM$6,'Energy Prices'!$F$11:$CR$11,0))/100000,0)","v":0},{"$f":"IFERROR('Data Input - BAU'!AR86*INDEX('Energy Prices'!$F$26:$CR$31,MATCH($B130,'Energy Prices'!$C$26:$C$31,0),MATCH(Calc_BAU!AN$6,'Energy Prices'!$F$11:$CR$11,0))/100000,0)","v":0},{"$f":"IFERROR('Data Input - BAU'!AS86*INDEX('Energy Prices'!$F$26:$CR$31,MATCH($B130,'Energy Prices'!$C$26:$C$31,0),MATCH(Calc_BAU!AO$6,'Energy Prices'!$F$11:$CR$11,0))/100000,0)","v":0},{"$f":"IFERROR('Data Input - BAU'!AT86*INDEX('Energy Prices'!$F$26:$CR$31,MATCH($B130,'Energy Prices'!$C$26:$C$31,0),MATCH(Calc_BAU!AP$6,'Energy Prices'!$F$11:$CR$11,0))/100000,0)","v":0},{"$f":"IFERROR('Data Input - BAU'!AU86*INDEX('Energy Prices'!$F$26:$CR$31,MATCH($B130,'Energy Prices'!$C$26:$C$31,0),MATCH(Calc_BAU!AQ$6,'Energy Prices'!$F$11:$CR$11,0))/100000,0)","v":0},{"$f":"IFERROR('Data Input - BAU'!AV86*INDEX('Energy Prices'!$F$26:$CR$31,MATCH($B130,'Energy Prices'!$C$26:$C$31,0),MATCH(Calc_BAU!AR$6,'Energy Prices'!$F$11:$CR$11,0))/100000,0)","v":0},{"$f":"IFERROR('Data Input - BAU'!AW86*INDEX('Energy Prices'!$F$26:$CR$31,MATCH($B130,'Energy Prices'!$C$26:$C$31,0),MATCH(Calc_BAU!AS$6,'Energy Prices'!$F$11:$CR$11,0))/100000,0)","v":0},{"$f":"IFERROR('Data Input - BAU'!AX86*INDEX('Energy Prices'!$F$26:$CR$31,MATCH($B130,'Energy Prices'!$C$26:$C$31,0),MATCH(Calc_BAU!AT$6,'Energy Prices'!$F$11:$CR$11,0))/100000,0)","v":0},{"$f":"IFERROR('Data Input - BAU'!AY86*INDEX('Energy Prices'!$F$26:$CR$31,MATCH($B130,'Energy Prices'!$C$26:$C$31,0),MATCH(Calc_BAU!AU$6,'Energy Prices'!$F$11:$CR$11,0))/100000,0)","v":0},{"$f":"IFERROR('Data Input - BAU'!AZ86*INDEX('Energy Prices'!$F$26:$CR$31,MATCH($B130,'Energy Prices'!$C$26:$C$31,0),MATCH(Calc_BAU!AV$6,'Energy Prices'!$F$11:$CR$11,0))/100000,0)","v":0},{"$f":"IFERROR('Data Input - BAU'!BA86*INDEX('Energy Prices'!$F$26:$CR$31,MATCH($B130,'Energy Prices'!$C$26:$C$31,0),MATCH(Calc_BAU!AW$6,'Energy Prices'!$F$11:$CR$11,0))/100000,0)","v":0},{"$f":"IFERROR('Data Input - BAU'!BB86*INDEX('Energy Prices'!$F$26:$CR$31,MATCH($B130,'Energy Prices'!$C$26:$C$31,0),MATCH(Calc_BAU!AX$6,'Energy Prices'!$F$11:$CR$11,0))/100000,0)","v":0},{"$f":"IFERROR('Data Input - BAU'!BC86*INDEX('Energy Prices'!$F$26:$CR$31,MATCH($B130,'Energy Prices'!$C$26:$C$31,0),MATCH(Calc_BAU!AY$6,'Energy Prices'!$F$11:$CR$11,0))/100000,0)","v":0},{"$f":"IFERROR('Data Input - BAU'!BD86*INDEX('Energy Prices'!$F$26:$CR$31,MATCH($B130,'Energy Prices'!$C$26:$C$31,0),MATCH(Calc_BAU!AZ$6,'Energy Prices'!$F$11:$CR$11,0))/100000,0)","v":0},{"$f":"IFERROR('Data Input - BAU'!BE86*INDEX('Energy Prices'!$F$26:$CR$31,MATCH($B130,'Energy Prices'!$C$26:$C$31,0),MATCH(Calc_BAU!BA$6,'Energy Prices'!$F$11:$CR$11,0))/100000,0)","v":0},{"$f":"IFERROR('Data Input - BAU'!BF86*INDEX('Energy Prices'!$F$26:$CR$31,MATCH($B130,'Energy Prices'!$C$26:$C$31,0),MATCH(Calc_BAU!BB$6,'Energy Prices'!$F$11:$CR$11,0))/100000,0)","v":0},{"$f":"IFERROR('Data Input - BAU'!BG86*INDEX('Energy Prices'!$F$26:$CR$31,MATCH($B130,'Energy Prices'!$C$26:$C$31,0),MATCH(Calc_BAU!BC$6,'Energy Prices'!$F$11:$CR$11,0))/100000,0)","v":0},{"$f":"IFERROR('Data Input - BAU'!BH86*INDEX('Energy Prices'!$F$26:$CR$31,MATCH($B130,'Energy Prices'!$C$26:$C$31,0),MATCH(Calc_BAU!BD$6,'Energy Prices'!$F$11:$CR$11,0))/100000,0)","v":0},{"$f":"IFERROR('Data Input - BAU'!BI86*INDEX('Energy Prices'!$F$26:$CR$31,MATCH($B130,'Energy Prices'!$C$26:$C$31,0),MATCH(Calc_BAU!BE$6,'Energy Prices'!$F$11:$CR$11,0))/100000,0)","v":0},{"$f":"IFERROR('Data Input - BAU'!BJ86*INDEX('Energy Prices'!$F$26:$CR$31,MATCH($B130,'Energy Prices'!$C$26:$C$31,0),MATCH(Calc_BAU!BF$6,'Energy Prices'!$F$11:$CR$11,0))/100000,0)","v":0},{"$f":"IFERROR('Data Input - BAU'!BK86*INDEX('Energy Prices'!$F$26:$CR$31,MATCH($B130,'Energy Prices'!$C$26:$C$31,0),MATCH(Calc_BAU!BG$6,'Energy Prices'!$F$11:$CR$11,0))/100000,0)","v":0},{"$f":"IFERROR('Data Input - BAU'!BL86*INDEX('Energy Prices'!$F$26:$CR$31,MATCH($B130,'Energy Prices'!$C$26:$C$31,0),MATCH(Calc_BAU!BH$6,'Energy Prices'!$F$11:$CR$11,0))/100000,0)","v":0},{"$f":"IFERROR('Data Input - BAU'!BM86*INDEX('Energy Prices'!$F$26:$CR$31,MATCH($B130,'Energy Prices'!$C$26:$C$31,0),MATCH(Calc_BAU!BI$6,'Energy Prices'!$F$11:$CR$11,0))/100000,0)","v":0},{"$f":"IFERROR('Data Input - BAU'!BN86*INDEX('Energy Prices'!$F$26:$CR$31,MATCH($B130,'Energy Prices'!$C$26:$C$31,0),MATCH(Calc_BAU!BJ$6,'Energy Prices'!$F$11:$CR$11,0))/100000,0)","v":0},{"$f":"IFERROR('Data Input - BAU'!BO86*INDEX('Energy Prices'!$F$26:$CR$31,MATCH($B130,'Energy Prices'!$C$26:$C$31,0),MATCH(Calc_BAU!BK$6,'Energy Prices'!$F$11:$CR$11,0))/100000,0)","v":0},{"$f":"IFERROR('Data Input - BAU'!BP86*INDEX('Energy Prices'!$F$26:$CR$31,MATCH($B130,'Energy Prices'!$C$26:$C$31,0),MATCH(Calc_BAU!BL$6,'Energy Prices'!$F$11:$CR$11,0))/100000,0)","v":0},{"$f":"IFERROR('Data Input - BAU'!BQ86*INDEX('Energy Prices'!$F$26:$CR$31,MATCH($B130,'Energy Prices'!$C$26:$C$31,0),MATCH(Calc_BAU!BM$6,'Energy Prices'!$F$11:$CR$11,0))/100000,0)","v":0},{"$f":"IFERROR('Data Input - BAU'!BR86*INDEX('Energy Prices'!$F$26:$CR$31,MATCH($B130,'Energy Prices'!$C$26:$C$31,0),MATCH(Calc_BAU!BN$6,'Energy Prices'!$F$11:$CR$11,0))/100000,0)","v":0},{"$f":"IFERROR('Data Input - BAU'!BS86*INDEX('Energy Prices'!$F$26:$CR$31,MATCH($B130,'Energy Prices'!$C$26:$C$31,0),MATCH(Calc_BAU!BO$6,'Energy Prices'!$F$11:$CR$11,0))/100000,0)","v":0},{"$f":"IFERROR('Data Input - BAU'!BT86*INDEX('Energy Prices'!$F$26:$CR$31,MATCH($B130,'Energy Prices'!$C$26:$C$31,0),MATCH(Calc_BAU!BP$6,'Energy Prices'!$F$11:$CR$11,0))/100000,0)","v":0},{"$f":"IFERROR('Data Input - BAU'!BU86*INDEX('Energy Prices'!$F$26:$CR$31,MATCH($B130,'Energy Prices'!$C$26:$C$31,0),MATCH(Calc_BAU!BQ$6,'Energy Prices'!$F$11:$CR$11,0))/100000,0)","v":0},{"$f":"IFERROR('Data Input - BAU'!BV86*INDEX('Energy Prices'!$F$26:$CR$31,MATCH($B130,'Energy Prices'!$C$26:$C$31,0),MATCH(Calc_BAU!BR$6,'Energy Prices'!$F$11:$CR$11,0))/100000,0)","v":0},{"$f":"IFERROR('Data Input - BAU'!BW86*INDEX('Energy Prices'!$F$26:$CR$31,MATCH($B130,'Energy Prices'!$C$26:$C$31,0),MATCH(Calc_BAU!BS$6,'Energy Prices'!$F$11:$CR$11,0))/100000,0)","v":0},{"$f":"IFERROR('Data Input - BAU'!BX86*INDEX('Energy Prices'!$F$26:$CR$31,MATCH($B130,'Energy Prices'!$C$26:$C$31,0),MATCH(Calc_BAU!BT$6,'Energy Prices'!$F$11:$CR$11,0))/100000,0)","v":0},{"$f":"IFERROR('Data Input - BAU'!BY86*INDEX('Energy Prices'!$F$26:$CR$31,MATCH($B130,'Energy Prices'!$C$26:$C$31,0),MATCH(Calc_BAU!BU$6,'Energy Prices'!$F$11:$CR$11,0))/100000,0)","v":0},{"$f":"IFERROR('Data Input - BAU'!BZ86*INDEX('Energy Prices'!$F$26:$CR$31,MATCH($B130,'Energy Prices'!$C$26:$C$31,0),MATCH(Calc_BAU!BV$6,'Energy Prices'!$F$11:$CR$11,0))/100000,0)","v":0},{"$f":"IFERROR('Data Input - BAU'!CA86*INDEX('Energy Prices'!$F$26:$CR$31,MATCH($B130,'Energy Prices'!$C$26:$C$31,0),MATCH(Calc_BAU!BW$6,'Energy Prices'!$F$11:$CR$11,0))/100000,0)","v":0},{"$f":"IFERROR('Data Input - BAU'!CB86*INDEX('Energy Prices'!$F$26:$CR$31,MATCH($B130,'Energy Prices'!$C$26:$C$31,0),MATCH(Calc_BAU!BX$6,'Energy Prices'!$F$11:$CR$11,0))/100000,0)","v":0},{"$f":"IFERROR('Data Input - BAU'!CC86*INDEX('Energy Prices'!$F$26:$CR$31,MATCH($B130,'Energy Prices'!$C$26:$C$31,0),MATCH(Calc_BAU!BY$6,'Energy Prices'!$F$11:$CR$11,0))/100000,0)","v":0},{"$f":"IFERROR('Data Input - BAU'!CD86*INDEX('Energy Prices'!$F$26:$CR$31,MATCH($B130,'Energy Prices'!$C$26:$C$31,0),MATCH(Calc_BAU!BZ$6,'Energy Prices'!$F$11:$CR$11,0))/100000,0)","v":0},{"$f":"IFERROR('Data Input - BAU'!CE86*INDEX('Energy Prices'!$F$26:$CR$31,MATCH($B130,'Energy Prices'!$C$26:$C$31,0),MATCH(Calc_BAU!CA$6,'Energy Prices'!$F$11:$CR$11,0))/100000,0)","v":0},{"$f":"IFERROR('Data Input - BAU'!CF86*INDEX('Energy Prices'!$F$26:$CR$31,MATCH($B130,'Energy Prices'!$C$26:$C$31,0),MATCH(Calc_BAU!CB$6,'Energy Prices'!$F$11:$CR$11,0))/100000,0)","v":0},{"$f":"IFERROR('Data Input - BAU'!CG86*INDEX('Energy Prices'!$F$26:$CR$31,MATCH($B130,'Energy Prices'!$C$26:$C$31,0),MATCH(Calc_BAU!CC$6,'Energy Prices'!$F$11:$CR$11,0))/100000,0)","v":0},{"$f":"IFERROR('Data Input - BAU'!CH86*INDEX('Energy Prices'!$F$26:$CR$31,MATCH($B130,'Energy Prices'!$C$26:$C$31,0),MATCH(Calc_BAU!CD$6,'Energy Prices'!$F$11:$CR$11,0))/100000,0)","v":0},{"$f":"IFERROR('Data Input - BAU'!CI86*INDEX('Energy Prices'!$F$26:$CR$31,MATCH($B130,'Energy Prices'!$C$26:$C$31,0),MATCH(Calc_BAU!CE$6,'Energy Prices'!$F$11:$CR$11,0))/100000,0)","v":0},{"$f":"IFERROR('Data Input - BAU'!CJ86*INDEX('Energy Prices'!$F$26:$CR$31,MATCH($B130,'Energy Prices'!$C$26:$C$31,0),MATCH(Calc_BAU!CF$6,'Energy Prices'!$F$11:$CR$11,0))/100000,0)","v":0},{"$f":"IFERROR('Data Input - BAU'!CK86*INDEX('Energy Prices'!$F$26:$CR$31,MATCH($B130,'Energy Prices'!$C$26:$C$31,0),MATCH(Calc_BAU!CG$6,'Energy Prices'!$F$11:$CR$11,0))/100000,0)","v":0},{"$f":"IFERROR('Data Input - BAU'!CL86*INDEX('Energy Prices'!$F$26:$CR$31,MATCH($B130,'Energy Prices'!$C$26:$C$31,0),MATCH(Calc_BAU!CH$6,'Energy Prices'!$F$11:$CR$11,0))/100000,0)","v":0},{"$f":"IFERROR('Data Input - BAU'!CM86*INDEX('Energy Prices'!$F$26:$CR$31,MATCH($B130,'Energy Prices'!$C$26:$C$31,0),MATCH(Calc_BAU!CI$6,'Energy Prices'!$F$11:$CR$11,0))/100000,0)","v":0},{"$f":"IFERROR('Data Input - BAU'!CN86*INDEX('Energy Prices'!$F$26:$CR$31,MATCH($B130,'Energy Prices'!$C$26:$C$31,0),MATCH(Calc_BAU!CJ$6,'Energy Prices'!$F$11:$CR$11,0))/100000,0)","v":0},{"$f":"IFERROR('Data Input - BAU'!CO86*INDEX('Energy Prices'!$F$26:$CR$31,MATCH($B130,'Energy Prices'!$C$26:$C$31,0),MATCH(Calc_BAU!CK$6,'Energy Prices'!$F$11:$CR$11,0))/100000,0)","v":0},{"$f":"IFERROR('Data Input - BAU'!CP86*INDEX('Energy Prices'!$F$26:$CR$31,MATCH($B130,'Energy Prices'!$C$26:$C$31,0),MATCH(Calc_BAU!CL$6,'Energy Prices'!$F$11:$CR$11,0))/100000,0)","v":0},{"$f":"IFERROR('Data Input - BAU'!CQ86*INDEX('Energy Prices'!$F$26:$CR$31,MATCH($B130,'Energy Prices'!$C$26:$C$31,0),MATCH(Calc_BAU!CM$6,'Energy Prices'!$F$11:$CR$11,0))/100000,0)","v":0},{"$f":"IFERROR('Data Input - BAU'!CR86*INDEX('Energy Prices'!$F$26:$CR$31,MATCH($B130,'Energy Prices'!$C$26:$C$31,0),MATCH(Calc_BAU!CN$6,'Energy Prices'!$F$11:$CR$11,0))/100000,0)","v":0},{"$f":"IFERROR('Data Input - BAU'!CS86*INDEX('Energy Prices'!$F$26:$CR$31,MATCH($B130,'Energy Prices'!$C$26:$C$31,0),MATCH(Calc_BAU!CO$6,'Energy Prices'!$F$11:$CR$11,0))/100000,0)","v":0},{"$f":"IFERROR('Data Input - BAU'!CT86*INDEX('Energy Prices'!$F$26:$CR$31,MATCH($B130,'Energy Prices'!$C$26:$C$31,0),MATCH(Calc_BAU!CP$6,'Energy Prices'!$F$11:$CR$11,0))/100000,0)","v":0},{"$f":"IFERROR('Data Input - BAU'!CU86*INDEX('Energy Prices'!$F$26:$CR$31,MATCH($B130,'Energy Prices'!$C$26:$C$31,0),MATCH(Calc_BAU!CQ$6,'Energy Prices'!$F$11:$CR$11,0))/100000,0)","v":0},{"$f":"IFERROR('Data Input - BAU'!CV86*INDEX('Energy Prices'!$F$26:$CR$31,MATCH($B130,'Energy Prices'!$C$26:$C$31,0),MATCH(Calc_BAU!CR$6,'Energy Prices'!$F$11:$CR$11,0))/100000,0)","v":0},{"$f":"IFERROR('Data Input - BAU'!CW86*INDEX('Energy Prices'!$F$26:$CR$31,MATCH($B130,'Energy Prices'!$C$26:$C$31,0),MATCH(Calc_BAU!CS$6,'Energy Prices'!$F$11:$CR$11,0))/100000,0)","v":0},{"$f":"IFERROR('Data Input - BAU'!CX86*INDEX('Energy Prices'!$F$26:$CR$31,MATCH($B130,'Energy Prices'!$C$26:$C$31,0),MATCH(Calc_BAU!CT$6,'Energy Prices'!$F$11:$CR$11,0))/100000,0)","v":0},{"$f":"IFERROR('Data Input - BAU'!CY86*INDEX('Energy Prices'!$F$26:$CR$31,MATCH($B130,'Energy Prices'!$C$26:$C$31,0),MATCH(Calc_BAU!CU$6,'Energy Prices'!$F$11:$CR$11,0))/100000,0)","v":0},{"$f":"IFERROR('Data Input - BAU'!CZ86*INDEX('Energy Prices'!$F$26:$CR$31,MATCH($B130,'Energy Prices'!$C$26:$C$31,0),MATCH(Calc_BAU!CV$6,'Energy Prices'!$F$11:$CR$11,0))/100000,0)","v":0},{"$f":"IFERROR('Data Input - BAU'!DA86*INDEX('Energy Prices'!$F$26:$CR$31,MATCH($B130,'Energy Prices'!$C$26:$C$31,0),MATCH(Calc_BAU!CW$6,'Energy Prices'!$F$11:$CR$11,0))/100000,0)","v":0},{"$f":"IFERROR('Data Input - BAU'!DB86*INDEX('Energy Prices'!$F$26:$CR$31,MATCH($B130,'Energy Prices'!$C$26:$C$31,0),MATCH(Calc_BAU!CX$6,'Energy Prices'!$F$11:$CR$11,0))/100000,0)","v":0},{"$f":"IFERROR('Data Input - BAU'!DC86*INDEX('Energy Prices'!$F$26:$CR$31,MATCH($B130,'Energy Prices'!$C$26:$C$31,0),MATCH(Calc_BAU!CY$6,'Energy Prices'!$F$11:$CR$11,0))/100000,0)","v":0}]
[null,"Gas Oil","£000's",{"$f":"IFERROR('Data Input - BAU'!H87*INDEX('Energy Prices'!$F$26:$CR$31,MATCH($B131,'Energy Prices'!$C$26:$C$31,0),MATCH(Calc_BAU!D$6,'Energy Prices'!$F$11:$CR$11,0))/100000,0)","v":159.58768760508622},{"$f":"IFERROR('Data Input - BAU'!I87*INDEX('Energy Prices'!$F$26:$CR$31,MATCH($B131,'Energy Prices'!$C$26:$C$31,0),MATCH(Calc_BAU!E$6,'Energy Prices'!$F$11:$CR$11,0))/100000,0)","v":163.88916071794324},{"$f":"IFERROR('Data Input - BAU'!J87*INDEX('Energy Prices'!$F$26:$CR$31,MATCH($B131,'Energy Prices'!$C$26:$C$31,0),MATCH(Calc_BAU!F$6,'Energy Prices'!$F$11:$CR$11,0))/100000,0)","v":168.20994897459815},{"$f":"IFERROR('Data Input - BAU'!K87*INDEX('Energy Prices'!$F$26:$CR$31,MATCH($B131,'Energy Prices'!$C$26:$C$31,0),MATCH(Calc_BAU!G$6,'Energy Prices'!$F$11:$CR$11,0))/100000,0)","v":172.51610138744758},{"$f":"IFERROR('Data Input - BAU'!L87*INDEX('Energy Prices'!$F$26:$CR$31,MATCH($B131,'Energy Prices'!$C$26:$C$31,0),MATCH(Calc_BAU!H$6,'Energy Prices'!$F$11:$CR$11,0))/100000,0)","v":176.81563540542891},{"$f":"IFERROR('Data Input - BAU'!M87*INDEX('Energy Prices'!$F$26:$CR$31,MATCH($B131,'Energy Prices'!$C$26:$C$31,0),MATCH(Calc_BAU!I$6,'Energy Prices'!$F$11:$CR$11,0))/100000,0)","v":181.11632434999379},{"$f":"IFERROR('Data Input - BAU'!N87*INDEX('Energy Prices'!$F$26:$CR$31,MATCH($B131,'Energy Prices'!$C$26:$C$31,0),MATCH(Calc_BAU!J$6,'Energy Prices'!$F$11:$CR$11,0))/100000,0)","v":185.41817612386572},{"$f":"IFERROR('Data Input - BAU'!O87*INDEX('Energy Prices'!$F$26:$CR$31,MATCH($B131,'Energy Prices'!$C$26:$C$31,0),MATCH(Calc_BAU!K$6,'Energy Prices'!$F$11:$CR$11,0))/100000,0)","v":189.7211986838434},{"$f":"IFERROR('Data Input - BAU'!P87*INDEX('Energy Prices'!$F$26:$CR$31,MATCH($B131,'Energy Prices'!$C$26:$C$31,0),MATCH(Calc_BAU!L$6,'Energy Prices'!$F$11:$CR$11,0))/100000,0)","v":0},{"$f":"IFERROR('Data Input - BAU'!Q87*INDEX('Energy Prices'!$F$26:$CR$31,MATCH($B131,'Energy Prices'!$C$26:$C$31,0),MATCH(Calc_BAU!M$6,'Energy Prices'!$F$11:$CR$11,0))/100000,0)","v":0},{"$f":"IFERROR('Data Input - BAU'!R87*INDEX('Energy Prices'!$F$26:$CR$31,MATCH($B131,'Energy Prices'!$C$26:$C$31,0),MATCH(Calc_BAU!N$6,'Energy Prices'!$F$11:$CR$11,0))/100000,0)","v":0},{"$f":"IFERROR('Data Input - BAU'!S87*INDEX('Energy Prices'!$F$26:$CR$31,MATCH($B131,'Energy Prices'!$C$26:$C$31,0),MATCH(Calc_BAU!O$6,'Energy Prices'!$F$11:$CR$11,0))/100000,0)","v":0},{"$f":"IFERROR('Data Input - BAU'!T87*INDEX('Energy Prices'!$F$26:$CR$31,MATCH($B131,'Energy Prices'!$C$26:$C$31,0),MATCH(Calc_BAU!P$6,'Energy Prices'!$F$11:$CR$11,0))/100000,0)","v":0},{"$f":"IFERROR('Data Input - BAU'!U87*INDEX('Energy Prices'!$F$26:$CR$31,MATCH($B131,'Energy Prices'!$C$26:$C$31,0),MATCH(Calc_BAU!Q$6,'Energy Prices'!$F$11:$CR$11,0))/100000,0)","v":0},{"$f":"IFERROR('Data Input - BAU'!V87*INDEX('Energy Prices'!$F$26:$CR$31,MATCH($B131,'Energy Prices'!$C$26:$C$31,0),MATCH(Calc_BAU!R$6,'Energy Prices'!$F$11:$CR$11,0))/100000,0)","v":0},{"$f":"IFERROR('Data Input - BAU'!W87*INDEX('Energy Prices'!$F$26:$CR$31,MATCH($B131,'Energy Prices'!$C$26:$C$31,0),MATCH(Calc_BAU!S$6,'Energy Prices'!$F$11:$CR$11,0))/100000,0)","v":0},{"$f":"IFERROR('Data Input - BAU'!X87*INDEX('Energy Prices'!$F$26:$CR$31,MATCH($B131,'Energy Prices'!$C$26:$C$31,0),MATCH(Calc_BAU!T$6,'Energy Prices'!$F$11:$CR$11,0))/100000,0)","v":0},{"$f":"IFERROR('Data Input - BAU'!Y87*INDEX('Energy Prices'!$F$26:$CR$31,MATCH($B131,'Energy Prices'!$C$26:$C$31,0),MATCH(Calc_BAU!U$6,'Energy Prices'!$F$11:$CR$11,0))/100000,0)","v":0},{"$f":"IFERROR('Data Input - BAU'!Z87*INDEX('Energy Prices'!$F$26:$CR$31,MATCH($B131,'Energy Prices'!$C$26:$C$31,0),MATCH(Calc_BAU!V$6,'Energy Prices'!$F$11:$CR$11,0))/100000,0)","v":0},{"$f":"IFERROR('Data Input - BAU'!AA87*INDEX('Energy Prices'!$F$26:$CR$31,MATCH($B131,'Energy Prices'!$C$26:$C$31,0),MATCH(Calc_BAU!W$6,'Energy Prices'!$F$11:$CR$11,0))/100000,0)","v":0},{"$f":"IFERROR('Data Input - BAU'!AB87*INDEX('Energy Prices'!$F$26:$CR$31,MATCH($B131,'Energy Prices'!$C$26:$C$31,0),MATCH(Calc_BAU!X$6,'Energy Prices'!$F$11:$CR$11,0))/100000,0)","v":0},{"$f":"IFERROR('Data Input - BAU'!AC87*INDEX('Energy Prices'!$F$26:$CR$31,MATCH($B131,'Energy Prices'!$C$26:$C$31,0),MATCH(Calc_BAU!Y$6,'Energy Prices'!$F$11:$CR$11,0))/100000,0)","v":0},{"$f":"IFERROR('Data Input - BAU'!AD87*INDEX('Energy Prices'!$F$26:$CR$31,MATCH($B131,'Energy Prices'!$C$26:$C$31,0),MATCH(Calc_BAU!Z$6,'Energy Prices'!$F$11:$CR$11,0))/100000,0)","v":0},{"$f":"IFERROR('Data Input - BAU'!AE87*INDEX('Energy Prices'!$F$26:$CR$31,MATCH($B131,'Energy Prices'!$C$26:$C$31,0),MATCH(Calc_BAU!AA$6,'Energy Prices'!$F$11:$CR$11,0))/100000,0)","v":0},{"$f":"IFERROR('Data Input - BAU'!AF87*INDEX('Energy Prices'!$F$26:$CR$31,MATCH($B131,'Energy Prices'!$C$26:$C$31,0),MATCH(Calc_BAU!AB$6,'Energy Prices'!$F$11:$CR$11,0))/100000,0)","v":0},{"$f":"IFERROR('Data Input - BAU'!AG87*INDEX('Energy Prices'!$F$26:$CR$31,MATCH($B131,'Energy Prices'!$C$26:$C$31,0),MATCH(Calc_BAU!AC$6,'Energy Prices'!$F$11:$CR$11,0))/100000,0)","v":0},{"$f":"IFERROR('Data Input - BAU'!AH87*INDEX('Energy Prices'!$F$26:$CR$31,MATCH($B131,'Energy Prices'!$C$26:$C$31,0),MATCH(Calc_BAU!AD$6,'Energy Prices'!$F$11:$CR$11,0))/100000,0)","v":0},{"$f":"IFERROR('Data Input - BAU'!AI87*INDEX('Energy Prices'!$F$26:$CR$31,MATCH($B131,'Energy Prices'!$C$26:$C$31,0),MATCH(Calc_BAU!AE$6,'Energy Prices'!$F$11:$CR$11,0))/100000,0)","v":0},{"$f":"IFERROR('Data Input - BAU'!AJ87*INDEX('Energy Prices'!$F$26:$CR$31,MATCH($B131,'Energy Prices'!$C$26:$C$31,0),MATCH(Calc_BAU!AF$6,'Energy Prices'!$F$11:$CR$11,0))/100000,0)","v":0},{"$f":"IFERROR('Data Input - BAU'!AK87*INDEX('Energy Prices'!$F$26:$CR$31,MATCH($B131,'Energy Prices'!$C$26:$C$31,0),MATCH(Calc_BAU!AG$6,'Energy Prices'!$F$11:$CR$11,0))/100000,0)","v":0},{"$f":"IFERROR('Data Input - BAU'!AL87*INDEX('Energy Prices'!$F$26:$CR$31,MATCH($B131,'Energy Prices'!$C$26:$C$31,0),MATCH(Calc_BAU!AH$6,'Energy Prices'!$F$11:$CR$11,0))/100000,0)","v":0},{"$f":"IFERROR('Data Input - BAU'!AM87*INDEX('Energy Prices'!$F$26:$CR$31,MATCH($B131,'Energy Prices'!$C$26:$C$31,0),MATCH(Calc_BAU!AI$6,'Energy Prices'!$F$11:$CR$11,0))/100000,0)","v":0},{"$f":"IFERROR('Data Input - BAU'!AN87*INDEX('Energy Prices'!$F$26:$CR$31,MATCH($B131,'Energy Prices'!$C$26:$C$31,0),MATCH(Calc_BAU!AJ$6,'Energy Prices'!$F$11:$CR$11,0))/100000,0)","v":0},{"$f":"IFERROR('Data Input - BAU'!AO87*INDEX('Energy Prices'!$F$26:$CR$31,MATCH($B131,'Energy Prices'!$C$26:$C$31,0),MATCH(Calc_BAU!AK$6,'Energy Prices'!$F$11:$CR$11,0))/100000,0)","v":0},{"$f":"IFERROR('Data Input - BAU'!AP87*INDEX('Energy Prices'!$F$26:$CR$31,MATCH($B131,'Energy Prices'!$C$26:$C$31,0),MATCH(Calc_BAU!AL$6,'Energy Prices'!$F$11:$CR$11,0))/100000,0)","v":0},{"$f":"IFERROR('Data Input - BAU'!AQ87*INDEX('Energy Prices'!$F$26:$CR$31,MATCH($B131,'Energy Prices'!$C$26:$C$31,0),MATCH(Calc_BAU!AM$6,'Energy Prices'!$F$11:$CR$11,0))/100000,0)","v":0},{"$f":"IFERROR('Data Input - BAU'!AR87*INDEX('Energy Prices'!$F$26:$CR$31,MATCH($B131,'Energy Prices'!$C$26:$C$31,0),MATCH(Calc_BAU!AN$6,'Energy Prices'!$F$11:$CR$11,0))/100000,0)","v":0},{"$f":"IFERROR('Data Input - BAU'!AS87*INDEX('Energy Prices'!$F$26:$CR$31,MATCH($B131,'Energy Prices'!$C$26:$C$31,0),MATCH(Calc_BAU!AO$6,'Energy Prices'!$F$11:$CR$11,0))/100000,0)","v":0},{"$f":"IFERROR('Data Input - BAU'!AT87*INDEX('Energy Prices'!$F$26:$CR$31,MATCH($B131,'Energy Prices'!$C$26:$C$31,0),MATCH(Calc_BAU!AP$6,'Energy Prices'!$F$11:$CR$11,0))/100000,0)","v":0},{"$f":"IFERROR('Data Input - BAU'!AU87*INDEX('Energy Prices'!$F$26:$CR$31,MATCH($B131,'Energy Prices'!$C$26:$C$31,0),MATCH(Calc_BAU!AQ$6,'Energy Prices'!$F$11:$CR$11,0))/100000,0)","v":0},{"$f":"IFERROR('Data Input - BAU'!AV87*INDEX('Energy Prices'!$F$26:$CR$31,MATCH($B131,'Energy Prices'!$C$26:$C$31,0),MATCH(Calc_BAU!AR$6,'Energy Prices'!$F$11:$CR$11,0))/100000,0)","v":0},{"$f":"IFERROR('Data Input - BAU'!AW87*INDEX('Energy Prices'!$F$26:$CR$31,MATCH($B131,'Energy Prices'!$C$26:$C$31,0),MATCH(Calc_BAU!AS$6,'Energy Prices'!$F$11:$CR$11,0))/100000,0)","v":0},{"$f":"IFERROR('Data Input - BAU'!AX87*INDEX('Energy Prices'!$F$26:$CR$31,MATCH($B131,'Energy Prices'!$C$26:$C$31,0),MATCH(Calc_BAU!AT$6,'Energy Prices'!$F$11:$CR$11,0))/100000,0)","v":0},{"$f":"IFERROR('Data Input - BAU'!AY87*INDEX('Energy Prices'!$F$26:$CR$31,MATCH($B131,'Energy Prices'!$C$26:$C$31,0),MATCH(Calc_BAU!AU$6,'Energy Prices'!$F$11:$CR$11,0))/100000,0)","v":0},{"$f":"IFERROR('Data Input - BAU'!AZ87*INDEX('Energy Prices'!$F$26:$CR$31,MATCH($B131,'Energy Prices'!$C$26:$C$31,0),MATCH(Calc_BAU!AV$6,'Energy Prices'!$F$11:$CR$11,0))/100000,0)","v":0},{"$f":"IFERROR('Data Input - BAU'!BA87*INDEX('Energy Prices'!$F$26:$CR$31,MATCH($B131,'Energy Prices'!$C$26:$C$31,0),MATCH(Calc_BAU!AW$6,'Energy Prices'!$F$11:$CR$11,0))/100000,0)","v":0},{"$f":"IFERROR('Data Input - BAU'!BB87*INDEX('Energy Prices'!$F$26:$CR$31,MATCH($B131,'Energy Prices'!$C$26:$C$31,0),MATCH(Calc_BAU!AX$6,'Energy Prices'!$F$11:$CR$11,0))/100000,0)","v":0},{"$f":"IFERROR('Data Input - BAU'!BC87*INDEX('Energy Prices'!$F$26:$CR$31,MATCH($B131,'Energy Prices'!$C$26:$C$31,0),MATCH(Calc_BAU!AY$6,'Energy Prices'!$F$11:$CR$11,0))/100000,0)","v":0},{"$f":"IFERROR('Data Input - BAU'!BD87*INDEX('Energy Prices'!$F$26:$CR$31,MATCH($B131,'Energy Prices'!$C$26:$C$31,0),MATCH(Calc_BAU!AZ$6,'Energy Prices'!$F$11:$CR$11,0))/100000,0)","v":0},{"$f":"IFERROR('Data Input - BAU'!BE87*INDEX('Energy Prices'!$F$26:$CR$31,MATCH($B131,'Energy Prices'!$C$26:$C$31,0),MATCH(Calc_BAU!BA$6,'Energy Prices'!$F$11:$CR$11,0))/100000,0)","v":0},{"$f":"IFERROR('Data Input - BAU'!BF87*INDEX('Energy Prices'!$F$26:$CR$31,MATCH($B131,'Energy Prices'!$C$26:$C$31,0),MATCH(Calc_BAU!BB$6,'Energy Prices'!$F$11:$CR$11,0))/100000,0)","v":0},{"$f":"IFERROR('Data Input - BAU'!BG87*INDEX('Energy Prices'!$F$26:$CR$31,MATCH($B131,'Energy Prices'!$C$26:$C$31,0),MATCH(Calc_BAU!BC$6,'Energy Prices'!$F$11:$CR$11,0))/100000,0)","v":0},{"$f":"IFERROR('Data Input - BAU'!BH87*INDEX('Energy Prices'!$F$26:$CR$31,MATCH($B131,'Energy Prices'!$C$26:$C$31,0),MATCH(Calc_BAU!BD$6,'Energy Prices'!$F$11:$CR$11,0))/100000,0)","v":0},{"$f":"IFERROR('Data Input - BAU'!BI87*INDEX('Energy Prices'!$F$26:$CR$31,MATCH($B131,'Energy Prices'!$C$26:$C$31,0),MATCH(Calc_BAU!BE$6,'Energy Prices'!$F$11:$CR$11,0))/100000,0)","v":0},{"$f":"IFERROR('Data Input - BAU'!BJ87*INDEX('Energy Prices'!$F$26:$CR$31,MATCH($B131,'Energy Prices'!$C$26:$C$31,0),MATCH(Calc_BAU!BF$6,'Energy Prices'!$F$11:$CR$11,0))/100000,0)","v":0},{"$f":"IFERROR('Data Input - BAU'!BK87*INDEX('Energy Prices'!$F$26:$CR$31,MATCH($B131,'Energy Prices'!$C$26:$C$31,0),MATCH(Calc_BAU!BG$6,'Energy Prices'!$F$11:$CR$11,0))/100000,0)","v":0},{"$f":"IFERROR('Data Input - BAU'!BL87*INDEX('Energy Prices'!$F$26:$CR$31,MATCH($B131,'Energy Prices'!$C$26:$C$31,0),MATCH(Calc_BAU!BH$6,'Energy Prices'!$F$11:$CR$11,0))/100000,0)","v":0},{"$f":"IFERROR('Data Input - BAU'!BM87*INDEX('Energy Prices'!$F$26:$CR$31,MATCH($B131,'Energy Prices'!$C$26:$C$31,0),MATCH(Calc_BAU!BI$6,'Energy Prices'!$F$11:$CR$11,0))/100000,0)","v":0},{"$f":"IFERROR('Data Input - BAU'!BN87*INDEX('Energy Prices'!$F$26:$CR$31,MATCH($B131,'Energy Prices'!$C$26:$C$31,0),MATCH(Calc_BAU!BJ$6,'Energy Prices'!$F$11:$CR$11,0))/100000,0)","v":0},{"$f":"IFERROR('Data Input - BAU'!BO87*INDEX('Energy Prices'!$F$26:$CR$31,MATCH($B131,'Energy Prices'!$C$26:$C$31,0),MATCH(Calc_BAU!BK$6,'Energy Prices'!$F$11:$CR$11,0))/100000,0)","v":0},{"$f":"IFERROR('Data Input - BAU'!BP87*INDEX('Energy Prices'!$F$26:$CR$31,MATCH($B131,'Energy Prices'!$C$26:$C$31,0),MATCH(Calc_BAU!BL$6,'Energy Prices'!$F$11:$CR$11,0))/100000,0)","v":0},{"$f":"IFERROR('Data Input - BAU'!BQ87*INDEX('Energy Prices'!$F$26:$CR$31,MATCH($B131,'Energy Prices'!$C$26:$C$31,0),MATCH(Calc_BAU!BM$6,'Energy Prices'!$F$11:$CR$11,0))/100000,0)","v":0},{"$f":"IFERROR('Data Input - BAU'!BR87*INDEX('Energy Prices'!$F$26:$CR$31,MATCH($B131,'Energy Prices'!$C$26:$C$31,0),MATCH(Calc_BAU!BN$6,'Energy Prices'!$F$11:$CR$11,0))/100000,0)","v":0},{"$f":"IFERROR('Data Input - BAU'!BS87*INDEX('Energy Prices'!$F$26:$CR$31,MATCH($B131,'Energy Prices'!$C$26:$C$31,0),MATCH(Calc_BAU!BO$6,'Energy Prices'!$F$11:$CR$11,0))/100000,0)","v":0},{"$f":"IFERROR('Data Input - BAU'!BT87*INDEX('Energy Prices'!$F$26:$CR$31,MATCH($B131,'Energy Prices'!$C$26:$C$31,0),MATCH(Calc_BAU!BP$6,'Energy Prices'!$F$11:$CR$11,0))/100000,0)","v":0},{"$f":"IFERROR('Data Input - BAU'!BU87*INDEX('Energy Prices'!$F$26:$CR$31,MATCH($B131,'Energy Prices'!$C$26:$C$31,0),MATCH(Calc_BAU!BQ$6,'Energy Prices'!$F$11:$CR$11,0))/100000,0)","v":0},{"$f":"IFERROR('Data Input - BAU'!BV87*INDEX('Energy Prices'!$F$26:$CR$31,MATCH($B131,'Energy Prices'!$C$26:$C$31,0),MATCH(Calc_BAU!BR$6,'Energy Prices'!$F$11:$CR$11,0))/100000,0)","v":0},{"$f":"IFERROR('Data Input - BAU'!BW87*INDEX('Energy Prices'!$F$26:$CR$31,MATCH($B131,'Energy Prices'!$C$26:$C$31,0),MATCH(Calc_BAU!BS$6,'Energy Prices'!$F$11:$CR$11,0))/100000,0)","v":0},{"$f":"IFERROR('Data Input - BAU'!BX87*INDEX('Energy Prices'!$F$26:$CR$31,MATCH($B131,'Energy Prices'!$C$26:$C$31,0),MATCH(Calc_BAU!BT$6,'Energy Prices'!$F$11:$CR$11,0))/100000,0)","v":0},{"$f":"IFERROR('Data Input - BAU'!BY87*INDEX('Energy Prices'!$F$26:$CR$31,MATCH($B131,'Energy Prices'!$C$26:$C$31,0),MATCH(Calc_BAU!BU$6,'Energy Prices'!$F$11:$CR$11,0))/100000,0)","v":0},{"$f":"IFERROR('Data Input - BAU'!BZ87*INDEX('Energy Prices'!$F$26:$CR$31,MATCH($B131,'Energy Prices'!$C$26:$C$31,0),MATCH(Calc_BAU!BV$6,'Energy Prices'!$F$11:$CR$11,0))/100000,0)","v":0},{"$f":"IFERROR('Data Input - BAU'!CA87*INDEX('Energy Prices'!$F$26:$CR$31,MATCH($B131,'Energy Prices'!$C$26:$C$31,0),MATCH(Calc_BAU!BW$6,'Energy Prices'!$F$11:$CR$11,0))/100000,0)","v":0},{"$f":"IFERROR('Data Input - BAU'!CB87*INDEX('Energy Prices'!$F$26:$CR$31,MATCH($B131,'Energy Prices'!$C$26:$C$31,0),MATCH(Calc_BAU!BX$6,'Energy Prices'!$F$11:$CR$11,0))/100000,0)","v":0},{"$f":"IFERROR('Data Input - BAU'!CC87*INDEX('Energy Prices'!$F$26:$CR$31,MATCH($B131,'Energy Prices'!$C$26:$C$31,0),MATCH(Calc_BAU!BY$6,'Energy Prices'!$F$11:$CR$11,0))/100000,0)","v":0},{"$f":"IFERROR('Data Input - BAU'!CD87*INDEX('Energy Prices'!$F$26:$CR$31,MATCH($B131,'Energy Prices'!$C$26:$C$31,0),MATCH(Calc_BAU!BZ$6,'Energy Prices'!$F$11:$CR$11,0))/100000,0)","v":0},{"$f":"IFERROR('Data Input - BAU'!CE87*INDEX('Energy Prices'!$F$26:$CR$31,MATCH($B131,'Energy Prices'!$C$26:$C$31,0),MATCH(Calc_BAU!CA$6,'Energy Prices'!$F$11:$CR$11,0))/100000,0)","v":0},{"$f":"IFERROR('Data Input - BAU'!CF87*INDEX('Energy Prices'!$F$26:$CR$31,MATCH($B131,'Energy Prices'!$C$26:$C$31,0),MATCH(Calc_BAU!CB$6,'Energy Prices'!$F$11:$CR$11,0))/100000,0)","v":0},{"$f":"IFERROR('Data Input - BAU'!CG87*INDEX('Energy Prices'!$F$26:$CR$31,MATCH($B131,'Energy Prices'!$C$26:$C$31,0),MATCH(Calc_BAU!CC$6,'Energy Prices'!$F$11:$CR$11,0))/100000,0)","v":0},{"$f":"IFERROR('Data Input - BAU'!CH87*INDEX('Energy Prices'!$F$26:$CR$31,MATCH($B131,'Energy Prices'!$C$26:$C$31,0),MATCH(Calc_BAU!CD$6,'Energy Prices'!$F$11:$CR$11,0))/100000,0)","v":0},{"$f":"IFERROR('Data Input - BAU'!CI87*INDEX('Energy Prices'!$F$26:$CR$31,MATCH($B131,'Energy Prices'!$C$26:$C$31,0),MATCH(Calc_BAU!CE$6,'Energy Prices'!$F$11:$CR$11,0))/100000,0)","v":0},{"$f":"IFERROR('Data Input - BAU'!CJ87*INDEX('Energy Prices'!$F$26:$CR$31,MATCH($B131,'Energy Prices'!$C$26:$C$31,0),MATCH(Calc_BAU!CF$6,'Energy Prices'!$F$11:$CR$11,0))/100000,0)","v":0},{"$f":"IFERROR('Data Input - BAU'!CK87*INDEX('Energy Prices'!$F$26:$CR$31,MATCH($B131,'Energy Prices'!$C$26:$C$31,0),MATCH(Calc_BAU!CG$6,'Energy Prices'!$F$11:$CR$11,0))/100000,0)","v":0},{"$f":"IFERROR('Data Input - BAU'!CL87*INDEX('Energy Prices'!$F$26:$CR$31,MATCH($B131,'Energy Prices'!$C$26:$C$31,0),MATCH(Calc_BAU!CH$6,'Energy Prices'!$F$11:$CR$11,0))/100000,0)","v":0},{"$f":"IFERROR('Data Input - BAU'!CM87*INDEX('Energy Prices'!$F$26:$CR$31,MATCH($B131,'Energy Prices'!$C$26:$C$31,0),MATCH(Calc_BAU!CI$6,'Energy Prices'!$F$11:$CR$11,0))/100000,0)","v":0},{"$f":"IFERROR('Data Input - BAU'!CN87*INDEX('Energy Prices'!$F$26:$CR$31,MATCH($B131,'Energy Prices'!$C$26:$C$31,0),MATCH(Calc_BAU!CJ$6,'Energy Prices'!$F$11:$CR$11,0))/100000,0)","v":0},{"$f":"IFERROR('Data Input - BAU'!CO87*INDEX('Energy Prices'!$F$26:$CR$31,MATCH($B131,'Energy Prices'!$C$26:$C$31,0),MATCH(Calc_BAU!CK$6,'Energy Prices'!$F$11:$CR$11,0))/100000,0)","v":0},{"$f":"IFERROR('Data Input - BAU'!CP87*INDEX('Energy Prices'!$F$26:$CR$31,MATCH($B131,'Energy Prices'!$C$26:$C$31,0),MATCH(Calc_BAU!CL$6,'Energy Prices'!$F$11:$CR$11,0))/100000,0)","v":0},{"$f":"IFERROR('Data Input - BAU'!CQ87*INDEX('Energy Prices'!$F$26:$CR$31,MATCH($B131,'Energy Prices'!$C$26:$C$31,0),MATCH(Calc_BAU!CM$6,'Energy Prices'!$F$11:$CR$11,0))/100000,0)","v":0},{"$f":"IFERROR('Data Input - BAU'!CR87*INDEX('Energy Prices'!$F$26:$CR$31,MATCH($B131,'Energy Prices'!$C$26:$C$31,0),MATCH(Calc_BAU!CN$6,'Energy Prices'!$F$11:$CR$11,0))/100000,0)","v":0},{"$f":"IFERROR('Data Input - BAU'!CS87*INDEX('Energy Prices'!$F$26:$CR$31,MATCH($B131,'Energy Prices'!$C$26:$C$31,0),MATCH(Calc_BAU!CO$6,'Energy Prices'!$F$11:$CR$11,0))/100000,0)","v":0},{"$f":"IFERROR('Data Input - BAU'!CT87*INDEX('Energy Prices'!$F$26:$CR$31,MATCH($B131,'Energy Prices'!$C$26:$C$31,0),MATCH(Calc_BAU!CP$6,'Energy Prices'!$F$11:$CR$11,0))/100000,0)","v":0},{"$f":"IFERROR('Data Input - BAU'!CU87*INDEX('Energy Prices'!$F$26:$CR$31,MATCH($B131,'Energy Prices'!$C$26:$C$31,0),MATCH(Calc_BAU!CQ$6,'Energy Prices'!$F$11:$CR$11,0))/100000,0)","v":0},{"$f":"IFERROR('Data Input - BAU'!CV87*INDEX('Energy Prices'!$F$26:$CR$31,MATCH($B131,'Energy Prices'!$C$26:$C$31,0),MATCH(Calc_BAU!CR$6,'Energy Prices'!$F$11:$CR$11,0))/100000,0)","v":0},{"$f":"IFERROR('Data Input - BAU'!CW87*INDEX('Energy Prices'!$F$26:$CR$31,MATCH($B131,'Energy Prices'!$C$26:$C$31,0),MATCH(Calc_BAU!CS$6,'Energy Prices'!$F$11:$CR$11,0))/100000,0)","v":0},{"$f":"IFERROR('Data Input - BAU'!CX87*INDEX('Energy Prices'!$F$26:$CR$31,MATCH($B131,'Energy Prices'!$C$26:$C$31,0),MATCH(Calc_BAU!CT$6,'Energy Prices'!$F$11:$CR$11,0))/100000,0)","v":0},{"$f":"IFERROR('Data Input - BAU'!CY87*INDEX('Energy Prices'!$F$26:$CR$31,MATCH($B131,'Energy Prices'!$C$26:$C$31,0),MATCH(Calc_BAU!CU$6,'Energy Prices'!$F$11:$CR$11,0))/100000,0)","v":0},{"$f":"IFERROR('Data Input - BAU'!CZ87*INDEX('Energy Prices'!$F$26:$CR$31,MATCH($B131,'Energy Prices'!$C$26:$C$31,0),MATCH(Calc_BAU!CV$6,'Energy Prices'!$F$11:$CR$11,0))/100000,0)","v":0},{"$f":"IFERROR('Data Input - BAU'!DA87*INDEX('Energy Prices'!$F$26:$CR$31,MATCH($B131,'Energy Prices'!$C$26:$C$31,0),MATCH(Calc_BAU!CW$6,'Energy Prices'!$F$11:$CR$11,0))/100000,0)","v":0},{"$f":"IFERROR('Data Input - BAU'!DB87*INDEX('Energy Prices'!$F$26:$CR$31,MATCH($B131,'Energy Prices'!$C$26:$C$31,0),MATCH(Calc_BAU!CX$6,'Energy Prices'!$F$11:$CR$11,0))/100000,0)","v":0},{"$f":"IFERROR('Data Input - BAU'!DC87*INDEX('Energy Prices'!$F$26:$CR$31,MATCH($B131,'Energy Prices'!$C$26:$C$31,0),MATCH(Calc_BAU!CY$6,'Energy Prices'!$F$11:$CR$11,0))/100000,0)","v":0}]
[null,"Road - Petrol","£000's",{"$f":"IFERROR('Data Input - BAU'!H88*INDEX('Energy Prices'!$F$26:$CR$31,MATCH($B132,'Energy Prices'!$C$26:$C$31,0),MATCH(Calc_BAU!D$6,'Energy Prices'!$F$11:$CR$11,0))/100000,0)","v":0},{"$f":"IFERROR('Data Input - BAU'!I88*INDEX('Energy Prices'!$F$26:$CR$31,MATCH($B132,'Energy Prices'!$C$26:$C$31,0),MATCH(Calc_BAU!E$6,'Energy Prices'!$F$11:$CR$11,0))/100000,0)","v":0},{"$f":"IFERROR('Data Input - BAU'!J88*INDEX('Energy Prices'!$F$26:$CR$31,MATCH($B132,'Energy Prices'!$C$26:$C$31,0),MATCH(Calc_BAU!F$6,'Energy Prices'!$F$11:$CR$11,0))/100000,0)","v":0},{"$f":"IFERROR('Data Input - BAU'!K88*INDEX('Energy Prices'!$F$26:$CR$31,MATCH($B132,'Energy Prices'!$C$26:$C$31,0),MATCH(Calc_BAU!G$6,'Energy Prices'!$F$11:$CR$11,0))/100000,0)","v":0},{"$f":"IFERROR('Data Input - BAU'!L88*INDEX('Energy Prices'!$F$26:$CR$31,MATCH($B132,'Energy Prices'!$C$26:$C$31,0),MATCH(Calc_BAU!H$6,'Energy Prices'!$F$11:$CR$11,0))/100000,0)","v":0},{"$f":"IFERROR('Data Input - BAU'!M88*INDEX('Energy Prices'!$F$26:$CR$31,MATCH($B132,'Energy Prices'!$C$26:$C$31,0),MATCH(Calc_BAU!I$6,'Energy Prices'!$F$11:$CR$11,0))/100000,0)","v":0},{"$f":"IFERROR('Data Input - BAU'!N88*INDEX('Energy Prices'!$F$26:$CR$31,MATCH($B132,'Energy Prices'!$C$26:$C$31,0),MATCH(Calc_BAU!J$6,'Energy Prices'!$F$11:$CR$11,0))/100000,0)","v":0},{"$f":"IFERROR('Data Input - BAU'!O88*INDEX('Energy Prices'!$F$26:$CR$31,MATCH($B132,'Energy Prices'!$C$26:$C$31,0),MATCH(Calc_BAU!K$6,'Energy Prices'!$F$11:$CR$11,0))/100000,0)","v":0},{"$f":"IFERROR('Data Input - BAU'!P88*INDEX('Energy Prices'!$F$26:$CR$31,MATCH($B132,'Energy Prices'!$C$26:$C$31,0),MATCH(Calc_BAU!L$6,'Energy Prices'!$F$11:$CR$11,0))/100000,0)","v":0},{"$f":"IFERROR('Data Input - BAU'!Q88*INDEX('Energy Prices'!$F$26:$CR$31,MATCH($B132,'Energy Prices'!$C$26:$C$31,0),MATCH(Calc_BAU!M$6,'Energy Prices'!$F$11:$CR$11,0))/100000,0)","v":0},{"$f":"IFERROR('Data Input - BAU'!R88*INDEX('Energy Prices'!$F$26:$CR$31,MATCH($B132,'Energy Prices'!$C$26:$C$31,0),MATCH(Calc_BAU!N$6,'Energy Prices'!$F$11:$CR$11,0))/100000,0)","v":0},{"$f":"IFERROR('Data Input - BAU'!S88*INDEX('Energy Prices'!$F$26:$CR$31,MATCH($B132,'Energy Prices'!$C$26:$C$31,0),MATCH(Calc_BAU!O$6,'Energy Prices'!$F$11:$CR$11,0))/100000,0)","v":0},{"$f":"IFERROR('Data Input - BAU'!T88*INDEX('Energy Prices'!$F$26:$CR$31,MATCH($B132,'Energy Prices'!$C$26:$C$31,0),MATCH(Calc_BAU!P$6,'Energy Prices'!$F$11:$CR$11,0))/100000,0)","v":0},{"$f":"IFERROR('Data Input - BAU'!U88*INDEX('Energy Prices'!$F$26:$CR$31,MATCH($B132,'Energy Prices'!$C$26:$C$31,0),MATCH(Calc_BAU!Q$6,'Energy Prices'!$F$11:$CR$11,0))/100000,0)","v":0},{"$f":"IFERROR('Data Input - BAU'!V88*INDEX('Energy Prices'!$F$26:$CR$31,MATCH($B132,'Energy Prices'!$C$26:$C$31,0),MATCH(Calc_BAU!R$6,'Energy Prices'!$F$11:$CR$11,0))/100000,0)","v":0},{"$f":"IFERROR('Data Input - BAU'!W88*INDEX('Energy Prices'!$F$26:$CR$31,MATCH($B132,'Energy Prices'!$C$26:$C$31,0),MATCH(Calc_BAU!S$6,'Energy Prices'!$F$11:$CR$11,0))/100000,0)","v":0},{"$f":"IFERROR('Data Input - BAU'!X88*INDEX('Energy Prices'!$F$26:$CR$31,MATCH($B132,'Energy Prices'!$C$26:$C$31,0),MATCH(Calc_BAU!T$6,'Energy Prices'!$F$11:$CR$11,0))/100000,0)","v":0},{"$f":"IFERROR('Data Input - BAU'!Y88*INDEX('Energy Prices'!$F$26:$CR$31,MATCH($B132,'Energy Prices'!$C$26:$C$31,0),MATCH(Calc_BAU!U$6,'Energy Prices'!$F$11:$CR$11,0))/100000,0)","v":0},{"$f":"IFERROR('Data Input - BAU'!Z88*INDEX('Energy Prices'!$F$26:$CR$31,MATCH($B132,'Energy Prices'!$C$26:$C$31,0),MATCH(Calc_BAU!V$6,'Energy Prices'!$F$11:$CR$11,0))/100000,0)","v":0},{"$f":"IFERROR('Data Input - BAU'!AA88*INDEX('Energy Prices'!$F$26:$CR$31,MATCH($B132,'Energy Prices'!$C$26:$C$31,0),MATCH(Calc_BAU!W$6,'Energy Prices'!$F$11:$CR$11,0))/100000,0)","v":0},{"$f":"IFERROR('Data Input - BAU'!AB88*INDEX('Energy Prices'!$F$26:$CR$31,MATCH($B132,'Energy Prices'!$C$26:$C$31,0),MATCH(Calc_BAU!X$6,'Energy Prices'!$F$11:$CR$11,0))/100000,0)","v":0},{"$f":"IFERROR('Data Input - BAU'!AC88*INDEX('Energy Prices'!$F$26:$CR$31,MATCH($B132,'Energy Prices'!$C$26:$C$31,0),MATCH(Calc_BAU!Y$6,'Energy Prices'!$F$11:$CR$11,0))/100000,0)","v":0},{"$f":"IFERROR('Data Input - BAU'!AD88*INDEX('Energy Prices'!$F$26:$CR$31,MATCH($B132,'Energy Prices'!$C$26:$C$31,0),MATCH(Calc_BAU!Z$6,'Energy Prices'!$F$11:$CR$11,0))/100000,0)","v":0},{"$f":"IFERROR('Data Input - BAU'!AE88*INDEX('Energy Prices'!$F$26:$CR$31,MATCH($B132,'Energy Prices'!$C$26:$C$31,0),MATCH(Calc_BAU!AA$6,'Energy Prices'!$F$11:$CR$11,0))/100000,0)","v":0},{"$f":"IFERROR('Data Input - BAU'!AF88*INDEX('Energy Prices'!$F$26:$CR$31,MATCH($B132,'Energy Prices'!$C$26:$C$31,0),MATCH(Calc_BAU!AB$6,'Energy Prices'!$F$11:$CR$11,0))/100000,0)","v":0},{"$f":"IFERROR('Data Input - BAU'!AG88*INDEX('Energy Prices'!$F$26:$CR$31,MATCH($B132,'Energy Prices'!$C$26:$C$31,0),MATCH(Calc_BAU!AC$6,'Energy Prices'!$F$11:$CR$11,0))/100000,0)","v":0},{"$f":"IFERROR('Data Input - BAU'!AH88*INDEX('Energy Prices'!$F$26:$CR$31,MATCH($B132,'Energy Prices'!$C$26:$C$31,0),MATCH(Calc_BAU!AD$6,'Energy Prices'!$F$11:$CR$11,0))/100000,0)","v":0},{"$f":"IFERROR('Data Input - BAU'!AI88*INDEX('Energy Prices'!$F$26:$CR$31,MATCH($B132,'Energy Prices'!$C$26:$C$31,0),MATCH(Calc_BAU!AE$6,'Energy Prices'!$F$11:$CR$11,0))/100000,0)","v":0},{"$f":"IFERROR('Data Input - BAU'!AJ88*INDEX('Energy Prices'!$F$26:$CR$31,MATCH($B132,'Energy Prices'!$C$26:$C$31,0),MATCH(Calc_BAU!AF$6,'Energy Prices'!$F$11:$CR$11,0))/100000,0)","v":0},{"$f":"IFERROR('Data Input - BAU'!AK88*INDEX('Energy Prices'!$F$26:$CR$31,MATCH($B132,'Energy Prices'!$C$26:$C$31,0),MATCH(Calc_BAU!AG$6,'Energy Prices'!$F$11:$CR$11,0))/100000,0)","v":0},{"$f":"IFERROR('Data Input - BAU'!AL88*INDEX('Energy Prices'!$F$26:$CR$31,MATCH($B132,'Energy Prices'!$C$26:$C$31,0),MATCH(Calc_BAU!AH$6,'Energy Prices'!$F$11:$CR$11,0))/100000,0)","v":0},{"$f":"IFERROR('Data Input - BAU'!AM88*INDEX('Energy Prices'!$F$26:$CR$31,MATCH($B132,'Energy Prices'!$C$26:$C$31,0),MATCH(Calc_BAU!AI$6,'Energy Prices'!$F$11:$CR$11,0))/100000,0)","v":0},{"$f":"IFERROR('Data Input - BAU'!AN88*INDEX('Energy Prices'!$F$26:$CR$31,MATCH($B132,'Energy Prices'!$C$26:$C$31,0),MATCH(Calc_BAU!AJ$6,'Energy Prices'!$F$11:$CR$11,0))/100000,0)","v":0},{"$f":"IFERROR('Data Input - BAU'!AO88*INDEX('Energy Prices'!$F$26:$CR$31,MATCH($B132,'Energy Prices'!$C$26:$C$31,0),MATCH(Calc_BAU!AK$6,'Energy Prices'!$F$11:$CR$11,0))/100000,0)","v":0},{"$f":"IFERROR('Data Input - BAU'!AP88*INDEX('Energy Prices'!$F$26:$CR$31,MATCH($B132,'Energy Prices'!$C$26:$C$31,0),MATCH(Calc_BAU!AL$6,'Energy Prices'!$F$11:$CR$11,0))/100000,0)","v":0},{"$f":"IFERROR('Data Input - BAU'!AQ88*INDEX('Energy Prices'!$F$26:$CR$31,MATCH($B132,'Energy Prices'!$C$26:$C$31,0),MATCH(Calc_BAU!AM$6,'Energy Prices'!$F$11:$CR$11,0))/100000,0)","v":0},{"$f":"IFERROR('Data Input - BAU'!AR88*INDEX('Energy Prices'!$F$26:$CR$31,MATCH($B132,'Energy Prices'!$C$26:$C$31,0),MATCH(Calc_BAU!AN$6,'Energy Prices'!$F$11:$CR$11,0))/100000,0)","v":0},{"$f":"IFERROR('Data Input - BAU'!AS88*INDEX('Energy Prices'!$F$26:$CR$31,MATCH($B132,'Energy Prices'!$C$26:$C$31,0),MATCH(Calc_BAU!AO$6,'Energy Prices'!$F$11:$CR$11,0))/100000,0)","v":0},{"$f":"IFERROR('Data Input - BAU'!AT88*INDEX('Energy Prices'!$F$26:$CR$31,MATCH($B132,'Energy Prices'!$C$26:$C$31,0),MATCH(Calc_BAU!AP$6,'Energy Prices'!$F$11:$CR$11,0))/100000,0)","v":0},{"$f":"IFERROR('Data Input - BAU'!AU88*INDEX('Energy Prices'!$F$26:$CR$31,MATCH($B132,'Energy Prices'!$C$26:$C$31,0),MATCH(Calc_BAU!AQ$6,'Energy Prices'!$F$11:$CR$11,0))/100000,0)","v":0},{"$f":"IFERROR('Data Input - BAU'!AV88*INDEX('Energy Prices'!$F$26:$CR$31,MATCH($B132,'Energy Prices'!$C$26:$C$31,0),MATCH(Calc_BAU!AR$6,'Energy Prices'!$F$11:$CR$11,0))/100000,0)","v":0},{"$f":"IFERROR('Data Input - BAU'!AW88*INDEX('Energy Prices'!$F$26:$CR$31,MATCH($B132,'Energy Prices'!$C$26:$C$31,0),MATCH(Calc_BAU!AS$6,'Energy Prices'!$F$11:$CR$11,0))/100000,0)","v":0},{"$f":"IFERROR('Data Input - BAU'!AX88*INDEX('Energy Prices'!$F$26:$CR$31,MATCH($B132,'Energy Prices'!$C$26:$C$31,0),MATCH(Calc_BAU!AT$6,'Energy Prices'!$F$11:$CR$11,0))/100000,0)","v":0},{"$f":"IFERROR('Data Input - BAU'!AY88*INDEX('Energy Prices'!$F$26:$CR$31,MATCH($B132,'Energy Prices'!$C$26:$C$31,0),MATCH(Calc_BAU!AU$6,'Energy Prices'!$F$11:$CR$11,0))/100000,0)","v":0},{"$f":"IFERROR('Data Input - BAU'!AZ88*INDEX('Energy Prices'!$F$26:$CR$31,MATCH($B132,'Energy Prices'!$C$26:$C$31,0),MATCH(Calc_BAU!AV$6,'Energy Prices'!$F$11:$CR$11,0))/100000,0)","v":0},{"$f":"IFERROR('Data Input - BAU'!BA88*INDEX('Energy Prices'!$F$26:$CR$31,MATCH($B132,'Energy Prices'!$C$26:$C$31,0),MATCH(Calc_BAU!AW$6,'Energy Prices'!$F$11:$CR$11,0))/100000,0)","v":0},{"$f":"IFERROR('Data Input - BAU'!BB88*INDEX('Energy Prices'!$F$26:$CR$31,MATCH($B132,'Energy Prices'!$C$26:$C$31,0),MATCH(Calc_BAU!AX$6,'Energy Prices'!$F$11:$CR$11,0))/100000,0)","v":0},{"$f":"IFERROR('Data Input - BAU'!BC88*INDEX('Energy Prices'!$F$26:$CR$31,MATCH($B132,'Energy Prices'!$C$26:$C$31,0),MATCH(Calc_BAU!AY$6,'Energy Prices'!$F$11:$CR$11,0))/100000,0)","v":0},{"$f":"IFERROR('Data Input - BAU'!BD88*INDEX('Energy Prices'!$F$26:$CR$31,MATCH($B132,'Energy Prices'!$C$26:$C$31,0),MATCH(Calc_BAU!AZ$6,'Energy Prices'!$F$11:$CR$11,0))/100000,0)","v":0},{"$f":"IFERROR('Data Input - BAU'!BE88*INDEX('Energy Prices'!$F$26:$CR$31,MATCH($B132,'Energy Prices'!$C$26:$C$31,0),MATCH(Calc_BAU!BA$6,'Energy Prices'!$F$11:$CR$11,0))/100000,0)","v":0},{"$f":"IFERROR('Data Input - BAU'!BF88*INDEX('Energy Prices'!$F$26:$CR$31,MATCH($B132,'Energy Prices'!$C$26:$C$31,0),MATCH(Calc_BAU!BB$6,'Energy Prices'!$F$11:$CR$11,0))/100000,0)","v":0},{"$f":"IFERROR('Data Input - BAU'!BG88*INDEX('Energy Prices'!$F$26:$CR$31,MATCH($B132,'Energy Prices'!$C$26:$C$31,0),MATCH(Calc_BAU!BC$6,'Energy Prices'!$F$11:$CR$11,0))/100000,0)","v":0},{"$f":"IFERROR('Data Input - BAU'!BH88*INDEX('Energy Prices'!$F$26:$CR$31,MATCH($B132,'Energy Prices'!$C$26:$C$31,0),MATCH(Calc_BAU!BD$6,'Energy Prices'!$F$11:$CR$11,0))/100000,0)","v":0},{"$f":"IFERROR('Data Input - BAU'!BI88*INDEX('Energy Prices'!$F$26:$CR$31,MATCH($B132,'Energy Prices'!$C$26:$C$31,0),MATCH(Calc_BAU!BE$6,'Energy Prices'!$F$11:$CR$11,0))/100000,0)","v":0},{"$f":"IFERROR('Data Input - BAU'!BJ88*INDEX('Energy Prices'!$F$26:$CR$31,MATCH($B132,'Energy Prices'!$C$26:$C$31,0),MATCH(Calc_BAU!BF$6,'Energy Prices'!$F$11:$CR$11,0))/100000,0)","v":0},{"$f":"IFERROR('Data Input - BAU'!BK88*INDEX('Energy Prices'!$F$26:$CR$31,MATCH($B132,'Energy Prices'!$C$26:$C$31,0),MATCH(Calc_BAU!BG$6,'Energy Prices'!$F$11:$CR$11,0))/100000,0)","v":0},{"$f":"IFERROR('Data Input - BAU'!BL88*INDEX('Energy Prices'!$F$26:$CR$31,MATCH($B132,'Energy Prices'!$C$26:$C$31,0),MATCH(Calc_BAU!BH$6,'Energy Prices'!$F$11:$CR$11,0))/100000,0)","v":0},{"$f":"IFERROR('Data Input - BAU'!BM88*INDEX('Energy Prices'!$F$26:$CR$31,MATCH($B132,'Energy Prices'!$C$26:$C$31,0),MATCH(Calc_BAU!BI$6,'Energy Prices'!$F$11:$CR$11,0))/100000,0)","v":0},{"$f":"IFERROR('Data Input - BAU'!BN88*INDEX('Energy Prices'!$F$26:$CR$31,MATCH($B132,'Energy Prices'!$C$26:$C$31,0),MATCH(Calc_BAU!BJ$6,'Energy Prices'!$F$11:$CR$11,0))/100000,0)","v":0},{"$f":"IFERROR('Data Input - BAU'!BO88*INDEX('Energy Prices'!$F$26:$CR$31,MATCH($B132,'Energy Prices'!$C$26:$C$31,0),MATCH(Calc_BAU!BK$6,'Energy Prices'!$F$11:$CR$11,0))/100000,0)","v":0},{"$f":"IFERROR('Data Input - BAU'!BP88*INDEX('Energy Prices'!$F$26:$CR$31,MATCH($B132,'Energy Prices'!$C$26:$C$31,0),MATCH(Calc_BAU!BL$6,'Energy Prices'!$F$11:$CR$11,0))/100000,0)","v":0},{"$f":"IFERROR('Data Input - BAU'!BQ88*INDEX('Energy Prices'!$F$26:$CR$31,MATCH($B132,'Energy Prices'!$C$26:$C$31,0),MATCH(Calc_BAU!BM$6,'Energy Prices'!$F$11:$CR$11,0))/100000,0)","v":0},{"$f":"IFERROR('Data Input - BAU'!BR88*INDEX('Energy Prices'!$F$26:$CR$31,MATCH($B132,'Energy Prices'!$C$26:$C$31,0),MATCH(Calc_BAU!BN$6,'Energy Prices'!$F$11:$CR$11,0))/100000,0)","v":0},{"$f":"IFERROR('Data Input - BAU'!BS88*INDEX('Energy Prices'!$F$26:$CR$31,MATCH($B132,'Energy Prices'!$C$26:$C$31,0),MATCH(Calc_BAU!BO$6,'Energy Prices'!$F$11:$CR$11,0))/100000,0)","v":0},{"$f":"IFERROR('Data Input - BAU'!BT88*INDEX('Energy Prices'!$F$26:$CR$31,MATCH($B132,'Energy Prices'!$C$26:$C$31,0),MATCH(Calc_BAU!BP$6,'Energy Prices'!$F$11:$CR$11,0))/100000,0)","v":0},{"$f":"IFERROR('Data Input - BAU'!BU88*INDEX('Energy Prices'!$F$26:$CR$31,MATCH($B132,'Energy Prices'!$C$26:$C$31,0),MATCH(Calc_BAU!BQ$6,'Energy Prices'!$F$11:$CR$11,0))/100000,0)","v":0},{"$f":"IFERROR('Data Input - BAU'!BV88*INDEX('Energy Prices'!$F$26:$CR$31,MATCH($B132,'Energy Prices'!$C$26:$C$31,0),MATCH(Calc_BAU!BR$6,'Energy Prices'!$F$11:$CR$11,0))/100000,0)","v":0},{"$f":"IFERROR('Data Input - BAU'!BW88*INDEX('Energy Prices'!$F$26:$CR$31,MATCH($B132,'Energy Prices'!$C$26:$C$31,0),MATCH(Calc_BAU!BS$6,'Energy Prices'!$F$11:$CR$11,0))/100000,0)","v":0},{"$f":"IFERROR('Data Input - BAU'!BX88*INDEX('Energy Prices'!$F$26:$CR$31,MATCH($B132,'Energy Prices'!$C$26:$C$31,0),MATCH(Calc_BAU!BT$6,'Energy Prices'!$F$11:$CR$11,0))/100000,0)","v":0},{"$f":"IFERROR('Data Input - BAU'!BY88*INDEX('Energy Prices'!$F$26:$CR$31,MATCH($B132,'Energy Prices'!$C$26:$C$31,0),MATCH(Calc_BAU!BU$6,'Energy Prices'!$F$11:$CR$11,0))/100000,0)","v":0},{"$f":"IFERROR('Data Input - BAU'!BZ88*INDEX('Energy Prices'!$F$26:$CR$31,MATCH($B132,'Energy Prices'!$C$26:$C$31,0),MATCH(Calc_BAU!BV$6,'Energy Prices'!$F$11:$CR$11,0))/100000,0)","v":0},{"$f":"IFERROR('Data Input - BAU'!CA88*INDEX('Energy Prices'!$F$26:$CR$31,MATCH($B132,'Energy Prices'!$C$26:$C$31,0),MATCH(Calc_BAU!BW$6,'Energy Prices'!$F$11:$CR$11,0))/100000,0)","v":0},{"$f":"IFERROR('Data Input - BAU'!CB88*INDEX('Energy Prices'!$F$26:$CR$31,MATCH($B132,'Energy Prices'!$C$26:$C$31,0),MATCH(Calc_BAU!BX$6,'Energy Prices'!$F$11:$CR$11,0))/100000,0)","v":0},{"$f":"IFERROR('Data Input - BAU'!CC88*INDEX('Energy Prices'!$F$26:$CR$31,MATCH($B132,'Energy Prices'!$C$26:$C$31,0),MATCH(Calc_BAU!BY$6,'Energy Prices'!$F$11:$CR$11,0))/100000,0)","v":0},{"$f":"IFERROR('Data Input - BAU'!CD88*INDEX('Energy Prices'!$F$26:$CR$31,MATCH($B132,'Energy Prices'!$C$26:$C$31,0),MATCH(Calc_BAU!BZ$6,'Energy Prices'!$F$11:$CR$11,0))/100000,0)","v":0},{"$f":"IFERROR('Data Input - BAU'!CE88*INDEX('Energy Prices'!$F$26:$CR$31,MATCH($B132,'Energy Prices'!$C$26:$C$31,0),MATCH(Calc_BAU!CA$6,'Energy Prices'!$F$11:$CR$11,0))/100000,0)","v":0},{"$f":"IFERROR('Data Input - BAU'!CF88*INDEX('Energy Prices'!$F$26:$CR$31,MATCH($B132,'Energy Prices'!$C$26:$C$31,0),MATCH(Calc_BAU!CB$6,'Energy Prices'!$F$11:$CR$11,0))/100000,0)","v":0},{"$f":"IFERROR('Data Input - BAU'!CG88*INDEX('Energy Prices'!$F$26:$CR$31,MATCH($B132,'Energy Prices'!$C$26:$C$31,0),MATCH(Calc_BAU!CC$6,'Energy Prices'!$F$11:$CR$11,0))/100000,0)","v":0},{"$f":"IFERROR('Data Input - BAU'!CH88*INDEX('Energy Prices'!$F$26:$CR$31,MATCH($B132,'Energy Prices'!$C$26:$C$31,0),MATCH(Calc_BAU!CD$6,'Energy Prices'!$F$11:$CR$11,0))/100000,0)","v":0},{"$f":"IFERROR('Data Input - BAU'!CI88*INDEX('Energy Prices'!$F$26:$CR$31,MATCH($B132,'Energy Prices'!$C$26:$C$31,0),MATCH(Calc_BAU!CE$6,'Energy Prices'!$F$11:$CR$11,0))/100000,0)","v":0},{"$f":"IFERROR('Data Input - BAU'!CJ88*INDEX('Energy Prices'!$F$26:$CR$31,MATCH($B132,'Energy Prices'!$C$26:$C$31,0),MATCH(Calc_BAU!CF$6,'Energy Prices'!$F$11:$CR$11,0))/100000,0)","v":0},{"$f":"IFERROR('Data Input - BAU'!CK88*INDEX('Energy Prices'!$F$26:$CR$31,MATCH($B132,'Energy Prices'!$C$26:$C$31,0),MATCH(Calc_BAU!CG$6,'Energy Prices'!$F$11:$CR$11,0))/100000,0)","v":0},{"$f":"IFERROR('Data Input - BAU'!CL88*INDEX('Energy Prices'!$F$26:$CR$31,MATCH($B132,'Energy Prices'!$C$26:$C$31,0),MATCH(Calc_BAU!CH$6,'Energy Prices'!$F$11:$CR$11,0))/100000,0)","v":0},{"$f":"IFERROR('Data Input - BAU'!CM88*INDEX('Energy Prices'!$F$26:$CR$31,MATCH($B132,'Energy Prices'!$C$26:$C$31,0),MATCH(Calc_BAU!CI$6,'Energy Prices'!$F$11:$CR$11,0))/100000,0)","v":0},{"$f":"IFERROR('Data Input - BAU'!CN88*INDEX('Energy Prices'!$F$26:$CR$31,MATCH($B132,'Energy Prices'!$C$26:$C$31,0),MATCH(Calc_BAU!CJ$6,'Energy Prices'!$F$11:$CR$11,0))/100000,0)","v":0},{"$f":"IFERROR('Data Input - BAU'!CO88*INDEX('Energy Prices'!$F$26:$CR$31,MATCH($B132,'Energy Prices'!$C$26:$C$31,0),MATCH(Calc_BAU!CK$6,'Energy Prices'!$F$11:$CR$11,0))/100000,0)","v":0},{"$f":"IFERROR('Data Input - BAU'!CP88*INDEX('Energy Prices'!$F$26:$CR$31,MATCH($B132,'Energy Prices'!$C$26:$C$31,0),MATCH(Calc_BAU!CL$6,'Energy Prices'!$F$11:$CR$11,0))/100000,0)","v":0},{"$f":"IFERROR('Data Input - BAU'!CQ88*INDEX('Energy Prices'!$F$26:$CR$31,MATCH($B132,'Energy Prices'!$C$26:$C$31,0),MATCH(Calc_BAU!CM$6,'Energy Prices'!$F$11:$CR$11,0))/100000,0)","v":0},{"$f":"IFERROR('Data Input - BAU'!CR88*INDEX('Energy Prices'!$F$26:$CR$31,MATCH($B132,'Energy Prices'!$C$26:$C$31,0),MATCH(Calc_BAU!CN$6,'Energy Prices'!$F$11:$CR$11,0))/100000,0)","v":0},{"$f":"IFERROR('Data Input - BAU'!CS88*INDEX('Energy Prices'!$F$26:$CR$31,MATCH($B132,'Energy Prices'!$C$26:$C$31,0),MATCH(Calc_BAU!CO$6,'Energy Prices'!$F$11:$CR$11,0))/100000,0)","v":0},{"$f":"IFERROR('Data Input - BAU'!CT88*INDEX('Energy Prices'!$F$26:$CR$31,MATCH($B132,'Energy Prices'!$C$26:$C$31,0),MATCH(Calc_BAU!CP$6,'Energy Prices'!$F$11:$CR$11,0))/100000,0)","v":0},{"$f":"IFERROR('Data Input - BAU'!CU88*INDEX('Energy Prices'!$F$26:$CR$31,MATCH($B132,'Energy Prices'!$C$26:$C$31,0),MATCH(Calc_BAU!CQ$6,'Energy Prices'!$F$11:$CR$11,0))/100000,0)","v":0},{"$f":"IFERROR('Data Input - BAU'!CV88*INDEX('Energy Prices'!$F$26:$CR$31,MATCH($B132,'Energy Prices'!$C$26:$C$31,0),MATCH(Calc_BAU!CR$6,'Energy Prices'!$F$11:$CR$11,0))/100000,0)","v":0},{"$f":"IFERROR('Data Input - BAU'!CW88*INDEX('Energy Prices'!$F$26:$CR$31,MATCH($B132,'Energy Prices'!$C$26:$C$31,0),MATCH(Calc_BAU!CS$6,'Energy Prices'!$F$11:$CR$11,0))/100000,0)","v":0},{"$f":"IFERROR('Data Input - BAU'!CX88*INDEX('Energy Prices'!$F$26:$CR$31,MATCH($B132,'Energy Prices'!$C$26:$C$31,0),MATCH(Calc_BAU!CT$6,'Energy Prices'!$F$11:$CR$11,0))/100000,0)","v":0},{"$f":"IFERROR('Data Input - BAU'!CY88*INDEX('Energy Prices'!$F$26:$CR$31,MATCH($B132,'Energy Prices'!$C$26:$C$31,0),MATCH(Calc_BAU!CU$6,'Energy Prices'!$F$11:$CR$11,0))/100000,0)","v":0},{"$f":"IFERROR('Data Input - BAU'!CZ88*INDEX('Energy Prices'!$F$26:$CR$31,MATCH($B132,'Energy Prices'!$C$26:$C$31,0),MATCH(Calc_BAU!CV$6,'Energy Prices'!$F$11:$CR$11,0))/100000,0)","v":0},{"$f":"IFERROR('Data Input - BAU'!DA88*INDEX('Energy Prices'!$F$26:$CR$31,MATCH($B132,'Energy Prices'!$C$26:$C$31,0),MATCH(Calc_BAU!CW$6,'Energy Prices'!$F$11:$CR$11,0))/100000,0)","v":0},{"$f":"IFERROR('Data Input - BAU'!DB88*INDEX('Energy Prices'!$F$26:$CR$31,MATCH($B132,'Energy Prices'!$C$26:$C$31,0),MATCH(Calc_BAU!CX$6,'Energy Prices'!$F$11:$CR$11,0))/100000,0)","v":0},{"$f":"IFERROR('Data Input - BAU'!DC88*INDEX('Energy Prices'!$F$26:$CR$31,MATCH($B132,'Energy Prices'!$C$26:$C$31,0),MATCH(Calc_BAU!CY$6,'Energy Prices'!$F$11:$CR$11,0))/100000,0)","v":0}]
[null,"Road - Diesel","£000's",{"$f":"IFERROR('Data Input - BAU'!H89*INDEX('Energy Prices'!$F$26:$CR$31,MATCH($B133,'Energy Prices'!$C$26:$C$31,0),MATCH(Calc_BAU!D$6,'Energy Prices'!$F$11:$CR$11,0))/100000,0)","v":0},{"$f":"IFERROR('Data Input - BAU'!I89*INDEX('Energy Prices'!$F$26:$CR$31,MATCH($B133,'Energy Prices'!$C$26:$C$31,0),MATCH(Calc_BAU!E$6,'Energy Prices'!$F$11:$CR$11,0))/100000,0)","v":0},{"$f":"IFERROR('Data Input - BAU'!J89*INDEX('Energy Prices'!$F$26:$CR$31,MATCH($B133,'Energy Prices'!$C$26:$C$31,0),MATCH(Calc_BAU!F$6,'Energy Prices'!$F$11:$CR$11,0))/100000,0)","v":0},{"$f":"IFERROR('Data Input - BAU'!K89*INDEX('Energy Prices'!$F$26:$CR$31,MATCH($B133,'Energy Prices'!$C$26:$C$31,0),MATCH(Calc_BAU!G$6,'Energy Prices'!$F$11:$CR$11,0))/100000,0)","v":0},{"$f":"IFERROR('Data Input - BAU'!L89*INDEX('Energy Prices'!$F$26:$CR$31,MATCH($B133,'Energy Prices'!$C$26:$C$31,0),MATCH(Calc_BAU!H$6,'Energy Prices'!$F$11:$CR$11,0))/100000,0)","v":0},{"$f":"IFERROR('Data Input - BAU'!M89*INDEX('Energy Prices'!$F$26:$CR$31,MATCH($B133,'Energy Prices'!$C$26:$C$31,0),MATCH(Calc_BAU!I$6,'Energy Prices'!$F$11:$CR$11,0))/100000,0)","v":0},{"$f":"IFERROR('Data Input - BAU'!N89*INDEX('Energy Prices'!$F$26:$CR$31,MATCH($B133,'Energy Prices'!$C$26:$C$31,0),MATCH(Calc_BAU!J$6,'Energy Prices'!$F$11:$CR$11,0))/100000,0)","v":0},{"$f":"IFERROR('Data Input - BAU'!O89*INDEX('Energy Prices'!$F$26:$CR$31,MATCH($B133,'Energy Prices'!$C$26:$C$31,0),MATCH(Calc_BAU!K$6,'Energy Prices'!$F$11:$CR$11,0))/100000,0)","v":0},{"$f":"IFERROR('Data Input - BAU'!P89*INDEX('Energy Prices'!$F$26:$CR$31,MATCH($B133,'Energy Prices'!$C$26:$C$31,0),MATCH(Calc_BAU!L$6,'Energy Prices'!$F$11:$CR$11,0))/100000,0)","v":0},{"$f":"IFERROR('Data Input - BAU'!Q89*INDEX('Energy Prices'!$F$26:$CR$31,MATCH($B133,'Energy Prices'!$C$26:$C$31,0),MATCH(Calc_BAU!M$6,'Energy Prices'!$F$11:$CR$11,0))/100000,0)","v":0},{"$f":"IFERROR('Data Input - BAU'!R89*INDEX('Energy Prices'!$F$26:$CR$31,MATCH($B133,'Energy Prices'!$C$26:$C$31,0),MATCH(Calc_BAU!N$6,'Energy Prices'!$F$11:$CR$11,0))/100000,0)","v":0},{"$f":"IFERROR('Data Input - BAU'!S89*INDEX('Energy Prices'!$F$26:$CR$31,MATCH($B133,'Energy Prices'!$C$26:$C$31,0),MATCH(Calc_BAU!O$6,'Energy Prices'!$F$11:$CR$11,0))/100000,0)","v":0},{"$f":"IFERROR('Data Input - BAU'!T89*INDEX('Energy Prices'!$F$26:$CR$31,MATCH($B133,'Energy Prices'!$C$26:$C$31,0),MATCH(Calc_BAU!P$6,'Energy Prices'!$F$11:$CR$11,0))/100000,0)","v":0},{"$f":"IFERROR('Data Input - BAU'!U89*INDEX('Energy Prices'!$F$26:$CR$31,MATCH($B133,'Energy Prices'!$C$26:$C$31,0),MATCH(Calc_BAU!Q$6,'Energy Prices'!$F$11:$CR$11,0))/100000,0)","v":0},{"$f":"IFERROR('Data Input - BAU'!V89*INDEX('Energy Prices'!$F$26:$CR$31,MATCH($B133,'Energy Prices'!$C$26:$C$31,0),MATCH(Calc_BAU!R$6,'Energy Prices'!$F$11:$CR$11,0))/100000,0)","v":0},{"$f":"IFERROR('Data Input - BAU'!W89*INDEX('Energy Prices'!$F$26:$CR$31,MATCH($B133,'Energy Prices'!$C$26:$C$31,0),MATCH(Calc_BAU!S$6,'Energy Prices'!$F$11:$CR$11,0))/100000,0)","v":0},{"$f":"IFERROR('Data Input - BAU'!X89*INDEX('Energy Prices'!$F$26:$CR$31,MATCH($B133,'Energy Prices'!$C$26:$C$31,0),MATCH(Calc_BAU!T$6,'Energy Prices'!$F$11:$CR$11,0))/100000,0)","v":0},{"$f":"IFERROR('Data Input - BAU'!Y89*INDEX('Energy Prices'!$F$26:$CR$31,MATCH($B133,'Energy Prices'!$C$26:$C$31,0),MATCH(Calc_BAU!U$6,'Energy Prices'!$F$11:$CR$11,0))/100000,0)","v":0},{"$f":"IFERROR('Data Input - BAU'!Z89*INDEX('Energy Prices'!$F$26:$CR$31,MATCH($B133,'Energy Prices'!$C$26:$C$31,0),MATCH(Calc_BAU!V$6,'Energy Prices'!$F$11:$CR$11,0))/100000,0)","v":0},{"$f":"IFERROR('Data Input - BAU'!AA89*INDEX('Energy Prices'!$F$26:$CR$31,MATCH($B133,'Energy Prices'!$C$26:$C$31,0),MATCH(Calc_BAU!W$6,'Energy Prices'!$F$11:$CR$11,0))/100000,0)","v":0},{"$f":"IFERROR('Data Input - BAU'!AB89*INDEX('Energy Prices'!$F$26:$CR$31,MATCH($B133,'Energy Prices'!$C$26:$C$31,0),MATCH(Calc_BAU!X$6,'Energy Prices'!$F$11:$CR$11,0))/100000,0)","v":0},{"$f":"IFERROR('Data Input - BAU'!AC89*INDEX('Energy Prices'!$F$26:$CR$31,MATCH($B133,'Energy Prices'!$C$26:$C$31,0),MATCH(Calc_BAU!Y$6,'Energy Prices'!$F$11:$CR$11,0))/100000,0)","v":0},{"$f":"IFERROR('Data Input - BAU'!AD89*INDEX('Energy Prices'!$F$26:$CR$31,MATCH($B133,'Energy Prices'!$C$26:$C$31,0),MATCH(Calc_BAU!Z$6,'Energy Prices'!$F$11:$CR$11,0))/100000,0)","v":0},{"$f":"IFERROR('Data Input - BAU'!AE89*INDEX('Energy Prices'!$F$26:$CR$31,MATCH($B133,'Energy Prices'!$C$26:$C$31,0),MATCH(Calc_BAU!AA$6,'Energy Prices'!$F$11:$CR$11,0))/100000,0)","v":0},{"$f":"IFERROR('Data Input - BAU'!AF89*INDEX('Energy Prices'!$F$26:$CR$31,MATCH($B133,'Energy Prices'!$C$26:$C$31,0),MATCH(Calc_BAU!AB$6,'Energy Prices'!$F$11:$CR$11,0))/100000,0)","v":0},{"$f":"IFERROR('Data Input - BAU'!AG89*INDEX('Energy Prices'!$F$26:$CR$31,MATCH($B133,'Energy Prices'!$C$26:$C$31,0),MATCH(Calc_BAU!AC$6,'Energy Prices'!$F$11:$CR$11,0))/100000,0)","v":0},{"$f":"IFERROR('Data Input - BAU'!AH89*INDEX('Energy Prices'!$F$26:$CR$31,MATCH($B133,'Energy Prices'!$C$26:$C$31,0),MATCH(Calc_BAU!AD$6,'Energy Prices'!$F$11:$CR$11,0))/100000,0)","v":0},{"$f":"IFERROR('Data Input - BAU'!AI89*INDEX('Energy Prices'!$F$26:$CR$31,MATCH($B133,'Energy Prices'!$C$26:$C$31,0),MATCH(Calc_BAU!AE$6,'Energy Prices'!$F$11:$CR$11,0))/100000,0)","v":0},{"$f":"IFERROR('Data Input - BAU'!AJ89*INDEX('Energy Prices'!$F$26:$CR$31,MATCH($B133,'Energy Prices'!$C$26:$C$31,0),MATCH(Calc_BAU!AF$6,'Energy Prices'!$F$11:$CR$11,0))/100000,0)","v":0},{"$f":"IFERROR('Data Input - BAU'!AK89*INDEX('Energy Prices'!$F$26:$CR$31,MATCH($B133,'Energy Prices'!$C$26:$C$31,0),MATCH(Calc_BAU!AG$6,'Energy Prices'!$F$11:$CR$11,0))/100000,0)","v":0},{"$f":"IFERROR('Data Input - BAU'!AL89*INDEX('Energy Prices'!$F$26:$CR$31,MATCH($B133,'Energy Prices'!$C$26:$C$31,0),MATCH(Calc_BAU!AH$6,'Energy Prices'!$F$11:$CR$11,0))/100000,0)","v":0},{"$f":"IFERROR('Data Input - BAU'!AM89*INDEX('Energy Prices'!$F$26:$CR$31,MATCH($B133,'Energy Prices'!$C$26:$C$31,0),MATCH(Calc_BAU!AI$6,'Energy Prices'!$F$11:$CR$11,0))/100000,0)","v":0},{"$f":"IFERROR('Data Input - BAU'!AN89*INDEX('Energy Prices'!$F$26:$CR$31,MATCH($B133,'Energy Prices'!$C$26:$C$31,0),MATCH(Calc_BAU!AJ$6,'Energy Prices'!$F$11:$CR$11,0))/100000,0)","v":0},{"$f":"IFERROR('Data Input - BAU'!AO89*INDEX('Energy Prices'!$F$26:$CR$31,MATCH($B133,'Energy Prices'!$C$26:$C$31,0),MATCH(Calc_BAU!AK$6,'Energy Prices'!$F$11:$CR$11,0))/100000,0)","v":0},{"$f":"IFERROR('Data Input - BAU'!AP89*INDEX('Energy Prices'!$F$26:$CR$31,MATCH($B133,'Energy Prices'!$C$26:$C$31,0),MATCH(Calc_BAU!AL$6,'Energy Prices'!$F$11:$CR$11,0))/100000,0)","v":0},{"$f":"IFERROR('Data Input - BAU'!AQ89*INDEX('Energy Prices'!$F$26:$CR$31,MATCH($B133,'Energy Prices'!$C$26:$C$31,0),MATCH(Calc_BAU!AM$6,'Energy Prices'!$F$11:$CR$11,0))/100000,0)","v":0},{"$f":"IFERROR('Data Input - BAU'!AR89*INDEX('Energy Prices'!$F$26:$CR$31,MATCH($B133,'Energy Prices'!$C$26:$C$31,0),MATCH(Calc_BAU!AN$6,'Energy Prices'!$F$11:$CR$11,0))/100000,0)","v":0},{"$f":"IFERROR('Data Input - BAU'!AS89*INDEX('Energy Prices'!$F$26:$CR$31,MATCH($B133,'Energy Prices'!$C$26:$C$31,0),MATCH(Calc_BAU!AO$6,'Energy Prices'!$F$11:$CR$11,0))/100000,0)","v":0},{"$f":"IFERROR('Data Input - BAU'!AT89*INDEX('Energy Prices'!$F$26:$CR$31,MATCH($B133,'Energy Prices'!$C$26:$C$31,0),MATCH(Calc_BAU!AP$6,'Energy Prices'!$F$11:$CR$11,0))/100000,0)","v":0},{"$f":"IFERROR('Data Input - BAU'!AU89*INDEX('Energy Prices'!$F$26:$CR$31,MATCH($B133,'Energy Prices'!$C$26:$C$31,0),MATCH(Calc_BAU!AQ$6,'Energy Prices'!$F$11:$CR$11,0))/100000,0)","v":0},{"$f":"IFERROR('Data Input - BAU'!AV89*INDEX('Energy Prices'!$F$26:$CR$31,MATCH($B133,'Energy Prices'!$C$26:$C$31,0),MATCH(Calc_BAU!AR$6,'Energy Prices'!$F$11:$CR$11,0))/100000,0)","v":0},{"$f":"IFERROR('Data Input - BAU'!AW89*INDEX('Energy Prices'!$F$26:$CR$31,MATCH($B133,'Energy Prices'!$C$26:$C$31,0),MATCH(Calc_BAU!AS$6,'Energy Prices'!$F$11:$CR$11,0))/100000,0)","v":0},{"$f":"IFERROR('Data Input - BAU'!AX89*INDEX('Energy Prices'!$F$26:$CR$31,MATCH($B133,'Energy Prices'!$C$26:$C$31,0),MATCH(Calc_BAU!AT$6,'Energy Prices'!$F$11:$CR$11,0))/100000,0)","v":0},{"$f":"IFERROR('Data Input - BAU'!AY89*INDEX('Energy Prices'!$F$26:$CR$31,MATCH($B133,'Energy Prices'!$C$26:$C$31,0),MATCH(Calc_BAU!AU$6,'Energy Prices'!$F$11:$CR$11,0))/100000,0)","v":0},{"$f":"IFERROR('Data Input - BAU'!AZ89*INDEX('Energy Prices'!$F$26:$CR$31,MATCH($B133,'Energy Prices'!$C$26:$C$31,0),MATCH(Calc_BAU!AV$6,'Energy Prices'!$F$11:$CR$11,0))/100000,0)","v":0},{"$f":"IFERROR('Data Input - BAU'!BA89*INDEX('Energy Prices'!$F$26:$CR$31,MATCH($B133,'Energy Prices'!$C$26:$C$31,0),MATCH(Calc_BAU!AW$6,'Energy Prices'!$F$11:$CR$11,0))/100000,0)","v":0},{"$f":"IFERROR('Data Input - BAU'!BB89*INDEX('Energy Prices'!$F$26:$CR$31,MATCH($B133,'Energy Prices'!$C$26:$C$31,0),MATCH(Calc_BAU!AX$6,'Energy Prices'!$F$11:$CR$11,0))/100000,0)","v":0},{"$f":"IFERROR('Data Input - BAU'!BC89*INDEX('Energy Prices'!$F$26:$CR$31,MATCH($B133,'Energy Prices'!$C$26:$C$31,0),MATCH(Calc_BAU!AY$6,'Energy Prices'!$F$11:$CR$11,0))/100000,0)","v":0},{"$f":"IFERROR('Data Input - BAU'!BD89*INDEX('Energy Prices'!$F$26:$CR$31,MATCH($B133,'Energy Prices'!$C$26:$C$31,0),MATCH(Calc_BAU!AZ$6,'Energy Prices'!$F$11:$CR$11,0))/100000,0)","v":0},{"$f":"IFERROR('Data Input - BAU'!BE89*INDEX('Energy Prices'!$F$26:$CR$31,MATCH($B133,'Energy Prices'!$C$26:$C$31,0),MATCH(Calc_BAU!BA$6,'Energy Prices'!$F$11:$CR$11,0))/100000,0)","v":0},{"$f":"IFERROR('Data Input - BAU'!BF89*INDEX('Energy Prices'!$F$26:$CR$31,MATCH($B133,'Energy Prices'!$C$26:$C$31,0),MATCH(Calc_BAU!BB$6,'Energy Prices'!$F$11:$CR$11,0))/100000,0)","v":0},{"$f":"IFERROR('Data Input - BAU'!BG89*INDEX('Energy Prices'!$F$26:$CR$31,MATCH($B133,'Energy Prices'!$C$26:$C$31,0),MATCH(Calc_BAU!BC$6,'Energy Prices'!$F$11:$CR$11,0))/100000,0)","v":0},{"$f":"IFERROR('Data Input - BAU'!BH89*INDEX('Energy Prices'!$F$26:$CR$31,MATCH($B133,'Energy Prices'!$C$26:$C$31,0),MATCH(Calc_BAU!BD$6,'Energy Prices'!$F$11:$CR$11,0))/100000,0)","v":0},{"$f":"IFERROR('Data Input - BAU'!BI89*INDEX('Energy Prices'!$F$26:$CR$31,MATCH($B133,'Energy Prices'!$C$26:$C$31,0),MATCH(Calc_BAU!BE$6,'Energy Prices'!$F$11:$CR$11,0))/100000,0)","v":0},{"$f":"IFERROR('Data Input - BAU'!BJ89*INDEX('Energy Prices'!$F$26:$CR$31,MATCH($B133,'Energy Prices'!$C$26:$C$31,0),MATCH(Calc_BAU!BF$6,'Energy Prices'!$F$11:$CR$11,0))/100000,0)","v":0},{"$f":"IFERROR('Data Input - BAU'!BK89*INDEX('Energy Prices'!$F$26:$CR$31,MATCH($B133,'Energy Prices'!$C$26:$C$31,0),MATCH(Calc_BAU!BG$6,'Energy Prices'!$F$11:$CR$11,0))/100000,0)","v":0},{"$f":"IFERROR('Data Input - BAU'!BL89*INDEX('Energy Prices'!$F$26:$CR$31,MATCH($B133,'Energy Prices'!$C$26:$C$31,0),MATCH(Calc_BAU!BH$6,'Energy Prices'!$F$11:$CR$11,0))/100000,0)","v":0},{"$f":"IFERROR('Data Input - BAU'!BM89*INDEX('Energy Prices'!$F$26:$CR$31,MATCH($B133,'Energy Prices'!$C$26:$C$31,0),MATCH(Calc_BAU!BI$6,'Energy Prices'!$F$11:$CR$11,0))/100000,0)","v":0},{"$f":"IFERROR('Data Input - BAU'!BN89*INDEX('Energy Prices'!$F$26:$CR$31,MATCH($B133,'Energy Prices'!$C$26:$C$31,0),MATCH(Calc_BAU!BJ$6,'Energy Prices'!$F$11:$CR$11,0))/100000,0)","v":0},{"$f":"IFERROR('Data Input - BAU'!BO89*INDEX('Energy Prices'!$F$26:$CR$31,MATCH($B133,'Energy Prices'!$C$26:$C$31,0),MATCH(Calc_BAU!BK$6,'Energy Prices'!$F$11:$CR$11,0))/100000,0)","v":0},{"$f":"IFERROR('Data Input - BAU'!BP89*INDEX('Energy Prices'!$F$26:$CR$31,MATCH($B133,'Energy Prices'!$C$26:$C$31,0),MATCH(Calc_BAU!BL$6,'Energy Prices'!$F$11:$CR$11,0))/100000,0)","v":0},{"$f":"IFERROR('Data Input - BAU'!BQ89*INDEX('Energy Prices'!$F$26:$CR$31,MATCH($B133,'Energy Prices'!$C$26:$C$31,0),MATCH(Calc_BAU!BM$6,'Energy Prices'!$F$11:$CR$11,0))/100000,0)","v":0},{"$f":"IFERROR('Data Input - BAU'!BR89*INDEX('Energy Prices'!$F$26:$CR$31,MATCH($B133,'Energy Prices'!$C$26:$C$31,0),MATCH(Calc_BAU!BN$6,'Energy Prices'!$F$11:$CR$11,0))/100000,0)","v":0},{"$f":"IFERROR('Data Input - BAU'!BS89*INDEX('Energy Prices'!$F$26:$CR$31,MATCH($B133,'Energy Prices'!$C$26:$C$31,0),MATCH(Calc_BAU!BO$6,'Energy Prices'!$F$11:$CR$11,0))/100000,0)","v":0},{"$f":"IFERROR('Data Input - BAU'!BT89*INDEX('Energy Prices'!$F$26:$CR$31,MATCH($B133,'Energy Prices'!$C$26:$C$31,0),MATCH(Calc_BAU!BP$6,'Energy Prices'!$F$11:$CR$11,0))/100000,0)","v":0},{"$f":"IFERROR('Data Input - BAU'!BU89*INDEX('Energy Prices'!$F$26:$CR$31,MATCH($B133,'Energy Prices'!$C$26:$C$31,0),MATCH(Calc_BAU!BQ$6,'Energy Prices'!$F$11:$CR$11,0))/100000,0)","v":0},{"$f":"IFERROR('Data Input - BAU'!BV89*INDEX('Energy Prices'!$F$26:$CR$31,MATCH($B133,'Energy Prices'!$C$26:$C$31,0),MATCH(Calc_BAU!BR$6,'Energy Prices'!$F$11:$CR$11,0))/100000,0)","v":0},{"$f":"IFERROR('Data Input - BAU'!BW89*INDEX('Energy Prices'!$F$26:$CR$31,MATCH($B133,'Energy Prices'!$C$26:$C$31,0),MATCH(Calc_BAU!BS$6,'Energy Prices'!$F$11:$CR$11,0))/100000,0)","v":0},{"$f":"IFERROR('Data Input - BAU'!BX89*INDEX('Energy Prices'!$F$26:$CR$31,MATCH($B133,'Energy Prices'!$C$26:$C$31,0),MATCH(Calc_BAU!BT$6,'Energy Prices'!$F$11:$CR$11,0))/100000,0)","v":0},{"$f":"IFERROR('Data Input - BAU'!BY89*INDEX('Energy Prices'!$F$26:$CR$31,MATCH($B133,'Energy Prices'!$C$26:$C$31,0),MATCH(Calc_BAU!BU$6,'Energy Prices'!$F$11:$CR$11,0))/100000,0)","v":0},{"$f":"IFERROR('Data Input - BAU'!BZ89*INDEX('Energy Prices'!$F$26:$CR$31,MATCH($B133,'Energy Prices'!$C$26:$C$31,0),MATCH(Calc_BAU!BV$6,'Energy Prices'!$F$11:$CR$11,0))/100000,0)","v":0},{"$f":"IFERROR('Data Input - BAU'!CA89*INDEX('Energy Prices'!$F$26:$CR$31,MATCH($B133,'Energy Prices'!$C$26:$C$31,0),MATCH(Calc_BAU!BW$6,'Energy Prices'!$F$11:$CR$11,0))/100000,0)","v":0},{"$f":"IFERROR('Data Input - BAU'!CB89*INDEX('Energy Prices'!$F$26:$CR$31,MATCH($B133,'Energy Prices'!$C$26:$C$31,0),MATCH(Calc_BAU!BX$6,'Energy Prices'!$F$11:$CR$11,0))/100000,0)","v":0},{"$f":"IFERROR('Data Input - BAU'!CC89*INDEX('Energy Prices'!$F$26:$CR$31,MATCH($B133,'Energy Prices'!$C$26:$C$31,0),MATCH(Calc_BAU!BY$6,'Energy Prices'!$F$11:$CR$11,0))/100000,0)","v":0},{"$f":"IFERROR('Data Input - BAU'!CD89*INDEX('Energy Prices'!$F$26:$CR$31,MATCH($B133,'Energy Prices'!$C$26:$C$31,0),MATCH(Calc_BAU!BZ$6,'Energy Prices'!$F$11:$CR$11,0))/100000,0)","v":0},{"$f":"IFERROR('Data Input - BAU'!CE89*INDEX('Energy Prices'!$F$26:$CR$31,MATCH($B133,'Energy Prices'!$C$26:$C$31,0),MATCH(Calc_BAU!CA$6,'Energy Prices'!$F$11:$CR$11,0))/100000,0)","v":0},{"$f":"IFERROR('Data Input - BAU'!CF89*INDEX('Energy Prices'!$F$26:$CR$31,MATCH($B133,'Energy Prices'!$C$26:$C$31,0),MATCH(Calc_BAU!CB$6,'Energy Prices'!$F$11:$CR$11,0))/100000,0)","v":0},{"$f":"IFERROR('Data Input - BAU'!CG89*INDEX('Energy Prices'!$F$26:$CR$31,MATCH($B133,'Energy Prices'!$C$26:$C$31,0),MATCH(Calc_BAU!CC$6,'Energy Prices'!$F$11:$CR$11,0))/100000,0)","v":0},{"$f":"IFERROR('Data Input - BAU'!CH89*INDEX('Energy Prices'!$F$26:$CR$31,MATCH($B133,'Energy Prices'!$C$26:$C$31,0),MATCH(Calc_BAU!CD$6,'Energy Prices'!$F$11:$CR$11,0))/100000,0)","v":0},{"$f":"IFERROR('Data Input - BAU'!CI89*INDEX('Energy Prices'!$F$26:$CR$31,MATCH($B133,'Energy Prices'!$C$26:$C$31,0),MATCH(Calc_BAU!CE$6,'Energy Prices'!$F$11:$CR$11,0))/100000,0)","v":0},{"$f":"IFERROR('Data Input - BAU'!CJ89*INDEX('Energy Prices'!$F$26:$CR$31,MATCH($B133,'Energy Prices'!$C$26:$C$31,0),MATCH(Calc_BAU!CF$6,'Energy Prices'!$F$11:$CR$11,0))/100000,0)","v":0},{"$f":"IFERROR('Data Input - BAU'!CK89*INDEX('Energy Prices'!$F$26:$CR$31,MATCH($B133,'Energy Prices'!$C$26:$C$31,0),MATCH(Calc_BAU!CG$6,'Energy Prices'!$F$11:$CR$11,0))/100000,0)","v":0},{"$f":"IFERROR('Data Input - BAU'!CL89*INDEX('Energy Prices'!$F$26:$CR$31,MATCH($B133,'Energy Prices'!$C$26:$C$31,0),MATCH(Calc_BAU!CH$6,'Energy Prices'!$F$11:$CR$11,0))/100000,0)","v":0},{"$f":"IFERROR('Data Input - BAU'!CM89*INDEX('Energy Prices'!$F$26:$CR$31,MATCH($B133,'Energy Prices'!$C$26:$C$31,0),MATCH(Calc_BAU!CI$6,'Energy Prices'!$F$11:$CR$11,0))/100000,0)","v":0},{"$f":"IFERROR('Data Input - BAU'!CN89*INDEX('Energy Prices'!$F$26:$CR$31,MATCH($B133,'Energy Prices'!$C$26:$C$31,0),MATCH(Calc_BAU!CJ$6,'Energy Prices'!$F$11:$CR$11,0))/100000,0)","v":0},{"$f":"IFERROR('Data Input - BAU'!CO89*INDEX('Energy Prices'!$F$26:$CR$31,MATCH($B133,'Energy Prices'!$C$26:$C$31,0),MATCH(Calc_BAU!CK$6,'Energy Prices'!$F$11:$CR$11,0))/100000,0)","v":0},{"$f":"IFERROR('Data Input - BAU'!CP89*INDEX('Energy Prices'!$F$26:$CR$31,MATCH($B133,'Energy Prices'!$C$26:$C$31,0),MATCH(Calc_BAU!CL$6,'Energy Prices'!$F$11:$CR$11,0))/100000,0)","v":0},{"$f":"IFERROR('Data Input - BAU'!CQ89*INDEX('Energy Prices'!$F$26:$CR$31,MATCH($B133,'Energy Prices'!$C$26:$C$31,0),MATCH(Calc_BAU!CM$6,'Energy Prices'!$F$11:$CR$11,0))/100000,0)","v":0},{"$f":"IFERROR('Data Input - BAU'!CR89*INDEX('Energy Prices'!$F$26:$CR$31,MATCH($B133,'Energy Prices'!$C$26:$C$31,0),MATCH(Calc_BAU!CN$6,'Energy Prices'!$F$11:$CR$11,0))/100000,0)","v":0},{"$f":"IFERROR('Data Input - BAU'!CS89*INDEX('Energy Prices'!$F$26:$CR$31,MATCH($B133,'Energy Prices'!$C$26:$C$31,0),MATCH(Calc_BAU!CO$6,'Energy Prices'!$F$11:$CR$11,0))/100000,0)","v":0},{"$f":"IFERROR('Data Input - BAU'!CT89*INDEX('Energy Prices'!$F$26:$CR$31,MATCH($B133,'Energy Prices'!$C$26:$C$31,0),MATCH(Calc_BAU!CP$6,'Energy Prices'!$F$11:$CR$11,0))/100000,0)","v":0},{"$f":"IFERROR('Data Input - BAU'!CU89*INDEX('Energy Prices'!$F$26:$CR$31,MATCH($B133,'Energy Prices'!$C$26:$C$31,0),MATCH(Calc_BAU!CQ$6,'Energy Prices'!$F$11:$CR$11,0))/100000,0)","v":0},{"$f":"IFERROR('Data Input - BAU'!CV89*INDEX('Energy Prices'!$F$26:$CR$31,MATCH($B133,'Energy Prices'!$C$26:$C$31,0),MATCH(Calc_BAU!CR$6,'Energy Prices'!$F$11:$CR$11,0))/100000,0)","v":0},{"$f":"IFERROR('Data Input - BAU'!CW89*INDEX('Energy Prices'!$F$26:$CR$31,MATCH($B133,'Energy Prices'!$C$26:$C$31,0),MATCH(Calc_BAU!CS$6,'Energy Prices'!$F$11:$CR$11,0))/100000,0)","v":0},{"$f":"IFERROR('Data Input - BAU'!CX89*INDEX('Energy Prices'!$F$26:$CR$31,MATCH($B133,'Energy Prices'!$C$26:$C$31,0),MATCH(Calc_BAU!CT$6,'Energy Prices'!$F$11:$CR$11,0))/100000,0)","v":0},{"$f":"IFERROR('Data Input - BAU'!CY89*INDEX('Energy Prices'!$F$26:$CR$31,MATCH($B133,'Energy Prices'!$C$26:$C$31,0),MATCH(Calc_BAU!CU$6,'Energy Prices'!$F$11:$CR$11,0))/100000,0)","v":0},{"$f":"IFERROR('Data Input - BAU'!CZ89*INDEX('Energy Prices'!$F$26:$CR$31,MATCH($B133,'Energy Prices'!$C$26:$C$31,0),MATCH(Calc_BAU!CV$6,'Energy Prices'!$F$11:$CR$11,0))/100000,0)","v":0},{"$f":"IFERROR('Data Input - BAU'!DA89*INDEX('Energy Prices'!$F$26:$CR$31,MATCH($B133,'Energy Prices'!$C$26:$C$31,0),MATCH(Calc_BAU!CW$6,'Energy Prices'!$F$11:$CR$11,0))/100000,0)","v":0},{"$f":"IFERROR('Data Input - BAU'!DB89*INDEX('Energy Prices'!$F$26:$CR$31,MATCH($B133,'Energy Prices'!$C$26:$C$31,0),MATCH(Calc_BAU!CX$6,'Energy Prices'!$F$11:$CR$11,0))/100000,0)","v":0},{"$f":"IFERROR('Data Input - BAU'!DC89*INDEX('Energy Prices'!$F$26:$CR$31,MATCH($B133,'Energy Prices'!$C$26:$C$31,0),MATCH(Calc_BAU!CY$6,'Energy Prices'!$F$11:$CR$11,0))/100000,0)","v":0}]
[]
[null,"Discounted energy","£000's",{"$f":"SUM(D128:D133)*D$7","v":1785.9772560648744},{"$f":"SUM(E128:E133)*E$7","v":1769.2464149674659},1783.5557872693669,1752.5122542914835,1742.2058175935065,1736.9462483377367,1725.0749894734306,1682.0119364246996,0,0,0,0,0,0,0,0,0,0,0,0,0,0,0,0,0,0,0,0,0,0,0,0,0,0,0,0,0,0,0,0,0,0,0,0,0,0,0,0,0,0,0,0,0,0,0,0,0,0,0,0,{"$f":"SUM(BL128:BL133)*BL$7","v":0},0,0,0,0,0,0,0,0,0,0,0,0,0,0,0,0,0,0,0,0,0,0,0,0,0,0,0,0,0,0,0,0,0,0,0,0,0,0,0]
[]
[null,"Air pollutant emissions- value"]
[null,{"$f":"B53","v":"Sox 2019"},"£000's",{"$f":"IFERROR(IF(OR($C$144=FALSE,LEFT($B138,3)<>\"NOX\"),D53*INDEX('Damage costs'!$U$16:$U$43,MATCH($B138,'Damage costs'!$C$16:$C$43,0))/1000,D53*INDEX('Damage costs'!$Y$16:$Y$43,MATCH($B138,'Damage costs'!$C$16:$C$43,0))/1000),\"\")","v":19.20090116757984},{"$f":"IFERROR(IF(OR($C$144=FALSE,LEFT($B138,3)<>\"NOX\"),E53*INDEX('Damage costs'!$U$16:$U$43,MATCH($B138,'Damage costs'!$C$16:$C$43,0))/1000,E53*INDEX('Damage costs'!$Y$16:$Y$43,MATCH($B138,'Damage costs'!$C$16:$C$43,0))/1000),\"\")","v":19.20090116757984},{"$f":"IFERROR(IF(OR($C$144=FALSE,LEFT($B138,3)<>\"NOX\"),F53*INDEX('Damage costs'!$U$16:$U$43,MATCH($B138,'Damage costs'!$C$16:$C$43,0))/1000,F53*INDEX('Damage costs'!$Y$16:$Y$43,MATCH($B138,'Damage costs'!$C$16:$C$43,0))/1000),\"\")","v":19.20090116757984},{"$f":"IFERROR(IF(OR($C$144=FALSE,LEFT($B138,3)<>\"NOX\"),G53*INDEX('Damage costs'!$U$16:$U$43,MATCH($B138,'Damage costs'!$C$16:$C$43,0))/1000,G53*INDEX('Damage costs'!$Y$16:$Y$43,MATCH($B138,'Damage costs'!$C$16:$C$43,0))/1000),\"\")","v":19.20090116757984},{"$f":"IFERROR(IF(OR($C$144=FALSE,LEFT($B138,3)<>\"NOX\"),H53*INDEX('Damage costs'!$U$16:$U$43,MATCH($B138,'Damage costs'!$C$16:$C$43,0))/1000,H53*INDEX('Damage costs'!$Y$16:$Y$43,MATCH($B138,'Damage costs'!$C$16:$C$43,0))/1000),\"\")","v":19.20090116757984},{"$f":"IFERROR(IF(OR($C$144=FALSE,LEFT($B138,3)<>\"NOX\"),I53*INDEX('Damage costs'!$U$16:$U$43,MATCH($B138,'Damage costs'!$C$16:$C$43,0))/1000,I53*INDEX('Damage costs'!$Y$16:$Y$43,MATCH($B138,'Damage costs'!$C$16:$C$43,0))/1000),\"\")","v":19.20090116757984},{"$f":"IFERROR(IF(OR($C$144=FALSE,LEFT($B138,3)<>\"NOX\"),J53*INDEX('Damage costs'!$U$16:$U$43,MATCH($B138,'Damage costs'!$C$16:$C$43,0))/1000,J53*INDEX('Damage costs'!$Y$16:$Y$43,MATCH($B138,'Damage costs'!$C$16:$C$43,0))/1000),\"\")","v":19.20090116757984},{"$f":"IFERROR(IF(OR($C$144=FALSE,LEFT($B138,3)<>\"NOX\"),K53*INDEX('Damage costs'!$U$16:$U$43,MATCH($B138,'Damage costs'!$C$16:$C$43,0))/1000,K53*INDEX('Damage costs'!$Y$16:$Y$43,MATCH($B138,'Damage costs'!$C$16:$C$43,0))/1000),\"\")","v":0},{"$f":"IFERROR(IF(OR($C$144=FALSE,LEFT($B138,3)<>\"NOX\"),L53*INDEX('Damage costs'!$U$16:$U$43,MATCH($B138,'Damage costs'!$C$16:$C$43,0))/1000,L53*INDEX('Damage costs'!$Y$16:$Y$43,MATCH($B138,'Damage costs'!$C$16:$C$43,0))/1000),\"\")","v":0},{"$f":"IFERROR(IF(OR($C$144=FALSE,LEFT($B138,3)<>\"NOX\"),M53*INDEX('Damage costs'!$U$16:$U$43,MATCH($B138,'Damage costs'!$C$16:$C$43,0))/1000,M53*INDEX('Damage costs'!$Y$16:$Y$43,MATCH($B138,'Damage costs'!$C$16:$C$43,0))/1000),\"\")","v":0},{"$f":"IFERROR(IF(OR($C$144=FALSE,LEFT($B138,3)<>\"NOX\"),N53*INDEX('Damage costs'!$U$16:$U$43,MATCH($B138,'Damage costs'!$C$16:$C$43,0))/1000,N53*INDEX('Damage costs'!$Y$16:$Y$43,MATCH($B138,'Damage costs'!$C$16:$C$43,0))/1000),\"\")","v":0},{"$f":"IFERROR(IF(OR($C$144=FALSE,LEFT($B138,3)<>\"NOX\"),O53*INDEX('Damage costs'!$U$16:$U$43,MATCH($B138,'Damage costs'!$C$16:$C$43,0))/1000,O53*INDEX('Damage costs'!$Y$16:$Y$43,MATCH($B138,'Damage costs'!$C$16:$C$43,0))/1000),\"\")","v":0},{"$f":"IFERROR(IF(OR($C$144=FALSE,LEFT($B138,3)<>\"NOX\"),P53*INDEX('Damage costs'!$U$16:$U$43,MATCH($B138,'Damage costs'!$C$16:$C$43,0))/1000,P53*INDEX('Damage costs'!$Y$16:$Y$43,MATCH($B138,'Damage costs'!$C$16:$C$43,0))/1000),\"\")","v":0},{"$f":"IFERROR(IF(OR($C$144=FALSE,LEFT($B138,3)<>\"NOX\"),Q53*INDEX('Damage costs'!$U$16:$U$43,MATCH($B138,'Damage costs'!$C$16:$C$43,0))/1000,Q53*INDEX('Damage costs'!$Y$16:$Y$43,MATCH($B138,'Damage costs'!$C$16:$C$43,0))/1000),\"\")","v":0},{"$f":"IFERROR(IF(OR($C$144=FALSE,LEFT($B138,3)<>\"NOX\"),R53*INDEX('Damage costs'!$U$16:$U$43,MATCH($B138,'Damage costs'!$C$16:$C$43,0))/1000,R53*INDEX('Damage costs'!$Y$16:$Y$43,MATCH($B138,'Damage costs'!$C$16:$C$43,0))/1000),\"\")","v":0},{"$f":"IFERROR(IF(OR($C$144=FALSE,LEFT($B138,3)<>\"NOX\"),S53*INDEX('Damage costs'!$U$16:$U$43,MATCH($B138,'Damage costs'!$C$16:$C$43,0))/1000,S53*INDEX('Damage costs'!$Y$16:$Y$43,MATCH($B138,'Damage costs'!$C$16:$C$43,0))/1000),\"\")","v":0},{"$f":"IFERROR(IF(OR($C$144=FALSE,LEFT($B138,3)<>\"NOX\"),T53*INDEX('Damage costs'!$U$16:$U$43,MATCH($B138,'Damage costs'!$C$16:$C$43,0))/1000,T53*INDEX('Damage costs'!$Y$16:$Y$43,MATCH($B138,'Damage costs'!$C$16:$C$43,0))/1000),\"\")","v":0},{"$f":"IFERROR(IF(OR($C$144=FALSE,LEFT($B138,3)<>\"NOX\"),U53*INDEX('Damage costs'!$U$16:$U$43,MATCH($B138,'Damage costs'!$C$16:$C$43,0))/1000,U53*INDEX('Damage costs'!$Y$16:$Y$43,MATCH($B138,'Damage costs'!$C$16:$C$43,0))/1000),\"\")","v":0},{"$f":"IFERROR(IF(OR($C$144=FALSE,LEFT($B138,3)<>\"NOX\"),V53*INDEX('Damage costs'!$U$16:$U$43,MATCH($B138,'Damage costs'!$C$16:$C$43,0))/1000,V53*INDEX('Damage costs'!$Y$16:$Y$43,MATCH($B138,'Damage costs'!$C$16:$C$43,0))/1000),\"\")","v":0},{"$f":"IFERROR(IF(OR($C$144=FALSE,LEFT($B138,3)<>\"NOX\"),W53*INDEX('Damage costs'!$U$16:$U$43,MATCH($B138,'Damage costs'!$C$16:$C$43,0))/1000,W53*INDEX('Damage costs'!$Y$16:$Y$43,MATCH($B138,'Damage costs'!$C$16:$C$43,0))/1000),\"\")","v":0},{"$f":"IFERROR(IF(OR($C$144=FALSE,LEFT($B138,3)<>\"NOX\"),X53*INDEX('Damage costs'!$U$16:$U$43,MATCH($B138,'Damage costs'!$C$16:$C$43,0))/1000,X53*INDEX('Damage costs'!$Y$16:$Y$43,MATCH($B138,'Damage costs'!$C$16:$C$43,0))/1000),\"\")","v":0},{"$f":"IFERROR(IF(OR($C$144=FALSE,LEFT($B138,3)<>\"NOX\"),Y53*INDEX('Damage costs'!$U$16:$U$43,MATCH($B138,'Damage costs'!$C$16:$C$43,0))/1000,Y53*INDEX('Damage costs'!$Y$16:$Y$43,MATCH($B138,'Damage costs'!$C$16:$C$43,0))/1000),\"\")","v":0},{"$f":"IFERROR(IF(OR($C$144=FALSE,LEFT($B138,3)<>\"NOX\"),Z53*INDEX('Damage costs'!$U$16:$U$43,MATCH($B138,'Damage costs'!$C$16:$C$43,0))/1000,Z53*INDEX('Damage costs'!$Y$16:$Y$43,MATCH($B138,'Damage costs'!$C$16:$C$43,0))/1000),\"\")","v":0},{"$f":"IFERROR(IF(OR($C$144=FALSE,LEFT($B138,3)<>\"NOX\"),AA53*INDEX('Damage costs'!$U$16:$U$43,MATCH($B138,'Damage costs'!$C$16:$C$43,0))/1000,AA53*INDEX('Damage costs'!$Y$16:$Y$43,MATCH($B138,'Damage costs'!$C$16:$C$43,0))/1000),\"\")","v":0},{"$f":"IFERROR(IF(OR($C$144=FALSE,LEFT($B138,3)<>\"NOX\"),AB53*INDEX('Damage costs'!$U$16:$U$43,MATCH($B138,'Damage costs'!$C$16:$C$43,0))/1000,AB53*INDEX('Damage costs'!$Y$16:$Y$43,MATCH($B138,'Damage costs'!$C$16:$C$43,0))/1000),\"\")","v":0},{"$f":"IFERROR(IF(OR($C$144=FALSE,LEFT($B138,3)<>\"NOX\"),AC53*INDEX('Damage costs'!$U$16:$U$43,MATCH($B138,'Damage costs'!$C$16:$C$43,0))/1000,AC53*INDEX('Damage costs'!$Y$16:$Y$43,MATCH($B138,'Damage costs'!$C$16:$C$43,0))/1000),\"\")","v":0},{"$f":"IFERROR(IF(OR($C$144=FALSE,LEFT($B138,3)<>\"NOX\"),AD53*INDEX('Damage costs'!$U$16:$U$43,MATCH($B138,'Damage costs'!$C$16:$C$43,0))/1000,AD53*INDEX('Damage costs'!$Y$16:$Y$43,MATCH($B138,'Damage costs'!$C$16:$C$43,0))/1000),\"\")","v":0},{"$f":"IFERROR(IF(OR($C$144=FALSE,LEFT($B138,3)<>\"NOX\"),AE53*INDEX('Damage costs'!$U$16:$U$43,MATCH($B138,'Damage costs'!$C$16:$C$43,0))/1000,AE53*INDEX('Damage costs'!$Y$16:$Y$43,MATCH($B138,'Damage costs'!$C$16:$C$43,0))/1000),\"\")","v":0},{"$f":"IFERROR(IF(OR($C$144=FALSE,LEFT($B138,3)<>\"NOX\"),AF53*INDEX('Damage costs'!$U$16:$U$43,MATCH($B138,'Damage costs'!$C$16:$C$43,0))/1000,AF53*INDEX('Damage costs'!$Y$16:$Y$43,MATCH($B138,'Damage costs'!$C$16:$C$43,0))/1000),\"\")","v":0},{"$f":"IFERROR(IF(OR($C$144=FALSE,LEFT($B138,3)<>\"NOX\"),AG53*INDEX('Damage costs'!$U$16:$U$43,MATCH($B138,'Damage costs'!$C$16:$C$43,0))/1000,AG53*INDEX('Damage costs'!$Y$16:$Y$43,MATCH($B138,'Damage costs'!$C$16:$C$43,0))/1000),\"\")","v":0},{"$f":"IFERROR(IF(OR($C$144=FALSE,LEFT($B138,3)<>\"NOX\"),AH53*INDEX('Damage costs'!$U$16:$U$43,MATCH($B138,'Damage costs'!$C$16:$C$43,0))/1000,AH53*INDEX('Damage costs'!$Y$16:$Y$43,MATCH($B138,'Damage costs'!$C$16:$C$43,0))/1000),\"\")","v":0},{"$f":"IFERROR(IF(OR($C$144=FALSE,LEFT($B138,3)<>\"NOX\"),AI53*INDEX('Damage costs'!$U$16:$U$43,MATCH($B138,'Damage costs'!$C$16:$C$43,0))/1000,AI53*INDEX('Damage costs'!$Y$16:$Y$43,MATCH($B138,'Damage costs'!$C$16:$C$43,0))/1000),\"\")","v":0},{"$f":"IFERROR(IF(OR($C$144=FALSE,LEFT($B138,3)<>\"NOX\"),AJ53*INDEX('Damage costs'!$U$16:$U$43,MATCH($B138,'Damage costs'!$C$16:$C$43,0))/1000,AJ53*INDEX('Damage costs'!$Y$16:$Y$43,MATCH($B138,'Damage costs'!$C$16:$C$43,0))/1000),\"\")","v":0},{"$f":"IFERROR(IF(OR($C$144=FALSE,LEFT($B138,3)<>\"NOX\"),AK53*INDEX('Damage costs'!$U$16:$U$43,MATCH($B138,'Damage costs'!$C$16:$C$43,0))/1000,AK53*INDEX('Damage costs'!$Y$16:$Y$43,MATCH($B138,'Damage costs'!$C$16:$C$43,0))/1000),\"\")","v":0},{"$f":"IFERROR(IF(OR($C$144=FALSE,LEFT($B138,3)<>\"NOX\"),AL53*INDEX('Damage costs'!$U$16:$U$43,MATCH($B138,'Damage costs'!$C$16:$C$43,0))/1000,AL53*INDEX('Damage costs'!$Y$16:$Y$43,MATCH($B138,'Damage costs'!$C$16:$C$43,0))/1000),\"\")","v":0},{"$f":"IFERROR(IF(OR($C$144=FALSE,LEFT($B138,3)<>\"NOX\"),AM53*INDEX('Damage costs'!$U$16:$U$43,MATCH($B138,'Damage costs'!$C$16:$C$43,0))/1000,AM53*INDEX('Damage costs'!$Y$16:$Y$43,MATCH($B138,'Damage costs'!$C$16:$C$43,0))/1000),\"\")","v":0},{"$f":"IFERROR(IF(OR($C$144=FALSE,LEFT($B138,3)<>\"NOX\"),AN53*INDEX('Damage costs'!$U$16:$U$43,MATCH($B138,'Damage costs'!$C$16:$C$43,0))/1000,AN53*INDEX('Damage costs'!$Y$16:$Y$43,MATCH($B138,'Damage costs'!$C$16:$C$43,0))/1000),\"\")","v":0},{"$f":"IFERROR(IF(OR($C$144=FALSE,LEFT($B138,3)<>\"NOX\"),AO53*INDEX('Damage costs'!$U$16:$U$43,MATCH($B138,'Damage costs'!$C$16:$C$43,0))/1000,AO53*INDEX('Damage costs'!$Y$16:$Y$43,MATCH($B138,'Damage costs'!$C$16:$C$43,0))/1000),\"\")","v":0},{"$f":"IFERROR(IF(OR($C$144=FALSE,LEFT($B138,3)<>\"NOX\"),AP53*INDEX('Damage costs'!$U$16:$U$43,MATCH($B138,'Damage costs'!$C$16:$C$43,0))/1000,AP53*INDEX('Damage costs'!$Y$16:$Y$43,MATCH($B138,'Damage costs'!$C$16:$C$43,0))/1000),\"\")","v":0},{"$f":"IFERROR(IF(OR($C$144=FALSE,LEFT($B138,3)<>\"NOX\"),AQ53*INDEX('Damage costs'!$U$16:$U$43,MATCH($B138,'Damage costs'!$C$16:$C$43,0))/1000,AQ53*INDEX('Damage costs'!$Y$16:$Y$43,MATCH($B138,'Damage costs'!$C$16:$C$43,0))/1000),\"\")","v":0},{"$f":"IFERROR(IF(OR($C$144=FALSE,LEFT($B138,3)<>\"NOX\"),AR53*INDEX('Damage costs'!$U$16:$U$43,MATCH($B138,'Damage costs'!$C$16:$C$43,0))/1000,AR53*INDEX('Damage costs'!$Y$16:$Y$43,MATCH($B138,'Damage costs'!$C$16:$C$43,0))/1000),\"\")","v":0},{"$f":"IFERROR(IF(OR($C$144=FALSE,LEFT($B138,3)<>\"NOX\"),AS53*INDEX('Damage costs'!$U$16:$U$43,MATCH($B138,'Damage costs'!$C$16:$C$43,0))/1000,AS53*INDEX('Damage costs'!$Y$16:$Y$43,MATCH($B138,'Damage costs'!$C$16:$C$43,0))/1000),\"\")","v":0},{"$f":"IFERROR(IF(OR($C$144=FALSE,LEFT($B138,3)<>\"NOX\"),AT53*INDEX('Damage costs'!$U$16:$U$43,MATCH($B138,'Damage costs'!$C$16:$C$43,0))/1000,AT53*INDEX('Damage costs'!$Y$16:$Y$43,MATCH($B138,'Damage costs'!$C$16:$C$43,0))/1000),\"\")","v":0},{"$f":"IFERROR(IF(OR($C$144=FALSE,LEFT($B138,3)<>\"NOX\"),AU53*INDEX('Damage costs'!$U$16:$U$43,MATCH($B138,'Damage costs'!$C$16:$C$43,0))/1000,AU53*INDEX('Damage costs'!$Y$16:$Y$43,MATCH($B138,'Damage costs'!$C$16:$C$43,0))/1000),\"\")","v":0},{"$f":"IFERROR(IF(OR($C$144=FALSE,LEFT($B138,3)<>\"NOX\"),AV53*INDEX('Damage costs'!$U$16:$U$43,MATCH($B138,'Damage costs'!$C$16:$C$43,0))/1000,AV53*INDEX('Damage costs'!$Y$16:$Y$43,MATCH($B138,'Damage costs'!$C$16:$C$43,0))/1000),\"\")","v":0},{"$f":"IFERROR(IF(OR($C$144=FALSE,LEFT($B138,3)<>\"NOX\"),AW53*INDEX('Damage costs'!$U$16:$U$43,MATCH($B138,'Damage costs'!$C$16:$C$43,0))/1000,AW53*INDEX('Damage costs'!$Y$16:$Y$43,MATCH($B138,'Damage costs'!$C$16:$C$43,0))/1000),\"\")","v":0},{"$f":"IFERROR(IF(OR($C$144=FALSE,LEFT($B138,3)<>\"NOX\"),AX53*INDEX('Damage costs'!$U$16:$U$43,MATCH($B138,'Damage costs'!$C$16:$C$43,0))/1000,AX53*INDEX('Damage costs'!$Y$16:$Y$43,MATCH($B138,'Damage costs'!$C$16:$C$43,0))/1000),\"\")","v":0},{"$f":"IFERROR(IF(OR($C$144=FALSE,LEFT($B138,3)<>\"NOX\"),AY53*INDEX('Damage costs'!$U$16:$U$43,MATCH($B138,'Damage costs'!$C$16:$C$43,0))/1000,AY53*INDEX('Damage costs'!$Y$16:$Y$43,MATCH($B138,'Damage costs'!$C$16:$C$43,0))/1000),\"\")","v":0},{"$f":"IFERROR(IF(OR($C$144=FALSE,LEFT($B138,3)<>\"NOX\"),AZ53*INDEX('Damage costs'!$U$16:$U$43,MATCH($B138,'Damage costs'!$C$16:$C$43,0))/1000,AZ53*INDEX('Damage costs'!$Y$16:$Y$43,MATCH($B138,'Damage costs'!$C$16:$C$43,0))/1000),\"\")","v":0},{"$f":"IFERROR(IF(OR($C$144=FALSE,LEFT($B138,3)<>\"NOX\"),BA53*INDEX('Damage costs'!$U$16:$U$43,MATCH($B138,'Damage costs'!$C$16:$C$43,0))/1000,BA53*INDEX('Damage costs'!$Y$16:$Y$43,MATCH($B138,'Damage costs'!$C$16:$C$43,0))/1000),\"\")","v":0},{"$f":"IFERROR(IF(OR($C$144=FALSE,LEFT($B138,3)<>\"NOX\"),BB53*INDEX('Damage costs'!$U$16:$U$43,MATCH($B138,'Damage costs'!$C$16:$C$43,0))/1000,BB53*INDEX('Damage costs'!$Y$16:$Y$43,MATCH($B138,'Damage costs'!$C$16:$C$43,0))/1000),\"\")","v":0},{"$f":"IFERROR(IF(OR($C$144=FALSE,LEFT($B138,3)<>\"NOX\"),BC53*INDEX('Damage costs'!$U$16:$U$43,MATCH($B138,'Damage costs'!$C$16:$C$43,0))/1000,BC53*INDEX('Damage costs'!$Y$16:$Y$43,MATCH($B138,'Damage costs'!$C$16:$C$43,0))/1000),\"\")","v":0},{"$f":"IFERROR(IF(OR($C$144=FALSE,LEFT($B138,3)<>\"NOX\"),BD53*INDEX('Damage costs'!$U$16:$U$43,MATCH($B138,'Damage costs'!$C$16:$C$43,0))/1000,BD53*INDEX('Damage costs'!$Y$16:$Y$43,MATCH($B138,'Damage costs'!$C$16:$C$43,0))/1000),\"\")","v":0},{"$f":"IFERROR(IF(OR($C$144=FALSE,LEFT($B138,3)<>\"NOX\"),BE53*INDEX('Damage costs'!$U$16:$U$43,MATCH($B138,'Damage costs'!$C$16:$C$43,0))/1000,BE53*INDEX('Damage costs'!$Y$16:$Y$43,MATCH($B138,'Damage costs'!$C$16:$C$43,0))/1000),\"\")","v":0},{"$f":"IFERROR(IF(OR($C$144=FALSE,LEFT($B138,3)<>\"NOX\"),BF53*INDEX('Damage costs'!$U$16:$U$43,MATCH($B138,'Damage costs'!$C$16:$C$43,0))/1000,BF53*INDEX('Damage costs'!$Y$16:$Y$43,MATCH($B138,'Damage costs'!$C$16:$C$43,0))/1000),\"\")","v":0},{"$f":"IFERROR(IF(OR($C$144=FALSE,LEFT($B138,3)<>\"NOX\"),BG53*INDEX('Damage costs'!$U$16:$U$43,MATCH($B138,'Damage costs'!$C$16:$C$43,0))/1000,BG53*INDEX('Damage costs'!$Y$16:$Y$43,MATCH($B138,'Damage costs'!$C$16:$C$43,0))/1000),\"\")","v":0},{"$f":"IFERROR(IF(OR($C$144=FALSE,LEFT($B138,3)<>\"NOX\"),BH53*INDEX('Damage costs'!$U$16:$U$43,MATCH($B138,'Damage costs'!$C$16:$C$43,0))/1000,BH53*INDEX('Damage costs'!$Y$16:$Y$43,MATCH($B138,'Damage costs'!$C$16:$C$43,0))/1000),\"\")","v":0},{"$f":"IFERROR(IF(OR($C$144=FALSE,LEFT($B138,3)<>\"NOX\"),BI53*INDEX('Damage costs'!$U$16:$U$43,MATCH($B138,'Damage costs'!$C$16:$C$43,0))/1000,BI53*INDEX('Damage costs'!$Y$16:$Y$43,MATCH($B138,'Damage costs'!$C$16:$C$43,0))/1000),\"\")","v":0},{"$f":"IFERROR(IF(OR($C$144=FALSE,LEFT($B138,3)<>\"NOX\"),BJ53*INDEX('Damage costs'!$U$16:$U$43,MATCH($B138,'Damage costs'!$C$16:$C$43,0))/1000,BJ53*INDEX('Damage costs'!$Y$16:$Y$43,MATCH($B138,'Damage costs'!$C$16:$C$43,0))/1000),\"\")","v":0},{"$f":"IFERROR(IF(OR($C$144=FALSE,LEFT($B138,3)<>\"NOX\"),BK53*INDEX('Damage costs'!$U$16:$U$43,MATCH($B138,'Damage costs'!$C$16:$C$43,0))/1000,BK53*INDEX('Damage costs'!$Y$16:$Y$43,MATCH($B138,'Damage costs'!$C$16:$C$43,0))/1000),\"\")","v":0},{"$f":"IFERROR(IF(OR($C$144=FALSE,LEFT($B138,3)<>\"NOX\"),BL53*INDEX('Damage costs'!$U$16:$U$43,MATCH($B138,'Damage costs'!$C$16:$C$43,0))/1000,BL53*INDEX('Damage costs'!$Y$16:$Y$43,MATCH($B138,'Damage costs'!$C$16:$C$43,0))/1000),\"\")","v":0},{"$f":"IFERROR(IF(OR($C$144=FALSE,LEFT($B138,3)<>\"NOX\"),BM53*INDEX('Damage costs'!$U$16:$U$43,MATCH($B138,'Damage costs'!$C$16:$C$43,0))/1000,BM53*INDEX('Damage costs'!$Y$16:$Y$43,MATCH($B138,'Damage costs'!$C$16:$C$43,0))/1000),\"\")","v":0},{"$f":"IFERROR(IF(OR($C$144=FALSE,LEFT($B138,3)<>\"NOX\"),BN53*INDEX('Damage costs'!$U$16:$U$43,MATCH($B138,'Damage costs'!$C$16:$C$43,0))/1000,BN53*INDEX('Damage costs'!$Y$16:$Y$43,MATCH($B138,'Damage costs'!$C$16:$C$43,0))/1000),\"\")","v":0},{"$f":"IFERROR(IF(OR($C$144=FALSE,LEFT($B138,3)<>\"NOX\"),BO53*INDEX('Damage costs'!$U$16:$U$43,MATCH($B138,'Damage costs'!$C$16:$C$43,0))/1000,BO53*INDEX('Damage costs'!$Y$16:$Y$43,MATCH($B138,'Damage costs'!$C$16:$C$43,0))/1000),\"\")","v":0},{"$f":"IFERROR(IF(OR($C$144=FALSE,LEFT($B138,3)<>\"NOX\"),BP53*INDEX('Damage costs'!$U$16:$U$43,MATCH($B138,'Damage costs'!$C$16:$C$43,0))/1000,BP53*INDEX('Damage costs'!$Y$16:$Y$43,MATCH($B138,'Damage costs'!$C$16:$C$43,0))/1000),\"\")","v":0},{"$f":"IFERROR(IF(OR($C$144=FALSE,LEFT($B138,3)<>\"NOX\"),BQ53*INDEX('Damage costs'!$U$16:$U$43,MATCH($B138,'Damage costs'!$C$16:$C$43,0))/1000,BQ53*INDEX('Damage costs'!$Y$16:$Y$43,MATCH($B138,'Damage costs'!$C$16:$C$43,0))/1000),\"\")","v":0},{"$f":"IFERROR(IF(OR($C$144=FALSE,LEFT($B138,3)<>\"NOX\"),BR53*INDEX('Damage costs'!$U$16:$U$43,MATCH($B138,'Damage costs'!$C$16:$C$43,0))/1000,BR53*INDEX('Damage costs'!$Y$16:$Y$43,MATCH($B138,'Damage costs'!$C$16:$C$43,0))/1000),\"\")","v":0},{"$f":"IFERROR(IF(OR($C$144=FALSE,LEFT($B138,3)<>\"NOX\"),BS53*INDEX('Damage costs'!$U$16:$U$43,MATCH($B138,'Damage costs'!$C$16:$C$43,0))/1000,BS53*INDEX('Damage costs'!$Y$16:$Y$43,MATCH($B138,'Damage costs'!$C$16:$C$43,0))/1000),\"\")","v":0},{"$f":"IFERROR(IF(OR($C$144=FALSE,LEFT($B138,3)<>\"NOX\"),BT53*INDEX('Damage costs'!$U$16:$U$43,MATCH($B138,'Damage costs'!$C$16:$C$43,0))/1000,BT53*INDEX('Damage costs'!$Y$16:$Y$43,MATCH($B138,'Damage costs'!$C$16:$C$43,0))/1000),\"\")","v":0},{"$f":"IFERROR(IF(OR($C$144=FALSE,LEFT($B138,3)<>\"NOX\"),BU53*INDEX('Damage costs'!$U$16:$U$43,MATCH($B138,'Damage costs'!$C$16:$C$43,0))/1000,BU53*INDEX('Damage costs'!$Y$16:$Y$43,MATCH($B138,'Damage costs'!$C$16:$C$43,0))/1000),\"\")","v":0},{"$f":"IFERROR(IF(OR($C$144=FALSE,LEFT($B138,3)<>\"NOX\"),BV53*INDEX('Damage costs'!$U$16:$U$43,MATCH($B138,'Damage costs'!$C$16:$C$43,0))/1000,BV53*INDEX('Damage costs'!$Y$16:$Y$43,MATCH($B138,'Damage costs'!$C$16:$C$43,0))/1000),\"\")","v":0},{"$f":"IFERROR(IF(OR($C$144=FALSE,LEFT($B138,3)<>\"NOX\"),BW53*INDEX('Damage costs'!$U$16:$U$43,MATCH($B138,'Damage costs'!$C$16:$C$43,0))/1000,BW53*INDEX('Damage costs'!$Y$16:$Y$43,MATCH($B138,'Damage costs'!$C$16:$C$43,0))/1000),\"\")","v":0},{"$f":"IFERROR(IF(OR($C$144=FALSE,LEFT($B138,3)<>\"NOX\"),BX53*INDEX('Damage costs'!$U$16:$U$43,MATCH($B138,'Damage costs'!$C$16:$C$43,0))/1000,BX53*INDEX('Damage costs'!$Y$16:$Y$43,MATCH($B138,'Damage costs'!$C$16:$C$43,0))/1000),\"\")","v":0},{"$f":"IFERROR(IF(OR($C$144=FALSE,LEFT($B138,3)<>\"NOX\"),BY53*INDEX('Damage costs'!$U$16:$U$43,MATCH($B138,'Damage costs'!$C$16:$C$43,0))/1000,BY53*INDEX('Damage costs'!$Y$16:$Y$43,MATCH($B138,'Damage costs'!$C$16:$C$43,0))/1000),\"\")","v":0},{"$f":"IFERROR(IF(OR($C$144=FALSE,LEFT($B138,3)<>\"NOX\"),BZ53*INDEX('Damage costs'!$U$16:$U$43,MATCH($B138,'Damage costs'!$C$16:$C$43,0))/1000,BZ53*INDEX('Damage costs'!$Y$16:$Y$43,MATCH($B138,'Damage costs'!$C$16:$C$43,0))/1000),\"\")","v":0},{"$f":"IFERROR(IF(OR($C$144=FALSE,LEFT($B138,3)<>\"NOX\"),CA53*INDEX('Damage costs'!$U$16:$U$43,MATCH($B138,'Damage costs'!$C$16:$C$43,0))/1000,CA53*INDEX('Damage costs'!$Y$16:$Y$43,MATCH($B138,'Damage costs'!$C$16:$C$43,0))/1000),\"\")","v":0},{"$f":"IFERROR(IF(OR($C$144=FALSE,LEFT($B138,3)<>\"NOX\"),CB53*INDEX('Damage costs'!$U$16:$U$43,MATCH($B138,'Damage costs'!$C$16:$C$43,0))/1000,CB53*INDEX('Damage costs'!$Y$16:$Y$43,MATCH($B138,'Damage costs'!$C$16:$C$43,0))/1000),\"\")","v":0},{"$f":"IFERROR(IF(OR($C$144=FALSE,LEFT($B138,3)<>\"NOX\"),CC53*INDEX('Damage costs'!$U$16:$U$43,MATCH($B138,'Damage costs'!$C$16:$C$43,0))/1000,CC53*INDEX('Damage costs'!$Y$16:$Y$43,MATCH($B138,'Damage costs'!$C$16:$C$43,0))/1000),\"\")","v":0},{"$f":"IFERROR(IF(OR($C$144=FALSE,LEFT($B138,3)<>\"NOX\"),CD53*INDEX('Damage costs'!$U$16:$U$43,MATCH($B138,'Damage costs'!$C$16:$C$43,0))/1000,CD53*INDEX('Damage costs'!$Y$16:$Y$43,MATCH($B138,'Damage costs'!$C$16:$C$43,0))/1000),\"\")","v":0},{"$f":"IFERROR(IF(OR($C$144=FALSE,LEFT($B138,3)<>\"NOX\"),CE53*INDEX('Damage costs'!$U$16:$U$43,MATCH($B138,'Damage costs'!$C$16:$C$43,0))/1000,CE53*INDEX('Damage costs'!$Y$16:$Y$43,MATCH($B138,'Damage costs'!$C$16:$C$43,0))/1000),\"\")","v":0},{"$f":"IFERROR(IF(OR($C$144=FALSE,LEFT($B138,3)<>\"NOX\"),CF53*INDEX('Damage costs'!$U$16:$U$43,MATCH($B138,'Damage costs'!$C$16:$C$43,0))/1000,CF53*INDEX('Damage costs'!$Y$16:$Y$43,MATCH($B138,'Damage costs'!$C$16:$C$43,0))/1000),\"\")","v":0},{"$f":"IFERROR(IF(OR($C$144=FALSE,LEFT($B138,3)<>\"NOX\"),CG53*INDEX('Damage costs'!$U$16:$U$43,MATCH($B138,'Damage costs'!$C$16:$C$43,0))/1000,CG53*INDEX('Damage costs'!$Y$16:$Y$43,MATCH($B138,'Damage costs'!$C$16:$C$43,0))/1000),\"\")","v":0},{"$f":"IFERROR(IF(OR($C$144=FALSE,LEFT($B138,3)<>\"NOX\"),CH53*INDEX('Damage costs'!$U$16:$U$43,MATCH($B138,'Damage costs'!$C$16:$C$43,0))/1000,CH53*INDEX('Damage costs'!$Y$16:$Y$43,MATCH($B138,'Damage costs'!$C$16:$C$43,0))/1000),\"\")","v":0},{"$f":"IFERROR(IF(OR($C$144=FALSE,LEFT($B138,3)<>\"NOX\"),CI53*INDEX('Damage costs'!$U$16:$U$43,MATCH($B138,'Damage costs'!$C$16:$C$43,0))/1000,CI53*INDEX('Damage costs'!$Y$16:$Y$43,MATCH($B138,'Damage costs'!$C$16:$C$43,0))/1000),\"\")","v":0},{"$f":"IFERROR(IF(OR($C$144=FALSE,LEFT($B138,3)<>\"NOX\"),CJ53*INDEX('Damage costs'!$U$16:$U$43,MATCH($B138,'Damage costs'!$C$16:$C$43,0))/1000,CJ53*INDEX('Damage costs'!$Y$16:$Y$43,MATCH($B138,'Damage costs'!$C$16:$C$43,0))/1000),\"\")","v":0},{"$f":"IFERROR(IF(OR($C$144=FALSE,LEFT($B138,3)<>\"NOX\"),CK53*INDEX('Damage costs'!$U$16:$U$43,MATCH($B138,'Damage costs'!$C$16:$C$43,0))/1000,CK53*INDEX('Damage costs'!$Y$16:$Y$43,MATCH($B138,'Damage costs'!$C$16:$C$43,0))/1000),\"\")","v":0},{"$f":"IFERROR(IF(OR($C$144=FALSE,LEFT($B138,3)<>\"NOX\"),CL53*INDEX('Damage costs'!$U$16:$U$43,MATCH($B138,'Damage costs'!$C$16:$C$43,0))/1000,CL53*INDEX('Damage costs'!$Y$16:$Y$43,MATCH($B138,'Damage costs'!$C$16:$C$43,0))/1000),\"\")","v":0},{"$f":"IFERROR(IF(OR($C$144=FALSE,LEFT($B138,3)<>\"NOX\"),CM53*INDEX('Damage costs'!$U$16:$U$43,MATCH($B138,'Damage costs'!$C$16:$C$43,0))/1000,CM53*INDEX('Damage costs'!$Y$16:$Y$43,MATCH($B138,'Damage costs'!$C$16:$C$43,0))/1000),\"\")","v":0},{"$f":"IFERROR(IF(OR($C$144=FALSE,LEFT($B138,3)<>\"NOX\"),CN53*INDEX('Damage costs'!$U$16:$U$43,MATCH($B138,'Damage costs'!$C$16:$C$43,0))/1000,CN53*INDEX('Damage costs'!$Y$16:$Y$43,MATCH($B138,'Damage costs'!$C$16:$C$43,0))/1000),\"\")","v":0},{"$f":"IFERROR(IF(OR($C$144=FALSE,LEFT($B138,3)<>\"NOX\"),CO53*INDEX('Damage costs'!$U$16:$U$43,MATCH($B138,'Damage costs'!$C$16:$C$43,0))/1000,CO53*INDEX('Damage costs'!$Y$16:$Y$43,MATCH($B138,'Damage costs'!$C$16:$C$43,0))/1000),\"\")","v":0},{"$f":"IFERROR(IF(OR($C$144=FALSE,LEFT($B138,3)<>\"NOX\"),CP53*INDEX('Damage costs'!$U$16:$U$43,MATCH($B138,'Damage costs'!$C$16:$C$43,0))/1000,CP53*INDEX('Damage costs'!$Y$16:$Y$43,MATCH($B138,'Damage costs'!$C$16:$C$43,0))/1000),\"\")","v":0},{"$f":"IFERROR(IF(OR($C$144=FALSE,LEFT($B138,3)<>\"NOX\"),CQ53*INDEX('Damage costs'!$U$16:$U$43,MATCH($B138,'Damage costs'!$C$16:$C$43,0))/1000,CQ53*INDEX('Damage costs'!$Y$16:$Y$43,MATCH($B138,'Damage costs'!$C$16:$C$43,0))/1000),\"\")","v":0},{"$f":"IFERROR(IF(OR($C$144=FALSE,LEFT($B138,3)<>\"NOX\"),CR53*INDEX('Damage costs'!$U$16:$U$43,MATCH($B138,'Damage costs'!$C$16:$C$43,0))/1000,CR53*INDEX('Damage costs'!$Y$16:$Y$43,MATCH($B138,'Damage costs'!$C$16:$C$43,0))/1000),\"\")","v":0},{"$f":"IFERROR(IF(OR($C$144=FALSE,LEFT($B138,3)<>\"NOX\"),CS53*INDEX('Damage costs'!$U$16:$U$43,MATCH($B138,'Damage costs'!$C$16:$C$43,0))/1000,CS53*INDEX('Damage costs'!$Y$16:$Y$43,MATCH($B138,'Damage costs'!$C$16:$C$43,0))/1000),\"\")","v":0},{"$f":"IFERROR(IF(OR($C$144=FALSE,LEFT($B138,3)<>\"NOX\"),CT53*INDEX('Damage costs'!$U$16:$U$43,MATCH($B138,'Damage costs'!$C$16:$C$43,0))/1000,CT53*INDEX('Damage costs'!$Y$16:$Y$43,MATCH($B138,'Damage costs'!$C$16:$C$43,0))/1000),\"\")","v":0},{"$f":"IFERROR(IF(OR($C$144=FALSE,LEFT($B138,3)<>\"NOX\"),CU53*INDEX('Damage costs'!$U$16:$U$43,MATCH($B138,'Damage costs'!$C$16:$C$43,0))/1000,CU53*INDEX('Damage costs'!$Y$16:$Y$43,MATCH($B138,'Damage costs'!$C$16:$C$43,0))/1000),\"\")","v":0},{"$f":"IFERROR(IF(OR($C$144=FALSE,LEFT($B138,3)<>\"NOX\"),CV53*INDEX('Damage costs'!$U$16:$U$43,MATCH($B138,'Damage costs'!$C$16:$C$43,0))/1000,CV53*INDEX('Damage costs'!$Y$16:$Y$43,MATCH($B138,'Damage costs'!$C$16:$C$43,0))/1000),\"\")","v":0},{"$f":"IFERROR(IF(OR($C$144=FALSE,LEFT($B138,3)<>\"NOX\"),CW53*INDEX('Damage costs'!$U$16:$U$43,MATCH($B138,'Damage costs'!$C$16:$C$43,0))/1000,CW53*INDEX('Damage costs'!$Y$16:$Y$43,MATCH($B138,'Damage costs'!$C$16:$C$43,0))/1000),\"\")","v":0},{"$f":"IFERROR(IF(OR($C$144=FALSE,LEFT($B138,3)<>\"NOX\"),CX53*INDEX('Damage costs'!$U$16:$U$43,MATCH($B138,'Damage costs'!$C$16:$C$43,0))/1000,CX53*INDEX('Damage costs'!$Y$16:$Y$43,MATCH($B138,'Damage costs'!$C$16:$C$43,0))/1000),\"\")","v":0},{"$f":"IFERROR(IF(OR($C$144=FALSE,LEFT($B138,3)<>\"NOX\"),CY53*INDEX('Damage costs'!$U$16:$U$43,MATCH($B138,'Damage costs'!$C$16:$C$43,0))/1000,CY53*INDEX('Damage costs'!$Y$16:$Y$43,MATCH($B138,'Damage costs'!$C$16:$C$43,0))/1000),\"\")","v":0}]
[null,0,"£000's",{"$f":"IFERROR(IF(OR($C$144=FALSE,LEFT($B139,3)<>\"NOX\"),D54*INDEX('Damage costs'!$U$16:$U$43,MATCH($B139,'Damage costs'!$C$16:$C$43,0))/1000,D54*INDEX('Damage costs'!$Y$16:$Y$43,MATCH($B139,'Damage costs'!$C$16:$C$43,0))/1000),\"\")","v":""},{"$f":"IFERROR(IF(OR($C$144=FALSE,LEFT($B139,3)<>\"NOX\"),E54*INDEX('Damage costs'!$U$16:$U$43,MATCH($B139,'Damage costs'!$C$16:$C$43,0))/1000,E54*INDEX('Damage costs'!$Y$16:$Y$43,MATCH($B139,'Damage costs'!$C$16:$C$43,0))/1000),\"\")","v":""},{"$f":"IFERROR(IF(OR($C$144=FALSE,LEFT($B139,3)<>\"NOX\"),F54*INDEX('Damage costs'!$U$16:$U$43,MATCH($B139,'Damage costs'!$C$16:$C$43,0))/1000,F54*INDEX('Damage costs'!$Y$16:$Y$43,MATCH($B139,'Damage costs'!$C$16:$C$43,0))/1000),\"\")","v":""},{"$f":"IFERROR(IF(OR($C$144=FALSE,LEFT($B139,3)<>\"NOX\"),G54*INDEX('Damage costs'!$U$16:$U$43,MATCH($B139,'Damage costs'!$C$16:$C$43,0))/1000,G54*INDEX('Damage costs'!$Y$16:$Y$43,MATCH($B139,'Damage costs'!$C$16:$C$43,0))/1000),\"\")","v":""},{"$f":"IFERROR(IF(OR($C$144=FALSE,LEFT($B139,3)<>\"NOX\"),H54*INDEX('Damage costs'!$U$16:$U$43,MATCH($B139,'Damage costs'!$C$16:$C$43,0))/1000,H54*INDEX('Damage costs'!$Y$16:$Y$43,MATCH($B139,'Damage costs'!$C$16:$C$43,0))/1000),\"\")","v":""},{"$f":"IFERROR(IF(OR($C$144=FALSE,LEFT($B139,3)<>\"NOX\"),I54*INDEX('Damage costs'!$U$16:$U$43,MATCH($B139,'Damage costs'!$C$16:$C$43,0))/1000,I54*INDEX('Damage costs'!$Y$16:$Y$43,MATCH($B139,'Damage costs'!$C$16:$C$43,0))/1000),\"\")","v":""},{"$f":"IFERROR(IF(OR($C$144=FALSE,LEFT($B139,3)<>\"NOX\"),J54*INDEX('Damage costs'!$U$16:$U$43,MATCH($B139,'Damage costs'!$C$16:$C$43,0))/1000,J54*INDEX('Damage costs'!$Y$16:$Y$43,MATCH($B139,'Damage costs'!$C$16:$C$43,0))/1000),\"\")","v":""},{"$f":"IFERROR(IF(OR($C$144=FALSE,LEFT($B139,3)<>\"NOX\"),K54*INDEX('Damage costs'!$U$16:$U$43,MATCH($B139,'Damage costs'!$C$16:$C$43,0))/1000,K54*INDEX('Damage costs'!$Y$16:$Y$43,MATCH($B139,'Damage costs'!$C$16:$C$43,0))/1000),\"\")","v":""},{"$f":"IFERROR(IF(OR($C$144=FALSE,LEFT($B139,3)<>\"NOX\"),L54*INDEX('Damage costs'!$U$16:$U$43,MATCH($B139,'Damage costs'!$C$16:$C$43,0))/1000,L54*INDEX('Damage costs'!$Y$16:$Y$43,MATCH($B139,'Damage costs'!$C$16:$C$43,0))/1000),\"\")","v":""},{"$f":"IFERROR(IF(OR($C$144=FALSE,LEFT($B139,3)<>\"NOX\"),M54*INDEX('Damage costs'!$U$16:$U$43,MATCH($B139,'Damage costs'!$C$16:$C$43,0))/1000,M54*INDEX('Damage costs'!$Y$16:$Y$43,MATCH($B139,'Damage costs'!$C$16:$C$43,0))/1000),\"\")","v":""},{"$f":"IFERROR(IF(OR($C$144=FALSE,LEFT($B139,3)<>\"NOX\"),N54*INDEX('Damage costs'!$U$16:$U$43,MATCH($B139,'Damage costs'!$C$16:$C$43,0))/1000,N54*INDEX('Damage costs'!$Y$16:$Y$43,MATCH($B139,'Damage costs'!$C$16:$C$43,0))/1000),\"\")","v":""},{"$f":"IFERROR(IF(OR($C$144=FALSE,LEFT($B139,3)<>\"NOX\"),O54*INDEX('Damage costs'!$U$16:$U$43,MATCH($B139,'Damage costs'!$C$16:$C$43,0))/1000,O54*INDEX('Damage costs'!$Y$16:$Y$43,MATCH($B139,'Damage costs'!$C$16:$C$43,0))/1000),\"\")","v":""},{"$f":"IFERROR(IF(OR($C$144=FALSE,LEFT($B139,3)<>\"NOX\"),P54*INDEX('Damage costs'!$U$16:$U$43,MATCH($B139,'Damage costs'!$C$16:$C$43,0))/1000,P54*INDEX('Damage costs'!$Y$16:$Y$43,MATCH($B139,'Damage costs'!$C$16:$C$43,0))/1000),\"\")","v":""},{"$f":"IFERROR(IF(OR($C$144=FALSE,LEFT($B139,3)<>\"NOX\"),Q54*INDEX('Damage costs'!$U$16:$U$43,MATCH($B139,'Damage costs'!$C$16:$C$43,0))/1000,Q54*INDEX('Damage costs'!$Y$16:$Y$43,MATCH($B139,'Damage costs'!$C$16:$C$43,0))/1000),\"\")","v":""},{"$f":"IFERROR(IF(OR($C$144=FALSE,LEFT($B139,3)<>\"NOX\"),R54*INDEX('Damage costs'!$U$16:$U$43,MATCH($B139,'Damage costs'!$C$16:$C$43,0))/1000,R54*INDEX('Damage costs'!$Y$16:$Y$43,MATCH($B139,'Damage costs'!$C$16:$C$43,0))/1000),\"\")","v":""},{"$f":"IFERROR(IF(OR($C$144=FALSE,LEFT($B139,3)<>\"NOX\"),S54*INDEX('Damage costs'!$U$16:$U$43,MATCH($B139,'Damage costs'!$C$16:$C$43,0))/1000,S54*INDEX('Damage costs'!$Y$16:$Y$43,MATCH($B139,'Damage costs'!$C$16:$C$43,0))/1000),\"\")","v":""},{"$f":"IFERROR(IF(OR($C$144=FALSE,LEFT($B139,3)<>\"NOX\"),T54*INDEX('Damage costs'!$U$16:$U$43,MATCH($B139,'Damage costs'!$C$16:$C$43,0))/1000,T54*INDEX('Damage costs'!$Y$16:$Y$43,MATCH($B139,'Damage costs'!$C$16:$C$43,0))/1000),\"\")","v":""},{"$f":"IFERROR(IF(OR($C$144=FALSE,LEFT($B139,3)<>\"NOX\"),U54*INDEX('Damage costs'!$U$16:$U$43,MATCH($B139,'Damage costs'!$C$16:$C$43,0))/1000,U54*INDEX('Damage costs'!$Y$16:$Y$43,MATCH($B139,'Damage costs'!$C$16:$C$43,0))/1000),\"\")","v":""},{"$f":"IFERROR(IF(OR($C$144=FALSE,LEFT($B139,3)<>\"NOX\"),V54*INDEX('Damage costs'!$U$16:$U$43,MATCH($B139,'Damage costs'!$C$16:$C$43,0))/1000,V54*INDEX('Damage costs'!$Y$16:$Y$43,MATCH($B139,'Damage costs'!$C$16:$C$43,0))/1000),\"\")","v":""},{"$f":"IFERROR(IF(OR($C$144=FALSE,LEFT($B139,3)<>\"NOX\"),W54*INDEX('Damage costs'!$U$16:$U$43,MATCH($B139,'Damage costs'!$C$16:$C$43,0))/1000,W54*INDEX('Damage costs'!$Y$16:$Y$43,MATCH($B139,'Damage costs'!$C$16:$C$43,0))/1000),\"\")","v":""},{"$f":"IFERROR(IF(OR($C$144=FALSE,LEFT($B139,3)<>\"NOX\"),X54*INDEX('Damage costs'!$U$16:$U$43,MATCH($B139,'Damage costs'!$C$16:$C$43,0))/1000,X54*INDEX('Damage costs'!$Y$16:$Y$43,MATCH($B139,'Damage costs'!$C$16:$C$43,0))/1000),\"\")","v":""},{"$f":"IFERROR(IF(OR($C$144=FALSE,LEFT($B139,3)<>\"NOX\"),Y54*INDEX('Damage costs'!$U$16:$U$43,MATCH($B139,'Damage costs'!$C$16:$C$43,0))/1000,Y54*INDEX('Damage costs'!$Y$16:$Y$43,MATCH($B139,'Damage costs'!$C$16:$C$43,0))/1000),\"\")","v":""},{"$f":"IFERROR(IF(OR($C$144=FALSE,LEFT($B139,3)<>\"NOX\"),Z54*INDEX('Damage costs'!$U$16:$U$43,MATCH($B139,'Damage costs'!$C$16:$C$43,0))/1000,Z54*INDEX('Damage costs'!$Y$16:$Y$43,MATCH($B139,'Damage costs'!$C$16:$C$43,0))/1000),\"\")","v":""},{"$f":"IFERROR(IF(OR($C$144=FALSE,LEFT($B139,3)<>\"NOX\"),AA54*INDEX('Damage costs'!$U$16:$U$43,MATCH($B139,'Damage costs'!$C$16:$C$43,0))/1000,AA54*INDEX('Damage costs'!$Y$16:$Y$43,MATCH($B139,'Damage costs'!$C$16:$C$43,0))/1000),\"\")","v":""},{"$f":"IFERROR(IF(OR($C$144=FALSE,LEFT($B139,3)<>\"NOX\"),AB54*INDEX('Damage costs'!$U$16:$U$43,MATCH($B139,'Damage costs'!$C$16:$C$43,0))/1000,AB54*INDEX('Damage costs'!$Y$16:$Y$43,MATCH($B139,'Damage costs'!$C$16:$C$43,0))/1000),\"\")","v":""},{"$f":"IFERROR(IF(OR($C$144=FALSE,LEFT($B139,3)<>\"NOX\"),AC54*INDEX('Damage costs'!$U$16:$U$43,MATCH($B139,'Damage costs'!$C$16:$C$43,0))/1000,AC54*INDEX('Damage costs'!$Y$16:$Y$43,MATCH($B139,'Damage costs'!$C$16:$C$43,0))/1000),\"\")","v":""},{"$f":"IFERROR(IF(OR($C$144=FALSE,LEFT($B139,3)<>\"NOX\"),AD54*INDEX('Damage costs'!$U$16:$U$43,MATCH($B139,'Damage costs'!$C$16:$C$43,0))/1000,AD54*INDEX('Damage costs'!$Y$16:$Y$43,MATCH($B139,'Damage costs'!$C$16:$C$43,0))/1000),\"\")","v":""},{"$f":"IFERROR(IF(OR($C$144=FALSE,LEFT($B139,3)<>\"NOX\"),AE54*INDEX('Damage costs'!$U$16:$U$43,MATCH($B139,'Damage costs'!$C$16:$C$43,0))/1000,AE54*INDEX('Damage costs'!$Y$16:$Y$43,MATCH($B139,'Damage costs'!$C$16:$C$43,0))/1000),\"\")","v":""},{"$f":"IFERROR(IF(OR($C$144=FALSE,LEFT($B139,3)<>\"NOX\"),AF54*INDEX('Damage costs'!$U$16:$U$43,MATCH($B139,'Damage costs'!$C$16:$C$43,0))/1000,AF54*INDEX('Damage costs'!$Y$16:$Y$43,MATCH($B139,'Damage costs'!$C$16:$C$43,0))/1000),\"\")","v":""},{"$f":"IFERROR(IF(OR($C$144=FALSE,LEFT($B139,3)<>\"NOX\"),AG54*INDEX('Damage costs'!$U$16:$U$43,MATCH($B139,'Damage costs'!$C$16:$C$43,0))/1000,AG54*INDEX('Damage costs'!$Y$16:$Y$43,MATCH($B139,'Damage costs'!$C$16:$C$43,0))/1000),\"\")","v":""},{"$f":"IFERROR(IF(OR($C$144=FALSE,LEFT($B139,3)<>\"NOX\"),AH54*INDEX('Damage costs'!$U$16:$U$43,MATCH($B139,'Damage costs'!$C$16:$C$43,0))/1000,AH54*INDEX('Damage costs'!$Y$16:$Y$43,MATCH($B139,'Damage costs'!$C$16:$C$43,0))/1000),\"\")","v":""},{"$f":"IFERROR(IF(OR($C$144=FALSE,LEFT($B139,3)<>\"NOX\"),AI54*INDEX('Damage costs'!$U$16:$U$43,MATCH($B139,'Damage costs'!$C$16:$C$43,0))/1000,AI54*INDEX('Damage costs'!$Y$16:$Y$43,MATCH($B139,'Damage costs'!$C$16:$C$43,0))/1000),\"\")","v":""},{"$f":"IFERROR(IF(OR($C$144=FALSE,LEFT($B139,3)<>\"NOX\"),AJ54*INDEX('Damage costs'!$U$16:$U$43,MATCH($B139,'Damage costs'!$C$16:$C$43,0))/1000,AJ54*INDEX('Damage costs'!$Y$16:$Y$43,MATCH($B139,'Damage costs'!$C$16:$C$43,0))/1000),\"\")","v":""},{"$f":"IFERROR(IF(OR($C$144=FALSE,LEFT($B139,3)<>\"NOX\"),AK54*INDEX('Damage costs'!$U$16:$U$43,MATCH($B139,'Damage costs'!$C$16:$C$43,0))/1000,AK54*INDEX('Damage costs'!$Y$16:$Y$43,MATCH($B139,'Damage costs'!$C$16:$C$43,0))/1000),\"\")","v":""},{"$f":"IFERROR(IF(OR($C$144=FALSE,LEFT($B139,3)<>\"NOX\"),AL54*INDEX('Damage costs'!$U$16:$U$43,MATCH($B139,'Damage costs'!$C$16:$C$43,0))/1000,AL54*INDEX('Damage costs'!$Y$16:$Y$43,MATCH($B139,'Damage costs'!$C$16:$C$43,0))/1000),\"\")","v":""},{"$f":"IFERROR(IF(OR($C$144=FALSE,LEFT($B139,3)<>\"NOX\"),AM54*INDEX('Damage costs'!$U$16:$U$43,MATCH($B139,'Damage costs'!$C$16:$C$43,0))/1000,AM54*INDEX('Damage costs'!$Y$16:$Y$43,MATCH($B139,'Damage costs'!$C$16:$C$43,0))/1000),\"\")","v":""},{"$f":"IFERROR(IF(OR($C$144=FALSE,LEFT($B139,3)<>\"NOX\"),AN54*INDEX('Damage costs'!$U$16:$U$43,MATCH($B139,'Damage costs'!$C$16:$C$43,0))/1000,AN54*INDEX('Damage costs'!$Y$16:$Y$43,MATCH($B139,'Damage costs'!$C$16:$C$43,0))/1000),\"\")","v":""},{"$f":"IFERROR(IF(OR($C$144=FALSE,LEFT($B139,3)<>\"NOX\"),AO54*INDEX('Damage costs'!$U$16:$U$43,MATCH($B139,'Damage costs'!$C$16:$C$43,0))/1000,AO54*INDEX('Damage costs'!$Y$16:$Y$43,MATCH($B139,'Damage costs'!$C$16:$C$43,0))/1000),\"\")","v":""},{"$f":"IFERROR(IF(OR($C$144=FALSE,LEFT($B139,3)<>\"NOX\"),AP54*INDEX('Damage costs'!$U$16:$U$43,MATCH($B139,'Damage costs'!$C$16:$C$43,0))/1000,AP54*INDEX('Damage costs'!$Y$16:$Y$43,MATCH($B139,'Damage costs'!$C$16:$C$43,0))/1000),\"\")","v":""},{"$f":"IFERROR(IF(OR($C$144=FALSE,LEFT($B139,3)<>\"NOX\"),AQ54*INDEX('Damage costs'!$U$16:$U$43,MATCH($B139,'Damage costs'!$C$16:$C$43,0))/1000,AQ54*INDEX('Damage costs'!$Y$16:$Y$43,MATCH($B139,'Damage costs'!$C$16:$C$43,0))/1000),\"\")","v":""},{"$f":"IFERROR(IF(OR($C$144=FALSE,LEFT($B139,3)<>\"NOX\"),AR54*INDEX('Damage costs'!$U$16:$U$43,MATCH($B139,'Damage costs'!$C$16:$C$43,0))/1000,AR54*INDEX('Damage costs'!$Y$16:$Y$43,MATCH($B139,'Damage costs'!$C$16:$C$43,0))/1000),\"\")","v":""},{"$f":"IFERROR(IF(OR($C$144=FALSE,LEFT($B139,3)<>\"NOX\"),AS54*INDEX('Damage costs'!$U$16:$U$43,MATCH($B139,'Damage costs'!$C$16:$C$43,0))/1000,AS54*INDEX('Damage costs'!$Y$16:$Y$43,MATCH($B139,'Damage costs'!$C$16:$C$43,0))/1000),\"\")","v":""},{"$f":"IFERROR(IF(OR($C$144=FALSE,LEFT($B139,3)<>\"NOX\"),AT54*INDEX('Damage costs'!$U$16:$U$43,MATCH($B139,'Damage costs'!$C$16:$C$43,0))/1000,AT54*INDEX('Damage costs'!$Y$16:$Y$43,MATCH($B139,'Damage costs'!$C$16:$C$43,0))/1000),\"\")","v":""},{"$f":"IFERROR(IF(OR($C$144=FALSE,LEFT($B139,3)<>\"NOX\"),AU54*INDEX('Damage costs'!$U$16:$U$43,MATCH($B139,'Damage costs'!$C$16:$C$43,0))/1000,AU54*INDEX('Damage costs'!$Y$16:$Y$43,MATCH($B139,'Damage costs'!$C$16:$C$43,0))/1000),\"\")","v":""},{"$f":"IFERROR(IF(OR($C$144=FALSE,LEFT($B139,3)<>\"NOX\"),AV54*INDEX('Damage costs'!$U$16:$U$43,MATCH($B139,'Damage costs'!$C$16:$C$43,0))/1000,AV54*INDEX('Damage costs'!$Y$16:$Y$43,MATCH($B139,'Damage costs'!$C$16:$C$43,0))/1000),\"\")","v":""},{"$f":"IFERROR(IF(OR($C$144=FALSE,LEFT($B139,3)<>\"NOX\"),AW54*INDEX('Damage costs'!$U$16:$U$43,MATCH($B139,'Damage costs'!$C$16:$C$43,0))/1000,AW54*INDEX('Damage costs'!$Y$16:$Y$43,MATCH($B139,'Damage costs'!$C$16:$C$43,0))/1000),\"\")","v":""},{"$f":"IFERROR(IF(OR($C$144=FALSE,LEFT($B139,3)<>\"NOX\"),AX54*INDEX('Damage costs'!$U$16:$U$43,MATCH($B139,'Damage costs'!$C$16:$C$43,0))/1000,AX54*INDEX('Damage costs'!$Y$16:$Y$43,MATCH($B139,'Damage costs'!$C$16:$C$43,0))/1000),\"\")","v":""},{"$f":"IFERROR(IF(OR($C$144=FALSE,LEFT($B139,3)<>\"NOX\"),AY54*INDEX('Damage costs'!$U$16:$U$43,MATCH($B139,'Damage costs'!$C$16:$C$43,0))/1000,AY54*INDEX('Damage costs'!$Y$16:$Y$43,MATCH($B139,'Damage costs'!$C$16:$C$43,0))/1000),\"\")","v":""},{"$f":"IFERROR(IF(OR($C$144=FALSE,LEFT($B139,3)<>\"NOX\"),AZ54*INDEX('Damage costs'!$U$16:$U$43,MATCH($B139,'Damage costs'!$C$16:$C$43,0))/1000,AZ54*INDEX('Damage costs'!$Y$16:$Y$43,MATCH($B139,'Damage costs'!$C$16:$C$43,0))/1000),\"\")","v":""},{"$f":"IFERROR(IF(OR($C$144=FALSE,LEFT($B139,3)<>\"NOX\"),BA54*INDEX('Damage costs'!$U$16:$U$43,MATCH($B139,'Damage costs'!$C$16:$C$43,0))/1000,BA54*INDEX('Damage costs'!$Y$16:$Y$43,MATCH($B139,'Damage costs'!$C$16:$C$43,0))/1000),\"\")","v":""},{"$f":"IFERROR(IF(OR($C$144=FALSE,LEFT($B139,3)<>\"NOX\"),BB54*INDEX('Damage costs'!$U$16:$U$43,MATCH($B139,'Damage costs'!$C$16:$C$43,0))/1000,BB54*INDEX('Damage costs'!$Y$16:$Y$43,MATCH($B139,'Damage costs'!$C$16:$C$43,0))/1000),\"\")","v":""},{"$f":"IFERROR(IF(OR($C$144=FALSE,LEFT($B139,3)<>\"NOX\"),BC54*INDEX('Damage costs'!$U$16:$U$43,MATCH($B139,'Damage costs'!$C$16:$C$43,0))/1000,BC54*INDEX('Damage costs'!$Y$16:$Y$43,MATCH($B139,'Damage costs'!$C$16:$C$43,0))/1000),\"\")","v":""},{"$f":"IFERROR(IF(OR($C$144=FALSE,LEFT($B139,3)<>\"NOX\"),BD54*INDEX('Damage costs'!$U$16:$U$43,MATCH($B139,'Damage costs'!$C$16:$C$43,0))/1000,BD54*INDEX('Damage costs'!$Y$16:$Y$43,MATCH($B139,'Damage costs'!$C$16:$C$43,0))/1000),\"\")","v":""},{"$f":"IFERROR(IF(OR($C$144=FALSE,LEFT($B139,3)<>\"NOX\"),BE54*INDEX('Damage costs'!$U$16:$U$43,MATCH($B139,'Damage costs'!$C$16:$C$43,0))/1000,BE54*INDEX('Damage costs'!$Y$16:$Y$43,MATCH($B139,'Damage costs'!$C$16:$C$43,0))/1000),\"\")","v":""},{"$f":"IFERROR(IF(OR($C$144=FALSE,LEFT($B139,3)<>\"NOX\"),BF54*INDEX('Damage costs'!$U$16:$U$43,MATCH($B139,'Damage costs'!$C$16:$C$43,0))/1000,BF54*INDEX('Damage costs'!$Y$16:$Y$43,MATCH($B139,'Damage costs'!$C$16:$C$43,0))/1000),\"\")","v":""},{"$f":"IFERROR(IF(OR($C$144=FALSE,LEFT($B139,3)<>\"NOX\"),BG54*INDEX('Damage costs'!$U$16:$U$43,MATCH($B139,'Damage costs'!$C$16:$C$43,0))/1000,BG54*INDEX('Damage costs'!$Y$16:$Y$43,MATCH($B139,'Damage costs'!$C$16:$C$43,0))/1000),\"\")","v":""},{"$f":"IFERROR(IF(OR($C$144=FALSE,LEFT($B139,3)<>\"NOX\"),BH54*INDEX('Damage costs'!$U$16:$U$43,MATCH($B139,'Damage costs'!$C$16:$C$43,0))/1000,BH54*INDEX('Damage costs'!$Y$16:$Y$43,MATCH($B139,'Damage costs'!$C$16:$C$43,0))/1000),\"\")","v":""},{"$f":"IFERROR(IF(OR($C$144=FALSE,LEFT($B139,3)<>\"NOX\"),BI54*INDEX('Damage costs'!$U$16:$U$43,MATCH($B139,'Damage costs'!$C$16:$C$43,0))/1000,BI54*INDEX('Damage costs'!$Y$16:$Y$43,MATCH($B139,'Damage costs'!$C$16:$C$43,0))/1000),\"\")","v":""},{"$f":"IFERROR(IF(OR($C$144=FALSE,LEFT($B139,3)<>\"NOX\"),BJ54*INDEX('Damage costs'!$U$16:$U$43,MATCH($B139,'Damage costs'!$C$16:$C$43,0))/1000,BJ54*INDEX('Damage costs'!$Y$16:$Y$43,MATCH($B139,'Damage costs'!$C$16:$C$43,0))/1000),\"\")","v":""},{"$f":"IFERROR(IF(OR($C$144=FALSE,LEFT($B139,3)<>\"NOX\"),BK54*INDEX('Damage costs'!$U$16:$U$43,MATCH($B139,'Damage costs'!$C$16:$C$43,0))/1000,BK54*INDEX('Damage costs'!$Y$16:$Y$43,MATCH($B139,'Damage costs'!$C$16:$C$43,0))/1000),\"\")","v":""},{"$f":"IFERROR(IF(OR($C$144=FALSE,LEFT($B139,3)<>\"NOX\"),BL54*INDEX('Damage costs'!$U$16:$U$43,MATCH($B139,'Damage costs'!$C$16:$C$43,0))/1000,BL54*INDEX('Damage costs'!$Y$16:$Y$43,MATCH($B139,'Damage costs'!$C$16:$C$43,0))/1000),\"\")","v":""},{"$f":"IFERROR(IF(OR($C$144=FALSE,LEFT($B139,3)<>\"NOX\"),BM54*INDEX('Damage costs'!$U$16:$U$43,MATCH($B139,'Damage costs'!$C$16:$C$43,0))/1000,BM54*INDEX('Damage costs'!$Y$16:$Y$43,MATCH($B139,'Damage costs'!$C$16:$C$43,0))/1000),\"\")","v":""},{"$f":"IFERROR(IF(OR($C$144=FALSE,LEFT($B139,3)<>\"NOX\"),BN54*INDEX('Damage costs'!$U$16:$U$43,MATCH($B139,'Damage costs'!$C$16:$C$43,0))/1000,BN54*INDEX('Damage costs'!$Y$16:$Y$43,MATCH($B139,'Damage costs'!$C$16:$C$43,0))/1000),\"\")","v":""},{"$f":"IFERROR(IF(OR($C$144=FALSE,LEFT($B139,3)<>\"NOX\"),BO54*INDEX('Damage costs'!$U$16:$U$43,MATCH($B139,'Damage costs'!$C$16:$C$43,0))/1000,BO54*INDEX('Damage costs'!$Y$16:$Y$43,MATCH($B139,'Damage costs'!$C$16:$C$43,0))/1000),\"\")","v":""},{"$f":"IFERROR(IF(OR($C$144=FALSE,LEFT($B139,3)<>\"NOX\"),BP54*INDEX('Damage costs'!$U$16:$U$43,MATCH($B139,'Damage costs'!$C$16:$C$43,0))/1000,BP54*INDEX('Damage costs'!$Y$16:$Y$43,MATCH($B139,'Damage costs'!$C$16:$C$43,0))/1000),\"\")","v":""},{"$f":"IFERROR(IF(OR($C$144=FALSE,LEFT($B139,3)<>\"NOX\"),BQ54*INDEX('Damage costs'!$U$16:$U$43,MATCH($B139,'Damage costs'!$C$16:$C$43,0))/1000,BQ54*INDEX('Damage costs'!$Y$16:$Y$43,MATCH($B139,'Damage costs'!$C$16:$C$43,0))/1000),\"\")","v":""},{"$f":"IFERROR(IF(OR($C$144=FALSE,LEFT($B139,3)<>\"NOX\"),BR54*INDEX('Damage costs'!$U$16:$U$43,MATCH($B139,'Damage costs'!$C$16:$C$43,0))/1000,BR54*INDEX('Damage costs'!$Y$16:$Y$43,MATCH($B139,'Damage costs'!$C$16:$C$43,0))/1000),\"\")","v":""},{"$f":"IFERROR(IF(OR($C$144=FALSE,LEFT($B139,3)<>\"NOX\"),BS54*INDEX('Damage costs'!$U$16:$U$43,MATCH($B139,'Damage costs'!$C$16:$C$43,0))/1000,BS54*INDEX('Damage costs'!$Y$16:$Y$43,MATCH($B139,'Damage costs'!$C$16:$C$43,0))/1000),\"\")","v":""},{"$f":"IFERROR(IF(OR($C$144=FALSE,LEFT($B139,3)<>\"NOX\"),BT54*INDEX('Damage costs'!$U$16:$U$43,MATCH($B139,'Damage costs'!$C$16:$C$43,0))/1000,BT54*INDEX('Damage costs'!$Y$16:$Y$43,MATCH($B139,'Damage costs'!$C$16:$C$43,0))/1000),\"\")","v":""},{"$f":"IFERROR(IF(OR($C$144=FALSE,LEFT($B139,3)<>\"NOX\"),BU54*INDEX('Damage costs'!$U$16:$U$43,MATCH($B139,'Damage costs'!$C$16:$C$43,0))/1000,BU54*INDEX('Damage costs'!$Y$16:$Y$43,MATCH($B139,'Damage costs'!$C$16:$C$43,0))/1000),\"\")","v":""},{"$f":"IFERROR(IF(OR($C$144=FALSE,LEFT($B139,3)<>\"NOX\"),BV54*INDEX('Damage costs'!$U$16:$U$43,MATCH($B139,'Damage costs'!$C$16:$C$43,0))/1000,BV54*INDEX('Damage costs'!$Y$16:$Y$43,MATCH($B139,'Damage costs'!$C$16:$C$43,0))/1000),\"\")","v":""},{"$f":"IFERROR(IF(OR($C$144=FALSE,LEFT($B139,3)<>\"NOX\"),BW54*INDEX('Damage costs'!$U$16:$U$43,MATCH($B139,'Damage costs'!$C$16:$C$43,0))/1000,BW54*INDEX('Damage costs'!$Y$16:$Y$43,MATCH($B139,'Damage costs'!$C$16:$C$43,0))/1000),\"\")","v":""},{"$f":"IFERROR(IF(OR($C$144=FALSE,LEFT($B139,3)<>\"NOX\"),BX54*INDEX('Damage costs'!$U$16:$U$43,MATCH($B139,'Damage costs'!$C$16:$C$43,0))/1000,BX54*INDEX('Damage costs'!$Y$16:$Y$43,MATCH($B139,'Damage costs'!$C$16:$C$43,0))/1000),\"\")","v":""},{"$f":"IFERROR(IF(OR($C$144=FALSE,LEFT($B139,3)<>\"NOX\"),BY54*INDEX('Damage costs'!$U$16:$U$43,MATCH($B139,'Damage costs'!$C$16:$C$43,0))/1000,BY54*INDEX('Damage costs'!$Y$16:$Y$43,MATCH($B139,'Damage costs'!$C$16:$C$43,0))/1000),\"\")","v":""},{"$f":"IFERROR(IF(OR($C$144=FALSE,LEFT($B139,3)<>\"NOX\"),BZ54*INDEX('Damage costs'!$U$16:$U$43,MATCH($B139,'Damage costs'!$C$16:$C$43,0))/1000,BZ54*INDEX('Damage costs'!$Y$16:$Y$43,MATCH($B139,'Damage costs'!$C$16:$C$43,0))/1000),\"\")","v":""},{"$f":"IFERROR(IF(OR($C$144=FALSE,LEFT($B139,3)<>\"NOX\"),CA54*INDEX('Damage costs'!$U$16:$U$43,MATCH($B139,'Damage costs'!$C$16:$C$43,0))/1000,CA54*INDEX('Damage costs'!$Y$16:$Y$43,MATCH($B139,'Damage costs'!$C$16:$C$43,0))/1000),\"\")","v":""},{"$f":"IFERROR(IF(OR($C$144=FALSE,LEFT($B139,3)<>\"NOX\"),CB54*INDEX('Damage costs'!$U$16:$U$43,MATCH($B139,'Damage costs'!$C$16:$C$43,0))/1000,CB54*INDEX('Damage costs'!$Y$16:$Y$43,MATCH($B139,'Damage costs'!$C$16:$C$43,0))/1000),\"\")","v":""},{"$f":"IFERROR(IF(OR($C$144=FALSE,LEFT($B139,3)<>\"NOX\"),CC54*INDEX('Damage costs'!$U$16:$U$43,MATCH($B139,'Damage costs'!$C$16:$C$43,0))/1000,CC54*INDEX('Damage costs'!$Y$16:$Y$43,MATCH($B139,'Damage costs'!$C$16:$C$43,0))/1000),\"\")","v":""},{"$f":"IFERROR(IF(OR($C$144=FALSE,LEFT($B139,3)<>\"NOX\"),CD54*INDEX('Damage costs'!$U$16:$U$43,MATCH($B139,'Damage costs'!$C$16:$C$43,0))/1000,CD54*INDEX('Damage costs'!$Y$16:$Y$43,MATCH($B139,'Damage costs'!$C$16:$C$43,0))/1000),\"\")","v":""},{"$f":"IFERROR(IF(OR($C$144=FALSE,LEFT($B139,3)<>\"NOX\"),CE54*INDEX('Damage costs'!$U$16:$U$43,MATCH($B139,'Damage costs'!$C$16:$C$43,0))/1000,CE54*INDEX('Damage costs'!$Y$16:$Y$43,MATCH($B139,'Damage costs'!$C$16:$C$43,0))/1000),\"\")","v":""},{"$f":"IFERROR(IF(OR($C$144=FALSE,LEFT($B139,3)<>\"NOX\"),CF54*INDEX('Damage costs'!$U$16:$U$43,MATCH($B139,'Damage costs'!$C$16:$C$43,0))/1000,CF54*INDEX('Damage costs'!$Y$16:$Y$43,MATCH($B139,'Damage costs'!$C$16:$C$43,0))/1000),\"\")","v":""},{"$f":"IFERROR(IF(OR($C$144=FALSE,LEFT($B139,3)<>\"NOX\"),CG54*INDEX('Damage costs'!$U$16:$U$43,MATCH($B139,'Damage costs'!$C$16:$C$43,0))/1000,CG54*INDEX('Damage costs'!$Y$16:$Y$43,MATCH($B139,'Damage costs'!$C$16:$C$43,0))/1000),\"\")","v":""},{"$f":"IFERROR(IF(OR($C$144=FALSE,LEFT($B139,3)<>\"NOX\"),CH54*INDEX('Damage costs'!$U$16:$U$43,MATCH($B139,'Damage costs'!$C$16:$C$43,0))/1000,CH54*INDEX('Damage costs'!$Y$16:$Y$43,MATCH($B139,'Damage costs'!$C$16:$C$43,0))/1000),\"\")","v":""},{"$f":"IFERROR(IF(OR($C$144=FALSE,LEFT($B139,3)<>\"NOX\"),CI54*INDEX('Damage costs'!$U$16:$U$43,MATCH($B139,'Damage costs'!$C$16:$C$43,0))/1000,CI54*INDEX('Damage costs'!$Y$16:$Y$43,MATCH($B139,'Damage costs'!$C$16:$C$43,0))/1000),\"\")","v":""},{"$f":"IFERROR(IF(OR($C$144=FALSE,LEFT($B139,3)<>\"NOX\"),CJ54*INDEX('Damage costs'!$U$16:$U$43,MATCH($B139,'Damage costs'!$C$16:$C$43,0))/1000,CJ54*INDEX('Damage costs'!$Y$16:$Y$43,MATCH($B139,'Damage costs'!$C$16:$C$43,0))/1000),\"\")","v":""},{"$f":"IFERROR(IF(OR($C$144=FALSE,LEFT($B139,3)<>\"NOX\"),CK54*INDEX('Damage costs'!$U$16:$U$43,MATCH($B139,'Damage costs'!$C$16:$C$43,0))/1000,CK54*INDEX('Damage costs'!$Y$16:$Y$43,MATCH($B139,'Damage costs'!$C$16:$C$43,0))/1000),\"\")","v":""},{"$f":"IFERROR(IF(OR($C$144=FALSE,LEFT($B139,3)<>\"NOX\"),CL54*INDEX('Damage costs'!$U$16:$U$43,MATCH($B139,'Damage costs'!$C$16:$C$43,0))/1000,CL54*INDEX('Damage costs'!$Y$16:$Y$43,MATCH($B139,'Damage costs'!$C$16:$C$43,0))/1000),\"\")","v":""},{"$f":"IFERROR(IF(OR($C$144=FALSE,LEFT($B139,3)<>\"NOX\"),CM54*INDEX('Damage costs'!$U$16:$U$43,MATCH($B139,'Damage costs'!$C$16:$C$43,0))/1000,CM54*INDEX('Damage costs'!$Y$16:$Y$43,MATCH($B139,'Damage costs'!$C$16:$C$43,0))/1000),\"\")","v":""},{"$f":"IFERROR(IF(OR($C$144=FALSE,LEFT($B139,3)<>\"NOX\"),CN54*INDEX('Damage costs'!$U$16:$U$43,MATCH($B139,'Damage costs'!$C$16:$C$43,0))/1000,CN54*INDEX('Damage costs'!$Y$16:$Y$43,MATCH($B139,'Damage costs'!$C$16:$C$43,0))/1000),\"\")","v":""},{"$f":"IFERROR(IF(OR($C$144=FALSE,LEFT($B139,3)<>\"NOX\"),CO54*INDEX('Damage costs'!$U$16:$U$43,MATCH($B139,'Damage costs'!$C$16:$C$43,0))/1000,CO54*INDEX('Damage costs'!$Y$16:$Y$43,MATCH($B139,'Damage costs'!$C$16:$C$43,0))/1000),\"\")","v":""},{"$f":"IFERROR(IF(OR($C$144=FALSE,LEFT($B139,3)<>\"NOX\"),CP54*INDEX('Damage costs'!$U$16:$U$43,MATCH($B139,'Damage costs'!$C$16:$C$43,0))/1000,CP54*INDEX('Damage costs'!$Y$16:$Y$43,MATCH($B139,'Damage costs'!$C$16:$C$43,0))/1000),\"\")","v":""},{"$f":"IFERROR(IF(OR($C$144=FALSE,LEFT($B139,3)<>\"NOX\"),CQ54*INDEX('Damage costs'!$U$16:$U$43,MATCH($B139,'Damage costs'!$C$16:$C$43,0))/1000,CQ54*INDEX('Damage costs'!$Y$16:$Y$43,MATCH($B139,'Damage costs'!$C$16:$C$43,0))/1000),\"\")","v":""},{"$f":"IFERROR(IF(OR($C$144=FALSE,LEFT($B139,3)<>\"NOX\"),CR54*INDEX('Damage costs'!$U$16:$U$43,MATCH($B139,'Damage costs'!$C$16:$C$43,0))/1000,CR54*INDEX('Damage costs'!$Y$16:$Y$43,MATCH($B139,'Damage costs'!$C$16:$C$43,0))/1000),\"\")","v":""},{"$f":"IFERROR(IF(OR($C$144=FALSE,LEFT($B139,3)<>\"NOX\"),CS54*INDEX('Damage costs'!$U$16:$U$43,MATCH($B139,'Damage costs'!$C$16:$C$43,0))/1000,CS54*INDEX('Damage costs'!$Y$16:$Y$43,MATCH($B139,'Damage costs'!$C$16:$C$43,0))/1000),\"\")","v":""},{"$f":"IFERROR(IF(OR($C$144=FALSE,LEFT($B139,3)<>\"NOX\"),CT54*INDEX('Damage costs'!$U$16:$U$43,MATCH($B139,'Damage costs'!$C$16:$C$43,0))/1000,CT54*INDEX('Damage costs'!$Y$16:$Y$43,MATCH($B139,'Damage costs'!$C$16:$C$43,0))/1000),\"\")","v":""},{"$f":"IFERROR(IF(OR($C$144=FALSE,LEFT($B139,3)<>\"NOX\"),CU54*INDEX('Damage costs'!$U$16:$U$43,MATCH($B139,'Damage costs'!$C$16:$C$43,0))/1000,CU54*INDEX('Damage costs'!$Y$16:$Y$43,MATCH($B139,'Damage costs'!$C$16:$C$43,0))/1000),\"\")","v":""},{"$f":"IFERROR(IF(OR($C$144=FALSE,LEFT($B139,3)<>\"NOX\"),CV54*INDEX('Damage costs'!$U$16:$U$43,MATCH($B139,'Damage costs'!$C$16:$C$43,0))/1000,CV54*INDEX('Damage costs'!$Y$16:$Y$43,MATCH($B139,'Damage costs'!$C$16:$C$43,0))/1000),\"\")","v":""},{"$f":"IFERROR(IF(OR($C$144=FALSE,LEFT($B139,3)<>\"NOX\"),CW54*INDEX('Damage costs'!$U$16:$U$43,MATCH($B139,'Damage costs'!$C$16:$C$43,0))/1000,CW54*INDEX('Damage costs'!$Y$16:$Y$43,MATCH($B139,'Damage costs'!$C$16:$C$43,0))/1000),\"\")","v":""},{"$f":"IFERROR(IF(OR($C$144=FALSE,LEFT($B139,3)<>\"NOX\"),CX54*INDEX('Damage costs'!$U$16:$U$43,MATCH($B139,'Damage costs'!$C$16:$C$43,0))/1000,CX54*INDEX('Damage costs'!$Y$16:$Y$43,MATCH($B139,'Damage costs'!$C$16:$C$43,0))/1000),\"\")","v":""},{"$f":"IFERROR(IF(OR($C$144=FALSE,LEFT($B139,3)<>\"NOX\"),CY54*INDEX('Damage costs'!$U$16:$U$43,MATCH($B139,'Damage costs'!$C$16:$C$43,0))/1000,CY54*INDEX('Damage costs'!$Y$16:$Y$43,MATCH($B139,'Damage costs'!$C$16:$C$43,0))/1000),\"\")","v":""}]
[null,0,"£000's",{"$f":"IFERROR(IF(OR($C$144=FALSE,LEFT($B140,3)<>\"NOX\"),D55*INDEX('Damage costs'!$U$16:$U$43,MATCH($B140,'Damage costs'!$C$16:$C$43,0))/1000,D55*INDEX('Damage costs'!$Y$16:$Y$43,MATCH($B140,'Damage costs'!$C$16:$C$43,0))/1000),\"\")","v":""},{"$f":"IFERROR(IF(OR($C$144=FALSE,LEFT($B140,3)<>\"NOX\"),E55*INDEX('Damage costs'!$U$16:$U$43,MATCH($B140,'Damage costs'!$C$16:$C$43,0))/1000,E55*INDEX('Damage costs'!$Y$16:$Y$43,MATCH($B140,'Damage costs'!$C$16:$C$43,0))/1000),\"\")","v":""},{"$f":"IFERROR(IF(OR($C$144=FALSE,LEFT($B140,3)<>\"NOX\"),F55*INDEX('Damage costs'!$U$16:$U$43,MATCH($B140,'Damage costs'!$C$16:$C$43,0))/1000,F55*INDEX('Damage costs'!$Y$16:$Y$43,MATCH($B140,'Damage costs'!$C$16:$C$43,0))/1000),\"\")","v":""},{"$f":"IFERROR(IF(OR($C$144=FALSE,LEFT($B140,3)<>\"NOX\"),G55*INDEX('Damage costs'!$U$16:$U$43,MATCH($B140,'Damage costs'!$C$16:$C$43,0))/1000,G55*INDEX('Damage costs'!$Y$16:$Y$43,MATCH($B140,'Damage costs'!$C$16:$C$43,0))/1000),\"\")","v":""},{"$f":"IFERROR(IF(OR($C$144=FALSE,LEFT($B140,3)<>\"NOX\"),H55*INDEX('Damage costs'!$U$16:$U$43,MATCH($B140,'Damage costs'!$C$16:$C$43,0))/1000,H55*INDEX('Damage costs'!$Y$16:$Y$43,MATCH($B140,'Damage costs'!$C$16:$C$43,0))/1000),\"\")","v":""},{"$f":"IFERROR(IF(OR($C$144=FALSE,LEFT($B140,3)<>\"NOX\"),I55*INDEX('Damage costs'!$U$16:$U$43,MATCH($B140,'Damage costs'!$C$16:$C$43,0))/1000,I55*INDEX('Damage costs'!$Y$16:$Y$43,MATCH($B140,'Damage costs'!$C$16:$C$43,0))/1000),\"\")","v":""},{"$f":"IFERROR(IF(OR($C$144=FALSE,LEFT($B140,3)<>\"NOX\"),J55*INDEX('Damage costs'!$U$16:$U$43,MATCH($B140,'Damage costs'!$C$16:$C$43,0))/1000,J55*INDEX('Damage costs'!$Y$16:$Y$43,MATCH($B140,'Damage costs'!$C$16:$C$43,0))/1000),\"\")","v":""},{"$f":"IFERROR(IF(OR($C$144=FALSE,LEFT($B140,3)<>\"NOX\"),K55*INDEX('Damage costs'!$U$16:$U$43,MATCH($B140,'Damage costs'!$C$16:$C$43,0))/1000,K55*INDEX('Damage costs'!$Y$16:$Y$43,MATCH($B140,'Damage costs'!$C$16:$C$43,0))/1000),\"\")","v":""},{"$f":"IFERROR(IF(OR($C$144=FALSE,LEFT($B140,3)<>\"NOX\"),L55*INDEX('Damage costs'!$U$16:$U$43,MATCH($B140,'Damage costs'!$C$16:$C$43,0))/1000,L55*INDEX('Damage costs'!$Y$16:$Y$43,MATCH($B140,'Damage costs'!$C$16:$C$43,0))/1000),\"\")","v":""},{"$f":"IFERROR(IF(OR($C$144=FALSE,LEFT($B140,3)<>\"NOX\"),M55*INDEX('Damage costs'!$U$16:$U$43,MATCH($B140,'Damage costs'!$C$16:$C$43,0))/1000,M55*INDEX('Damage costs'!$Y$16:$Y$43,MATCH($B140,'Damage costs'!$C$16:$C$43,0))/1000),\"\")","v":""},{"$f":"IFERROR(IF(OR($C$144=FALSE,LEFT($B140,3)<>\"NOX\"),N55*INDEX('Damage costs'!$U$16:$U$43,MATCH($B140,'Damage costs'!$C$16:$C$43,0))/1000,N55*INDEX('Damage costs'!$Y$16:$Y$43,MATCH($B140,'Damage costs'!$C$16:$C$43,0))/1000),\"\")","v":""},{"$f":"IFERROR(IF(OR($C$144=FALSE,LEFT($B140,3)<>\"NOX\"),O55*INDEX('Damage costs'!$U$16:$U$43,MATCH($B140,'Damage costs'!$C$16:$C$43,0))/1000,O55*INDEX('Damage costs'!$Y$16:$Y$43,MATCH($B140,'Damage costs'!$C$16:$C$43,0))/1000),\"\")","v":""},{"$f":"IFERROR(IF(OR($C$144=FALSE,LEFT($B140,3)<>\"NOX\"),P55*INDEX('Damage costs'!$U$16:$U$43,MATCH($B140,'Damage costs'!$C$16:$C$43,0))/1000,P55*INDEX('Damage costs'!$Y$16:$Y$43,MATCH($B140,'Damage costs'!$C$16:$C$43,0))/1000),\"\")","v":""},{"$f":"IFERROR(IF(OR($C$144=FALSE,LEFT($B140,3)<>\"NOX\"),Q55*INDEX('Damage costs'!$U$16:$U$43,MATCH($B140,'Damage costs'!$C$16:$C$43,0))/1000,Q55*INDEX('Damage costs'!$Y$16:$Y$43,MATCH($B140,'Damage costs'!$C$16:$C$43,0))/1000),\"\")","v":""},{"$f":"IFERROR(IF(OR($C$144=FALSE,LEFT($B140,3)<>\"NOX\"),R55*INDEX('Damage costs'!$U$16:$U$43,MATCH($B140,'Damage costs'!$C$16:$C$43,0))/1000,R55*INDEX('Damage costs'!$Y$16:$Y$43,MATCH($B140,'Damage costs'!$C$16:$C$43,0))/1000),\"\")","v":""},{"$f":"IFERROR(IF(OR($C$144=FALSE,LEFT($B140,3)<>\"NOX\"),S55*INDEX('Damage costs'!$U$16:$U$43,MATCH($B140,'Damage costs'!$C$16:$C$43,0))/1000,S55*INDEX('Damage costs'!$Y$16:$Y$43,MATCH($B140,'Damage costs'!$C$16:$C$43,0))/1000),\"\")","v":""},{"$f":"IFERROR(IF(OR($C$144=FALSE,LEFT($B140,3)<>\"NOX\"),T55*INDEX('Damage costs'!$U$16:$U$43,MATCH($B140,'Damage costs'!$C$16:$C$43,0))/1000,T55*INDEX('Damage costs'!$Y$16:$Y$43,MATCH($B140,'Damage costs'!$C$16:$C$43,0))/1000),\"\")","v":""},{"$f":"IFERROR(IF(OR($C$144=FALSE,LEFT($B140,3)<>\"NOX\"),U55*INDEX('Damage costs'!$U$16:$U$43,MATCH($B140,'Damage costs'!$C$16:$C$43,0))/1000,U55*INDEX('Damage costs'!$Y$16:$Y$43,MATCH($B140,'Damage costs'!$C$16:$C$43,0))/1000),\"\")","v":""},{"$f":"IFERROR(IF(OR($C$144=FALSE,LEFT($B140,3)<>\"NOX\"),V55*INDEX('Damage costs'!$U$16:$U$43,MATCH($B140,'Damage costs'!$C$16:$C$43,0))/1000,V55*INDEX('Damage costs'!$Y$16:$Y$43,MATCH($B140,'Damage costs'!$C$16:$C$43,0))/1000),\"\")","v":""},{"$f":"IFERROR(IF(OR($C$144=FALSE,LEFT($B140,3)<>\"NOX\"),W55*INDEX('Damage costs'!$U$16:$U$43,MATCH($B140,'Damage costs'!$C$16:$C$43,0))/1000,W55*INDEX('Damage costs'!$Y$16:$Y$43,MATCH($B140,'Damage costs'!$C$16:$C$43,0))/1000),\"\")","v":""},{"$f":"IFERROR(IF(OR($C$144=FALSE,LEFT($B140,3)<>\"NOX\"),X55*INDEX('Damage costs'!$U$16:$U$43,MATCH($B140,'Damage costs'!$C$16:$C$43,0))/1000,X55*INDEX('Damage costs'!$Y$16:$Y$43,MATCH($B140,'Damage costs'!$C$16:$C$43,0))/1000),\"\")","v":""},{"$f":"IFERROR(IF(OR($C$144=FALSE,LEFT($B140,3)<>\"NOX\"),Y55*INDEX('Damage costs'!$U$16:$U$43,MATCH($B140,'Damage costs'!$C$16:$C$43,0))/1000,Y55*INDEX('Damage costs'!$Y$16:$Y$43,MATCH($B140,'Damage costs'!$C$16:$C$43,0))/1000),\"\")","v":""},{"$f":"IFERROR(IF(OR($C$144=FALSE,LEFT($B140,3)<>\"NOX\"),Z55*INDEX('Damage costs'!$U$16:$U$43,MATCH($B140,'Damage costs'!$C$16:$C$43,0))/1000,Z55*INDEX('Damage costs'!$Y$16:$Y$43,MATCH($B140,'Damage costs'!$C$16:$C$43,0))/1000),\"\")","v":""},{"$f":"IFERROR(IF(OR($C$144=FALSE,LEFT($B140,3)<>\"NOX\"),AA55*INDEX('Damage costs'!$U$16:$U$43,MATCH($B140,'Damage costs'!$C$16:$C$43,0))/1000,AA55*INDEX('Damage costs'!$Y$16:$Y$43,MATCH($B140,'Damage costs'!$C$16:$C$43,0))/1000),\"\")","v":""},{"$f":"IFERROR(IF(OR($C$144=FALSE,LEFT($B140,3)<>\"NOX\"),AB55*INDEX('Damage costs'!$U$16:$U$43,MATCH($B140,'Damage costs'!$C$16:$C$43,0))/1000,AB55*INDEX('Damage costs'!$Y$16:$Y$43,MATCH($B140,'Damage costs'!$C$16:$C$43,0))/1000),\"\")","v":""},{"$f":"IFERROR(IF(OR($C$144=FALSE,LEFT($B140,3)<>\"NOX\"),AC55*INDEX('Damage costs'!$U$16:$U$43,MATCH($B140,'Damage costs'!$C$16:$C$43,0))/1000,AC55*INDEX('Damage costs'!$Y$16:$Y$43,MATCH($B140,'Damage costs'!$C$16:$C$43,0))/1000),\"\")","v":""},{"$f":"IFERROR(IF(OR($C$144=FALSE,LEFT($B140,3)<>\"NOX\"),AD55*INDEX('Damage costs'!$U$16:$U$43,MATCH($B140,'Damage costs'!$C$16:$C$43,0))/1000,AD55*INDEX('Damage costs'!$Y$16:$Y$43,MATCH($B140,'Damage costs'!$C$16:$C$43,0))/1000),\"\")","v":""},{"$f":"IFERROR(IF(OR($C$144=FALSE,LEFT($B140,3)<>\"NOX\"),AE55*INDEX('Damage costs'!$U$16:$U$43,MATCH($B140,'Damage costs'!$C$16:$C$43,0))/1000,AE55*INDEX('Damage costs'!$Y$16:$Y$43,MATCH($B140,'Damage costs'!$C$16:$C$43,0))/1000),\"\")","v":""},{"$f":"IFERROR(IF(OR($C$144=FALSE,LEFT($B140,3)<>\"NOX\"),AF55*INDEX('Damage costs'!$U$16:$U$43,MATCH($B140,'Damage costs'!$C$16:$C$43,0))/1000,AF55*INDEX('Damage costs'!$Y$16:$Y$43,MATCH($B140,'Damage costs'!$C$16:$C$43,0))/1000),\"\")","v":""},{"$f":"IFERROR(IF(OR($C$144=FALSE,LEFT($B140,3)<>\"NOX\"),AG55*INDEX('Damage costs'!$U$16:$U$43,MATCH($B140,'Damage costs'!$C$16:$C$43,0))/1000,AG55*INDEX('Damage costs'!$Y$16:$Y$43,MATCH($B140,'Damage costs'!$C$16:$C$43,0))/1000),\"\")","v":""},{"$f":"IFERROR(IF(OR($C$144=FALSE,LEFT($B140,3)<>\"NOX\"),AH55*INDEX('Damage costs'!$U$16:$U$43,MATCH($B140,'Damage costs'!$C$16:$C$43,0))/1000,AH55*INDEX('Damage costs'!$Y$16:$Y$43,MATCH($B140,'Damage costs'!$C$16:$C$43,0))/1000),\"\")","v":""},{"$f":"IFERROR(IF(OR($C$144=FALSE,LEFT($B140,3)<>\"NOX\"),AI55*INDEX('Damage costs'!$U$16:$U$43,MATCH($B140,'Damage costs'!$C$16:$C$43,0))/1000,AI55*INDEX('Damage costs'!$Y$16:$Y$43,MATCH($B140,'Damage costs'!$C$16:$C$43,0))/1000),\"\")","v":""},{"$f":"IFERROR(IF(OR($C$144=FALSE,LEFT($B140,3)<>\"NOX\"),AJ55*INDEX('Damage costs'!$U$16:$U$43,MATCH($B140,'Damage costs'!$C$16:$C$43,0))/1000,AJ55*INDEX('Damage costs'!$Y$16:$Y$43,MATCH($B140,'Damage costs'!$C$16:$C$43,0))/1000),\"\")","v":""},{"$f":"IFERROR(IF(OR($C$144=FALSE,LEFT($B140,3)<>\"NOX\"),AK55*INDEX('Damage costs'!$U$16:$U$43,MATCH($B140,'Damage costs'!$C$16:$C$43,0))/1000,AK55*INDEX('Damage costs'!$Y$16:$Y$43,MATCH($B140,'Damage costs'!$C$16:$C$43,0))/1000),\"\")","v":""},{"$f":"IFERROR(IF(OR($C$144=FALSE,LEFT($B140,3)<>\"NOX\"),AL55*INDEX('Damage costs'!$U$16:$U$43,MATCH($B140,'Damage costs'!$C$16:$C$43,0))/1000,AL55*INDEX('Damage costs'!$Y$16:$Y$43,MATCH($B140,'Damage costs'!$C$16:$C$43,0))/1000),\"\")","v":""},{"$f":"IFERROR(IF(OR($C$144=FALSE,LEFT($B140,3)<>\"NOX\"),AM55*INDEX('Damage costs'!$U$16:$U$43,MATCH($B140,'Damage costs'!$C$16:$C$43,0))/1000,AM55*INDEX('Damage costs'!$Y$16:$Y$43,MATCH($B140,'Damage costs'!$C$16:$C$43,0))/1000),\"\")","v":""},{"$f":"IFERROR(IF(OR($C$144=FALSE,LEFT($B140,3)<>\"NOX\"),AN55*INDEX('Damage costs'!$U$16:$U$43,MATCH($B140,'Damage costs'!$C$16:$C$43,0))/1000,AN55*INDEX('Damage costs'!$Y$16:$Y$43,MATCH($B140,'Damage costs'!$C$16:$C$43,0))/1000),\"\")","v":""},{"$f":"IFERROR(IF(OR($C$144=FALSE,LEFT($B140,3)<>\"NOX\"),AO55*INDEX('Damage costs'!$U$16:$U$43,MATCH($B140,'Damage costs'!$C$16:$C$43,0))/1000,AO55*INDEX('Damage costs'!$Y$16:$Y$43,MATCH($B140,'Damage costs'!$C$16:$C$43,0))/1000),\"\")","v":""},{"$f":"IFERROR(IF(OR($C$144=FALSE,LEFT($B140,3)<>\"NOX\"),AP55*INDEX('Damage costs'!$U$16:$U$43,MATCH($B140,'Damage costs'!$C$16:$C$43,0))/1000,AP55*INDEX('Damage costs'!$Y$16:$Y$43,MATCH($B140,'Damage costs'!$C$16:$C$43,0))/1000),\"\")","v":""},{"$f":"IFERROR(IF(OR($C$144=FALSE,LEFT($B140,3)<>\"NOX\"),AQ55*INDEX('Damage costs'!$U$16:$U$43,MATCH($B140,'Damage costs'!$C$16:$C$43,0))/1000,AQ55*INDEX('Damage costs'!$Y$16:$Y$43,MATCH($B140,'Damage costs'!$C$16:$C$43,0))/1000),\"\")","v":""},{"$f":"IFERROR(IF(OR($C$144=FALSE,LEFT($B140,3)<>\"NOX\"),AR55*INDEX('Damage costs'!$U$16:$U$43,MATCH($B140,'Damage costs'!$C$16:$C$43,0))/1000,AR55*INDEX('Damage costs'!$Y$16:$Y$43,MATCH($B140,'Damage costs'!$C$16:$C$43,0))/1000),\"\")","v":""},{"$f":"IFERROR(IF(OR($C$144=FALSE,LEFT($B140,3)<>\"NOX\"),AS55*INDEX('Damage costs'!$U$16:$U$43,MATCH($B140,'Damage costs'!$C$16:$C$43,0))/1000,AS55*INDEX('Damage costs'!$Y$16:$Y$43,MATCH($B140,'Damage costs'!$C$16:$C$43,0))/1000),\"\")","v":""},{"$f":"IFERROR(IF(OR($C$144=FALSE,LEFT($B140,3)<>\"NOX\"),AT55*INDEX('Damage costs'!$U$16:$U$43,MATCH($B140,'Damage costs'!$C$16:$C$43,0))/1000,AT55*INDEX('Damage costs'!$Y$16:$Y$43,MATCH($B140,'Damage costs'!$C$16:$C$43,0))/1000),\"\")","v":""},{"$f":"IFERROR(IF(OR($C$144=FALSE,LEFT($B140,3)<>\"NOX\"),AU55*INDEX('Damage costs'!$U$16:$U$43,MATCH($B140,'Damage costs'!$C$16:$C$43,0))/1000,AU55*INDEX('Damage costs'!$Y$16:$Y$43,MATCH($B140,'Damage costs'!$C$16:$C$43,0))/1000),\"\")","v":""},{"$f":"IFERROR(IF(OR($C$144=FALSE,LEFT($B140,3)<>\"NOX\"),AV55*INDEX('Damage costs'!$U$16:$U$43,MATCH($B140,'Damage costs'!$C$16:$C$43,0))/1000,AV55*INDEX('Damage costs'!$Y$16:$Y$43,MATCH($B140,'Damage costs'!$C$16:$C$43,0))/1000),\"\")","v":""},{"$f":"IFERROR(IF(OR($C$144=FALSE,LEFT($B140,3)<>\"NOX\"),AW55*INDEX('Damage costs'!$U$16:$U$43,MATCH($B140,'Damage costs'!$C$16:$C$43,0))/1000,AW55*INDEX('Damage costs'!$Y$16:$Y$43,MATCH($B140,'Damage costs'!$C$16:$C$43,0))/1000),\"\")","v":""},{"$f":"IFERROR(IF(OR($C$144=FALSE,LEFT($B140,3)<>\"NOX\"),AX55*INDEX('Damage costs'!$U$16:$U$43,MATCH($B140,'Damage costs'!$C$16:$C$43,0))/1000,AX55*INDEX('Damage costs'!$Y$16:$Y$43,MATCH($B140,'Damage costs'!$C$16:$C$43,0))/1000),\"\")","v":""},{"$f":"IFERROR(IF(OR($C$144=FALSE,LEFT($B140,3)<>\"NOX\"),AY55*INDEX('Damage costs'!$U$16:$U$43,MATCH($B140,'Damage costs'!$C$16:$C$43,0))/1000,AY55*INDEX('Damage costs'!$Y$16:$Y$43,MATCH($B140,'Damage costs'!$C$16:$C$43,0))/1000),\"\")","v":""},{"$f":"IFERROR(IF(OR($C$144=FALSE,LEFT($B140,3)<>\"NOX\"),AZ55*INDEX('Damage costs'!$U$16:$U$43,MATCH($B140,'Damage costs'!$C$16:$C$43,0))/1000,AZ55*INDEX('Damage costs'!$Y$16:$Y$43,MATCH($B140,'Damage costs'!$C$16:$C$43,0))/1000),\"\")","v":""},{"$f":"IFERROR(IF(OR($C$144=FALSE,LEFT($B140,3)<>\"NOX\"),BA55*INDEX('Damage costs'!$U$16:$U$43,MATCH($B140,'Damage costs'!$C$16:$C$43,0))/1000,BA55*INDEX('Damage costs'!$Y$16:$Y$43,MATCH($B140,'Damage costs'!$C$16:$C$43,0))/1000),\"\")","v":""},{"$f":"IFERROR(IF(OR($C$144=FALSE,LEFT($B140,3)<>\"NOX\"),BB55*INDEX('Damage costs'!$U$16:$U$43,MATCH($B140,'Damage costs'!$C$16:$C$43,0))/1000,BB55*INDEX('Damage costs'!$Y$16:$Y$43,MATCH($B140,'Damage costs'!$C$16:$C$43,0))/1000),\"\")","v":""},{"$f":"IFERROR(IF(OR($C$144=FALSE,LEFT($B140,3)<>\"NOX\"),BC55*INDEX('Damage costs'!$U$16:$U$43,MATCH($B140,'Damage costs'!$C$16:$C$43,0))/1000,BC55*INDEX('Damage costs'!$Y$16:$Y$43,MATCH($B140,'Damage costs'!$C$16:$C$43,0))/1000),\"\")","v":""},{"$f":"IFERROR(IF(OR($C$144=FALSE,LEFT($B140,3)<>\"NOX\"),BD55*INDEX('Damage costs'!$U$16:$U$43,MATCH($B140,'Damage costs'!$C$16:$C$43,0))/1000,BD55*INDEX('Damage costs'!$Y$16:$Y$43,MATCH($B140,'Damage costs'!$C$16:$C$43,0))/1000),\"\")","v":""},{"$f":"IFERROR(IF(OR($C$144=FALSE,LEFT($B140,3)<>\"NOX\"),BE55*INDEX('Damage costs'!$U$16:$U$43,MATCH($B140,'Damage costs'!$C$16:$C$43,0))/1000,BE55*INDEX('Damage costs'!$Y$16:$Y$43,MATCH($B140,'Damage costs'!$C$16:$C$43,0))/1000),\"\")","v":""},{"$f":"IFERROR(IF(OR($C$144=FALSE,LEFT($B140,3)<>\"NOX\"),BF55*INDEX('Damage costs'!$U$16:$U$43,MATCH($B140,'Damage costs'!$C$16:$C$43,0))/1000,BF55*INDEX('Damage costs'!$Y$16:$Y$43,MATCH($B140,'Damage costs'!$C$16:$C$43,0))/1000),\"\")","v":""},{"$f":"IFERROR(IF(OR($C$144=FALSE,LEFT($B140,3)<>\"NOX\"),BG55*INDEX('Damage costs'!$U$16:$U$43,MATCH($B140,'Damage costs'!$C$16:$C$43,0))/1000,BG55*INDEX('Damage costs'!$Y$16:$Y$43,MATCH($B140,'Damage costs'!$C$16:$C$43,0))/1000),\"\")","v":""},{"$f":"IFERROR(IF(OR($C$144=FALSE,LEFT($B140,3)<>\"NOX\"),BH55*INDEX('Damage costs'!$U$16:$U$43,MATCH($B140,'Damage costs'!$C$16:$C$43,0))/1000,BH55*INDEX('Damage costs'!$Y$16:$Y$43,MATCH($B140,'Damage costs'!$C$16:$C$43,0))/1000),\"\")","v":""},{"$f":"IFERROR(IF(OR($C$144=FALSE,LEFT($B140,3)<>\"NOX\"),BI55*INDEX('Damage costs'!$U$16:$U$43,MATCH($B140,'Damage costs'!$C$16:$C$43,0))/1000,BI55*INDEX('Damage costs'!$Y$16:$Y$43,MATCH($B140,'Damage costs'!$C$16:$C$43,0))/1000),\"\")","v":""},{"$f":"IFERROR(IF(OR($C$144=FALSE,LEFT($B140,3)<>\"NOX\"),BJ55*INDEX('Damage costs'!$U$16:$U$43,MATCH($B140,'Damage costs'!$C$16:$C$43,0))/1000,BJ55*INDEX('Damage costs'!$Y$16:$Y$43,MATCH($B140,'Damage costs'!$C$16:$C$43,0))/1000),\"\")","v":""},{"$f":"IFERROR(IF(OR($C$144=FALSE,LEFT($B140,3)<>\"NOX\"),BK55*INDEX('Damage costs'!$U$16:$U$43,MATCH($B140,'Damage costs'!$C$16:$C$43,0))/1000,BK55*INDEX('Damage costs'!$Y$16:$Y$43,MATCH($B140,'Damage costs'!$C$16:$C$43,0))/1000),\"\")","v":""},{"$f":"IFERROR(IF(OR($C$144=FALSE,LEFT($B140,3)<>\"NOX\"),BL55*INDEX('Damage costs'!$U$16:$U$43,MATCH($B140,'Damage costs'!$C$16:$C$43,0))/1000,BL55*INDEX('Damage costs'!$Y$16:$Y$43,MATCH($B140,'Damage costs'!$C$16:$C$43,0))/1000),\"\")","v":""},{"$f":"IFERROR(IF(OR($C$144=FALSE,LEFT($B140,3)<>\"NOX\"),BM55*INDEX('Damage costs'!$U$16:$U$43,MATCH($B140,'Damage costs'!$C$16:$C$43,0))/1000,BM55*INDEX('Damage costs'!$Y$16:$Y$43,MATCH($B140,'Damage costs'!$C$16:$C$43,0))/1000),\"\")","v":""},{"$f":"IFERROR(IF(OR($C$144=FALSE,LEFT($B140,3)<>\"NOX\"),BN55*INDEX('Damage costs'!$U$16:$U$43,MATCH($B140,'Damage costs'!$C$16:$C$43,0))/1000,BN55*INDEX('Damage costs'!$Y$16:$Y$43,MATCH($B140,'Damage costs'!$C$16:$C$43,0))/1000),\"\")","v":""},{"$f":"IFERROR(IF(OR($C$144=FALSE,LEFT($B140,3)<>\"NOX\"),BO55*INDEX('Damage costs'!$U$16:$U$43,MATCH($B140,'Damage costs'!$C$16:$C$43,0))/1000,BO55*INDEX('Damage costs'!$Y$16:$Y$43,MATCH($B140,'Damage costs'!$C$16:$C$43,0))/1000),\"\")","v":""},{"$f":"IFERROR(IF(OR($C$144=FALSE,LEFT($B140,3)<>\"NOX\"),BP55*INDEX('Damage costs'!$U$16:$U$43,MATCH($B140,'Damage costs'!$C$16:$C$43,0))/1000,BP55*INDEX('Damage costs'!$Y$16:$Y$43,MATCH($B140,'Damage costs'!$C$16:$C$43,0))/1000),\"\")","v":""},{"$f":"IFERROR(IF(OR($C$144=FALSE,LEFT($B140,3)<>\"NOX\"),BQ55*INDEX('Damage costs'!$U$16:$U$43,MATCH($B140,'Damage costs'!$C$16:$C$43,0))/1000,BQ55*INDEX('Damage costs'!$Y$16:$Y$43,MATCH($B140,'Damage costs'!$C$16:$C$43,0))/1000),\"\")","v":""},{"$f":"IFERROR(IF(OR($C$144=FALSE,LEFT($B140,3)<>\"NOX\"),BR55*INDEX('Damage costs'!$U$16:$U$43,MATCH($B140,'Damage costs'!$C$16:$C$43,0))/1000,BR55*INDEX('Damage costs'!$Y$16:$Y$43,MATCH($B140,'Damage costs'!$C$16:$C$43,0))/1000),\"\")","v":""},{"$f":"IFERROR(IF(OR($C$144=FALSE,LEFT($B140,3)<>\"NOX\"),BS55*INDEX('Damage costs'!$U$16:$U$43,MATCH($B140,'Damage costs'!$C$16:$C$43,0))/1000,BS55*INDEX('Damage costs'!$Y$16:$Y$43,MATCH($B140,'Damage costs'!$C$16:$C$43,0))/1000),\"\")","v":""},{"$f":"IFERROR(IF(OR($C$144=FALSE,LEFT($B140,3)<>\"NOX\"),BT55*INDEX('Damage costs'!$U$16:$U$43,MATCH($B140,'Damage costs'!$C$16:$C$43,0))/1000,BT55*INDEX('Damage costs'!$Y$16:$Y$43,MATCH($B140,'Damage costs'!$C$16:$C$43,0))/1000),\"\")","v":""},{"$f":"IFERROR(IF(OR($C$144=FALSE,LEFT($B140,3)<>\"NOX\"),BU55*INDEX('Damage costs'!$U$16:$U$43,MATCH($B140,'Damage costs'!$C$16:$C$43,0))/1000,BU55*INDEX('Damage costs'!$Y$16:$Y$43,MATCH($B140,'Damage costs'!$C$16:$C$43,0))/1000),\"\")","v":""},{"$f":"IFERROR(IF(OR($C$144=FALSE,LEFT($B140,3)<>\"NOX\"),BV55*INDEX('Damage costs'!$U$16:$U$43,MATCH($B140,'Damage costs'!$C$16:$C$43,0))/1000,BV55*INDEX('Damage costs'!$Y$16:$Y$43,MATCH($B140,'Damage costs'!$C$16:$C$43,0))/1000),\"\")","v":""},{"$f":"IFERROR(IF(OR($C$144=FALSE,LEFT($B140,3)<>\"NOX\"),BW55*INDEX('Damage costs'!$U$16:$U$43,MATCH($B140,'Damage costs'!$C$16:$C$43,0))/1000,BW55*INDEX('Damage costs'!$Y$16:$Y$43,MATCH($B140,'Damage costs'!$C$16:$C$43,0))/1000),\"\")","v":""},{"$f":"IFERROR(IF(OR($C$144=FALSE,LEFT($B140,3)<>\"NOX\"),BX55*INDEX('Damage costs'!$U$16:$U$43,MATCH($B140,'Damage costs'!$C$16:$C$43,0))/1000,BX55*INDEX('Damage costs'!$Y$16:$Y$43,MATCH($B140,'Damage costs'!$C$16:$C$43,0))/1000),\"\")","v":""},{"$f":"IFERROR(IF(OR($C$144=FALSE,LEFT($B140,3)<>\"NOX\"),BY55*INDEX('Damage costs'!$U$16:$U$43,MATCH($B140,'Damage costs'!$C$16:$C$43,0))/1000,BY55*INDEX('Damage costs'!$Y$16:$Y$43,MATCH($B140,'Damage costs'!$C$16:$C$43,0))/1000),\"\")","v":""},{"$f":"IFERROR(IF(OR($C$144=FALSE,LEFT($B140,3)<>\"NOX\"),BZ55*INDEX('Damage costs'!$U$16:$U$43,MATCH($B140,'Damage costs'!$C$16:$C$43,0))/1000,BZ55*INDEX('Damage costs'!$Y$16:$Y$43,MATCH($B140,'Damage costs'!$C$16:$C$43,0))/1000),\"\")","v":""},{"$f":"IFERROR(IF(OR($C$144=FALSE,LEFT($B140,3)<>\"NOX\"),CA55*INDEX('Damage costs'!$U$16:$U$43,MATCH($B140,'Damage costs'!$C$16:$C$43,0))/1000,CA55*INDEX('Damage costs'!$Y$16:$Y$43,MATCH($B140,'Damage costs'!$C$16:$C$43,0))/1000),\"\")","v":""},{"$f":"IFERROR(IF(OR($C$144=FALSE,LEFT($B140,3)<>\"NOX\"),CB55*INDEX('Damage costs'!$U$16:$U$43,MATCH($B140,'Damage costs'!$C$16:$C$43,0))/1000,CB55*INDEX('Damage costs'!$Y$16:$Y$43,MATCH($B140,'Damage costs'!$C$16:$C$43,0))/1000),\"\")","v":""},{"$f":"IFERROR(IF(OR($C$144=FALSE,LEFT($B140,3)<>\"NOX\"),CC55*INDEX('Damage costs'!$U$16:$U$43,MATCH($B140,'Damage costs'!$C$16:$C$43,0))/1000,CC55*INDEX('Damage costs'!$Y$16:$Y$43,MATCH($B140,'Damage costs'!$C$16:$C$43,0))/1000),\"\")","v":""},{"$f":"IFERROR(IF(OR($C$144=FALSE,LEFT($B140,3)<>\"NOX\"),CD55*INDEX('Damage costs'!$U$16:$U$43,MATCH($B140,'Damage costs'!$C$16:$C$43,0))/1000,CD55*INDEX('Damage costs'!$Y$16:$Y$43,MATCH($B140,'Damage costs'!$C$16:$C$43,0))/1000),\"\")","v":""},{"$f":"IFERROR(IF(OR($C$144=FALSE,LEFT($B140,3)<>\"NOX\"),CE55*INDEX('Damage costs'!$U$16:$U$43,MATCH($B140,'Damage costs'!$C$16:$C$43,0))/1000,CE55*INDEX('Damage costs'!$Y$16:$Y$43,MATCH($B140,'Damage costs'!$C$16:$C$43,0))/1000),\"\")","v":""},{"$f":"IFERROR(IF(OR($C$144=FALSE,LEFT($B140,3)<>\"NOX\"),CF55*INDEX('Damage costs'!$U$16:$U$43,MATCH($B140,'Damage costs'!$C$16:$C$43,0))/1000,CF55*INDEX('Damage costs'!$Y$16:$Y$43,MATCH($B140,'Damage costs'!$C$16:$C$43,0))/1000),\"\")","v":""},{"$f":"IFERROR(IF(OR($C$144=FALSE,LEFT($B140,3)<>\"NOX\"),CG55*INDEX('Damage costs'!$U$16:$U$43,MATCH($B140,'Damage costs'!$C$16:$C$43,0))/1000,CG55*INDEX('Damage costs'!$Y$16:$Y$43,MATCH($B140,'Damage costs'!$C$16:$C$43,0))/1000),\"\")","v":""},{"$f":"IFERROR(IF(OR($C$144=FALSE,LEFT($B140,3)<>\"NOX\"),CH55*INDEX('Damage costs'!$U$16:$U$43,MATCH($B140,'Damage costs'!$C$16:$C$43,0))/1000,CH55*INDEX('Damage costs'!$Y$16:$Y$43,MATCH($B140,'Damage costs'!$C$16:$C$43,0))/1000),\"\")","v":""},{"$f":"IFERROR(IF(OR($C$144=FALSE,LEFT($B140,3)<>\"NOX\"),CI55*INDEX('Damage costs'!$U$16:$U$43,MATCH($B140,'Damage costs'!$C$16:$C$43,0))/1000,CI55*INDEX('Damage costs'!$Y$16:$Y$43,MATCH($B140,'Damage costs'!$C$16:$C$43,0))/1000),\"\")","v":""},{"$f":"IFERROR(IF(OR($C$144=FALSE,LEFT($B140,3)<>\"NOX\"),CJ55*INDEX('Damage costs'!$U$16:$U$43,MATCH($B140,'Damage costs'!$C$16:$C$43,0))/1000,CJ55*INDEX('Damage costs'!$Y$16:$Y$43,MATCH($B140,'Damage costs'!$C$16:$C$43,0))/1000),\"\")","v":""},{"$f":"IFERROR(IF(OR($C$144=FALSE,LEFT($B140,3)<>\"NOX\"),CK55*INDEX('Damage costs'!$U$16:$U$43,MATCH($B140,'Damage costs'!$C$16:$C$43,0))/1000,CK55*INDEX('Damage costs'!$Y$16:$Y$43,MATCH($B140,'Damage costs'!$C$16:$C$43,0))/1000),\"\")","v":""},{"$f":"IFERROR(IF(OR($C$144=FALSE,LEFT($B140,3)<>\"NOX\"),CL55*INDEX('Damage costs'!$U$16:$U$43,MATCH($B140,'Damage costs'!$C$16:$C$43,0))/1000,CL55*INDEX('Damage costs'!$Y$16:$Y$43,MATCH($B140,'Damage costs'!$C$16:$C$43,0))/1000),\"\")","v":""},{"$f":"IFERROR(IF(OR($C$144=FALSE,LEFT($B140,3)<>\"NOX\"),CM55*INDEX('Damage costs'!$U$16:$U$43,MATCH($B140,'Damage costs'!$C$16:$C$43,0))/1000,CM55*INDEX('Damage costs'!$Y$16:$Y$43,MATCH($B140,'Damage costs'!$C$16:$C$43,0))/1000),\"\")","v":""},{"$f":"IFERROR(IF(OR($C$144=FALSE,LEFT($B140,3)<>\"NOX\"),CN55*INDEX('Damage costs'!$U$16:$U$43,MATCH($B140,'Damage costs'!$C$16:$C$43,0))/1000,CN55*INDEX('Damage costs'!$Y$16:$Y$43,MATCH($B140,'Damage costs'!$C$16:$C$43,0))/1000),\"\")","v":""},{"$f":"IFERROR(IF(OR($C$144=FALSE,LEFT($B140,3)<>\"NOX\"),CO55*INDEX('Damage costs'!$U$16:$U$43,MATCH($B140,'Damage costs'!$C$16:$C$43,0))/1000,CO55*INDEX('Damage costs'!$Y$16:$Y$43,MATCH($B140,'Damage costs'!$C$16:$C$43,0))/1000),\"\")","v":""},{"$f":"IFERROR(IF(OR($C$144=FALSE,LEFT($B140,3)<>\"NOX\"),CP55*INDEX('Damage costs'!$U$16:$U$43,MATCH($B140,'Damage costs'!$C$16:$C$43,0))/1000,CP55*INDEX('Damage costs'!$Y$16:$Y$43,MATCH($B140,'Damage costs'!$C$16:$C$43,0))/1000),\"\")","v":""},{"$f":"IFERROR(IF(OR($C$144=FALSE,LEFT($B140,3)<>\"NOX\"),CQ55*INDEX('Damage costs'!$U$16:$U$43,MATCH($B140,'Damage costs'!$C$16:$C$43,0))/1000,CQ55*INDEX('Damage costs'!$Y$16:$Y$43,MATCH($B140,'Damage costs'!$C$16:$C$43,0))/1000),\"\")","v":""},{"$f":"IFERROR(IF(OR($C$144=FALSE,LEFT($B140,3)<>\"NOX\"),CR55*INDEX('Damage costs'!$U$16:$U$43,MATCH($B140,'Damage costs'!$C$16:$C$43,0))/1000,CR55*INDEX('Damage costs'!$Y$16:$Y$43,MATCH($B140,'Damage costs'!$C$16:$C$43,0))/1000),\"\")","v":""},{"$f":"IFERROR(IF(OR($C$144=FALSE,LEFT($B140,3)<>\"NOX\"),CS55*INDEX('Damage costs'!$U$16:$U$43,MATCH($B140,'Damage costs'!$C$16:$C$43,0))/1000,CS55*INDEX('Damage costs'!$Y$16:$Y$43,MATCH($B140,'Damage costs'!$C$16:$C$43,0))/1000),\"\")","v":""},{"$f":"IFERROR(IF(OR($C$144=FALSE,LEFT($B140,3)<>\"NOX\"),CT55*INDEX('Damage costs'!$U$16:$U$43,MATCH($B140,'Damage costs'!$C$16:$C$43,0))/1000,CT55*INDEX('Damage costs'!$Y$16:$Y$43,MATCH($B140,'Damage costs'!$C$16:$C$43,0))/1000),\"\")","v":""},{"$f":"IFERROR(IF(OR($C$144=FALSE,LEFT($B140,3)<>\"NOX\"),CU55*INDEX('Damage costs'!$U$16:$U$43,MATCH($B140,'Damage costs'!$C$16:$C$43,0))/1000,CU55*INDEX('Damage costs'!$Y$16:$Y$43,MATCH($B140,'Damage costs'!$C$16:$C$43,0))/1000),\"\")","v":""},{"$f":"IFERROR(IF(OR($C$144=FALSE,LEFT($B140,3)<>\"NOX\"),CV55*INDEX('Damage costs'!$U$16:$U$43,MATCH($B140,'Damage costs'!$C$16:$C$43,0))/1000,CV55*INDEX('Damage costs'!$Y$16:$Y$43,MATCH($B140,'Damage costs'!$C$16:$C$43,0))/1000),\"\")","v":""},{"$f":"IFERROR(IF(OR($C$144=FALSE,LEFT($B140,3)<>\"NOX\"),CW55*INDEX('Damage costs'!$U$16:$U$43,MATCH($B140,'Damage costs'!$C$16:$C$43,0))/1000,CW55*INDEX('Damage costs'!$Y$16:$Y$43,MATCH($B140,'Damage costs'!$C$16:$C$43,0))/1000),\"\")","v":""},{"$f":"IFERROR(IF(OR($C$144=FALSE,LEFT($B140,3)<>\"NOX\"),CX55*INDEX('Damage costs'!$U$16:$U$43,MATCH($B140,'Damage costs'!$C$16:$C$43,0))/1000,CX55*INDEX('Damage costs'!$Y$16:$Y$43,MATCH($B140,'Damage costs'!$C$16:$C$43,0))/1000),\"\")","v":""},{"$f":"IFERROR(IF(OR($C$144=FALSE,LEFT($B140,3)<>\"NOX\"),CY55*INDEX('Damage costs'!$U$16:$U$43,MATCH($B140,'Damage costs'!$C$16:$C$43,0))/1000,CY55*INDEX('Damage costs'!$Y$16:$Y$43,MATCH($B140,'Damage costs'!$C$16:$C$43,0))/1000),\"\")","v":""}]
[null,0,"£000's",{"$f":"IFERROR(IF(OR($C$144=FALSE,LEFT($B141,3)<>\"NOX\"),D56*INDEX('Damage costs'!$U$16:$U$43,MATCH($B141,'Damage costs'!$C$16:$C$43,0))/1000,D56*INDEX('Damage costs'!$Y$16:$Y$43,MATCH($B141,'Damage costs'!$C$16:$C$43,0))/1000),\"\")","v":""},{"$f":"IFERROR(IF(OR($C$144=FALSE,LEFT($B141,3)<>\"NOX\"),E56*INDEX('Damage costs'!$U$16:$U$43,MATCH($B141,'Damage costs'!$C$16:$C$43,0))/1000,E56*INDEX('Damage costs'!$Y$16:$Y$43,MATCH($B141,'Damage costs'!$C$16:$C$43,0))/1000),\"\")","v":""},{"$f":"IFERROR(IF(OR($C$144=FALSE,LEFT($B141,3)<>\"NOX\"),F56*INDEX('Damage costs'!$U$16:$U$43,MATCH($B141,'Damage costs'!$C$16:$C$43,0))/1000,F56*INDEX('Damage costs'!$Y$16:$Y$43,MATCH($B141,'Damage costs'!$C$16:$C$43,0))/1000),\"\")","v":""},{"$f":"IFERROR(IF(OR($C$144=FALSE,LEFT($B141,3)<>\"NOX\"),G56*INDEX('Damage costs'!$U$16:$U$43,MATCH($B141,'Damage costs'!$C$16:$C$43,0))/1000,G56*INDEX('Damage costs'!$Y$16:$Y$43,MATCH($B141,'Damage costs'!$C$16:$C$43,0))/1000),\"\")","v":""},{"$f":"IFERROR(IF(OR($C$144=FALSE,LEFT($B141,3)<>\"NOX\"),H56*INDEX('Damage costs'!$U$16:$U$43,MATCH($B141,'Damage costs'!$C$16:$C$43,0))/1000,H56*INDEX('Damage costs'!$Y$16:$Y$43,MATCH($B141,'Damage costs'!$C$16:$C$43,0))/1000),\"\")","v":""},{"$f":"IFERROR(IF(OR($C$144=FALSE,LEFT($B141,3)<>\"NOX\"),I56*INDEX('Damage costs'!$U$16:$U$43,MATCH($B141,'Damage costs'!$C$16:$C$43,0))/1000,I56*INDEX('Damage costs'!$Y$16:$Y$43,MATCH($B141,'Damage costs'!$C$16:$C$43,0))/1000),\"\")","v":""},{"$f":"IFERROR(IF(OR($C$144=FALSE,LEFT($B141,3)<>\"NOX\"),J56*INDEX('Damage costs'!$U$16:$U$43,MATCH($B141,'Damage costs'!$C$16:$C$43,0))/1000,J56*INDEX('Damage costs'!$Y$16:$Y$43,MATCH($B141,'Damage costs'!$C$16:$C$43,0))/1000),\"\")","v":""},{"$f":"IFERROR(IF(OR($C$144=FALSE,LEFT($B141,3)<>\"NOX\"),K56*INDEX('Damage costs'!$U$16:$U$43,MATCH($B141,'Damage costs'!$C$16:$C$43,0))/1000,K56*INDEX('Damage costs'!$Y$16:$Y$43,MATCH($B141,'Damage costs'!$C$16:$C$43,0))/1000),\"\")","v":""},{"$f":"IFERROR(IF(OR($C$144=FALSE,LEFT($B141,3)<>\"NOX\"),L56*INDEX('Damage costs'!$U$16:$U$43,MATCH($B141,'Damage costs'!$C$16:$C$43,0))/1000,L56*INDEX('Damage costs'!$Y$16:$Y$43,MATCH($B141,'Damage costs'!$C$16:$C$43,0))/1000),\"\")","v":""},{"$f":"IFERROR(IF(OR($C$144=FALSE,LEFT($B141,3)<>\"NOX\"),M56*INDEX('Damage costs'!$U$16:$U$43,MATCH($B141,'Damage costs'!$C$16:$C$43,0))/1000,M56*INDEX('Damage costs'!$Y$16:$Y$43,MATCH($B141,'Damage costs'!$C$16:$C$43,0))/1000),\"\")","v":""},{"$f":"IFERROR(IF(OR($C$144=FALSE,LEFT($B141,3)<>\"NOX\"),N56*INDEX('Damage costs'!$U$16:$U$43,MATCH($B141,'Damage costs'!$C$16:$C$43,0))/1000,N56*INDEX('Damage costs'!$Y$16:$Y$43,MATCH($B141,'Damage costs'!$C$16:$C$43,0))/1000),\"\")","v":""},{"$f":"IFERROR(IF(OR($C$144=FALSE,LEFT($B141,3)<>\"NOX\"),O56*INDEX('Damage costs'!$U$16:$U$43,MATCH($B141,'Damage costs'!$C$16:$C$43,0))/1000,O56*INDEX('Damage costs'!$Y$16:$Y$43,MATCH($B141,'Damage costs'!$C$16:$C$43,0))/1000),\"\")","v":""},{"$f":"IFERROR(IF(OR($C$144=FALSE,LEFT($B141,3)<>\"NOX\"),P56*INDEX('Damage costs'!$U$16:$U$43,MATCH($B141,'Damage costs'!$C$16:$C$43,0))/1000,P56*INDEX('Damage costs'!$Y$16:$Y$43,MATCH($B141,'Damage costs'!$C$16:$C$43,0))/1000),\"\")","v":""},{"$f":"IFERROR(IF(OR($C$144=FALSE,LEFT($B141,3)<>\"NOX\"),Q56*INDEX('Damage costs'!$U$16:$U$43,MATCH($B141,'Damage costs'!$C$16:$C$43,0))/1000,Q56*INDEX('Damage costs'!$Y$16:$Y$43,MATCH($B141,'Damage costs'!$C$16:$C$43,0))/1000),\"\")","v":""},{"$f":"IFERROR(IF(OR($C$144=FALSE,LEFT($B141,3)<>\"NOX\"),R56*INDEX('Damage costs'!$U$16:$U$43,MATCH($B141,'Damage costs'!$C$16:$C$43,0))/1000,R56*INDEX('Damage costs'!$Y$16:$Y$43,MATCH($B141,'Damage costs'!$C$16:$C$43,0))/1000),\"\")","v":""},{"$f":"IFERROR(IF(OR($C$144=FALSE,LEFT($B141,3)<>\"NOX\"),S56*INDEX('Damage costs'!$U$16:$U$43,MATCH($B141,'Damage costs'!$C$16:$C$43,0))/1000,S56*INDEX('Damage costs'!$Y$16:$Y$43,MATCH($B141,'Damage costs'!$C$16:$C$43,0))/1000),\"\")","v":""},{"$f":"IFERROR(IF(OR($C$144=FALSE,LEFT($B141,3)<>\"NOX\"),T56*INDEX('Damage costs'!$U$16:$U$43,MATCH($B141,'Damage costs'!$C$16:$C$43,0))/1000,T56*INDEX('Damage costs'!$Y$16:$Y$43,MATCH($B141,'Damage costs'!$C$16:$C$43,0))/1000),\"\")","v":""},{"$f":"IFERROR(IF(OR($C$144=FALSE,LEFT($B141,3)<>\"NOX\"),U56*INDEX('Damage costs'!$U$16:$U$43,MATCH($B141,'Damage costs'!$C$16:$C$43,0))/1000,U56*INDEX('Damage costs'!$Y$16:$Y$43,MATCH($B141,'Damage costs'!$C$16:$C$43,0))/1000),\"\")","v":""},{"$f":"IFERROR(IF(OR($C$144=FALSE,LEFT($B141,3)<>\"NOX\"),V56*INDEX('Damage costs'!$U$16:$U$43,MATCH($B141,'Damage costs'!$C$16:$C$43,0))/1000,V56*INDEX('Damage costs'!$Y$16:$Y$43,MATCH($B141,'Damage costs'!$C$16:$C$43,0))/1000),\"\")","v":""},{"$f":"IFERROR(IF(OR($C$144=FALSE,LEFT($B141,3)<>\"NOX\"),W56*INDEX('Damage costs'!$U$16:$U$43,MATCH($B141,'Damage costs'!$C$16:$C$43,0))/1000,W56*INDEX('Damage costs'!$Y$16:$Y$43,MATCH($B141,'Damage costs'!$C$16:$C$43,0))/1000),\"\")","v":""},{"$f":"IFERROR(IF(OR($C$144=FALSE,LEFT($B141,3)<>\"NOX\"),X56*INDEX('Damage costs'!$U$16:$U$43,MATCH($B141,'Damage costs'!$C$16:$C$43,0))/1000,X56*INDEX('Damage costs'!$Y$16:$Y$43,MATCH($B141,'Damage costs'!$C$16:$C$43,0))/1000),\"\")","v":""},{"$f":"IFERROR(IF(OR($C$144=FALSE,LEFT($B141,3)<>\"NOX\"),Y56*INDEX('Damage costs'!$U$16:$U$43,MATCH($B141,'Damage costs'!$C$16:$C$43,0))/1000,Y56*INDEX('Damage costs'!$Y$16:$Y$43,MATCH($B141,'Damage costs'!$C$16:$C$43,0))/1000),\"\")","v":""},{"$f":"IFERROR(IF(OR($C$144=FALSE,LEFT($B141,3)<>\"NOX\"),Z56*INDEX('Damage costs'!$U$16:$U$43,MATCH($B141,'Damage costs'!$C$16:$C$43,0))/1000,Z56*INDEX('Damage costs'!$Y$16:$Y$43,MATCH($B141,'Damage costs'!$C$16:$C$43,0))/1000),\"\")","v":""},{"$f":"IFERROR(IF(OR($C$144=FALSE,LEFT($B141,3)<>\"NOX\"),AA56*INDEX('Damage costs'!$U$16:$U$43,MATCH($B141,'Damage costs'!$C$16:$C$43,0))/1000,AA56*INDEX('Damage costs'!$Y$16:$Y$43,MATCH($B141,'Damage costs'!$C$16:$C$43,0))/1000),\"\")","v":""},{"$f":"IFERROR(IF(OR($C$144=FALSE,LEFT($B141,3)<>\"NOX\"),AB56*INDEX('Damage costs'!$U$16:$U$43,MATCH($B141,'Damage costs'!$C$16:$C$43,0))/1000,AB56*INDEX('Damage costs'!$Y$16:$Y$43,MATCH($B141,'Damage costs'!$C$16:$C$43,0))/1000),\"\")","v":""},{"$f":"IFERROR(IF(OR($C$144=FALSE,LEFT($B141,3)<>\"NOX\"),AC56*INDEX('Damage costs'!$U$16:$U$43,MATCH($B141,'Damage costs'!$C$16:$C$43,0))/1000,AC56*INDEX('Damage costs'!$Y$16:$Y$43,MATCH($B141,'Damage costs'!$C$16:$C$43,0))/1000),\"\")","v":""},{"$f":"IFERROR(IF(OR($C$144=FALSE,LEFT($B141,3)<>\"NOX\"),AD56*INDEX('Damage costs'!$U$16:$U$43,MATCH($B141,'Damage costs'!$C$16:$C$43,0))/1000,AD56*INDEX('Damage costs'!$Y$16:$Y$43,MATCH($B141,'Damage costs'!$C$16:$C$43,0))/1000),\"\")","v":""},{"$f":"IFERROR(IF(OR($C$144=FALSE,LEFT($B141,3)<>\"NOX\"),AE56*INDEX('Damage costs'!$U$16:$U$43,MATCH($B141,'Damage costs'!$C$16:$C$43,0))/1000,AE56*INDEX('Damage costs'!$Y$16:$Y$43,MATCH($B141,'Damage costs'!$C$16:$C$43,0))/1000),\"\")","v":""},{"$f":"IFERROR(IF(OR($C$144=FALSE,LEFT($B141,3)<>\"NOX\"),AF56*INDEX('Damage costs'!$U$16:$U$43,MATCH($B141,'Damage costs'!$C$16:$C$43,0))/1000,AF56*INDEX('Damage costs'!$Y$16:$Y$43,MATCH($B141,'Damage costs'!$C$16:$C$43,0))/1000),\"\")","v":""},{"$f":"IFERROR(IF(OR($C$144=FALSE,LEFT($B141,3)<>\"NOX\"),AG56*INDEX('Damage costs'!$U$16:$U$43,MATCH($B141,'Damage costs'!$C$16:$C$43,0))/1000,AG56*INDEX('Damage costs'!$Y$16:$Y$43,MATCH($B141,'Damage costs'!$C$16:$C$43,0))/1000),\"\")","v":""},{"$f":"IFERROR(IF(OR($C$144=FALSE,LEFT($B141,3)<>\"NOX\"),AH56*INDEX('Damage costs'!$U$16:$U$43,MATCH($B141,'Damage costs'!$C$16:$C$43,0))/1000,AH56*INDEX('Damage costs'!$Y$16:$Y$43,MATCH($B141,'Damage costs'!$C$16:$C$43,0))/1000),\"\")","v":""},{"$f":"IFERROR(IF(OR($C$144=FALSE,LEFT($B141,3)<>\"NOX\"),AI56*INDEX('Damage costs'!$U$16:$U$43,MATCH($B141,'Damage costs'!$C$16:$C$43,0))/1000,AI56*INDEX('Damage costs'!$Y$16:$Y$43,MATCH($B141,'Damage costs'!$C$16:$C$43,0))/1000),\"\")","v":""},{"$f":"IFERROR(IF(OR($C$144=FALSE,LEFT($B141,3)<>\"NOX\"),AJ56*INDEX('Damage costs'!$U$16:$U$43,MATCH($B141,'Damage costs'!$C$16:$C$43,0))/1000,AJ56*INDEX('Damage costs'!$Y$16:$Y$43,MATCH($B141,'Damage costs'!$C$16:$C$43,0))/1000),\"\")","v":""},{"$f":"IFERROR(IF(OR($C$144=FALSE,LEFT($B141,3)<>\"NOX\"),AK56*INDEX('Damage costs'!$U$16:$U$43,MATCH($B141,'Damage costs'!$C$16:$C$43,0))/1000,AK56*INDEX('Damage costs'!$Y$16:$Y$43,MATCH($B141,'Damage costs'!$C$16:$C$43,0))/1000),\"\")","v":""},{"$f":"IFERROR(IF(OR($C$144=FALSE,LEFT($B141,3)<>\"NOX\"),AL56*INDEX('Damage costs'!$U$16:$U$43,MATCH($B141,'Damage costs'!$C$16:$C$43,0))/1000,AL56*INDEX('Damage costs'!$Y$16:$Y$43,MATCH($B141,'Damage costs'!$C$16:$C$43,0))/1000),\"\")","v":""},{"$f":"IFERROR(IF(OR($C$144=FALSE,LEFT($B141,3)<>\"NOX\"),AM56*INDEX('Damage costs'!$U$16:$U$43,MATCH($B141,'Damage costs'!$C$16:$C$43,0))/1000,AM56*INDEX('Damage costs'!$Y$16:$Y$43,MATCH($B141,'Damage costs'!$C$16:$C$43,0))/1000),\"\")","v":""},{"$f":"IFERROR(IF(OR($C$144=FALSE,LEFT($B141,3)<>\"NOX\"),AN56*INDEX('Damage costs'!$U$16:$U$43,MATCH($B141,'Damage costs'!$C$16:$C$43,0))/1000,AN56*INDEX('Damage costs'!$Y$16:$Y$43,MATCH($B141,'Damage costs'!$C$16:$C$43,0))/1000),\"\")","v":""},{"$f":"IFERROR(IF(OR($C$144=FALSE,LEFT($B141,3)<>\"NOX\"),AO56*INDEX('Damage costs'!$U$16:$U$43,MATCH($B141,'Damage costs'!$C$16:$C$43,0))/1000,AO56*INDEX('Damage costs'!$Y$16:$Y$43,MATCH($B141,'Damage costs'!$C$16:$C$43,0))/1000),\"\")","v":""},{"$f":"IFERROR(IF(OR($C$144=FALSE,LEFT($B141,3)<>\"NOX\"),AP56*INDEX('Damage costs'!$U$16:$U$43,MATCH($B141,'Damage costs'!$C$16:$C$43,0))/1000,AP56*INDEX('Damage costs'!$Y$16:$Y$43,MATCH($B141,'Damage costs'!$C$16:$C$43,0))/1000),\"\")","v":""},{"$f":"IFERROR(IF(OR($C$144=FALSE,LEFT($B141,3)<>\"NOX\"),AQ56*INDEX('Damage costs'!$U$16:$U$43,MATCH($B141,'Damage costs'!$C$16:$C$43,0))/1000,AQ56*INDEX('Damage costs'!$Y$16:$Y$43,MATCH($B141,'Damage costs'!$C$16:$C$43,0))/1000),\"\")","v":""},{"$f":"IFERROR(IF(OR($C$144=FALSE,LEFT($B141,3)<>\"NOX\"),AR56*INDEX('Damage costs'!$U$16:$U$43,MATCH($B141,'Damage costs'!$C$16:$C$43,0))/1000,AR56*INDEX('Damage costs'!$Y$16:$Y$43,MATCH($B141,'Damage costs'!$C$16:$C$43,0))/1000),\"\")","v":""},{"$f":"IFERROR(IF(OR($C$144=FALSE,LEFT($B141,3)<>\"NOX\"),AS56*INDEX('Damage costs'!$U$16:$U$43,MATCH($B141,'Damage costs'!$C$16:$C$43,0))/1000,AS56*INDEX('Damage costs'!$Y$16:$Y$43,MATCH($B141,'Damage costs'!$C$16:$C$43,0))/1000),\"\")","v":""},{"$f":"IFERROR(IF(OR($C$144=FALSE,LEFT($B141,3)<>\"NOX\"),AT56*INDEX('Damage costs'!$U$16:$U$43,MATCH($B141,'Damage costs'!$C$16:$C$43,0))/1000,AT56*INDEX('Damage costs'!$Y$16:$Y$43,MATCH($B141,'Damage costs'!$C$16:$C$43,0))/1000),\"\")","v":""},{"$f":"IFERROR(IF(OR($C$144=FALSE,LEFT($B141,3)<>\"NOX\"),AU56*INDEX('Damage costs'!$U$16:$U$43,MATCH($B141,'Damage costs'!$C$16:$C$43,0))/1000,AU56*INDEX('Damage costs'!$Y$16:$Y$43,MATCH($B141,'Damage costs'!$C$16:$C$43,0))/1000),\"\")","v":""},{"$f":"IFERROR(IF(OR($C$144=FALSE,LEFT($B141,3)<>\"NOX\"),AV56*INDEX('Damage costs'!$U$16:$U$43,MATCH($B141,'Damage costs'!$C$16:$C$43,0))/1000,AV56*INDEX('Damage costs'!$Y$16:$Y$43,MATCH($B141,'Damage costs'!$C$16:$C$43,0))/1000),\"\")","v":""},{"$f":"IFERROR(IF(OR($C$144=FALSE,LEFT($B141,3)<>\"NOX\"),AW56*INDEX('Damage costs'!$U$16:$U$43,MATCH($B141,'Damage costs'!$C$16:$C$43,0))/1000,AW56*INDEX('Damage costs'!$Y$16:$Y$43,MATCH($B141,'Damage costs'!$C$16:$C$43,0))/1000),\"\")","v":""},{"$f":"IFERROR(IF(OR($C$144=FALSE,LEFT($B141,3)<>\"NOX\"),AX56*INDEX('Damage costs'!$U$16:$U$43,MATCH($B141,'Damage costs'!$C$16:$C$43,0))/1000,AX56*INDEX('Damage costs'!$Y$16:$Y$43,MATCH($B141,'Damage costs'!$C$16:$C$43,0))/1000),\"\")","v":""},{"$f":"IFERROR(IF(OR($C$144=FALSE,LEFT($B141,3)<>\"NOX\"),AY56*INDEX('Damage costs'!$U$16:$U$43,MATCH($B141,'Damage costs'!$C$16:$C$43,0))/1000,AY56*INDEX('Damage costs'!$Y$16:$Y$43,MATCH($B141,'Damage costs'!$C$16:$C$43,0))/1000),\"\")","v":""},{"$f":"IFERROR(IF(OR($C$144=FALSE,LEFT($B141,3)<>\"NOX\"),AZ56*INDEX('Damage costs'!$U$16:$U$43,MATCH($B141,'Damage costs'!$C$16:$C$43,0))/1000,AZ56*INDEX('Damage costs'!$Y$16:$Y$43,MATCH($B141,'Damage costs'!$C$16:$C$43,0))/1000),\"\")","v":""},{"$f":"IFERROR(IF(OR($C$144=FALSE,LEFT($B141,3)<>\"NOX\"),BA56*INDEX('Damage costs'!$U$16:$U$43,MATCH($B141,'Damage costs'!$C$16:$C$43,0))/1000,BA56*INDEX('Damage costs'!$Y$16:$Y$43,MATCH($B141,'Damage costs'!$C$16:$C$43,0))/1000),\"\")","v":""},{"$f":"IFERROR(IF(OR($C$144=FALSE,LEFT($B141,3)<>\"NOX\"),BB56*INDEX('Damage costs'!$U$16:$U$43,MATCH($B141,'Damage costs'!$C$16:$C$43,0))/1000,BB56*INDEX('Damage costs'!$Y$16:$Y$43,MATCH($B141,'Damage costs'!$C$16:$C$43,0))/1000),\"\")","v":""},{"$f":"IFERROR(IF(OR($C$144=FALSE,LEFT($B141,3)<>\"NOX\"),BC56*INDEX('Damage costs'!$U$16:$U$43,MATCH($B141,'Damage costs'!$C$16:$C$43,0))/1000,BC56*INDEX('Damage costs'!$Y$16:$Y$43,MATCH($B141,'Damage costs'!$C$16:$C$43,0))/1000),\"\")","v":""},{"$f":"IFERROR(IF(OR($C$144=FALSE,LEFT($B141,3)<>\"NOX\"),BD56*INDEX('Damage costs'!$U$16:$U$43,MATCH($B141,'Damage costs'!$C$16:$C$43,0))/1000,BD56*INDEX('Damage costs'!$Y$16:$Y$43,MATCH($B141,'Damage costs'!$C$16:$C$43,0))/1000),\"\")","v":""},{"$f":"IFERROR(IF(OR($C$144=FALSE,LEFT($B141,3)<>\"NOX\"),BE56*INDEX('Damage costs'!$U$16:$U$43,MATCH($B141,'Damage costs'!$C$16:$C$43,0))/1000,BE56*INDEX('Damage costs'!$Y$16:$Y$43,MATCH($B141,'Damage costs'!$C$16:$C$43,0))/1000),\"\")","v":""},{"$f":"IFERROR(IF(OR($C$144=FALSE,LEFT($B141,3)<>\"NOX\"),BF56*INDEX('Damage costs'!$U$16:$U$43,MATCH($B141,'Damage costs'!$C$16:$C$43,0))/1000,BF56*INDEX('Damage costs'!$Y$16:$Y$43,MATCH($B141,'Damage costs'!$C$16:$C$43,0))/1000),\"\")","v":""},{"$f":"IFERROR(IF(OR($C$144=FALSE,LEFT($B141,3)<>\"NOX\"),BG56*INDEX('Damage costs'!$U$16:$U$43,MATCH($B141,'Damage costs'!$C$16:$C$43,0))/1000,BG56*INDEX('Damage costs'!$Y$16:$Y$43,MATCH($B141,'Damage costs'!$C$16:$C$43,0))/1000),\"\")","v":""},{"$f":"IFERROR(IF(OR($C$144=FALSE,LEFT($B141,3)<>\"NOX\"),BH56*INDEX('Damage costs'!$U$16:$U$43,MATCH($B141,'Damage costs'!$C$16:$C$43,0))/1000,BH56*INDEX('Damage costs'!$Y$16:$Y$43,MATCH($B141,'Damage costs'!$C$16:$C$43,0))/1000),\"\")","v":""},{"$f":"IFERROR(IF(OR($C$144=FALSE,LEFT($B141,3)<>\"NOX\"),BI56*INDEX('Damage costs'!$U$16:$U$43,MATCH($B141,'Damage costs'!$C$16:$C$43,0))/1000,BI56*INDEX('Damage costs'!$Y$16:$Y$43,MATCH($B141,'Damage costs'!$C$16:$C$43,0))/1000),\"\")","v":""},{"$f":"IFERROR(IF(OR($C$144=FALSE,LEFT($B141,3)<>\"NOX\"),BJ56*INDEX('Damage costs'!$U$16:$U$43,MATCH($B141,'Damage costs'!$C$16:$C$43,0))/1000,BJ56*INDEX('Damage costs'!$Y$16:$Y$43,MATCH($B141,'Damage costs'!$C$16:$C$43,0))/1000),\"\")","v":""},{"$f":"IFERROR(IF(OR($C$144=FALSE,LEFT($B141,3)<>\"NOX\"),BK56*INDEX('Damage costs'!$U$16:$U$43,MATCH($B141,'Damage costs'!$C$16:$C$43,0))/1000,BK56*INDEX('Damage costs'!$Y$16:$Y$43,MATCH($B141,'Damage costs'!$C$16:$C$43,0))/1000),\"\")","v":""},{"$f":"IFERROR(IF(OR($C$144=FALSE,LEFT($B141,3)<>\"NOX\"),BL56*INDEX('Damage costs'!$U$16:$U$43,MATCH($B141,'Damage costs'!$C$16:$C$43,0))/1000,BL56*INDEX('Damage costs'!$Y$16:$Y$43,MATCH($B141,'Damage costs'!$C$16:$C$43,0))/1000),\"\")","v":""},{"$f":"IFERROR(IF(OR($C$144=FALSE,LEFT($B141,3)<>\"NOX\"),BM56*INDEX('Damage costs'!$U$16:$U$43,MATCH($B141,'Damage costs'!$C$16:$C$43,0))/1000,BM56*INDEX('Damage costs'!$Y$16:$Y$43,MATCH($B141,'Damage costs'!$C$16:$C$43,0))/1000),\"\")","v":""},{"$f":"IFERROR(IF(OR($C$144=FALSE,LEFT($B141,3)<>\"NOX\"),BN56*INDEX('Damage costs'!$U$16:$U$43,MATCH($B141,'Damage costs'!$C$16:$C$43,0))/1000,BN56*INDEX('Damage costs'!$Y$16:$Y$43,MATCH($B141,'Damage costs'!$C$16:$C$43,0))/1000),\"\")","v":""},{"$f":"IFERROR(IF(OR($C$144=FALSE,LEFT($B141,3)<>\"NOX\"),BO56*INDEX('Damage costs'!$U$16:$U$43,MATCH($B141,'Damage costs'!$C$16:$C$43,0))/1000,BO56*INDEX('Damage costs'!$Y$16:$Y$43,MATCH($B141,'Damage costs'!$C$16:$C$43,0))/1000),\"\")","v":""},{"$f":"IFERROR(IF(OR($C$144=FALSE,LEFT($B141,3)<>\"NOX\"),BP56*INDEX('Damage costs'!$U$16:$U$43,MATCH($B141,'Damage costs'!$C$16:$C$43,0))/1000,BP56*INDEX('Damage costs'!$Y$16:$Y$43,MATCH($B141,'Damage costs'!$C$16:$C$43,0))/1000),\"\")","v":""},{"$f":"IFERROR(IF(OR($C$144=FALSE,LEFT($B141,3)<>\"NOX\"),BQ56*INDEX('Damage costs'!$U$16:$U$43,MATCH($B141,'Damage costs'!$C$16:$C$43,0))/1000,BQ56*INDEX('Damage costs'!$Y$16:$Y$43,MATCH($B141,'Damage costs'!$C$16:$C$43,0))/1000),\"\")","v":""},{"$f":"IFERROR(IF(OR($C$144=FALSE,LEFT($B141,3)<>\"NOX\"),BR56*INDEX('Damage costs'!$U$16:$U$43,MATCH($B141,'Damage costs'!$C$16:$C$43,0))/1000,BR56*INDEX('Damage costs'!$Y$16:$Y$43,MATCH($B141,'Damage costs'!$C$16:$C$43,0))/1000),\"\")","v":""},{"$f":"IFERROR(IF(OR($C$144=FALSE,LEFT($B141,3)<>\"NOX\"),BS56*INDEX('Damage costs'!$U$16:$U$43,MATCH($B141,'Damage costs'!$C$16:$C$43,0))/1000,BS56*INDEX('Damage costs'!$Y$16:$Y$43,MATCH($B141,'Damage costs'!$C$16:$C$43,0))/1000),\"\")","v":""},{"$f":"IFERROR(IF(OR($C$144=FALSE,LEFT($B141,3)<>\"NOX\"),BT56*INDEX('Damage costs'!$U$16:$U$43,MATCH($B141,'Damage costs'!$C$16:$C$43,0))/1000,BT56*INDEX('Damage costs'!$Y$16:$Y$43,MATCH($B141,'Damage costs'!$C$16:$C$43,0))/1000),\"\")","v":""},{"$f":"IFERROR(IF(OR($C$144=FALSE,LEFT($B141,3)<>\"NOX\"),BU56*INDEX('Damage costs'!$U$16:$U$43,MATCH($B141,'Damage costs'!$C$16:$C$43,0))/1000,BU56*INDEX('Damage costs'!$Y$16:$Y$43,MATCH($B141,'Damage costs'!$C$16:$C$43,0))/1000),\"\")","v":""},{"$f":"IFERROR(IF(OR($C$144=FALSE,LEFT($B141,3)<>\"NOX\"),BV56*INDEX('Damage costs'!$U$16:$U$43,MATCH($B141,'Damage costs'!$C$16:$C$43,0))/1000,BV56*INDEX('Damage costs'!$Y$16:$Y$43,MATCH($B141,'Damage costs'!$C$16:$C$43,0))/1000),\"\")","v":""},{"$f":"IFERROR(IF(OR($C$144=FALSE,LEFT($B141,3)<>\"NOX\"),BW56*INDEX('Damage costs'!$U$16:$U$43,MATCH($B141,'Damage costs'!$C$16:$C$43,0))/1000,BW56*INDEX('Damage costs'!$Y$16:$Y$43,MATCH($B141,'Damage costs'!$C$16:$C$43,0))/1000),\"\")","v":""},{"$f":"IFERROR(IF(OR($C$144=FALSE,LEFT($B141,3)<>\"NOX\"),BX56*INDEX('Damage costs'!$U$16:$U$43,MATCH($B141,'Damage costs'!$C$16:$C$43,0))/1000,BX56*INDEX('Damage costs'!$Y$16:$Y$43,MATCH($B141,'Damage costs'!$C$16:$C$43,0))/1000),\"\")","v":""},{"$f":"IFERROR(IF(OR($C$144=FALSE,LEFT($B141,3)<>\"NOX\"),BY56*INDEX('Damage costs'!$U$16:$U$43,MATCH($B141,'Damage costs'!$C$16:$C$43,0))/1000,BY56*INDEX('Damage costs'!$Y$16:$Y$43,MATCH($B141,'Damage costs'!$C$16:$C$43,0))/1000),\"\")","v":""},{"$f":"IFERROR(IF(OR($C$144=FALSE,LEFT($B141,3)<>\"NOX\"),BZ56*INDEX('Damage costs'!$U$16:$U$43,MATCH($B141,'Damage costs'!$C$16:$C$43,0))/1000,BZ56*INDEX('Damage costs'!$Y$16:$Y$43,MATCH($B141,'Damage costs'!$C$16:$C$43,0))/1000),\"\")","v":""},{"$f":"IFERROR(IF(OR($C$144=FALSE,LEFT($B141,3)<>\"NOX\"),CA56*INDEX('Damage costs'!$U$16:$U$43,MATCH($B141,'Damage costs'!$C$16:$C$43,0))/1000,CA56*INDEX('Damage costs'!$Y$16:$Y$43,MATCH($B141,'Damage costs'!$C$16:$C$43,0))/1000),\"\")","v":""},{"$f":"IFERROR(IF(OR($C$144=FALSE,LEFT($B141,3)<>\"NOX\"),CB56*INDEX('Damage costs'!$U$16:$U$43,MATCH($B141,'Damage costs'!$C$16:$C$43,0))/1000,CB56*INDEX('Damage costs'!$Y$16:$Y$43,MATCH($B141,'Damage costs'!$C$16:$C$43,0))/1000),\"\")","v":""},{"$f":"IFERROR(IF(OR($C$144=FALSE,LEFT($B141,3)<>\"NOX\"),CC56*INDEX('Damage costs'!$U$16:$U$43,MATCH($B141,'Damage costs'!$C$16:$C$43,0))/1000,CC56*INDEX('Damage costs'!$Y$16:$Y$43,MATCH($B141,'Damage costs'!$C$16:$C$43,0))/1000),\"\")","v":""},{"$f":"IFERROR(IF(OR($C$144=FALSE,LEFT($B141,3)<>\"NOX\"),CD56*INDEX('Damage costs'!$U$16:$U$43,MATCH($B141,'Damage costs'!$C$16:$C$43,0))/1000,CD56*INDEX('Damage costs'!$Y$16:$Y$43,MATCH($B141,'Damage costs'!$C$16:$C$43,0))/1000),\"\")","v":""},{"$f":"IFERROR(IF(OR($C$144=FALSE,LEFT($B141,3)<>\"NOX\"),CE56*INDEX('Damage costs'!$U$16:$U$43,MATCH($B141,'Damage costs'!$C$16:$C$43,0))/1000,CE56*INDEX('Damage costs'!$Y$16:$Y$43,MATCH($B141,'Damage costs'!$C$16:$C$43,0))/1000),\"\")","v":""},{"$f":"IFERROR(IF(OR($C$144=FALSE,LEFT($B141,3)<>\"NOX\"),CF56*INDEX('Damage costs'!$U$16:$U$43,MATCH($B141,'Damage costs'!$C$16:$C$43,0))/1000,CF56*INDEX('Damage costs'!$Y$16:$Y$43,MATCH($B141,'Damage costs'!$C$16:$C$43,0))/1000),\"\")","v":""},{"$f":"IFERROR(IF(OR($C$144=FALSE,LEFT($B141,3)<>\"NOX\"),CG56*INDEX('Damage costs'!$U$16:$U$43,MATCH($B141,'Damage costs'!$C$16:$C$43,0))/1000,CG56*INDEX('Damage costs'!$Y$16:$Y$43,MATCH($B141,'Damage costs'!$C$16:$C$43,0))/1000),\"\")","v":""},{"$f":"IFERROR(IF(OR($C$144=FALSE,LEFT($B141,3)<>\"NOX\"),CH56*INDEX('Damage costs'!$U$16:$U$43,MATCH($B141,'Damage costs'!$C$16:$C$43,0))/1000,CH56*INDEX('Damage costs'!$Y$16:$Y$43,MATCH($B141,'Damage costs'!$C$16:$C$43,0))/1000),\"\")","v":""},{"$f":"IFERROR(IF(OR($C$144=FALSE,LEFT($B141,3)<>\"NOX\"),CI56*INDEX('Damage costs'!$U$16:$U$43,MATCH($B141,'Damage costs'!$C$16:$C$43,0))/1000,CI56*INDEX('Damage costs'!$Y$16:$Y$43,MATCH($B141,'Damage costs'!$C$16:$C$43,0))/1000),\"\")","v":""},{"$f":"IFERROR(IF(OR($C$144=FALSE,LEFT($B141,3)<>\"NOX\"),CJ56*INDEX('Damage costs'!$U$16:$U$43,MATCH($B141,'Damage costs'!$C$16:$C$43,0))/1000,CJ56*INDEX('Damage costs'!$Y$16:$Y$43,MATCH($B141,'Damage costs'!$C$16:$C$43,0))/1000),\"\")","v":""},{"$f":"IFERROR(IF(OR($C$144=FALSE,LEFT($B141,3)<>\"NOX\"),CK56*INDEX('Damage costs'!$U$16:$U$43,MATCH($B141,'Damage costs'!$C$16:$C$43,0))/1000,CK56*INDEX('Damage costs'!$Y$16:$Y$43,MATCH($B141,'Damage costs'!$C$16:$C$43,0))/1000),\"\")","v":""},{"$f":"IFERROR(IF(OR($C$144=FALSE,LEFT($B141,3)<>\"NOX\"),CL56*INDEX('Damage costs'!$U$16:$U$43,MATCH($B141,'Damage costs'!$C$16:$C$43,0))/1000,CL56*INDEX('Damage costs'!$Y$16:$Y$43,MATCH($B141,'Damage costs'!$C$16:$C$43,0))/1000),\"\")","v":""},{"$f":"IFERROR(IF(OR($C$144=FALSE,LEFT($B141,3)<>\"NOX\"),CM56*INDEX('Damage costs'!$U$16:$U$43,MATCH($B141,'Damage costs'!$C$16:$C$43,0))/1000,CM56*INDEX('Damage costs'!$Y$16:$Y$43,MATCH($B141,'Damage costs'!$C$16:$C$43,0))/1000),\"\")","v":""},{"$f":"IFERROR(IF(OR($C$144=FALSE,LEFT($B141,3)<>\"NOX\"),CN56*INDEX('Damage costs'!$U$16:$U$43,MATCH($B141,'Damage costs'!$C$16:$C$43,0))/1000,CN56*INDEX('Damage costs'!$Y$16:$Y$43,MATCH($B141,'Damage costs'!$C$16:$C$43,0))/1000),\"\")","v":""},{"$f":"IFERROR(IF(OR($C$144=FALSE,LEFT($B141,3)<>\"NOX\"),CO56*INDEX('Damage costs'!$U$16:$U$43,MATCH($B141,'Damage costs'!$C$16:$C$43,0))/1000,CO56*INDEX('Damage costs'!$Y$16:$Y$43,MATCH($B141,'Damage costs'!$C$16:$C$43,0))/1000),\"\")","v":""},{"$f":"IFERROR(IF(OR($C$144=FALSE,LEFT($B141,3)<>\"NOX\"),CP56*INDEX('Damage costs'!$U$16:$U$43,MATCH($B141,'Damage costs'!$C$16:$C$43,0))/1000,CP56*INDEX('Damage costs'!$Y$16:$Y$43,MATCH($B141,'Damage costs'!$C$16:$C$43,0))/1000),\"\")","v":""},{"$f":"IFERROR(IF(OR($C$144=FALSE,LEFT($B141,3)<>\"NOX\"),CQ56*INDEX('Damage costs'!$U$16:$U$43,MATCH($B141,'Damage costs'!$C$16:$C$43,0))/1000,CQ56*INDEX('Damage costs'!$Y$16:$Y$43,MATCH($B141,'Damage costs'!$C$16:$C$43,0))/1000),\"\")","v":""},{"$f":"IFERROR(IF(OR($C$144=FALSE,LEFT($B141,3)<>\"NOX\"),CR56*INDEX('Damage costs'!$U$16:$U$43,MATCH($B141,'Damage costs'!$C$16:$C$43,0))/1000,CR56*INDEX('Damage costs'!$Y$16:$Y$43,MATCH($B141,'Damage costs'!$C$16:$C$43,0))/1000),\"\")","v":""},{"$f":"IFERROR(IF(OR($C$144=FALSE,LEFT($B141,3)<>\"NOX\"),CS56*INDEX('Damage costs'!$U$16:$U$43,MATCH($B141,'Damage costs'!$C$16:$C$43,0))/1000,CS56*INDEX('Damage costs'!$Y$16:$Y$43,MATCH($B141,'Damage costs'!$C$16:$C$43,0))/1000),\"\")","v":""},{"$f":"IFERROR(IF(OR($C$144=FALSE,LEFT($B141,3)<>\"NOX\"),CT56*INDEX('Damage costs'!$U$16:$U$43,MATCH($B141,'Damage costs'!$C$16:$C$43,0))/1000,CT56*INDEX('Damage costs'!$Y$16:$Y$43,MATCH($B141,'Damage costs'!$C$16:$C$43,0))/1000),\"\")","v":""},{"$f":"IFERROR(IF(OR($C$144=FALSE,LEFT($B141,3)<>\"NOX\"),CU56*INDEX('Damage costs'!$U$16:$U$43,MATCH($B141,'Damage costs'!$C$16:$C$43,0))/1000,CU56*INDEX('Damage costs'!$Y$16:$Y$43,MATCH($B141,'Damage costs'!$C$16:$C$43,0))/1000),\"\")","v":""},{"$f":"IFERROR(IF(OR($C$144=FALSE,LEFT($B141,3)<>\"NOX\"),CV56*INDEX('Damage costs'!$U$16:$U$43,MATCH($B141,'Damage costs'!$C$16:$C$43,0))/1000,CV56*INDEX('Damage costs'!$Y$16:$Y$43,MATCH($B141,'Damage costs'!$C$16:$C$43,0))/1000),\"\")","v":""},{"$f":"IFERROR(IF(OR($C$144=FALSE,LEFT($B141,3)<>\"NOX\"),CW56*INDEX('Damage costs'!$U$16:$U$43,MATCH($B141,'Damage costs'!$C$16:$C$43,0))/1000,CW56*INDEX('Damage costs'!$Y$16:$Y$43,MATCH($B141,'Damage costs'!$C$16:$C$43,0))/1000),\"\")","v":""},{"$f":"IFERROR(IF(OR($C$144=FALSE,LEFT($B141,3)<>\"NOX\"),CX56*INDEX('Damage costs'!$U$16:$U$43,MATCH($B141,'Damage costs'!$C$16:$C$43,0))/1000,CX56*INDEX('Damage costs'!$Y$16:$Y$43,MATCH($B141,'Damage costs'!$C$16:$C$43,0))/1000),\"\")","v":""},{"$f":"IFERROR(IF(OR($C$144=FALSE,LEFT($B141,3)<>\"NOX\"),CY56*INDEX('Damage costs'!$U$16:$U$43,MATCH($B141,'Damage costs'!$C$16:$C$43,0))/1000,CY56*INDEX('Damage costs'!$Y$16:$Y$43,MATCH($B141,'Damage costs'!$C$16:$C$43,0))/1000),\"\")","v":""}]
[null,0,"£000's",{"$f":"IFERROR(IF(OR($C$144=FALSE,LEFT($B142,3)<>\"NOX\"),D57*INDEX('Damage costs'!$U$16:$U$43,MATCH($B142,'Damage costs'!$C$16:$C$43,0))/1000,D57*INDEX('Damage costs'!$Y$16:$Y$43,MATCH($B142,'Damage costs'!$C$16:$C$43,0))/1000),\"\")","v":""},{"$f":"IFERROR(IF(OR($C$144=FALSE,LEFT($B142,3)<>\"NOX\"),E57*INDEX('Damage costs'!$U$16:$U$43,MATCH($B142,'Damage costs'!$C$16:$C$43,0))/1000,E57*INDEX('Damage costs'!$Y$16:$Y$43,MATCH($B142,'Damage costs'!$C$16:$C$43,0))/1000),\"\")","v":""},{"$f":"IFERROR(IF(OR($C$144=FALSE,LEFT($B142,3)<>\"NOX\"),F57*INDEX('Damage costs'!$U$16:$U$43,MATCH($B142,'Damage costs'!$C$16:$C$43,0))/1000,F57*INDEX('Damage costs'!$Y$16:$Y$43,MATCH($B142,'Damage costs'!$C$16:$C$43,0))/1000),\"\")","v":""},{"$f":"IFERROR(IF(OR($C$144=FALSE,LEFT($B142,3)<>\"NOX\"),G57*INDEX('Damage costs'!$U$16:$U$43,MATCH($B142,'Damage costs'!$C$16:$C$43,0))/1000,G57*INDEX('Damage costs'!$Y$16:$Y$43,MATCH($B142,'Damage costs'!$C$16:$C$43,0))/1000),\"\")","v":""},{"$f":"IFERROR(IF(OR($C$144=FALSE,LEFT($B142,3)<>\"NOX\"),H57*INDEX('Damage costs'!$U$16:$U$43,MATCH($B142,'Damage costs'!$C$16:$C$43,0))/1000,H57*INDEX('Damage costs'!$Y$16:$Y$43,MATCH($B142,'Damage costs'!$C$16:$C$43,0))/1000),\"\")","v":""},{"$f":"IFERROR(IF(OR($C$144=FALSE,LEFT($B142,3)<>\"NOX\"),I57*INDEX('Damage costs'!$U$16:$U$43,MATCH($B142,'Damage costs'!$C$16:$C$43,0))/1000,I57*INDEX('Damage costs'!$Y$16:$Y$43,MATCH($B142,'Damage costs'!$C$16:$C$43,0))/1000),\"\")","v":""},{"$f":"IFERROR(IF(OR($C$144=FALSE,LEFT($B142,3)<>\"NOX\"),J57*INDEX('Damage costs'!$U$16:$U$43,MATCH($B142,'Damage costs'!$C$16:$C$43,0))/1000,J57*INDEX('Damage costs'!$Y$16:$Y$43,MATCH($B142,'Damage costs'!$C$16:$C$43,0))/1000),\"\")","v":""},{"$f":"IFERROR(IF(OR($C$144=FALSE,LEFT($B142,3)<>\"NOX\"),K57*INDEX('Damage costs'!$U$16:$U$43,MATCH($B142,'Damage costs'!$C$16:$C$43,0))/1000,K57*INDEX('Damage costs'!$Y$16:$Y$43,MATCH($B142,'Damage costs'!$C$16:$C$43,0))/1000),\"\")","v":""},{"$f":"IFERROR(IF(OR($C$144=FALSE,LEFT($B142,3)<>\"NOX\"),L57*INDEX('Damage costs'!$U$16:$U$43,MATCH($B142,'Damage costs'!$C$16:$C$43,0))/1000,L57*INDEX('Damage costs'!$Y$16:$Y$43,MATCH($B142,'Damage costs'!$C$16:$C$43,0))/1000),\"\")","v":""},{"$f":"IFERROR(IF(OR($C$144=FALSE,LEFT($B142,3)<>\"NOX\"),M57*INDEX('Damage costs'!$U$16:$U$43,MATCH($B142,'Damage costs'!$C$16:$C$43,0))/1000,M57*INDEX('Damage costs'!$Y$16:$Y$43,MATCH($B142,'Damage costs'!$C$16:$C$43,0))/1000),\"\")","v":""},{"$f":"IFERROR(IF(OR($C$144=FALSE,LEFT($B142,3)<>\"NOX\"),N57*INDEX('Damage costs'!$U$16:$U$43,MATCH($B142,'Damage costs'!$C$16:$C$43,0))/1000,N57*INDEX('Damage costs'!$Y$16:$Y$43,MATCH($B142,'Damage costs'!$C$16:$C$43,0))/1000),\"\")","v":""},{"$f":"IFERROR(IF(OR($C$144=FALSE,LEFT($B142,3)<>\"NOX\"),O57*INDEX('Damage costs'!$U$16:$U$43,MATCH($B142,'Damage costs'!$C$16:$C$43,0))/1000,O57*INDEX('Damage costs'!$Y$16:$Y$43,MATCH($B142,'Damage costs'!$C$16:$C$43,0))/1000),\"\")","v":""},{"$f":"IFERROR(IF(OR($C$144=FALSE,LEFT($B142,3)<>\"NOX\"),P57*INDEX('Damage costs'!$U$16:$U$43,MATCH($B142,'Damage costs'!$C$16:$C$43,0))/1000,P57*INDEX('Damage costs'!$Y$16:$Y$43,MATCH($B142,'Damage costs'!$C$16:$C$43,0))/1000),\"\")","v":""},{"$f":"IFERROR(IF(OR($C$144=FALSE,LEFT($B142,3)<>\"NOX\"),Q57*INDEX('Damage costs'!$U$16:$U$43,MATCH($B142,'Damage costs'!$C$16:$C$43,0))/1000,Q57*INDEX('Damage costs'!$Y$16:$Y$43,MATCH($B142,'Damage costs'!$C$16:$C$43,0))/1000),\"\")","v":""},{"$f":"IFERROR(IF(OR($C$144=FALSE,LEFT($B142,3)<>\"NOX\"),R57*INDEX('Damage costs'!$U$16:$U$43,MATCH($B142,'Damage costs'!$C$16:$C$43,0))/1000,R57*INDEX('Damage costs'!$Y$16:$Y$43,MATCH($B142,'Damage costs'!$C$16:$C$43,0))/1000),\"\")","v":""},{"$f":"IFERROR(IF(OR($C$144=FALSE,LEFT($B142,3)<>\"NOX\"),S57*INDEX('Damage costs'!$U$16:$U$43,MATCH($B142,'Damage costs'!$C$16:$C$43,0))/1000,S57*INDEX('Damage costs'!$Y$16:$Y$43,MATCH($B142,'Damage costs'!$C$16:$C$43,0))/1000),\"\")","v":""},{"$f":"IFERROR(IF(OR($C$144=FALSE,LEFT($B142,3)<>\"NOX\"),T57*INDEX('Damage costs'!$U$16:$U$43,MATCH($B142,'Damage costs'!$C$16:$C$43,0))/1000,T57*INDEX('Damage costs'!$Y$16:$Y$43,MATCH($B142,'Damage costs'!$C$16:$C$43,0))/1000),\"\")","v":""},{"$f":"IFERROR(IF(OR($C$144=FALSE,LEFT($B142,3)<>\"NOX\"),U57*INDEX('Damage costs'!$U$16:$U$43,MATCH($B142,'Damage costs'!$C$16:$C$43,0))/1000,U57*INDEX('Damage costs'!$Y$16:$Y$43,MATCH($B142,'Damage costs'!$C$16:$C$43,0))/1000),\"\")","v":""},{"$f":"IFERROR(IF(OR($C$144=FALSE,LEFT($B142,3)<>\"NOX\"),V57*INDEX('Damage costs'!$U$16:$U$43,MATCH($B142,'Damage costs'!$C$16:$C$43,0))/1000,V57*INDEX('Damage costs'!$Y$16:$Y$43,MATCH($B142,'Damage costs'!$C$16:$C$43,0))/1000),\"\")","v":""},{"$f":"IFERROR(IF(OR($C$144=FALSE,LEFT($B142,3)<>\"NOX\"),W57*INDEX('Damage costs'!$U$16:$U$43,MATCH($B142,'Damage costs'!$C$16:$C$43,0))/1000,W57*INDEX('Damage costs'!$Y$16:$Y$43,MATCH($B142,'Damage costs'!$C$16:$C$43,0))/1000),\"\")","v":""},{"$f":"IFERROR(IF(OR($C$144=FALSE,LEFT($B142,3)<>\"NOX\"),X57*INDEX('Damage costs'!$U$16:$U$43,MATCH($B142,'Damage costs'!$C$16:$C$43,0))/1000,X57*INDEX('Damage costs'!$Y$16:$Y$43,MATCH($B142,'Damage costs'!$C$16:$C$43,0))/1000),\"\")","v":""},{"$f":"IFERROR(IF(OR($C$144=FALSE,LEFT($B142,3)<>\"NOX\"),Y57*INDEX('Damage costs'!$U$16:$U$43,MATCH($B142,'Damage costs'!$C$16:$C$43,0))/1000,Y57*INDEX('Damage costs'!$Y$16:$Y$43,MATCH($B142,'Damage costs'!$C$16:$C$43,0))/1000),\"\")","v":""},{"$f":"IFERROR(IF(OR($C$144=FALSE,LEFT($B142,3)<>\"NOX\"),Z57*INDEX('Damage costs'!$U$16:$U$43,MATCH($B142,'Damage costs'!$C$16:$C$43,0))/1000,Z57*INDEX('Damage costs'!$Y$16:$Y$43,MATCH($B142,'Damage costs'!$C$16:$C$43,0))/1000),\"\")","v":""},{"$f":"IFERROR(IF(OR($C$144=FALSE,LEFT($B142,3)<>\"NOX\"),AA57*INDEX('Damage costs'!$U$16:$U$43,MATCH($B142,'Damage costs'!$C$16:$C$43,0))/1000,AA57*INDEX('Damage costs'!$Y$16:$Y$43,MATCH($B142,'Damage costs'!$C$16:$C$43,0))/1000),\"\")","v":""},{"$f":"IFERROR(IF(OR($C$144=FALSE,LEFT($B142,3)<>\"NOX\"),AB57*INDEX('Damage costs'!$U$16:$U$43,MATCH($B142,'Damage costs'!$C$16:$C$43,0))/1000,AB57*INDEX('Damage costs'!$Y$16:$Y$43,MATCH($B142,'Damage costs'!$C$16:$C$43,0))/1000),\"\")","v":""},{"$f":"IFERROR(IF(OR($C$144=FALSE,LEFT($B142,3)<>\"NOX\"),AC57*INDEX('Damage costs'!$U$16:$U$43,MATCH($B142,'Damage costs'!$C$16:$C$43,0))/1000,AC57*INDEX('Damage costs'!$Y$16:$Y$43,MATCH($B142,'Damage costs'!$C$16:$C$43,0))/1000),\"\")","v":""},{"$f":"IFERROR(IF(OR($C$144=FALSE,LEFT($B142,3)<>\"NOX\"),AD57*INDEX('Damage costs'!$U$16:$U$43,MATCH($B142,'Damage costs'!$C$16:$C$43,0))/1000,AD57*INDEX('Damage costs'!$Y$16:$Y$43,MATCH($B142,'Damage costs'!$C$16:$C$43,0))/1000),\"\")","v":""},{"$f":"IFERROR(IF(OR($C$144=FALSE,LEFT($B142,3)<>\"NOX\"),AE57*INDEX('Damage costs'!$U$16:$U$43,MATCH($B142,'Damage costs'!$C$16:$C$43,0))/1000,AE57*INDEX('Damage costs'!$Y$16:$Y$43,MATCH($B142,'Damage costs'!$C$16:$C$43,0))/1000),\"\")","v":""},{"$f":"IFERROR(IF(OR($C$144=FALSE,LEFT($B142,3)<>\"NOX\"),AF57*INDEX('Damage costs'!$U$16:$U$43,MATCH($B142,'Damage costs'!$C$16:$C$43,0))/1000,AF57*INDEX('Damage costs'!$Y$16:$Y$43,MATCH($B142,'Damage costs'!$C$16:$C$43,0))/1000),\"\")","v":""},{"$f":"IFERROR(IF(OR($C$144=FALSE,LEFT($B142,3)<>\"NOX\"),AG57*INDEX('Damage costs'!$U$16:$U$43,MATCH($B142,'Damage costs'!$C$16:$C$43,0))/1000,AG57*INDEX('Damage costs'!$Y$16:$Y$43,MATCH($B142,'Damage costs'!$C$16:$C$43,0))/1000),\"\")","v":""},{"$f":"IFERROR(IF(OR($C$144=FALSE,LEFT($B142,3)<>\"NOX\"),AH57*INDEX('Damage costs'!$U$16:$U$43,MATCH($B142,'Damage costs'!$C$16:$C$43,0))/1000,AH57*INDEX('Damage costs'!$Y$16:$Y$43,MATCH($B142,'Damage costs'!$C$16:$C$43,0))/1000),\"\")","v":""},{"$f":"IFERROR(IF(OR($C$144=FALSE,LEFT($B142,3)<>\"NOX\"),AI57*INDEX('Damage costs'!$U$16:$U$43,MATCH($B142,'Damage costs'!$C$16:$C$43,0))/1000,AI57*INDEX('Damage costs'!$Y$16:$Y$43,MATCH($B142,'Damage costs'!$C$16:$C$43,0))/1000),\"\")","v":""},{"$f":"IFERROR(IF(OR($C$144=FALSE,LEFT($B142,3)<>\"NOX\"),AJ57*INDEX('Damage costs'!$U$16:$U$43,MATCH($B142,'Damage costs'!$C$16:$C$43,0))/1000,AJ57*INDEX('Damage costs'!$Y$16:$Y$43,MATCH($B142,'Damage costs'!$C$16:$C$43,0))/1000),\"\")","v":""},{"$f":"IFERROR(IF(OR($C$144=FALSE,LEFT($B142,3)<>\"NOX\"),AK57*INDEX('Damage costs'!$U$16:$U$43,MATCH($B142,'Damage costs'!$C$16:$C$43,0))/1000,AK57*INDEX('Damage costs'!$Y$16:$Y$43,MATCH($B142,'Damage costs'!$C$16:$C$43,0))/1000),\"\")","v":""},{"$f":"IFERROR(IF(OR($C$144=FALSE,LEFT($B142,3)<>\"NOX\"),AL57*INDEX('Damage costs'!$U$16:$U$43,MATCH($B142,'Damage costs'!$C$16:$C$43,0))/1000,AL57*INDEX('Damage costs'!$Y$16:$Y$43,MATCH($B142,'Damage costs'!$C$16:$C$43,0))/1000),\"\")","v":""},{"$f":"IFERROR(IF(OR($C$144=FALSE,LEFT($B142,3)<>\"NOX\"),AM57*INDEX('Damage costs'!$U$16:$U$43,MATCH($B142,'Damage costs'!$C$16:$C$43,0))/1000,AM57*INDEX('Damage costs'!$Y$16:$Y$43,MATCH($B142,'Damage costs'!$C$16:$C$43,0))/1000),\"\")","v":""},{"$f":"IFERROR(IF(OR($C$144=FALSE,LEFT($B142,3)<>\"NOX\"),AN57*INDEX('Damage costs'!$U$16:$U$43,MATCH($B142,'Damage costs'!$C$16:$C$43,0))/1000,AN57*INDEX('Damage costs'!$Y$16:$Y$43,MATCH($B142,'Damage costs'!$C$16:$C$43,0))/1000),\"\")","v":""},{"$f":"IFERROR(IF(OR($C$144=FALSE,LEFT($B142,3)<>\"NOX\"),AO57*INDEX('Damage costs'!$U$16:$U$43,MATCH($B142,'Damage costs'!$C$16:$C$43,0))/1000,AO57*INDEX('Damage costs'!$Y$16:$Y$43,MATCH($B142,'Damage costs'!$C$16:$C$43,0))/1000),\"\")","v":""},{"$f":"IFERROR(IF(OR($C$144=FALSE,LEFT($B142,3)<>\"NOX\"),AP57*INDEX('Damage costs'!$U$16:$U$43,MATCH($B142,'Damage costs'!$C$16:$C$43,0))/1000,AP57*INDEX('Damage costs'!$Y$16:$Y$43,MATCH($B142,'Damage costs'!$C$16:$C$43,0))/1000),\"\")","v":""},{"$f":"IFERROR(IF(OR($C$144=FALSE,LEFT($B142,3)<>\"NOX\"),AQ57*INDEX('Damage costs'!$U$16:$U$43,MATCH($B142,'Damage costs'!$C$16:$C$43,0))/1000,AQ57*INDEX('Damage costs'!$Y$16:$Y$43,MATCH($B142,'Damage costs'!$C$16:$C$43,0))/1000),\"\")","v":""},{"$f":"IFERROR(IF(OR($C$144=FALSE,LEFT($B142,3)<>\"NOX\"),AR57*INDEX('Damage costs'!$U$16:$U$43,MATCH($B142,'Damage costs'!$C$16:$C$43,0))/1000,AR57*INDEX('Damage costs'!$Y$16:$Y$43,MATCH($B142,'Damage costs'!$C$16:$C$43,0))/1000),\"\")","v":""},{"$f":"IFERROR(IF(OR($C$144=FALSE,LEFT($B142,3)<>\"NOX\"),AS57*INDEX('Damage costs'!$U$16:$U$43,MATCH($B142,'Damage costs'!$C$16:$C$43,0))/1000,AS57*INDEX('Damage costs'!$Y$16:$Y$43,MATCH($B142,'Damage costs'!$C$16:$C$43,0))/1000),\"\")","v":""},{"$f":"IFERROR(IF(OR($C$144=FALSE,LEFT($B142,3)<>\"NOX\"),AT57*INDEX('Damage costs'!$U$16:$U$43,MATCH($B142,'Damage costs'!$C$16:$C$43,0))/1000,AT57*INDEX('Damage costs'!$Y$16:$Y$43,MATCH($B142,'Damage costs'!$C$16:$C$43,0))/1000),\"\")","v":""},{"$f":"IFERROR(IF(OR($C$144=FALSE,LEFT($B142,3)<>\"NOX\"),AU57*INDEX('Damage costs'!$U$16:$U$43,MATCH($B142,'Damage costs'!$C$16:$C$43,0))/1000,AU57*INDEX('Damage costs'!$Y$16:$Y$43,MATCH($B142,'Damage costs'!$C$16:$C$43,0))/1000),\"\")","v":""},{"$f":"IFERROR(IF(OR($C$144=FALSE,LEFT($B142,3)<>\"NOX\"),AV57*INDEX('Damage costs'!$U$16:$U$43,MATCH($B142,'Damage costs'!$C$16:$C$43,0))/1000,AV57*INDEX('Damage costs'!$Y$16:$Y$43,MATCH($B142,'Damage costs'!$C$16:$C$43,0))/1000),\"\")","v":""},{"$f":"IFERROR(IF(OR($C$144=FALSE,LEFT($B142,3)<>\"NOX\"),AW57*INDEX('Damage costs'!$U$16:$U$43,MATCH($B142,'Damage costs'!$C$16:$C$43,0))/1000,AW57*INDEX('Damage costs'!$Y$16:$Y$43,MATCH($B142,'Damage costs'!$C$16:$C$43,0))/1000),\"\")","v":""},{"$f":"IFERROR(IF(OR($C$144=FALSE,LEFT($B142,3)<>\"NOX\"),AX57*INDEX('Damage costs'!$U$16:$U$43,MATCH($B142,'Damage costs'!$C$16:$C$43,0))/1000,AX57*INDEX('Damage costs'!$Y$16:$Y$43,MATCH($B142,'Damage costs'!$C$16:$C$43,0))/1000),\"\")","v":""},{"$f":"IFERROR(IF(OR($C$144=FALSE,LEFT($B142,3)<>\"NOX\"),AY57*INDEX('Damage costs'!$U$16:$U$43,MATCH($B142,'Damage costs'!$C$16:$C$43,0))/1000,AY57*INDEX('Damage costs'!$Y$16:$Y$43,MATCH($B142,'Damage costs'!$C$16:$C$43,0))/1000),\"\")","v":""},{"$f":"IFERROR(IF(OR($C$144=FALSE,LEFT($B142,3)<>\"NOX\"),AZ57*INDEX('Damage costs'!$U$16:$U$43,MATCH($B142,'Damage costs'!$C$16:$C$43,0))/1000,AZ57*INDEX('Damage costs'!$Y$16:$Y$43,MATCH($B142,'Damage costs'!$C$16:$C$43,0))/1000),\"\")","v":""},{"$f":"IFERROR(IF(OR($C$144=FALSE,LEFT($B142,3)<>\"NOX\"),BA57*INDEX('Damage costs'!$U$16:$U$43,MATCH($B142,'Damage costs'!$C$16:$C$43,0))/1000,BA57*INDEX('Damage costs'!$Y$16:$Y$43,MATCH($B142,'Damage costs'!$C$16:$C$43,0))/1000),\"\")","v":""},{"$f":"IFERROR(IF(OR($C$144=FALSE,LEFT($B142,3)<>\"NOX\"),BB57*INDEX('Damage costs'!$U$16:$U$43,MATCH($B142,'Damage costs'!$C$16:$C$43,0))/1000,BB57*INDEX('Damage costs'!$Y$16:$Y$43,MATCH($B142,'Damage costs'!$C$16:$C$43,0))/1000),\"\")","v":""},{"$f":"IFERROR(IF(OR($C$144=FALSE,LEFT($B142,3)<>\"NOX\"),BC57*INDEX('Damage costs'!$U$16:$U$43,MATCH($B142,'Damage costs'!$C$16:$C$43,0))/1000,BC57*INDEX('Damage costs'!$Y$16:$Y$43,MATCH($B142,'Damage costs'!$C$16:$C$43,0))/1000),\"\")","v":""},{"$f":"IFERROR(IF(OR($C$144=FALSE,LEFT($B142,3)<>\"NOX\"),BD57*INDEX('Damage costs'!$U$16:$U$43,MATCH($B142,'Damage costs'!$C$16:$C$43,0))/1000,BD57*INDEX('Damage costs'!$Y$16:$Y$43,MATCH($B142,'Damage costs'!$C$16:$C$43,0))/1000),\"\")","v":""},{"$f":"IFERROR(IF(OR($C$144=FALSE,LEFT($B142,3)<>\"NOX\"),BE57*INDEX('Damage costs'!$U$16:$U$43,MATCH($B142,'Damage costs'!$C$16:$C$43,0))/1000,BE57*INDEX('Damage costs'!$Y$16:$Y$43,MATCH($B142,'Damage costs'!$C$16:$C$43,0))/1000),\"\")","v":""},{"$f":"IFERROR(IF(OR($C$144=FALSE,LEFT($B142,3)<>\"NOX\"),BF57*INDEX('Damage costs'!$U$16:$U$43,MATCH($B142,'Damage costs'!$C$16:$C$43,0))/1000,BF57*INDEX('Damage costs'!$Y$16:$Y$43,MATCH($B142,'Damage costs'!$C$16:$C$43,0))/1000),\"\")","v":""},{"$f":"IFERROR(IF(OR($C$144=FALSE,LEFT($B142,3)<>\"NOX\"),BG57*INDEX('Damage costs'!$U$16:$U$43,MATCH($B142,'Damage costs'!$C$16:$C$43,0))/1000,BG57*INDEX('Damage costs'!$Y$16:$Y$43,MATCH($B142,'Damage costs'!$C$16:$C$43,0))/1000),\"\")","v":""},{"$f":"IFERROR(IF(OR($C$144=FALSE,LEFT($B142,3)<>\"NOX\"),BH57*INDEX('Damage costs'!$U$16:$U$43,MATCH($B142,'Damage costs'!$C$16:$C$43,0))/1000,BH57*INDEX('Damage costs'!$Y$16:$Y$43,MATCH($B142,'Damage costs'!$C$16:$C$43,0))/1000),\"\")","v":""},{"$f":"IFERROR(IF(OR($C$144=FALSE,LEFT($B142,3)<>\"NOX\"),BI57*INDEX('Damage costs'!$U$16:$U$43,MATCH($B142,'Damage costs'!$C$16:$C$43,0))/1000,BI57*INDEX('Damage costs'!$Y$16:$Y$43,MATCH($B142,'Damage costs'!$C$16:$C$43,0))/1000),\"\")","v":""},{"$f":"IFERROR(IF(OR($C$144=FALSE,LEFT($B142,3)<>\"NOX\"),BJ57*INDEX('Damage costs'!$U$16:$U$43,MATCH($B142,'Damage costs'!$C$16:$C$43,0))/1000,BJ57*INDEX('Damage costs'!$Y$16:$Y$43,MATCH($B142,'Damage costs'!$C$16:$C$43,0))/1000),\"\")","v":""},{"$f":"IFERROR(IF(OR($C$144=FALSE,LEFT($B142,3)<>\"NOX\"),BK57*INDEX('Damage costs'!$U$16:$U$43,MATCH($B142,'Damage costs'!$C$16:$C$43,0))/1000,BK57*INDEX('Damage costs'!$Y$16:$Y$43,MATCH($B142,'Damage costs'!$C$16:$C$43,0))/1000),\"\")","v":""},{"$f":"IFERROR(IF(OR($C$144=FALSE,LEFT($B142,3)<>\"NOX\"),BL57*INDEX('Damage costs'!$U$16:$U$43,MATCH($B142,'Damage costs'!$C$16:$C$43,0))/1000,BL57*INDEX('Damage costs'!$Y$16:$Y$43,MATCH($B142,'Damage costs'!$C$16:$C$43,0))/1000),\"\")","v":""},{"$f":"IFERROR(IF(OR($C$144=FALSE,LEFT($B142,3)<>\"NOX\"),BM57*INDEX('Damage costs'!$U$16:$U$43,MATCH($B142,'Damage costs'!$C$16:$C$43,0))/1000,BM57*INDEX('Damage costs'!$Y$16:$Y$43,MATCH($B142,'Damage costs'!$C$16:$C$43,0))/1000),\"\")","v":""},{"$f":"IFERROR(IF(OR($C$144=FALSE,LEFT($B142,3)<>\"NOX\"),BN57*INDEX('Damage costs'!$U$16:$U$43,MATCH($B142,'Damage costs'!$C$16:$C$43,0))/1000,BN57*INDEX('Damage costs'!$Y$16:$Y$43,MATCH($B142,'Damage costs'!$C$16:$C$43,0))/1000),\"\")","v":""},{"$f":"IFERROR(IF(OR($C$144=FALSE,LEFT($B142,3)<>\"NOX\"),BO57*INDEX('Damage costs'!$U$16:$U$43,MATCH($B142,'Damage costs'!$C$16:$C$43,0))/1000,BO57*INDEX('Damage costs'!$Y$16:$Y$43,MATCH($B142,'Damage costs'!$C$16:$C$43,0))/1000),\"\")","v":""},{"$f":"IFERROR(IF(OR($C$144=FALSE,LEFT($B142,3)<>\"NOX\"),BP57*INDEX('Damage costs'!$U$16:$U$43,MATCH($B142,'Damage costs'!$C$16:$C$43,0))/1000,BP57*INDEX('Damage costs'!$Y$16:$Y$43,MATCH($B142,'Damage costs'!$C$16:$C$43,0))/1000),\"\")","v":""},{"$f":"IFERROR(IF(OR($C$144=FALSE,LEFT($B142,3)<>\"NOX\"),BQ57*INDEX('Damage costs'!$U$16:$U$43,MATCH($B142,'Damage costs'!$C$16:$C$43,0))/1000,BQ57*INDEX('Damage costs'!$Y$16:$Y$43,MATCH($B142,'Damage costs'!$C$16:$C$43,0))/1000),\"\")","v":""},{"$f":"IFERROR(IF(OR($C$144=FALSE,LEFT($B142,3)<>\"NOX\"),BR57*INDEX('Damage costs'!$U$16:$U$43,MATCH($B142,'Damage costs'!$C$16:$C$43,0))/1000,BR57*INDEX('Damage costs'!$Y$16:$Y$43,MATCH($B142,'Damage costs'!$C$16:$C$43,0))/1000),\"\")","v":""},{"$f":"IFERROR(IF(OR($C$144=FALSE,LEFT($B142,3)<>\"NOX\"),BS57*INDEX('Damage costs'!$U$16:$U$43,MATCH($B142,'Damage costs'!$C$16:$C$43,0))/1000,BS57*INDEX('Damage costs'!$Y$16:$Y$43,MATCH($B142,'Damage costs'!$C$16:$C$43,0))/1000),\"\")","v":""},{"$f":"IFERROR(IF(OR($C$144=FALSE,LEFT($B142,3)<>\"NOX\"),BT57*INDEX('Damage costs'!$U$16:$U$43,MATCH($B142,'Damage costs'!$C$16:$C$43,0))/1000,BT57*INDEX('Damage costs'!$Y$16:$Y$43,MATCH($B142,'Damage costs'!$C$16:$C$43,0))/1000),\"\")","v":""},{"$f":"IFERROR(IF(OR($C$144=FALSE,LEFT($B142,3)<>\"NOX\"),BU57*INDEX('Damage costs'!$U$16:$U$43,MATCH($B142,'Damage costs'!$C$16:$C$43,0))/1000,BU57*INDEX('Damage costs'!$Y$16:$Y$43,MATCH($B142,'Damage costs'!$C$16:$C$43,0))/1000),\"\")","v":""},{"$f":"IFERROR(IF(OR($C$144=FALSE,LEFT($B142,3)<>\"NOX\"),BV57*INDEX('Damage costs'!$U$16:$U$43,MATCH($B142,'Damage costs'!$C$16:$C$43,0))/1000,BV57*INDEX('Damage costs'!$Y$16:$Y$43,MATCH($B142,'Damage costs'!$C$16:$C$43,0))/1000),\"\")","v":""},{"$f":"IFERROR(IF(OR($C$144=FALSE,LEFT($B142,3)<>\"NOX\"),BW57*INDEX('Damage costs'!$U$16:$U$43,MATCH($B142,'Damage costs'!$C$16:$C$43,0))/1000,BW57*INDEX('Damage costs'!$Y$16:$Y$43,MATCH($B142,'Damage costs'!$C$16:$C$43,0))/1000),\"\")","v":""},{"$f":"IFERROR(IF(OR($C$144=FALSE,LEFT($B142,3)<>\"NOX\"),BX57*INDEX('Damage costs'!$U$16:$U$43,MATCH($B142,'Damage costs'!$C$16:$C$43,0))/1000,BX57*INDEX('Damage costs'!$Y$16:$Y$43,MATCH($B142,'Damage costs'!$C$16:$C$43,0))/1000),\"\")","v":""},{"$f":"IFERROR(IF(OR($C$144=FALSE,LEFT($B142,3)<>\"NOX\"),BY57*INDEX('Damage costs'!$U$16:$U$43,MATCH($B142,'Damage costs'!$C$16:$C$43,0))/1000,BY57*INDEX('Damage costs'!$Y$16:$Y$43,MATCH($B142,'Damage costs'!$C$16:$C$43,0))/1000),\"\")","v":""},{"$f":"IFERROR(IF(OR($C$144=FALSE,LEFT($B142,3)<>\"NOX\"),BZ57*INDEX('Damage costs'!$U$16:$U$43,MATCH($B142,'Damage costs'!$C$16:$C$43,0))/1000,BZ57*INDEX('Damage costs'!$Y$16:$Y$43,MATCH($B142,'Damage costs'!$C$16:$C$43,0))/1000),\"\")","v":""},{"$f":"IFERROR(IF(OR($C$144=FALSE,LEFT($B142,3)<>\"NOX\"),CA57*INDEX('Damage costs'!$U$16:$U$43,MATCH($B142,'Damage costs'!$C$16:$C$43,0))/1000,CA57*INDEX('Damage costs'!$Y$16:$Y$43,MATCH($B142,'Damage costs'!$C$16:$C$43,0))/1000),\"\")","v":""},{"$f":"IFERROR(IF(OR($C$144=FALSE,LEFT($B142,3)<>\"NOX\"),CB57*INDEX('Damage costs'!$U$16:$U$43,MATCH($B142,'Damage costs'!$C$16:$C$43,0))/1000,CB57*INDEX('Damage costs'!$Y$16:$Y$43,MATCH($B142,'Damage costs'!$C$16:$C$43,0))/1000),\"\")","v":""},{"$f":"IFERROR(IF(OR($C$144=FALSE,LEFT($B142,3)<>\"NOX\"),CC57*INDEX('Damage costs'!$U$16:$U$43,MATCH($B142,'Damage costs'!$C$16:$C$43,0))/1000,CC57*INDEX('Damage costs'!$Y$16:$Y$43,MATCH($B142,'Damage costs'!$C$16:$C$43,0))/1000),\"\")","v":""},{"$f":"IFERROR(IF(OR($C$144=FALSE,LEFT($B142,3)<>\"NOX\"),CD57*INDEX('Damage costs'!$U$16:$U$43,MATCH($B142,'Damage costs'!$C$16:$C$43,0))/1000,CD57*INDEX('Damage costs'!$Y$16:$Y$43,MATCH($B142,'Damage costs'!$C$16:$C$43,0))/1000),\"\")","v":""},{"$f":"IFERROR(IF(OR($C$144=FALSE,LEFT($B142,3)<>\"NOX\"),CE57*INDEX('Damage costs'!$U$16:$U$43,MATCH($B142,'Damage costs'!$C$16:$C$43,0))/1000,CE57*INDEX('Damage costs'!$Y$16:$Y$43,MATCH($B142,'Damage costs'!$C$16:$C$43,0))/1000),\"\")","v":""},{"$f":"IFERROR(IF(OR($C$144=FALSE,LEFT($B142,3)<>\"NOX\"),CF57*INDEX('Damage costs'!$U$16:$U$43,MATCH($B142,'Damage costs'!$C$16:$C$43,0))/1000,CF57*INDEX('Damage costs'!$Y$16:$Y$43,MATCH($B142,'Damage costs'!$C$16:$C$43,0))/1000),\"\")","v":""},{"$f":"IFERROR(IF(OR($C$144=FALSE,LEFT($B142,3)<>\"NOX\"),CG57*INDEX('Damage costs'!$U$16:$U$43,MATCH($B142,'Damage costs'!$C$16:$C$43,0))/1000,CG57*INDEX('Damage costs'!$Y$16:$Y$43,MATCH($B142,'Damage costs'!$C$16:$C$43,0))/1000),\"\")","v":""},{"$f":"IFERROR(IF(OR($C$144=FALSE,LEFT($B142,3)<>\"NOX\"),CH57*INDEX('Damage costs'!$U$16:$U$43,MATCH($B142,'Damage costs'!$C$16:$C$43,0))/1000,CH57*INDEX('Damage costs'!$Y$16:$Y$43,MATCH($B142,'Damage costs'!$C$16:$C$43,0))/1000),\"\")","v":""},{"$f":"IFERROR(IF(OR($C$144=FALSE,LEFT($B142,3)<>\"NOX\"),CI57*INDEX('Damage costs'!$U$16:$U$43,MATCH($B142,'Damage costs'!$C$16:$C$43,0))/1000,CI57*INDEX('Damage costs'!$Y$16:$Y$43,MATCH($B142,'Damage costs'!$C$16:$C$43,0))/1000),\"\")","v":""},{"$f":"IFERROR(IF(OR($C$144=FALSE,LEFT($B142,3)<>\"NOX\"),CJ57*INDEX('Damage costs'!$U$16:$U$43,MATCH($B142,'Damage costs'!$C$16:$C$43,0))/1000,CJ57*INDEX('Damage costs'!$Y$16:$Y$43,MATCH($B142,'Damage costs'!$C$16:$C$43,0))/1000),\"\")","v":""},{"$f":"IFERROR(IF(OR($C$144=FALSE,LEFT($B142,3)<>\"NOX\"),CK57*INDEX('Damage costs'!$U$16:$U$43,MATCH($B142,'Damage costs'!$C$16:$C$43,0))/1000,CK57*INDEX('Damage costs'!$Y$16:$Y$43,MATCH($B142,'Damage costs'!$C$16:$C$43,0))/1000),\"\")","v":""},{"$f":"IFERROR(IF(OR($C$144=FALSE,LEFT($B142,3)<>\"NOX\"),CL57*INDEX('Damage costs'!$U$16:$U$43,MATCH($B142,'Damage costs'!$C$16:$C$43,0))/1000,CL57*INDEX('Damage costs'!$Y$16:$Y$43,MATCH($B142,'Damage costs'!$C$16:$C$43,0))/1000),\"\")","v":""},{"$f":"IFERROR(IF(OR($C$144=FALSE,LEFT($B142,3)<>\"NOX\"),CM57*INDEX('Damage costs'!$U$16:$U$43,MATCH($B142,'Damage costs'!$C$16:$C$43,0))/1000,CM57*INDEX('Damage costs'!$Y$16:$Y$43,MATCH($B142,'Damage costs'!$C$16:$C$43,0))/1000),\"\")","v":""},{"$f":"IFERROR(IF(OR($C$144=FALSE,LEFT($B142,3)<>\"NOX\"),CN57*INDEX('Damage costs'!$U$16:$U$43,MATCH($B142,'Damage costs'!$C$16:$C$43,0))/1000,CN57*INDEX('Damage costs'!$Y$16:$Y$43,MATCH($B142,'Damage costs'!$C$16:$C$43,0))/1000),\"\")","v":""},{"$f":"IFERROR(IF(OR($C$144=FALSE,LEFT($B142,3)<>\"NOX\"),CO57*INDEX('Damage costs'!$U$16:$U$43,MATCH($B142,'Damage costs'!$C$16:$C$43,0))/1000,CO57*INDEX('Damage costs'!$Y$16:$Y$43,MATCH($B142,'Damage costs'!$C$16:$C$43,0))/1000),\"\")","v":""},{"$f":"IFERROR(IF(OR($C$144=FALSE,LEFT($B142,3)<>\"NOX\"),CP57*INDEX('Damage costs'!$U$16:$U$43,MATCH($B142,'Damage costs'!$C$16:$C$43,0))/1000,CP57*INDEX('Damage costs'!$Y$16:$Y$43,MATCH($B142,'Damage costs'!$C$16:$C$43,0))/1000),\"\")","v":""},{"$f":"IFERROR(IF(OR($C$144=FALSE,LEFT($B142,3)<>\"NOX\"),CQ57*INDEX('Damage costs'!$U$16:$U$43,MATCH($B142,'Damage costs'!$C$16:$C$43,0))/1000,CQ57*INDEX('Damage costs'!$Y$16:$Y$43,MATCH($B142,'Damage costs'!$C$16:$C$43,0))/1000),\"\")","v":""},{"$f":"IFERROR(IF(OR($C$144=FALSE,LEFT($B142,3)<>\"NOX\"),CR57*INDEX('Damage costs'!$U$16:$U$43,MATCH($B142,'Damage costs'!$C$16:$C$43,0))/1000,CR57*INDEX('Damage costs'!$Y$16:$Y$43,MATCH($B142,'Damage costs'!$C$16:$C$43,0))/1000),\"\")","v":""},{"$f":"IFERROR(IF(OR($C$144=FALSE,LEFT($B142,3)<>\"NOX\"),CS57*INDEX('Damage costs'!$U$16:$U$43,MATCH($B142,'Damage costs'!$C$16:$C$43,0))/1000,CS57*INDEX('Damage costs'!$Y$16:$Y$43,MATCH($B142,'Damage costs'!$C$16:$C$43,0))/1000),\"\")","v":""},{"$f":"IFERROR(IF(OR($C$144=FALSE,LEFT($B142,3)<>\"NOX\"),CT57*INDEX('Damage costs'!$U$16:$U$43,MATCH($B142,'Damage costs'!$C$16:$C$43,0))/1000,CT57*INDEX('Damage costs'!$Y$16:$Y$43,MATCH($B142,'Damage costs'!$C$16:$C$43,0))/1000),\"\")","v":""},{"$f":"IFERROR(IF(OR($C$144=FALSE,LEFT($B142,3)<>\"NOX\"),CU57*INDEX('Damage costs'!$U$16:$U$43,MATCH($B142,'Damage costs'!$C$16:$C$43,0))/1000,CU57*INDEX('Damage costs'!$Y$16:$Y$43,MATCH($B142,'Damage costs'!$C$16:$C$43,0))/1000),\"\")","v":""},{"$f":"IFERROR(IF(OR($C$144=FALSE,LEFT($B142,3)<>\"NOX\"),CV57*INDEX('Damage costs'!$U$16:$U$43,MATCH($B142,'Damage costs'!$C$16:$C$43,0))/1000,CV57*INDEX('Damage costs'!$Y$16:$Y$43,MATCH($B142,'Damage costs'!$C$16:$C$43,0))/1000),\"\")","v":""},{"$f":"IFERROR(IF(OR($C$144=FALSE,LEFT($B142,3)<>\"NOX\"),CW57*INDEX('Damage costs'!$U$16:$U$43,MATCH($B142,'Damage costs'!$C$16:$C$43,0))/1000,CW57*INDEX('Damage costs'!$Y$16:$Y$43,MATCH($B142,'Damage costs'!$C$16:$C$43,0))/1000),\"\")","v":""},{"$f":"IFERROR(IF(OR($C$144=FALSE,LEFT($B142,3)<>\"NOX\"),CX57*INDEX('Damage costs'!$U$16:$U$43,MATCH($B142,'Damage costs'!$C$16:$C$43,0))/1000,CX57*INDEX('Damage costs'!$Y$16:$Y$43,MATCH($B142,'Damage costs'!$C$16:$C$43,0))/1000),\"\")","v":""},{"$f":"IFERROR(IF(OR($C$144=FALSE,LEFT($B142,3)<>\"NOX\"),CY57*INDEX('Damage costs'!$U$16:$U$43,MATCH($B142,'Damage costs'!$C$16:$C$43,0))/1000,CY57*INDEX('Damage costs'!$Y$16:$Y$43,MATCH($B142,'Damage costs'!$C$16:$C$43,0))/1000),\"\")","v":""}]
[null,0,"£000's",{"$f":"IFERROR(IF(OR($C$144=FALSE,LEFT($B143,3)<>\"NOX\"),D58*INDEX('Damage costs'!$U$16:$U$43,MATCH($B143,'Damage costs'!$C$16:$C$43,0))/1000,D58*INDEX('Damage costs'!$Y$16:$Y$43,MATCH($B143,'Damage costs'!$C$16:$C$43,0))/1000),\"\")","v":""},{"$f":"IFERROR(IF(OR($C$144=FALSE,LEFT($B143,3)<>\"NOX\"),E58*INDEX('Damage costs'!$U$16:$U$43,MATCH($B143,'Damage costs'!$C$16:$C$43,0))/1000,E58*INDEX('Damage costs'!$Y$16:$Y$43,MATCH($B143,'Damage costs'!$C$16:$C$43,0))/1000),\"\")","v":""},{"$f":"IFERROR(IF(OR($C$144=FALSE,LEFT($B143,3)<>\"NOX\"),F58*INDEX('Damage costs'!$U$16:$U$43,MATCH($B143,'Damage costs'!$C$16:$C$43,0))/1000,F58*INDEX('Damage costs'!$Y$16:$Y$43,MATCH($B143,'Damage costs'!$C$16:$C$43,0))/1000),\"\")","v":""},{"$f":"IFERROR(IF(OR($C$144=FALSE,LEFT($B143,3)<>\"NOX\"),G58*INDEX('Damage costs'!$U$16:$U$43,MATCH($B143,'Damage costs'!$C$16:$C$43,0))/1000,G58*INDEX('Damage costs'!$Y$16:$Y$43,MATCH($B143,'Damage costs'!$C$16:$C$43,0))/1000),\"\")","v":""},{"$f":"IFERROR(IF(OR($C$144=FALSE,LEFT($B143,3)<>\"NOX\"),H58*INDEX('Damage costs'!$U$16:$U$43,MATCH($B143,'Damage costs'!$C$16:$C$43,0))/1000,H58*INDEX('Damage costs'!$Y$16:$Y$43,MATCH($B143,'Damage costs'!$C$16:$C$43,0))/1000),\"\")","v":""},{"$f":"IFERROR(IF(OR($C$144=FALSE,LEFT($B143,3)<>\"NOX\"),I58*INDEX('Damage costs'!$U$16:$U$43,MATCH($B143,'Damage costs'!$C$16:$C$43,0))/1000,I58*INDEX('Damage costs'!$Y$16:$Y$43,MATCH($B143,'Damage costs'!$C$16:$C$43,0))/1000),\"\")","v":""},{"$f":"IFERROR(IF(OR($C$144=FALSE,LEFT($B143,3)<>\"NOX\"),J58*INDEX('Damage costs'!$U$16:$U$43,MATCH($B143,'Damage costs'!$C$16:$C$43,0))/1000,J58*INDEX('Damage costs'!$Y$16:$Y$43,MATCH($B143,'Damage costs'!$C$16:$C$43,0))/1000),\"\")","v":""},{"$f":"IFERROR(IF(OR($C$144=FALSE,LEFT($B143,3)<>\"NOX\"),K58*INDEX('Damage costs'!$U$16:$U$43,MATCH($B143,'Damage costs'!$C$16:$C$43,0))/1000,K58*INDEX('Damage costs'!$Y$16:$Y$43,MATCH($B143,'Damage costs'!$C$16:$C$43,0))/1000),\"\")","v":""},{"$f":"IFERROR(IF(OR($C$144=FALSE,LEFT($B143,3)<>\"NOX\"),L58*INDEX('Damage costs'!$U$16:$U$43,MATCH($B143,'Damage costs'!$C$16:$C$43,0))/1000,L58*INDEX('Damage costs'!$Y$16:$Y$43,MATCH($B143,'Damage costs'!$C$16:$C$43,0))/1000),\"\")","v":""},{"$f":"IFERROR(IF(OR($C$144=FALSE,LEFT($B143,3)<>\"NOX\"),M58*INDEX('Damage costs'!$U$16:$U$43,MATCH($B143,'Damage costs'!$C$16:$C$43,0))/1000,M58*INDEX('Damage costs'!$Y$16:$Y$43,MATCH($B143,'Damage costs'!$C$16:$C$43,0))/1000),\"\")","v":""},{"$f":"IFERROR(IF(OR($C$144=FALSE,LEFT($B143,3)<>\"NOX\"),N58*INDEX('Damage costs'!$U$16:$U$43,MATCH($B143,'Damage costs'!$C$16:$C$43,0))/1000,N58*INDEX('Damage costs'!$Y$16:$Y$43,MATCH($B143,'Damage costs'!$C$16:$C$43,0))/1000),\"\")","v":""},{"$f":"IFERROR(IF(OR($C$144=FALSE,LEFT($B143,3)<>\"NOX\"),O58*INDEX('Damage costs'!$U$16:$U$43,MATCH($B143,'Damage costs'!$C$16:$C$43,0))/1000,O58*INDEX('Damage costs'!$Y$16:$Y$43,MATCH($B143,'Damage costs'!$C$16:$C$43,0))/1000),\"\")","v":""},{"$f":"IFERROR(IF(OR($C$144=FALSE,LEFT($B143,3)<>\"NOX\"),P58*INDEX('Damage costs'!$U$16:$U$43,MATCH($B143,'Damage costs'!$C$16:$C$43,0))/1000,P58*INDEX('Damage costs'!$Y$16:$Y$43,MATCH($B143,'Damage costs'!$C$16:$C$43,0))/1000),\"\")","v":""},{"$f":"IFERROR(IF(OR($C$144=FALSE,LEFT($B143,3)<>\"NOX\"),Q58*INDEX('Damage costs'!$U$16:$U$43,MATCH($B143,'Damage costs'!$C$16:$C$43,0))/1000,Q58*INDEX('Damage costs'!$Y$16:$Y$43,MATCH($B143,'Damage costs'!$C$16:$C$43,0))/1000),\"\")","v":""},{"$f":"IFERROR(IF(OR($C$144=FALSE,LEFT($B143,3)<>\"NOX\"),R58*INDEX('Damage costs'!$U$16:$U$43,MATCH($B143,'Damage costs'!$C$16:$C$43,0))/1000,R58*INDEX('Damage costs'!$Y$16:$Y$43,MATCH($B143,'Damage costs'!$C$16:$C$43,0))/1000),\"\")","v":""},{"$f":"IFERROR(IF(OR($C$144=FALSE,LEFT($B143,3)<>\"NOX\"),S58*INDEX('Damage costs'!$U$16:$U$43,MATCH($B143,'Damage costs'!$C$16:$C$43,0))/1000,S58*INDEX('Damage costs'!$Y$16:$Y$43,MATCH($B143,'Damage costs'!$C$16:$C$43,0))/1000),\"\")","v":""},{"$f":"IFERROR(IF(OR($C$144=FALSE,LEFT($B143,3)<>\"NOX\"),T58*INDEX('Damage costs'!$U$16:$U$43,MATCH($B143,'Damage costs'!$C$16:$C$43,0))/1000,T58*INDEX('Damage costs'!$Y$16:$Y$43,MATCH($B143,'Damage costs'!$C$16:$C$43,0))/1000),\"\")","v":""},{"$f":"IFERROR(IF(OR($C$144=FALSE,LEFT($B143,3)<>\"NOX\"),U58*INDEX('Damage costs'!$U$16:$U$43,MATCH($B143,'Damage costs'!$C$16:$C$43,0))/1000,U58*INDEX('Damage costs'!$Y$16:$Y$43,MATCH($B143,'Damage costs'!$C$16:$C$43,0))/1000),\"\")","v":""},{"$f":"IFERROR(IF(OR($C$144=FALSE,LEFT($B143,3)<>\"NOX\"),V58*INDEX('Damage costs'!$U$16:$U$43,MATCH($B143,'Damage costs'!$C$16:$C$43,0))/1000,V58*INDEX('Damage costs'!$Y$16:$Y$43,MATCH($B143,'Damage costs'!$C$16:$C$43,0))/1000),\"\")","v":""},{"$f":"IFERROR(IF(OR($C$144=FALSE,LEFT($B143,3)<>\"NOX\"),W58*INDEX('Damage costs'!$U$16:$U$43,MATCH($B143,'Damage costs'!$C$16:$C$43,0))/1000,W58*INDEX('Damage costs'!$Y$16:$Y$43,MATCH($B143,'Damage costs'!$C$16:$C$43,0))/1000),\"\")","v":""},{"$f":"IFERROR(IF(OR($C$144=FALSE,LEFT($B143,3)<>\"NOX\"),X58*INDEX('Damage costs'!$U$16:$U$43,MATCH($B143,'Damage costs'!$C$16:$C$43,0))/1000,X58*INDEX('Damage costs'!$Y$16:$Y$43,MATCH($B143,'Damage costs'!$C$16:$C$43,0))/1000),\"\")","v":""},{"$f":"IFERROR(IF(OR($C$144=FALSE,LEFT($B143,3)<>\"NOX\"),Y58*INDEX('Damage costs'!$U$16:$U$43,MATCH($B143,'Damage costs'!$C$16:$C$43,0))/1000,Y58*INDEX('Damage costs'!$Y$16:$Y$43,MATCH($B143,'Damage costs'!$C$16:$C$43,0))/1000),\"\")","v":""},{"$f":"IFERROR(IF(OR($C$144=FALSE,LEFT($B143,3)<>\"NOX\"),Z58*INDEX('Damage costs'!$U$16:$U$43,MATCH($B143,'Damage costs'!$C$16:$C$43,0))/1000,Z58*INDEX('Damage costs'!$Y$16:$Y$43,MATCH($B143,'Damage costs'!$C$16:$C$43,0))/1000),\"\")","v":""},{"$f":"IFERROR(IF(OR($C$144=FALSE,LEFT($B143,3)<>\"NOX\"),AA58*INDEX('Damage costs'!$U$16:$U$43,MATCH($B143,'Damage costs'!$C$16:$C$43,0))/1000,AA58*INDEX('Damage costs'!$Y$16:$Y$43,MATCH($B143,'Damage costs'!$C$16:$C$43,0))/1000),\"\")","v":""},{"$f":"IFERROR(IF(OR($C$144=FALSE,LEFT($B143,3)<>\"NOX\"),AB58*INDEX('Damage costs'!$U$16:$U$43,MATCH($B143,'Damage costs'!$C$16:$C$43,0))/1000,AB58*INDEX('Damage costs'!$Y$16:$Y$43,MATCH($B143,'Damage costs'!$C$16:$C$43,0))/1000),\"\")","v":""},{"$f":"IFERROR(IF(OR($C$144=FALSE,LEFT($B143,3)<>\"NOX\"),AC58*INDEX('Damage costs'!$U$16:$U$43,MATCH($B143,'Damage costs'!$C$16:$C$43,0))/1000,AC58*INDEX('Damage costs'!$Y$16:$Y$43,MATCH($B143,'Damage costs'!$C$16:$C$43,0))/1000),\"\")","v":""},{"$f":"IFERROR(IF(OR($C$144=FALSE,LEFT($B143,3)<>\"NOX\"),AD58*INDEX('Damage costs'!$U$16:$U$43,MATCH($B143,'Damage costs'!$C$16:$C$43,0))/1000,AD58*INDEX('Damage costs'!$Y$16:$Y$43,MATCH($B143,'Damage costs'!$C$16:$C$43,0))/1000),\"\")","v":""},{"$f":"IFERROR(IF(OR($C$144=FALSE,LEFT($B143,3)<>\"NOX\"),AE58*INDEX('Damage costs'!$U$16:$U$43,MATCH($B143,'Damage costs'!$C$16:$C$43,0))/1000,AE58*INDEX('Damage costs'!$Y$16:$Y$43,MATCH($B143,'Damage costs'!$C$16:$C$43,0))/1000),\"\")","v":""},{"$f":"IFERROR(IF(OR($C$144=FALSE,LEFT($B143,3)<>\"NOX\"),AF58*INDEX('Damage costs'!$U$16:$U$43,MATCH($B143,'Damage costs'!$C$16:$C$43,0))/1000,AF58*INDEX('Damage costs'!$Y$16:$Y$43,MATCH($B143,'Damage costs'!$C$16:$C$43,0))/1000),\"\")","v":""},{"$f":"IFERROR(IF(OR($C$144=FALSE,LEFT($B143,3)<>\"NOX\"),AG58*INDEX('Damage costs'!$U$16:$U$43,MATCH($B143,'Damage costs'!$C$16:$C$43,0))/1000,AG58*INDEX('Damage costs'!$Y$16:$Y$43,MATCH($B143,'Damage costs'!$C$16:$C$43,0))/1000),\"\")","v":""},{"$f":"IFERROR(IF(OR($C$144=FALSE,LEFT($B143,3)<>\"NOX\"),AH58*INDEX('Damage costs'!$U$16:$U$43,MATCH($B143,'Damage costs'!$C$16:$C$43,0))/1000,AH58*INDEX('Damage costs'!$Y$16:$Y$43,MATCH($B143,'Damage costs'!$C$16:$C$43,0))/1000),\"\")","v":""},{"$f":"IFERROR(IF(OR($C$144=FALSE,LEFT($B143,3)<>\"NOX\"),AI58*INDEX('Damage costs'!$U$16:$U$43,MATCH($B143,'Damage costs'!$C$16:$C$43,0))/1000,AI58*INDEX('Damage costs'!$Y$16:$Y$43,MATCH($B143,'Damage costs'!$C$16:$C$43,0))/1000),\"\")","v":""},{"$f":"IFERROR(IF(OR($C$144=FALSE,LEFT($B143,3)<>\"NOX\"),AJ58*INDEX('Damage costs'!$U$16:$U$43,MATCH($B143,'Damage costs'!$C$16:$C$43,0))/1000,AJ58*INDEX('Damage costs'!$Y$16:$Y$43,MATCH($B143,'Damage costs'!$C$16:$C$43,0))/1000),\"\")","v":""},{"$f":"IFERROR(IF(OR($C$144=FALSE,LEFT($B143,3)<>\"NOX\"),AK58*INDEX('Damage costs'!$U$16:$U$43,MATCH($B143,'Damage costs'!$C$16:$C$43,0))/1000,AK58*INDEX('Damage costs'!$Y$16:$Y$43,MATCH($B143,'Damage costs'!$C$16:$C$43,0))/1000),\"\")","v":""},{"$f":"IFERROR(IF(OR($C$144=FALSE,LEFT($B143,3)<>\"NOX\"),AL58*INDEX('Damage costs'!$U$16:$U$43,MATCH($B143,'Damage costs'!$C$16:$C$43,0))/1000,AL58*INDEX('Damage costs'!$Y$16:$Y$43,MATCH($B143,'Damage costs'!$C$16:$C$43,0))/1000),\"\")","v":""},{"$f":"IFERROR(IF(OR($C$144=FALSE,LEFT($B143,3)<>\"NOX\"),AM58*INDEX('Damage costs'!$U$16:$U$43,MATCH($B143,'Damage costs'!$C$16:$C$43,0))/1000,AM58*INDEX('Damage costs'!$Y$16:$Y$43,MATCH($B143,'Damage costs'!$C$16:$C$43,0))/1000),\"\")","v":""},{"$f":"IFERROR(IF(OR($C$144=FALSE,LEFT($B143,3)<>\"NOX\"),AN58*INDEX('Damage costs'!$U$16:$U$43,MATCH($B143,'Damage costs'!$C$16:$C$43,0))/1000,AN58*INDEX('Damage costs'!$Y$16:$Y$43,MATCH($B143,'Damage costs'!$C$16:$C$43,0))/1000),\"\")","v":""},{"$f":"IFERROR(IF(OR($C$144=FALSE,LEFT($B143,3)<>\"NOX\"),AO58*INDEX('Damage costs'!$U$16:$U$43,MATCH($B143,'Damage costs'!$C$16:$C$43,0))/1000,AO58*INDEX('Damage costs'!$Y$16:$Y$43,MATCH($B143,'Damage costs'!$C$16:$C$43,0))/1000),\"\")","v":""},{"$f":"IFERROR(IF(OR($C$144=FALSE,LEFT($B143,3)<>\"NOX\"),AP58*INDEX('Damage costs'!$U$16:$U$43,MATCH($B143,'Damage costs'!$C$16:$C$43,0))/1000,AP58*INDEX('Damage costs'!$Y$16:$Y$43,MATCH($B143,'Damage costs'!$C$16:$C$43,0))/1000),\"\")","v":""},{"$f":"IFERROR(IF(OR($C$144=FALSE,LEFT($B143,3)<>\"NOX\"),AQ58*INDEX('Damage costs'!$U$16:$U$43,MATCH($B143,'Damage costs'!$C$16:$C$43,0))/1000,AQ58*INDEX('Damage costs'!$Y$16:$Y$43,MATCH($B143,'Damage costs'!$C$16:$C$43,0))/1000),\"\")","v":""},{"$f":"IFERROR(IF(OR($C$144=FALSE,LEFT($B143,3)<>\"NOX\"),AR58*INDEX('Damage costs'!$U$16:$U$43,MATCH($B143,'Damage costs'!$C$16:$C$43,0))/1000,AR58*INDEX('Damage costs'!$Y$16:$Y$43,MATCH($B143,'Damage costs'!$C$16:$C$43,0))/1000),\"\")","v":""},{"$f":"IFERROR(IF(OR($C$144=FALSE,LEFT($B143,3)<>\"NOX\"),AS58*INDEX('Damage costs'!$U$16:$U$43,MATCH($B143,'Damage costs'!$C$16:$C$43,0))/1000,AS58*INDEX('Damage costs'!$Y$16:$Y$43,MATCH($B143,'Damage costs'!$C$16:$C$43,0))/1000),\"\")","v":""},{"$f":"IFERROR(IF(OR($C$144=FALSE,LEFT($B143,3)<>\"NOX\"),AT58*INDEX('Damage costs'!$U$16:$U$43,MATCH($B143,'Damage costs'!$C$16:$C$43,0))/1000,AT58*INDEX('Damage costs'!$Y$16:$Y$43,MATCH($B143,'Damage costs'!$C$16:$C$43,0))/1000),\"\")","v":""},{"$f":"IFERROR(IF(OR($C$144=FALSE,LEFT($B143,3)<>\"NOX\"),AU58*INDEX('Damage costs'!$U$16:$U$43,MATCH($B143,'Damage costs'!$C$16:$C$43,0))/1000,AU58*INDEX('Damage costs'!$Y$16:$Y$43,MATCH($B143,'Damage costs'!$C$16:$C$43,0))/1000),\"\")","v":""},{"$f":"IFERROR(IF(OR($C$144=FALSE,LEFT($B143,3)<>\"NOX\"),AV58*INDEX('Damage costs'!$U$16:$U$43,MATCH($B143,'Damage costs'!$C$16:$C$43,0))/1000,AV58*INDEX('Damage costs'!$Y$16:$Y$43,MATCH($B143,'Damage costs'!$C$16:$C$43,0))/1000),\"\")","v":""},{"$f":"IFERROR(IF(OR($C$144=FALSE,LEFT($B143,3)<>\"NOX\"),AW58*INDEX('Damage costs'!$U$16:$U$43,MATCH($B143,'Damage costs'!$C$16:$C$43,0))/1000,AW58*INDEX('Damage costs'!$Y$16:$Y$43,MATCH($B143,'Damage costs'!$C$16:$C$43,0))/1000),\"\")","v":""},{"$f":"IFERROR(IF(OR($C$144=FALSE,LEFT($B143,3)<>\"NOX\"),AX58*INDEX('Damage costs'!$U$16:$U$43,MATCH($B143,'Damage costs'!$C$16:$C$43,0))/1000,AX58*INDEX('Damage costs'!$Y$16:$Y$43,MATCH($B143,'Damage costs'!$C$16:$C$43,0))/1000),\"\")","v":""},{"$f":"IFERROR(IF(OR($C$144=FALSE,LEFT($B143,3)<>\"NOX\"),AY58*INDEX('Damage costs'!$U$16:$U$43,MATCH($B143,'Damage costs'!$C$16:$C$43,0))/1000,AY58*INDEX('Damage costs'!$Y$16:$Y$43,MATCH($B143,'Damage costs'!$C$16:$C$43,0))/1000),\"\")","v":""},{"$f":"IFERROR(IF(OR($C$144=FALSE,LEFT($B143,3)<>\"NOX\"),AZ58*INDEX('Damage costs'!$U$16:$U$43,MATCH($B143,'Damage costs'!$C$16:$C$43,0))/1000,AZ58*INDEX('Damage costs'!$Y$16:$Y$43,MATCH($B143,'Damage costs'!$C$16:$C$43,0))/1000),\"\")","v":""},{"$f":"IFERROR(IF(OR($C$144=FALSE,LEFT($B143,3)<>\"NOX\"),BA58*INDEX('Damage costs'!$U$16:$U$43,MATCH($B143,'Damage costs'!$C$16:$C$43,0))/1000,BA58*INDEX('Damage costs'!$Y$16:$Y$43,MATCH($B143,'Damage costs'!$C$16:$C$43,0))/1000),\"\")","v":""},{"$f":"IFERROR(IF(OR($C$144=FALSE,LEFT($B143,3)<>\"NOX\"),BB58*INDEX('Damage costs'!$U$16:$U$43,MATCH($B143,'Damage costs'!$C$16:$C$43,0))/1000,BB58*INDEX('Damage costs'!$Y$16:$Y$43,MATCH($B143,'Damage costs'!$C$16:$C$43,0))/1000),\"\")","v":""},{"$f":"IFERROR(IF(OR($C$144=FALSE,LEFT($B143,3)<>\"NOX\"),BC58*INDEX('Damage costs'!$U$16:$U$43,MATCH($B143,'Damage costs'!$C$16:$C$43,0))/1000,BC58*INDEX('Damage costs'!$Y$16:$Y$43,MATCH($B143,'Damage costs'!$C$16:$C$43,0))/1000),\"\")","v":""},{"$f":"IFERROR(IF(OR($C$144=FALSE,LEFT($B143,3)<>\"NOX\"),BD58*INDEX('Damage costs'!$U$16:$U$43,MATCH($B143,'Damage costs'!$C$16:$C$43,0))/1000,BD58*INDEX('Damage costs'!$Y$16:$Y$43,MATCH($B143,'Damage costs'!$C$16:$C$43,0))/1000),\"\")","v":""},{"$f":"IFERROR(IF(OR($C$144=FALSE,LEFT($B143,3)<>\"NOX\"),BE58*INDEX('Damage costs'!$U$16:$U$43,MATCH($B143,'Damage costs'!$C$16:$C$43,0))/1000,BE58*INDEX('Damage costs'!$Y$16:$Y$43,MATCH($B143,'Damage costs'!$C$16:$C$43,0))/1000),\"\")","v":""},{"$f":"IFERROR(IF(OR($C$144=FALSE,LEFT($B143,3)<>\"NOX\"),BF58*INDEX('Damage costs'!$U$16:$U$43,MATCH($B143,'Damage costs'!$C$16:$C$43,0))/1000,BF58*INDEX('Damage costs'!$Y$16:$Y$43,MATCH($B143,'Damage costs'!$C$16:$C$43,0))/1000),\"\")","v":""},{"$f":"IFERROR(IF(OR($C$144=FALSE,LEFT($B143,3)<>\"NOX\"),BG58*INDEX('Damage costs'!$U$16:$U$43,MATCH($B143,'Damage costs'!$C$16:$C$43,0))/1000,BG58*INDEX('Damage costs'!$Y$16:$Y$43,MATCH($B143,'Damage costs'!$C$16:$C$43,0))/1000),\"\")","v":""},{"$f":"IFERROR(IF(OR($C$144=FALSE,LEFT($B143,3)<>\"NOX\"),BH58*INDEX('Damage costs'!$U$16:$U$43,MATCH($B143,'Damage costs'!$C$16:$C$43,0))/1000,BH58*INDEX('Damage costs'!$Y$16:$Y$43,MATCH($B143,'Damage costs'!$C$16:$C$43,0))/1000),\"\")","v":""},{"$f":"IFERROR(IF(OR($C$144=FALSE,LEFT($B143,3)<>\"NOX\"),BI58*INDEX('Damage costs'!$U$16:$U$43,MATCH($B143,'Damage costs'!$C$16:$C$43,0))/1000,BI58*INDEX('Damage costs'!$Y$16:$Y$43,MATCH($B143,'Damage costs'!$C$16:$C$43,0))/1000),\"\")","v":""},{"$f":"IFERROR(IF(OR($C$144=FALSE,LEFT($B143,3)<>\"NOX\"),BJ58*INDEX('Damage costs'!$U$16:$U$43,MATCH($B143,'Damage costs'!$C$16:$C$43,0))/1000,BJ58*INDEX('Damage costs'!$Y$16:$Y$43,MATCH($B143,'Damage costs'!$C$16:$C$43,0))/1000),\"\")","v":""},{"$f":"IFERROR(IF(OR($C$144=FALSE,LEFT($B143,3)<>\"NOX\"),BK58*INDEX('Damage costs'!$U$16:$U$43,MATCH($B143,'Damage costs'!$C$16:$C$43,0))/1000,BK58*INDEX('Damage costs'!$Y$16:$Y$43,MATCH($B143,'Damage costs'!$C$16:$C$43,0))/1000),\"\")","v":""},{"$f":"IFERROR(IF(OR($C$144=FALSE,LEFT($B143,3)<>\"NOX\"),BL58*INDEX('Damage costs'!$U$16:$U$43,MATCH($B143,'Damage costs'!$C$16:$C$43,0))/1000,BL58*INDEX('Damage costs'!$Y$16:$Y$43,MATCH($B143,'Damage costs'!$C$16:$C$43,0))/1000),\"\")","v":""},{"$f":"IFERROR(IF(OR($C$144=FALSE,LEFT($B143,3)<>\"NOX\"),BM58*INDEX('Damage costs'!$U$16:$U$43,MATCH($B143,'Damage costs'!$C$16:$C$43,0))/1000,BM58*INDEX('Damage costs'!$Y$16:$Y$43,MATCH($B143,'Damage costs'!$C$16:$C$43,0))/1000),\"\")","v":""},{"$f":"IFERROR(IF(OR($C$144=FALSE,LEFT($B143,3)<>\"NOX\"),BN58*INDEX('Damage costs'!$U$16:$U$43,MATCH($B143,'Damage costs'!$C$16:$C$43,0))/1000,BN58*INDEX('Damage costs'!$Y$16:$Y$43,MATCH($B143,'Damage costs'!$C$16:$C$43,0))/1000),\"\")","v":""},{"$f":"IFERROR(IF(OR($C$144=FALSE,LEFT($B143,3)<>\"NOX\"),BO58*INDEX('Damage costs'!$U$16:$U$43,MATCH($B143,'Damage costs'!$C$16:$C$43,0))/1000,BO58*INDEX('Damage costs'!$Y$16:$Y$43,MATCH($B143,'Damage costs'!$C$16:$C$43,0))/1000),\"\")","v":""},{"$f":"IFERROR(IF(OR($C$144=FALSE,LEFT($B143,3)<>\"NOX\"),BP58*INDEX('Damage costs'!$U$16:$U$43,MATCH($B143,'Damage costs'!$C$16:$C$43,0))/1000,BP58*INDEX('Damage costs'!$Y$16:$Y$43,MATCH($B143,'Damage costs'!$C$16:$C$43,0))/1000),\"\")","v":""},{"$f":"IFERROR(IF(OR($C$144=FALSE,LEFT($B143,3)<>\"NOX\"),BQ58*INDEX('Damage costs'!$U$16:$U$43,MATCH($B143,'Damage costs'!$C$16:$C$43,0))/1000,BQ58*INDEX('Damage costs'!$Y$16:$Y$43,MATCH($B143,'Damage costs'!$C$16:$C$43,0))/1000),\"\")","v":""},{"$f":"IFERROR(IF(OR($C$144=FALSE,LEFT($B143,3)<>\"NOX\"),BR58*INDEX('Damage costs'!$U$16:$U$43,MATCH($B143,'Damage costs'!$C$16:$C$43,0))/1000,BR58*INDEX('Damage costs'!$Y$16:$Y$43,MATCH($B143,'Damage costs'!$C$16:$C$43,0))/1000),\"\")","v":""},{"$f":"IFERROR(IF(OR($C$144=FALSE,LEFT($B143,3)<>\"NOX\"),BS58*INDEX('Damage costs'!$U$16:$U$43,MATCH($B143,'Damage costs'!$C$16:$C$43,0))/1000,BS58*INDEX('Damage costs'!$Y$16:$Y$43,MATCH($B143,'Damage costs'!$C$16:$C$43,0))/1000),\"\")","v":""},{"$f":"IFERROR(IF(OR($C$144=FALSE,LEFT($B143,3)<>\"NOX\"),BT58*INDEX('Damage costs'!$U$16:$U$43,MATCH($B143,'Damage costs'!$C$16:$C$43,0))/1000,BT58*INDEX('Damage costs'!$Y$16:$Y$43,MATCH($B143,'Damage costs'!$C$16:$C$43,0))/1000),\"\")","v":""},{"$f":"IFERROR(IF(OR($C$144=FALSE,LEFT($B143,3)<>\"NOX\"),BU58*INDEX('Damage costs'!$U$16:$U$43,MATCH($B143,'Damage costs'!$C$16:$C$43,0))/1000,BU58*INDEX('Damage costs'!$Y$16:$Y$43,MATCH($B143,'Damage costs'!$C$16:$C$43,0))/1000),\"\")","v":""},{"$f":"IFERROR(IF(OR($C$144=FALSE,LEFT($B143,3)<>\"NOX\"),BV58*INDEX('Damage costs'!$U$16:$U$43,MATCH($B143,'Damage costs'!$C$16:$C$43,0))/1000,BV58*INDEX('Damage costs'!$Y$16:$Y$43,MATCH($B143,'Damage costs'!$C$16:$C$43,0))/1000),\"\")","v":""},{"$f":"IFERROR(IF(OR($C$144=FALSE,LEFT($B143,3)<>\"NOX\"),BW58*INDEX('Damage costs'!$U$16:$U$43,MATCH($B143,'Damage costs'!$C$16:$C$43,0))/1000,BW58*INDEX('Damage costs'!$Y$16:$Y$43,MATCH($B143,'Damage costs'!$C$16:$C$43,0))/1000),\"\")","v":""},{"$f":"IFERROR(IF(OR($C$144=FALSE,LEFT($B143,3)<>\"NOX\"),BX58*INDEX('Damage costs'!$U$16:$U$43,MATCH($B143,'Damage costs'!$C$16:$C$43,0))/1000,BX58*INDEX('Damage costs'!$Y$16:$Y$43,MATCH($B143,'Damage costs'!$C$16:$C$43,0))/1000),\"\")","v":""},{"$f":"IFERROR(IF(OR($C$144=FALSE,LEFT($B143,3)<>\"NOX\"),BY58*INDEX('Damage costs'!$U$16:$U$43,MATCH($B143,'Damage costs'!$C$16:$C$43,0))/1000,BY58*INDEX('Damage costs'!$Y$16:$Y$43,MATCH($B143,'Damage costs'!$C$16:$C$43,0))/1000),\"\")","v":""},{"$f":"IFERROR(IF(OR($C$144=FALSE,LEFT($B143,3)<>\"NOX\"),BZ58*INDEX('Damage costs'!$U$16:$U$43,MATCH($B143,'Damage costs'!$C$16:$C$43,0))/1000,BZ58*INDEX('Damage costs'!$Y$16:$Y$43,MATCH($B143,'Damage costs'!$C$16:$C$43,0))/1000),\"\")","v":""},{"$f":"IFERROR(IF(OR($C$144=FALSE,LEFT($B143,3)<>\"NOX\"),CA58*INDEX('Damage costs'!$U$16:$U$43,MATCH($B143,'Damage costs'!$C$16:$C$43,0))/1000,CA58*INDEX('Damage costs'!$Y$16:$Y$43,MATCH($B143,'Damage costs'!$C$16:$C$43,0))/1000),\"\")","v":""},{"$f":"IFERROR(IF(OR($C$144=FALSE,LEFT($B143,3)<>\"NOX\"),CB58*INDEX('Damage costs'!$U$16:$U$43,MATCH($B143,'Damage costs'!$C$16:$C$43,0))/1000,CB58*INDEX('Damage costs'!$Y$16:$Y$43,MATCH($B143,'Damage costs'!$C$16:$C$43,0))/1000),\"\")","v":""},{"$f":"IFERROR(IF(OR($C$144=FALSE,LEFT($B143,3)<>\"NOX\"),CC58*INDEX('Damage costs'!$U$16:$U$43,MATCH($B143,'Damage costs'!$C$16:$C$43,0))/1000,CC58*INDEX('Damage costs'!$Y$16:$Y$43,MATCH($B143,'Damage costs'!$C$16:$C$43,0))/1000),\"\")","v":""},{"$f":"IFERROR(IF(OR($C$144=FALSE,LEFT($B143,3)<>\"NOX\"),CD58*INDEX('Damage costs'!$U$16:$U$43,MATCH($B143,'Damage costs'!$C$16:$C$43,0))/1000,CD58*INDEX('Damage costs'!$Y$16:$Y$43,MATCH($B143,'Damage costs'!$C$16:$C$43,0))/1000),\"\")","v":""},{"$f":"IFERROR(IF(OR($C$144=FALSE,LEFT($B143,3)<>\"NOX\"),CE58*INDEX('Damage costs'!$U$16:$U$43,MATCH($B143,'Damage costs'!$C$16:$C$43,0))/1000,CE58*INDEX('Damage costs'!$Y$16:$Y$43,MATCH($B143,'Damage costs'!$C$16:$C$43,0))/1000),\"\")","v":""},{"$f":"IFERROR(IF(OR($C$144=FALSE,LEFT($B143,3)<>\"NOX\"),CF58*INDEX('Damage costs'!$U$16:$U$43,MATCH($B143,'Damage costs'!$C$16:$C$43,0))/1000,CF58*INDEX('Damage costs'!$Y$16:$Y$43,MATCH($B143,'Damage costs'!$C$16:$C$43,0))/1000),\"\")","v":""},{"$f":"IFERROR(IF(OR($C$144=FALSE,LEFT($B143,3)<>\"NOX\"),CG58*INDEX('Damage costs'!$U$16:$U$43,MATCH($B143,'Damage costs'!$C$16:$C$43,0))/1000,CG58*INDEX('Damage costs'!$Y$16:$Y$43,MATCH($B143,'Damage costs'!$C$16:$C$43,0))/1000),\"\")","v":""},{"$f":"IFERROR(IF(OR($C$144=FALSE,LEFT($B143,3)<>\"NOX\"),CH58*INDEX('Damage costs'!$U$16:$U$43,MATCH($B143,'Damage costs'!$C$16:$C$43,0))/1000,CH58*INDEX('Damage costs'!$Y$16:$Y$43,MATCH($B143,'Damage costs'!$C$16:$C$43,0))/1000),\"\")","v":""},{"$f":"IFERROR(IF(OR($C$144=FALSE,LEFT($B143,3)<>\"NOX\"),CI58*INDEX('Damage costs'!$U$16:$U$43,MATCH($B143,'Damage costs'!$C$16:$C$43,0))/1000,CI58*INDEX('Damage costs'!$Y$16:$Y$43,MATCH($B143,'Damage costs'!$C$16:$C$43,0))/1000),\"\")","v":""},{"$f":"IFERROR(IF(OR($C$144=FALSE,LEFT($B143,3)<>\"NOX\"),CJ58*INDEX('Damage costs'!$U$16:$U$43,MATCH($B143,'Damage costs'!$C$16:$C$43,0))/1000,CJ58*INDEX('Damage costs'!$Y$16:$Y$43,MATCH($B143,'Damage costs'!$C$16:$C$43,0))/1000),\"\")","v":""},{"$f":"IFERROR(IF(OR($C$144=FALSE,LEFT($B143,3)<>\"NOX\"),CK58*INDEX('Damage costs'!$U$16:$U$43,MATCH($B143,'Damage costs'!$C$16:$C$43,0))/1000,CK58*INDEX('Damage costs'!$Y$16:$Y$43,MATCH($B143,'Damage costs'!$C$16:$C$43,0))/1000),\"\")","v":""},{"$f":"IFERROR(IF(OR($C$144=FALSE,LEFT($B143,3)<>\"NOX\"),CL58*INDEX('Damage costs'!$U$16:$U$43,MATCH($B143,'Damage costs'!$C$16:$C$43,0))/1000,CL58*INDEX('Damage costs'!$Y$16:$Y$43,MATCH($B143,'Damage costs'!$C$16:$C$43,0))/1000),\"\")","v":""},{"$f":"IFERROR(IF(OR($C$144=FALSE,LEFT($B143,3)<>\"NOX\"),CM58*INDEX('Damage costs'!$U$16:$U$43,MATCH($B143,'Damage costs'!$C$16:$C$43,0))/1000,CM58*INDEX('Damage costs'!$Y$16:$Y$43,MATCH($B143,'Damage costs'!$C$16:$C$43,0))/1000),\"\")","v":""},{"$f":"IFERROR(IF(OR($C$144=FALSE,LEFT($B143,3)<>\"NOX\"),CN58*INDEX('Damage costs'!$U$16:$U$43,MATCH($B143,'Damage costs'!$C$16:$C$43,0))/1000,CN58*INDEX('Damage costs'!$Y$16:$Y$43,MATCH($B143,'Damage costs'!$C$16:$C$43,0))/1000),\"\")","v":""},{"$f":"IFERROR(IF(OR($C$144=FALSE,LEFT($B143,3)<>\"NOX\"),CO58*INDEX('Damage costs'!$U$16:$U$43,MATCH($B143,'Damage costs'!$C$16:$C$43,0))/1000,CO58*INDEX('Damage costs'!$Y$16:$Y$43,MATCH($B143,'Damage costs'!$C$16:$C$43,0))/1000),\"\")","v":""},{"$f":"IFERROR(IF(OR($C$144=FALSE,LEFT($B143,3)<>\"NOX\"),CP58*INDEX('Damage costs'!$U$16:$U$43,MATCH($B143,'Damage costs'!$C$16:$C$43,0))/1000,CP58*INDEX('Damage costs'!$Y$16:$Y$43,MATCH($B143,'Damage costs'!$C$16:$C$43,0))/1000),\"\")","v":""},{"$f":"IFERROR(IF(OR($C$144=FALSE,LEFT($B143,3)<>\"NOX\"),CQ58*INDEX('Damage costs'!$U$16:$U$43,MATCH($B143,'Damage costs'!$C$16:$C$43,0))/1000,CQ58*INDEX('Damage costs'!$Y$16:$Y$43,MATCH($B143,'Damage costs'!$C$16:$C$43,0))/1000),\"\")","v":""},{"$f":"IFERROR(IF(OR($C$144=FALSE,LEFT($B143,3)<>\"NOX\"),CR58*INDEX('Damage costs'!$U$16:$U$43,MATCH($B143,'Damage costs'!$C$16:$C$43,0))/1000,CR58*INDEX('Damage costs'!$Y$16:$Y$43,MATCH($B143,'Damage costs'!$C$16:$C$43,0))/1000),\"\")","v":""},{"$f":"IFERROR(IF(OR($C$144=FALSE,LEFT($B143,3)<>\"NOX\"),CS58*INDEX('Damage costs'!$U$16:$U$43,MATCH($B143,'Damage costs'!$C$16:$C$43,0))/1000,CS58*INDEX('Damage costs'!$Y$16:$Y$43,MATCH($B143,'Damage costs'!$C$16:$C$43,0))/1000),\"\")","v":""},{"$f":"IFERROR(IF(OR($C$144=FALSE,LEFT($B143,3)<>\"NOX\"),CT58*INDEX('Damage costs'!$U$16:$U$43,MATCH($B143,'Damage costs'!$C$16:$C$43,0))/1000,CT58*INDEX('Damage costs'!$Y$16:$Y$43,MATCH($B143,'Damage costs'!$C$16:$C$43,0))/1000),\"\")","v":""},{"$f":"IFERROR(IF(OR($C$144=FALSE,LEFT($B143,3)<>\"NOX\"),CU58*INDEX('Damage costs'!$U$16:$U$43,MATCH($B143,'Damage costs'!$C$16:$C$43,0))/1000,CU58*INDEX('Damage costs'!$Y$16:$Y$43,MATCH($B143,'Damage costs'!$C$16:$C$43,0))/1000),\"\")","v":""},{"$f":"IFERROR(IF(OR($C$144=FALSE,LEFT($B143,3)<>\"NOX\"),CV58*INDEX('Damage costs'!$U$16:$U$43,MATCH($B143,'Damage costs'!$C$16:$C$43,0))/1000,CV58*INDEX('Damage costs'!$Y$16:$Y$43,MATCH($B143,'Damage costs'!$C$16:$C$43,0))/1000),\"\")","v":""},{"$f":"IFERROR(IF(OR($C$144=FALSE,LEFT($B143,3)<>\"NOX\"),CW58*INDEX('Damage costs'!$U$16:$U$43,MATCH($B143,'Damage costs'!$C$16:$C$43,0))/1000,CW58*INDEX('Damage costs'!$Y$16:$Y$43,MATCH($B143,'Damage costs'!$C$16:$C$43,0))/1000),\"\")","v":""},{"$f":"IFERROR(IF(OR($C$144=FALSE,LEFT($B143,3)<>\"NOX\"),CX58*INDEX('Damage costs'!$U$16:$U$43,MATCH($B143,'Damage costs'!$C$16:$C$43,0))/1000,CX58*INDEX('Damage costs'!$Y$16:$Y$43,MATCH($B143,'Damage costs'!$C$16:$C$43,0))/1000),\"\")","v":""},{"$f":"IFERROR(IF(OR($C$144=FALSE,LEFT($B143,3)<>\"NOX\"),CY58*INDEX('Damage costs'!$U$16:$U$43,MATCH($B143,'Damage costs'!$C$16:$C$43,0))/1000,CY58*INDEX('Damage costs'!$Y$16:$Y$43,MATCH($B143,'Damage costs'!$C$16:$C$43,0))/1000),\"\")","v":""}]
[null,"PM10 Used",{"$f":"IF(OR(LEFT(B138,4)=\"PM10\",LEFT(B139,4)=\"PM10\",LEFT(B140,4)=\"PM10\",LEFT(B141,4)=\"PM10\",LEFT(B142,4)=\"PM10\",LEFT(B143,4)=\"PM10\"),TRUE,FALSE)","v":false}]
[]
[null,"Uplift pa","%",{"$f":"'Discount and deflators'!$H$5","v":0.02}]
[null,"Uplift factor",null,{"$f":"IF(D$6=0,0,(1+$D146)^(D$6-'Data Input - General'!$F$22))","v":1},{"$f":"IF(E$6=0,0,(1+$D146)^(E$6-'Data Input - General'!$F$22))","v":1.02},{"$f":"IF(F$6=0,0,(1+$D146)^(F$6-'Data Input - General'!$F$22))","v":1.0404},{"$f":"IF(G$6=0,0,(1+$D146)^(G$6-'Data Input - General'!$F$22))","v":1.0612079999999999},{"$f":"IF(H$6=0,0,(1+$D146)^(H$6-'Data Input - General'!$F$22))","v":1.08243216},{"$f":"IF(I$6=0,0,(1+$D146)^(I$6-'Data Input - General'!$F$22))","v":1.1040808032},{"$f":"IF(J$6=0,0,(1+$D146)^(J$6-'Data Input - General'!$F$22))","v":1.1261624192640001},{"$f":"IF(K$6=0,0,(1+$D146)^(K$6-'Data Input - General'!$F$22))","v":1.1486856676492798},{"$f":"IF(L$6=0,0,(1+$D146)^(L$6-'Data Input - General'!$F$22))","v":1.1716593810022655},{"$f":"IF(M$6=0,0,(1+$D146)^(M$6-'Data Input - General'!$F$22))","v":1.1950925686223108},{"$f":"IF(N$6=0,0,(1+$D146)^(N$6-'Data Input - General'!$F$22))","v":1.2189944199947571},{"$f":"IF(O$6=0,0,(1+$D146)^(O$6-'Data Input - General'!$F$22))","v":1.243374308394652},{"$f":"IF(P$6=0,0,(1+$D146)^(P$6-'Data Input - General'!$F$22))","v":1.2682417945625453},{"$f":"IF(Q$6=0,0,(1+$D146)^(Q$6-'Data Input - General'!$F$22))","v":1.2936066304537961},{"$f":"IF(R$6=0,0,(1+$D146)^(R$6-'Data Input - General'!$F$22))","v":1.3194787630628722},{"$f":"IF(S$6=0,0,(1+$D146)^(S$6-'Data Input - General'!$F$22))","v":1.3458683383241292},{"$f":"IF(T$6=0,0,(1+$D146)^(T$6-'Data Input - General'!$F$22))","v":1.372785705090612},{"$f":"IF(U$6=0,0,(1+$D146)^(U$6-'Data Input - General'!$F$22))","v":1.4002414191924244},{"$f":"IF(V$6=0,0,(1+$D146)^(V$6-'Data Input - General'!$F$22))","v":1.4282462475762727},{"$f":"IF(W$6=0,0,(1+$D146)^(W$6-'Data Input - General'!$F$22))","v":1.4568111725277981},{"$f":"IF(X$6=0,0,(1+$D146)^(X$6-'Data Input - General'!$F$22))","v":1.4859473959783542},{"$f":"IF(Y$6=0,0,(1+$D146)^(Y$6-'Data Input - General'!$F$22))","v":1.5156663438979212},{"$f":"IF(Z$6=0,0,(1+$D146)^(Z$6-'Data Input - General'!$F$22))","v":1.5459796707758797},{"$f":"IF(AA$6=0,0,(1+$D146)^(AA$6-'Data Input - General'!$F$22))","v":1.576899264191397},{"$f":"IF(AB$6=0,0,(1+$D146)^(AB$6-'Data Input - General'!$F$22))","v":1.608437249475225},{"$f":"IF(AC$6=0,0,(1+$D146)^(AC$6-'Data Input - General'!$F$22))","v":1.6406059944647295},{"$f":"IF(AD$6=0,0,(1+$D146)^(AD$6-'Data Input - General'!$F$22))","v":1.6734181143540243},{"$f":"IF(AE$6=0,0,(1+$D146)^(AE$6-'Data Input - General'!$F$22))","v":1.7068864766411045},{"$f":"IF(AF$6=0,0,(1+$D146)^(AF$6-'Data Input - General'!$F$22))","v":1.7410242061739269},{"$f":"IF(AG$6=0,0,(1+$D146)^(AG$6-'Data Input - General'!$F$22))","v":1.7758446902974052},{"$f":"IF(AH$6=0,0,(1+$D146)^(AH$6-'Data Input - General'!$F$22))","v":1.8113615841033535},{"$f":"IF(AI$6=0,0,(1+$D146)^(AI$6-'Data Input - General'!$F$22))","v":0},{"$f":"IF(AJ$6=0,0,(1+$D146)^(AJ$6-'Data Input - General'!$F$22))","v":0},{"$f":"IF(AK$6=0,0,(1+$D146)^(AK$6-'Data Input - General'!$F$22))","v":0},{"$f":"IF(AL$6=0,0,(1+$D146)^(AL$6-'Data Input - General'!$F$22))","v":0},{"$f":"IF(AM$6=0,0,(1+$D146)^(AM$6-'Data Input - General'!$F$22))","v":0},{"$f":"IF(AN$6=0,0,(1+$D146)^(AN$6-'Data Input - General'!$F$22))","v":0},{"$f":"IF(AO$6=0,0,(1+$D146)^(AO$6-'Data Input - General'!$F$22))","v":0},{"$f":"IF(AP$6=0,0,(1+$D146)^(AP$6-'Data Input - General'!$F$22))","v":0},{"$f":"IF(AQ$6=0,0,(1+$D146)^(AQ$6-'Data Input - General'!$F$22))","v":0},{"$f":"IF(AR$6=0,0,(1+$D146)^(AR$6-'Data Input - General'!$F$22))","v":0},{"$f":"IF(AS$6=0,0,(1+$D146)^(AS$6-'Data Input - General'!$F$22))","v":0},{"$f":"IF(AT$6=0,0,(1+$D146)^(AT$6-'Data Input - General'!$F$22))","v":0},{"$f":"IF(AU$6=0,0,(1+$D146)^(AU$6-'Data Input - General'!$F$22))","v":0},{"$f":"IF(AV$6=0,0,(1+$D146)^(AV$6-'Data Input - General'!$F$22))","v":0},{"$f":"IF(AW$6=0,0,(1+$D146)^(AW$6-'Data Input - General'!$F$22))","v":0},{"$f":"IF(AX$6=0,0,(1+$D146)^(AX$6-'Data Input - General'!$F$22))","v":0},{"$f":"IF(AY$6=0,0,(1+$D146)^(AY$6-'Data Input - General'!$F$22))","v":0},{"$f":"IF(AZ$6=0,0,(1+$D146)^(AZ$6-'Data Input - General'!$F$22))","v":0},{"$f":"IF(BA$6=0,0,(1+$D146)^(BA$6-'Data Input - General'!$F$22))","v":0},{"$f":"IF(BB$6=0,0,(1+$D146)^(BB$6-'Data Input - General'!$F$22))","v":0},{"$f":"IF(BC$6=0,0,(1+$D146)^(BC$6-'Data Input - General'!$F$22))","v":0},{"$f":"IF(BD$6=0,0,(1+$D146)^(BD$6-'Data Input - General'!$F$22))","v":0},{"$f":"IF(BE$6=0,0,(1+$D146)^(BE$6-'Data Input - General'!$F$22))","v":0},{"$f":"IF(BF$6=0,0,(1+$D146)^(BF$6-'Data Input - General'!$F$22))","v":0},{"$f":"IF(BG$6=0,0,(1+$D146)^(BG$6-'Data Input - General'!$F$22))","v":0},{"$f":"IF(BH$6=0,0,(1+$D146)^(BH$6-'Data Input - General'!$F$22))","v":0},{"$f":"IF(BI$6=0,0,(1+$D146)^(BI$6-'Data Input - General'!$F$22))","v":0},{"$f":"IF(BJ$6=0,0,(1+$D146)^(BJ$6-'Data Input - General'!$F$22))","v":0},{"$f":"IF(BK$6=0,0,(1+$D146)^(BK$6-'Data Input - General'!$F$22))","v":0},{"$f":"IF(BL$6=0,0,(1+$D146)^(BL$6-'Data Input - General'!$F$22))","v":0},{"$f":"IF(BM$6=0,0,(1+$D146)^(BM$6-'Data Input - General'!$F$22))","v":0},{"$f":"IF(BN$6=0,0,(1+$D146)^(BN$6-'Data Input - General'!$F$22))","v":0},{"$f":"IF(BO$6=0,0,(1+$D146)^(BO$6-'Data Input - General'!$F$22))","v":0},{"$f":"IF(BP$6=0,0,(1+$D146)^(BP$6-'Data Input - General'!$F$22))","v":0},{"$f":"IF(BQ$6=0,0,(1+$D146)^(BQ$6-'Data Input - General'!$F$22))","v":0},{"$f":"IF(BR$6=0,0,(1+$D146)^(BR$6-'Data Input - General'!$F$22))","v":0},{"$f":"IF(BS$6=0,0,(1+$D146)^(BS$6-'Data Input - General'!$F$22))","v":0},{"$f":"IF(BT$6=0,0,(1+$D146)^(BT$6-'Data Input - General'!$F$22))","v":0},{"$f":"IF(BU$6=0,0,(1+$D146)^(BU$6-'Data Input - General'!$F$22))","v":0},{"$f":"IF(BV$6=0,0,(1+$D146)^(BV$6-'Data Input - General'!$F$22))","v":0},{"$f":"IF(BW$6=0,0,(1+$D146)^(BW$6-'Data Input - General'!$F$22))","v":0},{"$f":"IF(BX$6=0,0,(1+$D146)^(BX$6-'Data Input - General'!$F$22))","v":0},{"$f":"IF(BY$6=0,0,(1+$D146)^(BY$6-'Data Input - General'!$F$22))","v":0},{"$f":"IF(BZ$6=0,0,(1+$D146)^(BZ$6-'Data Input - General'!$F$22))","v":0},{"$f":"IF(CA$6=0,0,(1+$D146)^(CA$6-'Data Input - General'!$F$22))","v":0},{"$f":"IF(CB$6=0,0,(1+$D146)^(CB$6-'Data Input - General'!$F$22))","v":0},{"$f":"IF(CC$6=0,0,(1+$D146)^(CC$6-'Data Input - General'!$F$22))","v":0},{"$f":"IF(CD$6=0,0,(1+$D146)^(CD$6-'Data Input - General'!$F$22))","v":0},{"$f":"IF(CE$6=0,0,(1+$D146)^(CE$6-'Data Input - General'!$F$22))","v":0},{"$f":"IF(CF$6=0,0,(1+$D146)^(CF$6-'Data Input - General'!$F$22))","v":0},{"$f":"IF(CG$6=0,0,(1+$D146)^(CG$6-'Data Input - General'!$F$22))","v":0},{"$f":"IF(CH$6=0,0,(1+$D146)^(CH$6-'Data Input - General'!$F$22))","v":0},{"$f":"IF(CI$6=0,0,(1+$D146)^(CI$6-'Data Input - General'!$F$22))","v":0},{"$f":"IF(CJ$6=0,0,(1+$D146)^(CJ$6-'Data Input - General'!$F$22))","v":0},{"$f":"IF(CK$6=0,0,(1+$D146)^(CK$6-'Data Input - General'!$F$22))","v":0},{"$f":"IF(CL$6=0,0,(1+$D146)^(CL$6-'Data Input - General'!$F$22))","v":0},{"$f":"IF(CM$6=0,0,(1+$D146)^(CM$6-'Data Input - General'!$F$22))","v":0},{"$f":"IF(CN$6=0,0,(1+$D146)^(CN$6-'Data Input - General'!$F$22))","v":0},{"$f":"IF(CO$6=0,0,(1+$D146)^(CO$6-'Data Input - General'!$F$22))","v":0},{"$f":"IF(CP$6=0,0,(1+$D146)^(CP$6-'Data Input - General'!$F$22))","v":0},{"$f":"IF(CQ$6=0,0,(1+$D146)^(CQ$6-'Data Input - General'!$F$22))","v":0},{"$f":"IF(CR$6=0,0,(1+$D146)^(CR$6-'Data Input - General'!$F$22))","v":0},{"$f":"IF(CS$6=0,0,(1+$D146)^(CS$6-'Data Input - General'!$F$22))","v":0},{"$f":"IF(CT$6=0,0,(1+$D146)^(CT$6-'Data Input - General'!$F$22))","v":0},{"$f":"IF(CU$6=0,0,(1+$D146)^(CU$6-'Data Input - General'!$F$22))","v":0},{"$f":"IF(CV$6=0,0,(1+$D146)^(CV$6-'Data Input - General'!$F$22))","v":0},{"$f":"IF(CW$6=0,0,(1+$D146)^(CW$6-'Data Input - General'!$F$22))","v":0},{"$f":"IF(CX$6=0,0,(1+$D146)^(CX$6-'Data Input - General'!$F$22))","v":0},{"$f":"IF(CY$6=0,0,(1+$D146)^(CY$6-'Data Input - General'!$F$22))","v":0}]
[null,"Total value","£000's",{"$f":"SUM(D138:D143)*D147","v":19.20090116757984},{"$f":"SUM(E138:E143)*E147","v":19.584919190931437},{"$f":"SUM(F138:F143)*F147","v":19.976617574750065},20.376149926245066,20.783672924769967,21.199346383265368,21.623333310930676,0,0,0,0,0,0,0,0,0,0,0,0,0,0,0,0,0,0,0,0,0,0,0,0,0,{"$f":"SUM(AJ138:AJ143)*AJ147","v":0},0,0,0,0,0,0,0,0,0,0,0,0,0,0,0,0,0,0,0,0,0,0,0,0,0,0,0,{"$f":"SUM(BL138:BL143)*BL147","v":0},0,0,0,0,0,0,0,0,0,0,0,0,0,0,0,0,0,0,0,0,0,0,0,0,0,0,0,0,0,0,0,0,0,0,0,0,0,0,0]
[null,"Discounted total value","£000's",{"$f":"D148*D$7","v":19.20090116757984},18.922627237614915,18.648386263156731,18.378119795574751,18.111770233320044,17.849280809648739,17.590595580523399,0,0,0,0,0,0,0,0,0,0,0,0,0,0,0,0,0,0,0,0,0,0,0,0,0,0,0,0,0,0,0,0,0,0,0,0,0,0,0,0,0,0,0,0,0,0,0,0,0,0,0,0,0,0,0,0,0,{"$f":"BP148*BP$7","v":0},0,0,0,0,0,0,0,0,0,0,0,0,0,0,0,0,0,0,0,0,0,0,0,0,0,0,0,0,0,0,0,0,0,0,0]
[]
[null,"GHG emissions"]
[null,"Traded","tCO2e",{"$f":"D$80+IF('Data Input - General'!$F$10=\"Yes\",Calc_BAU!D$81,0)+IF('Data Input - General'!$F$12=\"Yes\",Calc_BAU!D$75,0)","v":86644.737608250056},{"$f":"E$80+IF('Data Input - General'!$F$10=\"Yes\",Calc_BAU!E$81,0)+IF('Data Input - General'!$F$12=\"Yes\",Calc_BAU!E$75,0)","v":86510.233175019355},{"$f":"F$80+IF('Data Input - General'!$F$10=\"Yes\",Calc_BAU!F$81,0)+IF('Data Input - General'!$F$12=\"Yes\",Calc_BAU!F$75,0)","v":86388.187501378605},{"$f":"G$80+IF('Data Input - General'!$F$10=\"Yes\",Calc_BAU!G$81,0)+IF('Data Input - General'!$F$12=\"Yes\",Calc_BAU!G$75,0)","v":86316.993984732529},{"$f":"H$80+IF('Data Input - General'!$F$10=\"Yes\",Calc_BAU!H$81,0)+IF('Data Input - General'!$F$12=\"Yes\",Calc_BAU!H$75,0)","v":86193.774664474651},{"$f":"I$80+IF('Data Input - General'!$F$10=\"Yes\",Calc_BAU!I$81,0)+IF('Data Input - General'!$F$12=\"Yes\",Calc_BAU!I$75,0)","v":86229.164858991426},{"$f":"J$80+IF('Data Input - General'!$F$10=\"Yes\",Calc_BAU!J$81,0)+IF('Data Input - General'!$F$12=\"Yes\",Calc_BAU!J$75,0)","v":86182.585839819963},{"$f":"K$80+IF('Data Input - General'!$F$10=\"Yes\",Calc_BAU!K$81,0)+IF('Data Input - General'!$F$12=\"Yes\",Calc_BAU!K$75,0)","v":41105.387885048549},{"$f":"L$80+IF('Data Input - General'!$F$10=\"Yes\",Calc_BAU!L$81,0)+IF('Data Input - General'!$F$12=\"Yes\",Calc_BAU!L$75,0)","v":0},{"$f":"M$80+IF('Data Input - General'!$F$10=\"Yes\",Calc_BAU!M$81,0)+IF('Data Input - General'!$F$12=\"Yes\",Calc_BAU!M$75,0)","v":0},{"$f":"N$80+IF('Data Input - General'!$F$10=\"Yes\",Calc_BAU!N$81,0)+IF('Data Input - General'!$F$12=\"Yes\",Calc_BAU!N$75,0)","v":0},{"$f":"O$80+IF('Data Input - General'!$F$10=\"Yes\",Calc_BAU!O$81,0)+IF('Data Input - General'!$F$12=\"Yes\",Calc_BAU!O$75,0)","v":0},{"$f":"P$80+IF('Data Input - General'!$F$10=\"Yes\",Calc_BAU!P$81,0)+IF('Data Input - General'!$F$12=\"Yes\",Calc_BAU!P$75,0)","v":0},{"$f":"Q$80+IF('Data Input - General'!$F$10=\"Yes\",Calc_BAU!Q$81,0)+IF('Data Input - General'!$F$12=\"Yes\",Calc_BAU!Q$75,0)","v":0},{"$f":"R$80+IF('Data Input - General'!$F$10=\"Yes\",Calc_BAU!R$81,0)+IF('Data Input - General'!$F$12=\"Yes\",Calc_BAU!R$75,0)","v":0},{"$f":"S$80+IF('Data Input - General'!$F$10=\"Yes\",Calc_BAU!S$81,0)+IF('Data Input - General'!$F$12=\"Yes\",Calc_BAU!S$75,0)","v":0},{"$f":"T$80+IF('Data Input - General'!$F$10=\"Yes\",Calc_BAU!T$81,0)+IF('Data Input - General'!$F$12=\"Yes\",Calc_BAU!T$75,0)","v":0},{"$f":"U$80+IF('Data Input - General'!$F$10=\"Yes\",Calc_BAU!U$81,0)+IF('Data Input - General'!$F$12=\"Yes\",Calc_BAU!U$75,0)","v":0},{"$f":"V$80+IF('Data Input - General'!$F$10=\"Yes\",Calc_BAU!V$81,0)+IF('Data Input - General'!$F$12=\"Yes\",Calc_BAU!V$75,0)","v":0},{"$f":"W$80+IF('Data Input - General'!$F$10=\"Yes\",Calc_BAU!W$81,0)+IF('Data Input - General'!$F$12=\"Yes\",Calc_BAU!W$75,0)","v":0},{"$f":"X$80+IF('Data Input - General'!$F$10=\"Yes\",Calc_BAU!X$81,0)+IF('Data Input - General'!$F$12=\"Yes\",Calc_BAU!X$75,0)","v":0},{"$f":"Y$80+IF('Data Input - General'!$F$10=\"Yes\",Calc_BAU!Y$81,0)+IF('Data Input - General'!$F$12=\"Yes\",Calc_BAU!Y$75,0)","v":0},{"$f":"Z$80+IF('Data Input - General'!$F$10=\"Yes\",Calc_BAU!Z$81,0)+IF('Data Input - General'!$F$12=\"Yes\",Calc_BAU!Z$75,0)","v":0},{"$f":"AA$80+IF('Data Input - General'!$F$10=\"Yes\",Calc_BAU!AA$81,0)+IF('Data Input - General'!$F$12=\"Yes\",Calc_BAU!AA$75,0)","v":0},{"$f":"AB$80+IF('Data Input - General'!$F$10=\"Yes\",Calc_BAU!AB$81,0)+IF('Data Input - General'!$F$12=\"Yes\",Calc_BAU!AB$75,0)","v":0},{"$f":"AC$80+IF('Data Input - General'!$F$10=\"Yes\",Calc_BAU!AC$81,0)+IF('Data Input - General'!$F$12=\"Yes\",Calc_BAU!AC$75,0)","v":0},{"$f":"AD$80+IF('Data Input - General'!$F$10=\"Yes\",Calc_BAU!AD$81,0)+IF('Data Input - General'!$F$12=\"Yes\",Calc_BAU!AD$75,0)","v":0},{"$f":"AE$80+IF('Data Input - General'!$F$10=\"Yes\",Calc_BAU!AE$81,0)+IF('Data Input - General'!$F$12=\"Yes\",Calc_BAU!AE$75,0)","v":0},{"$f":"AF$80+IF('Data Input - General'!$F$10=\"Yes\",Calc_BAU!AF$81,0)+IF('Data Input - General'!$F$12=\"Yes\",Calc_BAU!AF$75,0)","v":0},{"$f":"AG$80+IF('Data Input - General'!$F$10=\"Yes\",Calc_BAU!AG$81,0)+IF('Data Input - General'!$F$12=\"Yes\",Calc_BAU!AG$75,0)","v":0},{"$f":"AH$80+IF('Data Input - General'!$F$10=\"Yes\",Calc_BAU!AH$81,0)+IF('Data Input - General'!$F$12=\"Yes\",Calc_BAU!AH$75,0)","v":0},{"$f":"AI$80+IF('Data Input - General'!$F$10=\"Yes\",Calc_BAU!AI$81,0)+IF('Data Input - General'!$F$12=\"Yes\",Calc_BAU!AI$75,0)","v":0},{"$f":"AJ$80+IF('Data Input - General'!$F$10=\"Yes\",Calc_BAU!AJ$81,0)+IF('Data Input - General'!$F$12=\"Yes\",Calc_BAU!AJ$75,0)","v":0},{"$f":"AK$80+IF('Data Input - General'!$F$10=\"Yes\",Calc_BAU!AK$81,0)+IF('Data Input - General'!$F$12=\"Yes\",Calc_BAU!AK$75,0)","v":0},{"$f":"AL$80+IF('Data Input - General'!$F$10=\"Yes\",Calc_BAU!AL$81,0)+IF('Data Input - General'!$F$12=\"Yes\",Calc_BAU!AL$75,0)","v":0},{"$f":"AM$80+IF('Data Input - General'!$F$10=\"Yes\",Calc_BAU!AM$81,0)+IF('Data Input - General'!$F$12=\"Yes\",Calc_BAU!AM$75,0)","v":0},{"$f":"AN$80+IF('Data Input - General'!$F$10=\"Yes\",Calc_BAU!AN$81,0)+IF('Data Input - General'!$F$12=\"Yes\",Calc_BAU!AN$75,0)","v":0},{"$f":"AO$80+IF('Data Input - General'!$F$10=\"Yes\",Calc_BAU!AO$81,0)+IF('Data Input - General'!$F$12=\"Yes\",Calc_BAU!AO$75,0)","v":0},{"$f":"AP$80+IF('Data Input - General'!$F$10=\"Yes\",Calc_BAU!AP$81,0)+IF('Data Input - General'!$F$12=\"Yes\",Calc_BAU!AP$75,0)","v":0},{"$f":"AQ$80+IF('Data Input - General'!$F$10=\"Yes\",Calc_BAU!AQ$81,0)+IF('Data Input - General'!$F$12=\"Yes\",Calc_BAU!AQ$75,0)","v":0},{"$f":"AR$80+IF('Data Input - General'!$F$10=\"Yes\",Calc_BAU!AR$81,0)+IF('Data Input - General'!$F$12=\"Yes\",Calc_BAU!AR$75,0)","v":0},{"$f":"AS$80+IF('Data Input - General'!$F$10=\"Yes\",Calc_BAU!AS$81,0)+IF('Data Input - General'!$F$12=\"Yes\",Calc_BAU!AS$75,0)","v":0},{"$f":"AT$80+IF('Data Input - General'!$F$10=\"Yes\",Calc_BAU!AT$81,0)+IF('Data Input - General'!$F$12=\"Yes\",Calc_BAU!AT$75,0)","v":0},{"$f":"AU$80+IF('Data Input - General'!$F$10=\"Yes\",Calc_BAU!AU$81,0)+IF('Data Input - General'!$F$12=\"Yes\",Calc_BAU!AU$75,0)","v":0},{"$f":"AV$80+IF('Data Input - General'!$F$10=\"Yes\",Calc_BAU!AV$81,0)+IF('Data Input - General'!$F$12=\"Yes\",Calc_BAU!AV$75,0)","v":0},{"$f":"AW$80+IF('Data Input - General'!$F$10=\"Yes\",Calc_BAU!AW$81,0)+IF('Data Input - General'!$F$12=\"Yes\",Calc_BAU!AW$75,0)","v":0},{"$f":"AX$80+IF('Data Input - General'!$F$10=\"Yes\",Calc_BAU!AX$81,0)+IF('Data Input - General'!$F$12=\"Yes\",Calc_BAU!AX$75,0)","v":0},{"$f":"AY$80+IF('Data Input - General'!$F$10=\"Yes\",Calc_BAU!AY$81,0)+IF('Data Input - General'!$F$12=\"Yes\",Calc_BAU!AY$75,0)","v":0},{"$f":"AZ$80+IF('Data Input - General'!$F$10=\"Yes\",Calc_BAU!AZ$81,0)+IF('Data Input - General'!$F$12=\"Yes\",Calc_BAU!AZ$75,0)","v":0},{"$f":"BA$80+IF('Data Input - General'!$F$10=\"Yes\",Calc_BAU!BA$81,0)+IF('Data Input - General'!$F$12=\"Yes\",Calc_BAU!BA$75,0)","v":0},{"$f":"BB$80+IF('Data Input - General'!$F$10=\"Yes\",Calc_BAU!BB$81,0)+IF('Data Input - General'!$F$12=\"Yes\",Calc_BAU!BB$75,0)","v":0},{"$f":"BC$80+IF('Data Input - General'!$F$10=\"Yes\",Calc_BAU!BC$81,0)+IF('Data Input - General'!$F$12=\"Yes\",Calc_BAU!BC$75,0)","v":0},{"$f":"BD$80+IF('Data Input - General'!$F$10=\"Yes\",Calc_BAU!BD$81,0)+IF('Data Input - General'!$F$12=\"Yes\",Calc_BAU!BD$75,0)","v":0},{"$f":"BE$80+IF('Data Input - General'!$F$10=\"Yes\",Calc_BAU!BE$81,0)+IF('Data Input - General'!$F$12=\"Yes\",Calc_BAU!BE$75,0)","v":0},{"$f":"BF$80+IF('Data Input - General'!$F$10=\"Yes\",Calc_BAU!BF$81,0)+IF('Data Input - General'!$F$12=\"Yes\",Calc_BAU!BF$75,0)","v":0},{"$f":"BG$80+IF('Data Input - General'!$F$10=\"Yes\",Calc_BAU!BG$81,0)+IF('Data Input - General'!$F$12=\"Yes\",Calc_BAU!BG$75,0)","v":0},{"$f":"BH$80+IF('Data Input - General'!$F$10=\"Yes\",Calc_BAU!BH$81,0)+IF('Data Input - General'!$F$12=\"Yes\",Calc_BAU!BH$75,0)","v":0},{"$f":"BI$80+IF('Data Input - General'!$F$10=\"Yes\",Calc_BAU!BI$81,0)+IF('Data Input - General'!$F$12=\"Yes\",Calc_BAU!BI$75,0)","v":0},{"$f":"BJ$80+IF('Data Input - General'!$F$10=\"Yes\",Calc_BAU!BJ$81,0)+IF('Data Input - General'!$F$12=\"Yes\",Calc_BAU!BJ$75,0)","v":0},{"$f":"BK$80+IF('Data Input - General'!$F$10=\"Yes\",Calc_BAU!BK$81,0)+IF('Data Input - General'!$F$12=\"Yes\",Calc_BAU!BK$75,0)","v":0},{"$f":"BL$80+IF('Data Input - General'!$F$10=\"Yes\",Calc_BAU!BL$81,0)+IF('Data Input - General'!$F$12=\"Yes\",Calc_BAU!BL$75,0)","v":0},{"$f":"BM$80+IF('Data Input - General'!$F$10=\"Yes\",Calc_BAU!BM$81,0)+IF('Data Input - General'!$F$12=\"Yes\",Calc_BAU!BM$75,0)","v":0},{"$f":"BN$80+IF('Data Input - General'!$F$10=\"Yes\",Calc_BAU!BN$81,0)+IF('Data Input - General'!$F$12=\"Yes\",Calc_BAU!BN$75,0)","v":0},{"$f":"BO$80+IF('Data Input - General'!$F$10=\"Yes\",Calc_BAU!BO$81,0)+IF('Data Input - General'!$F$12=\"Yes\",Calc_BAU!BO$75,0)","v":0},{"$f":"BP$80+IF('Data Input - General'!$F$10=\"Yes\",Calc_BAU!BP$81,0)+IF('Data Input - General'!$F$12=\"Yes\",Calc_BAU!BP$75,0)","v":0},{"$f":"BQ$80+IF('Data Input - General'!$F$10=\"Yes\",Calc_BAU!BQ$81,0)+IF('Data Input - General'!$F$12=\"Yes\",Calc_BAU!BQ$75,0)","v":0},{"$f":"BR$80+IF('Data Input - General'!$F$10=\"Yes\",Calc_BAU!BR$81,0)+IF('Data Input - General'!$F$12=\"Yes\",Calc_BAU!BR$75,0)","v":0},{"$f":"BS$80+IF('Data Input - General'!$F$10=\"Yes\",Calc_BAU!BS$81,0)+IF('Data Input - General'!$F$12=\"Yes\",Calc_BAU!BS$75,0)","v":0},{"$f":"BT$80+IF('Data Input - General'!$F$10=\"Yes\",Calc_BAU!BT$81,0)+IF('Data Input - General'!$F$12=\"Yes\",Calc_BAU!BT$75,0)","v":0},{"$f":"BU$80+IF('Data Input - General'!$F$10=\"Yes\",Calc_BAU!BU$81,0)+IF('Data Input - General'!$F$12=\"Yes\",Calc_BAU!BU$75,0)","v":0},{"$f":"BV$80+IF('Data Input - General'!$F$10=\"Yes\",Calc_BAU!BV$81,0)+IF('Data Input - General'!$F$12=\"Yes\",Calc_BAU!BV$75,0)","v":0},{"$f":"BW$80+IF('Data Input - General'!$F$10=\"Yes\",Calc_BAU!BW$81,0)+IF('Data Input - General'!$F$12=\"Yes\",Calc_BAU!BW$75,0)","v":0},{"$f":"BX$80+IF('Data Input - General'!$F$10=\"Yes\",Calc_BAU!BX$81,0)+IF('Data Input - General'!$F$12=\"Yes\",Calc_BAU!BX$75,0)","v":0},{"$f":"BY$80+IF('Data Input - General'!$F$10=\"Yes\",Calc_BAU!BY$81,0)+IF('Data Input - General'!$F$12=\"Yes\",Calc_BAU!BY$75,0)","v":0},{"$f":"BZ$80+IF('Data Input - General'!$F$10=\"Yes\",Calc_BAU!BZ$81,0)+IF('Data Input - General'!$F$12=\"Yes\",Calc_BAU!BZ$75,0)","v":0},{"$f":"CA$80+IF('Data Input - General'!$F$10=\"Yes\",Calc_BAU!CA$81,0)+IF('Data Input - General'!$F$12=\"Yes\",Calc_BAU!CA$75,0)","v":0},{"$f":"CB$80+IF('Data Input - General'!$F$10=\"Yes\",Calc_BAU!CB$81,0)+IF('Data Input - General'!$F$12=\"Yes\",Calc_BAU!CB$75,0)","v":0},{"$f":"CC$80+IF('Data Input - General'!$F$10=\"Yes\",Calc_BAU!CC$81,0)+IF('Data Input - General'!$F$12=\"Yes\",Calc_BAU!CC$75,0)","v":0},{"$f":"CD$80+IF('Data Input - General'!$F$10=\"Yes\",Calc_BAU!CD$81,0)+IF('Data Input - General'!$F$12=\"Yes\",Calc_BAU!CD$75,0)","v":0},{"$f":"CE$80+IF('Data Input - General'!$F$10=\"Yes\",Calc_BAU!CE$81,0)+IF('Data Input - General'!$F$12=\"Yes\",Calc_BAU!CE$75,0)","v":0},{"$f":"CF$80+IF('Data Input - General'!$F$10=\"Yes\",Calc_BAU!CF$81,0)+IF('Data Input - General'!$F$12=\"Yes\",Calc_BAU!CF$75,0)","v":0},{"$f":"CG$80+IF('Data Input - General'!$F$10=\"Yes\",Calc_BAU!CG$81,0)+IF('Data Input - General'!$F$12=\"Yes\",Calc_BAU!CG$75,0)","v":0},{"$f":"CH$80+IF('Data Input - General'!$F$10=\"Yes\",Calc_BAU!CH$81,0)+IF('Data Input - General'!$F$12=\"Yes\",Calc_BAU!CH$75,0)","v":0},{"$f":"CI$80+IF('Data Input - General'!$F$10=\"Yes\",Calc_BAU!CI$81,0)+IF('Data Input - General'!$F$12=\"Yes\",Calc_BAU!CI$75,0)","v":0},{"$f":"CJ$80+IF('Data Input - General'!$F$10=\"Yes\",Calc_BAU!CJ$81,0)+IF('Data Input - General'!$F$12=\"Yes\",Calc_BAU!CJ$75,0)","v":0},{"$f":"CK$80+IF('Data Input - General'!$F$10=\"Yes\",Calc_BAU!CK$81,0)+IF('Data Input - General'!$F$12=\"Yes\",Calc_BAU!CK$75,0)","v":0},{"$f":"CL$80+IF('Data Input - General'!$F$10=\"Yes\",Calc_BAU!CL$81,0)+IF('Data Input - General'!$F$12=\"Yes\",Calc_BAU!CL$75,0)","v":0},{"$f":"CM$80+IF('Data Input - General'!$F$10=\"Yes\",Calc_BAU!CM$81,0)+IF('Data Input - General'!$F$12=\"Yes\",Calc_BAU!CM$75,0)","v":0},{"$f":"CN$80+IF('Data Input - General'!$F$10=\"Yes\",Calc_BAU!CN$81,0)+IF('Data Input - General'!$F$12=\"Yes\",Calc_BAU!CN$75,0)","v":0},{"$f":"CO$80+IF('Data Input - General'!$F$10=\"Yes\",Calc_BAU!CO$81,0)+IF('Data Input - General'!$F$12=\"Yes\",Calc_BAU!CO$75,0)","v":0},{"$f":"CP$80+IF('Data Input - General'!$F$10=\"Yes\",Calc_BAU!CP$81,0)+IF('Data Input - General'!$F$12=\"Yes\",Calc_BAU!CP$75,0)","v":0},{"$f":"CQ$80+IF('Data Input - General'!$F$10=\"Yes\",Calc_BAU!CQ$81,0)+IF('Data Input - General'!$F$12=\"Yes\",Calc_BAU!CQ$75,0)","v":0},{"$f":"CR$80+IF('Data Input - General'!$F$10=\"Yes\",Calc_BAU!CR$81,0)+IF('Data Input - General'!$F$12=\"Yes\",Calc_BAU!CR$75,0)","v":0},{"$f":"CS$80+IF('Data Input - General'!$F$10=\"Yes\",Calc_BAU!CS$81,0)+IF('Data Input - General'!$F$12=\"Yes\",Calc_BAU!CS$75,0)","v":0},{"$f":"CT$80+IF('Data Input - General'!$F$10=\"Yes\",Calc_BAU!CT$81,0)+IF('Data Input - General'!$F$12=\"Yes\",Calc_BAU!CT$75,0)","v":0},{"$f":"CU$80+IF('Data Input - General'!$F$10=\"Yes\",Calc_BAU!CU$81,0)+IF('Data Input - General'!$F$12=\"Yes\",Calc_BAU!CU$75,0)","v":0},{"$f":"CV$80+IF('Data Input - General'!$F$10=\"Yes\",Calc_BAU!CV$81,0)+IF('Data Input - General'!$F$12=\"Yes\",Calc_BAU!CV$75,0)","v":0},{"$f":"CW$80+IF('Data Input - General'!$F$10=\"Yes\",Calc_BAU!CW$81,0)+IF('Data Input - General'!$F$12=\"Yes\",Calc_BAU!CW$75,0)","v":0},{"$f":"CX$80+IF('Data Input - General'!$F$10=\"Yes\",Calc_BAU!CX$81,0)+IF('Data Input - General'!$F$12=\"Yes\",Calc_BAU!CX$75,0)","v":0},{"$f":"CY$80+IF('Data Input - General'!$F$10=\"Yes\",Calc_BAU!CY$81,0)+IF('Data Input - General'!$F$12=\"Yes\",Calc_BAU!CY$75,0)","v":0}]
[null,"Non-traded","tCO2e",{"$f":"IF('Data Input - General'!$F$10=\"Yes\",0,Calc_BAU!D$81)+IF('Data Input - General'!$F$12=\"Yes\",0,Calc_BAU!D$75)","v":0},{"$f":"IF('Data Input - General'!$F$10=\"Yes\",0,Calc_BAU!E$81)+IF('Data Input - General'!$F$12=\"Yes\",0,Calc_BAU!E$75)","v":0},{"$f":"IF('Data Input - General'!$F$10=\"Yes\",0,Calc_BAU!F$81)+IF('Data Input - General'!$F$12=\"Yes\",0,Calc_BAU!F$75)","v":0},{"$f":"IF('Data Input - General'!$F$10=\"Yes\",0,Calc_BAU!G$81)+IF('Data Input - General'!$F$12=\"Yes\",0,Calc_BAU!G$75)","v":0},{"$f":"IF('Data Input - General'!$F$10=\"Yes\",0,Calc_BAU!H$81)+IF('Data Input - General'!$F$12=\"Yes\",0,Calc_BAU!H$75)","v":0},{"$f":"IF('Data Input - General'!$F$10=\"Yes\",0,Calc_BAU!I$81)+IF('Data Input - General'!$F$12=\"Yes\",0,Calc_BAU!I$75)","v":0},{"$f":"IF('Data Input - General'!$F$10=\"Yes\",0,Calc_BAU!J$81)+IF('Data Input - General'!$F$12=\"Yes\",0,Calc_BAU!J$75)","v":0},{"$f":"IF('Data Input - General'!$F$10=\"Yes\",0,Calc_BAU!K$81)+IF('Data Input - General'!$F$12=\"Yes\",0,Calc_BAU!K$75)","v":0},{"$f":"IF('Data Input - General'!$F$10=\"Yes\",0,Calc_BAU!L$81)+IF('Data Input - General'!$F$12=\"Yes\",0,Calc_BAU!L$75)","v":0},{"$f":"IF('Data Input - General'!$F$10=\"Yes\",0,Calc_BAU!M$81)+IF('Data Input - General'!$F$12=\"Yes\",0,Calc_BAU!M$75)","v":0},{"$f":"IF('Data Input - General'!$F$10=\"Yes\",0,Calc_BAU!N$81)+IF('Data Input - General'!$F$12=\"Yes\",0,Calc_BAU!N$75)","v":0},{"$f":"IF('Data Input - General'!$F$10=\"Yes\",0,Calc_BAU!O$81)+IF('Data Input - General'!$F$12=\"Yes\",0,Calc_BAU!O$75)","v":0},{"$f":"IF('Data Input - General'!$F$10=\"Yes\",0,Calc_BAU!P$81)+IF('Data Input - General'!$F$12=\"Yes\",0,Calc_BAU!P$75)","v":0},{"$f":"IF('Data Input - General'!$F$10=\"Yes\",0,Calc_BAU!Q$81)+IF('Data Input - General'!$F$12=\"Yes\",0,Calc_BAU!Q$75)","v":0},{"$f":"IF('Data Input - General'!$F$10=\"Yes\",0,Calc_BAU!R$81)+IF('Data Input - General'!$F$12=\"Yes\",0,Calc_BAU!R$75)","v":0},{"$f":"IF('Data Input - General'!$F$10=\"Yes\",0,Calc_BAU!S$81)+IF('Data Input - General'!$F$12=\"Yes\",0,Calc_BAU!S$75)","v":0},{"$f":"IF('Data Input - General'!$F$10=\"Yes\",0,Calc_BAU!T$81)+IF('Data Input - General'!$F$12=\"Yes\",0,Calc_BAU!T$75)","v":0},{"$f":"IF('Data Input - General'!$F$10=\"Yes\",0,Calc_BAU!U$81)+IF('Data Input - General'!$F$12=\"Yes\",0,Calc_BAU!U$75)","v":0},{"$f":"IF('Data Input - General'!$F$10=\"Yes\",0,Calc_BAU!V$81)+IF('Data Input - General'!$F$12=\"Yes\",0,Calc_BAU!V$75)","v":0},{"$f":"IF('Data Input - General'!$F$10=\"Yes\",0,Calc_BAU!W$81)+IF('Data Input - General'!$F$12=\"Yes\",0,Calc_BAU!W$75)","v":0},{"$f":"IF('Data Input - General'!$F$10=\"Yes\",0,Calc_BAU!X$81)+IF('Data Input - General'!$F$12=\"Yes\",0,Calc_BAU!X$75)","v":0},{"$f":"IF('Data Input - General'!$F$10=\"Yes\",0,Calc_BAU!Y$81)+IF('Data Input - General'!$F$12=\"Yes\",0,Calc_BAU!Y$75)","v":0},{"$f":"IF('Data Input - General'!$F$10=\"Yes\",0,Calc_BAU!Z$81)+IF('Data Input - General'!$F$12=\"Yes\",0,Calc_BAU!Z$75)","v":0},{"$f":"IF('Data Input - General'!$F$10=\"Yes\",0,Calc_BAU!AA$81)+IF('Data Input - General'!$F$12=\"Yes\",0,Calc_BAU!AA$75)","v":0},{"$f":"IF('Data Input - General'!$F$10=\"Yes\",0,Calc_BAU!AB$81)+IF('Data Input - General'!$F$12=\"Yes\",0,Calc_BAU!AB$75)","v":0},{"$f":"IF('Data Input - General'!$F$10=\"Yes\",0,Calc_BAU!AC$81)+IF('Data Input - General'!$F$12=\"Yes\",0,Calc_BAU!AC$75)","v":0},{"$f":"IF('Data Input - General'!$F$10=\"Yes\",0,Calc_BAU!AD$81)+IF('Data Input - General'!$F$12=\"Yes\",0,Calc_BAU!AD$75)","v":0},{"$f":"IF('Data Input - General'!$F$10=\"Yes\",0,Calc_BAU!AE$81)+IF('Data Input - General'!$F$12=\"Yes\",0,Calc_BAU!AE$75)","v":0},{"$f":"IF('Data Input - General'!$F$10=\"Yes\",0,Calc_BAU!AF$81)+IF('Data Input - General'!$F$12=\"Yes\",0,Calc_BAU!AF$75)","v":0},{"$f":"IF('Data Input - General'!$F$10=\"Yes\",0,Calc_BAU!AG$81)+IF('Data Input - General'!$F$12=\"Yes\",0,Calc_BAU!AG$75)","v":0},{"$f":"IF('Data Input - General'!$F$10=\"Yes\",0,Calc_BAU!AH$81)+IF('Data Input - General'!$F$12=\"Yes\",0,Calc_BAU!AH$75)","v":0},{"$f":"IF('Data Input - General'!$F$10=\"Yes\",0,Calc_BAU!AI$81)+IF('Data Input - General'!$F$12=\"Yes\",0,Calc_BAU!AI$75)","v":0},{"$f":"IF('Data Input - General'!$F$10=\"Yes\",0,Calc_BAU!AJ$81)+IF('Data Input - General'!$F$12=\"Yes\",0,Calc_BAU!AJ$75)","v":0},{"$f":"IF('Data Input - General'!$F$10=\"Yes\",0,Calc_BAU!AK$81)+IF('Data Input - General'!$F$12=\"Yes\",0,Calc_BAU!AK$75)","v":0},{"$f":"IF('Data Input - General'!$F$10=\"Yes\",0,Calc_BAU!AL$81)+IF('Data Input - General'!$F$12=\"Yes\",0,Calc_BAU!AL$75)","v":0},{"$f":"IF('Data Input - General'!$F$10=\"Yes\",0,Calc_BAU!AM$81)+IF('Data Input - General'!$F$12=\"Yes\",0,Calc_BAU!AM$75)","v":0},{"$f":"IF('Data Input - General'!$F$10=\"Yes\",0,Calc_BAU!AN$81)+IF('Data Input - General'!$F$12=\"Yes\",0,Calc_BAU!AN$75)","v":0},{"$f":"IF('Data Input - General'!$F$10=\"Yes\",0,Calc_BAU!AO$81)+IF('Data Input - General'!$F$12=\"Yes\",0,Calc_BAU!AO$75)","v":0},{"$f":"IF('Data Input - General'!$F$10=\"Yes\",0,Calc_BAU!AP$81)+IF('Data Input - General'!$F$12=\"Yes\",0,Calc_BAU!AP$75)","v":0},{"$f":"IF('Data Input - General'!$F$10=\"Yes\",0,Calc_BAU!AQ$81)+IF('Data Input - General'!$F$12=\"Yes\",0,Calc_BAU!AQ$75)","v":0},{"$f":"IF('Data Input - General'!$F$10=\"Yes\",0,Calc_BAU!AR$81)+IF('Data Input - General'!$F$12=\"Yes\",0,Calc_BAU!AR$75)","v":0},{"$f":"IF('Data Input - General'!$F$10=\"Yes\",0,Calc_BAU!AS$81)+IF('Data Input - General'!$F$12=\"Yes\",0,Calc_BAU!AS$75)","v":0},{"$f":"IF('Data Input - General'!$F$10=\"Yes\",0,Calc_BAU!AT$81)+IF('Data Input - General'!$F$12=\"Yes\",0,Calc_BAU!AT$75)","v":0},{"$f":"IF('Data Input - General'!$F$10=\"Yes\",0,Calc_BAU!AU$81)+IF('Data Input - General'!$F$12=\"Yes\",0,Calc_BAU!AU$75)","v":0},{"$f":"IF('Data Input - General'!$F$10=\"Yes\",0,Calc_BAU!AV$81)+IF('Data Input - General'!$F$12=\"Yes\",0,Calc_BAU!AV$75)","v":0},{"$f":"IF('Data Input - General'!$F$10=\"Yes\",0,Calc_BAU!AW$81)+IF('Data Input - General'!$F$12=\"Yes\",0,Calc_BAU!AW$75)","v":0},{"$f":"IF('Data Input - General'!$F$10=\"Yes\",0,Calc_BAU!AX$81)+IF('Data Input - General'!$F$12=\"Yes\",0,Calc_BAU!AX$75)","v":0},{"$f":"IF('Data Input - General'!$F$10=\"Yes\",0,Calc_BAU!AY$81)+IF('Data Input - General'!$F$12=\"Yes\",0,Calc_BAU!AY$75)","v":0},{"$f":"IF('Data Input - General'!$F$10=\"Yes\",0,Calc_BAU!AZ$81)+IF('Data Input - General'!$F$12=\"Yes\",0,Calc_BAU!AZ$75)","v":0},{"$f":"IF('Data Input - General'!$F$10=\"Yes\",0,Calc_BAU!BA$81)+IF('Data Input - General'!$F$12=\"Yes\",0,Calc_BAU!BA$75)","v":0},{"$f":"IF('Data Input - General'!$F$10=\"Yes\",0,Calc_BAU!BB$81)+IF('Data Input - General'!$F$12=\"Yes\",0,Calc_BAU!BB$75)","v":0},{"$f":"IF('Data Input - General'!$F$10=\"Yes\",0,Calc_BAU!BC$81)+IF('Data Input - General'!$F$12=\"Yes\",0,Calc_BAU!BC$75)","v":0},{"$f":"IF('Data Input - General'!$F$10=\"Yes\",0,Calc_BAU!BD$81)+IF('Data Input - General'!$F$12=\"Yes\",0,Calc_BAU!BD$75)","v":0},{"$f":"IF('Data Input - General'!$F$10=\"Yes\",0,Calc_BAU!BE$81)+IF('Data Input - General'!$F$12=\"Yes\",0,Calc_BAU!BE$75)","v":0},{"$f":"IF('Data Input - General'!$F$10=\"Yes\",0,Calc_BAU!BF$81)+IF('Data Input - General'!$F$12=\"Yes\",0,Calc_BAU!BF$75)","v":0},{"$f":"IF('Data Input - General'!$F$10=\"Yes\",0,Calc_BAU!BG$81)+IF('Data Input - General'!$F$12=\"Yes\",0,Calc_BAU!BG$75)","v":0},{"$f":"IF('Data Input - General'!$F$10=\"Yes\",0,Calc_BAU!BH$81)+IF('Data Input - General'!$F$12=\"Yes\",0,Calc_BAU!BH$75)","v":0},{"$f":"IF('Data Input - General'!$F$10=\"Yes\",0,Calc_BAU!BI$81)+IF('Data Input - General'!$F$12=\"Yes\",0,Calc_BAU!BI$75)","v":0},{"$f":"IF('Data Input - General'!$F$10=\"Yes\",0,Calc_BAU!BJ$81)+IF('Data Input - General'!$F$12=\"Yes\",0,Calc_BAU!BJ$75)","v":0},{"$f":"IF('Data Input - General'!$F$10=\"Yes\",0,Calc_BAU!BK$81)+IF('Data Input - General'!$F$12=\"Yes\",0,Calc_BAU!BK$75)","v":0},{"$f":"IF('Data Input - General'!$F$10=\"Yes\",0,Calc_BAU!BL$81)+IF('Data Input - General'!$F$12=\"Yes\",0,Calc_BAU!BL$75)","v":0},{"$f":"IF('Data Input - General'!$F$10=\"Yes\",0,Calc_BAU!BM$81)+IF('Data Input - General'!$F$12=\"Yes\",0,Calc_BAU!BM$75)","v":0},{"$f":"IF('Data Input - General'!$F$10=\"Yes\",0,Calc_BAU!BN$81)+IF('Data Input - General'!$F$12=\"Yes\",0,Calc_BAU!BN$75)","v":0},{"$f":"IF('Data Input - General'!$F$10=\"Yes\",0,Calc_BAU!BO$81)+IF('Data Input - General'!$F$12=\"Yes\",0,Calc_BAU!BO$75)","v":0},{"$f":"IF('Data Input - General'!$F$10=\"Yes\",0,Calc_BAU!BP$81)+IF('Data Input - General'!$F$12=\"Yes\",0,Calc_BAU!BP$75)","v":0},{"$f":"IF('Data Input - General'!$F$10=\"Yes\",0,Calc_BAU!BQ$81)+IF('Data Input - General'!$F$12=\"Yes\",0,Calc_BAU!BQ$75)","v":0},{"$f":"IF('Data Input - General'!$F$10=\"Yes\",0,Calc_BAU!BR$81)+IF('Data Input - General'!$F$12=\"Yes\",0,Calc_BAU!BR$75)","v":0},{"$f":"IF('Data Input - General'!$F$10=\"Yes\",0,Calc_BAU!BS$81)+IF('Data Input - General'!$F$12=\"Yes\",0,Calc_BAU!BS$75)","v":0},{"$f":"IF('Data Input - General'!$F$10=\"Yes\",0,Calc_BAU!BT$81)+IF('Data Input - General'!$F$12=\"Yes\",0,Calc_BAU!BT$75)","v":0},{"$f":"IF('Data Input - General'!$F$10=\"Yes\",0,Calc_BAU!BU$81)+IF('Data Input - General'!$F$12=\"Yes\",0,Calc_BAU!BU$75)","v":0},{"$f":"IF('Data Input - General'!$F$10=\"Yes\",0,Calc_BAU!BV$81)+IF('Data Input - General'!$F$12=\"Yes\",0,Calc_BAU!BV$75)","v":0},{"$f":"IF('Data Input - General'!$F$10=\"Yes\",0,Calc_BAU!BW$81)+IF('Data Input - General'!$F$12=\"Yes\",0,Calc_BAU!BW$75)","v":0},{"$f":"IF('Data Input - General'!$F$10=\"Yes\",0,Calc_BAU!BX$81)+IF('Data Input - General'!$F$12=\"Yes\",0,Calc_BAU!BX$75)","v":0},{"$f":"IF('Data Input - General'!$F$10=\"Yes\",0,Calc_BAU!BY$81)+IF('Data Input - General'!$F$12=\"Yes\",0,Calc_BAU!BY$75)","v":0},{"$f":"IF('Data Input - General'!$F$10=\"Yes\",0,Calc_BAU!BZ$81)+IF('Data Input - General'!$F$12=\"Yes\",0,Calc_BAU!BZ$75)","v":0},{"$f":"IF('Data Input - General'!$F$10=\"Yes\",0,Calc_BAU!CA$81)+IF('Data Input - General'!$F$12=\"Yes\",0,Calc_BAU!CA$75)","v":0},{"$f":"IF('Data Input - General'!$F$10=\"Yes\",0,Calc_BAU!CB$81)+IF('Data Input - General'!$F$12=\"Yes\",0,Calc_BAU!CB$75)","v":0},{"$f":"IF('Data Input - General'!$F$10=\"Yes\",0,Calc_BAU!CC$81)+IF('Data Input - General'!$F$12=\"Yes\",0,Calc_BAU!CC$75)","v":0},{"$f":"IF('Data Input - General'!$F$10=\"Yes\",0,Calc_BAU!CD$81)+IF('Data Input - General'!$F$12=\"Yes\",0,Calc_BAU!CD$75)","v":0},{"$f":"IF('Data Input - General'!$F$10=\"Yes\",0,Calc_BAU!CE$81)+IF('Data Input - General'!$F$12=\"Yes\",0,Calc_BAU!CE$75)","v":0},{"$f":"IF('Data Input - General'!$F$10=\"Yes\",0,Calc_BAU!CF$81)+IF('Data Input - General'!$F$12=\"Yes\",0,Calc_BAU!CF$75)","v":0},{"$f":"IF('Data Input - General'!$F$10=\"Yes\",0,Calc_BAU!CG$81)+IF('Data Input - General'!$F$12=\"Yes\",0,Calc_BAU!CG$75)","v":0},{"$f":"IF('Data Input - General'!$F$10=\"Yes\",0,Calc_BAU!CH$81)+IF('Data Input - General'!$F$12=\"Yes\",0,Calc_BAU!CH$75)","v":0},{"$f":"IF('Data Input - General'!$F$10=\"Yes\",0,Calc_BAU!CI$81)+IF('Data Input - General'!$F$12=\"Yes\",0,Calc_BAU!CI$75)","v":0},{"$f":"IF('Data Input - General'!$F$10=\"Yes\",0,Calc_BAU!CJ$81)+IF('Data Input - General'!$F$12=\"Yes\",0,Calc_BAU!CJ$75)","v":0},{"$f":"IF('Data Input - General'!$F$10=\"Yes\",0,Calc_BAU!CK$81)+IF('Data Input - General'!$F$12=\"Yes\",0,Calc_BAU!CK$75)","v":0},{"$f":"IF('Data Input - General'!$F$10=\"Yes\",0,Calc_BAU!CL$81)+IF('Data Input - General'!$F$12=\"Yes\",0,Calc_BAU!CL$75)","v":0},{"$f":"IF('Data Input - General'!$F$10=\"Yes\",0,Calc_BAU!CM$81)+IF('Data Input - General'!$F$12=\"Yes\",0,Calc_BAU!CM$75)","v":0},{"$f":"IF('Data Input - General'!$F$10=\"Yes\",0,Calc_BAU!CN$81)+IF('Data Input - General'!$F$12=\"Yes\",0,Calc_BAU!CN$75)","v":0},{"$f":"IF('Data Input - General'!$F$10=\"Yes\",0,Calc_BAU!CO$81)+IF('Data Input - General'!$F$12=\"Yes\",0,Calc_BAU!CO$75)","v":0},{"$f":"IF('Data Input - General'!$F$10=\"Yes\",0,Calc_BAU!CP$81)+IF('Data Input - General'!$F$12=\"Yes\",0,Calc_BAU!CP$75)","v":0},{"$f":"IF('Data Input - General'!$F$10=\"Yes\",0,Calc_BAU!CQ$81)+IF('Data Input - General'!$F$12=\"Yes\",0,Calc_BAU!CQ$75)","v":0},{"$f":"IF('Data Input - General'!$F$10=\"Yes\",0,Calc_BAU!CR$81)+IF('Data Input - General'!$F$12=\"Yes\",0,Calc_BAU!CR$75)","v":0},{"$f":"IF('Data Input - General'!$F$10=\"Yes\",0,Calc_BAU!CS$81)+IF('Data Input - General'!$F$12=\"Yes\",0,Calc_BAU!CS$75)","v":0},{"$f":"IF('Data Input - General'!$F$10=\"Yes\",0,Calc_BAU!CT$81)+IF('Data Input - General'!$F$12=\"Yes\",0,Calc_BAU!CT$75)","v":0},{"$f":"IF('Data Input - General'!$F$10=\"Yes\",0,Calc_BAU!CU$81)+IF('Data Input - General'!$F$12=\"Yes\",0,Calc_BAU!CU$75)","v":0},{"$f":"IF('Data Input - General'!$F$10=\"Yes\",0,Calc_BAU!CV$81)+IF('Data Input - General'!$F$12=\"Yes\",0,Calc_BAU!CV$75)","v":0},{"$f":"IF('Data Input - General'!$F$10=\"Yes\",0,Calc_BAU!CW$81)+IF('Data Input - General'!$F$12=\"Yes\",0,Calc_BAU!CW$75)","v":0},{"$f":"IF('Data Input - General'!$F$10=\"Yes\",0,Calc_BAU!CX$81)+IF('Data Input - General'!$F$12=\"Yes\",0,Calc_BAU!CX$75)","v":0},{"$f":"IF('Data Input - General'!$F$10=\"Yes\",0,Calc_BAU!CY$81)+IF('Data Input - General'!$F$12=\"Yes\",0,Calc_BAU!CY$75)","v":0}]
[null,"Value non-elec","£000's",{"$f":"IFERROR(INDEX('Carbon Prices'!$D$10:$CP$15,3,MATCH(Calc_BAU!D$6,'Carbon Prices'!$D$9:$CP$9,0))/1000,0)","v":3.6595483614396386E-2},{"$f":"IFERROR(INDEX('Carbon Prices'!$D$10:$CP$15,3,MATCH(Calc_BAU!E$6,'Carbon Prices'!$D$9:$CP$9,0))/1000,0)","v":4.1954810259537539E-2},{"$f":"IFERROR(INDEX('Carbon Prices'!$D$10:$CP$15,3,MATCH(Calc_BAU!F$6,'Carbon Prices'!$D$9:$CP$9,0))/1000,0)","v":5.0409774844480275E-2},{"$f":"IFERROR(INDEX('Carbon Prices'!$D$10:$CP$15,3,MATCH(Calc_BAU!G$6,'Carbon Prices'!$D$9:$CP$9,0))/1000,0)","v":5.886473942942301E-2},{"$f":"IFERROR(INDEX('Carbon Prices'!$D$10:$CP$15,3,MATCH(Calc_BAU!H$6,'Carbon Prices'!$D$9:$CP$9,0))/1000,0)","v":6.7319704014365739E-2},{"$f":"IFERROR(INDEX('Carbon Prices'!$D$10:$CP$15,3,MATCH(Calc_BAU!I$6,'Carbon Prices'!$D$9:$CP$9,0))/1000,0)","v":7.5774668599308467E-2},{"$f":"IFERROR(INDEX('Carbon Prices'!$D$10:$CP$15,3,MATCH(Calc_BAU!J$6,'Carbon Prices'!$D$9:$CP$9,0))/1000,0)","v":8.422963318425121E-2},{"$f":"IFERROR(INDEX('Carbon Prices'!$D$10:$CP$15,3,MATCH(Calc_BAU!K$6,'Carbon Prices'!$D$9:$CP$9,0))/1000,0)","v":9.2684597769193938E-2},{"$f":"IFERROR(INDEX('Carbon Prices'!$D$10:$CP$15,3,MATCH(Calc_BAU!L$6,'Carbon Prices'!$D$9:$CP$9,0))/1000,0)","v":0.10113956235413668},{"$f":"IFERROR(INDEX('Carbon Prices'!$D$10:$CP$15,3,MATCH(Calc_BAU!M$6,'Carbon Prices'!$D$9:$CP$9,0))/1000,0)","v":0.10959452693907941},{"$f":"IFERROR(INDEX('Carbon Prices'!$D$10:$CP$15,3,MATCH(Calc_BAU!N$6,'Carbon Prices'!$D$9:$CP$9,0))/1000,0)","v":0.11804949152402217},{"$f":"IFERROR(INDEX('Carbon Prices'!$D$10:$CP$15,3,MATCH(Calc_BAU!O$6,'Carbon Prices'!$D$9:$CP$9,0))/1000,0)","v":0.12650445610896488},{"$f":"IFERROR(INDEX('Carbon Prices'!$D$10:$CP$15,3,MATCH(Calc_BAU!P$6,'Carbon Prices'!$D$9:$CP$9,0))/1000,0)","v":0.13825129846194026},{"$f":"IFERROR(INDEX('Carbon Prices'!$D$10:$CP$15,3,MATCH(Calc_BAU!Q$6,'Carbon Prices'!$D$9:$CP$9,0))/1000,0)","v":0.14999814081491555},{"$f":"IFERROR(INDEX('Carbon Prices'!$D$10:$CP$15,3,MATCH(Calc_BAU!R$6,'Carbon Prices'!$D$9:$CP$9,0))/1000,0)","v":0.1617449831678909},{"$f":"IFERROR(INDEX('Carbon Prices'!$D$10:$CP$15,3,MATCH(Calc_BAU!S$6,'Carbon Prices'!$D$9:$CP$9,0))/1000,0)","v":0.1734918255208662},{"$f":"IFERROR(INDEX('Carbon Prices'!$D$10:$CP$15,3,MATCH(Calc_BAU!T$6,'Carbon Prices'!$D$9:$CP$9,0))/1000,0)","v":0.18523866787384149},{"$f":"IFERROR(INDEX('Carbon Prices'!$D$10:$CP$15,3,MATCH(Calc_BAU!U$6,'Carbon Prices'!$D$9:$CP$9,0))/1000,0)","v":0.19698551022681682},{"$f":"IFERROR(INDEX('Carbon Prices'!$D$10:$CP$15,3,MATCH(Calc_BAU!V$6,'Carbon Prices'!$D$9:$CP$9,0))/1000,0)","v":0.20873235257979214},{"$f":"IFERROR(INDEX('Carbon Prices'!$D$10:$CP$15,3,MATCH(Calc_BAU!W$6,'Carbon Prices'!$D$9:$CP$9,0))/1000,0)","v":0.22047919493276749},{"$f":"IFERROR(INDEX('Carbon Prices'!$D$10:$CP$15,3,MATCH(Calc_BAU!X$6,'Carbon Prices'!$D$9:$CP$9,0))/1000,0)","v":0.23222603728574279},{"$f":"IFERROR(INDEX('Carbon Prices'!$D$10:$CP$15,3,MATCH(Calc_BAU!Y$6,'Carbon Prices'!$D$9:$CP$9,0))/1000,0)","v":0.24397287963871811},{"$f":"IFERROR(INDEX('Carbon Prices'!$D$10:$CP$15,3,MATCH(Calc_BAU!Z$6,'Carbon Prices'!$D$9:$CP$9,0))/1000,0)","v":0.25571972199169341},{"$f":"IFERROR(INDEX('Carbon Prices'!$D$10:$CP$15,3,MATCH(Calc_BAU!AA$6,'Carbon Prices'!$D$9:$CP$9,0))/1000,0)","v":0.2674665643446687},{"$f":"IFERROR(INDEX('Carbon Prices'!$D$10:$CP$15,3,MATCH(Calc_BAU!AB$6,'Carbon Prices'!$D$9:$CP$9,0))/1000,0)","v":0.27921340669764405},{"$f":"IFERROR(INDEX('Carbon Prices'!$D$10:$CP$15,3,MATCH(Calc_BAU!AC$6,'Carbon Prices'!$D$9:$CP$9,0))/1000,0)","v":0.2909602490506194},{"$f":"IFERROR(INDEX('Carbon Prices'!$D$10:$CP$15,3,MATCH(Calc_BAU!AD$6,'Carbon Prices'!$D$9:$CP$9,0))/1000,0)","v":0.3027070914035947},{"$f":"IFERROR(INDEX('Carbon Prices'!$D$10:$CP$15,3,MATCH(Calc_BAU!AE$6,'Carbon Prices'!$D$9:$CP$9,0))/1000,0)","v":0.31445393375656999},{"$f":"IFERROR(INDEX('Carbon Prices'!$D$10:$CP$15,3,MATCH(Calc_BAU!AF$6,'Carbon Prices'!$D$9:$CP$9,0))/1000,0)","v":0.32620077610954529},{"$f":"IFERROR(INDEX('Carbon Prices'!$D$10:$CP$15,3,MATCH(Calc_BAU!AG$6,'Carbon Prices'!$D$9:$CP$9,0))/1000,0)","v":0.33794761846252058},{"$f":"IFERROR(INDEX('Carbon Prices'!$D$10:$CP$15,3,MATCH(Calc_BAU!AH$6,'Carbon Prices'!$D$9:$CP$9,0))/1000,0)","v":0.34969446081549593},{"$f":"IFERROR(INDEX('Carbon Prices'!$D$10:$CP$15,3,MATCH(Calc_BAU!AI$6,'Carbon Prices'!$D$9:$CP$9,0))/1000,0)","v":0},{"$f":"IFERROR(INDEX('Carbon Prices'!$D$10:$CP$15,3,MATCH(Calc_BAU!AJ$6,'Carbon Prices'!$D$9:$CP$9,0))/1000,0)","v":0},{"$f":"IFERROR(INDEX('Carbon Prices'!$D$10:$CP$15,3,MATCH(Calc_BAU!AK$6,'Carbon Prices'!$D$9:$CP$9,0))/1000,0)","v":0},{"$f":"IFERROR(INDEX('Carbon Prices'!$D$10:$CP$15,3,MATCH(Calc_BAU!AL$6,'Carbon Prices'!$D$9:$CP$9,0))/1000,0)","v":0},{"$f":"IFERROR(INDEX('Carbon Prices'!$D$10:$CP$15,3,MATCH(Calc_BAU!AM$6,'Carbon Prices'!$D$9:$CP$9,0))/1000,0)","v":0},{"$f":"IFERROR(INDEX('Carbon Prices'!$D$10:$CP$15,3,MATCH(Calc_BAU!AN$6,'Carbon Prices'!$D$9:$CP$9,0))/1000,0)","v":0},{"$f":"IFERROR(INDEX('Carbon Prices'!$D$10:$CP$15,3,MATCH(Calc_BAU!AO$6,'Carbon Prices'!$D$9:$CP$9,0))/1000,0)","v":0},{"$f":"IFERROR(INDEX('Carbon Prices'!$D$10:$CP$15,3,MATCH(Calc_BAU!AP$6,'Carbon Prices'!$D$9:$CP$9,0))/1000,0)","v":0},{"$f":"IFERROR(INDEX('Carbon Prices'!$D$10:$CP$15,3,MATCH(Calc_BAU!AQ$6,'Carbon Prices'!$D$9:$CP$9,0))/1000,0)","v":0},{"$f":"IFERROR(INDEX('Carbon Prices'!$D$10:$CP$15,3,MATCH(Calc_BAU!AR$6,'Carbon Prices'!$D$9:$CP$9,0))/1000,0)","v":0},{"$f":"IFERROR(INDEX('Carbon Prices'!$D$10:$CP$15,3,MATCH(Calc_BAU!AS$6,'Carbon Prices'!$D$9:$CP$9,0))/1000,0)","v":0},{"$f":"IFERROR(INDEX('Carbon Prices'!$D$10:$CP$15,3,MATCH(Calc_BAU!AT$6,'Carbon Prices'!$D$9:$CP$9,0))/1000,0)","v":0},{"$f":"IFERROR(INDEX('Carbon Prices'!$D$10:$CP$15,3,MATCH(Calc_BAU!AU$6,'Carbon Prices'!$D$9:$CP$9,0))/1000,0)","v":0},{"$f":"IFERROR(INDEX('Carbon Prices'!$D$10:$CP$15,3,MATCH(Calc_BAU!AV$6,'Carbon Prices'!$D$9:$CP$9,0))/1000,0)","v":0},{"$f":"IFERROR(INDEX('Carbon Prices'!$D$10:$CP$15,3,MATCH(Calc_BAU!AW$6,'Carbon Prices'!$D$9:$CP$9,0))/1000,0)","v":0},{"$f":"IFERROR(INDEX('Carbon Prices'!$D$10:$CP$15,3,MATCH(Calc_BAU!AX$6,'Carbon Prices'!$D$9:$CP$9,0))/1000,0)","v":0},{"$f":"IFERROR(INDEX('Carbon Prices'!$D$10:$CP$15,3,MATCH(Calc_BAU!AY$6,'Carbon Prices'!$D$9:$CP$9,0))/1000,0)","v":0},{"$f":"IFERROR(INDEX('Carbon Prices'!$D$10:$CP$15,3,MATCH(Calc_BAU!AZ$6,'Carbon Prices'!$D$9:$CP$9,0))/1000,0)","v":0},{"$f":"IFERROR(INDEX('Carbon Prices'!$D$10:$CP$15,3,MATCH(Calc_BAU!BA$6,'Carbon Prices'!$D$9:$CP$9,0))/1000,0)","v":0},{"$f":"IFERROR(INDEX('Carbon Prices'!$D$10:$CP$15,3,MATCH(Calc_BAU!BB$6,'Carbon Prices'!$D$9:$CP$9,0))/1000,0)","v":0},{"$f":"IFERROR(INDEX('Carbon Prices'!$D$10:$CP$15,3,MATCH(Calc_BAU!BC$6,'Carbon Prices'!$D$9:$CP$9,0))/1000,0)","v":0},{"$f":"IFERROR(INDEX('Carbon Prices'!$D$10:$CP$15,3,MATCH(Calc_BAU!BD$6,'Carbon Prices'!$D$9:$CP$9,0))/1000,0)","v":0},{"$f":"IFERROR(INDEX('Carbon Prices'!$D$10:$CP$15,3,MATCH(Calc_BAU!BE$6,'Carbon Prices'!$D$9:$CP$9,0))/1000,0)","v":0},{"$f":"IFERROR(INDEX('Carbon Prices'!$D$10:$CP$15,3,MATCH(Calc_BAU!BF$6,'Carbon Prices'!$D$9:$CP$9,0))/1000,0)","v":0},{"$f":"IFERROR(INDEX('Carbon Prices'!$D$10:$CP$15,3,MATCH(Calc_BAU!BG$6,'Carbon Prices'!$D$9:$CP$9,0))/1000,0)","v":0},{"$f":"IFERROR(INDEX('Carbon Prices'!$D$10:$CP$15,3,MATCH(Calc_BAU!BH$6,'Carbon Prices'!$D$9:$CP$9,0))/1000,0)","v":0},{"$f":"IFERROR(INDEX('Carbon Prices'!$D$10:$CP$15,3,MATCH(Calc_BAU!BI$6,'Carbon Prices'!$D$9:$CP$9,0))/1000,0)","v":0},{"$f":"IFERROR(INDEX('Carbon Prices'!$D$10:$CP$15,3,MATCH(Calc_BAU!BJ$6,'Carbon Prices'!$D$9:$CP$9,0))/1000,0)","v":0},{"$f":"IFERROR(INDEX('Carbon Prices'!$D$10:$CP$15,3,MATCH(Calc_BAU!BK$6,'Carbon Prices'!$D$9:$CP$9,0))/1000,0)","v":0},{"$f":"IFERROR(INDEX('Carbon Prices'!$D$10:$CP$15,3,MATCH(Calc_BAU!BL$6,'Carbon Prices'!$D$9:$CP$9,0))/1000,0)","v":0},{"$f":"IFERROR(INDEX('Carbon Prices'!$D$10:$CP$15,3,MATCH(Calc_BAU!BM$6,'Carbon Prices'!$D$9:$CP$9,0))/1000,0)","v":0},{"$f":"IFERROR(INDEX('Carbon Prices'!$D$10:$CP$15,3,MATCH(Calc_BAU!BN$6,'Carbon Prices'!$D$9:$CP$9,0))/1000,0)","v":0},{"$f":"IFERROR(INDEX('Carbon Prices'!$D$10:$CP$15,3,MATCH(Calc_BAU!BO$6,'Carbon Prices'!$D$9:$CP$9,0))/1000,0)","v":0},{"$f":"IFERROR(INDEX('Carbon Prices'!$D$10:$CP$15,3,MATCH(Calc_BAU!BP$6,'Carbon Prices'!$D$9:$CP$9,0))/1000,0)","v":0},{"$f":"IFERROR(INDEX('Carbon Prices'!$D$10:$CP$15,3,MATCH(Calc_BAU!BQ$6,'Carbon Prices'!$D$9:$CP$9,0))/1000,0)","v":0},{"$f":"IFERROR(INDEX('Carbon Prices'!$D$10:$CP$15,3,MATCH(Calc_BAU!BR$6,'Carbon Prices'!$D$9:$CP$9,0))/1000,0)","v":0},{"$f":"IFERROR(INDEX('Carbon Prices'!$D$10:$CP$15,3,MATCH(Calc_BAU!BS$6,'Carbon Prices'!$D$9:$CP$9,0))/1000,0)","v":0},{"$f":"IFERROR(INDEX('Carbon Prices'!$D$10:$CP$15,3,MATCH(Calc_BAU!BT$6,'Carbon Prices'!$D$9:$CP$9,0))/1000,0)","v":0},{"$f":"IFERROR(INDEX('Carbon Prices'!$D$10:$CP$15,3,MATCH(Calc_BAU!BU$6,'Carbon Prices'!$D$9:$CP$9,0))/1000,0)","v":0},{"$f":"IFERROR(INDEX('Carbon Prices'!$D$10:$CP$15,3,MATCH(Calc_BAU!BV$6,'Carbon Prices'!$D$9:$CP$9,0))/1000,0)","v":0},{"$f":"IFERROR(INDEX('Carbon Prices'!$D$10:$CP$15,3,MATCH(Calc_BAU!BW$6,'Carbon Prices'!$D$9:$CP$9,0))/1000,0)","v":0},{"$f":"IFERROR(INDEX('Carbon Prices'!$D$10:$CP$15,3,MATCH(Calc_BAU!BX$6,'Carbon Prices'!$D$9:$CP$9,0))/1000,0)","v":0},{"$f":"IFERROR(INDEX('Carbon Prices'!$D$10:$CP$15,3,MATCH(Calc_BAU!BY$6,'Carbon Prices'!$D$9:$CP$9,0))/1000,0)","v":0},{"$f":"IFERROR(INDEX('Carbon Prices'!$D$10:$CP$15,3,MATCH(Calc_BAU!BZ$6,'Carbon Prices'!$D$9:$CP$9,0))/1000,0)","v":0},{"$f":"IFERROR(INDEX('Carbon Prices'!$D$10:$CP$15,3,MATCH(Calc_BAU!CA$6,'Carbon Prices'!$D$9:$CP$9,0))/1000,0)","v":0},{"$f":"IFERROR(INDEX('Carbon Prices'!$D$10:$CP$15,3,MATCH(Calc_BAU!CB$6,'Carbon Prices'!$D$9:$CP$9,0))/1000,0)","v":0},{"$f":"IFERROR(INDEX('Carbon Prices'!$D$10:$CP$15,3,MATCH(Calc_BAU!CC$6,'Carbon Prices'!$D$9:$CP$9,0))/1000,0)","v":0},{"$f":"IFERROR(INDEX('Carbon Prices'!$D$10:$CP$15,3,MATCH(Calc_BAU!CD$6,'Carbon Prices'!$D$9:$CP$9,0))/1000,0)","v":0},{"$f":"IFERROR(INDEX('Carbon Prices'!$D$10:$CP$15,3,MATCH(Calc_BAU!CE$6,'Carbon Prices'!$D$9:$CP$9,0))/1000,0)","v":0},{"$f":"IFERROR(INDEX('Carbon Prices'!$D$10:$CP$15,3,MATCH(Calc_BAU!CF$6,'Carbon Prices'!$D$9:$CP$9,0))/1000,0)","v":0},{"$f":"IFERROR(INDEX('Carbon Prices'!$D$10:$CP$15,3,MATCH(Calc_BAU!CG$6,'Carbon Prices'!$D$9:$CP$9,0))/1000,0)","v":0},{"$f":"IFERROR(INDEX('Carbon Prices'!$D$10:$CP$15,3,MATCH(Calc_BAU!CH$6,'Carbon Prices'!$D$9:$CP$9,0))/1000,0)","v":0},{"$f":"IFERROR(INDEX('Carbon Prices'!$D$10:$CP$15,3,MATCH(Calc_BAU!CI$6,'Carbon Prices'!$D$9:$CP$9,0))/1000,0)","v":0},{"$f":"IFERROR(INDEX('Carbon Prices'!$D$10:$CP$15,3,MATCH(Calc_BAU!CJ$6,'Carbon Prices'!$D$9:$CP$9,0))/1000,0)","v":0},{"$f":"IFERROR(INDEX('Carbon Prices'!$D$10:$CP$15,3,MATCH(Calc_BAU!CK$6,'Carbon Prices'!$D$9:$CP$9,0))/1000,0)","v":0},{"$f":"IFERROR(INDEX('Carbon Prices'!$D$10:$CP$15,3,MATCH(Calc_BAU!CL$6,'Carbon Prices'!$D$9:$CP$9,0))/1000,0)","v":0},{"$f":"IFERROR(INDEX('Carbon Prices'!$D$10:$CP$15,3,MATCH(Calc_BAU!CM$6,'Carbon Prices'!$D$9:$CP$9,0))/1000,0)","v":0},{"$f":"IFERROR(INDEX('Carbon Prices'!$D$10:$CP$15,3,MATCH(Calc_BAU!CN$6,'Carbon Prices'!$D$9:$CP$9,0))/1000,0)","v":0},{"$f":"IFERROR(INDEX('Carbon Prices'!$D$10:$CP$15,3,MATCH(Calc_BAU!CO$6,'Carbon Prices'!$D$9:$CP$9,0))/1000,0)","v":0},{"$f":"IFERROR(INDEX('Carbon Prices'!$D$10:$CP$15,3,MATCH(Calc_BAU!CP$6,'Carbon Prices'!$D$9:$CP$9,0))/1000,0)","v":0},{"$f":"IFERROR(INDEX('Carbon Prices'!$D$10:$CP$15,3,MATCH(Calc_BAU!CQ$6,'Carbon Prices'!$D$9:$CP$9,0))/1000,0)","v":0},{"$f":"IFERROR(INDEX('Carbon Prices'!$D$10:$CP$15,3,MATCH(Calc_BAU!CR$6,'Carbon Prices'!$D$9:$CP$9,0))/1000,0)","v":0},{"$f":"IFERROR(INDEX('Carbon Prices'!$D$10:$CP$15,3,MATCH(Calc_BAU!CS$6,'Carbon Prices'!$D$9:$CP$9,0))/1000,0)","v":0},{"$f":"IFERROR(INDEX('Carbon Prices'!$D$10:$CP$15,3,MATCH(Calc_BAU!CT$6,'Carbon Prices'!$D$9:$CP$9,0))/1000,0)","v":0},{"$f":"IFERROR(INDEX('Carbon Prices'!$D$10:$CP$15,3,MATCH(Calc_BAU!CU$6,'Carbon Prices'!$D$9:$CP$9,0))/1000,0)","v":0},{"$f":"IFERROR(INDEX('Carbon Prices'!$D$10:$CP$15,3,MATCH(Calc_BAU!CV$6,'Carbon Prices'!$D$9:$CP$9,0))/1000,0)","v":0},{"$f":"IFERROR(INDEX('Carbon Prices'!$D$10:$CP$15,3,MATCH(Calc_BAU!CW$6,'Carbon Prices'!$D$9:$CP$9,0))/1000,0)","v":0},{"$f":"IFERROR(INDEX('Carbon Prices'!$D$10:$CP$15,3,MATCH(Calc_BAU!CX$6,'Carbon Prices'!$D$9:$CP$9,0))/1000,0)","v":0},{"$f":"IFERROR(INDEX('Carbon Prices'!$D$10:$CP$15,3,MATCH(Calc_BAU!CY$6,'Carbon Prices'!$D$9:$CP$9,0))/1000,0)","v":0}]
[null,"Total value elec","£000's",{"$f":"IFERROR(INDEX('Carbon Prices'!$D$10:$CP$15,6,MATCH(Calc_BAU!D$6,'Carbon Prices'!$D$9:$CP$9,0))/1000,0)","v":0.10682994182319348},{"$f":"IFERROR(INDEX('Carbon Prices'!$D$10:$CP$15,6,MATCH(Calc_BAU!E$6,'Carbon Prices'!$D$9:$CP$9,0))/1000,0)","v":0.10843239095054137},{"$f":"IFERROR(INDEX('Carbon Prices'!$D$10:$CP$15,6,MATCH(Calc_BAU!F$6,'Carbon Prices'!$D$9:$CP$9,0))/1000,0)","v":0.11023959746638375},{"$f":"IFERROR(INDEX('Carbon Prices'!$D$10:$CP$15,6,MATCH(Calc_BAU!G$6,'Carbon Prices'!$D$9:$CP$9,0))/1000,0)","v":0.11204680398222609},{"$f":"IFERROR(INDEX('Carbon Prices'!$D$10:$CP$15,6,MATCH(Calc_BAU!H$6,'Carbon Prices'!$D$9:$CP$9,0))/1000,0)","v":0.11385401049806844},{"$f":"IFERROR(INDEX('Carbon Prices'!$D$10:$CP$15,6,MATCH(Calc_BAU!I$6,'Carbon Prices'!$D$9:$CP$9,0))/1000,0)","v":0.1156612170139108},{"$f":"IFERROR(INDEX('Carbon Prices'!$D$10:$CP$15,6,MATCH(Calc_BAU!J$6,'Carbon Prices'!$D$9:$CP$9,0))/1000,0)","v":0.11746842352975315},{"$f":"IFERROR(INDEX('Carbon Prices'!$D$10:$CP$15,6,MATCH(Calc_BAU!K$6,'Carbon Prices'!$D$9:$CP$9,0))/1000,0)","v":0.11927563004559551},{"$f":"IFERROR(INDEX('Carbon Prices'!$D$10:$CP$15,6,MATCH(Calc_BAU!L$6,'Carbon Prices'!$D$9:$CP$9,0))/1000,0)","v":0.12108283656143787},{"$f":"IFERROR(INDEX('Carbon Prices'!$D$10:$CP$15,6,MATCH(Calc_BAU!M$6,'Carbon Prices'!$D$9:$CP$9,0))/1000,0)","v":0.12289004307728023},{"$f":"IFERROR(INDEX('Carbon Prices'!$D$10:$CP$15,6,MATCH(Calc_BAU!N$6,'Carbon Prices'!$D$9:$CP$9,0))/1000,0)","v":0.12469724959312259},{"$f":"IFERROR(INDEX('Carbon Prices'!$D$10:$CP$15,6,MATCH(Calc_BAU!O$6,'Carbon Prices'!$D$9:$CP$9,0))/1000,0)","v":0.12650445610896494},{"$f":"IFERROR(INDEX('Carbon Prices'!$D$10:$CP$15,6,MATCH(Calc_BAU!P$6,'Carbon Prices'!$D$9:$CP$9,0))/1000,0)","v":0.13825129846194026},{"$f":"IFERROR(INDEX('Carbon Prices'!$D$10:$CP$15,6,MATCH(Calc_BAU!Q$6,'Carbon Prices'!$D$9:$CP$9,0))/1000,0)","v":0.14999814081491555},{"$f":"IFERROR(INDEX('Carbon Prices'!$D$10:$CP$15,6,MATCH(Calc_BAU!R$6,'Carbon Prices'!$D$9:$CP$9,0))/1000,0)","v":0.1617449831678909},{"$f":"IFERROR(INDEX('Carbon Prices'!$D$10:$CP$15,6,MATCH(Calc_BAU!S$6,'Carbon Prices'!$D$9:$CP$9,0))/1000,0)","v":0.1734918255208662},{"$f":"IFERROR(INDEX('Carbon Prices'!$D$10:$CP$15,6,MATCH(Calc_BAU!T$6,'Carbon Prices'!$D$9:$CP$9,0))/1000,0)","v":0.18523866787384149},{"$f":"IFERROR(INDEX('Carbon Prices'!$D$10:$CP$15,6,MATCH(Calc_BAU!U$6,'Carbon Prices'!$D$9:$CP$9,0))/1000,0)","v":0.19698551022681682},{"$f":"IFERROR(INDEX('Carbon Prices'!$D$10:$CP$15,6,MATCH(Calc_BAU!V$6,'Carbon Prices'!$D$9:$CP$9,0))/1000,0)","v":0.20873235257979214},{"$f":"IFERROR(INDEX('Carbon Prices'!$D$10:$CP$15,6,MATCH(Calc_BAU!W$6,'Carbon Prices'!$D$9:$CP$9,0))/1000,0)","v":0.22047919493276749},{"$f":"IFERROR(INDEX('Carbon Prices'!$D$10:$CP$15,6,MATCH(Calc_BAU!X$6,'Carbon Prices'!$D$9:$CP$9,0))/1000,0)","v":0.23222603728574279},{"$f":"IFERROR(INDEX('Carbon Prices'!$D$10:$CP$15,6,MATCH(Calc_BAU!Y$6,'Carbon Prices'!$D$9:$CP$9,0))/1000,0)","v":0.24397287963871811},{"$f":"IFERROR(INDEX('Carbon Prices'!$D$10:$CP$15,6,MATCH(Calc_BAU!Z$6,'Carbon Prices'!$D$9:$CP$9,0))/1000,0)","v":0.25571972199169341},{"$f":"IFERROR(INDEX('Carbon Prices'!$D$10:$CP$15,6,MATCH(Calc_BAU!AA$6,'Carbon Prices'!$D$9:$CP$9,0))/1000,0)","v":0.2674665643446687},{"$f":"IFERROR(INDEX('Carbon Prices'!$D$10:$CP$15,6,MATCH(Calc_BAU!AB$6,'Carbon Prices'!$D$9:$CP$9,0))/1000,0)","v":0.27921340669764405},{"$f":"IFERROR(INDEX('Carbon Prices'!$D$10:$CP$15,6,MATCH(Calc_BAU!AC$6,'Carbon Prices'!$D$9:$CP$9,0))/1000,0)","v":0.2909602490506194},{"$f":"IFERROR(INDEX('Carbon Prices'!$D$10:$CP$15,6,MATCH(Calc_BAU!AD$6,'Carbon Prices'!$D$9:$CP$9,0))/1000,0)","v":0.3027070914035947},{"$f":"IFERROR(INDEX('Carbon Prices'!$D$10:$CP$15,6,MATCH(Calc_BAU!AE$6,'Carbon Prices'!$D$9:$CP$9,0))/1000,0)","v":0.31445393375656999},{"$f":"IFERROR(INDEX('Carbon Prices'!$D$10:$CP$15,6,MATCH(Calc_BAU!AF$6,'Carbon Prices'!$D$9:$CP$9,0))/1000,0)","v":0.32620077610954529},{"$f":"IFERROR(INDEX('Carbon Prices'!$D$10:$CP$15,6,MATCH(Calc_BAU!AG$6,'Carbon Prices'!$D$9:$CP$9,0))/1000,0)","v":0.33794761846252058},{"$f":"IFERROR(INDEX('Carbon Prices'!$D$10:$CP$15,6,MATCH(Calc_BAU!AH$6,'Carbon Prices'!$D$9:$CP$9,0))/1000,0)","v":0.34969446081549593},{"$f":"IFERROR(INDEX('Carbon Prices'!$D$10:$CP$15,6,MATCH(Calc_BAU!AI$6,'Carbon Prices'!$D$9:$CP$9,0))/1000,0)","v":0},{"$f":"IFERROR(INDEX('Carbon Prices'!$D$10:$CP$15,6,MATCH(Calc_BAU!AJ$6,'Carbon Prices'!$D$9:$CP$9,0))/1000,0)","v":0},{"$f":"IFERROR(INDEX('Carbon Prices'!$D$10:$CP$15,6,MATCH(Calc_BAU!AK$6,'Carbon Prices'!$D$9:$CP$9,0))/1000,0)","v":0},{"$f":"IFERROR(INDEX('Carbon Prices'!$D$10:$CP$15,6,MATCH(Calc_BAU!AL$6,'Carbon Prices'!$D$9:$CP$9,0))/1000,0)","v":0},{"$f":"IFERROR(INDEX('Carbon Prices'!$D$10:$CP$15,6,MATCH(Calc_BAU!AM$6,'Carbon Prices'!$D$9:$CP$9,0))/1000,0)","v":0},{"$f":"IFERROR(INDEX('Carbon Prices'!$D$10:$CP$15,6,MATCH(Calc_BAU!AN$6,'Carbon Prices'!$D$9:$CP$9,0))/1000,0)","v":0},{"$f":"IFERROR(INDEX('Carbon Prices'!$D$10:$CP$15,6,MATCH(Calc_BAU!AO$6,'Carbon Prices'!$D$9:$CP$9,0))/1000,0)","v":0},{"$f":"IFERROR(INDEX('Carbon Prices'!$D$10:$CP$15,6,MATCH(Calc_BAU!AP$6,'Carbon Prices'!$D$9:$CP$9,0))/1000,0)","v":0},{"$f":"IFERROR(INDEX('Carbon Prices'!$D$10:$CP$15,6,MATCH(Calc_BAU!AQ$6,'Carbon Prices'!$D$9:$CP$9,0))/1000,0)","v":0},{"$f":"IFERROR(INDEX('Carbon Prices'!$D$10:$CP$15,6,MATCH(Calc_BAU!AR$6,'Carbon Prices'!$D$9:$CP$9,0))/1000,0)","v":0},{"$f":"IFERROR(INDEX('Carbon Prices'!$D$10:$CP$15,6,MATCH(Calc_BAU!AS$6,'Carbon Prices'!$D$9:$CP$9,0))/1000,0)","v":0},{"$f":"IFERROR(INDEX('Carbon Prices'!$D$10:$CP$15,6,MATCH(Calc_BAU!AT$6,'Carbon Prices'!$D$9:$CP$9,0))/1000,0)","v":0},{"$f":"IFERROR(INDEX('Carbon Prices'!$D$10:$CP$15,6,MATCH(Calc_BAU!AU$6,'Carbon Prices'!$D$9:$CP$9,0))/1000,0)","v":0},{"$f":"IFERROR(INDEX('Carbon Prices'!$D$10:$CP$15,6,MATCH(Calc_BAU!AV$6,'Carbon Prices'!$D$9:$CP$9,0))/1000,0)","v":0},{"$f":"IFERROR(INDEX('Carbon Prices'!$D$10:$CP$15,6,MATCH(Calc_BAU!AW$6,'Carbon Prices'!$D$9:$CP$9,0))/1000,0)","v":0},{"$f":"IFERROR(INDEX('Carbon Prices'!$D$10:$CP$15,6,MATCH(Calc_BAU!AX$6,'Carbon Prices'!$D$9:$CP$9,0))/1000,0)","v":0},{"$f":"IFERROR(INDEX('Carbon Prices'!$D$10:$CP$15,6,MATCH(Calc_BAU!AY$6,'Carbon Prices'!$D$9:$CP$9,0))/1000,0)","v":0},{"$f":"IFERROR(INDEX('Carbon Prices'!$D$10:$CP$15,6,MATCH(Calc_BAU!AZ$6,'Carbon Prices'!$D$9:$CP$9,0))/1000,0)","v":0},{"$f":"IFERROR(INDEX('Carbon Prices'!$D$10:$CP$15,6,MATCH(Calc_BAU!BA$6,'Carbon Prices'!$D$9:$CP$9,0))/1000,0)","v":0},{"$f":"IFERROR(INDEX('Carbon Prices'!$D$10:$CP$15,6,MATCH(Calc_BAU!BB$6,'Carbon Prices'!$D$9:$CP$9,0))/1000,0)","v":0},{"$f":"IFERROR(INDEX('Carbon Prices'!$D$10:$CP$15,6,MATCH(Calc_BAU!BC$6,'Carbon Prices'!$D$9:$CP$9,0))/1000,0)","v":0},{"$f":"IFERROR(INDEX('Carbon Prices'!$D$10:$CP$15,6,MATCH(Calc_BAU!BD$6,'Carbon Prices'!$D$9:$CP$9,0))/1000,0)","v":0},{"$f":"IFERROR(INDEX('Carbon Prices'!$D$10:$CP$15,6,MATCH(Calc_BAU!BE$6,'Carbon Prices'!$D$9:$CP$9,0))/1000,0)","v":0},{"$f":"IFERROR(INDEX('Carbon Prices'!$D$10:$CP$15,6,MATCH(Calc_BAU!BF$6,'Carbon Prices'!$D$9:$CP$9,0))/1000,0)","v":0},{"$f":"IFERROR(INDEX('Carbon Prices'!$D$10:$CP$15,6,MATCH(Calc_BAU!BG$6,'Carbon Prices'!$D$9:$CP$9,0))/1000,0)","v":0},{"$f":"IFERROR(INDEX('Carbon Prices'!$D$10:$CP$15,6,MATCH(Calc_BAU!BH$6,'Carbon Prices'!$D$9:$CP$9,0))/1000,0)","v":0},{"$f":"IFERROR(INDEX('Carbon Prices'!$D$10:$CP$15,6,MATCH(Calc_BAU!BI$6,'Carbon Prices'!$D$9:$CP$9,0))/1000,0)","v":0},{"$f":"IFERROR(INDEX('Carbon Prices'!$D$10:$CP$15,6,MATCH(Calc_BAU!BJ$6,'Carbon Prices'!$D$9:$CP$9,0))/1000,0)","v":0},{"$f":"IFERROR(INDEX('Carbon Prices'!$D$10:$CP$15,6,MATCH(Calc_BAU!BK$6,'Carbon Prices'!$D$9:$CP$9,0))/1000,0)","v":0},{"$f":"IFERROR(INDEX('Carbon Prices'!$D$10:$CP$15,6,MATCH(Calc_BAU!BL$6,'Carbon Prices'!$D$9:$CP$9,0))/1000,0)","v":0},{"$f":"IFERROR(INDEX('Carbon Prices'!$D$10:$CP$15,6,MATCH(Calc_BAU!BM$6,'Carbon Prices'!$D$9:$CP$9,0))/1000,0)","v":0},{"$f":"IFERROR(INDEX('Carbon Prices'!$D$10:$CP$15,6,MATCH(Calc_BAU!BN$6,'Carbon Prices'!$D$9:$CP$9,0))/1000,0)","v":0},{"$f":"IFERROR(INDEX('Carbon Prices'!$D$10:$CP$15,6,MATCH(Calc_BAU!BO$6,'Carbon Prices'!$D$9:$CP$9,0))/1000,0)","v":0},{"$f":"IFERROR(INDEX('Carbon Prices'!$D$10:$CP$15,6,MATCH(Calc_BAU!BP$6,'Carbon Prices'!$D$9:$CP$9,0))/1000,0)","v":0},{"$f":"IFERROR(INDEX('Carbon Prices'!$D$10:$CP$15,6,MATCH(Calc_BAU!BQ$6,'Carbon Prices'!$D$9:$CP$9,0))/1000,0)","v":0},{"$f":"IFERROR(INDEX('Carbon Prices'!$D$10:$CP$15,6,MATCH(Calc_BAU!BR$6,'Carbon Prices'!$D$9:$CP$9,0))/1000,0)","v":0},{"$f":"IFERROR(INDEX('Carbon Prices'!$D$10:$CP$15,6,MATCH(Calc_BAU!BS$6,'Carbon Prices'!$D$9:$CP$9,0))/1000,0)","v":0},{"$f":"IFERROR(INDEX('Carbon Prices'!$D$10:$CP$15,6,MATCH(Calc_BAU!BT$6,'Carbon Prices'!$D$9:$CP$9,0))/1000,0)","v":0},{"$f":"IFERROR(INDEX('Carbon Prices'!$D$10:$CP$15,6,MATCH(Calc_BAU!BU$6,'Carbon Prices'!$D$9:$CP$9,0))/1000,0)","v":0},{"$f":"IFERROR(INDEX('Carbon Prices'!$D$10:$CP$15,6,MATCH(Calc_BAU!BV$6,'Carbon Prices'!$D$9:$CP$9,0))/1000,0)","v":0},{"$f":"IFERROR(INDEX('Carbon Prices'!$D$10:$CP$15,6,MATCH(Calc_BAU!BW$6,'Carbon Prices'!$D$9:$CP$9,0))/1000,0)","v":0},{"$f":"IFERROR(INDEX('Carbon Prices'!$D$10:$CP$15,6,MATCH(Calc_BAU!BX$6,'Carbon Prices'!$D$9:$CP$9,0))/1000,0)","v":0},{"$f":"IFERROR(INDEX('Carbon Prices'!$D$10:$CP$15,6,MATCH(Calc_BAU!BY$6,'Carbon Prices'!$D$9:$CP$9,0))/1000,0)","v":0},{"$f":"IFERROR(INDEX('Carbon Prices'!$D$10:$CP$15,6,MATCH(Calc_BAU!BZ$6,'Carbon Prices'!$D$9:$CP$9,0))/1000,0)","v":0},{"$f":"IFERROR(INDEX('Carbon Prices'!$D$10:$CP$15,6,MATCH(Calc_BAU!CA$6,'Carbon Prices'!$D$9:$CP$9,0))/1000,0)","v":0},{"$f":"IFERROR(INDEX('Carbon Prices'!$D$10:$CP$15,6,MATCH(Calc_BAU!CB$6,'Carbon Prices'!$D$9:$CP$9,0))/1000,0)","v":0},{"$f":"IFERROR(INDEX('Carbon Prices'!$D$10:$CP$15,6,MATCH(Calc_BAU!CC$6,'Carbon Prices'!$D$9:$CP$9,0))/1000,0)","v":0},{"$f":"IFERROR(INDEX('Carbon Prices'!$D$10:$CP$15,6,MATCH(Calc_BAU!CD$6,'Carbon Prices'!$D$9:$CP$9,0))/1000,0)","v":0},{"$f":"IFERROR(INDEX('Carbon Prices'!$D$10:$CP$15,6,MATCH(Calc_BAU!CE$6,'Carbon Prices'!$D$9:$CP$9,0))/1000,0)","v":0},{"$f":"IFERROR(INDEX('Carbon Prices'!$D$10:$CP$15,6,MATCH(Calc_BAU!CF$6,'Carbon Prices'!$D$9:$CP$9,0))/1000,0)","v":0},{"$f":"IFERROR(INDEX('Carbon Prices'!$D$10:$CP$15,6,MATCH(Calc_BAU!CG$6,'Carbon Prices'!$D$9:$CP$9,0))/1000,0)","v":0},{"$f":"IFERROR(INDEX('Carbon Prices'!$D$10:$CP$15,6,MATCH(Calc_BAU!CH$6,'Carbon Prices'!$D$9:$CP$9,0))/1000,0)","v":0},{"$f":"IFERROR(INDEX('Carbon Prices'!$D$10:$CP$15,6,MATCH(Calc_BAU!CI$6,'Carbon Prices'!$D$9:$CP$9,0))/1000,0)","v":0},{"$f":"IFERROR(INDEX('Carbon Prices'!$D$10:$CP$15,6,MATCH(Calc_BAU!CJ$6,'Carbon Prices'!$D$9:$CP$9,0))/1000,0)","v":0},{"$f":"IFERROR(INDEX('Carbon Prices'!$D$10:$CP$15,6,MATCH(Calc_BAU!CK$6,'Carbon Prices'!$D$9:$CP$9,0))/1000,0)","v":0},{"$f":"IFERROR(INDEX('Carbon Prices'!$D$10:$CP$15,6,MATCH(Calc_BAU!CL$6,'Carbon Prices'!$D$9:$CP$9,0))/1000,0)","v":0},{"$f":"IFERROR(INDEX('Carbon Prices'!$D$10:$CP$15,6,MATCH(Calc_BAU!CM$6,'Carbon Prices'!$D$9:$CP$9,0))/1000,0)","v":0},{"$f":"IFERROR(INDEX('Carbon Prices'!$D$10:$CP$15,6,MATCH(Calc_BAU!CN$6,'Carbon Prices'!$D$9:$CP$9,0))/1000,0)","v":0},{"$f":"IFERROR(INDEX('Carbon Prices'!$D$10:$CP$15,6,MATCH(Calc_BAU!CO$6,'Carbon Prices'!$D$9:$CP$9,0))/1000,0)","v":0},{"$f":"IFERROR(INDEX('Carbon Prices'!$D$10:$CP$15,6,MATCH(Calc_BAU!CP$6,'Carbon Prices'!$D$9:$CP$9,0))/1000,0)","v":0},{"$f":"IFERROR(INDEX('Carbon Prices'!$D$10:$CP$15,6,MATCH(Calc_BAU!CQ$6,'Carbon Prices'!$D$9:$CP$9,0))/1000,0)","v":0},{"$f":"IFERROR(INDEX('Carbon Prices'!$D$10:$CP$15,6,MATCH(Calc_BAU!CR$6,'Carbon Prices'!$D$9:$CP$9,0))/1000,0)","v":0},{"$f":"IFERROR(INDEX('Carbon Prices'!$D$10:$CP$15,6,MATCH(Calc_BAU!CS$6,'Carbon Prices'!$D$9:$CP$9,0))/1000,0)","v":0},{"$f":"IFERROR(INDEX('Carbon Prices'!$D$10:$CP$15,6,MATCH(Calc_BAU!CT$6,'Carbon Prices'!$D$9:$CP$9,0))/1000,0)","v":0},{"$f":"IFERROR(INDEX('Carbon Prices'!$D$10:$CP$15,6,MATCH(Calc_BAU!CU$6,'Carbon Prices'!$D$9:$CP$9,0))/1000,0)","v":0},{"$f":"IFERROR(INDEX('Carbon Prices'!$D$10:$CP$15,6,MATCH(Calc_BAU!CV$6,'Carbon Prices'!$D$9:$CP$9,0))/1000,0)","v":0},{"$f":"IFERROR(INDEX('Carbon Prices'!$D$10:$CP$15,6,MATCH(Calc_BAU!CW$6,'Carbon Prices'!$D$9:$CP$9,0))/1000,0)","v":0},{"$f":"IFERROR(INDEX('Carbon Prices'!$D$10:$CP$15,6,MATCH(Calc_BAU!CX$6,'Carbon Prices'!$D$9:$CP$9,0))/1000,0)","v":0},{"$f":"IFERROR(INDEX('Carbon Prices'!$D$10:$CP$15,6,MATCH(Calc_BAU!CY$6,'Carbon Prices'!$D$9:$CP$9,0))/1000,0)","v":0}]
[null,"Discounted total","£000's",{"$f":"(D152*D154)+(D153*D155)*D$7","v":3170.8060754163894},{"$f":"(E152*E154)+(E153*E155)*E$7","v":3629.5204183662868},4354.80908116724,5081.0273592423537,5802.5393982933701,6533.9863907852105,7259.1275921582783,3809.8363422724224,0,0,0,0,0,0,0,0,0,0,0,0,0,0,0,0,0,0,0,0,0,0,0,0,0,0,0,0,0,0,0,0,0,0,0,0,0,0,0,0,0,0,0,0,0,0,0,0,0,0,0,0,0,0,0,0,0,{"$f":"(BQ152*BQ154)+(BQ153*BQ155)*BQ$7","v":0},0,0,0,0,0,0,0,0,0,0,0,0,0,0,0,0,0,0,0,0,0,0,0,0,0,0,0,0,0,0,0,0,0,0]
[]
[]
[null,"EEA Damage costs"]
[]
[null,"Air pollutant emissions- value"]
[null,{"$f":"B138","v":"Sox 2019"},"£000's",{"$f":"IFERROR(IF(OR($C$168=FALSE,LEFT($B162,3)<>\"NOX\"),D53*INDEX('Damage costs'!$P$16:$P$43,MATCH($B162,'Damage costs'!$C$16:$C$43,0))/1000,D53*INDEX('Damage costs'!$T$16:$T$43,MATCH($B162,'Damage costs'!$C$16:$C$43,0))/1000),\"\")","v":10.600272350312391},{"$f":"IFERROR(IF(OR($C$168=FALSE,LEFT($B162,3)<>\"NOX\"),E53*INDEX('Damage costs'!$P$16:$P$43,MATCH($B162,'Damage costs'!$C$16:$C$43,0))/1000,E53*INDEX('Damage costs'!$T$16:$T$43,MATCH($B162,'Damage costs'!$C$16:$C$43,0))/1000),\"\")","v":10.600272350312391},{"$f":"IFERROR(IF(OR($C$168=FALSE,LEFT($B162,3)<>\"NOX\"),F53*INDEX('Damage costs'!$P$16:$P$43,MATCH($B162,'Damage costs'!$C$16:$C$43,0))/1000,F53*INDEX('Damage costs'!$T$16:$T$43,MATCH($B162,'Damage costs'!$C$16:$C$43,0))/1000),\"\")","v":10.600272350312391},{"$f":"IFERROR(IF(OR($C$168=FALSE,LEFT($B162,3)<>\"NOX\"),G53*INDEX('Damage costs'!$P$16:$P$43,MATCH($B162,'Damage costs'!$C$16:$C$43,0))/1000,G53*INDEX('Damage costs'!$T$16:$T$43,MATCH($B162,'Damage costs'!$C$16:$C$43,0))/1000),\"\")","v":10.600272350312391},{"$f":"IFERROR(IF(OR($C$168=FALSE,LEFT($B162,3)<>\"NOX\"),H53*INDEX('Damage costs'!$P$16:$P$43,MATCH($B162,'Damage costs'!$C$16:$C$43,0))/1000,H53*INDEX('Damage costs'!$T$16:$T$43,MATCH($B162,'Damage costs'!$C$16:$C$43,0))/1000),\"\")","v":10.600272350312391},{"$f":"IFERROR(IF(OR($C$168=FALSE,LEFT($B162,3)<>\"NOX\"),I53*INDEX('Damage costs'!$P$16:$P$43,MATCH($B162,'Damage costs'!$C$16:$C$43,0))/1000,I53*INDEX('Damage costs'!$T$16:$T$43,MATCH($B162,'Damage costs'!$C$16:$C$43,0))/1000),\"\")","v":10.600272350312391},{"$f":"IFERROR(IF(OR($C$168=FALSE,LEFT($B162,3)<>\"NOX\"),J53*INDEX('Damage costs'!$P$16:$P$43,MATCH($B162,'Damage costs'!$C$16:$C$43,0))/1000,J53*INDEX('Damage costs'!$T$16:$T$43,MATCH($B162,'Damage costs'!$C$16:$C$43,0))/1000),\"\")","v":10.600272350312391},{"$f":"IFERROR(IF(OR($C$168=FALSE,LEFT($B162,3)<>\"NOX\"),K53*INDEX('Damage costs'!$P$16:$P$43,MATCH($B162,'Damage costs'!$C$16:$C$43,0))/1000,K53*INDEX('Damage costs'!$T$16:$T$43,MATCH($B162,'Damage costs'!$C$16:$C$43,0))/1000),\"\")","v":0},{"$f":"IFERROR(IF(OR($C$168=FALSE,LEFT($B162,3)<>\"NOX\"),L53*INDEX('Damage costs'!$P$16:$P$43,MATCH($B162,'Damage costs'!$C$16:$C$43,0))/1000,L53*INDEX('Damage costs'!$T$16:$T$43,MATCH($B162,'Damage costs'!$C$16:$C$43,0))/1000),\"\")","v":0},{"$f":"IFERROR(IF(OR($C$168=FALSE,LEFT($B162,3)<>\"NOX\"),M53*INDEX('Damage costs'!$P$16:$P$43,MATCH($B162,'Damage costs'!$C$16:$C$43,0))/1000,M53*INDEX('Damage costs'!$T$16:$T$43,MATCH($B162,'Damage costs'!$C$16:$C$43,0))/1000),\"\")","v":0},{"$f":"IFERROR(IF(OR($C$168=FALSE,LEFT($B162,3)<>\"NOX\"),N53*INDEX('Damage costs'!$P$16:$P$43,MATCH($B162,'Damage costs'!$C$16:$C$43,0))/1000,N53*INDEX('Damage costs'!$T$16:$T$43,MATCH($B162,'Damage costs'!$C$16:$C$43,0))/1000),\"\")","v":0},{"$f":"IFERROR(IF(OR($C$168=FALSE,LEFT($B162,3)<>\"NOX\"),O53*INDEX('Damage costs'!$P$16:$P$43,MATCH($B162,'Damage costs'!$C$16:$C$43,0))/1000,O53*INDEX('Damage costs'!$T$16:$T$43,MATCH($B162,'Damage costs'!$C$16:$C$43,0))/1000),\"\")","v":0},{"$f":"IFERROR(IF(OR($C$168=FALSE,LEFT($B162,3)<>\"NOX\"),P53*INDEX('Damage costs'!$P$16:$P$43,MATCH($B162,'Damage costs'!$C$16:$C$43,0))/1000,P53*INDEX('Damage costs'!$T$16:$T$43,MATCH($B162,'Damage costs'!$C$16:$C$43,0))/1000),\"\")","v":0},{"$f":"IFERROR(IF(OR($C$168=FALSE,LEFT($B162,3)<>\"NOX\"),Q53*INDEX('Damage costs'!$P$16:$P$43,MATCH($B162,'Damage costs'!$C$16:$C$43,0))/1000,Q53*INDEX('Damage costs'!$T$16:$T$43,MATCH($B162,'Damage costs'!$C$16:$C$43,0))/1000),\"\")","v":0},{"$f":"IFERROR(IF(OR($C$168=FALSE,LEFT($B162,3)<>\"NOX\"),R53*INDEX('Damage costs'!$P$16:$P$43,MATCH($B162,'Damage costs'!$C$16:$C$43,0))/1000,R53*INDEX('Damage costs'!$T$16:$T$43,MATCH($B162,'Damage costs'!$C$16:$C$43,0))/1000),\"\")","v":0},{"$f":"IFERROR(IF(OR($C$168=FALSE,LEFT($B162,3)<>\"NOX\"),S53*INDEX('Damage costs'!$P$16:$P$43,MATCH($B162,'Damage costs'!$C$16:$C$43,0))/1000,S53*INDEX('Damage costs'!$T$16:$T$43,MATCH($B162,'Damage costs'!$C$16:$C$43,0))/1000),\"\")","v":0},{"$f":"IFERROR(IF(OR($C$168=FALSE,LEFT($B162,3)<>\"NOX\"),T53*INDEX('Damage costs'!$P$16:$P$43,MATCH($B162,'Damage costs'!$C$16:$C$43,0))/1000,T53*INDEX('Damage costs'!$T$16:$T$43,MATCH($B162,'Damage costs'!$C$16:$C$43,0))/1000),\"\")","v":0},{"$f":"IFERROR(IF(OR($C$168=FALSE,LEFT($B162,3)<>\"NOX\"),U53*INDEX('Damage costs'!$P$16:$P$43,MATCH($B162,'Damage costs'!$C$16:$C$43,0))/1000,U53*INDEX('Damage costs'!$T$16:$T$43,MATCH($B162,'Damage costs'!$C$16:$C$43,0))/1000),\"\")","v":0},{"$f":"IFERROR(IF(OR($C$168=FALSE,LEFT($B162,3)<>\"NOX\"),V53*INDEX('Damage costs'!$P$16:$P$43,MATCH($B162,'Damage costs'!$C$16:$C$43,0))/1000,V53*INDEX('Damage costs'!$T$16:$T$43,MATCH($B162,'Damage costs'!$C$16:$C$43,0))/1000),\"\")","v":0},{"$f":"IFERROR(IF(OR($C$168=FALSE,LEFT($B162,3)<>\"NOX\"),W53*INDEX('Damage costs'!$P$16:$P$43,MATCH($B162,'Damage costs'!$C$16:$C$43,0))/1000,W53*INDEX('Damage costs'!$T$16:$T$43,MATCH($B162,'Damage costs'!$C$16:$C$43,0))/1000),\"\")","v":0},{"$f":"IFERROR(IF(OR($C$168=FALSE,LEFT($B162,3)<>\"NOX\"),X53*INDEX('Damage costs'!$P$16:$P$43,MATCH($B162,'Damage costs'!$C$16:$C$43,0))/1000,X53*INDEX('Damage costs'!$T$16:$T$43,MATCH($B162,'Damage costs'!$C$16:$C$43,0))/1000),\"\")","v":0},{"$f":"IFERROR(IF(OR($C$168=FALSE,LEFT($B162,3)<>\"NOX\"),Y53*INDEX('Damage costs'!$P$16:$P$43,MATCH($B162,'Damage costs'!$C$16:$C$43,0))/1000,Y53*INDEX('Damage costs'!$T$16:$T$43,MATCH($B162,'Damage costs'!$C$16:$C$43,0))/1000),\"\")","v":0},{"$f":"IFERROR(IF(OR($C$168=FALSE,LEFT($B162,3)<>\"NOX\"),Z53*INDEX('Damage costs'!$P$16:$P$43,MATCH($B162,'Damage costs'!$C$16:$C$43,0))/1000,Z53*INDEX('Damage costs'!$T$16:$T$43,MATCH($B162,'Damage costs'!$C$16:$C$43,0))/1000),\"\")","v":0},{"$f":"IFERROR(IF(OR($C$168=FALSE,LEFT($B162,3)<>\"NOX\"),AA53*INDEX('Damage costs'!$P$16:$P$43,MATCH($B162,'Damage costs'!$C$16:$C$43,0))/1000,AA53*INDEX('Damage costs'!$T$16:$T$43,MATCH($B162,'Damage costs'!$C$16:$C$43,0))/1000),\"\")","v":0},{"$f":"IFERROR(IF(OR($C$168=FALSE,LEFT($B162,3)<>\"NOX\"),AB53*INDEX('Damage costs'!$P$16:$P$43,MATCH($B162,'Damage costs'!$C$16:$C$43,0))/1000,AB53*INDEX('Damage costs'!$T$16:$T$43,MATCH($B162,'Damage costs'!$C$16:$C$43,0))/1000),\"\")","v":0},{"$f":"IFERROR(IF(OR($C$168=FALSE,LEFT($B162,3)<>\"NOX\"),AC53*INDEX('Damage costs'!$P$16:$P$43,MATCH($B162,'Damage costs'!$C$16:$C$43,0))/1000,AC53*INDEX('Damage costs'!$T$16:$T$43,MATCH($B162,'Damage costs'!$C$16:$C$43,0))/1000),\"\")","v":0},{"$f":"IFERROR(IF(OR($C$168=FALSE,LEFT($B162,3)<>\"NOX\"),AD53*INDEX('Damage costs'!$P$16:$P$43,MATCH($B162,'Damage costs'!$C$16:$C$43,0))/1000,AD53*INDEX('Damage costs'!$T$16:$T$43,MATCH($B162,'Damage costs'!$C$16:$C$43,0))/1000),\"\")","v":0},{"$f":"IFERROR(IF(OR($C$168=FALSE,LEFT($B162,3)<>\"NOX\"),AE53*INDEX('Damage costs'!$P$16:$P$43,MATCH($B162,'Damage costs'!$C$16:$C$43,0))/1000,AE53*INDEX('Damage costs'!$T$16:$T$43,MATCH($B162,'Damage costs'!$C$16:$C$43,0))/1000),\"\")","v":0},{"$f":"IFERROR(IF(OR($C$168=FALSE,LEFT($B162,3)<>\"NOX\"),AF53*INDEX('Damage costs'!$P$16:$P$43,MATCH($B162,'Damage costs'!$C$16:$C$43,0))/1000,AF53*INDEX('Damage costs'!$T$16:$T$43,MATCH($B162,'Damage costs'!$C$16:$C$43,0))/1000),\"\")","v":0},{"$f":"IFERROR(IF(OR($C$168=FALSE,LEFT($B162,3)<>\"NOX\"),AG53*INDEX('Damage costs'!$P$16:$P$43,MATCH($B162,'Damage costs'!$C$16:$C$43,0))/1000,AG53*INDEX('Damage costs'!$T$16:$T$43,MATCH($B162,'Damage costs'!$C$16:$C$43,0))/1000),\"\")","v":0},{"$f":"IFERROR(IF(OR($C$168=FALSE,LEFT($B162,3)<>\"NOX\"),AH53*INDEX('Damage costs'!$P$16:$P$43,MATCH($B162,'Damage costs'!$C$16:$C$43,0))/1000,AH53*INDEX('Damage costs'!$T$16:$T$43,MATCH($B162,'Damage costs'!$C$16:$C$43,0))/1000),\"\")","v":0},{"$f":"IFERROR(IF(OR($C$168=FALSE,LEFT($B162,3)<>\"NOX\"),AI53*INDEX('Damage costs'!$P$16:$P$43,MATCH($B162,'Damage costs'!$C$16:$C$43,0))/1000,AI53*INDEX('Damage costs'!$T$16:$T$43,MATCH($B162,'Damage costs'!$C$16:$C$43,0))/1000),\"\")","v":0},{"$f":"IFERROR(IF(OR($C$168=FALSE,LEFT($B162,3)<>\"NOX\"),AJ53*INDEX('Damage costs'!$P$16:$P$43,MATCH($B162,'Damage costs'!$C$16:$C$43,0))/1000,AJ53*INDEX('Damage costs'!$T$16:$T$43,MATCH($B162,'Damage costs'!$C$16:$C$43,0))/1000),\"\")","v":0},{"$f":"IFERROR(IF(OR($C$168=FALSE,LEFT($B162,3)<>\"NOX\"),AK53*INDEX('Damage costs'!$P$16:$P$43,MATCH($B162,'Damage costs'!$C$16:$C$43,0))/1000,AK53*INDEX('Damage costs'!$T$16:$T$43,MATCH($B162,'Damage costs'!$C$16:$C$43,0))/1000),\"\")","v":0},{"$f":"IFERROR(IF(OR($C$168=FALSE,LEFT($B162,3)<>\"NOX\"),AL53*INDEX('Damage costs'!$P$16:$P$43,MATCH($B162,'Damage costs'!$C$16:$C$43,0))/1000,AL53*INDEX('Damage costs'!$T$16:$T$43,MATCH($B162,'Damage costs'!$C$16:$C$43,0))/1000),\"\")","v":0},{"$f":"IFERROR(IF(OR($C$168=FALSE,LEFT($B162,3)<>\"NOX\"),AM53*INDEX('Damage costs'!$P$16:$P$43,MATCH($B162,'Damage costs'!$C$16:$C$43,0))/1000,AM53*INDEX('Damage costs'!$T$16:$T$43,MATCH($B162,'Damage costs'!$C$16:$C$43,0))/1000),\"\")","v":0},{"$f":"IFERROR(IF(OR($C$168=FALSE,LEFT($B162,3)<>\"NOX\"),AN53*INDEX('Damage costs'!$P$16:$P$43,MATCH($B162,'Damage costs'!$C$16:$C$43,0))/1000,AN53*INDEX('Damage costs'!$T$16:$T$43,MATCH($B162,'Damage costs'!$C$16:$C$43,0))/1000),\"\")","v":0},{"$f":"IFERROR(IF(OR($C$168=FALSE,LEFT($B162,3)<>\"NOX\"),AO53*INDEX('Damage costs'!$P$16:$P$43,MATCH($B162,'Damage costs'!$C$16:$C$43,0))/1000,AO53*INDEX('Damage costs'!$T$16:$T$43,MATCH($B162,'Damage costs'!$C$16:$C$43,0))/1000),\"\")","v":0},{"$f":"IFERROR(IF(OR($C$168=FALSE,LEFT($B162,3)<>\"NOX\"),AP53*INDEX('Damage costs'!$P$16:$P$43,MATCH($B162,'Damage costs'!$C$16:$C$43,0))/1000,AP53*INDEX('Damage costs'!$T$16:$T$43,MATCH($B162,'Damage costs'!$C$16:$C$43,0))/1000),\"\")","v":0},{"$f":"IFERROR(IF(OR($C$168=FALSE,LEFT($B162,3)<>\"NOX\"),AQ53*INDEX('Damage costs'!$P$16:$P$43,MATCH($B162,'Damage costs'!$C$16:$C$43,0))/1000,AQ53*INDEX('Damage costs'!$T$16:$T$43,MATCH($B162,'Damage costs'!$C$16:$C$43,0))/1000),\"\")","v":0},{"$f":"IFERROR(IF(OR($C$168=FALSE,LEFT($B162,3)<>\"NOX\"),AR53*INDEX('Damage costs'!$P$16:$P$43,MATCH($B162,'Damage costs'!$C$16:$C$43,0))/1000,AR53*INDEX('Damage costs'!$T$16:$T$43,MATCH($B162,'Damage costs'!$C$16:$C$43,0))/1000),\"\")","v":0},{"$f":"IFERROR(IF(OR($C$168=FALSE,LEFT($B162,3)<>\"NOX\"),AS53*INDEX('Damage costs'!$P$16:$P$43,MATCH($B162,'Damage costs'!$C$16:$C$43,0))/1000,AS53*INDEX('Damage costs'!$T$16:$T$43,MATCH($B162,'Damage costs'!$C$16:$C$43,0))/1000),\"\")","v":0},{"$f":"IFERROR(IF(OR($C$168=FALSE,LEFT($B162,3)<>\"NOX\"),AT53*INDEX('Damage costs'!$P$16:$P$43,MATCH($B162,'Damage costs'!$C$16:$C$43,0))/1000,AT53*INDEX('Damage costs'!$T$16:$T$43,MATCH($B162,'Damage costs'!$C$16:$C$43,0))/1000),\"\")","v":0},{"$f":"IFERROR(IF(OR($C$168=FALSE,LEFT($B162,3)<>\"NOX\"),AU53*INDEX('Damage costs'!$P$16:$P$43,MATCH($B162,'Damage costs'!$C$16:$C$43,0))/1000,AU53*INDEX('Damage costs'!$T$16:$T$43,MATCH($B162,'Damage costs'!$C$16:$C$43,0))/1000),\"\")","v":0},{"$f":"IFERROR(IF(OR($C$168=FALSE,LEFT($B162,3)<>\"NOX\"),AV53*INDEX('Damage costs'!$P$16:$P$43,MATCH($B162,'Damage costs'!$C$16:$C$43,0))/1000,AV53*INDEX('Damage costs'!$T$16:$T$43,MATCH($B162,'Damage costs'!$C$16:$C$43,0))/1000),\"\")","v":0},{"$f":"IFERROR(IF(OR($C$168=FALSE,LEFT($B162,3)<>\"NOX\"),AW53*INDEX('Damage costs'!$P$16:$P$43,MATCH($B162,'Damage costs'!$C$16:$C$43,0))/1000,AW53*INDEX('Damage costs'!$T$16:$T$43,MATCH($B162,'Damage costs'!$C$16:$C$43,0))/1000),\"\")","v":0},{"$f":"IFERROR(IF(OR($C$168=FALSE,LEFT($B162,3)<>\"NOX\"),AX53*INDEX('Damage costs'!$P$16:$P$43,MATCH($B162,'Damage costs'!$C$16:$C$43,0))/1000,AX53*INDEX('Damage costs'!$T$16:$T$43,MATCH($B162,'Damage costs'!$C$16:$C$43,0))/1000),\"\")","v":0},{"$f":"IFERROR(IF(OR($C$168=FALSE,LEFT($B162,3)<>\"NOX\"),AY53*INDEX('Damage costs'!$P$16:$P$43,MATCH($B162,'Damage costs'!$C$16:$C$43,0))/1000,AY53*INDEX('Damage costs'!$T$16:$T$43,MATCH($B162,'Damage costs'!$C$16:$C$43,0))/1000),\"\")","v":0},{"$f":"IFERROR(IF(OR($C$168=FALSE,LEFT($B162,3)<>\"NOX\"),AZ53*INDEX('Damage costs'!$P$16:$P$43,MATCH($B162,'Damage costs'!$C$16:$C$43,0))/1000,AZ53*INDEX('Damage costs'!$T$16:$T$43,MATCH($B162,'Damage costs'!$C$16:$C$43,0))/1000),\"\")","v":0},{"$f":"IFERROR(IF(OR($C$168=FALSE,LEFT($B162,3)<>\"NOX\"),BA53*INDEX('Damage costs'!$P$16:$P$43,MATCH($B162,'Damage costs'!$C$16:$C$43,0))/1000,BA53*INDEX('Damage costs'!$T$16:$T$43,MATCH($B162,'Damage costs'!$C$16:$C$43,0))/1000),\"\")","v":0},{"$f":"IFERROR(IF(OR($C$168=FALSE,LEFT($B162,3)<>\"NOX\"),BB53*INDEX('Damage costs'!$P$16:$P$43,MATCH($B162,'Damage costs'!$C$16:$C$43,0))/1000,BB53*INDEX('Damage costs'!$T$16:$T$43,MATCH($B162,'Damage costs'!$C$16:$C$43,0))/1000),\"\")","v":0},{"$f":"IFERROR(IF(OR($C$168=FALSE,LEFT($B162,3)<>\"NOX\"),BC53*INDEX('Damage costs'!$P$16:$P$43,MATCH($B162,'Damage costs'!$C$16:$C$43,0))/1000,BC53*INDEX('Damage costs'!$T$16:$T$43,MATCH($B162,'Damage costs'!$C$16:$C$43,0))/1000),\"\")","v":0},{"$f":"IFERROR(IF(OR($C$168=FALSE,LEFT($B162,3)<>\"NOX\"),BD53*INDEX('Damage costs'!$P$16:$P$43,MATCH($B162,'Damage costs'!$C$16:$C$43,0))/1000,BD53*INDEX('Damage costs'!$T$16:$T$43,MATCH($B162,'Damage costs'!$C$16:$C$43,0))/1000),\"\")","v":0},{"$f":"IFERROR(IF(OR($C$168=FALSE,LEFT($B162,3)<>\"NOX\"),BE53*INDEX('Damage costs'!$P$16:$P$43,MATCH($B162,'Damage costs'!$C$16:$C$43,0))/1000,BE53*INDEX('Damage costs'!$T$16:$T$43,MATCH($B162,'Damage costs'!$C$16:$C$43,0))/1000),\"\")","v":0},{"$f":"IFERROR(IF(OR($C$168=FALSE,LEFT($B162,3)<>\"NOX\"),BF53*INDEX('Damage costs'!$P$16:$P$43,MATCH($B162,'Damage costs'!$C$16:$C$43,0))/1000,BF53*INDEX('Damage costs'!$T$16:$T$43,MATCH($B162,'Damage costs'!$C$16:$C$43,0))/1000),\"\")","v":0},{"$f":"IFERROR(IF(OR($C$168=FALSE,LEFT($B162,3)<>\"NOX\"),BG53*INDEX('Damage costs'!$P$16:$P$43,MATCH($B162,'Damage costs'!$C$16:$C$43,0))/1000,BG53*INDEX('Damage costs'!$T$16:$T$43,MATCH($B162,'Damage costs'!$C$16:$C$43,0))/1000),\"\")","v":0},{"$f":"IFERROR(IF(OR($C$168=FALSE,LEFT($B162,3)<>\"NOX\"),BH53*INDEX('Damage costs'!$P$16:$P$43,MATCH($B162,'Damage costs'!$C$16:$C$43,0))/1000,BH53*INDEX('Damage costs'!$T$16:$T$43,MATCH($B162,'Damage costs'!$C$16:$C$43,0))/1000),\"\")","v":0},{"$f":"IFERROR(IF(OR($C$168=FALSE,LEFT($B162,3)<>\"NOX\"),BI53*INDEX('Damage costs'!$P$16:$P$43,MATCH($B162,'Damage costs'!$C$16:$C$43,0))/1000,BI53*INDEX('Damage costs'!$T$16:$T$43,MATCH($B162,'Damage costs'!$C$16:$C$43,0))/1000),\"\")","v":0},{"$f":"IFERROR(IF(OR($C$168=FALSE,LEFT($B162,3)<>\"NOX\"),BJ53*INDEX('Damage costs'!$P$16:$P$43,MATCH($B162,'Damage costs'!$C$16:$C$43,0))/1000,BJ53*INDEX('Damage costs'!$T$16:$T$43,MATCH($B162,'Damage costs'!$C$16:$C$43,0))/1000),\"\")","v":0},{"$f":"IFERROR(IF(OR($C$168=FALSE,LEFT($B162,3)<>\"NOX\"),BK53*INDEX('Damage costs'!$P$16:$P$43,MATCH($B162,'Damage costs'!$C$16:$C$43,0))/1000,BK53*INDEX('Damage costs'!$T$16:$T$43,MATCH($B162,'Damage costs'!$C$16:$C$43,0))/1000),\"\")","v":0},{"$f":"IFERROR(IF(OR($C$168=FALSE,LEFT($B162,3)<>\"NOX\"),BL53*INDEX('Damage costs'!$P$16:$P$43,MATCH($B162,'Damage costs'!$C$16:$C$43,0))/1000,BL53*INDEX('Damage costs'!$T$16:$T$43,MATCH($B162,'Damage costs'!$C$16:$C$43,0))/1000),\"\")","v":0},{"$f":"IFERROR(IF(OR($C$168=FALSE,LEFT($B162,3)<>\"NOX\"),BM53*INDEX('Damage costs'!$P$16:$P$43,MATCH($B162,'Damage costs'!$C$16:$C$43,0))/1000,BM53*INDEX('Damage costs'!$T$16:$T$43,MATCH($B162,'Damage costs'!$C$16:$C$43,0))/1000),\"\")","v":0},{"$f":"IFERROR(IF(OR($C$168=FALSE,LEFT($B162,3)<>\"NOX\"),BN53*INDEX('Damage costs'!$P$16:$P$43,MATCH($B162,'Damage costs'!$C$16:$C$43,0))/1000,BN53*INDEX('Damage costs'!$T$16:$T$43,MATCH($B162,'Damage costs'!$C$16:$C$43,0))/1000),\"\")","v":0},{"$f":"IFERROR(IF(OR($C$168=FALSE,LEFT($B162,3)<>\"NOX\"),BO53*INDEX('Damage costs'!$P$16:$P$43,MATCH($B162,'Damage costs'!$C$16:$C$43,0))/1000,BO53*INDEX('Damage costs'!$T$16:$T$43,MATCH($B162,'Damage costs'!$C$16:$C$43,0))/1000),\"\")","v":0},{"$f":"IFERROR(IF(OR($C$168=FALSE,LEFT($B162,3)<>\"NOX\"),BP53*INDEX('Damage costs'!$P$16:$P$43,MATCH($B162,'Damage costs'!$C$16:$C$43,0))/1000,BP53*INDEX('Damage costs'!$T$16:$T$43,MATCH($B162,'Damage costs'!$C$16:$C$43,0))/1000),\"\")","v":0},{"$f":"IFERROR(IF(OR($C$168=FALSE,LEFT($B162,3)<>\"NOX\"),BQ53*INDEX('Damage costs'!$P$16:$P$43,MATCH($B162,'Damage costs'!$C$16:$C$43,0))/1000,BQ53*INDEX('Damage costs'!$T$16:$T$43,MATCH($B162,'Damage costs'!$C$16:$C$43,0))/1000),\"\")","v":0},{"$f":"IFERROR(IF(OR($C$168=FALSE,LEFT($B162,3)<>\"NOX\"),BR53*INDEX('Damage costs'!$P$16:$P$43,MATCH($B162,'Damage costs'!$C$16:$C$43,0))/1000,BR53*INDEX('Damage costs'!$T$16:$T$43,MATCH($B162,'Damage costs'!$C$16:$C$43,0))/1000),\"\")","v":0},{"$f":"IFERROR(IF(OR($C$168=FALSE,LEFT($B162,3)<>\"NOX\"),BS53*INDEX('Damage costs'!$P$16:$P$43,MATCH($B162,'Damage costs'!$C$16:$C$43,0))/1000,BS53*INDEX('Damage costs'!$T$16:$T$43,MATCH($B162,'Damage costs'!$C$16:$C$43,0))/1000),\"\")","v":0},{"$f":"IFERROR(IF(OR($C$168=FALSE,LEFT($B162,3)<>\"NOX\"),BT53*INDEX('Damage costs'!$P$16:$P$43,MATCH($B162,'Damage costs'!$C$16:$C$43,0))/1000,BT53*INDEX('Damage costs'!$T$16:$T$43,MATCH($B162,'Damage costs'!$C$16:$C$43,0))/1000),\"\")","v":0},{"$f":"IFERROR(IF(OR($C$168=FALSE,LEFT($B162,3)<>\"NOX\"),BU53*INDEX('Damage costs'!$P$16:$P$43,MATCH($B162,'Damage costs'!$C$16:$C$43,0))/1000,BU53*INDEX('Damage costs'!$T$16:$T$43,MATCH($B162,'Damage costs'!$C$16:$C$43,0))/1000),\"\")","v":0},{"$f":"IFERROR(IF(OR($C$168=FALSE,LEFT($B162,3)<>\"NOX\"),BV53*INDEX('Damage costs'!$P$16:$P$43,MATCH($B162,'Damage costs'!$C$16:$C$43,0))/1000,BV53*INDEX('Damage costs'!$T$16:$T$43,MATCH($B162,'Damage costs'!$C$16:$C$43,0))/1000),\"\")","v":0},{"$f":"IFERROR(IF(OR($C$168=FALSE,LEFT($B162,3)<>\"NOX\"),BW53*INDEX('Damage costs'!$P$16:$P$43,MATCH($B162,'Damage costs'!$C$16:$C$43,0))/1000,BW53*INDEX('Damage costs'!$T$16:$T$43,MATCH($B162,'Damage costs'!$C$16:$C$43,0))/1000),\"\")","v":0},{"$f":"IFERROR(IF(OR($C$168=FALSE,LEFT($B162,3)<>\"NOX\"),BX53*INDEX('Damage costs'!$P$16:$P$43,MATCH($B162,'Damage costs'!$C$16:$C$43,0))/1000,BX53*INDEX('Damage costs'!$T$16:$T$43,MATCH($B162,'Damage costs'!$C$16:$C$43,0))/1000),\"\")","v":0},{"$f":"IFERROR(IF(OR($C$168=FALSE,LEFT($B162,3)<>\"NOX\"),BY53*INDEX('Damage costs'!$P$16:$P$43,MATCH($B162,'Damage costs'!$C$16:$C$43,0))/1000,BY53*INDEX('Damage costs'!$T$16:$T$43,MATCH($B162,'Damage costs'!$C$16:$C$43,0))/1000),\"\")","v":0},{"$f":"IFERROR(IF(OR($C$168=FALSE,LEFT($B162,3)<>\"NOX\"),BZ53*INDEX('Damage costs'!$P$16:$P$43,MATCH($B162,'Damage costs'!$C$16:$C$43,0))/1000,BZ53*INDEX('Damage costs'!$T$16:$T$43,MATCH($B162,'Damage costs'!$C$16:$C$43,0))/1000),\"\")","v":0},{"$f":"IFERROR(IF(OR($C$168=FALSE,LEFT($B162,3)<>\"NOX\"),CA53*INDEX('Damage costs'!$P$16:$P$43,MATCH($B162,'Damage costs'!$C$16:$C$43,0))/1000,CA53*INDEX('Damage costs'!$T$16:$T$43,MATCH($B162,'Damage costs'!$C$16:$C$43,0))/1000),\"\")","v":0},{"$f":"IFERROR(IF(OR($C$168=FALSE,LEFT($B162,3)<>\"NOX\"),CB53*INDEX('Damage costs'!$P$16:$P$43,MATCH($B162,'Damage costs'!$C$16:$C$43,0))/1000,CB53*INDEX('Damage costs'!$T$16:$T$43,MATCH($B162,'Damage costs'!$C$16:$C$43,0))/1000),\"\")","v":0},{"$f":"IFERROR(IF(OR($C$168=FALSE,LEFT($B162,3)<>\"NOX\"),CC53*INDEX('Damage costs'!$P$16:$P$43,MATCH($B162,'Damage costs'!$C$16:$C$43,0))/1000,CC53*INDEX('Damage costs'!$T$16:$T$43,MATCH($B162,'Damage costs'!$C$16:$C$43,0))/1000),\"\")","v":0},{"$f":"IFERROR(IF(OR($C$168=FALSE,LEFT($B162,3)<>\"NOX\"),CD53*INDEX('Damage costs'!$P$16:$P$43,MATCH($B162,'Damage costs'!$C$16:$C$43,0))/1000,CD53*INDEX('Damage costs'!$T$16:$T$43,MATCH($B162,'Damage costs'!$C$16:$C$43,0))/1000),\"\")","v":0},{"$f":"IFERROR(IF(OR($C$168=FALSE,LEFT($B162,3)<>\"NOX\"),CE53*INDEX('Damage costs'!$P$16:$P$43,MATCH($B162,'Damage costs'!$C$16:$C$43,0))/1000,CE53*INDEX('Damage costs'!$T$16:$T$43,MATCH($B162,'Damage costs'!$C$16:$C$43,0))/1000),\"\")","v":0},{"$f":"IFERROR(IF(OR($C$168=FALSE,LEFT($B162,3)<>\"NOX\"),CF53*INDEX('Damage costs'!$P$16:$P$43,MATCH($B162,'Damage costs'!$C$16:$C$43,0))/1000,CF53*INDEX('Damage costs'!$T$16:$T$43,MATCH($B162,'Damage costs'!$C$16:$C$43,0))/1000),\"\")","v":0},{"$f":"IFERROR(IF(OR($C$168=FALSE,LEFT($B162,3)<>\"NOX\"),CG53*INDEX('Damage costs'!$P$16:$P$43,MATCH($B162,'Damage costs'!$C$16:$C$43,0))/1000,CG53*INDEX('Damage costs'!$T$16:$T$43,MATCH($B162,'Damage costs'!$C$16:$C$43,0))/1000),\"\")","v":0},{"$f":"IFERROR(IF(OR($C$168=FALSE,LEFT($B162,3)<>\"NOX\"),CH53*INDEX('Damage costs'!$P$16:$P$43,MATCH($B162,'Damage costs'!$C$16:$C$43,0))/1000,CH53*INDEX('Damage costs'!$T$16:$T$43,MATCH($B162,'Damage costs'!$C$16:$C$43,0))/1000),\"\")","v":0},{"$f":"IFERROR(IF(OR($C$168=FALSE,LEFT($B162,3)<>\"NOX\"),CI53*INDEX('Damage costs'!$P$16:$P$43,MATCH($B162,'Damage costs'!$C$16:$C$43,0))/1000,CI53*INDEX('Damage costs'!$T$16:$T$43,MATCH($B162,'Damage costs'!$C$16:$C$43,0))/1000),\"\")","v":0},{"$f":"IFERROR(IF(OR($C$168=FALSE,LEFT($B162,3)<>\"NOX\"),CJ53*INDEX('Damage costs'!$P$16:$P$43,MATCH($B162,'Damage costs'!$C$16:$C$43,0))/1000,CJ53*INDEX('Damage costs'!$T$16:$T$43,MATCH($B162,'Damage costs'!$C$16:$C$43,0))/1000),\"\")","v":0},{"$f":"IFERROR(IF(OR($C$168=FALSE,LEFT($B162,3)<>\"NOX\"),CK53*INDEX('Damage costs'!$P$16:$P$43,MATCH($B162,'Damage costs'!$C$16:$C$43,0))/1000,CK53*INDEX('Damage costs'!$T$16:$T$43,MATCH($B162,'Damage costs'!$C$16:$C$43,0))/1000),\"\")","v":0},{"$f":"IFERROR(IF(OR($C$168=FALSE,LEFT($B162,3)<>\"NOX\"),CL53*INDEX('Damage costs'!$P$16:$P$43,MATCH($B162,'Damage costs'!$C$16:$C$43,0))/1000,CL53*INDEX('Damage costs'!$T$16:$T$43,MATCH($B162,'Damage costs'!$C$16:$C$43,0))/1000),\"\")","v":0},{"$f":"IFERROR(IF(OR($C$168=FALSE,LEFT($B162,3)<>\"NOX\"),CM53*INDEX('Damage costs'!$P$16:$P$43,MATCH($B162,'Damage costs'!$C$16:$C$43,0))/1000,CM53*INDEX('Damage costs'!$T$16:$T$43,MATCH($B162,'Damage costs'!$C$16:$C$43,0))/1000),\"\")","v":0},{"$f":"IFERROR(IF(OR($C$168=FALSE,LEFT($B162,3)<>\"NOX\"),CN53*INDEX('Damage costs'!$P$16:$P$43,MATCH($B162,'Damage costs'!$C$16:$C$43,0))/1000,CN53*INDEX('Damage costs'!$T$16:$T$43,MATCH($B162,'Damage costs'!$C$16:$C$43,0))/1000),\"\")","v":0},{"$f":"IFERROR(IF(OR($C$168=FALSE,LEFT($B162,3)<>\"NOX\"),CO53*INDEX('Damage costs'!$P$16:$P$43,MATCH($B162,'Damage costs'!$C$16:$C$43,0))/1000,CO53*INDEX('Damage costs'!$T$16:$T$43,MATCH($B162,'Damage costs'!$C$16:$C$43,0))/1000),\"\")","v":0},{"$f":"IFERROR(IF(OR($C$168=FALSE,LEFT($B162,3)<>\"NOX\"),CP53*INDEX('Damage costs'!$P$16:$P$43,MATCH($B162,'Damage costs'!$C$16:$C$43,0))/1000,CP53*INDEX('Damage costs'!$T$16:$T$43,MATCH($B162,'Damage costs'!$C$16:$C$43,0))/1000),\"\")","v":0},{"$f":"IFERROR(IF(OR($C$168=FALSE,LEFT($B162,3)<>\"NOX\"),CQ53*INDEX('Damage costs'!$P$16:$P$43,MATCH($B162,'Damage costs'!$C$16:$C$43,0))/1000,CQ53*INDEX('Damage costs'!$T$16:$T$43,MATCH($B162,'Damage costs'!$C$16:$C$43,0))/1000),\"\")","v":0},{"$f":"IFERROR(IF(OR($C$168=FALSE,LEFT($B162,3)<>\"NOX\"),CR53*INDEX('Damage costs'!$P$16:$P$43,MATCH($B162,'Damage costs'!$C$16:$C$43,0))/1000,CR53*INDEX('Damage costs'!$T$16:$T$43,MATCH($B162,'Damage costs'!$C$16:$C$43,0))/1000),\"\")","v":0},{"$f":"IFERROR(IF(OR($C$168=FALSE,LEFT($B162,3)<>\"NOX\"),CS53*INDEX('Damage costs'!$P$16:$P$43,MATCH($B162,'Damage costs'!$C$16:$C$43,0))/1000,CS53*INDEX('Damage costs'!$T$16:$T$43,MATCH($B162,'Damage costs'!$C$16:$C$43,0))/1000),\"\")","v":0},{"$f":"IFERROR(IF(OR($C$168=FALSE,LEFT($B162,3)<>\"NOX\"),CT53*INDEX('Damage costs'!$P$16:$P$43,MATCH($B162,'Damage costs'!$C$16:$C$43,0))/1000,CT53*INDEX('Damage costs'!$T$16:$T$43,MATCH($B162,'Damage costs'!$C$16:$C$43,0))/1000),\"\")","v":0},{"$f":"IFERROR(IF(OR($C$168=FALSE,LEFT($B162,3)<>\"NOX\"),CU53*INDEX('Damage costs'!$P$16:$P$43,MATCH($B162,'Damage costs'!$C$16:$C$43,0))/1000,CU53*INDEX('Damage costs'!$T$16:$T$43,MATCH($B162,'Damage costs'!$C$16:$C$43,0))/1000),\"\")","v":0},{"$f":"IFERROR(IF(OR($C$168=FALSE,LEFT($B162,3)<>\"NOX\"),CV53*INDEX('Damage costs'!$P$16:$P$43,MATCH($B162,'Damage costs'!$C$16:$C$43,0))/1000,CV53*INDEX('Damage costs'!$T$16:$T$43,MATCH($B162,'Damage costs'!$C$16:$C$43,0))/1000),\"\")","v":0},{"$f":"IFERROR(IF(OR($C$168=FALSE,LEFT($B162,3)<>\"NOX\"),CW53*INDEX('Damage costs'!$P$16:$P$43,MATCH($B162,'Damage costs'!$C$16:$C$43,0))/1000,CW53*INDEX('Damage costs'!$T$16:$T$43,MATCH($B162,'Damage costs'!$C$16:$C$43,0))/1000),\"\")","v":0},{"$f":"IFERROR(IF(OR($C$168=FALSE,LEFT($B162,3)<>\"NOX\"),CX53*INDEX('Damage costs'!$P$16:$P$43,MATCH($B162,'Damage costs'!$C$16:$C$43,0))/1000,CX53*INDEX('Damage costs'!$T$16:$T$43,MATCH($B162,'Damage costs'!$C$16:$C$43,0))/1000),\"\")","v":0},{"$f":"IFERROR(IF(OR($C$168=FALSE,LEFT($B162,3)<>\"NOX\"),CY53*INDEX('Damage costs'!$P$16:$P$43,MATCH($B162,'Damage costs'!$C$16:$C$43,0))/1000,CY53*INDEX('Damage costs'!$T$16:$T$43,MATCH($B162,'Damage costs'!$C$16:$C$43,0))/1000),\"\")","v":0}]
[null,0,"£000's",{"$f":"IFERROR(IF(OR($C$168=FALSE,LEFT($B163,3)<>\"NOX\"),D54*INDEX('Damage costs'!$P$16:$P$43,MATCH($B163,'Damage costs'!$C$16:$C$43,0))/1000,D54*INDEX('Damage costs'!$T$16:$T$43,MATCH($B163,'Damage costs'!$C$16:$C$43,0))/1000),\"\")","v":""},{"$f":"IFERROR(IF(OR($C$168=FALSE,LEFT($B163,3)<>\"NOX\"),E54*INDEX('Damage costs'!$P$16:$P$43,MATCH($B163,'Damage costs'!$C$16:$C$43,0))/1000,E54*INDEX('Damage costs'!$T$16:$T$43,MATCH($B163,'Damage costs'!$C$16:$C$43,0))/1000),\"\")","v":""},{"$f":"IFERROR(IF(OR($C$168=FALSE,LEFT($B163,3)<>\"NOX\"),F54*INDEX('Damage costs'!$P$16:$P$43,MATCH($B163,'Damage costs'!$C$16:$C$43,0))/1000,F54*INDEX('Damage costs'!$T$16:$T$43,MATCH($B163,'Damage costs'!$C$16:$C$43,0))/1000),\"\")","v":""},{"$f":"IFERROR(IF(OR($C$168=FALSE,LEFT($B163,3)<>\"NOX\"),G54*INDEX('Damage costs'!$P$16:$P$43,MATCH($B163,'Damage costs'!$C$16:$C$43,0))/1000,G54*INDEX('Damage costs'!$T$16:$T$43,MATCH($B163,'Damage costs'!$C$16:$C$43,0))/1000),\"\")","v":""},{"$f":"IFERROR(IF(OR($C$168=FALSE,LEFT($B163,3)<>\"NOX\"),H54*INDEX('Damage costs'!$P$16:$P$43,MATCH($B163,'Damage costs'!$C$16:$C$43,0))/1000,H54*INDEX('Damage costs'!$T$16:$T$43,MATCH($B163,'Damage costs'!$C$16:$C$43,0))/1000),\"\")","v":""},{"$f":"IFERROR(IF(OR($C$168=FALSE,LEFT($B163,3)<>\"NOX\"),I54*INDEX('Damage costs'!$P$16:$P$43,MATCH($B163,'Damage costs'!$C$16:$C$43,0))/1000,I54*INDEX('Damage costs'!$T$16:$T$43,MATCH($B163,'Damage costs'!$C$16:$C$43,0))/1000),\"\")","v":""},{"$f":"IFERROR(IF(OR($C$168=FALSE,LEFT($B163,3)<>\"NOX\"),J54*INDEX('Damage costs'!$P$16:$P$43,MATCH($B163,'Damage costs'!$C$16:$C$43,0))/1000,J54*INDEX('Damage costs'!$T$16:$T$43,MATCH($B163,'Damage costs'!$C$16:$C$43,0))/1000),\"\")","v":""},{"$f":"IFERROR(IF(OR($C$168=FALSE,LEFT($B163,3)<>\"NOX\"),K54*INDEX('Damage costs'!$P$16:$P$43,MATCH($B163,'Damage costs'!$C$16:$C$43,0))/1000,K54*INDEX('Damage costs'!$T$16:$T$43,MATCH($B163,'Damage costs'!$C$16:$C$43,0))/1000),\"\")","v":""},{"$f":"IFERROR(IF(OR($C$168=FALSE,LEFT($B163,3)<>\"NOX\"),L54*INDEX('Damage costs'!$P$16:$P$43,MATCH($B163,'Damage costs'!$C$16:$C$43,0))/1000,L54*INDEX('Damage costs'!$T$16:$T$43,MATCH($B163,'Damage costs'!$C$16:$C$43,0))/1000),\"\")","v":""},{"$f":"IFERROR(IF(OR($C$168=FALSE,LEFT($B163,3)<>\"NOX\"),M54*INDEX('Damage costs'!$P$16:$P$43,MATCH($B163,'Damage costs'!$C$16:$C$43,0))/1000,M54*INDEX('Damage costs'!$T$16:$T$43,MATCH($B163,'Damage costs'!$C$16:$C$43,0))/1000),\"\")","v":""},{"$f":"IFERROR(IF(OR($C$168=FALSE,LEFT($B163,3)<>\"NOX\"),N54*INDEX('Damage costs'!$P$16:$P$43,MATCH($B163,'Damage costs'!$C$16:$C$43,0))/1000,N54*INDEX('Damage costs'!$T$16:$T$43,MATCH($B163,'Damage costs'!$C$16:$C$43,0))/1000),\"\")","v":""},{"$f":"IFERROR(IF(OR($C$168=FALSE,LEFT($B163,3)<>\"NOX\"),O54*INDEX('Damage costs'!$P$16:$P$43,MATCH($B163,'Damage costs'!$C$16:$C$43,0))/1000,O54*INDEX('Damage costs'!$T$16:$T$43,MATCH($B163,'Damage costs'!$C$16:$C$43,0))/1000),\"\")","v":""},{"$f":"IFERROR(IF(OR($C$168=FALSE,LEFT($B163,3)<>\"NOX\"),P54*INDEX('Damage costs'!$P$16:$P$43,MATCH($B163,'Damage costs'!$C$16:$C$43,0))/1000,P54*INDEX('Damage costs'!$T$16:$T$43,MATCH($B163,'Damage costs'!$C$16:$C$43,0))/1000),\"\")","v":""},{"$f":"IFERROR(IF(OR($C$168=FALSE,LEFT($B163,3)<>\"NOX\"),Q54*INDEX('Damage costs'!$P$16:$P$43,MATCH($B163,'Damage costs'!$C$16:$C$43,0))/1000,Q54*INDEX('Damage costs'!$T$16:$T$43,MATCH($B163,'Damage costs'!$C$16:$C$43,0))/1000),\"\")","v":""},{"$f":"IFERROR(IF(OR($C$168=FALSE,LEFT($B163,3)<>\"NOX\"),R54*INDEX('Damage costs'!$P$16:$P$43,MATCH($B163,'Damage costs'!$C$16:$C$43,0))/1000,R54*INDEX('Damage costs'!$T$16:$T$43,MATCH($B163,'Damage costs'!$C$16:$C$43,0))/1000),\"\")","v":""},{"$f":"IFERROR(IF(OR($C$168=FALSE,LEFT($B163,3)<>\"NOX\"),S54*INDEX('Damage costs'!$P$16:$P$43,MATCH($B163,'Damage costs'!$C$16:$C$43,0))/1000,S54*INDEX('Damage costs'!$T$16:$T$43,MATCH($B163,'Damage costs'!$C$16:$C$43,0))/1000),\"\")","v":""},{"$f":"IFERROR(IF(OR($C$168=FALSE,LEFT($B163,3)<>\"NOX\"),T54*INDEX('Damage costs'!$P$16:$P$43,MATCH($B163,'Damage costs'!$C$16:$C$43,0))/1000,T54*INDEX('Damage costs'!$T$16:$T$43,MATCH($B163,'Damage costs'!$C$16:$C$43,0))/1000),\"\")","v":""},{"$f":"IFERROR(IF(OR($C$168=FALSE,LEFT($B163,3)<>\"NOX\"),U54*INDEX('Damage costs'!$P$16:$P$43,MATCH($B163,'Damage costs'!$C$16:$C$43,0))/1000,U54*INDEX('Damage costs'!$T$16:$T$43,MATCH($B163,'Damage costs'!$C$16:$C$43,0))/1000),\"\")","v":""},{"$f":"IFERROR(IF(OR($C$168=FALSE,LEFT($B163,3)<>\"NOX\"),V54*INDEX('Damage costs'!$P$16:$P$43,MATCH($B163,'Damage costs'!$C$16:$C$43,0))/1000,V54*INDEX('Damage costs'!$T$16:$T$43,MATCH($B163,'Damage costs'!$C$16:$C$43,0))/1000),\"\")","v":""},{"$f":"IFERROR(IF(OR($C$168=FALSE,LEFT($B163,3)<>\"NOX\"),W54*INDEX('Damage costs'!$P$16:$P$43,MATCH($B163,'Damage costs'!$C$16:$C$43,0))/1000,W54*INDEX('Damage costs'!$T$16:$T$43,MATCH($B163,'Damage costs'!$C$16:$C$43,0))/1000),\"\")","v":""},{"$f":"IFERROR(IF(OR($C$168=FALSE,LEFT($B163,3)<>\"NOX\"),X54*INDEX('Damage costs'!$P$16:$P$43,MATCH($B163,'Damage costs'!$C$16:$C$43,0))/1000,X54*INDEX('Damage costs'!$T$16:$T$43,MATCH($B163,'Damage costs'!$C$16:$C$43,0))/1000),\"\")","v":""},{"$f":"IFERROR(IF(OR($C$168=FALSE,LEFT($B163,3)<>\"NOX\"),Y54*INDEX('Damage costs'!$P$16:$P$43,MATCH($B163,'Damage costs'!$C$16:$C$43,0))/1000,Y54*INDEX('Damage costs'!$T$16:$T$43,MATCH($B163,'Damage costs'!$C$16:$C$43,0))/1000),\"\")","v":""},{"$f":"IFERROR(IF(OR($C$168=FALSE,LEFT($B163,3)<>\"NOX\"),Z54*INDEX('Damage costs'!$P$16:$P$43,MATCH($B163,'Damage costs'!$C$16:$C$43,0))/1000,Z54*INDEX('Damage costs'!$T$16:$T$43,MATCH($B163,'Damage costs'!$C$16:$C$43,0))/1000),\"\")","v":""},{"$f":"IFERROR(IF(OR($C$168=FALSE,LEFT($B163,3)<>\"NOX\"),AA54*INDEX('Damage costs'!$P$16:$P$43,MATCH($B163,'Damage costs'!$C$16:$C$43,0))/1000,AA54*INDEX('Damage costs'!$T$16:$T$43,MATCH($B163,'Damage costs'!$C$16:$C$43,0))/1000),\"\")","v":""},{"$f":"IFERROR(IF(OR($C$168=FALSE,LEFT($B163,3)<>\"NOX\"),AB54*INDEX('Damage costs'!$P$16:$P$43,MATCH($B163,'Damage costs'!$C$16:$C$43,0))/1000,AB54*INDEX('Damage costs'!$T$16:$T$43,MATCH($B163,'Damage costs'!$C$16:$C$43,0))/1000),\"\")","v":""},{"$f":"IFERROR(IF(OR($C$168=FALSE,LEFT($B163,3)<>\"NOX\"),AC54*INDEX('Damage costs'!$P$16:$P$43,MATCH($B163,'Damage costs'!$C$16:$C$43,0))/1000,AC54*INDEX('Damage costs'!$T$16:$T$43,MATCH($B163,'Damage costs'!$C$16:$C$43,0))/1000),\"\")","v":""},{"$f":"IFERROR(IF(OR($C$168=FALSE,LEFT($B163,3)<>\"NOX\"),AD54*INDEX('Damage costs'!$P$16:$P$43,MATCH($B163,'Damage costs'!$C$16:$C$43,0))/1000,AD54*INDEX('Damage costs'!$T$16:$T$43,MATCH($B163,'Damage costs'!$C$16:$C$43,0))/1000),\"\")","v":""},{"$f":"IFERROR(IF(OR($C$168=FALSE,LEFT($B163,3)<>\"NOX\"),AE54*INDEX('Damage costs'!$P$16:$P$43,MATCH($B163,'Damage costs'!$C$16:$C$43,0))/1000,AE54*INDEX('Damage costs'!$T$16:$T$43,MATCH($B163,'Damage costs'!$C$16:$C$43,0))/1000),\"\")","v":""},{"$f":"IFERROR(IF(OR($C$168=FALSE,LEFT($B163,3)<>\"NOX\"),AF54*INDEX('Damage costs'!$P$16:$P$43,MATCH($B163,'Damage costs'!$C$16:$C$43,0))/1000,AF54*INDEX('Damage costs'!$T$16:$T$43,MATCH($B163,'Damage costs'!$C$16:$C$43,0))/1000),\"\")","v":""},{"$f":"IFERROR(IF(OR($C$168=FALSE,LEFT($B163,3)<>\"NOX\"),AG54*INDEX('Damage costs'!$P$16:$P$43,MATCH($B163,'Damage costs'!$C$16:$C$43,0))/1000,AG54*INDEX('Damage costs'!$T$16:$T$43,MATCH($B163,'Damage costs'!$C$16:$C$43,0))/1000),\"\")","v":""},{"$f":"IFERROR(IF(OR($C$168=FALSE,LEFT($B163,3)<>\"NOX\"),AH54*INDEX('Damage costs'!$P$16:$P$43,MATCH($B163,'Damage costs'!$C$16:$C$43,0))/1000,AH54*INDEX('Damage costs'!$T$16:$T$43,MATCH($B163,'Damage costs'!$C$16:$C$43,0))/1000),\"\")","v":""},{"$f":"IFERROR(IF(OR($C$168=FALSE,LEFT($B163,3)<>\"NOX\"),AI54*INDEX('Damage costs'!$P$16:$P$43,MATCH($B163,'Damage costs'!$C$16:$C$43,0))/1000,AI54*INDEX('Damage costs'!$T$16:$T$43,MATCH($B163,'Damage costs'!$C$16:$C$43,0))/1000),\"\")","v":""},{"$f":"IFERROR(IF(OR($C$168=FALSE,LEFT($B163,3)<>\"NOX\"),AJ54*INDEX('Damage costs'!$P$16:$P$43,MATCH($B163,'Damage costs'!$C$16:$C$43,0))/1000,AJ54*INDEX('Damage costs'!$T$16:$T$43,MATCH($B163,'Damage costs'!$C$16:$C$43,0))/1000),\"\")","v":""},{"$f":"IFERROR(IF(OR($C$168=FALSE,LEFT($B163,3)<>\"NOX\"),AK54*INDEX('Damage costs'!$P$16:$P$43,MATCH($B163,'Damage costs'!$C$16:$C$43,0))/1000,AK54*INDEX('Damage costs'!$T$16:$T$43,MATCH($B163,'Damage costs'!$C$16:$C$43,0))/1000),\"\")","v":""},{"$f":"IFERROR(IF(OR($C$168=FALSE,LEFT($B163,3)<>\"NOX\"),AL54*INDEX('Damage costs'!$P$16:$P$43,MATCH($B163,'Damage costs'!$C$16:$C$43,0))/1000,AL54*INDEX('Damage costs'!$T$16:$T$43,MATCH($B163,'Damage costs'!$C$16:$C$43,0))/1000),\"\")","v":""},{"$f":"IFERROR(IF(OR($C$168=FALSE,LEFT($B163,3)<>\"NOX\"),AM54*INDEX('Damage costs'!$P$16:$P$43,MATCH($B163,'Damage costs'!$C$16:$C$43,0))/1000,AM54*INDEX('Damage costs'!$T$16:$T$43,MATCH($B163,'Damage costs'!$C$16:$C$43,0))/1000),\"\")","v":""},{"$f":"IFERROR(IF(OR($C$168=FALSE,LEFT($B163,3)<>\"NOX\"),AN54*INDEX('Damage costs'!$P$16:$P$43,MATCH($B163,'Damage costs'!$C$16:$C$43,0))/1000,AN54*INDEX('Damage costs'!$T$16:$T$43,MATCH($B163,'Damage costs'!$C$16:$C$43,0))/1000),\"\")","v":""},{"$f":"IFERROR(IF(OR($C$168=FALSE,LEFT($B163,3)<>\"NOX\"),AO54*INDEX('Damage costs'!$P$16:$P$43,MATCH($B163,'Damage costs'!$C$16:$C$43,0))/1000,AO54*INDEX('Damage costs'!$T$16:$T$43,MATCH($B163,'Damage costs'!$C$16:$C$43,0))/1000),\"\")","v":""},{"$f":"IFERROR(IF(OR($C$168=FALSE,LEFT($B163,3)<>\"NOX\"),AP54*INDEX('Damage costs'!$P$16:$P$43,MATCH($B163,'Damage costs'!$C$16:$C$43,0))/1000,AP54*INDEX('Damage costs'!$T$16:$T$43,MATCH($B163,'Damage costs'!$C$16:$C$43,0))/1000),\"\")","v":""},{"$f":"IFERROR(IF(OR($C$168=FALSE,LEFT($B163,3)<>\"NOX\"),AQ54*INDEX('Damage costs'!$P$16:$P$43,MATCH($B163,'Damage costs'!$C$16:$C$43,0))/1000,AQ54*INDEX('Damage costs'!$T$16:$T$43,MATCH($B163,'Damage costs'!$C$16:$C$43,0))/1000),\"\")","v":""},{"$f":"IFERROR(IF(OR($C$168=FALSE,LEFT($B163,3)<>\"NOX\"),AR54*INDEX('Damage costs'!$P$16:$P$43,MATCH($B163,'Damage costs'!$C$16:$C$43,0))/1000,AR54*INDEX('Damage costs'!$T$16:$T$43,MATCH($B163,'Damage costs'!$C$16:$C$43,0))/1000),\"\")","v":""},{"$f":"IFERROR(IF(OR($C$168=FALSE,LEFT($B163,3)<>\"NOX\"),AS54*INDEX('Damage costs'!$P$16:$P$43,MATCH($B163,'Damage costs'!$C$16:$C$43,0))/1000,AS54*INDEX('Damage costs'!$T$16:$T$43,MATCH($B163,'Damage costs'!$C$16:$C$43,0))/1000),\"\")","v":""},{"$f":"IFERROR(IF(OR($C$168=FALSE,LEFT($B163,3)<>\"NOX\"),AT54*INDEX('Damage costs'!$P$16:$P$43,MATCH($B163,'Damage costs'!$C$16:$C$43,0))/1000,AT54*INDEX('Damage costs'!$T$16:$T$43,MATCH($B163,'Damage costs'!$C$16:$C$43,0))/1000),\"\")","v":""},{"$f":"IFERROR(IF(OR($C$168=FALSE,LEFT($B163,3)<>\"NOX\"),AU54*INDEX('Damage costs'!$P$16:$P$43,MATCH($B163,'Damage costs'!$C$16:$C$43,0))/1000,AU54*INDEX('Damage costs'!$T$16:$T$43,MATCH($B163,'Damage costs'!$C$16:$C$43,0))/1000),\"\")","v":""},{"$f":"IFERROR(IF(OR($C$168=FALSE,LEFT($B163,3)<>\"NOX\"),AV54*INDEX('Damage costs'!$P$16:$P$43,MATCH($B163,'Damage costs'!$C$16:$C$43,0))/1000,AV54*INDEX('Damage costs'!$T$16:$T$43,MATCH($B163,'Damage costs'!$C$16:$C$43,0))/1000),\"\")","v":""},{"$f":"IFERROR(IF(OR($C$168=FALSE,LEFT($B163,3)<>\"NOX\"),AW54*INDEX('Damage costs'!$P$16:$P$43,MATCH($B163,'Damage costs'!$C$16:$C$43,0))/1000,AW54*INDEX('Damage costs'!$T$16:$T$43,MATCH($B163,'Damage costs'!$C$16:$C$43,0))/1000),\"\")","v":""},{"$f":"IFERROR(IF(OR($C$168=FALSE,LEFT($B163,3)<>\"NOX\"),AX54*INDEX('Damage costs'!$P$16:$P$43,MATCH($B163,'Damage costs'!$C$16:$C$43,0))/1000,AX54*INDEX('Damage costs'!$T$16:$T$43,MATCH($B163,'Damage costs'!$C$16:$C$43,0))/1000),\"\")","v":""},{"$f":"IFERROR(IF(OR($C$168=FALSE,LEFT($B163,3)<>\"NOX\"),AY54*INDEX('Damage costs'!$P$16:$P$43,MATCH($B163,'Damage costs'!$C$16:$C$43,0))/1000,AY54*INDEX('Damage costs'!$T$16:$T$43,MATCH($B163,'Damage costs'!$C$16:$C$43,0))/1000),\"\")","v":""},{"$f":"IFERROR(IF(OR($C$168=FALSE,LEFT($B163,3)<>\"NOX\"),AZ54*INDEX('Damage costs'!$P$16:$P$43,MATCH($B163,'Damage costs'!$C$16:$C$43,0))/1000,AZ54*INDEX('Damage costs'!$T$16:$T$43,MATCH($B163,'Damage costs'!$C$16:$C$43,0))/1000),\"\")","v":""},{"$f":"IFERROR(IF(OR($C$168=FALSE,LEFT($B163,3)<>\"NOX\"),BA54*INDEX('Damage costs'!$P$16:$P$43,MATCH($B163,'Damage costs'!$C$16:$C$43,0))/1000,BA54*INDEX('Damage costs'!$T$16:$T$43,MATCH($B163,'Damage costs'!$C$16:$C$43,0))/1000),\"\")","v":""},{"$f":"IFERROR(IF(OR($C$168=FALSE,LEFT($B163,3)<>\"NOX\"),BB54*INDEX('Damage costs'!$P$16:$P$43,MATCH($B163,'Damage costs'!$C$16:$C$43,0))/1000,BB54*INDEX('Damage costs'!$T$16:$T$43,MATCH($B163,'Damage costs'!$C$16:$C$43,0))/1000),\"\")","v":""},{"$f":"IFERROR(IF(OR($C$168=FALSE,LEFT($B163,3)<>\"NOX\"),BC54*INDEX('Damage costs'!$P$16:$P$43,MATCH($B163,'Damage costs'!$C$16:$C$43,0))/1000,BC54*INDEX('Damage costs'!$T$16:$T$43,MATCH($B163,'Damage costs'!$C$16:$C$43,0))/1000),\"\")","v":""},{"$f":"IFERROR(IF(OR($C$168=FALSE,LEFT($B163,3)<>\"NOX\"),BD54*INDEX('Damage costs'!$P$16:$P$43,MATCH($B163,'Damage costs'!$C$16:$C$43,0))/1000,BD54*INDEX('Damage costs'!$T$16:$T$43,MATCH($B163,'Damage costs'!$C$16:$C$43,0))/1000),\"\")","v":""},{"$f":"IFERROR(IF(OR($C$168=FALSE,LEFT($B163,3)<>\"NOX\"),BE54*INDEX('Damage costs'!$P$16:$P$43,MATCH($B163,'Damage costs'!$C$16:$C$43,0))/1000,BE54*INDEX('Damage costs'!$T$16:$T$43,MATCH($B163,'Damage costs'!$C$16:$C$43,0))/1000),\"\")","v":""},{"$f":"IFERROR(IF(OR($C$168=FALSE,LEFT($B163,3)<>\"NOX\"),BF54*INDEX('Damage costs'!$P$16:$P$43,MATCH($B163,'Damage costs'!$C$16:$C$43,0))/1000,BF54*INDEX('Damage costs'!$T$16:$T$43,MATCH($B163,'Damage costs'!$C$16:$C$43,0))/1000),\"\")","v":""},{"$f":"IFERROR(IF(OR($C$168=FALSE,LEFT($B163,3)<>\"NOX\"),BG54*INDEX('Damage costs'!$P$16:$P$43,MATCH($B163,'Damage costs'!$C$16:$C$43,0))/1000,BG54*INDEX('Damage costs'!$T$16:$T$43,MATCH($B163,'Damage costs'!$C$16:$C$43,0))/1000),\"\")","v":""},{"$f":"IFERROR(IF(OR($C$168=FALSE,LEFT($B163,3)<>\"NOX\"),BH54*INDEX('Damage costs'!$P$16:$P$43,MATCH($B163,'Damage costs'!$C$16:$C$43,0))/1000,BH54*INDEX('Damage costs'!$T$16:$T$43,MATCH($B163,'Damage costs'!$C$16:$C$43,0))/1000),\"\")","v":""},{"$f":"IFERROR(IF(OR($C$168=FALSE,LEFT($B163,3)<>\"NOX\"),BI54*INDEX('Damage costs'!$P$16:$P$43,MATCH($B163,'Damage costs'!$C$16:$C$43,0))/1000,BI54*INDEX('Damage costs'!$T$16:$T$43,MATCH($B163,'Damage costs'!$C$16:$C$43,0))/1000),\"\")","v":""},{"$f":"IFERROR(IF(OR($C$168=FALSE,LEFT($B163,3)<>\"NOX\"),BJ54*INDEX('Damage costs'!$P$16:$P$43,MATCH($B163,'Damage costs'!$C$16:$C$43,0))/1000,BJ54*INDEX('Damage costs'!$T$16:$T$43,MATCH($B163,'Damage costs'!$C$16:$C$43,0))/1000),\"\")","v":""},{"$f":"IFERROR(IF(OR($C$168=FALSE,LEFT($B163,3)<>\"NOX\"),BK54*INDEX('Damage costs'!$P$16:$P$43,MATCH($B163,'Damage costs'!$C$16:$C$43,0))/1000,BK54*INDEX('Damage costs'!$T$16:$T$43,MATCH($B163,'Damage costs'!$C$16:$C$43,0))/1000),\"\")","v":""},{"$f":"IFERROR(IF(OR($C$168=FALSE,LEFT($B163,3)<>\"NOX\"),BL54*INDEX('Damage costs'!$P$16:$P$43,MATCH($B163,'Damage costs'!$C$16:$C$43,0))/1000,BL54*INDEX('Damage costs'!$T$16:$T$43,MATCH($B163,'Damage costs'!$C$16:$C$43,0))/1000),\"\")","v":""},{"$f":"IFERROR(IF(OR($C$168=FALSE,LEFT($B163,3)<>\"NOX\"),BM54*INDEX('Damage costs'!$P$16:$P$43,MATCH($B163,'Damage costs'!$C$16:$C$43,0))/1000,BM54*INDEX('Damage costs'!$T$16:$T$43,MATCH($B163,'Damage costs'!$C$16:$C$43,0))/1000),\"\")","v":""},{"$f":"IFERROR(IF(OR($C$168=FALSE,LEFT($B163,3)<>\"NOX\"),BN54*INDEX('Damage costs'!$P$16:$P$43,MATCH($B163,'Damage costs'!$C$16:$C$43,0))/1000,BN54*INDEX('Damage costs'!$T$16:$T$43,MATCH($B163,'Damage costs'!$C$16:$C$43,0))/1000),\"\")","v":""},{"$f":"IFERROR(IF(OR($C$168=FALSE,LEFT($B163,3)<>\"NOX\"),BO54*INDEX('Damage costs'!$P$16:$P$43,MATCH($B163,'Damage costs'!$C$16:$C$43,0))/1000,BO54*INDEX('Damage costs'!$T$16:$T$43,MATCH($B163,'Damage costs'!$C$16:$C$43,0))/1000),\"\")","v":""},{"$f":"IFERROR(IF(OR($C$168=FALSE,LEFT($B163,3)<>\"NOX\"),BP54*INDEX('Damage costs'!$P$16:$P$43,MATCH($B163,'Damage costs'!$C$16:$C$43,0))/1000,BP54*INDEX('Damage costs'!$T$16:$T$43,MATCH($B163,'Damage costs'!$C$16:$C$43,0))/1000),\"\")","v":""},{"$f":"IFERROR(IF(OR($C$168=FALSE,LEFT($B163,3)<>\"NOX\"),BQ54*INDEX('Damage costs'!$P$16:$P$43,MATCH($B163,'Damage costs'!$C$16:$C$43,0))/1000,BQ54*INDEX('Damage costs'!$T$16:$T$43,MATCH($B163,'Damage costs'!$C$16:$C$43,0))/1000),\"\")","v":""},{"$f":"IFERROR(IF(OR($C$168=FALSE,LEFT($B163,3)<>\"NOX\"),BR54*INDEX('Damage costs'!$P$16:$P$43,MATCH($B163,'Damage costs'!$C$16:$C$43,0))/1000,BR54*INDEX('Damage costs'!$T$16:$T$43,MATCH($B163,'Damage costs'!$C$16:$C$43,0))/1000),\"\")","v":""},{"$f":"IFERROR(IF(OR($C$168=FALSE,LEFT($B163,3)<>\"NOX\"),BS54*INDEX('Damage costs'!$P$16:$P$43,MATCH($B163,'Damage costs'!$C$16:$C$43,0))/1000,BS54*INDEX('Damage costs'!$T$16:$T$43,MATCH($B163,'Damage costs'!$C$16:$C$43,0))/1000),\"\")","v":""},{"$f":"IFERROR(IF(OR($C$168=FALSE,LEFT($B163,3)<>\"NOX\"),BT54*INDEX('Damage costs'!$P$16:$P$43,MATCH($B163,'Damage costs'!$C$16:$C$43,0))/1000,BT54*INDEX('Damage costs'!$T$16:$T$43,MATCH($B163,'Damage costs'!$C$16:$C$43,0))/1000),\"\")","v":""},{"$f":"IFERROR(IF(OR($C$168=FALSE,LEFT($B163,3)<>\"NOX\"),BU54*INDEX('Damage costs'!$P$16:$P$43,MATCH($B163,'Damage costs'!$C$16:$C$43,0))/1000,BU54*INDEX('Damage costs'!$T$16:$T$43,MATCH($B163,'Damage costs'!$C$16:$C$43,0))/1000),\"\")","v":""},{"$f":"IFERROR(IF(OR($C$168=FALSE,LEFT($B163,3)<>\"NOX\"),BV54*INDEX('Damage costs'!$P$16:$P$43,MATCH($B163,'Damage costs'!$C$16:$C$43,0))/1000,BV54*INDEX('Damage costs'!$T$16:$T$43,MATCH($B163,'Damage costs'!$C$16:$C$43,0))/1000),\"\")","v":""},{"$f":"IFERROR(IF(OR($C$168=FALSE,LEFT($B163,3)<>\"NOX\"),BW54*INDEX('Damage costs'!$P$16:$P$43,MATCH($B163,'Damage costs'!$C$16:$C$43,0))/1000,BW54*INDEX('Damage costs'!$T$16:$T$43,MATCH($B163,'Damage costs'!$C$16:$C$43,0))/1000),\"\")","v":""},{"$f":"IFERROR(IF(OR($C$168=FALSE,LEFT($B163,3)<>\"NOX\"),BX54*INDEX('Damage costs'!$P$16:$P$43,MATCH($B163,'Damage costs'!$C$16:$C$43,0))/1000,BX54*INDEX('Damage costs'!$T$16:$T$43,MATCH($B163,'Damage costs'!$C$16:$C$43,0))/1000),\"\")","v":""},{"$f":"IFERROR(IF(OR($C$168=FALSE,LEFT($B163,3)<>\"NOX\"),BY54*INDEX('Damage costs'!$P$16:$P$43,MATCH($B163,'Damage costs'!$C$16:$C$43,0))/1000,BY54*INDEX('Damage costs'!$T$16:$T$43,MATCH($B163,'Damage costs'!$C$16:$C$43,0))/1000),\"\")","v":""},{"$f":"IFERROR(IF(OR($C$168=FALSE,LEFT($B163,3)<>\"NOX\"),BZ54*INDEX('Damage costs'!$P$16:$P$43,MATCH($B163,'Damage costs'!$C$16:$C$43,0))/1000,BZ54*INDEX('Damage costs'!$T$16:$T$43,MATCH($B163,'Damage costs'!$C$16:$C$43,0))/1000),\"\")","v":""},{"$f":"IFERROR(IF(OR($C$168=FALSE,LEFT($B163,3)<>\"NOX\"),CA54*INDEX('Damage costs'!$P$16:$P$43,MATCH($B163,'Damage costs'!$C$16:$C$43,0))/1000,CA54*INDEX('Damage costs'!$T$16:$T$43,MATCH($B163,'Damage costs'!$C$16:$C$43,0))/1000),\"\")","v":""},{"$f":"IFERROR(IF(OR($C$168=FALSE,LEFT($B163,3)<>\"NOX\"),CB54*INDEX('Damage costs'!$P$16:$P$43,MATCH($B163,'Damage costs'!$C$16:$C$43,0))/1000,CB54*INDEX('Damage costs'!$T$16:$T$43,MATCH($B163,'Damage costs'!$C$16:$C$43,0))/1000),\"\")","v":""},{"$f":"IFERROR(IF(OR($C$168=FALSE,LEFT($B163,3)<>\"NOX\"),CC54*INDEX('Damage costs'!$P$16:$P$43,MATCH($B163,'Damage costs'!$C$16:$C$43,0))/1000,CC54*INDEX('Damage costs'!$T$16:$T$43,MATCH($B163,'Damage costs'!$C$16:$C$43,0))/1000),\"\")","v":""},{"$f":"IFERROR(IF(OR($C$168=FALSE,LEFT($B163,3)<>\"NOX\"),CD54*INDEX('Damage costs'!$P$16:$P$43,MATCH($B163,'Damage costs'!$C$16:$C$43,0))/1000,CD54*INDEX('Damage costs'!$T$16:$T$43,MATCH($B163,'Damage costs'!$C$16:$C$43,0))/1000),\"\")","v":""},{"$f":"IFERROR(IF(OR($C$168=FALSE,LEFT($B163,3)<>\"NOX\"),CE54*INDEX('Damage costs'!$P$16:$P$43,MATCH($B163,'Damage costs'!$C$16:$C$43,0))/1000,CE54*INDEX('Damage costs'!$T$16:$T$43,MATCH($B163,'Damage costs'!$C$16:$C$43,0))/1000),\"\")","v":""},{"$f":"IFERROR(IF(OR($C$168=FALSE,LEFT($B163,3)<>\"NOX\"),CF54*INDEX('Damage costs'!$P$16:$P$43,MATCH($B163,'Damage costs'!$C$16:$C$43,0))/1000,CF54*INDEX('Damage costs'!$T$16:$T$43,MATCH($B163,'Damage costs'!$C$16:$C$43,0))/1000),\"\")","v":""},{"$f":"IFERROR(IF(OR($C$168=FALSE,LEFT($B163,3)<>\"NOX\"),CG54*INDEX('Damage costs'!$P$16:$P$43,MATCH($B163,'Damage costs'!$C$16:$C$43,0))/1000,CG54*INDEX('Damage costs'!$T$16:$T$43,MATCH($B163,'Damage costs'!$C$16:$C$43,0))/1000),\"\")","v":""},{"$f":"IFERROR(IF(OR($C$168=FALSE,LEFT($B163,3)<>\"NOX\"),CH54*INDEX('Damage costs'!$P$16:$P$43,MATCH($B163,'Damage costs'!$C$16:$C$43,0))/1000,CH54*INDEX('Damage costs'!$T$16:$T$43,MATCH($B163,'Damage costs'!$C$16:$C$43,0))/1000),\"\")","v":""},{"$f":"IFERROR(IF(OR($C$168=FALSE,LEFT($B163,3)<>\"NOX\"),CI54*INDEX('Damage costs'!$P$16:$P$43,MATCH($B163,'Damage costs'!$C$16:$C$43,0))/1000,CI54*INDEX('Damage costs'!$T$16:$T$43,MATCH($B163,'Damage costs'!$C$16:$C$43,0))/1000),\"\")","v":""},{"$f":"IFERROR(IF(OR($C$168=FALSE,LEFT($B163,3)<>\"NOX\"),CJ54*INDEX('Damage costs'!$P$16:$P$43,MATCH($B163,'Damage costs'!$C$16:$C$43,0))/1000,CJ54*INDEX('Damage costs'!$T$16:$T$43,MATCH($B163,'Damage costs'!$C$16:$C$43,0))/1000),\"\")","v":""},{"$f":"IFERROR(IF(OR($C$168=FALSE,LEFT($B163,3)<>\"NOX\"),CK54*INDEX('Damage costs'!$P$16:$P$43,MATCH($B163,'Damage costs'!$C$16:$C$43,0))/1000,CK54*INDEX('Damage costs'!$T$16:$T$43,MATCH($B163,'Damage costs'!$C$16:$C$43,0))/1000),\"\")","v":""},{"$f":"IFERROR(IF(OR($C$168=FALSE,LEFT($B163,3)<>\"NOX\"),CL54*INDEX('Damage costs'!$P$16:$P$43,MATCH($B163,'Damage costs'!$C$16:$C$43,0))/1000,CL54*INDEX('Damage costs'!$T$16:$T$43,MATCH($B163,'Damage costs'!$C$16:$C$43,0))/1000),\"\")","v":""},{"$f":"IFERROR(IF(OR($C$168=FALSE,LEFT($B163,3)<>\"NOX\"),CM54*INDEX('Damage costs'!$P$16:$P$43,MATCH($B163,'Damage costs'!$C$16:$C$43,0))/1000,CM54*INDEX('Damage costs'!$T$16:$T$43,MATCH($B163,'Damage costs'!$C$16:$C$43,0))/1000),\"\")","v":""},{"$f":"IFERROR(IF(OR($C$168=FALSE,LEFT($B163,3)<>\"NOX\"),CN54*INDEX('Damage costs'!$P$16:$P$43,MATCH($B163,'Damage costs'!$C$16:$C$43,0))/1000,CN54*INDEX('Damage costs'!$T$16:$T$43,MATCH($B163,'Damage costs'!$C$16:$C$43,0))/1000),\"\")","v":""},{"$f":"IFERROR(IF(OR($C$168=FALSE,LEFT($B163,3)<>\"NOX\"),CO54*INDEX('Damage costs'!$P$16:$P$43,MATCH($B163,'Damage costs'!$C$16:$C$43,0))/1000,CO54*INDEX('Damage costs'!$T$16:$T$43,MATCH($B163,'Damage costs'!$C$16:$C$43,0))/1000),\"\")","v":""},{"$f":"IFERROR(IF(OR($C$168=FALSE,LEFT($B163,3)<>\"NOX\"),CP54*INDEX('Damage costs'!$P$16:$P$43,MATCH($B163,'Damage costs'!$C$16:$C$43,0))/1000,CP54*INDEX('Damage costs'!$T$16:$T$43,MATCH($B163,'Damage costs'!$C$16:$C$43,0))/1000),\"\")","v":""},{"$f":"IFERROR(IF(OR($C$168=FALSE,LEFT($B163,3)<>\"NOX\"),CQ54*INDEX('Damage costs'!$P$16:$P$43,MATCH($B163,'Damage costs'!$C$16:$C$43,0))/1000,CQ54*INDEX('Damage costs'!$T$16:$T$43,MATCH($B163,'Damage costs'!$C$16:$C$43,0))/1000),\"\")","v":""},{"$f":"IFERROR(IF(OR($C$168=FALSE,LEFT($B163,3)<>\"NOX\"),CR54*INDEX('Damage costs'!$P$16:$P$43,MATCH($B163,'Damage costs'!$C$16:$C$43,0))/1000,CR54*INDEX('Damage costs'!$T$16:$T$43,MATCH($B163,'Damage costs'!$C$16:$C$43,0))/1000),\"\")","v":""},{"$f":"IFERROR(IF(OR($C$168=FALSE,LEFT($B163,3)<>\"NOX\"),CS54*INDEX('Damage costs'!$P$16:$P$43,MATCH($B163,'Damage costs'!$C$16:$C$43,0))/1000,CS54*INDEX('Damage costs'!$T$16:$T$43,MATCH($B163,'Damage costs'!$C$16:$C$43,0))/1000),\"\")","v":""},{"$f":"IFERROR(IF(OR($C$168=FALSE,LEFT($B163,3)<>\"NOX\"),CT54*INDEX('Damage costs'!$P$16:$P$43,MATCH($B163,'Damage costs'!$C$16:$C$43,0))/1000,CT54*INDEX('Damage costs'!$T$16:$T$43,MATCH($B163,'Damage costs'!$C$16:$C$43,0))/1000),\"\")","v":""},{"$f":"IFERROR(IF(OR($C$168=FALSE,LEFT($B163,3)<>\"NOX\"),CU54*INDEX('Damage costs'!$P$16:$P$43,MATCH($B163,'Damage costs'!$C$16:$C$43,0))/1000,CU54*INDEX('Damage costs'!$T$16:$T$43,MATCH($B163,'Damage costs'!$C$16:$C$43,0))/1000),\"\")","v":""},{"$f":"IFERROR(IF(OR($C$168=FALSE,LEFT($B163,3)<>\"NOX\"),CV54*INDEX('Damage costs'!$P$16:$P$43,MATCH($B163,'Damage costs'!$C$16:$C$43,0))/1000,CV54*INDEX('Damage costs'!$T$16:$T$43,MATCH($B163,'Damage costs'!$C$16:$C$43,0))/1000),\"\")","v":""},{"$f":"IFERROR(IF(OR($C$168=FALSE,LEFT($B163,3)<>\"NOX\"),CW54*INDEX('Damage costs'!$P$16:$P$43,MATCH($B163,'Damage costs'!$C$16:$C$43,0))/1000,CW54*INDEX('Damage costs'!$T$16:$T$43,MATCH($B163,'Damage costs'!$C$16:$C$43,0))/1000),\"\")","v":""},{"$f":"IFERROR(IF(OR($C$168=FALSE,LEFT($B163,3)<>\"NOX\"),CX54*INDEX('Damage costs'!$P$16:$P$43,MATCH($B163,'Damage costs'!$C$16:$C$43,0))/1000,CX54*INDEX('Damage costs'!$T$16:$T$43,MATCH($B163,'Damage costs'!$C$16:$C$43,0))/1000),\"\")","v":""},{"$f":"IFERROR(IF(OR($C$168=FALSE,LEFT($B163,3)<>\"NOX\"),CY54*INDEX('Damage costs'!$P$16:$P$43,MATCH($B163,'Damage costs'!$C$16:$C$43,0))/1000,CY54*INDEX('Damage costs'!$T$16:$T$43,MATCH($B163,'Damage costs'!$C$16:$C$43,0))/1000),\"\")","v":""}]
[null,0,"£000's",{"$f":"IFERROR(IF(OR($C$168=FALSE,LEFT($B164,3)<>\"NOX\"),D55*INDEX('Damage costs'!$P$16:$P$43,MATCH($B164,'Damage costs'!$C$16:$C$43,0))/1000,D55*INDEX('Damage costs'!$T$16:$T$43,MATCH($B164,'Damage costs'!$C$16:$C$43,0))/1000),\"\")","v":""},{"$f":"IFERROR(IF(OR($C$168=FALSE,LEFT($B164,3)<>\"NOX\"),E55*INDEX('Damage costs'!$P$16:$P$43,MATCH($B164,'Damage costs'!$C$16:$C$43,0))/1000,E55*INDEX('Damage costs'!$T$16:$T$43,MATCH($B164,'Damage costs'!$C$16:$C$43,0))/1000),\"\")","v":""},{"$f":"IFERROR(IF(OR($C$168=FALSE,LEFT($B164,3)<>\"NOX\"),F55*INDEX('Damage costs'!$P$16:$P$43,MATCH($B164,'Damage costs'!$C$16:$C$43,0))/1000,F55*INDEX('Damage costs'!$T$16:$T$43,MATCH($B164,'Damage costs'!$C$16:$C$43,0))/1000),\"\")","v":""},{"$f":"IFERROR(IF(OR($C$168=FALSE,LEFT($B164,3)<>\"NOX\"),G55*INDEX('Damage costs'!$P$16:$P$43,MATCH($B164,'Damage costs'!$C$16:$C$43,0))/1000,G55*INDEX('Damage costs'!$T$16:$T$43,MATCH($B164,'Damage costs'!$C$16:$C$43,0))/1000),\"\")","v":""},{"$f":"IFERROR(IF(OR($C$168=FALSE,LEFT($B164,3)<>\"NOX\"),H55*INDEX('Damage costs'!$P$16:$P$43,MATCH($B164,'Damage costs'!$C$16:$C$43,0))/1000,H55*INDEX('Damage costs'!$T$16:$T$43,MATCH($B164,'Damage costs'!$C$16:$C$43,0))/1000),\"\")","v":""},{"$f":"IFERROR(IF(OR($C$168=FALSE,LEFT($B164,3)<>\"NOX\"),I55*INDEX('Damage costs'!$P$16:$P$43,MATCH($B164,'Damage costs'!$C$16:$C$43,0))/1000,I55*INDEX('Damage costs'!$T$16:$T$43,MATCH($B164,'Damage costs'!$C$16:$C$43,0))/1000),\"\")","v":""},{"$f":"IFERROR(IF(OR($C$168=FALSE,LEFT($B164,3)<>\"NOX\"),J55*INDEX('Damage costs'!$P$16:$P$43,MATCH($B164,'Damage costs'!$C$16:$C$43,0))/1000,J55*INDEX('Damage costs'!$T$16:$T$43,MATCH($B164,'Damage costs'!$C$16:$C$43,0))/1000),\"\")","v":""},{"$f":"IFERROR(IF(OR($C$168=FALSE,LEFT($B164,3)<>\"NOX\"),K55*INDEX('Damage costs'!$P$16:$P$43,MATCH($B164,'Damage costs'!$C$16:$C$43,0))/1000,K55*INDEX('Damage costs'!$T$16:$T$43,MATCH($B164,'Damage costs'!$C$16:$C$43,0))/1000),\"\")","v":""},{"$f":"IFERROR(IF(OR($C$168=FALSE,LEFT($B164,3)<>\"NOX\"),L55*INDEX('Damage costs'!$P$16:$P$43,MATCH($B164,'Damage costs'!$C$16:$C$43,0))/1000,L55*INDEX('Damage costs'!$T$16:$T$43,MATCH($B164,'Damage costs'!$C$16:$C$43,0))/1000),\"\")","v":""},{"$f":"IFERROR(IF(OR($C$168=FALSE,LEFT($B164,3)<>\"NOX\"),M55*INDEX('Damage costs'!$P$16:$P$43,MATCH($B164,'Damage costs'!$C$16:$C$43,0))/1000,M55*INDEX('Damage costs'!$T$16:$T$43,MATCH($B164,'Damage costs'!$C$16:$C$43,0))/1000),\"\")","v":""},{"$f":"IFERROR(IF(OR($C$168=FALSE,LEFT($B164,3)<>\"NOX\"),N55*INDEX('Damage costs'!$P$16:$P$43,MATCH($B164,'Damage costs'!$C$16:$C$43,0))/1000,N55*INDEX('Damage costs'!$T$16:$T$43,MATCH($B164,'Damage costs'!$C$16:$C$43,0))/1000),\"\")","v":""},{"$f":"IFERROR(IF(OR($C$168=FALSE,LEFT($B164,3)<>\"NOX\"),O55*INDEX('Damage costs'!$P$16:$P$43,MATCH($B164,'Damage costs'!$C$16:$C$43,0))/1000,O55*INDEX('Damage costs'!$T$16:$T$43,MATCH($B164,'Damage costs'!$C$16:$C$43,0))/1000),\"\")","v":""},{"$f":"IFERROR(IF(OR($C$168=FALSE,LEFT($B164,3)<>\"NOX\"),P55*INDEX('Damage costs'!$P$16:$P$43,MATCH($B164,'Damage costs'!$C$16:$C$43,0))/1000,P55*INDEX('Damage costs'!$T$16:$T$43,MATCH($B164,'Damage costs'!$C$16:$C$43,0))/1000),\"\")","v":""},{"$f":"IFERROR(IF(OR($C$168=FALSE,LEFT($B164,3)<>\"NOX\"),Q55*INDEX('Damage costs'!$P$16:$P$43,MATCH($B164,'Damage costs'!$C$16:$C$43,0))/1000,Q55*INDEX('Damage costs'!$T$16:$T$43,MATCH($B164,'Damage costs'!$C$16:$C$43,0))/1000),\"\")","v":""},{"$f":"IFERROR(IF(OR($C$168=FALSE,LEFT($B164,3)<>\"NOX\"),R55*INDEX('Damage costs'!$P$16:$P$43,MATCH($B164,'Damage costs'!$C$16:$C$43,0))/1000,R55*INDEX('Damage costs'!$T$16:$T$43,MATCH($B164,'Damage costs'!$C$16:$C$43,0))/1000),\"\")","v":""},{"$f":"IFERROR(IF(OR($C$168=FALSE,LEFT($B164,3)<>\"NOX\"),S55*INDEX('Damage costs'!$P$16:$P$43,MATCH($B164,'Damage costs'!$C$16:$C$43,0))/1000,S55*INDEX('Damage costs'!$T$16:$T$43,MATCH($B164,'Damage costs'!$C$16:$C$43,0))/1000),\"\")","v":""},{"$f":"IFERROR(IF(OR($C$168=FALSE,LEFT($B164,3)<>\"NOX\"),T55*INDEX('Damage costs'!$P$16:$P$43,MATCH($B164,'Damage costs'!$C$16:$C$43,0))/1000,T55*INDEX('Damage costs'!$T$16:$T$43,MATCH($B164,'Damage costs'!$C$16:$C$43,0))/1000),\"\")","v":""},{"$f":"IFERROR(IF(OR($C$168=FALSE,LEFT($B164,3)<>\"NOX\"),U55*INDEX('Damage costs'!$P$16:$P$43,MATCH($B164,'Damage costs'!$C$16:$C$43,0))/1000,U55*INDEX('Damage costs'!$T$16:$T$43,MATCH($B164,'Damage costs'!$C$16:$C$43,0))/1000),\"\")","v":""},{"$f":"IFERROR(IF(OR($C$168=FALSE,LEFT($B164,3)<>\"NOX\"),V55*INDEX('Damage costs'!$P$16:$P$43,MATCH($B164,'Damage costs'!$C$16:$C$43,0))/1000,V55*INDEX('Damage costs'!$T$16:$T$43,MATCH($B164,'Damage costs'!$C$16:$C$43,0))/1000),\"\")","v":""},{"$f":"IFERROR(IF(OR($C$168=FALSE,LEFT($B164,3)<>\"NOX\"),W55*INDEX('Damage costs'!$P$16:$P$43,MATCH($B164,'Damage costs'!$C$16:$C$43,0))/1000,W55*INDEX('Damage costs'!$T$16:$T$43,MATCH($B164,'Damage costs'!$C$16:$C$43,0))/1000),\"\")","v":""},{"$f":"IFERROR(IF(OR($C$168=FALSE,LEFT($B164,3)<>\"NOX\"),X55*INDEX('Damage costs'!$P$16:$P$43,MATCH($B164,'Damage costs'!$C$16:$C$43,0))/1000,X55*INDEX('Damage costs'!$T$16:$T$43,MATCH($B164,'Damage costs'!$C$16:$C$43,0))/1000),\"\")","v":""},{"$f":"IFERROR(IF(OR($C$168=FALSE,LEFT($B164,3)<>\"NOX\"),Y55*INDEX('Damage costs'!$P$16:$P$43,MATCH($B164,'Damage costs'!$C$16:$C$43,0))/1000,Y55*INDEX('Damage costs'!$T$16:$T$43,MATCH($B164,'Damage costs'!$C$16:$C$43,0))/1000),\"\")","v":""},{"$f":"IFERROR(IF(OR($C$168=FALSE,LEFT($B164,3)<>\"NOX\"),Z55*INDEX('Damage costs'!$P$16:$P$43,MATCH($B164,'Damage costs'!$C$16:$C$43,0))/1000,Z55*INDEX('Damage costs'!$T$16:$T$43,MATCH($B164,'Damage costs'!$C$16:$C$43,0))/1000),\"\")","v":""},{"$f":"IFERROR(IF(OR($C$168=FALSE,LEFT($B164,3)<>\"NOX\"),AA55*INDEX('Damage costs'!$P$16:$P$43,MATCH($B164,'Damage costs'!$C$16:$C$43,0))/1000,AA55*INDEX('Damage costs'!$T$16:$T$43,MATCH($B164,'Damage costs'!$C$16:$C$43,0))/1000),\"\")","v":""},{"$f":"IFERROR(IF(OR($C$168=FALSE,LEFT($B164,3)<>\"NOX\"),AB55*INDEX('Damage costs'!$P$16:$P$43,MATCH($B164,'Damage costs'!$C$16:$C$43,0))/1000,AB55*INDEX('Damage costs'!$T$16:$T$43,MATCH($B164,'Damage costs'!$C$16:$C$43,0))/1000),\"\")","v":""},{"$f":"IFERROR(IF(OR($C$168=FALSE,LEFT($B164,3)<>\"NOX\"),AC55*INDEX('Damage costs'!$P$16:$P$43,MATCH($B164,'Damage costs'!$C$16:$C$43,0))/1000,AC55*INDEX('Damage costs'!$T$16:$T$43,MATCH($B164,'Damage costs'!$C$16:$C$43,0))/1000),\"\")","v":""},{"$f":"IFERROR(IF(OR($C$168=FALSE,LEFT($B164,3)<>\"NOX\"),AD55*INDEX('Damage costs'!$P$16:$P$43,MATCH($B164,'Damage costs'!$C$16:$C$43,0))/1000,AD55*INDEX('Damage costs'!$T$16:$T$43,MATCH($B164,'Damage costs'!$C$16:$C$43,0))/1000),\"\")","v":""},{"$f":"IFERROR(IF(OR($C$168=FALSE,LEFT($B164,3)<>\"NOX\"),AE55*INDEX('Damage costs'!$P$16:$P$43,MATCH($B164,'Damage costs'!$C$16:$C$43,0))/1000,AE55*INDEX('Damage costs'!$T$16:$T$43,MATCH($B164,'Damage costs'!$C$16:$C$43,0))/1000),\"\")","v":""},{"$f":"IFERROR(IF(OR($C$168=FALSE,LEFT($B164,3)<>\"NOX\"),AF55*INDEX('Damage costs'!$P$16:$P$43,MATCH($B164,'Damage costs'!$C$16:$C$43,0))/1000,AF55*INDEX('Damage costs'!$T$16:$T$43,MATCH($B164,'Damage costs'!$C$16:$C$43,0))/1000),\"\")","v":""},{"$f":"IFERROR(IF(OR($C$168=FALSE,LEFT($B164,3)<>\"NOX\"),AG55*INDEX('Damage costs'!$P$16:$P$43,MATCH($B164,'Damage costs'!$C$16:$C$43,0))/1000,AG55*INDEX('Damage costs'!$T$16:$T$43,MATCH($B164,'Damage costs'!$C$16:$C$43,0))/1000),\"\")","v":""},{"$f":"IFERROR(IF(OR($C$168=FALSE,LEFT($B164,3)<>\"NOX\"),AH55*INDEX('Damage costs'!$P$16:$P$43,MATCH($B164,'Damage costs'!$C$16:$C$43,0))/1000,AH55*INDEX('Damage costs'!$T$16:$T$43,MATCH($B164,'Damage costs'!$C$16:$C$43,0))/1000),\"\")","v":""},{"$f":"IFERROR(IF(OR($C$168=FALSE,LEFT($B164,3)<>\"NOX\"),AI55*INDEX('Damage costs'!$P$16:$P$43,MATCH($B164,'Damage costs'!$C$16:$C$43,0))/1000,AI55*INDEX('Damage costs'!$T$16:$T$43,MATCH($B164,'Damage costs'!$C$16:$C$43,0))/1000),\"\")","v":""},{"$f":"IFERROR(IF(OR($C$168=FALSE,LEFT($B164,3)<>\"NOX\"),AJ55*INDEX('Damage costs'!$P$16:$P$43,MATCH($B164,'Damage costs'!$C$16:$C$43,0))/1000,AJ55*INDEX('Damage costs'!$T$16:$T$43,MATCH($B164,'Damage costs'!$C$16:$C$43,0))/1000),\"\")","v":""},{"$f":"IFERROR(IF(OR($C$168=FALSE,LEFT($B164,3)<>\"NOX\"),AK55*INDEX('Damage costs'!$P$16:$P$43,MATCH($B164,'Damage costs'!$C$16:$C$43,0))/1000,AK55*INDEX('Damage costs'!$T$16:$T$43,MATCH($B164,'Damage costs'!$C$16:$C$43,0))/1000),\"\")","v":""},{"$f":"IFERROR(IF(OR($C$168=FALSE,LEFT($B164,3)<>\"NOX\"),AL55*INDEX('Damage costs'!$P$16:$P$43,MATCH($B164,'Damage costs'!$C$16:$C$43,0))/1000,AL55*INDEX('Damage costs'!$T$16:$T$43,MATCH($B164,'Damage costs'!$C$16:$C$43,0))/1000),\"\")","v":""},{"$f":"IFERROR(IF(OR($C$168=FALSE,LEFT($B164,3)<>\"NOX\"),AM55*INDEX('Damage costs'!$P$16:$P$43,MATCH($B164,'Damage costs'!$C$16:$C$43,0))/1000,AM55*INDEX('Damage costs'!$T$16:$T$43,MATCH($B164,'Damage costs'!$C$16:$C$43,0))/1000),\"\")","v":""},{"$f":"IFERROR(IF(OR($C$168=FALSE,LEFT($B164,3)<>\"NOX\"),AN55*INDEX('Damage costs'!$P$16:$P$43,MATCH($B164,'Damage costs'!$C$16:$C$43,0))/1000,AN55*INDEX('Damage costs'!$T$16:$T$43,MATCH($B164,'Damage costs'!$C$16:$C$43,0))/1000),\"\")","v":""},{"$f":"IFERROR(IF(OR($C$168=FALSE,LEFT($B164,3)<>\"NOX\"),AO55*INDEX('Damage costs'!$P$16:$P$43,MATCH($B164,'Damage costs'!$C$16:$C$43,0))/1000,AO55*INDEX('Damage costs'!$T$16:$T$43,MATCH($B164,'Damage costs'!$C$16:$C$43,0))/1000),\"\")","v":""},{"$f":"IFERROR(IF(OR($C$168=FALSE,LEFT($B164,3)<>\"NOX\"),AP55*INDEX('Damage costs'!$P$16:$P$43,MATCH($B164,'Damage costs'!$C$16:$C$43,0))/1000,AP55*INDEX('Damage costs'!$T$16:$T$43,MATCH($B164,'Damage costs'!$C$16:$C$43,0))/1000),\"\")","v":""},{"$f":"IFERROR(IF(OR($C$168=FALSE,LEFT($B164,3)<>\"NOX\"),AQ55*INDEX('Damage costs'!$P$16:$P$43,MATCH($B164,'Damage costs'!$C$16:$C$43,0))/1000,AQ55*INDEX('Damage costs'!$T$16:$T$43,MATCH($B164,'Damage costs'!$C$16:$C$43,0))/1000),\"\")","v":""},{"$f":"IFERROR(IF(OR($C$168=FALSE,LEFT($B164,3)<>\"NOX\"),AR55*INDEX('Damage costs'!$P$16:$P$43,MATCH($B164,'Damage costs'!$C$16:$C$43,0))/1000,AR55*INDEX('Damage costs'!$T$16:$T$43,MATCH($B164,'Damage costs'!$C$16:$C$43,0))/1000),\"\")","v":""},{"$f":"IFERROR(IF(OR($C$168=FALSE,LEFT($B164,3)<>\"NOX\"),AS55*INDEX('Damage costs'!$P$16:$P$43,MATCH($B164,'Damage costs'!$C$16:$C$43,0))/1000,AS55*INDEX('Damage costs'!$T$16:$T$43,MATCH($B164,'Damage costs'!$C$16:$C$43,0))/1000),\"\")","v":""},{"$f":"IFERROR(IF(OR($C$168=FALSE,LEFT($B164,3)<>\"NOX\"),AT55*INDEX('Damage costs'!$P$16:$P$43,MATCH($B164,'Damage costs'!$C$16:$C$43,0))/1000,AT55*INDEX('Damage costs'!$T$16:$T$43,MATCH($B164,'Damage costs'!$C$16:$C$43,0))/1000),\"\")","v":""},{"$f":"IFERROR(IF(OR($C$168=FALSE,LEFT($B164,3)<>\"NOX\"),AU55*INDEX('Damage costs'!$P$16:$P$43,MATCH($B164,'Damage costs'!$C$16:$C$43,0))/1000,AU55*INDEX('Damage costs'!$T$16:$T$43,MATCH($B164,'Damage costs'!$C$16:$C$43,0))/1000),\"\")","v":""},{"$f":"IFERROR(IF(OR($C$168=FALSE,LEFT($B164,3)<>\"NOX\"),AV55*INDEX('Damage costs'!$P$16:$P$43,MATCH($B164,'Damage costs'!$C$16:$C$43,0))/1000,AV55*INDEX('Damage costs'!$T$16:$T$43,MATCH($B164,'Damage costs'!$C$16:$C$43,0))/1000),\"\")","v":""},{"$f":"IFERROR(IF(OR($C$168=FALSE,LEFT($B164,3)<>\"NOX\"),AW55*INDEX('Damage costs'!$P$16:$P$43,MATCH($B164,'Damage costs'!$C$16:$C$43,0))/1000,AW55*INDEX('Damage costs'!$T$16:$T$43,MATCH($B164,'Damage costs'!$C$16:$C$43,0))/1000),\"\")","v":""},{"$f":"IFERROR(IF(OR($C$168=FALSE,LEFT($B164,3)<>\"NOX\"),AX55*INDEX('Damage costs'!$P$16:$P$43,MATCH($B164,'Damage costs'!$C$16:$C$43,0))/1000,AX55*INDEX('Damage costs'!$T$16:$T$43,MATCH($B164,'Damage costs'!$C$16:$C$43,0))/1000),\"\")","v":""},{"$f":"IFERROR(IF(OR($C$168=FALSE,LEFT($B164,3)<>\"NOX\"),AY55*INDEX('Damage costs'!$P$16:$P$43,MATCH($B164,'Damage costs'!$C$16:$C$43,0))/1000,AY55*INDEX('Damage costs'!$T$16:$T$43,MATCH($B164,'Damage costs'!$C$16:$C$43,0))/1000),\"\")","v":""},{"$f":"IFERROR(IF(OR($C$168=FALSE,LEFT($B164,3)<>\"NOX\"),AZ55*INDEX('Damage costs'!$P$16:$P$43,MATCH($B164,'Damage costs'!$C$16:$C$43,0))/1000,AZ55*INDEX('Damage costs'!$T$16:$T$43,MATCH($B164,'Damage costs'!$C$16:$C$43,0))/1000),\"\")","v":""},{"$f":"IFERROR(IF(OR($C$168=FALSE,LEFT($B164,3)<>\"NOX\"),BA55*INDEX('Damage costs'!$P$16:$P$43,MATCH($B164,'Damage costs'!$C$16:$C$43,0))/1000,BA55*INDEX('Damage costs'!$T$16:$T$43,MATCH($B164,'Damage costs'!$C$16:$C$43,0))/1000),\"\")","v":""},{"$f":"IFERROR(IF(OR($C$168=FALSE,LEFT($B164,3)<>\"NOX\"),BB55*INDEX('Damage costs'!$P$16:$P$43,MATCH($B164,'Damage costs'!$C$16:$C$43,0))/1000,BB55*INDEX('Damage costs'!$T$16:$T$43,MATCH($B164,'Damage costs'!$C$16:$C$43,0))/1000),\"\")","v":""},{"$f":"IFERROR(IF(OR($C$168=FALSE,LEFT($B164,3)<>\"NOX\"),BC55*INDEX('Damage costs'!$P$16:$P$43,MATCH($B164,'Damage costs'!$C$16:$C$43,0))/1000,BC55*INDEX('Damage costs'!$T$16:$T$43,MATCH($B164,'Damage costs'!$C$16:$C$43,0))/1000),\"\")","v":""},{"$f":"IFERROR(IF(OR($C$168=FALSE,LEFT($B164,3)<>\"NOX\"),BD55*INDEX('Damage costs'!$P$16:$P$43,MATCH($B164,'Damage costs'!$C$16:$C$43,0))/1000,BD55*INDEX('Damage costs'!$T$16:$T$43,MATCH($B164,'Damage costs'!$C$16:$C$43,0))/1000),\"\")","v":""},{"$f":"IFERROR(IF(OR($C$168=FALSE,LEFT($B164,3)<>\"NOX\"),BE55*INDEX('Damage costs'!$P$16:$P$43,MATCH($B164,'Damage costs'!$C$16:$C$43,0))/1000,BE55*INDEX('Damage costs'!$T$16:$T$43,MATCH($B164,'Damage costs'!$C$16:$C$43,0))/1000),\"\")","v":""},{"$f":"IFERROR(IF(OR($C$168=FALSE,LEFT($B164,3)<>\"NOX\"),BF55*INDEX('Damage costs'!$P$16:$P$43,MATCH($B164,'Damage costs'!$C$16:$C$43,0))/1000,BF55*INDEX('Damage costs'!$T$16:$T$43,MATCH($B164,'Damage costs'!$C$16:$C$43,0))/1000),\"\")","v":""},{"$f":"IFERROR(IF(OR($C$168=FALSE,LEFT($B164,3)<>\"NOX\"),BG55*INDEX('Damage costs'!$P$16:$P$43,MATCH($B164,'Damage costs'!$C$16:$C$43,0))/1000,BG55*INDEX('Damage costs'!$T$16:$T$43,MATCH($B164,'Damage costs'!$C$16:$C$43,0))/1000),\"\")","v":""},{"$f":"IFERROR(IF(OR($C$168=FALSE,LEFT($B164,3)<>\"NOX\"),BH55*INDEX('Damage costs'!$P$16:$P$43,MATCH($B164,'Damage costs'!$C$16:$C$43,0))/1000,BH55*INDEX('Damage costs'!$T$16:$T$43,MATCH($B164,'Damage costs'!$C$16:$C$43,0))/1000),\"\")","v":""},{"$f":"IFERROR(IF(OR($C$168=FALSE,LEFT($B164,3)<>\"NOX\"),BI55*INDEX('Damage costs'!$P$16:$P$43,MATCH($B164,'Damage costs'!$C$16:$C$43,0))/1000,BI55*INDEX('Damage costs'!$T$16:$T$43,MATCH($B164,'Damage costs'!$C$16:$C$43,0))/1000),\"\")","v":""},{"$f":"IFERROR(IF(OR($C$168=FALSE,LEFT($B164,3)<>\"NOX\"),BJ55*INDEX('Damage costs'!$P$16:$P$43,MATCH($B164,'Damage costs'!$C$16:$C$43,0))/1000,BJ55*INDEX('Damage costs'!$T$16:$T$43,MATCH($B164,'Damage costs'!$C$16:$C$43,0))/1000),\"\")","v":""},{"$f":"IFERROR(IF(OR($C$168=FALSE,LEFT($B164,3)<>\"NOX\"),BK55*INDEX('Damage costs'!$P$16:$P$43,MATCH($B164,'Damage costs'!$C$16:$C$43,0))/1000,BK55*INDEX('Damage costs'!$T$16:$T$43,MATCH($B164,'Damage costs'!$C$16:$C$43,0))/1000),\"\")","v":""},{"$f":"IFERROR(IF(OR($C$168=FALSE,LEFT($B164,3)<>\"NOX\"),BL55*INDEX('Damage costs'!$P$16:$P$43,MATCH($B164,'Damage costs'!$C$16:$C$43,0))/1000,BL55*INDEX('Damage costs'!$T$16:$T$43,MATCH($B164,'Damage costs'!$C$16:$C$43,0))/1000),\"\")","v":""},{"$f":"IFERROR(IF(OR($C$168=FALSE,LEFT($B164,3)<>\"NOX\"),BM55*INDEX('Damage costs'!$P$16:$P$43,MATCH($B164,'Damage costs'!$C$16:$C$43,0))/1000,BM55*INDEX('Damage costs'!$T$16:$T$43,MATCH($B164,'Damage costs'!$C$16:$C$43,0))/1000),\"\")","v":""},{"$f":"IFERROR(IF(OR($C$168=FALSE,LEFT($B164,3)<>\"NOX\"),BN55*INDEX('Damage costs'!$P$16:$P$43,MATCH($B164,'Damage costs'!$C$16:$C$43,0))/1000,BN55*INDEX('Damage costs'!$T$16:$T$43,MATCH($B164,'Damage costs'!$C$16:$C$43,0))/1000),\"\")","v":""},{"$f":"IFERROR(IF(OR($C$168=FALSE,LEFT($B164,3)<>\"NOX\"),BO55*INDEX('Damage costs'!$P$16:$P$43,MATCH($B164,'Damage costs'!$C$16:$C$43,0))/1000,BO55*INDEX('Damage costs'!$T$16:$T$43,MATCH($B164,'Damage costs'!$C$16:$C$43,0))/1000),\"\")","v":""},{"$f":"IFERROR(IF(OR($C$168=FALSE,LEFT($B164,3)<>\"NOX\"),BP55*INDEX('Damage costs'!$P$16:$P$43,MATCH($B164,'Damage costs'!$C$16:$C$43,0))/1000,BP55*INDEX('Damage costs'!$T$16:$T$43,MATCH($B164,'Damage costs'!$C$16:$C$43,0))/1000),\"\")","v":""},{"$f":"IFERROR(IF(OR($C$168=FALSE,LEFT($B164,3)<>\"NOX\"),BQ55*INDEX('Damage costs'!$P$16:$P$43,MATCH($B164,'Damage costs'!$C$16:$C$43,0))/1000,BQ55*INDEX('Damage costs'!$T$16:$T$43,MATCH($B164,'Damage costs'!$C$16:$C$43,0))/1000),\"\")","v":""},{"$f":"IFERROR(IF(OR($C$168=FALSE,LEFT($B164,3)<>\"NOX\"),BR55*INDEX('Damage costs'!$P$16:$P$43,MATCH($B164,'Damage costs'!$C$16:$C$43,0))/1000,BR55*INDEX('Damage costs'!$T$16:$T$43,MATCH($B164,'Damage costs'!$C$16:$C$43,0))/1000),\"\")","v":""},{"$f":"IFERROR(IF(OR($C$168=FALSE,LEFT($B164,3)<>\"NOX\"),BS55*INDEX('Damage costs'!$P$16:$P$43,MATCH($B164,'Damage costs'!$C$16:$C$43,0))/1000,BS55*INDEX('Damage costs'!$T$16:$T$43,MATCH($B164,'Damage costs'!$C$16:$C$43,0))/1000),\"\")","v":""},{"$f":"IFERROR(IF(OR($C$168=FALSE,LEFT($B164,3)<>\"NOX\"),BT55*INDEX('Damage costs'!$P$16:$P$43,MATCH($B164,'Damage costs'!$C$16:$C$43,0))/1000,BT55*INDEX('Damage costs'!$T$16:$T$43,MATCH($B164,'Damage costs'!$C$16:$C$43,0))/1000),\"\")","v":""},{"$f":"IFERROR(IF(OR($C$168=FALSE,LEFT($B164,3)<>\"NOX\"),BU55*INDEX('Damage costs'!$P$16:$P$43,MATCH($B164,'Damage costs'!$C$16:$C$43,0))/1000,BU55*INDEX('Damage costs'!$T$16:$T$43,MATCH($B164,'Damage costs'!$C$16:$C$43,0))/1000),\"\")","v":""},{"$f":"IFERROR(IF(OR($C$168=FALSE,LEFT($B164,3)<>\"NOX\"),BV55*INDEX('Damage costs'!$P$16:$P$43,MATCH($B164,'Damage costs'!$C$16:$C$43,0))/1000,BV55*INDEX('Damage costs'!$T$16:$T$43,MATCH($B164,'Damage costs'!$C$16:$C$43,0))/1000),\"\")","v":""},{"$f":"IFERROR(IF(OR($C$168=FALSE,LEFT($B164,3)<>\"NOX\"),BW55*INDEX('Damage costs'!$P$16:$P$43,MATCH($B164,'Damage costs'!$C$16:$C$43,0))/1000,BW55*INDEX('Damage costs'!$T$16:$T$43,MATCH($B164,'Damage costs'!$C$16:$C$43,0))/1000),\"\")","v":""},{"$f":"IFERROR(IF(OR($C$168=FALSE,LEFT($B164,3)<>\"NOX\"),BX55*INDEX('Damage costs'!$P$16:$P$43,MATCH($B164,'Damage costs'!$C$16:$C$43,0))/1000,BX55*INDEX('Damage costs'!$T$16:$T$43,MATCH($B164,'Damage costs'!$C$16:$C$43,0))/1000),\"\")","v":""},{"$f":"IFERROR(IF(OR($C$168=FALSE,LEFT($B164,3)<>\"NOX\"),BY55*INDEX('Damage costs'!$P$16:$P$43,MATCH($B164,'Damage costs'!$C$16:$C$43,0))/1000,BY55*INDEX('Damage costs'!$T$16:$T$43,MATCH($B164,'Damage costs'!$C$16:$C$43,0))/1000),\"\")","v":""},{"$f":"IFERROR(IF(OR($C$168=FALSE,LEFT($B164,3)<>\"NOX\"),BZ55*INDEX('Damage costs'!$P$16:$P$43,MATCH($B164,'Damage costs'!$C$16:$C$43,0))/1000,BZ55*INDEX('Damage costs'!$T$16:$T$43,MATCH($B164,'Damage costs'!$C$16:$C$43,0))/1000),\"\")","v":""},{"$f":"IFERROR(IF(OR($C$168=FALSE,LEFT($B164,3)<>\"NOX\"),CA55*INDEX('Damage costs'!$P$16:$P$43,MATCH($B164,'Damage costs'!$C$16:$C$43,0))/1000,CA55*INDEX('Damage costs'!$T$16:$T$43,MATCH($B164,'Damage costs'!$C$16:$C$43,0))/1000),\"\")","v":""},{"$f":"IFERROR(IF(OR($C$168=FALSE,LEFT($B164,3)<>\"NOX\"),CB55*INDEX('Damage costs'!$P$16:$P$43,MATCH($B164,'Damage costs'!$C$16:$C$43,0))/1000,CB55*INDEX('Damage costs'!$T$16:$T$43,MATCH($B164,'Damage costs'!$C$16:$C$43,0))/1000),\"\")","v":""},{"$f":"IFERROR(IF(OR($C$168=FALSE,LEFT($B164,3)<>\"NOX\"),CC55*INDEX('Damage costs'!$P$16:$P$43,MATCH($B164,'Damage costs'!$C$16:$C$43,0))/1000,CC55*INDEX('Damage costs'!$T$16:$T$43,MATCH($B164,'Damage costs'!$C$16:$C$43,0))/1000),\"\")","v":""},{"$f":"IFERROR(IF(OR($C$168=FALSE,LEFT($B164,3)<>\"NOX\"),CD55*INDEX('Damage costs'!$P$16:$P$43,MATCH($B164,'Damage costs'!$C$16:$C$43,0))/1000,CD55*INDEX('Damage costs'!$T$16:$T$43,MATCH($B164,'Damage costs'!$C$16:$C$43,0))/1000),\"\")","v":""},{"$f":"IFERROR(IF(OR($C$168=FALSE,LEFT($B164,3)<>\"NOX\"),CE55*INDEX('Damage costs'!$P$16:$P$43,MATCH($B164,'Damage costs'!$C$16:$C$43,0))/1000,CE55*INDEX('Damage costs'!$T$16:$T$43,MATCH($B164,'Damage costs'!$C$16:$C$43,0))/1000),\"\")","v":""},{"$f":"IFERROR(IF(OR($C$168=FALSE,LEFT($B164,3)<>\"NOX\"),CF55*INDEX('Damage costs'!$P$16:$P$43,MATCH($B164,'Damage costs'!$C$16:$C$43,0))/1000,CF55*INDEX('Damage costs'!$T$16:$T$43,MATCH($B164,'Damage costs'!$C$16:$C$43,0))/1000),\"\")","v":""},{"$f":"IFERROR(IF(OR($C$168=FALSE,LEFT($B164,3)<>\"NOX\"),CG55*INDEX('Damage costs'!$P$16:$P$43,MATCH($B164,'Damage costs'!$C$16:$C$43,0))/1000,CG55*INDEX('Damage costs'!$T$16:$T$43,MATCH($B164,'Damage costs'!$C$16:$C$43,0))/1000),\"\")","v":""},{"$f":"IFERROR(IF(OR($C$168=FALSE,LEFT($B164,3)<>\"NOX\"),CH55*INDEX('Damage costs'!$P$16:$P$43,MATCH($B164,'Damage costs'!$C$16:$C$43,0))/1000,CH55*INDEX('Damage costs'!$T$16:$T$43,MATCH($B164,'Damage costs'!$C$16:$C$43,0))/1000),\"\")","v":""},{"$f":"IFERROR(IF(OR($C$168=FALSE,LEFT($B164,3)<>\"NOX\"),CI55*INDEX('Damage costs'!$P$16:$P$43,MATCH($B164,'Damage costs'!$C$16:$C$43,0))/1000,CI55*INDEX('Damage costs'!$T$16:$T$43,MATCH($B164,'Damage costs'!$C$16:$C$43,0))/1000),\"\")","v":""},{"$f":"IFERROR(IF(OR($C$168=FALSE,LEFT($B164,3)<>\"NOX\"),CJ55*INDEX('Damage costs'!$P$16:$P$43,MATCH($B164,'Damage costs'!$C$16:$C$43,0))/1000,CJ55*INDEX('Damage costs'!$T$16:$T$43,MATCH($B164,'Damage costs'!$C$16:$C$43,0))/1000),\"\")","v":""},{"$f":"IFERROR(IF(OR($C$168=FALSE,LEFT($B164,3)<>\"NOX\"),CK55*INDEX('Damage costs'!$P$16:$P$43,MATCH($B164,'Damage costs'!$C$16:$C$43,0))/1000,CK55*INDEX('Damage costs'!$T$16:$T$43,MATCH($B164,'Damage costs'!$C$16:$C$43,0))/1000),\"\")","v":""},{"$f":"IFERROR(IF(OR($C$168=FALSE,LEFT($B164,3)<>\"NOX\"),CL55*INDEX('Damage costs'!$P$16:$P$43,MATCH($B164,'Damage costs'!$C$16:$C$43,0))/1000,CL55*INDEX('Damage costs'!$T$16:$T$43,MATCH($B164,'Damage costs'!$C$16:$C$43,0))/1000),\"\")","v":""},{"$f":"IFERROR(IF(OR($C$168=FALSE,LEFT($B164,3)<>\"NOX\"),CM55*INDEX('Damage costs'!$P$16:$P$43,MATCH($B164,'Damage costs'!$C$16:$C$43,0))/1000,CM55*INDEX('Damage costs'!$T$16:$T$43,MATCH($B164,'Damage costs'!$C$16:$C$43,0))/1000),\"\")","v":""},{"$f":"IFERROR(IF(OR($C$168=FALSE,LEFT($B164,3)<>\"NOX\"),CN55*INDEX('Damage costs'!$P$16:$P$43,MATCH($B164,'Damage costs'!$C$16:$C$43,0))/1000,CN55*INDEX('Damage costs'!$T$16:$T$43,MATCH($B164,'Damage costs'!$C$16:$C$43,0))/1000),\"\")","v":""},{"$f":"IFERROR(IF(OR($C$168=FALSE,LEFT($B164,3)<>\"NOX\"),CO55*INDEX('Damage costs'!$P$16:$P$43,MATCH($B164,'Damage costs'!$C$16:$C$43,0))/1000,CO55*INDEX('Damage costs'!$T$16:$T$43,MATCH($B164,'Damage costs'!$C$16:$C$43,0))/1000),\"\")","v":""},{"$f":"IFERROR(IF(OR($C$168=FALSE,LEFT($B164,3)<>\"NOX\"),CP55*INDEX('Damage costs'!$P$16:$P$43,MATCH($B164,'Damage costs'!$C$16:$C$43,0))/1000,CP55*INDEX('Damage costs'!$T$16:$T$43,MATCH($B164,'Damage costs'!$C$16:$C$43,0))/1000),\"\")","v":""},{"$f":"IFERROR(IF(OR($C$168=FALSE,LEFT($B164,3)<>\"NOX\"),CQ55*INDEX('Damage costs'!$P$16:$P$43,MATCH($B164,'Damage costs'!$C$16:$C$43,0))/1000,CQ55*INDEX('Damage costs'!$T$16:$T$43,MATCH($B164,'Damage costs'!$C$16:$C$43,0))/1000),\"\")","v":""},{"$f":"IFERROR(IF(OR($C$168=FALSE,LEFT($B164,3)<>\"NOX\"),CR55*INDEX('Damage costs'!$P$16:$P$43,MATCH($B164,'Damage costs'!$C$16:$C$43,0))/1000,CR55*INDEX('Damage costs'!$T$16:$T$43,MATCH($B164,'Damage costs'!$C$16:$C$43,0))/1000),\"\")","v":""},{"$f":"IFERROR(IF(OR($C$168=FALSE,LEFT($B164,3)<>\"NOX\"),CS55*INDEX('Damage costs'!$P$16:$P$43,MATCH($B164,'Damage costs'!$C$16:$C$43,0))/1000,CS55*INDEX('Damage costs'!$T$16:$T$43,MATCH($B164,'Damage costs'!$C$16:$C$43,0))/1000),\"\")","v":""},{"$f":"IFERROR(IF(OR($C$168=FALSE,LEFT($B164,3)<>\"NOX\"),CT55*INDEX('Damage costs'!$P$16:$P$43,MATCH($B164,'Damage costs'!$C$16:$C$43,0))/1000,CT55*INDEX('Damage costs'!$T$16:$T$43,MATCH($B164,'Damage costs'!$C$16:$C$43,0))/1000),\"\")","v":""},{"$f":"IFERROR(IF(OR($C$168=FALSE,LEFT($B164,3)<>\"NOX\"),CU55*INDEX('Damage costs'!$P$16:$P$43,MATCH($B164,'Damage costs'!$C$16:$C$43,0))/1000,CU55*INDEX('Damage costs'!$T$16:$T$43,MATCH($B164,'Damage costs'!$C$16:$C$43,0))/1000),\"\")","v":""},{"$f":"IFERROR(IF(OR($C$168=FALSE,LEFT($B164,3)<>\"NOX\"),CV55*INDEX('Damage costs'!$P$16:$P$43,MATCH($B164,'Damage costs'!$C$16:$C$43,0))/1000,CV55*INDEX('Damage costs'!$T$16:$T$43,MATCH($B164,'Damage costs'!$C$16:$C$43,0))/1000),\"\")","v":""},{"$f":"IFERROR(IF(OR($C$168=FALSE,LEFT($B164,3)<>\"NOX\"),CW55*INDEX('Damage costs'!$P$16:$P$43,MATCH($B164,'Damage costs'!$C$16:$C$43,0))/1000,CW55*INDEX('Damage costs'!$T$16:$T$43,MATCH($B164,'Damage costs'!$C$16:$C$43,0))/1000),\"\")","v":""},{"$f":"IFERROR(IF(OR($C$168=FALSE,LEFT($B164,3)<>\"NOX\"),CX55*INDEX('Damage costs'!$P$16:$P$43,MATCH($B164,'Damage costs'!$C$16:$C$43,0))/1000,CX55*INDEX('Damage costs'!$T$16:$T$43,MATCH($B164,'Damage costs'!$C$16:$C$43,0))/1000),\"\")","v":""},{"$f":"IFERROR(IF(OR($C$168=FALSE,LEFT($B164,3)<>\"NOX\"),CY55*INDEX('Damage costs'!$P$16:$P$43,MATCH($B164,'Damage costs'!$C$16:$C$43,0))/1000,CY55*INDEX('Damage costs'!$T$16:$T$43,MATCH($B164,'Damage costs'!$C$16:$C$43,0))/1000),\"\")","v":""}]
[null,0,"£000's",{"$f":"IFERROR(IF(OR($C$168=FALSE,LEFT($B165,3)<>\"NOX\"),D56*INDEX('Damage costs'!$P$16:$P$43,MATCH($B165,'Damage costs'!$C$16:$C$43,0))/1000,D56*INDEX('Damage costs'!$T$16:$T$43,MATCH($B165,'Damage costs'!$C$16:$C$43,0))/1000),\"\")","v":""},{"$f":"IFERROR(IF(OR($C$168=FALSE,LEFT($B165,3)<>\"NOX\"),E56*INDEX('Damage costs'!$P$16:$P$43,MATCH($B165,'Damage costs'!$C$16:$C$43,0))/1000,E56*INDEX('Damage costs'!$T$16:$T$43,MATCH($B165,'Damage costs'!$C$16:$C$43,0))/1000),\"\")","v":""},{"$f":"IFERROR(IF(OR($C$168=FALSE,LEFT($B165,3)<>\"NOX\"),F56*INDEX('Damage costs'!$P$16:$P$43,MATCH($B165,'Damage costs'!$C$16:$C$43,0))/1000,F56*INDEX('Damage costs'!$T$16:$T$43,MATCH($B165,'Damage costs'!$C$16:$C$43,0))/1000),\"\")","v":""},{"$f":"IFERROR(IF(OR($C$168=FALSE,LEFT($B165,3)<>\"NOX\"),G56*INDEX('Damage costs'!$P$16:$P$43,MATCH($B165,'Damage costs'!$C$16:$C$43,0))/1000,G56*INDEX('Damage costs'!$T$16:$T$43,MATCH($B165,'Damage costs'!$C$16:$C$43,0))/1000),\"\")","v":""},{"$f":"IFERROR(IF(OR($C$168=FALSE,LEFT($B165,3)<>\"NOX\"),H56*INDEX('Damage costs'!$P$16:$P$43,MATCH($B165,'Damage costs'!$C$16:$C$43,0))/1000,H56*INDEX('Damage costs'!$T$16:$T$43,MATCH($B165,'Damage costs'!$C$16:$C$43,0))/1000),\"\")","v":""},{"$f":"IFERROR(IF(OR($C$168=FALSE,LEFT($B165,3)<>\"NOX\"),I56*INDEX('Damage costs'!$P$16:$P$43,MATCH($B165,'Damage costs'!$C$16:$C$43,0))/1000,I56*INDEX('Damage costs'!$T$16:$T$43,MATCH($B165,'Damage costs'!$C$16:$C$43,0))/1000),\"\")","v":""},{"$f":"IFERROR(IF(OR($C$168=FALSE,LEFT($B165,3)<>\"NOX\"),J56*INDEX('Damage costs'!$P$16:$P$43,MATCH($B165,'Damage costs'!$C$16:$C$43,0))/1000,J56*INDEX('Damage costs'!$T$16:$T$43,MATCH($B165,'Damage costs'!$C$16:$C$43,0))/1000),\"\")","v":""},{"$f":"IFERROR(IF(OR($C$168=FALSE,LEFT($B165,3)<>\"NOX\"),K56*INDEX('Damage costs'!$P$16:$P$43,MATCH($B165,'Damage costs'!$C$16:$C$43,0))/1000,K56*INDEX('Damage costs'!$T$16:$T$43,MATCH($B165,'Damage costs'!$C$16:$C$43,0))/1000),\"\")","v":""},{"$f":"IFERROR(IF(OR($C$168=FALSE,LEFT($B165,3)<>\"NOX\"),L56*INDEX('Damage costs'!$P$16:$P$43,MATCH($B165,'Damage costs'!$C$16:$C$43,0))/1000,L56*INDEX('Damage costs'!$T$16:$T$43,MATCH($B165,'Damage costs'!$C$16:$C$43,0))/1000),\"\")","v":""},{"$f":"IFERROR(IF(OR($C$168=FALSE,LEFT($B165,3)<>\"NOX\"),M56*INDEX('Damage costs'!$P$16:$P$43,MATCH($B165,'Damage costs'!$C$16:$C$43,0))/1000,M56*INDEX('Damage costs'!$T$16:$T$43,MATCH($B165,'Damage costs'!$C$16:$C$43,0))/1000),\"\")","v":""},{"$f":"IFERROR(IF(OR($C$168=FALSE,LEFT($B165,3)<>\"NOX\"),N56*INDEX('Damage costs'!$P$16:$P$43,MATCH($B165,'Damage costs'!$C$16:$C$43,0))/1000,N56*INDEX('Damage costs'!$T$16:$T$43,MATCH($B165,'Damage costs'!$C$16:$C$43,0))/1000),\"\")","v":""},{"$f":"IFERROR(IF(OR($C$168=FALSE,LEFT($B165,3)<>\"NOX\"),O56*INDEX('Damage costs'!$P$16:$P$43,MATCH($B165,'Damage costs'!$C$16:$C$43,0))/1000,O56*INDEX('Damage costs'!$T$16:$T$43,MATCH($B165,'Damage costs'!$C$16:$C$43,0))/1000),\"\")","v":""},{"$f":"IFERROR(IF(OR($C$168=FALSE,LEFT($B165,3)<>\"NOX\"),P56*INDEX('Damage costs'!$P$16:$P$43,MATCH($B165,'Damage costs'!$C$16:$C$43,0))/1000,P56*INDEX('Damage costs'!$T$16:$T$43,MATCH($B165,'Damage costs'!$C$16:$C$43,0))/1000),\"\")","v":""},{"$f":"IFERROR(IF(OR($C$168=FALSE,LEFT($B165,3)<>\"NOX\"),Q56*INDEX('Damage costs'!$P$16:$P$43,MATCH($B165,'Damage costs'!$C$16:$C$43,0))/1000,Q56*INDEX('Damage costs'!$T$16:$T$43,MATCH($B165,'Damage costs'!$C$16:$C$43,0))/1000),\"\")","v":""},{"$f":"IFERROR(IF(OR($C$168=FALSE,LEFT($B165,3)<>\"NOX\"),R56*INDEX('Damage costs'!$P$16:$P$43,MATCH($B165,'Damage costs'!$C$16:$C$43,0))/1000,R56*INDEX('Damage costs'!$T$16:$T$43,MATCH($B165,'Damage costs'!$C$16:$C$43,0))/1000),\"\")","v":""},{"$f":"IFERROR(IF(OR($C$168=FALSE,LEFT($B165,3)<>\"NOX\"),S56*INDEX('Damage costs'!$P$16:$P$43,MATCH($B165,'Damage costs'!$C$16:$C$43,0))/1000,S56*INDEX('Damage costs'!$T$16:$T$43,MATCH($B165,'Damage costs'!$C$16:$C$43,0))/1000),\"\")","v":""},{"$f":"IFERROR(IF(OR($C$168=FALSE,LEFT($B165,3)<>\"NOX\"),T56*INDEX('Damage costs'!$P$16:$P$43,MATCH($B165,'Damage costs'!$C$16:$C$43,0))/1000,T56*INDEX('Damage costs'!$T$16:$T$43,MATCH($B165,'Damage costs'!$C$16:$C$43,0))/1000),\"\")","v":""},{"$f":"IFERROR(IF(OR($C$168=FALSE,LEFT($B165,3)<>\"NOX\"),U56*INDEX('Damage costs'!$P$16:$P$43,MATCH($B165,'Damage costs'!$C$16:$C$43,0))/1000,U56*INDEX('Damage costs'!$T$16:$T$43,MATCH($B165,'Damage costs'!$C$16:$C$43,0))/1000),\"\")","v":""},{"$f":"IFERROR(IF(OR($C$168=FALSE,LEFT($B165,3)<>\"NOX\"),V56*INDEX('Damage costs'!$P$16:$P$43,MATCH($B165,'Damage costs'!$C$16:$C$43,0))/1000,V56*INDEX('Damage costs'!$T$16:$T$43,MATCH($B165,'Damage costs'!$C$16:$C$43,0))/1000),\"\")","v":""},{"$f":"IFERROR(IF(OR($C$168=FALSE,LEFT($B165,3)<>\"NOX\"),W56*INDEX('Damage costs'!$P$16:$P$43,MATCH($B165,'Damage costs'!$C$16:$C$43,0))/1000,W56*INDEX('Damage costs'!$T$16:$T$43,MATCH($B165,'Damage costs'!$C$16:$C$43,0))/1000),\"\")","v":""},{"$f":"IFERROR(IF(OR($C$168=FALSE,LEFT($B165,3)<>\"NOX\"),X56*INDEX('Damage costs'!$P$16:$P$43,MATCH($B165,'Damage costs'!$C$16:$C$43,0))/1000,X56*INDEX('Damage costs'!$T$16:$T$43,MATCH($B165,'Damage costs'!$C$16:$C$43,0))/1000),\"\")","v":""},{"$f":"IFERROR(IF(OR($C$168=FALSE,LEFT($B165,3)<>\"NOX\"),Y56*INDEX('Damage costs'!$P$16:$P$43,MATCH($B165,'Damage costs'!$C$16:$C$43,0))/1000,Y56*INDEX('Damage costs'!$T$16:$T$43,MATCH($B165,'Damage costs'!$C$16:$C$43,0))/1000),\"\")","v":""},{"$f":"IFERROR(IF(OR($C$168=FALSE,LEFT($B165,3)<>\"NOX\"),Z56*INDEX('Damage costs'!$P$16:$P$43,MATCH($B165,'Damage costs'!$C$16:$C$43,0))/1000,Z56*INDEX('Damage costs'!$T$16:$T$43,MATCH($B165,'Damage costs'!$C$16:$C$43,0))/1000),\"\")","v":""},{"$f":"IFERROR(IF(OR($C$168=FALSE,LEFT($B165,3)<>\"NOX\"),AA56*INDEX('Damage costs'!$P$16:$P$43,MATCH($B165,'Damage costs'!$C$16:$C$43,0))/1000,AA56*INDEX('Damage costs'!$T$16:$T$43,MATCH($B165,'Damage costs'!$C$16:$C$43,0))/1000),\"\")","v":""},{"$f":"IFERROR(IF(OR($C$168=FALSE,LEFT($B165,3)<>\"NOX\"),AB56*INDEX('Damage costs'!$P$16:$P$43,MATCH($B165,'Damage costs'!$C$16:$C$43,0))/1000,AB56*INDEX('Damage costs'!$T$16:$T$43,MATCH($B165,'Damage costs'!$C$16:$C$43,0))/1000),\"\")","v":""},{"$f":"IFERROR(IF(OR($C$168=FALSE,LEFT($B165,3)<>\"NOX\"),AC56*INDEX('Damage costs'!$P$16:$P$43,MATCH($B165,'Damage costs'!$C$16:$C$43,0))/1000,AC56*INDEX('Damage costs'!$T$16:$T$43,MATCH($B165,'Damage costs'!$C$16:$C$43,0))/1000),\"\")","v":""},{"$f":"IFERROR(IF(OR($C$168=FALSE,LEFT($B165,3)<>\"NOX\"),AD56*INDEX('Damage costs'!$P$16:$P$43,MATCH($B165,'Damage costs'!$C$16:$C$43,0))/1000,AD56*INDEX('Damage costs'!$T$16:$T$43,MATCH($B165,'Damage costs'!$C$16:$C$43,0))/1000),\"\")","v":""},{"$f":"IFERROR(IF(OR($C$168=FALSE,LEFT($B165,3)<>\"NOX\"),AE56*INDEX('Damage costs'!$P$16:$P$43,MATCH($B165,'Damage costs'!$C$16:$C$43,0))/1000,AE56*INDEX('Damage costs'!$T$16:$T$43,MATCH($B165,'Damage costs'!$C$16:$C$43,0))/1000),\"\")","v":""},{"$f":"IFERROR(IF(OR($C$168=FALSE,LEFT($B165,3)<>\"NOX\"),AF56*INDEX('Damage costs'!$P$16:$P$43,MATCH($B165,'Damage costs'!$C$16:$C$43,0))/1000,AF56*INDEX('Damage costs'!$T$16:$T$43,MATCH($B165,'Damage costs'!$C$16:$C$43,0))/1000),\"\")","v":""},{"$f":"IFERROR(IF(OR($C$168=FALSE,LEFT($B165,3)<>\"NOX\"),AG56*INDEX('Damage costs'!$P$16:$P$43,MATCH($B165,'Damage costs'!$C$16:$C$43,0))/1000,AG56*INDEX('Damage costs'!$T$16:$T$43,MATCH($B165,'Damage costs'!$C$16:$C$43,0))/1000),\"\")","v":""},{"$f":"IFERROR(IF(OR($C$168=FALSE,LEFT($B165,3)<>\"NOX\"),AH56*INDEX('Damage costs'!$P$16:$P$43,MATCH($B165,'Damage costs'!$C$16:$C$43,0))/1000,AH56*INDEX('Damage costs'!$T$16:$T$43,MATCH($B165,'Damage costs'!$C$16:$C$43,0))/1000),\"\")","v":""},{"$f":"IFERROR(IF(OR($C$168=FALSE,LEFT($B165,3)<>\"NOX\"),AI56*INDEX('Damage costs'!$P$16:$P$43,MATCH($B165,'Damage costs'!$C$16:$C$43,0))/1000,AI56*INDEX('Damage costs'!$T$16:$T$43,MATCH($B165,'Damage costs'!$C$16:$C$43,0))/1000),\"\")","v":""},{"$f":"IFERROR(IF(OR($C$168=FALSE,LEFT($B165,3)<>\"NOX\"),AJ56*INDEX('Damage costs'!$P$16:$P$43,MATCH($B165,'Damage costs'!$C$16:$C$43,0))/1000,AJ56*INDEX('Damage costs'!$T$16:$T$43,MATCH($B165,'Damage costs'!$C$16:$C$43,0))/1000),\"\")","v":""},{"$f":"IFERROR(IF(OR($C$168=FALSE,LEFT($B165,3)<>\"NOX\"),AK56*INDEX('Damage costs'!$P$16:$P$43,MATCH($B165,'Damage costs'!$C$16:$C$43,0))/1000,AK56*INDEX('Damage costs'!$T$16:$T$43,MATCH($B165,'Damage costs'!$C$16:$C$43,0))/1000),\"\")","v":""},{"$f":"IFERROR(IF(OR($C$168=FALSE,LEFT($B165,3)<>\"NOX\"),AL56*INDEX('Damage costs'!$P$16:$P$43,MATCH($B165,'Damage costs'!$C$16:$C$43,0))/1000,AL56*INDEX('Damage costs'!$T$16:$T$43,MATCH($B165,'Damage costs'!$C$16:$C$43,0))/1000),\"\")","v":""},{"$f":"IFERROR(IF(OR($C$168=FALSE,LEFT($B165,3)<>\"NOX\"),AM56*INDEX('Damage costs'!$P$16:$P$43,MATCH($B165,'Damage costs'!$C$16:$C$43,0))/1000,AM56*INDEX('Damage costs'!$T$16:$T$43,MATCH($B165,'Damage costs'!$C$16:$C$43,0))/1000),\"\")","v":""},{"$f":"IFERROR(IF(OR($C$168=FALSE,LEFT($B165,3)<>\"NOX\"),AN56*INDEX('Damage costs'!$P$16:$P$43,MATCH($B165,'Damage costs'!$C$16:$C$43,0))/1000,AN56*INDEX('Damage costs'!$T$16:$T$43,MATCH($B165,'Damage costs'!$C$16:$C$43,0))/1000),\"\")","v":""},{"$f":"IFERROR(IF(OR($C$168=FALSE,LEFT($B165,3)<>\"NOX\"),AO56*INDEX('Damage costs'!$P$16:$P$43,MATCH($B165,'Damage costs'!$C$16:$C$43,0))/1000,AO56*INDEX('Damage costs'!$T$16:$T$43,MATCH($B165,'Damage costs'!$C$16:$C$43,0))/1000),\"\")","v":""},{"$f":"IFERROR(IF(OR($C$168=FALSE,LEFT($B165,3)<>\"NOX\"),AP56*INDEX('Damage costs'!$P$16:$P$43,MATCH($B165,'Damage costs'!$C$16:$C$43,0))/1000,AP56*INDEX('Damage costs'!$T$16:$T$43,MATCH($B165,'Damage costs'!$C$16:$C$43,0))/1000),\"\")","v":""},{"$f":"IFERROR(IF(OR($C$168=FALSE,LEFT($B165,3)<>\"NOX\"),AQ56*INDEX('Damage costs'!$P$16:$P$43,MATCH($B165,'Damage costs'!$C$16:$C$43,0))/1000,AQ56*INDEX('Damage costs'!$T$16:$T$43,MATCH($B165,'Damage costs'!$C$16:$C$43,0))/1000),\"\")","v":""},{"$f":"IFERROR(IF(OR($C$168=FALSE,LEFT($B165,3)<>\"NOX\"),AR56*INDEX('Damage costs'!$P$16:$P$43,MATCH($B165,'Damage costs'!$C$16:$C$43,0))/1000,AR56*INDEX('Damage costs'!$T$16:$T$43,MATCH($B165,'Damage costs'!$C$16:$C$43,0))/1000),\"\")","v":""},{"$f":"IFERROR(IF(OR($C$168=FALSE,LEFT($B165,3)<>\"NOX\"),AS56*INDEX('Damage costs'!$P$16:$P$43,MATCH($B165,'Damage costs'!$C$16:$C$43,0))/1000,AS56*INDEX('Damage costs'!$T$16:$T$43,MATCH($B165,'Damage costs'!$C$16:$C$43,0))/1000),\"\")","v":""},{"$f":"IFERROR(IF(OR($C$168=FALSE,LEFT($B165,3)<>\"NOX\"),AT56*INDEX('Damage costs'!$P$16:$P$43,MATCH($B165,'Damage costs'!$C$16:$C$43,0))/1000,AT56*INDEX('Damage costs'!$T$16:$T$43,MATCH($B165,'Damage costs'!$C$16:$C$43,0))/1000),\"\")","v":""},{"$f":"IFERROR(IF(OR($C$168=FALSE,LEFT($B165,3)<>\"NOX\"),AU56*INDEX('Damage costs'!$P$16:$P$43,MATCH($B165,'Damage costs'!$C$16:$C$43,0))/1000,AU56*INDEX('Damage costs'!$T$16:$T$43,MATCH($B165,'Damage costs'!$C$16:$C$43,0))/1000),\"\")","v":""},{"$f":"IFERROR(IF(OR($C$168=FALSE,LEFT($B165,3)<>\"NOX\"),AV56*INDEX('Damage costs'!$P$16:$P$43,MATCH($B165,'Damage costs'!$C$16:$C$43,0))/1000,AV56*INDEX('Damage costs'!$T$16:$T$43,MATCH($B165,'Damage costs'!$C$16:$C$43,0))/1000),\"\")","v":""},{"$f":"IFERROR(IF(OR($C$168=FALSE,LEFT($B165,3)<>\"NOX\"),AW56*INDEX('Damage costs'!$P$16:$P$43,MATCH($B165,'Damage costs'!$C$16:$C$43,0))/1000,AW56*INDEX('Damage costs'!$T$16:$T$43,MATCH($B165,'Damage costs'!$C$16:$C$43,0))/1000),\"\")","v":""},{"$f":"IFERROR(IF(OR($C$168=FALSE,LEFT($B165,3)<>\"NOX\"),AX56*INDEX('Damage costs'!$P$16:$P$43,MATCH($B165,'Damage costs'!$C$16:$C$43,0))/1000,AX56*INDEX('Damage costs'!$T$16:$T$43,MATCH($B165,'Damage costs'!$C$16:$C$43,0))/1000),\"\")","v":""},{"$f":"IFERROR(IF(OR($C$168=FALSE,LEFT($B165,3)<>\"NOX\"),AY56*INDEX('Damage costs'!$P$16:$P$43,MATCH($B165,'Damage costs'!$C$16:$C$43,0))/1000,AY56*INDEX('Damage costs'!$T$16:$T$43,MATCH($B165,'Damage costs'!$C$16:$C$43,0))/1000),\"\")","v":""},{"$f":"IFERROR(IF(OR($C$168=FALSE,LEFT($B165,3)<>\"NOX\"),AZ56*INDEX('Damage costs'!$P$16:$P$43,MATCH($B165,'Damage costs'!$C$16:$C$43,0))/1000,AZ56*INDEX('Damage costs'!$T$16:$T$43,MATCH($B165,'Damage costs'!$C$16:$C$43,0))/1000),\"\")","v":""},{"$f":"IFERROR(IF(OR($C$168=FALSE,LEFT($B165,3)<>\"NOX\"),BA56*INDEX('Damage costs'!$P$16:$P$43,MATCH($B165,'Damage costs'!$C$16:$C$43,0))/1000,BA56*INDEX('Damage costs'!$T$16:$T$43,MATCH($B165,'Damage costs'!$C$16:$C$43,0))/1000),\"\")","v":""},{"$f":"IFERROR(IF(OR($C$168=FALSE,LEFT($B165,3)<>\"NOX\"),BB56*INDEX('Damage costs'!$P$16:$P$43,MATCH($B165,'Damage costs'!$C$16:$C$43,0))/1000,BB56*INDEX('Damage costs'!$T$16:$T$43,MATCH($B165,'Damage costs'!$C$16:$C$43,0))/1000),\"\")","v":""},{"$f":"IFERROR(IF(OR($C$168=FALSE,LEFT($B165,3)<>\"NOX\"),BC56*INDEX('Damage costs'!$P$16:$P$43,MATCH($B165,'Damage costs'!$C$16:$C$43,0))/1000,BC56*INDEX('Damage costs'!$T$16:$T$43,MATCH($B165,'Damage costs'!$C$16:$C$43,0))/1000),\"\")","v":""},{"$f":"IFERROR(IF(OR($C$168=FALSE,LEFT($B165,3)<>\"NOX\"),BD56*INDEX('Damage costs'!$P$16:$P$43,MATCH($B165,'Damage costs'!$C$16:$C$43,0))/1000,BD56*INDEX('Damage costs'!$T$16:$T$43,MATCH($B165,'Damage costs'!$C$16:$C$43,0))/1000),\"\")","v":""},{"$f":"IFERROR(IF(OR($C$168=FALSE,LEFT($B165,3)<>\"NOX\"),BE56*INDEX('Damage costs'!$P$16:$P$43,MATCH($B165,'Damage costs'!$C$16:$C$43,0))/1000,BE56*INDEX('Damage costs'!$T$16:$T$43,MATCH($B165,'Damage costs'!$C$16:$C$43,0))/1000),\"\")","v":""},{"$f":"IFERROR(IF(OR($C$168=FALSE,LEFT($B165,3)<>\"NOX\"),BF56*INDEX('Damage costs'!$P$16:$P$43,MATCH($B165,'Damage costs'!$C$16:$C$43,0))/1000,BF56*INDEX('Damage costs'!$T$16:$T$43,MATCH($B165,'Damage costs'!$C$16:$C$43,0))/1000),\"\")","v":""},{"$f":"IFERROR(IF(OR($C$168=FALSE,LEFT($B165,3)<>\"NOX\"),BG56*INDEX('Damage costs'!$P$16:$P$43,MATCH($B165,'Damage costs'!$C$16:$C$43,0))/1000,BG56*INDEX('Damage costs'!$T$16:$T$43,MATCH($B165,'Damage costs'!$C$16:$C$43,0))/1000),\"\")","v":""},{"$f":"IFERROR(IF(OR($C$168=FALSE,LEFT($B165,3)<>\"NOX\"),BH56*INDEX('Damage costs'!$P$16:$P$43,MATCH($B165,'Damage costs'!$C$16:$C$43,0))/1000,BH56*INDEX('Damage costs'!$T$16:$T$43,MATCH($B165,'Damage costs'!$C$16:$C$43,0))/1000),\"\")","v":""},{"$f":"IFERROR(IF(OR($C$168=FALSE,LEFT($B165,3)<>\"NOX\"),BI56*INDEX('Damage costs'!$P$16:$P$43,MATCH($B165,'Damage costs'!$C$16:$C$43,0))/1000,BI56*INDEX('Damage costs'!$T$16:$T$43,MATCH($B165,'Damage costs'!$C$16:$C$43,0))/1000),\"\")","v":""},{"$f":"IFERROR(IF(OR($C$168=FALSE,LEFT($B165,3)<>\"NOX\"),BJ56*INDEX('Damage costs'!$P$16:$P$43,MATCH($B165,'Damage costs'!$C$16:$C$43,0))/1000,BJ56*INDEX('Damage costs'!$T$16:$T$43,MATCH($B165,'Damage costs'!$C$16:$C$43,0))/1000),\"\")","v":""},{"$f":"IFERROR(IF(OR($C$168=FALSE,LEFT($B165,3)<>\"NOX\"),BK56*INDEX('Damage costs'!$P$16:$P$43,MATCH($B165,'Damage costs'!$C$16:$C$43,0))/1000,BK56*INDEX('Damage costs'!$T$16:$T$43,MATCH($B165,'Damage costs'!$C$16:$C$43,0))/1000),\"\")","v":""},{"$f":"IFERROR(IF(OR($C$168=FALSE,LEFT($B165,3)<>\"NOX\"),BL56*INDEX('Damage costs'!$P$16:$P$43,MATCH($B165,'Damage costs'!$C$16:$C$43,0))/1000,BL56*INDEX('Damage costs'!$T$16:$T$43,MATCH($B165,'Damage costs'!$C$16:$C$43,0))/1000),\"\")","v":""},{"$f":"IFERROR(IF(OR($C$168=FALSE,LEFT($B165,3)<>\"NOX\"),BM56*INDEX('Damage costs'!$P$16:$P$43,MATCH($B165,'Damage costs'!$C$16:$C$43,0))/1000,BM56*INDEX('Damage costs'!$T$16:$T$43,MATCH($B165,'Damage costs'!$C$16:$C$43,0))/1000),\"\")","v":""},{"$f":"IFERROR(IF(OR($C$168=FALSE,LEFT($B165,3)<>\"NOX\"),BN56*INDEX('Damage costs'!$P$16:$P$43,MATCH($B165,'Damage costs'!$C$16:$C$43,0))/1000,BN56*INDEX('Damage costs'!$T$16:$T$43,MATCH($B165,'Damage costs'!$C$16:$C$43,0))/1000),\"\")","v":""},{"$f":"IFERROR(IF(OR($C$168=FALSE,LEFT($B165,3)<>\"NOX\"),BO56*INDEX('Damage costs'!$P$16:$P$43,MATCH($B165,'Damage costs'!$C$16:$C$43,0))/1000,BO56*INDEX('Damage costs'!$T$16:$T$43,MATCH($B165,'Damage costs'!$C$16:$C$43,0))/1000),\"\")","v":""},{"$f":"IFERROR(IF(OR($C$168=FALSE,LEFT($B165,3)<>\"NOX\"),BP56*INDEX('Damage costs'!$P$16:$P$43,MATCH($B165,'Damage costs'!$C$16:$C$43,0))/1000,BP56*INDEX('Damage costs'!$T$16:$T$43,MATCH($B165,'Damage costs'!$C$16:$C$43,0))/1000),\"\")","v":""},{"$f":"IFERROR(IF(OR($C$168=FALSE,LEFT($B165,3)<>\"NOX\"),BQ56*INDEX('Damage costs'!$P$16:$P$43,MATCH($B165,'Damage costs'!$C$16:$C$43,0))/1000,BQ56*INDEX('Damage costs'!$T$16:$T$43,MATCH($B165,'Damage costs'!$C$16:$C$43,0))/1000),\"\")","v":""},{"$f":"IFERROR(IF(OR($C$168=FALSE,LEFT($B165,3)<>\"NOX\"),BR56*INDEX('Damage costs'!$P$16:$P$43,MATCH($B165,'Damage costs'!$C$16:$C$43,0))/1000,BR56*INDEX('Damage costs'!$T$16:$T$43,MATCH($B165,'Damage costs'!$C$16:$C$43,0))/1000),\"\")","v":""},{"$f":"IFERROR(IF(OR($C$168=FALSE,LEFT($B165,3)<>\"NOX\"),BS56*INDEX('Damage costs'!$P$16:$P$43,MATCH($B165,'Damage costs'!$C$16:$C$43,0))/1000,BS56*INDEX('Damage costs'!$T$16:$T$43,MATCH($B165,'Damage costs'!$C$16:$C$43,0))/1000),\"\")","v":""},{"$f":"IFERROR(IF(OR($C$168=FALSE,LEFT($B165,3)<>\"NOX\"),BT56*INDEX('Damage costs'!$P$16:$P$43,MATCH($B165,'Damage costs'!$C$16:$C$43,0))/1000,BT56*INDEX('Damage costs'!$T$16:$T$43,MATCH($B165,'Damage costs'!$C$16:$C$43,0))/1000),\"\")","v":""},{"$f":"IFERROR(IF(OR($C$168=FALSE,LEFT($B165,3)<>\"NOX\"),BU56*INDEX('Damage costs'!$P$16:$P$43,MATCH($B165,'Damage costs'!$C$16:$C$43,0))/1000,BU56*INDEX('Damage costs'!$T$16:$T$43,MATCH($B165,'Damage costs'!$C$16:$C$43,0))/1000),\"\")","v":""},{"$f":"IFERROR(IF(OR($C$168=FALSE,LEFT($B165,3)<>\"NOX\"),BV56*INDEX('Damage costs'!$P$16:$P$43,MATCH($B165,'Damage costs'!$C$16:$C$43,0))/1000,BV56*INDEX('Damage costs'!$T$16:$T$43,MATCH($B165,'Damage costs'!$C$16:$C$43,0))/1000),\"\")","v":""},{"$f":"IFERROR(IF(OR($C$168=FALSE,LEFT($B165,3)<>\"NOX\"),BW56*INDEX('Damage costs'!$P$16:$P$43,MATCH($B165,'Damage costs'!$C$16:$C$43,0))/1000,BW56*INDEX('Damage costs'!$T$16:$T$43,MATCH($B165,'Damage costs'!$C$16:$C$43,0))/1000),\"\")","v":""},{"$f":"IFERROR(IF(OR($C$168=FALSE,LEFT($B165,3)<>\"NOX\"),BX56*INDEX('Damage costs'!$P$16:$P$43,MATCH($B165,'Damage costs'!$C$16:$C$43,0))/1000,BX56*INDEX('Damage costs'!$T$16:$T$43,MATCH($B165,'Damage costs'!$C$16:$C$43,0))/1000),\"\")","v":""},{"$f":"IFERROR(IF(OR($C$168=FALSE,LEFT($B165,3)<>\"NOX\"),BY56*INDEX('Damage costs'!$P$16:$P$43,MATCH($B165,'Damage costs'!$C$16:$C$43,0))/1000,BY56*INDEX('Damage costs'!$T$16:$T$43,MATCH($B165,'Damage costs'!$C$16:$C$43,0))/1000),\"\")","v":""},{"$f":"IFERROR(IF(OR($C$168=FALSE,LEFT($B165,3)<>\"NOX\"),BZ56*INDEX('Damage costs'!$P$16:$P$43,MATCH($B165,'Damage costs'!$C$16:$C$43,0))/1000,BZ56*INDEX('Damage costs'!$T$16:$T$43,MATCH($B165,'Damage costs'!$C$16:$C$43,0))/1000),\"\")","v":""},{"$f":"IFERROR(IF(OR($C$168=FALSE,LEFT($B165,3)<>\"NOX\"),CA56*INDEX('Damage costs'!$P$16:$P$43,MATCH($B165,'Damage costs'!$C$16:$C$43,0))/1000,CA56*INDEX('Damage costs'!$T$16:$T$43,MATCH($B165,'Damage costs'!$C$16:$C$43,0))/1000),\"\")","v":""},{"$f":"IFERROR(IF(OR($C$168=FALSE,LEFT($B165,3)<>\"NOX\"),CB56*INDEX('Damage costs'!$P$16:$P$43,MATCH($B165,'Damage costs'!$C$16:$C$43,0))/1000,CB56*INDEX('Damage costs'!$T$16:$T$43,MATCH($B165,'Damage costs'!$C$16:$C$43,0))/1000),\"\")","v":""},{"$f":"IFERROR(IF(OR($C$168=FALSE,LEFT($B165,3)<>\"NOX\"),CC56*INDEX('Damage costs'!$P$16:$P$43,MATCH($B165,'Damage costs'!$C$16:$C$43,0))/1000,CC56*INDEX('Damage costs'!$T$16:$T$43,MATCH($B165,'Damage costs'!$C$16:$C$43,0))/1000),\"\")","v":""},{"$f":"IFERROR(IF(OR($C$168=FALSE,LEFT($B165,3)<>\"NOX\"),CD56*INDEX('Damage costs'!$P$16:$P$43,MATCH($B165,'Damage costs'!$C$16:$C$43,0))/1000,CD56*INDEX('Damage costs'!$T$16:$T$43,MATCH($B165,'Damage costs'!$C$16:$C$43,0))/1000),\"\")","v":""},{"$f":"IFERROR(IF(OR($C$168=FALSE,LEFT($B165,3)<>\"NOX\"),CE56*INDEX('Damage costs'!$P$16:$P$43,MATCH($B165,'Damage costs'!$C$16:$C$43,0))/1000,CE56*INDEX('Damage costs'!$T$16:$T$43,MATCH($B165,'Damage costs'!$C$16:$C$43,0))/1000),\"\")","v":""},{"$f":"IFERROR(IF(OR($C$168=FALSE,LEFT($B165,3)<>\"NOX\"),CF56*INDEX('Damage costs'!$P$16:$P$43,MATCH($B165,'Damage costs'!$C$16:$C$43,0))/1000,CF56*INDEX('Damage costs'!$T$16:$T$43,MATCH($B165,'Damage costs'!$C$16:$C$43,0))/1000),\"\")","v":""},{"$f":"IFERROR(IF(OR($C$168=FALSE,LEFT($B165,3)<>\"NOX\"),CG56*INDEX('Damage costs'!$P$16:$P$43,MATCH($B165,'Damage costs'!$C$16:$C$43,0))/1000,CG56*INDEX('Damage costs'!$T$16:$T$43,MATCH($B165,'Damage costs'!$C$16:$C$43,0))/1000),\"\")","v":""},{"$f":"IFERROR(IF(OR($C$168=FALSE,LEFT($B165,3)<>\"NOX\"),CH56*INDEX('Damage costs'!$P$16:$P$43,MATCH($B165,'Damage costs'!$C$16:$C$43,0))/1000,CH56*INDEX('Damage costs'!$T$16:$T$43,MATCH($B165,'Damage costs'!$C$16:$C$43,0))/1000),\"\")","v":""},{"$f":"IFERROR(IF(OR($C$168=FALSE,LEFT($B165,3)<>\"NOX\"),CI56*INDEX('Damage costs'!$P$16:$P$43,MATCH($B165,'Damage costs'!$C$16:$C$43,0))/1000,CI56*INDEX('Damage costs'!$T$16:$T$43,MATCH($B165,'Damage costs'!$C$16:$C$43,0))/1000),\"\")","v":""},{"$f":"IFERROR(IF(OR($C$168=FALSE,LEFT($B165,3)<>\"NOX\"),CJ56*INDEX('Damage costs'!$P$16:$P$43,MATCH($B165,'Damage costs'!$C$16:$C$43,0))/1000,CJ56*INDEX('Damage costs'!$T$16:$T$43,MATCH($B165,'Damage costs'!$C$16:$C$43,0))/1000),\"\")","v":""},{"$f":"IFERROR(IF(OR($C$168=FALSE,LEFT($B165,3)<>\"NOX\"),CK56*INDEX('Damage costs'!$P$16:$P$43,MATCH($B165,'Damage costs'!$C$16:$C$43,0))/1000,CK56*INDEX('Damage costs'!$T$16:$T$43,MATCH($B165,'Damage costs'!$C$16:$C$43,0))/1000),\"\")","v":""},{"$f":"IFERROR(IF(OR($C$168=FALSE,LEFT($B165,3)<>\"NOX\"),CL56*INDEX('Damage costs'!$P$16:$P$43,MATCH($B165,'Damage costs'!$C$16:$C$43,0))/1000,CL56*INDEX('Damage costs'!$T$16:$T$43,MATCH($B165,'Damage costs'!$C$16:$C$43,0))/1000),\"\")","v":""},{"$f":"IFERROR(IF(OR($C$168=FALSE,LEFT($B165,3)<>\"NOX\"),CM56*INDEX('Damage costs'!$P$16:$P$43,MATCH($B165,'Damage costs'!$C$16:$C$43,0))/1000,CM56*INDEX('Damage costs'!$T$16:$T$43,MATCH($B165,'Damage costs'!$C$16:$C$43,0))/1000),\"\")","v":""},{"$f":"IFERROR(IF(OR($C$168=FALSE,LEFT($B165,3)<>\"NOX\"),CN56*INDEX('Damage costs'!$P$16:$P$43,MATCH($B165,'Damage costs'!$C$16:$C$43,0))/1000,CN56*INDEX('Damage costs'!$T$16:$T$43,MATCH($B165,'Damage costs'!$C$16:$C$43,0))/1000),\"\")","v":""},{"$f":"IFERROR(IF(OR($C$168=FALSE,LEFT($B165,3)<>\"NOX\"),CO56*INDEX('Damage costs'!$P$16:$P$43,MATCH($B165,'Damage costs'!$C$16:$C$43,0))/1000,CO56*INDEX('Damage costs'!$T$16:$T$43,MATCH($B165,'Damage costs'!$C$16:$C$43,0))/1000),\"\")","v":""},{"$f":"IFERROR(IF(OR($C$168=FALSE,LEFT($B165,3)<>\"NOX\"),CP56*INDEX('Damage costs'!$P$16:$P$43,MATCH($B165,'Damage costs'!$C$16:$C$43,0))/1000,CP56*INDEX('Damage costs'!$T$16:$T$43,MATCH($B165,'Damage costs'!$C$16:$C$43,0))/1000),\"\")","v":""},{"$f":"IFERROR(IF(OR($C$168=FALSE,LEFT($B165,3)<>\"NOX\"),CQ56*INDEX('Damage costs'!$P$16:$P$43,MATCH($B165,'Damage costs'!$C$16:$C$43,0))/1000,CQ56*INDEX('Damage costs'!$T$16:$T$43,MATCH($B165,'Damage costs'!$C$16:$C$43,0))/1000),\"\")","v":""},{"$f":"IFERROR(IF(OR($C$168=FALSE,LEFT($B165,3)<>\"NOX\"),CR56*INDEX('Damage costs'!$P$16:$P$43,MATCH($B165,'Damage costs'!$C$16:$C$43,0))/1000,CR56*INDEX('Damage costs'!$T$16:$T$43,MATCH($B165,'Damage costs'!$C$16:$C$43,0))/1000),\"\")","v":""},{"$f":"IFERROR(IF(OR($C$168=FALSE,LEFT($B165,3)<>\"NOX\"),CS56*INDEX('Damage costs'!$P$16:$P$43,MATCH($B165,'Damage costs'!$C$16:$C$43,0))/1000,CS56*INDEX('Damage costs'!$T$16:$T$43,MATCH($B165,'Damage costs'!$C$16:$C$43,0))/1000),\"\")","v":""},{"$f":"IFERROR(IF(OR($C$168=FALSE,LEFT($B165,3)<>\"NOX\"),CT56*INDEX('Damage costs'!$P$16:$P$43,MATCH($B165,'Damage costs'!$C$16:$C$43,0))/1000,CT56*INDEX('Damage costs'!$T$16:$T$43,MATCH($B165,'Damage costs'!$C$16:$C$43,0))/1000),\"\")","v":""},{"$f":"IFERROR(IF(OR($C$168=FALSE,LEFT($B165,3)<>\"NOX\"),CU56*INDEX('Damage costs'!$P$16:$P$43,MATCH($B165,'Damage costs'!$C$16:$C$43,0))/1000,CU56*INDEX('Damage costs'!$T$16:$T$43,MATCH($B165,'Damage costs'!$C$16:$C$43,0))/1000),\"\")","v":""},{"$f":"IFERROR(IF(OR($C$168=FALSE,LEFT($B165,3)<>\"NOX\"),CV56*INDEX('Damage costs'!$P$16:$P$43,MATCH($B165,'Damage costs'!$C$16:$C$43,0))/1000,CV56*INDEX('Damage costs'!$T$16:$T$43,MATCH($B165,'Damage costs'!$C$16:$C$43,0))/1000),\"\")","v":""},{"$f":"IFERROR(IF(OR($C$168=FALSE,LEFT($B165,3)<>\"NOX\"),CW56*INDEX('Damage costs'!$P$16:$P$43,MATCH($B165,'Damage costs'!$C$16:$C$43,0))/1000,CW56*INDEX('Damage costs'!$T$16:$T$43,MATCH($B165,'Damage costs'!$C$16:$C$43,0))/1000),\"\")","v":""},{"$f":"IFERROR(IF(OR($C$168=FALSE,LEFT($B165,3)<>\"NOX\"),CX56*INDEX('Damage costs'!$P$16:$P$43,MATCH($B165,'Damage costs'!$C$16:$C$43,0))/1000,CX56*INDEX('Damage costs'!$T$16:$T$43,MATCH($B165,'Damage costs'!$C$16:$C$43,0))/1000),\"\")","v":""},{"$f":"IFERROR(IF(OR($C$168=FALSE,LEFT($B165,3)<>\"NOX\"),CY56*INDEX('Damage costs'!$P$16:$P$43,MATCH($B165,'Damage costs'!$C$16:$C$43,0))/1000,CY56*INDEX('Damage costs'!$T$16:$T$43,MATCH($B165,'Damage costs'!$C$16:$C$43,0))/1000),\"\")","v":""}]
[null,0,"£000's",{"$f":"IFERROR(IF(OR($C$168=FALSE,LEFT($B166,3)<>\"NOX\"),D57*INDEX('Damage costs'!$P$16:$P$43,MATCH($B166,'Damage costs'!$C$16:$C$43,0))/1000,D57*INDEX('Damage costs'!$T$16:$T$43,MATCH($B166,'Damage costs'!$C$16:$C$43,0))/1000),\"\")","v":""},{"$f":"IFERROR(IF(OR($C$168=FALSE,LEFT($B166,3)<>\"NOX\"),E57*INDEX('Damage costs'!$P$16:$P$43,MATCH($B166,'Damage costs'!$C$16:$C$43,0))/1000,E57*INDEX('Damage costs'!$T$16:$T$43,MATCH($B166,'Damage costs'!$C$16:$C$43,0))/1000),\"\")","v":""},{"$f":"IFERROR(IF(OR($C$168=FALSE,LEFT($B166,3)<>\"NOX\"),F57*INDEX('Damage costs'!$P$16:$P$43,MATCH($B166,'Damage costs'!$C$16:$C$43,0))/1000,F57*INDEX('Damage costs'!$T$16:$T$43,MATCH($B166,'Damage costs'!$C$16:$C$43,0))/1000),\"\")","v":""},{"$f":"IFERROR(IF(OR($C$168=FALSE,LEFT($B166,3)<>\"NOX\"),G57*INDEX('Damage costs'!$P$16:$P$43,MATCH($B166,'Damage costs'!$C$16:$C$43,0))/1000,G57*INDEX('Damage costs'!$T$16:$T$43,MATCH($B166,'Damage costs'!$C$16:$C$43,0))/1000),\"\")","v":""},{"$f":"IFERROR(IF(OR($C$168=FALSE,LEFT($B166,3)<>\"NOX\"),H57*INDEX('Damage costs'!$P$16:$P$43,MATCH($B166,'Damage costs'!$C$16:$C$43,0))/1000,H57*INDEX('Damage costs'!$T$16:$T$43,MATCH($B166,'Damage costs'!$C$16:$C$43,0))/1000),\"\")","v":""},{"$f":"IFERROR(IF(OR($C$168=FALSE,LEFT($B166,3)<>\"NOX\"),I57*INDEX('Damage costs'!$P$16:$P$43,MATCH($B166,'Damage costs'!$C$16:$C$43,0))/1000,I57*INDEX('Damage costs'!$T$16:$T$43,MATCH($B166,'Damage costs'!$C$16:$C$43,0))/1000),\"\")","v":""},{"$f":"IFERROR(IF(OR($C$168=FALSE,LEFT($B166,3)<>\"NOX\"),J57*INDEX('Damage costs'!$P$16:$P$43,MATCH($B166,'Damage costs'!$C$16:$C$43,0))/1000,J57*INDEX('Damage costs'!$T$16:$T$43,MATCH($B166,'Damage costs'!$C$16:$C$43,0))/1000),\"\")","v":""},{"$f":"IFERROR(IF(OR($C$168=FALSE,LEFT($B166,3)<>\"NOX\"),K57*INDEX('Damage costs'!$P$16:$P$43,MATCH($B166,'Damage costs'!$C$16:$C$43,0))/1000,K57*INDEX('Damage costs'!$T$16:$T$43,MATCH($B166,'Damage costs'!$C$16:$C$43,0))/1000),\"\")","v":""},{"$f":"IFERROR(IF(OR($C$168=FALSE,LEFT($B166,3)<>\"NOX\"),L57*INDEX('Damage costs'!$P$16:$P$43,MATCH($B166,'Damage costs'!$C$16:$C$43,0))/1000,L57*INDEX('Damage costs'!$T$16:$T$43,MATCH($B166,'Damage costs'!$C$16:$C$43,0))/1000),\"\")","v":""},{"$f":"IFERROR(IF(OR($C$168=FALSE,LEFT($B166,3)<>\"NOX\"),M57*INDEX('Damage costs'!$P$16:$P$43,MATCH($B166,'Damage costs'!$C$16:$C$43,0))/1000,M57*INDEX('Damage costs'!$T$16:$T$43,MATCH($B166,'Damage costs'!$C$16:$C$43,0))/1000),\"\")","v":""},{"$f":"IFERROR(IF(OR($C$168=FALSE,LEFT($B166,3)<>\"NOX\"),N57*INDEX('Damage costs'!$P$16:$P$43,MATCH($B166,'Damage costs'!$C$16:$C$43,0))/1000,N57*INDEX('Damage costs'!$T$16:$T$43,MATCH($B166,'Damage costs'!$C$16:$C$43,0))/1000),\"\")","v":""},{"$f":"IFERROR(IF(OR($C$168=FALSE,LEFT($B166,3)<>\"NOX\"),O57*INDEX('Damage costs'!$P$16:$P$43,MATCH($B166,'Damage costs'!$C$16:$C$43,0))/1000,O57*INDEX('Damage costs'!$T$16:$T$43,MATCH($B166,'Damage costs'!$C$16:$C$43,0))/1000),\"\")","v":""},{"$f":"IFERROR(IF(OR($C$168=FALSE,LEFT($B166,3)<>\"NOX\"),P57*INDEX('Damage costs'!$P$16:$P$43,MATCH($B166,'Damage costs'!$C$16:$C$43,0))/1000,P57*INDEX('Damage costs'!$T$16:$T$43,MATCH($B166,'Damage costs'!$C$16:$C$43,0))/1000),\"\")","v":""},{"$f":"IFERROR(IF(OR($C$168=FALSE,LEFT($B166,3)<>\"NOX\"),Q57*INDEX('Damage costs'!$P$16:$P$43,MATCH($B166,'Damage costs'!$C$16:$C$43,0))/1000,Q57*INDEX('Damage costs'!$T$16:$T$43,MATCH($B166,'Damage costs'!$C$16:$C$43,0))/1000),\"\")","v":""},{"$f":"IFERROR(IF(OR($C$168=FALSE,LEFT($B166,3)<>\"NOX\"),R57*INDEX('Damage costs'!$P$16:$P$43,MATCH($B166,'Damage costs'!$C$16:$C$43,0))/1000,R57*INDEX('Damage costs'!$T$16:$T$43,MATCH($B166,'Damage costs'!$C$16:$C$43,0))/1000),\"\")","v":""},{"$f":"IFERROR(IF(OR($C$168=FALSE,LEFT($B166,3)<>\"NOX\"),S57*INDEX('Damage costs'!$P$16:$P$43,MATCH($B166,'Damage costs'!$C$16:$C$43,0))/1000,S57*INDEX('Damage costs'!$T$16:$T$43,MATCH($B166,'Damage costs'!$C$16:$C$43,0))/1000),\"\")","v":""},{"$f":"IFERROR(IF(OR($C$168=FALSE,LEFT($B166,3)<>\"NOX\"),T57*INDEX('Damage costs'!$P$16:$P$43,MATCH($B166,'Damage costs'!$C$16:$C$43,0))/1000,T57*INDEX('Damage costs'!$T$16:$T$43,MATCH($B166,'Damage costs'!$C$16:$C$43,0))/1000),\"\")","v":""},{"$f":"IFERROR(IF(OR($C$168=FALSE,LEFT($B166,3)<>\"NOX\"),U57*INDEX('Damage costs'!$P$16:$P$43,MATCH($B166,'Damage costs'!$C$16:$C$43,0))/1000,U57*INDEX('Damage costs'!$T$16:$T$43,MATCH($B166,'Damage costs'!$C$16:$C$43,0))/1000),\"\")","v":""},{"$f":"IFERROR(IF(OR($C$168=FALSE,LEFT($B166,3)<>\"NOX\"),V57*INDEX('Damage costs'!$P$16:$P$43,MATCH($B166,'Damage costs'!$C$16:$C$43,0))/1000,V57*INDEX('Damage costs'!$T$16:$T$43,MATCH($B166,'Damage costs'!$C$16:$C$43,0))/1000),\"\")","v":""},{"$f":"IFERROR(IF(OR($C$168=FALSE,LEFT($B166,3)<>\"NOX\"),W57*INDEX('Damage costs'!$P$16:$P$43,MATCH($B166,'Damage costs'!$C$16:$C$43,0))/1000,W57*INDEX('Damage costs'!$T$16:$T$43,MATCH($B166,'Damage costs'!$C$16:$C$43,0))/1000),\"\")","v":""},{"$f":"IFERROR(IF(OR($C$168=FALSE,LEFT($B166,3)<>\"NOX\"),X57*INDEX('Damage costs'!$P$16:$P$43,MATCH($B166,'Damage costs'!$C$16:$C$43,0))/1000,X57*INDEX('Damage costs'!$T$16:$T$43,MATCH($B166,'Damage costs'!$C$16:$C$43,0))/1000),\"\")","v":""},{"$f":"IFERROR(IF(OR($C$168=FALSE,LEFT($B166,3)<>\"NOX\"),Y57*INDEX('Damage costs'!$P$16:$P$43,MATCH($B166,'Damage costs'!$C$16:$C$43,0))/1000,Y57*INDEX('Damage costs'!$T$16:$T$43,MATCH($B166,'Damage costs'!$C$16:$C$43,0))/1000),\"\")","v":""},{"$f":"IFERROR(IF(OR($C$168=FALSE,LEFT($B166,3)<>\"NOX\"),Z57*INDEX('Damage costs'!$P$16:$P$43,MATCH($B166,'Damage costs'!$C$16:$C$43,0))/1000,Z57*INDEX('Damage costs'!$T$16:$T$43,MATCH($B166,'Damage costs'!$C$16:$C$43,0))/1000),\"\")","v":""},{"$f":"IFERROR(IF(OR($C$168=FALSE,LEFT($B166,3)<>\"NOX\"),AA57*INDEX('Damage costs'!$P$16:$P$43,MATCH($B166,'Damage costs'!$C$16:$C$43,0))/1000,AA57*INDEX('Damage costs'!$T$16:$T$43,MATCH($B166,'Damage costs'!$C$16:$C$43,0))/1000),\"\")","v":""},{"$f":"IFERROR(IF(OR($C$168=FALSE,LEFT($B166,3)<>\"NOX\"),AB57*INDEX('Damage costs'!$P$16:$P$43,MATCH($B166,'Damage costs'!$C$16:$C$43,0))/1000,AB57*INDEX('Damage costs'!$T$16:$T$43,MATCH($B166,'Damage costs'!$C$16:$C$43,0))/1000),\"\")","v":""},{"$f":"IFERROR(IF(OR($C$168=FALSE,LEFT($B166,3)<>\"NOX\"),AC57*INDEX('Damage costs'!$P$16:$P$43,MATCH($B166,'Damage costs'!$C$16:$C$43,0))/1000,AC57*INDEX('Damage costs'!$T$16:$T$43,MATCH($B166,'Damage costs'!$C$16:$C$43,0))/1000),\"\")","v":""},{"$f":"IFERROR(IF(OR($C$168=FALSE,LEFT($B166,3)<>\"NOX\"),AD57*INDEX('Damage costs'!$P$16:$P$43,MATCH($B166,'Damage costs'!$C$16:$C$43,0))/1000,AD57*INDEX('Damage costs'!$T$16:$T$43,MATCH($B166,'Damage costs'!$C$16:$C$43,0))/1000),\"\")","v":""},{"$f":"IFERROR(IF(OR($C$168=FALSE,LEFT($B166,3)<>\"NOX\"),AE57*INDEX('Damage costs'!$P$16:$P$43,MATCH($B166,'Damage costs'!$C$16:$C$43,0))/1000,AE57*INDEX('Damage costs'!$T$16:$T$43,MATCH($B166,'Damage costs'!$C$16:$C$43,0))/1000),\"\")","v":""},{"$f":"IFERROR(IF(OR($C$168=FALSE,LEFT($B166,3)<>\"NOX\"),AF57*INDEX('Damage costs'!$P$16:$P$43,MATCH($B166,'Damage costs'!$C$16:$C$43,0))/1000,AF57*INDEX('Damage costs'!$T$16:$T$43,MATCH($B166,'Damage costs'!$C$16:$C$43,0))/1000),\"\")","v":""},{"$f":"IFERROR(IF(OR($C$168=FALSE,LEFT($B166,3)<>\"NOX\"),AG57*INDEX('Damage costs'!$P$16:$P$43,MATCH($B166,'Damage costs'!$C$16:$C$43,0))/1000,AG57*INDEX('Damage costs'!$T$16:$T$43,MATCH($B166,'Damage costs'!$C$16:$C$43,0))/1000),\"\")","v":""},{"$f":"IFERROR(IF(OR($C$168=FALSE,LEFT($B166,3)<>\"NOX\"),AH57*INDEX('Damage costs'!$P$16:$P$43,MATCH($B166,'Damage costs'!$C$16:$C$43,0))/1000,AH57*INDEX('Damage costs'!$T$16:$T$43,MATCH($B166,'Damage costs'!$C$16:$C$43,0))/1000),\"\")","v":""},{"$f":"IFERROR(IF(OR($C$168=FALSE,LEFT($B166,3)<>\"NOX\"),AI57*INDEX('Damage costs'!$P$16:$P$43,MATCH($B166,'Damage costs'!$C$16:$C$43,0))/1000,AI57*INDEX('Damage costs'!$T$16:$T$43,MATCH($B166,'Damage costs'!$C$16:$C$43,0))/1000),\"\")","v":""},{"$f":"IFERROR(IF(OR($C$168=FALSE,LEFT($B166,3)<>\"NOX\"),AJ57*INDEX('Damage costs'!$P$16:$P$43,MATCH($B166,'Damage costs'!$C$16:$C$43,0))/1000,AJ57*INDEX('Damage costs'!$T$16:$T$43,MATCH($B166,'Damage costs'!$C$16:$C$43,0))/1000),\"\")","v":""},{"$f":"IFERROR(IF(OR($C$168=FALSE,LEFT($B166,3)<>\"NOX\"),AK57*INDEX('Damage costs'!$P$16:$P$43,MATCH($B166,'Damage costs'!$C$16:$C$43,0))/1000,AK57*INDEX('Damage costs'!$T$16:$T$43,MATCH($B166,'Damage costs'!$C$16:$C$43,0))/1000),\"\")","v":""},{"$f":"IFERROR(IF(OR($C$168=FALSE,LEFT($B166,3)<>\"NOX\"),AL57*INDEX('Damage costs'!$P$16:$P$43,MATCH($B166,'Damage costs'!$C$16:$C$43,0))/1000,AL57*INDEX('Damage costs'!$T$16:$T$43,MATCH($B166,'Damage costs'!$C$16:$C$43,0))/1000),\"\")","v":""},{"$f":"IFERROR(IF(OR($C$168=FALSE,LEFT($B166,3)<>\"NOX\"),AM57*INDEX('Damage costs'!$P$16:$P$43,MATCH($B166,'Damage costs'!$C$16:$C$43,0))/1000,AM57*INDEX('Damage costs'!$T$16:$T$43,MATCH($B166,'Damage costs'!$C$16:$C$43,0))/1000),\"\")","v":""},{"$f":"IFERROR(IF(OR($C$168=FALSE,LEFT($B166,3)<>\"NOX\"),AN57*INDEX('Damage costs'!$P$16:$P$43,MATCH($B166,'Damage costs'!$C$16:$C$43,0))/1000,AN57*INDEX('Damage costs'!$T$16:$T$43,MATCH($B166,'Damage costs'!$C$16:$C$43,0))/1000),\"\")","v":""},{"$f":"IFERROR(IF(OR($C$168=FALSE,LEFT($B166,3)<>\"NOX\"),AO57*INDEX('Damage costs'!$P$16:$P$43,MATCH($B166,'Damage costs'!$C$16:$C$43,0))/1000,AO57*INDEX('Damage costs'!$T$16:$T$43,MATCH($B166,'Damage costs'!$C$16:$C$43,0))/1000),\"\")","v":""},{"$f":"IFERROR(IF(OR($C$168=FALSE,LEFT($B166,3)<>\"NOX\"),AP57*INDEX('Damage costs'!$P$16:$P$43,MATCH($B166,'Damage costs'!$C$16:$C$43,0))/1000,AP57*INDEX('Damage costs'!$T$16:$T$43,MATCH($B166,'Damage costs'!$C$16:$C$43,0))/1000),\"\")","v":""},{"$f":"IFERROR(IF(OR($C$168=FALSE,LEFT($B166,3)<>\"NOX\"),AQ57*INDEX('Damage costs'!$P$16:$P$43,MATCH($B166,'Damage costs'!$C$16:$C$43,0))/1000,AQ57*INDEX('Damage costs'!$T$16:$T$43,MATCH($B166,'Damage costs'!$C$16:$C$43,0))/1000),\"\")","v":""},{"$f":"IFERROR(IF(OR($C$168=FALSE,LEFT($B166,3)<>\"NOX\"),AR57*INDEX('Damage costs'!$P$16:$P$43,MATCH($B166,'Damage costs'!$C$16:$C$43,0))/1000,AR57*INDEX('Damage costs'!$T$16:$T$43,MATCH($B166,'Damage costs'!$C$16:$C$43,0))/1000),\"\")","v":""},{"$f":"IFERROR(IF(OR($C$168=FALSE,LEFT($B166,3)<>\"NOX\"),AS57*INDEX('Damage costs'!$P$16:$P$43,MATCH($B166,'Damage costs'!$C$16:$C$43,0))/1000,AS57*INDEX('Damage costs'!$T$16:$T$43,MATCH($B166,'Damage costs'!$C$16:$C$43,0))/1000),\"\")","v":""},{"$f":"IFERROR(IF(OR($C$168=FALSE,LEFT($B166,3)<>\"NOX\"),AT57*INDEX('Damage costs'!$P$16:$P$43,MATCH($B166,'Damage costs'!$C$16:$C$43,0))/1000,AT57*INDEX('Damage costs'!$T$16:$T$43,MATCH($B166,'Damage costs'!$C$16:$C$43,0))/1000),\"\")","v":""},{"$f":"IFERROR(IF(OR($C$168=FALSE,LEFT($B166,3)<>\"NOX\"),AU57*INDEX('Damage costs'!$P$16:$P$43,MATCH($B166,'Damage costs'!$C$16:$C$43,0))/1000,AU57*INDEX('Damage costs'!$T$16:$T$43,MATCH($B166,'Damage costs'!$C$16:$C$43,0))/1000),\"\")","v":""},{"$f":"IFERROR(IF(OR($C$168=FALSE,LEFT($B166,3)<>\"NOX\"),AV57*INDEX('Damage costs'!$P$16:$P$43,MATCH($B166,'Damage costs'!$C$16:$C$43,0))/1000,AV57*INDEX('Damage costs'!$T$16:$T$43,MATCH($B166,'Damage costs'!$C$16:$C$43,0))/1000),\"\")","v":""},{"$f":"IFERROR(IF(OR($C$168=FALSE,LEFT($B166,3)<>\"NOX\"),AW57*INDEX('Damage costs'!$P$16:$P$43,MATCH($B166,'Damage costs'!$C$16:$C$43,0))/1000,AW57*INDEX('Damage costs'!$T$16:$T$43,MATCH($B166,'Damage costs'!$C$16:$C$43,0))/1000),\"\")","v":""},{"$f":"IFERROR(IF(OR($C$168=FALSE,LEFT($B166,3)<>\"NOX\"),AX57*INDEX('Damage costs'!$P$16:$P$43,MATCH($B166,'Damage costs'!$C$16:$C$43,0))/1000,AX57*INDEX('Damage costs'!$T$16:$T$43,MATCH($B166,'Damage costs'!$C$16:$C$43,0))/1000),\"\")","v":""},{"$f":"IFERROR(IF(OR($C$168=FALSE,LEFT($B166,3)<>\"NOX\"),AY57*INDEX('Damage costs'!$P$16:$P$43,MATCH($B166,'Damage costs'!$C$16:$C$43,0))/1000,AY57*INDEX('Damage costs'!$T$16:$T$43,MATCH($B166,'Damage costs'!$C$16:$C$43,0))/1000),\"\")","v":""},{"$f":"IFERROR(IF(OR($C$168=FALSE,LEFT($B166,3)<>\"NOX\"),AZ57*INDEX('Damage costs'!$P$16:$P$43,MATCH($B166,'Damage costs'!$C$16:$C$43,0))/1000,AZ57*INDEX('Damage costs'!$T$16:$T$43,MATCH($B166,'Damage costs'!$C$16:$C$43,0))/1000),\"\")","v":""},{"$f":"IFERROR(IF(OR($C$168=FALSE,LEFT($B166,3)<>\"NOX\"),BA57*INDEX('Damage costs'!$P$16:$P$43,MATCH($B166,'Damage costs'!$C$16:$C$43,0))/1000,BA57*INDEX('Damage costs'!$T$16:$T$43,MATCH($B166,'Damage costs'!$C$16:$C$43,0))/1000),\"\")","v":""},{"$f":"IFERROR(IF(OR($C$168=FALSE,LEFT($B166,3)<>\"NOX\"),BB57*INDEX('Damage costs'!$P$16:$P$43,MATCH($B166,'Damage costs'!$C$16:$C$43,0))/1000,BB57*INDEX('Damage costs'!$T$16:$T$43,MATCH($B166,'Damage costs'!$C$16:$C$43,0))/1000),\"\")","v":""},{"$f":"IFERROR(IF(OR($C$168=FALSE,LEFT($B166,3)<>\"NOX\"),BC57*INDEX('Damage costs'!$P$16:$P$43,MATCH($B166,'Damage costs'!$C$16:$C$43,0))/1000,BC57*INDEX('Damage costs'!$T$16:$T$43,MATCH($B166,'Damage costs'!$C$16:$C$43,0))/1000),\"\")","v":""},{"$f":"IFERROR(IF(OR($C$168=FALSE,LEFT($B166,3)<>\"NOX\"),BD57*INDEX('Damage costs'!$P$16:$P$43,MATCH($B166,'Damage costs'!$C$16:$C$43,0))/1000,BD57*INDEX('Damage costs'!$T$16:$T$43,MATCH($B166,'Damage costs'!$C$16:$C$43,0))/1000),\"\")","v":""},{"$f":"IFERROR(IF(OR($C$168=FALSE,LEFT($B166,3)<>\"NOX\"),BE57*INDEX('Damage costs'!$P$16:$P$43,MATCH($B166,'Damage costs'!$C$16:$C$43,0))/1000,BE57*INDEX('Damage costs'!$T$16:$T$43,MATCH($B166,'Damage costs'!$C$16:$C$43,0))/1000),\"\")","v":""},{"$f":"IFERROR(IF(OR($C$168=FALSE,LEFT($B166,3)<>\"NOX\"),BF57*INDEX('Damage costs'!$P$16:$P$43,MATCH($B166,'Damage costs'!$C$16:$C$43,0))/1000,BF57*INDEX('Damage costs'!$T$16:$T$43,MATCH($B166,'Damage costs'!$C$16:$C$43,0))/1000),\"\")","v":""},{"$f":"IFERROR(IF(OR($C$168=FALSE,LEFT($B166,3)<>\"NOX\"),BG57*INDEX('Damage costs'!$P$16:$P$43,MATCH($B166,'Damage costs'!$C$16:$C$43,0))/1000,BG57*INDEX('Damage costs'!$T$16:$T$43,MATCH($B166,'Damage costs'!$C$16:$C$43,0))/1000),\"\")","v":""},{"$f":"IFERROR(IF(OR($C$168=FALSE,LEFT($B166,3)<>\"NOX\"),BH57*INDEX('Damage costs'!$P$16:$P$43,MATCH($B166,'Damage costs'!$C$16:$C$43,0))/1000,BH57*INDEX('Damage costs'!$T$16:$T$43,MATCH($B166,'Damage costs'!$C$16:$C$43,0))/1000),\"\")","v":""},{"$f":"IFERROR(IF(OR($C$168=FALSE,LEFT($B166,3)<>\"NOX\"),BI57*INDEX('Damage costs'!$P$16:$P$43,MATCH($B166,'Damage costs'!$C$16:$C$43,0))/1000,BI57*INDEX('Damage costs'!$T$16:$T$43,MATCH($B166,'Damage costs'!$C$16:$C$43,0))/1000),\"\")","v":""},{"$f":"IFERROR(IF(OR($C$168=FALSE,LEFT($B166,3)<>\"NOX\"),BJ57*INDEX('Damage costs'!$P$16:$P$43,MATCH($B166,'Damage costs'!$C$16:$C$43,0))/1000,BJ57*INDEX('Damage costs'!$T$16:$T$43,MATCH($B166,'Damage costs'!$C$16:$C$43,0))/1000),\"\")","v":""},{"$f":"IFERROR(IF(OR($C$168=FALSE,LEFT($B166,3)<>\"NOX\"),BK57*INDEX('Damage costs'!$P$16:$P$43,MATCH($B166,'Damage costs'!$C$16:$C$43,0))/1000,BK57*INDEX('Damage costs'!$T$16:$T$43,MATCH($B166,'Damage costs'!$C$16:$C$43,0))/1000),\"\")","v":""},{"$f":"IFERROR(IF(OR($C$168=FALSE,LEFT($B166,3)<>\"NOX\"),BL57*INDEX('Damage costs'!$P$16:$P$43,MATCH($B166,'Damage costs'!$C$16:$C$43,0))/1000,BL57*INDEX('Damage costs'!$T$16:$T$43,MATCH($B166,'Damage costs'!$C$16:$C$43,0))/1000),\"\")","v":""},{"$f":"IFERROR(IF(OR($C$168=FALSE,LEFT($B166,3)<>\"NOX\"),BM57*INDEX('Damage costs'!$P$16:$P$43,MATCH($B166,'Damage costs'!$C$16:$C$43,0))/1000,BM57*INDEX('Damage costs'!$T$16:$T$43,MATCH($B166,'Damage costs'!$C$16:$C$43,0))/1000),\"\")","v":""},{"$f":"IFERROR(IF(OR($C$168=FALSE,LEFT($B166,3)<>\"NOX\"),BN57*INDEX('Damage costs'!$P$16:$P$43,MATCH($B166,'Damage costs'!$C$16:$C$43,0))/1000,BN57*INDEX('Damage costs'!$T$16:$T$43,MATCH($B166,'Damage costs'!$C$16:$C$43,0))/1000),\"\")","v":""},{"$f":"IFERROR(IF(OR($C$168=FALSE,LEFT($B166,3)<>\"NOX\"),BO57*INDEX('Damage costs'!$P$16:$P$43,MATCH($B166,'Damage costs'!$C$16:$C$43,0))/1000,BO57*INDEX('Damage costs'!$T$16:$T$43,MATCH($B166,'Damage costs'!$C$16:$C$43,0))/1000),\"\")","v":""},{"$f":"IFERROR(IF(OR($C$168=FALSE,LEFT($B166,3)<>\"NOX\"),BP57*INDEX('Damage costs'!$P$16:$P$43,MATCH($B166,'Damage costs'!$C$16:$C$43,0))/1000,BP57*INDEX('Damage costs'!$T$16:$T$43,MATCH($B166,'Damage costs'!$C$16:$C$43,0))/1000),\"\")","v":""},{"$f":"IFERROR(IF(OR($C$168=FALSE,LEFT($B166,3)<>\"NOX\"),BQ57*INDEX('Damage costs'!$P$16:$P$43,MATCH($B166,'Damage costs'!$C$16:$C$43,0))/1000,BQ57*INDEX('Damage costs'!$T$16:$T$43,MATCH($B166,'Damage costs'!$C$16:$C$43,0))/1000),\"\")","v":""},{"$f":"IFERROR(IF(OR($C$168=FALSE,LEFT($B166,3)<>\"NOX\"),BR57*INDEX('Damage costs'!$P$16:$P$43,MATCH($B166,'Damage costs'!$C$16:$C$43,0))/1000,BR57*INDEX('Damage costs'!$T$16:$T$43,MATCH($B166,'Damage costs'!$C$16:$C$43,0))/1000),\"\")","v":""},{"$f":"IFERROR(IF(OR($C$168=FALSE,LEFT($B166,3)<>\"NOX\"),BS57*INDEX('Damage costs'!$P$16:$P$43,MATCH($B166,'Damage costs'!$C$16:$C$43,0))/1000,BS57*INDEX('Damage costs'!$T$16:$T$43,MATCH($B166,'Damage costs'!$C$16:$C$43,0))/1000),\"\")","v":""},{"$f":"IFERROR(IF(OR($C$168=FALSE,LEFT($B166,3)<>\"NOX\"),BT57*INDEX('Damage costs'!$P$16:$P$43,MATCH($B166,'Damage costs'!$C$16:$C$43,0))/1000,BT57*INDEX('Damage costs'!$T$16:$T$43,MATCH($B166,'Damage costs'!$C$16:$C$43,0))/1000),\"\")","v":""},{"$f":"IFERROR(IF(OR($C$168=FALSE,LEFT($B166,3)<>\"NOX\"),BU57*INDEX('Damage costs'!$P$16:$P$43,MATCH($B166,'Damage costs'!$C$16:$C$43,0))/1000,BU57*INDEX('Damage costs'!$T$16:$T$43,MATCH($B166,'Damage costs'!$C$16:$C$43,0))/1000),\"\")","v":""},{"$f":"IFERROR(IF(OR($C$168=FALSE,LEFT($B166,3)<>\"NOX\"),BV57*INDEX('Damage costs'!$P$16:$P$43,MATCH($B166,'Damage costs'!$C$16:$C$43,0))/1000,BV57*INDEX('Damage costs'!$T$16:$T$43,MATCH($B166,'Damage costs'!$C$16:$C$43,0))/1000),\"\")","v":""},{"$f":"IFERROR(IF(OR($C$168=FALSE,LEFT($B166,3)<>\"NOX\"),BW57*INDEX('Damage costs'!$P$16:$P$43,MATCH($B166,'Damage costs'!$C$16:$C$43,0))/1000,BW57*INDEX('Damage costs'!$T$16:$T$43,MATCH($B166,'Damage costs'!$C$16:$C$43,0))/1000),\"\")","v":""},{"$f":"IFERROR(IF(OR($C$168=FALSE,LEFT($B166,3)<>\"NOX\"),BX57*INDEX('Damage costs'!$P$16:$P$43,MATCH($B166,'Damage costs'!$C$16:$C$43,0))/1000,BX57*INDEX('Damage costs'!$T$16:$T$43,MATCH($B166,'Damage costs'!$C$16:$C$43,0))/1000),\"\")","v":""},{"$f":"IFERROR(IF(OR($C$168=FALSE,LEFT($B166,3)<>\"NOX\"),BY57*INDEX('Damage costs'!$P$16:$P$43,MATCH($B166,'Damage costs'!$C$16:$C$43,0))/1000,BY57*INDEX('Damage costs'!$T$16:$T$43,MATCH($B166,'Damage costs'!$C$16:$C$43,0))/1000),\"\")","v":""},{"$f":"IFERROR(IF(OR($C$168=FALSE,LEFT($B166,3)<>\"NOX\"),BZ57*INDEX('Damage costs'!$P$16:$P$43,MATCH($B166,'Damage costs'!$C$16:$C$43,0))/1000,BZ57*INDEX('Damage costs'!$T$16:$T$43,MATCH($B166,'Damage costs'!$C$16:$C$43,0))/1000),\"\")","v":""},{"$f":"IFERROR(IF(OR($C$168=FALSE,LEFT($B166,3)<>\"NOX\"),CA57*INDEX('Damage costs'!$P$16:$P$43,MATCH($B166,'Damage costs'!$C$16:$C$43,0))/1000,CA57*INDEX('Damage costs'!$T$16:$T$43,MATCH($B166,'Damage costs'!$C$16:$C$43,0))/1000),\"\")","v":""},{"$f":"IFERROR(IF(OR($C$168=FALSE,LEFT($B166,3)<>\"NOX\"),CB57*INDEX('Damage costs'!$P$16:$P$43,MATCH($B166,'Damage costs'!$C$16:$C$43,0))/1000,CB57*INDEX('Damage costs'!$T$16:$T$43,MATCH($B166,'Damage costs'!$C$16:$C$43,0))/1000),\"\")","v":""},{"$f":"IFERROR(IF(OR($C$168=FALSE,LEFT($B166,3)<>\"NOX\"),CC57*INDEX('Damage costs'!$P$16:$P$43,MATCH($B166,'Damage costs'!$C$16:$C$43,0))/1000,CC57*INDEX('Damage costs'!$T$16:$T$43,MATCH($B166,'Damage costs'!$C$16:$C$43,0))/1000),\"\")","v":""},{"$f":"IFERROR(IF(OR($C$168=FALSE,LEFT($B166,3)<>\"NOX\"),CD57*INDEX('Damage costs'!$P$16:$P$43,MATCH($B166,'Damage costs'!$C$16:$C$43,0))/1000,CD57*INDEX('Damage costs'!$T$16:$T$43,MATCH($B166,'Damage costs'!$C$16:$C$43,0))/1000),\"\")","v":""},{"$f":"IFERROR(IF(OR($C$168=FALSE,LEFT($B166,3)<>\"NOX\"),CE57*INDEX('Damage costs'!$P$16:$P$43,MATCH($B166,'Damage costs'!$C$16:$C$43,0))/1000,CE57*INDEX('Damage costs'!$T$16:$T$43,MATCH($B166,'Damage costs'!$C$16:$C$43,0))/1000),\"\")","v":""},{"$f":"IFERROR(IF(OR($C$168=FALSE,LEFT($B166,3)<>\"NOX\"),CF57*INDEX('Damage costs'!$P$16:$P$43,MATCH($B166,'Damage costs'!$C$16:$C$43,0))/1000,CF57*INDEX('Damage costs'!$T$16:$T$43,MATCH($B166,'Damage costs'!$C$16:$C$43,0))/1000),\"\")","v":""},{"$f":"IFERROR(IF(OR($C$168=FALSE,LEFT($B166,3)<>\"NOX\"),CG57*INDEX('Damage costs'!$P$16:$P$43,MATCH($B166,'Damage costs'!$C$16:$C$43,0))/1000,CG57*INDEX('Damage costs'!$T$16:$T$43,MATCH($B166,'Damage costs'!$C$16:$C$43,0))/1000),\"\")","v":""},{"$f":"IFERROR(IF(OR($C$168=FALSE,LEFT($B166,3)<>\"NOX\"),CH57*INDEX('Damage costs'!$P$16:$P$43,MATCH($B166,'Damage costs'!$C$16:$C$43,0))/1000,CH57*INDEX('Damage costs'!$T$16:$T$43,MATCH($B166,'Damage costs'!$C$16:$C$43,0))/1000),\"\")","v":""},{"$f":"IFERROR(IF(OR($C$168=FALSE,LEFT($B166,3)<>\"NOX\"),CI57*INDEX('Damage costs'!$P$16:$P$43,MATCH($B166,'Damage costs'!$C$16:$C$43,0))/1000,CI57*INDEX('Damage costs'!$T$16:$T$43,MATCH($B166,'Damage costs'!$C$16:$C$43,0))/1000),\"\")","v":""},{"$f":"IFERROR(IF(OR($C$168=FALSE,LEFT($B166,3)<>\"NOX\"),CJ57*INDEX('Damage costs'!$P$16:$P$43,MATCH($B166,'Damage costs'!$C$16:$C$43,0))/1000,CJ57*INDEX('Damage costs'!$T$16:$T$43,MATCH($B166,'Damage costs'!$C$16:$C$43,0))/1000),\"\")","v":""},{"$f":"IFERROR(IF(OR($C$168=FALSE,LEFT($B166,3)<>\"NOX\"),CK57*INDEX('Damage costs'!$P$16:$P$43,MATCH($B166,'Damage costs'!$C$16:$C$43,0))/1000,CK57*INDEX('Damage costs'!$T$16:$T$43,MATCH($B166,'Damage costs'!$C$16:$C$43,0))/1000),\"\")","v":""},{"$f":"IFERROR(IF(OR($C$168=FALSE,LEFT($B166,3)<>\"NOX\"),CL57*INDEX('Damage costs'!$P$16:$P$43,MATCH($B166,'Damage costs'!$C$16:$C$43,0))/1000,CL57*INDEX('Damage costs'!$T$16:$T$43,MATCH($B166,'Damage costs'!$C$16:$C$43,0))/1000),\"\")","v":""},{"$f":"IFERROR(IF(OR($C$168=FALSE,LEFT($B166,3)<>\"NOX\"),CM57*INDEX('Damage costs'!$P$16:$P$43,MATCH($B166,'Damage costs'!$C$16:$C$43,0))/1000,CM57*INDEX('Damage costs'!$T$16:$T$43,MATCH($B166,'Damage costs'!$C$16:$C$43,0))/1000),\"\")","v":""},{"$f":"IFERROR(IF(OR($C$168=FALSE,LEFT($B166,3)<>\"NOX\"),CN57*INDEX('Damage costs'!$P$16:$P$43,MATCH($B166,'Damage costs'!$C$16:$C$43,0))/1000,CN57*INDEX('Damage costs'!$T$16:$T$43,MATCH($B166,'Damage costs'!$C$16:$C$43,0))/1000),\"\")","v":""},{"$f":"IFERROR(IF(OR($C$168=FALSE,LEFT($B166,3)<>\"NOX\"),CO57*INDEX('Damage costs'!$P$16:$P$43,MATCH($B166,'Damage costs'!$C$16:$C$43,0))/1000,CO57*INDEX('Damage costs'!$T$16:$T$43,MATCH($B166,'Damage costs'!$C$16:$C$43,0))/1000),\"\")","v":""},{"$f":"IFERROR(IF(OR($C$168=FALSE,LEFT($B166,3)<>\"NOX\"),CP57*INDEX('Damage costs'!$P$16:$P$43,MATCH($B166,'Damage costs'!$C$16:$C$43,0))/1000,CP57*INDEX('Damage costs'!$T$16:$T$43,MATCH($B166,'Damage costs'!$C$16:$C$43,0))/1000),\"\")","v":""},{"$f":"IFERROR(IF(OR($C$168=FALSE,LEFT($B166,3)<>\"NOX\"),CQ57*INDEX('Damage costs'!$P$16:$P$43,MATCH($B166,'Damage costs'!$C$16:$C$43,0))/1000,CQ57*INDEX('Damage costs'!$T$16:$T$43,MATCH($B166,'Damage costs'!$C$16:$C$43,0))/1000),\"\")","v":""},{"$f":"IFERROR(IF(OR($C$168=FALSE,LEFT($B166,3)<>\"NOX\"),CR57*INDEX('Damage costs'!$P$16:$P$43,MATCH($B166,'Damage costs'!$C$16:$C$43,0))/1000,CR57*INDEX('Damage costs'!$T$16:$T$43,MATCH($B166,'Damage costs'!$C$16:$C$43,0))/1000),\"\")","v":""},{"$f":"IFERROR(IF(OR($C$168=FALSE,LEFT($B166,3)<>\"NOX\"),CS57*INDEX('Damage costs'!$P$16:$P$43,MATCH($B166,'Damage costs'!$C$16:$C$43,0))/1000,CS57*INDEX('Damage costs'!$T$16:$T$43,MATCH($B166,'Damage costs'!$C$16:$C$43,0))/1000),\"\")","v":""},{"$f":"IFERROR(IF(OR($C$168=FALSE,LEFT($B166,3)<>\"NOX\"),CT57*INDEX('Damage costs'!$P$16:$P$43,MATCH($B166,'Damage costs'!$C$16:$C$43,0))/1000,CT57*INDEX('Damage costs'!$T$16:$T$43,MATCH($B166,'Damage costs'!$C$16:$C$43,0))/1000),\"\")","v":""},{"$f":"IFERROR(IF(OR($C$168=FALSE,LEFT($B166,3)<>\"NOX\"),CU57*INDEX('Damage costs'!$P$16:$P$43,MATCH($B166,'Damage costs'!$C$16:$C$43,0))/1000,CU57*INDEX('Damage costs'!$T$16:$T$43,MATCH($B166,'Damage costs'!$C$16:$C$43,0))/1000),\"\")","v":""},{"$f":"IFERROR(IF(OR($C$168=FALSE,LEFT($B166,3)<>\"NOX\"),CV57*INDEX('Damage costs'!$P$16:$P$43,MATCH($B166,'Damage costs'!$C$16:$C$43,0))/1000,CV57*INDEX('Damage costs'!$T$16:$T$43,MATCH($B166,'Damage costs'!$C$16:$C$43,0))/1000),\"\")","v":""},{"$f":"IFERROR(IF(OR($C$168=FALSE,LEFT($B166,3)<>\"NOX\"),CW57*INDEX('Damage costs'!$P$16:$P$43,MATCH($B166,'Damage costs'!$C$16:$C$43,0))/1000,CW57*INDEX('Damage costs'!$T$16:$T$43,MATCH($B166,'Damage costs'!$C$16:$C$43,0))/1000),\"\")","v":""},{"$f":"IFERROR(IF(OR($C$168=FALSE,LEFT($B166,3)<>\"NOX\"),CX57*INDEX('Damage costs'!$P$16:$P$43,MATCH($B166,'Damage costs'!$C$16:$C$43,0))/1000,CX57*INDEX('Damage costs'!$T$16:$T$43,MATCH($B166,'Damage costs'!$C$16:$C$43,0))/1000),\"\")","v":""},{"$f":"IFERROR(IF(OR($C$168=FALSE,LEFT($B166,3)<>\"NOX\"),CY57*INDEX('Damage costs'!$P$16:$P$43,MATCH($B166,'Damage costs'!$C$16:$C$43,0))/1000,CY57*INDEX('Damage costs'!$T$16:$T$43,MATCH($B166,'Damage costs'!$C$16:$C$43,0))/1000),\"\")","v":""}]
[null,0,"£000's",{"$f":"IFERROR(IF(OR($C$168=FALSE,LEFT($B167,3)<>\"NOX\"),D58*INDEX('Damage costs'!$P$16:$P$43,MATCH($B167,'Damage costs'!$C$16:$C$43,0))/1000,D58*INDEX('Damage costs'!$T$16:$T$43,MATCH($B167,'Damage costs'!$C$16:$C$43,0))/1000),\"\")","v":""},{"$f":"IFERROR(IF(OR($C$168=FALSE,LEFT($B167,3)<>\"NOX\"),E58*INDEX('Damage costs'!$P$16:$P$43,MATCH($B167,'Damage costs'!$C$16:$C$43,0))/1000,E58*INDEX('Damage costs'!$T$16:$T$43,MATCH($B167,'Damage costs'!$C$16:$C$43,0))/1000),\"\")","v":""},{"$f":"IFERROR(IF(OR($C$168=FALSE,LEFT($B167,3)<>\"NOX\"),F58*INDEX('Damage costs'!$P$16:$P$43,MATCH($B167,'Damage costs'!$C$16:$C$43,0))/1000,F58*INDEX('Damage costs'!$T$16:$T$43,MATCH($B167,'Damage costs'!$C$16:$C$43,0))/1000),\"\")","v":""},{"$f":"IFERROR(IF(OR($C$168=FALSE,LEFT($B167,3)<>\"NOX\"),G58*INDEX('Damage costs'!$P$16:$P$43,MATCH($B167,'Damage costs'!$C$16:$C$43,0))/1000,G58*INDEX('Damage costs'!$T$16:$T$43,MATCH($B167,'Damage costs'!$C$16:$C$43,0))/1000),\"\")","v":""},{"$f":"IFERROR(IF(OR($C$168=FALSE,LEFT($B167,3)<>\"NOX\"),H58*INDEX('Damage costs'!$P$16:$P$43,MATCH($B167,'Damage costs'!$C$16:$C$43,0))/1000,H58*INDEX('Damage costs'!$T$16:$T$43,MATCH($B167,'Damage costs'!$C$16:$C$43,0))/1000),\"\")","v":""},{"$f":"IFERROR(IF(OR($C$168=FALSE,LEFT($B167,3)<>\"NOX\"),I58*INDEX('Damage costs'!$P$16:$P$43,MATCH($B167,'Damage costs'!$C$16:$C$43,0))/1000,I58*INDEX('Damage costs'!$T$16:$T$43,MATCH($B167,'Damage costs'!$C$16:$C$43,0))/1000),\"\")","v":""},{"$f":"IFERROR(IF(OR($C$168=FALSE,LEFT($B167,3)<>\"NOX\"),J58*INDEX('Damage costs'!$P$16:$P$43,MATCH($B167,'Damage costs'!$C$16:$C$43,0))/1000,J58*INDEX('Damage costs'!$T$16:$T$43,MATCH($B167,'Damage costs'!$C$16:$C$43,0))/1000),\"\")","v":""},{"$f":"IFERROR(IF(OR($C$168=FALSE,LEFT($B167,3)<>\"NOX\"),K58*INDEX('Damage costs'!$P$16:$P$43,MATCH($B167,'Damage costs'!$C$16:$C$43,0))/1000,K58*INDEX('Damage costs'!$T$16:$T$43,MATCH($B167,'Damage costs'!$C$16:$C$43,0))/1000),\"\")","v":""},{"$f":"IFERROR(IF(OR($C$168=FALSE,LEFT($B167,3)<>\"NOX\"),L58*INDEX('Damage costs'!$P$16:$P$43,MATCH($B167,'Damage costs'!$C$16:$C$43,0))/1000,L58*INDEX('Damage costs'!$T$16:$T$43,MATCH($B167,'Damage costs'!$C$16:$C$43,0))/1000),\"\")","v":""},{"$f":"IFERROR(IF(OR($C$168=FALSE,LEFT($B167,3)<>\"NOX\"),M58*INDEX('Damage costs'!$P$16:$P$43,MATCH($B167,'Damage costs'!$C$16:$C$43,0))/1000,M58*INDEX('Damage costs'!$T$16:$T$43,MATCH($B167,'Damage costs'!$C$16:$C$43,0))/1000),\"\")","v":""},{"$f":"IFERROR(IF(OR($C$168=FALSE,LEFT($B167,3)<>\"NOX\"),N58*INDEX('Damage costs'!$P$16:$P$43,MATCH($B167,'Damage costs'!$C$16:$C$43,0))/1000,N58*INDEX('Damage costs'!$T$16:$T$43,MATCH($B167,'Damage costs'!$C$16:$C$43,0))/1000),\"\")","v":""},{"$f":"IFERROR(IF(OR($C$168=FALSE,LEFT($B167,3)<>\"NOX\"),O58*INDEX('Damage costs'!$P$16:$P$43,MATCH($B167,'Damage costs'!$C$16:$C$43,0))/1000,O58*INDEX('Damage costs'!$T$16:$T$43,MATCH($B167,'Damage costs'!$C$16:$C$43,0))/1000),\"\")","v":""},{"$f":"IFERROR(IF(OR($C$168=FALSE,LEFT($B167,3)<>\"NOX\"),P58*INDEX('Damage costs'!$P$16:$P$43,MATCH($B167,'Damage costs'!$C$16:$C$43,0))/1000,P58*INDEX('Damage costs'!$T$16:$T$43,MATCH($B167,'Damage costs'!$C$16:$C$43,0))/1000),\"\")","v":""},{"$f":"IFERROR(IF(OR($C$168=FALSE,LEFT($B167,3)<>\"NOX\"),Q58*INDEX('Damage costs'!$P$16:$P$43,MATCH($B167,'Damage costs'!$C$16:$C$43,0))/1000,Q58*INDEX('Damage costs'!$T$16:$T$43,MATCH($B167,'Damage costs'!$C$16:$C$43,0))/1000),\"\")","v":""},{"$f":"IFERROR(IF(OR($C$168=FALSE,LEFT($B167,3)<>\"NOX\"),R58*INDEX('Damage costs'!$P$16:$P$43,MATCH($B167,'Damage costs'!$C$16:$C$43,0))/1000,R58*INDEX('Damage costs'!$T$16:$T$43,MATCH($B167,'Damage costs'!$C$16:$C$43,0))/1000),\"\")","v":""},{"$f":"IFERROR(IF(OR($C$168=FALSE,LEFT($B167,3)<>\"NOX\"),S58*INDEX('Damage costs'!$P$16:$P$43,MATCH($B167,'Damage costs'!$C$16:$C$43,0))/1000,S58*INDEX('Damage costs'!$T$16:$T$43,MATCH($B167,'Damage costs'!$C$16:$C$43,0))/1000),\"\")","v":""},{"$f":"IFERROR(IF(OR($C$168=FALSE,LEFT($B167,3)<>\"NOX\"),T58*INDEX('Damage costs'!$P$16:$P$43,MATCH($B167,'Damage costs'!$C$16:$C$43,0))/1000,T58*INDEX('Damage costs'!$T$16:$T$43,MATCH($B167,'Damage costs'!$C$16:$C$43,0))/1000),\"\")","v":""},{"$f":"IFERROR(IF(OR($C$168=FALSE,LEFT($B167,3)<>\"NOX\"),U58*INDEX('Damage costs'!$P$16:$P$43,MATCH($B167,'Damage costs'!$C$16:$C$43,0))/1000,U58*INDEX('Damage costs'!$T$16:$T$43,MATCH($B167,'Damage costs'!$C$16:$C$43,0))/1000),\"\")","v":""},{"$f":"IFERROR(IF(OR($C$168=FALSE,LEFT($B167,3)<>\"NOX\"),V58*INDEX('Damage costs'!$P$16:$P$43,MATCH($B167,'Damage costs'!$C$16:$C$43,0))/1000,V58*INDEX('Damage costs'!$T$16:$T$43,MATCH($B167,'Damage costs'!$C$16:$C$43,0))/1000),\"\")","v":""},{"$f":"IFERROR(IF(OR($C$168=FALSE,LEFT($B167,3)<>\"NOX\"),W58*INDEX('Damage costs'!$P$16:$P$43,MATCH($B167,'Damage costs'!$C$16:$C$43,0))/1000,W58*INDEX('Damage costs'!$T$16:$T$43,MATCH($B167,'Damage costs'!$C$16:$C$43,0))/1000),\"\")","v":""},{"$f":"IFERROR(IF(OR($C$168=FALSE,LEFT($B167,3)<>\"NOX\"),X58*INDEX('Damage costs'!$P$16:$P$43,MATCH($B167,'Damage costs'!$C$16:$C$43,0))/1000,X58*INDEX('Damage costs'!$T$16:$T$43,MATCH($B167,'Damage costs'!$C$16:$C$43,0))/1000),\"\")","v":""},{"$f":"IFERROR(IF(OR($C$168=FALSE,LEFT($B167,3)<>\"NOX\"),Y58*INDEX('Damage costs'!$P$16:$P$43,MATCH($B167,'Damage costs'!$C$16:$C$43,0))/1000,Y58*INDEX('Damage costs'!$T$16:$T$43,MATCH($B167,'Damage costs'!$C$16:$C$43,0))/1000),\"\")","v":""},{"$f":"IFERROR(IF(OR($C$168=FALSE,LEFT($B167,3)<>\"NOX\"),Z58*INDEX('Damage costs'!$P$16:$P$43,MATCH($B167,'Damage costs'!$C$16:$C$43,0))/1000,Z58*INDEX('Damage costs'!$T$16:$T$43,MATCH($B167,'Damage costs'!$C$16:$C$43,0))/1000),\"\")","v":""},{"$f":"IFERROR(IF(OR($C$168=FALSE,LEFT($B167,3)<>\"NOX\"),AA58*INDEX('Damage costs'!$P$16:$P$43,MATCH($B167,'Damage costs'!$C$16:$C$43,0))/1000,AA58*INDEX('Damage costs'!$T$16:$T$43,MATCH($B167,'Damage costs'!$C$16:$C$43,0))/1000),\"\")","v":""},{"$f":"IFERROR(IF(OR($C$168=FALSE,LEFT($B167,3)<>\"NOX\"),AB58*INDEX('Damage costs'!$P$16:$P$43,MATCH($B167,'Damage costs'!$C$16:$C$43,0))/1000,AB58*INDEX('Damage costs'!$T$16:$T$43,MATCH($B167,'Damage costs'!$C$16:$C$43,0))/1000),\"\")","v":""},{"$f":"IFERROR(IF(OR($C$168=FALSE,LEFT($B167,3)<>\"NOX\"),AC58*INDEX('Damage costs'!$P$16:$P$43,MATCH($B167,'Damage costs'!$C$16:$C$43,0))/1000,AC58*INDEX('Damage costs'!$T$16:$T$43,MATCH($B167,'Damage costs'!$C$16:$C$43,0))/1000),\"\")","v":""},{"$f":"IFERROR(IF(OR($C$168=FALSE,LEFT($B167,3)<>\"NOX\"),AD58*INDEX('Damage costs'!$P$16:$P$43,MATCH($B167,'Damage costs'!$C$16:$C$43,0))/1000,AD58*INDEX('Damage costs'!$T$16:$T$43,MATCH($B167,'Damage costs'!$C$16:$C$43,0))/1000),\"\")","v":""},{"$f":"IFERROR(IF(OR($C$168=FALSE,LEFT($B167,3)<>\"NOX\"),AE58*INDEX('Damage costs'!$P$16:$P$43,MATCH($B167,'Damage costs'!$C$16:$C$43,0))/1000,AE58*INDEX('Damage costs'!$T$16:$T$43,MATCH($B167,'Damage costs'!$C$16:$C$43,0))/1000),\"\")","v":""},{"$f":"IFERROR(IF(OR($C$168=FALSE,LEFT($B167,3)<>\"NOX\"),AF58*INDEX('Damage costs'!$P$16:$P$43,MATCH($B167,'Damage costs'!$C$16:$C$43,0))/1000,AF58*INDEX('Damage costs'!$T$16:$T$43,MATCH($B167,'Damage costs'!$C$16:$C$43,0))/1000),\"\")","v":""},{"$f":"IFERROR(IF(OR($C$168=FALSE,LEFT($B167,3)<>\"NOX\"),AG58*INDEX('Damage costs'!$P$16:$P$43,MATCH($B167,'Damage costs'!$C$16:$C$43,0))/1000,AG58*INDEX('Damage costs'!$T$16:$T$43,MATCH($B167,'Damage costs'!$C$16:$C$43,0))/1000),\"\")","v":""},{"$f":"IFERROR(IF(OR($C$168=FALSE,LEFT($B167,3)<>\"NOX\"),AH58*INDEX('Damage costs'!$P$16:$P$43,MATCH($B167,'Damage costs'!$C$16:$C$43,0))/1000,AH58*INDEX('Damage costs'!$T$16:$T$43,MATCH($B167,'Damage costs'!$C$16:$C$43,0))/1000),\"\")","v":""},{"$f":"IFERROR(IF(OR($C$168=FALSE,LEFT($B167,3)<>\"NOX\"),AI58*INDEX('Damage costs'!$P$16:$P$43,MATCH($B167,'Damage costs'!$C$16:$C$43,0))/1000,AI58*INDEX('Damage costs'!$T$16:$T$43,MATCH($B167,'Damage costs'!$C$16:$C$43,0))/1000),\"\")","v":""},{"$f":"IFERROR(IF(OR($C$168=FALSE,LEFT($B167,3)<>\"NOX\"),AJ58*INDEX('Damage costs'!$P$16:$P$43,MATCH($B167,'Damage costs'!$C$16:$C$43,0))/1000,AJ58*INDEX('Damage costs'!$T$16:$T$43,MATCH($B167,'Damage costs'!$C$16:$C$43,0))/1000),\"\")","v":""},{"$f":"IFERROR(IF(OR($C$168=FALSE,LEFT($B167,3)<>\"NOX\"),AK58*INDEX('Damage costs'!$P$16:$P$43,MATCH($B167,'Damage costs'!$C$16:$C$43,0))/1000,AK58*INDEX('Damage costs'!$T$16:$T$43,MATCH($B167,'Damage costs'!$C$16:$C$43,0))/1000),\"\")","v":""},{"$f":"IFERROR(IF(OR($C$168=FALSE,LEFT($B167,3)<>\"NOX\"),AL58*INDEX('Damage costs'!$P$16:$P$43,MATCH($B167,'Damage costs'!$C$16:$C$43,0))/1000,AL58*INDEX('Damage costs'!$T$16:$T$43,MATCH($B167,'Damage costs'!$C$16:$C$43,0))/1000),\"\")","v":""},{"$f":"IFERROR(IF(OR($C$168=FALSE,LEFT($B167,3)<>\"NOX\"),AM58*INDEX('Damage costs'!$P$16:$P$43,MATCH($B167,'Damage costs'!$C$16:$C$43,0))/1000,AM58*INDEX('Damage costs'!$T$16:$T$43,MATCH($B167,'Damage costs'!$C$16:$C$43,0))/1000),\"\")","v":""},{"$f":"IFERROR(IF(OR($C$168=FALSE,LEFT($B167,3)<>\"NOX\"),AN58*INDEX('Damage costs'!$P$16:$P$43,MATCH($B167,'Damage costs'!$C$16:$C$43,0))/1000,AN58*INDEX('Damage costs'!$T$16:$T$43,MATCH($B167,'Damage costs'!$C$16:$C$43,0))/1000),\"\")","v":""},{"$f":"IFERROR(IF(OR($C$168=FALSE,LEFT($B167,3)<>\"NOX\"),AO58*INDEX('Damage costs'!$P$16:$P$43,MATCH($B167,'Damage costs'!$C$16:$C$43,0))/1000,AO58*INDEX('Damage costs'!$T$16:$T$43,MATCH($B167,'Damage costs'!$C$16:$C$43,0))/1000),\"\")","v":""},{"$f":"IFERROR(IF(OR($C$168=FALSE,LEFT($B167,3)<>\"NOX\"),AP58*INDEX('Damage costs'!$P$16:$P$43,MATCH($B167,'Damage costs'!$C$16:$C$43,0))/1000,AP58*INDEX('Damage costs'!$T$16:$T$43,MATCH($B167,'Damage costs'!$C$16:$C$43,0))/1000),\"\")","v":""},{"$f":"IFERROR(IF(OR($C$168=FALSE,LEFT($B167,3)<>\"NOX\"),AQ58*INDEX('Damage costs'!$P$16:$P$43,MATCH($B167,'Damage costs'!$C$16:$C$43,0))/1000,AQ58*INDEX('Damage costs'!$T$16:$T$43,MATCH($B167,'Damage costs'!$C$16:$C$43,0))/1000),\"\")","v":""},{"$f":"IFERROR(IF(OR($C$168=FALSE,LEFT($B167,3)<>\"NOX\"),AR58*INDEX('Damage costs'!$P$16:$P$43,MATCH($B167,'Damage costs'!$C$16:$C$43,0))/1000,AR58*INDEX('Damage costs'!$T$16:$T$43,MATCH($B167,'Damage costs'!$C$16:$C$43,0))/1000),\"\")","v":""},{"$f":"IFERROR(IF(OR($C$168=FALSE,LEFT($B167,3)<>\"NOX\"),AS58*INDEX('Damage costs'!$P$16:$P$43,MATCH($B167,'Damage costs'!$C$16:$C$43,0))/1000,AS58*INDEX('Damage costs'!$T$16:$T$43,MATCH($B167,'Damage costs'!$C$16:$C$43,0))/1000),\"\")","v":""},{"$f":"IFERROR(IF(OR($C$168=FALSE,LEFT($B167,3)<>\"NOX\"),AT58*INDEX('Damage costs'!$P$16:$P$43,MATCH($B167,'Damage costs'!$C$16:$C$43,0))/1000,AT58*INDEX('Damage costs'!$T$16:$T$43,MATCH($B167,'Damage costs'!$C$16:$C$43,0))/1000),\"\")","v":""},{"$f":"IFERROR(IF(OR($C$168=FALSE,LEFT($B167,3)<>\"NOX\"),AU58*INDEX('Damage costs'!$P$16:$P$43,MATCH($B167,'Damage costs'!$C$16:$C$43,0))/1000,AU58*INDEX('Damage costs'!$T$16:$T$43,MATCH($B167,'Damage costs'!$C$16:$C$43,0))/1000),\"\")","v":""},{"$f":"IFERROR(IF(OR($C$168=FALSE,LEFT($B167,3)<>\"NOX\"),AV58*INDEX('Damage costs'!$P$16:$P$43,MATCH($B167,'Damage costs'!$C$16:$C$43,0))/1000,AV58*INDEX('Damage costs'!$T$16:$T$43,MATCH($B167,'Damage costs'!$C$16:$C$43,0))/1000),\"\")","v":""},{"$f":"IFERROR(IF(OR($C$168=FALSE,LEFT($B167,3)<>\"NOX\"),AW58*INDEX('Damage costs'!$P$16:$P$43,MATCH($B167,'Damage costs'!$C$16:$C$43,0))/1000,AW58*INDEX('Damage costs'!$T$16:$T$43,MATCH($B167,'Damage costs'!$C$16:$C$43,0))/1000),\"\")","v":""},{"$f":"IFERROR(IF(OR($C$168=FALSE,LEFT($B167,3)<>\"NOX\"),AX58*INDEX('Damage costs'!$P$16:$P$43,MATCH($B167,'Damage costs'!$C$16:$C$43,0))/1000,AX58*INDEX('Damage costs'!$T$16:$T$43,MATCH($B167,'Damage costs'!$C$16:$C$43,0))/1000),\"\")","v":""},{"$f":"IFERROR(IF(OR($C$168=FALSE,LEFT($B167,3)<>\"NOX\"),AY58*INDEX('Damage costs'!$P$16:$P$43,MATCH($B167,'Damage costs'!$C$16:$C$43,0))/1000,AY58*INDEX('Damage costs'!$T$16:$T$43,MATCH($B167,'Damage costs'!$C$16:$C$43,0))/1000),\"\")","v":""},{"$f":"IFERROR(IF(OR($C$168=FALSE,LEFT($B167,3)<>\"NOX\"),AZ58*INDEX('Damage costs'!$P$16:$P$43,MATCH($B167,'Damage costs'!$C$16:$C$43,0))/1000,AZ58*INDEX('Damage costs'!$T$16:$T$43,MATCH($B167,'Damage costs'!$C$16:$C$43,0))/1000),\"\")","v":""},{"$f":"IFERROR(IF(OR($C$168=FALSE,LEFT($B167,3)<>\"NOX\"),BA58*INDEX('Damage costs'!$P$16:$P$43,MATCH($B167,'Damage costs'!$C$16:$C$43,0))/1000,BA58*INDEX('Damage costs'!$T$16:$T$43,MATCH($B167,'Damage costs'!$C$16:$C$43,0))/1000),\"\")","v":""},{"$f":"IFERROR(IF(OR($C$168=FALSE,LEFT($B167,3)<>\"NOX\"),BB58*INDEX('Damage costs'!$P$16:$P$43,MATCH($B167,'Damage costs'!$C$16:$C$43,0))/1000,BB58*INDEX('Damage costs'!$T$16:$T$43,MATCH($B167,'Damage costs'!$C$16:$C$43,0))/1000),\"\")","v":""},{"$f":"IFERROR(IF(OR($C$168=FALSE,LEFT($B167,3)<>\"NOX\"),BC58*INDEX('Damage costs'!$P$16:$P$43,MATCH($B167,'Damage costs'!$C$16:$C$43,0))/1000,BC58*INDEX('Damage costs'!$T$16:$T$43,MATCH($B167,'Damage costs'!$C$16:$C$43,0))/1000),\"\")","v":""},{"$f":"IFERROR(IF(OR($C$168=FALSE,LEFT($B167,3)<>\"NOX\"),BD58*INDEX('Damage costs'!$P$16:$P$43,MATCH($B167,'Damage costs'!$C$16:$C$43,0))/1000,BD58*INDEX('Damage costs'!$T$16:$T$43,MATCH($B167,'Damage costs'!$C$16:$C$43,0))/1000),\"\")","v":""},{"$f":"IFERROR(IF(OR($C$168=FALSE,LEFT($B167,3)<>\"NOX\"),BE58*INDEX('Damage costs'!$P$16:$P$43,MATCH($B167,'Damage costs'!$C$16:$C$43,0))/1000,BE58*INDEX('Damage costs'!$T$16:$T$43,MATCH($B167,'Damage costs'!$C$16:$C$43,0))/1000),\"\")","v":""},{"$f":"IFERROR(IF(OR($C$168=FALSE,LEFT($B167,3)<>\"NOX\"),BF58*INDEX('Damage costs'!$P$16:$P$43,MATCH($B167,'Damage costs'!$C$16:$C$43,0))/1000,BF58*INDEX('Damage costs'!$T$16:$T$43,MATCH($B167,'Damage costs'!$C$16:$C$43,0))/1000),\"\")","v":""},{"$f":"IFERROR(IF(OR($C$168=FALSE,LEFT($B167,3)<>\"NOX\"),BG58*INDEX('Damage costs'!$P$16:$P$43,MATCH($B167,'Damage costs'!$C$16:$C$43,0))/1000,BG58*INDEX('Damage costs'!$T$16:$T$43,MATCH($B167,'Damage costs'!$C$16:$C$43,0))/1000),\"\")","v":""},{"$f":"IFERROR(IF(OR($C$168=FALSE,LEFT($B167,3)<>\"NOX\"),BH58*INDEX('Damage costs'!$P$16:$P$43,MATCH($B167,'Damage costs'!$C$16:$C$43,0))/1000,BH58*INDEX('Damage costs'!$T$16:$T$43,MATCH($B167,'Damage costs'!$C$16:$C$43,0))/1000),\"\")","v":""},{"$f":"IFERROR(IF(OR($C$168=FALSE,LEFT($B167,3)<>\"NOX\"),BI58*INDEX('Damage costs'!$P$16:$P$43,MATCH($B167,'Damage costs'!$C$16:$C$43,0))/1000,BI58*INDEX('Damage costs'!$T$16:$T$43,MATCH($B167,'Damage costs'!$C$16:$C$43,0))/1000),\"\")","v":""},{"$f":"IFERROR(IF(OR($C$168=FALSE,LEFT($B167,3)<>\"NOX\"),BJ58*INDEX('Damage costs'!$P$16:$P$43,MATCH($B167,'Damage costs'!$C$16:$C$43,0))/1000,BJ58*INDEX('Damage costs'!$T$16:$T$43,MATCH($B167,'Damage costs'!$C$16:$C$43,0))/1000),\"\")","v":""},{"$f":"IFERROR(IF(OR($C$168=FALSE,LEFT($B167,3)<>\"NOX\"),BK58*INDEX('Damage costs'!$P$16:$P$43,MATCH($B167,'Damage costs'!$C$16:$C$43,0))/1000,BK58*INDEX('Damage costs'!$T$16:$T$43,MATCH($B167,'Damage costs'!$C$16:$C$43,0))/1000),\"\")","v":""},{"$f":"IFERROR(IF(OR($C$168=FALSE,LEFT($B167,3)<>\"NOX\"),BL58*INDEX('Damage costs'!$P$16:$P$43,MATCH($B167,'Damage costs'!$C$16:$C$43,0))/1000,BL58*INDEX('Damage costs'!$T$16:$T$43,MATCH($B167,'Damage costs'!$C$16:$C$43,0))/1000),\"\")","v":""},{"$f":"IFERROR(IF(OR($C$168=FALSE,LEFT($B167,3)<>\"NOX\"),BM58*INDEX('Damage costs'!$P$16:$P$43,MATCH($B167,'Damage costs'!$C$16:$C$43,0))/1000,BM58*INDEX('Damage costs'!$T$16:$T$43,MATCH($B167,'Damage costs'!$C$16:$C$43,0))/1000),\"\")","v":""},{"$f":"IFERROR(IF(OR($C$168=FALSE,LEFT($B167,3)<>\"NOX\"),BN58*INDEX('Damage costs'!$P$16:$P$43,MATCH($B167,'Damage costs'!$C$16:$C$43,0))/1000,BN58*INDEX('Damage costs'!$T$16:$T$43,MATCH($B167,'Damage costs'!$C$16:$C$43,0))/1000),\"\")","v":""},{"$f":"IFERROR(IF(OR($C$168=FALSE,LEFT($B167,3)<>\"NOX\"),BO58*INDEX('Damage costs'!$P$16:$P$43,MATCH($B167,'Damage costs'!$C$16:$C$43,0))/1000,BO58*INDEX('Damage costs'!$T$16:$T$43,MATCH($B167,'Damage costs'!$C$16:$C$43,0))/1000),\"\")","v":""},{"$f":"IFERROR(IF(OR($C$168=FALSE,LEFT($B167,3)<>\"NOX\"),BP58*INDEX('Damage costs'!$P$16:$P$43,MATCH($B167,'Damage costs'!$C$16:$C$43,0))/1000,BP58*INDEX('Damage costs'!$T$16:$T$43,MATCH($B167,'Damage costs'!$C$16:$C$43,0))/1000),\"\")","v":""},{"$f":"IFERROR(IF(OR($C$168=FALSE,LEFT($B167,3)<>\"NOX\"),BQ58*INDEX('Damage costs'!$P$16:$P$43,MATCH($B167,'Damage costs'!$C$16:$C$43,0))/1000,BQ58*INDEX('Damage costs'!$T$16:$T$43,MATCH($B167,'Damage costs'!$C$16:$C$43,0))/1000),\"\")","v":""},{"$f":"IFERROR(IF(OR($C$168=FALSE,LEFT($B167,3)<>\"NOX\"),BR58*INDEX('Damage costs'!$P$16:$P$43,MATCH($B167,'Damage costs'!$C$16:$C$43,0))/1000,BR58*INDEX('Damage costs'!$T$16:$T$43,MATCH($B167,'Damage costs'!$C$16:$C$43,0))/1000),\"\")","v":""},{"$f":"IFERROR(IF(OR($C$168=FALSE,LEFT($B167,3)<>\"NOX\"),BS58*INDEX('Damage costs'!$P$16:$P$43,MATCH($B167,'Damage costs'!$C$16:$C$43,0))/1000,BS58*INDEX('Damage costs'!$T$16:$T$43,MATCH($B167,'Damage costs'!$C$16:$C$43,0))/1000),\"\")","v":""},{"$f":"IFERROR(IF(OR($C$168=FALSE,LEFT($B167,3)<>\"NOX\"),BT58*INDEX('Damage costs'!$P$16:$P$43,MATCH($B167,'Damage costs'!$C$16:$C$43,0))/1000,BT58*INDEX('Damage costs'!$T$16:$T$43,MATCH($B167,'Damage costs'!$C$16:$C$43,0))/1000),\"\")","v":""},{"$f":"IFERROR(IF(OR($C$168=FALSE,LEFT($B167,3)<>\"NOX\"),BU58*INDEX('Damage costs'!$P$16:$P$43,MATCH($B167,'Damage costs'!$C$16:$C$43,0))/1000,BU58*INDEX('Damage costs'!$T$16:$T$43,MATCH($B167,'Damage costs'!$C$16:$C$43,0))/1000),\"\")","v":""},{"$f":"IFERROR(IF(OR($C$168=FALSE,LEFT($B167,3)<>\"NOX\"),BV58*INDEX('Damage costs'!$P$16:$P$43,MATCH($B167,'Damage costs'!$C$16:$C$43,0))/1000,BV58*INDEX('Damage costs'!$T$16:$T$43,MATCH($B167,'Damage costs'!$C$16:$C$43,0))/1000),\"\")","v":""},{"$f":"IFERROR(IF(OR($C$168=FALSE,LEFT($B167,3)<>\"NOX\"),BW58*INDEX('Damage costs'!$P$16:$P$43,MATCH($B167,'Damage costs'!$C$16:$C$43,0))/1000,BW58*INDEX('Damage costs'!$T$16:$T$43,MATCH($B167,'Damage costs'!$C$16:$C$43,0))/1000),\"\")","v":""},{"$f":"IFERROR(IF(OR($C$168=FALSE,LEFT($B167,3)<>\"NOX\"),BX58*INDEX('Damage costs'!$P$16:$P$43,MATCH($B167,'Damage costs'!$C$16:$C$43,0))/1000,BX58*INDEX('Damage costs'!$T$16:$T$43,MATCH($B167,'Damage costs'!$C$16:$C$43,0))/1000),\"\")","v":""},{"$f":"IFERROR(IF(OR($C$168=FALSE,LEFT($B167,3)<>\"NOX\"),BY58*INDEX('Damage costs'!$P$16:$P$43,MATCH($B167,'Damage costs'!$C$16:$C$43,0))/1000,BY58*INDEX('Damage costs'!$T$16:$T$43,MATCH($B167,'Damage costs'!$C$16:$C$43,0))/1000),\"\")","v":""},{"$f":"IFERROR(IF(OR($C$168=FALSE,LEFT($B167,3)<>\"NOX\"),BZ58*INDEX('Damage costs'!$P$16:$P$43,MATCH($B167,'Damage costs'!$C$16:$C$43,0))/1000,BZ58*INDEX('Damage costs'!$T$16:$T$43,MATCH($B167,'Damage costs'!$C$16:$C$43,0))/1000),\"\")","v":""},{"$f":"IFERROR(IF(OR($C$168=FALSE,LEFT($B167,3)<>\"NOX\"),CA58*INDEX('Damage costs'!$P$16:$P$43,MATCH($B167,'Damage costs'!$C$16:$C$43,0))/1000,CA58*INDEX('Damage costs'!$T$16:$T$43,MATCH($B167,'Damage costs'!$C$16:$C$43,0))/1000),\"\")","v":""},{"$f":"IFERROR(IF(OR($C$168=FALSE,LEFT($B167,3)<>\"NOX\"),CB58*INDEX('Damage costs'!$P$16:$P$43,MATCH($B167,'Damage costs'!$C$16:$C$43,0))/1000,CB58*INDEX('Damage costs'!$T$16:$T$43,MATCH($B167,'Damage costs'!$C$16:$C$43,0))/1000),\"\")","v":""},{"$f":"IFERROR(IF(OR($C$168=FALSE,LEFT($B167,3)<>\"NOX\"),CC58*INDEX('Damage costs'!$P$16:$P$43,MATCH($B167,'Damage costs'!$C$16:$C$43,0))/1000,CC58*INDEX('Damage costs'!$T$16:$T$43,MATCH($B167,'Damage costs'!$C$16:$C$43,0))/1000),\"\")","v":""},{"$f":"IFERROR(IF(OR($C$168=FALSE,LEFT($B167,3)<>\"NOX\"),CD58*INDEX('Damage costs'!$P$16:$P$43,MATCH($B167,'Damage costs'!$C$16:$C$43,0))/1000,CD58*INDEX('Damage costs'!$T$16:$T$43,MATCH($B167,'Damage costs'!$C$16:$C$43,0))/1000),\"\")","v":""},{"$f":"IFERROR(IF(OR($C$168=FALSE,LEFT($B167,3)<>\"NOX\"),CE58*INDEX('Damage costs'!$P$16:$P$43,MATCH($B167,'Damage costs'!$C$16:$C$43,0))/1000,CE58*INDEX('Damage costs'!$T$16:$T$43,MATCH($B167,'Damage costs'!$C$16:$C$43,0))/1000),\"\")","v":""},{"$f":"IFERROR(IF(OR($C$168=FALSE,LEFT($B167,3)<>\"NOX\"),CF58*INDEX('Damage costs'!$P$16:$P$43,MATCH($B167,'Damage costs'!$C$16:$C$43,0))/1000,CF58*INDEX('Damage costs'!$T$16:$T$43,MATCH($B167,'Damage costs'!$C$16:$C$43,0))/1000),\"\")","v":""},{"$f":"IFERROR(IF(OR($C$168=FALSE,LEFT($B167,3)<>\"NOX\"),CG58*INDEX('Damage costs'!$P$16:$P$43,MATCH($B167,'Damage costs'!$C$16:$C$43,0))/1000,CG58*INDEX('Damage costs'!$T$16:$T$43,MATCH($B167,'Damage costs'!$C$16:$C$43,0))/1000),\"\")","v":""},{"$f":"IFERROR(IF(OR($C$168=FALSE,LEFT($B167,3)<>\"NOX\"),CH58*INDEX('Damage costs'!$P$16:$P$43,MATCH($B167,'Damage costs'!$C$16:$C$43,0))/1000,CH58*INDEX('Damage costs'!$T$16:$T$43,MATCH($B167,'Damage costs'!$C$16:$C$43,0))/1000),\"\")","v":""},{"$f":"IFERROR(IF(OR($C$168=FALSE,LEFT($B167,3)<>\"NOX\"),CI58*INDEX('Damage costs'!$P$16:$P$43,MATCH($B167,'Damage costs'!$C$16:$C$43,0))/1000,CI58*INDEX('Damage costs'!$T$16:$T$43,MATCH($B167,'Damage costs'!$C$16:$C$43,0))/1000),\"\")","v":""},{"$f":"IFERROR(IF(OR($C$168=FALSE,LEFT($B167,3)<>\"NOX\"),CJ58*INDEX('Damage costs'!$P$16:$P$43,MATCH($B167,'Damage costs'!$C$16:$C$43,0))/1000,CJ58*INDEX('Damage costs'!$T$16:$T$43,MATCH($B167,'Damage costs'!$C$16:$C$43,0))/1000),\"\")","v":""},{"$f":"IFERROR(IF(OR($C$168=FALSE,LEFT($B167,3)<>\"NOX\"),CK58*INDEX('Damage costs'!$P$16:$P$43,MATCH($B167,'Damage costs'!$C$16:$C$43,0))/1000,CK58*INDEX('Damage costs'!$T$16:$T$43,MATCH($B167,'Damage costs'!$C$16:$C$43,0))/1000),\"\")","v":""},{"$f":"IFERROR(IF(OR($C$168=FALSE,LEFT($B167,3)<>\"NOX\"),CL58*INDEX('Damage costs'!$P$16:$P$43,MATCH($B167,'Damage costs'!$C$16:$C$43,0))/1000,CL58*INDEX('Damage costs'!$T$16:$T$43,MATCH($B167,'Damage costs'!$C$16:$C$43,0))/1000),\"\")","v":""},{"$f":"IFERROR(IF(OR($C$168=FALSE,LEFT($B167,3)<>\"NOX\"),CM58*INDEX('Damage costs'!$P$16:$P$43,MATCH($B167,'Damage costs'!$C$16:$C$43,0))/1000,CM58*INDEX('Damage costs'!$T$16:$T$43,MATCH($B167,'Damage costs'!$C$16:$C$43,0))/1000),\"\")","v":""},{"$f":"IFERROR(IF(OR($C$168=FALSE,LEFT($B167,3)<>\"NOX\"),CN58*INDEX('Damage costs'!$P$16:$P$43,MATCH($B167,'Damage costs'!$C$16:$C$43,0))/1000,CN58*INDEX('Damage costs'!$T$16:$T$43,MATCH($B167,'Damage costs'!$C$16:$C$43,0))/1000),\"\")","v":""},{"$f":"IFERROR(IF(OR($C$168=FALSE,LEFT($B167,3)<>\"NOX\"),CO58*INDEX('Damage costs'!$P$16:$P$43,MATCH($B167,'Damage costs'!$C$16:$C$43,0))/1000,CO58*INDEX('Damage costs'!$T$16:$T$43,MATCH($B167,'Damage costs'!$C$16:$C$43,0))/1000),\"\")","v":""},{"$f":"IFERROR(IF(OR($C$168=FALSE,LEFT($B167,3)<>\"NOX\"),CP58*INDEX('Damage costs'!$P$16:$P$43,MATCH($B167,'Damage costs'!$C$16:$C$43,0))/1000,CP58*INDEX('Damage costs'!$T$16:$T$43,MATCH($B167,'Damage costs'!$C$16:$C$43,0))/1000),\"\")","v":""},{"$f":"IFERROR(IF(OR($C$168=FALSE,LEFT($B167,3)<>\"NOX\"),CQ58*INDEX('Damage costs'!$P$16:$P$43,MATCH($B167,'Damage costs'!$C$16:$C$43,0))/1000,CQ58*INDEX('Damage costs'!$T$16:$T$43,MATCH($B167,'Damage costs'!$C$16:$C$43,0))/1000),\"\")","v":""},{"$f":"IFERROR(IF(OR($C$168=FALSE,LEFT($B167,3)<>\"NOX\"),CR58*INDEX('Damage costs'!$P$16:$P$43,MATCH($B167,'Damage costs'!$C$16:$C$43,0))/1000,CR58*INDEX('Damage costs'!$T$16:$T$43,MATCH($B167,'Damage costs'!$C$16:$C$43,0))/1000),\"\")","v":""},{"$f":"IFERROR(IF(OR($C$168=FALSE,LEFT($B167,3)<>\"NOX\"),CS58*INDEX('Damage costs'!$P$16:$P$43,MATCH($B167,'Damage costs'!$C$16:$C$43,0))/1000,CS58*INDEX('Damage costs'!$T$16:$T$43,MATCH($B167,'Damage costs'!$C$16:$C$43,0))/1000),\"\")","v":""},{"$f":"IFERROR(IF(OR($C$168=FALSE,LEFT($B167,3)<>\"NOX\"),CT58*INDEX('Damage costs'!$P$16:$P$43,MATCH($B167,'Damage costs'!$C$16:$C$43,0))/1000,CT58*INDEX('Damage costs'!$T$16:$T$43,MATCH($B167,'Damage costs'!$C$16:$C$43,0))/1000),\"\")","v":""},{"$f":"IFERROR(IF(OR($C$168=FALSE,LEFT($B167,3)<>\"NOX\"),CU58*INDEX('Damage costs'!$P$16:$P$43,MATCH($B167,'Damage costs'!$C$16:$C$43,0))/1000,CU58*INDEX('Damage costs'!$T$16:$T$43,MATCH($B167,'Damage costs'!$C$16:$C$43,0))/1000),\"\")","v":""},{"$f":"IFERROR(IF(OR($C$168=FALSE,LEFT($B167,3)<>\"NOX\"),CV58*INDEX('Damage costs'!$P$16:$P$43,MATCH($B167,'Damage costs'!$C$16:$C$43,0))/1000,CV58*INDEX('Damage costs'!$T$16:$T$43,MATCH($B167,'Damage costs'!$C$16:$C$43,0))/1000),\"\")","v":""},{"$f":"IFERROR(IF(OR($C$168=FALSE,LEFT($B167,3)<>\"NOX\"),CW58*INDEX('Damage costs'!$P$16:$P$43,MATCH($B167,'Damage costs'!$C$16:$C$43,0))/1000,CW58*INDEX('Damage costs'!$T$16:$T$43,MATCH($B167,'Damage costs'!$C$16:$C$43,0))/1000),\"\")","v":""},{"$f":"IFERROR(IF(OR($C$168=FALSE,LEFT($B167,3)<>\"NOX\"),CX58*INDEX('Damage costs'!$P$16:$P$43,MATCH($B167,'Damage costs'!$C$16:$C$43,0))/1000,CX58*INDEX('Damage costs'!$T$16:$T$43,MATCH($B167,'Damage costs'!$C$16:$C$43,0))/1000),\"\")","v":""},{"$f":"IFERROR(IF(OR($C$168=FALSE,LEFT($B167,3)<>\"NOX\"),CY58*INDEX('Damage costs'!$P$16:$P$43,MATCH($B167,'Damage costs'!$C$16:$C$43,0))/1000,CY58*INDEX('Damage costs'!$T$16:$T$43,MATCH($B167,'Damage costs'!$C$16:$C$43,0))/1000),\"\")","v":""}]
[null,"PM10 Used",{"$f":"IF(OR(LEFT(B162,4)=\"PM10\",LEFT(B163,4)=\"PM10\",LEFT(B164,4)=\"PM10\",LEFT(B165,4)=\"PM10\",LEFT(B166,4)=\"PM10\",LEFT(B167,4)=\"PM10\"),TRUE,FALSE)","v":false}]
[]
[null,"Uplift pa","%",{"$f":"'Discount and deflators'!$H$5","v":0.02}]
[null,"Uplift factor",null,{"$f":"IF(D$6=0,0,(1+$D170)^(D$6-'Data Input - General'!$F$22))","v":1},{"$f":"IF(E$6=0,0,(1+$D170)^(E$6-'Data Input - General'!$F$22))","v":1.02},{"$f":"IF(F$6=0,0,(1+$D170)^(F$6-'Data Input - General'!$F$22))","v":1.0404},{"$f":"IF(G$6=0,0,(1+$D170)^(G$6-'Data Input - General'!$F$22))","v":1.0612079999999999},{"$f":"IF(H$6=0,0,(1+$D170)^(H$6-'Data Input - General'!$F$22))","v":1.08243216},{"$f":"IF(I$6=0,0,(1+$D170)^(I$6-'Data Input - General'!$F$22))","v":1.1040808032},{"$f":"IF(J$6=0,0,(1+$D170)^(J$6-'Data Input - General'!$F$22))","v":1.1261624192640001},{"$f":"IF(K$6=0,0,(1+$D170)^(K$6-'Data Input - General'!$F$22))","v":1.1486856676492798},{"$f":"IF(L$6=0,0,(1+$D170)^(L$6-'Data Input - General'!$F$22))","v":1.1716593810022655},{"$f":"IF(M$6=0,0,(1+$D170)^(M$6-'Data Input - General'!$F$22))","v":1.1950925686223108},{"$f":"IF(N$6=0,0,(1+$D170)^(N$6-'Data Input - General'!$F$22))","v":1.2189944199947571},{"$f":"IF(O$6=0,0,(1+$D170)^(O$6-'Data Input - General'!$F$22))","v":1.243374308394652},{"$f":"IF(P$6=0,0,(1+$D170)^(P$6-'Data Input - General'!$F$22))","v":1.2682417945625453},{"$f":"IF(Q$6=0,0,(1+$D170)^(Q$6-'Data Input - General'!$F$22))","v":1.2936066304537961},{"$f":"IF(R$6=0,0,(1+$D170)^(R$6-'Data Input - General'!$F$22))","v":1.3194787630628722},{"$f":"IF(S$6=0,0,(1+$D170)^(S$6-'Data Input - General'!$F$22))","v":1.3458683383241292},{"$f":"IF(T$6=0,0,(1+$D170)^(T$6-'Data Input - General'!$F$22))","v":1.372785705090612},{"$f":"IF(U$6=0,0,(1+$D170)^(U$6-'Data Input - General'!$F$22))","v":1.4002414191924244},{"$f":"IF(V$6=0,0,(1+$D170)^(V$6-'Data Input - General'!$F$22))","v":1.4282462475762727},{"$f":"IF(W$6=0,0,(1+$D170)^(W$6-'Data Input - General'!$F$22))","v":1.4568111725277981},{"$f":"IF(X$6=0,0,(1+$D170)^(X$6-'Data Input - General'!$F$22))","v":1.4859473959783542},{"$f":"IF(Y$6=0,0,(1+$D170)^(Y$6-'Data Input - General'!$F$22))","v":1.5156663438979212},{"$f":"IF(Z$6=0,0,(1+$D170)^(Z$6-'Data Input - General'!$F$22))","v":1.5459796707758797},{"$f":"IF(AA$6=0,0,(1+$D170)^(AA$6-'Data Input - General'!$F$22))","v":1.576899264191397},{"$f":"IF(AB$6=0,0,(1+$D170)^(AB$6-'Data Input - General'!$F$22))","v":1.608437249475225},{"$f":"IF(AC$6=0,0,(1+$D170)^(AC$6-'Data Input - General'!$F$22))","v":1.6406059944647295},{"$f":"IF(AD$6=0,0,(1+$D170)^(AD$6-'Data Input - General'!$F$22))","v":1.6734181143540243},{"$f":"IF(AE$6=0,0,(1+$D170)^(AE$6-'Data Input - General'!$F$22))","v":1.7068864766411045},{"$f":"IF(AF$6=0,0,(1+$D170)^(AF$6-'Data Input - General'!$F$22))","v":1.7410242061739269},{"$f":"IF(AG$6=0,0,(1+$D170)^(AG$6-'Data Input - General'!$F$22))","v":1.7758446902974052},{"$f":"IF(AH$6=0,0,(1+$D170)^(AH$6-'Data Input - General'!$F$22))","v":1.8113615841033535},{"$f":"IF(AI$6=0,0,(1+$D170)^(AI$6-'Data Input - General'!$F$22))","v":0},{"$f":"IF(AJ$6=0,0,(1+$D170)^(AJ$6-'Data Input - General'!$F$22))","v":0},{"$f":"IF(AK$6=0,0,(1+$D170)^(AK$6-'Data Input - General'!$F$22))","v":0},{"$f":"IF(AL$6=0,0,(1+$D170)^(AL$6-'Data Input - General'!$F$22))","v":0},{"$f":"IF(AM$6=0,0,(1+$D170)^(AM$6-'Data Input - General'!$F$22))","v":0},{"$f":"IF(AN$6=0,0,(1+$D170)^(AN$6-'Data Input - General'!$F$22))","v":0},{"$f":"IF(AO$6=0,0,(1+$D170)^(AO$6-'Data Input - General'!$F$22))","v":0},{"$f":"IF(AP$6=0,0,(1+$D170)^(AP$6-'Data Input - General'!$F$22))","v":0},{"$f":"IF(AQ$6=0,0,(1+$D170)^(AQ$6-'Data Input - General'!$F$22))","v":0},{"$f":"IF(AR$6=0,0,(1+$D170)^(AR$6-'Data Input - General'!$F$22))","v":0},{"$f":"IF(AS$6=0,0,(1+$D170)^(AS$6-'Data Input - General'!$F$22))","v":0},{"$f":"IF(AT$6=0,0,(1+$D170)^(AT$6-'Data Input - General'!$F$22))","v":0},{"$f":"IF(AU$6=0,0,(1+$D170)^(AU$6-'Data Input - General'!$F$22))","v":0},{"$f":"IF(AV$6=0,0,(1+$D170)^(AV$6-'Data Input - General'!$F$22))","v":0},{"$f":"IF(AW$6=0,0,(1+$D170)^(AW$6-'Data Input - General'!$F$22))","v":0},{"$f":"IF(AX$6=0,0,(1+$D170)^(AX$6-'Data Input - General'!$F$22))","v":0},{"$f":"IF(AY$6=0,0,(1+$D170)^(AY$6-'Data Input - General'!$F$22))","v":0},{"$f":"IF(AZ$6=0,0,(1+$D170)^(AZ$6-'Data Input - General'!$F$22))","v":0},{"$f":"IF(BA$6=0,0,(1+$D170)^(BA$6-'Data Input - General'!$F$22))","v":0},{"$f":"IF(BB$6=0,0,(1+$D170)^(BB$6-'Data Input - General'!$F$22))","v":0},{"$f":"IF(BC$6=0,0,(1+$D170)^(BC$6-'Data Input - General'!$F$22))","v":0},{"$f":"IF(BD$6=0,0,(1+$D170)^(BD$6-'Data Input - General'!$F$22))","v":0},{"$f":"IF(BE$6=0,0,(1+$D170)^(BE$6-'Data Input - General'!$F$22))","v":0},{"$f":"IF(BF$6=0,0,(1+$D170)^(BF$6-'Data Input - General'!$F$22))","v":0},{"$f":"IF(BG$6=0,0,(1+$D170)^(BG$6-'Data Input - General'!$F$22))","v":0},{"$f":"IF(BH$6=0,0,(1+$D170)^(BH$6-'Data Input - General'!$F$22))","v":0},{"$f":"IF(BI$6=0,0,(1+$D170)^(BI$6-'Data Input - General'!$F$22))","v":0},{"$f":"IF(BJ$6=0,0,(1+$D170)^(BJ$6-'Data Input - General'!$F$22))","v":0},{"$f":"IF(BK$6=0,0,(1+$D170)^(BK$6-'Data Input - General'!$F$22))","v":0},{"$f":"IF(BL$6=0,0,(1+$D170)^(BL$6-'Data Input - General'!$F$22))","v":0},{"$f":"IF(BM$6=0,0,(1+$D170)^(BM$6-'Data Input - General'!$F$22))","v":0},{"$f":"IF(BN$6=0,0,(1+$D170)^(BN$6-'Data Input - General'!$F$22))","v":0},{"$f":"IF(BO$6=0,0,(1+$D170)^(BO$6-'Data Input - General'!$F$22))","v":0},{"$f":"IF(BP$6=0,0,(1+$D170)^(BP$6-'Data Input - General'!$F$22))","v":0},{"$f":"IF(BQ$6=0,0,(1+$D170)^(BQ$6-'Data Input - General'!$F$22))","v":0},{"$f":"IF(BR$6=0,0,(1+$D170)^(BR$6-'Data Input - General'!$F$22))","v":0},{"$f":"IF(BS$6=0,0,(1+$D170)^(BS$6-'Data Input - General'!$F$22))","v":0},{"$f":"IF(BT$6=0,0,(1+$D170)^(BT$6-'Data Input - General'!$F$22))","v":0},{"$f":"IF(BU$6=0,0,(1+$D170)^(BU$6-'Data Input - General'!$F$22))","v":0},{"$f":"IF(BV$6=0,0,(1+$D170)^(BV$6-'Data Input - General'!$F$22))","v":0},{"$f":"IF(BW$6=0,0,(1+$D170)^(BW$6-'Data Input - General'!$F$22))","v":0},{"$f":"IF(BX$6=0,0,(1+$D170)^(BX$6-'Data Input - General'!$F$22))","v":0},{"$f":"IF(BY$6=0,0,(1+$D170)^(BY$6-'Data Input - General'!$F$22))","v":0},{"$f":"IF(BZ$6=0,0,(1+$D170)^(BZ$6-'Data Input - General'!$F$22))","v":0},{"$f":"IF(CA$6=0,0,(1+$D170)^(CA$6-'Data Input - General'!$F$22))","v":0},{"$f":"IF(CB$6=0,0,(1+$D170)^(CB$6-'Data Input - General'!$F$22))","v":0},{"$f":"IF(CC$6=0,0,(1+$D170)^(CC$6-'Data Input - General'!$F$22))","v":0},{"$f":"IF(CD$6=0,0,(1+$D170)^(CD$6-'Data Input - General'!$F$22))","v":0},{"$f":"IF(CE$6=0,0,(1+$D170)^(CE$6-'Data Input - General'!$F$22))","v":0},{"$f":"IF(CF$6=0,0,(1+$D170)^(CF$6-'Data Input - General'!$F$22))","v":0},{"$f":"IF(CG$6=0,0,(1+$D170)^(CG$6-'Data Input - General'!$F$22))","v":0},{"$f":"IF(CH$6=0,0,(1+$D170)^(CH$6-'Data Input - General'!$F$22))","v":0},{"$f":"IF(CI$6=0,0,(1+$D170)^(CI$6-'Data Input - General'!$F$22))","v":0},{"$f":"IF(CJ$6=0,0,(1+$D170)^(CJ$6-'Data Input - General'!$F$22))","v":0},{"$f":"IF(CK$6=0,0,(1+$D170)^(CK$6-'Data Input - General'!$F$22))","v":0},{"$f":"IF(CL$6=0,0,(1+$D170)^(CL$6-'Data Input - General'!$F$22))","v":0},{"$f":"IF(CM$6=0,0,(1+$D170)^(CM$6-'Data Input - General'!$F$22))","v":0},{"$f":"IF(CN$6=0,0,(1+$D170)^(CN$6-'Data Input - General'!$F$22))","v":0},{"$f":"IF(CO$6=0,0,(1+$D170)^(CO$6-'Data Input - General'!$F$22))","v":0},{"$f":"IF(CP$6=0,0,(1+$D170)^(CP$6-'Data Input - General'!$F$22))","v":0},{"$f":"IF(CQ$6=0,0,(1+$D170)^(CQ$6-'Data Input - General'!$F$22))","v":0},{"$f":"IF(CR$6=0,0,(1+$D170)^(CR$6-'Data Input - General'!$F$22))","v":0},{"$f":"IF(CS$6=0,0,(1+$D170)^(CS$6-'Data Input - General'!$F$22))","v":0},{"$f":"IF(CT$6=0,0,(1+$D170)^(CT$6-'Data Input - General'!$F$22))","v":0},{"$f":"IF(CU$6=0,0,(1+$D170)^(CU$6-'Data Input - General'!$F$22))","v":0},{"$f":"IF(CV$6=0,0,(1+$D170)^(CV$6-'Data Input - General'!$F$22))","v":0},{"$f":"IF(CW$6=0,0,(1+$D170)^(CW$6-'Data Input - General'!$F$22))","v":0},{"$f":"IF(CX$6=0,0,(1+$D170)^(CX$6-'Data Input - General'!$F$22))","v":0},{"$f":"IF(CY$6=0,0,(1+$D170)^(CY$6-'Data Input - General'!$F$22))","v":0}]
[null,"Total value","£000's",{"$f":"SUM(D162:D167)*D171","v":10.600272350312391},{"$f":"SUM(E162:E167)*E171","v":10.812277797318639},{"$f":"SUM(F162:F167)*F171","v":11.028523353265012},11.249093820330311,11.474075696736918,11.703557210671656,11.93762835488509,0,0,0,0,0,0,0,0,0,0,0,0,0,0,0,0,0,0,0,0,0,0,0,0,0,{"$f":"SUM(AJ162:AJ167)*AJ171","v":0},0,0,0,0,0,0,0,0,0,0,0,0,0,0,0,0,0,0,0,0,0,0,0,0,0,0,0,{"$f":"SUM(BL162:BL167)*BL171","v":0},0,0,0,0,0,0,0,0,0,0,0,0,0,0,0,0,0,0,0,0,0,0,0,0,0,0,0,0,0,0,0,0,0,0,0,0,0,0,0]
[null,"Discounted total value","£000's",{"$f":"D172*D$7","v":10.600272350312391},10.446645214800618,10.295244559513653,10.146038116622151,9.9989940859464692,9.8540811281791285,9.7112683582055208,0,0,0,0,0,0,0,0,0,0,0,0,0,0,0,0,0,0,0,0,0,0,0,0,0,0,0,0,0,0,0,0,0,0,0,0,0,0,0,0,0,0,0,0,0,0,0,0,0,0,0,0,0,0,0,0,0,{"$f":"BP172*BP$7","v":0},0,0,0,0,0,0,0,0,0,0,0,0,0,0,0,0,0,0,0,0,0,0,0,0,0,0,0,0,0,0,0,0,0,0,0]
[]
[null,"Low high capex"]
[]
[null,"Low high range","%",{"$f":"'Data Input - BAU'!F34","v":0}]
[]
[null,"Low high opex"]
[]
[null,"Low high range","%",{"$f":"'Data Input - BAU'!F54","v":0.2}]
[]
[null,"Low high WACC"]
[]
[null,"Low WACC","%",{"$f":"'Data Input - General'!F16","v":0.06}]
[null,"Annualised payment","£000's",{"$f":"IFERROR(-PMT($D$185,SUM('Data Input - General'!$F$26:$F$28),D20*1000)/1000,0)","v":276.64705495409981}]
[null,"Annual value","£000's",{"$f":"IF(SUM($D$12:D$12)=0,0,$D$186)","v":276.64705495409981},{"$f":"IF(SUM($D$12:E$12)=0,0,$D$186)","v":276.64705495409981},{"$f":"IF(SUM($D$12:F$12)=0,0,$D$186)","v":276.64705495409981},{"$f":"IF(SUM($D$12:G$12)=0,0,$D$186)","v":276.64705495409981},{"$f":"IF(SUM($D$12:H$12)=0,0,$D$186)","v":276.64705495409981},{"$f":"IF(SUM($D$12:I$12)=0,0,$D$186)","v":276.64705495409981},{"$f":"IF(SUM($D$12:J$12)=0,0,$D$186)","v":276.64705495409981},{"$f":"IF(SUM($D$12:K$12)=0,0,$D$186)","v":276.64705495409981},{"$f":"IF(SUM($D$12:L$12)=0,0,$D$186)","v":276.64705495409981},{"$f":"IF(SUM($D$12:M$12)=0,0,$D$186)","v":276.64705495409981},{"$f":"IF(SUM($D$12:N$12)=0,0,$D$186)","v":276.64705495409981},{"$f":"IF(SUM($D$12:O$12)=0,0,$D$186)","v":276.64705495409981},{"$f":"IF(SUM($D$12:P$12)=0,0,$D$186)","v":276.64705495409981},{"$f":"IF(SUM($D$12:Q$12)=0,0,$D$186)","v":276.64705495409981},{"$f":"IF(SUM($D$12:R$12)=0,0,$D$186)","v":276.64705495409981},{"$f":"IF(SUM($D$12:S$12)=0,0,$D$186)","v":276.64705495409981},{"$f":"IF(SUM($D$12:T$12)=0,0,$D$186)","v":276.64705495409981},{"$f":"IF(SUM($D$12:U$12)=0,0,$D$186)","v":276.64705495409981},{"$f":"IF(SUM($D$12:V$12)=0,0,$D$186)","v":276.64705495409981},{"$f":"IF(SUM($D$12:W$12)=0,0,$D$186)","v":276.64705495409981},{"$f":"IF(SUM($D$12:X$12)=0,0,$D$186)","v":276.64705495409981},{"$f":"IF(SUM($D$12:Y$12)=0,0,$D$186)","v":276.64705495409981},{"$f":"IF(SUM($D$12:Z$12)=0,0,$D$186)","v":276.64705495409981},{"$f":"IF(SUM($D$12:AA$12)=0,0,$D$186)","v":276.64705495409981},{"$f":"IF(SUM($D$12:AB$12)=0,0,$D$186)","v":276.64705495409981},{"$f":"IF(SUM($D$12:AC$12)=0,0,$D$186)","v":276.64705495409981},{"$f":"IF(SUM($D$12:AD$12)=0,0,$D$186)","v":276.64705495409981},{"$f":"IF(SUM($D$12:AE$12)=0,0,$D$186)","v":276.64705495409981},{"$f":"IF(SUM($D$12:AF$12)=0,0,$D$186)","v":276.64705495409981},{"$f":"IF(SUM($D$12:AG$12)=0,0,$D$186)","v":276.64705495409981},{"$f":"IF(SUM($D$12:AH$12)=0,0,$D$186)","v":276.64705495409981},{"$f":"IF(SUM($D$12:AI$12)=0,0,$D$186)","v":276.64705495409981},{"$f":"IF(SUM($D$12:AJ$12)=0,0,$D$186)","v":276.64705495409981},{"$f":"IF(SUM($D$12:AK$12)=0,0,$D$186)","v":276.64705495409981},{"$f":"IF(SUM($D$12:AL$12)=0,0,$D$186)","v":276.64705495409981},{"$f":"IF(SUM($D$12:AM$12)=0,0,$D$186)","v":276.64705495409981},{"$f":"IF(SUM($D$12:AN$12)=0,0,$D$186)","v":276.64705495409981},{"$f":"IF(SUM($D$12:AO$12)=0,0,$D$186)","v":276.64705495409981},{"$f":"IF(SUM($D$12:AP$12)=0,0,$D$186)","v":276.64705495409981},{"$f":"IF(SUM($D$12:AQ$12)=0,0,$D$186)","v":276.64705495409981},{"$f":"IF(SUM($D$12:AR$12)=0,0,$D$186)","v":276.64705495409981},{"$f":"IF(SUM($D$12:AS$12)=0,0,$D$186)","v":276.64705495409981},{"$f":"IF(SUM($D$12:AT$12)=0,0,$D$186)","v":276.64705495409981},{"$f":"IF(SUM($D$12:AU$12)=0,0,$D$186)","v":276.64705495409981},{"$f":"IF(SUM($D$12:AV$12)=0,0,$D$186)","v":276.64705495409981},{"$f":"IF(SUM($D$12:AW$12)=0,0,$D$186)","v":276.64705495409981},{"$f":"IF(SUM($D$12:AX$12)=0,0,$D$186)","v":276.64705495409981},{"$f":"IF(SUM($D$12:AY$12)=0,0,$D$186)","v":276.64705495409981},{"$f":"IF(SUM($D$12:AZ$12)=0,0,$D$186)","v":276.64705495409981},{"$f":"IF(SUM($D$12:BA$12)=0,0,$D$186)","v":276.64705495409981},{"$f":"IF(SUM($D$12:BB$12)=0,0,$D$186)","v":276.64705495409981},{"$f":"IF(SUM($D$12:BC$12)=0,0,$D$186)","v":276.64705495409981},{"$f":"IF(SUM($D$12:BD$12)=0,0,$D$186)","v":276.64705495409981},{"$f":"IF(SUM($D$12:BE$12)=0,0,$D$186)","v":276.64705495409981},{"$f":"IF(SUM($D$12:BF$12)=0,0,$D$186)","v":276.64705495409981},{"$f":"IF(SUM($D$12:BG$12)=0,0,$D$186)","v":276.64705495409981},{"$f":"IF(SUM($D$12:BH$12)=0,0,$D$186)","v":276.64705495409981},{"$f":"IF(SUM($D$12:BI$12)=0,0,$D$186)","v":276.64705495409981},{"$f":"IF(SUM($D$12:BJ$12)=0,0,$D$186)","v":276.64705495409981},{"$f":"IF(SUM($D$12:BK$12)=0,0,$D$186)","v":276.64705495409981},{"$f":"IF(SUM($D$12:BL$12)=0,0,$D$186)","v":276.64705495409981},{"$f":"IF(SUM($D$12:BM$12)=0,0,$D$186)","v":276.64705495409981},{"$f":"IF(SUM($D$12:BN$12)=0,0,$D$186)","v":276.64705495409981},{"$f":"IF(SUM($D$12:BO$12)=0,0,$D$186)","v":276.64705495409981},{"$f":"IF(SUM($D$12:BP$12)=0,0,$D$186)","v":276.64705495409981},{"$f":"IF(SUM($D$12:BQ$12)=0,0,$D$186)","v":276.64705495409981},{"$f":"IF(SUM($D$12:BR$12)=0,0,$D$186)","v":276.64705495409981},{"$f":"IF(SUM($D$12:BS$12)=0,0,$D$186)","v":276.64705495409981},{"$f":"IF(SUM($D$12:BT$12)=0,0,$D$186)","v":276.64705495409981},{"$f":"IF(SUM($D$12:BU$12)=0,0,$D$186)","v":276.64705495409981},{"$f":"IF(SUM($D$12:BV$12)=0,0,$D$186)","v":276.64705495409981},{"$f":"IF(SUM($D$12:BW$12)=0,0,$D$186)","v":276.64705495409981},{"$f":"IF(SUM($D$12:BX$12)=0,0,$D$186)","v":276.64705495409981},{"$f":"IF(SUM($D$12:BY$12)=0,0,$D$186)","v":276.64705495409981},{"$f":"IF(SUM($D$12:BZ$12)=0,0,$D$186)","v":276.64705495409981},{"$f":"IF(SUM($D$12:CA$12)=0,0,$D$186)","v":276.64705495409981},{"$f":"IF(SUM($D$12:CB$12)=0,0,$D$186)","v":276.64705495409981},{"$f":"IF(SUM($D$12:CC$12)=0,0,$D$186)","v":276.64705495409981},{"$f":"IF(SUM($D$12:CD$12)=0,0,$D$186)","v":276.64705495409981},{"$f":"IF(SUM($D$12:CE$12)=0,0,$D$186)","v":276.64705495409981},{"$f":"IF(SUM($D$12:CF$12)=0,0,$D$186)","v":276.64705495409981},{"$f":"IF(SUM($D$12:CG$12)=0,0,$D$186)","v":276.64705495409981},{"$f":"IF(SUM($D$12:CH$12)=0,0,$D$186)","v":276.64705495409981},{"$f":"IF(SUM($D$12:CI$12)=0,0,$D$186)","v":276.64705495409981},{"$f":"IF(SUM($D$12:CJ$12)=0,0,$D$186)","v":276.64705495409981},{"$f":"IF(SUM($D$12:CK$12)=0,0,$D$186)","v":276.64705495409981},{"$f":"IF(SUM($D$12:CL$12)=0,0,$D$186)","v":276.64705495409981},{"$f":"IF(SUM($D$12:CM$12)=0,0,$D$186)","v":276.64705495409981},{"$f":"IF(SUM($D$12:CN$12)=0,0,$D$186)","v":276.64705495409981},{"$f":"IF(SUM($D$12:CO$12)=0,0,$D$186)","v":276.64705495409981},{"$f":"IF(SUM($D$12:CP$12)=0,0,$D$186)","v":276.64705495409981},{"$f":"IF(SUM($D$12:CQ$12)=0,0,$D$186)","v":276.64705495409981},{"$f":"IF(SUM($D$12:CR$12)=0,0,$D$186)","v":276.64705495409981},{"$f":"IF(SUM($D$12:CS$12)=0,0,$D$186)","v":276.64705495409981},{"$f":"IF(SUM($D$12:CT$12)=0,0,$D$186)","v":276.64705495409981},{"$f":"IF(SUM($D$12:CU$12)=0,0,$D$186)","v":276.64705495409981},{"$f":"IF(SUM($D$12:CV$12)=0,0,$D$186)","v":276.64705495409981},{"$f":"IF(SUM($D$12:CW$12)=0,0,$D$186)","v":276.64705495409981},{"$f":"IF(SUM($D$12:CX$12)=0,0,$D$186)","v":276.64705495409981},{"$f":"IF(SUM($D$12:CY$12)=0,0,$D$186)","v":276.64705495409981}]
[null,"Discounted WACC","£000's",{"$f":"D187*D$7","v":276.64705495409981},267.29184053536216,258.25298602450454,249.51979326039086,241.08192585545012,232.92939696178757,225.05255745100251,217.44208449372223,210.08897052533553,202.98451258486526,196.12030201436258,189.48821450663053,183.08040048949812,176.8892758352639,170.90751288431295,165.12803177228307,159.54399205051504,154.14878458986962,148.93602375832816,143.89953986311897,139.03337184842417,134.33176024002336,129.78914032852498,125.40013558311594,121.15955128803473,117.06236839423647,113.10373757897246,109.27897350625359,105.58354928140443,102.0130910931444,99.041836012761536,0,0,0,0,0,0,0,0,0,0,0,0,0,0,0,0,0,0,0,0,0,0,0,0,0,0,0,0,0,0,0,0,0,{"$f":"BP187*BP$7","v":0},0,0,0,0,0,0,0,0,0,0,0,0,0,0,0,0,0,0,0,0,0,0,0,0,0,0,0,0,0,0,0,0,0,0,0]
[]
[null,"Financing costs"]
[null,"Financing costs (if entered manually)","£000's",{"$f":"'Data Input - BAU'!H41","v":0},{"$f":"'Data Input - BAU'!I41","v":0},{"$f":"'Data Input - BAU'!J41","v":0},{"$f":"'Data Input - BAU'!K41","v":0},{"$f":"'Data Input - BAU'!L41","v":0},{"$f":"'Data Input - BAU'!M41","v":0},{"$f":"'Data Input - BAU'!N41","v":0},{"$f":"'Data Input - BAU'!O41","v":0},{"$f":"'Data Input - BAU'!P41","v":0},{"$f":"'Data Input - BAU'!Q41","v":0},{"$f":"'Data Input - BAU'!R41","v":0},{"$f":"'Data Input - BAU'!S41","v":0},{"$f":"'Data Input - BAU'!T41","v":0},{"$f":"'Data Input - BAU'!U41","v":0},{"$f":"'Data Input - BAU'!V41","v":0},{"$f":"'Data Input - BAU'!W41","v":0},{"$f":"'Data Input - BAU'!X41","v":0},{"$f":"'Data Input - BAU'!Y41","v":0},{"$f":"'Data Input - BAU'!Z41","v":0},{"$f":"'Data Input - BAU'!AA41","v":0},{"$f":"'Data Input - BAU'!AB41","v":0},{"$f":"'Data Input - BAU'!AC41","v":0},{"$f":"'Data Input - BAU'!AD41","v":0},{"$f":"'Data Input - BAU'!AE41","v":0},{"$f":"'Data Input - BAU'!AF41","v":0},{"$f":"'Data Input - BAU'!AG41","v":0},{"$f":"'Data Input - BAU'!AH41","v":0},{"$f":"'Data Input - BAU'!AI41","v":0},{"$f":"'Data Input - BAU'!AJ41","v":0},{"$f":"'Data Input - BAU'!AK41","v":0},{"$f":"'Data Input - BAU'!AL41","v":0},{"$f":"'Data Input - BAU'!AM41","v":0},{"$f":"'Data Input - BAU'!AN41","v":0},{"$f":"'Data Input - BAU'!AO41","v":0},{"$f":"'Data Input - BAU'!AP41","v":0},{"$f":"'Data Input - BAU'!AQ41","v":0},{"$f":"'Data Input - BAU'!AR41","v":0},{"$f":"'Data Input - BAU'!AS41","v":0},{"$f":"'Data Input - BAU'!AT41","v":0},{"$f":"'Data Input - BAU'!AU41","v":0},{"$f":"'Data Input - BAU'!AV41","v":0},{"$f":"'Data Input - BAU'!AW41","v":0},{"$f":"'Data Input - BAU'!AX41","v":0},{"$f":"'Data Input - BAU'!AY41","v":0},{"$f":"'Data Input - BAU'!AZ41","v":0},{"$f":"'Data Input - BAU'!BA41","v":0},{"$f":"'Data Input - BAU'!BB41","v":0},{"$f":"'Data Input - BAU'!BC41","v":0},{"$f":"'Data Input - BAU'!BD41","v":0},{"$f":"'Data Input - BAU'!BE41","v":0},{"$f":"'Data Input - BAU'!BF41","v":0},{"$f":"'Data Input - BAU'!BG41","v":0},{"$f":"'Data Input - BAU'!BH41","v":0},{"$f":"'Data Input - BAU'!BI41","v":0},{"$f":"'Data Input - BAU'!BJ41","v":0},{"$f":"'Data Input - BAU'!BK41","v":0},{"$f":"'Data Input - BAU'!BL41","v":0},{"$f":"'Data Input - BAU'!BM41","v":0},{"$f":"'Data Input - BAU'!BN41","v":0},{"$f":"'Data Input - BAU'!BO41","v":0},{"$f":"'Data Input - BAU'!BP41","v":0},{"$f":"'Data Input - BAU'!BQ41","v":0},{"$f":"'Data Input - BAU'!BR41","v":0},{"$f":"'Data Input - BAU'!BS41","v":0},{"$f":"'Data Input - BAU'!BT41","v":0},{"$f":"'Data Input - BAU'!BU41","v":0},{"$f":"'Data Input - BAU'!BV41","v":0},{"$f":"'Data Input - BAU'!BW41","v":0},{"$f":"'Data Input - BAU'!BX41","v":0},{"$f":"'Data Input - BAU'!BY41","v":0},{"$f":"'Data Input - BAU'!BZ41","v":0},{"$f":"'Data Input - BAU'!CA41","v":0},{"$f":"'Data Input - BAU'!CB41","v":0},{"$f":"'Data Input - BAU'!CC41","v":0},{"$f":"'Data Input - BAU'!CD41","v":0},{"$f":"'Data Input - BAU'!CE41","v":0},{"$f":"'Data Input - BAU'!CF41","v":0},{"$f":"'Data Input - BAU'!CG41","v":0},{"$f":"'Data Input - BAU'!CH41","v":0},{"$f":"'Data Input - BAU'!CI41","v":0},{"$f":"'Data Input - BAU'!CJ41","v":0},{"$f":"'Data Input - BAU'!CK41","v":0},{"$f":"'Data Input - BAU'!CL41","v":0},{"$f":"'Data Input - BAU'!CM41","v":0},{"$f":"'Data Input - BAU'!CN41","v":0},{"$f":"'Data Input - BAU'!CO41","v":0},{"$f":"'Data Input - BAU'!CP41","v":0},{"$f":"'Data Input - BAU'!CQ41","v":0},{"$f":"'Data Input - BAU'!CR41","v":0},{"$f":"'Data Input - BAU'!CS41","v":0},{"$f":"'Data Input - BAU'!CT41","v":0},{"$f":"'Data Input - BAU'!CU41","v":0},{"$f":"'Data Input - BAU'!CV41","v":0},{"$f":"'Data Input - BAU'!CW41","v":0},{"$f":"'Data Input - BAU'!CX41","v":0},{"$f":"'Data Input - BAU'!CY41","v":0},{"$f":"'Data Input - BAU'!CZ41","v":0},{"$f":"'Data Input - BAU'!DA41","v":0},{"$f":"'Data Input - BAU'!DB41","v":0},{"$f":"'Data Input - BAU'!DC41","v":0}]
[null,"Discounted finacning","£000's",{"$f":"D191*D$7","v":0},0,0,0,0,0,0,0,0,0,0,0,0,0,0,0,0,0,0,0,0,0,0,0,0,0,0,0,0,0,0,0,0,0,0,0,0,0,0,0,0,0,0,0,0,0,0,0,0,0,0,0,0,0,0,0,0,0,0,0,0,0,0,0,{"$f":"BP191*BP$7","v":0},0,0,0,0,0,0,0,0,0,0,0,0,0,0,0,0,0,0,0,0,0,0,0,0,0,0,0,0,0,0,0,0,0,0,0]
[]
[null,"Total capex","£000's",{"$f":"IF('Data Input - BAU'!$F$37=\"Yes\",D192+D13,D188)","v":276.64705495409981},{"$f":"IF('Data Input - BAU'!$F$37=\"Yes\",E192+E13,E188)","v":267.29184053536216},{"$f":"IF('Data Input - BAU'!$F$37=\"Yes\",F192+F13,F188)","v":258.25298602450454},{"$f":"IF('Data Input - BAU'!$F$37=\"Yes\",G192+G13,G188)","v":249.51979326039086},{"$f":"IF('Data Input - BAU'!$F$37=\"Yes\",H192+H13,H188)","v":241.08192585545012},{"$f":"IF('Data Input - BAU'!$F$37=\"Yes\",I192+I13,I188)","v":232.92939696178757},{"$f":"IF('Data Input - BAU'!$F$37=\"Yes\",J192+J13,J188)","v":225.05255745100251},{"$f":"IF('Data Input - BAU'!$F$37=\"Yes\",K192+K13,K188)","v":217.44208449372223},{"$f":"IF('Data Input - BAU'!$F$37=\"Yes\",L192+L13,L188)","v":210.08897052533553},{"$f":"IF('Data Input - BAU'!$F$37=\"Yes\",M192+M13,M188)","v":202.98451258486526},{"$f":"IF('Data Input - BAU'!$F$37=\"Yes\",N192+N13,N188)","v":196.12030201436258},{"$f":"IF('Data Input - BAU'!$F$37=\"Yes\",O192+O13,O188)","v":189.48821450663053},{"$f":"IF('Data Input - BAU'!$F$37=\"Yes\",P192+P13,P188)","v":183.08040048949812},{"$f":"IF('Data Input - BAU'!$F$37=\"Yes\",Q192+Q13,Q188)","v":176.8892758352639},{"$f":"IF('Data Input - BAU'!$F$37=\"Yes\",R192+R13,R188)","v":170.90751288431295},{"$f":"IF('Data Input - BAU'!$F$37=\"Yes\",S192+S13,S188)","v":165.12803177228307},{"$f":"IF('Data Input - BAU'!$F$37=\"Yes\",T192+T13,T188)","v":159.54399205051504},{"$f":"IF('Data Input - BAU'!$F$37=\"Yes\",U192+U13,U188)","v":154.14878458986962},{"$f":"IF('Data Input - BAU'!$F$37=\"Yes\",V192+V13,V188)","v":148.93602375832816},{"$f":"IF('Data Input - BAU'!$F$37=\"Yes\",W192+W13,W188)","v":143.89953986311897},{"$f":"IF('Data Input - BAU'!$F$37=\"Yes\",X192+X13,X188)","v":139.03337184842417},{"$f":"IF('Data Input - BAU'!$F$37=\"Yes\",Y192+Y13,Y188)","v":134.33176024002336},{"$f":"IF('Data Input - BAU'!$F$37=\"Yes\",Z192+Z13,Z188)","v":129.78914032852498},{"$f":"IF('Data Input - BAU'!$F$37=\"Yes\",AA192+AA13,AA188)","v":125.40013558311594},{"$f":"IF('Data Input - BAU'!$F$37=\"Yes\",AB192+AB13,AB188)","v":121.15955128803473},{"$f":"IF('Data Input - BAU'!$F$37=\"Yes\",AC192+AC13,AC188)","v":117.06236839423647},{"$f":"IF('Data Input - BAU'!$F$37=\"Yes\",AD192+AD13,AD188)","v":113.10373757897246},{"$f":"IF('Data Input - BAU'!$F$37=\"Yes\",AE192+AE13,AE188)","v":109.27897350625359},{"$f":"IF('Data Input - BAU'!$F$37=\"Yes\",AF192+AF13,AF188)","v":105.58354928140443},{"$f":"IF('Data Input - BAU'!$F$37=\"Yes\",AG192+AG13,AG188)","v":102.0130910931444},{"$f":"IF('Data Input - BAU'!$F$37=\"Yes\",AH192+AH13,AH188)","v":99.041836012761536},{"$f":"IF('Data Input - BAU'!$F$37=\"Yes\",AI192+AI13,AI188)","v":0},{"$f":"IF('Data Input - BAU'!$F$37=\"Yes\",AJ192+AJ13,AJ188)","v":0},{"$f":"IF('Data Input - BAU'!$F$37=\"Yes\",AK192+AK13,AK188)","v":0},{"$f":"IF('Data Input - BAU'!$F$37=\"Yes\",AL192+AL13,AL188)","v":0},{"$f":"IF('Data Input - BAU'!$F$37=\"Yes\",AM192+AM13,AM188)","v":0},{"$f":"IF('Data Input - BAU'!$F$37=\"Yes\",AN192+AN13,AN188)","v":0},{"$f":"IF('Data Input - BAU'!$F$37=\"Yes\",AO192+AO13,AO188)","v":0},{"$f":"IF('Data Input - BAU'!$F$37=\"Yes\",AP192+AP13,AP188)","v":0},{"$f":"IF('Data Input - BAU'!$F$37=\"Yes\",AQ192+AQ13,AQ188)","v":0},{"$f":"IF('Data Input - BAU'!$F$37=\"Yes\",AR192+AR13,AR188)","v":0},{"$f":"IF('Data Input - BAU'!$F$37=\"Yes\",AS192+AS13,AS188)","v":0},{"$f":"IF('Data Input - BAU'!$F$37=\"Yes\",AT192+AT13,AT188)","v":0},{"$f":"IF('Data Input - BAU'!$F$37=\"Yes\",AU192+AU13,AU188)","v":0},{"$f":"IF('Data Input - BAU'!$F$37=\"Yes\",AV192+AV13,AV188)","v":0},{"$f":"IF('Data Input - BAU'!$F$37=\"Yes\",AW192+AW13,AW188)","v":0},{"$f":"IF('Data Input - BAU'!$F$37=\"Yes\",AX192+AX13,AX188)","v":0},{"$f":"IF('Data Input - BAU'!$F$37=\"Yes\",AY192+AY13,AY188)","v":0},{"$f":"IF('Data Input - BAU'!$F$37=\"Yes\",AZ192+AZ13,AZ188)","v":0},{"$f":"IF('Data Input - BAU'!$F$37=\"Yes\",BA192+BA13,BA188)","v":0},{"$f":"IF('Data Input - BAU'!$F$37=\"Yes\",BB192+BB13,BB188)","v":0},{"$f":"IF('Data Input - BAU'!$F$37=\"Yes\",BC192+BC13,BC188)","v":0},{"$f":"IF('Data Input - BAU'!$F$37=\"Yes\",BD192+BD13,BD188)","v":0},{"$f":"IF('Data Input - BAU'!$F$37=\"Yes\",BE192+BE13,BE188)","v":0},{"$f":"IF('Data Input - BAU'!$F$37=\"Yes\",BF192+BF13,BF188)","v":0},{"$f":"IF('Data Input - BAU'!$F$37=\"Yes\",BG192+BG13,BG188)","v":0},{"$f":"IF('Data Input - BAU'!$F$37=\"Yes\",BH192+BH13,BH188)","v":0},{"$f":"IF('Data Input - BAU'!$F$37=\"Yes\",BI192+BI13,BI188)","v":0},{"$f":"IF('Data Input - BAU'!$F$37=\"Yes\",BJ192+BJ13,BJ188)","v":0},{"$f":"IF('Data Input - BAU'!$F$37=\"Yes\",BK192+BK13,BK188)","v":0},{"$f":"IF('Data Input - BAU'!$F$37=\"Yes\",BL192+BL13,BL188)","v":0},{"$f":"IF('Data Input - BAU'!$F$37=\"Yes\",BM192+BM13,BM188)","v":0},{"$f":"IF('Data Input - BAU'!$F$37=\"Yes\",BN192+BN13,BN188)","v":0},{"$f":"IF('Data Input - BAU'!$F$37=\"Yes\",BO192+BO13,BO188)","v":0},{"$f":"IF('Data Input - BAU'!$F$37=\"Yes\",BP192+BP13,BP188)","v":0},{"$f":"IF('Data Input - BAU'!$F$37=\"Yes\",BQ192+BQ13,BQ188)","v":0},{"$f":"IF('Data Input - BAU'!$F$37=\"Yes\",BR192+BR13,BR188)","v":0},{"$f":"IF('Data Input - BAU'!$F$37=\"Yes\",BS192+BS13,BS188)","v":0},{"$f":"IF('Data Input - BAU'!$F$37=\"Yes\",BT192+BT13,BT188)","v":0},{"$f":"IF('Data Input - BAU'!$F$37=\"Yes\",BU192+BU13,BU188)","v":0},{"$f":"IF('Data Input - BAU'!$F$37=\"Yes\",BV192+BV13,BV188)","v":0},{"$f":"IF('Data Input - BAU'!$F$37=\"Yes\",BW192+BW13,BW188)","v":0},{"$f":"IF('Data Input - BAU'!$F$37=\"Yes\",BX192+BX13,BX188)","v":0},{"$f":"IF('Data Input - BAU'!$F$37=\"Yes\",BY192+BY13,BY188)","v":0},{"$f":"IF('Data Input - BAU'!$F$37=\"Yes\",BZ192+BZ13,BZ188)","v":0},{"$f":"IF('Data Input - BAU'!$F$37=\"Yes\",CA192+CA13,CA188)","v":0},{"$f":"IF('Data Input - BAU'!$F$37=\"Yes\",CB192+CB13,CB188)","v":0},{"$f":"IF('Data Input - BAU'!$F$37=\"Yes\",CC192+CC13,CC188)","v":0},{"$f":"IF('Data Input - BAU'!$F$37=\"Yes\",CD192+CD13,CD188)","v":0},{"$f":"IF('Data Input - BAU'!$F$37=\"Yes\",CE192+CE13,CE188)","v":0},{"$f":"IF('Data Input - BAU'!$F$37=\"Yes\",CF192+CF13,CF188)","v":0},{"$f":"IF('Data Input - BAU'!$F$37=\"Yes\",CG192+CG13,CG188)","v":0},{"$f":"IF('Data Input - BAU'!$F$37=\"Yes\",CH192+CH13,CH188)","v":0},{"$f":"IF('Data Input - BAU'!$F$37=\"Yes\",CI192+CI13,CI188)","v":0},{"$f":"IF('Data Input - BAU'!$F$37=\"Yes\",CJ192+CJ13,CJ188)","v":0},{"$f":"IF('Data Input - BAU'!$F$37=\"Yes\",CK192+CK13,CK188)","v":0},{"$f":"IF('Data Input - BAU'!$F$37=\"Yes\",CL192+CL13,CL188)","v":0},{"$f":"IF('Data Input - BAU'!$F$37=\"Yes\",CM192+CM13,CM188)","v":0},{"$f":"IF('Data Input - BAU'!$F$37=\"Yes\",CN192+CN13,CN188)","v":0},{"$f":"IF('Data Input - BAU'!$F$37=\"Yes\",CO192+CO13,CO188)","v":0},{"$f":"IF('Data Input - BAU'!$F$37=\"Yes\",CP192+CP13,CP188)","v":0},{"$f":"IF('Data Input - BAU'!$F$37=\"Yes\",CQ192+CQ13,CQ188)","v":0},{"$f":"IF('Data Input - BAU'!$F$37=\"Yes\",CR192+CR13,CR188)","v":0},{"$f":"IF('Data Input - BAU'!$F$37=\"Yes\",CS192+CS13,CS188)","v":0},{"$f":"IF('Data Input - BAU'!$F$37=\"Yes\",CT192+CT13,CT188)","v":0},{"$f":"IF('Data Input - BAU'!$F$37=\"Yes\",CU192+CU13,CU188)","v":0},{"$f":"IF('Data Input - BAU'!$F$37=\"Yes\",CV192+CV13,CV188)","v":0},{"$f":"IF('Data Input - BAU'!$F$37=\"Yes\",CW192+CW13,CW188)","v":0},{"$f":"IF('Data Input - BAU'!$F$37=\"Yes\",CX192+CX13,CX188)","v":0},{"$f":"IF('Data Input - BAU'!$F$37=\"Yes\",CY192+CY13,CY188)","v":0}]
[]
[null,"High WACC","%",{"$f":"'Data Input - General'!H16","v":7.0000000000000007E-2}]
[null,"Annualised payment","£000's",{"$f":"IFERROR(-PMT($D$196,SUM('Data Input - General'!$F$26:$F$28),D20*1000)/1000,0)","v":306.87302457031143}]
[null,"Annual value","£000's",{"$f":"IF(SUM($D$12:D$12)=0,0,$D$197)","v":306.87302457031143},{"$f":"IF(SUM($D$12:E$12)=0,0,$D$197)","v":306.87302457031143},{"$f":"IF(SUM($D$12:F$12)=0,0,$D$197)","v":306.87302457031143},{"$f":"IF(SUM($D$12:G$12)=0,0,$D$197)","v":306.87302457031143},{"$f":"IF(SUM($D$12:H$12)=0,0,$D$197)","v":306.87302457031143},{"$f":"IF(SUM($D$12:I$12)=0,0,$D$197)","v":306.87302457031143},{"$f":"IF(SUM($D$12:J$12)=0,0,$D$197)","v":306.87302457031143},{"$f":"IF(SUM($D$12:K$12)=0,0,$D$197)","v":306.87302457031143},{"$f":"IF(SUM($D$12:L$12)=0,0,$D$197)","v":306.87302457031143},{"$f":"IF(SUM($D$12:M$12)=0,0,$D$197)","v":306.87302457031143},{"$f":"IF(SUM($D$12:N$12)=0,0,$D$197)","v":306.87302457031143},{"$f":"IF(SUM($D$12:O$12)=0,0,$D$197)","v":306.87302457031143},{"$f":"IF(SUM($D$12:P$12)=0,0,$D$197)","v":306.87302457031143},{"$f":"IF(SUM($D$12:Q$12)=0,0,$D$197)","v":306.87302457031143},{"$f":"IF(SUM($D$12:R$12)=0,0,$D$197)","v":306.87302457031143},{"$f":"IF(SUM($D$12:S$12)=0,0,$D$197)","v":306.87302457031143},{"$f":"IF(SUM($D$12:T$12)=0,0,$D$197)","v":306.87302457031143},{"$f":"IF(SUM($D$12:U$12)=0,0,$D$197)","v":306.87302457031143},{"$f":"IF(SUM($D$12:V$12)=0,0,$D$197)","v":306.87302457031143},{"$f":"IF(SUM($D$12:W$12)=0,0,$D$197)","v":306.87302457031143},{"$f":"IF(SUM($D$12:X$12)=0,0,$D$197)","v":306.87302457031143},{"$f":"IF(SUM($D$12:Y$12)=0,0,$D$197)","v":306.87302457031143},{"$f":"IF(SUM($D$12:Z$12)=0,0,$D$197)","v":306.87302457031143},{"$f":"IF(SUM($D$12:AA$12)=0,0,$D$197)","v":306.87302457031143},{"$f":"IF(SUM($D$12:AB$12)=0,0,$D$197)","v":306.87302457031143},{"$f":"IF(SUM($D$12:AC$12)=0,0,$D$197)","v":306.87302457031143},{"$f":"IF(SUM($D$12:AD$12)=0,0,$D$197)","v":306.87302457031143},{"$f":"IF(SUM($D$12:AE$12)=0,0,$D$197)","v":306.87302457031143},{"$f":"IF(SUM($D$12:AF$12)=0,0,$D$197)","v":306.87302457031143},{"$f":"IF(SUM($D$12:AG$12)=0,0,$D$197)","v":306.87302457031143},{"$f":"IF(SUM($D$12:AH$12)=0,0,$D$197)","v":306.87302457031143},{"$f":"IF(SUM($D$12:AI$12)=0,0,$D$197)","v":306.87302457031143},{"$f":"IF(SUM($D$12:AJ$12)=0,0,$D$197)","v":306.87302457031143},{"$f":"IF(SUM($D$12:AK$12)=0,0,$D$197)","v":306.87302457031143},{"$f":"IF(SUM($D$12:AL$12)=0,0,$D$197)","v":306.87302457031143},{"$f":"IF(SUM($D$12:AM$12)=0,0,$D$197)","v":306.87302457031143},{"$f":"IF(SUM($D$12:AN$12)=0,0,$D$197)","v":306.87302457031143},{"$f":"IF(SUM($D$12:AO$12)=0,0,$D$197)","v":306.87302457031143},{"$f":"IF(SUM($D$12:AP$12)=0,0,$D$197)","v":306.87302457031143},{"$f":"IF(SUM($D$12:AQ$12)=0,0,$D$197)","v":306.87302457031143},{"$f":"IF(SUM($D$12:AR$12)=0,0,$D$197)","v":306.87302457031143},{"$f":"IF(SUM($D$12:AS$12)=0,0,$D$197)","v":306.87302457031143},{"$f":"IF(SUM($D$12:AT$12)=0,0,$D$197)","v":306.87302457031143},{"$f":"IF(SUM($D$12:AU$12)=0,0,$D$197)","v":306.87302457031143},{"$f":"IF(SUM($D$12:AV$12)=0,0,$D$197)","v":306.87302457031143},{"$f":"IF(SUM($D$12:AW$12)=0,0,$D$197)","v":306.87302457031143},{"$f":"IF(SUM($D$12:AX$12)=0,0,$D$197)","v":306.87302457031143},{"$f":"IF(SUM($D$12:AY$12)=0,0,$D$197)","v":306.87302457031143},{"$f":"IF(SUM($D$12:AZ$12)=0,0,$D$197)","v":306.87302457031143},{"$f":"IF(SUM($D$12:BA$12)=0,0,$D$197)","v":306.87302457031143},{"$f":"IF(SUM($D$12:BB$12)=0,0,$D$197)","v":306.87302457031143},{"$f":"IF(SUM($D$12:BC$12)=0,0,$D$197)","v":306.87302457031143},{"$f":"IF(SUM($D$12:BD$12)=0,0,$D$197)","v":306.87302457031143},{"$f":"IF(SUM($D$12:BE$12)=0,0,$D$197)","v":306.87302457031143},{"$f":"IF(SUM($D$12:BF$12)=0,0,$D$197)","v":306.87302457031143},{"$f":"IF(SUM($D$12:BG$12)=0,0,$D$197)","v":306.87302457031143},{"$f":"IF(SUM($D$12:BH$12)=0,0,$D$197)","v":306.87302457031143},{"$f":"IF(SUM($D$12:BI$12)=0,0,$D$197)","v":306.87302457031143},{"$f":"IF(SUM($D$12:BJ$12)=0,0,$D$197)","v":306.87302457031143},{"$f":"IF(SUM($D$12:BK$12)=0,0,$D$197)","v":306.87302457031143},{"$f":"IF(SUM($D$12:BL$12)=0,0,$D$197)","v":306.87302457031143},{"$f":"IF(SUM($D$12:BM$12)=0,0,$D$197)","v":306.87302457031143},{"$f":"IF(SUM($D$12:BN$12)=0,0,$D$197)","v":306.87302457031143},{"$f":"IF(SUM($D$12:BO$12)=0,0,$D$197)","v":306.87302457031143},{"$f":"IF(SUM($D$12:BP$12)=0,0,$D$197)","v":306.87302457031143},{"$f":"IF(SUM($D$12:BQ$12)=0,0,$D$197)","v":306.87302457031143},{"$f":"IF(SUM($D$12:BR$12)=0,0,$D$197)","v":306.87302457031143},{"$f":"IF(SUM($D$12:BS$12)=0,0,$D$197)","v":306.87302457031143},{"$f":"IF(SUM($D$12:BT$12)=0,0,$D$197)","v":306.87302457031143},{"$f":"IF(SUM($D$12:BU$12)=0,0,$D$197)","v":306.87302457031143},{"$f":"IF(SUM($D$12:BV$12)=0,0,$D$197)","v":306.87302457031143},{"$f":"IF(SUM($D$12:BW$12)=0,0,$D$197)","v":306.87302457031143},{"$f":"IF(SUM($D$12:BX$12)=0,0,$D$197)","v":306.87302457031143},{"$f":"IF(SUM($D$12:BY$12)=0,0,$D$197)","v":306.87302457031143},{"$f":"IF(SUM($D$12:BZ$12)=0,0,$D$197)","v":306.87302457031143},{"$f":"IF(SUM($D$12:CA$12)=0,0,$D$197)","v":306.87302457031143},{"$f":"IF(SUM($D$12:CB$12)=0,0,$D$197)","v":306.87302457031143},{"$f":"IF(SUM($D$12:CC$12)=0,0,$D$197)","v":306.87302457031143},{"$f":"IF(SUM($D$12:CD$12)=0,0,$D$197)","v":306.87302457031143},{"$f":"IF(SUM($D$12:CE$12)=0,0,$D$197)","v":306.87302457031143},{"$f":"IF(SUM($D$12:CF$12)=0,0,$D$197)","v":306.87302457031143},{"$f":"IF(SUM($D$12:CG$12)=0,0,$D$197)","v":306.87302457031143},{"$f":"IF(SUM($D$12:CH$12)=0,0,$D$197)","v":306.87302457031143},{"$f":"IF(SUM($D$12:CI$12)=0,0,$D$197)","v":306.87302457031143},{"$f":"IF(SUM($D$12:CJ$12)=0,0,$D$197)","v":306.87302457031143},{"$f":"IF(SUM($D$12:CK$12)=0,0,$D$197)","v":306.87302457031143},{"$f":"IF(SUM($D$12:CL$12)=0,0,$D$197)","v":306.87302457031143},{"$f":"IF(SUM($D$12:CM$12)=0,0,$D$197)","v":306.87302457031143},{"$f":"IF(SUM($D$12:CN$12)=0,0,$D$197)","v":306.87302457031143},{"$f":"IF(SUM($D$12:CO$12)=0,0,$D$197)","v":306.87302457031143},{"$f":"IF(SUM($D$12:CP$12)=0,0,$D$197)","v":306.87302457031143},{"$f":"IF(SUM($D$12:CQ$12)=0,0,$D$197)","v":306.87302457031143},{"$f":"IF(SUM($D$12:CR$12)=0,0,$D$197)","v":306.87302457031143},{"$f":"IF(SUM($D$12:CS$12)=0,0,$D$197)","v":306.87302457031143},{"$f":"IF(SUM($D$12:CT$12)=0,0,$D$197)","v":306.87302457031143},{"$f":"IF(SUM($D$12:CU$12)=0,0,$D$197)","v":306.87302457031143},{"$f":"IF(SUM($D$12:CV$12)=0,0,$D$197)","v":306.87302457031143},{"$f":"IF(SUM($D$12:CW$12)=0,0,$D$197)","v":306.87302457031143},{"$f":"IF(SUM($D$12:CX$12)=0,0,$D$197)","v":306.87302457031143},{"$f":"IF(SUM($D$12:CY$12)=0,0,$D$197)","v":306.87302457031143}]
[null,"Discounted WACC","£000's",{"$f":"D198*D$7","v":306.87302457031143},296.49567591334437,286.46925209018781,276.7818860774762,267.42211215215093,258.37885232091878,249.64140320861722,241.19942338996836,233.0429211497279,225.16224265674194,217.54806053791495,210.19136283856517,203.08344235610164,196.21588633439774,189.5805665066645,183.16962947503816,176.97548741549582,170.99080909709744,165.20851120492506,159.62174995644935,154.22391300140035,149.00861159555589,143.96967303918444,139.10113337119273,134.39723031033117,129.85239643510258,125.46125259430202,121.21860154038843,117.11942177815308,113.15886162140396,109.86297244796501,0,0,0,0,0,0,0,0,0,0,0,0,0,0,0,0,0,0,0,0,0,0,0,0,0,0,0,0,0,0,0,0,0,{"$f":"BP198*BP$7","v":0},0,0,0,0,0,0,0,0,0,0,0,0,0,0,0,0,0,0,0,0,0,0,0,0,0,0,0,0,0,0,0,0,0,0,0]
[]
[null,"Financing costs"]
[null,"Financing costs (if entered manually)","£000's",{"$f":"'Data Input - BAU'!H42","v":0},{"$f":"'Data Input - BAU'!I42","v":0},{"$f":"'Data Input - BAU'!J42","v":0},{"$f":"'Data Input - BAU'!K42","v":0},{"$f":"'Data Input - BAU'!L42","v":0},{"$f":"'Data Input - BAU'!M42","v":0},{"$f":"'Data Input - BAU'!N42","v":0},{"$f":"'Data Input - BAU'!O42","v":0},{"$f":"'Data Input - BAU'!P42","v":0},{"$f":"'Data Input - BAU'!Q42","v":0},{"$f":"'Data Input - BAU'!R42","v":0},{"$f":"'Data Input - BAU'!S42","v":0},{"$f":"'Data Input - BAU'!T42","v":0},{"$f":"'Data Input - BAU'!U42","v":0},{"$f":"'Data Input - BAU'!V42","v":0},{"$f":"'Data Input - BAU'!W42","v":0},{"$f":"'Data Input - BAU'!X42","v":0},{"$f":"'Data Input - BAU'!Y42","v":0},{"$f":"'Data Input - BAU'!Z42","v":0},{"$f":"'Data Input - BAU'!AA42","v":0},{"$f":"'Data Input - BAU'!AB42","v":0},{"$f":"'Data Input - BAU'!AC42","v":0},{"$f":"'Data Input - BAU'!AD42","v":0},{"$f":"'Data Input - BAU'!AE42","v":0},{"$f":"'Data Input - BAU'!AF42","v":0},{"$f":"'Data Input - BAU'!AG42","v":0},{"$f":"'Data Input - BAU'!AH42","v":0},{"$f":"'Data Input - BAU'!AI42","v":0},{"$f":"'Data Input - BAU'!AJ42","v":0},{"$f":"'Data Input - BAU'!AK42","v":0},{"$f":"'Data Input - BAU'!AL42","v":0},{"$f":"'Data Input - BAU'!AM42","v":0},{"$f":"'Data Input - BAU'!AN42","v":0},{"$f":"'Data Input - BAU'!AO42","v":0},{"$f":"'Data Input - BAU'!AP42","v":0},{"$f":"'Data Input - BAU'!AQ42","v":0},{"$f":"'Data Input - BAU'!AR42","v":0},{"$f":"'Data Input - BAU'!AS42","v":0},{"$f":"'Data Input - BAU'!AT42","v":0},{"$f":"'Data Input - BAU'!AU42","v":0},{"$f":"'Data Input - BAU'!AV42","v":0},{"$f":"'Data Input - BAU'!AW42","v":0},{"$f":"'Data Input - BAU'!AX42","v":0},{"$f":"'Data Input - BAU'!AY42","v":0},{"$f":"'Data Input - BAU'!AZ42","v":0},{"$f":"'Data Input - BAU'!BA42","v":0},{"$f":"'Data Input - BAU'!BB42","v":0},{"$f":"'Data Input - BAU'!BC42","v":0},{"$f":"'Data Input - BAU'!BD42","v":0},{"$f":"'Data Input - BAU'!BE42","v":0},{"$f":"'Data Input - BAU'!BF42","v":0},{"$f":"'Data Input - BAU'!BG42","v":0},{"$f":"'Data Input - BAU'!BH42","v":0},{"$f":"'Data Input - BAU'!BI42","v":0},{"$f":"'Data Input - BAU'!BJ42","v":0},{"$f":"'Data Input - BAU'!BK42","v":0},{"$f":"'Data Input - BAU'!BL42","v":0},{"$f":"'Data Input - BAU'!BM42","v":0},{"$f":"'Data Input - BAU'!BN42","v":0},{"$f":"'Data Input - BAU'!BO42","v":0},{"$f":"'Data Input - BAU'!BP42","v":0},{"$f":"'Data Input - BAU'!BQ42","v":0},{"$f":"'Data Input - BAU'!BR42","v":0},{"$f":"'Data Input - BAU'!BS42","v":0},{"$f":"'Data Input - BAU'!BT42","v":0},{"$f":"'Data Input - BAU'!BU42","v":0},{"$f":"'Data Input - BAU'!BV42","v":0},{"$f":"'Data Input - BAU'!BW42","v":0},{"$f":"'Data Input - BAU'!BX42","v":0},{"$f":"'Data Input - BAU'!BY42","v":0},{"$f":"'Data Input - BAU'!BZ42","v":0},{"$f":"'Data Input - BAU'!CA42","v":0},{"$f":"'Data Input - BAU'!CB42","v":0},{"$f":"'Data Input - BAU'!CC42","v":0},{"$f":"'Data Input - BAU'!CD42","v":0},{"$f":"'Data Input - BAU'!CE42","v":0},{"$f":"'Data Input - BAU'!CF42","v":0},{"$f":"'Data Input - BAU'!CG42","v":0},{"$f":"'Data Input - BAU'!CH42","v":0},{"$f":"'Data Input - BAU'!CI42","v":0},{"$f":"'Data Input - BAU'!CJ42","v":0},{"$f":"'Data Input - BAU'!CK42","v":0},{"$f":"'Data Input - BAU'!CL42","v":0},{"$f":"'Data Input - BAU'!CM42","v":0},{"$f":"'Data Input - BAU'!CN42","v":0},{"$f":"'Data Input - BAU'!CO42","v":0},{"$f":"'Data Input - BAU'!CP42","v":0},{"$f":"'Data Input - BAU'!CQ42","v":0},{"$f":"'Data Input - BAU'!CR42","v":0},{"$f":"'Data Input - BAU'!CS42","v":0},{"$f":"'Data Input - BAU'!CT42","v":0},{"$f":"'Data Input - BAU'!CU42","v":0},{"$f":"'Data Input - BAU'!CV42","v":0},{"$f":"'Data Input - BAU'!CW42","v":0},{"$f":"'Data Input - BAU'!CX42","v":0},{"$f":"'Data Input - BAU'!CY42","v":0},{"$f":"'Data Input - BAU'!CZ42","v":0},{"$f":"'Data Input - BAU'!DA42","v":0},{"$f":"'Data Input - BAU'!DB42","v":0},{"$f":"'Data Input - BAU'!DC42","v":0}]
[null,"Discounted finacning","£000's",{"$f":"D202*D$7","v":0},0,0,0,0,0,0,0,0,0,0,0,0,0,0,0,0,0,0,0,0,0,0,0,0,0,0,0,0,0,0,0,0,0,0,0,0,0,0,0,0,0,0,0,0,0,0,0,0,0,0,0,0,0,0,0,0,0,0,0,0,0,0,0,{"$f":"BP202*BP$7","v":0},0,0,0,0,0,0,0,0,0,0,0,0,0,0,0,0,0,0,0,0,0,0,0,0,0,0,0,0,0,0,0,0,0,0,0]
[]
[null,"Total capex","£000's",{"$f":"IF('Data Input - BAU'!$F$37=\"Yes\",D203+D13,D199)","v":306.87302457031143},{"$f":"IF('Data Input - BAU'!$F$37=\"Yes\",E203+E13,E199)","v":296.49567591334437},{"$f":"IF('Data Input - BAU'!$F$37=\"Yes\",F203+F13,F199)","v":286.46925209018781},{"$f":"IF('Data Input - BAU'!$F$37=\"Yes\",G203+G13,G199)","v":276.7818860774762},{"$f":"IF('Data Input - BAU'!$F$37=\"Yes\",H203+H13,H199)","v":267.42211215215093},{"$f":"IF('Data Input - BAU'!$F$37=\"Yes\",I203+I13,I199)","v":258.37885232091878},{"$f":"IF('Data Input - BAU'!$F$37=\"Yes\",J203+J13,J199)","v":249.64140320861722},{"$f":"IF('Data Input - BAU'!$F$37=\"Yes\",K203+K13,K199)","v":241.19942338996836},{"$f":"IF('Data Input - BAU'!$F$37=\"Yes\",L203+L13,L199)","v":233.0429211497279},{"$f":"IF('Data Input - BAU'!$F$37=\"Yes\",M203+M13,M199)","v":225.16224265674194},{"$f":"IF('Data Input - BAU'!$F$37=\"Yes\",N203+N13,N199)","v":217.54806053791495},{"$f":"IF('Data Input - BAU'!$F$37=\"Yes\",O203+O13,O199)","v":210.19136283856517},{"$f":"IF('Data Input - BAU'!$F$37=\"Yes\",P203+P13,P199)","v":203.08344235610164},{"$f":"IF('Data Input - BAU'!$F$37=\"Yes\",Q203+Q13,Q199)","v":196.21588633439774},{"$f":"IF('Data Input - BAU'!$F$37=\"Yes\",R203+R13,R199)","v":189.5805665066645},{"$f":"IF('Data Input - BAU'!$F$37=\"Yes\",S203+S13,S199)","v":183.16962947503816},{"$f":"IF('Data Input - BAU'!$F$37=\"Yes\",T203+T13,T199)","v":176.97548741549582},{"$f":"IF('Data Input - BAU'!$F$37=\"Yes\",U203+U13,U199)","v":170.99080909709744},{"$f":"IF('Data Input - BAU'!$F$37=\"Yes\",V203+V13,V199)","v":165.20851120492506},{"$f":"IF('Data Input - BAU'!$F$37=\"Yes\",W203+W13,W199)","v":159.62174995644935},{"$f":"IF('Data Input - BAU'!$F$37=\"Yes\",X203+X13,X199)","v":154.22391300140035},{"$f":"IF('Data Input - BAU'!$F$37=\"Yes\",Y203+Y13,Y199)","v":149.00861159555589},{"$f":"IF('Data Input - BAU'!$F$37=\"Yes\",Z203+Z13,Z199)","v":143.96967303918444},{"$f":"IF('Data Input - BAU'!$F$37=\"Yes\",AA203+AA13,AA199)","v":139.10113337119273},{"$f":"IF('Data Input - BAU'!$F$37=\"Yes\",AB203+AB13,AB199)","v":134.39723031033117},{"$f":"IF('Data Input - BAU'!$F$37=\"Yes\",AC203+AC13,AC199)","v":129.85239643510258},{"$f":"IF('Data Input - BAU'!$F$37=\"Yes\",AD203+AD13,AD199)","v":125.46125259430202},{"$f":"IF('Data Input - BAU'!$F$37=\"Yes\",AE203+AE13,AE199)","v":121.21860154038843},{"$f":"IF('Data Input - BAU'!$F$37=\"Yes\",AF203+AF13,AF199)","v":117.11942177815308},{"$f":"IF('Data Input - BAU'!$F$37=\"Yes\",AG203+AG13,AG199)","v":113.15886162140396},{"$f":"IF('Data Input - BAU'!$F$37=\"Yes\",AH203+AH13,AH199)","v":109.86297244796501},{"$f":"IF('Data Input - BAU'!$F$37=\"Yes\",AI203+AI13,AI199)","v":0},{"$f":"IF('Data Input - BAU'!$F$37=\"Yes\",AJ203+AJ13,AJ199)","v":0},{"$f":"IF('Data Input - BAU'!$F$37=\"Yes\",AK203+AK13,AK199)","v":0},{"$f":"IF('Data Input - BAU'!$F$37=\"Yes\",AL203+AL13,AL199)","v":0},{"$f":"IF('Data Input - BAU'!$F$37=\"Yes\",AM203+AM13,AM199)","v":0},{"$f":"IF('Data Input - BAU'!$F$37=\"Yes\",AN203+AN13,AN199)","v":0},{"$f":"IF('Data Input - BAU'!$F$37=\"Yes\",AO203+AO13,AO199)","v":0},{"$f":"IF('Data Input - BAU'!$F$37=\"Yes\",AP203+AP13,AP199)","v":0},{"$f":"IF('Data Input - BAU'!$F$37=\"Yes\",AQ203+AQ13,AQ199)","v":0},{"$f":"IF('Data Input - BAU'!$F$37=\"Yes\",AR203+AR13,AR199)","v":0},{"$f":"IF('Data Input - BAU'!$F$37=\"Yes\",AS203+AS13,AS199)","v":0},{"$f":"IF('Data Input - BAU'!$F$37=\"Yes\",AT203+AT13,AT199)","v":0},{"$f":"IF('Data Input - BAU'!$F$37=\"Yes\",AU203+AU13,AU199)","v":0},{"$f":"IF('Data Input - BAU'!$F$37=\"Yes\",AV203+AV13,AV199)","v":0},{"$f":"IF('Data Input - BAU'!$F$37=\"Yes\",AW203+AW13,AW199)","v":0},{"$f":"IF('Data Input - BAU'!$F$37=\"Yes\",AX203+AX13,AX199)","v":0},{"$f":"IF('Data Input - BAU'!$F$37=\"Yes\",AY203+AY13,AY199)","v":0},{"$f":"IF('Data Input - BAU'!$F$37=\"Yes\",AZ203+AZ13,AZ199)","v":0},{"$f":"IF('Data Input - BAU'!$F$37=\"Yes\",BA203+BA13,BA199)","v":0},{"$f":"IF('Data Input - BAU'!$F$37=\"Yes\",BB203+BB13,BB199)","v":0},{"$f":"IF('Data Input - BAU'!$F$37=\"Yes\",BC203+BC13,BC199)","v":0},{"$f":"IF('Data Input - BAU'!$F$37=\"Yes\",BD203+BD13,BD199)","v":0},{"$f":"IF('Data Input - BAU'!$F$37=\"Yes\",BE203+BE13,BE199)","v":0},{"$f":"IF('Data Input - BAU'!$F$37=\"Yes\",BF203+BF13,BF199)","v":0},{"$f":"IF('Data Input - BAU'!$F$37=\"Yes\",BG203+BG13,BG199)","v":0},{"$f":"IF('Data Input - BAU'!$F$37=\"Yes\",BH203+BH13,BH199)","v":0},{"$f":"IF('Data Input - BAU'!$F$37=\"Yes\",BI203+BI13,BI199)","v":0},{"$f":"IF('Data Input - BAU'!$F$37=\"Yes\",BJ203+BJ13,BJ199)","v":0},{"$f":"IF('Data Input - BAU'!$F$37=\"Yes\",BK203+BK13,BK199)","v":0},{"$f":"IF('Data Input - BAU'!$F$37=\"Yes\",BL203+BL13,BL199)","v":0},{"$f":"IF('Data Input - BAU'!$F$37=\"Yes\",BM203+BM13,BM199)","v":0},{"$f":"IF('Data Input - BAU'!$F$37=\"Yes\",BN203+BN13,BN199)","v":0},{"$f":"IF('Data Input - BAU'!$F$37=\"Yes\",BO203+BO13,BO199)","v":0},{"$f":"IF('Data Input - BAU'!$F$37=\"Yes\",BP203+BP13,BP199)","v":0},{"$f":"IF('Data Input - BAU'!$F$37=\"Yes\",BQ203+BQ13,BQ199)","v":0},{"$f":"IF('Data Input - BAU'!$F$37=\"Yes\",BR203+BR13,BR199)","v":0},{"$f":"IF('Data Input - BAU'!$F$37=\"Yes\",BS203+BS13,BS199)","v":0},{"$f":"IF('Data Input - BAU'!$F$37=\"Yes\",BT203+BT13,BT199)","v":0},{"$f":"IF('Data Input - BAU'!$F$37=\"Yes\",BU203+BU13,BU199)","v":0},{"$f":"IF('Data Input - BAU'!$F$37=\"Yes\",BV203+BV13,BV199)","v":0},{"$f":"IF('Data Input - BAU'!$F$37=\"Yes\",BW203+BW13,BW199)","v":0},{"$f":"IF('Data Input - BAU'!$F$37=\"Yes\",BX203+BX13,BX199)","v":0},{"$f":"IF('Data Input - BAU'!$F$37=\"Yes\",BY203+BY13,BY199)","v":0},{"$f":"IF('Data Input - BAU'!$F$37=\"Yes\",BZ203+BZ13,BZ199)","v":0},{"$f":"IF('Data Input - BAU'!$F$37=\"Yes\",CA203+CA13,CA199)","v":0},{"$f":"IF('Data Input - BAU'!$F$37=\"Yes\",CB203+CB13,CB199)","v":0},{"$f":"IF('Data Input - BAU'!$F$37=\"Yes\",CC203+CC13,CC199)","v":0},{"$f":"IF('Data Input - BAU'!$F$37=\"Yes\",CD203+CD13,CD199)","v":0},{"$f":"IF('Data Input - BAU'!$F$37=\"Yes\",CE203+CE13,CE199)","v":0},{"$f":"IF('Data Input - BAU'!$F$37=\"Yes\",CF203+CF13,CF199)","v":0},{"$f":"IF('Data Input - BAU'!$F$37=\"Yes\",CG203+CG13,CG199)","v":0},{"$f":"IF('Data Input - BAU'!$F$37=\"Yes\",CH203+CH13,CH199)","v":0},{"$f":"IF('Data Input - BAU'!$F$37=\"Yes\",CI203+CI13,CI199)","v":0},{"$f":"IF('Data Input - BAU'!$F$37=\"Yes\",CJ203+CJ13,CJ199)","v":0},{"$f":"IF('Data Input - BAU'!$F$37=\"Yes\",CK203+CK13,CK199)","v":0},{"$f":"IF('Data Input - BAU'!$F$37=\"Yes\",CL203+CL13,CL199)","v":0},{"$f":"IF('Data Input - BAU'!$F$37=\"Yes\",CM203+CM13,CM199)","v":0},{"$f":"IF('Data Input - BAU'!$F$37=\"Yes\",CN203+CN13,CN199)","v":0},{"$f":"IF('Data Input - BAU'!$F$37=\"Yes\",CO203+CO13,CO199)","v":0},{"$f":"IF('Data Input - BAU'!$F$37=\"Yes\",CP203+CP13,CP199)","v":0},{"$f":"IF('Data Input - BAU'!$F$37=\"Yes\",CQ203+CQ13,CQ199)","v":0},{"$f":"IF('Data Input - BAU'!$F$37=\"Yes\",CR203+CR13,CR199)","v":0},{"$f":"IF('Data Input - BAU'!$F$37=\"Yes\",CS203+CS13,CS199)","v":0},{"$f":"IF('Data Input - BAU'!$F$37=\"Yes\",CT203+CT13,CT199)","v":0},{"$f":"IF('Data Input - BAU'!$F$37=\"Yes\",CU203+CU13,CU199)","v":0},{"$f":"IF('Data Input - BAU'!$F$37=\"Yes\",CV203+CV13,CV199)","v":0},{"$f":"IF('Data Input - BAU'!$F$37=\"Yes\",CW203+CW13,CW199)","v":0},{"$f":"IF('Data Input - BAU'!$F$37=\"Yes\",CX203+CX13,CX199)","v":0},{"$f":"IF('Data Input - BAU'!$F$37=\"Yes\",CY203+CY13,CY199)","v":0}]
[]
[null,"Low high WACC combined with low high capex"]
[]
[null,"Low WACC","%",{"$f":"'Data Input - General'!F16","v":0.06}]
[null,"Annualised payment","£000's",{"$f":"IFERROR(-PMT($D$185,SUM('Data Input - General'!$G$26:$G$28),D20*(1-D177)*1000)/1000,0)","v":0}]
[null,"Annual value","£000's",{"$f":"IF(SUM($D$12:D$12)=0,0,$D$209)","v":0.06},{"$f":"IF(SUM($D$12:E$12)=0,0,$D$209)","v":0.06},{"$f":"IF(SUM($D$12:F$12)=0,0,$D$209)","v":0.06},{"$f":"IF(SUM($D$12:G$12)=0,0,$D$209)","v":0.06},{"$f":"IF(SUM($D$12:H$12)=0,0,$D$209)","v":0.06},{"$f":"IF(SUM($D$12:I$12)=0,0,$D$209)","v":0.06},{"$f":"IF(SUM($D$12:J$12)=0,0,$D$209)","v":0.06},{"$f":"IF(SUM($D$12:K$12)=0,0,$D$209)","v":0.06},{"$f":"IF(SUM($D$12:L$12)=0,0,$D$209)","v":0.06},{"$f":"IF(SUM($D$12:M$12)=0,0,$D$209)","v":0.06},{"$f":"IF(SUM($D$12:N$12)=0,0,$D$209)","v":0.06},{"$f":"IF(SUM($D$12:O$12)=0,0,$D$209)","v":0.06},{"$f":"IF(SUM($D$12:P$12)=0,0,$D$209)","v":0.06},{"$f":"IF(SUM($D$12:Q$12)=0,0,$D$209)","v":0.06},{"$f":"IF(SUM($D$12:R$12)=0,0,$D$209)","v":0.06},{"$f":"IF(SUM($D$12:S$12)=0,0,$D$209)","v":0.06},{"$f":"IF(SUM($D$12:T$12)=0,0,$D$209)","v":0.06},{"$f":"IF(SUM($D$12:U$12)=0,0,$D$209)","v":0.06},{"$f":"IF(SUM($D$12:V$12)=0,0,$D$209)","v":0.06},{"$f":"IF(SUM($D$12:W$12)=0,0,$D$209)","v":0.06},{"$f":"IF(SUM($D$12:X$12)=0,0,$D$209)","v":0.06},{"$f":"IF(SUM($D$12:Y$12)=0,0,$D$209)","v":0.06},{"$f":"IF(SUM($D$12:Z$12)=0,0,$D$209)","v":0.06},{"$f":"IF(SUM($D$12:AA$12)=0,0,$D$209)","v":0.06},{"$f":"IF(SUM($D$12:AB$12)=0,0,$D$209)","v":0.06},{"$f":"IF(SUM($D$12:AC$12)=0,0,$D$209)","v":0.06},{"$f":"IF(SUM($D$12:AD$12)=0,0,$D$209)","v":0.06},{"$f":"IF(SUM($D$12:AE$12)=0,0,$D$209)","v":0.06},{"$f":"IF(SUM($D$12:AF$12)=0,0,$D$209)","v":0.06},{"$f":"IF(SUM($D$12:AG$12)=0,0,$D$209)","v":0.06},{"$f":"IF(SUM($D$12:AH$12)=0,0,$D$209)","v":0.06},{"$f":"IF(SUM($D$12:AI$12)=0,0,$D$209)","v":0.06},{"$f":"IF(SUM($D$12:AJ$12)=0,0,$D$209)","v":0.06},{"$f":"IF(SUM($D$12:AK$12)=0,0,$D$209)","v":0.06},{"$f":"IF(SUM($D$12:AL$12)=0,0,$D$209)","v":0.06},{"$f":"IF(SUM($D$12:AM$12)=0,0,$D$209)","v":0.06},{"$f":"IF(SUM($D$12:AN$12)=0,0,$D$209)","v":0.06},{"$f":"IF(SUM($D$12:AO$12)=0,0,$D$209)","v":0.06},{"$f":"IF(SUM($D$12:AP$12)=0,0,$D$209)","v":0.06},{"$f":"IF(SUM($D$12:AQ$12)=0,0,$D$209)","v":0.06},{"$f":"IF(SUM($D$12:AR$12)=0,0,$D$209)","v":0.06},{"$f":"IF(SUM($D$12:AS$12)=0,0,$D$209)","v":0.06},{"$f":"IF(SUM($D$12:AT$12)=0,0,$D$209)","v":0.06},{"$f":"IF(SUM($D$12:AU$12)=0,0,$D$209)","v":0.06},{"$f":"IF(SUM($D$12:AV$12)=0,0,$D$209)","v":0.06},{"$f":"IF(SUM($D$12:AW$12)=0,0,$D$209)","v":0.06},{"$f":"IF(SUM($D$12:AX$12)=0,0,$D$209)","v":0.06},{"$f":"IF(SUM($D$12:AY$12)=0,0,$D$209)","v":0.06},{"$f":"IF(SUM($D$12:AZ$12)=0,0,$D$209)","v":0.06},{"$f":"IF(SUM($D$12:BA$12)=0,0,$D$209)","v":0.06},{"$f":"IF(SUM($D$12:BB$12)=0,0,$D$209)","v":0.06},{"$f":"IF(SUM($D$12:BC$12)=0,0,$D$209)","v":0.06},{"$f":"IF(SUM($D$12:BD$12)=0,0,$D$209)","v":0.06},{"$f":"IF(SUM($D$12:BE$12)=0,0,$D$209)","v":0.06},{"$f":"IF(SUM($D$12:BF$12)=0,0,$D$209)","v":0.06},{"$f":"IF(SUM($D$12:BG$12)=0,0,$D$209)","v":0.06},{"$f":"IF(SUM($D$12:BH$12)=0,0,$D$209)","v":0.06},{"$f":"IF(SUM($D$12:BI$12)=0,0,$D$209)","v":0.06},{"$f":"IF(SUM($D$12:BJ$12)=0,0,$D$209)","v":0.06},{"$f":"IF(SUM($D$12:BK$12)=0,0,$D$209)","v":0.06},{"$f":"IF(SUM($D$12:BL$12)=0,0,$D$209)","v":0.06},{"$f":"IF(SUM($D$12:BM$12)=0,0,$D$209)","v":0.06},{"$f":"IF(SUM($D$12:BN$12)=0,0,$D$209)","v":0.06},{"$f":"IF(SUM($D$12:BO$12)=0,0,$D$209)","v":0.06},{"$f":"IF(SUM($D$12:BP$12)=0,0,$D$209)","v":0.06},{"$f":"IF(SUM($D$12:BQ$12)=0,0,$D$209)","v":0.06},{"$f":"IF(SUM($D$12:BR$12)=0,0,$D$209)","v":0.06},{"$f":"IF(SUM($D$12:BS$12)=0,0,$D$209)","v":0.06},{"$f":"IF(SUM($D$12:BT$12)=0,0,$D$209)","v":0.06},{"$f":"IF(SUM($D$12:BU$12)=0,0,$D$209)","v":0.06},{"$f":"IF(SUM($D$12:BV$12)=0,0,$D$209)","v":0.06},{"$f":"IF(SUM($D$12:BW$12)=0,0,$D$209)","v":0.06},{"$f":"IF(SUM($D$12:BX$12)=0,0,$D$209)","v":0.06},{"$f":"IF(SUM($D$12:BY$12)=0,0,$D$209)","v":0.06},{"$f":"IF(SUM($D$12:BZ$12)=0,0,$D$209)","v":0.06},{"$f":"IF(SUM($D$12:CA$12)=0,0,$D$209)","v":0.06},{"$f":"IF(SUM($D$12:CB$12)=0,0,$D$209)","v":0.06},{"$f":"IF(SUM($D$12:CC$12)=0,0,$D$209)","v":0.06},{"$f":"IF(SUM($D$12:CD$12)=0,0,$D$209)","v":0.06},{"$f":"IF(SUM($D$12:CE$12)=0,0,$D$209)","v":0.06},{"$f":"IF(SUM($D$12:CF$12)=0,0,$D$209)","v":0.06},{"$f":"IF(SUM($D$12:CG$12)=0,0,$D$209)","v":0.06},{"$f":"IF(SUM($D$12:CH$12)=0,0,$D$209)","v":0.06},{"$f":"IF(SUM($D$12:CI$12)=0,0,$D$209)","v":0.06},{"$f":"IF(SUM($D$12:CJ$12)=0,0,$D$209)","v":0.06},{"$f":"IF(SUM($D$12:CK$12)=0,0,$D$209)","v":0.06},{"$f":"IF(SUM($D$12:CL$12)=0,0,$D$209)","v":0.06},{"$f":"IF(SUM($D$12:CM$12)=0,0,$D$209)","v":0.06},{"$f":"IF(SUM($D$12:CN$12)=0,0,$D$209)","v":0.06},{"$f":"IF(SUM($D$12:CO$12)=0,0,$D$209)","v":0.06},{"$f":"IF(SUM($D$12:CP$12)=0,0,$D$209)","v":0.06},{"$f":"IF(SUM($D$12:CQ$12)=0,0,$D$209)","v":0.06},{"$f":"IF(SUM($D$12:CR$12)=0,0,$D$209)","v":0.06},{"$f":"IF(SUM($D$12:CS$12)=0,0,$D$209)","v":0.06},{"$f":"IF(SUM($D$12:CT$12)=0,0,$D$209)","v":0.06},{"$f":"IF(SUM($D$12:CU$12)=0,0,$D$209)","v":0.06},{"$f":"IF(SUM($D$12:CV$12)=0,0,$D$209)","v":0.06},{"$f":"IF(SUM($D$12:CW$12)=0,0,$D$209)","v":0.06},{"$f":"IF(SUM($D$12:CX$12)=0,0,$D$209)","v":0.06},{"$f":"IF(SUM($D$12:CY$12)=0,0,$D$209)","v":0.06}]
[null,"Discounted WACC","£000's",{"$f":"D211*D$7","v":0.06},{"$f":"E211*E$7","v":5.7971014492753624E-2},5.6010642021984178E-2,5.4116562340081338E-2,5.2286533661914339E-2,5.0518390011511441E-2,4.8810038658465164E-2,4.7159457641029155E-2,4.5564693372975029E-2,4.4023858331376849E-2,4.2535128822586331E-2,4.109674282375491E-2,3.9706997897347746E-2,3.8364249176181399E-2,3.7066907416600389E-2,3.5813437117488293E-2,3.4602354702887243E-2,3.3432226766074637E-2,3.2301668373018975E-2,3.1209341423206739E-2,3.0153953065900234E-2,2.9134254169951919E-2,2.8149037845364176E-2,2.7197138014844618E-2,2.6277428033666301E-2,2.5388819356199327E-2,2.4530260247535584E-2,2.3700734538681725E-2,2.289926042384708E-2,2.2124889298402978E-2,2.1480475046993179E-2,0,0,0,0,0,0,0,0,0,0,0,0,0,0,0,0,0,0,0,0,0,0,0,0,0,0,0,0,0,0,0,0,0,0,{"$f":"BQ211*BQ$7","v":0},0,0,0,0,0,0,0,0,0,0,0,0,0,0,0,0,0,0,0,0,0,0,0,0,0,0,0,0,0,0,0,0,0,0]
[]
[null,"Financing costs"]
[null,"Financing costs (if entered manually)","£000's",{"$f":"'Data Input - BAU'!H41","v":0},{"$f":"'Data Input - BAU'!I41","v":0},{"$f":"'Data Input - BAU'!J41","v":0},{"$f":"'Data Input - BAU'!K41","v":0},{"$f":"'Data Input - BAU'!L41","v":0},{"$f":"'Data Input - BAU'!M41","v":0},{"$f":"'Data Input - BAU'!N41","v":0},{"$f":"'Data Input - BAU'!O41","v":0},{"$f":"'Data Input - BAU'!P41","v":0},{"$f":"'Data Input - BAU'!Q41","v":0},{"$f":"'Data Input - BAU'!R41","v":0},{"$f":"'Data Input - BAU'!S41","v":0},{"$f":"'Data Input - BAU'!T41","v":0},{"$f":"'Data Input - BAU'!U41","v":0},{"$f":"'Data Input - BAU'!V41","v":0},{"$f":"'Data Input - BAU'!W41","v":0},{"$f":"'Data Input - BAU'!X41","v":0},{"$f":"'Data Input - BAU'!Y41","v":0},{"$f":"'Data Input - BAU'!Z41","v":0},{"$f":"'Data Input - BAU'!AA41","v":0},{"$f":"'Data Input - BAU'!AB41","v":0},{"$f":"'Data Input - BAU'!AC41","v":0},{"$f":"'Data Input - BAU'!AD41","v":0},{"$f":"'Data Input - BAU'!AE41","v":0},{"$f":"'Data Input - BAU'!AF41","v":0},{"$f":"'Data Input - BAU'!AG41","v":0},{"$f":"'Data Input - BAU'!AH41","v":0},{"$f":"'Data Input - BAU'!AI41","v":0},{"$f":"'Data Input - BAU'!AJ41","v":0},{"$f":"'Data Input - BAU'!AK41","v":0},{"$f":"'Data Input - BAU'!AL41","v":0},{"$f":"'Data Input - BAU'!AM41","v":0},{"$f":"'Data Input - BAU'!AN41","v":0},{"$f":"'Data Input - BAU'!AO41","v":0},{"$f":"'Data Input - BAU'!AP41","v":0},{"$f":"'Data Input - BAU'!AQ41","v":0},{"$f":"'Data Input - BAU'!AR41","v":0},{"$f":"'Data Input - BAU'!AS41","v":0},{"$f":"'Data Input - BAU'!AT41","v":0},{"$f":"'Data Input - BAU'!AU41","v":0},{"$f":"'Data Input - BAU'!AV41","v":0},{"$f":"'Data Input - BAU'!AW41","v":0},{"$f":"'Data Input - BAU'!AX41","v":0},{"$f":"'Data Input - BAU'!AY41","v":0},{"$f":"'Data Input - BAU'!AZ41","v":0},{"$f":"'Data Input - BAU'!BA41","v":0},{"$f":"'Data Input - BAU'!BB41","v":0},{"$f":"'Data Input - BAU'!BC41","v":0},{"$f":"'Data Input - BAU'!BD41","v":0},{"$f":"'Data Input - BAU'!BE41","v":0},{"$f":"'Data Input - BAU'!BF41","v":0},{"$f":"'Data Input - BAU'!BG41","v":0},{"$f":"'Data Input - BAU'!BH41","v":0},{"$f":"'Data Input - BAU'!BI41","v":0},{"$f":"'Data Input - BAU'!BJ41","v":0},{"$f":"'Data Input - BAU'!BK41","v":0},{"$f":"'Data Input - BAU'!BL41","v":0},{"$f":"'Data Input - BAU'!BM41","v":0},{"$f":"'Data Input - BAU'!BN41","v":0},{"$f":"'Data Input - BAU'!BO41","v":0},{"$f":"'Data Input - BAU'!BP41","v":0},{"$f":"'Data Input - BAU'!BQ41","v":0},{"$f":"'Data Input - BAU'!BR41","v":0},{"$f":"'Data Input - BAU'!BS41","v":0},{"$f":"'Data Input - BAU'!BT41","v":0},{"$f":"'Data Input - BAU'!BU41","v":0},{"$f":"'Data Input - BAU'!BV41","v":0},{"$f":"'Data Input - BAU'!BW41","v":0},{"$f":"'Data Input - BAU'!BX41","v":0},{"$f":"'Data Input - BAU'!BY41","v":0},{"$f":"'Data Input - BAU'!BZ41","v":0},{"$f":"'Data Input - BAU'!CA41","v":0},{"$f":"'Data Input - BAU'!CB41","v":0},{"$f":"'Data Input - BAU'!CC41","v":0},{"$f":"'Data Input - BAU'!CD41","v":0},{"$f":"'Data Input - BAU'!CE41","v":0},{"$f":"'Data Input - BAU'!CF41","v":0},{"$f":"'Data Input - BAU'!CG41","v":0},{"$f":"'Data Input - BAU'!CH41","v":0},{"$f":"'Data Input - BAU'!CI41","v":0},{"$f":"'Data Input - BAU'!CJ41","v":0},{"$f":"'Data Input - BAU'!CK41","v":0},{"$f":"'Data Input - BAU'!CL41","v":0},{"$f":"'Data Input - BAU'!CM41","v":0},{"$f":"'Data Input - BAU'!CN41","v":0},{"$f":"'Data Input - BAU'!CO41","v":0},{"$f":"'Data Input - BAU'!CP41","v":0},{"$f":"'Data Input - BAU'!CQ41","v":0},{"$f":"'Data Input - BAU'!CR41","v":0},{"$f":"'Data Input - BAU'!CS41","v":0},{"$f":"'Data Input - BAU'!CT41","v":0},{"$f":"'Data Input - BAU'!CU41","v":0},{"$f":"'Data Input - BAU'!CV41","v":0},{"$f":"'Data Input - BAU'!CW41","v":0},{"$f":"'Data Input - BAU'!CX41","v":0},{"$f":"'Data Input - BAU'!CY41","v":0},{"$f":"'Data Input - BAU'!CZ41","v":0},{"$f":"'Data Input - BAU'!DA41","v":0},{"$f":"'Data Input - BAU'!DB41","v":0},{"$f":"'Data Input - BAU'!DC41","v":0}]
[null,"Discounted finacning","£000's",{"$f":"D215*D$7","v":0},{"$f":"E215*E$7","v":0},0,0,0,0,0,0,0,0,0,0,0,0,0,0,0,0,0,0,0,0,0,0,0,0,0,0,0,0,0,0,0,0,0,0,0,0,0,0,0,0,0,0,0,0,0,0,0,0,0,0,0,0,0,0,0,0,0,0,0,0,0,0,0,{"$f":"BQ215*BQ$7","v":0},0,0,0,0,0,0,0,0,0,0,0,0,0,0,0,0,0,0,0,0,0,0,0,0,0,0,0,0,0,0,0,0,0,0]
[]
[null,"Total capex","£000's",{"$f":"IF('Data Input - BAU'!$F$37=\"Yes\",D216+D13*(1-$D$177),D212)","v":0.06},{"$f":"IF('Data Input - BAU'!$F$37=\"Yes\",E216+E13*(1-$D$177),E212)","v":5.7971014492753624E-2},{"$f":"IF('Data Input - BAU'!$F$37=\"Yes\",F216+F13*(1-$D$177),F212)","v":5.6010642021984178E-2},{"$f":"IF('Data Input - BAU'!$F$37=\"Yes\",G216+G13*(1-$D$177),G212)","v":5.4116562340081338E-2},{"$f":"IF('Data Input - BAU'!$F$37=\"Yes\",H216+H13*(1-$D$177),H212)","v":5.2286533661914339E-2},{"$f":"IF('Data Input - BAU'!$F$37=\"Yes\",I216+I13*(1-$D$177),I212)","v":5.0518390011511441E-2},{"$f":"IF('Data Input - BAU'!$F$37=\"Yes\",J216+J13*(1-$D$177),J212)","v":4.8810038658465164E-2},{"$f":"IF('Data Input - BAU'!$F$37=\"Yes\",K216+K13*(1-$D$177),K212)","v":4.7159457641029155E-2},{"$f":"IF('Data Input - BAU'!$F$37=\"Yes\",L216+L13*(1-$D$177),L212)","v":4.5564693372975029E-2},{"$f":"IF('Data Input - BAU'!$F$37=\"Yes\",M216+M13*(1-$D$177),M212)","v":4.4023858331376849E-2},{"$f":"IF('Data Input - BAU'!$F$37=\"Yes\",N216+N13*(1-$D$177),N212)","v":4.2535128822586331E-2},{"$f":"IF('Data Input - BAU'!$F$37=\"Yes\",O216+O13*(1-$D$177),O212)","v":4.109674282375491E-2},{"$f":"IF('Data Input - BAU'!$F$37=\"Yes\",P216+P13*(1-$D$177),P212)","v":3.9706997897347746E-2},{"$f":"IF('Data Input - BAU'!$F$37=\"Yes\",Q216+Q13*(1-$D$177),Q212)","v":3.8364249176181399E-2},{"$f":"IF('Data Input - BAU'!$F$37=\"Yes\",R216+R13*(1-$D$177),R212)","v":3.7066907416600389E-2},{"$f":"IF('Data Input - BAU'!$F$37=\"Yes\",S216+S13*(1-$D$177),S212)","v":3.5813437117488293E-2},{"$f":"IF('Data Input - BAU'!$F$37=\"Yes\",T216+T13*(1-$D$177),T212)","v":3.4602354702887243E-2},{"$f":"IF('Data Input - BAU'!$F$37=\"Yes\",U216+U13*(1-$D$177),U212)","v":3.3432226766074637E-2},{"$f":"IF('Data Input - BAU'!$F$37=\"Yes\",V216+V13*(1-$D$177),V212)","v":3.2301668373018975E-2},{"$f":"IF('Data Input - BAU'!$F$37=\"Yes\",W216+W13*(1-$D$177),W212)","v":3.1209341423206739E-2},{"$f":"IF('Data Input - BAU'!$F$37=\"Yes\",X216+X13*(1-$D$177),X212)","v":3.0153953065900234E-2},{"$f":"IF('Data Input - BAU'!$F$37=\"Yes\",Y216+Y13*(1-$D$177),Y212)","v":2.9134254169951919E-2},{"$f":"IF('Data Input - BAU'!$F$37=\"Yes\",Z216+Z13*(1-$D$177),Z212)","v":2.8149037845364176E-2},{"$f":"IF('Data Input - BAU'!$F$37=\"Yes\",AA216+AA13*(1-$D$177),AA212)","v":2.7197138014844618E-2},{"$f":"IF('Data Input - BAU'!$F$37=\"Yes\",AB216+AB13*(1-$D$177),AB212)","v":2.6277428033666301E-2},{"$f":"IF('Data Input - BAU'!$F$37=\"Yes\",AC216+AC13*(1-$D$177),AC212)","v":2.5388819356199327E-2},{"$f":"IF('Data Input - BAU'!$F$37=\"Yes\",AD216+AD13*(1-$D$177),AD212)","v":2.4530260247535584E-2},{"$f":"IF('Data Input - BAU'!$F$37=\"Yes\",AE216+AE13*(1-$D$177),AE212)","v":2.3700734538681725E-2},{"$f":"IF('Data Input - BAU'!$F$37=\"Yes\",AF216+AF13*(1-$D$177),AF212)","v":2.289926042384708E-2},{"$f":"IF('Data Input - BAU'!$F$37=\"Yes\",AG216+AG13*(1-$D$177),AG212)","v":2.2124889298402978E-2},{"$f":"IF('Data Input - BAU'!$F$37=\"Yes\",AH216+AH13*(1-$D$177),AH212)","v":2.1480475046993179E-2},{"$f":"IF('Data Input - BAU'!$F$37=\"Yes\",AI216+AI13*(1-$D$177),AI212)","v":0},{"$f":"IF('Data Input - BAU'!$F$37=\"Yes\",AJ216+AJ13*(1-$D$177),AJ212)","v":0},{"$f":"IF('Data Input - BAU'!$F$37=\"Yes\",AK216+AK13*(1-$D$177),AK212)","v":0},{"$f":"IF('Data Input - BAU'!$F$37=\"Yes\",AL216+AL13*(1-$D$177),AL212)","v":0},{"$f":"IF('Data Input - BAU'!$F$37=\"Yes\",AM216+AM13*(1-$D$177),AM212)","v":0},{"$f":"IF('Data Input - BAU'!$F$37=\"Yes\",AN216+AN13*(1-$D$177),AN212)","v":0},{"$f":"IF('Data Input - BAU'!$F$37=\"Yes\",AO216+AO13*(1-$D$177),AO212)","v":0},{"$f":"IF('Data Input - BAU'!$F$37=\"Yes\",AP216+AP13*(1-$D$177),AP212)","v":0},{"$f":"IF('Data Input - BAU'!$F$37=\"Yes\",AQ216+AQ13*(1-$D$177),AQ212)","v":0},{"$f":"IF('Data Input - BAU'!$F$37=\"Yes\",AR216+AR13*(1-$D$177),AR212)","v":0},{"$f":"IF('Data Input - BAU'!$F$37=\"Yes\",AS216+AS13*(1-$D$177),AS212)","v":0},{"$f":"IF('Data Input - BAU'!$F$37=\"Yes\",AT216+AT13*(1-$D$177),AT212)","v":0},{"$f":"IF('Data Input - BAU'!$F$37=\"Yes\",AU216+AU13*(1-$D$177),AU212)","v":0},{"$f":"IF('Data Input - BAU'!$F$37=\"Yes\",AV216+AV13*(1-$D$177),AV212)","v":0},{"$f":"IF('Data Input - BAU'!$F$37=\"Yes\",AW216+AW13*(1-$D$177),AW212)","v":0},{"$f":"IF('Data Input - BAU'!$F$37=\"Yes\",AX216+AX13*(1-$D$177),AX212)","v":0},{"$f":"IF('Data Input - BAU'!$F$37=\"Yes\",AY216+AY13*(1-$D$177),AY212)","v":0},{"$f":"IF('Data Input - BAU'!$F$37=\"Yes\",AZ216+AZ13*(1-$D$177),AZ212)","v":0},{"$f":"IF('Data Input - BAU'!$F$37=\"Yes\",BA216+BA13*(1-$D$177),BA212)","v":0},{"$f":"IF('Data Input - BAU'!$F$37=\"Yes\",BB216+BB13*(1-$D$177),BB212)","v":0},{"$f":"IF('Data Input - BAU'!$F$37=\"Yes\",BC216+BC13*(1-$D$177),BC212)","v":0},{"$f":"IF('Data Input - BAU'!$F$37=\"Yes\",BD216+BD13*(1-$D$177),BD212)","v":0},{"$f":"IF('Data Input - BAU'!$F$37=\"Yes\",BE216+BE13*(1-$D$177),BE212)","v":0},{"$f":"IF('Data Input - BAU'!$F$37=\"Yes\",BF216+BF13*(1-$D$177),BF212)","v":0},{"$f":"IF('Data Input - BAU'!$F$37=\"Yes\",BG216+BG13*(1-$D$177),BG212)","v":0},{"$f":"IF('Data Input - BAU'!$F$37=\"Yes\",BH216+BH13*(1-$D$177),BH212)","v":0},{"$f":"IF('Data Input - BAU'!$F$37=\"Yes\",BI216+BI13*(1-$D$177),BI212)","v":0},{"$f":"IF('Data Input - BAU'!$F$37=\"Yes\",BJ216+BJ13*(1-$D$177),BJ212)","v":0},{"$f":"IF('Data Input - BAU'!$F$37=\"Yes\",BK216+BK13*(1-$D$177),BK212)","v":0},{"$f":"IF('Data Input - BAU'!$F$37=\"Yes\",BL216+BL13*(1-$D$177),BL212)","v":0},{"$f":"IF('Data Input - BAU'!$F$37=\"Yes\",BM216+BM13*(1-$D$177),BM212)","v":0},{"$f":"IF('Data Input - BAU'!$F$37=\"Yes\",BN216+BN13*(1-$D$177),BN212)","v":0},{"$f":"IF('Data Input - BAU'!$F$37=\"Yes\",BO216+BO13*(1-$D$177),BO212)","v":0},{"$f":"IF('Data Input - BAU'!$F$37=\"Yes\",BP216+BP13*(1-$D$177),BP212)","v":0},{"$f":"IF('Data Input - BAU'!$F$37=\"Yes\",BQ216+BQ13*(1-$D$177),BQ212)","v":0},{"$f":"IF('Data Input - BAU'!$F$37=\"Yes\",BR216+BR13*(1-$D$177),BR212)","v":0},{"$f":"IF('Data Input - BAU'!$F$37=\"Yes\",BS216+BS13*(1-$D$177),BS212)","v":0},{"$f":"IF('Data Input - BAU'!$F$37=\"Yes\",BT216+BT13*(1-$D$177),BT212)","v":0},{"$f":"IF('Data Input - BAU'!$F$37=\"Yes\",BU216+BU13*(1-$D$177),BU212)","v":0},{"$f":"IF('Data Input - BAU'!$F$37=\"Yes\",BV216+BV13*(1-$D$177),BV212)","v":0},{"$f":"IF('Data Input - BAU'!$F$37=\"Yes\",BW216+BW13*(1-$D$177),BW212)","v":0},{"$f":"IF('Data Input - BAU'!$F$37=\"Yes\",BX216+BX13*(1-$D$177),BX212)","v":0},{"$f":"IF('Data Input - BAU'!$F$37=\"Yes\",BY216+BY13*(1-$D$177),BY212)","v":0},{"$f":"IF('Data Input - BAU'!$F$37=\"Yes\",BZ216+BZ13*(1-$D$177),BZ212)","v":0},{"$f":"IF('Data Input - BAU'!$F$37=\"Yes\",CA216+CA13*(1-$D$177),CA212)","v":0},{"$f":"IF('Data Input - BAU'!$F$37=\"Yes\",CB216+CB13*(1-$D$177),CB212)","v":0},{"$f":"IF('Data Input - BAU'!$F$37=\"Yes\",CC216+CC13*(1-$D$177),CC212)","v":0},{"$f":"IF('Data Input - BAU'!$F$37=\"Yes\",CD216+CD13*(1-$D$177),CD212)","v":0},{"$f":"IF('Data Input - BAU'!$F$37=\"Yes\",CE216+CE13*(1-$D$177),CE212)","v":0},{"$f":"IF('Data Input - BAU'!$F$37=\"Yes\",CF216+CF13*(1-$D$177),CF212)","v":0},{"$f":"IF('Data Input - BAU'!$F$37=\"Yes\",CG216+CG13*(1-$D$177),CG212)","v":0},{"$f":"IF('Data Input - BAU'!$F$37=\"Yes\",CH216+CH13*(1-$D$177),CH212)","v":0},{"$f":"IF('Data Input - BAU'!$F$37=\"Yes\",CI216+CI13*(1-$D$177),CI212)","v":0},{"$f":"IF('Data Input - BAU'!$F$37=\"Yes\",CJ216+CJ13*(1-$D$177),CJ212)","v":0},{"$f":"IF('Data Input - BAU'!$F$37=\"Yes\",CK216+CK13*(1-$D$177),CK212)","v":0},{"$f":"IF('Data Input - BAU'!$F$37=\"Yes\",CL216+CL13*(1-$D$177),CL212)","v":0},{"$f":"IF('Data Input - BAU'!$F$37=\"Yes\",CM216+CM13*(1-$D$177),CM212)","v":0},{"$f":"IF('Data Input - BAU'!$F$37=\"Yes\",CN216+CN13*(1-$D$177),CN212)","v":0},{"$f":"IF('Data Input - BAU'!$F$37=\"Yes\",CO216+CO13*(1-$D$177),CO212)","v":0},{"$f":"IF('Data Input - BAU'!$F$37=\"Yes\",CP216+CP13*(1-$D$177),CP212)","v":0},{"$f":"IF('Data Input - BAU'!$F$37=\"Yes\",CQ216+CQ13*(1-$D$177),CQ212)","v":0},{"$f":"IF('Data Input - BAU'!$F$37=\"Yes\",CR216+CR13*(1-$D$177),CR212)","v":0},{"$f":"IF('Data Input - BAU'!$F$37=\"Yes\",CS216+CS13*(1-$D$177),CS212)","v":0},{"$f":"IF('Data Input - BAU'!$F$37=\"Yes\",CT216+CT13*(1-$D$177),CT212)","v":0},{"$f":"IF('Data Input - BAU'!$F$37=\"Yes\",CU216+CU13*(1-$D$177),CU212)","v":0},{"$f":"IF('Data Input - BAU'!$F$37=\"Yes\",CV216+CV13*(1-$D$177),CV212)","v":0},{"$f":"IF('Data Input - BAU'!$F$37=\"Yes\",CW216+CW13*(1-$D$177),CW212)","v":0},{"$f":"IF('Data Input - BAU'!$F$37=\"Yes\",CX216+CX13*(1-$D$177),CX212)","v":0},{"$f":"IF('Data Input - BAU'!$F$37=\"Yes\",CY216+CY13*(1-$D$177),CY212)","v":0}]
[]
[null,"High WACC","%",{"$f":"'Data Input - General'!H16","v":7.0000000000000007E-2}]
[null,"Annualised payment","£000's",{"$f":"IFERROR(-PMT($D$196,SUM('Data Input - General'!$G$26:$G$28),D20*(1+D177)*1000)/1000,0)","v":0}]
[null,"Annual value","£000's",{"$f":"IF(SUM($D$12:D$12)=0,0,$D$221)","v":0},{"$f":"IF(SUM($D$12:E$12)=0,0,$D$221)","v":0},{"$f":"IF(SUM($D$12:F$12)=0,0,$D$221)","v":0},{"$f":"IF(SUM($D$12:G$12)=0,0,$D$221)","v":0},{"$f":"IF(SUM($D$12:H$12)=0,0,$D$221)","v":0},{"$f":"IF(SUM($D$12:I$12)=0,0,$D$221)","v":0},{"$f":"IF(SUM($D$12:J$12)=0,0,$D$221)","v":0},{"$f":"IF(SUM($D$12:K$12)=0,0,$D$221)","v":0},{"$f":"IF(SUM($D$12:L$12)=0,0,$D$221)","v":0},{"$f":"IF(SUM($D$12:M$12)=0,0,$D$221)","v":0},{"$f":"IF(SUM($D$12:N$12)=0,0,$D$221)","v":0},{"$f":"IF(SUM($D$12:O$12)=0,0,$D$221)","v":0},{"$f":"IF(SUM($D$12:P$12)=0,0,$D$221)","v":0},{"$f":"IF(SUM($D$12:Q$12)=0,0,$D$221)","v":0},{"$f":"IF(SUM($D$12:R$12)=0,0,$D$221)","v":0},{"$f":"IF(SUM($D$12:S$12)=0,0,$D$221)","v":0},{"$f":"IF(SUM($D$12:T$12)=0,0,$D$221)","v":0},{"$f":"IF(SUM($D$12:U$12)=0,0,$D$221)","v":0},{"$f":"IF(SUM($D$12:V$12)=0,0,$D$221)","v":0},{"$f":"IF(SUM($D$12:W$12)=0,0,$D$221)","v":0},{"$f":"IF(SUM($D$12:X$12)=0,0,$D$221)","v":0},{"$f":"IF(SUM($D$12:Y$12)=0,0,$D$221)","v":0},{"$f":"IF(SUM($D$12:Z$12)=0,0,$D$221)","v":0},{"$f":"IF(SUM($D$12:AA$12)=0,0,$D$221)","v":0},{"$f":"IF(SUM($D$12:AB$12)=0,0,$D$221)","v":0},{"$f":"IF(SUM($D$12:AC$12)=0,0,$D$221)","v":0},{"$f":"IF(SUM($D$12:AD$12)=0,0,$D$221)","v":0},{"$f":"IF(SUM($D$12:AE$12)=0,0,$D$221)","v":0},{"$f":"IF(SUM($D$12:AF$12)=0,0,$D$221)","v":0},{"$f":"IF(SUM($D$12:AG$12)=0,0,$D$221)","v":0},{"$f":"IF(SUM($D$12:AH$12)=0,0,$D$221)","v":0},{"$f":"IF(SUM($D$12:AI$12)=0,0,$D$221)","v":0},{"$f":"IF(SUM($D$12:AJ$12)=0,0,$D$221)","v":0},{"$f":"IF(SUM($D$12:AK$12)=0,0,$D$221)","v":0},{"$f":"IF(SUM($D$12:AL$12)=0,0,$D$221)","v":0},{"$f":"IF(SUM($D$12:AM$12)=0,0,$D$221)","v":0},{"$f":"IF(SUM($D$12:AN$12)=0,0,$D$221)","v":0},{"$f":"IF(SUM($D$12:AO$12)=0,0,$D$221)","v":0},{"$f":"IF(SUM($D$12:AP$12)=0,0,$D$221)","v":0},{"$f":"IF(SUM($D$12:AQ$12)=0,0,$D$221)","v":0},{"$f":"IF(SUM($D$12:AR$12)=0,0,$D$221)","v":0},{"$f":"IF(SUM($D$12:AS$12)=0,0,$D$221)","v":0},{"$f":"IF(SUM($D$12:AT$12)=0,0,$D$221)","v":0},{"$f":"IF(SUM($D$12:AU$12)=0,0,$D$221)","v":0},{"$f":"IF(SUM($D$12:AV$12)=0,0,$D$221)","v":0},{"$f":"IF(SUM($D$12:AW$12)=0,0,$D$221)","v":0},{"$f":"IF(SUM($D$12:AX$12)=0,0,$D$221)","v":0},{"$f":"IF(SUM($D$12:AY$12)=0,0,$D$221)","v":0},{"$f":"IF(SUM($D$12:AZ$12)=0,0,$D$221)","v":0},{"$f":"IF(SUM($D$12:BA$12)=0,0,$D$221)","v":0},{"$f":"IF(SUM($D$12:BB$12)=0,0,$D$221)","v":0},{"$f":"IF(SUM($D$12:BC$12)=0,0,$D$221)","v":0},{"$f":"IF(SUM($D$12:BD$12)=0,0,$D$221)","v":0},{"$f":"IF(SUM($D$12:BE$12)=0,0,$D$221)","v":0},{"$f":"IF(SUM($D$12:BF$12)=0,0,$D$221)","v":0},{"$f":"IF(SUM($D$12:BG$12)=0,0,$D$221)","v":0},{"$f":"IF(SUM($D$12:BH$12)=0,0,$D$221)","v":0},{"$f":"IF(SUM($D$12:BI$12)=0,0,$D$221)","v":0},{"$f":"IF(SUM($D$12:BJ$12)=0,0,$D$221)","v":0},{"$f":"IF(SUM($D$12:BK$12)=0,0,$D$221)","v":0},{"$f":"IF(SUM($D$12:BL$12)=0,0,$D$221)","v":0},{"$f":"IF(SUM($D$12:BM$12)=0,0,$D$221)","v":0},{"$f":"IF(SUM($D$12:BN$12)=0,0,$D$221)","v":0},{"$f":"IF(SUM($D$12:BO$12)=0,0,$D$221)","v":0},{"$f":"IF(SUM($D$12:BP$12)=0,0,$D$221)","v":0},{"$f":"IF(SUM($D$12:BQ$12)=0,0,$D$221)","v":0},{"$f":"IF(SUM($D$12:BR$12)=0,0,$D$221)","v":0},{"$f":"IF(SUM($D$12:BS$12)=0,0,$D$221)","v":0},{"$f":"IF(SUM($D$12:BT$12)=0,0,$D$221)","v":0},{"$f":"IF(SUM($D$12:BU$12)=0,0,$D$221)","v":0},{"$f":"IF(SUM($D$12:BV$12)=0,0,$D$221)","v":0},{"$f":"IF(SUM($D$12:BW$12)=0,0,$D$221)","v":0},{"$f":"IF(SUM($D$12:BX$12)=0,0,$D$221)","v":0},{"$f":"IF(SUM($D$12:BY$12)=0,0,$D$221)","v":0},{"$f":"IF(SUM($D$12:BZ$12)=0,0,$D$221)","v":0},{"$f":"IF(SUM($D$12:CA$12)=0,0,$D$221)","v":0},{"$f":"IF(SUM($D$12:CB$12)=0,0,$D$221)","v":0},{"$f":"IF(SUM($D$12:CC$12)=0,0,$D$221)","v":0},{"$f":"IF(SUM($D$12:CD$12)=0,0,$D$221)","v":0},{"$f":"IF(SUM($D$12:CE$12)=0,0,$D$221)","v":0},{"$f":"IF(SUM($D$12:CF$12)=0,0,$D$221)","v":0},{"$f":"IF(SUM($D$12:CG$12)=0,0,$D$221)","v":0},{"$f":"IF(SUM($D$12:CH$12)=0,0,$D$221)","v":0},{"$f":"IF(SUM($D$12:CI$12)=0,0,$D$221)","v":0},{"$f":"IF(SUM($D$12:CJ$12)=0,0,$D$221)","v":0},{"$f":"IF(SUM($D$12:CK$12)=0,0,$D$221)","v":0},{"$f":"IF(SUM($D$12:CL$12)=0,0,$D$221)","v":0},{"$f":"IF(SUM($D$12:CM$12)=0,0,$D$221)","v":0},{"$f":"IF(SUM($D$12:CN$12)=0,0,$D$221)","v":0},{"$f":"IF(SUM($D$12:CO$12)=0,0,$D$221)","v":0},{"$f":"IF(SUM($D$12:CP$12)=0,0,$D$221)","v":0},{"$f":"IF(SUM($D$12:CQ$12)=0,0,$D$221)","v":0},{"$f":"IF(SUM($D$12:CR$12)=0,0,$D$221)","v":0},{"$f":"IF(SUM($D$12:CS$12)=0,0,$D$221)","v":0},{"$f":"IF(SUM($D$12:CT$12)=0,0,$D$221)","v":0},{"$f":"IF(SUM($D$12:CU$12)=0,0,$D$221)","v":0},{"$f":"IF(SUM($D$12:CV$12)=0,0,$D$221)","v":0},{"$f":"IF(SUM($D$12:CW$12)=0,0,$D$221)","v":0},{"$f":"IF(SUM($D$12:CX$12)=0,0,$D$221)","v":0},{"$f":"IF(SUM($D$12:CY$12)=0,0,$D$221)","v":0}]
[null,"Discounted WACC","£000's",{"$f":"D222*D$7","v":0},0,0,0,0,0,0,0,0,0,0,0,0,0,0,0,0,0,0,0,0,0,0,0,0,0,0,0,0,0,0,0,0,0,0,0,0,0,0,0,0,0,0,0,0,0,0,0,0,0,0,0,0,0,0,0,0,0,0,0,0,0,0,0,{"$f":"BP222*BP$7","v":0},0,0,0,0,0,0,0,0,0,0,0,0,0,0,0,0,0,0,0,0,0,0,0,0,0,0,0,0,0,0,0,0,0,0,0]
[]
[null,"Financing costs"]
[null,"Financing costs (if entered manually)","£000's",{"$f":"'Data Input - BAU'!H42","v":0},{"$f":"'Data Input - BAU'!I42","v":0},{"$f":"'Data Input - BAU'!J42","v":0},{"$f":"'Data Input - BAU'!K42","v":0},{"$f":"'Data Input - BAU'!L42","v":0},{"$f":"'Data Input - BAU'!M42","v":0},{"$f":"'Data Input - BAU'!N42","v":0},{"$f":"'Data Input - BAU'!O42","v":0},{"$f":"'Data Input - BAU'!P42","v":0},{"$f":"'Data Input - BAU'!Q42","v":0},{"$f":"'Data Input - BAU'!R42","v":0},{"$f":"'Data Input - BAU'!S42","v":0},{"$f":"'Data Input - BAU'!T42","v":0},{"$f":"'Data Input - BAU'!U42","v":0},{"$f":"'Data Input - BAU'!V42","v":0},{"$f":"'Data Input - BAU'!W42","v":0},{"$f":"'Data Input - BAU'!X42","v":0},{"$f":"'Data Input - BAU'!Y42","v":0},{"$f":"'Data Input - BAU'!Z42","v":0},{"$f":"'Data Input - BAU'!AA42","v":0},{"$f":"'Data Input - BAU'!AB42","v":0},{"$f":"'Data Input - BAU'!AC42","v":0},{"$f":"'Data Input - BAU'!AD42","v":0},{"$f":"'Data Input - BAU'!AE42","v":0},{"$f":"'Data Input - BAU'!AF42","v":0},{"$f":"'Data Input - BAU'!AG42","v":0},{"$f":"'Data Input - BAU'!AH42","v":0},{"$f":"'Data Input - BAU'!AI42","v":0},{"$f":"'Data Input - BAU'!AJ42","v":0},{"$f":"'Data Input - BAU'!AK42","v":0},{"$f":"'Data Input - BAU'!AL42","v":0},{"$f":"'Data Input - BAU'!AM42","v":0},{"$f":"'Data Input - BAU'!AN42","v":0},{"$f":"'Data Input - BAU'!AO42","v":0},{"$f":"'Data Input - BAU'!AP42","v":0},{"$f":"'Data Input - BAU'!AQ42","v":0},{"$f":"'Data Input - BAU'!AR42","v":0},{"$f":"'Data Input - BAU'!AS42","v":0},{"$f":"'Data Input - BAU'!AT42","v":0},{"$f":"'Data Input - BAU'!AU42","v":0},{"$f":"'Data Input - BAU'!AV42","v":0},{"$f":"'Data Input - BAU'!AW42","v":0},{"$f":"'Data Input - BAU'!AX42","v":0},{"$f":"'Data Input - BAU'!AY42","v":0},{"$f":"'Data Input - BAU'!AZ42","v":0},{"$f":"'Data Input - BAU'!BA42","v":0},{"$f":"'Data Input - BAU'!BB42","v":0},{"$f":"'Data Input - BAU'!BC42","v":0},{"$f":"'Data Input - BAU'!BD42","v":0},{"$f":"'Data Input - BAU'!BE42","v":0},{"$f":"'Data Input - BAU'!BF42","v":0},{"$f":"'Data Input - BAU'!BG42","v":0},{"$f":"'Data Input - BAU'!BH42","v":0},{"$f":"'Data Input - BAU'!BI42","v":0},{"$f":"'Data Input - BAU'!BJ42","v":0},{"$f":"'Data Input - BAU'!BK42","v":0},{"$f":"'Data Input - BAU'!BL42","v":0},{"$f":"'Data Input - BAU'!BM42","v":0},{"$f":"'Data Input - BAU'!BN42","v":0},{"$f":"'Data Input - BAU'!BO42","v":0},{"$f":"'Data Input - BAU'!BP42","v":0},{"$f":"'Data Input - BAU'!BQ42","v":0},{"$f":"'Data Input - BAU'!BR42","v":0},{"$f":"'Data Input - BAU'!BS42","v":0},{"$f":"'Data Input - BAU'!BT42","v":0},{"$f":"'Data Input - BAU'!BU42","v":0},{"$f":"'Data Input - BAU'!BV42","v":0},{"$f":"'Data Input - BAU'!BW42","v":0},{"$f":"'Data Input - BAU'!BX42","v":0},{"$f":"'Data Input - BAU'!BY42","v":0},{"$f":"'Data Input - BAU'!BZ42","v":0},{"$f":"'Data Input - BAU'!CA42","v":0},{"$f":"'Data Input - BAU'!CB42","v":0},{"$f":"'Data Input - BAU'!CC42","v":0},{"$f":"'Data Input - BAU'!CD42","v":0},{"$f":"'Data Input - BAU'!CE42","v":0},{"$f":"'Data Input - BAU'!CF42","v":0},{"$f":"'Data Input - BAU'!CG42","v":0},{"$f":"'Data Input - BAU'!CH42","v":0},{"$f":"'Data Input - BAU'!CI42","v":0},{"$f":"'Data Input - BAU'!CJ42","v":0},{"$f":"'Data Input - BAU'!CK42","v":0},{"$f":"'Data Input - BAU'!CL42","v":0},{"$f":"'Data Input - BAU'!CM42","v":0},{"$f":"'Data Input - BAU'!CN42","v":0},{"$f":"'Data Input - BAU'!CO42","v":0},{"$f":"'Data Input - BAU'!CP42","v":0},{"$f":"'Data Input - BAU'!CQ42","v":0},{"$f":"'Data Input - BAU'!CR42","v":0},{"$f":"'Data Input - BAU'!CS42","v":0},{"$f":"'Data Input - BAU'!CT42","v":0},{"$f":"'Data Input - BAU'!CU42","v":0},{"$f":"'Data Input - BAU'!CV42","v":0},{"$f":"'Data Input - BAU'!CW42","v":0},{"$f":"'Data Input - BAU'!CX42","v":0},{"$f":"'Data Input - BAU'!CY42","v":0},{"$f":"'Data Input - BAU'!CZ42","v":0},{"$f":"'Data Input - BAU'!DA42","v":0},{"$f":"'Data Input - BAU'!DB42","v":0},{"$f":"'Data Input - BAU'!DC42","v":0}]
[null,"Discounted finacning","£000's",{"$f":"D226*D$7","v":0},0,0,0,0,0,0,0,0,0,0,0,0,0,0,0,0,0,0,0,0,0,0,0,0,0,0,0,0,0,0,0,0,0,0,0,0,0,0,0,0,0,0,0,0,0,0,0,0,0,0,0,0,0,0,0,0,0,0,0,0,0,0,0,{"$f":"BP226*BP$7","v":0},0,0,0,0,0,0,0,0,0,0,0,0,0,0,0,0,0,0,0,0,0,0,0,0,0,0,0,0,0,0,0,0,0,0,0]
[]
[null,"Total capex","£000's",{"$f":"IF('Data Input - BAU'!$F$37=\"Yes\",D227+D13*(1+$D$177),D223)","v":0},{"$f":"IF('Data Input - BAU'!$F$37=\"Yes\",E227+E13*(1+$D$177),E223)","v":0},{"$f":"IF('Data Input - BAU'!$F$37=\"Yes\",F227+F13*(1+$D$177),F223)","v":0},{"$f":"IF('Data Input - BAU'!$F$37=\"Yes\",G227+G13*(1+$D$177),G223)","v":0},{"$f":"IF('Data Input - BAU'!$F$37=\"Yes\",H227+H13*(1+$D$177),H223)","v":0},{"$f":"IF('Data Input - BAU'!$F$37=\"Yes\",I227+I13*(1+$D$177),I223)","v":0},{"$f":"IF('Data Input - BAU'!$F$37=\"Yes\",J227+J13*(1+$D$177),J223)","v":0},{"$f":"IF('Data Input - BAU'!$F$37=\"Yes\",K227+K13*(1+$D$177),K223)","v":0},{"$f":"IF('Data Input - BAU'!$F$37=\"Yes\",L227+L13*(1+$D$177),L223)","v":0},{"$f":"IF('Data Input - BAU'!$F$37=\"Yes\",M227+M13*(1+$D$177),M223)","v":0},{"$f":"IF('Data Input - BAU'!$F$37=\"Yes\",N227+N13*(1+$D$177),N223)","v":0},{"$f":"IF('Data Input - BAU'!$F$37=\"Yes\",O227+O13*(1+$D$177),O223)","v":0},{"$f":"IF('Data Input - BAU'!$F$37=\"Yes\",P227+P13*(1+$D$177),P223)","v":0},{"$f":"IF('Data Input - BAU'!$F$37=\"Yes\",Q227+Q13*(1+$D$177),Q223)","v":0},{"$f":"IF('Data Input - BAU'!$F$37=\"Yes\",R227+R13*(1+$D$177),R223)","v":0},{"$f":"IF('Data Input - BAU'!$F$37=\"Yes\",S227+S13*(1+$D$177),S223)","v":0},{"$f":"IF('Data Input - BAU'!$F$37=\"Yes\",T227+T13*(1+$D$177),T223)","v":0},{"$f":"IF('Data Input - BAU'!$F$37=\"Yes\",U227+U13*(1+$D$177),U223)","v":0},{"$f":"IF('Data Input - BAU'!$F$37=\"Yes\",V227+V13*(1+$D$177),V223)","v":0},{"$f":"IF('Data Input - BAU'!$F$37=\"Yes\",W227+W13*(1+$D$177),W223)","v":0},{"$f":"IF('Data Input - BAU'!$F$37=\"Yes\",X227+X13*(1+$D$177),X223)","v":0},{"$f":"IF('Data Input - BAU'!$F$37=\"Yes\",Y227+Y13*(1+$D$177),Y223)","v":0},{"$f":"IF('Data Input - BAU'!$F$37=\"Yes\",Z227+Z13*(1+$D$177),Z223)","v":0},{"$f":"IF('Data Input - BAU'!$F$37=\"Yes\",AA227+AA13*(1+$D$177),AA223)","v":0},{"$f":"IF('Data Input - BAU'!$F$37=\"Yes\",AB227+AB13*(1+$D$177),AB223)","v":0},{"$f":"IF('Data Input - BAU'!$F$37=\"Yes\",AC227+AC13*(1+$D$177),AC223)","v":0},{"$f":"IF('Data Input - BAU'!$F$37=\"Yes\",AD227+AD13*(1+$D$177),AD223)","v":0},{"$f":"IF('Data Input - BAU'!$F$37=\"Yes\",AE227+AE13*(1+$D$177),AE223)","v":0},{"$f":"IF('Data Input - BAU'!$F$37=\"Yes\",AF227+AF13*(1+$D$177),AF223)","v":0},{"$f":"IF('Data Input - BAU'!$F$37=\"Yes\",AG227+AG13*(1+$D$177),AG223)","v":0},{"$f":"IF('Data Input - BAU'!$F$37=\"Yes\",AH227+AH13*(1+$D$177),AH223)","v":0},{"$f":"IF('Data Input - BAU'!$F$37=\"Yes\",AI227+AI13*(1+$D$177),AI223)","v":0},{"$f":"IF('Data Input - BAU'!$F$37=\"Yes\",AJ227+AJ13*(1+$D$177),AJ223)","v":0},{"$f":"IF('Data Input - BAU'!$F$37=\"Yes\",AK227+AK13*(1+$D$177),AK223)","v":0},{"$f":"IF('Data Input - BAU'!$F$37=\"Yes\",AL227+AL13*(1+$D$177),AL223)","v":0},{"$f":"IF('Data Input - BAU'!$F$37=\"Yes\",AM227+AM13*(1+$D$177),AM223)","v":0},{"$f":"IF('Data Input - BAU'!$F$37=\"Yes\",AN227+AN13*(1+$D$177),AN223)","v":0},{"$f":"IF('Data Input - BAU'!$F$37=\"Yes\",AO227+AO13*(1+$D$177),AO223)","v":0},{"$f":"IF('Data Input - BAU'!$F$37=\"Yes\",AP227+AP13*(1+$D$177),AP223)","v":0},{"$f":"IF('Data Input - BAU'!$F$37=\"Yes\",AQ227+AQ13*(1+$D$177),AQ223)","v":0},{"$f":"IF('Data Input - BAU'!$F$37=\"Yes\",AR227+AR13*(1+$D$177),AR223)","v":0},{"$f":"IF('Data Input - BAU'!$F$37=\"Yes\",AS227+AS13*(1+$D$177),AS223)","v":0},{"$f":"IF('Data Input - BAU'!$F$37=\"Yes\",AT227+AT13*(1+$D$177),AT223)","v":0},{"$f":"IF('Data Input - BAU'!$F$37=\"Yes\",AU227+AU13*(1+$D$177),AU223)","v":0},{"$f":"IF('Data Input - BAU'!$F$37=\"Yes\",AV227+AV13*(1+$D$177),AV223)","v":0},{"$f":"IF('Data Input - BAU'!$F$37=\"Yes\",AW227+AW13*(1+$D$177),AW223)","v":0},{"$f":"IF('Data Input - BAU'!$F$37=\"Yes\",AX227+AX13*(1+$D$177),AX223)","v":0},{"$f":"IF('Data Input - BAU'!$F$37=\"Yes\",AY227+AY13*(1+$D$177),AY223)","v":0},{"$f":"IF('Data Input - BAU'!$F$37=\"Yes\",AZ227+AZ13*(1+$D$177),AZ223)","v":0},{"$f":"IF('Data Input - BAU'!$F$37=\"Yes\",BA227+BA13*(1+$D$177),BA223)","v":0},{"$f":"IF('Data Input - BAU'!$F$37=\"Yes\",BB227+BB13*(1+$D$177),BB223)","v":0},{"$f":"IF('Data Input - BAU'!$F$37=\"Yes\",BC227+BC13*(1+$D$177),BC223)","v":0},{"$f":"IF('Data Input - BAU'!$F$37=\"Yes\",BD227+BD13*(1+$D$177),BD223)","v":0},{"$f":"IF('Data Input - BAU'!$F$37=\"Yes\",BE227+BE13*(1+$D$177),BE223)","v":0},{"$f":"IF('Data Input - BAU'!$F$37=\"Yes\",BF227+BF13*(1+$D$177),BF223)","v":0},{"$f":"IF('Data Input - BAU'!$F$37=\"Yes\",BG227+BG13*(1+$D$177),BG223)","v":0},{"$f":"IF('Data Input - BAU'!$F$37=\"Yes\",BH227+BH13*(1+$D$177),BH223)","v":0},{"$f":"IF('Data Input - BAU'!$F$37=\"Yes\",BI227+BI13*(1+$D$177),BI223)","v":0},{"$f":"IF('Data Input - BAU'!$F$37=\"Yes\",BJ227+BJ13*(1+$D$177),BJ223)","v":0},{"$f":"IF('Data Input - BAU'!$F$37=\"Yes\",BK227+BK13*(1+$D$177),BK223)","v":0},{"$f":"IF('Data Input - BAU'!$F$37=\"Yes\",BL227+BL13*(1+$D$177),BL223)","v":0},{"$f":"IF('Data Input - BAU'!$F$37=\"Yes\",BM227+BM13*(1+$D$177),BM223)","v":0},{"$f":"IF('Data Input - BAU'!$F$37=\"Yes\",BN227+BN13*(1+$D$177),BN223)","v":0},{"$f":"IF('Data Input - BAU'!$F$37=\"Yes\",BO227+BO13*(1+$D$177),BO223)","v":0},{"$f":"IF('Data Input - BAU'!$F$37=\"Yes\",BP227+BP13*(1+$D$177),BP223)","v":0},{"$f":"IF('Data Input - BAU'!$F$37=\"Yes\",BQ227+BQ13*(1+$D$177),BQ223)","v":0},{"$f":"IF('Data Input - BAU'!$F$37=\"Yes\",BR227+BR13*(1+$D$177),BR223)","v":0},{"$f":"IF('Data Input - BAU'!$F$37=\"Yes\",BS227+BS13*(1+$D$177),BS223)","v":0},{"$f":"IF('Data Input - BAU'!$F$37=\"Yes\",BT227+BT13*(1+$D$177),BT223)","v":0},{"$f":"IF('Data Input - BAU'!$F$37=\"Yes\",BU227+BU13*(1+$D$177),BU223)","v":0},{"$f":"IF('Data Input - BAU'!$F$37=\"Yes\",BV227+BV13*(1+$D$177),BV223)","v":0},{"$f":"IF('Data Input - BAU'!$F$37=\"Yes\",BW227+BW13*(1+$D$177),BW223)","v":0},{"$f":"IF('Data Input - BAU'!$F$37=\"Yes\",BX227+BX13*(1+$D$177),BX223)","v":0},{"$f":"IF('Data Input - BAU'!$F$37=\"Yes\",BY227+BY13*(1+$D$177),BY223)","v":0},{"$f":"IF('Data Input - BAU'!$F$37=\"Yes\",BZ227+BZ13*(1+$D$177),BZ223)","v":0},{"$f":"IF('Data Input - BAU'!$F$37=\"Yes\",CA227+CA13*(1+$D$177),CA223)","v":0},{"$f":"IF('Data Input - BAU'!$F$37=\"Yes\",CB227+CB13*(1+$D$177),CB223)","v":0},{"$f":"IF('Data Input - BAU'!$F$37=\"Yes\",CC227+CC13*(1+$D$177),CC223)","v":0},{"$f":"IF('Data Input - BAU'!$F$37=\"Yes\",CD227+CD13*(1+$D$177),CD223)","v":0},{"$f":"IF('Data Input - BAU'!$F$37=\"Yes\",CE227+CE13*(1+$D$177),CE223)","v":0},{"$f":"IF('Data Input - BAU'!$F$37=\"Yes\",CF227+CF13*(1+$D$177),CF223)","v":0},{"$f":"IF('Data Input - BAU'!$F$37=\"Yes\",CG227+CG13*(1+$D$177),CG223)","v":0},{"$f":"IF('Data Input - BAU'!$F$37=\"Yes\",CH227+CH13*(1+$D$177),CH223)","v":0},{"$f":"IF('Data Input - BAU'!$F$37=\"Yes\",CI227+CI13*(1+$D$177),CI223)","v":0},{"$f":"IF('Data Input - BAU'!$F$37=\"Yes\",CJ227+CJ13*(1+$D$177),CJ223)","v":0},{"$f":"IF('Data Input - BAU'!$F$37=\"Yes\",CK227+CK13*(1+$D$177),CK223)","v":0},{"$f":"IF('Data Input - BAU'!$F$37=\"Yes\",CL227+CL13*(1+$D$177),CL223)","v":0},{"$f":"IF('Data Input - BAU'!$F$37=\"Yes\",CM227+CM13*(1+$D$177),CM223)","v":0},{"$f":"IF('Data Input - BAU'!$F$37=\"Yes\",CN227+CN13*(1+$D$177),CN223)","v":0},{"$f":"IF('Data Input - BAU'!$F$37=\"Yes\",CO227+CO13*(1+$D$177),CO223)","v":0},{"$f":"IF('Data Input - BAU'!$F$37=\"Yes\",CP227+CP13*(1+$D$177),CP223)","v":0},{"$f":"IF('Data Input - BAU'!$F$37=\"Yes\",CQ227+CQ13*(1+$D$177),CQ223)","v":0},{"$f":"IF('Data Input - BAU'!$F$37=\"Yes\",CR227+CR13*(1+$D$177),CR223)","v":0},{"$f":"IF('Data Input - BAU'!$F$37=\"Yes\",CS227+CS13*(1+$D$177),CS223)","v":0},{"$f":"IF('Data Input - BAU'!$F$37=\"Yes\",CT227+CT13*(1+$D$177),CT223)","v":0},{"$f":"IF('Data Input - BAU'!$F$37=\"Yes\",CU227+CU13*(1+$D$177),CU223)","v":0},{"$f":"IF('Data Input - BAU'!$F$37=\"Yes\",CV227+CV13*(1+$D$177),CV223)","v":0},{"$f":"IF('Data Input - BAU'!$F$37=\"Yes\",CW227+CW13*(1+$D$177),CW223)","v":0},{"$f":"IF('Data Input - BAU'!$F$37=\"Yes\",CX227+CX13*(1+$D$177),CX223)","v":0},{"$f":"IF('Data Input - BAU'!$F$37=\"Yes\",CY227+CY13*(1+$D$177),CY223)","v":0}]
[]
[null,"TOTALS"]
[]
[null,"Scenario Name",null,"Central","Low values","High values","EEA",null,"Low cost (Capex / opex)","High Cost (capex / opex)","Low WACC","High WACC","Low cost (Capex / WACC)","High cost (Capex / WACC)"]
[null,"Capex","£000's",{"$f":"SUM(D36:CY36)","v":5655.3585846017359},null,null,null,null,{"$f":"D234*(1-$D$177)","v":5655.3585846017359},{"$f":"D234*(1+$D$177)","v":5655.3585846017359},{"$f":"SUM(D194:CY194)","v":5365.2307155655999},{"$f":"SUM(D205:CY205)","v":5951.4263669870752},{"$f":"SUM(D218:CY218)","v":1.1636264950926249},{"$f":"SUM(D229:CY229)","v":0}]
[null,"Opex","£000's",{"$f":"SUM(D40:CY40)","v":1778.6359951155805},null,null,null,null,{"$f":"$D$235*(1-$D$181)","v":1422.9087960924644},{"$f":"$D$235*(1+$D$181)","v":2134.3631941386966}]
[null,"Waste","£000's",{"$f":"SUM(D44:CY44)","v":0}]
[null,"Energy consumption","£000's",{"$f":"SUM(D48:CY48)","v":11919.831628597303},{"$f":"SUM(D101:CY101)+SUM(D49:CY49)","v":10037.007675232446},{"$f":"SUM(D135:CY135)+SUM(D49:CY49)","v":13977.530704422566}]
[null,"Air pollutant emissions","£000's",{"$f":"SUM(D72:CY72)","v":45.201592601835038},{"$f":"SUM(D115:CY115)","v":10.743754913013877},{"$f":"SUM(D149:CY149)","v":128.70168108741842},{"$f":"SUM(D173:CY173)","v":71.052543813579931}]
[null,"GHG emissions","£000's",{"$f":"SUM(D87:CY87)","v":14093.991903202488},{"$f":"SUM(D122:CY122)","v":6494.1712582873861},{"$f":"SUM(D156:CY156)","v":39641.652657701554}]
[null,"Wider impacts","£000's"]
[]
[null,"Sensitivity analysis",null,"Low capex","High capex","Low opex","High opex","Low energy price","High energy price","Low AQ Values","High AQ Values","EEA Values","Location adjusted AQ","Low WACC","High WACC"]
[null,"Capex","£000's",{"$f":"I234","v":5655.3585846017359},{"$f":"J234","v":5655.3585846017359},{"$f":"$D234","v":5655.3585846017359},5655.3585846017359,5655.3585846017359,5655.3585846017359,5655.3585846017359,5655.3585846017359,5655.3585846017359,5655.3585846017359,{"$f":"K234","v":5365.2307155655999},{"$f":"L234","v":5951.4263669870752}]
[null,"Opex","£000's",{"$f":"$D235","v":1778.6359951155805},1778.6359951155805,{"$f":"I235","v":1422.9087960924644},{"$f":"J235","v":2134.3631941386966},{"$f":"$D235","v":1778.6359951155805},1778.6359951155805,1778.6359951155805,1778.6359951155805,1778.6359951155805,1778.6359951155805,1778.6359951155805,1778.6359951155805]
[null,"Waste","£000's",0,0,{"$f":"$D236","v":0},0,0,0,0,0,0,0,0,0]
[null,"Energy consumption","£000's",11919.831628597303,11919.831628597303,11919.831628597303,11919.831628597303,{"$f":"E237","v":10037.007675232446},{"$f":"F237","v":13977.530704422566},{"$f":"$D237","v":11919.831628597303},11919.831628597303,11919.831628597303,11919.831628597303,11919.831628597303,11919.831628597303]
[null,"Air pollutant emissions","£000's",45.201592601835038,45.201592601835038,45.201592601835038,45.201592601835038,{"$f":"$D238","v":45.201592601835038},{"$f":"$D238","v":45.201592601835038},{"$f":"E238","v":10.743754913013877},{"$f":"F238","v":128.70168108741842},{"$f":"G238","v":71.052543813579931},{"$f":"H238","v":0},{"$f":"$D238","v":45.201592601835038},{"$f":"$D238","v":45.201592601835038}]
[null,"GHG emissions","£000's",14093.991903202488,14093.991903202488,14093.991903202488,14093.991903202488,{"$f":"$D239","v":14093.991903202488},{"$f":"$D239","v":14093.991903202488},{"$f":"$D239","v":14093.991903202488},{"$f":"$D239","v":14093.991903202488},{"$f":"$D239","v":14093.991903202488},{"$f":"$D239","v":14093.991903202488},{"$f":"$D239","v":14093.991903202488},{"$f":"$D239","v":14093.991903202488}]
[]
[null,"Scenario analysis",null,"H Cost/L Benefit","L Cost/H benefit"]
[null,"Capex","£000's",{"$f":"N234","v":0},{"$f":"M234","v":1.1636264950926249}]
[null,"Opex","£000's",{"$f":"J235","v":2134.3631941386966},{"$f":"I235","v":1422.9087960924644}]
[null,"Waste","£000's",{"$f":"$D$236","v":0},{"$f":"$D$236","v":0}]
[null,"Energy consumption","£000's",{"$f":"E237","v":10037.007675232446},13977.530704422566]
[null,"Air pollutant emissions","£000's",10.743754913013877,128.70168108741842]
[null,"GHG emissions","£000's",6494.1712582873861,39641.652657701554]
[]
[null,"Totals £m"]
[]
[null,"Scenario Name",null,"Central","Low values","High values","EEA","Location adjusted","Low cost (Capex / opex)","High Cost (capex / opex)","Low WACC","High WACC","Low cost (Capex / WACC)","High cost (Capex / WACC)"]
[null,"Capex","£m",{"$f":"D234/1000","v":5.6553585846017356},0,0,0,0,5.6553585846017356,5.6553585846017356,5.3652307155656001,5.9514263669870751,1.163626495092625E-3,0]
[null,"Opex","£m",{"$f":"D235/1000","v":1.7786359951155806},0,0,0,0,1.4229087960924645,2.1343631941386967,0,0,0,0]
[null,"Waste","£m",{"$f":"D236/1000","v":0},0,0,0,0,0,0,0,0,0,0]
[null,"Energy consumption","£m",{"$f":"D237/1000","v":11.919831628597302},10.037007675232445,13.977530704422566,0,0,0,0,0,0,0,0]
[null,"Air pollutant emissions","£m",{"$f":"D238/1000","v":4.5201592601835039E-2},1.0743754913013877E-2,0.12870168108741842,7.1052543813579935E-2,0,0,0,0,0,0,0]
[null,"GHG emissions","£m",{"$f":"D239/1000","v":14.093991903202488},6.4941712582873858,39.641652657701556,0,0,0,0,0,0,0,0]
[null,"Wider impacts","£m",{"$f":"D240/1000","v":0},0,0,0,0,0,0,0,0,0,0]
[]
[null,"Sensitivity analysis",null,"Low capex","High capex","Low opex","High opex","Low energy price","High energy price","Low AQ Values","High AQ Values","EEA Values","Location adjusted AQ","Low WACC","High WACC"]
[null,"Capex","£m",{"$f":"D243/1000","v":5.6553585846017356},5.6553585846017356,5.6553585846017356,5.6553585846017356,5.6553585846017356,5.6553585846017356,5.6553585846017356,5.6553585846017356,5.6553585846017356,5.6553585846017356,5.3652307155656001,5.9514263669870751]
[null,"Opex","£m",{"$f":"D244/1000","v":1.7786359951155806},1.7786359951155806,1.4229087960924645,2.1343631941386967,1.7786359951155806,1.7786359951155806,1.7786359951155806,1.7786359951155806,1.7786359951155806,1.7786359951155806,1.7786359951155806,1.7786359951155806]
[null,"Waste","£m",{"$f":"D245/1000","v":0},0,0,0,0,0,0,0,0,0,0,0]
[null,"Energy consumption","£m",{"$f":"D246/1000","v":11.919831628597302},11.919831628597302,11.919831628597302,11.919831628597302,10.037007675232445,13.977530704422566,11.919831628597302,11.919831628597302,11.919831628597302,11.919831628597302,11.919831628597302,11.919831628597302]
[null,"Air pollutant emissions","£m",{"$f":"D247/1000","v":4.5201592601835039E-2},4.5201592601835039E-2,4.5201592601835039E-2,4.5201592601835039E-2,4.5201592601835039E-2,4.5201592601835039E-2,1.0743754913013877E-2,0.12870168108741842,7.1052543813579935E-2,0,4.5201592601835039E-2,4.5201592601835039E-2]
[null,"GHG emissions","£m",{"$f":"D248/1000","v":14.093991903202488},14.093991903202488,14.093991903202488,14.093991903202488,14.093991903202488,14.093991903202488,14.093991903202488,14.093991903202488,14.093991903202488,14.093991903202488,14.093991903202488,14.093991903202488]
[]
[null,"Scenario analysis",null,{"$f":"D250","v":"H Cost/L Benefit"},"L Cost/H benefit"]
[null,"Capex","£m",{"$f":"D251/1000","v":0},1.163626495092625E-3]
[null,"Opex","£m",2.1343631941386967,1.4229087960924645]
[null,"Waste","£m",0,0]
[null,"Energy consumption","£m",10.037007675232445,13.977530704422566]
[null,"Air pollutant emissions","£m",1.0743754913013877E-2,0.12870168108741842]
[null,"GHG emissions","£m",6.4941712582873858,39.641652657701556]

{"sheet":"Calc_Proposed","index":20,"n_rows":283,"n_cols":103,"rows_kept":283,"cut":false,"hidden":false,"merged":[]}
[]
[null,"Calculations - Proposed derogation","<< BACK to Data Input"]
[null,{"$f":"IF(ISBLANK('Data Input - Case description'!G18),\"Option not selected\",'Data Input - Case description'!G18)","v":"Proposed derogation"}]
[null,"First year",{"$f":"IF('Data Input - General'!F25=0,'Data Input - General'!F22,'Data Input - General'!F25)","v":2019}]
[null,"Year number",null,0,1,2,3,4,5,6,7,8,9,10,11,12,13,14,15,16,17,18,19,20,21,22,23,24,25,26,27,28,29,30,31,32,33,34,35,36,37,38,39,40,41,42,43,44,45,46,47,48,49,50,51,52,53,54,55,56,57,58,59]
[null,"Year",null,{"$f":"'Data Input - Proposed'!H7","v":2019},{"$f":"'Data Input - Proposed'!I7","v":2020},{"$f":"'Data Input - Proposed'!J7","v":2021},{"$f":"'Data Input - Proposed'!K7","v":2022},{"$f":"'Data Input - Proposed'!L7","v":2023},{"$f":"'Data Input - Proposed'!M7","v":2024},{"$f":"'Data Input - Proposed'!N7","v":2025},{"$f":"'Data Input - Proposed'!O7","v":2026},{"$f":"'Data Input - Proposed'!P7","v":2027},{"$f":"'Data Input - Proposed'!Q7","v":2028},{"$f":"'Data Input - Proposed'!R7","v":2029},{"$f":"'Data Input - Proposed'!S7","v":2030},{"$f":"'Data Input - Proposed'!T7","v":2031},{"$f":"'Data Input - Proposed'!U7","v":2032},{"$f":"'Data Input - Proposed'!V7","v":2033},{"$f":"'Data Input - Proposed'!W7","v":2034},{"$f":"'Data Input - Proposed'!X7","v":2035},{"$f":"'Data Input - Proposed'!Y7","v":2036},{"$f":"'Data Input - Proposed'!Z7","v":2037},{"$f":"'Data Input - Proposed'!AA7","v":2038},{"$f":"'Data Input - Proposed'!AB7","v":2039},{"$f":"'Data Input - Proposed'!AC7","v":2040},{"$f":"'Data Input - Proposed'!AD7","v":2041},{"$f":"'Data Input - Proposed'!AE7","v":2042},{"$f":"'Data Input - Proposed'!AF7","v":2043},{"$f":"'Data Input - Proposed'!AG7","v":2044},{"$f":"'Data Input - Proposed'!AH7","v":2045},{"$f":"'Data Input - Proposed'!AI7","v":2046},{"$f":"'Data Input - Proposed'!AJ7","v":2047},{"$f":"'Data Input - Proposed'!AK7","v":2048},{"$f":"'Data Input - Proposed'!AL7","v":2049},{"$f":"'Data Input - Proposed'!AM7","v":0},{"$f":"'Data Input - Proposed'!AN7","v":0},{"$f":"'Data Input - Proposed'!AO7","v":0},{"$f":"'Data Input - Proposed'!AP7","v":0},{"$f":"'Data Input - Proposed'!AQ7","v":0},{"$f":"'Data Input - Proposed'!AR7","v":0},{"$f":"'Data Input - Proposed'!AS7","v":0},{"$f":"'Data Input - Proposed'!AT7","v":0},{"$f":"'Data Input - Proposed'!AU7","v":0},{"$f":"'Data Input - Proposed'!AV7","v":0},{"$f":"'Data Input - Proposed'!AW7","v":0},{"$f":"'Data Input - Proposed'!AX7","v":0},{"$f":"'Data Input - Proposed'!AY7","v":0},{"$f":"'Data Input - Proposed'!AZ7","v":0},{"$f":"'Data Input - Proposed'!BA7","v":0},{"$f":"'Data Input - Proposed'!BB7","v":0},{"$f":"'Data Input - Proposed'!BC7","v":0},{"$f":"'Data Input - Proposed'!BD7","v":0},{"$f":"'Data Input - Proposed'!BE7","v":0},{"$f":"'Data Input - Proposed'!BF7","v":0},{"$f":"'Data Input - Proposed'!BG7","v":0},{"$f":"'Data Input - Proposed'!BH7","v":0},{"$f":"'Data Input - Proposed'!BI7","v":0},{"$f":"'Data Input - Proposed'!BJ7","v":0},{"$f":"'Data Input - Proposed'!BK7","v":0},{"$f":"'Data Input - Proposed'!BL7","v":0},{"$f":"'Data Input - Proposed'!BM7","v":0},{"$f":"'Data Input - Proposed'!BN7","v":0},{"$f":"'Data Input - Proposed'!BO7","v":0},{"$f":"'Data Input - Proposed'!BP7","v":0},{"$f":"'Data Input - Proposed'!BQ7","v":0},{"$f":"'Data Input - Proposed'!BR7","v":0},{"$f":"'Data Input - Proposed'!BS7","v":0},{"$f":"'Data Input - Proposed'!BT7","v":0},{"$f":"'Data Input - Proposed'!BU7","v":0},{"$f":"'Data Input - Proposed'!BV7","v":0},{"$f":"'Data Input - Proposed'!BW7","v":0},{"$f":"'Data Input - Proposed'!BX7","v":0},{"$f":"'Data Input - Proposed'!BY7","v":0},{"$f":"'Data Input - Proposed'!BZ7","v":0},{"$f":"'Data Input - Proposed'!CA7","v":0},{"$f":"'Data Input - Proposed'!CB7","v":0},{"$f":"'Data Input - Proposed'!CC7","v":0},{"$f":"'Data Input - Proposed'!CD7","v":0},{"$f":"'Data Input - Proposed'!CE7","v":0},{"$f":"'Data Input - Proposed'!CF7","v":0},{"$f":"'Data Input - Proposed'!CG7","v":0},{"$f":"'Data Input - Proposed'!CH7","v":0},{"$f":"'Data Input - Proposed'!CI7","v":0},{"$f":"'Data Input - Proposed'!CJ7","v":0},{"$f":"'Data Input - Proposed'!CK7","v":0},{"$f":"'Data Input - Proposed'!CL7","v":0},{"$f":"'Data Input - Proposed'!CM7","v":0},{"$f":"'Data Input - Proposed'!CN7","v":0},{"$f":"'Data Input - Proposed'!CO7","v":0},{"$f":"'Data Input - Proposed'!CP7","v":0},{"$f":"'Data Input - Proposed'!CQ7","v":0},{"$f":"'Data Input - Proposed'!CR7","v":0},{"$f":"'Data Input - Proposed'!CS7","v":0},{"$f":"'Data Input - Proposed'!CT7","v":0},{"$f":"'Data Input - Proposed'!CU7","v":0},{"$f":"'Data Input - Proposed'!CV7","v":0},{"$f":"'Data Input - Proposed'!CW7","v":0},{"$f":"'Data Input - Proposed'!CX7","v":0},{"$f":"'Data Input - Proposed'!CY7","v":0},{"$f":"'Data Input - Proposed'!CZ7","v":0},{"$f":"'Data Input - Proposed'!DA7","v":0},{"$f":"'Data Input - Proposed'!DB7","v":0},{"$f":"'Data Input - Proposed'!DC7","v":0}]
[null,"Discount factor",null,{"$f":"IF(D6=0,0,'Discount and deflators'!F12)","v":1},{"$f":"IF(E6=0,0,'Discount and deflators'!G12)","v":0.96618357487922713},{"$f":"IF(F6=0,0,'Discount and deflators'!H12)","v":0.93351070036640305},{"$f":"IF(G6=0,0,'Discount and deflators'!I12)","v":0.90194270566802237},{"$f":"IF(H6=0,0,'Discount and deflators'!J12)","v":0.87144222769857238},{"$f":"IF(I6=0,0,'Discount and deflators'!K12)","v":0.84197316685852408},{"$f":"IF(J6=0,0,'Discount and deflators'!L12)","v":0.81350064430775282},{"$f":"IF(K6=0,0,'Discount and deflators'!M12)","v":0.78599096068381924},{"$f":"IF(L6=0,0,'Discount and deflators'!N12)","v":0.75941155621625056},{"$f":"IF(M6=0,0,'Discount and deflators'!O12)","v":0.73373097218961414},{"$f":"IF(N6=0,0,'Discount and deflators'!P12)","v":0.70891881370977217},{"$f":"IF(O6=0,0,'Discount and deflators'!Q12)","v":0.68494571372924851},{"$f":"IF(P6=0,0,'Discount and deflators'!R12)","v":0.66178329828912907},{"$f":"IF(Q6=0,0,'Discount and deflators'!S12)","v":0.63940415293635666},{"$f":"IF(R6=0,0,'Discount and deflators'!T12)","v":0.61778179027667313},{"$f":"IF(S6=0,0,'Discount and deflators'!U12)","v":0.59689061862480497},{"$f":"IF(T6=0,0,'Discount and deflators'!V12)","v":0.57670591171478747},{"$f":"IF(U6=0,0,'Discount and deflators'!W12)","v":0.55720377943457733},{"$f":"IF(V6=0,0,'Discount and deflators'!X12)","v":0.53836113955031628},{"$f":"IF(W6=0,0,'Discount and deflators'!Y12)","v":0.520155690386779},{"$f":"IF(X6=0,0,'Discount and deflators'!Z12)","v":0.50256588443167061},{"$f":"IF(Y6=0,0,'Discount and deflators'!AA12)","v":0.48557090283253201},{"$f":"IF(Z6=0,0,'Discount and deflators'!AB12)","v":0.46915063075606961},{"$f":"IF(AA6=0,0,'Discount and deflators'!AC12)","v":0.45328563358074364},{"$f":"IF(AB6=0,0,'Discount and deflators'!AD12)","v":0.43795713389443836},{"$f":"IF(AC6=0,0,'Discount and deflators'!AE12)","v":0.42314698926998878},{"$f":"IF(AD6=0,0,'Discount and deflators'!AF12)","v":0.40883767079225974},{"$f":"IF(AE6=0,0,'Discount and deflators'!AG12)","v":0.39501224231136212},{"$f":"IF(AF6=0,0,'Discount and deflators'!AH12)","v":0.38165434039745133},{"$f":"IF(AG6=0,0,'Discount and deflators'!AI12)","v":0.36874815497338298},{"$f":"IF(AH6=0,0,'Discount and deflators'!AJ12)","v":0.35800791744988636},{"$f":"IF(AI6=0,0,'Discount and deflators'!AK12)","v":0},{"$f":"IF(AJ6=0,0,'Discount and deflators'!AL12)","v":0},{"$f":"IF(AK6=0,0,'Discount and deflators'!AM12)","v":0},{"$f":"IF(AL6=0,0,'Discount and deflators'!AN12)","v":0},{"$f":"IF(AM6=0,0,'Discount and deflators'!AO12)","v":0},{"$f":"IF(AN6=0,0,'Discount and deflators'!AP12)","v":0},{"$f":"IF(AO6=0,0,'Discount and deflators'!AQ12)","v":0},{"$f":"IF(AP6=0,0,'Discount and deflators'!AR12)","v":0},{"$f":"IF(AQ6=0,0,'Discount and deflators'!AS12)","v":0},{"$f":"IF(AR6=0,0,'Discount and deflators'!AT12)","v":0},{"$f":"IF(AS6=0,0,'Discount and deflators'!AU12)","v":0},{"$f":"IF(AT6=0,0,'Discount and deflators'!AV12)","v":0},{"$f":"IF(AU6=0,0,'Discount and deflators'!AW12)","v":0},{"$f":"IF(AV6=0,0,'Discount and deflators'!AX12)","v":0},{"$f":"IF(AW6=0,0,'Discount and deflators'!AY12)","v":0},{"$f":"IF(AX6=0,0,'Discount and deflators'!AZ12)","v":0},{"$f":"IF(AY6=0,0,'Discount and deflators'!BA12)","v":0},{"$f":"IF(AZ6=0,0,'Discount and deflators'!BB12)","v":0},{"$f":"IF(BA6=0,0,'Discount and deflators'!BC12)","v":0},{"$f":"IF(BB6=0,0,'Discount and deflators'!BD12)","v":0},{"$f":"IF(BC6=0,0,'Discount and deflators'!BE12)","v":0},{"$f":"IF(BD6=0,0,'Discount and deflators'!BF12)","v":0},{"$f":"IF(BE6=0,0,'Discount and deflators'!BG12)","v":0},{"$f":"IF(BF6=0,0,'Discount and deflators'!BH12)","v":0},{"$f":"IF(BG6=0,0,'Discount and deflators'!BI12)","v":0},{"$f":"IF(BH6=0,0,'Discount and deflators'!BJ12)","v":0},{"$f":"IF(BI6=0,0,'Discount and deflators'!BK12)","v":0},{"$f":"IF(BJ6=0,0,'Discount and deflators'!BL12)","v":0},{"$f":"IF(BK6=0,0,'Discount and deflators'!BM12)","v":0},{"$f":"IF(BL6=0,0,'Discount and deflators'!BN12)","v":0},{"$f":"IF(BM6=0,0,'Discount and deflators'!BO12)","v":0},{"$f":"IF(BN6=0,0,'Discount and deflators'!BP12)","v":0},{"$f":"IF(BO6=0,0,'Discount and deflators'!BQ12)","v":0},{"$f":"IF(BP6=0,0,'Discount and deflators'!BR12)","v":0},{"$f":"IF(BQ6=0,0,'Discount and deflators'!BS12)","v":0},{"$f":"IF(BR6=0,0,'Discount and deflators'!BT12)","v":0},{"$f":"IF(BS6=0,0,'Discount and deflators'!BU12)","v":0},{"$f":"IF(BT6=0,0,'Discount and deflators'!BV12)","v":0},{"$f":"IF(BU6=0,0,'Discount and deflators'!BW12)","v":0},{"$f":"IF(BV6=0,0,'Discount and deflators'!BX12)","v":0},{"$f":"IF(BW6=0,0,'Discount and deflators'!BY12)","v":0},{"$f":"IF(BX6=0,0,'Discount and deflators'!BZ12)","v":0},{"$f":"IF(BY6=0,0,'Discount and deflators'!CA12)","v":0},{"$f":"IF(BZ6=0,0,'Discount and deflators'!CB12)","v":0},{"$f":"IF(CA6=0,0,'Discount and deflators'!CC12)","v":0},{"$f":"IF(CB6=0,0,'Discount and deflators'!CD12)","v":0},{"$f":"IF(CC6=0,0,'Discount and deflators'!CE12)","v":0},{"$f":"IF(CD6=0,0,'Discount and deflators'!CF12)","v":0},{"$f":"IF(CE6=0,0,'Discount and deflators'!CG12)","v":0},{"$f":"IF(CF6=0,0,'Discount and deflators'!CH12)","v":0},{"$f":"IF(CG6=0,0,'Discount and deflators'!CI12)","v":0},{"$f":"IF(CH6=0,0,'Discount and deflators'!CJ12)","v":0},{"$f":"IF(CI6=0,0,'Discount and deflators'!CK12)","v":0},{"$f":"IF(CJ6=0,0,'Discount and deflators'!CL12)","v":0},{"$f":"IF(CK6=0,0,'Discount and deflators'!CM12)","v":0},{"$f":"IF(CL6=0,0,'Discount and deflators'!CN12)","v":0},{"$f":"IF(CM6=0,0,'Discount and deflators'!CO12)","v":0},{"$f":"IF(CN6=0,0,'Discount and deflators'!CP12)","v":0},{"$f":"IF(CO6=0,0,'Discount and deflators'!CQ12)","v":0},{"$f":"IF(CP6=0,0,'Discount and deflators'!CR12)","v":0},{"$f":"IF(CQ6=0,0,'Discount and deflators'!CS12)","v":0},{"$f":"IF(CR6=0,0,'Discount and deflators'!CT12)","v":0},{"$f":"IF(CS6=0,0,'Discount and deflators'!CU12)","v":0},{"$f":"IF(CT6=0,0,'Discount and deflators'!CV12)","v":0},{"$f":"IF(CU6=0,0,'Discount and deflators'!CW12)","v":0},{"$f":"IF(CV6=0,0,'Discount and deflators'!CX12)","v":0},{"$f":"IF(CW6=0,0,'Discount and deflators'!CY12)","v":0},{"$f":"IF(CX6=0,0,'Discount and deflators'!CZ12)","v":0},{"$f":"IF(CY6=0,0,'Discount and deflators'!DA12)","v":0}]
[]
[null,"CENTRAL CALCULATIONS"]
[]
[null,"Capital Costs (total)"]
[null,"Total Capex","£000's",{"$f":"'Data Input - Proposed'!H30","v":526},{"$f":"'Data Input - Proposed'!I30","v":526},{"$f":"'Data Input - Proposed'!J30","v":526},{"$f":"'Data Input - Proposed'!K30","v":6006},{"$f":"'Data Input - Proposed'!L30","v":526},{"$f":"'Data Input - Proposed'!M30","v":526},{"$f":"'Data Input - Proposed'!N30","v":526},{"$f":"'Data Input - Proposed'!O30","v":526},{"$f":"'Data Input - Proposed'!P30","v":0},{"$f":"'Data Input - Proposed'!Q30","v":0},{"$f":"'Data Input - Proposed'!R30","v":0},{"$f":"'Data Input - Proposed'!S30","v":0},{"$f":"'Data Input - Proposed'!T30","v":0},{"$f":"'Data Input - Proposed'!U30","v":0},{"$f":"'Data Input - Proposed'!V30","v":0},{"$f":"'Data Input - Proposed'!W30","v":0},{"$f":"'Data Input - Proposed'!X30","v":0},{"$f":"'Data Input - Proposed'!Y30","v":0},{"$f":"'Data Input - Proposed'!Z30","v":0},{"$f":"'Data Input - Proposed'!AA30","v":0},{"$f":"'Data Input - Proposed'!AB30","v":0},{"$f":"'Data Input - Proposed'!AC30","v":0},{"$f":"'Data Input - Proposed'!AD30","v":0},{"$f":"'Data Input - Proposed'!AE30","v":0},{"$f":"'Data Input - Proposed'!AF30","v":0},{"$f":"'Data Input - Proposed'!AG30","v":0},{"$f":"'Data Input - Proposed'!AH30","v":0},{"$f":"'Data Input - Proposed'!AI30","v":0},{"$f":"'Data Input - Proposed'!AJ30","v":0},{"$f":"'Data Input - Proposed'!AK30","v":0},{"$f":"'Data Input - Proposed'!AL30","v":0},{"$f":"'Data Input - Proposed'!AM30","v":0},{"$f":"'Data Input - Proposed'!AN30","v":0},{"$f":"'Data Input - Proposed'!AO30","v":0},{"$f":"'Data Input - Proposed'!AP30","v":0},{"$f":"'Data Input - Proposed'!AQ30","v":0},{"$f":"'Data Input - Proposed'!AR30","v":0},{"$f":"'Data Input - Proposed'!AS30","v":0},{"$f":"'Data Input - Proposed'!AT30","v":0},{"$f":"'Data Input - Proposed'!AU30","v":0},{"$f":"'Data Input - Proposed'!AV30","v":0},{"$f":"'Data Input - Proposed'!AW30","v":0},{"$f":"'Data Input - Proposed'!AX30","v":0},{"$f":"'Data Input - Proposed'!AY30","v":0},{"$f":"'Data Input - Proposed'!AZ30","v":0},{"$f":"'Data Input - Proposed'!BA30","v":0},{"$f":"'Data Input - Proposed'!BB30","v":0},{"$f":"'Data Input - Proposed'!BC30","v":0},{"$f":"'Data Input - Proposed'!BD30","v":0},{"$f":"'Data Input - Proposed'!BE30","v":0},{"$f":"'Data Input - Proposed'!BF30","v":0},{"$f":"'Data Input - Proposed'!BG30","v":0},{"$f":"'Data Input - Proposed'!BH30","v":0},{"$f":"'Data Input - Proposed'!BI30","v":0},{"$f":"'Data Input - Proposed'!BJ30","v":0},{"$f":"'Data Input - Proposed'!BK30","v":0},{"$f":"'Data Input - Proposed'!BL30","v":0},{"$f":"'Data Input - Proposed'!BM30","v":0},{"$f":"'Data Input - Proposed'!BN30","v":0},{"$f":"'Data Input - Proposed'!BO30","v":0},{"$f":"'Data Input - Proposed'!BP30","v":0},{"$f":"'Data Input - Proposed'!BQ30","v":0},{"$f":"'Data Input - Proposed'!BR30","v":0},{"$f":"'Data Input - Proposed'!BS30","v":0},{"$f":"'Data Input - Proposed'!BT30","v":0},{"$f":"'Data Input - Proposed'!BU30","v":0},{"$f":"'Data Input - Proposed'!BV30","v":0},{"$f":"'Data Input - Proposed'!BW30","v":0},{"$f":"'Data Input - Proposed'!BX30","v":0},{"$f":"'Data Input - Proposed'!BY30","v":0},{"$f":"'Data Input - Proposed'!BZ30","v":0},{"$f":"'Data Input - Proposed'!CA30","v":0},{"$f":"'Data Input - Proposed'!CB30","v":0},{"$f":"'Data Input - Proposed'!CC30","v":0},{"$f":"'Data Input - Proposed'!CD30","v":0},{"$f":"'Data Input - Proposed'!CE30","v":0},{"$f":"'Data Input - Proposed'!CF30","v":0},{"$f":"'Data Input - Proposed'!CG30","v":0},{"$f":"'Data Input - Proposed'!CH30","v":0},{"$f":"'Data Input - Proposed'!CI30","v":0},{"$f":"'Data Input - Proposed'!CJ30","v":0},{"$f":"'Data Input - Proposed'!CK30","v":0},{"$f":"'Data Input - Proposed'!CL30","v":0},{"$f":"'Data Input - Proposed'!CM30","v":0},{"$f":"'Data Input - Proposed'!CN30","v":0},{"$f":"'Data Input - Proposed'!CO30","v":0},{"$f":"'Data Input - Proposed'!CP30","v":0},{"$f":"'Data Input - Proposed'!CQ30","v":0},{"$f":"'Data Input - Proposed'!CR30","v":0},{"$f":"'Data Input - Proposed'!CS30","v":0},{"$f":"'Data Input - Proposed'!CT30","v":0},{"$f":"'Data Input - Proposed'!CU30","v":0},{"$f":"'Data Input - Proposed'!CV30","v":0},{"$f":"'Data Input - Proposed'!CW30","v":0},{"$f":"'Data Input - Proposed'!CX30","v":0},{"$f":"'Data Input - Proposed'!CY30","v":0},{"$f":"'Data Input - Proposed'!CZ30","v":0},{"$f":"'Data Input - Proposed'!DA30","v":0},{"$f":"'Data Input - Proposed'!DB30","v":0},{"$f":"'Data Input - Proposed'!DC30","v":0}]
[null,"Total capex discounted","£000's",{"$f":"D12*D$7","v":526},{"$f":"E12*E$7","v":508.21256038647346},491.02662839272801,5417.0678902421423,458.37861176944909,442.87788576758368,427.90133890587799,413.43124531968891,0,0,0,0,0,0,0,0,0,0,0,0,0,0,0,0,0,0,0,0,0,0,0,0,0,0,0,0,0,0,0,0,0,0,0,0,0,0,0,0,0,0,0,0,0,0,0,0,0,0,0,0,0,0,0,0,0,{"$f":"BQ12*BQ$7","v":0},0,0,0,0,0,0,0,0,0,0,0,0,0,0,0,0,0,0,0,0,0,0,0,0,0,0,0,0,0,0,0,0,0,0]
[]
[null,"First Year of upfront costs? - Array",null,{"$f":"IF(D12<>0,TRUE,FALSE)","v":true},{"$f":"IF(D15=TRUE,\"ALREADY FOUND\",IF(E12<>0,TRUE,FALSE))","v":"ALREADY FOUND"},{"$f":"IF(E15=\"ALREADY FOUND\",\"ALREADY FOUND\",IF(E15=TRUE,\"ALREADY FOUND\",IF(F12<>0,TRUE,FALSE)))","v":"ALREADY FOUND"},{"$f":"IF(F15=\"ALREADY FOUND\",\"ALREADY FOUND\",IF(F15=TRUE,\"ALREADY FOUND\",IF(G12<>0,TRUE,FALSE)))","v":"ALREADY FOUND"},"ALREADY FOUND","ALREADY FOUND","ALREADY FOUND","ALREADY FOUND","ALREADY FOUND","ALREADY FOUND","ALREADY FOUND","ALREADY FOUND","ALREADY FOUND","ALREADY FOUND","ALREADY FOUND","ALREADY FOUND","ALREADY FOUND","ALREADY FOUND","ALREADY FOUND","ALREADY FOUND","ALREADY FOUND","ALREADY FOUND","ALREADY FOUND","ALREADY FOUND","ALREADY FOUND","ALREADY FOUND","ALREADY FOUND","ALREADY FOUND","ALREADY FOUND","ALREADY FOUND","ALREADY FOUND","ALREADY FOUND","ALREADY FOUND","ALREADY FOUND","ALREADY FOUND","ALREADY FOUND","ALREADY FOUND","ALREADY FOUND","ALREADY FOUND","ALREADY FOUND","ALREADY FOUND","ALREADY FOUND","ALREADY FOUND","ALREADY FOUND","ALREADY FOUND","ALREADY FOUND","ALREADY FOUND","ALREADY FOUND","ALREADY FOUND","ALREADY FOUND","ALREADY FOUND","ALREADY FOUND","ALREADY FOUND","ALREADY FOUND","ALREADY FOUND","ALREADY FOUND","ALREADY FOUND","ALREADY FOUND","ALREADY FOUND","ALREADY FOUND","ALREADY FOUND","ALREADY FOUND","ALREADY FOUND","ALREADY FOUND","ALREADY FOUND","ALREADY FOUND","ALREADY FOUND",{"$f":"IF(BR15=\"ALREADY FOUND\",\"ALREADY FOUND\",IF(BR15=TRUE,\"ALREADY FOUND\",IF(BS12<>0,TRUE,FALSE)))","v":"ALREADY FOUND"},"ALREADY FOUND","ALREADY FOUND","ALREADY FOUND","ALREADY FOUND","ALREADY FOUND","ALREADY FOUND","ALREADY FOUND","ALREADY FOUND","ALREADY FOUND","ALREADY FOUND","ALREADY FOUND","ALREADY FOUND","ALREADY FOUND","ALREADY FOUND","ALREADY FOUND","ALREADY FOUND","ALREADY FOUND","ALREADY FOUND","ALREADY FOUND","ALREADY FOUND","ALREADY FOUND","ALREADY FOUND","ALREADY FOUND","ALREADY FOUND","ALREADY FOUND","ALREADY FOUND","ALREADY FOUND","ALREADY FOUND","ALREADY FOUND","ALREADY FOUND","ALREADY FOUND"]
[null,"First Year of upfront costs",null,{"$f":"INDEX($D$6:$CX$6,MATCH(TRUE,$D$15:$CX$15,0))","v":2019}]
[null,"Final Year of upfront costs? - Array",null,{"$f":"IF(D6<$D$16,FALSE,IF(D12+E12=0,TRUE,FALSE))","v":false},{"$f":"IF(D17=TRUE,\"N/A\",IF(D17=\"N/A\",\"N/A\",IF(E6<$D$16,FALSE,IF(E12+F12=0,TRUE,FALSE))))","v":false},{"$f":"IF(E17=TRUE,\"N/A\",IF(E17=\"N/A\",\"N/A\",IF(F6<$D$16,FALSE,IF(F12+G12=0,TRUE,FALSE))))","v":false},{"$f":"IF(F17=TRUE,\"N/A\",IF(F17=\"N/A\",\"N/A\",IF(G6<$D$16,FALSE,IF(G12+H12=0,TRUE,FALSE))))","v":false},{"$f":"IF(G17=TRUE,\"N/A\",IF(G17=\"N/A\",\"N/A\",IF(H6<$D$16,FALSE,IF(H12+I12=0,TRUE,FALSE))))","v":false},{"$f":"IF(H17=TRUE,\"N/A\",IF(H17=\"N/A\",\"N/A\",IF(I6<$D$16,FALSE,IF(I12+J12=0,TRUE,FALSE))))","v":false},{"$f":"IF(I17=TRUE,\"N/A\",IF(I17=\"N/A\",\"N/A\",IF(J6<$D$16,FALSE,IF(J12+K12=0,TRUE,FALSE))))","v":false},false,true,"N/A","N/A","N/A","N/A","N/A","N/A","N/A","N/A","N/A","N/A","N/A","N/A","N/A","N/A","N/A","N/A","N/A","N/A","N/A","N/A","N/A","N/A","N/A","N/A","N/A","N/A","N/A","N/A","N/A","N/A","N/A","N/A","N/A","N/A","N/A","N/A","N/A","N/A","N/A","N/A","N/A","N/A","N/A","N/A","N/A","N/A","N/A","N/A","N/A","N/A","N/A","N/A","N/A","N/A","N/A","N/A","N/A","N/A","N/A","N/A","N/A",{"$f":"IF(BU17=TRUE,\"N/A\",IF(BU17=\"N/A\",\"N/A\",IF(BV6<$D$16,FALSE,IF(BV12+BW12=0,TRUE,FALSE))))","v":"N/A"},"N/A","N/A","N/A","N/A","N/A","N/A","N/A","N/A","N/A","N/A","N/A","N/A","N/A","N/A","N/A","N/A","N/A","N/A","N/A","N/A","N/A","N/A","N/A","N/A","N/A","N/A","N/A","N/A"]
[null,"Final Year of upfront costs",null,{"$f":"INDEX($D$6:$CX$6,MATCH(TRUE,$D$17:$CX$17,0))","v":2027}]
[null,"Include undiscounted total capex in SUM?",null,{"$f":"IF(AND(OR(D6=$D$16,D6>$D$16),OR(D6=$D$18,D6<$D$18)),D12,0)","v":526},{"$f":"IF(AND(OR(E6=$D$16,E6>$D$16),OR(E6=$D$18,E6<$D$18)),E12,0)","v":526},526,6006,{"$f":"IF(AND(OR(H6=$D$16,H6>$D$16),OR(H6=$D$18,H6<$D$18)),H12,0)","v":526},{"$f":"IF(AND(OR(I6=$D$16,I6>$D$16),OR(I6=$D$18,I6<$D$18)),I12,0)","v":526},526,526,0,0,0,0,0,0,0,0,0,0,0,0,0,0,0,0,0,0,0,0,0,0,0,0,0,0,0,0,0,0,0,0,0,0,0,0,0,0,0,0,0,0,0,0,0,0,0,0,0,0,0,0,0,0,0,0,0,0,0,0,0,{"$f":"IF(AND(OR(BU6=$D$16,BU6>$D$16),OR(BU6=$D$18,BU6<$D$18)),BU12,0)","v":0},0,0,0,0,0,0,0,0,0,0,0,0,0,0,0,0,0,0,0,0,0,0,0,0,0,0,0,0,0]
[null,"Total upfront investment cost for first installation only",null,{"$f":"SUM(D19:CX19)","v":9688}]
[null,"New invesment/refurbishment cost?",null,null,null,null,{"$f":"IF(OR(AND(SUM(D12:F12)=0,G12>0,G15=\"ALREADY FOUND\"),AND(F21=TRUE,G12>0),AND(F21=TRUE,SUM(H12:I12)>0)),TRUE,FALSE)","v":false},{"$f":"IF(OR(AND(SUM(E12:G12)=0,H12>0,H15=\"ALREADY FOUND\"),AND(G21=TRUE,H12>0),AND(G21=TRUE,SUM(I12:J12)>0)),TRUE,FALSE)","v":false},false,false,false,false,false,false,false,false,false,false,false,false,false,false,false,false,false,false,false,false,false,false,false,false,false,false,false,false,false,false,false,false,false,false,false,false,false,false,false,false,false,false,false,false,false,false,false,false,false,false,false,false,false,false,false,false,false,false,false,false,false,false,false,{"$f":"IF(OR(AND(SUM(BQ12:BS12)=0,BT12>0,BT15=\"ALREADY FOUND\"),AND(BS21=TRUE,BT12>0),AND(BS21=TRUE,SUM(BU12:BV12)>0)),TRUE,FALSE)","v":false},false,false,false,false,false,false,false,false,false,false,false,false,false,false,false,false,false,false,false,false,false,false,false,false,false,false,false,false,false,false]
[null,"New invesment/refurbishment counter",null,null,null,null,{"$f":"IF(G21=FALSE,0,IF(F22<>0,F22,MAX($D$22:F22)+1))","v":0},{"$f":"IF(H21=FALSE,0,IF(G22<>0,G22,MAX($D$22:G22)+1))","v":0},{"$f":"IF(I21=FALSE,0,IF(H22<>0,H22,MAX($D$22:H22)+1))","v":0},{"$f":"IF(J21=FALSE,0,IF(I22<>0,I22,MAX($D$22:I22)+1))","v":0},{"$f":"IF(K21=FALSE,0,IF(J22<>0,J22,MAX($D$22:J22)+1))","v":0},{"$f":"IF(L21=FALSE,0,IF(K22<>0,K22,MAX($D$22:K22)+1))","v":0},{"$f":"IF(M21=FALSE,0,IF(L22<>0,L22,MAX($D$22:L22)+1))","v":0},{"$f":"IF(N21=FALSE,0,IF(M22<>0,M22,MAX($D$22:M22)+1))","v":0},{"$f":"IF(O21=FALSE,0,IF(N22<>0,N22,MAX($D$22:N22)+1))","v":0},{"$f":"IF(P21=FALSE,0,IF(O22<>0,O22,MAX($D$22:O22)+1))","v":0},{"$f":"IF(Q21=FALSE,0,IF(P22<>0,P22,MAX($D$22:P22)+1))","v":0},{"$f":"IF(R21=FALSE,0,IF(Q22<>0,Q22,MAX($D$22:Q22)+1))","v":0},{"$f":"IF(S21=FALSE,0,IF(R22<>0,R22,MAX($D$22:R22)+1))","v":0},{"$f":"IF(T21=FALSE,0,IF(S22<>0,S22,MAX($D$22:S22)+1))","v":0},{"$f":"IF(U21=FALSE,0,IF(T22<>0,T22,MAX($D$22:T22)+1))","v":0},{"$f":"IF(V21=FALSE,0,IF(U22<>0,U22,MAX($D$22:U22)+1))","v":0},{"$f":"IF(W21=FALSE,0,IF(V22<>0,V22,MAX($D$22:V22)+1))","v":0},{"$f":"IF(X21=FALSE,0,IF(W22<>0,W22,MAX($D$22:W22)+1))","v":0},{"$f":"IF(Y21=FALSE,0,IF(X22<>0,X22,MAX($D$22:X22)+1))","v":0},{"$f":"IF(Z21=FALSE,0,IF(Y22<>0,Y22,MAX($D$22:Y22)+1))","v":0},{"$f":"IF(AA21=FALSE,0,IF(Z22<>0,Z22,MAX($D$22:Z22)+1))","v":0},{"$f":"IF(AB21=FALSE,0,IF(AA22<>0,AA22,MAX($D$22:AA22)+1))","v":0},{"$f":"IF(AC21=FALSE,0,IF(AB22<>0,AB22,MAX($D$22:AB22)+1))","v":0},{"$f":"IF(AD21=FALSE,0,IF(AC22<>0,AC22,MAX($D$22:AC22)+1))","v":0},{"$f":"IF(AE21=FALSE,0,IF(AD22<>0,AD22,MAX($D$22:AD22)+1))","v":0},{"$f":"IF(AF21=FALSE,0,IF(AE22<>0,AE22,MAX($D$22:AE22)+1))","v":0},{"$f":"IF(AG21=FALSE,0,IF(AF22<>0,AF22,MAX($D$22:AF22)+1))","v":0},{"$f":"IF(AH21=FALSE,0,IF(AG22<>0,AG22,MAX($D$22:AG22)+1))","v":0},{"$f":"IF(AI21=FALSE,0,IF(AH22<>0,AH22,MAX($D$22:AH22)+1))","v":0},{"$f":"IF(AJ21=FALSE,0,IF(AI22<>0,AI22,MAX($D$22:AI22)+1))","v":0},{"$f":"IF(AK21=FALSE,0,IF(AJ22<>0,AJ22,MAX($D$22:AJ22)+1))","v":0},{"$f":"IF(AL21=FALSE,0,IF(AK22<>0,AK22,MAX($D$22:AK22)+1))","v":0},{"$f":"IF(AM21=FALSE,0,IF(AL22<>0,AL22,MAX($D$22:AL22)+1))","v":0},{"$f":"IF(AN21=FALSE,0,IF(AM22<>0,AM22,MAX($D$22:AM22)+1))","v":0},{"$f":"IF(AO21=FALSE,0,IF(AN22<>0,AN22,MAX($D$22:AN22)+1))","v":0},{"$f":"IF(AP21=FALSE,0,IF(AO22<>0,AO22,MAX($D$22:AO22)+1))","v":0},{"$f":"IF(AQ21=FALSE,0,IF(AP22<>0,AP22,MAX($D$22:AP22)+1))","v":0},{"$f":"IF(AR21=FALSE,0,IF(AQ22<>0,AQ22,MAX($D$22:AQ22)+1))","v":0},{"$f":"IF(AS21=FALSE,0,IF(AR22<>0,AR22,MAX($D$22:AR22)+1))","v":0},{"$f":"IF(AT21=FALSE,0,IF(AS22<>0,AS22,MAX($D$22:AS22)+1))","v":0},{"$f":"IF(AU21=FALSE,0,IF(AT22<>0,AT22,MAX($D$22:AT22)+1))","v":0},{"$f":"IF(AV21=FALSE,0,IF(AU22<>0,AU22,MAX($D$22:AU22)+1))","v":0},{"$f":"IF(AW21=FALSE,0,IF(AV22<>0,AV22,MAX($D$22:AV22)+1))","v":0},{"$f":"IF(AX21=FALSE,0,IF(AW22<>0,AW22,MAX($D$22:AW22)+1))","v":0},{"$f":"IF(AY21=FALSE,0,IF(AX22<>0,AX22,MAX($D$22:AX22)+1))","v":0},{"$f":"IF(AZ21=FALSE,0,IF(AY22<>0,AY22,MAX($D$22:AY22)+1))","v":0},{"$f":"IF(BA21=FALSE,0,IF(AZ22<>0,AZ22,MAX($D$22:AZ22)+1))","v":0},{"$f":"IF(BB21=FALSE,0,IF(BA22<>0,BA22,MAX($D$22:BA22)+1))","v":0},{"$f":"IF(BC21=FALSE,0,IF(BB22<>0,BB22,MAX($D$22:BB22)+1))","v":0},{"$f":"IF(BD21=FALSE,0,IF(BC22<>0,BC22,MAX($D$22:BC22)+1))","v":0},{"$f":"IF(BE21=FALSE,0,IF(BD22<>0,BD22,MAX($D$22:BD22)+1))","v":0},{"$f":"IF(BF21=FALSE,0,IF(BE22<>0,BE22,MAX($D$22:BE22)+1))","v":0},{"$f":"IF(BG21=FALSE,0,IF(BF22<>0,BF22,MAX($D$22:BF22)+1))","v":0},{"$f":"IF(BH21=FALSE,0,IF(BG22<>0,BG22,MAX($D$22:BG22)+1))","v":0},{"$f":"IF(BI21=FALSE,0,IF(BH22<>0,BH22,MAX($D$22:BH22)+1))","v":0},{"$f":"IF(BJ21=FALSE,0,IF(BI22<>0,BI22,MAX($D$22:BI22)+1))","v":0},{"$f":"IF(BK21=FALSE,0,IF(BJ22<>0,BJ22,MAX($D$22:BJ22)+1))","v":0},{"$f":"IF(BL21=FALSE,0,IF(BK22<>0,BK22,MAX($D$22:BK22)+1))","v":0},{"$f":"IF(BM21=FALSE,0,IF(BL22<>0,BL22,MAX($D$22:BL22)+1))","v":0},{"$f":"IF(BN21=FALSE,0,IF(BM22<>0,BM22,MAX($D$22:BM22)+1))","v":0},{"$f":"IF(BO21=FALSE,0,IF(BN22<>0,BN22,MAX($D$22:BN22)+1))","v":0},{"$f":"IF(BP21=FALSE,0,IF(BO22<>0,BO22,MAX($D$22:BO22)+1))","v":0},{"$f":"IF(BQ21=FALSE,0,IF(BP22<>0,BP22,MAX($D$22:BP22)+1))","v":0},{"$f":"IF(BR21=FALSE,0,IF(BQ22<>0,BQ22,MAX($D$22:BQ22)+1))","v":0},{"$f":"IF(BS21=FALSE,0,IF(BR22<>0,BR22,MAX($D$22:BR22)+1))","v":0},{"$f":"IF(BT21=FALSE,0,IF(BS22<>0,BS22,MAX($D$22:BS22)+1))","v":0},{"$f":"IF(BU21=FALSE,0,IF(BT22<>0,BT22,MAX($D$22:BT22)+1))","v":0},{"$f":"IF(BV21=FALSE,0,IF(BU22<>0,BU22,MAX($D$22:BU22)+1))","v":0},{"$f":"IF(BW21=FALSE,0,IF(BV22<>0,BV22,MAX($D$22:BV22)+1))","v":0},{"$f":"IF(BX21=FALSE,0,IF(BW22<>0,BW22,MAX($D$22:BW22)+1))","v":0},{"$f":"IF(BY21=FALSE,0,IF(BX22<>0,BX22,MAX($D$22:BX22)+1))","v":0},{"$f":"IF(BZ21=FALSE,0,IF(BY22<>0,BY22,MAX($D$22:BY22)+1))","v":0},{"$f":"IF(CA21=FALSE,0,IF(BZ22<>0,BZ22,MAX($D$22:BZ22)+1))","v":0},{"$f":"IF(CB21=FALSE,0,IF(CA22<>0,CA22,MAX($D$22:CA22)+1))","v":0},{"$f":"IF(CC21=FALSE,0,IF(CB22<>0,CB22,MAX($D$22:CB22)+1))","v":0},{"$f":"IF(CD21=FALSE,0,IF(CC22<>0,CC22,MAX($D$22:CC22)+1))","v":0},{"$f":"IF(CE21=FALSE,0,IF(CD22<>0,CD22,MAX($D$22:CD22)+1))","v":0},{"$f":"IF(CF21=FALSE,0,IF(CE22<>0,CE22,MAX($D$22:CE22)+1))","v":0},{"$f":"IF(CG21=FALSE,0,IF(CF22<>0,CF22,MAX($D$22:CF22)+1))","v":0},{"$f":"IF(CH21=FALSE,0,IF(CG22<>0,CG22,MAX($D$22:CG22)+1))","v":0},{"$f":"IF(CI21=FALSE,0,IF(CH22<>0,CH22,MAX($D$22:CH22)+1))","v":0},{"$f":"IF(CJ21=FALSE,0,IF(CI22<>0,CI22,MAX($D$22:CI22)+1))","v":0},{"$f":"IF(CK21=FALSE,0,IF(CJ22<>0,CJ22,MAX($D$22:CJ22)+1))","v":0},{"$f":"IF(CL21=FALSE,0,IF(CK22<>0,CK22,MAX($D$22:CK22)+1))","v":0},{"$f":"IF(CM21=FALSE,0,IF(CL22<>0,CL22,MAX($D$22:CL22)+1))","v":0},{"$f":"IF(CN21=FALSE,0,IF(CM22<>0,CM22,MAX($D$22:CM22)+1))","v":0},{"$f":"IF(CO21=FALSE,0,IF(CN22<>0,CN22,MAX($D$22:CN22)+1))","v":0},{"$f":"IF(CP21=FALSE,0,IF(CO22<>0,CO22,MAX($D$22:CO22)+1))","v":0},{"$f":"IF(CQ21=FALSE,0,IF(CP22<>0,CP22,MAX($D$22:CP22)+1))","v":0},{"$f":"IF(CR21=FALSE,0,IF(CQ22<>0,CQ22,MAX($D$22:CQ22)+1))","v":0},{"$f":"IF(CS21=FALSE,0,IF(CR22<>0,CR22,MAX($D$22:CR22)+1))","v":0},{"$f":"IF(CT21=FALSE,0,IF(CS22<>0,CS22,MAX($D$22:CS22)+1))","v":0},{"$f":"IF(CU21=FALSE,0,IF(CT22<>0,CT22,MAX($D$22:CT22)+1))","v":0},{"$f":"IF(CV21=FALSE,0,IF(CU22<>0,CU22,MAX($D$22:CU22)+1))","v":0},{"$f":"IF(CW21=FALSE,0,IF(CV22<>0,CV22,MAX($D$22:CV22)+1))","v":0},{"$f":"IF(CX21=FALSE,0,IF(CW22<>0,CW22,MAX($D$22:CW22)+1))","v":0}]
[null,"Total upfront investment cost for given invesment/refurb",null,null,null,null,{"$f":"IF(G21=TRUE,SUMIF($G$22:$CX$22,G22,$G$13:$CY$13),0)","v":0},{"$f":"IF(H21=TRUE,SUMIF($G$22:$CX$22,H22,$G$13:$CY$13),0)","v":0},0,0,0,0,0,0,0,0,0,0,0,0,0,0,{"$f":"IF(W21=TRUE,SUMIF($G$22:$CX$22,W22,$G$13:$CY$13),0)","v":0},{"$f":"IF(X21=TRUE,SUMIF($G$22:$CX$22,X22,$G$13:$CY$13),0)","v":0},0,0,0,0,0,0,0,0,0,0,0,0,0,0,0,0,0,0,0,0,0,0,0,0,0,0,0,0,0,0,0,0,0,0,0,0,0,0,0,0,0,0,0,0,0,0,0,0,0,0,0,0,0,0,0,0,0,0,0,0,0,0,0,{"$f":"IF(CJ21=TRUE,SUMIF($G$22:$CX$22,CJ22,$G$13:$CY$13),0)","v":0},0,0,0,0,0,0,0,0,0,0,0,0,0,0]
[]
[null,"WACC"]
[null,"Annualised payment","£000's",{"$f":"IFERROR(-PMT('Data Input - General'!$G$16,SUM('Data Input - General'!$G$26:$G$28),D20*1000)/1000,0)","v":0}]
[null,"Annualised payment - additional invesment or refurbishments","£000's",0,0,0,{"$f":"IFERROR(IF(G15=FALSE,0,IF(G21=TRUE,-PMT('Data Input - General'!$G$16,SUM('Data Input - General'!$G$26:$G$28),G23*1000)/1000,0)),0)","v":0},{"$f":"IFERROR(IF(H15=FALSE,0,IF(H21=TRUE,-PMT('Data Input - General'!$G$16,SUM('Data Input - General'!$G$26:$G$28),H23*1000)/1000,0)),0)","v":0},{"$f":"IFERROR(IF(I15=FALSE,0,IF(I21=TRUE,-PMT('Data Input - General'!$G$16,SUM('Data Input - General'!$G$26:$G$28),I23*1000)/1000,0)),0)","v":0},{"$f":"IFERROR(IF(J15=FALSE,0,IF(J21=TRUE,-PMT('Data Input - General'!$G$16,SUM('Data Input - General'!$G$26:$G$28),J23*1000)/1000,0)),0)","v":0},{"$f":"IFERROR(IF(K15=FALSE,0,IF(K21=TRUE,-PMT('Data Input - General'!$G$16,SUM('Data Input - General'!$G$26:$G$28),K23*1000)/1000,0)),0)","v":0},{"$f":"IFERROR(IF(L15=FALSE,0,IF(L21=TRUE,-PMT('Data Input - General'!$G$16,SUM('Data Input - General'!$G$26:$G$28),L23*1000)/1000,0)),0)","v":0},{"$f":"IFERROR(IF(M15=FALSE,0,IF(M21=TRUE,-PMT('Data Input - General'!$G$16,SUM('Data Input - General'!$G$26:$G$28),M23*1000)/1000,0)),0)","v":0},{"$f":"IFERROR(IF(N15=FALSE,0,IF(N21=TRUE,-PMT('Data Input - General'!$G$16,SUM('Data Input - General'!$G$26:$G$28),N23*1000)/1000,0)),0)","v":0},{"$f":"IFERROR(IF(O15=FALSE,0,IF(O21=TRUE,-PMT('Data Input - General'!$G$16,SUM('Data Input - General'!$G$26:$G$28),O23*1000)/1000,0)),0)","v":0},{"$f":"IFERROR(IF(P15=FALSE,0,IF(P21=TRUE,-PMT('Data Input - General'!$G$16,SUM('Data Input - General'!$G$26:$G$28),P23*1000)/1000,0)),0)","v":0},{"$f":"IFERROR(IF(Q15=FALSE,0,IF(Q21=TRUE,-PMT('Data Input - General'!$G$16,SUM('Data Input - General'!$G$26:$G$28),Q23*1000)/1000,0)),0)","v":0},{"$f":"IFERROR(IF(R15=FALSE,0,IF(R21=TRUE,-PMT('Data Input - General'!$G$16,SUM('Data Input - General'!$G$26:$G$28),R23*1000)/1000,0)),0)","v":0},{"$f":"IFERROR(IF(S15=FALSE,0,IF(S21=TRUE,-PMT('Data Input - General'!$G$16,SUM('Data Input - General'!$G$26:$G$28),S23*1000)/1000,0)),0)","v":0},{"$f":"IFERROR(IF(T15=FALSE,0,IF(T21=TRUE,-PMT('Data Input - General'!$G$16,SUM('Data Input - General'!$G$26:$G$28),T23*1000)/1000,0)),0)","v":0},{"$f":"IFERROR(IF(U15=FALSE,0,IF(U21=TRUE,-PMT('Data Input - General'!$G$16,SUM('Data Input - General'!$G$26:$G$28),U23*1000)/1000,0)),0)","v":0},{"$f":"IFERROR(IF(V15=FALSE,0,IF(V21=TRUE,-PMT('Data Input - General'!$G$16,SUM('Data Input - General'!$G$26:$G$28),V23*1000)/1000,0)),0)","v":0},{"$f":"IFERROR(IF(W15=FALSE,0,IF(W21=TRUE,-PMT('Data Input - General'!$G$16,SUM('Data Input - General'!$G$26:$G$28),W23*1000)/1000,0)),0)","v":0},{"$f":"IFERROR(IF(X15=FALSE,0,IF(X21=TRUE,-PMT('Data Input - General'!$G$16,SUM('Data Input - General'!$G$26:$G$28),X23*1000)/1000,0)),0)","v":0},{"$f":"IFERROR(IF(Y15=FALSE,0,IF(Y21=TRUE,-PMT('Data Input - General'!$G$16,SUM('Data Input - General'!$G$26:$G$28),Y23*1000)/1000,0)),0)","v":0},{"$f":"IFERROR(IF(Z15=FALSE,0,IF(Z21=TRUE,-PMT('Data Input - General'!$G$16,SUM('Data Input - General'!$G$26:$G$28),Z23*1000)/1000,0)),0)","v":0},{"$f":"IFERROR(IF(AA15=FALSE,0,IF(AA21=TRUE,-PMT('Data Input - General'!$G$16,SUM('Data Input - General'!$G$26:$G$28),AA23*1000)/1000,0)),0)","v":0},{"$f":"IFERROR(IF(AB15=FALSE,0,IF(AB21=TRUE,-PMT('Data Input - General'!$G$16,SUM('Data Input - General'!$G$26:$G$28),AB23*1000)/1000,0)),0)","v":0},{"$f":"IFERROR(IF(AC15=FALSE,0,IF(AC21=TRUE,-PMT('Data Input - General'!$G$16,SUM('Data Input - General'!$G$26:$G$28),AC23*1000)/1000,0)),0)","v":0},{"$f":"IFERROR(IF(AD15=FALSE,0,IF(AD21=TRUE,-PMT('Data Input - General'!$G$16,SUM('Data Input - General'!$G$26:$G$28),AD23*1000)/1000,0)),0)","v":0},{"$f":"IFERROR(IF(AE15=FALSE,0,IF(AE21=TRUE,-PMT('Data Input - General'!$G$16,SUM('Data Input - General'!$G$26:$G$28),AE23*1000)/1000,0)),0)","v":0},{"$f":"IFERROR(IF(AF15=FALSE,0,IF(AF21=TRUE,-PMT('Data Input - General'!$G$16,SUM('Data Input - General'!$G$26:$G$28),AF23*1000)/1000,0)),0)","v":0},{"$f":"IFERROR(IF(AG15=FALSE,0,IF(AG21=TRUE,-PMT('Data Input - General'!$G$16,SUM('Data Input - General'!$G$26:$G$28),AG23*1000)/1000,0)),0)","v":0},{"$f":"IFERROR(IF(AH15=FALSE,0,IF(AH21=TRUE,-PMT('Data Input - General'!$G$16,SUM('Data Input - General'!$G$26:$G$28),AH23*1000)/1000,0)),0)","v":0},{"$f":"IFERROR(IF(AI15=FALSE,0,IF(AI21=TRUE,-PMT('Data Input - General'!$G$16,SUM('Data Input - General'!$G$26:$G$28),AI23*1000)/1000,0)),0)","v":0},{"$f":"IFERROR(IF(AJ15=FALSE,0,IF(AJ21=TRUE,-PMT('Data Input - General'!$G$16,SUM('Data Input - General'!$G$26:$G$28),AJ23*1000)/1000,0)),0)","v":0},{"$f":"IFERROR(IF(AK15=FALSE,0,IF(AK21=TRUE,-PMT('Data Input - General'!$G$16,SUM('Data Input - General'!$G$26:$G$28),AK23*1000)/1000,0)),0)","v":0},{"$f":"IFERROR(IF(AL15=FALSE,0,IF(AL21=TRUE,-PMT('Data Input - General'!$G$16,SUM('Data Input - General'!$G$26:$G$28),AL23*1000)/1000,0)),0)","v":0},{"$f":"IFERROR(IF(AM15=FALSE,0,IF(AM21=TRUE,-PMT('Data Input - General'!$G$16,SUM('Data Input - General'!$G$26:$G$28),AM23*1000)/1000,0)),0)","v":0},{"$f":"IFERROR(IF(AN15=FALSE,0,IF(AN21=TRUE,-PMT('Data Input - General'!$G$16,SUM('Data Input - General'!$G$26:$G$28),AN23*1000)/1000,0)),0)","v":0},{"$f":"IFERROR(IF(AO15=FALSE,0,IF(AO21=TRUE,-PMT('Data Input - General'!$G$16,SUM('Data Input - General'!$G$26:$G$28),AO23*1000)/1000,0)),0)","v":0},{"$f":"IFERROR(IF(AP15=FALSE,0,IF(AP21=TRUE,-PMT('Data Input - General'!$G$16,SUM('Data Input - General'!$G$26:$G$28),AP23*1000)/1000,0)),0)","v":0},{"$f":"IFERROR(IF(AQ15=FALSE,0,IF(AQ21=TRUE,-PMT('Data Input - General'!$G$16,SUM('Data Input - General'!$G$26:$G$28),AQ23*1000)/1000,0)),0)","v":0},{"$f":"IFERROR(IF(AR15=FALSE,0,IF(AR21=TRUE,-PMT('Data Input - General'!$G$16,SUM('Data Input - General'!$G$26:$G$28),AR23*1000)/1000,0)),0)","v":0},{"$f":"IFERROR(IF(AS15=FALSE,0,IF(AS21=TRUE,-PMT('Data Input - General'!$G$16,SUM('Data Input - General'!$G$26:$G$28),AS23*1000)/1000,0)),0)","v":0},{"$f":"IFERROR(IF(AT15=FALSE,0,IF(AT21=TRUE,-PMT('Data Input - General'!$G$16,SUM('Data Input - General'!$G$26:$G$28),AT23*1000)/1000,0)),0)","v":0},{"$f":"IFERROR(IF(AU15=FALSE,0,IF(AU21=TRUE,-PMT('Data Input - General'!$G$16,SUM('Data Input - General'!$G$26:$G$28),AU23*1000)/1000,0)),0)","v":0},{"$f":"IFERROR(IF(AV15=FALSE,0,IF(AV21=TRUE,-PMT('Data Input - General'!$G$16,SUM('Data Input - General'!$G$26:$G$28),AV23*1000)/1000,0)),0)","v":0},{"$f":"IFERROR(IF(AW15=FALSE,0,IF(AW21=TRUE,-PMT('Data Input - General'!$G$16,SUM('Data Input - General'!$G$26:$G$28),AW23*1000)/1000,0)),0)","v":0},{"$f":"IFERROR(IF(AX15=FALSE,0,IF(AX21=TRUE,-PMT('Data Input - General'!$G$16,SUM('Data Input - General'!$G$26:$G$28),AX23*1000)/1000,0)),0)","v":0},{"$f":"IFERROR(IF(AY15=FALSE,0,IF(AY21=TRUE,-PMT('Data Input - General'!$G$16,SUM('Data Input - General'!$G$26:$G$28),AY23*1000)/1000,0)),0)","v":0},{"$f":"IFERROR(IF(AZ15=FALSE,0,IF(AZ21=TRUE,-PMT('Data Input - General'!$G$16,SUM('Data Input - General'!$G$26:$G$28),AZ23*1000)/1000,0)),0)","v":0},{"$f":"IFERROR(IF(BA15=FALSE,0,IF(BA21=TRUE,-PMT('Data Input - General'!$G$16,SUM('Data Input - General'!$G$26:$G$28),BA23*1000)/1000,0)),0)","v":0},{"$f":"IFERROR(IF(BB15=FALSE,0,IF(BB21=TRUE,-PMT('Data Input - General'!$G$16,SUM('Data Input - General'!$G$26:$G$28),BB23*1000)/1000,0)),0)","v":0},{"$f":"IFERROR(IF(BC15=FALSE,0,IF(BC21=TRUE,-PMT('Data Input - General'!$G$16,SUM('Data Input - General'!$G$26:$G$28),BC23*1000)/1000,0)),0)","v":0},{"$f":"IFERROR(IF(BD15=FALSE,0,IF(BD21=TRUE,-PMT('Data Input - General'!$G$16,SUM('Data Input - General'!$G$26:$G$28),BD23*1000)/1000,0)),0)","v":0},{"$f":"IFERROR(IF(BE15=FALSE,0,IF(BE21=TRUE,-PMT('Data Input - General'!$G$16,SUM('Data Input - General'!$G$26:$G$28),BE23*1000)/1000,0)),0)","v":0},{"$f":"IFERROR(IF(BF15=FALSE,0,IF(BF21=TRUE,-PMT('Data Input - General'!$G$16,SUM('Data Input - General'!$G$26:$G$28),BF23*1000)/1000,0)),0)","v":0},{"$f":"IFERROR(IF(BG15=FALSE,0,IF(BG21=TRUE,-PMT('Data Input - General'!$G$16,SUM('Data Input - General'!$G$26:$G$28),BG23*1000)/1000,0)),0)","v":0},{"$f":"IFERROR(IF(BH15=FALSE,0,IF(BH21=TRUE,-PMT('Data Input - General'!$G$16,SUM('Data Input - General'!$G$26:$G$28),BH23*1000)/1000,0)),0)","v":0},{"$f":"IFERROR(IF(BI15=FALSE,0,IF(BI21=TRUE,-PMT('Data Input - General'!$G$16,SUM('Data Input - General'!$G$26:$G$28),BI23*1000)/1000,0)),0)","v":0},{"$f":"IFERROR(IF(BJ15=FALSE,0,IF(BJ21=TRUE,-PMT('Data Input - General'!$G$16,SUM('Data Input - General'!$G$26:$G$28),BJ23*1000)/1000,0)),0)","v":0},{"$f":"IFERROR(IF(BK15=FALSE,0,IF(BK21=TRUE,-PMT('Data Input - General'!$G$16,SUM('Data Input - General'!$G$26:$G$28),BK23*1000)/1000,0)),0)","v":0},{"$f":"IFERROR(IF(BL15=FALSE,0,IF(BL21=TRUE,-PMT('Data Input - General'!$G$16,SUM('Data Input - General'!$G$26:$G$28),BL23*1000)/1000,0)),0)","v":0},{"$f":"IFERROR(IF(BM15=FALSE,0,IF(BM21=TRUE,-PMT('Data Input - General'!$G$16,SUM('Data Input - General'!$G$26:$G$28),BM23*1000)/1000,0)),0)","v":0},{"$f":"IFERROR(IF(BN15=FALSE,0,IF(BN21=TRUE,-PMT('Data Input - General'!$G$16,SUM('Data Input - General'!$G$26:$G$28),BN23*1000)/1000,0)),0)","v":0},{"$f":"IFERROR(IF(BO15=FALSE,0,IF(BO21=TRUE,-PMT('Data Input - General'!$G$16,SUM('Data Input - General'!$G$26:$G$28),BO23*1000)/1000,0)),0)","v":0},{"$f":"IFERROR(IF(BP15=FALSE,0,IF(BP21=TRUE,-PMT('Data Input - General'!$G$16,SUM('Data Input - General'!$G$26:$G$28),BP23*1000)/1000,0)),0)","v":0},{"$f":"IFERROR(IF(BQ15=FALSE,0,IF(BQ21=TRUE,-PMT('Data Input - General'!$G$16,SUM('Data Input - General'!$G$26:$G$28),BQ23*1000)/1000,0)),0)","v":0},{"$f":"IFERROR(IF(BR15=FALSE,0,IF(BR21=TRUE,-PMT('Data Input - General'!$G$16,SUM('Data Input - General'!$G$26:$G$28),BR23*1000)/1000,0)),0)","v":0},{"$f":"IFERROR(IF(BS15=FALSE,0,IF(BS21=TRUE,-PMT('Data Input - General'!$G$16,SUM('Data Input - General'!$G$26:$G$28),BS23*1000)/1000,0)),0)","v":0},{"$f":"IFERROR(IF(BT15=FALSE,0,IF(BT21=TRUE,-PMT('Data Input - General'!$G$16,SUM('Data Input - General'!$G$26:$G$28),BT23*1000)/1000,0)),0)","v":0},{"$f":"IFERROR(IF(BU15=FALSE,0,IF(BU21=TRUE,-PMT('Data Input - General'!$G$16,SUM('Data Input - General'!$G$26:$G$28),BU23*1000)/1000,0)),0)","v":0},{"$f":"IFERROR(IF(BV15=FALSE,0,IF(BV21=TRUE,-PMT('Data Input - General'!$G$16,SUM('Data Input - General'!$G$26:$G$28),BV23*1000)/1000,0)),0)","v":0},{"$f":"IFERROR(IF(BW15=FALSE,0,IF(BW21=TRUE,-PMT('Data Input - General'!$G$16,SUM('Data Input - General'!$G$26:$G$28),BW23*1000)/1000,0)),0)","v":0},{"$f":"IFERROR(IF(BX15=FALSE,0,IF(BX21=TRUE,-PMT('Data Input - General'!$G$16,SUM('Data Input - General'!$G$26:$G$28),BX23*1000)/1000,0)),0)","v":0},{"$f":"IFERROR(IF(BY15=FALSE,0,IF(BY21=TRUE,-PMT('Data Input - General'!$G$16,SUM('Data Input - General'!$G$26:$G$28),BY23*1000)/1000,0)),0)","v":0},{"$f":"IFERROR(IF(BZ15=FALSE,0,IF(BZ21=TRUE,-PMT('Data Input - General'!$G$16,SUM('Data Input - General'!$G$26:$G$28),BZ23*1000)/1000,0)),0)","v":0},{"$f":"IFERROR(IF(CA15=FALSE,0,IF(CA21=TRUE,-PMT('Data Input - General'!$G$16,SUM('Data Input - General'!$G$26:$G$28),CA23*1000)/1000,0)),0)","v":0},{"$f":"IFERROR(IF(CB15=FALSE,0,IF(CB21=TRUE,-PMT('Data Input - General'!$G$16,SUM('Data Input - General'!$G$26:$G$28),CB23*1000)/1000,0)),0)","v":0},{"$f":"IFERROR(IF(CC15=FALSE,0,IF(CC21=TRUE,-PMT('Data Input - General'!$G$16,SUM('Data Input - General'!$G$26:$G$28),CC23*1000)/1000,0)),0)","v":0},{"$f":"IFERROR(IF(CD15=FALSE,0,IF(CD21=TRUE,-PMT('Data Input - General'!$G$16,SUM('Data Input - General'!$G$26:$G$28),CD23*1000)/1000,0)),0)","v":0},{"$f":"IFERROR(IF(CE15=FALSE,0,IF(CE21=TRUE,-PMT('Data Input - General'!$G$16,SUM('Data Input - General'!$G$26:$G$28),CE23*1000)/1000,0)),0)","v":0},{"$f":"IFERROR(IF(CF15=FALSE,0,IF(CF21=TRUE,-PMT('Data Input - General'!$G$16,SUM('Data Input - General'!$G$26:$G$28),CF23*1000)/1000,0)),0)","v":0},{"$f":"IFERROR(IF(CG15=FALSE,0,IF(CG21=TRUE,-PMT('Data Input - General'!$G$16,SUM('Data Input - General'!$G$26:$G$28),CG23*1000)/1000,0)),0)","v":0},{"$f":"IFERROR(IF(CH15=FALSE,0,IF(CH21=TRUE,-PMT('Data Input - General'!$G$16,SUM('Data Input - General'!$G$26:$G$28),CH23*1000)/1000,0)),0)","v":0},{"$f":"IFERROR(IF(CI15=FALSE,0,IF(CI21=TRUE,-PMT('Data Input - General'!$G$16,SUM('Data Input - General'!$G$26:$G$28),CI23*1000)/1000,0)),0)","v":0},{"$f":"IFERROR(IF(CJ15=FALSE,0,IF(CJ21=TRUE,-PMT('Data Input - General'!$G$16,SUM('Data Input - General'!$G$26:$G$28),CJ23*1000)/1000,0)),0)","v":0},{"$f":"IFERROR(IF(CK15=FALSE,0,IF(CK21=TRUE,-PMT('Data Input - General'!$G$16,SUM('Data Input - General'!$G$26:$G$28),CK23*1000)/1000,0)),0)","v":0},{"$f":"IFERROR(IF(CL15=FALSE,0,IF(CL21=TRUE,-PMT('Data Input - General'!$G$16,SUM('Data Input - General'!$G$26:$G$28),CL23*1000)/1000,0)),0)","v":0},{"$f":"IFERROR(IF(CM15=FALSE,0,IF(CM21=TRUE,-PMT('Data Input - General'!$G$16,SUM('Data Input - General'!$G$26:$G$28),CM23*1000)/1000,0)),0)","v":0},{"$f":"IFERROR(IF(CN15=FALSE,0,IF(CN21=TRUE,-PMT('Data Input - General'!$G$16,SUM('Data Input - General'!$G$26:$G$28),CN23*1000)/1000,0)),0)","v":0},{"$f":"IFERROR(IF(CO15=FALSE,0,IF(CO21=TRUE,-PMT('Data Input - General'!$G$16,SUM('Data Input - General'!$G$26:$G$28),CO23*1000)/1000,0)),0)","v":0},{"$f":"IFERROR(IF(CP15=FALSE,0,IF(CP21=TRUE,-PMT('Data Input - General'!$G$16,SUM('Data Input - General'!$G$26:$G$28),CP23*1000)/1000,0)),0)","v":0},{"$f":"IFERROR(IF(CQ15=FALSE,0,IF(CQ21=TRUE,-PMT('Data Input - General'!$G$16,SUM('Data Input - General'!$G$26:$G$28),CQ23*1000)/1000,0)),0)","v":0},{"$f":"IFERROR(IF(CR15=FALSE,0,IF(CR21=TRUE,-PMT('Data Input - General'!$G$16,SUM('Data Input - General'!$G$26:$G$28),CR23*1000)/1000,0)),0)","v":0},{"$f":"IFERROR(IF(CS15=FALSE,0,IF(CS21=TRUE,-PMT('Data Input - General'!$G$16,SUM('Data Input - General'!$G$26:$G$28),CS23*1000)/1000,0)),0)","v":0},{"$f":"IFERROR(IF(CT15=FALSE,0,IF(CT21=TRUE,-PMT('Data Input - General'!$G$16,SUM('Data Input - General'!$G$26:$G$28),CT23*1000)/1000,0)),0)","v":0},{"$f":"IFERROR(IF(CU15=FALSE,0,IF(CU21=TRUE,-PMT('Data Input - General'!$G$16,SUM('Data Input - General'!$G$26:$G$28),CU23*1000)/1000,0)),0)","v":0},{"$f":"IFERROR(IF(CV15=FALSE,0,IF(CV21=TRUE,-PMT('Data Input - General'!$G$16,SUM('Data Input - General'!$G$26:$G$28),CV23*1000)/1000,0)),0)","v":0},{"$f":"IFERROR(IF(CW15=FALSE,0,IF(CW21=TRUE,-PMT('Data Input - General'!$G$16,SUM('Data Input - General'!$G$26:$G$28),CW23*1000)/1000,0)),0)","v":0},{"$f":"IFERROR(IF(CX15=FALSE,0,IF(CX21=TRUE,-PMT('Data Input - General'!$G$16,SUM('Data Input - General'!$G$26:$G$28),CX23*1000)/1000,0)),0)","v":0},{"$f":"IFERROR(IF(CY15=FALSE,0,IF(CY21=TRUE,-PMT('Data Input - General'!$G$16,SUM('Data Input - General'!$G$26:$G$28),CY23*1000)/1000,0)),0)","v":0}]
[null,"Cummulative annualised payment","£000's",0,0,0,{"$f":"IF(G27=0,F28,IF(F27=G27,F28,F28+G27))","v":0},{"$f":"IF(H27=0,G28,IF(G27=H27,G28,G28+H27))","v":0},0,0,0,0,0,0,0,0,0,0,0,0,0,0,0,0,0,0,0,0,0,0,0,0,0,0,0,0,0,0,0,0,0,0,0,0,0,0,0,0,0,0,0,0,0,0,0,0,0,0,0,0,0,0,0,0,0,0,0,0,0,0,0,{"$f":"IF(BT27=0,BS28,IF(BS27=BT27,BS28,BS28+BT27))","v":0},0,0,0,0,0,0,0,0,0,0,0,0,0,0,0,0,0,0,0,0,0,0,0,0,0,0,0,0,0,0,0]
[null,"Annual value (taking into account installation year)","£000's",{"$f":"IF(D15=FALSE,0,IF(D28=0,$D$26,D28))","v":0},{"$f":"IF(E15=FALSE,0,IF(E28=0,$D$26,E28))","v":0},0,0,0,0,0,0,0,0,0,0,0,0,0,0,0,0,0,0,0,0,0,0,0,0,0,0,0,0,0,0,0,0,0,0,0,0,0,0,0,0,0,0,0,0,0,0,0,0,0,0,0,0,0,0,0,0,0,0,0,0,0,0,0,{"$f":"IF(BQ15=FALSE,0,IF(BQ28=0,$D$26,BQ28))","v":0},0,0,0,0,0,0,0,0,0,0,0,0,0,0,0,0,0,0,0,0,0,0,0,0,0,0,0,0,0,0,0,0,0,0]
[null,"Discounted annual value","£000's",{"$f":"D29*D$7","v":0},{"$f":"E29*E$7","v":0},0,0,0,0,0,0,0,0,0,0,0,0,0,0,0,0,0,0,0,0,0,0,0,0,0,0,0,0,0,0,0,0,0,0,0,0,0,0,0,0,0,0,0,0,0,0,0,0,0,0,0,0,0,0,0,0,0,0,0,0,0,0,0,{"$f":"BQ29*BQ$7","v":0},0,0,0,0,0,0,0,0,0,0,0,0,0,0,0,0,0,0,0,0,0,0,0,0,0,0,0,0,0,0,0,0,0,0]
[]
[null,"Cost of Capital (finance)"]
[null,"Financing costs (when entered manually)","£000's",{"$f":"'Data Input - Proposed'!H39","v":0},{"$f":"'Data Input - Proposed'!I39","v":0},{"$f":"'Data Input - Proposed'!J39","v":0},{"$f":"'Data Input - Proposed'!K39","v":0},{"$f":"'Data Input - Proposed'!L39","v":0},{"$f":"'Data Input - Proposed'!M39","v":0},{"$f":"'Data Input - Proposed'!N39","v":0},{"$f":"'Data Input - Proposed'!O39","v":0},{"$f":"'Data Input - Proposed'!P39","v":0},{"$f":"'Data Input - Proposed'!Q39","v":0},{"$f":"'Data Input - Proposed'!R39","v":0},{"$f":"'Data Input - Proposed'!S39","v":0},{"$f":"'Data Input - Proposed'!T39","v":0},{"$f":"'Data Input - Proposed'!U39","v":0},{"$f":"'Data Input - Proposed'!V39","v":0},{"$f":"'Data Input - Proposed'!W39","v":0},{"$f":"'Data Input - Proposed'!X39","v":0},{"$f":"'Data Input - Proposed'!Y39","v":0},{"$f":"'Data Input - Proposed'!Z39","v":0},{"$f":"'Data Input - Proposed'!AA39","v":0},{"$f":"'Data Input - Proposed'!AB39","v":0},{"$f":"'Data Input - Proposed'!AC39","v":0},{"$f":"'Data Input - Proposed'!AD39","v":0},{"$f":"'Data Input - Proposed'!AE39","v":0},{"$f":"'Data Input - Proposed'!AF39","v":0},{"$f":"'Data Input - Proposed'!AG39","v":0},{"$f":"'Data Input - Proposed'!AH39","v":0},{"$f":"'Data Input - Proposed'!AI39","v":0},{"$f":"'Data Input - Proposed'!AJ39","v":0},{"$f":"'Data Input - Proposed'!AK39","v":0},{"$f":"'Data Input - Proposed'!AL39","v":0},{"$f":"'Data Input - Proposed'!AM39","v":0},{"$f":"'Data Input - Proposed'!AN39","v":0},{"$f":"'Data Input - Proposed'!AO39","v":0},{"$f":"'Data Input - Proposed'!AP39","v":0},{"$f":"'Data Input - Proposed'!AQ39","v":0},{"$f":"'Data Input - Proposed'!AR39","v":0},{"$f":"'Data Input - Proposed'!AS39","v":0},{"$f":"'Data Input - Proposed'!AT39","v":0},{"$f":"'Data Input - Proposed'!AU39","v":0},{"$f":"'Data Input - Proposed'!AV39","v":0},{"$f":"'Data Input - Proposed'!AW39","v":0},{"$f":"'Data Input - Proposed'!AX39","v":0},{"$f":"'Data Input - Proposed'!AY39","v":0},{"$f":"'Data Input - Proposed'!AZ39","v":0},{"$f":"'Data Input - Proposed'!BA39","v":0},{"$f":"'Data Input - Proposed'!BB39","v":0},{"$f":"'Data Input - Proposed'!BC39","v":0},{"$f":"'Data Input - Proposed'!BD39","v":0},{"$f":"'Data Input - Proposed'!BE39","v":0},{"$f":"'Data Input - Proposed'!BF39","v":0},{"$f":"'Data Input - Proposed'!BG39","v":0},{"$f":"'Data Input - Proposed'!BH39","v":0},{"$f":"'Data Input - Proposed'!BI39","v":0},{"$f":"'Data Input - Proposed'!BJ39","v":0},{"$f":"'Data Input - Proposed'!BK39","v":0},{"$f":"'Data Input - Proposed'!BL39","v":0},{"$f":"'Data Input - Proposed'!BM39","v":0},{"$f":"'Data Input - Proposed'!BN39","v":0},{"$f":"'Data Input - Proposed'!BO39","v":0},{"$f":"'Data Input - Proposed'!BP39","v":0},{"$f":"'Data Input - Proposed'!BQ39","v":0},{"$f":"'Data Input - Proposed'!BR39","v":0},{"$f":"'Data Input - Proposed'!BS39","v":0},{"$f":"'Data Input - Proposed'!BT39","v":0},{"$f":"'Data Input - Proposed'!BU39","v":0},{"$f":"'Data Input - Proposed'!BV39","v":0},{"$f":"'Data Input - Proposed'!BW39","v":0},{"$f":"'Data Input - Proposed'!BX39","v":0},{"$f":"'Data Input - Proposed'!BY39","v":0},{"$f":"'Data Input - Proposed'!BZ39","v":0},{"$f":"'Data Input - Proposed'!CA39","v":0},{"$f":"'Data Input - Proposed'!CB39","v":0},{"$f":"'Data Input - Proposed'!CC39","v":0},{"$f":"'Data Input - Proposed'!CD39","v":0},{"$f":"'Data Input - Proposed'!CE39","v":0},{"$f":"'Data Input - Proposed'!CF39","v":0},{"$f":"'Data Input - Proposed'!CG39","v":0},{"$f":"'Data Input - Proposed'!CH39","v":0},{"$f":"'Data Input - Proposed'!CI39","v":0},{"$f":"'Data Input - Proposed'!CJ39","v":0},{"$f":"'Data Input - Proposed'!CK39","v":0},{"$f":"'Data Input - Proposed'!CL39","v":0},{"$f":"'Data Input - Proposed'!CM39","v":0},{"$f":"'Data Input - Proposed'!CN39","v":0},{"$f":"'Data Input - Proposed'!CO39","v":0},{"$f":"'Data Input - Proposed'!CP39","v":0},{"$f":"'Data Input - Proposed'!CQ39","v":0},{"$f":"'Data Input - Proposed'!CR39","v":0},{"$f":"'Data Input - Proposed'!CS39","v":0},{"$f":"'Data Input - Proposed'!CT39","v":0},{"$f":"'Data Input - Proposed'!CU39","v":0},{"$f":"'Data Input - Proposed'!CV39","v":0},{"$f":"'Data Input - Proposed'!CW39","v":0},{"$f":"'Data Input - Proposed'!CX39","v":0},{"$f":"'Data Input - Proposed'!CY39","v":0},{"$f":"'Data Input - Proposed'!CZ39","v":0},{"$f":"'Data Input - Proposed'!DA39","v":0},{"$f":"'Data Input - Proposed'!DB39","v":0},{"$f":"'Data Input - Proposed'!DC39","v":0}]
[null,"Discounted finacning","£000's",{"$f":"D33*D$7","v":0},{"$f":"E33*E$7","v":0},{"$f":"F33*F$7","v":0},0,0,0,0,0,0,0,0,0,0,0,0,0,0,0,0,0,0,0,0,0,0,0,0,0,0,0,0,0,0,0,0,0,0,0,0,0,0,0,0,0,0,0,0,0,0,0,0,0,0,0,0,0,0,0,0,0,0,0,0,0,0,{"$f":"BQ33*BQ$7","v":0},0,0,0,0,0,0,0,0,0,0,0,0,0,0,0,0,0,0,0,0,0,0,0,0,0,0,0,0,0,0,0,0,0,0]
[]
[null,"Total capex","£000's",{"$f":"IF('Data Input - Proposed'!$F$37=\"Yes\",D34+D13,D30)","v":0},{"$f":"IF('Data Input - Proposed'!$F$37=\"Yes\",E34+E13,E30)","v":0},{"$f":"IF('Data Input - Proposed'!$F$37=\"Yes\",F34+F13,F30)","v":0},{"$f":"IF('Data Input - Proposed'!$F$37=\"Yes\",G34+G13,G30)","v":0},{"$f":"IF('Data Input - Proposed'!$F$37=\"Yes\",H34+H13,H30)","v":0},{"$f":"IF('Data Input - Proposed'!$F$37=\"Yes\",I34+I13,I30)","v":0},{"$f":"IF('Data Input - Proposed'!$F$37=\"Yes\",J34+J13,J30)","v":0},{"$f":"IF('Data Input - Proposed'!$F$37=\"Yes\",K34+K13,K30)","v":0},{"$f":"IF('Data Input - Proposed'!$F$37=\"Yes\",L34+L13,L30)","v":0},{"$f":"IF('Data Input - Proposed'!$F$37=\"Yes\",M34+M13,M30)","v":0},{"$f":"IF('Data Input - Proposed'!$F$37=\"Yes\",N34+N13,N30)","v":0},{"$f":"IF('Data Input - Proposed'!$F$37=\"Yes\",O34+O13,O30)","v":0},{"$f":"IF('Data Input - Proposed'!$F$37=\"Yes\",P34+P13,P30)","v":0},{"$f":"IF('Data Input - Proposed'!$F$37=\"Yes\",Q34+Q13,Q30)","v":0},{"$f":"IF('Data Input - Proposed'!$F$37=\"Yes\",R34+R13,R30)","v":0},{"$f":"IF('Data Input - Proposed'!$F$37=\"Yes\",S34+S13,S30)","v":0},{"$f":"IF('Data Input - Proposed'!$F$37=\"Yes\",T34+T13,T30)","v":0},{"$f":"IF('Data Input - Proposed'!$F$37=\"Yes\",U34+U13,U30)","v":0},{"$f":"IF('Data Input - Proposed'!$F$37=\"Yes\",V34+V13,V30)","v":0},{"$f":"IF('Data Input - Proposed'!$F$37=\"Yes\",W34+W13,W30)","v":0},{"$f":"IF('Data Input - Proposed'!$F$37=\"Yes\",X34+X13,X30)","v":0},{"$f":"IF('Data Input - Proposed'!$F$37=\"Yes\",Y34+Y13,Y30)","v":0},{"$f":"IF('Data Input - Proposed'!$F$37=\"Yes\",Z34+Z13,Z30)","v":0},{"$f":"IF('Data Input - Proposed'!$F$37=\"Yes\",AA34+AA13,AA30)","v":0},{"$f":"IF('Data Input - Proposed'!$F$37=\"Yes\",AB34+AB13,AB30)","v":0},{"$f":"IF('Data Input - Proposed'!$F$37=\"Yes\",AC34+AC13,AC30)","v":0},{"$f":"IF('Data Input - Proposed'!$F$37=\"Yes\",AD34+AD13,AD30)","v":0},{"$f":"IF('Data Input - Proposed'!$F$37=\"Yes\",AE34+AE13,AE30)","v":0},{"$f":"IF('Data Input - Proposed'!$F$37=\"Yes\",AF34+AF13,AF30)","v":0},{"$f":"IF('Data Input - Proposed'!$F$37=\"Yes\",AG34+AG13,AG30)","v":0},{"$f":"IF('Data Input - Proposed'!$F$37=\"Yes\",AH34+AH13,AH30)","v":0},{"$f":"IF('Data Input - Proposed'!$F$37=\"Yes\",AI34+AI13,AI30)","v":0},{"$f":"IF('Data Input - Proposed'!$F$37=\"Yes\",AJ34+AJ13,AJ30)","v":0},{"$f":"IF('Data Input - Proposed'!$F$37=\"Yes\",AK34+AK13,AK30)","v":0},{"$f":"IF('Data Input - Proposed'!$F$37=\"Yes\",AL34+AL13,AL30)","v":0},{"$f":"IF('Data Input - Proposed'!$F$37=\"Yes\",AM34+AM13,AM30)","v":0},{"$f":"IF('Data Input - Proposed'!$F$37=\"Yes\",AN34+AN13,AN30)","v":0},{"$f":"IF('Data Input - Proposed'!$F$37=\"Yes\",AO34+AO13,AO30)","v":0},{"$f":"IF('Data Input - Proposed'!$F$37=\"Yes\",AP34+AP13,AP30)","v":0},{"$f":"IF('Data Input - Proposed'!$F$37=\"Yes\",AQ34+AQ13,AQ30)","v":0},{"$f":"IF('Data Input - Proposed'!$F$37=\"Yes\",AR34+AR13,AR30)","v":0},{"$f":"IF('Data Input - Proposed'!$F$37=\"Yes\",AS34+AS13,AS30)","v":0},{"$f":"IF('Data Input - Proposed'!$F$37=\"Yes\",AT34+AT13,AT30)","v":0},{"$f":"IF('Data Input - Proposed'!$F$37=\"Yes\",AU34+AU13,AU30)","v":0},{"$f":"IF('Data Input - Proposed'!$F$37=\"Yes\",AV34+AV13,AV30)","v":0},{"$f":"IF('Data Input - Proposed'!$F$37=\"Yes\",AW34+AW13,AW30)","v":0},{"$f":"IF('Data Input - Proposed'!$F$37=\"Yes\",AX34+AX13,AX30)","v":0},{"$f":"IF('Data Input - Proposed'!$F$37=\"Yes\",AY34+AY13,AY30)","v":0},{"$f":"IF('Data Input - Proposed'!$F$37=\"Yes\",AZ34+AZ13,AZ30)","v":0},{"$f":"IF('Data Input - Proposed'!$F$37=\"Yes\",BA34+BA13,BA30)","v":0},{"$f":"IF('Data Input - Proposed'!$F$37=\"Yes\",BB34+BB13,BB30)","v":0},{"$f":"IF('Data Input - Proposed'!$F$37=\"Yes\",BC34+BC13,BC30)","v":0},{"$f":"IF('Data Input - Proposed'!$F$37=\"Yes\",BD34+BD13,BD30)","v":0},{"$f":"IF('Data Input - Proposed'!$F$37=\"Yes\",BE34+BE13,BE30)","v":0},{"$f":"IF('Data Input - Proposed'!$F$37=\"Yes\",BF34+BF13,BF30)","v":0},{"$f":"IF('Data Input - Proposed'!$F$37=\"Yes\",BG34+BG13,BG30)","v":0},{"$f":"IF('Data Input - Proposed'!$F$37=\"Yes\",BH34+BH13,BH30)","v":0},{"$f":"IF('Data Input - Proposed'!$F$37=\"Yes\",BI34+BI13,BI30)","v":0},{"$f":"IF('Data Input - Proposed'!$F$37=\"Yes\",BJ34+BJ13,BJ30)","v":0},{"$f":"IF('Data Input - Proposed'!$F$37=\"Yes\",BK34+BK13,BK30)","v":0},{"$f":"IF('Data Input - Proposed'!$F$37=\"Yes\",BL34+BL13,BL30)","v":0},{"$f":"IF('Data Input - Proposed'!$F$37=\"Yes\",BM34+BM13,BM30)","v":0},{"$f":"IF('Data Input - Proposed'!$F$37=\"Yes\",BN34+BN13,BN30)","v":0},{"$f":"IF('Data Input - Proposed'!$F$37=\"Yes\",BO34+BO13,BO30)","v":0},{"$f":"IF('Data Input - Proposed'!$F$37=\"Yes\",BP34+BP13,BP30)","v":0},{"$f":"IF('Data Input - Proposed'!$F$37=\"Yes\",BQ34+BQ13,BQ30)","v":0},{"$f":"IF('Data Input - Proposed'!$F$37=\"Yes\",BR34+BR13,BR30)","v":0},{"$f":"IF('Data Input - Proposed'!$F$37=\"Yes\",BS34+BS13,BS30)","v":0},{"$f":"IF('Data Input - Proposed'!$F$37=\"Yes\",BT34+BT13,BT30)","v":0},{"$f":"IF('Data Input - Proposed'!$F$37=\"Yes\",BU34+BU13,BU30)","v":0},{"$f":"IF('Data Input - Proposed'!$F$37=\"Yes\",BV34+BV13,BV30)","v":0},{"$f":"IF('Data Input - Proposed'!$F$37=\"Yes\",BW34+BW13,BW30)","v":0},{"$f":"IF('Data Input - Proposed'!$F$37=\"Yes\",BX34+BX13,BX30)","v":0},{"$f":"IF('Data Input - Proposed'!$F$37=\"Yes\",BY34+BY13,BY30)","v":0},{"$f":"IF('Data Input - Proposed'!$F$37=\"Yes\",BZ34+BZ13,BZ30)","v":0},{"$f":"IF('Data Input - Proposed'!$F$37=\"Yes\",CA34+CA13,CA30)","v":0},{"$f":"IF('Data Input - Proposed'!$F$37=\"Yes\",CB34+CB13,CB30)","v":0},{"$f":"IF('Data Input - Proposed'!$F$37=\"Yes\",CC34+CC13,CC30)","v":0},{"$f":"IF('Data Input - Proposed'!$F$37=\"Yes\",CD34+CD13,CD30)","v":0},{"$f":"IF('Data Input - Proposed'!$F$37=\"Yes\",CE34+CE13,CE30)","v":0},{"$f":"IF('Data Input - Proposed'!$F$37=\"Yes\",CF34+CF13,CF30)","v":0},{"$f":"IF('Data Input - Proposed'!$F$37=\"Yes\",CG34+CG13,CG30)","v":0},{"$f":"IF('Data Input - Proposed'!$F$37=\"Yes\",CH34+CH13,CH30)","v":0},{"$f":"IF('Data Input - Proposed'!$F$37=\"Yes\",CI34+CI13,CI30)","v":0},{"$f":"IF('Data Input - Proposed'!$F$37=\"Yes\",CJ34+CJ13,CJ30)","v":0},{"$f":"IF('Data Input - Proposed'!$F$37=\"Yes\",CK34+CK13,CK30)","v":0},{"$f":"IF('Data Input - Proposed'!$F$37=\"Yes\",CL34+CL13,CL30)","v":0},{"$f":"IF('Data Input - Proposed'!$F$37=\"Yes\",CM34+CM13,CM30)","v":0},{"$f":"IF('Data Input - Proposed'!$F$37=\"Yes\",CN34+CN13,CN30)","v":0},{"$f":"IF('Data Input - Proposed'!$F$37=\"Yes\",CO34+CO13,CO30)","v":0},{"$f":"IF('Data Input - Proposed'!$F$37=\"Yes\",CP34+CP13,CP30)","v":0},{"$f":"IF('Data Input - Proposed'!$F$37=\"Yes\",CQ34+CQ13,CQ30)","v":0},{"$f":"IF('Data Input - Proposed'!$F$37=\"Yes\",CR34+CR13,CR30)","v":0},{"$f":"IF('Data Input - Proposed'!$F$37=\"Yes\",CS34+CS13,CS30)","v":0},{"$f":"IF('Data Input - Proposed'!$F$37=\"Yes\",CT34+CT13,CT30)","v":0},{"$f":"IF('Data Input - Proposed'!$F$37=\"Yes\",CU34+CU13,CU30)","v":0},{"$f":"IF('Data Input - Proposed'!$F$37=\"Yes\",CV34+CV13,CV30)","v":0},{"$f":"IF('Data Input - Proposed'!$F$37=\"Yes\",CW34+CW13,CW30)","v":0},{"$f":"IF('Data Input - Proposed'!$F$37=\"Yes\",CX34+CX13,CX30)","v":0},{"$f":"IF('Data Input - Proposed'!$F$37=\"Yes\",CY34+CY13,CY30)","v":0}]
[]
[null,"Operating costs (non-energy, per annum)"]
[null,"Total Opex","£000's",{"$f":"'Data Input - Proposed'!H50","v":250},{"$f":"'Data Input - Proposed'!I50","v":250},{"$f":"'Data Input - Proposed'!J50","v":250},{"$f":"'Data Input - Proposed'!K50","v":250},{"$f":"'Data Input - Proposed'!L50","v":450},{"$f":"'Data Input - Proposed'!M50","v":450},{"$f":"'Data Input - Proposed'!N50","v":450},{"$f":"'Data Input - Proposed'!O50","v":450},{"$f":"'Data Input - Proposed'!P50","v":0},{"$f":"'Data Input - Proposed'!Q50","v":0},{"$f":"'Data Input - Proposed'!R50","v":0},{"$f":"'Data Input - Proposed'!S50","v":0},{"$f":"'Data Input - Proposed'!T50","v":0},{"$f":"'Data Input - Proposed'!U50","v":0},{"$f":"'Data Input - Proposed'!V50","v":0},{"$f":"'Data Input - Proposed'!W50","v":0},{"$f":"'Data Input - Proposed'!X50","v":0},{"$f":"'Data Input - Proposed'!Y50","v":0},{"$f":"'Data Input - Proposed'!Z50","v":0},{"$f":"'Data Input - Proposed'!AA50","v":0},{"$f":"'Data Input - Proposed'!AB50","v":0},{"$f":"'Data Input - Proposed'!AC50","v":0},{"$f":"'Data Input - Proposed'!AD50","v":0},{"$f":"'Data Input - Proposed'!AE50","v":0},{"$f":"'Data Input - Proposed'!AF50","v":0},{"$f":"'Data Input - Proposed'!AG50","v":0},{"$f":"'Data Input - Proposed'!AH50","v":0},{"$f":"'Data Input - Proposed'!AI50","v":0},{"$f":"'Data Input - Proposed'!AJ50","v":0},{"$f":"'Data Input - Proposed'!AK50","v":0},{"$f":"'Data Input - Proposed'!AL50","v":0},{"$f":"'Data Input - Proposed'!AM50","v":0},{"$f":"'Data Input - Proposed'!AN50","v":0},{"$f":"'Data Input - Proposed'!AO50","v":0},{"$f":"'Data Input - Proposed'!AP50","v":0},{"$f":"'Data Input - Proposed'!AQ50","v":0},{"$f":"'Data Input - Proposed'!AR50","v":0},{"$f":"'Data Input - Proposed'!AS50","v":0},{"$f":"'Data Input - Proposed'!AT50","v":0},{"$f":"'Data Input - Proposed'!AU50","v":0},{"$f":"'Data Input - Proposed'!AV50","v":0},{"$f":"'Data Input - Proposed'!AW50","v":0},{"$f":"'Data Input - Proposed'!AX50","v":0},{"$f":"'Data Input - Proposed'!AY50","v":0},{"$f":"'Data Input - Proposed'!AZ50","v":0},{"$f":"'Data Input - Proposed'!BA50","v":0},{"$f":"'Data Input - Proposed'!BB50","v":0},{"$f":"'Data Input - Proposed'!BC50","v":0},{"$f":"'Data Input - Proposed'!BD50","v":0},{"$f":"'Data Input - Proposed'!BE50","v":0},{"$f":"'Data Input - Proposed'!BF50","v":0},{"$f":"'Data Input - Proposed'!BG50","v":0},{"$f":"'Data Input - Proposed'!BH50","v":0},{"$f":"'Data Input - Proposed'!BI50","v":0},{"$f":"'Data Input - Proposed'!BJ50","v":0},{"$f":"'Data Input - Proposed'!BK50","v":0},{"$f":"'Data Input - Proposed'!BL50","v":0},{"$f":"'Data Input - Proposed'!BM50","v":0},{"$f":"'Data Input - Proposed'!BN50","v":0},{"$f":"'Data Input - Proposed'!BO50","v":0},{"$f":"'Data Input - Proposed'!BP50","v":0},{"$f":"'Data Input - Proposed'!BQ50","v":0},{"$f":"'Data Input - Proposed'!BR50","v":0},{"$f":"'Data Input - Proposed'!BS50","v":0},{"$f":"'Data Input - Proposed'!BT50","v":0},{"$f":"'Data Input - Proposed'!BU50","v":0},{"$f":"'Data Input - Proposed'!BV50","v":0},{"$f":"'Data Input - Proposed'!BW50","v":0},{"$f":"'Data Input - Proposed'!BX50","v":0},{"$f":"'Data Input - Proposed'!BY50","v":0},{"$f":"'Data Input - Proposed'!BZ50","v":0},{"$f":"'Data Input - Proposed'!CA50","v":0},{"$f":"'Data Input - Proposed'!CB50","v":0},{"$f":"'Data Input - Proposed'!CC50","v":0},{"$f":"'Data Input - Proposed'!CD50","v":0},{"$f":"'Data Input - Proposed'!CE50","v":0},{"$f":"'Data Input - Proposed'!CF50","v":0},{"$f":"'Data Input - Proposed'!CG50","v":0},{"$f":"'Data Input - Proposed'!CH50","v":0},{"$f":"'Data Input - Proposed'!CI50","v":0},{"$f":"'Data Input - Proposed'!CJ50","v":0},{"$f":"'Data Input - Proposed'!CK50","v":0},{"$f":"'Data Input - Proposed'!CL50","v":0},{"$f":"'Data Input - Proposed'!CM50","v":0},{"$f":"'Data Input - Proposed'!CN50","v":0},{"$f":"'Data Input - Proposed'!CO50","v":0},{"$f":"'Data Input - Proposed'!CP50","v":0},{"$f":"'Data Input - Proposed'!CQ50","v":0},{"$f":"'Data Input - Proposed'!CR50","v":0},{"$f":"'Data Input - Proposed'!CS50","v":0},{"$f":"'Data Input - Proposed'!CT50","v":0},{"$f":"'Data Input - Proposed'!CU50","v":0},{"$f":"'Data Input - Proposed'!CV50","v":0},{"$f":"'Data Input - Proposed'!CW50","v":0},{"$f":"'Data Input - Proposed'!CX50","v":0},{"$f":"'Data Input - Proposed'!CY50","v":0},{"$f":"'Data Input - Proposed'!CZ50","v":0},{"$f":"'Data Input - Proposed'!DA50","v":0},{"$f":"'Data Input - Proposed'!DB50","v":0},{"$f":"'Data Input - Proposed'!DC50","v":0}]
[null,"Discounted total opex","£000's",{"$f":"D39*D$7","v":250},{"$f":"E39*E$7","v":241.54589371980677},233.37767509160076,225.48567641700561,392.14900246435758,378.88792508633583,366.07528993848877,353.69593230771864,0,0,0,0,0,0,0,0,0,0,0,0,0,0,0,0,0,0,0,0,0,0,0,0,0,0,0,0,0,0,0,0,0,0,0,0,0,0,0,0,0,0,0,0,0,0,0,0,0,0,0,0,0,0,0,0,0,{"$f":"BQ39*BQ$7","v":0},0,0,0,0,0,0,0,0,0,0,0,0,0,0,0,0,0,0,0,0,0,0,0,0,0,0,0,0,0,0,0,0,0,0]
[]
[null,"Waste output (annual amount generated"]
[null,"Total","£000's",{"$f":"'Data Input - Proposed'!H79","v":0},{"$f":"'Data Input - Proposed'!I79","v":0},{"$f":"'Data Input - Proposed'!J79","v":0},{"$f":"'Data Input - Proposed'!K79","v":0},{"$f":"'Data Input - Proposed'!L79","v":0},{"$f":"'Data Input - Proposed'!M79","v":0},{"$f":"'Data Input - Proposed'!N79","v":0},{"$f":"'Data Input - Proposed'!O79","v":0},{"$f":"'Data Input - Proposed'!P79","v":0},{"$f":"'Data Input - Proposed'!Q79","v":0},{"$f":"'Data Input - Proposed'!R79","v":0},{"$f":"'Data Input - Proposed'!S79","v":0},{"$f":"'Data Input - Proposed'!T79","v":0},{"$f":"'Data Input - Proposed'!U79","v":0},{"$f":"'Data Input - Proposed'!V79","v":0},{"$f":"'Data Input - Proposed'!W79","v":0},{"$f":"'Data Input - Proposed'!X79","v":0},{"$f":"'Data Input - Proposed'!Y79","v":0},{"$f":"'Data Input - Proposed'!Z79","v":0},{"$f":"'Data Input - Proposed'!AA79","v":0},{"$f":"'Data Input - Proposed'!AB79","v":0},{"$f":"'Data Input - Proposed'!AC79","v":0},{"$f":"'Data Input - Proposed'!AD79","v":0},{"$f":"'Data Input - Proposed'!AE79","v":0},{"$f":"'Data Input - Proposed'!AF79","v":0},{"$f":"'Data Input - Proposed'!AG79","v":0},{"$f":"'Data Input - Proposed'!AH79","v":0},{"$f":"'Data Input - Proposed'!AI79","v":0},{"$f":"'Data Input - Proposed'!AJ79","v":0},{"$f":"'Data Input - Proposed'!AK79","v":0},{"$f":"'Data Input - Proposed'!AL79","v":0},{"$f":"'Data Input - Proposed'!AM79","v":0},{"$f":"'Data Input - Proposed'!AN79","v":0},{"$f":"'Data Input - Proposed'!AO79","v":0},{"$f":"'Data Input - Proposed'!AP79","v":0},{"$f":"'Data Input - Proposed'!AQ79","v":0},{"$f":"'Data Input - Proposed'!AR79","v":0},{"$f":"'Data Input - Proposed'!AS79","v":0},{"$f":"'Data Input - Proposed'!AT79","v":0},{"$f":"'Data Input - Proposed'!AU79","v":0},{"$f":"'Data Input - Proposed'!AV79","v":0},{"$f":"'Data Input - Proposed'!AW79","v":0},{"$f":"'Data Input - Proposed'!AX79","v":0},{"$f":"'Data Input - Proposed'!AY79","v":0},{"$f":"'Data Input - Proposed'!AZ79","v":0},{"$f":"'Data Input - Proposed'!BA79","v":0},{"$f":"'Data Input - Proposed'!BB79","v":0},{"$f":"'Data Input - Proposed'!BC79","v":0},{"$f":"'Data Input - Proposed'!BD79","v":0},{"$f":"'Data Input - Proposed'!BE79","v":0},{"$f":"'Data Input - Proposed'!BF79","v":0},{"$f":"'Data Input - Proposed'!BG79","v":0},{"$f":"'Data Input - Proposed'!BH79","v":0},{"$f":"'Data Input - Proposed'!BI79","v":0},{"$f":"'Data Input - Proposed'!BJ79","v":0},{"$f":"'Data Input - Proposed'!BK79","v":0},{"$f":"'Data Input - Proposed'!BL79","v":0},{"$f":"'Data Input - Proposed'!BM79","v":0},{"$f":"'Data Input - Proposed'!BN79","v":0},{"$f":"'Data Input - Proposed'!BO79","v":0},{"$f":"'Data Input - Proposed'!BP79","v":0},{"$f":"'Data Input - Proposed'!BQ79","v":0},{"$f":"'Data Input - Proposed'!BR79","v":0},{"$f":"'Data Input - Proposed'!BS79","v":0},{"$f":"'Data Input - Proposed'!BT79","v":0},{"$f":"'Data Input - Proposed'!BU79","v":0},{"$f":"'Data Input - Proposed'!BV79","v":0},{"$f":"'Data Input - Proposed'!BW79","v":0},{"$f":"'Data Input - Proposed'!BX79","v":0},{"$f":"'Data Input - Proposed'!BY79","v":0},{"$f":"'Data Input - Proposed'!BZ79","v":0},{"$f":"'Data Input - Proposed'!CA79","v":0},{"$f":"'Data Input - Proposed'!CB79","v":0},{"$f":"'Data Input - Proposed'!CC79","v":0},{"$f":"'Data Input - Proposed'!CD79","v":0},{"$f":"'Data Input - Proposed'!CE79","v":0},{"$f":"'Data Input - Proposed'!CF79","v":0},{"$f":"'Data Input - Proposed'!CG79","v":0},{"$f":"'Data Input - Proposed'!CH79","v":0},{"$f":"'Data Input - Proposed'!CI79","v":0},{"$f":"'Data Input - Proposed'!CJ79","v":0},{"$f":"'Data Input - Proposed'!CK79","v":0},{"$f":"'Data Input - Proposed'!CL79","v":0},{"$f":"'Data Input - Proposed'!CM79","v":0},{"$f":"'Data Input - Proposed'!CN79","v":0},{"$f":"'Data Input - Proposed'!CO79","v":0},{"$f":"'Data Input - Proposed'!CP79","v":0},{"$f":"'Data Input - Proposed'!CQ79","v":0},{"$f":"'Data Input - Proposed'!CR79","v":0},{"$f":"'Data Input - Proposed'!CS79","v":0},{"$f":"'Data Input - Proposed'!CT79","v":0},{"$f":"'Data Input - Proposed'!CU79","v":0},{"$f":"'Data Input - Proposed'!CV79","v":0},{"$f":"'Data Input - Proposed'!CW79","v":0},{"$f":"'Data Input - Proposed'!CX79","v":0},{"$f":"'Data Input - Proposed'!CY79","v":0},{"$f":"'Data Input - Proposed'!CZ79","v":0},{"$f":"'Data Input - Proposed'!DA79","v":0},{"$f":"'Data Input - Proposed'!DB79","v":0},{"$f":"'Data Input - Proposed'!DC79","v":0}]
[null,"Discounted total waste cost","£000's",{"$f":"D43*D$7","v":0},{"$f":"E43*E$7","v":0},0,0,0,0,0,0,0,0,0,0,0,0,0,0,0,0,0,0,0,0,0,0,0,0,0,0,0,0,0,0,0,0,0,0,0,0,0,0,0,0,0,0,0,0,0,0,0,0,0,0,0,0,0,0,0,0,0,0,0,0,0,0,0,{"$f":"BQ43*BQ$7","v":0},0,0,0,0,0,0,0,0,0,0,0,0,0,0,0,0,0,0,0,0,0,0,0,0,0,0,0,0,0,0,0,0,0,0]
[]
[null,"Energy Consumption"]
[null,"Total","£000's",{"$f":"'Data Input - Proposed'!H100","v":1485.700561305305},{"$f":"'Data Input - Proposed'!I100","v":1541.531148540691},{"$f":"'Data Input - Proposed'!J100","v":1610.4918821663023},{"$f":"'Data Input - Proposed'!K100","v":1657.4780678945503},{"$f":"'Data Input - Proposed'!L100","v":1704.5754416158256},{"$f":"'Data Input - Proposed'!M100","v":1776.9735001686643},{"$f":"'Data Input - Proposed'!N100","v":1837.2202118852731},{"$f":"'Data Input - Proposed'!O100","v":1870.4852286646578},{"$f":"'Data Input - Proposed'!P100","v":0},{"$f":"'Data Input - Proposed'!Q100","v":0},{"$f":"'Data Input - Proposed'!R100","v":0},{"$f":"'Data Input - Proposed'!S100","v":0},{"$f":"'Data Input - Proposed'!T100","v":0},{"$f":"'Data Input - Proposed'!U100","v":0},{"$f":"'Data Input - Proposed'!V100","v":0},{"$f":"'Data Input - Proposed'!W100","v":0},{"$f":"'Data Input - Proposed'!X100","v":0},{"$f":"'Data Input - Proposed'!Y100","v":0},{"$f":"'Data Input - Proposed'!Z100","v":0},{"$f":"'Data Input - Proposed'!AA100","v":0},{"$f":"'Data Input - Proposed'!AB100","v":0},{"$f":"'Data Input - Proposed'!AC100","v":0},{"$f":"'Data Input - Proposed'!AD100","v":0},{"$f":"'Data Input - Proposed'!AE100","v":0},{"$f":"'Data Input - Proposed'!AF100","v":0},{"$f":"'Data Input - Proposed'!AG100","v":0},{"$f":"'Data Input - Proposed'!AH100","v":0},{"$f":"'Data Input - Proposed'!AI100","v":0},{"$f":"'Data Input - Proposed'!AJ100","v":0},{"$f":"'Data Input - Proposed'!AK100","v":0},{"$f":"'Data Input - Proposed'!AL100","v":0},{"$f":"'Data Input - Proposed'!AM100","v":0},{"$f":"'Data Input - Proposed'!AN100","v":0},{"$f":"'Data Input - Proposed'!AO100","v":0},{"$f":"'Data Input - Proposed'!AP100","v":0},{"$f":"'Data Input - Proposed'!AQ100","v":0},{"$f":"'Data Input - Proposed'!AR100","v":0},{"$f":"'Data Input - Proposed'!AS100","v":0},{"$f":"'Data Input - Proposed'!AT100","v":0},{"$f":"'Data Input - Proposed'!AU100","v":0},{"$f":"'Data Input - Proposed'!AV100","v":0},{"$f":"'Data Input - Proposed'!AW100","v":0},{"$f":"'Data Input - Proposed'!AX100","v":0},{"$f":"'Data Input - Proposed'!AY100","v":0},{"$f":"'Data Input - Proposed'!AZ100","v":0},{"$f":"'Data Input - Proposed'!BA100","v":0},{"$f":"'Data Input - Proposed'!BB100","v":0},{"$f":"'Data Input - Proposed'!BC100","v":0},{"$f":"'Data Input - Proposed'!BD100","v":0},{"$f":"'Data Input - Proposed'!BE100","v":0},{"$f":"'Data Input - Proposed'!BF100","v":0},{"$f":"'Data Input - Proposed'!BG100","v":0},{"$f":"'Data Input - Proposed'!BH100","v":0},{"$f":"'Data Input - Proposed'!BI100","v":0},{"$f":"'Data Input - Proposed'!BJ100","v":0},{"$f":"'Data Input - Proposed'!BK100","v":0},{"$f":"'Data Input - Proposed'!BL100","v":0},{"$f":"'Data Input - Proposed'!BM100","v":0},{"$f":"'Data Input - Proposed'!BN100","v":0},{"$f":"'Data Input - Proposed'!BO100","v":0},{"$f":"'Data Input - Proposed'!BP100","v":0},{"$f":"'Data Input - Proposed'!BQ100","v":0},{"$f":"'Data Input - Proposed'!BR100","v":0},{"$f":"'Data Input - Proposed'!BS100","v":0},{"$f":"'Data Input - Proposed'!BT100","v":0},{"$f":"'Data Input - Proposed'!BU100","v":0},{"$f":"'Data Input - Proposed'!BV100","v":0},{"$f":"'Data Input - Proposed'!BW100","v":0},{"$f":"'Data Input - Proposed'!BX100","v":0},{"$f":"'Data Input - Proposed'!BY100","v":0},{"$f":"'Data Input - Proposed'!BZ100","v":0},{"$f":"'Data Input - Proposed'!CA100","v":0},{"$f":"'Data Input - Proposed'!CB100","v":0},{"$f":"'Data Input - Proposed'!CC100","v":0},{"$f":"'Data Input - Proposed'!CD100","v":0},{"$f":"'Data Input - Proposed'!CE100","v":0},{"$f":"'Data Input - Proposed'!CF100","v":0},{"$f":"'Data Input - Proposed'!CG100","v":0},{"$f":"'Data Input - Proposed'!CH100","v":0},{"$f":"'Data Input - Proposed'!CI100","v":0},{"$f":"'Data Input - Proposed'!CJ100","v":0},{"$f":"'Data Input - Proposed'!CK100","v":0},{"$f":"'Data Input - Proposed'!CL100","v":0},{"$f":"'Data Input - Proposed'!CM100","v":0},{"$f":"'Data Input - Proposed'!CN100","v":0},{"$f":"'Data Input - Proposed'!CO100","v":0},{"$f":"'Data Input - Proposed'!CP100","v":0},{"$f":"'Data Input - Proposed'!CQ100","v":0},{"$f":"'Data Input - Proposed'!CR100","v":0},{"$f":"'Data Input - Proposed'!CS100","v":0},{"$f":"'Data Input - Proposed'!CT100","v":0},{"$f":"'Data Input - Proposed'!CU100","v":0},{"$f":"'Data Input - Proposed'!CV100","v":0},{"$f":"'Data Input - Proposed'!CW100","v":0},{"$f":"'Data Input - Proposed'!CX100","v":0},{"$f":"'Data Input - Proposed'!CY100","v":0},{"$f":"'Data Input - Proposed'!CZ100","v":0},{"$f":"'Data Input - Proposed'!DA100","v":0},{"$f":"'Data Input - Proposed'!DB100","v":0},{"$f":"'Data Input - Proposed'!DC100","v":0}]
[null,"Discounted energy consumption","£000's",{"$f":"D47*D$7","v":1485.700561305305},{"$f":"E47*E$7","v":1489.4020758847257},1503.4114048554716,1494.9502531422168,1485.4390201219728,1496.1640053606864,1494.5798261038958,1470.1844818230277,0,0,0,0,0,0,0,0,0,0,0,0,0,0,0,0,0,0,0,0,0,0,0,0,0,0,0,0,0,0,0,0,0,0,0,0,0,0,0,0,0,0,0,0,0,0,0,0,0,0,0,0,0,0,0,0,0,{"$f":"BQ47*BQ$7","v":0},0,0,0,0,0,0,0,0,0,0,0,0,0,0,0,0,0,0,0,0,0,0,0,0,0,0,0,0,0,0,0,0,0,0]
[null,"Excluding those for which DECC prices used","£000's",{"$f":"('Data Input - Proposed'!H100-SUM('Data Input - Proposed'!H92:H97))*Calc_Proposed!D$7","v":0},{"$f":"('Data Input - Proposed'!I100-SUM('Data Input - Proposed'!I92:I97))*Calc_Proposed!E$7","v":0},{"$f":"('Data Input - Proposed'!J100-SUM('Data Input - Proposed'!J92:J97))*Calc_Proposed!F$7","v":0},{"$f":"('Data Input - Proposed'!K100-SUM('Data Input - Proposed'!K92:K97))*Calc_Proposed!G$7","v":0},{"$f":"('Data Input - Proposed'!L100-SUM('Data Input - Proposed'!L92:L97))*Calc_Proposed!H$7","v":0},{"$f":"('Data Input - Proposed'!M100-SUM('Data Input - Proposed'!M92:M97))*Calc_Proposed!I$7","v":0},{"$f":"('Data Input - Proposed'!N100-SUM('Data Input - Proposed'!N92:N97))*Calc_Proposed!J$7","v":0},{"$f":"('Data Input - Proposed'!O100-SUM('Data Input - Proposed'!O92:O97))*Calc_Proposed!K$7","v":0},{"$f":"('Data Input - Proposed'!P100-SUM('Data Input - Proposed'!P92:P97))*Calc_Proposed!L$7","v":0},{"$f":"('Data Input - Proposed'!Q100-SUM('Data Input - Proposed'!Q92:Q97))*Calc_Proposed!M$7","v":0},{"$f":"('Data Input - Proposed'!R100-SUM('Data Input - Proposed'!R92:R97))*Calc_Proposed!N$7","v":0},{"$f":"('Data Input - Proposed'!S100-SUM('Data Input - Proposed'!S92:S97))*Calc_Proposed!O$7","v":0},{"$f":"('Data Input - Proposed'!T100-SUM('Data Input - Proposed'!T92:T97))*Calc_Proposed!P$7","v":0},{"$f":"('Data Input - Proposed'!U100-SUM('Data Input - Proposed'!U92:U97))*Calc_Proposed!Q$7","v":0},{"$f":"('Data Input - Proposed'!V100-SUM('Data Input - Proposed'!V92:V97))*Calc_Proposed!R$7","v":0},{"$f":"('Data Input - Proposed'!W100-SUM('Data Input - Proposed'!W92:W97))*Calc_Proposed!S$7","v":0},{"$f":"('Data Input - Proposed'!X100-SUM('Data Input - Proposed'!X92:X97))*Calc_Proposed!T$7","v":0},{"$f":"('Data Input - Proposed'!Y100-SUM('Data Input - Proposed'!Y92:Y97))*Calc_Proposed!U$7","v":0},{"$f":"('Data Input - Proposed'!Z100-SUM('Data Input - Proposed'!Z92:Z97))*Calc_Proposed!V$7","v":0},{"$f":"('Data Input - Proposed'!AA100-SUM('Data Input - Proposed'!AA92:AA97))*Calc_Proposed!W$7","v":0},{"$f":"('Data Input - Proposed'!AB100-SUM('Data Input - Proposed'!AB92:AB97))*Calc_Proposed!X$7","v":0},{"$f":"('Data Input - Proposed'!AC100-SUM('Data Input - Proposed'!AC92:AC97))*Calc_Proposed!Y$7","v":0},{"$f":"('Data Input - Proposed'!AD100-SUM('Data Input - Proposed'!AD92:AD97))*Calc_Proposed!Z$7","v":0},{"$f":"('Data Input - Proposed'!AE100-SUM('Data Input - Proposed'!AE92:AE97))*Calc_Proposed!AA$7","v":0},{"$f":"('Data Input - Proposed'!AF100-SUM('Data Input - Proposed'!AF92:AF97))*Calc_Proposed!AB$7","v":0},{"$f":"('Data Input - Proposed'!AG100-SUM('Data Input - Proposed'!AG92:AG97))*Calc_Proposed!AC$7","v":0},{"$f":"('Data Input - Proposed'!AH100-SUM('Data Input - Proposed'!AH92:AH97))*Calc_Proposed!AD$7","v":0},{"$f":"('Data Input - Proposed'!AI100-SUM('Data Input - Proposed'!AI92:AI97))*Calc_Proposed!AE$7","v":0},{"$f":"('Data Input - Proposed'!AJ100-SUM('Data Input - Proposed'!AJ92:AJ97))*Calc_Proposed!AF$7","v":0},{"$f":"('Data Input - Proposed'!AK100-SUM('Data Input - Proposed'!AK92:AK97))*Calc_Proposed!AG$7","v":0},{"$f":"('Data Input - Proposed'!AL100-SUM('Data Input - Proposed'!AL92:AL97))*Calc_Proposed!AH$7","v":0},{"$f":"('Data Input - Proposed'!AM100-SUM('Data Input - Proposed'!AM92:AM97))*Calc_Proposed!AI$7","v":0},{"$f":"('Data Input - Proposed'!AN100-SUM('Data Input - Proposed'!AN92:AN97))*Calc_Proposed!AJ$7","v":0},{"$f":"('Data Input - Proposed'!AO100-SUM('Data Input - Proposed'!AO92:AO97))*Calc_Proposed!AK$7","v":0},{"$f":"('Data Input - Proposed'!AP100-SUM('Data Input - Proposed'!AP92:AP97))*Calc_Proposed!AL$7","v":0},{"$f":"('Data Input - Proposed'!AQ100-SUM('Data Input - Proposed'!AQ92:AQ97))*Calc_Proposed!AM$7","v":0},{"$f":"('Data Input - Proposed'!AR100-SUM('Data Input - Proposed'!AR92:AR97))*Calc_Proposed!AN$7","v":0},{"$f":"('Data Input - Proposed'!AS100-SUM('Data Input - Proposed'!AS92:AS97))*Calc_Proposed!AO$7","v":0},{"$f":"('Data Input - Proposed'!AT100-SUM('Data Input - Proposed'!AT92:AT97))*Calc_Proposed!AP$7","v":0},{"$f":"('Data Input - Proposed'!AU100-SUM('Data Input - Proposed'!AU92:AU97))*Calc_Proposed!AQ$7","v":0},{"$f":"('Data Input - Proposed'!AV100-SUM('Data Input - Proposed'!AV92:AV97))*Calc_Proposed!AR$7","v":0},{"$f":"('Data Input - Proposed'!AW100-SUM('Data Input - Proposed'!AW92:AW97))*Calc_Proposed!AS$7","v":0},{"$f":"('Data Input - Proposed'!AX100-SUM('Data Input - Proposed'!AX92:AX97))*Calc_Proposed!AT$7","v":0},{"$f":"('Data Input - Proposed'!AY100-SUM('Data Input - Proposed'!AY92:AY97))*Calc_Proposed!AU$7","v":0},{"$f":"('Data Input - Proposed'!AZ100-SUM('Data Input - Proposed'!AZ92:AZ97))*Calc_Proposed!AV$7","v":0},{"$f":"('Data Input - Proposed'!BA100-SUM('Data Input - Proposed'!BA92:BA97))*Calc_Proposed!AW$7","v":0},{"$f":"('Data Input - Proposed'!BB100-SUM('Data Input - Proposed'!BB92:BB97))*Calc_Proposed!AX$7","v":0},{"$f":"('Data Input - Proposed'!BC100-SUM('Data Input - Proposed'!BC92:BC97))*Calc_Proposed!AY$7","v":0},{"$f":"('Data Input - Proposed'!BD100-SUM('Data Input - Proposed'!BD92:BD97))*Calc_Proposed!AZ$7","v":0},{"$f":"('Data Input - Proposed'!BE100-SUM('Data Input - Proposed'!BE92:BE97))*Calc_Proposed!BA$7","v":0},{"$f":"('Data Input - Proposed'!BF100-SUM('Data Input - Proposed'!BF92:BF97))*Calc_Proposed!BB$7","v":0},{"$f":"('Data Input - Proposed'!BG100-SUM('Data Input - Proposed'!BG92:BG97))*Calc_Proposed!BC$7","v":0},{"$f":"('Data Input - Proposed'!BH100-SUM('Data Input - Proposed'!BH92:BH97))*Calc_Proposed!BD$7","v":0},{"$f":"('Data Input - Proposed'!BI100-SUM('Data Input - Proposed'!BI92:BI97))*Calc_Proposed!BE$7","v":0},{"$f":"('Data Input - Proposed'!BJ100-SUM('Data Input - Proposed'!BJ92:BJ97))*Calc_Proposed!BF$7","v":0},{"$f":"('Data Input - Proposed'!BK100-SUM('Data Input - Proposed'!BK92:BK97))*Calc_Proposed!BG$7","v":0},{"$f":"('Data Input - Proposed'!BL100-SUM('Data Input - Proposed'!BL92:BL97))*Calc_Proposed!BH$7","v":0},{"$f":"('Data Input - Proposed'!BM100-SUM('Data Input - Proposed'!BM92:BM97))*Calc_Proposed!BI$7","v":0},{"$f":"('Data Input - Proposed'!BN100-SUM('Data Input - Proposed'!BN92:BN97))*Calc_Proposed!BJ$7","v":0},{"$f":"('Data Input - Proposed'!BO100-SUM('Data Input - Proposed'!BO92:BO97))*Calc_Proposed!BK$7","v":0},{"$f":"('Data Input - Proposed'!BP100-SUM('Data Input - Proposed'!BP92:BP97))*Calc_Proposed!BL$7","v":0},{"$f":"('Data Input - Proposed'!BQ100-SUM('Data Input - Proposed'!BQ92:BQ97))*Calc_Proposed!BM$7","v":0},{"$f":"('Data Input - Proposed'!BR100-SUM('Data Input - Proposed'!BR92:BR97))*Calc_Proposed!BN$7","v":0},{"$f":"('Data Input - Proposed'!BS100-SUM('Data Input - Proposed'!BS92:BS97))*Calc_Proposed!BO$7","v":0},{"$f":"('Data Input - Proposed'!BT100-SUM('Data Input - Proposed'!BT92:BT97))*Calc_Proposed!BP$7","v":0},{"$f":"('Data Input - Proposed'!BU100-SUM('Data Input - Proposed'!BU92:BU97))*Calc_Proposed!BQ$7","v":0},{"$f":"('Data Input - Proposed'!BV100-SUM('Data Input - Proposed'!BV92:BV97))*Calc_Proposed!BR$7","v":0},{"$f":"('Data Input - Proposed'!BW100-SUM('Data Input - Proposed'!BW92:BW97))*Calc_Proposed!BS$7","v":0},{"$f":"('Data Input - Proposed'!BX100-SUM('Data Input - Proposed'!BX92:BX97))*Calc_Proposed!BT$7","v":0},{"$f":"('Data Input - Proposed'!BY100-SUM('Data Input - Proposed'!BY92:BY97))*Calc_Proposed!BU$7","v":0},{"$f":"('Data Input - Proposed'!BZ100-SUM('Data Input - Proposed'!BZ92:BZ97))*Calc_Proposed!BV$7","v":0},{"$f":"('Data Input - Proposed'!CA100-SUM('Data Input - Proposed'!CA92:CA97))*Calc_Proposed!BW$7","v":0},{"$f":"('Data Input - Proposed'!CB100-SUM('Data Input - Proposed'!CB92:CB97))*Calc_Proposed!BX$7","v":0},{"$f":"('Data Input - Proposed'!CC100-SUM('Data Input - Proposed'!CC92:CC97))*Calc_Proposed!BY$7","v":0},{"$f":"('Data Input - Proposed'!CD100-SUM('Data Input - Proposed'!CD92:CD97))*Calc_Proposed!BZ$7","v":0},{"$f":"('Data Input - Proposed'!CE100-SUM('Data Input - Proposed'!CE92:CE97))*Calc_Proposed!CA$7","v":0},{"$f":"('Data Input - Proposed'!CF100-SUM('Data Input - Proposed'!CF92:CF97))*Calc_Proposed!CB$7","v":0},{"$f":"('Data Input - Proposed'!CG100-SUM('Data Input - Proposed'!CG92:CG97))*Calc_Proposed!CC$7","v":0},{"$f":"('Data Input - Proposed'!CH100-SUM('Data Input - Proposed'!CH92:CH97))*Calc_Proposed!CD$7","v":0},{"$f":"('Data Input - Proposed'!CI100-SUM('Data Input - Proposed'!CI92:CI97))*Calc_Proposed!CE$7","v":0},{"$f":"('Data Input - Proposed'!CJ100-SUM('Data Input - Proposed'!CJ92:CJ97))*Calc_Proposed!CF$7","v":0},{"$f":"('Data Input - Proposed'!CK100-SUM('Data Input - Proposed'!CK92:CK97))*Calc_Proposed!CG$7","v":0},{"$f":"('Data Input - Proposed'!CL100-SUM('Data Input - Proposed'!CL92:CL97))*Calc_Proposed!CH$7","v":0},{"$f":"('Data Input - Proposed'!CM100-SUM('Data Input - Proposed'!CM92:CM97))*Calc_Proposed!CI$7","v":0},{"$f":"('Data Input - Proposed'!CN100-SUM('Data Input - Proposed'!CN92:CN97))*Calc_Proposed!CJ$7","v":0},{"$f":"('Data Input - Proposed'!CO100-SUM('Data Input - Proposed'!CO92:CO97))*Calc_Proposed!CK$7","v":0},{"$f":"('Data Input - Proposed'!CP100-SUM('Data Input - Proposed'!CP92:CP97))*Calc_Proposed!CL$7","v":0},{"$f":"('Data Input - Proposed'!CQ100-SUM('Data Input - Proposed'!CQ92:CQ97))*Calc_Proposed!CM$7","v":0},{"$f":"('Data Input - Proposed'!CR100-SUM('Data Input - Proposed'!CR92:CR97))*Calc_Proposed!CN$7","v":0},{"$f":"('Data Input - Proposed'!CS100-SUM('Data Input - Proposed'!CS92:CS97))*Calc_Proposed!CO$7","v":0},{"$f":"('Data Input - Proposed'!CT100-SUM('Data Input - Proposed'!CT92:CT97))*Calc_Proposed!CP$7","v":0},{"$f":"('Data Input - Proposed'!CU100-SUM('Data Input - Proposed'!CU92:CU97))*Calc_Proposed!CQ$7","v":0},{"$f":"('Data Input - Proposed'!CV100-SUM('Data Input - Proposed'!CV92:CV97))*Calc_Proposed!CR$7","v":0},{"$f":"('Data Input - Proposed'!CW100-SUM('Data Input - Proposed'!CW92:CW97))*Calc_Proposed!CS$7","v":0},{"$f":"('Data Input - Proposed'!CX100-SUM('Data Input - Proposed'!CX92:CX97))*Calc_Proposed!CT$7","v":0},{"$f":"('Data Input - Proposed'!CY100-SUM('Data Input - Proposed'!CY92:CY97))*Calc_Proposed!CU$7","v":0},{"$f":"('Data Input - Proposed'!CZ100-SUM('Data Input - Proposed'!CZ92:CZ97))*Calc_Proposed!CV$7","v":0},{"$f":"('Data Input - Proposed'!DA100-SUM('Data Input - Proposed'!DA92:DA97))*Calc_Proposed!CW$7","v":0},{"$f":"('Data Input - Proposed'!DB100-SUM('Data Input - Proposed'!DB92:DB97))*Calc_Proposed!CX$7","v":0},{"$f":"('Data Input - Proposed'!DC100-SUM('Data Input - Proposed'!DC92:DC97))*Calc_Proposed!CY$7","v":0}]
[]
[null,"Environmental impacts"]
[null,"Air pollutant emissions"]
[null,{"$f":"'Data Input - Proposed'!D105","v":"Sox 2019"},"Tonnes pa",{"$f":"'Data Input - Proposed'!H105","v":1},{"$f":"'Data Input - Proposed'!I105","v":1},{"$f":"'Data Input - Proposed'!J105","v":1},{"$f":"'Data Input - Proposed'!K105","v":1},{"$f":"'Data Input - Proposed'!L105","v":0.26600000000000001},{"$f":"'Data Input - Proposed'!M105","v":0.26600000000000001},{"$f":"'Data Input - Proposed'!N105","v":0.26600000000000001},{"$f":"'Data Input - Proposed'!O105","v":0.26600000000000001},{"$f":"'Data Input - Proposed'!P105","v":0},{"$f":"'Data Input - Proposed'!Q105","v":0},{"$f":"'Data Input - Proposed'!R105","v":0},{"$f":"'Data Input - Proposed'!S105","v":0},{"$f":"'Data Input - Proposed'!T105","v":0},{"$f":"'Data Input - Proposed'!U105","v":0},{"$f":"'Data Input - Proposed'!V105","v":0},{"$f":"'Data Input - Proposed'!W105","v":0},{"$f":"'Data Input - Proposed'!X105","v":0},{"$f":"'Data Input - Proposed'!Y105","v":0},{"$f":"'Data Input - Proposed'!Z105","v":0},{"$f":"'Data Input - Proposed'!AA105","v":0},{"$f":"'Data Input - Proposed'!AB105","v":0},{"$f":"'Data Input - Proposed'!AC105","v":0},{"$f":"'Data Input - Proposed'!AD105","v":0},{"$f":"'Data Input - Proposed'!AE105","v":0},{"$f":"'Data Input - Proposed'!AF105","v":0},{"$f":"'Data Input - Proposed'!AG105","v":0},{"$f":"'Data Input - Proposed'!AH105","v":0},{"$f":"'Data Input - Proposed'!AI105","v":0},{"$f":"'Data Input - Proposed'!AJ105","v":0},{"$f":"'Data Input - Proposed'!AK105","v":0},{"$f":"'Data Input - Proposed'!AL105","v":0},{"$f":"'Data Input - Proposed'!AM105","v":0},{"$f":"'Data Input - Proposed'!AN105","v":0},{"$f":"'Data Input - Proposed'!AO105","v":0},{"$f":"'Data Input - Proposed'!AP105","v":0},{"$f":"'Data Input - Proposed'!AQ105","v":0},{"$f":"'Data Input - Proposed'!AR105","v":0},{"$f":"'Data Input - Proposed'!AS105","v":0},{"$f":"'Data Input - Proposed'!AT105","v":0},{"$f":"'Data Input - Proposed'!AU105","v":0},{"$f":"'Data Input - Proposed'!AV105","v":0},{"$f":"'Data Input - Proposed'!AW105","v":0},{"$f":"'Data Input - Proposed'!AX105","v":0},{"$f":"'Data Input - Proposed'!AY105","v":0},{"$f":"'Data Input - Proposed'!AZ105","v":0},{"$f":"'Data Input - Proposed'!BA105","v":0},{"$f":"'Data Input - Proposed'!BB105","v":0},{"$f":"'Data Input - Proposed'!BC105","v":0},{"$f":"'Data Input - Proposed'!BD105","v":0},{"$f":"'Data Input - Proposed'!BE105","v":0},{"$f":"'Data Input - Proposed'!BF105","v":0},{"$f":"'Data Input - Proposed'!BG105","v":0},{"$f":"'Data Input - Proposed'!BH105","v":0},{"$f":"'Data Input - Proposed'!BI105","v":0},{"$f":"'Data Input - Proposed'!BJ105","v":0},{"$f":"'Data Input - Proposed'!BK105","v":0},{"$f":"'Data Input - Proposed'!BL105","v":0},{"$f":"'Data Input - Proposed'!BM105","v":0},{"$f":"'Data Input - Proposed'!BN105","v":0},{"$f":"'Data Input - Proposed'!BO105","v":0},{"$f":"'Data Input - Proposed'!BP105","v":0},{"$f":"'Data Input - Proposed'!BQ105","v":0},{"$f":"'Data Input - Proposed'!BR105","v":0},{"$f":"'Data Input - Proposed'!BS105","v":0},{"$f":"'Data Input - Proposed'!BT105","v":0},{"$f":"'Data Input - Proposed'!BU105","v":0},{"$f":"'Data Input - Proposed'!BV105","v":0},{"$f":"'Data Input - Proposed'!BW105","v":0},{"$f":"'Data Input - Proposed'!BX105","v":0},{"$f":"'Data Input - Proposed'!BY105","v":0},{"$f":"'Data Input - Proposed'!BZ105","v":0},{"$f":"'Data Input - Proposed'!CA105","v":0},{"$f":"'Data Input - Proposed'!CB105","v":0},{"$f":"'Data Input - Proposed'!CC105","v":0},{"$f":"'Data Input - Proposed'!CD105","v":0},{"$f":"'Data Input - Proposed'!CE105","v":0},{"$f":"'Data Input - Proposed'!CF105","v":0},{"$f":"'Data Input - Proposed'!CG105","v":0},{"$f":"'Data Input - Proposed'!CH105","v":0},{"$f":"'Data Input - Proposed'!CI105","v":0},{"$f":"'Data Input - Proposed'!CJ105","v":0},{"$f":"'Data Input - Proposed'!CK105","v":0},{"$f":"'Data Input - Proposed'!CL105","v":0},{"$f":"'Data Input - Proposed'!CM105","v":0},{"$f":"'Data Input - Proposed'!CN105","v":0},{"$f":"'Data Input - Proposed'!CO105","v":0},{"$f":"'Data Input - Proposed'!CP105","v":0},{"$f":"'Data Input - Proposed'!CQ105","v":0},{"$f":"'Data Input - Proposed'!CR105","v":0},{"$f":"'Data Input - Proposed'!CS105","v":0},{"$f":"'Data Input - Proposed'!CT105","v":0},{"$f":"'Data Input - Proposed'!CU105","v":0},{"$f":"'Data Input - Proposed'!CV105","v":0},{"$f":"'Data Input - Proposed'!CW105","v":0},{"$f":"'Data Input - Proposed'!CX105","v":0},{"$f":"'Data Input - Proposed'!CY105","v":0},{"$f":"'Data Input - Proposed'!CZ105","v":0},{"$f":"'Data Input - Proposed'!DA105","v":0},{"$f":"'Data Input - Proposed'!DB105","v":0},{"$f":"'Data Input - Proposed'!DC105","v":0}]
[null,{"$f":"'Data Input - Proposed'!D106","v":0},"Tonnes pa",{"$f":"'Data Input - Proposed'!H106","v":0},{"$f":"'Data Input - Proposed'!I106","v":0},{"$f":"'Data Input - Proposed'!J106","v":0},{"$f":"'Data Input - Proposed'!K106","v":0},{"$f":"'Data Input - Proposed'!L106","v":0},{"$f":"'Data Input - Proposed'!M106","v":0},{"$f":"'Data Input - Proposed'!N106","v":0},{"$f":"'Data Input - Proposed'!O106","v":0},{"$f":"'Data Input - Proposed'!P106","v":0},{"$f":"'Data Input - Proposed'!Q106","v":0},{"$f":"'Data Input - Proposed'!R106","v":0},{"$f":"'Data Input - Proposed'!S106","v":0},{"$f":"'Data Input - Proposed'!T106","v":0},{"$f":"'Data Input - Proposed'!U106","v":0},{"$f":"'Data Input - Proposed'!V106","v":0},{"$f":"'Data Input - Proposed'!W106","v":0},{"$f":"'Data Input - Proposed'!X106","v":0},{"$f":"'Data Input - Proposed'!Y106","v":0},{"$f":"'Data Input - Proposed'!Z106","v":0},{"$f":"'Data Input - Proposed'!AA106","v":0},{"$f":"'Data Input - Proposed'!AB106","v":0},{"$f":"'Data Input - Proposed'!AC106","v":0},{"$f":"'Data Input - Proposed'!AD106","v":0},{"$f":"'Data Input - Proposed'!AE106","v":0},{"$f":"'Data Input - Proposed'!AF106","v":0},{"$f":"'Data Input - Proposed'!AG106","v":0},{"$f":"'Data Input - Proposed'!AH106","v":0},{"$f":"'Data Input - Proposed'!AI106","v":0},{"$f":"'Data Input - Proposed'!AJ106","v":0},{"$f":"'Data Input - Proposed'!AK106","v":0},{"$f":"'Data Input - Proposed'!AL106","v":0},{"$f":"'Data Input - Proposed'!AM106","v":0},{"$f":"'Data Input - Proposed'!AN106","v":0},{"$f":"'Data Input - Proposed'!AO106","v":0},{"$f":"'Data Input - Proposed'!AP106","v":0},{"$f":"'Data Input - Proposed'!AQ106","v":0},{"$f":"'Data Input - Proposed'!AR106","v":0},{"$f":"'Data Input - Proposed'!AS106","v":0},{"$f":"'Data Input - Proposed'!AT106","v":0},{"$f":"'Data Input - Proposed'!AU106","v":0},{"$f":"'Data Input - Proposed'!AV106","v":0},{"$f":"'Data Input - Proposed'!AW106","v":0},{"$f":"'Data Input - Proposed'!AX106","v":0},{"$f":"'Data Input - Proposed'!AY106","v":0},{"$f":"'Data Input - Proposed'!AZ106","v":0},{"$f":"'Data Input - Proposed'!BA106","v":0},{"$f":"'Data Input - Proposed'!BB106","v":0},{"$f":"'Data Input - Proposed'!BC106","v":0},{"$f":"'Data Input - Proposed'!BD106","v":0},{"$f":"'Data Input - Proposed'!BE106","v":0},{"$f":"'Data Input - Proposed'!BF106","v":0},{"$f":"'Data Input - Proposed'!BG106","v":0},{"$f":"'Data Input - Proposed'!BH106","v":0},{"$f":"'Data Input - Proposed'!BI106","v":0},{"$f":"'Data Input - Proposed'!BJ106","v":0},{"$f":"'Data Input - Proposed'!BK106","v":0},{"$f":"'Data Input - Proposed'!BL106","v":0},{"$f":"'Data Input - Proposed'!BM106","v":0},{"$f":"'Data Input - Proposed'!BN106","v":0},{"$f":"'Data Input - Proposed'!BO106","v":0},{"$f":"'Data Input - Proposed'!BP106","v":0},{"$f":"'Data Input - Proposed'!BQ106","v":0},{"$f":"'Data Input - Proposed'!BR106","v":0},{"$f":"'Data Input - Proposed'!BS106","v":0},{"$f":"'Data Input - Proposed'!BT106","v":0},{"$f":"'Data Input - Proposed'!BU106","v":0},{"$f":"'Data Input - Proposed'!BV106","v":0},{"$f":"'Data Input - Proposed'!BW106","v":0},{"$f":"'Data Input - Proposed'!BX106","v":0},{"$f":"'Data Input - Proposed'!BY106","v":0},{"$f":"'Data Input - Proposed'!BZ106","v":0},{"$f":"'Data Input - Proposed'!CA106","v":0},{"$f":"'Data Input - Proposed'!CB106","v":0},{"$f":"'Data Input - Proposed'!CC106","v":0},{"$f":"'Data Input - Proposed'!CD106","v":0},{"$f":"'Data Input - Proposed'!CE106","v":0},{"$f":"'Data Input - Proposed'!CF106","v":0},{"$f":"'Data Input - Proposed'!CG106","v":0},{"$f":"'Data Input - Proposed'!CH106","v":0},{"$f":"'Data Input - Proposed'!CI106","v":0},{"$f":"'Data Input - Proposed'!CJ106","v":0},{"$f":"'Data Input - Proposed'!CK106","v":0},{"$f":"'Data Input - Proposed'!CL106","v":0},{"$f":"'Data Input - Proposed'!CM106","v":0},{"$f":"'Data Input - Proposed'!CN106","v":0},{"$f":"'Data Input - Proposed'!CO106","v":0},{"$f":"'Data Input - Proposed'!CP106","v":0},{"$f":"'Data Input - Proposed'!CQ106","v":0},{"$f":"'Data Input - Proposed'!CR106","v":0},{"$f":"'Data Input - Proposed'!CS106","v":0},{"$f":"'Data Input - Proposed'!CT106","v":0},{"$f":"'Data Input - Proposed'!CU106","v":0},{"$f":"'Data Input - Proposed'!CV106","v":0},{"$f":"'Data Input - Proposed'!CW106","v":0},{"$f":"'Data Input - Proposed'!CX106","v":0},{"$f":"'Data Input - Proposed'!CY106","v":0},{"$f":"'Data Input - Proposed'!CZ106","v":0},{"$f":"'Data Input - Proposed'!DA106","v":0},{"$f":"'Data Input - Proposed'!DB106","v":0},{"$f":"'Data Input - Proposed'!DC106","v":0}]
[null,{"$f":"'Data Input - Proposed'!D107","v":0},"Tonnes pa",{"$f":"'Data Input - Proposed'!H107","v":0},{"$f":"'Data Input - Proposed'!I107","v":0},{"$f":"'Data Input - Proposed'!J107","v":0},{"$f":"'Data Input - Proposed'!K107","v":0},{"$f":"'Data Input - Proposed'!L107","v":0},{"$f":"'Data Input - Proposed'!M107","v":0},{"$f":"'Data Input - Proposed'!N107","v":0},{"$f":"'Data Input - Proposed'!O107","v":0},{"$f":"'Data Input - Proposed'!P107","v":0},{"$f":"'Data Input - Proposed'!Q107","v":0},{"$f":"'Data Input - Proposed'!R107","v":0},{"$f":"'Data Input - Proposed'!S107","v":0},{"$f":"'Data Input - Proposed'!T107","v":0},{"$f":"'Data Input - Proposed'!U107","v":0},{"$f":"'Data Input - Proposed'!V107","v":0},{"$f":"'Data Input - Proposed'!W107","v":0},{"$f":"'Data Input - Proposed'!X107","v":0},{"$f":"'Data Input - Proposed'!Y107","v":0},{"$f":"'Data Input - Proposed'!Z107","v":0},{"$f":"'Data Input - Proposed'!AA107","v":0},{"$f":"'Data Input - Proposed'!AB107","v":0},{"$f":"'Data Input - Proposed'!AC107","v":0},{"$f":"'Data Input - Proposed'!AD107","v":0},{"$f":"'Data Input - Proposed'!AE107","v":0},{"$f":"'Data Input - Proposed'!AF107","v":0},{"$f":"'Data Input - Proposed'!AG107","v":0},{"$f":"'Data Input - Proposed'!AH107","v":0},{"$f":"'Data Input - Proposed'!AI107","v":0},{"$f":"'Data Input - Proposed'!AJ107","v":0},{"$f":"'Data Input - Proposed'!AK107","v":0},{"$f":"'Data Input - Proposed'!AL107","v":0},{"$f":"'Data Input - Proposed'!AM107","v":0},{"$f":"'Data Input - Proposed'!AN107","v":0},{"$f":"'Data Input - Proposed'!AO107","v":0},{"$f":"'Data Input - Proposed'!AP107","v":0},{"$f":"'Data Input - Proposed'!AQ107","v":0},{"$f":"'Data Input - Proposed'!AR107","v":0},{"$f":"'Data Input - Proposed'!AS107","v":0},{"$f":"'Data Input - Proposed'!AT107","v":0},{"$f":"'Data Input - Proposed'!AU107","v":0},{"$f":"'Data Input - Proposed'!AV107","v":0},{"$f":"'Data Input - Proposed'!AW107","v":0},{"$f":"'Data Input - Proposed'!AX107","v":0},{"$f":"'Data Input - Proposed'!AY107","v":0},{"$f":"'Data Input - Proposed'!AZ107","v":0},{"$f":"'Data Input - Proposed'!BA107","v":0},{"$f":"'Data Input - Proposed'!BB107","v":0},{"$f":"'Data Input - Proposed'!BC107","v":0},{"$f":"'Data Input - Proposed'!BD107","v":0},{"$f":"'Data Input - Proposed'!BE107","v":0},{"$f":"'Data Input - Proposed'!BF107","v":0},{"$f":"'Data Input - Proposed'!BG107","v":0},{"$f":"'Data Input - Proposed'!BH107","v":0},{"$f":"'Data Input - Proposed'!BI107","v":0},{"$f":"'Data Input - Proposed'!BJ107","v":0},{"$f":"'Data Input - Proposed'!BK107","v":0},{"$f":"'Data Input - Proposed'!BL107","v":0},{"$f":"'Data Input - Proposed'!BM107","v":0},{"$f":"'Data Input - Proposed'!BN107","v":0},{"$f":"'Data Input - Proposed'!BO107","v":0},{"$f":"'Data Input - Proposed'!BP107","v":0},{"$f":"'Data Input - Proposed'!BQ107","v":0},{"$f":"'Data Input - Proposed'!BR107","v":0},{"$f":"'Data Input - Proposed'!BS107","v":0},{"$f":"'Data Input - Proposed'!BT107","v":0},{"$f":"'Data Input - Proposed'!BU107","v":0},{"$f":"'Data Input - Proposed'!BV107","v":0},{"$f":"'Data Input - Proposed'!BW107","v":0},{"$f":"'Data Input - Proposed'!BX107","v":0},{"$f":"'Data Input - Proposed'!BY107","v":0},{"$f":"'Data Input - Proposed'!BZ107","v":0},{"$f":"'Data Input - Proposed'!CA107","v":0},{"$f":"'Data Input - Proposed'!CB107","v":0},{"$f":"'Data Input - Proposed'!CC107","v":0},{"$f":"'Data Input - Proposed'!CD107","v":0},{"$f":"'Data Input - Proposed'!CE107","v":0},{"$f":"'Data Input - Proposed'!CF107","v":0},{"$f":"'Data Input - Proposed'!CG107","v":0},{"$f":"'Data Input - Proposed'!CH107","v":0},{"$f":"'Data Input - Proposed'!CI107","v":0},{"$f":"'Data Input - Proposed'!CJ107","v":0},{"$f":"'Data Input - Proposed'!CK107","v":0},{"$f":"'Data Input - Proposed'!CL107","v":0},{"$f":"'Data Input - Proposed'!CM107","v":0},{"$f":"'Data Input - Proposed'!CN107","v":0},{"$f":"'Data Input - Proposed'!CO107","v":0},{"$f":"'Data Input - Proposed'!CP107","v":0},{"$f":"'Data Input - Proposed'!CQ107","v":0},{"$f":"'Data Input - Proposed'!CR107","v":0},{"$f":"'Data Input - Proposed'!CS107","v":0},{"$f":"'Data Input - Proposed'!CT107","v":0},{"$f":"'Data Input - Proposed'!CU107","v":0},{"$f":"'Data Input - Proposed'!CV107","v":0},{"$f":"'Data Input - Proposed'!CW107","v":0},{"$f":"'Data Input - Proposed'!CX107","v":0},{"$f":"'Data Input - Proposed'!CY107","v":0},{"$f":"'Data Input - Proposed'!CZ107","v":0},{"$f":"'Data Input - Proposed'!DA107","v":0},{"$f":"'Data Input - Proposed'!DB107","v":0},{"$f":"'Data Input - Proposed'!DC107","v":0}]
[null,{"$f":"'Data Input - Proposed'!D108","v":0},"Tonnes pa",{"$f":"'Data Input - Proposed'!H108","v":0},{"$f":"'Data Input - Proposed'!I108","v":0},{"$f":"'Data Input - Proposed'!J108","v":0},{"$f":"'Data Input - Proposed'!K108","v":0},{"$f":"'Data Input - Proposed'!L108","v":0},{"$f":"'Data Input - Proposed'!M108","v":0},{"$f":"'Data Input - Proposed'!N108","v":0},{"$f":"'Data Input - Proposed'!O108","v":0},{"$f":"'Data Input - Proposed'!P108","v":0},{"$f":"'Data Input - Proposed'!Q108","v":0},{"$f":"'Data Input - Proposed'!R108","v":0},{"$f":"'Data Input - Proposed'!S108","v":0},{"$f":"'Data Input - Proposed'!T108","v":0},{"$f":"'Data Input - Proposed'!U108","v":0},{"$f":"'Data Input - Proposed'!V108","v":0},{"$f":"'Data Input - Proposed'!W108","v":0},{"$f":"'Data Input - Proposed'!X108","v":0},{"$f":"'Data Input - Proposed'!Y108","v":0},{"$f":"'Data Input - Proposed'!Z108","v":0},{"$f":"'Data Input - Proposed'!AA108","v":0},{"$f":"'Data Input - Proposed'!AB108","v":0},{"$f":"'Data Input - Proposed'!AC108","v":0},{"$f":"'Data Input - Proposed'!AD108","v":0},{"$f":"'Data Input - Proposed'!AE108","v":0},{"$f":"'Data Input - Proposed'!AF108","v":0},{"$f":"'Data Input - Proposed'!AG108","v":0},{"$f":"'Data Input - Proposed'!AH108","v":0},{"$f":"'Data Input - Proposed'!AI108","v":0},{"$f":"'Data Input - Proposed'!AJ108","v":0},{"$f":"'Data Input - Proposed'!AK108","v":0},{"$f":"'Data Input - Proposed'!AL108","v":0},{"$f":"'Data Input - Proposed'!AM108","v":0},{"$f":"'Data Input - Proposed'!AN108","v":0},{"$f":"'Data Input - Proposed'!AO108","v":0},{"$f":"'Data Input - Proposed'!AP108","v":0},{"$f":"'Data Input - Proposed'!AQ108","v":0},{"$f":"'Data Input - Proposed'!AR108","v":0},{"$f":"'Data Input - Proposed'!AS108","v":0},{"$f":"'Data Input - Proposed'!AT108","v":0},{"$f":"'Data Input - Proposed'!AU108","v":0},{"$f":"'Data Input - Proposed'!AV108","v":0},{"$f":"'Data Input - Proposed'!AW108","v":0},{"$f":"'Data Input - Proposed'!AX108","v":0},{"$f":"'Data Input - Proposed'!AY108","v":0},{"$f":"'Data Input - Proposed'!AZ108","v":0},{"$f":"'Data Input - Proposed'!BA108","v":0},{"$f":"'Data Input - Proposed'!BB108","v":0},{"$f":"'Data Input - Proposed'!BC108","v":0},{"$f":"'Data Input - Proposed'!BD108","v":0},{"$f":"'Data Input - Proposed'!BE108","v":0},{"$f":"'Data Input - Proposed'!BF108","v":0},{"$f":"'Data Input - Proposed'!BG108","v":0},{"$f":"'Data Input - Proposed'!BH108","v":0},{"$f":"'Data Input - Proposed'!BI108","v":0},{"$f":"'Data Input - Proposed'!BJ108","v":0},{"$f":"'Data Input - Proposed'!BK108","v":0},{"$f":"'Data Input - Proposed'!BL108","v":0},{"$f":"'Data Input - Proposed'!BM108","v":0},{"$f":"'Data Input - Proposed'!BN108","v":0},{"$f":"'Data Input - Proposed'!BO108","v":0},{"$f":"'Data Input - Proposed'!BP108","v":0},{"$f":"'Data Input - Proposed'!BQ108","v":0},{"$f":"'Data Input - Proposed'!BR108","v":0},{"$f":"'Data Input - Proposed'!BS108","v":0},{"$f":"'Data Input - Proposed'!BT108","v":0},{"$f":"'Data Input - Proposed'!BU108","v":0},{"$f":"'Data Input - Proposed'!BV108","v":0},{"$f":"'Data Input - Proposed'!BW108","v":0},{"$f":"'Data Input - Proposed'!BX108","v":0},{"$f":"'Data Input - Proposed'!BY108","v":0},{"$f":"'Data Input - Proposed'!BZ108","v":0},{"$f":"'Data Input - Proposed'!CA108","v":0},{"$f":"'Data Input - Proposed'!CB108","v":0},{"$f":"'Data Input - Proposed'!CC108","v":0},{"$f":"'Data Input - Proposed'!CD108","v":0},{"$f":"'Data Input - Proposed'!CE108","v":0},{"$f":"'Data Input - Proposed'!CF108","v":0},{"$f":"'Data Input - Proposed'!CG108","v":0},{"$f":"'Data Input - Proposed'!CH108","v":0},{"$f":"'Data Input - Proposed'!CI108","v":0},{"$f":"'Data Input - Proposed'!CJ108","v":0},{"$f":"'Data Input - Proposed'!CK108","v":0},{"$f":"'Data Input - Proposed'!CL108","v":0},{"$f":"'Data Input - Proposed'!CM108","v":0},{"$f":"'Data Input - Proposed'!CN108","v":0},{"$f":"'Data Input - Proposed'!CO108","v":0},{"$f":"'Data Input - Proposed'!CP108","v":0},{"$f":"'Data Input - Proposed'!CQ108","v":0},{"$f":"'Data Input - Proposed'!CR108","v":0},{"$f":"'Data Input - Proposed'!CS108","v":0},{"$f":"'Data Input - Proposed'!CT108","v":0},{"$f":"'Data Input - Proposed'!CU108","v":0},{"$f":"'Data Input - Proposed'!CV108","v":0},{"$f":"'Data Input - Proposed'!CW108","v":0},{"$f":"'Data Input - Proposed'!CX108","v":0},{"$f":"'Data Input - Proposed'!CY108","v":0},{"$f":"'Data Input - Proposed'!CZ108","v":0},{"$f":"'Data Input - Proposed'!DA108","v":0},{"$f":"'Data Input - Proposed'!DB108","v":0},{"$f":"'Data Input - Proposed'!DC108","v":0}]
[null,{"$f":"'Data Input - Proposed'!D109","v":0},"Tonnes pa",{"$f":"'Data Input - Proposed'!H109","v":0},{"$f":"'Data Input - Proposed'!I109","v":0},{"$f":"'Data Input - Proposed'!J109","v":0},{"$f":"'Data Input - Proposed'!K109","v":0},{"$f":"'Data Input - Proposed'!L109","v":0},{"$f":"'Data Input - Proposed'!M109","v":0},{"$f":"'Data Input - Proposed'!N109","v":0},{"$f":"'Data Input - Proposed'!O109","v":0},{"$f":"'Data Input - Proposed'!P109","v":0},{"$f":"'Data Input - Proposed'!Q109","v":0},{"$f":"'Data Input - Proposed'!R109","v":0},{"$f":"'Data Input - Proposed'!S109","v":0},{"$f":"'Data Input - Proposed'!T109","v":0},{"$f":"'Data Input - Proposed'!U109","v":0},{"$f":"'Data Input - Proposed'!V109","v":0},{"$f":"'Data Input - Proposed'!W109","v":0},{"$f":"'Data Input - Proposed'!X109","v":0},{"$f":"'Data Input - Proposed'!Y109","v":0},{"$f":"'Data Input - Proposed'!Z109","v":0},{"$f":"'Data Input - Proposed'!AA109","v":0},{"$f":"'Data Input - Proposed'!AB109","v":0},{"$f":"'Data Input - Proposed'!AC109","v":0},{"$f":"'Data Input - Proposed'!AD109","v":0},{"$f":"'Data Input - Proposed'!AE109","v":0},{"$f":"'Data Input - Proposed'!AF109","v":0},{"$f":"'Data Input - Proposed'!AG109","v":0},{"$f":"'Data Input - Proposed'!AH109","v":0},{"$f":"'Data Input - Proposed'!AI109","v":0},{"$f":"'Data Input - Proposed'!AJ109","v":0},{"$f":"'Data Input - Proposed'!AK109","v":0},{"$f":"'Data Input - Proposed'!AL109","v":0},{"$f":"'Data Input - Proposed'!AM109","v":0},{"$f":"'Data Input - Proposed'!AN109","v":0},{"$f":"'Data Input - Proposed'!AO109","v":0},{"$f":"'Data Input - Proposed'!AP109","v":0},{"$f":"'Data Input - Proposed'!AQ109","v":0},{"$f":"'Data Input - Proposed'!AR109","v":0},{"$f":"'Data Input - Proposed'!AS109","v":0},{"$f":"'Data Input - Proposed'!AT109","v":0},{"$f":"'Data Input - Proposed'!AU109","v":0},{"$f":"'Data Input - Proposed'!AV109","v":0},{"$f":"'Data Input - Proposed'!AW109","v":0},{"$f":"'Data Input - Proposed'!AX109","v":0},{"$f":"'Data Input - Proposed'!AY109","v":0},{"$f":"'Data Input - Proposed'!AZ109","v":0},{"$f":"'Data Input - Proposed'!BA109","v":0},{"$f":"'Data Input - Proposed'!BB109","v":0},{"$f":"'Data Input - Proposed'!BC109","v":0},{"$f":"'Data Input - Proposed'!BD109","v":0},{"$f":"'Data Input - Proposed'!BE109","v":0},{"$f":"'Data Input - Proposed'!BF109","v":0},{"$f":"'Data Input - Proposed'!BG109","v":0},{"$f":"'Data Input - Proposed'!BH109","v":0},{"$f":"'Data Input - Proposed'!BI109","v":0},{"$f":"'Data Input - Proposed'!BJ109","v":0},{"$f":"'Data Input - Proposed'!BK109","v":0},{"$f":"'Data Input - Proposed'!BL109","v":0},{"$f":"'Data Input - Proposed'!BM109","v":0},{"$f":"'Data Input - Proposed'!BN109","v":0},{"$f":"'Data Input - Proposed'!BO109","v":0},{"$f":"'Data Input - Proposed'!BP109","v":0},{"$f":"'Data Input - Proposed'!BQ109","v":0},{"$f":"'Data Input - Proposed'!BR109","v":0},{"$f":"'Data Input - Proposed'!BS109","v":0},{"$f":"'Data Input - Proposed'!BT109","v":0},{"$f":"'Data Input - Proposed'!BU109","v":0},{"$f":"'Data Input - Proposed'!BV109","v":0},{"$f":"'Data Input - Proposed'!BW109","v":0},{"$f":"'Data Input - Proposed'!BX109","v":0},{"$f":"'Data Input - Proposed'!BY109","v":0},{"$f":"'Data Input - Proposed'!BZ109","v":0},{"$f":"'Data Input - Proposed'!CA109","v":0},{"$f":"'Data Input - Proposed'!CB109","v":0},{"$f":"'Data Input - Proposed'!CC109","v":0},{"$f":"'Data Input - Proposed'!CD109","v":0},{"$f":"'Data Input - Proposed'!CE109","v":0},{"$f":"'Data Input - Proposed'!CF109","v":0},{"$f":"'Data Input - Proposed'!CG109","v":0},{"$f":"'Data Input - Proposed'!CH109","v":0},{"$f":"'Data Input - Proposed'!CI109","v":0},{"$f":"'Data Input - Proposed'!CJ109","v":0},{"$f":"'Data Input - Proposed'!CK109","v":0},{"$f":"'Data Input - Proposed'!CL109","v":0},{"$f":"'Data Input - Proposed'!CM109","v":0},{"$f":"'Data Input - Proposed'!CN109","v":0},{"$f":"'Data Input - Proposed'!CO109","v":0},{"$f":"'Data Input - Proposed'!CP109","v":0},{"$f":"'Data Input - Proposed'!CQ109","v":0},{"$f":"'Data Input - Proposed'!CR109","v":0},{"$f":"'Data Input - Proposed'!CS109","v":0},{"$f":"'Data Input - Proposed'!CT109","v":0},{"$f":"'Data Input - Proposed'!CU109","v":0},{"$f":"'Data Input - Proposed'!CV109","v":0},{"$f":"'Data Input - Proposed'!CW109","v":0},{"$f":"'Data Input - Proposed'!CX109","v":0},{"$f":"'Data Input - Proposed'!CY109","v":0},{"$f":"'Data Input - Proposed'!CZ109","v":0},{"$f":"'Data Input - Proposed'!DA109","v":0},{"$f":"'Data Input - Proposed'!DB109","v":0},{"$f":"'Data Input - Proposed'!DC109","v":0}]
[null,{"$f":"'Data Input - Proposed'!D110","v":0},"Tonnes pa",{"$f":"'Data Input - Proposed'!H110","v":0},{"$f":"'Data Input - Proposed'!I110","v":0},{"$f":"'Data Input - Proposed'!J110","v":0},{"$f":"'Data Input - Proposed'!K110","v":0},{"$f":"'Data Input - Proposed'!L110","v":0},{"$f":"'Data Input - Proposed'!M110","v":0},{"$f":"'Data Input - Proposed'!N110","v":0},{"$f":"'Data Input - Proposed'!O110","v":0},{"$f":"'Data Input - Proposed'!P110","v":0},{"$f":"'Data Input - Proposed'!Q110","v":0},{"$f":"'Data Input - Proposed'!R110","v":0},{"$f":"'Data Input - Proposed'!S110","v":0},{"$f":"'Data Input - Proposed'!T110","v":0},{"$f":"'Data Input - Proposed'!U110","v":0},{"$f":"'Data Input - Proposed'!V110","v":0},{"$f":"'Data Input - Proposed'!W110","v":0},{"$f":"'Data Input - Proposed'!X110","v":0},{"$f":"'Data Input - Proposed'!Y110","v":0},{"$f":"'Data Input - Proposed'!Z110","v":0},{"$f":"'Data Input - Proposed'!AA110","v":0},{"$f":"'Data Input - Proposed'!AB110","v":0},{"$f":"'Data Input - Proposed'!AC110","v":0},{"$f":"'Data Input - Proposed'!AD110","v":0},{"$f":"'Data Input - Proposed'!AE110","v":0},{"$f":"'Data Input - Proposed'!AF110","v":0},{"$f":"'Data Input - Proposed'!AG110","v":0},{"$f":"'Data Input - Proposed'!AH110","v":0},{"$f":"'Data Input - Proposed'!AI110","v":0},{"$f":"'Data Input - Proposed'!AJ110","v":0},{"$f":"'Data Input - Proposed'!AK110","v":0},{"$f":"'Data Input - Proposed'!AL110","v":0},{"$f":"'Data Input - Proposed'!AM110","v":0},{"$f":"'Data Input - Proposed'!AN110","v":0},{"$f":"'Data Input - Proposed'!AO110","v":0},{"$f":"'Data Input - Proposed'!AP110","v":0},{"$f":"'Data Input - Proposed'!AQ110","v":0},{"$f":"'Data Input - Proposed'!AR110","v":0},{"$f":"'Data Input - Proposed'!AS110","v":0},{"$f":"'Data Input - Proposed'!AT110","v":0},{"$f":"'Data Input - Proposed'!AU110","v":0},{"$f":"'Data Input - Proposed'!AV110","v":0},{"$f":"'Data Input - Proposed'!AW110","v":0},{"$f":"'Data Input - Proposed'!AX110","v":0},{"$f":"'Data Input - Proposed'!AY110","v":0},{"$f":"'Data Input - Proposed'!AZ110","v":0},{"$f":"'Data Input - Proposed'!BA110","v":0},{"$f":"'Data Input - Proposed'!BB110","v":0},{"$f":"'Data Input - Proposed'!BC110","v":0},{"$f":"'Data Input - Proposed'!BD110","v":0},{"$f":"'Data Input - Proposed'!BE110","v":0},{"$f":"'Data Input - Proposed'!BF110","v":0},{"$f":"'Data Input - Proposed'!BG110","v":0},{"$f":"'Data Input - Proposed'!BH110","v":0},{"$f":"'Data Input - Proposed'!BI110","v":0},{"$f":"'Data Input - Proposed'!BJ110","v":0},{"$f":"'Data Input - Proposed'!BK110","v":0},{"$f":"'Data Input - Proposed'!BL110","v":0},{"$f":"'Data Input - Proposed'!BM110","v":0},{"$f":"'Data Input - Proposed'!BN110","v":0},{"$f":"'Data Input - Proposed'!BO110","v":0},{"$f":"'Data Input - Proposed'!BP110","v":0},{"$f":"'Data Input - Proposed'!BQ110","v":0},{"$f":"'Data Input - Proposed'!BR110","v":0},{"$f":"'Data Input - Proposed'!BS110","v":0},{"$f":"'Data Input - Proposed'!BT110","v":0},{"$f":"'Data Input - Proposed'!BU110","v":0},{"$f":"'Data Input - Proposed'!BV110","v":0},{"$f":"'Data Input - Proposed'!BW110","v":0},{"$f":"'Data Input - Proposed'!BX110","v":0},{"$f":"'Data Input - Proposed'!BY110","v":0},{"$f":"'Data Input - Proposed'!BZ110","v":0},{"$f":"'Data Input - Proposed'!CA110","v":0},{"$f":"'Data Input - Proposed'!CB110","v":0},{"$f":"'Data Input - Proposed'!CC110","v":0},{"$f":"'Data Input - Proposed'!CD110","v":0},{"$f":"'Data Input - Proposed'!CE110","v":0},{"$f":"'Data Input - Proposed'!CF110","v":0},{"$f":"'Data Input - Proposed'!CG110","v":0},{"$f":"'Data Input - Proposed'!CH110","v":0},{"$f":"'Data Input - Proposed'!CI110","v":0},{"$f":"'Data Input - Proposed'!CJ110","v":0},{"$f":"'Data Input - Proposed'!CK110","v":0},{"$f":"'Data Input - Proposed'!CL110","v":0},{"$f":"'Data Input - Proposed'!CM110","v":0},{"$f":"'Data Input - Proposed'!CN110","v":0},{"$f":"'Data Input - Proposed'!CO110","v":0},{"$f":"'Data Input - Proposed'!CP110","v":0},{"$f":"'Data Input - Proposed'!CQ110","v":0},{"$f":"'Data Input - Proposed'!CR110","v":0},{"$f":"'Data Input - Proposed'!CS110","v":0},{"$f":"'Data Input - Proposed'!CT110","v":0},{"$f":"'Data Input - Proposed'!CU110","v":0},{"$f":"'Data Input - Proposed'!CV110","v":0},{"$f":"'Data Input - Proposed'!CW110","v":0},{"$f":"'Data Input - Proposed'!CX110","v":0},{"$f":"'Data Input - Proposed'!CY110","v":0},{"$f":"'Data Input - Proposed'!CZ110","v":0},{"$f":"'Data Input - Proposed'!DA110","v":0},{"$f":"'Data Input - Proposed'!DB110","v":0},{"$f":"'Data Input - Proposed'!DC110","v":0}]
[]
[null,"Air pollutant emissions- value"]
[null,{"$f":"B53","v":"Sox 2019"},"£000's",{"$f":"IFERROR(IF(OR($C$67=FALSE,LEFT($B61,3)<>\"NOX\"),D53*INDEX('Damage costs'!$O$16:$O$43,MATCH($B61,'Damage costs'!$C$16:$C$43,0))/1000,D53*INDEX('Damage costs'!$S$16:$S$43,MATCH($B61,'Damage costs'!$C$16:$C$43,0))/1000),\"\")","v":6.7435895540131199},{"$f":"IFERROR(IF(OR($C$67=FALSE,LEFT($B61,3)<>\"NOX\"),E53*INDEX('Damage costs'!$O$16:$O$43,MATCH($B61,'Damage costs'!$C$16:$C$43,0))/1000,E53*INDEX('Damage costs'!$S$16:$S$43,MATCH($B61,'Damage costs'!$C$16:$C$43,0))/1000),\"\")","v":6.7435895540131199},{"$f":"IFERROR(IF(OR($C$67=FALSE,LEFT($B61,3)<>\"NOX\"),F53*INDEX('Damage costs'!$O$16:$O$43,MATCH($B61,'Damage costs'!$C$16:$C$43,0))/1000,F53*INDEX('Damage costs'!$S$16:$S$43,MATCH($B61,'Damage costs'!$C$16:$C$43,0))/1000),\"\")","v":6.7435895540131199},{"$f":"IFERROR(IF(OR($C$67=FALSE,LEFT($B61,3)<>\"NOX\"),G53*INDEX('Damage costs'!$O$16:$O$43,MATCH($B61,'Damage costs'!$C$16:$C$43,0))/1000,G53*INDEX('Damage costs'!$S$16:$S$43,MATCH($B61,'Damage costs'!$C$16:$C$43,0))/1000),\"\")","v":6.7435895540131199},{"$f":"IFERROR(IF(OR($C$67=FALSE,LEFT($B61,3)<>\"NOX\"),H53*INDEX('Damage costs'!$O$16:$O$43,MATCH($B61,'Damage costs'!$C$16:$C$43,0))/1000,H53*INDEX('Damage costs'!$S$16:$S$43,MATCH($B61,'Damage costs'!$C$16:$C$43,0))/1000),\"\")","v":1.7937948213674899},{"$f":"IFERROR(IF(OR($C$67=FALSE,LEFT($B61,3)<>\"NOX\"),I53*INDEX('Damage costs'!$O$16:$O$43,MATCH($B61,'Damage costs'!$C$16:$C$43,0))/1000,I53*INDEX('Damage costs'!$S$16:$S$43,MATCH($B61,'Damage costs'!$C$16:$C$43,0))/1000),\"\")","v":1.7937948213674899},{"$f":"IFERROR(IF(OR($C$67=FALSE,LEFT($B61,3)<>\"NOX\"),J53*INDEX('Damage costs'!$O$16:$O$43,MATCH($B61,'Damage costs'!$C$16:$C$43,0))/1000,J53*INDEX('Damage costs'!$S$16:$S$43,MATCH($B61,'Damage costs'!$C$16:$C$43,0))/1000),\"\")","v":1.7937948213674899},{"$f":"IFERROR(IF(OR($C$67=FALSE,LEFT($B61,3)<>\"NOX\"),K53*INDEX('Damage costs'!$O$16:$O$43,MATCH($B61,'Damage costs'!$C$16:$C$43,0))/1000,K53*INDEX('Damage costs'!$S$16:$S$43,MATCH($B61,'Damage costs'!$C$16:$C$43,0))/1000),\"\")","v":1.7937948213674899},{"$f":"IFERROR(IF(OR($C$67=FALSE,LEFT($B61,3)<>\"NOX\"),L53*INDEX('Damage costs'!$O$16:$O$43,MATCH($B61,'Damage costs'!$C$16:$C$43,0))/1000,L53*INDEX('Damage costs'!$S$16:$S$43,MATCH($B61,'Damage costs'!$C$16:$C$43,0))/1000),\"\")","v":0},{"$f":"IFERROR(IF(OR($C$67=FALSE,LEFT($B61,3)<>\"NOX\"),M53*INDEX('Damage costs'!$O$16:$O$43,MATCH($B61,'Damage costs'!$C$16:$C$43,0))/1000,M53*INDEX('Damage costs'!$S$16:$S$43,MATCH($B61,'Damage costs'!$C$16:$C$43,0))/1000),\"\")","v":0},{"$f":"IFERROR(IF(OR($C$67=FALSE,LEFT($B61,3)<>\"NOX\"),N53*INDEX('Damage costs'!$O$16:$O$43,MATCH($B61,'Damage costs'!$C$16:$C$43,0))/1000,N53*INDEX('Damage costs'!$S$16:$S$43,MATCH($B61,'Damage costs'!$C$16:$C$43,0))/1000),\"\")","v":0},{"$f":"IFERROR(IF(OR($C$67=FALSE,LEFT($B61,3)<>\"NOX\"),O53*INDEX('Damage costs'!$O$16:$O$43,MATCH($B61,'Damage costs'!$C$16:$C$43,0))/1000,O53*INDEX('Damage costs'!$S$16:$S$43,MATCH($B61,'Damage costs'!$C$16:$C$43,0))/1000),\"\")","v":0},{"$f":"IFERROR(IF(OR($C$67=FALSE,LEFT($B61,3)<>\"NOX\"),P53*INDEX('Damage costs'!$O$16:$O$43,MATCH($B61,'Damage costs'!$C$16:$C$43,0))/1000,P53*INDEX('Damage costs'!$S$16:$S$43,MATCH($B61,'Damage costs'!$C$16:$C$43,0))/1000),\"\")","v":0},{"$f":"IFERROR(IF(OR($C$67=FALSE,LEFT($B61,3)<>\"NOX\"),Q53*INDEX('Damage costs'!$O$16:$O$43,MATCH($B61,'Damage costs'!$C$16:$C$43,0))/1000,Q53*INDEX('Damage costs'!$S$16:$S$43,MATCH($B61,'Damage costs'!$C$16:$C$43,0))/1000),\"\")","v":0},{"$f":"IFERROR(IF(OR($C$67=FALSE,LEFT($B61,3)<>\"NOX\"),R53*INDEX('Damage costs'!$O$16:$O$43,MATCH($B61,'Damage costs'!$C$16:$C$43,0))/1000,R53*INDEX('Damage costs'!$S$16:$S$43,MATCH($B61,'Damage costs'!$C$16:$C$43,0))/1000),\"\")","v":0},{"$f":"IFERROR(IF(OR($C$67=FALSE,LEFT($B61,3)<>\"NOX\"),S53*INDEX('Damage costs'!$O$16:$O$43,MATCH($B61,'Damage costs'!$C$16:$C$43,0))/1000,S53*INDEX('Damage costs'!$S$16:$S$43,MATCH($B61,'Damage costs'!$C$16:$C$43,0))/1000),\"\")","v":0},{"$f":"IFERROR(IF(OR($C$67=FALSE,LEFT($B61,3)<>\"NOX\"),T53*INDEX('Damage costs'!$O$16:$O$43,MATCH($B61,'Damage costs'!$C$16:$C$43,0))/1000,T53*INDEX('Damage costs'!$S$16:$S$43,MATCH($B61,'Damage costs'!$C$16:$C$43,0))/1000),\"\")","v":0},{"$f":"IFERROR(IF(OR($C$67=FALSE,LEFT($B61,3)<>\"NOX\"),U53*INDEX('Damage costs'!$O$16:$O$43,MATCH($B61,'Damage costs'!$C$16:$C$43,0))/1000,U53*INDEX('Damage costs'!$S$16:$S$43,MATCH($B61,'Damage costs'!$C$16:$C$43,0))/1000),\"\")","v":0},{"$f":"IFERROR(IF(OR($C$67=FALSE,LEFT($B61,3)<>\"NOX\"),V53*INDEX('Damage costs'!$O$16:$O$43,MATCH($B61,'Damage costs'!$C$16:$C$43,0))/1000,V53*INDEX('Damage costs'!$S$16:$S$43,MATCH($B61,'Damage costs'!$C$16:$C$43,0))/1000),\"\")","v":0},{"$f":"IFERROR(IF(OR($C$67=FALSE,LEFT($B61,3)<>\"NOX\"),W53*INDEX('Damage costs'!$O$16:$O$43,MATCH($B61,'Damage costs'!$C$16:$C$43,0))/1000,W53*INDEX('Damage costs'!$S$16:$S$43,MATCH($B61,'Damage costs'!$C$16:$C$43,0))/1000),\"\")","v":0},{"$f":"IFERROR(IF(OR($C$67=FALSE,LEFT($B61,3)<>\"NOX\"),X53*INDEX('Damage costs'!$O$16:$O$43,MATCH($B61,'Damage costs'!$C$16:$C$43,0))/1000,X53*INDEX('Damage costs'!$S$16:$S$43,MATCH($B61,'Damage costs'!$C$16:$C$43,0))/1000),\"\")","v":0},{"$f":"IFERROR(IF(OR($C$67=FALSE,LEFT($B61,3)<>\"NOX\"),Y53*INDEX('Damage costs'!$O$16:$O$43,MATCH($B61,'Damage costs'!$C$16:$C$43,0))/1000,Y53*INDEX('Damage costs'!$S$16:$S$43,MATCH($B61,'Damage costs'!$C$16:$C$43,0))/1000),\"\")","v":0},{"$f":"IFERROR(IF(OR($C$67=FALSE,LEFT($B61,3)<>\"NOX\"),Z53*INDEX('Damage costs'!$O$16:$O$43,MATCH($B61,'Damage costs'!$C$16:$C$43,0))/1000,Z53*INDEX('Damage costs'!$S$16:$S$43,MATCH($B61,'Damage costs'!$C$16:$C$43,0))/1000),\"\")","v":0},{"$f":"IFERROR(IF(OR($C$67=FALSE,LEFT($B61,3)<>\"NOX\"),AA53*INDEX('Damage costs'!$O$16:$O$43,MATCH($B61,'Damage costs'!$C$16:$C$43,0))/1000,AA53*INDEX('Damage costs'!$S$16:$S$43,MATCH($B61,'Damage costs'!$C$16:$C$43,0))/1000),\"\")","v":0},{"$f":"IFERROR(IF(OR($C$67=FALSE,LEFT($B61,3)<>\"NOX\"),AB53*INDEX('Damage costs'!$O$16:$O$43,MATCH($B61,'Damage costs'!$C$16:$C$43,0))/1000,AB53*INDEX('Damage costs'!$S$16:$S$43,MATCH($B61,'Damage costs'!$C$16:$C$43,0))/1000),\"\")","v":0},{"$f":"IFERROR(IF(OR($C$67=FALSE,LEFT($B61,3)<>\"NOX\"),AC53*INDEX('Damage costs'!$O$16:$O$43,MATCH($B61,'Damage costs'!$C$16:$C$43,0))/1000,AC53*INDEX('Damage costs'!$S$16:$S$43,MATCH($B61,'Damage costs'!$C$16:$C$43,0))/1000),\"\")","v":0},{"$f":"IFERROR(IF(OR($C$67=FALSE,LEFT($B61,3)<>\"NOX\"),AD53*INDEX('Damage costs'!$O$16:$O$43,MATCH($B61,'Damage costs'!$C$16:$C$43,0))/1000,AD53*INDEX('Damage costs'!$S$16:$S$43,MATCH($B61,'Damage costs'!$C$16:$C$43,0))/1000),\"\")","v":0},{"$f":"IFERROR(IF(OR($C$67=FALSE,LEFT($B61,3)<>\"NOX\"),AE53*INDEX('Damage costs'!$O$16:$O$43,MATCH($B61,'Damage costs'!$C$16:$C$43,0))/1000,AE53*INDEX('Damage costs'!$S$16:$S$43,MATCH($B61,'Damage costs'!$C$16:$C$43,0))/1000),\"\")","v":0},{"$f":"IFERROR(IF(OR($C$67=FALSE,LEFT($B61,3)<>\"NOX\"),AF53*INDEX('Damage costs'!$O$16:$O$43,MATCH($B61,'Damage costs'!$C$16:$C$43,0))/1000,AF53*INDEX('Damage costs'!$S$16:$S$43,MATCH($B61,'Damage costs'!$C$16:$C$43,0))/1000),\"\")","v":0},{"$f":"IFERROR(IF(OR($C$67=FALSE,LEFT($B61,3)<>\"NOX\"),AG53*INDEX('Damage costs'!$O$16:$O$43,MATCH($B61,'Damage costs'!$C$16:$C$43,0))/1000,AG53*INDEX('Damage costs'!$S$16:$S$43,MATCH($B61,'Damage costs'!$C$16:$C$43,0))/1000),\"\")","v":0},{"$f":"IFERROR(IF(OR($C$67=FALSE,LEFT($B61,3)<>\"NOX\"),AH53*INDEX('Damage costs'!$O$16:$O$43,MATCH($B61,'Damage costs'!$C$16:$C$43,0))/1000,AH53*INDEX('Damage costs'!$S$16:$S$43,MATCH($B61,'Damage costs'!$C$16:$C$43,0))/1000),\"\")","v":0},{"$f":"IFERROR(IF(OR($C$67=FALSE,LEFT($B61,3)<>\"NOX\"),AI53*INDEX('Damage costs'!$O$16:$O$43,MATCH($B61,'Damage costs'!$C$16:$C$43,0))/1000,AI53*INDEX('Damage costs'!$S$16:$S$43,MATCH($B61,'Damage costs'!$C$16:$C$43,0))/1000),\"\")","v":0},{"$f":"IFERROR(IF(OR($C$67=FALSE,LEFT($B61,3)<>\"NOX\"),AJ53*INDEX('Damage costs'!$O$16:$O$43,MATCH($B61,'Damage costs'!$C$16:$C$43,0))/1000,AJ53*INDEX('Damage costs'!$S$16:$S$43,MATCH($B61,'Damage costs'!$C$16:$C$43,0))/1000),\"\")","v":0},{"$f":"IFERROR(IF(OR($C$67=FALSE,LEFT($B61,3)<>\"NOX\"),AK53*INDEX('Damage costs'!$O$16:$O$43,MATCH($B61,'Damage costs'!$C$16:$C$43,0))/1000,AK53*INDEX('Damage costs'!$S$16:$S$43,MATCH($B61,'Damage costs'!$C$16:$C$43,0))/1000),\"\")","v":0},{"$f":"IFERROR(IF(OR($C$67=FALSE,LEFT($B61,3)<>\"NOX\"),AL53*INDEX('Damage costs'!$O$16:$O$43,MATCH($B61,'Damage costs'!$C$16:$C$43,0))/1000,AL53*INDEX('Damage costs'!$S$16:$S$43,MATCH($B61,'Damage costs'!$C$16:$C$43,0))/1000),\"\")","v":0},{"$f":"IFERROR(IF(OR($C$67=FALSE,LEFT($B61,3)<>\"NOX\"),AM53*INDEX('Damage costs'!$O$16:$O$43,MATCH($B61,'Damage costs'!$C$16:$C$43,0))/1000,AM53*INDEX('Damage costs'!$S$16:$S$43,MATCH($B61,'Damage costs'!$C$16:$C$43,0))/1000),\"\")","v":0},{"$f":"IFERROR(IF(OR($C$67=FALSE,LEFT($B61,3)<>\"NOX\"),AN53*INDEX('Damage costs'!$O$16:$O$43,MATCH($B61,'Damage costs'!$C$16:$C$43,0))/1000,AN53*INDEX('Damage costs'!$S$16:$S$43,MATCH($B61,'Damage costs'!$C$16:$C$43,0))/1000),\"\")","v":0},{"$f":"IFERROR(IF(OR($C$67=FALSE,LEFT($B61,3)<>\"NOX\"),AO53*INDEX('Damage costs'!$O$16:$O$43,MATCH($B61,'Damage costs'!$C$16:$C$43,0))/1000,AO53*INDEX('Damage costs'!$S$16:$S$43,MATCH($B61,'Damage costs'!$C$16:$C$43,0))/1000),\"\")","v":0},{"$f":"IFERROR(IF(OR($C$67=FALSE,LEFT($B61,3)<>\"NOX\"),AP53*INDEX('Damage costs'!$O$16:$O$43,MATCH($B61,'Damage costs'!$C$16:$C$43,0))/1000,AP53*INDEX('Damage costs'!$S$16:$S$43,MATCH($B61,'Damage costs'!$C$16:$C$43,0))/1000),\"\")","v":0},{"$f":"IFERROR(IF(OR($C$67=FALSE,LEFT($B61,3)<>\"NOX\"),AQ53*INDEX('Damage costs'!$O$16:$O$43,MATCH($B61,'Damage costs'!$C$16:$C$43,0))/1000,AQ53*INDEX('Damage costs'!$S$16:$S$43,MATCH($B61,'Damage costs'!$C$16:$C$43,0))/1000),\"\")","v":0},{"$f":"IFERROR(IF(OR($C$67=FALSE,LEFT($B61,3)<>\"NOX\"),AR53*INDEX('Damage costs'!$O$16:$O$43,MATCH($B61,'Damage costs'!$C$16:$C$43,0))/1000,AR53*INDEX('Damage costs'!$S$16:$S$43,MATCH($B61,'Damage costs'!$C$16:$C$43,0))/1000),\"\")","v":0},{"$f":"IFERROR(IF(OR($C$67=FALSE,LEFT($B61,3)<>\"NOX\"),AS53*INDEX('Damage costs'!$O$16:$O$43,MATCH($B61,'Damage costs'!$C$16:$C$43,0))/1000,AS53*INDEX('Damage costs'!$S$16:$S$43,MATCH($B61,'Damage costs'!$C$16:$C$43,0))/1000),\"\")","v":0},{"$f":"IFERROR(IF(OR($C$67=FALSE,LEFT($B61,3)<>\"NOX\"),AT53*INDEX('Damage costs'!$O$16:$O$43,MATCH($B61,'Damage costs'!$C$16:$C$43,0))/1000,AT53*INDEX('Damage costs'!$S$16:$S$43,MATCH($B61,'Damage costs'!$C$16:$C$43,0))/1000),\"\")","v":0},{"$f":"IFERROR(IF(OR($C$67=FALSE,LEFT($B61,3)<>\"NOX\"),AU53*INDEX('Damage costs'!$O$16:$O$43,MATCH($B61,'Damage costs'!$C$16:$C$43,0))/1000,AU53*INDEX('Damage costs'!$S$16:$S$43,MATCH($B61,'Damage costs'!$C$16:$C$43,0))/1000),\"\")","v":0},{"$f":"IFERROR(IF(OR($C$67=FALSE,LEFT($B61,3)<>\"NOX\"),AV53*INDEX('Damage costs'!$O$16:$O$43,MATCH($B61,'Damage costs'!$C$16:$C$43,0))/1000,AV53*INDEX('Damage costs'!$S$16:$S$43,MATCH($B61,'Damage costs'!$C$16:$C$43,0))/1000),\"\")","v":0},{"$f":"IFERROR(IF(OR($C$67=FALSE,LEFT($B61,3)<>\"NOX\"),AW53*INDEX('Damage costs'!$O$16:$O$43,MATCH($B61,'Damage costs'!$C$16:$C$43,0))/1000,AW53*INDEX('Damage costs'!$S$16:$S$43,MATCH($B61,'Damage costs'!$C$16:$C$43,0))/1000),\"\")","v":0},{"$f":"IFERROR(IF(OR($C$67=FALSE,LEFT($B61,3)<>\"NOX\"),AX53*INDEX('Damage costs'!$O$16:$O$43,MATCH($B61,'Damage costs'!$C$16:$C$43,0))/1000,AX53*INDEX('Damage costs'!$S$16:$S$43,MATCH($B61,'Damage costs'!$C$16:$C$43,0))/1000),\"\")","v":0},{"$f":"IFERROR(IF(OR($C$67=FALSE,LEFT($B61,3)<>\"NOX\"),AY53*INDEX('Damage costs'!$O$16:$O$43,MATCH($B61,'Damage costs'!$C$16:$C$43,0))/1000,AY53*INDEX('Damage costs'!$S$16:$S$43,MATCH($B61,'Damage costs'!$C$16:$C$43,0))/1000),\"\")","v":0},{"$f":"IFERROR(IF(OR($C$67=FALSE,LEFT($B61,3)<>\"NOX\"),AZ53*INDEX('Damage costs'!$O$16:$O$43,MATCH($B61,'Damage costs'!$C$16:$C$43,0))/1000,AZ53*INDEX('Damage costs'!$S$16:$S$43,MATCH($B61,'Damage costs'!$C$16:$C$43,0))/1000),\"\")","v":0},{"$f":"IFERROR(IF(OR($C$67=FALSE,LEFT($B61,3)<>\"NOX\"),BA53*INDEX('Damage costs'!$O$16:$O$43,MATCH($B61,'Damage costs'!$C$16:$C$43,0))/1000,BA53*INDEX('Damage costs'!$S$16:$S$43,MATCH($B61,'Damage costs'!$C$16:$C$43,0))/1000),\"\")","v":0},{"$f":"IFERROR(IF(OR($C$67=FALSE,LEFT($B61,3)<>\"NOX\"),BB53*INDEX('Damage costs'!$O$16:$O$43,MATCH($B61,'Damage costs'!$C$16:$C$43,0))/1000,BB53*INDEX('Damage costs'!$S$16:$S$43,MATCH($B61,'Damage costs'!$C$16:$C$43,0))/1000),\"\")","v":0},{"$f":"IFERROR(IF(OR($C$67=FALSE,LEFT($B61,3)<>\"NOX\"),BC53*INDEX('Damage costs'!$O$16:$O$43,MATCH($B61,'Damage costs'!$C$16:$C$43,0))/1000,BC53*INDEX('Damage costs'!$S$16:$S$43,MATCH($B61,'Damage costs'!$C$16:$C$43,0))/1000),\"\")","v":0},{"$f":"IFERROR(IF(OR($C$67=FALSE,LEFT($B61,3)<>\"NOX\"),BD53*INDEX('Damage costs'!$O$16:$O$43,MATCH($B61,'Damage costs'!$C$16:$C$43,0))/1000,BD53*INDEX('Damage costs'!$S$16:$S$43,MATCH($B61,'Damage costs'!$C$16:$C$43,0))/1000),\"\")","v":0},{"$f":"IFERROR(IF(OR($C$67=FALSE,LEFT($B61,3)<>\"NOX\"),BE53*INDEX('Damage costs'!$O$16:$O$43,MATCH($B61,'Damage costs'!$C$16:$C$43,0))/1000,BE53*INDEX('Damage costs'!$S$16:$S$43,MATCH($B61,'Damage costs'!$C$16:$C$43,0))/1000),\"\")","v":0},{"$f":"IFERROR(IF(OR($C$67=FALSE,LEFT($B61,3)<>\"NOX\"),BF53*INDEX('Damage costs'!$O$16:$O$43,MATCH($B61,'Damage costs'!$C$16:$C$43,0))/1000,BF53*INDEX('Damage costs'!$S$16:$S$43,MATCH($B61,'Damage costs'!$C$16:$C$43,0))/1000),\"\")","v":0},{"$f":"IFERROR(IF(OR($C$67=FALSE,LEFT($B61,3)<>\"NOX\"),BG53*INDEX('Damage costs'!$O$16:$O$43,MATCH($B61,'Damage costs'!$C$16:$C$43,0))/1000,BG53*INDEX('Damage costs'!$S$16:$S$43,MATCH($B61,'Damage costs'!$C$16:$C$43,0))/1000),\"\")","v":0},{"$f":"IFERROR(IF(OR($C$67=FALSE,LEFT($B61,3)<>\"NOX\"),BH53*INDEX('Damage costs'!$O$16:$O$43,MATCH($B61,'Damage costs'!$C$16:$C$43,0))/1000,BH53*INDEX('Damage costs'!$S$16:$S$43,MATCH($B61,'Damage costs'!$C$16:$C$43,0))/1000),\"\")","v":0},{"$f":"IFERROR(IF(OR($C$67=FALSE,LEFT($B61,3)<>\"NOX\"),BI53*INDEX('Damage costs'!$O$16:$O$43,MATCH($B61,'Damage costs'!$C$16:$C$43,0))/1000,BI53*INDEX('Damage costs'!$S$16:$S$43,MATCH($B61,'Damage costs'!$C$16:$C$43,0))/1000),\"\")","v":0},{"$f":"IFERROR(IF(OR($C$67=FALSE,LEFT($B61,3)<>\"NOX\"),BJ53*INDEX('Damage costs'!$O$16:$O$43,MATCH($B61,'Damage costs'!$C$16:$C$43,0))/1000,BJ53*INDEX('Damage costs'!$S$16:$S$43,MATCH($B61,'Damage costs'!$C$16:$C$43,0))/1000),\"\")","v":0},{"$f":"IFERROR(IF(OR($C$67=FALSE,LEFT($B61,3)<>\"NOX\"),BK53*INDEX('Damage costs'!$O$16:$O$43,MATCH($B61,'Damage costs'!$C$16:$C$43,0))/1000,BK53*INDEX('Damage costs'!$S$16:$S$43,MATCH($B61,'Damage costs'!$C$16:$C$43,0))/1000),\"\")","v":0},{"$f":"IFERROR(IF(OR($C$67=FALSE,LEFT($B61,3)<>\"NOX\"),BL53*INDEX('Damage costs'!$O$16:$O$43,MATCH($B61,'Damage costs'!$C$16:$C$43,0))/1000,BL53*INDEX('Damage costs'!$S$16:$S$43,MATCH($B61,'Damage costs'!$C$16:$C$43,0))/1000),\"\")","v":0},{"$f":"IFERROR(IF(OR($C$67=FALSE,LEFT($B61,3)<>\"NOX\"),BM53*INDEX('Damage costs'!$O$16:$O$43,MATCH($B61,'Damage costs'!$C$16:$C$43,0))/1000,BM53*INDEX('Damage costs'!$S$16:$S$43,MATCH($B61,'Damage costs'!$C$16:$C$43,0))/1000),\"\")","v":0},{"$f":"IFERROR(IF(OR($C$67=FALSE,LEFT($B61,3)<>\"NOX\"),BN53*INDEX('Damage costs'!$O$16:$O$43,MATCH($B61,'Damage costs'!$C$16:$C$43,0))/1000,BN53*INDEX('Damage costs'!$S$16:$S$43,MATCH($B61,'Damage costs'!$C$16:$C$43,0))/1000),\"\")","v":0},{"$f":"IFERROR(IF(OR($C$67=FALSE,LEFT($B61,3)<>\"NOX\"),BO53*INDEX('Damage costs'!$O$16:$O$43,MATCH($B61,'Damage costs'!$C$16:$C$43,0))/1000,BO53*INDEX('Damage costs'!$S$16:$S$43,MATCH($B61,'Damage costs'!$C$16:$C$43,0))/1000),\"\")","v":0},{"$f":"IFERROR(IF(OR($C$67=FALSE,LEFT($B61,3)<>\"NOX\"),BP53*INDEX('Damage costs'!$O$16:$O$43,MATCH($B61,'Damage costs'!$C$16:$C$43,0))/1000,BP53*INDEX('Damage costs'!$S$16:$S$43,MATCH($B61,'Damage costs'!$C$16:$C$43,0))/1000),\"\")","v":0},{"$f":"IFERROR(IF(OR($C$67=FALSE,LEFT($B61,3)<>\"NOX\"),BQ53*INDEX('Damage costs'!$O$16:$O$43,MATCH($B61,'Damage costs'!$C$16:$C$43,0))/1000,BQ53*INDEX('Damage costs'!$S$16:$S$43,MATCH($B61,'Damage costs'!$C$16:$C$43,0))/1000),\"\")","v":0},{"$f":"IFERROR(IF(OR($C$67=FALSE,LEFT($B61,3)<>\"NOX\"),BR53*INDEX('Damage costs'!$O$16:$O$43,MATCH($B61,'Damage costs'!$C$16:$C$43,0))/1000,BR53*INDEX('Damage costs'!$S$16:$S$43,MATCH($B61,'Damage costs'!$C$16:$C$43,0))/1000),\"\")","v":0},{"$f":"IFERROR(IF(OR($C$67=FALSE,LEFT($B61,3)<>\"NOX\"),BS53*INDEX('Damage costs'!$O$16:$O$43,MATCH($B61,'Damage costs'!$C$16:$C$43,0))/1000,BS53*INDEX('Damage costs'!$S$16:$S$43,MATCH($B61,'Damage costs'!$C$16:$C$43,0))/1000),\"\")","v":0},{"$f":"IFERROR(IF(OR($C$67=FALSE,LEFT($B61,3)<>\"NOX\"),BT53*INDEX('Damage costs'!$O$16:$O$43,MATCH($B61,'Damage costs'!$C$16:$C$43,0))/1000,BT53*INDEX('Damage costs'!$S$16:$S$43,MATCH($B61,'Damage costs'!$C$16:$C$43,0))/1000),\"\")","v":0},{"$f":"IFERROR(IF(OR($C$67=FALSE,LEFT($B61,3)<>\"NOX\"),BU53*INDEX('Damage costs'!$O$16:$O$43,MATCH($B61,'Damage costs'!$C$16:$C$43,0))/1000,BU53*INDEX('Damage costs'!$S$16:$S$43,MATCH($B61,'Damage costs'!$C$16:$C$43,0))/1000),\"\")","v":0},{"$f":"IFERROR(IF(OR($C$67=FALSE,LEFT($B61,3)<>\"NOX\"),BV53*INDEX('Damage costs'!$O$16:$O$43,MATCH($B61,'Damage costs'!$C$16:$C$43,0))/1000,BV53*INDEX('Damage costs'!$S$16:$S$43,MATCH($B61,'Damage costs'!$C$16:$C$43,0))/1000),\"\")","v":0},{"$f":"IFERROR(IF(OR($C$67=FALSE,LEFT($B61,3)<>\"NOX\"),BW53*INDEX('Damage costs'!$O$16:$O$43,MATCH($B61,'Damage costs'!$C$16:$C$43,0))/1000,BW53*INDEX('Damage costs'!$S$16:$S$43,MATCH($B61,'Damage costs'!$C$16:$C$43,0))/1000),\"\")","v":0},{"$f":"IFERROR(IF(OR($C$67=FALSE,LEFT($B61,3)<>\"NOX\"),BX53*INDEX('Damage costs'!$O$16:$O$43,MATCH($B61,'Damage costs'!$C$16:$C$43,0))/1000,BX53*INDEX('Damage costs'!$S$16:$S$43,MATCH($B61,'Damage costs'!$C$16:$C$43,0))/1000),\"\")","v":0},{"$f":"IFERROR(IF(OR($C$67=FALSE,LEFT($B61,3)<>\"NOX\"),BY53*INDEX('Damage costs'!$O$16:$O$43,MATCH($B61,'Damage costs'!$C$16:$C$43,0))/1000,BY53*INDEX('Damage costs'!$S$16:$S$43,MATCH($B61,'Damage costs'!$C$16:$C$43,0))/1000),\"\")","v":0},{"$f":"IFERROR(IF(OR($C$67=FALSE,LEFT($B61,3)<>\"NOX\"),BZ53*INDEX('Damage costs'!$O$16:$O$43,MATCH($B61,'Damage costs'!$C$16:$C$43,0))/1000,BZ53*INDEX('Damage costs'!$S$16:$S$43,MATCH($B61,'Damage costs'!$C$16:$C$43,0))/1000),\"\")","v":0},{"$f":"IFERROR(IF(OR($C$67=FALSE,LEFT($B61,3)<>\"NOX\"),CA53*INDEX('Damage costs'!$O$16:$O$43,MATCH($B61,'Damage costs'!$C$16:$C$43,0))/1000,CA53*INDEX('Damage costs'!$S$16:$S$43,MATCH($B61,'Damage costs'!$C$16:$C$43,0))/1000),\"\")","v":0},{"$f":"IFERROR(IF(OR($C$67=FALSE,LEFT($B61,3)<>\"NOX\"),CB53*INDEX('Damage costs'!$O$16:$O$43,MATCH($B61,'Damage costs'!$C$16:$C$43,0))/1000,CB53*INDEX('Damage costs'!$S$16:$S$43,MATCH($B61,'Damage costs'!$C$16:$C$43,0))/1000),\"\")","v":0},{"$f":"IFERROR(IF(OR($C$67=FALSE,LEFT($B61,3)<>\"NOX\"),CC53*INDEX('Damage costs'!$O$16:$O$43,MATCH($B61,'Damage costs'!$C$16:$C$43,0))/1000,CC53*INDEX('Damage costs'!$S$16:$S$43,MATCH($B61,'Damage costs'!$C$16:$C$43,0))/1000),\"\")","v":0},{"$f":"IFERROR(IF(OR($C$67=FALSE,LEFT($B61,3)<>\"NOX\"),CD53*INDEX('Damage costs'!$O$16:$O$43,MATCH($B61,'Damage costs'!$C$16:$C$43,0))/1000,CD53*INDEX('Damage costs'!$S$16:$S$43,MATCH($B61,'Damage costs'!$C$16:$C$43,0))/1000),\"\")","v":0},{"$f":"IFERROR(IF(OR($C$67=FALSE,LEFT($B61,3)<>\"NOX\"),CE53*INDEX('Damage costs'!$O$16:$O$43,MATCH($B61,'Damage costs'!$C$16:$C$43,0))/1000,CE53*INDEX('Damage costs'!$S$16:$S$43,MATCH($B61,'Damage costs'!$C$16:$C$43,0))/1000),\"\")","v":0},{"$f":"IFERROR(IF(OR($C$67=FALSE,LEFT($B61,3)<>\"NOX\"),CF53*INDEX('Damage costs'!$O$16:$O$43,MATCH($B61,'Damage costs'!$C$16:$C$43,0))/1000,CF53*INDEX('Damage costs'!$S$16:$S$43,MATCH($B61,'Damage costs'!$C$16:$C$43,0))/1000),\"\")","v":0},{"$f":"IFERROR(IF(OR($C$67=FALSE,LEFT($B61,3)<>\"NOX\"),CG53*INDEX('Damage costs'!$O$16:$O$43,MATCH($B61,'Damage costs'!$C$16:$C$43,0))/1000,CG53*INDEX('Damage costs'!$S$16:$S$43,MATCH($B61,'Damage costs'!$C$16:$C$43,0))/1000),\"\")","v":0},{"$f":"IFERROR(IF(OR($C$67=FALSE,LEFT($B61,3)<>\"NOX\"),CH53*INDEX('Damage costs'!$O$16:$O$43,MATCH($B61,'Damage costs'!$C$16:$C$43,0))/1000,CH53*INDEX('Damage costs'!$S$16:$S$43,MATCH($B61,'Damage costs'!$C$16:$C$43,0))/1000),\"\")","v":0},{"$f":"IFERROR(IF(OR($C$67=FALSE,LEFT($B61,3)<>\"NOX\"),CI53*INDEX('Damage costs'!$O$16:$O$43,MATCH($B61,'Damage costs'!$C$16:$C$43,0))/1000,CI53*INDEX('Damage costs'!$S$16:$S$43,MATCH($B61,'Damage costs'!$C$16:$C$43,0))/1000),\"\")","v":0},{"$f":"IFERROR(IF(OR($C$67=FALSE,LEFT($B61,3)<>\"NOX\"),CJ53*INDEX('Damage costs'!$O$16:$O$43,MATCH($B61,'Damage costs'!$C$16:$C$43,0))/1000,CJ53*INDEX('Damage costs'!$S$16:$S$43,MATCH($B61,'Damage costs'!$C$16:$C$43,0))/1000),\"\")","v":0},{"$f":"IFERROR(IF(OR($C$67=FALSE,LEFT($B61,3)<>\"NOX\"),CK53*INDEX('Damage costs'!$O$16:$O$43,MATCH($B61,'Damage costs'!$C$16:$C$43,0))/1000,CK53*INDEX('Damage costs'!$S$16:$S$43,MATCH($B61,'Damage costs'!$C$16:$C$43,0))/1000),\"\")","v":0},{"$f":"IFERROR(IF(OR($C$67=FALSE,LEFT($B61,3)<>\"NOX\"),CL53*INDEX('Damage costs'!$O$16:$O$43,MATCH($B61,'Damage costs'!$C$16:$C$43,0))/1000,CL53*INDEX('Damage costs'!$S$16:$S$43,MATCH($B61,'Damage costs'!$C$16:$C$43,0))/1000),\"\")","v":0},{"$f":"IFERROR(IF(OR($C$67=FALSE,LEFT($B61,3)<>\"NOX\"),CM53*INDEX('Damage costs'!$O$16:$O$43,MATCH($B61,'Damage costs'!$C$16:$C$43,0))/1000,CM53*INDEX('Damage costs'!$S$16:$S$43,MATCH($B61,'Damage costs'!$C$16:$C$43,0))/1000),\"\")","v":0},{"$f":"IFERROR(IF(OR($C$67=FALSE,LEFT($B61,3)<>\"NOX\"),CN53*INDEX('Damage costs'!$O$16:$O$43,MATCH($B61,'Damage costs'!$C$16:$C$43,0))/1000,CN53*INDEX('Damage costs'!$S$16:$S$43,MATCH($B61,'Damage costs'!$C$16:$C$43,0))/1000),\"\")","v":0},{"$f":"IFERROR(IF(OR($C$67=FALSE,LEFT($B61,3)<>\"NOX\"),CO53*INDEX('Damage costs'!$O$16:$O$43,MATCH($B61,'Damage costs'!$C$16:$C$43,0))/1000,CO53*INDEX('Damage costs'!$S$16:$S$43,MATCH($B61,'Damage costs'!$C$16:$C$43,0))/1000),\"\")","v":0},{"$f":"IFERROR(IF(OR($C$67=FALSE,LEFT($B61,3)<>\"NOX\"),CP53*INDEX('Damage costs'!$O$16:$O$43,MATCH($B61,'Damage costs'!$C$16:$C$43,0))/1000,CP53*INDEX('Damage costs'!$S$16:$S$43,MATCH($B61,'Damage costs'!$C$16:$C$43,0))/1000),\"\")","v":0},{"$f":"IFERROR(IF(OR($C$67=FALSE,LEFT($B61,3)<>\"NOX\"),CQ53*INDEX('Damage costs'!$O$16:$O$43,MATCH($B61,'Damage costs'!$C$16:$C$43,0))/1000,CQ53*INDEX('Damage costs'!$S$16:$S$43,MATCH($B61,'Damage costs'!$C$16:$C$43,0))/1000),\"\")","v":0},{"$f":"IFERROR(IF(OR($C$67=FALSE,LEFT($B61,3)<>\"NOX\"),CR53*INDEX('Damage costs'!$O$16:$O$43,MATCH($B61,'Damage costs'!$C$16:$C$43,0))/1000,CR53*INDEX('Damage costs'!$S$16:$S$43,MATCH($B61,'Damage costs'!$C$16:$C$43,0))/1000),\"\")","v":0},{"$f":"IFERROR(IF(OR($C$67=FALSE,LEFT($B61,3)<>\"NOX\"),CS53*INDEX('Damage costs'!$O$16:$O$43,MATCH($B61,'Damage costs'!$C$16:$C$43,0))/1000,CS53*INDEX('Damage costs'!$S$16:$S$43,MATCH($B61,'Damage costs'!$C$16:$C$43,0))/1000),\"\")","v":0},{"$f":"IFERROR(IF(OR($C$67=FALSE,LEFT($B61,3)<>\"NOX\"),CT53*INDEX('Damage costs'!$O$16:$O$43,MATCH($B61,'Damage costs'!$C$16:$C$43,0))/1000,CT53*INDEX('Damage costs'!$S$16:$S$43,MATCH($B61,'Damage costs'!$C$16:$C$43,0))/1000),\"\")","v":0},{"$f":"IFERROR(IF(OR($C$67=FALSE,LEFT($B61,3)<>\"NOX\"),CU53*INDEX('Damage costs'!$O$16:$O$43,MATCH($B61,'Damage costs'!$C$16:$C$43,0))/1000,CU53*INDEX('Damage costs'!$S$16:$S$43,MATCH($B61,'Damage costs'!$C$16:$C$43,0))/1000),\"\")","v":0},{"$f":"IFERROR(IF(OR($C$67=FALSE,LEFT($B61,3)<>\"NOX\"),CV53*INDEX('Damage costs'!$O$16:$O$43,MATCH($B61,'Damage costs'!$C$16:$C$43,0))/1000,CV53*INDEX('Damage costs'!$S$16:$S$43,MATCH($B61,'Damage costs'!$C$16:$C$43,0))/1000),\"\")","v":0},{"$f":"IFERROR(IF(OR($C$67=FALSE,LEFT($B61,3)<>\"NOX\"),CW53*INDEX('Damage costs'!$O$16:$O$43,MATCH($B61,'Damage costs'!$C$16:$C$43,0))/1000,CW53*INDEX('Damage costs'!$S$16:$S$43,MATCH($B61,'Damage costs'!$C$16:$C$43,0))/1000),\"\")","v":0},{"$f":"IFERROR(IF(OR($C$67=FALSE,LEFT($B61,3)<>\"NOX\"),CX53*INDEX('Damage costs'!$O$16:$O$43,MATCH($B61,'Damage costs'!$C$16:$C$43,0))/1000,CX53*INDEX('Damage costs'!$S$16:$S$43,MATCH($B61,'Damage costs'!$C$16:$C$43,0))/1000),\"\")","v":0},{"$f":"IFERROR(IF(OR($C$67=FALSE,LEFT($B61,3)<>\"NOX\"),CY53*INDEX('Damage costs'!$O$16:$O$43,MATCH($B61,'Damage costs'!$C$16:$C$43,0))/1000,CY53*INDEX('Damage costs'!$S$16:$S$43,MATCH($B61,'Damage costs'!$C$16:$C$43,0))/1000),\"\")","v":0}]
[null,0,"£000's",{"$f":"IFERROR(IF(OR($C$67=FALSE,LEFT($B62,3)<>\"NOX\"),D54*INDEX('Damage costs'!$O$16:$O$43,MATCH($B62,'Damage costs'!$C$16:$C$43,0))/1000,D54*INDEX('Damage costs'!$S$16:$S$43,MATCH($B62,'Damage costs'!$C$16:$C$43,0))/1000),\"\")","v":""},{"$f":"IFERROR(IF(OR($C$67=FALSE,LEFT($B62,3)<>\"NOX\"),E54*INDEX('Damage costs'!$O$16:$O$43,MATCH($B62,'Damage costs'!$C$16:$C$43,0))/1000,E54*INDEX('Damage costs'!$S$16:$S$43,MATCH($B62,'Damage costs'!$C$16:$C$43,0))/1000),\"\")","v":""},{"$f":"IFERROR(IF(OR($C$67=FALSE,LEFT($B62,3)<>\"NOX\"),F54*INDEX('Damage costs'!$O$16:$O$43,MATCH($B62,'Damage costs'!$C$16:$C$43,0))/1000,F54*INDEX('Damage costs'!$S$16:$S$43,MATCH($B62,'Damage costs'!$C$16:$C$43,0))/1000),\"\")","v":""},{"$f":"IFERROR(IF(OR($C$67=FALSE,LEFT($B62,3)<>\"NOX\"),G54*INDEX('Damage costs'!$O$16:$O$43,MATCH($B62,'Damage costs'!$C$16:$C$43,0))/1000,G54*INDEX('Damage costs'!$S$16:$S$43,MATCH($B62,'Damage costs'!$C$16:$C$43,0))/1000),\"\")","v":""},{"$f":"IFERROR(IF(OR($C$67=FALSE,LEFT($B62,3)<>\"NOX\"),H54*INDEX('Damage costs'!$O$16:$O$43,MATCH($B62,'Damage costs'!$C$16:$C$43,0))/1000,H54*INDEX('Damage costs'!$S$16:$S$43,MATCH($B62,'Damage costs'!$C$16:$C$43,0))/1000),\"\")","v":""},{"$f":"IFERROR(IF(OR($C$67=FALSE,LEFT($B62,3)<>\"NOX\"),I54*INDEX('Damage costs'!$O$16:$O$43,MATCH($B62,'Damage costs'!$C$16:$C$43,0))/1000,I54*INDEX('Damage costs'!$S$16:$S$43,MATCH($B62,'Damage costs'!$C$16:$C$43,0))/1000),\"\")","v":""},{"$f":"IFERROR(IF(OR($C$67=FALSE,LEFT($B62,3)<>\"NOX\"),J54*INDEX('Damage costs'!$O$16:$O$43,MATCH($B62,'Damage costs'!$C$16:$C$43,0))/1000,J54*INDEX('Damage costs'!$S$16:$S$43,MATCH($B62,'Damage costs'!$C$16:$C$43,0))/1000),\"\")","v":""},{"$f":"IFERROR(IF(OR($C$67=FALSE,LEFT($B62,3)<>\"NOX\"),K54*INDEX('Damage costs'!$O$16:$O$43,MATCH($B62,'Damage costs'!$C$16:$C$43,0))/1000,K54*INDEX('Damage costs'!$S$16:$S$43,MATCH($B62,'Damage costs'!$C$16:$C$43,0))/1000),\"\")","v":""},{"$f":"IFERROR(IF(OR($C$67=FALSE,LEFT($B62,3)<>\"NOX\"),L54*INDEX('Damage costs'!$O$16:$O$43,MATCH($B62,'Damage costs'!$C$16:$C$43,0))/1000,L54*INDEX('Damage costs'!$S$16:$S$43,MATCH($B62,'Damage costs'!$C$16:$C$43,0))/1000),\"\")","v":""},{"$f":"IFERROR(IF(OR($C$67=FALSE,LEFT($B62,3)<>\"NOX\"),M54*INDEX('Damage costs'!$O$16:$O$43,MATCH($B62,'Damage costs'!$C$16:$C$43,0))/1000,M54*INDEX('Damage costs'!$S$16:$S$43,MATCH($B62,'Damage costs'!$C$16:$C$43,0))/1000),\"\")","v":""},{"$f":"IFERROR(IF(OR($C$67=FALSE,LEFT($B62,3)<>\"NOX\"),N54*INDEX('Damage costs'!$O$16:$O$43,MATCH($B62,'Damage costs'!$C$16:$C$43,0))/1000,N54*INDEX('Damage costs'!$S$16:$S$43,MATCH($B62,'Damage costs'!$C$16:$C$43,0))/1000),\"\")","v":""},{"$f":"IFERROR(IF(OR($C$67=FALSE,LEFT($B62,3)<>\"NOX\"),O54*INDEX('Damage costs'!$O$16:$O$43,MATCH($B62,'Damage costs'!$C$16:$C$43,0))/1000,O54*INDEX('Damage costs'!$S$16:$S$43,MATCH($B62,'Damage costs'!$C$16:$C$43,0))/1000),\"\")","v":""},{"$f":"IFERROR(IF(OR($C$67=FALSE,LEFT($B62,3)<>\"NOX\"),P54*INDEX('Damage costs'!$O$16:$O$43,MATCH($B62,'Damage costs'!$C$16:$C$43,0))/1000,P54*INDEX('Damage costs'!$S$16:$S$43,MATCH($B62,'Damage costs'!$C$16:$C$43,0))/1000),\"\")","v":""},{"$f":"IFERROR(IF(OR($C$67=FALSE,LEFT($B62,3)<>\"NOX\"),Q54*INDEX('Damage costs'!$O$16:$O$43,MATCH($B62,'Damage costs'!$C$16:$C$43,0))/1000,Q54*INDEX('Damage costs'!$S$16:$S$43,MATCH($B62,'Damage costs'!$C$16:$C$43,0))/1000),\"\")","v":""},{"$f":"IFERROR(IF(OR($C$67=FALSE,LEFT($B62,3)<>\"NOX\"),R54*INDEX('Damage costs'!$O$16:$O$43,MATCH($B62,'Damage costs'!$C$16:$C$43,0))/1000,R54*INDEX('Damage costs'!$S$16:$S$43,MATCH($B62,'Damage costs'!$C$16:$C$43,0))/1000),\"\")","v":""},{"$f":"IFERROR(IF(OR($C$67=FALSE,LEFT($B62,3)<>\"NOX\"),S54*INDEX('Damage costs'!$O$16:$O$43,MATCH($B62,'Damage costs'!$C$16:$C$43,0))/1000,S54*INDEX('Damage costs'!$S$16:$S$43,MATCH($B62,'Damage costs'!$C$16:$C$43,0))/1000),\"\")","v":""},{"$f":"IFERROR(IF(OR($C$67=FALSE,LEFT($B62,3)<>\"NOX\"),T54*INDEX('Damage costs'!$O$16:$O$43,MATCH($B62,'Damage costs'!$C$16:$C$43,0))/1000,T54*INDEX('Damage costs'!$S$16:$S$43,MATCH($B62,'Damage costs'!$C$16:$C$43,0))/1000),\"\")","v":""},{"$f":"IFERROR(IF(OR($C$67=FALSE,LEFT($B62,3)<>\"NOX\"),U54*INDEX('Damage costs'!$O$16:$O$43,MATCH($B62,'Damage costs'!$C$16:$C$43,0))/1000,U54*INDEX('Damage costs'!$S$16:$S$43,MATCH($B62,'Damage costs'!$C$16:$C$43,0))/1000),\"\")","v":""},{"$f":"IFERROR(IF(OR($C$67=FALSE,LEFT($B62,3)<>\"NOX\"),V54*INDEX('Damage costs'!$O$16:$O$43,MATCH($B62,'Damage costs'!$C$16:$C$43,0))/1000,V54*INDEX('Damage costs'!$S$16:$S$43,MATCH($B62,'Damage costs'!$C$16:$C$43,0))/1000),\"\")","v":""},{"$f":"IFERROR(IF(OR($C$67=FALSE,LEFT($B62,3)<>\"NOX\"),W54*INDEX('Damage costs'!$O$16:$O$43,MATCH($B62,'Damage costs'!$C$16:$C$43,0))/1000,W54*INDEX('Damage costs'!$S$16:$S$43,MATCH($B62,'Damage costs'!$C$16:$C$43,0))/1000),\"\")","v":""},{"$f":"IFERROR(IF(OR($C$67=FALSE,LEFT($B62,3)<>\"NOX\"),X54*INDEX('Damage costs'!$O$16:$O$43,MATCH($B62,'Damage costs'!$C$16:$C$43,0))/1000,X54*INDEX('Damage costs'!$S$16:$S$43,MATCH($B62,'Damage costs'!$C$16:$C$43,0))/1000),\"\")","v":""},{"$f":"IFERROR(IF(OR($C$67=FALSE,LEFT($B62,3)<>\"NOX\"),Y54*INDEX('Damage costs'!$O$16:$O$43,MATCH($B62,'Damage costs'!$C$16:$C$43,0))/1000,Y54*INDEX('Damage costs'!$S$16:$S$43,MATCH($B62,'Damage costs'!$C$16:$C$43,0))/1000),\"\")","v":""},{"$f":"IFERROR(IF(OR($C$67=FALSE,LEFT($B62,3)<>\"NOX\"),Z54*INDEX('Damage costs'!$O$16:$O$43,MATCH($B62,'Damage costs'!$C$16:$C$43,0))/1000,Z54*INDEX('Damage costs'!$S$16:$S$43,MATCH($B62,'Damage costs'!$C$16:$C$43,0))/1000),\"\")","v":""},{"$f":"IFERROR(IF(OR($C$67=FALSE,LEFT($B62,3)<>\"NOX\"),AA54*INDEX('Damage costs'!$O$16:$O$43,MATCH($B62,'Damage costs'!$C$16:$C$43,0))/1000,AA54*INDEX('Damage costs'!$S$16:$S$43,MATCH($B62,'Damage costs'!$C$16:$C$43,0))/1000),\"\")","v":""},{"$f":"IFERROR(IF(OR($C$67=FALSE,LEFT($B62,3)<>\"NOX\"),AB54*INDEX('Damage costs'!$O$16:$O$43,MATCH($B62,'Damage costs'!$C$16:$C$43,0))/1000,AB54*INDEX('Damage costs'!$S$16:$S$43,MATCH($B62,'Damage costs'!$C$16:$C$43,0))/1000),\"\")","v":""},{"$f":"IFERROR(IF(OR($C$67=FALSE,LEFT($B62,3)<>\"NOX\"),AC54*INDEX('Damage costs'!$O$16:$O$43,MATCH($B62,'Damage costs'!$C$16:$C$43,0))/1000,AC54*INDEX('Damage costs'!$S$16:$S$43,MATCH($B62,'Damage costs'!$C$16:$C$43,0))/1000),\"\")","v":""},{"$f":"IFERROR(IF(OR($C$67=FALSE,LEFT($B62,3)<>\"NOX\"),AD54*INDEX('Damage costs'!$O$16:$O$43,MATCH($B62,'Damage costs'!$C$16:$C$43,0))/1000,AD54*INDEX('Damage costs'!$S$16:$S$43,MATCH($B62,'Damage costs'!$C$16:$C$43,0))/1000),\"\")","v":""},{"$f":"IFERROR(IF(OR($C$67=FALSE,LEFT($B62,3)<>\"NOX\"),AE54*INDEX('Damage costs'!$O$16:$O$43,MATCH($B62,'Damage costs'!$C$16:$C$43,0))/1000,AE54*INDEX('Damage costs'!$S$16:$S$43,MATCH($B62,'Damage costs'!$C$16:$C$43,0))/1000),\"\")","v":""},{"$f":"IFERROR(IF(OR($C$67=FALSE,LEFT($B62,3)<>\"NOX\"),AF54*INDEX('Damage costs'!$O$16:$O$43,MATCH($B62,'Damage costs'!$C$16:$C$43,0))/1000,AF54*INDEX('Damage costs'!$S$16:$S$43,MATCH($B62,'Damage costs'!$C$16:$C$43,0))/1000),\"\")","v":""},{"$f":"IFERROR(IF(OR($C$67=FALSE,LEFT($B62,3)<>\"NOX\"),AG54*INDEX('Damage costs'!$O$16:$O$43,MATCH($B62,'Damage costs'!$C$16:$C$43,0))/1000,AG54*INDEX('Damage costs'!$S$16:$S$43,MATCH($B62,'Damage costs'!$C$16:$C$43,0))/1000),\"\")","v":""},{"$f":"IFERROR(IF(OR($C$67=FALSE,LEFT($B62,3)<>\"NOX\"),AH54*INDEX('Damage costs'!$O$16:$O$43,MATCH($B62,'Damage costs'!$C$16:$C$43,0))/1000,AH54*INDEX('Damage costs'!$S$16:$S$43,MATCH($B62,'Damage costs'!$C$16:$C$43,0))/1000),\"\")","v":""},{"$f":"IFERROR(IF(OR($C$67=FALSE,LEFT($B62,3)<>\"NOX\"),AI54*INDEX('Damage costs'!$O$16:$O$43,MATCH($B62,'Damage costs'!$C$16:$C$43,0))/1000,AI54*INDEX('Damage costs'!$S$16:$S$43,MATCH($B62,'Damage costs'!$C$16:$C$43,0))/1000),\"\")","v":""},{"$f":"IFERROR(IF(OR($C$67=FALSE,LEFT($B62,3)<>\"NOX\"),AJ54*INDEX('Damage costs'!$O$16:$O$43,MATCH($B62,'Damage costs'!$C$16:$C$43,0))/1000,AJ54*INDEX('Damage costs'!$S$16:$S$43,MATCH($B62,'Damage costs'!$C$16:$C$43,0))/1000),\"\")","v":""},{"$f":"IFERROR(IF(OR($C$67=FALSE,LEFT($B62,3)<>\"NOX\"),AK54*INDEX('Damage costs'!$O$16:$O$43,MATCH($B62,'Damage costs'!$C$16:$C$43,0))/1000,AK54*INDEX('Damage costs'!$S$16:$S$43,MATCH($B62,'Damage costs'!$C$16:$C$43,0))/1000),\"\")","v":""},{"$f":"IFERROR(IF(OR($C$67=FALSE,LEFT($B62,3)<>\"NOX\"),AL54*INDEX('Damage costs'!$O$16:$O$43,MATCH($B62,'Damage costs'!$C$16:$C$43,0))/1000,AL54*INDEX('Damage costs'!$S$16:$S$43,MATCH($B62,'Damage costs'!$C$16:$C$43,0))/1000),\"\")","v":""},{"$f":"IFERROR(IF(OR($C$67=FALSE,LEFT($B62,3)<>\"NOX\"),AM54*INDEX('Damage costs'!$O$16:$O$43,MATCH($B62,'Damage costs'!$C$16:$C$43,0))/1000,AM54*INDEX('Damage costs'!$S$16:$S$43,MATCH($B62,'Damage costs'!$C$16:$C$43,0))/1000),\"\")","v":""},{"$f":"IFERROR(IF(OR($C$67=FALSE,LEFT($B62,3)<>\"NOX\"),AN54*INDEX('Damage costs'!$O$16:$O$43,MATCH($B62,'Damage costs'!$C$16:$C$43,0))/1000,AN54*INDEX('Damage costs'!$S$16:$S$43,MATCH($B62,'Damage costs'!$C$16:$C$43,0))/1000),\"\")","v":""},{"$f":"IFERROR(IF(OR($C$67=FALSE,LEFT($B62,3)<>\"NOX\"),AO54*INDEX('Damage costs'!$O$16:$O$43,MATCH($B62,'Damage costs'!$C$16:$C$43,0))/1000,AO54*INDEX('Damage costs'!$S$16:$S$43,MATCH($B62,'Damage costs'!$C$16:$C$43,0))/1000),\"\")","v":""},{"$f":"IFERROR(IF(OR($C$67=FALSE,LEFT($B62,3)<>\"NOX\"),AP54*INDEX('Damage costs'!$O$16:$O$43,MATCH($B62,'Damage costs'!$C$16:$C$43,0))/1000,AP54*INDEX('Damage costs'!$S$16:$S$43,MATCH($B62,'Damage costs'!$C$16:$C$43,0))/1000),\"\")","v":""},{"$f":"IFERROR(IF(OR($C$67=FALSE,LEFT($B62,3)<>\"NOX\"),AQ54*INDEX('Damage costs'!$O$16:$O$43,MATCH($B62,'Damage costs'!$C$16:$C$43,0))/1000,AQ54*INDEX('Damage costs'!$S$16:$S$43,MATCH($B62,'Damage costs'!$C$16:$C$43,0))/1000),\"\")","v":""},{"$f":"IFERROR(IF(OR($C$67=FALSE,LEFT($B62,3)<>\"NOX\"),AR54*INDEX('Damage costs'!$O$16:$O$43,MATCH($B62,'Damage costs'!$C$16:$C$43,0))/1000,AR54*INDEX('Damage costs'!$S$16:$S$43,MATCH($B62,'Damage costs'!$C$16:$C$43,0))/1000),\"\")","v":""},{"$f":"IFERROR(IF(OR($C$67=FALSE,LEFT($B62,3)<>\"NOX\"),AS54*INDEX('Damage costs'!$O$16:$O$43,MATCH($B62,'Damage costs'!$C$16:$C$43,0))/1000,AS54*INDEX('Damage costs'!$S$16:$S$43,MATCH($B62,'Damage costs'!$C$16:$C$43,0))/1000),\"\")","v":""},{"$f":"IFERROR(IF(OR($C$67=FALSE,LEFT($B62,3)<>\"NOX\"),AT54*INDEX('Damage costs'!$O$16:$O$43,MATCH($B62,'Damage costs'!$C$16:$C$43,0))/1000,AT54*INDEX('Damage costs'!$S$16:$S$43,MATCH($B62,'Damage costs'!$C$16:$C$43,0))/1000),\"\")","v":""},{"$f":"IFERROR(IF(OR($C$67=FALSE,LEFT($B62,3)<>\"NOX\"),AU54*INDEX('Damage costs'!$O$16:$O$43,MATCH($B62,'Damage costs'!$C$16:$C$43,0))/1000,AU54*INDEX('Damage costs'!$S$16:$S$43,MATCH($B62,'Damage costs'!$C$16:$C$43,0))/1000),\"\")","v":""},{"$f":"IFERROR(IF(OR($C$67=FALSE,LEFT($B62,3)<>\"NOX\"),AV54*INDEX('Damage costs'!$O$16:$O$43,MATCH($B62,'Damage costs'!$C$16:$C$43,0))/1000,AV54*INDEX('Damage costs'!$S$16:$S$43,MATCH($B62,'Damage costs'!$C$16:$C$43,0))/1000),\"\")","v":""},{"$f":"IFERROR(IF(OR($C$67=FALSE,LEFT($B62,3)<>\"NOX\"),AW54*INDEX('Damage costs'!$O$16:$O$43,MATCH($B62,'Damage costs'!$C$16:$C$43,0))/1000,AW54*INDEX('Damage costs'!$S$16:$S$43,MATCH($B62,'Damage costs'!$C$16:$C$43,0))/1000),\"\")","v":""},{"$f":"IFERROR(IF(OR($C$67=FALSE,LEFT($B62,3)<>\"NOX\"),AX54*INDEX('Damage costs'!$O$16:$O$43,MATCH($B62,'Damage costs'!$C$16:$C$43,0))/1000,AX54*INDEX('Damage costs'!$S$16:$S$43,MATCH($B62,'Damage costs'!$C$16:$C$43,0))/1000),\"\")","v":""},{"$f":"IFERROR(IF(OR($C$67=FALSE,LEFT($B62,3)<>\"NOX\"),AY54*INDEX('Damage costs'!$O$16:$O$43,MATCH($B62,'Damage costs'!$C$16:$C$43,0))/1000,AY54*INDEX('Damage costs'!$S$16:$S$43,MATCH($B62,'Damage costs'!$C$16:$C$43,0))/1000),\"\")","v":""},{"$f":"IFERROR(IF(OR($C$67=FALSE,LEFT($B62,3)<>\"NOX\"),AZ54*INDEX('Damage costs'!$O$16:$O$43,MATCH($B62,'Damage costs'!$C$16:$C$43,0))/1000,AZ54*INDEX('Damage costs'!$S$16:$S$43,MATCH($B62,'Damage costs'!$C$16:$C$43,0))/1000),\"\")","v":""},{"$f":"IFERROR(IF(OR($C$67=FALSE,LEFT($B62,3)<>\"NOX\"),BA54*INDEX('Damage costs'!$O$16:$O$43,MATCH($B62,'Damage costs'!$C$16:$C$43,0))/1000,BA54*INDEX('Damage costs'!$S$16:$S$43,MATCH($B62,'Damage costs'!$C$16:$C$43,0))/1000),\"\")","v":""},{"$f":"IFERROR(IF(OR($C$67=FALSE,LEFT($B62,3)<>\"NOX\"),BB54*INDEX('Damage costs'!$O$16:$O$43,MATCH($B62,'Damage costs'!$C$16:$C$43,0))/1000,BB54*INDEX('Damage costs'!$S$16:$S$43,MATCH($B62,'Damage costs'!$C$16:$C$43,0))/1000),\"\")","v":""},{"$f":"IFERROR(IF(OR($C$67=FALSE,LEFT($B62,3)<>\"NOX\"),BC54*INDEX('Damage costs'!$O$16:$O$43,MATCH($B62,'Damage costs'!$C$16:$C$43,0))/1000,BC54*INDEX('Damage costs'!$S$16:$S$43,MATCH($B62,'Damage costs'!$C$16:$C$43,0))/1000),\"\")","v":""},{"$f":"IFERROR(IF(OR($C$67=FALSE,LEFT($B62,3)<>\"NOX\"),BD54*INDEX('Damage costs'!$O$16:$O$43,MATCH($B62,'Damage costs'!$C$16:$C$43,0))/1000,BD54*INDEX('Damage costs'!$S$16:$S$43,MATCH($B62,'Damage costs'!$C$16:$C$43,0))/1000),\"\")","v":""},{"$f":"IFERROR(IF(OR($C$67=FALSE,LEFT($B62,3)<>\"NOX\"),BE54*INDEX('Damage costs'!$O$16:$O$43,MATCH($B62,'Damage costs'!$C$16:$C$43,0))/1000,BE54*INDEX('Damage costs'!$S$16:$S$43,MATCH($B62,'Damage costs'!$C$16:$C$43,0))/1000),\"\")","v":""},{"$f":"IFERROR(IF(OR($C$67=FALSE,LEFT($B62,3)<>\"NOX\"),BF54*INDEX('Damage costs'!$O$16:$O$43,MATCH($B62,'Damage costs'!$C$16:$C$43,0))/1000,BF54*INDEX('Damage costs'!$S$16:$S$43,MATCH($B62,'Damage costs'!$C$16:$C$43,0))/1000),\"\")","v":""},{"$f":"IFERROR(IF(OR($C$67=FALSE,LEFT($B62,3)<>\"NOX\"),BG54*INDEX('Damage costs'!$O$16:$O$43,MATCH($B62,'Damage costs'!$C$16:$C$43,0))/1000,BG54*INDEX('Damage costs'!$S$16:$S$43,MATCH($B62,'Damage costs'!$C$16:$C$43,0))/1000),\"\")","v":""},{"$f":"IFERROR(IF(OR($C$67=FALSE,LEFT($B62,3)<>\"NOX\"),BH54*INDEX('Damage costs'!$O$16:$O$43,MATCH($B62,'Damage costs'!$C$16:$C$43,0))/1000,BH54*INDEX('Damage costs'!$S$16:$S$43,MATCH($B62,'Damage costs'!$C$16:$C$43,0))/1000),\"\")","v":""},{"$f":"IFERROR(IF(OR($C$67=FALSE,LEFT($B62,3)<>\"NOX\"),BI54*INDEX('Damage costs'!$O$16:$O$43,MATCH($B62,'Damage costs'!$C$16:$C$43,0))/1000,BI54*INDEX('Damage costs'!$S$16:$S$43,MATCH($B62,'Damage costs'!$C$16:$C$43,0))/1000),\"\")","v":""},{"$f":"IFERROR(IF(OR($C$67=FALSE,LEFT($B62,3)<>\"NOX\"),BJ54*INDEX('Damage costs'!$O$16:$O$43,MATCH($B62,'Damage costs'!$C$16:$C$43,0))/1000,BJ54*INDEX('Damage costs'!$S$16:$S$43,MATCH($B62,'Damage costs'!$C$16:$C$43,0))/1000),\"\")","v":""},{"$f":"IFERROR(IF(OR($C$67=FALSE,LEFT($B62,3)<>\"NOX\"),BK54*INDEX('Damage costs'!$O$16:$O$43,MATCH($B62,'Damage costs'!$C$16:$C$43,0))/1000,BK54*INDEX('Damage costs'!$S$16:$S$43,MATCH($B62,'Damage costs'!$C$16:$C$43,0))/1000),\"\")","v":""},{"$f":"IFERROR(IF(OR($C$67=FALSE,LEFT($B62,3)<>\"NOX\"),BL54*INDEX('Damage costs'!$O$16:$O$43,MATCH($B62,'Damage costs'!$C$16:$C$43,0))/1000,BL54*INDEX('Damage costs'!$S$16:$S$43,MATCH($B62,'Damage costs'!$C$16:$C$43,0))/1000),\"\")","v":""},{"$f":"IFERROR(IF(OR($C$67=FALSE,LEFT($B62,3)<>\"NOX\"),BM54*INDEX('Damage costs'!$O$16:$O$43,MATCH($B62,'Damage costs'!$C$16:$C$43,0))/1000,BM54*INDEX('Damage costs'!$S$16:$S$43,MATCH($B62,'Damage costs'!$C$16:$C$43,0))/1000),\"\")","v":""},{"$f":"IFERROR(IF(OR($C$67=FALSE,LEFT($B62,3)<>\"NOX\"),BN54*INDEX('Damage costs'!$O$16:$O$43,MATCH($B62,'Damage costs'!$C$16:$C$43,0))/1000,BN54*INDEX('Damage costs'!$S$16:$S$43,MATCH($B62,'Damage costs'!$C$16:$C$43,0))/1000),\"\")","v":""},{"$f":"IFERROR(IF(OR($C$67=FALSE,LEFT($B62,3)<>\"NOX\"),BO54*INDEX('Damage costs'!$O$16:$O$43,MATCH($B62,'Damage costs'!$C$16:$C$43,0))/1000,BO54*INDEX('Damage costs'!$S$16:$S$43,MATCH($B62,'Damage costs'!$C$16:$C$43,0))/1000),\"\")","v":""},{"$f":"IFERROR(IF(OR($C$67=FALSE,LEFT($B62,3)<>\"NOX\"),BP54*INDEX('Damage costs'!$O$16:$O$43,MATCH($B62,'Damage costs'!$C$16:$C$43,0))/1000,BP54*INDEX('Damage costs'!$S$16:$S$43,MATCH($B62,'Damage costs'!$C$16:$C$43,0))/1000),\"\")","v":""},{"$f":"IFERROR(IF(OR($C$67=FALSE,LEFT($B62,3)<>\"NOX\"),BQ54*INDEX('Damage costs'!$O$16:$O$43,MATCH($B62,'Damage costs'!$C$16:$C$43,0))/1000,BQ54*INDEX('Damage costs'!$S$16:$S$43,MATCH($B62,'Damage costs'!$C$16:$C$43,0))/1000),\"\")","v":""},{"$f":"IFERROR(IF(OR($C$67=FALSE,LEFT($B62,3)<>\"NOX\"),BR54*INDEX('Damage costs'!$O$16:$O$43,MATCH($B62,'Damage costs'!$C$16:$C$43,0))/1000,BR54*INDEX('Damage costs'!$S$16:$S$43,MATCH($B62,'Damage costs'!$C$16:$C$43,0))/1000),\"\")","v":""},{"$f":"IFERROR(IF(OR($C$67=FALSE,LEFT($B62,3)<>\"NOX\"),BS54*INDEX('Damage costs'!$O$16:$O$43,MATCH($B62,'Damage costs'!$C$16:$C$43,0))/1000,BS54*INDEX('Damage costs'!$S$16:$S$43,MATCH($B62,'Damage costs'!$C$16:$C$43,0))/1000),\"\")","v":""},{"$f":"IFERROR(IF(OR($C$67=FALSE,LEFT($B62,3)<>\"NOX\"),BT54*INDEX('Damage costs'!$O$16:$O$43,MATCH($B62,'Damage costs'!$C$16:$C$43,0))/1000,BT54*INDEX('Damage costs'!$S$16:$S$43,MATCH($B62,'Damage costs'!$C$16:$C$43,0))/1000),\"\")","v":""},{"$f":"IFERROR(IF(OR($C$67=FALSE,LEFT($B62,3)<>\"NOX\"),BU54*INDEX('Damage costs'!$O$16:$O$43,MATCH($B62,'Damage costs'!$C$16:$C$43,0))/1000,BU54*INDEX('Damage costs'!$S$16:$S$43,MATCH($B62,'Damage costs'!$C$16:$C$43,0))/1000),\"\")","v":""},{"$f":"IFERROR(IF(OR($C$67=FALSE,LEFT($B62,3)<>\"NOX\"),BV54*INDEX('Damage costs'!$O$16:$O$43,MATCH($B62,'Damage costs'!$C$16:$C$43,0))/1000,BV54*INDEX('Damage costs'!$S$16:$S$43,MATCH($B62,'Damage costs'!$C$16:$C$43,0))/1000),\"\")","v":""},{"$f":"IFERROR(IF(OR($C$67=FALSE,LEFT($B62,3)<>\"NOX\"),BW54*INDEX('Damage costs'!$O$16:$O$43,MATCH($B62,'Damage costs'!$C$16:$C$43,0))/1000,BW54*INDEX('Damage costs'!$S$16:$S$43,MATCH($B62,'Damage costs'!$C$16:$C$43,0))/1000),\"\")","v":""},{"$f":"IFERROR(IF(OR($C$67=FALSE,LEFT($B62,3)<>\"NOX\"),BX54*INDEX('Damage costs'!$O$16:$O$43,MATCH($B62,'Damage costs'!$C$16:$C$43,0))/1000,BX54*INDEX('Damage costs'!$S$16:$S$43,MATCH($B62,'Damage costs'!$C$16:$C$43,0))/1000),\"\")","v":""},{"$f":"IFERROR(IF(OR($C$67=FALSE,LEFT($B62,3)<>\"NOX\"),BY54*INDEX('Damage costs'!$O$16:$O$43,MATCH($B62,'Damage costs'!$C$16:$C$43,0))/1000,BY54*INDEX('Damage costs'!$S$16:$S$43,MATCH($B62,'Damage costs'!$C$16:$C$43,0))/1000),\"\")","v":""},{"$f":"IFERROR(IF(OR($C$67=FALSE,LEFT($B62,3)<>\"NOX\"),BZ54*INDEX('Damage costs'!$O$16:$O$43,MATCH($B62,'Damage costs'!$C$16:$C$43,0))/1000,BZ54*INDEX('Damage costs'!$S$16:$S$43,MATCH($B62,'Damage costs'!$C$16:$C$43,0))/1000),\"\")","v":""},{"$f":"IFERROR(IF(OR($C$67=FALSE,LEFT($B62,3)<>\"NOX\"),CA54*INDEX('Damage costs'!$O$16:$O$43,MATCH($B62,'Damage costs'!$C$16:$C$43,0))/1000,CA54*INDEX('Damage costs'!$S$16:$S$43,MATCH($B62,'Damage costs'!$C$16:$C$43,0))/1000),\"\")","v":""},{"$f":"IFERROR(IF(OR($C$67=FALSE,LEFT($B62,3)<>\"NOX\"),CB54*INDEX('Damage costs'!$O$16:$O$43,MATCH($B62,'Damage costs'!$C$16:$C$43,0))/1000,CB54*INDEX('Damage costs'!$S$16:$S$43,MATCH($B62,'Damage costs'!$C$16:$C$43,0))/1000),\"\")","v":""},{"$f":"IFERROR(IF(OR($C$67=FALSE,LEFT($B62,3)<>\"NOX\"),CC54*INDEX('Damage costs'!$O$16:$O$43,MATCH($B62,'Damage costs'!$C$16:$C$43,0))/1000,CC54*INDEX('Damage costs'!$S$16:$S$43,MATCH($B62,'Damage costs'!$C$16:$C$43,0))/1000),\"\")","v":""},{"$f":"IFERROR(IF(OR($C$67=FALSE,LEFT($B62,3)<>\"NOX\"),CD54*INDEX('Damage costs'!$O$16:$O$43,MATCH($B62,'Damage costs'!$C$16:$C$43,0))/1000,CD54*INDEX('Damage costs'!$S$16:$S$43,MATCH($B62,'Damage costs'!$C$16:$C$43,0))/1000),\"\")","v":""},{"$f":"IFERROR(IF(OR($C$67=FALSE,LEFT($B62,3)<>\"NOX\"),CE54*INDEX('Damage costs'!$O$16:$O$43,MATCH($B62,'Damage costs'!$C$16:$C$43,0))/1000,CE54*INDEX('Damage costs'!$S$16:$S$43,MATCH($B62,'Damage costs'!$C$16:$C$43,0))/1000),\"\")","v":""},{"$f":"IFERROR(IF(OR($C$67=FALSE,LEFT($B62,3)<>\"NOX\"),CF54*INDEX('Damage costs'!$O$16:$O$43,MATCH($B62,'Damage costs'!$C$16:$C$43,0))/1000,CF54*INDEX('Damage costs'!$S$16:$S$43,MATCH($B62,'Damage costs'!$C$16:$C$43,0))/1000),\"\")","v":""},{"$f":"IFERROR(IF(OR($C$67=FALSE,LEFT($B62,3)<>\"NOX\"),CG54*INDEX('Damage costs'!$O$16:$O$43,MATCH($B62,'Damage costs'!$C$16:$C$43,0))/1000,CG54*INDEX('Damage costs'!$S$16:$S$43,MATCH($B62,'Damage costs'!$C$16:$C$43,0))/1000),\"\")","v":""},{"$f":"IFERROR(IF(OR($C$67=FALSE,LEFT($B62,3)<>\"NOX\"),CH54*INDEX('Damage costs'!$O$16:$O$43,MATCH($B62,'Damage costs'!$C$16:$C$43,0))/1000,CH54*INDEX('Damage costs'!$S$16:$S$43,MATCH($B62,'Damage costs'!$C$16:$C$43,0))/1000),\"\")","v":""},{"$f":"IFERROR(IF(OR($C$67=FALSE,LEFT($B62,3)<>\"NOX\"),CI54*INDEX('Damage costs'!$O$16:$O$43,MATCH($B62,'Damage costs'!$C$16:$C$43,0))/1000,CI54*INDEX('Damage costs'!$S$16:$S$43,MATCH($B62,'Damage costs'!$C$16:$C$43,0))/1000),\"\")","v":""},{"$f":"IFERROR(IF(OR($C$67=FALSE,LEFT($B62,3)<>\"NOX\"),CJ54*INDEX('Damage costs'!$O$16:$O$43,MATCH($B62,'Damage costs'!$C$16:$C$43,0))/1000,CJ54*INDEX('Damage costs'!$S$16:$S$43,MATCH($B62,'Damage costs'!$C$16:$C$43,0))/1000),\"\")","v":""},{"$f":"IFERROR(IF(OR($C$67=FALSE,LEFT($B62,3)<>\"NOX\"),CK54*INDEX('Damage costs'!$O$16:$O$43,MATCH($B62,'Damage costs'!$C$16:$C$43,0))/1000,CK54*INDEX('Damage costs'!$S$16:$S$43,MATCH($B62,'Damage costs'!$C$16:$C$43,0))/1000),\"\")","v":""},{"$f":"IFERROR(IF(OR($C$67=FALSE,LEFT($B62,3)<>\"NOX\"),CL54*INDEX('Damage costs'!$O$16:$O$43,MATCH($B62,'Damage costs'!$C$16:$C$43,0))/1000,CL54*INDEX('Damage costs'!$S$16:$S$43,MATCH($B62,'Damage costs'!$C$16:$C$43,0))/1000),\"\")","v":""},{"$f":"IFERROR(IF(OR($C$67=FALSE,LEFT($B62,3)<>\"NOX\"),CM54*INDEX('Damage costs'!$O$16:$O$43,MATCH($B62,'Damage costs'!$C$16:$C$43,0))/1000,CM54*INDEX('Damage costs'!$S$16:$S$43,MATCH($B62,'Damage costs'!$C$16:$C$43,0))/1000),\"\")","v":""},{"$f":"IFERROR(IF(OR($C$67=FALSE,LEFT($B62,3)<>\"NOX\"),CN54*INDEX('Damage costs'!$O$16:$O$43,MATCH($B62,'Damage costs'!$C$16:$C$43,0))/1000,CN54*INDEX('Damage costs'!$S$16:$S$43,MATCH($B62,'Damage costs'!$C$16:$C$43,0))/1000),\"\")","v":""},{"$f":"IFERROR(IF(OR($C$67=FALSE,LEFT($B62,3)<>\"NOX\"),CO54*INDEX('Damage costs'!$O$16:$O$43,MATCH($B62,'Damage costs'!$C$16:$C$43,0))/1000,CO54*INDEX('Damage costs'!$S$16:$S$43,MATCH($B62,'Damage costs'!$C$16:$C$43,0))/1000),\"\")","v":""},{"$f":"IFERROR(IF(OR($C$67=FALSE,LEFT($B62,3)<>\"NOX\"),CP54*INDEX('Damage costs'!$O$16:$O$43,MATCH($B62,'Damage costs'!$C$16:$C$43,0))/1000,CP54*INDEX('Damage costs'!$S$16:$S$43,MATCH($B62,'Damage costs'!$C$16:$C$43,0))/1000),\"\")","v":""},{"$f":"IFERROR(IF(OR($C$67=FALSE,LEFT($B62,3)<>\"NOX\"),CQ54*INDEX('Damage costs'!$O$16:$O$43,MATCH($B62,'Damage costs'!$C$16:$C$43,0))/1000,CQ54*INDEX('Damage costs'!$S$16:$S$43,MATCH($B62,'Damage costs'!$C$16:$C$43,0))/1000),\"\")","v":""},{"$f":"IFERROR(IF(OR($C$67=FALSE,LEFT($B62,3)<>\"NOX\"),CR54*INDEX('Damage costs'!$O$16:$O$43,MATCH($B62,'Damage costs'!$C$16:$C$43,0))/1000,CR54*INDEX('Damage costs'!$S$16:$S$43,MATCH($B62,'Damage costs'!$C$16:$C$43,0))/1000),\"\")","v":""},{"$f":"IFERROR(IF(OR($C$67=FALSE,LEFT($B62,3)<>\"NOX\"),CS54*INDEX('Damage costs'!$O$16:$O$43,MATCH($B62,'Damage costs'!$C$16:$C$43,0))/1000,CS54*INDEX('Damage costs'!$S$16:$S$43,MATCH($B62,'Damage costs'!$C$16:$C$43,0))/1000),\"\")","v":""},{"$f":"IFERROR(IF(OR($C$67=FALSE,LEFT($B62,3)<>\"NOX\"),CT54*INDEX('Damage costs'!$O$16:$O$43,MATCH($B62,'Damage costs'!$C$16:$C$43,0))/1000,CT54*INDEX('Damage costs'!$S$16:$S$43,MATCH($B62,'Damage costs'!$C$16:$C$43,0))/1000),\"\")","v":""},{"$f":"IFERROR(IF(OR($C$67=FALSE,LEFT($B62,3)<>\"NOX\"),CU54*INDEX('Damage costs'!$O$16:$O$43,MATCH($B62,'Damage costs'!$C$16:$C$43,0))/1000,CU54*INDEX('Damage costs'!$S$16:$S$43,MATCH($B62,'Damage costs'!$C$16:$C$43,0))/1000),\"\")","v":""},{"$f":"IFERROR(IF(OR($C$67=FALSE,LEFT($B62,3)<>\"NOX\"),CV54*INDEX('Damage costs'!$O$16:$O$43,MATCH($B62,'Damage costs'!$C$16:$C$43,0))/1000,CV54*INDEX('Damage costs'!$S$16:$S$43,MATCH($B62,'Damage costs'!$C$16:$C$43,0))/1000),\"\")","v":""},{"$f":"IFERROR(IF(OR($C$67=FALSE,LEFT($B62,3)<>\"NOX\"),CW54*INDEX('Damage costs'!$O$16:$O$43,MATCH($B62,'Damage costs'!$C$16:$C$43,0))/1000,CW54*INDEX('Damage costs'!$S$16:$S$43,MATCH($B62,'Damage costs'!$C$16:$C$43,0))/1000),\"\")","v":""},{"$f":"IFERROR(IF(OR($C$67=FALSE,LEFT($B62,3)<>\"NOX\"),CX54*INDEX('Damage costs'!$O$16:$O$43,MATCH($B62,'Damage costs'!$C$16:$C$43,0))/1000,CX54*INDEX('Damage costs'!$S$16:$S$43,MATCH($B62,'Damage costs'!$C$16:$C$43,0))/1000),\"\")","v":""},{"$f":"IFERROR(IF(OR($C$67=FALSE,LEFT($B62,3)<>\"NOX\"),CY54*INDEX('Damage costs'!$O$16:$O$43,MATCH($B62,'Damage costs'!$C$16:$C$43,0))/1000,CY54*INDEX('Damage costs'!$S$16:$S$43,MATCH($B62,'Damage costs'!$C$16:$C$43,0))/1000),\"\")","v":""}]
[null,0,"£000's",{"$f":"IFERROR(IF(OR($C$67=FALSE,LEFT($B63,3)<>\"NOX\"),D55*INDEX('Damage costs'!$O$16:$O$43,MATCH($B63,'Damage costs'!$C$16:$C$43,0))/1000,D55*INDEX('Damage costs'!$S$16:$S$43,MATCH($B63,'Damage costs'!$C$16:$C$43,0))/1000),\"\")","v":""},{"$f":"IFERROR(IF(OR($C$67=FALSE,LEFT($B63,3)<>\"NOX\"),E55*INDEX('Damage costs'!$O$16:$O$43,MATCH($B63,'Damage costs'!$C$16:$C$43,0))/1000,E55*INDEX('Damage costs'!$S$16:$S$43,MATCH($B63,'Damage costs'!$C$16:$C$43,0))/1000),\"\")","v":""},{"$f":"IFERROR(IF(OR($C$67=FALSE,LEFT($B63,3)<>\"NOX\"),F55*INDEX('Damage costs'!$O$16:$O$43,MATCH($B63,'Damage costs'!$C$16:$C$43,0))/1000,F55*INDEX('Damage costs'!$S$16:$S$43,MATCH($B63,'Damage costs'!$C$16:$C$43,0))/1000),\"\")","v":""},{"$f":"IFERROR(IF(OR($C$67=FALSE,LEFT($B63,3)<>\"NOX\"),G55*INDEX('Damage costs'!$O$16:$O$43,MATCH($B63,'Damage costs'!$C$16:$C$43,0))/1000,G55*INDEX('Damage costs'!$S$16:$S$43,MATCH($B63,'Damage costs'!$C$16:$C$43,0))/1000),\"\")","v":""},{"$f":"IFERROR(IF(OR($C$67=FALSE,LEFT($B63,3)<>\"NOX\"),H55*INDEX('Damage costs'!$O$16:$O$43,MATCH($B63,'Damage costs'!$C$16:$C$43,0))/1000,H55*INDEX('Damage costs'!$S$16:$S$43,MATCH($B63,'Damage costs'!$C$16:$C$43,0))/1000),\"\")","v":""},{"$f":"IFERROR(IF(OR($C$67=FALSE,LEFT($B63,3)<>\"NOX\"),I55*INDEX('Damage costs'!$O$16:$O$43,MATCH($B63,'Damage costs'!$C$16:$C$43,0))/1000,I55*INDEX('Damage costs'!$S$16:$S$43,MATCH($B63,'Damage costs'!$C$16:$C$43,0))/1000),\"\")","v":""},{"$f":"IFERROR(IF(OR($C$67=FALSE,LEFT($B63,3)<>\"NOX\"),J55*INDEX('Damage costs'!$O$16:$O$43,MATCH($B63,'Damage costs'!$C$16:$C$43,0))/1000,J55*INDEX('Damage costs'!$S$16:$S$43,MATCH($B63,'Damage costs'!$C$16:$C$43,0))/1000),\"\")","v":""},{"$f":"IFERROR(IF(OR($C$67=FALSE,LEFT($B63,3)<>\"NOX\"),K55*INDEX('Damage costs'!$O$16:$O$43,MATCH($B63,'Damage costs'!$C$16:$C$43,0))/1000,K55*INDEX('Damage costs'!$S$16:$S$43,MATCH($B63,'Damage costs'!$C$16:$C$43,0))/1000),\"\")","v":""},{"$f":"IFERROR(IF(OR($C$67=FALSE,LEFT($B63,3)<>\"NOX\"),L55*INDEX('Damage costs'!$O$16:$O$43,MATCH($B63,'Damage costs'!$C$16:$C$43,0))/1000,L55*INDEX('Damage costs'!$S$16:$S$43,MATCH($B63,'Damage costs'!$C$16:$C$43,0))/1000),\"\")","v":""},{"$f":"IFERROR(IF(OR($C$67=FALSE,LEFT($B63,3)<>\"NOX\"),M55*INDEX('Damage costs'!$O$16:$O$43,MATCH($B63,'Damage costs'!$C$16:$C$43,0))/1000,M55*INDEX('Damage costs'!$S$16:$S$43,MATCH($B63,'Damage costs'!$C$16:$C$43,0))/1000),\"\")","v":""},{"$f":"IFERROR(IF(OR($C$67=FALSE,LEFT($B63,3)<>\"NOX\"),N55*INDEX('Damage costs'!$O$16:$O$43,MATCH($B63,'Damage costs'!$C$16:$C$43,0))/1000,N55*INDEX('Damage costs'!$S$16:$S$43,MATCH($B63,'Damage costs'!$C$16:$C$43,0))/1000),\"\")","v":""},{"$f":"IFERROR(IF(OR($C$67=FALSE,LEFT($B63,3)<>\"NOX\"),O55*INDEX('Damage costs'!$O$16:$O$43,MATCH($B63,'Damage costs'!$C$16:$C$43,0))/1000,O55*INDEX('Damage costs'!$S$16:$S$43,MATCH($B63,'Damage costs'!$C$16:$C$43,0))/1000),\"\")","v":""},{"$f":"IFERROR(IF(OR($C$67=FALSE,LEFT($B63,3)<>\"NOX\"),P55*INDEX('Damage costs'!$O$16:$O$43,MATCH($B63,'Damage costs'!$C$16:$C$43,0))/1000,P55*INDEX('Damage costs'!$S$16:$S$43,MATCH($B63,'Damage costs'!$C$16:$C$43,0))/1000),\"\")","v":""},{"$f":"IFERROR(IF(OR($C$67=FALSE,LEFT($B63,3)<>\"NOX\"),Q55*INDEX('Damage costs'!$O$16:$O$43,MATCH($B63,'Damage costs'!$C$16:$C$43,0))/1000,Q55*INDEX('Damage costs'!$S$16:$S$43,MATCH($B63,'Damage costs'!$C$16:$C$43,0))/1000),\"\")","v":""},{"$f":"IFERROR(IF(OR($C$67=FALSE,LEFT($B63,3)<>\"NOX\"),R55*INDEX('Damage costs'!$O$16:$O$43,MATCH($B63,'Damage costs'!$C$16:$C$43,0))/1000,R55*INDEX('Damage costs'!$S$16:$S$43,MATCH($B63,'Damage costs'!$C$16:$C$43,0))/1000),\"\")","v":""},{"$f":"IFERROR(IF(OR($C$67=FALSE,LEFT($B63,3)<>\"NOX\"),S55*INDEX('Damage costs'!$O$16:$O$43,MATCH($B63,'Damage costs'!$C$16:$C$43,0))/1000,S55*INDEX('Damage costs'!$S$16:$S$43,MATCH($B63,'Damage costs'!$C$16:$C$43,0))/1000),\"\")","v":""},{"$f":"IFERROR(IF(OR($C$67=FALSE,LEFT($B63,3)<>\"NOX\"),T55*INDEX('Damage costs'!$O$16:$O$43,MATCH($B63,'Damage costs'!$C$16:$C$43,0))/1000,T55*INDEX('Damage costs'!$S$16:$S$43,MATCH($B63,'Damage costs'!$C$16:$C$43,0))/1000),\"\")","v":""},{"$f":"IFERROR(IF(OR($C$67=FALSE,LEFT($B63,3)<>\"NOX\"),U55*INDEX('Damage costs'!$O$16:$O$43,MATCH($B63,'Damage costs'!$C$16:$C$43,0))/1000,U55*INDEX('Damage costs'!$S$16:$S$43,MATCH($B63,'Damage costs'!$C$16:$C$43,0))/1000),\"\")","v":""},{"$f":"IFERROR(IF(OR($C$67=FALSE,LEFT($B63,3)<>\"NOX\"),V55*INDEX('Damage costs'!$O$16:$O$43,MATCH($B63,'Damage costs'!$C$16:$C$43,0))/1000,V55*INDEX('Damage costs'!$S$16:$S$43,MATCH($B63,'Damage costs'!$C$16:$C$43,0))/1000),\"\")","v":""},{"$f":"IFERROR(IF(OR($C$67=FALSE,LEFT($B63,3)<>\"NOX\"),W55*INDEX('Damage costs'!$O$16:$O$43,MATCH($B63,'Damage costs'!$C$16:$C$43,0))/1000,W55*INDEX('Damage costs'!$S$16:$S$43,MATCH($B63,'Damage costs'!$C$16:$C$43,0))/1000),\"\")","v":""},{"$f":"IFERROR(IF(OR($C$67=FALSE,LEFT($B63,3)<>\"NOX\"),X55*INDEX('Damage costs'!$O$16:$O$43,MATCH($B63,'Damage costs'!$C$16:$C$43,0))/1000,X55*INDEX('Damage costs'!$S$16:$S$43,MATCH($B63,'Damage costs'!$C$16:$C$43,0))/1000),\"\")","v":""},{"$f":"IFERROR(IF(OR($C$67=FALSE,LEFT($B63,3)<>\"NOX\"),Y55*INDEX('Damage costs'!$O$16:$O$43,MATCH($B63,'Damage costs'!$C$16:$C$43,0))/1000,Y55*INDEX('Damage costs'!$S$16:$S$43,MATCH($B63,'Damage costs'!$C$16:$C$43,0))/1000),\"\")","v":""},{"$f":"IFERROR(IF(OR($C$67=FALSE,LEFT($B63,3)<>\"NOX\"),Z55*INDEX('Damage costs'!$O$16:$O$43,MATCH($B63,'Damage costs'!$C$16:$C$43,0))/1000,Z55*INDEX('Damage costs'!$S$16:$S$43,MATCH($B63,'Damage costs'!$C$16:$C$43,0))/1000),\"\")","v":""},{"$f":"IFERROR(IF(OR($C$67=FALSE,LEFT($B63,3)<>\"NOX\"),AA55*INDEX('Damage costs'!$O$16:$O$43,MATCH($B63,'Damage costs'!$C$16:$C$43,0))/1000,AA55*INDEX('Damage costs'!$S$16:$S$43,MATCH($B63,'Damage costs'!$C$16:$C$43,0))/1000),\"\")","v":""},{"$f":"IFERROR(IF(OR($C$67=FALSE,LEFT($B63,3)<>\"NOX\"),AB55*INDEX('Damage costs'!$O$16:$O$43,MATCH($B63,'Damage costs'!$C$16:$C$43,0))/1000,AB55*INDEX('Damage costs'!$S$16:$S$43,MATCH($B63,'Damage costs'!$C$16:$C$43,0))/1000),\"\")","v":""},{"$f":"IFERROR(IF(OR($C$67=FALSE,LEFT($B63,3)<>\"NOX\"),AC55*INDEX('Damage costs'!$O$16:$O$43,MATCH($B63,'Damage costs'!$C$16:$C$43,0))/1000,AC55*INDEX('Damage costs'!$S$16:$S$43,MATCH($B63,'Damage costs'!$C$16:$C$43,0))/1000),\"\")","v":""},{"$f":"IFERROR(IF(OR($C$67=FALSE,LEFT($B63,3)<>\"NOX\"),AD55*INDEX('Damage costs'!$O$16:$O$43,MATCH($B63,'Damage costs'!$C$16:$C$43,0))/1000,AD55*INDEX('Damage costs'!$S$16:$S$43,MATCH($B63,'Damage costs'!$C$16:$C$43,0))/1000),\"\")","v":""},{"$f":"IFERROR(IF(OR($C$67=FALSE,LEFT($B63,3)<>\"NOX\"),AE55*INDEX('Damage costs'!$O$16:$O$43,MATCH($B63,'Damage costs'!$C$16:$C$43,0))/1000,AE55*INDEX('Damage costs'!$S$16:$S$43,MATCH($B63,'Damage costs'!$C$16:$C$43,0))/1000),\"\")","v":""},{"$f":"IFERROR(IF(OR($C$67=FALSE,LEFT($B63,3)<>\"NOX\"),AF55*INDEX('Damage costs'!$O$16:$O$43,MATCH($B63,'Damage costs'!$C$16:$C$43,0))/1000,AF55*INDEX('Damage costs'!$S$16:$S$43,MATCH($B63,'Damage costs'!$C$16:$C$43,0))/1000),\"\")","v":""},{"$f":"IFERROR(IF(OR($C$67=FALSE,LEFT($B63,3)<>\"NOX\"),AG55*INDEX('Damage costs'!$O$16:$O$43,MATCH($B63,'Damage costs'!$C$16:$C$43,0))/1000,AG55*INDEX('Damage costs'!$S$16:$S$43,MATCH($B63,'Damage costs'!$C$16:$C$43,0))/1000),\"\")","v":""},{"$f":"IFERROR(IF(OR($C$67=FALSE,LEFT($B63,3)<>\"NOX\"),AH55*INDEX('Damage costs'!$O$16:$O$43,MATCH($B63,'Damage costs'!$C$16:$C$43,0))/1000,AH55*INDEX('Damage costs'!$S$16:$S$43,MATCH($B63,'Damage costs'!$C$16:$C$43,0))/1000),\"\")","v":""},{"$f":"IFERROR(IF(OR($C$67=FALSE,LEFT($B63,3)<>\"NOX\"),AI55*INDEX('Damage costs'!$O$16:$O$43,MATCH($B63,'Damage costs'!$C$16:$C$43,0))/1000,AI55*INDEX('Damage costs'!$S$16:$S$43,MATCH($B63,'Damage costs'!$C$16:$C$43,0))/1000),\"\")","v":""},{"$f":"IFERROR(IF(OR($C$67=FALSE,LEFT($B63,3)<>\"NOX\"),AJ55*INDEX('Damage costs'!$O$16:$O$43,MATCH($B63,'Damage costs'!$C$16:$C$43,0))/1000,AJ55*INDEX('Damage costs'!$S$16:$S$43,MATCH($B63,'Damage costs'!$C$16:$C$43,0))/1000),\"\")","v":""},{"$f":"IFERROR(IF(OR($C$67=FALSE,LEFT($B63,3)<>\"NOX\"),AK55*INDEX('Damage costs'!$O$16:$O$43,MATCH($B63,'Damage costs'!$C$16:$C$43,0))/1000,AK55*INDEX('Damage costs'!$S$16:$S$43,MATCH($B63,'Damage costs'!$C$16:$C$43,0))/1000),\"\")","v":""},{"$f":"IFERROR(IF(OR($C$67=FALSE,LEFT($B63,3)<>\"NOX\"),AL55*INDEX('Damage costs'!$O$16:$O$43,MATCH($B63,'Damage costs'!$C$16:$C$43,0))/1000,AL55*INDEX('Damage costs'!$S$16:$S$43,MATCH($B63,'Damage costs'!$C$16:$C$43,0))/1000),\"\")","v":""},{"$f":"IFERROR(IF(OR($C$67=FALSE,LEFT($B63,3)<>\"NOX\"),AM55*INDEX('Damage costs'!$O$16:$O$43,MATCH($B63,'Damage costs'!$C$16:$C$43,0))/1000,AM55*INDEX('Damage costs'!$S$16:$S$43,MATCH($B63,'Damage costs'!$C$16:$C$43,0))/1000),\"\")","v":""},{"$f":"IFERROR(IF(OR($C$67=FALSE,LEFT($B63,3)<>\"NOX\"),AN55*INDEX('Damage costs'!$O$16:$O$43,MATCH($B63,'Damage costs'!$C$16:$C$43,0))/1000,AN55*INDEX('Damage costs'!$S$16:$S$43,MATCH($B63,'Damage costs'!$C$16:$C$43,0))/1000),\"\")","v":""},{"$f":"IFERROR(IF(OR($C$67=FALSE,LEFT($B63,3)<>\"NOX\"),AO55*INDEX('Damage costs'!$O$16:$O$43,MATCH($B63,'Damage costs'!$C$16:$C$43,0))/1000,AO55*INDEX('Damage costs'!$S$16:$S$43,MATCH($B63,'Damage costs'!$C$16:$C$43,0))/1000),\"\")","v":""},{"$f":"IFERROR(IF(OR($C$67=FALSE,LEFT($B63,3)<>\"NOX\"),AP55*INDEX('Damage costs'!$O$16:$O$43,MATCH($B63,'Damage costs'!$C$16:$C$43,0))/1000,AP55*INDEX('Damage costs'!$S$16:$S$43,MATCH($B63,'Damage costs'!$C$16:$C$43,0))/1000),\"\")","v":""},{"$f":"IFERROR(IF(OR($C$67=FALSE,LEFT($B63,3)<>\"NOX\"),AQ55*INDEX('Damage costs'!$O$16:$O$43,MATCH($B63,'Damage costs'!$C$16:$C$43,0))/1000,AQ55*INDEX('Damage costs'!$S$16:$S$43,MATCH($B63,'Damage costs'!$C$16:$C$43,0))/1000),\"\")","v":""},{"$f":"IFERROR(IF(OR($C$67=FALSE,LEFT($B63,3)<>\"NOX\"),AR55*INDEX('Damage costs'!$O$16:$O$43,MATCH($B63,'Damage costs'!$C$16:$C$43,0))/1000,AR55*INDEX('Damage costs'!$S$16:$S$43,MATCH($B63,'Damage costs'!$C$16:$C$43,0))/1000),\"\")","v":""},{"$f":"IFERROR(IF(OR($C$67=FALSE,LEFT($B63,3)<>\"NOX\"),AS55*INDEX('Damage costs'!$O$16:$O$43,MATCH($B63,'Damage costs'!$C$16:$C$43,0))/1000,AS55*INDEX('Damage costs'!$S$16:$S$43,MATCH($B63,'Damage costs'!$C$16:$C$43,0))/1000),\"\")","v":""},{"$f":"IFERROR(IF(OR($C$67=FALSE,LEFT($B63,3)<>\"NOX\"),AT55*INDEX('Damage costs'!$O$16:$O$43,MATCH($B63,'Damage costs'!$C$16:$C$43,0))/1000,AT55*INDEX('Damage costs'!$S$16:$S$43,MATCH($B63,'Damage costs'!$C$16:$C$43,0))/1000),\"\")","v":""},{"$f":"IFERROR(IF(OR($C$67=FALSE,LEFT($B63,3)<>\"NOX\"),AU55*INDEX('Damage costs'!$O$16:$O$43,MATCH($B63,'Damage costs'!$C$16:$C$43,0))/1000,AU55*INDEX('Damage costs'!$S$16:$S$43,MATCH($B63,'Damage costs'!$C$16:$C$43,0))/1000),\"\")","v":""},{"$f":"IFERROR(IF(OR($C$67=FALSE,LEFT($B63,3)<>\"NOX\"),AV55*INDEX('Damage costs'!$O$16:$O$43,MATCH($B63,'Damage costs'!$C$16:$C$43,0))/1000,AV55*INDEX('Damage costs'!$S$16:$S$43,MATCH($B63,'Damage costs'!$C$16:$C$43,0))/1000),\"\")","v":""},{"$f":"IFERROR(IF(OR($C$67=FALSE,LEFT($B63,3)<>\"NOX\"),AW55*INDEX('Damage costs'!$O$16:$O$43,MATCH($B63,'Damage costs'!$C$16:$C$43,0))/1000,AW55*INDEX('Damage costs'!$S$16:$S$43,MATCH($B63,'Damage costs'!$C$16:$C$43,0))/1000),\"\")","v":""},{"$f":"IFERROR(IF(OR($C$67=FALSE,LEFT($B63,3)<>\"NOX\"),AX55*INDEX('Damage costs'!$O$16:$O$43,MATCH($B63,'Damage costs'!$C$16:$C$43,0))/1000,AX55*INDEX('Damage costs'!$S$16:$S$43,MATCH($B63,'Damage costs'!$C$16:$C$43,0))/1000),\"\")","v":""},{"$f":"IFERROR(IF(OR($C$67=FALSE,LEFT($B63,3)<>\"NOX\"),AY55*INDEX('Damage costs'!$O$16:$O$43,MATCH($B63,'Damage costs'!$C$16:$C$43,0))/1000,AY55*INDEX('Damage costs'!$S$16:$S$43,MATCH($B63,'Damage costs'!$C$16:$C$43,0))/1000),\"\")","v":""},{"$f":"IFERROR(IF(OR($C$67=FALSE,LEFT($B63,3)<>\"NOX\"),AZ55*INDEX('Damage costs'!$O$16:$O$43,MATCH($B63,'Damage costs'!$C$16:$C$43,0))/1000,AZ55*INDEX('Damage costs'!$S$16:$S$43,MATCH($B63,'Damage costs'!$C$16:$C$43,0))/1000),\"\")","v":""},{"$f":"IFERROR(IF(OR($C$67=FALSE,LEFT($B63,3)<>\"NOX\"),BA55*INDEX('Damage costs'!$O$16:$O$43,MATCH($B63,'Damage costs'!$C$16:$C$43,0))/1000,BA55*INDEX('Damage costs'!$S$16:$S$43,MATCH($B63,'Damage costs'!$C$16:$C$43,0))/1000),\"\")","v":""},{"$f":"IFERROR(IF(OR($C$67=FALSE,LEFT($B63,3)<>\"NOX\"),BB55*INDEX('Damage costs'!$O$16:$O$43,MATCH($B63,'Damage costs'!$C$16:$C$43,0))/1000,BB55*INDEX('Damage costs'!$S$16:$S$43,MATCH($B63,'Damage costs'!$C$16:$C$43,0))/1000),\"\")","v":""},{"$f":"IFERROR(IF(OR($C$67=FALSE,LEFT($B63,3)<>\"NOX\"),BC55*INDEX('Damage costs'!$O$16:$O$43,MATCH($B63,'Damage costs'!$C$16:$C$43,0))/1000,BC55*INDEX('Damage costs'!$S$16:$S$43,MATCH($B63,'Damage costs'!$C$16:$C$43,0))/1000),\"\")","v":""},{"$f":"IFERROR(IF(OR($C$67=FALSE,LEFT($B63,3)<>\"NOX\"),BD55*INDEX('Damage costs'!$O$16:$O$43,MATCH($B63,'Damage costs'!$C$16:$C$43,0))/1000,BD55*INDEX('Damage costs'!$S$16:$S$43,MATCH($B63,'Damage costs'!$C$16:$C$43,0))/1000),\"\")","v":""},{"$f":"IFERROR(IF(OR($C$67=FALSE,LEFT($B63,3)<>\"NOX\"),BE55*INDEX('Damage costs'!$O$16:$O$43,MATCH($B63,'Damage costs'!$C$16:$C$43,0))/1000,BE55*INDEX('Damage costs'!$S$16:$S$43,MATCH($B63,'Damage costs'!$C$16:$C$43,0))/1000),\"\")","v":""},{"$f":"IFERROR(IF(OR($C$67=FALSE,LEFT($B63,3)<>\"NOX\"),BF55*INDEX('Damage costs'!$O$16:$O$43,MATCH($B63,'Damage costs'!$C$16:$C$43,0))/1000,BF55*INDEX('Damage costs'!$S$16:$S$43,MATCH($B63,'Damage costs'!$C$16:$C$43,0))/1000),\"\")","v":""},{"$f":"IFERROR(IF(OR($C$67=FALSE,LEFT($B63,3)<>\"NOX\"),BG55*INDEX('Damage costs'!$O$16:$O$43,MATCH($B63,'Damage costs'!$C$16:$C$43,0))/1000,BG55*INDEX('Damage costs'!$S$16:$S$43,MATCH($B63,'Damage costs'!$C$16:$C$43,0))/1000),\"\")","v":""},{"$f":"IFERROR(IF(OR($C$67=FALSE,LEFT($B63,3)<>\"NOX\"),BH55*INDEX('Damage costs'!$O$16:$O$43,MATCH($B63,'Damage costs'!$C$16:$C$43,0))/1000,BH55*INDEX('Damage costs'!$S$16:$S$43,MATCH($B63,'Damage costs'!$C$16:$C$43,0))/1000),\"\")","v":""},{"$f":"IFERROR(IF(OR($C$67=FALSE,LEFT($B63,3)<>\"NOX\"),BI55*INDEX('Damage costs'!$O$16:$O$43,MATCH($B63,'Damage costs'!$C$16:$C$43,0))/1000,BI55*INDEX('Damage costs'!$S$16:$S$43,MATCH($B63,'Damage costs'!$C$16:$C$43,0))/1000),\"\")","v":""},{"$f":"IFERROR(IF(OR($C$67=FALSE,LEFT($B63,3)<>\"NOX\"),BJ55*INDEX('Damage costs'!$O$16:$O$43,MATCH($B63,'Damage costs'!$C$16:$C$43,0))/1000,BJ55*INDEX('Damage costs'!$S$16:$S$43,MATCH($B63,'Damage costs'!$C$16:$C$43,0))/1000),\"\")","v":""},{"$f":"IFERROR(IF(OR($C$67=FALSE,LEFT($B63,3)<>\"NOX\"),BK55*INDEX('Damage costs'!$O$16:$O$43,MATCH($B63,'Damage costs'!$C$16:$C$43,0))/1000,BK55*INDEX('Damage costs'!$S$16:$S$43,MATCH($B63,'Damage costs'!$C$16:$C$43,0))/1000),\"\")","v":""},{"$f":"IFERROR(IF(OR($C$67=FALSE,LEFT($B63,3)<>\"NOX\"),BL55*INDEX('Damage costs'!$O$16:$O$43,MATCH($B63,'Damage costs'!$C$16:$C$43,0))/1000,BL55*INDEX('Damage costs'!$S$16:$S$43,MATCH($B63,'Damage costs'!$C$16:$C$43,0))/1000),\"\")","v":""},{"$f":"IFERROR(IF(OR($C$67=FALSE,LEFT($B63,3)<>\"NOX\"),BM55*INDEX('Damage costs'!$O$16:$O$43,MATCH($B63,'Damage costs'!$C$16:$C$43,0))/1000,BM55*INDEX('Damage costs'!$S$16:$S$43,MATCH($B63,'Damage costs'!$C$16:$C$43,0))/1000),\"\")","v":""},{"$f":"IFERROR(IF(OR($C$67=FALSE,LEFT($B63,3)<>\"NOX\"),BN55*INDEX('Damage costs'!$O$16:$O$43,MATCH($B63,'Damage costs'!$C$16:$C$43,0))/1000,BN55*INDEX('Damage costs'!$S$16:$S$43,MATCH($B63,'Damage costs'!$C$16:$C$43,0))/1000),\"\")","v":""},{"$f":"IFERROR(IF(OR($C$67=FALSE,LEFT($B63,3)<>\"NOX\"),BO55*INDEX('Damage costs'!$O$16:$O$43,MATCH($B63,'Damage costs'!$C$16:$C$43,0))/1000,BO55*INDEX('Damage costs'!$S$16:$S$43,MATCH($B63,'Damage costs'!$C$16:$C$43,0))/1000),\"\")","v":""},{"$f":"IFERROR(IF(OR($C$67=FALSE,LEFT($B63,3)<>\"NOX\"),BP55*INDEX('Damage costs'!$O$16:$O$43,MATCH($B63,'Damage costs'!$C$16:$C$43,0))/1000,BP55*INDEX('Damage costs'!$S$16:$S$43,MATCH($B63,'Damage costs'!$C$16:$C$43,0))/1000),\"\")","v":""},{"$f":"IFERROR(IF(OR($C$67=FALSE,LEFT($B63,3)<>\"NOX\"),BQ55*INDEX('Damage costs'!$O$16:$O$43,MATCH($B63,'Damage costs'!$C$16:$C$43,0))/1000,BQ55*INDEX('Damage costs'!$S$16:$S$43,MATCH($B63,'Damage costs'!$C$16:$C$43,0))/1000),\"\")","v":""},{"$f":"IFERROR(IF(OR($C$67=FALSE,LEFT($B63,3)<>\"NOX\"),BR55*INDEX('Damage costs'!$O$16:$O$43,MATCH($B63,'Damage costs'!$C$16:$C$43,0))/1000,BR55*INDEX('Damage costs'!$S$16:$S$43,MATCH($B63,'Damage costs'!$C$16:$C$43,0))/1000),\"\")","v":""},{"$f":"IFERROR(IF(OR($C$67=FALSE,LEFT($B63,3)<>\"NOX\"),BS55*INDEX('Damage costs'!$O$16:$O$43,MATCH($B63,'Damage costs'!$C$16:$C$43,0))/1000,BS55*INDEX('Damage costs'!$S$16:$S$43,MATCH($B63,'Damage costs'!$C$16:$C$43,0))/1000),\"\")","v":""},{"$f":"IFERROR(IF(OR($C$67=FALSE,LEFT($B63,3)<>\"NOX\"),BT55*INDEX('Damage costs'!$O$16:$O$43,MATCH($B63,'Damage costs'!$C$16:$C$43,0))/1000,BT55*INDEX('Damage costs'!$S$16:$S$43,MATCH($B63,'Damage costs'!$C$16:$C$43,0))/1000),\"\")","v":""},{"$f":"IFERROR(IF(OR($C$67=FALSE,LEFT($B63,3)<>\"NOX\"),BU55*INDEX('Damage costs'!$O$16:$O$43,MATCH($B63,'Damage costs'!$C$16:$C$43,0))/1000,BU55*INDEX('Damage costs'!$S$16:$S$43,MATCH($B63,'Damage costs'!$C$16:$C$43,0))/1000),\"\")","v":""},{"$f":"IFERROR(IF(OR($C$67=FALSE,LEFT($B63,3)<>\"NOX\"),BV55*INDEX('Damage costs'!$O$16:$O$43,MATCH($B63,'Damage costs'!$C$16:$C$43,0))/1000,BV55*INDEX('Damage costs'!$S$16:$S$43,MATCH($B63,'Damage costs'!$C$16:$C$43,0))/1000),\"\")","v":""},{"$f":"IFERROR(IF(OR($C$67=FALSE,LEFT($B63,3)<>\"NOX\"),BW55*INDEX('Damage costs'!$O$16:$O$43,MATCH($B63,'Damage costs'!$C$16:$C$43,0))/1000,BW55*INDEX('Damage costs'!$S$16:$S$43,MATCH($B63,'Damage costs'!$C$16:$C$43,0))/1000),\"\")","v":""},{"$f":"IFERROR(IF(OR($C$67=FALSE,LEFT($B63,3)<>\"NOX\"),BX55*INDEX('Damage costs'!$O$16:$O$43,MATCH($B63,'Damage costs'!$C$16:$C$43,0))/1000,BX55*INDEX('Damage costs'!$S$16:$S$43,MATCH($B63,'Damage costs'!$C$16:$C$43,0))/1000),\"\")","v":""},{"$f":"IFERROR(IF(OR($C$67=FALSE,LEFT($B63,3)<>\"NOX\"),BY55*INDEX('Damage costs'!$O$16:$O$43,MATCH($B63,'Damage costs'!$C$16:$C$43,0))/1000,BY55*INDEX('Damage costs'!$S$16:$S$43,MATCH($B63,'Damage costs'!$C$16:$C$43,0))/1000),\"\")","v":""},{"$f":"IFERROR(IF(OR($C$67=FALSE,LEFT($B63,3)<>\"NOX\"),BZ55*INDEX('Damage costs'!$O$16:$O$43,MATCH($B63,'Damage costs'!$C$16:$C$43,0))/1000,BZ55*INDEX('Damage costs'!$S$16:$S$43,MATCH($B63,'Damage costs'!$C$16:$C$43,0))/1000),\"\")","v":""},{"$f":"IFERROR(IF(OR($C$67=FALSE,LEFT($B63,3)<>\"NOX\"),CA55*INDEX('Damage costs'!$O$16:$O$43,MATCH($B63,'Damage costs'!$C$16:$C$43,0))/1000,CA55*INDEX('Damage costs'!$S$16:$S$43,MATCH($B63,'Damage costs'!$C$16:$C$43,0))/1000),\"\")","v":""},{"$f":"IFERROR(IF(OR($C$67=FALSE,LEFT($B63,3)<>\"NOX\"),CB55*INDEX('Damage costs'!$O$16:$O$43,MATCH($B63,'Damage costs'!$C$16:$C$43,0))/1000,CB55*INDEX('Damage costs'!$S$16:$S$43,MATCH($B63,'Damage costs'!$C$16:$C$43,0))/1000),\"\")","v":""},{"$f":"IFERROR(IF(OR($C$67=FALSE,LEFT($B63,3)<>\"NOX\"),CC55*INDEX('Damage costs'!$O$16:$O$43,MATCH($B63,'Damage costs'!$C$16:$C$43,0))/1000,CC55*INDEX('Damage costs'!$S$16:$S$43,MATCH($B63,'Damage costs'!$C$16:$C$43,0))/1000),\"\")","v":""},{"$f":"IFERROR(IF(OR($C$67=FALSE,LEFT($B63,3)<>\"NOX\"),CD55*INDEX('Damage costs'!$O$16:$O$43,MATCH($B63,'Damage costs'!$C$16:$C$43,0))/1000,CD55*INDEX('Damage costs'!$S$16:$S$43,MATCH($B63,'Damage costs'!$C$16:$C$43,0))/1000),\"\")","v":""},{"$f":"IFERROR(IF(OR($C$67=FALSE,LEFT($B63,3)<>\"NOX\"),CE55*INDEX('Damage costs'!$O$16:$O$43,MATCH($B63,'Damage costs'!$C$16:$C$43,0))/1000,CE55*INDEX('Damage costs'!$S$16:$S$43,MATCH($B63,'Damage costs'!$C$16:$C$43,0))/1000),\"\")","v":""},{"$f":"IFERROR(IF(OR($C$67=FALSE,LEFT($B63,3)<>\"NOX\"),CF55*INDEX('Damage costs'!$O$16:$O$43,MATCH($B63,'Damage costs'!$C$16:$C$43,0))/1000,CF55*INDEX('Damage costs'!$S$16:$S$43,MATCH($B63,'Damage costs'!$C$16:$C$43,0))/1000),\"\")","v":""},{"$f":"IFERROR(IF(OR($C$67=FALSE,LEFT($B63,3)<>\"NOX\"),CG55*INDEX('Damage costs'!$O$16:$O$43,MATCH($B63,'Damage costs'!$C$16:$C$43,0))/1000,CG55*INDEX('Damage costs'!$S$16:$S$43,MATCH($B63,'Damage costs'!$C$16:$C$43,0))/1000),\"\")","v":""},{"$f":"IFERROR(IF(OR($C$67=FALSE,LEFT($B63,3)<>\"NOX\"),CH55*INDEX('Damage costs'!$O$16:$O$43,MATCH($B63,'Damage costs'!$C$16:$C$43,0))/1000,CH55*INDEX('Damage costs'!$S$16:$S$43,MATCH($B63,'Damage costs'!$C$16:$C$43,0))/1000),\"\")","v":""},{"$f":"IFERROR(IF(OR($C$67=FALSE,LEFT($B63,3)<>\"NOX\"),CI55*INDEX('Damage costs'!$O$16:$O$43,MATCH($B63,'Damage costs'!$C$16:$C$43,0))/1000,CI55*INDEX('Damage costs'!$S$16:$S$43,MATCH($B63,'Damage costs'!$C$16:$C$43,0))/1000),\"\")","v":""},{"$f":"IFERROR(IF(OR($C$67=FALSE,LEFT($B63,3)<>\"NOX\"),CJ55*INDEX('Damage costs'!$O$16:$O$43,MATCH($B63,'Damage costs'!$C$16:$C$43,0))/1000,CJ55*INDEX('Damage costs'!$S$16:$S$43,MATCH($B63,'Damage costs'!$C$16:$C$43,0))/1000),\"\")","v":""},{"$f":"IFERROR(IF(OR($C$67=FALSE,LEFT($B63,3)<>\"NOX\"),CK55*INDEX('Damage costs'!$O$16:$O$43,MATCH($B63,'Damage costs'!$C$16:$C$43,0))/1000,CK55*INDEX('Damage costs'!$S$16:$S$43,MATCH($B63,'Damage costs'!$C$16:$C$43,0))/1000),\"\")","v":""},{"$f":"IFERROR(IF(OR($C$67=FALSE,LEFT($B63,3)<>\"NOX\"),CL55*INDEX('Damage costs'!$O$16:$O$43,MATCH($B63,'Damage costs'!$C$16:$C$43,0))/1000,CL55*INDEX('Damage costs'!$S$16:$S$43,MATCH($B63,'Damage costs'!$C$16:$C$43,0))/1000),\"\")","v":""},{"$f":"IFERROR(IF(OR($C$67=FALSE,LEFT($B63,3)<>\"NOX\"),CM55*INDEX('Damage costs'!$O$16:$O$43,MATCH($B63,'Damage costs'!$C$16:$C$43,0))/1000,CM55*INDEX('Damage costs'!$S$16:$S$43,MATCH($B63,'Damage costs'!$C$16:$C$43,0))/1000),\"\")","v":""},{"$f":"IFERROR(IF(OR($C$67=FALSE,LEFT($B63,3)<>\"NOX\"),CN55*INDEX('Damage costs'!$O$16:$O$43,MATCH($B63,'Damage costs'!$C$16:$C$43,0))/1000,CN55*INDEX('Damage costs'!$S$16:$S$43,MATCH($B63,'Damage costs'!$C$16:$C$43,0))/1000),\"\")","v":""},{"$f":"IFERROR(IF(OR($C$67=FALSE,LEFT($B63,3)<>\"NOX\"),CO55*INDEX('Damage costs'!$O$16:$O$43,MATCH($B63,'Damage costs'!$C$16:$C$43,0))/1000,CO55*INDEX('Damage costs'!$S$16:$S$43,MATCH($B63,'Damage costs'!$C$16:$C$43,0))/1000),\"\")","v":""},{"$f":"IFERROR(IF(OR($C$67=FALSE,LEFT($B63,3)<>\"NOX\"),CP55*INDEX('Damage costs'!$O$16:$O$43,MATCH($B63,'Damage costs'!$C$16:$C$43,0))/1000,CP55*INDEX('Damage costs'!$S$16:$S$43,MATCH($B63,'Damage costs'!$C$16:$C$43,0))/1000),\"\")","v":""},{"$f":"IFERROR(IF(OR($C$67=FALSE,LEFT($B63,3)<>\"NOX\"),CQ55*INDEX('Damage costs'!$O$16:$O$43,MATCH($B63,'Damage costs'!$C$16:$C$43,0))/1000,CQ55*INDEX('Damage costs'!$S$16:$S$43,MATCH($B63,'Damage costs'!$C$16:$C$43,0))/1000),\"\")","v":""},{"$f":"IFERROR(IF(OR($C$67=FALSE,LEFT($B63,3)<>\"NOX\"),CR55*INDEX('Damage costs'!$O$16:$O$43,MATCH($B63,'Damage costs'!$C$16:$C$43,0))/1000,CR55*INDEX('Damage costs'!$S$16:$S$43,MATCH($B63,'Damage costs'!$C$16:$C$43,0))/1000),\"\")","v":""},{"$f":"IFERROR(IF(OR($C$67=FALSE,LEFT($B63,3)<>\"NOX\"),CS55*INDEX('Damage costs'!$O$16:$O$43,MATCH($B63,'Damage costs'!$C$16:$C$43,0))/1000,CS55*INDEX('Damage costs'!$S$16:$S$43,MATCH($B63,'Damage costs'!$C$16:$C$43,0))/1000),\"\")","v":""},{"$f":"IFERROR(IF(OR($C$67=FALSE,LEFT($B63,3)<>\"NOX\"),CT55*INDEX('Damage costs'!$O$16:$O$43,MATCH($B63,'Damage costs'!$C$16:$C$43,0))/1000,CT55*INDEX('Damage costs'!$S$16:$S$43,MATCH($B63,'Damage costs'!$C$16:$C$43,0))/1000),\"\")","v":""},{"$f":"IFERROR(IF(OR($C$67=FALSE,LEFT($B63,3)<>\"NOX\"),CU55*INDEX('Damage costs'!$O$16:$O$43,MATCH($B63,'Damage costs'!$C$16:$C$43,0))/1000,CU55*INDEX('Damage costs'!$S$16:$S$43,MATCH($B63,'Damage costs'!$C$16:$C$43,0))/1000),\"\")","v":""},{"$f":"IFERROR(IF(OR($C$67=FALSE,LEFT($B63,3)<>\"NOX\"),CV55*INDEX('Damage costs'!$O$16:$O$43,MATCH($B63,'Damage costs'!$C$16:$C$43,0))/1000,CV55*INDEX('Damage costs'!$S$16:$S$43,MATCH($B63,'Damage costs'!$C$16:$C$43,0))/1000),\"\")","v":""},{"$f":"IFERROR(IF(OR($C$67=FALSE,LEFT($B63,3)<>\"NOX\"),CW55*INDEX('Damage costs'!$O$16:$O$43,MATCH($B63,'Damage costs'!$C$16:$C$43,0))/1000,CW55*INDEX('Damage costs'!$S$16:$S$43,MATCH($B63,'Damage costs'!$C$16:$C$43,0))/1000),\"\")","v":""},{"$f":"IFERROR(IF(OR($C$67=FALSE,LEFT($B63,3)<>\"NOX\"),CX55*INDEX('Damage costs'!$O$16:$O$43,MATCH($B63,'Damage costs'!$C$16:$C$43,0))/1000,CX55*INDEX('Damage costs'!$S$16:$S$43,MATCH($B63,'Damage costs'!$C$16:$C$43,0))/1000),\"\")","v":""},{"$f":"IFERROR(IF(OR($C$67=FALSE,LEFT($B63,3)<>\"NOX\"),CY55*INDEX('Damage costs'!$O$16:$O$43,MATCH($B63,'Damage costs'!$C$16:$C$43,0))/1000,CY55*INDEX('Damage costs'!$S$16:$S$43,MATCH($B63,'Damage costs'!$C$16:$C$43,0))/1000),\"\")","v":""}]
[null,0,"£000's",{"$f":"IFERROR(IF(OR($C$67=FALSE,LEFT($B64,3)<>\"NOX\"),D56*INDEX('Damage costs'!$O$16:$O$43,MATCH($B64,'Damage costs'!$C$16:$C$43,0))/1000,D56*INDEX('Damage costs'!$S$16:$S$43,MATCH($B64,'Damage costs'!$C$16:$C$43,0))/1000),\"\")","v":""},{"$f":"IFERROR(IF(OR($C$67=FALSE,LEFT($B64,3)<>\"NOX\"),E56*INDEX('Damage costs'!$O$16:$O$43,MATCH($B64,'Damage costs'!$C$16:$C$43,0))/1000,E56*INDEX('Damage costs'!$S$16:$S$43,MATCH($B64,'Damage costs'!$C$16:$C$43,0))/1000),\"\")","v":""},{"$f":"IFERROR(IF(OR($C$67=FALSE,LEFT($B64,3)<>\"NOX\"),F56*INDEX('Damage costs'!$O$16:$O$43,MATCH($B64,'Damage costs'!$C$16:$C$43,0))/1000,F56*INDEX('Damage costs'!$S$16:$S$43,MATCH($B64,'Damage costs'!$C$16:$C$43,0))/1000),\"\")","v":""},{"$f":"IFERROR(IF(OR($C$67=FALSE,LEFT($B64,3)<>\"NOX\"),G56*INDEX('Damage costs'!$O$16:$O$43,MATCH($B64,'Damage costs'!$C$16:$C$43,0))/1000,G56*INDEX('Damage costs'!$S$16:$S$43,MATCH($B64,'Damage costs'!$C$16:$C$43,0))/1000),\"\")","v":""},{"$f":"IFERROR(IF(OR($C$67=FALSE,LEFT($B64,3)<>\"NOX\"),H56*INDEX('Damage costs'!$O$16:$O$43,MATCH($B64,'Damage costs'!$C$16:$C$43,0))/1000,H56*INDEX('Damage costs'!$S$16:$S$43,MATCH($B64,'Damage costs'!$C$16:$C$43,0))/1000),\"\")","v":""},{"$f":"IFERROR(IF(OR($C$67=FALSE,LEFT($B64,3)<>\"NOX\"),I56*INDEX('Damage costs'!$O$16:$O$43,MATCH($B64,'Damage costs'!$C$16:$C$43,0))/1000,I56*INDEX('Damage costs'!$S$16:$S$43,MATCH($B64,'Damage costs'!$C$16:$C$43,0))/1000),\"\")","v":""},{"$f":"IFERROR(IF(OR($C$67=FALSE,LEFT($B64,3)<>\"NOX\"),J56*INDEX('Damage costs'!$O$16:$O$43,MATCH($B64,'Damage costs'!$C$16:$C$43,0))/1000,J56*INDEX('Damage costs'!$S$16:$S$43,MATCH($B64,'Damage costs'!$C$16:$C$43,0))/1000),\"\")","v":""},{"$f":"IFERROR(IF(OR($C$67=FALSE,LEFT($B64,3)<>\"NOX\"),K56*INDEX('Damage costs'!$O$16:$O$43,MATCH($B64,'Damage costs'!$C$16:$C$43,0))/1000,K56*INDEX('Damage costs'!$S$16:$S$43,MATCH($B64,'Damage costs'!$C$16:$C$43,0))/1000),\"\")","v":""},{"$f":"IFERROR(IF(OR($C$67=FALSE,LEFT($B64,3)<>\"NOX\"),L56*INDEX('Damage costs'!$O$16:$O$43,MATCH($B64,'Damage costs'!$C$16:$C$43,0))/1000,L56*INDEX('Damage costs'!$S$16:$S$43,MATCH($B64,'Damage costs'!$C$16:$C$43,0))/1000),\"\")","v":""},{"$f":"IFERROR(IF(OR($C$67=FALSE,LEFT($B64,3)<>\"NOX\"),M56*INDEX('Damage costs'!$O$16:$O$43,MATCH($B64,'Damage costs'!$C$16:$C$43,0))/1000,M56*INDEX('Damage costs'!$S$16:$S$43,MATCH($B64,'Damage costs'!$C$16:$C$43,0))/1000),\"\")","v":""},{"$f":"IFERROR(IF(OR($C$67=FALSE,LEFT($B64,3)<>\"NOX\"),N56*INDEX('Damage costs'!$O$16:$O$43,MATCH($B64,'Damage costs'!$C$16:$C$43,0))/1000,N56*INDEX('Damage costs'!$S$16:$S$43,MATCH($B64,'Damage costs'!$C$16:$C$43,0))/1000),\"\")","v":""},{"$f":"IFERROR(IF(OR($C$67=FALSE,LEFT($B64,3)<>\"NOX\"),O56*INDEX('Damage costs'!$O$16:$O$43,MATCH($B64,'Damage costs'!$C$16:$C$43,0))/1000,O56*INDEX('Damage costs'!$S$16:$S$43,MATCH($B64,'Damage costs'!$C$16:$C$43,0))/1000),\"\")","v":""},{"$f":"IFERROR(IF(OR($C$67=FALSE,LEFT($B64,3)<>\"NOX\"),P56*INDEX('Damage costs'!$O$16:$O$43,MATCH($B64,'Damage costs'!$C$16:$C$43,0))/1000,P56*INDEX('Damage costs'!$S$16:$S$43,MATCH($B64,'Damage costs'!$C$16:$C$43,0))/1000),\"\")","v":""},{"$f":"IFERROR(IF(OR($C$67=FALSE,LEFT($B64,3)<>\"NOX\"),Q56*INDEX('Damage costs'!$O$16:$O$43,MATCH($B64,'Damage costs'!$C$16:$C$43,0))/1000,Q56*INDEX('Damage costs'!$S$16:$S$43,MATCH($B64,'Damage costs'!$C$16:$C$43,0))/1000),\"\")","v":""},{"$f":"IFERROR(IF(OR($C$67=FALSE,LEFT($B64,3)<>\"NOX\"),R56*INDEX('Damage costs'!$O$16:$O$43,MATCH($B64,'Damage costs'!$C$16:$C$43,0))/1000,R56*INDEX('Damage costs'!$S$16:$S$43,MATCH($B64,'Damage costs'!$C$16:$C$43,0))/1000),\"\")","v":""},{"$f":"IFERROR(IF(OR($C$67=FALSE,LEFT($B64,3)<>\"NOX\"),S56*INDEX('Damage costs'!$O$16:$O$43,MATCH($B64,'Damage costs'!$C$16:$C$43,0))/1000,S56*INDEX('Damage costs'!$S$16:$S$43,MATCH($B64,'Damage costs'!$C$16:$C$43,0))/1000),\"\")","v":""},{"$f":"IFERROR(IF(OR($C$67=FALSE,LEFT($B64,3)<>\"NOX\"),T56*INDEX('Damage costs'!$O$16:$O$43,MATCH($B64,'Damage costs'!$C$16:$C$43,0))/1000,T56*INDEX('Damage costs'!$S$16:$S$43,MATCH($B64,'Damage costs'!$C$16:$C$43,0))/1000),\"\")","v":""},{"$f":"IFERROR(IF(OR($C$67=FALSE,LEFT($B64,3)<>\"NOX\"),U56*INDEX('Damage costs'!$O$16:$O$43,MATCH($B64,'Damage costs'!$C$16:$C$43,0))/1000,U56*INDEX('Damage costs'!$S$16:$S$43,MATCH($B64,'Damage costs'!$C$16:$C$43,0))/1000),\"\")","v":""},{"$f":"IFERROR(IF(OR($C$67=FALSE,LEFT($B64,3)<>\"NOX\"),V56*INDEX('Damage costs'!$O$16:$O$43,MATCH($B64,'Damage costs'!$C$16:$C$43,0))/1000,V56*INDEX('Damage costs'!$S$16:$S$43,MATCH($B64,'Damage costs'!$C$16:$C$43,0))/1000),\"\")","v":""},{"$f":"IFERROR(IF(OR($C$67=FALSE,LEFT($B64,3)<>\"NOX\"),W56*INDEX('Damage costs'!$O$16:$O$43,MATCH($B64,'Damage costs'!$C$16:$C$43,0))/1000,W56*INDEX('Damage costs'!$S$16:$S$43,MATCH($B64,'Damage costs'!$C$16:$C$43,0))/1000),\"\")","v":""},{"$f":"IFERROR(IF(OR($C$67=FALSE,LEFT($B64,3)<>\"NOX\"),X56*INDEX('Damage costs'!$O$16:$O$43,MATCH($B64,'Damage costs'!$C$16:$C$43,0))/1000,X56*INDEX('Damage costs'!$S$16:$S$43,MATCH($B64,'Damage costs'!$C$16:$C$43,0))/1000),\"\")","v":""},{"$f":"IFERROR(IF(OR($C$67=FALSE,LEFT($B64,3)<>\"NOX\"),Y56*INDEX('Damage costs'!$O$16:$O$43,MATCH($B64,'Damage costs'!$C$16:$C$43,0))/1000,Y56*INDEX('Damage costs'!$S$16:$S$43,MATCH($B64,'Damage costs'!$C$16:$C$43,0))/1000),\"\")","v":""},{"$f":"IFERROR(IF(OR($C$67=FALSE,LEFT($B64,3)<>\"NOX\"),Z56*INDEX('Damage costs'!$O$16:$O$43,MATCH($B64,'Damage costs'!$C$16:$C$43,0))/1000,Z56*INDEX('Damage costs'!$S$16:$S$43,MATCH($B64,'Damage costs'!$C$16:$C$43,0))/1000),\"\")","v":""},{"$f":"IFERROR(IF(OR($C$67=FALSE,LEFT($B64,3)<>\"NOX\"),AA56*INDEX('Damage costs'!$O$16:$O$43,MATCH($B64,'Damage costs'!$C$16:$C$43,0))/1000,AA56*INDEX('Damage costs'!$S$16:$S$43,MATCH($B64,'Damage costs'!$C$16:$C$43,0))/1000),\"\")","v":""},{"$f":"IFERROR(IF(OR($C$67=FALSE,LEFT($B64,3)<>\"NOX\"),AB56*INDEX('Damage costs'!$O$16:$O$43,MATCH($B64,'Damage costs'!$C$16:$C$43,0))/1000,AB56*INDEX('Damage costs'!$S$16:$S$43,MATCH($B64,'Damage costs'!$C$16:$C$43,0))/1000),\"\")","v":""},{"$f":"IFERROR(IF(OR($C$67=FALSE,LEFT($B64,3)<>\"NOX\"),AC56*INDEX('Damage costs'!$O$16:$O$43,MATCH($B64,'Damage costs'!$C$16:$C$43,0))/1000,AC56*INDEX('Damage costs'!$S$16:$S$43,MATCH($B64,'Damage costs'!$C$16:$C$43,0))/1000),\"\")","v":""},{"$f":"IFERROR(IF(OR($C$67=FALSE,LEFT($B64,3)<>\"NOX\"),AD56*INDEX('Damage costs'!$O$16:$O$43,MATCH($B64,'Damage costs'!$C$16:$C$43,0))/1000,AD56*INDEX('Damage costs'!$S$16:$S$43,MATCH($B64,'Damage costs'!$C$16:$C$43,0))/1000),\"\")","v":""},{"$f":"IFERROR(IF(OR($C$67=FALSE,LEFT($B64,3)<>\"NOX\"),AE56*INDEX('Damage costs'!$O$16:$O$43,MATCH($B64,'Damage costs'!$C$16:$C$43,0))/1000,AE56*INDEX('Damage costs'!$S$16:$S$43,MATCH($B64,'Damage costs'!$C$16:$C$43,0))/1000),\"\")","v":""},{"$f":"IFERROR(IF(OR($C$67=FALSE,LEFT($B64,3)<>\"NOX\"),AF56*INDEX('Damage costs'!$O$16:$O$43,MATCH($B64,'Damage costs'!$C$16:$C$43,0))/1000,AF56*INDEX('Damage costs'!$S$16:$S$43,MATCH($B64,'Damage costs'!$C$16:$C$43,0))/1000),\"\")","v":""},{"$f":"IFERROR(IF(OR($C$67=FALSE,LEFT($B64,3)<>\"NOX\"),AG56*INDEX('Damage costs'!$O$16:$O$43,MATCH($B64,'Damage costs'!$C$16:$C$43,0))/1000,AG56*INDEX('Damage costs'!$S$16:$S$43,MATCH($B64,'Damage costs'!$C$16:$C$43,0))/1000),\"\")","v":""},{"$f":"IFERROR(IF(OR($C$67=FALSE,LEFT($B64,3)<>\"NOX\"),AH56*INDEX('Damage costs'!$O$16:$O$43,MATCH($B64,'Damage costs'!$C$16:$C$43,0))/1000,AH56*INDEX('Damage costs'!$S$16:$S$43,MATCH($B64,'Damage costs'!$C$16:$C$43,0))/1000),\"\")","v":""},{"$f":"IFERROR(IF(OR($C$67=FALSE,LEFT($B64,3)<>\"NOX\"),AI56*INDEX('Damage costs'!$O$16:$O$43,MATCH($B64,'Damage costs'!$C$16:$C$43,0))/1000,AI56*INDEX('Damage costs'!$S$16:$S$43,MATCH($B64,'Damage costs'!$C$16:$C$43,0))/1000),\"\")","v":""},{"$f":"IFERROR(IF(OR($C$67=FALSE,LEFT($B64,3)<>\"NOX\"),AJ56*INDEX('Damage costs'!$O$16:$O$43,MATCH($B64,'Damage costs'!$C$16:$C$43,0))/1000,AJ56*INDEX('Damage costs'!$S$16:$S$43,MATCH($B64,'Damage costs'!$C$16:$C$43,0))/1000),\"\")","v":""},{"$f":"IFERROR(IF(OR($C$67=FALSE,LEFT($B64,3)<>\"NOX\"),AK56*INDEX('Damage costs'!$O$16:$O$43,MATCH($B64,'Damage costs'!$C$16:$C$43,0))/1000,AK56*INDEX('Damage costs'!$S$16:$S$43,MATCH($B64,'Damage costs'!$C$16:$C$43,0))/1000),\"\")","v":""},{"$f":"IFERROR(IF(OR($C$67=FALSE,LEFT($B64,3)<>\"NOX\"),AL56*INDEX('Damage costs'!$O$16:$O$43,MATCH($B64,'Damage costs'!$C$16:$C$43,0))/1000,AL56*INDEX('Damage costs'!$S$16:$S$43,MATCH($B64,'Damage costs'!$C$16:$C$43,0))/1000),\"\")","v":""},{"$f":"IFERROR(IF(OR($C$67=FALSE,LEFT($B64,3)<>\"NOX\"),AM56*INDEX('Damage costs'!$O$16:$O$43,MATCH($B64,'Damage costs'!$C$16:$C$43,0))/1000,AM56*INDEX('Damage costs'!$S$16:$S$43,MATCH($B64,'Damage costs'!$C$16:$C$43,0))/1000),\"\")","v":""},{"$f":"IFERROR(IF(OR($C$67=FALSE,LEFT($B64,3)<>\"NOX\"),AN56*INDEX('Damage costs'!$O$16:$O$43,MATCH($B64,'Damage costs'!$C$16:$C$43,0))/1000,AN56*INDEX('Damage costs'!$S$16:$S$43,MATCH($B64,'Damage costs'!$C$16:$C$43,0))/1000),\"\")","v":""},{"$f":"IFERROR(IF(OR($C$67=FALSE,LEFT($B64,3)<>\"NOX\"),AO56*INDEX('Damage costs'!$O$16:$O$43,MATCH($B64,'Damage costs'!$C$16:$C$43,0))/1000,AO56*INDEX('Damage costs'!$S$16:$S$43,MATCH($B64,'Damage costs'!$C$16:$C$43,0))/1000),\"\")","v":""},{"$f":"IFERROR(IF(OR($C$67=FALSE,LEFT($B64,3)<>\"NOX\"),AP56*INDEX('Damage costs'!$O$16:$O$43,MATCH($B64,'Damage costs'!$C$16:$C$43,0))/1000,AP56*INDEX('Damage costs'!$S$16:$S$43,MATCH($B64,'Damage costs'!$C$16:$C$43,0))/1000),\"\")","v":""},{"$f":"IFERROR(IF(OR($C$67=FALSE,LEFT($B64,3)<>\"NOX\"),AQ56*INDEX('Damage costs'!$O$16:$O$43,MATCH($B64,'Damage costs'!$C$16:$C$43,0))/1000,AQ56*INDEX('Damage costs'!$S$16:$S$43,MATCH($B64,'Damage costs'!$C$16:$C$43,0))/1000),\"\")","v":""},{"$f":"IFERROR(IF(OR($C$67=FALSE,LEFT($B64,3)<>\"NOX\"),AR56*INDEX('Damage costs'!$O$16:$O$43,MATCH($B64,'Damage costs'!$C$16:$C$43,0))/1000,AR56*INDEX('Damage costs'!$S$16:$S$43,MATCH($B64,'Damage costs'!$C$16:$C$43,0))/1000),\"\")","v":""},{"$f":"IFERROR(IF(OR($C$67=FALSE,LEFT($B64,3)<>\"NOX\"),AS56*INDEX('Damage costs'!$O$16:$O$43,MATCH($B64,'Damage costs'!$C$16:$C$43,0))/1000,AS56*INDEX('Damage costs'!$S$16:$S$43,MATCH($B64,'Damage costs'!$C$16:$C$43,0))/1000),\"\")","v":""},{"$f":"IFERROR(IF(OR($C$67=FALSE,LEFT($B64,3)<>\"NOX\"),AT56*INDEX('Damage costs'!$O$16:$O$43,MATCH($B64,'Damage costs'!$C$16:$C$43,0))/1000,AT56*INDEX('Damage costs'!$S$16:$S$43,MATCH($B64,'Damage costs'!$C$16:$C$43,0))/1000),\"\")","v":""},{"$f":"IFERROR(IF(OR($C$67=FALSE,LEFT($B64,3)<>\"NOX\"),AU56*INDEX('Damage costs'!$O$16:$O$43,MATCH($B64,'Damage costs'!$C$16:$C$43,0))/1000,AU56*INDEX('Damage costs'!$S$16:$S$43,MATCH($B64,'Damage costs'!$C$16:$C$43,0))/1000),\"\")","v":""},{"$f":"IFERROR(IF(OR($C$67=FALSE,LEFT($B64,3)<>\"NOX\"),AV56*INDEX('Damage costs'!$O$16:$O$43,MATCH($B64,'Damage costs'!$C$16:$C$43,0))/1000,AV56*INDEX('Damage costs'!$S$16:$S$43,MATCH($B64,'Damage costs'!$C$16:$C$43,0))/1000),\"\")","v":""},{"$f":"IFERROR(IF(OR($C$67=FALSE,LEFT($B64,3)<>\"NOX\"),AW56*INDEX('Damage costs'!$O$16:$O$43,MATCH($B64,'Damage costs'!$C$16:$C$43,0))/1000,AW56*INDEX('Damage costs'!$S$16:$S$43,MATCH($B64,'Damage costs'!$C$16:$C$43,0))/1000),\"\")","v":""},{"$f":"IFERROR(IF(OR($C$67=FALSE,LEFT($B64,3)<>\"NOX\"),AX56*INDEX('Damage costs'!$O$16:$O$43,MATCH($B64,'Damage costs'!$C$16:$C$43,0))/1000,AX56*INDEX('Damage costs'!$S$16:$S$43,MATCH($B64,'Damage costs'!$C$16:$C$43,0))/1000),\"\")","v":""},{"$f":"IFERROR(IF(OR($C$67=FALSE,LEFT($B64,3)<>\"NOX\"),AY56*INDEX('Damage costs'!$O$16:$O$43,MATCH($B64,'Damage costs'!$C$16:$C$43,0))/1000,AY56*INDEX('Damage costs'!$S$16:$S$43,MATCH($B64,'Damage costs'!$C$16:$C$43,0))/1000),\"\")","v":""},{"$f":"IFERROR(IF(OR($C$67=FALSE,LEFT($B64,3)<>\"NOX\"),AZ56*INDEX('Damage costs'!$O$16:$O$43,MATCH($B64,'Damage costs'!$C$16:$C$43,0))/1000,AZ56*INDEX('Damage costs'!$S$16:$S$43,MATCH($B64,'Damage costs'!$C$16:$C$43,0))/1000),\"\")","v":""},{"$f":"IFERROR(IF(OR($C$67=FALSE,LEFT($B64,3)<>\"NOX\"),BA56*INDEX('Damage costs'!$O$16:$O$43,MATCH($B64,'Damage costs'!$C$16:$C$43,0))/1000,BA56*INDEX('Damage costs'!$S$16:$S$43,MATCH($B64,'Damage costs'!$C$16:$C$43,0))/1000),\"\")","v":""},{"$f":"IFERROR(IF(OR($C$67=FALSE,LEFT($B64,3)<>\"NOX\"),BB56*INDEX('Damage costs'!$O$16:$O$43,MATCH($B64,'Damage costs'!$C$16:$C$43,0))/1000,BB56*INDEX('Damage costs'!$S$16:$S$43,MATCH($B64,'Damage costs'!$C$16:$C$43,0))/1000),\"\")","v":""},{"$f":"IFERROR(IF(OR($C$67=FALSE,LEFT($B64,3)<>\"NOX\"),BC56*INDEX('Damage costs'!$O$16:$O$43,MATCH($B64,'Damage costs'!$C$16:$C$43,0))/1000,BC56*INDEX('Damage costs'!$S$16:$S$43,MATCH($B64,'Damage costs'!$C$16:$C$43,0))/1000),\"\")","v":""},{"$f":"IFERROR(IF(OR($C$67=FALSE,LEFT($B64,3)<>\"NOX\"),BD56*INDEX('Damage costs'!$O$16:$O$43,MATCH($B64,'Damage costs'!$C$16:$C$43,0))/1000,BD56*INDEX('Damage costs'!$S$16:$S$43,MATCH($B64,'Damage costs'!$C$16:$C$43,0))/1000),\"\")","v":""},{"$f":"IFERROR(IF(OR($C$67=FALSE,LEFT($B64,3)<>\"NOX\"),BE56*INDEX('Damage costs'!$O$16:$O$43,MATCH($B64,'Damage costs'!$C$16:$C$43,0))/1000,BE56*INDEX('Damage costs'!$S$16:$S$43,MATCH($B64,'Damage costs'!$C$16:$C$43,0))/1000),\"\")","v":""},{"$f":"IFERROR(IF(OR($C$67=FALSE,LEFT($B64,3)<>\"NOX\"),BF56*INDEX('Damage costs'!$O$16:$O$43,MATCH($B64,'Damage costs'!$C$16:$C$43,0))/1000,BF56*INDEX('Damage costs'!$S$16:$S$43,MATCH($B64,'Damage costs'!$C$16:$C$43,0))/1000),\"\")","v":""},{"$f":"IFERROR(IF(OR($C$67=FALSE,LEFT($B64,3)<>\"NOX\"),BG56*INDEX('Damage costs'!$O$16:$O$43,MATCH($B64,'Damage costs'!$C$16:$C$43,0))/1000,BG56*INDEX('Damage costs'!$S$16:$S$43,MATCH($B64,'Damage costs'!$C$16:$C$43,0))/1000),\"\")","v":""},{"$f":"IFERROR(IF(OR($C$67=FALSE,LEFT($B64,3)<>\"NOX\"),BH56*INDEX('Damage costs'!$O$16:$O$43,MATCH($B64,'Damage costs'!$C$16:$C$43,0))/1000,BH56*INDEX('Damage costs'!$S$16:$S$43,MATCH($B64,'Damage costs'!$C$16:$C$43,0))/1000),\"\")","v":""},{"$f":"IFERROR(IF(OR($C$67=FALSE,LEFT($B64,3)<>\"NOX\"),BI56*INDEX('Damage costs'!$O$16:$O$43,MATCH($B64,'Damage costs'!$C$16:$C$43,0))/1000,BI56*INDEX('Damage costs'!$S$16:$S$43,MATCH($B64,'Damage costs'!$C$16:$C$43,0))/1000),\"\")","v":""},{"$f":"IFERROR(IF(OR($C$67=FALSE,LEFT($B64,3)<>\"NOX\"),BJ56*INDEX('Damage costs'!$O$16:$O$43,MATCH($B64,'Damage costs'!$C$16:$C$43,0))/1000,BJ56*INDEX('Damage costs'!$S$16:$S$43,MATCH($B64,'Damage costs'!$C$16:$C$43,0))/1000),\"\")","v":""},{"$f":"IFERROR(IF(OR($C$67=FALSE,LEFT($B64,3)<>\"NOX\"),BK56*INDEX('Damage costs'!$O$16:$O$43,MATCH($B64,'Damage costs'!$C$16:$C$43,0))/1000,BK56*INDEX('Damage costs'!$S$16:$S$43,MATCH($B64,'Damage costs'!$C$16:$C$43,0))/1000),\"\")","v":""},{"$f":"IFERROR(IF(OR($C$67=FALSE,LEFT($B64,3)<>\"NOX\"),BL56*INDEX('Damage costs'!$O$16:$O$43,MATCH($B64,'Damage costs'!$C$16:$C$43,0))/1000,BL56*INDEX('Damage costs'!$S$16:$S$43,MATCH($B64,'Damage costs'!$C$16:$C$43,0))/1000),\"\")","v":""},{"$f":"IFERROR(IF(OR($C$67=FALSE,LEFT($B64,3)<>\"NOX\"),BM56*INDEX('Damage costs'!$O$16:$O$43,MATCH($B64,'Damage costs'!$C$16:$C$43,0))/1000,BM56*INDEX('Damage costs'!$S$16:$S$43,MATCH($B64,'Damage costs'!$C$16:$C$43,0))/1000),\"\")","v":""},{"$f":"IFERROR(IF(OR($C$67=FALSE,LEFT($B64,3)<>\"NOX\"),BN56*INDEX('Damage costs'!$O$16:$O$43,MATCH($B64,'Damage costs'!$C$16:$C$43,0))/1000,BN56*INDEX('Damage costs'!$S$16:$S$43,MATCH($B64,'Damage costs'!$C$16:$C$43,0))/1000),\"\")","v":""},{"$f":"IFERROR(IF(OR($C$67=FALSE,LEFT($B64,3)<>\"NOX\"),BO56*INDEX('Damage costs'!$O$16:$O$43,MATCH($B64,'Damage costs'!$C$16:$C$43,0))/1000,BO56*INDEX('Damage costs'!$S$16:$S$43,MATCH($B64,'Damage costs'!$C$16:$C$43,0))/1000),\"\")","v":""},{"$f":"IFERROR(IF(OR($C$67=FALSE,LEFT($B64,3)<>\"NOX\"),BP56*INDEX('Damage costs'!$O$16:$O$43,MATCH($B64,'Damage costs'!$C$16:$C$43,0))/1000,BP56*INDEX('Damage costs'!$S$16:$S$43,MATCH($B64,'Damage costs'!$C$16:$C$43,0))/1000),\"\")","v":""},{"$f":"IFERROR(IF(OR($C$67=FALSE,LEFT($B64,3)<>\"NOX\"),BQ56*INDEX('Damage costs'!$O$16:$O$43,MATCH($B64,'Damage costs'!$C$16:$C$43,0))/1000,BQ56*INDEX('Damage costs'!$S$16:$S$43,MATCH($B64,'Damage costs'!$C$16:$C$43,0))/1000),\"\")","v":""},{"$f":"IFERROR(IF(OR($C$67=FALSE,LEFT($B64,3)<>\"NOX\"),BR56*INDEX('Damage costs'!$O$16:$O$43,MATCH($B64,'Damage costs'!$C$16:$C$43,0))/1000,BR56*INDEX('Damage costs'!$S$16:$S$43,MATCH($B64,'Damage costs'!$C$16:$C$43,0))/1000),\"\")","v":""},{"$f":"IFERROR(IF(OR($C$67=FALSE,LEFT($B64,3)<>\"NOX\"),BS56*INDEX('Damage costs'!$O$16:$O$43,MATCH($B64,'Damage costs'!$C$16:$C$43,0))/1000,BS56*INDEX('Damage costs'!$S$16:$S$43,MATCH($B64,'Damage costs'!$C$16:$C$43,0))/1000),\"\")","v":""},{"$f":"IFERROR(IF(OR($C$67=FALSE,LEFT($B64,3)<>\"NOX\"),BT56*INDEX('Damage costs'!$O$16:$O$43,MATCH($B64,'Damage costs'!$C$16:$C$43,0))/1000,BT56*INDEX('Damage costs'!$S$16:$S$43,MATCH($B64,'Damage costs'!$C$16:$C$43,0))/1000),\"\")","v":""},{"$f":"IFERROR(IF(OR($C$67=FALSE,LEFT($B64,3)<>\"NOX\"),BU56*INDEX('Damage costs'!$O$16:$O$43,MATCH($B64,'Damage costs'!$C$16:$C$43,0))/1000,BU56*INDEX('Damage costs'!$S$16:$S$43,MATCH($B64,'Damage costs'!$C$16:$C$43,0))/1000),\"\")","v":""},{"$f":"IFERROR(IF(OR($C$67=FALSE,LEFT($B64,3)<>\"NOX\"),BV56*INDEX('Damage costs'!$O$16:$O$43,MATCH($B64,'Damage costs'!$C$16:$C$43,0))/1000,BV56*INDEX('Damage costs'!$S$16:$S$43,MATCH($B64,'Damage costs'!$C$16:$C$43,0))/1000),\"\")","v":""},{"$f":"IFERROR(IF(OR($C$67=FALSE,LEFT($B64,3)<>\"NOX\"),BW56*INDEX('Damage costs'!$O$16:$O$43,MATCH($B64,'Damage costs'!$C$16:$C$43,0))/1000,BW56*INDEX('Damage costs'!$S$16:$S$43,MATCH($B64,'Damage costs'!$C$16:$C$43,0))/1000),\"\")","v":""},{"$f":"IFERROR(IF(OR($C$67=FALSE,LEFT($B64,3)<>\"NOX\"),BX56*INDEX('Damage costs'!$O$16:$O$43,MATCH($B64,'Damage costs'!$C$16:$C$43,0))/1000,BX56*INDEX('Damage costs'!$S$16:$S$43,MATCH($B64,'Damage costs'!$C$16:$C$43,0))/1000),\"\")","v":""},{"$f":"IFERROR(IF(OR($C$67=FALSE,LEFT($B64,3)<>\"NOX\"),BY56*INDEX('Damage costs'!$O$16:$O$43,MATCH($B64,'Damage costs'!$C$16:$C$43,0))/1000,BY56*INDEX('Damage costs'!$S$16:$S$43,MATCH($B64,'Damage costs'!$C$16:$C$43,0))/1000),\"\")","v":""},{"$f":"IFERROR(IF(OR($C$67=FALSE,LEFT($B64,3)<>\"NOX\"),BZ56*INDEX('Damage costs'!$O$16:$O$43,MATCH($B64,'Damage costs'!$C$16:$C$43,0))/1000,BZ56*INDEX('Damage costs'!$S$16:$S$43,MATCH($B64,'Damage costs'!$C$16:$C$43,0))/1000),\"\")","v":""},{"$f":"IFERROR(IF(OR($C$67=FALSE,LEFT($B64,3)<>\"NOX\"),CA56*INDEX('Damage costs'!$O$16:$O$43,MATCH($B64,'Damage costs'!$C$16:$C$43,0))/1000,CA56*INDEX('Damage costs'!$S$16:$S$43,MATCH($B64,'Damage costs'!$C$16:$C$43,0))/1000),\"\")","v":""},{"$f":"IFERROR(IF(OR($C$67=FALSE,LEFT($B64,3)<>\"NOX\"),CB56*INDEX('Damage costs'!$O$16:$O$43,MATCH($B64,'Damage costs'!$C$16:$C$43,0))/1000,CB56*INDEX('Damage costs'!$S$16:$S$43,MATCH($B64,'Damage costs'!$C$16:$C$43,0))/1000),\"\")","v":""},{"$f":"IFERROR(IF(OR($C$67=FALSE,LEFT($B64,3)<>\"NOX\"),CC56*INDEX('Damage costs'!$O$16:$O$43,MATCH($B64,'Damage costs'!$C$16:$C$43,0))/1000,CC56*INDEX('Damage costs'!$S$16:$S$43,MATCH($B64,'Damage costs'!$C$16:$C$43,0))/1000),\"\")","v":""},{"$f":"IFERROR(IF(OR($C$67=FALSE,LEFT($B64,3)<>\"NOX\"),CD56*INDEX('Damage costs'!$O$16:$O$43,MATCH($B64,'Damage costs'!$C$16:$C$43,0))/1000,CD56*INDEX('Damage costs'!$S$16:$S$43,MATCH($B64,'Damage costs'!$C$16:$C$43,0))/1000),\"\")","v":""},{"$f":"IFERROR(IF(OR($C$67=FALSE,LEFT($B64,3)<>\"NOX\"),CE56*INDEX('Damage costs'!$O$16:$O$43,MATCH($B64,'Damage costs'!$C$16:$C$43,0))/1000,CE56*INDEX('Damage costs'!$S$16:$S$43,MATCH($B64,'Damage costs'!$C$16:$C$43,0))/1000),\"\")","v":""},{"$f":"IFERROR(IF(OR($C$67=FALSE,LEFT($B64,3)<>\"NOX\"),CF56*INDEX('Damage costs'!$O$16:$O$43,MATCH($B64,'Damage costs'!$C$16:$C$43,0))/1000,CF56*INDEX('Damage costs'!$S$16:$S$43,MATCH($B64,'Damage costs'!$C$16:$C$43,0))/1000),\"\")","v":""},{"$f":"IFERROR(IF(OR($C$67=FALSE,LEFT($B64,3)<>\"NOX\"),CG56*INDEX('Damage costs'!$O$16:$O$43,MATCH($B64,'Damage costs'!$C$16:$C$43,0))/1000,CG56*INDEX('Damage costs'!$S$16:$S$43,MATCH($B64,'Damage costs'!$C$16:$C$43,0))/1000),\"\")","v":""},{"$f":"IFERROR(IF(OR($C$67=FALSE,LEFT($B64,3)<>\"NOX\"),CH56*INDEX('Damage costs'!$O$16:$O$43,MATCH($B64,'Damage costs'!$C$16:$C$43,0))/1000,CH56*INDEX('Damage costs'!$S$16:$S$43,MATCH($B64,'Damage costs'!$C$16:$C$43,0))/1000),\"\")","v":""},{"$f":"IFERROR(IF(OR($C$67=FALSE,LEFT($B64,3)<>\"NOX\"),CI56*INDEX('Damage costs'!$O$16:$O$43,MATCH($B64,'Damage costs'!$C$16:$C$43,0))/1000,CI56*INDEX('Damage costs'!$S$16:$S$43,MATCH($B64,'Damage costs'!$C$16:$C$43,0))/1000),\"\")","v":""},{"$f":"IFERROR(IF(OR($C$67=FALSE,LEFT($B64,3)<>\"NOX\"),CJ56*INDEX('Damage costs'!$O$16:$O$43,MATCH($B64,'Damage costs'!$C$16:$C$43,0))/1000,CJ56*INDEX('Damage costs'!$S$16:$S$43,MATCH($B64,'Damage costs'!$C$16:$C$43,0))/1000),\"\")","v":""},{"$f":"IFERROR(IF(OR($C$67=FALSE,LEFT($B64,3)<>\"NOX\"),CK56*INDEX('Damage costs'!$O$16:$O$43,MATCH($B64,'Damage costs'!$C$16:$C$43,0))/1000,CK56*INDEX('Damage costs'!$S$16:$S$43,MATCH($B64,'Damage costs'!$C$16:$C$43,0))/1000),\"\")","v":""},{"$f":"IFERROR(IF(OR($C$67=FALSE,LEFT($B64,3)<>\"NOX\"),CL56*INDEX('Damage costs'!$O$16:$O$43,MATCH($B64,'Damage costs'!$C$16:$C$43,0))/1000,CL56*INDEX('Damage costs'!$S$16:$S$43,MATCH($B64,'Damage costs'!$C$16:$C$43,0))/1000),\"\")","v":""},{"$f":"IFERROR(IF(OR($C$67=FALSE,LEFT($B64,3)<>\"NOX\"),CM56*INDEX('Damage costs'!$O$16:$O$43,MATCH($B64,'Damage costs'!$C$16:$C$43,0))/1000,CM56*INDEX('Damage costs'!$S$16:$S$43,MATCH($B64,'Damage costs'!$C$16:$C$43,0))/1000),\"\")","v":""},{"$f":"IFERROR(IF(OR($C$67=FALSE,LEFT($B64,3)<>\"NOX\"),CN56*INDEX('Damage costs'!$O$16:$O$43,MATCH($B64,'Damage costs'!$C$16:$C$43,0))/1000,CN56*INDEX('Damage costs'!$S$16:$S$43,MATCH($B64,'Damage costs'!$C$16:$C$43,0))/1000),\"\")","v":""},{"$f":"IFERROR(IF(OR($C$67=FALSE,LEFT($B64,3)<>\"NOX\"),CO56*INDEX('Damage costs'!$O$16:$O$43,MATCH($B64,'Damage costs'!$C$16:$C$43,0))/1000,CO56*INDEX('Damage costs'!$S$16:$S$43,MATCH($B64,'Damage costs'!$C$16:$C$43,0))/1000),\"\")","v":""},{"$f":"IFERROR(IF(OR($C$67=FALSE,LEFT($B64,3)<>\"NOX\"),CP56*INDEX('Damage costs'!$O$16:$O$43,MATCH($B64,'Damage costs'!$C$16:$C$43,0))/1000,CP56*INDEX('Damage costs'!$S$16:$S$43,MATCH($B64,'Damage costs'!$C$16:$C$43,0))/1000),\"\")","v":""},{"$f":"IFERROR(IF(OR($C$67=FALSE,LEFT($B64,3)<>\"NOX\"),CQ56*INDEX('Damage costs'!$O$16:$O$43,MATCH($B64,'Damage costs'!$C$16:$C$43,0))/1000,CQ56*INDEX('Damage costs'!$S$16:$S$43,MATCH($B64,'Damage costs'!$C$16:$C$43,0))/1000),\"\")","v":""},{"$f":"IFERROR(IF(OR($C$67=FALSE,LEFT($B64,3)<>\"NOX\"),CR56*INDEX('Damage costs'!$O$16:$O$43,MATCH($B64,'Damage costs'!$C$16:$C$43,0))/1000,CR56*INDEX('Damage costs'!$S$16:$S$43,MATCH($B64,'Damage costs'!$C$16:$C$43,0))/1000),\"\")","v":""},{"$f":"IFERROR(IF(OR($C$67=FALSE,LEFT($B64,3)<>\"NOX\"),CS56*INDEX('Damage costs'!$O$16:$O$43,MATCH($B64,'Damage costs'!$C$16:$C$43,0))/1000,CS56*INDEX('Damage costs'!$S$16:$S$43,MATCH($B64,'Damage costs'!$C$16:$C$43,0))/1000),\"\")","v":""},{"$f":"IFERROR(IF(OR($C$67=FALSE,LEFT($B64,3)<>\"NOX\"),CT56*INDEX('Damage costs'!$O$16:$O$43,MATCH($B64,'Damage costs'!$C$16:$C$43,0))/1000,CT56*INDEX('Damage costs'!$S$16:$S$43,MATCH($B64,'Damage costs'!$C$16:$C$43,0))/1000),\"\")","v":""},{"$f":"IFERROR(IF(OR($C$67=FALSE,LEFT($B64,3)<>\"NOX\"),CU56*INDEX('Damage costs'!$O$16:$O$43,MATCH($B64,'Damage costs'!$C$16:$C$43,0))/1000,CU56*INDEX('Damage costs'!$S$16:$S$43,MATCH($B64,'Damage costs'!$C$16:$C$43,0))/1000),\"\")","v":""},{"$f":"IFERROR(IF(OR($C$67=FALSE,LEFT($B64,3)<>\"NOX\"),CV56*INDEX('Damage costs'!$O$16:$O$43,MATCH($B64,'Damage costs'!$C$16:$C$43,0))/1000,CV56*INDEX('Damage costs'!$S$16:$S$43,MATCH($B64,'Damage costs'!$C$16:$C$43,0))/1000),\"\")","v":""},{"$f":"IFERROR(IF(OR($C$67=FALSE,LEFT($B64,3)<>\"NOX\"),CW56*INDEX('Damage costs'!$O$16:$O$43,MATCH($B64,'Damage costs'!$C$16:$C$43,0))/1000,CW56*INDEX('Damage costs'!$S$16:$S$43,MATCH($B64,'Damage costs'!$C$16:$C$43,0))/1000),\"\")","v":""},{"$f":"IFERROR(IF(OR($C$67=FALSE,LEFT($B64,3)<>\"NOX\"),CX56*INDEX('Damage costs'!$O$16:$O$43,MATCH($B64,'Damage costs'!$C$16:$C$43,0))/1000,CX56*INDEX('Damage costs'!$S$16:$S$43,MATCH($B64,'Damage costs'!$C$16:$C$43,0))/1000),\"\")","v":""},{"$f":"IFERROR(IF(OR($C$67=FALSE,LEFT($B64,3)<>\"NOX\"),CY56*INDEX('Damage costs'!$O$16:$O$43,MATCH($B64,'Damage costs'!$C$16:$C$43,0))/1000,CY56*INDEX('Damage costs'!$S$16:$S$43,MATCH($B64,'Damage costs'!$C$16:$C$43,0))/1000),\"\")","v":""}]
[null,0,"£000's",{"$f":"IFERROR(IF(OR($C$67=FALSE,LEFT($B65,3)<>\"NOX\"),D57*INDEX('Damage costs'!$O$16:$O$43,MATCH($B65,'Damage costs'!$C$16:$C$43,0))/1000,D57*INDEX('Damage costs'!$S$16:$S$43,MATCH($B65,'Damage costs'!$C$16:$C$43,0))/1000),\"\")","v":""},{"$f":"IFERROR(IF(OR($C$67=FALSE,LEFT($B65,3)<>\"NOX\"),E57*INDEX('Damage costs'!$O$16:$O$43,MATCH($B65,'Damage costs'!$C$16:$C$43,0))/1000,E57*INDEX('Damage costs'!$S$16:$S$43,MATCH($B65,'Damage costs'!$C$16:$C$43,0))/1000),\"\")","v":""},{"$f":"IFERROR(IF(OR($C$67=FALSE,LEFT($B65,3)<>\"NOX\"),F57*INDEX('Damage costs'!$O$16:$O$43,MATCH($B65,'Damage costs'!$C$16:$C$43,0))/1000,F57*INDEX('Damage costs'!$S$16:$S$43,MATCH($B65,'Damage costs'!$C$16:$C$43,0))/1000),\"\")","v":""},{"$f":"IFERROR(IF(OR($C$67=FALSE,LEFT($B65,3)<>\"NOX\"),G57*INDEX('Damage costs'!$O$16:$O$43,MATCH($B65,'Damage costs'!$C$16:$C$43,0))/1000,G57*INDEX('Damage costs'!$S$16:$S$43,MATCH($B65,'Damage costs'!$C$16:$C$43,0))/1000),\"\")","v":""},{"$f":"IFERROR(IF(OR($C$67=FALSE,LEFT($B65,3)<>\"NOX\"),H57*INDEX('Damage costs'!$O$16:$O$43,MATCH($B65,'Damage costs'!$C$16:$C$43,0))/1000,H57*INDEX('Damage costs'!$S$16:$S$43,MATCH($B65,'Damage costs'!$C$16:$C$43,0))/1000),\"\")","v":""},{"$f":"IFERROR(IF(OR($C$67=FALSE,LEFT($B65,3)<>\"NOX\"),I57*INDEX('Damage costs'!$O$16:$O$43,MATCH($B65,'Damage costs'!$C$16:$C$43,0))/1000,I57*INDEX('Damage costs'!$S$16:$S$43,MATCH($B65,'Damage costs'!$C$16:$C$43,0))/1000),\"\")","v":""},{"$f":"IFERROR(IF(OR($C$67=FALSE,LEFT($B65,3)<>\"NOX\"),J57*INDEX('Damage costs'!$O$16:$O$43,MATCH($B65,'Damage costs'!$C$16:$C$43,0))/1000,J57*INDEX('Damage costs'!$S$16:$S$43,MATCH($B65,'Damage costs'!$C$16:$C$43,0))/1000),\"\")","v":""},{"$f":"IFERROR(IF(OR($C$67=FALSE,LEFT($B65,3)<>\"NOX\"),K57*INDEX('Damage costs'!$O$16:$O$43,MATCH($B65,'Damage costs'!$C$16:$C$43,0))/1000,K57*INDEX('Damage costs'!$S$16:$S$43,MATCH($B65,'Damage costs'!$C$16:$C$43,0))/1000),\"\")","v":""},{"$f":"IFERROR(IF(OR($C$67=FALSE,LEFT($B65,3)<>\"NOX\"),L57*INDEX('Damage costs'!$O$16:$O$43,MATCH($B65,'Damage costs'!$C$16:$C$43,0))/1000,L57*INDEX('Damage costs'!$S$16:$S$43,MATCH($B65,'Damage costs'!$C$16:$C$43,0))/1000),\"\")","v":""},{"$f":"IFERROR(IF(OR($C$67=FALSE,LEFT($B65,3)<>\"NOX\"),M57*INDEX('Damage costs'!$O$16:$O$43,MATCH($B65,'Damage costs'!$C$16:$C$43,0))/1000,M57*INDEX('Damage costs'!$S$16:$S$43,MATCH($B65,'Damage costs'!$C$16:$C$43,0))/1000),\"\")","v":""},{"$f":"IFERROR(IF(OR($C$67=FALSE,LEFT($B65,3)<>\"NOX\"),N57*INDEX('Damage costs'!$O$16:$O$43,MATCH($B65,'Damage costs'!$C$16:$C$43,0))/1000,N57*INDEX('Damage costs'!$S$16:$S$43,MATCH($B65,'Damage costs'!$C$16:$C$43,0))/1000),\"\")","v":""},{"$f":"IFERROR(IF(OR($C$67=FALSE,LEFT($B65,3)<>\"NOX\"),O57*INDEX('Damage costs'!$O$16:$O$43,MATCH($B65,'Damage costs'!$C$16:$C$43,0))/1000,O57*INDEX('Damage costs'!$S$16:$S$43,MATCH($B65,'Damage costs'!$C$16:$C$43,0))/1000),\"\")","v":""},{"$f":"IFERROR(IF(OR($C$67=FALSE,LEFT($B65,3)<>\"NOX\"),P57*INDEX('Damage costs'!$O$16:$O$43,MATCH($B65,'Damage costs'!$C$16:$C$43,0))/1000,P57*INDEX('Damage costs'!$S$16:$S$43,MATCH($B65,'Damage costs'!$C$16:$C$43,0))/1000),\"\")","v":""},{"$f":"IFERROR(IF(OR($C$67=FALSE,LEFT($B65,3)<>\"NOX\"),Q57*INDEX('Damage costs'!$O$16:$O$43,MATCH($B65,'Damage costs'!$C$16:$C$43,0))/1000,Q57*INDEX('Damage costs'!$S$16:$S$43,MATCH($B65,'Damage costs'!$C$16:$C$43,0))/1000),\"\")","v":""},{"$f":"IFERROR(IF(OR($C$67=FALSE,LEFT($B65,3)<>\"NOX\"),R57*INDEX('Damage costs'!$O$16:$O$43,MATCH($B65,'Damage costs'!$C$16:$C$43,0))/1000,R57*INDEX('Damage costs'!$S$16:$S$43,MATCH($B65,'Damage costs'!$C$16:$C$43,0))/1000),\"\")","v":""},{"$f":"IFERROR(IF(OR($C$67=FALSE,LEFT($B65,3)<>\"NOX\"),S57*INDEX('Damage costs'!$O$16:$O$43,MATCH($B65,'Damage costs'!$C$16:$C$43,0))/1000,S57*INDEX('Damage costs'!$S$16:$S$43,MATCH($B65,'Damage costs'!$C$16:$C$43,0))/1000),\"\")","v":""},{"$f":"IFERROR(IF(OR($C$67=FALSE,LEFT($B65,3)<>\"NOX\"),T57*INDEX('Damage costs'!$O$16:$O$43,MATCH($B65,'Damage costs'!$C$16:$C$43,0))/1000,T57*INDEX('Damage costs'!$S$16:$S$43,MATCH($B65,'Damage costs'!$C$16:$C$43,0))/1000),\"\")","v":""},{"$f":"IFERROR(IF(OR($C$67=FALSE,LEFT($B65,3)<>\"NOX\"),U57*INDEX('Damage costs'!$O$16:$O$43,MATCH($B65,'Damage costs'!$C$16:$C$43,0))/1000,U57*INDEX('Damage costs'!$S$16:$S$43,MATCH($B65,'Damage costs'!$C$16:$C$43,0))/1000),\"\")","v":""},{"$f":"IFERROR(IF(OR($C$67=FALSE,LEFT($B65,3)<>\"NOX\"),V57*INDEX('Damage costs'!$O$16:$O$43,MATCH($B65,'Damage costs'!$C$16:$C$43,0))/1000,V57*INDEX('Damage costs'!$S$16:$S$43,MATCH($B65,'Damage costs'!$C$16:$C$43,0))/1000),\"\")","v":""},{"$f":"IFERROR(IF(OR($C$67=FALSE,LEFT($B65,3)<>\"NOX\"),W57*INDEX('Damage costs'!$O$16:$O$43,MATCH($B65,'Damage costs'!$C$16:$C$43,0))/1000,W57*INDEX('Damage costs'!$S$16:$S$43,MATCH($B65,'Damage costs'!$C$16:$C$43,0))/1000),\"\")","v":""},{"$f":"IFERROR(IF(OR($C$67=FALSE,LEFT($B65,3)<>\"NOX\"),X57*INDEX('Damage costs'!$O$16:$O$43,MATCH($B65,'Damage costs'!$C$16:$C$43,0))/1000,X57*INDEX('Damage costs'!$S$16:$S$43,MATCH($B65,'Damage costs'!$C$16:$C$43,0))/1000),\"\")","v":""},{"$f":"IFERROR(IF(OR($C$67=FALSE,LEFT($B65,3)<>\"NOX\"),Y57*INDEX('Damage costs'!$O$16:$O$43,MATCH($B65,'Damage costs'!$C$16:$C$43,0))/1000,Y57*INDEX('Damage costs'!$S$16:$S$43,MATCH($B65,'Damage costs'!$C$16:$C$43,0))/1000),\"\")","v":""},{"$f":"IFERROR(IF(OR($C$67=FALSE,LEFT($B65,3)<>\"NOX\"),Z57*INDEX('Damage costs'!$O$16:$O$43,MATCH($B65,'Damage costs'!$C$16:$C$43,0))/1000,Z57*INDEX('Damage costs'!$S$16:$S$43,MATCH($B65,'Damage costs'!$C$16:$C$43,0))/1000),\"\")","v":""},{"$f":"IFERROR(IF(OR($C$67=FALSE,LEFT($B65,3)<>\"NOX\"),AA57*INDEX('Damage costs'!$O$16:$O$43,MATCH($B65,'Damage costs'!$C$16:$C$43,0))/1000,AA57*INDEX('Damage costs'!$S$16:$S$43,MATCH($B65,'Damage costs'!$C$16:$C$43,0))/1000),\"\")","v":""},{"$f":"IFERROR(IF(OR($C$67=FALSE,LEFT($B65,3)<>\"NOX\"),AB57*INDEX('Damage costs'!$O$16:$O$43,MATCH($B65,'Damage costs'!$C$16:$C$43,0))/1000,AB57*INDEX('Damage costs'!$S$16:$S$43,MATCH($B65,'Damage costs'!$C$16:$C$43,0))/1000),\"\")","v":""},{"$f":"IFERROR(IF(OR($C$67=FALSE,LEFT($B65,3)<>\"NOX\"),AC57*INDEX('Damage costs'!$O$16:$O$43,MATCH($B65,'Damage costs'!$C$16:$C$43,0))/1000,AC57*INDEX('Damage costs'!$S$16:$S$43,MATCH($B65,'Damage costs'!$C$16:$C$43,0))/1000),\"\")","v":""},{"$f":"IFERROR(IF(OR($C$67=FALSE,LEFT($B65,3)<>\"NOX\"),AD57*INDEX('Damage costs'!$O$16:$O$43,MATCH($B65,'Damage costs'!$C$16:$C$43,0))/1000,AD57*INDEX('Damage costs'!$S$16:$S$43,MATCH($B65,'Damage costs'!$C$16:$C$43,0))/1000),\"\")","v":""},{"$f":"IFERROR(IF(OR($C$67=FALSE,LEFT($B65,3)<>\"NOX\"),AE57*INDEX('Damage costs'!$O$16:$O$43,MATCH($B65,'Damage costs'!$C$16:$C$43,0))/1000,AE57*INDEX('Damage costs'!$S$16:$S$43,MATCH($B65,'Damage costs'!$C$16:$C$43,0))/1000),\"\")","v":""},{"$f":"IFERROR(IF(OR($C$67=FALSE,LEFT($B65,3)<>\"NOX\"),AF57*INDEX('Damage costs'!$O$16:$O$43,MATCH($B65,'Damage costs'!$C$16:$C$43,0))/1000,AF57*INDEX('Damage costs'!$S$16:$S$43,MATCH($B65,'Damage costs'!$C$16:$C$43,0))/1000),\"\")","v":""},{"$f":"IFERROR(IF(OR($C$67=FALSE,LEFT($B65,3)<>\"NOX\"),AG57*INDEX('Damage costs'!$O$16:$O$43,MATCH($B65,'Damage costs'!$C$16:$C$43,0))/1000,AG57*INDEX('Damage costs'!$S$16:$S$43,MATCH($B65,'Damage costs'!$C$16:$C$43,0))/1000),\"\")","v":""},{"$f":"IFERROR(IF(OR($C$67=FALSE,LEFT($B65,3)<>\"NOX\"),AH57*INDEX('Damage costs'!$O$16:$O$43,MATCH($B65,'Damage costs'!$C$16:$C$43,0))/1000,AH57*INDEX('Damage costs'!$S$16:$S$43,MATCH($B65,'Damage costs'!$C$16:$C$43,0))/1000),\"\")","v":""},{"$f":"IFERROR(IF(OR($C$67=FALSE,LEFT($B65,3)<>\"NOX\"),AI57*INDEX('Damage costs'!$O$16:$O$43,MATCH($B65,'Damage costs'!$C$16:$C$43,0))/1000,AI57*INDEX('Damage costs'!$S$16:$S$43,MATCH($B65,'Damage costs'!$C$16:$C$43,0))/1000),\"\")","v":""},{"$f":"IFERROR(IF(OR($C$67=FALSE,LEFT($B65,3)<>\"NOX\"),AJ57*INDEX('Damage costs'!$O$16:$O$43,MATCH($B65,'Damage costs'!$C$16:$C$43,0))/1000,AJ57*INDEX('Damage costs'!$S$16:$S$43,MATCH($B65,'Damage costs'!$C$16:$C$43,0))/1000),\"\")","v":""},{"$f":"IFERROR(IF(OR($C$67=FALSE,LEFT($B65,3)<>\"NOX\"),AK57*INDEX('Damage costs'!$O$16:$O$43,MATCH($B65,'Damage costs'!$C$16:$C$43,0))/1000,AK57*INDEX('Damage costs'!$S$16:$S$43,MATCH($B65,'Damage costs'!$C$16:$C$43,0))/1000),\"\")","v":""},{"$f":"IFERROR(IF(OR($C$67=FALSE,LEFT($B65,3)<>\"NOX\"),AL57*INDEX('Damage costs'!$O$16:$O$43,MATCH($B65,'Damage costs'!$C$16:$C$43,0))/1000,AL57*INDEX('Damage costs'!$S$16:$S$43,MATCH($B65,'Damage costs'!$C$16:$C$43,0))/1000),\"\")","v":""},{"$f":"IFERROR(IF(OR($C$67=FALSE,LEFT($B65,3)<>\"NOX\"),AM57*INDEX('Damage costs'!$O$16:$O$43,MATCH($B65,'Damage costs'!$C$16:$C$43,0))/1000,AM57*INDEX('Damage costs'!$S$16:$S$43,MATCH($B65,'Damage costs'!$C$16:$C$43,0))/1000),\"\")","v":""},{"$f":"IFERROR(IF(OR($C$67=FALSE,LEFT($B65,3)<>\"NOX\"),AN57*INDEX('Damage costs'!$O$16:$O$43,MATCH($B65,'Damage costs'!$C$16:$C$43,0))/1000,AN57*INDEX('Damage costs'!$S$16:$S$43,MATCH($B65,'Damage costs'!$C$16:$C$43,0))/1000),\"\")","v":""},{"$f":"IFERROR(IF(OR($C$67=FALSE,LEFT($B65,3)<>\"NOX\"),AO57*INDEX('Damage costs'!$O$16:$O$43,MATCH($B65,'Damage costs'!$C$16:$C$43,0))/1000,AO57*INDEX('Damage costs'!$S$16:$S$43,MATCH($B65,'Damage costs'!$C$16:$C$43,0))/1000),\"\")","v":""},{"$f":"IFERROR(IF(OR($C$67=FALSE,LEFT($B65,3)<>\"NOX\"),AP57*INDEX('Damage costs'!$O$16:$O$43,MATCH($B65,'Damage costs'!$C$16:$C$43,0))/1000,AP57*INDEX('Damage costs'!$S$16:$S$43,MATCH($B65,'Damage costs'!$C$16:$C$43,0))/1000),\"\")","v":""},{"$f":"IFERROR(IF(OR($C$67=FALSE,LEFT($B65,3)<>\"NOX\"),AQ57*INDEX('Damage costs'!$O$16:$O$43,MATCH($B65,'Damage costs'!$C$16:$C$43,0))/1000,AQ57*INDEX('Damage costs'!$S$16:$S$43,MATCH($B65,'Damage costs'!$C$16:$C$43,0))/1000),\"\")","v":""},{"$f":"IFERROR(IF(OR($C$67=FALSE,LEFT($B65,3)<>\"NOX\"),AR57*INDEX('Damage costs'!$O$16:$O$43,MATCH($B65,'Damage costs'!$C$16:$C$43,0))/1000,AR57*INDEX('Damage costs'!$S$16:$S$43,MATCH($B65,'Damage costs'!$C$16:$C$43,0))/1000),\"\")","v":""},{"$f":"IFERROR(IF(OR($C$67=FALSE,LEFT($B65,3)<>\"NOX\"),AS57*INDEX('Damage costs'!$O$16:$O$43,MATCH($B65,'Damage costs'!$C$16:$C$43,0))/1000,AS57*INDEX('Damage costs'!$S$16:$S$43,MATCH($B65,'Damage costs'!$C$16:$C$43,0))/1000),\"\")","v":""},{"$f":"IFERROR(IF(OR($C$67=FALSE,LEFT($B65,3)<>\"NOX\"),AT57*INDEX('Damage costs'!$O$16:$O$43,MATCH($B65,'Damage costs'!$C$16:$C$43,0))/1000,AT57*INDEX('Damage costs'!$S$16:$S$43,MATCH($B65,'Damage costs'!$C$16:$C$43,0))/1000),\"\")","v":""},{"$f":"IFERROR(IF(OR($C$67=FALSE,LEFT($B65,3)<>\"NOX\"),AU57*INDEX('Damage costs'!$O$16:$O$43,MATCH($B65,'Damage costs'!$C$16:$C$43,0))/1000,AU57*INDEX('Damage costs'!$S$16:$S$43,MATCH($B65,'Damage costs'!$C$16:$C$43,0))/1000),\"\")","v":""},{"$f":"IFERROR(IF(OR($C$67=FALSE,LEFT($B65,3)<>\"NOX\"),AV57*INDEX('Damage costs'!$O$16:$O$43,MATCH($B65,'Damage costs'!$C$16:$C$43,0))/1000,AV57*INDEX('Damage costs'!$S$16:$S$43,MATCH($B65,'Damage costs'!$C$16:$C$43,0))/1000),\"\")","v":""},{"$f":"IFERROR(IF(OR($C$67=FALSE,LEFT($B65,3)<>\"NOX\"),AW57*INDEX('Damage costs'!$O$16:$O$43,MATCH($B65,'Damage costs'!$C$16:$C$43,0))/1000,AW57*INDEX('Damage costs'!$S$16:$S$43,MATCH($B65,'Damage costs'!$C$16:$C$43,0))/1000),\"\")","v":""},{"$f":"IFERROR(IF(OR($C$67=FALSE,LEFT($B65,3)<>\"NOX\"),AX57*INDEX('Damage costs'!$O$16:$O$43,MATCH($B65,'Damage costs'!$C$16:$C$43,0))/1000,AX57*INDEX('Damage costs'!$S$16:$S$43,MATCH($B65,'Damage costs'!$C$16:$C$43,0))/1000),\"\")","v":""},{"$f":"IFERROR(IF(OR($C$67=FALSE,LEFT($B65,3)<>\"NOX\"),AY57*INDEX('Damage costs'!$O$16:$O$43,MATCH($B65,'Damage costs'!$C$16:$C$43,0))/1000,AY57*INDEX('Damage costs'!$S$16:$S$43,MATCH($B65,'Damage costs'!$C$16:$C$43,0))/1000),\"\")","v":""},{"$f":"IFERROR(IF(OR($C$67=FALSE,LEFT($B65,3)<>\"NOX\"),AZ57*INDEX('Damage costs'!$O$16:$O$43,MATCH($B65,'Damage costs'!$C$16:$C$43,0))/1000,AZ57*INDEX('Damage costs'!$S$16:$S$43,MATCH($B65,'Damage costs'!$C$16:$C$43,0))/1000),\"\")","v":""},{"$f":"IFERROR(IF(OR($C$67=FALSE,LEFT($B65,3)<>\"NOX\"),BA57*INDEX('Damage costs'!$O$16:$O$43,MATCH($B65,'Damage costs'!$C$16:$C$43,0))/1000,BA57*INDEX('Damage costs'!$S$16:$S$43,MATCH($B65,'Damage costs'!$C$16:$C$43,0))/1000),\"\")","v":""},{"$f":"IFERROR(IF(OR($C$67=FALSE,LEFT($B65,3)<>\"NOX\"),BB57*INDEX('Damage costs'!$O$16:$O$43,MATCH($B65,'Damage costs'!$C$16:$C$43,0))/1000,BB57*INDEX('Damage costs'!$S$16:$S$43,MATCH($B65,'Damage costs'!$C$16:$C$43,0))/1000),\"\")","v":""},{"$f":"IFERROR(IF(OR($C$67=FALSE,LEFT($B65,3)<>\"NOX\"),BC57*INDEX('Damage costs'!$O$16:$O$43,MATCH($B65,'Damage costs'!$C$16:$C$43,0))/1000,BC57*INDEX('Damage costs'!$S$16:$S$43,MATCH($B65,'Damage costs'!$C$16:$C$43,0))/1000),\"\")","v":""},{"$f":"IFERROR(IF(OR($C$67=FALSE,LEFT($B65,3)<>\"NOX\"),BD57*INDEX('Damage costs'!$O$16:$O$43,MATCH($B65,'Damage costs'!$C$16:$C$43,0))/1000,BD57*INDEX('Damage costs'!$S$16:$S$43,MATCH($B65,'Damage costs'!$C$16:$C$43,0))/1000),\"\")","v":""},{"$f":"IFERROR(IF(OR($C$67=FALSE,LEFT($B65,3)<>\"NOX\"),BE57*INDEX('Damage costs'!$O$16:$O$43,MATCH($B65,'Damage costs'!$C$16:$C$43,0))/1000,BE57*INDEX('Damage costs'!$S$16:$S$43,MATCH($B65,'Damage costs'!$C$16:$C$43,0))/1000),\"\")","v":""},{"$f":"IFERROR(IF(OR($C$67=FALSE,LEFT($B65,3)<>\"NOX\"),BF57*INDEX('Damage costs'!$O$16:$O$43,MATCH($B65,'Damage costs'!$C$16:$C$43,0))/1000,BF57*INDEX('Damage costs'!$S$16:$S$43,MATCH($B65,'Damage costs'!$C$16:$C$43,0))/1000),\"\")","v":""},{"$f":"IFERROR(IF(OR($C$67=FALSE,LEFT($B65,3)<>\"NOX\"),BG57*INDEX('Damage costs'!$O$16:$O$43,MATCH($B65,'Damage costs'!$C$16:$C$43,0))/1000,BG57*INDEX('Damage costs'!$S$16:$S$43,MATCH($B65,'Damage costs'!$C$16:$C$43,0))/1000),\"\")","v":""},{"$f":"IFERROR(IF(OR($C$67=FALSE,LEFT($B65,3)<>\"NOX\"),BH57*INDEX('Damage costs'!$O$16:$O$43,MATCH($B65,'Damage costs'!$C$16:$C$43,0))/1000,BH57*INDEX('Damage costs'!$S$16:$S$43,MATCH($B65,'Damage costs'!$C$16:$C$43,0))/1000),\"\")","v":""},{"$f":"IFERROR(IF(OR($C$67=FALSE,LEFT($B65,3)<>\"NOX\"),BI57*INDEX('Damage costs'!$O$16:$O$43,MATCH($B65,'Damage costs'!$C$16:$C$43,0))/1000,BI57*INDEX('Damage costs'!$S$16:$S$43,MATCH($B65,'Damage costs'!$C$16:$C$43,0))/1000),\"\")","v":""},{"$f":"IFERROR(IF(OR($C$67=FALSE,LEFT($B65,3)<>\"NOX\"),BJ57*INDEX('Damage costs'!$O$16:$O$43,MATCH($B65,'Damage costs'!$C$16:$C$43,0))/1000,BJ57*INDEX('Damage costs'!$S$16:$S$43,MATCH($B65,'Damage costs'!$C$16:$C$43,0))/1000),\"\")","v":""},{"$f":"IFERROR(IF(OR($C$67=FALSE,LEFT($B65,3)<>\"NOX\"),BK57*INDEX('Damage costs'!$O$16:$O$43,MATCH($B65,'Damage costs'!$C$16:$C$43,0))/1000,BK57*INDEX('Damage costs'!$S$16:$S$43,MATCH($B65,'Damage costs'!$C$16:$C$43,0))/1000),\"\")","v":""},{"$f":"IFERROR(IF(OR($C$67=FALSE,LEFT($B65,3)<>\"NOX\"),BL57*INDEX('Damage costs'!$O$16:$O$43,MATCH($B65,'Damage costs'!$C$16:$C$43,0))/1000,BL57*INDEX('Damage costs'!$S$16:$S$43,MATCH($B65,'Damage costs'!$C$16:$C$43,0))/1000),\"\")","v":""},{"$f":"IFERROR(IF(OR($C$67=FALSE,LEFT($B65,3)<>\"NOX\"),BM57*INDEX('Damage costs'!$O$16:$O$43,MATCH($B65,'Damage costs'!$C$16:$C$43,0))/1000,BM57*INDEX('Damage costs'!$S$16:$S$43,MATCH($B65,'Damage costs'!$C$16:$C$43,0))/1000),\"\")","v":""},{"$f":"IFERROR(IF(OR($C$67=FALSE,LEFT($B65,3)<>\"NOX\"),BN57*INDEX('Damage costs'!$O$16:$O$43,MATCH($B65,'Damage costs'!$C$16:$C$43,0))/1000,BN57*INDEX('Damage costs'!$S$16:$S$43,MATCH($B65,'Damage costs'!$C$16:$C$43,0))/1000),\"\")","v":""},{"$f":"IFERROR(IF(OR($C$67=FALSE,LEFT($B65,3)<>\"NOX\"),BO57*INDEX('Damage costs'!$O$16:$O$43,MATCH($B65,'Damage costs'!$C$16:$C$43,0))/1000,BO57*INDEX('Damage costs'!$S$16:$S$43,MATCH($B65,'Damage costs'!$C$16:$C$43,0))/1000),\"\")","v":""},{"$f":"IFERROR(IF(OR($C$67=FALSE,LEFT($B65,3)<>\"NOX\"),BP57*INDEX('Damage costs'!$O$16:$O$43,MATCH($B65,'Damage costs'!$C$16:$C$43,0))/1000,BP57*INDEX('Damage costs'!$S$16:$S$43,MATCH($B65,'Damage costs'!$C$16:$C$43,0))/1000),\"\")","v":""},{"$f":"IFERROR(IF(OR($C$67=FALSE,LEFT($B65,3)<>\"NOX\"),BQ57*INDEX('Damage costs'!$O$16:$O$43,MATCH($B65,'Damage costs'!$C$16:$C$43,0))/1000,BQ57*INDEX('Damage costs'!$S$16:$S$43,MATCH($B65,'Damage costs'!$C$16:$C$43,0))/1000),\"\")","v":""},{"$f":"IFERROR(IF(OR($C$67=FALSE,LEFT($B65,3)<>\"NOX\"),BR57*INDEX('Damage costs'!$O$16:$O$43,MATCH($B65,'Damage costs'!$C$16:$C$43,0))/1000,BR57*INDEX('Damage costs'!$S$16:$S$43,MATCH($B65,'Damage costs'!$C$16:$C$43,0))/1000),\"\")","v":""},{"$f":"IFERROR(IF(OR($C$67=FALSE,LEFT($B65,3)<>\"NOX\"),BS57*INDEX('Damage costs'!$O$16:$O$43,MATCH($B65,'Damage costs'!$C$16:$C$43,0))/1000,BS57*INDEX('Damage costs'!$S$16:$S$43,MATCH($B65,'Damage costs'!$C$16:$C$43,0))/1000),\"\")","v":""},{"$f":"IFERROR(IF(OR($C$67=FALSE,LEFT($B65,3)<>\"NOX\"),BT57*INDEX('Damage costs'!$O$16:$O$43,MATCH($B65,'Damage costs'!$C$16:$C$43,0))/1000,BT57*INDEX('Damage costs'!$S$16:$S$43,MATCH($B65,'Damage costs'!$C$16:$C$43,0))/1000),\"\")","v":""},{"$f":"IFERROR(IF(OR($C$67=FALSE,LEFT($B65,3)<>\"NOX\"),BU57*INDEX('Damage costs'!$O$16:$O$43,MATCH($B65,'Damage costs'!$C$16:$C$43,0))/1000,BU57*INDEX('Damage costs'!$S$16:$S$43,MATCH($B65,'Damage costs'!$C$16:$C$43,0))/1000),\"\")","v":""},{"$f":"IFERROR(IF(OR($C$67=FALSE,LEFT($B65,3)<>\"NOX\"),BV57*INDEX('Damage costs'!$O$16:$O$43,MATCH($B65,'Damage costs'!$C$16:$C$43,0))/1000,BV57*INDEX('Damage costs'!$S$16:$S$43,MATCH($B65,'Damage costs'!$C$16:$C$43,0))/1000),\"\")","v":""},{"$f":"IFERROR(IF(OR($C$67=FALSE,LEFT($B65,3)<>\"NOX\"),BW57*INDEX('Damage costs'!$O$16:$O$43,MATCH($B65,'Damage costs'!$C$16:$C$43,0))/1000,BW57*INDEX('Damage costs'!$S$16:$S$43,MATCH($B65,'Damage costs'!$C$16:$C$43,0))/1000),\"\")","v":""},{"$f":"IFERROR(IF(OR($C$67=FALSE,LEFT($B65,3)<>\"NOX\"),BX57*INDEX('Damage costs'!$O$16:$O$43,MATCH($B65,'Damage costs'!$C$16:$C$43,0))/1000,BX57*INDEX('Damage costs'!$S$16:$S$43,MATCH($B65,'Damage costs'!$C$16:$C$43,0))/1000),\"\")","v":""},{"$f":"IFERROR(IF(OR($C$67=FALSE,LEFT($B65,3)<>\"NOX\"),BY57*INDEX('Damage costs'!$O$16:$O$43,MATCH($B65,'Damage costs'!$C$16:$C$43,0))/1000,BY57*INDEX('Damage costs'!$S$16:$S$43,MATCH($B65,'Damage costs'!$C$16:$C$43,0))/1000),\"\")","v":""},{"$f":"IFERROR(IF(OR($C$67=FALSE,LEFT($B65,3)<>\"NOX\"),BZ57*INDEX('Damage costs'!$O$16:$O$43,MATCH($B65,'Damage costs'!$C$16:$C$43,0))/1000,BZ57*INDEX('Damage costs'!$S$16:$S$43,MATCH($B65,'Damage costs'!$C$16:$C$43,0))/1000),\"\")","v":""},{"$f":"IFERROR(IF(OR($C$67=FALSE,LEFT($B65,3)<>\"NOX\"),CA57*INDEX('Damage costs'!$O$16:$O$43,MATCH($B65,'Damage costs'!$C$16:$C$43,0))/1000,CA57*INDEX('Damage costs'!$S$16:$S$43,MATCH($B65,'Damage costs'!$C$16:$C$43,0))/1000),\"\")","v":""},{"$f":"IFERROR(IF(OR($C$67=FALSE,LEFT($B65,3)<>\"NOX\"),CB57*INDEX('Damage costs'!$O$16:$O$43,MATCH($B65,'Damage costs'!$C$16:$C$43,0))/1000,CB57*INDEX('Damage costs'!$S$16:$S$43,MATCH($B65,'Damage costs'!$C$16:$C$43,0))/1000),\"\")","v":""},{"$f":"IFERROR(IF(OR($C$67=FALSE,LEFT($B65,3)<>\"NOX\"),CC57*INDEX('Damage costs'!$O$16:$O$43,MATCH($B65,'Damage costs'!$C$16:$C$43,0))/1000,CC57*INDEX('Damage costs'!$S$16:$S$43,MATCH($B65,'Damage costs'!$C$16:$C$43,0))/1000),\"\")","v":""},{"$f":"IFERROR(IF(OR($C$67=FALSE,LEFT($B65,3)<>\"NOX\"),CD57*INDEX('Damage costs'!$O$16:$O$43,MATCH($B65,'Damage costs'!$C$16:$C$43,0))/1000,CD57*INDEX('Damage costs'!$S$16:$S$43,MATCH($B65,'Damage costs'!$C$16:$C$43,0))/1000),\"\")","v":""},{"$f":"IFERROR(IF(OR($C$67=FALSE,LEFT($B65,3)<>\"NOX\"),CE57*INDEX('Damage costs'!$O$16:$O$43,MATCH($B65,'Damage costs'!$C$16:$C$43,0))/1000,CE57*INDEX('Damage costs'!$S$16:$S$43,MATCH($B65,'Damage costs'!$C$16:$C$43,0))/1000),\"\")","v":""},{"$f":"IFERROR(IF(OR($C$67=FALSE,LEFT($B65,3)<>\"NOX\"),CF57*INDEX('Damage costs'!$O$16:$O$43,MATCH($B65,'Damage costs'!$C$16:$C$43,0))/1000,CF57*INDEX('Damage costs'!$S$16:$S$43,MATCH($B65,'Damage costs'!$C$16:$C$43,0))/1000),\"\")","v":""},{"$f":"IFERROR(IF(OR($C$67=FALSE,LEFT($B65,3)<>\"NOX\"),CG57*INDEX('Damage costs'!$O$16:$O$43,MATCH($B65,'Damage costs'!$C$16:$C$43,0))/1000,CG57*INDEX('Damage costs'!$S$16:$S$43,MATCH($B65,'Damage costs'!$C$16:$C$43,0))/1000),\"\")","v":""},{"$f":"IFERROR(IF(OR($C$67=FALSE,LEFT($B65,3)<>\"NOX\"),CH57*INDEX('Damage costs'!$O$16:$O$43,MATCH($B65,'Damage costs'!$C$16:$C$43,0))/1000,CH57*INDEX('Damage costs'!$S$16:$S$43,MATCH($B65,'Damage costs'!$C$16:$C$43,0))/1000),\"\")","v":""},{"$f":"IFERROR(IF(OR($C$67=FALSE,LEFT($B65,3)<>\"NOX\"),CI57*INDEX('Damage costs'!$O$16:$O$43,MATCH($B65,'Damage costs'!$C$16:$C$43,0))/1000,CI57*INDEX('Damage costs'!$S$16:$S$43,MATCH($B65,'Damage costs'!$C$16:$C$43,0))/1000),\"\")","v":""},{"$f":"IFERROR(IF(OR($C$67=FALSE,LEFT($B65,3)<>\"NOX\"),CJ57*INDEX('Damage costs'!$O$16:$O$43,MATCH($B65,'Damage costs'!$C$16:$C$43,0))/1000,CJ57*INDEX('Damage costs'!$S$16:$S$43,MATCH($B65,'Damage costs'!$C$16:$C$43,0))/1000),\"\")","v":""},{"$f":"IFERROR(IF(OR($C$67=FALSE,LEFT($B65,3)<>\"NOX\"),CK57*INDEX('Damage costs'!$O$16:$O$43,MATCH($B65,'Damage costs'!$C$16:$C$43,0))/1000,CK57*INDEX('Damage costs'!$S$16:$S$43,MATCH($B65,'Damage costs'!$C$16:$C$43,0))/1000),\"\")","v":""},{"$f":"IFERROR(IF(OR($C$67=FALSE,LEFT($B65,3)<>\"NOX\"),CL57*INDEX('Damage costs'!$O$16:$O$43,MATCH($B65,'Damage costs'!$C$16:$C$43,0))/1000,CL57*INDEX('Damage costs'!$S$16:$S$43,MATCH($B65,'Damage costs'!$C$16:$C$43,0))/1000),\"\")","v":""},{"$f":"IFERROR(IF(OR($C$67=FALSE,LEFT($B65,3)<>\"NOX\"),CM57*INDEX('Damage costs'!$O$16:$O$43,MATCH($B65,'Damage costs'!$C$16:$C$43,0))/1000,CM57*INDEX('Damage costs'!$S$16:$S$43,MATCH($B65,'Damage costs'!$C$16:$C$43,0))/1000),\"\")","v":""},{"$f":"IFERROR(IF(OR($C$67=FALSE,LEFT($B65,3)<>\"NOX\"),CN57*INDEX('Damage costs'!$O$16:$O$43,MATCH($B65,'Damage costs'!$C$16:$C$43,0))/1000,CN57*INDEX('Damage costs'!$S$16:$S$43,MATCH($B65,'Damage costs'!$C$16:$C$43,0))/1000),\"\")","v":""},{"$f":"IFERROR(IF(OR($C$67=FALSE,LEFT($B65,3)<>\"NOX\"),CO57*INDEX('Damage costs'!$O$16:$O$43,MATCH($B65,'Damage costs'!$C$16:$C$43,0))/1000,CO57*INDEX('Damage costs'!$S$16:$S$43,MATCH($B65,'Damage costs'!$C$16:$C$43,0))/1000),\"\")","v":""},{"$f":"IFERROR(IF(OR($C$67=FALSE,LEFT($B65,3)<>\"NOX\"),CP57*INDEX('Damage costs'!$O$16:$O$43,MATCH($B65,'Damage costs'!$C$16:$C$43,0))/1000,CP57*INDEX('Damage costs'!$S$16:$S$43,MATCH($B65,'Damage costs'!$C$16:$C$43,0))/1000),\"\")","v":""},{"$f":"IFERROR(IF(OR($C$67=FALSE,LEFT($B65,3)<>\"NOX\"),CQ57*INDEX('Damage costs'!$O$16:$O$43,MATCH($B65,'Damage costs'!$C$16:$C$43,0))/1000,CQ57*INDEX('Damage costs'!$S$16:$S$43,MATCH($B65,'Damage costs'!$C$16:$C$43,0))/1000),\"\")","v":""},{"$f":"IFERROR(IF(OR($C$67=FALSE,LEFT($B65,3)<>\"NOX\"),CR57*INDEX('Damage costs'!$O$16:$O$43,MATCH($B65,'Damage costs'!$C$16:$C$43,0))/1000,CR57*INDEX('Damage costs'!$S$16:$S$43,MATCH($B65,'Damage costs'!$C$16:$C$43,0))/1000),\"\")","v":""},{"$f":"IFERROR(IF(OR($C$67=FALSE,LEFT($B65,3)<>\"NOX\"),CS57*INDEX('Damage costs'!$O$16:$O$43,MATCH($B65,'Damage costs'!$C$16:$C$43,0))/1000,CS57*INDEX('Damage costs'!$S$16:$S$43,MATCH($B65,'Damage costs'!$C$16:$C$43,0))/1000),\"\")","v":""},{"$f":"IFERROR(IF(OR($C$67=FALSE,LEFT($B65,3)<>\"NOX\"),CT57*INDEX('Damage costs'!$O$16:$O$43,MATCH($B65,'Damage costs'!$C$16:$C$43,0))/1000,CT57*INDEX('Damage costs'!$S$16:$S$43,MATCH($B65,'Damage costs'!$C$16:$C$43,0))/1000),\"\")","v":""},{"$f":"IFERROR(IF(OR($C$67=FALSE,LEFT($B65,3)<>\"NOX\"),CU57*INDEX('Damage costs'!$O$16:$O$43,MATCH($B65,'Damage costs'!$C$16:$C$43,0))/1000,CU57*INDEX('Damage costs'!$S$16:$S$43,MATCH($B65,'Damage costs'!$C$16:$C$43,0))/1000),\"\")","v":""},{"$f":"IFERROR(IF(OR($C$67=FALSE,LEFT($B65,3)<>\"NOX\"),CV57*INDEX('Damage costs'!$O$16:$O$43,MATCH($B65,'Damage costs'!$C$16:$C$43,0))/1000,CV57*INDEX('Damage costs'!$S$16:$S$43,MATCH($B65,'Damage costs'!$C$16:$C$43,0))/1000),\"\")","v":""},{"$f":"IFERROR(IF(OR($C$67=FALSE,LEFT($B65,3)<>\"NOX\"),CW57*INDEX('Damage costs'!$O$16:$O$43,MATCH($B65,'Damage costs'!$C$16:$C$43,0))/1000,CW57*INDEX('Damage costs'!$S$16:$S$43,MATCH($B65,'Damage costs'!$C$16:$C$43,0))/1000),\"\")","v":""},{"$f":"IFERROR(IF(OR($C$67=FALSE,LEFT($B65,3)<>\"NOX\"),CX57*INDEX('Damage costs'!$O$16:$O$43,MATCH($B65,'Damage costs'!$C$16:$C$43,0))/1000,CX57*INDEX('Damage costs'!$S$16:$S$43,MATCH($B65,'Damage costs'!$C$16:$C$43,0))/1000),\"\")","v":""},{"$f":"IFERROR(IF(OR($C$67=FALSE,LEFT($B65,3)<>\"NOX\"),CY57*INDEX('Damage costs'!$O$16:$O$43,MATCH($B65,'Damage costs'!$C$16:$C$43,0))/1000,CY57*INDEX('Damage costs'!$S$16:$S$43,MATCH($B65,'Damage costs'!$C$16:$C$43,0))/1000),\"\")","v":""}]
[null,0,"£000's",{"$f":"IFERROR(IF(OR($C$67=FALSE,LEFT($B66,3)<>\"NOX\"),D58*INDEX('Damage costs'!$O$16:$O$43,MATCH($B66,'Damage costs'!$C$16:$C$43,0))/1000,D58*INDEX('Damage costs'!$S$16:$S$43,MATCH($B66,'Damage costs'!$C$16:$C$43,0))/1000),\"\")","v":""},{"$f":"IFERROR(IF(OR($C$67=FALSE,LEFT($B66,3)<>\"NOX\"),E58*INDEX('Damage costs'!$O$16:$O$43,MATCH($B66,'Damage costs'!$C$16:$C$43,0))/1000,E58*INDEX('Damage costs'!$S$16:$S$43,MATCH($B66,'Damage costs'!$C$16:$C$43,0))/1000),\"\")","v":""},{"$f":"IFERROR(IF(OR($C$67=FALSE,LEFT($B66,3)<>\"NOX\"),F58*INDEX('Damage costs'!$O$16:$O$43,MATCH($B66,'Damage costs'!$C$16:$C$43,0))/1000,F58*INDEX('Damage costs'!$S$16:$S$43,MATCH($B66,'Damage costs'!$C$16:$C$43,0))/1000),\"\")","v":""},{"$f":"IFERROR(IF(OR($C$67=FALSE,LEFT($B66,3)<>\"NOX\"),G58*INDEX('Damage costs'!$O$16:$O$43,MATCH($B66,'Damage costs'!$C$16:$C$43,0))/1000,G58*INDEX('Damage costs'!$S$16:$S$43,MATCH($B66,'Damage costs'!$C$16:$C$43,0))/1000),\"\")","v":""},{"$f":"IFERROR(IF(OR($C$67=FALSE,LEFT($B66,3)<>\"NOX\"),H58*INDEX('Damage costs'!$O$16:$O$43,MATCH($B66,'Damage costs'!$C$16:$C$43,0))/1000,H58*INDEX('Damage costs'!$S$16:$S$43,MATCH($B66,'Damage costs'!$C$16:$C$43,0))/1000),\"\")","v":""},{"$f":"IFERROR(IF(OR($C$67=FALSE,LEFT($B66,3)<>\"NOX\"),I58*INDEX('Damage costs'!$O$16:$O$43,MATCH($B66,'Damage costs'!$C$16:$C$43,0))/1000,I58*INDEX('Damage costs'!$S$16:$S$43,MATCH($B66,'Damage costs'!$C$16:$C$43,0))/1000),\"\")","v":""},{"$f":"IFERROR(IF(OR($C$67=FALSE,LEFT($B66,3)<>\"NOX\"),J58*INDEX('Damage costs'!$O$16:$O$43,MATCH($B66,'Damage costs'!$C$16:$C$43,0))/1000,J58*INDEX('Damage costs'!$S$16:$S$43,MATCH($B66,'Damage costs'!$C$16:$C$43,0))/1000),\"\")","v":""},{"$f":"IFERROR(IF(OR($C$67=FALSE,LEFT($B66,3)<>\"NOX\"),K58*INDEX('Damage costs'!$O$16:$O$43,MATCH($B66,'Damage costs'!$C$16:$C$43,0))/1000,K58*INDEX('Damage costs'!$S$16:$S$43,MATCH($B66,'Damage costs'!$C$16:$C$43,0))/1000),\"\")","v":""},{"$f":"IFERROR(IF(OR($C$67=FALSE,LEFT($B66,3)<>\"NOX\"),L58*INDEX('Damage costs'!$O$16:$O$43,MATCH($B66,'Damage costs'!$C$16:$C$43,0))/1000,L58*INDEX('Damage costs'!$S$16:$S$43,MATCH($B66,'Damage costs'!$C$16:$C$43,0))/1000),\"\")","v":""},{"$f":"IFERROR(IF(OR($C$67=FALSE,LEFT($B66,3)<>\"NOX\"),M58*INDEX('Damage costs'!$O$16:$O$43,MATCH($B66,'Damage costs'!$C$16:$C$43,0))/1000,M58*INDEX('Damage costs'!$S$16:$S$43,MATCH($B66,'Damage costs'!$C$16:$C$43,0))/1000),\"\")","v":""},{"$f":"IFERROR(IF(OR($C$67=FALSE,LEFT($B66,3)<>\"NOX\"),N58*INDEX('Damage costs'!$O$16:$O$43,MATCH($B66,'Damage costs'!$C$16:$C$43,0))/1000,N58*INDEX('Damage costs'!$S$16:$S$43,MATCH($B66,'Damage costs'!$C$16:$C$43,0))/1000),\"\")","v":""},{"$f":"IFERROR(IF(OR($C$67=FALSE,LEFT($B66,3)<>\"NOX\"),O58*INDEX('Damage costs'!$O$16:$O$43,MATCH($B66,'Damage costs'!$C$16:$C$43,0))/1000,O58*INDEX('Damage costs'!$S$16:$S$43,MATCH($B66,'Damage costs'!$C$16:$C$43,0))/1000),\"\")","v":""},{"$f":"IFERROR(IF(OR($C$67=FALSE,LEFT($B66,3)<>\"NOX\"),P58*INDEX('Damage costs'!$O$16:$O$43,MATCH($B66,'Damage costs'!$C$16:$C$43,0))/1000,P58*INDEX('Damage costs'!$S$16:$S$43,MATCH($B66,'Damage costs'!$C$16:$C$43,0))/1000),\"\")","v":""},{"$f":"IFERROR(IF(OR($C$67=FALSE,LEFT($B66,3)<>\"NOX\"),Q58*INDEX('Damage costs'!$O$16:$O$43,MATCH($B66,'Damage costs'!$C$16:$C$43,0))/1000,Q58*INDEX('Damage costs'!$S$16:$S$43,MATCH($B66,'Damage costs'!$C$16:$C$43,0))/1000),\"\")","v":""},{"$f":"IFERROR(IF(OR($C$67=FALSE,LEFT($B66,3)<>\"NOX\"),R58*INDEX('Damage costs'!$O$16:$O$43,MATCH($B66,'Damage costs'!$C$16:$C$43,0))/1000,R58*INDEX('Damage costs'!$S$16:$S$43,MATCH($B66,'Damage costs'!$C$16:$C$43,0))/1000),\"\")","v":""},{"$f":"IFERROR(IF(OR($C$67=FALSE,LEFT($B66,3)<>\"NOX\"),S58*INDEX('Damage costs'!$O$16:$O$43,MATCH($B66,'Damage costs'!$C$16:$C$43,0))/1000,S58*INDEX('Damage costs'!$S$16:$S$43,MATCH($B66,'Damage costs'!$C$16:$C$43,0))/1000),\"\")","v":""},{"$f":"IFERROR(IF(OR($C$67=FALSE,LEFT($B66,3)<>\"NOX\"),T58*INDEX('Damage costs'!$O$16:$O$43,MATCH($B66,'Damage costs'!$C$16:$C$43,0))/1000,T58*INDEX('Damage costs'!$S$16:$S$43,MATCH($B66,'Damage costs'!$C$16:$C$43,0))/1000),\"\")","v":""},{"$f":"IFERROR(IF(OR($C$67=FALSE,LEFT($B66,3)<>\"NOX\"),U58*INDEX('Damage costs'!$O$16:$O$43,MATCH($B66,'Damage costs'!$C$16:$C$43,0))/1000,U58*INDEX('Damage costs'!$S$16:$S$43,MATCH($B66,'Damage costs'!$C$16:$C$43,0))/1000),\"\")","v":""},{"$f":"IFERROR(IF(OR($C$67=FALSE,LEFT($B66,3)<>\"NOX\"),V58*INDEX('Damage costs'!$O$16:$O$43,MATCH($B66,'Damage costs'!$C$16:$C$43,0))/1000,V58*INDEX('Damage costs'!$S$16:$S$43,MATCH($B66,'Damage costs'!$C$16:$C$43,0))/1000),\"\")","v":""},{"$f":"IFERROR(IF(OR($C$67=FALSE,LEFT($B66,3)<>\"NOX\"),W58*INDEX('Damage costs'!$O$16:$O$43,MATCH($B66,'Damage costs'!$C$16:$C$43,0))/1000,W58*INDEX('Damage costs'!$S$16:$S$43,MATCH($B66,'Damage costs'!$C$16:$C$43,0))/1000),\"\")","v":""},{"$f":"IFERROR(IF(OR($C$67=FALSE,LEFT($B66,3)<>\"NOX\"),X58*INDEX('Damage costs'!$O$16:$O$43,MATCH($B66,'Damage costs'!$C$16:$C$43,0))/1000,X58*INDEX('Damage costs'!$S$16:$S$43,MATCH($B66,'Damage costs'!$C$16:$C$43,0))/1000),\"\")","v":""},{"$f":"IFERROR(IF(OR($C$67=FALSE,LEFT($B66,3)<>\"NOX\"),Y58*INDEX('Damage costs'!$O$16:$O$43,MATCH($B66,'Damage costs'!$C$16:$C$43,0))/1000,Y58*INDEX('Damage costs'!$S$16:$S$43,MATCH($B66,'Damage costs'!$C$16:$C$43,0))/1000),\"\")","v":""},{"$f":"IFERROR(IF(OR($C$67=FALSE,LEFT($B66,3)<>\"NOX\"),Z58*INDEX('Damage costs'!$O$16:$O$43,MATCH($B66,'Damage costs'!$C$16:$C$43,0))/1000,Z58*INDEX('Damage costs'!$S$16:$S$43,MATCH($B66,'Damage costs'!$C$16:$C$43,0))/1000),\"\")","v":""},{"$f":"IFERROR(IF(OR($C$67=FALSE,LEFT($B66,3)<>\"NOX\"),AA58*INDEX('Damage costs'!$O$16:$O$43,MATCH($B66,'Damage costs'!$C$16:$C$43,0))/1000,AA58*INDEX('Damage costs'!$S$16:$S$43,MATCH($B66,'Damage costs'!$C$16:$C$43,0))/1000),\"\")","v":""},{"$f":"IFERROR(IF(OR($C$67=FALSE,LEFT($B66,3)<>\"NOX\"),AB58*INDEX('Damage costs'!$O$16:$O$43,MATCH($B66,'Damage costs'!$C$16:$C$43,0))/1000,AB58*INDEX('Damage costs'!$S$16:$S$43,MATCH($B66,'Damage costs'!$C$16:$C$43,0))/1000),\"\")","v":""},{"$f":"IFERROR(IF(OR($C$67=FALSE,LEFT($B66,3)<>\"NOX\"),AC58*INDEX('Damage costs'!$O$16:$O$43,MATCH($B66,'Damage costs'!$C$16:$C$43,0))/1000,AC58*INDEX('Damage costs'!$S$16:$S$43,MATCH($B66,'Damage costs'!$C$16:$C$43,0))/1000),\"\")","v":""},{"$f":"IFERROR(IF(OR($C$67=FALSE,LEFT($B66,3)<>\"NOX\"),AD58*INDEX('Damage costs'!$O$16:$O$43,MATCH($B66,'Damage costs'!$C$16:$C$43,0))/1000,AD58*INDEX('Damage costs'!$S$16:$S$43,MATCH($B66,'Damage costs'!$C$16:$C$43,0))/1000),\"\")","v":""},{"$f":"IFERROR(IF(OR($C$67=FALSE,LEFT($B66,3)<>\"NOX\"),AE58*INDEX('Damage costs'!$O$16:$O$43,MATCH($B66,'Damage costs'!$C$16:$C$43,0))/1000,AE58*INDEX('Damage costs'!$S$16:$S$43,MATCH($B66,'Damage costs'!$C$16:$C$43,0))/1000),\"\")","v":""},{"$f":"IFERROR(IF(OR($C$67=FALSE,LEFT($B66,3)<>\"NOX\"),AF58*INDEX('Damage costs'!$O$16:$O$43,MATCH($B66,'Damage costs'!$C$16:$C$43,0))/1000,AF58*INDEX('Damage costs'!$S$16:$S$43,MATCH($B66,'Damage costs'!$C$16:$C$43,0))/1000),\"\")","v":""},{"$f":"IFERROR(IF(OR($C$67=FALSE,LEFT($B66,3)<>\"NOX\"),AG58*INDEX('Damage costs'!$O$16:$O$43,MATCH($B66,'Damage costs'!$C$16:$C$43,0))/1000,AG58*INDEX('Damage costs'!$S$16:$S$43,MATCH($B66,'Damage costs'!$C$16:$C$43,0))/1000),\"\")","v":""},{"$f":"IFERROR(IF(OR($C$67=FALSE,LEFT($B66,3)<>\"NOX\"),AH58*INDEX('Damage costs'!$O$16:$O$43,MATCH($B66,'Damage costs'!$C$16:$C$43,0))/1000,AH58*INDEX('Damage costs'!$S$16:$S$43,MATCH($B66,'Damage costs'!$C$16:$C$43,0))/1000),\"\")","v":""},{"$f":"IFERROR(IF(OR($C$67=FALSE,LEFT($B66,3)<>\"NOX\"),AI58*INDEX('Damage costs'!$O$16:$O$43,MATCH($B66,'Damage costs'!$C$16:$C$43,0))/1000,AI58*INDEX('Damage costs'!$S$16:$S$43,MATCH($B66,'Damage costs'!$C$16:$C$43,0))/1000),\"\")","v":""},{"$f":"IFERROR(IF(OR($C$67=FALSE,LEFT($B66,3)<>\"NOX\"),AJ58*INDEX('Damage costs'!$O$16:$O$43,MATCH($B66,'Damage costs'!$C$16:$C$43,0))/1000,AJ58*INDEX('Damage costs'!$S$16:$S$43,MATCH($B66,'Damage costs'!$C$16:$C$43,0))/1000),\"\")","v":""},{"$f":"IFERROR(IF(OR($C$67=FALSE,LEFT($B66,3)<>\"NOX\"),AK58*INDEX('Damage costs'!$O$16:$O$43,MATCH($B66,'Damage costs'!$C$16:$C$43,0))/1000,AK58*INDEX('Damage costs'!$S$16:$S$43,MATCH($B66,'Damage costs'!$C$16:$C$43,0))/1000),\"\")","v":""},{"$f":"IFERROR(IF(OR($C$67=FALSE,LEFT($B66,3)<>\"NOX\"),AL58*INDEX('Damage costs'!$O$16:$O$43,MATCH($B66,'Damage costs'!$C$16:$C$43,0))/1000,AL58*INDEX('Damage costs'!$S$16:$S$43,MATCH($B66,'Damage costs'!$C$16:$C$43,0))/1000),\"\")","v":""},{"$f":"IFERROR(IF(OR($C$67=FALSE,LEFT($B66,3)<>\"NOX\"),AM58*INDEX('Damage costs'!$O$16:$O$43,MATCH($B66,'Damage costs'!$C$16:$C$43,0))/1000,AM58*INDEX('Damage costs'!$S$16:$S$43,MATCH($B66,'Damage costs'!$C$16:$C$43,0))/1000),\"\")","v":""},{"$f":"IFERROR(IF(OR($C$67=FALSE,LEFT($B66,3)<>\"NOX\"),AN58*INDEX('Damage costs'!$O$16:$O$43,MATCH($B66,'Damage costs'!$C$16:$C$43,0))/1000,AN58*INDEX('Damage costs'!$S$16:$S$43,MATCH($B66,'Damage costs'!$C$16:$C$43,0))/1000),\"\")","v":""},{"$f":"IFERROR(IF(OR($C$67=FALSE,LEFT($B66,3)<>\"NOX\"),AO58*INDEX('Damage costs'!$O$16:$O$43,MATCH($B66,'Damage costs'!$C$16:$C$43,0))/1000,AO58*INDEX('Damage costs'!$S$16:$S$43,MATCH($B66,'Damage costs'!$C$16:$C$43,0))/1000),\"\")","v":""},{"$f":"IFERROR(IF(OR($C$67=FALSE,LEFT($B66,3)<>\"NOX\"),AP58*INDEX('Damage costs'!$O$16:$O$43,MATCH($B66,'Damage costs'!$C$16:$C$43,0))/1000,AP58*INDEX('Damage costs'!$S$16:$S$43,MATCH($B66,'Damage costs'!$C$16:$C$43,0))/1000),\"\")","v":""},{"$f":"IFERROR(IF(OR($C$67=FALSE,LEFT($B66,3)<>\"NOX\"),AQ58*INDEX('Damage costs'!$O$16:$O$43,MATCH($B66,'Damage costs'!$C$16:$C$43,0))/1000,AQ58*INDEX('Damage costs'!$S$16:$S$43,MATCH($B66,'Damage costs'!$C$16:$C$43,0))/1000),\"\")","v":""},{"$f":"IFERROR(IF(OR($C$67=FALSE,LEFT($B66,3)<>\"NOX\"),AR58*INDEX('Damage costs'!$O$16:$O$43,MATCH($B66,'Damage costs'!$C$16:$C$43,0))/1000,AR58*INDEX('Damage costs'!$S$16:$S$43,MATCH($B66,'Damage costs'!$C$16:$C$43,0))/1000),\"\")","v":""},{"$f":"IFERROR(IF(OR($C$67=FALSE,LEFT($B66,3)<>\"NOX\"),AS58*INDEX('Damage costs'!$O$16:$O$43,MATCH($B66,'Damage costs'!$C$16:$C$43,0))/1000,AS58*INDEX('Damage costs'!$S$16:$S$43,MATCH($B66,'Damage costs'!$C$16:$C$43,0))/1000),\"\")","v":""},{"$f":"IFERROR(IF(OR($C$67=FALSE,LEFT($B66,3)<>\"NOX\"),AT58*INDEX('Damage costs'!$O$16:$O$43,MATCH($B66,'Damage costs'!$C$16:$C$43,0))/1000,AT58*INDEX('Damage costs'!$S$16:$S$43,MATCH($B66,'Damage costs'!$C$16:$C$43,0))/1000),\"\")","v":""},{"$f":"IFERROR(IF(OR($C$67=FALSE,LEFT($B66,3)<>\"NOX\"),AU58*INDEX('Damage costs'!$O$16:$O$43,MATCH($B66,'Damage costs'!$C$16:$C$43,0))/1000,AU58*INDEX('Damage costs'!$S$16:$S$43,MATCH($B66,'Damage costs'!$C$16:$C$43,0))/1000),\"\")","v":""},{"$f":"IFERROR(IF(OR($C$67=FALSE,LEFT($B66,3)<>\"NOX\"),AV58*INDEX('Damage costs'!$O$16:$O$43,MATCH($B66,'Damage costs'!$C$16:$C$43,0))/1000,AV58*INDEX('Damage costs'!$S$16:$S$43,MATCH($B66,'Damage costs'!$C$16:$C$43,0))/1000),\"\")","v":""},{"$f":"IFERROR(IF(OR($C$67=FALSE,LEFT($B66,3)<>\"NOX\"),AW58*INDEX('Damage costs'!$O$16:$O$43,MATCH($B66,'Damage costs'!$C$16:$C$43,0))/1000,AW58*INDEX('Damage costs'!$S$16:$S$43,MATCH($B66,'Damage costs'!$C$16:$C$43,0))/1000),\"\")","v":""},{"$f":"IFERROR(IF(OR($C$67=FALSE,LEFT($B66,3)<>\"NOX\"),AX58*INDEX('Damage costs'!$O$16:$O$43,MATCH($B66,'Damage costs'!$C$16:$C$43,0))/1000,AX58*INDEX('Damage costs'!$S$16:$S$43,MATCH($B66,'Damage costs'!$C$16:$C$43,0))/1000),\"\")","v":""},{"$f":"IFERROR(IF(OR($C$67=FALSE,LEFT($B66,3)<>\"NOX\"),AY58*INDEX('Damage costs'!$O$16:$O$43,MATCH($B66,'Damage costs'!$C$16:$C$43,0))/1000,AY58*INDEX('Damage costs'!$S$16:$S$43,MATCH($B66,'Damage costs'!$C$16:$C$43,0))/1000),\"\")","v":""},{"$f":"IFERROR(IF(OR($C$67=FALSE,LEFT($B66,3)<>\"NOX\"),AZ58*INDEX('Damage costs'!$O$16:$O$43,MATCH($B66,'Damage costs'!$C$16:$C$43,0))/1000,AZ58*INDEX('Damage costs'!$S$16:$S$43,MATCH($B66,'Damage costs'!$C$16:$C$43,0))/1000),\"\")","v":""},{"$f":"IFERROR(IF(OR($C$67=FALSE,LEFT($B66,3)<>\"NOX\"),BA58*INDEX('Damage costs'!$O$16:$O$43,MATCH($B66,'Damage costs'!$C$16:$C$43,0))/1000,BA58*INDEX('Damage costs'!$S$16:$S$43,MATCH($B66,'Damage costs'!$C$16:$C$43,0))/1000),\"\")","v":""},{"$f":"IFERROR(IF(OR($C$67=FALSE,LEFT($B66,3)<>\"NOX\"),BB58*INDEX('Damage costs'!$O$16:$O$43,MATCH($B66,'Damage costs'!$C$16:$C$43,0))/1000,BB58*INDEX('Damage costs'!$S$16:$S$43,MATCH($B66,'Damage costs'!$C$16:$C$43,0))/1000),\"\")","v":""},{"$f":"IFERROR(IF(OR($C$67=FALSE,LEFT($B66,3)<>\"NOX\"),BC58*INDEX('Damage costs'!$O$16:$O$43,MATCH($B66,'Damage costs'!$C$16:$C$43,0))/1000,BC58*INDEX('Damage costs'!$S$16:$S$43,MATCH($B66,'Damage costs'!$C$16:$C$43,0))/1000),\"\")","v":""},{"$f":"IFERROR(IF(OR($C$67=FALSE,LEFT($B66,3)<>\"NOX\"),BD58*INDEX('Damage costs'!$O$16:$O$43,MATCH($B66,'Damage costs'!$C$16:$C$43,0))/1000,BD58*INDEX('Damage costs'!$S$16:$S$43,MATCH($B66,'Damage costs'!$C$16:$C$43,0))/1000),\"\")","v":""},{"$f":"IFERROR(IF(OR($C$67=FALSE,LEFT($B66,3)<>\"NOX\"),BE58*INDEX('Damage costs'!$O$16:$O$43,MATCH($B66,'Damage costs'!$C$16:$C$43,0))/1000,BE58*INDEX('Damage costs'!$S$16:$S$43,MATCH($B66,'Damage costs'!$C$16:$C$43,0))/1000),\"\")","v":""},{"$f":"IFERROR(IF(OR($C$67=FALSE,LEFT($B66,3)<>\"NOX\"),BF58*INDEX('Damage costs'!$O$16:$O$43,MATCH($B66,'Damage costs'!$C$16:$C$43,0))/1000,BF58*INDEX('Damage costs'!$S$16:$S$43,MATCH($B66,'Damage costs'!$C$16:$C$43,0))/1000),\"\")","v":""},{"$f":"IFERROR(IF(OR($C$67=FALSE,LEFT($B66,3)<>\"NOX\"),BG58*INDEX('Damage costs'!$O$16:$O$43,MATCH($B66,'Damage costs'!$C$16:$C$43,0))/1000,BG58*INDEX('Damage costs'!$S$16:$S$43,MATCH($B66,'Damage costs'!$C$16:$C$43,0))/1000),\"\")","v":""},{"$f":"IFERROR(IF(OR($C$67=FALSE,LEFT($B66,3)<>\"NOX\"),BH58*INDEX('Damage costs'!$O$16:$O$43,MATCH($B66,'Damage costs'!$C$16:$C$43,0))/1000,BH58*INDEX('Damage costs'!$S$16:$S$43,MATCH($B66,'Damage costs'!$C$16:$C$43,0))/1000),\"\")","v":""},{"$f":"IFERROR(IF(OR($C$67=FALSE,LEFT($B66,3)<>\"NOX\"),BI58*INDEX('Damage costs'!$O$16:$O$43,MATCH($B66,'Damage costs'!$C$16:$C$43,0))/1000,BI58*INDEX('Damage costs'!$S$16:$S$43,MATCH($B66,'Damage costs'!$C$16:$C$43,0))/1000),\"\")","v":""},{"$f":"IFERROR(IF(OR($C$67=FALSE,LEFT($B66,3)<>\"NOX\"),BJ58*INDEX('Damage costs'!$O$16:$O$43,MATCH($B66,'Damage costs'!$C$16:$C$43,0))/1000,BJ58*INDEX('Damage costs'!$S$16:$S$43,MATCH($B66,'Damage costs'!$C$16:$C$43,0))/1000),\"\")","v":""},{"$f":"IFERROR(IF(OR($C$67=FALSE,LEFT($B66,3)<>\"NOX\"),BK58*INDEX('Damage costs'!$O$16:$O$43,MATCH($B66,'Damage costs'!$C$16:$C$43,0))/1000,BK58*INDEX('Damage costs'!$S$16:$S$43,MATCH($B66,'Damage costs'!$C$16:$C$43,0))/1000),\"\")","v":""},{"$f":"IFERROR(IF(OR($C$67=FALSE,LEFT($B66,3)<>\"NOX\"),BL58*INDEX('Damage costs'!$O$16:$O$43,MATCH($B66,'Damage costs'!$C$16:$C$43,0))/1000,BL58*INDEX('Damage costs'!$S$16:$S$43,MATCH($B66,'Damage costs'!$C$16:$C$43,0))/1000),\"\")","v":""},{"$f":"IFERROR(IF(OR($C$67=FALSE,LEFT($B66,3)<>\"NOX\"),BM58*INDEX('Damage costs'!$O$16:$O$43,MATCH($B66,'Damage costs'!$C$16:$C$43,0))/1000,BM58*INDEX('Damage costs'!$S$16:$S$43,MATCH($B66,'Damage costs'!$C$16:$C$43,0))/1000),\"\")","v":""},{"$f":"IFERROR(IF(OR($C$67=FALSE,LEFT($B66,3)<>\"NOX\"),BN58*INDEX('Damage costs'!$O$16:$O$43,MATCH($B66,'Damage costs'!$C$16:$C$43,0))/1000,BN58*INDEX('Damage costs'!$S$16:$S$43,MATCH($B66,'Damage costs'!$C$16:$C$43,0))/1000),\"\")","v":""},{"$f":"IFERROR(IF(OR($C$67=FALSE,LEFT($B66,3)<>\"NOX\"),BO58*INDEX('Damage costs'!$O$16:$O$43,MATCH($B66,'Damage costs'!$C$16:$C$43,0))/1000,BO58*INDEX('Damage costs'!$S$16:$S$43,MATCH($B66,'Damage costs'!$C$16:$C$43,0))/1000),\"\")","v":""},{"$f":"IFERROR(IF(OR($C$67=FALSE,LEFT($B66,3)<>\"NOX\"),BP58*INDEX('Damage costs'!$O$16:$O$43,MATCH($B66,'Damage costs'!$C$16:$C$43,0))/1000,BP58*INDEX('Damage costs'!$S$16:$S$43,MATCH($B66,'Damage costs'!$C$16:$C$43,0))/1000),\"\")","v":""},{"$f":"IFERROR(IF(OR($C$67=FALSE,LEFT($B66,3)<>\"NOX\"),BQ58*INDEX('Damage costs'!$O$16:$O$43,MATCH($B66,'Damage costs'!$C$16:$C$43,0))/1000,BQ58*INDEX('Damage costs'!$S$16:$S$43,MATCH($B66,'Damage costs'!$C$16:$C$43,0))/1000),\"\")","v":""},{"$f":"IFERROR(IF(OR($C$67=FALSE,LEFT($B66,3)<>\"NOX\"),BR58*INDEX('Damage costs'!$O$16:$O$43,MATCH($B66,'Damage costs'!$C$16:$C$43,0))/1000,BR58*INDEX('Damage costs'!$S$16:$S$43,MATCH($B66,'Damage costs'!$C$16:$C$43,0))/1000),\"\")","v":""},{"$f":"IFERROR(IF(OR($C$67=FALSE,LEFT($B66,3)<>\"NOX\"),BS58*INDEX('Damage costs'!$O$16:$O$43,MATCH($B66,'Damage costs'!$C$16:$C$43,0))/1000,BS58*INDEX('Damage costs'!$S$16:$S$43,MATCH($B66,'Damage costs'!$C$16:$C$43,0))/1000),\"\")","v":""},{"$f":"IFERROR(IF(OR($C$67=FALSE,LEFT($B66,3)<>\"NOX\"),BT58*INDEX('Damage costs'!$O$16:$O$43,MATCH($B66,'Damage costs'!$C$16:$C$43,0))/1000,BT58*INDEX('Damage costs'!$S$16:$S$43,MATCH($B66,'Damage costs'!$C$16:$C$43,0))/1000),\"\")","v":""},{"$f":"IFERROR(IF(OR($C$67=FALSE,LEFT($B66,3)<>\"NOX\"),BU58*INDEX('Damage costs'!$O$16:$O$43,MATCH($B66,'Damage costs'!$C$16:$C$43,0))/1000,BU58*INDEX('Damage costs'!$S$16:$S$43,MATCH($B66,'Damage costs'!$C$16:$C$43,0))/1000),\"\")","v":""},{"$f":"IFERROR(IF(OR($C$67=FALSE,LEFT($B66,3)<>\"NOX\"),BV58*INDEX('Damage costs'!$O$16:$O$43,MATCH($B66,'Damage costs'!$C$16:$C$43,0))/1000,BV58*INDEX('Damage costs'!$S$16:$S$43,MATCH($B66,'Damage costs'!$C$16:$C$43,0))/1000),\"\")","v":""},{"$f":"IFERROR(IF(OR($C$67=FALSE,LEFT($B66,3)<>\"NOX\"),BW58*INDEX('Damage costs'!$O$16:$O$43,MATCH($B66,'Damage costs'!$C$16:$C$43,0))/1000,BW58*INDEX('Damage costs'!$S$16:$S$43,MATCH($B66,'Damage costs'!$C$16:$C$43,0))/1000),\"\")","v":""},{"$f":"IFERROR(IF(OR($C$67=FALSE,LEFT($B66,3)<>\"NOX\"),BX58*INDEX('Damage costs'!$O$16:$O$43,MATCH($B66,'Damage costs'!$C$16:$C$43,0))/1000,BX58*INDEX('Damage costs'!$S$16:$S$43,MATCH($B66,'Damage costs'!$C$16:$C$43,0))/1000),\"\")","v":""},{"$f":"IFERROR(IF(OR($C$67=FALSE,LEFT($B66,3)<>\"NOX\"),BY58*INDEX('Damage costs'!$O$16:$O$43,MATCH($B66,'Damage costs'!$C$16:$C$43,0))/1000,BY58*INDEX('Damage costs'!$S$16:$S$43,MATCH($B66,'Damage costs'!$C$16:$C$43,0))/1000),\"\")","v":""},{"$f":"IFERROR(IF(OR($C$67=FALSE,LEFT($B66,3)<>\"NOX\"),BZ58*INDEX('Damage costs'!$O$16:$O$43,MATCH($B66,'Damage costs'!$C$16:$C$43,0))/1000,BZ58*INDEX('Damage costs'!$S$16:$S$43,MATCH($B66,'Damage costs'!$C$16:$C$43,0))/1000),\"\")","v":""},{"$f":"IFERROR(IF(OR($C$67=FALSE,LEFT($B66,3)<>\"NOX\"),CA58*INDEX('Damage costs'!$O$16:$O$43,MATCH($B66,'Damage costs'!$C$16:$C$43,0))/1000,CA58*INDEX('Damage costs'!$S$16:$S$43,MATCH($B66,'Damage costs'!$C$16:$C$43,0))/1000),\"\")","v":""},{"$f":"IFERROR(IF(OR($C$67=FALSE,LEFT($B66,3)<>\"NOX\"),CB58*INDEX('Damage costs'!$O$16:$O$43,MATCH($B66,'Damage costs'!$C$16:$C$43,0))/1000,CB58*INDEX('Damage costs'!$S$16:$S$43,MATCH($B66,'Damage costs'!$C$16:$C$43,0))/1000),\"\")","v":""},{"$f":"IFERROR(IF(OR($C$67=FALSE,LEFT($B66,3)<>\"NOX\"),CC58*INDEX('Damage costs'!$O$16:$O$43,MATCH($B66,'Damage costs'!$C$16:$C$43,0))/1000,CC58*INDEX('Damage costs'!$S$16:$S$43,MATCH($B66,'Damage costs'!$C$16:$C$43,0))/1000),\"\")","v":""},{"$f":"IFERROR(IF(OR($C$67=FALSE,LEFT($B66,3)<>\"NOX\"),CD58*INDEX('Damage costs'!$O$16:$O$43,MATCH($B66,'Damage costs'!$C$16:$C$43,0))/1000,CD58*INDEX('Damage costs'!$S$16:$S$43,MATCH($B66,'Damage costs'!$C$16:$C$43,0))/1000),\"\")","v":""},{"$f":"IFERROR(IF(OR($C$67=FALSE,LEFT($B66,3)<>\"NOX\"),CE58*INDEX('Damage costs'!$O$16:$O$43,MATCH($B66,'Damage costs'!$C$16:$C$43,0))/1000,CE58*INDEX('Damage costs'!$S$16:$S$43,MATCH($B66,'Damage costs'!$C$16:$C$43,0))/1000),\"\")","v":""},{"$f":"IFERROR(IF(OR($C$67=FALSE,LEFT($B66,3)<>\"NOX\"),CF58*INDEX('Damage costs'!$O$16:$O$43,MATCH($B66,'Damage costs'!$C$16:$C$43,0))/1000,CF58*INDEX('Damage costs'!$S$16:$S$43,MATCH($B66,'Damage costs'!$C$16:$C$43,0))/1000),\"\")","v":""},{"$f":"IFERROR(IF(OR($C$67=FALSE,LEFT($B66,3)<>\"NOX\"),CG58*INDEX('Damage costs'!$O$16:$O$43,MATCH($B66,'Damage costs'!$C$16:$C$43,0))/1000,CG58*INDEX('Damage costs'!$S$16:$S$43,MATCH($B66,'Damage costs'!$C$16:$C$43,0))/1000),\"\")","v":""},{"$f":"IFERROR(IF(OR($C$67=FALSE,LEFT($B66,3)<>\"NOX\"),CH58*INDEX('Damage costs'!$O$16:$O$43,MATCH($B66,'Damage costs'!$C$16:$C$43,0))/1000,CH58*INDEX('Damage costs'!$S$16:$S$43,MATCH($B66,'Damage costs'!$C$16:$C$43,0))/1000),\"\")","v":""},{"$f":"IFERROR(IF(OR($C$67=FALSE,LEFT($B66,3)<>\"NOX\"),CI58*INDEX('Damage costs'!$O$16:$O$43,MATCH($B66,'Damage costs'!$C$16:$C$43,0))/1000,CI58*INDEX('Damage costs'!$S$16:$S$43,MATCH($B66,'Damage costs'!$C$16:$C$43,0))/1000),\"\")","v":""},{"$f":"IFERROR(IF(OR($C$67=FALSE,LEFT($B66,3)<>\"NOX\"),CJ58*INDEX('Damage costs'!$O$16:$O$43,MATCH($B66,'Damage costs'!$C$16:$C$43,0))/1000,CJ58*INDEX('Damage costs'!$S$16:$S$43,MATCH($B66,'Damage costs'!$C$16:$C$43,0))/1000),\"\")","v":""},{"$f":"IFERROR(IF(OR($C$67=FALSE,LEFT($B66,3)<>\"NOX\"),CK58*INDEX('Damage costs'!$O$16:$O$43,MATCH($B66,'Damage costs'!$C$16:$C$43,0))/1000,CK58*INDEX('Damage costs'!$S$16:$S$43,MATCH($B66,'Damage costs'!$C$16:$C$43,0))/1000),\"\")","v":""},{"$f":"IFERROR(IF(OR($C$67=FALSE,LEFT($B66,3)<>\"NOX\"),CL58*INDEX('Damage costs'!$O$16:$O$43,MATCH($B66,'Damage costs'!$C$16:$C$43,0))/1000,CL58*INDEX('Damage costs'!$S$16:$S$43,MATCH($B66,'Damage costs'!$C$16:$C$43,0))/1000),\"\")","v":""},{"$f":"IFERROR(IF(OR($C$67=FALSE,LEFT($B66,3)<>\"NOX\"),CM58*INDEX('Damage costs'!$O$16:$O$43,MATCH($B66,'Damage costs'!$C$16:$C$43,0))/1000,CM58*INDEX('Damage costs'!$S$16:$S$43,MATCH($B66,'Damage costs'!$C$16:$C$43,0))/1000),\"\")","v":""},{"$f":"IFERROR(IF(OR($C$67=FALSE,LEFT($B66,3)<>\"NOX\"),CN58*INDEX('Damage costs'!$O$16:$O$43,MATCH($B66,'Damage costs'!$C$16:$C$43,0))/1000,CN58*INDEX('Damage costs'!$S$16:$S$43,MATCH($B66,'Damage costs'!$C$16:$C$43,0))/1000),\"\")","v":""},{"$f":"IFERROR(IF(OR($C$67=FALSE,LEFT($B66,3)<>\"NOX\"),CO58*INDEX('Damage costs'!$O$16:$O$43,MATCH($B66,'Damage costs'!$C$16:$C$43,0))/1000,CO58*INDEX('Damage costs'!$S$16:$S$43,MATCH($B66,'Damage costs'!$C$16:$C$43,0))/1000),\"\")","v":""},{"$f":"IFERROR(IF(OR($C$67=FALSE,LEFT($B66,3)<>\"NOX\"),CP58*INDEX('Damage costs'!$O$16:$O$43,MATCH($B66,'Damage costs'!$C$16:$C$43,0))/1000,CP58*INDEX('Damage costs'!$S$16:$S$43,MATCH($B66,'Damage costs'!$C$16:$C$43,0))/1000),\"\")","v":""},{"$f":"IFERROR(IF(OR($C$67=FALSE,LEFT($B66,3)<>\"NOX\"),CQ58*INDEX('Damage costs'!$O$16:$O$43,MATCH($B66,'Damage costs'!$C$16:$C$43,0))/1000,CQ58*INDEX('Damage costs'!$S$16:$S$43,MATCH($B66,'Damage costs'!$C$16:$C$43,0))/1000),\"\")","v":""},{"$f":"IFERROR(IF(OR($C$67=FALSE,LEFT($B66,3)<>\"NOX\"),CR58*INDEX('Damage costs'!$O$16:$O$43,MATCH($B66,'Damage costs'!$C$16:$C$43,0))/1000,CR58*INDEX('Damage costs'!$S$16:$S$43,MATCH($B66,'Damage costs'!$C$16:$C$43,0))/1000),\"\")","v":""},{"$f":"IFERROR(IF(OR($C$67=FALSE,LEFT($B66,3)<>\"NOX\"),CS58*INDEX('Damage costs'!$O$16:$O$43,MATCH($B66,'Damage costs'!$C$16:$C$43,0))/1000,CS58*INDEX('Damage costs'!$S$16:$S$43,MATCH($B66,'Damage costs'!$C$16:$C$43,0))/1000),\"\")","v":""},{"$f":"IFERROR(IF(OR($C$67=FALSE,LEFT($B66,3)<>\"NOX\"),CT58*INDEX('Damage costs'!$O$16:$O$43,MATCH($B66,'Damage costs'!$C$16:$C$43,0))/1000,CT58*INDEX('Damage costs'!$S$16:$S$43,MATCH($B66,'Damage costs'!$C$16:$C$43,0))/1000),\"\")","v":""},{"$f":"IFERROR(IF(OR($C$67=FALSE,LEFT($B66,3)<>\"NOX\"),CU58*INDEX('Damage costs'!$O$16:$O$43,MATCH($B66,'Damage costs'!$C$16:$C$43,0))/1000,CU58*INDEX('Damage costs'!$S$16:$S$43,MATCH($B66,'Damage costs'!$C$16:$C$43,0))/1000),\"\")","v":""},{"$f":"IFERROR(IF(OR($C$67=FALSE,LEFT($B66,3)<>\"NOX\"),CV58*INDEX('Damage costs'!$O$16:$O$43,MATCH($B66,'Damage costs'!$C$16:$C$43,0))/1000,CV58*INDEX('Damage costs'!$S$16:$S$43,MATCH($B66,'Damage costs'!$C$16:$C$43,0))/1000),\"\")","v":""},{"$f":"IFERROR(IF(OR($C$67=FALSE,LEFT($B66,3)<>\"NOX\"),CW58*INDEX('Damage costs'!$O$16:$O$43,MATCH($B66,'Damage costs'!$C$16:$C$43,0))/1000,CW58*INDEX('Damage costs'!$S$16:$S$43,MATCH($B66,'Damage costs'!$C$16:$C$43,0))/1000),\"\")","v":""},{"$f":"IFERROR(IF(OR($C$67=FALSE,LEFT($B66,3)<>\"NOX\"),CX58*INDEX('Damage costs'!$O$16:$O$43,MATCH($B66,'Damage costs'!$C$16:$C$43,0))/1000,CX58*INDEX('Damage costs'!$S$16:$S$43,MATCH($B66,'Damage costs'!$C$16:$C$43,0))/1000),\"\")","v":""},{"$f":"IFERROR(IF(OR($C$67=FALSE,LEFT($B66,3)<>\"NOX\"),CY58*INDEX('Damage costs'!$O$16:$O$43,MATCH($B66,'Damage costs'!$C$16:$C$43,0))/1000,CY58*INDEX('Damage costs'!$S$16:$S$43,MATCH($B66,'Damage costs'!$C$16:$C$43,0))/1000),\"\")","v":""}]
[null,"PM10 Used",{"$f":"IF(OR(LEFT(B61,4)=\"PM10\",LEFT(B62,4)=\"PM10\",LEFT(B63,4)=\"PM10\",LEFT(B64,4)=\"PM10\",LEFT(B65,4)=\"PM10\",LEFT(B66,4)=\"PM10\"),TRUE,FALSE)","v":false}]
[]
[null,"Uplift pa","%",{"$f":"'Discount and deflators'!$H$5","v":0.02}]
[null,"Uplift factor",null,{"$f":"IF(D$6=0,0,(1+$D69)^(D$6-'Data Input - General'!$F$22))","v":1},{"$f":"IF(E$6=0,0,(1+$D69)^(E$6-'Data Input - General'!$F$22))","v":1.02},{"$f":"IF(F$6=0,0,(1+$D69)^(F$6-'Data Input - General'!$F$22))","v":1.0404},{"$f":"IF(G$6=0,0,(1+$D69)^(G$6-'Data Input - General'!$F$22))","v":1.0612079999999999},{"$f":"IF(H$6=0,0,(1+$D69)^(H$6-'Data Input - General'!$F$22))","v":1.08243216},{"$f":"IF(I$6=0,0,(1+$D69)^(I$6-'Data Input - General'!$F$22))","v":1.1040808032},{"$f":"IF(J$6=0,0,(1+$D69)^(J$6-'Data Input - General'!$F$22))","v":1.1261624192640001},{"$f":"IF(K$6=0,0,(1+$D69)^(K$6-'Data Input - General'!$F$22))","v":1.1486856676492798},{"$f":"IF(L$6=0,0,(1+$D69)^(L$6-'Data Input - General'!$F$22))","v":1.1716593810022655},{"$f":"IF(M$6=0,0,(1+$D69)^(M$6-'Data Input - General'!$F$22))","v":1.1950925686223108},{"$f":"IF(N$6=0,0,(1+$D69)^(N$6-'Data Input - General'!$F$22))","v":1.2189944199947571},{"$f":"IF(O$6=0,0,(1+$D69)^(O$6-'Data Input - General'!$F$22))","v":1.243374308394652},{"$f":"IF(P$6=0,0,(1+$D69)^(P$6-'Data Input - General'!$F$22))","v":1.2682417945625453},{"$f":"IF(Q$6=0,0,(1+$D69)^(Q$6-'Data Input - General'!$F$22))","v":1.2936066304537961},{"$f":"IF(R$6=0,0,(1+$D69)^(R$6-'Data Input - General'!$F$22))","v":1.3194787630628722},{"$f":"IF(S$6=0,0,(1+$D69)^(S$6-'Data Input - General'!$F$22))","v":1.3458683383241292},{"$f":"IF(T$6=0,0,(1+$D69)^(T$6-'Data Input - General'!$F$22))","v":1.372785705090612},{"$f":"IF(U$6=0,0,(1+$D69)^(U$6-'Data Input - General'!$F$22))","v":1.4002414191924244},{"$f":"IF(V$6=0,0,(1+$D69)^(V$6-'Data Input - General'!$F$22))","v":1.4282462475762727},{"$f":"IF(W$6=0,0,(1+$D69)^(W$6-'Data Input - General'!$F$22))","v":1.4568111725277981},{"$f":"IF(X$6=0,0,(1+$D69)^(X$6-'Data Input - General'!$F$22))","v":1.4859473959783542},{"$f":"IF(Y$6=0,0,(1+$D69)^(Y$6-'Data Input - General'!$F$22))","v":1.5156663438979212},{"$f":"IF(Z$6=0,0,(1+$D69)^(Z$6-'Data Input - General'!$F$22))","v":1.5459796707758797},{"$f":"IF(AA$6=0,0,(1+$D69)^(AA$6-'Data Input - General'!$F$22))","v":1.576899264191397},{"$f":"IF(AB$6=0,0,(1+$D69)^(AB$6-'Data Input - General'!$F$22))","v":1.608437249475225},{"$f":"IF(AC$6=0,0,(1+$D69)^(AC$6-'Data Input - General'!$F$22))","v":1.6406059944647295},{"$f":"IF(AD$6=0,0,(1+$D69)^(AD$6-'Data Input - General'!$F$22))","v":1.6734181143540243},{"$f":"IF(AE$6=0,0,(1+$D69)^(AE$6-'Data Input - General'!$F$22))","v":1.7068864766411045},{"$f":"IF(AF$6=0,0,(1+$D69)^(AF$6-'Data Input - General'!$F$22))","v":1.7410242061739269},{"$f":"IF(AG$6=0,0,(1+$D69)^(AG$6-'Data Input - General'!$F$22))","v":1.7758446902974052},{"$f":"IF(AH$6=0,0,(1+$D69)^(AH$6-'Data Input - General'!$F$22))","v":1.8113615841033535},{"$f":"IF(AI$6=0,0,(1+$D69)^(AI$6-'Data Input - General'!$F$22))","v":0},{"$f":"IF(AJ$6=0,0,(1+$D69)^(AJ$6-'Data Input - General'!$F$22))","v":0},{"$f":"IF(AK$6=0,0,(1+$D69)^(AK$6-'Data Input - General'!$F$22))","v":0},{"$f":"IF(AL$6=0,0,(1+$D69)^(AL$6-'Data Input - General'!$F$22))","v":0},{"$f":"IF(AM$6=0,0,(1+$D69)^(AM$6-'Data Input - General'!$F$22))","v":0},{"$f":"IF(AN$6=0,0,(1+$D69)^(AN$6-'Data Input - General'!$F$22))","v":0},{"$f":"IF(AO$6=0,0,(1+$D69)^(AO$6-'Data Input - General'!$F$22))","v":0},{"$f":"IF(AP$6=0,0,(1+$D69)^(AP$6-'Data Input - General'!$F$22))","v":0},{"$f":"IF(AQ$6=0,0,(1+$D69)^(AQ$6-'Data Input - General'!$F$22))","v":0},{"$f":"IF(AR$6=0,0,(1+$D69)^(AR$6-'Data Input - General'!$F$22))","v":0},{"$f":"IF(AS$6=0,0,(1+$D69)^(AS$6-'Data Input - General'!$F$22))","v":0},{"$f":"IF(AT$6=0,0,(1+$D69)^(AT$6-'Data Input - General'!$F$22))","v":0},{"$f":"IF(AU$6=0,0,(1+$D69)^(AU$6-'Data Input - General'!$F$22))","v":0},{"$f":"IF(AV$6=0,0,(1+$D69)^(AV$6-'Data Input - General'!$F$22))","v":0},{"$f":"IF(AW$6=0,0,(1+$D69)^(AW$6-'Data Input - General'!$F$22))","v":0},{"$f":"IF(AX$6=0,0,(1+$D69)^(AX$6-'Data Input - General'!$F$22))","v":0},{"$f":"IF(AY$6=0,0,(1+$D69)^(AY$6-'Data Input - General'!$F$22))","v":0},{"$f":"IF(AZ$6=0,0,(1+$D69)^(AZ$6-'Data Input - General'!$F$22))","v":0},{"$f":"IF(BA$6=0,0,(1+$D69)^(BA$6-'Data Input - General'!$F$22))","v":0},{"$f":"IF(BB$6=0,0,(1+$D69)^(BB$6-'Data Input - General'!$F$22))","v":0},{"$f":"IF(BC$6=0,0,(1+$D69)^(BC$6-'Data Input - General'!$F$22))","v":0},{"$f":"IF(BD$6=0,0,(1+$D69)^(BD$6-'Data Input - General'!$F$22))","v":0},{"$f":"IF(BE$6=0,0,(1+$D69)^(BE$6-'Data Input - General'!$F$22))","v":0},{"$f":"IF(BF$6=0,0,(1+$D69)^(BF$6-'Data Input - General'!$F$22))","v":0},{"$f":"IF(BG$6=0,0,(1+$D69)^(BG$6-'Data Input - General'!$F$22))","v":0},{"$f":"IF(BH$6=0,0,(1+$D69)^(BH$6-'Data Input - General'!$F$22))","v":0},{"$f":"IF(BI$6=0,0,(1+$D69)^(BI$6-'Data Input - General'!$F$22))","v":0},{"$f":"IF(BJ$6=0,0,(1+$D69)^(BJ$6-'Data Input - General'!$F$22))","v":0},{"$f":"IF(BK$6=0,0,(1+$D69)^(BK$6-'Data Input - General'!$F$22))","v":0},{"$f":"IF(BL$6=0,0,(1+$D69)^(BL$6-'Data Input - General'!$F$22))","v":0},{"$f":"IF(BM$6=0,0,(1+$D69)^(BM$6-'Data Input - General'!$F$22))","v":0},{"$f":"IF(BN$6=0,0,(1+$D69)^(BN$6-'Data Input - General'!$F$22))","v":0},{"$f":"IF(BO$6=0,0,(1+$D69)^(BO$6-'Data Input - General'!$F$22))","v":0},{"$f":"IF(BP$6=0,0,(1+$D69)^(BP$6-'Data Input - General'!$F$22))","v":0},{"$f":"IF(BQ$6=0,0,(1+$D69)^(BQ$6-'Data Input - General'!$F$22))","v":0},{"$f":"IF(BR$6=0,0,(1+$D69)^(BR$6-'Data Input - General'!$F$22))","v":0},{"$f":"IF(BS$6=0,0,(1+$D69)^(BS$6-'Data Input - General'!$F$22))","v":0},{"$f":"IF(BT$6=0,0,(1+$D69)^(BT$6-'Data Input - General'!$F$22))","v":0},{"$f":"IF(BU$6=0,0,(1+$D69)^(BU$6-'Data Input - General'!$F$22))","v":0},{"$f":"IF(BV$6=0,0,(1+$D69)^(BV$6-'Data Input - General'!$F$22))","v":0},{"$f":"IF(BW$6=0,0,(1+$D69)^(BW$6-'Data Input - General'!$F$22))","v":0},{"$f":"IF(BX$6=0,0,(1+$D69)^(BX$6-'Data Input - General'!$F$22))","v":0},{"$f":"IF(BY$6=0,0,(1+$D69)^(BY$6-'Data Input - General'!$F$22))","v":0},{"$f":"IF(BZ$6=0,0,(1+$D69)^(BZ$6-'Data Input - General'!$F$22))","v":0},{"$f":"IF(CA$6=0,0,(1+$D69)^(CA$6-'Data Input - General'!$F$22))","v":0},{"$f":"IF(CB$6=0,0,(1+$D69)^(CB$6-'Data Input - General'!$F$22))","v":0},{"$f":"IF(CC$6=0,0,(1+$D69)^(CC$6-'Data Input - General'!$F$22))","v":0},{"$f":"IF(CD$6=0,0,(1+$D69)^(CD$6-'Data Input - General'!$F$22))","v":0},{"$f":"IF(CE$6=0,0,(1+$D69)^(CE$6-'Data Input - General'!$F$22))","v":0},{"$f":"IF(CF$6=0,0,(1+$D69)^(CF$6-'Data Input - General'!$F$22))","v":0},{"$f":"IF(CG$6=0,0,(1+$D69)^(CG$6-'Data Input - General'!$F$22))","v":0},{"$f":"IF(CH$6=0,0,(1+$D69)^(CH$6-'Data Input - General'!$F$22))","v":0},{"$f":"IF(CI$6=0,0,(1+$D69)^(CI$6-'Data Input - General'!$F$22))","v":0},{"$f":"IF(CJ$6=0,0,(1+$D69)^(CJ$6-'Data Input - General'!$F$22))","v":0},{"$f":"IF(CK$6=0,0,(1+$D69)^(CK$6-'Data Input - General'!$F$22))","v":0},{"$f":"IF(CL$6=0,0,(1+$D69)^(CL$6-'Data Input - General'!$F$22))","v":0},{"$f":"IF(CM$6=0,0,(1+$D69)^(CM$6-'Data Input - General'!$F$22))","v":0},{"$f":"IF(CN$6=0,0,(1+$D69)^(CN$6-'Data Input - General'!$F$22))","v":0},{"$f":"IF(CO$6=0,0,(1+$D69)^(CO$6-'Data Input - General'!$F$22))","v":0},{"$f":"IF(CP$6=0,0,(1+$D69)^(CP$6-'Data Input - General'!$F$22))","v":0},{"$f":"IF(CQ$6=0,0,(1+$D69)^(CQ$6-'Data Input - General'!$F$22))","v":0},{"$f":"IF(CR$6=0,0,(1+$D69)^(CR$6-'Data Input - General'!$F$22))","v":0},{"$f":"IF(CS$6=0,0,(1+$D69)^(CS$6-'Data Input - General'!$F$22))","v":0},{"$f":"IF(CT$6=0,0,(1+$D69)^(CT$6-'Data Input - General'!$F$22))","v":0},{"$f":"IF(CU$6=0,0,(1+$D69)^(CU$6-'Data Input - General'!$F$22))","v":0},{"$f":"IF(CV$6=0,0,(1+$D69)^(CV$6-'Data Input - General'!$F$22))","v":0},{"$f":"IF(CW$6=0,0,(1+$D69)^(CW$6-'Data Input - General'!$F$22))","v":0},{"$f":"IF(CX$6=0,0,(1+$D69)^(CX$6-'Data Input - General'!$F$22))","v":0},{"$f":"IF(CY$6=0,0,(1+$D69)^(CY$6-'Data Input - General'!$F$22))","v":0}]
[null,"Total value","£000's",{"$f":"SUM(D61:D66)*D70","v":6.7435895540131199},{"$f":"SUM(E61:E66)*E70","v":6.878461345093382},{"$f":"SUM(F61:F66)*F70","v":7.01603057199525},{"$f":"SUM(G61:G66)*G70","v":7.1563511834351541},1.9416612030896263,1.9804944271514189,2.0201043156944474,2.0605064020083357,0,0,0,0,0,0,0,0,0,0,0,0,0,0,0,0,0,0,0,0,0,0,0,0,{"$f":"SUM(AJ61:AJ66)*AJ70","v":0},0,0,0,0,0,0,0,0,0,0,0,0,0,0,0,0,0,0,0,0,0,0,0,0,0,0,0,{"$f":"SUM(BL61:BL66)*BL70","v":0},0,0,0,0,0,0,0,0,0,0,0,0,0,0,0,0,0,0,0,0,0,0,0,0,0,0,0,0,0,0,0,0,0,0,0,0,0,0,0]
[null,"Discounted total value","£000's",{"$f":"D71*D$7","v":6.7435895540131199},{"$f":"E71*E$7","v":6.6458563720709014},{"$f":"F71*F$7","v":6.5495396130553809},6.4546187490980564,1.6920455642563141,1.6675231647743387,1.6433561623863051,1.6195394064096915,0,0,0,0,0,0,0,0,0,0,0,0,0,0,0,0,0,0,0,0,0,0,0,0,0,0,0,0,0,0,0,0,0,0,0,0,0,0,0,0,0,0,0,0,0,0,0,0,0,0,0,0,0,0,0,0,0,0,{"$f":"BR71*BR$7","v":0},0,0,0,0,0,0,0,0,0,0,0,0,0,0,0,0,0,0,0,0,0,0,0,0,0,0,0,0,0,0,0,0,0]
[]
[null,"Greenhouse gas emissions (not associated with fuel use)"]
[null,"Emissions","tCO2e",{"$f":"'Data Input - Proposed'!H117","v":45000},{"$f":"'Data Input - Proposed'!I117","v":45000},{"$f":"'Data Input - Proposed'!J117","v":45000},{"$f":"'Data Input - Proposed'!K117","v":45000},{"$f":"'Data Input - Proposed'!L117","v":45000},{"$f":"'Data Input - Proposed'!M117","v":45000},{"$f":"'Data Input - Proposed'!N117","v":45000},{"$f":"'Data Input - Proposed'!O117","v":45000},{"$f":"'Data Input - Proposed'!P117","v":0},{"$f":"'Data Input - Proposed'!Q117","v":0},{"$f":"'Data Input - Proposed'!R117","v":0},{"$f":"'Data Input - Proposed'!S117","v":0},{"$f":"'Data Input - Proposed'!T117","v":0},{"$f":"'Data Input - Proposed'!U117","v":0},{"$f":"'Data Input - Proposed'!V117","v":0},{"$f":"'Data Input - Proposed'!W117","v":0},{"$f":"'Data Input - Proposed'!X117","v":0},{"$f":"'Data Input - Proposed'!Y117","v":0},{"$f":"'Data Input - Proposed'!Z117","v":0},{"$f":"'Data Input - Proposed'!AA117","v":0},{"$f":"'Data Input - Proposed'!AB117","v":0},{"$f":"'Data Input - Proposed'!AC117","v":0},{"$f":"'Data Input - Proposed'!AD117","v":0},{"$f":"'Data Input - Proposed'!AE117","v":0},{"$f":"'Data Input - Proposed'!AF117","v":0},{"$f":"'Data Input - Proposed'!AG117","v":0},{"$f":"'Data Input - Proposed'!AH117","v":0},{"$f":"'Data Input - Proposed'!AI117","v":0},{"$f":"'Data Input - Proposed'!AJ117","v":0},{"$f":"'Data Input - Proposed'!AK117","v":0},{"$f":"'Data Input - Proposed'!AL117","v":0},{"$f":"'Data Input - Proposed'!AM117","v":0},{"$f":"'Data Input - Proposed'!AN117","v":0},{"$f":"'Data Input - Proposed'!AO117","v":0},{"$f":"'Data Input - Proposed'!AP117","v":0},{"$f":"'Data Input - Proposed'!AQ117","v":0},{"$f":"'Data Input - Proposed'!AR117","v":0},{"$f":"'Data Input - Proposed'!AS117","v":0},{"$f":"'Data Input - Proposed'!AT117","v":0},{"$f":"'Data Input - Proposed'!AU117","v":0},{"$f":"'Data Input - Proposed'!AV117","v":0},{"$f":"'Data Input - Proposed'!AW117","v":0},{"$f":"'Data Input - Proposed'!AX117","v":0},{"$f":"'Data Input - Proposed'!AY117","v":0},{"$f":"'Data Input - Proposed'!AZ117","v":0},{"$f":"'Data Input - Proposed'!BA117","v":0},{"$f":"'Data Input - Proposed'!BB117","v":0},{"$f":"'Data Input - Proposed'!BC117","v":0},{"$f":"'Data Input - Proposed'!BD117","v":0},{"$f":"'Data Input - Proposed'!BE117","v":0},{"$f":"'Data Input - Proposed'!BF117","v":0},{"$f":"'Data Input - Proposed'!BG117","v":0},{"$f":"'Data Input - Proposed'!BH117","v":0},{"$f":"'Data Input - Proposed'!BI117","v":0},{"$f":"'Data Input - Proposed'!BJ117","v":0},{"$f":"'Data Input - Proposed'!BK117","v":0},{"$f":"'Data Input - Proposed'!BL117","v":0},{"$f":"'Data Input - Proposed'!BM117","v":0},{"$f":"'Data Input - Proposed'!BN117","v":0},{"$f":"'Data Input - Proposed'!BO117","v":0},{"$f":"'Data Input - Proposed'!BP117","v":0},{"$f":"'Data Input - Proposed'!BQ117","v":0},{"$f":"'Data Input - Proposed'!BR117","v":0},{"$f":"'Data Input - Proposed'!BS117","v":0},{"$f":"'Data Input - Proposed'!BT117","v":0},{"$f":"'Data Input - Proposed'!BU117","v":0},{"$f":"'Data Input - Proposed'!BV117","v":0},{"$f":"'Data Input - Proposed'!BW117","v":0},{"$f":"'Data Input - Proposed'!BX117","v":0},{"$f":"'Data Input - Proposed'!BY117","v":0},{"$f":"'Data Input - Proposed'!BZ117","v":0},{"$f":"'Data Input - Proposed'!CA117","v":0},{"$f":"'Data Input - Proposed'!CB117","v":0},{"$f":"'Data Input - Proposed'!CC117","v":0},{"$f":"'Data Input - Proposed'!CD117","v":0},{"$f":"'Data Input - Proposed'!CE117","v":0},{"$f":"'Data Input - Proposed'!CF117","v":0},{"$f":"'Data Input - Proposed'!CG117","v":0},{"$f":"'Data Input - Proposed'!CH117","v":0},{"$f":"'Data Input - Proposed'!CI117","v":0},{"$f":"'Data Input - Proposed'!CJ117","v":0},{"$f":"'Data Input - Proposed'!CK117","v":0},{"$f":"'Data Input - Proposed'!CL117","v":0},{"$f":"'Data Input - Proposed'!CM117","v":0},{"$f":"'Data Input - Proposed'!CN117","v":0},{"$f":"'Data Input - Proposed'!CO117","v":0},{"$f":"'Data Input - Proposed'!CP117","v":0},{"$f":"'Data Input - Proposed'!CQ117","v":0},{"$f":"'Data Input - Proposed'!CR117","v":0},{"$f":"'Data Input - Proposed'!CS117","v":0},{"$f":"'Data Input - Proposed'!CT117","v":0},{"$f":"'Data Input - Proposed'!CU117","v":0},{"$f":"'Data Input - Proposed'!CV117","v":0},{"$f":"'Data Input - Proposed'!CW117","v":0},{"$f":"'Data Input - Proposed'!CX117","v":0},{"$f":"'Data Input - Proposed'!CY117","v":0},{"$f":"'Data Input - Proposed'!CZ117","v":0},{"$f":"'Data Input - Proposed'!DA117","v":0},{"$f":"'Data Input - Proposed'!DB117","v":0},{"$f":"'Data Input - Proposed'!DC117","v":0}]
[null,"Unit value","£000's",{"$f":"IFERROR(IF('Data Input - General'!$F$12=\"Yes\",HLOOKUP(Calc_Proposed!D$6,'Carbon Prices'!$D$9:$CP$15,3,FALSE),HLOOKUP(Calc_Proposed!D$6,'Carbon Prices'!$D$9:$CP$15,6,FALSE)),0)","v":6.8248086829049139},{"$f":"IFERROR(IF('Data Input - General'!$F$12=\"Yes\",HLOOKUP(Calc_Proposed!E$6,'Carbon Prices'!$D$9:$CP$15,3,FALSE),HLOOKUP(Calc_Proposed!E$6,'Carbon Prices'!$D$9:$CP$15,6,FALSE)),0)","v":7.0841514128553005},{"$f":"IFERROR(IF('Data Input - General'!$F$12=\"Yes\",HLOOKUP(Calc_Proposed!F$6,'Carbon Prices'!$D$9:$CP$15,3,FALSE),HLOOKUP(Calc_Proposed!F$6,'Carbon Prices'!$D$9:$CP$15,6,FALSE)),0)","v":14.809366678834097},{"$f":"IFERROR(IF('Data Input - General'!$F$12=\"Yes\",HLOOKUP(Calc_Proposed!G$6,'Carbon Prices'!$D$9:$CP$15,3,FALSE),HLOOKUP(Calc_Proposed!G$6,'Carbon Prices'!$D$9:$CP$15,6,FALSE)),0)","v":22.534581944812892},{"$f":"IFERROR(IF('Data Input - General'!$F$12=\"Yes\",HLOOKUP(Calc_Proposed!H$6,'Carbon Prices'!$D$9:$CP$15,3,FALSE),HLOOKUP(Calc_Proposed!H$6,'Carbon Prices'!$D$9:$CP$15,6,FALSE)),0)","v":30.259797210791689},{"$f":"IFERROR(IF('Data Input - General'!$F$12=\"Yes\",HLOOKUP(Calc_Proposed!I$6,'Carbon Prices'!$D$9:$CP$15,3,FALSE),HLOOKUP(Calc_Proposed!I$6,'Carbon Prices'!$D$9:$CP$15,6,FALSE)),0)","v":37.985012476770486},{"$f":"IFERROR(IF('Data Input - General'!$F$12=\"Yes\",HLOOKUP(Calc_Proposed!J$6,'Carbon Prices'!$D$9:$CP$15,3,FALSE),HLOOKUP(Calc_Proposed!J$6,'Carbon Prices'!$D$9:$CP$15,6,FALSE)),0)","v":45.710227742749282},{"$f":"IFERROR(IF('Data Input - General'!$F$12=\"Yes\",HLOOKUP(Calc_Proposed!K$6,'Carbon Prices'!$D$9:$CP$15,3,FALSE),HLOOKUP(Calc_Proposed!K$6,'Carbon Prices'!$D$9:$CP$15,6,FALSE)),0)","v":53.435443008728079},{"$f":"IFERROR(IF('Data Input - General'!$F$12=\"Yes\",HLOOKUP(Calc_Proposed!L$6,'Carbon Prices'!$D$9:$CP$15,3,FALSE),HLOOKUP(Calc_Proposed!L$6,'Carbon Prices'!$D$9:$CP$15,6,FALSE)),0)","v":61.160658274706876},{"$f":"IFERROR(IF('Data Input - General'!$F$12=\"Yes\",HLOOKUP(Calc_Proposed!M$6,'Carbon Prices'!$D$9:$CP$15,3,FALSE),HLOOKUP(Calc_Proposed!M$6,'Carbon Prices'!$D$9:$CP$15,6,FALSE)),0)","v":68.885873540685665},{"$f":"IFERROR(IF('Data Input - General'!$F$12=\"Yes\",HLOOKUP(Calc_Proposed!N$6,'Carbon Prices'!$D$9:$CP$15,3,FALSE),HLOOKUP(Calc_Proposed!N$6,'Carbon Prices'!$D$9:$CP$15,6,FALSE)),0)","v":76.611088806664469},{"$f":"IFERROR(IF('Data Input - General'!$F$12=\"Yes\",HLOOKUP(Calc_Proposed!O$6,'Carbon Prices'!$D$9:$CP$15,3,FALSE),HLOOKUP(Calc_Proposed!O$6,'Carbon Prices'!$D$9:$CP$15,6,FALSE)),0)","v":84.336304072643259},{"$f":"IFERROR(IF('Data Input - General'!$F$12=\"Yes\",HLOOKUP(Calc_Proposed!P$6,'Carbon Prices'!$D$9:$CP$15,3,FALSE),HLOOKUP(Calc_Proposed!P$6,'Carbon Prices'!$D$9:$CP$15,6,FALSE)),0)","v":92.167532307960172},{"$f":"IFERROR(IF('Data Input - General'!$F$12=\"Yes\",HLOOKUP(Calc_Proposed!Q$6,'Carbon Prices'!$D$9:$CP$15,3,FALSE),HLOOKUP(Calc_Proposed!Q$6,'Carbon Prices'!$D$9:$CP$15,6,FALSE)),0)","v":99.998760543277044},{"$f":"IFERROR(IF('Data Input - General'!$F$12=\"Yes\",HLOOKUP(Calc_Proposed!R$6,'Carbon Prices'!$D$9:$CP$15,3,FALSE),HLOOKUP(Calc_Proposed!R$6,'Carbon Prices'!$D$9:$CP$15,6,FALSE)),0)","v":107.82998877859391},{"$f":"IFERROR(IF('Data Input - General'!$F$12=\"Yes\",HLOOKUP(Calc_Proposed!S$6,'Carbon Prices'!$D$9:$CP$15,3,FALSE),HLOOKUP(Calc_Proposed!S$6,'Carbon Prices'!$D$9:$CP$15,6,FALSE)),0)","v":115.6612170139108},{"$f":"IFERROR(IF('Data Input - General'!$F$12=\"Yes\",HLOOKUP(Calc_Proposed!T$6,'Carbon Prices'!$D$9:$CP$15,3,FALSE),HLOOKUP(Calc_Proposed!T$6,'Carbon Prices'!$D$9:$CP$15,6,FALSE)),0)","v":123.49244524922767},{"$f":"IFERROR(IF('Data Input - General'!$F$12=\"Yes\",HLOOKUP(Calc_Proposed!U$6,'Carbon Prices'!$D$9:$CP$15,3,FALSE),HLOOKUP(Calc_Proposed!U$6,'Carbon Prices'!$D$9:$CP$15,6,FALSE)),0)","v":131.32367348454454},{"$f":"IFERROR(IF('Data Input - General'!$F$12=\"Yes\",HLOOKUP(Calc_Proposed!V$6,'Carbon Prices'!$D$9:$CP$15,3,FALSE),HLOOKUP(Calc_Proposed!V$6,'Carbon Prices'!$D$9:$CP$15,6,FALSE)),0)","v":139.15490171986141},{"$f":"IFERROR(IF('Data Input - General'!$F$12=\"Yes\",HLOOKUP(Calc_Proposed!W$6,'Carbon Prices'!$D$9:$CP$15,3,FALSE),HLOOKUP(Calc_Proposed!W$6,'Carbon Prices'!$D$9:$CP$15,6,FALSE)),0)","v":146.98612995517828},{"$f":"IFERROR(IF('Data Input - General'!$F$12=\"Yes\",HLOOKUP(Calc_Proposed!X$6,'Carbon Prices'!$D$9:$CP$15,3,FALSE),HLOOKUP(Calc_Proposed!X$6,'Carbon Prices'!$D$9:$CP$15,6,FALSE)),0)","v":154.81735819049521},{"$f":"IFERROR(IF('Data Input - General'!$F$12=\"Yes\",HLOOKUP(Calc_Proposed!Y$6,'Carbon Prices'!$D$9:$CP$15,3,FALSE),HLOOKUP(Calc_Proposed!Y$6,'Carbon Prices'!$D$9:$CP$15,6,FALSE)),0)","v":162.64858642581208},{"$f":"IFERROR(IF('Data Input - General'!$F$12=\"Yes\",HLOOKUP(Calc_Proposed!Z$6,'Carbon Prices'!$D$9:$CP$15,3,FALSE),HLOOKUP(Calc_Proposed!Z$6,'Carbon Prices'!$D$9:$CP$15,6,FALSE)),0)","v":170.47981466112896},{"$f":"IFERROR(IF('Data Input - General'!$F$12=\"Yes\",HLOOKUP(Calc_Proposed!AA$6,'Carbon Prices'!$D$9:$CP$15,3,FALSE),HLOOKUP(Calc_Proposed!AA$6,'Carbon Prices'!$D$9:$CP$15,6,FALSE)),0)","v":178.31104289644583},{"$f":"IFERROR(IF('Data Input - General'!$F$12=\"Yes\",HLOOKUP(Calc_Proposed!AB$6,'Carbon Prices'!$D$9:$CP$15,3,FALSE),HLOOKUP(Calc_Proposed!AB$6,'Carbon Prices'!$D$9:$CP$15,6,FALSE)),0)","v":186.1422711317627},{"$f":"IFERROR(IF('Data Input - General'!$F$12=\"Yes\",HLOOKUP(Calc_Proposed!AC$6,'Carbon Prices'!$D$9:$CP$15,3,FALSE),HLOOKUP(Calc_Proposed!AC$6,'Carbon Prices'!$D$9:$CP$15,6,FALSE)),0)","v":193.97349936707957},{"$f":"IFERROR(IF('Data Input - General'!$F$12=\"Yes\",HLOOKUP(Calc_Proposed!AD$6,'Carbon Prices'!$D$9:$CP$15,3,FALSE),HLOOKUP(Calc_Proposed!AD$6,'Carbon Prices'!$D$9:$CP$15,6,FALSE)),0)","v":201.80472760239644},{"$f":"IFERROR(IF('Data Input - General'!$F$12=\"Yes\",HLOOKUP(Calc_Proposed!AE$6,'Carbon Prices'!$D$9:$CP$15,3,FALSE),HLOOKUP(Calc_Proposed!AE$6,'Carbon Prices'!$D$9:$CP$15,6,FALSE)),0)","v":209.63595583771331},{"$f":"IFERROR(IF('Data Input - General'!$F$12=\"Yes\",HLOOKUP(Calc_Proposed!AF$6,'Carbon Prices'!$D$9:$CP$15,3,FALSE),HLOOKUP(Calc_Proposed!AF$6,'Carbon Prices'!$D$9:$CP$15,6,FALSE)),0)","v":217.46718407303021},{"$f":"IFERROR(IF('Data Input - General'!$F$12=\"Yes\",HLOOKUP(Calc_Proposed!AG$6,'Carbon Prices'!$D$9:$CP$15,3,FALSE),HLOOKUP(Calc_Proposed!AG$6,'Carbon Prices'!$D$9:$CP$15,6,FALSE)),0)","v":225.29841230834708},{"$f":"IFERROR(IF('Data Input - General'!$F$12=\"Yes\",HLOOKUP(Calc_Proposed!AH$6,'Carbon Prices'!$D$9:$CP$15,3,FALSE),HLOOKUP(Calc_Proposed!AH$6,'Carbon Prices'!$D$9:$CP$15,6,FALSE)),0)","v":233.12964054366395},{"$f":"IFERROR(IF('Data Input - General'!$F$12=\"Yes\",HLOOKUP(Calc_Proposed!AI$6,'Carbon Prices'!$D$9:$CP$15,3,FALSE),HLOOKUP(Calc_Proposed!AI$6,'Carbon Prices'!$D$9:$CP$15,6,FALSE)),0)","v":0},{"$f":"IFERROR(IF('Data Input - General'!$F$12=\"Yes\",HLOOKUP(Calc_Proposed!AJ$6,'Carbon Prices'!$D$9:$CP$15,3,FALSE),HLOOKUP(Calc_Proposed!AJ$6,'Carbon Prices'!$D$9:$CP$15,6,FALSE)),0)","v":0},{"$f":"IFERROR(IF('Data Input - General'!$F$12=\"Yes\",HLOOKUP(Calc_Proposed!AK$6,'Carbon Prices'!$D$9:$CP$15,3,FALSE),HLOOKUP(Calc_Proposed!AK$6,'Carbon Prices'!$D$9:$CP$15,6,FALSE)),0)","v":0},{"$f":"IFERROR(IF('Data Input - General'!$F$12=\"Yes\",HLOOKUP(Calc_Proposed!AL$6,'Carbon Prices'!$D$9:$CP$15,3,FALSE),HLOOKUP(Calc_Proposed!AL$6,'Carbon Prices'!$D$9:$CP$15,6,FALSE)),0)","v":0},{"$f":"IFERROR(IF('Data Input - General'!$F$12=\"Yes\",HLOOKUP(Calc_Proposed!AM$6,'Carbon Prices'!$D$9:$CP$15,3,FALSE),HLOOKUP(Calc_Proposed!AM$6,'Carbon Prices'!$D$9:$CP$15,6,FALSE)),0)","v":0},{"$f":"IFERROR(IF('Data Input - General'!$F$12=\"Yes\",HLOOKUP(Calc_Proposed!AN$6,'Carbon Prices'!$D$9:$CP$15,3,FALSE),HLOOKUP(Calc_Proposed!AN$6,'Carbon Prices'!$D$9:$CP$15,6,FALSE)),0)","v":0},{"$f":"IFERROR(IF('Data Input - General'!$F$12=\"Yes\",HLOOKUP(Calc_Proposed!AO$6,'Carbon Prices'!$D$9:$CP$15,3,FALSE),HLOOKUP(Calc_Proposed!AO$6,'Carbon Prices'!$D$9:$CP$15,6,FALSE)),0)","v":0},{"$f":"IFERROR(IF('Data Input - General'!$F$12=\"Yes\",HLOOKUP(Calc_Proposed!AP$6,'Carbon Prices'!$D$9:$CP$15,3,FALSE),HLOOKUP(Calc_Proposed!AP$6,'Carbon Prices'!$D$9:$CP$15,6,FALSE)),0)","v":0},{"$f":"IFERROR(IF('Data Input - General'!$F$12=\"Yes\",HLOOKUP(Calc_Proposed!AQ$6,'Carbon Prices'!$D$9:$CP$15,3,FALSE),HLOOKUP(Calc_Proposed!AQ$6,'Carbon Prices'!$D$9:$CP$15,6,FALSE)),0)","v":0},{"$f":"IFERROR(IF('Data Input - General'!$F$12=\"Yes\",HLOOKUP(Calc_Proposed!AR$6,'Carbon Prices'!$D$9:$CP$15,3,FALSE),HLOOKUP(Calc_Proposed!AR$6,'Carbon Prices'!$D$9:$CP$15,6,FALSE)),0)","v":0},{"$f":"IFERROR(IF('Data Input - General'!$F$12=\"Yes\",HLOOKUP(Calc_Proposed!AS$6,'Carbon Prices'!$D$9:$CP$15,3,FALSE),HLOOKUP(Calc_Proposed!AS$6,'Carbon Prices'!$D$9:$CP$15,6,FALSE)),0)","v":0},{"$f":"IFERROR(IF('Data Input - General'!$F$12=\"Yes\",HLOOKUP(Calc_Proposed!AT$6,'Carbon Prices'!$D$9:$CP$15,3,FALSE),HLOOKUP(Calc_Proposed!AT$6,'Carbon Prices'!$D$9:$CP$15,6,FALSE)),0)","v":0},{"$f":"IFERROR(IF('Data Input - General'!$F$12=\"Yes\",HLOOKUP(Calc_Proposed!AU$6,'Carbon Prices'!$D$9:$CP$15,3,FALSE),HLOOKUP(Calc_Proposed!AU$6,'Carbon Prices'!$D$9:$CP$15,6,FALSE)),0)","v":0},{"$f":"IFERROR(IF('Data Input - General'!$F$12=\"Yes\",HLOOKUP(Calc_Proposed!AV$6,'Carbon Prices'!$D$9:$CP$15,3,FALSE),HLOOKUP(Calc_Proposed!AV$6,'Carbon Prices'!$D$9:$CP$15,6,FALSE)),0)","v":0},{"$f":"IFERROR(IF('Data Input - General'!$F$12=\"Yes\",HLOOKUP(Calc_Proposed!AW$6,'Carbon Prices'!$D$9:$CP$15,3,FALSE),HLOOKUP(Calc_Proposed!AW$6,'Carbon Prices'!$D$9:$CP$15,6,FALSE)),0)","v":0},{"$f":"IFERROR(IF('Data Input - General'!$F$12=\"Yes\",HLOOKUP(Calc_Proposed!AX$6,'Carbon Prices'!$D$9:$CP$15,3,FALSE),HLOOKUP(Calc_Proposed!AX$6,'Carbon Prices'!$D$9:$CP$15,6,FALSE)),0)","v":0},{"$f":"IFERROR(IF('Data Input - General'!$F$12=\"Yes\",HLOOKUP(Calc_Proposed!AY$6,'Carbon Prices'!$D$9:$CP$15,3,FALSE),HLOOKUP(Calc_Proposed!AY$6,'Carbon Prices'!$D$9:$CP$15,6,FALSE)),0)","v":0},{"$f":"IFERROR(IF('Data Input - General'!$F$12=\"Yes\",HLOOKUP(Calc_Proposed!AZ$6,'Carbon Prices'!$D$9:$CP$15,3,FALSE),HLOOKUP(Calc_Proposed!AZ$6,'Carbon Prices'!$D$9:$CP$15,6,FALSE)),0)","v":0},{"$f":"IFERROR(IF('Data Input - General'!$F$12=\"Yes\",HLOOKUP(Calc_Proposed!BA$6,'Carbon Prices'!$D$9:$CP$15,3,FALSE),HLOOKUP(Calc_Proposed!BA$6,'Carbon Prices'!$D$9:$CP$15,6,FALSE)),0)","v":0},{"$f":"IFERROR(IF('Data Input - General'!$F$12=\"Yes\",HLOOKUP(Calc_Proposed!BB$6,'Carbon Prices'!$D$9:$CP$15,3,FALSE),HLOOKUP(Calc_Proposed!BB$6,'Carbon Prices'!$D$9:$CP$15,6,FALSE)),0)","v":0},{"$f":"IFERROR(IF('Data Input - General'!$F$12=\"Yes\",HLOOKUP(Calc_Proposed!BC$6,'Carbon Prices'!$D$9:$CP$15,3,FALSE),HLOOKUP(Calc_Proposed!BC$6,'Carbon Prices'!$D$9:$CP$15,6,FALSE)),0)","v":0},{"$f":"IFERROR(IF('Data Input - General'!$F$12=\"Yes\",HLOOKUP(Calc_Proposed!BD$6,'Carbon Prices'!$D$9:$CP$15,3,FALSE),HLOOKUP(Calc_Proposed!BD$6,'Carbon Prices'!$D$9:$CP$15,6,FALSE)),0)","v":0},{"$f":"IFERROR(IF('Data Input - General'!$F$12=\"Yes\",HLOOKUP(Calc_Proposed!BE$6,'Carbon Prices'!$D$9:$CP$15,3,FALSE),HLOOKUP(Calc_Proposed!BE$6,'Carbon Prices'!$D$9:$CP$15,6,FALSE)),0)","v":0},{"$f":"IFERROR(IF('Data Input - General'!$F$12=\"Yes\",HLOOKUP(Calc_Proposed!BF$6,'Carbon Prices'!$D$9:$CP$15,3,FALSE),HLOOKUP(Calc_Proposed!BF$6,'Carbon Prices'!$D$9:$CP$15,6,FALSE)),0)","v":0},{"$f":"IFERROR(IF('Data Input - General'!$F$12=\"Yes\",HLOOKUP(Calc_Proposed!BG$6,'Carbon Prices'!$D$9:$CP$15,3,FALSE),HLOOKUP(Calc_Proposed!BG$6,'Carbon Prices'!$D$9:$CP$15,6,FALSE)),0)","v":0},{"$f":"IFERROR(IF('Data Input - General'!$F$12=\"Yes\",HLOOKUP(Calc_Proposed!BH$6,'Carbon Prices'!$D$9:$CP$15,3,FALSE),HLOOKUP(Calc_Proposed!BH$6,'Carbon Prices'!$D$9:$CP$15,6,FALSE)),0)","v":0},{"$f":"IFERROR(IF('Data Input - General'!$F$12=\"Yes\",HLOOKUP(Calc_Proposed!BI$6,'Carbon Prices'!$D$9:$CP$15,3,FALSE),HLOOKUP(Calc_Proposed!BI$6,'Carbon Prices'!$D$9:$CP$15,6,FALSE)),0)","v":0},{"$f":"IFERROR(IF('Data Input - General'!$F$12=\"Yes\",HLOOKUP(Calc_Proposed!BJ$6,'Carbon Prices'!$D$9:$CP$15,3,FALSE),HLOOKUP(Calc_Proposed!BJ$6,'Carbon Prices'!$D$9:$CP$15,6,FALSE)),0)","v":0},{"$f":"IFERROR(IF('Data Input - General'!$F$12=\"Yes\",HLOOKUP(Calc_Proposed!BK$6,'Carbon Prices'!$D$9:$CP$15,3,FALSE),HLOOKUP(Calc_Proposed!BK$6,'Carbon Prices'!$D$9:$CP$15,6,FALSE)),0)","v":0},{"$f":"IFERROR(IF('Data Input - General'!$F$12=\"Yes\",HLOOKUP(Calc_Proposed!BL$6,'Carbon Prices'!$D$9:$CP$15,3,FALSE),HLOOKUP(Calc_Proposed!BL$6,'Carbon Prices'!$D$9:$CP$15,6,FALSE)),0)","v":0},{"$f":"IFERROR(IF('Data Input - General'!$F$12=\"Yes\",HLOOKUP(Calc_Proposed!BM$6,'Carbon Prices'!$D$9:$CP$15,3,FALSE),HLOOKUP(Calc_Proposed!BM$6,'Carbon Prices'!$D$9:$CP$15,6,FALSE)),0)","v":0},{"$f":"IFERROR(IF('Data Input - General'!$F$12=\"Yes\",HLOOKUP(Calc_Proposed!BN$6,'Carbon Prices'!$D$9:$CP$15,3,FALSE),HLOOKUP(Calc_Proposed!BN$6,'Carbon Prices'!$D$9:$CP$15,6,FALSE)),0)","v":0},{"$f":"IFERROR(IF('Data Input - General'!$F$12=\"Yes\",HLOOKUP(Calc_Proposed!BO$6,'Carbon Prices'!$D$9:$CP$15,3,FALSE),HLOOKUP(Calc_Proposed!BO$6,'Carbon Prices'!$D$9:$CP$15,6,FALSE)),0)","v":0},{"$f":"IFERROR(IF('Data Input - General'!$F$12=\"Yes\",HLOOKUP(Calc_Proposed!BP$6,'Carbon Prices'!$D$9:$CP$15,3,FALSE),HLOOKUP(Calc_Proposed!BP$6,'Carbon Prices'!$D$9:$CP$15,6,FALSE)),0)","v":0},{"$f":"IFERROR(IF('Data Input - General'!$F$12=\"Yes\",HLOOKUP(Calc_Proposed!BQ$6,'Carbon Prices'!$D$9:$CP$15,3,FALSE),HLOOKUP(Calc_Proposed!BQ$6,'Carbon Prices'!$D$9:$CP$15,6,FALSE)),0)","v":0},{"$f":"IFERROR(IF('Data Input - General'!$F$12=\"Yes\",HLOOKUP(Calc_Proposed!BR$6,'Carbon Prices'!$D$9:$CP$15,3,FALSE),HLOOKUP(Calc_Proposed!BR$6,'Carbon Prices'!$D$9:$CP$15,6,FALSE)),0)","v":0},{"$f":"IFERROR(IF('Data Input - General'!$F$12=\"Yes\",HLOOKUP(Calc_Proposed!BS$6,'Carbon Prices'!$D$9:$CP$15,3,FALSE),HLOOKUP(Calc_Proposed!BS$6,'Carbon Prices'!$D$9:$CP$15,6,FALSE)),0)","v":0},{"$f":"IFERROR(IF('Data Input - General'!$F$12=\"Yes\",HLOOKUP(Calc_Proposed!BT$6,'Carbon Prices'!$D$9:$CP$15,3,FALSE),HLOOKUP(Calc_Proposed!BT$6,'Carbon Prices'!$D$9:$CP$15,6,FALSE)),0)","v":0},{"$f":"IFERROR(IF('Data Input - General'!$F$12=\"Yes\",HLOOKUP(Calc_Proposed!BU$6,'Carbon Prices'!$D$9:$CP$15,3,FALSE),HLOOKUP(Calc_Proposed!BU$6,'Carbon Prices'!$D$9:$CP$15,6,FALSE)),0)","v":0},{"$f":"IFERROR(IF('Data Input - General'!$F$12=\"Yes\",HLOOKUP(Calc_Proposed!BV$6,'Carbon Prices'!$D$9:$CP$15,3,FALSE),HLOOKUP(Calc_Proposed!BV$6,'Carbon Prices'!$D$9:$CP$15,6,FALSE)),0)","v":0},{"$f":"IFERROR(IF('Data Input - General'!$F$12=\"Yes\",HLOOKUP(Calc_Proposed!BW$6,'Carbon Prices'!$D$9:$CP$15,3,FALSE),HLOOKUP(Calc_Proposed!BW$6,'Carbon Prices'!$D$9:$CP$15,6,FALSE)),0)","v":0},{"$f":"IFERROR(IF('Data Input - General'!$F$12=\"Yes\",HLOOKUP(Calc_Proposed!BX$6,'Carbon Prices'!$D$9:$CP$15,3,FALSE),HLOOKUP(Calc_Proposed!BX$6,'Carbon Prices'!$D$9:$CP$15,6,FALSE)),0)","v":0},{"$f":"IFERROR(IF('Data Input - General'!$F$12=\"Yes\",HLOOKUP(Calc_Proposed!BY$6,'Carbon Prices'!$D$9:$CP$15,3,FALSE),HLOOKUP(Calc_Proposed!BY$6,'Carbon Prices'!$D$9:$CP$15,6,FALSE)),0)","v":0},{"$f":"IFERROR(IF('Data Input - General'!$F$12=\"Yes\",HLOOKUP(Calc_Proposed!BZ$6,'Carbon Prices'!$D$9:$CP$15,3,FALSE),HLOOKUP(Calc_Proposed!BZ$6,'Carbon Prices'!$D$9:$CP$15,6,FALSE)),0)","v":0},{"$f":"IFERROR(IF('Data Input - General'!$F$12=\"Yes\",HLOOKUP(Calc_Proposed!CA$6,'Carbon Prices'!$D$9:$CP$15,3,FALSE),HLOOKUP(Calc_Proposed!CA$6,'Carbon Prices'!$D$9:$CP$15,6,FALSE)),0)","v":0},{"$f":"IFERROR(IF('Data Input - General'!$F$12=\"Yes\",HLOOKUP(Calc_Proposed!CB$6,'Carbon Prices'!$D$9:$CP$15,3,FALSE),HLOOKUP(Calc_Proposed!CB$6,'Carbon Prices'!$D$9:$CP$15,6,FALSE)),0)","v":0},{"$f":"IFERROR(IF('Data Input - General'!$F$12=\"Yes\",HLOOKUP(Calc_Proposed!CC$6,'Carbon Prices'!$D$9:$CP$15,3,FALSE),HLOOKUP(Calc_Proposed!CC$6,'Carbon Prices'!$D$9:$CP$15,6,FALSE)),0)","v":0},{"$f":"IFERROR(IF('Data Input - General'!$F$12=\"Yes\",HLOOKUP(Calc_Proposed!CD$6,'Carbon Prices'!$D$9:$CP$15,3,FALSE),HLOOKUP(Calc_Proposed!CD$6,'Carbon Prices'!$D$9:$CP$15,6,FALSE)),0)","v":0},{"$f":"IFERROR(IF('Data Input - General'!$F$12=\"Yes\",HLOOKUP(Calc_Proposed!CE$6,'Carbon Prices'!$D$9:$CP$15,3,FALSE),HLOOKUP(Calc_Proposed!CE$6,'Carbon Prices'!$D$9:$CP$15,6,FALSE)),0)","v":0},{"$f":"IFERROR(IF('Data Input - General'!$F$12=\"Yes\",HLOOKUP(Calc_Proposed!CF$6,'Carbon Prices'!$D$9:$CP$15,3,FALSE),HLOOKUP(Calc_Proposed!CF$6,'Carbon Prices'!$D$9:$CP$15,6,FALSE)),0)","v":0},{"$f":"IFERROR(IF('Data Input - General'!$F$12=\"Yes\",HLOOKUP(Calc_Proposed!CG$6,'Carbon Prices'!$D$9:$CP$15,3,FALSE),HLOOKUP(Calc_Proposed!CG$6,'Carbon Prices'!$D$9:$CP$15,6,FALSE)),0)","v":0},{"$f":"IFERROR(IF('Data Input - General'!$F$12=\"Yes\",HLOOKUP(Calc_Proposed!CH$6,'Carbon Prices'!$D$9:$CP$15,3,FALSE),HLOOKUP(Calc_Proposed!CH$6,'Carbon Prices'!$D$9:$CP$15,6,FALSE)),0)","v":0},{"$f":"IFERROR(IF('Data Input - General'!$F$12=\"Yes\",HLOOKUP(Calc_Proposed!CI$6,'Carbon Prices'!$D$9:$CP$15,3,FALSE),HLOOKUP(Calc_Proposed!CI$6,'Carbon Prices'!$D$9:$CP$15,6,FALSE)),0)","v":0},{"$f":"IFERROR(IF('Data Input - General'!$F$12=\"Yes\",HLOOKUP(Calc_Proposed!CJ$6,'Carbon Prices'!$D$9:$CP$15,3,FALSE),HLOOKUP(Calc_Proposed!CJ$6,'Carbon Prices'!$D$9:$CP$15,6,FALSE)),0)","v":0},{"$f":"IFERROR(IF('Data Input - General'!$F$12=\"Yes\",HLOOKUP(Calc_Proposed!CK$6,'Carbon Prices'!$D$9:$CP$15,3,FALSE),HLOOKUP(Calc_Proposed!CK$6,'Carbon Prices'!$D$9:$CP$15,6,FALSE)),0)","v":0},{"$f":"IFERROR(IF('Data Input - General'!$F$12=\"Yes\",HLOOKUP(Calc_Proposed!CL$6,'Carbon Prices'!$D$9:$CP$15,3,FALSE),HLOOKUP(Calc_Proposed!CL$6,'Carbon Prices'!$D$9:$CP$15,6,FALSE)),0)","v":0},{"$f":"IFERROR(IF('Data Input - General'!$F$12=\"Yes\",HLOOKUP(Calc_Proposed!CM$6,'Carbon Prices'!$D$9:$CP$15,3,FALSE),HLOOKUP(Calc_Proposed!CM$6,'Carbon Prices'!$D$9:$CP$15,6,FALSE)),0)","v":0},{"$f":"IFERROR(IF('Data Input - General'!$F$12=\"Yes\",HLOOKUP(Calc_Proposed!CN$6,'Carbon Prices'!$D$9:$CP$15,3,FALSE),HLOOKUP(Calc_Proposed!CN$6,'Carbon Prices'!$D$9:$CP$15,6,FALSE)),0)","v":0},{"$f":"IFERROR(IF('Data Input - General'!$F$12=\"Yes\",HLOOKUP(Calc_Proposed!CO$6,'Carbon Prices'!$D$9:$CP$15,3,FALSE),HLOOKUP(Calc_Proposed!CO$6,'Carbon Prices'!$D$9:$CP$15,6,FALSE)),0)","v":0},{"$f":"IFERROR(IF('Data Input - General'!$F$12=\"Yes\",HLOOKUP(Calc_Proposed!CP$6,'Carbon Prices'!$D$9:$CP$15,3,FALSE),HLOOKUP(Calc_Proposed!CP$6,'Carbon Prices'!$D$9:$CP$15,6,FALSE)),0)","v":0},{"$f":"IFERROR(IF('Data Input - General'!$F$12=\"Yes\",HLOOKUP(Calc_Proposed!CQ$6,'Carbon Prices'!$D$9:$CP$15,3,FALSE),HLOOKUP(Calc_Proposed!CQ$6,'Carbon Prices'!$D$9:$CP$15,6,FALSE)),0)","v":0},{"$f":"IFERROR(IF('Data Input - General'!$F$12=\"Yes\",HLOOKUP(Calc_Proposed!CR$6,'Carbon Prices'!$D$9:$CP$15,3,FALSE),HLOOKUP(Calc_Proposed!CR$6,'Carbon Prices'!$D$9:$CP$15,6,FALSE)),0)","v":0},{"$f":"IFERROR(IF('Data Input - General'!$F$12=\"Yes\",HLOOKUP(Calc_Proposed!CS$6,'Carbon Prices'!$D$9:$CP$15,3,FALSE),HLOOKUP(Calc_Proposed!CS$6,'Carbon Prices'!$D$9:$CP$15,6,FALSE)),0)","v":0},{"$f":"IFERROR(IF('Data Input - General'!$F$12=\"Yes\",HLOOKUP(Calc_Proposed!CT$6,'Carbon Prices'!$D$9:$CP$15,3,FALSE),HLOOKUP(Calc_Proposed!CT$6,'Carbon Prices'!$D$9:$CP$15,6,FALSE)),0)","v":0},{"$f":"IFERROR(IF('Data Input - General'!$F$12=\"Yes\",HLOOKUP(Calc_Proposed!CU$6,'Carbon Prices'!$D$9:$CP$15,3,FALSE),HLOOKUP(Calc_Proposed!CU$6,'Carbon Prices'!$D$9:$CP$15,6,FALSE)),0)","v":0},{"$f":"IFERROR(IF('Data Input - General'!$F$12=\"Yes\",HLOOKUP(Calc_Proposed!CV$6,'Carbon Prices'!$D$9:$CP$15,3,FALSE),HLOOKUP(Calc_Proposed!CV$6,'Carbon Prices'!$D$9:$CP$15,6,FALSE)),0)","v":0},{"$f":"IFERROR(IF('Data Input - General'!$F$12=\"Yes\",HLOOKUP(Calc_Proposed!CW$6,'Carbon Prices'!$D$9:$CP$15,3,FALSE),HLOOKUP(Calc_Proposed!CW$6,'Carbon Prices'!$D$9:$CP$15,6,FALSE)),0)","v":0},{"$f":"IFERROR(IF('Data Input - General'!$F$12=\"Yes\",HLOOKUP(Calc_Proposed!CX$6,'Carbon Prices'!$D$9:$CP$15,3,FALSE),HLOOKUP(Calc_Proposed!CX$6,'Carbon Prices'!$D$9:$CP$15,6,FALSE)),0)","v":0},{"$f":"IFERROR(IF('Data Input - General'!$F$12=\"Yes\",HLOOKUP(Calc_Proposed!CY$6,'Carbon Prices'!$D$9:$CP$15,3,FALSE),HLOOKUP(Calc_Proposed!CY$6,'Carbon Prices'!$D$9:$CP$15,6,FALSE)),0)","v":0}]
[null,"Total value","£000's",{"$f":"IFERROR(D75*D76,0)","v":307116.39073072112},{"$f":"IFERROR(E75*E76,0)","v":318786.81357848854},{"$f":"IFERROR(F75*F76,0)","v":666421.50054753432},{"$f":"IFERROR(G75*G76,0)","v":1014056.1875165801},1361690.8744856259,1709325.5614546719,2056960.2484237177,2404594.9353927635,0,0,0,0,0,0,0,0,0,0,0,0,0,0,0,0,0,0,0,0,0,0,0,0,0,0,0,0,0,0,0,0,0,0,0,0,0,0,0,0,0,0,0,0,0,0,0,0,0,0,0,0,0,0,0,0,0,0,0,{"$f":"IFERROR(BS75*BS76,0)","v":0},0,0,0,0,0,0,0,0,0,0,0,0,0,0,0,0,0,0,0,0,0,0,0,0,0,0,0,0,0,0,0,0]
[]
[null,"Greenhouse gas emissions (associated with fuel use)"]
[null,"Elec","tCO2e",{"$f":"'Data Input - Proposed'!H120","v":1147.9102063708638},{"$f":"'Data Input - Proposed'!I120","v":1022.7509038254832},{"$f":"'Data Input - Proposed'!J120","v":900.70523018473978},{"$f":"'Data Input - Proposed'!K120","v":829.51171353866823},{"$f":"'Data Input - Proposed'!L120","v":706.29239328079632},{"$f":"'Data Input - Proposed'!M120","v":741.68258779755536},{"$f":"'Data Input - Proposed'!N120","v":695.10356862610229},{"$f":"'Data Input - Proposed'!O120","v":617.9056138546847},{"$f":"'Data Input - Proposed'!P120","v":0},{"$f":"'Data Input - Proposed'!Q120","v":0},{"$f":"'Data Input - Proposed'!R120","v":0},{"$f":"'Data Input - Proposed'!S120","v":0},{"$f":"'Data Input - Proposed'!T120","v":0},{"$f":"'Data Input - Proposed'!U120","v":0},{"$f":"'Data Input - Proposed'!V120","v":0},{"$f":"'Data Input - Proposed'!W120","v":0},{"$f":"'Data Input - Proposed'!X120","v":0},{"$f":"'Data Input - Proposed'!Y120","v":0},{"$f":"'Data Input - Proposed'!Z120","v":0},{"$f":"'Data Input - Proposed'!AA120","v":0},{"$f":"'Data Input - Proposed'!AB120","v":0},{"$f":"'Data Input - Proposed'!AC120","v":0},{"$f":"'Data Input - Proposed'!AD120","v":0},{"$f":"'Data Input - Proposed'!AE120","v":0},{"$f":"'Data Input - Proposed'!AF120","v":0},{"$f":"'Data Input - Proposed'!AG120","v":0},{"$f":"'Data Input - Proposed'!AH120","v":0},{"$f":"'Data Input - Proposed'!AI120","v":0},{"$f":"'Data Input - Proposed'!AJ120","v":0},{"$f":"'Data Input - Proposed'!AK120","v":0},{"$f":"'Data Input - Proposed'!AL120","v":0},{"$f":"'Data Input - Proposed'!AM120","v":0},{"$f":"'Data Input - Proposed'!AN120","v":0},{"$f":"'Data Input - Proposed'!AO120","v":0},{"$f":"'Data Input - Proposed'!AP120","v":0},{"$f":"'Data Input - Proposed'!AQ120","v":0},{"$f":"'Data Input - Proposed'!AR120","v":0},{"$f":"'Data Input - Proposed'!AS120","v":0},{"$f":"'Data Input - Proposed'!AT120","v":0},{"$f":"'Data Input - Proposed'!AU120","v":0},{"$f":"'Data Input - Proposed'!AV120","v":0},{"$f":"'Data Input - Proposed'!AW120","v":0},{"$f":"'Data Input - Proposed'!AX120","v":0},{"$f":"'Data Input - Proposed'!AY120","v":0},{"$f":"'Data Input - Proposed'!AZ120","v":0},{"$f":"'Data Input - Proposed'!BA120","v":0},{"$f":"'Data Input - Proposed'!BB120","v":0},{"$f":"'Data Input - Proposed'!BC120","v":0},{"$f":"'Data Input - Proposed'!BD120","v":0},{"$f":"'Data Input - Proposed'!BE120","v":0},{"$f":"'Data Input - Proposed'!BF120","v":0},{"$f":"'Data Input - Proposed'!BG120","v":0},{"$f":"'Data Input - Proposed'!BH120","v":0},{"$f":"'Data Input - Proposed'!BI120","v":0},{"$f":"'Data Input - Proposed'!BJ120","v":0},{"$f":"'Data Input - Proposed'!BK120","v":0},{"$f":"'Data Input - Proposed'!BL120","v":0},{"$f":"'Data Input - Proposed'!BM120","v":0},{"$f":"'Data Input - Proposed'!BN120","v":0},{"$f":"'Data Input - Proposed'!BO120","v":0},{"$f":"'Data Input - Proposed'!BP120","v":0},{"$f":"'Data Input - Proposed'!BQ120","v":0},{"$f":"'Data Input - Proposed'!BR120","v":0},{"$f":"'Data Input - Proposed'!BS120","v":0},{"$f":"'Data Input - Proposed'!BT120","v":0},{"$f":"'Data Input - Proposed'!BU120","v":0},{"$f":"'Data Input - Proposed'!BV120","v":0},{"$f":"'Data Input - Proposed'!BW120","v":0},{"$f":"'Data Input - Proposed'!BX120","v":0},{"$f":"'Data Input - Proposed'!BY120","v":0},{"$f":"'Data Input - Proposed'!BZ120","v":0},{"$f":"'Data Input - Proposed'!CA120","v":0},{"$f":"'Data Input - Proposed'!CB120","v":0},{"$f":"'Data Input - Proposed'!CC120","v":0},{"$f":"'Data Input - Proposed'!CD120","v":0},{"$f":"'Data Input - Proposed'!CE120","v":0},{"$f":"'Data Input - Proposed'!CF120","v":0},{"$f":"'Data Input - Proposed'!CG120","v":0},{"$f":"'Data Input - Proposed'!CH120","v":0},{"$f":"'Data Input - Proposed'!CI120","v":0},{"$f":"'Data Input - Proposed'!CJ120","v":0},{"$f":"'Data Input - Proposed'!CK120","v":0},{"$f":"'Data Input - Proposed'!CL120","v":0},{"$f":"'Data Input - Proposed'!CM120","v":0},{"$f":"'Data Input - Proposed'!CN120","v":0},{"$f":"'Data Input - Proposed'!CO120","v":0},{"$f":"'Data Input - Proposed'!CP120","v":0},{"$f":"'Data Input - Proposed'!CQ120","v":0},{"$f":"'Data Input - Proposed'!CR120","v":0},{"$f":"'Data Input - Proposed'!CS120","v":0},{"$f":"'Data Input - Proposed'!CT120","v":0},{"$f":"'Data Input - Proposed'!CU120","v":0},{"$f":"'Data Input - Proposed'!CV120","v":0},{"$f":"'Data Input - Proposed'!CW120","v":0},{"$f":"'Data Input - Proposed'!CX120","v":0},{"$f":"'Data Input - Proposed'!CY120","v":0},{"$f":"'Data Input - Proposed'!CZ120","v":0},{"$f":"'Data Input - Proposed'!DA120","v":0},{"$f":"'Data Input - Proposed'!DB120","v":0},{"$f":"'Data Input - Proposed'!DC120","v":0}]
[null,"Non-elec","tCO2e",{"$f":"'Data Input - Proposed'!H128-'Data Input - Proposed'!H120","v":40496.827401879185},{"$f":"'Data Input - Proposed'!I128-'Data Input - Proposed'!I120","v":40487.482271193861},{"$f":"'Data Input - Proposed'!J128-'Data Input - Proposed'!J120","v":40487.482271193861},{"$f":"'Data Input - Proposed'!K128-'Data Input - Proposed'!K120","v":40487.482271193861},{"$f":"'Data Input - Proposed'!L128-'Data Input - Proposed'!L120","v":40487.482271193861},{"$f":"'Data Input - Proposed'!M128-'Data Input - Proposed'!M120","v":40487.482271193861},{"$f":"'Data Input - Proposed'!N128-'Data Input - Proposed'!N120","v":40487.482271193861},{"$f":"'Data Input - Proposed'!O128-'Data Input - Proposed'!O120","v":40487.482271193861},{"$f":"'Data Input - Proposed'!P128-'Data Input - Proposed'!P120","v":0},{"$f":"'Data Input - Proposed'!Q128-'Data Input - Proposed'!Q120","v":0},{"$f":"'Data Input - Proposed'!R128-'Data Input - Proposed'!R120","v":0},{"$f":"'Data Input - Proposed'!S128-'Data Input - Proposed'!S120","v":0},{"$f":"'Data Input - Proposed'!T128-'Data Input - Proposed'!T120","v":0},{"$f":"'Data Input - Proposed'!U128-'Data Input - Proposed'!U120","v":0},{"$f":"'Data Input - Proposed'!V128-'Data Input - Proposed'!V120","v":0},{"$f":"'Data Input - Proposed'!W128-'Data Input - Proposed'!W120","v":0},{"$f":"'Data Input - Proposed'!X128-'Data Input - Proposed'!X120","v":0},{"$f":"'Data Input - Proposed'!Y128-'Data Input - Proposed'!Y120","v":0},{"$f":"'Data Input - Proposed'!Z128-'Data Input - Proposed'!Z120","v":0},{"$f":"'Data Input - Proposed'!AA128-'Data Input - Proposed'!AA120","v":0},{"$f":"'Data Input - Proposed'!AB128-'Data Input - Proposed'!AB120","v":0},{"$f":"'Data Input - Proposed'!AC128-'Data Input - Proposed'!AC120","v":0},{"$f":"'Data Input - Proposed'!AD128-'Data Input - Proposed'!AD120","v":0},{"$f":"'Data Input - Proposed'!AE128-'Data Input - Proposed'!AE120","v":0},{"$f":"'Data Input - Proposed'!AF128-'Data Input - Proposed'!AF120","v":0},{"$f":"'Data Input - Proposed'!AG128-'Data Input - Proposed'!AG120","v":0},{"$f":"'Data Input - Proposed'!AH128-'Data Input - Proposed'!AH120","v":0},{"$f":"'Data Input - Proposed'!AI128-'Data Input - Proposed'!AI120","v":0},{"$f":"'Data Input - Proposed'!AJ128-'Data Input - Proposed'!AJ120","v":0},{"$f":"'Data Input - Proposed'!AK128-'Data Input - Proposed'!AK120","v":0},{"$f":"'Data Input - Proposed'!AL128-'Data Input - Proposed'!AL120","v":0},{"$f":"'Data Input - Proposed'!AM128-'Data Input - Proposed'!AM120","v":0},{"$f":"'Data Input - Proposed'!AN128-'Data Input - Proposed'!AN120","v":0},{"$f":"'Data Input - Proposed'!AO128-'Data Input - Proposed'!AO120","v":0},{"$f":"'Data Input - Proposed'!AP128-'Data Input - Proposed'!AP120","v":0},{"$f":"'Data Input - Proposed'!AQ128-'Data Input - Proposed'!AQ120","v":0},{"$f":"'Data Input - Proposed'!AR128-'Data Input - Proposed'!AR120","v":0},{"$f":"'Data Input - Proposed'!AS128-'Data Input - Proposed'!AS120","v":0},{"$f":"'Data Input - Proposed'!AT128-'Data Input - Proposed'!AT120","v":0},{"$f":"'Data Input - Proposed'!AU128-'Data Input - Proposed'!AU120","v":0},{"$f":"'Data Input - Proposed'!AV128-'Data Input - Proposed'!AV120","v":0},{"$f":"'Data Input - Proposed'!AW128-'Data Input - Proposed'!AW120","v":0},{"$f":"'Data Input - Proposed'!AX128-'Data Input - Proposed'!AX120","v":0},{"$f":"'Data Input - Proposed'!AY128-'Data Input - Proposed'!AY120","v":0},{"$f":"'Data Input - Proposed'!AZ128-'Data Input - Proposed'!AZ120","v":0},{"$f":"'Data Input - Proposed'!BA128-'Data Input - Proposed'!BA120","v":0},{"$f":"'Data Input - Proposed'!BB128-'Data Input - Proposed'!BB120","v":0},{"$f":"'Data Input - Proposed'!BC128-'Data Input - Proposed'!BC120","v":0},{"$f":"'Data Input - Proposed'!BD128-'Data Input - Proposed'!BD120","v":0},{"$f":"'Data Input - Proposed'!BE128-'Data Input - Proposed'!BE120","v":0},{"$f":"'Data Input - Proposed'!BF128-'Data Input - Proposed'!BF120","v":0},{"$f":"'Data Input - Proposed'!BG128-'Data Input - Proposed'!BG120","v":0},{"$f":"'Data Input - Proposed'!BH128-'Data Input - Proposed'!BH120","v":0},{"$f":"'Data Input - Proposed'!BI128-'Data Input - Proposed'!BI120","v":0},{"$f":"'Data Input - Proposed'!BJ128-'Data Input - Proposed'!BJ120","v":0},{"$f":"'Data Input - Proposed'!BK128-'Data Input - Proposed'!BK120","v":0},{"$f":"'Data Input - Proposed'!BL128-'Data Input - Proposed'!BL120","v":0},{"$f":"'Data Input - Proposed'!BM128-'Data Input - Proposed'!BM120","v":0},{"$f":"'Data Input - Proposed'!BN128-'Data Input - Proposed'!BN120","v":0},{"$f":"'Data Input - Proposed'!BO128-'Data Input - Proposed'!BO120","v":0},{"$f":"'Data Input - Proposed'!BP128-'Data Input - Proposed'!BP120","v":0},{"$f":"'Data Input - Proposed'!BQ128-'Data Input - Proposed'!BQ120","v":0},{"$f":"'Data Input - Proposed'!BR128-'Data Input - Proposed'!BR120","v":0},{"$f":"'Data Input - Proposed'!BS128-'Data Input - Proposed'!BS120","v":0},{"$f":"'Data Input - Proposed'!BT128-'Data Input - Proposed'!BT120","v":0},{"$f":"'Data Input - Proposed'!BU128-'Data Input - Proposed'!BU120","v":0},{"$f":"'Data Input - Proposed'!BV128-'Data Input - Proposed'!BV120","v":0},{"$f":"'Data Input - Proposed'!BW128-'Data Input - Proposed'!BW120","v":0},{"$f":"'Data Input - Proposed'!BX128-'Data Input - Proposed'!BX120","v":0},{"$f":"'Data Input - Proposed'!BY128-'Data Input - Proposed'!BY120","v":0},{"$f":"'Data Input - Proposed'!BZ128-'Data Input - Proposed'!BZ120","v":0},{"$f":"'Data Input - Proposed'!CA128-'Data Input - Proposed'!CA120","v":0},{"$f":"'Data Input - Proposed'!CB128-'Data Input - Proposed'!CB120","v":0},{"$f":"'Data Input - Proposed'!CC128-'Data Input - Proposed'!CC120","v":0},{"$f":"'Data Input - Proposed'!CD128-'Data Input - Proposed'!CD120","v":0},{"$f":"'Data Input - Proposed'!CE128-'Data Input - Proposed'!CE120","v":0},{"$f":"'Data Input - Proposed'!CF128-'Data Input - Proposed'!CF120","v":0},{"$f":"'Data Input - Proposed'!CG128-'Data Input - Proposed'!CG120","v":0},{"$f":"'Data Input - Proposed'!CH128-'Data Input - Proposed'!CH120","v":0},{"$f":"'Data Input - Proposed'!CI128-'Data Input - Proposed'!CI120","v":0},{"$f":"'Data Input - Proposed'!CJ128-'Data Input - Proposed'!CJ120","v":0},{"$f":"'Data Input - Proposed'!CK128-'Data Input - Proposed'!CK120","v":0},{"$f":"'Data Input - Proposed'!CL128-'Data Input - Proposed'!CL120","v":0},{"$f":"'Data Input - Proposed'!CM128-'Data Input - Proposed'!CM120","v":0},{"$f":"'Data Input - Proposed'!CN128-'Data Input - Proposed'!CN120","v":0},{"$f":"'Data Input - Proposed'!CO128-'Data Input - Proposed'!CO120","v":0},{"$f":"'Data Input - Proposed'!CP128-'Data Input - Proposed'!CP120","v":0},{"$f":"'Data Input - Proposed'!CQ128-'Data Input - Proposed'!CQ120","v":0},{"$f":"'Data Input - Proposed'!CR128-'Data Input - Proposed'!CR120","v":0},{"$f":"'Data Input - Proposed'!CS128-'Data Input - Proposed'!CS120","v":0},{"$f":"'Data Input - Proposed'!CT128-'Data Input - Proposed'!CT120","v":0},{"$f":"'Data Input - Proposed'!CU128-'Data Input - Proposed'!CU120","v":0},{"$f":"'Data Input - Proposed'!CV128-'Data Input - Proposed'!CV120","v":0},{"$f":"'Data Input - Proposed'!CW128-'Data Input - Proposed'!CW120","v":0},{"$f":"'Data Input - Proposed'!CX128-'Data Input - Proposed'!CX120","v":0},{"$f":"'Data Input - Proposed'!CY128-'Data Input - Proposed'!CY120","v":0},{"$f":"'Data Input - Proposed'!CZ128-'Data Input - Proposed'!CZ120","v":0},{"$f":"'Data Input - Proposed'!DA128-'Data Input - Proposed'!DA120","v":0},{"$f":"'Data Input - Proposed'!DB128-'Data Input - Proposed'!DB120","v":0},{"$f":"'Data Input - Proposed'!DC128-'Data Input - Proposed'!DC120","v":0}]
[null,"Value elec","£000's",{"$f":"HLOOKUP(Calc_Proposed!D$6,'Carbon Prices'!$D$9:$CP$15,3,FALSE)","v":6.8248086829049139},{"$f":"HLOOKUP(Calc_Proposed!E$6,'Carbon Prices'!$D$9:$CP$15,3,FALSE)","v":7.0841514128553005},{"$f":"HLOOKUP(Calc_Proposed!F$6,'Carbon Prices'!$D$9:$CP$15,3,FALSE)","v":14.809366678834097},{"$f":"HLOOKUP(Calc_Proposed!G$6,'Carbon Prices'!$D$9:$CP$15,3,FALSE)","v":22.534581944812892},{"$f":"HLOOKUP(Calc_Proposed!H$6,'Carbon Prices'!$D$9:$CP$15,3,FALSE)","v":30.259797210791689},{"$f":"HLOOKUP(Calc_Proposed!I$6,'Carbon Prices'!$D$9:$CP$15,3,FALSE)","v":37.985012476770486},{"$f":"HLOOKUP(Calc_Proposed!J$6,'Carbon Prices'!$D$9:$CP$15,3,FALSE)","v":45.710227742749282},{"$f":"HLOOKUP(Calc_Proposed!K$6,'Carbon Prices'!$D$9:$CP$15,3,FALSE)","v":53.435443008728079},{"$f":"HLOOKUP(Calc_Proposed!L$6,'Carbon Prices'!$D$9:$CP$15,3,FALSE)","v":61.160658274706876},{"$f":"HLOOKUP(Calc_Proposed!M$6,'Carbon Prices'!$D$9:$CP$15,3,FALSE)","v":68.885873540685665},{"$f":"HLOOKUP(Calc_Proposed!N$6,'Carbon Prices'!$D$9:$CP$15,3,FALSE)","v":76.611088806664469},{"$f":"HLOOKUP(Calc_Proposed!O$6,'Carbon Prices'!$D$9:$CP$15,3,FALSE)","v":84.336304072643259},{"$f":"HLOOKUP(Calc_Proposed!P$6,'Carbon Prices'!$D$9:$CP$15,3,FALSE)","v":92.167532307960172},{"$f":"HLOOKUP(Calc_Proposed!Q$6,'Carbon Prices'!$D$9:$CP$15,3,FALSE)","v":99.998760543277044},{"$f":"HLOOKUP(Calc_Proposed!R$6,'Carbon Prices'!$D$9:$CP$15,3,FALSE)","v":107.82998877859391},{"$f":"HLOOKUP(Calc_Proposed!S$6,'Carbon Prices'!$D$9:$CP$15,3,FALSE)","v":115.6612170139108},{"$f":"HLOOKUP(Calc_Proposed!T$6,'Carbon Prices'!$D$9:$CP$15,3,FALSE)","v":123.49244524922767},{"$f":"HLOOKUP(Calc_Proposed!U$6,'Carbon Prices'!$D$9:$CP$15,3,FALSE)","v":131.32367348454454},{"$f":"HLOOKUP(Calc_Proposed!V$6,'Carbon Prices'!$D$9:$CP$15,3,FALSE)","v":139.15490171986141},{"$f":"HLOOKUP(Calc_Proposed!W$6,'Carbon Prices'!$D$9:$CP$15,3,FALSE)","v":146.98612995517828},{"$f":"HLOOKUP(Calc_Proposed!X$6,'Carbon Prices'!$D$9:$CP$15,3,FALSE)","v":154.81735819049521},{"$f":"HLOOKUP(Calc_Proposed!Y$6,'Carbon Prices'!$D$9:$CP$15,3,FALSE)","v":162.64858642581208},{"$f":"HLOOKUP(Calc_Proposed!Z$6,'Carbon Prices'!$D$9:$CP$15,3,FALSE)","v":170.47981466112896},{"$f":"HLOOKUP(Calc_Proposed!AA$6,'Carbon Prices'!$D$9:$CP$15,3,FALSE)","v":178.31104289644583},{"$f":"HLOOKUP(Calc_Proposed!AB$6,'Carbon Prices'!$D$9:$CP$15,3,FALSE)","v":186.1422711317627},{"$f":"HLOOKUP(Calc_Proposed!AC$6,'Carbon Prices'!$D$9:$CP$15,3,FALSE)","v":193.97349936707957},{"$f":"HLOOKUP(Calc_Proposed!AD$6,'Carbon Prices'!$D$9:$CP$15,3,FALSE)","v":201.80472760239644},{"$f":"HLOOKUP(Calc_Proposed!AE$6,'Carbon Prices'!$D$9:$CP$15,3,FALSE)","v":209.63595583771331},{"$f":"HLOOKUP(Calc_Proposed!AF$6,'Carbon Prices'!$D$9:$CP$15,3,FALSE)","v":217.46718407303021},{"$f":"HLOOKUP(Calc_Proposed!AG$6,'Carbon Prices'!$D$9:$CP$15,3,FALSE)","v":225.29841230834708},{"$f":"HLOOKUP(Calc_Proposed!AH$6,'Carbon Prices'!$D$9:$CP$15,3,FALSE)","v":233.12964054366395},{"$f":"HLOOKUP(Calc_Proposed!AI$6,'Carbon Prices'!$D$9:$CP$15,3,FALSE)","v":{"$error":"#N/A"}},{"$f":"HLOOKUP(Calc_Proposed!AJ$6,'Carbon Prices'!$D$9:$CP$15,3,FALSE)","v":{"$error":"#N/A"}},{"$f":"HLOOKUP(Calc_Proposed!AK$6,'Carbon Prices'!$D$9:$CP$15,3,FALSE)","v":{"$error":"#N/A"}},{"$f":"HLOOKUP(Calc_Proposed!AL$6,'Carbon Prices'!$D$9:$CP$15,3,FALSE)","v":{"$error":"#N/A"}},{"$f":"HLOOKUP(Calc_Proposed!AM$6,'Carbon Prices'!$D$9:$CP$15,3,FALSE)","v":{"$error":"#N/A"}},{"$f":"HLOOKUP(Calc_Proposed!AN$6,'Carbon Prices'!$D$9:$CP$15,3,FALSE)","v":{"$error":"#N/A"}},{"$f":"HLOOKUP(Calc_Proposed!AO$6,'Carbon Prices'!$D$9:$CP$15,3,FALSE)","v":{"$error":"#N/A"}},{"$f":"HLOOKUP(Calc_Proposed!AP$6,'Carbon Prices'!$D$9:$CP$15,3,FALSE)","v":{"$error":"#N/A"}},{"$f":"HLOOKUP(Calc_Proposed!AQ$6,'Carbon Prices'!$D$9:$CP$15,3,FALSE)","v":{"$error":"#N/A"}},{"$f":"HLOOKUP(Calc_Proposed!AR$6,'Carbon Prices'!$D$9:$CP$15,3,FALSE)","v":{"$error":"#N/A"}},{"$f":"HLOOKUP(Calc_Proposed!AS$6,'Carbon Prices'!$D$9:$CP$15,3,FALSE)","v":{"$error":"#N/A"}},{"$f":"HLOOKUP(Calc_Proposed!AT$6,'Carbon Prices'!$D$9:$CP$15,3,FALSE)","v":{"$error":"#N/A"}},{"$f":"HLOOKUP(Calc_Proposed!AU$6,'Carbon Prices'!$D$9:$CP$15,3,FALSE)","v":{"$error":"#N/A"}},{"$f":"HLOOKUP(Calc_Proposed!AV$6,'Carbon Prices'!$D$9:$CP$15,3,FALSE)","v":{"$error":"#N/A"}},{"$f":"HLOOKUP(Calc_Proposed!AW$6,'Carbon Prices'!$D$9:$CP$15,3,FALSE)","v":{"$error":"#N/A"}},{"$f":"HLOOKUP(Calc_Proposed!AX$6,'Carbon Prices'!$D$9:$CP$15,3,FALSE)","v":{"$error":"#N/A"}},{"$f":"HLOOKUP(Calc_Proposed!AY$6,'Carbon Prices'!$D$9:$CP$15,3,FALSE)","v":{"$error":"#N/A"}},{"$f":"HLOOKUP(Calc_Proposed!AZ$6,'Carbon Prices'!$D$9:$CP$15,3,FALSE)","v":{"$error":"#N/A"}},{"$f":"HLOOKUP(Calc_Proposed!BA$6,'Carbon Prices'!$D$9:$CP$15,3,FALSE)","v":{"$error":"#N/A"}},{"$f":"HLOOKUP(Calc_Proposed!BB$6,'Carbon Prices'!$D$9:$CP$15,3,FALSE)","v":{"$error":"#N/A"}},{"$f":"HLOOKUP(Calc_Proposed!BC$6,'Carbon Prices'!$D$9:$CP$15,3,FALSE)","v":{"$error":"#N/A"}},{"$f":"HLOOKUP(Calc_Proposed!BD$6,'Carbon Prices'!$D$9:$CP$15,3,FALSE)","v":{"$error":"#N/A"}},{"$f":"HLOOKUP(Calc_Proposed!BE$6,'Carbon Prices'!$D$9:$CP$15,3,FALSE)","v":{"$error":"#N/A"}},{"$f":"HLOOKUP(Calc_Proposed!BF$6,'Carbon Prices'!$D$9:$CP$15,3,FALSE)","v":{"$error":"#N/A"}},{"$f":"HLOOKUP(Calc_Proposed!BG$6,'Carbon Prices'!$D$9:$CP$15,3,FALSE)","v":{"$error":"#N/A"}},{"$f":"HLOOKUP(Calc_Proposed!BH$6,'Carbon Prices'!$D$9:$CP$15,3,FALSE)","v":{"$error":"#N/A"}},{"$f":"HLOOKUP(Calc_Proposed!BI$6,'Carbon Prices'!$D$9:$CP$15,3,FALSE)","v":{"$error":"#N/A"}},{"$f":"HLOOKUP(Calc_Proposed!BJ$6,'Carbon Prices'!$D$9:$CP$15,3,FALSE)","v":{"$error":"#N/A"}},{"$f":"HLOOKUP(Calc_Proposed!BK$6,'Carbon Prices'!$D$9:$CP$15,3,FALSE)","v":{"$error":"#N/A"}},{"$f":"HLOOKUP(Calc_Proposed!BL$6,'Carbon Prices'!$D$9:$CP$15,3,FALSE)","v":{"$error":"#N/A"}},{"$f":"HLOOKUP(Calc_Proposed!BM$6,'Carbon Prices'!$D$9:$CP$15,3,FALSE)","v":{"$error":"#N/A"}},{"$f":"HLOOKUP(Calc_Proposed!BN$6,'Carbon Prices'!$D$9:$CP$15,3,FALSE)","v":{"$error":"#N/A"}},{"$f":"HLOOKUP(Calc_Proposed!BO$6,'Carbon Prices'!$D$9:$CP$15,3,FALSE)","v":{"$error":"#N/A"}},{"$f":"HLOOKUP(Calc_Proposed!BP$6,'Carbon Prices'!$D$9:$CP$15,3,FALSE)","v":{"$error":"#N/A"}},{"$f":"HLOOKUP(Calc_Proposed!BQ$6,'Carbon Prices'!$D$9:$CP$15,3,FALSE)","v":{"$error":"#N/A"}},{"$f":"HLOOKUP(Calc_Proposed!BR$6,'Carbon Prices'!$D$9:$CP$15,3,FALSE)","v":{"$error":"#N/A"}},{"$f":"HLOOKUP(Calc_Proposed!BS$6,'Carbon Prices'!$D$9:$CP$15,3,FALSE)","v":{"$error":"#N/A"}},{"$f":"HLOOKUP(Calc_Proposed!BT$6,'Carbon Prices'!$D$9:$CP$15,3,FALSE)","v":{"$error":"#N/A"}},{"$f":"HLOOKUP(Calc_Proposed!BU$6,'Carbon Prices'!$D$9:$CP$15,3,FALSE)","v":{"$error":"#N/A"}},{"$f":"HLOOKUP(Calc_Proposed!BV$6,'Carbon Prices'!$D$9:$CP$15,3,FALSE)","v":{"$error":"#N/A"}},{"$f":"HLOOKUP(Calc_Proposed!BW$6,'Carbon Prices'!$D$9:$CP$15,3,FALSE)","v":{"$error":"#N/A"}},{"$f":"HLOOKUP(Calc_Proposed!BX$6,'Carbon Prices'!$D$9:$CP$15,3,FALSE)","v":{"$error":"#N/A"}},{"$f":"HLOOKUP(Calc_Proposed!BY$6,'Carbon Prices'!$D$9:$CP$15,3,FALSE)","v":{"$error":"#N/A"}},{"$f":"HLOOKUP(Calc_Proposed!BZ$6,'Carbon Prices'!$D$9:$CP$15,3,FALSE)","v":{"$error":"#N/A"}},{"$f":"HLOOKUP(Calc_Proposed!CA$6,'Carbon Prices'!$D$9:$CP$15,3,FALSE)","v":{"$error":"#N/A"}},{"$f":"HLOOKUP(Calc_Proposed!CB$6,'Carbon Prices'!$D$9:$CP$15,3,FALSE)","v":{"$error":"#N/A"}},{"$f":"HLOOKUP(Calc_Proposed!CC$6,'Carbon Prices'!$D$9:$CP$15,3,FALSE)","v":{"$error":"#N/A"}},{"$f":"HLOOKUP(Calc_Proposed!CD$6,'Carbon Prices'!$D$9:$CP$15,3,FALSE)","v":{"$error":"#N/A"}},{"$f":"HLOOKUP(Calc_Proposed!CE$6,'Carbon Prices'!$D$9:$CP$15,3,FALSE)","v":{"$error":"#N/A"}},{"$f":"HLOOKUP(Calc_Proposed!CF$6,'Carbon Prices'!$D$9:$CP$15,3,FALSE)","v":{"$error":"#N/A"}},{"$f":"HLOOKUP(Calc_Proposed!CG$6,'Carbon Prices'!$D$9:$CP$15,3,FALSE)","v":{"$error":"#N/A"}},{"$f":"HLOOKUP(Calc_Proposed!CH$6,'Carbon Prices'!$D$9:$CP$15,3,FALSE)","v":{"$error":"#N/A"}},{"$f":"HLOOKUP(Calc_Proposed!CI$6,'Carbon Prices'!$D$9:$CP$15,3,FALSE)","v":{"$error":"#N/A"}},{"$f":"HLOOKUP(Calc_Proposed!CJ$6,'Carbon Prices'!$D$9:$CP$15,3,FALSE)","v":{"$error":"#N/A"}},{"$f":"HLOOKUP(Calc_Proposed!CK$6,'Carbon Prices'!$D$9:$CP$15,3,FALSE)","v":{"$error":"#N/A"}},{"$f":"HLOOKUP(Calc_Proposed!CL$6,'Carbon Prices'!$D$9:$CP$15,3,FALSE)","v":{"$error":"#N/A"}},{"$f":"HLOOKUP(Calc_Proposed!CM$6,'Carbon Prices'!$D$9:$CP$15,3,FALSE)","v":{"$error":"#N/A"}},{"$f":"HLOOKUP(Calc_Proposed!CN$6,'Carbon Prices'!$D$9:$CP$15,3,FALSE)","v":{"$error":"#N/A"}},{"$f":"HLOOKUP(Calc_Proposed!CO$6,'Carbon Prices'!$D$9:$CP$15,3,FALSE)","v":{"$error":"#N/A"}},{"$f":"HLOOKUP(Calc_Proposed!CP$6,'Carbon Prices'!$D$9:$CP$15,3,FALSE)","v":{"$error":"#N/A"}},{"$f":"HLOOKUP(Calc_Proposed!CQ$6,'Carbon Prices'!$D$9:$CP$15,3,FALSE)","v":{"$error":"#N/A"}},{"$f":"HLOOKUP(Calc_Proposed!CR$6,'Carbon Prices'!$D$9:$CP$15,3,FALSE)","v":{"$error":"#N/A"}},{"$f":"HLOOKUP(Calc_Proposed!CS$6,'Carbon Prices'!$D$9:$CP$15,3,FALSE)","v":{"$error":"#N/A"}},{"$f":"HLOOKUP(Calc_Proposed!CT$6,'Carbon Prices'!$D$9:$CP$15,3,FALSE)","v":{"$error":"#N/A"}},{"$f":"HLOOKUP(Calc_Proposed!CU$6,'Carbon Prices'!$D$9:$CP$15,3,FALSE)","v":{"$error":"#N/A"}},{"$f":"HLOOKUP(Calc_Proposed!CV$6,'Carbon Prices'!$D$9:$CP$15,3,FALSE)","v":{"$error":"#N/A"}},{"$f":"HLOOKUP(Calc_Proposed!CW$6,'Carbon Prices'!$D$9:$CP$15,3,FALSE)","v":{"$error":"#N/A"}},{"$f":"HLOOKUP(Calc_Proposed!CX$6,'Carbon Prices'!$D$9:$CP$15,3,FALSE)","v":{"$error":"#N/A"}},{"$f":"HLOOKUP(Calc_Proposed!CY$6,'Carbon Prices'!$D$9:$CP$15,3,FALSE)","v":{"$error":"#N/A"}}]
[null,"Value non-elec","£000's",{"$f":"IF('Data Input - General'!$F$10=\"Yes\",HLOOKUP(Calc_Proposed!D$6,'Carbon Prices'!$D$9:$CP$15,3,FALSE),HLOOKUP(Calc_Proposed!D$6,'Carbon Prices'!$D$9:$CP$15,6,FALSE))","v":6.8248086829049139},{"$f":"IF('Data Input - General'!$F$10=\"Yes\",HLOOKUP(Calc_Proposed!E$6,'Carbon Prices'!$D$9:$CP$15,3,FALSE),HLOOKUP(Calc_Proposed!E$6,'Carbon Prices'!$D$9:$CP$15,6,FALSE))","v":7.0841514128553005},{"$f":"IF('Data Input - General'!$F$10=\"Yes\",HLOOKUP(Calc_Proposed!F$6,'Carbon Prices'!$D$9:$CP$15,3,FALSE),HLOOKUP(Calc_Proposed!F$6,'Carbon Prices'!$D$9:$CP$15,6,FALSE))","v":14.809366678834097},{"$f":"IF('Data Input - General'!$F$10=\"Yes\",HLOOKUP(Calc_Proposed!G$6,'Carbon Prices'!$D$9:$CP$15,3,FALSE),HLOOKUP(Calc_Proposed!G$6,'Carbon Prices'!$D$9:$CP$15,6,FALSE))","v":22.534581944812892},{"$f":"IF('Data Input - General'!$F$10=\"Yes\",HLOOKUP(Calc_Proposed!H$6,'Carbon Prices'!$D$9:$CP$15,3,FALSE),HLOOKUP(Calc_Proposed!H$6,'Carbon Prices'!$D$9:$CP$15,6,FALSE))","v":30.259797210791689},{"$f":"IF('Data Input - General'!$F$10=\"Yes\",HLOOKUP(Calc_Proposed!I$6,'Carbon Prices'!$D$9:$CP$15,3,FALSE),HLOOKUP(Calc_Proposed!I$6,'Carbon Prices'!$D$9:$CP$15,6,FALSE))","v":37.985012476770486},{"$f":"IF('Data Input - General'!$F$10=\"Yes\",HLOOKUP(Calc_Proposed!J$6,'Carbon Prices'!$D$9:$CP$15,3,FALSE),HLOOKUP(Calc_Proposed!J$6,'Carbon Prices'!$D$9:$CP$15,6,FALSE))","v":45.710227742749282},{"$f":"IF('Data Input - General'!$F$10=\"Yes\",HLOOKUP(Calc_Proposed!K$6,'Carbon Prices'!$D$9:$CP$15,3,FALSE),HLOOKUP(Calc_Proposed!K$6,'Carbon Prices'!$D$9:$CP$15,6,FALSE))","v":53.435443008728079},{"$f":"IF('Data Input - General'!$F$10=\"Yes\",HLOOKUP(Calc_Proposed!L$6,'Carbon Prices'!$D$9:$CP$15,3,FALSE),HLOOKUP(Calc_Proposed!L$6,'Carbon Prices'!$D$9:$CP$15,6,FALSE))","v":61.160658274706876},{"$f":"IF('Data Input - General'!$F$10=\"Yes\",HLOOKUP(Calc_Proposed!M$6,'Carbon Prices'!$D$9:$CP$15,3,FALSE),HLOOKUP(Calc_Proposed!M$6,'Carbon Prices'!$D$9:$CP$15,6,FALSE))","v":68.885873540685665},{"$f":"IF('Data Input - General'!$F$10=\"Yes\",HLOOKUP(Calc_Proposed!N$6,'Carbon Prices'!$D$9:$CP$15,3,FALSE),HLOOKUP(Calc_Proposed!N$6,'Carbon Prices'!$D$9:$CP$15,6,FALSE))","v":76.611088806664469},{"$f":"IF('Data Input - General'!$F$10=\"Yes\",HLOOKUP(Calc_Proposed!O$6,'Carbon Prices'!$D$9:$CP$15,3,FALSE),HLOOKUP(Calc_Proposed!O$6,'Carbon Prices'!$D$9:$CP$15,6,FALSE))","v":84.336304072643259},{"$f":"IF('Data Input - General'!$F$10=\"Yes\",HLOOKUP(Calc_Proposed!P$6,'Carbon Prices'!$D$9:$CP$15,3,FALSE),HLOOKUP(Calc_Proposed!P$6,'Carbon Prices'!$D$9:$CP$15,6,FALSE))","v":92.167532307960172},{"$f":"IF('Data Input - General'!$F$10=\"Yes\",HLOOKUP(Calc_Proposed!Q$6,'Carbon Prices'!$D$9:$CP$15,3,FALSE),HLOOKUP(Calc_Proposed!Q$6,'Carbon Prices'!$D$9:$CP$15,6,FALSE))","v":99.998760543277044},{"$f":"IF('Data Input - General'!$F$10=\"Yes\",HLOOKUP(Calc_Proposed!R$6,'Carbon Prices'!$D$9:$CP$15,3,FALSE),HLOOKUP(Calc_Proposed!R$6,'Carbon Prices'!$D$9:$CP$15,6,FALSE))","v":107.82998877859391},{"$f":"IF('Data Input - General'!$F$10=\"Yes\",HLOOKUP(Calc_Proposed!S$6,'Carbon Prices'!$D$9:$CP$15,3,FALSE),HLOOKUP(Calc_Proposed!S$6,'Carbon Prices'!$D$9:$CP$15,6,FALSE))","v":115.6612170139108},{"$f":"IF('Data Input - General'!$F$10=\"Yes\",HLOOKUP(Calc_Proposed!T$6,'Carbon Prices'!$D$9:$CP$15,3,FALSE),HLOOKUP(Calc_Proposed!T$6,'Carbon Prices'!$D$9:$CP$15,6,FALSE))","v":123.49244524922767},{"$f":"IF('Data Input - General'!$F$10=\"Yes\",HLOOKUP(Calc_Proposed!U$6,'Carbon Prices'!$D$9:$CP$15,3,FALSE),HLOOKUP(Calc_Proposed!U$6,'Carbon Prices'!$D$9:$CP$15,6,FALSE))","v":131.32367348454454},{"$f":"IF('Data Input - General'!$F$10=\"Yes\",HLOOKUP(Calc_Proposed!V$6,'Carbon Prices'!$D$9:$CP$15,3,FALSE),HLOOKUP(Calc_Proposed!V$6,'Carbon Prices'!$D$9:$CP$15,6,FALSE))","v":139.15490171986141},{"$f":"IF('Data Input - General'!$F$10=\"Yes\",HLOOKUP(Calc_Proposed!W$6,'Carbon Prices'!$D$9:$CP$15,3,FALSE),HLOOKUP(Calc_Proposed!W$6,'Carbon Prices'!$D$9:$CP$15,6,FALSE))","v":146.98612995517828},{"$f":"IF('Data Input - General'!$F$10=\"Yes\",HLOOKUP(Calc_Proposed!X$6,'Carbon Prices'!$D$9:$CP$15,3,FALSE),HLOOKUP(Calc_Proposed!X$6,'Carbon Prices'!$D$9:$CP$15,6,FALSE))","v":154.81735819049521},{"$f":"IF('Data Input - General'!$F$10=\"Yes\",HLOOKUP(Calc_Proposed!Y$6,'Carbon Prices'!$D$9:$CP$15,3,FALSE),HLOOKUP(Calc_Proposed!Y$6,'Carbon Prices'!$D$9:$CP$15,6,FALSE))","v":162.64858642581208},{"$f":"IF('Data Input - General'!$F$10=\"Yes\",HLOOKUP(Calc_Proposed!Z$6,'Carbon Prices'!$D$9:$CP$15,3,FALSE),HLOOKUP(Calc_Proposed!Z$6,'Carbon Prices'!$D$9:$CP$15,6,FALSE))","v":170.47981466112896},{"$f":"IF('Data Input - General'!$F$10=\"Yes\",HLOOKUP(Calc_Proposed!AA$6,'Carbon Prices'!$D$9:$CP$15,3,FALSE),HLOOKUP(Calc_Proposed!AA$6,'Carbon Prices'!$D$9:$CP$15,6,FALSE))","v":178.31104289644583},{"$f":"IF('Data Input - General'!$F$10=\"Yes\",HLOOKUP(Calc_Proposed!AB$6,'Carbon Prices'!$D$9:$CP$15,3,FALSE),HLOOKUP(Calc_Proposed!AB$6,'Carbon Prices'!$D$9:$CP$15,6,FALSE))","v":186.1422711317627},{"$f":"IF('Data Input - General'!$F$10=\"Yes\",HLOOKUP(Calc_Proposed!AC$6,'Carbon Prices'!$D$9:$CP$15,3,FALSE),HLOOKUP(Calc_Proposed!AC$6,'Carbon Prices'!$D$9:$CP$15,6,FALSE))","v":193.97349936707957},{"$f":"IF('Data Input - General'!$F$10=\"Yes\",HLOOKUP(Calc_Proposed!AD$6,'Carbon Prices'!$D$9:$CP$15,3,FALSE),HLOOKUP(Calc_Proposed!AD$6,'Carbon Prices'!$D$9:$CP$15,6,FALSE))","v":201.80472760239644},{"$f":"IF('Data Input - General'!$F$10=\"Yes\",HLOOKUP(Calc_Proposed!AE$6,'Carbon Prices'!$D$9:$CP$15,3,FALSE),HLOOKUP(Calc_Proposed!AE$6,'Carbon Prices'!$D$9:$CP$15,6,FALSE))","v":209.63595583771331},{"$f":"IF('Data Input - General'!$F$10=\"Yes\",HLOOKUP(Calc_Proposed!AF$6,'Carbon Prices'!$D$9:$CP$15,3,FALSE),HLOOKUP(Calc_Proposed!AF$6,'Carbon Prices'!$D$9:$CP$15,6,FALSE))","v":217.46718407303021},{"$f":"IF('Data Input - General'!$F$10=\"Yes\",HLOOKUP(Calc_Proposed!AG$6,'Carbon Prices'!$D$9:$CP$15,3,FALSE),HLOOKUP(Calc_Proposed!AG$6,'Carbon Prices'!$D$9:$CP$15,6,FALSE))","v":225.29841230834708},{"$f":"IF('Data Input - General'!$F$10=\"Yes\",HLOOKUP(Calc_Proposed!AH$6,'Carbon Prices'!$D$9:$CP$15,3,FALSE),HLOOKUP(Calc_Proposed!AH$6,'Carbon Prices'!$D$9:$CP$15,6,FALSE))","v":233.12964054366395},{"$f":"IF('Data Input - General'!$F$10=\"Yes\",HLOOKUP(Calc_Proposed!AI$6,'Carbon Prices'!$D$9:$CP$15,3,FALSE),HLOOKUP(Calc_Proposed!AI$6,'Carbon Prices'!$D$9:$CP$15,6,FALSE))","v":{"$error":"#N/A"}},{"$f":"IF('Data Input - General'!$F$10=\"Yes\",HLOOKUP(Calc_Proposed!AJ$6,'Carbon Prices'!$D$9:$CP$15,3,FALSE),HLOOKUP(Calc_Proposed!AJ$6,'Carbon Prices'!$D$9:$CP$15,6,FALSE))","v":{"$error":"#N/A"}},{"$f":"IF('Data Input - General'!$F$10=\"Yes\",HLOOKUP(Calc_Proposed!AK$6,'Carbon Prices'!$D$9:$CP$15,3,FALSE),HLOOKUP(Calc_Proposed!AK$6,'Carbon Prices'!$D$9:$CP$15,6,FALSE))","v":{"$error":"#N/A"}},{"$f":"IF('Data Input - General'!$F$10=\"Yes\",HLOOKUP(Calc_Proposed!AL$6,'Carbon Prices'!$D$9:$CP$15,3,FALSE),HLOOKUP(Calc_Proposed!AL$6,'Carbon Prices'!$D$9:$CP$15,6,FALSE))","v":{"$error":"#N/A"}},{"$f":"IF('Data Input - General'!$F$10=\"Yes\",HLOOKUP(Calc_Proposed!AM$6,'Carbon Prices'!$D$9:$CP$15,3,FALSE),HLOOKUP(Calc_Proposed!AM$6,'Carbon Prices'!$D$9:$CP$15,6,FALSE))","v":{"$error":"#N/A"}},{"$f":"IF('Data Input - General'!$F$10=\"Yes\",HLOOKUP(Calc_Proposed!AN$6,'Carbon Prices'!$D$9:$CP$15,3,FALSE),HLOOKUP(Calc_Proposed!AN$6,'Carbon Prices'!$D$9:$CP$15,6,FALSE))","v":{"$error":"#N/A"}},{"$f":"IF('Data Input - General'!$F$10=\"Yes\",HLOOKUP(Calc_Proposed!AO$6,'Carbon Prices'!$D$9:$CP$15,3,FALSE),HLOOKUP(Calc_Proposed!AO$6,'Carbon Prices'!$D$9:$CP$15,6,FALSE))","v":{"$error":"#N/A"}},{"$f":"IF('Data Input - General'!$F$10=\"Yes\",HLOOKUP(Calc_Proposed!AP$6,'Carbon Prices'!$D$9:$CP$15,3,FALSE),HLOOKUP(Calc_Proposed!AP$6,'Carbon Prices'!$D$9:$CP$15,6,FALSE))","v":{"$error":"#N/A"}},{"$f":"IF('Data Input - General'!$F$10=\"Yes\",HLOOKUP(Calc_Proposed!AQ$6,'Carbon Prices'!$D$9:$CP$15,3,FALSE),HLOOKUP(Calc_Proposed!AQ$6,'Carbon Prices'!$D$9:$CP$15,6,FALSE))","v":{"$error":"#N/A"}},{"$f":"IF('Data Input - General'!$F$10=\"Yes\",HLOOKUP(Calc_Proposed!AR$6,'Carbon Prices'!$D$9:$CP$15,3,FALSE),HLOOKUP(Calc_Proposed!AR$6,'Carbon Prices'!$D$9:$CP$15,6,FALSE))","v":{"$error":"#N/A"}},{"$f":"IF('Data Input - General'!$F$10=\"Yes\",HLOOKUP(Calc_Proposed!AS$6,'Carbon Prices'!$D$9:$CP$15,3,FALSE),HLOOKUP(Calc_Proposed!AS$6,'Carbon Prices'!$D$9:$CP$15,6,FALSE))","v":{"$error":"#N/A"}},{"$f":"IF('Data Input - General'!$F$10=\"Yes\",HLOOKUP(Calc_Proposed!AT$6,'Carbon Prices'!$D$9:$CP$15,3,FALSE),HLOOKUP(Calc_Proposed!AT$6,'Carbon Prices'!$D$9:$CP$15,6,FALSE))","v":{"$error":"#N/A"}},{"$f":"IF('Data Input - General'!$F$10=\"Yes\",HLOOKUP(Calc_Proposed!AU$6,'Carbon Prices'!$D$9:$CP$15,3,FALSE),HLOOKUP(Calc_Proposed!AU$6,'Carbon Prices'!$D$9:$CP$15,6,FALSE))","v":{"$error":"#N/A"}},{"$f":"IF('Data Input - General'!$F$10=\"Yes\",HLOOKUP(Calc_Proposed!AV$6,'Carbon Prices'!$D$9:$CP$15,3,FALSE),HLOOKUP(Calc_Proposed!AV$6,'Carbon Prices'!$D$9:$CP$15,6,FALSE))","v":{"$error":"#N/A"}},{"$f":"IF('Data Input - General'!$F$10=\"Yes\",HLOOKUP(Calc_Proposed!AW$6,'Carbon Prices'!$D$9:$CP$15,3,FALSE),HLOOKUP(Calc_Proposed!AW$6,'Carbon Prices'!$D$9:$CP$15,6,FALSE))","v":{"$error":"#N/A"}},{"$f":"IF('Data Input - General'!$F$10=\"Yes\",HLOOKUP(Calc_Proposed!AX$6,'Carbon Prices'!$D$9:$CP$15,3,FALSE),HLOOKUP(Calc_Proposed!AX$6,'Carbon Prices'!$D$9:$CP$15,6,FALSE))","v":{"$error":"#N/A"}},{"$f":"IF('Data Input - General'!$F$10=\"Yes\",HLOOKUP(Calc_Proposed!AY$6,'Carbon Prices'!$D$9:$CP$15,3,FALSE),HLOOKUP(Calc_Proposed!AY$6,'Carbon Prices'!$D$9:$CP$15,6,FALSE))","v":{"$error":"#N/A"}},{"$f":"IF('Data Input - General'!$F$10=\"Yes\",HLOOKUP(Calc_Proposed!AZ$6,'Carbon Prices'!$D$9:$CP$15,3,FALSE),HLOOKUP(Calc_Proposed!AZ$6,'Carbon Prices'!$D$9:$CP$15,6,FALSE))","v":{"$error":"#N/A"}},{"$f":"IF('Data Input - General'!$F$10=\"Yes\",HLOOKUP(Calc_Proposed!BA$6,'Carbon Prices'!$D$9:$CP$15,3,FALSE),HLOOKUP(Calc_Proposed!BA$6,'Carbon Prices'!$D$9:$CP$15,6,FALSE))","v":{"$error":"#N/A"}},{"$f":"IF('Data Input - General'!$F$10=\"Yes\",HLOOKUP(Calc_Proposed!BB$6,'Carbon Prices'!$D$9:$CP$15,3,FALSE),HLOOKUP(Calc_Proposed!BB$6,'Carbon Prices'!$D$9:$CP$15,6,FALSE))","v":{"$error":"#N/A"}},{"$f":"IF('Data Input - General'!$F$10=\"Yes\",HLOOKUP(Calc_Proposed!BC$6,'Carbon Prices'!$D$9:$CP$15,3,FALSE),HLOOKUP(Calc_Proposed!BC$6,'Carbon Prices'!$D$9:$CP$15,6,FALSE))","v":{"$error":"#N/A"}},{"$f":"IF('Data Input - General'!$F$10=\"Yes\",HLOOKUP(Calc_Proposed!BD$6,'Carbon Prices'!$D$9:$CP$15,3,FALSE),HLOOKUP(Calc_Proposed!BD$6,'Carbon Prices'!$D$9:$CP$15,6,FALSE))","v":{"$error":"#N/A"}},{"$f":"IF('Data Input - General'!$F$10=\"Yes\",HLOOKUP(Calc_Proposed!BE$6,'Carbon Prices'!$D$9:$CP$15,3,FALSE),HLOOKUP(Calc_Proposed!BE$6,'Carbon Prices'!$D$9:$CP$15,6,FALSE))","v":{"$error":"#N/A"}},{"$f":"IF('Data Input - General'!$F$10=\"Yes\",HLOOKUP(Calc_Proposed!BF$6,'Carbon Prices'!$D$9:$CP$15,3,FALSE),HLOOKUP(Calc_Proposed!BF$6,'Carbon Prices'!$D$9:$CP$15,6,FALSE))","v":{"$error":"#N/A"}},{"$f":"IF('Data Input - General'!$F$10=\"Yes\",HLOOKUP(Calc_Proposed!BG$6,'Carbon Prices'!$D$9:$CP$15,3,FALSE),HLOOKUP(Calc_Proposed!BG$6,'Carbon Prices'!$D$9:$CP$15,6,FALSE))","v":{"$error":"#N/A"}},{"$f":"IF('Data Input - General'!$F$10=\"Yes\",HLOOKUP(Calc_Proposed!BH$6,'Carbon Prices'!$D$9:$CP$15,3,FALSE),HLOOKUP(Calc_Proposed!BH$6,'Carbon Prices'!$D$9:$CP$15,6,FALSE))","v":{"$error":"#N/A"}},{"$f":"IF('Data Input - General'!$F$10=\"Yes\",HLOOKUP(Calc_Proposed!BI$6,'Carbon Prices'!$D$9:$CP$15,3,FALSE),HLOOKUP(Calc_Proposed!BI$6,'Carbon Prices'!$D$9:$CP$15,6,FALSE))","v":{"$error":"#N/A"}},{"$f":"IF('Data Input - General'!$F$10=\"Yes\",HLOOKUP(Calc_Proposed!BJ$6,'Carbon Prices'!$D$9:$CP$15,3,FALSE),HLOOKUP(Calc_Proposed!BJ$6,'Carbon Prices'!$D$9:$CP$15,6,FALSE))","v":{"$error":"#N/A"}},{"$f":"IF('Data Input - General'!$F$10=\"Yes\",HLOOKUP(Calc_Proposed!BK$6,'Carbon Prices'!$D$9:$CP$15,3,FALSE),HLOOKUP(Calc_Proposed!BK$6,'Carbon Prices'!$D$9:$CP$15,6,FALSE))","v":{"$error":"#N/A"}},{"$f":"IF('Data Input - General'!$F$10=\"Yes\",HLOOKUP(Calc_Proposed!BL$6,'Carbon Prices'!$D$9:$CP$15,3,FALSE),HLOOKUP(Calc_Proposed!BL$6,'Carbon Prices'!$D$9:$CP$15,6,FALSE))","v":{"$error":"#N/A"}},{"$f":"IF('Data Input - General'!$F$10=\"Yes\",HLOOKUP(Calc_Proposed!BM$6,'Carbon Prices'!$D$9:$CP$15,3,FALSE),HLOOKUP(Calc_Proposed!BM$6,'Carbon Prices'!$D$9:$CP$15,6,FALSE))","v":{"$error":"#N/A"}},{"$f":"IF('Data Input - General'!$F$10=\"Yes\",HLOOKUP(Calc_Proposed!BN$6,'Carbon Prices'!$D$9:$CP$15,3,FALSE),HLOOKUP(Calc_Proposed!BN$6,'Carbon Prices'!$D$9:$CP$15,6,FALSE))","v":{"$error":"#N/A"}},{"$f":"IF('Data Input - General'!$F$10=\"Yes\",HLOOKUP(Calc_Proposed!BO$6,'Carbon Prices'!$D$9:$CP$15,3,FALSE),HLOOKUP(Calc_Proposed!BO$6,'Carbon Prices'!$D$9:$CP$15,6,FALSE))","v":{"$error":"#N/A"}},{"$f":"IF('Data Input - General'!$F$10=\"Yes\",HLOOKUP(Calc_Proposed!BP$6,'Carbon Prices'!$D$9:$CP$15,3,FALSE),HLOOKUP(Calc_Proposed!BP$6,'Carbon Prices'!$D$9:$CP$15,6,FALSE))","v":{"$error":"#N/A"}},{"$f":"IF('Data Input - General'!$F$10=\"Yes\",HLOOKUP(Calc_Proposed!BQ$6,'Carbon Prices'!$D$9:$CP$15,3,FALSE),HLOOKUP(Calc_Proposed!BQ$6,'Carbon Prices'!$D$9:$CP$15,6,FALSE))","v":{"$error":"#N/A"}},{"$f":"IF('Data Input - General'!$F$10=\"Yes\",HLOOKUP(Calc_Proposed!BR$6,'Carbon Prices'!$D$9:$CP$15,3,FALSE),HLOOKUP(Calc_Proposed!BR$6,'Carbon Prices'!$D$9:$CP$15,6,FALSE))","v":{"$error":"#N/A"}},{"$f":"IF('Data Input - General'!$F$10=\"Yes\",HLOOKUP(Calc_Proposed!BS$6,'Carbon Prices'!$D$9:$CP$15,3,FALSE),HLOOKUP(Calc_Proposed!BS$6,'Carbon Prices'!$D$9:$CP$15,6,FALSE))","v":{"$error":"#N/A"}},{"$f":"IF('Data Input - General'!$F$10=\"Yes\",HLOOKUP(Calc_Proposed!BT$6,'Carbon Prices'!$D$9:$CP$15,3,FALSE),HLOOKUP(Calc_Proposed!BT$6,'Carbon Prices'!$D$9:$CP$15,6,FALSE))","v":{"$error":"#N/A"}},{"$f":"IF('Data Input - General'!$F$10=\"Yes\",HLOOKUP(Calc_Proposed!BU$6,'Carbon Prices'!$D$9:$CP$15,3,FALSE),HLOOKUP(Calc_Proposed!BU$6,'Carbon Prices'!$D$9:$CP$15,6,FALSE))","v":{"$error":"#N/A"}},{"$f":"IF('Data Input - General'!$F$10=\"Yes\",HLOOKUP(Calc_Proposed!BV$6,'Carbon Prices'!$D$9:$CP$15,3,FALSE),HLOOKUP(Calc_Proposed!BV$6,'Carbon Prices'!$D$9:$CP$15,6,FALSE))","v":{"$error":"#N/A"}},{"$f":"IF('Data Input - General'!$F$10=\"Yes\",HLOOKUP(Calc_Proposed!BW$6,'Carbon Prices'!$D$9:$CP$15,3,FALSE),HLOOKUP(Calc_Proposed!BW$6,'Carbon Prices'!$D$9:$CP$15,6,FALSE))","v":{"$error":"#N/A"}},{"$f":"IF('Data Input - General'!$F$10=\"Yes\",HLOOKUP(Calc_Proposed!BX$6,'Carbon Prices'!$D$9:$CP$15,3,FALSE),HLOOKUP(Calc_Proposed!BX$6,'Carbon Prices'!$D$9:$CP$15,6,FALSE))","v":{"$error":"#N/A"}},{"$f":"IF('Data Input - General'!$F$10=\"Yes\",HLOOKUP(Calc_Proposed!BY$6,'Carbon Prices'!$D$9:$CP$15,3,FALSE),HLOOKUP(Calc_Proposed!BY$6,'Carbon Prices'!$D$9:$CP$15,6,FALSE))","v":{"$error":"#N/A"}},{"$f":"IF('Data Input - General'!$F$10=\"Yes\",HLOOKUP(Calc_Proposed!BZ$6,'Carbon Prices'!$D$9:$CP$15,3,FALSE),HLOOKUP(Calc_Proposed!BZ$6,'Carbon Prices'!$D$9:$CP$15,6,FALSE))","v":{"$error":"#N/A"}},{"$f":"IF('Data Input - General'!$F$10=\"Yes\",HLOOKUP(Calc_Proposed!CA$6,'Carbon Prices'!$D$9:$CP$15,3,FALSE),HLOOKUP(Calc_Proposed!CA$6,'Carbon Prices'!$D$9:$CP$15,6,FALSE))","v":{"$error":"#N/A"}},{"$f":"IF('Data Input - General'!$F$10=\"Yes\",HLOOKUP(Calc_Proposed!CB$6,'Carbon Prices'!$D$9:$CP$15,3,FALSE),HLOOKUP(Calc_Proposed!CB$6,'Carbon Prices'!$D$9:$CP$15,6,FALSE))","v":{"$error":"#N/A"}},{"$f":"IF('Data Input - General'!$F$10=\"Yes\",HLOOKUP(Calc_Proposed!CC$6,'Carbon Prices'!$D$9:$CP$15,3,FALSE),HLOOKUP(Calc_Proposed!CC$6,'Carbon Prices'!$D$9:$CP$15,6,FALSE))","v":{"$error":"#N/A"}},{"$f":"IF('Data Input - General'!$F$10=\"Yes\",HLOOKUP(Calc_Proposed!CD$6,'Carbon Prices'!$D$9:$CP$15,3,FALSE),HLOOKUP(Calc_Proposed!CD$6,'Carbon Prices'!$D$9:$CP$15,6,FALSE))","v":{"$error":"#N/A"}},{"$f":"IF('Data Input - General'!$F$10=\"Yes\",HLOOKUP(Calc_Proposed!CE$6,'Carbon Prices'!$D$9:$CP$15,3,FALSE),HLOOKUP(Calc_Proposed!CE$6,'Carbon Prices'!$D$9:$CP$15,6,FALSE))","v":{"$error":"#N/A"}},{"$f":"IF('Data Input - General'!$F$10=\"Yes\",HLOOKUP(Calc_Proposed!CF$6,'Carbon Prices'!$D$9:$CP$15,3,FALSE),HLOOKUP(Calc_Proposed!CF$6,'Carbon Prices'!$D$9:$CP$15,6,FALSE))","v":{"$error":"#N/A"}},{"$f":"IF('Data Input - General'!$F$10=\"Yes\",HLOOKUP(Calc_Proposed!CG$6,'Carbon Prices'!$D$9:$CP$15,3,FALSE),HLOOKUP(Calc_Proposed!CG$6,'Carbon Prices'!$D$9:$CP$15,6,FALSE))","v":{"$error":"#N/A"}},{"$f":"IF('Data Input - General'!$F$10=\"Yes\",HLOOKUP(Calc_Proposed!CH$6,'Carbon Prices'!$D$9:$CP$15,3,FALSE),HLOOKUP(Calc_Proposed!CH$6,'Carbon Prices'!$D$9:$CP$15,6,FALSE))","v":{"$error":"#N/A"}},{"$f":"IF('Data Input - General'!$F$10=\"Yes\",HLOOKUP(Calc_Proposed!CI$6,'Carbon Prices'!$D$9:$CP$15,3,FALSE),HLOOKUP(Calc_Proposed!CI$6,'Carbon Prices'!$D$9:$CP$15,6,FALSE))","v":{"$error":"#N/A"}},{"$f":"IF('Data Input - General'!$F$10=\"Yes\",HLOOKUP(Calc_Proposed!CJ$6,'Carbon Prices'!$D$9:$CP$15,3,FALSE),HLOOKUP(Calc_Proposed!CJ$6,'Carbon Prices'!$D$9:$CP$15,6,FALSE))","v":{"$error":"#N/A"}},{"$f":"IF('Data Input - General'!$F$10=\"Yes\",HLOOKUP(Calc_Proposed!CK$6,'Carbon Prices'!$D$9:$CP$15,3,FALSE),HLOOKUP(Calc_Proposed!CK$6,'Carbon Prices'!$D$9:$CP$15,6,FALSE))","v":{"$error":"#N/A"}},{"$f":"IF('Data Input - General'!$F$10=\"Yes\",HLOOKUP(Calc_Proposed!CL$6,'Carbon Prices'!$D$9:$CP$15,3,FALSE),HLOOKUP(Calc_Proposed!CL$6,'Carbon Prices'!$D$9:$CP$15,6,FALSE))","v":{"$error":"#N/A"}},{"$f":"IF('Data Input - General'!$F$10=\"Yes\",HLOOKUP(Calc_Proposed!CM$6,'Carbon Prices'!$D$9:$CP$15,3,FALSE),HLOOKUP(Calc_Proposed!CM$6,'Carbon Prices'!$D$9:$CP$15,6,FALSE))","v":{"$error":"#N/A"}},{"$f":"IF('Data Input - General'!$F$10=\"Yes\",HLOOKUP(Calc_Proposed!CN$6,'Carbon Prices'!$D$9:$CP$15,3,FALSE),HLOOKUP(Calc_Proposed!CN$6,'Carbon Prices'!$D$9:$CP$15,6,FALSE))","v":{"$error":"#N/A"}},{"$f":"IF('Data Input - General'!$F$10=\"Yes\",HLOOKUP(Calc_Proposed!CO$6,'Carbon Prices'!$D$9:$CP$15,3,FALSE),HLOOKUP(Calc_Proposed!CO$6,'Carbon Prices'!$D$9:$CP$15,6,FALSE))","v":{"$error":"#N/A"}},{"$f":"IF('Data Input - General'!$F$10=\"Yes\",HLOOKUP(Calc_Proposed!CP$6,'Carbon Prices'!$D$9:$CP$15,3,FALSE),HLOOKUP(Calc_Proposed!CP$6,'Carbon Prices'!$D$9:$CP$15,6,FALSE))","v":{"$error":"#N/A"}},{"$f":"IF('Data Input - General'!$F$10=\"Yes\",HLOOKUP(Calc_Proposed!CQ$6,'Carbon Prices'!$D$9:$CP$15,3,FALSE),HLOOKUP(Calc_Proposed!CQ$6,'Carbon Prices'!$D$9:$CP$15,6,FALSE))","v":{"$error":"#N/A"}},{"$f":"IF('Data Input - General'!$F$10=\"Yes\",HLOOKUP(Calc_Proposed!CR$6,'Carbon Prices'!$D$9:$CP$15,3,FALSE),HLOOKUP(Calc_Proposed!CR$6,'Carbon Prices'!$D$9:$CP$15,6,FALSE))","v":{"$error":"#N/A"}},{"$f":"IF('Data Input - General'!$F$10=\"Yes\",HLOOKUP(Calc_Proposed!CS$6,'Carbon Prices'!$D$9:$CP$15,3,FALSE),HLOOKUP(Calc_Proposed!CS$6,'Carbon Prices'!$D$9:$CP$15,6,FALSE))","v":{"$error":"#N/A"}},{"$f":"IF('Data Input - General'!$F$10=\"Yes\",HLOOKUP(Calc_Proposed!CT$6,'Carbon Prices'!$D$9:$CP$15,3,FALSE),HLOOKUP(Calc_Proposed!CT$6,'Carbon Prices'!$D$9:$CP$15,6,FALSE))","v":{"$error":"#N/A"}},{"$f":"IF('Data Input - General'!$F$10=\"Yes\",HLOOKUP(Calc_Proposed!CU$6,'Carbon Prices'!$D$9:$CP$15,3,FALSE),HLOOKUP(Calc_Proposed!CU$6,'Carbon Prices'!$D$9:$CP$15,6,FALSE))","v":{"$error":"#N/A"}},{"$f":"IF('Data Input - General'!$F$10=\"Yes\",HLOOKUP(Calc_Proposed!CV$6,'Carbon Prices'!$D$9:$CP$15,3,FALSE),HLOOKUP(Calc_Proposed!CV$6,'Carbon Prices'!$D$9:$CP$15,6,FALSE))","v":{"$error":"#N/A"}},{"$f":"IF('Data Input - General'!$F$10=\"Yes\",HLOOKUP(Calc_Proposed!CW$6,'Carbon Prices'!$D$9:$CP$15,3,FALSE),HLOOKUP(Calc_Proposed!CW$6,'Carbon Prices'!$D$9:$CP$15,6,FALSE))","v":{"$error":"#N/A"}},{"$f":"IF('Data Input - General'!$F$10=\"Yes\",HLOOKUP(Calc_Proposed!CX$6,'Carbon Prices'!$D$9:$CP$15,3,FALSE),HLOOKUP(Calc_Proposed!CX$6,'Carbon Prices'!$D$9:$CP$15,6,FALSE))","v":{"$error":"#N/A"}},{"$f":"IF('Data Input - General'!$F$10=\"Yes\",HLOOKUP(Calc_Proposed!CY$6,'Carbon Prices'!$D$9:$CP$15,3,FALSE),HLOOKUP(Calc_Proposed!CY$6,'Carbon Prices'!$D$9:$CP$15,6,FALSE))","v":{"$error":"#N/A"}}]
[null,"Total value elec","£000's",{"$f":"IFERROR(D80*D82,0)","v":7834.2675436350428},{"$f":"IFERROR(E80*E82,0)","v":7245.322260334332},{"$f":"IFERROR(F80*F82,0)","v":13338.874023349481},18692.699682919276,21372.264592201627,28172.822351293562,31773.34242669689,33018.060213905141,0,0,0,0,0,0,0,0,0,0,0,0,0,0,0,0,0,0,0,0,0,0,0,0,0,0,0,0,0,0,0,0,0,0,0,0,0,0,0,0,0,0,0,0,0,0,0,0,0,0,0,0,0,0,0,0,0,0,{"$f":"IFERROR(BR80*BR82,0)","v":0},0,0,0,0,0,0,0,0,0,0,0,0,0,0,0,0,0,0,0,0,0,0,0,0,0,0,0,0,0,0,0,0,0]
[null,"Total value non-elec","£000's",{"$f":"IFERROR(D81*D83,0)","v":276383.09928244672},{"$f":"IFERROR(E81*E83,0)","v":286819.45473443193},599593.97085690463,912368.48697937722,1225143.0031018499,1537917.5192243226,1850692.0353467953,2163466.5514692683,0,0,0,0,0,0,0,0,0,0,0,0,0,0,0,0,0,0,0,0,0,0,0,0,0,0,0,0,0,0,0,0,0,0,0,0,0,0,0,0,0,0,0,0,0,0,0,0,0,0,0,0,0,0,0,0,0,0,0,0,0,0,0,0,0,0,0,0,0,0,0,0,0,0,0,0,0,0,0,0,0,0,0,0,0,0,0,0,0,0,0,0]
[]
[null,"Discounted total GHG","£000's",{"$f":"SUM(D84:D85,D77)*D$7/1000","v":591.33375755680288},{"$f":"SUM(E84:E85,E77)*E$7/1000","v":592.12714065048772},1194.2909710170957,1754.384427308775,2272.9009708381573,2757.8123006531841,3204.7252851139028,3616.4069333888874,0,0,0,0,0,0,0,0,0,0,0,0,0,0,0,0,0,0,0,0,0,0,0,0,0,0,0,0,0,0,0,0,0,0,0,0,0,0,0,0,0,0,0,0,0,0,0,0,0,0,0,0,0,0,0,0,0,{"$f":"SUM(BQ84:BQ85,BQ77)*BQ$7/1000","v":0},0,0,0,0,0,0,0,0,0,0,0,0,0,0,0,0,0,0,0,0,0,0,0,0,0,0,0,0,0,0,0,0,0,0]
[]
[null,"SENSITIVITY ANALYSIS"]
[]
[null,"Low values"]
[]
[null,"Energy Consumption"]
[null,"Electricity","£000's",{"$f":"IFERROR('Data Input - Proposed'!H84*INDEX('Energy Prices'!$F$19:$CR$24,MATCH($B94,'Energy Prices'!$C$19:$C$24,0),MATCH(Calc_Proposed!D$6,'Energy Prices'!$F$11:$CR$11,0))/100000,\"\")","v":381.14765882209355},{"$f":"IFERROR('Data Input - Proposed'!I84*INDEX('Energy Prices'!$F$19:$CR$24,MATCH($B94,'Energy Prices'!$C$19:$C$24,0),MATCH(Calc_Proposed!E$6,'Energy Prices'!$F$11:$CR$11,0))/100000,\"\")","v":419.92655846774767},{"$f":"IFERROR('Data Input - Proposed'!J84*INDEX('Energy Prices'!$F$19:$CR$24,MATCH($B94,'Energy Prices'!$C$19:$C$24,0),MATCH(Calc_Proposed!F$6,'Energy Prices'!$F$11:$CR$11,0))/100000,\"\")","v":423.88884434102221},{"$f":"IFERROR('Data Input - Proposed'!K84*INDEX('Energy Prices'!$F$19:$CR$24,MATCH($B94,'Energy Prices'!$C$19:$C$24,0),MATCH(Calc_Proposed!G$6,'Energy Prices'!$F$11:$CR$11,0))/100000,\"\")","v":455.56962244407958},{"$f":"IFERROR('Data Input - Proposed'!L84*INDEX('Energy Prices'!$F$19:$CR$24,MATCH($B94,'Energy Prices'!$C$19:$C$24,0),MATCH(Calc_Proposed!H$6,'Energy Prices'!$F$11:$CR$11,0))/100000,\"\")","v":454.23873487734414},{"$f":"IFERROR('Data Input - Proposed'!M84*INDEX('Energy Prices'!$F$19:$CR$24,MATCH($B94,'Energy Prices'!$C$19:$C$24,0),MATCH(Calc_Proposed!I$6,'Energy Prices'!$F$11:$CR$11,0))/100000,\"\")","v":489.76258839178865},{"$f":"IFERROR('Data Input - Proposed'!N84*INDEX('Energy Prices'!$F$19:$CR$24,MATCH($B94,'Energy Prices'!$C$19:$C$24,0),MATCH(Calc_Proposed!J$6,'Energy Prices'!$F$11:$CR$11,0))/100000,\"\")","v":515.2556060578778},{"$f":"IFERROR('Data Input - Proposed'!O84*INDEX('Energy Prices'!$F$19:$CR$24,MATCH($B94,'Energy Prices'!$C$19:$C$24,0),MATCH(Calc_Proposed!K$6,'Energy Prices'!$F$11:$CR$11,0))/100000,\"\")","v":509.17496416322342},{"$f":"IFERROR('Data Input - Proposed'!P84*INDEX('Energy Prices'!$F$19:$CR$24,MATCH($B94,'Energy Prices'!$C$19:$C$24,0),MATCH(Calc_Proposed!L$6,'Energy Prices'!$F$11:$CR$11,0))/100000,\"\")","v":0},{"$f":"IFERROR('Data Input - Proposed'!Q84*INDEX('Energy Prices'!$F$19:$CR$24,MATCH($B94,'Energy Prices'!$C$19:$C$24,0),MATCH(Calc_Proposed!M$6,'Energy Prices'!$F$11:$CR$11,0))/100000,\"\")","v":0},{"$f":"IFERROR('Data Input - Proposed'!R84*INDEX('Energy Prices'!$F$19:$CR$24,MATCH($B94,'Energy Prices'!$C$19:$C$24,0),MATCH(Calc_Proposed!N$6,'Energy Prices'!$F$11:$CR$11,0))/100000,\"\")","v":0},{"$f":"IFERROR('Data Input - Proposed'!S84*INDEX('Energy Prices'!$F$19:$CR$24,MATCH($B94,'Energy Prices'!$C$19:$C$24,0),MATCH(Calc_Proposed!O$6,'Energy Prices'!$F$11:$CR$11,0))/100000,\"\")","v":0},{"$f":"IFERROR('Data Input - Proposed'!T84*INDEX('Energy Prices'!$F$19:$CR$24,MATCH($B94,'Energy Prices'!$C$19:$C$24,0),MATCH(Calc_Proposed!P$6,'Energy Prices'!$F$11:$CR$11,0))/100000,\"\")","v":0},{"$f":"IFERROR('Data Input - Proposed'!U84*INDEX('Energy Prices'!$F$19:$CR$24,MATCH($B94,'Energy Prices'!$C$19:$C$24,0),MATCH(Calc_Proposed!Q$6,'Energy Prices'!$F$11:$CR$11,0))/100000,\"\")","v":0},{"$f":"IFERROR('Data Input - Proposed'!V84*INDEX('Energy Prices'!$F$19:$CR$24,MATCH($B94,'Energy Prices'!$C$19:$C$24,0),MATCH(Calc_Proposed!R$6,'Energy Prices'!$F$11:$CR$11,0))/100000,\"\")","v":0},{"$f":"IFERROR('Data Input - Proposed'!W84*INDEX('Energy Prices'!$F$19:$CR$24,MATCH($B94,'Energy Prices'!$C$19:$C$24,0),MATCH(Calc_Proposed!S$6,'Energy Prices'!$F$11:$CR$11,0))/100000,\"\")","v":0},{"$f":"IFERROR('Data Input - Proposed'!X84*INDEX('Energy Prices'!$F$19:$CR$24,MATCH($B94,'Energy Prices'!$C$19:$C$24,0),MATCH(Calc_Proposed!T$6,'Energy Prices'!$F$11:$CR$11,0))/100000,\"\")","v":0},{"$f":"IFERROR('Data Input - Proposed'!Y84*INDEX('Energy Prices'!$F$19:$CR$24,MATCH($B94,'Energy Prices'!$C$19:$C$24,0),MATCH(Calc_Proposed!U$6,'Energy Prices'!$F$11:$CR$11,0))/100000,\"\")","v":0},{"$f":"IFERROR('Data Input - Proposed'!Z84*INDEX('Energy Prices'!$F$19:$CR$24,MATCH($B94,'Energy Prices'!$C$19:$C$24,0),MATCH(Calc_Proposed!V$6,'Energy Prices'!$F$11:$CR$11,0))/100000,\"\")","v":0},{"$f":"IFERROR('Data Input - Proposed'!AA84*INDEX('Energy Prices'!$F$19:$CR$24,MATCH($B94,'Energy Prices'!$C$19:$C$24,0),MATCH(Calc_Proposed!W$6,'Energy Prices'!$F$11:$CR$11,0))/100000,\"\")","v":0},{"$f":"IFERROR('Data Input - Proposed'!AB84*INDEX('Energy Prices'!$F$19:$CR$24,MATCH($B94,'Energy Prices'!$C$19:$C$24,0),MATCH(Calc_Proposed!X$6,'Energy Prices'!$F$11:$CR$11,0))/100000,\"\")","v":0},{"$f":"IFERROR('Data Input - Proposed'!AC84*INDEX('Energy Prices'!$F$19:$CR$24,MATCH($B94,'Energy Prices'!$C$19:$C$24,0),MATCH(Calc_Proposed!Y$6,'Energy Prices'!$F$11:$CR$11,0))/100000,\"\")","v":0},{"$f":"IFERROR('Data Input - Proposed'!AD84*INDEX('Energy Prices'!$F$19:$CR$24,MATCH($B94,'Energy Prices'!$C$19:$C$24,0),MATCH(Calc_Proposed!Z$6,'Energy Prices'!$F$11:$CR$11,0))/100000,\"\")","v":0},{"$f":"IFERROR('Data Input - Proposed'!AE84*INDEX('Energy Prices'!$F$19:$CR$24,MATCH($B94,'Energy Prices'!$C$19:$C$24,0),MATCH(Calc_Proposed!AA$6,'Energy Prices'!$F$11:$CR$11,0))/100000,\"\")","v":0},{"$f":"IFERROR('Data Input - Proposed'!AF84*INDEX('Energy Prices'!$F$19:$CR$24,MATCH($B94,'Energy Prices'!$C$19:$C$24,0),MATCH(Calc_Proposed!AB$6,'Energy Prices'!$F$11:$CR$11,0))/100000,\"\")","v":0},{"$f":"IFERROR('Data Input - Proposed'!AG84*INDEX('Energy Prices'!$F$19:$CR$24,MATCH($B94,'Energy Prices'!$C$19:$C$24,0),MATCH(Calc_Proposed!AC$6,'Energy Prices'!$F$11:$CR$11,0))/100000,\"\")","v":0},{"$f":"IFERROR('Data Input - Proposed'!AH84*INDEX('Energy Prices'!$F$19:$CR$24,MATCH($B94,'Energy Prices'!$C$19:$C$24,0),MATCH(Calc_Proposed!AD$6,'Energy Prices'!$F$11:$CR$11,0))/100000,\"\")","v":0},{"$f":"IFERROR('Data Input - Proposed'!AI84*INDEX('Energy Prices'!$F$19:$CR$24,MATCH($B94,'Energy Prices'!$C$19:$C$24,0),MATCH(Calc_Proposed!AE$6,'Energy Prices'!$F$11:$CR$11,0))/100000,\"\")","v":0},{"$f":"IFERROR('Data Input - Proposed'!AJ84*INDEX('Energy Prices'!$F$19:$CR$24,MATCH($B94,'Energy Prices'!$C$19:$C$24,0),MATCH(Calc_Proposed!AF$6,'Energy Prices'!$F$11:$CR$11,0))/100000,\"\")","v":0},{"$f":"IFERROR('Data Input - Proposed'!AK84*INDEX('Energy Prices'!$F$19:$CR$24,MATCH($B94,'Energy Prices'!$C$19:$C$24,0),MATCH(Calc_Proposed!AG$6,'Energy Prices'!$F$11:$CR$11,0))/100000,\"\")","v":0},{"$f":"IFERROR('Data Input - Proposed'!AL84*INDEX('Energy Prices'!$F$19:$CR$24,MATCH($B94,'Energy Prices'!$C$19:$C$24,0),MATCH(Calc_Proposed!AH$6,'Energy Prices'!$F$11:$CR$11,0))/100000,\"\")","v":0},{"$f":"IFERROR('Data Input - Proposed'!AM84*INDEX('Energy Prices'!$F$19:$CR$24,MATCH($B94,'Energy Prices'!$C$19:$C$24,0),MATCH(Calc_Proposed!AI$6,'Energy Prices'!$F$11:$CR$11,0))/100000,\"\")","v":""},{"$f":"IFERROR('Data Input - Proposed'!AN84*INDEX('Energy Prices'!$F$19:$CR$24,MATCH($B94,'Energy Prices'!$C$19:$C$24,0),MATCH(Calc_Proposed!AJ$6,'Energy Prices'!$F$11:$CR$11,0))/100000,\"\")","v":""},{"$f":"IFERROR('Data Input - Proposed'!AO84*INDEX('Energy Prices'!$F$19:$CR$24,MATCH($B94,'Energy Prices'!$C$19:$C$24,0),MATCH(Calc_Proposed!AK$6,'Energy Prices'!$F$11:$CR$11,0))/100000,\"\")","v":""},{"$f":"IFERROR('Data Input - Proposed'!AP84*INDEX('Energy Prices'!$F$19:$CR$24,MATCH($B94,'Energy Prices'!$C$19:$C$24,0),MATCH(Calc_Proposed!AL$6,'Energy Prices'!$F$11:$CR$11,0))/100000,\"\")","v":""},{"$f":"IFERROR('Data Input - Proposed'!AQ84*INDEX('Energy Prices'!$F$19:$CR$24,MATCH($B94,'Energy Prices'!$C$19:$C$24,0),MATCH(Calc_Proposed!AM$6,'Energy Prices'!$F$11:$CR$11,0))/100000,\"\")","v":""},{"$f":"IFERROR('Data Input - Proposed'!AR84*INDEX('Energy Prices'!$F$19:$CR$24,MATCH($B94,'Energy Prices'!$C$19:$C$24,0),MATCH(Calc_Proposed!AN$6,'Energy Prices'!$F$11:$CR$11,0))/100000,\"\")","v":""},{"$f":"IFERROR('Data Input - Proposed'!AS84*INDEX('Energy Prices'!$F$19:$CR$24,MATCH($B94,'Energy Prices'!$C$19:$C$24,0),MATCH(Calc_Proposed!AO$6,'Energy Prices'!$F$11:$CR$11,0))/100000,\"\")","v":""},{"$f":"IFERROR('Data Input - Proposed'!AT84*INDEX('Energy Prices'!$F$19:$CR$24,MATCH($B94,'Energy Prices'!$C$19:$C$24,0),MATCH(Calc_Proposed!AP$6,'Energy Prices'!$F$11:$CR$11,0))/100000,\"\")","v":""},{"$f":"IFERROR('Data Input - Proposed'!AU84*INDEX('Energy Prices'!$F$19:$CR$24,MATCH($B94,'Energy Prices'!$C$19:$C$24,0),MATCH(Calc_Proposed!AQ$6,'Energy Prices'!$F$11:$CR$11,0))/100000,\"\")","v":""},{"$f":"IFERROR('Data Input - Proposed'!AV84*INDEX('Energy Prices'!$F$19:$CR$24,MATCH($B94,'Energy Prices'!$C$19:$C$24,0),MATCH(Calc_Proposed!AR$6,'Energy Prices'!$F$11:$CR$11,0))/100000,\"\")","v":""},{"$f":"IFERROR('Data Input - Proposed'!AW84*INDEX('Energy Prices'!$F$19:$CR$24,MATCH($B94,'Energy Prices'!$C$19:$C$24,0),MATCH(Calc_Proposed!AS$6,'Energy Prices'!$F$11:$CR$11,0))/100000,\"\")","v":""},{"$f":"IFERROR('Data Input - Proposed'!AX84*INDEX('Energy Prices'!$F$19:$CR$24,MATCH($B94,'Energy Prices'!$C$19:$C$24,0),MATCH(Calc_Proposed!AT$6,'Energy Prices'!$F$11:$CR$11,0))/100000,\"\")","v":""},{"$f":"IFERROR('Data Input - Proposed'!AY84*INDEX('Energy Prices'!$F$19:$CR$24,MATCH($B94,'Energy Prices'!$C$19:$C$24,0),MATCH(Calc_Proposed!AU$6,'Energy Prices'!$F$11:$CR$11,0))/100000,\"\")","v":""},{"$f":"IFERROR('Data Input - Proposed'!AZ84*INDEX('Energy Prices'!$F$19:$CR$24,MATCH($B94,'Energy Prices'!$C$19:$C$24,0),MATCH(Calc_Proposed!AV$6,'Energy Prices'!$F$11:$CR$11,0))/100000,\"\")","v":""},{"$f":"IFERROR('Data Input - Proposed'!BA84*INDEX('Energy Prices'!$F$19:$CR$24,MATCH($B94,'Energy Prices'!$C$19:$C$24,0),MATCH(Calc_Proposed!AW$6,'Energy Prices'!$F$11:$CR$11,0))/100000,\"\")","v":""},{"$f":"IFERROR('Data Input - Proposed'!BB84*INDEX('Energy Prices'!$F$19:$CR$24,MATCH($B94,'Energy Prices'!$C$19:$C$24,0),MATCH(Calc_Proposed!AX$6,'Energy Prices'!$F$11:$CR$11,0))/100000,\"\")","v":""},{"$f":"IFERROR('Data Input - Proposed'!BC84*INDEX('Energy Prices'!$F$19:$CR$24,MATCH($B94,'Energy Prices'!$C$19:$C$24,0),MATCH(Calc_Proposed!AY$6,'Energy Prices'!$F$11:$CR$11,0))/100000,\"\")","v":""},{"$f":"IFERROR('Data Input - Proposed'!BD84*INDEX('Energy Prices'!$F$19:$CR$24,MATCH($B94,'Energy Prices'!$C$19:$C$24,0),MATCH(Calc_Proposed!AZ$6,'Energy Prices'!$F$11:$CR$11,0))/100000,\"\")","v":""},{"$f":"IFERROR('Data Input - Proposed'!BE84*INDEX('Energy Prices'!$F$19:$CR$24,MATCH($B94,'Energy Prices'!$C$19:$C$24,0),MATCH(Calc_Proposed!BA$6,'Energy Prices'!$F$11:$CR$11,0))/100000,\"\")","v":""},{"$f":"IFERROR('Data Input - Proposed'!BF84*INDEX('Energy Prices'!$F$19:$CR$24,MATCH($B94,'Energy Prices'!$C$19:$C$24,0),MATCH(Calc_Proposed!BB$6,'Energy Prices'!$F$11:$CR$11,0))/100000,\"\")","v":""},{"$f":"IFERROR('Data Input - Proposed'!BG84*INDEX('Energy Prices'!$F$19:$CR$24,MATCH($B94,'Energy Prices'!$C$19:$C$24,0),MATCH(Calc_Proposed!BC$6,'Energy Prices'!$F$11:$CR$11,0))/100000,\"\")","v":""},{"$f":"IFERROR('Data Input - Proposed'!BH84*INDEX('Energy Prices'!$F$19:$CR$24,MATCH($B94,'Energy Prices'!$C$19:$C$24,0),MATCH(Calc_Proposed!BD$6,'Energy Prices'!$F$11:$CR$11,0))/100000,\"\")","v":""},{"$f":"IFERROR('Data Input - Proposed'!BI84*INDEX('Energy Prices'!$F$19:$CR$24,MATCH($B94,'Energy Prices'!$C$19:$C$24,0),MATCH(Calc_Proposed!BE$6,'Energy Prices'!$F$11:$CR$11,0))/100000,\"\")","v":""},{"$f":"IFERROR('Data Input - Proposed'!BJ84*INDEX('Energy Prices'!$F$19:$CR$24,MATCH($B94,'Energy Prices'!$C$19:$C$24,0),MATCH(Calc_Proposed!BF$6,'Energy Prices'!$F$11:$CR$11,0))/100000,\"\")","v":""},{"$f":"IFERROR('Data Input - Proposed'!BK84*INDEX('Energy Prices'!$F$19:$CR$24,MATCH($B94,'Energy Prices'!$C$19:$C$24,0),MATCH(Calc_Proposed!BG$6,'Energy Prices'!$F$11:$CR$11,0))/100000,\"\")","v":""},{"$f":"IFERROR('Data Input - Proposed'!BL84*INDEX('Energy Prices'!$F$19:$CR$24,MATCH($B94,'Energy Prices'!$C$19:$C$24,0),MATCH(Calc_Proposed!BH$6,'Energy Prices'!$F$11:$CR$11,0))/100000,\"\")","v":""},{"$f":"IFERROR('Data Input - Proposed'!BM84*INDEX('Energy Prices'!$F$19:$CR$24,MATCH($B94,'Energy Prices'!$C$19:$C$24,0),MATCH(Calc_Proposed!BI$6,'Energy Prices'!$F$11:$CR$11,0))/100000,\"\")","v":""},{"$f":"IFERROR('Data Input - Proposed'!BN84*INDEX('Energy Prices'!$F$19:$CR$24,MATCH($B94,'Energy Prices'!$C$19:$C$24,0),MATCH(Calc_Proposed!BJ$6,'Energy Prices'!$F$11:$CR$11,0))/100000,\"\")","v":""},{"$f":"IFERROR('Data Input - Proposed'!BO84*INDEX('Energy Prices'!$F$19:$CR$24,MATCH($B94,'Energy Prices'!$C$19:$C$24,0),MATCH(Calc_Proposed!BK$6,'Energy Prices'!$F$11:$CR$11,0))/100000,\"\")","v":""},{"$f":"IFERROR('Data Input - Proposed'!BP84*INDEX('Energy Prices'!$F$19:$CR$24,MATCH($B94,'Energy Prices'!$C$19:$C$24,0),MATCH(Calc_Proposed!BL$6,'Energy Prices'!$F$11:$CR$11,0))/100000,\"\")","v":""},{"$f":"IFERROR('Data Input - Proposed'!BQ84*INDEX('Energy Prices'!$F$19:$CR$24,MATCH($B94,'Energy Prices'!$C$19:$C$24,0),MATCH(Calc_Proposed!BM$6,'Energy Prices'!$F$11:$CR$11,0))/100000,\"\")","v":""},{"$f":"IFERROR('Data Input - Proposed'!BR84*INDEX('Energy Prices'!$F$19:$CR$24,MATCH($B94,'Energy Prices'!$C$19:$C$24,0),MATCH(Calc_Proposed!BN$6,'Energy Prices'!$F$11:$CR$11,0))/100000,\"\")","v":""},{"$f":"IFERROR('Data Input - Proposed'!BS84*INDEX('Energy Prices'!$F$19:$CR$24,MATCH($B94,'Energy Prices'!$C$19:$C$24,0),MATCH(Calc_Proposed!BO$6,'Energy Prices'!$F$11:$CR$11,0))/100000,\"\")","v":""},{"$f":"IFERROR('Data Input - Proposed'!BT84*INDEX('Energy Prices'!$F$19:$CR$24,MATCH($B94,'Energy Prices'!$C$19:$C$24,0),MATCH(Calc_Proposed!BP$6,'Energy Prices'!$F$11:$CR$11,0))/100000,\"\")","v":""},{"$f":"IFERROR('Data Input - Proposed'!BU84*INDEX('Energy Prices'!$F$19:$CR$24,MATCH($B94,'Energy Prices'!$C$19:$C$24,0),MATCH(Calc_Proposed!BQ$6,'Energy Prices'!$F$11:$CR$11,0))/100000,\"\")","v":""},{"$f":"IFERROR('Data Input - Proposed'!BV84*INDEX('Energy Prices'!$F$19:$CR$24,MATCH($B94,'Energy Prices'!$C$19:$C$24,0),MATCH(Calc_Proposed!BR$6,'Energy Prices'!$F$11:$CR$11,0))/100000,\"\")","v":""},{"$f":"IFERROR('Data Input - Proposed'!BW84*INDEX('Energy Prices'!$F$19:$CR$24,MATCH($B94,'Energy Prices'!$C$19:$C$24,0),MATCH(Calc_Proposed!BS$6,'Energy Prices'!$F$11:$CR$11,0))/100000,\"\")","v":""},{"$f":"IFERROR('Data Input - Proposed'!BX84*INDEX('Energy Prices'!$F$19:$CR$24,MATCH($B94,'Energy Prices'!$C$19:$C$24,0),MATCH(Calc_Proposed!BT$6,'Energy Prices'!$F$11:$CR$11,0))/100000,\"\")","v":""},{"$f":"IFERROR('Data Input - Proposed'!BY84*INDEX('Energy Prices'!$F$19:$CR$24,MATCH($B94,'Energy Prices'!$C$19:$C$24,0),MATCH(Calc_Proposed!BU$6,'Energy Prices'!$F$11:$CR$11,0))/100000,\"\")","v":""},{"$f":"IFERROR('Data Input - Proposed'!BZ84*INDEX('Energy Prices'!$F$19:$CR$24,MATCH($B94,'Energy Prices'!$C$19:$C$24,0),MATCH(Calc_Proposed!BV$6,'Energy Prices'!$F$11:$CR$11,0))/100000,\"\")","v":""},{"$f":"IFERROR('Data Input - Proposed'!CA84*INDEX('Energy Prices'!$F$19:$CR$24,MATCH($B94,'Energy Prices'!$C$19:$C$24,0),MATCH(Calc_Proposed!BW$6,'Energy Prices'!$F$11:$CR$11,0))/100000,\"\")","v":""},{"$f":"IFERROR('Data Input - Proposed'!CB84*INDEX('Energy Prices'!$F$19:$CR$24,MATCH($B94,'Energy Prices'!$C$19:$C$24,0),MATCH(Calc_Proposed!BX$6,'Energy Prices'!$F$11:$CR$11,0))/100000,\"\")","v":""},{"$f":"IFERROR('Data Input - Proposed'!CC84*INDEX('Energy Prices'!$F$19:$CR$24,MATCH($B94,'Energy Prices'!$C$19:$C$24,0),MATCH(Calc_Proposed!BY$6,'Energy Prices'!$F$11:$CR$11,0))/100000,\"\")","v":""},{"$f":"IFERROR('Data Input - Proposed'!CD84*INDEX('Energy Prices'!$F$19:$CR$24,MATCH($B94,'Energy Prices'!$C$19:$C$24,0),MATCH(Calc_Proposed!BZ$6,'Energy Prices'!$F$11:$CR$11,0))/100000,\"\")","v":""},{"$f":"IFERROR('Data Input - Proposed'!CE84*INDEX('Energy Prices'!$F$19:$CR$24,MATCH($B94,'Energy Prices'!$C$19:$C$24,0),MATCH(Calc_Proposed!CA$6,'Energy Prices'!$F$11:$CR$11,0))/100000,\"\")","v":""},{"$f":"IFERROR('Data Input - Proposed'!CF84*INDEX('Energy Prices'!$F$19:$CR$24,MATCH($B94,'Energy Prices'!$C$19:$C$24,0),MATCH(Calc_Proposed!CB$6,'Energy Prices'!$F$11:$CR$11,0))/100000,\"\")","v":""},{"$f":"IFERROR('Data Input - Proposed'!CG84*INDEX('Energy Prices'!$F$19:$CR$24,MATCH($B94,'Energy Prices'!$C$19:$C$24,0),MATCH(Calc_Proposed!CC$6,'Energy Prices'!$F$11:$CR$11,0))/100000,\"\")","v":""},{"$f":"IFERROR('Data Input - Proposed'!CH84*INDEX('Energy Prices'!$F$19:$CR$24,MATCH($B94,'Energy Prices'!$C$19:$C$24,0),MATCH(Calc_Proposed!CD$6,'Energy Prices'!$F$11:$CR$11,0))/100000,\"\")","v":""},{"$f":"IFERROR('Data Input - Proposed'!CI84*INDEX('Energy Prices'!$F$19:$CR$24,MATCH($B94,'Energy Prices'!$C$19:$C$24,0),MATCH(Calc_Proposed!CE$6,'Energy Prices'!$F$11:$CR$11,0))/100000,\"\")","v":""},{"$f":"IFERROR('Data Input - Proposed'!CJ84*INDEX('Energy Prices'!$F$19:$CR$24,MATCH($B94,'Energy Prices'!$C$19:$C$24,0),MATCH(Calc_Proposed!CF$6,'Energy Prices'!$F$11:$CR$11,0))/100000,\"\")","v":""},{"$f":"IFERROR('Data Input - Proposed'!CK84*INDEX('Energy Prices'!$F$19:$CR$24,MATCH($B94,'Energy Prices'!$C$19:$C$24,0),MATCH(Calc_Proposed!CG$6,'Energy Prices'!$F$11:$CR$11,0))/100000,\"\")","v":""},{"$f":"IFERROR('Data Input - Proposed'!CL84*INDEX('Energy Prices'!$F$19:$CR$24,MATCH($B94,'Energy Prices'!$C$19:$C$24,0),MATCH(Calc_Proposed!CH$6,'Energy Prices'!$F$11:$CR$11,0))/100000,\"\")","v":""},{"$f":"IFERROR('Data Input - Proposed'!CM84*INDEX('Energy Prices'!$F$19:$CR$24,MATCH($B94,'Energy Prices'!$C$19:$C$24,0),MATCH(Calc_Proposed!CI$6,'Energy Prices'!$F$11:$CR$11,0))/100000,\"\")","v":""},{"$f":"IFERROR('Data Input - Proposed'!CN84*INDEX('Energy Prices'!$F$19:$CR$24,MATCH($B94,'Energy Prices'!$C$19:$C$24,0),MATCH(Calc_Proposed!CJ$6,'Energy Prices'!$F$11:$CR$11,0))/100000,\"\")","v":""},{"$f":"IFERROR('Data Input - Proposed'!CO84*INDEX('Energy Prices'!$F$19:$CR$24,MATCH($B94,'Energy Prices'!$C$19:$C$24,0),MATCH(Calc_Proposed!CK$6,'Energy Prices'!$F$11:$CR$11,0))/100000,\"\")","v":""},{"$f":"IFERROR('Data Input - Proposed'!CP84*INDEX('Energy Prices'!$F$19:$CR$24,MATCH($B94,'Energy Prices'!$C$19:$C$24,0),MATCH(Calc_Proposed!CL$6,'Energy Prices'!$F$11:$CR$11,0))/100000,\"\")","v":""},{"$f":"IFERROR('Data Input - Proposed'!CQ84*INDEX('Energy Prices'!$F$19:$CR$24,MATCH($B94,'Energy Prices'!$C$19:$C$24,0),MATCH(Calc_Proposed!CM$6,'Energy Prices'!$F$11:$CR$11,0))/100000,\"\")","v":""},{"$f":"IFERROR('Data Input - Proposed'!CR84*INDEX('Energy Prices'!$F$19:$CR$24,MATCH($B94,'Energy Prices'!$C$19:$C$24,0),MATCH(Calc_Proposed!CN$6,'Energy Prices'!$F$11:$CR$11,0))/100000,\"\")","v":""},{"$f":"IFERROR('Data Input - Proposed'!CS84*INDEX('Energy Prices'!$F$19:$CR$24,MATCH($B94,'Energy Prices'!$C$19:$C$24,0),MATCH(Calc_Proposed!CO$6,'Energy Prices'!$F$11:$CR$11,0))/100000,\"\")","v":""},{"$f":"IFERROR('Data Input - Proposed'!CT84*INDEX('Energy Prices'!$F$19:$CR$24,MATCH($B94,'Energy Prices'!$C$19:$C$24,0),MATCH(Calc_Proposed!CP$6,'Energy Prices'!$F$11:$CR$11,0))/100000,\"\")","v":""},{"$f":"IFERROR('Data Input - Proposed'!CU84*INDEX('Energy Prices'!$F$19:$CR$24,MATCH($B94,'Energy Prices'!$C$19:$C$24,0),MATCH(Calc_Proposed!CQ$6,'Energy Prices'!$F$11:$CR$11,0))/100000,\"\")","v":""},{"$f":"IFERROR('Data Input - Proposed'!CV84*INDEX('Energy Prices'!$F$19:$CR$24,MATCH($B94,'Energy Prices'!$C$19:$C$24,0),MATCH(Calc_Proposed!CR$6,'Energy Prices'!$F$11:$CR$11,0))/100000,\"\")","v":""},{"$f":"IFERROR('Data Input - Proposed'!CW84*INDEX('Energy Prices'!$F$19:$CR$24,MATCH($B94,'Energy Prices'!$C$19:$C$24,0),MATCH(Calc_Proposed!CS$6,'Energy Prices'!$F$11:$CR$11,0))/100000,\"\")","v":""},{"$f":"IFERROR('Data Input - Proposed'!CX84*INDEX('Energy Prices'!$F$19:$CR$24,MATCH($B94,'Energy Prices'!$C$19:$C$24,0),MATCH(Calc_Proposed!CT$6,'Energy Prices'!$F$11:$CR$11,0))/100000,\"\")","v":""},{"$f":"IFERROR('Data Input - Proposed'!CY84*INDEX('Energy Prices'!$F$19:$CR$24,MATCH($B94,'Energy Prices'!$C$19:$C$24,0),MATCH(Calc_Proposed!CU$6,'Energy Prices'!$F$11:$CR$11,0))/100000,\"\")","v":""},{"$f":"IFERROR('Data Input - Proposed'!CZ84*INDEX('Energy Prices'!$F$19:$CR$24,MATCH($B94,'Energy Prices'!$C$19:$C$24,0),MATCH(Calc_Proposed!CV$6,'Energy Prices'!$F$11:$CR$11,0))/100000,\"\")","v":""},{"$f":"IFERROR('Data Input - Proposed'!DA84*INDEX('Energy Prices'!$F$19:$CR$24,MATCH($B94,'Energy Prices'!$C$19:$C$24,0),MATCH(Calc_Proposed!CW$6,'Energy Prices'!$F$11:$CR$11,0))/100000,\"\")","v":""},{"$f":"IFERROR('Data Input - Proposed'!DB84*INDEX('Energy Prices'!$F$19:$CR$24,MATCH($B94,'Energy Prices'!$C$19:$C$24,0),MATCH(Calc_Proposed!CX$6,'Energy Prices'!$F$11:$CR$11,0))/100000,\"\")","v":""},{"$f":"IFERROR('Data Input - Proposed'!DC84*INDEX('Energy Prices'!$F$19:$CR$24,MATCH($B94,'Energy Prices'!$C$19:$C$24,0),MATCH(Calc_Proposed!CY$6,'Energy Prices'!$F$11:$CR$11,0))/100000,\"\")","v":""}]
[null,"Natural Gas","£000's",{"$f":"IFERROR('Data Input - Proposed'!H85*INDEX('Energy Prices'!$F$19:$CR$24,MATCH($B95,'Energy Prices'!$C$19:$C$24,0),MATCH(Calc_Proposed!D$6,'Energy Prices'!$F$11:$CR$11,0))/100000,\"\")","v":0},{"$f":"IFERROR('Data Input - Proposed'!I85*INDEX('Energy Prices'!$F$19:$CR$24,MATCH($B95,'Energy Prices'!$C$19:$C$24,0),MATCH(Calc_Proposed!E$6,'Energy Prices'!$F$11:$CR$11,0))/100000,\"\")","v":0},{"$f":"IFERROR('Data Input - Proposed'!J85*INDEX('Energy Prices'!$F$19:$CR$24,MATCH($B95,'Energy Prices'!$C$19:$C$24,0),MATCH(Calc_Proposed!F$6,'Energy Prices'!$F$11:$CR$11,0))/100000,\"\")","v":0},{"$f":"IFERROR('Data Input - Proposed'!K85*INDEX('Energy Prices'!$F$19:$CR$24,MATCH($B95,'Energy Prices'!$C$19:$C$24,0),MATCH(Calc_Proposed!G$6,'Energy Prices'!$F$11:$CR$11,0))/100000,\"\")","v":0},{"$f":"IFERROR('Data Input - Proposed'!L85*INDEX('Energy Prices'!$F$19:$CR$24,MATCH($B95,'Energy Prices'!$C$19:$C$24,0),MATCH(Calc_Proposed!H$6,'Energy Prices'!$F$11:$CR$11,0))/100000,\"\")","v":0},{"$f":"IFERROR('Data Input - Proposed'!M85*INDEX('Energy Prices'!$F$19:$CR$24,MATCH($B95,'Energy Prices'!$C$19:$C$24,0),MATCH(Calc_Proposed!I$6,'Energy Prices'!$F$11:$CR$11,0))/100000,\"\")","v":0},{"$f":"IFERROR('Data Input - Proposed'!N85*INDEX('Energy Prices'!$F$19:$CR$24,MATCH($B95,'Energy Prices'!$C$19:$C$24,0),MATCH(Calc_Proposed!J$6,'Energy Prices'!$F$11:$CR$11,0))/100000,\"\")","v":0},{"$f":"IFERROR('Data Input - Proposed'!O85*INDEX('Energy Prices'!$F$19:$CR$24,MATCH($B95,'Energy Prices'!$C$19:$C$24,0),MATCH(Calc_Proposed!K$6,'Energy Prices'!$F$11:$CR$11,0))/100000,\"\")","v":0},{"$f":"IFERROR('Data Input - Proposed'!P85*INDEX('Energy Prices'!$F$19:$CR$24,MATCH($B95,'Energy Prices'!$C$19:$C$24,0),MATCH(Calc_Proposed!L$6,'Energy Prices'!$F$11:$CR$11,0))/100000,\"\")","v":0},{"$f":"IFERROR('Data Input - Proposed'!Q85*INDEX('Energy Prices'!$F$19:$CR$24,MATCH($B95,'Energy Prices'!$C$19:$C$24,0),MATCH(Calc_Proposed!M$6,'Energy Prices'!$F$11:$CR$11,0))/100000,\"\")","v":0},{"$f":"IFERROR('Data Input - Proposed'!R85*INDEX('Energy Prices'!$F$19:$CR$24,MATCH($B95,'Energy Prices'!$C$19:$C$24,0),MATCH(Calc_Proposed!N$6,'Energy Prices'!$F$11:$CR$11,0))/100000,\"\")","v":0},{"$f":"IFERROR('Data Input - Proposed'!S85*INDEX('Energy Prices'!$F$19:$CR$24,MATCH($B95,'Energy Prices'!$C$19:$C$24,0),MATCH(Calc_Proposed!O$6,'Energy Prices'!$F$11:$CR$11,0))/100000,\"\")","v":0},{"$f":"IFERROR('Data Input - Proposed'!T85*INDEX('Energy Prices'!$F$19:$CR$24,MATCH($B95,'Energy Prices'!$C$19:$C$24,0),MATCH(Calc_Proposed!P$6,'Energy Prices'!$F$11:$CR$11,0))/100000,\"\")","v":0},{"$f":"IFERROR('Data Input - Proposed'!U85*INDEX('Energy Prices'!$F$19:$CR$24,MATCH($B95,'Energy Prices'!$C$19:$C$24,0),MATCH(Calc_Proposed!Q$6,'Energy Prices'!$F$11:$CR$11,0))/100000,\"\")","v":0},{"$f":"IFERROR('Data Input - Proposed'!V85*INDEX('Energy Prices'!$F$19:$CR$24,MATCH($B95,'Energy Prices'!$C$19:$C$24,0),MATCH(Calc_Proposed!R$6,'Energy Prices'!$F$11:$CR$11,0))/100000,\"\")","v":0},{"$f":"IFERROR('Data Input - Proposed'!W85*INDEX('Energy Prices'!$F$19:$CR$24,MATCH($B95,'Energy Prices'!$C$19:$C$24,0),MATCH(Calc_Proposed!S$6,'Energy Prices'!$F$11:$CR$11,0))/100000,\"\")","v":0},{"$f":"IFERROR('Data Input - Proposed'!X85*INDEX('Energy Prices'!$F$19:$CR$24,MATCH($B95,'Energy Prices'!$C$19:$C$24,0),MATCH(Calc_Proposed!T$6,'Energy Prices'!$F$11:$CR$11,0))/100000,\"\")","v":0},{"$f":"IFERROR('Data Input - Proposed'!Y85*INDEX('Energy Prices'!$F$19:$CR$24,MATCH($B95,'Energy Prices'!$C$19:$C$24,0),MATCH(Calc_Proposed!U$6,'Energy Prices'!$F$11:$CR$11,0))/100000,\"\")","v":0},{"$f":"IFERROR('Data Input - Proposed'!Z85*INDEX('Energy Prices'!$F$19:$CR$24,MATCH($B95,'Energy Prices'!$C$19:$C$24,0),MATCH(Calc_Proposed!V$6,'Energy Prices'!$F$11:$CR$11,0))/100000,\"\")","v":0},{"$f":"IFERROR('Data Input - Proposed'!AA85*INDEX('Energy Prices'!$F$19:$CR$24,MATCH($B95,'Energy Prices'!$C$19:$C$24,0),MATCH(Calc_Proposed!W$6,'Energy Prices'!$F$11:$CR$11,0))/100000,\"\")","v":0},{"$f":"IFERROR('Data Input - Proposed'!AB85*INDEX('Energy Prices'!$F$19:$CR$24,MATCH($B95,'Energy Prices'!$C$19:$C$24,0),MATCH(Calc_Proposed!X$6,'Energy Prices'!$F$11:$CR$11,0))/100000,\"\")","v":0},{"$f":"IFERROR('Data Input - Proposed'!AC85*INDEX('Energy Prices'!$F$19:$CR$24,MATCH($B95,'Energy Prices'!$C$19:$C$24,0),MATCH(Calc_Proposed!Y$6,'Energy Prices'!$F$11:$CR$11,0))/100000,\"\")","v":0},{"$f":"IFERROR('Data Input - Proposed'!AD85*INDEX('Energy Prices'!$F$19:$CR$24,MATCH($B95,'Energy Prices'!$C$19:$C$24,0),MATCH(Calc_Proposed!Z$6,'Energy Prices'!$F$11:$CR$11,0))/100000,\"\")","v":0},{"$f":"IFERROR('Data Input - Proposed'!AE85*INDEX('Energy Prices'!$F$19:$CR$24,MATCH($B95,'Energy Prices'!$C$19:$C$24,0),MATCH(Calc_Proposed!AA$6,'Energy Prices'!$F$11:$CR$11,0))/100000,\"\")","v":0},{"$f":"IFERROR('Data Input - Proposed'!AF85*INDEX('Energy Prices'!$F$19:$CR$24,MATCH($B95,'Energy Prices'!$C$19:$C$24,0),MATCH(Calc_Proposed!AB$6,'Energy Prices'!$F$11:$CR$11,0))/100000,\"\")","v":0},{"$f":"IFERROR('Data Input - Proposed'!AG85*INDEX('Energy Prices'!$F$19:$CR$24,MATCH($B95,'Energy Prices'!$C$19:$C$24,0),MATCH(Calc_Proposed!AC$6,'Energy Prices'!$F$11:$CR$11,0))/100000,\"\")","v":0},{"$f":"IFERROR('Data Input - Proposed'!AH85*INDEX('Energy Prices'!$F$19:$CR$24,MATCH($B95,'Energy Prices'!$C$19:$C$24,0),MATCH(Calc_Proposed!AD$6,'Energy Prices'!$F$11:$CR$11,0))/100000,\"\")","v":0},{"$f":"IFERROR('Data Input - Proposed'!AI85*INDEX('Energy Prices'!$F$19:$CR$24,MATCH($B95,'Energy Prices'!$C$19:$C$24,0),MATCH(Calc_Proposed!AE$6,'Energy Prices'!$F$11:$CR$11,0))/100000,\"\")","v":0},{"$f":"IFERROR('Data Input - Proposed'!AJ85*INDEX('Energy Prices'!$F$19:$CR$24,MATCH($B95,'Energy Prices'!$C$19:$C$24,0),MATCH(Calc_Proposed!AF$6,'Energy Prices'!$F$11:$CR$11,0))/100000,\"\")","v":0},{"$f":"IFERROR('Data Input - Proposed'!AK85*INDEX('Energy Prices'!$F$19:$CR$24,MATCH($B95,'Energy Prices'!$C$19:$C$24,0),MATCH(Calc_Proposed!AG$6,'Energy Prices'!$F$11:$CR$11,0))/100000,\"\")","v":0},{"$f":"IFERROR('Data Input - Proposed'!AL85*INDEX('Energy Prices'!$F$19:$CR$24,MATCH($B95,'Energy Prices'!$C$19:$C$24,0),MATCH(Calc_Proposed!AH$6,'Energy Prices'!$F$11:$CR$11,0))/100000,\"\")","v":0},{"$f":"IFERROR('Data Input - Proposed'!AM85*INDEX('Energy Prices'!$F$19:$CR$24,MATCH($B95,'Energy Prices'!$C$19:$C$24,0),MATCH(Calc_Proposed!AI$6,'Energy Prices'!$F$11:$CR$11,0))/100000,\"\")","v":""},{"$f":"IFERROR('Data Input - Proposed'!AN85*INDEX('Energy Prices'!$F$19:$CR$24,MATCH($B95,'Energy Prices'!$C$19:$C$24,0),MATCH(Calc_Proposed!AJ$6,'Energy Prices'!$F$11:$CR$11,0))/100000,\"\")","v":""},{"$f":"IFERROR('Data Input - Proposed'!AO85*INDEX('Energy Prices'!$F$19:$CR$24,MATCH($B95,'Energy Prices'!$C$19:$C$24,0),MATCH(Calc_Proposed!AK$6,'Energy Prices'!$F$11:$CR$11,0))/100000,\"\")","v":""},{"$f":"IFERROR('Data Input - Proposed'!AP85*INDEX('Energy Prices'!$F$19:$CR$24,MATCH($B95,'Energy Prices'!$C$19:$C$24,0),MATCH(Calc_Proposed!AL$6,'Energy Prices'!$F$11:$CR$11,0))/100000,\"\")","v":""},{"$f":"IFERROR('Data Input - Proposed'!AQ85*INDEX('Energy Prices'!$F$19:$CR$24,MATCH($B95,'Energy Prices'!$C$19:$C$24,0),MATCH(Calc_Proposed!AM$6,'Energy Prices'!$F$11:$CR$11,0))/100000,\"\")","v":""},{"$f":"IFERROR('Data Input - Proposed'!AR85*INDEX('Energy Prices'!$F$19:$CR$24,MATCH($B95,'Energy Prices'!$C$19:$C$24,0),MATCH(Calc_Proposed!AN$6,'Energy Prices'!$F$11:$CR$11,0))/100000,\"\")","v":""},{"$f":"IFERROR('Data Input - Proposed'!AS85*INDEX('Energy Prices'!$F$19:$CR$24,MATCH($B95,'Energy Prices'!$C$19:$C$24,0),MATCH(Calc_Proposed!AO$6,'Energy Prices'!$F$11:$CR$11,0))/100000,\"\")","v":""},{"$f":"IFERROR('Data Input - Proposed'!AT85*INDEX('Energy Prices'!$F$19:$CR$24,MATCH($B95,'Energy Prices'!$C$19:$C$24,0),MATCH(Calc_Proposed!AP$6,'Energy Prices'!$F$11:$CR$11,0))/100000,\"\")","v":""},{"$f":"IFERROR('Data Input - Proposed'!AU85*INDEX('Energy Prices'!$F$19:$CR$24,MATCH($B95,'Energy Prices'!$C$19:$C$24,0),MATCH(Calc_Proposed!AQ$6,'Energy Prices'!$F$11:$CR$11,0))/100000,\"\")","v":""},{"$f":"IFERROR('Data Input - Proposed'!AV85*INDEX('Energy Prices'!$F$19:$CR$24,MATCH($B95,'Energy Prices'!$C$19:$C$24,0),MATCH(Calc_Proposed!AR$6,'Energy Prices'!$F$11:$CR$11,0))/100000,\"\")","v":""},{"$f":"IFERROR('Data Input - Proposed'!AW85*INDEX('Energy Prices'!$F$19:$CR$24,MATCH($B95,'Energy Prices'!$C$19:$C$24,0),MATCH(Calc_Proposed!AS$6,'Energy Prices'!$F$11:$CR$11,0))/100000,\"\")","v":""},{"$f":"IFERROR('Data Input - Proposed'!AX85*INDEX('Energy Prices'!$F$19:$CR$24,MATCH($B95,'Energy Prices'!$C$19:$C$24,0),MATCH(Calc_Proposed!AT$6,'Energy Prices'!$F$11:$CR$11,0))/100000,\"\")","v":""},{"$f":"IFERROR('Data Input - Proposed'!AY85*INDEX('Energy Prices'!$F$19:$CR$24,MATCH($B95,'Energy Prices'!$C$19:$C$24,0),MATCH(Calc_Proposed!AU$6,'Energy Prices'!$F$11:$CR$11,0))/100000,\"\")","v":""},{"$f":"IFERROR('Data Input - Proposed'!AZ85*INDEX('Energy Prices'!$F$19:$CR$24,MATCH($B95,'Energy Prices'!$C$19:$C$24,0),MATCH(Calc_Proposed!AV$6,'Energy Prices'!$F$11:$CR$11,0))/100000,\"\")","v":""},{"$f":"IFERROR('Data Input - Proposed'!BA85*INDEX('Energy Prices'!$F$19:$CR$24,MATCH($B95,'Energy Prices'!$C$19:$C$24,0),MATCH(Calc_Proposed!AW$6,'Energy Prices'!$F$11:$CR$11,0))/100000,\"\")","v":""},{"$f":"IFERROR('Data Input - Proposed'!BB85*INDEX('Energy Prices'!$F$19:$CR$24,MATCH($B95,'Energy Prices'!$C$19:$C$24,0),MATCH(Calc_Proposed!AX$6,'Energy Prices'!$F$11:$CR$11,0))/100000,\"\")","v":""},{"$f":"IFERROR('Data Input - Proposed'!BC85*INDEX('Energy Prices'!$F$19:$CR$24,MATCH($B95,'Energy Prices'!$C$19:$C$24,0),MATCH(Calc_Proposed!AY$6,'Energy Prices'!$F$11:$CR$11,0))/100000,\"\")","v":""},{"$f":"IFERROR('Data Input - Proposed'!BD85*INDEX('Energy Prices'!$F$19:$CR$24,MATCH($B95,'Energy Prices'!$C$19:$C$24,0),MATCH(Calc_Proposed!AZ$6,'Energy Prices'!$F$11:$CR$11,0))/100000,\"\")","v":""},{"$f":"IFERROR('Data Input - Proposed'!BE85*INDEX('Energy Prices'!$F$19:$CR$24,MATCH($B95,'Energy Prices'!$C$19:$C$24,0),MATCH(Calc_Proposed!BA$6,'Energy Prices'!$F$11:$CR$11,0))/100000,\"\")","v":""},{"$f":"IFERROR('Data Input - Proposed'!BF85*INDEX('Energy Prices'!$F$19:$CR$24,MATCH($B95,'Energy Prices'!$C$19:$C$24,0),MATCH(Calc_Proposed!BB$6,'Energy Prices'!$F$11:$CR$11,0))/100000,\"\")","v":""},{"$f":"IFERROR('Data Input - Proposed'!BG85*INDEX('Energy Prices'!$F$19:$CR$24,MATCH($B95,'Energy Prices'!$C$19:$C$24,0),MATCH(Calc_Proposed!BC$6,'Energy Prices'!$F$11:$CR$11,0))/100000,\"\")","v":""},{"$f":"IFERROR('Data Input - Proposed'!BH85*INDEX('Energy Prices'!$F$19:$CR$24,MATCH($B95,'Energy Prices'!$C$19:$C$24,0),MATCH(Calc_Proposed!BD$6,'Energy Prices'!$F$11:$CR$11,0))/100000,\"\")","v":""},{"$f":"IFERROR('Data Input - Proposed'!BI85*INDEX('Energy Prices'!$F$19:$CR$24,MATCH($B95,'Energy Prices'!$C$19:$C$24,0),MATCH(Calc_Proposed!BE$6,'Energy Prices'!$F$11:$CR$11,0))/100000,\"\")","v":""},{"$f":"IFERROR('Data Input - Proposed'!BJ85*INDEX('Energy Prices'!$F$19:$CR$24,MATCH($B95,'Energy Prices'!$C$19:$C$24,0),MATCH(Calc_Proposed!BF$6,'Energy Prices'!$F$11:$CR$11,0))/100000,\"\")","v":""},{"$f":"IFERROR('Data Input - Proposed'!BK85*INDEX('Energy Prices'!$F$19:$CR$24,MATCH($B95,'Energy Prices'!$C$19:$C$24,0),MATCH(Calc_Proposed!BG$6,'Energy Prices'!$F$11:$CR$11,0))/100000,\"\")","v":""},{"$f":"IFERROR('Data Input - Proposed'!BL85*INDEX('Energy Prices'!$F$19:$CR$24,MATCH($B95,'Energy Prices'!$C$19:$C$24,0),MATCH(Calc_Proposed!BH$6,'Energy Prices'!$F$11:$CR$11,0))/100000,\"\")","v":""},{"$f":"IFERROR('Data Input - Proposed'!BM85*INDEX('Energy Prices'!$F$19:$CR$24,MATCH($B95,'Energy Prices'!$C$19:$C$24,0),MATCH(Calc_Proposed!BI$6,'Energy Prices'!$F$11:$CR$11,0))/100000,\"\")","v":""},{"$f":"IFERROR('Data Input - Proposed'!BN85*INDEX('Energy Prices'!$F$19:$CR$24,MATCH($B95,'Energy Prices'!$C$19:$C$24,0),MATCH(Calc_Proposed!BJ$6,'Energy Prices'!$F$11:$CR$11,0))/100000,\"\")","v":""},{"$f":"IFERROR('Data Input - Proposed'!BO85*INDEX('Energy Prices'!$F$19:$CR$24,MATCH($B95,'Energy Prices'!$C$19:$C$24,0),MATCH(Calc_Proposed!BK$6,'Energy Prices'!$F$11:$CR$11,0))/100000,\"\")","v":""},{"$f":"IFERROR('Data Input - Proposed'!BP85*INDEX('Energy Prices'!$F$19:$CR$24,MATCH($B95,'Energy Prices'!$C$19:$C$24,0),MATCH(Calc_Proposed!BL$6,'Energy Prices'!$F$11:$CR$11,0))/100000,\"\")","v":""},{"$f":"IFERROR('Data Input - Proposed'!BQ85*INDEX('Energy Prices'!$F$19:$CR$24,MATCH($B95,'Energy Prices'!$C$19:$C$24,0),MATCH(Calc_Proposed!BM$6,'Energy Prices'!$F$11:$CR$11,0))/100000,\"\")","v":""},{"$f":"IFERROR('Data Input - Proposed'!BR85*INDEX('Energy Prices'!$F$19:$CR$24,MATCH($B95,'Energy Prices'!$C$19:$C$24,0),MATCH(Calc_Proposed!BN$6,'Energy Prices'!$F$11:$CR$11,0))/100000,\"\")","v":""},{"$f":"IFERROR('Data Input - Proposed'!BS85*INDEX('Energy Prices'!$F$19:$CR$24,MATCH($B95,'Energy Prices'!$C$19:$C$24,0),MATCH(Calc_Proposed!BO$6,'Energy Prices'!$F$11:$CR$11,0))/100000,\"\")","v":""},{"$f":"IFERROR('Data Input - Proposed'!BT85*INDEX('Energy Prices'!$F$19:$CR$24,MATCH($B95,'Energy Prices'!$C$19:$C$24,0),MATCH(Calc_Proposed!BP$6,'Energy Prices'!$F$11:$CR$11,0))/100000,\"\")","v":""},{"$f":"IFERROR('Data Input - Proposed'!BU85*INDEX('Energy Prices'!$F$19:$CR$24,MATCH($B95,'Energy Prices'!$C$19:$C$24,0),MATCH(Calc_Proposed!BQ$6,'Energy Prices'!$F$11:$CR$11,0))/100000,\"\")","v":""},{"$f":"IFERROR('Data Input - Proposed'!BV85*INDEX('Energy Prices'!$F$19:$CR$24,MATCH($B95,'Energy Prices'!$C$19:$C$24,0),MATCH(Calc_Proposed!BR$6,'Energy Prices'!$F$11:$CR$11,0))/100000,\"\")","v":""},{"$f":"IFERROR('Data Input - Proposed'!BW85*INDEX('Energy Prices'!$F$19:$CR$24,MATCH($B95,'Energy Prices'!$C$19:$C$24,0),MATCH(Calc_Proposed!BS$6,'Energy Prices'!$F$11:$CR$11,0))/100000,\"\")","v":""},{"$f":"IFERROR('Data Input - Proposed'!BX85*INDEX('Energy Prices'!$F$19:$CR$24,MATCH($B95,'Energy Prices'!$C$19:$C$24,0),MATCH(Calc_Proposed!BT$6,'Energy Prices'!$F$11:$CR$11,0))/100000,\"\")","v":""},{"$f":"IFERROR('Data Input - Proposed'!BY85*INDEX('Energy Prices'!$F$19:$CR$24,MATCH($B95,'Energy Prices'!$C$19:$C$24,0),MATCH(Calc_Proposed!BU$6,'Energy Prices'!$F$11:$CR$11,0))/100000,\"\")","v":""},{"$f":"IFERROR('Data Input - Proposed'!BZ85*INDEX('Energy Prices'!$F$19:$CR$24,MATCH($B95,'Energy Prices'!$C$19:$C$24,0),MATCH(Calc_Proposed!BV$6,'Energy Prices'!$F$11:$CR$11,0))/100000,\"\")","v":""},{"$f":"IFERROR('Data Input - Proposed'!CA85*INDEX('Energy Prices'!$F$19:$CR$24,MATCH($B95,'Energy Prices'!$C$19:$C$24,0),MATCH(Calc_Proposed!BW$6,'Energy Prices'!$F$11:$CR$11,0))/100000,\"\")","v":""},{"$f":"IFERROR('Data Input - Proposed'!CB85*INDEX('Energy Prices'!$F$19:$CR$24,MATCH($B95,'Energy Prices'!$C$19:$C$24,0),MATCH(Calc_Proposed!BX$6,'Energy Prices'!$F$11:$CR$11,0))/100000,\"\")","v":""},{"$f":"IFERROR('Data Input - Proposed'!CC85*INDEX('Energy Prices'!$F$19:$CR$24,MATCH($B95,'Energy Prices'!$C$19:$C$24,0),MATCH(Calc_Proposed!BY$6,'Energy Prices'!$F$11:$CR$11,0))/100000,\"\")","v":""},{"$f":"IFERROR('Data Input - Proposed'!CD85*INDEX('Energy Prices'!$F$19:$CR$24,MATCH($B95,'Energy Prices'!$C$19:$C$24,0),MATCH(Calc_Proposed!BZ$6,'Energy Prices'!$F$11:$CR$11,0))/100000,\"\")","v":""},{"$f":"IFERROR('Data Input - Proposed'!CE85*INDEX('Energy Prices'!$F$19:$CR$24,MATCH($B95,'Energy Prices'!$C$19:$C$24,0),MATCH(Calc_Proposed!CA$6,'Energy Prices'!$F$11:$CR$11,0))/100000,\"\")","v":""},{"$f":"IFERROR('Data Input - Proposed'!CF85*INDEX('Energy Prices'!$F$19:$CR$24,MATCH($B95,'Energy Prices'!$C$19:$C$24,0),MATCH(Calc_Proposed!CB$6,'Energy Prices'!$F$11:$CR$11,0))/100000,\"\")","v":""},{"$f":"IFERROR('Data Input - Proposed'!CG85*INDEX('Energy Prices'!$F$19:$CR$24,MATCH($B95,'Energy Prices'!$C$19:$C$24,0),MATCH(Calc_Proposed!CC$6,'Energy Prices'!$F$11:$CR$11,0))/100000,\"\")","v":""},{"$f":"IFERROR('Data Input - Proposed'!CH85*INDEX('Energy Prices'!$F$19:$CR$24,MATCH($B95,'Energy Prices'!$C$19:$C$24,0),MATCH(Calc_Proposed!CD$6,'Energy Prices'!$F$11:$CR$11,0))/100000,\"\")","v":""},{"$f":"IFERROR('Data Input - Proposed'!CI85*INDEX('Energy Prices'!$F$19:$CR$24,MATCH($B95,'Energy Prices'!$C$19:$C$24,0),MATCH(Calc_Proposed!CE$6,'Energy Prices'!$F$11:$CR$11,0))/100000,\"\")","v":""},{"$f":"IFERROR('Data Input - Proposed'!CJ85*INDEX('Energy Prices'!$F$19:$CR$24,MATCH($B95,'Energy Prices'!$C$19:$C$24,0),MATCH(Calc_Proposed!CF$6,'Energy Prices'!$F$11:$CR$11,0))/100000,\"\")","v":""},{"$f":"IFERROR('Data Input - Proposed'!CK85*INDEX('Energy Prices'!$F$19:$CR$24,MATCH($B95,'Energy Prices'!$C$19:$C$24,0),MATCH(Calc_Proposed!CG$6,'Energy Prices'!$F$11:$CR$11,0))/100000,\"\")","v":""},{"$f":"IFERROR('Data Input - Proposed'!CL85*INDEX('Energy Prices'!$F$19:$CR$24,MATCH($B95,'Energy Prices'!$C$19:$C$24,0),MATCH(Calc_Proposed!CH$6,'Energy Prices'!$F$11:$CR$11,0))/100000,\"\")","v":""},{"$f":"IFERROR('Data Input - Proposed'!CM85*INDEX('Energy Prices'!$F$19:$CR$24,MATCH($B95,'Energy Prices'!$C$19:$C$24,0),MATCH(Calc_Proposed!CI$6,'Energy Prices'!$F$11:$CR$11,0))/100000,\"\")","v":""},{"$f":"IFERROR('Data Input - Proposed'!CN85*INDEX('Energy Prices'!$F$19:$CR$24,MATCH($B95,'Energy Prices'!$C$19:$C$24,0),MATCH(Calc_Proposed!CJ$6,'Energy Prices'!$F$11:$CR$11,0))/100000,\"\")","v":""},{"$f":"IFERROR('Data Input - Proposed'!CO85*INDEX('Energy Prices'!$F$19:$CR$24,MATCH($B95,'Energy Prices'!$C$19:$C$24,0),MATCH(Calc_Proposed!CK$6,'Energy Prices'!$F$11:$CR$11,0))/100000,\"\")","v":""},{"$f":"IFERROR('Data Input - Proposed'!CP85*INDEX('Energy Prices'!$F$19:$CR$24,MATCH($B95,'Energy Prices'!$C$19:$C$24,0),MATCH(Calc_Proposed!CL$6,'Energy Prices'!$F$11:$CR$11,0))/100000,\"\")","v":""},{"$f":"IFERROR('Data Input - Proposed'!CQ85*INDEX('Energy Prices'!$F$19:$CR$24,MATCH($B95,'Energy Prices'!$C$19:$C$24,0),MATCH(Calc_Proposed!CM$6,'Energy Prices'!$F$11:$CR$11,0))/100000,\"\")","v":""},{"$f":"IFERROR('Data Input - Proposed'!CR85*INDEX('Energy Prices'!$F$19:$CR$24,MATCH($B95,'Energy Prices'!$C$19:$C$24,0),MATCH(Calc_Proposed!CN$6,'Energy Prices'!$F$11:$CR$11,0))/100000,\"\")","v":""},{"$f":"IFERROR('Data Input - Proposed'!CS85*INDEX('Energy Prices'!$F$19:$CR$24,MATCH($B95,'Energy Prices'!$C$19:$C$24,0),MATCH(Calc_Proposed!CO$6,'Energy Prices'!$F$11:$CR$11,0))/100000,\"\")","v":""},{"$f":"IFERROR('Data Input - Proposed'!CT85*INDEX('Energy Prices'!$F$19:$CR$24,MATCH($B95,'Energy Prices'!$C$19:$C$24,0),MATCH(Calc_Proposed!CP$6,'Energy Prices'!$F$11:$CR$11,0))/100000,\"\")","v":""},{"$f":"IFERROR('Data Input - Proposed'!CU85*INDEX('Energy Prices'!$F$19:$CR$24,MATCH($B95,'Energy Prices'!$C$19:$C$24,0),MATCH(Calc_Proposed!CQ$6,'Energy Prices'!$F$11:$CR$11,0))/100000,\"\")","v":""},{"$f":"IFERROR('Data Input - Proposed'!CV85*INDEX('Energy Prices'!$F$19:$CR$24,MATCH($B95,'Energy Prices'!$C$19:$C$24,0),MATCH(Calc_Proposed!CR$6,'Energy Prices'!$F$11:$CR$11,0))/100000,\"\")","v":""},{"$f":"IFERROR('Data Input - Proposed'!CW85*INDEX('Energy Prices'!$F$19:$CR$24,MATCH($B95,'Energy Prices'!$C$19:$C$24,0),MATCH(Calc_Proposed!CS$6,'Energy Prices'!$F$11:$CR$11,0))/100000,\"\")","v":""},{"$f":"IFERROR('Data Input - Proposed'!CX85*INDEX('Energy Prices'!$F$19:$CR$24,MATCH($B95,'Energy Prices'!$C$19:$C$24,0),MATCH(Calc_Proposed!CT$6,'Energy Prices'!$F$11:$CR$11,0))/100000,\"\")","v":""},{"$f":"IFERROR('Data Input - Proposed'!CY85*INDEX('Energy Prices'!$F$19:$CR$24,MATCH($B95,'Energy Prices'!$C$19:$C$24,0),MATCH(Calc_Proposed!CU$6,'Energy Prices'!$F$11:$CR$11,0))/100000,\"\")","v":""},{"$f":"IFERROR('Data Input - Proposed'!CZ85*INDEX('Energy Prices'!$F$19:$CR$24,MATCH($B95,'Energy Prices'!$C$19:$C$24,0),MATCH(Calc_Proposed!CV$6,'Energy Prices'!$F$11:$CR$11,0))/100000,\"\")","v":""},{"$f":"IFERROR('Data Input - Proposed'!DA85*INDEX('Energy Prices'!$F$19:$CR$24,MATCH($B95,'Energy Prices'!$C$19:$C$24,0),MATCH(Calc_Proposed!CW$6,'Energy Prices'!$F$11:$CR$11,0))/100000,\"\")","v":""},{"$f":"IFERROR('Data Input - Proposed'!DB85*INDEX('Energy Prices'!$F$19:$CR$24,MATCH($B95,'Energy Prices'!$C$19:$C$24,0),MATCH(Calc_Proposed!CX$6,'Energy Prices'!$F$11:$CR$11,0))/100000,\"\")","v":""},{"$f":"IFERROR('Data Input - Proposed'!DC85*INDEX('Energy Prices'!$F$19:$CR$24,MATCH($B95,'Energy Prices'!$C$19:$C$24,0),MATCH(Calc_Proposed!CY$6,'Energy Prices'!$F$11:$CR$11,0))/100000,\"\")","v":""}]
[null,"Coal","£000's",{"$f":"IFERROR('Data Input - Proposed'!H86*INDEX('Energy Prices'!$F$19:$CR$24,MATCH($B96,'Energy Prices'!$C$19:$C$24,0),MATCH(Calc_Proposed!D$6,'Energy Prices'!$F$11:$CR$11,0))/100000,\"\")","v":759.63719790738185},{"$f":"IFERROR('Data Input - Proposed'!I86*INDEX('Energy Prices'!$F$19:$CR$24,MATCH($B96,'Energy Prices'!$C$19:$C$24,0),MATCH(Calc_Proposed!E$6,'Energy Prices'!$F$11:$CR$11,0))/100000,\"\")","v":795.46900458389712},{"$f":"IFERROR('Data Input - Proposed'!J86*INDEX('Energy Prices'!$F$19:$CR$24,MATCH($B96,'Energy Prices'!$C$19:$C$24,0),MATCH(Calc_Proposed!F$6,'Energy Prices'!$F$11:$CR$11,0))/100000,\"\")","v":831.30491866935665},{"$f":"IFERROR('Data Input - Proposed'!K86*INDEX('Energy Prices'!$F$19:$CR$24,MATCH($B96,'Energy Prices'!$C$19:$C$24,0),MATCH(Calc_Proposed!G$6,'Energy Prices'!$F$11:$CR$11,0))/100000,\"\")","v":867.13715021114353},{"$f":"IFERROR('Data Input - Proposed'!L86*INDEX('Energy Prices'!$F$19:$CR$24,MATCH($B96,'Energy Prices'!$C$19:$C$24,0),MATCH(Calc_Proposed!H$6,'Energy Prices'!$F$11:$CR$11,0))/100000,\"\")","v":902.96956981471021},{"$f":"IFERROR('Data Input - Proposed'!M86*INDEX('Energy Prices'!$F$19:$CR$24,MATCH($B96,'Energy Prices'!$C$19:$C$24,0),MATCH(Calc_Proposed!I$6,'Energy Prices'!$F$11:$CR$11,0))/100000,\"\")","v":938.80217876689312},{"$f":"IFERROR('Data Input - Proposed'!N86*INDEX('Energy Prices'!$F$19:$CR$24,MATCH($B96,'Energy Prices'!$C$19:$C$24,0),MATCH(Calc_Proposed!J$6,'Energy Prices'!$F$11:$CR$11,0))/100000,\"\")","v":974.63497836333215},{"$f":"IFERROR('Data Input - Proposed'!O86*INDEX('Energy Prices'!$F$19:$CR$24,MATCH($B96,'Energy Prices'!$C$19:$C$24,0),MATCH(Calc_Proposed!K$6,'Energy Prices'!$F$11:$CR$11,0))/100000,\"\")","v":1010.4679699085341},{"$f":"IFERROR('Data Input - Proposed'!P86*INDEX('Energy Prices'!$F$19:$CR$24,MATCH($B96,'Energy Prices'!$C$19:$C$24,0),MATCH(Calc_Proposed!L$6,'Energy Prices'!$F$11:$CR$11,0))/100000,\"\")","v":0},{"$f":"IFERROR('Data Input - Proposed'!Q86*INDEX('Energy Prices'!$F$19:$CR$24,MATCH($B96,'Energy Prices'!$C$19:$C$24,0),MATCH(Calc_Proposed!M$6,'Energy Prices'!$F$11:$CR$11,0))/100000,\"\")","v":0},{"$f":"IFERROR('Data Input - Proposed'!R86*INDEX('Energy Prices'!$F$19:$CR$24,MATCH($B96,'Energy Prices'!$C$19:$C$24,0),MATCH(Calc_Proposed!N$6,'Energy Prices'!$F$11:$CR$11,0))/100000,\"\")","v":0},{"$f":"IFERROR('Data Input - Proposed'!S86*INDEX('Energy Prices'!$F$19:$CR$24,MATCH($B96,'Energy Prices'!$C$19:$C$24,0),MATCH(Calc_Proposed!O$6,'Energy Prices'!$F$11:$CR$11,0))/100000,\"\")","v":0},{"$f":"IFERROR('Data Input - Proposed'!T86*INDEX('Energy Prices'!$F$19:$CR$24,MATCH($B96,'Energy Prices'!$C$19:$C$24,0),MATCH(Calc_Proposed!P$6,'Energy Prices'!$F$11:$CR$11,0))/100000,\"\")","v":0},{"$f":"IFERROR('Data Input - Proposed'!U86*INDEX('Energy Prices'!$F$19:$CR$24,MATCH($B96,'Energy Prices'!$C$19:$C$24,0),MATCH(Calc_Proposed!Q$6,'Energy Prices'!$F$11:$CR$11,0))/100000,\"\")","v":0},{"$f":"IFERROR('Data Input - Proposed'!V86*INDEX('Energy Prices'!$F$19:$CR$24,MATCH($B96,'Energy Prices'!$C$19:$C$24,0),MATCH(Calc_Proposed!R$6,'Energy Prices'!$F$11:$CR$11,0))/100000,\"\")","v":0},{"$f":"IFERROR('Data Input - Proposed'!W86*INDEX('Energy Prices'!$F$19:$CR$24,MATCH($B96,'Energy Prices'!$C$19:$C$24,0),MATCH(Calc_Proposed!S$6,'Energy Prices'!$F$11:$CR$11,0))/100000,\"\")","v":0},{"$f":"IFERROR('Data Input - Proposed'!X86*INDEX('Energy Prices'!$F$19:$CR$24,MATCH($B96,'Energy Prices'!$C$19:$C$24,0),MATCH(Calc_Proposed!T$6,'Energy Prices'!$F$11:$CR$11,0))/100000,\"\")","v":0},{"$f":"IFERROR('Data Input - Proposed'!Y86*INDEX('Energy Prices'!$F$19:$CR$24,MATCH($B96,'Energy Prices'!$C$19:$C$24,0),MATCH(Calc_Proposed!U$6,'Energy Prices'!$F$11:$CR$11,0))/100000,\"\")","v":0},{"$f":"IFERROR('Data Input - Proposed'!Z86*INDEX('Energy Prices'!$F$19:$CR$24,MATCH($B96,'Energy Prices'!$C$19:$C$24,0),MATCH(Calc_Proposed!V$6,'Energy Prices'!$F$11:$CR$11,0))/100000,\"\")","v":0},{"$f":"IFERROR('Data Input - Proposed'!AA86*INDEX('Energy Prices'!$F$19:$CR$24,MATCH($B96,'Energy Prices'!$C$19:$C$24,0),MATCH(Calc_Proposed!W$6,'Energy Prices'!$F$11:$CR$11,0))/100000,\"\")","v":0},{"$f":"IFERROR('Data Input - Proposed'!AB86*INDEX('Energy Prices'!$F$19:$CR$24,MATCH($B96,'Energy Prices'!$C$19:$C$24,0),MATCH(Calc_Proposed!X$6,'Energy Prices'!$F$11:$CR$11,0))/100000,\"\")","v":0},{"$f":"IFERROR('Data Input - Proposed'!AC86*INDEX('Energy Prices'!$F$19:$CR$24,MATCH($B96,'Energy Prices'!$C$19:$C$24,0),MATCH(Calc_Proposed!Y$6,'Energy Prices'!$F$11:$CR$11,0))/100000,\"\")","v":0},{"$f":"IFERROR('Data Input - Proposed'!AD86*INDEX('Energy Prices'!$F$19:$CR$24,MATCH($B96,'Energy Prices'!$C$19:$C$24,0),MATCH(Calc_Proposed!Z$6,'Energy Prices'!$F$11:$CR$11,0))/100000,\"\")","v":0},{"$f":"IFERROR('Data Input - Proposed'!AE86*INDEX('Energy Prices'!$F$19:$CR$24,MATCH($B96,'Energy Prices'!$C$19:$C$24,0),MATCH(Calc_Proposed!AA$6,'Energy Prices'!$F$11:$CR$11,0))/100000,\"\")","v":0},{"$f":"IFERROR('Data Input - Proposed'!AF86*INDEX('Energy Prices'!$F$19:$CR$24,MATCH($B96,'Energy Prices'!$C$19:$C$24,0),MATCH(Calc_Proposed!AB$6,'Energy Prices'!$F$11:$CR$11,0))/100000,\"\")","v":0},{"$f":"IFERROR('Data Input - Proposed'!AG86*INDEX('Energy Prices'!$F$19:$CR$24,MATCH($B96,'Energy Prices'!$C$19:$C$24,0),MATCH(Calc_Proposed!AC$6,'Energy Prices'!$F$11:$CR$11,0))/100000,\"\")","v":0},{"$f":"IFERROR('Data Input - Proposed'!AH86*INDEX('Energy Prices'!$F$19:$CR$24,MATCH($B96,'Energy Prices'!$C$19:$C$24,0),MATCH(Calc_Proposed!AD$6,'Energy Prices'!$F$11:$CR$11,0))/100000,\"\")","v":0},{"$f":"IFERROR('Data Input - Proposed'!AI86*INDEX('Energy Prices'!$F$19:$CR$24,MATCH($B96,'Energy Prices'!$C$19:$C$24,0),MATCH(Calc_Proposed!AE$6,'Energy Prices'!$F$11:$CR$11,0))/100000,\"\")","v":0},{"$f":"IFERROR('Data Input - Proposed'!AJ86*INDEX('Energy Prices'!$F$19:$CR$24,MATCH($B96,'Energy Prices'!$C$19:$C$24,0),MATCH(Calc_Proposed!AF$6,'Energy Prices'!$F$11:$CR$11,0))/100000,\"\")","v":0},{"$f":"IFERROR('Data Input - Proposed'!AK86*INDEX('Energy Prices'!$F$19:$CR$24,MATCH($B96,'Energy Prices'!$C$19:$C$24,0),MATCH(Calc_Proposed!AG$6,'Energy Prices'!$F$11:$CR$11,0))/100000,\"\")","v":0},{"$f":"IFERROR('Data Input - Proposed'!AL86*INDEX('Energy Prices'!$F$19:$CR$24,MATCH($B96,'Energy Prices'!$C$19:$C$24,0),MATCH(Calc_Proposed!AH$6,'Energy Prices'!$F$11:$CR$11,0))/100000,\"\")","v":0},{"$f":"IFERROR('Data Input - Proposed'!AM86*INDEX('Energy Prices'!$F$19:$CR$24,MATCH($B96,'Energy Prices'!$C$19:$C$24,0),MATCH(Calc_Proposed!AI$6,'Energy Prices'!$F$11:$CR$11,0))/100000,\"\")","v":""},{"$f":"IFERROR('Data Input - Proposed'!AN86*INDEX('Energy Prices'!$F$19:$CR$24,MATCH($B96,'Energy Prices'!$C$19:$C$24,0),MATCH(Calc_Proposed!AJ$6,'Energy Prices'!$F$11:$CR$11,0))/100000,\"\")","v":""},{"$f":"IFERROR('Data Input - Proposed'!AO86*INDEX('Energy Prices'!$F$19:$CR$24,MATCH($B96,'Energy Prices'!$C$19:$C$24,0),MATCH(Calc_Proposed!AK$6,'Energy Prices'!$F$11:$CR$11,0))/100000,\"\")","v":""},{"$f":"IFERROR('Data Input - Proposed'!AP86*INDEX('Energy Prices'!$F$19:$CR$24,MATCH($B96,'Energy Prices'!$C$19:$C$24,0),MATCH(Calc_Proposed!AL$6,'Energy Prices'!$F$11:$CR$11,0))/100000,\"\")","v":""},{"$f":"IFERROR('Data Input - Proposed'!AQ86*INDEX('Energy Prices'!$F$19:$CR$24,MATCH($B96,'Energy Prices'!$C$19:$C$24,0),MATCH(Calc_Proposed!AM$6,'Energy Prices'!$F$11:$CR$11,0))/100000,\"\")","v":""},{"$f":"IFERROR('Data Input - Proposed'!AR86*INDEX('Energy Prices'!$F$19:$CR$24,MATCH($B96,'Energy Prices'!$C$19:$C$24,0),MATCH(Calc_Proposed!AN$6,'Energy Prices'!$F$11:$CR$11,0))/100000,\"\")","v":""},{"$f":"IFERROR('Data Input - Proposed'!AS86*INDEX('Energy Prices'!$F$19:$CR$24,MATCH($B96,'Energy Prices'!$C$19:$C$24,0),MATCH(Calc_Proposed!AO$6,'Energy Prices'!$F$11:$CR$11,0))/100000,\"\")","v":""},{"$f":"IFERROR('Data Input - Proposed'!AT86*INDEX('Energy Prices'!$F$19:$CR$24,MATCH($B96,'Energy Prices'!$C$19:$C$24,0),MATCH(Calc_Proposed!AP$6,'Energy Prices'!$F$11:$CR$11,0))/100000,\"\")","v":""},{"$f":"IFERROR('Data Input - Proposed'!AU86*INDEX('Energy Prices'!$F$19:$CR$24,MATCH($B96,'Energy Prices'!$C$19:$C$24,0),MATCH(Calc_Proposed!AQ$6,'Energy Prices'!$F$11:$CR$11,0))/100000,\"\")","v":""},{"$f":"IFERROR('Data Input - Proposed'!AV86*INDEX('Energy Prices'!$F$19:$CR$24,MATCH($B96,'Energy Prices'!$C$19:$C$24,0),MATCH(Calc_Proposed!AR$6,'Energy Prices'!$F$11:$CR$11,0))/100000,\"\")","v":""},{"$f":"IFERROR('Data Input - Proposed'!AW86*INDEX('Energy Prices'!$F$19:$CR$24,MATCH($B96,'Energy Prices'!$C$19:$C$24,0),MATCH(Calc_Proposed!AS$6,'Energy Prices'!$F$11:$CR$11,0))/100000,\"\")","v":""},{"$f":"IFERROR('Data Input - Proposed'!AX86*INDEX('Energy Prices'!$F$19:$CR$24,MATCH($B96,'Energy Prices'!$C$19:$C$24,0),MATCH(Calc_Proposed!AT$6,'Energy Prices'!$F$11:$CR$11,0))/100000,\"\")","v":""},{"$f":"IFERROR('Data Input - Proposed'!AY86*INDEX('Energy Prices'!$F$19:$CR$24,MATCH($B96,'Energy Prices'!$C$19:$C$24,0),MATCH(Calc_Proposed!AU$6,'Energy Prices'!$F$11:$CR$11,0))/100000,\"\")","v":""},{"$f":"IFERROR('Data Input - Proposed'!AZ86*INDEX('Energy Prices'!$F$19:$CR$24,MATCH($B96,'Energy Prices'!$C$19:$C$24,0),MATCH(Calc_Proposed!AV$6,'Energy Prices'!$F$11:$CR$11,0))/100000,\"\")","v":""},{"$f":"IFERROR('Data Input - Proposed'!BA86*INDEX('Energy Prices'!$F$19:$CR$24,MATCH($B96,'Energy Prices'!$C$19:$C$24,0),MATCH(Calc_Proposed!AW$6,'Energy Prices'!$F$11:$CR$11,0))/100000,\"\")","v":""},{"$f":"IFERROR('Data Input - Proposed'!BB86*INDEX('Energy Prices'!$F$19:$CR$24,MATCH($B96,'Energy Prices'!$C$19:$C$24,0),MATCH(Calc_Proposed!AX$6,'Energy Prices'!$F$11:$CR$11,0))/100000,\"\")","v":""},{"$f":"IFERROR('Data Input - Proposed'!BC86*INDEX('Energy Prices'!$F$19:$CR$24,MATCH($B96,'Energy Prices'!$C$19:$C$24,0),MATCH(Calc_Proposed!AY$6,'Energy Prices'!$F$11:$CR$11,0))/100000,\"\")","v":""},{"$f":"IFERROR('Data Input - Proposed'!BD86*INDEX('Energy Prices'!$F$19:$CR$24,MATCH($B96,'Energy Prices'!$C$19:$C$24,0),MATCH(Calc_Proposed!AZ$6,'Energy Prices'!$F$11:$CR$11,0))/100000,\"\")","v":""},{"$f":"IFERROR('Data Input - Proposed'!BE86*INDEX('Energy Prices'!$F$19:$CR$24,MATCH($B96,'Energy Prices'!$C$19:$C$24,0),MATCH(Calc_Proposed!BA$6,'Energy Prices'!$F$11:$CR$11,0))/100000,\"\")","v":""},{"$f":"IFERROR('Data Input - Proposed'!BF86*INDEX('Energy Prices'!$F$19:$CR$24,MATCH($B96,'Energy Prices'!$C$19:$C$24,0),MATCH(Calc_Proposed!BB$6,'Energy Prices'!$F$11:$CR$11,0))/100000,\"\")","v":""},{"$f":"IFERROR('Data Input - Proposed'!BG86*INDEX('Energy Prices'!$F$19:$CR$24,MATCH($B96,'Energy Prices'!$C$19:$C$24,0),MATCH(Calc_Proposed!BC$6,'Energy Prices'!$F$11:$CR$11,0))/100000,\"\")","v":""},{"$f":"IFERROR('Data Input - Proposed'!BH86*INDEX('Energy Prices'!$F$19:$CR$24,MATCH($B96,'Energy Prices'!$C$19:$C$24,0),MATCH(Calc_Proposed!BD$6,'Energy Prices'!$F$11:$CR$11,0))/100000,\"\")","v":""},{"$f":"IFERROR('Data Input - Proposed'!BI86*INDEX('Energy Prices'!$F$19:$CR$24,MATCH($B96,'Energy Prices'!$C$19:$C$24,0),MATCH(Calc_Proposed!BE$6,'Energy Prices'!$F$11:$CR$11,0))/100000,\"\")","v":""},{"$f":"IFERROR('Data Input - Proposed'!BJ86*INDEX('Energy Prices'!$F$19:$CR$24,MATCH($B96,'Energy Prices'!$C$19:$C$24,0),MATCH(Calc_Proposed!BF$6,'Energy Prices'!$F$11:$CR$11,0))/100000,\"\")","v":""},{"$f":"IFERROR('Data Input - Proposed'!BK86*INDEX('Energy Prices'!$F$19:$CR$24,MATCH($B96,'Energy Prices'!$C$19:$C$24,0),MATCH(Calc_Proposed!BG$6,'Energy Prices'!$F$11:$CR$11,0))/100000,\"\")","v":""},{"$f":"IFERROR('Data Input - Proposed'!BL86*INDEX('Energy Prices'!$F$19:$CR$24,MATCH($B96,'Energy Prices'!$C$19:$C$24,0),MATCH(Calc_Proposed!BH$6,'Energy Prices'!$F$11:$CR$11,0))/100000,\"\")","v":""},{"$f":"IFERROR('Data Input - Proposed'!BM86*INDEX('Energy Prices'!$F$19:$CR$24,MATCH($B96,'Energy Prices'!$C$19:$C$24,0),MATCH(Calc_Proposed!BI$6,'Energy Prices'!$F$11:$CR$11,0))/100000,\"\")","v":""},{"$f":"IFERROR('Data Input - Proposed'!BN86*INDEX('Energy Prices'!$F$19:$CR$24,MATCH($B96,'Energy Prices'!$C$19:$C$24,0),MATCH(Calc_Proposed!BJ$6,'Energy Prices'!$F$11:$CR$11,0))/100000,\"\")","v":""},{"$f":"IFERROR('Data Input - Proposed'!BO86*INDEX('Energy Prices'!$F$19:$CR$24,MATCH($B96,'Energy Prices'!$C$19:$C$24,0),MATCH(Calc_Proposed!BK$6,'Energy Prices'!$F$11:$CR$11,0))/100000,\"\")","v":""},{"$f":"IFERROR('Data Input - Proposed'!BP86*INDEX('Energy Prices'!$F$19:$CR$24,MATCH($B96,'Energy Prices'!$C$19:$C$24,0),MATCH(Calc_Proposed!BL$6,'Energy Prices'!$F$11:$CR$11,0))/100000,\"\")","v":""},{"$f":"IFERROR('Data Input - Proposed'!BQ86*INDEX('Energy Prices'!$F$19:$CR$24,MATCH($B96,'Energy Prices'!$C$19:$C$24,0),MATCH(Calc_Proposed!BM$6,'Energy Prices'!$F$11:$CR$11,0))/100000,\"\")","v":""},{"$f":"IFERROR('Data Input - Proposed'!BR86*INDEX('Energy Prices'!$F$19:$CR$24,MATCH($B96,'Energy Prices'!$C$19:$C$24,0),MATCH(Calc_Proposed!BN$6,'Energy Prices'!$F$11:$CR$11,0))/100000,\"\")","v":""},{"$f":"IFERROR('Data Input - Proposed'!BS86*INDEX('Energy Prices'!$F$19:$CR$24,MATCH($B96,'Energy Prices'!$C$19:$C$24,0),MATCH(Calc_Proposed!BO$6,'Energy Prices'!$F$11:$CR$11,0))/100000,\"\")","v":""},{"$f":"IFERROR('Data Input - Proposed'!BT86*INDEX('Energy Prices'!$F$19:$CR$24,MATCH($B96,'Energy Prices'!$C$19:$C$24,0),MATCH(Calc_Proposed!BP$6,'Energy Prices'!$F$11:$CR$11,0))/100000,\"\")","v":""},{"$f":"IFERROR('Data Input - Proposed'!BU86*INDEX('Energy Prices'!$F$19:$CR$24,MATCH($B96,'Energy Prices'!$C$19:$C$24,0),MATCH(Calc_Proposed!BQ$6,'Energy Prices'!$F$11:$CR$11,0))/100000,\"\")","v":""},{"$f":"IFERROR('Data Input - Proposed'!BV86*INDEX('Energy Prices'!$F$19:$CR$24,MATCH($B96,'Energy Prices'!$C$19:$C$24,0),MATCH(Calc_Proposed!BR$6,'Energy Prices'!$F$11:$CR$11,0))/100000,\"\")","v":""},{"$f":"IFERROR('Data Input - Proposed'!BW86*INDEX('Energy Prices'!$F$19:$CR$24,MATCH($B96,'Energy Prices'!$C$19:$C$24,0),MATCH(Calc_Proposed!BS$6,'Energy Prices'!$F$11:$CR$11,0))/100000,\"\")","v":""},{"$f":"IFERROR('Data Input - Proposed'!BX86*INDEX('Energy Prices'!$F$19:$CR$24,MATCH($B96,'Energy Prices'!$C$19:$C$24,0),MATCH(Calc_Proposed!BT$6,'Energy Prices'!$F$11:$CR$11,0))/100000,\"\")","v":""},{"$f":"IFERROR('Data Input - Proposed'!BY86*INDEX('Energy Prices'!$F$19:$CR$24,MATCH($B96,'Energy Prices'!$C$19:$C$24,0),MATCH(Calc_Proposed!BU$6,'Energy Prices'!$F$11:$CR$11,0))/100000,\"\")","v":""},{"$f":"IFERROR('Data Input - Proposed'!BZ86*INDEX('Energy Prices'!$F$19:$CR$24,MATCH($B96,'Energy Prices'!$C$19:$C$24,0),MATCH(Calc_Proposed!BV$6,'Energy Prices'!$F$11:$CR$11,0))/100000,\"\")","v":""},{"$f":"IFERROR('Data Input - Proposed'!CA86*INDEX('Energy Prices'!$F$19:$CR$24,MATCH($B96,'Energy Prices'!$C$19:$C$24,0),MATCH(Calc_Proposed!BW$6,'Energy Prices'!$F$11:$CR$11,0))/100000,\"\")","v":""},{"$f":"IFERROR('Data Input - Proposed'!CB86*INDEX('Energy Prices'!$F$19:$CR$24,MATCH($B96,'Energy Prices'!$C$19:$C$24,0),MATCH(Calc_Proposed!BX$6,'Energy Prices'!$F$11:$CR$11,0))/100000,\"\")","v":""},{"$f":"IFERROR('Data Input - Proposed'!CC86*INDEX('Energy Prices'!$F$19:$CR$24,MATCH($B96,'Energy Prices'!$C$19:$C$24,0),MATCH(Calc_Proposed!BY$6,'Energy Prices'!$F$11:$CR$11,0))/100000,\"\")","v":""},{"$f":"IFERROR('Data Input - Proposed'!CD86*INDEX('Energy Prices'!$F$19:$CR$24,MATCH($B96,'Energy Prices'!$C$19:$C$24,0),MATCH(Calc_Proposed!BZ$6,'Energy Prices'!$F$11:$CR$11,0))/100000,\"\")","v":""},{"$f":"IFERROR('Data Input - Proposed'!CE86*INDEX('Energy Prices'!$F$19:$CR$24,MATCH($B96,'Energy Prices'!$C$19:$C$24,0),MATCH(Calc_Proposed!CA$6,'Energy Prices'!$F$11:$CR$11,0))/100000,\"\")","v":""},{"$f":"IFERROR('Data Input - Proposed'!CF86*INDEX('Energy Prices'!$F$19:$CR$24,MATCH($B96,'Energy Prices'!$C$19:$C$24,0),MATCH(Calc_Proposed!CB$6,'Energy Prices'!$F$11:$CR$11,0))/100000,\"\")","v":""},{"$f":"IFERROR('Data Input - Proposed'!CG86*INDEX('Energy Prices'!$F$19:$CR$24,MATCH($B96,'Energy Prices'!$C$19:$C$24,0),MATCH(Calc_Proposed!CC$6,'Energy Prices'!$F$11:$CR$11,0))/100000,\"\")","v":""},{"$f":"IFERROR('Data Input - Proposed'!CH86*INDEX('Energy Prices'!$F$19:$CR$24,MATCH($B96,'Energy Prices'!$C$19:$C$24,0),MATCH(Calc_Proposed!CD$6,'Energy Prices'!$F$11:$CR$11,0))/100000,\"\")","v":""},{"$f":"IFERROR('Data Input - Proposed'!CI86*INDEX('Energy Prices'!$F$19:$CR$24,MATCH($B96,'Energy Prices'!$C$19:$C$24,0),MATCH(Calc_Proposed!CE$6,'Energy Prices'!$F$11:$CR$11,0))/100000,\"\")","v":""},{"$f":"IFERROR('Data Input - Proposed'!CJ86*INDEX('Energy Prices'!$F$19:$CR$24,MATCH($B96,'Energy Prices'!$C$19:$C$24,0),MATCH(Calc_Proposed!CF$6,'Energy Prices'!$F$11:$CR$11,0))/100000,\"\")","v":""},{"$f":"IFERROR('Data Input - Proposed'!CK86*INDEX('Energy Prices'!$F$19:$CR$24,MATCH($B96,'Energy Prices'!$C$19:$C$24,0),MATCH(Calc_Proposed!CG$6,'Energy Prices'!$F$11:$CR$11,0))/100000,\"\")","v":""},{"$f":"IFERROR('Data Input - Proposed'!CL86*INDEX('Energy Prices'!$F$19:$CR$24,MATCH($B96,'Energy Prices'!$C$19:$C$24,0),MATCH(Calc_Proposed!CH$6,'Energy Prices'!$F$11:$CR$11,0))/100000,\"\")","v":""},{"$f":"IFERROR('Data Input - Proposed'!CM86*INDEX('Energy Prices'!$F$19:$CR$24,MATCH($B96,'Energy Prices'!$C$19:$C$24,0),MATCH(Calc_Proposed!CI$6,'Energy Prices'!$F$11:$CR$11,0))/100000,\"\")","v":""},{"$f":"IFERROR('Data Input - Proposed'!CN86*INDEX('Energy Prices'!$F$19:$CR$24,MATCH($B96,'Energy Prices'!$C$19:$C$24,0),MATCH(Calc_Proposed!CJ$6,'Energy Prices'!$F$11:$CR$11,0))/100000,\"\")","v":""},{"$f":"IFERROR('Data Input - Proposed'!CO86*INDEX('Energy Prices'!$F$19:$CR$24,MATCH($B96,'Energy Prices'!$C$19:$C$24,0),MATCH(Calc_Proposed!CK$6,'Energy Prices'!$F$11:$CR$11,0))/100000,\"\")","v":""},{"$f":"IFERROR('Data Input - Proposed'!CP86*INDEX('Energy Prices'!$F$19:$CR$24,MATCH($B96,'Energy Prices'!$C$19:$C$24,0),MATCH(Calc_Proposed!CL$6,'Energy Prices'!$F$11:$CR$11,0))/100000,\"\")","v":""},{"$f":"IFERROR('Data Input - Proposed'!CQ86*INDEX('Energy Prices'!$F$19:$CR$24,MATCH($B96,'Energy Prices'!$C$19:$C$24,0),MATCH(Calc_Proposed!CM$6,'Energy Prices'!$F$11:$CR$11,0))/100000,\"\")","v":""},{"$f":"IFERROR('Data Input - Proposed'!CR86*INDEX('Energy Prices'!$F$19:$CR$24,MATCH($B96,'Energy Prices'!$C$19:$C$24,0),MATCH(Calc_Proposed!CN$6,'Energy Prices'!$F$11:$CR$11,0))/100000,\"\")","v":""},{"$f":"IFERROR('Data Input - Proposed'!CS86*INDEX('Energy Prices'!$F$19:$CR$24,MATCH($B96,'Energy Prices'!$C$19:$C$24,0),MATCH(Calc_Proposed!CO$6,'Energy Prices'!$F$11:$CR$11,0))/100000,\"\")","v":""},{"$f":"IFERROR('Data Input - Proposed'!CT86*INDEX('Energy Prices'!$F$19:$CR$24,MATCH($B96,'Energy Prices'!$C$19:$C$24,0),MATCH(Calc_Proposed!CP$6,'Energy Prices'!$F$11:$CR$11,0))/100000,\"\")","v":""},{"$f":"IFERROR('Data Input - Proposed'!CU86*INDEX('Energy Prices'!$F$19:$CR$24,MATCH($B96,'Energy Prices'!$C$19:$C$24,0),MATCH(Calc_Proposed!CQ$6,'Energy Prices'!$F$11:$CR$11,0))/100000,\"\")","v":""},{"$f":"IFERROR('Data Input - Proposed'!CV86*INDEX('Energy Prices'!$F$19:$CR$24,MATCH($B96,'Energy Prices'!$C$19:$C$24,0),MATCH(Calc_Proposed!CR$6,'Energy Prices'!$F$11:$CR$11,0))/100000,\"\")","v":""},{"$f":"IFERROR('Data Input - Proposed'!CW86*INDEX('Energy Prices'!$F$19:$CR$24,MATCH($B96,'Energy Prices'!$C$19:$C$24,0),MATCH(Calc_Proposed!CS$6,'Energy Prices'!$F$11:$CR$11,0))/100000,\"\")","v":""},{"$f":"IFERROR('Data Input - Proposed'!CX86*INDEX('Energy Prices'!$F$19:$CR$24,MATCH($B96,'Energy Prices'!$C$19:$C$24,0),MATCH(Calc_Proposed!CT$6,'Energy Prices'!$F$11:$CR$11,0))/100000,\"\")","v":""},{"$f":"IFERROR('Data Input - Proposed'!CY86*INDEX('Energy Prices'!$F$19:$CR$24,MATCH($B96,'Energy Prices'!$C$19:$C$24,0),MATCH(Calc_Proposed!CU$6,'Energy Prices'!$F$11:$CR$11,0))/100000,\"\")","v":""},{"$f":"IFERROR('Data Input - Proposed'!CZ86*INDEX('Energy Prices'!$F$19:$CR$24,MATCH($B96,'Energy Prices'!$C$19:$C$24,0),MATCH(Calc_Proposed!CV$6,'Energy Prices'!$F$11:$CR$11,0))/100000,\"\")","v":""},{"$f":"IFERROR('Data Input - Proposed'!DA86*INDEX('Energy Prices'!$F$19:$CR$24,MATCH($B96,'Energy Prices'!$C$19:$C$24,0),MATCH(Calc_Proposed!CW$6,'Energy Prices'!$F$11:$CR$11,0))/100000,\"\")","v":""},{"$f":"IFERROR('Data Input - Proposed'!DB86*INDEX('Energy Prices'!$F$19:$CR$24,MATCH($B96,'Energy Prices'!$C$19:$C$24,0),MATCH(Calc_Proposed!CX$6,'Energy Prices'!$F$11:$CR$11,0))/100000,\"\")","v":""},{"$f":"IFERROR('Data Input - Proposed'!DC86*INDEX('Energy Prices'!$F$19:$CR$24,MATCH($B96,'Energy Prices'!$C$19:$C$24,0),MATCH(Calc_Proposed!CY$6,'Energy Prices'!$F$11:$CR$11,0))/100000,\"\")","v":""}]
[null,"Gas Oil","£000's",{"$f":"IFERROR('Data Input - Proposed'!H87*INDEX('Energy Prices'!$F$19:$CR$24,MATCH($B97,'Energy Prices'!$C$19:$C$24,0),MATCH(Calc_Proposed!D$6,'Energy Prices'!$F$11:$CR$11,0))/100000,\"\")","v":55.666248959960114},{"$f":"IFERROR('Data Input - Proposed'!I87*INDEX('Energy Prices'!$F$19:$CR$24,MATCH($B97,'Energy Prices'!$C$19:$C$24,0),MATCH(Calc_Proposed!E$6,'Energy Prices'!$F$11:$CR$11,0))/100000,\"\")","v":63.064053899665872},{"$f":"IFERROR('Data Input - Proposed'!J87*INDEX('Energy Prices'!$F$19:$CR$24,MATCH($B97,'Energy Prices'!$C$19:$C$24,0),MATCH(Calc_Proposed!F$6,'Energy Prices'!$F$11:$CR$11,0))/100000,\"\")","v":70.481173983169569},{"$f":"IFERROR('Data Input - Proposed'!K87*INDEX('Energy Prices'!$F$19:$CR$24,MATCH($B97,'Energy Prices'!$C$19:$C$24,0),MATCH(Calc_Proposed!G$6,'Energy Prices'!$F$11:$CR$11,0))/100000,\"\")","v":77.883658222867751},{"$f":"IFERROR('Data Input - Proposed'!L87*INDEX('Energy Prices'!$F$19:$CR$24,MATCH($B97,'Energy Prices'!$C$19:$C$24,0),MATCH(Calc_Proposed!H$6,'Energy Prices'!$F$11:$CR$11,0))/100000,\"\")","v":85.279524067697764},{"$f":"IFERROR('Data Input - Proposed'!M87*INDEX('Energy Prices'!$F$19:$CR$24,MATCH($B97,'Energy Prices'!$C$19:$C$24,0),MATCH(Calc_Proposed!I$6,'Energy Prices'!$F$11:$CR$11,0))/100000,\"\")","v":92.676544839111386},{"$f":"IFERROR('Data Input - Proposed'!N87*INDEX('Energy Prices'!$F$19:$CR$24,MATCH($B97,'Energy Prices'!$C$19:$C$24,0),MATCH(Calc_Proposed!J$6,'Energy Prices'!$F$11:$CR$11,0))/100000,\"\")","v":100.07472843983201},{"$f":"IFERROR('Data Input - Proposed'!O87*INDEX('Energy Prices'!$F$19:$CR$24,MATCH($B97,'Energy Prices'!$C$19:$C$24,0),MATCH(Calc_Proposed!K$6,'Energy Prices'!$F$11:$CR$11,0))/100000,\"\")","v":100.24700125254226},{"$f":"IFERROR('Data Input - Proposed'!P87*INDEX('Energy Prices'!$F$19:$CR$24,MATCH($B97,'Energy Prices'!$C$19:$C$24,0),MATCH(Calc_Proposed!L$6,'Energy Prices'!$F$11:$CR$11,0))/100000,\"\")","v":0},{"$f":"IFERROR('Data Input - Proposed'!Q87*INDEX('Energy Prices'!$F$19:$CR$24,MATCH($B97,'Energy Prices'!$C$19:$C$24,0),MATCH(Calc_Proposed!M$6,'Energy Prices'!$F$11:$CR$11,0))/100000,\"\")","v":0},{"$f":"IFERROR('Data Input - Proposed'!R87*INDEX('Energy Prices'!$F$19:$CR$24,MATCH($B97,'Energy Prices'!$C$19:$C$24,0),MATCH(Calc_Proposed!N$6,'Energy Prices'!$F$11:$CR$11,0))/100000,\"\")","v":0},{"$f":"IFERROR('Data Input - Proposed'!S87*INDEX('Energy Prices'!$F$19:$CR$24,MATCH($B97,'Energy Prices'!$C$19:$C$24,0),MATCH(Calc_Proposed!O$6,'Energy Prices'!$F$11:$CR$11,0))/100000,\"\")","v":0},{"$f":"IFERROR('Data Input - Proposed'!T87*INDEX('Energy Prices'!$F$19:$CR$24,MATCH($B97,'Energy Prices'!$C$19:$C$24,0),MATCH(Calc_Proposed!P$6,'Energy Prices'!$F$11:$CR$11,0))/100000,\"\")","v":0},{"$f":"IFERROR('Data Input - Proposed'!U87*INDEX('Energy Prices'!$F$19:$CR$24,MATCH($B97,'Energy Prices'!$C$19:$C$24,0),MATCH(Calc_Proposed!Q$6,'Energy Prices'!$F$11:$CR$11,0))/100000,\"\")","v":0},{"$f":"IFERROR('Data Input - Proposed'!V87*INDEX('Energy Prices'!$F$19:$CR$24,MATCH($B97,'Energy Prices'!$C$19:$C$24,0),MATCH(Calc_Proposed!R$6,'Energy Prices'!$F$11:$CR$11,0))/100000,\"\")","v":0},{"$f":"IFERROR('Data Input - Proposed'!W87*INDEX('Energy Prices'!$F$19:$CR$24,MATCH($B97,'Energy Prices'!$C$19:$C$24,0),MATCH(Calc_Proposed!S$6,'Energy Prices'!$F$11:$CR$11,0))/100000,\"\")","v":0},{"$f":"IFERROR('Data Input - Proposed'!X87*INDEX('Energy Prices'!$F$19:$CR$24,MATCH($B97,'Energy Prices'!$C$19:$C$24,0),MATCH(Calc_Proposed!T$6,'Energy Prices'!$F$11:$CR$11,0))/100000,\"\")","v":0},{"$f":"IFERROR('Data Input - Proposed'!Y87*INDEX('Energy Prices'!$F$19:$CR$24,MATCH($B97,'Energy Prices'!$C$19:$C$24,0),MATCH(Calc_Proposed!U$6,'Energy Prices'!$F$11:$CR$11,0))/100000,\"\")","v":0},{"$f":"IFERROR('Data Input - Proposed'!Z87*INDEX('Energy Prices'!$F$19:$CR$24,MATCH($B97,'Energy Prices'!$C$19:$C$24,0),MATCH(Calc_Proposed!V$6,'Energy Prices'!$F$11:$CR$11,0))/100000,\"\")","v":0},{"$f":"IFERROR('Data Input - Proposed'!AA87*INDEX('Energy Prices'!$F$19:$CR$24,MATCH($B97,'Energy Prices'!$C$19:$C$24,0),MATCH(Calc_Proposed!W$6,'Energy Prices'!$F$11:$CR$11,0))/100000,\"\")","v":0},{"$f":"IFERROR('Data Input - Proposed'!AB87*INDEX('Energy Prices'!$F$19:$CR$24,MATCH($B97,'Energy Prices'!$C$19:$C$24,0),MATCH(Calc_Proposed!X$6,'Energy Prices'!$F$11:$CR$11,0))/100000,\"\")","v":0},{"$f":"IFERROR('Data Input - Proposed'!AC87*INDEX('Energy Prices'!$F$19:$CR$24,MATCH($B97,'Energy Prices'!$C$19:$C$24,0),MATCH(Calc_Proposed!Y$6,'Energy Prices'!$F$11:$CR$11,0))/100000,\"\")","v":0},{"$f":"IFERROR('Data Input - Proposed'!AD87*INDEX('Energy Prices'!$F$19:$CR$24,MATCH($B97,'Energy Prices'!$C$19:$C$24,0),MATCH(Calc_Proposed!Z$6,'Energy Prices'!$F$11:$CR$11,0))/100000,\"\")","v":0},{"$f":"IFERROR('Data Input - Proposed'!AE87*INDEX('Energy Prices'!$F$19:$CR$24,MATCH($B97,'Energy Prices'!$C$19:$C$24,0),MATCH(Calc_Proposed!AA$6,'Energy Prices'!$F$11:$CR$11,0))/100000,\"\")","v":0},{"$f":"IFERROR('Data Input - Proposed'!AF87*INDEX('Energy Prices'!$F$19:$CR$24,MATCH($B97,'Energy Prices'!$C$19:$C$24,0),MATCH(Calc_Proposed!AB$6,'Energy Prices'!$F$11:$CR$11,0))/100000,\"\")","v":0},{"$f":"IFERROR('Data Input - Proposed'!AG87*INDEX('Energy Prices'!$F$19:$CR$24,MATCH($B97,'Energy Prices'!$C$19:$C$24,0),MATCH(Calc_Proposed!AC$6,'Energy Prices'!$F$11:$CR$11,0))/100000,\"\")","v":0},{"$f":"IFERROR('Data Input - Proposed'!AH87*INDEX('Energy Prices'!$F$19:$CR$24,MATCH($B97,'Energy Prices'!$C$19:$C$24,0),MATCH(Calc_Proposed!AD$6,'Energy Prices'!$F$11:$CR$11,0))/100000,\"\")","v":0},{"$f":"IFERROR('Data Input - Proposed'!AI87*INDEX('Energy Prices'!$F$19:$CR$24,MATCH($B97,'Energy Prices'!$C$19:$C$24,0),MATCH(Calc_Proposed!AE$6,'Energy Prices'!$F$11:$CR$11,0))/100000,\"\")","v":0},{"$f":"IFERROR('Data Input - Proposed'!AJ87*INDEX('Energy Prices'!$F$19:$CR$24,MATCH($B97,'Energy Prices'!$C$19:$C$24,0),MATCH(Calc_Proposed!AF$6,'Energy Prices'!$F$11:$CR$11,0))/100000,\"\")","v":0},{"$f":"IFERROR('Data Input - Proposed'!AK87*INDEX('Energy Prices'!$F$19:$CR$24,MATCH($B97,'Energy Prices'!$C$19:$C$24,0),MATCH(Calc_Proposed!AG$6,'Energy Prices'!$F$11:$CR$11,0))/100000,\"\")","v":0},{"$f":"IFERROR('Data Input - Proposed'!AL87*INDEX('Energy Prices'!$F$19:$CR$24,MATCH($B97,'Energy Prices'!$C$19:$C$24,0),MATCH(Calc_Proposed!AH$6,'Energy Prices'!$F$11:$CR$11,0))/100000,\"\")","v":0},{"$f":"IFERROR('Data Input - Proposed'!AM87*INDEX('Energy Prices'!$F$19:$CR$24,MATCH($B97,'Energy Prices'!$C$19:$C$24,0),MATCH(Calc_Proposed!AI$6,'Energy Prices'!$F$11:$CR$11,0))/100000,\"\")","v":""},{"$f":"IFERROR('Data Input - Proposed'!AN87*INDEX('Energy Prices'!$F$19:$CR$24,MATCH($B97,'Energy Prices'!$C$19:$C$24,0),MATCH(Calc_Proposed!AJ$6,'Energy Prices'!$F$11:$CR$11,0))/100000,\"\")","v":""},{"$f":"IFERROR('Data Input - Proposed'!AO87*INDEX('Energy Prices'!$F$19:$CR$24,MATCH($B97,'Energy Prices'!$C$19:$C$24,0),MATCH(Calc_Proposed!AK$6,'Energy Prices'!$F$11:$CR$11,0))/100000,\"\")","v":""},{"$f":"IFERROR('Data Input - Proposed'!AP87*INDEX('Energy Prices'!$F$19:$CR$24,MATCH($B97,'Energy Prices'!$C$19:$C$24,0),MATCH(Calc_Proposed!AL$6,'Energy Prices'!$F$11:$CR$11,0))/100000,\"\")","v":""},{"$f":"IFERROR('Data Input - Proposed'!AQ87*INDEX('Energy Prices'!$F$19:$CR$24,MATCH($B97,'Energy Prices'!$C$19:$C$24,0),MATCH(Calc_Proposed!AM$6,'Energy Prices'!$F$11:$CR$11,0))/100000,\"\")","v":""},{"$f":"IFERROR('Data Input - Proposed'!AR87*INDEX('Energy Prices'!$F$19:$CR$24,MATCH($B97,'Energy Prices'!$C$19:$C$24,0),MATCH(Calc_Proposed!AN$6,'Energy Prices'!$F$11:$CR$11,0))/100000,\"\")","v":""},{"$f":"IFERROR('Data Input - Proposed'!AS87*INDEX('Energy Prices'!$F$19:$CR$24,MATCH($B97,'Energy Prices'!$C$19:$C$24,0),MATCH(Calc_Proposed!AO$6,'Energy Prices'!$F$11:$CR$11,0))/100000,\"\")","v":""},{"$f":"IFERROR('Data Input - Proposed'!AT87*INDEX('Energy Prices'!$F$19:$CR$24,MATCH($B97,'Energy Prices'!$C$19:$C$24,0),MATCH(Calc_Proposed!AP$6,'Energy Prices'!$F$11:$CR$11,0))/100000,\"\")","v":""},{"$f":"IFERROR('Data Input - Proposed'!AU87*INDEX('Energy Prices'!$F$19:$CR$24,MATCH($B97,'Energy Prices'!$C$19:$C$24,0),MATCH(Calc_Proposed!AQ$6,'Energy Prices'!$F$11:$CR$11,0))/100000,\"\")","v":""},{"$f":"IFERROR('Data Input - Proposed'!AV87*INDEX('Energy Prices'!$F$19:$CR$24,MATCH($B97,'Energy Prices'!$C$19:$C$24,0),MATCH(Calc_Proposed!AR$6,'Energy Prices'!$F$11:$CR$11,0))/100000,\"\")","v":""},{"$f":"IFERROR('Data Input - Proposed'!AW87*INDEX('Energy Prices'!$F$19:$CR$24,MATCH($B97,'Energy Prices'!$C$19:$C$24,0),MATCH(Calc_Proposed!AS$6,'Energy Prices'!$F$11:$CR$11,0))/100000,\"\")","v":""},{"$f":"IFERROR('Data Input - Proposed'!AX87*INDEX('Energy Prices'!$F$19:$CR$24,MATCH($B97,'Energy Prices'!$C$19:$C$24,0),MATCH(Calc_Proposed!AT$6,'Energy Prices'!$F$11:$CR$11,0))/100000,\"\")","v":""},{"$f":"IFERROR('Data Input - Proposed'!AY87*INDEX('Energy Prices'!$F$19:$CR$24,MATCH($B97,'Energy Prices'!$C$19:$C$24,0),MATCH(Calc_Proposed!AU$6,'Energy Prices'!$F$11:$CR$11,0))/100000,\"\")","v":""},{"$f":"IFERROR('Data Input - Proposed'!AZ87*INDEX('Energy Prices'!$F$19:$CR$24,MATCH($B97,'Energy Prices'!$C$19:$C$24,0),MATCH(Calc_Proposed!AV$6,'Energy Prices'!$F$11:$CR$11,0))/100000,\"\")","v":""},{"$f":"IFERROR('Data Input - Proposed'!BA87*INDEX('Energy Prices'!$F$19:$CR$24,MATCH($B97,'Energy Prices'!$C$19:$C$24,0),MATCH(Calc_Proposed!AW$6,'Energy Prices'!$F$11:$CR$11,0))/100000,\"\")","v":""},{"$f":"IFERROR('Data Input - Proposed'!BB87*INDEX('Energy Prices'!$F$19:$CR$24,MATCH($B97,'Energy Prices'!$C$19:$C$24,0),MATCH(Calc_Proposed!AX$6,'Energy Prices'!$F$11:$CR$11,0))/100000,\"\")","v":""},{"$f":"IFERROR('Data Input - Proposed'!BC87*INDEX('Energy Prices'!$F$19:$CR$24,MATCH($B97,'Energy Prices'!$C$19:$C$24,0),MATCH(Calc_Proposed!AY$6,'Energy Prices'!$F$11:$CR$11,0))/100000,\"\")","v":""},{"$f":"IFERROR('Data Input - Proposed'!BD87*INDEX('Energy Prices'!$F$19:$CR$24,MATCH($B97,'Energy Prices'!$C$19:$C$24,0),MATCH(Calc_Proposed!AZ$6,'Energy Prices'!$F$11:$CR$11,0))/100000,\"\")","v":""},{"$f":"IFERROR('Data Input - Proposed'!BE87*INDEX('Energy Prices'!$F$19:$CR$24,MATCH($B97,'Energy Prices'!$C$19:$C$24,0),MATCH(Calc_Proposed!BA$6,'Energy Prices'!$F$11:$CR$11,0))/100000,\"\")","v":""},{"$f":"IFERROR('Data Input - Proposed'!BF87*INDEX('Energy Prices'!$F$19:$CR$24,MATCH($B97,'Energy Prices'!$C$19:$C$24,0),MATCH(Calc_Proposed!BB$6,'Energy Prices'!$F$11:$CR$11,0))/100000,\"\")","v":""},{"$f":"IFERROR('Data Input - Proposed'!BG87*INDEX('Energy Prices'!$F$19:$CR$24,MATCH($B97,'Energy Prices'!$C$19:$C$24,0),MATCH(Calc_Proposed!BC$6,'Energy Prices'!$F$11:$CR$11,0))/100000,\"\")","v":""},{"$f":"IFERROR('Data Input - Proposed'!BH87*INDEX('Energy Prices'!$F$19:$CR$24,MATCH($B97,'Energy Prices'!$C$19:$C$24,0),MATCH(Calc_Proposed!BD$6,'Energy Prices'!$F$11:$CR$11,0))/100000,\"\")","v":""},{"$f":"IFERROR('Data Input - Proposed'!BI87*INDEX('Energy Prices'!$F$19:$CR$24,MATCH($B97,'Energy Prices'!$C$19:$C$24,0),MATCH(Calc_Proposed!BE$6,'Energy Prices'!$F$11:$CR$11,0))/100000,\"\")","v":""},{"$f":"IFERROR('Data Input - Proposed'!BJ87*INDEX('Energy Prices'!$F$19:$CR$24,MATCH($B97,'Energy Prices'!$C$19:$C$24,0),MATCH(Calc_Proposed!BF$6,'Energy Prices'!$F$11:$CR$11,0))/100000,\"\")","v":""},{"$f":"IFERROR('Data Input - Proposed'!BK87*INDEX('Energy Prices'!$F$19:$CR$24,MATCH($B97,'Energy Prices'!$C$19:$C$24,0),MATCH(Calc_Proposed!BG$6,'Energy Prices'!$F$11:$CR$11,0))/100000,\"\")","v":""},{"$f":"IFERROR('Data Input - Proposed'!BL87*INDEX('Energy Prices'!$F$19:$CR$24,MATCH($B97,'Energy Prices'!$C$19:$C$24,0),MATCH(Calc_Proposed!BH$6,'Energy Prices'!$F$11:$CR$11,0))/100000,\"\")","v":""},{"$f":"IFERROR('Data Input - Proposed'!BM87*INDEX('Energy Prices'!$F$19:$CR$24,MATCH($B97,'Energy Prices'!$C$19:$C$24,0),MATCH(Calc_Proposed!BI$6,'Energy Prices'!$F$11:$CR$11,0))/100000,\"\")","v":""},{"$f":"IFERROR('Data Input - Proposed'!BN87*INDEX('Energy Prices'!$F$19:$CR$24,MATCH($B97,'Energy Prices'!$C$19:$C$24,0),MATCH(Calc_Proposed!BJ$6,'Energy Prices'!$F$11:$CR$11,0))/100000,\"\")","v":""},{"$f":"IFERROR('Data Input - Proposed'!BO87*INDEX('Energy Prices'!$F$19:$CR$24,MATCH($B97,'Energy Prices'!$C$19:$C$24,0),MATCH(Calc_Proposed!BK$6,'Energy Prices'!$F$11:$CR$11,0))/100000,\"\")","v":""},{"$f":"IFERROR('Data Input - Proposed'!BP87*INDEX('Energy Prices'!$F$19:$CR$24,MATCH($B97,'Energy Prices'!$C$19:$C$24,0),MATCH(Calc_Proposed!BL$6,'Energy Prices'!$F$11:$CR$11,0))/100000,\"\")","v":""},{"$f":"IFERROR('Data Input - Proposed'!BQ87*INDEX('Energy Prices'!$F$19:$CR$24,MATCH($B97,'Energy Prices'!$C$19:$C$24,0),MATCH(Calc_Proposed!BM$6,'Energy Prices'!$F$11:$CR$11,0))/100000,\"\")","v":""},{"$f":"IFERROR('Data Input - Proposed'!BR87*INDEX('Energy Prices'!$F$19:$CR$24,MATCH($B97,'Energy Prices'!$C$19:$C$24,0),MATCH(Calc_Proposed!BN$6,'Energy Prices'!$F$11:$CR$11,0))/100000,\"\")","v":""},{"$f":"IFERROR('Data Input - Proposed'!BS87*INDEX('Energy Prices'!$F$19:$CR$24,MATCH($B97,'Energy Prices'!$C$19:$C$24,0),MATCH(Calc_Proposed!BO$6,'Energy Prices'!$F$11:$CR$11,0))/100000,\"\")","v":""},{"$f":"IFERROR('Data Input - Proposed'!BT87*INDEX('Energy Prices'!$F$19:$CR$24,MATCH($B97,'Energy Prices'!$C$19:$C$24,0),MATCH(Calc_Proposed!BP$6,'Energy Prices'!$F$11:$CR$11,0))/100000,\"\")","v":""},{"$f":"IFERROR('Data Input - Proposed'!BU87*INDEX('Energy Prices'!$F$19:$CR$24,MATCH($B97,'Energy Prices'!$C$19:$C$24,0),MATCH(Calc_Proposed!BQ$6,'Energy Prices'!$F$11:$CR$11,0))/100000,\"\")","v":""},{"$f":"IFERROR('Data Input - Proposed'!BV87*INDEX('Energy Prices'!$F$19:$CR$24,MATCH($B97,'Energy Prices'!$C$19:$C$24,0),MATCH(Calc_Proposed!BR$6,'Energy Prices'!$F$11:$CR$11,0))/100000,\"\")","v":""},{"$f":"IFERROR('Data Input - Proposed'!BW87*INDEX('Energy Prices'!$F$19:$CR$24,MATCH($B97,'Energy Prices'!$C$19:$C$24,0),MATCH(Calc_Proposed!BS$6,'Energy Prices'!$F$11:$CR$11,0))/100000,\"\")","v":""},{"$f":"IFERROR('Data Input - Proposed'!BX87*INDEX('Energy Prices'!$F$19:$CR$24,MATCH($B97,'Energy Prices'!$C$19:$C$24,0),MATCH(Calc_Proposed!BT$6,'Energy Prices'!$F$11:$CR$11,0))/100000,\"\")","v":""},{"$f":"IFERROR('Data Input - Proposed'!BY87*INDEX('Energy Prices'!$F$19:$CR$24,MATCH($B97,'Energy Prices'!$C$19:$C$24,0),MATCH(Calc_Proposed!BU$6,'Energy Prices'!$F$11:$CR$11,0))/100000,\"\")","v":""},{"$f":"IFERROR('Data Input - Proposed'!BZ87*INDEX('Energy Prices'!$F$19:$CR$24,MATCH($B97,'Energy Prices'!$C$19:$C$24,0),MATCH(Calc_Proposed!BV$6,'Energy Prices'!$F$11:$CR$11,0))/100000,\"\")","v":""},{"$f":"IFERROR('Data Input - Proposed'!CA87*INDEX('Energy Prices'!$F$19:$CR$24,MATCH($B97,'Energy Prices'!$C$19:$C$24,0),MATCH(Calc_Proposed!BW$6,'Energy Prices'!$F$11:$CR$11,0))/100000,\"\")","v":""},{"$f":"IFERROR('Data Input - Proposed'!CB87*INDEX('Energy Prices'!$F$19:$CR$24,MATCH($B97,'Energy Prices'!$C$19:$C$24,0),MATCH(Calc_Proposed!BX$6,'Energy Prices'!$F$11:$CR$11,0))/100000,\"\")","v":""},{"$f":"IFERROR('Data Input - Proposed'!CC87*INDEX('Energy Prices'!$F$19:$CR$24,MATCH($B97,'Energy Prices'!$C$19:$C$24,0),MATCH(Calc_Proposed!BY$6,'Energy Prices'!$F$11:$CR$11,0))/100000,\"\")","v":""},{"$f":"IFERROR('Data Input - Proposed'!CD87*INDEX('Energy Prices'!$F$19:$CR$24,MATCH($B97,'Energy Prices'!$C$19:$C$24,0),MATCH(Calc_Proposed!BZ$6,'Energy Prices'!$F$11:$CR$11,0))/100000,\"\")","v":""},{"$f":"IFERROR('Data Input - Proposed'!CE87*INDEX('Energy Prices'!$F$19:$CR$24,MATCH($B97,'Energy Prices'!$C$19:$C$24,0),MATCH(Calc_Proposed!CA$6,'Energy Prices'!$F$11:$CR$11,0))/100000,\"\")","v":""},{"$f":"IFERROR('Data Input - Proposed'!CF87*INDEX('Energy Prices'!$F$19:$CR$24,MATCH($B97,'Energy Prices'!$C$19:$C$24,0),MATCH(Calc_Proposed!CB$6,'Energy Prices'!$F$11:$CR$11,0))/100000,\"\")","v":""},{"$f":"IFERROR('Data Input - Proposed'!CG87*INDEX('Energy Prices'!$F$19:$CR$24,MATCH($B97,'Energy Prices'!$C$19:$C$24,0),MATCH(Calc_Proposed!CC$6,'Energy Prices'!$F$11:$CR$11,0))/100000,\"\")","v":""},{"$f":"IFERROR('Data Input - Proposed'!CH87*INDEX('Energy Prices'!$F$19:$CR$24,MATCH($B97,'Energy Prices'!$C$19:$C$24,0),MATCH(Calc_Proposed!CD$6,'Energy Prices'!$F$11:$CR$11,0))/100000,\"\")","v":""},{"$f":"IFERROR('Data Input - Proposed'!CI87*INDEX('Energy Prices'!$F$19:$CR$24,MATCH($B97,'Energy Prices'!$C$19:$C$24,0),MATCH(Calc_Proposed!CE$6,'Energy Prices'!$F$11:$CR$11,0))/100000,\"\")","v":""},{"$f":"IFERROR('Data Input - Proposed'!CJ87*INDEX('Energy Prices'!$F$19:$CR$24,MATCH($B97,'Energy Prices'!$C$19:$C$24,0),MATCH(Calc_Proposed!CF$6,'Energy Prices'!$F$11:$CR$11,0))/100000,\"\")","v":""},{"$f":"IFERROR('Data Input - Proposed'!CK87*INDEX('Energy Prices'!$F$19:$CR$24,MATCH($B97,'Energy Prices'!$C$19:$C$24,0),MATCH(Calc_Proposed!CG$6,'Energy Prices'!$F$11:$CR$11,0))/100000,\"\")","v":""},{"$f":"IFERROR('Data Input - Proposed'!CL87*INDEX('Energy Prices'!$F$19:$CR$24,MATCH($B97,'Energy Prices'!$C$19:$C$24,0),MATCH(Calc_Proposed!CH$6,'Energy Prices'!$F$11:$CR$11,0))/100000,\"\")","v":""},{"$f":"IFERROR('Data Input - Proposed'!CM87*INDEX('Energy Prices'!$F$19:$CR$24,MATCH($B97,'Energy Prices'!$C$19:$C$24,0),MATCH(Calc_Proposed!CI$6,'Energy Prices'!$F$11:$CR$11,0))/100000,\"\")","v":""},{"$f":"IFERROR('Data Input - Proposed'!CN87*INDEX('Energy Prices'!$F$19:$CR$24,MATCH($B97,'Energy Prices'!$C$19:$C$24,0),MATCH(Calc_Proposed!CJ$6,'Energy Prices'!$F$11:$CR$11,0))/100000,\"\")","v":""},{"$f":"IFERROR('Data Input - Proposed'!CO87*INDEX('Energy Prices'!$F$19:$CR$24,MATCH($B97,'Energy Prices'!$C$19:$C$24,0),MATCH(Calc_Proposed!CK$6,'Energy Prices'!$F$11:$CR$11,0))/100000,\"\")","v":""},{"$f":"IFERROR('Data Input - Proposed'!CP87*INDEX('Energy Prices'!$F$19:$CR$24,MATCH($B97,'Energy Prices'!$C$19:$C$24,0),MATCH(Calc_Proposed!CL$6,'Energy Prices'!$F$11:$CR$11,0))/100000,\"\")","v":""},{"$f":"IFERROR('Data Input - Proposed'!CQ87*INDEX('Energy Prices'!$F$19:$CR$24,MATCH($B97,'Energy Prices'!$C$19:$C$24,0),MATCH(Calc_Proposed!CM$6,'Energy Prices'!$F$11:$CR$11,0))/100000,\"\")","v":""},{"$f":"IFERROR('Data Input - Proposed'!CR87*INDEX('Energy Prices'!$F$19:$CR$24,MATCH($B97,'Energy Prices'!$C$19:$C$24,0),MATCH(Calc_Proposed!CN$6,'Energy Prices'!$F$11:$CR$11,0))/100000,\"\")","v":""},{"$f":"IFERROR('Data Input - Proposed'!CS87*INDEX('Energy Prices'!$F$19:$CR$24,MATCH($B97,'Energy Prices'!$C$19:$C$24,0),MATCH(Calc_Proposed!CO$6,'Energy Prices'!$F$11:$CR$11,0))/100000,\"\")","v":""},{"$f":"IFERROR('Data Input - Proposed'!CT87*INDEX('Energy Prices'!$F$19:$CR$24,MATCH($B97,'Energy Prices'!$C$19:$C$24,0),MATCH(Calc_Proposed!CP$6,'Energy Prices'!$F$11:$CR$11,0))/100000,\"\")","v":""},{"$f":"IFERROR('Data Input - Proposed'!CU87*INDEX('Energy Prices'!$F$19:$CR$24,MATCH($B97,'Energy Prices'!$C$19:$C$24,0),MATCH(Calc_Proposed!CQ$6,'Energy Prices'!$F$11:$CR$11,0))/100000,\"\")","v":""},{"$f":"IFERROR('Data Input - Proposed'!CV87*INDEX('Energy Prices'!$F$19:$CR$24,MATCH($B97,'Energy Prices'!$C$19:$C$24,0),MATCH(Calc_Proposed!CR$6,'Energy Prices'!$F$11:$CR$11,0))/100000,\"\")","v":""},{"$f":"IFERROR('Data Input - Proposed'!CW87*INDEX('Energy Prices'!$F$19:$CR$24,MATCH($B97,'Energy Prices'!$C$19:$C$24,0),MATCH(Calc_Proposed!CS$6,'Energy Prices'!$F$11:$CR$11,0))/100000,\"\")","v":""},{"$f":"IFERROR('Data Input - Proposed'!CX87*INDEX('Energy Prices'!$F$19:$CR$24,MATCH($B97,'Energy Prices'!$C$19:$C$24,0),MATCH(Calc_Proposed!CT$6,'Energy Prices'!$F$11:$CR$11,0))/100000,\"\")","v":""},{"$f":"IFERROR('Data Input - Proposed'!CY87*INDEX('Energy Prices'!$F$19:$CR$24,MATCH($B97,'Energy Prices'!$C$19:$C$24,0),MATCH(Calc_Proposed!CU$6,'Energy Prices'!$F$11:$CR$11,0))/100000,\"\")","v":""},{"$f":"IFERROR('Data Input - Proposed'!CZ87*INDEX('Energy Prices'!$F$19:$CR$24,MATCH($B97,'Energy Prices'!$C$19:$C$24,0),MATCH(Calc_Proposed!CV$6,'Energy Prices'!$F$11:$CR$11,0))/100000,\"\")","v":""},{"$f":"IFERROR('Data Input - Proposed'!DA87*INDEX('Energy Prices'!$F$19:$CR$24,MATCH($B97,'Energy Prices'!$C$19:$C$24,0),MATCH(Calc_Proposed!CW$6,'Energy Prices'!$F$11:$CR$11,0))/100000,\"\")","v":""},{"$f":"IFERROR('Data Input - Proposed'!DB87*INDEX('Energy Prices'!$F$19:$CR$24,MATCH($B97,'Energy Prices'!$C$19:$C$24,0),MATCH(Calc_Proposed!CX$6,'Energy Prices'!$F$11:$CR$11,0))/100000,\"\")","v":""},{"$f":"IFERROR('Data Input - Proposed'!DC87*INDEX('Energy Prices'!$F$19:$CR$24,MATCH($B97,'Energy Prices'!$C$19:$C$24,0),MATCH(Calc_Proposed!CY$6,'Energy Prices'!$F$11:$CR$11,0))/100000,\"\")","v":""}]
[null,"Road - Petrol","£000's",{"$f":"IFERROR('Data Input - Proposed'!H88*INDEX('Energy Prices'!$F$19:$CR$24,MATCH($B98,'Energy Prices'!$C$19:$C$24,0),MATCH(Calc_Proposed!D$6,'Energy Prices'!$F$11:$CR$11,0))/100000,\"\")","v":0},{"$f":"IFERROR('Data Input - Proposed'!I88*INDEX('Energy Prices'!$F$19:$CR$24,MATCH($B98,'Energy Prices'!$C$19:$C$24,0),MATCH(Calc_Proposed!E$6,'Energy Prices'!$F$11:$CR$11,0))/100000,\"\")","v":0},{"$f":"IFERROR('Data Input - Proposed'!J88*INDEX('Energy Prices'!$F$19:$CR$24,MATCH($B98,'Energy Prices'!$C$19:$C$24,0),MATCH(Calc_Proposed!F$6,'Energy Prices'!$F$11:$CR$11,0))/100000,\"\")","v":0},{"$f":"IFERROR('Data Input - Proposed'!K88*INDEX('Energy Prices'!$F$19:$CR$24,MATCH($B98,'Energy Prices'!$C$19:$C$24,0),MATCH(Calc_Proposed!G$6,'Energy Prices'!$F$11:$CR$11,0))/100000,\"\")","v":0},{"$f":"IFERROR('Data Input - Proposed'!L88*INDEX('Energy Prices'!$F$19:$CR$24,MATCH($B98,'Energy Prices'!$C$19:$C$24,0),MATCH(Calc_Proposed!H$6,'Energy Prices'!$F$11:$CR$11,0))/100000,\"\")","v":0},{"$f":"IFERROR('Data Input - Proposed'!M88*INDEX('Energy Prices'!$F$19:$CR$24,MATCH($B98,'Energy Prices'!$C$19:$C$24,0),MATCH(Calc_Proposed!I$6,'Energy Prices'!$F$11:$CR$11,0))/100000,\"\")","v":0},{"$f":"IFERROR('Data Input - Proposed'!N88*INDEX('Energy Prices'!$F$19:$CR$24,MATCH($B98,'Energy Prices'!$C$19:$C$24,0),MATCH(Calc_Proposed!J$6,'Energy Prices'!$F$11:$CR$11,0))/100000,\"\")","v":0},{"$f":"IFERROR('Data Input - Proposed'!O88*INDEX('Energy Prices'!$F$19:$CR$24,MATCH($B98,'Energy Prices'!$C$19:$C$24,0),MATCH(Calc_Proposed!K$6,'Energy Prices'!$F$11:$CR$11,0))/100000,\"\")","v":0},{"$f":"IFERROR('Data Input - Proposed'!P88*INDEX('Energy Prices'!$F$19:$CR$24,MATCH($B98,'Energy Prices'!$C$19:$C$24,0),MATCH(Calc_Proposed!L$6,'Energy Prices'!$F$11:$CR$11,0))/100000,\"\")","v":0},{"$f":"IFERROR('Data Input - Proposed'!Q88*INDEX('Energy Prices'!$F$19:$CR$24,MATCH($B98,'Energy Prices'!$C$19:$C$24,0),MATCH(Calc_Proposed!M$6,'Energy Prices'!$F$11:$CR$11,0))/100000,\"\")","v":0},{"$f":"IFERROR('Data Input - Proposed'!R88*INDEX('Energy Prices'!$F$19:$CR$24,MATCH($B98,'Energy Prices'!$C$19:$C$24,0),MATCH(Calc_Proposed!N$6,'Energy Prices'!$F$11:$CR$11,0))/100000,\"\")","v":0},{"$f":"IFERROR('Data Input - Proposed'!S88*INDEX('Energy Prices'!$F$19:$CR$24,MATCH($B98,'Energy Prices'!$C$19:$C$24,0),MATCH(Calc_Proposed!O$6,'Energy Prices'!$F$11:$CR$11,0))/100000,\"\")","v":0},{"$f":"IFERROR('Data Input - Proposed'!T88*INDEX('Energy Prices'!$F$19:$CR$24,MATCH($B98,'Energy Prices'!$C$19:$C$24,0),MATCH(Calc_Proposed!P$6,'Energy Prices'!$F$11:$CR$11,0))/100000,\"\")","v":0},{"$f":"IFERROR('Data Input - Proposed'!U88*INDEX('Energy Prices'!$F$19:$CR$24,MATCH($B98,'Energy Prices'!$C$19:$C$24,0),MATCH(Calc_Proposed!Q$6,'Energy Prices'!$F$11:$CR$11,0))/100000,\"\")","v":0},{"$f":"IFERROR('Data Input - Proposed'!V88*INDEX('Energy Prices'!$F$19:$CR$24,MATCH($B98,'Energy Prices'!$C$19:$C$24,0),MATCH(Calc_Proposed!R$6,'Energy Prices'!$F$11:$CR$11,0))/100000,\"\")","v":0},{"$f":"IFERROR('Data Input - Proposed'!W88*INDEX('Energy Prices'!$F$19:$CR$24,MATCH($B98,'Energy Prices'!$C$19:$C$24,0),MATCH(Calc_Proposed!S$6,'Energy Prices'!$F$11:$CR$11,0))/100000,\"\")","v":0},{"$f":"IFERROR('Data Input - Proposed'!X88*INDEX('Energy Prices'!$F$19:$CR$24,MATCH($B98,'Energy Prices'!$C$19:$C$24,0),MATCH(Calc_Proposed!T$6,'Energy Prices'!$F$11:$CR$11,0))/100000,\"\")","v":0},{"$f":"IFERROR('Data Input - Proposed'!Y88*INDEX('Energy Prices'!$F$19:$CR$24,MATCH($B98,'Energy Prices'!$C$19:$C$24,0),MATCH(Calc_Proposed!U$6,'Energy Prices'!$F$11:$CR$11,0))/100000,\"\")","v":0},{"$f":"IFERROR('Data Input - Proposed'!Z88*INDEX('Energy Prices'!$F$19:$CR$24,MATCH($B98,'Energy Prices'!$C$19:$C$24,0),MATCH(Calc_Proposed!V$6,'Energy Prices'!$F$11:$CR$11,0))/100000,\"\")","v":0},{"$f":"IFERROR('Data Input - Proposed'!AA88*INDEX('Energy Prices'!$F$19:$CR$24,MATCH($B98,'Energy Prices'!$C$19:$C$24,0),MATCH(Calc_Proposed!W$6,'Energy Prices'!$F$11:$CR$11,0))/100000,\"\")","v":0},{"$f":"IFERROR('Data Input - Proposed'!AB88*INDEX('Energy Prices'!$F$19:$CR$24,MATCH($B98,'Energy Prices'!$C$19:$C$24,0),MATCH(Calc_Proposed!X$6,'Energy Prices'!$F$11:$CR$11,0))/100000,\"\")","v":0},{"$f":"IFERROR('Data Input - Proposed'!AC88*INDEX('Energy Prices'!$F$19:$CR$24,MATCH($B98,'Energy Prices'!$C$19:$C$24,0),MATCH(Calc_Proposed!Y$6,'Energy Prices'!$F$11:$CR$11,0))/100000,\"\")","v":0},{"$f":"IFERROR('Data Input - Proposed'!AD88*INDEX('Energy Prices'!$F$19:$CR$24,MATCH($B98,'Energy Prices'!$C$19:$C$24,0),MATCH(Calc_Proposed!Z$6,'Energy Prices'!$F$11:$CR$11,0))/100000,\"\")","v":0},{"$f":"IFERROR('Data Input - Proposed'!AE88*INDEX('Energy Prices'!$F$19:$CR$24,MATCH($B98,'Energy Prices'!$C$19:$C$24,0),MATCH(Calc_Proposed!AA$6,'Energy Prices'!$F$11:$CR$11,0))/100000,\"\")","v":0},{"$f":"IFERROR('Data Input - Proposed'!AF88*INDEX('Energy Prices'!$F$19:$CR$24,MATCH($B98,'Energy Prices'!$C$19:$C$24,0),MATCH(Calc_Proposed!AB$6,'Energy Prices'!$F$11:$CR$11,0))/100000,\"\")","v":0},{"$f":"IFERROR('Data Input - Proposed'!AG88*INDEX('Energy Prices'!$F$19:$CR$24,MATCH($B98,'Energy Prices'!$C$19:$C$24,0),MATCH(Calc_Proposed!AC$6,'Energy Prices'!$F$11:$CR$11,0))/100000,\"\")","v":0},{"$f":"IFERROR('Data Input - Proposed'!AH88*INDEX('Energy Prices'!$F$19:$CR$24,MATCH($B98,'Energy Prices'!$C$19:$C$24,0),MATCH(Calc_Proposed!AD$6,'Energy Prices'!$F$11:$CR$11,0))/100000,\"\")","v":0},{"$f":"IFERROR('Data Input - Proposed'!AI88*INDEX('Energy Prices'!$F$19:$CR$24,MATCH($B98,'Energy Prices'!$C$19:$C$24,0),MATCH(Calc_Proposed!AE$6,'Energy Prices'!$F$11:$CR$11,0))/100000,\"\")","v":0},{"$f":"IFERROR('Data Input - Proposed'!AJ88*INDEX('Energy Prices'!$F$19:$CR$24,MATCH($B98,'Energy Prices'!$C$19:$C$24,0),MATCH(Calc_Proposed!AF$6,'Energy Prices'!$F$11:$CR$11,0))/100000,\"\")","v":0},{"$f":"IFERROR('Data Input - Proposed'!AK88*INDEX('Energy Prices'!$F$19:$CR$24,MATCH($B98,'Energy Prices'!$C$19:$C$24,0),MATCH(Calc_Proposed!AG$6,'Energy Prices'!$F$11:$CR$11,0))/100000,\"\")","v":0},{"$f":"IFERROR('Data Input - Proposed'!AL88*INDEX('Energy Prices'!$F$19:$CR$24,MATCH($B98,'Energy Prices'!$C$19:$C$24,0),MATCH(Calc_Proposed!AH$6,'Energy Prices'!$F$11:$CR$11,0))/100000,\"\")","v":0},{"$f":"IFERROR('Data Input - Proposed'!AM88*INDEX('Energy Prices'!$F$19:$CR$24,MATCH($B98,'Energy Prices'!$C$19:$C$24,0),MATCH(Calc_Proposed!AI$6,'Energy Prices'!$F$11:$CR$11,0))/100000,\"\")","v":""},{"$f":"IFERROR('Data Input - Proposed'!AN88*INDEX('Energy Prices'!$F$19:$CR$24,MATCH($B98,'Energy Prices'!$C$19:$C$24,0),MATCH(Calc_Proposed!AJ$6,'Energy Prices'!$F$11:$CR$11,0))/100000,\"\")","v":""},{"$f":"IFERROR('Data Input - Proposed'!AO88*INDEX('Energy Prices'!$F$19:$CR$24,MATCH($B98,'Energy Prices'!$C$19:$C$24,0),MATCH(Calc_Proposed!AK$6,'Energy Prices'!$F$11:$CR$11,0))/100000,\"\")","v":""},{"$f":"IFERROR('Data Input - Proposed'!AP88*INDEX('Energy Prices'!$F$19:$CR$24,MATCH($B98,'Energy Prices'!$C$19:$C$24,0),MATCH(Calc_Proposed!AL$6,'Energy Prices'!$F$11:$CR$11,0))/100000,\"\")","v":""},{"$f":"IFERROR('Data Input - Proposed'!AQ88*INDEX('Energy Prices'!$F$19:$CR$24,MATCH($B98,'Energy Prices'!$C$19:$C$24,0),MATCH(Calc_Proposed!AM$6,'Energy Prices'!$F$11:$CR$11,0))/100000,\"\")","v":""},{"$f":"IFERROR('Data Input - Proposed'!AR88*INDEX('Energy Prices'!$F$19:$CR$24,MATCH($B98,'Energy Prices'!$C$19:$C$24,0),MATCH(Calc_Proposed!AN$6,'Energy Prices'!$F$11:$CR$11,0))/100000,\"\")","v":""},{"$f":"IFERROR('Data Input - Proposed'!AS88*INDEX('Energy Prices'!$F$19:$CR$24,MATCH($B98,'Energy Prices'!$C$19:$C$24,0),MATCH(Calc_Proposed!AO$6,'Energy Prices'!$F$11:$CR$11,0))/100000,\"\")","v":""},{"$f":"IFERROR('Data Input - Proposed'!AT88*INDEX('Energy Prices'!$F$19:$CR$24,MATCH($B98,'Energy Prices'!$C$19:$C$24,0),MATCH(Calc_Proposed!AP$6,'Energy Prices'!$F$11:$CR$11,0))/100000,\"\")","v":""},{"$f":"IFERROR('Data Input - Proposed'!AU88*INDEX('Energy Prices'!$F$19:$CR$24,MATCH($B98,'Energy Prices'!$C$19:$C$24,0),MATCH(Calc_Proposed!AQ$6,'Energy Prices'!$F$11:$CR$11,0))/100000,\"\")","v":""},{"$f":"IFERROR('Data Input - Proposed'!AV88*INDEX('Energy Prices'!$F$19:$CR$24,MATCH($B98,'Energy Prices'!$C$19:$C$24,0),MATCH(Calc_Proposed!AR$6,'Energy Prices'!$F$11:$CR$11,0))/100000,\"\")","v":""},{"$f":"IFERROR('Data Input - Proposed'!AW88*INDEX('Energy Prices'!$F$19:$CR$24,MATCH($B98,'Energy Prices'!$C$19:$C$24,0),MATCH(Calc_Proposed!AS$6,'Energy Prices'!$F$11:$CR$11,0))/100000,\"\")","v":""},{"$f":"IFERROR('Data Input - Proposed'!AX88*INDEX('Energy Prices'!$F$19:$CR$24,MATCH($B98,'Energy Prices'!$C$19:$C$24,0),MATCH(Calc_Proposed!AT$6,'Energy Prices'!$F$11:$CR$11,0))/100000,\"\")","v":""},{"$f":"IFERROR('Data Input - Proposed'!AY88*INDEX('Energy Prices'!$F$19:$CR$24,MATCH($B98,'Energy Prices'!$C$19:$C$24,0),MATCH(Calc_Proposed!AU$6,'Energy Prices'!$F$11:$CR$11,0))/100000,\"\")","v":""},{"$f":"IFERROR('Data Input - Proposed'!AZ88*INDEX('Energy Prices'!$F$19:$CR$24,MATCH($B98,'Energy Prices'!$C$19:$C$24,0),MATCH(Calc_Proposed!AV$6,'Energy Prices'!$F$11:$CR$11,0))/100000,\"\")","v":""},{"$f":"IFERROR('Data Input - Proposed'!BA88*INDEX('Energy Prices'!$F$19:$CR$24,MATCH($B98,'Energy Prices'!$C$19:$C$24,0),MATCH(Calc_Proposed!AW$6,'Energy Prices'!$F$11:$CR$11,0))/100000,\"\")","v":""},{"$f":"IFERROR('Data Input - Proposed'!BB88*INDEX('Energy Prices'!$F$19:$CR$24,MATCH($B98,'Energy Prices'!$C$19:$C$24,0),MATCH(Calc_Proposed!AX$6,'Energy Prices'!$F$11:$CR$11,0))/100000,\"\")","v":""},{"$f":"IFERROR('Data Input - Proposed'!BC88*INDEX('Energy Prices'!$F$19:$CR$24,MATCH($B98,'Energy Prices'!$C$19:$C$24,0),MATCH(Calc_Proposed!AY$6,'Energy Prices'!$F$11:$CR$11,0))/100000,\"\")","v":""},{"$f":"IFERROR('Data Input - Proposed'!BD88*INDEX('Energy Prices'!$F$19:$CR$24,MATCH($B98,'Energy Prices'!$C$19:$C$24,0),MATCH(Calc_Proposed!AZ$6,'Energy Prices'!$F$11:$CR$11,0))/100000,\"\")","v":""},{"$f":"IFERROR('Data Input - Proposed'!BE88*INDEX('Energy Prices'!$F$19:$CR$24,MATCH($B98,'Energy Prices'!$C$19:$C$24,0),MATCH(Calc_Proposed!BA$6,'Energy Prices'!$F$11:$CR$11,0))/100000,\"\")","v":""},{"$f":"IFERROR('Data Input - Proposed'!BF88*INDEX('Energy Prices'!$F$19:$CR$24,MATCH($B98,'Energy Prices'!$C$19:$C$24,0),MATCH(Calc_Proposed!BB$6,'Energy Prices'!$F$11:$CR$11,0))/100000,\"\")","v":""},{"$f":"IFERROR('Data Input - Proposed'!BG88*INDEX('Energy Prices'!$F$19:$CR$24,MATCH($B98,'Energy Prices'!$C$19:$C$24,0),MATCH(Calc_Proposed!BC$6,'Energy Prices'!$F$11:$CR$11,0))/100000,\"\")","v":""},{"$f":"IFERROR('Data Input - Proposed'!BH88*INDEX('Energy Prices'!$F$19:$CR$24,MATCH($B98,'Energy Prices'!$C$19:$C$24,0),MATCH(Calc_Proposed!BD$6,'Energy Prices'!$F$11:$CR$11,0))/100000,\"\")","v":""},{"$f":"IFERROR('Data Input - Proposed'!BI88*INDEX('Energy Prices'!$F$19:$CR$24,MATCH($B98,'Energy Prices'!$C$19:$C$24,0),MATCH(Calc_Proposed!BE$6,'Energy Prices'!$F$11:$CR$11,0))/100000,\"\")","v":""},{"$f":"IFERROR('Data Input - Proposed'!BJ88*INDEX('Energy Prices'!$F$19:$CR$24,MATCH($B98,'Energy Prices'!$C$19:$C$24,0),MATCH(Calc_Proposed!BF$6,'Energy Prices'!$F$11:$CR$11,0))/100000,\"\")","v":""},{"$f":"IFERROR('Data Input - Proposed'!BK88*INDEX('Energy Prices'!$F$19:$CR$24,MATCH($B98,'Energy Prices'!$C$19:$C$24,0),MATCH(Calc_Proposed!BG$6,'Energy Prices'!$F$11:$CR$11,0))/100000,\"\")","v":""},{"$f":"IFERROR('Data Input - Proposed'!BL88*INDEX('Energy Prices'!$F$19:$CR$24,MATCH($B98,'Energy Prices'!$C$19:$C$24,0),MATCH(Calc_Proposed!BH$6,'Energy Prices'!$F$11:$CR$11,0))/100000,\"\")","v":""},{"$f":"IFERROR('Data Input - Proposed'!BM88*INDEX('Energy Prices'!$F$19:$CR$24,MATCH($B98,'Energy Prices'!$C$19:$C$24,0),MATCH(Calc_Proposed!BI$6,'Energy Prices'!$F$11:$CR$11,0))/100000,\"\")","v":""},{"$f":"IFERROR('Data Input - Proposed'!BN88*INDEX('Energy Prices'!$F$19:$CR$24,MATCH($B98,'Energy Prices'!$C$19:$C$24,0),MATCH(Calc_Proposed!BJ$6,'Energy Prices'!$F$11:$CR$11,0))/100000,\"\")","v":""},{"$f":"IFERROR('Data Input - Proposed'!BO88*INDEX('Energy Prices'!$F$19:$CR$24,MATCH($B98,'Energy Prices'!$C$19:$C$24,0),MATCH(Calc_Proposed!BK$6,'Energy Prices'!$F$11:$CR$11,0))/100000,\"\")","v":""},{"$f":"IFERROR('Data Input - Proposed'!BP88*INDEX('Energy Prices'!$F$19:$CR$24,MATCH($B98,'Energy Prices'!$C$19:$C$24,0),MATCH(Calc_Proposed!BL$6,'Energy Prices'!$F$11:$CR$11,0))/100000,\"\")","v":""},{"$f":"IFERROR('Data Input - Proposed'!BQ88*INDEX('Energy Prices'!$F$19:$CR$24,MATCH($B98,'Energy Prices'!$C$19:$C$24,0),MATCH(Calc_Proposed!BM$6,'Energy Prices'!$F$11:$CR$11,0))/100000,\"\")","v":""},{"$f":"IFERROR('Data Input - Proposed'!BR88*INDEX('Energy Prices'!$F$19:$CR$24,MATCH($B98,'Energy Prices'!$C$19:$C$24,0),MATCH(Calc_Proposed!BN$6,'Energy Prices'!$F$11:$CR$11,0))/100000,\"\")","v":""},{"$f":"IFERROR('Data Input - Proposed'!BS88*INDEX('Energy Prices'!$F$19:$CR$24,MATCH($B98,'Energy Prices'!$C$19:$C$24,0),MATCH(Calc_Proposed!BO$6,'Energy Prices'!$F$11:$CR$11,0))/100000,\"\")","v":""},{"$f":"IFERROR('Data Input - Proposed'!BT88*INDEX('Energy Prices'!$F$19:$CR$24,MATCH($B98,'Energy Prices'!$C$19:$C$24,0),MATCH(Calc_Proposed!BP$6,'Energy Prices'!$F$11:$CR$11,0))/100000,\"\")","v":""},{"$f":"IFERROR('Data Input - Proposed'!BU88*INDEX('Energy Prices'!$F$19:$CR$24,MATCH($B98,'Energy Prices'!$C$19:$C$24,0),MATCH(Calc_Proposed!BQ$6,'Energy Prices'!$F$11:$CR$11,0))/100000,\"\")","v":""},{"$f":"IFERROR('Data Input - Proposed'!BV88*INDEX('Energy Prices'!$F$19:$CR$24,MATCH($B98,'Energy Prices'!$C$19:$C$24,0),MATCH(Calc_Proposed!BR$6,'Energy Prices'!$F$11:$CR$11,0))/100000,\"\")","v":""},{"$f":"IFERROR('Data Input - Proposed'!BW88*INDEX('Energy Prices'!$F$19:$CR$24,MATCH($B98,'Energy Prices'!$C$19:$C$24,0),MATCH(Calc_Proposed!BS$6,'Energy Prices'!$F$11:$CR$11,0))/100000,\"\")","v":""},{"$f":"IFERROR('Data Input - Proposed'!BX88*INDEX('Energy Prices'!$F$19:$CR$24,MATCH($B98,'Energy Prices'!$C$19:$C$24,0),MATCH(Calc_Proposed!BT$6,'Energy Prices'!$F$11:$CR$11,0))/100000,\"\")","v":""},{"$f":"IFERROR('Data Input - Proposed'!BY88*INDEX('Energy Prices'!$F$19:$CR$24,MATCH($B98,'Energy Prices'!$C$19:$C$24,0),MATCH(Calc_Proposed!BU$6,'Energy Prices'!$F$11:$CR$11,0))/100000,\"\")","v":""},{"$f":"IFERROR('Data Input - Proposed'!BZ88*INDEX('Energy Prices'!$F$19:$CR$24,MATCH($B98,'Energy Prices'!$C$19:$C$24,0),MATCH(Calc_Proposed!BV$6,'Energy Prices'!$F$11:$CR$11,0))/100000,\"\")","v":""},{"$f":"IFERROR('Data Input - Proposed'!CA88*INDEX('Energy Prices'!$F$19:$CR$24,MATCH($B98,'Energy Prices'!$C$19:$C$24,0),MATCH(Calc_Proposed!BW$6,'Energy Prices'!$F$11:$CR$11,0))/100000,\"\")","v":""},{"$f":"IFERROR('Data Input - Proposed'!CB88*INDEX('Energy Prices'!$F$19:$CR$24,MATCH($B98,'Energy Prices'!$C$19:$C$24,0),MATCH(Calc_Proposed!BX$6,'Energy Prices'!$F$11:$CR$11,0))/100000,\"\")","v":""},{"$f":"IFERROR('Data Input - Proposed'!CC88*INDEX('Energy Prices'!$F$19:$CR$24,MATCH($B98,'Energy Prices'!$C$19:$C$24,0),MATCH(Calc_Proposed!BY$6,'Energy Prices'!$F$11:$CR$11,0))/100000,\"\")","v":""},{"$f":"IFERROR('Data Input - Proposed'!CD88*INDEX('Energy Prices'!$F$19:$CR$24,MATCH($B98,'Energy Prices'!$C$19:$C$24,0),MATCH(Calc_Proposed!BZ$6,'Energy Prices'!$F$11:$CR$11,0))/100000,\"\")","v":""},{"$f":"IFERROR('Data Input - Proposed'!CE88*INDEX('Energy Prices'!$F$19:$CR$24,MATCH($B98,'Energy Prices'!$C$19:$C$24,0),MATCH(Calc_Proposed!CA$6,'Energy Prices'!$F$11:$CR$11,0))/100000,\"\")","v":""},{"$f":"IFERROR('Data Input - Proposed'!CF88*INDEX('Energy Prices'!$F$19:$CR$24,MATCH($B98,'Energy Prices'!$C$19:$C$24,0),MATCH(Calc_Proposed!CB$6,'Energy Prices'!$F$11:$CR$11,0))/100000,\"\")","v":""},{"$f":"IFERROR('Data Input - Proposed'!CG88*INDEX('Energy Prices'!$F$19:$CR$24,MATCH($B98,'Energy Prices'!$C$19:$C$24,0),MATCH(Calc_Proposed!CC$6,'Energy Prices'!$F$11:$CR$11,0))/100000,\"\")","v":""},{"$f":"IFERROR('Data Input - Proposed'!CH88*INDEX('Energy Prices'!$F$19:$CR$24,MATCH($B98,'Energy Prices'!$C$19:$C$24,0),MATCH(Calc_Proposed!CD$6,'Energy Prices'!$F$11:$CR$11,0))/100000,\"\")","v":""},{"$f":"IFERROR('Data Input - Proposed'!CI88*INDEX('Energy Prices'!$F$19:$CR$24,MATCH($B98,'Energy Prices'!$C$19:$C$24,0),MATCH(Calc_Proposed!CE$6,'Energy Prices'!$F$11:$CR$11,0))/100000,\"\")","v":""},{"$f":"IFERROR('Data Input - Proposed'!CJ88*INDEX('Energy Prices'!$F$19:$CR$24,MATCH($B98,'Energy Prices'!$C$19:$C$24,0),MATCH(Calc_Proposed!CF$6,'Energy Prices'!$F$11:$CR$11,0))/100000,\"\")","v":""},{"$f":"IFERROR('Data Input - Proposed'!CK88*INDEX('Energy Prices'!$F$19:$CR$24,MATCH($B98,'Energy Prices'!$C$19:$C$24,0),MATCH(Calc_Proposed!CG$6,'Energy Prices'!$F$11:$CR$11,0))/100000,\"\")","v":""},{"$f":"IFERROR('Data Input - Proposed'!CL88*INDEX('Energy Prices'!$F$19:$CR$24,MATCH($B98,'Energy Prices'!$C$19:$C$24,0),MATCH(Calc_Proposed!CH$6,'Energy Prices'!$F$11:$CR$11,0))/100000,\"\")","v":""},{"$f":"IFERROR('Data Input - Proposed'!CM88*INDEX('Energy Prices'!$F$19:$CR$24,MATCH($B98,'Energy Prices'!$C$19:$C$24,0),MATCH(Calc_Proposed!CI$6,'Energy Prices'!$F$11:$CR$11,0))/100000,\"\")","v":""},{"$f":"IFERROR('Data Input - Proposed'!CN88*INDEX('Energy Prices'!$F$19:$CR$24,MATCH($B98,'Energy Prices'!$C$19:$C$24,0),MATCH(Calc_Proposed!CJ$6,'Energy Prices'!$F$11:$CR$11,0))/100000,\"\")","v":""},{"$f":"IFERROR('Data Input - Proposed'!CO88*INDEX('Energy Prices'!$F$19:$CR$24,MATCH($B98,'Energy Prices'!$C$19:$C$24,0),MATCH(Calc_Proposed!CK$6,'Energy Prices'!$F$11:$CR$11,0))/100000,\"\")","v":""},{"$f":"IFERROR('Data Input - Proposed'!CP88*INDEX('Energy Prices'!$F$19:$CR$24,MATCH($B98,'Energy Prices'!$C$19:$C$24,0),MATCH(Calc_Proposed!CL$6,'Energy Prices'!$F$11:$CR$11,0))/100000,\"\")","v":""},{"$f":"IFERROR('Data Input - Proposed'!CQ88*INDEX('Energy Prices'!$F$19:$CR$24,MATCH($B98,'Energy Prices'!$C$19:$C$24,0),MATCH(Calc_Proposed!CM$6,'Energy Prices'!$F$11:$CR$11,0))/100000,\"\")","v":""},{"$f":"IFERROR('Data Input - Proposed'!CR88*INDEX('Energy Prices'!$F$19:$CR$24,MATCH($B98,'Energy Prices'!$C$19:$C$24,0),MATCH(Calc_Proposed!CN$6,'Energy Prices'!$F$11:$CR$11,0))/100000,\"\")","v":""},{"$f":"IFERROR('Data Input - Proposed'!CS88*INDEX('Energy Prices'!$F$19:$CR$24,MATCH($B98,'Energy Prices'!$C$19:$C$24,0),MATCH(Calc_Proposed!CO$6,'Energy Prices'!$F$11:$CR$11,0))/100000,\"\")","v":""},{"$f":"IFERROR('Data Input - Proposed'!CT88*INDEX('Energy Prices'!$F$19:$CR$24,MATCH($B98,'Energy Prices'!$C$19:$C$24,0),MATCH(Calc_Proposed!CP$6,'Energy Prices'!$F$11:$CR$11,0))/100000,\"\")","v":""},{"$f":"IFERROR('Data Input - Proposed'!CU88*INDEX('Energy Prices'!$F$19:$CR$24,MATCH($B98,'Energy Prices'!$C$19:$C$24,0),MATCH(Calc_Proposed!CQ$6,'Energy Prices'!$F$11:$CR$11,0))/100000,\"\")","v":""},{"$f":"IFERROR('Data Input - Proposed'!CV88*INDEX('Energy Prices'!$F$19:$CR$24,MATCH($B98,'Energy Prices'!$C$19:$C$24,0),MATCH(Calc_Proposed!CR$6,'Energy Prices'!$F$11:$CR$11,0))/100000,\"\")","v":""},{"$f":"IFERROR('Data Input - Proposed'!CW88*INDEX('Energy Prices'!$F$19:$CR$24,MATCH($B98,'Energy Prices'!$C$19:$C$24,0),MATCH(Calc_Proposed!CS$6,'Energy Prices'!$F$11:$CR$11,0))/100000,\"\")","v":""},{"$f":"IFERROR('Data Input - Proposed'!CX88*INDEX('Energy Prices'!$F$19:$CR$24,MATCH($B98,'Energy Prices'!$C$19:$C$24,0),MATCH(Calc_Proposed!CT$6,'Energy Prices'!$F$11:$CR$11,0))/100000,\"\")","v":""},{"$f":"IFERROR('Data Input - Proposed'!CY88*INDEX('Energy Prices'!$F$19:$CR$24,MATCH($B98,'Energy Prices'!$C$19:$C$24,0),MATCH(Calc_Proposed!CU$6,'Energy Prices'!$F$11:$CR$11,0))/100000,\"\")","v":""},{"$f":"IFERROR('Data Input - Proposed'!CZ88*INDEX('Energy Prices'!$F$19:$CR$24,MATCH($B98,'Energy Prices'!$C$19:$C$24,0),MATCH(Calc_Proposed!CV$6,'Energy Prices'!$F$11:$CR$11,0))/100000,\"\")","v":""},{"$f":"IFERROR('Data Input - Proposed'!DA88*INDEX('Energy Prices'!$F$19:$CR$24,MATCH($B98,'Energy Prices'!$C$19:$C$24,0),MATCH(Calc_Proposed!CW$6,'Energy Prices'!$F$11:$CR$11,0))/100000,\"\")","v":""},{"$f":"IFERROR('Data Input - Proposed'!DB88*INDEX('Energy Prices'!$F$19:$CR$24,MATCH($B98,'Energy Prices'!$C$19:$C$24,0),MATCH(Calc_Proposed!CX$6,'Energy Prices'!$F$11:$CR$11,0))/100000,\"\")","v":""},{"$f":"IFERROR('Data Input - Proposed'!DC88*INDEX('Energy Prices'!$F$19:$CR$24,MATCH($B98,'Energy Prices'!$C$19:$C$24,0),MATCH(Calc_Proposed!CY$6,'Energy Prices'!$F$11:$CR$11,0))/100000,\"\")","v":""}]
[null,"Road - Diesel","£000's",{"$f":"IFERROR('Data Input - Proposed'!H89*INDEX('Energy Prices'!$F$19:$CR$24,MATCH($B99,'Energy Prices'!$C$19:$C$24,0),MATCH(Calc_Proposed!D$6,'Energy Prices'!$F$11:$CR$11,0))/100000,\"\")","v":0},{"$f":"IFERROR('Data Input - Proposed'!I89*INDEX('Energy Prices'!$F$19:$CR$24,MATCH($B99,'Energy Prices'!$C$19:$C$24,0),MATCH(Calc_Proposed!E$6,'Energy Prices'!$F$11:$CR$11,0))/100000,\"\")","v":0},{"$f":"IFERROR('Data Input - Proposed'!J89*INDEX('Energy Prices'!$F$19:$CR$24,MATCH($B99,'Energy Prices'!$C$19:$C$24,0),MATCH(Calc_Proposed!F$6,'Energy Prices'!$F$11:$CR$11,0))/100000,\"\")","v":0},{"$f":"IFERROR('Data Input - Proposed'!K89*INDEX('Energy Prices'!$F$19:$CR$24,MATCH($B99,'Energy Prices'!$C$19:$C$24,0),MATCH(Calc_Proposed!G$6,'Energy Prices'!$F$11:$CR$11,0))/100000,\"\")","v":0},{"$f":"IFERROR('Data Input - Proposed'!L89*INDEX('Energy Prices'!$F$19:$CR$24,MATCH($B99,'Energy Prices'!$C$19:$C$24,0),MATCH(Calc_Proposed!H$6,'Energy Prices'!$F$11:$CR$11,0))/100000,\"\")","v":0},{"$f":"IFERROR('Data Input - Proposed'!M89*INDEX('Energy Prices'!$F$19:$CR$24,MATCH($B99,'Energy Prices'!$C$19:$C$24,0),MATCH(Calc_Proposed!I$6,'Energy Prices'!$F$11:$CR$11,0))/100000,\"\")","v":0},{"$f":"IFERROR('Data Input - Proposed'!N89*INDEX('Energy Prices'!$F$19:$CR$24,MATCH($B99,'Energy Prices'!$C$19:$C$24,0),MATCH(Calc_Proposed!J$6,'Energy Prices'!$F$11:$CR$11,0))/100000,\"\")","v":0},{"$f":"IFERROR('Data Input - Proposed'!O89*INDEX('Energy Prices'!$F$19:$CR$24,MATCH($B99,'Energy Prices'!$C$19:$C$24,0),MATCH(Calc_Proposed!K$6,'Energy Prices'!$F$11:$CR$11,0))/100000,\"\")","v":0},{"$f":"IFERROR('Data Input - Proposed'!P89*INDEX('Energy Prices'!$F$19:$CR$24,MATCH($B99,'Energy Prices'!$C$19:$C$24,0),MATCH(Calc_Proposed!L$6,'Energy Prices'!$F$11:$CR$11,0))/100000,\"\")","v":0},{"$f":"IFERROR('Data Input - Proposed'!Q89*INDEX('Energy Prices'!$F$19:$CR$24,MATCH($B99,'Energy Prices'!$C$19:$C$24,0),MATCH(Calc_Proposed!M$6,'Energy Prices'!$F$11:$CR$11,0))/100000,\"\")","v":0},{"$f":"IFERROR('Data Input - Proposed'!R89*INDEX('Energy Prices'!$F$19:$CR$24,MATCH($B99,'Energy Prices'!$C$19:$C$24,0),MATCH(Calc_Proposed!N$6,'Energy Prices'!$F$11:$CR$11,0))/100000,\"\")","v":0},{"$f":"IFERROR('Data Input - Proposed'!S89*INDEX('Energy Prices'!$F$19:$CR$24,MATCH($B99,'Energy Prices'!$C$19:$C$24,0),MATCH(Calc_Proposed!O$6,'Energy Prices'!$F$11:$CR$11,0))/100000,\"\")","v":0},{"$f":"IFERROR('Data Input - Proposed'!T89*INDEX('Energy Prices'!$F$19:$CR$24,MATCH($B99,'Energy Prices'!$C$19:$C$24,0),MATCH(Calc_Proposed!P$6,'Energy Prices'!$F$11:$CR$11,0))/100000,\"\")","v":0},{"$f":"IFERROR('Data Input - Proposed'!U89*INDEX('Energy Prices'!$F$19:$CR$24,MATCH($B99,'Energy Prices'!$C$19:$C$24,0),MATCH(Calc_Proposed!Q$6,'Energy Prices'!$F$11:$CR$11,0))/100000,\"\")","v":0},{"$f":"IFERROR('Data Input - Proposed'!V89*INDEX('Energy Prices'!$F$19:$CR$24,MATCH($B99,'Energy Prices'!$C$19:$C$24,0),MATCH(Calc_Proposed!R$6,'Energy Prices'!$F$11:$CR$11,0))/100000,\"\")","v":0},{"$f":"IFERROR('Data Input - Proposed'!W89*INDEX('Energy Prices'!$F$19:$CR$24,MATCH($B99,'Energy Prices'!$C$19:$C$24,0),MATCH(Calc_Proposed!S$6,'Energy Prices'!$F$11:$CR$11,0))/100000,\"\")","v":0},{"$f":"IFERROR('Data Input - Proposed'!X89*INDEX('Energy Prices'!$F$19:$CR$24,MATCH($B99,'Energy Prices'!$C$19:$C$24,0),MATCH(Calc_Proposed!T$6,'Energy Prices'!$F$11:$CR$11,0))/100000,\"\")","v":0},{"$f":"IFERROR('Data Input - Proposed'!Y89*INDEX('Energy Prices'!$F$19:$CR$24,MATCH($B99,'Energy Prices'!$C$19:$C$24,0),MATCH(Calc_Proposed!U$6,'Energy Prices'!$F$11:$CR$11,0))/100000,\"\")","v":0},{"$f":"IFERROR('Data Input - Proposed'!Z89*INDEX('Energy Prices'!$F$19:$CR$24,MATCH($B99,'Energy Prices'!$C$19:$C$24,0),MATCH(Calc_Proposed!V$6,'Energy Prices'!$F$11:$CR$11,0))/100000,\"\")","v":0},{"$f":"IFERROR('Data Input - Proposed'!AA89*INDEX('Energy Prices'!$F$19:$CR$24,MATCH($B99,'Energy Prices'!$C$19:$C$24,0),MATCH(Calc_Proposed!W$6,'Energy Prices'!$F$11:$CR$11,0))/100000,\"\")","v":0},{"$f":"IFERROR('Data Input - Proposed'!AB89*INDEX('Energy Prices'!$F$19:$CR$24,MATCH($B99,'Energy Prices'!$C$19:$C$24,0),MATCH(Calc_Proposed!X$6,'Energy Prices'!$F$11:$CR$11,0))/100000,\"\")","v":0},{"$f":"IFERROR('Data Input - Proposed'!AC89*INDEX('Energy Prices'!$F$19:$CR$24,MATCH($B99,'Energy Prices'!$C$19:$C$24,0),MATCH(Calc_Proposed!Y$6,'Energy Prices'!$F$11:$CR$11,0))/100000,\"\")","v":0},{"$f":"IFERROR('Data Input - Proposed'!AD89*INDEX('Energy Prices'!$F$19:$CR$24,MATCH($B99,'Energy Prices'!$C$19:$C$24,0),MATCH(Calc_Proposed!Z$6,'Energy Prices'!$F$11:$CR$11,0))/100000,\"\")","v":0},{"$f":"IFERROR('Data Input - Proposed'!AE89*INDEX('Energy Prices'!$F$19:$CR$24,MATCH($B99,'Energy Prices'!$C$19:$C$24,0),MATCH(Calc_Proposed!AA$6,'Energy Prices'!$F$11:$CR$11,0))/100000,\"\")","v":0},{"$f":"IFERROR('Data Input - Proposed'!AF89*INDEX('Energy Prices'!$F$19:$CR$24,MATCH($B99,'Energy Prices'!$C$19:$C$24,0),MATCH(Calc_Proposed!AB$6,'Energy Prices'!$F$11:$CR$11,0))/100000,\"\")","v":0},{"$f":"IFERROR('Data Input - Proposed'!AG89*INDEX('Energy Prices'!$F$19:$CR$24,MATCH($B99,'Energy Prices'!$C$19:$C$24,0),MATCH(Calc_Proposed!AC$6,'Energy Prices'!$F$11:$CR$11,0))/100000,\"\")","v":0},{"$f":"IFERROR('Data Input - Proposed'!AH89*INDEX('Energy Prices'!$F$19:$CR$24,MATCH($B99,'Energy Prices'!$C$19:$C$24,0),MATCH(Calc_Proposed!AD$6,'Energy Prices'!$F$11:$CR$11,0))/100000,\"\")","v":0},{"$f":"IFERROR('Data Input - Proposed'!AI89*INDEX('Energy Prices'!$F$19:$CR$24,MATCH($B99,'Energy Prices'!$C$19:$C$24,0),MATCH(Calc_Proposed!AE$6,'Energy Prices'!$F$11:$CR$11,0))/100000,\"\")","v":0},{"$f":"IFERROR('Data Input - Proposed'!AJ89*INDEX('Energy Prices'!$F$19:$CR$24,MATCH($B99,'Energy Prices'!$C$19:$C$24,0),MATCH(Calc_Proposed!AF$6,'Energy Prices'!$F$11:$CR$11,0))/100000,\"\")","v":0},{"$f":"IFERROR('Data Input - Proposed'!AK89*INDEX('Energy Prices'!$F$19:$CR$24,MATCH($B99,'Energy Prices'!$C$19:$C$24,0),MATCH(Calc_Proposed!AG$6,'Energy Prices'!$F$11:$CR$11,0))/100000,\"\")","v":0},{"$f":"IFERROR('Data Input - Proposed'!AL89*INDEX('Energy Prices'!$F$19:$CR$24,MATCH($B99,'Energy Prices'!$C$19:$C$24,0),MATCH(Calc_Proposed!AH$6,'Energy Prices'!$F$11:$CR$11,0))/100000,\"\")","v":0},{"$f":"IFERROR('Data Input - Proposed'!AM89*INDEX('Energy Prices'!$F$19:$CR$24,MATCH($B99,'Energy Prices'!$C$19:$C$24,0),MATCH(Calc_Proposed!AI$6,'Energy Prices'!$F$11:$CR$11,0))/100000,\"\")","v":""},{"$f":"IFERROR('Data Input - Proposed'!AN89*INDEX('Energy Prices'!$F$19:$CR$24,MATCH($B99,'Energy Prices'!$C$19:$C$24,0),MATCH(Calc_Proposed!AJ$6,'Energy Prices'!$F$11:$CR$11,0))/100000,\"\")","v":""},{"$f":"IFERROR('Data Input - Proposed'!AO89*INDEX('Energy Prices'!$F$19:$CR$24,MATCH($B99,'Energy Prices'!$C$19:$C$24,0),MATCH(Calc_Proposed!AK$6,'Energy Prices'!$F$11:$CR$11,0))/100000,\"\")","v":""},{"$f":"IFERROR('Data Input - Proposed'!AP89*INDEX('Energy Prices'!$F$19:$CR$24,MATCH($B99,'Energy Prices'!$C$19:$C$24,0),MATCH(Calc_Proposed!AL$6,'Energy Prices'!$F$11:$CR$11,0))/100000,\"\")","v":""},{"$f":"IFERROR('Data Input - Proposed'!AQ89*INDEX('Energy Prices'!$F$19:$CR$24,MATCH($B99,'Energy Prices'!$C$19:$C$24,0),MATCH(Calc_Proposed!AM$6,'Energy Prices'!$F$11:$CR$11,0))/100000,\"\")","v":""},{"$f":"IFERROR('Data Input - Proposed'!AR89*INDEX('Energy Prices'!$F$19:$CR$24,MATCH($B99,'Energy Prices'!$C$19:$C$24,0),MATCH(Calc_Proposed!AN$6,'Energy Prices'!$F$11:$CR$11,0))/100000,\"\")","v":""},{"$f":"IFERROR('Data Input - Proposed'!AS89*INDEX('Energy Prices'!$F$19:$CR$24,MATCH($B99,'Energy Prices'!$C$19:$C$24,0),MATCH(Calc_Proposed!AO$6,'Energy Prices'!$F$11:$CR$11,0))/100000,\"\")","v":""},{"$f":"IFERROR('Data Input - Proposed'!AT89*INDEX('Energy Prices'!$F$19:$CR$24,MATCH($B99,'Energy Prices'!$C$19:$C$24,0),MATCH(Calc_Proposed!AP$6,'Energy Prices'!$F$11:$CR$11,0))/100000,\"\")","v":""},{"$f":"IFERROR('Data Input - Proposed'!AU89*INDEX('Energy Prices'!$F$19:$CR$24,MATCH($B99,'Energy Prices'!$C$19:$C$24,0),MATCH(Calc_Proposed!AQ$6,'Energy Prices'!$F$11:$CR$11,0))/100000,\"\")","v":""},{"$f":"IFERROR('Data Input - Proposed'!AV89*INDEX('Energy Prices'!$F$19:$CR$24,MATCH($B99,'Energy Prices'!$C$19:$C$24,0),MATCH(Calc_Proposed!AR$6,'Energy Prices'!$F$11:$CR$11,0))/100000,\"\")","v":""},{"$f":"IFERROR('Data Input - Proposed'!AW89*INDEX('Energy Prices'!$F$19:$CR$24,MATCH($B99,'Energy Prices'!$C$19:$C$24,0),MATCH(Calc_Proposed!AS$6,'Energy Prices'!$F$11:$CR$11,0))/100000,\"\")","v":""},{"$f":"IFERROR('Data Input - Proposed'!AX89*INDEX('Energy Prices'!$F$19:$CR$24,MATCH($B99,'Energy Prices'!$C$19:$C$24,0),MATCH(Calc_Proposed!AT$6,'Energy Prices'!$F$11:$CR$11,0))/100000,\"\")","v":""},{"$f":"IFERROR('Data Input - Proposed'!AY89*INDEX('Energy Prices'!$F$19:$CR$24,MATCH($B99,'Energy Prices'!$C$19:$C$24,0),MATCH(Calc_Proposed!AU$6,'Energy Prices'!$F$11:$CR$11,0))/100000,\"\")","v":""},{"$f":"IFERROR('Data Input - Proposed'!AZ89*INDEX('Energy Prices'!$F$19:$CR$24,MATCH($B99,'Energy Prices'!$C$19:$C$24,0),MATCH(Calc_Proposed!AV$6,'Energy Prices'!$F$11:$CR$11,0))/100000,\"\")","v":""},{"$f":"IFERROR('Data Input - Proposed'!BA89*INDEX('Energy Prices'!$F$19:$CR$24,MATCH($B99,'Energy Prices'!$C$19:$C$24,0),MATCH(Calc_Proposed!AW$6,'Energy Prices'!$F$11:$CR$11,0))/100000,\"\")","v":""},{"$f":"IFERROR('Data Input - Proposed'!BB89*INDEX('Energy Prices'!$F$19:$CR$24,MATCH($B99,'Energy Prices'!$C$19:$C$24,0),MATCH(Calc_Proposed!AX$6,'Energy Prices'!$F$11:$CR$11,0))/100000,\"\")","v":""},{"$f":"IFERROR('Data Input - Proposed'!BC89*INDEX('Energy Prices'!$F$19:$CR$24,MATCH($B99,'Energy Prices'!$C$19:$C$24,0),MATCH(Calc_Proposed!AY$6,'Energy Prices'!$F$11:$CR$11,0))/100000,\"\")","v":""},{"$f":"IFERROR('Data Input - Proposed'!BD89*INDEX('Energy Prices'!$F$19:$CR$24,MATCH($B99,'Energy Prices'!$C$19:$C$24,0),MATCH(Calc_Proposed!AZ$6,'Energy Prices'!$F$11:$CR$11,0))/100000,\"\")","v":""},{"$f":"IFERROR('Data Input - Proposed'!BE89*INDEX('Energy Prices'!$F$19:$CR$24,MATCH($B99,'Energy Prices'!$C$19:$C$24,0),MATCH(Calc_Proposed!BA$6,'Energy Prices'!$F$11:$CR$11,0))/100000,\"\")","v":""},{"$f":"IFERROR('Data Input - Proposed'!BF89*INDEX('Energy Prices'!$F$19:$CR$24,MATCH($B99,'Energy Prices'!$C$19:$C$24,0),MATCH(Calc_Proposed!BB$6,'Energy Prices'!$F$11:$CR$11,0))/100000,\"\")","v":""},{"$f":"IFERROR('Data Input - Proposed'!BG89*INDEX('Energy Prices'!$F$19:$CR$24,MATCH($B99,'Energy Prices'!$C$19:$C$24,0),MATCH(Calc_Proposed!BC$6,'Energy Prices'!$F$11:$CR$11,0))/100000,\"\")","v":""},{"$f":"IFERROR('Data Input - Proposed'!BH89*INDEX('Energy Prices'!$F$19:$CR$24,MATCH($B99,'Energy Prices'!$C$19:$C$24,0),MATCH(Calc_Proposed!BD$6,'Energy Prices'!$F$11:$CR$11,0))/100000,\"\")","v":""},{"$f":"IFERROR('Data Input - Proposed'!BI89*INDEX('Energy Prices'!$F$19:$CR$24,MATCH($B99,'Energy Prices'!$C$19:$C$24,0),MATCH(Calc_Proposed!BE$6,'Energy Prices'!$F$11:$CR$11,0))/100000,\"\")","v":""},{"$f":"IFERROR('Data Input - Proposed'!BJ89*INDEX('Energy Prices'!$F$19:$CR$24,MATCH($B99,'Energy Prices'!$C$19:$C$24,0),MATCH(Calc_Proposed!BF$6,'Energy Prices'!$F$11:$CR$11,0))/100000,\"\")","v":""},{"$f":"IFERROR('Data Input - Proposed'!BK89*INDEX('Energy Prices'!$F$19:$CR$24,MATCH($B99,'Energy Prices'!$C$19:$C$24,0),MATCH(Calc_Proposed!BG$6,'Energy Prices'!$F$11:$CR$11,0))/100000,\"\")","v":""},{"$f":"IFERROR('Data Input - Proposed'!BL89*INDEX('Energy Prices'!$F$19:$CR$24,MATCH($B99,'Energy Prices'!$C$19:$C$24,0),MATCH(Calc_Proposed!BH$6,'Energy Prices'!$F$11:$CR$11,0))/100000,\"\")","v":""},{"$f":"IFERROR('Data Input - Proposed'!BM89*INDEX('Energy Prices'!$F$19:$CR$24,MATCH($B99,'Energy Prices'!$C$19:$C$24,0),MATCH(Calc_Proposed!BI$6,'Energy Prices'!$F$11:$CR$11,0))/100000,\"\")","v":""},{"$f":"IFERROR('Data Input - Proposed'!BN89*INDEX('Energy Prices'!$F$19:$CR$24,MATCH($B99,'Energy Prices'!$C$19:$C$24,0),MATCH(Calc_Proposed!BJ$6,'Energy Prices'!$F$11:$CR$11,0))/100000,\"\")","v":""},{"$f":"IFERROR('Data Input - Proposed'!BO89*INDEX('Energy Prices'!$F$19:$CR$24,MATCH($B99,'Energy Prices'!$C$19:$C$24,0),MATCH(Calc_Proposed!BK$6,'Energy Prices'!$F$11:$CR$11,0))/100000,\"\")","v":""},{"$f":"IFERROR('Data Input - Proposed'!BP89*INDEX('Energy Prices'!$F$19:$CR$24,MATCH($B99,'Energy Prices'!$C$19:$C$24,0),MATCH(Calc_Proposed!BL$6,'Energy Prices'!$F$11:$CR$11,0))/100000,\"\")","v":""},{"$f":"IFERROR('Data Input - Proposed'!BQ89*INDEX('Energy Prices'!$F$19:$CR$24,MATCH($B99,'Energy Prices'!$C$19:$C$24,0),MATCH(Calc_Proposed!BM$6,'Energy Prices'!$F$11:$CR$11,0))/100000,\"\")","v":""},{"$f":"IFERROR('Data Input - Proposed'!BR89*INDEX('Energy Prices'!$F$19:$CR$24,MATCH($B99,'Energy Prices'!$C$19:$C$24,0),MATCH(Calc_Proposed!BN$6,'Energy Prices'!$F$11:$CR$11,0))/100000,\"\")","v":""},{"$f":"IFERROR('Data Input - Proposed'!BS89*INDEX('Energy Prices'!$F$19:$CR$24,MATCH($B99,'Energy Prices'!$C$19:$C$24,0),MATCH(Calc_Proposed!BO$6,'Energy Prices'!$F$11:$CR$11,0))/100000,\"\")","v":""},{"$f":"IFERROR('Data Input - Proposed'!BT89*INDEX('Energy Prices'!$F$19:$CR$24,MATCH($B99,'Energy Prices'!$C$19:$C$24,0),MATCH(Calc_Proposed!BP$6,'Energy Prices'!$F$11:$CR$11,0))/100000,\"\")","v":""},{"$f":"IFERROR('Data Input - Proposed'!BU89*INDEX('Energy Prices'!$F$19:$CR$24,MATCH($B99,'Energy Prices'!$C$19:$C$24,0),MATCH(Calc_Proposed!BQ$6,'Energy Prices'!$F$11:$CR$11,0))/100000,\"\")","v":""},{"$f":"IFERROR('Data Input - Proposed'!BV89*INDEX('Energy Prices'!$F$19:$CR$24,MATCH($B99,'Energy Prices'!$C$19:$C$24,0),MATCH(Calc_Proposed!BR$6,'Energy Prices'!$F$11:$CR$11,0))/100000,\"\")","v":""},{"$f":"IFERROR('Data Input - Proposed'!BW89*INDEX('Energy Prices'!$F$19:$CR$24,MATCH($B99,'Energy Prices'!$C$19:$C$24,0),MATCH(Calc_Proposed!BS$6,'Energy Prices'!$F$11:$CR$11,0))/100000,\"\")","v":""},{"$f":"IFERROR('Data Input - Proposed'!BX89*INDEX('Energy Prices'!$F$19:$CR$24,MATCH($B99,'Energy Prices'!$C$19:$C$24,0),MATCH(Calc_Proposed!BT$6,'Energy Prices'!$F$11:$CR$11,0))/100000,\"\")","v":""},{"$f":"IFERROR('Data Input - Proposed'!BY89*INDEX('Energy Prices'!$F$19:$CR$24,MATCH($B99,'Energy Prices'!$C$19:$C$24,0),MATCH(Calc_Proposed!BU$6,'Energy Prices'!$F$11:$CR$11,0))/100000,\"\")","v":""},{"$f":"IFERROR('Data Input - Proposed'!BZ89*INDEX('Energy Prices'!$F$19:$CR$24,MATCH($B99,'Energy Prices'!$C$19:$C$24,0),MATCH(Calc_Proposed!BV$6,'Energy Prices'!$F$11:$CR$11,0))/100000,\"\")","v":""},{"$f":"IFERROR('Data Input - Proposed'!CA89*INDEX('Energy Prices'!$F$19:$CR$24,MATCH($B99,'Energy Prices'!$C$19:$C$24,0),MATCH(Calc_Proposed!BW$6,'Energy Prices'!$F$11:$CR$11,0))/100000,\"\")","v":""},{"$f":"IFERROR('Data Input - Proposed'!CB89*INDEX('Energy Prices'!$F$19:$CR$24,MATCH($B99,'Energy Prices'!$C$19:$C$24,0),MATCH(Calc_Proposed!BX$6,'Energy Prices'!$F$11:$CR$11,0))/100000,\"\")","v":""},{"$f":"IFERROR('Data Input - Proposed'!CC89*INDEX('Energy Prices'!$F$19:$CR$24,MATCH($B99,'Energy Prices'!$C$19:$C$24,0),MATCH(Calc_Proposed!BY$6,'Energy Prices'!$F$11:$CR$11,0))/100000,\"\")","v":""},{"$f":"IFERROR('Data Input - Proposed'!CD89*INDEX('Energy Prices'!$F$19:$CR$24,MATCH($B99,'Energy Prices'!$C$19:$C$24,0),MATCH(Calc_Proposed!BZ$6,'Energy Prices'!$F$11:$CR$11,0))/100000,\"\")","v":""},{"$f":"IFERROR('Data Input - Proposed'!CE89*INDEX('Energy Prices'!$F$19:$CR$24,MATCH($B99,'Energy Prices'!$C$19:$C$24,0),MATCH(Calc_Proposed!CA$6,'Energy Prices'!$F$11:$CR$11,0))/100000,\"\")","v":""},{"$f":"IFERROR('Data Input - Proposed'!CF89*INDEX('Energy Prices'!$F$19:$CR$24,MATCH($B99,'Energy Prices'!$C$19:$C$24,0),MATCH(Calc_Proposed!CB$6,'Energy Prices'!$F$11:$CR$11,0))/100000,\"\")","v":""},{"$f":"IFERROR('Data Input - Proposed'!CG89*INDEX('Energy Prices'!$F$19:$CR$24,MATCH($B99,'Energy Prices'!$C$19:$C$24,0),MATCH(Calc_Proposed!CC$6,'Energy Prices'!$F$11:$CR$11,0))/100000,\"\")","v":""},{"$f":"IFERROR('Data Input - Proposed'!CH89*INDEX('Energy Prices'!$F$19:$CR$24,MATCH($B99,'Energy Prices'!$C$19:$C$24,0),MATCH(Calc_Proposed!CD$6,'Energy Prices'!$F$11:$CR$11,0))/100000,\"\")","v":""},{"$f":"IFERROR('Data Input - Proposed'!CI89*INDEX('Energy Prices'!$F$19:$CR$24,MATCH($B99,'Energy Prices'!$C$19:$C$24,0),MATCH(Calc_Proposed!CE$6,'Energy Prices'!$F$11:$CR$11,0))/100000,\"\")","v":""},{"$f":"IFERROR('Data Input - Proposed'!CJ89*INDEX('Energy Prices'!$F$19:$CR$24,MATCH($B99,'Energy Prices'!$C$19:$C$24,0),MATCH(Calc_Proposed!CF$6,'Energy Prices'!$F$11:$CR$11,0))/100000,\"\")","v":""},{"$f":"IFERROR('Data Input - Proposed'!CK89*INDEX('Energy Prices'!$F$19:$CR$24,MATCH($B99,'Energy Prices'!$C$19:$C$24,0),MATCH(Calc_Proposed!CG$6,'Energy Prices'!$F$11:$CR$11,0))/100000,\"\")","v":""},{"$f":"IFERROR('Data Input - Proposed'!CL89*INDEX('Energy Prices'!$F$19:$CR$24,MATCH($B99,'Energy Prices'!$C$19:$C$24,0),MATCH(Calc_Proposed!CH$6,'Energy Prices'!$F$11:$CR$11,0))/100000,\"\")","v":""},{"$f":"IFERROR('Data Input - Proposed'!CM89*INDEX('Energy Prices'!$F$19:$CR$24,MATCH($B99,'Energy Prices'!$C$19:$C$24,0),MATCH(Calc_Proposed!CI$6,'Energy Prices'!$F$11:$CR$11,0))/100000,\"\")","v":""},{"$f":"IFERROR('Data Input - Proposed'!CN89*INDEX('Energy Prices'!$F$19:$CR$24,MATCH($B99,'Energy Prices'!$C$19:$C$24,0),MATCH(Calc_Proposed!CJ$6,'Energy Prices'!$F$11:$CR$11,0))/100000,\"\")","v":""},{"$f":"IFERROR('Data Input - Proposed'!CO89*INDEX('Energy Prices'!$F$19:$CR$24,MATCH($B99,'Energy Prices'!$C$19:$C$24,0),MATCH(Calc_Proposed!CK$6,'Energy Prices'!$F$11:$CR$11,0))/100000,\"\")","v":""},{"$f":"IFERROR('Data Input - Proposed'!CP89*INDEX('Energy Prices'!$F$19:$CR$24,MATCH($B99,'Energy Prices'!$C$19:$C$24,0),MATCH(Calc_Proposed!CL$6,'Energy Prices'!$F$11:$CR$11,0))/100000,\"\")","v":""},{"$f":"IFERROR('Data Input - Proposed'!CQ89*INDEX('Energy Prices'!$F$19:$CR$24,MATCH($B99,'Energy Prices'!$C$19:$C$24,0),MATCH(Calc_Proposed!CM$6,'Energy Prices'!$F$11:$CR$11,0))/100000,\"\")","v":""},{"$f":"IFERROR('Data Input - Proposed'!CR89*INDEX('Energy Prices'!$F$19:$CR$24,MATCH($B99,'Energy Prices'!$C$19:$C$24,0),MATCH(Calc_Proposed!CN$6,'Energy Prices'!$F$11:$CR$11,0))/100000,\"\")","v":""},{"$f":"IFERROR('Data Input - Proposed'!CS89*INDEX('Energy Prices'!$F$19:$CR$24,MATCH($B99,'Energy Prices'!$C$19:$C$24,0),MATCH(Calc_Proposed!CO$6,'Energy Prices'!$F$11:$CR$11,0))/100000,\"\")","v":""},{"$f":"IFERROR('Data Input - Proposed'!CT89*INDEX('Energy Prices'!$F$19:$CR$24,MATCH($B99,'Energy Prices'!$C$19:$C$24,0),MATCH(Calc_Proposed!CP$6,'Energy Prices'!$F$11:$CR$11,0))/100000,\"\")","v":""},{"$f":"IFERROR('Data Input - Proposed'!CU89*INDEX('Energy Prices'!$F$19:$CR$24,MATCH($B99,'Energy Prices'!$C$19:$C$24,0),MATCH(Calc_Proposed!CQ$6,'Energy Prices'!$F$11:$CR$11,0))/100000,\"\")","v":""},{"$f":"IFERROR('Data Input - Proposed'!CV89*INDEX('Energy Prices'!$F$19:$CR$24,MATCH($B99,'Energy Prices'!$C$19:$C$24,0),MATCH(Calc_Proposed!CR$6,'Energy Prices'!$F$11:$CR$11,0))/100000,\"\")","v":""},{"$f":"IFERROR('Data Input - Proposed'!CW89*INDEX('Energy Prices'!$F$19:$CR$24,MATCH($B99,'Energy Prices'!$C$19:$C$24,0),MATCH(Calc_Proposed!CS$6,'Energy Prices'!$F$11:$CR$11,0))/100000,\"\")","v":""},{"$f":"IFERROR('Data Input - Proposed'!CX89*INDEX('Energy Prices'!$F$19:$CR$24,MATCH($B99,'Energy Prices'!$C$19:$C$24,0),MATCH(Calc_Proposed!CT$6,'Energy Prices'!$F$11:$CR$11,0))/100000,\"\")","v":""},{"$f":"IFERROR('Data Input - Proposed'!CY89*INDEX('Energy Prices'!$F$19:$CR$24,MATCH($B99,'Energy Prices'!$C$19:$C$24,0),MATCH(Calc_Proposed!CU$6,'Energy Prices'!$F$11:$CR$11,0))/100000,\"\")","v":""},{"$f":"IFERROR('Data Input - Proposed'!CZ89*INDEX('Energy Prices'!$F$19:$CR$24,MATCH($B99,'Energy Prices'!$C$19:$C$24,0),MATCH(Calc_Proposed!CV$6,'Energy Prices'!$F$11:$CR$11,0))/100000,\"\")","v":""},{"$f":"IFERROR('Data Input - Proposed'!DA89*INDEX('Energy Prices'!$F$19:$CR$24,MATCH($B99,'Energy Prices'!$C$19:$C$24,0),MATCH(Calc_Proposed!CW$6,'Energy Prices'!$F$11:$CR$11,0))/100000,\"\")","v":""},{"$f":"IFERROR('Data Input - Proposed'!DB89*INDEX('Energy Prices'!$F$19:$CR$24,MATCH($B99,'Energy Prices'!$C$19:$C$24,0),MATCH(Calc_Proposed!CX$6,'Energy Prices'!$F$11:$CR$11,0))/100000,\"\")","v":""},{"$f":"IFERROR('Data Input - Proposed'!DC89*INDEX('Energy Prices'!$F$19:$CR$24,MATCH($B99,'Energy Prices'!$C$19:$C$24,0),MATCH(Calc_Proposed!CY$6,'Energy Prices'!$F$11:$CR$11,0))/100000,\"\")","v":""}]
[]
[null,"Discounted energy","£000's",{"$f":"SUM(D94:D99)*D$7","v":1196.4511056894355},{"$f":"SUM(E94:E99)*E$7","v":1235.2266830447447},1237.5317388910346,1263.2523227589265,1257.0448069224751,1280.8443650187978,1293.4378064394352,1273.2188464675962,0,0,0,0,0,0,0,0,0,0,0,0,0,0,0,0,0,0,0,0,0,0,0,0,0,0,0,0,0,0,0,0,0,0,0,0,0,0,0,0,0,0,0,0,0,0,0,0,0,0,0,0,{"$f":"SUM(BL94:BL99)*BL$7","v":0},0,0,0,0,0,0,0,0,0,0,0,0,0,0,0,0,0,0,0,0,0,0,0,0,0,0,0,0,0,0,0,0,0,0,0,0,0,0,0]
[]
[null,"Air pollutant emissions- value"]
[null,{"$f":"B61","v":"Sox 2019"},"£000's",{"$f":"IFERROR(IF(OR($C$110=FALSE,LEFT($B104,3)<>\"NOX\"),D53*INDEX('Damage costs'!$W$16:$W$43,MATCH($B104,'Damage costs'!$C$16:$C$43,0))/1000,D53*INDEX('Damage costs'!$AA$16:$AA$43,MATCH($B104,'Damage costs'!$C$16:$C$43,0))/1000),\"\")","v":1.6028522278070398},{"$f":"IFERROR(IF(OR($C$110=FALSE,LEFT($B104,3)<>\"NOX\"),E53*INDEX('Damage costs'!$W$16:$W$43,MATCH($B104,'Damage costs'!$C$16:$C$43,0))/1000,E53*INDEX('Damage costs'!$AA$16:$AA$43,MATCH($B104,'Damage costs'!$C$16:$C$43,0))/1000),\"\")","v":1.6028522278070398},{"$f":"IFERROR(IF(OR($C$110=FALSE,LEFT($B104,3)<>\"NOX\"),F53*INDEX('Damage costs'!$W$16:$W$43,MATCH($B104,'Damage costs'!$C$16:$C$43,0))/1000,F53*INDEX('Damage costs'!$AA$16:$AA$43,MATCH($B104,'Damage costs'!$C$16:$C$43,0))/1000),\"\")","v":1.6028522278070398},{"$f":"IFERROR(IF(OR($C$110=FALSE,LEFT($B104,3)<>\"NOX\"),G53*INDEX('Damage costs'!$W$16:$W$43,MATCH($B104,'Damage costs'!$C$16:$C$43,0))/1000,G53*INDEX('Damage costs'!$AA$16:$AA$43,MATCH($B104,'Damage costs'!$C$16:$C$43,0))/1000),\"\")","v":1.6028522278070398},{"$f":"IFERROR(IF(OR($C$110=FALSE,LEFT($B104,3)<>\"NOX\"),H53*INDEX('Damage costs'!$W$16:$W$43,MATCH($B104,'Damage costs'!$C$16:$C$43,0))/1000,H53*INDEX('Damage costs'!$AA$16:$AA$43,MATCH($B104,'Damage costs'!$C$16:$C$43,0))/1000),\"\")","v":0.42635869259667258},{"$f":"IFERROR(IF(OR($C$110=FALSE,LEFT($B104,3)<>\"NOX\"),I53*INDEX('Damage costs'!$W$16:$W$43,MATCH($B104,'Damage costs'!$C$16:$C$43,0))/1000,I53*INDEX('Damage costs'!$AA$16:$AA$43,MATCH($B104,'Damage costs'!$C$16:$C$43,0))/1000),\"\")","v":0.42635869259667258},{"$f":"IFERROR(IF(OR($C$110=FALSE,LEFT($B104,3)<>\"NOX\"),J53*INDEX('Damage costs'!$W$16:$W$43,MATCH($B104,'Damage costs'!$C$16:$C$43,0))/1000,J53*INDEX('Damage costs'!$AA$16:$AA$43,MATCH($B104,'Damage costs'!$C$16:$C$43,0))/1000),\"\")","v":0.42635869259667258},{"$f":"IFERROR(IF(OR($C$110=FALSE,LEFT($B104,3)<>\"NOX\"),K53*INDEX('Damage costs'!$W$16:$W$43,MATCH($B104,'Damage costs'!$C$16:$C$43,0))/1000,K53*INDEX('Damage costs'!$AA$16:$AA$43,MATCH($B104,'Damage costs'!$C$16:$C$43,0))/1000),\"\")","v":0.42635869259667258},{"$f":"IFERROR(IF(OR($C$110=FALSE,LEFT($B104,3)<>\"NOX\"),L53*INDEX('Damage costs'!$W$16:$W$43,MATCH($B104,'Damage costs'!$C$16:$C$43,0))/1000,L53*INDEX('Damage costs'!$AA$16:$AA$43,MATCH($B104,'Damage costs'!$C$16:$C$43,0))/1000),\"\")","v":0},{"$f":"IFERROR(IF(OR($C$110=FALSE,LEFT($B104,3)<>\"NOX\"),M53*INDEX('Damage costs'!$W$16:$W$43,MATCH($B104,'Damage costs'!$C$16:$C$43,0))/1000,M53*INDEX('Damage costs'!$AA$16:$AA$43,MATCH($B104,'Damage costs'!$C$16:$C$43,0))/1000),\"\")","v":0},{"$f":"IFERROR(IF(OR($C$110=FALSE,LEFT($B104,3)<>\"NOX\"),N53*INDEX('Damage costs'!$W$16:$W$43,MATCH($B104,'Damage costs'!$C$16:$C$43,0))/1000,N53*INDEX('Damage costs'!$AA$16:$AA$43,MATCH($B104,'Damage costs'!$C$16:$C$43,0))/1000),\"\")","v":0},{"$f":"IFERROR(IF(OR($C$110=FALSE,LEFT($B104,3)<>\"NOX\"),O53*INDEX('Damage costs'!$W$16:$W$43,MATCH($B104,'Damage costs'!$C$16:$C$43,0))/1000,O53*INDEX('Damage costs'!$AA$16:$AA$43,MATCH($B104,'Damage costs'!$C$16:$C$43,0))/1000),\"\")","v":0},{"$f":"IFERROR(IF(OR($C$110=FALSE,LEFT($B104,3)<>\"NOX\"),P53*INDEX('Damage costs'!$W$16:$W$43,MATCH($B104,'Damage costs'!$C$16:$C$43,0))/1000,P53*INDEX('Damage costs'!$AA$16:$AA$43,MATCH($B104,'Damage costs'!$C$16:$C$43,0))/1000),\"\")","v":0},{"$f":"IFERROR(IF(OR($C$110=FALSE,LEFT($B104,3)<>\"NOX\"),Q53*INDEX('Damage costs'!$W$16:$W$43,MATCH($B104,'Damage costs'!$C$16:$C$43,0))/1000,Q53*INDEX('Damage costs'!$AA$16:$AA$43,MATCH($B104,'Damage costs'!$C$16:$C$43,0))/1000),\"\")","v":0},{"$f":"IFERROR(IF(OR($C$110=FALSE,LEFT($B104,3)<>\"NOX\"),R53*INDEX('Damage costs'!$W$16:$W$43,MATCH($B104,'Damage costs'!$C$16:$C$43,0))/1000,R53*INDEX('Damage costs'!$AA$16:$AA$43,MATCH($B104,'Damage costs'!$C$16:$C$43,0))/1000),\"\")","v":0},{"$f":"IFERROR(IF(OR($C$110=FALSE,LEFT($B104,3)<>\"NOX\"),S53*INDEX('Damage costs'!$W$16:$W$43,MATCH($B104,'Damage costs'!$C$16:$C$43,0))/1000,S53*INDEX('Damage costs'!$AA$16:$AA$43,MATCH($B104,'Damage costs'!$C$16:$C$43,0))/1000),\"\")","v":0},{"$f":"IFERROR(IF(OR($C$110=FALSE,LEFT($B104,3)<>\"NOX\"),T53*INDEX('Damage costs'!$W$16:$W$43,MATCH($B104,'Damage costs'!$C$16:$C$43,0))/1000,T53*INDEX('Damage costs'!$AA$16:$AA$43,MATCH($B104,'Damage costs'!$C$16:$C$43,0))/1000),\"\")","v":0},{"$f":"IFERROR(IF(OR($C$110=FALSE,LEFT($B104,3)<>\"NOX\"),U53*INDEX('Damage costs'!$W$16:$W$43,MATCH($B104,'Damage costs'!$C$16:$C$43,0))/1000,U53*INDEX('Damage costs'!$AA$16:$AA$43,MATCH($B104,'Damage costs'!$C$16:$C$43,0))/1000),\"\")","v":0},{"$f":"IFERROR(IF(OR($C$110=FALSE,LEFT($B104,3)<>\"NOX\"),V53*INDEX('Damage costs'!$W$16:$W$43,MATCH($B104,'Damage costs'!$C$16:$C$43,0))/1000,V53*INDEX('Damage costs'!$AA$16:$AA$43,MATCH($B104,'Damage costs'!$C$16:$C$43,0))/1000),\"\")","v":0},{"$f":"IFERROR(IF(OR($C$110=FALSE,LEFT($B104,3)<>\"NOX\"),W53*INDEX('Damage costs'!$W$16:$W$43,MATCH($B104,'Damage costs'!$C$16:$C$43,0))/1000,W53*INDEX('Damage costs'!$AA$16:$AA$43,MATCH($B104,'Damage costs'!$C$16:$C$43,0))/1000),\"\")","v":0},{"$f":"IFERROR(IF(OR($C$110=FALSE,LEFT($B104,3)<>\"NOX\"),X53*INDEX('Damage costs'!$W$16:$W$43,MATCH($B104,'Damage costs'!$C$16:$C$43,0))/1000,X53*INDEX('Damage costs'!$AA$16:$AA$43,MATCH($B104,'Damage costs'!$C$16:$C$43,0))/1000),\"\")","v":0},{"$f":"IFERROR(IF(OR($C$110=FALSE,LEFT($B104,3)<>\"NOX\"),Y53*INDEX('Damage costs'!$W$16:$W$43,MATCH($B104,'Damage costs'!$C$16:$C$43,0))/1000,Y53*INDEX('Damage costs'!$AA$16:$AA$43,MATCH($B104,'Damage costs'!$C$16:$C$43,0))/1000),\"\")","v":0},{"$f":"IFERROR(IF(OR($C$110=FALSE,LEFT($B104,3)<>\"NOX\"),Z53*INDEX('Damage costs'!$W$16:$W$43,MATCH($B104,'Damage costs'!$C$16:$C$43,0))/1000,Z53*INDEX('Damage costs'!$AA$16:$AA$43,MATCH($B104,'Damage costs'!$C$16:$C$43,0))/1000),\"\")","v":0},{"$f":"IFERROR(IF(OR($C$110=FALSE,LEFT($B104,3)<>\"NOX\"),AA53*INDEX('Damage costs'!$W$16:$W$43,MATCH($B104,'Damage costs'!$C$16:$C$43,0))/1000,AA53*INDEX('Damage costs'!$AA$16:$AA$43,MATCH($B104,'Damage costs'!$C$16:$C$43,0))/1000),\"\")","v":0},{"$f":"IFERROR(IF(OR($C$110=FALSE,LEFT($B104,3)<>\"NOX\"),AB53*INDEX('Damage costs'!$W$16:$W$43,MATCH($B104,'Damage costs'!$C$16:$C$43,0))/1000,AB53*INDEX('Damage costs'!$AA$16:$AA$43,MATCH($B104,'Damage costs'!$C$16:$C$43,0))/1000),\"\")","v":0},{"$f":"IFERROR(IF(OR($C$110=FALSE,LEFT($B104,3)<>\"NOX\"),AC53*INDEX('Damage costs'!$W$16:$W$43,MATCH($B104,'Damage costs'!$C$16:$C$43,0))/1000,AC53*INDEX('Damage costs'!$AA$16:$AA$43,MATCH($B104,'Damage costs'!$C$16:$C$43,0))/1000),\"\")","v":0},{"$f":"IFERROR(IF(OR($C$110=FALSE,LEFT($B104,3)<>\"NOX\"),AD53*INDEX('Damage costs'!$W$16:$W$43,MATCH($B104,'Damage costs'!$C$16:$C$43,0))/1000,AD53*INDEX('Damage costs'!$AA$16:$AA$43,MATCH($B104,'Damage costs'!$C$16:$C$43,0))/1000),\"\")","v":0},{"$f":"IFERROR(IF(OR($C$110=FALSE,LEFT($B104,3)<>\"NOX\"),AE53*INDEX('Damage costs'!$W$16:$W$43,MATCH($B104,'Damage costs'!$C$16:$C$43,0))/1000,AE53*INDEX('Damage costs'!$AA$16:$AA$43,MATCH($B104,'Damage costs'!$C$16:$C$43,0))/1000),\"\")","v":0},{"$f":"IFERROR(IF(OR($C$110=FALSE,LEFT($B104,3)<>\"NOX\"),AF53*INDEX('Damage costs'!$W$16:$W$43,MATCH($B104,'Damage costs'!$C$16:$C$43,0))/1000,AF53*INDEX('Damage costs'!$AA$16:$AA$43,MATCH($B104,'Damage costs'!$C$16:$C$43,0))/1000),\"\")","v":0},{"$f":"IFERROR(IF(OR($C$110=FALSE,LEFT($B104,3)<>\"NOX\"),AG53*INDEX('Damage costs'!$W$16:$W$43,MATCH($B104,'Damage costs'!$C$16:$C$43,0))/1000,AG53*INDEX('Damage costs'!$AA$16:$AA$43,MATCH($B104,'Damage costs'!$C$16:$C$43,0))/1000),\"\")","v":0},{"$f":"IFERROR(IF(OR($C$110=FALSE,LEFT($B104,3)<>\"NOX\"),AH53*INDEX('Damage costs'!$W$16:$W$43,MATCH($B104,'Damage costs'!$C$16:$C$43,0))/1000,AH53*INDEX('Damage costs'!$AA$16:$AA$43,MATCH($B104,'Damage costs'!$C$16:$C$43,0))/1000),\"\")","v":0},{"$f":"IFERROR(IF(OR($C$110=FALSE,LEFT($B104,3)<>\"NOX\"),AI53*INDEX('Damage costs'!$W$16:$W$43,MATCH($B104,'Damage costs'!$C$16:$C$43,0))/1000,AI53*INDEX('Damage costs'!$AA$16:$AA$43,MATCH($B104,'Damage costs'!$C$16:$C$43,0))/1000),\"\")","v":0},{"$f":"IFERROR(IF(OR($C$110=FALSE,LEFT($B104,3)<>\"NOX\"),AJ53*INDEX('Damage costs'!$W$16:$W$43,MATCH($B104,'Damage costs'!$C$16:$C$43,0))/1000,AJ53*INDEX('Damage costs'!$AA$16:$AA$43,MATCH($B104,'Damage costs'!$C$16:$C$43,0))/1000),\"\")","v":0},{"$f":"IFERROR(IF(OR($C$110=FALSE,LEFT($B104,3)<>\"NOX\"),AK53*INDEX('Damage costs'!$W$16:$W$43,MATCH($B104,'Damage costs'!$C$16:$C$43,0))/1000,AK53*INDEX('Damage costs'!$AA$16:$AA$43,MATCH($B104,'Damage costs'!$C$16:$C$43,0))/1000),\"\")","v":0},{"$f":"IFERROR(IF(OR($C$110=FALSE,LEFT($B104,3)<>\"NOX\"),AL53*INDEX('Damage costs'!$W$16:$W$43,MATCH($B104,'Damage costs'!$C$16:$C$43,0))/1000,AL53*INDEX('Damage costs'!$AA$16:$AA$43,MATCH($B104,'Damage costs'!$C$16:$C$43,0))/1000),\"\")","v":0},{"$f":"IFERROR(IF(OR($C$110=FALSE,LEFT($B104,3)<>\"NOX\"),AM53*INDEX('Damage costs'!$W$16:$W$43,MATCH($B104,'Damage costs'!$C$16:$C$43,0))/1000,AM53*INDEX('Damage costs'!$AA$16:$AA$43,MATCH($B104,'Damage costs'!$C$16:$C$43,0))/1000),\"\")","v":0},{"$f":"IFERROR(IF(OR($C$110=FALSE,LEFT($B104,3)<>\"NOX\"),AN53*INDEX('Damage costs'!$W$16:$W$43,MATCH($B104,'Damage costs'!$C$16:$C$43,0))/1000,AN53*INDEX('Damage costs'!$AA$16:$AA$43,MATCH($B104,'Damage costs'!$C$16:$C$43,0))/1000),\"\")","v":0},{"$f":"IFERROR(IF(OR($C$110=FALSE,LEFT($B104,3)<>\"NOX\"),AO53*INDEX('Damage costs'!$W$16:$W$43,MATCH($B104,'Damage costs'!$C$16:$C$43,0))/1000,AO53*INDEX('Damage costs'!$AA$16:$AA$43,MATCH($B104,'Damage costs'!$C$16:$C$43,0))/1000),\"\")","v":0},{"$f":"IFERROR(IF(OR($C$110=FALSE,LEFT($B104,3)<>\"NOX\"),AP53*INDEX('Damage costs'!$W$16:$W$43,MATCH($B104,'Damage costs'!$C$16:$C$43,0))/1000,AP53*INDEX('Damage costs'!$AA$16:$AA$43,MATCH($B104,'Damage costs'!$C$16:$C$43,0))/1000),\"\")","v":0},{"$f":"IFERROR(IF(OR($C$110=FALSE,LEFT($B104,3)<>\"NOX\"),AQ53*INDEX('Damage costs'!$W$16:$W$43,MATCH($B104,'Damage costs'!$C$16:$C$43,0))/1000,AQ53*INDEX('Damage costs'!$AA$16:$AA$43,MATCH($B104,'Damage costs'!$C$16:$C$43,0))/1000),\"\")","v":0},{"$f":"IFERROR(IF(OR($C$110=FALSE,LEFT($B104,3)<>\"NOX\"),AR53*INDEX('Damage costs'!$W$16:$W$43,MATCH($B104,'Damage costs'!$C$16:$C$43,0))/1000,AR53*INDEX('Damage costs'!$AA$16:$AA$43,MATCH($B104,'Damage costs'!$C$16:$C$43,0))/1000),\"\")","v":0},{"$f":"IFERROR(IF(OR($C$110=FALSE,LEFT($B104,3)<>\"NOX\"),AS53*INDEX('Damage costs'!$W$16:$W$43,MATCH($B104,'Damage costs'!$C$16:$C$43,0))/1000,AS53*INDEX('Damage costs'!$AA$16:$AA$43,MATCH($B104,'Damage costs'!$C$16:$C$43,0))/1000),\"\")","v":0},{"$f":"IFERROR(IF(OR($C$110=FALSE,LEFT($B104,3)<>\"NOX\"),AT53*INDEX('Damage costs'!$W$16:$W$43,MATCH($B104,'Damage costs'!$C$16:$C$43,0))/1000,AT53*INDEX('Damage costs'!$AA$16:$AA$43,MATCH($B104,'Damage costs'!$C$16:$C$43,0))/1000),\"\")","v":0},{"$f":"IFERROR(IF(OR($C$110=FALSE,LEFT($B104,3)<>\"NOX\"),AU53*INDEX('Damage costs'!$W$16:$W$43,MATCH($B104,'Damage costs'!$C$16:$C$43,0))/1000,AU53*INDEX('Damage costs'!$AA$16:$AA$43,MATCH($B104,'Damage costs'!$C$16:$C$43,0))/1000),\"\")","v":0},{"$f":"IFERROR(IF(OR($C$110=FALSE,LEFT($B104,3)<>\"NOX\"),AV53*INDEX('Damage costs'!$W$16:$W$43,MATCH($B104,'Damage costs'!$C$16:$C$43,0))/1000,AV53*INDEX('Damage costs'!$AA$16:$AA$43,MATCH($B104,'Damage costs'!$C$16:$C$43,0))/1000),\"\")","v":0},{"$f":"IFERROR(IF(OR($C$110=FALSE,LEFT($B104,3)<>\"NOX\"),AW53*INDEX('Damage costs'!$W$16:$W$43,MATCH($B104,'Damage costs'!$C$16:$C$43,0))/1000,AW53*INDEX('Damage costs'!$AA$16:$AA$43,MATCH($B104,'Damage costs'!$C$16:$C$43,0))/1000),\"\")","v":0},{"$f":"IFERROR(IF(OR($C$110=FALSE,LEFT($B104,3)<>\"NOX\"),AX53*INDEX('Damage costs'!$W$16:$W$43,MATCH($B104,'Damage costs'!$C$16:$C$43,0))/1000,AX53*INDEX('Damage costs'!$AA$16:$AA$43,MATCH($B104,'Damage costs'!$C$16:$C$43,0))/1000),\"\")","v":0},{"$f":"IFERROR(IF(OR($C$110=FALSE,LEFT($B104,3)<>\"NOX\"),AY53*INDEX('Damage costs'!$W$16:$W$43,MATCH($B104,'Damage costs'!$C$16:$C$43,0))/1000,AY53*INDEX('Damage costs'!$AA$16:$AA$43,MATCH($B104,'Damage costs'!$C$16:$C$43,0))/1000),\"\")","v":0},{"$f":"IFERROR(IF(OR($C$110=FALSE,LEFT($B104,3)<>\"NOX\"),AZ53*INDEX('Damage costs'!$W$16:$W$43,MATCH($B104,'Damage costs'!$C$16:$C$43,0))/1000,AZ53*INDEX('Damage costs'!$AA$16:$AA$43,MATCH($B104,'Damage costs'!$C$16:$C$43,0))/1000),\"\")","v":0},{"$f":"IFERROR(IF(OR($C$110=FALSE,LEFT($B104,3)<>\"NOX\"),BA53*INDEX('Damage costs'!$W$16:$W$43,MATCH($B104,'Damage costs'!$C$16:$C$43,0))/1000,BA53*INDEX('Damage costs'!$AA$16:$AA$43,MATCH($B104,'Damage costs'!$C$16:$C$43,0))/1000),\"\")","v":0},{"$f":"IFERROR(IF(OR($C$110=FALSE,LEFT($B104,3)<>\"NOX\"),BB53*INDEX('Damage costs'!$W$16:$W$43,MATCH($B104,'Damage costs'!$C$16:$C$43,0))/1000,BB53*INDEX('Damage costs'!$AA$16:$AA$43,MATCH($B104,'Damage costs'!$C$16:$C$43,0))/1000),\"\")","v":0},{"$f":"IFERROR(IF(OR($C$110=FALSE,LEFT($B104,3)<>\"NOX\"),BC53*INDEX('Damage costs'!$W$16:$W$43,MATCH($B104,'Damage costs'!$C$16:$C$43,0))/1000,BC53*INDEX('Damage costs'!$AA$16:$AA$43,MATCH($B104,'Damage costs'!$C$16:$C$43,0))/1000),\"\")","v":0},{"$f":"IFERROR(IF(OR($C$110=FALSE,LEFT($B104,3)<>\"NOX\"),BD53*INDEX('Damage costs'!$W$16:$W$43,MATCH($B104,'Damage costs'!$C$16:$C$43,0))/1000,BD53*INDEX('Damage costs'!$AA$16:$AA$43,MATCH($B104,'Damage costs'!$C$16:$C$43,0))/1000),\"\")","v":0},{"$f":"IFERROR(IF(OR($C$110=FALSE,LEFT($B104,3)<>\"NOX\"),BE53*INDEX('Damage costs'!$W$16:$W$43,MATCH($B104,'Damage costs'!$C$16:$C$43,0))/1000,BE53*INDEX('Damage costs'!$AA$16:$AA$43,MATCH($B104,'Damage costs'!$C$16:$C$43,0))/1000),\"\")","v":0},{"$f":"IFERROR(IF(OR($C$110=FALSE,LEFT($B104,3)<>\"NOX\"),BF53*INDEX('Damage costs'!$W$16:$W$43,MATCH($B104,'Damage costs'!$C$16:$C$43,0))/1000,BF53*INDEX('Damage costs'!$AA$16:$AA$43,MATCH($B104,'Damage costs'!$C$16:$C$43,0))/1000),\"\")","v":0},{"$f":"IFERROR(IF(OR($C$110=FALSE,LEFT($B104,3)<>\"NOX\"),BG53*INDEX('Damage costs'!$W$16:$W$43,MATCH($B104,'Damage costs'!$C$16:$C$43,0))/1000,BG53*INDEX('Damage costs'!$AA$16:$AA$43,MATCH($B104,'Damage costs'!$C$16:$C$43,0))/1000),\"\")","v":0},{"$f":"IFERROR(IF(OR($C$110=FALSE,LEFT($B104,3)<>\"NOX\"),BH53*INDEX('Damage costs'!$W$16:$W$43,MATCH($B104,'Damage costs'!$C$16:$C$43,0))/1000,BH53*INDEX('Damage costs'!$AA$16:$AA$43,MATCH($B104,'Damage costs'!$C$16:$C$43,0))/1000),\"\")","v":0},{"$f":"IFERROR(IF(OR($C$110=FALSE,LEFT($B104,3)<>\"NOX\"),BI53*INDEX('Damage costs'!$W$16:$W$43,MATCH($B104,'Damage costs'!$C$16:$C$43,0))/1000,BI53*INDEX('Damage costs'!$AA$16:$AA$43,MATCH($B104,'Damage costs'!$C$16:$C$43,0))/1000),\"\")","v":0},{"$f":"IFERROR(IF(OR($C$110=FALSE,LEFT($B104,3)<>\"NOX\"),BJ53*INDEX('Damage costs'!$W$16:$W$43,MATCH($B104,'Damage costs'!$C$16:$C$43,0))/1000,BJ53*INDEX('Damage costs'!$AA$16:$AA$43,MATCH($B104,'Damage costs'!$C$16:$C$43,0))/1000),\"\")","v":0},{"$f":"IFERROR(IF(OR($C$110=FALSE,LEFT($B104,3)<>\"NOX\"),BK53*INDEX('Damage costs'!$W$16:$W$43,MATCH($B104,'Damage costs'!$C$16:$C$43,0))/1000,BK53*INDEX('Damage costs'!$AA$16:$AA$43,MATCH($B104,'Damage costs'!$C$16:$C$43,0))/1000),\"\")","v":0},{"$f":"IFERROR(IF(OR($C$110=FALSE,LEFT($B104,3)<>\"NOX\"),BL53*INDEX('Damage costs'!$W$16:$W$43,MATCH($B104,'Damage costs'!$C$16:$C$43,0))/1000,BL53*INDEX('Damage costs'!$AA$16:$AA$43,MATCH($B104,'Damage costs'!$C$16:$C$43,0))/1000),\"\")","v":0},{"$f":"IFERROR(IF(OR($C$110=FALSE,LEFT($B104,3)<>\"NOX\"),BM53*INDEX('Damage costs'!$W$16:$W$43,MATCH($B104,'Damage costs'!$C$16:$C$43,0))/1000,BM53*INDEX('Damage costs'!$AA$16:$AA$43,MATCH($B104,'Damage costs'!$C$16:$C$43,0))/1000),\"\")","v":0},{"$f":"IFERROR(IF(OR($C$110=FALSE,LEFT($B104,3)<>\"NOX\"),BN53*INDEX('Damage costs'!$W$16:$W$43,MATCH($B104,'Damage costs'!$C$16:$C$43,0))/1000,BN53*INDEX('Damage costs'!$AA$16:$AA$43,MATCH($B104,'Damage costs'!$C$16:$C$43,0))/1000),\"\")","v":0},{"$f":"IFERROR(IF(OR($C$110=FALSE,LEFT($B104,3)<>\"NOX\"),BO53*INDEX('Damage costs'!$W$16:$W$43,MATCH($B104,'Damage costs'!$C$16:$C$43,0))/1000,BO53*INDEX('Damage costs'!$AA$16:$AA$43,MATCH($B104,'Damage costs'!$C$16:$C$43,0))/1000),\"\")","v":0},{"$f":"IFERROR(IF(OR($C$110=FALSE,LEFT($B104,3)<>\"NOX\"),BP53*INDEX('Damage costs'!$W$16:$W$43,MATCH($B104,'Damage costs'!$C$16:$C$43,0))/1000,BP53*INDEX('Damage costs'!$AA$16:$AA$43,MATCH($B104,'Damage costs'!$C$16:$C$43,0))/1000),\"\")","v":0},{"$f":"IFERROR(IF(OR($C$110=FALSE,LEFT($B104,3)<>\"NOX\"),BQ53*INDEX('Damage costs'!$W$16:$W$43,MATCH($B104,'Damage costs'!$C$16:$C$43,0))/1000,BQ53*INDEX('Damage costs'!$AA$16:$AA$43,MATCH($B104,'Damage costs'!$C$16:$C$43,0))/1000),\"\")","v":0},{"$f":"IFERROR(IF(OR($C$110=FALSE,LEFT($B104,3)<>\"NOX\"),BR53*INDEX('Damage costs'!$W$16:$W$43,MATCH($B104,'Damage costs'!$C$16:$C$43,0))/1000,BR53*INDEX('Damage costs'!$AA$16:$AA$43,MATCH($B104,'Damage costs'!$C$16:$C$43,0))/1000),\"\")","v":0},{"$f":"IFERROR(IF(OR($C$110=FALSE,LEFT($B104,3)<>\"NOX\"),BS53*INDEX('Damage costs'!$W$16:$W$43,MATCH($B104,'Damage costs'!$C$16:$C$43,0))/1000,BS53*INDEX('Damage costs'!$AA$16:$AA$43,MATCH($B104,'Damage costs'!$C$16:$C$43,0))/1000),\"\")","v":0},{"$f":"IFERROR(IF(OR($C$110=FALSE,LEFT($B104,3)<>\"NOX\"),BT53*INDEX('Damage costs'!$W$16:$W$43,MATCH($B104,'Damage costs'!$C$16:$C$43,0))/1000,BT53*INDEX('Damage costs'!$AA$16:$AA$43,MATCH($B104,'Damage costs'!$C$16:$C$43,0))/1000),\"\")","v":0},{"$f":"IFERROR(IF(OR($C$110=FALSE,LEFT($B104,3)<>\"NOX\"),BU53*INDEX('Damage costs'!$W$16:$W$43,MATCH($B104,'Damage costs'!$C$16:$C$43,0))/1000,BU53*INDEX('Damage costs'!$AA$16:$AA$43,MATCH($B104,'Damage costs'!$C$16:$C$43,0))/1000),\"\")","v":0},{"$f":"IFERROR(IF(OR($C$110=FALSE,LEFT($B104,3)<>\"NOX\"),BV53*INDEX('Damage costs'!$W$16:$W$43,MATCH($B104,'Damage costs'!$C$16:$C$43,0))/1000,BV53*INDEX('Damage costs'!$AA$16:$AA$43,MATCH($B104,'Damage costs'!$C$16:$C$43,0))/1000),\"\")","v":0},{"$f":"IFERROR(IF(OR($C$110=FALSE,LEFT($B104,3)<>\"NOX\"),BW53*INDEX('Damage costs'!$W$16:$W$43,MATCH($B104,'Damage costs'!$C$16:$C$43,0))/1000,BW53*INDEX('Damage costs'!$AA$16:$AA$43,MATCH($B104,'Damage costs'!$C$16:$C$43,0))/1000),\"\")","v":0},{"$f":"IFERROR(IF(OR($C$110=FALSE,LEFT($B104,3)<>\"NOX\"),BX53*INDEX('Damage costs'!$W$16:$W$43,MATCH($B104,'Damage costs'!$C$16:$C$43,0))/1000,BX53*INDEX('Damage costs'!$AA$16:$AA$43,MATCH($B104,'Damage costs'!$C$16:$C$43,0))/1000),\"\")","v":0},{"$f":"IFERROR(IF(OR($C$110=FALSE,LEFT($B104,3)<>\"NOX\"),BY53*INDEX('Damage costs'!$W$16:$W$43,MATCH($B104,'Damage costs'!$C$16:$C$43,0))/1000,BY53*INDEX('Damage costs'!$AA$16:$AA$43,MATCH($B104,'Damage costs'!$C$16:$C$43,0))/1000),\"\")","v":0},{"$f":"IFERROR(IF(OR($C$110=FALSE,LEFT($B104,3)<>\"NOX\"),BZ53*INDEX('Damage costs'!$W$16:$W$43,MATCH($B104,'Damage costs'!$C$16:$C$43,0))/1000,BZ53*INDEX('Damage costs'!$AA$16:$AA$43,MATCH($B104,'Damage costs'!$C$16:$C$43,0))/1000),\"\")","v":0},{"$f":"IFERROR(IF(OR($C$110=FALSE,LEFT($B104,3)<>\"NOX\"),CA53*INDEX('Damage costs'!$W$16:$W$43,MATCH($B104,'Damage costs'!$C$16:$C$43,0))/1000,CA53*INDEX('Damage costs'!$AA$16:$AA$43,MATCH($B104,'Damage costs'!$C$16:$C$43,0))/1000),\"\")","v":0},{"$f":"IFERROR(IF(OR($C$110=FALSE,LEFT($B104,3)<>\"NOX\"),CB53*INDEX('Damage costs'!$W$16:$W$43,MATCH($B104,'Damage costs'!$C$16:$C$43,0))/1000,CB53*INDEX('Damage costs'!$AA$16:$AA$43,MATCH($B104,'Damage costs'!$C$16:$C$43,0))/1000),\"\")","v":0},{"$f":"IFERROR(IF(OR($C$110=FALSE,LEFT($B104,3)<>\"NOX\"),CC53*INDEX('Damage costs'!$W$16:$W$43,MATCH($B104,'Damage costs'!$C$16:$C$43,0))/1000,CC53*INDEX('Damage costs'!$AA$16:$AA$43,MATCH($B104,'Damage costs'!$C$16:$C$43,0))/1000),\"\")","v":0},{"$f":"IFERROR(IF(OR($C$110=FALSE,LEFT($B104,3)<>\"NOX\"),CD53*INDEX('Damage costs'!$W$16:$W$43,MATCH($B104,'Damage costs'!$C$16:$C$43,0))/1000,CD53*INDEX('Damage costs'!$AA$16:$AA$43,MATCH($B104,'Damage costs'!$C$16:$C$43,0))/1000),\"\")","v":0},{"$f":"IFERROR(IF(OR($C$110=FALSE,LEFT($B104,3)<>\"NOX\"),CE53*INDEX('Damage costs'!$W$16:$W$43,MATCH($B104,'Damage costs'!$C$16:$C$43,0))/1000,CE53*INDEX('Damage costs'!$AA$16:$AA$43,MATCH($B104,'Damage costs'!$C$16:$C$43,0))/1000),\"\")","v":0},{"$f":"IFERROR(IF(OR($C$110=FALSE,LEFT($B104,3)<>\"NOX\"),CF53*INDEX('Damage costs'!$W$16:$W$43,MATCH($B104,'Damage costs'!$C$16:$C$43,0))/1000,CF53*INDEX('Damage costs'!$AA$16:$AA$43,MATCH($B104,'Damage costs'!$C$16:$C$43,0))/1000),\"\")","v":0},{"$f":"IFERROR(IF(OR($C$110=FALSE,LEFT($B104,3)<>\"NOX\"),CG53*INDEX('Damage costs'!$W$16:$W$43,MATCH($B104,'Damage costs'!$C$16:$C$43,0))/1000,CG53*INDEX('Damage costs'!$AA$16:$AA$43,MATCH($B104,'Damage costs'!$C$16:$C$43,0))/1000),\"\")","v":0},{"$f":"IFERROR(IF(OR($C$110=FALSE,LEFT($B104,3)<>\"NOX\"),CH53*INDEX('Damage costs'!$W$16:$W$43,MATCH($B104,'Damage costs'!$C$16:$C$43,0))/1000,CH53*INDEX('Damage costs'!$AA$16:$AA$43,MATCH($B104,'Damage costs'!$C$16:$C$43,0))/1000),\"\")","v":0},{"$f":"IFERROR(IF(OR($C$110=FALSE,LEFT($B104,3)<>\"NOX\"),CI53*INDEX('Damage costs'!$W$16:$W$43,MATCH($B104,'Damage costs'!$C$16:$C$43,0))/1000,CI53*INDEX('Damage costs'!$AA$16:$AA$43,MATCH($B104,'Damage costs'!$C$16:$C$43,0))/1000),\"\")","v":0},{"$f":"IFERROR(IF(OR($C$110=FALSE,LEFT($B104,3)<>\"NOX\"),CJ53*INDEX('Damage costs'!$W$16:$W$43,MATCH($B104,'Damage costs'!$C$16:$C$43,0))/1000,CJ53*INDEX('Damage costs'!$AA$16:$AA$43,MATCH($B104,'Damage costs'!$C$16:$C$43,0))/1000),\"\")","v":0},{"$f":"IFERROR(IF(OR($C$110=FALSE,LEFT($B104,3)<>\"NOX\"),CK53*INDEX('Damage costs'!$W$16:$W$43,MATCH($B104,'Damage costs'!$C$16:$C$43,0))/1000,CK53*INDEX('Damage costs'!$AA$16:$AA$43,MATCH($B104,'Damage costs'!$C$16:$C$43,0))/1000),\"\")","v":0},{"$f":"IFERROR(IF(OR($C$110=FALSE,LEFT($B104,3)<>\"NOX\"),CL53*INDEX('Damage costs'!$W$16:$W$43,MATCH($B104,'Damage costs'!$C$16:$C$43,0))/1000,CL53*INDEX('Damage costs'!$AA$16:$AA$43,MATCH($B104,'Damage costs'!$C$16:$C$43,0))/1000),\"\")","v":0},{"$f":"IFERROR(IF(OR($C$110=FALSE,LEFT($B104,3)<>\"NOX\"),CM53*INDEX('Damage costs'!$W$16:$W$43,MATCH($B104,'Damage costs'!$C$16:$C$43,0))/1000,CM53*INDEX('Damage costs'!$AA$16:$AA$43,MATCH($B104,'Damage costs'!$C$16:$C$43,0))/1000),\"\")","v":0},{"$f":"IFERROR(IF(OR($C$110=FALSE,LEFT($B104,3)<>\"NOX\"),CN53*INDEX('Damage costs'!$W$16:$W$43,MATCH($B104,'Damage costs'!$C$16:$C$43,0))/1000,CN53*INDEX('Damage costs'!$AA$16:$AA$43,MATCH($B104,'Damage costs'!$C$16:$C$43,0))/1000),\"\")","v":0},{"$f":"IFERROR(IF(OR($C$110=FALSE,LEFT($B104,3)<>\"NOX\"),CO53*INDEX('Damage costs'!$W$16:$W$43,MATCH($B104,'Damage costs'!$C$16:$C$43,0))/1000,CO53*INDEX('Damage costs'!$AA$16:$AA$43,MATCH($B104,'Damage costs'!$C$16:$C$43,0))/1000),\"\")","v":0},{"$f":"IFERROR(IF(OR($C$110=FALSE,LEFT($B104,3)<>\"NOX\"),CP53*INDEX('Damage costs'!$W$16:$W$43,MATCH($B104,'Damage costs'!$C$16:$C$43,0))/1000,CP53*INDEX('Damage costs'!$AA$16:$AA$43,MATCH($B104,'Damage costs'!$C$16:$C$43,0))/1000),\"\")","v":0},{"$f":"IFERROR(IF(OR($C$110=FALSE,LEFT($B104,3)<>\"NOX\"),CQ53*INDEX('Damage costs'!$W$16:$W$43,MATCH($B104,'Damage costs'!$C$16:$C$43,0))/1000,CQ53*INDEX('Damage costs'!$AA$16:$AA$43,MATCH($B104,'Damage costs'!$C$16:$C$43,0))/1000),\"\")","v":0},{"$f":"IFERROR(IF(OR($C$110=FALSE,LEFT($B104,3)<>\"NOX\"),CR53*INDEX('Damage costs'!$W$16:$W$43,MATCH($B104,'Damage costs'!$C$16:$C$43,0))/1000,CR53*INDEX('Damage costs'!$AA$16:$AA$43,MATCH($B104,'Damage costs'!$C$16:$C$43,0))/1000),\"\")","v":0},{"$f":"IFERROR(IF(OR($C$110=FALSE,LEFT($B104,3)<>\"NOX\"),CS53*INDEX('Damage costs'!$W$16:$W$43,MATCH($B104,'Damage costs'!$C$16:$C$43,0))/1000,CS53*INDEX('Damage costs'!$AA$16:$AA$43,MATCH($B104,'Damage costs'!$C$16:$C$43,0))/1000),\"\")","v":0},{"$f":"IFERROR(IF(OR($C$110=FALSE,LEFT($B104,3)<>\"NOX\"),CT53*INDEX('Damage costs'!$W$16:$W$43,MATCH($B104,'Damage costs'!$C$16:$C$43,0))/1000,CT53*INDEX('Damage costs'!$AA$16:$AA$43,MATCH($B104,'Damage costs'!$C$16:$C$43,0))/1000),\"\")","v":0},{"$f":"IFERROR(IF(OR($C$110=FALSE,LEFT($B104,3)<>\"NOX\"),CU53*INDEX('Damage costs'!$W$16:$W$43,MATCH($B104,'Damage costs'!$C$16:$C$43,0))/1000,CU53*INDEX('Damage costs'!$AA$16:$AA$43,MATCH($B104,'Damage costs'!$C$16:$C$43,0))/1000),\"\")","v":0},{"$f":"IFERROR(IF(OR($C$110=FALSE,LEFT($B104,3)<>\"NOX\"),CV53*INDEX('Damage costs'!$W$16:$W$43,MATCH($B104,'Damage costs'!$C$16:$C$43,0))/1000,CV53*INDEX('Damage costs'!$AA$16:$AA$43,MATCH($B104,'Damage costs'!$C$16:$C$43,0))/1000),\"\")","v":0},{"$f":"IFERROR(IF(OR($C$110=FALSE,LEFT($B104,3)<>\"NOX\"),CW53*INDEX('Damage costs'!$W$16:$W$43,MATCH($B104,'Damage costs'!$C$16:$C$43,0))/1000,CW53*INDEX('Damage costs'!$AA$16:$AA$43,MATCH($B104,'Damage costs'!$C$16:$C$43,0))/1000),\"\")","v":0},{"$f":"IFERROR(IF(OR($C$110=FALSE,LEFT($B104,3)<>\"NOX\"),CX53*INDEX('Damage costs'!$W$16:$W$43,MATCH($B104,'Damage costs'!$C$16:$C$43,0))/1000,CX53*INDEX('Damage costs'!$AA$16:$AA$43,MATCH($B104,'Damage costs'!$C$16:$C$43,0))/1000),\"\")","v":0},{"$f":"IFERROR(IF(OR($C$110=FALSE,LEFT($B104,3)<>\"NOX\"),CY53*INDEX('Damage costs'!$W$16:$W$43,MATCH($B104,'Damage costs'!$C$16:$C$43,0))/1000,CY53*INDEX('Damage costs'!$AA$16:$AA$43,MATCH($B104,'Damage costs'!$C$16:$C$43,0))/1000),\"\")","v":0}]
[null,0,"£000's",{"$f":"IFERROR(IF(OR($C$110=FALSE,LEFT($B105,3)<>\"NOX\"),D54*INDEX('Damage costs'!$W$16:$W$43,MATCH($B105,'Damage costs'!$C$16:$C$43,0))/1000,D54*INDEX('Damage costs'!$AA$16:$AA$43,MATCH($B105,'Damage costs'!$C$16:$C$43,0))/1000),\"\")","v":""},{"$f":"IFERROR(IF(OR($C$110=FALSE,LEFT($B105,3)<>\"NOX\"),E54*INDEX('Damage costs'!$W$16:$W$43,MATCH($B105,'Damage costs'!$C$16:$C$43,0))/1000,E54*INDEX('Damage costs'!$AA$16:$AA$43,MATCH($B105,'Damage costs'!$C$16:$C$43,0))/1000),\"\")","v":""},{"$f":"IFERROR(IF(OR($C$110=FALSE,LEFT($B105,3)<>\"NOX\"),F54*INDEX('Damage costs'!$W$16:$W$43,MATCH($B105,'Damage costs'!$C$16:$C$43,0))/1000,F54*INDEX('Damage costs'!$AA$16:$AA$43,MATCH($B105,'Damage costs'!$C$16:$C$43,0))/1000),\"\")","v":""},{"$f":"IFERROR(IF(OR($C$110=FALSE,LEFT($B105,3)<>\"NOX\"),G54*INDEX('Damage costs'!$W$16:$W$43,MATCH($B105,'Damage costs'!$C$16:$C$43,0))/1000,G54*INDEX('Damage costs'!$AA$16:$AA$43,MATCH($B105,'Damage costs'!$C$16:$C$43,0))/1000),\"\")","v":""},{"$f":"IFERROR(IF(OR($C$110=FALSE,LEFT($B105,3)<>\"NOX\"),H54*INDEX('Damage costs'!$W$16:$W$43,MATCH($B105,'Damage costs'!$C$16:$C$43,0))/1000,H54*INDEX('Damage costs'!$AA$16:$AA$43,MATCH($B105,'Damage costs'!$C$16:$C$43,0))/1000),\"\")","v":""},{"$f":"IFERROR(IF(OR($C$110=FALSE,LEFT($B105,3)<>\"NOX\"),I54*INDEX('Damage costs'!$W$16:$W$43,MATCH($B105,'Damage costs'!$C$16:$C$43,0))/1000,I54*INDEX('Damage costs'!$AA$16:$AA$43,MATCH($B105,'Damage costs'!$C$16:$C$43,0))/1000),\"\")","v":""},{"$f":"IFERROR(IF(OR($C$110=FALSE,LEFT($B105,3)<>\"NOX\"),J54*INDEX('Damage costs'!$W$16:$W$43,MATCH($B105,'Damage costs'!$C$16:$C$43,0))/1000,J54*INDEX('Damage costs'!$AA$16:$AA$43,MATCH($B105,'Damage costs'!$C$16:$C$43,0))/1000),\"\")","v":""},{"$f":"IFERROR(IF(OR($C$110=FALSE,LEFT($B105,3)<>\"NOX\"),K54*INDEX('Damage costs'!$W$16:$W$43,MATCH($B105,'Damage costs'!$C$16:$C$43,0))/1000,K54*INDEX('Damage costs'!$AA$16:$AA$43,MATCH($B105,'Damage costs'!$C$16:$C$43,0))/1000),\"\")","v":""},{"$f":"IFERROR(IF(OR($C$110=FALSE,LEFT($B105,3)<>\"NOX\"),L54*INDEX('Damage costs'!$W$16:$W$43,MATCH($B105,'Damage costs'!$C$16:$C$43,0))/1000,L54*INDEX('Damage costs'!$AA$16:$AA$43,MATCH($B105,'Damage costs'!$C$16:$C$43,0))/1000),\"\")","v":""},{"$f":"IFERROR(IF(OR($C$110=FALSE,LEFT($B105,3)<>\"NOX\"),M54*INDEX('Damage costs'!$W$16:$W$43,MATCH($B105,'Damage costs'!$C$16:$C$43,0))/1000,M54*INDEX('Damage costs'!$AA$16:$AA$43,MATCH($B105,'Damage costs'!$C$16:$C$43,0))/1000),\"\")","v":""},{"$f":"IFERROR(IF(OR($C$110=FALSE,LEFT($B105,3)<>\"NOX\"),N54*INDEX('Damage costs'!$W$16:$W$43,MATCH($B105,'Damage costs'!$C$16:$C$43,0))/1000,N54*INDEX('Damage costs'!$AA$16:$AA$43,MATCH($B105,'Damage costs'!$C$16:$C$43,0))/1000),\"\")","v":""},{"$f":"IFERROR(IF(OR($C$110=FALSE,LEFT($B105,3)<>\"NOX\"),O54*INDEX('Damage costs'!$W$16:$W$43,MATCH($B105,'Damage costs'!$C$16:$C$43,0))/1000,O54*INDEX('Damage costs'!$AA$16:$AA$43,MATCH($B105,'Damage costs'!$C$16:$C$43,0))/1000),\"\")","v":""},{"$f":"IFERROR(IF(OR($C$110=FALSE,LEFT($B105,3)<>\"NOX\"),P54*INDEX('Damage costs'!$W$16:$W$43,MATCH($B105,'Damage costs'!$C$16:$C$43,0))/1000,P54*INDEX('Damage costs'!$AA$16:$AA$43,MATCH($B105,'Damage costs'!$C$16:$C$43,0))/1000),\"\")","v":""},{"$f":"IFERROR(IF(OR($C$110=FALSE,LEFT($B105,3)<>\"NOX\"),Q54*INDEX('Damage costs'!$W$16:$W$43,MATCH($B105,'Damage costs'!$C$16:$C$43,0))/1000,Q54*INDEX('Damage costs'!$AA$16:$AA$43,MATCH($B105,'Damage costs'!$C$16:$C$43,0))/1000),\"\")","v":""},{"$f":"IFERROR(IF(OR($C$110=FALSE,LEFT($B105,3)<>\"NOX\"),R54*INDEX('Damage costs'!$W$16:$W$43,MATCH($B105,'Damage costs'!$C$16:$C$43,0))/1000,R54*INDEX('Damage costs'!$AA$16:$AA$43,MATCH($B105,'Damage costs'!$C$16:$C$43,0))/1000),\"\")","v":""},{"$f":"IFERROR(IF(OR($C$110=FALSE,LEFT($B105,3)<>\"NOX\"),S54*INDEX('Damage costs'!$W$16:$W$43,MATCH($B105,'Damage costs'!$C$16:$C$43,0))/1000,S54*INDEX('Damage costs'!$AA$16:$AA$43,MATCH($B105,'Damage costs'!$C$16:$C$43,0))/1000),\"\")","v":""},{"$f":"IFERROR(IF(OR($C$110=FALSE,LEFT($B105,3)<>\"NOX\"),T54*INDEX('Damage costs'!$W$16:$W$43,MATCH($B105,'Damage costs'!$C$16:$C$43,0))/1000,T54*INDEX('Damage costs'!$AA$16:$AA$43,MATCH($B105,'Damage costs'!$C$16:$C$43,0))/1000),\"\")","v":""},{"$f":"IFERROR(IF(OR($C$110=FALSE,LEFT($B105,3)<>\"NOX\"),U54*INDEX('Damage costs'!$W$16:$W$43,MATCH($B105,'Damage costs'!$C$16:$C$43,0))/1000,U54*INDEX('Damage costs'!$AA$16:$AA$43,MATCH($B105,'Damage costs'!$C$16:$C$43,0))/1000),\"\")","v":""},{"$f":"IFERROR(IF(OR($C$110=FALSE,LEFT($B105,3)<>\"NOX\"),V54*INDEX('Damage costs'!$W$16:$W$43,MATCH($B105,'Damage costs'!$C$16:$C$43,0))/1000,V54*INDEX('Damage costs'!$AA$16:$AA$43,MATCH($B105,'Damage costs'!$C$16:$C$43,0))/1000),\"\")","v":""},{"$f":"IFERROR(IF(OR($C$110=FALSE,LEFT($B105,3)<>\"NOX\"),W54*INDEX('Damage costs'!$W$16:$W$43,MATCH($B105,'Damage costs'!$C$16:$C$43,0))/1000,W54*INDEX('Damage costs'!$AA$16:$AA$43,MATCH($B105,'Damage costs'!$C$16:$C$43,0))/1000),\"\")","v":""},{"$f":"IFERROR(IF(OR($C$110=FALSE,LEFT($B105,3)<>\"NOX\"),X54*INDEX('Damage costs'!$W$16:$W$43,MATCH($B105,'Damage costs'!$C$16:$C$43,0))/1000,X54*INDEX('Damage costs'!$AA$16:$AA$43,MATCH($B105,'Damage costs'!$C$16:$C$43,0))/1000),\"\")","v":""},{"$f":"IFERROR(IF(OR($C$110=FALSE,LEFT($B105,3)<>\"NOX\"),Y54*INDEX('Damage costs'!$W$16:$W$43,MATCH($B105,'Damage costs'!$C$16:$C$43,0))/1000,Y54*INDEX('Damage costs'!$AA$16:$AA$43,MATCH($B105,'Damage costs'!$C$16:$C$43,0))/1000),\"\")","v":""},{"$f":"IFERROR(IF(OR($C$110=FALSE,LEFT($B105,3)<>\"NOX\"),Z54*INDEX('Damage costs'!$W$16:$W$43,MATCH($B105,'Damage costs'!$C$16:$C$43,0))/1000,Z54*INDEX('Damage costs'!$AA$16:$AA$43,MATCH($B105,'Damage costs'!$C$16:$C$43,0))/1000),\"\")","v":""},{"$f":"IFERROR(IF(OR($C$110=FALSE,LEFT($B105,3)<>\"NOX\"),AA54*INDEX('Damage costs'!$W$16:$W$43,MATCH($B105,'Damage costs'!$C$16:$C$43,0))/1000,AA54*INDEX('Damage costs'!$AA$16:$AA$43,MATCH($B105,'Damage costs'!$C$16:$C$43,0))/1000),\"\")","v":""},{"$f":"IFERROR(IF(OR($C$110=FALSE,LEFT($B105,3)<>\"NOX\"),AB54*INDEX('Damage costs'!$W$16:$W$43,MATCH($B105,'Damage costs'!$C$16:$C$43,0))/1000,AB54*INDEX('Damage costs'!$AA$16:$AA$43,MATCH($B105,'Damage costs'!$C$16:$C$43,0))/1000),\"\")","v":""},{"$f":"IFERROR(IF(OR($C$110=FALSE,LEFT($B105,3)<>\"NOX\"),AC54*INDEX('Damage costs'!$W$16:$W$43,MATCH($B105,'Damage costs'!$C$16:$C$43,0))/1000,AC54*INDEX('Damage costs'!$AA$16:$AA$43,MATCH($B105,'Damage costs'!$C$16:$C$43,0))/1000),\"\")","v":""},{"$f":"IFERROR(IF(OR($C$110=FALSE,LEFT($B105,3)<>\"NOX\"),AD54*INDEX('Damage costs'!$W$16:$W$43,MATCH($B105,'Damage costs'!$C$16:$C$43,0))/1000,AD54*INDEX('Damage costs'!$AA$16:$AA$43,MATCH($B105,'Damage costs'!$C$16:$C$43,0))/1000),\"\")","v":""},{"$f":"IFERROR(IF(OR($C$110=FALSE,LEFT($B105,3)<>\"NOX\"),AE54*INDEX('Damage costs'!$W$16:$W$43,MATCH($B105,'Damage costs'!$C$16:$C$43,0))/1000,AE54*INDEX('Damage costs'!$AA$16:$AA$43,MATCH($B105,'Damage costs'!$C$16:$C$43,0))/1000),\"\")","v":""},{"$f":"IFERROR(IF(OR($C$110=FALSE,LEFT($B105,3)<>\"NOX\"),AF54*INDEX('Damage costs'!$W$16:$W$43,MATCH($B105,'Damage costs'!$C$16:$C$43,0))/1000,AF54*INDEX('Damage costs'!$AA$16:$AA$43,MATCH($B105,'Damage costs'!$C$16:$C$43,0))/1000),\"\")","v":""},{"$f":"IFERROR(IF(OR($C$110=FALSE,LEFT($B105,3)<>\"NOX\"),AG54*INDEX('Damage costs'!$W$16:$W$43,MATCH($B105,'Damage costs'!$C$16:$C$43,0))/1000,AG54*INDEX('Damage costs'!$AA$16:$AA$43,MATCH($B105,'Damage costs'!$C$16:$C$43,0))/1000),\"\")","v":""},{"$f":"IFERROR(IF(OR($C$110=FALSE,LEFT($B105,3)<>\"NOX\"),AH54*INDEX('Damage costs'!$W$16:$W$43,MATCH($B105,'Damage costs'!$C$16:$C$43,0))/1000,AH54*INDEX('Damage costs'!$AA$16:$AA$43,MATCH($B105,'Damage costs'!$C$16:$C$43,0))/1000),\"\")","v":""},{"$f":"IFERROR(IF(OR($C$110=FALSE,LEFT($B105,3)<>\"NOX\"),AI54*INDEX('Damage costs'!$W$16:$W$43,MATCH($B105,'Damage costs'!$C$16:$C$43,0))/1000,AI54*INDEX('Damage costs'!$AA$16:$AA$43,MATCH($B105,'Damage costs'!$C$16:$C$43,0))/1000),\"\")","v":""},{"$f":"IFERROR(IF(OR($C$110=FALSE,LEFT($B105,3)<>\"NOX\"),AJ54*INDEX('Damage costs'!$W$16:$W$43,MATCH($B105,'Damage costs'!$C$16:$C$43,0))/1000,AJ54*INDEX('Damage costs'!$AA$16:$AA$43,MATCH($B105,'Damage costs'!$C$16:$C$43,0))/1000),\"\")","v":""},{"$f":"IFERROR(IF(OR($C$110=FALSE,LEFT($B105,3)<>\"NOX\"),AK54*INDEX('Damage costs'!$W$16:$W$43,MATCH($B105,'Damage costs'!$C$16:$C$43,0))/1000,AK54*INDEX('Damage costs'!$AA$16:$AA$43,MATCH($B105,'Damage costs'!$C$16:$C$43,0))/1000),\"\")","v":""},{"$f":"IFERROR(IF(OR($C$110=FALSE,LEFT($B105,3)<>\"NOX\"),AL54*INDEX('Damage costs'!$W$16:$W$43,MATCH($B105,'Damage costs'!$C$16:$C$43,0))/1000,AL54*INDEX('Damage costs'!$AA$16:$AA$43,MATCH($B105,'Damage costs'!$C$16:$C$43,0))/1000),\"\")","v":""},{"$f":"IFERROR(IF(OR($C$110=FALSE,LEFT($B105,3)<>\"NOX\"),AM54*INDEX('Damage costs'!$W$16:$W$43,MATCH($B105,'Damage costs'!$C$16:$C$43,0))/1000,AM54*INDEX('Damage costs'!$AA$16:$AA$43,MATCH($B105,'Damage costs'!$C$16:$C$43,0))/1000),\"\")","v":""},{"$f":"IFERROR(IF(OR($C$110=FALSE,LEFT($B105,3)<>\"NOX\"),AN54*INDEX('Damage costs'!$W$16:$W$43,MATCH($B105,'Damage costs'!$C$16:$C$43,0))/1000,AN54*INDEX('Damage costs'!$AA$16:$AA$43,MATCH($B105,'Damage costs'!$C$16:$C$43,0))/1000),\"\")","v":""},{"$f":"IFERROR(IF(OR($C$110=FALSE,LEFT($B105,3)<>\"NOX\"),AO54*INDEX('Damage costs'!$W$16:$W$43,MATCH($B105,'Damage costs'!$C$16:$C$43,0))/1000,AO54*INDEX('Damage costs'!$AA$16:$AA$43,MATCH($B105,'Damage costs'!$C$16:$C$43,0))/1000),\"\")","v":""},{"$f":"IFERROR(IF(OR($C$110=FALSE,LEFT($B105,3)<>\"NOX\"),AP54*INDEX('Damage costs'!$W$16:$W$43,MATCH($B105,'Damage costs'!$C$16:$C$43,0))/1000,AP54*INDEX('Damage costs'!$AA$16:$AA$43,MATCH($B105,'Damage costs'!$C$16:$C$43,0))/1000),\"\")","v":""},{"$f":"IFERROR(IF(OR($C$110=FALSE,LEFT($B105,3)<>\"NOX\"),AQ54*INDEX('Damage costs'!$W$16:$W$43,MATCH($B105,'Damage costs'!$C$16:$C$43,0))/1000,AQ54*INDEX('Damage costs'!$AA$16:$AA$43,MATCH($B105,'Damage costs'!$C$16:$C$43,0))/1000),\"\")","v":""},{"$f":"IFERROR(IF(OR($C$110=FALSE,LEFT($B105,3)<>\"NOX\"),AR54*INDEX('Damage costs'!$W$16:$W$43,MATCH($B105,'Damage costs'!$C$16:$C$43,0))/1000,AR54*INDEX('Damage costs'!$AA$16:$AA$43,MATCH($B105,'Damage costs'!$C$16:$C$43,0))/1000),\"\")","v":""},{"$f":"IFERROR(IF(OR($C$110=FALSE,LEFT($B105,3)<>\"NOX\"),AS54*INDEX('Damage costs'!$W$16:$W$43,MATCH($B105,'Damage costs'!$C$16:$C$43,0))/1000,AS54*INDEX('Damage costs'!$AA$16:$AA$43,MATCH($B105,'Damage costs'!$C$16:$C$43,0))/1000),\"\")","v":""},{"$f":"IFERROR(IF(OR($C$110=FALSE,LEFT($B105,3)<>\"NOX\"),AT54*INDEX('Damage costs'!$W$16:$W$43,MATCH($B105,'Damage costs'!$C$16:$C$43,0))/1000,AT54*INDEX('Damage costs'!$AA$16:$AA$43,MATCH($B105,'Damage costs'!$C$16:$C$43,0))/1000),\"\")","v":""},{"$f":"IFERROR(IF(OR($C$110=FALSE,LEFT($B105,3)<>\"NOX\"),AU54*INDEX('Damage costs'!$W$16:$W$43,MATCH($B105,'Damage costs'!$C$16:$C$43,0))/1000,AU54*INDEX('Damage costs'!$AA$16:$AA$43,MATCH($B105,'Damage costs'!$C$16:$C$43,0))/1000),\"\")","v":""},{"$f":"IFERROR(IF(OR($C$110=FALSE,LEFT($B105,3)<>\"NOX\"),AV54*INDEX('Damage costs'!$W$16:$W$43,MATCH($B105,'Damage costs'!$C$16:$C$43,0))/1000,AV54*INDEX('Damage costs'!$AA$16:$AA$43,MATCH($B105,'Damage costs'!$C$16:$C$43,0))/1000),\"\")","v":""},{"$f":"IFERROR(IF(OR($C$110=FALSE,LEFT($B105,3)<>\"NOX\"),AW54*INDEX('Damage costs'!$W$16:$W$43,MATCH($B105,'Damage costs'!$C$16:$C$43,0))/1000,AW54*INDEX('Damage costs'!$AA$16:$AA$43,MATCH($B105,'Damage costs'!$C$16:$C$43,0))/1000),\"\")","v":""},{"$f":"IFERROR(IF(OR($C$110=FALSE,LEFT($B105,3)<>\"NOX\"),AX54*INDEX('Damage costs'!$W$16:$W$43,MATCH($B105,'Damage costs'!$C$16:$C$43,0))/1000,AX54*INDEX('Damage costs'!$AA$16:$AA$43,MATCH($B105,'Damage costs'!$C$16:$C$43,0))/1000),\"\")","v":""},{"$f":"IFERROR(IF(OR($C$110=FALSE,LEFT($B105,3)<>\"NOX\"),AY54*INDEX('Damage costs'!$W$16:$W$43,MATCH($B105,'Damage costs'!$C$16:$C$43,0))/1000,AY54*INDEX('Damage costs'!$AA$16:$AA$43,MATCH($B105,'Damage costs'!$C$16:$C$43,0))/1000),\"\")","v":""},{"$f":"IFERROR(IF(OR($C$110=FALSE,LEFT($B105,3)<>\"NOX\"),AZ54*INDEX('Damage costs'!$W$16:$W$43,MATCH($B105,'Damage costs'!$C$16:$C$43,0))/1000,AZ54*INDEX('Damage costs'!$AA$16:$AA$43,MATCH($B105,'Damage costs'!$C$16:$C$43,0))/1000),\"\")","v":""},{"$f":"IFERROR(IF(OR($C$110=FALSE,LEFT($B105,3)<>\"NOX\"),BA54*INDEX('Damage costs'!$W$16:$W$43,MATCH($B105,'Damage costs'!$C$16:$C$43,0))/1000,BA54*INDEX('Damage costs'!$AA$16:$AA$43,MATCH($B105,'Damage costs'!$C$16:$C$43,0))/1000),\"\")","v":""},{"$f":"IFERROR(IF(OR($C$110=FALSE,LEFT($B105,3)<>\"NOX\"),BB54*INDEX('Damage costs'!$W$16:$W$43,MATCH($B105,'Damage costs'!$C$16:$C$43,0))/1000,BB54*INDEX('Damage costs'!$AA$16:$AA$43,MATCH($B105,'Damage costs'!$C$16:$C$43,0))/1000),\"\")","v":""},{"$f":"IFERROR(IF(OR($C$110=FALSE,LEFT($B105,3)<>\"NOX\"),BC54*INDEX('Damage costs'!$W$16:$W$43,MATCH($B105,'Damage costs'!$C$16:$C$43,0))/1000,BC54*INDEX('Damage costs'!$AA$16:$AA$43,MATCH($B105,'Damage costs'!$C$16:$C$43,0))/1000),\"\")","v":""},{"$f":"IFERROR(IF(OR($C$110=FALSE,LEFT($B105,3)<>\"NOX\"),BD54*INDEX('Damage costs'!$W$16:$W$43,MATCH($B105,'Damage costs'!$C$16:$C$43,0))/1000,BD54*INDEX('Damage costs'!$AA$16:$AA$43,MATCH($B105,'Damage costs'!$C$16:$C$43,0))/1000),\"\")","v":""},{"$f":"IFERROR(IF(OR($C$110=FALSE,LEFT($B105,3)<>\"NOX\"),BE54*INDEX('Damage costs'!$W$16:$W$43,MATCH($B105,'Damage costs'!$C$16:$C$43,0))/1000,BE54*INDEX('Damage costs'!$AA$16:$AA$43,MATCH($B105,'Damage costs'!$C$16:$C$43,0))/1000),\"\")","v":""},{"$f":"IFERROR(IF(OR($C$110=FALSE,LEFT($B105,3)<>\"NOX\"),BF54*INDEX('Damage costs'!$W$16:$W$43,MATCH($B105,'Damage costs'!$C$16:$C$43,0))/1000,BF54*INDEX('Damage costs'!$AA$16:$AA$43,MATCH($B105,'Damage costs'!$C$16:$C$43,0))/1000),\"\")","v":""},{"$f":"IFERROR(IF(OR($C$110=FALSE,LEFT($B105,3)<>\"NOX\"),BG54*INDEX('Damage costs'!$W$16:$W$43,MATCH($B105,'Damage costs'!$C$16:$C$43,0))/1000,BG54*INDEX('Damage costs'!$AA$16:$AA$43,MATCH($B105,'Damage costs'!$C$16:$C$43,0))/1000),\"\")","v":""},{"$f":"IFERROR(IF(OR($C$110=FALSE,LEFT($B105,3)<>\"NOX\"),BH54*INDEX('Damage costs'!$W$16:$W$43,MATCH($B105,'Damage costs'!$C$16:$C$43,0))/1000,BH54*INDEX('Damage costs'!$AA$16:$AA$43,MATCH($B105,'Damage costs'!$C$16:$C$43,0))/1000),\"\")","v":""},{"$f":"IFERROR(IF(OR($C$110=FALSE,LEFT($B105,3)<>\"NOX\"),BI54*INDEX('Damage costs'!$W$16:$W$43,MATCH($B105,'Damage costs'!$C$16:$C$43,0))/1000,BI54*INDEX('Damage costs'!$AA$16:$AA$43,MATCH($B105,'Damage costs'!$C$16:$C$43,0))/1000),\"\")","v":""},{"$f":"IFERROR(IF(OR($C$110=FALSE,LEFT($B105,3)<>\"NOX\"),BJ54*INDEX('Damage costs'!$W$16:$W$43,MATCH($B105,'Damage costs'!$C$16:$C$43,0))/1000,BJ54*INDEX('Damage costs'!$AA$16:$AA$43,MATCH($B105,'Damage costs'!$C$16:$C$43,0))/1000),\"\")","v":""},{"$f":"IFERROR(IF(OR($C$110=FALSE,LEFT($B105,3)<>\"NOX\"),BK54*INDEX('Damage costs'!$W$16:$W$43,MATCH($B105,'Damage costs'!$C$16:$C$43,0))/1000,BK54*INDEX('Damage costs'!$AA$16:$AA$43,MATCH($B105,'Damage costs'!$C$16:$C$43,0))/1000),\"\")","v":""},{"$f":"IFERROR(IF(OR($C$110=FALSE,LEFT($B105,3)<>\"NOX\"),BL54*INDEX('Damage costs'!$W$16:$W$43,MATCH($B105,'Damage costs'!$C$16:$C$43,0))/1000,BL54*INDEX('Damage costs'!$AA$16:$AA$43,MATCH($B105,'Damage costs'!$C$16:$C$43,0))/1000),\"\")","v":""},{"$f":"IFERROR(IF(OR($C$110=FALSE,LEFT($B105,3)<>\"NOX\"),BM54*INDEX('Damage costs'!$W$16:$W$43,MATCH($B105,'Damage costs'!$C$16:$C$43,0))/1000,BM54*INDEX('Damage costs'!$AA$16:$AA$43,MATCH($B105,'Damage costs'!$C$16:$C$43,0))/1000),\"\")","v":""},{"$f":"IFERROR(IF(OR($C$110=FALSE,LEFT($B105,3)<>\"NOX\"),BN54*INDEX('Damage costs'!$W$16:$W$43,MATCH($B105,'Damage costs'!$C$16:$C$43,0))/1000,BN54*INDEX('Damage costs'!$AA$16:$AA$43,MATCH($B105,'Damage costs'!$C$16:$C$43,0))/1000),\"\")","v":""},{"$f":"IFERROR(IF(OR($C$110=FALSE,LEFT($B105,3)<>\"NOX\"),BO54*INDEX('Damage costs'!$W$16:$W$43,MATCH($B105,'Damage costs'!$C$16:$C$43,0))/1000,BO54*INDEX('Damage costs'!$AA$16:$AA$43,MATCH($B105,'Damage costs'!$C$16:$C$43,0))/1000),\"\")","v":""},{"$f":"IFERROR(IF(OR($C$110=FALSE,LEFT($B105,3)<>\"NOX\"),BP54*INDEX('Damage costs'!$W$16:$W$43,MATCH($B105,'Damage costs'!$C$16:$C$43,0))/1000,BP54*INDEX('Damage costs'!$AA$16:$AA$43,MATCH($B105,'Damage costs'!$C$16:$C$43,0))/1000),\"\")","v":""},{"$f":"IFERROR(IF(OR($C$110=FALSE,LEFT($B105,3)<>\"NOX\"),BQ54*INDEX('Damage costs'!$W$16:$W$43,MATCH($B105,'Damage costs'!$C$16:$C$43,0))/1000,BQ54*INDEX('Damage costs'!$AA$16:$AA$43,MATCH($B105,'Damage costs'!$C$16:$C$43,0))/1000),\"\")","v":""},{"$f":"IFERROR(IF(OR($C$110=FALSE,LEFT($B105,3)<>\"NOX\"),BR54*INDEX('Damage costs'!$W$16:$W$43,MATCH($B105,'Damage costs'!$C$16:$C$43,0))/1000,BR54*INDEX('Damage costs'!$AA$16:$AA$43,MATCH($B105,'Damage costs'!$C$16:$C$43,0))/1000),\"\")","v":""},{"$f":"IFERROR(IF(OR($C$110=FALSE,LEFT($B105,3)<>\"NOX\"),BS54*INDEX('Damage costs'!$W$16:$W$43,MATCH($B105,'Damage costs'!$C$16:$C$43,0))/1000,BS54*INDEX('Damage costs'!$AA$16:$AA$43,MATCH($B105,'Damage costs'!$C$16:$C$43,0))/1000),\"\")","v":""},{"$f":"IFERROR(IF(OR($C$110=FALSE,LEFT($B105,3)<>\"NOX\"),BT54*INDEX('Damage costs'!$W$16:$W$43,MATCH($B105,'Damage costs'!$C$16:$C$43,0))/1000,BT54*INDEX('Damage costs'!$AA$16:$AA$43,MATCH($B105,'Damage costs'!$C$16:$C$43,0))/1000),\"\")","v":""},{"$f":"IFERROR(IF(OR($C$110=FALSE,LEFT($B105,3)<>\"NOX\"),BU54*INDEX('Damage costs'!$W$16:$W$43,MATCH($B105,'Damage costs'!$C$16:$C$43,0))/1000,BU54*INDEX('Damage costs'!$AA$16:$AA$43,MATCH($B105,'Damage costs'!$C$16:$C$43,0))/1000),\"\")","v":""},{"$f":"IFERROR(IF(OR($C$110=FALSE,LEFT($B105,3)<>\"NOX\"),BV54*INDEX('Damage costs'!$W$16:$W$43,MATCH($B105,'Damage costs'!$C$16:$C$43,0))/1000,BV54*INDEX('Damage costs'!$AA$16:$AA$43,MATCH($B105,'Damage costs'!$C$16:$C$43,0))/1000),\"\")","v":""},{"$f":"IFERROR(IF(OR($C$110=FALSE,LEFT($B105,3)<>\"NOX\"),BW54*INDEX('Damage costs'!$W$16:$W$43,MATCH($B105,'Damage costs'!$C$16:$C$43,0))/1000,BW54*INDEX('Damage costs'!$AA$16:$AA$43,MATCH($B105,'Damage costs'!$C$16:$C$43,0))/1000),\"\")","v":""},{"$f":"IFERROR(IF(OR($C$110=FALSE,LEFT($B105,3)<>\"NOX\"),BX54*INDEX('Damage costs'!$W$16:$W$43,MATCH($B105,'Damage costs'!$C$16:$C$43,0))/1000,BX54*INDEX('Damage costs'!$AA$16:$AA$43,MATCH($B105,'Damage costs'!$C$16:$C$43,0))/1000),\"\")","v":""},{"$f":"IFERROR(IF(OR($C$110=FALSE,LEFT($B105,3)<>\"NOX\"),BY54*INDEX('Damage costs'!$W$16:$W$43,MATCH($B105,'Damage costs'!$C$16:$C$43,0))/1000,BY54*INDEX('Damage costs'!$AA$16:$AA$43,MATCH($B105,'Damage costs'!$C$16:$C$43,0))/1000),\"\")","v":""},{"$f":"IFERROR(IF(OR($C$110=FALSE,LEFT($B105,3)<>\"NOX\"),BZ54*INDEX('Damage costs'!$W$16:$W$43,MATCH($B105,'Damage costs'!$C$16:$C$43,0))/1000,BZ54*INDEX('Damage costs'!$AA$16:$AA$43,MATCH($B105,'Damage costs'!$C$16:$C$43,0))/1000),\"\")","v":""},{"$f":"IFERROR(IF(OR($C$110=FALSE,LEFT($B105,3)<>\"NOX\"),CA54*INDEX('Damage costs'!$W$16:$W$43,MATCH($B105,'Damage costs'!$C$16:$C$43,0))/1000,CA54*INDEX('Damage costs'!$AA$16:$AA$43,MATCH($B105,'Damage costs'!$C$16:$C$43,0))/1000),\"\")","v":""},{"$f":"IFERROR(IF(OR($C$110=FALSE,LEFT($B105,3)<>\"NOX\"),CB54*INDEX('Damage costs'!$W$16:$W$43,MATCH($B105,'Damage costs'!$C$16:$C$43,0))/1000,CB54*INDEX('Damage costs'!$AA$16:$AA$43,MATCH($B105,'Damage costs'!$C$16:$C$43,0))/1000),\"\")","v":""},{"$f":"IFERROR(IF(OR($C$110=FALSE,LEFT($B105,3)<>\"NOX\"),CC54*INDEX('Damage costs'!$W$16:$W$43,MATCH($B105,'Damage costs'!$C$16:$C$43,0))/1000,CC54*INDEX('Damage costs'!$AA$16:$AA$43,MATCH($B105,'Damage costs'!$C$16:$C$43,0))/1000),\"\")","v":""},{"$f":"IFERROR(IF(OR($C$110=FALSE,LEFT($B105,3)<>\"NOX\"),CD54*INDEX('Damage costs'!$W$16:$W$43,MATCH($B105,'Damage costs'!$C$16:$C$43,0))/1000,CD54*INDEX('Damage costs'!$AA$16:$AA$43,MATCH($B105,'Damage costs'!$C$16:$C$43,0))/1000),\"\")","v":""},{"$f":"IFERROR(IF(OR($C$110=FALSE,LEFT($B105,3)<>\"NOX\"),CE54*INDEX('Damage costs'!$W$16:$W$43,MATCH($B105,'Damage costs'!$C$16:$C$43,0))/1000,CE54*INDEX('Damage costs'!$AA$16:$AA$43,MATCH($B105,'Damage costs'!$C$16:$C$43,0))/1000),\"\")","v":""},{"$f":"IFERROR(IF(OR($C$110=FALSE,LEFT($B105,3)<>\"NOX\"),CF54*INDEX('Damage costs'!$W$16:$W$43,MATCH($B105,'Damage costs'!$C$16:$C$43,0))/1000,CF54*INDEX('Damage costs'!$AA$16:$AA$43,MATCH($B105,'Damage costs'!$C$16:$C$43,0))/1000),\"\")","v":""},{"$f":"IFERROR(IF(OR($C$110=FALSE,LEFT($B105,3)<>\"NOX\"),CG54*INDEX('Damage costs'!$W$16:$W$43,MATCH($B105,'Damage costs'!$C$16:$C$43,0))/1000,CG54*INDEX('Damage costs'!$AA$16:$AA$43,MATCH($B105,'Damage costs'!$C$16:$C$43,0))/1000),\"\")","v":""},{"$f":"IFERROR(IF(OR($C$110=FALSE,LEFT($B105,3)<>\"NOX\"),CH54*INDEX('Damage costs'!$W$16:$W$43,MATCH($B105,'Damage costs'!$C$16:$C$43,0))/1000,CH54*INDEX('Damage costs'!$AA$16:$AA$43,MATCH($B105,'Damage costs'!$C$16:$C$43,0))/1000),\"\")","v":""},{"$f":"IFERROR(IF(OR($C$110=FALSE,LEFT($B105,3)<>\"NOX\"),CI54*INDEX('Damage costs'!$W$16:$W$43,MATCH($B105,'Damage costs'!$C$16:$C$43,0))/1000,CI54*INDEX('Damage costs'!$AA$16:$AA$43,MATCH($B105,'Damage costs'!$C$16:$C$43,0))/1000),\"\")","v":""},{"$f":"IFERROR(IF(OR($C$110=FALSE,LEFT($B105,3)<>\"NOX\"),CJ54*INDEX('Damage costs'!$W$16:$W$43,MATCH($B105,'Damage costs'!$C$16:$C$43,0))/1000,CJ54*INDEX('Damage costs'!$AA$16:$AA$43,MATCH($B105,'Damage costs'!$C$16:$C$43,0))/1000),\"\")","v":""},{"$f":"IFERROR(IF(OR($C$110=FALSE,LEFT($B105,3)<>\"NOX\"),CK54*INDEX('Damage costs'!$W$16:$W$43,MATCH($B105,'Damage costs'!$C$16:$C$43,0))/1000,CK54*INDEX('Damage costs'!$AA$16:$AA$43,MATCH($B105,'Damage costs'!$C$16:$C$43,0))/1000),\"\")","v":""},{"$f":"IFERROR(IF(OR($C$110=FALSE,LEFT($B105,3)<>\"NOX\"),CL54*INDEX('Damage costs'!$W$16:$W$43,MATCH($B105,'Damage costs'!$C$16:$C$43,0))/1000,CL54*INDEX('Damage costs'!$AA$16:$AA$43,MATCH($B105,'Damage costs'!$C$16:$C$43,0))/1000),\"\")","v":""},{"$f":"IFERROR(IF(OR($C$110=FALSE,LEFT($B105,3)<>\"NOX\"),CM54*INDEX('Damage costs'!$W$16:$W$43,MATCH($B105,'Damage costs'!$C$16:$C$43,0))/1000,CM54*INDEX('Damage costs'!$AA$16:$AA$43,MATCH($B105,'Damage costs'!$C$16:$C$43,0))/1000),\"\")","v":""},{"$f":"IFERROR(IF(OR($C$110=FALSE,LEFT($B105,3)<>\"NOX\"),CN54*INDEX('Damage costs'!$W$16:$W$43,MATCH($B105,'Damage costs'!$C$16:$C$43,0))/1000,CN54*INDEX('Damage costs'!$AA$16:$AA$43,MATCH($B105,'Damage costs'!$C$16:$C$43,0))/1000),\"\")","v":""},{"$f":"IFERROR(IF(OR($C$110=FALSE,LEFT($B105,3)<>\"NOX\"),CO54*INDEX('Damage costs'!$W$16:$W$43,MATCH($B105,'Damage costs'!$C$16:$C$43,0))/1000,CO54*INDEX('Damage costs'!$AA$16:$AA$43,MATCH($B105,'Damage costs'!$C$16:$C$43,0))/1000),\"\")","v":""},{"$f":"IFERROR(IF(OR($C$110=FALSE,LEFT($B105,3)<>\"NOX\"),CP54*INDEX('Damage costs'!$W$16:$W$43,MATCH($B105,'Damage costs'!$C$16:$C$43,0))/1000,CP54*INDEX('Damage costs'!$AA$16:$AA$43,MATCH($B105,'Damage costs'!$C$16:$C$43,0))/1000),\"\")","v":""},{"$f":"IFERROR(IF(OR($C$110=FALSE,LEFT($B105,3)<>\"NOX\"),CQ54*INDEX('Damage costs'!$W$16:$W$43,MATCH($B105,'Damage costs'!$C$16:$C$43,0))/1000,CQ54*INDEX('Damage costs'!$AA$16:$AA$43,MATCH($B105,'Damage costs'!$C$16:$C$43,0))/1000),\"\")","v":""},{"$f":"IFERROR(IF(OR($C$110=FALSE,LEFT($B105,3)<>\"NOX\"),CR54*INDEX('Damage costs'!$W$16:$W$43,MATCH($B105,'Damage costs'!$C$16:$C$43,0))/1000,CR54*INDEX('Damage costs'!$AA$16:$AA$43,MATCH($B105,'Damage costs'!$C$16:$C$43,0))/1000),\"\")","v":""},{"$f":"IFERROR(IF(OR($C$110=FALSE,LEFT($B105,3)<>\"NOX\"),CS54*INDEX('Damage costs'!$W$16:$W$43,MATCH($B105,'Damage costs'!$C$16:$C$43,0))/1000,CS54*INDEX('Damage costs'!$AA$16:$AA$43,MATCH($B105,'Damage costs'!$C$16:$C$43,0))/1000),\"\")","v":""},{"$f":"IFERROR(IF(OR($C$110=FALSE,LEFT($B105,3)<>\"NOX\"),CT54*INDEX('Damage costs'!$W$16:$W$43,MATCH($B105,'Damage costs'!$C$16:$C$43,0))/1000,CT54*INDEX('Damage costs'!$AA$16:$AA$43,MATCH($B105,'Damage costs'!$C$16:$C$43,0))/1000),\"\")","v":""},{"$f":"IFERROR(IF(OR($C$110=FALSE,LEFT($B105,3)<>\"NOX\"),CU54*INDEX('Damage costs'!$W$16:$W$43,MATCH($B105,'Damage costs'!$C$16:$C$43,0))/1000,CU54*INDEX('Damage costs'!$AA$16:$AA$43,MATCH($B105,'Damage costs'!$C$16:$C$43,0))/1000),\"\")","v":""},{"$f":"IFERROR(IF(OR($C$110=FALSE,LEFT($B105,3)<>\"NOX\"),CV54*INDEX('Damage costs'!$W$16:$W$43,MATCH($B105,'Damage costs'!$C$16:$C$43,0))/1000,CV54*INDEX('Damage costs'!$AA$16:$AA$43,MATCH($B105,'Damage costs'!$C$16:$C$43,0))/1000),\"\")","v":""},{"$f":"IFERROR(IF(OR($C$110=FALSE,LEFT($B105,3)<>\"NOX\"),CW54*INDEX('Damage costs'!$W$16:$W$43,MATCH($B105,'Damage costs'!$C$16:$C$43,0))/1000,CW54*INDEX('Damage costs'!$AA$16:$AA$43,MATCH($B105,'Damage costs'!$C$16:$C$43,0))/1000),\"\")","v":""},{"$f":"IFERROR(IF(OR($C$110=FALSE,LEFT($B105,3)<>\"NOX\"),CX54*INDEX('Damage costs'!$W$16:$W$43,MATCH($B105,'Damage costs'!$C$16:$C$43,0))/1000,CX54*INDEX('Damage costs'!$AA$16:$AA$43,MATCH($B105,'Damage costs'!$C$16:$C$43,0))/1000),\"\")","v":""},{"$f":"IFERROR(IF(OR($C$110=FALSE,LEFT($B105,3)<>\"NOX\"),CY54*INDEX('Damage costs'!$W$16:$W$43,MATCH($B105,'Damage costs'!$C$16:$C$43,0))/1000,CY54*INDEX('Damage costs'!$AA$16:$AA$43,MATCH($B105,'Damage costs'!$C$16:$C$43,0))/1000),\"\")","v":""}]
[null,0,"£000's",{"$f":"IFERROR(IF(OR($C$110=FALSE,LEFT($B106,3)<>\"NOX\"),D55*INDEX('Damage costs'!$W$16:$W$43,MATCH($B106,'Damage costs'!$C$16:$C$43,0))/1000,D55*INDEX('Damage costs'!$AA$16:$AA$43,MATCH($B106,'Damage costs'!$C$16:$C$43,0))/1000),\"\")","v":""},{"$f":"IFERROR(IF(OR($C$110=FALSE,LEFT($B106,3)<>\"NOX\"),E55*INDEX('Damage costs'!$W$16:$W$43,MATCH($B106,'Damage costs'!$C$16:$C$43,0))/1000,E55*INDEX('Damage costs'!$AA$16:$AA$43,MATCH($B106,'Damage costs'!$C$16:$C$43,0))/1000),\"\")","v":""},{"$f":"IFERROR(IF(OR($C$110=FALSE,LEFT($B106,3)<>\"NOX\"),F55*INDEX('Damage costs'!$W$16:$W$43,MATCH($B106,'Damage costs'!$C$16:$C$43,0))/1000,F55*INDEX('Damage costs'!$AA$16:$AA$43,MATCH($B106,'Damage costs'!$C$16:$C$43,0))/1000),\"\")","v":""},{"$f":"IFERROR(IF(OR($C$110=FALSE,LEFT($B106,3)<>\"NOX\"),G55*INDEX('Damage costs'!$W$16:$W$43,MATCH($B106,'Damage costs'!$C$16:$C$43,0))/1000,G55*INDEX('Damage costs'!$AA$16:$AA$43,MATCH($B106,'Damage costs'!$C$16:$C$43,0))/1000),\"\")","v":""},{"$f":"IFERROR(IF(OR($C$110=FALSE,LEFT($B106,3)<>\"NOX\"),H55*INDEX('Damage costs'!$W$16:$W$43,MATCH($B106,'Damage costs'!$C$16:$C$43,0))/1000,H55*INDEX('Damage costs'!$AA$16:$AA$43,MATCH($B106,'Damage costs'!$C$16:$C$43,0))/1000),\"\")","v":""},{"$f":"IFERROR(IF(OR($C$110=FALSE,LEFT($B106,3)<>\"NOX\"),I55*INDEX('Damage costs'!$W$16:$W$43,MATCH($B106,'Damage costs'!$C$16:$C$43,0))/1000,I55*INDEX('Damage costs'!$AA$16:$AA$43,MATCH($B106,'Damage costs'!$C$16:$C$43,0))/1000),\"\")","v":""},{"$f":"IFERROR(IF(OR($C$110=FALSE,LEFT($B106,3)<>\"NOX\"),J55*INDEX('Damage costs'!$W$16:$W$43,MATCH($B106,'Damage costs'!$C$16:$C$43,0))/1000,J55*INDEX('Damage costs'!$AA$16:$AA$43,MATCH($B106,'Damage costs'!$C$16:$C$43,0))/1000),\"\")","v":""},{"$f":"IFERROR(IF(OR($C$110=FALSE,LEFT($B106,3)<>\"NOX\"),K55*INDEX('Damage costs'!$W$16:$W$43,MATCH($B106,'Damage costs'!$C$16:$C$43,0))/1000,K55*INDEX('Damage costs'!$AA$16:$AA$43,MATCH($B106,'Damage costs'!$C$16:$C$43,0))/1000),\"\")","v":""},{"$f":"IFERROR(IF(OR($C$110=FALSE,LEFT($B106,3)<>\"NOX\"),L55*INDEX('Damage costs'!$W$16:$W$43,MATCH($B106,'Damage costs'!$C$16:$C$43,0))/1000,L55*INDEX('Damage costs'!$AA$16:$AA$43,MATCH($B106,'Damage costs'!$C$16:$C$43,0))/1000),\"\")","v":""},{"$f":"IFERROR(IF(OR($C$110=FALSE,LEFT($B106,3)<>\"NOX\"),M55*INDEX('Damage costs'!$W$16:$W$43,MATCH($B106,'Damage costs'!$C$16:$C$43,0))/1000,M55*INDEX('Damage costs'!$AA$16:$AA$43,MATCH($B106,'Damage costs'!$C$16:$C$43,0))/1000),\"\")","v":""},{"$f":"IFERROR(IF(OR($C$110=FALSE,LEFT($B106,3)<>\"NOX\"),N55*INDEX('Damage costs'!$W$16:$W$43,MATCH($B106,'Damage costs'!$C$16:$C$43,0))/1000,N55*INDEX('Damage costs'!$AA$16:$AA$43,MATCH($B106,'Damage costs'!$C$16:$C$43,0))/1000),\"\")","v":""},{"$f":"IFERROR(IF(OR($C$110=FALSE,LEFT($B106,3)<>\"NOX\"),O55*INDEX('Damage costs'!$W$16:$W$43,MATCH($B106,'Damage costs'!$C$16:$C$43,0))/1000,O55*INDEX('Damage costs'!$AA$16:$AA$43,MATCH($B106,'Damage costs'!$C$16:$C$43,0))/1000),\"\")","v":""},{"$f":"IFERROR(IF(OR($C$110=FALSE,LEFT($B106,3)<>\"NOX\"),P55*INDEX('Damage costs'!$W$16:$W$43,MATCH($B106,'Damage costs'!$C$16:$C$43,0))/1000,P55*INDEX('Damage costs'!$AA$16:$AA$43,MATCH($B106,'Damage costs'!$C$16:$C$43,0))/1000),\"\")","v":""},{"$f":"IFERROR(IF(OR($C$110=FALSE,LEFT($B106,3)<>\"NOX\"),Q55*INDEX('Damage costs'!$W$16:$W$43,MATCH($B106,'Damage costs'!$C$16:$C$43,0))/1000,Q55*INDEX('Damage costs'!$AA$16:$AA$43,MATCH($B106,'Damage costs'!$C$16:$C$43,0))/1000),\"\")","v":""},{"$f":"IFERROR(IF(OR($C$110=FALSE,LEFT($B106,3)<>\"NOX\"),R55*INDEX('Damage costs'!$W$16:$W$43,MATCH($B106,'Damage costs'!$C$16:$C$43,0))/1000,R55*INDEX('Damage costs'!$AA$16:$AA$43,MATCH($B106,'Damage costs'!$C$16:$C$43,0))/1000),\"\")","v":""},{"$f":"IFERROR(IF(OR($C$110=FALSE,LEFT($B106,3)<>\"NOX\"),S55*INDEX('Damage costs'!$W$16:$W$43,MATCH($B106,'Damage costs'!$C$16:$C$43,0))/1000,S55*INDEX('Damage costs'!$AA$16:$AA$43,MATCH($B106,'Damage costs'!$C$16:$C$43,0))/1000),\"\")","v":""},{"$f":"IFERROR(IF(OR($C$110=FALSE,LEFT($B106,3)<>\"NOX\"),T55*INDEX('Damage costs'!$W$16:$W$43,MATCH($B106,'Damage costs'!$C$16:$C$43,0))/1000,T55*INDEX('Damage costs'!$AA$16:$AA$43,MATCH($B106,'Damage costs'!$C$16:$C$43,0))/1000),\"\")","v":""},{"$f":"IFERROR(IF(OR($C$110=FALSE,LEFT($B106,3)<>\"NOX\"),U55*INDEX('Damage costs'!$W$16:$W$43,MATCH($B106,'Damage costs'!$C$16:$C$43,0))/1000,U55*INDEX('Damage costs'!$AA$16:$AA$43,MATCH($B106,'Damage costs'!$C$16:$C$43,0))/1000),\"\")","v":""},{"$f":"IFERROR(IF(OR($C$110=FALSE,LEFT($B106,3)<>\"NOX\"),V55*INDEX('Damage costs'!$W$16:$W$43,MATCH($B106,'Damage costs'!$C$16:$C$43,0))/1000,V55*INDEX('Damage costs'!$AA$16:$AA$43,MATCH($B106,'Damage costs'!$C$16:$C$43,0))/1000),\"\")","v":""},{"$f":"IFERROR(IF(OR($C$110=FALSE,LEFT($B106,3)<>\"NOX\"),W55*INDEX('Damage costs'!$W$16:$W$43,MATCH($B106,'Damage costs'!$C$16:$C$43,0))/1000,W55*INDEX('Damage costs'!$AA$16:$AA$43,MATCH($B106,'Damage costs'!$C$16:$C$43,0))/1000),\"\")","v":""},{"$f":"IFERROR(IF(OR($C$110=FALSE,LEFT($B106,3)<>\"NOX\"),X55*INDEX('Damage costs'!$W$16:$W$43,MATCH($B106,'Damage costs'!$C$16:$C$43,0))/1000,X55*INDEX('Damage costs'!$AA$16:$AA$43,MATCH($B106,'Damage costs'!$C$16:$C$43,0))/1000),\"\")","v":""},{"$f":"IFERROR(IF(OR($C$110=FALSE,LEFT($B106,3)<>\"NOX\"),Y55*INDEX('Damage costs'!$W$16:$W$43,MATCH($B106,'Damage costs'!$C$16:$C$43,0))/1000,Y55*INDEX('Damage costs'!$AA$16:$AA$43,MATCH($B106,'Damage costs'!$C$16:$C$43,0))/1000),\"\")","v":""},{"$f":"IFERROR(IF(OR($C$110=FALSE,LEFT($B106,3)<>\"NOX\"),Z55*INDEX('Damage costs'!$W$16:$W$43,MATCH($B106,'Damage costs'!$C$16:$C$43,0))/1000,Z55*INDEX('Damage costs'!$AA$16:$AA$43,MATCH($B106,'Damage costs'!$C$16:$C$43,0))/1000),\"\")","v":""},{"$f":"IFERROR(IF(OR($C$110=FALSE,LEFT($B106,3)<>\"NOX\"),AA55*INDEX('Damage costs'!$W$16:$W$43,MATCH($B106,'Damage costs'!$C$16:$C$43,0))/1000,AA55*INDEX('Damage costs'!$AA$16:$AA$43,MATCH($B106,'Damage costs'!$C$16:$C$43,0))/1000),\"\")","v":""},{"$f":"IFERROR(IF(OR($C$110=FALSE,LEFT($B106,3)<>\"NOX\"),AB55*INDEX('Damage costs'!$W$16:$W$43,MATCH($B106,'Damage costs'!$C$16:$C$43,0))/1000,AB55*INDEX('Damage costs'!$AA$16:$AA$43,MATCH($B106,'Damage costs'!$C$16:$C$43,0))/1000),\"\")","v":""},{"$f":"IFERROR(IF(OR($C$110=FALSE,LEFT($B106,3)<>\"NOX\"),AC55*INDEX('Damage costs'!$W$16:$W$43,MATCH($B106,'Damage costs'!$C$16:$C$43,0))/1000,AC55*INDEX('Damage costs'!$AA$16:$AA$43,MATCH($B106,'Damage costs'!$C$16:$C$43,0))/1000),\"\")","v":""},{"$f":"IFERROR(IF(OR($C$110=FALSE,LEFT($B106,3)<>\"NOX\"),AD55*INDEX('Damage costs'!$W$16:$W$43,MATCH($B106,'Damage costs'!$C$16:$C$43,0))/1000,AD55*INDEX('Damage costs'!$AA$16:$AA$43,MATCH($B106,'Damage costs'!$C$16:$C$43,0))/1000),\"\")","v":""},{"$f":"IFERROR(IF(OR($C$110=FALSE,LEFT($B106,3)<>\"NOX\"),AE55*INDEX('Damage costs'!$W$16:$W$43,MATCH($B106,'Damage costs'!$C$16:$C$43,0))/1000,AE55*INDEX('Damage costs'!$AA$16:$AA$43,MATCH($B106,'Damage costs'!$C$16:$C$43,0))/1000),\"\")","v":""},{"$f":"IFERROR(IF(OR($C$110=FALSE,LEFT($B106,3)<>\"NOX\"),AF55*INDEX('Damage costs'!$W$16:$W$43,MATCH($B106,'Damage costs'!$C$16:$C$43,0))/1000,AF55*INDEX('Damage costs'!$AA$16:$AA$43,MATCH($B106,'Damage costs'!$C$16:$C$43,0))/1000),\"\")","v":""},{"$f":"IFERROR(IF(OR($C$110=FALSE,LEFT($B106,3)<>\"NOX\"),AG55*INDEX('Damage costs'!$W$16:$W$43,MATCH($B106,'Damage costs'!$C$16:$C$43,0))/1000,AG55*INDEX('Damage costs'!$AA$16:$AA$43,MATCH($B106,'Damage costs'!$C$16:$C$43,0))/1000),\"\")","v":""},{"$f":"IFERROR(IF(OR($C$110=FALSE,LEFT($B106,3)<>\"NOX\"),AH55*INDEX('Damage costs'!$W$16:$W$43,MATCH($B106,'Damage costs'!$C$16:$C$43,0))/1000,AH55*INDEX('Damage costs'!$AA$16:$AA$43,MATCH($B106,'Damage costs'!$C$16:$C$43,0))/1000),\"\")","v":""},{"$f":"IFERROR(IF(OR($C$110=FALSE,LEFT($B106,3)<>\"NOX\"),AI55*INDEX('Damage costs'!$W$16:$W$43,MATCH($B106,'Damage costs'!$C$16:$C$43,0))/1000,AI55*INDEX('Damage costs'!$AA$16:$AA$43,MATCH($B106,'Damage costs'!$C$16:$C$43,0))/1000),\"\")","v":""},{"$f":"IFERROR(IF(OR($C$110=FALSE,LEFT($B106,3)<>\"NOX\"),AJ55*INDEX('Damage costs'!$W$16:$W$43,MATCH($B106,'Damage costs'!$C$16:$C$43,0))/1000,AJ55*INDEX('Damage costs'!$AA$16:$AA$43,MATCH($B106,'Damage costs'!$C$16:$C$43,0))/1000),\"\")","v":""},{"$f":"IFERROR(IF(OR($C$110=FALSE,LEFT($B106,3)<>\"NOX\"),AK55*INDEX('Damage costs'!$W$16:$W$43,MATCH($B106,'Damage costs'!$C$16:$C$43,0))/1000,AK55*INDEX('Damage costs'!$AA$16:$AA$43,MATCH($B106,'Damage costs'!$C$16:$C$43,0))/1000),\"\")","v":""},{"$f":"IFERROR(IF(OR($C$110=FALSE,LEFT($B106,3)<>\"NOX\"),AL55*INDEX('Damage costs'!$W$16:$W$43,MATCH($B106,'Damage costs'!$C$16:$C$43,0))/1000,AL55*INDEX('Damage costs'!$AA$16:$AA$43,MATCH($B106,'Damage costs'!$C$16:$C$43,0))/1000),\"\")","v":""},{"$f":"IFERROR(IF(OR($C$110=FALSE,LEFT($B106,3)<>\"NOX\"),AM55*INDEX('Damage costs'!$W$16:$W$43,MATCH($B106,'Damage costs'!$C$16:$C$43,0))/1000,AM55*INDEX('Damage costs'!$AA$16:$AA$43,MATCH($B106,'Damage costs'!$C$16:$C$43,0))/1000),\"\")","v":""},{"$f":"IFERROR(IF(OR($C$110=FALSE,LEFT($B106,3)<>\"NOX\"),AN55*INDEX('Damage costs'!$W$16:$W$43,MATCH($B106,'Damage costs'!$C$16:$C$43,0))/1000,AN55*INDEX('Damage costs'!$AA$16:$AA$43,MATCH($B106,'Damage costs'!$C$16:$C$43,0))/1000),\"\")","v":""},{"$f":"IFERROR(IF(OR($C$110=FALSE,LEFT($B106,3)<>\"NOX\"),AO55*INDEX('Damage costs'!$W$16:$W$43,MATCH($B106,'Damage costs'!$C$16:$C$43,0))/1000,AO55*INDEX('Damage costs'!$AA$16:$AA$43,MATCH($B106,'Damage costs'!$C$16:$C$43,0))/1000),\"\")","v":""},{"$f":"IFERROR(IF(OR($C$110=FALSE,LEFT($B106,3)<>\"NOX\"),AP55*INDEX('Damage costs'!$W$16:$W$43,MATCH($B106,'Damage costs'!$C$16:$C$43,0))/1000,AP55*INDEX('Damage costs'!$AA$16:$AA$43,MATCH($B106,'Damage costs'!$C$16:$C$43,0))/1000),\"\")","v":""},{"$f":"IFERROR(IF(OR($C$110=FALSE,LEFT($B106,3)<>\"NOX\"),AQ55*INDEX('Damage costs'!$W$16:$W$43,MATCH($B106,'Damage costs'!$C$16:$C$43,0))/1000,AQ55*INDEX('Damage costs'!$AA$16:$AA$43,MATCH($B106,'Damage costs'!$C$16:$C$43,0))/1000),\"\")","v":""},{"$f":"IFERROR(IF(OR($C$110=FALSE,LEFT($B106,3)<>\"NOX\"),AR55*INDEX('Damage costs'!$W$16:$W$43,MATCH($B106,'Damage costs'!$C$16:$C$43,0))/1000,AR55*INDEX('Damage costs'!$AA$16:$AA$43,MATCH($B106,'Damage costs'!$C$16:$C$43,0))/1000),\"\")","v":""},{"$f":"IFERROR(IF(OR($C$110=FALSE,LEFT($B106,3)<>\"NOX\"),AS55*INDEX('Damage costs'!$W$16:$W$43,MATCH($B106,'Damage costs'!$C$16:$C$43,0))/1000,AS55*INDEX('Damage costs'!$AA$16:$AA$43,MATCH($B106,'Damage costs'!$C$16:$C$43,0))/1000),\"\")","v":""},{"$f":"IFERROR(IF(OR($C$110=FALSE,LEFT($B106,3)<>\"NOX\"),AT55*INDEX('Damage costs'!$W$16:$W$43,MATCH($B106,'Damage costs'!$C$16:$C$43,0))/1000,AT55*INDEX('Damage costs'!$AA$16:$AA$43,MATCH($B106,'Damage costs'!$C$16:$C$43,0))/1000),\"\")","v":""},{"$f":"IFERROR(IF(OR($C$110=FALSE,LEFT($B106,3)<>\"NOX\"),AU55*INDEX('Damage costs'!$W$16:$W$43,MATCH($B106,'Damage costs'!$C$16:$C$43,0))/1000,AU55*INDEX('Damage costs'!$AA$16:$AA$43,MATCH($B106,'Damage costs'!$C$16:$C$43,0))/1000),\"\")","v":""},{"$f":"IFERROR(IF(OR($C$110=FALSE,LEFT($B106,3)<>\"NOX\"),AV55*INDEX('Damage costs'!$W$16:$W$43,MATCH($B106,'Damage costs'!$C$16:$C$43,0))/1000,AV55*INDEX('Damage costs'!$AA$16:$AA$43,MATCH($B106,'Damage costs'!$C$16:$C$43,0))/1000),\"\")","v":""},{"$f":"IFERROR(IF(OR($C$110=FALSE,LEFT($B106,3)<>\"NOX\"),AW55*INDEX('Damage costs'!$W$16:$W$43,MATCH($B106,'Damage costs'!$C$16:$C$43,0))/1000,AW55*INDEX('Damage costs'!$AA$16:$AA$43,MATCH($B106,'Damage costs'!$C$16:$C$43,0))/1000),\"\")","v":""},{"$f":"IFERROR(IF(OR($C$110=FALSE,LEFT($B106,3)<>\"NOX\"),AX55*INDEX('Damage costs'!$W$16:$W$43,MATCH($B106,'Damage costs'!$C$16:$C$43,0))/1000,AX55*INDEX('Damage costs'!$AA$16:$AA$43,MATCH($B106,'Damage costs'!$C$16:$C$43,0))/1000),\"\")","v":""},{"$f":"IFERROR(IF(OR($C$110=FALSE,LEFT($B106,3)<>\"NOX\"),AY55*INDEX('Damage costs'!$W$16:$W$43,MATCH($B106,'Damage costs'!$C$16:$C$43,0))/1000,AY55*INDEX('Damage costs'!$AA$16:$AA$43,MATCH($B106,'Damage costs'!$C$16:$C$43,0))/1000),\"\")","v":""},{"$f":"IFERROR(IF(OR($C$110=FALSE,LEFT($B106,3)<>\"NOX\"),AZ55*INDEX('Damage costs'!$W$16:$W$43,MATCH($B106,'Damage costs'!$C$16:$C$43,0))/1000,AZ55*INDEX('Damage costs'!$AA$16:$AA$43,MATCH($B106,'Damage costs'!$C$16:$C$43,0))/1000),\"\")","v":""},{"$f":"IFERROR(IF(OR($C$110=FALSE,LEFT($B106,3)<>\"NOX\"),BA55*INDEX('Damage costs'!$W$16:$W$43,MATCH($B106,'Damage costs'!$C$16:$C$43,0))/1000,BA55*INDEX('Damage costs'!$AA$16:$AA$43,MATCH($B106,'Damage costs'!$C$16:$C$43,0))/1000),\"\")","v":""},{"$f":"IFERROR(IF(OR($C$110=FALSE,LEFT($B106,3)<>\"NOX\"),BB55*INDEX('Damage costs'!$W$16:$W$43,MATCH($B106,'Damage costs'!$C$16:$C$43,0))/1000,BB55*INDEX('Damage costs'!$AA$16:$AA$43,MATCH($B106,'Damage costs'!$C$16:$C$43,0))/1000),\"\")","v":""},{"$f":"IFERROR(IF(OR($C$110=FALSE,LEFT($B106,3)<>\"NOX\"),BC55*INDEX('Damage costs'!$W$16:$W$43,MATCH($B106,'Damage costs'!$C$16:$C$43,0))/1000,BC55*INDEX('Damage costs'!$AA$16:$AA$43,MATCH($B106,'Damage costs'!$C$16:$C$43,0))/1000),\"\")","v":""},{"$f":"IFERROR(IF(OR($C$110=FALSE,LEFT($B106,3)<>\"NOX\"),BD55*INDEX('Damage costs'!$W$16:$W$43,MATCH($B106,'Damage costs'!$C$16:$C$43,0))/1000,BD55*INDEX('Damage costs'!$AA$16:$AA$43,MATCH($B106,'Damage costs'!$C$16:$C$43,0))/1000),\"\")","v":""},{"$f":"IFERROR(IF(OR($C$110=FALSE,LEFT($B106,3)<>\"NOX\"),BE55*INDEX('Damage costs'!$W$16:$W$43,MATCH($B106,'Damage costs'!$C$16:$C$43,0))/1000,BE55*INDEX('Damage costs'!$AA$16:$AA$43,MATCH($B106,'Damage costs'!$C$16:$C$43,0))/1000),\"\")","v":""},{"$f":"IFERROR(IF(OR($C$110=FALSE,LEFT($B106,3)<>\"NOX\"),BF55*INDEX('Damage costs'!$W$16:$W$43,MATCH($B106,'Damage costs'!$C$16:$C$43,0))/1000,BF55*INDEX('Damage costs'!$AA$16:$AA$43,MATCH($B106,'Damage costs'!$C$16:$C$43,0))/1000),\"\")","v":""},{"$f":"IFERROR(IF(OR($C$110=FALSE,LEFT($B106,3)<>\"NOX\"),BG55*INDEX('Damage costs'!$W$16:$W$43,MATCH($B106,'Damage costs'!$C$16:$C$43,0))/1000,BG55*INDEX('Damage costs'!$AA$16:$AA$43,MATCH($B106,'Damage costs'!$C$16:$C$43,0))/1000),\"\")","v":""},{"$f":"IFERROR(IF(OR($C$110=FALSE,LEFT($B106,3)<>\"NOX\"),BH55*INDEX('Damage costs'!$W$16:$W$43,MATCH($B106,'Damage costs'!$C$16:$C$43,0))/1000,BH55*INDEX('Damage costs'!$AA$16:$AA$43,MATCH($B106,'Damage costs'!$C$16:$C$43,0))/1000),\"\")","v":""},{"$f":"IFERROR(IF(OR($C$110=FALSE,LEFT($B106,3)<>\"NOX\"),BI55*INDEX('Damage costs'!$W$16:$W$43,MATCH($B106,'Damage costs'!$C$16:$C$43,0))/1000,BI55*INDEX('Damage costs'!$AA$16:$AA$43,MATCH($B106,'Damage costs'!$C$16:$C$43,0))/1000),\"\")","v":""},{"$f":"IFERROR(IF(OR($C$110=FALSE,LEFT($B106,3)<>\"NOX\"),BJ55*INDEX('Damage costs'!$W$16:$W$43,MATCH($B106,'Damage costs'!$C$16:$C$43,0))/1000,BJ55*INDEX('Damage costs'!$AA$16:$AA$43,MATCH($B106,'Damage costs'!$C$16:$C$43,0))/1000),\"\")","v":""},{"$f":"IFERROR(IF(OR($C$110=FALSE,LEFT($B106,3)<>\"NOX\"),BK55*INDEX('Damage costs'!$W$16:$W$43,MATCH($B106,'Damage costs'!$C$16:$C$43,0))/1000,BK55*INDEX('Damage costs'!$AA$16:$AA$43,MATCH($B106,'Damage costs'!$C$16:$C$43,0))/1000),\"\")","v":""},{"$f":"IFERROR(IF(OR($C$110=FALSE,LEFT($B106,3)<>\"NOX\"),BL55*INDEX('Damage costs'!$W$16:$W$43,MATCH($B106,'Damage costs'!$C$16:$C$43,0))/1000,BL55*INDEX('Damage costs'!$AA$16:$AA$43,MATCH($B106,'Damage costs'!$C$16:$C$43,0))/1000),\"\")","v":""},{"$f":"IFERROR(IF(OR($C$110=FALSE,LEFT($B106,3)<>\"NOX\"),BM55*INDEX('Damage costs'!$W$16:$W$43,MATCH($B106,'Damage costs'!$C$16:$C$43,0))/1000,BM55*INDEX('Damage costs'!$AA$16:$AA$43,MATCH($B106,'Damage costs'!$C$16:$C$43,0))/1000),\"\")","v":""},{"$f":"IFERROR(IF(OR($C$110=FALSE,LEFT($B106,3)<>\"NOX\"),BN55*INDEX('Damage costs'!$W$16:$W$43,MATCH($B106,'Damage costs'!$C$16:$C$43,0))/1000,BN55*INDEX('Damage costs'!$AA$16:$AA$43,MATCH($B106,'Damage costs'!$C$16:$C$43,0))/1000),\"\")","v":""},{"$f":"IFERROR(IF(OR($C$110=FALSE,LEFT($B106,3)<>\"NOX\"),BO55*INDEX('Damage costs'!$W$16:$W$43,MATCH($B106,'Damage costs'!$C$16:$C$43,0))/1000,BO55*INDEX('Damage costs'!$AA$16:$AA$43,MATCH($B106,'Damage costs'!$C$16:$C$43,0))/1000),\"\")","v":""},{"$f":"IFERROR(IF(OR($C$110=FALSE,LEFT($B106,3)<>\"NOX\"),BP55*INDEX('Damage costs'!$W$16:$W$43,MATCH($B106,'Damage costs'!$C$16:$C$43,0))/1000,BP55*INDEX('Damage costs'!$AA$16:$AA$43,MATCH($B106,'Damage costs'!$C$16:$C$43,0))/1000),\"\")","v":""},{"$f":"IFERROR(IF(OR($C$110=FALSE,LEFT($B106,3)<>\"NOX\"),BQ55*INDEX('Damage costs'!$W$16:$W$43,MATCH($B106,'Damage costs'!$C$16:$C$43,0))/1000,BQ55*INDEX('Damage costs'!$AA$16:$AA$43,MATCH($B106,'Damage costs'!$C$16:$C$43,0))/1000),\"\")","v":""},{"$f":"IFERROR(IF(OR($C$110=FALSE,LEFT($B106,3)<>\"NOX\"),BR55*INDEX('Damage costs'!$W$16:$W$43,MATCH($B106,'Damage costs'!$C$16:$C$43,0))/1000,BR55*INDEX('Damage costs'!$AA$16:$AA$43,MATCH($B106,'Damage costs'!$C$16:$C$43,0))/1000),\"\")","v":""},{"$f":"IFERROR(IF(OR($C$110=FALSE,LEFT($B106,3)<>\"NOX\"),BS55*INDEX('Damage costs'!$W$16:$W$43,MATCH($B106,'Damage costs'!$C$16:$C$43,0))/1000,BS55*INDEX('Damage costs'!$AA$16:$AA$43,MATCH($B106,'Damage costs'!$C$16:$C$43,0))/1000),\"\")","v":""},{"$f":"IFERROR(IF(OR($C$110=FALSE,LEFT($B106,3)<>\"NOX\"),BT55*INDEX('Damage costs'!$W$16:$W$43,MATCH($B106,'Damage costs'!$C$16:$C$43,0))/1000,BT55*INDEX('Damage costs'!$AA$16:$AA$43,MATCH($B106,'Damage costs'!$C$16:$C$43,0))/1000),\"\")","v":""},{"$f":"IFERROR(IF(OR($C$110=FALSE,LEFT($B106,3)<>\"NOX\"),BU55*INDEX('Damage costs'!$W$16:$W$43,MATCH($B106,'Damage costs'!$C$16:$C$43,0))/1000,BU55*INDEX('Damage costs'!$AA$16:$AA$43,MATCH($B106,'Damage costs'!$C$16:$C$43,0))/1000),\"\")","v":""},{"$f":"IFERROR(IF(OR($C$110=FALSE,LEFT($B106,3)<>\"NOX\"),BV55*INDEX('Damage costs'!$W$16:$W$43,MATCH($B106,'Damage costs'!$C$16:$C$43,0))/1000,BV55*INDEX('Damage costs'!$AA$16:$AA$43,MATCH($B106,'Damage costs'!$C$16:$C$43,0))/1000),\"\")","v":""},{"$f":"IFERROR(IF(OR($C$110=FALSE,LEFT($B106,3)<>\"NOX\"),BW55*INDEX('Damage costs'!$W$16:$W$43,MATCH($B106,'Damage costs'!$C$16:$C$43,0))/1000,BW55*INDEX('Damage costs'!$AA$16:$AA$43,MATCH($B106,'Damage costs'!$C$16:$C$43,0))/1000),\"\")","v":""},{"$f":"IFERROR(IF(OR($C$110=FALSE,LEFT($B106,3)<>\"NOX\"),BX55*INDEX('Damage costs'!$W$16:$W$43,MATCH($B106,'Damage costs'!$C$16:$C$43,0))/1000,BX55*INDEX('Damage costs'!$AA$16:$AA$43,MATCH($B106,'Damage costs'!$C$16:$C$43,0))/1000),\"\")","v":""},{"$f":"IFERROR(IF(OR($C$110=FALSE,LEFT($B106,3)<>\"NOX\"),BY55*INDEX('Damage costs'!$W$16:$W$43,MATCH($B106,'Damage costs'!$C$16:$C$43,0))/1000,BY55*INDEX('Damage costs'!$AA$16:$AA$43,MATCH($B106,'Damage costs'!$C$16:$C$43,0))/1000),\"\")","v":""},{"$f":"IFERROR(IF(OR($C$110=FALSE,LEFT($B106,3)<>\"NOX\"),BZ55*INDEX('Damage costs'!$W$16:$W$43,MATCH($B106,'Damage costs'!$C$16:$C$43,0))/1000,BZ55*INDEX('Damage costs'!$AA$16:$AA$43,MATCH($B106,'Damage costs'!$C$16:$C$43,0))/1000),\"\")","v":""},{"$f":"IFERROR(IF(OR($C$110=FALSE,LEFT($B106,3)<>\"NOX\"),CA55*INDEX('Damage costs'!$W$16:$W$43,MATCH($B106,'Damage costs'!$C$16:$C$43,0))/1000,CA55*INDEX('Damage costs'!$AA$16:$AA$43,MATCH($B106,'Damage costs'!$C$16:$C$43,0))/1000),\"\")","v":""},{"$f":"IFERROR(IF(OR($C$110=FALSE,LEFT($B106,3)<>\"NOX\"),CB55*INDEX('Damage costs'!$W$16:$W$43,MATCH($B106,'Damage costs'!$C$16:$C$43,0))/1000,CB55*INDEX('Damage costs'!$AA$16:$AA$43,MATCH($B106,'Damage costs'!$C$16:$C$43,0))/1000),\"\")","v":""},{"$f":"IFERROR(IF(OR($C$110=FALSE,LEFT($B106,3)<>\"NOX\"),CC55*INDEX('Damage costs'!$W$16:$W$43,MATCH($B106,'Damage costs'!$C$16:$C$43,0))/1000,CC55*INDEX('Damage costs'!$AA$16:$AA$43,MATCH($B106,'Damage costs'!$C$16:$C$43,0))/1000),\"\")","v":""},{"$f":"IFERROR(IF(OR($C$110=FALSE,LEFT($B106,3)<>\"NOX\"),CD55*INDEX('Damage costs'!$W$16:$W$43,MATCH($B106,'Damage costs'!$C$16:$C$43,0))/1000,CD55*INDEX('Damage costs'!$AA$16:$AA$43,MATCH($B106,'Damage costs'!$C$16:$C$43,0))/1000),\"\")","v":""},{"$f":"IFERROR(IF(OR($C$110=FALSE,LEFT($B106,3)<>\"NOX\"),CE55*INDEX('Damage costs'!$W$16:$W$43,MATCH($B106,'Damage costs'!$C$16:$C$43,0))/1000,CE55*INDEX('Damage costs'!$AA$16:$AA$43,MATCH($B106,'Damage costs'!$C$16:$C$43,0))/1000),\"\")","v":""},{"$f":"IFERROR(IF(OR($C$110=FALSE,LEFT($B106,3)<>\"NOX\"),CF55*INDEX('Damage costs'!$W$16:$W$43,MATCH($B106,'Damage costs'!$C$16:$C$43,0))/1000,CF55*INDEX('Damage costs'!$AA$16:$AA$43,MATCH($B106,'Damage costs'!$C$16:$C$43,0))/1000),\"\")","v":""},{"$f":"IFERROR(IF(OR($C$110=FALSE,LEFT($B106,3)<>\"NOX\"),CG55*INDEX('Damage costs'!$W$16:$W$43,MATCH($B106,'Damage costs'!$C$16:$C$43,0))/1000,CG55*INDEX('Damage costs'!$AA$16:$AA$43,MATCH($B106,'Damage costs'!$C$16:$C$43,0))/1000),\"\")","v":""},{"$f":"IFERROR(IF(OR($C$110=FALSE,LEFT($B106,3)<>\"NOX\"),CH55*INDEX('Damage costs'!$W$16:$W$43,MATCH($B106,'Damage costs'!$C$16:$C$43,0))/1000,CH55*INDEX('Damage costs'!$AA$16:$AA$43,MATCH($B106,'Damage costs'!$C$16:$C$43,0))/1000),\"\")","v":""},{"$f":"IFERROR(IF(OR($C$110=FALSE,LEFT($B106,3)<>\"NOX\"),CI55*INDEX('Damage costs'!$W$16:$W$43,MATCH($B106,'Damage costs'!$C$16:$C$43,0))/1000,CI55*INDEX('Damage costs'!$AA$16:$AA$43,MATCH($B106,'Damage costs'!$C$16:$C$43,0))/1000),\"\")","v":""},{"$f":"IFERROR(IF(OR($C$110=FALSE,LEFT($B106,3)<>\"NOX\"),CJ55*INDEX('Damage costs'!$W$16:$W$43,MATCH($B106,'Damage costs'!$C$16:$C$43,0))/1000,CJ55*INDEX('Damage costs'!$AA$16:$AA$43,MATCH($B106,'Damage costs'!$C$16:$C$43,0))/1000),\"\")","v":""},{"$f":"IFERROR(IF(OR($C$110=FALSE,LEFT($B106,3)<>\"NOX\"),CK55*INDEX('Damage costs'!$W$16:$W$43,MATCH($B106,'Damage costs'!$C$16:$C$43,0))/1000,CK55*INDEX('Damage costs'!$AA$16:$AA$43,MATCH($B106,'Damage costs'!$C$16:$C$43,0))/1000),\"\")","v":""},{"$f":"IFERROR(IF(OR($C$110=FALSE,LEFT($B106,3)<>\"NOX\"),CL55*INDEX('Damage costs'!$W$16:$W$43,MATCH($B106,'Damage costs'!$C$16:$C$43,0))/1000,CL55*INDEX('Damage costs'!$AA$16:$AA$43,MATCH($B106,'Damage costs'!$C$16:$C$43,0))/1000),\"\")","v":""},{"$f":"IFERROR(IF(OR($C$110=FALSE,LEFT($B106,3)<>\"NOX\"),CM55*INDEX('Damage costs'!$W$16:$W$43,MATCH($B106,'Damage costs'!$C$16:$C$43,0))/1000,CM55*INDEX('Damage costs'!$AA$16:$AA$43,MATCH($B106,'Damage costs'!$C$16:$C$43,0))/1000),\"\")","v":""},{"$f":"IFERROR(IF(OR($C$110=FALSE,LEFT($B106,3)<>\"NOX\"),CN55*INDEX('Damage costs'!$W$16:$W$43,MATCH($B106,'Damage costs'!$C$16:$C$43,0))/1000,CN55*INDEX('Damage costs'!$AA$16:$AA$43,MATCH($B106,'Damage costs'!$C$16:$C$43,0))/1000),\"\")","v":""},{"$f":"IFERROR(IF(OR($C$110=FALSE,LEFT($B106,3)<>\"NOX\"),CO55*INDEX('Damage costs'!$W$16:$W$43,MATCH($B106,'Damage costs'!$C$16:$C$43,0))/1000,CO55*INDEX('Damage costs'!$AA$16:$AA$43,MATCH($B106,'Damage costs'!$C$16:$C$43,0))/1000),\"\")","v":""},{"$f":"IFERROR(IF(OR($C$110=FALSE,LEFT($B106,3)<>\"NOX\"),CP55*INDEX('Damage costs'!$W$16:$W$43,MATCH($B106,'Damage costs'!$C$16:$C$43,0))/1000,CP55*INDEX('Damage costs'!$AA$16:$AA$43,MATCH($B106,'Damage costs'!$C$16:$C$43,0))/1000),\"\")","v":""},{"$f":"IFERROR(IF(OR($C$110=FALSE,LEFT($B106,3)<>\"NOX\"),CQ55*INDEX('Damage costs'!$W$16:$W$43,MATCH($B106,'Damage costs'!$C$16:$C$43,0))/1000,CQ55*INDEX('Damage costs'!$AA$16:$AA$43,MATCH($B106,'Damage costs'!$C$16:$C$43,0))/1000),\"\")","v":""},{"$f":"IFERROR(IF(OR($C$110=FALSE,LEFT($B106,3)<>\"NOX\"),CR55*INDEX('Damage costs'!$W$16:$W$43,MATCH($B106,'Damage costs'!$C$16:$C$43,0))/1000,CR55*INDEX('Damage costs'!$AA$16:$AA$43,MATCH($B106,'Damage costs'!$C$16:$C$43,0))/1000),\"\")","v":""},{"$f":"IFERROR(IF(OR($C$110=FALSE,LEFT($B106,3)<>\"NOX\"),CS55*INDEX('Damage costs'!$W$16:$W$43,MATCH($B106,'Damage costs'!$C$16:$C$43,0))/1000,CS55*INDEX('Damage costs'!$AA$16:$AA$43,MATCH($B106,'Damage costs'!$C$16:$C$43,0))/1000),\"\")","v":""},{"$f":"IFERROR(IF(OR($C$110=FALSE,LEFT($B106,3)<>\"NOX\"),CT55*INDEX('Damage costs'!$W$16:$W$43,MATCH($B106,'Damage costs'!$C$16:$C$43,0))/1000,CT55*INDEX('Damage costs'!$AA$16:$AA$43,MATCH($B106,'Damage costs'!$C$16:$C$43,0))/1000),\"\")","v":""},{"$f":"IFERROR(IF(OR($C$110=FALSE,LEFT($B106,3)<>\"NOX\"),CU55*INDEX('Damage costs'!$W$16:$W$43,MATCH($B106,'Damage costs'!$C$16:$C$43,0))/1000,CU55*INDEX('Damage costs'!$AA$16:$AA$43,MATCH($B106,'Damage costs'!$C$16:$C$43,0))/1000),\"\")","v":""},{"$f":"IFERROR(IF(OR($C$110=FALSE,LEFT($B106,3)<>\"NOX\"),CV55*INDEX('Damage costs'!$W$16:$W$43,MATCH($B106,'Damage costs'!$C$16:$C$43,0))/1000,CV55*INDEX('Damage costs'!$AA$16:$AA$43,MATCH($B106,'Damage costs'!$C$16:$C$43,0))/1000),\"\")","v":""},{"$f":"IFERROR(IF(OR($C$110=FALSE,LEFT($B106,3)<>\"NOX\"),CW55*INDEX('Damage costs'!$W$16:$W$43,MATCH($B106,'Damage costs'!$C$16:$C$43,0))/1000,CW55*INDEX('Damage costs'!$AA$16:$AA$43,MATCH($B106,'Damage costs'!$C$16:$C$43,0))/1000),\"\")","v":""},{"$f":"IFERROR(IF(OR($C$110=FALSE,LEFT($B106,3)<>\"NOX\"),CX55*INDEX('Damage costs'!$W$16:$W$43,MATCH($B106,'Damage costs'!$C$16:$C$43,0))/1000,CX55*INDEX('Damage costs'!$AA$16:$AA$43,MATCH($B106,'Damage costs'!$C$16:$C$43,0))/1000),\"\")","v":""},{"$f":"IFERROR(IF(OR($C$110=FALSE,LEFT($B106,3)<>\"NOX\"),CY55*INDEX('Damage costs'!$W$16:$W$43,MATCH($B106,'Damage costs'!$C$16:$C$43,0))/1000,CY55*INDEX('Damage costs'!$AA$16:$AA$43,MATCH($B106,'Damage costs'!$C$16:$C$43,0))/1000),\"\")","v":""}]
[null,0,"£000's",{"$f":"IFERROR(IF(OR($C$110=FALSE,LEFT($B107,3)<>\"NOX\"),D56*INDEX('Damage costs'!$W$16:$W$43,MATCH($B107,'Damage costs'!$C$16:$C$43,0))/1000,D56*INDEX('Damage costs'!$AA$16:$AA$43,MATCH($B107,'Damage costs'!$C$16:$C$43,0))/1000),\"\")","v":""},{"$f":"IFERROR(IF(OR($C$110=FALSE,LEFT($B107,3)<>\"NOX\"),E56*INDEX('Damage costs'!$W$16:$W$43,MATCH($B107,'Damage costs'!$C$16:$C$43,0))/1000,E56*INDEX('Damage costs'!$AA$16:$AA$43,MATCH($B107,'Damage costs'!$C$16:$C$43,0))/1000),\"\")","v":""},{"$f":"IFERROR(IF(OR($C$110=FALSE,LEFT($B107,3)<>\"NOX\"),F56*INDEX('Damage costs'!$W$16:$W$43,MATCH($B107,'Damage costs'!$C$16:$C$43,0))/1000,F56*INDEX('Damage costs'!$AA$16:$AA$43,MATCH($B107,'Damage costs'!$C$16:$C$43,0))/1000),\"\")","v":""},{"$f":"IFERROR(IF(OR($C$110=FALSE,LEFT($B107,3)<>\"NOX\"),G56*INDEX('Damage costs'!$W$16:$W$43,MATCH($B107,'Damage costs'!$C$16:$C$43,0))/1000,G56*INDEX('Damage costs'!$AA$16:$AA$43,MATCH($B107,'Damage costs'!$C$16:$C$43,0))/1000),\"\")","v":""},{"$f":"IFERROR(IF(OR($C$110=FALSE,LEFT($B107,3)<>\"NOX\"),H56*INDEX('Damage costs'!$W$16:$W$43,MATCH($B107,'Damage costs'!$C$16:$C$43,0))/1000,H56*INDEX('Damage costs'!$AA$16:$AA$43,MATCH($B107,'Damage costs'!$C$16:$C$43,0))/1000),\"\")","v":""},{"$f":"IFERROR(IF(OR($C$110=FALSE,LEFT($B107,3)<>\"NOX\"),I56*INDEX('Damage costs'!$W$16:$W$43,MATCH($B107,'Damage costs'!$C$16:$C$43,0))/1000,I56*INDEX('Damage costs'!$AA$16:$AA$43,MATCH($B107,'Damage costs'!$C$16:$C$43,0))/1000),\"\")","v":""},{"$f":"IFERROR(IF(OR($C$110=FALSE,LEFT($B107,3)<>\"NOX\"),J56*INDEX('Damage costs'!$W$16:$W$43,MATCH($B107,'Damage costs'!$C$16:$C$43,0))/1000,J56*INDEX('Damage costs'!$AA$16:$AA$43,MATCH($B107,'Damage costs'!$C$16:$C$43,0))/1000),\"\")","v":""},{"$f":"IFERROR(IF(OR($C$110=FALSE,LEFT($B107,3)<>\"NOX\"),K56*INDEX('Damage costs'!$W$16:$W$43,MATCH($B107,'Damage costs'!$C$16:$C$43,0))/1000,K56*INDEX('Damage costs'!$AA$16:$AA$43,MATCH($B107,'Damage costs'!$C$16:$C$43,0))/1000),\"\")","v":""},{"$f":"IFERROR(IF(OR($C$110=FALSE,LEFT($B107,3)<>\"NOX\"),L56*INDEX('Damage costs'!$W$16:$W$43,MATCH($B107,'Damage costs'!$C$16:$C$43,0))/1000,L56*INDEX('Damage costs'!$AA$16:$AA$43,MATCH($B107,'Damage costs'!$C$16:$C$43,0))/1000),\"\")","v":""},{"$f":"IFERROR(IF(OR($C$110=FALSE,LEFT($B107,3)<>\"NOX\"),M56*INDEX('Damage costs'!$W$16:$W$43,MATCH($B107,'Damage costs'!$C$16:$C$43,0))/1000,M56*INDEX('Damage costs'!$AA$16:$AA$43,MATCH($B107,'Damage costs'!$C$16:$C$43,0))/1000),\"\")","v":""},{"$f":"IFERROR(IF(OR($C$110=FALSE,LEFT($B107,3)<>\"NOX\"),N56*INDEX('Damage costs'!$W$16:$W$43,MATCH($B107,'Damage costs'!$C$16:$C$43,0))/1000,N56*INDEX('Damage costs'!$AA$16:$AA$43,MATCH($B107,'Damage costs'!$C$16:$C$43,0))/1000),\"\")","v":""},{"$f":"IFERROR(IF(OR($C$110=FALSE,LEFT($B107,3)<>\"NOX\"),O56*INDEX('Damage costs'!$W$16:$W$43,MATCH($B107,'Damage costs'!$C$16:$C$43,0))/1000,O56*INDEX('Damage costs'!$AA$16:$AA$43,MATCH($B107,'Damage costs'!$C$16:$C$43,0))/1000),\"\")","v":""},{"$f":"IFERROR(IF(OR($C$110=FALSE,LEFT($B107,3)<>\"NOX\"),P56*INDEX('Damage costs'!$W$16:$W$43,MATCH($B107,'Damage costs'!$C$16:$C$43,0))/1000,P56*INDEX('Damage costs'!$AA$16:$AA$43,MATCH($B107,'Damage costs'!$C$16:$C$43,0))/1000),\"\")","v":""},{"$f":"IFERROR(IF(OR($C$110=FALSE,LEFT($B107,3)<>\"NOX\"),Q56*INDEX('Damage costs'!$W$16:$W$43,MATCH($B107,'Damage costs'!$C$16:$C$43,0))/1000,Q56*INDEX('Damage costs'!$AA$16:$AA$43,MATCH($B107,'Damage costs'!$C$16:$C$43,0))/1000),\"\")","v":""},{"$f":"IFERROR(IF(OR($C$110=FALSE,LEFT($B107,3)<>\"NOX\"),R56*INDEX('Damage costs'!$W$16:$W$43,MATCH($B107,'Damage costs'!$C$16:$C$43,0))/1000,R56*INDEX('Damage costs'!$AA$16:$AA$43,MATCH($B107,'Damage costs'!$C$16:$C$43,0))/1000),\"\")","v":""},{"$f":"IFERROR(IF(OR($C$110=FALSE,LEFT($B107,3)<>\"NOX\"),S56*INDEX('Damage costs'!$W$16:$W$43,MATCH($B107,'Damage costs'!$C$16:$C$43,0))/1000,S56*INDEX('Damage costs'!$AA$16:$AA$43,MATCH($B107,'Damage costs'!$C$16:$C$43,0))/1000),\"\")","v":""},{"$f":"IFERROR(IF(OR($C$110=FALSE,LEFT($B107,3)<>\"NOX\"),T56*INDEX('Damage costs'!$W$16:$W$43,MATCH($B107,'Damage costs'!$C$16:$C$43,0))/1000,T56*INDEX('Damage costs'!$AA$16:$AA$43,MATCH($B107,'Damage costs'!$C$16:$C$43,0))/1000),\"\")","v":""},{"$f":"IFERROR(IF(OR($C$110=FALSE,LEFT($B107,3)<>\"NOX\"),U56*INDEX('Damage costs'!$W$16:$W$43,MATCH($B107,'Damage costs'!$C$16:$C$43,0))/1000,U56*INDEX('Damage costs'!$AA$16:$AA$43,MATCH($B107,'Damage costs'!$C$16:$C$43,0))/1000),\"\")","v":""},{"$f":"IFERROR(IF(OR($C$110=FALSE,LEFT($B107,3)<>\"NOX\"),V56*INDEX('Damage costs'!$W$16:$W$43,MATCH($B107,'Damage costs'!$C$16:$C$43,0))/1000,V56*INDEX('Damage costs'!$AA$16:$AA$43,MATCH($B107,'Damage costs'!$C$16:$C$43,0))/1000),\"\")","v":""},{"$f":"IFERROR(IF(OR($C$110=FALSE,LEFT($B107,3)<>\"NOX\"),W56*INDEX('Damage costs'!$W$16:$W$43,MATCH($B107,'Damage costs'!$C$16:$C$43,0))/1000,W56*INDEX('Damage costs'!$AA$16:$AA$43,MATCH($B107,'Damage costs'!$C$16:$C$43,0))/1000),\"\")","v":""},{"$f":"IFERROR(IF(OR($C$110=FALSE,LEFT($B107,3)<>\"NOX\"),X56*INDEX('Damage costs'!$W$16:$W$43,MATCH($B107,'Damage costs'!$C$16:$C$43,0))/1000,X56*INDEX('Damage costs'!$AA$16:$AA$43,MATCH($B107,'Damage costs'!$C$16:$C$43,0))/1000),\"\")","v":""},{"$f":"IFERROR(IF(OR($C$110=FALSE,LEFT($B107,3)<>\"NOX\"),Y56*INDEX('Damage costs'!$W$16:$W$43,MATCH($B107,'Damage costs'!$C$16:$C$43,0))/1000,Y56*INDEX('Damage costs'!$AA$16:$AA$43,MATCH($B107,'Damage costs'!$C$16:$C$43,0))/1000),\"\")","v":""},{"$f":"IFERROR(IF(OR($C$110=FALSE,LEFT($B107,3)<>\"NOX\"),Z56*INDEX('Damage costs'!$W$16:$W$43,MATCH($B107,'Damage costs'!$C$16:$C$43,0))/1000,Z56*INDEX('Damage costs'!$AA$16:$AA$43,MATCH($B107,'Damage costs'!$C$16:$C$43,0))/1000),\"\")","v":""},{"$f":"IFERROR(IF(OR($C$110=FALSE,LEFT($B107,3)<>\"NOX\"),AA56*INDEX('Damage costs'!$W$16:$W$43,MATCH($B107,'Damage costs'!$C$16:$C$43,0))/1000,AA56*INDEX('Damage costs'!$AA$16:$AA$43,MATCH($B107,'Damage costs'!$C$16:$C$43,0))/1000),\"\")","v":""},{"$f":"IFERROR(IF(OR($C$110=FALSE,LEFT($B107,3)<>\"NOX\"),AB56*INDEX('Damage costs'!$W$16:$W$43,MATCH($B107,'Damage costs'!$C$16:$C$43,0))/1000,AB56*INDEX('Damage costs'!$AA$16:$AA$43,MATCH($B107,'Damage costs'!$C$16:$C$43,0))/1000),\"\")","v":""},{"$f":"IFERROR(IF(OR($C$110=FALSE,LEFT($B107,3)<>\"NOX\"),AC56*INDEX('Damage costs'!$W$16:$W$43,MATCH($B107,'Damage costs'!$C$16:$C$43,0))/1000,AC56*INDEX('Damage costs'!$AA$16:$AA$43,MATCH($B107,'Damage costs'!$C$16:$C$43,0))/1000),\"\")","v":""},{"$f":"IFERROR(IF(OR($C$110=FALSE,LEFT($B107,3)<>\"NOX\"),AD56*INDEX('Damage costs'!$W$16:$W$43,MATCH($B107,'Damage costs'!$C$16:$C$43,0))/1000,AD56*INDEX('Damage costs'!$AA$16:$AA$43,MATCH($B107,'Damage costs'!$C$16:$C$43,0))/1000),\"\")","v":""},{"$f":"IFERROR(IF(OR($C$110=FALSE,LEFT($B107,3)<>\"NOX\"),AE56*INDEX('Damage costs'!$W$16:$W$43,MATCH($B107,'Damage costs'!$C$16:$C$43,0))/1000,AE56*INDEX('Damage costs'!$AA$16:$AA$43,MATCH($B107,'Damage costs'!$C$16:$C$43,0))/1000),\"\")","v":""},{"$f":"IFERROR(IF(OR($C$110=FALSE,LEFT($B107,3)<>\"NOX\"),AF56*INDEX('Damage costs'!$W$16:$W$43,MATCH($B107,'Damage costs'!$C$16:$C$43,0))/1000,AF56*INDEX('Damage costs'!$AA$16:$AA$43,MATCH($B107,'Damage costs'!$C$16:$C$43,0))/1000),\"\")","v":""},{"$f":"IFERROR(IF(OR($C$110=FALSE,LEFT($B107,3)<>\"NOX\"),AG56*INDEX('Damage costs'!$W$16:$W$43,MATCH($B107,'Damage costs'!$C$16:$C$43,0))/1000,AG56*INDEX('Damage costs'!$AA$16:$AA$43,MATCH($B107,'Damage costs'!$C$16:$C$43,0))/1000),\"\")","v":""},{"$f":"IFERROR(IF(OR($C$110=FALSE,LEFT($B107,3)<>\"NOX\"),AH56*INDEX('Damage costs'!$W$16:$W$43,MATCH($B107,'Damage costs'!$C$16:$C$43,0))/1000,AH56*INDEX('Damage costs'!$AA$16:$AA$43,MATCH($B107,'Damage costs'!$C$16:$C$43,0))/1000),\"\")","v":""},{"$f":"IFERROR(IF(OR($C$110=FALSE,LEFT($B107,3)<>\"NOX\"),AI56*INDEX('Damage costs'!$W$16:$W$43,MATCH($B107,'Damage costs'!$C$16:$C$43,0))/1000,AI56*INDEX('Damage costs'!$AA$16:$AA$43,MATCH($B107,'Damage costs'!$C$16:$C$43,0))/1000),\"\")","v":""},{"$f":"IFERROR(IF(OR($C$110=FALSE,LEFT($B107,3)<>\"NOX\"),AJ56*INDEX('Damage costs'!$W$16:$W$43,MATCH($B107,'Damage costs'!$C$16:$C$43,0))/1000,AJ56*INDEX('Damage costs'!$AA$16:$AA$43,MATCH($B107,'Damage costs'!$C$16:$C$43,0))/1000),\"\")","v":""},{"$f":"IFERROR(IF(OR($C$110=FALSE,LEFT($B107,3)<>\"NOX\"),AK56*INDEX('Damage costs'!$W$16:$W$43,MATCH($B107,'Damage costs'!$C$16:$C$43,0))/1000,AK56*INDEX('Damage costs'!$AA$16:$AA$43,MATCH($B107,'Damage costs'!$C$16:$C$43,0))/1000),\"\")","v":""},{"$f":"IFERROR(IF(OR($C$110=FALSE,LEFT($B107,3)<>\"NOX\"),AL56*INDEX('Damage costs'!$W$16:$W$43,MATCH($B107,'Damage costs'!$C$16:$C$43,0))/1000,AL56*INDEX('Damage costs'!$AA$16:$AA$43,MATCH($B107,'Damage costs'!$C$16:$C$43,0))/1000),\"\")","v":""},{"$f":"IFERROR(IF(OR($C$110=FALSE,LEFT($B107,3)<>\"NOX\"),AM56*INDEX('Damage costs'!$W$16:$W$43,MATCH($B107,'Damage costs'!$C$16:$C$43,0))/1000,AM56*INDEX('Damage costs'!$AA$16:$AA$43,MATCH($B107,'Damage costs'!$C$16:$C$43,0))/1000),\"\")","v":""},{"$f":"IFERROR(IF(OR($C$110=FALSE,LEFT($B107,3)<>\"NOX\"),AN56*INDEX('Damage costs'!$W$16:$W$43,MATCH($B107,'Damage costs'!$C$16:$C$43,0))/1000,AN56*INDEX('Damage costs'!$AA$16:$AA$43,MATCH($B107,'Damage costs'!$C$16:$C$43,0))/1000),\"\")","v":""},{"$f":"IFERROR(IF(OR($C$110=FALSE,LEFT($B107,3)<>\"NOX\"),AO56*INDEX('Damage costs'!$W$16:$W$43,MATCH($B107,'Damage costs'!$C$16:$C$43,0))/1000,AO56*INDEX('Damage costs'!$AA$16:$AA$43,MATCH($B107,'Damage costs'!$C$16:$C$43,0))/1000),\"\")","v":""},{"$f":"IFERROR(IF(OR($C$110=FALSE,LEFT($B107,3)<>\"NOX\"),AP56*INDEX('Damage costs'!$W$16:$W$43,MATCH($B107,'Damage costs'!$C$16:$C$43,0))/1000,AP56*INDEX('Damage costs'!$AA$16:$AA$43,MATCH($B107,'Damage costs'!$C$16:$C$43,0))/1000),\"\")","v":""},{"$f":"IFERROR(IF(OR($C$110=FALSE,LEFT($B107,3)<>\"NOX\"),AQ56*INDEX('Damage costs'!$W$16:$W$43,MATCH($B107,'Damage costs'!$C$16:$C$43,0))/1000,AQ56*INDEX('Damage costs'!$AA$16:$AA$43,MATCH($B107,'Damage costs'!$C$16:$C$43,0))/1000),\"\")","v":""},{"$f":"IFERROR(IF(OR($C$110=FALSE,LEFT($B107,3)<>\"NOX\"),AR56*INDEX('Damage costs'!$W$16:$W$43,MATCH($B107,'Damage costs'!$C$16:$C$43,0))/1000,AR56*INDEX('Damage costs'!$AA$16:$AA$43,MATCH($B107,'Damage costs'!$C$16:$C$43,0))/1000),\"\")","v":""},{"$f":"IFERROR(IF(OR($C$110=FALSE,LEFT($B107,3)<>\"NOX\"),AS56*INDEX('Damage costs'!$W$16:$W$43,MATCH($B107,'Damage costs'!$C$16:$C$43,0))/1000,AS56*INDEX('Damage costs'!$AA$16:$AA$43,MATCH($B107,'Damage costs'!$C$16:$C$43,0))/1000),\"\")","v":""},{"$f":"IFERROR(IF(OR($C$110=FALSE,LEFT($B107,3)<>\"NOX\"),AT56*INDEX('Damage costs'!$W$16:$W$43,MATCH($B107,'Damage costs'!$C$16:$C$43,0))/1000,AT56*INDEX('Damage costs'!$AA$16:$AA$43,MATCH($B107,'Damage costs'!$C$16:$C$43,0))/1000),\"\")","v":""},{"$f":"IFERROR(IF(OR($C$110=FALSE,LEFT($B107,3)<>\"NOX\"),AU56*INDEX('Damage costs'!$W$16:$W$43,MATCH($B107,'Damage costs'!$C$16:$C$43,0))/1000,AU56*INDEX('Damage costs'!$AA$16:$AA$43,MATCH($B107,'Damage costs'!$C$16:$C$43,0))/1000),\"\")","v":""},{"$f":"IFERROR(IF(OR($C$110=FALSE,LEFT($B107,3)<>\"NOX\"),AV56*INDEX('Damage costs'!$W$16:$W$43,MATCH($B107,'Damage costs'!$C$16:$C$43,0))/1000,AV56*INDEX('Damage costs'!$AA$16:$AA$43,MATCH($B107,'Damage costs'!$C$16:$C$43,0))/1000),\"\")","v":""},{"$f":"IFERROR(IF(OR($C$110=FALSE,LEFT($B107,3)<>\"NOX\"),AW56*INDEX('Damage costs'!$W$16:$W$43,MATCH($B107,'Damage costs'!$C$16:$C$43,0))/1000,AW56*INDEX('Damage costs'!$AA$16:$AA$43,MATCH($B107,'Damage costs'!$C$16:$C$43,0))/1000),\"\")","v":""},{"$f":"IFERROR(IF(OR($C$110=FALSE,LEFT($B107,3)<>\"NOX\"),AX56*INDEX('Damage costs'!$W$16:$W$43,MATCH($B107,'Damage costs'!$C$16:$C$43,0))/1000,AX56*INDEX('Damage costs'!$AA$16:$AA$43,MATCH($B107,'Damage costs'!$C$16:$C$43,0))/1000),\"\")","v":""},{"$f":"IFERROR(IF(OR($C$110=FALSE,LEFT($B107,3)<>\"NOX\"),AY56*INDEX('Damage costs'!$W$16:$W$43,MATCH($B107,'Damage costs'!$C$16:$C$43,0))/1000,AY56*INDEX('Damage costs'!$AA$16:$AA$43,MATCH($B107,'Damage costs'!$C$16:$C$43,0))/1000),\"\")","v":""},{"$f":"IFERROR(IF(OR($C$110=FALSE,LEFT($B107,3)<>\"NOX\"),AZ56*INDEX('Damage costs'!$W$16:$W$43,MATCH($B107,'Damage costs'!$C$16:$C$43,0))/1000,AZ56*INDEX('Damage costs'!$AA$16:$AA$43,MATCH($B107,'Damage costs'!$C$16:$C$43,0))/1000),\"\")","v":""},{"$f":"IFERROR(IF(OR($C$110=FALSE,LEFT($B107,3)<>\"NOX\"),BA56*INDEX('Damage costs'!$W$16:$W$43,MATCH($B107,'Damage costs'!$C$16:$C$43,0))/1000,BA56*INDEX('Damage costs'!$AA$16:$AA$43,MATCH($B107,'Damage costs'!$C$16:$C$43,0))/1000),\"\")","v":""},{"$f":"IFERROR(IF(OR($C$110=FALSE,LEFT($B107,3)<>\"NOX\"),BB56*INDEX('Damage costs'!$W$16:$W$43,MATCH($B107,'Damage costs'!$C$16:$C$43,0))/1000,BB56*INDEX('Damage costs'!$AA$16:$AA$43,MATCH($B107,'Damage costs'!$C$16:$C$43,0))/1000),\"\")","v":""},{"$f":"IFERROR(IF(OR($C$110=FALSE,LEFT($B107,3)<>\"NOX\"),BC56*INDEX('Damage costs'!$W$16:$W$43,MATCH($B107,'Damage costs'!$C$16:$C$43,0))/1000,BC56*INDEX('Damage costs'!$AA$16:$AA$43,MATCH($B107,'Damage costs'!$C$16:$C$43,0))/1000),\"\")","v":""},{"$f":"IFERROR(IF(OR($C$110=FALSE,LEFT($B107,3)<>\"NOX\"),BD56*INDEX('Damage costs'!$W$16:$W$43,MATCH($B107,'Damage costs'!$C$16:$C$43,0))/1000,BD56*INDEX('Damage costs'!$AA$16:$AA$43,MATCH($B107,'Damage costs'!$C$16:$C$43,0))/1000),\"\")","v":""},{"$f":"IFERROR(IF(OR($C$110=FALSE,LEFT($B107,3)<>\"NOX\"),BE56*INDEX('Damage costs'!$W$16:$W$43,MATCH($B107,'Damage costs'!$C$16:$C$43,0))/1000,BE56*INDEX('Damage costs'!$AA$16:$AA$43,MATCH($B107,'Damage costs'!$C$16:$C$43,0))/1000),\"\")","v":""},{"$f":"IFERROR(IF(OR($C$110=FALSE,LEFT($B107,3)<>\"NOX\"),BF56*INDEX('Damage costs'!$W$16:$W$43,MATCH($B107,'Damage costs'!$C$16:$C$43,0))/1000,BF56*INDEX('Damage costs'!$AA$16:$AA$43,MATCH($B107,'Damage costs'!$C$16:$C$43,0))/1000),\"\")","v":""},{"$f":"IFERROR(IF(OR($C$110=FALSE,LEFT($B107,3)<>\"NOX\"),BG56*INDEX('Damage costs'!$W$16:$W$43,MATCH($B107,'Damage costs'!$C$16:$C$43,0))/1000,BG56*INDEX('Damage costs'!$AA$16:$AA$43,MATCH($B107,'Damage costs'!$C$16:$C$43,0))/1000),\"\")","v":""},{"$f":"IFERROR(IF(OR($C$110=FALSE,LEFT($B107,3)<>\"NOX\"),BH56*INDEX('Damage costs'!$W$16:$W$43,MATCH($B107,'Damage costs'!$C$16:$C$43,0))/1000,BH56*INDEX('Damage costs'!$AA$16:$AA$43,MATCH($B107,'Damage costs'!$C$16:$C$43,0))/1000),\"\")","v":""},{"$f":"IFERROR(IF(OR($C$110=FALSE,LEFT($B107,3)<>\"NOX\"),BI56*INDEX('Damage costs'!$W$16:$W$43,MATCH($B107,'Damage costs'!$C$16:$C$43,0))/1000,BI56*INDEX('Damage costs'!$AA$16:$AA$43,MATCH($B107,'Damage costs'!$C$16:$C$43,0))/1000),\"\")","v":""},{"$f":"IFERROR(IF(OR($C$110=FALSE,LEFT($B107,3)<>\"NOX\"),BJ56*INDEX('Damage costs'!$W$16:$W$43,MATCH($B107,'Damage costs'!$C$16:$C$43,0))/1000,BJ56*INDEX('Damage costs'!$AA$16:$AA$43,MATCH($B107,'Damage costs'!$C$16:$C$43,0))/1000),\"\")","v":""},{"$f":"IFERROR(IF(OR($C$110=FALSE,LEFT($B107,3)<>\"NOX\"),BK56*INDEX('Damage costs'!$W$16:$W$43,MATCH($B107,'Damage costs'!$C$16:$C$43,0))/1000,BK56*INDEX('Damage costs'!$AA$16:$AA$43,MATCH($B107,'Damage costs'!$C$16:$C$43,0))/1000),\"\")","v":""},{"$f":"IFERROR(IF(OR($C$110=FALSE,LEFT($B107,3)<>\"NOX\"),BL56*INDEX('Damage costs'!$W$16:$W$43,MATCH($B107,'Damage costs'!$C$16:$C$43,0))/1000,BL56*INDEX('Damage costs'!$AA$16:$AA$43,MATCH($B107,'Damage costs'!$C$16:$C$43,0))/1000),\"\")","v":""},{"$f":"IFERROR(IF(OR($C$110=FALSE,LEFT($B107,3)<>\"NOX\"),BM56*INDEX('Damage costs'!$W$16:$W$43,MATCH($B107,'Damage costs'!$C$16:$C$43,0))/1000,BM56*INDEX('Damage costs'!$AA$16:$AA$43,MATCH($B107,'Damage costs'!$C$16:$C$43,0))/1000),\"\")","v":""},{"$f":"IFERROR(IF(OR($C$110=FALSE,LEFT($B107,3)<>\"NOX\"),BN56*INDEX('Damage costs'!$W$16:$W$43,MATCH($B107,'Damage costs'!$C$16:$C$43,0))/1000,BN56*INDEX('Damage costs'!$AA$16:$AA$43,MATCH($B107,'Damage costs'!$C$16:$C$43,0))/1000),\"\")","v":""},{"$f":"IFERROR(IF(OR($C$110=FALSE,LEFT($B107,3)<>\"NOX\"),BO56*INDEX('Damage costs'!$W$16:$W$43,MATCH($B107,'Damage costs'!$C$16:$C$43,0))/1000,BO56*INDEX('Damage costs'!$AA$16:$AA$43,MATCH($B107,'Damage costs'!$C$16:$C$43,0))/1000),\"\")","v":""},{"$f":"IFERROR(IF(OR($C$110=FALSE,LEFT($B107,3)<>\"NOX\"),BP56*INDEX('Damage costs'!$W$16:$W$43,MATCH($B107,'Damage costs'!$C$16:$C$43,0))/1000,BP56*INDEX('Damage costs'!$AA$16:$AA$43,MATCH($B107,'Damage costs'!$C$16:$C$43,0))/1000),\"\")","v":""},{"$f":"IFERROR(IF(OR($C$110=FALSE,LEFT($B107,3)<>\"NOX\"),BQ56*INDEX('Damage costs'!$W$16:$W$43,MATCH($B107,'Damage costs'!$C$16:$C$43,0))/1000,BQ56*INDEX('Damage costs'!$AA$16:$AA$43,MATCH($B107,'Damage costs'!$C$16:$C$43,0))/1000),\"\")","v":""},{"$f":"IFERROR(IF(OR($C$110=FALSE,LEFT($B107,3)<>\"NOX\"),BR56*INDEX('Damage costs'!$W$16:$W$43,MATCH($B107,'Damage costs'!$C$16:$C$43,0))/1000,BR56*INDEX('Damage costs'!$AA$16:$AA$43,MATCH($B107,'Damage costs'!$C$16:$C$43,0))/1000),\"\")","v":""},{"$f":"IFERROR(IF(OR($C$110=FALSE,LEFT($B107,3)<>\"NOX\"),BS56*INDEX('Damage costs'!$W$16:$W$43,MATCH($B107,'Damage costs'!$C$16:$C$43,0))/1000,BS56*INDEX('Damage costs'!$AA$16:$AA$43,MATCH($B107,'Damage costs'!$C$16:$C$43,0))/1000),\"\")","v":""},{"$f":"IFERROR(IF(OR($C$110=FALSE,LEFT($B107,3)<>\"NOX\"),BT56*INDEX('Damage costs'!$W$16:$W$43,MATCH($B107,'Damage costs'!$C$16:$C$43,0))/1000,BT56*INDEX('Damage costs'!$AA$16:$AA$43,MATCH($B107,'Damage costs'!$C$16:$C$43,0))/1000),\"\")","v":""},{"$f":"IFERROR(IF(OR($C$110=FALSE,LEFT($B107,3)<>\"NOX\"),BU56*INDEX('Damage costs'!$W$16:$W$43,MATCH($B107,'Damage costs'!$C$16:$C$43,0))/1000,BU56*INDEX('Damage costs'!$AA$16:$AA$43,MATCH($B107,'Damage costs'!$C$16:$C$43,0))/1000),\"\")","v":""},{"$f":"IFERROR(IF(OR($C$110=FALSE,LEFT($B107,3)<>\"NOX\"),BV56*INDEX('Damage costs'!$W$16:$W$43,MATCH($B107,'Damage costs'!$C$16:$C$43,0))/1000,BV56*INDEX('Damage costs'!$AA$16:$AA$43,MATCH($B107,'Damage costs'!$C$16:$C$43,0))/1000),\"\")","v":""},{"$f":"IFERROR(IF(OR($C$110=FALSE,LEFT($B107,3)<>\"NOX\"),BW56*INDEX('Damage costs'!$W$16:$W$43,MATCH($B107,'Damage costs'!$C$16:$C$43,0))/1000,BW56*INDEX('Damage costs'!$AA$16:$AA$43,MATCH($B107,'Damage costs'!$C$16:$C$43,0))/1000),\"\")","v":""},{"$f":"IFERROR(IF(OR($C$110=FALSE,LEFT($B107,3)<>\"NOX\"),BX56*INDEX('Damage costs'!$W$16:$W$43,MATCH($B107,'Damage costs'!$C$16:$C$43,0))/1000,BX56*INDEX('Damage costs'!$AA$16:$AA$43,MATCH($B107,'Damage costs'!$C$16:$C$43,0))/1000),\"\")","v":""},{"$f":"IFERROR(IF(OR($C$110=FALSE,LEFT($B107,3)<>\"NOX\"),BY56*INDEX('Damage costs'!$W$16:$W$43,MATCH($B107,'Damage costs'!$C$16:$C$43,0))/1000,BY56*INDEX('Damage costs'!$AA$16:$AA$43,MATCH($B107,'Damage costs'!$C$16:$C$43,0))/1000),\"\")","v":""},{"$f":"IFERROR(IF(OR($C$110=FALSE,LEFT($B107,3)<>\"NOX\"),BZ56*INDEX('Damage costs'!$W$16:$W$43,MATCH($B107,'Damage costs'!$C$16:$C$43,0))/1000,BZ56*INDEX('Damage costs'!$AA$16:$AA$43,MATCH($B107,'Damage costs'!$C$16:$C$43,0))/1000),\"\")","v":""},{"$f":"IFERROR(IF(OR($C$110=FALSE,LEFT($B107,3)<>\"NOX\"),CA56*INDEX('Damage costs'!$W$16:$W$43,MATCH($B107,'Damage costs'!$C$16:$C$43,0))/1000,CA56*INDEX('Damage costs'!$AA$16:$AA$43,MATCH($B107,'Damage costs'!$C$16:$C$43,0))/1000),\"\")","v":""},{"$f":"IFERROR(IF(OR($C$110=FALSE,LEFT($B107,3)<>\"NOX\"),CB56*INDEX('Damage costs'!$W$16:$W$43,MATCH($B107,'Damage costs'!$C$16:$C$43,0))/1000,CB56*INDEX('Damage costs'!$AA$16:$AA$43,MATCH($B107,'Damage costs'!$C$16:$C$43,0))/1000),\"\")","v":""},{"$f":"IFERROR(IF(OR($C$110=FALSE,LEFT($B107,3)<>\"NOX\"),CC56*INDEX('Damage costs'!$W$16:$W$43,MATCH($B107,'Damage costs'!$C$16:$C$43,0))/1000,CC56*INDEX('Damage costs'!$AA$16:$AA$43,MATCH($B107,'Damage costs'!$C$16:$C$43,0))/1000),\"\")","v":""},{"$f":"IFERROR(IF(OR($C$110=FALSE,LEFT($B107,3)<>\"NOX\"),CD56*INDEX('Damage costs'!$W$16:$W$43,MATCH($B107,'Damage costs'!$C$16:$C$43,0))/1000,CD56*INDEX('Damage costs'!$AA$16:$AA$43,MATCH($B107,'Damage costs'!$C$16:$C$43,0))/1000),\"\")","v":""},{"$f":"IFERROR(IF(OR($C$110=FALSE,LEFT($B107,3)<>\"NOX\"),CE56*INDEX('Damage costs'!$W$16:$W$43,MATCH($B107,'Damage costs'!$C$16:$C$43,0))/1000,CE56*INDEX('Damage costs'!$AA$16:$AA$43,MATCH($B107,'Damage costs'!$C$16:$C$43,0))/1000),\"\")","v":""},{"$f":"IFERROR(IF(OR($C$110=FALSE,LEFT($B107,3)<>\"NOX\"),CF56*INDEX('Damage costs'!$W$16:$W$43,MATCH($B107,'Damage costs'!$C$16:$C$43,0))/1000,CF56*INDEX('Damage costs'!$AA$16:$AA$43,MATCH($B107,'Damage costs'!$C$16:$C$43,0))/1000),\"\")","v":""},{"$f":"IFERROR(IF(OR($C$110=FALSE,LEFT($B107,3)<>\"NOX\"),CG56*INDEX('Damage costs'!$W$16:$W$43,MATCH($B107,'Damage costs'!$C$16:$C$43,0))/1000,CG56*INDEX('Damage costs'!$AA$16:$AA$43,MATCH($B107,'Damage costs'!$C$16:$C$43,0))/1000),\"\")","v":""},{"$f":"IFERROR(IF(OR($C$110=FALSE,LEFT($B107,3)<>\"NOX\"),CH56*INDEX('Damage costs'!$W$16:$W$43,MATCH($B107,'Damage costs'!$C$16:$C$43,0))/1000,CH56*INDEX('Damage costs'!$AA$16:$AA$43,MATCH($B107,'Damage costs'!$C$16:$C$43,0))/1000),\"\")","v":""},{"$f":"IFERROR(IF(OR($C$110=FALSE,LEFT($B107,3)<>\"NOX\"),CI56*INDEX('Damage costs'!$W$16:$W$43,MATCH($B107,'Damage costs'!$C$16:$C$43,0))/1000,CI56*INDEX('Damage costs'!$AA$16:$AA$43,MATCH($B107,'Damage costs'!$C$16:$C$43,0))/1000),\"\")","v":""},{"$f":"IFERROR(IF(OR($C$110=FALSE,LEFT($B107,3)<>\"NOX\"),CJ56*INDEX('Damage costs'!$W$16:$W$43,MATCH($B107,'Damage costs'!$C$16:$C$43,0))/1000,CJ56*INDEX('Damage costs'!$AA$16:$AA$43,MATCH($B107,'Damage costs'!$C$16:$C$43,0))/1000),\"\")","v":""},{"$f":"IFERROR(IF(OR($C$110=FALSE,LEFT($B107,3)<>\"NOX\"),CK56*INDEX('Damage costs'!$W$16:$W$43,MATCH($B107,'Damage costs'!$C$16:$C$43,0))/1000,CK56*INDEX('Damage costs'!$AA$16:$AA$43,MATCH($B107,'Damage costs'!$C$16:$C$43,0))/1000),\"\")","v":""},{"$f":"IFERROR(IF(OR($C$110=FALSE,LEFT($B107,3)<>\"NOX\"),CL56*INDEX('Damage costs'!$W$16:$W$43,MATCH($B107,'Damage costs'!$C$16:$C$43,0))/1000,CL56*INDEX('Damage costs'!$AA$16:$AA$43,MATCH($B107,'Damage costs'!$C$16:$C$43,0))/1000),\"\")","v":""},{"$f":"IFERROR(IF(OR($C$110=FALSE,LEFT($B107,3)<>\"NOX\"),CM56*INDEX('Damage costs'!$W$16:$W$43,MATCH($B107,'Damage costs'!$C$16:$C$43,0))/1000,CM56*INDEX('Damage costs'!$AA$16:$AA$43,MATCH($B107,'Damage costs'!$C$16:$C$43,0))/1000),\"\")","v":""},{"$f":"IFERROR(IF(OR($C$110=FALSE,LEFT($B107,3)<>\"NOX\"),CN56*INDEX('Damage costs'!$W$16:$W$43,MATCH($B107,'Damage costs'!$C$16:$C$43,0))/1000,CN56*INDEX('Damage costs'!$AA$16:$AA$43,MATCH($B107,'Damage costs'!$C$16:$C$43,0))/1000),\"\")","v":""},{"$f":"IFERROR(IF(OR($C$110=FALSE,LEFT($B107,3)<>\"NOX\"),CO56*INDEX('Damage costs'!$W$16:$W$43,MATCH($B107,'Damage costs'!$C$16:$C$43,0))/1000,CO56*INDEX('Damage costs'!$AA$16:$AA$43,MATCH($B107,'Damage costs'!$C$16:$C$43,0))/1000),\"\")","v":""},{"$f":"IFERROR(IF(OR($C$110=FALSE,LEFT($B107,3)<>\"NOX\"),CP56*INDEX('Damage costs'!$W$16:$W$43,MATCH($B107,'Damage costs'!$C$16:$C$43,0))/1000,CP56*INDEX('Damage costs'!$AA$16:$AA$43,MATCH($B107,'Damage costs'!$C$16:$C$43,0))/1000),\"\")","v":""},{"$f":"IFERROR(IF(OR($C$110=FALSE,LEFT($B107,3)<>\"NOX\"),CQ56*INDEX('Damage costs'!$W$16:$W$43,MATCH($B107,'Damage costs'!$C$16:$C$43,0))/1000,CQ56*INDEX('Damage costs'!$AA$16:$AA$43,MATCH($B107,'Damage costs'!$C$16:$C$43,0))/1000),\"\")","v":""},{"$f":"IFERROR(IF(OR($C$110=FALSE,LEFT($B107,3)<>\"NOX\"),CR56*INDEX('Damage costs'!$W$16:$W$43,MATCH($B107,'Damage costs'!$C$16:$C$43,0))/1000,CR56*INDEX('Damage costs'!$AA$16:$AA$43,MATCH($B107,'Damage costs'!$C$16:$C$43,0))/1000),\"\")","v":""},{"$f":"IFERROR(IF(OR($C$110=FALSE,LEFT($B107,3)<>\"NOX\"),CS56*INDEX('Damage costs'!$W$16:$W$43,MATCH($B107,'Damage costs'!$C$16:$C$43,0))/1000,CS56*INDEX('Damage costs'!$AA$16:$AA$43,MATCH($B107,'Damage costs'!$C$16:$C$43,0))/1000),\"\")","v":""},{"$f":"IFERROR(IF(OR($C$110=FALSE,LEFT($B107,3)<>\"NOX\"),CT56*INDEX('Damage costs'!$W$16:$W$43,MATCH($B107,'Damage costs'!$C$16:$C$43,0))/1000,CT56*INDEX('Damage costs'!$AA$16:$AA$43,MATCH($B107,'Damage costs'!$C$16:$C$43,0))/1000),\"\")","v":""},{"$f":"IFERROR(IF(OR($C$110=FALSE,LEFT($B107,3)<>\"NOX\"),CU56*INDEX('Damage costs'!$W$16:$W$43,MATCH($B107,'Damage costs'!$C$16:$C$43,0))/1000,CU56*INDEX('Damage costs'!$AA$16:$AA$43,MATCH($B107,'Damage costs'!$C$16:$C$43,0))/1000),\"\")","v":""},{"$f":"IFERROR(IF(OR($C$110=FALSE,LEFT($B107,3)<>\"NOX\"),CV56*INDEX('Damage costs'!$W$16:$W$43,MATCH($B107,'Damage costs'!$C$16:$C$43,0))/1000,CV56*INDEX('Damage costs'!$AA$16:$AA$43,MATCH($B107,'Damage costs'!$C$16:$C$43,0))/1000),\"\")","v":""},{"$f":"IFERROR(IF(OR($C$110=FALSE,LEFT($B107,3)<>\"NOX\"),CW56*INDEX('Damage costs'!$W$16:$W$43,MATCH($B107,'Damage costs'!$C$16:$C$43,0))/1000,CW56*INDEX('Damage costs'!$AA$16:$AA$43,MATCH($B107,'Damage costs'!$C$16:$C$43,0))/1000),\"\")","v":""},{"$f":"IFERROR(IF(OR($C$110=FALSE,LEFT($B107,3)<>\"NOX\"),CX56*INDEX('Damage costs'!$W$16:$W$43,MATCH($B107,'Damage costs'!$C$16:$C$43,0))/1000,CX56*INDEX('Damage costs'!$AA$16:$AA$43,MATCH($B107,'Damage costs'!$C$16:$C$43,0))/1000),\"\")","v":""},{"$f":"IFERROR(IF(OR($C$110=FALSE,LEFT($B107,3)<>\"NOX\"),CY56*INDEX('Damage costs'!$W$16:$W$43,MATCH($B107,'Damage costs'!$C$16:$C$43,0))/1000,CY56*INDEX('Damage costs'!$AA$16:$AA$43,MATCH($B107,'Damage costs'!$C$16:$C$43,0))/1000),\"\")","v":""}]
[null,0,"£000's",{"$f":"IFERROR(IF(OR($C$110=FALSE,LEFT($B108,3)<>\"NOX\"),D57*INDEX('Damage costs'!$W$16:$W$43,MATCH($B108,'Damage costs'!$C$16:$C$43,0))/1000,D57*INDEX('Damage costs'!$AA$16:$AA$43,MATCH($B108,'Damage costs'!$C$16:$C$43,0))/1000),\"\")","v":""},{"$f":"IFERROR(IF(OR($C$110=FALSE,LEFT($B108,3)<>\"NOX\"),E57*INDEX('Damage costs'!$W$16:$W$43,MATCH($B108,'Damage costs'!$C$16:$C$43,0))/1000,E57*INDEX('Damage costs'!$AA$16:$AA$43,MATCH($B108,'Damage costs'!$C$16:$C$43,0))/1000),\"\")","v":""},{"$f":"IFERROR(IF(OR($C$110=FALSE,LEFT($B108,3)<>\"NOX\"),F57*INDEX('Damage costs'!$W$16:$W$43,MATCH($B108,'Damage costs'!$C$16:$C$43,0))/1000,F57*INDEX('Damage costs'!$AA$16:$AA$43,MATCH($B108,'Damage costs'!$C$16:$C$43,0))/1000),\"\")","v":""},{"$f":"IFERROR(IF(OR($C$110=FALSE,LEFT($B108,3)<>\"NOX\"),G57*INDEX('Damage costs'!$W$16:$W$43,MATCH($B108,'Damage costs'!$C$16:$C$43,0))/1000,G57*INDEX('Damage costs'!$AA$16:$AA$43,MATCH($B108,'Damage costs'!$C$16:$C$43,0))/1000),\"\")","v":""},{"$f":"IFERROR(IF(OR($C$110=FALSE,LEFT($B108,3)<>\"NOX\"),H57*INDEX('Damage costs'!$W$16:$W$43,MATCH($B108,'Damage costs'!$C$16:$C$43,0))/1000,H57*INDEX('Damage costs'!$AA$16:$AA$43,MATCH($B108,'Damage costs'!$C$16:$C$43,0))/1000),\"\")","v":""},{"$f":"IFERROR(IF(OR($C$110=FALSE,LEFT($B108,3)<>\"NOX\"),I57*INDEX('Damage costs'!$W$16:$W$43,MATCH($B108,'Damage costs'!$C$16:$C$43,0))/1000,I57*INDEX('Damage costs'!$AA$16:$AA$43,MATCH($B108,'Damage costs'!$C$16:$C$43,0))/1000),\"\")","v":""},{"$f":"IFERROR(IF(OR($C$110=FALSE,LEFT($B108,3)<>\"NOX\"),J57*INDEX('Damage costs'!$W$16:$W$43,MATCH($B108,'Damage costs'!$C$16:$C$43,0))/1000,J57*INDEX('Damage costs'!$AA$16:$AA$43,MATCH($B108,'Damage costs'!$C$16:$C$43,0))/1000),\"\")","v":""},{"$f":"IFERROR(IF(OR($C$110=FALSE,LEFT($B108,3)<>\"NOX\"),K57*INDEX('Damage costs'!$W$16:$W$43,MATCH($B108,'Damage costs'!$C$16:$C$43,0))/1000,K57*INDEX('Damage costs'!$AA$16:$AA$43,MATCH($B108,'Damage costs'!$C$16:$C$43,0))/1000),\"\")","v":""},{"$f":"IFERROR(IF(OR($C$110=FALSE,LEFT($B108,3)<>\"NOX\"),L57*INDEX('Damage costs'!$W$16:$W$43,MATCH($B108,'Damage costs'!$C$16:$C$43,0))/1000,L57*INDEX('Damage costs'!$AA$16:$AA$43,MATCH($B108,'Damage costs'!$C$16:$C$43,0))/1000),\"\")","v":""},{"$f":"IFERROR(IF(OR($C$110=FALSE,LEFT($B108,3)<>\"NOX\"),M57*INDEX('Damage costs'!$W$16:$W$43,MATCH($B108,'Damage costs'!$C$16:$C$43,0))/1000,M57*INDEX('Damage costs'!$AA$16:$AA$43,MATCH($B108,'Damage costs'!$C$16:$C$43,0))/1000),\"\")","v":""},{"$f":"IFERROR(IF(OR($C$110=FALSE,LEFT($B108,3)<>\"NOX\"),N57*INDEX('Damage costs'!$W$16:$W$43,MATCH($B108,'Damage costs'!$C$16:$C$43,0))/1000,N57*INDEX('Damage costs'!$AA$16:$AA$43,MATCH($B108,'Damage costs'!$C$16:$C$43,0))/1000),\"\")","v":""},{"$f":"IFERROR(IF(OR($C$110=FALSE,LEFT($B108,3)<>\"NOX\"),O57*INDEX('Damage costs'!$W$16:$W$43,MATCH($B108,'Damage costs'!$C$16:$C$43,0))/1000,O57*INDEX('Damage costs'!$AA$16:$AA$43,MATCH($B108,'Damage costs'!$C$16:$C$43,0))/1000),\"\")","v":""},{"$f":"IFERROR(IF(OR($C$110=FALSE,LEFT($B108,3)<>\"NOX\"),P57*INDEX('Damage costs'!$W$16:$W$43,MATCH($B108,'Damage costs'!$C$16:$C$43,0))/1000,P57*INDEX('Damage costs'!$AA$16:$AA$43,MATCH($B108,'Damage costs'!$C$16:$C$43,0))/1000),\"\")","v":""},{"$f":"IFERROR(IF(OR($C$110=FALSE,LEFT($B108,3)<>\"NOX\"),Q57*INDEX('Damage costs'!$W$16:$W$43,MATCH($B108,'Damage costs'!$C$16:$C$43,0))/1000,Q57*INDEX('Damage costs'!$AA$16:$AA$43,MATCH($B108,'Damage costs'!$C$16:$C$43,0))/1000),\"\")","v":""},{"$f":"IFERROR(IF(OR($C$110=FALSE,LEFT($B108,3)<>\"NOX\"),R57*INDEX('Damage costs'!$W$16:$W$43,MATCH($B108,'Damage costs'!$C$16:$C$43,0))/1000,R57*INDEX('Damage costs'!$AA$16:$AA$43,MATCH($B108,'Damage costs'!$C$16:$C$43,0))/1000),\"\")","v":""},{"$f":"IFERROR(IF(OR($C$110=FALSE,LEFT($B108,3)<>\"NOX\"),S57*INDEX('Damage costs'!$W$16:$W$43,MATCH($B108,'Damage costs'!$C$16:$C$43,0))/1000,S57*INDEX('Damage costs'!$AA$16:$AA$43,MATCH($B108,'Damage costs'!$C$16:$C$43,0))/1000),\"\")","v":""},{"$f":"IFERROR(IF(OR($C$110=FALSE,LEFT($B108,3)<>\"NOX\"),T57*INDEX('Damage costs'!$W$16:$W$43,MATCH($B108,'Damage costs'!$C$16:$C$43,0))/1000,T57*INDEX('Damage costs'!$AA$16:$AA$43,MATCH($B108,'Damage costs'!$C$16:$C$43,0))/1000),\"\")","v":""},{"$f":"IFERROR(IF(OR($C$110=FALSE,LEFT($B108,3)<>\"NOX\"),U57*INDEX('Damage costs'!$W$16:$W$43,MATCH($B108,'Damage costs'!$C$16:$C$43,0))/1000,U57*INDEX('Damage costs'!$AA$16:$AA$43,MATCH($B108,'Damage costs'!$C$16:$C$43,0))/1000),\"\")","v":""},{"$f":"IFERROR(IF(OR($C$110=FALSE,LEFT($B108,3)<>\"NOX\"),V57*INDEX('Damage costs'!$W$16:$W$43,MATCH($B108,'Damage costs'!$C$16:$C$43,0))/1000,V57*INDEX('Damage costs'!$AA$16:$AA$43,MATCH($B108,'Damage costs'!$C$16:$C$43,0))/1000),\"\")","v":""},{"$f":"IFERROR(IF(OR($C$110=FALSE,LEFT($B108,3)<>\"NOX\"),W57*INDEX('Damage costs'!$W$16:$W$43,MATCH($B108,'Damage costs'!$C$16:$C$43,0))/1000,W57*INDEX('Damage costs'!$AA$16:$AA$43,MATCH($B108,'Damage costs'!$C$16:$C$43,0))/1000),\"\")","v":""},{"$f":"IFERROR(IF(OR($C$110=FALSE,LEFT($B108,3)<>\"NOX\"),X57*INDEX('Damage costs'!$W$16:$W$43,MATCH($B108,'Damage costs'!$C$16:$C$43,0))/1000,X57*INDEX('Damage costs'!$AA$16:$AA$43,MATCH($B108,'Damage costs'!$C$16:$C$43,0))/1000),\"\")","v":""},{"$f":"IFERROR(IF(OR($C$110=FALSE,LEFT($B108,3)<>\"NOX\"),Y57*INDEX('Damage costs'!$W$16:$W$43,MATCH($B108,'Damage costs'!$C$16:$C$43,0))/1000,Y57*INDEX('Damage costs'!$AA$16:$AA$43,MATCH($B108,'Damage costs'!$C$16:$C$43,0))/1000),\"\")","v":""},{"$f":"IFERROR(IF(OR($C$110=FALSE,LEFT($B108,3)<>\"NOX\"),Z57*INDEX('Damage costs'!$W$16:$W$43,MATCH($B108,'Damage costs'!$C$16:$C$43,0))/1000,Z57*INDEX('Damage costs'!$AA$16:$AA$43,MATCH($B108,'Damage costs'!$C$16:$C$43,0))/1000),\"\")","v":""},{"$f":"IFERROR(IF(OR($C$110=FALSE,LEFT($B108,3)<>\"NOX\"),AA57*INDEX('Damage costs'!$W$16:$W$43,MATCH($B108,'Damage costs'!$C$16:$C$43,0))/1000,AA57*INDEX('Damage costs'!$AA$16:$AA$43,MATCH($B108,'Damage costs'!$C$16:$C$43,0))/1000),\"\")","v":""},{"$f":"IFERROR(IF(OR($C$110=FALSE,LEFT($B108,3)<>\"NOX\"),AB57*INDEX('Damage costs'!$W$16:$W$43,MATCH($B108,'Damage costs'!$C$16:$C$43,0))/1000,AB57*INDEX('Damage costs'!$AA$16:$AA$43,MATCH($B108,'Damage costs'!$C$16:$C$43,0))/1000),\"\")","v":""},{"$f":"IFERROR(IF(OR($C$110=FALSE,LEFT($B108,3)<>\"NOX\"),AC57*INDEX('Damage costs'!$W$16:$W$43,MATCH($B108,'Damage costs'!$C$16:$C$43,0))/1000,AC57*INDEX('Damage costs'!$AA$16:$AA$43,MATCH($B108,'Damage costs'!$C$16:$C$43,0))/1000),\"\")","v":""},{"$f":"IFERROR(IF(OR($C$110=FALSE,LEFT($B108,3)<>\"NOX\"),AD57*INDEX('Damage costs'!$W$16:$W$43,MATCH($B108,'Damage costs'!$C$16:$C$43,0))/1000,AD57*INDEX('Damage costs'!$AA$16:$AA$43,MATCH($B108,'Damage costs'!$C$16:$C$43,0))/1000),\"\")","v":""},{"$f":"IFERROR(IF(OR($C$110=FALSE,LEFT($B108,3)<>\"NOX\"),AE57*INDEX('Damage costs'!$W$16:$W$43,MATCH($B108,'Damage costs'!$C$16:$C$43,0))/1000,AE57*INDEX('Damage costs'!$AA$16:$AA$43,MATCH($B108,'Damage costs'!$C$16:$C$43,0))/1000),\"\")","v":""},{"$f":"IFERROR(IF(OR($C$110=FALSE,LEFT($B108,3)<>\"NOX\"),AF57*INDEX('Damage costs'!$W$16:$W$43,MATCH($B108,'Damage costs'!$C$16:$C$43,0))/1000,AF57*INDEX('Damage costs'!$AA$16:$AA$43,MATCH($B108,'Damage costs'!$C$16:$C$43,0))/1000),\"\")","v":""},{"$f":"IFERROR(IF(OR($C$110=FALSE,LEFT($B108,3)<>\"NOX\"),AG57*INDEX('Damage costs'!$W$16:$W$43,MATCH($B108,'Damage costs'!$C$16:$C$43,0))/1000,AG57*INDEX('Damage costs'!$AA$16:$AA$43,MATCH($B108,'Damage costs'!$C$16:$C$43,0))/1000),\"\")","v":""},{"$f":"IFERROR(IF(OR($C$110=FALSE,LEFT($B108,3)<>\"NOX\"),AH57*INDEX('Damage costs'!$W$16:$W$43,MATCH($B108,'Damage costs'!$C$16:$C$43,0))/1000,AH57*INDEX('Damage costs'!$AA$16:$AA$43,MATCH($B108,'Damage costs'!$C$16:$C$43,0))/1000),\"\")","v":""},{"$f":"IFERROR(IF(OR($C$110=FALSE,LEFT($B108,3)<>\"NOX\"),AI57*INDEX('Damage costs'!$W$16:$W$43,MATCH($B108,'Damage costs'!$C$16:$C$43,0))/1000,AI57*INDEX('Damage costs'!$AA$16:$AA$43,MATCH($B108,'Damage costs'!$C$16:$C$43,0))/1000),\"\")","v":""},{"$f":"IFERROR(IF(OR($C$110=FALSE,LEFT($B108,3)<>\"NOX\"),AJ57*INDEX('Damage costs'!$W$16:$W$43,MATCH($B108,'Damage costs'!$C$16:$C$43,0))/1000,AJ57*INDEX('Damage costs'!$AA$16:$AA$43,MATCH($B108,'Damage costs'!$C$16:$C$43,0))/1000),\"\")","v":""},{"$f":"IFERROR(IF(OR($C$110=FALSE,LEFT($B108,3)<>\"NOX\"),AK57*INDEX('Damage costs'!$W$16:$W$43,MATCH($B108,'Damage costs'!$C$16:$C$43,0))/1000,AK57*INDEX('Damage costs'!$AA$16:$AA$43,MATCH($B108,'Damage costs'!$C$16:$C$43,0))/1000),\"\")","v":""},{"$f":"IFERROR(IF(OR($C$110=FALSE,LEFT($B108,3)<>\"NOX\"),AL57*INDEX('Damage costs'!$W$16:$W$43,MATCH($B108,'Damage costs'!$C$16:$C$43,0))/1000,AL57*INDEX('Damage costs'!$AA$16:$AA$43,MATCH($B108,'Damage costs'!$C$16:$C$43,0))/1000),\"\")","v":""},{"$f":"IFERROR(IF(OR($C$110=FALSE,LEFT($B108,3)<>\"NOX\"),AM57*INDEX('Damage costs'!$W$16:$W$43,MATCH($B108,'Damage costs'!$C$16:$C$43,0))/1000,AM57*INDEX('Damage costs'!$AA$16:$AA$43,MATCH($B108,'Damage costs'!$C$16:$C$43,0))/1000),\"\")","v":""},{"$f":"IFERROR(IF(OR($C$110=FALSE,LEFT($B108,3)<>\"NOX\"),AN57*INDEX('Damage costs'!$W$16:$W$43,MATCH($B108,'Damage costs'!$C$16:$C$43,0))/1000,AN57*INDEX('Damage costs'!$AA$16:$AA$43,MATCH($B108,'Damage costs'!$C$16:$C$43,0))/1000),\"\")","v":""},{"$f":"IFERROR(IF(OR($C$110=FALSE,LEFT($B108,3)<>\"NOX\"),AO57*INDEX('Damage costs'!$W$16:$W$43,MATCH($B108,'Damage costs'!$C$16:$C$43,0))/1000,AO57*INDEX('Damage costs'!$AA$16:$AA$43,MATCH($B108,'Damage costs'!$C$16:$C$43,0))/1000),\"\")","v":""},{"$f":"IFERROR(IF(OR($C$110=FALSE,LEFT($B108,3)<>\"NOX\"),AP57*INDEX('Damage costs'!$W$16:$W$43,MATCH($B108,'Damage costs'!$C$16:$C$43,0))/1000,AP57*INDEX('Damage costs'!$AA$16:$AA$43,MATCH($B108,'Damage costs'!$C$16:$C$43,0))/1000),\"\")","v":""},{"$f":"IFERROR(IF(OR($C$110=FALSE,LEFT($B108,3)<>\"NOX\"),AQ57*INDEX('Damage costs'!$W$16:$W$43,MATCH($B108,'Damage costs'!$C$16:$C$43,0))/1000,AQ57*INDEX('Damage costs'!$AA$16:$AA$43,MATCH($B108,'Damage costs'!$C$16:$C$43,0))/1000),\"\")","v":""},{"$f":"IFERROR(IF(OR($C$110=FALSE,LEFT($B108,3)<>\"NOX\"),AR57*INDEX('Damage costs'!$W$16:$W$43,MATCH($B108,'Damage costs'!$C$16:$C$43,0))/1000,AR57*INDEX('Damage costs'!$AA$16:$AA$43,MATCH($B108,'Damage costs'!$C$16:$C$43,0))/1000),\"\")","v":""},{"$f":"IFERROR(IF(OR($C$110=FALSE,LEFT($B108,3)<>\"NOX\"),AS57*INDEX('Damage costs'!$W$16:$W$43,MATCH($B108,'Damage costs'!$C$16:$C$43,0))/1000,AS57*INDEX('Damage costs'!$AA$16:$AA$43,MATCH($B108,'Damage costs'!$C$16:$C$43,0))/1000),\"\")","v":""},{"$f":"IFERROR(IF(OR($C$110=FALSE,LEFT($B108,3)<>\"NOX\"),AT57*INDEX('Damage costs'!$W$16:$W$43,MATCH($B108,'Damage costs'!$C$16:$C$43,0))/1000,AT57*INDEX('Damage costs'!$AA$16:$AA$43,MATCH($B108,'Damage costs'!$C$16:$C$43,0))/1000),\"\")","v":""},{"$f":"IFERROR(IF(OR($C$110=FALSE,LEFT($B108,3)<>\"NOX\"),AU57*INDEX('Damage costs'!$W$16:$W$43,MATCH($B108,'Damage costs'!$C$16:$C$43,0))/1000,AU57*INDEX('Damage costs'!$AA$16:$AA$43,MATCH($B108,'Damage costs'!$C$16:$C$43,0))/1000),\"\")","v":""},{"$f":"IFERROR(IF(OR($C$110=FALSE,LEFT($B108,3)<>\"NOX\"),AV57*INDEX('Damage costs'!$W$16:$W$43,MATCH($B108,'Damage costs'!$C$16:$C$43,0))/1000,AV57*INDEX('Damage costs'!$AA$16:$AA$43,MATCH($B108,'Damage costs'!$C$16:$C$43,0))/1000),\"\")","v":""},{"$f":"IFERROR(IF(OR($C$110=FALSE,LEFT($B108,3)<>\"NOX\"),AW57*INDEX('Damage costs'!$W$16:$W$43,MATCH($B108,'Damage costs'!$C$16:$C$43,0))/1000,AW57*INDEX('Damage costs'!$AA$16:$AA$43,MATCH($B108,'Damage costs'!$C$16:$C$43,0))/1000),\"\")","v":""},{"$f":"IFERROR(IF(OR($C$110=FALSE,LEFT($B108,3)<>\"NOX\"),AX57*INDEX('Damage costs'!$W$16:$W$43,MATCH($B108,'Damage costs'!$C$16:$C$43,0))/1000,AX57*INDEX('Damage costs'!$AA$16:$AA$43,MATCH($B108,'Damage costs'!$C$16:$C$43,0))/1000),\"\")","v":""},{"$f":"IFERROR(IF(OR($C$110=FALSE,LEFT($B108,3)<>\"NOX\"),AY57*INDEX('Damage costs'!$W$16:$W$43,MATCH($B108,'Damage costs'!$C$16:$C$43,0))/1000,AY57*INDEX('Damage costs'!$AA$16:$AA$43,MATCH($B108,'Damage costs'!$C$16:$C$43,0))/1000),\"\")","v":""},{"$f":"IFERROR(IF(OR($C$110=FALSE,LEFT($B108,3)<>\"NOX\"),AZ57*INDEX('Damage costs'!$W$16:$W$43,MATCH($B108,'Damage costs'!$C$16:$C$43,0))/1000,AZ57*INDEX('Damage costs'!$AA$16:$AA$43,MATCH($B108,'Damage costs'!$C$16:$C$43,0))/1000),\"\")","v":""},{"$f":"IFERROR(IF(OR($C$110=FALSE,LEFT($B108,3)<>\"NOX\"),BA57*INDEX('Damage costs'!$W$16:$W$43,MATCH($B108,'Damage costs'!$C$16:$C$43,0))/1000,BA57*INDEX('Damage costs'!$AA$16:$AA$43,MATCH($B108,'Damage costs'!$C$16:$C$43,0))/1000),\"\")","v":""},{"$f":"IFERROR(IF(OR($C$110=FALSE,LEFT($B108,3)<>\"NOX\"),BB57*INDEX('Damage costs'!$W$16:$W$43,MATCH($B108,'Damage costs'!$C$16:$C$43,0))/1000,BB57*INDEX('Damage costs'!$AA$16:$AA$43,MATCH($B108,'Damage costs'!$C$16:$C$43,0))/1000),\"\")","v":""},{"$f":"IFERROR(IF(OR($C$110=FALSE,LEFT($B108,3)<>\"NOX\"),BC57*INDEX('Damage costs'!$W$16:$W$43,MATCH($B108,'Damage costs'!$C$16:$C$43,0))/1000,BC57*INDEX('Damage costs'!$AA$16:$AA$43,MATCH($B108,'Damage costs'!$C$16:$C$43,0))/1000),\"\")","v":""},{"$f":"IFERROR(IF(OR($C$110=FALSE,LEFT($B108,3)<>\"NOX\"),BD57*INDEX('Damage costs'!$W$16:$W$43,MATCH($B108,'Damage costs'!$C$16:$C$43,0))/1000,BD57*INDEX('Damage costs'!$AA$16:$AA$43,MATCH($B108,'Damage costs'!$C$16:$C$43,0))/1000),\"\")","v":""},{"$f":"IFERROR(IF(OR($C$110=FALSE,LEFT($B108,3)<>\"NOX\"),BE57*INDEX('Damage costs'!$W$16:$W$43,MATCH($B108,'Damage costs'!$C$16:$C$43,0))/1000,BE57*INDEX('Damage costs'!$AA$16:$AA$43,MATCH($B108,'Damage costs'!$C$16:$C$43,0))/1000),\"\")","v":""},{"$f":"IFERROR(IF(OR($C$110=FALSE,LEFT($B108,3)<>\"NOX\"),BF57*INDEX('Damage costs'!$W$16:$W$43,MATCH($B108,'Damage costs'!$C$16:$C$43,0))/1000,BF57*INDEX('Damage costs'!$AA$16:$AA$43,MATCH($B108,'Damage costs'!$C$16:$C$43,0))/1000),\"\")","v":""},{"$f":"IFERROR(IF(OR($C$110=FALSE,LEFT($B108,3)<>\"NOX\"),BG57*INDEX('Damage costs'!$W$16:$W$43,MATCH($B108,'Damage costs'!$C$16:$C$43,0))/1000,BG57*INDEX('Damage costs'!$AA$16:$AA$43,MATCH($B108,'Damage costs'!$C$16:$C$43,0))/1000),\"\")","v":""},{"$f":"IFERROR(IF(OR($C$110=FALSE,LEFT($B108,3)<>\"NOX\"),BH57*INDEX('Damage costs'!$W$16:$W$43,MATCH($B108,'Damage costs'!$C$16:$C$43,0))/1000,BH57*INDEX('Damage costs'!$AA$16:$AA$43,MATCH($B108,'Damage costs'!$C$16:$C$43,0))/1000),\"\")","v":""},{"$f":"IFERROR(IF(OR($C$110=FALSE,LEFT($B108,3)<>\"NOX\"),BI57*INDEX('Damage costs'!$W$16:$W$43,MATCH($B108,'Damage costs'!$C$16:$C$43,0))/1000,BI57*INDEX('Damage costs'!$AA$16:$AA$43,MATCH($B108,'Damage costs'!$C$16:$C$43,0))/1000),\"\")","v":""},{"$f":"IFERROR(IF(OR($C$110=FALSE,LEFT($B108,3)<>\"NOX\"),BJ57*INDEX('Damage costs'!$W$16:$W$43,MATCH($B108,'Damage costs'!$C$16:$C$43,0))/1000,BJ57*INDEX('Damage costs'!$AA$16:$AA$43,MATCH($B108,'Damage costs'!$C$16:$C$43,0))/1000),\"\")","v":""},{"$f":"IFERROR(IF(OR($C$110=FALSE,LEFT($B108,3)<>\"NOX\"),BK57*INDEX('Damage costs'!$W$16:$W$43,MATCH($B108,'Damage costs'!$C$16:$C$43,0))/1000,BK57*INDEX('Damage costs'!$AA$16:$AA$43,MATCH($B108,'Damage costs'!$C$16:$C$43,0))/1000),\"\")","v":""},{"$f":"IFERROR(IF(OR($C$110=FALSE,LEFT($B108,3)<>\"NOX\"),BL57*INDEX('Damage costs'!$W$16:$W$43,MATCH($B108,'Damage costs'!$C$16:$C$43,0))/1000,BL57*INDEX('Damage costs'!$AA$16:$AA$43,MATCH($B108,'Damage costs'!$C$16:$C$43,0))/1000),\"\")","v":""},{"$f":"IFERROR(IF(OR($C$110=FALSE,LEFT($B108,3)<>\"NOX\"),BM57*INDEX('Damage costs'!$W$16:$W$43,MATCH($B108,'Damage costs'!$C$16:$C$43,0))/1000,BM57*INDEX('Damage costs'!$AA$16:$AA$43,MATCH($B108,'Damage costs'!$C$16:$C$43,0))/1000),\"\")","v":""},{"$f":"IFERROR(IF(OR($C$110=FALSE,LEFT($B108,3)<>\"NOX\"),BN57*INDEX('Damage costs'!$W$16:$W$43,MATCH($B108,'Damage costs'!$C$16:$C$43,0))/1000,BN57*INDEX('Damage costs'!$AA$16:$AA$43,MATCH($B108,'Damage costs'!$C$16:$C$43,0))/1000),\"\")","v":""},{"$f":"IFERROR(IF(OR($C$110=FALSE,LEFT($B108,3)<>\"NOX\"),BO57*INDEX('Damage costs'!$W$16:$W$43,MATCH($B108,'Damage costs'!$C$16:$C$43,0))/1000,BO57*INDEX('Damage costs'!$AA$16:$AA$43,MATCH($B108,'Damage costs'!$C$16:$C$43,0))/1000),\"\")","v":""},{"$f":"IFERROR(IF(OR($C$110=FALSE,LEFT($B108,3)<>\"NOX\"),BP57*INDEX('Damage costs'!$W$16:$W$43,MATCH($B108,'Damage costs'!$C$16:$C$43,0))/1000,BP57*INDEX('Damage costs'!$AA$16:$AA$43,MATCH($B108,'Damage costs'!$C$16:$C$43,0))/1000),\"\")","v":""},{"$f":"IFERROR(IF(OR($C$110=FALSE,LEFT($B108,3)<>\"NOX\"),BQ57*INDEX('Damage costs'!$W$16:$W$43,MATCH($B108,'Damage costs'!$C$16:$C$43,0))/1000,BQ57*INDEX('Damage costs'!$AA$16:$AA$43,MATCH($B108,'Damage costs'!$C$16:$C$43,0))/1000),\"\")","v":""},{"$f":"IFERROR(IF(OR($C$110=FALSE,LEFT($B108,3)<>\"NOX\"),BR57*INDEX('Damage costs'!$W$16:$W$43,MATCH($B108,'Damage costs'!$C$16:$C$43,0))/1000,BR57*INDEX('Damage costs'!$AA$16:$AA$43,MATCH($B108,'Damage costs'!$C$16:$C$43,0))/1000),\"\")","v":""},{"$f":"IFERROR(IF(OR($C$110=FALSE,LEFT($B108,3)<>\"NOX\"),BS57*INDEX('Damage costs'!$W$16:$W$43,MATCH($B108,'Damage costs'!$C$16:$C$43,0))/1000,BS57*INDEX('Damage costs'!$AA$16:$AA$43,MATCH($B108,'Damage costs'!$C$16:$C$43,0))/1000),\"\")","v":""},{"$f":"IFERROR(IF(OR($C$110=FALSE,LEFT($B108,3)<>\"NOX\"),BT57*INDEX('Damage costs'!$W$16:$W$43,MATCH($B108,'Damage costs'!$C$16:$C$43,0))/1000,BT57*INDEX('Damage costs'!$AA$16:$AA$43,MATCH($B108,'Damage costs'!$C$16:$C$43,0))/1000),\"\")","v":""},{"$f":"IFERROR(IF(OR($C$110=FALSE,LEFT($B108,3)<>\"NOX\"),BU57*INDEX('Damage costs'!$W$16:$W$43,MATCH($B108,'Damage costs'!$C$16:$C$43,0))/1000,BU57*INDEX('Damage costs'!$AA$16:$AA$43,MATCH($B108,'Damage costs'!$C$16:$C$43,0))/1000),\"\")","v":""},{"$f":"IFERROR(IF(OR($C$110=FALSE,LEFT($B108,3)<>\"NOX\"),BV57*INDEX('Damage costs'!$W$16:$W$43,MATCH($B108,'Damage costs'!$C$16:$C$43,0))/1000,BV57*INDEX('Damage costs'!$AA$16:$AA$43,MATCH($B108,'Damage costs'!$C$16:$C$43,0))/1000),\"\")","v":""},{"$f":"IFERROR(IF(OR($C$110=FALSE,LEFT($B108,3)<>\"NOX\"),BW57*INDEX('Damage costs'!$W$16:$W$43,MATCH($B108,'Damage costs'!$C$16:$C$43,0))/1000,BW57*INDEX('Damage costs'!$AA$16:$AA$43,MATCH($B108,'Damage costs'!$C$16:$C$43,0))/1000),\"\")","v":""},{"$f":"IFERROR(IF(OR($C$110=FALSE,LEFT($B108,3)<>\"NOX\"),BX57*INDEX('Damage costs'!$W$16:$W$43,MATCH($B108,'Damage costs'!$C$16:$C$43,0))/1000,BX57*INDEX('Damage costs'!$AA$16:$AA$43,MATCH($B108,'Damage costs'!$C$16:$C$43,0))/1000),\"\")","v":""},{"$f":"IFERROR(IF(OR($C$110=FALSE,LEFT($B108,3)<>\"NOX\"),BY57*INDEX('Damage costs'!$W$16:$W$43,MATCH($B108,'Damage costs'!$C$16:$C$43,0))/1000,BY57*INDEX('Damage costs'!$AA$16:$AA$43,MATCH($B108,'Damage costs'!$C$16:$C$43,0))/1000),\"\")","v":""},{"$f":"IFERROR(IF(OR($C$110=FALSE,LEFT($B108,3)<>\"NOX\"),BZ57*INDEX('Damage costs'!$W$16:$W$43,MATCH($B108,'Damage costs'!$C$16:$C$43,0))/1000,BZ57*INDEX('Damage costs'!$AA$16:$AA$43,MATCH($B108,'Damage costs'!$C$16:$C$43,0))/1000),\"\")","v":""},{"$f":"IFERROR(IF(OR($C$110=FALSE,LEFT($B108,3)<>\"NOX\"),CA57*INDEX('Damage costs'!$W$16:$W$43,MATCH($B108,'Damage costs'!$C$16:$C$43,0))/1000,CA57*INDEX('Damage costs'!$AA$16:$AA$43,MATCH($B108,'Damage costs'!$C$16:$C$43,0))/1000),\"\")","v":""},{"$f":"IFERROR(IF(OR($C$110=FALSE,LEFT($B108,3)<>\"NOX\"),CB57*INDEX('Damage costs'!$W$16:$W$43,MATCH($B108,'Damage costs'!$C$16:$C$43,0))/1000,CB57*INDEX('Damage costs'!$AA$16:$AA$43,MATCH($B108,'Damage costs'!$C$16:$C$43,0))/1000),\"\")","v":""},{"$f":"IFERROR(IF(OR($C$110=FALSE,LEFT($B108,3)<>\"NOX\"),CC57*INDEX('Damage costs'!$W$16:$W$43,MATCH($B108,'Damage costs'!$C$16:$C$43,0))/1000,CC57*INDEX('Damage costs'!$AA$16:$AA$43,MATCH($B108,'Damage costs'!$C$16:$C$43,0))/1000),\"\")","v":""},{"$f":"IFERROR(IF(OR($C$110=FALSE,LEFT($B108,3)<>\"NOX\"),CD57*INDEX('Damage costs'!$W$16:$W$43,MATCH($B108,'Damage costs'!$C$16:$C$43,0))/1000,CD57*INDEX('Damage costs'!$AA$16:$AA$43,MATCH($B108,'Damage costs'!$C$16:$C$43,0))/1000),\"\")","v":""},{"$f":"IFERROR(IF(OR($C$110=FALSE,LEFT($B108,3)<>\"NOX\"),CE57*INDEX('Damage costs'!$W$16:$W$43,MATCH($B108,'Damage costs'!$C$16:$C$43,0))/1000,CE57*INDEX('Damage costs'!$AA$16:$AA$43,MATCH($B108,'Damage costs'!$C$16:$C$43,0))/1000),\"\")","v":""},{"$f":"IFERROR(IF(OR($C$110=FALSE,LEFT($B108,3)<>\"NOX\"),CF57*INDEX('Damage costs'!$W$16:$W$43,MATCH($B108,'Damage costs'!$C$16:$C$43,0))/1000,CF57*INDEX('Damage costs'!$AA$16:$AA$43,MATCH($B108,'Damage costs'!$C$16:$C$43,0))/1000),\"\")","v":""},{"$f":"IFERROR(IF(OR($C$110=FALSE,LEFT($B108,3)<>\"NOX\"),CG57*INDEX('Damage costs'!$W$16:$W$43,MATCH($B108,'Damage costs'!$C$16:$C$43,0))/1000,CG57*INDEX('Damage costs'!$AA$16:$AA$43,MATCH($B108,'Damage costs'!$C$16:$C$43,0))/1000),\"\")","v":""},{"$f":"IFERROR(IF(OR($C$110=FALSE,LEFT($B108,3)<>\"NOX\"),CH57*INDEX('Damage costs'!$W$16:$W$43,MATCH($B108,'Damage costs'!$C$16:$C$43,0))/1000,CH57*INDEX('Damage costs'!$AA$16:$AA$43,MATCH($B108,'Damage costs'!$C$16:$C$43,0))/1000),\"\")","v":""},{"$f":"IFERROR(IF(OR($C$110=FALSE,LEFT($B108,3)<>\"NOX\"),CI57*INDEX('Damage costs'!$W$16:$W$43,MATCH($B108,'Damage costs'!$C$16:$C$43,0))/1000,CI57*INDEX('Damage costs'!$AA$16:$AA$43,MATCH($B108,'Damage costs'!$C$16:$C$43,0))/1000),\"\")","v":""},{"$f":"IFERROR(IF(OR($C$110=FALSE,LEFT($B108,3)<>\"NOX\"),CJ57*INDEX('Damage costs'!$W$16:$W$43,MATCH($B108,'Damage costs'!$C$16:$C$43,0))/1000,CJ57*INDEX('Damage costs'!$AA$16:$AA$43,MATCH($B108,'Damage costs'!$C$16:$C$43,0))/1000),\"\")","v":""},{"$f":"IFERROR(IF(OR($C$110=FALSE,LEFT($B108,3)<>\"NOX\"),CK57*INDEX('Damage costs'!$W$16:$W$43,MATCH($B108,'Damage costs'!$C$16:$C$43,0))/1000,CK57*INDEX('Damage costs'!$AA$16:$AA$43,MATCH($B108,'Damage costs'!$C$16:$C$43,0))/1000),\"\")","v":""},{"$f":"IFERROR(IF(OR($C$110=FALSE,LEFT($B108,3)<>\"NOX\"),CL57*INDEX('Damage costs'!$W$16:$W$43,MATCH($B108,'Damage costs'!$C$16:$C$43,0))/1000,CL57*INDEX('Damage costs'!$AA$16:$AA$43,MATCH($B108,'Damage costs'!$C$16:$C$43,0))/1000),\"\")","v":""},{"$f":"IFERROR(IF(OR($C$110=FALSE,LEFT($B108,3)<>\"NOX\"),CM57*INDEX('Damage costs'!$W$16:$W$43,MATCH($B108,'Damage costs'!$C$16:$C$43,0))/1000,CM57*INDEX('Damage costs'!$AA$16:$AA$43,MATCH($B108,'Damage costs'!$C$16:$C$43,0))/1000),\"\")","v":""},{"$f":"IFERROR(IF(OR($C$110=FALSE,LEFT($B108,3)<>\"NOX\"),CN57*INDEX('Damage costs'!$W$16:$W$43,MATCH($B108,'Damage costs'!$C$16:$C$43,0))/1000,CN57*INDEX('Damage costs'!$AA$16:$AA$43,MATCH($B108,'Damage costs'!$C$16:$C$43,0))/1000),\"\")","v":""},{"$f":"IFERROR(IF(OR($C$110=FALSE,LEFT($B108,3)<>\"NOX\"),CO57*INDEX('Damage costs'!$W$16:$W$43,MATCH($B108,'Damage costs'!$C$16:$C$43,0))/1000,CO57*INDEX('Damage costs'!$AA$16:$AA$43,MATCH($B108,'Damage costs'!$C$16:$C$43,0))/1000),\"\")","v":""},{"$f":"IFERROR(IF(OR($C$110=FALSE,LEFT($B108,3)<>\"NOX\"),CP57*INDEX('Damage costs'!$W$16:$W$43,MATCH($B108,'Damage costs'!$C$16:$C$43,0))/1000,CP57*INDEX('Damage costs'!$AA$16:$AA$43,MATCH($B108,'Damage costs'!$C$16:$C$43,0))/1000),\"\")","v":""},{"$f":"IFERROR(IF(OR($C$110=FALSE,LEFT($B108,3)<>\"NOX\"),CQ57*INDEX('Damage costs'!$W$16:$W$43,MATCH($B108,'Damage costs'!$C$16:$C$43,0))/1000,CQ57*INDEX('Damage costs'!$AA$16:$AA$43,MATCH($B108,'Damage costs'!$C$16:$C$43,0))/1000),\"\")","v":""},{"$f":"IFERROR(IF(OR($C$110=FALSE,LEFT($B108,3)<>\"NOX\"),CR57*INDEX('Damage costs'!$W$16:$W$43,MATCH($B108,'Damage costs'!$C$16:$C$43,0))/1000,CR57*INDEX('Damage costs'!$AA$16:$AA$43,MATCH($B108,'Damage costs'!$C$16:$C$43,0))/1000),\"\")","v":""},{"$f":"IFERROR(IF(OR($C$110=FALSE,LEFT($B108,3)<>\"NOX\"),CS57*INDEX('Damage costs'!$W$16:$W$43,MATCH($B108,'Damage costs'!$C$16:$C$43,0))/1000,CS57*INDEX('Damage costs'!$AA$16:$AA$43,MATCH($B108,'Damage costs'!$C$16:$C$43,0))/1000),\"\")","v":""},{"$f":"IFERROR(IF(OR($C$110=FALSE,LEFT($B108,3)<>\"NOX\"),CT57*INDEX('Damage costs'!$W$16:$W$43,MATCH($B108,'Damage costs'!$C$16:$C$43,0))/1000,CT57*INDEX('Damage costs'!$AA$16:$AA$43,MATCH($B108,'Damage costs'!$C$16:$C$43,0))/1000),\"\")","v":""},{"$f":"IFERROR(IF(OR($C$110=FALSE,LEFT($B108,3)<>\"NOX\"),CU57*INDEX('Damage costs'!$W$16:$W$43,MATCH($B108,'Damage costs'!$C$16:$C$43,0))/1000,CU57*INDEX('Damage costs'!$AA$16:$AA$43,MATCH($B108,'Damage costs'!$C$16:$C$43,0))/1000),\"\")","v":""},{"$f":"IFERROR(IF(OR($C$110=FALSE,LEFT($B108,3)<>\"NOX\"),CV57*INDEX('Damage costs'!$W$16:$W$43,MATCH($B108,'Damage costs'!$C$16:$C$43,0))/1000,CV57*INDEX('Damage costs'!$AA$16:$AA$43,MATCH($B108,'Damage costs'!$C$16:$C$43,0))/1000),\"\")","v":""},{"$f":"IFERROR(IF(OR($C$110=FALSE,LEFT($B108,3)<>\"NOX\"),CW57*INDEX('Damage costs'!$W$16:$W$43,MATCH($B108,'Damage costs'!$C$16:$C$43,0))/1000,CW57*INDEX('Damage costs'!$AA$16:$AA$43,MATCH($B108,'Damage costs'!$C$16:$C$43,0))/1000),\"\")","v":""},{"$f":"IFERROR(IF(OR($C$110=FALSE,LEFT($B108,3)<>\"NOX\"),CX57*INDEX('Damage costs'!$W$16:$W$43,MATCH($B108,'Damage costs'!$C$16:$C$43,0))/1000,CX57*INDEX('Damage costs'!$AA$16:$AA$43,MATCH($B108,'Damage costs'!$C$16:$C$43,0))/1000),\"\")","v":""},{"$f":"IFERROR(IF(OR($C$110=FALSE,LEFT($B108,3)<>\"NOX\"),CY57*INDEX('Damage costs'!$W$16:$W$43,MATCH($B108,'Damage costs'!$C$16:$C$43,0))/1000,CY57*INDEX('Damage costs'!$AA$16:$AA$43,MATCH($B108,'Damage costs'!$C$16:$C$43,0))/1000),\"\")","v":""}]
[null,0,"£000's",{"$f":"IFERROR(IF(OR($C$110=FALSE,LEFT($B109,3)<>\"NOX\"),D58*INDEX('Damage costs'!$W$16:$W$43,MATCH($B109,'Damage costs'!$C$16:$C$43,0))/1000,D58*INDEX('Damage costs'!$AA$16:$AA$43,MATCH($B109,'Damage costs'!$C$16:$C$43,0))/1000),\"\")","v":""},{"$f":"IFERROR(IF(OR($C$110=FALSE,LEFT($B109,3)<>\"NOX\"),E58*INDEX('Damage costs'!$W$16:$W$43,MATCH($B109,'Damage costs'!$C$16:$C$43,0))/1000,E58*INDEX('Damage costs'!$AA$16:$AA$43,MATCH($B109,'Damage costs'!$C$16:$C$43,0))/1000),\"\")","v":""},{"$f":"IFERROR(IF(OR($C$110=FALSE,LEFT($B109,3)<>\"NOX\"),F58*INDEX('Damage costs'!$W$16:$W$43,MATCH($B109,'Damage costs'!$C$16:$C$43,0))/1000,F58*INDEX('Damage costs'!$AA$16:$AA$43,MATCH($B109,'Damage costs'!$C$16:$C$43,0))/1000),\"\")","v":""},{"$f":"IFERROR(IF(OR($C$110=FALSE,LEFT($B109,3)<>\"NOX\"),G58*INDEX('Damage costs'!$W$16:$W$43,MATCH($B109,'Damage costs'!$C$16:$C$43,0))/1000,G58*INDEX('Damage costs'!$AA$16:$AA$43,MATCH($B109,'Damage costs'!$C$16:$C$43,0))/1000),\"\")","v":""},{"$f":"IFERROR(IF(OR($C$110=FALSE,LEFT($B109,3)<>\"NOX\"),H58*INDEX('Damage costs'!$W$16:$W$43,MATCH($B109,'Damage costs'!$C$16:$C$43,0))/1000,H58*INDEX('Damage costs'!$AA$16:$AA$43,MATCH($B109,'Damage costs'!$C$16:$C$43,0))/1000),\"\")","v":""},{"$f":"IFERROR(IF(OR($C$110=FALSE,LEFT($B109,3)<>\"NOX\"),I58*INDEX('Damage costs'!$W$16:$W$43,MATCH($B109,'Damage costs'!$C$16:$C$43,0))/1000,I58*INDEX('Damage costs'!$AA$16:$AA$43,MATCH($B109,'Damage costs'!$C$16:$C$43,0))/1000),\"\")","v":""},{"$f":"IFERROR(IF(OR($C$110=FALSE,LEFT($B109,3)<>\"NOX\"),J58*INDEX('Damage costs'!$W$16:$W$43,MATCH($B109,'Damage costs'!$C$16:$C$43,0))/1000,J58*INDEX('Damage costs'!$AA$16:$AA$43,MATCH($B109,'Damage costs'!$C$16:$C$43,0))/1000),\"\")","v":""},{"$f":"IFERROR(IF(OR($C$110=FALSE,LEFT($B109,3)<>\"NOX\"),K58*INDEX('Damage costs'!$W$16:$W$43,MATCH($B109,'Damage costs'!$C$16:$C$43,0))/1000,K58*INDEX('Damage costs'!$AA$16:$AA$43,MATCH($B109,'Damage costs'!$C$16:$C$43,0))/1000),\"\")","v":""},{"$f":"IFERROR(IF(OR($C$110=FALSE,LEFT($B109,3)<>\"NOX\"),L58*INDEX('Damage costs'!$W$16:$W$43,MATCH($B109,'Damage costs'!$C$16:$C$43,0))/1000,L58*INDEX('Damage costs'!$AA$16:$AA$43,MATCH($B109,'Damage costs'!$C$16:$C$43,0))/1000),\"\")","v":""},{"$f":"IFERROR(IF(OR($C$110=FALSE,LEFT($B109,3)<>\"NOX\"),M58*INDEX('Damage costs'!$W$16:$W$43,MATCH($B109,'Damage costs'!$C$16:$C$43,0))/1000,M58*INDEX('Damage costs'!$AA$16:$AA$43,MATCH($B109,'Damage costs'!$C$16:$C$43,0))/1000),\"\")","v":""},{"$f":"IFERROR(IF(OR($C$110=FALSE,LEFT($B109,3)<>\"NOX\"),N58*INDEX('Damage costs'!$W$16:$W$43,MATCH($B109,'Damage costs'!$C$16:$C$43,0))/1000,N58*INDEX('Damage costs'!$AA$16:$AA$43,MATCH($B109,'Damage costs'!$C$16:$C$43,0))/1000),\"\")","v":""},{"$f":"IFERROR(IF(OR($C$110=FALSE,LEFT($B109,3)<>\"NOX\"),O58*INDEX('Damage costs'!$W$16:$W$43,MATCH($B109,'Damage costs'!$C$16:$C$43,0))/1000,O58*INDEX('Damage costs'!$AA$16:$AA$43,MATCH($B109,'Damage costs'!$C$16:$C$43,0))/1000),\"\")","v":""},{"$f":"IFERROR(IF(OR($C$110=FALSE,LEFT($B109,3)<>\"NOX\"),P58*INDEX('Damage costs'!$W$16:$W$43,MATCH($B109,'Damage costs'!$C$16:$C$43,0))/1000,P58*INDEX('Damage costs'!$AA$16:$AA$43,MATCH($B109,'Damage costs'!$C$16:$C$43,0))/1000),\"\")","v":""},{"$f":"IFERROR(IF(OR($C$110=FALSE,LEFT($B109,3)<>\"NOX\"),Q58*INDEX('Damage costs'!$W$16:$W$43,MATCH($B109,'Damage costs'!$C$16:$C$43,0))/1000,Q58*INDEX('Damage costs'!$AA$16:$AA$43,MATCH($B109,'Damage costs'!$C$16:$C$43,0))/1000),\"\")","v":""},{"$f":"IFERROR(IF(OR($C$110=FALSE,LEFT($B109,3)<>\"NOX\"),R58*INDEX('Damage costs'!$W$16:$W$43,MATCH($B109,'Damage costs'!$C$16:$C$43,0))/1000,R58*INDEX('Damage costs'!$AA$16:$AA$43,MATCH($B109,'Damage costs'!$C$16:$C$43,0))/1000),\"\")","v":""},{"$f":"IFERROR(IF(OR($C$110=FALSE,LEFT($B109,3)<>\"NOX\"),S58*INDEX('Damage costs'!$W$16:$W$43,MATCH($B109,'Damage costs'!$C$16:$C$43,0))/1000,S58*INDEX('Damage costs'!$AA$16:$AA$43,MATCH($B109,'Damage costs'!$C$16:$C$43,0))/1000),\"\")","v":""},{"$f":"IFERROR(IF(OR($C$110=FALSE,LEFT($B109,3)<>\"NOX\"),T58*INDEX('Damage costs'!$W$16:$W$43,MATCH($B109,'Damage costs'!$C$16:$C$43,0))/1000,T58*INDEX('Damage costs'!$AA$16:$AA$43,MATCH($B109,'Damage costs'!$C$16:$C$43,0))/1000),\"\")","v":""},{"$f":"IFERROR(IF(OR($C$110=FALSE,LEFT($B109,3)<>\"NOX\"),U58*INDEX('Damage costs'!$W$16:$W$43,MATCH($B109,'Damage costs'!$C$16:$C$43,0))/1000,U58*INDEX('Damage costs'!$AA$16:$AA$43,MATCH($B109,'Damage costs'!$C$16:$C$43,0))/1000),\"\")","v":""},{"$f":"IFERROR(IF(OR($C$110=FALSE,LEFT($B109,3)<>\"NOX\"),V58*INDEX('Damage costs'!$W$16:$W$43,MATCH($B109,'Damage costs'!$C$16:$C$43,0))/1000,V58*INDEX('Damage costs'!$AA$16:$AA$43,MATCH($B109,'Damage costs'!$C$16:$C$43,0))/1000),\"\")","v":""},{"$f":"IFERROR(IF(OR($C$110=FALSE,LEFT($B109,3)<>\"NOX\"),W58*INDEX('Damage costs'!$W$16:$W$43,MATCH($B109,'Damage costs'!$C$16:$C$43,0))/1000,W58*INDEX('Damage costs'!$AA$16:$AA$43,MATCH($B109,'Damage costs'!$C$16:$C$43,0))/1000),\"\")","v":""},{"$f":"IFERROR(IF(OR($C$110=FALSE,LEFT($B109,3)<>\"NOX\"),X58*INDEX('Damage costs'!$W$16:$W$43,MATCH($B109,'Damage costs'!$C$16:$C$43,0))/1000,X58*INDEX('Damage costs'!$AA$16:$AA$43,MATCH($B109,'Damage costs'!$C$16:$C$43,0))/1000),\"\")","v":""},{"$f":"IFERROR(IF(OR($C$110=FALSE,LEFT($B109,3)<>\"NOX\"),Y58*INDEX('Damage costs'!$W$16:$W$43,MATCH($B109,'Damage costs'!$C$16:$C$43,0))/1000,Y58*INDEX('Damage costs'!$AA$16:$AA$43,MATCH($B109,'Damage costs'!$C$16:$C$43,0))/1000),\"\")","v":""},{"$f":"IFERROR(IF(OR($C$110=FALSE,LEFT($B109,3)<>\"NOX\"),Z58*INDEX('Damage costs'!$W$16:$W$43,MATCH($B109,'Damage costs'!$C$16:$C$43,0))/1000,Z58*INDEX('Damage costs'!$AA$16:$AA$43,MATCH($B109,'Damage costs'!$C$16:$C$43,0))/1000),\"\")","v":""},{"$f":"IFERROR(IF(OR($C$110=FALSE,LEFT($B109,3)<>\"NOX\"),AA58*INDEX('Damage costs'!$W$16:$W$43,MATCH($B109,'Damage costs'!$C$16:$C$43,0))/1000,AA58*INDEX('Damage costs'!$AA$16:$AA$43,MATCH($B109,'Damage costs'!$C$16:$C$43,0))/1000),\"\")","v":""},{"$f":"IFERROR(IF(OR($C$110=FALSE,LEFT($B109,3)<>\"NOX\"),AB58*INDEX('Damage costs'!$W$16:$W$43,MATCH($B109,'Damage costs'!$C$16:$C$43,0))/1000,AB58*INDEX('Damage costs'!$AA$16:$AA$43,MATCH($B109,'Damage costs'!$C$16:$C$43,0))/1000),\"\")","v":""},{"$f":"IFERROR(IF(OR($C$110=FALSE,LEFT($B109,3)<>\"NOX\"),AC58*INDEX('Damage costs'!$W$16:$W$43,MATCH($B109,'Damage costs'!$C$16:$C$43,0))/1000,AC58*INDEX('Damage costs'!$AA$16:$AA$43,MATCH($B109,'Damage costs'!$C$16:$C$43,0))/1000),\"\")","v":""},{"$f":"IFERROR(IF(OR($C$110=FALSE,LEFT($B109,3)<>\"NOX\"),AD58*INDEX('Damage costs'!$W$16:$W$43,MATCH($B109,'Damage costs'!$C$16:$C$43,0))/1000,AD58*INDEX('Damage costs'!$AA$16:$AA$43,MATCH($B109,'Damage costs'!$C$16:$C$43,0))/1000),\"\")","v":""},{"$f":"IFERROR(IF(OR($C$110=FALSE,LEFT($B109,3)<>\"NOX\"),AE58*INDEX('Damage costs'!$W$16:$W$43,MATCH($B109,'Damage costs'!$C$16:$C$43,0))/1000,AE58*INDEX('Damage costs'!$AA$16:$AA$43,MATCH($B109,'Damage costs'!$C$16:$C$43,0))/1000),\"\")","v":""},{"$f":"IFERROR(IF(OR($C$110=FALSE,LEFT($B109,3)<>\"NOX\"),AF58*INDEX('Damage costs'!$W$16:$W$43,MATCH($B109,'Damage costs'!$C$16:$C$43,0))/1000,AF58*INDEX('Damage costs'!$AA$16:$AA$43,MATCH($B109,'Damage costs'!$C$16:$C$43,0))/1000),\"\")","v":""},{"$f":"IFERROR(IF(OR($C$110=FALSE,LEFT($B109,3)<>\"NOX\"),AG58*INDEX('Damage costs'!$W$16:$W$43,MATCH($B109,'Damage costs'!$C$16:$C$43,0))/1000,AG58*INDEX('Damage costs'!$AA$16:$AA$43,MATCH($B109,'Damage costs'!$C$16:$C$43,0))/1000),\"\")","v":""},{"$f":"IFERROR(IF(OR($C$110=FALSE,LEFT($B109,3)<>\"NOX\"),AH58*INDEX('Damage costs'!$W$16:$W$43,MATCH($B109,'Damage costs'!$C$16:$C$43,0))/1000,AH58*INDEX('Damage costs'!$AA$16:$AA$43,MATCH($B109,'Damage costs'!$C$16:$C$43,0))/1000),\"\")","v":""},{"$f":"IFERROR(IF(OR($C$110=FALSE,LEFT($B109,3)<>\"NOX\"),AI58*INDEX('Damage costs'!$W$16:$W$43,MATCH($B109,'Damage costs'!$C$16:$C$43,0))/1000,AI58*INDEX('Damage costs'!$AA$16:$AA$43,MATCH($B109,'Damage costs'!$C$16:$C$43,0))/1000),\"\")","v":""},{"$f":"IFERROR(IF(OR($C$110=FALSE,LEFT($B109,3)<>\"NOX\"),AJ58*INDEX('Damage costs'!$W$16:$W$43,MATCH($B109,'Damage costs'!$C$16:$C$43,0))/1000,AJ58*INDEX('Damage costs'!$AA$16:$AA$43,MATCH($B109,'Damage costs'!$C$16:$C$43,0))/1000),\"\")","v":""},{"$f":"IFERROR(IF(OR($C$110=FALSE,LEFT($B109,3)<>\"NOX\"),AK58*INDEX('Damage costs'!$W$16:$W$43,MATCH($B109,'Damage costs'!$C$16:$C$43,0))/1000,AK58*INDEX('Damage costs'!$AA$16:$AA$43,MATCH($B109,'Damage costs'!$C$16:$C$43,0))/1000),\"\")","v":""},{"$f":"IFERROR(IF(OR($C$110=FALSE,LEFT($B109,3)<>\"NOX\"),AL58*INDEX('Damage costs'!$W$16:$W$43,MATCH($B109,'Damage costs'!$C$16:$C$43,0))/1000,AL58*INDEX('Damage costs'!$AA$16:$AA$43,MATCH($B109,'Damage costs'!$C$16:$C$43,0))/1000),\"\")","v":""},{"$f":"IFERROR(IF(OR($C$110=FALSE,LEFT($B109,3)<>\"NOX\"),AM58*INDEX('Damage costs'!$W$16:$W$43,MATCH($B109,'Damage costs'!$C$16:$C$43,0))/1000,AM58*INDEX('Damage costs'!$AA$16:$AA$43,MATCH($B109,'Damage costs'!$C$16:$C$43,0))/1000),\"\")","v":""},{"$f":"IFERROR(IF(OR($C$110=FALSE,LEFT($B109,3)<>\"NOX\"),AN58*INDEX('Damage costs'!$W$16:$W$43,MATCH($B109,'Damage costs'!$C$16:$C$43,0))/1000,AN58*INDEX('Damage costs'!$AA$16:$AA$43,MATCH($B109,'Damage costs'!$C$16:$C$43,0))/1000),\"\")","v":""},{"$f":"IFERROR(IF(OR($C$110=FALSE,LEFT($B109,3)<>\"NOX\"),AO58*INDEX('Damage costs'!$W$16:$W$43,MATCH($B109,'Damage costs'!$C$16:$C$43,0))/1000,AO58*INDEX('Damage costs'!$AA$16:$AA$43,MATCH($B109,'Damage costs'!$C$16:$C$43,0))/1000),\"\")","v":""},{"$f":"IFERROR(IF(OR($C$110=FALSE,LEFT($B109,3)<>\"NOX\"),AP58*INDEX('Damage costs'!$W$16:$W$43,MATCH($B109,'Damage costs'!$C$16:$C$43,0))/1000,AP58*INDEX('Damage costs'!$AA$16:$AA$43,MATCH($B109,'Damage costs'!$C$16:$C$43,0))/1000),\"\")","v":""},{"$f":"IFERROR(IF(OR($C$110=FALSE,LEFT($B109,3)<>\"NOX\"),AQ58*INDEX('Damage costs'!$W$16:$W$43,MATCH($B109,'Damage costs'!$C$16:$C$43,0))/1000,AQ58*INDEX('Damage costs'!$AA$16:$AA$43,MATCH($B109,'Damage costs'!$C$16:$C$43,0))/1000),\"\")","v":""},{"$f":"IFERROR(IF(OR($C$110=FALSE,LEFT($B109,3)<>\"NOX\"),AR58*INDEX('Damage costs'!$W$16:$W$43,MATCH($B109,'Damage costs'!$C$16:$C$43,0))/1000,AR58*INDEX('Damage costs'!$AA$16:$AA$43,MATCH($B109,'Damage costs'!$C$16:$C$43,0))/1000),\"\")","v":""},{"$f":"IFERROR(IF(OR($C$110=FALSE,LEFT($B109,3)<>\"NOX\"),AS58*INDEX('Damage costs'!$W$16:$W$43,MATCH($B109,'Damage costs'!$C$16:$C$43,0))/1000,AS58*INDEX('Damage costs'!$AA$16:$AA$43,MATCH($B109,'Damage costs'!$C$16:$C$43,0))/1000),\"\")","v":""},{"$f":"IFERROR(IF(OR($C$110=FALSE,LEFT($B109,3)<>\"NOX\"),AT58*INDEX('Damage costs'!$W$16:$W$43,MATCH($B109,'Damage costs'!$C$16:$C$43,0))/1000,AT58*INDEX('Damage costs'!$AA$16:$AA$43,MATCH($B109,'Damage costs'!$C$16:$C$43,0))/1000),\"\")","v":""},{"$f":"IFERROR(IF(OR($C$110=FALSE,LEFT($B109,3)<>\"NOX\"),AU58*INDEX('Damage costs'!$W$16:$W$43,MATCH($B109,'Damage costs'!$C$16:$C$43,0))/1000,AU58*INDEX('Damage costs'!$AA$16:$AA$43,MATCH($B109,'Damage costs'!$C$16:$C$43,0))/1000),\"\")","v":""},{"$f":"IFERROR(IF(OR($C$110=FALSE,LEFT($B109,3)<>\"NOX\"),AV58*INDEX('Damage costs'!$W$16:$W$43,MATCH($B109,'Damage costs'!$C$16:$C$43,0))/1000,AV58*INDEX('Damage costs'!$AA$16:$AA$43,MATCH($B109,'Damage costs'!$C$16:$C$43,0))/1000),\"\")","v":""},{"$f":"IFERROR(IF(OR($C$110=FALSE,LEFT($B109,3)<>\"NOX\"),AW58*INDEX('Damage costs'!$W$16:$W$43,MATCH($B109,'Damage costs'!$C$16:$C$43,0))/1000,AW58*INDEX('Damage costs'!$AA$16:$AA$43,MATCH($B109,'Damage costs'!$C$16:$C$43,0))/1000),\"\")","v":""},{"$f":"IFERROR(IF(OR($C$110=FALSE,LEFT($B109,3)<>\"NOX\"),AX58*INDEX('Damage costs'!$W$16:$W$43,MATCH($B109,'Damage costs'!$C$16:$C$43,0))/1000,AX58*INDEX('Damage costs'!$AA$16:$AA$43,MATCH($B109,'Damage costs'!$C$16:$C$43,0))/1000),\"\")","v":""},{"$f":"IFERROR(IF(OR($C$110=FALSE,LEFT($B109,3)<>\"NOX\"),AY58*INDEX('Damage costs'!$W$16:$W$43,MATCH($B109,'Damage costs'!$C$16:$C$43,0))/1000,AY58*INDEX('Damage costs'!$AA$16:$AA$43,MATCH($B109,'Damage costs'!$C$16:$C$43,0))/1000),\"\")","v":""},{"$f":"IFERROR(IF(OR($C$110=FALSE,LEFT($B109,3)<>\"NOX\"),AZ58*INDEX('Damage costs'!$W$16:$W$43,MATCH($B109,'Damage costs'!$C$16:$C$43,0))/1000,AZ58*INDEX('Damage costs'!$AA$16:$AA$43,MATCH($B109,'Damage costs'!$C$16:$C$43,0))/1000),\"\")","v":""},{"$f":"IFERROR(IF(OR($C$110=FALSE,LEFT($B109,3)<>\"NOX\"),BA58*INDEX('Damage costs'!$W$16:$W$43,MATCH($B109,'Damage costs'!$C$16:$C$43,0))/1000,BA58*INDEX('Damage costs'!$AA$16:$AA$43,MATCH($B109,'Damage costs'!$C$16:$C$43,0))/1000),\"\")","v":""},{"$f":"IFERROR(IF(OR($C$110=FALSE,LEFT($B109,3)<>\"NOX\"),BB58*INDEX('Damage costs'!$W$16:$W$43,MATCH($B109,'Damage costs'!$C$16:$C$43,0))/1000,BB58*INDEX('Damage costs'!$AA$16:$AA$43,MATCH($B109,'Damage costs'!$C$16:$C$43,0))/1000),\"\")","v":""},{"$f":"IFERROR(IF(OR($C$110=FALSE,LEFT($B109,3)<>\"NOX\"),BC58*INDEX('Damage costs'!$W$16:$W$43,MATCH($B109,'Damage costs'!$C$16:$C$43,0))/1000,BC58*INDEX('Damage costs'!$AA$16:$AA$43,MATCH($B109,'Damage costs'!$C$16:$C$43,0))/1000),\"\")","v":""},{"$f":"IFERROR(IF(OR($C$110=FALSE,LEFT($B109,3)<>\"NOX\"),BD58*INDEX('Damage costs'!$W$16:$W$43,MATCH($B109,'Damage costs'!$C$16:$C$43,0))/1000,BD58*INDEX('Damage costs'!$AA$16:$AA$43,MATCH($B109,'Damage costs'!$C$16:$C$43,0))/1000),\"\")","v":""},{"$f":"IFERROR(IF(OR($C$110=FALSE,LEFT($B109,3)<>\"NOX\"),BE58*INDEX('Damage costs'!$W$16:$W$43,MATCH($B109,'Damage costs'!$C$16:$C$43,0))/1000,BE58*INDEX('Damage costs'!$AA$16:$AA$43,MATCH($B109,'Damage costs'!$C$16:$C$43,0))/1000),\"\")","v":""},{"$f":"IFERROR(IF(OR($C$110=FALSE,LEFT($B109,3)<>\"NOX\"),BF58*INDEX('Damage costs'!$W$16:$W$43,MATCH($B109,'Damage costs'!$C$16:$C$43,0))/1000,BF58*INDEX('Damage costs'!$AA$16:$AA$43,MATCH($B109,'Damage costs'!$C$16:$C$43,0))/1000),\"\")","v":""},{"$f":"IFERROR(IF(OR($C$110=FALSE,LEFT($B109,3)<>\"NOX\"),BG58*INDEX('Damage costs'!$W$16:$W$43,MATCH($B109,'Damage costs'!$C$16:$C$43,0))/1000,BG58*INDEX('Damage costs'!$AA$16:$AA$43,MATCH($B109,'Damage costs'!$C$16:$C$43,0))/1000),\"\")","v":""},{"$f":"IFERROR(IF(OR($C$110=FALSE,LEFT($B109,3)<>\"NOX\"),BH58*INDEX('Damage costs'!$W$16:$W$43,MATCH($B109,'Damage costs'!$C$16:$C$43,0))/1000,BH58*INDEX('Damage costs'!$AA$16:$AA$43,MATCH($B109,'Damage costs'!$C$16:$C$43,0))/1000),\"\")","v":""},{"$f":"IFERROR(IF(OR($C$110=FALSE,LEFT($B109,3)<>\"NOX\"),BI58*INDEX('Damage costs'!$W$16:$W$43,MATCH($B109,'Damage costs'!$C$16:$C$43,0))/1000,BI58*INDEX('Damage costs'!$AA$16:$AA$43,MATCH($B109,'Damage costs'!$C$16:$C$43,0))/1000),\"\")","v":""},{"$f":"IFERROR(IF(OR($C$110=FALSE,LEFT($B109,3)<>\"NOX\"),BJ58*INDEX('Damage costs'!$W$16:$W$43,MATCH($B109,'Damage costs'!$C$16:$C$43,0))/1000,BJ58*INDEX('Damage costs'!$AA$16:$AA$43,MATCH($B109,'Damage costs'!$C$16:$C$43,0))/1000),\"\")","v":""},{"$f":"IFERROR(IF(OR($C$110=FALSE,LEFT($B109,3)<>\"NOX\"),BK58*INDEX('Damage costs'!$W$16:$W$43,MATCH($B109,'Damage costs'!$C$16:$C$43,0))/1000,BK58*INDEX('Damage costs'!$AA$16:$AA$43,MATCH($B109,'Damage costs'!$C$16:$C$43,0))/1000),\"\")","v":""},{"$f":"IFERROR(IF(OR($C$110=FALSE,LEFT($B109,3)<>\"NOX\"),BL58*INDEX('Damage costs'!$W$16:$W$43,MATCH($B109,'Damage costs'!$C$16:$C$43,0))/1000,BL58*INDEX('Damage costs'!$AA$16:$AA$43,MATCH($B109,'Damage costs'!$C$16:$C$43,0))/1000),\"\")","v":""},{"$f":"IFERROR(IF(OR($C$110=FALSE,LEFT($B109,3)<>\"NOX\"),BM58*INDEX('Damage costs'!$W$16:$W$43,MATCH($B109,'Damage costs'!$C$16:$C$43,0))/1000,BM58*INDEX('Damage costs'!$AA$16:$AA$43,MATCH($B109,'Damage costs'!$C$16:$C$43,0))/1000),\"\")","v":""},{"$f":"IFERROR(IF(OR($C$110=FALSE,LEFT($B109,3)<>\"NOX\"),BN58*INDEX('Damage costs'!$W$16:$W$43,MATCH($B109,'Damage costs'!$C$16:$C$43,0))/1000,BN58*INDEX('Damage costs'!$AA$16:$AA$43,MATCH($B109,'Damage costs'!$C$16:$C$43,0))/1000),\"\")","v":""},{"$f":"IFERROR(IF(OR($C$110=FALSE,LEFT($B109,3)<>\"NOX\"),BO58*INDEX('Damage costs'!$W$16:$W$43,MATCH($B109,'Damage costs'!$C$16:$C$43,0))/1000,BO58*INDEX('Damage costs'!$AA$16:$AA$43,MATCH($B109,'Damage costs'!$C$16:$C$43,0))/1000),\"\")","v":""},{"$f":"IFERROR(IF(OR($C$110=FALSE,LEFT($B109,3)<>\"NOX\"),BP58*INDEX('Damage costs'!$W$16:$W$43,MATCH($B109,'Damage costs'!$C$16:$C$43,0))/1000,BP58*INDEX('Damage costs'!$AA$16:$AA$43,MATCH($B109,'Damage costs'!$C$16:$C$43,0))/1000),\"\")","v":""},{"$f":"IFERROR(IF(OR($C$110=FALSE,LEFT($B109,3)<>\"NOX\"),BQ58*INDEX('Damage costs'!$W$16:$W$43,MATCH($B109,'Damage costs'!$C$16:$C$43,0))/1000,BQ58*INDEX('Damage costs'!$AA$16:$AA$43,MATCH($B109,'Damage costs'!$C$16:$C$43,0))/1000),\"\")","v":""},{"$f":"IFERROR(IF(OR($C$110=FALSE,LEFT($B109,3)<>\"NOX\"),BR58*INDEX('Damage costs'!$W$16:$W$43,MATCH($B109,'Damage costs'!$C$16:$C$43,0))/1000,BR58*INDEX('Damage costs'!$AA$16:$AA$43,MATCH($B109,'Damage costs'!$C$16:$C$43,0))/1000),\"\")","v":""},{"$f":"IFERROR(IF(OR($C$110=FALSE,LEFT($B109,3)<>\"NOX\"),BS58*INDEX('Damage costs'!$W$16:$W$43,MATCH($B109,'Damage costs'!$C$16:$C$43,0))/1000,BS58*INDEX('Damage costs'!$AA$16:$AA$43,MATCH($B109,'Damage costs'!$C$16:$C$43,0))/1000),\"\")","v":""},{"$f":"IFERROR(IF(OR($C$110=FALSE,LEFT($B109,3)<>\"NOX\"),BT58*INDEX('Damage costs'!$W$16:$W$43,MATCH($B109,'Damage costs'!$C$16:$C$43,0))/1000,BT58*INDEX('Damage costs'!$AA$16:$AA$43,MATCH($B109,'Damage costs'!$C$16:$C$43,0))/1000),\"\")","v":""},{"$f":"IFERROR(IF(OR($C$110=FALSE,LEFT($B109,3)<>\"NOX\"),BU58*INDEX('Damage costs'!$W$16:$W$43,MATCH($B109,'Damage costs'!$C$16:$C$43,0))/1000,BU58*INDEX('Damage costs'!$AA$16:$AA$43,MATCH($B109,'Damage costs'!$C$16:$C$43,0))/1000),\"\")","v":""},{"$f":"IFERROR(IF(OR($C$110=FALSE,LEFT($B109,3)<>\"NOX\"),BV58*INDEX('Damage costs'!$W$16:$W$43,MATCH($B109,'Damage costs'!$C$16:$C$43,0))/1000,BV58*INDEX('Damage costs'!$AA$16:$AA$43,MATCH($B109,'Damage costs'!$C$16:$C$43,0))/1000),\"\")","v":""},{"$f":"IFERROR(IF(OR($C$110=FALSE,LEFT($B109,3)<>\"NOX\"),BW58*INDEX('Damage costs'!$W$16:$W$43,MATCH($B109,'Damage costs'!$C$16:$C$43,0))/1000,BW58*INDEX('Damage costs'!$AA$16:$AA$43,MATCH($B109,'Damage costs'!$C$16:$C$43,0))/1000),\"\")","v":""},{"$f":"IFERROR(IF(OR($C$110=FALSE,LEFT($B109,3)<>\"NOX\"),BX58*INDEX('Damage costs'!$W$16:$W$43,MATCH($B109,'Damage costs'!$C$16:$C$43,0))/1000,BX58*INDEX('Damage costs'!$AA$16:$AA$43,MATCH($B109,'Damage costs'!$C$16:$C$43,0))/1000),\"\")","v":""},{"$f":"IFERROR(IF(OR($C$110=FALSE,LEFT($B109,3)<>\"NOX\"),BY58*INDEX('Damage costs'!$W$16:$W$43,MATCH($B109,'Damage costs'!$C$16:$C$43,0))/1000,BY58*INDEX('Damage costs'!$AA$16:$AA$43,MATCH($B109,'Damage costs'!$C$16:$C$43,0))/1000),\"\")","v":""},{"$f":"IFERROR(IF(OR($C$110=FALSE,LEFT($B109,3)<>\"NOX\"),BZ58*INDEX('Damage costs'!$W$16:$W$43,MATCH($B109,'Damage costs'!$C$16:$C$43,0))/1000,BZ58*INDEX('Damage costs'!$AA$16:$AA$43,MATCH($B109,'Damage costs'!$C$16:$C$43,0))/1000),\"\")","v":""},{"$f":"IFERROR(IF(OR($C$110=FALSE,LEFT($B109,3)<>\"NOX\"),CA58*INDEX('Damage costs'!$W$16:$W$43,MATCH($B109,'Damage costs'!$C$16:$C$43,0))/1000,CA58*INDEX('Damage costs'!$AA$16:$AA$43,MATCH($B109,'Damage costs'!$C$16:$C$43,0))/1000),\"\")","v":""},{"$f":"IFERROR(IF(OR($C$110=FALSE,LEFT($B109,3)<>\"NOX\"),CB58*INDEX('Damage costs'!$W$16:$W$43,MATCH($B109,'Damage costs'!$C$16:$C$43,0))/1000,CB58*INDEX('Damage costs'!$AA$16:$AA$43,MATCH($B109,'Damage costs'!$C$16:$C$43,0))/1000),\"\")","v":""},{"$f":"IFERROR(IF(OR($C$110=FALSE,LEFT($B109,3)<>\"NOX\"),CC58*INDEX('Damage costs'!$W$16:$W$43,MATCH($B109,'Damage costs'!$C$16:$C$43,0))/1000,CC58*INDEX('Damage costs'!$AA$16:$AA$43,MATCH($B109,'Damage costs'!$C$16:$C$43,0))/1000),\"\")","v":""},{"$f":"IFERROR(IF(OR($C$110=FALSE,LEFT($B109,3)<>\"NOX\"),CD58*INDEX('Damage costs'!$W$16:$W$43,MATCH($B109,'Damage costs'!$C$16:$C$43,0))/1000,CD58*INDEX('Damage costs'!$AA$16:$AA$43,MATCH($B109,'Damage costs'!$C$16:$C$43,0))/1000),\"\")","v":""},{"$f":"IFERROR(IF(OR($C$110=FALSE,LEFT($B109,3)<>\"NOX\"),CE58*INDEX('Damage costs'!$W$16:$W$43,MATCH($B109,'Damage costs'!$C$16:$C$43,0))/1000,CE58*INDEX('Damage costs'!$AA$16:$AA$43,MATCH($B109,'Damage costs'!$C$16:$C$43,0))/1000),\"\")","v":""},{"$f":"IFERROR(IF(OR($C$110=FALSE,LEFT($B109,3)<>\"NOX\"),CF58*INDEX('Damage costs'!$W$16:$W$43,MATCH($B109,'Damage costs'!$C$16:$C$43,0))/1000,CF58*INDEX('Damage costs'!$AA$16:$AA$43,MATCH($B109,'Damage costs'!$C$16:$C$43,0))/1000),\"\")","v":""},{"$f":"IFERROR(IF(OR($C$110=FALSE,LEFT($B109,3)<>\"NOX\"),CG58*INDEX('Damage costs'!$W$16:$W$43,MATCH($B109,'Damage costs'!$C$16:$C$43,0))/1000,CG58*INDEX('Damage costs'!$AA$16:$AA$43,MATCH($B109,'Damage costs'!$C$16:$C$43,0))/1000),\"\")","v":""},{"$f":"IFERROR(IF(OR($C$110=FALSE,LEFT($B109,3)<>\"NOX\"),CH58*INDEX('Damage costs'!$W$16:$W$43,MATCH($B109,'Damage costs'!$C$16:$C$43,0))/1000,CH58*INDEX('Damage costs'!$AA$16:$AA$43,MATCH($B109,'Damage costs'!$C$16:$C$43,0))/1000),\"\")","v":""},{"$f":"IFERROR(IF(OR($C$110=FALSE,LEFT($B109,3)<>\"NOX\"),CI58*INDEX('Damage costs'!$W$16:$W$43,MATCH($B109,'Damage costs'!$C$16:$C$43,0))/1000,CI58*INDEX('Damage costs'!$AA$16:$AA$43,MATCH($B109,'Damage costs'!$C$16:$C$43,0))/1000),\"\")","v":""},{"$f":"IFERROR(IF(OR($C$110=FALSE,LEFT($B109,3)<>\"NOX\"),CJ58*INDEX('Damage costs'!$W$16:$W$43,MATCH($B109,'Damage costs'!$C$16:$C$43,0))/1000,CJ58*INDEX('Damage costs'!$AA$16:$AA$43,MATCH($B109,'Damage costs'!$C$16:$C$43,0))/1000),\"\")","v":""},{"$f":"IFERROR(IF(OR($C$110=FALSE,LEFT($B109,3)<>\"NOX\"),CK58*INDEX('Damage costs'!$W$16:$W$43,MATCH($B109,'Damage costs'!$C$16:$C$43,0))/1000,CK58*INDEX('Damage costs'!$AA$16:$AA$43,MATCH($B109,'Damage costs'!$C$16:$C$43,0))/1000),\"\")","v":""},{"$f":"IFERROR(IF(OR($C$110=FALSE,LEFT($B109,3)<>\"NOX\"),CL58*INDEX('Damage costs'!$W$16:$W$43,MATCH($B109,'Damage costs'!$C$16:$C$43,0))/1000,CL58*INDEX('Damage costs'!$AA$16:$AA$43,MATCH($B109,'Damage costs'!$C$16:$C$43,0))/1000),\"\")","v":""},{"$f":"IFERROR(IF(OR($C$110=FALSE,LEFT($B109,3)<>\"NOX\"),CM58*INDEX('Damage costs'!$W$16:$W$43,MATCH($B109,'Damage costs'!$C$16:$C$43,0))/1000,CM58*INDEX('Damage costs'!$AA$16:$AA$43,MATCH($B109,'Damage costs'!$C$16:$C$43,0))/1000),\"\")","v":""},{"$f":"IFERROR(IF(OR($C$110=FALSE,LEFT($B109,3)<>\"NOX\"),CN58*INDEX('Damage costs'!$W$16:$W$43,MATCH($B109,'Damage costs'!$C$16:$C$43,0))/1000,CN58*INDEX('Damage costs'!$AA$16:$AA$43,MATCH($B109,'Damage costs'!$C$16:$C$43,0))/1000),\"\")","v":""},{"$f":"IFERROR(IF(OR($C$110=FALSE,LEFT($B109,3)<>\"NOX\"),CO58*INDEX('Damage costs'!$W$16:$W$43,MATCH($B109,'Damage costs'!$C$16:$C$43,0))/1000,CO58*INDEX('Damage costs'!$AA$16:$AA$43,MATCH($B109,'Damage costs'!$C$16:$C$43,0))/1000),\"\")","v":""},{"$f":"IFERROR(IF(OR($C$110=FALSE,LEFT($B109,3)<>\"NOX\"),CP58*INDEX('Damage costs'!$W$16:$W$43,MATCH($B109,'Damage costs'!$C$16:$C$43,0))/1000,CP58*INDEX('Damage costs'!$AA$16:$AA$43,MATCH($B109,'Damage costs'!$C$16:$C$43,0))/1000),\"\")","v":""},{"$f":"IFERROR(IF(OR($C$110=FALSE,LEFT($B109,3)<>\"NOX\"),CQ58*INDEX('Damage costs'!$W$16:$W$43,MATCH($B109,'Damage costs'!$C$16:$C$43,0))/1000,CQ58*INDEX('Damage costs'!$AA$16:$AA$43,MATCH($B109,'Damage costs'!$C$16:$C$43,0))/1000),\"\")","v":""},{"$f":"IFERROR(IF(OR($C$110=FALSE,LEFT($B109,3)<>\"NOX\"),CR58*INDEX('Damage costs'!$W$16:$W$43,MATCH($B109,'Damage costs'!$C$16:$C$43,0))/1000,CR58*INDEX('Damage costs'!$AA$16:$AA$43,MATCH($B109,'Damage costs'!$C$16:$C$43,0))/1000),\"\")","v":""},{"$f":"IFERROR(IF(OR($C$110=FALSE,LEFT($B109,3)<>\"NOX\"),CS58*INDEX('Damage costs'!$W$16:$W$43,MATCH($B109,'Damage costs'!$C$16:$C$43,0))/1000,CS58*INDEX('Damage costs'!$AA$16:$AA$43,MATCH($B109,'Damage costs'!$C$16:$C$43,0))/1000),\"\")","v":""},{"$f":"IFERROR(IF(OR($C$110=FALSE,LEFT($B109,3)<>\"NOX\"),CT58*INDEX('Damage costs'!$W$16:$W$43,MATCH($B109,'Damage costs'!$C$16:$C$43,0))/1000,CT58*INDEX('Damage costs'!$AA$16:$AA$43,MATCH($B109,'Damage costs'!$C$16:$C$43,0))/1000),\"\")","v":""},{"$f":"IFERROR(IF(OR($C$110=FALSE,LEFT($B109,3)<>\"NOX\"),CU58*INDEX('Damage costs'!$W$16:$W$43,MATCH($B109,'Damage costs'!$C$16:$C$43,0))/1000,CU58*INDEX('Damage costs'!$AA$16:$AA$43,MATCH($B109,'Damage costs'!$C$16:$C$43,0))/1000),\"\")","v":""},{"$f":"IFERROR(IF(OR($C$110=FALSE,LEFT($B109,3)<>\"NOX\"),CV58*INDEX('Damage costs'!$W$16:$W$43,MATCH($B109,'Damage costs'!$C$16:$C$43,0))/1000,CV58*INDEX('Damage costs'!$AA$16:$AA$43,MATCH($B109,'Damage costs'!$C$16:$C$43,0))/1000),\"\")","v":""},{"$f":"IFERROR(IF(OR($C$110=FALSE,LEFT($B109,3)<>\"NOX\"),CW58*INDEX('Damage costs'!$W$16:$W$43,MATCH($B109,'Damage costs'!$C$16:$C$43,0))/1000,CW58*INDEX('Damage costs'!$AA$16:$AA$43,MATCH($B109,'Damage costs'!$C$16:$C$43,0))/1000),\"\")","v":""},{"$f":"IFERROR(IF(OR($C$110=FALSE,LEFT($B109,3)<>\"NOX\"),CX58*INDEX('Damage costs'!$W$16:$W$43,MATCH($B109,'Damage costs'!$C$16:$C$43,0))/1000,CX58*INDEX('Damage costs'!$AA$16:$AA$43,MATCH($B109,'Damage costs'!$C$16:$C$43,0))/1000),\"\")","v":""},{"$f":"IFERROR(IF(OR($C$110=FALSE,LEFT($B109,3)<>\"NOX\"),CY58*INDEX('Damage costs'!$W$16:$W$43,MATCH($B109,'Damage costs'!$C$16:$C$43,0))/1000,CY58*INDEX('Damage costs'!$AA$16:$AA$43,MATCH($B109,'Damage costs'!$C$16:$C$43,0))/1000),\"\")","v":""}]
[null,"PM10 Used",{"$f":"IF(OR(LEFT(B104,4)=\"PM10\",LEFT(B105,4)=\"PM10\",LEFT(B106,4)=\"PM10\",LEFT(B107,4)=\"PM10\",LEFT(B108,4)=\"PM10\",LEFT(B109,4)=\"PM10\"),TRUE,FALSE)","v":false}]
[]
[null,"Uplift pa","%",{"$f":"'Discount and deflators'!$H$5","v":0.02}]
[null,"Uplift factor",null,{"$f":"IF(D$6=0,0,(1+$D112)^(D$6-'Data Input - General'!$F$22))","v":1},{"$f":"IF(E$6=0,0,(1+$D112)^(E$6-'Data Input - General'!$F$22))","v":1.02},{"$f":"IF(F$6=0,0,(1+$D112)^(F$6-'Data Input - General'!$F$22))","v":1.0404},{"$f":"IF(G$6=0,0,(1+$D112)^(G$6-'Data Input - General'!$F$22))","v":1.0612079999999999},{"$f":"IF(H$6=0,0,(1+$D112)^(H$6-'Data Input - General'!$F$22))","v":1.08243216},{"$f":"IF(I$6=0,0,(1+$D112)^(I$6-'Data Input - General'!$F$22))","v":1.1040808032},{"$f":"IF(J$6=0,0,(1+$D112)^(J$6-'Data Input - General'!$F$22))","v":1.1261624192640001},{"$f":"IF(K$6=0,0,(1+$D112)^(K$6-'Data Input - General'!$F$22))","v":1.1486856676492798},{"$f":"IF(L$6=0,0,(1+$D112)^(L$6-'Data Input - General'!$F$22))","v":1.1716593810022655},{"$f":"IF(M$6=0,0,(1+$D112)^(M$6-'Data Input - General'!$F$22))","v":1.1950925686223108},{"$f":"IF(N$6=0,0,(1+$D112)^(N$6-'Data Input - General'!$F$22))","v":1.2189944199947571},{"$f":"IF(O$6=0,0,(1+$D112)^(O$6-'Data Input - General'!$F$22))","v":1.243374308394652},{"$f":"IF(P$6=0,0,(1+$D112)^(P$6-'Data Input - General'!$F$22))","v":1.2682417945625453},{"$f":"IF(Q$6=0,0,(1+$D112)^(Q$6-'Data Input - General'!$F$22))","v":1.2936066304537961},{"$f":"IF(R$6=0,0,(1+$D112)^(R$6-'Data Input - General'!$F$22))","v":1.3194787630628722},{"$f":"IF(S$6=0,0,(1+$D112)^(S$6-'Data Input - General'!$F$22))","v":1.3458683383241292},{"$f":"IF(T$6=0,0,(1+$D112)^(T$6-'Data Input - General'!$F$22))","v":1.372785705090612},{"$f":"IF(U$6=0,0,(1+$D112)^(U$6-'Data Input - General'!$F$22))","v":1.4002414191924244},{"$f":"IF(V$6=0,0,(1+$D112)^(V$6-'Data Input - General'!$F$22))","v":1.4282462475762727},{"$f":"IF(W$6=0,0,(1+$D112)^(W$6-'Data Input - General'!$F$22))","v":1.4568111725277981},{"$f":"IF(X$6=0,0,(1+$D112)^(X$6-'Data Input - General'!$F$22))","v":1.4859473959783542},{"$f":"IF(Y$6=0,0,(1+$D112)^(Y$6-'Data Input - General'!$F$22))","v":1.5156663438979212},{"$f":"IF(Z$6=0,0,(1+$D112)^(Z$6-'Data Input - General'!$F$22))","v":1.5459796707758797},{"$f":"IF(AA$6=0,0,(1+$D112)^(AA$6-'Data Input - General'!$F$22))","v":1.576899264191397},{"$f":"IF(AB$6=0,0,(1+$D112)^(AB$6-'Data Input - General'!$F$22))","v":1.608437249475225},{"$f":"IF(AC$6=0,0,(1+$D112)^(AC$6-'Data Input - General'!$F$22))","v":1.6406059944647295},{"$f":"IF(AD$6=0,0,(1+$D112)^(AD$6-'Data Input - General'!$F$22))","v":1.6734181143540243},{"$f":"IF(AE$6=0,0,(1+$D112)^(AE$6-'Data Input - General'!$F$22))","v":1.7068864766411045},{"$f":"IF(AF$6=0,0,(1+$D112)^(AF$6-'Data Input - General'!$F$22))","v":1.7410242061739269},{"$f":"IF(AG$6=0,0,(1+$D112)^(AG$6-'Data Input - General'!$F$22))","v":1.7758446902974052},{"$f":"IF(AH$6=0,0,(1+$D112)^(AH$6-'Data Input - General'!$F$22))","v":1.8113615841033535},{"$f":"IF(AI$6=0,0,(1+$D112)^(AI$6-'Data Input - General'!$F$22))","v":0},{"$f":"IF(AJ$6=0,0,(1+$D112)^(AJ$6-'Data Input - General'!$F$22))","v":0},{"$f":"IF(AK$6=0,0,(1+$D112)^(AK$6-'Data Input - General'!$F$22))","v":0},{"$f":"IF(AL$6=0,0,(1+$D112)^(AL$6-'Data Input - General'!$F$22))","v":0},{"$f":"IF(AM$6=0,0,(1+$D112)^(AM$6-'Data Input - General'!$F$22))","v":0},{"$f":"IF(AN$6=0,0,(1+$D112)^(AN$6-'Data Input - General'!$F$22))","v":0},{"$f":"IF(AO$6=0,0,(1+$D112)^(AO$6-'Data Input - General'!$F$22))","v":0},{"$f":"IF(AP$6=0,0,(1+$D112)^(AP$6-'Data Input - General'!$F$22))","v":0},{"$f":"IF(AQ$6=0,0,(1+$D112)^(AQ$6-'Data Input - General'!$F$22))","v":0},{"$f":"IF(AR$6=0,0,(1+$D112)^(AR$6-'Data Input - General'!$F$22))","v":0},{"$f":"IF(AS$6=0,0,(1+$D112)^(AS$6-'Data Input - General'!$F$22))","v":0},{"$f":"IF(AT$6=0,0,(1+$D112)^(AT$6-'Data Input - General'!$F$22))","v":0},{"$f":"IF(AU$6=0,0,(1+$D112)^(AU$6-'Data Input - General'!$F$22))","v":0},{"$f":"IF(AV$6=0,0,(1+$D112)^(AV$6-'Data Input - General'!$F$22))","v":0},{"$f":"IF(AW$6=0,0,(1+$D112)^(AW$6-'Data Input - General'!$F$22))","v":0},{"$f":"IF(AX$6=0,0,(1+$D112)^(AX$6-'Data Input - General'!$F$22))","v":0},{"$f":"IF(AY$6=0,0,(1+$D112)^(AY$6-'Data Input - General'!$F$22))","v":0},{"$f":"IF(AZ$6=0,0,(1+$D112)^(AZ$6-'Data Input - General'!$F$22))","v":0},{"$f":"IF(BA$6=0,0,(1+$D112)^(BA$6-'Data Input - General'!$F$22))","v":0},{"$f":"IF(BB$6=0,0,(1+$D112)^(BB$6-'Data Input - General'!$F$22))","v":0},{"$f":"IF(BC$6=0,0,(1+$D112)^(BC$6-'Data Input - General'!$F$22))","v":0},{"$f":"IF(BD$6=0,0,(1+$D112)^(BD$6-'Data Input - General'!$F$22))","v":0},{"$f":"IF(BE$6=0,0,(1+$D112)^(BE$6-'Data Input - General'!$F$22))","v":0},{"$f":"IF(BF$6=0,0,(1+$D112)^(BF$6-'Data Input - General'!$F$22))","v":0},{"$f":"IF(BG$6=0,0,(1+$D112)^(BG$6-'Data Input - General'!$F$22))","v":0},{"$f":"IF(BH$6=0,0,(1+$D112)^(BH$6-'Data Input - General'!$F$22))","v":0},{"$f":"IF(BI$6=0,0,(1+$D112)^(BI$6-'Data Input - General'!$F$22))","v":0},{"$f":"IF(BJ$6=0,0,(1+$D112)^(BJ$6-'Data Input - General'!$F$22))","v":0},{"$f":"IF(BK$6=0,0,(1+$D112)^(BK$6-'Data Input - General'!$F$22))","v":0},{"$f":"IF(BL$6=0,0,(1+$D112)^(BL$6-'Data Input - General'!$F$22))","v":0},{"$f":"IF(BM$6=0,0,(1+$D112)^(BM$6-'Data Input - General'!$F$22))","v":0},{"$f":"IF(BN$6=0,0,(1+$D112)^(BN$6-'Data Input - General'!$F$22))","v":0},{"$f":"IF(BO$6=0,0,(1+$D112)^(BO$6-'Data Input - General'!$F$22))","v":0},{"$f":"IF(BP$6=0,0,(1+$D112)^(BP$6-'Data Input - General'!$F$22))","v":0},{"$f":"IF(BQ$6=0,0,(1+$D112)^(BQ$6-'Data Input - General'!$F$22))","v":0},{"$f":"IF(BR$6=0,0,(1+$D112)^(BR$6-'Data Input - General'!$F$22))","v":0},{"$f":"IF(BS$6=0,0,(1+$D112)^(BS$6-'Data Input - General'!$F$22))","v":0},{"$f":"IF(BT$6=0,0,(1+$D112)^(BT$6-'Data Input - General'!$F$22))","v":0},{"$f":"IF(BU$6=0,0,(1+$D112)^(BU$6-'Data Input - General'!$F$22))","v":0},{"$f":"IF(BV$6=0,0,(1+$D112)^(BV$6-'Data Input - General'!$F$22))","v":0},{"$f":"IF(BW$6=0,0,(1+$D112)^(BW$6-'Data Input - General'!$F$22))","v":0},{"$f":"IF(BX$6=0,0,(1+$D112)^(BX$6-'Data Input - General'!$F$22))","v":0},{"$f":"IF(BY$6=0,0,(1+$D112)^(BY$6-'Data Input - General'!$F$22))","v":0},{"$f":"IF(BZ$6=0,0,(1+$D112)^(BZ$6-'Data Input - General'!$F$22))","v":0},{"$f":"IF(CA$6=0,0,(1+$D112)^(CA$6-'Data Input - General'!$F$22))","v":0},{"$f":"IF(CB$6=0,0,(1+$D112)^(CB$6-'Data Input - General'!$F$22))","v":0},{"$f":"IF(CC$6=0,0,(1+$D112)^(CC$6-'Data Input - General'!$F$22))","v":0},{"$f":"IF(CD$6=0,0,(1+$D112)^(CD$6-'Data Input - General'!$F$22))","v":0},{"$f":"IF(CE$6=0,0,(1+$D112)^(CE$6-'Data Input - General'!$F$22))","v":0},{"$f":"IF(CF$6=0,0,(1+$D112)^(CF$6-'Data Input - General'!$F$22))","v":0},{"$f":"IF(CG$6=0,0,(1+$D112)^(CG$6-'Data Input - General'!$F$22))","v":0},{"$f":"IF(CH$6=0,0,(1+$D112)^(CH$6-'Data Input - General'!$F$22))","v":0},{"$f":"IF(CI$6=0,0,(1+$D112)^(CI$6-'Data Input - General'!$F$22))","v":0},{"$f":"IF(CJ$6=0,0,(1+$D112)^(CJ$6-'Data Input - General'!$F$22))","v":0},{"$f":"IF(CK$6=0,0,(1+$D112)^(CK$6-'Data Input - General'!$F$22))","v":0},{"$f":"IF(CL$6=0,0,(1+$D112)^(CL$6-'Data Input - General'!$F$22))","v":0},{"$f":"IF(CM$6=0,0,(1+$D112)^(CM$6-'Data Input - General'!$F$22))","v":0},{"$f":"IF(CN$6=0,0,(1+$D112)^(CN$6-'Data Input - General'!$F$22))","v":0},{"$f":"IF(CO$6=0,0,(1+$D112)^(CO$6-'Data Input - General'!$F$22))","v":0},{"$f":"IF(CP$6=0,0,(1+$D112)^(CP$6-'Data Input - General'!$F$22))","v":0},{"$f":"IF(CQ$6=0,0,(1+$D112)^(CQ$6-'Data Input - General'!$F$22))","v":0},{"$f":"IF(CR$6=0,0,(1+$D112)^(CR$6-'Data Input - General'!$F$22))","v":0},{"$f":"IF(CS$6=0,0,(1+$D112)^(CS$6-'Data Input - General'!$F$22))","v":0},{"$f":"IF(CT$6=0,0,(1+$D112)^(CT$6-'Data Input - General'!$F$22))","v":0},{"$f":"IF(CU$6=0,0,(1+$D112)^(CU$6-'Data Input - General'!$F$22))","v":0},{"$f":"IF(CV$6=0,0,(1+$D112)^(CV$6-'Data Input - General'!$F$22))","v":0},{"$f":"IF(CW$6=0,0,(1+$D112)^(CW$6-'Data Input - General'!$F$22))","v":0},{"$f":"IF(CX$6=0,0,(1+$D112)^(CX$6-'Data Input - General'!$F$22))","v":0},{"$f":"IF(CY$6=0,0,(1+$D112)^(CY$6-'Data Input - General'!$F$22))","v":0}]
[null,"Total value","£000's",{"$f":"SUM(D104:D109)*D113","v":1.6028522278070398},{"$f":"SUM(E104:E109)*E113","v":1.6349092723631806},{"$f":"SUM(F104:F109)*F113","v":1.6676074578104443},1.700959606966653,0.4615043605621923,0.47073444777343615,0.48014913672890491,0.4897521194634829,0,0,0,0,0,0,0,0,0,0,0,0,0,0,0,0,0,0,0,0,0,0,0,0,{"$f":"SUM(AJ104:AJ109)*AJ113","v":0},0,0,0,0,0,0,0,0,0,0,0,0,0,0,0,0,0,0,0,0,0,0,0,0,0,0,0,{"$f":"SUM(BL104:BL109)*BL113","v":0},0,0,0,0,0,0,0,0,0,0,0,0,0,0,0,0,0,0,0,0,0,0,0,0,0,0,0,0,0,0,0,0,0,0,0,0,0,0,0]
[null,"Discounted total value","£000's",{"$f":"D114*D$7","v":1.6028522278070398},{"$f":"E114*E$7","v":1.5796224853750538},{"$f":"F114*F$7","v":1.5567294058768648},{"$f":"G114*G$7","v":1.534168110139519},0.40217438806092204,0.39634577374119856,0.39060163209277543,0.38494073887403951,0,0,0,0,0,0,0,0,0,0,0,0,0,0,0,0,0,0,0,0,0,0,0,0,0,0,0,0,0,0,0,0,0,0,0,0,0,0,0,0,0,0,0,0,0,0,0,0,0,0,0,0,0,0,0,0,0,0,0,{"$f":"BS114*BS$7","v":0},0,0,0,0,0,0,0,0,0,0,0,0,0,0,0,0,0,0,0,0,0,0,0,0,0,0,0,0,0,0,0,0]
[]
[null,"GHG emissions"]
[null,"Traded","tCO2e",{"$f":"D80+IF('Data Input - General'!$F$10=\"Yes\",Calc_Proposed!D$81,0)+IF('Data Input - General'!$F$12=\"Yes\",Calc_Proposed!D$75,0)","v":86644.737608250056},{"$f":"E80+IF('Data Input - General'!$F$10=\"Yes\",Calc_Proposed!E$81,0)+IF('Data Input - General'!$F$12=\"Yes\",Calc_Proposed!E$75,0)","v":86510.233175019355},{"$f":"F80+IF('Data Input - General'!$F$10=\"Yes\",Calc_Proposed!F$81,0)+IF('Data Input - General'!$F$12=\"Yes\",Calc_Proposed!F$75,0)","v":86388.187501378605},{"$f":"G80+IF('Data Input - General'!$F$10=\"Yes\",Calc_Proposed!G$81,0)+IF('Data Input - General'!$F$12=\"Yes\",Calc_Proposed!G$75,0)","v":86316.993984732529},{"$f":"H80+IF('Data Input - General'!$F$10=\"Yes\",Calc_Proposed!H$81,0)+IF('Data Input - General'!$F$12=\"Yes\",Calc_Proposed!H$75,0)","v":86193.774664474651},{"$f":"I80+IF('Data Input - General'!$F$10=\"Yes\",Calc_Proposed!I$81,0)+IF('Data Input - General'!$F$12=\"Yes\",Calc_Proposed!I$75,0)","v":86229.164858991426},{"$f":"J80+IF('Data Input - General'!$F$10=\"Yes\",Calc_Proposed!J$81,0)+IF('Data Input - General'!$F$12=\"Yes\",Calc_Proposed!J$75,0)","v":86182.585839819963},{"$f":"K80+IF('Data Input - General'!$F$10=\"Yes\",Calc_Proposed!K$81,0)+IF('Data Input - General'!$F$12=\"Yes\",Calc_Proposed!K$75,0)","v":86105.387885048549},{"$f":"L80+IF('Data Input - General'!$F$10=\"Yes\",Calc_Proposed!L$81,0)+IF('Data Input - General'!$F$12=\"Yes\",Calc_Proposed!L$75,0)","v":0},{"$f":"M80+IF('Data Input - General'!$F$10=\"Yes\",Calc_Proposed!M$81,0)+IF('Data Input - General'!$F$12=\"Yes\",Calc_Proposed!M$75,0)","v":0},{"$f":"N80+IF('Data Input - General'!$F$10=\"Yes\",Calc_Proposed!N$81,0)+IF('Data Input - General'!$F$12=\"Yes\",Calc_Proposed!N$75,0)","v":0},{"$f":"O80+IF('Data Input - General'!$F$10=\"Yes\",Calc_Proposed!O$81,0)+IF('Data Input - General'!$F$12=\"Yes\",Calc_Proposed!O$75,0)","v":0},{"$f":"P80+IF('Data Input - General'!$F$10=\"Yes\",Calc_Proposed!P$81,0)+IF('Data Input - General'!$F$12=\"Yes\",Calc_Proposed!P$75,0)","v":0},{"$f":"Q80+IF('Data Input - General'!$F$10=\"Yes\",Calc_Proposed!Q$81,0)+IF('Data Input - General'!$F$12=\"Yes\",Calc_Proposed!Q$75,0)","v":0},{"$f":"R80+IF('Data Input - General'!$F$10=\"Yes\",Calc_Proposed!R$81,0)+IF('Data Input - General'!$F$12=\"Yes\",Calc_Proposed!R$75,0)","v":0},{"$f":"S80+IF('Data Input - General'!$F$10=\"Yes\",Calc_Proposed!S$81,0)+IF('Data Input - General'!$F$12=\"Yes\",Calc_Proposed!S$75,0)","v":0},{"$f":"T80+IF('Data Input - General'!$F$10=\"Yes\",Calc_Proposed!T$81,0)+IF('Data Input - General'!$F$12=\"Yes\",Calc_Proposed!T$75,0)","v":0},{"$f":"U80+IF('Data Input - General'!$F$10=\"Yes\",Calc_Proposed!U$81,0)+IF('Data Input - General'!$F$12=\"Yes\",Calc_Proposed!U$75,0)","v":0},{"$f":"V80+IF('Data Input - General'!$F$10=\"Yes\",Calc_Proposed!V$81,0)+IF('Data Input - General'!$F$12=\"Yes\",Calc_Proposed!V$75,0)","v":0},{"$f":"W80+IF('Data Input - General'!$F$10=\"Yes\",Calc_Proposed!W$81,0)+IF('Data Input - General'!$F$12=\"Yes\",Calc_Proposed!W$75,0)","v":0},{"$f":"X80+IF('Data Input - General'!$F$10=\"Yes\",Calc_Proposed!X$81,0)+IF('Data Input - General'!$F$12=\"Yes\",Calc_Proposed!X$75,0)","v":0},{"$f":"Y80+IF('Data Input - General'!$F$10=\"Yes\",Calc_Proposed!Y$81,0)+IF('Data Input - General'!$F$12=\"Yes\",Calc_Proposed!Y$75,0)","v":0},{"$f":"Z80+IF('Data Input - General'!$F$10=\"Yes\",Calc_Proposed!Z$81,0)+IF('Data Input - General'!$F$12=\"Yes\",Calc_Proposed!Z$75,0)","v":0},{"$f":"AA80+IF('Data Input - General'!$F$10=\"Yes\",Calc_Proposed!AA$81,0)+IF('Data Input - General'!$F$12=\"Yes\",Calc_Proposed!AA$75,0)","v":0},{"$f":"AB80+IF('Data Input - General'!$F$10=\"Yes\",Calc_Proposed!AB$81,0)+IF('Data Input - General'!$F$12=\"Yes\",Calc_Proposed!AB$75,0)","v":0},{"$f":"AC80+IF('Data Input - General'!$F$10=\"Yes\",Calc_Proposed!AC$81,0)+IF('Data Input - General'!$F$12=\"Yes\",Calc_Proposed!AC$75,0)","v":0},{"$f":"AD80+IF('Data Input - General'!$F$10=\"Yes\",Calc_Proposed!AD$81,0)+IF('Data Input - General'!$F$12=\"Yes\",Calc_Proposed!AD$75,0)","v":0},{"$f":"AE80+IF('Data Input - General'!$F$10=\"Yes\",Calc_Proposed!AE$81,0)+IF('Data Input - General'!$F$12=\"Yes\",Calc_Proposed!AE$75,0)","v":0},{"$f":"AF80+IF('Data Input - General'!$F$10=\"Yes\",Calc_Proposed!AF$81,0)+IF('Data Input - General'!$F$12=\"Yes\",Calc_Proposed!AF$75,0)","v":0},{"$f":"AG80+IF('Data Input - General'!$F$10=\"Yes\",Calc_Proposed!AG$81,0)+IF('Data Input - General'!$F$12=\"Yes\",Calc_Proposed!AG$75,0)","v":0},{"$f":"AH80+IF('Data Input - General'!$F$10=\"Yes\",Calc_Proposed!AH$81,0)+IF('Data Input - General'!$F$12=\"Yes\",Calc_Proposed!AH$75,0)","v":0},{"$f":"AI80+IF('Data Input - General'!$F$10=\"Yes\",Calc_Proposed!AI$81,0)+IF('Data Input - General'!$F$12=\"Yes\",Calc_Proposed!AI$75,0)","v":0},{"$f":"AJ80+IF('Data Input - General'!$F$10=\"Yes\",Calc_Proposed!AJ$81,0)+IF('Data Input - General'!$F$12=\"Yes\",Calc_Proposed!AJ$75,0)","v":0},{"$f":"AK80+IF('Data Input - General'!$F$10=\"Yes\",Calc_Proposed!AK$81,0)+IF('Data Input - General'!$F$12=\"Yes\",Calc_Proposed!AK$75,0)","v":0},{"$f":"AL80+IF('Data Input - General'!$F$10=\"Yes\",Calc_Proposed!AL$81,0)+IF('Data Input - General'!$F$12=\"Yes\",Calc_Proposed!AL$75,0)","v":0},{"$f":"AM80+IF('Data Input - General'!$F$10=\"Yes\",Calc_Proposed!AM$81,0)+IF('Data Input - General'!$F$12=\"Yes\",Calc_Proposed!AM$75,0)","v":0},{"$f":"AN80+IF('Data Input - General'!$F$10=\"Yes\",Calc_Proposed!AN$81,0)+IF('Data Input - General'!$F$12=\"Yes\",Calc_Proposed!AN$75,0)","v":0},{"$f":"AO80+IF('Data Input - General'!$F$10=\"Yes\",Calc_Proposed!AO$81,0)+IF('Data Input - General'!$F$12=\"Yes\",Calc_Proposed!AO$75,0)","v":0},{"$f":"AP80+IF('Data Input - General'!$F$10=\"Yes\",Calc_Proposed!AP$81,0)+IF('Data Input - General'!$F$12=\"Yes\",Calc_Proposed!AP$75,0)","v":0},{"$f":"AQ80+IF('Data Input - General'!$F$10=\"Yes\",Calc_Proposed!AQ$81,0)+IF('Data Input - General'!$F$12=\"Yes\",Calc_Proposed!AQ$75,0)","v":0},{"$f":"AR80+IF('Data Input - General'!$F$10=\"Yes\",Calc_Proposed!AR$81,0)+IF('Data Input - General'!$F$12=\"Yes\",Calc_Proposed!AR$75,0)","v":0},{"$f":"AS80+IF('Data Input - General'!$F$10=\"Yes\",Calc_Proposed!AS$81,0)+IF('Data Input - General'!$F$12=\"Yes\",Calc_Proposed!AS$75,0)","v":0},{"$f":"AT80+IF('Data Input - General'!$F$10=\"Yes\",Calc_Proposed!AT$81,0)+IF('Data Input - General'!$F$12=\"Yes\",Calc_Proposed!AT$75,0)","v":0},{"$f":"AU80+IF('Data Input - General'!$F$10=\"Yes\",Calc_Proposed!AU$81,0)+IF('Data Input - General'!$F$12=\"Yes\",Calc_Proposed!AU$75,0)","v":0},{"$f":"AV80+IF('Data Input - General'!$F$10=\"Yes\",Calc_Proposed!AV$81,0)+IF('Data Input - General'!$F$12=\"Yes\",Calc_Proposed!AV$75,0)","v":0},{"$f":"AW80+IF('Data Input - General'!$F$10=\"Yes\",Calc_Proposed!AW$81,0)+IF('Data Input - General'!$F$12=\"Yes\",Calc_Proposed!AW$75,0)","v":0},{"$f":"AX80+IF('Data Input - General'!$F$10=\"Yes\",Calc_Proposed!AX$81,0)+IF('Data Input - General'!$F$12=\"Yes\",Calc_Proposed!AX$75,0)","v":0},{"$f":"AY80+IF('Data Input - General'!$F$10=\"Yes\",Calc_Proposed!AY$81,0)+IF('Data Input - General'!$F$12=\"Yes\",Calc_Proposed!AY$75,0)","v":0},{"$f":"AZ80+IF('Data Input - General'!$F$10=\"Yes\",Calc_Proposed!AZ$81,0)+IF('Data Input - General'!$F$12=\"Yes\",Calc_Proposed!AZ$75,0)","v":0},{"$f":"BA80+IF('Data Input - General'!$F$10=\"Yes\",Calc_Proposed!BA$81,0)+IF('Data Input - General'!$F$12=\"Yes\",Calc_Proposed!BA$75,0)","v":0},{"$f":"BB80+IF('Data Input - General'!$F$10=\"Yes\",Calc_Proposed!BB$81,0)+IF('Data Input - General'!$F$12=\"Yes\",Calc_Proposed!BB$75,0)","v":0},{"$f":"BC80+IF('Data Input - General'!$F$10=\"Yes\",Calc_Proposed!BC$81,0)+IF('Data Input - General'!$F$12=\"Yes\",Calc_Proposed!BC$75,0)","v":0},{"$f":"BD80+IF('Data Input - General'!$F$10=\"Yes\",Calc_Proposed!BD$81,0)+IF('Data Input - General'!$F$12=\"Yes\",Calc_Proposed!BD$75,0)","v":0},{"$f":"BE80+IF('Data Input - General'!$F$10=\"Yes\",Calc_Proposed!BE$81,0)+IF('Data Input - General'!$F$12=\"Yes\",Calc_Proposed!BE$75,0)","v":0},{"$f":"BF80+IF('Data Input - General'!$F$10=\"Yes\",Calc_Proposed!BF$81,0)+IF('Data Input - General'!$F$12=\"Yes\",Calc_Proposed!BF$75,0)","v":0},{"$f":"BG80+IF('Data Input - General'!$F$10=\"Yes\",Calc_Proposed!BG$81,0)+IF('Data Input - General'!$F$12=\"Yes\",Calc_Proposed!BG$75,0)","v":0},{"$f":"BH80+IF('Data Input - General'!$F$10=\"Yes\",Calc_Proposed!BH$81,0)+IF('Data Input - General'!$F$12=\"Yes\",Calc_Proposed!BH$75,0)","v":0},{"$f":"BI80+IF('Data Input - General'!$F$10=\"Yes\",Calc_Proposed!BI$81,0)+IF('Data Input - General'!$F$12=\"Yes\",Calc_Proposed!BI$75,0)","v":0},{"$f":"BJ80+IF('Data Input - General'!$F$10=\"Yes\",Calc_Proposed!BJ$81,0)+IF('Data Input - General'!$F$12=\"Yes\",Calc_Proposed!BJ$75,0)","v":0},{"$f":"BK80+IF('Data Input - General'!$F$10=\"Yes\",Calc_Proposed!BK$81,0)+IF('Data Input - General'!$F$12=\"Yes\",Calc_Proposed!BK$75,0)","v":0},{"$f":"BL80+IF('Data Input - General'!$F$10=\"Yes\",Calc_Proposed!BL$81,0)+IF('Data Input - General'!$F$12=\"Yes\",Calc_Proposed!BL$75,0)","v":0},{"$f":"BM80+IF('Data Input - General'!$F$10=\"Yes\",Calc_Proposed!BM$81,0)+IF('Data Input - General'!$F$12=\"Yes\",Calc_Proposed!BM$75,0)","v":0},{"$f":"BN80+IF('Data Input - General'!$F$10=\"Yes\",Calc_Proposed!BN$81,0)+IF('Data Input - General'!$F$12=\"Yes\",Calc_Proposed!BN$75,0)","v":0},{"$f":"BO80+IF('Data Input - General'!$F$10=\"Yes\",Calc_Proposed!BO$81,0)+IF('Data Input - General'!$F$12=\"Yes\",Calc_Proposed!BO$75,0)","v":0},{"$f":"BP80+IF('Data Input - General'!$F$10=\"Yes\",Calc_Proposed!BP$81,0)+IF('Data Input - General'!$F$12=\"Yes\",Calc_Proposed!BP$75,0)","v":0},{"$f":"BQ80+IF('Data Input - General'!$F$10=\"Yes\",Calc_Proposed!BQ$81,0)+IF('Data Input - General'!$F$12=\"Yes\",Calc_Proposed!BQ$75,0)","v":0},{"$f":"BR80+IF('Data Input - General'!$F$10=\"Yes\",Calc_Proposed!BR$81,0)+IF('Data Input - General'!$F$12=\"Yes\",Calc_Proposed!BR$75,0)","v":0},{"$f":"BS80+IF('Data Input - General'!$F$10=\"Yes\",Calc_Proposed!BS$81,0)+IF('Data Input - General'!$F$12=\"Yes\",Calc_Proposed!BS$75,0)","v":0},{"$f":"BT80+IF('Data Input - General'!$F$10=\"Yes\",Calc_Proposed!BT$81,0)+IF('Data Input - General'!$F$12=\"Yes\",Calc_Proposed!BT$75,0)","v":0},{"$f":"BU80+IF('Data Input - General'!$F$10=\"Yes\",Calc_Proposed!BU$81,0)+IF('Data Input - General'!$F$12=\"Yes\",Calc_Proposed!BU$75,0)","v":0},{"$f":"BV80+IF('Data Input - General'!$F$10=\"Yes\",Calc_Proposed!BV$81,0)+IF('Data Input - General'!$F$12=\"Yes\",Calc_Proposed!BV$75,0)","v":0},{"$f":"BW80+IF('Data Input - General'!$F$10=\"Yes\",Calc_Proposed!BW$81,0)+IF('Data Input - General'!$F$12=\"Yes\",Calc_Proposed!BW$75,0)","v":0},{"$f":"BX80+IF('Data Input - General'!$F$10=\"Yes\",Calc_Proposed!BX$81,0)+IF('Data Input - General'!$F$12=\"Yes\",Calc_Proposed!BX$75,0)","v":0},{"$f":"BY80+IF('Data Input - General'!$F$10=\"Yes\",Calc_Proposed!BY$81,0)+IF('Data Input - General'!$F$12=\"Yes\",Calc_Proposed!BY$75,0)","v":0},{"$f":"BZ80+IF('Data Input - General'!$F$10=\"Yes\",Calc_Proposed!BZ$81,0)+IF('Data Input - General'!$F$12=\"Yes\",Calc_Proposed!BZ$75,0)","v":0},{"$f":"CA80+IF('Data Input - General'!$F$10=\"Yes\",Calc_Proposed!CA$81,0)+IF('Data Input - General'!$F$12=\"Yes\",Calc_Proposed!CA$75,0)","v":0},{"$f":"CB80+IF('Data Input - General'!$F$10=\"Yes\",Calc_Proposed!CB$81,0)+IF('Data Input - General'!$F$12=\"Yes\",Calc_Proposed!CB$75,0)","v":0},{"$f":"CC80+IF('Data Input - General'!$F$10=\"Yes\",Calc_Proposed!CC$81,0)+IF('Data Input - General'!$F$12=\"Yes\",Calc_Proposed!CC$75,0)","v":0},{"$f":"CD80+IF('Data Input - General'!$F$10=\"Yes\",Calc_Proposed!CD$81,0)+IF('Data Input - General'!$F$12=\"Yes\",Calc_Proposed!CD$75,0)","v":0},{"$f":"CE80+IF('Data Input - General'!$F$10=\"Yes\",Calc_Proposed!CE$81,0)+IF('Data Input - General'!$F$12=\"Yes\",Calc_Proposed!CE$75,0)","v":0},{"$f":"CF80+IF('Data Input - General'!$F$10=\"Yes\",Calc_Proposed!CF$81,0)+IF('Data Input - General'!$F$12=\"Yes\",Calc_Proposed!CF$75,0)","v":0},{"$f":"CG80+IF('Data Input - General'!$F$10=\"Yes\",Calc_Proposed!CG$81,0)+IF('Data Input - General'!$F$12=\"Yes\",Calc_Proposed!CG$75,0)","v":0},{"$f":"CH80+IF('Data Input - General'!$F$10=\"Yes\",Calc_Proposed!CH$81,0)+IF('Data Input - General'!$F$12=\"Yes\",Calc_Proposed!CH$75,0)","v":0},{"$f":"CI80+IF('Data Input - General'!$F$10=\"Yes\",Calc_Proposed!CI$81,0)+IF('Data Input - General'!$F$12=\"Yes\",Calc_Proposed!CI$75,0)","v":0},{"$f":"CJ80+IF('Data Input - General'!$F$10=\"Yes\",Calc_Proposed!CJ$81,0)+IF('Data Input - General'!$F$12=\"Yes\",Calc_Proposed!CJ$75,0)","v":0},{"$f":"CK80+IF('Data Input - General'!$F$10=\"Yes\",Calc_Proposed!CK$81,0)+IF('Data Input - General'!$F$12=\"Yes\",Calc_Proposed!CK$75,0)","v":0},{"$f":"CL80+IF('Data Input - General'!$F$10=\"Yes\",Calc_Proposed!CL$81,0)+IF('Data Input - General'!$F$12=\"Yes\",Calc_Proposed!CL$75,0)","v":0},{"$f":"CM80+IF('Data Input - General'!$F$10=\"Yes\",Calc_Proposed!CM$81,0)+IF('Data Input - General'!$F$12=\"Yes\",Calc_Proposed!CM$75,0)","v":0},{"$f":"CN80+IF('Data Input - General'!$F$10=\"Yes\",Calc_Proposed!CN$81,0)+IF('Data Input - General'!$F$12=\"Yes\",Calc_Proposed!CN$75,0)","v":0},{"$f":"CO80+IF('Data Input - General'!$F$10=\"Yes\",Calc_Proposed!CO$81,0)+IF('Data Input - General'!$F$12=\"Yes\",Calc_Proposed!CO$75,0)","v":0},{"$f":"CP80+IF('Data Input - General'!$F$10=\"Yes\",Calc_Proposed!CP$81,0)+IF('Data Input - General'!$F$12=\"Yes\",Calc_Proposed!CP$75,0)","v":0},{"$f":"CQ80+IF('Data Input - General'!$F$10=\"Yes\",Calc_Proposed!CQ$81,0)+IF('Data Input - General'!$F$12=\"Yes\",Calc_Proposed!CQ$75,0)","v":0},{"$f":"CR80+IF('Data Input - General'!$F$10=\"Yes\",Calc_Proposed!CR$81,0)+IF('Data Input - General'!$F$12=\"Yes\",Calc_Proposed!CR$75,0)","v":0},{"$f":"CS80+IF('Data Input - General'!$F$10=\"Yes\",Calc_Proposed!CS$81,0)+IF('Data Input - General'!$F$12=\"Yes\",Calc_Proposed!CS$75,0)","v":0},{"$f":"CT80+IF('Data Input - General'!$F$10=\"Yes\",Calc_Proposed!CT$81,0)+IF('Data Input - General'!$F$12=\"Yes\",Calc_Proposed!CT$75,0)","v":0},{"$f":"CU80+IF('Data Input - General'!$F$10=\"Yes\",Calc_Proposed!CU$81,0)+IF('Data Input - General'!$F$12=\"Yes\",Calc_Proposed!CU$75,0)","v":0},{"$f":"CV80+IF('Data Input - General'!$F$10=\"Yes\",Calc_Proposed!CV$81,0)+IF('Data Input - General'!$F$12=\"Yes\",Calc_Proposed!CV$75,0)","v":0},{"$f":"CW80+IF('Data Input - General'!$F$10=\"Yes\",Calc_Proposed!CW$81,0)+IF('Data Input - General'!$F$12=\"Yes\",Calc_Proposed!CW$75,0)","v":0},{"$f":"CX80+IF('Data Input - General'!$F$10=\"Yes\",Calc_Proposed!CX$81,0)+IF('Data Input - General'!$F$12=\"Yes\",Calc_Proposed!CX$75,0)","v":0},{"$f":"CY80+IF('Data Input - General'!$F$10=\"Yes\",Calc_Proposed!CY$81,0)+IF('Data Input - General'!$F$12=\"Yes\",Calc_Proposed!CY$75,0)","v":0}]
[null,"Non-traded","tCO2e",{"$f":"IF('Data Input - General'!$F$10=\"Yes\",0,Calc_Proposed!D$81)+IF('Data Input - General'!$F$12=\"Yes\",0,Calc_Proposed!D$75)","v":0},{"$f":"IF('Data Input - General'!$F$10=\"Yes\",0,Calc_Proposed!E$81)+IF('Data Input - General'!$F$12=\"Yes\",0,Calc_Proposed!E$75)","v":0},{"$f":"IF('Data Input - General'!$F$10=\"Yes\",0,Calc_Proposed!F$81)+IF('Data Input - General'!$F$12=\"Yes\",0,Calc_Proposed!F$75)","v":0},{"$f":"IF('Data Input - General'!$F$10=\"Yes\",0,Calc_Proposed!G$81)+IF('Data Input - General'!$F$12=\"Yes\",0,Calc_Proposed!G$75)","v":0},{"$f":"IF('Data Input - General'!$F$10=\"Yes\",0,Calc_Proposed!H$81)+IF('Data Input - General'!$F$12=\"Yes\",0,Calc_Proposed!H$75)","v":0},{"$f":"IF('Data Input - General'!$F$10=\"Yes\",0,Calc_Proposed!I$81)+IF('Data Input - General'!$F$12=\"Yes\",0,Calc_Proposed!I$75)","v":0},{"$f":"IF('Data Input - General'!$F$10=\"Yes\",0,Calc_Proposed!J$81)+IF('Data Input - General'!$F$12=\"Yes\",0,Calc_Proposed!J$75)","v":0},{"$f":"IF('Data Input - General'!$F$10=\"Yes\",0,Calc_Proposed!K$81)+IF('Data Input - General'!$F$12=\"Yes\",0,Calc_Proposed!K$75)","v":0},{"$f":"IF('Data Input - General'!$F$10=\"Yes\",0,Calc_Proposed!L$81)+IF('Data Input - General'!$F$12=\"Yes\",0,Calc_Proposed!L$75)","v":0},{"$f":"IF('Data Input - General'!$F$10=\"Yes\",0,Calc_Proposed!M$81)+IF('Data Input - General'!$F$12=\"Yes\",0,Calc_Proposed!M$75)","v":0},{"$f":"IF('Data Input - General'!$F$10=\"Yes\",0,Calc_Proposed!N$81)+IF('Data Input - General'!$F$12=\"Yes\",0,Calc_Proposed!N$75)","v":0},{"$f":"IF('Data Input - General'!$F$10=\"Yes\",0,Calc_Proposed!O$81)+IF('Data Input - General'!$F$12=\"Yes\",0,Calc_Proposed!O$75)","v":0},{"$f":"IF('Data Input - General'!$F$10=\"Yes\",0,Calc_Proposed!P$81)+IF('Data Input - General'!$F$12=\"Yes\",0,Calc_Proposed!P$75)","v":0},{"$f":"IF('Data Input - General'!$F$10=\"Yes\",0,Calc_Proposed!Q$81)+IF('Data Input - General'!$F$12=\"Yes\",0,Calc_Proposed!Q$75)","v":0},{"$f":"IF('Data Input - General'!$F$10=\"Yes\",0,Calc_Proposed!R$81)+IF('Data Input - General'!$F$12=\"Yes\",0,Calc_Proposed!R$75)","v":0},{"$f":"IF('Data Input - General'!$F$10=\"Yes\",0,Calc_Proposed!S$81)+IF('Data Input - General'!$F$12=\"Yes\",0,Calc_Proposed!S$75)","v":0},{"$f":"IF('Data Input - General'!$F$10=\"Yes\",0,Calc_Proposed!T$81)+IF('Data Input - General'!$F$12=\"Yes\",0,Calc_Proposed!T$75)","v":0},{"$f":"IF('Data Input - General'!$F$10=\"Yes\",0,Calc_Proposed!U$81)+IF('Data Input - General'!$F$12=\"Yes\",0,Calc_Proposed!U$75)","v":0},{"$f":"IF('Data Input - General'!$F$10=\"Yes\",0,Calc_Proposed!V$81)+IF('Data Input - General'!$F$12=\"Yes\",0,Calc_Proposed!V$75)","v":0},{"$f":"IF('Data Input - General'!$F$10=\"Yes\",0,Calc_Proposed!W$81)+IF('Data Input - General'!$F$12=\"Yes\",0,Calc_Proposed!W$75)","v":0},{"$f":"IF('Data Input - General'!$F$10=\"Yes\",0,Calc_Proposed!X$81)+IF('Data Input - General'!$F$12=\"Yes\",0,Calc_Proposed!X$75)","v":0},{"$f":"IF('Data Input - General'!$F$10=\"Yes\",0,Calc_Proposed!Y$81)+IF('Data Input - General'!$F$12=\"Yes\",0,Calc_Proposed!Y$75)","v":0},{"$f":"IF('Data Input - General'!$F$10=\"Yes\",0,Calc_Proposed!Z$81)+IF('Data Input - General'!$F$12=\"Yes\",0,Calc_Proposed!Z$75)","v":0},{"$f":"IF('Data Input - General'!$F$10=\"Yes\",0,Calc_Proposed!AA$81)+IF('Data Input - General'!$F$12=\"Yes\",0,Calc_Proposed!AA$75)","v":0},{"$f":"IF('Data Input - General'!$F$10=\"Yes\",0,Calc_Proposed!AB$81)+IF('Data Input - General'!$F$12=\"Yes\",0,Calc_Proposed!AB$75)","v":0},{"$f":"IF('Data Input - General'!$F$10=\"Yes\",0,Calc_Proposed!AC$81)+IF('Data Input - General'!$F$12=\"Yes\",0,Calc_Proposed!AC$75)","v":0},{"$f":"IF('Data Input - General'!$F$10=\"Yes\",0,Calc_Proposed!AD$81)+IF('Data Input - General'!$F$12=\"Yes\",0,Calc_Proposed!AD$75)","v":0},{"$f":"IF('Data Input - General'!$F$10=\"Yes\",0,Calc_Proposed!AE$81)+IF('Data Input - General'!$F$12=\"Yes\",0,Calc_Proposed!AE$75)","v":0},{"$f":"IF('Data Input - General'!$F$10=\"Yes\",0,Calc_Proposed!AF$81)+IF('Data Input - General'!$F$12=\"Yes\",0,Calc_Proposed!AF$75)","v":0},{"$f":"IF('Data Input - General'!$F$10=\"Yes\",0,Calc_Proposed!AG$81)+IF('Data Input - General'!$F$12=\"Yes\",0,Calc_Proposed!AG$75)","v":0},{"$f":"IF('Data Input - General'!$F$10=\"Yes\",0,Calc_Proposed!AH$81)+IF('Data Input - General'!$F$12=\"Yes\",0,Calc_Proposed!AH$75)","v":0},{"$f":"IF('Data Input - General'!$F$10=\"Yes\",0,Calc_Proposed!AI$81)+IF('Data Input - General'!$F$12=\"Yes\",0,Calc_Proposed!AI$75)","v":0},{"$f":"IF('Data Input - General'!$F$10=\"Yes\",0,Calc_Proposed!AJ$81)+IF('Data Input - General'!$F$12=\"Yes\",0,Calc_Proposed!AJ$75)","v":0},{"$f":"IF('Data Input - General'!$F$10=\"Yes\",0,Calc_Proposed!AK$81)+IF('Data Input - General'!$F$12=\"Yes\",0,Calc_Proposed!AK$75)","v":0},{"$f":"IF('Data Input - General'!$F$10=\"Yes\",0,Calc_Proposed!AL$81)+IF('Data Input - General'!$F$12=\"Yes\",0,Calc_Proposed!AL$75)","v":0},{"$f":"IF('Data Input - General'!$F$10=\"Yes\",0,Calc_Proposed!AM$81)+IF('Data Input - General'!$F$12=\"Yes\",0,Calc_Proposed!AM$75)","v":0},{"$f":"IF('Data Input - General'!$F$10=\"Yes\",0,Calc_Proposed!AN$81)+IF('Data Input - General'!$F$12=\"Yes\",0,Calc_Proposed!AN$75)","v":0},{"$f":"IF('Data Input - General'!$F$10=\"Yes\",0,Calc_Proposed!AO$81)+IF('Data Input - General'!$F$12=\"Yes\",0,Calc_Proposed!AO$75)","v":0},{"$f":"IF('Data Input - General'!$F$10=\"Yes\",0,Calc_Proposed!AP$81)+IF('Data Input - General'!$F$12=\"Yes\",0,Calc_Proposed!AP$75)","v":0},{"$f":"IF('Data Input - General'!$F$10=\"Yes\",0,Calc_Proposed!AQ$81)+IF('Data Input - General'!$F$12=\"Yes\",0,Calc_Proposed!AQ$75)","v":0},{"$f":"IF('Data Input - General'!$F$10=\"Yes\",0,Calc_Proposed!AR$81)+IF('Data Input - General'!$F$12=\"Yes\",0,Calc_Proposed!AR$75)","v":0},{"$f":"IF('Data Input - General'!$F$10=\"Yes\",0,Calc_Proposed!AS$81)+IF('Data Input - General'!$F$12=\"Yes\",0,Calc_Proposed!AS$75)","v":0},{"$f":"IF('Data Input - General'!$F$10=\"Yes\",0,Calc_Proposed!AT$81)+IF('Data Input - General'!$F$12=\"Yes\",0,Calc_Proposed!AT$75)","v":0},{"$f":"IF('Data Input - General'!$F$10=\"Yes\",0,Calc_Proposed!AU$81)+IF('Data Input - General'!$F$12=\"Yes\",0,Calc_Proposed!AU$75)","v":0},{"$f":"IF('Data Input - General'!$F$10=\"Yes\",0,Calc_Proposed!AV$81)+IF('Data Input - General'!$F$12=\"Yes\",0,Calc_Proposed!AV$75)","v":0},{"$f":"IF('Data Input - General'!$F$10=\"Yes\",0,Calc_Proposed!AW$81)+IF('Data Input - General'!$F$12=\"Yes\",0,Calc_Proposed!AW$75)","v":0},{"$f":"IF('Data Input - General'!$F$10=\"Yes\",0,Calc_Proposed!AX$81)+IF('Data Input - General'!$F$12=\"Yes\",0,Calc_Proposed!AX$75)","v":0},{"$f":"IF('Data Input - General'!$F$10=\"Yes\",0,Calc_Proposed!AY$81)+IF('Data Input - General'!$F$12=\"Yes\",0,Calc_Proposed!AY$75)","v":0},{"$f":"IF('Data Input - General'!$F$10=\"Yes\",0,Calc_Proposed!AZ$81)+IF('Data Input - General'!$F$12=\"Yes\",0,Calc_Proposed!AZ$75)","v":0},{"$f":"IF('Data Input - General'!$F$10=\"Yes\",0,Calc_Proposed!BA$81)+IF('Data Input - General'!$F$12=\"Yes\",0,Calc_Proposed!BA$75)","v":0},{"$f":"IF('Data Input - General'!$F$10=\"Yes\",0,Calc_Proposed!BB$81)+IF('Data Input - General'!$F$12=\"Yes\",0,Calc_Proposed!BB$75)","v":0},{"$f":"IF('Data Input - General'!$F$10=\"Yes\",0,Calc_Proposed!BC$81)+IF('Data Input - General'!$F$12=\"Yes\",0,Calc_Proposed!BC$75)","v":0},{"$f":"IF('Data Input - General'!$F$10=\"Yes\",0,Calc_Proposed!BD$81)+IF('Data Input - General'!$F$12=\"Yes\",0,Calc_Proposed!BD$75)","v":0},{"$f":"IF('Data Input - General'!$F$10=\"Yes\",0,Calc_Proposed!BE$81)+IF('Data Input - General'!$F$12=\"Yes\",0,Calc_Proposed!BE$75)","v":0},{"$f":"IF('Data Input - General'!$F$10=\"Yes\",0,Calc_Proposed!BF$81)+IF('Data Input - General'!$F$12=\"Yes\",0,Calc_Proposed!BF$75)","v":0},{"$f":"IF('Data Input - General'!$F$10=\"Yes\",0,Calc_Proposed!BG$81)+IF('Data Input - General'!$F$12=\"Yes\",0,Calc_Proposed!BG$75)","v":0},{"$f":"IF('Data Input - General'!$F$10=\"Yes\",0,Calc_Proposed!BH$81)+IF('Data Input - General'!$F$12=\"Yes\",0,Calc_Proposed!BH$75)","v":0},{"$f":"IF('Data Input - General'!$F$10=\"Yes\",0,Calc_Proposed!BI$81)+IF('Data Input - General'!$F$12=\"Yes\",0,Calc_Proposed!BI$75)","v":0},{"$f":"IF('Data Input - General'!$F$10=\"Yes\",0,Calc_Proposed!BJ$81)+IF('Data Input - General'!$F$12=\"Yes\",0,Calc_Proposed!BJ$75)","v":0},{"$f":"IF('Data Input - General'!$F$10=\"Yes\",0,Calc_Proposed!BK$81)+IF('Data Input - General'!$F$12=\"Yes\",0,Calc_Proposed!BK$75)","v":0},{"$f":"IF('Data Input - General'!$F$10=\"Yes\",0,Calc_Proposed!BL$81)+IF('Data Input - General'!$F$12=\"Yes\",0,Calc_Proposed!BL$75)","v":0},{"$f":"IF('Data Input - General'!$F$10=\"Yes\",0,Calc_Proposed!BM$81)+IF('Data Input - General'!$F$12=\"Yes\",0,Calc_Proposed!BM$75)","v":0},{"$f":"IF('Data Input - General'!$F$10=\"Yes\",0,Calc_Proposed!BN$81)+IF('Data Input - General'!$F$12=\"Yes\",0,Calc_Proposed!BN$75)","v":0},{"$f":"IF('Data Input - General'!$F$10=\"Yes\",0,Calc_Proposed!BO$81)+IF('Data Input - General'!$F$12=\"Yes\",0,Calc_Proposed!BO$75)","v":0},{"$f":"IF('Data Input - General'!$F$10=\"Yes\",0,Calc_Proposed!BP$81)+IF('Data Input - General'!$F$12=\"Yes\",0,Calc_Proposed!BP$75)","v":0},{"$f":"IF('Data Input - General'!$F$10=\"Yes\",0,Calc_Proposed!BQ$81)+IF('Data Input - General'!$F$12=\"Yes\",0,Calc_Proposed!BQ$75)","v":0},{"$f":"IF('Data Input - General'!$F$10=\"Yes\",0,Calc_Proposed!BR$81)+IF('Data Input - General'!$F$12=\"Yes\",0,Calc_Proposed!BR$75)","v":0},{"$f":"IF('Data Input - General'!$F$10=\"Yes\",0,Calc_Proposed!BS$81)+IF('Data Input - General'!$F$12=\"Yes\",0,Calc_Proposed!BS$75)","v":0},{"$f":"IF('Data Input - General'!$F$10=\"Yes\",0,Calc_Proposed!BT$81)+IF('Data Input - General'!$F$12=\"Yes\",0,Calc_Proposed!BT$75)","v":0},{"$f":"IF('Data Input - General'!$F$10=\"Yes\",0,Calc_Proposed!BU$81)+IF('Data Input - General'!$F$12=\"Yes\",0,Calc_Proposed!BU$75)","v":0},{"$f":"IF('Data Input - General'!$F$10=\"Yes\",0,Calc_Proposed!BV$81)+IF('Data Input - General'!$F$12=\"Yes\",0,Calc_Proposed!BV$75)","v":0},{"$f":"IF('Data Input - General'!$F$10=\"Yes\",0,Calc_Proposed!BW$81)+IF('Data Input - General'!$F$12=\"Yes\",0,Calc_Proposed!BW$75)","v":0},{"$f":"IF('Data Input - General'!$F$10=\"Yes\",0,Calc_Proposed!BX$81)+IF('Data Input - General'!$F$12=\"Yes\",0,Calc_Proposed!BX$75)","v":0},{"$f":"IF('Data Input - General'!$F$10=\"Yes\",0,Calc_Proposed!BY$81)+IF('Data Input - General'!$F$12=\"Yes\",0,Calc_Proposed!BY$75)","v":0},{"$f":"IF('Data Input - General'!$F$10=\"Yes\",0,Calc_Proposed!BZ$81)+IF('Data Input - General'!$F$12=\"Yes\",0,Calc_Proposed!BZ$75)","v":0},{"$f":"IF('Data Input - General'!$F$10=\"Yes\",0,Calc_Proposed!CA$81)+IF('Data Input - General'!$F$12=\"Yes\",0,Calc_Proposed!CA$75)","v":0},{"$f":"IF('Data Input - General'!$F$10=\"Yes\",0,Calc_Proposed!CB$81)+IF('Data Input - General'!$F$12=\"Yes\",0,Calc_Proposed!CB$75)","v":0},{"$f":"IF('Data Input - General'!$F$10=\"Yes\",0,Calc_Proposed!CC$81)+IF('Data Input - General'!$F$12=\"Yes\",0,Calc_Proposed!CC$75)","v":0},{"$f":"IF('Data Input - General'!$F$10=\"Yes\",0,Calc_Proposed!CD$81)+IF('Data Input - General'!$F$12=\"Yes\",0,Calc_Proposed!CD$75)","v":0},{"$f":"IF('Data Input - General'!$F$10=\"Yes\",0,Calc_Proposed!CE$81)+IF('Data Input - General'!$F$12=\"Yes\",0,Calc_Proposed!CE$75)","v":0},{"$f":"IF('Data Input - General'!$F$10=\"Yes\",0,Calc_Proposed!CF$81)+IF('Data Input - General'!$F$12=\"Yes\",0,Calc_Proposed!CF$75)","v":0},{"$f":"IF('Data Input - General'!$F$10=\"Yes\",0,Calc_Proposed!CG$81)+IF('Data Input - General'!$F$12=\"Yes\",0,Calc_Proposed!CG$75)","v":0},{"$f":"IF('Data Input - General'!$F$10=\"Yes\",0,Calc_Proposed!CH$81)+IF('Data Input - General'!$F$12=\"Yes\",0,Calc_Proposed!CH$75)","v":0},{"$f":"IF('Data Input - General'!$F$10=\"Yes\",0,Calc_Proposed!CI$81)+IF('Data Input - General'!$F$12=\"Yes\",0,Calc_Proposed!CI$75)","v":0},{"$f":"IF('Data Input - General'!$F$10=\"Yes\",0,Calc_Proposed!CJ$81)+IF('Data Input - General'!$F$12=\"Yes\",0,Calc_Proposed!CJ$75)","v":0},{"$f":"IF('Data Input - General'!$F$10=\"Yes\",0,Calc_Proposed!CK$81)+IF('Data Input - General'!$F$12=\"Yes\",0,Calc_Proposed!CK$75)","v":0},{"$f":"IF('Data Input - General'!$F$10=\"Yes\",0,Calc_Proposed!CL$81)+IF('Data Input - General'!$F$12=\"Yes\",0,Calc_Proposed!CL$75)","v":0},{"$f":"IF('Data Input - General'!$F$10=\"Yes\",0,Calc_Proposed!CM$81)+IF('Data Input - General'!$F$12=\"Yes\",0,Calc_Proposed!CM$75)","v":0},{"$f":"IF('Data Input - General'!$F$10=\"Yes\",0,Calc_Proposed!CN$81)+IF('Data Input - General'!$F$12=\"Yes\",0,Calc_Proposed!CN$75)","v":0},{"$f":"IF('Data Input - General'!$F$10=\"Yes\",0,Calc_Proposed!CO$81)+IF('Data Input - General'!$F$12=\"Yes\",0,Calc_Proposed!CO$75)","v":0},{"$f":"IF('Data Input - General'!$F$10=\"Yes\",0,Calc_Proposed!CP$81)+IF('Data Input - General'!$F$12=\"Yes\",0,Calc_Proposed!CP$75)","v":0},{"$f":"IF('Data Input - General'!$F$10=\"Yes\",0,Calc_Proposed!CQ$81)+IF('Data Input - General'!$F$12=\"Yes\",0,Calc_Proposed!CQ$75)","v":0},{"$f":"IF('Data Input - General'!$F$10=\"Yes\",0,Calc_Proposed!CR$81)+IF('Data Input - General'!$F$12=\"Yes\",0,Calc_Proposed!CR$75)","v":0},{"$f":"IF('Data Input - General'!$F$10=\"Yes\",0,Calc_Proposed!CS$81)+IF('Data Input - General'!$F$12=\"Yes\",0,Calc_Proposed!CS$75)","v":0},{"$f":"IF('Data Input - General'!$F$10=\"Yes\",0,Calc_Proposed!CT$81)+IF('Data Input - General'!$F$12=\"Yes\",0,Calc_Proposed!CT$75)","v":0},{"$f":"IF('Data Input - General'!$F$10=\"Yes\",0,Calc_Proposed!CU$81)+IF('Data Input - General'!$F$12=\"Yes\",0,Calc_Proposed!CU$75)","v":0},{"$f":"IF('Data Input - General'!$F$10=\"Yes\",0,Calc_Proposed!CV$81)+IF('Data Input - General'!$F$12=\"Yes\",0,Calc_Proposed!CV$75)","v":0},{"$f":"IF('Data Input - General'!$F$10=\"Yes\",0,Calc_Proposed!CW$81)+IF('Data Input - General'!$F$12=\"Yes\",0,Calc_Proposed!CW$75)","v":0},{"$f":"IF('Data Input - General'!$F$10=\"Yes\",0,Calc_Proposed!CX$81)+IF('Data Input - General'!$F$12=\"Yes\",0,Calc_Proposed!CX$75)","v":0},{"$f":"IF('Data Input - General'!$F$10=\"Yes\",0,Calc_Proposed!CY$81)+IF('Data Input - General'!$F$12=\"Yes\",0,Calc_Proposed!CY$75)","v":0}]
[null,"Value TRADED","£000's",{"$f":"IFERROR(INDEX('Carbon Prices'!$D$10:$CP$15,1,MATCH(Calc_Proposed!D$6,'Carbon Prices'!$D$9:$CP$9,0))/1000,0)","v":0},{"$f":"IFERROR(INDEX('Carbon Prices'!$D$10:$CP$15,1,MATCH(Calc_Proposed!E$6,'Carbon Prices'!$D$9:$CP$9,0))/1000,0)","v":0},{"$f":"IFERROR(INDEX('Carbon Prices'!$D$10:$CP$15,1,MATCH(Calc_Proposed!F$6,'Carbon Prices'!$D$9:$CP$9,0))/1000,0)","v":4.2168152036321628E-3},{"$f":"IFERROR(INDEX('Carbon Prices'!$D$10:$CP$15,1,MATCH(Calc_Proposed!G$6,'Carbon Prices'!$D$9:$CP$9,0))/1000,0)","v":8.4336304072643257E-3},{"$f":"IFERROR(INDEX('Carbon Prices'!$D$10:$CP$15,1,MATCH(Calc_Proposed!H$6,'Carbon Prices'!$D$9:$CP$9,0))/1000,0)","v":1.2650445610896488E-2},{"$f":"IFERROR(INDEX('Carbon Prices'!$D$10:$CP$15,1,MATCH(Calc_Proposed!I$6,'Carbon Prices'!$D$9:$CP$9,0))/1000,0)","v":1.6867260814528651E-2},{"$f":"IFERROR(INDEX('Carbon Prices'!$D$10:$CP$15,1,MATCH(Calc_Proposed!J$6,'Carbon Prices'!$D$9:$CP$9,0))/1000,0)","v":2.1084076018160813E-2},{"$f":"IFERROR(INDEX('Carbon Prices'!$D$10:$CP$15,1,MATCH(Calc_Proposed!K$6,'Carbon Prices'!$D$9:$CP$9,0))/1000,0)","v":2.5300891221792975E-2},{"$f":"IFERROR(INDEX('Carbon Prices'!$D$10:$CP$15,1,MATCH(Calc_Proposed!L$6,'Carbon Prices'!$D$9:$CP$9,0))/1000,0)","v":2.9517706425425144E-2},{"$f":"IFERROR(INDEX('Carbon Prices'!$D$10:$CP$15,1,MATCH(Calc_Proposed!M$6,'Carbon Prices'!$D$9:$CP$9,0))/1000,0)","v":3.3734521629057303E-2},{"$f":"IFERROR(INDEX('Carbon Prices'!$D$10:$CP$15,1,MATCH(Calc_Proposed!N$6,'Carbon Prices'!$D$9:$CP$9,0))/1000,0)","v":3.7951336832689468E-2},{"$f":"IFERROR(INDEX('Carbon Prices'!$D$10:$CP$15,1,MATCH(Calc_Proposed!O$6,'Carbon Prices'!$D$9:$CP$9,0))/1000,0)","v":4.2168152036321627E-2},{"$f":"IFERROR(INDEX('Carbon Prices'!$D$10:$CP$15,1,MATCH(Calc_Proposed!P$6,'Carbon Prices'!$D$9:$CP$9,0))/1000,0)","v":4.6083766153980084E-2},{"$f":"IFERROR(INDEX('Carbon Prices'!$D$10:$CP$15,1,MATCH(Calc_Proposed!Q$6,'Carbon Prices'!$D$9:$CP$9,0))/1000,0)","v":4.999938027163852E-2},{"$f":"IFERROR(INDEX('Carbon Prices'!$D$10:$CP$15,1,MATCH(Calc_Proposed!R$6,'Carbon Prices'!$D$9:$CP$9,0))/1000,0)","v":5.3914994389296957E-2},{"$f":"IFERROR(INDEX('Carbon Prices'!$D$10:$CP$15,1,MATCH(Calc_Proposed!S$6,'Carbon Prices'!$D$9:$CP$9,0))/1000,0)","v":5.78306085069554E-2},{"$f":"IFERROR(INDEX('Carbon Prices'!$D$10:$CP$15,1,MATCH(Calc_Proposed!T$6,'Carbon Prices'!$D$9:$CP$9,0))/1000,0)","v":6.1746222624613836E-2},{"$f":"IFERROR(INDEX('Carbon Prices'!$D$10:$CP$15,1,MATCH(Calc_Proposed!U$6,'Carbon Prices'!$D$9:$CP$9,0))/1000,0)","v":6.5661836742272273E-2},{"$f":"IFERROR(INDEX('Carbon Prices'!$D$10:$CP$15,1,MATCH(Calc_Proposed!V$6,'Carbon Prices'!$D$9:$CP$9,0))/1000,0)","v":6.9577450859930709E-2},{"$f":"IFERROR(INDEX('Carbon Prices'!$D$10:$CP$15,1,MATCH(Calc_Proposed!W$6,'Carbon Prices'!$D$9:$CP$9,0))/1000,0)","v":7.3493064977589145E-2},{"$f":"IFERROR(INDEX('Carbon Prices'!$D$10:$CP$15,1,MATCH(Calc_Proposed!X$6,'Carbon Prices'!$D$9:$CP$9,0))/1000,0)","v":7.7408679095247609E-2},{"$f":"IFERROR(INDEX('Carbon Prices'!$D$10:$CP$15,1,MATCH(Calc_Proposed!Y$6,'Carbon Prices'!$D$9:$CP$9,0))/1000,0)","v":8.1324293212906046E-2},{"$f":"IFERROR(INDEX('Carbon Prices'!$D$10:$CP$15,1,MATCH(Calc_Proposed!Z$6,'Carbon Prices'!$D$9:$CP$9,0))/1000,0)","v":8.5239907330564482E-2},{"$f":"IFERROR(INDEX('Carbon Prices'!$D$10:$CP$15,1,MATCH(Calc_Proposed!AA$6,'Carbon Prices'!$D$9:$CP$9,0))/1000,0)","v":8.9155521448222919E-2},{"$f":"IFERROR(INDEX('Carbon Prices'!$D$10:$CP$15,1,MATCH(Calc_Proposed!AB$6,'Carbon Prices'!$D$9:$CP$9,0))/1000,0)","v":9.3071135565881355E-2},{"$f":"IFERROR(INDEX('Carbon Prices'!$D$10:$CP$15,1,MATCH(Calc_Proposed!AC$6,'Carbon Prices'!$D$9:$CP$9,0))/1000,0)","v":9.6986749683539791E-2},{"$f":"IFERROR(INDEX('Carbon Prices'!$D$10:$CP$15,1,MATCH(Calc_Proposed!AD$6,'Carbon Prices'!$D$9:$CP$9,0))/1000,0)","v":0.10090236380119821},{"$f":"IFERROR(INDEX('Carbon Prices'!$D$10:$CP$15,1,MATCH(Calc_Proposed!AE$6,'Carbon Prices'!$D$9:$CP$9,0))/1000,0)","v":0.10481797791885665},{"$f":"IFERROR(INDEX('Carbon Prices'!$D$10:$CP$15,1,MATCH(Calc_Proposed!AF$6,'Carbon Prices'!$D$9:$CP$9,0))/1000,0)","v":0.1087335920365151},{"$f":"IFERROR(INDEX('Carbon Prices'!$D$10:$CP$15,1,MATCH(Calc_Proposed!AG$6,'Carbon Prices'!$D$9:$CP$9,0))/1000,0)","v":0.11264920615417354},{"$f":"IFERROR(INDEX('Carbon Prices'!$D$10:$CP$15,1,MATCH(Calc_Proposed!AH$6,'Carbon Prices'!$D$9:$CP$9,0))/1000,0)","v":0.11656482027183197},{"$f":"IFERROR(INDEX('Carbon Prices'!$D$10:$CP$15,1,MATCH(Calc_Proposed!AI$6,'Carbon Prices'!$D$9:$CP$9,0))/1000,0)","v":0},{"$f":"IFERROR(INDEX('Carbon Prices'!$D$10:$CP$15,1,MATCH(Calc_Proposed!AJ$6,'Carbon Prices'!$D$9:$CP$9,0))/1000,0)","v":0},{"$f":"IFERROR(INDEX('Carbon Prices'!$D$10:$CP$15,1,MATCH(Calc_Proposed!AK$6,'Carbon Prices'!$D$9:$CP$9,0))/1000,0)","v":0},{"$f":"IFERROR(INDEX('Carbon Prices'!$D$10:$CP$15,1,MATCH(Calc_Proposed!AL$6,'Carbon Prices'!$D$9:$CP$9,0))/1000,0)","v":0},{"$f":"IFERROR(INDEX('Carbon Prices'!$D$10:$CP$15,1,MATCH(Calc_Proposed!AM$6,'Carbon Prices'!$D$9:$CP$9,0))/1000,0)","v":0},{"$f":"IFERROR(INDEX('Carbon Prices'!$D$10:$CP$15,1,MATCH(Calc_Proposed!AN$6,'Carbon Prices'!$D$9:$CP$9,0))/1000,0)","v":0},{"$f":"IFERROR(INDEX('Carbon Prices'!$D$10:$CP$15,1,MATCH(Calc_Proposed!AO$6,'Carbon Prices'!$D$9:$CP$9,0))/1000,0)","v":0},{"$f":"IFERROR(INDEX('Carbon Prices'!$D$10:$CP$15,1,MATCH(Calc_Proposed!AP$6,'Carbon Prices'!$D$9:$CP$9,0))/1000,0)","v":0},{"$f":"IFERROR(INDEX('Carbon Prices'!$D$10:$CP$15,1,MATCH(Calc_Proposed!AQ$6,'Carbon Prices'!$D$9:$CP$9,0))/1000,0)","v":0},{"$f":"IFERROR(INDEX('Carbon Prices'!$D$10:$CP$15,1,MATCH(Calc_Proposed!AR$6,'Carbon Prices'!$D$9:$CP$9,0))/1000,0)","v":0},{"$f":"IFERROR(INDEX('Carbon Prices'!$D$10:$CP$15,1,MATCH(Calc_Proposed!AS$6,'Carbon Prices'!$D$9:$CP$9,0))/1000,0)","v":0},{"$f":"IFERROR(INDEX('Carbon Prices'!$D$10:$CP$15,1,MATCH(Calc_Proposed!AT$6,'Carbon Prices'!$D$9:$CP$9,0))/1000,0)","v":0},{"$f":"IFERROR(INDEX('Carbon Prices'!$D$10:$CP$15,1,MATCH(Calc_Proposed!AU$6,'Carbon Prices'!$D$9:$CP$9,0))/1000,0)","v":0},{"$f":"IFERROR(INDEX('Carbon Prices'!$D$10:$CP$15,1,MATCH(Calc_Proposed!AV$6,'Carbon Prices'!$D$9:$CP$9,0))/1000,0)","v":0},{"$f":"IFERROR(INDEX('Carbon Prices'!$D$10:$CP$15,1,MATCH(Calc_Proposed!AW$6,'Carbon Prices'!$D$9:$CP$9,0))/1000,0)","v":0},{"$f":"IFERROR(INDEX('Carbon Prices'!$D$10:$CP$15,1,MATCH(Calc_Proposed!AX$6,'Carbon Prices'!$D$9:$CP$9,0))/1000,0)","v":0},{"$f":"IFERROR(INDEX('Carbon Prices'!$D$10:$CP$15,1,MATCH(Calc_Proposed!AY$6,'Carbon Prices'!$D$9:$CP$9,0))/1000,0)","v":0},{"$f":"IFERROR(INDEX('Carbon Prices'!$D$10:$CP$15,1,MATCH(Calc_Proposed!AZ$6,'Carbon Prices'!$D$9:$CP$9,0))/1000,0)","v":0},{"$f":"IFERROR(INDEX('Carbon Prices'!$D$10:$CP$15,1,MATCH(Calc_Proposed!BA$6,'Carbon Prices'!$D$9:$CP$9,0))/1000,0)","v":0},{"$f":"IFERROR(INDEX('Carbon Prices'!$D$10:$CP$15,1,MATCH(Calc_Proposed!BB$6,'Carbon Prices'!$D$9:$CP$9,0))/1000,0)","v":0},{"$f":"IFERROR(INDEX('Carbon Prices'!$D$10:$CP$15,1,MATCH(Calc_Proposed!BC$6,'Carbon Prices'!$D$9:$CP$9,0))/1000,0)","v":0},{"$f":"IFERROR(INDEX('Carbon Prices'!$D$10:$CP$15,1,MATCH(Calc_Proposed!BD$6,'Carbon Prices'!$D$9:$CP$9,0))/1000,0)","v":0},{"$f":"IFERROR(INDEX('Carbon Prices'!$D$10:$CP$15,1,MATCH(Calc_Proposed!BE$6,'Carbon Prices'!$D$9:$CP$9,0))/1000,0)","v":0},{"$f":"IFERROR(INDEX('Carbon Prices'!$D$10:$CP$15,1,MATCH(Calc_Proposed!BF$6,'Carbon Prices'!$D$9:$CP$9,0))/1000,0)","v":0},{"$f":"IFERROR(INDEX('Carbon Prices'!$D$10:$CP$15,1,MATCH(Calc_Proposed!BG$6,'Carbon Prices'!$D$9:$CP$9,0))/1000,0)","v":0},{"$f":"IFERROR(INDEX('Carbon Prices'!$D$10:$CP$15,1,MATCH(Calc_Proposed!BH$6,'Carbon Prices'!$D$9:$CP$9,0))/1000,0)","v":0},{"$f":"IFERROR(INDEX('Carbon Prices'!$D$10:$CP$15,1,MATCH(Calc_Proposed!BI$6,'Carbon Prices'!$D$9:$CP$9,0))/1000,0)","v":0},{"$f":"IFERROR(INDEX('Carbon Prices'!$D$10:$CP$15,1,MATCH(Calc_Proposed!BJ$6,'Carbon Prices'!$D$9:$CP$9,0))/1000,0)","v":0},{"$f":"IFERROR(INDEX('Carbon Prices'!$D$10:$CP$15,1,MATCH(Calc_Proposed!BK$6,'Carbon Prices'!$D$9:$CP$9,0))/1000,0)","v":0},{"$f":"IFERROR(INDEX('Carbon Prices'!$D$10:$CP$15,1,MATCH(Calc_Proposed!BL$6,'Carbon Prices'!$D$9:$CP$9,0))/1000,0)","v":0},{"$f":"IFERROR(INDEX('Carbon Prices'!$D$10:$CP$15,1,MATCH(Calc_Proposed!BM$6,'Carbon Prices'!$D$9:$CP$9,0))/1000,0)","v":0},{"$f":"IFERROR(INDEX('Carbon Prices'!$D$10:$CP$15,1,MATCH(Calc_Proposed!BN$6,'Carbon Prices'!$D$9:$CP$9,0))/1000,0)","v":0},{"$f":"IFERROR(INDEX('Carbon Prices'!$D$10:$CP$15,1,MATCH(Calc_Proposed!BO$6,'Carbon Prices'!$D$9:$CP$9,0))/1000,0)","v":0},{"$f":"IFERROR(INDEX('Carbon Prices'!$D$10:$CP$15,1,MATCH(Calc_Proposed!BP$6,'Carbon Prices'!$D$9:$CP$9,0))/1000,0)","v":0},{"$f":"IFERROR(INDEX('Carbon Prices'!$D$10:$CP$15,1,MATCH(Calc_Proposed!BQ$6,'Carbon Prices'!$D$9:$CP$9,0))/1000,0)","v":0},{"$f":"IFERROR(INDEX('Carbon Prices'!$D$10:$CP$15,1,MATCH(Calc_Proposed!BR$6,'Carbon Prices'!$D$9:$CP$9,0))/1000,0)","v":0},{"$f":"IFERROR(INDEX('Carbon Prices'!$D$10:$CP$15,1,MATCH(Calc_Proposed!BS$6,'Carbon Prices'!$D$9:$CP$9,0))/1000,0)","v":0},{"$f":"IFERROR(INDEX('Carbon Prices'!$D$10:$CP$15,1,MATCH(Calc_Proposed!BT$6,'Carbon Prices'!$D$9:$CP$9,0))/1000,0)","v":0},{"$f":"IFERROR(INDEX('Carbon Prices'!$D$10:$CP$15,1,MATCH(Calc_Proposed!BU$6,'Carbon Prices'!$D$9:$CP$9,0))/1000,0)","v":0},{"$f":"IFERROR(INDEX('Carbon Prices'!$D$10:$CP$15,1,MATCH(Calc_Proposed!BV$6,'Carbon Prices'!$D$9:$CP$9,0))/1000,0)","v":0},{"$f":"IFERROR(INDEX('Carbon Prices'!$D$10:$CP$15,1,MATCH(Calc_Proposed!BW$6,'Carbon Prices'!$D$9:$CP$9,0))/1000,0)","v":0},{"$f":"IFERROR(INDEX('Carbon Prices'!$D$10:$CP$15,1,MATCH(Calc_Proposed!BX$6,'Carbon Prices'!$D$9:$CP$9,0))/1000,0)","v":0},{"$f":"IFERROR(INDEX('Carbon Prices'!$D$10:$CP$15,1,MATCH(Calc_Proposed!BY$6,'Carbon Prices'!$D$9:$CP$9,0))/1000,0)","v":0},{"$f":"IFERROR(INDEX('Carbon Prices'!$D$10:$CP$15,1,MATCH(Calc_Proposed!BZ$6,'Carbon Prices'!$D$9:$CP$9,0))/1000,0)","v":0},{"$f":"IFERROR(INDEX('Carbon Prices'!$D$10:$CP$15,1,MATCH(Calc_Proposed!CA$6,'Carbon Prices'!$D$9:$CP$9,0))/1000,0)","v":0},{"$f":"IFERROR(INDEX('Carbon Prices'!$D$10:$CP$15,1,MATCH(Calc_Proposed!CB$6,'Carbon Prices'!$D$9:$CP$9,0))/1000,0)","v":0},{"$f":"IFERROR(INDEX('Carbon Prices'!$D$10:$CP$15,1,MATCH(Calc_Proposed!CC$6,'Carbon Prices'!$D$9:$CP$9,0))/1000,0)","v":0},{"$f":"IFERROR(INDEX('Carbon Prices'!$D$10:$CP$15,1,MATCH(Calc_Proposed!CD$6,'Carbon Prices'!$D$9:$CP$9,0))/1000,0)","v":0},{"$f":"IFERROR(INDEX('Carbon Prices'!$D$10:$CP$15,1,MATCH(Calc_Proposed!CE$6,'Carbon Prices'!$D$9:$CP$9,0))/1000,0)","v":0},{"$f":"IFERROR(INDEX('Carbon Prices'!$D$10:$CP$15,1,MATCH(Calc_Proposed!CF$6,'Carbon Prices'!$D$9:$CP$9,0))/1000,0)","v":0},{"$f":"IFERROR(INDEX('Carbon Prices'!$D$10:$CP$15,1,MATCH(Calc_Proposed!CG$6,'Carbon Prices'!$D$9:$CP$9,0))/1000,0)","v":0},{"$f":"IFERROR(INDEX('Carbon Prices'!$D$10:$CP$15,1,MATCH(Calc_Proposed!CH$6,'Carbon Prices'!$D$9:$CP$9,0))/1000,0)","v":0},{"$f":"IFERROR(INDEX('Carbon Prices'!$D$10:$CP$15,1,MATCH(Calc_Proposed!CI$6,'Carbon Prices'!$D$9:$CP$9,0))/1000,0)","v":0},{"$f":"IFERROR(INDEX('Carbon Prices'!$D$10:$CP$15,1,MATCH(Calc_Proposed!CJ$6,'Carbon Prices'!$D$9:$CP$9,0))/1000,0)","v":0},{"$f":"IFERROR(INDEX('Carbon Prices'!$D$10:$CP$15,1,MATCH(Calc_Proposed!CK$6,'Carbon Prices'!$D$9:$CP$9,0))/1000,0)","v":0},{"$f":"IFERROR(INDEX('Carbon Prices'!$D$10:$CP$15,1,MATCH(Calc_Proposed!CL$6,'Carbon Prices'!$D$9:$CP$9,0))/1000,0)","v":0},{"$f":"IFERROR(INDEX('Carbon Prices'!$D$10:$CP$15,1,MATCH(Calc_Proposed!CM$6,'Carbon Prices'!$D$9:$CP$9,0))/1000,0)","v":0},{"$f":"IFERROR(INDEX('Carbon Prices'!$D$10:$CP$15,1,MATCH(Calc_Proposed!CN$6,'Carbon Prices'!$D$9:$CP$9,0))/1000,0)","v":0},{"$f":"IFERROR(INDEX('Carbon Prices'!$D$10:$CP$15,1,MATCH(Calc_Proposed!CO$6,'Carbon Prices'!$D$9:$CP$9,0))/1000,0)","v":0},{"$f":"IFERROR(INDEX('Carbon Prices'!$D$10:$CP$15,1,MATCH(Calc_Proposed!CP$6,'Carbon Prices'!$D$9:$CP$9,0))/1000,0)","v":0},{"$f":"IFERROR(INDEX('Carbon Prices'!$D$10:$CP$15,1,MATCH(Calc_Proposed!CQ$6,'Carbon Prices'!$D$9:$CP$9,0))/1000,0)","v":0},{"$f":"IFERROR(INDEX('Carbon Prices'!$D$10:$CP$15,1,MATCH(Calc_Proposed!CR$6,'Carbon Prices'!$D$9:$CP$9,0))/1000,0)","v":0},{"$f":"IFERROR(INDEX('Carbon Prices'!$D$10:$CP$15,1,MATCH(Calc_Proposed!CS$6,'Carbon Prices'!$D$9:$CP$9,0))/1000,0)","v":0},{"$f":"IFERROR(INDEX('Carbon Prices'!$D$10:$CP$15,1,MATCH(Calc_Proposed!CT$6,'Carbon Prices'!$D$9:$CP$9,0))/1000,0)","v":0},{"$f":"IFERROR(INDEX('Carbon Prices'!$D$10:$CP$15,1,MATCH(Calc_Proposed!CU$6,'Carbon Prices'!$D$9:$CP$9,0))/1000,0)","v":0},{"$f":"IFERROR(INDEX('Carbon Prices'!$D$10:$CP$15,1,MATCH(Calc_Proposed!CV$6,'Carbon Prices'!$D$9:$CP$9,0))/1000,0)","v":0},{"$f":"IFERROR(INDEX('Carbon Prices'!$D$10:$CP$15,1,MATCH(Calc_Proposed!CW$6,'Carbon Prices'!$D$9:$CP$9,0))/1000,0)","v":0},{"$f":"IFERROR(INDEX('Carbon Prices'!$D$10:$CP$15,1,MATCH(Calc_Proposed!CX$6,'Carbon Prices'!$D$9:$CP$9,0))/1000,0)","v":0},{"$f":"IFERROR(INDEX('Carbon Prices'!$D$10:$CP$15,1,MATCH(Calc_Proposed!CY$6,'Carbon Prices'!$D$9:$CP$9,0))/1000,0)","v":0}]
[null,"Total NON-TRADED","£000's",{"$f":"IFERROR(INDEX('Carbon Prices'!$D$10:$CP$15,4,MATCH(Calc_Proposed!D$6,'Carbon Prices'!$D$9:$CP$9,0))/1000,0)","v":3.560998060773117E-2},{"$f":"IFERROR(INDEX('Carbon Prices'!$D$10:$CP$15,4,MATCH(Calc_Proposed!E$6,'Carbon Prices'!$D$9:$CP$9,0))/1000,0)","v":3.6144130316847128E-2},{"$f":"IFERROR(INDEX('Carbon Prices'!$D$10:$CP$15,4,MATCH(Calc_Proposed!F$6,'Carbon Prices'!$D$9:$CP$9,0))/1000,0)","v":3.6746532488794573E-2},{"$f":"IFERROR(INDEX('Carbon Prices'!$D$10:$CP$15,4,MATCH(Calc_Proposed!G$6,'Carbon Prices'!$D$9:$CP$9,0))/1000,0)","v":3.7348934660742031E-2},{"$f":"IFERROR(INDEX('Carbon Prices'!$D$10:$CP$15,4,MATCH(Calc_Proposed!H$6,'Carbon Prices'!$D$9:$CP$9,0))/1000,0)","v":3.7951336832689482E-2},{"$f":"IFERROR(INDEX('Carbon Prices'!$D$10:$CP$15,4,MATCH(Calc_Proposed!I$6,'Carbon Prices'!$D$9:$CP$9,0))/1000,0)","v":3.8553739004636933E-2},{"$f":"IFERROR(INDEX('Carbon Prices'!$D$10:$CP$15,4,MATCH(Calc_Proposed!J$6,'Carbon Prices'!$D$9:$CP$9,0))/1000,0)","v":3.9156141176584384E-2},{"$f":"IFERROR(INDEX('Carbon Prices'!$D$10:$CP$15,4,MATCH(Calc_Proposed!K$6,'Carbon Prices'!$D$9:$CP$9,0))/1000,0)","v":3.9758543348531836E-2},{"$f":"IFERROR(INDEX('Carbon Prices'!$D$10:$CP$15,4,MATCH(Calc_Proposed!L$6,'Carbon Prices'!$D$9:$CP$9,0))/1000,0)","v":4.0360945520479294E-2},{"$f":"IFERROR(INDEX('Carbon Prices'!$D$10:$CP$15,4,MATCH(Calc_Proposed!M$6,'Carbon Prices'!$D$9:$CP$9,0))/1000,0)","v":4.0963347692426738E-2},{"$f":"IFERROR(INDEX('Carbon Prices'!$D$10:$CP$15,4,MATCH(Calc_Proposed!N$6,'Carbon Prices'!$D$9:$CP$9,0))/1000,0)","v":4.1565749864374189E-2},{"$f":"IFERROR(INDEX('Carbon Prices'!$D$10:$CP$15,4,MATCH(Calc_Proposed!O$6,'Carbon Prices'!$D$9:$CP$9,0))/1000,0)","v":4.2168152036321647E-2},{"$f":"IFERROR(INDEX('Carbon Prices'!$D$10:$CP$15,4,MATCH(Calc_Proposed!P$6,'Carbon Prices'!$D$9:$CP$9,0))/1000,0)","v":4.6083766153980084E-2},{"$f":"IFERROR(INDEX('Carbon Prices'!$D$10:$CP$15,4,MATCH(Calc_Proposed!Q$6,'Carbon Prices'!$D$9:$CP$9,0))/1000,0)","v":4.999938027163852E-2},{"$f":"IFERROR(INDEX('Carbon Prices'!$D$10:$CP$15,4,MATCH(Calc_Proposed!R$6,'Carbon Prices'!$D$9:$CP$9,0))/1000,0)","v":5.3914994389296957E-2},{"$f":"IFERROR(INDEX('Carbon Prices'!$D$10:$CP$15,4,MATCH(Calc_Proposed!S$6,'Carbon Prices'!$D$9:$CP$9,0))/1000,0)","v":5.78306085069554E-2},{"$f":"IFERROR(INDEX('Carbon Prices'!$D$10:$CP$15,4,MATCH(Calc_Proposed!T$6,'Carbon Prices'!$D$9:$CP$9,0))/1000,0)","v":6.1746222624613836E-2},{"$f":"IFERROR(INDEX('Carbon Prices'!$D$10:$CP$15,4,MATCH(Calc_Proposed!U$6,'Carbon Prices'!$D$9:$CP$9,0))/1000,0)","v":6.5661836742272273E-2},{"$f":"IFERROR(INDEX('Carbon Prices'!$D$10:$CP$15,4,MATCH(Calc_Proposed!V$6,'Carbon Prices'!$D$9:$CP$9,0))/1000,0)","v":6.9577450859930709E-2},{"$f":"IFERROR(INDEX('Carbon Prices'!$D$10:$CP$15,4,MATCH(Calc_Proposed!W$6,'Carbon Prices'!$D$9:$CP$9,0))/1000,0)","v":7.3493064977589145E-2},{"$f":"IFERROR(INDEX('Carbon Prices'!$D$10:$CP$15,4,MATCH(Calc_Proposed!X$6,'Carbon Prices'!$D$9:$CP$9,0))/1000,0)","v":7.7408679095247609E-2},{"$f":"IFERROR(INDEX('Carbon Prices'!$D$10:$CP$15,4,MATCH(Calc_Proposed!Y$6,'Carbon Prices'!$D$9:$CP$9,0))/1000,0)","v":8.1324293212906046E-2},{"$f":"IFERROR(INDEX('Carbon Prices'!$D$10:$CP$15,4,MATCH(Calc_Proposed!Z$6,'Carbon Prices'!$D$9:$CP$9,0))/1000,0)","v":8.5239907330564482E-2},{"$f":"IFERROR(INDEX('Carbon Prices'!$D$10:$CP$15,4,MATCH(Calc_Proposed!AA$6,'Carbon Prices'!$D$9:$CP$9,0))/1000,0)","v":8.9155521448222919E-2},{"$f":"IFERROR(INDEX('Carbon Prices'!$D$10:$CP$15,4,MATCH(Calc_Proposed!AB$6,'Carbon Prices'!$D$9:$CP$9,0))/1000,0)","v":9.3071135565881355E-2},{"$f":"IFERROR(INDEX('Carbon Prices'!$D$10:$CP$15,4,MATCH(Calc_Proposed!AC$6,'Carbon Prices'!$D$9:$CP$9,0))/1000,0)","v":9.6986749683539791E-2},{"$f":"IFERROR(INDEX('Carbon Prices'!$D$10:$CP$15,4,MATCH(Calc_Proposed!AD$6,'Carbon Prices'!$D$9:$CP$9,0))/1000,0)","v":0.10090236380119821},{"$f":"IFERROR(INDEX('Carbon Prices'!$D$10:$CP$15,4,MATCH(Calc_Proposed!AE$6,'Carbon Prices'!$D$9:$CP$9,0))/1000,0)","v":0.10481797791885665},{"$f":"IFERROR(INDEX('Carbon Prices'!$D$10:$CP$15,4,MATCH(Calc_Proposed!AF$6,'Carbon Prices'!$D$9:$CP$9,0))/1000,0)","v":0.1087335920365151},{"$f":"IFERROR(INDEX('Carbon Prices'!$D$10:$CP$15,4,MATCH(Calc_Proposed!AG$6,'Carbon Prices'!$D$9:$CP$9,0))/1000,0)","v":0.11264920615417354},{"$f":"IFERROR(INDEX('Carbon Prices'!$D$10:$CP$15,4,MATCH(Calc_Proposed!AH$6,'Carbon Prices'!$D$9:$CP$9,0))/1000,0)","v":0.11656482027183197},{"$f":"IFERROR(INDEX('Carbon Prices'!$D$10:$CP$15,4,MATCH(Calc_Proposed!AI$6,'Carbon Prices'!$D$9:$CP$9,0))/1000,0)","v":0},{"$f":"IFERROR(INDEX('Carbon Prices'!$D$10:$CP$15,4,MATCH(Calc_Proposed!AJ$6,'Carbon Prices'!$D$9:$CP$9,0))/1000,0)","v":0},{"$f":"IFERROR(INDEX('Carbon Prices'!$D$10:$CP$15,4,MATCH(Calc_Proposed!AK$6,'Carbon Prices'!$D$9:$CP$9,0))/1000,0)","v":0},{"$f":"IFERROR(INDEX('Carbon Prices'!$D$10:$CP$15,4,MATCH(Calc_Proposed!AL$6,'Carbon Prices'!$D$9:$CP$9,0))/1000,0)","v":0},{"$f":"IFERROR(INDEX('Carbon Prices'!$D$10:$CP$15,4,MATCH(Calc_Proposed!AM$6,'Carbon Prices'!$D$9:$CP$9,0))/1000,0)","v":0},{"$f":"IFERROR(INDEX('Carbon Prices'!$D$10:$CP$15,4,MATCH(Calc_Proposed!AN$6,'Carbon Prices'!$D$9:$CP$9,0))/1000,0)","v":0},{"$f":"IFERROR(INDEX('Carbon Prices'!$D$10:$CP$15,4,MATCH(Calc_Proposed!AO$6,'Carbon Prices'!$D$9:$CP$9,0))/1000,0)","v":0},{"$f":"IFERROR(INDEX('Carbon Prices'!$D$10:$CP$15,4,MATCH(Calc_Proposed!AP$6,'Carbon Prices'!$D$9:$CP$9,0))/1000,0)","v":0},{"$f":"IFERROR(INDEX('Carbon Prices'!$D$10:$CP$15,4,MATCH(Calc_Proposed!AQ$6,'Carbon Prices'!$D$9:$CP$9,0))/1000,0)","v":0},{"$f":"IFERROR(INDEX('Carbon Prices'!$D$10:$CP$15,4,MATCH(Calc_Proposed!AR$6,'Carbon Prices'!$D$9:$CP$9,0))/1000,0)","v":0},{"$f":"IFERROR(INDEX('Carbon Prices'!$D$10:$CP$15,4,MATCH(Calc_Proposed!AS$6,'Carbon Prices'!$D$9:$CP$9,0))/1000,0)","v":0},{"$f":"IFERROR(INDEX('Carbon Prices'!$D$10:$CP$15,4,MATCH(Calc_Proposed!AT$6,'Carbon Prices'!$D$9:$CP$9,0))/1000,0)","v":0},{"$f":"IFERROR(INDEX('Carbon Prices'!$D$10:$CP$15,4,MATCH(Calc_Proposed!AU$6,'Carbon Prices'!$D$9:$CP$9,0))/1000,0)","v":0},{"$f":"IFERROR(INDEX('Carbon Prices'!$D$10:$CP$15,4,MATCH(Calc_Proposed!AV$6,'Carbon Prices'!$D$9:$CP$9,0))/1000,0)","v":0},{"$f":"IFERROR(INDEX('Carbon Prices'!$D$10:$CP$15,4,MATCH(Calc_Proposed!AW$6,'Carbon Prices'!$D$9:$CP$9,0))/1000,0)","v":0},{"$f":"IFERROR(INDEX('Carbon Prices'!$D$10:$CP$15,4,MATCH(Calc_Proposed!AX$6,'Carbon Prices'!$D$9:$CP$9,0))/1000,0)","v":0},{"$f":"IFERROR(INDEX('Carbon Prices'!$D$10:$CP$15,4,MATCH(Calc_Proposed!AY$6,'Carbon Prices'!$D$9:$CP$9,0))/1000,0)","v":0},{"$f":"IFERROR(INDEX('Carbon Prices'!$D$10:$CP$15,4,MATCH(Calc_Proposed!AZ$6,'Carbon Prices'!$D$9:$CP$9,0))/1000,0)","v":0},{"$f":"IFERROR(INDEX('Carbon Prices'!$D$10:$CP$15,4,MATCH(Calc_Proposed!BA$6,'Carbon Prices'!$D$9:$CP$9,0))/1000,0)","v":0},{"$f":"IFERROR(INDEX('Carbon Prices'!$D$10:$CP$15,4,MATCH(Calc_Proposed!BB$6,'Carbon Prices'!$D$9:$CP$9,0))/1000,0)","v":0},{"$f":"IFERROR(INDEX('Carbon Prices'!$D$10:$CP$15,4,MATCH(Calc_Proposed!BC$6,'Carbon Prices'!$D$9:$CP$9,0))/1000,0)","v":0},{"$f":"IFERROR(INDEX('Carbon Prices'!$D$10:$CP$15,4,MATCH(Calc_Proposed!BD$6,'Carbon Prices'!$D$9:$CP$9,0))/1000,0)","v":0},{"$f":"IFERROR(INDEX('Carbon Prices'!$D$10:$CP$15,4,MATCH(Calc_Proposed!BE$6,'Carbon Prices'!$D$9:$CP$9,0))/1000,0)","v":0},{"$f":"IFERROR(INDEX('Carbon Prices'!$D$10:$CP$15,4,MATCH(Calc_Proposed!BF$6,'Carbon Prices'!$D$9:$CP$9,0))/1000,0)","v":0},{"$f":"IFERROR(INDEX('Carbon Prices'!$D$10:$CP$15,4,MATCH(Calc_Proposed!BG$6,'Carbon Prices'!$D$9:$CP$9,0))/1000,0)","v":0},{"$f":"IFERROR(INDEX('Carbon Prices'!$D$10:$CP$15,4,MATCH(Calc_Proposed!BH$6,'Carbon Prices'!$D$9:$CP$9,0))/1000,0)","v":0},{"$f":"IFERROR(INDEX('Carbon Prices'!$D$10:$CP$15,4,MATCH(Calc_Proposed!BI$6,'Carbon Prices'!$D$9:$CP$9,0))/1000,0)","v":0},{"$f":"IFERROR(INDEX('Carbon Prices'!$D$10:$CP$15,4,MATCH(Calc_Proposed!BJ$6,'Carbon Prices'!$D$9:$CP$9,0))/1000,0)","v":0},{"$f":"IFERROR(INDEX('Carbon Prices'!$D$10:$CP$15,4,MATCH(Calc_Proposed!BK$6,'Carbon Prices'!$D$9:$CP$9,0))/1000,0)","v":0},{"$f":"IFERROR(INDEX('Carbon Prices'!$D$10:$CP$15,4,MATCH(Calc_Proposed!BL$6,'Carbon Prices'!$D$9:$CP$9,0))/1000,0)","v":0},{"$f":"IFERROR(INDEX('Carbon Prices'!$D$10:$CP$15,4,MATCH(Calc_Proposed!BM$6,'Carbon Prices'!$D$9:$CP$9,0))/1000,0)","v":0},{"$f":"IFERROR(INDEX('Carbon Prices'!$D$10:$CP$15,4,MATCH(Calc_Proposed!BN$6,'Carbon Prices'!$D$9:$CP$9,0))/1000,0)","v":0},{"$f":"IFERROR(INDEX('Carbon Prices'!$D$10:$CP$15,4,MATCH(Calc_Proposed!BO$6,'Carbon Prices'!$D$9:$CP$9,0))/1000,0)","v":0},{"$f":"IFERROR(INDEX('Carbon Prices'!$D$10:$CP$15,4,MATCH(Calc_Proposed!BP$6,'Carbon Prices'!$D$9:$CP$9,0))/1000,0)","v":0},{"$f":"IFERROR(INDEX('Carbon Prices'!$D$10:$CP$15,4,MATCH(Calc_Proposed!BQ$6,'Carbon Prices'!$D$9:$CP$9,0))/1000,0)","v":0},{"$f":"IFERROR(INDEX('Carbon Prices'!$D$10:$CP$15,4,MATCH(Calc_Proposed!BR$6,'Carbon Prices'!$D$9:$CP$9,0))/1000,0)","v":0},{"$f":"IFERROR(INDEX('Carbon Prices'!$D$10:$CP$15,4,MATCH(Calc_Proposed!BS$6,'Carbon Prices'!$D$9:$CP$9,0))/1000,0)","v":0},{"$f":"IFERROR(INDEX('Carbon Prices'!$D$10:$CP$15,4,MATCH(Calc_Proposed!BT$6,'Carbon Prices'!$D$9:$CP$9,0))/1000,0)","v":0},{"$f":"IFERROR(INDEX('Carbon Prices'!$D$10:$CP$15,4,MATCH(Calc_Proposed!BU$6,'Carbon Prices'!$D$9:$CP$9,0))/1000,0)","v":0},{"$f":"IFERROR(INDEX('Carbon Prices'!$D$10:$CP$15,4,MATCH(Calc_Proposed!BV$6,'Carbon Prices'!$D$9:$CP$9,0))/1000,0)","v":0},{"$f":"IFERROR(INDEX('Carbon Prices'!$D$10:$CP$15,4,MATCH(Calc_Proposed!BW$6,'Carbon Prices'!$D$9:$CP$9,0))/1000,0)","v":0},{"$f":"IFERROR(INDEX('Carbon Prices'!$D$10:$CP$15,4,MATCH(Calc_Proposed!BX$6,'Carbon Prices'!$D$9:$CP$9,0))/1000,0)","v":0},{"$f":"IFERROR(INDEX('Carbon Prices'!$D$10:$CP$15,4,MATCH(Calc_Proposed!BY$6,'Carbon Prices'!$D$9:$CP$9,0))/1000,0)","v":0},{"$f":"IFERROR(INDEX('Carbon Prices'!$D$10:$CP$15,4,MATCH(Calc_Proposed!BZ$6,'Carbon Prices'!$D$9:$CP$9,0))/1000,0)","v":0},{"$f":"IFERROR(INDEX('Carbon Prices'!$D$10:$CP$15,4,MATCH(Calc_Proposed!CA$6,'Carbon Prices'!$D$9:$CP$9,0))/1000,0)","v":0},{"$f":"IFERROR(INDEX('Carbon Prices'!$D$10:$CP$15,4,MATCH(Calc_Proposed!CB$6,'Carbon Prices'!$D$9:$CP$9,0))/1000,0)","v":0},{"$f":"IFERROR(INDEX('Carbon Prices'!$D$10:$CP$15,4,MATCH(Calc_Proposed!CC$6,'Carbon Prices'!$D$9:$CP$9,0))/1000,0)","v":0},{"$f":"IFERROR(INDEX('Carbon Prices'!$D$10:$CP$15,4,MATCH(Calc_Proposed!CD$6,'Carbon Prices'!$D$9:$CP$9,0))/1000,0)","v":0},{"$f":"IFERROR(INDEX('Carbon Prices'!$D$10:$CP$15,4,MATCH(Calc_Proposed!CE$6,'Carbon Prices'!$D$9:$CP$9,0))/1000,0)","v":0},{"$f":"IFERROR(INDEX('Carbon Prices'!$D$10:$CP$15,4,MATCH(Calc_Proposed!CF$6,'Carbon Prices'!$D$9:$CP$9,0))/1000,0)","v":0},{"$f":"IFERROR(INDEX('Carbon Prices'!$D$10:$CP$15,4,MATCH(Calc_Proposed!CG$6,'Carbon Prices'!$D$9:$CP$9,0))/1000,0)","v":0},{"$f":"IFERROR(INDEX('Carbon Prices'!$D$10:$CP$15,4,MATCH(Calc_Proposed!CH$6,'Carbon Prices'!$D$9:$CP$9,0))/1000,0)","v":0},{"$f":"IFERROR(INDEX('Carbon Prices'!$D$10:$CP$15,4,MATCH(Calc_Proposed!CI$6,'Carbon Prices'!$D$9:$CP$9,0))/1000,0)","v":0},{"$f":"IFERROR(INDEX('Carbon Prices'!$D$10:$CP$15,4,MATCH(Calc_Proposed!CJ$6,'Carbon Prices'!$D$9:$CP$9,0))/1000,0)","v":0},{"$f":"IFERROR(INDEX('Carbon Prices'!$D$10:$CP$15,4,MATCH(Calc_Proposed!CK$6,'Carbon Prices'!$D$9:$CP$9,0))/1000,0)","v":0},{"$f":"IFERROR(INDEX('Carbon Prices'!$D$10:$CP$15,4,MATCH(Calc_Proposed!CL$6,'Carbon Prices'!$D$9:$CP$9,0))/1000,0)","v":0},{"$f":"IFERROR(INDEX('Carbon Prices'!$D$10:$CP$15,4,MATCH(Calc_Proposed!CM$6,'Carbon Prices'!$D$9:$CP$9,0))/1000,0)","v":0},{"$f":"IFERROR(INDEX('Carbon Prices'!$D$10:$CP$15,4,MATCH(Calc_Proposed!CN$6,'Carbon Prices'!$D$9:$CP$9,0))/1000,0)","v":0},{"$f":"IFERROR(INDEX('Carbon Prices'!$D$10:$CP$15,4,MATCH(Calc_Proposed!CO$6,'Carbon Prices'!$D$9:$CP$9,0))/1000,0)","v":0},{"$f":"IFERROR(INDEX('Carbon Prices'!$D$10:$CP$15,4,MATCH(Calc_Proposed!CP$6,'Carbon Prices'!$D$9:$CP$9,0))/1000,0)","v":0},{"$f":"IFERROR(INDEX('Carbon Prices'!$D$10:$CP$15,4,MATCH(Calc_Proposed!CQ$6,'Carbon Prices'!$D$9:$CP$9,0))/1000,0)","v":0},{"$f":"IFERROR(INDEX('Carbon Prices'!$D$10:$CP$15,4,MATCH(Calc_Proposed!CR$6,'Carbon Prices'!$D$9:$CP$9,0))/1000,0)","v":0},{"$f":"IFERROR(INDEX('Carbon Prices'!$D$10:$CP$15,4,MATCH(Calc_Proposed!CS$6,'Carbon Prices'!$D$9:$CP$9,0))/1000,0)","v":0},{"$f":"IFERROR(INDEX('Carbon Prices'!$D$10:$CP$15,4,MATCH(Calc_Proposed!CT$6,'Carbon Prices'!$D$9:$CP$9,0))/1000,0)","v":0},{"$f":"IFERROR(INDEX('Carbon Prices'!$D$10:$CP$15,4,MATCH(Calc_Proposed!CU$6,'Carbon Prices'!$D$9:$CP$9,0))/1000,0)","v":0},{"$f":"IFERROR(INDEX('Carbon Prices'!$D$10:$CP$15,4,MATCH(Calc_Proposed!CV$6,'Carbon Prices'!$D$9:$CP$9,0))/1000,0)","v":0},{"$f":"IFERROR(INDEX('Carbon Prices'!$D$10:$CP$15,4,MATCH(Calc_Proposed!CW$6,'Carbon Prices'!$D$9:$CP$9,0))/1000,0)","v":0},{"$f":"IFERROR(INDEX('Carbon Prices'!$D$10:$CP$15,4,MATCH(Calc_Proposed!CX$6,'Carbon Prices'!$D$9:$CP$9,0))/1000,0)","v":0},{"$f":"IFERROR(INDEX('Carbon Prices'!$D$10:$CP$15,4,MATCH(Calc_Proposed!CY$6,'Carbon Prices'!$D$9:$CP$9,0))/1000,0)","v":0}]
[null,"Discounted total","£000's",{"$f":"(D118*D120)+(D119*D121)*D$7","v":0},{"$f":"(E118*E120)+(E119*E121)*E$7","v":0},364.28302247003927,727.96562513329218,1090.3896583908042,1454.449813495597,1817.0801912884338,2178.5430524899039,0,0,0,0,0,0,0,0,0,0,0,0,0,0,0,0,0,0,0,0,0,0,0,0,0,0,0,0,0,0,0,0,0,0,0,0,0,0,0,0,0,0,0,0,0,0,0,0,0,0,0,0,0,0,0,0,0,{"$f":"(BQ118*BQ120)+(BQ119*BQ121)*BQ$7","v":0},0,0,0,0,0,0,0,0,0,0,0,0,0,0,0,0,0,0,0,0,0,0,0,0,0,0,0,0,0,0,0,0,0,0]
[]
[]
[null,"High values"]
[]
[null,"Energy Consumption"]
[null,"Electricity","£000's",{"$f":"IFERROR('Data Input - Proposed'!H84*INDEX('Energy Prices'!$F$26:$CR$31,MATCH($B128,'Energy Prices'!$C$26:$C$31,0),MATCH(Calc_Proposed!D$6,'Energy Prices'!$F$11:$CR$11,0))/100000,0)","v":510.4472426746147},{"$f":"IFERROR('Data Input - Proposed'!I84*INDEX('Energy Prices'!$F$26:$CR$31,MATCH($B128,'Energy Prices'!$C$26:$C$31,0),MATCH(Calc_Proposed!E$6,'Energy Prices'!$F$11:$CR$11,0))/100000,0)","v":521.90154191402712},{"$f":"IFERROR('Data Input - Proposed'!J84*INDEX('Energy Prices'!$F$26:$CR$31,MATCH($B128,'Energy Prices'!$C$26:$C$31,0),MATCH(Calc_Proposed!F$6,'Energy Prices'!$F$11:$CR$11,0))/100000,0)","v":567.55914390054477},{"$f":"IFERROR('Data Input - Proposed'!K84*INDEX('Energy Prices'!$F$26:$CR$31,MATCH($B128,'Energy Prices'!$C$26:$C$31,0),MATCH(Calc_Proposed!G$6,'Energy Prices'!$F$11:$CR$11,0))/100000,0)","v":566.26766982012589},{"$f":"IFERROR('Data Input - Proposed'!L84*INDEX('Energy Prices'!$F$26:$CR$31,MATCH($B128,'Energy Prices'!$C$26:$C$31,0),MATCH(Calc_Proposed!H$6,'Energy Prices'!$F$11:$CR$11,0))/100000,0)","v":588.7100968226282},{"$f":"IFERROR('Data Input - Proposed'!M84*INDEX('Energy Prices'!$F$26:$CR$31,MATCH($B128,'Energy Prices'!$C$26:$C$31,0),MATCH(Calc_Proposed!I$6,'Energy Prices'!$F$11:$CR$11,0))/100000,0)","v":618.69761981242652},{"$f":"IFERROR('Data Input - Proposed'!N84*INDEX('Energy Prices'!$F$26:$CR$31,MATCH($B128,'Energy Prices'!$C$26:$C$31,0),MATCH(Calc_Proposed!J$6,'Energy Prices'!$F$11:$CR$11,0))/100000,0)","v":642.5681104029253},{"$f":"IFERROR('Data Input - Proposed'!O84*INDEX('Energy Prices'!$F$26:$CR$31,MATCH($B128,'Energy Prices'!$C$26:$C$31,0),MATCH(Calc_Proposed!K$6,'Energy Prices'!$F$11:$CR$11,0))/100000,0)","v":628.25817918514724},{"$f":"IFERROR('Data Input - Proposed'!P84*INDEX('Energy Prices'!$F$26:$CR$31,MATCH($B128,'Energy Prices'!$C$26:$C$31,0),MATCH(Calc_Proposed!L$6,'Energy Prices'!$F$11:$CR$11,0))/100000,0)","v":0},{"$f":"IFERROR('Data Input - Proposed'!Q84*INDEX('Energy Prices'!$F$26:$CR$31,MATCH($B128,'Energy Prices'!$C$26:$C$31,0),MATCH(Calc_Proposed!M$6,'Energy Prices'!$F$11:$CR$11,0))/100000,0)","v":0},{"$f":"IFERROR('Data Input - Proposed'!R84*INDEX('Energy Prices'!$F$26:$CR$31,MATCH($B128,'Energy Prices'!$C$26:$C$31,0),MATCH(Calc_Proposed!N$6,'Energy Prices'!$F$11:$CR$11,0))/100000,0)","v":0},{"$f":"IFERROR('Data Input - Proposed'!S84*INDEX('Energy Prices'!$F$26:$CR$31,MATCH($B128,'Energy Prices'!$C$26:$C$31,0),MATCH(Calc_Proposed!O$6,'Energy Prices'!$F$11:$CR$11,0))/100000,0)","v":0},{"$f":"IFERROR('Data Input - Proposed'!T84*INDEX('Energy Prices'!$F$26:$CR$31,MATCH($B128,'Energy Prices'!$C$26:$C$31,0),MATCH(Calc_Proposed!P$6,'Energy Prices'!$F$11:$CR$11,0))/100000,0)","v":0},{"$f":"IFERROR('Data Input - Proposed'!U84*INDEX('Energy Prices'!$F$26:$CR$31,MATCH($B128,'Energy Prices'!$C$26:$C$31,0),MATCH(Calc_Proposed!Q$6,'Energy Prices'!$F$11:$CR$11,0))/100000,0)","v":0},{"$f":"IFERROR('Data Input - Proposed'!V84*INDEX('Energy Prices'!$F$26:$CR$31,MATCH($B128,'Energy Prices'!$C$26:$C$31,0),MATCH(Calc_Proposed!R$6,'Energy Prices'!$F$11:$CR$11,0))/100000,0)","v":0},{"$f":"IFERROR('Data Input - Proposed'!W84*INDEX('Energy Prices'!$F$26:$CR$31,MATCH($B128,'Energy Prices'!$C$26:$C$31,0),MATCH(Calc_Proposed!S$6,'Energy Prices'!$F$11:$CR$11,0))/100000,0)","v":0},{"$f":"IFERROR('Data Input - Proposed'!X84*INDEX('Energy Prices'!$F$26:$CR$31,MATCH($B128,'Energy Prices'!$C$26:$C$31,0),MATCH(Calc_Proposed!T$6,'Energy Prices'!$F$11:$CR$11,0))/100000,0)","v":0},{"$f":"IFERROR('Data Input - Proposed'!Y84*INDEX('Energy Prices'!$F$26:$CR$31,MATCH($B128,'Energy Prices'!$C$26:$C$31,0),MATCH(Calc_Proposed!U$6,'Energy Prices'!$F$11:$CR$11,0))/100000,0)","v":0},{"$f":"IFERROR('Data Input - Proposed'!Z84*INDEX('Energy Prices'!$F$26:$CR$31,MATCH($B128,'Energy Prices'!$C$26:$C$31,0),MATCH(Calc_Proposed!V$6,'Energy Prices'!$F$11:$CR$11,0))/100000,0)","v":0},{"$f":"IFERROR('Data Input - Proposed'!AA84*INDEX('Energy Prices'!$F$26:$CR$31,MATCH($B128,'Energy Prices'!$C$26:$C$31,0),MATCH(Calc_Proposed!W$6,'Energy Prices'!$F$11:$CR$11,0))/100000,0)","v":0},{"$f":"IFERROR('Data Input - Proposed'!AB84*INDEX('Energy Prices'!$F$26:$CR$31,MATCH($B128,'Energy Prices'!$C$26:$C$31,0),MATCH(Calc_Proposed!X$6,'Energy Prices'!$F$11:$CR$11,0))/100000,0)","v":0},{"$f":"IFERROR('Data Input - Proposed'!AC84*INDEX('Energy Prices'!$F$26:$CR$31,MATCH($B128,'Energy Prices'!$C$26:$C$31,0),MATCH(Calc_Proposed!Y$6,'Energy Prices'!$F$11:$CR$11,0))/100000,0)","v":0},{"$f":"IFERROR('Data Input - Proposed'!AD84*INDEX('Energy Prices'!$F$26:$CR$31,MATCH($B128,'Energy Prices'!$C$26:$C$31,0),MATCH(Calc_Proposed!Z$6,'Energy Prices'!$F$11:$CR$11,0))/100000,0)","v":0},{"$f":"IFERROR('Data Input - Proposed'!AE84*INDEX('Energy Prices'!$F$26:$CR$31,MATCH($B128,'Energy Prices'!$C$26:$C$31,0),MATCH(Calc_Proposed!AA$6,'Energy Prices'!$F$11:$CR$11,0))/100000,0)","v":0},{"$f":"IFERROR('Data Input - Proposed'!AF84*INDEX('Energy Prices'!$F$26:$CR$31,MATCH($B128,'Energy Prices'!$C$26:$C$31,0),MATCH(Calc_Proposed!AB$6,'Energy Prices'!$F$11:$CR$11,0))/100000,0)","v":0},{"$f":"IFERROR('Data Input - Proposed'!AG84*INDEX('Energy Prices'!$F$26:$CR$31,MATCH($B128,'Energy Prices'!$C$26:$C$31,0),MATCH(Calc_Proposed!AC$6,'Energy Prices'!$F$11:$CR$11,0))/100000,0)","v":0},{"$f":"IFERROR('Data Input - Proposed'!AH84*INDEX('Energy Prices'!$F$26:$CR$31,MATCH($B128,'Energy Prices'!$C$26:$C$31,0),MATCH(Calc_Proposed!AD$6,'Energy Prices'!$F$11:$CR$11,0))/100000,0)","v":0},{"$f":"IFERROR('Data Input - Proposed'!AI84*INDEX('Energy Prices'!$F$26:$CR$31,MATCH($B128,'Energy Prices'!$C$26:$C$31,0),MATCH(Calc_Proposed!AE$6,'Energy Prices'!$F$11:$CR$11,0))/100000,0)","v":0},{"$f":"IFERROR('Data Input - Proposed'!AJ84*INDEX('Energy Prices'!$F$26:$CR$31,MATCH($B128,'Energy Prices'!$C$26:$C$31,0),MATCH(Calc_Proposed!AF$6,'Energy Prices'!$F$11:$CR$11,0))/100000,0)","v":0},{"$f":"IFERROR('Data Input - Proposed'!AK84*INDEX('Energy Prices'!$F$26:$CR$31,MATCH($B128,'Energy Prices'!$C$26:$C$31,0),MATCH(Calc_Proposed!AG$6,'Energy Prices'!$F$11:$CR$11,0))/100000,0)","v":0},{"$f":"IFERROR('Data Input - Proposed'!AL84*INDEX('Energy Prices'!$F$26:$CR$31,MATCH($B128,'Energy Prices'!$C$26:$C$31,0),MATCH(Calc_Proposed!AH$6,'Energy Prices'!$F$11:$CR$11,0))/100000,0)","v":0},{"$f":"IFERROR('Data Input - Proposed'!AM84*INDEX('Energy Prices'!$F$26:$CR$31,MATCH($B128,'Energy Prices'!$C$26:$C$31,0),MATCH(Calc_Proposed!AI$6,'Energy Prices'!$F$11:$CR$11,0))/100000,0)","v":0},{"$f":"IFERROR('Data Input - Proposed'!AN84*INDEX('Energy Prices'!$F$26:$CR$31,MATCH($B128,'Energy Prices'!$C$26:$C$31,0),MATCH(Calc_Proposed!AJ$6,'Energy Prices'!$F$11:$CR$11,0))/100000,0)","v":0},{"$f":"IFERROR('Data Input - Proposed'!AO84*INDEX('Energy Prices'!$F$26:$CR$31,MATCH($B128,'Energy Prices'!$C$26:$C$31,0),MATCH(Calc_Proposed!AK$6,'Energy Prices'!$F$11:$CR$11,0))/100000,0)","v":0},{"$f":"IFERROR('Data Input - Proposed'!AP84*INDEX('Energy Prices'!$F$26:$CR$31,MATCH($B128,'Energy Prices'!$C$26:$C$31,0),MATCH(Calc_Proposed!AL$6,'Energy Prices'!$F$11:$CR$11,0))/100000,0)","v":0},{"$f":"IFERROR('Data Input - Proposed'!AQ84*INDEX('Energy Prices'!$F$26:$CR$31,MATCH($B128,'Energy Prices'!$C$26:$C$31,0),MATCH(Calc_Proposed!AM$6,'Energy Prices'!$F$11:$CR$11,0))/100000,0)","v":0},{"$f":"IFERROR('Data Input - Proposed'!AR84*INDEX('Energy Prices'!$F$26:$CR$31,MATCH($B128,'Energy Prices'!$C$26:$C$31,0),MATCH(Calc_Proposed!AN$6,'Energy Prices'!$F$11:$CR$11,0))/100000,0)","v":0},{"$f":"IFERROR('Data Input - Proposed'!AS84*INDEX('Energy Prices'!$F$26:$CR$31,MATCH($B128,'Energy Prices'!$C$26:$C$31,0),MATCH(Calc_Proposed!AO$6,'Energy Prices'!$F$11:$CR$11,0))/100000,0)","v":0},{"$f":"IFERROR('Data Input - Proposed'!AT84*INDEX('Energy Prices'!$F$26:$CR$31,MATCH($B128,'Energy Prices'!$C$26:$C$31,0),MATCH(Calc_Proposed!AP$6,'Energy Prices'!$F$11:$CR$11,0))/100000,0)","v":0},{"$f":"IFERROR('Data Input - Proposed'!AU84*INDEX('Energy Prices'!$F$26:$CR$31,MATCH($B128,'Energy Prices'!$C$26:$C$31,0),MATCH(Calc_Proposed!AQ$6,'Energy Prices'!$F$11:$CR$11,0))/100000,0)","v":0},{"$f":"IFERROR('Data Input - Proposed'!AV84*INDEX('Energy Prices'!$F$26:$CR$31,MATCH($B128,'Energy Prices'!$C$26:$C$31,0),MATCH(Calc_Proposed!AR$6,'Energy Prices'!$F$11:$CR$11,0))/100000,0)","v":0},{"$f":"IFERROR('Data Input - Proposed'!AW84*INDEX('Energy Prices'!$F$26:$CR$31,MATCH($B128,'Energy Prices'!$C$26:$C$31,0),MATCH(Calc_Proposed!AS$6,'Energy Prices'!$F$11:$CR$11,0))/100000,0)","v":0},{"$f":"IFERROR('Data Input - Proposed'!AX84*INDEX('Energy Prices'!$F$26:$CR$31,MATCH($B128,'Energy Prices'!$C$26:$C$31,0),MATCH(Calc_Proposed!AT$6,'Energy Prices'!$F$11:$CR$11,0))/100000,0)","v":0},{"$f":"IFERROR('Data Input - Proposed'!AY84*INDEX('Energy Prices'!$F$26:$CR$31,MATCH($B128,'Energy Prices'!$C$26:$C$31,0),MATCH(Calc_Proposed!AU$6,'Energy Prices'!$F$11:$CR$11,0))/100000,0)","v":0},{"$f":"IFERROR('Data Input - Proposed'!AZ84*INDEX('Energy Prices'!$F$26:$CR$31,MATCH($B128,'Energy Prices'!$C$26:$C$31,0),MATCH(Calc_Proposed!AV$6,'Energy Prices'!$F$11:$CR$11,0))/100000,0)","v":0},{"$f":"IFERROR('Data Input - Proposed'!BA84*INDEX('Energy Prices'!$F$26:$CR$31,MATCH($B128,'Energy Prices'!$C$26:$C$31,0),MATCH(Calc_Proposed!AW$6,'Energy Prices'!$F$11:$CR$11,0))/100000,0)","v":0},{"$f":"IFERROR('Data Input - Proposed'!BB84*INDEX('Energy Prices'!$F$26:$CR$31,MATCH($B128,'Energy Prices'!$C$26:$C$31,0),MATCH(Calc_Proposed!AX$6,'Energy Prices'!$F$11:$CR$11,0))/100000,0)","v":0},{"$f":"IFERROR('Data Input - Proposed'!BC84*INDEX('Energy Prices'!$F$26:$CR$31,MATCH($B128,'Energy Prices'!$C$26:$C$31,0),MATCH(Calc_Proposed!AY$6,'Energy Prices'!$F$11:$CR$11,0))/100000,0)","v":0},{"$f":"IFERROR('Data Input - Proposed'!BD84*INDEX('Energy Prices'!$F$26:$CR$31,MATCH($B128,'Energy Prices'!$C$26:$C$31,0),MATCH(Calc_Proposed!AZ$6,'Energy Prices'!$F$11:$CR$11,0))/100000,0)","v":0},{"$f":"IFERROR('Data Input - Proposed'!BE84*INDEX('Energy Prices'!$F$26:$CR$31,MATCH($B128,'Energy Prices'!$C$26:$C$31,0),MATCH(Calc_Proposed!BA$6,'Energy Prices'!$F$11:$CR$11,0))/100000,0)","v":0},{"$f":"IFERROR('Data Input - Proposed'!BF84*INDEX('Energy Prices'!$F$26:$CR$31,MATCH($B128,'Energy Prices'!$C$26:$C$31,0),MATCH(Calc_Proposed!BB$6,'Energy Prices'!$F$11:$CR$11,0))/100000,0)","v":0},{"$f":"IFERROR('Data Input - Proposed'!BG84*INDEX('Energy Prices'!$F$26:$CR$31,MATCH($B128,'Energy Prices'!$C$26:$C$31,0),MATCH(Calc_Proposed!BC$6,'Energy Prices'!$F$11:$CR$11,0))/100000,0)","v":0},{"$f":"IFERROR('Data Input - Proposed'!BH84*INDEX('Energy Prices'!$F$26:$CR$31,MATCH($B128,'Energy Prices'!$C$26:$C$31,0),MATCH(Calc_Proposed!BD$6,'Energy Prices'!$F$11:$CR$11,0))/100000,0)","v":0},{"$f":"IFERROR('Data Input - Proposed'!BI84*INDEX('Energy Prices'!$F$26:$CR$31,MATCH($B128,'Energy Prices'!$C$26:$C$31,0),MATCH(Calc_Proposed!BE$6,'Energy Prices'!$F$11:$CR$11,0))/100000,0)","v":0},{"$f":"IFERROR('Data Input - Proposed'!BJ84*INDEX('Energy Prices'!$F$26:$CR$31,MATCH($B128,'Energy Prices'!$C$26:$C$31,0),MATCH(Calc_Proposed!BF$6,'Energy Prices'!$F$11:$CR$11,0))/100000,0)","v":0},{"$f":"IFERROR('Data Input - Proposed'!BK84*INDEX('Energy Prices'!$F$26:$CR$31,MATCH($B128,'Energy Prices'!$C$26:$C$31,0),MATCH(Calc_Proposed!BG$6,'Energy Prices'!$F$11:$CR$11,0))/100000,0)","v":0},{"$f":"IFERROR('Data Input - Proposed'!BL84*INDEX('Energy Prices'!$F$26:$CR$31,MATCH($B128,'Energy Prices'!$C$26:$C$31,0),MATCH(Calc_Proposed!BH$6,'Energy Prices'!$F$11:$CR$11,0))/100000,0)","v":0},{"$f":"IFERROR('Data Input - Proposed'!BM84*INDEX('Energy Prices'!$F$26:$CR$31,MATCH($B128,'Energy Prices'!$C$26:$C$31,0),MATCH(Calc_Proposed!BI$6,'Energy Prices'!$F$11:$CR$11,0))/100000,0)","v":0},{"$f":"IFERROR('Data Input - Proposed'!BN84*INDEX('Energy Prices'!$F$26:$CR$31,MATCH($B128,'Energy Prices'!$C$26:$C$31,0),MATCH(Calc_Proposed!BJ$6,'Energy Prices'!$F$11:$CR$11,0))/100000,0)","v":0},{"$f":"IFERROR('Data Input - Proposed'!BO84*INDEX('Energy Prices'!$F$26:$CR$31,MATCH($B128,'Energy Prices'!$C$26:$C$31,0),MATCH(Calc_Proposed!BK$6,'Energy Prices'!$F$11:$CR$11,0))/100000,0)","v":0},{"$f":"IFERROR('Data Input - Proposed'!BP84*INDEX('Energy Prices'!$F$26:$CR$31,MATCH($B128,'Energy Prices'!$C$26:$C$31,0),MATCH(Calc_Proposed!BL$6,'Energy Prices'!$F$11:$CR$11,0))/100000,0)","v":0},{"$f":"IFERROR('Data Input - Proposed'!BQ84*INDEX('Energy Prices'!$F$26:$CR$31,MATCH($B128,'Energy Prices'!$C$26:$C$31,0),MATCH(Calc_Proposed!BM$6,'Energy Prices'!$F$11:$CR$11,0))/100000,0)","v":0},{"$f":"IFERROR('Data Input - Proposed'!BR84*INDEX('Energy Prices'!$F$26:$CR$31,MATCH($B128,'Energy Prices'!$C$26:$C$31,0),MATCH(Calc_Proposed!BN$6,'Energy Prices'!$F$11:$CR$11,0))/100000,0)","v":0},{"$f":"IFERROR('Data Input - Proposed'!BS84*INDEX('Energy Prices'!$F$26:$CR$31,MATCH($B128,'Energy Prices'!$C$26:$C$31,0),MATCH(Calc_Proposed!BO$6,'Energy Prices'!$F$11:$CR$11,0))/100000,0)","v":0},{"$f":"IFERROR('Data Input - Proposed'!BT84*INDEX('Energy Prices'!$F$26:$CR$31,MATCH($B128,'Energy Prices'!$C$26:$C$31,0),MATCH(Calc_Proposed!BP$6,'Energy Prices'!$F$11:$CR$11,0))/100000,0)","v":0},{"$f":"IFERROR('Data Input - Proposed'!BU84*INDEX('Energy Prices'!$F$26:$CR$31,MATCH($B128,'Energy Prices'!$C$26:$C$31,0),MATCH(Calc_Proposed!BQ$6,'Energy Prices'!$F$11:$CR$11,0))/100000,0)","v":0},{"$f":"IFERROR('Data Input - Proposed'!BV84*INDEX('Energy Prices'!$F$26:$CR$31,MATCH($B128,'Energy Prices'!$C$26:$C$31,0),MATCH(Calc_Proposed!BR$6,'Energy Prices'!$F$11:$CR$11,0))/100000,0)","v":0},{"$f":"IFERROR('Data Input - Proposed'!BW84*INDEX('Energy Prices'!$F$26:$CR$31,MATCH($B128,'Energy Prices'!$C$26:$C$31,0),MATCH(Calc_Proposed!BS$6,'Energy Prices'!$F$11:$CR$11,0))/100000,0)","v":0},{"$f":"IFERROR('Data Input - Proposed'!BX84*INDEX('Energy Prices'!$F$26:$CR$31,MATCH($B128,'Energy Prices'!$C$26:$C$31,0),MATCH(Calc_Proposed!BT$6,'Energy Prices'!$F$11:$CR$11,0))/100000,0)","v":0},{"$f":"IFERROR('Data Input - Proposed'!BY84*INDEX('Energy Prices'!$F$26:$CR$31,MATCH($B128,'Energy Prices'!$C$26:$C$31,0),MATCH(Calc_Proposed!BU$6,'Energy Prices'!$F$11:$CR$11,0))/100000,0)","v":0},{"$f":"IFERROR('Data Input - Proposed'!BZ84*INDEX('Energy Prices'!$F$26:$CR$31,MATCH($B128,'Energy Prices'!$C$26:$C$31,0),MATCH(Calc_Proposed!BV$6,'Energy Prices'!$F$11:$CR$11,0))/100000,0)","v":0},{"$f":"IFERROR('Data Input - Proposed'!CA84*INDEX('Energy Prices'!$F$26:$CR$31,MATCH($B128,'Energy Prices'!$C$26:$C$31,0),MATCH(Calc_Proposed!BW$6,'Energy Prices'!$F$11:$CR$11,0))/100000,0)","v":0},{"$f":"IFERROR('Data Input - Proposed'!CB84*INDEX('Energy Prices'!$F$26:$CR$31,MATCH($B128,'Energy Prices'!$C$26:$C$31,0),MATCH(Calc_Proposed!BX$6,'Energy Prices'!$F$11:$CR$11,0))/100000,0)","v":0},{"$f":"IFERROR('Data Input - Proposed'!CC84*INDEX('Energy Prices'!$F$26:$CR$31,MATCH($B128,'Energy Prices'!$C$26:$C$31,0),MATCH(Calc_Proposed!BY$6,'Energy Prices'!$F$11:$CR$11,0))/100000,0)","v":0},{"$f":"IFERROR('Data Input - Proposed'!CD84*INDEX('Energy Prices'!$F$26:$CR$31,MATCH($B128,'Energy Prices'!$C$26:$C$31,0),MATCH(Calc_Proposed!BZ$6,'Energy Prices'!$F$11:$CR$11,0))/100000,0)","v":0},{"$f":"IFERROR('Data Input - Proposed'!CE84*INDEX('Energy Prices'!$F$26:$CR$31,MATCH($B128,'Energy Prices'!$C$26:$C$31,0),MATCH(Calc_Proposed!CA$6,'Energy Prices'!$F$11:$CR$11,0))/100000,0)","v":0},{"$f":"IFERROR('Data Input - Proposed'!CF84*INDEX('Energy Prices'!$F$26:$CR$31,MATCH($B128,'Energy Prices'!$C$26:$C$31,0),MATCH(Calc_Proposed!CB$6,'Energy Prices'!$F$11:$CR$11,0))/100000,0)","v":0},{"$f":"IFERROR('Data Input - Proposed'!CG84*INDEX('Energy Prices'!$F$26:$CR$31,MATCH($B128,'Energy Prices'!$C$26:$C$31,0),MATCH(Calc_Proposed!CC$6,'Energy Prices'!$F$11:$CR$11,0))/100000,0)","v":0},{"$f":"IFERROR('Data Input - Proposed'!CH84*INDEX('Energy Prices'!$F$26:$CR$31,MATCH($B128,'Energy Prices'!$C$26:$C$31,0),MATCH(Calc_Proposed!CD$6,'Energy Prices'!$F$11:$CR$11,0))/100000,0)","v":0},{"$f":"IFERROR('Data Input - Proposed'!CI84*INDEX('Energy Prices'!$F$26:$CR$31,MATCH($B128,'Energy Prices'!$C$26:$C$31,0),MATCH(Calc_Proposed!CE$6,'Energy Prices'!$F$11:$CR$11,0))/100000,0)","v":0},{"$f":"IFERROR('Data Input - Proposed'!CJ84*INDEX('Energy Prices'!$F$26:$CR$31,MATCH($B128,'Energy Prices'!$C$26:$C$31,0),MATCH(Calc_Proposed!CF$6,'Energy Prices'!$F$11:$CR$11,0))/100000,0)","v":0},{"$f":"IFERROR('Data Input - Proposed'!CK84*INDEX('Energy Prices'!$F$26:$CR$31,MATCH($B128,'Energy Prices'!$C$26:$C$31,0),MATCH(Calc_Proposed!CG$6,'Energy Prices'!$F$11:$CR$11,0))/100000,0)","v":0},{"$f":"IFERROR('Data Input - Proposed'!CL84*INDEX('Energy Prices'!$F$26:$CR$31,MATCH($B128,'Energy Prices'!$C$26:$C$31,0),MATCH(Calc_Proposed!CH$6,'Energy Prices'!$F$11:$CR$11,0))/100000,0)","v":0},{"$f":"IFERROR('Data Input - Proposed'!CM84*INDEX('Energy Prices'!$F$26:$CR$31,MATCH($B128,'Energy Prices'!$C$26:$C$31,0),MATCH(Calc_Proposed!CI$6,'Energy Prices'!$F$11:$CR$11,0))/100000,0)","v":0},{"$f":"IFERROR('Data Input - Proposed'!CN84*INDEX('Energy Prices'!$F$26:$CR$31,MATCH($B128,'Energy Prices'!$C$26:$C$31,0),MATCH(Calc_Proposed!CJ$6,'Energy Prices'!$F$11:$CR$11,0))/100000,0)","v":0},{"$f":"IFERROR('Data Input - Proposed'!CO84*INDEX('Energy Prices'!$F$26:$CR$31,MATCH($B128,'Energy Prices'!$C$26:$C$31,0),MATCH(Calc_Proposed!CK$6,'Energy Prices'!$F$11:$CR$11,0))/100000,0)","v":0},{"$f":"IFERROR('Data Input - Proposed'!CP84*INDEX('Energy Prices'!$F$26:$CR$31,MATCH($B128,'Energy Prices'!$C$26:$C$31,0),MATCH(Calc_Proposed!CL$6,'Energy Prices'!$F$11:$CR$11,0))/100000,0)","v":0},{"$f":"IFERROR('Data Input - Proposed'!CQ84*INDEX('Energy Prices'!$F$26:$CR$31,MATCH($B128,'Energy Prices'!$C$26:$C$31,0),MATCH(Calc_Proposed!CM$6,'Energy Prices'!$F$11:$CR$11,0))/100000,0)","v":0},{"$f":"IFERROR('Data Input - Proposed'!CR84*INDEX('Energy Prices'!$F$26:$CR$31,MATCH($B128,'Energy Prices'!$C$26:$C$31,0),MATCH(Calc_Proposed!CN$6,'Energy Prices'!$F$11:$CR$11,0))/100000,0)","v":0},{"$f":"IFERROR('Data Input - Proposed'!CS84*INDEX('Energy Prices'!$F$26:$CR$31,MATCH($B128,'Energy Prices'!$C$26:$C$31,0),MATCH(Calc_Proposed!CO$6,'Energy Prices'!$F$11:$CR$11,0))/100000,0)","v":0},{"$f":"IFERROR('Data Input - Proposed'!CT84*INDEX('Energy Prices'!$F$26:$CR$31,MATCH($B128,'Energy Prices'!$C$26:$C$31,0),MATCH(Calc_Proposed!CP$6,'Energy Prices'!$F$11:$CR$11,0))/100000,0)","v":0},{"$f":"IFERROR('Data Input - Proposed'!CU84*INDEX('Energy Prices'!$F$26:$CR$31,MATCH($B128,'Energy Prices'!$C$26:$C$31,0),MATCH(Calc_Proposed!CQ$6,'Energy Prices'!$F$11:$CR$11,0))/100000,0)","v":0},{"$f":"IFERROR('Data Input - Proposed'!CV84*INDEX('Energy Prices'!$F$26:$CR$31,MATCH($B128,'Energy Prices'!$C$26:$C$31,0),MATCH(Calc_Proposed!CR$6,'Energy Prices'!$F$11:$CR$11,0))/100000,0)","v":0},{"$f":"IFERROR('Data Input - Proposed'!CW84*INDEX('Energy Prices'!$F$26:$CR$31,MATCH($B128,'Energy Prices'!$C$26:$C$31,0),MATCH(Calc_Proposed!CS$6,'Energy Prices'!$F$11:$CR$11,0))/100000,0)","v":0},{"$f":"IFERROR('Data Input - Proposed'!CX84*INDEX('Energy Prices'!$F$26:$CR$31,MATCH($B128,'Energy Prices'!$C$26:$C$31,0),MATCH(Calc_Proposed!CT$6,'Energy Prices'!$F$11:$CR$11,0))/100000,0)","v":0},{"$f":"IFERROR('Data Input - Proposed'!CY84*INDEX('Energy Prices'!$F$26:$CR$31,MATCH($B128,'Energy Prices'!$C$26:$C$31,0),MATCH(Calc_Proposed!CU$6,'Energy Prices'!$F$11:$CR$11,0))/100000,0)","v":0},{"$f":"IFERROR('Data Input - Proposed'!CZ84*INDEX('Energy Prices'!$F$26:$CR$31,MATCH($B128,'Energy Prices'!$C$26:$C$31,0),MATCH(Calc_Proposed!CV$6,'Energy Prices'!$F$11:$CR$11,0))/100000,0)","v":0},{"$f":"IFERROR('Data Input - Proposed'!DA84*INDEX('Energy Prices'!$F$26:$CR$31,MATCH($B128,'Energy Prices'!$C$26:$C$31,0),MATCH(Calc_Proposed!CW$6,'Energy Prices'!$F$11:$CR$11,0))/100000,0)","v":0},{"$f":"IFERROR('Data Input - Proposed'!DB84*INDEX('Energy Prices'!$F$26:$CR$31,MATCH($B128,'Energy Prices'!$C$26:$C$31,0),MATCH(Calc_Proposed!CX$6,'Energy Prices'!$F$11:$CR$11,0))/100000,0)","v":0},{"$f":"IFERROR('Data Input - Proposed'!DC84*INDEX('Energy Prices'!$F$26:$CR$31,MATCH($B128,'Energy Prices'!$C$26:$C$31,0),MATCH(Calc_Proposed!CY$6,'Energy Prices'!$F$11:$CR$11,0))/100000,0)","v":0}]
[null,"Natural Gas","£000's",{"$f":"IFERROR('Data Input - Proposed'!H85*INDEX('Energy Prices'!$F$26:$CR$31,MATCH($B129,'Energy Prices'!$C$26:$C$31,0),MATCH(Calc_Proposed!D$6,'Energy Prices'!$F$11:$CR$11,0))/100000,0)","v":0},{"$f":"IFERROR('Data Input - Proposed'!I85*INDEX('Energy Prices'!$F$26:$CR$31,MATCH($B129,'Energy Prices'!$C$26:$C$31,0),MATCH(Calc_Proposed!E$6,'Energy Prices'!$F$11:$CR$11,0))/100000,0)","v":0},{"$f":"IFERROR('Data Input - Proposed'!J85*INDEX('Energy Prices'!$F$26:$CR$31,MATCH($B129,'Energy Prices'!$C$26:$C$31,0),MATCH(Calc_Proposed!F$6,'Energy Prices'!$F$11:$CR$11,0))/100000,0)","v":0},{"$f":"IFERROR('Data Input - Proposed'!K85*INDEX('Energy Prices'!$F$26:$CR$31,MATCH($B129,'Energy Prices'!$C$26:$C$31,0),MATCH(Calc_Proposed!G$6,'Energy Prices'!$F$11:$CR$11,0))/100000,0)","v":0},{"$f":"IFERROR('Data Input - Proposed'!L85*INDEX('Energy Prices'!$F$26:$CR$31,MATCH($B129,'Energy Prices'!$C$26:$C$31,0),MATCH(Calc_Proposed!H$6,'Energy Prices'!$F$11:$CR$11,0))/100000,0)","v":0},{"$f":"IFERROR('Data Input - Proposed'!M85*INDEX('Energy Prices'!$F$26:$CR$31,MATCH($B129,'Energy Prices'!$C$26:$C$31,0),MATCH(Calc_Proposed!I$6,'Energy Prices'!$F$11:$CR$11,0))/100000,0)","v":0},{"$f":"IFERROR('Data Input - Proposed'!N85*INDEX('Energy Prices'!$F$26:$CR$31,MATCH($B129,'Energy Prices'!$C$26:$C$31,0),MATCH(Calc_Proposed!J$6,'Energy Prices'!$F$11:$CR$11,0))/100000,0)","v":0},{"$f":"IFERROR('Data Input - Proposed'!O85*INDEX('Energy Prices'!$F$26:$CR$31,MATCH($B129,'Energy Prices'!$C$26:$C$31,0),MATCH(Calc_Proposed!K$6,'Energy Prices'!$F$11:$CR$11,0))/100000,0)","v":0},{"$f":"IFERROR('Data Input - Proposed'!P85*INDEX('Energy Prices'!$F$26:$CR$31,MATCH($B129,'Energy Prices'!$C$26:$C$31,0),MATCH(Calc_Proposed!L$6,'Energy Prices'!$F$11:$CR$11,0))/100000,0)","v":0},{"$f":"IFERROR('Data Input - Proposed'!Q85*INDEX('Energy Prices'!$F$26:$CR$31,MATCH($B129,'Energy Prices'!$C$26:$C$31,0),MATCH(Calc_Proposed!M$6,'Energy Prices'!$F$11:$CR$11,0))/100000,0)","v":0},{"$f":"IFERROR('Data Input - Proposed'!R85*INDEX('Energy Prices'!$F$26:$CR$31,MATCH($B129,'Energy Prices'!$C$26:$C$31,0),MATCH(Calc_Proposed!N$6,'Energy Prices'!$F$11:$CR$11,0))/100000,0)","v":0},{"$f":"IFERROR('Data Input - Proposed'!S85*INDEX('Energy Prices'!$F$26:$CR$31,MATCH($B129,'Energy Prices'!$C$26:$C$31,0),MATCH(Calc_Proposed!O$6,'Energy Prices'!$F$11:$CR$11,0))/100000,0)","v":0},{"$f":"IFERROR('Data Input - Proposed'!T85*INDEX('Energy Prices'!$F$26:$CR$31,MATCH($B129,'Energy Prices'!$C$26:$C$31,0),MATCH(Calc_Proposed!P$6,'Energy Prices'!$F$11:$CR$11,0))/100000,0)","v":0},{"$f":"IFERROR('Data Input - Proposed'!U85*INDEX('Energy Prices'!$F$26:$CR$31,MATCH($B129,'Energy Prices'!$C$26:$C$31,0),MATCH(Calc_Proposed!Q$6,'Energy Prices'!$F$11:$CR$11,0))/100000,0)","v":0},{"$f":"IFERROR('Data Input - Proposed'!V85*INDEX('Energy Prices'!$F$26:$CR$31,MATCH($B129,'Energy Prices'!$C$26:$C$31,0),MATCH(Calc_Proposed!R$6,'Energy Prices'!$F$11:$CR$11,0))/100000,0)","v":0},{"$f":"IFERROR('Data Input - Proposed'!W85*INDEX('Energy Prices'!$F$26:$CR$31,MATCH($B129,'Energy Prices'!$C$26:$C$31,0),MATCH(Calc_Proposed!S$6,'Energy Prices'!$F$11:$CR$11,0))/100000,0)","v":0},{"$f":"IFERROR('Data Input - Proposed'!X85*INDEX('Energy Prices'!$F$26:$CR$31,MATCH($B129,'Energy Prices'!$C$26:$C$31,0),MATCH(Calc_Proposed!T$6,'Energy Prices'!$F$11:$CR$11,0))/100000,0)","v":0},{"$f":"IFERROR('Data Input - Proposed'!Y85*INDEX('Energy Prices'!$F$26:$CR$31,MATCH($B129,'Energy Prices'!$C$26:$C$31,0),MATCH(Calc_Proposed!U$6,'Energy Prices'!$F$11:$CR$11,0))/100000,0)","v":0},{"$f":"IFERROR('Data Input - Proposed'!Z85*INDEX('Energy Prices'!$F$26:$CR$31,MATCH($B129,'Energy Prices'!$C$26:$C$31,0),MATCH(Calc_Proposed!V$6,'Energy Prices'!$F$11:$CR$11,0))/100000,0)","v":0},{"$f":"IFERROR('Data Input - Proposed'!AA85*INDEX('Energy Prices'!$F$26:$CR$31,MATCH($B129,'Energy Prices'!$C$26:$C$31,0),MATCH(Calc_Proposed!W$6,'Energy Prices'!$F$11:$CR$11,0))/100000,0)","v":0},{"$f":"IFERROR('Data Input - Proposed'!AB85*INDEX('Energy Prices'!$F$26:$CR$31,MATCH($B129,'Energy Prices'!$C$26:$C$31,0),MATCH(Calc_Proposed!X$6,'Energy Prices'!$F$11:$CR$11,0))/100000,0)","v":0},{"$f":"IFERROR('Data Input - Proposed'!AC85*INDEX('Energy Prices'!$F$26:$CR$31,MATCH($B129,'Energy Prices'!$C$26:$C$31,0),MATCH(Calc_Proposed!Y$6,'Energy Prices'!$F$11:$CR$11,0))/100000,0)","v":0},{"$f":"IFERROR('Data Input - Proposed'!AD85*INDEX('Energy Prices'!$F$26:$CR$31,MATCH($B129,'Energy Prices'!$C$26:$C$31,0),MATCH(Calc_Proposed!Z$6,'Energy Prices'!$F$11:$CR$11,0))/100000,0)","v":0},{"$f":"IFERROR('Data Input - Proposed'!AE85*INDEX('Energy Prices'!$F$26:$CR$31,MATCH($B129,'Energy Prices'!$C$26:$C$31,0),MATCH(Calc_Proposed!AA$6,'Energy Prices'!$F$11:$CR$11,0))/100000,0)","v":0},{"$f":"IFERROR('Data Input - Proposed'!AF85*INDEX('Energy Prices'!$F$26:$CR$31,MATCH($B129,'Energy Prices'!$C$26:$C$31,0),MATCH(Calc_Proposed!AB$6,'Energy Prices'!$F$11:$CR$11,0))/100000,0)","v":0},{"$f":"IFERROR('Data Input - Proposed'!AG85*INDEX('Energy Prices'!$F$26:$CR$31,MATCH($B129,'Energy Prices'!$C$26:$C$31,0),MATCH(Calc_Proposed!AC$6,'Energy Prices'!$F$11:$CR$11,0))/100000,0)","v":0},{"$f":"IFERROR('Data Input - Proposed'!AH85*INDEX('Energy Prices'!$F$26:$CR$31,MATCH($B129,'Energy Prices'!$C$26:$C$31,0),MATCH(Calc_Proposed!AD$6,'Energy Prices'!$F$11:$CR$11,0))/100000,0)","v":0},{"$f":"IFERROR('Data Input - Proposed'!AI85*INDEX('Energy Prices'!$F$26:$CR$31,MATCH($B129,'Energy Prices'!$C$26:$C$31,0),MATCH(Calc_Proposed!AE$6,'Energy Prices'!$F$11:$CR$11,0))/100000,0)","v":0},{"$f":"IFERROR('Data Input - Proposed'!AJ85*INDEX('Energy Prices'!$F$26:$CR$31,MATCH($B129,'Energy Prices'!$C$26:$C$31,0),MATCH(Calc_Proposed!AF$6,'Energy Prices'!$F$11:$CR$11,0))/100000,0)","v":0},{"$f":"IFERROR('Data Input - Proposed'!AK85*INDEX('Energy Prices'!$F$26:$CR$31,MATCH($B129,'Energy Prices'!$C$26:$C$31,0),MATCH(Calc_Proposed!AG$6,'Energy Prices'!$F$11:$CR$11,0))/100000,0)","v":0},{"$f":"IFERROR('Data Input - Proposed'!AL85*INDEX('Energy Prices'!$F$26:$CR$31,MATCH($B129,'Energy Prices'!$C$26:$C$31,0),MATCH(Calc_Proposed!AH$6,'Energy Prices'!$F$11:$CR$11,0))/100000,0)","v":0},{"$f":"IFERROR('Data Input - Proposed'!AM85*INDEX('Energy Prices'!$F$26:$CR$31,MATCH($B129,'Energy Prices'!$C$26:$C$31,0),MATCH(Calc_Proposed!AI$6,'Energy Prices'!$F$11:$CR$11,0))/100000,0)","v":0},{"$f":"IFERROR('Data Input - Proposed'!AN85*INDEX('Energy Prices'!$F$26:$CR$31,MATCH($B129,'Energy Prices'!$C$26:$C$31,0),MATCH(Calc_Proposed!AJ$6,'Energy Prices'!$F$11:$CR$11,0))/100000,0)","v":0},{"$f":"IFERROR('Data Input - Proposed'!AO85*INDEX('Energy Prices'!$F$26:$CR$31,MATCH($B129,'Energy Prices'!$C$26:$C$31,0),MATCH(Calc_Proposed!AK$6,'Energy Prices'!$F$11:$CR$11,0))/100000,0)","v":0},{"$f":"IFERROR('Data Input - Proposed'!AP85*INDEX('Energy Prices'!$F$26:$CR$31,MATCH($B129,'Energy Prices'!$C$26:$C$31,0),MATCH(Calc_Proposed!AL$6,'Energy Prices'!$F$11:$CR$11,0))/100000,0)","v":0},{"$f":"IFERROR('Data Input - Proposed'!AQ85*INDEX('Energy Prices'!$F$26:$CR$31,MATCH($B129,'Energy Prices'!$C$26:$C$31,0),MATCH(Calc_Proposed!AM$6,'Energy Prices'!$F$11:$CR$11,0))/100000,0)","v":0},{"$f":"IFERROR('Data Input - Proposed'!AR85*INDEX('Energy Prices'!$F$26:$CR$31,MATCH($B129,'Energy Prices'!$C$26:$C$31,0),MATCH(Calc_Proposed!AN$6,'Energy Prices'!$F$11:$CR$11,0))/100000,0)","v":0},{"$f":"IFERROR('Data Input - Proposed'!AS85*INDEX('Energy Prices'!$F$26:$CR$31,MATCH($B129,'Energy Prices'!$C$26:$C$31,0),MATCH(Calc_Proposed!AO$6,'Energy Prices'!$F$11:$CR$11,0))/100000,0)","v":0},{"$f":"IFERROR('Data Input - Proposed'!AT85*INDEX('Energy Prices'!$F$26:$CR$31,MATCH($B129,'Energy Prices'!$C$26:$C$31,0),MATCH(Calc_Proposed!AP$6,'Energy Prices'!$F$11:$CR$11,0))/100000,0)","v":0},{"$f":"IFERROR('Data Input - Proposed'!AU85*INDEX('Energy Prices'!$F$26:$CR$31,MATCH($B129,'Energy Prices'!$C$26:$C$31,0),MATCH(Calc_Proposed!AQ$6,'Energy Prices'!$F$11:$CR$11,0))/100000,0)","v":0},{"$f":"IFERROR('Data Input - Proposed'!AV85*INDEX('Energy Prices'!$F$26:$CR$31,MATCH($B129,'Energy Prices'!$C$26:$C$31,0),MATCH(Calc_Proposed!AR$6,'Energy Prices'!$F$11:$CR$11,0))/100000,0)","v":0},{"$f":"IFERROR('Data Input - Proposed'!AW85*INDEX('Energy Prices'!$F$26:$CR$31,MATCH($B129,'Energy Prices'!$C$26:$C$31,0),MATCH(Calc_Proposed!AS$6,'Energy Prices'!$F$11:$CR$11,0))/100000,0)","v":0},{"$f":"IFERROR('Data Input - Proposed'!AX85*INDEX('Energy Prices'!$F$26:$CR$31,MATCH($B129,'Energy Prices'!$C$26:$C$31,0),MATCH(Calc_Proposed!AT$6,'Energy Prices'!$F$11:$CR$11,0))/100000,0)","v":0},{"$f":"IFERROR('Data Input - Proposed'!AY85*INDEX('Energy Prices'!$F$26:$CR$31,MATCH($B129,'Energy Prices'!$C$26:$C$31,0),MATCH(Calc_Proposed!AU$6,'Energy Prices'!$F$11:$CR$11,0))/100000,0)","v":0},{"$f":"IFERROR('Data Input - Proposed'!AZ85*INDEX('Energy Prices'!$F$26:$CR$31,MATCH($B129,'Energy Prices'!$C$26:$C$31,0),MATCH(Calc_Proposed!AV$6,'Energy Prices'!$F$11:$CR$11,0))/100000,0)","v":0},{"$f":"IFERROR('Data Input - Proposed'!BA85*INDEX('Energy Prices'!$F$26:$CR$31,MATCH($B129,'Energy Prices'!$C$26:$C$31,0),MATCH(Calc_Proposed!AW$6,'Energy Prices'!$F$11:$CR$11,0))/100000,0)","v":0},{"$f":"IFERROR('Data Input - Proposed'!BB85*INDEX('Energy Prices'!$F$26:$CR$31,MATCH($B129,'Energy Prices'!$C$26:$C$31,0),MATCH(Calc_Proposed!AX$6,'Energy Prices'!$F$11:$CR$11,0))/100000,0)","v":0},{"$f":"IFERROR('Data Input - Proposed'!BC85*INDEX('Energy Prices'!$F$26:$CR$31,MATCH($B129,'Energy Prices'!$C$26:$C$31,0),MATCH(Calc_Proposed!AY$6,'Energy Prices'!$F$11:$CR$11,0))/100000,0)","v":0},{"$f":"IFERROR('Data Input - Proposed'!BD85*INDEX('Energy Prices'!$F$26:$CR$31,MATCH($B129,'Energy Prices'!$C$26:$C$31,0),MATCH(Calc_Proposed!AZ$6,'Energy Prices'!$F$11:$CR$11,0))/100000,0)","v":0},{"$f":"IFERROR('Data Input - Proposed'!BE85*INDEX('Energy Prices'!$F$26:$CR$31,MATCH($B129,'Energy Prices'!$C$26:$C$31,0),MATCH(Calc_Proposed!BA$6,'Energy Prices'!$F$11:$CR$11,0))/100000,0)","v":0},{"$f":"IFERROR('Data Input - Proposed'!BF85*INDEX('Energy Prices'!$F$26:$CR$31,MATCH($B129,'Energy Prices'!$C$26:$C$31,0),MATCH(Calc_Proposed!BB$6,'Energy Prices'!$F$11:$CR$11,0))/100000,0)","v":0},{"$f":"IFERROR('Data Input - Proposed'!BG85*INDEX('Energy Prices'!$F$26:$CR$31,MATCH($B129,'Energy Prices'!$C$26:$C$31,0),MATCH(Calc_Proposed!BC$6,'Energy Prices'!$F$11:$CR$11,0))/100000,0)","v":0},{"$f":"IFERROR('Data Input - Proposed'!BH85*INDEX('Energy Prices'!$F$26:$CR$31,MATCH($B129,'Energy Prices'!$C$26:$C$31,0),MATCH(Calc_Proposed!BD$6,'Energy Prices'!$F$11:$CR$11,0))/100000,0)","v":0},{"$f":"IFERROR('Data Input - Proposed'!BI85*INDEX('Energy Prices'!$F$26:$CR$31,MATCH($B129,'Energy Prices'!$C$26:$C$31,0),MATCH(Calc_Proposed!BE$6,'Energy Prices'!$F$11:$CR$11,0))/100000,0)","v":0},{"$f":"IFERROR('Data Input - Proposed'!BJ85*INDEX('Energy Prices'!$F$26:$CR$31,MATCH($B129,'Energy Prices'!$C$26:$C$31,0),MATCH(Calc_Proposed!BF$6,'Energy Prices'!$F$11:$CR$11,0))/100000,0)","v":0},{"$f":"IFERROR('Data Input - Proposed'!BK85*INDEX('Energy Prices'!$F$26:$CR$31,MATCH($B129,'Energy Prices'!$C$26:$C$31,0),MATCH(Calc_Proposed!BG$6,'Energy Prices'!$F$11:$CR$11,0))/100000,0)","v":0},{"$f":"IFERROR('Data Input - Proposed'!BL85*INDEX('Energy Prices'!$F$26:$CR$31,MATCH($B129,'Energy Prices'!$C$26:$C$31,0),MATCH(Calc_Proposed!BH$6,'Energy Prices'!$F$11:$CR$11,0))/100000,0)","v":0},{"$f":"IFERROR('Data Input - Proposed'!BM85*INDEX('Energy Prices'!$F$26:$CR$31,MATCH($B129,'Energy Prices'!$C$26:$C$31,0),MATCH(Calc_Proposed!BI$6,'Energy Prices'!$F$11:$CR$11,0))/100000,0)","v":0},{"$f":"IFERROR('Data Input - Proposed'!BN85*INDEX('Energy Prices'!$F$26:$CR$31,MATCH($B129,'Energy Prices'!$C$26:$C$31,0),MATCH(Calc_Proposed!BJ$6,'Energy Prices'!$F$11:$CR$11,0))/100000,0)","v":0},{"$f":"IFERROR('Data Input - Proposed'!BO85*INDEX('Energy Prices'!$F$26:$CR$31,MATCH($B129,'Energy Prices'!$C$26:$C$31,0),MATCH(Calc_Proposed!BK$6,'Energy Prices'!$F$11:$CR$11,0))/100000,0)","v":0},{"$f":"IFERROR('Data Input - Proposed'!BP85*INDEX('Energy Prices'!$F$26:$CR$31,MATCH($B129,'Energy Prices'!$C$26:$C$31,0),MATCH(Calc_Proposed!BL$6,'Energy Prices'!$F$11:$CR$11,0))/100000,0)","v":0},{"$f":"IFERROR('Data Input - Proposed'!BQ85*INDEX('Energy Prices'!$F$26:$CR$31,MATCH($B129,'Energy Prices'!$C$26:$C$31,0),MATCH(Calc_Proposed!BM$6,'Energy Prices'!$F$11:$CR$11,0))/100000,0)","v":0},{"$f":"IFERROR('Data Input - Proposed'!BR85*INDEX('Energy Prices'!$F$26:$CR$31,MATCH($B129,'Energy Prices'!$C$26:$C$31,0),MATCH(Calc_Proposed!BN$6,'Energy Prices'!$F$11:$CR$11,0))/100000,0)","v":0},{"$f":"IFERROR('Data Input - Proposed'!BS85*INDEX('Energy Prices'!$F$26:$CR$31,MATCH($B129,'Energy Prices'!$C$26:$C$31,0),MATCH(Calc_Proposed!BO$6,'Energy Prices'!$F$11:$CR$11,0))/100000,0)","v":0},{"$f":"IFERROR('Data Input - Proposed'!BT85*INDEX('Energy Prices'!$F$26:$CR$31,MATCH($B129,'Energy Prices'!$C$26:$C$31,0),MATCH(Calc_Proposed!BP$6,'Energy Prices'!$F$11:$CR$11,0))/100000,0)","v":0},{"$f":"IFERROR('Data Input - Proposed'!BU85*INDEX('Energy Prices'!$F$26:$CR$31,MATCH($B129,'Energy Prices'!$C$26:$C$31,0),MATCH(Calc_Proposed!BQ$6,'Energy Prices'!$F$11:$CR$11,0))/100000,0)","v":0},{"$f":"IFERROR('Data Input - Proposed'!BV85*INDEX('Energy Prices'!$F$26:$CR$31,MATCH($B129,'Energy Prices'!$C$26:$C$31,0),MATCH(Calc_Proposed!BR$6,'Energy Prices'!$F$11:$CR$11,0))/100000,0)","v":0},{"$f":"IFERROR('Data Input - Proposed'!BW85*INDEX('Energy Prices'!$F$26:$CR$31,MATCH($B129,'Energy Prices'!$C$26:$C$31,0),MATCH(Calc_Proposed!BS$6,'Energy Prices'!$F$11:$CR$11,0))/100000,0)","v":0},{"$f":"IFERROR('Data Input - Proposed'!BX85*INDEX('Energy Prices'!$F$26:$CR$31,MATCH($B129,'Energy Prices'!$C$26:$C$31,0),MATCH(Calc_Proposed!BT$6,'Energy Prices'!$F$11:$CR$11,0))/100000,0)","v":0},{"$f":"IFERROR('Data Input - Proposed'!BY85*INDEX('Energy Prices'!$F$26:$CR$31,MATCH($B129,'Energy Prices'!$C$26:$C$31,0),MATCH(Calc_Proposed!BU$6,'Energy Prices'!$F$11:$CR$11,0))/100000,0)","v":0},{"$f":"IFERROR('Data Input - Proposed'!BZ85*INDEX('Energy Prices'!$F$26:$CR$31,MATCH($B129,'Energy Prices'!$C$26:$C$31,0),MATCH(Calc_Proposed!BV$6,'Energy Prices'!$F$11:$CR$11,0))/100000,0)","v":0},{"$f":"IFERROR('Data Input - Proposed'!CA85*INDEX('Energy Prices'!$F$26:$CR$31,MATCH($B129,'Energy Prices'!$C$26:$C$31,0),MATCH(Calc_Proposed!BW$6,'Energy Prices'!$F$11:$CR$11,0))/100000,0)","v":0},{"$f":"IFERROR('Data Input - Proposed'!CB85*INDEX('Energy Prices'!$F$26:$CR$31,MATCH($B129,'Energy Prices'!$C$26:$C$31,0),MATCH(Calc_Proposed!BX$6,'Energy Prices'!$F$11:$CR$11,0))/100000,0)","v":0},{"$f":"IFERROR('Data Input - Proposed'!CC85*INDEX('Energy Prices'!$F$26:$CR$31,MATCH($B129,'Energy Prices'!$C$26:$C$31,0),MATCH(Calc_Proposed!BY$6,'Energy Prices'!$F$11:$CR$11,0))/100000,0)","v":0},{"$f":"IFERROR('Data Input - Proposed'!CD85*INDEX('Energy Prices'!$F$26:$CR$31,MATCH($B129,'Energy Prices'!$C$26:$C$31,0),MATCH(Calc_Proposed!BZ$6,'Energy Prices'!$F$11:$CR$11,0))/100000,0)","v":0},{"$f":"IFERROR('Data Input - Proposed'!CE85*INDEX('Energy Prices'!$F$26:$CR$31,MATCH($B129,'Energy Prices'!$C$26:$C$31,0),MATCH(Calc_Proposed!CA$6,'Energy Prices'!$F$11:$CR$11,0))/100000,0)","v":0},{"$f":"IFERROR('Data Input - Proposed'!CF85*INDEX('Energy Prices'!$F$26:$CR$31,MATCH($B129,'Energy Prices'!$C$26:$C$31,0),MATCH(Calc_Proposed!CB$6,'Energy Prices'!$F$11:$CR$11,0))/100000,0)","v":0},{"$f":"IFERROR('Data Input - Proposed'!CG85*INDEX('Energy Prices'!$F$26:$CR$31,MATCH($B129,'Energy Prices'!$C$26:$C$31,0),MATCH(Calc_Proposed!CC$6,'Energy Prices'!$F$11:$CR$11,0))/100000,0)","v":0},{"$f":"IFERROR('Data Input - Proposed'!CH85*INDEX('Energy Prices'!$F$26:$CR$31,MATCH($B129,'Energy Prices'!$C$26:$C$31,0),MATCH(Calc_Proposed!CD$6,'Energy Prices'!$F$11:$CR$11,0))/100000,0)","v":0},{"$f":"IFERROR('Data Input - Proposed'!CI85*INDEX('Energy Prices'!$F$26:$CR$31,MATCH($B129,'Energy Prices'!$C$26:$C$31,0),MATCH(Calc_Proposed!CE$6,'Energy Prices'!$F$11:$CR$11,0))/100000,0)","v":0},{"$f":"IFERROR('Data Input - Proposed'!CJ85*INDEX('Energy Prices'!$F$26:$CR$31,MATCH($B129,'Energy Prices'!$C$26:$C$31,0),MATCH(Calc_Proposed!CF$6,'Energy Prices'!$F$11:$CR$11,0))/100000,0)","v":0},{"$f":"IFERROR('Data Input - Proposed'!CK85*INDEX('Energy Prices'!$F$26:$CR$31,MATCH($B129,'Energy Prices'!$C$26:$C$31,0),MATCH(Calc_Proposed!CG$6,'Energy Prices'!$F$11:$CR$11,0))/100000,0)","v":0},{"$f":"IFERROR('Data Input - Proposed'!CL85*INDEX('Energy Prices'!$F$26:$CR$31,MATCH($B129,'Energy Prices'!$C$26:$C$31,0),MATCH(Calc_Proposed!CH$6,'Energy Prices'!$F$11:$CR$11,0))/100000,0)","v":0},{"$f":"IFERROR('Data Input - Proposed'!CM85*INDEX('Energy Prices'!$F$26:$CR$31,MATCH($B129,'Energy Prices'!$C$26:$C$31,0),MATCH(Calc_Proposed!CI$6,'Energy Prices'!$F$11:$CR$11,0))/100000,0)","v":0},{"$f":"IFERROR('Data Input - Proposed'!CN85*INDEX('Energy Prices'!$F$26:$CR$31,MATCH($B129,'Energy Prices'!$C$26:$C$31,0),MATCH(Calc_Proposed!CJ$6,'Energy Prices'!$F$11:$CR$11,0))/100000,0)","v":0},{"$f":"IFERROR('Data Input - Proposed'!CO85*INDEX('Energy Prices'!$F$26:$CR$31,MATCH($B129,'Energy Prices'!$C$26:$C$31,0),MATCH(Calc_Proposed!CK$6,'Energy Prices'!$F$11:$CR$11,0))/100000,0)","v":0},{"$f":"IFERROR('Data Input - Proposed'!CP85*INDEX('Energy Prices'!$F$26:$CR$31,MATCH($B129,'Energy Prices'!$C$26:$C$31,0),MATCH(Calc_Proposed!CL$6,'Energy Prices'!$F$11:$CR$11,0))/100000,0)","v":0},{"$f":"IFERROR('Data Input - Proposed'!CQ85*INDEX('Energy Prices'!$F$26:$CR$31,MATCH($B129,'Energy Prices'!$C$26:$C$31,0),MATCH(Calc_Proposed!CM$6,'Energy Prices'!$F$11:$CR$11,0))/100000,0)","v":0},{"$f":"IFERROR('Data Input - Proposed'!CR85*INDEX('Energy Prices'!$F$26:$CR$31,MATCH($B129,'Energy Prices'!$C$26:$C$31,0),MATCH(Calc_Proposed!CN$6,'Energy Prices'!$F$11:$CR$11,0))/100000,0)","v":0},{"$f":"IFERROR('Data Input - Proposed'!CS85*INDEX('Energy Prices'!$F$26:$CR$31,MATCH($B129,'Energy Prices'!$C$26:$C$31,0),MATCH(Calc_Proposed!CO$6,'Energy Prices'!$F$11:$CR$11,0))/100000,0)","v":0},{"$f":"IFERROR('Data Input - Proposed'!CT85*INDEX('Energy Prices'!$F$26:$CR$31,MATCH($B129,'Energy Prices'!$C$26:$C$31,0),MATCH(Calc_Proposed!CP$6,'Energy Prices'!$F$11:$CR$11,0))/100000,0)","v":0},{"$f":"IFERROR('Data Input - Proposed'!CU85*INDEX('Energy Prices'!$F$26:$CR$31,MATCH($B129,'Energy Prices'!$C$26:$C$31,0),MATCH(Calc_Proposed!CQ$6,'Energy Prices'!$F$11:$CR$11,0))/100000,0)","v":0},{"$f":"IFERROR('Data Input - Proposed'!CV85*INDEX('Energy Prices'!$F$26:$CR$31,MATCH($B129,'Energy Prices'!$C$26:$C$31,0),MATCH(Calc_Proposed!CR$6,'Energy Prices'!$F$11:$CR$11,0))/100000,0)","v":0},{"$f":"IFERROR('Data Input - Proposed'!CW85*INDEX('Energy Prices'!$F$26:$CR$31,MATCH($B129,'Energy Prices'!$C$26:$C$31,0),MATCH(Calc_Proposed!CS$6,'Energy Prices'!$F$11:$CR$11,0))/100000,0)","v":0},{"$f":"IFERROR('Data Input - Proposed'!CX85*INDEX('Energy Prices'!$F$26:$CR$31,MATCH($B129,'Energy Prices'!$C$26:$C$31,0),MATCH(Calc_Proposed!CT$6,'Energy Prices'!$F$11:$CR$11,0))/100000,0)","v":0},{"$f":"IFERROR('Data Input - Proposed'!CY85*INDEX('Energy Prices'!$F$26:$CR$31,MATCH($B129,'Energy Prices'!$C$26:$C$31,0),MATCH(Calc_Proposed!CU$6,'Energy Prices'!$F$11:$CR$11,0))/100000,0)","v":0},{"$f":"IFERROR('Data Input - Proposed'!CZ85*INDEX('Energy Prices'!$F$26:$CR$31,MATCH($B129,'Energy Prices'!$C$26:$C$31,0),MATCH(Calc_Proposed!CV$6,'Energy Prices'!$F$11:$CR$11,0))/100000,0)","v":0},{"$f":"IFERROR('Data Input - Proposed'!DA85*INDEX('Energy Prices'!$F$26:$CR$31,MATCH($B129,'Energy Prices'!$C$26:$C$31,0),MATCH(Calc_Proposed!CW$6,'Energy Prices'!$F$11:$CR$11,0))/100000,0)","v":0},{"$f":"IFERROR('Data Input - Proposed'!DB85*INDEX('Energy Prices'!$F$26:$CR$31,MATCH($B129,'Energy Prices'!$C$26:$C$31,0),MATCH(Calc_Proposed!CX$6,'Energy Prices'!$F$11:$CR$11,0))/100000,0)","v":0},{"$f":"IFERROR('Data Input - Proposed'!DC85*INDEX('Energy Prices'!$F$26:$CR$31,MATCH($B129,'Energy Prices'!$C$26:$C$31,0),MATCH(Calc_Proposed!CY$6,'Energy Prices'!$F$11:$CR$11,0))/100000,0)","v":0}]
[null,"Coal","£000's",{"$f":"IFERROR('Data Input - Proposed'!H86*INDEX('Energy Prices'!$F$26:$CR$31,MATCH($B130,'Energy Prices'!$C$26:$C$31,0),MATCH(Calc_Proposed!D$6,'Energy Prices'!$F$11:$CR$11,0))/100000,0)","v":1115.9423257851734},{"$f":"IFERROR('Data Input - Proposed'!I86*INDEX('Energy Prices'!$F$26:$CR$31,MATCH($B130,'Energy Prices'!$C$26:$C$31,0),MATCH(Calc_Proposed!E$6,'Energy Prices'!$F$11:$CR$11,0))/100000,0)","v":1145.3793368593567},{"$f":"IFERROR('Data Input - Proposed'!J86*INDEX('Energy Prices'!$F$26:$CR$31,MATCH($B130,'Energy Prices'!$C$26:$C$31,0),MATCH(Calc_Proposed!F$6,'Energy Prices'!$F$11:$CR$11,0))/100000,0)","v":1174.8204553424844},{"$f":"IFERROR('Data Input - Proposed'!K86*INDEX('Energy Prices'!$F$26:$CR$31,MATCH($B130,'Energy Prices'!$C$26:$C$31,0),MATCH(Calc_Proposed!G$6,'Energy Prices'!$F$11:$CR$11,0))/100000,0)","v":1204.2578912819392},{"$f":"IFERROR('Data Input - Proposed'!L86*INDEX('Energy Prices'!$F$26:$CR$31,MATCH($B130,'Energy Prices'!$C$26:$C$31,0),MATCH(Calc_Proposed!H$6,'Energy Prices'!$F$11:$CR$11,0))/100000,0)","v":1233.6955152831745},{"$f":"IFERROR('Data Input - Proposed'!M86*INDEX('Energy Prices'!$F$26:$CR$31,MATCH($B130,'Energy Prices'!$C$26:$C$31,0),MATCH(Calc_Proposed!I$6,'Energy Prices'!$F$11:$CR$11,0))/100000,0)","v":1263.1333286330253},{"$f":"IFERROR('Data Input - Proposed'!N86*INDEX('Energy Prices'!$F$26:$CR$31,MATCH($B130,'Energy Prices'!$C$26:$C$31,0),MATCH(Calc_Proposed!J$6,'Energy Prices'!$F$11:$CR$11,0))/100000,0)","v":1292.5713326271323},{"$f":"IFERROR('Data Input - Proposed'!O86*INDEX('Energy Prices'!$F$26:$CR$31,MATCH($B130,'Energy Prices'!$C$26:$C$31,0),MATCH(Calc_Proposed!K$6,'Energy Prices'!$F$11:$CR$11,0))/100000,0)","v":1322.009528570002},{"$f":"IFERROR('Data Input - Proposed'!P86*INDEX('Energy Prices'!$F$26:$CR$31,MATCH($B130,'Energy Prices'!$C$26:$C$31,0),MATCH(Calc_Proposed!L$6,'Energy Prices'!$F$11:$CR$11,0))/100000,0)","v":0},{"$f":"IFERROR('Data Input - Proposed'!Q86*INDEX('Energy Prices'!$F$26:$CR$31,MATCH($B130,'Energy Prices'!$C$26:$C$31,0),MATCH(Calc_Proposed!M$6,'Energy Prices'!$F$11:$CR$11,0))/100000,0)","v":0},{"$f":"IFERROR('Data Input - Proposed'!R86*INDEX('Energy Prices'!$F$26:$CR$31,MATCH($B130,'Energy Prices'!$C$26:$C$31,0),MATCH(Calc_Proposed!N$6,'Energy Prices'!$F$11:$CR$11,0))/100000,0)","v":0},{"$f":"IFERROR('Data Input - Proposed'!S86*INDEX('Energy Prices'!$F$26:$CR$31,MATCH($B130,'Energy Prices'!$C$26:$C$31,0),MATCH(Calc_Proposed!O$6,'Energy Prices'!$F$11:$CR$11,0))/100000,0)","v":0},{"$f":"IFERROR('Data Input - Proposed'!T86*INDEX('Energy Prices'!$F$26:$CR$31,MATCH($B130,'Energy Prices'!$C$26:$C$31,0),MATCH(Calc_Proposed!P$6,'Energy Prices'!$F$11:$CR$11,0))/100000,0)","v":0},{"$f":"IFERROR('Data Input - Proposed'!U86*INDEX('Energy Prices'!$F$26:$CR$31,MATCH($B130,'Energy Prices'!$C$26:$C$31,0),MATCH(Calc_Proposed!Q$6,'Energy Prices'!$F$11:$CR$11,0))/100000,0)","v":0},{"$f":"IFERROR('Data Input - Proposed'!V86*INDEX('Energy Prices'!$F$26:$CR$31,MATCH($B130,'Energy Prices'!$C$26:$C$31,0),MATCH(Calc_Proposed!R$6,'Energy Prices'!$F$11:$CR$11,0))/100000,0)","v":0},{"$f":"IFERROR('Data Input - Proposed'!W86*INDEX('Energy Prices'!$F$26:$CR$31,MATCH($B130,'Energy Prices'!$C$26:$C$31,0),MATCH(Calc_Proposed!S$6,'Energy Prices'!$F$11:$CR$11,0))/100000,0)","v":0},{"$f":"IFERROR('Data Input - Proposed'!X86*INDEX('Energy Prices'!$F$26:$CR$31,MATCH($B130,'Energy Prices'!$C$26:$C$31,0),MATCH(Calc_Proposed!T$6,'Energy Prices'!$F$11:$CR$11,0))/100000,0)","v":0},{"$f":"IFERROR('Data Input - Proposed'!Y86*INDEX('Energy Prices'!$F$26:$CR$31,MATCH($B130,'Energy Prices'!$C$26:$C$31,0),MATCH(Calc_Proposed!U$6,'Energy Prices'!$F$11:$CR$11,0))/100000,0)","v":0},{"$f":"IFERROR('Data Input - Proposed'!Z86*INDEX('Energy Prices'!$F$26:$CR$31,MATCH($B130,'Energy Prices'!$C$26:$C$31,0),MATCH(Calc_Proposed!V$6,'Energy Prices'!$F$11:$CR$11,0))/100000,0)","v":0},{"$f":"IFERROR('Data Input - Proposed'!AA86*INDEX('Energy Prices'!$F$26:$CR$31,MATCH($B130,'Energy Prices'!$C$26:$C$31,0),MATCH(Calc_Proposed!W$6,'Energy Prices'!$F$11:$CR$11,0))/100000,0)","v":0},{"$f":"IFERROR('Data Input - Proposed'!AB86*INDEX('Energy Prices'!$F$26:$CR$31,MATCH($B130,'Energy Prices'!$C$26:$C$31,0),MATCH(Calc_Proposed!X$6,'Energy Prices'!$F$11:$CR$11,0))/100000,0)","v":0},{"$f":"IFERROR('Data Input - Proposed'!AC86*INDEX('Energy Prices'!$F$26:$CR$31,MATCH($B130,'Energy Prices'!$C$26:$C$31,0),MATCH(Calc_Proposed!Y$6,'Energy Prices'!$F$11:$CR$11,0))/100000,0)","v":0},{"$f":"IFERROR('Data Input - Proposed'!AD86*INDEX('Energy Prices'!$F$26:$CR$31,MATCH($B130,'Energy Prices'!$C$26:$C$31,0),MATCH(Calc_Proposed!Z$6,'Energy Prices'!$F$11:$CR$11,0))/100000,0)","v":0},{"$f":"IFERROR('Data Input - Proposed'!AE86*INDEX('Energy Prices'!$F$26:$CR$31,MATCH($B130,'Energy Prices'!$C$26:$C$31,0),MATCH(Calc_Proposed!AA$6,'Energy Prices'!$F$11:$CR$11,0))/100000,0)","v":0},{"$f":"IFERROR('Data Input - Proposed'!AF86*INDEX('Energy Prices'!$F$26:$CR$31,MATCH($B130,'Energy Prices'!$C$26:$C$31,0),MATCH(Calc_Proposed!AB$6,'Energy Prices'!$F$11:$CR$11,0))/100000,0)","v":0},{"$f":"IFERROR('Data Input - Proposed'!AG86*INDEX('Energy Prices'!$F$26:$CR$31,MATCH($B130,'Energy Prices'!$C$26:$C$31,0),MATCH(Calc_Proposed!AC$6,'Energy Prices'!$F$11:$CR$11,0))/100000,0)","v":0},{"$f":"IFERROR('Data Input - Proposed'!AH86*INDEX('Energy Prices'!$F$26:$CR$31,MATCH($B130,'Energy Prices'!$C$26:$C$31,0),MATCH(Calc_Proposed!AD$6,'Energy Prices'!$F$11:$CR$11,0))/100000,0)","v":0},{"$f":"IFERROR('Data Input - Proposed'!AI86*INDEX('Energy Prices'!$F$26:$CR$31,MATCH($B130,'Energy Prices'!$C$26:$C$31,0),MATCH(Calc_Proposed!AE$6,'Energy Prices'!$F$11:$CR$11,0))/100000,0)","v":0},{"$f":"IFERROR('Data Input - Proposed'!AJ86*INDEX('Energy Prices'!$F$26:$CR$31,MATCH($B130,'Energy Prices'!$C$26:$C$31,0),MATCH(Calc_Proposed!AF$6,'Energy Prices'!$F$11:$CR$11,0))/100000,0)","v":0},{"$f":"IFERROR('Data Input - Proposed'!AK86*INDEX('Energy Prices'!$F$26:$CR$31,MATCH($B130,'Energy Prices'!$C$26:$C$31,0),MATCH(Calc_Proposed!AG$6,'Energy Prices'!$F$11:$CR$11,0))/100000,0)","v":0},{"$f":"IFERROR('Data Input - Proposed'!AL86*INDEX('Energy Prices'!$F$26:$CR$31,MATCH($B130,'Energy Prices'!$C$26:$C$31,0),MATCH(Calc_Proposed!AH$6,'Energy Prices'!$F$11:$CR$11,0))/100000,0)","v":0},{"$f":"IFERROR('Data Input - Proposed'!AM86*INDEX('Energy Prices'!$F$26:$CR$31,MATCH($B130,'Energy Prices'!$C$26:$C$31,0),MATCH(Calc_Proposed!AI$6,'Energy Prices'!$F$11:$CR$11,0))/100000,0)","v":0},{"$f":"IFERROR('Data Input - Proposed'!AN86*INDEX('Energy Prices'!$F$26:$CR$31,MATCH($B130,'Energy Prices'!$C$26:$C$31,0),MATCH(Calc_Proposed!AJ$6,'Energy Prices'!$F$11:$CR$11,0))/100000,0)","v":0},{"$f":"IFERROR('Data Input - Proposed'!AO86*INDEX('Energy Prices'!$F$26:$CR$31,MATCH($B130,'Energy Prices'!$C$26:$C$31,0),MATCH(Calc_Proposed!AK$6,'Energy Prices'!$F$11:$CR$11,0))/100000,0)","v":0},{"$f":"IFERROR('Data Input - Proposed'!AP86*INDEX('Energy Prices'!$F$26:$CR$31,MATCH($B130,'Energy Prices'!$C$26:$C$31,0),MATCH(Calc_Proposed!AL$6,'Energy Prices'!$F$11:$CR$11,0))/100000,0)","v":0},{"$f":"IFERROR('Data Input - Proposed'!AQ86*INDEX('Energy Prices'!$F$26:$CR$31,MATCH($B130,'Energy Prices'!$C$26:$C$31,0),MATCH(Calc_Proposed!AM$6,'Energy Prices'!$F$11:$CR$11,0))/100000,0)","v":0},{"$f":"IFERROR('Data Input - Proposed'!AR86*INDEX('Energy Prices'!$F$26:$CR$31,MATCH($B130,'Energy Prices'!$C$26:$C$31,0),MATCH(Calc_Proposed!AN$6,'Energy Prices'!$F$11:$CR$11,0))/100000,0)","v":0},{"$f":"IFERROR('Data Input - Proposed'!AS86*INDEX('Energy Prices'!$F$26:$CR$31,MATCH($B130,'Energy Prices'!$C$26:$C$31,0),MATCH(Calc_Proposed!AO$6,'Energy Prices'!$F$11:$CR$11,0))/100000,0)","v":0},{"$f":"IFERROR('Data Input - Proposed'!AT86*INDEX('Energy Prices'!$F$26:$CR$31,MATCH($B130,'Energy Prices'!$C$26:$C$31,0),MATCH(Calc_Proposed!AP$6,'Energy Prices'!$F$11:$CR$11,0))/100000,0)","v":0},{"$f":"IFERROR('Data Input - Proposed'!AU86*INDEX('Energy Prices'!$F$26:$CR$31,MATCH($B130,'Energy Prices'!$C$26:$C$31,0),MATCH(Calc_Proposed!AQ$6,'Energy Prices'!$F$11:$CR$11,0))/100000,0)","v":0},{"$f":"IFERROR('Data Input - Proposed'!AV86*INDEX('Energy Prices'!$F$26:$CR$31,MATCH($B130,'Energy Prices'!$C$26:$C$31,0),MATCH(Calc_Proposed!AR$6,'Energy Prices'!$F$11:$CR$11,0))/100000,0)","v":0},{"$f":"IFERROR('Data Input - Proposed'!AW86*INDEX('Energy Prices'!$F$26:$CR$31,MATCH($B130,'Energy Prices'!$C$26:$C$31,0),MATCH(Calc_Proposed!AS$6,'Energy Prices'!$F$11:$CR$11,0))/100000,0)","v":0},{"$f":"IFERROR('Data Input - Proposed'!AX86*INDEX('Energy Prices'!$F$26:$CR$31,MATCH($B130,'Energy Prices'!$C$26:$C$31,0),MATCH(Calc_Proposed!AT$6,'Energy Prices'!$F$11:$CR$11,0))/100000,0)","v":0},{"$f":"IFERROR('Data Input - Proposed'!AY86*INDEX('Energy Prices'!$F$26:$CR$31,MATCH($B130,'Energy Prices'!$C$26:$C$31,0),MATCH(Calc_Proposed!AU$6,'Energy Prices'!$F$11:$CR$11,0))/100000,0)","v":0},{"$f":"IFERROR('Data Input - Proposed'!AZ86*INDEX('Energy Prices'!$F$26:$CR$31,MATCH($B130,'Energy Prices'!$C$26:$C$31,0),MATCH(Calc_Proposed!AV$6,'Energy Prices'!$F$11:$CR$11,0))/100000,0)","v":0},{"$f":"IFERROR('Data Input - Proposed'!BA86*INDEX('Energy Prices'!$F$26:$CR$31,MATCH($B130,'Energy Prices'!$C$26:$C$31,0),MATCH(Calc_Proposed!AW$6,'Energy Prices'!$F$11:$CR$11,0))/100000,0)","v":0},{"$f":"IFERROR('Data Input - Proposed'!BB86*INDEX('Energy Prices'!$F$26:$CR$31,MATCH($B130,'Energy Prices'!$C$26:$C$31,0),MATCH(Calc_Proposed!AX$6,'Energy Prices'!$F$11:$CR$11,0))/100000,0)","v":0},{"$f":"IFERROR('Data Input - Proposed'!BC86*INDEX('Energy Prices'!$F$26:$CR$31,MATCH($B130,'Energy Prices'!$C$26:$C$31,0),MATCH(Calc_Proposed!AY$6,'Energy Prices'!$F$11:$CR$11,0))/100000,0)","v":0},{"$f":"IFERROR('Data Input - Proposed'!BD86*INDEX('Energy Prices'!$F$26:$CR$31,MATCH($B130,'Energy Prices'!$C$26:$C$31,0),MATCH(Calc_Proposed!AZ$6,'Energy Prices'!$F$11:$CR$11,0))/100000,0)","v":0},{"$f":"IFERROR('Data Input - Proposed'!BE86*INDEX('Energy Prices'!$F$26:$CR$31,MATCH($B130,'Energy Prices'!$C$26:$C$31,0),MATCH(Calc_Proposed!BA$6,'Energy Prices'!$F$11:$CR$11,0))/100000,0)","v":0},{"$f":"IFERROR('Data Input - Proposed'!BF86*INDEX('Energy Prices'!$F$26:$CR$31,MATCH($B130,'Energy Prices'!$C$26:$C$31,0),MATCH(Calc_Proposed!BB$6,'Energy Prices'!$F$11:$CR$11,0))/100000,0)","v":0},{"$f":"IFERROR('Data Input - Proposed'!BG86*INDEX('Energy Prices'!$F$26:$CR$31,MATCH($B130,'Energy Prices'!$C$26:$C$31,0),MATCH(Calc_Proposed!BC$6,'Energy Prices'!$F$11:$CR$11,0))/100000,0)","v":0},{"$f":"IFERROR('Data Input - Proposed'!BH86*INDEX('Energy Prices'!$F$26:$CR$31,MATCH($B130,'Energy Prices'!$C$26:$C$31,0),MATCH(Calc_Proposed!BD$6,'Energy Prices'!$F$11:$CR$11,0))/100000,0)","v":0},{"$f":"IFERROR('Data Input - Proposed'!BI86*INDEX('Energy Prices'!$F$26:$CR$31,MATCH($B130,'Energy Prices'!$C$26:$C$31,0),MATCH(Calc_Proposed!BE$6,'Energy Prices'!$F$11:$CR$11,0))/100000,0)","v":0},{"$f":"IFERROR('Data Input - Proposed'!BJ86*INDEX('Energy Prices'!$F$26:$CR$31,MATCH($B130,'Energy Prices'!$C$26:$C$31,0),MATCH(Calc_Proposed!BF$6,'Energy Prices'!$F$11:$CR$11,0))/100000,0)","v":0},{"$f":"IFERROR('Data Input - Proposed'!BK86*INDEX('Energy Prices'!$F$26:$CR$31,MATCH($B130,'Energy Prices'!$C$26:$C$31,0),MATCH(Calc_Proposed!BG$6,'Energy Prices'!$F$11:$CR$11,0))/100000,0)","v":0},{"$f":"IFERROR('Data Input - Proposed'!BL86*INDEX('Energy Prices'!$F$26:$CR$31,MATCH($B130,'Energy Prices'!$C$26:$C$31,0),MATCH(Calc_Proposed!BH$6,'Energy Prices'!$F$11:$CR$11,0))/100000,0)","v":0},{"$f":"IFERROR('Data Input - Proposed'!BM86*INDEX('Energy Prices'!$F$26:$CR$31,MATCH($B130,'Energy Prices'!$C$26:$C$31,0),MATCH(Calc_Proposed!BI$6,'Energy Prices'!$F$11:$CR$11,0))/100000,0)","v":0},{"$f":"IFERROR('Data Input - Proposed'!BN86*INDEX('Energy Prices'!$F$26:$CR$31,MATCH($B130,'Energy Prices'!$C$26:$C$31,0),MATCH(Calc_Proposed!BJ$6,'Energy Prices'!$F$11:$CR$11,0))/100000,0)","v":0},{"$f":"IFERROR('Data Input - Proposed'!BO86*INDEX('Energy Prices'!$F$26:$CR$31,MATCH($B130,'Energy Prices'!$C$26:$C$31,0),MATCH(Calc_Proposed!BK$6,'Energy Prices'!$F$11:$CR$11,0))/100000,0)","v":0},{"$f":"IFERROR('Data Input - Proposed'!BP86*INDEX('Energy Prices'!$F$26:$CR$31,MATCH($B130,'Energy Prices'!$C$26:$C$31,0),MATCH(Calc_Proposed!BL$6,'Energy Prices'!$F$11:$CR$11,0))/100000,0)","v":0},{"$f":"IFERROR('Data Input - Proposed'!BQ86*INDEX('Energy Prices'!$F$26:$CR$31,MATCH($B130,'Energy Prices'!$C$26:$C$31,0),MATCH(Calc_Proposed!BM$6,'Energy Prices'!$F$11:$CR$11,0))/100000,0)","v":0},{"$f":"IFERROR('Data Input - Proposed'!BR86*INDEX('Energy Prices'!$F$26:$CR$31,MATCH($B130,'Energy Prices'!$C$26:$C$31,0),MATCH(Calc_Proposed!BN$6,'Energy Prices'!$F$11:$CR$11,0))/100000,0)","v":0},{"$f":"IFERROR('Data Input - Proposed'!BS86*INDEX('Energy Prices'!$F$26:$CR$31,MATCH($B130,'Energy Prices'!$C$26:$C$31,0),MATCH(Calc_Proposed!BO$6,'Energy Prices'!$F$11:$CR$11,0))/100000,0)","v":0},{"$f":"IFERROR('Data Input - Proposed'!BT86*INDEX('Energy Prices'!$F$26:$CR$31,MATCH($B130,'Energy Prices'!$C$26:$C$31,0),MATCH(Calc_Proposed!BP$6,'Energy Prices'!$F$11:$CR$11,0))/100000,0)","v":0},{"$f":"IFERROR('Data Input - Proposed'!BU86*INDEX('Energy Prices'!$F$26:$CR$31,MATCH($B130,'Energy Prices'!$C$26:$C$31,0),MATCH(Calc_Proposed!BQ$6,'Energy Prices'!$F$11:$CR$11,0))/100000,0)","v":0},{"$f":"IFERROR('Data Input - Proposed'!BV86*INDEX('Energy Prices'!$F$26:$CR$31,MATCH($B130,'Energy Prices'!$C$26:$C$31,0),MATCH(Calc_Proposed!BR$6,'Energy Prices'!$F$11:$CR$11,0))/100000,0)","v":0},{"$f":"IFERROR('Data Input - Proposed'!BW86*INDEX('Energy Prices'!$F$26:$CR$31,MATCH($B130,'Energy Prices'!$C$26:$C$31,0),MATCH(Calc_Proposed!BS$6,'Energy Prices'!$F$11:$CR$11,0))/100000,0)","v":0},{"$f":"IFERROR('Data Input - Proposed'!BX86*INDEX('Energy Prices'!$F$26:$CR$31,MATCH($B130,'Energy Prices'!$C$26:$C$31,0),MATCH(Calc_Proposed!BT$6,'Energy Prices'!$F$11:$CR$11,0))/100000,0)","v":0},{"$f":"IFERROR('Data Input - Proposed'!BY86*INDEX('Energy Prices'!$F$26:$CR$31,MATCH($B130,'Energy Prices'!$C$26:$C$31,0),MATCH(Calc_Proposed!BU$6,'Energy Prices'!$F$11:$CR$11,0))/100000,0)","v":0},{"$f":"IFERROR('Data Input - Proposed'!BZ86*INDEX('Energy Prices'!$F$26:$CR$31,MATCH($B130,'Energy Prices'!$C$26:$C$31,0),MATCH(Calc_Proposed!BV$6,'Energy Prices'!$F$11:$CR$11,0))/100000,0)","v":0},{"$f":"IFERROR('Data Input - Proposed'!CA86*INDEX('Energy Prices'!$F$26:$CR$31,MATCH($B130,'Energy Prices'!$C$26:$C$31,0),MATCH(Calc_Proposed!BW$6,'Energy Prices'!$F$11:$CR$11,0))/100000,0)","v":0},{"$f":"IFERROR('Data Input - Proposed'!CB86*INDEX('Energy Prices'!$F$26:$CR$31,MATCH($B130,'Energy Prices'!$C$26:$C$31,0),MATCH(Calc_Proposed!BX$6,'Energy Prices'!$F$11:$CR$11,0))/100000,0)","v":0},{"$f":"IFERROR('Data Input - Proposed'!CC86*INDEX('Energy Prices'!$F$26:$CR$31,MATCH($B130,'Energy Prices'!$C$26:$C$31,0),MATCH(Calc_Proposed!BY$6,'Energy Prices'!$F$11:$CR$11,0))/100000,0)","v":0},{"$f":"IFERROR('Data Input - Proposed'!CD86*INDEX('Energy Prices'!$F$26:$CR$31,MATCH($B130,'Energy Prices'!$C$26:$C$31,0),MATCH(Calc_Proposed!BZ$6,'Energy Prices'!$F$11:$CR$11,0))/100000,0)","v":0},{"$f":"IFERROR('Data Input - Proposed'!CE86*INDEX('Energy Prices'!$F$26:$CR$31,MATCH($B130,'Energy Prices'!$C$26:$C$31,0),MATCH(Calc_Proposed!CA$6,'Energy Prices'!$F$11:$CR$11,0))/100000,0)","v":0},{"$f":"IFERROR('Data Input - Proposed'!CF86*INDEX('Energy Prices'!$F$26:$CR$31,MATCH($B130,'Energy Prices'!$C$26:$C$31,0),MATCH(Calc_Proposed!CB$6,'Energy Prices'!$F$11:$CR$11,0))/100000,0)","v":0},{"$f":"IFERROR('Data Input - Proposed'!CG86*INDEX('Energy Prices'!$F$26:$CR$31,MATCH($B130,'Energy Prices'!$C$26:$C$31,0),MATCH(Calc_Proposed!CC$6,'Energy Prices'!$F$11:$CR$11,0))/100000,0)","v":0},{"$f":"IFERROR('Data Input - Proposed'!CH86*INDEX('Energy Prices'!$F$26:$CR$31,MATCH($B130,'Energy Prices'!$C$26:$C$31,0),MATCH(Calc_Proposed!CD$6,'Energy Prices'!$F$11:$CR$11,0))/100000,0)","v":0},{"$f":"IFERROR('Data Input - Proposed'!CI86*INDEX('Energy Prices'!$F$26:$CR$31,MATCH($B130,'Energy Prices'!$C$26:$C$31,0),MATCH(Calc_Proposed!CE$6,'Energy Prices'!$F$11:$CR$11,0))/100000,0)","v":0},{"$f":"IFERROR('Data Input - Proposed'!CJ86*INDEX('Energy Prices'!$F$26:$CR$31,MATCH($B130,'Energy Prices'!$C$26:$C$31,0),MATCH(Calc_Proposed!CF$6,'Energy Prices'!$F$11:$CR$11,0))/100000,0)","v":0},{"$f":"IFERROR('Data Input - Proposed'!CK86*INDEX('Energy Prices'!$F$26:$CR$31,MATCH($B130,'Energy Prices'!$C$26:$C$31,0),MATCH(Calc_Proposed!CG$6,'Energy Prices'!$F$11:$CR$11,0))/100000,0)","v":0},{"$f":"IFERROR('Data Input - Proposed'!CL86*INDEX('Energy Prices'!$F$26:$CR$31,MATCH($B130,'Energy Prices'!$C$26:$C$31,0),MATCH(Calc_Proposed!CH$6,'Energy Prices'!$F$11:$CR$11,0))/100000,0)","v":0},{"$f":"IFERROR('Data Input - Proposed'!CM86*INDEX('Energy Prices'!$F$26:$CR$31,MATCH($B130,'Energy Prices'!$C$26:$C$31,0),MATCH(Calc_Proposed!CI$6,'Energy Prices'!$F$11:$CR$11,0))/100000,0)","v":0},{"$f":"IFERROR('Data Input - Proposed'!CN86*INDEX('Energy Prices'!$F$26:$CR$31,MATCH($B130,'Energy Prices'!$C$26:$C$31,0),MATCH(Calc_Proposed!CJ$6,'Energy Prices'!$F$11:$CR$11,0))/100000,0)","v":0},{"$f":"IFERROR('Data Input - Proposed'!CO86*INDEX('Energy Prices'!$F$26:$CR$31,MATCH($B130,'Energy Prices'!$C$26:$C$31,0),MATCH(Calc_Proposed!CK$6,'Energy Prices'!$F$11:$CR$11,0))/100000,0)","v":0},{"$f":"IFERROR('Data Input - Proposed'!CP86*INDEX('Energy Prices'!$F$26:$CR$31,MATCH($B130,'Energy Prices'!$C$26:$C$31,0),MATCH(Calc_Proposed!CL$6,'Energy Prices'!$F$11:$CR$11,0))/100000,0)","v":0},{"$f":"IFERROR('Data Input - Proposed'!CQ86*INDEX('Energy Prices'!$F$26:$CR$31,MATCH($B130,'Energy Prices'!$C$26:$C$31,0),MATCH(Calc_Proposed!CM$6,'Energy Prices'!$F$11:$CR$11,0))/100000,0)","v":0},{"$f":"IFERROR('Data Input - Proposed'!CR86*INDEX('Energy Prices'!$F$26:$CR$31,MATCH($B130,'Energy Prices'!$C$26:$C$31,0),MATCH(Calc_Proposed!CN$6,'Energy Prices'!$F$11:$CR$11,0))/100000,0)","v":0},{"$f":"IFERROR('Data Input - Proposed'!CS86*INDEX('Energy Prices'!$F$26:$CR$31,MATCH($B130,'Energy Prices'!$C$26:$C$31,0),MATCH(Calc_Proposed!CO$6,'Energy Prices'!$F$11:$CR$11,0))/100000,0)","v":0},{"$f":"IFERROR('Data Input - Proposed'!CT86*INDEX('Energy Prices'!$F$26:$CR$31,MATCH($B130,'Energy Prices'!$C$26:$C$31,0),MATCH(Calc_Proposed!CP$6,'Energy Prices'!$F$11:$CR$11,0))/100000,0)","v":0},{"$f":"IFERROR('Data Input - Proposed'!CU86*INDEX('Energy Prices'!$F$26:$CR$31,MATCH($B130,'Energy Prices'!$C$26:$C$31,0),MATCH(Calc_Proposed!CQ$6,'Energy Prices'!$F$11:$CR$11,0))/100000,0)","v":0},{"$f":"IFERROR('Data Input - Proposed'!CV86*INDEX('Energy Prices'!$F$26:$CR$31,MATCH($B130,'Energy Prices'!$C$26:$C$31,0),MATCH(Calc_Proposed!CR$6,'Energy Prices'!$F$11:$CR$11,0))/100000,0)","v":0},{"$f":"IFERROR('Data Input - Proposed'!CW86*INDEX('Energy Prices'!$F$26:$CR$31,MATCH($B130,'Energy Prices'!$C$26:$C$31,0),MATCH(Calc_Proposed!CS$6,'Energy Prices'!$F$11:$CR$11,0))/100000,0)","v":0},{"$f":"IFERROR('Data Input - Proposed'!CX86*INDEX('Energy Prices'!$F$26:$CR$31,MATCH($B130,'Energy Prices'!$C$26:$C$31,0),MATCH(Calc_Proposed!CT$6,'Energy Prices'!$F$11:$CR$11,0))/100000,0)","v":0},{"$f":"IFERROR('Data Input - Proposed'!CY86*INDEX('Energy Prices'!$F$26:$CR$31,MATCH($B130,'Energy Prices'!$C$26:$C$31,0),MATCH(Calc_Proposed!CU$6,'Energy Prices'!$F$11:$CR$11,0))/100000,0)","v":0},{"$f":"IFERROR('Data Input - Proposed'!CZ86*INDEX('Energy Prices'!$F$26:$CR$31,MATCH($B130,'Energy Prices'!$C$26:$C$31,0),MATCH(Calc_Proposed!CV$6,'Energy Prices'!$F$11:$CR$11,0))/100000,0)","v":0},{"$f":"IFERROR('Data Input - Proposed'!DA86*INDEX('Energy Prices'!$F$26:$CR$31,MATCH($B130,'Energy Prices'!$C$26:$C$31,0),MATCH(Calc_Proposed!CW$6,'Energy Prices'!$F$11:$CR$11,0))/100000,0)","v":0},{"$f":"IFERROR('Data Input - Proposed'!DB86*INDEX('Energy Prices'!$F$26:$CR$31,MATCH($B130,'Energy Prices'!$C$26:$C$31,0),MATCH(Calc_Proposed!CX$6,'Energy Prices'!$F$11:$CR$11,0))/100000,0)","v":0},{"$f":"IFERROR('Data Input - Proposed'!DC86*INDEX('Energy Prices'!$F$26:$CR$31,MATCH($B130,'Energy Prices'!$C$26:$C$31,0),MATCH(Calc_Proposed!CY$6,'Energy Prices'!$F$11:$CR$11,0))/100000,0)","v":0}]
[null,"Gas Oil","£000's",{"$f":"IFERROR('Data Input - Proposed'!H87*INDEX('Energy Prices'!$F$26:$CR$31,MATCH($B131,'Energy Prices'!$C$26:$C$31,0),MATCH(Calc_Proposed!D$6,'Energy Prices'!$F$11:$CR$11,0))/100000,0)","v":159.58768760508622},{"$f":"IFERROR('Data Input - Proposed'!I87*INDEX('Energy Prices'!$F$26:$CR$31,MATCH($B131,'Energy Prices'!$C$26:$C$31,0),MATCH(Calc_Proposed!E$6,'Energy Prices'!$F$11:$CR$11,0))/100000,0)","v":163.88916071794324},{"$f":"IFERROR('Data Input - Proposed'!J87*INDEX('Energy Prices'!$F$26:$CR$31,MATCH($B131,'Energy Prices'!$C$26:$C$31,0),MATCH(Calc_Proposed!F$6,'Energy Prices'!$F$11:$CR$11,0))/100000,0)","v":168.20994897459815},{"$f":"IFERROR('Data Input - Proposed'!K87*INDEX('Energy Prices'!$F$26:$CR$31,MATCH($B131,'Energy Prices'!$C$26:$C$31,0),MATCH(Calc_Proposed!G$6,'Energy Prices'!$F$11:$CR$11,0))/100000,0)","v":172.51610138744758},{"$f":"IFERROR('Data Input - Proposed'!L87*INDEX('Energy Prices'!$F$26:$CR$31,MATCH($B131,'Energy Prices'!$C$26:$C$31,0),MATCH(Calc_Proposed!H$6,'Energy Prices'!$F$11:$CR$11,0))/100000,0)","v":176.81563540542891},{"$f":"IFERROR('Data Input - Proposed'!M87*INDEX('Energy Prices'!$F$26:$CR$31,MATCH($B131,'Energy Prices'!$C$26:$C$31,0),MATCH(Calc_Proposed!I$6,'Energy Prices'!$F$11:$CR$11,0))/100000,0)","v":181.11632434999379},{"$f":"IFERROR('Data Input - Proposed'!N87*INDEX('Energy Prices'!$F$26:$CR$31,MATCH($B131,'Energy Prices'!$C$26:$C$31,0),MATCH(Calc_Proposed!J$6,'Energy Prices'!$F$11:$CR$11,0))/100000,0)","v":185.41817612386572},{"$f":"IFERROR('Data Input - Proposed'!O87*INDEX('Energy Prices'!$F$26:$CR$31,MATCH($B131,'Energy Prices'!$C$26:$C$31,0),MATCH(Calc_Proposed!K$6,'Energy Prices'!$F$11:$CR$11,0))/100000,0)","v":189.7211986838434},{"$f":"IFERROR('Data Input - Proposed'!P87*INDEX('Energy Prices'!$F$26:$CR$31,MATCH($B131,'Energy Prices'!$C$26:$C$31,0),MATCH(Calc_Proposed!L$6,'Energy Prices'!$F$11:$CR$11,0))/100000,0)","v":0},{"$f":"IFERROR('Data Input - Proposed'!Q87*INDEX('Energy Prices'!$F$26:$CR$31,MATCH($B131,'Energy Prices'!$C$26:$C$31,0),MATCH(Calc_Proposed!M$6,'Energy Prices'!$F$11:$CR$11,0))/100000,0)","v":0},{"$f":"IFERROR('Data Input - Proposed'!R87*INDEX('Energy Prices'!$F$26:$CR$31,MATCH($B131,'Energy Prices'!$C$26:$C$31,0),MATCH(Calc_Proposed!N$6,'Energy Prices'!$F$11:$CR$11,0))/100000,0)","v":0},{"$f":"IFERROR('Data Input - Proposed'!S87*INDEX('Energy Prices'!$F$26:$CR$31,MATCH($B131,'Energy Prices'!$C$26:$C$31,0),MATCH(Calc_Proposed!O$6,'Energy Prices'!$F$11:$CR$11,0))/100000,0)","v":0},{"$f":"IFERROR('Data Input - Proposed'!T87*INDEX('Energy Prices'!$F$26:$CR$31,MATCH($B131,'Energy Prices'!$C$26:$C$31,0),MATCH(Calc_Proposed!P$6,'Energy Prices'!$F$11:$CR$11,0))/100000,0)","v":0},{"$f":"IFERROR('Data Input - Proposed'!U87*INDEX('Energy Prices'!$F$26:$CR$31,MATCH($B131,'Energy Prices'!$C$26:$C$31,0),MATCH(Calc_Proposed!Q$6,'Energy Prices'!$F$11:$CR$11,0))/100000,0)","v":0},{"$f":"IFERROR('Data Input - Proposed'!V87*INDEX('Energy Prices'!$F$26:$CR$31,MATCH($B131,'Energy Prices'!$C$26:$C$31,0),MATCH(Calc_Proposed!R$6,'Energy Prices'!$F$11:$CR$11,0))/100000,0)","v":0},{"$f":"IFERROR('Data Input - Proposed'!W87*INDEX('Energy Prices'!$F$26:$CR$31,MATCH($B131,'Energy Prices'!$C$26:$C$31,0),MATCH(Calc_Proposed!S$6,'Energy Prices'!$F$11:$CR$11,0))/100000,0)","v":0},{"$f":"IFERROR('Data Input - Proposed'!X87*INDEX('Energy Prices'!$F$26:$CR$31,MATCH($B131,'Energy Prices'!$C$26:$C$31,0),MATCH(Calc_Proposed!T$6,'Energy Prices'!$F$11:$CR$11,0))/100000,0)","v":0},{"$f":"IFERROR('Data Input - Proposed'!Y87*INDEX('Energy Prices'!$F$26:$CR$31,MATCH($B131,'Energy Prices'!$C$26:$C$31,0),MATCH(Calc_Proposed!U$6,'Energy Prices'!$F$11:$CR$11,0))/100000,0)","v":0},{"$f":"IFERROR('Data Input - Proposed'!Z87*INDEX('Energy Prices'!$F$26:$CR$31,MATCH($B131,'Energy Prices'!$C$26:$C$31,0),MATCH(Calc_Proposed!V$6,'Energy Prices'!$F$11:$CR$11,0))/100000,0)","v":0},{"$f":"IFERROR('Data Input - Proposed'!AA87*INDEX('Energy Prices'!$F$26:$CR$31,MATCH($B131,'Energy Prices'!$C$26:$C$31,0),MATCH(Calc_Proposed!W$6,'Energy Prices'!$F$11:$CR$11,0))/100000,0)","v":0},{"$f":"IFERROR('Data Input - Proposed'!AB87*INDEX('Energy Prices'!$F$26:$CR$31,MATCH($B131,'Energy Prices'!$C$26:$C$31,0),MATCH(Calc_Proposed!X$6,'Energy Prices'!$F$11:$CR$11,0))/100000,0)","v":0},{"$f":"IFERROR('Data Input - Proposed'!AC87*INDEX('Energy Prices'!$F$26:$CR$31,MATCH($B131,'Energy Prices'!$C$26:$C$31,0),MATCH(Calc_Proposed!Y$6,'Energy Prices'!$F$11:$CR$11,0))/100000,0)","v":0},{"$f":"IFERROR('Data Input - Proposed'!AD87*INDEX('Energy Prices'!$F$26:$CR$31,MATCH($B131,'Energy Prices'!$C$26:$C$31,0),MATCH(Calc_Proposed!Z$6,'Energy Prices'!$F$11:$CR$11,0))/100000,0)","v":0},{"$f":"IFERROR('Data Input - Proposed'!AE87*INDEX('Energy Prices'!$F$26:$CR$31,MATCH($B131,'Energy Prices'!$C$26:$C$31,0),MATCH(Calc_Proposed!AA$6,'Energy Prices'!$F$11:$CR$11,0))/100000,0)","v":0},{"$f":"IFERROR('Data Input - Proposed'!AF87*INDEX('Energy Prices'!$F$26:$CR$31,MATCH($B131,'Energy Prices'!$C$26:$C$31,0),MATCH(Calc_Proposed!AB$6,'Energy Prices'!$F$11:$CR$11,0))/100000,0)","v":0},{"$f":"IFERROR('Data Input - Proposed'!AG87*INDEX('Energy Prices'!$F$26:$CR$31,MATCH($B131,'Energy Prices'!$C$26:$C$31,0),MATCH(Calc_Proposed!AC$6,'Energy Prices'!$F$11:$CR$11,0))/100000,0)","v":0},{"$f":"IFERROR('Data Input - Proposed'!AH87*INDEX('Energy Prices'!$F$26:$CR$31,MATCH($B131,'Energy Prices'!$C$26:$C$31,0),MATCH(Calc_Proposed!AD$6,'Energy Prices'!$F$11:$CR$11,0))/100000,0)","v":0},{"$f":"IFERROR('Data Input - Proposed'!AI87*INDEX('Energy Prices'!$F$26:$CR$31,MATCH($B131,'Energy Prices'!$C$26:$C$31,0),MATCH(Calc_Proposed!AE$6,'Energy Prices'!$F$11:$CR$11,0))/100000,0)","v":0},{"$f":"IFERROR('Data Input - Proposed'!AJ87*INDEX('Energy Prices'!$F$26:$CR$31,MATCH($B131,'Energy Prices'!$C$26:$C$31,0),MATCH(Calc_Proposed!AF$6,'Energy Prices'!$F$11:$CR$11,0))/100000,0)","v":0},{"$f":"IFERROR('Data Input - Proposed'!AK87*INDEX('Energy Prices'!$F$26:$CR$31,MATCH($B131,'Energy Prices'!$C$26:$C$31,0),MATCH(Calc_Proposed!AG$6,'Energy Prices'!$F$11:$CR$11,0))/100000,0)","v":0},{"$f":"IFERROR('Data Input - Proposed'!AL87*INDEX('Energy Prices'!$F$26:$CR$31,MATCH($B131,'Energy Prices'!$C$26:$C$31,0),MATCH(Calc_Proposed!AH$6,'Energy Prices'!$F$11:$CR$11,0))/100000,0)","v":0},{"$f":"IFERROR('Data Input - Proposed'!AM87*INDEX('Energy Prices'!$F$26:$CR$31,MATCH($B131,'Energy Prices'!$C$26:$C$31,0),MATCH(Calc_Proposed!AI$6,'Energy Prices'!$F$11:$CR$11,0))/100000,0)","v":0},{"$f":"IFERROR('Data Input - Proposed'!AN87*INDEX('Energy Prices'!$F$26:$CR$31,MATCH($B131,'Energy Prices'!$C$26:$C$31,0),MATCH(Calc_Proposed!AJ$6,'Energy Prices'!$F$11:$CR$11,0))/100000,0)","v":0},{"$f":"IFERROR('Data Input - Proposed'!AO87*INDEX('Energy Prices'!$F$26:$CR$31,MATCH($B131,'Energy Prices'!$C$26:$C$31,0),MATCH(Calc_Proposed!AK$6,'Energy Prices'!$F$11:$CR$11,0))/100000,0)","v":0},{"$f":"IFERROR('Data Input - Proposed'!AP87*INDEX('Energy Prices'!$F$26:$CR$31,MATCH($B131,'Energy Prices'!$C$26:$C$31,0),MATCH(Calc_Proposed!AL$6,'Energy Prices'!$F$11:$CR$11,0))/100000,0)","v":0},{"$f":"IFERROR('Data Input - Proposed'!AQ87*INDEX('Energy Prices'!$F$26:$CR$31,MATCH($B131,'Energy Prices'!$C$26:$C$31,0),MATCH(Calc_Proposed!AM$6,'Energy Prices'!$F$11:$CR$11,0))/100000,0)","v":0},{"$f":"IFERROR('Data Input - Proposed'!AR87*INDEX('Energy Prices'!$F$26:$CR$31,MATCH($B131,'Energy Prices'!$C$26:$C$31,0),MATCH(Calc_Proposed!AN$6,'Energy Prices'!$F$11:$CR$11,0))/100000,0)","v":0},{"$f":"IFERROR('Data Input - Proposed'!AS87*INDEX('Energy Prices'!$F$26:$CR$31,MATCH($B131,'Energy Prices'!$C$26:$C$31,0),MATCH(Calc_Proposed!AO$6,'Energy Prices'!$F$11:$CR$11,0))/100000,0)","v":0},{"$f":"IFERROR('Data Input - Proposed'!AT87*INDEX('Energy Prices'!$F$26:$CR$31,MATCH($B131,'Energy Prices'!$C$26:$C$31,0),MATCH(Calc_Proposed!AP$6,'Energy Prices'!$F$11:$CR$11,0))/100000,0)","v":0},{"$f":"IFERROR('Data Input - Proposed'!AU87*INDEX('Energy Prices'!$F$26:$CR$31,MATCH($B131,'Energy Prices'!$C$26:$C$31,0),MATCH(Calc_Proposed!AQ$6,'Energy Prices'!$F$11:$CR$11,0))/100000,0)","v":0},{"$f":"IFERROR('Data Input - Proposed'!AV87*INDEX('Energy Prices'!$F$26:$CR$31,MATCH($B131,'Energy Prices'!$C$26:$C$31,0),MATCH(Calc_Proposed!AR$6,'Energy Prices'!$F$11:$CR$11,0))/100000,0)","v":0},{"$f":"IFERROR('Data Input - Proposed'!AW87*INDEX('Energy Prices'!$F$26:$CR$31,MATCH($B131,'Energy Prices'!$C$26:$C$31,0),MATCH(Calc_Proposed!AS$6,'Energy Prices'!$F$11:$CR$11,0))/100000,0)","v":0},{"$f":"IFERROR('Data Input - Proposed'!AX87*INDEX('Energy Prices'!$F$26:$CR$31,MATCH($B131,'Energy Prices'!$C$26:$C$31,0),MATCH(Calc_Proposed!AT$6,'Energy Prices'!$F$11:$CR$11,0))/100000,0)","v":0},{"$f":"IFERROR('Data Input - Proposed'!AY87*INDEX('Energy Prices'!$F$26:$CR$31,MATCH($B131,'Energy Prices'!$C$26:$C$31,0),MATCH(Calc_Proposed!AU$6,'Energy Prices'!$F$11:$CR$11,0))/100000,0)","v":0},{"$f":"IFERROR('Data Input - Proposed'!AZ87*INDEX('Energy Prices'!$F$26:$CR$31,MATCH($B131,'Energy Prices'!$C$26:$C$31,0),MATCH(Calc_Proposed!AV$6,'Energy Prices'!$F$11:$CR$11,0))/100000,0)","v":0},{"$f":"IFERROR('Data Input - Proposed'!BA87*INDEX('Energy Prices'!$F$26:$CR$31,MATCH($B131,'Energy Prices'!$C$26:$C$31,0),MATCH(Calc_Proposed!AW$6,'Energy Prices'!$F$11:$CR$11,0))/100000,0)","v":0},{"$f":"IFERROR('Data Input - Proposed'!BB87*INDEX('Energy Prices'!$F$26:$CR$31,MATCH($B131,'Energy Prices'!$C$26:$C$31,0),MATCH(Calc_Proposed!AX$6,'Energy Prices'!$F$11:$CR$11,0))/100000,0)","v":0},{"$f":"IFERROR('Data Input - Proposed'!BC87*INDEX('Energy Prices'!$F$26:$CR$31,MATCH($B131,'Energy Prices'!$C$26:$C$31,0),MATCH(Calc_Proposed!AY$6,'Energy Prices'!$F$11:$CR$11,0))/100000,0)","v":0},{"$f":"IFERROR('Data Input - Proposed'!BD87*INDEX('Energy Prices'!$F$26:$CR$31,MATCH($B131,'Energy Prices'!$C$26:$C$31,0),MATCH(Calc_Proposed!AZ$6,'Energy Prices'!$F$11:$CR$11,0))/100000,0)","v":0},{"$f":"IFERROR('Data Input - Proposed'!BE87*INDEX('Energy Prices'!$F$26:$CR$31,MATCH($B131,'Energy Prices'!$C$26:$C$31,0),MATCH(Calc_Proposed!BA$6,'Energy Prices'!$F$11:$CR$11,0))/100000,0)","v":0},{"$f":"IFERROR('Data Input - Proposed'!BF87*INDEX('Energy Prices'!$F$26:$CR$31,MATCH($B131,'Energy Prices'!$C$26:$C$31,0),MATCH(Calc_Proposed!BB$6,'Energy Prices'!$F$11:$CR$11,0))/100000,0)","v":0},{"$f":"IFERROR('Data Input - Proposed'!BG87*INDEX('Energy Prices'!$F$26:$CR$31,MATCH($B131,'Energy Prices'!$C$26:$C$31,0),MATCH(Calc_Proposed!BC$6,'Energy Prices'!$F$11:$CR$11,0))/100000,0)","v":0},{"$f":"IFERROR('Data Input - Proposed'!BH87*INDEX('Energy Prices'!$F$26:$CR$31,MATCH($B131,'Energy Prices'!$C$26:$C$31,0),MATCH(Calc_Proposed!BD$6,'Energy Prices'!$F$11:$CR$11,0))/100000,0)","v":0},{"$f":"IFERROR('Data Input - Proposed'!BI87*INDEX('Energy Prices'!$F$26:$CR$31,MATCH($B131,'Energy Prices'!$C$26:$C$31,0),MATCH(Calc_Proposed!BE$6,'Energy Prices'!$F$11:$CR$11,0))/100000,0)","v":0},{"$f":"IFERROR('Data Input - Proposed'!BJ87*INDEX('Energy Prices'!$F$26:$CR$31,MATCH($B131,'Energy Prices'!$C$26:$C$31,0),MATCH(Calc_Proposed!BF$6,'Energy Prices'!$F$11:$CR$11,0))/100000,0)","v":0},{"$f":"IFERROR('Data Input - Proposed'!BK87*INDEX('Energy Prices'!$F$26:$CR$31,MATCH($B131,'Energy Prices'!$C$26:$C$31,0),MATCH(Calc_Proposed!BG$6,'Energy Prices'!$F$11:$CR$11,0))/100000,0)","v":0},{"$f":"IFERROR('Data Input - Proposed'!BL87*INDEX('Energy Prices'!$F$26:$CR$31,MATCH($B131,'Energy Prices'!$C$26:$C$31,0),MATCH(Calc_Proposed!BH$6,'Energy Prices'!$F$11:$CR$11,0))/100000,0)","v":0},{"$f":"IFERROR('Data Input - Proposed'!BM87*INDEX('Energy Prices'!$F$26:$CR$31,MATCH($B131,'Energy Prices'!$C$26:$C$31,0),MATCH(Calc_Proposed!BI$6,'Energy Prices'!$F$11:$CR$11,0))/100000,0)","v":0},{"$f":"IFERROR('Data Input - Proposed'!BN87*INDEX('Energy Prices'!$F$26:$CR$31,MATCH($B131,'Energy Prices'!$C$26:$C$31,0),MATCH(Calc_Proposed!BJ$6,'Energy Prices'!$F$11:$CR$11,0))/100000,0)","v":0},{"$f":"IFERROR('Data Input - Proposed'!BO87*INDEX('Energy Prices'!$F$26:$CR$31,MATCH($B131,'Energy Prices'!$C$26:$C$31,0),MATCH(Calc_Proposed!BK$6,'Energy Prices'!$F$11:$CR$11,0))/100000,0)","v":0},{"$f":"IFERROR('Data Input - Proposed'!BP87*INDEX('Energy Prices'!$F$26:$CR$31,MATCH($B131,'Energy Prices'!$C$26:$C$31,0),MATCH(Calc_Proposed!BL$6,'Energy Prices'!$F$11:$CR$11,0))/100000,0)","v":0},{"$f":"IFERROR('Data Input - Proposed'!BQ87*INDEX('Energy Prices'!$F$26:$CR$31,MATCH($B131,'Energy Prices'!$C$26:$C$31,0),MATCH(Calc_Proposed!BM$6,'Energy Prices'!$F$11:$CR$11,0))/100000,0)","v":0},{"$f":"IFERROR('Data Input - Proposed'!BR87*INDEX('Energy Prices'!$F$26:$CR$31,MATCH($B131,'Energy Prices'!$C$26:$C$31,0),MATCH(Calc_Proposed!BN$6,'Energy Prices'!$F$11:$CR$11,0))/100000,0)","v":0},{"$f":"IFERROR('Data Input - Proposed'!BS87*INDEX('Energy Prices'!$F$26:$CR$31,MATCH($B131,'Energy Prices'!$C$26:$C$31,0),MATCH(Calc_Proposed!BO$6,'Energy Prices'!$F$11:$CR$11,0))/100000,0)","v":0},{"$f":"IFERROR('Data Input - Proposed'!BT87*INDEX('Energy Prices'!$F$26:$CR$31,MATCH($B131,'Energy Prices'!$C$26:$C$31,0),MATCH(Calc_Proposed!BP$6,'Energy Prices'!$F$11:$CR$11,0))/100000,0)","v":0},{"$f":"IFERROR('Data Input - Proposed'!BU87*INDEX('Energy Prices'!$F$26:$CR$31,MATCH($B131,'Energy Prices'!$C$26:$C$31,0),MATCH(Calc_Proposed!BQ$6,'Energy Prices'!$F$11:$CR$11,0))/100000,0)","v":0},{"$f":"IFERROR('Data Input - Proposed'!BV87*INDEX('Energy Prices'!$F$26:$CR$31,MATCH($B131,'Energy Prices'!$C$26:$C$31,0),MATCH(Calc_Proposed!BR$6,'Energy Prices'!$F$11:$CR$11,0))/100000,0)","v":0},{"$f":"IFERROR('Data Input - Proposed'!BW87*INDEX('Energy Prices'!$F$26:$CR$31,MATCH($B131,'Energy Prices'!$C$26:$C$31,0),MATCH(Calc_Proposed!BS$6,'Energy Prices'!$F$11:$CR$11,0))/100000,0)","v":0},{"$f":"IFERROR('Data Input - Proposed'!BX87*INDEX('Energy Prices'!$F$26:$CR$31,MATCH($B131,'Energy Prices'!$C$26:$C$31,0),MATCH(Calc_Proposed!BT$6,'Energy Prices'!$F$11:$CR$11,0))/100000,0)","v":0},{"$f":"IFERROR('Data Input - Proposed'!BY87*INDEX('Energy Prices'!$F$26:$CR$31,MATCH($B131,'Energy Prices'!$C$26:$C$31,0),MATCH(Calc_Proposed!BU$6,'Energy Prices'!$F$11:$CR$11,0))/100000,0)","v":0},{"$f":"IFERROR('Data Input - Proposed'!BZ87*INDEX('Energy Prices'!$F$26:$CR$31,MATCH($B131,'Energy Prices'!$C$26:$C$31,0),MATCH(Calc_Proposed!BV$6,'Energy Prices'!$F$11:$CR$11,0))/100000,0)","v":0},{"$f":"IFERROR('Data Input - Proposed'!CA87*INDEX('Energy Prices'!$F$26:$CR$31,MATCH($B131,'Energy Prices'!$C$26:$C$31,0),MATCH(Calc_Proposed!BW$6,'Energy Prices'!$F$11:$CR$11,0))/100000,0)","v":0},{"$f":"IFERROR('Data Input - Proposed'!CB87*INDEX('Energy Prices'!$F$26:$CR$31,MATCH($B131,'Energy Prices'!$C$26:$C$31,0),MATCH(Calc_Proposed!BX$6,'Energy Prices'!$F$11:$CR$11,0))/100000,0)","v":0},{"$f":"IFERROR('Data Input - Proposed'!CC87*INDEX('Energy Prices'!$F$26:$CR$31,MATCH($B131,'Energy Prices'!$C$26:$C$31,0),MATCH(Calc_Proposed!BY$6,'Energy Prices'!$F$11:$CR$11,0))/100000,0)","v":0},{"$f":"IFERROR('Data Input - Proposed'!CD87*INDEX('Energy Prices'!$F$26:$CR$31,MATCH($B131,'Energy Prices'!$C$26:$C$31,0),MATCH(Calc_Proposed!BZ$6,'Energy Prices'!$F$11:$CR$11,0))/100000,0)","v":0},{"$f":"IFERROR('Data Input - Proposed'!CE87*INDEX('Energy Prices'!$F$26:$CR$31,MATCH($B131,'Energy Prices'!$C$26:$C$31,0),MATCH(Calc_Proposed!CA$6,'Energy Prices'!$F$11:$CR$11,0))/100000,0)","v":0},{"$f":"IFERROR('Data Input - Proposed'!CF87*INDEX('Energy Prices'!$F$26:$CR$31,MATCH($B131,'Energy Prices'!$C$26:$C$31,0),MATCH(Calc_Proposed!CB$6,'Energy Prices'!$F$11:$CR$11,0))/100000,0)","v":0},{"$f":"IFERROR('Data Input - Proposed'!CG87*INDEX('Energy Prices'!$F$26:$CR$31,MATCH($B131,'Energy Prices'!$C$26:$C$31,0),MATCH(Calc_Proposed!CC$6,'Energy Prices'!$F$11:$CR$11,0))/100000,0)","v":0},{"$f":"IFERROR('Data Input - Proposed'!CH87*INDEX('Energy Prices'!$F$26:$CR$31,MATCH($B131,'Energy Prices'!$C$26:$C$31,0),MATCH(Calc_Proposed!CD$6,'Energy Prices'!$F$11:$CR$11,0))/100000,0)","v":0},{"$f":"IFERROR('Data Input - Proposed'!CI87*INDEX('Energy Prices'!$F$26:$CR$31,MATCH($B131,'Energy Prices'!$C$26:$C$31,0),MATCH(Calc_Proposed!CE$6,'Energy Prices'!$F$11:$CR$11,0))/100000,0)","v":0},{"$f":"IFERROR('Data Input - Proposed'!CJ87*INDEX('Energy Prices'!$F$26:$CR$31,MATCH($B131,'Energy Prices'!$C$26:$C$31,0),MATCH(Calc_Proposed!CF$6,'Energy Prices'!$F$11:$CR$11,0))/100000,0)","v":0},{"$f":"IFERROR('Data Input - Proposed'!CK87*INDEX('Energy Prices'!$F$26:$CR$31,MATCH($B131,'Energy Prices'!$C$26:$C$31,0),MATCH(Calc_Proposed!CG$6,'Energy Prices'!$F$11:$CR$11,0))/100000,0)","v":0},{"$f":"IFERROR('Data Input - Proposed'!CL87*INDEX('Energy Prices'!$F$26:$CR$31,MATCH($B131,'Energy Prices'!$C$26:$C$31,0),MATCH(Calc_Proposed!CH$6,'Energy Prices'!$F$11:$CR$11,0))/100000,0)","v":0},{"$f":"IFERROR('Data Input - Proposed'!CM87*INDEX('Energy Prices'!$F$26:$CR$31,MATCH($B131,'Energy Prices'!$C$26:$C$31,0),MATCH(Calc_Proposed!CI$6,'Energy Prices'!$F$11:$CR$11,0))/100000,0)","v":0},{"$f":"IFERROR('Data Input - Proposed'!CN87*INDEX('Energy Prices'!$F$26:$CR$31,MATCH($B131,'Energy Prices'!$C$26:$C$31,0),MATCH(Calc_Proposed!CJ$6,'Energy Prices'!$F$11:$CR$11,0))/100000,0)","v":0},{"$f":"IFERROR('Data Input - Proposed'!CO87*INDEX('Energy Prices'!$F$26:$CR$31,MATCH($B131,'Energy Prices'!$C$26:$C$31,0),MATCH(Calc_Proposed!CK$6,'Energy Prices'!$F$11:$CR$11,0))/100000,0)","v":0},{"$f":"IFERROR('Data Input - Proposed'!CP87*INDEX('Energy Prices'!$F$26:$CR$31,MATCH($B131,'Energy Prices'!$C$26:$C$31,0),MATCH(Calc_Proposed!CL$6,'Energy Prices'!$F$11:$CR$11,0))/100000,0)","v":0},{"$f":"IFERROR('Data Input - Proposed'!CQ87*INDEX('Energy Prices'!$F$26:$CR$31,MATCH($B131,'Energy Prices'!$C$26:$C$31,0),MATCH(Calc_Proposed!CM$6,'Energy Prices'!$F$11:$CR$11,0))/100000,0)","v":0},{"$f":"IFERROR('Data Input - Proposed'!CR87*INDEX('Energy Prices'!$F$26:$CR$31,MATCH($B131,'Energy Prices'!$C$26:$C$31,0),MATCH(Calc_Proposed!CN$6,'Energy Prices'!$F$11:$CR$11,0))/100000,0)","v":0},{"$f":"IFERROR('Data Input - Proposed'!CS87*INDEX('Energy Prices'!$F$26:$CR$31,MATCH($B131,'Energy Prices'!$C$26:$C$31,0),MATCH(Calc_Proposed!CO$6,'Energy Prices'!$F$11:$CR$11,0))/100000,0)","v":0},{"$f":"IFERROR('Data Input - Proposed'!CT87*INDEX('Energy Prices'!$F$26:$CR$31,MATCH($B131,'Energy Prices'!$C$26:$C$31,0),MATCH(Calc_Proposed!CP$6,'Energy Prices'!$F$11:$CR$11,0))/100000,0)","v":0},{"$f":"IFERROR('Data Input - Proposed'!CU87*INDEX('Energy Prices'!$F$26:$CR$31,MATCH($B131,'Energy Prices'!$C$26:$C$31,0),MATCH(Calc_Proposed!CQ$6,'Energy Prices'!$F$11:$CR$11,0))/100000,0)","v":0},{"$f":"IFERROR('Data Input - Proposed'!CV87*INDEX('Energy Prices'!$F$26:$CR$31,MATCH($B131,'Energy Prices'!$C$26:$C$31,0),MATCH(Calc_Proposed!CR$6,'Energy Prices'!$F$11:$CR$11,0))/100000,0)","v":0},{"$f":"IFERROR('Data Input - Proposed'!CW87*INDEX('Energy Prices'!$F$26:$CR$31,MATCH($B131,'Energy Prices'!$C$26:$C$31,0),MATCH(Calc_Proposed!CS$6,'Energy Prices'!$F$11:$CR$11,0))/100000,0)","v":0},{"$f":"IFERROR('Data Input - Proposed'!CX87*INDEX('Energy Prices'!$F$26:$CR$31,MATCH($B131,'Energy Prices'!$C$26:$C$31,0),MATCH(Calc_Proposed!CT$6,'Energy Prices'!$F$11:$CR$11,0))/100000,0)","v":0},{"$f":"IFERROR('Data Input - Proposed'!CY87*INDEX('Energy Prices'!$F$26:$CR$31,MATCH($B131,'Energy Prices'!$C$26:$C$31,0),MATCH(Calc_Proposed!CU$6,'Energy Prices'!$F$11:$CR$11,0))/100000,0)","v":0},{"$f":"IFERROR('Data Input - Proposed'!CZ87*INDEX('Energy Prices'!$F$26:$CR$31,MATCH($B131,'Energy Prices'!$C$26:$C$31,0),MATCH(Calc_Proposed!CV$6,'Energy Prices'!$F$11:$CR$11,0))/100000,0)","v":0},{"$f":"IFERROR('Data Input - Proposed'!DA87*INDEX('Energy Prices'!$F$26:$CR$31,MATCH($B131,'Energy Prices'!$C$26:$C$31,0),MATCH(Calc_Proposed!CW$6,'Energy Prices'!$F$11:$CR$11,0))/100000,0)","v":0},{"$f":"IFERROR('Data Input - Proposed'!DB87*INDEX('Energy Prices'!$F$26:$CR$31,MATCH($B131,'Energy Prices'!$C$26:$C$31,0),MATCH(Calc_Proposed!CX$6,'Energy Prices'!$F$11:$CR$11,0))/100000,0)","v":0},{"$f":"IFERROR('Data Input - Proposed'!DC87*INDEX('Energy Prices'!$F$26:$CR$31,MATCH($B131,'Energy Prices'!$C$26:$C$31,0),MATCH(Calc_Proposed!CY$6,'Energy Prices'!$F$11:$CR$11,0))/100000,0)","v":0}]
[null,"Road - Petrol","£000's",{"$f":"IFERROR('Data Input - Proposed'!H88*INDEX('Energy Prices'!$F$26:$CR$31,MATCH($B132,'Energy Prices'!$C$26:$C$31,0),MATCH(Calc_Proposed!D$6,'Energy Prices'!$F$11:$CR$11,0))/100000,0)","v":0},{"$f":"IFERROR('Data Input - Proposed'!I88*INDEX('Energy Prices'!$F$26:$CR$31,MATCH($B132,'Energy Prices'!$C$26:$C$31,0),MATCH(Calc_Proposed!E$6,'Energy Prices'!$F$11:$CR$11,0))/100000,0)","v":0},{"$f":"IFERROR('Data Input - Proposed'!J88*INDEX('Energy Prices'!$F$26:$CR$31,MATCH($B132,'Energy Prices'!$C$26:$C$31,0),MATCH(Calc_Proposed!F$6,'Energy Prices'!$F$11:$CR$11,0))/100000,0)","v":0},{"$f":"IFERROR('Data Input - Proposed'!K88*INDEX('Energy Prices'!$F$26:$CR$31,MATCH($B132,'Energy Prices'!$C$26:$C$31,0),MATCH(Calc_Proposed!G$6,'Energy Prices'!$F$11:$CR$11,0))/100000,0)","v":0},{"$f":"IFERROR('Data Input - Proposed'!L88*INDEX('Energy Prices'!$F$26:$CR$31,MATCH($B132,'Energy Prices'!$C$26:$C$31,0),MATCH(Calc_Proposed!H$6,'Energy Prices'!$F$11:$CR$11,0))/100000,0)","v":0},{"$f":"IFERROR('Data Input - Proposed'!M88*INDEX('Energy Prices'!$F$26:$CR$31,MATCH($B132,'Energy Prices'!$C$26:$C$31,0),MATCH(Calc_Proposed!I$6,'Energy Prices'!$F$11:$CR$11,0))/100000,0)","v":0},{"$f":"IFERROR('Data Input - Proposed'!N88*INDEX('Energy Prices'!$F$26:$CR$31,MATCH($B132,'Energy Prices'!$C$26:$C$31,0),MATCH(Calc_Proposed!J$6,'Energy Prices'!$F$11:$CR$11,0))/100000,0)","v":0},{"$f":"IFERROR('Data Input - Proposed'!O88*INDEX('Energy Prices'!$F$26:$CR$31,MATCH($B132,'Energy Prices'!$C$26:$C$31,0),MATCH(Calc_Proposed!K$6,'Energy Prices'!$F$11:$CR$11,0))/100000,0)","v":0},{"$f":"IFERROR('Data Input - Proposed'!P88*INDEX('Energy Prices'!$F$26:$CR$31,MATCH($B132,'Energy Prices'!$C$26:$C$31,0),MATCH(Calc_Proposed!L$6,'Energy Prices'!$F$11:$CR$11,0))/100000,0)","v":0},{"$f":"IFERROR('Data Input - Proposed'!Q88*INDEX('Energy Prices'!$F$26:$CR$31,MATCH($B132,'Energy Prices'!$C$26:$C$31,0),MATCH(Calc_Proposed!M$6,'Energy Prices'!$F$11:$CR$11,0))/100000,0)","v":0},{"$f":"IFERROR('Data Input - Proposed'!R88*INDEX('Energy Prices'!$F$26:$CR$31,MATCH($B132,'Energy Prices'!$C$26:$C$31,0),MATCH(Calc_Proposed!N$6,'Energy Prices'!$F$11:$CR$11,0))/100000,0)","v":0},{"$f":"IFERROR('Data Input - Proposed'!S88*INDEX('Energy Prices'!$F$26:$CR$31,MATCH($B132,'Energy Prices'!$C$26:$C$31,0),MATCH(Calc_Proposed!O$6,'Energy Prices'!$F$11:$CR$11,0))/100000,0)","v":0},{"$f":"IFERROR('Data Input - Proposed'!T88*INDEX('Energy Prices'!$F$26:$CR$31,MATCH($B132,'Energy Prices'!$C$26:$C$31,0),MATCH(Calc_Proposed!P$6,'Energy Prices'!$F$11:$CR$11,0))/100000,0)","v":0},{"$f":"IFERROR('Data Input - Proposed'!U88*INDEX('Energy Prices'!$F$26:$CR$31,MATCH($B132,'Energy Prices'!$C$26:$C$31,0),MATCH(Calc_Proposed!Q$6,'Energy Prices'!$F$11:$CR$11,0))/100000,0)","v":0},{"$f":"IFERROR('Data Input - Proposed'!V88*INDEX('Energy Prices'!$F$26:$CR$31,MATCH($B132,'Energy Prices'!$C$26:$C$31,0),MATCH(Calc_Proposed!R$6,'Energy Prices'!$F$11:$CR$11,0))/100000,0)","v":0},{"$f":"IFERROR('Data Input - Proposed'!W88*INDEX('Energy Prices'!$F$26:$CR$31,MATCH($B132,'Energy Prices'!$C$26:$C$31,0),MATCH(Calc_Proposed!S$6,'Energy Prices'!$F$11:$CR$11,0))/100000,0)","v":0},{"$f":"IFERROR('Data Input - Proposed'!X88*INDEX('Energy Prices'!$F$26:$CR$31,MATCH($B132,'Energy Prices'!$C$26:$C$31,0),MATCH(Calc_Proposed!T$6,'Energy Prices'!$F$11:$CR$11,0))/100000,0)","v":0},{"$f":"IFERROR('Data Input - Proposed'!Y88*INDEX('Energy Prices'!$F$26:$CR$31,MATCH($B132,'Energy Prices'!$C$26:$C$31,0),MATCH(Calc_Proposed!U$6,'Energy Prices'!$F$11:$CR$11,0))/100000,0)","v":0},{"$f":"IFERROR('Data Input - Proposed'!Z88*INDEX('Energy Prices'!$F$26:$CR$31,MATCH($B132,'Energy Prices'!$C$26:$C$31,0),MATCH(Calc_Proposed!V$6,'Energy Prices'!$F$11:$CR$11,0))/100000,0)","v":0},{"$f":"IFERROR('Data Input - Proposed'!AA88*INDEX('Energy Prices'!$F$26:$CR$31,MATCH($B132,'Energy Prices'!$C$26:$C$31,0),MATCH(Calc_Proposed!W$6,'Energy Prices'!$F$11:$CR$11,0))/100000,0)","v":0},{"$f":"IFERROR('Data Input - Proposed'!AB88*INDEX('Energy Prices'!$F$26:$CR$31,MATCH($B132,'Energy Prices'!$C$26:$C$31,0),MATCH(Calc_Proposed!X$6,'Energy Prices'!$F$11:$CR$11,0))/100000,0)","v":0},{"$f":"IFERROR('Data Input - Proposed'!AC88*INDEX('Energy Prices'!$F$26:$CR$31,MATCH($B132,'Energy Prices'!$C$26:$C$31,0),MATCH(Calc_Proposed!Y$6,'Energy Prices'!$F$11:$CR$11,0))/100000,0)","v":0},{"$f":"IFERROR('Data Input - Proposed'!AD88*INDEX('Energy Prices'!$F$26:$CR$31,MATCH($B132,'Energy Prices'!$C$26:$C$31,0),MATCH(Calc_Proposed!Z$6,'Energy Prices'!$F$11:$CR$11,0))/100000,0)","v":0},{"$f":"IFERROR('Data Input - Proposed'!AE88*INDEX('Energy Prices'!$F$26:$CR$31,MATCH($B132,'Energy Prices'!$C$26:$C$31,0),MATCH(Calc_Proposed!AA$6,'Energy Prices'!$F$11:$CR$11,0))/100000,0)","v":0},{"$f":"IFERROR('Data Input - Proposed'!AF88*INDEX('Energy Prices'!$F$26:$CR$31,MATCH($B132,'Energy Prices'!$C$26:$C$31,0),MATCH(Calc_Proposed!AB$6,'Energy Prices'!$F$11:$CR$11,0))/100000,0)","v":0},{"$f":"IFERROR('Data Input - Proposed'!AG88*INDEX('Energy Prices'!$F$26:$CR$31,MATCH($B132,'Energy Prices'!$C$26:$C$31,0),MATCH(Calc_Proposed!AC$6,'Energy Prices'!$F$11:$CR$11,0))/100000,0)","v":0},{"$f":"IFERROR('Data Input - Proposed'!AH88*INDEX('Energy Prices'!$F$26:$CR$31,MATCH($B132,'Energy Prices'!$C$26:$C$31,0),MATCH(Calc_Proposed!AD$6,'Energy Prices'!$F$11:$CR$11,0))/100000,0)","v":0},{"$f":"IFERROR('Data Input - Proposed'!AI88*INDEX('Energy Prices'!$F$26:$CR$31,MATCH($B132,'Energy Prices'!$C$26:$C$31,0),MATCH(Calc_Proposed!AE$6,'Energy Prices'!$F$11:$CR$11,0))/100000,0)","v":0},{"$f":"IFERROR('Data Input - Proposed'!AJ88*INDEX('Energy Prices'!$F$26:$CR$31,MATCH($B132,'Energy Prices'!$C$26:$C$31,0),MATCH(Calc_Proposed!AF$6,'Energy Prices'!$F$11:$CR$11,0))/100000,0)","v":0},{"$f":"IFERROR('Data Input - Proposed'!AK88*INDEX('Energy Prices'!$F$26:$CR$31,MATCH($B132,'Energy Prices'!$C$26:$C$31,0),MATCH(Calc_Proposed!AG$6,'Energy Prices'!$F$11:$CR$11,0))/100000,0)","v":0},{"$f":"IFERROR('Data Input - Proposed'!AL88*INDEX('Energy Prices'!$F$26:$CR$31,MATCH($B132,'Energy Prices'!$C$26:$C$31,0),MATCH(Calc_Proposed!AH$6,'Energy Prices'!$F$11:$CR$11,0))/100000,0)","v":0},{"$f":"IFERROR('Data Input - Proposed'!AM88*INDEX('Energy Prices'!$F$26:$CR$31,MATCH($B132,'Energy Prices'!$C$26:$C$31,0),MATCH(Calc_Proposed!AI$6,'Energy Prices'!$F$11:$CR$11,0))/100000,0)","v":0},{"$f":"IFERROR('Data Input - Proposed'!AN88*INDEX('Energy Prices'!$F$26:$CR$31,MATCH($B132,'Energy Prices'!$C$26:$C$31,0),MATCH(Calc_Proposed!AJ$6,'Energy Prices'!$F$11:$CR$11,0))/100000,0)","v":0},{"$f":"IFERROR('Data Input - Proposed'!AO88*INDEX('Energy Prices'!$F$26:$CR$31,MATCH($B132,'Energy Prices'!$C$26:$C$31,0),MATCH(Calc_Proposed!AK$6,'Energy Prices'!$F$11:$CR$11,0))/100000,0)","v":0},{"$f":"IFERROR('Data Input - Proposed'!AP88*INDEX('Energy Prices'!$F$26:$CR$31,MATCH($B132,'Energy Prices'!$C$26:$C$31,0),MATCH(Calc_Proposed!AL$6,'Energy Prices'!$F$11:$CR$11,0))/100000,0)","v":0},{"$f":"IFERROR('Data Input - Proposed'!AQ88*INDEX('Energy Prices'!$F$26:$CR$31,MATCH($B132,'Energy Prices'!$C$26:$C$31,0),MATCH(Calc_Proposed!AM$6,'Energy Prices'!$F$11:$CR$11,0))/100000,0)","v":0},{"$f":"IFERROR('Data Input - Proposed'!AR88*INDEX('Energy Prices'!$F$26:$CR$31,MATCH($B132,'Energy Prices'!$C$26:$C$31,0),MATCH(Calc_Proposed!AN$6,'Energy Prices'!$F$11:$CR$11,0))/100000,0)","v":0},{"$f":"IFERROR('Data Input - Proposed'!AS88*INDEX('Energy Prices'!$F$26:$CR$31,MATCH($B132,'Energy Prices'!$C$26:$C$31,0),MATCH(Calc_Proposed!AO$6,'Energy Prices'!$F$11:$CR$11,0))/100000,0)","v":0},{"$f":"IFERROR('Data Input - Proposed'!AT88*INDEX('Energy Prices'!$F$26:$CR$31,MATCH($B132,'Energy Prices'!$C$26:$C$31,0),MATCH(Calc_Proposed!AP$6,'Energy Prices'!$F$11:$CR$11,0))/100000,0)","v":0},{"$f":"IFERROR('Data Input - Proposed'!AU88*INDEX('Energy Prices'!$F$26:$CR$31,MATCH($B132,'Energy Prices'!$C$26:$C$31,0),MATCH(Calc_Proposed!AQ$6,'Energy Prices'!$F$11:$CR$11,0))/100000,0)","v":0},{"$f":"IFERROR('Data Input - Proposed'!AV88*INDEX('Energy Prices'!$F$26:$CR$31,MATCH($B132,'Energy Prices'!$C$26:$C$31,0),MATCH(Calc_Proposed!AR$6,'Energy Prices'!$F$11:$CR$11,0))/100000,0)","v":0},{"$f":"IFERROR('Data Input - Proposed'!AW88*INDEX('Energy Prices'!$F$26:$CR$31,MATCH($B132,'Energy Prices'!$C$26:$C$31,0),MATCH(Calc_Proposed!AS$6,'Energy Prices'!$F$11:$CR$11,0))/100000,0)","v":0},{"$f":"IFERROR('Data Input - Proposed'!AX88*INDEX('Energy Prices'!$F$26:$CR$31,MATCH($B132,'Energy Prices'!$C$26:$C$31,0),MATCH(Calc_Proposed!AT$6,'Energy Prices'!$F$11:$CR$11,0))/100000,0)","v":0},{"$f":"IFERROR('Data Input - Proposed'!AY88*INDEX('Energy Prices'!$F$26:$CR$31,MATCH($B132,'Energy Prices'!$C$26:$C$31,0),MATCH(Calc_Proposed!AU$6,'Energy Prices'!$F$11:$CR$11,0))/100000,0)","v":0},{"$f":"IFERROR('Data Input - Proposed'!AZ88*INDEX('Energy Prices'!$F$26:$CR$31,MATCH($B132,'Energy Prices'!$C$26:$C$31,0),MATCH(Calc_Proposed!AV$6,'Energy Prices'!$F$11:$CR$11,0))/100000,0)","v":0},{"$f":"IFERROR('Data Input - Proposed'!BA88*INDEX('Energy Prices'!$F$26:$CR$31,MATCH($B132,'Energy Prices'!$C$26:$C$31,0),MATCH(Calc_Proposed!AW$6,'Energy Prices'!$F$11:$CR$11,0))/100000,0)","v":0},{"$f":"IFERROR('Data Input - Proposed'!BB88*INDEX('Energy Prices'!$F$26:$CR$31,MATCH($B132,'Energy Prices'!$C$26:$C$31,0),MATCH(Calc_Proposed!AX$6,'Energy Prices'!$F$11:$CR$11,0))/100000,0)","v":0},{"$f":"IFERROR('Data Input - Proposed'!BC88*INDEX('Energy Prices'!$F$26:$CR$31,MATCH($B132,'Energy Prices'!$C$26:$C$31,0),MATCH(Calc_Proposed!AY$6,'Energy Prices'!$F$11:$CR$11,0))/100000,0)","v":0},{"$f":"IFERROR('Data Input - Proposed'!BD88*INDEX('Energy Prices'!$F$26:$CR$31,MATCH($B132,'Energy Prices'!$C$26:$C$31,0),MATCH(Calc_Proposed!AZ$6,'Energy Prices'!$F$11:$CR$11,0))/100000,0)","v":0},{"$f":"IFERROR('Data Input - Proposed'!BE88*INDEX('Energy Prices'!$F$26:$CR$31,MATCH($B132,'Energy Prices'!$C$26:$C$31,0),MATCH(Calc_Proposed!BA$6,'Energy Prices'!$F$11:$CR$11,0))/100000,0)","v":0},{"$f":"IFERROR('Data Input - Proposed'!BF88*INDEX('Energy Prices'!$F$26:$CR$31,MATCH($B132,'Energy Prices'!$C$26:$C$31,0),MATCH(Calc_Proposed!BB$6,'Energy Prices'!$F$11:$CR$11,0))/100000,0)","v":0},{"$f":"IFERROR('Data Input - Proposed'!BG88*INDEX('Energy Prices'!$F$26:$CR$31,MATCH($B132,'Energy Prices'!$C$26:$C$31,0),MATCH(Calc_Proposed!BC$6,'Energy Prices'!$F$11:$CR$11,0))/100000,0)","v":0},{"$f":"IFERROR('Data Input - Proposed'!BH88*INDEX('Energy Prices'!$F$26:$CR$31,MATCH($B132,'Energy Prices'!$C$26:$C$31,0),MATCH(Calc_Proposed!BD$6,'Energy Prices'!$F$11:$CR$11,0))/100000,0)","v":0},{"$f":"IFERROR('Data Input - Proposed'!BI88*INDEX('Energy Prices'!$F$26:$CR$31,MATCH($B132,'Energy Prices'!$C$26:$C$31,0),MATCH(Calc_Proposed!BE$6,'Energy Prices'!$F$11:$CR$11,0))/100000,0)","v":0},{"$f":"IFERROR('Data Input - Proposed'!BJ88*INDEX('Energy Prices'!$F$26:$CR$31,MATCH($B132,'Energy Prices'!$C$26:$C$31,0),MATCH(Calc_Proposed!BF$6,'Energy Prices'!$F$11:$CR$11,0))/100000,0)","v":0},{"$f":"IFERROR('Data Input - Proposed'!BK88*INDEX('Energy Prices'!$F$26:$CR$31,MATCH($B132,'Energy Prices'!$C$26:$C$31,0),MATCH(Calc_Proposed!BG$6,'Energy Prices'!$F$11:$CR$11,0))/100000,0)","v":0},{"$f":"IFERROR('Data Input - Proposed'!BL88*INDEX('Energy Prices'!$F$26:$CR$31,MATCH($B132,'Energy Prices'!$C$26:$C$31,0),MATCH(Calc_Proposed!BH$6,'Energy Prices'!$F$11:$CR$11,0))/100000,0)","v":0},{"$f":"IFERROR('Data Input - Proposed'!BM88*INDEX('Energy Prices'!$F$26:$CR$31,MATCH($B132,'Energy Prices'!$C$26:$C$31,0),MATCH(Calc_Proposed!BI$6,'Energy Prices'!$F$11:$CR$11,0))/100000,0)","v":0},{"$f":"IFERROR('Data Input - Proposed'!BN88*INDEX('Energy Prices'!$F$26:$CR$31,MATCH($B132,'Energy Prices'!$C$26:$C$31,0),MATCH(Calc_Proposed!BJ$6,'Energy Prices'!$F$11:$CR$11,0))/100000,0)","v":0},{"$f":"IFERROR('Data Input - Proposed'!BO88*INDEX('Energy Prices'!$F$26:$CR$31,MATCH($B132,'Energy Prices'!$C$26:$C$31,0),MATCH(Calc_Proposed!BK$6,'Energy Prices'!$F$11:$CR$11,0))/100000,0)","v":0},{"$f":"IFERROR('Data Input - Proposed'!BP88*INDEX('Energy Prices'!$F$26:$CR$31,MATCH($B132,'Energy Prices'!$C$26:$C$31,0),MATCH(Calc_Proposed!BL$6,'Energy Prices'!$F$11:$CR$11,0))/100000,0)","v":0},{"$f":"IFERROR('Data Input - Proposed'!BQ88*INDEX('Energy Prices'!$F$26:$CR$31,MATCH($B132,'Energy Prices'!$C$26:$C$31,0),MATCH(Calc_Proposed!BM$6,'Energy Prices'!$F$11:$CR$11,0))/100000,0)","v":0},{"$f":"IFERROR('Data Input - Proposed'!BR88*INDEX('Energy Prices'!$F$26:$CR$31,MATCH($B132,'Energy Prices'!$C$26:$C$31,0),MATCH(Calc_Proposed!BN$6,'Energy Prices'!$F$11:$CR$11,0))/100000,0)","v":0},{"$f":"IFERROR('Data Input - Proposed'!BS88*INDEX('Energy Prices'!$F$26:$CR$31,MATCH($B132,'Energy Prices'!$C$26:$C$31,0),MATCH(Calc_Proposed!BO$6,'Energy Prices'!$F$11:$CR$11,0))/100000,0)","v":0},{"$f":"IFERROR('Data Input - Proposed'!BT88*INDEX('Energy Prices'!$F$26:$CR$31,MATCH($B132,'Energy Prices'!$C$26:$C$31,0),MATCH(Calc_Proposed!BP$6,'Energy Prices'!$F$11:$CR$11,0))/100000,0)","v":0},{"$f":"IFERROR('Data Input - Proposed'!BU88*INDEX('Energy Prices'!$F$26:$CR$31,MATCH($B132,'Energy Prices'!$C$26:$C$31,0),MATCH(Calc_Proposed!BQ$6,'Energy Prices'!$F$11:$CR$11,0))/100000,0)","v":0},{"$f":"IFERROR('Data Input - Proposed'!BV88*INDEX('Energy Prices'!$F$26:$CR$31,MATCH($B132,'Energy Prices'!$C$26:$C$31,0),MATCH(Calc_Proposed!BR$6,'Energy Prices'!$F$11:$CR$11,0))/100000,0)","v":0},{"$f":"IFERROR('Data Input - Proposed'!BW88*INDEX('Energy Prices'!$F$26:$CR$31,MATCH($B132,'Energy Prices'!$C$26:$C$31,0),MATCH(Calc_Proposed!BS$6,'Energy Prices'!$F$11:$CR$11,0))/100000,0)","v":0},{"$f":"IFERROR('Data Input - Proposed'!BX88*INDEX('Energy Prices'!$F$26:$CR$31,MATCH($B132,'Energy Prices'!$C$26:$C$31,0),MATCH(Calc_Proposed!BT$6,'Energy Prices'!$F$11:$CR$11,0))/100000,0)","v":0},{"$f":"IFERROR('Data Input - Proposed'!BY88*INDEX('Energy Prices'!$F$26:$CR$31,MATCH($B132,'Energy Prices'!$C$26:$C$31,0),MATCH(Calc_Proposed!BU$6,'Energy Prices'!$F$11:$CR$11,0))/100000,0)","v":0},{"$f":"IFERROR('Data Input - Proposed'!BZ88*INDEX('Energy Prices'!$F$26:$CR$31,MATCH($B132,'Energy Prices'!$C$26:$C$31,0),MATCH(Calc_Proposed!BV$6,'Energy Prices'!$F$11:$CR$11,0))/100000,0)","v":0},{"$f":"IFERROR('Data Input - Proposed'!CA88*INDEX('Energy Prices'!$F$26:$CR$31,MATCH($B132,'Energy Prices'!$C$26:$C$31,0),MATCH(Calc_Proposed!BW$6,'Energy Prices'!$F$11:$CR$11,0))/100000,0)","v":0},{"$f":"IFERROR('Data Input - Proposed'!CB88*INDEX('Energy Prices'!$F$26:$CR$31,MATCH($B132,'Energy Prices'!$C$26:$C$31,0),MATCH(Calc_Proposed!BX$6,'Energy Prices'!$F$11:$CR$11,0))/100000,0)","v":0},{"$f":"IFERROR('Data Input - Proposed'!CC88*INDEX('Energy Prices'!$F$26:$CR$31,MATCH($B132,'Energy Prices'!$C$26:$C$31,0),MATCH(Calc_Proposed!BY$6,'Energy Prices'!$F$11:$CR$11,0))/100000,0)","v":0},{"$f":"IFERROR('Data Input - Proposed'!CD88*INDEX('Energy Prices'!$F$26:$CR$31,MATCH($B132,'Energy Prices'!$C$26:$C$31,0),MATCH(Calc_Proposed!BZ$6,'Energy Prices'!$F$11:$CR$11,0))/100000,0)","v":0},{"$f":"IFERROR('Data Input - Proposed'!CE88*INDEX('Energy Prices'!$F$26:$CR$31,MATCH($B132,'Energy Prices'!$C$26:$C$31,0),MATCH(Calc_Proposed!CA$6,'Energy Prices'!$F$11:$CR$11,0))/100000,0)","v":0},{"$f":"IFERROR('Data Input - Proposed'!CF88*INDEX('Energy Prices'!$F$26:$CR$31,MATCH($B132,'Energy Prices'!$C$26:$C$31,0),MATCH(Calc_Proposed!CB$6,'Energy Prices'!$F$11:$CR$11,0))/100000,0)","v":0},{"$f":"IFERROR('Data Input - Proposed'!CG88*INDEX('Energy Prices'!$F$26:$CR$31,MATCH($B132,'Energy Prices'!$C$26:$C$31,0),MATCH(Calc_Proposed!CC$6,'Energy Prices'!$F$11:$CR$11,0))/100000,0)","v":0},{"$f":"IFERROR('Data Input - Proposed'!CH88*INDEX('Energy Prices'!$F$26:$CR$31,MATCH($B132,'Energy Prices'!$C$26:$C$31,0),MATCH(Calc_Proposed!CD$6,'Energy Prices'!$F$11:$CR$11,0))/100000,0)","v":0},{"$f":"IFERROR('Data Input - Proposed'!CI88*INDEX('Energy Prices'!$F$26:$CR$31,MATCH($B132,'Energy Prices'!$C$26:$C$31,0),MATCH(Calc_Proposed!CE$6,'Energy Prices'!$F$11:$CR$11,0))/100000,0)","v":0},{"$f":"IFERROR('Data Input - Proposed'!CJ88*INDEX('Energy Prices'!$F$26:$CR$31,MATCH($B132,'Energy Prices'!$C$26:$C$31,0),MATCH(Calc_Proposed!CF$6,'Energy Prices'!$F$11:$CR$11,0))/100000,0)","v":0},{"$f":"IFERROR('Data Input - Proposed'!CK88*INDEX('Energy Prices'!$F$26:$CR$31,MATCH($B132,'Energy Prices'!$C$26:$C$31,0),MATCH(Calc_Proposed!CG$6,'Energy Prices'!$F$11:$CR$11,0))/100000,0)","v":0},{"$f":"IFERROR('Data Input - Proposed'!CL88*INDEX('Energy Prices'!$F$26:$CR$31,MATCH($B132,'Energy Prices'!$C$26:$C$31,0),MATCH(Calc_Proposed!CH$6,'Energy Prices'!$F$11:$CR$11,0))/100000,0)","v":0},{"$f":"IFERROR('Data Input - Proposed'!CM88*INDEX('Energy Prices'!$F$26:$CR$31,MATCH($B132,'Energy Prices'!$C$26:$C$31,0),MATCH(Calc_Proposed!CI$6,'Energy Prices'!$F$11:$CR$11,0))/100000,0)","v":0},{"$f":"IFERROR('Data Input - Proposed'!CN88*INDEX('Energy Prices'!$F$26:$CR$31,MATCH($B132,'Energy Prices'!$C$26:$C$31,0),MATCH(Calc_Proposed!CJ$6,'Energy Prices'!$F$11:$CR$11,0))/100000,0)","v":0},{"$f":"IFERROR('Data Input - Proposed'!CO88*INDEX('Energy Prices'!$F$26:$CR$31,MATCH($B132,'Energy Prices'!$C$26:$C$31,0),MATCH(Calc_Proposed!CK$6,'Energy Prices'!$F$11:$CR$11,0))/100000,0)","v":0},{"$f":"IFERROR('Data Input - Proposed'!CP88*INDEX('Energy Prices'!$F$26:$CR$31,MATCH($B132,'Energy Prices'!$C$26:$C$31,0),MATCH(Calc_Proposed!CL$6,'Energy Prices'!$F$11:$CR$11,0))/100000,0)","v":0},{"$f":"IFERROR('Data Input - Proposed'!CQ88*INDEX('Energy Prices'!$F$26:$CR$31,MATCH($B132,'Energy Prices'!$C$26:$C$31,0),MATCH(Calc_Proposed!CM$6,'Energy Prices'!$F$11:$CR$11,0))/100000,0)","v":0},{"$f":"IFERROR('Data Input - Proposed'!CR88*INDEX('Energy Prices'!$F$26:$CR$31,MATCH($B132,'Energy Prices'!$C$26:$C$31,0),MATCH(Calc_Proposed!CN$6,'Energy Prices'!$F$11:$CR$11,0))/100000,0)","v":0},{"$f":"IFERROR('Data Input - Proposed'!CS88*INDEX('Energy Prices'!$F$26:$CR$31,MATCH($B132,'Energy Prices'!$C$26:$C$31,0),MATCH(Calc_Proposed!CO$6,'Energy Prices'!$F$11:$CR$11,0))/100000,0)","v":0},{"$f":"IFERROR('Data Input - Proposed'!CT88*INDEX('Energy Prices'!$F$26:$CR$31,MATCH($B132,'Energy Prices'!$C$26:$C$31,0),MATCH(Calc_Proposed!CP$6,'Energy Prices'!$F$11:$CR$11,0))/100000,0)","v":0},{"$f":"IFERROR('Data Input - Proposed'!CU88*INDEX('Energy Prices'!$F$26:$CR$31,MATCH($B132,'Energy Prices'!$C$26:$C$31,0),MATCH(Calc_Proposed!CQ$6,'Energy Prices'!$F$11:$CR$11,0))/100000,0)","v":0},{"$f":"IFERROR('Data Input - Proposed'!CV88*INDEX('Energy Prices'!$F$26:$CR$31,MATCH($B132,'Energy Prices'!$C$26:$C$31,0),MATCH(Calc_Proposed!CR$6,'Energy Prices'!$F$11:$CR$11,0))/100000,0)","v":0},{"$f":"IFERROR('Data Input - Proposed'!CW88*INDEX('Energy Prices'!$F$26:$CR$31,MATCH($B132,'Energy Prices'!$C$26:$C$31,0),MATCH(Calc_Proposed!CS$6,'Energy Prices'!$F$11:$CR$11,0))/100000,0)","v":0},{"$f":"IFERROR('Data Input - Proposed'!CX88*INDEX('Energy Prices'!$F$26:$CR$31,MATCH($B132,'Energy Prices'!$C$26:$C$31,0),MATCH(Calc_Proposed!CT$6,'Energy Prices'!$F$11:$CR$11,0))/100000,0)","v":0},{"$f":"IFERROR('Data Input - Proposed'!CY88*INDEX('Energy Prices'!$F$26:$CR$31,MATCH($B132,'Energy Prices'!$C$26:$C$31,0),MATCH(Calc_Proposed!CU$6,'Energy Prices'!$F$11:$CR$11,0))/100000,0)","v":0},{"$f":"IFERROR('Data Input - Proposed'!CZ88*INDEX('Energy Prices'!$F$26:$CR$31,MATCH($B132,'Energy Prices'!$C$26:$C$31,0),MATCH(Calc_Proposed!CV$6,'Energy Prices'!$F$11:$CR$11,0))/100000,0)","v":0},{"$f":"IFERROR('Data Input - Proposed'!DA88*INDEX('Energy Prices'!$F$26:$CR$31,MATCH($B132,'Energy Prices'!$C$26:$C$31,0),MATCH(Calc_Proposed!CW$6,'Energy Prices'!$F$11:$CR$11,0))/100000,0)","v":0},{"$f":"IFERROR('Data Input - Proposed'!DB88*INDEX('Energy Prices'!$F$26:$CR$31,MATCH($B132,'Energy Prices'!$C$26:$C$31,0),MATCH(Calc_Proposed!CX$6,'Energy Prices'!$F$11:$CR$11,0))/100000,0)","v":0},{"$f":"IFERROR('Data Input - Proposed'!DC88*INDEX('Energy Prices'!$F$26:$CR$31,MATCH($B132,'Energy Prices'!$C$26:$C$31,0),MATCH(Calc_Proposed!CY$6,'Energy Prices'!$F$11:$CR$11,0))/100000,0)","v":0}]
[null,"Road - Diesel","£000's",{"$f":"IFERROR('Data Input - Proposed'!H89*INDEX('Energy Prices'!$F$26:$CR$31,MATCH($B133,'Energy Prices'!$C$26:$C$31,0),MATCH(Calc_Proposed!D$6,'Energy Prices'!$F$11:$CR$11,0))/100000,0)","v":0},{"$f":"IFERROR('Data Input - Proposed'!I89*INDEX('Energy Prices'!$F$26:$CR$31,MATCH($B133,'Energy Prices'!$C$26:$C$31,0),MATCH(Calc_Proposed!E$6,'Energy Prices'!$F$11:$CR$11,0))/100000,0)","v":0},{"$f":"IFERROR('Data Input - Proposed'!J89*INDEX('Energy Prices'!$F$26:$CR$31,MATCH($B133,'Energy Prices'!$C$26:$C$31,0),MATCH(Calc_Proposed!F$6,'Energy Prices'!$F$11:$CR$11,0))/100000,0)","v":0},{"$f":"IFERROR('Data Input - Proposed'!K89*INDEX('Energy Prices'!$F$26:$CR$31,MATCH($B133,'Energy Prices'!$C$26:$C$31,0),MATCH(Calc_Proposed!G$6,'Energy Prices'!$F$11:$CR$11,0))/100000,0)","v":0},{"$f":"IFERROR('Data Input - Proposed'!L89*INDEX('Energy Prices'!$F$26:$CR$31,MATCH($B133,'Energy Prices'!$C$26:$C$31,0),MATCH(Calc_Proposed!H$6,'Energy Prices'!$F$11:$CR$11,0))/100000,0)","v":0},{"$f":"IFERROR('Data Input - Proposed'!M89*INDEX('Energy Prices'!$F$26:$CR$31,MATCH($B133,'Energy Prices'!$C$26:$C$31,0),MATCH(Calc_Proposed!I$6,'Energy Prices'!$F$11:$CR$11,0))/100000,0)","v":0},{"$f":"IFERROR('Data Input - Proposed'!N89*INDEX('Energy Prices'!$F$26:$CR$31,MATCH($B133,'Energy Prices'!$C$26:$C$31,0),MATCH(Calc_Proposed!J$6,'Energy Prices'!$F$11:$CR$11,0))/100000,0)","v":0},{"$f":"IFERROR('Data Input - Proposed'!O89*INDEX('Energy Prices'!$F$26:$CR$31,MATCH($B133,'Energy Prices'!$C$26:$C$31,0),MATCH(Calc_Proposed!K$6,'Energy Prices'!$F$11:$CR$11,0))/100000,0)","v":0},{"$f":"IFERROR('Data Input - Proposed'!P89*INDEX('Energy Prices'!$F$26:$CR$31,MATCH($B133,'Energy Prices'!$C$26:$C$31,0),MATCH(Calc_Proposed!L$6,'Energy Prices'!$F$11:$CR$11,0))/100000,0)","v":0},{"$f":"IFERROR('Data Input - Proposed'!Q89*INDEX('Energy Prices'!$F$26:$CR$31,MATCH($B133,'Energy Prices'!$C$26:$C$31,0),MATCH(Calc_Proposed!M$6,'Energy Prices'!$F$11:$CR$11,0))/100000,0)","v":0},{"$f":"IFERROR('Data Input - Proposed'!R89*INDEX('Energy Prices'!$F$26:$CR$31,MATCH($B133,'Energy Prices'!$C$26:$C$31,0),MATCH(Calc_Proposed!N$6,'Energy Prices'!$F$11:$CR$11,0))/100000,0)","v":0},{"$f":"IFERROR('Data Input - Proposed'!S89*INDEX('Energy Prices'!$F$26:$CR$31,MATCH($B133,'Energy Prices'!$C$26:$C$31,0),MATCH(Calc_Proposed!O$6,'Energy Prices'!$F$11:$CR$11,0))/100000,0)","v":0},{"$f":"IFERROR('Data Input - Proposed'!T89*INDEX('Energy Prices'!$F$26:$CR$31,MATCH($B133,'Energy Prices'!$C$26:$C$31,0),MATCH(Calc_Proposed!P$6,'Energy Prices'!$F$11:$CR$11,0))/100000,0)","v":0},{"$f":"IFERROR('Data Input - Proposed'!U89*INDEX('Energy Prices'!$F$26:$CR$31,MATCH($B133,'Energy Prices'!$C$26:$C$31,0),MATCH(Calc_Proposed!Q$6,'Energy Prices'!$F$11:$CR$11,0))/100000,0)","v":0},{"$f":"IFERROR('Data Input - Proposed'!V89*INDEX('Energy Prices'!$F$26:$CR$31,MATCH($B133,'Energy Prices'!$C$26:$C$31,0),MATCH(Calc_Proposed!R$6,'Energy Prices'!$F$11:$CR$11,0))/100000,0)","v":0},{"$f":"IFERROR('Data Input - Proposed'!W89*INDEX('Energy Prices'!$F$26:$CR$31,MATCH($B133,'Energy Prices'!$C$26:$C$31,0),MATCH(Calc_Proposed!S$6,'Energy Prices'!$F$11:$CR$11,0))/100000,0)","v":0},{"$f":"IFERROR('Data Input - Proposed'!X89*INDEX('Energy Prices'!$F$26:$CR$31,MATCH($B133,'Energy Prices'!$C$26:$C$31,0),MATCH(Calc_Proposed!T$6,'Energy Prices'!$F$11:$CR$11,0))/100000,0)","v":0},{"$f":"IFERROR('Data Input - Proposed'!Y89*INDEX('Energy Prices'!$F$26:$CR$31,MATCH($B133,'Energy Prices'!$C$26:$C$31,0),MATCH(Calc_Proposed!U$6,'Energy Prices'!$F$11:$CR$11,0))/100000,0)","v":0},{"$f":"IFERROR('Data Input - Proposed'!Z89*INDEX('Energy Prices'!$F$26:$CR$31,MATCH($B133,'Energy Prices'!$C$26:$C$31,0),MATCH(Calc_Proposed!V$6,'Energy Prices'!$F$11:$CR$11,0))/100000,0)","v":0},{"$f":"IFERROR('Data Input - Proposed'!AA89*INDEX('Energy Prices'!$F$26:$CR$31,MATCH($B133,'Energy Prices'!$C$26:$C$31,0),MATCH(Calc_Proposed!W$6,'Energy Prices'!$F$11:$CR$11,0))/100000,0)","v":0},{"$f":"IFERROR('Data Input - Proposed'!AB89*INDEX('Energy Prices'!$F$26:$CR$31,MATCH($B133,'Energy Prices'!$C$26:$C$31,0),MATCH(Calc_Proposed!X$6,'Energy Prices'!$F$11:$CR$11,0))/100000,0)","v":0},{"$f":"IFERROR('Data Input - Proposed'!AC89*INDEX('Energy Prices'!$F$26:$CR$31,MATCH($B133,'Energy Prices'!$C$26:$C$31,0),MATCH(Calc_Proposed!Y$6,'Energy Prices'!$F$11:$CR$11,0))/100000,0)","v":0},{"$f":"IFERROR('Data Input - Proposed'!AD89*INDEX('Energy Prices'!$F$26:$CR$31,MATCH($B133,'Energy Prices'!$C$26:$C$31,0),MATCH(Calc_Proposed!Z$6,'Energy Prices'!$F$11:$CR$11,0))/100000,0)","v":0},{"$f":"IFERROR('Data Input - Proposed'!AE89*INDEX('Energy Prices'!$F$26:$CR$31,MATCH($B133,'Energy Prices'!$C$26:$C$31,0),MATCH(Calc_Proposed!AA$6,'Energy Prices'!$F$11:$CR$11,0))/100000,0)","v":0},{"$f":"IFERROR('Data Input - Proposed'!AF89*INDEX('Energy Prices'!$F$26:$CR$31,MATCH($B133,'Energy Prices'!$C$26:$C$31,0),MATCH(Calc_Proposed!AB$6,'Energy Prices'!$F$11:$CR$11,0))/100000,0)","v":0},{"$f":"IFERROR('Data Input - Proposed'!AG89*INDEX('Energy Prices'!$F$26:$CR$31,MATCH($B133,'Energy Prices'!$C$26:$C$31,0),MATCH(Calc_Proposed!AC$6,'Energy Prices'!$F$11:$CR$11,0))/100000,0)","v":0},{"$f":"IFERROR('Data Input - Proposed'!AH89*INDEX('Energy Prices'!$F$26:$CR$31,MATCH($B133,'Energy Prices'!$C$26:$C$31,0),MATCH(Calc_Proposed!AD$6,'Energy Prices'!$F$11:$CR$11,0))/100000,0)","v":0},{"$f":"IFERROR('Data Input - Proposed'!AI89*INDEX('Energy Prices'!$F$26:$CR$31,MATCH($B133,'Energy Prices'!$C$26:$C$31,0),MATCH(Calc_Proposed!AE$6,'Energy Prices'!$F$11:$CR$11,0))/100000,0)","v":0},{"$f":"IFERROR('Data Input - Proposed'!AJ89*INDEX('Energy Prices'!$F$26:$CR$31,MATCH($B133,'Energy Prices'!$C$26:$C$31,0),MATCH(Calc_Proposed!AF$6,'Energy Prices'!$F$11:$CR$11,0))/100000,0)","v":0},{"$f":"IFERROR('Data Input - Proposed'!AK89*INDEX('Energy Prices'!$F$26:$CR$31,MATCH($B133,'Energy Prices'!$C$26:$C$31,0),MATCH(Calc_Proposed!AG$6,'Energy Prices'!$F$11:$CR$11,0))/100000,0)","v":0},{"$f":"IFERROR('Data Input - Proposed'!AL89*INDEX('Energy Prices'!$F$26:$CR$31,MATCH($B133,'Energy Prices'!$C$26:$C$31,0),MATCH(Calc_Proposed!AH$6,'Energy Prices'!$F$11:$CR$11,0))/100000,0)","v":0},{"$f":"IFERROR('Data Input - Proposed'!AM89*INDEX('Energy Prices'!$F$26:$CR$31,MATCH($B133,'Energy Prices'!$C$26:$C$31,0),MATCH(Calc_Proposed!AI$6,'Energy Prices'!$F$11:$CR$11,0))/100000,0)","v":0},{"$f":"IFERROR('Data Input - Proposed'!AN89*INDEX('Energy Prices'!$F$26:$CR$31,MATCH($B133,'Energy Prices'!$C$26:$C$31,0),MATCH(Calc_Proposed!AJ$6,'Energy Prices'!$F$11:$CR$11,0))/100000,0)","v":0},{"$f":"IFERROR('Data Input - Proposed'!AO89*INDEX('Energy Prices'!$F$26:$CR$31,MATCH($B133,'Energy Prices'!$C$26:$C$31,0),MATCH(Calc_Proposed!AK$6,'Energy Prices'!$F$11:$CR$11,0))/100000,0)","v":0},{"$f":"IFERROR('Data Input - Proposed'!AP89*INDEX('Energy Prices'!$F$26:$CR$31,MATCH($B133,'Energy Prices'!$C$26:$C$31,0),MATCH(Calc_Proposed!AL$6,'Energy Prices'!$F$11:$CR$11,0))/100000,0)","v":0},{"$f":"IFERROR('Data Input - Proposed'!AQ89*INDEX('Energy Prices'!$F$26:$CR$31,MATCH($B133,'Energy Prices'!$C$26:$C$31,0),MATCH(Calc_Proposed!AM$6,'Energy Prices'!$F$11:$CR$11,0))/100000,0)","v":0},{"$f":"IFERROR('Data Input - Proposed'!AR89*INDEX('Energy Prices'!$F$26:$CR$31,MATCH($B133,'Energy Prices'!$C$26:$C$31,0),MATCH(Calc_Proposed!AN$6,'Energy Prices'!$F$11:$CR$11,0))/100000,0)","v":0},{"$f":"IFERROR('Data Input - Proposed'!AS89*INDEX('Energy Prices'!$F$26:$CR$31,MATCH($B133,'Energy Prices'!$C$26:$C$31,0),MATCH(Calc_Proposed!AO$6,'Energy Prices'!$F$11:$CR$11,0))/100000,0)","v":0},{"$f":"IFERROR('Data Input - Proposed'!AT89*INDEX('Energy Prices'!$F$26:$CR$31,MATCH($B133,'Energy Prices'!$C$26:$C$31,0),MATCH(Calc_Proposed!AP$6,'Energy Prices'!$F$11:$CR$11,0))/100000,0)","v":0},{"$f":"IFERROR('Data Input - Proposed'!AU89*INDEX('Energy Prices'!$F$26:$CR$31,MATCH($B133,'Energy Prices'!$C$26:$C$31,0),MATCH(Calc_Proposed!AQ$6,'Energy Prices'!$F$11:$CR$11,0))/100000,0)","v":0},{"$f":"IFERROR('Data Input - Proposed'!AV89*INDEX('Energy Prices'!$F$26:$CR$31,MATCH($B133,'Energy Prices'!$C$26:$C$31,0),MATCH(Calc_Proposed!AR$6,'Energy Prices'!$F$11:$CR$11,0))/100000,0)","v":0},{"$f":"IFERROR('Data Input - Proposed'!AW89*INDEX('Energy Prices'!$F$26:$CR$31,MATCH($B133,'Energy Prices'!$C$26:$C$31,0),MATCH(Calc_Proposed!AS$6,'Energy Prices'!$F$11:$CR$11,0))/100000,0)","v":0},{"$f":"IFERROR('Data Input - Proposed'!AX89*INDEX('Energy Prices'!$F$26:$CR$31,MATCH($B133,'Energy Prices'!$C$26:$C$31,0),MATCH(Calc_Proposed!AT$6,'Energy Prices'!$F$11:$CR$11,0))/100000,0)","v":0},{"$f":"IFERROR('Data Input - Proposed'!AY89*INDEX('Energy Prices'!$F$26:$CR$31,MATCH($B133,'Energy Prices'!$C$26:$C$31,0),MATCH(Calc_Proposed!AU$6,'Energy Prices'!$F$11:$CR$11,0))/100000,0)","v":0},{"$f":"IFERROR('Data Input - Proposed'!AZ89*INDEX('Energy Prices'!$F$26:$CR$31,MATCH($B133,'Energy Prices'!$C$26:$C$31,0),MATCH(Calc_Proposed!AV$6,'Energy Prices'!$F$11:$CR$11,0))/100000,0)","v":0},{"$f":"IFERROR('Data Input - Proposed'!BA89*INDEX('Energy Prices'!$F$26:$CR$31,MATCH($B133,'Energy Prices'!$C$26:$C$31,0),MATCH(Calc_Proposed!AW$6,'Energy Prices'!$F$11:$CR$11,0))/100000,0)","v":0},{"$f":"IFERROR('Data Input - Proposed'!BB89*INDEX('Energy Prices'!$F$26:$CR$31,MATCH($B133,'Energy Prices'!$C$26:$C$31,0),MATCH(Calc_Proposed!AX$6,'Energy Prices'!$F$11:$CR$11,0))/100000,0)","v":0},{"$f":"IFERROR('Data Input - Proposed'!BC89*INDEX('Energy Prices'!$F$26:$CR$31,MATCH($B133,'Energy Prices'!$C$26:$C$31,0),MATCH(Calc_Proposed!AY$6,'Energy Prices'!$F$11:$CR$11,0))/100000,0)","v":0},{"$f":"IFERROR('Data Input - Proposed'!BD89*INDEX('Energy Prices'!$F$26:$CR$31,MATCH($B133,'Energy Prices'!$C$26:$C$31,0),MATCH(Calc_Proposed!AZ$6,'Energy Prices'!$F$11:$CR$11,0))/100000,0)","v":0},{"$f":"IFERROR('Data Input - Proposed'!BE89*INDEX('Energy Prices'!$F$26:$CR$31,MATCH($B133,'Energy Prices'!$C$26:$C$31,0),MATCH(Calc_Proposed!BA$6,'Energy Prices'!$F$11:$CR$11,0))/100000,0)","v":0},{"$f":"IFERROR('Data Input - Proposed'!BF89*INDEX('Energy Prices'!$F$26:$CR$31,MATCH($B133,'Energy Prices'!$C$26:$C$31,0),MATCH(Calc_Proposed!BB$6,'Energy Prices'!$F$11:$CR$11,0))/100000,0)","v":0},{"$f":"IFERROR('Data Input - Proposed'!BG89*INDEX('Energy Prices'!$F$26:$CR$31,MATCH($B133,'Energy Prices'!$C$26:$C$31,0),MATCH(Calc_Proposed!BC$6,'Energy Prices'!$F$11:$CR$11,0))/100000,0)","v":0},{"$f":"IFERROR('Data Input - Proposed'!BH89*INDEX('Energy Prices'!$F$26:$CR$31,MATCH($B133,'Energy Prices'!$C$26:$C$31,0),MATCH(Calc_Proposed!BD$6,'Energy Prices'!$F$11:$CR$11,0))/100000,0)","v":0},{"$f":"IFERROR('Data Input - Proposed'!BI89*INDEX('Energy Prices'!$F$26:$CR$31,MATCH($B133,'Energy Prices'!$C$26:$C$31,0),MATCH(Calc_Proposed!BE$6,'Energy Prices'!$F$11:$CR$11,0))/100000,0)","v":0},{"$f":"IFERROR('Data Input - Proposed'!BJ89*INDEX('Energy Prices'!$F$26:$CR$31,MATCH($B133,'Energy Prices'!$C$26:$C$31,0),MATCH(Calc_Proposed!BF$6,'Energy Prices'!$F$11:$CR$11,0))/100000,0)","v":0},{"$f":"IFERROR('Data Input - Proposed'!BK89*INDEX('Energy Prices'!$F$26:$CR$31,MATCH($B133,'Energy Prices'!$C$26:$C$31,0),MATCH(Calc_Proposed!BG$6,'Energy Prices'!$F$11:$CR$11,0))/100000,0)","v":0},{"$f":"IFERROR('Data Input - Proposed'!BL89*INDEX('Energy Prices'!$F$26:$CR$31,MATCH($B133,'Energy Prices'!$C$26:$C$31,0),MATCH(Calc_Proposed!BH$6,'Energy Prices'!$F$11:$CR$11,0))/100000,0)","v":0},{"$f":"IFERROR('Data Input - Proposed'!BM89*INDEX('Energy Prices'!$F$26:$CR$31,MATCH($B133,'Energy Prices'!$C$26:$C$31,0),MATCH(Calc_Proposed!BI$6,'Energy Prices'!$F$11:$CR$11,0))/100000,0)","v":0},{"$f":"IFERROR('Data Input - Proposed'!BN89*INDEX('Energy Prices'!$F$26:$CR$31,MATCH($B133,'Energy Prices'!$C$26:$C$31,0),MATCH(Calc_Proposed!BJ$6,'Energy Prices'!$F$11:$CR$11,0))/100000,0)","v":0},{"$f":"IFERROR('Data Input - Proposed'!BO89*INDEX('Energy Prices'!$F$26:$CR$31,MATCH($B133,'Energy Prices'!$C$26:$C$31,0),MATCH(Calc_Proposed!BK$6,'Energy Prices'!$F$11:$CR$11,0))/100000,0)","v":0},{"$f":"IFERROR('Data Input - Proposed'!BP89*INDEX('Energy Prices'!$F$26:$CR$31,MATCH($B133,'Energy Prices'!$C$26:$C$31,0),MATCH(Calc_Proposed!BL$6,'Energy Prices'!$F$11:$CR$11,0))/100000,0)","v":0},{"$f":"IFERROR('Data Input - Proposed'!BQ89*INDEX('Energy Prices'!$F$26:$CR$31,MATCH($B133,'Energy Prices'!$C$26:$C$31,0),MATCH(Calc_Proposed!BM$6,'Energy Prices'!$F$11:$CR$11,0))/100000,0)","v":0},{"$f":"IFERROR('Data Input - Proposed'!BR89*INDEX('Energy Prices'!$F$26:$CR$31,MATCH($B133,'Energy Prices'!$C$26:$C$31,0),MATCH(Calc_Proposed!BN$6,'Energy Prices'!$F$11:$CR$11,0))/100000,0)","v":0},{"$f":"IFERROR('Data Input - Proposed'!BS89*INDEX('Energy Prices'!$F$26:$CR$31,MATCH($B133,'Energy Prices'!$C$26:$C$31,0),MATCH(Calc_Proposed!BO$6,'Energy Prices'!$F$11:$CR$11,0))/100000,0)","v":0},{"$f":"IFERROR('Data Input - Proposed'!BT89*INDEX('Energy Prices'!$F$26:$CR$31,MATCH($B133,'Energy Prices'!$C$26:$C$31,0),MATCH(Calc_Proposed!BP$6,'Energy Prices'!$F$11:$CR$11,0))/100000,0)","v":0},{"$f":"IFERROR('Data Input - Proposed'!BU89*INDEX('Energy Prices'!$F$26:$CR$31,MATCH($B133,'Energy Prices'!$C$26:$C$31,0),MATCH(Calc_Proposed!BQ$6,'Energy Prices'!$F$11:$CR$11,0))/100000,0)","v":0},{"$f":"IFERROR('Data Input - Proposed'!BV89*INDEX('Energy Prices'!$F$26:$CR$31,MATCH($B133,'Energy Prices'!$C$26:$C$31,0),MATCH(Calc_Proposed!BR$6,'Energy Prices'!$F$11:$CR$11,0))/100000,0)","v":0},{"$f":"IFERROR('Data Input - Proposed'!BW89*INDEX('Energy Prices'!$F$26:$CR$31,MATCH($B133,'Energy Prices'!$C$26:$C$31,0),MATCH(Calc_Proposed!BS$6,'Energy Prices'!$F$11:$CR$11,0))/100000,0)","v":0},{"$f":"IFERROR('Data Input - Proposed'!BX89*INDEX('Energy Prices'!$F$26:$CR$31,MATCH($B133,'Energy Prices'!$C$26:$C$31,0),MATCH(Calc_Proposed!BT$6,'Energy Prices'!$F$11:$CR$11,0))/100000,0)","v":0},{"$f":"IFERROR('Data Input - Proposed'!BY89*INDEX('Energy Prices'!$F$26:$CR$31,MATCH($B133,'Energy Prices'!$C$26:$C$31,0),MATCH(Calc_Proposed!BU$6,'Energy Prices'!$F$11:$CR$11,0))/100000,0)","v":0},{"$f":"IFERROR('Data Input - Proposed'!BZ89*INDEX('Energy Prices'!$F$26:$CR$31,MATCH($B133,'Energy Prices'!$C$26:$C$31,0),MATCH(Calc_Proposed!BV$6,'Energy Prices'!$F$11:$CR$11,0))/100000,0)","v":0},{"$f":"IFERROR('Data Input - Proposed'!CA89*INDEX('Energy Prices'!$F$26:$CR$31,MATCH($B133,'Energy Prices'!$C$26:$C$31,0),MATCH(Calc_Proposed!BW$6,'Energy Prices'!$F$11:$CR$11,0))/100000,0)","v":0},{"$f":"IFERROR('Data Input - Proposed'!CB89*INDEX('Energy Prices'!$F$26:$CR$31,MATCH($B133,'Energy Prices'!$C$26:$C$31,0),MATCH(Calc_Proposed!BX$6,'Energy Prices'!$F$11:$CR$11,0))/100000,0)","v":0},{"$f":"IFERROR('Data Input - Proposed'!CC89*INDEX('Energy Prices'!$F$26:$CR$31,MATCH($B133,'Energy Prices'!$C$26:$C$31,0),MATCH(Calc_Proposed!BY$6,'Energy Prices'!$F$11:$CR$11,0))/100000,0)","v":0},{"$f":"IFERROR('Data Input - Proposed'!CD89*INDEX('Energy Prices'!$F$26:$CR$31,MATCH($B133,'Energy Prices'!$C$26:$C$31,0),MATCH(Calc_Proposed!BZ$6,'Energy Prices'!$F$11:$CR$11,0))/100000,0)","v":0},{"$f":"IFERROR('Data Input - Proposed'!CE89*INDEX('Energy Prices'!$F$26:$CR$31,MATCH($B133,'Energy Prices'!$C$26:$C$31,0),MATCH(Calc_Proposed!CA$6,'Energy Prices'!$F$11:$CR$11,0))/100000,0)","v":0},{"$f":"IFERROR('Data Input - Proposed'!CF89*INDEX('Energy Prices'!$F$26:$CR$31,MATCH($B133,'Energy Prices'!$C$26:$C$31,0),MATCH(Calc_Proposed!CB$6,'Energy Prices'!$F$11:$CR$11,0))/100000,0)","v":0},{"$f":"IFERROR('Data Input - Proposed'!CG89*INDEX('Energy Prices'!$F$26:$CR$31,MATCH($B133,'Energy Prices'!$C$26:$C$31,0),MATCH(Calc_Proposed!CC$6,'Energy Prices'!$F$11:$CR$11,0))/100000,0)","v":0},{"$f":"IFERROR('Data Input - Proposed'!CH89*INDEX('Energy Prices'!$F$26:$CR$31,MATCH($B133,'Energy Prices'!$C$26:$C$31,0),MATCH(Calc_Proposed!CD$6,'Energy Prices'!$F$11:$CR$11,0))/100000,0)","v":0},{"$f":"IFERROR('Data Input - Proposed'!CI89*INDEX('Energy Prices'!$F$26:$CR$31,MATCH($B133,'Energy Prices'!$C$26:$C$31,0),MATCH(Calc_Proposed!CE$6,'Energy Prices'!$F$11:$CR$11,0))/100000,0)","v":0},{"$f":"IFERROR('Data Input - Proposed'!CJ89*INDEX('Energy Prices'!$F$26:$CR$31,MATCH($B133,'Energy Prices'!$C$26:$C$31,0),MATCH(Calc_Proposed!CF$6,'Energy Prices'!$F$11:$CR$11,0))/100000,0)","v":0},{"$f":"IFERROR('Data Input - Proposed'!CK89*INDEX('Energy Prices'!$F$26:$CR$31,MATCH($B133,'Energy Prices'!$C$26:$C$31,0),MATCH(Calc_Proposed!CG$6,'Energy Prices'!$F$11:$CR$11,0))/100000,0)","v":0},{"$f":"IFERROR('Data Input - Proposed'!CL89*INDEX('Energy Prices'!$F$26:$CR$31,MATCH($B133,'Energy Prices'!$C$26:$C$31,0),MATCH(Calc_Proposed!CH$6,'Energy Prices'!$F$11:$CR$11,0))/100000,0)","v":0},{"$f":"IFERROR('Data Input - Proposed'!CM89*INDEX('Energy Prices'!$F$26:$CR$31,MATCH($B133,'Energy Prices'!$C$26:$C$31,0),MATCH(Calc_Proposed!CI$6,'Energy Prices'!$F$11:$CR$11,0))/100000,0)","v":0},{"$f":"IFERROR('Data Input - Proposed'!CN89*INDEX('Energy Prices'!$F$26:$CR$31,MATCH($B133,'Energy Prices'!$C$26:$C$31,0),MATCH(Calc_Proposed!CJ$6,'Energy Prices'!$F$11:$CR$11,0))/100000,0)","v":0},{"$f":"IFERROR('Data Input - Proposed'!CO89*INDEX('Energy Prices'!$F$26:$CR$31,MATCH($B133,'Energy Prices'!$C$26:$C$31,0),MATCH(Calc_Proposed!CK$6,'Energy Prices'!$F$11:$CR$11,0))/100000,0)","v":0},{"$f":"IFERROR('Data Input - Proposed'!CP89*INDEX('Energy Prices'!$F$26:$CR$31,MATCH($B133,'Energy Prices'!$C$26:$C$31,0),MATCH(Calc_Proposed!CL$6,'Energy Prices'!$F$11:$CR$11,0))/100000,0)","v":0},{"$f":"IFERROR('Data Input - Proposed'!CQ89*INDEX('Energy Prices'!$F$26:$CR$31,MATCH($B133,'Energy Prices'!$C$26:$C$31,0),MATCH(Calc_Proposed!CM$6,'Energy Prices'!$F$11:$CR$11,0))/100000,0)","v":0},{"$f":"IFERROR('Data Input - Proposed'!CR89*INDEX('Energy Prices'!$F$26:$CR$31,MATCH($B133,'Energy Prices'!$C$26:$C$31,0),MATCH(Calc_Proposed!CN$6,'Energy Prices'!$F$11:$CR$11,0))/100000,0)","v":0},{"$f":"IFERROR('Data Input - Proposed'!CS89*INDEX('Energy Prices'!$F$26:$CR$31,MATCH($B133,'Energy Prices'!$C$26:$C$31,0),MATCH(Calc_Proposed!CO$6,'Energy Prices'!$F$11:$CR$11,0))/100000,0)","v":0},{"$f":"IFERROR('Data Input - Proposed'!CT89*INDEX('Energy Prices'!$F$26:$CR$31,MATCH($B133,'Energy Prices'!$C$26:$C$31,0),MATCH(Calc_Proposed!CP$6,'Energy Prices'!$F$11:$CR$11,0))/100000,0)","v":0},{"$f":"IFERROR('Data Input - Proposed'!CU89*INDEX('Energy Prices'!$F$26:$CR$31,MATCH($B133,'Energy Prices'!$C$26:$C$31,0),MATCH(Calc_Proposed!CQ$6,'Energy Prices'!$F$11:$CR$11,0))/100000,0)","v":0},{"$f":"IFERROR('Data Input - Proposed'!CV89*INDEX('Energy Prices'!$F$26:$CR$31,MATCH($B133,'Energy Prices'!$C$26:$C$31,0),MATCH(Calc_Proposed!CR$6,'Energy Prices'!$F$11:$CR$11,0))/100000,0)","v":0},{"$f":"IFERROR('Data Input - Proposed'!CW89*INDEX('Energy Prices'!$F$26:$CR$31,MATCH($B133,'Energy Prices'!$C$26:$C$31,0),MATCH(Calc_Proposed!CS$6,'Energy Prices'!$F$11:$CR$11,0))/100000,0)","v":0},{"$f":"IFERROR('Data Input - Proposed'!CX89*INDEX('Energy Prices'!$F$26:$CR$31,MATCH($B133,'Energy Prices'!$C$26:$C$31,0),MATCH(Calc_Proposed!CT$6,'Energy Prices'!$F$11:$CR$11,0))/100000,0)","v":0},{"$f":"IFERROR('Data Input - Proposed'!CY89*INDEX('Energy Prices'!$F$26:$CR$31,MATCH($B133,'Energy Prices'!$C$26:$C$31,0),MATCH(Calc_Proposed!CU$6,'Energy Prices'!$F$11:$CR$11,0))/100000,0)","v":0},{"$f":"IFERROR('Data Input - Proposed'!CZ89*INDEX('Energy Prices'!$F$26:$CR$31,MATCH($B133,'Energy Prices'!$C$26:$C$31,0),MATCH(Calc_Proposed!CV$6,'Energy Prices'!$F$11:$CR$11,0))/100000,0)","v":0},{"$f":"IFERROR('Data Input - Proposed'!DA89*INDEX('Energy Prices'!$F$26:$CR$31,MATCH($B133,'Energy Prices'!$C$26:$C$31,0),MATCH(Calc_Proposed!CW$6,'Energy Prices'!$F$11:$CR$11,0))/100000,0)","v":0},{"$f":"IFERROR('Data Input - Proposed'!DB89*INDEX('Energy Prices'!$F$26:$CR$31,MATCH($B133,'Energy Prices'!$C$26:$C$31,0),MATCH(Calc_Proposed!CX$6,'Energy Prices'!$F$11:$CR$11,0))/100000,0)","v":0},{"$f":"IFERROR('Data Input - Proposed'!DC89*INDEX('Energy Prices'!$F$26:$CR$31,MATCH($B133,'Energy Prices'!$C$26:$C$31,0),MATCH(Calc_Proposed!CY$6,'Energy Prices'!$F$11:$CR$11,0))/100000,0)","v":0}]
[]
[null,"Discounted energy","£000's",{"$f":"SUM(D128:D133)*D$7","v":1785.9772560648744},{"$f":"SUM(E128:E133)*E$7","v":1769.2464149674659},1783.5557872693669,1752.5122542914835,1742.2058175935065,1736.9462483377367,1725.0749894734306,1682.0119364246996,0,0,0,0,0,0,0,0,0,0,0,0,0,0,0,0,0,0,0,0,0,0,0,0,0,0,0,0,0,0,0,0,0,0,0,0,0,0,0,0,0,0,0,0,0,0,0,0,0,0,0,0,{"$f":"SUM(BL128:BL133)*BL$7","v":0},0,0,0,0,0,0,0,0,0,0,0,0,0,0,0,0,0,0,0,0,0,0,0,0,0,0,0,0,0,0,0,0,0,0,0,0,0,0,0]
[]
[null,"Air pollutant emissions- value"]
[null,{"$f":"B53","v":"Sox 2019"},"£000's",{"$f":"IFERROR(IF(OR($C$144=FALSE,LEFT($B138,3)<>\"NOX\"),D53*INDEX('Damage costs'!$U$16:$U$43,MATCH($B138,'Damage costs'!$C$16:$C$43,0))/1000,D53*INDEX('Damage costs'!$Y$16:$Y$43,MATCH($B138,'Damage costs'!$C$16:$C$43,0))/1000),\"\")","v":19.20090116757984},{"$f":"IFERROR(IF(OR($C$144=FALSE,LEFT($B138,3)<>\"NOX\"),E53*INDEX('Damage costs'!$U$16:$U$43,MATCH($B138,'Damage costs'!$C$16:$C$43,0))/1000,E53*INDEX('Damage costs'!$Y$16:$Y$43,MATCH($B138,'Damage costs'!$C$16:$C$43,0))/1000),\"\")","v":19.20090116757984},{"$f":"IFERROR(IF(OR($C$144=FALSE,LEFT($B138,3)<>\"NOX\"),F53*INDEX('Damage costs'!$U$16:$U$43,MATCH($B138,'Damage costs'!$C$16:$C$43,0))/1000,F53*INDEX('Damage costs'!$Y$16:$Y$43,MATCH($B138,'Damage costs'!$C$16:$C$43,0))/1000),\"\")","v":19.20090116757984},{"$f":"IFERROR(IF(OR($C$144=FALSE,LEFT($B138,3)<>\"NOX\"),G53*INDEX('Damage costs'!$U$16:$U$43,MATCH($B138,'Damage costs'!$C$16:$C$43,0))/1000,G53*INDEX('Damage costs'!$Y$16:$Y$43,MATCH($B138,'Damage costs'!$C$16:$C$43,0))/1000),\"\")","v":19.20090116757984},{"$f":"IFERROR(IF(OR($C$144=FALSE,LEFT($B138,3)<>\"NOX\"),H53*INDEX('Damage costs'!$U$16:$U$43,MATCH($B138,'Damage costs'!$C$16:$C$43,0))/1000,H53*INDEX('Damage costs'!$Y$16:$Y$43,MATCH($B138,'Damage costs'!$C$16:$C$43,0))/1000),\"\")","v":5.1074397105762372},{"$f":"IFERROR(IF(OR($C$144=FALSE,LEFT($B138,3)<>\"NOX\"),I53*INDEX('Damage costs'!$U$16:$U$43,MATCH($B138,'Damage costs'!$C$16:$C$43,0))/1000,I53*INDEX('Damage costs'!$Y$16:$Y$43,MATCH($B138,'Damage costs'!$C$16:$C$43,0))/1000),\"\")","v":5.1074397105762372},{"$f":"IFERROR(IF(OR($C$144=FALSE,LEFT($B138,3)<>\"NOX\"),J53*INDEX('Damage costs'!$U$16:$U$43,MATCH($B138,'Damage costs'!$C$16:$C$43,0))/1000,J53*INDEX('Damage costs'!$Y$16:$Y$43,MATCH($B138,'Damage costs'!$C$16:$C$43,0))/1000),\"\")","v":5.1074397105762372},{"$f":"IFERROR(IF(OR($C$144=FALSE,LEFT($B138,3)<>\"NOX\"),K53*INDEX('Damage costs'!$U$16:$U$43,MATCH($B138,'Damage costs'!$C$16:$C$43,0))/1000,K53*INDEX('Damage costs'!$Y$16:$Y$43,MATCH($B138,'Damage costs'!$C$16:$C$43,0))/1000),\"\")","v":5.1074397105762372},{"$f":"IFERROR(IF(OR($C$144=FALSE,LEFT($B138,3)<>\"NOX\"),L53*INDEX('Damage costs'!$U$16:$U$43,MATCH($B138,'Damage costs'!$C$16:$C$43,0))/1000,L53*INDEX('Damage costs'!$Y$16:$Y$43,MATCH($B138,'Damage costs'!$C$16:$C$43,0))/1000),\"\")","v":0},{"$f":"IFERROR(IF(OR($C$144=FALSE,LEFT($B138,3)<>\"NOX\"),M53*INDEX('Damage costs'!$U$16:$U$43,MATCH($B138,'Damage costs'!$C$16:$C$43,0))/1000,M53*INDEX('Damage costs'!$Y$16:$Y$43,MATCH($B138,'Damage costs'!$C$16:$C$43,0))/1000),\"\")","v":0},{"$f":"IFERROR(IF(OR($C$144=FALSE,LEFT($B138,3)<>\"NOX\"),N53*INDEX('Damage costs'!$U$16:$U$43,MATCH($B138,'Damage costs'!$C$16:$C$43,0))/1000,N53*INDEX('Damage costs'!$Y$16:$Y$43,MATCH($B138,'Damage costs'!$C$16:$C$43,0))/1000),\"\")","v":0},{"$f":"IFERROR(IF(OR($C$144=FALSE,LEFT($B138,3)<>\"NOX\"),O53*INDEX('Damage costs'!$U$16:$U$43,MATCH($B138,'Damage costs'!$C$16:$C$43,0))/1000,O53*INDEX('Damage costs'!$Y$16:$Y$43,MATCH($B138,'Damage costs'!$C$16:$C$43,0))/1000),\"\")","v":0},{"$f":"IFERROR(IF(OR($C$144=FALSE,LEFT($B138,3)<>\"NOX\"),P53*INDEX('Damage costs'!$U$16:$U$43,MATCH($B138,'Damage costs'!$C$16:$C$43,0))/1000,P53*INDEX('Damage costs'!$Y$16:$Y$43,MATCH($B138,'Damage costs'!$C$16:$C$43,0))/1000),\"\")","v":0},{"$f":"IFERROR(IF(OR($C$144=FALSE,LEFT($B138,3)<>\"NOX\"),Q53*INDEX('Damage costs'!$U$16:$U$43,MATCH($B138,'Damage costs'!$C$16:$C$43,0))/1000,Q53*INDEX('Damage costs'!$Y$16:$Y$43,MATCH($B138,'Damage costs'!$C$16:$C$43,0))/1000),\"\")","v":0},{"$f":"IFERROR(IF(OR($C$144=FALSE,LEFT($B138,3)<>\"NOX\"),R53*INDEX('Damage costs'!$U$16:$U$43,MATCH($B138,'Damage costs'!$C$16:$C$43,0))/1000,R53*INDEX('Damage costs'!$Y$16:$Y$43,MATCH($B138,'Damage costs'!$C$16:$C$43,0))/1000),\"\")","v":0},{"$f":"IFERROR(IF(OR($C$144=FALSE,LEFT($B138,3)<>\"NOX\"),S53*INDEX('Damage costs'!$U$16:$U$43,MATCH($B138,'Damage costs'!$C$16:$C$43,0))/1000,S53*INDEX('Damage costs'!$Y$16:$Y$43,MATCH($B138,'Damage costs'!$C$16:$C$43,0))/1000),\"\")","v":0},{"$f":"IFERROR(IF(OR($C$144=FALSE,LEFT($B138,3)<>\"NOX\"),T53*INDEX('Damage costs'!$U$16:$U$43,MATCH($B138,'Damage costs'!$C$16:$C$43,0))/1000,T53*INDEX('Damage costs'!$Y$16:$Y$43,MATCH($B138,'Damage costs'!$C$16:$C$43,0))/1000),\"\")","v":0},{"$f":"IFERROR(IF(OR($C$144=FALSE,LEFT($B138,3)<>\"NOX\"),U53*INDEX('Damage costs'!$U$16:$U$43,MATCH($B138,'Damage costs'!$C$16:$C$43,0))/1000,U53*INDEX('Damage costs'!$Y$16:$Y$43,MATCH($B138,'Damage costs'!$C$16:$C$43,0))/1000),\"\")","v":0},{"$f":"IFERROR(IF(OR($C$144=FALSE,LEFT($B138,3)<>\"NOX\"),V53*INDEX('Damage costs'!$U$16:$U$43,MATCH($B138,'Damage costs'!$C$16:$C$43,0))/1000,V53*INDEX('Damage costs'!$Y$16:$Y$43,MATCH($B138,'Damage costs'!$C$16:$C$43,0))/1000),\"\")","v":0},{"$f":"IFERROR(IF(OR($C$144=FALSE,LEFT($B138,3)<>\"NOX\"),W53*INDEX('Damage costs'!$U$16:$U$43,MATCH($B138,'Damage costs'!$C$16:$C$43,0))/1000,W53*INDEX('Damage costs'!$Y$16:$Y$43,MATCH($B138,'Damage costs'!$C$16:$C$43,0))/1000),\"\")","v":0},{"$f":"IFERROR(IF(OR($C$144=FALSE,LEFT($B138,3)<>\"NOX\"),X53*INDEX('Damage costs'!$U$16:$U$43,MATCH($B138,'Damage costs'!$C$16:$C$43,0))/1000,X53*INDEX('Damage costs'!$Y$16:$Y$43,MATCH($B138,'Damage costs'!$C$16:$C$43,0))/1000),\"\")","v":0},{"$f":"IFERROR(IF(OR($C$144=FALSE,LEFT($B138,3)<>\"NOX\"),Y53*INDEX('Damage costs'!$U$16:$U$43,MATCH($B138,'Damage costs'!$C$16:$C$43,0))/1000,Y53*INDEX('Damage costs'!$Y$16:$Y$43,MATCH($B138,'Damage costs'!$C$16:$C$43,0))/1000),\"\")","v":0},{"$f":"IFERROR(IF(OR($C$144=FALSE,LEFT($B138,3)<>\"NOX\"),Z53*INDEX('Damage costs'!$U$16:$U$43,MATCH($B138,'Damage costs'!$C$16:$C$43,0))/1000,Z53*INDEX('Damage costs'!$Y$16:$Y$43,MATCH($B138,'Damage costs'!$C$16:$C$43,0))/1000),\"\")","v":0},{"$f":"IFERROR(IF(OR($C$144=FALSE,LEFT($B138,3)<>\"NOX\"),AA53*INDEX('Damage costs'!$U$16:$U$43,MATCH($B138,'Damage costs'!$C$16:$C$43,0))/1000,AA53*INDEX('Damage costs'!$Y$16:$Y$43,MATCH($B138,'Damage costs'!$C$16:$C$43,0))/1000),\"\")","v":0},{"$f":"IFERROR(IF(OR($C$144=FALSE,LEFT($B138,3)<>\"NOX\"),AB53*INDEX('Damage costs'!$U$16:$U$43,MATCH($B138,'Damage costs'!$C$16:$C$43,0))/1000,AB53*INDEX('Damage costs'!$Y$16:$Y$43,MATCH($B138,'Damage costs'!$C$16:$C$43,0))/1000),\"\")","v":0},{"$f":"IFERROR(IF(OR($C$144=FALSE,LEFT($B138,3)<>\"NOX\"),AC53*INDEX('Damage costs'!$U$16:$U$43,MATCH($B138,'Damage costs'!$C$16:$C$43,0))/1000,AC53*INDEX('Damage costs'!$Y$16:$Y$43,MATCH($B138,'Damage costs'!$C$16:$C$43,0))/1000),\"\")","v":0},{"$f":"IFERROR(IF(OR($C$144=FALSE,LEFT($B138,3)<>\"NOX\"),AD53*INDEX('Damage costs'!$U$16:$U$43,MATCH($B138,'Damage costs'!$C$16:$C$43,0))/1000,AD53*INDEX('Damage costs'!$Y$16:$Y$43,MATCH($B138,'Damage costs'!$C$16:$C$43,0))/1000),\"\")","v":0},{"$f":"IFERROR(IF(OR($C$144=FALSE,LEFT($B138,3)<>\"NOX\"),AE53*INDEX('Damage costs'!$U$16:$U$43,MATCH($B138,'Damage costs'!$C$16:$C$43,0))/1000,AE53*INDEX('Damage costs'!$Y$16:$Y$43,MATCH($B138,'Damage costs'!$C$16:$C$43,0))/1000),\"\")","v":0},{"$f":"IFERROR(IF(OR($C$144=FALSE,LEFT($B138,3)<>\"NOX\"),AF53*INDEX('Damage costs'!$U$16:$U$43,MATCH($B138,'Damage costs'!$C$16:$C$43,0))/1000,AF53*INDEX('Damage costs'!$Y$16:$Y$43,MATCH($B138,'Damage costs'!$C$16:$C$43,0))/1000),\"\")","v":0},{"$f":"IFERROR(IF(OR($C$144=FALSE,LEFT($B138,3)<>\"NOX\"),AG53*INDEX('Damage costs'!$U$16:$U$43,MATCH($B138,'Damage costs'!$C$16:$C$43,0))/1000,AG53*INDEX('Damage costs'!$Y$16:$Y$43,MATCH($B138,'Damage costs'!$C$16:$C$43,0))/1000),\"\")","v":0},{"$f":"IFERROR(IF(OR($C$144=FALSE,LEFT($B138,3)<>\"NOX\"),AH53*INDEX('Damage costs'!$U$16:$U$43,MATCH($B138,'Damage costs'!$C$16:$C$43,0))/1000,AH53*INDEX('Damage costs'!$Y$16:$Y$43,MATCH($B138,'Damage costs'!$C$16:$C$43,0))/1000),\"\")","v":0},{"$f":"IFERROR(IF(OR($C$144=FALSE,LEFT($B138,3)<>\"NOX\"),AI53*INDEX('Damage costs'!$U$16:$U$43,MATCH($B138,'Damage costs'!$C$16:$C$43,0))/1000,AI53*INDEX('Damage costs'!$Y$16:$Y$43,MATCH($B138,'Damage costs'!$C$16:$C$43,0))/1000),\"\")","v":0},{"$f":"IFERROR(IF(OR($C$144=FALSE,LEFT($B138,3)<>\"NOX\"),AJ53*INDEX('Damage costs'!$U$16:$U$43,MATCH($B138,'Damage costs'!$C$16:$C$43,0))/1000,AJ53*INDEX('Damage costs'!$Y$16:$Y$43,MATCH($B138,'Damage costs'!$C$16:$C$43,0))/1000),\"\")","v":0},{"$f":"IFERROR(IF(OR($C$144=FALSE,LEFT($B138,3)<>\"NOX\"),AK53*INDEX('Damage costs'!$U$16:$U$43,MATCH($B138,'Damage costs'!$C$16:$C$43,0))/1000,AK53*INDEX('Damage costs'!$Y$16:$Y$43,MATCH($B138,'Damage costs'!$C$16:$C$43,0))/1000),\"\")","v":0},{"$f":"IFERROR(IF(OR($C$144=FALSE,LEFT($B138,3)<>\"NOX\"),AL53*INDEX('Damage costs'!$U$16:$U$43,MATCH($B138,'Damage costs'!$C$16:$C$43,0))/1000,AL53*INDEX('Damage costs'!$Y$16:$Y$43,MATCH($B138,'Damage costs'!$C$16:$C$43,0))/1000),\"\")","v":0},{"$f":"IFERROR(IF(OR($C$144=FALSE,LEFT($B138,3)<>\"NOX\"),AM53*INDEX('Damage costs'!$U$16:$U$43,MATCH($B138,'Damage costs'!$C$16:$C$43,0))/1000,AM53*INDEX('Damage costs'!$Y$16:$Y$43,MATCH($B138,'Damage costs'!$C$16:$C$43,0))/1000),\"\")","v":0},{"$f":"IFERROR(IF(OR($C$144=FALSE,LEFT($B138,3)<>\"NOX\"),AN53*INDEX('Damage costs'!$U$16:$U$43,MATCH($B138,'Damage costs'!$C$16:$C$43,0))/1000,AN53*INDEX('Damage costs'!$Y$16:$Y$43,MATCH($B138,'Damage costs'!$C$16:$C$43,0))/1000),\"\")","v":0},{"$f":"IFERROR(IF(OR($C$144=FALSE,LEFT($B138,3)<>\"NOX\"),AO53*INDEX('Damage costs'!$U$16:$U$43,MATCH($B138,'Damage costs'!$C$16:$C$43,0))/1000,AO53*INDEX('Damage costs'!$Y$16:$Y$43,MATCH($B138,'Damage costs'!$C$16:$C$43,0))/1000),\"\")","v":0},{"$f":"IFERROR(IF(OR($C$144=FALSE,LEFT($B138,3)<>\"NOX\"),AP53*INDEX('Damage costs'!$U$16:$U$43,MATCH($B138,'Damage costs'!$C$16:$C$43,0))/1000,AP53*INDEX('Damage costs'!$Y$16:$Y$43,MATCH($B138,'Damage costs'!$C$16:$C$43,0))/1000),\"\")","v":0},{"$f":"IFERROR(IF(OR($C$144=FALSE,LEFT($B138,3)<>\"NOX\"),AQ53*INDEX('Damage costs'!$U$16:$U$43,MATCH($B138,'Damage costs'!$C$16:$C$43,0))/1000,AQ53*INDEX('Damage costs'!$Y$16:$Y$43,MATCH($B138,'Damage costs'!$C$16:$C$43,0))/1000),\"\")","v":0},{"$f":"IFERROR(IF(OR($C$144=FALSE,LEFT($B138,3)<>\"NOX\"),AR53*INDEX('Damage costs'!$U$16:$U$43,MATCH($B138,'Damage costs'!$C$16:$C$43,0))/1000,AR53*INDEX('Damage costs'!$Y$16:$Y$43,MATCH($B138,'Damage costs'!$C$16:$C$43,0))/1000),\"\")","v":0},{"$f":"IFERROR(IF(OR($C$144=FALSE,LEFT($B138,3)<>\"NOX\"),AS53*INDEX('Damage costs'!$U$16:$U$43,MATCH($B138,'Damage costs'!$C$16:$C$43,0))/1000,AS53*INDEX('Damage costs'!$Y$16:$Y$43,MATCH($B138,'Damage costs'!$C$16:$C$43,0))/1000),\"\")","v":0},{"$f":"IFERROR(IF(OR($C$144=FALSE,LEFT($B138,3)<>\"NOX\"),AT53*INDEX('Damage costs'!$U$16:$U$43,MATCH($B138,'Damage costs'!$C$16:$C$43,0))/1000,AT53*INDEX('Damage costs'!$Y$16:$Y$43,MATCH($B138,'Damage costs'!$C$16:$C$43,0))/1000),\"\")","v":0},{"$f":"IFERROR(IF(OR($C$144=FALSE,LEFT($B138,3)<>\"NOX\"),AU53*INDEX('Damage costs'!$U$16:$U$43,MATCH($B138,'Damage costs'!$C$16:$C$43,0))/1000,AU53*INDEX('Damage costs'!$Y$16:$Y$43,MATCH($B138,'Damage costs'!$C$16:$C$43,0))/1000),\"\")","v":0},{"$f":"IFERROR(IF(OR($C$144=FALSE,LEFT($B138,3)<>\"NOX\"),AV53*INDEX('Damage costs'!$U$16:$U$43,MATCH($B138,'Damage costs'!$C$16:$C$43,0))/1000,AV53*INDEX('Damage costs'!$Y$16:$Y$43,MATCH($B138,'Damage costs'!$C$16:$C$43,0))/1000),\"\")","v":0},{"$f":"IFERROR(IF(OR($C$144=FALSE,LEFT($B138,3)<>\"NOX\"),AW53*INDEX('Damage costs'!$U$16:$U$43,MATCH($B138,'Damage costs'!$C$16:$C$43,0))/1000,AW53*INDEX('Damage costs'!$Y$16:$Y$43,MATCH($B138,'Damage costs'!$C$16:$C$43,0))/1000),\"\")","v":0},{"$f":"IFERROR(IF(OR($C$144=FALSE,LEFT($B138,3)<>\"NOX\"),AX53*INDEX('Damage costs'!$U$16:$U$43,MATCH($B138,'Damage costs'!$C$16:$C$43,0))/1000,AX53*INDEX('Damage costs'!$Y$16:$Y$43,MATCH($B138,'Damage costs'!$C$16:$C$43,0))/1000),\"\")","v":0},{"$f":"IFERROR(IF(OR($C$144=FALSE,LEFT($B138,3)<>\"NOX\"),AY53*INDEX('Damage costs'!$U$16:$U$43,MATCH($B138,'Damage costs'!$C$16:$C$43,0))/1000,AY53*INDEX('Damage costs'!$Y$16:$Y$43,MATCH($B138,'Damage costs'!$C$16:$C$43,0))/1000),\"\")","v":0},{"$f":"IFERROR(IF(OR($C$144=FALSE,LEFT($B138,3)<>\"NOX\"),AZ53*INDEX('Damage costs'!$U$16:$U$43,MATCH($B138,'Damage costs'!$C$16:$C$43,0))/1000,AZ53*INDEX('Damage costs'!$Y$16:$Y$43,MATCH($B138,'Damage costs'!$C$16:$C$43,0))/1000),\"\")","v":0},{"$f":"IFERROR(IF(OR($C$144=FALSE,LEFT($B138,3)<>\"NOX\"),BA53*INDEX('Damage costs'!$U$16:$U$43,MATCH($B138,'Damage costs'!$C$16:$C$43,0))/1000,BA53*INDEX('Damage costs'!$Y$16:$Y$43,MATCH($B138,'Damage costs'!$C$16:$C$43,0))/1000),\"\")","v":0},{"$f":"IFERROR(IF(OR($C$144=FALSE,LEFT($B138,3)<>\"NOX\"),BB53*INDEX('Damage costs'!$U$16:$U$43,MATCH($B138,'Damage costs'!$C$16:$C$43,0))/1000,BB53*INDEX('Damage costs'!$Y$16:$Y$43,MATCH($B138,'Damage costs'!$C$16:$C$43,0))/1000),\"\")","v":0},{"$f":"IFERROR(IF(OR($C$144=FALSE,LEFT($B138,3)<>\"NOX\"),BC53*INDEX('Damage costs'!$U$16:$U$43,MATCH($B138,'Damage costs'!$C$16:$C$43,0))/1000,BC53*INDEX('Damage costs'!$Y$16:$Y$43,MATCH($B138,'Damage costs'!$C$16:$C$43,0))/1000),\"\")","v":0},{"$f":"IFERROR(IF(OR($C$144=FALSE,LEFT($B138,3)<>\"NOX\"),BD53*INDEX('Damage costs'!$U$16:$U$43,MATCH($B138,'Damage costs'!$C$16:$C$43,0))/1000,BD53*INDEX('Damage costs'!$Y$16:$Y$43,MATCH($B138,'Damage costs'!$C$16:$C$43,0))/1000),\"\")","v":0},{"$f":"IFERROR(IF(OR($C$144=FALSE,LEFT($B138,3)<>\"NOX\"),BE53*INDEX('Damage costs'!$U$16:$U$43,MATCH($B138,'Damage costs'!$C$16:$C$43,0))/1000,BE53*INDEX('Damage costs'!$Y$16:$Y$43,MATCH($B138,'Damage costs'!$C$16:$C$43,0))/1000),\"\")","v":0},{"$f":"IFERROR(IF(OR($C$144=FALSE,LEFT($B138,3)<>\"NOX\"),BF53*INDEX('Damage costs'!$U$16:$U$43,MATCH($B138,'Damage costs'!$C$16:$C$43,0))/1000,BF53*INDEX('Damage costs'!$Y$16:$Y$43,MATCH($B138,'Damage costs'!$C$16:$C$43,0))/1000),\"\")","v":0},{"$f":"IFERROR(IF(OR($C$144=FALSE,LEFT($B138,3)<>\"NOX\"),BG53*INDEX('Damage costs'!$U$16:$U$43,MATCH($B138,'Damage costs'!$C$16:$C$43,0))/1000,BG53*INDEX('Damage costs'!$Y$16:$Y$43,MATCH($B138,'Damage costs'!$C$16:$C$43,0))/1000),\"\")","v":0},{"$f":"IFERROR(IF(OR($C$144=FALSE,LEFT($B138,3)<>\"NOX\"),BH53*INDEX('Damage costs'!$U$16:$U$43,MATCH($B138,'Damage costs'!$C$16:$C$43,0))/1000,BH53*INDEX('Damage costs'!$Y$16:$Y$43,MATCH($B138,'Damage costs'!$C$16:$C$43,0))/1000),\"\")","v":0},{"$f":"IFERROR(IF(OR($C$144=FALSE,LEFT($B138,3)<>\"NOX\"),BI53*INDEX('Damage costs'!$U$16:$U$43,MATCH($B138,'Damage costs'!$C$16:$C$43,0))/1000,BI53*INDEX('Damage costs'!$Y$16:$Y$43,MATCH($B138,'Damage costs'!$C$16:$C$43,0))/1000),\"\")","v":0},{"$f":"IFERROR(IF(OR($C$144=FALSE,LEFT($B138,3)<>\"NOX\"),BJ53*INDEX('Damage costs'!$U$16:$U$43,MATCH($B138,'Damage costs'!$C$16:$C$43,0))/1000,BJ53*INDEX('Damage costs'!$Y$16:$Y$43,MATCH($B138,'Damage costs'!$C$16:$C$43,0))/1000),\"\")","v":0},{"$f":"IFERROR(IF(OR($C$144=FALSE,LEFT($B138,3)<>\"NOX\"),BK53*INDEX('Damage costs'!$U$16:$U$43,MATCH($B138,'Damage costs'!$C$16:$C$43,0))/1000,BK53*INDEX('Damage costs'!$Y$16:$Y$43,MATCH($B138,'Damage costs'!$C$16:$C$43,0))/1000),\"\")","v":0},{"$f":"IFERROR(IF(OR($C$144=FALSE,LEFT($B138,3)<>\"NOX\"),BL53*INDEX('Damage costs'!$U$16:$U$43,MATCH($B138,'Damage costs'!$C$16:$C$43,0))/1000,BL53*INDEX('Damage costs'!$Y$16:$Y$43,MATCH($B138,'Damage costs'!$C$16:$C$43,0))/1000),\"\")","v":0},{"$f":"IFERROR(IF(OR($C$144=FALSE,LEFT($B138,3)<>\"NOX\"),BM53*INDEX('Damage costs'!$U$16:$U$43,MATCH($B138,'Damage costs'!$C$16:$C$43,0))/1000,BM53*INDEX('Damage costs'!$Y$16:$Y$43,MATCH($B138,'Damage costs'!$C$16:$C$43,0))/1000),\"\")","v":0},{"$f":"IFERROR(IF(OR($C$144=FALSE,LEFT($B138,3)<>\"NOX\"),BN53*INDEX('Damage costs'!$U$16:$U$43,MATCH($B138,'Damage costs'!$C$16:$C$43,0))/1000,BN53*INDEX('Damage costs'!$Y$16:$Y$43,MATCH($B138,'Damage costs'!$C$16:$C$43,0))/1000),\"\")","v":0},{"$f":"IFERROR(IF(OR($C$144=FALSE,LEFT($B138,3)<>\"NOX\"),BO53*INDEX('Damage costs'!$U$16:$U$43,MATCH($B138,'Damage costs'!$C$16:$C$43,0))/1000,BO53*INDEX('Damage costs'!$Y$16:$Y$43,MATCH($B138,'Damage costs'!$C$16:$C$43,0))/1000),\"\")","v":0},{"$f":"IFERROR(IF(OR($C$144=FALSE,LEFT($B138,3)<>\"NOX\"),BP53*INDEX('Damage costs'!$U$16:$U$43,MATCH($B138,'Damage costs'!$C$16:$C$43,0))/1000,BP53*INDEX('Damage costs'!$Y$16:$Y$43,MATCH($B138,'Damage costs'!$C$16:$C$43,0))/1000),\"\")","v":0},{"$f":"IFERROR(IF(OR($C$144=FALSE,LEFT($B138,3)<>\"NOX\"),BQ53*INDEX('Damage costs'!$U$16:$U$43,MATCH($B138,'Damage costs'!$C$16:$C$43,0))/1000,BQ53*INDEX('Damage costs'!$Y$16:$Y$43,MATCH($B138,'Damage costs'!$C$16:$C$43,0))/1000),\"\")","v":0},{"$f":"IFERROR(IF(OR($C$144=FALSE,LEFT($B138,3)<>\"NOX\"),BR53*INDEX('Damage costs'!$U$16:$U$43,MATCH($B138,'Damage costs'!$C$16:$C$43,0))/1000,BR53*INDEX('Damage costs'!$Y$16:$Y$43,MATCH($B138,'Damage costs'!$C$16:$C$43,0))/1000),\"\")","v":0},{"$f":"IFERROR(IF(OR($C$144=FALSE,LEFT($B138,3)<>\"NOX\"),BS53*INDEX('Damage costs'!$U$16:$U$43,MATCH($B138,'Damage costs'!$C$16:$C$43,0))/1000,BS53*INDEX('Damage costs'!$Y$16:$Y$43,MATCH($B138,'Damage costs'!$C$16:$C$43,0))/1000),\"\")","v":0},{"$f":"IFERROR(IF(OR($C$144=FALSE,LEFT($B138,3)<>\"NOX\"),BT53*INDEX('Damage costs'!$U$16:$U$43,MATCH($B138,'Damage costs'!$C$16:$C$43,0))/1000,BT53*INDEX('Damage costs'!$Y$16:$Y$43,MATCH($B138,'Damage costs'!$C$16:$C$43,0))/1000),\"\")","v":0},{"$f":"IFERROR(IF(OR($C$144=FALSE,LEFT($B138,3)<>\"NOX\"),BU53*INDEX('Damage costs'!$U$16:$U$43,MATCH($B138,'Damage costs'!$C$16:$C$43,0))/1000,BU53*INDEX('Damage costs'!$Y$16:$Y$43,MATCH($B138,'Damage costs'!$C$16:$C$43,0))/1000),\"\")","v":0},{"$f":"IFERROR(IF(OR($C$144=FALSE,LEFT($B138,3)<>\"NOX\"),BV53*INDEX('Damage costs'!$U$16:$U$43,MATCH($B138,'Damage costs'!$C$16:$C$43,0))/1000,BV53*INDEX('Damage costs'!$Y$16:$Y$43,MATCH($B138,'Damage costs'!$C$16:$C$43,0))/1000),\"\")","v":0},{"$f":"IFERROR(IF(OR($C$144=FALSE,LEFT($B138,3)<>\"NOX\"),BW53*INDEX('Damage costs'!$U$16:$U$43,MATCH($B138,'Damage costs'!$C$16:$C$43,0))/1000,BW53*INDEX('Damage costs'!$Y$16:$Y$43,MATCH($B138,'Damage costs'!$C$16:$C$43,0))/1000),\"\")","v":0},{"$f":"IFERROR(IF(OR($C$144=FALSE,LEFT($B138,3)<>\"NOX\"),BX53*INDEX('Damage costs'!$U$16:$U$43,MATCH($B138,'Damage costs'!$C$16:$C$43,0))/1000,BX53*INDEX('Damage costs'!$Y$16:$Y$43,MATCH($B138,'Damage costs'!$C$16:$C$43,0))/1000),\"\")","v":0},{"$f":"IFERROR(IF(OR($C$144=FALSE,LEFT($B138,3)<>\"NOX\"),BY53*INDEX('Damage costs'!$U$16:$U$43,MATCH($B138,'Damage costs'!$C$16:$C$43,0))/1000,BY53*INDEX('Damage costs'!$Y$16:$Y$43,MATCH($B138,'Damage costs'!$C$16:$C$43,0))/1000),\"\")","v":0},{"$f":"IFERROR(IF(OR($C$144=FALSE,LEFT($B138,3)<>\"NOX\"),BZ53*INDEX('Damage costs'!$U$16:$U$43,MATCH($B138,'Damage costs'!$C$16:$C$43,0))/1000,BZ53*INDEX('Damage costs'!$Y$16:$Y$43,MATCH($B138,'Damage costs'!$C$16:$C$43,0))/1000),\"\")","v":0},{"$f":"IFERROR(IF(OR($C$144=FALSE,LEFT($B138,3)<>\"NOX\"),CA53*INDEX('Damage costs'!$U$16:$U$43,MATCH($B138,'Damage costs'!$C$16:$C$43,0))/1000,CA53*INDEX('Damage costs'!$Y$16:$Y$43,MATCH($B138,'Damage costs'!$C$16:$C$43,0))/1000),\"\")","v":0},{"$f":"IFERROR(IF(OR($C$144=FALSE,LEFT($B138,3)<>\"NOX\"),CB53*INDEX('Damage costs'!$U$16:$U$43,MATCH($B138,'Damage costs'!$C$16:$C$43,0))/1000,CB53*INDEX('Damage costs'!$Y$16:$Y$43,MATCH($B138,'Damage costs'!$C$16:$C$43,0))/1000),\"\")","v":0},{"$f":"IFERROR(IF(OR($C$144=FALSE,LEFT($B138,3)<>\"NOX\"),CC53*INDEX('Damage costs'!$U$16:$U$43,MATCH($B138,'Damage costs'!$C$16:$C$43,0))/1000,CC53*INDEX('Damage costs'!$Y$16:$Y$43,MATCH($B138,'Damage costs'!$C$16:$C$43,0))/1000),\"\")","v":0},{"$f":"IFERROR(IF(OR($C$144=FALSE,LEFT($B138,3)<>\"NOX\"),CD53*INDEX('Damage costs'!$U$16:$U$43,MATCH($B138,'Damage costs'!$C$16:$C$43,0))/1000,CD53*INDEX('Damage costs'!$Y$16:$Y$43,MATCH($B138,'Damage costs'!$C$16:$C$43,0))/1000),\"\")","v":0},{"$f":"IFERROR(IF(OR($C$144=FALSE,LEFT($B138,3)<>\"NOX\"),CE53*INDEX('Damage costs'!$U$16:$U$43,MATCH($B138,'Damage costs'!$C$16:$C$43,0))/1000,CE53*INDEX('Damage costs'!$Y$16:$Y$43,MATCH($B138,'Damage costs'!$C$16:$C$43,0))/1000),\"\")","v":0},{"$f":"IFERROR(IF(OR($C$144=FALSE,LEFT($B138,3)<>\"NOX\"),CF53*INDEX('Damage costs'!$U$16:$U$43,MATCH($B138,'Damage costs'!$C$16:$C$43,0))/1000,CF53*INDEX('Damage costs'!$Y$16:$Y$43,MATCH($B138,'Damage costs'!$C$16:$C$43,0))/1000),\"\")","v":0},{"$f":"IFERROR(IF(OR($C$144=FALSE,LEFT($B138,3)<>\"NOX\"),CG53*INDEX('Damage costs'!$U$16:$U$43,MATCH($B138,'Damage costs'!$C$16:$C$43,0))/1000,CG53*INDEX('Damage costs'!$Y$16:$Y$43,MATCH($B138,'Damage costs'!$C$16:$C$43,0))/1000),\"\")","v":0},{"$f":"IFERROR(IF(OR($C$144=FALSE,LEFT($B138,3)<>\"NOX\"),CH53*INDEX('Damage costs'!$U$16:$U$43,MATCH($B138,'Damage costs'!$C$16:$C$43,0))/1000,CH53*INDEX('Damage costs'!$Y$16:$Y$43,MATCH($B138,'Damage costs'!$C$16:$C$43,0))/1000),\"\")","v":0},{"$f":"IFERROR(IF(OR($C$144=FALSE,LEFT($B138,3)<>\"NOX\"),CI53*INDEX('Damage costs'!$U$16:$U$43,MATCH($B138,'Damage costs'!$C$16:$C$43,0))/1000,CI53*INDEX('Damage costs'!$Y$16:$Y$43,MATCH($B138,'Damage costs'!$C$16:$C$43,0))/1000),\"\")","v":0},{"$f":"IFERROR(IF(OR($C$144=FALSE,LEFT($B138,3)<>\"NOX\"),CJ53*INDEX('Damage costs'!$U$16:$U$43,MATCH($B138,'Damage costs'!$C$16:$C$43,0))/1000,CJ53*INDEX('Damage costs'!$Y$16:$Y$43,MATCH($B138,'Damage costs'!$C$16:$C$43,0))/1000),\"\")","v":0},{"$f":"IFERROR(IF(OR($C$144=FALSE,LEFT($B138,3)<>\"NOX\"),CK53*INDEX('Damage costs'!$U$16:$U$43,MATCH($B138,'Damage costs'!$C$16:$C$43,0))/1000,CK53*INDEX('Damage costs'!$Y$16:$Y$43,MATCH($B138,'Damage costs'!$C$16:$C$43,0))/1000),\"\")","v":0},{"$f":"IFERROR(IF(OR($C$144=FALSE,LEFT($B138,3)<>\"NOX\"),CL53*INDEX('Damage costs'!$U$16:$U$43,MATCH($B138,'Damage costs'!$C$16:$C$43,0))/1000,CL53*INDEX('Damage costs'!$Y$16:$Y$43,MATCH($B138,'Damage costs'!$C$16:$C$43,0))/1000),\"\")","v":0},{"$f":"IFERROR(IF(OR($C$144=FALSE,LEFT($B138,3)<>\"NOX\"),CM53*INDEX('Damage costs'!$U$16:$U$43,MATCH($B138,'Damage costs'!$C$16:$C$43,0))/1000,CM53*INDEX('Damage costs'!$Y$16:$Y$43,MATCH($B138,'Damage costs'!$C$16:$C$43,0))/1000),\"\")","v":0},{"$f":"IFERROR(IF(OR($C$144=FALSE,LEFT($B138,3)<>\"NOX\"),CN53*INDEX('Damage costs'!$U$16:$U$43,MATCH($B138,'Damage costs'!$C$16:$C$43,0))/1000,CN53*INDEX('Damage costs'!$Y$16:$Y$43,MATCH($B138,'Damage costs'!$C$16:$C$43,0))/1000),\"\")","v":0},{"$f":"IFERROR(IF(OR($C$144=FALSE,LEFT($B138,3)<>\"NOX\"),CO53*INDEX('Damage costs'!$U$16:$U$43,MATCH($B138,'Damage costs'!$C$16:$C$43,0))/1000,CO53*INDEX('Damage costs'!$Y$16:$Y$43,MATCH($B138,'Damage costs'!$C$16:$C$43,0))/1000),\"\")","v":0},{"$f":"IFERROR(IF(OR($C$144=FALSE,LEFT($B138,3)<>\"NOX\"),CP53*INDEX('Damage costs'!$U$16:$U$43,MATCH($B138,'Damage costs'!$C$16:$C$43,0))/1000,CP53*INDEX('Damage costs'!$Y$16:$Y$43,MATCH($B138,'Damage costs'!$C$16:$C$43,0))/1000),\"\")","v":0},{"$f":"IFERROR(IF(OR($C$144=FALSE,LEFT($B138,3)<>\"NOX\"),CQ53*INDEX('Damage costs'!$U$16:$U$43,MATCH($B138,'Damage costs'!$C$16:$C$43,0))/1000,CQ53*INDEX('Damage costs'!$Y$16:$Y$43,MATCH($B138,'Damage costs'!$C$16:$C$43,0))/1000),\"\")","v":0},{"$f":"IFERROR(IF(OR($C$144=FALSE,LEFT($B138,3)<>\"NOX\"),CR53*INDEX('Damage costs'!$U$16:$U$43,MATCH($B138,'Damage costs'!$C$16:$C$43,0))/1000,CR53*INDEX('Damage costs'!$Y$16:$Y$43,MATCH($B138,'Damage costs'!$C$16:$C$43,0))/1000),\"\")","v":0},{"$f":"IFERROR(IF(OR($C$144=FALSE,LEFT($B138,3)<>\"NOX\"),CS53*INDEX('Damage costs'!$U$16:$U$43,MATCH($B138,'Damage costs'!$C$16:$C$43,0))/1000,CS53*INDEX('Damage costs'!$Y$16:$Y$43,MATCH($B138,'Damage costs'!$C$16:$C$43,0))/1000),\"\")","v":0},{"$f":"IFERROR(IF(OR($C$144=FALSE,LEFT($B138,3)<>\"NOX\"),CT53*INDEX('Damage costs'!$U$16:$U$43,MATCH($B138,'Damage costs'!$C$16:$C$43,0))/1000,CT53*INDEX('Damage costs'!$Y$16:$Y$43,MATCH($B138,'Damage costs'!$C$16:$C$43,0))/1000),\"\")","v":0},{"$f":"IFERROR(IF(OR($C$144=FALSE,LEFT($B138,3)<>\"NOX\"),CU53*INDEX('Damage costs'!$U$16:$U$43,MATCH($B138,'Damage costs'!$C$16:$C$43,0))/1000,CU53*INDEX('Damage costs'!$Y$16:$Y$43,MATCH($B138,'Damage costs'!$C$16:$C$43,0))/1000),\"\")","v":0},{"$f":"IFERROR(IF(OR($C$144=FALSE,LEFT($B138,3)<>\"NOX\"),CV53*INDEX('Damage costs'!$U$16:$U$43,MATCH($B138,'Damage costs'!$C$16:$C$43,0))/1000,CV53*INDEX('Damage costs'!$Y$16:$Y$43,MATCH($B138,'Damage costs'!$C$16:$C$43,0))/1000),\"\")","v":0},{"$f":"IFERROR(IF(OR($C$144=FALSE,LEFT($B138,3)<>\"NOX\"),CW53*INDEX('Damage costs'!$U$16:$U$43,MATCH($B138,'Damage costs'!$C$16:$C$43,0))/1000,CW53*INDEX('Damage costs'!$Y$16:$Y$43,MATCH($B138,'Damage costs'!$C$16:$C$43,0))/1000),\"\")","v":0},{"$f":"IFERROR(IF(OR($C$144=FALSE,LEFT($B138,3)<>\"NOX\"),CX53*INDEX('Damage costs'!$U$16:$U$43,MATCH($B138,'Damage costs'!$C$16:$C$43,0))/1000,CX53*INDEX('Damage costs'!$Y$16:$Y$43,MATCH($B138,'Damage costs'!$C$16:$C$43,0))/1000),\"\")","v":0},{"$f":"IFERROR(IF(OR($C$144=FALSE,LEFT($B138,3)<>\"NOX\"),CY53*INDEX('Damage costs'!$U$16:$U$43,MATCH($B138,'Damage costs'!$C$16:$C$43,0))/1000,CY53*INDEX('Damage costs'!$Y$16:$Y$43,MATCH($B138,'Damage costs'!$C$16:$C$43,0))/1000),\"\")","v":0}]
[null,0,"£000's",{"$f":"IFERROR(IF(OR($C$144=FALSE,LEFT($B139,3)<>\"NOX\"),D54*INDEX('Damage costs'!$U$16:$U$43,MATCH($B139,'Damage costs'!$C$16:$C$43,0))/1000,D54*INDEX('Damage costs'!$Y$16:$Y$43,MATCH($B139,'Damage costs'!$C$16:$C$43,0))/1000),\"\")","v":""},{"$f":"IFERROR(IF(OR($C$144=FALSE,LEFT($B139,3)<>\"NOX\"),E54*INDEX('Damage costs'!$U$16:$U$43,MATCH($B139,'Damage costs'!$C$16:$C$43,0))/1000,E54*INDEX('Damage costs'!$Y$16:$Y$43,MATCH($B139,'Damage costs'!$C$16:$C$43,0))/1000),\"\")","v":""},{"$f":"IFERROR(IF(OR($C$144=FALSE,LEFT($B139,3)<>\"NOX\"),F54*INDEX('Damage costs'!$U$16:$U$43,MATCH($B139,'Damage costs'!$C$16:$C$43,0))/1000,F54*INDEX('Damage costs'!$Y$16:$Y$43,MATCH($B139,'Damage costs'!$C$16:$C$43,0))/1000),\"\")","v":""},{"$f":"IFERROR(IF(OR($C$144=FALSE,LEFT($B139,3)<>\"NOX\"),G54*INDEX('Damage costs'!$U$16:$U$43,MATCH($B139,'Damage costs'!$C$16:$C$43,0))/1000,G54*INDEX('Damage costs'!$Y$16:$Y$43,MATCH($B139,'Damage costs'!$C$16:$C$43,0))/1000),\"\")","v":""},{"$f":"IFERROR(IF(OR($C$144=FALSE,LEFT($B139,3)<>\"NOX\"),H54*INDEX('Damage costs'!$U$16:$U$43,MATCH($B139,'Damage costs'!$C$16:$C$43,0))/1000,H54*INDEX('Damage costs'!$Y$16:$Y$43,MATCH($B139,'Damage costs'!$C$16:$C$43,0))/1000),\"\")","v":""},{"$f":"IFERROR(IF(OR($C$144=FALSE,LEFT($B139,3)<>\"NOX\"),I54*INDEX('Damage costs'!$U$16:$U$43,MATCH($B139,'Damage costs'!$C$16:$C$43,0))/1000,I54*INDEX('Damage costs'!$Y$16:$Y$43,MATCH($B139,'Damage costs'!$C$16:$C$43,0))/1000),\"\")","v":""},{"$f":"IFERROR(IF(OR($C$144=FALSE,LEFT($B139,3)<>\"NOX\"),J54*INDEX('Damage costs'!$U$16:$U$43,MATCH($B139,'Damage costs'!$C$16:$C$43,0))/1000,J54*INDEX('Damage costs'!$Y$16:$Y$43,MATCH($B139,'Damage costs'!$C$16:$C$43,0))/1000),\"\")","v":""},{"$f":"IFERROR(IF(OR($C$144=FALSE,LEFT($B139,3)<>\"NOX\"),K54*INDEX('Damage costs'!$U$16:$U$43,MATCH($B139,'Damage costs'!$C$16:$C$43,0))/1000,K54*INDEX('Damage costs'!$Y$16:$Y$43,MATCH($B139,'Damage costs'!$C$16:$C$43,0))/1000),\"\")","v":""},{"$f":"IFERROR(IF(OR($C$144=FALSE,LEFT($B139,3)<>\"NOX\"),L54*INDEX('Damage costs'!$U$16:$U$43,MATCH($B139,'Damage costs'!$C$16:$C$43,0))/1000,L54*INDEX('Damage costs'!$Y$16:$Y$43,MATCH($B139,'Damage costs'!$C$16:$C$43,0))/1000),\"\")","v":""},{"$f":"IFERROR(IF(OR($C$144=FALSE,LEFT($B139,3)<>\"NOX\"),M54*INDEX('Damage costs'!$U$16:$U$43,MATCH($B139,'Damage costs'!$C$16:$C$43,0))/1000,M54*INDEX('Damage costs'!$Y$16:$Y$43,MATCH($B139,'Damage costs'!$C$16:$C$43,0))/1000),\"\")","v":""},{"$f":"IFERROR(IF(OR($C$144=FALSE,LEFT($B139,3)<>\"NOX\"),N54*INDEX('Damage costs'!$U$16:$U$43,MATCH($B139,'Damage costs'!$C$16:$C$43,0))/1000,N54*INDEX('Damage costs'!$Y$16:$Y$43,MATCH($B139,'Damage costs'!$C$16:$C$43,0))/1000),\"\")","v":""},{"$f":"IFERROR(IF(OR($C$144=FALSE,LEFT($B139,3)<>\"NOX\"),O54*INDEX('Damage costs'!$U$16:$U$43,MATCH($B139,'Damage costs'!$C$16:$C$43,0))/1000,O54*INDEX('Damage costs'!$Y$16:$Y$43,MATCH($B139,'Damage costs'!$C$16:$C$43,0))/1000),\"\")","v":""},{"$f":"IFERROR(IF(OR($C$144=FALSE,LEFT($B139,3)<>\"NOX\"),P54*INDEX('Damage costs'!$U$16:$U$43,MATCH($B139,'Damage costs'!$C$16:$C$43,0))/1000,P54*INDEX('Damage costs'!$Y$16:$Y$43,MATCH($B139,'Damage costs'!$C$16:$C$43,0))/1000),\"\")","v":""},{"$f":"IFERROR(IF(OR($C$144=FALSE,LEFT($B139,3)<>\"NOX\"),Q54*INDEX('Damage costs'!$U$16:$U$43,MATCH($B139,'Damage costs'!$C$16:$C$43,0))/1000,Q54*INDEX('Damage costs'!$Y$16:$Y$43,MATCH($B139,'Damage costs'!$C$16:$C$43,0))/1000),\"\")","v":""},{"$f":"IFERROR(IF(OR($C$144=FALSE,LEFT($B139,3)<>\"NOX\"),R54*INDEX('Damage costs'!$U$16:$U$43,MATCH($B139,'Damage costs'!$C$16:$C$43,0))/1000,R54*INDEX('Damage costs'!$Y$16:$Y$43,MATCH($B139,'Damage costs'!$C$16:$C$43,0))/1000),\"\")","v":""},{"$f":"IFERROR(IF(OR($C$144=FALSE,LEFT($B139,3)<>\"NOX\"),S54*INDEX('Damage costs'!$U$16:$U$43,MATCH($B139,'Damage costs'!$C$16:$C$43,0))/1000,S54*INDEX('Damage costs'!$Y$16:$Y$43,MATCH($B139,'Damage costs'!$C$16:$C$43,0))/1000),\"\")","v":""},{"$f":"IFERROR(IF(OR($C$144=FALSE,LEFT($B139,3)<>\"NOX\"),T54*INDEX('Damage costs'!$U$16:$U$43,MATCH($B139,'Damage costs'!$C$16:$C$43,0))/1000,T54*INDEX('Damage costs'!$Y$16:$Y$43,MATCH($B139,'Damage costs'!$C$16:$C$43,0))/1000),\"\")","v":""},{"$f":"IFERROR(IF(OR($C$144=FALSE,LEFT($B139,3)<>\"NOX\"),U54*INDEX('Damage costs'!$U$16:$U$43,MATCH($B139,'Damage costs'!$C$16:$C$43,0))/1000,U54*INDEX('Damage costs'!$Y$16:$Y$43,MATCH($B139,'Damage costs'!$C$16:$C$43,0))/1000),\"\")","v":""},{"$f":"IFERROR(IF(OR($C$144=FALSE,LEFT($B139,3)<>\"NOX\"),V54*INDEX('Damage costs'!$U$16:$U$43,MATCH($B139,'Damage costs'!$C$16:$C$43,0))/1000,V54*INDEX('Damage costs'!$Y$16:$Y$43,MATCH($B139,'Damage costs'!$C$16:$C$43,0))/1000),\"\")","v":""},{"$f":"IFERROR(IF(OR($C$144=FALSE,LEFT($B139,3)<>\"NOX\"),W54*INDEX('Damage costs'!$U$16:$U$43,MATCH($B139,'Damage costs'!$C$16:$C$43,0))/1000,W54*INDEX('Damage costs'!$Y$16:$Y$43,MATCH($B139,'Damage costs'!$C$16:$C$43,0))/1000),\"\")","v":""},{"$f":"IFERROR(IF(OR($C$144=FALSE,LEFT($B139,3)<>\"NOX\"),X54*INDEX('Damage costs'!$U$16:$U$43,MATCH($B139,'Damage costs'!$C$16:$C$43,0))/1000,X54*INDEX('Damage costs'!$Y$16:$Y$43,MATCH($B139,'Damage costs'!$C$16:$C$43,0))/1000),\"\")","v":""},{"$f":"IFERROR(IF(OR($C$144=FALSE,LEFT($B139,3)<>\"NOX\"),Y54*INDEX('Damage costs'!$U$16:$U$43,MATCH($B139,'Damage costs'!$C$16:$C$43,0))/1000,Y54*INDEX('Damage costs'!$Y$16:$Y$43,MATCH($B139,'Damage costs'!$C$16:$C$43,0))/1000),\"\")","v":""},{"$f":"IFERROR(IF(OR($C$144=FALSE,LEFT($B139,3)<>\"NOX\"),Z54*INDEX('Damage costs'!$U$16:$U$43,MATCH($B139,'Damage costs'!$C$16:$C$43,0))/1000,Z54*INDEX('Damage costs'!$Y$16:$Y$43,MATCH($B139,'Damage costs'!$C$16:$C$43,0))/1000),\"\")","v":""},{"$f":"IFERROR(IF(OR($C$144=FALSE,LEFT($B139,3)<>\"NOX\"),AA54*INDEX('Damage costs'!$U$16:$U$43,MATCH($B139,'Damage costs'!$C$16:$C$43,0))/1000,AA54*INDEX('Damage costs'!$Y$16:$Y$43,MATCH($B139,'Damage costs'!$C$16:$C$43,0))/1000),\"\")","v":""},{"$f":"IFERROR(IF(OR($C$144=FALSE,LEFT($B139,3)<>\"NOX\"),AB54*INDEX('Damage costs'!$U$16:$U$43,MATCH($B139,'Damage costs'!$C$16:$C$43,0))/1000,AB54*INDEX('Damage costs'!$Y$16:$Y$43,MATCH($B139,'Damage costs'!$C$16:$C$43,0))/1000),\"\")","v":""},{"$f":"IFERROR(IF(OR($C$144=FALSE,LEFT($B139,3)<>\"NOX\"),AC54*INDEX('Damage costs'!$U$16:$U$43,MATCH($B139,'Damage costs'!$C$16:$C$43,0))/1000,AC54*INDEX('Damage costs'!$Y$16:$Y$43,MATCH($B139,'Damage costs'!$C$16:$C$43,0))/1000),\"\")","v":""},{"$f":"IFERROR(IF(OR($C$144=FALSE,LEFT($B139,3)<>\"NOX\"),AD54*INDEX('Damage costs'!$U$16:$U$43,MATCH($B139,'Damage costs'!$C$16:$C$43,0))/1000,AD54*INDEX('Damage costs'!$Y$16:$Y$43,MATCH($B139,'Damage costs'!$C$16:$C$43,0))/1000),\"\")","v":""},{"$f":"IFERROR(IF(OR($C$144=FALSE,LEFT($B139,3)<>\"NOX\"),AE54*INDEX('Damage costs'!$U$16:$U$43,MATCH($B139,'Damage costs'!$C$16:$C$43,0))/1000,AE54*INDEX('Damage costs'!$Y$16:$Y$43,MATCH($B139,'Damage costs'!$C$16:$C$43,0))/1000),\"\")","v":""},{"$f":"IFERROR(IF(OR($C$144=FALSE,LEFT($B139,3)<>\"NOX\"),AF54*INDEX('Damage costs'!$U$16:$U$43,MATCH($B139,'Damage costs'!$C$16:$C$43,0))/1000,AF54*INDEX('Damage costs'!$Y$16:$Y$43,MATCH($B139,'Damage costs'!$C$16:$C$43,0))/1000),\"\")","v":""},{"$f":"IFERROR(IF(OR($C$144=FALSE,LEFT($B139,3)<>\"NOX\"),AG54*INDEX('Damage costs'!$U$16:$U$43,MATCH($B139,'Damage costs'!$C$16:$C$43,0))/1000,AG54*INDEX('Damage costs'!$Y$16:$Y$43,MATCH($B139,'Damage costs'!$C$16:$C$43,0))/1000),\"\")","v":""},{"$f":"IFERROR(IF(OR($C$144=FALSE,LEFT($B139,3)<>\"NOX\"),AH54*INDEX('Damage costs'!$U$16:$U$43,MATCH($B139,'Damage costs'!$C$16:$C$43,0))/1000,AH54*INDEX('Damage costs'!$Y$16:$Y$43,MATCH($B139,'Damage costs'!$C$16:$C$43,0))/1000),\"\")","v":""},{"$f":"IFERROR(IF(OR($C$144=FALSE,LEFT($B139,3)<>\"NOX\"),AI54*INDEX('Damage costs'!$U$16:$U$43,MATCH($B139,'Damage costs'!$C$16:$C$43,0))/1000,AI54*INDEX('Damage costs'!$Y$16:$Y$43,MATCH($B139,'Damage costs'!$C$16:$C$43,0))/1000),\"\")","v":""},{"$f":"IFERROR(IF(OR($C$144=FALSE,LEFT($B139,3)<>\"NOX\"),AJ54*INDEX('Damage costs'!$U$16:$U$43,MATCH($B139,'Damage costs'!$C$16:$C$43,0))/1000,AJ54*INDEX('Damage costs'!$Y$16:$Y$43,MATCH($B139,'Damage costs'!$C$16:$C$43,0))/1000),\"\")","v":""},{"$f":"IFERROR(IF(OR($C$144=FALSE,LEFT($B139,3)<>\"NOX\"),AK54*INDEX('Damage costs'!$U$16:$U$43,MATCH($B139,'Damage costs'!$C$16:$C$43,0))/1000,AK54*INDEX('Damage costs'!$Y$16:$Y$43,MATCH($B139,'Damage costs'!$C$16:$C$43,0))/1000),\"\")","v":""},{"$f":"IFERROR(IF(OR($C$144=FALSE,LEFT($B139,3)<>\"NOX\"),AL54*INDEX('Damage costs'!$U$16:$U$43,MATCH($B139,'Damage costs'!$C$16:$C$43,0))/1000,AL54*INDEX('Damage costs'!$Y$16:$Y$43,MATCH($B139,'Damage costs'!$C$16:$C$43,0))/1000),\"\")","v":""},{"$f":"IFERROR(IF(OR($C$144=FALSE,LEFT($B139,3)<>\"NOX\"),AM54*INDEX('Damage costs'!$U$16:$U$43,MATCH($B139,'Damage costs'!$C$16:$C$43,0))/1000,AM54*INDEX('Damage costs'!$Y$16:$Y$43,MATCH($B139,'Damage costs'!$C$16:$C$43,0))/1000),\"\")","v":""},{"$f":"IFERROR(IF(OR($C$144=FALSE,LEFT($B139,3)<>\"NOX\"),AN54*INDEX('Damage costs'!$U$16:$U$43,MATCH($B139,'Damage costs'!$C$16:$C$43,0))/1000,AN54*INDEX('Damage costs'!$Y$16:$Y$43,MATCH($B139,'Damage costs'!$C$16:$C$43,0))/1000),\"\")","v":""},{"$f":"IFERROR(IF(OR($C$144=FALSE,LEFT($B139,3)<>\"NOX\"),AO54*INDEX('Damage costs'!$U$16:$U$43,MATCH($B139,'Damage costs'!$C$16:$C$43,0))/1000,AO54*INDEX('Damage costs'!$Y$16:$Y$43,MATCH($B139,'Damage costs'!$C$16:$C$43,0))/1000),\"\")","v":""},{"$f":"IFERROR(IF(OR($C$144=FALSE,LEFT($B139,3)<>\"NOX\"),AP54*INDEX('Damage costs'!$U$16:$U$43,MATCH($B139,'Damage costs'!$C$16:$C$43,0))/1000,AP54*INDEX('Damage costs'!$Y$16:$Y$43,MATCH($B139,'Damage costs'!$C$16:$C$43,0))/1000),\"\")","v":""},{"$f":"IFERROR(IF(OR($C$144=FALSE,LEFT($B139,3)<>\"NOX\"),AQ54*INDEX('Damage costs'!$U$16:$U$43,MATCH($B139,'Damage costs'!$C$16:$C$43,0))/1000,AQ54*INDEX('Damage costs'!$Y$16:$Y$43,MATCH($B139,'Damage costs'!$C$16:$C$43,0))/1000),\"\")","v":""},{"$f":"IFERROR(IF(OR($C$144=FALSE,LEFT($B139,3)<>\"NOX\"),AR54*INDEX('Damage costs'!$U$16:$U$43,MATCH($B139,'Damage costs'!$C$16:$C$43,0))/1000,AR54*INDEX('Damage costs'!$Y$16:$Y$43,MATCH($B139,'Damage costs'!$C$16:$C$43,0))/1000),\"\")","v":""},{"$f":"IFERROR(IF(OR($C$144=FALSE,LEFT($B139,3)<>\"NOX\"),AS54*INDEX('Damage costs'!$U$16:$U$43,MATCH($B139,'Damage costs'!$C$16:$C$43,0))/1000,AS54*INDEX('Damage costs'!$Y$16:$Y$43,MATCH($B139,'Damage costs'!$C$16:$C$43,0))/1000),\"\")","v":""},{"$f":"IFERROR(IF(OR($C$144=FALSE,LEFT($B139,3)<>\"NOX\"),AT54*INDEX('Damage costs'!$U$16:$U$43,MATCH($B139,'Damage costs'!$C$16:$C$43,0))/1000,AT54*INDEX('Damage costs'!$Y$16:$Y$43,MATCH($B139,'Damage costs'!$C$16:$C$43,0))/1000),\"\")","v":""},{"$f":"IFERROR(IF(OR($C$144=FALSE,LEFT($B139,3)<>\"NOX\"),AU54*INDEX('Damage costs'!$U$16:$U$43,MATCH($B139,'Damage costs'!$C$16:$C$43,0))/1000,AU54*INDEX('Damage costs'!$Y$16:$Y$43,MATCH($B139,'Damage costs'!$C$16:$C$43,0))/1000),\"\")","v":""},{"$f":"IFERROR(IF(OR($C$144=FALSE,LEFT($B139,3)<>\"NOX\"),AV54*INDEX('Damage costs'!$U$16:$U$43,MATCH($B139,'Damage costs'!$C$16:$C$43,0))/1000,AV54*INDEX('Damage costs'!$Y$16:$Y$43,MATCH($B139,'Damage costs'!$C$16:$C$43,0))/1000),\"\")","v":""},{"$f":"IFERROR(IF(OR($C$144=FALSE,LEFT($B139,3)<>\"NOX\"),AW54*INDEX('Damage costs'!$U$16:$U$43,MATCH($B139,'Damage costs'!$C$16:$C$43,0))/1000,AW54*INDEX('Damage costs'!$Y$16:$Y$43,MATCH($B139,'Damage costs'!$C$16:$C$43,0))/1000),\"\")","v":""},{"$f":"IFERROR(IF(OR($C$144=FALSE,LEFT($B139,3)<>\"NOX\"),AX54*INDEX('Damage costs'!$U$16:$U$43,MATCH($B139,'Damage costs'!$C$16:$C$43,0))/1000,AX54*INDEX('Damage costs'!$Y$16:$Y$43,MATCH($B139,'Damage costs'!$C$16:$C$43,0))/1000),\"\")","v":""},{"$f":"IFERROR(IF(OR($C$144=FALSE,LEFT($B139,3)<>\"NOX\"),AY54*INDEX('Damage costs'!$U$16:$U$43,MATCH($B139,'Damage costs'!$C$16:$C$43,0))/1000,AY54*INDEX('Damage costs'!$Y$16:$Y$43,MATCH($B139,'Damage costs'!$C$16:$C$43,0))/1000),\"\")","v":""},{"$f":"IFERROR(IF(OR($C$144=FALSE,LEFT($B139,3)<>\"NOX\"),AZ54*INDEX('Damage costs'!$U$16:$U$43,MATCH($B139,'Damage costs'!$C$16:$C$43,0))/1000,AZ54*INDEX('Damage costs'!$Y$16:$Y$43,MATCH($B139,'Damage costs'!$C$16:$C$43,0))/1000),\"\")","v":""},{"$f":"IFERROR(IF(OR($C$144=FALSE,LEFT($B139,3)<>\"NOX\"),BA54*INDEX('Damage costs'!$U$16:$U$43,MATCH($B139,'Damage costs'!$C$16:$C$43,0))/1000,BA54*INDEX('Damage costs'!$Y$16:$Y$43,MATCH($B139,'Damage costs'!$C$16:$C$43,0))/1000),\"\")","v":""},{"$f":"IFERROR(IF(OR($C$144=FALSE,LEFT($B139,3)<>\"NOX\"),BB54*INDEX('Damage costs'!$U$16:$U$43,MATCH($B139,'Damage costs'!$C$16:$C$43,0))/1000,BB54*INDEX('Damage costs'!$Y$16:$Y$43,MATCH($B139,'Damage costs'!$C$16:$C$43,0))/1000),\"\")","v":""},{"$f":"IFERROR(IF(OR($C$144=FALSE,LEFT($B139,3)<>\"NOX\"),BC54*INDEX('Damage costs'!$U$16:$U$43,MATCH($B139,'Damage costs'!$C$16:$C$43,0))/1000,BC54*INDEX('Damage costs'!$Y$16:$Y$43,MATCH($B139,'Damage costs'!$C$16:$C$43,0))/1000),\"\")","v":""},{"$f":"IFERROR(IF(OR($C$144=FALSE,LEFT($B139,3)<>\"NOX\"),BD54*INDEX('Damage costs'!$U$16:$U$43,MATCH($B139,'Damage costs'!$C$16:$C$43,0))/1000,BD54*INDEX('Damage costs'!$Y$16:$Y$43,MATCH($B139,'Damage costs'!$C$16:$C$43,0))/1000),\"\")","v":""},{"$f":"IFERROR(IF(OR($C$144=FALSE,LEFT($B139,3)<>\"NOX\"),BE54*INDEX('Damage costs'!$U$16:$U$43,MATCH($B139,'Damage costs'!$C$16:$C$43,0))/1000,BE54*INDEX('Damage costs'!$Y$16:$Y$43,MATCH($B139,'Damage costs'!$C$16:$C$43,0))/1000),\"\")","v":""},{"$f":"IFERROR(IF(OR($C$144=FALSE,LEFT($B139,3)<>\"NOX\"),BF54*INDEX('Damage costs'!$U$16:$U$43,MATCH($B139,'Damage costs'!$C$16:$C$43,0))/1000,BF54*INDEX('Damage costs'!$Y$16:$Y$43,MATCH($B139,'Damage costs'!$C$16:$C$43,0))/1000),\"\")","v":""},{"$f":"IFERROR(IF(OR($C$144=FALSE,LEFT($B139,3)<>\"NOX\"),BG54*INDEX('Damage costs'!$U$16:$U$43,MATCH($B139,'Damage costs'!$C$16:$C$43,0))/1000,BG54*INDEX('Damage costs'!$Y$16:$Y$43,MATCH($B139,'Damage costs'!$C$16:$C$43,0))/1000),\"\")","v":""},{"$f":"IFERROR(IF(OR($C$144=FALSE,LEFT($B139,3)<>\"NOX\"),BH54*INDEX('Damage costs'!$U$16:$U$43,MATCH($B139,'Damage costs'!$C$16:$C$43,0))/1000,BH54*INDEX('Damage costs'!$Y$16:$Y$43,MATCH($B139,'Damage costs'!$C$16:$C$43,0))/1000),\"\")","v":""},{"$f":"IFERROR(IF(OR($C$144=FALSE,LEFT($B139,3)<>\"NOX\"),BI54*INDEX('Damage costs'!$U$16:$U$43,MATCH($B139,'Damage costs'!$C$16:$C$43,0))/1000,BI54*INDEX('Damage costs'!$Y$16:$Y$43,MATCH($B139,'Damage costs'!$C$16:$C$43,0))/1000),\"\")","v":""},{"$f":"IFERROR(IF(OR($C$144=FALSE,LEFT($B139,3)<>\"NOX\"),BJ54*INDEX('Damage costs'!$U$16:$U$43,MATCH($B139,'Damage costs'!$C$16:$C$43,0))/1000,BJ54*INDEX('Damage costs'!$Y$16:$Y$43,MATCH($B139,'Damage costs'!$C$16:$C$43,0))/1000),\"\")","v":""},{"$f":"IFERROR(IF(OR($C$144=FALSE,LEFT($B139,3)<>\"NOX\"),BK54*INDEX('Damage costs'!$U$16:$U$43,MATCH($B139,'Damage costs'!$C$16:$C$43,0))/1000,BK54*INDEX('Damage costs'!$Y$16:$Y$43,MATCH($B139,'Damage costs'!$C$16:$C$43,0))/1000),\"\")","v":""},{"$f":"IFERROR(IF(OR($C$144=FALSE,LEFT($B139,3)<>\"NOX\"),BL54*INDEX('Damage costs'!$U$16:$U$43,MATCH($B139,'Damage costs'!$C$16:$C$43,0))/1000,BL54*INDEX('Damage costs'!$Y$16:$Y$43,MATCH($B139,'Damage costs'!$C$16:$C$43,0))/1000),\"\")","v":""},{"$f":"IFERROR(IF(OR($C$144=FALSE,LEFT($B139,3)<>\"NOX\"),BM54*INDEX('Damage costs'!$U$16:$U$43,MATCH($B139,'Damage costs'!$C$16:$C$43,0))/1000,BM54*INDEX('Damage costs'!$Y$16:$Y$43,MATCH($B139,'Damage costs'!$C$16:$C$43,0))/1000),\"\")","v":""},{"$f":"IFERROR(IF(OR($C$144=FALSE,LEFT($B139,3)<>\"NOX\"),BN54*INDEX('Damage costs'!$U$16:$U$43,MATCH($B139,'Damage costs'!$C$16:$C$43,0))/1000,BN54*INDEX('Damage costs'!$Y$16:$Y$43,MATCH($B139,'Damage costs'!$C$16:$C$43,0))/1000),\"\")","v":""},{"$f":"IFERROR(IF(OR($C$144=FALSE,LEFT($B139,3)<>\"NOX\"),BO54*INDEX('Damage costs'!$U$16:$U$43,MATCH($B139,'Damage costs'!$C$16:$C$43,0))/1000,BO54*INDEX('Damage costs'!$Y$16:$Y$43,MATCH($B139,'Damage costs'!$C$16:$C$43,0))/1000),\"\")","v":""},{"$f":"IFERROR(IF(OR($C$144=FALSE,LEFT($B139,3)<>\"NOX\"),BP54*INDEX('Damage costs'!$U$16:$U$43,MATCH($B139,'Damage costs'!$C$16:$C$43,0))/1000,BP54*INDEX('Damage costs'!$Y$16:$Y$43,MATCH($B139,'Damage costs'!$C$16:$C$43,0))/1000),\"\")","v":""},{"$f":"IFERROR(IF(OR($C$144=FALSE,LEFT($B139,3)<>\"NOX\"),BQ54*INDEX('Damage costs'!$U$16:$U$43,MATCH($B139,'Damage costs'!$C$16:$C$43,0))/1000,BQ54*INDEX('Damage costs'!$Y$16:$Y$43,MATCH($B139,'Damage costs'!$C$16:$C$43,0))/1000),\"\")","v":""},{"$f":"IFERROR(IF(OR($C$144=FALSE,LEFT($B139,3)<>\"NOX\"),BR54*INDEX('Damage costs'!$U$16:$U$43,MATCH($B139,'Damage costs'!$C$16:$C$43,0))/1000,BR54*INDEX('Damage costs'!$Y$16:$Y$43,MATCH($B139,'Damage costs'!$C$16:$C$43,0))/1000),\"\")","v":""},{"$f":"IFERROR(IF(OR($C$144=FALSE,LEFT($B139,3)<>\"NOX\"),BS54*INDEX('Damage costs'!$U$16:$U$43,MATCH($B139,'Damage costs'!$C$16:$C$43,0))/1000,BS54*INDEX('Damage costs'!$Y$16:$Y$43,MATCH($B139,'Damage costs'!$C$16:$C$43,0))/1000),\"\")","v":""},{"$f":"IFERROR(IF(OR($C$144=FALSE,LEFT($B139,3)<>\"NOX\"),BT54*INDEX('Damage costs'!$U$16:$U$43,MATCH($B139,'Damage costs'!$C$16:$C$43,0))/1000,BT54*INDEX('Damage costs'!$Y$16:$Y$43,MATCH($B139,'Damage costs'!$C$16:$C$43,0))/1000),\"\")","v":""},{"$f":"IFERROR(IF(OR($C$144=FALSE,LEFT($B139,3)<>\"NOX\"),BU54*INDEX('Damage costs'!$U$16:$U$43,MATCH($B139,'Damage costs'!$C$16:$C$43,0))/1000,BU54*INDEX('Damage costs'!$Y$16:$Y$43,MATCH($B139,'Damage costs'!$C$16:$C$43,0))/1000),\"\")","v":""},{"$f":"IFERROR(IF(OR($C$144=FALSE,LEFT($B139,3)<>\"NOX\"),BV54*INDEX('Damage costs'!$U$16:$U$43,MATCH($B139,'Damage costs'!$C$16:$C$43,0))/1000,BV54*INDEX('Damage costs'!$Y$16:$Y$43,MATCH($B139,'Damage costs'!$C$16:$C$43,0))/1000),\"\")","v":""},{"$f":"IFERROR(IF(OR($C$144=FALSE,LEFT($B139,3)<>\"NOX\"),BW54*INDEX('Damage costs'!$U$16:$U$43,MATCH($B139,'Damage costs'!$C$16:$C$43,0))/1000,BW54*INDEX('Damage costs'!$Y$16:$Y$43,MATCH($B139,'Damage costs'!$C$16:$C$43,0))/1000),\"\")","v":""},{"$f":"IFERROR(IF(OR($C$144=FALSE,LEFT($B139,3)<>\"NOX\"),BX54*INDEX('Damage costs'!$U$16:$U$43,MATCH($B139,'Damage costs'!$C$16:$C$43,0))/1000,BX54*INDEX('Damage costs'!$Y$16:$Y$43,MATCH($B139,'Damage costs'!$C$16:$C$43,0))/1000),\"\")","v":""},{"$f":"IFERROR(IF(OR($C$144=FALSE,LEFT($B139,3)<>\"NOX\"),BY54*INDEX('Damage costs'!$U$16:$U$43,MATCH($B139,'Damage costs'!$C$16:$C$43,0))/1000,BY54*INDEX('Damage costs'!$Y$16:$Y$43,MATCH($B139,'Damage costs'!$C$16:$C$43,0))/1000),\"\")","v":""},{"$f":"IFERROR(IF(OR($C$144=FALSE,LEFT($B139,3)<>\"NOX\"),BZ54*INDEX('Damage costs'!$U$16:$U$43,MATCH($B139,'Damage costs'!$C$16:$C$43,0))/1000,BZ54*INDEX('Damage costs'!$Y$16:$Y$43,MATCH($B139,'Damage costs'!$C$16:$C$43,0))/1000),\"\")","v":""},{"$f":"IFERROR(IF(OR($C$144=FALSE,LEFT($B139,3)<>\"NOX\"),CA54*INDEX('Damage costs'!$U$16:$U$43,MATCH($B139,'Damage costs'!$C$16:$C$43,0))/1000,CA54*INDEX('Damage costs'!$Y$16:$Y$43,MATCH($B139,'Damage costs'!$C$16:$C$43,0))/1000),\"\")","v":""},{"$f":"IFERROR(IF(OR($C$144=FALSE,LEFT($B139,3)<>\"NOX\"),CB54*INDEX('Damage costs'!$U$16:$U$43,MATCH($B139,'Damage costs'!$C$16:$C$43,0))/1000,CB54*INDEX('Damage costs'!$Y$16:$Y$43,MATCH($B139,'Damage costs'!$C$16:$C$43,0))/1000),\"\")","v":""},{"$f":"IFERROR(IF(OR($C$144=FALSE,LEFT($B139,3)<>\"NOX\"),CC54*INDEX('Damage costs'!$U$16:$U$43,MATCH($B139,'Damage costs'!$C$16:$C$43,0))/1000,CC54*INDEX('Damage costs'!$Y$16:$Y$43,MATCH($B139,'Damage costs'!$C$16:$C$43,0))/1000),\"\")","v":""},{"$f":"IFERROR(IF(OR($C$144=FALSE,LEFT($B139,3)<>\"NOX\"),CD54*INDEX('Damage costs'!$U$16:$U$43,MATCH($B139,'Damage costs'!$C$16:$C$43,0))/1000,CD54*INDEX('Damage costs'!$Y$16:$Y$43,MATCH($B139,'Damage costs'!$C$16:$C$43,0))/1000),\"\")","v":""},{"$f":"IFERROR(IF(OR($C$144=FALSE,LEFT($B139,3)<>\"NOX\"),CE54*INDEX('Damage costs'!$U$16:$U$43,MATCH($B139,'Damage costs'!$C$16:$C$43,0))/1000,CE54*INDEX('Damage costs'!$Y$16:$Y$43,MATCH($B139,'Damage costs'!$C$16:$C$43,0))/1000),\"\")","v":""},{"$f":"IFERROR(IF(OR($C$144=FALSE,LEFT($B139,3)<>\"NOX\"),CF54*INDEX('Damage costs'!$U$16:$U$43,MATCH($B139,'Damage costs'!$C$16:$C$43,0))/1000,CF54*INDEX('Damage costs'!$Y$16:$Y$43,MATCH($B139,'Damage costs'!$C$16:$C$43,0))/1000),\"\")","v":""},{"$f":"IFERROR(IF(OR($C$144=FALSE,LEFT($B139,3)<>\"NOX\"),CG54*INDEX('Damage costs'!$U$16:$U$43,MATCH($B139,'Damage costs'!$C$16:$C$43,0))/1000,CG54*INDEX('Damage costs'!$Y$16:$Y$43,MATCH($B139,'Damage costs'!$C$16:$C$43,0))/1000),\"\")","v":""},{"$f":"IFERROR(IF(OR($C$144=FALSE,LEFT($B139,3)<>\"NOX\"),CH54*INDEX('Damage costs'!$U$16:$U$43,MATCH($B139,'Damage costs'!$C$16:$C$43,0))/1000,CH54*INDEX('Damage costs'!$Y$16:$Y$43,MATCH($B139,'Damage costs'!$C$16:$C$43,0))/1000),\"\")","v":""},{"$f":"IFERROR(IF(OR($C$144=FALSE,LEFT($B139,3)<>\"NOX\"),CI54*INDEX('Damage costs'!$U$16:$U$43,MATCH($B139,'Damage costs'!$C$16:$C$43,0))/1000,CI54*INDEX('Damage costs'!$Y$16:$Y$43,MATCH($B139,'Damage costs'!$C$16:$C$43,0))/1000),\"\")","v":""},{"$f":"IFERROR(IF(OR($C$144=FALSE,LEFT($B139,3)<>\"NOX\"),CJ54*INDEX('Damage costs'!$U$16:$U$43,MATCH($B139,'Damage costs'!$C$16:$C$43,0))/1000,CJ54*INDEX('Damage costs'!$Y$16:$Y$43,MATCH($B139,'Damage costs'!$C$16:$C$43,0))/1000),\"\")","v":""},{"$f":"IFERROR(IF(OR($C$144=FALSE,LEFT($B139,3)<>\"NOX\"),CK54*INDEX('Damage costs'!$U$16:$U$43,MATCH($B139,'Damage costs'!$C$16:$C$43,0))/1000,CK54*INDEX('Damage costs'!$Y$16:$Y$43,MATCH($B139,'Damage costs'!$C$16:$C$43,0))/1000),\"\")","v":""},{"$f":"IFERROR(IF(OR($C$144=FALSE,LEFT($B139,3)<>\"NOX\"),CL54*INDEX('Damage costs'!$U$16:$U$43,MATCH($B139,'Damage costs'!$C$16:$C$43,0))/1000,CL54*INDEX('Damage costs'!$Y$16:$Y$43,MATCH($B139,'Damage costs'!$C$16:$C$43,0))/1000),\"\")","v":""},{"$f":"IFERROR(IF(OR($C$144=FALSE,LEFT($B139,3)<>\"NOX\"),CM54*INDEX('Damage costs'!$U$16:$U$43,MATCH($B139,'Damage costs'!$C$16:$C$43,0))/1000,CM54*INDEX('Damage costs'!$Y$16:$Y$43,MATCH($B139,'Damage costs'!$C$16:$C$43,0))/1000),\"\")","v":""},{"$f":"IFERROR(IF(OR($C$144=FALSE,LEFT($B139,3)<>\"NOX\"),CN54*INDEX('Damage costs'!$U$16:$U$43,MATCH($B139,'Damage costs'!$C$16:$C$43,0))/1000,CN54*INDEX('Damage costs'!$Y$16:$Y$43,MATCH($B139,'Damage costs'!$C$16:$C$43,0))/1000),\"\")","v":""},{"$f":"IFERROR(IF(OR($C$144=FALSE,LEFT($B139,3)<>\"NOX\"),CO54*INDEX('Damage costs'!$U$16:$U$43,MATCH($B139,'Damage costs'!$C$16:$C$43,0))/1000,CO54*INDEX('Damage costs'!$Y$16:$Y$43,MATCH($B139,'Damage costs'!$C$16:$C$43,0))/1000),\"\")","v":""},{"$f":"IFERROR(IF(OR($C$144=FALSE,LEFT($B139,3)<>\"NOX\"),CP54*INDEX('Damage costs'!$U$16:$U$43,MATCH($B139,'Damage costs'!$C$16:$C$43,0))/1000,CP54*INDEX('Damage costs'!$Y$16:$Y$43,MATCH($B139,'Damage costs'!$C$16:$C$43,0))/1000),\"\")","v":""},{"$f":"IFERROR(IF(OR($C$144=FALSE,LEFT($B139,3)<>\"NOX\"),CQ54*INDEX('Damage costs'!$U$16:$U$43,MATCH($B139,'Damage costs'!$C$16:$C$43,0))/1000,CQ54*INDEX('Damage costs'!$Y$16:$Y$43,MATCH($B139,'Damage costs'!$C$16:$C$43,0))/1000),\"\")","v":""},{"$f":"IFERROR(IF(OR($C$144=FALSE,LEFT($B139,3)<>\"NOX\"),CR54*INDEX('Damage costs'!$U$16:$U$43,MATCH($B139,'Damage costs'!$C$16:$C$43,0))/1000,CR54*INDEX('Damage costs'!$Y$16:$Y$43,MATCH($B139,'Damage costs'!$C$16:$C$43,0))/1000),\"\")","v":""},{"$f":"IFERROR(IF(OR($C$144=FALSE,LEFT($B139,3)<>\"NOX\"),CS54*INDEX('Damage costs'!$U$16:$U$43,MATCH($B139,'Damage costs'!$C$16:$C$43,0))/1000,CS54*INDEX('Damage costs'!$Y$16:$Y$43,MATCH($B139,'Damage costs'!$C$16:$C$43,0))/1000),\"\")","v":""},{"$f":"IFERROR(IF(OR($C$144=FALSE,LEFT($B139,3)<>\"NOX\"),CT54*INDEX('Damage costs'!$U$16:$U$43,MATCH($B139,'Damage costs'!$C$16:$C$43,0))/1000,CT54*INDEX('Damage costs'!$Y$16:$Y$43,MATCH($B139,'Damage costs'!$C$16:$C$43,0))/1000),\"\")","v":""},{"$f":"IFERROR(IF(OR($C$144=FALSE,LEFT($B139,3)<>\"NOX\"),CU54*INDEX('Damage costs'!$U$16:$U$43,MATCH($B139,'Damage costs'!$C$16:$C$43,0))/1000,CU54*INDEX('Damage costs'!$Y$16:$Y$43,MATCH($B139,'Damage costs'!$C$16:$C$43,0))/1000),\"\")","v":""},{"$f":"IFERROR(IF(OR($C$144=FALSE,LEFT($B139,3)<>\"NOX\"),CV54*INDEX('Damage costs'!$U$16:$U$43,MATCH($B139,'Damage costs'!$C$16:$C$43,0))/1000,CV54*INDEX('Damage costs'!$Y$16:$Y$43,MATCH($B139,'Damage costs'!$C$16:$C$43,0))/1000),\"\")","v":""},{"$f":"IFERROR(IF(OR($C$144=FALSE,LEFT($B139,3)<>\"NOX\"),CW54*INDEX('Damage costs'!$U$16:$U$43,MATCH($B139,'Damage costs'!$C$16:$C$43,0))/1000,CW54*INDEX('Damage costs'!$Y$16:$Y$43,MATCH($B139,'Damage costs'!$C$16:$C$43,0))/1000),\"\")","v":""},{"$f":"IFERROR(IF(OR($C$144=FALSE,LEFT($B139,3)<>\"NOX\"),CX54*INDEX('Damage costs'!$U$16:$U$43,MATCH($B139,'Damage costs'!$C$16:$C$43,0))/1000,CX54*INDEX('Damage costs'!$Y$16:$Y$43,MATCH($B139,'Damage costs'!$C$16:$C$43,0))/1000),\"\")","v":""},{"$f":"IFERROR(IF(OR($C$144=FALSE,LEFT($B139,3)<>\"NOX\"),CY54*INDEX('Damage costs'!$U$16:$U$43,MATCH($B139,'Damage costs'!$C$16:$C$43,0))/1000,CY54*INDEX('Damage costs'!$Y$16:$Y$43,MATCH($B139,'Damage costs'!$C$16:$C$43,0))/1000),\"\")","v":""}]
[null,0,"£000's",{"$f":"IFERROR(IF(OR($C$144=FALSE,LEFT($B140,3)<>\"NOX\"),D55*INDEX('Damage costs'!$U$16:$U$43,MATCH($B140,'Damage costs'!$C$16:$C$43,0))/1000,D55*INDEX('Damage costs'!$Y$16:$Y$43,MATCH($B140,'Damage costs'!$C$16:$C$43,0))/1000),\"\")","v":""},{"$f":"IFERROR(IF(OR($C$144=FALSE,LEFT($B140,3)<>\"NOX\"),E55*INDEX('Damage costs'!$U$16:$U$43,MATCH($B140,'Damage costs'!$C$16:$C$43,0))/1000,E55*INDEX('Damage costs'!$Y$16:$Y$43,MATCH($B140,'Damage costs'!$C$16:$C$43,0))/1000),\"\")","v":""},{"$f":"IFERROR(IF(OR($C$144=FALSE,LEFT($B140,3)<>\"NOX\"),F55*INDEX('Damage costs'!$U$16:$U$43,MATCH($B140,'Damage costs'!$C$16:$C$43,0))/1000,F55*INDEX('Damage costs'!$Y$16:$Y$43,MATCH($B140,'Damage costs'!$C$16:$C$43,0))/1000),\"\")","v":""},{"$f":"IFERROR(IF(OR($C$144=FALSE,LEFT($B140,3)<>\"NOX\"),G55*INDEX('Damage costs'!$U$16:$U$43,MATCH($B140,'Damage costs'!$C$16:$C$43,0))/1000,G55*INDEX('Damage costs'!$Y$16:$Y$43,MATCH($B140,'Damage costs'!$C$16:$C$43,0))/1000),\"\")","v":""},{"$f":"IFERROR(IF(OR($C$144=FALSE,LEFT($B140,3)<>\"NOX\"),H55*INDEX('Damage costs'!$U$16:$U$43,MATCH($B140,'Damage costs'!$C$16:$C$43,0))/1000,H55*INDEX('Damage costs'!$Y$16:$Y$43,MATCH($B140,'Damage costs'!$C$16:$C$43,0))/1000),\"\")","v":""},{"$f":"IFERROR(IF(OR($C$144=FALSE,LEFT($B140,3)<>\"NOX\"),I55*INDEX('Damage costs'!$U$16:$U$43,MATCH($B140,'Damage costs'!$C$16:$C$43,0))/1000,I55*INDEX('Damage costs'!$Y$16:$Y$43,MATCH($B140,'Damage costs'!$C$16:$C$43,0))/1000),\"\")","v":""},{"$f":"IFERROR(IF(OR($C$144=FALSE,LEFT($B140,3)<>\"NOX\"),J55*INDEX('Damage costs'!$U$16:$U$43,MATCH($B140,'Damage costs'!$C$16:$C$43,0))/1000,J55*INDEX('Damage costs'!$Y$16:$Y$43,MATCH($B140,'Damage costs'!$C$16:$C$43,0))/1000),\"\")","v":""},{"$f":"IFERROR(IF(OR($C$144=FALSE,LEFT($B140,3)<>\"NOX\"),K55*INDEX('Damage costs'!$U$16:$U$43,MATCH($B140,'Damage costs'!$C$16:$C$43,0))/1000,K55*INDEX('Damage costs'!$Y$16:$Y$43,MATCH($B140,'Damage costs'!$C$16:$C$43,0))/1000),\"\")","v":""},{"$f":"IFERROR(IF(OR($C$144=FALSE,LEFT($B140,3)<>\"NOX\"),L55*INDEX('Damage costs'!$U$16:$U$43,MATCH($B140,'Damage costs'!$C$16:$C$43,0))/1000,L55*INDEX('Damage costs'!$Y$16:$Y$43,MATCH($B140,'Damage costs'!$C$16:$C$43,0))/1000),\"\")","v":""},{"$f":"IFERROR(IF(OR($C$144=FALSE,LEFT($B140,3)<>\"NOX\"),M55*INDEX('Damage costs'!$U$16:$U$43,MATCH($B140,'Damage costs'!$C$16:$C$43,0))/1000,M55*INDEX('Damage costs'!$Y$16:$Y$43,MATCH($B140,'Damage costs'!$C$16:$C$43,0))/1000),\"\")","v":""},{"$f":"IFERROR(IF(OR($C$144=FALSE,LEFT($B140,3)<>\"NOX\"),N55*INDEX('Damage costs'!$U$16:$U$43,MATCH($B140,'Damage costs'!$C$16:$C$43,0))/1000,N55*INDEX('Damage costs'!$Y$16:$Y$43,MATCH($B140,'Damage costs'!$C$16:$C$43,0))/1000),\"\")","v":""},{"$f":"IFERROR(IF(OR($C$144=FALSE,LEFT($B140,3)<>\"NOX\"),O55*INDEX('Damage costs'!$U$16:$U$43,MATCH($B140,'Damage costs'!$C$16:$C$43,0))/1000,O55*INDEX('Damage costs'!$Y$16:$Y$43,MATCH($B140,'Damage costs'!$C$16:$C$43,0))/1000),\"\")","v":""},{"$f":"IFERROR(IF(OR($C$144=FALSE,LEFT($B140,3)<>\"NOX\"),P55*INDEX('Damage costs'!$U$16:$U$43,MATCH($B140,'Damage costs'!$C$16:$C$43,0))/1000,P55*INDEX('Damage costs'!$Y$16:$Y$43,MATCH($B140,'Damage costs'!$C$16:$C$43,0))/1000),\"\")","v":""},{"$f":"IFERROR(IF(OR($C$144=FALSE,LEFT($B140,3)<>\"NOX\"),Q55*INDEX('Damage costs'!$U$16:$U$43,MATCH($B140,'Damage costs'!$C$16:$C$43,0))/1000,Q55*INDEX('Damage costs'!$Y$16:$Y$43,MATCH($B140,'Damage costs'!$C$16:$C$43,0))/1000),\"\")","v":""},{"$f":"IFERROR(IF(OR($C$144=FALSE,LEFT($B140,3)<>\"NOX\"),R55*INDEX('Damage costs'!$U$16:$U$43,MATCH($B140,'Damage costs'!$C$16:$C$43,0))/1000,R55*INDEX('Damage costs'!$Y$16:$Y$43,MATCH($B140,'Damage costs'!$C$16:$C$43,0))/1000),\"\")","v":""},{"$f":"IFERROR(IF(OR($C$144=FALSE,LEFT($B140,3)<>\"NOX\"),S55*INDEX('Damage costs'!$U$16:$U$43,MATCH($B140,'Damage costs'!$C$16:$C$43,0))/1000,S55*INDEX('Damage costs'!$Y$16:$Y$43,MATCH($B140,'Damage costs'!$C$16:$C$43,0))/1000),\"\")","v":""},{"$f":"IFERROR(IF(OR($C$144=FALSE,LEFT($B140,3)<>\"NOX\"),T55*INDEX('Damage costs'!$U$16:$U$43,MATCH($B140,'Damage costs'!$C$16:$C$43,0))/1000,T55*INDEX('Damage costs'!$Y$16:$Y$43,MATCH($B140,'Damage costs'!$C$16:$C$43,0))/1000),\"\")","v":""},{"$f":"IFERROR(IF(OR($C$144=FALSE,LEFT($B140,3)<>\"NOX\"),U55*INDEX('Damage costs'!$U$16:$U$43,MATCH($B140,'Damage costs'!$C$16:$C$43,0))/1000,U55*INDEX('Damage costs'!$Y$16:$Y$43,MATCH($B140,'Damage costs'!$C$16:$C$43,0))/1000),\"\")","v":""},{"$f":"IFERROR(IF(OR($C$144=FALSE,LEFT($B140,3)<>\"NOX\"),V55*INDEX('Damage costs'!$U$16:$U$43,MATCH($B140,'Damage costs'!$C$16:$C$43,0))/1000,V55*INDEX('Damage costs'!$Y$16:$Y$43,MATCH($B140,'Damage costs'!$C$16:$C$43,0))/1000),\"\")","v":""},{"$f":"IFERROR(IF(OR($C$144=FALSE,LEFT($B140,3)<>\"NOX\"),W55*INDEX('Damage costs'!$U$16:$U$43,MATCH($B140,'Damage costs'!$C$16:$C$43,0))/1000,W55*INDEX('Damage costs'!$Y$16:$Y$43,MATCH($B140,'Damage costs'!$C$16:$C$43,0))/1000),\"\")","v":""},{"$f":"IFERROR(IF(OR($C$144=FALSE,LEFT($B140,3)<>\"NOX\"),X55*INDEX('Damage costs'!$U$16:$U$43,MATCH($B140,'Damage costs'!$C$16:$C$43,0))/1000,X55*INDEX('Damage costs'!$Y$16:$Y$43,MATCH($B140,'Damage costs'!$C$16:$C$43,0))/1000),\"\")","v":""},{"$f":"IFERROR(IF(OR($C$144=FALSE,LEFT($B140,3)<>\"NOX\"),Y55*INDEX('Damage costs'!$U$16:$U$43,MATCH($B140,'Damage costs'!$C$16:$C$43,0))/1000,Y55*INDEX('Damage costs'!$Y$16:$Y$43,MATCH($B140,'Damage costs'!$C$16:$C$43,0))/1000),\"\")","v":""},{"$f":"IFERROR(IF(OR($C$144=FALSE,LEFT($B140,3)<>\"NOX\"),Z55*INDEX('Damage costs'!$U$16:$U$43,MATCH($B140,'Damage costs'!$C$16:$C$43,0))/1000,Z55*INDEX('Damage costs'!$Y$16:$Y$43,MATCH($B140,'Damage costs'!$C$16:$C$43,0))/1000),\"\")","v":""},{"$f":"IFERROR(IF(OR($C$144=FALSE,LEFT($B140,3)<>\"NOX\"),AA55*INDEX('Damage costs'!$U$16:$U$43,MATCH($B140,'Damage costs'!$C$16:$C$43,0))/1000,AA55*INDEX('Damage costs'!$Y$16:$Y$43,MATCH($B140,'Damage costs'!$C$16:$C$43,0))/1000),\"\")","v":""},{"$f":"IFERROR(IF(OR($C$144=FALSE,LEFT($B140,3)<>\"NOX\"),AB55*INDEX('Damage costs'!$U$16:$U$43,MATCH($B140,'Damage costs'!$C$16:$C$43,0))/1000,AB55*INDEX('Damage costs'!$Y$16:$Y$43,MATCH($B140,'Damage costs'!$C$16:$C$43,0))/1000),\"\")","v":""},{"$f":"IFERROR(IF(OR($C$144=FALSE,LEFT($B140,3)<>\"NOX\"),AC55*INDEX('Damage costs'!$U$16:$U$43,MATCH($B140,'Damage costs'!$C$16:$C$43,0))/1000,AC55*INDEX('Damage costs'!$Y$16:$Y$43,MATCH($B140,'Damage costs'!$C$16:$C$43,0))/1000),\"\")","v":""},{"$f":"IFERROR(IF(OR($C$144=FALSE,LEFT($B140,3)<>\"NOX\"),AD55*INDEX('Damage costs'!$U$16:$U$43,MATCH($B140,'Damage costs'!$C$16:$C$43,0))/1000,AD55*INDEX('Damage costs'!$Y$16:$Y$43,MATCH($B140,'Damage costs'!$C$16:$C$43,0))/1000),\"\")","v":""},{"$f":"IFERROR(IF(OR($C$144=FALSE,LEFT($B140,3)<>\"NOX\"),AE55*INDEX('Damage costs'!$U$16:$U$43,MATCH($B140,'Damage costs'!$C$16:$C$43,0))/1000,AE55*INDEX('Damage costs'!$Y$16:$Y$43,MATCH($B140,'Damage costs'!$C$16:$C$43,0))/1000),\"\")","v":""},{"$f":"IFERROR(IF(OR($C$144=FALSE,LEFT($B140,3)<>\"NOX\"),AF55*INDEX('Damage costs'!$U$16:$U$43,MATCH($B140,'Damage costs'!$C$16:$C$43,0))/1000,AF55*INDEX('Damage costs'!$Y$16:$Y$43,MATCH($B140,'Damage costs'!$C$16:$C$43,0))/1000),\"\")","v":""},{"$f":"IFERROR(IF(OR($C$144=FALSE,LEFT($B140,3)<>\"NOX\"),AG55*INDEX('Damage costs'!$U$16:$U$43,MATCH($B140,'Damage costs'!$C$16:$C$43,0))/1000,AG55*INDEX('Damage costs'!$Y$16:$Y$43,MATCH($B140,'Damage costs'!$C$16:$C$43,0))/1000),\"\")","v":""},{"$f":"IFERROR(IF(OR($C$144=FALSE,LEFT($B140,3)<>\"NOX\"),AH55*INDEX('Damage costs'!$U$16:$U$43,MATCH($B140,'Damage costs'!$C$16:$C$43,0))/1000,AH55*INDEX('Damage costs'!$Y$16:$Y$43,MATCH($B140,'Damage costs'!$C$16:$C$43,0))/1000),\"\")","v":""},{"$f":"IFERROR(IF(OR($C$144=FALSE,LEFT($B140,3)<>\"NOX\"),AI55*INDEX('Damage costs'!$U$16:$U$43,MATCH($B140,'Damage costs'!$C$16:$C$43,0))/1000,AI55*INDEX('Damage costs'!$Y$16:$Y$43,MATCH($B140,'Damage costs'!$C$16:$C$43,0))/1000),\"\")","v":""},{"$f":"IFERROR(IF(OR($C$144=FALSE,LEFT($B140,3)<>\"NOX\"),AJ55*INDEX('Damage costs'!$U$16:$U$43,MATCH($B140,'Damage costs'!$C$16:$C$43,0))/1000,AJ55*INDEX('Damage costs'!$Y$16:$Y$43,MATCH($B140,'Damage costs'!$C$16:$C$43,0))/1000),\"\")","v":""},{"$f":"IFERROR(IF(OR($C$144=FALSE,LEFT($B140,3)<>\"NOX\"),AK55*INDEX('Damage costs'!$U$16:$U$43,MATCH($B140,'Damage costs'!$C$16:$C$43,0))/1000,AK55*INDEX('Damage costs'!$Y$16:$Y$43,MATCH($B140,'Damage costs'!$C$16:$C$43,0))/1000),\"\")","v":""},{"$f":"IFERROR(IF(OR($C$144=FALSE,LEFT($B140,3)<>\"NOX\"),AL55*INDEX('Damage costs'!$U$16:$U$43,MATCH($B140,'Damage costs'!$C$16:$C$43,0))/1000,AL55*INDEX('Damage costs'!$Y$16:$Y$43,MATCH($B140,'Damage costs'!$C$16:$C$43,0))/1000),\"\")","v":""},{"$f":"IFERROR(IF(OR($C$144=FALSE,LEFT($B140,3)<>\"NOX\"),AM55*INDEX('Damage costs'!$U$16:$U$43,MATCH($B140,'Damage costs'!$C$16:$C$43,0))/1000,AM55*INDEX('Damage costs'!$Y$16:$Y$43,MATCH($B140,'Damage costs'!$C$16:$C$43,0))/1000),\"\")","v":""},{"$f":"IFERROR(IF(OR($C$144=FALSE,LEFT($B140,3)<>\"NOX\"),AN55*INDEX('Damage costs'!$U$16:$U$43,MATCH($B140,'Damage costs'!$C$16:$C$43,0))/1000,AN55*INDEX('Damage costs'!$Y$16:$Y$43,MATCH($B140,'Damage costs'!$C$16:$C$43,0))/1000),\"\")","v":""},{"$f":"IFERROR(IF(OR($C$144=FALSE,LEFT($B140,3)<>\"NOX\"),AO55*INDEX('Damage costs'!$U$16:$U$43,MATCH($B140,'Damage costs'!$C$16:$C$43,0))/1000,AO55*INDEX('Damage costs'!$Y$16:$Y$43,MATCH($B140,'Damage costs'!$C$16:$C$43,0))/1000),\"\")","v":""},{"$f":"IFERROR(IF(OR($C$144=FALSE,LEFT($B140,3)<>\"NOX\"),AP55*INDEX('Damage costs'!$U$16:$U$43,MATCH($B140,'Damage costs'!$C$16:$C$43,0))/1000,AP55*INDEX('Damage costs'!$Y$16:$Y$43,MATCH($B140,'Damage costs'!$C$16:$C$43,0))/1000),\"\")","v":""},{"$f":"IFERROR(IF(OR($C$144=FALSE,LEFT($B140,3)<>\"NOX\"),AQ55*INDEX('Damage costs'!$U$16:$U$43,MATCH($B140,'Damage costs'!$C$16:$C$43,0))/1000,AQ55*INDEX('Damage costs'!$Y$16:$Y$43,MATCH($B140,'Damage costs'!$C$16:$C$43,0))/1000),\"\")","v":""},{"$f":"IFERROR(IF(OR($C$144=FALSE,LEFT($B140,3)<>\"NOX\"),AR55*INDEX('Damage costs'!$U$16:$U$43,MATCH($B140,'Damage costs'!$C$16:$C$43,0))/1000,AR55*INDEX('Damage costs'!$Y$16:$Y$43,MATCH($B140,'Damage costs'!$C$16:$C$43,0))/1000),\"\")","v":""},{"$f":"IFERROR(IF(OR($C$144=FALSE,LEFT($B140,3)<>\"NOX\"),AS55*INDEX('Damage costs'!$U$16:$U$43,MATCH($B140,'Damage costs'!$C$16:$C$43,0))/1000,AS55*INDEX('Damage costs'!$Y$16:$Y$43,MATCH($B140,'Damage costs'!$C$16:$C$43,0))/1000),\"\")","v":""},{"$f":"IFERROR(IF(OR($C$144=FALSE,LEFT($B140,3)<>\"NOX\"),AT55*INDEX('Damage costs'!$U$16:$U$43,MATCH($B140,'Damage costs'!$C$16:$C$43,0))/1000,AT55*INDEX('Damage costs'!$Y$16:$Y$43,MATCH($B140,'Damage costs'!$C$16:$C$43,0))/1000),\"\")","v":""},{"$f":"IFERROR(IF(OR($C$144=FALSE,LEFT($B140,3)<>\"NOX\"),AU55*INDEX('Damage costs'!$U$16:$U$43,MATCH($B140,'Damage costs'!$C$16:$C$43,0))/1000,AU55*INDEX('Damage costs'!$Y$16:$Y$43,MATCH($B140,'Damage costs'!$C$16:$C$43,0))/1000),\"\")","v":""},{"$f":"IFERROR(IF(OR($C$144=FALSE,LEFT($B140,3)<>\"NOX\"),AV55*INDEX('Damage costs'!$U$16:$U$43,MATCH($B140,'Damage costs'!$C$16:$C$43,0))/1000,AV55*INDEX('Damage costs'!$Y$16:$Y$43,MATCH($B140,'Damage costs'!$C$16:$C$43,0))/1000),\"\")","v":""},{"$f":"IFERROR(IF(OR($C$144=FALSE,LEFT($B140,3)<>\"NOX\"),AW55*INDEX('Damage costs'!$U$16:$U$43,MATCH($B140,'Damage costs'!$C$16:$C$43,0))/1000,AW55*INDEX('Damage costs'!$Y$16:$Y$43,MATCH($B140,'Damage costs'!$C$16:$C$43,0))/1000),\"\")","v":""},{"$f":"IFERROR(IF(OR($C$144=FALSE,LEFT($B140,3)<>\"NOX\"),AX55*INDEX('Damage costs'!$U$16:$U$43,MATCH($B140,'Damage costs'!$C$16:$C$43,0))/1000,AX55*INDEX('Damage costs'!$Y$16:$Y$43,MATCH($B140,'Damage costs'!$C$16:$C$43,0))/1000),\"\")","v":""},{"$f":"IFERROR(IF(OR($C$144=FALSE,LEFT($B140,3)<>\"NOX\"),AY55*INDEX('Damage costs'!$U$16:$U$43,MATCH($B140,'Damage costs'!$C$16:$C$43,0))/1000,AY55*INDEX('Damage costs'!$Y$16:$Y$43,MATCH($B140,'Damage costs'!$C$16:$C$43,0))/1000),\"\")","v":""},{"$f":"IFERROR(IF(OR($C$144=FALSE,LEFT($B140,3)<>\"NOX\"),AZ55*INDEX('Damage costs'!$U$16:$U$43,MATCH($B140,'Damage costs'!$C$16:$C$43,0))/1000,AZ55*INDEX('Damage costs'!$Y$16:$Y$43,MATCH($B140,'Damage costs'!$C$16:$C$43,0))/1000),\"\")","v":""},{"$f":"IFERROR(IF(OR($C$144=FALSE,LEFT($B140,3)<>\"NOX\"),BA55*INDEX('Damage costs'!$U$16:$U$43,MATCH($B140,'Damage costs'!$C$16:$C$43,0))/1000,BA55*INDEX('Damage costs'!$Y$16:$Y$43,MATCH($B140,'Damage costs'!$C$16:$C$43,0))/1000),\"\")","v":""},{"$f":"IFERROR(IF(OR($C$144=FALSE,LEFT($B140,3)<>\"NOX\"),BB55*INDEX('Damage costs'!$U$16:$U$43,MATCH($B140,'Damage costs'!$C$16:$C$43,0))/1000,BB55*INDEX('Damage costs'!$Y$16:$Y$43,MATCH($B140,'Damage costs'!$C$16:$C$43,0))/1000),\"\")","v":""},{"$f":"IFERROR(IF(OR($C$144=FALSE,LEFT($B140,3)<>\"NOX\"),BC55*INDEX('Damage costs'!$U$16:$U$43,MATCH($B140,'Damage costs'!$C$16:$C$43,0))/1000,BC55*INDEX('Damage costs'!$Y$16:$Y$43,MATCH($B140,'Damage costs'!$C$16:$C$43,0))/1000),\"\")","v":""},{"$f":"IFERROR(IF(OR($C$144=FALSE,LEFT($B140,3)<>\"NOX\"),BD55*INDEX('Damage costs'!$U$16:$U$43,MATCH($B140,'Damage costs'!$C$16:$C$43,0))/1000,BD55*INDEX('Damage costs'!$Y$16:$Y$43,MATCH($B140,'Damage costs'!$C$16:$C$43,0))/1000),\"\")","v":""},{"$f":"IFERROR(IF(OR($C$144=FALSE,LEFT($B140,3)<>\"NOX\"),BE55*INDEX('Damage costs'!$U$16:$U$43,MATCH($B140,'Damage costs'!$C$16:$C$43,0))/1000,BE55*INDEX('Damage costs'!$Y$16:$Y$43,MATCH($B140,'Damage costs'!$C$16:$C$43,0))/1000),\"\")","v":""},{"$f":"IFERROR(IF(OR($C$144=FALSE,LEFT($B140,3)<>\"NOX\"),BF55*INDEX('Damage costs'!$U$16:$U$43,MATCH($B140,'Damage costs'!$C$16:$C$43,0))/1000,BF55*INDEX('Damage costs'!$Y$16:$Y$43,MATCH($B140,'Damage costs'!$C$16:$C$43,0))/1000),\"\")","v":""},{"$f":"IFERROR(IF(OR($C$144=FALSE,LEFT($B140,3)<>\"NOX\"),BG55*INDEX('Damage costs'!$U$16:$U$43,MATCH($B140,'Damage costs'!$C$16:$C$43,0))/1000,BG55*INDEX('Damage costs'!$Y$16:$Y$43,MATCH($B140,'Damage costs'!$C$16:$C$43,0))/1000),\"\")","v":""},{"$f":"IFERROR(IF(OR($C$144=FALSE,LEFT($B140,3)<>\"NOX\"),BH55*INDEX('Damage costs'!$U$16:$U$43,MATCH($B140,'Damage costs'!$C$16:$C$43,0))/1000,BH55*INDEX('Damage costs'!$Y$16:$Y$43,MATCH($B140,'Damage costs'!$C$16:$C$43,0))/1000),\"\")","v":""},{"$f":"IFERROR(IF(OR($C$144=FALSE,LEFT($B140,3)<>\"NOX\"),BI55*INDEX('Damage costs'!$U$16:$U$43,MATCH($B140,'Damage costs'!$C$16:$C$43,0))/1000,BI55*INDEX('Damage costs'!$Y$16:$Y$43,MATCH($B140,'Damage costs'!$C$16:$C$43,0))/1000),\"\")","v":""},{"$f":"IFERROR(IF(OR($C$144=FALSE,LEFT($B140,3)<>\"NOX\"),BJ55*INDEX('Damage costs'!$U$16:$U$43,MATCH($B140,'Damage costs'!$C$16:$C$43,0))/1000,BJ55*INDEX('Damage costs'!$Y$16:$Y$43,MATCH($B140,'Damage costs'!$C$16:$C$43,0))/1000),\"\")","v":""},{"$f":"IFERROR(IF(OR($C$144=FALSE,LEFT($B140,3)<>\"NOX\"),BK55*INDEX('Damage costs'!$U$16:$U$43,MATCH($B140,'Damage costs'!$C$16:$C$43,0))/1000,BK55*INDEX('Damage costs'!$Y$16:$Y$43,MATCH($B140,'Damage costs'!$C$16:$C$43,0))/1000),\"\")","v":""},{"$f":"IFERROR(IF(OR($C$144=FALSE,LEFT($B140,3)<>\"NOX\"),BL55*INDEX('Damage costs'!$U$16:$U$43,MATCH($B140,'Damage costs'!$C$16:$C$43,0))/1000,BL55*INDEX('Damage costs'!$Y$16:$Y$43,MATCH($B140,'Damage costs'!$C$16:$C$43,0))/1000),\"\")","v":""},{"$f":"IFERROR(IF(OR($C$144=FALSE,LEFT($B140,3)<>\"NOX\"),BM55*INDEX('Damage costs'!$U$16:$U$43,MATCH($B140,'Damage costs'!$C$16:$C$43,0))/1000,BM55*INDEX('Damage costs'!$Y$16:$Y$43,MATCH($B140,'Damage costs'!$C$16:$C$43,0))/1000),\"\")","v":""},{"$f":"IFERROR(IF(OR($C$144=FALSE,LEFT($B140,3)<>\"NOX\"),BN55*INDEX('Damage costs'!$U$16:$U$43,MATCH($B140,'Damage costs'!$C$16:$C$43,0))/1000,BN55*INDEX('Damage costs'!$Y$16:$Y$43,MATCH($B140,'Damage costs'!$C$16:$C$43,0))/1000),\"\")","v":""},{"$f":"IFERROR(IF(OR($C$144=FALSE,LEFT($B140,3)<>\"NOX\"),BO55*INDEX('Damage costs'!$U$16:$U$43,MATCH($B140,'Damage costs'!$C$16:$C$43,0))/1000,BO55*INDEX('Damage costs'!$Y$16:$Y$43,MATCH($B140,'Damage costs'!$C$16:$C$43,0))/1000),\"\")","v":""},{"$f":"IFERROR(IF(OR($C$144=FALSE,LEFT($B140,3)<>\"NOX\"),BP55*INDEX('Damage costs'!$U$16:$U$43,MATCH($B140,'Damage costs'!$C$16:$C$43,0))/1000,BP55*INDEX('Damage costs'!$Y$16:$Y$43,MATCH($B140,'Damage costs'!$C$16:$C$43,0))/1000),\"\")","v":""},{"$f":"IFERROR(IF(OR($C$144=FALSE,LEFT($B140,3)<>\"NOX\"),BQ55*INDEX('Damage costs'!$U$16:$U$43,MATCH($B140,'Damage costs'!$C$16:$C$43,0))/1000,BQ55*INDEX('Damage costs'!$Y$16:$Y$43,MATCH($B140,'Damage costs'!$C$16:$C$43,0))/1000),\"\")","v":""},{"$f":"IFERROR(IF(OR($C$144=FALSE,LEFT($B140,3)<>\"NOX\"),BR55*INDEX('Damage costs'!$U$16:$U$43,MATCH($B140,'Damage costs'!$C$16:$C$43,0))/1000,BR55*INDEX('Damage costs'!$Y$16:$Y$43,MATCH($B140,'Damage costs'!$C$16:$C$43,0))/1000),\"\")","v":""},{"$f":"IFERROR(IF(OR($C$144=FALSE,LEFT($B140,3)<>\"NOX\"),BS55*INDEX('Damage costs'!$U$16:$U$43,MATCH($B140,'Damage costs'!$C$16:$C$43,0))/1000,BS55*INDEX('Damage costs'!$Y$16:$Y$43,MATCH($B140,'Damage costs'!$C$16:$C$43,0))/1000),\"\")","v":""},{"$f":"IFERROR(IF(OR($C$144=FALSE,LEFT($B140,3)<>\"NOX\"),BT55*INDEX('Damage costs'!$U$16:$U$43,MATCH($B140,'Damage costs'!$C$16:$C$43,0))/1000,BT55*INDEX('Damage costs'!$Y$16:$Y$43,MATCH($B140,'Damage costs'!$C$16:$C$43,0))/1000),\"\")","v":""},{"$f":"IFERROR(IF(OR($C$144=FALSE,LEFT($B140,3)<>\"NOX\"),BU55*INDEX('Damage costs'!$U$16:$U$43,MATCH($B140,'Damage costs'!$C$16:$C$43,0))/1000,BU55*INDEX('Damage costs'!$Y$16:$Y$43,MATCH($B140,'Damage costs'!$C$16:$C$43,0))/1000),\"\")","v":""},{"$f":"IFERROR(IF(OR($C$144=FALSE,LEFT($B140,3)<>\"NOX\"),BV55*INDEX('Damage costs'!$U$16:$U$43,MATCH($B140,'Damage costs'!$C$16:$C$43,0))/1000,BV55*INDEX('Damage costs'!$Y$16:$Y$43,MATCH($B140,'Damage costs'!$C$16:$C$43,0))/1000),\"\")","v":""},{"$f":"IFERROR(IF(OR($C$144=FALSE,LEFT($B140,3)<>\"NOX\"),BW55*INDEX('Damage costs'!$U$16:$U$43,MATCH($B140,'Damage costs'!$C$16:$C$43,0))/1000,BW55*INDEX('Damage costs'!$Y$16:$Y$43,MATCH($B140,'Damage costs'!$C$16:$C$43,0))/1000),\"\")","v":""},{"$f":"IFERROR(IF(OR($C$144=FALSE,LEFT($B140,3)<>\"NOX\"),BX55*INDEX('Damage costs'!$U$16:$U$43,MATCH($B140,'Damage costs'!$C$16:$C$43,0))/1000,BX55*INDEX('Damage costs'!$Y$16:$Y$43,MATCH($B140,'Damage costs'!$C$16:$C$43,0))/1000),\"\")","v":""},{"$f":"IFERROR(IF(OR($C$144=FALSE,LEFT($B140,3)<>\"NOX\"),BY55*INDEX('Damage costs'!$U$16:$U$43,MATCH($B140,'Damage costs'!$C$16:$C$43,0))/1000,BY55*INDEX('Damage costs'!$Y$16:$Y$43,MATCH($B140,'Damage costs'!$C$16:$C$43,0))/1000),\"\")","v":""},{"$f":"IFERROR(IF(OR($C$144=FALSE,LEFT($B140,3)<>\"NOX\"),BZ55*INDEX('Damage costs'!$U$16:$U$43,MATCH($B140,'Damage costs'!$C$16:$C$43,0))/1000,BZ55*INDEX('Damage costs'!$Y$16:$Y$43,MATCH($B140,'Damage costs'!$C$16:$C$43,0))/1000),\"\")","v":""},{"$f":"IFERROR(IF(OR($C$144=FALSE,LEFT($B140,3)<>\"NOX\"),CA55*INDEX('Damage costs'!$U$16:$U$43,MATCH($B140,'Damage costs'!$C$16:$C$43,0))/1000,CA55*INDEX('Damage costs'!$Y$16:$Y$43,MATCH($B140,'Damage costs'!$C$16:$C$43,0))/1000),\"\")","v":""},{"$f":"IFERROR(IF(OR($C$144=FALSE,LEFT($B140,3)<>\"NOX\"),CB55*INDEX('Damage costs'!$U$16:$U$43,MATCH($B140,'Damage costs'!$C$16:$C$43,0))/1000,CB55*INDEX('Damage costs'!$Y$16:$Y$43,MATCH($B140,'Damage costs'!$C$16:$C$43,0))/1000),\"\")","v":""},{"$f":"IFERROR(IF(OR($C$144=FALSE,LEFT($B140,3)<>\"NOX\"),CC55*INDEX('Damage costs'!$U$16:$U$43,MATCH($B140,'Damage costs'!$C$16:$C$43,0))/1000,CC55*INDEX('Damage costs'!$Y$16:$Y$43,MATCH($B140,'Damage costs'!$C$16:$C$43,0))/1000),\"\")","v":""},{"$f":"IFERROR(IF(OR($C$144=FALSE,LEFT($B140,3)<>\"NOX\"),CD55*INDEX('Damage costs'!$U$16:$U$43,MATCH($B140,'Damage costs'!$C$16:$C$43,0))/1000,CD55*INDEX('Damage costs'!$Y$16:$Y$43,MATCH($B140,'Damage costs'!$C$16:$C$43,0))/1000),\"\")","v":""},{"$f":"IFERROR(IF(OR($C$144=FALSE,LEFT($B140,3)<>\"NOX\"),CE55*INDEX('Damage costs'!$U$16:$U$43,MATCH($B140,'Damage costs'!$C$16:$C$43,0))/1000,CE55*INDEX('Damage costs'!$Y$16:$Y$43,MATCH($B140,'Damage costs'!$C$16:$C$43,0))/1000),\"\")","v":""},{"$f":"IFERROR(IF(OR($C$144=FALSE,LEFT($B140,3)<>\"NOX\"),CF55*INDEX('Damage costs'!$U$16:$U$43,MATCH($B140,'Damage costs'!$C$16:$C$43,0))/1000,CF55*INDEX('Damage costs'!$Y$16:$Y$43,MATCH($B140,'Damage costs'!$C$16:$C$43,0))/1000),\"\")","v":""},{"$f":"IFERROR(IF(OR($C$144=FALSE,LEFT($B140,3)<>\"NOX\"),CG55*INDEX('Damage costs'!$U$16:$U$43,MATCH($B140,'Damage costs'!$C$16:$C$43,0))/1000,CG55*INDEX('Damage costs'!$Y$16:$Y$43,MATCH($B140,'Damage costs'!$C$16:$C$43,0))/1000),\"\")","v":""},{"$f":"IFERROR(IF(OR($C$144=FALSE,LEFT($B140,3)<>\"NOX\"),CH55*INDEX('Damage costs'!$U$16:$U$43,MATCH($B140,'Damage costs'!$C$16:$C$43,0))/1000,CH55*INDEX('Damage costs'!$Y$16:$Y$43,MATCH($B140,'Damage costs'!$C$16:$C$43,0))/1000),\"\")","v":""},{"$f":"IFERROR(IF(OR($C$144=FALSE,LEFT($B140,3)<>\"NOX\"),CI55*INDEX('Damage costs'!$U$16:$U$43,MATCH($B140,'Damage costs'!$C$16:$C$43,0))/1000,CI55*INDEX('Damage costs'!$Y$16:$Y$43,MATCH($B140,'Damage costs'!$C$16:$C$43,0))/1000),\"\")","v":""},{"$f":"IFERROR(IF(OR($C$144=FALSE,LEFT($B140,3)<>\"NOX\"),CJ55*INDEX('Damage costs'!$U$16:$U$43,MATCH($B140,'Damage costs'!$C$16:$C$43,0))/1000,CJ55*INDEX('Damage costs'!$Y$16:$Y$43,MATCH($B140,'Damage costs'!$C$16:$C$43,0))/1000),\"\")","v":""},{"$f":"IFERROR(IF(OR($C$144=FALSE,LEFT($B140,3)<>\"NOX\"),CK55*INDEX('Damage costs'!$U$16:$U$43,MATCH($B140,'Damage costs'!$C$16:$C$43,0))/1000,CK55*INDEX('Damage costs'!$Y$16:$Y$43,MATCH($B140,'Damage costs'!$C$16:$C$43,0))/1000),\"\")","v":""},{"$f":"IFERROR(IF(OR($C$144=FALSE,LEFT($B140,3)<>\"NOX\"),CL55*INDEX('Damage costs'!$U$16:$U$43,MATCH($B140,'Damage costs'!$C$16:$C$43,0))/1000,CL55*INDEX('Damage costs'!$Y$16:$Y$43,MATCH($B140,'Damage costs'!$C$16:$C$43,0))/1000),\"\")","v":""},{"$f":"IFERROR(IF(OR($C$144=FALSE,LEFT($B140,3)<>\"NOX\"),CM55*INDEX('Damage costs'!$U$16:$U$43,MATCH($B140,'Damage costs'!$C$16:$C$43,0))/1000,CM55*INDEX('Damage costs'!$Y$16:$Y$43,MATCH($B140,'Damage costs'!$C$16:$C$43,0))/1000),\"\")","v":""},{"$f":"IFERROR(IF(OR($C$144=FALSE,LEFT($B140,3)<>\"NOX\"),CN55*INDEX('Damage costs'!$U$16:$U$43,MATCH($B140,'Damage costs'!$C$16:$C$43,0))/1000,CN55*INDEX('Damage costs'!$Y$16:$Y$43,MATCH($B140,'Damage costs'!$C$16:$C$43,0))/1000),\"\")","v":""},{"$f":"IFERROR(IF(OR($C$144=FALSE,LEFT($B140,3)<>\"NOX\"),CO55*INDEX('Damage costs'!$U$16:$U$43,MATCH($B140,'Damage costs'!$C$16:$C$43,0))/1000,CO55*INDEX('Damage costs'!$Y$16:$Y$43,MATCH($B140,'Damage costs'!$C$16:$C$43,0))/1000),\"\")","v":""},{"$f":"IFERROR(IF(OR($C$144=FALSE,LEFT($B140,3)<>\"NOX\"),CP55*INDEX('Damage costs'!$U$16:$U$43,MATCH($B140,'Damage costs'!$C$16:$C$43,0))/1000,CP55*INDEX('Damage costs'!$Y$16:$Y$43,MATCH($B140,'Damage costs'!$C$16:$C$43,0))/1000),\"\")","v":""},{"$f":"IFERROR(IF(OR($C$144=FALSE,LEFT($B140,3)<>\"NOX\"),CQ55*INDEX('Damage costs'!$U$16:$U$43,MATCH($B140,'Damage costs'!$C$16:$C$43,0))/1000,CQ55*INDEX('Damage costs'!$Y$16:$Y$43,MATCH($B140,'Damage costs'!$C$16:$C$43,0))/1000),\"\")","v":""},{"$f":"IFERROR(IF(OR($C$144=FALSE,LEFT($B140,3)<>\"NOX\"),CR55*INDEX('Damage costs'!$U$16:$U$43,MATCH($B140,'Damage costs'!$C$16:$C$43,0))/1000,CR55*INDEX('Damage costs'!$Y$16:$Y$43,MATCH($B140,'Damage costs'!$C$16:$C$43,0))/1000),\"\")","v":""},{"$f":"IFERROR(IF(OR($C$144=FALSE,LEFT($B140,3)<>\"NOX\"),CS55*INDEX('Damage costs'!$U$16:$U$43,MATCH($B140,'Damage costs'!$C$16:$C$43,0))/1000,CS55*INDEX('Damage costs'!$Y$16:$Y$43,MATCH($B140,'Damage costs'!$C$16:$C$43,0))/1000),\"\")","v":""},{"$f":"IFERROR(IF(OR($C$144=FALSE,LEFT($B140,3)<>\"NOX\"),CT55*INDEX('Damage costs'!$U$16:$U$43,MATCH($B140,'Damage costs'!$C$16:$C$43,0))/1000,CT55*INDEX('Damage costs'!$Y$16:$Y$43,MATCH($B140,'Damage costs'!$C$16:$C$43,0))/1000),\"\")","v":""},{"$f":"IFERROR(IF(OR($C$144=FALSE,LEFT($B140,3)<>\"NOX\"),CU55*INDEX('Damage costs'!$U$16:$U$43,MATCH($B140,'Damage costs'!$C$16:$C$43,0))/1000,CU55*INDEX('Damage costs'!$Y$16:$Y$43,MATCH($B140,'Damage costs'!$C$16:$C$43,0))/1000),\"\")","v":""},{"$f":"IFERROR(IF(OR($C$144=FALSE,LEFT($B140,3)<>\"NOX\"),CV55*INDEX('Damage costs'!$U$16:$U$43,MATCH($B140,'Damage costs'!$C$16:$C$43,0))/1000,CV55*INDEX('Damage costs'!$Y$16:$Y$43,MATCH($B140,'Damage costs'!$C$16:$C$43,0))/1000),\"\")","v":""},{"$f":"IFERROR(IF(OR($C$144=FALSE,LEFT($B140,3)<>\"NOX\"),CW55*INDEX('Damage costs'!$U$16:$U$43,MATCH($B140,'Damage costs'!$C$16:$C$43,0))/1000,CW55*INDEX('Damage costs'!$Y$16:$Y$43,MATCH($B140,'Damage costs'!$C$16:$C$43,0))/1000),\"\")","v":""},{"$f":"IFERROR(IF(OR($C$144=FALSE,LEFT($B140,3)<>\"NOX\"),CX55*INDEX('Damage costs'!$U$16:$U$43,MATCH($B140,'Damage costs'!$C$16:$C$43,0))/1000,CX55*INDEX('Damage costs'!$Y$16:$Y$43,MATCH($B140,'Damage costs'!$C$16:$C$43,0))/1000),\"\")","v":""},{"$f":"IFERROR(IF(OR($C$144=FALSE,LEFT($B140,3)<>\"NOX\"),CY55*INDEX('Damage costs'!$U$16:$U$43,MATCH($B140,'Damage costs'!$C$16:$C$43,0))/1000,CY55*INDEX('Damage costs'!$Y$16:$Y$43,MATCH($B140,'Damage costs'!$C$16:$C$43,0))/1000),\"\")","v":""}]
[null,0,"£000's",{"$f":"IFERROR(IF(OR($C$144=FALSE,LEFT($B141,3)<>\"NOX\"),D56*INDEX('Damage costs'!$U$16:$U$43,MATCH($B141,'Damage costs'!$C$16:$C$43,0))/1000,D56*INDEX('Damage costs'!$Y$16:$Y$43,MATCH($B141,'Damage costs'!$C$16:$C$43,0))/1000),\"\")","v":""},{"$f":"IFERROR(IF(OR($C$144=FALSE,LEFT($B141,3)<>\"NOX\"),E56*INDEX('Damage costs'!$U$16:$U$43,MATCH($B141,'Damage costs'!$C$16:$C$43,0))/1000,E56*INDEX('Damage costs'!$Y$16:$Y$43,MATCH($B141,'Damage costs'!$C$16:$C$43,0))/1000),\"\")","v":""},{"$f":"IFERROR(IF(OR($C$144=FALSE,LEFT($B141,3)<>\"NOX\"),F56*INDEX('Damage costs'!$U$16:$U$43,MATCH($B141,'Damage costs'!$C$16:$C$43,0))/1000,F56*INDEX('Damage costs'!$Y$16:$Y$43,MATCH($B141,'Damage costs'!$C$16:$C$43,0))/1000),\"\")","v":""},{"$f":"IFERROR(IF(OR($C$144=FALSE,LEFT($B141,3)<>\"NOX\"),G56*INDEX('Damage costs'!$U$16:$U$43,MATCH($B141,'Damage costs'!$C$16:$C$43,0))/1000,G56*INDEX('Damage costs'!$Y$16:$Y$43,MATCH($B141,'Damage costs'!$C$16:$C$43,0))/1000),\"\")","v":""},{"$f":"IFERROR(IF(OR($C$144=FALSE,LEFT($B141,3)<>\"NOX\"),H56*INDEX('Damage costs'!$U$16:$U$43,MATCH($B141,'Damage costs'!$C$16:$C$43,0))/1000,H56*INDEX('Damage costs'!$Y$16:$Y$43,MATCH($B141,'Damage costs'!$C$16:$C$43,0))/1000),\"\")","v":""},{"$f":"IFERROR(IF(OR($C$144=FALSE,LEFT($B141,3)<>\"NOX\"),I56*INDEX('Damage costs'!$U$16:$U$43,MATCH($B141,'Damage costs'!$C$16:$C$43,0))/1000,I56*INDEX('Damage costs'!$Y$16:$Y$43,MATCH($B141,'Damage costs'!$C$16:$C$43,0))/1000),\"\")","v":""},{"$f":"IFERROR(IF(OR($C$144=FALSE,LEFT($B141,3)<>\"NOX\"),J56*INDEX('Damage costs'!$U$16:$U$43,MATCH($B141,'Damage costs'!$C$16:$C$43,0))/1000,J56*INDEX('Damage costs'!$Y$16:$Y$43,MATCH($B141,'Damage costs'!$C$16:$C$43,0))/1000),\"\")","v":""},{"$f":"IFERROR(IF(OR($C$144=FALSE,LEFT($B141,3)<>\"NOX\"),K56*INDEX('Damage costs'!$U$16:$U$43,MATCH($B141,'Damage costs'!$C$16:$C$43,0))/1000,K56*INDEX('Damage costs'!$Y$16:$Y$43,MATCH($B141,'Damage costs'!$C$16:$C$43,0))/1000),\"\")","v":""},{"$f":"IFERROR(IF(OR($C$144=FALSE,LEFT($B141,3)<>\"NOX\"),L56*INDEX('Damage costs'!$U$16:$U$43,MATCH($B141,'Damage costs'!$C$16:$C$43,0))/1000,L56*INDEX('Damage costs'!$Y$16:$Y$43,MATCH($B141,'Damage costs'!$C$16:$C$43,0))/1000),\"\")","v":""},{"$f":"IFERROR(IF(OR($C$144=FALSE,LEFT($B141,3)<>\"NOX\"),M56*INDEX('Damage costs'!$U$16:$U$43,MATCH($B141,'Damage costs'!$C$16:$C$43,0))/1000,M56*INDEX('Damage costs'!$Y$16:$Y$43,MATCH($B141,'Damage costs'!$C$16:$C$43,0))/1000),\"\")","v":""},{"$f":"IFERROR(IF(OR($C$144=FALSE,LEFT($B141,3)<>\"NOX\"),N56*INDEX('Damage costs'!$U$16:$U$43,MATCH($B141,'Damage costs'!$C$16:$C$43,0))/1000,N56*INDEX('Damage costs'!$Y$16:$Y$43,MATCH($B141,'Damage costs'!$C$16:$C$43,0))/1000),\"\")","v":""},{"$f":"IFERROR(IF(OR($C$144=FALSE,LEFT($B141,3)<>\"NOX\"),O56*INDEX('Damage costs'!$U$16:$U$43,MATCH($B141,'Damage costs'!$C$16:$C$43,0))/1000,O56*INDEX('Damage costs'!$Y$16:$Y$43,MATCH($B141,'Damage costs'!$C$16:$C$43,0))/1000),\"\")","v":""},{"$f":"IFERROR(IF(OR($C$144=FALSE,LEFT($B141,3)<>\"NOX\"),P56*INDEX('Damage costs'!$U$16:$U$43,MATCH($B141,'Damage costs'!$C$16:$C$43,0))/1000,P56*INDEX('Damage costs'!$Y$16:$Y$43,MATCH($B141,'Damage costs'!$C$16:$C$43,0))/1000),\"\")","v":""},{"$f":"IFERROR(IF(OR($C$144=FALSE,LEFT($B141,3)<>\"NOX\"),Q56*INDEX('Damage costs'!$U$16:$U$43,MATCH($B141,'Damage costs'!$C$16:$C$43,0))/1000,Q56*INDEX('Damage costs'!$Y$16:$Y$43,MATCH($B141,'Damage costs'!$C$16:$C$43,0))/1000),\"\")","v":""},{"$f":"IFERROR(IF(OR($C$144=FALSE,LEFT($B141,3)<>\"NOX\"),R56*INDEX('Damage costs'!$U$16:$U$43,MATCH($B141,'Damage costs'!$C$16:$C$43,0))/1000,R56*INDEX('Damage costs'!$Y$16:$Y$43,MATCH($B141,'Damage costs'!$C$16:$C$43,0))/1000),\"\")","v":""},{"$f":"IFERROR(IF(OR($C$144=FALSE,LEFT($B141,3)<>\"NOX\"),S56*INDEX('Damage costs'!$U$16:$U$43,MATCH($B141,'Damage costs'!$C$16:$C$43,0))/1000,S56*INDEX('Damage costs'!$Y$16:$Y$43,MATCH($B141,'Damage costs'!$C$16:$C$43,0))/1000),\"\")","v":""},{"$f":"IFERROR(IF(OR($C$144=FALSE,LEFT($B141,3)<>\"NOX\"),T56*INDEX('Damage costs'!$U$16:$U$43,MATCH($B141,'Damage costs'!$C$16:$C$43,0))/1000,T56*INDEX('Damage costs'!$Y$16:$Y$43,MATCH($B141,'Damage costs'!$C$16:$C$43,0))/1000),\"\")","v":""},{"$f":"IFERROR(IF(OR($C$144=FALSE,LEFT($B141,3)<>\"NOX\"),U56*INDEX('Damage costs'!$U$16:$U$43,MATCH($B141,'Damage costs'!$C$16:$C$43,0))/1000,U56*INDEX('Damage costs'!$Y$16:$Y$43,MATCH($B141,'Damage costs'!$C$16:$C$43,0))/1000),\"\")","v":""},{"$f":"IFERROR(IF(OR($C$144=FALSE,LEFT($B141,3)<>\"NOX\"),V56*INDEX('Damage costs'!$U$16:$U$43,MATCH($B141,'Damage costs'!$C$16:$C$43,0))/1000,V56*INDEX('Damage costs'!$Y$16:$Y$43,MATCH($B141,'Damage costs'!$C$16:$C$43,0))/1000),\"\")","v":""},{"$f":"IFERROR(IF(OR($C$144=FALSE,LEFT($B141,3)<>\"NOX\"),W56*INDEX('Damage costs'!$U$16:$U$43,MATCH($B141,'Damage costs'!$C$16:$C$43,0))/1000,W56*INDEX('Damage costs'!$Y$16:$Y$43,MATCH($B141,'Damage costs'!$C$16:$C$43,0))/1000),\"\")","v":""},{"$f":"IFERROR(IF(OR($C$144=FALSE,LEFT($B141,3)<>\"NOX\"),X56*INDEX('Damage costs'!$U$16:$U$43,MATCH($B141,'Damage costs'!$C$16:$C$43,0))/1000,X56*INDEX('Damage costs'!$Y$16:$Y$43,MATCH($B141,'Damage costs'!$C$16:$C$43,0))/1000),\"\")","v":""},{"$f":"IFERROR(IF(OR($C$144=FALSE,LEFT($B141,3)<>\"NOX\"),Y56*INDEX('Damage costs'!$U$16:$U$43,MATCH($B141,'Damage costs'!$C$16:$C$43,0))/1000,Y56*INDEX('Damage costs'!$Y$16:$Y$43,MATCH($B141,'Damage costs'!$C$16:$C$43,0))/1000),\"\")","v":""},{"$f":"IFERROR(IF(OR($C$144=FALSE,LEFT($B141,3)<>\"NOX\"),Z56*INDEX('Damage costs'!$U$16:$U$43,MATCH($B141,'Damage costs'!$C$16:$C$43,0))/1000,Z56*INDEX('Damage costs'!$Y$16:$Y$43,MATCH($B141,'Damage costs'!$C$16:$C$43,0))/1000),\"\")","v":""},{"$f":"IFERROR(IF(OR($C$144=FALSE,LEFT($B141,3)<>\"NOX\"),AA56*INDEX('Damage costs'!$U$16:$U$43,MATCH($B141,'Damage costs'!$C$16:$C$43,0))/1000,AA56*INDEX('Damage costs'!$Y$16:$Y$43,MATCH($B141,'Damage costs'!$C$16:$C$43,0))/1000),\"\")","v":""},{"$f":"IFERROR(IF(OR($C$144=FALSE,LEFT($B141,3)<>\"NOX\"),AB56*INDEX('Damage costs'!$U$16:$U$43,MATCH($B141,'Damage costs'!$C$16:$C$43,0))/1000,AB56*INDEX('Damage costs'!$Y$16:$Y$43,MATCH($B141,'Damage costs'!$C$16:$C$43,0))/1000),\"\")","v":""},{"$f":"IFERROR(IF(OR($C$144=FALSE,LEFT($B141,3)<>\"NOX\"),AC56*INDEX('Damage costs'!$U$16:$U$43,MATCH($B141,'Damage costs'!$C$16:$C$43,0))/1000,AC56*INDEX('Damage costs'!$Y$16:$Y$43,MATCH($B141,'Damage costs'!$C$16:$C$43,0))/1000),\"\")","v":""},{"$f":"IFERROR(IF(OR($C$144=FALSE,LEFT($B141,3)<>\"NOX\"),AD56*INDEX('Damage costs'!$U$16:$U$43,MATCH($B141,'Damage costs'!$C$16:$C$43,0))/1000,AD56*INDEX('Damage costs'!$Y$16:$Y$43,MATCH($B141,'Damage costs'!$C$16:$C$43,0))/1000),\"\")","v":""},{"$f":"IFERROR(IF(OR($C$144=FALSE,LEFT($B141,3)<>\"NOX\"),AE56*INDEX('Damage costs'!$U$16:$U$43,MATCH($B141,'Damage costs'!$C$16:$C$43,0))/1000,AE56*INDEX('Damage costs'!$Y$16:$Y$43,MATCH($B141,'Damage costs'!$C$16:$C$43,0))/1000),\"\")","v":""},{"$f":"IFERROR(IF(OR($C$144=FALSE,LEFT($B141,3)<>\"NOX\"),AF56*INDEX('Damage costs'!$U$16:$U$43,MATCH($B141,'Damage costs'!$C$16:$C$43,0))/1000,AF56*INDEX('Damage costs'!$Y$16:$Y$43,MATCH($B141,'Damage costs'!$C$16:$C$43,0))/1000),\"\")","v":""},{"$f":"IFERROR(IF(OR($C$144=FALSE,LEFT($B141,3)<>\"NOX\"),AG56*INDEX('Damage costs'!$U$16:$U$43,MATCH($B141,'Damage costs'!$C$16:$C$43,0))/1000,AG56*INDEX('Damage costs'!$Y$16:$Y$43,MATCH($B141,'Damage costs'!$C$16:$C$43,0))/1000),\"\")","v":""},{"$f":"IFERROR(IF(OR($C$144=FALSE,LEFT($B141,3)<>\"NOX\"),AH56*INDEX('Damage costs'!$U$16:$U$43,MATCH($B141,'Damage costs'!$C$16:$C$43,0))/1000,AH56*INDEX('Damage costs'!$Y$16:$Y$43,MATCH($B141,'Damage costs'!$C$16:$C$43,0))/1000),\"\")","v":""},{"$f":"IFERROR(IF(OR($C$144=FALSE,LEFT($B141,3)<>\"NOX\"),AI56*INDEX('Damage costs'!$U$16:$U$43,MATCH($B141,'Damage costs'!$C$16:$C$43,0))/1000,AI56*INDEX('Damage costs'!$Y$16:$Y$43,MATCH($B141,'Damage costs'!$C$16:$C$43,0))/1000),\"\")","v":""},{"$f":"IFERROR(IF(OR($C$144=FALSE,LEFT($B141,3)<>\"NOX\"),AJ56*INDEX('Damage costs'!$U$16:$U$43,MATCH($B141,'Damage costs'!$C$16:$C$43,0))/1000,AJ56*INDEX('Damage costs'!$Y$16:$Y$43,MATCH($B141,'Damage costs'!$C$16:$C$43,0))/1000),\"\")","v":""},{"$f":"IFERROR(IF(OR($C$144=FALSE,LEFT($B141,3)<>\"NOX\"),AK56*INDEX('Damage costs'!$U$16:$U$43,MATCH($B141,'Damage costs'!$C$16:$C$43,0))/1000,AK56*INDEX('Damage costs'!$Y$16:$Y$43,MATCH($B141,'Damage costs'!$C$16:$C$43,0))/1000),\"\")","v":""},{"$f":"IFERROR(IF(OR($C$144=FALSE,LEFT($B141,3)<>\"NOX\"),AL56*INDEX('Damage costs'!$U$16:$U$43,MATCH($B141,'Damage costs'!$C$16:$C$43,0))/1000,AL56*INDEX('Damage costs'!$Y$16:$Y$43,MATCH($B141,'Damage costs'!$C$16:$C$43,0))/1000),\"\")","v":""},{"$f":"IFERROR(IF(OR($C$144=FALSE,LEFT($B141,3)<>\"NOX\"),AM56*INDEX('Damage costs'!$U$16:$U$43,MATCH($B141,'Damage costs'!$C$16:$C$43,0))/1000,AM56*INDEX('Damage costs'!$Y$16:$Y$43,MATCH($B141,'Damage costs'!$C$16:$C$43,0))/1000),\"\")","v":""},{"$f":"IFERROR(IF(OR($C$144=FALSE,LEFT($B141,3)<>\"NOX\"),AN56*INDEX('Damage costs'!$U$16:$U$43,MATCH($B141,'Damage costs'!$C$16:$C$43,0))/1000,AN56*INDEX('Damage costs'!$Y$16:$Y$43,MATCH($B141,'Damage costs'!$C$16:$C$43,0))/1000),\"\")","v":""},{"$f":"IFERROR(IF(OR($C$144=FALSE,LEFT($B141,3)<>\"NOX\"),AO56*INDEX('Damage costs'!$U$16:$U$43,MATCH($B141,'Damage costs'!$C$16:$C$43,0))/1000,AO56*INDEX('Damage costs'!$Y$16:$Y$43,MATCH($B141,'Damage costs'!$C$16:$C$43,0))/1000),\"\")","v":""},{"$f":"IFERROR(IF(OR($C$144=FALSE,LEFT($B141,3)<>\"NOX\"),AP56*INDEX('Damage costs'!$U$16:$U$43,MATCH($B141,'Damage costs'!$C$16:$C$43,0))/1000,AP56*INDEX('Damage costs'!$Y$16:$Y$43,MATCH($B141,'Damage costs'!$C$16:$C$43,0))/1000),\"\")","v":""},{"$f":"IFERROR(IF(OR($C$144=FALSE,LEFT($B141,3)<>\"NOX\"),AQ56*INDEX('Damage costs'!$U$16:$U$43,MATCH($B141,'Damage costs'!$C$16:$C$43,0))/1000,AQ56*INDEX('Damage costs'!$Y$16:$Y$43,MATCH($B141,'Damage costs'!$C$16:$C$43,0))/1000),\"\")","v":""},{"$f":"IFERROR(IF(OR($C$144=FALSE,LEFT($B141,3)<>\"NOX\"),AR56*INDEX('Damage costs'!$U$16:$U$43,MATCH($B141,'Damage costs'!$C$16:$C$43,0))/1000,AR56*INDEX('Damage costs'!$Y$16:$Y$43,MATCH($B141,'Damage costs'!$C$16:$C$43,0))/1000),\"\")","v":""},{"$f":"IFERROR(IF(OR($C$144=FALSE,LEFT($B141,3)<>\"NOX\"),AS56*INDEX('Damage costs'!$U$16:$U$43,MATCH($B141,'Damage costs'!$C$16:$C$43,0))/1000,AS56*INDEX('Damage costs'!$Y$16:$Y$43,MATCH($B141,'Damage costs'!$C$16:$C$43,0))/1000),\"\")","v":""},{"$f":"IFERROR(IF(OR($C$144=FALSE,LEFT($B141,3)<>\"NOX\"),AT56*INDEX('Damage costs'!$U$16:$U$43,MATCH($B141,'Damage costs'!$C$16:$C$43,0))/1000,AT56*INDEX('Damage costs'!$Y$16:$Y$43,MATCH($B141,'Damage costs'!$C$16:$C$43,0))/1000),\"\")","v":""},{"$f":"IFERROR(IF(OR($C$144=FALSE,LEFT($B141,3)<>\"NOX\"),AU56*INDEX('Damage costs'!$U$16:$U$43,MATCH($B141,'Damage costs'!$C$16:$C$43,0))/1000,AU56*INDEX('Damage costs'!$Y$16:$Y$43,MATCH($B141,'Damage costs'!$C$16:$C$43,0))/1000),\"\")","v":""},{"$f":"IFERROR(IF(OR($C$144=FALSE,LEFT($B141,3)<>\"NOX\"),AV56*INDEX('Damage costs'!$U$16:$U$43,MATCH($B141,'Damage costs'!$C$16:$C$43,0))/1000,AV56*INDEX('Damage costs'!$Y$16:$Y$43,MATCH($B141,'Damage costs'!$C$16:$C$43,0))/1000),\"\")","v":""},{"$f":"IFERROR(IF(OR($C$144=FALSE,LEFT($B141,3)<>\"NOX\"),AW56*INDEX('Damage costs'!$U$16:$U$43,MATCH($B141,'Damage costs'!$C$16:$C$43,0))/1000,AW56*INDEX('Damage costs'!$Y$16:$Y$43,MATCH($B141,'Damage costs'!$C$16:$C$43,0))/1000),\"\")","v":""},{"$f":"IFERROR(IF(OR($C$144=FALSE,LEFT($B141,3)<>\"NOX\"),AX56*INDEX('Damage costs'!$U$16:$U$43,MATCH($B141,'Damage costs'!$C$16:$C$43,0))/1000,AX56*INDEX('Damage costs'!$Y$16:$Y$43,MATCH($B141,'Damage costs'!$C$16:$C$43,0))/1000),\"\")","v":""},{"$f":"IFERROR(IF(OR($C$144=FALSE,LEFT($B141,3)<>\"NOX\"),AY56*INDEX('Damage costs'!$U$16:$U$43,MATCH($B141,'Damage costs'!$C$16:$C$43,0))/1000,AY56*INDEX('Damage costs'!$Y$16:$Y$43,MATCH($B141,'Damage costs'!$C$16:$C$43,0))/1000),\"\")","v":""},{"$f":"IFERROR(IF(OR($C$144=FALSE,LEFT($B141,3)<>\"NOX\"),AZ56*INDEX('Damage costs'!$U$16:$U$43,MATCH($B141,'Damage costs'!$C$16:$C$43,0))/1000,AZ56*INDEX('Damage costs'!$Y$16:$Y$43,MATCH($B141,'Damage costs'!$C$16:$C$43,0))/1000),\"\")","v":""},{"$f":"IFERROR(IF(OR($C$144=FALSE,LEFT($B141,3)<>\"NOX\"),BA56*INDEX('Damage costs'!$U$16:$U$43,MATCH($B141,'Damage costs'!$C$16:$C$43,0))/1000,BA56*INDEX('Damage costs'!$Y$16:$Y$43,MATCH($B141,'Damage costs'!$C$16:$C$43,0))/1000),\"\")","v":""},{"$f":"IFERROR(IF(OR($C$144=FALSE,LEFT($B141,3)<>\"NOX\"),BB56*INDEX('Damage costs'!$U$16:$U$43,MATCH($B141,'Damage costs'!$C$16:$C$43,0))/1000,BB56*INDEX('Damage costs'!$Y$16:$Y$43,MATCH($B141,'Damage costs'!$C$16:$C$43,0))/1000),\"\")","v":""},{"$f":"IFERROR(IF(OR($C$144=FALSE,LEFT($B141,3)<>\"NOX\"),BC56*INDEX('Damage costs'!$U$16:$U$43,MATCH($B141,'Damage costs'!$C$16:$C$43,0))/1000,BC56*INDEX('Damage costs'!$Y$16:$Y$43,MATCH($B141,'Damage costs'!$C$16:$C$43,0))/1000),\"\")","v":""},{"$f":"IFERROR(IF(OR($C$144=FALSE,LEFT($B141,3)<>\"NOX\"),BD56*INDEX('Damage costs'!$U$16:$U$43,MATCH($B141,'Damage costs'!$C$16:$C$43,0))/1000,BD56*INDEX('Damage costs'!$Y$16:$Y$43,MATCH($B141,'Damage costs'!$C$16:$C$43,0))/1000),\"\")","v":""},{"$f":"IFERROR(IF(OR($C$144=FALSE,LEFT($B141,3)<>\"NOX\"),BE56*INDEX('Damage costs'!$U$16:$U$43,MATCH($B141,'Damage costs'!$C$16:$C$43,0))/1000,BE56*INDEX('Damage costs'!$Y$16:$Y$43,MATCH($B141,'Damage costs'!$C$16:$C$43,0))/1000),\"\")","v":""},{"$f":"IFERROR(IF(OR($C$144=FALSE,LEFT($B141,3)<>\"NOX\"),BF56*INDEX('Damage costs'!$U$16:$U$43,MATCH($B141,'Damage costs'!$C$16:$C$43,0))/1000,BF56*INDEX('Damage costs'!$Y$16:$Y$43,MATCH($B141,'Damage costs'!$C$16:$C$43,0))/1000),\"\")","v":""},{"$f":"IFERROR(IF(OR($C$144=FALSE,LEFT($B141,3)<>\"NOX\"),BG56*INDEX('Damage costs'!$U$16:$U$43,MATCH($B141,'Damage costs'!$C$16:$C$43,0))/1000,BG56*INDEX('Damage costs'!$Y$16:$Y$43,MATCH($B141,'Damage costs'!$C$16:$C$43,0))/1000),\"\")","v":""},{"$f":"IFERROR(IF(OR($C$144=FALSE,LEFT($B141,3)<>\"NOX\"),BH56*INDEX('Damage costs'!$U$16:$U$43,MATCH($B141,'Damage costs'!$C$16:$C$43,0))/1000,BH56*INDEX('Damage costs'!$Y$16:$Y$43,MATCH($B141,'Damage costs'!$C$16:$C$43,0))/1000),\"\")","v":""},{"$f":"IFERROR(IF(OR($C$144=FALSE,LEFT($B141,3)<>\"NOX\"),BI56*INDEX('Damage costs'!$U$16:$U$43,MATCH($B141,'Damage costs'!$C$16:$C$43,0))/1000,BI56*INDEX('Damage costs'!$Y$16:$Y$43,MATCH($B141,'Damage costs'!$C$16:$C$43,0))/1000),\"\")","v":""},{"$f":"IFERROR(IF(OR($C$144=FALSE,LEFT($B141,3)<>\"NOX\"),BJ56*INDEX('Damage costs'!$U$16:$U$43,MATCH($B141,'Damage costs'!$C$16:$C$43,0))/1000,BJ56*INDEX('Damage costs'!$Y$16:$Y$43,MATCH($B141,'Damage costs'!$C$16:$C$43,0))/1000),\"\")","v":""},{"$f":"IFERROR(IF(OR($C$144=FALSE,LEFT($B141,3)<>\"NOX\"),BK56*INDEX('Damage costs'!$U$16:$U$43,MATCH($B141,'Damage costs'!$C$16:$C$43,0))/1000,BK56*INDEX('Damage costs'!$Y$16:$Y$43,MATCH($B141,'Damage costs'!$C$16:$C$43,0))/1000),\"\")","v":""},{"$f":"IFERROR(IF(OR($C$144=FALSE,LEFT($B141,3)<>\"NOX\"),BL56*INDEX('Damage costs'!$U$16:$U$43,MATCH($B141,'Damage costs'!$C$16:$C$43,0))/1000,BL56*INDEX('Damage costs'!$Y$16:$Y$43,MATCH($B141,'Damage costs'!$C$16:$C$43,0))/1000),\"\")","v":""},{"$f":"IFERROR(IF(OR($C$144=FALSE,LEFT($B141,3)<>\"NOX\"),BM56*INDEX('Damage costs'!$U$16:$U$43,MATCH($B141,'Damage costs'!$C$16:$C$43,0))/1000,BM56*INDEX('Damage costs'!$Y$16:$Y$43,MATCH($B141,'Damage costs'!$C$16:$C$43,0))/1000),\"\")","v":""},{"$f":"IFERROR(IF(OR($C$144=FALSE,LEFT($B141,3)<>\"NOX\"),BN56*INDEX('Damage costs'!$U$16:$U$43,MATCH($B141,'Damage costs'!$C$16:$C$43,0))/1000,BN56*INDEX('Damage costs'!$Y$16:$Y$43,MATCH($B141,'Damage costs'!$C$16:$C$43,0))/1000),\"\")","v":""},{"$f":"IFERROR(IF(OR($C$144=FALSE,LEFT($B141,3)<>\"NOX\"),BO56*INDEX('Damage costs'!$U$16:$U$43,MATCH($B141,'Damage costs'!$C$16:$C$43,0))/1000,BO56*INDEX('Damage costs'!$Y$16:$Y$43,MATCH($B141,'Damage costs'!$C$16:$C$43,0))/1000),\"\")","v":""},{"$f":"IFERROR(IF(OR($C$144=FALSE,LEFT($B141,3)<>\"NOX\"),BP56*INDEX('Damage costs'!$U$16:$U$43,MATCH($B141,'Damage costs'!$C$16:$C$43,0))/1000,BP56*INDEX('Damage costs'!$Y$16:$Y$43,MATCH($B141,'Damage costs'!$C$16:$C$43,0))/1000),\"\")","v":""},{"$f":"IFERROR(IF(OR($C$144=FALSE,LEFT($B141,3)<>\"NOX\"),BQ56*INDEX('Damage costs'!$U$16:$U$43,MATCH($B141,'Damage costs'!$C$16:$C$43,0))/1000,BQ56*INDEX('Damage costs'!$Y$16:$Y$43,MATCH($B141,'Damage costs'!$C$16:$C$43,0))/1000),\"\")","v":""},{"$f":"IFERROR(IF(OR($C$144=FALSE,LEFT($B141,3)<>\"NOX\"),BR56*INDEX('Damage costs'!$U$16:$U$43,MATCH($B141,'Damage costs'!$C$16:$C$43,0))/1000,BR56*INDEX('Damage costs'!$Y$16:$Y$43,MATCH($B141,'Damage costs'!$C$16:$C$43,0))/1000),\"\")","v":""},{"$f":"IFERROR(IF(OR($C$144=FALSE,LEFT($B141,3)<>\"NOX\"),BS56*INDEX('Damage costs'!$U$16:$U$43,MATCH($B141,'Damage costs'!$C$16:$C$43,0))/1000,BS56*INDEX('Damage costs'!$Y$16:$Y$43,MATCH($B141,'Damage costs'!$C$16:$C$43,0))/1000),\"\")","v":""},{"$f":"IFERROR(IF(OR($C$144=FALSE,LEFT($B141,3)<>\"NOX\"),BT56*INDEX('Damage costs'!$U$16:$U$43,MATCH($B141,'Damage costs'!$C$16:$C$43,0))/1000,BT56*INDEX('Damage costs'!$Y$16:$Y$43,MATCH($B141,'Damage costs'!$C$16:$C$43,0))/1000),\"\")","v":""},{"$f":"IFERROR(IF(OR($C$144=FALSE,LEFT($B141,3)<>\"NOX\"),BU56*INDEX('Damage costs'!$U$16:$U$43,MATCH($B141,'Damage costs'!$C$16:$C$43,0))/1000,BU56*INDEX('Damage costs'!$Y$16:$Y$43,MATCH($B141,'Damage costs'!$C$16:$C$43,0))/1000),\"\")","v":""},{"$f":"IFERROR(IF(OR($C$144=FALSE,LEFT($B141,3)<>\"NOX\"),BV56*INDEX('Damage costs'!$U$16:$U$43,MATCH($B141,'Damage costs'!$C$16:$C$43,0))/1000,BV56*INDEX('Damage costs'!$Y$16:$Y$43,MATCH($B141,'Damage costs'!$C$16:$C$43,0))/1000),\"\")","v":""},{"$f":"IFERROR(IF(OR($C$144=FALSE,LEFT($B141,3)<>\"NOX\"),BW56*INDEX('Damage costs'!$U$16:$U$43,MATCH($B141,'Damage costs'!$C$16:$C$43,0))/1000,BW56*INDEX('Damage costs'!$Y$16:$Y$43,MATCH($B141,'Damage costs'!$C$16:$C$43,0))/1000),\"\")","v":""},{"$f":"IFERROR(IF(OR($C$144=FALSE,LEFT($B141,3)<>\"NOX\"),BX56*INDEX('Damage costs'!$U$16:$U$43,MATCH($B141,'Damage costs'!$C$16:$C$43,0))/1000,BX56*INDEX('Damage costs'!$Y$16:$Y$43,MATCH($B141,'Damage costs'!$C$16:$C$43,0))/1000),\"\")","v":""},{"$f":"IFERROR(IF(OR($C$144=FALSE,LEFT($B141,3)<>\"NOX\"),BY56*INDEX('Damage costs'!$U$16:$U$43,MATCH($B141,'Damage costs'!$C$16:$C$43,0))/1000,BY56*INDEX('Damage costs'!$Y$16:$Y$43,MATCH($B141,'Damage costs'!$C$16:$C$43,0))/1000),\"\")","v":""},{"$f":"IFERROR(IF(OR($C$144=FALSE,LEFT($B141,3)<>\"NOX\"),BZ56*INDEX('Damage costs'!$U$16:$U$43,MATCH($B141,'Damage costs'!$C$16:$C$43,0))/1000,BZ56*INDEX('Damage costs'!$Y$16:$Y$43,MATCH($B141,'Damage costs'!$C$16:$C$43,0))/1000),\"\")","v":""},{"$f":"IFERROR(IF(OR($C$144=FALSE,LEFT($B141,3)<>\"NOX\"),CA56*INDEX('Damage costs'!$U$16:$U$43,MATCH($B141,'Damage costs'!$C$16:$C$43,0))/1000,CA56*INDEX('Damage costs'!$Y$16:$Y$43,MATCH($B141,'Damage costs'!$C$16:$C$43,0))/1000),\"\")","v":""},{"$f":"IFERROR(IF(OR($C$144=FALSE,LEFT($B141,3)<>\"NOX\"),CB56*INDEX('Damage costs'!$U$16:$U$43,MATCH($B141,'Damage costs'!$C$16:$C$43,0))/1000,CB56*INDEX('Damage costs'!$Y$16:$Y$43,MATCH($B141,'Damage costs'!$C$16:$C$43,0))/1000),\"\")","v":""},{"$f":"IFERROR(IF(OR($C$144=FALSE,LEFT($B141,3)<>\"NOX\"),CC56*INDEX('Damage costs'!$U$16:$U$43,MATCH($B141,'Damage costs'!$C$16:$C$43,0))/1000,CC56*INDEX('Damage costs'!$Y$16:$Y$43,MATCH($B141,'Damage costs'!$C$16:$C$43,0))/1000),\"\")","v":""},{"$f":"IFERROR(IF(OR($C$144=FALSE,LEFT($B141,3)<>\"NOX\"),CD56*INDEX('Damage costs'!$U$16:$U$43,MATCH($B141,'Damage costs'!$C$16:$C$43,0))/1000,CD56*INDEX('Damage costs'!$Y$16:$Y$43,MATCH($B141,'Damage costs'!$C$16:$C$43,0))/1000),\"\")","v":""},{"$f":"IFERROR(IF(OR($C$144=FALSE,LEFT($B141,3)<>\"NOX\"),CE56*INDEX('Damage costs'!$U$16:$U$43,MATCH($B141,'Damage costs'!$C$16:$C$43,0))/1000,CE56*INDEX('Damage costs'!$Y$16:$Y$43,MATCH($B141,'Damage costs'!$C$16:$C$43,0))/1000),\"\")","v":""},{"$f":"IFERROR(IF(OR($C$144=FALSE,LEFT($B141,3)<>\"NOX\"),CF56*INDEX('Damage costs'!$U$16:$U$43,MATCH($B141,'Damage costs'!$C$16:$C$43,0))/1000,CF56*INDEX('Damage costs'!$Y$16:$Y$43,MATCH($B141,'Damage costs'!$C$16:$C$43,0))/1000),\"\")","v":""},{"$f":"IFERROR(IF(OR($C$144=FALSE,LEFT($B141,3)<>\"NOX\"),CG56*INDEX('Damage costs'!$U$16:$U$43,MATCH($B141,'Damage costs'!$C$16:$C$43,0))/1000,CG56*INDEX('Damage costs'!$Y$16:$Y$43,MATCH($B141,'Damage costs'!$C$16:$C$43,0))/1000),\"\")","v":""},{"$f":"IFERROR(IF(OR($C$144=FALSE,LEFT($B141,3)<>\"NOX\"),CH56*INDEX('Damage costs'!$U$16:$U$43,MATCH($B141,'Damage costs'!$C$16:$C$43,0))/1000,CH56*INDEX('Damage costs'!$Y$16:$Y$43,MATCH($B141,'Damage costs'!$C$16:$C$43,0))/1000),\"\")","v":""},{"$f":"IFERROR(IF(OR($C$144=FALSE,LEFT($B141,3)<>\"NOX\"),CI56*INDEX('Damage costs'!$U$16:$U$43,MATCH($B141,'Damage costs'!$C$16:$C$43,0))/1000,CI56*INDEX('Damage costs'!$Y$16:$Y$43,MATCH($B141,'Damage costs'!$C$16:$C$43,0))/1000),\"\")","v":""},{"$f":"IFERROR(IF(OR($C$144=FALSE,LEFT($B141,3)<>\"NOX\"),CJ56*INDEX('Damage costs'!$U$16:$U$43,MATCH($B141,'Damage costs'!$C$16:$C$43,0))/1000,CJ56*INDEX('Damage costs'!$Y$16:$Y$43,MATCH($B141,'Damage costs'!$C$16:$C$43,0))/1000),\"\")","v":""},{"$f":"IFERROR(IF(OR($C$144=FALSE,LEFT($B141,3)<>\"NOX\"),CK56*INDEX('Damage costs'!$U$16:$U$43,MATCH($B141,'Damage costs'!$C$16:$C$43,0))/1000,CK56*INDEX('Damage costs'!$Y$16:$Y$43,MATCH($B141,'Damage costs'!$C$16:$C$43,0))/1000),\"\")","v":""},{"$f":"IFERROR(IF(OR($C$144=FALSE,LEFT($B141,3)<>\"NOX\"),CL56*INDEX('Damage costs'!$U$16:$U$43,MATCH($B141,'Damage costs'!$C$16:$C$43,0))/1000,CL56*INDEX('Damage costs'!$Y$16:$Y$43,MATCH($B141,'Damage costs'!$C$16:$C$43,0))/1000),\"\")","v":""},{"$f":"IFERROR(IF(OR($C$144=FALSE,LEFT($B141,3)<>\"NOX\"),CM56*INDEX('Damage costs'!$U$16:$U$43,MATCH($B141,'Damage costs'!$C$16:$C$43,0))/1000,CM56*INDEX('Damage costs'!$Y$16:$Y$43,MATCH($B141,'Damage costs'!$C$16:$C$43,0))/1000),\"\")","v":""},{"$f":"IFERROR(IF(OR($C$144=FALSE,LEFT($B141,3)<>\"NOX\"),CN56*INDEX('Damage costs'!$U$16:$U$43,MATCH($B141,'Damage costs'!$C$16:$C$43,0))/1000,CN56*INDEX('Damage costs'!$Y$16:$Y$43,MATCH($B141,'Damage costs'!$C$16:$C$43,0))/1000),\"\")","v":""},{"$f":"IFERROR(IF(OR($C$144=FALSE,LEFT($B141,3)<>\"NOX\"),CO56*INDEX('Damage costs'!$U$16:$U$43,MATCH($B141,'Damage costs'!$C$16:$C$43,0))/1000,CO56*INDEX('Damage costs'!$Y$16:$Y$43,MATCH($B141,'Damage costs'!$C$16:$C$43,0))/1000),\"\")","v":""},{"$f":"IFERROR(IF(OR($C$144=FALSE,LEFT($B141,3)<>\"NOX\"),CP56*INDEX('Damage costs'!$U$16:$U$43,MATCH($B141,'Damage costs'!$C$16:$C$43,0))/1000,CP56*INDEX('Damage costs'!$Y$16:$Y$43,MATCH($B141,'Damage costs'!$C$16:$C$43,0))/1000),\"\")","v":""},{"$f":"IFERROR(IF(OR($C$144=FALSE,LEFT($B141,3)<>\"NOX\"),CQ56*INDEX('Damage costs'!$U$16:$U$43,MATCH($B141,'Damage costs'!$C$16:$C$43,0))/1000,CQ56*INDEX('Damage costs'!$Y$16:$Y$43,MATCH($B141,'Damage costs'!$C$16:$C$43,0))/1000),\"\")","v":""},{"$f":"IFERROR(IF(OR($C$144=FALSE,LEFT($B141,3)<>\"NOX\"),CR56*INDEX('Damage costs'!$U$16:$U$43,MATCH($B141,'Damage costs'!$C$16:$C$43,0))/1000,CR56*INDEX('Damage costs'!$Y$16:$Y$43,MATCH($B141,'Damage costs'!$C$16:$C$43,0))/1000),\"\")","v":""},{"$f":"IFERROR(IF(OR($C$144=FALSE,LEFT($B141,3)<>\"NOX\"),CS56*INDEX('Damage costs'!$U$16:$U$43,MATCH($B141,'Damage costs'!$C$16:$C$43,0))/1000,CS56*INDEX('Damage costs'!$Y$16:$Y$43,MATCH($B141,'Damage costs'!$C$16:$C$43,0))/1000),\"\")","v":""},{"$f":"IFERROR(IF(OR($C$144=FALSE,LEFT($B141,3)<>\"NOX\"),CT56*INDEX('Damage costs'!$U$16:$U$43,MATCH($B141,'Damage costs'!$C$16:$C$43,0))/1000,CT56*INDEX('Damage costs'!$Y$16:$Y$43,MATCH($B141,'Damage costs'!$C$16:$C$43,0))/1000),\"\")","v":""},{"$f":"IFERROR(IF(OR($C$144=FALSE,LEFT($B141,3)<>\"NOX\"),CU56*INDEX('Damage costs'!$U$16:$U$43,MATCH($B141,'Damage costs'!$C$16:$C$43,0))/1000,CU56*INDEX('Damage costs'!$Y$16:$Y$43,MATCH($B141,'Damage costs'!$C$16:$C$43,0))/1000),\"\")","v":""},{"$f":"IFERROR(IF(OR($C$144=FALSE,LEFT($B141,3)<>\"NOX\"),CV56*INDEX('Damage costs'!$U$16:$U$43,MATCH($B141,'Damage costs'!$C$16:$C$43,0))/1000,CV56*INDEX('Damage costs'!$Y$16:$Y$43,MATCH($B141,'Damage costs'!$C$16:$C$43,0))/1000),\"\")","v":""},{"$f":"IFERROR(IF(OR($C$144=FALSE,LEFT($B141,3)<>\"NOX\"),CW56*INDEX('Damage costs'!$U$16:$U$43,MATCH($B141,'Damage costs'!$C$16:$C$43,0))/1000,CW56*INDEX('Damage costs'!$Y$16:$Y$43,MATCH($B141,'Damage costs'!$C$16:$C$43,0))/1000),\"\")","v":""},{"$f":"IFERROR(IF(OR($C$144=FALSE,LEFT($B141,3)<>\"NOX\"),CX56*INDEX('Damage costs'!$U$16:$U$43,MATCH($B141,'Damage costs'!$C$16:$C$43,0))/1000,CX56*INDEX('Damage costs'!$Y$16:$Y$43,MATCH($B141,'Damage costs'!$C$16:$C$43,0))/1000),\"\")","v":""},{"$f":"IFERROR(IF(OR($C$144=FALSE,LEFT($B141,3)<>\"NOX\"),CY56*INDEX('Damage costs'!$U$16:$U$43,MATCH($B141,'Damage costs'!$C$16:$C$43,0))/1000,CY56*INDEX('Damage costs'!$Y$16:$Y$43,MATCH($B141,'Damage costs'!$C$16:$C$43,0))/1000),\"\")","v":""}]
[null,0,"£000's",{"$f":"IFERROR(IF(OR($C$144=FALSE,LEFT($B142,3)<>\"NOX\"),D57*INDEX('Damage costs'!$U$16:$U$43,MATCH($B142,'Damage costs'!$C$16:$C$43,0))/1000,D57*INDEX('Damage costs'!$Y$16:$Y$43,MATCH($B142,'Damage costs'!$C$16:$C$43,0))/1000),\"\")","v":""},{"$f":"IFERROR(IF(OR($C$144=FALSE,LEFT($B142,3)<>\"NOX\"),E57*INDEX('Damage costs'!$U$16:$U$43,MATCH($B142,'Damage costs'!$C$16:$C$43,0))/1000,E57*INDEX('Damage costs'!$Y$16:$Y$43,MATCH($B142,'Damage costs'!$C$16:$C$43,0))/1000),\"\")","v":""},{"$f":"IFERROR(IF(OR($C$144=FALSE,LEFT($B142,3)<>\"NOX\"),F57*INDEX('Damage costs'!$U$16:$U$43,MATCH($B142,'Damage costs'!$C$16:$C$43,0))/1000,F57*INDEX('Damage costs'!$Y$16:$Y$43,MATCH($B142,'Damage costs'!$C$16:$C$43,0))/1000),\"\")","v":""},{"$f":"IFERROR(IF(OR($C$144=FALSE,LEFT($B142,3)<>\"NOX\"),G57*INDEX('Damage costs'!$U$16:$U$43,MATCH($B142,'Damage costs'!$C$16:$C$43,0))/1000,G57*INDEX('Damage costs'!$Y$16:$Y$43,MATCH($B142,'Damage costs'!$C$16:$C$43,0))/1000),\"\")","v":""},{"$f":"IFERROR(IF(OR($C$144=FALSE,LEFT($B142,3)<>\"NOX\"),H57*INDEX('Damage costs'!$U$16:$U$43,MATCH($B142,'Damage costs'!$C$16:$C$43,0))/1000,H57*INDEX('Damage costs'!$Y$16:$Y$43,MATCH($B142,'Damage costs'!$C$16:$C$43,0))/1000),\"\")","v":""},{"$f":"IFERROR(IF(OR($C$144=FALSE,LEFT($B142,3)<>\"NOX\"),I57*INDEX('Damage costs'!$U$16:$U$43,MATCH($B142,'Damage costs'!$C$16:$C$43,0))/1000,I57*INDEX('Damage costs'!$Y$16:$Y$43,MATCH($B142,'Damage costs'!$C$16:$C$43,0))/1000),\"\")","v":""},{"$f":"IFERROR(IF(OR($C$144=FALSE,LEFT($B142,3)<>\"NOX\"),J57*INDEX('Damage costs'!$U$16:$U$43,MATCH($B142,'Damage costs'!$C$16:$C$43,0))/1000,J57*INDEX('Damage costs'!$Y$16:$Y$43,MATCH($B142,'Damage costs'!$C$16:$C$43,0))/1000),\"\")","v":""},{"$f":"IFERROR(IF(OR($C$144=FALSE,LEFT($B142,3)<>\"NOX\"),K57*INDEX('Damage costs'!$U$16:$U$43,MATCH($B142,'Damage costs'!$C$16:$C$43,0))/1000,K57*INDEX('Damage costs'!$Y$16:$Y$43,MATCH($B142,'Damage costs'!$C$16:$C$43,0))/1000),\"\")","v":""},{"$f":"IFERROR(IF(OR($C$144=FALSE,LEFT($B142,3)<>\"NOX\"),L57*INDEX('Damage costs'!$U$16:$U$43,MATCH($B142,'Damage costs'!$C$16:$C$43,0))/1000,L57*INDEX('Damage costs'!$Y$16:$Y$43,MATCH($B142,'Damage costs'!$C$16:$C$43,0))/1000),\"\")","v":""},{"$f":"IFERROR(IF(OR($C$144=FALSE,LEFT($B142,3)<>\"NOX\"),M57*INDEX('Damage costs'!$U$16:$U$43,MATCH($B142,'Damage costs'!$C$16:$C$43,0))/1000,M57*INDEX('Damage costs'!$Y$16:$Y$43,MATCH($B142,'Damage costs'!$C$16:$C$43,0))/1000),\"\")","v":""},{"$f":"IFERROR(IF(OR($C$144=FALSE,LEFT($B142,3)<>\"NOX\"),N57*INDEX('Damage costs'!$U$16:$U$43,MATCH($B142,'Damage costs'!$C$16:$C$43,0))/1000,N57*INDEX('Damage costs'!$Y$16:$Y$43,MATCH($B142,'Damage costs'!$C$16:$C$43,0))/1000),\"\")","v":""},{"$f":"IFERROR(IF(OR($C$144=FALSE,LEFT($B142,3)<>\"NOX\"),O57*INDEX('Damage costs'!$U$16:$U$43,MATCH($B142,'Damage costs'!$C$16:$C$43,0))/1000,O57*INDEX('Damage costs'!$Y$16:$Y$43,MATCH($B142,'Damage costs'!$C$16:$C$43,0))/1000),\"\")","v":""},{"$f":"IFERROR(IF(OR($C$144=FALSE,LEFT($B142,3)<>\"NOX\"),P57*INDEX('Damage costs'!$U$16:$U$43,MATCH($B142,'Damage costs'!$C$16:$C$43,0))/1000,P57*INDEX('Damage costs'!$Y$16:$Y$43,MATCH($B142,'Damage costs'!$C$16:$C$43,0))/1000),\"\")","v":""},{"$f":"IFERROR(IF(OR($C$144=FALSE,LEFT($B142,3)<>\"NOX\"),Q57*INDEX('Damage costs'!$U$16:$U$43,MATCH($B142,'Damage costs'!$C$16:$C$43,0))/1000,Q57*INDEX('Damage costs'!$Y$16:$Y$43,MATCH($B142,'Damage costs'!$C$16:$C$43,0))/1000),\"\")","v":""},{"$f":"IFERROR(IF(OR($C$144=FALSE,LEFT($B142,3)<>\"NOX\"),R57*INDEX('Damage costs'!$U$16:$U$43,MATCH($B142,'Damage costs'!$C$16:$C$43,0))/1000,R57*INDEX('Damage costs'!$Y$16:$Y$43,MATCH($B142,'Damage costs'!$C$16:$C$43,0))/1000),\"\")","v":""},{"$f":"IFERROR(IF(OR($C$144=FALSE,LEFT($B142,3)<>\"NOX\"),S57*INDEX('Damage costs'!$U$16:$U$43,MATCH($B142,'Damage costs'!$C$16:$C$43,0))/1000,S57*INDEX('Damage costs'!$Y$16:$Y$43,MATCH($B142,'Damage costs'!$C$16:$C$43,0))/1000),\"\")","v":""},{"$f":"IFERROR(IF(OR($C$144=FALSE,LEFT($B142,3)<>\"NOX\"),T57*INDEX('Damage costs'!$U$16:$U$43,MATCH($B142,'Damage costs'!$C$16:$C$43,0))/1000,T57*INDEX('Damage costs'!$Y$16:$Y$43,MATCH($B142,'Damage costs'!$C$16:$C$43,0))/1000),\"\")","v":""},{"$f":"IFERROR(IF(OR($C$144=FALSE,LEFT($B142,3)<>\"NOX\"),U57*INDEX('Damage costs'!$U$16:$U$43,MATCH($B142,'Damage costs'!$C$16:$C$43,0))/1000,U57*INDEX('Damage costs'!$Y$16:$Y$43,MATCH($B142,'Damage costs'!$C$16:$C$43,0))/1000),\"\")","v":""},{"$f":"IFERROR(IF(OR($C$144=FALSE,LEFT($B142,3)<>\"NOX\"),V57*INDEX('Damage costs'!$U$16:$U$43,MATCH($B142,'Damage costs'!$C$16:$C$43,0))/1000,V57*INDEX('Damage costs'!$Y$16:$Y$43,MATCH($B142,'Damage costs'!$C$16:$C$43,0))/1000),\"\")","v":""},{"$f":"IFERROR(IF(OR($C$144=FALSE,LEFT($B142,3)<>\"NOX\"),W57*INDEX('Damage costs'!$U$16:$U$43,MATCH($B142,'Damage costs'!$C$16:$C$43,0))/1000,W57*INDEX('Damage costs'!$Y$16:$Y$43,MATCH($B142,'Damage costs'!$C$16:$C$43,0))/1000),\"\")","v":""},{"$f":"IFERROR(IF(OR($C$144=FALSE,LEFT($B142,3)<>\"NOX\"),X57*INDEX('Damage costs'!$U$16:$U$43,MATCH($B142,'Damage costs'!$C$16:$C$43,0))/1000,X57*INDEX('Damage costs'!$Y$16:$Y$43,MATCH($B142,'Damage costs'!$C$16:$C$43,0))/1000),\"\")","v":""},{"$f":"IFERROR(IF(OR($C$144=FALSE,LEFT($B142,3)<>\"NOX\"),Y57*INDEX('Damage costs'!$U$16:$U$43,MATCH($B142,'Damage costs'!$C$16:$C$43,0))/1000,Y57*INDEX('Damage costs'!$Y$16:$Y$43,MATCH($B142,'Damage costs'!$C$16:$C$43,0))/1000),\"\")","v":""},{"$f":"IFERROR(IF(OR($C$144=FALSE,LEFT($B142,3)<>\"NOX\"),Z57*INDEX('Damage costs'!$U$16:$U$43,MATCH($B142,'Damage costs'!$C$16:$C$43,0))/1000,Z57*INDEX('Damage costs'!$Y$16:$Y$43,MATCH($B142,'Damage costs'!$C$16:$C$43,0))/1000),\"\")","v":""},{"$f":"IFERROR(IF(OR($C$144=FALSE,LEFT($B142,3)<>\"NOX\"),AA57*INDEX('Damage costs'!$U$16:$U$43,MATCH($B142,'Damage costs'!$C$16:$C$43,0))/1000,AA57*INDEX('Damage costs'!$Y$16:$Y$43,MATCH($B142,'Damage costs'!$C$16:$C$43,0))/1000),\"\")","v":""},{"$f":"IFERROR(IF(OR($C$144=FALSE,LEFT($B142,3)<>\"NOX\"),AB57*INDEX('Damage costs'!$U$16:$U$43,MATCH($B142,'Damage costs'!$C$16:$C$43,0))/1000,AB57*INDEX('Damage costs'!$Y$16:$Y$43,MATCH($B142,'Damage costs'!$C$16:$C$43,0))/1000),\"\")","v":""},{"$f":"IFERROR(IF(OR($C$144=FALSE,LEFT($B142,3)<>\"NOX\"),AC57*INDEX('Damage costs'!$U$16:$U$43,MATCH($B142,'Damage costs'!$C$16:$C$43,0))/1000,AC57*INDEX('Damage costs'!$Y$16:$Y$43,MATCH($B142,'Damage costs'!$C$16:$C$43,0))/1000),\"\")","v":""},{"$f":"IFERROR(IF(OR($C$144=FALSE,LEFT($B142,3)<>\"NOX\"),AD57*INDEX('Damage costs'!$U$16:$U$43,MATCH($B142,'Damage costs'!$C$16:$C$43,0))/1000,AD57*INDEX('Damage costs'!$Y$16:$Y$43,MATCH($B142,'Damage costs'!$C$16:$C$43,0))/1000),\"\")","v":""},{"$f":"IFERROR(IF(OR($C$144=FALSE,LEFT($B142,3)<>\"NOX\"),AE57*INDEX('Damage costs'!$U$16:$U$43,MATCH($B142,'Damage costs'!$C$16:$C$43,0))/1000,AE57*INDEX('Damage costs'!$Y$16:$Y$43,MATCH($B142,'Damage costs'!$C$16:$C$43,0))/1000),\"\")","v":""},{"$f":"IFERROR(IF(OR($C$144=FALSE,LEFT($B142,3)<>\"NOX\"),AF57*INDEX('Damage costs'!$U$16:$U$43,MATCH($B142,'Damage costs'!$C$16:$C$43,0))/1000,AF57*INDEX('Damage costs'!$Y$16:$Y$43,MATCH($B142,'Damage costs'!$C$16:$C$43,0))/1000),\"\")","v":""},{"$f":"IFERROR(IF(OR($C$144=FALSE,LEFT($B142,3)<>\"NOX\"),AG57*INDEX('Damage costs'!$U$16:$U$43,MATCH($B142,'Damage costs'!$C$16:$C$43,0))/1000,AG57*INDEX('Damage costs'!$Y$16:$Y$43,MATCH($B142,'Damage costs'!$C$16:$C$43,0))/1000),\"\")","v":""},{"$f":"IFERROR(IF(OR($C$144=FALSE,LEFT($B142,3)<>\"NOX\"),AH57*INDEX('Damage costs'!$U$16:$U$43,MATCH($B142,'Damage costs'!$C$16:$C$43,0))/1000,AH57*INDEX('Damage costs'!$Y$16:$Y$43,MATCH($B142,'Damage costs'!$C$16:$C$43,0))/1000),\"\")","v":""},{"$f":"IFERROR(IF(OR($C$144=FALSE,LEFT($B142,3)<>\"NOX\"),AI57*INDEX('Damage costs'!$U$16:$U$43,MATCH($B142,'Damage costs'!$C$16:$C$43,0))/1000,AI57*INDEX('Damage costs'!$Y$16:$Y$43,MATCH($B142,'Damage costs'!$C$16:$C$43,0))/1000),\"\")","v":""},{"$f":"IFERROR(IF(OR($C$144=FALSE,LEFT($B142,3)<>\"NOX\"),AJ57*INDEX('Damage costs'!$U$16:$U$43,MATCH($B142,'Damage costs'!$C$16:$C$43,0))/1000,AJ57*INDEX('Damage costs'!$Y$16:$Y$43,MATCH($B142,'Damage costs'!$C$16:$C$43,0))/1000),\"\")","v":""},{"$f":"IFERROR(IF(OR($C$144=FALSE,LEFT($B142,3)<>\"NOX\"),AK57*INDEX('Damage costs'!$U$16:$U$43,MATCH($B142,'Damage costs'!$C$16:$C$43,0))/1000,AK57*INDEX('Damage costs'!$Y$16:$Y$43,MATCH($B142,'Damage costs'!$C$16:$C$43,0))/1000),\"\")","v":""},{"$f":"IFERROR(IF(OR($C$144=FALSE,LEFT($B142,3)<>\"NOX\"),AL57*INDEX('Damage costs'!$U$16:$U$43,MATCH($B142,'Damage costs'!$C$16:$C$43,0))/1000,AL57*INDEX('Damage costs'!$Y$16:$Y$43,MATCH($B142,'Damage costs'!$C$16:$C$43,0))/1000),\"\")","v":""},{"$f":"IFERROR(IF(OR($C$144=FALSE,LEFT($B142,3)<>\"NOX\"),AM57*INDEX('Damage costs'!$U$16:$U$43,MATCH($B142,'Damage costs'!$C$16:$C$43,0))/1000,AM57*INDEX('Damage costs'!$Y$16:$Y$43,MATCH($B142,'Damage costs'!$C$16:$C$43,0))/1000),\"\")","v":""},{"$f":"IFERROR(IF(OR($C$144=FALSE,LEFT($B142,3)<>\"NOX\"),AN57*INDEX('Damage costs'!$U$16:$U$43,MATCH($B142,'Damage costs'!$C$16:$C$43,0))/1000,AN57*INDEX('Damage costs'!$Y$16:$Y$43,MATCH($B142,'Damage costs'!$C$16:$C$43,0))/1000),\"\")","v":""},{"$f":"IFERROR(IF(OR($C$144=FALSE,LEFT($B142,3)<>\"NOX\"),AO57*INDEX('Damage costs'!$U$16:$U$43,MATCH($B142,'Damage costs'!$C$16:$C$43,0))/1000,AO57*INDEX('Damage costs'!$Y$16:$Y$43,MATCH($B142,'Damage costs'!$C$16:$C$43,0))/1000),\"\")","v":""},{"$f":"IFERROR(IF(OR($C$144=FALSE,LEFT($B142,3)<>\"NOX\"),AP57*INDEX('Damage costs'!$U$16:$U$43,MATCH($B142,'Damage costs'!$C$16:$C$43,0))/1000,AP57*INDEX('Damage costs'!$Y$16:$Y$43,MATCH($B142,'Damage costs'!$C$16:$C$43,0))/1000),\"\")","v":""},{"$f":"IFERROR(IF(OR($C$144=FALSE,LEFT($B142,3)<>\"NOX\"),AQ57*INDEX('Damage costs'!$U$16:$U$43,MATCH($B142,'Damage costs'!$C$16:$C$43,0))/1000,AQ57*INDEX('Damage costs'!$Y$16:$Y$43,MATCH($B142,'Damage costs'!$C$16:$C$43,0))/1000),\"\")","v":""},{"$f":"IFERROR(IF(OR($C$144=FALSE,LEFT($B142,3)<>\"NOX\"),AR57*INDEX('Damage costs'!$U$16:$U$43,MATCH($B142,'Damage costs'!$C$16:$C$43,0))/1000,AR57*INDEX('Damage costs'!$Y$16:$Y$43,MATCH($B142,'Damage costs'!$C$16:$C$43,0))/1000),\"\")","v":""},{"$f":"IFERROR(IF(OR($C$144=FALSE,LEFT($B142,3)<>\"NOX\"),AS57*INDEX('Damage costs'!$U$16:$U$43,MATCH($B142,'Damage costs'!$C$16:$C$43,0))/1000,AS57*INDEX('Damage costs'!$Y$16:$Y$43,MATCH($B142,'Damage costs'!$C$16:$C$43,0))/1000),\"\")","v":""},{"$f":"IFERROR(IF(OR($C$144=FALSE,LEFT($B142,3)<>\"NOX\"),AT57*INDEX('Damage costs'!$U$16:$U$43,MATCH($B142,'Damage costs'!$C$16:$C$43,0))/1000,AT57*INDEX('Damage costs'!$Y$16:$Y$43,MATCH($B142,'Damage costs'!$C$16:$C$43,0))/1000),\"\")","v":""},{"$f":"IFERROR(IF(OR($C$144=FALSE,LEFT($B142,3)<>\"NOX\"),AU57*INDEX('Damage costs'!$U$16:$U$43,MATCH($B142,'Damage costs'!$C$16:$C$43,0))/1000,AU57*INDEX('Damage costs'!$Y$16:$Y$43,MATCH($B142,'Damage costs'!$C$16:$C$43,0))/1000),\"\")","v":""},{"$f":"IFERROR(IF(OR($C$144=FALSE,LEFT($B142,3)<>\"NOX\"),AV57*INDEX('Damage costs'!$U$16:$U$43,MATCH($B142,'Damage costs'!$C$16:$C$43,0))/1000,AV57*INDEX('Damage costs'!$Y$16:$Y$43,MATCH($B142,'Damage costs'!$C$16:$C$43,0))/1000),\"\")","v":""},{"$f":"IFERROR(IF(OR($C$144=FALSE,LEFT($B142,3)<>\"NOX\"),AW57*INDEX('Damage costs'!$U$16:$U$43,MATCH($B142,'Damage costs'!$C$16:$C$43,0))/1000,AW57*INDEX('Damage costs'!$Y$16:$Y$43,MATCH($B142,'Damage costs'!$C$16:$C$43,0))/1000),\"\")","v":""},{"$f":"IFERROR(IF(OR($C$144=FALSE,LEFT($B142,3)<>\"NOX\"),AX57*INDEX('Damage costs'!$U$16:$U$43,MATCH($B142,'Damage costs'!$C$16:$C$43,0))/1000,AX57*INDEX('Damage costs'!$Y$16:$Y$43,MATCH($B142,'Damage costs'!$C$16:$C$43,0))/1000),\"\")","v":""},{"$f":"IFERROR(IF(OR($C$144=FALSE,LEFT($B142,3)<>\"NOX\"),AY57*INDEX('Damage costs'!$U$16:$U$43,MATCH($B142,'Damage costs'!$C$16:$C$43,0))/1000,AY57*INDEX('Damage costs'!$Y$16:$Y$43,MATCH($B142,'Damage costs'!$C$16:$C$43,0))/1000),\"\")","v":""},{"$f":"IFERROR(IF(OR($C$144=FALSE,LEFT($B142,3)<>\"NOX\"),AZ57*INDEX('Damage costs'!$U$16:$U$43,MATCH($B142,'Damage costs'!$C$16:$C$43,0))/1000,AZ57*INDEX('Damage costs'!$Y$16:$Y$43,MATCH($B142,'Damage costs'!$C$16:$C$43,0))/1000),\"\")","v":""},{"$f":"IFERROR(IF(OR($C$144=FALSE,LEFT($B142,3)<>\"NOX\"),BA57*INDEX('Damage costs'!$U$16:$U$43,MATCH($B142,'Damage costs'!$C$16:$C$43,0))/1000,BA57*INDEX('Damage costs'!$Y$16:$Y$43,MATCH($B142,'Damage costs'!$C$16:$C$43,0))/1000),\"\")","v":""},{"$f":"IFERROR(IF(OR($C$144=FALSE,LEFT($B142,3)<>\"NOX\"),BB57*INDEX('Damage costs'!$U$16:$U$43,MATCH($B142,'Damage costs'!$C$16:$C$43,0))/1000,BB57*INDEX('Damage costs'!$Y$16:$Y$43,MATCH($B142,'Damage costs'!$C$16:$C$43,0))/1000),\"\")","v":""},{"$f":"IFERROR(IF(OR($C$144=FALSE,LEFT($B142,3)<>\"NOX\"),BC57*INDEX('Damage costs'!$U$16:$U$43,MATCH($B142,'Damage costs'!$C$16:$C$43,0))/1000,BC57*INDEX('Damage costs'!$Y$16:$Y$43,MATCH($B142,'Damage costs'!$C$16:$C$43,0))/1000),\"\")","v":""},{"$f":"IFERROR(IF(OR($C$144=FALSE,LEFT($B142,3)<>\"NOX\"),BD57*INDEX('Damage costs'!$U$16:$U$43,MATCH($B142,'Damage costs'!$C$16:$C$43,0))/1000,BD57*INDEX('Damage costs'!$Y$16:$Y$43,MATCH($B142,'Damage costs'!$C$16:$C$43,0))/1000),\"\")","v":""},{"$f":"IFERROR(IF(OR($C$144=FALSE,LEFT($B142,3)<>\"NOX\"),BE57*INDEX('Damage costs'!$U$16:$U$43,MATCH($B142,'Damage costs'!$C$16:$C$43,0))/1000,BE57*INDEX('Damage costs'!$Y$16:$Y$43,MATCH($B142,'Damage costs'!$C$16:$C$43,0))/1000),\"\")","v":""},{"$f":"IFERROR(IF(OR($C$144=FALSE,LEFT($B142,3)<>\"NOX\"),BF57*INDEX('Damage costs'!$U$16:$U$43,MATCH($B142,'Damage costs'!$C$16:$C$43,0))/1000,BF57*INDEX('Damage costs'!$Y$16:$Y$43,MATCH($B142,'Damage costs'!$C$16:$C$43,0))/1000),\"\")","v":""},{"$f":"IFERROR(IF(OR($C$144=FALSE,LEFT($B142,3)<>\"NOX\"),BG57*INDEX('Damage costs'!$U$16:$U$43,MATCH($B142,'Damage costs'!$C$16:$C$43,0))/1000,BG57*INDEX('Damage costs'!$Y$16:$Y$43,MATCH($B142,'Damage costs'!$C$16:$C$43,0))/1000),\"\")","v":""},{"$f":"IFERROR(IF(OR($C$144=FALSE,LEFT($B142,3)<>\"NOX\"),BH57*INDEX('Damage costs'!$U$16:$U$43,MATCH($B142,'Damage costs'!$C$16:$C$43,0))/1000,BH57*INDEX('Damage costs'!$Y$16:$Y$43,MATCH($B142,'Damage costs'!$C$16:$C$43,0))/1000),\"\")","v":""},{"$f":"IFERROR(IF(OR($C$144=FALSE,LEFT($B142,3)<>\"NOX\"),BI57*INDEX('Damage costs'!$U$16:$U$43,MATCH($B142,'Damage costs'!$C$16:$C$43,0))/1000,BI57*INDEX('Damage costs'!$Y$16:$Y$43,MATCH($B142,'Damage costs'!$C$16:$C$43,0))/1000),\"\")","v":""},{"$f":"IFERROR(IF(OR($C$144=FALSE,LEFT($B142,3)<>\"NOX\"),BJ57*INDEX('Damage costs'!$U$16:$U$43,MATCH($B142,'Damage costs'!$C$16:$C$43,0))/1000,BJ57*INDEX('Damage costs'!$Y$16:$Y$43,MATCH($B142,'Damage costs'!$C$16:$C$43,0))/1000),\"\")","v":""},{"$f":"IFERROR(IF(OR($C$144=FALSE,LEFT($B142,3)<>\"NOX\"),BK57*INDEX('Damage costs'!$U$16:$U$43,MATCH($B142,'Damage costs'!$C$16:$C$43,0))/1000,BK57*INDEX('Damage costs'!$Y$16:$Y$43,MATCH($B142,'Damage costs'!$C$16:$C$43,0))/1000),\"\")","v":""},{"$f":"IFERROR(IF(OR($C$144=FALSE,LEFT($B142,3)<>\"NOX\"),BL57*INDEX('Damage costs'!$U$16:$U$43,MATCH($B142,'Damage costs'!$C$16:$C$43,0))/1000,BL57*INDEX('Damage costs'!$Y$16:$Y$43,MATCH($B142,'Damage costs'!$C$16:$C$43,0))/1000),\"\")","v":""},{"$f":"IFERROR(IF(OR($C$144=FALSE,LEFT($B142,3)<>\"NOX\"),BM57*INDEX('Damage costs'!$U$16:$U$43,MATCH($B142,'Damage costs'!$C$16:$C$43,0))/1000,BM57*INDEX('Damage costs'!$Y$16:$Y$43,MATCH($B142,'Damage costs'!$C$16:$C$43,0))/1000),\"\")","v":""},{"$f":"IFERROR(IF(OR($C$144=FALSE,LEFT($B142,3)<>\"NOX\"),BN57*INDEX('Damage costs'!$U$16:$U$43,MATCH($B142,'Damage costs'!$C$16:$C$43,0))/1000,BN57*INDEX('Damage costs'!$Y$16:$Y$43,MATCH($B142,'Damage costs'!$C$16:$C$43,0))/1000),\"\")","v":""},{"$f":"IFERROR(IF(OR($C$144=FALSE,LEFT($B142,3)<>\"NOX\"),BO57*INDEX('Damage costs'!$U$16:$U$43,MATCH($B142,'Damage costs'!$C$16:$C$43,0))/1000,BO57*INDEX('Damage costs'!$Y$16:$Y$43,MATCH($B142,'Damage costs'!$C$16:$C$43,0))/1000),\"\")","v":""},{"$f":"IFERROR(IF(OR($C$144=FALSE,LEFT($B142,3)<>\"NOX\"),BP57*INDEX('Damage costs'!$U$16:$U$43,MATCH($B142,'Damage costs'!$C$16:$C$43,0))/1000,BP57*INDEX('Damage costs'!$Y$16:$Y$43,MATCH($B142,'Damage costs'!$C$16:$C$43,0))/1000),\"\")","v":""},{"$f":"IFERROR(IF(OR($C$144=FALSE,LEFT($B142,3)<>\"NOX\"),BQ57*INDEX('Damage costs'!$U$16:$U$43,MATCH($B142,'Damage costs'!$C$16:$C$43,0))/1000,BQ57*INDEX('Damage costs'!$Y$16:$Y$43,MATCH($B142,'Damage costs'!$C$16:$C$43,0))/1000),\"\")","v":""},{"$f":"IFERROR(IF(OR($C$144=FALSE,LEFT($B142,3)<>\"NOX\"),BR57*INDEX('Damage costs'!$U$16:$U$43,MATCH($B142,'Damage costs'!$C$16:$C$43,0))/1000,BR57*INDEX('Damage costs'!$Y$16:$Y$43,MATCH($B142,'Damage costs'!$C$16:$C$43,0))/1000),\"\")","v":""},{"$f":"IFERROR(IF(OR($C$144=FALSE,LEFT($B142,3)<>\"NOX\"),BS57*INDEX('Damage costs'!$U$16:$U$43,MATCH($B142,'Damage costs'!$C$16:$C$43,0))/1000,BS57*INDEX('Damage costs'!$Y$16:$Y$43,MATCH($B142,'Damage costs'!$C$16:$C$43,0))/1000),\"\")","v":""},{"$f":"IFERROR(IF(OR($C$144=FALSE,LEFT($B142,3)<>\"NOX\"),BT57*INDEX('Damage costs'!$U$16:$U$43,MATCH($B142,'Damage costs'!$C$16:$C$43,0))/1000,BT57*INDEX('Damage costs'!$Y$16:$Y$43,MATCH($B142,'Damage costs'!$C$16:$C$43,0))/1000),\"\")","v":""},{"$f":"IFERROR(IF(OR($C$144=FALSE,LEFT($B142,3)<>\"NOX\"),BU57*INDEX('Damage costs'!$U$16:$U$43,MATCH($B142,'Damage costs'!$C$16:$C$43,0))/1000,BU57*INDEX('Damage costs'!$Y$16:$Y$43,MATCH($B142,'Damage costs'!$C$16:$C$43,0))/1000),\"\")","v":""},{"$f":"IFERROR(IF(OR($C$144=FALSE,LEFT($B142,3)<>\"NOX\"),BV57*INDEX('Damage costs'!$U$16:$U$43,MATCH($B142,'Damage costs'!$C$16:$C$43,0))/1000,BV57*INDEX('Damage costs'!$Y$16:$Y$43,MATCH($B142,'Damage costs'!$C$16:$C$43,0))/1000),\"\")","v":""},{"$f":"IFERROR(IF(OR($C$144=FALSE,LEFT($B142,3)<>\"NOX\"),BW57*INDEX('Damage costs'!$U$16:$U$43,MATCH($B142,'Damage costs'!$C$16:$C$43,0))/1000,BW57*INDEX('Damage costs'!$Y$16:$Y$43,MATCH($B142,'Damage costs'!$C$16:$C$43,0))/1000),\"\")","v":""},{"$f":"IFERROR(IF(OR($C$144=FALSE,LEFT($B142,3)<>\"NOX\"),BX57*INDEX('Damage costs'!$U$16:$U$43,MATCH($B142,'Damage costs'!$C$16:$C$43,0))/1000,BX57*INDEX('Damage costs'!$Y$16:$Y$43,MATCH($B142,'Damage costs'!$C$16:$C$43,0))/1000),\"\")","v":""},{"$f":"IFERROR(IF(OR($C$144=FALSE,LEFT($B142,3)<>\"NOX\"),BY57*INDEX('Damage costs'!$U$16:$U$43,MATCH($B142,'Damage costs'!$C$16:$C$43,0))/1000,BY57*INDEX('Damage costs'!$Y$16:$Y$43,MATCH($B142,'Damage costs'!$C$16:$C$43,0))/1000),\"\")","v":""},{"$f":"IFERROR(IF(OR($C$144=FALSE,LEFT($B142,3)<>\"NOX\"),BZ57*INDEX('Damage costs'!$U$16:$U$43,MATCH($B142,'Damage costs'!$C$16:$C$43,0))/1000,BZ57*INDEX('Damage costs'!$Y$16:$Y$43,MATCH($B142,'Damage costs'!$C$16:$C$43,0))/1000),\"\")","v":""},{"$f":"IFERROR(IF(OR($C$144=FALSE,LEFT($B142,3)<>\"NOX\"),CA57*INDEX('Damage costs'!$U$16:$U$43,MATCH($B142,'Damage costs'!$C$16:$C$43,0))/1000,CA57*INDEX('Damage costs'!$Y$16:$Y$43,MATCH($B142,'Damage costs'!$C$16:$C$43,0))/1000),\"\")","v":""},{"$f":"IFERROR(IF(OR($C$144=FALSE,LEFT($B142,3)<>\"NOX\"),CB57*INDEX('Damage costs'!$U$16:$U$43,MATCH($B142,'Damage costs'!$C$16:$C$43,0))/1000,CB57*INDEX('Damage costs'!$Y$16:$Y$43,MATCH($B142,'Damage costs'!$C$16:$C$43,0))/1000),\"\")","v":""},{"$f":"IFERROR(IF(OR($C$144=FALSE,LEFT($B142,3)<>\"NOX\"),CC57*INDEX('Damage costs'!$U$16:$U$43,MATCH($B142,'Damage costs'!$C$16:$C$43,0))/1000,CC57*INDEX('Damage costs'!$Y$16:$Y$43,MATCH($B142,'Damage costs'!$C$16:$C$43,0))/1000),\"\")","v":""},{"$f":"IFERROR(IF(OR($C$144=FALSE,LEFT($B142,3)<>\"NOX\"),CD57*INDEX('Damage costs'!$U$16:$U$43,MATCH($B142,'Damage costs'!$C$16:$C$43,0))/1000,CD57*INDEX('Damage costs'!$Y$16:$Y$43,MATCH($B142,'Damage costs'!$C$16:$C$43,0))/1000),\"\")","v":""},{"$f":"IFERROR(IF(OR($C$144=FALSE,LEFT($B142,3)<>\"NOX\"),CE57*INDEX('Damage costs'!$U$16:$U$43,MATCH($B142,'Damage costs'!$C$16:$C$43,0))/1000,CE57*INDEX('Damage costs'!$Y$16:$Y$43,MATCH($B142,'Damage costs'!$C$16:$C$43,0))/1000),\"\")","v":""},{"$f":"IFERROR(IF(OR($C$144=FALSE,LEFT($B142,3)<>\"NOX\"),CF57*INDEX('Damage costs'!$U$16:$U$43,MATCH($B142,'Damage costs'!$C$16:$C$43,0))/1000,CF57*INDEX('Damage costs'!$Y$16:$Y$43,MATCH($B142,'Damage costs'!$C$16:$C$43,0))/1000),\"\")","v":""},{"$f":"IFERROR(IF(OR($C$144=FALSE,LEFT($B142,3)<>\"NOX\"),CG57*INDEX('Damage costs'!$U$16:$U$43,MATCH($B142,'Damage costs'!$C$16:$C$43,0))/1000,CG57*INDEX('Damage costs'!$Y$16:$Y$43,MATCH($B142,'Damage costs'!$C$16:$C$43,0))/1000),\"\")","v":""},{"$f":"IFERROR(IF(OR($C$144=FALSE,LEFT($B142,3)<>\"NOX\"),CH57*INDEX('Damage costs'!$U$16:$U$43,MATCH($B142,'Damage costs'!$C$16:$C$43,0))/1000,CH57*INDEX('Damage costs'!$Y$16:$Y$43,MATCH($B142,'Damage costs'!$C$16:$C$43,0))/1000),\"\")","v":""},{"$f":"IFERROR(IF(OR($C$144=FALSE,LEFT($B142,3)<>\"NOX\"),CI57*INDEX('Damage costs'!$U$16:$U$43,MATCH($B142,'Damage costs'!$C$16:$C$43,0))/1000,CI57*INDEX('Damage costs'!$Y$16:$Y$43,MATCH($B142,'Damage costs'!$C$16:$C$43,0))/1000),\"\")","v":""},{"$f":"IFERROR(IF(OR($C$144=FALSE,LEFT($B142,3)<>\"NOX\"),CJ57*INDEX('Damage costs'!$U$16:$U$43,MATCH($B142,'Damage costs'!$C$16:$C$43,0))/1000,CJ57*INDEX('Damage costs'!$Y$16:$Y$43,MATCH($B142,'Damage costs'!$C$16:$C$43,0))/1000),\"\")","v":""},{"$f":"IFERROR(IF(OR($C$144=FALSE,LEFT($B142,3)<>\"NOX\"),CK57*INDEX('Damage costs'!$U$16:$U$43,MATCH($B142,'Damage costs'!$C$16:$C$43,0))/1000,CK57*INDEX('Damage costs'!$Y$16:$Y$43,MATCH($B142,'Damage costs'!$C$16:$C$43,0))/1000),\"\")","v":""},{"$f":"IFERROR(IF(OR($C$144=FALSE,LEFT($B142,3)<>\"NOX\"),CL57*INDEX('Damage costs'!$U$16:$U$43,MATCH($B142,'Damage costs'!$C$16:$C$43,0))/1000,CL57*INDEX('Damage costs'!$Y$16:$Y$43,MATCH($B142,'Damage costs'!$C$16:$C$43,0))/1000),\"\")","v":""},{"$f":"IFERROR(IF(OR($C$144=FALSE,LEFT($B142,3)<>\"NOX\"),CM57*INDEX('Damage costs'!$U$16:$U$43,MATCH($B142,'Damage costs'!$C$16:$C$43,0))/1000,CM57*INDEX('Damage costs'!$Y$16:$Y$43,MATCH($B142,'Damage costs'!$C$16:$C$43,0))/1000),\"\")","v":""},{"$f":"IFERROR(IF(OR($C$144=FALSE,LEFT($B142,3)<>\"NOX\"),CN57*INDEX('Damage costs'!$U$16:$U$43,MATCH($B142,'Damage costs'!$C$16:$C$43,0))/1000,CN57*INDEX('Damage costs'!$Y$16:$Y$43,MATCH($B142,'Damage costs'!$C$16:$C$43,0))/1000),\"\")","v":""},{"$f":"IFERROR(IF(OR($C$144=FALSE,LEFT($B142,3)<>\"NOX\"),CO57*INDEX('Damage costs'!$U$16:$U$43,MATCH($B142,'Damage costs'!$C$16:$C$43,0))/1000,CO57*INDEX('Damage costs'!$Y$16:$Y$43,MATCH($B142,'Damage costs'!$C$16:$C$43,0))/1000),\"\")","v":""},{"$f":"IFERROR(IF(OR($C$144=FALSE,LEFT($B142,3)<>\"NOX\"),CP57*INDEX('Damage costs'!$U$16:$U$43,MATCH($B142,'Damage costs'!$C$16:$C$43,0))/1000,CP57*INDEX('Damage costs'!$Y$16:$Y$43,MATCH($B142,'Damage costs'!$C$16:$C$43,0))/1000),\"\")","v":""},{"$f":"IFERROR(IF(OR($C$144=FALSE,LEFT($B142,3)<>\"NOX\"),CQ57*INDEX('Damage costs'!$U$16:$U$43,MATCH($B142,'Damage costs'!$C$16:$C$43,0))/1000,CQ57*INDEX('Damage costs'!$Y$16:$Y$43,MATCH($B142,'Damage costs'!$C$16:$C$43,0))/1000),\"\")","v":""},{"$f":"IFERROR(IF(OR($C$144=FALSE,LEFT($B142,3)<>\"NOX\"),CR57*INDEX('Damage costs'!$U$16:$U$43,MATCH($B142,'Damage costs'!$C$16:$C$43,0))/1000,CR57*INDEX('Damage costs'!$Y$16:$Y$43,MATCH($B142,'Damage costs'!$C$16:$C$43,0))/1000),\"\")","v":""},{"$f":"IFERROR(IF(OR($C$144=FALSE,LEFT($B142,3)<>\"NOX\"),CS57*INDEX('Damage costs'!$U$16:$U$43,MATCH($B142,'Damage costs'!$C$16:$C$43,0))/1000,CS57*INDEX('Damage costs'!$Y$16:$Y$43,MATCH($B142,'Damage costs'!$C$16:$C$43,0))/1000),\"\")","v":""},{"$f":"IFERROR(IF(OR($C$144=FALSE,LEFT($B142,3)<>\"NOX\"),CT57*INDEX('Damage costs'!$U$16:$U$43,MATCH($B142,'Damage costs'!$C$16:$C$43,0))/1000,CT57*INDEX('Damage costs'!$Y$16:$Y$43,MATCH($B142,'Damage costs'!$C$16:$C$43,0))/1000),\"\")","v":""},{"$f":"IFERROR(IF(OR($C$144=FALSE,LEFT($B142,3)<>\"NOX\"),CU57*INDEX('Damage costs'!$U$16:$U$43,MATCH($B142,'Damage costs'!$C$16:$C$43,0))/1000,CU57*INDEX('Damage costs'!$Y$16:$Y$43,MATCH($B142,'Damage costs'!$C$16:$C$43,0))/1000),\"\")","v":""},{"$f":"IFERROR(IF(OR($C$144=FALSE,LEFT($B142,3)<>\"NOX\"),CV57*INDEX('Damage costs'!$U$16:$U$43,MATCH($B142,'Damage costs'!$C$16:$C$43,0))/1000,CV57*INDEX('Damage costs'!$Y$16:$Y$43,MATCH($B142,'Damage costs'!$C$16:$C$43,0))/1000),\"\")","v":""},{"$f":"IFERROR(IF(OR($C$144=FALSE,LEFT($B142,3)<>\"NOX\"),CW57*INDEX('Damage costs'!$U$16:$U$43,MATCH($B142,'Damage costs'!$C$16:$C$43,0))/1000,CW57*INDEX('Damage costs'!$Y$16:$Y$43,MATCH($B142,'Damage costs'!$C$16:$C$43,0))/1000),\"\")","v":""},{"$f":"IFERROR(IF(OR($C$144=FALSE,LEFT($B142,3)<>\"NOX\"),CX57*INDEX('Damage costs'!$U$16:$U$43,MATCH($B142,'Damage costs'!$C$16:$C$43,0))/1000,CX57*INDEX('Damage costs'!$Y$16:$Y$43,MATCH($B142,'Damage costs'!$C$16:$C$43,0))/1000),\"\")","v":""},{"$f":"IFERROR(IF(OR($C$144=FALSE,LEFT($B142,3)<>\"NOX\"),CY57*INDEX('Damage costs'!$U$16:$U$43,MATCH($B142,'Damage costs'!$C$16:$C$43,0))/1000,CY57*INDEX('Damage costs'!$Y$16:$Y$43,MATCH($B142,'Damage costs'!$C$16:$C$43,0))/1000),\"\")","v":""}]
[null,0,"£000's",{"$f":"IFERROR(IF(OR($C$144=FALSE,LEFT($B143,3)<>\"NOX\"),D58*INDEX('Damage costs'!$U$16:$U$43,MATCH($B143,'Damage costs'!$C$16:$C$43,0))/1000,D58*INDEX('Damage costs'!$Y$16:$Y$43,MATCH($B143,'Damage costs'!$C$16:$C$43,0))/1000),\"\")","v":""},{"$f":"IFERROR(IF(OR($C$144=FALSE,LEFT($B143,3)<>\"NOX\"),E58*INDEX('Damage costs'!$U$16:$U$43,MATCH($B143,'Damage costs'!$C$16:$C$43,0))/1000,E58*INDEX('Damage costs'!$Y$16:$Y$43,MATCH($B143,'Damage costs'!$C$16:$C$43,0))/1000),\"\")","v":""},{"$f":"IFERROR(IF(OR($C$144=FALSE,LEFT($B143,3)<>\"NOX\"),F58*INDEX('Damage costs'!$U$16:$U$43,MATCH($B143,'Damage costs'!$C$16:$C$43,0))/1000,F58*INDEX('Damage costs'!$Y$16:$Y$43,MATCH($B143,'Damage costs'!$C$16:$C$43,0))/1000),\"\")","v":""},{"$f":"IFERROR(IF(OR($C$144=FALSE,LEFT($B143,3)<>\"NOX\"),G58*INDEX('Damage costs'!$U$16:$U$43,MATCH($B143,'Damage costs'!$C$16:$C$43,0))/1000,G58*INDEX('Damage costs'!$Y$16:$Y$43,MATCH($B143,'Damage costs'!$C$16:$C$43,0))/1000),\"\")","v":""},{"$f":"IFERROR(IF(OR($C$144=FALSE,LEFT($B143,3)<>\"NOX\"),H58*INDEX('Damage costs'!$U$16:$U$43,MATCH($B143,'Damage costs'!$C$16:$C$43,0))/1000,H58*INDEX('Damage costs'!$Y$16:$Y$43,MATCH($B143,'Damage costs'!$C$16:$C$43,0))/1000),\"\")","v":""},{"$f":"IFERROR(IF(OR($C$144=FALSE,LEFT($B143,3)<>\"NOX\"),I58*INDEX('Damage costs'!$U$16:$U$43,MATCH($B143,'Damage costs'!$C$16:$C$43,0))/1000,I58*INDEX('Damage costs'!$Y$16:$Y$43,MATCH($B143,'Damage costs'!$C$16:$C$43,0))/1000),\"\")","v":""},{"$f":"IFERROR(IF(OR($C$144=FALSE,LEFT($B143,3)<>\"NOX\"),J58*INDEX('Damage costs'!$U$16:$U$43,MATCH($B143,'Damage costs'!$C$16:$C$43,0))/1000,J58*INDEX('Damage costs'!$Y$16:$Y$43,MATCH($B143,'Damage costs'!$C$16:$C$43,0))/1000),\"\")","v":""},{"$f":"IFERROR(IF(OR($C$144=FALSE,LEFT($B143,3)<>\"NOX\"),K58*INDEX('Damage costs'!$U$16:$U$43,MATCH($B143,'Damage costs'!$C$16:$C$43,0))/1000,K58*INDEX('Damage costs'!$Y$16:$Y$43,MATCH($B143,'Damage costs'!$C$16:$C$43,0))/1000),\"\")","v":""},{"$f":"IFERROR(IF(OR($C$144=FALSE,LEFT($B143,3)<>\"NOX\"),L58*INDEX('Damage costs'!$U$16:$U$43,MATCH($B143,'Damage costs'!$C$16:$C$43,0))/1000,L58*INDEX('Damage costs'!$Y$16:$Y$43,MATCH($B143,'Damage costs'!$C$16:$C$43,0))/1000),\"\")","v":""},{"$f":"IFERROR(IF(OR($C$144=FALSE,LEFT($B143,3)<>\"NOX\"),M58*INDEX('Damage costs'!$U$16:$U$43,MATCH($B143,'Damage costs'!$C$16:$C$43,0))/1000,M58*INDEX('Damage costs'!$Y$16:$Y$43,MATCH($B143,'Damage costs'!$C$16:$C$43,0))/1000),\"\")","v":""},{"$f":"IFERROR(IF(OR($C$144=FALSE,LEFT($B143,3)<>\"NOX\"),N58*INDEX('Damage costs'!$U$16:$U$43,MATCH($B143,'Damage costs'!$C$16:$C$43,0))/1000,N58*INDEX('Damage costs'!$Y$16:$Y$43,MATCH($B143,'Damage costs'!$C$16:$C$43,0))/1000),\"\")","v":""},{"$f":"IFERROR(IF(OR($C$144=FALSE,LEFT($B143,3)<>\"NOX\"),O58*INDEX('Damage costs'!$U$16:$U$43,MATCH($B143,'Damage costs'!$C$16:$C$43,0))/1000,O58*INDEX('Damage costs'!$Y$16:$Y$43,MATCH($B143,'Damage costs'!$C$16:$C$43,0))/1000),\"\")","v":""},{"$f":"IFERROR(IF(OR($C$144=FALSE,LEFT($B143,3)<>\"NOX\"),P58*INDEX('Damage costs'!$U$16:$U$43,MATCH($B143,'Damage costs'!$C$16:$C$43,0))/1000,P58*INDEX('Damage costs'!$Y$16:$Y$43,MATCH($B143,'Damage costs'!$C$16:$C$43,0))/1000),\"\")","v":""},{"$f":"IFERROR(IF(OR($C$144=FALSE,LEFT($B143,3)<>\"NOX\"),Q58*INDEX('Damage costs'!$U$16:$U$43,MATCH($B143,'Damage costs'!$C$16:$C$43,0))/1000,Q58*INDEX('Damage costs'!$Y$16:$Y$43,MATCH($B143,'Damage costs'!$C$16:$C$43,0))/1000),\"\")","v":""},{"$f":"IFERROR(IF(OR($C$144=FALSE,LEFT($B143,3)<>\"NOX\"),R58*INDEX('Damage costs'!$U$16:$U$43,MATCH($B143,'Damage costs'!$C$16:$C$43,0))/1000,R58*INDEX('Damage costs'!$Y$16:$Y$43,MATCH($B143,'Damage costs'!$C$16:$C$43,0))/1000),\"\")","v":""},{"$f":"IFERROR(IF(OR($C$144=FALSE,LEFT($B143,3)<>\"NOX\"),S58*INDEX('Damage costs'!$U$16:$U$43,MATCH($B143,'Damage costs'!$C$16:$C$43,0))/1000,S58*INDEX('Damage costs'!$Y$16:$Y$43,MATCH($B143,'Damage costs'!$C$16:$C$43,0))/1000),\"\")","v":""},{"$f":"IFERROR(IF(OR($C$144=FALSE,LEFT($B143,3)<>\"NOX\"),T58*INDEX('Damage costs'!$U$16:$U$43,MATCH($B143,'Damage costs'!$C$16:$C$43,0))/1000,T58*INDEX('Damage costs'!$Y$16:$Y$43,MATCH($B143,'Damage costs'!$C$16:$C$43,0))/1000),\"\")","v":""},{"$f":"IFERROR(IF(OR($C$144=FALSE,LEFT($B143,3)<>\"NOX\"),U58*INDEX('Damage costs'!$U$16:$U$43,MATCH($B143,'Damage costs'!$C$16:$C$43,0))/1000,U58*INDEX('Damage costs'!$Y$16:$Y$43,MATCH($B143,'Damage costs'!$C$16:$C$43,0))/1000),\"\")","v":""},{"$f":"IFERROR(IF(OR($C$144=FALSE,LEFT($B143,3)<>\"NOX\"),V58*INDEX('Damage costs'!$U$16:$U$43,MATCH($B143,'Damage costs'!$C$16:$C$43,0))/1000,V58*INDEX('Damage costs'!$Y$16:$Y$43,MATCH($B143,'Damage costs'!$C$16:$C$43,0))/1000),\"\")","v":""},{"$f":"IFERROR(IF(OR($C$144=FALSE,LEFT($B143,3)<>\"NOX\"),W58*INDEX('Damage costs'!$U$16:$U$43,MATCH($B143,'Damage costs'!$C$16:$C$43,0))/1000,W58*INDEX('Damage costs'!$Y$16:$Y$43,MATCH($B143,'Damage costs'!$C$16:$C$43,0))/1000),\"\")","v":""},{"$f":"IFERROR(IF(OR($C$144=FALSE,LEFT($B143,3)<>\"NOX\"),X58*INDEX('Damage costs'!$U$16:$U$43,MATCH($B143,'Damage costs'!$C$16:$C$43,0))/1000,X58*INDEX('Damage costs'!$Y$16:$Y$43,MATCH($B143,'Damage costs'!$C$16:$C$43,0))/1000),\"\")","v":""},{"$f":"IFERROR(IF(OR($C$144=FALSE,LEFT($B143,3)<>\"NOX\"),Y58*INDEX('Damage costs'!$U$16:$U$43,MATCH($B143,'Damage costs'!$C$16:$C$43,0))/1000,Y58*INDEX('Damage costs'!$Y$16:$Y$43,MATCH($B143,'Damage costs'!$C$16:$C$43,0))/1000),\"\")","v":""},{"$f":"IFERROR(IF(OR($C$144=FALSE,LEFT($B143,3)<>\"NOX\"),Z58*INDEX('Damage costs'!$U$16:$U$43,MATCH($B143,'Damage costs'!$C$16:$C$43,0))/1000,Z58*INDEX('Damage costs'!$Y$16:$Y$43,MATCH($B143,'Damage costs'!$C$16:$C$43,0))/1000),\"\")","v":""},{"$f":"IFERROR(IF(OR($C$144=FALSE,LEFT($B143,3)<>\"NOX\"),AA58*INDEX('Damage costs'!$U$16:$U$43,MATCH($B143,'Damage costs'!$C$16:$C$43,0))/1000,AA58*INDEX('Damage costs'!$Y$16:$Y$43,MATCH($B143,'Damage costs'!$C$16:$C$43,0))/1000),\"\")","v":""},{"$f":"IFERROR(IF(OR($C$144=FALSE,LEFT($B143,3)<>\"NOX\"),AB58*INDEX('Damage costs'!$U$16:$U$43,MATCH($B143,'Damage costs'!$C$16:$C$43,0))/1000,AB58*INDEX('Damage costs'!$Y$16:$Y$43,MATCH($B143,'Damage costs'!$C$16:$C$43,0))/1000),\"\")","v":""},{"$f":"IFERROR(IF(OR($C$144=FALSE,LEFT($B143,3)<>\"NOX\"),AC58*INDEX('Damage costs'!$U$16:$U$43,MATCH($B143,'Damage costs'!$C$16:$C$43,0))/1000,AC58*INDEX('Damage costs'!$Y$16:$Y$43,MATCH($B143,'Damage costs'!$C$16:$C$43,0))/1000),\"\")","v":""},{"$f":"IFERROR(IF(OR($C$144=FALSE,LEFT($B143,3)<>\"NOX\"),AD58*INDEX('Damage costs'!$U$16:$U$43,MATCH($B143,'Damage costs'!$C$16:$C$43,0))/1000,AD58*INDEX('Damage costs'!$Y$16:$Y$43,MATCH($B143,'Damage costs'!$C$16:$C$43,0))/1000),\"\")","v":""},{"$f":"IFERROR(IF(OR($C$144=FALSE,LEFT($B143,3)<>\"NOX\"),AE58*INDEX('Damage costs'!$U$16:$U$43,MATCH($B143,'Damage costs'!$C$16:$C$43,0))/1000,AE58*INDEX('Damage costs'!$Y$16:$Y$43,MATCH($B143,'Damage costs'!$C$16:$C$43,0))/1000),\"\")","v":""},{"$f":"IFERROR(IF(OR($C$144=FALSE,LEFT($B143,3)<>\"NOX\"),AF58*INDEX('Damage costs'!$U$16:$U$43,MATCH($B143,'Damage costs'!$C$16:$C$43,0))/1000,AF58*INDEX('Damage costs'!$Y$16:$Y$43,MATCH($B143,'Damage costs'!$C$16:$C$43,0))/1000),\"\")","v":""},{"$f":"IFERROR(IF(OR($C$144=FALSE,LEFT($B143,3)<>\"NOX\"),AG58*INDEX('Damage costs'!$U$16:$U$43,MATCH($B143,'Damage costs'!$C$16:$C$43,0))/1000,AG58*INDEX('Damage costs'!$Y$16:$Y$43,MATCH($B143,'Damage costs'!$C$16:$C$43,0))/1000),\"\")","v":""},{"$f":"IFERROR(IF(OR($C$144=FALSE,LEFT($B143,3)<>\"NOX\"),AH58*INDEX('Damage costs'!$U$16:$U$43,MATCH($B143,'Damage costs'!$C$16:$C$43,0))/1000,AH58*INDEX('Damage costs'!$Y$16:$Y$43,MATCH($B143,'Damage costs'!$C$16:$C$43,0))/1000),\"\")","v":""},{"$f":"IFERROR(IF(OR($C$144=FALSE,LEFT($B143,3)<>\"NOX\"),AI58*INDEX('Damage costs'!$U$16:$U$43,MATCH($B143,'Damage costs'!$C$16:$C$43,0))/1000,AI58*INDEX('Damage costs'!$Y$16:$Y$43,MATCH($B143,'Damage costs'!$C$16:$C$43,0))/1000),\"\")","v":""},{"$f":"IFERROR(IF(OR($C$144=FALSE,LEFT($B143,3)<>\"NOX\"),AJ58*INDEX('Damage costs'!$U$16:$U$43,MATCH($B143,'Damage costs'!$C$16:$C$43,0))/1000,AJ58*INDEX('Damage costs'!$Y$16:$Y$43,MATCH($B143,'Damage costs'!$C$16:$C$43,0))/1000),\"\")","v":""},{"$f":"IFERROR(IF(OR($C$144=FALSE,LEFT($B143,3)<>\"NOX\"),AK58*INDEX('Damage costs'!$U$16:$U$43,MATCH($B143,'Damage costs'!$C$16:$C$43,0))/1000,AK58*INDEX('Damage costs'!$Y$16:$Y$43,MATCH($B143,'Damage costs'!$C$16:$C$43,0))/1000),\"\")","v":""},{"$f":"IFERROR(IF(OR($C$144=FALSE,LEFT($B143,3)<>\"NOX\"),AL58*INDEX('Damage costs'!$U$16:$U$43,MATCH($B143,'Damage costs'!$C$16:$C$43,0))/1000,AL58*INDEX('Damage costs'!$Y$16:$Y$43,MATCH($B143,'Damage costs'!$C$16:$C$43,0))/1000),\"\")","v":""},{"$f":"IFERROR(IF(OR($C$144=FALSE,LEFT($B143,3)<>\"NOX\"),AM58*INDEX('Damage costs'!$U$16:$U$43,MATCH($B143,'Damage costs'!$C$16:$C$43,0))/1000,AM58*INDEX('Damage costs'!$Y$16:$Y$43,MATCH($B143,'Damage costs'!$C$16:$C$43,0))/1000),\"\")","v":""},{"$f":"IFERROR(IF(OR($C$144=FALSE,LEFT($B143,3)<>\"NOX\"),AN58*INDEX('Damage costs'!$U$16:$U$43,MATCH($B143,'Damage costs'!$C$16:$C$43,0))/1000,AN58*INDEX('Damage costs'!$Y$16:$Y$43,MATCH($B143,'Damage costs'!$C$16:$C$43,0))/1000),\"\")","v":""},{"$f":"IFERROR(IF(OR($C$144=FALSE,LEFT($B143,3)<>\"NOX\"),AO58*INDEX('Damage costs'!$U$16:$U$43,MATCH($B143,'Damage costs'!$C$16:$C$43,0))/1000,AO58*INDEX('Damage costs'!$Y$16:$Y$43,MATCH($B143,'Damage costs'!$C$16:$C$43,0))/1000),\"\")","v":""},{"$f":"IFERROR(IF(OR($C$144=FALSE,LEFT($B143,3)<>\"NOX\"),AP58*INDEX('Damage costs'!$U$16:$U$43,MATCH($B143,'Damage costs'!$C$16:$C$43,0))/1000,AP58*INDEX('Damage costs'!$Y$16:$Y$43,MATCH($B143,'Damage costs'!$C$16:$C$43,0))/1000),\"\")","v":""},{"$f":"IFERROR(IF(OR($C$144=FALSE,LEFT($B143,3)<>\"NOX\"),AQ58*INDEX('Damage costs'!$U$16:$U$43,MATCH($B143,'Damage costs'!$C$16:$C$43,0))/1000,AQ58*INDEX('Damage costs'!$Y$16:$Y$43,MATCH($B143,'Damage costs'!$C$16:$C$43,0))/1000),\"\")","v":""},{"$f":"IFERROR(IF(OR($C$144=FALSE,LEFT($B143,3)<>\"NOX\"),AR58*INDEX('Damage costs'!$U$16:$U$43,MATCH($B143,'Damage costs'!$C$16:$C$43,0))/1000,AR58*INDEX('Damage costs'!$Y$16:$Y$43,MATCH($B143,'Damage costs'!$C$16:$C$43,0))/1000),\"\")","v":""},{"$f":"IFERROR(IF(OR($C$144=FALSE,LEFT($B143,3)<>\"NOX\"),AS58*INDEX('Damage costs'!$U$16:$U$43,MATCH($B143,'Damage costs'!$C$16:$C$43,0))/1000,AS58*INDEX('Damage costs'!$Y$16:$Y$43,MATCH($B143,'Damage costs'!$C$16:$C$43,0))/1000),\"\")","v":""},{"$f":"IFERROR(IF(OR($C$144=FALSE,LEFT($B143,3)<>\"NOX\"),AT58*INDEX('Damage costs'!$U$16:$U$43,MATCH($B143,'Damage costs'!$C$16:$C$43,0))/1000,AT58*INDEX('Damage costs'!$Y$16:$Y$43,MATCH($B143,'Damage costs'!$C$16:$C$43,0))/1000),\"\")","v":""},{"$f":"IFERROR(IF(OR($C$144=FALSE,LEFT($B143,3)<>\"NOX\"),AU58*INDEX('Damage costs'!$U$16:$U$43,MATCH($B143,'Damage costs'!$C$16:$C$43,0))/1000,AU58*INDEX('Damage costs'!$Y$16:$Y$43,MATCH($B143,'Damage costs'!$C$16:$C$43,0))/1000),\"\")","v":""},{"$f":"IFERROR(IF(OR($C$144=FALSE,LEFT($B143,3)<>\"NOX\"),AV58*INDEX('Damage costs'!$U$16:$U$43,MATCH($B143,'Damage costs'!$C$16:$C$43,0))/1000,AV58*INDEX('Damage costs'!$Y$16:$Y$43,MATCH($B143,'Damage costs'!$C$16:$C$43,0))/1000),\"\")","v":""},{"$f":"IFERROR(IF(OR($C$144=FALSE,LEFT($B143,3)<>\"NOX\"),AW58*INDEX('Damage costs'!$U$16:$U$43,MATCH($B143,'Damage costs'!$C$16:$C$43,0))/1000,AW58*INDEX('Damage costs'!$Y$16:$Y$43,MATCH($B143,'Damage costs'!$C$16:$C$43,0))/1000),\"\")","v":""},{"$f":"IFERROR(IF(OR($C$144=FALSE,LEFT($B143,3)<>\"NOX\"),AX58*INDEX('Damage costs'!$U$16:$U$43,MATCH($B143,'Damage costs'!$C$16:$C$43,0))/1000,AX58*INDEX('Damage costs'!$Y$16:$Y$43,MATCH($B143,'Damage costs'!$C$16:$C$43,0))/1000),\"\")","v":""},{"$f":"IFERROR(IF(OR($C$144=FALSE,LEFT($B143,3)<>\"NOX\"),AY58*INDEX('Damage costs'!$U$16:$U$43,MATCH($B143,'Damage costs'!$C$16:$C$43,0))/1000,AY58*INDEX('Damage costs'!$Y$16:$Y$43,MATCH($B143,'Damage costs'!$C$16:$C$43,0))/1000),\"\")","v":""},{"$f":"IFERROR(IF(OR($C$144=FALSE,LEFT($B143,3)<>\"NOX\"),AZ58*INDEX('Damage costs'!$U$16:$U$43,MATCH($B143,'Damage costs'!$C$16:$C$43,0))/1000,AZ58*INDEX('Damage costs'!$Y$16:$Y$43,MATCH($B143,'Damage costs'!$C$16:$C$43,0))/1000),\"\")","v":""},{"$f":"IFERROR(IF(OR($C$144=FALSE,LEFT($B143,3)<>\"NOX\"),BA58*INDEX('Damage costs'!$U$16:$U$43,MATCH($B143,'Damage costs'!$C$16:$C$43,0))/1000,BA58*INDEX('Damage costs'!$Y$16:$Y$43,MATCH($B143,'Damage costs'!$C$16:$C$43,0))/1000),\"\")","v":""},{"$f":"IFERROR(IF(OR($C$144=FALSE,LEFT($B143,3)<>\"NOX\"),BB58*INDEX('Damage costs'!$U$16:$U$43,MATCH($B143,'Damage costs'!$C$16:$C$43,0))/1000,BB58*INDEX('Damage costs'!$Y$16:$Y$43,MATCH($B143,'Damage costs'!$C$16:$C$43,0))/1000),\"\")","v":""},{"$f":"IFERROR(IF(OR($C$144=FALSE,LEFT($B143,3)<>\"NOX\"),BC58*INDEX('Damage costs'!$U$16:$U$43,MATCH($B143,'Damage costs'!$C$16:$C$43,0))/1000,BC58*INDEX('Damage costs'!$Y$16:$Y$43,MATCH($B143,'Damage costs'!$C$16:$C$43,0))/1000),\"\")","v":""},{"$f":"IFERROR(IF(OR($C$144=FALSE,LEFT($B143,3)<>\"NOX\"),BD58*INDEX('Damage costs'!$U$16:$U$43,MATCH($B143,'Damage costs'!$C$16:$C$43,0))/1000,BD58*INDEX('Damage costs'!$Y$16:$Y$43,MATCH($B143,'Damage costs'!$C$16:$C$43,0))/1000),\"\")","v":""},{"$f":"IFERROR(IF(OR($C$144=FALSE,LEFT($B143,3)<>\"NOX\"),BE58*INDEX('Damage costs'!$U$16:$U$43,MATCH($B143,'Damage costs'!$C$16:$C$43,0))/1000,BE58*INDEX('Damage costs'!$Y$16:$Y$43,MATCH($B143,'Damage costs'!$C$16:$C$43,0))/1000),\"\")","v":""},{"$f":"IFERROR(IF(OR($C$144=FALSE,LEFT($B143,3)<>\"NOX\"),BF58*INDEX('Damage costs'!$U$16:$U$43,MATCH($B143,'Damage costs'!$C$16:$C$43,0))/1000,BF58*INDEX('Damage costs'!$Y$16:$Y$43,MATCH($B143,'Damage costs'!$C$16:$C$43,0))/1000),\"\")","v":""},{"$f":"IFERROR(IF(OR($C$144=FALSE,LEFT($B143,3)<>\"NOX\"),BG58*INDEX('Damage costs'!$U$16:$U$43,MATCH($B143,'Damage costs'!$C$16:$C$43,0))/1000,BG58*INDEX('Damage costs'!$Y$16:$Y$43,MATCH($B143,'Damage costs'!$C$16:$C$43,0))/1000),\"\")","v":""},{"$f":"IFERROR(IF(OR($C$144=FALSE,LEFT($B143,3)<>\"NOX\"),BH58*INDEX('Damage costs'!$U$16:$U$43,MATCH($B143,'Damage costs'!$C$16:$C$43,0))/1000,BH58*INDEX('Damage costs'!$Y$16:$Y$43,MATCH($B143,'Damage costs'!$C$16:$C$43,0))/1000),\"\")","v":""},{"$f":"IFERROR(IF(OR($C$144=FALSE,LEFT($B143,3)<>\"NOX\"),BI58*INDEX('Damage costs'!$U$16:$U$43,MATCH($B143,'Damage costs'!$C$16:$C$43,0))/1000,BI58*INDEX('Damage costs'!$Y$16:$Y$43,MATCH($B143,'Damage costs'!$C$16:$C$43,0))/1000),\"\")","v":""},{"$f":"IFERROR(IF(OR($C$144=FALSE,LEFT($B143,3)<>\"NOX\"),BJ58*INDEX('Damage costs'!$U$16:$U$43,MATCH($B143,'Damage costs'!$C$16:$C$43,0))/1000,BJ58*INDEX('Damage costs'!$Y$16:$Y$43,MATCH($B143,'Damage costs'!$C$16:$C$43,0))/1000),\"\")","v":""},{"$f":"IFERROR(IF(OR($C$144=FALSE,LEFT($B143,3)<>\"NOX\"),BK58*INDEX('Damage costs'!$U$16:$U$43,MATCH($B143,'Damage costs'!$C$16:$C$43,0))/1000,BK58*INDEX('Damage costs'!$Y$16:$Y$43,MATCH($B143,'Damage costs'!$C$16:$C$43,0))/1000),\"\")","v":""},{"$f":"IFERROR(IF(OR($C$144=FALSE,LEFT($B143,3)<>\"NOX\"),BL58*INDEX('Damage costs'!$U$16:$U$43,MATCH($B143,'Damage costs'!$C$16:$C$43,0))/1000,BL58*INDEX('Damage costs'!$Y$16:$Y$43,MATCH($B143,'Damage costs'!$C$16:$C$43,0))/1000),\"\")","v":""},{"$f":"IFERROR(IF(OR($C$144=FALSE,LEFT($B143,3)<>\"NOX\"),BM58*INDEX('Damage costs'!$U$16:$U$43,MATCH($B143,'Damage costs'!$C$16:$C$43,0))/1000,BM58*INDEX('Damage costs'!$Y$16:$Y$43,MATCH($B143,'Damage costs'!$C$16:$C$43,0))/1000),\"\")","v":""},{"$f":"IFERROR(IF(OR($C$144=FALSE,LEFT($B143,3)<>\"NOX\"),BN58*INDEX('Damage costs'!$U$16:$U$43,MATCH($B143,'Damage costs'!$C$16:$C$43,0))/1000,BN58*INDEX('Damage costs'!$Y$16:$Y$43,MATCH($B143,'Damage costs'!$C$16:$C$43,0))/1000),\"\")","v":""},{"$f":"IFERROR(IF(OR($C$144=FALSE,LEFT($B143,3)<>\"NOX\"),BO58*INDEX('Damage costs'!$U$16:$U$43,MATCH($B143,'Damage costs'!$C$16:$C$43,0))/1000,BO58*INDEX('Damage costs'!$Y$16:$Y$43,MATCH($B143,'Damage costs'!$C$16:$C$43,0))/1000),\"\")","v":""},{"$f":"IFERROR(IF(OR($C$144=FALSE,LEFT($B143,3)<>\"NOX\"),BP58*INDEX('Damage costs'!$U$16:$U$43,MATCH($B143,'Damage costs'!$C$16:$C$43,0))/1000,BP58*INDEX('Damage costs'!$Y$16:$Y$43,MATCH($B143,'Damage costs'!$C$16:$C$43,0))/1000),\"\")","v":""},{"$f":"IFERROR(IF(OR($C$144=FALSE,LEFT($B143,3)<>\"NOX\"),BQ58*INDEX('Damage costs'!$U$16:$U$43,MATCH($B143,'Damage costs'!$C$16:$C$43,0))/1000,BQ58*INDEX('Damage costs'!$Y$16:$Y$43,MATCH($B143,'Damage costs'!$C$16:$C$43,0))/1000),\"\")","v":""},{"$f":"IFERROR(IF(OR($C$144=FALSE,LEFT($B143,3)<>\"NOX\"),BR58*INDEX('Damage costs'!$U$16:$U$43,MATCH($B143,'Damage costs'!$C$16:$C$43,0))/1000,BR58*INDEX('Damage costs'!$Y$16:$Y$43,MATCH($B143,'Damage costs'!$C$16:$C$43,0))/1000),\"\")","v":""},{"$f":"IFERROR(IF(OR($C$144=FALSE,LEFT($B143,3)<>\"NOX\"),BS58*INDEX('Damage costs'!$U$16:$U$43,MATCH($B143,'Damage costs'!$C$16:$C$43,0))/1000,BS58*INDEX('Damage costs'!$Y$16:$Y$43,MATCH($B143,'Damage costs'!$C$16:$C$43,0))/1000),\"\")","v":""},{"$f":"IFERROR(IF(OR($C$144=FALSE,LEFT($B143,3)<>\"NOX\"),BT58*INDEX('Damage costs'!$U$16:$U$43,MATCH($B143,'Damage costs'!$C$16:$C$43,0))/1000,BT58*INDEX('Damage costs'!$Y$16:$Y$43,MATCH($B143,'Damage costs'!$C$16:$C$43,0))/1000),\"\")","v":""},{"$f":"IFERROR(IF(OR($C$144=FALSE,LEFT($B143,3)<>\"NOX\"),BU58*INDEX('Damage costs'!$U$16:$U$43,MATCH($B143,'Damage costs'!$C$16:$C$43,0))/1000,BU58*INDEX('Damage costs'!$Y$16:$Y$43,MATCH($B143,'Damage costs'!$C$16:$C$43,0))/1000),\"\")","v":""},{"$f":"IFERROR(IF(OR($C$144=FALSE,LEFT($B143,3)<>\"NOX\"),BV58*INDEX('Damage costs'!$U$16:$U$43,MATCH($B143,'Damage costs'!$C$16:$C$43,0))/1000,BV58*INDEX('Damage costs'!$Y$16:$Y$43,MATCH($B143,'Damage costs'!$C$16:$C$43,0))/1000),\"\")","v":""},{"$f":"IFERROR(IF(OR($C$144=FALSE,LEFT($B143,3)<>\"NOX\"),BW58*INDEX('Damage costs'!$U$16:$U$43,MATCH($B143,'Damage costs'!$C$16:$C$43,0))/1000,BW58*INDEX('Damage costs'!$Y$16:$Y$43,MATCH($B143,'Damage costs'!$C$16:$C$43,0))/1000),\"\")","v":""},{"$f":"IFERROR(IF(OR($C$144=FALSE,LEFT($B143,3)<>\"NOX\"),BX58*INDEX('Damage costs'!$U$16:$U$43,MATCH($B143,'Damage costs'!$C$16:$C$43,0))/1000,BX58*INDEX('Damage costs'!$Y$16:$Y$43,MATCH($B143,'Damage costs'!$C$16:$C$43,0))/1000),\"\")","v":""},{"$f":"IFERROR(IF(OR($C$144=FALSE,LEFT($B143,3)<>\"NOX\"),BY58*INDEX('Damage costs'!$U$16:$U$43,MATCH($B143,'Damage costs'!$C$16:$C$43,0))/1000,BY58*INDEX('Damage costs'!$Y$16:$Y$43,MATCH($B143,'Damage costs'!$C$16:$C$43,0))/1000),\"\")","v":""},{"$f":"IFERROR(IF(OR($C$144=FALSE,LEFT($B143,3)<>\"NOX\"),BZ58*INDEX('Damage costs'!$U$16:$U$43,MATCH($B143,'Damage costs'!$C$16:$C$43,0))/1000,BZ58*INDEX('Damage costs'!$Y$16:$Y$43,MATCH($B143,'Damage costs'!$C$16:$C$43,0))/1000),\"\")","v":""},{"$f":"IFERROR(IF(OR($C$144=FALSE,LEFT($B143,3)<>\"NOX\"),CA58*INDEX('Damage costs'!$U$16:$U$43,MATCH($B143,'Damage costs'!$C$16:$C$43,0))/1000,CA58*INDEX('Damage costs'!$Y$16:$Y$43,MATCH($B143,'Damage costs'!$C$16:$C$43,0))/1000),\"\")","v":""},{"$f":"IFERROR(IF(OR($C$144=FALSE,LEFT($B143,3)<>\"NOX\"),CB58*INDEX('Damage costs'!$U$16:$U$43,MATCH($B143,'Damage costs'!$C$16:$C$43,0))/1000,CB58*INDEX('Damage costs'!$Y$16:$Y$43,MATCH($B143,'Damage costs'!$C$16:$C$43,0))/1000),\"\")","v":""},{"$f":"IFERROR(IF(OR($C$144=FALSE,LEFT($B143,3)<>\"NOX\"),CC58*INDEX('Damage costs'!$U$16:$U$43,MATCH($B143,'Damage costs'!$C$16:$C$43,0))/1000,CC58*INDEX('Damage costs'!$Y$16:$Y$43,MATCH($B143,'Damage costs'!$C$16:$C$43,0))/1000),\"\")","v":""},{"$f":"IFERROR(IF(OR($C$144=FALSE,LEFT($B143,3)<>\"NOX\"),CD58*INDEX('Damage costs'!$U$16:$U$43,MATCH($B143,'Damage costs'!$C$16:$C$43,0))/1000,CD58*INDEX('Damage costs'!$Y$16:$Y$43,MATCH($B143,'Damage costs'!$C$16:$C$43,0))/1000),\"\")","v":""},{"$f":"IFERROR(IF(OR($C$144=FALSE,LEFT($B143,3)<>\"NOX\"),CE58*INDEX('Damage costs'!$U$16:$U$43,MATCH($B143,'Damage costs'!$C$16:$C$43,0))/1000,CE58*INDEX('Damage costs'!$Y$16:$Y$43,MATCH($B143,'Damage costs'!$C$16:$C$43,0))/1000),\"\")","v":""},{"$f":"IFERROR(IF(OR($C$144=FALSE,LEFT($B143,3)<>\"NOX\"),CF58*INDEX('Damage costs'!$U$16:$U$43,MATCH($B143,'Damage costs'!$C$16:$C$43,0))/1000,CF58*INDEX('Damage costs'!$Y$16:$Y$43,MATCH($B143,'Damage costs'!$C$16:$C$43,0))/1000),\"\")","v":""},{"$f":"IFERROR(IF(OR($C$144=FALSE,LEFT($B143,3)<>\"NOX\"),CG58*INDEX('Damage costs'!$U$16:$U$43,MATCH($B143,'Damage costs'!$C$16:$C$43,0))/1000,CG58*INDEX('Damage costs'!$Y$16:$Y$43,MATCH($B143,'Damage costs'!$C$16:$C$43,0))/1000),\"\")","v":""},{"$f":"IFERROR(IF(OR($C$144=FALSE,LEFT($B143,3)<>\"NOX\"),CH58*INDEX('Damage costs'!$U$16:$U$43,MATCH($B143,'Damage costs'!$C$16:$C$43,0))/1000,CH58*INDEX('Damage costs'!$Y$16:$Y$43,MATCH($B143,'Damage costs'!$C$16:$C$43,0))/1000),\"\")","v":""},{"$f":"IFERROR(IF(OR($C$144=FALSE,LEFT($B143,3)<>\"NOX\"),CI58*INDEX('Damage costs'!$U$16:$U$43,MATCH($B143,'Damage costs'!$C$16:$C$43,0))/1000,CI58*INDEX('Damage costs'!$Y$16:$Y$43,MATCH($B143,'Damage costs'!$C$16:$C$43,0))/1000),\"\")","v":""},{"$f":"IFERROR(IF(OR($C$144=FALSE,LEFT($B143,3)<>\"NOX\"),CJ58*INDEX('Damage costs'!$U$16:$U$43,MATCH($B143,'Damage costs'!$C$16:$C$43,0))/1000,CJ58*INDEX('Damage costs'!$Y$16:$Y$43,MATCH($B143,'Damage costs'!$C$16:$C$43,0))/1000),\"\")","v":""},{"$f":"IFERROR(IF(OR($C$144=FALSE,LEFT($B143,3)<>\"NOX\"),CK58*INDEX('Damage costs'!$U$16:$U$43,MATCH($B143,'Damage costs'!$C$16:$C$43,0))/1000,CK58*INDEX('Damage costs'!$Y$16:$Y$43,MATCH($B143,'Damage costs'!$C$16:$C$43,0))/1000),\"\")","v":""},{"$f":"IFERROR(IF(OR($C$144=FALSE,LEFT($B143,3)<>\"NOX\"),CL58*INDEX('Damage costs'!$U$16:$U$43,MATCH($B143,'Damage costs'!$C$16:$C$43,0))/1000,CL58*INDEX('Damage costs'!$Y$16:$Y$43,MATCH($B143,'Damage costs'!$C$16:$C$43,0))/1000),\"\")","v":""},{"$f":"IFERROR(IF(OR($C$144=FALSE,LEFT($B143,3)<>\"NOX\"),CM58*INDEX('Damage costs'!$U$16:$U$43,MATCH($B143,'Damage costs'!$C$16:$C$43,0))/1000,CM58*INDEX('Damage costs'!$Y$16:$Y$43,MATCH($B143,'Damage costs'!$C$16:$C$43,0))/1000),\"\")","v":""},{"$f":"IFERROR(IF(OR($C$144=FALSE,LEFT($B143,3)<>\"NOX\"),CN58*INDEX('Damage costs'!$U$16:$U$43,MATCH($B143,'Damage costs'!$C$16:$C$43,0))/1000,CN58*INDEX('Damage costs'!$Y$16:$Y$43,MATCH($B143,'Damage costs'!$C$16:$C$43,0))/1000),\"\")","v":""},{"$f":"IFERROR(IF(OR($C$144=FALSE,LEFT($B143,3)<>\"NOX\"),CO58*INDEX('Damage costs'!$U$16:$U$43,MATCH($B143,'Damage costs'!$C$16:$C$43,0))/1000,CO58*INDEX('Damage costs'!$Y$16:$Y$43,MATCH($B143,'Damage costs'!$C$16:$C$43,0))/1000),\"\")","v":""},{"$f":"IFERROR(IF(OR($C$144=FALSE,LEFT($B143,3)<>\"NOX\"),CP58*INDEX('Damage costs'!$U$16:$U$43,MATCH($B143,'Damage costs'!$C$16:$C$43,0))/1000,CP58*INDEX('Damage costs'!$Y$16:$Y$43,MATCH($B143,'Damage costs'!$C$16:$C$43,0))/1000),\"\")","v":""},{"$f":"IFERROR(IF(OR($C$144=FALSE,LEFT($B143,3)<>\"NOX\"),CQ58*INDEX('Damage costs'!$U$16:$U$43,MATCH($B143,'Damage costs'!$C$16:$C$43,0))/1000,CQ58*INDEX('Damage costs'!$Y$16:$Y$43,MATCH($B143,'Damage costs'!$C$16:$C$43,0))/1000),\"\")","v":""},{"$f":"IFERROR(IF(OR($C$144=FALSE,LEFT($B143,3)<>\"NOX\"),CR58*INDEX('Damage costs'!$U$16:$U$43,MATCH($B143,'Damage costs'!$C$16:$C$43,0))/1000,CR58*INDEX('Damage costs'!$Y$16:$Y$43,MATCH($B143,'Damage costs'!$C$16:$C$43,0))/1000),\"\")","v":""},{"$f":"IFERROR(IF(OR($C$144=FALSE,LEFT($B143,3)<>\"NOX\"),CS58*INDEX('Damage costs'!$U$16:$U$43,MATCH($B143,'Damage costs'!$C$16:$C$43,0))/1000,CS58*INDEX('Damage costs'!$Y$16:$Y$43,MATCH($B143,'Damage costs'!$C$16:$C$43,0))/1000),\"\")","v":""},{"$f":"IFERROR(IF(OR($C$144=FALSE,LEFT($B143,3)<>\"NOX\"),CT58*INDEX('Damage costs'!$U$16:$U$43,MATCH($B143,'Damage costs'!$C$16:$C$43,0))/1000,CT58*INDEX('Damage costs'!$Y$16:$Y$43,MATCH($B143,'Damage costs'!$C$16:$C$43,0))/1000),\"\")","v":""},{"$f":"IFERROR(IF(OR($C$144=FALSE,LEFT($B143,3)<>\"NOX\"),CU58*INDEX('Damage costs'!$U$16:$U$43,MATCH($B143,'Damage costs'!$C$16:$C$43,0))/1000,CU58*INDEX('Damage costs'!$Y$16:$Y$43,MATCH($B143,'Damage costs'!$C$16:$C$43,0))/1000),\"\")","v":""},{"$f":"IFERROR(IF(OR($C$144=FALSE,LEFT($B143,3)<>\"NOX\"),CV58*INDEX('Damage costs'!$U$16:$U$43,MATCH($B143,'Damage costs'!$C$16:$C$43,0))/1000,CV58*INDEX('Damage costs'!$Y$16:$Y$43,MATCH($B143,'Damage costs'!$C$16:$C$43,0))/1000),\"\")","v":""},{"$f":"IFERROR(IF(OR($C$144=FALSE,LEFT($B143,3)<>\"NOX\"),CW58*INDEX('Damage costs'!$U$16:$U$43,MATCH($B143,'Damage costs'!$C$16:$C$43,0))/1000,CW58*INDEX('Damage costs'!$Y$16:$Y$43,MATCH($B143,'Damage costs'!$C$16:$C$43,0))/1000),\"\")","v":""},{"$f":"IFERROR(IF(OR($C$144=FALSE,LEFT($B143,3)<>\"NOX\"),CX58*INDEX('Damage costs'!$U$16:$U$43,MATCH($B143,'Damage costs'!$C$16:$C$43,0))/1000,CX58*INDEX('Damage costs'!$Y$16:$Y$43,MATCH($B143,'Damage costs'!$C$16:$C$43,0))/1000),\"\")","v":""},{"$f":"IFERROR(IF(OR($C$144=FALSE,LEFT($B143,3)<>\"NOX\"),CY58*INDEX('Damage costs'!$U$16:$U$43,MATCH($B143,'Damage costs'!$C$16:$C$43,0))/1000,CY58*INDEX('Damage costs'!$Y$16:$Y$43,MATCH($B143,'Damage costs'!$C$16:$C$43,0))/1000),\"\")","v":""}]
[null,"PM10 Used",{"$f":"IF(OR(LEFT(B138,4)=\"PM10\",LEFT(B139,4)=\"PM10\",LEFT(B140,4)=\"PM10\",LEFT(B141,4)=\"PM10\",LEFT(B142,4)=\"PM10\",LEFT(B143,4)=\"PM10\"),TRUE,FALSE)","v":false}]
[]
[null,"Uplift pa","%",{"$f":"'Discount and deflators'!$H$5","v":0.02}]
[null,"Uplift factor",null,{"$f":"IF(D$6=0,0,(1+$D146)^(D$6-'Data Input - General'!$F$22))","v":1},{"$f":"IF(E$6=0,0,(1+$D146)^(E$6-'Data Input - General'!$F$22))","v":1.02},{"$f":"IF(F$6=0,0,(1+$D146)^(F$6-'Data Input - General'!$F$22))","v":1.0404},{"$f":"IF(G$6=0,0,(1+$D146)^(G$6-'Data Input - General'!$F$22))","v":1.0612079999999999},{"$f":"IF(H$6=0,0,(1+$D146)^(H$6-'Data Input - General'!$F$22))","v":1.08243216},{"$f":"IF(I$6=0,0,(1+$D146)^(I$6-'Data Input - General'!$F$22))","v":1.1040808032},{"$f":"IF(J$6=0,0,(1+$D146)^(J$6-'Data Input - General'!$F$22))","v":1.1261624192640001},{"$f":"IF(K$6=0,0,(1+$D146)^(K$6-'Data Input - General'!$F$22))","v":1.1486856676492798},{"$f":"IF(L$6=0,0,(1+$D146)^(L$6-'Data Input - General'!$F$22))","v":1.1716593810022655},{"$f":"IF(M$6=0,0,(1+$D146)^(M$6-'Data Input - General'!$F$22))","v":1.1950925686223108},{"$f":"IF(N$6=0,0,(1+$D146)^(N$6-'Data Input - General'!$F$22))","v":1.2189944199947571},{"$f":"IF(O$6=0,0,(1+$D146)^(O$6-'Data Input - General'!$F$22))","v":1.243374308394652},{"$f":"IF(P$6=0,0,(1+$D146)^(P$6-'Data Input - General'!$F$22))","v":1.2682417945625453},{"$f":"IF(Q$6=0,0,(1+$D146)^(Q$6-'Data Input - General'!$F$22))","v":1.2936066304537961},{"$f":"IF(R$6=0,0,(1+$D146)^(R$6-'Data Input - General'!$F$22))","v":1.3194787630628722},{"$f":"IF(S$6=0,0,(1+$D146)^(S$6-'Data Input - General'!$F$22))","v":1.3458683383241292},{"$f":"IF(T$6=0,0,(1+$D146)^(T$6-'Data Input - General'!$F$22))","v":1.372785705090612},{"$f":"IF(U$6=0,0,(1+$D146)^(U$6-'Data Input - General'!$F$22))","v":1.4002414191924244},{"$f":"IF(V$6=0,0,(1+$D146)^(V$6-'Data Input - General'!$F$22))","v":1.4282462475762727},{"$f":"IF(W$6=0,0,(1+$D146)^(W$6-'Data Input - General'!$F$22))","v":1.4568111725277981},{"$f":"IF(X$6=0,0,(1+$D146)^(X$6-'Data Input - General'!$F$22))","v":1.4859473959783542},{"$f":"IF(Y$6=0,0,(1+$D146)^(Y$6-'Data Input - General'!$F$22))","v":1.5156663438979212},{"$f":"IF(Z$6=0,0,(1+$D146)^(Z$6-'Data Input - General'!$F$22))","v":1.5459796707758797},{"$f":"IF(AA$6=0,0,(1+$D146)^(AA$6-'Data Input - General'!$F$22))","v":1.576899264191397},{"$f":"IF(AB$6=0,0,(1+$D146)^(AB$6-'Data Input - General'!$F$22))","v":1.608437249475225},{"$f":"IF(AC$6=0,0,(1+$D146)^(AC$6-'Data Input - General'!$F$22))","v":1.6406059944647295},{"$f":"IF(AD$6=0,0,(1+$D146)^(AD$6-'Data Input - General'!$F$22))","v":1.6734181143540243},{"$f":"IF(AE$6=0,0,(1+$D146)^(AE$6-'Data Input - General'!$F$22))","v":1.7068864766411045},{"$f":"IF(AF$6=0,0,(1+$D146)^(AF$6-'Data Input - General'!$F$22))","v":1.7410242061739269},{"$f":"IF(AG$6=0,0,(1+$D146)^(AG$6-'Data Input - General'!$F$22))","v":1.7758446902974052},{"$f":"IF(AH$6=0,0,(1+$D146)^(AH$6-'Data Input - General'!$F$22))","v":1.8113615841033535},{"$f":"IF(AI$6=0,0,(1+$D146)^(AI$6-'Data Input - General'!$F$22))","v":0},{"$f":"IF(AJ$6=0,0,(1+$D146)^(AJ$6-'Data Input - General'!$F$22))","v":0},{"$f":"IF(AK$6=0,0,(1+$D146)^(AK$6-'Data Input - General'!$F$22))","v":0},{"$f":"IF(AL$6=0,0,(1+$D146)^(AL$6-'Data Input - General'!$F$22))","v":0},{"$f":"IF(AM$6=0,0,(1+$D146)^(AM$6-'Data Input - General'!$F$22))","v":0},{"$f":"IF(AN$6=0,0,(1+$D146)^(AN$6-'Data Input - General'!$F$22))","v":0},{"$f":"IF(AO$6=0,0,(1+$D146)^(AO$6-'Data Input - General'!$F$22))","v":0},{"$f":"IF(AP$6=0,0,(1+$D146)^(AP$6-'Data Input - General'!$F$22))","v":0},{"$f":"IF(AQ$6=0,0,(1+$D146)^(AQ$6-'Data Input - General'!$F$22))","v":0},{"$f":"IF(AR$6=0,0,(1+$D146)^(AR$6-'Data Input - General'!$F$22))","v":0},{"$f":"IF(AS$6=0,0,(1+$D146)^(AS$6-'Data Input - General'!$F$22))","v":0},{"$f":"IF(AT$6=0,0,(1+$D146)^(AT$6-'Data Input - General'!$F$22))","v":0},{"$f":"IF(AU$6=0,0,(1+$D146)^(AU$6-'Data Input - General'!$F$22))","v":0},{"$f":"IF(AV$6=0,0,(1+$D146)^(AV$6-'Data Input - General'!$F$22))","v":0},{"$f":"IF(AW$6=0,0,(1+$D146)^(AW$6-'Data Input - General'!$F$22))","v":0},{"$f":"IF(AX$6=0,0,(1+$D146)^(AX$6-'Data Input - General'!$F$22))","v":0},{"$f":"IF(AY$6=0,0,(1+$D146)^(AY$6-'Data Input - General'!$F$22))","v":0},{"$f":"IF(AZ$6=0,0,(1+$D146)^(AZ$6-'Data Input - General'!$F$22))","v":0},{"$f":"IF(BA$6=0,0,(1+$D146)^(BA$6-'Data Input - General'!$F$22))","v":0},{"$f":"IF(BB$6=0,0,(1+$D146)^(BB$6-'Data Input - General'!$F$22))","v":0},{"$f":"IF(BC$6=0,0,(1+$D146)^(BC$6-'Data Input - General'!$F$22))","v":0},{"$f":"IF(BD$6=0,0,(1+$D146)^(BD$6-'Data Input - General'!$F$22))","v":0},{"$f":"IF(BE$6=0,0,(1+$D146)^(BE$6-'Data Input - General'!$F$22))","v":0},{"$f":"IF(BF$6=0,0,(1+$D146)^(BF$6-'Data Input - General'!$F$22))","v":0},{"$f":"IF(BG$6=0,0,(1+$D146)^(BG$6-'Data Input - General'!$F$22))","v":0},{"$f":"IF(BH$6=0,0,(1+$D146)^(BH$6-'Data Input - General'!$F$22))","v":0},{"$f":"IF(BI$6=0,0,(1+$D146)^(BI$6-'Data Input - General'!$F$22))","v":0},{"$f":"IF(BJ$6=0,0,(1+$D146)^(BJ$6-'Data Input - General'!$F$22))","v":0},{"$f":"IF(BK$6=0,0,(1+$D146)^(BK$6-'Data Input - General'!$F$22))","v":0},{"$f":"IF(BL$6=0,0,(1+$D146)^(BL$6-'Data Input - General'!$F$22))","v":0},{"$f":"IF(BM$6=0,0,(1+$D146)^(BM$6-'Data Input - General'!$F$22))","v":0},{"$f":"IF(BN$6=0,0,(1+$D146)^(BN$6-'Data Input - General'!$F$22))","v":0},{"$f":"IF(BO$6=0,0,(1+$D146)^(BO$6-'Data Input - General'!$F$22))","v":0},{"$f":"IF(BP$6=0,0,(1+$D146)^(BP$6-'Data Input - General'!$F$22))","v":0},{"$f":"IF(BQ$6=0,0,(1+$D146)^(BQ$6-'Data Input - General'!$F$22))","v":0},{"$f":"IF(BR$6=0,0,(1+$D146)^(BR$6-'Data Input - General'!$F$22))","v":0},{"$f":"IF(BS$6=0,0,(1+$D146)^(BS$6-'Data Input - General'!$F$22))","v":0},{"$f":"IF(BT$6=0,0,(1+$D146)^(BT$6-'Data Input - General'!$F$22))","v":0},{"$f":"IF(BU$6=0,0,(1+$D146)^(BU$6-'Data Input - General'!$F$22))","v":0},{"$f":"IF(BV$6=0,0,(1+$D146)^(BV$6-'Data Input - General'!$F$22))","v":0},{"$f":"IF(BW$6=0,0,(1+$D146)^(BW$6-'Data Input - General'!$F$22))","v":0},{"$f":"IF(BX$6=0,0,(1+$D146)^(BX$6-'Data Input - General'!$F$22))","v":0},{"$f":"IF(BY$6=0,0,(1+$D146)^(BY$6-'Data Input - General'!$F$22))","v":0},{"$f":"IF(BZ$6=0,0,(1+$D146)^(BZ$6-'Data Input - General'!$F$22))","v":0},{"$f":"IF(CA$6=0,0,(1+$D146)^(CA$6-'Data Input - General'!$F$22))","v":0},{"$f":"IF(CB$6=0,0,(1+$D146)^(CB$6-'Data Input - General'!$F$22))","v":0},{"$f":"IF(CC$6=0,0,(1+$D146)^(CC$6-'Data Input - General'!$F$22))","v":0},{"$f":"IF(CD$6=0,0,(1+$D146)^(CD$6-'Data Input - General'!$F$22))","v":0},{"$f":"IF(CE$6=0,0,(1+$D146)^(CE$6-'Data Input - General'!$F$22))","v":0},{"$f":"IF(CF$6=0,0,(1+$D146)^(CF$6-'Data Input - General'!$F$22))","v":0},{"$f":"IF(CG$6=0,0,(1+$D146)^(CG$6-'Data Input - General'!$F$22))","v":0},{"$f":"IF(CH$6=0,0,(1+$D146)^(CH$6-'Data Input - General'!$F$22))","v":0},{"$f":"IF(CI$6=0,0,(1+$D146)^(CI$6-'Data Input - General'!$F$22))","v":0},{"$f":"IF(CJ$6=0,0,(1+$D146)^(CJ$6-'Data Input - General'!$F$22))","v":0},{"$f":"IF(CK$6=0,0,(1+$D146)^(CK$6-'Data Input - General'!$F$22))","v":0},{"$f":"IF(CL$6=0,0,(1+$D146)^(CL$6-'Data Input - General'!$F$22))","v":0},{"$f":"IF(CM$6=0,0,(1+$D146)^(CM$6-'Data Input - General'!$F$22))","v":0},{"$f":"IF(CN$6=0,0,(1+$D146)^(CN$6-'Data Input - General'!$F$22))","v":0},{"$f":"IF(CO$6=0,0,(1+$D146)^(CO$6-'Data Input - General'!$F$22))","v":0},{"$f":"IF(CP$6=0,0,(1+$D146)^(CP$6-'Data Input - General'!$F$22))","v":0},{"$f":"IF(CQ$6=0,0,(1+$D146)^(CQ$6-'Data Input - General'!$F$22))","v":0},{"$f":"IF(CR$6=0,0,(1+$D146)^(CR$6-'Data Input - General'!$F$22))","v":0},{"$f":"IF(CS$6=0,0,(1+$D146)^(CS$6-'Data Input - General'!$F$22))","v":0},{"$f":"IF(CT$6=0,0,(1+$D146)^(CT$6-'Data Input - General'!$F$22))","v":0},{"$f":"IF(CU$6=0,0,(1+$D146)^(CU$6-'Data Input - General'!$F$22))","v":0},{"$f":"IF(CV$6=0,0,(1+$D146)^(CV$6-'Data Input - General'!$F$22))","v":0},{"$f":"IF(CW$6=0,0,(1+$D146)^(CW$6-'Data Input - General'!$F$22))","v":0},{"$f":"IF(CX$6=0,0,(1+$D146)^(CX$6-'Data Input - General'!$F$22))","v":0},{"$f":"IF(CY$6=0,0,(1+$D146)^(CY$6-'Data Input - General'!$F$22))","v":0}]
[null,"Total value","£000's",{"$f":"SUM(D138:D143)*D147","v":19.20090116757984},{"$f":"SUM(E138:E143)*E147","v":19.584919190931437},{"$f":"SUM(F138:F143)*F147","v":19.976617574750065},20.376149926245066,5.528456997988811,5.639026137948588,5.75180666070756,5.8668427939217098,0,0,0,0,0,0,0,0,0,0,0,0,0,0,0,0,0,0,0,0,0,0,0,0,{"$f":"SUM(AJ138:AJ143)*AJ147","v":0},0,0,0,0,0,0,0,0,0,0,0,0,0,0,0,0,0,0,0,0,0,0,0,0,0,0,0,{"$f":"SUM(BL138:BL143)*BL147","v":0},0,0,0,0,0,0,0,0,0,0,0,0,0,0,0,0,0,0,0,0,0,0,0,0,0,0,0,0,0,0,0,0,0,0,0,0,0,0,0]
[null,"Discounted total value","£000's",{"$f":"D148*D$7","v":19.20090116757984},18.922627237614915,18.648386263156731,18.378119795574751,4.817730882063131,4.747908695366565,4.679098424419224,4.6112854037754669,0,0,0,0,0,0,0,0,0,0,0,0,0,0,0,0,0,0,0,0,0,0,0,0,0,0,0,0,0,0,0,0,0,0,0,0,0,0,0,0,0,0,0,0,0,0,0,0,0,0,0,0,0,0,0,0,{"$f":"BP148*BP$7","v":0},0,0,0,0,0,0,0,0,0,0,0,0,0,0,0,0,0,0,0,0,0,0,0,0,0,0,0,0,0,0,0,0,0,0,0]
[]
[null,"GHG emissions"]
[null,"Traded","tCO2e",{"$f":"D$80+IF('Data Input - General'!$F$10=\"Yes\",Calc_Proposed!D$81,0)+IF('Data Input - General'!$F$12=\"Yes\",Calc_Proposed!D$75,0)","v":86644.737608250056},{"$f":"E$80+IF('Data Input - General'!$F$10=\"Yes\",Calc_Proposed!E$81,0)+IF('Data Input - General'!$F$12=\"Yes\",Calc_Proposed!E$75,0)","v":86510.233175019355},{"$f":"F$80+IF('Data Input - General'!$F$10=\"Yes\",Calc_Proposed!F$81,0)+IF('Data Input - General'!$F$12=\"Yes\",Calc_Proposed!F$75,0)","v":86388.187501378605},{"$f":"G$80+IF('Data Input - General'!$F$10=\"Yes\",Calc_Proposed!G$81,0)+IF('Data Input - General'!$F$12=\"Yes\",Calc_Proposed!G$75,0)","v":86316.993984732529},{"$f":"H$80+IF('Data Input - General'!$F$10=\"Yes\",Calc_Proposed!H$81,0)+IF('Data Input - General'!$F$12=\"Yes\",Calc_Proposed!H$75,0)","v":86193.774664474651},{"$f":"I$80+IF('Data Input - General'!$F$10=\"Yes\",Calc_Proposed!I$81,0)+IF('Data Input - General'!$F$12=\"Yes\",Calc_Proposed!I$75,0)","v":86229.164858991426},{"$f":"J$80+IF('Data Input - General'!$F$10=\"Yes\",Calc_Proposed!J$81,0)+IF('Data Input - General'!$F$12=\"Yes\",Calc_Proposed!J$75,0)","v":86182.585839819963},{"$f":"K$80+IF('Data Input - General'!$F$10=\"Yes\",Calc_Proposed!K$81,0)+IF('Data Input - General'!$F$12=\"Yes\",Calc_Proposed!K$75,0)","v":86105.387885048549},{"$f":"L$80+IF('Data Input - General'!$F$10=\"Yes\",Calc_Proposed!L$81,0)+IF('Data Input - General'!$F$12=\"Yes\",Calc_Proposed!L$75,0)","v":0},{"$f":"M$80+IF('Data Input - General'!$F$10=\"Yes\",Calc_Proposed!M$81,0)+IF('Data Input - General'!$F$12=\"Yes\",Calc_Proposed!M$75,0)","v":0},{"$f":"N$80+IF('Data Input - General'!$F$10=\"Yes\",Calc_Proposed!N$81,0)+IF('Data Input - General'!$F$12=\"Yes\",Calc_Proposed!N$75,0)","v":0},{"$f":"O$80+IF('Data Input - General'!$F$10=\"Yes\",Calc_Proposed!O$81,0)+IF('Data Input - General'!$F$12=\"Yes\",Calc_Proposed!O$75,0)","v":0},{"$f":"P$80+IF('Data Input - General'!$F$10=\"Yes\",Calc_Proposed!P$81,0)+IF('Data Input - General'!$F$12=\"Yes\",Calc_Proposed!P$75,0)","v":0},{"$f":"Q$80+IF('Data Input - General'!$F$10=\"Yes\",Calc_Proposed!Q$81,0)+IF('Data Input - General'!$F$12=\"Yes\",Calc_Proposed!Q$75,0)","v":0},{"$f":"R$80+IF('Data Input - General'!$F$10=\"Yes\",Calc_Proposed!R$81,0)+IF('Data Input - General'!$F$12=\"Yes\",Calc_Proposed!R$75,0)","v":0},{"$f":"S$80+IF('Data Input - General'!$F$10=\"Yes\",Calc_Proposed!S$81,0)+IF('Data Input - General'!$F$12=\"Yes\",Calc_Proposed!S$75,0)","v":0},{"$f":"T$80+IF('Data Input - General'!$F$10=\"Yes\",Calc_Proposed!T$81,0)+IF('Data Input - General'!$F$12=\"Yes\",Calc_Proposed!T$75,0)","v":0},{"$f":"U$80+IF('Data Input - General'!$F$10=\"Yes\",Calc_Proposed!U$81,0)+IF('Data Input - General'!$F$12=\"Yes\",Calc_Proposed!U$75,0)","v":0},{"$f":"V$80+IF('Data Input - General'!$F$10=\"Yes\",Calc_Proposed!V$81,0)+IF('Data Input - General'!$F$12=\"Yes\",Calc_Proposed!V$75,0)","v":0},{"$f":"W$80+IF('Data Input - General'!$F$10=\"Yes\",Calc_Proposed!W$81,0)+IF('Data Input - General'!$F$12=\"Yes\",Calc_Proposed!W$75,0)","v":0},{"$f":"X$80+IF('Data Input - General'!$F$10=\"Yes\",Calc_Proposed!X$81,0)+IF('Data Input - General'!$F$12=\"Yes\",Calc_Proposed!X$75,0)","v":0},{"$f":"Y$80+IF('Data Input - General'!$F$10=\"Yes\",Calc_Proposed!Y$81,0)+IF('Data Input - General'!$F$12=\"Yes\",Calc_Proposed!Y$75,0)","v":0},{"$f":"Z$80+IF('Data Input - General'!$F$10=\"Yes\",Calc_Proposed!Z$81,0)+IF('Data Input - General'!$F$12=\"Yes\",Calc_Proposed!Z$75,0)","v":0},{"$f":"AA$80+IF('Data Input - General'!$F$10=\"Yes\",Calc_Proposed!AA$81,0)+IF('Data Input - General'!$F$12=\"Yes\",Calc_Proposed!AA$75,0)","v":0},{"$f":"AB$80+IF('Data Input - General'!$F$10=\"Yes\",Calc_Proposed!AB$81,0)+IF('Data Input - General'!$F$12=\"Yes\",Calc_Proposed!AB$75,0)","v":0},{"$f":"AC$80+IF('Data Input - General'!$F$10=\"Yes\",Calc_Proposed!AC$81,0)+IF('Data Input - General'!$F$12=\"Yes\",Calc_Proposed!AC$75,0)","v":0},{"$f":"AD$80+IF('Data Input - General'!$F$10=\"Yes\",Calc_Proposed!AD$81,0)+IF('Data Input - General'!$F$12=\"Yes\",Calc_Proposed!AD$75,0)","v":0},{"$f":"AE$80+IF('Data Input - General'!$F$10=\"Yes\",Calc_Proposed!AE$81,0)+IF('Data Input - General'!$F$12=\"Yes\",Calc_Proposed!AE$75,0)","v":0},{"$f":"AF$80+IF('Data Input - General'!$F$10=\"Yes\",Calc_Proposed!AF$81,0)+IF('Data Input - General'!$F$12=\"Yes\",Calc_Proposed!AF$75,0)","v":0},{"$f":"AG$80+IF('Data Input - General'!$F$10=\"Yes\",Calc_Proposed!AG$81,0)+IF('Data Input - General'!$F$12=\"Yes\",Calc_Proposed!AG$75,0)","v":0},{"$f":"AH$80+IF('Data Input - General'!$F$10=\"Yes\",Calc_Proposed!AH$81,0)+IF('Data Input - General'!$F$12=\"Yes\",Calc_Proposed!AH$75,0)","v":0},{"$f":"AI$80+IF('Data Input - General'!$F$10=\"Yes\",Calc_Proposed!AI$81,0)+IF('Data Input - General'!$F$12=\"Yes\",Calc_Proposed!AI$75,0)","v":0},{"$f":"AJ$80+IF('Data Input - General'!$F$10=\"Yes\",Calc_Proposed!AJ$81,0)+IF('Data Input - General'!$F$12=\"Yes\",Calc_Proposed!AJ$75,0)","v":0},{"$f":"AK$80+IF('Data Input - General'!$F$10=\"Yes\",Calc_Proposed!AK$81,0)+IF('Data Input - General'!$F$12=\"Yes\",Calc_Proposed!AK$75,0)","v":0},{"$f":"AL$80+IF('Data Input - General'!$F$10=\"Yes\",Calc_Proposed!AL$81,0)+IF('Data Input - General'!$F$12=\"Yes\",Calc_Proposed!AL$75,0)","v":0},{"$f":"AM$80+IF('Data Input - General'!$F$10=\"Yes\",Calc_Proposed!AM$81,0)+IF('Data Input - General'!$F$12=\"Yes\",Calc_Proposed!AM$75,0)","v":0},{"$f":"AN$80+IF('Data Input - General'!$F$10=\"Yes\",Calc_Proposed!AN$81,0)+IF('Data Input - General'!$F$12=\"Yes\",Calc_Proposed!AN$75,0)","v":0},{"$f":"AO$80+IF('Data Input - General'!$F$10=\"Yes\",Calc_Proposed!AO$81,0)+IF('Data Input - General'!$F$12=\"Yes\",Calc_Proposed!AO$75,0)","v":0},{"$f":"AP$80+IF('Data Input - General'!$F$10=\"Yes\",Calc_Proposed!AP$81,0)+IF('Data Input - General'!$F$12=\"Yes\",Calc_Proposed!AP$75,0)","v":0},{"$f":"AQ$80+IF('Data Input - General'!$F$10=\"Yes\",Calc_Proposed!AQ$81,0)+IF('Data Input - General'!$F$12=\"Yes\",Calc_Proposed!AQ$75,0)","v":0},{"$f":"AR$80+IF('Data Input - General'!$F$10=\"Yes\",Calc_Proposed!AR$81,0)+IF('Data Input - General'!$F$12=\"Yes\",Calc_Proposed!AR$75,0)","v":0},{"$f":"AS$80+IF('Data Input - General'!$F$10=\"Yes\",Calc_Proposed!AS$81,0)+IF('Data Input - General'!$F$12=\"Yes\",Calc_Proposed!AS$75,0)","v":0},{"$f":"AT$80+IF('Data Input - General'!$F$10=\"Yes\",Calc_Proposed!AT$81,0)+IF('Data Input - General'!$F$12=\"Yes\",Calc_Proposed!AT$75,0)","v":0},{"$f":"AU$80+IF('Data Input - General'!$F$10=\"Yes\",Calc_Proposed!AU$81,0)+IF('Data Input - General'!$F$12=\"Yes\",Calc_Proposed!AU$75,0)","v":0},{"$f":"AV$80+IF('Data Input - General'!$F$10=\"Yes\",Calc_Proposed!AV$81,0)+IF('Data Input - General'!$F$12=\"Yes\",Calc_Proposed!AV$75,0)","v":0},{"$f":"AW$80+IF('Data Input - General'!$F$10=\"Yes\",Calc_Proposed!AW$81,0)+IF('Data Input - General'!$F$12=\"Yes\",Calc_Proposed!AW$75,0)","v":0},{"$f":"AX$80+IF('Data Input - General'!$F$10=\"Yes\",Calc_Proposed!AX$81,0)+IF('Data Input - General'!$F$12=\"Yes\",Calc_Proposed!AX$75,0)","v":0},{"$f":"AY$80+IF('Data Input - General'!$F$10=\"Yes\",Calc_Proposed!AY$81,0)+IF('Data Input - General'!$F$12=\"Yes\",Calc_Proposed!AY$75,0)","v":0},{"$f":"AZ$80+IF('Data Input - General'!$F$10=\"Yes\",Calc_Proposed!AZ$81,0)+IF('Data Input - General'!$F$12=\"Yes\",Calc_Proposed!AZ$75,0)","v":0},{"$f":"BA$80+IF('Data Input - General'!$F$10=\"Yes\",Calc_Proposed!BA$81,0)+IF('Data Input - General'!$F$12=\"Yes\",Calc_Proposed!BA$75,0)","v":0},{"$f":"BB$80+IF('Data Input - General'!$F$10=\"Yes\",Calc_Proposed!BB$81,0)+IF('Data Input - General'!$F$12=\"Yes\",Calc_Proposed!BB$75,0)","v":0},{"$f":"BC$80+IF('Data Input - General'!$F$10=\"Yes\",Calc_Proposed!BC$81,0)+IF('Data Input - General'!$F$12=\"Yes\",Calc_Proposed!BC$75,0)","v":0},{"$f":"BD$80+IF('Data Input - General'!$F$10=\"Yes\",Calc_Proposed!BD$81,0)+IF('Data Input - General'!$F$12=\"Yes\",Calc_Proposed!BD$75,0)","v":0},{"$f":"BE$80+IF('Data Input - General'!$F$10=\"Yes\",Calc_Proposed!BE$81,0)+IF('Data Input - General'!$F$12=\"Yes\",Calc_Proposed!BE$75,0)","v":0},{"$f":"BF$80+IF('Data Input - General'!$F$10=\"Yes\",Calc_Proposed!BF$81,0)+IF('Data Input - General'!$F$12=\"Yes\",Calc_Proposed!BF$75,0)","v":0},{"$f":"BG$80+IF('Data Input - General'!$F$10=\"Yes\",Calc_Proposed!BG$81,0)+IF('Data Input - General'!$F$12=\"Yes\",Calc_Proposed!BG$75,0)","v":0},{"$f":"BH$80+IF('Data Input - General'!$F$10=\"Yes\",Calc_Proposed!BH$81,0)+IF('Data Input - General'!$F$12=\"Yes\",Calc_Proposed!BH$75,0)","v":0},{"$f":"BI$80+IF('Data Input - General'!$F$10=\"Yes\",Calc_Proposed!BI$81,0)+IF('Data Input - General'!$F$12=\"Yes\",Calc_Proposed!BI$75,0)","v":0},{"$f":"BJ$80+IF('Data Input - General'!$F$10=\"Yes\",Calc_Proposed!BJ$81,0)+IF('Data Input - General'!$F$12=\"Yes\",Calc_Proposed!BJ$75,0)","v":0},{"$f":"BK$80+IF('Data Input - General'!$F$10=\"Yes\",Calc_Proposed!BK$81,0)+IF('Data Input - General'!$F$12=\"Yes\",Calc_Proposed!BK$75,0)","v":0},{"$f":"BL$80+IF('Data Input - General'!$F$10=\"Yes\",Calc_Proposed!BL$81,0)+IF('Data Input - General'!$F$12=\"Yes\",Calc_Proposed!BL$75,0)","v":0},{"$f":"BM$80+IF('Data Input - General'!$F$10=\"Yes\",Calc_Proposed!BM$81,0)+IF('Data Input - General'!$F$12=\"Yes\",Calc_Proposed!BM$75,0)","v":0},{"$f":"BN$80+IF('Data Input - General'!$F$10=\"Yes\",Calc_Proposed!BN$81,0)+IF('Data Input - General'!$F$12=\"Yes\",Calc_Proposed!BN$75,0)","v":0},{"$f":"BO$80+IF('Data Input - General'!$F$10=\"Yes\",Calc_Proposed!BO$81,0)+IF('Data Input - General'!$F$12=\"Yes\",Calc_Proposed!BO$75,0)","v":0},{"$f":"BP$80+IF('Data Input - General'!$F$10=\"Yes\",Calc_Proposed!BP$81,0)+IF('Data Input - General'!$F$12=\"Yes\",Calc_Proposed!BP$75,0)","v":0},{"$f":"BQ$80+IF('Data Input - General'!$F$10=\"Yes\",Calc_Proposed!BQ$81,0)+IF('Data Input - General'!$F$12=\"Yes\",Calc_Proposed!BQ$75,0)","v":0},{"$f":"BR$80+IF('Data Input - General'!$F$10=\"Yes\",Calc_Proposed!BR$81,0)+IF('Data Input - General'!$F$12=\"Yes\",Calc_Proposed!BR$75,0)","v":0},{"$f":"BS$80+IF('Data Input - General'!$F$10=\"Yes\",Calc_Proposed!BS$81,0)+IF('Data Input - General'!$F$12=\"Yes\",Calc_Proposed!BS$75,0)","v":0},{"$f":"BT$80+IF('Data Input - General'!$F$10=\"Yes\",Calc_Proposed!BT$81,0)+IF('Data Input - General'!$F$12=\"Yes\",Calc_Proposed!BT$75,0)","v":0},{"$f":"BU$80+IF('Data Input - General'!$F$10=\"Yes\",Calc_Proposed!BU$81,0)+IF('Data Input - General'!$F$12=\"Yes\",Calc_Proposed!BU$75,0)","v":0},{"$f":"BV$80+IF('Data Input - General'!$F$10=\"Yes\",Calc_Proposed!BV$81,0)+IF('Data Input - General'!$F$12=\"Yes\",Calc_Proposed!BV$75,0)","v":0},{"$f":"BW$80+IF('Data Input - General'!$F$10=\"Yes\",Calc_Proposed!BW$81,0)+IF('Data Input - General'!$F$12=\"Yes\",Calc_Proposed!BW$75,0)","v":0},{"$f":"BX$80+IF('Data Input - General'!$F$10=\"Yes\",Calc_Proposed!BX$81,0)+IF('Data Input - General'!$F$12=\"Yes\",Calc_Proposed!BX$75,0)","v":0},{"$f":"BY$80+IF('Data Input - General'!$F$10=\"Yes\",Calc_Proposed!BY$81,0)+IF('Data Input - General'!$F$12=\"Yes\",Calc_Proposed!BY$75,0)","v":0},{"$f":"BZ$80+IF('Data Input - General'!$F$10=\"Yes\",Calc_Proposed!BZ$81,0)+IF('Data Input - General'!$F$12=\"Yes\",Calc_Proposed!BZ$75,0)","v":0},{"$f":"CA$80+IF('Data Input - General'!$F$10=\"Yes\",Calc_Proposed!CA$81,0)+IF('Data Input - General'!$F$12=\"Yes\",Calc_Proposed!CA$75,0)","v":0},{"$f":"CB$80+IF('Data Input - General'!$F$10=\"Yes\",Calc_Proposed!CB$81,0)+IF('Data Input - General'!$F$12=\"Yes\",Calc_Proposed!CB$75,0)","v":0},{"$f":"CC$80+IF('Data Input - General'!$F$10=\"Yes\",Calc_Proposed!CC$81,0)+IF('Data Input - General'!$F$12=\"Yes\",Calc_Proposed!CC$75,0)","v":0},{"$f":"CD$80+IF('Data Input - General'!$F$10=\"Yes\",Calc_Proposed!CD$81,0)+IF('Data Input - General'!$F$12=\"Yes\",Calc_Proposed!CD$75,0)","v":0},{"$f":"CE$80+IF('Data Input - General'!$F$10=\"Yes\",Calc_Proposed!CE$81,0)+IF('Data Input - General'!$F$12=\"Yes\",Calc_Proposed!CE$75,0)","v":0},{"$f":"CF$80+IF('Data Input - General'!$F$10=\"Yes\",Calc_Proposed!CF$81,0)+IF('Data Input - General'!$F$12=\"Yes\",Calc_Proposed!CF$75,0)","v":0},{"$f":"CG$80+IF('Data Input - General'!$F$10=\"Yes\",Calc_Proposed!CG$81,0)+IF('Data Input - General'!$F$12=\"Yes\",Calc_Proposed!CG$75,0)","v":0},{"$f":"CH$80+IF('Data Input - General'!$F$10=\"Yes\",Calc_Proposed!CH$81,0)+IF('Data Input - General'!$F$12=\"Yes\",Calc_Proposed!CH$75,0)","v":0},{"$f":"CI$80+IF('Data Input - General'!$F$10=\"Yes\",Calc_Proposed!CI$81,0)+IF('Data Input - General'!$F$12=\"Yes\",Calc_Proposed!CI$75,0)","v":0},{"$f":"CJ$80+IF('Data Input - General'!$F$10=\"Yes\",Calc_Proposed!CJ$81,0)+IF('Data Input - General'!$F$12=\"Yes\",Calc_Proposed!CJ$75,0)","v":0},{"$f":"CK$80+IF('Data Input - General'!$F$10=\"Yes\",Calc_Proposed!CK$81,0)+IF('Data Input - General'!$F$12=\"Yes\",Calc_Proposed!CK$75,0)","v":0},{"$f":"CL$80+IF('Data Input - General'!$F$10=\"Yes\",Calc_Proposed!CL$81,0)+IF('Data Input - General'!$F$12=\"Yes\",Calc_Proposed!CL$75,0)","v":0},{"$f":"CM$80+IF('Data Input - General'!$F$10=\"Yes\",Calc_Proposed!CM$81,0)+IF('Data Input - General'!$F$12=\"Yes\",Calc_Proposed!CM$75,0)","v":0},{"$f":"CN$80+IF('Data Input - General'!$F$10=\"Yes\",Calc_Proposed!CN$81,0)+IF('Data Input - General'!$F$12=\"Yes\",Calc_Proposed!CN$75,0)","v":0},{"$f":"CO$80+IF('Data Input - General'!$F$10=\"Yes\",Calc_Proposed!CO$81,0)+IF('Data Input - General'!$F$12=\"Yes\",Calc_Proposed!CO$75,0)","v":0},{"$f":"CP$80+IF('Data Input - General'!$F$10=\"Yes\",Calc_Proposed!CP$81,0)+IF('Data Input - General'!$F$12=\"Yes\",Calc_Proposed!CP$75,0)","v":0},{"$f":"CQ$80+IF('Data Input - General'!$F$10=\"Yes\",Calc_Proposed!CQ$81,0)+IF('Data Input - General'!$F$12=\"Yes\",Calc_Proposed!CQ$75,0)","v":0},{"$f":"CR$80+IF('Data Input - General'!$F$10=\"Yes\",Calc_Proposed!CR$81,0)+IF('Data Input - General'!$F$12=\"Yes\",Calc_Proposed!CR$75,0)","v":0},{"$f":"CS$80+IF('Data Input - General'!$F$10=\"Yes\",Calc_Proposed!CS$81,0)+IF('Data Input - General'!$F$12=\"Yes\",Calc_Proposed!CS$75,0)","v":0},{"$f":"CT$80+IF('Data Input - General'!$F$10=\"Yes\",Calc_Proposed!CT$81,0)+IF('Data Input - General'!$F$12=\"Yes\",Calc_Proposed!CT$75,0)","v":0},{"$f":"CU$80+IF('Data Input - General'!$F$10=\"Yes\",Calc_Proposed!CU$81,0)+IF('Data Input - General'!$F$12=\"Yes\",Calc_Proposed!CU$75,0)","v":0},{"$f":"CV$80+IF('Data Input - General'!$F$10=\"Yes\",Calc_Proposed!CV$81,0)+IF('Data Input - General'!$F$12=\"Yes\",Calc_Proposed!CV$75,0)","v":0},{"$f":"CW$80+IF('Data Input - General'!$F$10=\"Yes\",Calc_Proposed!CW$81,0)+IF('Data Input - General'!$F$12=\"Yes\",Calc_Proposed!CW$75,0)","v":0},{"$f":"CX$80+IF('Data Input - General'!$F$10=\"Yes\",Calc_Proposed!CX$81,0)+IF('Data Input - General'!$F$12=\"Yes\",Calc_Proposed!CX$75,0)","v":0},{"$f":"CY$80+IF('Data Input - General'!$F$10=\"Yes\",Calc_Proposed!CY$81,0)+IF('Data Input - General'!$F$12=\"Yes\",Calc_Proposed!CY$75,0)","v":0}]
[null,"Non-traded","tCO2e",{"$f":"IF('Data Input - General'!$F$10=\"Yes\",0,Calc_Proposed!D$81)+IF('Data Input - General'!$F$12=\"Yes\",0,Calc_Proposed!D$75)","v":0},{"$f":"IF('Data Input - General'!$F$10=\"Yes\",0,Calc_Proposed!E$81)+IF('Data Input - General'!$F$12=\"Yes\",0,Calc_Proposed!E$75)","v":0},{"$f":"IF('Data Input - General'!$F$10=\"Yes\",0,Calc_Proposed!F$81)+IF('Data Input - General'!$F$12=\"Yes\",0,Calc_Proposed!F$75)","v":0},{"$f":"IF('Data Input - General'!$F$10=\"Yes\",0,Calc_Proposed!G$81)+IF('Data Input - General'!$F$12=\"Yes\",0,Calc_Proposed!G$75)","v":0},{"$f":"IF('Data Input - General'!$F$10=\"Yes\",0,Calc_Proposed!H$81)+IF('Data Input - General'!$F$12=\"Yes\",0,Calc_Proposed!H$75)","v":0},{"$f":"IF('Data Input - General'!$F$10=\"Yes\",0,Calc_Proposed!I$81)+IF('Data Input - General'!$F$12=\"Yes\",0,Calc_Proposed!I$75)","v":0},{"$f":"IF('Data Input - General'!$F$10=\"Yes\",0,Calc_Proposed!J$81)+IF('Data Input - General'!$F$12=\"Yes\",0,Calc_Proposed!J$75)","v":0},{"$f":"IF('Data Input - General'!$F$10=\"Yes\",0,Calc_Proposed!K$81)+IF('Data Input - General'!$F$12=\"Yes\",0,Calc_Proposed!K$75)","v":0},{"$f":"IF('Data Input - General'!$F$10=\"Yes\",0,Calc_Proposed!L$81)+IF('Data Input - General'!$F$12=\"Yes\",0,Calc_Proposed!L$75)","v":0},{"$f":"IF('Data Input - General'!$F$10=\"Yes\",0,Calc_Proposed!M$81)+IF('Data Input - General'!$F$12=\"Yes\",0,Calc_Proposed!M$75)","v":0},{"$f":"IF('Data Input - General'!$F$10=\"Yes\",0,Calc_Proposed!N$81)+IF('Data Input - General'!$F$12=\"Yes\",0,Calc_Proposed!N$75)","v":0},{"$f":"IF('Data Input - General'!$F$10=\"Yes\",0,Calc_Proposed!O$81)+IF('Data Input - General'!$F$12=\"Yes\",0,Calc_Proposed!O$75)","v":0},{"$f":"IF('Data Input - General'!$F$10=\"Yes\",0,Calc_Proposed!P$81)+IF('Data Input - General'!$F$12=\"Yes\",0,Calc_Proposed!P$75)","v":0},{"$f":"IF('Data Input - General'!$F$10=\"Yes\",0,Calc_Proposed!Q$81)+IF('Data Input - General'!$F$12=\"Yes\",0,Calc_Proposed!Q$75)","v":0},{"$f":"IF('Data Input - General'!$F$10=\"Yes\",0,Calc_Proposed!R$81)+IF('Data Input - General'!$F$12=\"Yes\",0,Calc_Proposed!R$75)","v":0},{"$f":"IF('Data Input - General'!$F$10=\"Yes\",0,Calc_Proposed!S$81)+IF('Data Input - General'!$F$12=\"Yes\",0,Calc_Proposed!S$75)","v":0},{"$f":"IF('Data Input - General'!$F$10=\"Yes\",0,Calc_Proposed!T$81)+IF('Data Input - General'!$F$12=\"Yes\",0,Calc_Proposed!T$75)","v":0},{"$f":"IF('Data Input - General'!$F$10=\"Yes\",0,Calc_Proposed!U$81)+IF('Data Input - General'!$F$12=\"Yes\",0,Calc_Proposed!U$75)","v":0},{"$f":"IF('Data Input - General'!$F$10=\"Yes\",0,Calc_Proposed!V$81)+IF('Data Input - General'!$F$12=\"Yes\",0,Calc_Proposed!V$75)","v":0},{"$f":"IF('Data Input - General'!$F$10=\"Yes\",0,Calc_Proposed!W$81)+IF('Data Input - General'!$F$12=\"Yes\",0,Calc_Proposed!W$75)","v":0},{"$f":"IF('Data Input - General'!$F$10=\"Yes\",0,Calc_Proposed!X$81)+IF('Data Input - General'!$F$12=\"Yes\",0,Calc_Proposed!X$75)","v":0},{"$f":"IF('Data Input - General'!$F$10=\"Yes\",0,Calc_Proposed!Y$81)+IF('Data Input - General'!$F$12=\"Yes\",0,Calc_Proposed!Y$75)","v":0},{"$f":"IF('Data Input - General'!$F$10=\"Yes\",0,Calc_Proposed!Z$81)+IF('Data Input - General'!$F$12=\"Yes\",0,Calc_Proposed!Z$75)","v":0},{"$f":"IF('Data Input - General'!$F$10=\"Yes\",0,Calc_Proposed!AA$81)+IF('Data Input - General'!$F$12=\"Yes\",0,Calc_Proposed!AA$75)","v":0},{"$f":"IF('Data Input - General'!$F$10=\"Yes\",0,Calc_Proposed!AB$81)+IF('Data Input - General'!$F$12=\"Yes\",0,Calc_Proposed!AB$75)","v":0},{"$f":"IF('Data Input - General'!$F$10=\"Yes\",0,Calc_Proposed!AC$81)+IF('Data Input - General'!$F$12=\"Yes\",0,Calc_Proposed!AC$75)","v":0},{"$f":"IF('Data Input - General'!$F$10=\"Yes\",0,Calc_Proposed!AD$81)+IF('Data Input - General'!$F$12=\"Yes\",0,Calc_Proposed!AD$75)","v":0},{"$f":"IF('Data Input - General'!$F$10=\"Yes\",0,Calc_Proposed!AE$81)+IF('Data Input - General'!$F$12=\"Yes\",0,Calc_Proposed!AE$75)","v":0},{"$f":"IF('Data Input - General'!$F$10=\"Yes\",0,Calc_Proposed!AF$81)+IF('Data Input - General'!$F$12=\"Yes\",0,Calc_Proposed!AF$75)","v":0},{"$f":"IF('Data Input - General'!$F$10=\"Yes\",0,Calc_Proposed!AG$81)+IF('Data Input - General'!$F$12=\"Yes\",0,Calc_Proposed!AG$75)","v":0},{"$f":"IF('Data Input - General'!$F$10=\"Yes\",0,Calc_Proposed!AH$81)+IF('Data Input - General'!$F$12=\"Yes\",0,Calc_Proposed!AH$75)","v":0},{"$f":"IF('Data Input - General'!$F$10=\"Yes\",0,Calc_Proposed!AI$81)+IF('Data Input - General'!$F$12=\"Yes\",0,Calc_Proposed!AI$75)","v":0},{"$f":"IF('Data Input - General'!$F$10=\"Yes\",0,Calc_Proposed!AJ$81)+IF('Data Input - General'!$F$12=\"Yes\",0,Calc_Proposed!AJ$75)","v":0},{"$f":"IF('Data Input - General'!$F$10=\"Yes\",0,Calc_Proposed!AK$81)+IF('Data Input - General'!$F$12=\"Yes\",0,Calc_Proposed!AK$75)","v":0},{"$f":"IF('Data Input - General'!$F$10=\"Yes\",0,Calc_Proposed!AL$81)+IF('Data Input - General'!$F$12=\"Yes\",0,Calc_Proposed!AL$75)","v":0},{"$f":"IF('Data Input - General'!$F$10=\"Yes\",0,Calc_Proposed!AM$81)+IF('Data Input - General'!$F$12=\"Yes\",0,Calc_Proposed!AM$75)","v":0},{"$f":"IF('Data Input - General'!$F$10=\"Yes\",0,Calc_Proposed!AN$81)+IF('Data Input - General'!$F$12=\"Yes\",0,Calc_Proposed!AN$75)","v":0},{"$f":"IF('Data Input - General'!$F$10=\"Yes\",0,Calc_Proposed!AO$81)+IF('Data Input - General'!$F$12=\"Yes\",0,Calc_Proposed!AO$75)","v":0},{"$f":"IF('Data Input - General'!$F$10=\"Yes\",0,Calc_Proposed!AP$81)+IF('Data Input - General'!$F$12=\"Yes\",0,Calc_Proposed!AP$75)","v":0},{"$f":"IF('Data Input - General'!$F$10=\"Yes\",0,Calc_Proposed!AQ$81)+IF('Data Input - General'!$F$12=\"Yes\",0,Calc_Proposed!AQ$75)","v":0},{"$f":"IF('Data Input - General'!$F$10=\"Yes\",0,Calc_Proposed!AR$81)+IF('Data Input - General'!$F$12=\"Yes\",0,Calc_Proposed!AR$75)","v":0},{"$f":"IF('Data Input - General'!$F$10=\"Yes\",0,Calc_Proposed!AS$81)+IF('Data Input - General'!$F$12=\"Yes\",0,Calc_Proposed!AS$75)","v":0},{"$f":"IF('Data Input - General'!$F$10=\"Yes\",0,Calc_Proposed!AT$81)+IF('Data Input - General'!$F$12=\"Yes\",0,Calc_Proposed!AT$75)","v":0},{"$f":"IF('Data Input - General'!$F$10=\"Yes\",0,Calc_Proposed!AU$81)+IF('Data Input - General'!$F$12=\"Yes\",0,Calc_Proposed!AU$75)","v":0},{"$f":"IF('Data Input - General'!$F$10=\"Yes\",0,Calc_Proposed!AV$81)+IF('Data Input - General'!$F$12=\"Yes\",0,Calc_Proposed!AV$75)","v":0},{"$f":"IF('Data Input - General'!$F$10=\"Yes\",0,Calc_Proposed!AW$81)+IF('Data Input - General'!$F$12=\"Yes\",0,Calc_Proposed!AW$75)","v":0},{"$f":"IF('Data Input - General'!$F$10=\"Yes\",0,Calc_Proposed!AX$81)+IF('Data Input - General'!$F$12=\"Yes\",0,Calc_Proposed!AX$75)","v":0},{"$f":"IF('Data Input - General'!$F$10=\"Yes\",0,Calc_Proposed!AY$81)+IF('Data Input - General'!$F$12=\"Yes\",0,Calc_Proposed!AY$75)","v":0},{"$f":"IF('Data Input - General'!$F$10=\"Yes\",0,Calc_Proposed!AZ$81)+IF('Data Input - General'!$F$12=\"Yes\",0,Calc_Proposed!AZ$75)","v":0},{"$f":"IF('Data Input - General'!$F$10=\"Yes\",0,Calc_Proposed!BA$81)+IF('Data Input - General'!$F$12=\"Yes\",0,Calc_Proposed!BA$75)","v":0},{"$f":"IF('Data Input - General'!$F$10=\"Yes\",0,Calc_Proposed!BB$81)+IF('Data Input - General'!$F$12=\"Yes\",0,Calc_Proposed!BB$75)","v":0},{"$f":"IF('Data Input - General'!$F$10=\"Yes\",0,Calc_Proposed!BC$81)+IF('Data Input - General'!$F$12=\"Yes\",0,Calc_Proposed!BC$75)","v":0},{"$f":"IF('Data Input - General'!$F$10=\"Yes\",0,Calc_Proposed!BD$81)+IF('Data Input - General'!$F$12=\"Yes\",0,Calc_Proposed!BD$75)","v":0},{"$f":"IF('Data Input - General'!$F$10=\"Yes\",0,Calc_Proposed!BE$81)+IF('Data Input - General'!$F$12=\"Yes\",0,Calc_Proposed!BE$75)","v":0},{"$f":"IF('Data Input - General'!$F$10=\"Yes\",0,Calc_Proposed!BF$81)+IF('Data Input - General'!$F$12=\"Yes\",0,Calc_Proposed!BF$75)","v":0},{"$f":"IF('Data Input - General'!$F$10=\"Yes\",0,Calc_Proposed!BG$81)+IF('Data Input - General'!$F$12=\"Yes\",0,Calc_Proposed!BG$75)","v":0},{"$f":"IF('Data Input - General'!$F$10=\"Yes\",0,Calc_Proposed!BH$81)+IF('Data Input - General'!$F$12=\"Yes\",0,Calc_Proposed!BH$75)","v":0},{"$f":"IF('Data Input - General'!$F$10=\"Yes\",0,Calc_Proposed!BI$81)+IF('Data Input - General'!$F$12=\"Yes\",0,Calc_Proposed!BI$75)","v":0},{"$f":"IF('Data Input - General'!$F$10=\"Yes\",0,Calc_Proposed!BJ$81)+IF('Data Input - General'!$F$12=\"Yes\",0,Calc_Proposed!BJ$75)","v":0},{"$f":"IF('Data Input - General'!$F$10=\"Yes\",0,Calc_Proposed!BK$81)+IF('Data Input - General'!$F$12=\"Yes\",0,Calc_Proposed!BK$75)","v":0},{"$f":"IF('Data Input - General'!$F$10=\"Yes\",0,Calc_Proposed!BL$81)+IF('Data Input - General'!$F$12=\"Yes\",0,Calc_Proposed!BL$75)","v":0},{"$f":"IF('Data Input - General'!$F$10=\"Yes\",0,Calc_Proposed!BM$81)+IF('Data Input - General'!$F$12=\"Yes\",0,Calc_Proposed!BM$75)","v":0},{"$f":"IF('Data Input - General'!$F$10=\"Yes\",0,Calc_Proposed!BN$81)+IF('Data Input - General'!$F$12=\"Yes\",0,Calc_Proposed!BN$75)","v":0},{"$f":"IF('Data Input - General'!$F$10=\"Yes\",0,Calc_Proposed!BO$81)+IF('Data Input - General'!$F$12=\"Yes\",0,Calc_Proposed!BO$75)","v":0},{"$f":"IF('Data Input - General'!$F$10=\"Yes\",0,Calc_Proposed!BP$81)+IF('Data Input - General'!$F$12=\"Yes\",0,Calc_Proposed!BP$75)","v":0},{"$f":"IF('Data Input - General'!$F$10=\"Yes\",0,Calc_Proposed!BQ$81)+IF('Data Input - General'!$F$12=\"Yes\",0,Calc_Proposed!BQ$75)","v":0},{"$f":"IF('Data Input - General'!$F$10=\"Yes\",0,Calc_Proposed!BR$81)+IF('Data Input - General'!$F$12=\"Yes\",0,Calc_Proposed!BR$75)","v":0},{"$f":"IF('Data Input - General'!$F$10=\"Yes\",0,Calc_Proposed!BS$81)+IF('Data Input - General'!$F$12=\"Yes\",0,Calc_Proposed!BS$75)","v":0},{"$f":"IF('Data Input - General'!$F$10=\"Yes\",0,Calc_Proposed!BT$81)+IF('Data Input - General'!$F$12=\"Yes\",0,Calc_Proposed!BT$75)","v":0},{"$f":"IF('Data Input - General'!$F$10=\"Yes\",0,Calc_Proposed!BU$81)+IF('Data Input - General'!$F$12=\"Yes\",0,Calc_Proposed!BU$75)","v":0},{"$f":"IF('Data Input - General'!$F$10=\"Yes\",0,Calc_Proposed!BV$81)+IF('Data Input - General'!$F$12=\"Yes\",0,Calc_Proposed!BV$75)","v":0},{"$f":"IF('Data Input - General'!$F$10=\"Yes\",0,Calc_Proposed!BW$81)+IF('Data Input - General'!$F$12=\"Yes\",0,Calc_Proposed!BW$75)","v":0},{"$f":"IF('Data Input - General'!$F$10=\"Yes\",0,Calc_Proposed!BX$81)+IF('Data Input - General'!$F$12=\"Yes\",0,Calc_Proposed!BX$75)","v":0},{"$f":"IF('Data Input - General'!$F$10=\"Yes\",0,Calc_Proposed!BY$81)+IF('Data Input - General'!$F$12=\"Yes\",0,Calc_Proposed!BY$75)","v":0},{"$f":"IF('Data Input - General'!$F$10=\"Yes\",0,Calc_Proposed!BZ$81)+IF('Data Input - General'!$F$12=\"Yes\",0,Calc_Proposed!BZ$75)","v":0},{"$f":"IF('Data Input - General'!$F$10=\"Yes\",0,Calc_Proposed!CA$81)+IF('Data Input - General'!$F$12=\"Yes\",0,Calc_Proposed!CA$75)","v":0},{"$f":"IF('Data Input - General'!$F$10=\"Yes\",0,Calc_Proposed!CB$81)+IF('Data Input - General'!$F$12=\"Yes\",0,Calc_Proposed!CB$75)","v":0},{"$f":"IF('Data Input - General'!$F$10=\"Yes\",0,Calc_Proposed!CC$81)+IF('Data Input - General'!$F$12=\"Yes\",0,Calc_Proposed!CC$75)","v":0},{"$f":"IF('Data Input - General'!$F$10=\"Yes\",0,Calc_Proposed!CD$81)+IF('Data Input - General'!$F$12=\"Yes\",0,Calc_Proposed!CD$75)","v":0},{"$f":"IF('Data Input - General'!$F$10=\"Yes\",0,Calc_Proposed!CE$81)+IF('Data Input - General'!$F$12=\"Yes\",0,Calc_Proposed!CE$75)","v":0},{"$f":"IF('Data Input - General'!$F$10=\"Yes\",0,Calc_Proposed!CF$81)+IF('Data Input - General'!$F$12=\"Yes\",0,Calc_Proposed!CF$75)","v":0},{"$f":"IF('Data Input - General'!$F$10=\"Yes\",0,Calc_Proposed!CG$81)+IF('Data Input - General'!$F$12=\"Yes\",0,Calc_Proposed!CG$75)","v":0},{"$f":"IF('Data Input - General'!$F$10=\"Yes\",0,Calc_Proposed!CH$81)+IF('Data Input - General'!$F$12=\"Yes\",0,Calc_Proposed!CH$75)","v":0},{"$f":"IF('Data Input - General'!$F$10=\"Yes\",0,Calc_Proposed!CI$81)+IF('Data Input - General'!$F$12=\"Yes\",0,Calc_Proposed!CI$75)","v":0},{"$f":"IF('Data Input - General'!$F$10=\"Yes\",0,Calc_Proposed!CJ$81)+IF('Data Input - General'!$F$12=\"Yes\",0,Calc_Proposed!CJ$75)","v":0},{"$f":"IF('Data Input - General'!$F$10=\"Yes\",0,Calc_Proposed!CK$81)+IF('Data Input - General'!$F$12=\"Yes\",0,Calc_Proposed!CK$75)","v":0},{"$f":"IF('Data Input - General'!$F$10=\"Yes\",0,Calc_Proposed!CL$81)+IF('Data Input - General'!$F$12=\"Yes\",0,Calc_Proposed!CL$75)","v":0},{"$f":"IF('Data Input - General'!$F$10=\"Yes\",0,Calc_Proposed!CM$81)+IF('Data Input - General'!$F$12=\"Yes\",0,Calc_Proposed!CM$75)","v":0},{"$f":"IF('Data Input - General'!$F$10=\"Yes\",0,Calc_Proposed!CN$81)+IF('Data Input - General'!$F$12=\"Yes\",0,Calc_Proposed!CN$75)","v":0},{"$f":"IF('Data Input - General'!$F$10=\"Yes\",0,Calc_Proposed!CO$81)+IF('Data Input - General'!$F$12=\"Yes\",0,Calc_Proposed!CO$75)","v":0},{"$f":"IF('Data Input - General'!$F$10=\"Yes\",0,Calc_Proposed!CP$81)+IF('Data Input - General'!$F$12=\"Yes\",0,Calc_Proposed!CP$75)","v":0},{"$f":"IF('Data Input - General'!$F$10=\"Yes\",0,Calc_Proposed!CQ$81)+IF('Data Input - General'!$F$12=\"Yes\",0,Calc_Proposed!CQ$75)","v":0},{"$f":"IF('Data Input - General'!$F$10=\"Yes\",0,Calc_Proposed!CR$81)+IF('Data Input - General'!$F$12=\"Yes\",0,Calc_Proposed!CR$75)","v":0},{"$f":"IF('Data Input - General'!$F$10=\"Yes\",0,Calc_Proposed!CS$81)+IF('Data Input - General'!$F$12=\"Yes\",0,Calc_Proposed!CS$75)","v":0},{"$f":"IF('Data Input - General'!$F$10=\"Yes\",0,Calc_Proposed!CT$81)+IF('Data Input - General'!$F$12=\"Yes\",0,Calc_Proposed!CT$75)","v":0},{"$f":"IF('Data Input - General'!$F$10=\"Yes\",0,Calc_Proposed!CU$81)+IF('Data Input - General'!$F$12=\"Yes\",0,Calc_Proposed!CU$75)","v":0},{"$f":"IF('Data Input - General'!$F$10=\"Yes\",0,Calc_Proposed!CV$81)+IF('Data Input - General'!$F$12=\"Yes\",0,Calc_Proposed!CV$75)","v":0},{"$f":"IF('Data Input - General'!$F$10=\"Yes\",0,Calc_Proposed!CW$81)+IF('Data Input - General'!$F$12=\"Yes\",0,Calc_Proposed!CW$75)","v":0},{"$f":"IF('Data Input - General'!$F$10=\"Yes\",0,Calc_Proposed!CX$81)+IF('Data Input - General'!$F$12=\"Yes\",0,Calc_Proposed!CX$75)","v":0},{"$f":"IF('Data Input - General'!$F$10=\"Yes\",0,Calc_Proposed!CY$81)+IF('Data Input - General'!$F$12=\"Yes\",0,Calc_Proposed!CY$75)","v":0}]
[null,"Value non-elec","£000's",{"$f":"IFERROR(INDEX('Carbon Prices'!$D$10:$CP$15,3,MATCH(Calc_Proposed!D$6,'Carbon Prices'!$D$9:$CP$9,0))/1000,0)","v":3.6595483614396386E-2},{"$f":"IFERROR(INDEX('Carbon Prices'!$D$10:$CP$15,3,MATCH(Calc_Proposed!E$6,'Carbon Prices'!$D$9:$CP$9,0))/1000,0)","v":4.1954810259537539E-2},{"$f":"IFERROR(INDEX('Carbon Prices'!$D$10:$CP$15,3,MATCH(Calc_Proposed!F$6,'Carbon Prices'!$D$9:$CP$9,0))/1000,0)","v":5.0409774844480275E-2},{"$f":"IFERROR(INDEX('Carbon Prices'!$D$10:$CP$15,3,MATCH(Calc_Proposed!G$6,'Carbon Prices'!$D$9:$CP$9,0))/1000,0)","v":5.886473942942301E-2},{"$f":"IFERROR(INDEX('Carbon Prices'!$D$10:$CP$15,3,MATCH(Calc_Proposed!H$6,'Carbon Prices'!$D$9:$CP$9,0))/1000,0)","v":6.7319704014365739E-2},{"$f":"IFERROR(INDEX('Carbon Prices'!$D$10:$CP$15,3,MATCH(Calc_Proposed!I$6,'Carbon Prices'!$D$9:$CP$9,0))/1000,0)","v":7.5774668599308467E-2},{"$f":"IFERROR(INDEX('Carbon Prices'!$D$10:$CP$15,3,MATCH(Calc_Proposed!J$6,'Carbon Prices'!$D$9:$CP$9,0))/1000,0)","v":8.422963318425121E-2},{"$f":"IFERROR(INDEX('Carbon Prices'!$D$10:$CP$15,3,MATCH(Calc_Proposed!K$6,'Carbon Prices'!$D$9:$CP$9,0))/1000,0)","v":9.2684597769193938E-2},{"$f":"IFERROR(INDEX('Carbon Prices'!$D$10:$CP$15,3,MATCH(Calc_Proposed!L$6,'Carbon Prices'!$D$9:$CP$9,0))/1000,0)","v":0.10113956235413668},{"$f":"IFERROR(INDEX('Carbon Prices'!$D$10:$CP$15,3,MATCH(Calc_Proposed!M$6,'Carbon Prices'!$D$9:$CP$9,0))/1000,0)","v":0.10959452693907941},{"$f":"IFERROR(INDEX('Carbon Prices'!$D$10:$CP$15,3,MATCH(Calc_Proposed!N$6,'Carbon Prices'!$D$9:$CP$9,0))/1000,0)","v":0.11804949152402217},{"$f":"IFERROR(INDEX('Carbon Prices'!$D$10:$CP$15,3,MATCH(Calc_Proposed!O$6,'Carbon Prices'!$D$9:$CP$9,0))/1000,0)","v":0.12650445610896488},{"$f":"IFERROR(INDEX('Carbon Prices'!$D$10:$CP$15,3,MATCH(Calc_Proposed!P$6,'Carbon Prices'!$D$9:$CP$9,0))/1000,0)","v":0.13825129846194026},{"$f":"IFERROR(INDEX('Carbon Prices'!$D$10:$CP$15,3,MATCH(Calc_Proposed!Q$6,'Carbon Prices'!$D$9:$CP$9,0))/1000,0)","v":0.14999814081491555},{"$f":"IFERROR(INDEX('Carbon Prices'!$D$10:$CP$15,3,MATCH(Calc_Proposed!R$6,'Carbon Prices'!$D$9:$CP$9,0))/1000,0)","v":0.1617449831678909},{"$f":"IFERROR(INDEX('Carbon Prices'!$D$10:$CP$15,3,MATCH(Calc_Proposed!S$6,'Carbon Prices'!$D$9:$CP$9,0))/1000,0)","v":0.1734918255208662},{"$f":"IFERROR(INDEX('Carbon Prices'!$D$10:$CP$15,3,MATCH(Calc_Proposed!T$6,'Carbon Prices'!$D$9:$CP$9,0))/1000,0)","v":0.18523866787384149},{"$f":"IFERROR(INDEX('Carbon Prices'!$D$10:$CP$15,3,MATCH(Calc_Proposed!U$6,'Carbon Prices'!$D$9:$CP$9,0))/1000,0)","v":0.19698551022681682},{"$f":"IFERROR(INDEX('Carbon Prices'!$D$10:$CP$15,3,MATCH(Calc_Proposed!V$6,'Carbon Prices'!$D$9:$CP$9,0))/1000,0)","v":0.20873235257979214},{"$f":"IFERROR(INDEX('Carbon Prices'!$D$10:$CP$15,3,MATCH(Calc_Proposed!W$6,'Carbon Prices'!$D$9:$CP$9,0))/1000,0)","v":0.22047919493276749},{"$f":"IFERROR(INDEX('Carbon Prices'!$D$10:$CP$15,3,MATCH(Calc_Proposed!X$6,'Carbon Prices'!$D$9:$CP$9,0))/1000,0)","v":0.23222603728574279},{"$f":"IFERROR(INDEX('Carbon Prices'!$D$10:$CP$15,3,MATCH(Calc_Proposed!Y$6,'Carbon Prices'!$D$9:$CP$9,0))/1000,0)","v":0.24397287963871811},{"$f":"IFERROR(INDEX('Carbon Prices'!$D$10:$CP$15,3,MATCH(Calc_Proposed!Z$6,'Carbon Prices'!$D$9:$CP$9,0))/1000,0)","v":0.25571972199169341},{"$f":"IFERROR(INDEX('Carbon Prices'!$D$10:$CP$15,3,MATCH(Calc_Proposed!AA$6,'Carbon Prices'!$D$9:$CP$9,0))/1000,0)","v":0.2674665643446687},{"$f":"IFERROR(INDEX('Carbon Prices'!$D$10:$CP$15,3,MATCH(Calc_Proposed!AB$6,'Carbon Prices'!$D$9:$CP$9,0))/1000,0)","v":0.27921340669764405},{"$f":"IFERROR(INDEX('Carbon Prices'!$D$10:$CP$15,3,MATCH(Calc_Proposed!AC$6,'Carbon Prices'!$D$9:$CP$9,0))/1000,0)","v":0.2909602490506194},{"$f":"IFERROR(INDEX('Carbon Prices'!$D$10:$CP$15,3,MATCH(Calc_Proposed!AD$6,'Carbon Prices'!$D$9:$CP$9,0))/1000,0)","v":0.3027070914035947},{"$f":"IFERROR(INDEX('Carbon Prices'!$D$10:$CP$15,3,MATCH(Calc_Proposed!AE$6,'Carbon Prices'!$D$9:$CP$9,0))/1000,0)","v":0.31445393375656999},{"$f":"IFERROR(INDEX('Carbon Prices'!$D$10:$CP$15,3,MATCH(Calc_Proposed!AF$6,'Carbon Prices'!$D$9:$CP$9,0))/1000,0)","v":0.32620077610954529},{"$f":"IFERROR(INDEX('Carbon Prices'!$D$10:$CP$15,3,MATCH(Calc_Proposed!AG$6,'Carbon Prices'!$D$9:$CP$9,0))/1000,0)","v":0.33794761846252058},{"$f":"IFERROR(INDEX('Carbon Prices'!$D$10:$CP$15,3,MATCH(Calc_Proposed!AH$6,'Carbon Prices'!$D$9:$CP$9,0))/1000,0)","v":0.34969446081549593},{"$f":"IFERROR(INDEX('Carbon Prices'!$D$10:$CP$15,3,MATCH(Calc_Proposed!AI$6,'Carbon Prices'!$D$9:$CP$9,0))/1000,0)","v":0},{"$f":"IFERROR(INDEX('Carbon Prices'!$D$10:$CP$15,3,MATCH(Calc_Proposed!AJ$6,'Carbon Prices'!$D$9:$CP$9,0))/1000,0)","v":0},{"$f":"IFERROR(INDEX('Carbon Prices'!$D$10:$CP$15,3,MATCH(Calc_Proposed!AK$6,'Carbon Prices'!$D$9:$CP$9,0))/1000,0)","v":0},{"$f":"IFERROR(INDEX('Carbon Prices'!$D$10:$CP$15,3,MATCH(Calc_Proposed!AL$6,'Carbon Prices'!$D$9:$CP$9,0))/1000,0)","v":0},{"$f":"IFERROR(INDEX('Carbon Prices'!$D$10:$CP$15,3,MATCH(Calc_Proposed!AM$6,'Carbon Prices'!$D$9:$CP$9,0))/1000,0)","v":0},{"$f":"IFERROR(INDEX('Carbon Prices'!$D$10:$CP$15,3,MATCH(Calc_Proposed!AN$6,'Carbon Prices'!$D$9:$CP$9,0))/1000,0)","v":0},{"$f":"IFERROR(INDEX('Carbon Prices'!$D$10:$CP$15,3,MATCH(Calc_Proposed!AO$6,'Carbon Prices'!$D$9:$CP$9,0))/1000,0)","v":0},{"$f":"IFERROR(INDEX('Carbon Prices'!$D$10:$CP$15,3,MATCH(Calc_Proposed!AP$6,'Carbon Prices'!$D$9:$CP$9,0))/1000,0)","v":0},{"$f":"IFERROR(INDEX('Carbon Prices'!$D$10:$CP$15,3,MATCH(Calc_Proposed!AQ$6,'Carbon Prices'!$D$9:$CP$9,0))/1000,0)","v":0},{"$f":"IFERROR(INDEX('Carbon Prices'!$D$10:$CP$15,3,MATCH(Calc_Proposed!AR$6,'Carbon Prices'!$D$9:$CP$9,0))/1000,0)","v":0},{"$f":"IFERROR(INDEX('Carbon Prices'!$D$10:$CP$15,3,MATCH(Calc_Proposed!AS$6,'Carbon Prices'!$D$9:$CP$9,0))/1000,0)","v":0},{"$f":"IFERROR(INDEX('Carbon Prices'!$D$10:$CP$15,3,MATCH(Calc_Proposed!AT$6,'Carbon Prices'!$D$9:$CP$9,0))/1000,0)","v":0},{"$f":"IFERROR(INDEX('Carbon Prices'!$D$10:$CP$15,3,MATCH(Calc_Proposed!AU$6,'Carbon Prices'!$D$9:$CP$9,0))/1000,0)","v":0},{"$f":"IFERROR(INDEX('Carbon Prices'!$D$10:$CP$15,3,MATCH(Calc_Proposed!AV$6,'Carbon Prices'!$D$9:$CP$9,0))/1000,0)","v":0},{"$f":"IFERROR(INDEX('Carbon Prices'!$D$10:$CP$15,3,MATCH(Calc_Proposed!AW$6,'Carbon Prices'!$D$9:$CP$9,0))/1000,0)","v":0},{"$f":"IFERROR(INDEX('Carbon Prices'!$D$10:$CP$15,3,MATCH(Calc_Proposed!AX$6,'Carbon Prices'!$D$9:$CP$9,0))/1000,0)","v":0},{"$f":"IFERROR(INDEX('Carbon Prices'!$D$10:$CP$15,3,MATCH(Calc_Proposed!AY$6,'Carbon Prices'!$D$9:$CP$9,0))/1000,0)","v":0},{"$f":"IFERROR(INDEX('Carbon Prices'!$D$10:$CP$15,3,MATCH(Calc_Proposed!AZ$6,'Carbon Prices'!$D$9:$CP$9,0))/1000,0)","v":0},{"$f":"IFERROR(INDEX('Carbon Prices'!$D$10:$CP$15,3,MATCH(Calc_Proposed!BA$6,'Carbon Prices'!$D$9:$CP$9,0))/1000,0)","v":0},{"$f":"IFERROR(INDEX('Carbon Prices'!$D$10:$CP$15,3,MATCH(Calc_Proposed!BB$6,'Carbon Prices'!$D$9:$CP$9,0))/1000,0)","v":0},{"$f":"IFERROR(INDEX('Carbon Prices'!$D$10:$CP$15,3,MATCH(Calc_Proposed!BC$6,'Carbon Prices'!$D$9:$CP$9,0))/1000,0)","v":0},{"$f":"IFERROR(INDEX('Carbon Prices'!$D$10:$CP$15,3,MATCH(Calc_Proposed!BD$6,'Carbon Prices'!$D$9:$CP$9,0))/1000,0)","v":0},{"$f":"IFERROR(INDEX('Carbon Prices'!$D$10:$CP$15,3,MATCH(Calc_Proposed!BE$6,'Carbon Prices'!$D$9:$CP$9,0))/1000,0)","v":0},{"$f":"IFERROR(INDEX('Carbon Prices'!$D$10:$CP$15,3,MATCH(Calc_Proposed!BF$6,'Carbon Prices'!$D$9:$CP$9,0))/1000,0)","v":0},{"$f":"IFERROR(INDEX('Carbon Prices'!$D$10:$CP$15,3,MATCH(Calc_Proposed!BG$6,'Carbon Prices'!$D$9:$CP$9,0))/1000,0)","v":0},{"$f":"IFERROR(INDEX('Carbon Prices'!$D$10:$CP$15,3,MATCH(Calc_Proposed!BH$6,'Carbon Prices'!$D$9:$CP$9,0))/1000,0)","v":0},{"$f":"IFERROR(INDEX('Carbon Prices'!$D$10:$CP$15,3,MATCH(Calc_Proposed!BI$6,'Carbon Prices'!$D$9:$CP$9,0))/1000,0)","v":0},{"$f":"IFERROR(INDEX('Carbon Prices'!$D$10:$CP$15,3,MATCH(Calc_Proposed!BJ$6,'Carbon Prices'!$D$9:$CP$9,0))/1000,0)","v":0},{"$f":"IFERROR(INDEX('Carbon Prices'!$D$10:$CP$15,3,MATCH(Calc_Proposed!BK$6,'Carbon Prices'!$D$9:$CP$9,0))/1000,0)","v":0},{"$f":"IFERROR(INDEX('Carbon Prices'!$D$10:$CP$15,3,MATCH(Calc_Proposed!BL$6,'Carbon Prices'!$D$9:$CP$9,0))/1000,0)","v":0},{"$f":"IFERROR(INDEX('Carbon Prices'!$D$10:$CP$15,3,MATCH(Calc_Proposed!BM$6,'Carbon Prices'!$D$9:$CP$9,0))/1000,0)","v":0},{"$f":"IFERROR(INDEX('Carbon Prices'!$D$10:$CP$15,3,MATCH(Calc_Proposed!BN$6,'Carbon Prices'!$D$9:$CP$9,0))/1000,0)","v":0},{"$f":"IFERROR(INDEX('Carbon Prices'!$D$10:$CP$15,3,MATCH(Calc_Proposed!BO$6,'Carbon Prices'!$D$9:$CP$9,0))/1000,0)","v":0},{"$f":"IFERROR(INDEX('Carbon Prices'!$D$10:$CP$15,3,MATCH(Calc_Proposed!BP$6,'Carbon Prices'!$D$9:$CP$9,0))/1000,0)","v":0},{"$f":"IFERROR(INDEX('Carbon Prices'!$D$10:$CP$15,3,MATCH(Calc_Proposed!BQ$6,'Carbon Prices'!$D$9:$CP$9,0))/1000,0)","v":0},{"$f":"IFERROR(INDEX('Carbon Prices'!$D$10:$CP$15,3,MATCH(Calc_Proposed!BR$6,'Carbon Prices'!$D$9:$CP$9,0))/1000,0)","v":0},{"$f":"IFERROR(INDEX('Carbon Prices'!$D$10:$CP$15,3,MATCH(Calc_Proposed!BS$6,'Carbon Prices'!$D$9:$CP$9,0))/1000,0)","v":0},{"$f":"IFERROR(INDEX('Carbon Prices'!$D$10:$CP$15,3,MATCH(Calc_Proposed!BT$6,'Carbon Prices'!$D$9:$CP$9,0))/1000,0)","v":0},{"$f":"IFERROR(INDEX('Carbon Prices'!$D$10:$CP$15,3,MATCH(Calc_Proposed!BU$6,'Carbon Prices'!$D$9:$CP$9,0))/1000,0)","v":0},{"$f":"IFERROR(INDEX('Carbon Prices'!$D$10:$CP$15,3,MATCH(Calc_Proposed!BV$6,'Carbon Prices'!$D$9:$CP$9,0))/1000,0)","v":0},{"$f":"IFERROR(INDEX('Carbon Prices'!$D$10:$CP$15,3,MATCH(Calc_Proposed!BW$6,'Carbon Prices'!$D$9:$CP$9,0))/1000,0)","v":0},{"$f":"IFERROR(INDEX('Carbon Prices'!$D$10:$CP$15,3,MATCH(Calc_Proposed!BX$6,'Carbon Prices'!$D$9:$CP$9,0))/1000,0)","v":0},{"$f":"IFERROR(INDEX('Carbon Prices'!$D$10:$CP$15,3,MATCH(Calc_Proposed!BY$6,'Carbon Prices'!$D$9:$CP$9,0))/1000,0)","v":0},{"$f":"IFERROR(INDEX('Carbon Prices'!$D$10:$CP$15,3,MATCH(Calc_Proposed!BZ$6,'Carbon Prices'!$D$9:$CP$9,0))/1000,0)","v":0},{"$f":"IFERROR(INDEX('Carbon Prices'!$D$10:$CP$15,3,MATCH(Calc_Proposed!CA$6,'Carbon Prices'!$D$9:$CP$9,0))/1000,0)","v":0},{"$f":"IFERROR(INDEX('Carbon Prices'!$D$10:$CP$15,3,MATCH(Calc_Proposed!CB$6,'Carbon Prices'!$D$9:$CP$9,0))/1000,0)","v":0},{"$f":"IFERROR(INDEX('Carbon Prices'!$D$10:$CP$15,3,MATCH(Calc_Proposed!CC$6,'Carbon Prices'!$D$9:$CP$9,0))/1000,0)","v":0},{"$f":"IFERROR(INDEX('Carbon Prices'!$D$10:$CP$15,3,MATCH(Calc_Proposed!CD$6,'Carbon Prices'!$D$9:$CP$9,0))/1000,0)","v":0},{"$f":"IFERROR(INDEX('Carbon Prices'!$D$10:$CP$15,3,MATCH(Calc_Proposed!CE$6,'Carbon Prices'!$D$9:$CP$9,0))/1000,0)","v":0},{"$f":"IFERROR(INDEX('Carbon Prices'!$D$10:$CP$15,3,MATCH(Calc_Proposed!CF$6,'Carbon Prices'!$D$9:$CP$9,0))/1000,0)","v":0},{"$f":"IFERROR(INDEX('Carbon Prices'!$D$10:$CP$15,3,MATCH(Calc_Proposed!CG$6,'Carbon Prices'!$D$9:$CP$9,0))/1000,0)","v":0},{"$f":"IFERROR(INDEX('Carbon Prices'!$D$10:$CP$15,3,MATCH(Calc_Proposed!CH$6,'Carbon Prices'!$D$9:$CP$9,0))/1000,0)","v":0},{"$f":"IFERROR(INDEX('Carbon Prices'!$D$10:$CP$15,3,MATCH(Calc_Proposed!CI$6,'Carbon Prices'!$D$9:$CP$9,0))/1000,0)","v":0},{"$f":"IFERROR(INDEX('Carbon Prices'!$D$10:$CP$15,3,MATCH(Calc_Proposed!CJ$6,'Carbon Prices'!$D$9:$CP$9,0))/1000,0)","v":0},{"$f":"IFERROR(INDEX('Carbon Prices'!$D$10:$CP$15,3,MATCH(Calc_Proposed!CK$6,'Carbon Prices'!$D$9:$CP$9,0))/1000,0)","v":0},{"$f":"IFERROR(INDEX('Carbon Prices'!$D$10:$CP$15,3,MATCH(Calc_Proposed!CL$6,'Carbon Prices'!$D$9:$CP$9,0))/1000,0)","v":0},{"$f":"IFERROR(INDEX('Carbon Prices'!$D$10:$CP$15,3,MATCH(Calc_Proposed!CM$6,'Carbon Prices'!$D$9:$CP$9,0))/1000,0)","v":0},{"$f":"IFERROR(INDEX('Carbon Prices'!$D$10:$CP$15,3,MATCH(Calc_Proposed!CN$6,'Carbon Prices'!$D$9:$CP$9,0))/1000,0)","v":0},{"$f":"IFERROR(INDEX('Carbon Prices'!$D$10:$CP$15,3,MATCH(Calc_Proposed!CO$6,'Carbon Prices'!$D$9:$CP$9,0))/1000,0)","v":0},{"$f":"IFERROR(INDEX('Carbon Prices'!$D$10:$CP$15,3,MATCH(Calc_Proposed!CP$6,'Carbon Prices'!$D$9:$CP$9,0))/1000,0)","v":0},{"$f":"IFERROR(INDEX('Carbon Prices'!$D$10:$CP$15,3,MATCH(Calc_Proposed!CQ$6,'Carbon Prices'!$D$9:$CP$9,0))/1000,0)","v":0},{"$f":"IFERROR(INDEX('Carbon Prices'!$D$10:$CP$15,3,MATCH(Calc_Proposed!CR$6,'Carbon Prices'!$D$9:$CP$9,0))/1000,0)","v":0},{"$f":"IFERROR(INDEX('Carbon Prices'!$D$10:$CP$15,3,MATCH(Calc_Proposed!CS$6,'Carbon Prices'!$D$9:$CP$9,0))/1000,0)","v":0},{"$f":"IFERROR(INDEX('Carbon Prices'!$D$10:$CP$15,3,MATCH(Calc_Proposed!CT$6,'Carbon Prices'!$D$9:$CP$9,0))/1000,0)","v":0},{"$f":"IFERROR(INDEX('Carbon Prices'!$D$10:$CP$15,3,MATCH(Calc_Proposed!CU$6,'Carbon Prices'!$D$9:$CP$9,0))/1000,0)","v":0},{"$f":"IFERROR(INDEX('Carbon Prices'!$D$10:$CP$15,3,MATCH(Calc_Proposed!CV$6,'Carbon Prices'!$D$9:$CP$9,0))/1000,0)","v":0},{"$f":"IFERROR(INDEX('Carbon Prices'!$D$10:$CP$15,3,MATCH(Calc_Proposed!CW$6,'Carbon Prices'!$D$9:$CP$9,0))/1000,0)","v":0},{"$f":"IFERROR(INDEX('Carbon Prices'!$D$10:$CP$15,3,MATCH(Calc_Proposed!CX$6,'Carbon Prices'!$D$9:$CP$9,0))/1000,0)","v":0},{"$f":"IFERROR(INDEX('Carbon Prices'!$D$10:$CP$15,3,MATCH(Calc_Proposed!CY$6,'Carbon Prices'!$D$9:$CP$9,0))/1000,0)","v":0}]
[null,"Total value elec","£000's",{"$f":"IFERROR(INDEX('Carbon Prices'!$D$10:$CP$15,6,MATCH(Calc_Proposed!D$6,'Carbon Prices'!$D$9:$CP$9,0))/1000,0)","v":0.10682994182319348},{"$f":"IFERROR(INDEX('Carbon Prices'!$D$10:$CP$15,6,MATCH(Calc_Proposed!E$6,'Carbon Prices'!$D$9:$CP$9,0))/1000,0)","v":0.10843239095054137},{"$f":"IFERROR(INDEX('Carbon Prices'!$D$10:$CP$15,6,MATCH(Calc_Proposed!F$6,'Carbon Prices'!$D$9:$CP$9,0))/1000,0)","v":0.11023959746638375},{"$f":"IFERROR(INDEX('Carbon Prices'!$D$10:$CP$15,6,MATCH(Calc_Proposed!G$6,'Carbon Prices'!$D$9:$CP$9,0))/1000,0)","v":0.11204680398222609},{"$f":"IFERROR(INDEX('Carbon Prices'!$D$10:$CP$15,6,MATCH(Calc_Proposed!H$6,'Carbon Prices'!$D$9:$CP$9,0))/1000,0)","v":0.11385401049806844},{"$f":"IFERROR(INDEX('Carbon Prices'!$D$10:$CP$15,6,MATCH(Calc_Proposed!I$6,'Carbon Prices'!$D$9:$CP$9,0))/1000,0)","v":0.1156612170139108},{"$f":"IFERROR(INDEX('Carbon Prices'!$D$10:$CP$15,6,MATCH(Calc_Proposed!J$6,'Carbon Prices'!$D$9:$CP$9,0))/1000,0)","v":0.11746842352975315},{"$f":"IFERROR(INDEX('Carbon Prices'!$D$10:$CP$15,6,MATCH(Calc_Proposed!K$6,'Carbon Prices'!$D$9:$CP$9,0))/1000,0)","v":0.11927563004559551},{"$f":"IFERROR(INDEX('Carbon Prices'!$D$10:$CP$15,6,MATCH(Calc_Proposed!L$6,'Carbon Prices'!$D$9:$CP$9,0))/1000,0)","v":0.12108283656143787},{"$f":"IFERROR(INDEX('Carbon Prices'!$D$10:$CP$15,6,MATCH(Calc_Proposed!M$6,'Carbon Prices'!$D$9:$CP$9,0))/1000,0)","v":0.12289004307728023},{"$f":"IFERROR(INDEX('Carbon Prices'!$D$10:$CP$15,6,MATCH(Calc_Proposed!N$6,'Carbon Prices'!$D$9:$CP$9,0))/1000,0)","v":0.12469724959312259},{"$f":"IFERROR(INDEX('Carbon Prices'!$D$10:$CP$15,6,MATCH(Calc_Proposed!O$6,'Carbon Prices'!$D$9:$CP$9,0))/1000,0)","v":0.12650445610896494},{"$f":"IFERROR(INDEX('Carbon Prices'!$D$10:$CP$15,6,MATCH(Calc_Proposed!P$6,'Carbon Prices'!$D$9:$CP$9,0))/1000,0)","v":0.13825129846194026},{"$f":"IFERROR(INDEX('Carbon Prices'!$D$10:$CP$15,6,MATCH(Calc_Proposed!Q$6,'Carbon Prices'!$D$9:$CP$9,0))/1000,0)","v":0.14999814081491555},{"$f":"IFERROR(INDEX('Carbon Prices'!$D$10:$CP$15,6,MATCH(Calc_Proposed!R$6,'Carbon Prices'!$D$9:$CP$9,0))/1000,0)","v":0.1617449831678909},{"$f":"IFERROR(INDEX('Carbon Prices'!$D$10:$CP$15,6,MATCH(Calc_Proposed!S$6,'Carbon Prices'!$D$9:$CP$9,0))/1000,0)","v":0.1734918255208662},{"$f":"IFERROR(INDEX('Carbon Prices'!$D$10:$CP$15,6,MATCH(Calc_Proposed!T$6,'Carbon Prices'!$D$9:$CP$9,0))/1000,0)","v":0.18523866787384149},{"$f":"IFERROR(INDEX('Carbon Prices'!$D$10:$CP$15,6,MATCH(Calc_Proposed!U$6,'Carbon Prices'!$D$9:$CP$9,0))/1000,0)","v":0.19698551022681682},{"$f":"IFERROR(INDEX('Carbon Prices'!$D$10:$CP$15,6,MATCH(Calc_Proposed!V$6,'Carbon Prices'!$D$9:$CP$9,0))/1000,0)","v":0.20873235257979214},{"$f":"IFERROR(INDEX('Carbon Prices'!$D$10:$CP$15,6,MATCH(Calc_Proposed!W$6,'Carbon Prices'!$D$9:$CP$9,0))/1000,0)","v":0.22047919493276749},{"$f":"IFERROR(INDEX('Carbon Prices'!$D$10:$CP$15,6,MATCH(Calc_Proposed!X$6,'Carbon Prices'!$D$9:$CP$9,0))/1000,0)","v":0.23222603728574279},{"$f":"IFERROR(INDEX('Carbon Prices'!$D$10:$CP$15,6,MATCH(Calc_Proposed!Y$6,'Carbon Prices'!$D$9:$CP$9,0))/1000,0)","v":0.24397287963871811},{"$f":"IFERROR(INDEX('Carbon Prices'!$D$10:$CP$15,6,MATCH(Calc_Proposed!Z$6,'Carbon Prices'!$D$9:$CP$9,0))/1000,0)","v":0.25571972199169341},{"$f":"IFERROR(INDEX('Carbon Prices'!$D$10:$CP$15,6,MATCH(Calc_Proposed!AA$6,'Carbon Prices'!$D$9:$CP$9,0))/1000,0)","v":0.2674665643446687},{"$f":"IFERROR(INDEX('Carbon Prices'!$D$10:$CP$15,6,MATCH(Calc_Proposed!AB$6,'Carbon Prices'!$D$9:$CP$9,0))/1000,0)","v":0.27921340669764405},{"$f":"IFERROR(INDEX('Carbon Prices'!$D$10:$CP$15,6,MATCH(Calc_Proposed!AC$6,'Carbon Prices'!$D$9:$CP$9,0))/1000,0)","v":0.2909602490506194},{"$f":"IFERROR(INDEX('Carbon Prices'!$D$10:$CP$15,6,MATCH(Calc_Proposed!AD$6,'Carbon Prices'!$D$9:$CP$9,0))/1000,0)","v":0.3027070914035947},{"$f":"IFERROR(INDEX('Carbon Prices'!$D$10:$CP$15,6,MATCH(Calc_Proposed!AE$6,'Carbon Prices'!$D$9:$CP$9,0))/1000,0)","v":0.31445393375656999},{"$f":"IFERROR(INDEX('Carbon Prices'!$D$10:$CP$15,6,MATCH(Calc_Proposed!AF$6,'Carbon Prices'!$D$9:$CP$9,0))/1000,0)","v":0.32620077610954529},{"$f":"IFERROR(INDEX('Carbon Prices'!$D$10:$CP$15,6,MATCH(Calc_Proposed!AG$6,'Carbon Prices'!$D$9:$CP$9,0))/1000,0)","v":0.33794761846252058},{"$f":"IFERROR(INDEX('Carbon Prices'!$D$10:$CP$15,6,MATCH(Calc_Proposed!AH$6,'Carbon Prices'!$D$9:$CP$9,0))/1000,0)","v":0.34969446081549593},{"$f":"IFERROR(INDEX('Carbon Prices'!$D$10:$CP$15,6,MATCH(Calc_Proposed!AI$6,'Carbon Prices'!$D$9:$CP$9,0))/1000,0)","v":0},{"$f":"IFERROR(INDEX('Carbon Prices'!$D$10:$CP$15,6,MATCH(Calc_Proposed!AJ$6,'Carbon Prices'!$D$9:$CP$9,0))/1000,0)","v":0},{"$f":"IFERROR(INDEX('Carbon Prices'!$D$10:$CP$15,6,MATCH(Calc_Proposed!AK$6,'Carbon Prices'!$D$9:$CP$9,0))/1000,0)","v":0},{"$f":"IFERROR(INDEX('Carbon Prices'!$D$10:$CP$15,6,MATCH(Calc_Proposed!AL$6,'Carbon Prices'!$D$9:$CP$9,0))/1000,0)","v":0},{"$f":"IFERROR(INDEX('Carbon Prices'!$D$10:$CP$15,6,MATCH(Calc_Proposed!AM$6,'Carbon Prices'!$D$9:$CP$9,0))/1000,0)","v":0},{"$f":"IFERROR(INDEX('Carbon Prices'!$D$10:$CP$15,6,MATCH(Calc_Proposed!AN$6,'Carbon Prices'!$D$9:$CP$9,0))/1000,0)","v":0},{"$f":"IFERROR(INDEX('Carbon Prices'!$D$10:$CP$15,6,MATCH(Calc_Proposed!AO$6,'Carbon Prices'!$D$9:$CP$9,0))/1000,0)","v":0},{"$f":"IFERROR(INDEX('Carbon Prices'!$D$10:$CP$15,6,MATCH(Calc_Proposed!AP$6,'Carbon Prices'!$D$9:$CP$9,0))/1000,0)","v":0},{"$f":"IFERROR(INDEX('Carbon Prices'!$D$10:$CP$15,6,MATCH(Calc_Proposed!AQ$6,'Carbon Prices'!$D$9:$CP$9,0))/1000,0)","v":0},{"$f":"IFERROR(INDEX('Carbon Prices'!$D$10:$CP$15,6,MATCH(Calc_Proposed!AR$6,'Carbon Prices'!$D$9:$CP$9,0))/1000,0)","v":0},{"$f":"IFERROR(INDEX('Carbon Prices'!$D$10:$CP$15,6,MATCH(Calc_Proposed!AS$6,'Carbon Prices'!$D$9:$CP$9,0))/1000,0)","v":0},{"$f":"IFERROR(INDEX('Carbon Prices'!$D$10:$CP$15,6,MATCH(Calc_Proposed!AT$6,'Carbon Prices'!$D$9:$CP$9,0))/1000,0)","v":0},{"$f":"IFERROR(INDEX('Carbon Prices'!$D$10:$CP$15,6,MATCH(Calc_Proposed!AU$6,'Carbon Prices'!$D$9:$CP$9,0))/1000,0)","v":0},{"$f":"IFERROR(INDEX('Carbon Prices'!$D$10:$CP$15,6,MATCH(Calc_Proposed!AV$6,'Carbon Prices'!$D$9:$CP$9,0))/1000,0)","v":0},{"$f":"IFERROR(INDEX('Carbon Prices'!$D$10:$CP$15,6,MATCH(Calc_Proposed!AW$6,'Carbon Prices'!$D$9:$CP$9,0))/1000,0)","v":0},{"$f":"IFERROR(INDEX('Carbon Prices'!$D$10:$CP$15,6,MATCH(Calc_Proposed!AX$6,'Carbon Prices'!$D$9:$CP$9,0))/1000,0)","v":0},{"$f":"IFERROR(INDEX('Carbon Prices'!$D$10:$CP$15,6,MATCH(Calc_Proposed!AY$6,'Carbon Prices'!$D$9:$CP$9,0))/1000,0)","v":0},{"$f":"IFERROR(INDEX('Carbon Prices'!$D$10:$CP$15,6,MATCH(Calc_Proposed!AZ$6,'Carbon Prices'!$D$9:$CP$9,0))/1000,0)","v":0},{"$f":"IFERROR(INDEX('Carbon Prices'!$D$10:$CP$15,6,MATCH(Calc_Proposed!BA$6,'Carbon Prices'!$D$9:$CP$9,0))/1000,0)","v":0},{"$f":"IFERROR(INDEX('Carbon Prices'!$D$10:$CP$15,6,MATCH(Calc_Proposed!BB$6,'Carbon Prices'!$D$9:$CP$9,0))/1000,0)","v":0},{"$f":"IFERROR(INDEX('Carbon Prices'!$D$10:$CP$15,6,MATCH(Calc_Proposed!BC$6,'Carbon Prices'!$D$9:$CP$9,0))/1000,0)","v":0},{"$f":"IFERROR(INDEX('Carbon Prices'!$D$10:$CP$15,6,MATCH(Calc_Proposed!BD$6,'Carbon Prices'!$D$9:$CP$9,0))/1000,0)","v":0},{"$f":"IFERROR(INDEX('Carbon Prices'!$D$10:$CP$15,6,MATCH(Calc_Proposed!BE$6,'Carbon Prices'!$D$9:$CP$9,0))/1000,0)","v":0},{"$f":"IFERROR(INDEX('Carbon Prices'!$D$10:$CP$15,6,MATCH(Calc_Proposed!BF$6,'Carbon Prices'!$D$9:$CP$9,0))/1000,0)","v":0},{"$f":"IFERROR(INDEX('Carbon Prices'!$D$10:$CP$15,6,MATCH(Calc_Proposed!BG$6,'Carbon Prices'!$D$9:$CP$9,0))/1000,0)","v":0},{"$f":"IFERROR(INDEX('Carbon Prices'!$D$10:$CP$15,6,MATCH(Calc_Proposed!BH$6,'Carbon Prices'!$D$9:$CP$9,0))/1000,0)","v":0},{"$f":"IFERROR(INDEX('Carbon Prices'!$D$10:$CP$15,6,MATCH(Calc_Proposed!BI$6,'Carbon Prices'!$D$9:$CP$9,0))/1000,0)","v":0},{"$f":"IFERROR(INDEX('Carbon Prices'!$D$10:$CP$15,6,MATCH(Calc_Proposed!BJ$6,'Carbon Prices'!$D$9:$CP$9,0))/1000,0)","v":0},{"$f":"IFERROR(INDEX('Carbon Prices'!$D$10:$CP$15,6,MATCH(Calc_Proposed!BK$6,'Carbon Prices'!$D$9:$CP$9,0))/1000,0)","v":0},{"$f":"IFERROR(INDEX('Carbon Prices'!$D$10:$CP$15,6,MATCH(Calc_Proposed!BL$6,'Carbon Prices'!$D$9:$CP$9,0))/1000,0)","v":0},{"$f":"IFERROR(INDEX('Carbon Prices'!$D$10:$CP$15,6,MATCH(Calc_Proposed!BM$6,'Carbon Prices'!$D$9:$CP$9,0))/1000,0)","v":0},{"$f":"IFERROR(INDEX('Carbon Prices'!$D$10:$CP$15,6,MATCH(Calc_Proposed!BN$6,'Carbon Prices'!$D$9:$CP$9,0))/1000,0)","v":0},{"$f":"IFERROR(INDEX('Carbon Prices'!$D$10:$CP$15,6,MATCH(Calc_Proposed!BO$6,'Carbon Prices'!$D$9:$CP$9,0))/1000,0)","v":0},{"$f":"IFERROR(INDEX('Carbon Prices'!$D$10:$CP$15,6,MATCH(Calc_Proposed!BP$6,'Carbon Prices'!$D$9:$CP$9,0))/1000,0)","v":0},{"$f":"IFERROR(INDEX('Carbon Prices'!$D$10:$CP$15,6,MATCH(Calc_Proposed!BQ$6,'Carbon Prices'!$D$9:$CP$9,0))/1000,0)","v":0},{"$f":"IFERROR(INDEX('Carbon Prices'!$D$10:$CP$15,6,MATCH(Calc_Proposed!BR$6,'Carbon Prices'!$D$9:$CP$9,0))/1000,0)","v":0},{"$f":"IFERROR(INDEX('Carbon Prices'!$D$10:$CP$15,6,MATCH(Calc_Proposed!BS$6,'Carbon Prices'!$D$9:$CP$9,0))/1000,0)","v":0},{"$f":"IFERROR(INDEX('Carbon Prices'!$D$10:$CP$15,6,MATCH(Calc_Proposed!BT$6,'Carbon Prices'!$D$9:$CP$9,0))/1000,0)","v":0},{"$f":"IFERROR(INDEX('Carbon Prices'!$D$10:$CP$15,6,MATCH(Calc_Proposed!BU$6,'Carbon Prices'!$D$9:$CP$9,0))/1000,0)","v":0},{"$f":"IFERROR(INDEX('Carbon Prices'!$D$10:$CP$15,6,MATCH(Calc_Proposed!BV$6,'Carbon Prices'!$D$9:$CP$9,0))/1000,0)","v":0},{"$f":"IFERROR(INDEX('Carbon Prices'!$D$10:$CP$15,6,MATCH(Calc_Proposed!BW$6,'Carbon Prices'!$D$9:$CP$9,0))/1000,0)","v":0},{"$f":"IFERROR(INDEX('Carbon Prices'!$D$10:$CP$15,6,MATCH(Calc_Proposed!BX$6,'Carbon Prices'!$D$9:$CP$9,0))/1000,0)","v":0},{"$f":"IFERROR(INDEX('Carbon Prices'!$D$10:$CP$15,6,MATCH(Calc_Proposed!BY$6,'Carbon Prices'!$D$9:$CP$9,0))/1000,0)","v":0},{"$f":"IFERROR(INDEX('Carbon Prices'!$D$10:$CP$15,6,MATCH(Calc_Proposed!BZ$6,'Carbon Prices'!$D$9:$CP$9,0))/1000,0)","v":0},{"$f":"IFERROR(INDEX('Carbon Prices'!$D$10:$CP$15,6,MATCH(Calc_Proposed!CA$6,'Carbon Prices'!$D$9:$CP$9,0))/1000,0)","v":0},{"$f":"IFERROR(INDEX('Carbon Prices'!$D$10:$CP$15,6,MATCH(Calc_Proposed!CB$6,'Carbon Prices'!$D$9:$CP$9,0))/1000,0)","v":0},{"$f":"IFERROR(INDEX('Carbon Prices'!$D$10:$CP$15,6,MATCH(Calc_Proposed!CC$6,'Carbon Prices'!$D$9:$CP$9,0))/1000,0)","v":0},{"$f":"IFERROR(INDEX('Carbon Prices'!$D$10:$CP$15,6,MATCH(Calc_Proposed!CD$6,'Carbon Prices'!$D$9:$CP$9,0))/1000,0)","v":0},{"$f":"IFERROR(INDEX('Carbon Prices'!$D$10:$CP$15,6,MATCH(Calc_Proposed!CE$6,'Carbon Prices'!$D$9:$CP$9,0))/1000,0)","v":0},{"$f":"IFERROR(INDEX('Carbon Prices'!$D$10:$CP$15,6,MATCH(Calc_Proposed!CF$6,'Carbon Prices'!$D$9:$CP$9,0))/1000,0)","v":0},{"$f":"IFERROR(INDEX('Carbon Prices'!$D$10:$CP$15,6,MATCH(Calc_Proposed!CG$6,'Carbon Prices'!$D$9:$CP$9,0))/1000,0)","v":0},{"$f":"IFERROR(INDEX('Carbon Prices'!$D$10:$CP$15,6,MATCH(Calc_Proposed!CH$6,'Carbon Prices'!$D$9:$CP$9,0))/1000,0)","v":0},{"$f":"IFERROR(INDEX('Carbon Prices'!$D$10:$CP$15,6,MATCH(Calc_Proposed!CI$6,'Carbon Prices'!$D$9:$CP$9,0))/1000,0)","v":0},{"$f":"IFERROR(INDEX('Carbon Prices'!$D$10:$CP$15,6,MATCH(Calc_Proposed!CJ$6,'Carbon Prices'!$D$9:$CP$9,0))/1000,0)","v":0},{"$f":"IFERROR(INDEX('Carbon Prices'!$D$10:$CP$15,6,MATCH(Calc_Proposed!CK$6,'Carbon Prices'!$D$9:$CP$9,0))/1000,0)","v":0},{"$f":"IFERROR(INDEX('Carbon Prices'!$D$10:$CP$15,6,MATCH(Calc_Proposed!CL$6,'Carbon Prices'!$D$9:$CP$9,0))/1000,0)","v":0},{"$f":"IFERROR(INDEX('Carbon Prices'!$D$10:$CP$15,6,MATCH(Calc_Proposed!CM$6,'Carbon Prices'!$D$9:$CP$9,0))/1000,0)","v":0},{"$f":"IFERROR(INDEX('Carbon Prices'!$D$10:$CP$15,6,MATCH(Calc_Proposed!CN$6,'Carbon Prices'!$D$9:$CP$9,0))/1000,0)","v":0},{"$f":"IFERROR(INDEX('Carbon Prices'!$D$10:$CP$15,6,MATCH(Calc_Proposed!CO$6,'Carbon Prices'!$D$9:$CP$9,0))/1000,0)","v":0},{"$f":"IFERROR(INDEX('Carbon Prices'!$D$10:$CP$15,6,MATCH(Calc_Proposed!CP$6,'Carbon Prices'!$D$9:$CP$9,0))/1000,0)","v":0},{"$f":"IFERROR(INDEX('Carbon Prices'!$D$10:$CP$15,6,MATCH(Calc_Proposed!CQ$6,'Carbon Prices'!$D$9:$CP$9,0))/1000,0)","v":0},{"$f":"IFERROR(INDEX('Carbon Prices'!$D$10:$CP$15,6,MATCH(Calc_Proposed!CR$6,'Carbon Prices'!$D$9:$CP$9,0))/1000,0)","v":0},{"$f":"IFERROR(INDEX('Carbon Prices'!$D$10:$CP$15,6,MATCH(Calc_Proposed!CS$6,'Carbon Prices'!$D$9:$CP$9,0))/1000,0)","v":0},{"$f":"IFERROR(INDEX('Carbon Prices'!$D$10:$CP$15,6,MATCH(Calc_Proposed!CT$6,'Carbon Prices'!$D$9:$CP$9,0))/1000,0)","v":0},{"$f":"IFERROR(INDEX('Carbon Prices'!$D$10:$CP$15,6,MATCH(Calc_Proposed!CU$6,'Carbon Prices'!$D$9:$CP$9,0))/1000,0)","v":0},{"$f":"IFERROR(INDEX('Carbon Prices'!$D$10:$CP$15,6,MATCH(Calc_Proposed!CV$6,'Carbon Prices'!$D$9:$CP$9,0))/1000,0)","v":0},{"$f":"IFERROR(INDEX('Carbon Prices'!$D$10:$CP$15,6,MATCH(Calc_Proposed!CW$6,'Carbon Prices'!$D$9:$CP$9,0))/1000,0)","v":0},{"$f":"IFERROR(INDEX('Carbon Prices'!$D$10:$CP$15,6,MATCH(Calc_Proposed!CX$6,'Carbon Prices'!$D$9:$CP$9,0))/1000,0)","v":0},{"$f":"IFERROR(INDEX('Carbon Prices'!$D$10:$CP$15,6,MATCH(Calc_Proposed!CY$6,'Carbon Prices'!$D$9:$CP$9,0))/1000,0)","v":0}]
[null,"Discounted total","£000's",{"$f":"(D152*D154)+(D153*D155)*D$7","v":3170.8060754163894},{"$f":"(E152*E154)+(E153*E155)*E$7","v":3629.5204183662868},4354.80908116724,5081.0273592423537,5802.5393982933701,6533.9863907852105,7259.1275921582783,7980.6432418861496,0,0,0,0,0,0,0,0,0,0,0,0,0,0,0,0,0,0,0,0,0,0,0,0,0,0,0,0,0,0,0,0,0,0,0,0,0,0,0,0,0,0,0,0,0,0,0,0,0,0,0,0,0,0,0,0,0,{"$f":"(BQ152*BQ154)+(BQ153*BQ155)*BQ$7","v":0},0,0,0,0,0,0,0,0,0,0,0,0,0,0,0,0,0,0,0,0,0,0,0,0,0,0,0,0,0,0,0,0,0,0]
[]
[]
[null,"EEA Damage costs"]
[]
[null,"Air pollutant emissions- value"]
[null,{"$f":"B138","v":"Sox 2019"},"£000's",{"$f":"IFERROR(IF(OR($C$168=FALSE,LEFT($B162,3)<>\"NOX\"),D53*INDEX('Damage costs'!$P$16:$P$43,MATCH($B162,'Damage costs'!$C$16:$C$43,0))/1000,D53*INDEX('Damage costs'!$T$16:$T$43,MATCH($B162,'Damage costs'!$C$16:$C$43,0))/1000),\"\")","v":10.600272350312391},{"$f":"IFERROR(IF(OR($C$168=FALSE,LEFT($B162,3)<>\"NOX\"),E53*INDEX('Damage costs'!$P$16:$P$43,MATCH($B162,'Damage costs'!$C$16:$C$43,0))/1000,E53*INDEX('Damage costs'!$T$16:$T$43,MATCH($B162,'Damage costs'!$C$16:$C$43,0))/1000),\"\")","v":10.600272350312391},{"$f":"IFERROR(IF(OR($C$168=FALSE,LEFT($B162,3)<>\"NOX\"),F53*INDEX('Damage costs'!$P$16:$P$43,MATCH($B162,'Damage costs'!$C$16:$C$43,0))/1000,F53*INDEX('Damage costs'!$T$16:$T$43,MATCH($B162,'Damage costs'!$C$16:$C$43,0))/1000),\"\")","v":10.600272350312391},{"$f":"IFERROR(IF(OR($C$168=FALSE,LEFT($B162,3)<>\"NOX\"),G53*INDEX('Damage costs'!$P$16:$P$43,MATCH($B162,'Damage costs'!$C$16:$C$43,0))/1000,G53*INDEX('Damage costs'!$T$16:$T$43,MATCH($B162,'Damage costs'!$C$16:$C$43,0))/1000),\"\")","v":10.600272350312391},{"$f":"IFERROR(IF(OR($C$168=FALSE,LEFT($B162,3)<>\"NOX\"),H53*INDEX('Damage costs'!$P$16:$P$43,MATCH($B162,'Damage costs'!$C$16:$C$43,0))/1000,H53*INDEX('Damage costs'!$T$16:$T$43,MATCH($B162,'Damage costs'!$C$16:$C$43,0))/1000),\"\")","v":2.8196724451830959},{"$f":"IFERROR(IF(OR($C$168=FALSE,LEFT($B162,3)<>\"NOX\"),I53*INDEX('Damage costs'!$P$16:$P$43,MATCH($B162,'Damage costs'!$C$16:$C$43,0))/1000,I53*INDEX('Damage costs'!$T$16:$T$43,MATCH($B162,'Damage costs'!$C$16:$C$43,0))/1000),\"\")","v":2.8196724451830959},{"$f":"IFERROR(IF(OR($C$168=FALSE,LEFT($B162,3)<>\"NOX\"),J53*INDEX('Damage costs'!$P$16:$P$43,MATCH($B162,'Damage costs'!$C$16:$C$43,0))/1000,J53*INDEX('Damage costs'!$T$16:$T$43,MATCH($B162,'Damage costs'!$C$16:$C$43,0))/1000),\"\")","v":2.8196724451830959},{"$f":"IFERROR(IF(OR($C$168=FALSE,LEFT($B162,3)<>\"NOX\"),K53*INDEX('Damage costs'!$P$16:$P$43,MATCH($B162,'Damage costs'!$C$16:$C$43,0))/1000,K53*INDEX('Damage costs'!$T$16:$T$43,MATCH($B162,'Damage costs'!$C$16:$C$43,0))/1000),\"\")","v":2.8196724451830959},{"$f":"IFERROR(IF(OR($C$168=FALSE,LEFT($B162,3)<>\"NOX\"),L53*INDEX('Damage costs'!$P$16:$P$43,MATCH($B162,'Damage costs'!$C$16:$C$43,0))/1000,L53*INDEX('Damage costs'!$T$16:$T$43,MATCH($B162,'Damage costs'!$C$16:$C$43,0))/1000),\"\")","v":0},{"$f":"IFERROR(IF(OR($C$168=FALSE,LEFT($B162,3)<>\"NOX\"),M53*INDEX('Damage costs'!$P$16:$P$43,MATCH($B162,'Damage costs'!$C$16:$C$43,0))/1000,M53*INDEX('Damage costs'!$T$16:$T$43,MATCH($B162,'Damage costs'!$C$16:$C$43,0))/1000),\"\")","v":0},{"$f":"IFERROR(IF(OR($C$168=FALSE,LEFT($B162,3)<>\"NOX\"),N53*INDEX('Damage costs'!$P$16:$P$43,MATCH($B162,'Damage costs'!$C$16:$C$43,0))/1000,N53*INDEX('Damage costs'!$T$16:$T$43,MATCH($B162,'Damage costs'!$C$16:$C$43,0))/1000),\"\")","v":0},{"$f":"IFERROR(IF(OR($C$168=FALSE,LEFT($B162,3)<>\"NOX\"),O53*INDEX('Damage costs'!$P$16:$P$43,MATCH($B162,'Damage costs'!$C$16:$C$43,0))/1000,O53*INDEX('Damage costs'!$T$16:$T$43,MATCH($B162,'Damage costs'!$C$16:$C$43,0))/1000),\"\")","v":0},{"$f":"IFERROR(IF(OR($C$168=FALSE,LEFT($B162,3)<>\"NOX\"),P53*INDEX('Damage costs'!$P$16:$P$43,MATCH($B162,'Damage costs'!$C$16:$C$43,0))/1000,P53*INDEX('Damage costs'!$T$16:$T$43,MATCH($B162,'Damage costs'!$C$16:$C$43,0))/1000),\"\")","v":0},{"$f":"IFERROR(IF(OR($C$168=FALSE,LEFT($B162,3)<>\"NOX\"),Q53*INDEX('Damage costs'!$P$16:$P$43,MATCH($B162,'Damage costs'!$C$16:$C$43,0))/1000,Q53*INDEX('Damage costs'!$T$16:$T$43,MATCH($B162,'Damage costs'!$C$16:$C$43,0))/1000),\"\")","v":0},{"$f":"IFERROR(IF(OR($C$168=FALSE,LEFT($B162,3)<>\"NOX\"),R53*INDEX('Damage costs'!$P$16:$P$43,MATCH($B162,'Damage costs'!$C$16:$C$43,0))/1000,R53*INDEX('Damage costs'!$T$16:$T$43,MATCH($B162,'Damage costs'!$C$16:$C$43,0))/1000),\"\")","v":0},{"$f":"IFERROR(IF(OR($C$168=FALSE,LEFT($B162,3)<>\"NOX\"),S53*INDEX('Damage costs'!$P$16:$P$43,MATCH($B162,'Damage costs'!$C$16:$C$43,0))/1000,S53*INDEX('Damage costs'!$T$16:$T$43,MATCH($B162,'Damage costs'!$C$16:$C$43,0))/1000),\"\")","v":0},{"$f":"IFERROR(IF(OR($C$168=FALSE,LEFT($B162,3)<>\"NOX\"),T53*INDEX('Damage costs'!$P$16:$P$43,MATCH($B162,'Damage costs'!$C$16:$C$43,0))/1000,T53*INDEX('Damage costs'!$T$16:$T$43,MATCH($B162,'Damage costs'!$C$16:$C$43,0))/1000),\"\")","v":0},{"$f":"IFERROR(IF(OR($C$168=FALSE,LEFT($B162,3)<>\"NOX\"),U53*INDEX('Damage costs'!$P$16:$P$43,MATCH($B162,'Damage costs'!$C$16:$C$43,0))/1000,U53*INDEX('Damage costs'!$T$16:$T$43,MATCH($B162,'Damage costs'!$C$16:$C$43,0))/1000),\"\")","v":0},{"$f":"IFERROR(IF(OR($C$168=FALSE,LEFT($B162,3)<>\"NOX\"),V53*INDEX('Damage costs'!$P$16:$P$43,MATCH($B162,'Damage costs'!$C$16:$C$43,0))/1000,V53*INDEX('Damage costs'!$T$16:$T$43,MATCH($B162,'Damage costs'!$C$16:$C$43,0))/1000),\"\")","v":0},{"$f":"IFERROR(IF(OR($C$168=FALSE,LEFT($B162,3)<>\"NOX\"),W53*INDEX('Damage costs'!$P$16:$P$43,MATCH($B162,'Damage costs'!$C$16:$C$43,0))/1000,W53*INDEX('Damage costs'!$T$16:$T$43,MATCH($B162,'Damage costs'!$C$16:$C$43,0))/1000),\"\")","v":0},{"$f":"IFERROR(IF(OR($C$168=FALSE,LEFT($B162,3)<>\"NOX\"),X53*INDEX('Damage costs'!$P$16:$P$43,MATCH($B162,'Damage costs'!$C$16:$C$43,0))/1000,X53*INDEX('Damage costs'!$T$16:$T$43,MATCH($B162,'Damage costs'!$C$16:$C$43,0))/1000),\"\")","v":0},{"$f":"IFERROR(IF(OR($C$168=FALSE,LEFT($B162,3)<>\"NOX\"),Y53*INDEX('Damage costs'!$P$16:$P$43,MATCH($B162,'Damage costs'!$C$16:$C$43,0))/1000,Y53*INDEX('Damage costs'!$T$16:$T$43,MATCH($B162,'Damage costs'!$C$16:$C$43,0))/1000),\"\")","v":0},{"$f":"IFERROR(IF(OR($C$168=FALSE,LEFT($B162,3)<>\"NOX\"),Z53*INDEX('Damage costs'!$P$16:$P$43,MATCH($B162,'Damage costs'!$C$16:$C$43,0))/1000,Z53*INDEX('Damage costs'!$T$16:$T$43,MATCH($B162,'Damage costs'!$C$16:$C$43,0))/1000),\"\")","v":0},{"$f":"IFERROR(IF(OR($C$168=FALSE,LEFT($B162,3)<>\"NOX\"),AA53*INDEX('Damage costs'!$P$16:$P$43,MATCH($B162,'Damage costs'!$C$16:$C$43,0))/1000,AA53*INDEX('Damage costs'!$T$16:$T$43,MATCH($B162,'Damage costs'!$C$16:$C$43,0))/1000),\"\")","v":0},{"$f":"IFERROR(IF(OR($C$168=FALSE,LEFT($B162,3)<>\"NOX\"),AB53*INDEX('Damage costs'!$P$16:$P$43,MATCH($B162,'Damage costs'!$C$16:$C$43,0))/1000,AB53*INDEX('Damage costs'!$T$16:$T$43,MATCH($B162,'Damage costs'!$C$16:$C$43,0))/1000),\"\")","v":0},{"$f":"IFERROR(IF(OR($C$168=FALSE,LEFT($B162,3)<>\"NOX\"),AC53*INDEX('Damage costs'!$P$16:$P$43,MATCH($B162,'Damage costs'!$C$16:$C$43,0))/1000,AC53*INDEX('Damage costs'!$T$16:$T$43,MATCH($B162,'Damage costs'!$C$16:$C$43,0))/1000),\"\")","v":0},{"$f":"IFERROR(IF(OR($C$168=FALSE,LEFT($B162,3)<>\"NOX\"),AD53*INDEX('Damage costs'!$P$16:$P$43,MATCH($B162,'Damage costs'!$C$16:$C$43,0))/1000,AD53*INDEX('Damage costs'!$T$16:$T$43,MATCH($B162,'Damage costs'!$C$16:$C$43,0))/1000),\"\")","v":0},{"$f":"IFERROR(IF(OR($C$168=FALSE,LEFT($B162,3)<>\"NOX\"),AE53*INDEX('Damage costs'!$P$16:$P$43,MATCH($B162,'Damage costs'!$C$16:$C$43,0))/1000,AE53*INDEX('Damage costs'!$T$16:$T$43,MATCH($B162,'Damage costs'!$C$16:$C$43,0))/1000),\"\")","v":0},{"$f":"IFERROR(IF(OR($C$168=FALSE,LEFT($B162,3)<>\"NOX\"),AF53*INDEX('Damage costs'!$P$16:$P$43,MATCH($B162,'Damage costs'!$C$16:$C$43,0))/1000,AF53*INDEX('Damage costs'!$T$16:$T$43,MATCH($B162,'Damage costs'!$C$16:$C$43,0))/1000),\"\")","v":0},{"$f":"IFERROR(IF(OR($C$168=FALSE,LEFT($B162,3)<>\"NOX\"),AG53*INDEX('Damage costs'!$P$16:$P$43,MATCH($B162,'Damage costs'!$C$16:$C$43,0))/1000,AG53*INDEX('Damage costs'!$T$16:$T$43,MATCH($B162,'Damage costs'!$C$16:$C$43,0))/1000),\"\")","v":0},{"$f":"IFERROR(IF(OR($C$168=FALSE,LEFT($B162,3)<>\"NOX\"),AH53*INDEX('Damage costs'!$P$16:$P$43,MATCH($B162,'Damage costs'!$C$16:$C$43,0))/1000,AH53*INDEX('Damage costs'!$T$16:$T$43,MATCH($B162,'Damage costs'!$C$16:$C$43,0))/1000),\"\")","v":0},{"$f":"IFERROR(IF(OR($C$168=FALSE,LEFT($B162,3)<>\"NOX\"),AI53*INDEX('Damage costs'!$P$16:$P$43,MATCH($B162,'Damage costs'!$C$16:$C$43,0))/1000,AI53*INDEX('Damage costs'!$T$16:$T$43,MATCH($B162,'Damage costs'!$C$16:$C$43,0))/1000),\"\")","v":0},{"$f":"IFERROR(IF(OR($C$168=FALSE,LEFT($B162,3)<>\"NOX\"),AJ53*INDEX('Damage costs'!$P$16:$P$43,MATCH($B162,'Damage costs'!$C$16:$C$43,0))/1000,AJ53*INDEX('Damage costs'!$T$16:$T$43,MATCH($B162,'Damage costs'!$C$16:$C$43,0))/1000),\"\")","v":0},{"$f":"IFERROR(IF(OR($C$168=FALSE,LEFT($B162,3)<>\"NOX\"),AK53*INDEX('Damage costs'!$P$16:$P$43,MATCH($B162,'Damage costs'!$C$16:$C$43,0))/1000,AK53*INDEX('Damage costs'!$T$16:$T$43,MATCH($B162,'Damage costs'!$C$16:$C$43,0))/1000),\"\")","v":0},{"$f":"IFERROR(IF(OR($C$168=FALSE,LEFT($B162,3)<>\"NOX\"),AL53*INDEX('Damage costs'!$P$16:$P$43,MATCH($B162,'Damage costs'!$C$16:$C$43,0))/1000,AL53*INDEX('Damage costs'!$T$16:$T$43,MATCH($B162,'Damage costs'!$C$16:$C$43,0))/1000),\"\")","v":0},{"$f":"IFERROR(IF(OR($C$168=FALSE,LEFT($B162,3)<>\"NOX\"),AM53*INDEX('Damage costs'!$P$16:$P$43,MATCH($B162,'Damage costs'!$C$16:$C$43,0))/1000,AM53*INDEX('Damage costs'!$T$16:$T$43,MATCH($B162,'Damage costs'!$C$16:$C$43,0))/1000),\"\")","v":0},{"$f":"IFERROR(IF(OR($C$168=FALSE,LEFT($B162,3)<>\"NOX\"),AN53*INDEX('Damage costs'!$P$16:$P$43,MATCH($B162,'Damage costs'!$C$16:$C$43,0))/1000,AN53*INDEX('Damage costs'!$T$16:$T$43,MATCH($B162,'Damage costs'!$C$16:$C$43,0))/1000),\"\")","v":0},{"$f":"IFERROR(IF(OR($C$168=FALSE,LEFT($B162,3)<>\"NOX\"),AO53*INDEX('Damage costs'!$P$16:$P$43,MATCH($B162,'Damage costs'!$C$16:$C$43,0))/1000,AO53*INDEX('Damage costs'!$T$16:$T$43,MATCH($B162,'Damage costs'!$C$16:$C$43,0))/1000),\"\")","v":0},{"$f":"IFERROR(IF(OR($C$168=FALSE,LEFT($B162,3)<>\"NOX\"),AP53*INDEX('Damage costs'!$P$16:$P$43,MATCH($B162,'Damage costs'!$C$16:$C$43,0))/1000,AP53*INDEX('Damage costs'!$T$16:$T$43,MATCH($B162,'Damage costs'!$C$16:$C$43,0))/1000),\"\")","v":0},{"$f":"IFERROR(IF(OR($C$168=FALSE,LEFT($B162,3)<>\"NOX\"),AQ53*INDEX('Damage costs'!$P$16:$P$43,MATCH($B162,'Damage costs'!$C$16:$C$43,0))/1000,AQ53*INDEX('Damage costs'!$T$16:$T$43,MATCH($B162,'Damage costs'!$C$16:$C$43,0))/1000),\"\")","v":0},{"$f":"IFERROR(IF(OR($C$168=FALSE,LEFT($B162,3)<>\"NOX\"),AR53*INDEX('Damage costs'!$P$16:$P$43,MATCH($B162,'Damage costs'!$C$16:$C$43,0))/1000,AR53*INDEX('Damage costs'!$T$16:$T$43,MATCH($B162,'Damage costs'!$C$16:$C$43,0))/1000),\"\")","v":0},{"$f":"IFERROR(IF(OR($C$168=FALSE,LEFT($B162,3)<>\"NOX\"),AS53*INDEX('Damage costs'!$P$16:$P$43,MATCH($B162,'Damage costs'!$C$16:$C$43,0))/1000,AS53*INDEX('Damage costs'!$T$16:$T$43,MATCH($B162,'Damage costs'!$C$16:$C$43,0))/1000),\"\")","v":0},{"$f":"IFERROR(IF(OR($C$168=FALSE,LEFT($B162,3)<>\"NOX\"),AT53*INDEX('Damage costs'!$P$16:$P$43,MATCH($B162,'Damage costs'!$C$16:$C$43,0))/1000,AT53*INDEX('Damage costs'!$T$16:$T$43,MATCH($B162,'Damage costs'!$C$16:$C$43,0))/1000),\"\")","v":0},{"$f":"IFERROR(IF(OR($C$168=FALSE,LEFT($B162,3)<>\"NOX\"),AU53*INDEX('Damage costs'!$P$16:$P$43,MATCH($B162,'Damage costs'!$C$16:$C$43,0))/1000,AU53*INDEX('Damage costs'!$T$16:$T$43,MATCH($B162,'Damage costs'!$C$16:$C$43,0))/1000),\"\")","v":0},{"$f":"IFERROR(IF(OR($C$168=FALSE,LEFT($B162,3)<>\"NOX\"),AV53*INDEX('Damage costs'!$P$16:$P$43,MATCH($B162,'Damage costs'!$C$16:$C$43,0))/1000,AV53*INDEX('Damage costs'!$T$16:$T$43,MATCH($B162,'Damage costs'!$C$16:$C$43,0))/1000),\"\")","v":0},{"$f":"IFERROR(IF(OR($C$168=FALSE,LEFT($B162,3)<>\"NOX\"),AW53*INDEX('Damage costs'!$P$16:$P$43,MATCH($B162,'Damage costs'!$C$16:$C$43,0))/1000,AW53*INDEX('Damage costs'!$T$16:$T$43,MATCH($B162,'Damage costs'!$C$16:$C$43,0))/1000),\"\")","v":0},{"$f":"IFERROR(IF(OR($C$168=FALSE,LEFT($B162,3)<>\"NOX\"),AX53*INDEX('Damage costs'!$P$16:$P$43,MATCH($B162,'Damage costs'!$C$16:$C$43,0))/1000,AX53*INDEX('Damage costs'!$T$16:$T$43,MATCH($B162,'Damage costs'!$C$16:$C$43,0))/1000),\"\")","v":0},{"$f":"IFERROR(IF(OR($C$168=FALSE,LEFT($B162,3)<>\"NOX\"),AY53*INDEX('Damage costs'!$P$16:$P$43,MATCH($B162,'Damage costs'!$C$16:$C$43,0))/1000,AY53*INDEX('Damage costs'!$T$16:$T$43,MATCH($B162,'Damage costs'!$C$16:$C$43,0))/1000),\"\")","v":0},{"$f":"IFERROR(IF(OR($C$168=FALSE,LEFT($B162,3)<>\"NOX\"),AZ53*INDEX('Damage costs'!$P$16:$P$43,MATCH($B162,'Damage costs'!$C$16:$C$43,0))/1000,AZ53*INDEX('Damage costs'!$T$16:$T$43,MATCH($B162,'Damage costs'!$C$16:$C$43,0))/1000),\"\")","v":0},{"$f":"IFERROR(IF(OR($C$168=FALSE,LEFT($B162,3)<>\"NOX\"),BA53*INDEX('Damage costs'!$P$16:$P$43,MATCH($B162,'Damage costs'!$C$16:$C$43,0))/1000,BA53*INDEX('Damage costs'!$T$16:$T$43,MATCH($B162,'Damage costs'!$C$16:$C$43,0))/1000),\"\")","v":0},{"$f":"IFERROR(IF(OR($C$168=FALSE,LEFT($B162,3)<>\"NOX\"),BB53*INDEX('Damage costs'!$P$16:$P$43,MATCH($B162,'Damage costs'!$C$16:$C$43,0))/1000,BB53*INDEX('Damage costs'!$T$16:$T$43,MATCH($B162,'Damage costs'!$C$16:$C$43,0))/1000),\"\")","v":0},{"$f":"IFERROR(IF(OR($C$168=FALSE,LEFT($B162,3)<>\"NOX\"),BC53*INDEX('Damage costs'!$P$16:$P$43,MATCH($B162,'Damage costs'!$C$16:$C$43,0))/1000,BC53*INDEX('Damage costs'!$T$16:$T$43,MATCH($B162,'Damage costs'!$C$16:$C$43,0))/1000),\"\")","v":0},{"$f":"IFERROR(IF(OR($C$168=FALSE,LEFT($B162,3)<>\"NOX\"),BD53*INDEX('Damage costs'!$P$16:$P$43,MATCH($B162,'Damage costs'!$C$16:$C$43,0))/1000,BD53*INDEX('Damage costs'!$T$16:$T$43,MATCH($B162,'Damage costs'!$C$16:$C$43,0))/1000),\"\")","v":0},{"$f":"IFERROR(IF(OR($C$168=FALSE,LEFT($B162,3)<>\"NOX\"),BE53*INDEX('Damage costs'!$P$16:$P$43,MATCH($B162,'Damage costs'!$C$16:$C$43,0))/1000,BE53*INDEX('Damage costs'!$T$16:$T$43,MATCH($B162,'Damage costs'!$C$16:$C$43,0))/1000),\"\")","v":0},{"$f":"IFERROR(IF(OR($C$168=FALSE,LEFT($B162,3)<>\"NOX\"),BF53*INDEX('Damage costs'!$P$16:$P$43,MATCH($B162,'Damage costs'!$C$16:$C$43,0))/1000,BF53*INDEX('Damage costs'!$T$16:$T$43,MATCH($B162,'Damage costs'!$C$16:$C$43,0))/1000),\"\")","v":0},{"$f":"IFERROR(IF(OR($C$168=FALSE,LEFT($B162,3)<>\"NOX\"),BG53*INDEX('Damage costs'!$P$16:$P$43,MATCH($B162,'Damage costs'!$C$16:$C$43,0))/1000,BG53*INDEX('Damage costs'!$T$16:$T$43,MATCH($B162,'Damage costs'!$C$16:$C$43,0))/1000),\"\")","v":0},{"$f":"IFERROR(IF(OR($C$168=FALSE,LEFT($B162,3)<>\"NOX\"),BH53*INDEX('Damage costs'!$P$16:$P$43,MATCH($B162,'Damage costs'!$C$16:$C$43,0))/1000,BH53*INDEX('Damage costs'!$T$16:$T$43,MATCH($B162,'Damage costs'!$C$16:$C$43,0))/1000),\"\")","v":0},{"$f":"IFERROR(IF(OR($C$168=FALSE,LEFT($B162,3)<>\"NOX\"),BI53*INDEX('Damage costs'!$P$16:$P$43,MATCH($B162,'Damage costs'!$C$16:$C$43,0))/1000,BI53*INDEX('Damage costs'!$T$16:$T$43,MATCH($B162,'Damage costs'!$C$16:$C$43,0))/1000),\"\")","v":0},{"$f":"IFERROR(IF(OR($C$168=FALSE,LEFT($B162,3)<>\"NOX\"),BJ53*INDEX('Damage costs'!$P$16:$P$43,MATCH($B162,'Damage costs'!$C$16:$C$43,0))/1000,BJ53*INDEX('Damage costs'!$T$16:$T$43,MATCH($B162,'Damage costs'!$C$16:$C$43,0))/1000),\"\")","v":0},{"$f":"IFERROR(IF(OR($C$168=FALSE,LEFT($B162,3)<>\"NOX\"),BK53*INDEX('Damage costs'!$P$16:$P$43,MATCH($B162,'Damage costs'!$C$16:$C$43,0))/1000,BK53*INDEX('Damage costs'!$T$16:$T$43,MATCH($B162,'Damage costs'!$C$16:$C$43,0))/1000),\"\")","v":0},{"$f":"IFERROR(IF(OR($C$168=FALSE,LEFT($B162,3)<>\"NOX\"),BL53*INDEX('Damage costs'!$P$16:$P$43,MATCH($B162,'Damage costs'!$C$16:$C$43,0))/1000,BL53*INDEX('Damage costs'!$T$16:$T$43,MATCH($B162,'Damage costs'!$C$16:$C$43,0))/1000),\"\")","v":0},{"$f":"IFERROR(IF(OR($C$168=FALSE,LEFT($B162,3)<>\"NOX\"),BM53*INDEX('Damage costs'!$P$16:$P$43,MATCH($B162,'Damage costs'!$C$16:$C$43,0))/1000,BM53*INDEX('Damage costs'!$T$16:$T$43,MATCH($B162,'Damage costs'!$C$16:$C$43,0))/1000),\"\")","v":0},{"$f":"IFERROR(IF(OR($C$168=FALSE,LEFT($B162,3)<>\"NOX\"),BN53*INDEX('Damage costs'!$P$16:$P$43,MATCH($B162,'Damage costs'!$C$16:$C$43,0))/1000,BN53*INDEX('Damage costs'!$T$16:$T$43,MATCH($B162,'Damage costs'!$C$16:$C$43,0))/1000),\"\")","v":0},{"$f":"IFERROR(IF(OR($C$168=FALSE,LEFT($B162,3)<>\"NOX\"),BO53*INDEX('Damage costs'!$P$16:$P$43,MATCH($B162,'Damage costs'!$C$16:$C$43,0))/1000,BO53*INDEX('Damage costs'!$T$16:$T$43,MATCH($B162,'Damage costs'!$C$16:$C$43,0))/1000),\"\")","v":0},{"$f":"IFERROR(IF(OR($C$168=FALSE,LEFT($B162,3)<>\"NOX\"),BP53*INDEX('Damage costs'!$P$16:$P$43,MATCH($B162,'Damage costs'!$C$16:$C$43,0))/1000,BP53*INDEX('Damage costs'!$T$16:$T$43,MATCH($B162,'Damage costs'!$C$16:$C$43,0))/1000),\"\")","v":0},{"$f":"IFERROR(IF(OR($C$168=FALSE,LEFT($B162,3)<>\"NOX\"),BQ53*INDEX('Damage costs'!$P$16:$P$43,MATCH($B162,'Damage costs'!$C$16:$C$43,0))/1000,BQ53*INDEX('Damage costs'!$T$16:$T$43,MATCH($B162,'Damage costs'!$C$16:$C$43,0))/1000),\"\")","v":0},{"$f":"IFERROR(IF(OR($C$168=FALSE,LEFT($B162,3)<>\"NOX\"),BR53*INDEX('Damage costs'!$P$16:$P$43,MATCH($B162,'Damage costs'!$C$16:$C$43,0))/1000,BR53*INDEX('Damage costs'!$T$16:$T$43,MATCH($B162,'Damage costs'!$C$16:$C$43,0))/1000),\"\")","v":0},{"$f":"IFERROR(IF(OR($C$168=FALSE,LEFT($B162,3)<>\"NOX\"),BS53*INDEX('Damage costs'!$P$16:$P$43,MATCH($B162,'Damage costs'!$C$16:$C$43,0))/1000,BS53*INDEX('Damage costs'!$T$16:$T$43,MATCH($B162,'Damage costs'!$C$16:$C$43,0))/1000),\"\")","v":0},{"$f":"IFERROR(IF(OR($C$168=FALSE,LEFT($B162,3)<>\"NOX\"),BT53*INDEX('Damage costs'!$P$16:$P$43,MATCH($B162,'Damage costs'!$C$16:$C$43,0))/1000,BT53*INDEX('Damage costs'!$T$16:$T$43,MATCH($B162,'Damage costs'!$C$16:$C$43,0))/1000),\"\")","v":0},{"$f":"IFERROR(IF(OR($C$168=FALSE,LEFT($B162,3)<>\"NOX\"),BU53*INDEX('Damage costs'!$P$16:$P$43,MATCH($B162,'Damage costs'!$C$16:$C$43,0))/1000,BU53*INDEX('Damage costs'!$T$16:$T$43,MATCH($B162,'Damage costs'!$C$16:$C$43,0))/1000),\"\")","v":0},{"$f":"IFERROR(IF(OR($C$168=FALSE,LEFT($B162,3)<>\"NOX\"),BV53*INDEX('Damage costs'!$P$16:$P$43,MATCH($B162,'Damage costs'!$C$16:$C$43,0))/1000,BV53*INDEX('Damage costs'!$T$16:$T$43,MATCH($B162,'Damage costs'!$C$16:$C$43,0))/1000),\"\")","v":0},{"$f":"IFERROR(IF(OR($C$168=FALSE,LEFT($B162,3)<>\"NOX\"),BW53*INDEX('Damage costs'!$P$16:$P$43,MATCH($B162,'Damage costs'!$C$16:$C$43,0))/1000,BW53*INDEX('Damage costs'!$T$16:$T$43,MATCH($B162,'Damage costs'!$C$16:$C$43,0))/1000),\"\")","v":0},{"$f":"IFERROR(IF(OR($C$168=FALSE,LEFT($B162,3)<>\"NOX\"),BX53*INDEX('Damage costs'!$P$16:$P$43,MATCH($B162,'Damage costs'!$C$16:$C$43,0))/1000,BX53*INDEX('Damage costs'!$T$16:$T$43,MATCH($B162,'Damage costs'!$C$16:$C$43,0))/1000),\"\")","v":0},{"$f":"IFERROR(IF(OR($C$168=FALSE,LEFT($B162,3)<>\"NOX\"),BY53*INDEX('Damage costs'!$P$16:$P$43,MATCH($B162,'Damage costs'!$C$16:$C$43,0))/1000,BY53*INDEX('Damage costs'!$T$16:$T$43,MATCH($B162,'Damage costs'!$C$16:$C$43,0))/1000),\"\")","v":0},{"$f":"IFERROR(IF(OR($C$168=FALSE,LEFT($B162,3)<>\"NOX\"),BZ53*INDEX('Damage costs'!$P$16:$P$43,MATCH($B162,'Damage costs'!$C$16:$C$43,0))/1000,BZ53*INDEX('Damage costs'!$T$16:$T$43,MATCH($B162,'Damage costs'!$C$16:$C$43,0))/1000),\"\")","v":0},{"$f":"IFERROR(IF(OR($C$168=FALSE,LEFT($B162,3)<>\"NOX\"),CA53*INDEX('Damage costs'!$P$16:$P$43,MATCH($B162,'Damage costs'!$C$16:$C$43,0))/1000,CA53*INDEX('Damage costs'!$T$16:$T$43,MATCH($B162,'Damage costs'!$C$16:$C$43,0))/1000),\"\")","v":0},{"$f":"IFERROR(IF(OR($C$168=FALSE,LEFT($B162,3)<>\"NOX\"),CB53*INDEX('Damage costs'!$P$16:$P$43,MATCH($B162,'Damage costs'!$C$16:$C$43,0))/1000,CB53*INDEX('Damage costs'!$T$16:$T$43,MATCH($B162,'Damage costs'!$C$16:$C$43,0))/1000),\"\")","v":0},{"$f":"IFERROR(IF(OR($C$168=FALSE,LEFT($B162,3)<>\"NOX\"),CC53*INDEX('Damage costs'!$P$16:$P$43,MATCH($B162,'Damage costs'!$C$16:$C$43,0))/1000,CC53*INDEX('Damage costs'!$T$16:$T$43,MATCH($B162,'Damage costs'!$C$16:$C$43,0))/1000),\"\")","v":0},{"$f":"IFERROR(IF(OR($C$168=FALSE,LEFT($B162,3)<>\"NOX\"),CD53*INDEX('Damage costs'!$P$16:$P$43,MATCH($B162,'Damage costs'!$C$16:$C$43,0))/1000,CD53*INDEX('Damage costs'!$T$16:$T$43,MATCH($B162,'Damage costs'!$C$16:$C$43,0))/1000),\"\")","v":0},{"$f":"IFERROR(IF(OR($C$168=FALSE,LEFT($B162,3)<>\"NOX\"),CE53*INDEX('Damage costs'!$P$16:$P$43,MATCH($B162,'Damage costs'!$C$16:$C$43,0))/1000,CE53*INDEX('Damage costs'!$T$16:$T$43,MATCH($B162,'Damage costs'!$C$16:$C$43,0))/1000),\"\")","v":0},{"$f":"IFERROR(IF(OR($C$168=FALSE,LEFT($B162,3)<>\"NOX\"),CF53*INDEX('Damage costs'!$P$16:$P$43,MATCH($B162,'Damage costs'!$C$16:$C$43,0))/1000,CF53*INDEX('Damage costs'!$T$16:$T$43,MATCH($B162,'Damage costs'!$C$16:$C$43,0))/1000),\"\")","v":0},{"$f":"IFERROR(IF(OR($C$168=FALSE,LEFT($B162,3)<>\"NOX\"),CG53*INDEX('Damage costs'!$P$16:$P$43,MATCH($B162,'Damage costs'!$C$16:$C$43,0))/1000,CG53*INDEX('Damage costs'!$T$16:$T$43,MATCH($B162,'Damage costs'!$C$16:$C$43,0))/1000),\"\")","v":0},{"$f":"IFERROR(IF(OR($C$168=FALSE,LEFT($B162,3)<>\"NOX\"),CH53*INDEX('Damage costs'!$P$16:$P$43,MATCH($B162,'Damage costs'!$C$16:$C$43,0))/1000,CH53*INDEX('Damage costs'!$T$16:$T$43,MATCH($B162,'Damage costs'!$C$16:$C$43,0))/1000),\"\")","v":0},{"$f":"IFERROR(IF(OR($C$168=FALSE,LEFT($B162,3)<>\"NOX\"),CI53*INDEX('Damage costs'!$P$16:$P$43,MATCH($B162,'Damage costs'!$C$16:$C$43,0))/1000,CI53*INDEX('Damage costs'!$T$16:$T$43,MATCH($B162,'Damage costs'!$C$16:$C$43,0))/1000),\"\")","v":0},{"$f":"IFERROR(IF(OR($C$168=FALSE,LEFT($B162,3)<>\"NOX\"),CJ53*INDEX('Damage costs'!$P$16:$P$43,MATCH($B162,'Damage costs'!$C$16:$C$43,0))/1000,CJ53*INDEX('Damage costs'!$T$16:$T$43,MATCH($B162,'Damage costs'!$C$16:$C$43,0))/1000),\"\")","v":0},{"$f":"IFERROR(IF(OR($C$168=FALSE,LEFT($B162,3)<>\"NOX\"),CK53*INDEX('Damage costs'!$P$16:$P$43,MATCH($B162,'Damage costs'!$C$16:$C$43,0))/1000,CK53*INDEX('Damage costs'!$T$16:$T$43,MATCH($B162,'Damage costs'!$C$16:$C$43,0))/1000),\"\")","v":0},{"$f":"IFERROR(IF(OR($C$168=FALSE,LEFT($B162,3)<>\"NOX\"),CL53*INDEX('Damage costs'!$P$16:$P$43,MATCH($B162,'Damage costs'!$C$16:$C$43,0))/1000,CL53*INDEX('Damage costs'!$T$16:$T$43,MATCH($B162,'Damage costs'!$C$16:$C$43,0))/1000),\"\")","v":0},{"$f":"IFERROR(IF(OR($C$168=FALSE,LEFT($B162,3)<>\"NOX\"),CM53*INDEX('Damage costs'!$P$16:$P$43,MATCH($B162,'Damage costs'!$C$16:$C$43,0))/1000,CM53*INDEX('Damage costs'!$T$16:$T$43,MATCH($B162,'Damage costs'!$C$16:$C$43,0))/1000),\"\")","v":0},{"$f":"IFERROR(IF(OR($C$168=FALSE,LEFT($B162,3)<>\"NOX\"),CN53*INDEX('Damage costs'!$P$16:$P$43,MATCH($B162,'Damage costs'!$C$16:$C$43,0))/1000,CN53*INDEX('Damage costs'!$T$16:$T$43,MATCH($B162,'Damage costs'!$C$16:$C$43,0))/1000),\"\")","v":0},{"$f":"IFERROR(IF(OR($C$168=FALSE,LEFT($B162,3)<>\"NOX\"),CO53*INDEX('Damage costs'!$P$16:$P$43,MATCH($B162,'Damage costs'!$C$16:$C$43,0))/1000,CO53*INDEX('Damage costs'!$T$16:$T$43,MATCH($B162,'Damage costs'!$C$16:$C$43,0))/1000),\"\")","v":0},{"$f":"IFERROR(IF(OR($C$168=FALSE,LEFT($B162,3)<>\"NOX\"),CP53*INDEX('Damage costs'!$P$16:$P$43,MATCH($B162,'Damage costs'!$C$16:$C$43,0))/1000,CP53*INDEX('Damage costs'!$T$16:$T$43,MATCH($B162,'Damage costs'!$C$16:$C$43,0))/1000),\"\")","v":0},{"$f":"IFERROR(IF(OR($C$168=FALSE,LEFT($B162,3)<>\"NOX\"),CQ53*INDEX('Damage costs'!$P$16:$P$43,MATCH($B162,'Damage costs'!$C$16:$C$43,0))/1000,CQ53*INDEX('Damage costs'!$T$16:$T$43,MATCH($B162,'Damage costs'!$C$16:$C$43,0))/1000),\"\")","v":0},{"$f":"IFERROR(IF(OR($C$168=FALSE,LEFT($B162,3)<>\"NOX\"),CR53*INDEX('Damage costs'!$P$16:$P$43,MATCH($B162,'Damage costs'!$C$16:$C$43,0))/1000,CR53*INDEX('Damage costs'!$T$16:$T$43,MATCH($B162,'Damage costs'!$C$16:$C$43,0))/1000),\"\")","v":0},{"$f":"IFERROR(IF(OR($C$168=FALSE,LEFT($B162,3)<>\"NOX\"),CS53*INDEX('Damage costs'!$P$16:$P$43,MATCH($B162,'Damage costs'!$C$16:$C$43,0))/1000,CS53*INDEX('Damage costs'!$T$16:$T$43,MATCH($B162,'Damage costs'!$C$16:$C$43,0))/1000),\"\")","v":0},{"$f":"IFERROR(IF(OR($C$168=FALSE,LEFT($B162,3)<>\"NOX\"),CT53*INDEX('Damage costs'!$P$16:$P$43,MATCH($B162,'Damage costs'!$C$16:$C$43,0))/1000,CT53*INDEX('Damage costs'!$T$16:$T$43,MATCH($B162,'Damage costs'!$C$16:$C$43,0))/1000),\"\")","v":0},{"$f":"IFERROR(IF(OR($C$168=FALSE,LEFT($B162,3)<>\"NOX\"),CU53*INDEX('Damage costs'!$P$16:$P$43,MATCH($B162,'Damage costs'!$C$16:$C$43,0))/1000,CU53*INDEX('Damage costs'!$T$16:$T$43,MATCH($B162,'Damage costs'!$C$16:$C$43,0))/1000),\"\")","v":0},{"$f":"IFERROR(IF(OR($C$168=FALSE,LEFT($B162,3)<>\"NOX\"),CV53*INDEX('Damage costs'!$P$16:$P$43,MATCH($B162,'Damage costs'!$C$16:$C$43,0))/1000,CV53*INDEX('Damage costs'!$T$16:$T$43,MATCH($B162,'Damage costs'!$C$16:$C$43,0))/1000),\"\")","v":0},{"$f":"IFERROR(IF(OR($C$168=FALSE,LEFT($B162,3)<>\"NOX\"),CW53*INDEX('Damage costs'!$P$16:$P$43,MATCH($B162,'Damage costs'!$C$16:$C$43,0))/1000,CW53*INDEX('Damage costs'!$T$16:$T$43,MATCH($B162,'Damage costs'!$C$16:$C$43,0))/1000),\"\")","v":0},{"$f":"IFERROR(IF(OR($C$168=FALSE,LEFT($B162,3)<>\"NOX\"),CX53*INDEX('Damage costs'!$P$16:$P$43,MATCH($B162,'Damage costs'!$C$16:$C$43,0))/1000,CX53*INDEX('Damage costs'!$T$16:$T$43,MATCH($B162,'Damage costs'!$C$16:$C$43,0))/1000),\"\")","v":0},{"$f":"IFERROR(IF(OR($C$168=FALSE,LEFT($B162,3)<>\"NOX\"),CY53*INDEX('Damage costs'!$P$16:$P$43,MATCH($B162,'Damage costs'!$C$16:$C$43,0))/1000,CY53*INDEX('Damage costs'!$T$16:$T$43,MATCH($B162,'Damage costs'!$C$16:$C$43,0))/1000),\"\")","v":0}]
[null,0,"£000's",{"$f":"IFERROR(IF(OR($C$168=FALSE,LEFT($B163,3)<>\"NOX\"),D54*INDEX('Damage costs'!$P$16:$P$43,MATCH($B163,'Damage costs'!$C$16:$C$43,0))/1000,D54*INDEX('Damage costs'!$T$16:$T$43,MATCH($B163,'Damage costs'!$C$16:$C$43,0))/1000),\"\")","v":""},{"$f":"IFERROR(IF(OR($C$168=FALSE,LEFT($B163,3)<>\"NOX\"),E54*INDEX('Damage costs'!$P$16:$P$43,MATCH($B163,'Damage costs'!$C$16:$C$43,0))/1000,E54*INDEX('Damage costs'!$T$16:$T$43,MATCH($B163,'Damage costs'!$C$16:$C$43,0))/1000),\"\")","v":""},{"$f":"IFERROR(IF(OR($C$168=FALSE,LEFT($B163,3)<>\"NOX\"),F54*INDEX('Damage costs'!$P$16:$P$43,MATCH($B163,'Damage costs'!$C$16:$C$43,0))/1000,F54*INDEX('Damage costs'!$T$16:$T$43,MATCH($B163,'Damage costs'!$C$16:$C$43,0))/1000),\"\")","v":""},{"$f":"IFERROR(IF(OR($C$168=FALSE,LEFT($B163,3)<>\"NOX\"),G54*INDEX('Damage costs'!$P$16:$P$43,MATCH($B163,'Damage costs'!$C$16:$C$43,0))/1000,G54*INDEX('Damage costs'!$T$16:$T$43,MATCH($B163,'Damage costs'!$C$16:$C$43,0))/1000),\"\")","v":""},{"$f":"IFERROR(IF(OR($C$168=FALSE,LEFT($B163,3)<>\"NOX\"),H54*INDEX('Damage costs'!$P$16:$P$43,MATCH($B163,'Damage costs'!$C$16:$C$43,0))/1000,H54*INDEX('Damage costs'!$T$16:$T$43,MATCH($B163,'Damage costs'!$C$16:$C$43,0))/1000),\"\")","v":""},{"$f":"IFERROR(IF(OR($C$168=FALSE,LEFT($B163,3)<>\"NOX\"),I54*INDEX('Damage costs'!$P$16:$P$43,MATCH($B163,'Damage costs'!$C$16:$C$43,0))/1000,I54*INDEX('Damage costs'!$T$16:$T$43,MATCH($B163,'Damage costs'!$C$16:$C$43,0))/1000),\"\")","v":""},{"$f":"IFERROR(IF(OR($C$168=FALSE,LEFT($B163,3)<>\"NOX\"),J54*INDEX('Damage costs'!$P$16:$P$43,MATCH($B163,'Damage costs'!$C$16:$C$43,0))/1000,J54*INDEX('Damage costs'!$T$16:$T$43,MATCH($B163,'Damage costs'!$C$16:$C$43,0))/1000),\"\")","v":""},{"$f":"IFERROR(IF(OR($C$168=FALSE,LEFT($B163,3)<>\"NOX\"),K54*INDEX('Damage costs'!$P$16:$P$43,MATCH($B163,'Damage costs'!$C$16:$C$43,0))/1000,K54*INDEX('Damage costs'!$T$16:$T$43,MATCH($B163,'Damage costs'!$C$16:$C$43,0))/1000),\"\")","v":""},{"$f":"IFERROR(IF(OR($C$168=FALSE,LEFT($B163,3)<>\"NOX\"),L54*INDEX('Damage costs'!$P$16:$P$43,MATCH($B163,'Damage costs'!$C$16:$C$43,0))/1000,L54*INDEX('Damage costs'!$T$16:$T$43,MATCH($B163,'Damage costs'!$C$16:$C$43,0))/1000),\"\")","v":""},{"$f":"IFERROR(IF(OR($C$168=FALSE,LEFT($B163,3)<>\"NOX\"),M54*INDEX('Damage costs'!$P$16:$P$43,MATCH($B163,'Damage costs'!$C$16:$C$43,0))/1000,M54*INDEX('Damage costs'!$T$16:$T$43,MATCH($B163,'Damage costs'!$C$16:$C$43,0))/1000),\"\")","v":""},{"$f":"IFERROR(IF(OR($C$168=FALSE,LEFT($B163,3)<>\"NOX\"),N54*INDEX('Damage costs'!$P$16:$P$43,MATCH($B163,'Damage costs'!$C$16:$C$43,0))/1000,N54*INDEX('Damage costs'!$T$16:$T$43,MATCH($B163,'Damage costs'!$C$16:$C$43,0))/1000),\"\")","v":""},{"$f":"IFERROR(IF(OR($C$168=FALSE,LEFT($B163,3)<>\"NOX\"),O54*INDEX('Damage costs'!$P$16:$P$43,MATCH($B163,'Damage costs'!$C$16:$C$43,0))/1000,O54*INDEX('Damage costs'!$T$16:$T$43,MATCH($B163,'Damage costs'!$C$16:$C$43,0))/1000),\"\")","v":""},{"$f":"IFERROR(IF(OR($C$168=FALSE,LEFT($B163,3)<>\"NOX\"),P54*INDEX('Damage costs'!$P$16:$P$43,MATCH($B163,'Damage costs'!$C$16:$C$43,0))/1000,P54*INDEX('Damage costs'!$T$16:$T$43,MATCH($B163,'Damage costs'!$C$16:$C$43,0))/1000),\"\")","v":""},{"$f":"IFERROR(IF(OR($C$168=FALSE,LEFT($B163,3)<>\"NOX\"),Q54*INDEX('Damage costs'!$P$16:$P$43,MATCH($B163,'Damage costs'!$C$16:$C$43,0))/1000,Q54*INDEX('Damage costs'!$T$16:$T$43,MATCH($B163,'Damage costs'!$C$16:$C$43,0))/1000),\"\")","v":""},{"$f":"IFERROR(IF(OR($C$168=FALSE,LEFT($B163,3)<>\"NOX\"),R54*INDEX('Damage costs'!$P$16:$P$43,MATCH($B163,'Damage costs'!$C$16:$C$43,0))/1000,R54*INDEX('Damage costs'!$T$16:$T$43,MATCH($B163,'Damage costs'!$C$16:$C$43,0))/1000),\"\")","v":""},{"$f":"IFERROR(IF(OR($C$168=FALSE,LEFT($B163,3)<>\"NOX\"),S54*INDEX('Damage costs'!$P$16:$P$43,MATCH($B163,'Damage costs'!$C$16:$C$43,0))/1000,S54*INDEX('Damage costs'!$T$16:$T$43,MATCH($B163,'Damage costs'!$C$16:$C$43,0))/1000),\"\")","v":""},{"$f":"IFERROR(IF(OR($C$168=FALSE,LEFT($B163,3)<>\"NOX\"),T54*INDEX('Damage costs'!$P$16:$P$43,MATCH($B163,'Damage costs'!$C$16:$C$43,0))/1000,T54*INDEX('Damage costs'!$T$16:$T$43,MATCH($B163,'Damage costs'!$C$16:$C$43,0))/1000),\"\")","v":""},{"$f":"IFERROR(IF(OR($C$168=FALSE,LEFT($B163,3)<>\"NOX\"),U54*INDEX('Damage costs'!$P$16:$P$43,MATCH($B163,'Damage costs'!$C$16:$C$43,0))/1000,U54*INDEX('Damage costs'!$T$16:$T$43,MATCH($B163,'Damage costs'!$C$16:$C$43,0))/1000),\"\")","v":""},{"$f":"IFERROR(IF(OR($C$168=FALSE,LEFT($B163,3)<>\"NOX\"),V54*INDEX('Damage costs'!$P$16:$P$43,MATCH($B163,'Damage costs'!$C$16:$C$43,0))/1000,V54*INDEX('Damage costs'!$T$16:$T$43,MATCH($B163,'Damage costs'!$C$16:$C$43,0))/1000),\"\")","v":""},{"$f":"IFERROR(IF(OR($C$168=FALSE,LEFT($B163,3)<>\"NOX\"),W54*INDEX('Damage costs'!$P$16:$P$43,MATCH($B163,'Damage costs'!$C$16:$C$43,0))/1000,W54*INDEX('Damage costs'!$T$16:$T$43,MATCH($B163,'Damage costs'!$C$16:$C$43,0))/1000),\"\")","v":""},{"$f":"IFERROR(IF(OR($C$168=FALSE,LEFT($B163,3)<>\"NOX\"),X54*INDEX('Damage costs'!$P$16:$P$43,MATCH($B163,'Damage costs'!$C$16:$C$43,0))/1000,X54*INDEX('Damage costs'!$T$16:$T$43,MATCH($B163,'Damage costs'!$C$16:$C$43,0))/1000),\"\")","v":""},{"$f":"IFERROR(IF(OR($C$168=FALSE,LEFT($B163,3)<>\"NOX\"),Y54*INDEX('Damage costs'!$P$16:$P$43,MATCH($B163,'Damage costs'!$C$16:$C$43,0))/1000,Y54*INDEX('Damage costs'!$T$16:$T$43,MATCH($B163,'Damage costs'!$C$16:$C$43,0))/1000),\"\")","v":""},{"$f":"IFERROR(IF(OR($C$168=FALSE,LEFT($B163,3)<>\"NOX\"),Z54*INDEX('Damage costs'!$P$16:$P$43,MATCH($B163,'Damage costs'!$C$16:$C$43,0))/1000,Z54*INDEX('Damage costs'!$T$16:$T$43,MATCH($B163,'Damage costs'!$C$16:$C$43,0))/1000),\"\")","v":""},{"$f":"IFERROR(IF(OR($C$168=FALSE,LEFT($B163,3)<>\"NOX\"),AA54*INDEX('Damage costs'!$P$16:$P$43,MATCH($B163,'Damage costs'!$C$16:$C$43,0))/1000,AA54*INDEX('Damage costs'!$T$16:$T$43,MATCH($B163,'Damage costs'!$C$16:$C$43,0))/1000),\"\")","v":""},{"$f":"IFERROR(IF(OR($C$168=FALSE,LEFT($B163,3)<>\"NOX\"),AB54*INDEX('Damage costs'!$P$16:$P$43,MATCH($B163,'Damage costs'!$C$16:$C$43,0))/1000,AB54*INDEX('Damage costs'!$T$16:$T$43,MATCH($B163,'Damage costs'!$C$16:$C$43,0))/1000),\"\")","v":""},{"$f":"IFERROR(IF(OR($C$168=FALSE,LEFT($B163,3)<>\"NOX\"),AC54*INDEX('Damage costs'!$P$16:$P$43,MATCH($B163,'Damage costs'!$C$16:$C$43,0))/1000,AC54*INDEX('Damage costs'!$T$16:$T$43,MATCH($B163,'Damage costs'!$C$16:$C$43,0))/1000),\"\")","v":""},{"$f":"IFERROR(IF(OR($C$168=FALSE,LEFT($B163,3)<>\"NOX\"),AD54*INDEX('Damage costs'!$P$16:$P$43,MATCH($B163,'Damage costs'!$C$16:$C$43,0))/1000,AD54*INDEX('Damage costs'!$T$16:$T$43,MATCH($B163,'Damage costs'!$C$16:$C$43,0))/1000),\"\")","v":""},{"$f":"IFERROR(IF(OR($C$168=FALSE,LEFT($B163,3)<>\"NOX\"),AE54*INDEX('Damage costs'!$P$16:$P$43,MATCH($B163,'Damage costs'!$C$16:$C$43,0))/1000,AE54*INDEX('Damage costs'!$T$16:$T$43,MATCH($B163,'Damage costs'!$C$16:$C$43,0))/1000),\"\")","v":""},{"$f":"IFERROR(IF(OR($C$168=FALSE,LEFT($B163,3)<>\"NOX\"),AF54*INDEX('Damage costs'!$P$16:$P$43,MATCH($B163,'Damage costs'!$C$16:$C$43,0))/1000,AF54*INDEX('Damage costs'!$T$16:$T$43,MATCH($B163,'Damage costs'!$C$16:$C$43,0))/1000),\"\")","v":""},{"$f":"IFERROR(IF(OR($C$168=FALSE,LEFT($B163,3)<>\"NOX\"),AG54*INDEX('Damage costs'!$P$16:$P$43,MATCH($B163,'Damage costs'!$C$16:$C$43,0))/1000,AG54*INDEX('Damage costs'!$T$16:$T$43,MATCH($B163,'Damage costs'!$C$16:$C$43,0))/1000),\"\")","v":""},{"$f":"IFERROR(IF(OR($C$168=FALSE,LEFT($B163,3)<>\"NOX\"),AH54*INDEX('Damage costs'!$P$16:$P$43,MATCH($B163,'Damage costs'!$C$16:$C$43,0))/1000,AH54*INDEX('Damage costs'!$T$16:$T$43,MATCH($B163,'Damage costs'!$C$16:$C$43,0))/1000),\"\")","v":""},{"$f":"IFERROR(IF(OR($C$168=FALSE,LEFT($B163,3)<>\"NOX\"),AI54*INDEX('Damage costs'!$P$16:$P$43,MATCH($B163,'Damage costs'!$C$16:$C$43,0))/1000,AI54*INDEX('Damage costs'!$T$16:$T$43,MATCH($B163,'Damage costs'!$C$16:$C$43,0))/1000),\"\")","v":""},{"$f":"IFERROR(IF(OR($C$168=FALSE,LEFT($B163,3)<>\"NOX\"),AJ54*INDEX('Damage costs'!$P$16:$P$43,MATCH($B163,'Damage costs'!$C$16:$C$43,0))/1000,AJ54*INDEX('Damage costs'!$T$16:$T$43,MATCH($B163,'Damage costs'!$C$16:$C$43,0))/1000),\"\")","v":""},{"$f":"IFERROR(IF(OR($C$168=FALSE,LEFT($B163,3)<>\"NOX\"),AK54*INDEX('Damage costs'!$P$16:$P$43,MATCH($B163,'Damage costs'!$C$16:$C$43,0))/1000,AK54*INDEX('Damage costs'!$T$16:$T$43,MATCH($B163,'Damage costs'!$C$16:$C$43,0))/1000),\"\")","v":""},{"$f":"IFERROR(IF(OR($C$168=FALSE,LEFT($B163,3)<>\"NOX\"),AL54*INDEX('Damage costs'!$P$16:$P$43,MATCH($B163,'Damage costs'!$C$16:$C$43,0))/1000,AL54*INDEX('Damage costs'!$T$16:$T$43,MATCH($B163,'Damage costs'!$C$16:$C$43,0))/1000),\"\")","v":""},{"$f":"IFERROR(IF(OR($C$168=FALSE,LEFT($B163,3)<>\"NOX\"),AM54*INDEX('Damage costs'!$P$16:$P$43,MATCH($B163,'Damage costs'!$C$16:$C$43,0))/1000,AM54*INDEX('Damage costs'!$T$16:$T$43,MATCH($B163,'Damage costs'!$C$16:$C$43,0))/1000),\"\")","v":""},{"$f":"IFERROR(IF(OR($C$168=FALSE,LEFT($B163,3)<>\"NOX\"),AN54*INDEX('Damage costs'!$P$16:$P$43,MATCH($B163,'Damage costs'!$C$16:$C$43,0))/1000,AN54*INDEX('Damage costs'!$T$16:$T$43,MATCH($B163,'Damage costs'!$C$16:$C$43,0))/1000),\"\")","v":""},{"$f":"IFERROR(IF(OR($C$168=FALSE,LEFT($B163,3)<>\"NOX\"),AO54*INDEX('Damage costs'!$P$16:$P$43,MATCH($B163,'Damage costs'!$C$16:$C$43,0))/1000,AO54*INDEX('Damage costs'!$T$16:$T$43,MATCH($B163,'Damage costs'!$C$16:$C$43,0))/1000),\"\")","v":""},{"$f":"IFERROR(IF(OR($C$168=FALSE,LEFT($B163,3)<>\"NOX\"),AP54*INDEX('Damage costs'!$P$16:$P$43,MATCH($B163,'Damage costs'!$C$16:$C$43,0))/1000,AP54*INDEX('Damage costs'!$T$16:$T$43,MATCH($B163,'Damage costs'!$C$16:$C$43,0))/1000),\"\")","v":""},{"$f":"IFERROR(IF(OR($C$168=FALSE,LEFT($B163,3)<>\"NOX\"),AQ54*INDEX('Damage costs'!$P$16:$P$43,MATCH($B163,'Damage costs'!$C$16:$C$43,0))/1000,AQ54*INDEX('Damage costs'!$T$16:$T$43,MATCH($B163,'Damage costs'!$C$16:$C$43,0))/1000),\"\")","v":""},{"$f":"IFERROR(IF(OR($C$168=FALSE,LEFT($B163,3)<>\"NOX\"),AR54*INDEX('Damage costs'!$P$16:$P$43,MATCH($B163,'Damage costs'!$C$16:$C$43,0))/1000,AR54*INDEX('Damage costs'!$T$16:$T$43,MATCH($B163,'Damage costs'!$C$16:$C$43,0))/1000),\"\")","v":""},{"$f":"IFERROR(IF(OR($C$168=FALSE,LEFT($B163,3)<>\"NOX\"),AS54*INDEX('Damage costs'!$P$16:$P$43,MATCH($B163,'Damage costs'!$C$16:$C$43,0))/1000,AS54*INDEX('Damage costs'!$T$16:$T$43,MATCH($B163,'Damage costs'!$C$16:$C$43,0))/1000),\"\")","v":""},{"$f":"IFERROR(IF(OR($C$168=FALSE,LEFT($B163,3)<>\"NOX\"),AT54*INDEX('Damage costs'!$P$16:$P$43,MATCH($B163,'Damage costs'!$C$16:$C$43,0))/1000,AT54*INDEX('Damage costs'!$T$16:$T$43,MATCH($B163,'Damage costs'!$C$16:$C$43,0))/1000),\"\")","v":""},{"$f":"IFERROR(IF(OR($C$168=FALSE,LEFT($B163,3)<>\"NOX\"),AU54*INDEX('Damage costs'!$P$16:$P$43,MATCH($B163,'Damage costs'!$C$16:$C$43,0))/1000,AU54*INDEX('Damage costs'!$T$16:$T$43,MATCH($B163,'Damage costs'!$C$16:$C$43,0))/1000),\"\")","v":""},{"$f":"IFERROR(IF(OR($C$168=FALSE,LEFT($B163,3)<>\"NOX\"),AV54*INDEX('Damage costs'!$P$16:$P$43,MATCH($B163,'Damage costs'!$C$16:$C$43,0))/1000,AV54*INDEX('Damage costs'!$T$16:$T$43,MATCH($B163,'Damage costs'!$C$16:$C$43,0))/1000),\"\")","v":""},{"$f":"IFERROR(IF(OR($C$168=FALSE,LEFT($B163,3)<>\"NOX\"),AW54*INDEX('Damage costs'!$P$16:$P$43,MATCH($B163,'Damage costs'!$C$16:$C$43,0))/1000,AW54*INDEX('Damage costs'!$T$16:$T$43,MATCH($B163,'Damage costs'!$C$16:$C$43,0))/1000),\"\")","v":""},{"$f":"IFERROR(IF(OR($C$168=FALSE,LEFT($B163,3)<>\"NOX\"),AX54*INDEX('Damage costs'!$P$16:$P$43,MATCH($B163,'Damage costs'!$C$16:$C$43,0))/1000,AX54*INDEX('Damage costs'!$T$16:$T$43,MATCH($B163,'Damage costs'!$C$16:$C$43,0))/1000),\"\")","v":""},{"$f":"IFERROR(IF(OR($C$168=FALSE,LEFT($B163,3)<>\"NOX\"),AY54*INDEX('Damage costs'!$P$16:$P$43,MATCH($B163,'Damage costs'!$C$16:$C$43,0))/1000,AY54*INDEX('Damage costs'!$T$16:$T$43,MATCH($B163,'Damage costs'!$C$16:$C$43,0))/1000),\"\")","v":""},{"$f":"IFERROR(IF(OR($C$168=FALSE,LEFT($B163,3)<>\"NOX\"),AZ54*INDEX('Damage costs'!$P$16:$P$43,MATCH($B163,'Damage costs'!$C$16:$C$43,0))/1000,AZ54*INDEX('Damage costs'!$T$16:$T$43,MATCH($B163,'Damage costs'!$C$16:$C$43,0))/1000),\"\")","v":""},{"$f":"IFERROR(IF(OR($C$168=FALSE,LEFT($B163,3)<>\"NOX\"),BA54*INDEX('Damage costs'!$P$16:$P$43,MATCH($B163,'Damage costs'!$C$16:$C$43,0))/1000,BA54*INDEX('Damage costs'!$T$16:$T$43,MATCH($B163,'Damage costs'!$C$16:$C$43,0))/1000),\"\")","v":""},{"$f":"IFERROR(IF(OR($C$168=FALSE,LEFT($B163,3)<>\"NOX\"),BB54*INDEX('Damage costs'!$P$16:$P$43,MATCH($B163,'Damage costs'!$C$16:$C$43,0))/1000,BB54*INDEX('Damage costs'!$T$16:$T$43,MATCH($B163,'Damage costs'!$C$16:$C$43,0))/1000),\"\")","v":""},{"$f":"IFERROR(IF(OR($C$168=FALSE,LEFT($B163,3)<>\"NOX\"),BC54*INDEX('Damage costs'!$P$16:$P$43,MATCH($B163,'Damage costs'!$C$16:$C$43,0))/1000,BC54*INDEX('Damage costs'!$T$16:$T$43,MATCH($B163,'Damage costs'!$C$16:$C$43,0))/1000),\"\")","v":""},{"$f":"IFERROR(IF(OR($C$168=FALSE,LEFT($B163,3)<>\"NOX\"),BD54*INDEX('Damage costs'!$P$16:$P$43,MATCH($B163,'Damage costs'!$C$16:$C$43,0))/1000,BD54*INDEX('Damage costs'!$T$16:$T$43,MATCH($B163,'Damage costs'!$C$16:$C$43,0))/1000),\"\")","v":""},{"$f":"IFERROR(IF(OR($C$168=FALSE,LEFT($B163,3)<>\"NOX\"),BE54*INDEX('Damage costs'!$P$16:$P$43,MATCH($B163,'Damage costs'!$C$16:$C$43,0))/1000,BE54*INDEX('Damage costs'!$T$16:$T$43,MATCH($B163,'Damage costs'!$C$16:$C$43,0))/1000),\"\")","v":""},{"$f":"IFERROR(IF(OR($C$168=FALSE,LEFT($B163,3)<>\"NOX\"),BF54*INDEX('Damage costs'!$P$16:$P$43,MATCH($B163,'Damage costs'!$C$16:$C$43,0))/1000,BF54*INDEX('Damage costs'!$T$16:$T$43,MATCH($B163,'Damage costs'!$C$16:$C$43,0))/1000),\"\")","v":""},{"$f":"IFERROR(IF(OR($C$168=FALSE,LEFT($B163,3)<>\"NOX\"),BG54*INDEX('Damage costs'!$P$16:$P$43,MATCH($B163,'Damage costs'!$C$16:$C$43,0))/1000,BG54*INDEX('Damage costs'!$T$16:$T$43,MATCH($B163,'Damage costs'!$C$16:$C$43,0))/1000),\"\")","v":""},{"$f":"IFERROR(IF(OR($C$168=FALSE,LEFT($B163,3)<>\"NOX\"),BH54*INDEX('Damage costs'!$P$16:$P$43,MATCH($B163,'Damage costs'!$C$16:$C$43,0))/1000,BH54*INDEX('Damage costs'!$T$16:$T$43,MATCH($B163,'Damage costs'!$C$16:$C$43,0))/1000),\"\")","v":""},{"$f":"IFERROR(IF(OR($C$168=FALSE,LEFT($B163,3)<>\"NOX\"),BI54*INDEX('Damage costs'!$P$16:$P$43,MATCH($B163,'Damage costs'!$C$16:$C$43,0))/1000,BI54*INDEX('Damage costs'!$T$16:$T$43,MATCH($B163,'Damage costs'!$C$16:$C$43,0))/1000),\"\")","v":""},{"$f":"IFERROR(IF(OR($C$168=FALSE,LEFT($B163,3)<>\"NOX\"),BJ54*INDEX('Damage costs'!$P$16:$P$43,MATCH($B163,'Damage costs'!$C$16:$C$43,0))/1000,BJ54*INDEX('Damage costs'!$T$16:$T$43,MATCH($B163,'Damage costs'!$C$16:$C$43,0))/1000),\"\")","v":""},{"$f":"IFERROR(IF(OR($C$168=FALSE,LEFT($B163,3)<>\"NOX\"),BK54*INDEX('Damage costs'!$P$16:$P$43,MATCH($B163,'Damage costs'!$C$16:$C$43,0))/1000,BK54*INDEX('Damage costs'!$T$16:$T$43,MATCH($B163,'Damage costs'!$C$16:$C$43,0))/1000),\"\")","v":""},{"$f":"IFERROR(IF(OR($C$168=FALSE,LEFT($B163,3)<>\"NOX\"),BL54*INDEX('Damage costs'!$P$16:$P$43,MATCH($B163,'Damage costs'!$C$16:$C$43,0))/1000,BL54*INDEX('Damage costs'!$T$16:$T$43,MATCH($B163,'Damage costs'!$C$16:$C$43,0))/1000),\"\")","v":""},{"$f":"IFERROR(IF(OR($C$168=FALSE,LEFT($B163,3)<>\"NOX\"),BM54*INDEX('Damage costs'!$P$16:$P$43,MATCH($B163,'Damage costs'!$C$16:$C$43,0))/1000,BM54*INDEX('Damage costs'!$T$16:$T$43,MATCH($B163,'Damage costs'!$C$16:$C$43,0))/1000),\"\")","v":""},{"$f":"IFERROR(IF(OR($C$168=FALSE,LEFT($B163,3)<>\"NOX\"),BN54*INDEX('Damage costs'!$P$16:$P$43,MATCH($B163,'Damage costs'!$C$16:$C$43,0))/1000,BN54*INDEX('Damage costs'!$T$16:$T$43,MATCH($B163,'Damage costs'!$C$16:$C$43,0))/1000),\"\")","v":""},{"$f":"IFERROR(IF(OR($C$168=FALSE,LEFT($B163,3)<>\"NOX\"),BO54*INDEX('Damage costs'!$P$16:$P$43,MATCH($B163,'Damage costs'!$C$16:$C$43,0))/1000,BO54*INDEX('Damage costs'!$T$16:$T$43,MATCH($B163,'Damage costs'!$C$16:$C$43,0))/1000),\"\")","v":""},{"$f":"IFERROR(IF(OR($C$168=FALSE,LEFT($B163,3)<>\"NOX\"),BP54*INDEX('Damage costs'!$P$16:$P$43,MATCH($B163,'Damage costs'!$C$16:$C$43,0))/1000,BP54*INDEX('Damage costs'!$T$16:$T$43,MATCH($B163,'Damage costs'!$C$16:$C$43,0))/1000),\"\")","v":""},{"$f":"IFERROR(IF(OR($C$168=FALSE,LEFT($B163,3)<>\"NOX\"),BQ54*INDEX('Damage costs'!$P$16:$P$43,MATCH($B163,'Damage costs'!$C$16:$C$43,0))/1000,BQ54*INDEX('Damage costs'!$T$16:$T$43,MATCH($B163,'Damage costs'!$C$16:$C$43,0))/1000),\"\")","v":""},{"$f":"IFERROR(IF(OR($C$168=FALSE,LEFT($B163,3)<>\"NOX\"),BR54*INDEX('Damage costs'!$P$16:$P$43,MATCH($B163,'Damage costs'!$C$16:$C$43,0))/1000,BR54*INDEX('Damage costs'!$T$16:$T$43,MATCH($B163,'Damage costs'!$C$16:$C$43,0))/1000),\"\")","v":""},{"$f":"IFERROR(IF(OR($C$168=FALSE,LEFT($B163,3)<>\"NOX\"),BS54*INDEX('Damage costs'!$P$16:$P$43,MATCH($B163,'Damage costs'!$C$16:$C$43,0))/1000,BS54*INDEX('Damage costs'!$T$16:$T$43,MATCH($B163,'Damage costs'!$C$16:$C$43,0))/1000),\"\")","v":""},{"$f":"IFERROR(IF(OR($C$168=FALSE,LEFT($B163,3)<>\"NOX\"),BT54*INDEX('Damage costs'!$P$16:$P$43,MATCH($B163,'Damage costs'!$C$16:$C$43,0))/1000,BT54*INDEX('Damage costs'!$T$16:$T$43,MATCH($B163,'Damage costs'!$C$16:$C$43,0))/1000),\"\")","v":""},{"$f":"IFERROR(IF(OR($C$168=FALSE,LEFT($B163,3)<>\"NOX\"),BU54*INDEX('Damage costs'!$P$16:$P$43,MATCH($B163,'Damage costs'!$C$16:$C$43,0))/1000,BU54*INDEX('Damage costs'!$T$16:$T$43,MATCH($B163,'Damage costs'!$C$16:$C$43,0))/1000),\"\")","v":""},{"$f":"IFERROR(IF(OR($C$168=FALSE,LEFT($B163,3)<>\"NOX\"),BV54*INDEX('Damage costs'!$P$16:$P$43,MATCH($B163,'Damage costs'!$C$16:$C$43,0))/1000,BV54*INDEX('Damage costs'!$T$16:$T$43,MATCH($B163,'Damage costs'!$C$16:$C$43,0))/1000),\"\")","v":""},{"$f":"IFERROR(IF(OR($C$168=FALSE,LEFT($B163,3)<>\"NOX\"),BW54*INDEX('Damage costs'!$P$16:$P$43,MATCH($B163,'Damage costs'!$C$16:$C$43,0))/1000,BW54*INDEX('Damage costs'!$T$16:$T$43,MATCH($B163,'Damage costs'!$C$16:$C$43,0))/1000),\"\")","v":""},{"$f":"IFERROR(IF(OR($C$168=FALSE,LEFT($B163,3)<>\"NOX\"),BX54*INDEX('Damage costs'!$P$16:$P$43,MATCH($B163,'Damage costs'!$C$16:$C$43,0))/1000,BX54*INDEX('Damage costs'!$T$16:$T$43,MATCH($B163,'Damage costs'!$C$16:$C$43,0))/1000),\"\")","v":""},{"$f":"IFERROR(IF(OR($C$168=FALSE,LEFT($B163,3)<>\"NOX\"),BY54*INDEX('Damage costs'!$P$16:$P$43,MATCH($B163,'Damage costs'!$C$16:$C$43,0))/1000,BY54*INDEX('Damage costs'!$T$16:$T$43,MATCH($B163,'Damage costs'!$C$16:$C$43,0))/1000),\"\")","v":""},{"$f":"IFERROR(IF(OR($C$168=FALSE,LEFT($B163,3)<>\"NOX\"),BZ54*INDEX('Damage costs'!$P$16:$P$43,MATCH($B163,'Damage costs'!$C$16:$C$43,0))/1000,BZ54*INDEX('Damage costs'!$T$16:$T$43,MATCH($B163,'Damage costs'!$C$16:$C$43,0))/1000),\"\")","v":""},{"$f":"IFERROR(IF(OR($C$168=FALSE,LEFT($B163,3)<>\"NOX\"),CA54*INDEX('Damage costs'!$P$16:$P$43,MATCH($B163,'Damage costs'!$C$16:$C$43,0))/1000,CA54*INDEX('Damage costs'!$T$16:$T$43,MATCH($B163,'Damage costs'!$C$16:$C$43,0))/1000),\"\")","v":""},{"$f":"IFERROR(IF(OR($C$168=FALSE,LEFT($B163,3)<>\"NOX\"),CB54*INDEX('Damage costs'!$P$16:$P$43,MATCH($B163,'Damage costs'!$C$16:$C$43,0))/1000,CB54*INDEX('Damage costs'!$T$16:$T$43,MATCH($B163,'Damage costs'!$C$16:$C$43,0))/1000),\"\")","v":""},{"$f":"IFERROR(IF(OR($C$168=FALSE,LEFT($B163,3)<>\"NOX\"),CC54*INDEX('Damage costs'!$P$16:$P$43,MATCH($B163,'Damage costs'!$C$16:$C$43,0))/1000,CC54*INDEX('Damage costs'!$T$16:$T$43,MATCH($B163,'Damage costs'!$C$16:$C$43,0))/1000),\"\")","v":""},{"$f":"IFERROR(IF(OR($C$168=FALSE,LEFT($B163,3)<>\"NOX\"),CD54*INDEX('Damage costs'!$P$16:$P$43,MATCH($B163,'Damage costs'!$C$16:$C$43,0))/1000,CD54*INDEX('Damage costs'!$T$16:$T$43,MATCH($B163,'Damage costs'!$C$16:$C$43,0))/1000),\"\")","v":""},{"$f":"IFERROR(IF(OR($C$168=FALSE,LEFT($B163,3)<>\"NOX\"),CE54*INDEX('Damage costs'!$P$16:$P$43,MATCH($B163,'Damage costs'!$C$16:$C$43,0))/1000,CE54*INDEX('Damage costs'!$T$16:$T$43,MATCH($B163,'Damage costs'!$C$16:$C$43,0))/1000),\"\")","v":""},{"$f":"IFERROR(IF(OR($C$168=FALSE,LEFT($B163,3)<>\"NOX\"),CF54*INDEX('Damage costs'!$P$16:$P$43,MATCH($B163,'Damage costs'!$C$16:$C$43,0))/1000,CF54*INDEX('Damage costs'!$T$16:$T$43,MATCH($B163,'Damage costs'!$C$16:$C$43,0))/1000),\"\")","v":""},{"$f":"IFERROR(IF(OR($C$168=FALSE,LEFT($B163,3)<>\"NOX\"),CG54*INDEX('Damage costs'!$P$16:$P$43,MATCH($B163,'Damage costs'!$C$16:$C$43,0))/1000,CG54*INDEX('Damage costs'!$T$16:$T$43,MATCH($B163,'Damage costs'!$C$16:$C$43,0))/1000),\"\")","v":""},{"$f":"IFERROR(IF(OR($C$168=FALSE,LEFT($B163,3)<>\"NOX\"),CH54*INDEX('Damage costs'!$P$16:$P$43,MATCH($B163,'Damage costs'!$C$16:$C$43,0))/1000,CH54*INDEX('Damage costs'!$T$16:$T$43,MATCH($B163,'Damage costs'!$C$16:$C$43,0))/1000),\"\")","v":""},{"$f":"IFERROR(IF(OR($C$168=FALSE,LEFT($B163,3)<>\"NOX\"),CI54*INDEX('Damage costs'!$P$16:$P$43,MATCH($B163,'Damage costs'!$C$16:$C$43,0))/1000,CI54*INDEX('Damage costs'!$T$16:$T$43,MATCH($B163,'Damage costs'!$C$16:$C$43,0))/1000),\"\")","v":""},{"$f":"IFERROR(IF(OR($C$168=FALSE,LEFT($B163,3)<>\"NOX\"),CJ54*INDEX('Damage costs'!$P$16:$P$43,MATCH($B163,'Damage costs'!$C$16:$C$43,0))/1000,CJ54*INDEX('Damage costs'!$T$16:$T$43,MATCH($B163,'Damage costs'!$C$16:$C$43,0))/1000),\"\")","v":""},{"$f":"IFERROR(IF(OR($C$168=FALSE,LEFT($B163,3)<>\"NOX\"),CK54*INDEX('Damage costs'!$P$16:$P$43,MATCH($B163,'Damage costs'!$C$16:$C$43,0))/1000,CK54*INDEX('Damage costs'!$T$16:$T$43,MATCH($B163,'Damage costs'!$C$16:$C$43,0))/1000),\"\")","v":""},{"$f":"IFERROR(IF(OR($C$168=FALSE,LEFT($B163,3)<>\"NOX\"),CL54*INDEX('Damage costs'!$P$16:$P$43,MATCH($B163,'Damage costs'!$C$16:$C$43,0))/1000,CL54*INDEX('Damage costs'!$T$16:$T$43,MATCH($B163,'Damage costs'!$C$16:$C$43,0))/1000),\"\")","v":""},{"$f":"IFERROR(IF(OR($C$168=FALSE,LEFT($B163,3)<>\"NOX\"),CM54*INDEX('Damage costs'!$P$16:$P$43,MATCH($B163,'Damage costs'!$C$16:$C$43,0))/1000,CM54*INDEX('Damage costs'!$T$16:$T$43,MATCH($B163,'Damage costs'!$C$16:$C$43,0))/1000),\"\")","v":""},{"$f":"IFERROR(IF(OR($C$168=FALSE,LEFT($B163,3)<>\"NOX\"),CN54*INDEX('Damage costs'!$P$16:$P$43,MATCH($B163,'Damage costs'!$C$16:$C$43,0))/1000,CN54*INDEX('Damage costs'!$T$16:$T$43,MATCH($B163,'Damage costs'!$C$16:$C$43,0))/1000),\"\")","v":""},{"$f":"IFERROR(IF(OR($C$168=FALSE,LEFT($B163,3)<>\"NOX\"),CO54*INDEX('Damage costs'!$P$16:$P$43,MATCH($B163,'Damage costs'!$C$16:$C$43,0))/1000,CO54*INDEX('Damage costs'!$T$16:$T$43,MATCH($B163,'Damage costs'!$C$16:$C$43,0))/1000),\"\")","v":""},{"$f":"IFERROR(IF(OR($C$168=FALSE,LEFT($B163,3)<>\"NOX\"),CP54*INDEX('Damage costs'!$P$16:$P$43,MATCH($B163,'Damage costs'!$C$16:$C$43,0))/1000,CP54*INDEX('Damage costs'!$T$16:$T$43,MATCH($B163,'Damage costs'!$C$16:$C$43,0))/1000),\"\")","v":""},{"$f":"IFERROR(IF(OR($C$168=FALSE,LEFT($B163,3)<>\"NOX\"),CQ54*INDEX('Damage costs'!$P$16:$P$43,MATCH($B163,'Damage costs'!$C$16:$C$43,0))/1000,CQ54*INDEX('Damage costs'!$T$16:$T$43,MATCH($B163,'Damage costs'!$C$16:$C$43,0))/1000),\"\")","v":""},{"$f":"IFERROR(IF(OR($C$168=FALSE,LEFT($B163,3)<>\"NOX\"),CR54*INDEX('Damage costs'!$P$16:$P$43,MATCH($B163,'Damage costs'!$C$16:$C$43,0))/1000,CR54*INDEX('Damage costs'!$T$16:$T$43,MATCH($B163,'Damage costs'!$C$16:$C$43,0))/1000),\"\")","v":""},{"$f":"IFERROR(IF(OR($C$168=FALSE,LEFT($B163,3)<>\"NOX\"),CS54*INDEX('Damage costs'!$P$16:$P$43,MATCH($B163,'Damage costs'!$C$16:$C$43,0))/1000,CS54*INDEX('Damage costs'!$T$16:$T$43,MATCH($B163,'Damage costs'!$C$16:$C$43,0))/1000),\"\")","v":""},{"$f":"IFERROR(IF(OR($C$168=FALSE,LEFT($B163,3)<>\"NOX\"),CT54*INDEX('Damage costs'!$P$16:$P$43,MATCH($B163,'Damage costs'!$C$16:$C$43,0))/1000,CT54*INDEX('Damage costs'!$T$16:$T$43,MATCH($B163,'Damage costs'!$C$16:$C$43,0))/1000),\"\")","v":""},{"$f":"IFERROR(IF(OR($C$168=FALSE,LEFT($B163,3)<>\"NOX\"),CU54*INDEX('Damage costs'!$P$16:$P$43,MATCH($B163,'Damage costs'!$C$16:$C$43,0))/1000,CU54*INDEX('Damage costs'!$T$16:$T$43,MATCH($B163,'Damage costs'!$C$16:$C$43,0))/1000),\"\")","v":""},{"$f":"IFERROR(IF(OR($C$168=FALSE,LEFT($B163,3)<>\"NOX\"),CV54*INDEX('Damage costs'!$P$16:$P$43,MATCH($B163,'Damage costs'!$C$16:$C$43,0))/1000,CV54*INDEX('Damage costs'!$T$16:$T$43,MATCH($B163,'Damage costs'!$C$16:$C$43,0))/1000),\"\")","v":""},{"$f":"IFERROR(IF(OR($C$168=FALSE,LEFT($B163,3)<>\"NOX\"),CW54*INDEX('Damage costs'!$P$16:$P$43,MATCH($B163,'Damage costs'!$C$16:$C$43,0))/1000,CW54*INDEX('Damage costs'!$T$16:$T$43,MATCH($B163,'Damage costs'!$C$16:$C$43,0))/1000),\"\")","v":""},{"$f":"IFERROR(IF(OR($C$168=FALSE,LEFT($B163,3)<>\"NOX\"),CX54*INDEX('Damage costs'!$P$16:$P$43,MATCH($B163,'Damage costs'!$C$16:$C$43,0))/1000,CX54*INDEX('Damage costs'!$T$16:$T$43,MATCH($B163,'Damage costs'!$C$16:$C$43,0))/1000),\"\")","v":""},{"$f":"IFERROR(IF(OR($C$168=FALSE,LEFT($B163,3)<>\"NOX\"),CY54*INDEX('Damage costs'!$P$16:$P$43,MATCH($B163,'Damage costs'!$C$16:$C$43,0))/1000,CY54*INDEX('Damage costs'!$T$16:$T$43,MATCH($B163,'Damage costs'!$C$16:$C$43,0))/1000),\"\")","v":""}]
[null,0,"£000's",{"$f":"IFERROR(IF(OR($C$168=FALSE,LEFT($B164,3)<>\"NOX\"),D55*INDEX('Damage costs'!$P$16:$P$43,MATCH($B164,'Damage costs'!$C$16:$C$43,0))/1000,D55*INDEX('Damage costs'!$T$16:$T$43,MATCH($B164,'Damage costs'!$C$16:$C$43,0))/1000),\"\")","v":""},{"$f":"IFERROR(IF(OR($C$168=FALSE,LEFT($B164,3)<>\"NOX\"),E55*INDEX('Damage costs'!$P$16:$P$43,MATCH($B164,'Damage costs'!$C$16:$C$43,0))/1000,E55*INDEX('Damage costs'!$T$16:$T$43,MATCH($B164,'Damage costs'!$C$16:$C$43,0))/1000),\"\")","v":""},{"$f":"IFERROR(IF(OR($C$168=FALSE,LEFT($B164,3)<>\"NOX\"),F55*INDEX('Damage costs'!$P$16:$P$43,MATCH($B164,'Damage costs'!$C$16:$C$43,0))/1000,F55*INDEX('Damage costs'!$T$16:$T$43,MATCH($B164,'Damage costs'!$C$16:$C$43,0))/1000),\"\")","v":""},{"$f":"IFERROR(IF(OR($C$168=FALSE,LEFT($B164,3)<>\"NOX\"),G55*INDEX('Damage costs'!$P$16:$P$43,MATCH($B164,'Damage costs'!$C$16:$C$43,0))/1000,G55*INDEX('Damage costs'!$T$16:$T$43,MATCH($B164,'Damage costs'!$C$16:$C$43,0))/1000),\"\")","v":""},{"$f":"IFERROR(IF(OR($C$168=FALSE,LEFT($B164,3)<>\"NOX\"),H55*INDEX('Damage costs'!$P$16:$P$43,MATCH($B164,'Damage costs'!$C$16:$C$43,0))/1000,H55*INDEX('Damage costs'!$T$16:$T$43,MATCH($B164,'Damage costs'!$C$16:$C$43,0))/1000),\"\")","v":""},{"$f":"IFERROR(IF(OR($C$168=FALSE,LEFT($B164,3)<>\"NOX\"),I55*INDEX('Damage costs'!$P$16:$P$43,MATCH($B164,'Damage costs'!$C$16:$C$43,0))/1000,I55*INDEX('Damage costs'!$T$16:$T$43,MATCH($B164,'Damage costs'!$C$16:$C$43,0))/1000),\"\")","v":""},{"$f":"IFERROR(IF(OR($C$168=FALSE,LEFT($B164,3)<>\"NOX\"),J55*INDEX('Damage costs'!$P$16:$P$43,MATCH($B164,'Damage costs'!$C$16:$C$43,0))/1000,J55*INDEX('Damage costs'!$T$16:$T$43,MATCH($B164,'Damage costs'!$C$16:$C$43,0))/1000),\"\")","v":""},{"$f":"IFERROR(IF(OR($C$168=FALSE,LEFT($B164,3)<>\"NOX\"),K55*INDEX('Damage costs'!$P$16:$P$43,MATCH($B164,'Damage costs'!$C$16:$C$43,0))/1000,K55*INDEX('Damage costs'!$T$16:$T$43,MATCH($B164,'Damage costs'!$C$16:$C$43,0))/1000),\"\")","v":""},{"$f":"IFERROR(IF(OR($C$168=FALSE,LEFT($B164,3)<>\"NOX\"),L55*INDEX('Damage costs'!$P$16:$P$43,MATCH($B164,'Damage costs'!$C$16:$C$43,0))/1000,L55*INDEX('Damage costs'!$T$16:$T$43,MATCH($B164,'Damage costs'!$C$16:$C$43,0))/1000),\"\")","v":""},{"$f":"IFERROR(IF(OR($C$168=FALSE,LEFT($B164,3)<>\"NOX\"),M55*INDEX('Damage costs'!$P$16:$P$43,MATCH($B164,'Damage costs'!$C$16:$C$43,0))/1000,M55*INDEX('Damage costs'!$T$16:$T$43,MATCH($B164,'Damage costs'!$C$16:$C$43,0))/1000),\"\")","v":""},{"$f":"IFERROR(IF(OR($C$168=FALSE,LEFT($B164,3)<>\"NOX\"),N55*INDEX('Damage costs'!$P$16:$P$43,MATCH($B164,'Damage costs'!$C$16:$C$43,0))/1000,N55*INDEX('Damage costs'!$T$16:$T$43,MATCH($B164,'Damage costs'!$C$16:$C$43,0))/1000),\"\")","v":""},{"$f":"IFERROR(IF(OR($C$168=FALSE,LEFT($B164,3)<>\"NOX\"),O55*INDEX('Damage costs'!$P$16:$P$43,MATCH($B164,'Damage costs'!$C$16:$C$43,0))/1000,O55*INDEX('Damage costs'!$T$16:$T$43,MATCH($B164,'Damage costs'!$C$16:$C$43,0))/1000),\"\")","v":""},{"$f":"IFERROR(IF(OR($C$168=FALSE,LEFT($B164,3)<>\"NOX\"),P55*INDEX('Damage costs'!$P$16:$P$43,MATCH($B164,'Damage costs'!$C$16:$C$43,0))/1000,P55*INDEX('Damage costs'!$T$16:$T$43,MATCH($B164,'Damage costs'!$C$16:$C$43,0))/1000),\"\")","v":""},{"$f":"IFERROR(IF(OR($C$168=FALSE,LEFT($B164,3)<>\"NOX\"),Q55*INDEX('Damage costs'!$P$16:$P$43,MATCH($B164,'Damage costs'!$C$16:$C$43,0))/1000,Q55*INDEX('Damage costs'!$T$16:$T$43,MATCH($B164,'Damage costs'!$C$16:$C$43,0))/1000),\"\")","v":""},{"$f":"IFERROR(IF(OR($C$168=FALSE,LEFT($B164,3)<>\"NOX\"),R55*INDEX('Damage costs'!$P$16:$P$43,MATCH($B164,'Damage costs'!$C$16:$C$43,0))/1000,R55*INDEX('Damage costs'!$T$16:$T$43,MATCH($B164,'Damage costs'!$C$16:$C$43,0))/1000),\"\")","v":""},{"$f":"IFERROR(IF(OR($C$168=FALSE,LEFT($B164,3)<>\"NOX\"),S55*INDEX('Damage costs'!$P$16:$P$43,MATCH($B164,'Damage costs'!$C$16:$C$43,0))/1000,S55*INDEX('Damage costs'!$T$16:$T$43,MATCH($B164,'Damage costs'!$C$16:$C$43,0))/1000),\"\")","v":""},{"$f":"IFERROR(IF(OR($C$168=FALSE,LEFT($B164,3)<>\"NOX\"),T55*INDEX('Damage costs'!$P$16:$P$43,MATCH($B164,'Damage costs'!$C$16:$C$43,0))/1000,T55*INDEX('Damage costs'!$T$16:$T$43,MATCH($B164,'Damage costs'!$C$16:$C$43,0))/1000),\"\")","v":""},{"$f":"IFERROR(IF(OR($C$168=FALSE,LEFT($B164,3)<>\"NOX\"),U55*INDEX('Damage costs'!$P$16:$P$43,MATCH($B164,'Damage costs'!$C$16:$C$43,0))/1000,U55*INDEX('Damage costs'!$T$16:$T$43,MATCH($B164,'Damage costs'!$C$16:$C$43,0))/1000),\"\")","v":""},{"$f":"IFERROR(IF(OR($C$168=FALSE,LEFT($B164,3)<>\"NOX\"),V55*INDEX('Damage costs'!$P$16:$P$43,MATCH($B164,'Damage costs'!$C$16:$C$43,0))/1000,V55*INDEX('Damage costs'!$T$16:$T$43,MATCH($B164,'Damage costs'!$C$16:$C$43,0))/1000),\"\")","v":""},{"$f":"IFERROR(IF(OR($C$168=FALSE,LEFT($B164,3)<>\"NOX\"),W55*INDEX('Damage costs'!$P$16:$P$43,MATCH($B164,'Damage costs'!$C$16:$C$43,0))/1000,W55*INDEX('Damage costs'!$T$16:$T$43,MATCH($B164,'Damage costs'!$C$16:$C$43,0))/1000),\"\")","v":""},{"$f":"IFERROR(IF(OR($C$168=FALSE,LEFT($B164,3)<>\"NOX\"),X55*INDEX('Damage costs'!$P$16:$P$43,MATCH($B164,'Damage costs'!$C$16:$C$43,0))/1000,X55*INDEX('Damage costs'!$T$16:$T$43,MATCH($B164,'Damage costs'!$C$16:$C$43,0))/1000),\"\")","v":""},{"$f":"IFERROR(IF(OR($C$168=FALSE,LEFT($B164,3)<>\"NOX\"),Y55*INDEX('Damage costs'!$P$16:$P$43,MATCH($B164,'Damage costs'!$C$16:$C$43,0))/1000,Y55*INDEX('Damage costs'!$T$16:$T$43,MATCH($B164,'Damage costs'!$C$16:$C$43,0))/1000),\"\")","v":""},{"$f":"IFERROR(IF(OR($C$168=FALSE,LEFT($B164,3)<>\"NOX\"),Z55*INDEX('Damage costs'!$P$16:$P$43,MATCH($B164,'Damage costs'!$C$16:$C$43,0))/1000,Z55*INDEX('Damage costs'!$T$16:$T$43,MATCH($B164,'Damage costs'!$C$16:$C$43,0))/1000),\"\")","v":""},{"$f":"IFERROR(IF(OR($C$168=FALSE,LEFT($B164,3)<>\"NOX\"),AA55*INDEX('Damage costs'!$P$16:$P$43,MATCH($B164,'Damage costs'!$C$16:$C$43,0))/1000,AA55*INDEX('Damage costs'!$T$16:$T$43,MATCH($B164,'Damage costs'!$C$16:$C$43,0))/1000),\"\")","v":""},{"$f":"IFERROR(IF(OR($C$168=FALSE,LEFT($B164,3)<>\"NOX\"),AB55*INDEX('Damage costs'!$P$16:$P$43,MATCH($B164,'Damage costs'!$C$16:$C$43,0))/1000,AB55*INDEX('Damage costs'!$T$16:$T$43,MATCH($B164,'Damage costs'!$C$16:$C$43,0))/1000),\"\")","v":""},{"$f":"IFERROR(IF(OR($C$168=FALSE,LEFT($B164,3)<>\"NOX\"),AC55*INDEX('Damage costs'!$P$16:$P$43,MATCH($B164,'Damage costs'!$C$16:$C$43,0))/1000,AC55*INDEX('Damage costs'!$T$16:$T$43,MATCH($B164,'Damage costs'!$C$16:$C$43,0))/1000),\"\")","v":""},{"$f":"IFERROR(IF(OR($C$168=FALSE,LEFT($B164,3)<>\"NOX\"),AD55*INDEX('Damage costs'!$P$16:$P$43,MATCH($B164,'Damage costs'!$C$16:$C$43,0))/1000,AD55*INDEX('Damage costs'!$T$16:$T$43,MATCH($B164,'Damage costs'!$C$16:$C$43,0))/1000),\"\")","v":""},{"$f":"IFERROR(IF(OR($C$168=FALSE,LEFT($B164,3)<>\"NOX\"),AE55*INDEX('Damage costs'!$P$16:$P$43,MATCH($B164,'Damage costs'!$C$16:$C$43,0))/1000,AE55*INDEX('Damage costs'!$T$16:$T$43,MATCH($B164,'Damage costs'!$C$16:$C$43,0))/1000),\"\")","v":""},{"$f":"IFERROR(IF(OR($C$168=FALSE,LEFT($B164,3)<>\"NOX\"),AF55*INDEX('Damage costs'!$P$16:$P$43,MATCH($B164,'Damage costs'!$C$16:$C$43,0))/1000,AF55*INDEX('Damage costs'!$T$16:$T$43,MATCH($B164,'Damage costs'!$C$16:$C$43,0))/1000),\"\")","v":""},{"$f":"IFERROR(IF(OR($C$168=FALSE,LEFT($B164,3)<>\"NOX\"),AG55*INDEX('Damage costs'!$P$16:$P$43,MATCH($B164,'Damage costs'!$C$16:$C$43,0))/1000,AG55*INDEX('Damage costs'!$T$16:$T$43,MATCH($B164,'Damage costs'!$C$16:$C$43,0))/1000),\"\")","v":""},{"$f":"IFERROR(IF(OR($C$168=FALSE,LEFT($B164,3)<>\"NOX\"),AH55*INDEX('Damage costs'!$P$16:$P$43,MATCH($B164,'Damage costs'!$C$16:$C$43,0))/1000,AH55*INDEX('Damage costs'!$T$16:$T$43,MATCH($B164,'Damage costs'!$C$16:$C$43,0))/1000),\"\")","v":""},{"$f":"IFERROR(IF(OR($C$168=FALSE,LEFT($B164,3)<>\"NOX\"),AI55*INDEX('Damage costs'!$P$16:$P$43,MATCH($B164,'Damage costs'!$C$16:$C$43,0))/1000,AI55*INDEX('Damage costs'!$T$16:$T$43,MATCH($B164,'Damage costs'!$C$16:$C$43,0))/1000),\"\")","v":""},{"$f":"IFERROR(IF(OR($C$168=FALSE,LEFT($B164,3)<>\"NOX\"),AJ55*INDEX('Damage costs'!$P$16:$P$43,MATCH($B164,'Damage costs'!$C$16:$C$43,0))/1000,AJ55*INDEX('Damage costs'!$T$16:$T$43,MATCH($B164,'Damage costs'!$C$16:$C$43,0))/1000),\"\")","v":""},{"$f":"IFERROR(IF(OR($C$168=FALSE,LEFT($B164,3)<>\"NOX\"),AK55*INDEX('Damage costs'!$P$16:$P$43,MATCH($B164,'Damage costs'!$C$16:$C$43,0))/1000,AK55*INDEX('Damage costs'!$T$16:$T$43,MATCH($B164,'Damage costs'!$C$16:$C$43,0))/1000),\"\")","v":""},{"$f":"IFERROR(IF(OR($C$168=FALSE,LEFT($B164,3)<>\"NOX\"),AL55*INDEX('Damage costs'!$P$16:$P$43,MATCH($B164,'Damage costs'!$C$16:$C$43,0))/1000,AL55*INDEX('Damage costs'!$T$16:$T$43,MATCH($B164,'Damage costs'!$C$16:$C$43,0))/1000),\"\")","v":""},{"$f":"IFERROR(IF(OR($C$168=FALSE,LEFT($B164,3)<>\"NOX\"),AM55*INDEX('Damage costs'!$P$16:$P$43,MATCH($B164,'Damage costs'!$C$16:$C$43,0))/1000,AM55*INDEX('Damage costs'!$T$16:$T$43,MATCH($B164,'Damage costs'!$C$16:$C$43,0))/1000),\"\")","v":""},{"$f":"IFERROR(IF(OR($C$168=FALSE,LEFT($B164,3)<>\"NOX\"),AN55*INDEX('Damage costs'!$P$16:$P$43,MATCH($B164,'Damage costs'!$C$16:$C$43,0))/1000,AN55*INDEX('Damage costs'!$T$16:$T$43,MATCH($B164,'Damage costs'!$C$16:$C$43,0))/1000),\"\")","v":""},{"$f":"IFERROR(IF(OR($C$168=FALSE,LEFT($B164,3)<>\"NOX\"),AO55*INDEX('Damage costs'!$P$16:$P$43,MATCH($B164,'Damage costs'!$C$16:$C$43,0))/1000,AO55*INDEX('Damage costs'!$T$16:$T$43,MATCH($B164,'Damage costs'!$C$16:$C$43,0))/1000),\"\")","v":""},{"$f":"IFERROR(IF(OR($C$168=FALSE,LEFT($B164,3)<>\"NOX\"),AP55*INDEX('Damage costs'!$P$16:$P$43,MATCH($B164,'Damage costs'!$C$16:$C$43,0))/1000,AP55*INDEX('Damage costs'!$T$16:$T$43,MATCH($B164,'Damage costs'!$C$16:$C$43,0))/1000),\"\")","v":""},{"$f":"IFERROR(IF(OR($C$168=FALSE,LEFT($B164,3)<>\"NOX\"),AQ55*INDEX('Damage costs'!$P$16:$P$43,MATCH($B164,'Damage costs'!$C$16:$C$43,0))/1000,AQ55*INDEX('Damage costs'!$T$16:$T$43,MATCH($B164,'Damage costs'!$C$16:$C$43,0))/1000),\"\")","v":""},{"$f":"IFERROR(IF(OR($C$168=FALSE,LEFT($B164,3)<>\"NOX\"),AR55*INDEX('Damage costs'!$P$16:$P$43,MATCH($B164,'Damage costs'!$C$16:$C$43,0))/1000,AR55*INDEX('Damage costs'!$T$16:$T$43,MATCH($B164,'Damage costs'!$C$16:$C$43,0))/1000),\"\")","v":""},{"$f":"IFERROR(IF(OR($C$168=FALSE,LEFT($B164,3)<>\"NOX\"),AS55*INDEX('Damage costs'!$P$16:$P$43,MATCH($B164,'Damage costs'!$C$16:$C$43,0))/1000,AS55*INDEX('Damage costs'!$T$16:$T$43,MATCH($B164,'Damage costs'!$C$16:$C$43,0))/1000),\"\")","v":""},{"$f":"IFERROR(IF(OR($C$168=FALSE,LEFT($B164,3)<>\"NOX\"),AT55*INDEX('Damage costs'!$P$16:$P$43,MATCH($B164,'Damage costs'!$C$16:$C$43,0))/1000,AT55*INDEX('Damage costs'!$T$16:$T$43,MATCH($B164,'Damage costs'!$C$16:$C$43,0))/1000),\"\")","v":""},{"$f":"IFERROR(IF(OR($C$168=FALSE,LEFT($B164,3)<>\"NOX\"),AU55*INDEX('Damage costs'!$P$16:$P$43,MATCH($B164,'Damage costs'!$C$16:$C$43,0))/1000,AU55*INDEX('Damage costs'!$T$16:$T$43,MATCH($B164,'Damage costs'!$C$16:$C$43,0))/1000),\"\")","v":""},{"$f":"IFERROR(IF(OR($C$168=FALSE,LEFT($B164,3)<>\"NOX\"),AV55*INDEX('Damage costs'!$P$16:$P$43,MATCH($B164,'Damage costs'!$C$16:$C$43,0))/1000,AV55*INDEX('Damage costs'!$T$16:$T$43,MATCH($B164,'Damage costs'!$C$16:$C$43,0))/1000),\"\")","v":""},{"$f":"IFERROR(IF(OR($C$168=FALSE,LEFT($B164,3)<>\"NOX\"),AW55*INDEX('Damage costs'!$P$16:$P$43,MATCH($B164,'Damage costs'!$C$16:$C$43,0))/1000,AW55*INDEX('Damage costs'!$T$16:$T$43,MATCH($B164,'Damage costs'!$C$16:$C$43,0))/1000),\"\")","v":""},{"$f":"IFERROR(IF(OR($C$168=FALSE,LEFT($B164,3)<>\"NOX\"),AX55*INDEX('Damage costs'!$P$16:$P$43,MATCH($B164,'Damage costs'!$C$16:$C$43,0))/1000,AX55*INDEX('Damage costs'!$T$16:$T$43,MATCH($B164,'Damage costs'!$C$16:$C$43,0))/1000),\"\")","v":""},{"$f":"IFERROR(IF(OR($C$168=FALSE,LEFT($B164,3)<>\"NOX\"),AY55*INDEX('Damage costs'!$P$16:$P$43,MATCH($B164,'Damage costs'!$C$16:$C$43,0))/1000,AY55*INDEX('Damage costs'!$T$16:$T$43,MATCH($B164,'Damage costs'!$C$16:$C$43,0))/1000),\"\")","v":""},{"$f":"IFERROR(IF(OR($C$168=FALSE,LEFT($B164,3)<>\"NOX\"),AZ55*INDEX('Damage costs'!$P$16:$P$43,MATCH($B164,'Damage costs'!$C$16:$C$43,0))/1000,AZ55*INDEX('Damage costs'!$T$16:$T$43,MATCH($B164,'Damage costs'!$C$16:$C$43,0))/1000),\"\")","v":""},{"$f":"IFERROR(IF(OR($C$168=FALSE,LEFT($B164,3)<>\"NOX\"),BA55*INDEX('Damage costs'!$P$16:$P$43,MATCH($B164,'Damage costs'!$C$16:$C$43,0))/1000,BA55*INDEX('Damage costs'!$T$16:$T$43,MATCH($B164,'Damage costs'!$C$16:$C$43,0))/1000),\"\")","v":""},{"$f":"IFERROR(IF(OR($C$168=FALSE,LEFT($B164,3)<>\"NOX\"),BB55*INDEX('Damage costs'!$P$16:$P$43,MATCH($B164,'Damage costs'!$C$16:$C$43,0))/1000,BB55*INDEX('Damage costs'!$T$16:$T$43,MATCH($B164,'Damage costs'!$C$16:$C$43,0))/1000),\"\")","v":""},{"$f":"IFERROR(IF(OR($C$168=FALSE,LEFT($B164,3)<>\"NOX\"),BC55*INDEX('Damage costs'!$P$16:$P$43,MATCH($B164,'Damage costs'!$C$16:$C$43,0))/1000,BC55*INDEX('Damage costs'!$T$16:$T$43,MATCH($B164,'Damage costs'!$C$16:$C$43,0))/1000),\"\")","v":""},{"$f":"IFERROR(IF(OR($C$168=FALSE,LEFT($B164,3)<>\"NOX\"),BD55*INDEX('Damage costs'!$P$16:$P$43,MATCH($B164,'Damage costs'!$C$16:$C$43,0))/1000,BD55*INDEX('Damage costs'!$T$16:$T$43,MATCH($B164,'Damage costs'!$C$16:$C$43,0))/1000),\"\")","v":""},{"$f":"IFERROR(IF(OR($C$168=FALSE,LEFT($B164,3)<>\"NOX\"),BE55*INDEX('Damage costs'!$P$16:$P$43,MATCH($B164,'Damage costs'!$C$16:$C$43,0))/1000,BE55*INDEX('Damage costs'!$T$16:$T$43,MATCH($B164,'Damage costs'!$C$16:$C$43,0))/1000),\"\")","v":""},{"$f":"IFERROR(IF(OR($C$168=FALSE,LEFT($B164,3)<>\"NOX\"),BF55*INDEX('Damage costs'!$P$16:$P$43,MATCH($B164,'Damage costs'!$C$16:$C$43,0))/1000,BF55*INDEX('Damage costs'!$T$16:$T$43,MATCH($B164,'Damage costs'!$C$16:$C$43,0))/1000),\"\")","v":""},{"$f":"IFERROR(IF(OR($C$168=FALSE,LEFT($B164,3)<>\"NOX\"),BG55*INDEX('Damage costs'!$P$16:$P$43,MATCH($B164,'Damage costs'!$C$16:$C$43,0))/1000,BG55*INDEX('Damage costs'!$T$16:$T$43,MATCH($B164,'Damage costs'!$C$16:$C$43,0))/1000),\"\")","v":""},{"$f":"IFERROR(IF(OR($C$168=FALSE,LEFT($B164,3)<>\"NOX\"),BH55*INDEX('Damage costs'!$P$16:$P$43,MATCH($B164,'Damage costs'!$C$16:$C$43,0))/1000,BH55*INDEX('Damage costs'!$T$16:$T$43,MATCH($B164,'Damage costs'!$C$16:$C$43,0))/1000),\"\")","v":""},{"$f":"IFERROR(IF(OR($C$168=FALSE,LEFT($B164,3)<>\"NOX\"),BI55*INDEX('Damage costs'!$P$16:$P$43,MATCH($B164,'Damage costs'!$C$16:$C$43,0))/1000,BI55*INDEX('Damage costs'!$T$16:$T$43,MATCH($B164,'Damage costs'!$C$16:$C$43,0))/1000),\"\")","v":""},{"$f":"IFERROR(IF(OR($C$168=FALSE,LEFT($B164,3)<>\"NOX\"),BJ55*INDEX('Damage costs'!$P$16:$P$43,MATCH($B164,'Damage costs'!$C$16:$C$43,0))/1000,BJ55*INDEX('Damage costs'!$T$16:$T$43,MATCH($B164,'Damage costs'!$C$16:$C$43,0))/1000),\"\")","v":""},{"$f":"IFERROR(IF(OR($C$168=FALSE,LEFT($B164,3)<>\"NOX\"),BK55*INDEX('Damage costs'!$P$16:$P$43,MATCH($B164,'Damage costs'!$C$16:$C$43,0))/1000,BK55*INDEX('Damage costs'!$T$16:$T$43,MATCH($B164,'Damage costs'!$C$16:$C$43,0))/1000),\"\")","v":""},{"$f":"IFERROR(IF(OR($C$168=FALSE,LEFT($B164,3)<>\"NOX\"),BL55*INDEX('Damage costs'!$P$16:$P$43,MATCH($B164,'Damage costs'!$C$16:$C$43,0))/1000,BL55*INDEX('Damage costs'!$T$16:$T$43,MATCH($B164,'Damage costs'!$C$16:$C$43,0))/1000),\"\")","v":""},{"$f":"IFERROR(IF(OR($C$168=FALSE,LEFT($B164,3)<>\"NOX\"),BM55*INDEX('Damage costs'!$P$16:$P$43,MATCH($B164,'Damage costs'!$C$16:$C$43,0))/1000,BM55*INDEX('Damage costs'!$T$16:$T$43,MATCH($B164,'Damage costs'!$C$16:$C$43,0))/1000),\"\")","v":""},{"$f":"IFERROR(IF(OR($C$168=FALSE,LEFT($B164,3)<>\"NOX\"),BN55*INDEX('Damage costs'!$P$16:$P$43,MATCH($B164,'Damage costs'!$C$16:$C$43,0))/1000,BN55*INDEX('Damage costs'!$T$16:$T$43,MATCH($B164,'Damage costs'!$C$16:$C$43,0))/1000),\"\")","v":""},{"$f":"IFERROR(IF(OR($C$168=FALSE,LEFT($B164,3)<>\"NOX\"),BO55*INDEX('Damage costs'!$P$16:$P$43,MATCH($B164,'Damage costs'!$C$16:$C$43,0))/1000,BO55*INDEX('Damage costs'!$T$16:$T$43,MATCH($B164,'Damage costs'!$C$16:$C$43,0))/1000),\"\")","v":""},{"$f":"IFERROR(IF(OR($C$168=FALSE,LEFT($B164,3)<>\"NOX\"),BP55*INDEX('Damage costs'!$P$16:$P$43,MATCH($B164,'Damage costs'!$C$16:$C$43,0))/1000,BP55*INDEX('Damage costs'!$T$16:$T$43,MATCH($B164,'Damage costs'!$C$16:$C$43,0))/1000),\"\")","v":""},{"$f":"IFERROR(IF(OR($C$168=FALSE,LEFT($B164,3)<>\"NOX\"),BQ55*INDEX('Damage costs'!$P$16:$P$43,MATCH($B164,'Damage costs'!$C$16:$C$43,0))/1000,BQ55*INDEX('Damage costs'!$T$16:$T$43,MATCH($B164,'Damage costs'!$C$16:$C$43,0))/1000),\"\")","v":""},{"$f":"IFERROR(IF(OR($C$168=FALSE,LEFT($B164,3)<>\"NOX\"),BR55*INDEX('Damage costs'!$P$16:$P$43,MATCH($B164,'Damage costs'!$C$16:$C$43,0))/1000,BR55*INDEX('Damage costs'!$T$16:$T$43,MATCH($B164,'Damage costs'!$C$16:$C$43,0))/1000),\"\")","v":""},{"$f":"IFERROR(IF(OR($C$168=FALSE,LEFT($B164,3)<>\"NOX\"),BS55*INDEX('Damage costs'!$P$16:$P$43,MATCH($B164,'Damage costs'!$C$16:$C$43,0))/1000,BS55*INDEX('Damage costs'!$T$16:$T$43,MATCH($B164,'Damage costs'!$C$16:$C$43,0))/1000),\"\")","v":""},{"$f":"IFERROR(IF(OR($C$168=FALSE,LEFT($B164,3)<>\"NOX\"),BT55*INDEX('Damage costs'!$P$16:$P$43,MATCH($B164,'Damage costs'!$C$16:$C$43,0))/1000,BT55*INDEX('Damage costs'!$T$16:$T$43,MATCH($B164,'Damage costs'!$C$16:$C$43,0))/1000),\"\")","v":""},{"$f":"IFERROR(IF(OR($C$168=FALSE,LEFT($B164,3)<>\"NOX\"),BU55*INDEX('Damage costs'!$P$16:$P$43,MATCH($B164,'Damage costs'!$C$16:$C$43,0))/1000,BU55*INDEX('Damage costs'!$T$16:$T$43,MATCH($B164,'Damage costs'!$C$16:$C$43,0))/1000),\"\")","v":""},{"$f":"IFERROR(IF(OR($C$168=FALSE,LEFT($B164,3)<>\"NOX\"),BV55*INDEX('Damage costs'!$P$16:$P$43,MATCH($B164,'Damage costs'!$C$16:$C$43,0))/1000,BV55*INDEX('Damage costs'!$T$16:$T$43,MATCH($B164,'Damage costs'!$C$16:$C$43,0))/1000),\"\")","v":""},{"$f":"IFERROR(IF(OR($C$168=FALSE,LEFT($B164,3)<>\"NOX\"),BW55*INDEX('Damage costs'!$P$16:$P$43,MATCH($B164,'Damage costs'!$C$16:$C$43,0))/1000,BW55*INDEX('Damage costs'!$T$16:$T$43,MATCH($B164,'Damage costs'!$C$16:$C$43,0))/1000),\"\")","v":""},{"$f":"IFERROR(IF(OR($C$168=FALSE,LEFT($B164,3)<>\"NOX\"),BX55*INDEX('Damage costs'!$P$16:$P$43,MATCH($B164,'Damage costs'!$C$16:$C$43,0))/1000,BX55*INDEX('Damage costs'!$T$16:$T$43,MATCH($B164,'Damage costs'!$C$16:$C$43,0))/1000),\"\")","v":""},{"$f":"IFERROR(IF(OR($C$168=FALSE,LEFT($B164,3)<>\"NOX\"),BY55*INDEX('Damage costs'!$P$16:$P$43,MATCH($B164,'Damage costs'!$C$16:$C$43,0))/1000,BY55*INDEX('Damage costs'!$T$16:$T$43,MATCH($B164,'Damage costs'!$C$16:$C$43,0))/1000),\"\")","v":""},{"$f":"IFERROR(IF(OR($C$168=FALSE,LEFT($B164,3)<>\"NOX\"),BZ55*INDEX('Damage costs'!$P$16:$P$43,MATCH($B164,'Damage costs'!$C$16:$C$43,0))/1000,BZ55*INDEX('Damage costs'!$T$16:$T$43,MATCH($B164,'Damage costs'!$C$16:$C$43,0))/1000),\"\")","v":""},{"$f":"IFERROR(IF(OR($C$168=FALSE,LEFT($B164,3)<>\"NOX\"),CA55*INDEX('Damage costs'!$P$16:$P$43,MATCH($B164,'Damage costs'!$C$16:$C$43,0))/1000,CA55*INDEX('Damage costs'!$T$16:$T$43,MATCH($B164,'Damage costs'!$C$16:$C$43,0))/1000),\"\")","v":""},{"$f":"IFERROR(IF(OR($C$168=FALSE,LEFT($B164,3)<>\"NOX\"),CB55*INDEX('Damage costs'!$P$16:$P$43,MATCH($B164,'Damage costs'!$C$16:$C$43,0))/1000,CB55*INDEX('Damage costs'!$T$16:$T$43,MATCH($B164,'Damage costs'!$C$16:$C$43,0))/1000),\"\")","v":""},{"$f":"IFERROR(IF(OR($C$168=FALSE,LEFT($B164,3)<>\"NOX\"),CC55*INDEX('Damage costs'!$P$16:$P$43,MATCH($B164,'Damage costs'!$C$16:$C$43,0))/1000,CC55*INDEX('Damage costs'!$T$16:$T$43,MATCH($B164,'Damage costs'!$C$16:$C$43,0))/1000),\"\")","v":""},{"$f":"IFERROR(IF(OR($C$168=FALSE,LEFT($B164,3)<>\"NOX\"),CD55*INDEX('Damage costs'!$P$16:$P$43,MATCH($B164,'Damage costs'!$C$16:$C$43,0))/1000,CD55*INDEX('Damage costs'!$T$16:$T$43,MATCH($B164,'Damage costs'!$C$16:$C$43,0))/1000),\"\")","v":""},{"$f":"IFERROR(IF(OR($C$168=FALSE,LEFT($B164,3)<>\"NOX\"),CE55*INDEX('Damage costs'!$P$16:$P$43,MATCH($B164,'Damage costs'!$C$16:$C$43,0))/1000,CE55*INDEX('Damage costs'!$T$16:$T$43,MATCH($B164,'Damage costs'!$C$16:$C$43,0))/1000),\"\")","v":""},{"$f":"IFERROR(IF(OR($C$168=FALSE,LEFT($B164,3)<>\"NOX\"),CF55*INDEX('Damage costs'!$P$16:$P$43,MATCH($B164,'Damage costs'!$C$16:$C$43,0))/1000,CF55*INDEX('Damage costs'!$T$16:$T$43,MATCH($B164,'Damage costs'!$C$16:$C$43,0))/1000),\"\")","v":""},{"$f":"IFERROR(IF(OR($C$168=FALSE,LEFT($B164,3)<>\"NOX\"),CG55*INDEX('Damage costs'!$P$16:$P$43,MATCH($B164,'Damage costs'!$C$16:$C$43,0))/1000,CG55*INDEX('Damage costs'!$T$16:$T$43,MATCH($B164,'Damage costs'!$C$16:$C$43,0))/1000),\"\")","v":""},{"$f":"IFERROR(IF(OR($C$168=FALSE,LEFT($B164,3)<>\"NOX\"),CH55*INDEX('Damage costs'!$P$16:$P$43,MATCH($B164,'Damage costs'!$C$16:$C$43,0))/1000,CH55*INDEX('Damage costs'!$T$16:$T$43,MATCH($B164,'Damage costs'!$C$16:$C$43,0))/1000),\"\")","v":""},{"$f":"IFERROR(IF(OR($C$168=FALSE,LEFT($B164,3)<>\"NOX\"),CI55*INDEX('Damage costs'!$P$16:$P$43,MATCH($B164,'Damage costs'!$C$16:$C$43,0))/1000,CI55*INDEX('Damage costs'!$T$16:$T$43,MATCH($B164,'Damage costs'!$C$16:$C$43,0))/1000),\"\")","v":""},{"$f":"IFERROR(IF(OR($C$168=FALSE,LEFT($B164,3)<>\"NOX\"),CJ55*INDEX('Damage costs'!$P$16:$P$43,MATCH($B164,'Damage costs'!$C$16:$C$43,0))/1000,CJ55*INDEX('Damage costs'!$T$16:$T$43,MATCH($B164,'Damage costs'!$C$16:$C$43,0))/1000),\"\")","v":""},{"$f":"IFERROR(IF(OR($C$168=FALSE,LEFT($B164,3)<>\"NOX\"),CK55*INDEX('Damage costs'!$P$16:$P$43,MATCH($B164,'Damage costs'!$C$16:$C$43,0))/1000,CK55*INDEX('Damage costs'!$T$16:$T$43,MATCH($B164,'Damage costs'!$C$16:$C$43,0))/1000),\"\")","v":""},{"$f":"IFERROR(IF(OR($C$168=FALSE,LEFT($B164,3)<>\"NOX\"),CL55*INDEX('Damage costs'!$P$16:$P$43,MATCH($B164,'Damage costs'!$C$16:$C$43,0))/1000,CL55*INDEX('Damage costs'!$T$16:$T$43,MATCH($B164,'Damage costs'!$C$16:$C$43,0))/1000),\"\")","v":""},{"$f":"IFERROR(IF(OR($C$168=FALSE,LEFT($B164,3)<>\"NOX\"),CM55*INDEX('Damage costs'!$P$16:$P$43,MATCH($B164,'Damage costs'!$C$16:$C$43,0))/1000,CM55*INDEX('Damage costs'!$T$16:$T$43,MATCH($B164,'Damage costs'!$C$16:$C$43,0))/1000),\"\")","v":""},{"$f":"IFERROR(IF(OR($C$168=FALSE,LEFT($B164,3)<>\"NOX\"),CN55*INDEX('Damage costs'!$P$16:$P$43,MATCH($B164,'Damage costs'!$C$16:$C$43,0))/1000,CN55*INDEX('Damage costs'!$T$16:$T$43,MATCH($B164,'Damage costs'!$C$16:$C$43,0))/1000),\"\")","v":""},{"$f":"IFERROR(IF(OR($C$168=FALSE,LEFT($B164,3)<>\"NOX\"),CO55*INDEX('Damage costs'!$P$16:$P$43,MATCH($B164,'Damage costs'!$C$16:$C$43,0))/1000,CO55*INDEX('Damage costs'!$T$16:$T$43,MATCH($B164,'Damage costs'!$C$16:$C$43,0))/1000),\"\")","v":""},{"$f":"IFERROR(IF(OR($C$168=FALSE,LEFT($B164,3)<>\"NOX\"),CP55*INDEX('Damage costs'!$P$16:$P$43,MATCH($B164,'Damage costs'!$C$16:$C$43,0))/1000,CP55*INDEX('Damage costs'!$T$16:$T$43,MATCH($B164,'Damage costs'!$C$16:$C$43,0))/1000),\"\")","v":""},{"$f":"IFERROR(IF(OR($C$168=FALSE,LEFT($B164,3)<>\"NOX\"),CQ55*INDEX('Damage costs'!$P$16:$P$43,MATCH($B164,'Damage costs'!$C$16:$C$43,0))/1000,CQ55*INDEX('Damage costs'!$T$16:$T$43,MATCH($B164,'Damage costs'!$C$16:$C$43,0))/1000),\"\")","v":""},{"$f":"IFERROR(IF(OR($C$168=FALSE,LEFT($B164,3)<>\"NOX\"),CR55*INDEX('Damage costs'!$P$16:$P$43,MATCH($B164,'Damage costs'!$C$16:$C$43,0))/1000,CR55*INDEX('Damage costs'!$T$16:$T$43,MATCH($B164,'Damage costs'!$C$16:$C$43,0))/1000),\"\")","v":""},{"$f":"IFERROR(IF(OR($C$168=FALSE,LEFT($B164,3)<>\"NOX\"),CS55*INDEX('Damage costs'!$P$16:$P$43,MATCH($B164,'Damage costs'!$C$16:$C$43,0))/1000,CS55*INDEX('Damage costs'!$T$16:$T$43,MATCH($B164,'Damage costs'!$C$16:$C$43,0))/1000),\"\")","v":""},{"$f":"IFERROR(IF(OR($C$168=FALSE,LEFT($B164,3)<>\"NOX\"),CT55*INDEX('Damage costs'!$P$16:$P$43,MATCH($B164,'Damage costs'!$C$16:$C$43,0))/1000,CT55*INDEX('Damage costs'!$T$16:$T$43,MATCH($B164,'Damage costs'!$C$16:$C$43,0))/1000),\"\")","v":""},{"$f":"IFERROR(IF(OR($C$168=FALSE,LEFT($B164,3)<>\"NOX\"),CU55*INDEX('Damage costs'!$P$16:$P$43,MATCH($B164,'Damage costs'!$C$16:$C$43,0))/1000,CU55*INDEX('Damage costs'!$T$16:$T$43,MATCH($B164,'Damage costs'!$C$16:$C$43,0))/1000),\"\")","v":""},{"$f":"IFERROR(IF(OR($C$168=FALSE,LEFT($B164,3)<>\"NOX\"),CV55*INDEX('Damage costs'!$P$16:$P$43,MATCH($B164,'Damage costs'!$C$16:$C$43,0))/1000,CV55*INDEX('Damage costs'!$T$16:$T$43,MATCH($B164,'Damage costs'!$C$16:$C$43,0))/1000),\"\")","v":""},{"$f":"IFERROR(IF(OR($C$168=FALSE,LEFT($B164,3)<>\"NOX\"),CW55*INDEX('Damage costs'!$P$16:$P$43,MATCH($B164,'Damage costs'!$C$16:$C$43,0))/1000,CW55*INDEX('Damage costs'!$T$16:$T$43,MATCH($B164,'Damage costs'!$C$16:$C$43,0))/1000),\"\")","v":""},{"$f":"IFERROR(IF(OR($C$168=FALSE,LEFT($B164,3)<>\"NOX\"),CX55*INDEX('Damage costs'!$P$16:$P$43,MATCH($B164,'Damage costs'!$C$16:$C$43,0))/1000,CX55*INDEX('Damage costs'!$T$16:$T$43,MATCH($B164,'Damage costs'!$C$16:$C$43,0))/1000),\"\")","v":""},{"$f":"IFERROR(IF(OR($C$168=FALSE,LEFT($B164,3)<>\"NOX\"),CY55*INDEX('Damage costs'!$P$16:$P$43,MATCH($B164,'Damage costs'!$C$16:$C$43,0))/1000,CY55*INDEX('Damage costs'!$T$16:$T$43,MATCH($B164,'Damage costs'!$C$16:$C$43,0))/1000),\"\")","v":""}]
[null,0,"£000's",{"$f":"IFERROR(IF(OR($C$168=FALSE,LEFT($B165,3)<>\"NOX\"),D56*INDEX('Damage costs'!$P$16:$P$43,MATCH($B165,'Damage costs'!$C$16:$C$43,0))/1000,D56*INDEX('Damage costs'!$T$16:$T$43,MATCH($B165,'Damage costs'!$C$16:$C$43,0))/1000),\"\")","v":""},{"$f":"IFERROR(IF(OR($C$168=FALSE,LEFT($B165,3)<>\"NOX\"),E56*INDEX('Damage costs'!$P$16:$P$43,MATCH($B165,'Damage costs'!$C$16:$C$43,0))/1000,E56*INDEX('Damage costs'!$T$16:$T$43,MATCH($B165,'Damage costs'!$C$16:$C$43,0))/1000),\"\")","v":""},{"$f":"IFERROR(IF(OR($C$168=FALSE,LEFT($B165,3)<>\"NOX\"),F56*INDEX('Damage costs'!$P$16:$P$43,MATCH($B165,'Damage costs'!$C$16:$C$43,0))/1000,F56*INDEX('Damage costs'!$T$16:$T$43,MATCH($B165,'Damage costs'!$C$16:$C$43,0))/1000),\"\")","v":""},{"$f":"IFERROR(IF(OR($C$168=FALSE,LEFT($B165,3)<>\"NOX\"),G56*INDEX('Damage costs'!$P$16:$P$43,MATCH($B165,'Damage costs'!$C$16:$C$43,0))/1000,G56*INDEX('Damage costs'!$T$16:$T$43,MATCH($B165,'Damage costs'!$C$16:$C$43,0))/1000),\"\")","v":""},{"$f":"IFERROR(IF(OR($C$168=FALSE,LEFT($B165,3)<>\"NOX\"),H56*INDEX('Damage costs'!$P$16:$P$43,MATCH($B165,'Damage costs'!$C$16:$C$43,0))/1000,H56*INDEX('Damage costs'!$T$16:$T$43,MATCH($B165,'Damage costs'!$C$16:$C$43,0))/1000),\"\")","v":""},{"$f":"IFERROR(IF(OR($C$168=FALSE,LEFT($B165,3)<>\"NOX\"),I56*INDEX('Damage costs'!$P$16:$P$43,MATCH($B165,'Damage costs'!$C$16:$C$43,0))/1000,I56*INDEX('Damage costs'!$T$16:$T$43,MATCH($B165,'Damage costs'!$C$16:$C$43,0))/1000),\"\")","v":""},{"$f":"IFERROR(IF(OR($C$168=FALSE,LEFT($B165,3)<>\"NOX\"),J56*INDEX('Damage costs'!$P$16:$P$43,MATCH($B165,'Damage costs'!$C$16:$C$43,0))/1000,J56*INDEX('Damage costs'!$T$16:$T$43,MATCH($B165,'Damage costs'!$C$16:$C$43,0))/1000),\"\")","v":""},{"$f":"IFERROR(IF(OR($C$168=FALSE,LEFT($B165,3)<>\"NOX\"),K56*INDEX('Damage costs'!$P$16:$P$43,MATCH($B165,'Damage costs'!$C$16:$C$43,0))/1000,K56*INDEX('Damage costs'!$T$16:$T$43,MATCH($B165,'Damage costs'!$C$16:$C$43,0))/1000),\"\")","v":""},{"$f":"IFERROR(IF(OR($C$168=FALSE,LEFT($B165,3)<>\"NOX\"),L56*INDEX('Damage costs'!$P$16:$P$43,MATCH($B165,'Damage costs'!$C$16:$C$43,0))/1000,L56*INDEX('Damage costs'!$T$16:$T$43,MATCH($B165,'Damage costs'!$C$16:$C$43,0))/1000),\"\")","v":""},{"$f":"IFERROR(IF(OR($C$168=FALSE,LEFT($B165,3)<>\"NOX\"),M56*INDEX('Damage costs'!$P$16:$P$43,MATCH($B165,'Damage costs'!$C$16:$C$43,0))/1000,M56*INDEX('Damage costs'!$T$16:$T$43,MATCH($B165,'Damage costs'!$C$16:$C$43,0))/1000),\"\")","v":""},{"$f":"IFERROR(IF(OR($C$168=FALSE,LEFT($B165,3)<>\"NOX\"),N56*INDEX('Damage costs'!$P$16:$P$43,MATCH($B165,'Damage costs'!$C$16:$C$43,0))/1000,N56*INDEX('Damage costs'!$T$16:$T$43,MATCH($B165,'Damage costs'!$C$16:$C$43,0))/1000),\"\")","v":""},{"$f":"IFERROR(IF(OR($C$168=FALSE,LEFT($B165,3)<>\"NOX\"),O56*INDEX('Damage costs'!$P$16:$P$43,MATCH($B165,'Damage costs'!$C$16:$C$43,0))/1000,O56*INDEX('Damage costs'!$T$16:$T$43,MATCH($B165,'Damage costs'!$C$16:$C$43,0))/1000),\"\")","v":""},{"$f":"IFERROR(IF(OR($C$168=FALSE,LEFT($B165,3)<>\"NOX\"),P56*INDEX('Damage costs'!$P$16:$P$43,MATCH($B165,'Damage costs'!$C$16:$C$43,0))/1000,P56*INDEX('Damage costs'!$T$16:$T$43,MATCH($B165,'Damage costs'!$C$16:$C$43,0))/1000),\"\")","v":""},{"$f":"IFERROR(IF(OR($C$168=FALSE,LEFT($B165,3)<>\"NOX\"),Q56*INDEX('Damage costs'!$P$16:$P$43,MATCH($B165,'Damage costs'!$C$16:$C$43,0))/1000,Q56*INDEX('Damage costs'!$T$16:$T$43,MATCH($B165,'Damage costs'!$C$16:$C$43,0))/1000),\"\")","v":""},{"$f":"IFERROR(IF(OR($C$168=FALSE,LEFT($B165,3)<>\"NOX\"),R56*INDEX('Damage costs'!$P$16:$P$43,MATCH($B165,'Damage costs'!$C$16:$C$43,0))/1000,R56*INDEX('Damage costs'!$T$16:$T$43,MATCH($B165,'Damage costs'!$C$16:$C$43,0))/1000),\"\")","v":""},{"$f":"IFERROR(IF(OR($C$168=FALSE,LEFT($B165,3)<>\"NOX\"),S56*INDEX('Damage costs'!$P$16:$P$43,MATCH($B165,'Damage costs'!$C$16:$C$43,0))/1000,S56*INDEX('Damage costs'!$T$16:$T$43,MATCH($B165,'Damage costs'!$C$16:$C$43,0))/1000),\"\")","v":""},{"$f":"IFERROR(IF(OR($C$168=FALSE,LEFT($B165,3)<>\"NOX\"),T56*INDEX('Damage costs'!$P$16:$P$43,MATCH($B165,'Damage costs'!$C$16:$C$43,0))/1000,T56*INDEX('Damage costs'!$T$16:$T$43,MATCH($B165,'Damage costs'!$C$16:$C$43,0))/1000),\"\")","v":""},{"$f":"IFERROR(IF(OR($C$168=FALSE,LEFT($B165,3)<>\"NOX\"),U56*INDEX('Damage costs'!$P$16:$P$43,MATCH($B165,'Damage costs'!$C$16:$C$43,0))/1000,U56*INDEX('Damage costs'!$T$16:$T$43,MATCH($B165,'Damage costs'!$C$16:$C$43,0))/1000),\"\")","v":""},{"$f":"IFERROR(IF(OR($C$168=FALSE,LEFT($B165,3)<>\"NOX\"),V56*INDEX('Damage costs'!$P$16:$P$43,MATCH($B165,'Damage costs'!$C$16:$C$43,0))/1000,V56*INDEX('Damage costs'!$T$16:$T$43,MATCH($B165,'Damage costs'!$C$16:$C$43,0))/1000),\"\")","v":""},{"$f":"IFERROR(IF(OR($C$168=FALSE,LEFT($B165,3)<>\"NOX\"),W56*INDEX('Damage costs'!$P$16:$P$43,MATCH($B165,'Damage costs'!$C$16:$C$43,0))/1000,W56*INDEX('Damage costs'!$T$16:$T$43,MATCH($B165,'Damage costs'!$C$16:$C$43,0))/1000),\"\")","v":""},{"$f":"IFERROR(IF(OR($C$168=FALSE,LEFT($B165,3)<>\"NOX\"),X56*INDEX('Damage costs'!$P$16:$P$43,MATCH($B165,'Damage costs'!$C$16:$C$43,0))/1000,X56*INDEX('Damage costs'!$T$16:$T$43,MATCH($B165,'Damage costs'!$C$16:$C$43,0))/1000),\"\")","v":""},{"$f":"IFERROR(IF(OR($C$168=FALSE,LEFT($B165,3)<>\"NOX\"),Y56*INDEX('Damage costs'!$P$16:$P$43,MATCH($B165,'Damage costs'!$C$16:$C$43,0))/1000,Y56*INDEX('Damage costs'!$T$16:$T$43,MATCH($B165,'Damage costs'!$C$16:$C$43,0))/1000),\"\")","v":""},{"$f":"IFERROR(IF(OR($C$168=FALSE,LEFT($B165,3)<>\"NOX\"),Z56*INDEX('Damage costs'!$P$16:$P$43,MATCH($B165,'Damage costs'!$C$16:$C$43,0))/1000,Z56*INDEX('Damage costs'!$T$16:$T$43,MATCH($B165,'Damage costs'!$C$16:$C$43,0))/1000),\"\")","v":""},{"$f":"IFERROR(IF(OR($C$168=FALSE,LEFT($B165,3)<>\"NOX\"),AA56*INDEX('Damage costs'!$P$16:$P$43,MATCH($B165,'Damage costs'!$C$16:$C$43,0))/1000,AA56*INDEX('Damage costs'!$T$16:$T$43,MATCH($B165,'Damage costs'!$C$16:$C$43,0))/1000),\"\")","v":""},{"$f":"IFERROR(IF(OR($C$168=FALSE,LEFT($B165,3)<>\"NOX\"),AB56*INDEX('Damage costs'!$P$16:$P$43,MATCH($B165,'Damage costs'!$C$16:$C$43,0))/1000,AB56*INDEX('Damage costs'!$T$16:$T$43,MATCH($B165,'Damage costs'!$C$16:$C$43,0))/1000),\"\")","v":""},{"$f":"IFERROR(IF(OR($C$168=FALSE,LEFT($B165,3)<>\"NOX\"),AC56*INDEX('Damage costs'!$P$16:$P$43,MATCH($B165,'Damage costs'!$C$16:$C$43,0))/1000,AC56*INDEX('Damage costs'!$T$16:$T$43,MATCH($B165,'Damage costs'!$C$16:$C$43,0))/1000),\"\")","v":""},{"$f":"IFERROR(IF(OR($C$168=FALSE,LEFT($B165,3)<>\"NOX\"),AD56*INDEX('Damage costs'!$P$16:$P$43,MATCH($B165,'Damage costs'!$C$16:$C$43,0))/1000,AD56*INDEX('Damage costs'!$T$16:$T$43,MATCH($B165,'Damage costs'!$C$16:$C$43,0))/1000),\"\")","v":""},{"$f":"IFERROR(IF(OR($C$168=FALSE,LEFT($B165,3)<>\"NOX\"),AE56*INDEX('Damage costs'!$P$16:$P$43,MATCH($B165,'Damage costs'!$C$16:$C$43,0))/1000,AE56*INDEX('Damage costs'!$T$16:$T$43,MATCH($B165,'Damage costs'!$C$16:$C$43,0))/1000),\"\")","v":""},{"$f":"IFERROR(IF(OR($C$168=FALSE,LEFT($B165,3)<>\"NOX\"),AF56*INDEX('Damage costs'!$P$16:$P$43,MATCH($B165,'Damage costs'!$C$16:$C$43,0))/1000,AF56*INDEX('Damage costs'!$T$16:$T$43,MATCH($B165,'Damage costs'!$C$16:$C$43,0))/1000),\"\")","v":""},{"$f":"IFERROR(IF(OR($C$168=FALSE,LEFT($B165,3)<>\"NOX\"),AG56*INDEX('Damage costs'!$P$16:$P$43,MATCH($B165,'Damage costs'!$C$16:$C$43,0))/1000,AG56*INDEX('Damage costs'!$T$16:$T$43,MATCH($B165,'Damage costs'!$C$16:$C$43,0))/1000),\"\")","v":""},{"$f":"IFERROR(IF(OR($C$168=FALSE,LEFT($B165,3)<>\"NOX\"),AH56*INDEX('Damage costs'!$P$16:$P$43,MATCH($B165,'Damage costs'!$C$16:$C$43,0))/1000,AH56*INDEX('Damage costs'!$T$16:$T$43,MATCH($B165,'Damage costs'!$C$16:$C$43,0))/1000),\"\")","v":""},{"$f":"IFERROR(IF(OR($C$168=FALSE,LEFT($B165,3)<>\"NOX\"),AI56*INDEX('Damage costs'!$P$16:$P$43,MATCH($B165,'Damage costs'!$C$16:$C$43,0))/1000,AI56*INDEX('Damage costs'!$T$16:$T$43,MATCH($B165,'Damage costs'!$C$16:$C$43,0))/1000),\"\")","v":""},{"$f":"IFERROR(IF(OR($C$168=FALSE,LEFT($B165,3)<>\"NOX\"),AJ56*INDEX('Damage costs'!$P$16:$P$43,MATCH($B165,'Damage costs'!$C$16:$C$43,0))/1000,AJ56*INDEX('Damage costs'!$T$16:$T$43,MATCH($B165,'Damage costs'!$C$16:$C$43,0))/1000),\"\")","v":""},{"$f":"IFERROR(IF(OR($C$168=FALSE,LEFT($B165,3)<>\"NOX\"),AK56*INDEX('Damage costs'!$P$16:$P$43,MATCH($B165,'Damage costs'!$C$16:$C$43,0))/1000,AK56*INDEX('Damage costs'!$T$16:$T$43,MATCH($B165,'Damage costs'!$C$16:$C$43,0))/1000),\"\")","v":""},{"$f":"IFERROR(IF(OR($C$168=FALSE,LEFT($B165,3)<>\"NOX\"),AL56*INDEX('Damage costs'!$P$16:$P$43,MATCH($B165,'Damage costs'!$C$16:$C$43,0))/1000,AL56*INDEX('Damage costs'!$T$16:$T$43,MATCH($B165,'Damage costs'!$C$16:$C$43,0))/1000),\"\")","v":""},{"$f":"IFERROR(IF(OR($C$168=FALSE,LEFT($B165,3)<>\"NOX\"),AM56*INDEX('Damage costs'!$P$16:$P$43,MATCH($B165,'Damage costs'!$C$16:$C$43,0))/1000,AM56*INDEX('Damage costs'!$T$16:$T$43,MATCH($B165,'Damage costs'!$C$16:$C$43,0))/1000),\"\")","v":""},{"$f":"IFERROR(IF(OR($C$168=FALSE,LEFT($B165,3)<>\"NOX\"),AN56*INDEX('Damage costs'!$P$16:$P$43,MATCH($B165,'Damage costs'!$C$16:$C$43,0))/1000,AN56*INDEX('Damage costs'!$T$16:$T$43,MATCH($B165,'Damage costs'!$C$16:$C$43,0))/1000),\"\")","v":""},{"$f":"IFERROR(IF(OR($C$168=FALSE,LEFT($B165,3)<>\"NOX\"),AO56*INDEX('Damage costs'!$P$16:$P$43,MATCH($B165,'Damage costs'!$C$16:$C$43,0))/1000,AO56*INDEX('Damage costs'!$T$16:$T$43,MATCH($B165,'Damage costs'!$C$16:$C$43,0))/1000),\"\")","v":""},{"$f":"IFERROR(IF(OR($C$168=FALSE,LEFT($B165,3)<>\"NOX\"),AP56*INDEX('Damage costs'!$P$16:$P$43,MATCH($B165,'Damage costs'!$C$16:$C$43,0))/1000,AP56*INDEX('Damage costs'!$T$16:$T$43,MATCH($B165,'Damage costs'!$C$16:$C$43,0))/1000),\"\")","v":""},{"$f":"IFERROR(IF(OR($C$168=FALSE,LEFT($B165,3)<>\"NOX\"),AQ56*INDEX('Damage costs'!$P$16:$P$43,MATCH($B165,'Damage costs'!$C$16:$C$43,0))/1000,AQ56*INDEX('Damage costs'!$T$16:$T$43,MATCH($B165,'Damage costs'!$C$16:$C$43,0))/1000),\"\")","v":""},{"$f":"IFERROR(IF(OR($C$168=FALSE,LEFT($B165,3)<>\"NOX\"),AR56*INDEX('Damage costs'!$P$16:$P$43,MATCH($B165,'Damage costs'!$C$16:$C$43,0))/1000,AR56*INDEX('Damage costs'!$T$16:$T$43,MATCH($B165,'Damage costs'!$C$16:$C$43,0))/1000),\"\")","v":""},{"$f":"IFERROR(IF(OR($C$168=FALSE,LEFT($B165,3)<>\"NOX\"),AS56*INDEX('Damage costs'!$P$16:$P$43,MATCH($B165,'Damage costs'!$C$16:$C$43,0))/1000,AS56*INDEX('Damage costs'!$T$16:$T$43,MATCH($B165,'Damage costs'!$C$16:$C$43,0))/1000),\"\")","v":""},{"$f":"IFERROR(IF(OR($C$168=FALSE,LEFT($B165,3)<>\"NOX\"),AT56*INDEX('Damage costs'!$P$16:$P$43,MATCH($B165,'Damage costs'!$C$16:$C$43,0))/1000,AT56*INDEX('Damage costs'!$T$16:$T$43,MATCH($B165,'Damage costs'!$C$16:$C$43,0))/1000),\"\")","v":""},{"$f":"IFERROR(IF(OR($C$168=FALSE,LEFT($B165,3)<>\"NOX\"),AU56*INDEX('Damage costs'!$P$16:$P$43,MATCH($B165,'Damage costs'!$C$16:$C$43,0))/1000,AU56*INDEX('Damage costs'!$T$16:$T$43,MATCH($B165,'Damage costs'!$C$16:$C$43,0))/1000),\"\")","v":""},{"$f":"IFERROR(IF(OR($C$168=FALSE,LEFT($B165,3)<>\"NOX\"),AV56*INDEX('Damage costs'!$P$16:$P$43,MATCH($B165,'Damage costs'!$C$16:$C$43,0))/1000,AV56*INDEX('Damage costs'!$T$16:$T$43,MATCH($B165,'Damage costs'!$C$16:$C$43,0))/1000),\"\")","v":""},{"$f":"IFERROR(IF(OR($C$168=FALSE,LEFT($B165,3)<>\"NOX\"),AW56*INDEX('Damage costs'!$P$16:$P$43,MATCH($B165,'Damage costs'!$C$16:$C$43,0))/1000,AW56*INDEX('Damage costs'!$T$16:$T$43,MATCH($B165,'Damage costs'!$C$16:$C$43,0))/1000),\"\")","v":""},{"$f":"IFERROR(IF(OR($C$168=FALSE,LEFT($B165,3)<>\"NOX\"),AX56*INDEX('Damage costs'!$P$16:$P$43,MATCH($B165,'Damage costs'!$C$16:$C$43,0))/1000,AX56*INDEX('Damage costs'!$T$16:$T$43,MATCH($B165,'Damage costs'!$C$16:$C$43,0))/1000),\"\")","v":""},{"$f":"IFERROR(IF(OR($C$168=FALSE,LEFT($B165,3)<>\"NOX\"),AY56*INDEX('Damage costs'!$P$16:$P$43,MATCH($B165,'Damage costs'!$C$16:$C$43,0))/1000,AY56*INDEX('Damage costs'!$T$16:$T$43,MATCH($B165,'Damage costs'!$C$16:$C$43,0))/1000),\"\")","v":""},{"$f":"IFERROR(IF(OR($C$168=FALSE,LEFT($B165,3)<>\"NOX\"),AZ56*INDEX('Damage costs'!$P$16:$P$43,MATCH($B165,'Damage costs'!$C$16:$C$43,0))/1000,AZ56*INDEX('Damage costs'!$T$16:$T$43,MATCH($B165,'Damage costs'!$C$16:$C$43,0))/1000),\"\")","v":""},{"$f":"IFERROR(IF(OR($C$168=FALSE,LEFT($B165,3)<>\"NOX\"),BA56*INDEX('Damage costs'!$P$16:$P$43,MATCH($B165,'Damage costs'!$C$16:$C$43,0))/1000,BA56*INDEX('Damage costs'!$T$16:$T$43,MATCH($B165,'Damage costs'!$C$16:$C$43,0))/1000),\"\")","v":""},{"$f":"IFERROR(IF(OR($C$168=FALSE,LEFT($B165,3)<>\"NOX\"),BB56*INDEX('Damage costs'!$P$16:$P$43,MATCH($B165,'Damage costs'!$C$16:$C$43,0))/1000,BB56*INDEX('Damage costs'!$T$16:$T$43,MATCH($B165,'Damage costs'!$C$16:$C$43,0))/1000),\"\")","v":""},{"$f":"IFERROR(IF(OR($C$168=FALSE,LEFT($B165,3)<>\"NOX\"),BC56*INDEX('Damage costs'!$P$16:$P$43,MATCH($B165,'Damage costs'!$C$16:$C$43,0))/1000,BC56*INDEX('Damage costs'!$T$16:$T$43,MATCH($B165,'Damage costs'!$C$16:$C$43,0))/1000),\"\")","v":""},{"$f":"IFERROR(IF(OR($C$168=FALSE,LEFT($B165,3)<>\"NOX\"),BD56*INDEX('Damage costs'!$P$16:$P$43,MATCH($B165,'Damage costs'!$C$16:$C$43,0))/1000,BD56*INDEX('Damage costs'!$T$16:$T$43,MATCH($B165,'Damage costs'!$C$16:$C$43,0))/1000),\"\")","v":""},{"$f":"IFERROR(IF(OR($C$168=FALSE,LEFT($B165,3)<>\"NOX\"),BE56*INDEX('Damage costs'!$P$16:$P$43,MATCH($B165,'Damage costs'!$C$16:$C$43,0))/1000,BE56*INDEX('Damage costs'!$T$16:$T$43,MATCH($B165,'Damage costs'!$C$16:$C$43,0))/1000),\"\")","v":""},{"$f":"IFERROR(IF(OR($C$168=FALSE,LEFT($B165,3)<>\"NOX\"),BF56*INDEX('Damage costs'!$P$16:$P$43,MATCH($B165,'Damage costs'!$C$16:$C$43,0))/1000,BF56*INDEX('Damage costs'!$T$16:$T$43,MATCH($B165,'Damage costs'!$C$16:$C$43,0))/1000),\"\")","v":""},{"$f":"IFERROR(IF(OR($C$168=FALSE,LEFT($B165,3)<>\"NOX\"),BG56*INDEX('Damage costs'!$P$16:$P$43,MATCH($B165,'Damage costs'!$C$16:$C$43,0))/1000,BG56*INDEX('Damage costs'!$T$16:$T$43,MATCH($B165,'Damage costs'!$C$16:$C$43,0))/1000),\"\")","v":""},{"$f":"IFERROR(IF(OR($C$168=FALSE,LEFT($B165,3)<>\"NOX\"),BH56*INDEX('Damage costs'!$P$16:$P$43,MATCH($B165,'Damage costs'!$C$16:$C$43,0))/1000,BH56*INDEX('Damage costs'!$T$16:$T$43,MATCH($B165,'Damage costs'!$C$16:$C$43,0))/1000),\"\")","v":""},{"$f":"IFERROR(IF(OR($C$168=FALSE,LEFT($B165,3)<>\"NOX\"),BI56*INDEX('Damage costs'!$P$16:$P$43,MATCH($B165,'Damage costs'!$C$16:$C$43,0))/1000,BI56*INDEX('Damage costs'!$T$16:$T$43,MATCH($B165,'Damage costs'!$C$16:$C$43,0))/1000),\"\")","v":""},{"$f":"IFERROR(IF(OR($C$168=FALSE,LEFT($B165,3)<>\"NOX\"),BJ56*INDEX('Damage costs'!$P$16:$P$43,MATCH($B165,'Damage costs'!$C$16:$C$43,0))/1000,BJ56*INDEX('Damage costs'!$T$16:$T$43,MATCH($B165,'Damage costs'!$C$16:$C$43,0))/1000),\"\")","v":""},{"$f":"IFERROR(IF(OR($C$168=FALSE,LEFT($B165,3)<>\"NOX\"),BK56*INDEX('Damage costs'!$P$16:$P$43,MATCH($B165,'Damage costs'!$C$16:$C$43,0))/1000,BK56*INDEX('Damage costs'!$T$16:$T$43,MATCH($B165,'Damage costs'!$C$16:$C$43,0))/1000),\"\")","v":""},{"$f":"IFERROR(IF(OR($C$168=FALSE,LEFT($B165,3)<>\"NOX\"),BL56*INDEX('Damage costs'!$P$16:$P$43,MATCH($B165,'Damage costs'!$C$16:$C$43,0))/1000,BL56*INDEX('Damage costs'!$T$16:$T$43,MATCH($B165,'Damage costs'!$C$16:$C$43,0))/1000),\"\")","v":""},{"$f":"IFERROR(IF(OR($C$168=FALSE,LEFT($B165,3)<>\"NOX\"),BM56*INDEX('Damage costs'!$P$16:$P$43,MATCH($B165,'Damage costs'!$C$16:$C$43,0))/1000,BM56*INDEX('Damage costs'!$T$16:$T$43,MATCH($B165,'Damage costs'!$C$16:$C$43,0))/1000),\"\")","v":""},{"$f":"IFERROR(IF(OR($C$168=FALSE,LEFT($B165,3)<>\"NOX\"),BN56*INDEX('Damage costs'!$P$16:$P$43,MATCH($B165,'Damage costs'!$C$16:$C$43,0))/1000,BN56*INDEX('Damage costs'!$T$16:$T$43,MATCH($B165,'Damage costs'!$C$16:$C$43,0))/1000),\"\")","v":""},{"$f":"IFERROR(IF(OR($C$168=FALSE,LEFT($B165,3)<>\"NOX\"),BO56*INDEX('Damage costs'!$P$16:$P$43,MATCH($B165,'Damage costs'!$C$16:$C$43,0))/1000,BO56*INDEX('Damage costs'!$T$16:$T$43,MATCH($B165,'Damage costs'!$C$16:$C$43,0))/1000),\"\")","v":""},{"$f":"IFERROR(IF(OR($C$168=FALSE,LEFT($B165,3)<>\"NOX\"),BP56*INDEX('Damage costs'!$P$16:$P$43,MATCH($B165,'Damage costs'!$C$16:$C$43,0))/1000,BP56*INDEX('Damage costs'!$T$16:$T$43,MATCH($B165,'Damage costs'!$C$16:$C$43,0))/1000),\"\")","v":""},{"$f":"IFERROR(IF(OR($C$168=FALSE,LEFT($B165,3)<>\"NOX\"),BQ56*INDEX('Damage costs'!$P$16:$P$43,MATCH($B165,'Damage costs'!$C$16:$C$43,0))/1000,BQ56*INDEX('Damage costs'!$T$16:$T$43,MATCH($B165,'Damage costs'!$C$16:$C$43,0))/1000),\"\")","v":""},{"$f":"IFERROR(IF(OR($C$168=FALSE,LEFT($B165,3)<>\"NOX\"),BR56*INDEX('Damage costs'!$P$16:$P$43,MATCH($B165,'Damage costs'!$C$16:$C$43,0))/1000,BR56*INDEX('Damage costs'!$T$16:$T$43,MATCH($B165,'Damage costs'!$C$16:$C$43,0))/1000),\"\")","v":""},{"$f":"IFERROR(IF(OR($C$168=FALSE,LEFT($B165,3)<>\"NOX\"),BS56*INDEX('Damage costs'!$P$16:$P$43,MATCH($B165,'Damage costs'!$C$16:$C$43,0))/1000,BS56*INDEX('Damage costs'!$T$16:$T$43,MATCH($B165,'Damage costs'!$C$16:$C$43,0))/1000),\"\")","v":""},{"$f":"IFERROR(IF(OR($C$168=FALSE,LEFT($B165,3)<>\"NOX\"),BT56*INDEX('Damage costs'!$P$16:$P$43,MATCH($B165,'Damage costs'!$C$16:$C$43,0))/1000,BT56*INDEX('Damage costs'!$T$16:$T$43,MATCH($B165,'Damage costs'!$C$16:$C$43,0))/1000),\"\")","v":""},{"$f":"IFERROR(IF(OR($C$168=FALSE,LEFT($B165,3)<>\"NOX\"),BU56*INDEX('Damage costs'!$P$16:$P$43,MATCH($B165,'Damage costs'!$C$16:$C$43,0))/1000,BU56*INDEX('Damage costs'!$T$16:$T$43,MATCH($B165,'Damage costs'!$C$16:$C$43,0))/1000),\"\")","v":""},{"$f":"IFERROR(IF(OR($C$168=FALSE,LEFT($B165,3)<>\"NOX\"),BV56*INDEX('Damage costs'!$P$16:$P$43,MATCH($B165,'Damage costs'!$C$16:$C$43,0))/1000,BV56*INDEX('Damage costs'!$T$16:$T$43,MATCH($B165,'Damage costs'!$C$16:$C$43,0))/1000),\"\")","v":""},{"$f":"IFERROR(IF(OR($C$168=FALSE,LEFT($B165,3)<>\"NOX\"),BW56*INDEX('Damage costs'!$P$16:$P$43,MATCH($B165,'Damage costs'!$C$16:$C$43,0))/1000,BW56*INDEX('Damage costs'!$T$16:$T$43,MATCH($B165,'Damage costs'!$C$16:$C$43,0))/1000),\"\")","v":""},{"$f":"IFERROR(IF(OR($C$168=FALSE,LEFT($B165,3)<>\"NOX\"),BX56*INDEX('Damage costs'!$P$16:$P$43,MATCH($B165,'Damage costs'!$C$16:$C$43,0))/1000,BX56*INDEX('Damage costs'!$T$16:$T$43,MATCH($B165,'Damage costs'!$C$16:$C$43,0))/1000),\"\")","v":""},{"$f":"IFERROR(IF(OR($C$168=FALSE,LEFT($B165,3)<>\"NOX\"),BY56*INDEX('Damage costs'!$P$16:$P$43,MATCH($B165,'Damage costs'!$C$16:$C$43,0))/1000,BY56*INDEX('Damage costs'!$T$16:$T$43,MATCH($B165,'Damage costs'!$C$16:$C$43,0))/1000),\"\")","v":""},{"$f":"IFERROR(IF(OR($C$168=FALSE,LEFT($B165,3)<>\"NOX\"),BZ56*INDEX('Damage costs'!$P$16:$P$43,MATCH($B165,'Damage costs'!$C$16:$C$43,0))/1000,BZ56*INDEX('Damage costs'!$T$16:$T$43,MATCH($B165,'Damage costs'!$C$16:$C$43,0))/1000),\"\")","v":""},{"$f":"IFERROR(IF(OR($C$168=FALSE,LEFT($B165,3)<>\"NOX\"),CA56*INDEX('Damage costs'!$P$16:$P$43,MATCH($B165,'Damage costs'!$C$16:$C$43,0))/1000,CA56*INDEX('Damage costs'!$T$16:$T$43,MATCH($B165,'Damage costs'!$C$16:$C$43,0))/1000),\"\")","v":""},{"$f":"IFERROR(IF(OR($C$168=FALSE,LEFT($B165,3)<>\"NOX\"),CB56*INDEX('Damage costs'!$P$16:$P$43,MATCH($B165,'Damage costs'!$C$16:$C$43,0))/1000,CB56*INDEX('Damage costs'!$T$16:$T$43,MATCH($B165,'Damage costs'!$C$16:$C$43,0))/1000),\"\")","v":""},{"$f":"IFERROR(IF(OR($C$168=FALSE,LEFT($B165,3)<>\"NOX\"),CC56*INDEX('Damage costs'!$P$16:$P$43,MATCH($B165,'Damage costs'!$C$16:$C$43,0))/1000,CC56*INDEX('Damage costs'!$T$16:$T$43,MATCH($B165,'Damage costs'!$C$16:$C$43,0))/1000),\"\")","v":""},{"$f":"IFERROR(IF(OR($C$168=FALSE,LEFT($B165,3)<>\"NOX\"),CD56*INDEX('Damage costs'!$P$16:$P$43,MATCH($B165,'Damage costs'!$C$16:$C$43,0))/1000,CD56*INDEX('Damage costs'!$T$16:$T$43,MATCH($B165,'Damage costs'!$C$16:$C$43,0))/1000),\"\")","v":""},{"$f":"IFERROR(IF(OR($C$168=FALSE,LEFT($B165,3)<>\"NOX\"),CE56*INDEX('Damage costs'!$P$16:$P$43,MATCH($B165,'Damage costs'!$C$16:$C$43,0))/1000,CE56*INDEX('Damage costs'!$T$16:$T$43,MATCH($B165,'Damage costs'!$C$16:$C$43,0))/1000),\"\")","v":""},{"$f":"IFERROR(IF(OR($C$168=FALSE,LEFT($B165,3)<>\"NOX\"),CF56*INDEX('Damage costs'!$P$16:$P$43,MATCH($B165,'Damage costs'!$C$16:$C$43,0))/1000,CF56*INDEX('Damage costs'!$T$16:$T$43,MATCH($B165,'Damage costs'!$C$16:$C$43,0))/1000),\"\")","v":""},{"$f":"IFERROR(IF(OR($C$168=FALSE,LEFT($B165,3)<>\"NOX\"),CG56*INDEX('Damage costs'!$P$16:$P$43,MATCH($B165,'Damage costs'!$C$16:$C$43,0))/1000,CG56*INDEX('Damage costs'!$T$16:$T$43,MATCH($B165,'Damage costs'!$C$16:$C$43,0))/1000),\"\")","v":""},{"$f":"IFERROR(IF(OR($C$168=FALSE,LEFT($B165,3)<>\"NOX\"),CH56*INDEX('Damage costs'!$P$16:$P$43,MATCH($B165,'Damage costs'!$C$16:$C$43,0))/1000,CH56*INDEX('Damage costs'!$T$16:$T$43,MATCH($B165,'Damage costs'!$C$16:$C$43,0))/1000),\"\")","v":""},{"$f":"IFERROR(IF(OR($C$168=FALSE,LEFT($B165,3)<>\"NOX\"),CI56*INDEX('Damage costs'!$P$16:$P$43,MATCH($B165,'Damage costs'!$C$16:$C$43,0))/1000,CI56*INDEX('Damage costs'!$T$16:$T$43,MATCH($B165,'Damage costs'!$C$16:$C$43,0))/1000),\"\")","v":""},{"$f":"IFERROR(IF(OR($C$168=FALSE,LEFT($B165,3)<>\"NOX\"),CJ56*INDEX('Damage costs'!$P$16:$P$43,MATCH($B165,'Damage costs'!$C$16:$C$43,0))/1000,CJ56*INDEX('Damage costs'!$T$16:$T$43,MATCH($B165,'Damage costs'!$C$16:$C$43,0))/1000),\"\")","v":""},{"$f":"IFERROR(IF(OR($C$168=FALSE,LEFT($B165,3)<>\"NOX\"),CK56*INDEX('Damage costs'!$P$16:$P$43,MATCH($B165,'Damage costs'!$C$16:$C$43,0))/1000,CK56*INDEX('Damage costs'!$T$16:$T$43,MATCH($B165,'Damage costs'!$C$16:$C$43,0))/1000),\"\")","v":""},{"$f":"IFERROR(IF(OR($C$168=FALSE,LEFT($B165,3)<>\"NOX\"),CL56*INDEX('Damage costs'!$P$16:$P$43,MATCH($B165,'Damage costs'!$C$16:$C$43,0))/1000,CL56*INDEX('Damage costs'!$T$16:$T$43,MATCH($B165,'Damage costs'!$C$16:$C$43,0))/1000),\"\")","v":""},{"$f":"IFERROR(IF(OR($C$168=FALSE,LEFT($B165,3)<>\"NOX\"),CM56*INDEX('Damage costs'!$P$16:$P$43,MATCH($B165,'Damage costs'!$C$16:$C$43,0))/1000,CM56*INDEX('Damage costs'!$T$16:$T$43,MATCH($B165,'Damage costs'!$C$16:$C$43,0))/1000),\"\")","v":""},{"$f":"IFERROR(IF(OR($C$168=FALSE,LEFT($B165,3)<>\"NOX\"),CN56*INDEX('Damage costs'!$P$16:$P$43,MATCH($B165,'Damage costs'!$C$16:$C$43,0))/1000,CN56*INDEX('Damage costs'!$T$16:$T$43,MATCH($B165,'Damage costs'!$C$16:$C$43,0))/1000),\"\")","v":""},{"$f":"IFERROR(IF(OR($C$168=FALSE,LEFT($B165,3)<>\"NOX\"),CO56*INDEX('Damage costs'!$P$16:$P$43,MATCH($B165,'Damage costs'!$C$16:$C$43,0))/1000,CO56*INDEX('Damage costs'!$T$16:$T$43,MATCH($B165,'Damage costs'!$C$16:$C$43,0))/1000),\"\")","v":""},{"$f":"IFERROR(IF(OR($C$168=FALSE,LEFT($B165,3)<>\"NOX\"),CP56*INDEX('Damage costs'!$P$16:$P$43,MATCH($B165,'Damage costs'!$C$16:$C$43,0))/1000,CP56*INDEX('Damage costs'!$T$16:$T$43,MATCH($B165,'Damage costs'!$C$16:$C$43,0))/1000),\"\")","v":""},{"$f":"IFERROR(IF(OR($C$168=FALSE,LEFT($B165,3)<>\"NOX\"),CQ56*INDEX('Damage costs'!$P$16:$P$43,MATCH($B165,'Damage costs'!$C$16:$C$43,0))/1000,CQ56*INDEX('Damage costs'!$T$16:$T$43,MATCH($B165,'Damage costs'!$C$16:$C$43,0))/1000),\"\")","v":""},{"$f":"IFERROR(IF(OR($C$168=FALSE,LEFT($B165,3)<>\"NOX\"),CR56*INDEX('Damage costs'!$P$16:$P$43,MATCH($B165,'Damage costs'!$C$16:$C$43,0))/1000,CR56*INDEX('Damage costs'!$T$16:$T$43,MATCH($B165,'Damage costs'!$C$16:$C$43,0))/1000),\"\")","v":""},{"$f":"IFERROR(IF(OR($C$168=FALSE,LEFT($B165,3)<>\"NOX\"),CS56*INDEX('Damage costs'!$P$16:$P$43,MATCH($B165,'Damage costs'!$C$16:$C$43,0))/1000,CS56*INDEX('Damage costs'!$T$16:$T$43,MATCH($B165,'Damage costs'!$C$16:$C$43,0))/1000),\"\")","v":""},{"$f":"IFERROR(IF(OR($C$168=FALSE,LEFT($B165,3)<>\"NOX\"),CT56*INDEX('Damage costs'!$P$16:$P$43,MATCH($B165,'Damage costs'!$C$16:$C$43,0))/1000,CT56*INDEX('Damage costs'!$T$16:$T$43,MATCH($B165,'Damage costs'!$C$16:$C$43,0))/1000),\"\")","v":""},{"$f":"IFERROR(IF(OR($C$168=FALSE,LEFT($B165,3)<>\"NOX\"),CU56*INDEX('Damage costs'!$P$16:$P$43,MATCH($B165,'Damage costs'!$C$16:$C$43,0))/1000,CU56*INDEX('Damage costs'!$T$16:$T$43,MATCH($B165,'Damage costs'!$C$16:$C$43,0))/1000),\"\")","v":""},{"$f":"IFERROR(IF(OR($C$168=FALSE,LEFT($B165,3)<>\"NOX\"),CV56*INDEX('Damage costs'!$P$16:$P$43,MATCH($B165,'Damage costs'!$C$16:$C$43,0))/1000,CV56*INDEX('Damage costs'!$T$16:$T$43,MATCH($B165,'Damage costs'!$C$16:$C$43,0))/1000),\"\")","v":""},{"$f":"IFERROR(IF(OR($C$168=FALSE,LEFT($B165,3)<>\"NOX\"),CW56*INDEX('Damage costs'!$P$16:$P$43,MATCH($B165,'Damage costs'!$C$16:$C$43,0))/1000,CW56*INDEX('Damage costs'!$T$16:$T$43,MATCH($B165,'Damage costs'!$C$16:$C$43,0))/1000),\"\")","v":""},{"$f":"IFERROR(IF(OR($C$168=FALSE,LEFT($B165,3)<>\"NOX\"),CX56*INDEX('Damage costs'!$P$16:$P$43,MATCH($B165,'Damage costs'!$C$16:$C$43,0))/1000,CX56*INDEX('Damage costs'!$T$16:$T$43,MATCH($B165,'Damage costs'!$C$16:$C$43,0))/1000),\"\")","v":""},{"$f":"IFERROR(IF(OR($C$168=FALSE,LEFT($B165,3)<>\"NOX\"),CY56*INDEX('Damage costs'!$P$16:$P$43,MATCH($B165,'Damage costs'!$C$16:$C$43,0))/1000,CY56*INDEX('Damage costs'!$T$16:$T$43,MATCH($B165,'Damage costs'!$C$16:$C$43,0))/1000),\"\")","v":""}]
[null,0,"£000's",{"$f":"IFERROR(IF(OR($C$168=FALSE,LEFT($B166,3)<>\"NOX\"),D57*INDEX('Damage costs'!$P$16:$P$43,MATCH($B166,'Damage costs'!$C$16:$C$43,0))/1000,D57*INDEX('Damage costs'!$T$16:$T$43,MATCH($B166,'Damage costs'!$C$16:$C$43,0))/1000),\"\")","v":""},{"$f":"IFERROR(IF(OR($C$168=FALSE,LEFT($B166,3)<>\"NOX\"),E57*INDEX('Damage costs'!$P$16:$P$43,MATCH($B166,'Damage costs'!$C$16:$C$43,0))/1000,E57*INDEX('Damage costs'!$T$16:$T$43,MATCH($B166,'Damage costs'!$C$16:$C$43,0))/1000),\"\")","v":""},{"$f":"IFERROR(IF(OR($C$168=FALSE,LEFT($B166,3)<>\"NOX\"),F57*INDEX('Damage costs'!$P$16:$P$43,MATCH($B166,'Damage costs'!$C$16:$C$43,0))/1000,F57*INDEX('Damage costs'!$T$16:$T$43,MATCH($B166,'Damage costs'!$C$16:$C$43,0))/1000),\"\")","v":""},{"$f":"IFERROR(IF(OR($C$168=FALSE,LEFT($B166,3)<>\"NOX\"),G57*INDEX('Damage costs'!$P$16:$P$43,MATCH($B166,'Damage costs'!$C$16:$C$43,0))/1000,G57*INDEX('Damage costs'!$T$16:$T$43,MATCH($B166,'Damage costs'!$C$16:$C$43,0))/1000),\"\")","v":""},{"$f":"IFERROR(IF(OR($C$168=FALSE,LEFT($B166,3)<>\"NOX\"),H57*INDEX('Damage costs'!$P$16:$P$43,MATCH($B166,'Damage costs'!$C$16:$C$43,0))/1000,H57*INDEX('Damage costs'!$T$16:$T$43,MATCH($B166,'Damage costs'!$C$16:$C$43,0))/1000),\"\")","v":""},{"$f":"IFERROR(IF(OR($C$168=FALSE,LEFT($B166,3)<>\"NOX\"),I57*INDEX('Damage costs'!$P$16:$P$43,MATCH($B166,'Damage costs'!$C$16:$C$43,0))/1000,I57*INDEX('Damage costs'!$T$16:$T$43,MATCH($B166,'Damage costs'!$C$16:$C$43,0))/1000),\"\")","v":""},{"$f":"IFERROR(IF(OR($C$168=FALSE,LEFT($B166,3)<>\"NOX\"),J57*INDEX('Damage costs'!$P$16:$P$43,MATCH($B166,'Damage costs'!$C$16:$C$43,0))/1000,J57*INDEX('Damage costs'!$T$16:$T$43,MATCH($B166,'Damage costs'!$C$16:$C$43,0))/1000),\"\")","v":""},{"$f":"IFERROR(IF(OR($C$168=FALSE,LEFT($B166,3)<>\"NOX\"),K57*INDEX('Damage costs'!$P$16:$P$43,MATCH($B166,'Damage costs'!$C$16:$C$43,0))/1000,K57*INDEX('Damage costs'!$T$16:$T$43,MATCH($B166,'Damage costs'!$C$16:$C$43,0))/1000),\"\")","v":""},{"$f":"IFERROR(IF(OR($C$168=FALSE,LEFT($B166,3)<>\"NOX\"),L57*INDEX('Damage costs'!$P$16:$P$43,MATCH($B166,'Damage costs'!$C$16:$C$43,0))/1000,L57*INDEX('Damage costs'!$T$16:$T$43,MATCH($B166,'Damage costs'!$C$16:$C$43,0))/1000),\"\")","v":""},{"$f":"IFERROR(IF(OR($C$168=FALSE,LEFT($B166,3)<>\"NOX\"),M57*INDEX('Damage costs'!$P$16:$P$43,MATCH($B166,'Damage costs'!$C$16:$C$43,0))/1000,M57*INDEX('Damage costs'!$T$16:$T$43,MATCH($B166,'Damage costs'!$C$16:$C$43,0))/1000),\"\")","v":""},{"$f":"IFERROR(IF(OR($C$168=FALSE,LEFT($B166,3)<>\"NOX\"),N57*INDEX('Damage costs'!$P$16:$P$43,MATCH($B166,'Damage costs'!$C$16:$C$43,0))/1000,N57*INDEX('Damage costs'!$T$16:$T$43,MATCH($B166,'Damage costs'!$C$16:$C$43,0))/1000),\"\")","v":""},{"$f":"IFERROR(IF(OR($C$168=FALSE,LEFT($B166,3)<>\"NOX\"),O57*INDEX('Damage costs'!$P$16:$P$43,MATCH($B166,'Damage costs'!$C$16:$C$43,0))/1000,O57*INDEX('Damage costs'!$T$16:$T$43,MATCH($B166,'Damage costs'!$C$16:$C$43,0))/1000),\"\")","v":""},{"$f":"IFERROR(IF(OR($C$168=FALSE,LEFT($B166,3)<>\"NOX\"),P57*INDEX('Damage costs'!$P$16:$P$43,MATCH($B166,'Damage costs'!$C$16:$C$43,0))/1000,P57*INDEX('Damage costs'!$T$16:$T$43,MATCH($B166,'Damage costs'!$C$16:$C$43,0))/1000),\"\")","v":""},{"$f":"IFERROR(IF(OR($C$168=FALSE,LEFT($B166,3)<>\"NOX\"),Q57*INDEX('Damage costs'!$P$16:$P$43,MATCH($B166,'Damage costs'!$C$16:$C$43,0))/1000,Q57*INDEX('Damage costs'!$T$16:$T$43,MATCH($B166,'Damage costs'!$C$16:$C$43,0))/1000),\"\")","v":""},{"$f":"IFERROR(IF(OR($C$168=FALSE,LEFT($B166,3)<>\"NOX\"),R57*INDEX('Damage costs'!$P$16:$P$43,MATCH($B166,'Damage costs'!$C$16:$C$43,0))/1000,R57*INDEX('Damage costs'!$T$16:$T$43,MATCH($B166,'Damage costs'!$C$16:$C$43,0))/1000),\"\")","v":""},{"$f":"IFERROR(IF(OR($C$168=FALSE,LEFT($B166,3)<>\"NOX\"),S57*INDEX('Damage costs'!$P$16:$P$43,MATCH($B166,'Damage costs'!$C$16:$C$43,0))/1000,S57*INDEX('Damage costs'!$T$16:$T$43,MATCH($B166,'Damage costs'!$C$16:$C$43,0))/1000),\"\")","v":""},{"$f":"IFERROR(IF(OR($C$168=FALSE,LEFT($B166,3)<>\"NOX\"),T57*INDEX('Damage costs'!$P$16:$P$43,MATCH($B166,'Damage costs'!$C$16:$C$43,0))/1000,T57*INDEX('Damage costs'!$T$16:$T$43,MATCH($B166,'Damage costs'!$C$16:$C$43,0))/1000),\"\")","v":""},{"$f":"IFERROR(IF(OR($C$168=FALSE,LEFT($B166,3)<>\"NOX\"),U57*INDEX('Damage costs'!$P$16:$P$43,MATCH($B166,'Damage costs'!$C$16:$C$43,0))/1000,U57*INDEX('Damage costs'!$T$16:$T$43,MATCH($B166,'Damage costs'!$C$16:$C$43,0))/1000),\"\")","v":""},{"$f":"IFERROR(IF(OR($C$168=FALSE,LEFT($B166,3)<>\"NOX\"),V57*INDEX('Damage costs'!$P$16:$P$43,MATCH($B166,'Damage costs'!$C$16:$C$43,0))/1000,V57*INDEX('Damage costs'!$T$16:$T$43,MATCH($B166,'Damage costs'!$C$16:$C$43,0))/1000),\"\")","v":""},{"$f":"IFERROR(IF(OR($C$168=FALSE,LEFT($B166,3)<>\"NOX\"),W57*INDEX('Damage costs'!$P$16:$P$43,MATCH($B166,'Damage costs'!$C$16:$C$43,0))/1000,W57*INDEX('Damage costs'!$T$16:$T$43,MATCH($B166,'Damage costs'!$C$16:$C$43,0))/1000),\"\")","v":""},{"$f":"IFERROR(IF(OR($C$168=FALSE,LEFT($B166,3)<>\"NOX\"),X57*INDEX('Damage costs'!$P$16:$P$43,MATCH($B166,'Damage costs'!$C$16:$C$43,0))/1000,X57*INDEX('Damage costs'!$T$16:$T$43,MATCH($B166,'Damage costs'!$C$16:$C$43,0))/1000),\"\")","v":""},{"$f":"IFERROR(IF(OR($C$168=FALSE,LEFT($B166,3)<>\"NOX\"),Y57*INDEX('Damage costs'!$P$16:$P$43,MATCH($B166,'Damage costs'!$C$16:$C$43,0))/1000,Y57*INDEX('Damage costs'!$T$16:$T$43,MATCH($B166,'Damage costs'!$C$16:$C$43,0))/1000),\"\")","v":""},{"$f":"IFERROR(IF(OR($C$168=FALSE,LEFT($B166,3)<>\"NOX\"),Z57*INDEX('Damage costs'!$P$16:$P$43,MATCH($B166,'Damage costs'!$C$16:$C$43,0))/1000,Z57*INDEX('Damage costs'!$T$16:$T$43,MATCH($B166,'Damage costs'!$C$16:$C$43,0))/1000),\"\")","v":""},{"$f":"IFERROR(IF(OR($C$168=FALSE,LEFT($B166,3)<>\"NOX\"),AA57*INDEX('Damage costs'!$P$16:$P$43,MATCH($B166,'Damage costs'!$C$16:$C$43,0))/1000,AA57*INDEX('Damage costs'!$T$16:$T$43,MATCH($B166,'Damage costs'!$C$16:$C$43,0))/1000),\"\")","v":""},{"$f":"IFERROR(IF(OR($C$168=FALSE,LEFT($B166,3)<>\"NOX\"),AB57*INDEX('Damage costs'!$P$16:$P$43,MATCH($B166,'Damage costs'!$C$16:$C$43,0))/1000,AB57*INDEX('Damage costs'!$T$16:$T$43,MATCH($B166,'Damage costs'!$C$16:$C$43,0))/1000),\"\")","v":""},{"$f":"IFERROR(IF(OR($C$168=FALSE,LEFT($B166,3)<>\"NOX\"),AC57*INDEX('Damage costs'!$P$16:$P$43,MATCH($B166,'Damage costs'!$C$16:$C$43,0))/1000,AC57*INDEX('Damage costs'!$T$16:$T$43,MATCH($B166,'Damage costs'!$C$16:$C$43,0))/1000),\"\")","v":""},{"$f":"IFERROR(IF(OR($C$168=FALSE,LEFT($B166,3)<>\"NOX\"),AD57*INDEX('Damage costs'!$P$16:$P$43,MATCH($B166,'Damage costs'!$C$16:$C$43,0))/1000,AD57*INDEX('Damage costs'!$T$16:$T$43,MATCH($B166,'Damage costs'!$C$16:$C$43,0))/1000),\"\")","v":""},{"$f":"IFERROR(IF(OR($C$168=FALSE,LEFT($B166,3)<>\"NOX\"),AE57*INDEX('Damage costs'!$P$16:$P$43,MATCH($B166,'Damage costs'!$C$16:$C$43,0))/1000,AE57*INDEX('Damage costs'!$T$16:$T$43,MATCH($B166,'Damage costs'!$C$16:$C$43,0))/1000),\"\")","v":""},{"$f":"IFERROR(IF(OR($C$168=FALSE,LEFT($B166,3)<>\"NOX\"),AF57*INDEX('Damage costs'!$P$16:$P$43,MATCH($B166,'Damage costs'!$C$16:$C$43,0))/1000,AF57*INDEX('Damage costs'!$T$16:$T$43,MATCH($B166,'Damage costs'!$C$16:$C$43,0))/1000),\"\")","v":""},{"$f":"IFERROR(IF(OR($C$168=FALSE,LEFT($B166,3)<>\"NOX\"),AG57*INDEX('Damage costs'!$P$16:$P$43,MATCH($B166,'Damage costs'!$C$16:$C$43,0))/1000,AG57*INDEX('Damage costs'!$T$16:$T$43,MATCH($B166,'Damage costs'!$C$16:$C$43,0))/1000),\"\")","v":""},{"$f":"IFERROR(IF(OR($C$168=FALSE,LEFT($B166,3)<>\"NOX\"),AH57*INDEX('Damage costs'!$P$16:$P$43,MATCH($B166,'Damage costs'!$C$16:$C$43,0))/1000,AH57*INDEX('Damage costs'!$T$16:$T$43,MATCH($B166,'Damage costs'!$C$16:$C$43,0))/1000),\"\")","v":""},{"$f":"IFERROR(IF(OR($C$168=FALSE,LEFT($B166,3)<>\"NOX\"),AI57*INDEX('Damage costs'!$P$16:$P$43,MATCH($B166,'Damage costs'!$C$16:$C$43,0))/1000,AI57*INDEX('Damage costs'!$T$16:$T$43,MATCH($B166,'Damage costs'!$C$16:$C$43,0))/1000),\"\")","v":""},{"$f":"IFERROR(IF(OR($C$168=FALSE,LEFT($B166,3)<>\"NOX\"),AJ57*INDEX('Damage costs'!$P$16:$P$43,MATCH($B166,'Damage costs'!$C$16:$C$43,0))/1000,AJ57*INDEX('Damage costs'!$T$16:$T$43,MATCH($B166,'Damage costs'!$C$16:$C$43,0))/1000),\"\")","v":""},{"$f":"IFERROR(IF(OR($C$168=FALSE,LEFT($B166,3)<>\"NOX\"),AK57*INDEX('Damage costs'!$P$16:$P$43,MATCH($B166,'Damage costs'!$C$16:$C$43,0))/1000,AK57*INDEX('Damage costs'!$T$16:$T$43,MATCH($B166,'Damage costs'!$C$16:$C$43,0))/1000),\"\")","v":""},{"$f":"IFERROR(IF(OR($C$168=FALSE,LEFT($B166,3)<>\"NOX\"),AL57*INDEX('Damage costs'!$P$16:$P$43,MATCH($B166,'Damage costs'!$C$16:$C$43,0))/1000,AL57*INDEX('Damage costs'!$T$16:$T$43,MATCH($B166,'Damage costs'!$C$16:$C$43,0))/1000),\"\")","v":""},{"$f":"IFERROR(IF(OR($C$168=FALSE,LEFT($B166,3)<>\"NOX\"),AM57*INDEX('Damage costs'!$P$16:$P$43,MATCH($B166,'Damage costs'!$C$16:$C$43,0))/1000,AM57*INDEX('Damage costs'!$T$16:$T$43,MATCH($B166,'Damage costs'!$C$16:$C$43,0))/1000),\"\")","v":""},{"$f":"IFERROR(IF(OR($C$168=FALSE,LEFT($B166,3)<>\"NOX\"),AN57*INDEX('Damage costs'!$P$16:$P$43,MATCH($B166,'Damage costs'!$C$16:$C$43,0))/1000,AN57*INDEX('Damage costs'!$T$16:$T$43,MATCH($B166,'Damage costs'!$C$16:$C$43,0))/1000),\"\")","v":""},{"$f":"IFERROR(IF(OR($C$168=FALSE,LEFT($B166,3)<>\"NOX\"),AO57*INDEX('Damage costs'!$P$16:$P$43,MATCH($B166,'Damage costs'!$C$16:$C$43,0))/1000,AO57*INDEX('Damage costs'!$T$16:$T$43,MATCH($B166,'Damage costs'!$C$16:$C$43,0))/1000),\"\")","v":""},{"$f":"IFERROR(IF(OR($C$168=FALSE,LEFT($B166,3)<>\"NOX\"),AP57*INDEX('Damage costs'!$P$16:$P$43,MATCH($B166,'Damage costs'!$C$16:$C$43,0))/1000,AP57*INDEX('Damage costs'!$T$16:$T$43,MATCH($B166,'Damage costs'!$C$16:$C$43,0))/1000),\"\")","v":""},{"$f":"IFERROR(IF(OR($C$168=FALSE,LEFT($B166,3)<>\"NOX\"),AQ57*INDEX('Damage costs'!$P$16:$P$43,MATCH($B166,'Damage costs'!$C$16:$C$43,0))/1000,AQ57*INDEX('Damage costs'!$T$16:$T$43,MATCH($B166,'Damage costs'!$C$16:$C$43,0))/1000),\"\")","v":""},{"$f":"IFERROR(IF(OR($C$168=FALSE,LEFT($B166,3)<>\"NOX\"),AR57*INDEX('Damage costs'!$P$16:$P$43,MATCH($B166,'Damage costs'!$C$16:$C$43,0))/1000,AR57*INDEX('Damage costs'!$T$16:$T$43,MATCH($B166,'Damage costs'!$C$16:$C$43,0))/1000),\"\")","v":""},{"$f":"IFERROR(IF(OR($C$168=FALSE,LEFT($B166,3)<>\"NOX\"),AS57*INDEX('Damage costs'!$P$16:$P$43,MATCH($B166,'Damage costs'!$C$16:$C$43,0))/1000,AS57*INDEX('Damage costs'!$T$16:$T$43,MATCH($B166,'Damage costs'!$C$16:$C$43,0))/1000),\"\")","v":""},{"$f":"IFERROR(IF(OR($C$168=FALSE,LEFT($B166,3)<>\"NOX\"),AT57*INDEX('Damage costs'!$P$16:$P$43,MATCH($B166,'Damage costs'!$C$16:$C$43,0))/1000,AT57*INDEX('Damage costs'!$T$16:$T$43,MATCH($B166,'Damage costs'!$C$16:$C$43,0))/1000),\"\")","v":""},{"$f":"IFERROR(IF(OR($C$168=FALSE,LEFT($B166,3)<>\"NOX\"),AU57*INDEX('Damage costs'!$P$16:$P$43,MATCH($B166,'Damage costs'!$C$16:$C$43,0))/1000,AU57*INDEX('Damage costs'!$T$16:$T$43,MATCH($B166,'Damage costs'!$C$16:$C$43,0))/1000),\"\")","v":""},{"$f":"IFERROR(IF(OR($C$168=FALSE,LEFT($B166,3)<>\"NOX\"),AV57*INDEX('Damage costs'!$P$16:$P$43,MATCH($B166,'Damage costs'!$C$16:$C$43,0))/1000,AV57*INDEX('Damage costs'!$T$16:$T$43,MATCH($B166,'Damage costs'!$C$16:$C$43,0))/1000),\"\")","v":""},{"$f":"IFERROR(IF(OR($C$168=FALSE,LEFT($B166,3)<>\"NOX\"),AW57*INDEX('Damage costs'!$P$16:$P$43,MATCH($B166,'Damage costs'!$C$16:$C$43,0))/1000,AW57*INDEX('Damage costs'!$T$16:$T$43,MATCH($B166,'Damage costs'!$C$16:$C$43,0))/1000),\"\")","v":""},{"$f":"IFERROR(IF(OR($C$168=FALSE,LEFT($B166,3)<>\"NOX\"),AX57*INDEX('Damage costs'!$P$16:$P$43,MATCH($B166,'Damage costs'!$C$16:$C$43,0))/1000,AX57*INDEX('Damage costs'!$T$16:$T$43,MATCH($B166,'Damage costs'!$C$16:$C$43,0))/1000),\"\")","v":""},{"$f":"IFERROR(IF(OR($C$168=FALSE,LEFT($B166,3)<>\"NOX\"),AY57*INDEX('Damage costs'!$P$16:$P$43,MATCH($B166,'Damage costs'!$C$16:$C$43,0))/1000,AY57*INDEX('Damage costs'!$T$16:$T$43,MATCH($B166,'Damage costs'!$C$16:$C$43,0))/1000),\"\")","v":""},{"$f":"IFERROR(IF(OR($C$168=FALSE,LEFT($B166,3)<>\"NOX\"),AZ57*INDEX('Damage costs'!$P$16:$P$43,MATCH($B166,'Damage costs'!$C$16:$C$43,0))/1000,AZ57*INDEX('Damage costs'!$T$16:$T$43,MATCH($B166,'Damage costs'!$C$16:$C$43,0))/1000),\"\")","v":""},{"$f":"IFERROR(IF(OR($C$168=FALSE,LEFT($B166,3)<>\"NOX\"),BA57*INDEX('Damage costs'!$P$16:$P$43,MATCH($B166,'Damage costs'!$C$16:$C$43,0))/1000,BA57*INDEX('Damage costs'!$T$16:$T$43,MATCH($B166,'Damage costs'!$C$16:$C$43,0))/1000),\"\")","v":""},{"$f":"IFERROR(IF(OR($C$168=FALSE,LEFT($B166,3)<>\"NOX\"),BB57*INDEX('Damage costs'!$P$16:$P$43,MATCH($B166,'Damage costs'!$C$16:$C$43,0))/1000,BB57*INDEX('Damage costs'!$T$16:$T$43,MATCH($B166,'Damage costs'!$C$16:$C$43,0))/1000),\"\")","v":""},{"$f":"IFERROR(IF(OR($C$168=FALSE,LEFT($B166,3)<>\"NOX\"),BC57*INDEX('Damage costs'!$P$16:$P$43,MATCH($B166,'Damage costs'!$C$16:$C$43,0))/1000,BC57*INDEX('Damage costs'!$T$16:$T$43,MATCH($B166,'Damage costs'!$C$16:$C$43,0))/1000),\"\")","v":""},{"$f":"IFERROR(IF(OR($C$168=FALSE,LEFT($B166,3)<>\"NOX\"),BD57*INDEX('Damage costs'!$P$16:$P$43,MATCH($B166,'Damage costs'!$C$16:$C$43,0))/1000,BD57*INDEX('Damage costs'!$T$16:$T$43,MATCH($B166,'Damage costs'!$C$16:$C$43,0))/1000),\"\")","v":""},{"$f":"IFERROR(IF(OR($C$168=FALSE,LEFT($B166,3)<>\"NOX\"),BE57*INDEX('Damage costs'!$P$16:$P$43,MATCH($B166,'Damage costs'!$C$16:$C$43,0))/1000,BE57*INDEX('Damage costs'!$T$16:$T$43,MATCH($B166,'Damage costs'!$C$16:$C$43,0))/1000),\"\")","v":""},{"$f":"IFERROR(IF(OR($C$168=FALSE,LEFT($B166,3)<>\"NOX\"),BF57*INDEX('Damage costs'!$P$16:$P$43,MATCH($B166,'Damage costs'!$C$16:$C$43,0))/1000,BF57*INDEX('Damage costs'!$T$16:$T$43,MATCH($B166,'Damage costs'!$C$16:$C$43,0))/1000),\"\")","v":""},{"$f":"IFERROR(IF(OR($C$168=FALSE,LEFT($B166,3)<>\"NOX\"),BG57*INDEX('Damage costs'!$P$16:$P$43,MATCH($B166,'Damage costs'!$C$16:$C$43,0))/1000,BG57*INDEX('Damage costs'!$T$16:$T$43,MATCH($B166,'Damage costs'!$C$16:$C$43,0))/1000),\"\")","v":""},{"$f":"IFERROR(IF(OR($C$168=FALSE,LEFT($B166,3)<>\"NOX\"),BH57*INDEX('Damage costs'!$P$16:$P$43,MATCH($B166,'Damage costs'!$C$16:$C$43,0))/1000,BH57*INDEX('Damage costs'!$T$16:$T$43,MATCH($B166,'Damage costs'!$C$16:$C$43,0))/1000),\"\")","v":""},{"$f":"IFERROR(IF(OR($C$168=FALSE,LEFT($B166,3)<>\"NOX\"),BI57*INDEX('Damage costs'!$P$16:$P$43,MATCH($B166,'Damage costs'!$C$16:$C$43,0))/1000,BI57*INDEX('Damage costs'!$T$16:$T$43,MATCH($B166,'Damage costs'!$C$16:$C$43,0))/1000),\"\")","v":""},{"$f":"IFERROR(IF(OR($C$168=FALSE,LEFT($B166,3)<>\"NOX\"),BJ57*INDEX('Damage costs'!$P$16:$P$43,MATCH($B166,'Damage costs'!$C$16:$C$43,0))/1000,BJ57*INDEX('Damage costs'!$T$16:$T$43,MATCH($B166,'Damage costs'!$C$16:$C$43,0))/1000),\"\")","v":""},{"$f":"IFERROR(IF(OR($C$168=FALSE,LEFT($B166,3)<>\"NOX\"),BK57*INDEX('Damage costs'!$P$16:$P$43,MATCH($B166,'Damage costs'!$C$16:$C$43,0))/1000,BK57*INDEX('Damage costs'!$T$16:$T$43,MATCH($B166,'Damage costs'!$C$16:$C$43,0))/1000),\"\")","v":""},{"$f":"IFERROR(IF(OR($C$168=FALSE,LEFT($B166,3)<>\"NOX\"),BL57*INDEX('Damage costs'!$P$16:$P$43,MATCH($B166,'Damage costs'!$C$16:$C$43,0))/1000,BL57*INDEX('Damage costs'!$T$16:$T$43,MATCH($B166,'Damage costs'!$C$16:$C$43,0))/1000),\"\")","v":""},{"$f":"IFERROR(IF(OR($C$168=FALSE,LEFT($B166,3)<>\"NOX\"),BM57*INDEX('Damage costs'!$P$16:$P$43,MATCH($B166,'Damage costs'!$C$16:$C$43,0))/1000,BM57*INDEX('Damage costs'!$T$16:$T$43,MATCH($B166,'Damage costs'!$C$16:$C$43,0))/1000),\"\")","v":""},{"$f":"IFERROR(IF(OR($C$168=FALSE,LEFT($B166,3)<>\"NOX\"),BN57*INDEX('Damage costs'!$P$16:$P$43,MATCH($B166,'Damage costs'!$C$16:$C$43,0))/1000,BN57*INDEX('Damage costs'!$T$16:$T$43,MATCH($B166,'Damage costs'!$C$16:$C$43,0))/1000),\"\")","v":""},{"$f":"IFERROR(IF(OR($C$168=FALSE,LEFT($B166,3)<>\"NOX\"),BO57*INDEX('Damage costs'!$P$16:$P$43,MATCH($B166,'Damage costs'!$C$16:$C$43,0))/1000,BO57*INDEX('Damage costs'!$T$16:$T$43,MATCH($B166,'Damage costs'!$C$16:$C$43,0))/1000),\"\")","v":""},{"$f":"IFERROR(IF(OR($C$168=FALSE,LEFT($B166,3)<>\"NOX\"),BP57*INDEX('Damage costs'!$P$16:$P$43,MATCH($B166,'Damage costs'!$C$16:$C$43,0))/1000,BP57*INDEX('Damage costs'!$T$16:$T$43,MATCH($B166,'Damage costs'!$C$16:$C$43,0))/1000),\"\")","v":""},{"$f":"IFERROR(IF(OR($C$168=FALSE,LEFT($B166,3)<>\"NOX\"),BQ57*INDEX('Damage costs'!$P$16:$P$43,MATCH($B166,'Damage costs'!$C$16:$C$43,0))/1000,BQ57*INDEX('Damage costs'!$T$16:$T$43,MATCH($B166,'Damage costs'!$C$16:$C$43,0))/1000),\"\")","v":""},{"$f":"IFERROR(IF(OR($C$168=FALSE,LEFT($B166,3)<>\"NOX\"),BR57*INDEX('Damage costs'!$P$16:$P$43,MATCH($B166,'Damage costs'!$C$16:$C$43,0))/1000,BR57*INDEX('Damage costs'!$T$16:$T$43,MATCH($B166,'Damage costs'!$C$16:$C$43,0))/1000),\"\")","v":""},{"$f":"IFERROR(IF(OR($C$168=FALSE,LEFT($B166,3)<>\"NOX\"),BS57*INDEX('Damage costs'!$P$16:$P$43,MATCH($B166,'Damage costs'!$C$16:$C$43,0))/1000,BS57*INDEX('Damage costs'!$T$16:$T$43,MATCH($B166,'Damage costs'!$C$16:$C$43,0))/1000),\"\")","v":""},{"$f":"IFERROR(IF(OR($C$168=FALSE,LEFT($B166,3)<>\"NOX\"),BT57*INDEX('Damage costs'!$P$16:$P$43,MATCH($B166,'Damage costs'!$C$16:$C$43,0))/1000,BT57*INDEX('Damage costs'!$T$16:$T$43,MATCH($B166,'Damage costs'!$C$16:$C$43,0))/1000),\"\")","v":""},{"$f":"IFERROR(IF(OR($C$168=FALSE,LEFT($B166,3)<>\"NOX\"),BU57*INDEX('Damage costs'!$P$16:$P$43,MATCH($B166,'Damage costs'!$C$16:$C$43,0))/1000,BU57*INDEX('Damage costs'!$T$16:$T$43,MATCH($B166,'Damage costs'!$C$16:$C$43,0))/1000),\"\")","v":""},{"$f":"IFERROR(IF(OR($C$168=FALSE,LEFT($B166,3)<>\"NOX\"),BV57*INDEX('Damage costs'!$P$16:$P$43,MATCH($B166,'Damage costs'!$C$16:$C$43,0))/1000,BV57*INDEX('Damage costs'!$T$16:$T$43,MATCH($B166,'Damage costs'!$C$16:$C$43,0))/1000),\"\")","v":""},{"$f":"IFERROR(IF(OR($C$168=FALSE,LEFT($B166,3)<>\"NOX\"),BW57*INDEX('Damage costs'!$P$16:$P$43,MATCH($B166,'Damage costs'!$C$16:$C$43,0))/1000,BW57*INDEX('Damage costs'!$T$16:$T$43,MATCH($B166,'Damage costs'!$C$16:$C$43,0))/1000),\"\")","v":""},{"$f":"IFERROR(IF(OR($C$168=FALSE,LEFT($B166,3)<>\"NOX\"),BX57*INDEX('Damage costs'!$P$16:$P$43,MATCH($B166,'Damage costs'!$C$16:$C$43,0))/1000,BX57*INDEX('Damage costs'!$T$16:$T$43,MATCH($B166,'Damage costs'!$C$16:$C$43,0))/1000),\"\")","v":""},{"$f":"IFERROR(IF(OR($C$168=FALSE,LEFT($B166,3)<>\"NOX\"),BY57*INDEX('Damage costs'!$P$16:$P$43,MATCH($B166,'Damage costs'!$C$16:$C$43,0))/1000,BY57*INDEX('Damage costs'!$T$16:$T$43,MATCH($B166,'Damage costs'!$C$16:$C$43,0))/1000),\"\")","v":""},{"$f":"IFERROR(IF(OR($C$168=FALSE,LEFT($B166,3)<>\"NOX\"),BZ57*INDEX('Damage costs'!$P$16:$P$43,MATCH($B166,'Damage costs'!$C$16:$C$43,0))/1000,BZ57*INDEX('Damage costs'!$T$16:$T$43,MATCH($B166,'Damage costs'!$C$16:$C$43,0))/1000),\"\")","v":""},{"$f":"IFERROR(IF(OR($C$168=FALSE,LEFT($B166,3)<>\"NOX\"),CA57*INDEX('Damage costs'!$P$16:$P$43,MATCH($B166,'Damage costs'!$C$16:$C$43,0))/1000,CA57*INDEX('Damage costs'!$T$16:$T$43,MATCH($B166,'Damage costs'!$C$16:$C$43,0))/1000),\"\")","v":""},{"$f":"IFERROR(IF(OR($C$168=FALSE,LEFT($B166,3)<>\"NOX\"),CB57*INDEX('Damage costs'!$P$16:$P$43,MATCH($B166,'Damage costs'!$C$16:$C$43,0))/1000,CB57*INDEX('Damage costs'!$T$16:$T$43,MATCH($B166,'Damage costs'!$C$16:$C$43,0))/1000),\"\")","v":""},{"$f":"IFERROR(IF(OR($C$168=FALSE,LEFT($B166,3)<>\"NOX\"),CC57*INDEX('Damage costs'!$P$16:$P$43,MATCH($B166,'Damage costs'!$C$16:$C$43,0))/1000,CC57*INDEX('Damage costs'!$T$16:$T$43,MATCH($B166,'Damage costs'!$C$16:$C$43,0))/1000),\"\")","v":""},{"$f":"IFERROR(IF(OR($C$168=FALSE,LEFT($B166,3)<>\"NOX\"),CD57*INDEX('Damage costs'!$P$16:$P$43,MATCH($B166,'Damage costs'!$C$16:$C$43,0))/1000,CD57*INDEX('Damage costs'!$T$16:$T$43,MATCH($B166,'Damage costs'!$C$16:$C$43,0))/1000),\"\")","v":""},{"$f":"IFERROR(IF(OR($C$168=FALSE,LEFT($B166,3)<>\"NOX\"),CE57*INDEX('Damage costs'!$P$16:$P$43,MATCH($B166,'Damage costs'!$C$16:$C$43,0))/1000,CE57*INDEX('Damage costs'!$T$16:$T$43,MATCH($B166,'Damage costs'!$C$16:$C$43,0))/1000),\"\")","v":""},{"$f":"IFERROR(IF(OR($C$168=FALSE,LEFT($B166,3)<>\"NOX\"),CF57*INDEX('Damage costs'!$P$16:$P$43,MATCH($B166,'Damage costs'!$C$16:$C$43,0))/1000,CF57*INDEX('Damage costs'!$T$16:$T$43,MATCH($B166,'Damage costs'!$C$16:$C$43,0))/1000),\"\")","v":""},{"$f":"IFERROR(IF(OR($C$168=FALSE,LEFT($B166,3)<>\"NOX\"),CG57*INDEX('Damage costs'!$P$16:$P$43,MATCH($B166,'Damage costs'!$C$16:$C$43,0))/1000,CG57*INDEX('Damage costs'!$T$16:$T$43,MATCH($B166,'Damage costs'!$C$16:$C$43,0))/1000),\"\")","v":""},{"$f":"IFERROR(IF(OR($C$168=FALSE,LEFT($B166,3)<>\"NOX\"),CH57*INDEX('Damage costs'!$P$16:$P$43,MATCH($B166,'Damage costs'!$C$16:$C$43,0))/1000,CH57*INDEX('Damage costs'!$T$16:$T$43,MATCH($B166,'Damage costs'!$C$16:$C$43,0))/1000),\"\")","v":""},{"$f":"IFERROR(IF(OR($C$168=FALSE,LEFT($B166,3)<>\"NOX\"),CI57*INDEX('Damage costs'!$P$16:$P$43,MATCH($B166,'Damage costs'!$C$16:$C$43,0))/1000,CI57*INDEX('Damage costs'!$T$16:$T$43,MATCH($B166,'Damage costs'!$C$16:$C$43,0))/1000),\"\")","v":""},{"$f":"IFERROR(IF(OR($C$168=FALSE,LEFT($B166,3)<>\"NOX\"),CJ57*INDEX('Damage costs'!$P$16:$P$43,MATCH($B166,'Damage costs'!$C$16:$C$43,0))/1000,CJ57*INDEX('Damage costs'!$T$16:$T$43,MATCH($B166,'Damage costs'!$C$16:$C$43,0))/1000),\"\")","v":""},{"$f":"IFERROR(IF(OR($C$168=FALSE,LEFT($B166,3)<>\"NOX\"),CK57*INDEX('Damage costs'!$P$16:$P$43,MATCH($B166,'Damage costs'!$C$16:$C$43,0))/1000,CK57*INDEX('Damage costs'!$T$16:$T$43,MATCH($B166,'Damage costs'!$C$16:$C$43,0))/1000),\"\")","v":""},{"$f":"IFERROR(IF(OR($C$168=FALSE,LEFT($B166,3)<>\"NOX\"),CL57*INDEX('Damage costs'!$P$16:$P$43,MATCH($B166,'Damage costs'!$C$16:$C$43,0))/1000,CL57*INDEX('Damage costs'!$T$16:$T$43,MATCH($B166,'Damage costs'!$C$16:$C$43,0))/1000),\"\")","v":""},{"$f":"IFERROR(IF(OR($C$168=FALSE,LEFT($B166,3)<>\"NOX\"),CM57*INDEX('Damage costs'!$P$16:$P$43,MATCH($B166,'Damage costs'!$C$16:$C$43,0))/1000,CM57*INDEX('Damage costs'!$T$16:$T$43,MATCH($B166,'Damage costs'!$C$16:$C$43,0))/1000),\"\")","v":""},{"$f":"IFERROR(IF(OR($C$168=FALSE,LEFT($B166,3)<>\"NOX\"),CN57*INDEX('Damage costs'!$P$16:$P$43,MATCH($B166,'Damage costs'!$C$16:$C$43,0))/1000,CN57*INDEX('Damage costs'!$T$16:$T$43,MATCH($B166,'Damage costs'!$C$16:$C$43,0))/1000),\"\")","v":""},{"$f":"IFERROR(IF(OR($C$168=FALSE,LEFT($B166,3)<>\"NOX\"),CO57*INDEX('Damage costs'!$P$16:$P$43,MATCH($B166,'Damage costs'!$C$16:$C$43,0))/1000,CO57*INDEX('Damage costs'!$T$16:$T$43,MATCH($B166,'Damage costs'!$C$16:$C$43,0))/1000),\"\")","v":""},{"$f":"IFERROR(IF(OR($C$168=FALSE,LEFT($B166,3)<>\"NOX\"),CP57*INDEX('Damage costs'!$P$16:$P$43,MATCH($B166,'Damage costs'!$C$16:$C$43,0))/1000,CP57*INDEX('Damage costs'!$T$16:$T$43,MATCH($B166,'Damage costs'!$C$16:$C$43,0))/1000),\"\")","v":""},{"$f":"IFERROR(IF(OR($C$168=FALSE,LEFT($B166,3)<>\"NOX\"),CQ57*INDEX('Damage costs'!$P$16:$P$43,MATCH($B166,'Damage costs'!$C$16:$C$43,0))/1000,CQ57*INDEX('Damage costs'!$T$16:$T$43,MATCH($B166,'Damage costs'!$C$16:$C$43,0))/1000),\"\")","v":""},{"$f":"IFERROR(IF(OR($C$168=FALSE,LEFT($B166,3)<>\"NOX\"),CR57*INDEX('Damage costs'!$P$16:$P$43,MATCH($B166,'Damage costs'!$C$16:$C$43,0))/1000,CR57*INDEX('Damage costs'!$T$16:$T$43,MATCH($B166,'Damage costs'!$C$16:$C$43,0))/1000),\"\")","v":""},{"$f":"IFERROR(IF(OR($C$168=FALSE,LEFT($B166,3)<>\"NOX\"),CS57*INDEX('Damage costs'!$P$16:$P$43,MATCH($B166,'Damage costs'!$C$16:$C$43,0))/1000,CS57*INDEX('Damage costs'!$T$16:$T$43,MATCH($B166,'Damage costs'!$C$16:$C$43,0))/1000),\"\")","v":""},{"$f":"IFERROR(IF(OR($C$168=FALSE,LEFT($B166,3)<>\"NOX\"),CT57*INDEX('Damage costs'!$P$16:$P$43,MATCH($B166,'Damage costs'!$C$16:$C$43,0))/1000,CT57*INDEX('Damage costs'!$T$16:$T$43,MATCH($B166,'Damage costs'!$C$16:$C$43,0))/1000),\"\")","v":""},{"$f":"IFERROR(IF(OR($C$168=FALSE,LEFT($B166,3)<>\"NOX\"),CU57*INDEX('Damage costs'!$P$16:$P$43,MATCH($B166,'Damage costs'!$C$16:$C$43,0))/1000,CU57*INDEX('Damage costs'!$T$16:$T$43,MATCH($B166,'Damage costs'!$C$16:$C$43,0))/1000),\"\")","v":""},{"$f":"IFERROR(IF(OR($C$168=FALSE,LEFT($B166,3)<>\"NOX\"),CV57*INDEX('Damage costs'!$P$16:$P$43,MATCH($B166,'Damage costs'!$C$16:$C$43,0))/1000,CV57*INDEX('Damage costs'!$T$16:$T$43,MATCH($B166,'Damage costs'!$C$16:$C$43,0))/1000),\"\")","v":""},{"$f":"IFERROR(IF(OR($C$168=FALSE,LEFT($B166,3)<>\"NOX\"),CW57*INDEX('Damage costs'!$P$16:$P$43,MATCH($B166,'Damage costs'!$C$16:$C$43,0))/1000,CW57*INDEX('Damage costs'!$T$16:$T$43,MATCH($B166,'Damage costs'!$C$16:$C$43,0))/1000),\"\")","v":""},{"$f":"IFERROR(IF(OR($C$168=FALSE,LEFT($B166,3)<>\"NOX\"),CX57*INDEX('Damage costs'!$P$16:$P$43,MATCH($B166,'Damage costs'!$C$16:$C$43,0))/1000,CX57*INDEX('Damage costs'!$T$16:$T$43,MATCH($B166,'Damage costs'!$C$16:$C$43,0))/1000),\"\")","v":""},{"$f":"IFERROR(IF(OR($C$168=FALSE,LEFT($B166,3)<>\"NOX\"),CY57*INDEX('Damage costs'!$P$16:$P$43,MATCH($B166,'Damage costs'!$C$16:$C$43,0))/1000,CY57*INDEX('Damage costs'!$T$16:$T$43,MATCH($B166,'Damage costs'!$C$16:$C$43,0))/1000),\"\")","v":""}]
[null,0,"£000's",{"$f":"IFERROR(IF(OR($C$168=FALSE,LEFT($B167,3)<>\"NOX\"),D58*INDEX('Damage costs'!$P$16:$P$43,MATCH($B167,'Damage costs'!$C$16:$C$43,0))/1000,D58*INDEX('Damage costs'!$T$16:$T$43,MATCH($B167,'Damage costs'!$C$16:$C$43,0))/1000),\"\")","v":""},{"$f":"IFERROR(IF(OR($C$168=FALSE,LEFT($B167,3)<>\"NOX\"),E58*INDEX('Damage costs'!$P$16:$P$43,MATCH($B167,'Damage costs'!$C$16:$C$43,0))/1000,E58*INDEX('Damage costs'!$T$16:$T$43,MATCH($B167,'Damage costs'!$C$16:$C$43,0))/1000),\"\")","v":""},{"$f":"IFERROR(IF(OR($C$168=FALSE,LEFT($B167,3)<>\"NOX\"),F58*INDEX('Damage costs'!$P$16:$P$43,MATCH($B167,'Damage costs'!$C$16:$C$43,0))/1000,F58*INDEX('Damage costs'!$T$16:$T$43,MATCH($B167,'Damage costs'!$C$16:$C$43,0))/1000),\"\")","v":""},{"$f":"IFERROR(IF(OR($C$168=FALSE,LEFT($B167,3)<>\"NOX\"),G58*INDEX('Damage costs'!$P$16:$P$43,MATCH($B167,'Damage costs'!$C$16:$C$43,0))/1000,G58*INDEX('Damage costs'!$T$16:$T$43,MATCH($B167,'Damage costs'!$C$16:$C$43,0))/1000),\"\")","v":""},{"$f":"IFERROR(IF(OR($C$168=FALSE,LEFT($B167,3)<>\"NOX\"),H58*INDEX('Damage costs'!$P$16:$P$43,MATCH($B167,'Damage costs'!$C$16:$C$43,0))/1000,H58*INDEX('Damage costs'!$T$16:$T$43,MATCH($B167,'Damage costs'!$C$16:$C$43,0))/1000),\"\")","v":""},{"$f":"IFERROR(IF(OR($C$168=FALSE,LEFT($B167,3)<>\"NOX\"),I58*INDEX('Damage costs'!$P$16:$P$43,MATCH($B167,'Damage costs'!$C$16:$C$43,0))/1000,I58*INDEX('Damage costs'!$T$16:$T$43,MATCH($B167,'Damage costs'!$C$16:$C$43,0))/1000),\"\")","v":""},{"$f":"IFERROR(IF(OR($C$168=FALSE,LEFT($B167,3)<>\"NOX\"),J58*INDEX('Damage costs'!$P$16:$P$43,MATCH($B167,'Damage costs'!$C$16:$C$43,0))/1000,J58*INDEX('Damage costs'!$T$16:$T$43,MATCH($B167,'Damage costs'!$C$16:$C$43,0))/1000),\"\")","v":""},{"$f":"IFERROR(IF(OR($C$168=FALSE,LEFT($B167,3)<>\"NOX\"),K58*INDEX('Damage costs'!$P$16:$P$43,MATCH($B167,'Damage costs'!$C$16:$C$43,0))/1000,K58*INDEX('Damage costs'!$T$16:$T$43,MATCH($B167,'Damage costs'!$C$16:$C$43,0))/1000),\"\")","v":""},{"$f":"IFERROR(IF(OR($C$168=FALSE,LEFT($B167,3)<>\"NOX\"),L58*INDEX('Damage costs'!$P$16:$P$43,MATCH($B167,'Damage costs'!$C$16:$C$43,0))/1000,L58*INDEX('Damage costs'!$T$16:$T$43,MATCH($B167,'Damage costs'!$C$16:$C$43,0))/1000),\"\")","v":""},{"$f":"IFERROR(IF(OR($C$168=FALSE,LEFT($B167,3)<>\"NOX\"),M58*INDEX('Damage costs'!$P$16:$P$43,MATCH($B167,'Damage costs'!$C$16:$C$43,0))/1000,M58*INDEX('Damage costs'!$T$16:$T$43,MATCH($B167,'Damage costs'!$C$16:$C$43,0))/1000),\"\")","v":""},{"$f":"IFERROR(IF(OR($C$168=FALSE,LEFT($B167,3)<>\"NOX\"),N58*INDEX('Damage costs'!$P$16:$P$43,MATCH($B167,'Damage costs'!$C$16:$C$43,0))/1000,N58*INDEX('Damage costs'!$T$16:$T$43,MATCH($B167,'Damage costs'!$C$16:$C$43,0))/1000),\"\")","v":""},{"$f":"IFERROR(IF(OR($C$168=FALSE,LEFT($B167,3)<>\"NOX\"),O58*INDEX('Damage costs'!$P$16:$P$43,MATCH($B167,'Damage costs'!$C$16:$C$43,0))/1000,O58*INDEX('Damage costs'!$T$16:$T$43,MATCH($B167,'Damage costs'!$C$16:$C$43,0))/1000),\"\")","v":""},{"$f":"IFERROR(IF(OR($C$168=FALSE,LEFT($B167,3)<>\"NOX\"),P58*INDEX('Damage costs'!$P$16:$P$43,MATCH($B167,'Damage costs'!$C$16:$C$43,0))/1000,P58*INDEX('Damage costs'!$T$16:$T$43,MATCH($B167,'Damage costs'!$C$16:$C$43,0))/1000),\"\")","v":""},{"$f":"IFERROR(IF(OR($C$168=FALSE,LEFT($B167,3)<>\"NOX\"),Q58*INDEX('Damage costs'!$P$16:$P$43,MATCH($B167,'Damage costs'!$C$16:$C$43,0))/1000,Q58*INDEX('Damage costs'!$T$16:$T$43,MATCH($B167,'Damage costs'!$C$16:$C$43,0))/1000),\"\")","v":""},{"$f":"IFERROR(IF(OR($C$168=FALSE,LEFT($B167,3)<>\"NOX\"),R58*INDEX('Damage costs'!$P$16:$P$43,MATCH($B167,'Damage costs'!$C$16:$C$43,0))/1000,R58*INDEX('Damage costs'!$T$16:$T$43,MATCH($B167,'Damage costs'!$C$16:$C$43,0))/1000),\"\")","v":""},{"$f":"IFERROR(IF(OR($C$168=FALSE,LEFT($B167,3)<>\"NOX\"),S58*INDEX('Damage costs'!$P$16:$P$43,MATCH($B167,'Damage costs'!$C$16:$C$43,0))/1000,S58*INDEX('Damage costs'!$T$16:$T$43,MATCH($B167,'Damage costs'!$C$16:$C$43,0))/1000),\"\")","v":""},{"$f":"IFERROR(IF(OR($C$168=FALSE,LEFT($B167,3)<>\"NOX\"),T58*INDEX('Damage costs'!$P$16:$P$43,MATCH($B167,'Damage costs'!$C$16:$C$43,0))/1000,T58*INDEX('Damage costs'!$T$16:$T$43,MATCH($B167,'Damage costs'!$C$16:$C$43,0))/1000),\"\")","v":""},{"$f":"IFERROR(IF(OR($C$168=FALSE,LEFT($B167,3)<>\"NOX\"),U58*INDEX('Damage costs'!$P$16:$P$43,MATCH($B167,'Damage costs'!$C$16:$C$43,0))/1000,U58*INDEX('Damage costs'!$T$16:$T$43,MATCH($B167,'Damage costs'!$C$16:$C$43,0))/1000),\"\")","v":""},{"$f":"IFERROR(IF(OR($C$168=FALSE,LEFT($B167,3)<>\"NOX\"),V58*INDEX('Damage costs'!$P$16:$P$43,MATCH($B167,'Damage costs'!$C$16:$C$43,0))/1000,V58*INDEX('Damage costs'!$T$16:$T$43,MATCH($B167,'Damage costs'!$C$16:$C$43,0))/1000),\"\")","v":""},{"$f":"IFERROR(IF(OR($C$168=FALSE,LEFT($B167,3)<>\"NOX\"),W58*INDEX('Damage costs'!$P$16:$P$43,MATCH($B167,'Damage costs'!$C$16:$C$43,0))/1000,W58*INDEX('Damage costs'!$T$16:$T$43,MATCH($B167,'Damage costs'!$C$16:$C$43,0))/1000),\"\")","v":""},{"$f":"IFERROR(IF(OR($C$168=FALSE,LEFT($B167,3)<>\"NOX\"),X58*INDEX('Damage costs'!$P$16:$P$43,MATCH($B167,'Damage costs'!$C$16:$C$43,0))/1000,X58*INDEX('Damage costs'!$T$16:$T$43,MATCH($B167,'Damage costs'!$C$16:$C$43,0))/1000),\"\")","v":""},{"$f":"IFERROR(IF(OR($C$168=FALSE,LEFT($B167,3)<>\"NOX\"),Y58*INDEX('Damage costs'!$P$16:$P$43,MATCH($B167,'Damage costs'!$C$16:$C$43,0))/1000,Y58*INDEX('Damage costs'!$T$16:$T$43,MATCH($B167,'Damage costs'!$C$16:$C$43,0))/1000),\"\")","v":""},{"$f":"IFERROR(IF(OR($C$168=FALSE,LEFT($B167,3)<>\"NOX\"),Z58*INDEX('Damage costs'!$P$16:$P$43,MATCH($B167,'Damage costs'!$C$16:$C$43,0))/1000,Z58*INDEX('Damage costs'!$T$16:$T$43,MATCH($B167,'Damage costs'!$C$16:$C$43,0))/1000),\"\")","v":""},{"$f":"IFERROR(IF(OR($C$168=FALSE,LEFT($B167,3)<>\"NOX\"),AA58*INDEX('Damage costs'!$P$16:$P$43,MATCH($B167,'Damage costs'!$C$16:$C$43,0))/1000,AA58*INDEX('Damage costs'!$T$16:$T$43,MATCH($B167,'Damage costs'!$C$16:$C$43,0))/1000),\"\")","v":""},{"$f":"IFERROR(IF(OR($C$168=FALSE,LEFT($B167,3)<>\"NOX\"),AB58*INDEX('Damage costs'!$P$16:$P$43,MATCH($B167,'Damage costs'!$C$16:$C$43,0))/1000,AB58*INDEX('Damage costs'!$T$16:$T$43,MATCH($B167,'Damage costs'!$C$16:$C$43,0))/1000),\"\")","v":""},{"$f":"IFERROR(IF(OR($C$168=FALSE,LEFT($B167,3)<>\"NOX\"),AC58*INDEX('Damage costs'!$P$16:$P$43,MATCH($B167,'Damage costs'!$C$16:$C$43,0))/1000,AC58*INDEX('Damage costs'!$T$16:$T$43,MATCH($B167,'Damage costs'!$C$16:$C$43,0))/1000),\"\")","v":""},{"$f":"IFERROR(IF(OR($C$168=FALSE,LEFT($B167,3)<>\"NOX\"),AD58*INDEX('Damage costs'!$P$16:$P$43,MATCH($B167,'Damage costs'!$C$16:$C$43,0))/1000,AD58*INDEX('Damage costs'!$T$16:$T$43,MATCH($B167,'Damage costs'!$C$16:$C$43,0))/1000),\"\")","v":""},{"$f":"IFERROR(IF(OR($C$168=FALSE,LEFT($B167,3)<>\"NOX\"),AE58*INDEX('Damage costs'!$P$16:$P$43,MATCH($B167,'Damage costs'!$C$16:$C$43,0))/1000,AE58*INDEX('Damage costs'!$T$16:$T$43,MATCH($B167,'Damage costs'!$C$16:$C$43,0))/1000),\"\")","v":""},{"$f":"IFERROR(IF(OR($C$168=FALSE,LEFT($B167,3)<>\"NOX\"),AF58*INDEX('Damage costs'!$P$16:$P$43,MATCH($B167,'Damage costs'!$C$16:$C$43,0))/1000,AF58*INDEX('Damage costs'!$T$16:$T$43,MATCH($B167,'Damage costs'!$C$16:$C$43,0))/1000),\"\")","v":""},{"$f":"IFERROR(IF(OR($C$168=FALSE,LEFT($B167,3)<>\"NOX\"),AG58*INDEX('Damage costs'!$P$16:$P$43,MATCH($B167,'Damage costs'!$C$16:$C$43,0))/1000,AG58*INDEX('Damage costs'!$T$16:$T$43,MATCH($B167,'Damage costs'!$C$16:$C$43,0))/1000),\"\")","v":""},{"$f":"IFERROR(IF(OR($C$168=FALSE,LEFT($B167,3)<>\"NOX\"),AH58*INDEX('Damage costs'!$P$16:$P$43,MATCH($B167,'Damage costs'!$C$16:$C$43,0))/1000,AH58*INDEX('Damage costs'!$T$16:$T$43,MATCH($B167,'Damage costs'!$C$16:$C$43,0))/1000),\"\")","v":""},{"$f":"IFERROR(IF(OR($C$168=FALSE,LEFT($B167,3)<>\"NOX\"),AI58*INDEX('Damage costs'!$P$16:$P$43,MATCH($B167,'Damage costs'!$C$16:$C$43,0))/1000,AI58*INDEX('Damage costs'!$T$16:$T$43,MATCH($B167,'Damage costs'!$C$16:$C$43,0))/1000),\"\")","v":""},{"$f":"IFERROR(IF(OR($C$168=FALSE,LEFT($B167,3)<>\"NOX\"),AJ58*INDEX('Damage costs'!$P$16:$P$43,MATCH($B167,'Damage costs'!$C$16:$C$43,0))/1000,AJ58*INDEX('Damage costs'!$T$16:$T$43,MATCH($B167,'Damage costs'!$C$16:$C$43,0))/1000),\"\")","v":""},{"$f":"IFERROR(IF(OR($C$168=FALSE,LEFT($B167,3)<>\"NOX\"),AK58*INDEX('Damage costs'!$P$16:$P$43,MATCH($B167,'Damage costs'!$C$16:$C$43,0))/1000,AK58*INDEX('Damage costs'!$T$16:$T$43,MATCH($B167,'Damage costs'!$C$16:$C$43,0))/1000),\"\")","v":""},{"$f":"IFERROR(IF(OR($C$168=FALSE,LEFT($B167,3)<>\"NOX\"),AL58*INDEX('Damage costs'!$P$16:$P$43,MATCH($B167,'Damage costs'!$C$16:$C$43,0))/1000,AL58*INDEX('Damage costs'!$T$16:$T$43,MATCH($B167,'Damage costs'!$C$16:$C$43,0))/1000),\"\")","v":""},{"$f":"IFERROR(IF(OR($C$168=FALSE,LEFT($B167,3)<>\"NOX\"),AM58*INDEX('Damage costs'!$P$16:$P$43,MATCH($B167,'Damage costs'!$C$16:$C$43,0))/1000,AM58*INDEX('Damage costs'!$T$16:$T$43,MATCH($B167,'Damage costs'!$C$16:$C$43,0))/1000),\"\")","v":""},{"$f":"IFERROR(IF(OR($C$168=FALSE,LEFT($B167,3)<>\"NOX\"),AN58*INDEX('Damage costs'!$P$16:$P$43,MATCH($B167,'Damage costs'!$C$16:$C$43,0))/1000,AN58*INDEX('Damage costs'!$T$16:$T$43,MATCH($B167,'Damage costs'!$C$16:$C$43,0))/1000),\"\")","v":""},{"$f":"IFERROR(IF(OR($C$168=FALSE,LEFT($B167,3)<>\"NOX\"),AO58*INDEX('Damage costs'!$P$16:$P$43,MATCH($B167,'Damage costs'!$C$16:$C$43,0))/1000,AO58*INDEX('Damage costs'!$T$16:$T$43,MATCH($B167,'Damage costs'!$C$16:$C$43,0))/1000),\"\")","v":""},{"$f":"IFERROR(IF(OR($C$168=FALSE,LEFT($B167,3)<>\"NOX\"),AP58*INDEX('Damage costs'!$P$16:$P$43,MATCH($B167,'Damage costs'!$C$16:$C$43,0))/1000,AP58*INDEX('Damage costs'!$T$16:$T$43,MATCH($B167,'Damage costs'!$C$16:$C$43,0))/1000),\"\")","v":""},{"$f":"IFERROR(IF(OR($C$168=FALSE,LEFT($B167,3)<>\"NOX\"),AQ58*INDEX('Damage costs'!$P$16:$P$43,MATCH($B167,'Damage costs'!$C$16:$C$43,0))/1000,AQ58*INDEX('Damage costs'!$T$16:$T$43,MATCH($B167,'Damage costs'!$C$16:$C$43,0))/1000),\"\")","v":""},{"$f":"IFERROR(IF(OR($C$168=FALSE,LEFT($B167,3)<>\"NOX\"),AR58*INDEX('Damage costs'!$P$16:$P$43,MATCH($B167,'Damage costs'!$C$16:$C$43,0))/1000,AR58*INDEX('Damage costs'!$T$16:$T$43,MATCH($B167,'Damage costs'!$C$16:$C$43,0))/1000),\"\")","v":""},{"$f":"IFERROR(IF(OR($C$168=FALSE,LEFT($B167,3)<>\"NOX\"),AS58*INDEX('Damage costs'!$P$16:$P$43,MATCH($B167,'Damage costs'!$C$16:$C$43,0))/1000,AS58*INDEX('Damage costs'!$T$16:$T$43,MATCH($B167,'Damage costs'!$C$16:$C$43,0))/1000),\"\")","v":""},{"$f":"IFERROR(IF(OR($C$168=FALSE,LEFT($B167,3)<>\"NOX\"),AT58*INDEX('Damage costs'!$P$16:$P$43,MATCH($B167,'Damage costs'!$C$16:$C$43,0))/1000,AT58*INDEX('Damage costs'!$T$16:$T$43,MATCH($B167,'Damage costs'!$C$16:$C$43,0))/1000),\"\")","v":""},{"$f":"IFERROR(IF(OR($C$168=FALSE,LEFT($B167,3)<>\"NOX\"),AU58*INDEX('Damage costs'!$P$16:$P$43,MATCH($B167,'Damage costs'!$C$16:$C$43,0))/1000,AU58*INDEX('Damage costs'!$T$16:$T$43,MATCH($B167,'Damage costs'!$C$16:$C$43,0))/1000),\"\")","v":""},{"$f":"IFERROR(IF(OR($C$168=FALSE,LEFT($B167,3)<>\"NOX\"),AV58*INDEX('Damage costs'!$P$16:$P$43,MATCH($B167,'Damage costs'!$C$16:$C$43,0))/1000,AV58*INDEX('Damage costs'!$T$16:$T$43,MATCH($B167,'Damage costs'!$C$16:$C$43,0))/1000),\"\")","v":""},{"$f":"IFERROR(IF(OR($C$168=FALSE,LEFT($B167,3)<>\"NOX\"),AW58*INDEX('Damage costs'!$P$16:$P$43,MATCH($B167,'Damage costs'!$C$16:$C$43,0))/1000,AW58*INDEX('Damage costs'!$T$16:$T$43,MATCH($B167,'Damage costs'!$C$16:$C$43,0))/1000),\"\")","v":""},{"$f":"IFERROR(IF(OR($C$168=FALSE,LEFT($B167,3)<>\"NOX\"),AX58*INDEX('Damage costs'!$P$16:$P$43,MATCH($B167,'Damage costs'!$C$16:$C$43,0))/1000,AX58*INDEX('Damage costs'!$T$16:$T$43,MATCH($B167,'Damage costs'!$C$16:$C$43,0))/1000),\"\")","v":""},{"$f":"IFERROR(IF(OR($C$168=FALSE,LEFT($B167,3)<>\"NOX\"),AY58*INDEX('Damage costs'!$P$16:$P$43,MATCH($B167,'Damage costs'!$C$16:$C$43,0))/1000,AY58*INDEX('Damage costs'!$T$16:$T$43,MATCH($B167,'Damage costs'!$C$16:$C$43,0))/1000),\"\")","v":""},{"$f":"IFERROR(IF(OR($C$168=FALSE,LEFT($B167,3)<>\"NOX\"),AZ58*INDEX('Damage costs'!$P$16:$P$43,MATCH($B167,'Damage costs'!$C$16:$C$43,0))/1000,AZ58*INDEX('Damage costs'!$T$16:$T$43,MATCH($B167,'Damage costs'!$C$16:$C$43,0))/1000),\"\")","v":""},{"$f":"IFERROR(IF(OR($C$168=FALSE,LEFT($B167,3)<>\"NOX\"),BA58*INDEX('Damage costs'!$P$16:$P$43,MATCH($B167,'Damage costs'!$C$16:$C$43,0))/1000,BA58*INDEX('Damage costs'!$T$16:$T$43,MATCH($B167,'Damage costs'!$C$16:$C$43,0))/1000),\"\")","v":""},{"$f":"IFERROR(IF(OR($C$168=FALSE,LEFT($B167,3)<>\"NOX\"),BB58*INDEX('Damage costs'!$P$16:$P$43,MATCH($B167,'Damage costs'!$C$16:$C$43,0))/1000,BB58*INDEX('Damage costs'!$T$16:$T$43,MATCH($B167,'Damage costs'!$C$16:$C$43,0))/1000),\"\")","v":""},{"$f":"IFERROR(IF(OR($C$168=FALSE,LEFT($B167,3)<>\"NOX\"),BC58*INDEX('Damage costs'!$P$16:$P$43,MATCH($B167,'Damage costs'!$C$16:$C$43,0))/1000,BC58*INDEX('Damage costs'!$T$16:$T$43,MATCH($B167,'Damage costs'!$C$16:$C$43,0))/1000),\"\")","v":""},{"$f":"IFERROR(IF(OR($C$168=FALSE,LEFT($B167,3)<>\"NOX\"),BD58*INDEX('Damage costs'!$P$16:$P$43,MATCH($B167,'Damage costs'!$C$16:$C$43,0))/1000,BD58*INDEX('Damage costs'!$T$16:$T$43,MATCH($B167,'Damage costs'!$C$16:$C$43,0))/1000),\"\")","v":""},{"$f":"IFERROR(IF(OR($C$168=FALSE,LEFT($B167,3)<>\"NOX\"),BE58*INDEX('Damage costs'!$P$16:$P$43,MATCH($B167,'Damage costs'!$C$16:$C$43,0))/1000,BE58*INDEX('Damage costs'!$T$16:$T$43,MATCH($B167,'Damage costs'!$C$16:$C$43,0))/1000),\"\")","v":""},{"$f":"IFERROR(IF(OR($C$168=FALSE,LEFT($B167,3)<>\"NOX\"),BF58*INDEX('Damage costs'!$P$16:$P$43,MATCH($B167,'Damage costs'!$C$16:$C$43,0))/1000,BF58*INDEX('Damage costs'!$T$16:$T$43,MATCH($B167,'Damage costs'!$C$16:$C$43,0))/1000),\"\")","v":""},{"$f":"IFERROR(IF(OR($C$168=FALSE,LEFT($B167,3)<>\"NOX\"),BG58*INDEX('Damage costs'!$P$16:$P$43,MATCH($B167,'Damage costs'!$C$16:$C$43,0))/1000,BG58*INDEX('Damage costs'!$T$16:$T$43,MATCH($B167,'Damage costs'!$C$16:$C$43,0))/1000),\"\")","v":""},{"$f":"IFERROR(IF(OR($C$168=FALSE,LEFT($B167,3)<>\"NOX\"),BH58*INDEX('Damage costs'!$P$16:$P$43,MATCH($B167,'Damage costs'!$C$16:$C$43,0))/1000,BH58*INDEX('Damage costs'!$T$16:$T$43,MATCH($B167,'Damage costs'!$C$16:$C$43,0))/1000),\"\")","v":""},{"$f":"IFERROR(IF(OR($C$168=FALSE,LEFT($B167,3)<>\"NOX\"),BI58*INDEX('Damage costs'!$P$16:$P$43,MATCH($B167,'Damage costs'!$C$16:$C$43,0))/1000,BI58*INDEX('Damage costs'!$T$16:$T$43,MATCH($B167,'Damage costs'!$C$16:$C$43,0))/1000),\"\")","v":""},{"$f":"IFERROR(IF(OR($C$168=FALSE,LEFT($B167,3)<>\"NOX\"),BJ58*INDEX('Damage costs'!$P$16:$P$43,MATCH($B167,'Damage costs'!$C$16:$C$43,0))/1000,BJ58*INDEX('Damage costs'!$T$16:$T$43,MATCH($B167,'Damage costs'!$C$16:$C$43,0))/1000),\"\")","v":""},{"$f":"IFERROR(IF(OR($C$168=FALSE,LEFT($B167,3)<>\"NOX\"),BK58*INDEX('Damage costs'!$P$16:$P$43,MATCH($B167,'Damage costs'!$C$16:$C$43,0))/1000,BK58*INDEX('Damage costs'!$T$16:$T$43,MATCH($B167,'Damage costs'!$C$16:$C$43,0))/1000),\"\")","v":""},{"$f":"IFERROR(IF(OR($C$168=FALSE,LEFT($B167,3)<>\"NOX\"),BL58*INDEX('Damage costs'!$P$16:$P$43,MATCH($B167,'Damage costs'!$C$16:$C$43,0))/1000,BL58*INDEX('Damage costs'!$T$16:$T$43,MATCH($B167,'Damage costs'!$C$16:$C$43,0))/1000),\"\")","v":""},{"$f":"IFERROR(IF(OR($C$168=FALSE,LEFT($B167,3)<>\"NOX\"),BM58*INDEX('Damage costs'!$P$16:$P$43,MATCH($B167,'Damage costs'!$C$16:$C$43,0))/1000,BM58*INDEX('Damage costs'!$T$16:$T$43,MATCH($B167,'Damage costs'!$C$16:$C$43,0))/1000),\"\")","v":""},{"$f":"IFERROR(IF(OR($C$168=FALSE,LEFT($B167,3)<>\"NOX\"),BN58*INDEX('Damage costs'!$P$16:$P$43,MATCH($B167,'Damage costs'!$C$16:$C$43,0))/1000,BN58*INDEX('Damage costs'!$T$16:$T$43,MATCH($B167,'Damage costs'!$C$16:$C$43,0))/1000),\"\")","v":""},{"$f":"IFERROR(IF(OR($C$168=FALSE,LEFT($B167,3)<>\"NOX\"),BO58*INDEX('Damage costs'!$P$16:$P$43,MATCH($B167,'Damage costs'!$C$16:$C$43,0))/1000,BO58*INDEX('Damage costs'!$T$16:$T$43,MATCH($B167,'Damage costs'!$C$16:$C$43,0))/1000),\"\")","v":""},{"$f":"IFERROR(IF(OR($C$168=FALSE,LEFT($B167,3)<>\"NOX\"),BP58*INDEX('Damage costs'!$P$16:$P$43,MATCH($B167,'Damage costs'!$C$16:$C$43,0))/1000,BP58*INDEX('Damage costs'!$T$16:$T$43,MATCH($B167,'Damage costs'!$C$16:$C$43,0))/1000),\"\")","v":""},{"$f":"IFERROR(IF(OR($C$168=FALSE,LEFT($B167,3)<>\"NOX\"),BQ58*INDEX('Damage costs'!$P$16:$P$43,MATCH($B167,'Damage costs'!$C$16:$C$43,0))/1000,BQ58*INDEX('Damage costs'!$T$16:$T$43,MATCH($B167,'Damage costs'!$C$16:$C$43,0))/1000),\"\")","v":""},{"$f":"IFERROR(IF(OR($C$168=FALSE,LEFT($B167,3)<>\"NOX\"),BR58*INDEX('Damage costs'!$P$16:$P$43,MATCH($B167,'Damage costs'!$C$16:$C$43,0))/1000,BR58*INDEX('Damage costs'!$T$16:$T$43,MATCH($B167,'Damage costs'!$C$16:$C$43,0))/1000),\"\")","v":""},{"$f":"IFERROR(IF(OR($C$168=FALSE,LEFT($B167,3)<>\"NOX\"),BS58*INDEX('Damage costs'!$P$16:$P$43,MATCH($B167,'Damage costs'!$C$16:$C$43,0))/1000,BS58*INDEX('Damage costs'!$T$16:$T$43,MATCH($B167,'Damage costs'!$C$16:$C$43,0))/1000),\"\")","v":""},{"$f":"IFERROR(IF(OR($C$168=FALSE,LEFT($B167,3)<>\"NOX\"),BT58*INDEX('Damage costs'!$P$16:$P$43,MATCH($B167,'Damage costs'!$C$16:$C$43,0))/1000,BT58*INDEX('Damage costs'!$T$16:$T$43,MATCH($B167,'Damage costs'!$C$16:$C$43,0))/1000),\"\")","v":""},{"$f":"IFERROR(IF(OR($C$168=FALSE,LEFT($B167,3)<>\"NOX\"),BU58*INDEX('Damage costs'!$P$16:$P$43,MATCH($B167,'Damage costs'!$C$16:$C$43,0))/1000,BU58*INDEX('Damage costs'!$T$16:$T$43,MATCH($B167,'Damage costs'!$C$16:$C$43,0))/1000),\"\")","v":""},{"$f":"IFERROR(IF(OR($C$168=FALSE,LEFT($B167,3)<>\"NOX\"),BV58*INDEX('Damage costs'!$P$16:$P$43,MATCH($B167,'Damage costs'!$C$16:$C$43,0))/1000,BV58*INDEX('Damage costs'!$T$16:$T$43,MATCH($B167,'Damage costs'!$C$16:$C$43,0))/1000),\"\")","v":""},{"$f":"IFERROR(IF(OR($C$168=FALSE,LEFT($B167,3)<>\"NOX\"),BW58*INDEX('Damage costs'!$P$16:$P$43,MATCH($B167,'Damage costs'!$C$16:$C$43,0))/1000,BW58*INDEX('Damage costs'!$T$16:$T$43,MATCH($B167,'Damage costs'!$C$16:$C$43,0))/1000),\"\")","v":""},{"$f":"IFERROR(IF(OR($C$168=FALSE,LEFT($B167,3)<>\"NOX\"),BX58*INDEX('Damage costs'!$P$16:$P$43,MATCH($B167,'Damage costs'!$C$16:$C$43,0))/1000,BX58*INDEX('Damage costs'!$T$16:$T$43,MATCH($B167,'Damage costs'!$C$16:$C$43,0))/1000),\"\")","v":""},{"$f":"IFERROR(IF(OR($C$168=FALSE,LEFT($B167,3)<>\"NOX\"),BY58*INDEX('Damage costs'!$P$16:$P$43,MATCH($B167,'Damage costs'!$C$16:$C$43,0))/1000,BY58*INDEX('Damage costs'!$T$16:$T$43,MATCH($B167,'Damage costs'!$C$16:$C$43,0))/1000),\"\")","v":""},{"$f":"IFERROR(IF(OR($C$168=FALSE,LEFT($B167,3)<>\"NOX\"),BZ58*INDEX('Damage costs'!$P$16:$P$43,MATCH($B167,'Damage costs'!$C$16:$C$43,0))/1000,BZ58*INDEX('Damage costs'!$T$16:$T$43,MATCH($B167,'Damage costs'!$C$16:$C$43,0))/1000),\"\")","v":""},{"$f":"IFERROR(IF(OR($C$168=FALSE,LEFT($B167,3)<>\"NOX\"),CA58*INDEX('Damage costs'!$P$16:$P$43,MATCH($B167,'Damage costs'!$C$16:$C$43,0))/1000,CA58*INDEX('Damage costs'!$T$16:$T$43,MATCH($B167,'Damage costs'!$C$16:$C$43,0))/1000),\"\")","v":""},{"$f":"IFERROR(IF(OR($C$168=FALSE,LEFT($B167,3)<>\"NOX\"),CB58*INDEX('Damage costs'!$P$16:$P$43,MATCH($B167,'Damage costs'!$C$16:$C$43,0))/1000,CB58*INDEX('Damage costs'!$T$16:$T$43,MATCH($B167,'Damage costs'!$C$16:$C$43,0))/1000),\"\")","v":""},{"$f":"IFERROR(IF(OR($C$168=FALSE,LEFT($B167,3)<>\"NOX\"),CC58*INDEX('Damage costs'!$P$16:$P$43,MATCH($B167,'Damage costs'!$C$16:$C$43,0))/1000,CC58*INDEX('Damage costs'!$T$16:$T$43,MATCH($B167,'Damage costs'!$C$16:$C$43,0))/1000),\"\")","v":""},{"$f":"IFERROR(IF(OR($C$168=FALSE,LEFT($B167,3)<>\"NOX\"),CD58*INDEX('Damage costs'!$P$16:$P$43,MATCH($B167,'Damage costs'!$C$16:$C$43,0))/1000,CD58*INDEX('Damage costs'!$T$16:$T$43,MATCH($B167,'Damage costs'!$C$16:$C$43,0))/1000),\"\")","v":""},{"$f":"IFERROR(IF(OR($C$168=FALSE,LEFT($B167,3)<>\"NOX\"),CE58*INDEX('Damage costs'!$P$16:$P$43,MATCH($B167,'Damage costs'!$C$16:$C$43,0))/1000,CE58*INDEX('Damage costs'!$T$16:$T$43,MATCH($B167,'Damage costs'!$C$16:$C$43,0))/1000),\"\")","v":""},{"$f":"IFERROR(IF(OR($C$168=FALSE,LEFT($B167,3)<>\"NOX\"),CF58*INDEX('Damage costs'!$P$16:$P$43,MATCH($B167,'Damage costs'!$C$16:$C$43,0))/1000,CF58*INDEX('Damage costs'!$T$16:$T$43,MATCH($B167,'Damage costs'!$C$16:$C$43,0))/1000),\"\")","v":""},{"$f":"IFERROR(IF(OR($C$168=FALSE,LEFT($B167,3)<>\"NOX\"),CG58*INDEX('Damage costs'!$P$16:$P$43,MATCH($B167,'Damage costs'!$C$16:$C$43,0))/1000,CG58*INDEX('Damage costs'!$T$16:$T$43,MATCH($B167,'Damage costs'!$C$16:$C$43,0))/1000),\"\")","v":""},{"$f":"IFERROR(IF(OR($C$168=FALSE,LEFT($B167,3)<>\"NOX\"),CH58*INDEX('Damage costs'!$P$16:$P$43,MATCH($B167,'Damage costs'!$C$16:$C$43,0))/1000,CH58*INDEX('Damage costs'!$T$16:$T$43,MATCH($B167,'Damage costs'!$C$16:$C$43,0))/1000),\"\")","v":""},{"$f":"IFERROR(IF(OR($C$168=FALSE,LEFT($B167,3)<>\"NOX\"),CI58*INDEX('Damage costs'!$P$16:$P$43,MATCH($B167,'Damage costs'!$C$16:$C$43,0))/1000,CI58*INDEX('Damage costs'!$T$16:$T$43,MATCH($B167,'Damage costs'!$C$16:$C$43,0))/1000),\"\")","v":""},{"$f":"IFERROR(IF(OR($C$168=FALSE,LEFT($B167,3)<>\"NOX\"),CJ58*INDEX('Damage costs'!$P$16:$P$43,MATCH($B167,'Damage costs'!$C$16:$C$43,0))/1000,CJ58*INDEX('Damage costs'!$T$16:$T$43,MATCH($B167,'Damage costs'!$C$16:$C$43,0))/1000),\"\")","v":""},{"$f":"IFERROR(IF(OR($C$168=FALSE,LEFT($B167,3)<>\"NOX\"),CK58*INDEX('Damage costs'!$P$16:$P$43,MATCH($B167,'Damage costs'!$C$16:$C$43,0))/1000,CK58*INDEX('Damage costs'!$T$16:$T$43,MATCH($B167,'Damage costs'!$C$16:$C$43,0))/1000),\"\")","v":""},{"$f":"IFERROR(IF(OR($C$168=FALSE,LEFT($B167,3)<>\"NOX\"),CL58*INDEX('Damage costs'!$P$16:$P$43,MATCH($B167,'Damage costs'!$C$16:$C$43,0))/1000,CL58*INDEX('Damage costs'!$T$16:$T$43,MATCH($B167,'Damage costs'!$C$16:$C$43,0))/1000),\"\")","v":""},{"$f":"IFERROR(IF(OR($C$168=FALSE,LEFT($B167,3)<>\"NOX\"),CM58*INDEX('Damage costs'!$P$16:$P$43,MATCH($B167,'Damage costs'!$C$16:$C$43,0))/1000,CM58*INDEX('Damage costs'!$T$16:$T$43,MATCH($B167,'Damage costs'!$C$16:$C$43,0))/1000),\"\")","v":""},{"$f":"IFERROR(IF(OR($C$168=FALSE,LEFT($B167,3)<>\"NOX\"),CN58*INDEX('Damage costs'!$P$16:$P$43,MATCH($B167,'Damage costs'!$C$16:$C$43,0))/1000,CN58*INDEX('Damage costs'!$T$16:$T$43,MATCH($B167,'Damage costs'!$C$16:$C$43,0))/1000),\"\")","v":""},{"$f":"IFERROR(IF(OR($C$168=FALSE,LEFT($B167,3)<>\"NOX\"),CO58*INDEX('Damage costs'!$P$16:$P$43,MATCH($B167,'Damage costs'!$C$16:$C$43,0))/1000,CO58*INDEX('Damage costs'!$T$16:$T$43,MATCH($B167,'Damage costs'!$C$16:$C$43,0))/1000),\"\")","v":""},{"$f":"IFERROR(IF(OR($C$168=FALSE,LEFT($B167,3)<>\"NOX\"),CP58*INDEX('Damage costs'!$P$16:$P$43,MATCH($B167,'Damage costs'!$C$16:$C$43,0))/1000,CP58*INDEX('Damage costs'!$T$16:$T$43,MATCH($B167,'Damage costs'!$C$16:$C$43,0))/1000),\"\")","v":""},{"$f":"IFERROR(IF(OR($C$168=FALSE,LEFT($B167,3)<>\"NOX\"),CQ58*INDEX('Damage costs'!$P$16:$P$43,MATCH($B167,'Damage costs'!$C$16:$C$43,0))/1000,CQ58*INDEX('Damage costs'!$T$16:$T$43,MATCH($B167,'Damage costs'!$C$16:$C$43,0))/1000),\"\")","v":""},{"$f":"IFERROR(IF(OR($C$168=FALSE,LEFT($B167,3)<>\"NOX\"),CR58*INDEX('Damage costs'!$P$16:$P$43,MATCH($B167,'Damage costs'!$C$16:$C$43,0))/1000,CR58*INDEX('Damage costs'!$T$16:$T$43,MATCH($B167,'Damage costs'!$C$16:$C$43,0))/1000),\"\")","v":""},{"$f":"IFERROR(IF(OR($C$168=FALSE,LEFT($B167,3)<>\"NOX\"),CS58*INDEX('Damage costs'!$P$16:$P$43,MATCH($B167,'Damage costs'!$C$16:$C$43,0))/1000,CS58*INDEX('Damage costs'!$T$16:$T$43,MATCH($B167,'Damage costs'!$C$16:$C$43,0))/1000),\"\")","v":""},{"$f":"IFERROR(IF(OR($C$168=FALSE,LEFT($B167,3)<>\"NOX\"),CT58*INDEX('Damage costs'!$P$16:$P$43,MATCH($B167,'Damage costs'!$C$16:$C$43,0))/1000,CT58*INDEX('Damage costs'!$T$16:$T$43,MATCH($B167,'Damage costs'!$C$16:$C$43,0))/1000),\"\")","v":""},{"$f":"IFERROR(IF(OR($C$168=FALSE,LEFT($B167,3)<>\"NOX\"),CU58*INDEX('Damage costs'!$P$16:$P$43,MATCH($B167,'Damage costs'!$C$16:$C$43,0))/1000,CU58*INDEX('Damage costs'!$T$16:$T$43,MATCH($B167,'Damage costs'!$C$16:$C$43,0))/1000),\"\")","v":""},{"$f":"IFERROR(IF(OR($C$168=FALSE,LEFT($B167,3)<>\"NOX\"),CV58*INDEX('Damage costs'!$P$16:$P$43,MATCH($B167,'Damage costs'!$C$16:$C$43,0))/1000,CV58*INDEX('Damage costs'!$T$16:$T$43,MATCH($B167,'Damage costs'!$C$16:$C$43,0))/1000),\"\")","v":""},{"$f":"IFERROR(IF(OR($C$168=FALSE,LEFT($B167,3)<>\"NOX\"),CW58*INDEX('Damage costs'!$P$16:$P$43,MATCH($B167,'Damage costs'!$C$16:$C$43,0))/1000,CW58*INDEX('Damage costs'!$T$16:$T$43,MATCH($B167,'Damage costs'!$C$16:$C$43,0))/1000),\"\")","v":""},{"$f":"IFERROR(IF(OR($C$168=FALSE,LEFT($B167,3)<>\"NOX\"),CX58*INDEX('Damage costs'!$P$16:$P$43,MATCH($B167,'Damage costs'!$C$16:$C$43,0))/1000,CX58*INDEX('Damage costs'!$T$16:$T$43,MATCH($B167,'Damage costs'!$C$16:$C$43,0))/1000),\"\")","v":""},{"$f":"IFERROR(IF(OR($C$168=FALSE,LEFT($B167,3)<>\"NOX\"),CY58*INDEX('Damage costs'!$P$16:$P$43,MATCH($B167,'Damage costs'!$C$16:$C$43,0))/1000,CY58*INDEX('Damage costs'!$T$16:$T$43,MATCH($B167,'Damage costs'!$C$16:$C$43,0))/1000),\"\")","v":""}]
[null,"PM10 Used",{"$f":"IF(OR(LEFT(B162,4)=\"PM10\",LEFT(B163,4)=\"PM10\",LEFT(B164,4)=\"PM10\",LEFT(B165,4)=\"PM10\",LEFT(B166,4)=\"PM10\",LEFT(B167,4)=\"PM10\"),TRUE,FALSE)","v":false}]
[]
[null,"Uplift pa","%",{"$f":"'Discount and deflators'!$H$5","v":0.02}]
[null,"Uplift factor",null,{"$f":"IF(D$6=0,0,(1+$D170)^(D$6-'Data Input - General'!$F$22))","v":1},{"$f":"IF(E$6=0,0,(1+$D170)^(E$6-'Data Input - General'!$F$22))","v":1.02},{"$f":"IF(F$6=0,0,(1+$D170)^(F$6-'Data Input - General'!$F$22))","v":1.0404},{"$f":"IF(G$6=0,0,(1+$D170)^(G$6-'Data Input - General'!$F$22))","v":1.0612079999999999},{"$f":"IF(H$6=0,0,(1+$D170)^(H$6-'Data Input - General'!$F$22))","v":1.08243216},{"$f":"IF(I$6=0,0,(1+$D170)^(I$6-'Data Input - General'!$F$22))","v":1.1040808032},{"$f":"IF(J$6=0,0,(1+$D170)^(J$6-'Data Input - General'!$F$22))","v":1.1261624192640001},{"$f":"IF(K$6=0,0,(1+$D170)^(K$6-'Data Input - General'!$F$22))","v":1.1486856676492798},{"$f":"IF(L$6=0,0,(1+$D170)^(L$6-'Data Input - General'!$F$22))","v":1.1716593810022655},{"$f":"IF(M$6=0,0,(1+$D170)^(M$6-'Data Input - General'!$F$22))","v":1.1950925686223108},{"$f":"IF(N$6=0,0,(1+$D170)^(N$6-'Data Input - General'!$F$22))","v":1.2189944199947571},{"$f":"IF(O$6=0,0,(1+$D170)^(O$6-'Data Input - General'!$F$22))","v":1.243374308394652},{"$f":"IF(P$6=0,0,(1+$D170)^(P$6-'Data Input - General'!$F$22))","v":1.2682417945625453},{"$f":"IF(Q$6=0,0,(1+$D170)^(Q$6-'Data Input - General'!$F$22))","v":1.2936066304537961},{"$f":"IF(R$6=0,0,(1+$D170)^(R$6-'Data Input - General'!$F$22))","v":1.3194787630628722},{"$f":"IF(S$6=0,0,(1+$D170)^(S$6-'Data Input - General'!$F$22))","v":1.3458683383241292},{"$f":"IF(T$6=0,0,(1+$D170)^(T$6-'Data Input - General'!$F$22))","v":1.372785705090612},{"$f":"IF(U$6=0,0,(1+$D170)^(U$6-'Data Input - General'!$F$22))","v":1.4002414191924244},{"$f":"IF(V$6=0,0,(1+$D170)^(V$6-'Data Input - General'!$F$22))","v":1.4282462475762727},{"$f":"IF(W$6=0,0,(1+$D170)^(W$6-'Data Input - General'!$F$22))","v":1.4568111725277981},{"$f":"IF(X$6=0,0,(1+$D170)^(X$6-'Data Input - General'!$F$22))","v":1.4859473959783542},{"$f":"IF(Y$6=0,0,(1+$D170)^(Y$6-'Data Input - General'!$F$22))","v":1.5156663438979212},{"$f":"IF(Z$6=0,0,(1+$D170)^(Z$6-'Data Input - General'!$F$22))","v":1.5459796707758797},{"$f":"IF(AA$6=0,0,(1+$D170)^(AA$6-'Data Input - General'!$F$22))","v":1.576899264191397},{"$f":"IF(AB$6=0,0,(1+$D170)^(AB$6-'Data Input - General'!$F$22))","v":1.608437249475225},{"$f":"IF(AC$6=0,0,(1+$D170)^(AC$6-'Data Input - General'!$F$22))","v":1.6406059944647295},{"$f":"IF(AD$6=0,0,(1+$D170)^(AD$6-'Data Input - General'!$F$22))","v":1.6734181143540243},{"$f":"IF(AE$6=0,0,(1+$D170)^(AE$6-'Data Input - General'!$F$22))","v":1.7068864766411045},{"$f":"IF(AF$6=0,0,(1+$D170)^(AF$6-'Data Input - General'!$F$22))","v":1.7410242061739269},{"$f":"IF(AG$6=0,0,(1+$D170)^(AG$6-'Data Input - General'!$F$22))","v":1.7758446902974052},{"$f":"IF(AH$6=0,0,(1+$D170)^(AH$6-'Data Input - General'!$F$22))","v":1.8113615841033535},{"$f":"IF(AI$6=0,0,(1+$D170)^(AI$6-'Data Input - General'!$F$22))","v":0},{"$f":"IF(AJ$6=0,0,(1+$D170)^(AJ$6-'Data Input - General'!$F$22))","v":0},{"$f":"IF(AK$6=0,0,(1+$D170)^(AK$6-'Data Input - General'!$F$22))","v":0},{"$f":"IF(AL$6=0,0,(1+$D170)^(AL$6-'Data Input - General'!$F$22))","v":0},{"$f":"IF(AM$6=0,0,(1+$D170)^(AM$6-'Data Input - General'!$F$22))","v":0},{"$f":"IF(AN$6=0,0,(1+$D170)^(AN$6-'Data Input - General'!$F$22))","v":0},{"$f":"IF(AO$6=0,0,(1+$D170)^(AO$6-'Data Input - General'!$F$22))","v":0},{"$f":"IF(AP$6=0,0,(1+$D170)^(AP$6-'Data Input - General'!$F$22))","v":0},{"$f":"IF(AQ$6=0,0,(1+$D170)^(AQ$6-'Data Input - General'!$F$22))","v":0},{"$f":"IF(AR$6=0,0,(1+$D170)^(AR$6-'Data Input - General'!$F$22))","v":0},{"$f":"IF(AS$6=0,0,(1+$D170)^(AS$6-'Data Input - General'!$F$22))","v":0},{"$f":"IF(AT$6=0,0,(1+$D170)^(AT$6-'Data Input - General'!$F$22))","v":0},{"$f":"IF(AU$6=0,0,(1+$D170)^(AU$6-'Data Input - General'!$F$22))","v":0},{"$f":"IF(AV$6=0,0,(1+$D170)^(AV$6-'Data Input - General'!$F$22))","v":0},{"$f":"IF(AW$6=0,0,(1+$D170)^(AW$6-'Data Input - General'!$F$22))","v":0},{"$f":"IF(AX$6=0,0,(1+$D170)^(AX$6-'Data Input - General'!$F$22))","v":0},{"$f":"IF(AY$6=0,0,(1+$D170)^(AY$6-'Data Input - General'!$F$22))","v":0},{"$f":"IF(AZ$6=0,0,(1+$D170)^(AZ$6-'Data Input - General'!$F$22))","v":0},{"$f":"IF(BA$6=0,0,(1+$D170)^(BA$6-'Data Input - General'!$F$22))","v":0},{"$f":"IF(BB$6=0,0,(1+$D170)^(BB$6-'Data Input - General'!$F$22))","v":0},{"$f":"IF(BC$6=0,0,(1+$D170)^(BC$6-'Data Input - General'!$F$22))","v":0},{"$f":"IF(BD$6=0,0,(1+$D170)^(BD$6-'Data Input - General'!$F$22))","v":0},{"$f":"IF(BE$6=0,0,(1+$D170)^(BE$6-'Data Input - General'!$F$22))","v":0},{"$f":"IF(BF$6=0,0,(1+$D170)^(BF$6-'Data Input - General'!$F$22))","v":0},{"$f":"IF(BG$6=0,0,(1+$D170)^(BG$6-'Data Input - General'!$F$22))","v":0},{"$f":"IF(BH$6=0,0,(1+$D170)^(BH$6-'Data Input - General'!$F$22))","v":0},{"$f":"IF(BI$6=0,0,(1+$D170)^(BI$6-'Data Input - General'!$F$22))","v":0},{"$f":"IF(BJ$6=0,0,(1+$D170)^(BJ$6-'Data Input - General'!$F$22))","v":0},{"$f":"IF(BK$6=0,0,(1+$D170)^(BK$6-'Data Input - General'!$F$22))","v":0},{"$f":"IF(BL$6=0,0,(1+$D170)^(BL$6-'Data Input - General'!$F$22))","v":0},{"$f":"IF(BM$6=0,0,(1+$D170)^(BM$6-'Data Input - General'!$F$22))","v":0},{"$f":"IF(BN$6=0,0,(1+$D170)^(BN$6-'Data Input - General'!$F$22))","v":0},{"$f":"IF(BO$6=0,0,(1+$D170)^(BO$6-'Data Input - General'!$F$22))","v":0},{"$f":"IF(BP$6=0,0,(1+$D170)^(BP$6-'Data Input - General'!$F$22))","v":0},{"$f":"IF(BQ$6=0,0,(1+$D170)^(BQ$6-'Data Input - General'!$F$22))","v":0},{"$f":"IF(BR$6=0,0,(1+$D170)^(BR$6-'Data Input - General'!$F$22))","v":0},{"$f":"IF(BS$6=0,0,(1+$D170)^(BS$6-'Data Input - General'!$F$22))","v":0},{"$f":"IF(BT$6=0,0,(1+$D170)^(BT$6-'Data Input - General'!$F$22))","v":0},{"$f":"IF(BU$6=0,0,(1+$D170)^(BU$6-'Data Input - General'!$F$22))","v":0},{"$f":"IF(BV$6=0,0,(1+$D170)^(BV$6-'Data Input - General'!$F$22))","v":0},{"$f":"IF(BW$6=0,0,(1+$D170)^(BW$6-'Data Input - General'!$F$22))","v":0},{"$f":"IF(BX$6=0,0,(1+$D170)^(BX$6-'Data Input - General'!$F$22))","v":0},{"$f":"IF(BY$6=0,0,(1+$D170)^(BY$6-'Data Input - General'!$F$22))","v":0},{"$f":"IF(BZ$6=0,0,(1+$D170)^(BZ$6-'Data Input - General'!$F$22))","v":0},{"$f":"IF(CA$6=0,0,(1+$D170)^(CA$6-'Data Input - General'!$F$22))","v":0},{"$f":"IF(CB$6=0,0,(1+$D170)^(CB$6-'Data Input - General'!$F$22))","v":0},{"$f":"IF(CC$6=0,0,(1+$D170)^(CC$6-'Data Input - General'!$F$22))","v":0},{"$f":"IF(CD$6=0,0,(1+$D170)^(CD$6-'Data Input - General'!$F$22))","v":0},{"$f":"IF(CE$6=0,0,(1+$D170)^(CE$6-'Data Input - General'!$F$22))","v":0},{"$f":"IF(CF$6=0,0,(1+$D170)^(CF$6-'Data Input - General'!$F$22))","v":0},{"$f":"IF(CG$6=0,0,(1+$D170)^(CG$6-'Data Input - General'!$F$22))","v":0},{"$f":"IF(CH$6=0,0,(1+$D170)^(CH$6-'Data Input - General'!$F$22))","v":0},{"$f":"IF(CI$6=0,0,(1+$D170)^(CI$6-'Data Input - General'!$F$22))","v":0},{"$f":"IF(CJ$6=0,0,(1+$D170)^(CJ$6-'Data Input - General'!$F$22))","v":0},{"$f":"IF(CK$6=0,0,(1+$D170)^(CK$6-'Data Input - General'!$F$22))","v":0},{"$f":"IF(CL$6=0,0,(1+$D170)^(CL$6-'Data Input - General'!$F$22))","v":0},{"$f":"IF(CM$6=0,0,(1+$D170)^(CM$6-'Data Input - General'!$F$22))","v":0},{"$f":"IF(CN$6=0,0,(1+$D170)^(CN$6-'Data Input - General'!$F$22))","v":0},{"$f":"IF(CO$6=0,0,(1+$D170)^(CO$6-'Data Input - General'!$F$22))","v":0},{"$f":"IF(CP$6=0,0,(1+$D170)^(CP$6-'Data Input - General'!$F$22))","v":0},{"$f":"IF(CQ$6=0,0,(1+$D170)^(CQ$6-'Data Input - General'!$F$22))","v":0},{"$f":"IF(CR$6=0,0,(1+$D170)^(CR$6-'Data Input - General'!$F$22))","v":0},{"$f":"IF(CS$6=0,0,(1+$D170)^(CS$6-'Data Input - General'!$F$22))","v":0},{"$f":"IF(CT$6=0,0,(1+$D170)^(CT$6-'Data Input - General'!$F$22))","v":0},{"$f":"IF(CU$6=0,0,(1+$D170)^(CU$6-'Data Input - General'!$F$22))","v":0},{"$f":"IF(CV$6=0,0,(1+$D170)^(CV$6-'Data Input - General'!$F$22))","v":0},{"$f":"IF(CW$6=0,0,(1+$D170)^(CW$6-'Data Input - General'!$F$22))","v":0},{"$f":"IF(CX$6=0,0,(1+$D170)^(CX$6-'Data Input - General'!$F$22))","v":0},{"$f":"IF(CY$6=0,0,(1+$D170)^(CY$6-'Data Input - General'!$F$22))","v":0}]
[null,"Total value","£000's",{"$f":"SUM(D162:D167)*D171","v":10.600272350312391},{"$f":"SUM(E162:E167)*E171","v":10.812277797318639},{"$f":"SUM(F162:F167)*F171","v":11.028523353265012},11.249093820330311,3.0521041353320202,3.1131462180386604,3.1754091423994337,3.2389173252474217,0,0,0,0,0,0,0,0,0,0,0,0,0,0,0,0,0,0,0,0,0,0,0,0,{"$f":"SUM(AJ162:AJ167)*AJ171","v":0},0,0,0,0,0,0,0,0,0,0,0,0,0,0,0,0,0,0,0,0,0,0,0,0,0,0,0,{"$f":"SUM(BL162:BL167)*BL171","v":0},0,0,0,0,0,0,0,0,0,0,0,0,0,0,0,0,0,0,0,0,0,0,0,0,0,0,0,0,0,0,0,0,0,0,0,0,0,0,0]
[null,"Discounted total value","£000's",{"$f":"D172*D$7","v":10.600272350312391},10.446645214800618,10.295244559513653,10.146038116622151,2.6597324268617606,2.6211855800956481,2.583197383282668,2.5457597400466874,0,0,0,0,0,0,0,0,0,0,0,0,0,0,0,0,0,0,0,0,0,0,0,0,0,0,0,0,0,0,0,0,0,0,0,0,0,0,0,0,0,0,0,0,0,0,0,0,0,0,0,0,0,0,0,0,{"$f":"BP172*BP$7","v":0},0,0,0,0,0,0,0,0,0,0,0,0,0,0,0,0,0,0,0,0,0,0,0,0,0,0,0,0,0,0,0,0,0,0,0]
[]
[null,"Low high capex"]
[]
[null,"Low high range","%",{"$f":"'Data Input - Proposed'!F34","v":0.1}]
[]
[null,"Low high opex"]
[]
[null,"Low high range","%",{"$f":"'Data Input - Proposed'!F54","v":0.2}]
[]
[null,"Low high WACC"]
[]
[null,"Low WACC","%",{"$f":"'Data Input - General'!F16","v":0.06}]
[null,"Annualised payment","£000's",{"$f":"IFERROR(-PMT($D$185,SUM('Data Input - General'!$G$26:$G$28),D20*1000)/1000,0)","v":0}]
[null,"Annual value","£000's",{"$f":"IF(SUM($D$12:D$12)=0,0,$D$186)","v":0},{"$f":"IF(SUM($D$12:E$12)=0,0,$D$186)","v":0},{"$f":"IF(SUM($D$12:F$12)=0,0,$D$186)","v":0},{"$f":"IF(SUM($D$12:G$12)=0,0,$D$186)","v":0},{"$f":"IF(SUM($D$12:H$12)=0,0,$D$186)","v":0},{"$f":"IF(SUM($D$12:I$12)=0,0,$D$186)","v":0},{"$f":"IF(SUM($D$12:J$12)=0,0,$D$186)","v":0},{"$f":"IF(SUM($D$12:K$12)=0,0,$D$186)","v":0},{"$f":"IF(SUM($D$12:L$12)=0,0,$D$186)","v":0},{"$f":"IF(SUM($D$12:M$12)=0,0,$D$186)","v":0},{"$f":"IF(SUM($D$12:N$12)=0,0,$D$186)","v":0},{"$f":"IF(SUM($D$12:O$12)=0,0,$D$186)","v":0},{"$f":"IF(SUM($D$12:P$12)=0,0,$D$186)","v":0},{"$f":"IF(SUM($D$12:Q$12)=0,0,$D$186)","v":0},{"$f":"IF(SUM($D$12:R$12)=0,0,$D$186)","v":0},{"$f":"IF(SUM($D$12:S$12)=0,0,$D$186)","v":0},{"$f":"IF(SUM($D$12:T$12)=0,0,$D$186)","v":0},{"$f":"IF(SUM($D$12:U$12)=0,0,$D$186)","v":0},{"$f":"IF(SUM($D$12:V$12)=0,0,$D$186)","v":0},{"$f":"IF(SUM($D$12:W$12)=0,0,$D$186)","v":0},{"$f":"IF(SUM($D$12:X$12)=0,0,$D$186)","v":0},{"$f":"IF(SUM($D$12:Y$12)=0,0,$D$186)","v":0},{"$f":"IF(SUM($D$12:Z$12)=0,0,$D$186)","v":0},{"$f":"IF(SUM($D$12:AA$12)=0,0,$D$186)","v":0},{"$f":"IF(SUM($D$12:AB$12)=0,0,$D$186)","v":0},{"$f":"IF(SUM($D$12:AC$12)=0,0,$D$186)","v":0},{"$f":"IF(SUM($D$12:AD$12)=0,0,$D$186)","v":0},{"$f":"IF(SUM($D$12:AE$12)=0,0,$D$186)","v":0},{"$f":"IF(SUM($D$12:AF$12)=0,0,$D$186)","v":0},{"$f":"IF(SUM($D$12:AG$12)=0,0,$D$186)","v":0},{"$f":"IF(SUM($D$12:AH$12)=0,0,$D$186)","v":0},{"$f":"IF(SUM($D$12:AI$12)=0,0,$D$186)","v":0},{"$f":"IF(SUM($D$12:AJ$12)=0,0,$D$186)","v":0},{"$f":"IF(SUM($D$12:AK$12)=0,0,$D$186)","v":0},{"$f":"IF(SUM($D$12:AL$12)=0,0,$D$186)","v":0},{"$f":"IF(SUM($D$12:AM$12)=0,0,$D$186)","v":0},{"$f":"IF(SUM($D$12:AN$12)=0,0,$D$186)","v":0},{"$f":"IF(SUM($D$12:AO$12)=0,0,$D$186)","v":0},{"$f":"IF(SUM($D$12:AP$12)=0,0,$D$186)","v":0},{"$f":"IF(SUM($D$12:AQ$12)=0,0,$D$186)","v":0},{"$f":"IF(SUM($D$12:AR$12)=0,0,$D$186)","v":0},{"$f":"IF(SUM($D$12:AS$12)=0,0,$D$186)","v":0},{"$f":"IF(SUM($D$12:AT$12)=0,0,$D$186)","v":0},{"$f":"IF(SUM($D$12:AU$12)=0,0,$D$186)","v":0},{"$f":"IF(SUM($D$12:AV$12)=0,0,$D$186)","v":0},{"$f":"IF(SUM($D$12:AW$12)=0,0,$D$186)","v":0},{"$f":"IF(SUM($D$12:AX$12)=0,0,$D$186)","v":0},{"$f":"IF(SUM($D$12:AY$12)=0,0,$D$186)","v":0},{"$f":"IF(SUM($D$12:AZ$12)=0,0,$D$186)","v":0},{"$f":"IF(SUM($D$12:BA$12)=0,0,$D$186)","v":0},{"$f":"IF(SUM($D$12:BB$12)=0,0,$D$186)","v":0},{"$f":"IF(SUM($D$12:BC$12)=0,0,$D$186)","v":0},{"$f":"IF(SUM($D$12:BD$12)=0,0,$D$186)","v":0},{"$f":"IF(SUM($D$12:BE$12)=0,0,$D$186)","v":0},{"$f":"IF(SUM($D$12:BF$12)=0,0,$D$186)","v":0},{"$f":"IF(SUM($D$12:BG$12)=0,0,$D$186)","v":0},{"$f":"IF(SUM($D$12:BH$12)=0,0,$D$186)","v":0},{"$f":"IF(SUM($D$12:BI$12)=0,0,$D$186)","v":0},{"$f":"IF(SUM($D$12:BJ$12)=0,0,$D$186)","v":0},{"$f":"IF(SUM($D$12:BK$12)=0,0,$D$186)","v":0},{"$f":"IF(SUM($D$12:BL$12)=0,0,$D$186)","v":0},{"$f":"IF(SUM($D$12:BM$12)=0,0,$D$186)","v":0},{"$f":"IF(SUM($D$12:BN$12)=0,0,$D$186)","v":0},{"$f":"IF(SUM($D$12:BO$12)=0,0,$D$186)","v":0},{"$f":"IF(SUM($D$12:BP$12)=0,0,$D$186)","v":0},{"$f":"IF(SUM($D$12:BQ$12)=0,0,$D$186)","v":0},{"$f":"IF(SUM($D$12:BR$12)=0,0,$D$186)","v":0},{"$f":"IF(SUM($D$12:BS$12)=0,0,$D$186)","v":0},{"$f":"IF(SUM($D$12:BT$12)=0,0,$D$186)","v":0},{"$f":"IF(SUM($D$12:BU$12)=0,0,$D$186)","v":0},{"$f":"IF(SUM($D$12:BV$12)=0,0,$D$186)","v":0},{"$f":"IF(SUM($D$12:BW$12)=0,0,$D$186)","v":0},{"$f":"IF(SUM($D$12:BX$12)=0,0,$D$186)","v":0},{"$f":"IF(SUM($D$12:BY$12)=0,0,$D$186)","v":0},{"$f":"IF(SUM($D$12:BZ$12)=0,0,$D$186)","v":0},{"$f":"IF(SUM($D$12:CA$12)=0,0,$D$186)","v":0},{"$f":"IF(SUM($D$12:CB$12)=0,0,$D$186)","v":0},{"$f":"IF(SUM($D$12:CC$12)=0,0,$D$186)","v":0},{"$f":"IF(SUM($D$12:CD$12)=0,0,$D$186)","v":0},{"$f":"IF(SUM($D$12:CE$12)=0,0,$D$186)","v":0},{"$f":"IF(SUM($D$12:CF$12)=0,0,$D$186)","v":0},{"$f":"IF(SUM($D$12:CG$12)=0,0,$D$186)","v":0},{"$f":"IF(SUM($D$12:CH$12)=0,0,$D$186)","v":0},{"$f":"IF(SUM($D$12:CI$12)=0,0,$D$186)","v":0},{"$f":"IF(SUM($D$12:CJ$12)=0,0,$D$186)","v":0},{"$f":"IF(SUM($D$12:CK$12)=0,0,$D$186)","v":0},{"$f":"IF(SUM($D$12:CL$12)=0,0,$D$186)","v":0},{"$f":"IF(SUM($D$12:CM$12)=0,0,$D$186)","v":0},{"$f":"IF(SUM($D$12:CN$12)=0,0,$D$186)","v":0},{"$f":"IF(SUM($D$12:CO$12)=0,0,$D$186)","v":0},{"$f":"IF(SUM($D$12:CP$12)=0,0,$D$186)","v":0},{"$f":"IF(SUM($D$12:CQ$12)=0,0,$D$186)","v":0},{"$f":"IF(SUM($D$12:CR$12)=0,0,$D$186)","v":0},{"$f":"IF(SUM($D$12:CS$12)=0,0,$D$186)","v":0},{"$f":"IF(SUM($D$12:CT$12)=0,0,$D$186)","v":0},{"$f":"IF(SUM($D$12:CU$12)=0,0,$D$186)","v":0},{"$f":"IF(SUM($D$12:CV$12)=0,0,$D$186)","v":0},{"$f":"IF(SUM($D$12:CW$12)=0,0,$D$186)","v":0},{"$f":"IF(SUM($D$12:CX$12)=0,0,$D$186)","v":0},{"$f":"IF(SUM($D$12:CY$12)=0,0,$D$186)","v":0}]
[null,"Discounted WACC","£000's",{"$f":"D187*D$7","v":0},0,0,0,0,0,0,0,0,0,0,0,0,0,0,0,0,0,0,0,0,0,0,0,0,0,0,0,0,0,0,0,0,0,0,0,0,0,0,0,0,0,0,0,0,0,0,0,0,0,0,0,0,0,0,0,0,0,0,0,0,0,0,0,{"$f":"BP187*BP$7","v":0},0,0,0,0,0,0,0,0,0,0,0,0,0,0,0,0,0,0,0,0,0,0,0,0,0,0,0,0,0,0,0,0,0,0,0]
[]
[null,"Financing costs"]
[null,"Financing costs (if entered manually)","£000's",{"$f":"'Data Input - Proposed'!H41","v":0},{"$f":"'Data Input - Proposed'!I41","v":0},{"$f":"'Data Input - Proposed'!J41","v":0},{"$f":"'Data Input - Proposed'!K41","v":0},{"$f":"'Data Input - Proposed'!L41","v":0},{"$f":"'Data Input - Proposed'!M41","v":0},{"$f":"'Data Input - Proposed'!N41","v":0},{"$f":"'Data Input - Proposed'!O41","v":0},{"$f":"'Data Input - Proposed'!P41","v":0},{"$f":"'Data Input - Proposed'!Q41","v":0},{"$f":"'Data Input - Proposed'!R41","v":0},{"$f":"'Data Input - Proposed'!S41","v":0},{"$f":"'Data Input - Proposed'!T41","v":0},{"$f":"'Data Input - Proposed'!U41","v":0},{"$f":"'Data Input - Proposed'!V41","v":0},{"$f":"'Data Input - Proposed'!W41","v":0},{"$f":"'Data Input - Proposed'!X41","v":0},{"$f":"'Data Input - Proposed'!Y41","v":0},{"$f":"'Data Input - Proposed'!Z41","v":0},{"$f":"'Data Input - Proposed'!AA41","v":0},{"$f":"'Data Input - Proposed'!AB41","v":0},{"$f":"'Data Input - Proposed'!AC41","v":0},{"$f":"'Data Input - Proposed'!AD41","v":0},{"$f":"'Data Input - Proposed'!AE41","v":0},{"$f":"'Data Input - Proposed'!AF41","v":0},{"$f":"'Data Input - Proposed'!AG41","v":0},{"$f":"'Data Input - Proposed'!AH41","v":0},{"$f":"'Data Input - Proposed'!AI41","v":0},{"$f":"'Data Input - Proposed'!AJ41","v":0},{"$f":"'Data Input - Proposed'!AK41","v":0},{"$f":"'Data Input - Proposed'!AL41","v":0},{"$f":"'Data Input - Proposed'!AM41","v":0},{"$f":"'Data Input - Proposed'!AN41","v":0},{"$f":"'Data Input - Proposed'!AO41","v":0},{"$f":"'Data Input - Proposed'!AP41","v":0},{"$f":"'Data Input - Proposed'!AQ41","v":0},{"$f":"'Data Input - Proposed'!AR41","v":0},{"$f":"'Data Input - Proposed'!AS41","v":0},{"$f":"'Data Input - Proposed'!AT41","v":0},{"$f":"'Data Input - Proposed'!AU41","v":0},{"$f":"'Data Input - Proposed'!AV41","v":0},{"$f":"'Data Input - Proposed'!AW41","v":0},{"$f":"'Data Input - Proposed'!AX41","v":0},{"$f":"'Data Input - Proposed'!AY41","v":0},{"$f":"'Data Input - Proposed'!AZ41","v":0},{"$f":"'Data Input - Proposed'!BA41","v":0},{"$f":"'Data Input - Proposed'!BB41","v":0},{"$f":"'Data Input - Proposed'!BC41","v":0},{"$f":"'Data Input - Proposed'!BD41","v":0},{"$f":"'Data Input - Proposed'!BE41","v":0},{"$f":"'Data Input - Proposed'!BF41","v":0},{"$f":"'Data Input - Proposed'!BG41","v":0},{"$f":"'Data Input - Proposed'!BH41","v":0},{"$f":"'Data Input - Proposed'!BI41","v":0},{"$f":"'Data Input - Proposed'!BJ41","v":0},{"$f":"'Data Input - Proposed'!BK41","v":0},{"$f":"'Data Input - Proposed'!BL41","v":0},{"$f":"'Data Input - Proposed'!BM41","v":0},{"$f":"'Data Input - Proposed'!BN41","v":0},{"$f":"'Data Input - Proposed'!BO41","v":0},{"$f":"'Data Input - Proposed'!BP41","v":0},{"$f":"'Data Input - Proposed'!BQ41","v":0},{"$f":"'Data Input - Proposed'!BR41","v":0},{"$f":"'Data Input - Proposed'!BS41","v":0},{"$f":"'Data Input - Proposed'!BT41","v":0},{"$f":"'Data Input - Proposed'!BU41","v":0},{"$f":"'Data Input - Proposed'!BV41","v":0},{"$f":"'Data Input - Proposed'!BW41","v":0},{"$f":"'Data Input - Proposed'!BX41","v":0},{"$f":"'Data Input - Proposed'!BY41","v":0},{"$f":"'Data Input - Proposed'!BZ41","v":0},{"$f":"'Data Input - Proposed'!CA41","v":0},{"$f":"'Data Input - Proposed'!CB41","v":0},{"$f":"'Data Input - Proposed'!CC41","v":0},{"$f":"'Data Input - Proposed'!CD41","v":0},{"$f":"'Data Input - Proposed'!CE41","v":0},{"$f":"'Data Input - Proposed'!CF41","v":0},{"$f":"'Data Input - Proposed'!CG41","v":0},{"$f":"'Data Input - Proposed'!CH41","v":0},{"$f":"'Data Input - Proposed'!CI41","v":0},{"$f":"'Data Input - Proposed'!CJ41","v":0},{"$f":"'Data Input - Proposed'!CK41","v":0},{"$f":"'Data Input - Proposed'!CL41","v":0},{"$f":"'Data Input - Proposed'!CM41","v":0},{"$f":"'Data Input - Proposed'!CN41","v":0},{"$f":"'Data Input - Proposed'!CO41","v":0},{"$f":"'Data Input - Proposed'!CP41","v":0},{"$f":"'Data Input - Proposed'!CQ41","v":0},{"$f":"'Data Input - Proposed'!CR41","v":0},{"$f":"'Data Input - Proposed'!CS41","v":0},{"$f":"'Data Input - Proposed'!CT41","v":0},{"$f":"'Data Input - Proposed'!CU41","v":0},{"$f":"'Data Input - Proposed'!CV41","v":0},{"$f":"'Data Input - Proposed'!CW41","v":0},{"$f":"'Data Input - Proposed'!CX41","v":0},{"$f":"'Data Input - Proposed'!CY41","v":0},{"$f":"'Data Input - Proposed'!CZ41","v":0},{"$f":"'Data Input - Proposed'!DA41","v":0},{"$f":"'Data Input - Proposed'!DB41","v":0},{"$f":"'Data Input - Proposed'!DC41","v":0}]
[null,"Discounted finacning","£000's",{"$f":"D191*D$7","v":0},0,0,0,0,0,0,0,0,0,0,0,0,0,0,0,0,0,0,0,0,0,0,0,0,0,0,0,0,0,0,0,0,0,0,0,0,0,0,0,0,0,0,0,0,0,0,0,0,0,0,0,0,0,0,0,0,0,0,0,0,0,0,0,{"$f":"BP191*BP$7","v":0},0,0,0,0,0,0,0,0,0,0,0,0,0,0,0,0,0,0,0,0,0,0,0,0,0,0,0,0,0,0,0,0,0,0,0]
[]
[null,"Total capex","£000's",{"$f":"IF('Data Input - Proposed'!$F$37=\"Yes\",D192+D13,D188)","v":0},{"$f":"IF('Data Input - Proposed'!$F$37=\"Yes\",E192+E13,E188)","v":0},{"$f":"IF('Data Input - Proposed'!$F$37=\"Yes\",F192+F13,F188)","v":0},{"$f":"IF('Data Input - Proposed'!$F$37=\"Yes\",G192+G13,G188)","v":0},{"$f":"IF('Data Input - Proposed'!$F$37=\"Yes\",H192+H13,H188)","v":0},{"$f":"IF('Data Input - Proposed'!$F$37=\"Yes\",I192+I13,I188)","v":0},{"$f":"IF('Data Input - Proposed'!$F$37=\"Yes\",J192+J13,J188)","v":0},{"$f":"IF('Data Input - Proposed'!$F$37=\"Yes\",K192+K13,K188)","v":0},{"$f":"IF('Data Input - Proposed'!$F$37=\"Yes\",L192+L13,L188)","v":0},{"$f":"IF('Data Input - Proposed'!$F$37=\"Yes\",M192+M13,M188)","v":0},{"$f":"IF('Data Input - Proposed'!$F$37=\"Yes\",N192+N13,N188)","v":0},{"$f":"IF('Data Input - Proposed'!$F$37=\"Yes\",O192+O13,O188)","v":0},{"$f":"IF('Data Input - Proposed'!$F$37=\"Yes\",P192+P13,P188)","v":0},{"$f":"IF('Data Input - Proposed'!$F$37=\"Yes\",Q192+Q13,Q188)","v":0},{"$f":"IF('Data Input - Proposed'!$F$37=\"Yes\",R192+R13,R188)","v":0},{"$f":"IF('Data Input - Proposed'!$F$37=\"Yes\",S192+S13,S188)","v":0},{"$f":"IF('Data Input - Proposed'!$F$37=\"Yes\",T192+T13,T188)","v":0},{"$f":"IF('Data Input - Proposed'!$F$37=\"Yes\",U192+U13,U188)","v":0},{"$f":"IF('Data Input - Proposed'!$F$37=\"Yes\",V192+V13,V188)","v":0},{"$f":"IF('Data Input - Proposed'!$F$37=\"Yes\",W192+W13,W188)","v":0},{"$f":"IF('Data Input - Proposed'!$F$37=\"Yes\",X192+X13,X188)","v":0},{"$f":"IF('Data Input - Proposed'!$F$37=\"Yes\",Y192+Y13,Y188)","v":0},{"$f":"IF('Data Input - Proposed'!$F$37=\"Yes\",Z192+Z13,Z188)","v":0},{"$f":"IF('Data Input - Proposed'!$F$37=\"Yes\",AA192+AA13,AA188)","v":0},{"$f":"IF('Data Input - Proposed'!$F$37=\"Yes\",AB192+AB13,AB188)","v":0},{"$f":"IF('Data Input - Proposed'!$F$37=\"Yes\",AC192+AC13,AC188)","v":0},{"$f":"IF('Data Input - Proposed'!$F$37=\"Yes\",AD192+AD13,AD188)","v":0},{"$f":"IF('Data Input - Proposed'!$F$37=\"Yes\",AE192+AE13,AE188)","v":0},{"$f":"IF('Data Input - Proposed'!$F$37=\"Yes\",AF192+AF13,AF188)","v":0},{"$f":"IF('Data Input - Proposed'!$F$37=\"Yes\",AG192+AG13,AG188)","v":0},{"$f":"IF('Data Input - Proposed'!$F$37=\"Yes\",AH192+AH13,AH188)","v":0},{"$f":"IF('Data Input - Proposed'!$F$37=\"Yes\",AI192+AI13,AI188)","v":0},{"$f":"IF('Data Input - Proposed'!$F$37=\"Yes\",AJ192+AJ13,AJ188)","v":0},{"$f":"IF('Data Input - Proposed'!$F$37=\"Yes\",AK192+AK13,AK188)","v":0},{"$f":"IF('Data Input - Proposed'!$F$37=\"Yes\",AL192+AL13,AL188)","v":0},{"$f":"IF('Data Input - Proposed'!$F$37=\"Yes\",AM192+AM13,AM188)","v":0},{"$f":"IF('Data Input - Proposed'!$F$37=\"Yes\",AN192+AN13,AN188)","v":0},{"$f":"IF('Data Input - Proposed'!$F$37=\"Yes\",AO192+AO13,AO188)","v":0},{"$f":"IF('Data Input - Proposed'!$F$37=\"Yes\",AP192+AP13,AP188)","v":0},{"$f":"IF('Data Input - Proposed'!$F$37=\"Yes\",AQ192+AQ13,AQ188)","v":0},{"$f":"IF('Data Input - Proposed'!$F$37=\"Yes\",AR192+AR13,AR188)","v":0},{"$f":"IF('Data Input - Proposed'!$F$37=\"Yes\",AS192+AS13,AS188)","v":0},{"$f":"IF('Data Input - Proposed'!$F$37=\"Yes\",AT192+AT13,AT188)","v":0},{"$f":"IF('Data Input - Proposed'!$F$37=\"Yes\",AU192+AU13,AU188)","v":0},{"$f":"IF('Data Input - Proposed'!$F$37=\"Yes\",AV192+AV13,AV188)","v":0},{"$f":"IF('Data Input - Proposed'!$F$37=\"Yes\",AW192+AW13,AW188)","v":0},{"$f":"IF('Data Input - Proposed'!$F$37=\"Yes\",AX192+AX13,AX188)","v":0},{"$f":"IF('Data Input - Proposed'!$F$37=\"Yes\",AY192+AY13,AY188)","v":0},{"$f":"IF('Data Input - Proposed'!$F$37=\"Yes\",AZ192+AZ13,AZ188)","v":0},{"$f":"IF('Data Input - Proposed'!$F$37=\"Yes\",BA192+BA13,BA188)","v":0},{"$f":"IF('Data Input - Proposed'!$F$37=\"Yes\",BB192+BB13,BB188)","v":0},{"$f":"IF('Data Input - Proposed'!$F$37=\"Yes\",BC192+BC13,BC188)","v":0},{"$f":"IF('Data Input - Proposed'!$F$37=\"Yes\",BD192+BD13,BD188)","v":0},{"$f":"IF('Data Input - Proposed'!$F$37=\"Yes\",BE192+BE13,BE188)","v":0},{"$f":"IF('Data Input - Proposed'!$F$37=\"Yes\",BF192+BF13,BF188)","v":0},{"$f":"IF('Data Input - Proposed'!$F$37=\"Yes\",BG192+BG13,BG188)","v":0},{"$f":"IF('Data Input - Proposed'!$F$37=\"Yes\",BH192+BH13,BH188)","v":0},{"$f":"IF('Data Input - Proposed'!$F$37=\"Yes\",BI192+BI13,BI188)","v":0},{"$f":"IF('Data Input - Proposed'!$F$37=\"Yes\",BJ192+BJ13,BJ188)","v":0},{"$f":"IF('Data Input - Proposed'!$F$37=\"Yes\",BK192+BK13,BK188)","v":0},{"$f":"IF('Data Input - Proposed'!$F$37=\"Yes\",BL192+BL13,BL188)","v":0},{"$f":"IF('Data Input - Proposed'!$F$37=\"Yes\",BM192+BM13,BM188)","v":0},{"$f":"IF('Data Input - Proposed'!$F$37=\"Yes\",BN192+BN13,BN188)","v":0},{"$f":"IF('Data Input - Proposed'!$F$37=\"Yes\",BO192+BO13,BO188)","v":0},{"$f":"IF('Data Input - Proposed'!$F$37=\"Yes\",BP192+BP13,BP188)","v":0},{"$f":"IF('Data Input - Proposed'!$F$37=\"Yes\",BQ192+BQ13,BQ188)","v":0},{"$f":"IF('Data Input - Proposed'!$F$37=\"Yes\",BR192+BR13,BR188)","v":0},{"$f":"IF('Data Input - Proposed'!$F$37=\"Yes\",BS192+BS13,BS188)","v":0},{"$f":"IF('Data Input - Proposed'!$F$37=\"Yes\",BT192+BT13,BT188)","v":0},{"$f":"IF('Data Input - Proposed'!$F$37=\"Yes\",BU192+BU13,BU188)","v":0},{"$f":"IF('Data Input - Proposed'!$F$37=\"Yes\",BV192+BV13,BV188)","v":0},{"$f":"IF('Data Input - Proposed'!$F$37=\"Yes\",BW192+BW13,BW188)","v":0},{"$f":"IF('Data Input - Proposed'!$F$37=\"Yes\",BX192+BX13,BX188)","v":0},{"$f":"IF('Data Input - Proposed'!$F$37=\"Yes\",BY192+BY13,BY188)","v":0},{"$f":"IF('Data Input - Proposed'!$F$37=\"Yes\",BZ192+BZ13,BZ188)","v":0},{"$f":"IF('Data Input - Proposed'!$F$37=\"Yes\",CA192+CA13,CA188)","v":0},{"$f":"IF('Data Input - Proposed'!$F$37=\"Yes\",CB192+CB13,CB188)","v":0},{"$f":"IF('Data Input - Proposed'!$F$37=\"Yes\",CC192+CC13,CC188)","v":0},{"$f":"IF('Data Input - Proposed'!$F$37=\"Yes\",CD192+CD13,CD188)","v":0},{"$f":"IF('Data Input - Proposed'!$F$37=\"Yes\",CE192+CE13,CE188)","v":0},{"$f":"IF('Data Input - Proposed'!$F$37=\"Yes\",CF192+CF13,CF188)","v":0},{"$f":"IF('Data Input - Proposed'!$F$37=\"Yes\",CG192+CG13,CG188)","v":0},{"$f":"IF('Data Input - Proposed'!$F$37=\"Yes\",CH192+CH13,CH188)","v":0},{"$f":"IF('Data Input - Proposed'!$F$37=\"Yes\",CI192+CI13,CI188)","v":0},{"$f":"IF('Data Input - Proposed'!$F$37=\"Yes\",CJ192+CJ13,CJ188)","v":0},{"$f":"IF('Data Input - Proposed'!$F$37=\"Yes\",CK192+CK13,CK188)","v":0},{"$f":"IF('Data Input - Proposed'!$F$37=\"Yes\",CL192+CL13,CL188)","v":0},{"$f":"IF('Data Input - Proposed'!$F$37=\"Yes\",CM192+CM13,CM188)","v":0},{"$f":"IF('Data Input - Proposed'!$F$37=\"Yes\",CN192+CN13,CN188)","v":0},{"$f":"IF('Data Input - Proposed'!$F$37=\"Yes\",CO192+CO13,CO188)","v":0},{"$f":"IF('Data Input - Proposed'!$F$37=\"Yes\",CP192+CP13,CP188)","v":0},{"$f":"IF('Data Input - Proposed'!$F$37=\"Yes\",CQ192+CQ13,CQ188)","v":0},{"$f":"IF('Data Input - Proposed'!$F$37=\"Yes\",CR192+CR13,CR188)","v":0},{"$f":"IF('Data Input - Proposed'!$F$37=\"Yes\",CS192+CS13,CS188)","v":0},{"$f":"IF('Data Input - Proposed'!$F$37=\"Yes\",CT192+CT13,CT188)","v":0},{"$f":"IF('Data Input - Proposed'!$F$37=\"Yes\",CU192+CU13,CU188)","v":0},{"$f":"IF('Data Input - Proposed'!$F$37=\"Yes\",CV192+CV13,CV188)","v":0},{"$f":"IF('Data Input - Proposed'!$F$37=\"Yes\",CW192+CW13,CW188)","v":0},{"$f":"IF('Data Input - Proposed'!$F$37=\"Yes\",CX192+CX13,CX188)","v":0},{"$f":"IF('Data Input - Proposed'!$F$37=\"Yes\",CY192+CY13,CY188)","v":0}]
[]
[null,"High WACC","%",{"$f":"'Data Input - General'!H16","v":7.0000000000000007E-2}]
[null,"Annualised payment","£000's",{"$f":"IFERROR(-PMT($D$196,SUM('Data Input - General'!$G$26:$G$28),D20*1000)/1000,0)","v":0}]
[null,"Annual value","£000's",{"$f":"IF(SUM($D$12:D$12)=0,0,$D$197)","v":0},{"$f":"IF(SUM($D$12:E$12)=0,0,$D$197)","v":0},{"$f":"IF(SUM($D$12:F$12)=0,0,$D$197)","v":0},{"$f":"IF(SUM($D$12:G$12)=0,0,$D$197)","v":0},{"$f":"IF(SUM($D$12:H$12)=0,0,$D$197)","v":0},{"$f":"IF(SUM($D$12:I$12)=0,0,$D$197)","v":0},{"$f":"IF(SUM($D$12:J$12)=0,0,$D$197)","v":0},{"$f":"IF(SUM($D$12:K$12)=0,0,$D$197)","v":0},{"$f":"IF(SUM($D$12:L$12)=0,0,$D$197)","v":0},{"$f":"IF(SUM($D$12:M$12)=0,0,$D$197)","v":0},{"$f":"IF(SUM($D$12:N$12)=0,0,$D$197)","v":0},{"$f":"IF(SUM($D$12:O$12)=0,0,$D$197)","v":0},{"$f":"IF(SUM($D$12:P$12)=0,0,$D$197)","v":0},{"$f":"IF(SUM($D$12:Q$12)=0,0,$D$197)","v":0},{"$f":"IF(SUM($D$12:R$12)=0,0,$D$197)","v":0},{"$f":"IF(SUM($D$12:S$12)=0,0,$D$197)","v":0},{"$f":"IF(SUM($D$12:T$12)=0,0,$D$197)","v":0},{"$f":"IF(SUM($D$12:U$12)=0,0,$D$197)","v":0},{"$f":"IF(SUM($D$12:V$12)=0,0,$D$197)","v":0},{"$f":"IF(SUM($D$12:W$12)=0,0,$D$197)","v":0},{"$f":"IF(SUM($D$12:X$12)=0,0,$D$197)","v":0},{"$f":"IF(SUM($D$12:Y$12)=0,0,$D$197)","v":0},{"$f":"IF(SUM($D$12:Z$12)=0,0,$D$197)","v":0},{"$f":"IF(SUM($D$12:AA$12)=0,0,$D$197)","v":0},{"$f":"IF(SUM($D$12:AB$12)=0,0,$D$197)","v":0},{"$f":"IF(SUM($D$12:AC$12)=0,0,$D$197)","v":0},{"$f":"IF(SUM($D$12:AD$12)=0,0,$D$197)","v":0},{"$f":"IF(SUM($D$12:AE$12)=0,0,$D$197)","v":0},{"$f":"IF(SUM($D$12:AF$12)=0,0,$D$197)","v":0},{"$f":"IF(SUM($D$12:AG$12)=0,0,$D$197)","v":0},{"$f":"IF(SUM($D$12:AH$12)=0,0,$D$197)","v":0},{"$f":"IF(SUM($D$12:AI$12)=0,0,$D$197)","v":0},{"$f":"IF(SUM($D$12:AJ$12)=0,0,$D$197)","v":0},{"$f":"IF(SUM($D$12:AK$12)=0,0,$D$197)","v":0},{"$f":"IF(SUM($D$12:AL$12)=0,0,$D$197)","v":0},{"$f":"IF(SUM($D$12:AM$12)=0,0,$D$197)","v":0},{"$f":"IF(SUM($D$12:AN$12)=0,0,$D$197)","v":0},{"$f":"IF(SUM($D$12:AO$12)=0,0,$D$197)","v":0},{"$f":"IF(SUM($D$12:AP$12)=0,0,$D$197)","v":0},{"$f":"IF(SUM($D$12:AQ$12)=0,0,$D$197)","v":0},{"$f":"IF(SUM($D$12:AR$12)=0,0,$D$197)","v":0},{"$f":"IF(SUM($D$12:AS$12)=0,0,$D$197)","v":0},{"$f":"IF(SUM($D$12:AT$12)=0,0,$D$197)","v":0},{"$f":"IF(SUM($D$12:AU$12)=0,0,$D$197)","v":0},{"$f":"IF(SUM($D$12:AV$12)=0,0,$D$197)","v":0},{"$f":"IF(SUM($D$12:AW$12)=0,0,$D$197)","v":0},{"$f":"IF(SUM($D$12:AX$12)=0,0,$D$197)","v":0},{"$f":"IF(SUM($D$12:AY$12)=0,0,$D$197)","v":0},{"$f":"IF(SUM($D$12:AZ$12)=0,0,$D$197)","v":0},{"$f":"IF(SUM($D$12:BA$12)=0,0,$D$197)","v":0},{"$f":"IF(SUM($D$12:BB$12)=0,0,$D$197)","v":0},{"$f":"IF(SUM($D$12:BC$12)=0,0,$D$197)","v":0},{"$f":"IF(SUM($D$12:BD$12)=0,0,$D$197)","v":0},{"$f":"IF(SUM($D$12:BE$12)=0,0,$D$197)","v":0},{"$f":"IF(SUM($D$12:BF$12)=0,0,$D$197)","v":0},{"$f":"IF(SUM($D$12:BG$12)=0,0,$D$197)","v":0},{"$f":"IF(SUM($D$12:BH$12)=0,0,$D$197)","v":0},{"$f":"IF(SUM($D$12:BI$12)=0,0,$D$197)","v":0},{"$f":"IF(SUM($D$12:BJ$12)=0,0,$D$197)","v":0},{"$f":"IF(SUM($D$12:BK$12)=0,0,$D$197)","v":0},{"$f":"IF(SUM($D$12:BL$12)=0,0,$D$197)","v":0},{"$f":"IF(SUM($D$12:BM$12)=0,0,$D$197)","v":0},{"$f":"IF(SUM($D$12:BN$12)=0,0,$D$197)","v":0},{"$f":"IF(SUM($D$12:BO$12)=0,0,$D$197)","v":0},{"$f":"IF(SUM($D$12:BP$12)=0,0,$D$197)","v":0},{"$f":"IF(SUM($D$12:BQ$12)=0,0,$D$197)","v":0},{"$f":"IF(SUM($D$12:BR$12)=0,0,$D$197)","v":0},{"$f":"IF(SUM($D$12:BS$12)=0,0,$D$197)","v":0},{"$f":"IF(SUM($D$12:BT$12)=0,0,$D$197)","v":0},{"$f":"IF(SUM($D$12:BU$12)=0,0,$D$197)","v":0},{"$f":"IF(SUM($D$12:BV$12)=0,0,$D$197)","v":0},{"$f":"IF(SUM($D$12:BW$12)=0,0,$D$197)","v":0},{"$f":"IF(SUM($D$12:BX$12)=0,0,$D$197)","v":0},{"$f":"IF(SUM($D$12:BY$12)=0,0,$D$197)","v":0},{"$f":"IF(SUM($D$12:BZ$12)=0,0,$D$197)","v":0},{"$f":"IF(SUM($D$12:CA$12)=0,0,$D$197)","v":0},{"$f":"IF(SUM($D$12:CB$12)=0,0,$D$197)","v":0},{"$f":"IF(SUM($D$12:CC$12)=0,0,$D$197)","v":0},{"$f":"IF(SUM($D$12:CD$12)=0,0,$D$197)","v":0},{"$f":"IF(SUM($D$12:CE$12)=0,0,$D$197)","v":0},{"$f":"IF(SUM($D$12:CF$12)=0,0,$D$197)","v":0},{"$f":"IF(SUM($D$12:CG$12)=0,0,$D$197)","v":0},{"$f":"IF(SUM($D$12:CH$12)=0,0,$D$197)","v":0},{"$f":"IF(SUM($D$12:CI$12)=0,0,$D$197)","v":0},{"$f":"IF(SUM($D$12:CJ$12)=0,0,$D$197)","v":0},{"$f":"IF(SUM($D$12:CK$12)=0,0,$D$197)","v":0},{"$f":"IF(SUM($D$12:CL$12)=0,0,$D$197)","v":0},{"$f":"IF(SUM($D$12:CM$12)=0,0,$D$197)","v":0},{"$f":"IF(SUM($D$12:CN$12)=0,0,$D$197)","v":0},{"$f":"IF(SUM($D$12:CO$12)=0,0,$D$197)","v":0},{"$f":"IF(SUM($D$12:CP$12)=0,0,$D$197)","v":0},{"$f":"IF(SUM($D$12:CQ$12)=0,0,$D$197)","v":0},{"$f":"IF(SUM($D$12:CR$12)=0,0,$D$197)","v":0},{"$f":"IF(SUM($D$12:CS$12)=0,0,$D$197)","v":0},{"$f":"IF(SUM($D$12:CT$12)=0,0,$D$197)","v":0},{"$f":"IF(SUM($D$12:CU$12)=0,0,$D$197)","v":0},{"$f":"IF(SUM($D$12:CV$12)=0,0,$D$197)","v":0},{"$f":"IF(SUM($D$12:CW$12)=0,0,$D$197)","v":0},{"$f":"IF(SUM($D$12:CX$12)=0,0,$D$197)","v":0},{"$f":"IF(SUM($D$12:CY$12)=0,0,$D$197)","v":0}]
[null,"Discounted WACC","£000's",{"$f":"D198*D$7","v":0},0,0,0,0,0,0,0,0,0,0,0,0,0,0,0,0,0,0,0,0,0,0,0,0,0,0,0,0,0,0,0,0,0,0,0,0,0,0,0,0,0,0,0,0,0,0,0,0,0,0,0,0,0,0,0,0,0,0,0,0,0,0,0,{"$f":"BP198*BP$7","v":0},0,0,0,0,0,0,0,0,0,0,0,0,0,0,0,0,0,0,0,0,0,0,0,0,0,0,0,0,0,0,0,0,0,0,0]
[]
[null,"Financing costs"]
[null,"Financing costs (if entered manually)","£000's",{"$f":"'Data Input - Proposed'!H42","v":0},{"$f":"'Data Input - Proposed'!I42","v":0},{"$f":"'Data Input - Proposed'!J42","v":0},{"$f":"'Data Input - Proposed'!K42","v":0},{"$f":"'Data Input - Proposed'!L42","v":0},{"$f":"'Data Input - Proposed'!M42","v":0},{"$f":"'Data Input - Proposed'!N42","v":0},{"$f":"'Data Input - Proposed'!O42","v":0},{"$f":"'Data Input - Proposed'!P42","v":0},{"$f":"'Data Input - Proposed'!Q42","v":0},{"$f":"'Data Input - Proposed'!R42","v":0},{"$f":"'Data Input - Proposed'!S42","v":0},{"$f":"'Data Input - Proposed'!T42","v":0},{"$f":"'Data Input - Proposed'!U42","v":0},{"$f":"'Data Input - Proposed'!V42","v":0},{"$f":"'Data Input - Proposed'!W42","v":0},{"$f":"'Data Input - Proposed'!X42","v":0},{"$f":"'Data Input - Proposed'!Y42","v":0},{"$f":"'Data Input - Proposed'!Z42","v":0},{"$f":"'Data Input - Proposed'!AA42","v":0},{"$f":"'Data Input - Proposed'!AB42","v":0},{"$f":"'Data Input - Proposed'!AC42","v":0},{"$f":"'Data Input - Proposed'!AD42","v":0},{"$f":"'Data Input - Proposed'!AE42","v":0},{"$f":"'Data Input - Proposed'!AF42","v":0},{"$f":"'Data Input - Proposed'!AG42","v":0},{"$f":"'Data Input - Proposed'!AH42","v":0},{"$f":"'Data Input - Proposed'!AI42","v":0},{"$f":"'Data Input - Proposed'!AJ42","v":0},{"$f":"'Data Input - Proposed'!AK42","v":0},{"$f":"'Data Input - Proposed'!AL42","v":0},{"$f":"'Data Input - Proposed'!AM42","v":0},{"$f":"'Data Input - Proposed'!AN42","v":0},{"$f":"'Data Input - Proposed'!AO42","v":0},{"$f":"'Data Input - Proposed'!AP42","v":0},{"$f":"'Data Input - Proposed'!AQ42","v":0},{"$f":"'Data Input - Proposed'!AR42","v":0},{"$f":"'Data Input - Proposed'!AS42","v":0},{"$f":"'Data Input - Proposed'!AT42","v":0},{"$f":"'Data Input - Proposed'!AU42","v":0},{"$f":"'Data Input - Proposed'!AV42","v":0},{"$f":"'Data Input - Proposed'!AW42","v":0},{"$f":"'Data Input - Proposed'!AX42","v":0},{"$f":"'Data Input - Proposed'!AY42","v":0},{"$f":"'Data Input - Proposed'!AZ42","v":0},{"$f":"'Data Input - Proposed'!BA42","v":0},{"$f":"'Data Input - Proposed'!BB42","v":0},{"$f":"'Data Input - Proposed'!BC42","v":0},{"$f":"'Data Input - Proposed'!BD42","v":0},{"$f":"'Data Input - Proposed'!BE42","v":0},{"$f":"'Data Input - Proposed'!BF42","v":0},{"$f":"'Data Input - Proposed'!BG42","v":0},{"$f":"'Data Input - Proposed'!BH42","v":0},{"$f":"'Data Input - Proposed'!BI42","v":0},{"$f":"'Data Input - Proposed'!BJ42","v":0},{"$f":"'Data Input - Proposed'!BK42","v":0},{"$f":"'Data Input - Proposed'!BL42","v":0},{"$f":"'Data Input - Proposed'!BM42","v":0},{"$f":"'Data Input - Proposed'!BN42","v":0},{"$f":"'Data Input - Proposed'!BO42","v":0},{"$f":"'Data Input - Proposed'!BP42","v":0},{"$f":"'Data Input - Proposed'!BQ42","v":0},{"$f":"'Data Input - Proposed'!BR42","v":0},{"$f":"'Data Input - Proposed'!BS42","v":0},{"$f":"'Data Input - Proposed'!BT42","v":0},{"$f":"'Data Input - Proposed'!BU42","v":0},{"$f":"'Data Input - Proposed'!BV42","v":0},{"$f":"'Data Input - Proposed'!BW42","v":0},{"$f":"'Data Input - Proposed'!BX42","v":0},{"$f":"'Data Input - Proposed'!BY42","v":0},{"$f":"'Data Input - Proposed'!BZ42","v":0},{"$f":"'Data Input - Proposed'!CA42","v":0},{"$f":"'Data Input - Proposed'!CB42","v":0},{"$f":"'Data Input - Proposed'!CC42","v":0},{"$f":"'Data Input - Proposed'!CD42","v":0},{"$f":"'Data Input - Proposed'!CE42","v":0},{"$f":"'Data Input - Proposed'!CF42","v":0},{"$f":"'Data Input - Proposed'!CG42","v":0},{"$f":"'Data Input - Proposed'!CH42","v":0},{"$f":"'Data Input - Proposed'!CI42","v":0},{"$f":"'Data Input - Proposed'!CJ42","v":0},{"$f":"'Data Input - Proposed'!CK42","v":0},{"$f":"'Data Input - Proposed'!CL42","v":0},{"$f":"'Data Input - Proposed'!CM42","v":0},{"$f":"'Data Input - Proposed'!CN42","v":0},{"$f":"'Data Input - Proposed'!CO42","v":0},{"$f":"'Data Input - Proposed'!CP42","v":0},{"$f":"'Data Input - Proposed'!CQ42","v":0},{"$f":"'Data Input - Proposed'!CR42","v":0},{"$f":"'Data Input - Proposed'!CS42","v":0},{"$f":"'Data Input - Proposed'!CT42","v":0},{"$f":"'Data Input - Proposed'!CU42","v":0},{"$f":"'Data Input - Proposed'!CV42","v":0},{"$f":"'Data Input - Proposed'!CW42","v":0},{"$f":"'Data Input - Proposed'!CX42","v":0},{"$f":"'Data Input - Proposed'!CY42","v":0},{"$f":"'Data Input - Proposed'!CZ42","v":0},{"$f":"'Data Input - Proposed'!DA42","v":0},{"$f":"'Data Input - Proposed'!DB42","v":0},{"$f":"'Data Input - Proposed'!DC42","v":0}]
[null,"Discounted finacning","£000's",{"$f":"D202*D$7","v":0},0,0,0,0,0,0,0,0,0,0,0,0,0,0,0,0,0,0,0,0,0,0,0,0,0,0,0,0,0,0,0,0,0,0,0,0,0,0,0,0,0,0,0,0,0,0,0,0,0,0,0,0,0,0,0,0,0,0,0,0,0,0,0,{"$f":"BP202*BP$7","v":0},0,0,0,0,0,0,0,0,0,0,0,0,0,0,0,0,0,0,0,0,0,0,0,0,0,0,0,0,0,0,0,0,0,0,0]
[]
[null,"Total capex","£000's",{"$f":"IF('Data Input - Proposed'!$F$37=\"Yes\",D203+D13,D199)","v":0},{"$f":"IF('Data Input - Proposed'!$F$37=\"Yes\",E203+E13,E199)","v":0},{"$f":"IF('Data Input - Proposed'!$F$37=\"Yes\",F203+F13,F199)","v":0},{"$f":"IF('Data Input - Proposed'!$F$37=\"Yes\",G203+G13,G199)","v":0},{"$f":"IF('Data Input - Proposed'!$F$37=\"Yes\",H203+H13,H199)","v":0},{"$f":"IF('Data Input - Proposed'!$F$37=\"Yes\",I203+I13,I199)","v":0},{"$f":"IF('Data Input - Proposed'!$F$37=\"Yes\",J203+J13,J199)","v":0},{"$f":"IF('Data Input - Proposed'!$F$37=\"Yes\",K203+K13,K199)","v":0},{"$f":"IF('Data Input - Proposed'!$F$37=\"Yes\",L203+L13,L199)","v":0},{"$f":"IF('Data Input - Proposed'!$F$37=\"Yes\",M203+M13,M199)","v":0},{"$f":"IF('Data Input - Proposed'!$F$37=\"Yes\",N203+N13,N199)","v":0},{"$f":"IF('Data Input - Proposed'!$F$37=\"Yes\",O203+O13,O199)","v":0},{"$f":"IF('Data Input - Proposed'!$F$37=\"Yes\",P203+P13,P199)","v":0},{"$f":"IF('Data Input - Proposed'!$F$37=\"Yes\",Q203+Q13,Q199)","v":0},{"$f":"IF('Data Input - Proposed'!$F$37=\"Yes\",R203+R13,R199)","v":0},{"$f":"IF('Data Input - Proposed'!$F$37=\"Yes\",S203+S13,S199)","v":0},{"$f":"IF('Data Input - Proposed'!$F$37=\"Yes\",T203+T13,T199)","v":0},{"$f":"IF('Data Input - Proposed'!$F$37=\"Yes\",U203+U13,U199)","v":0},{"$f":"IF('Data Input - Proposed'!$F$37=\"Yes\",V203+V13,V199)","v":0},{"$f":"IF('Data Input - Proposed'!$F$37=\"Yes\",W203+W13,W199)","v":0},{"$f":"IF('Data Input - Proposed'!$F$37=\"Yes\",X203+X13,X199)","v":0},{"$f":"IF('Data Input - Proposed'!$F$37=\"Yes\",Y203+Y13,Y199)","v":0},{"$f":"IF('Data Input - Proposed'!$F$37=\"Yes\",Z203+Z13,Z199)","v":0},{"$f":"IF('Data Input - Proposed'!$F$37=\"Yes\",AA203+AA13,AA199)","v":0},{"$f":"IF('Data Input - Proposed'!$F$37=\"Yes\",AB203+AB13,AB199)","v":0},{"$f":"IF('Data Input - Proposed'!$F$37=\"Yes\",AC203+AC13,AC199)","v":0},{"$f":"IF('Data Input - Proposed'!$F$37=\"Yes\",AD203+AD13,AD199)","v":0},{"$f":"IF('Data Input - Proposed'!$F$37=\"Yes\",AE203+AE13,AE199)","v":0},{"$f":"IF('Data Input - Proposed'!$F$37=\"Yes\",AF203+AF13,AF199)","v":0},{"$f":"IF('Data Input - Proposed'!$F$37=\"Yes\",AG203+AG13,AG199)","v":0},{"$f":"IF('Data Input - Proposed'!$F$37=\"Yes\",AH203+AH13,AH199)","v":0},{"$f":"IF('Data Input - Proposed'!$F$37=\"Yes\",AI203+AI13,AI199)","v":0},{"$f":"IF('Data Input - Proposed'!$F$37=\"Yes\",AJ203+AJ13,AJ199)","v":0},{"$f":"IF('Data Input - Proposed'!$F$37=\"Yes\",AK203+AK13,AK199)","v":0},{"$f":"IF('Data Input - Proposed'!$F$37=\"Yes\",AL203+AL13,AL199)","v":0},{"$f":"IF('Data Input - Proposed'!$F$37=\"Yes\",AM203+AM13,AM199)","v":0},{"$f":"IF('Data Input - Proposed'!$F$37=\"Yes\",AN203+AN13,AN199)","v":0},{"$f":"IF('Data Input - Proposed'!$F$37=\"Yes\",AO203+AO13,AO199)","v":0},{"$f":"IF('Data Input - Proposed'!$F$37=\"Yes\",AP203+AP13,AP199)","v":0},{"$f":"IF('Data Input - Proposed'!$F$37=\"Yes\",AQ203+AQ13,AQ199)","v":0},{"$f":"IF('Data Input - Proposed'!$F$37=\"Yes\",AR203+AR13,AR199)","v":0},{"$f":"IF('Data Input - Proposed'!$F$37=\"Yes\",AS203+AS13,AS199)","v":0},{"$f":"IF('Data Input - Proposed'!$F$37=\"Yes\",AT203+AT13,AT199)","v":0},{"$f":"IF('Data Input - Proposed'!$F$37=\"Yes\",AU203+AU13,AU199)","v":0},{"$f":"IF('Data Input - Proposed'!$F$37=\"Yes\",AV203+AV13,AV199)","v":0},{"$f":"IF('Data Input - Proposed'!$F$37=\"Yes\",AW203+AW13,AW199)","v":0},{"$f":"IF('Data Input - Proposed'!$F$37=\"Yes\",AX203+AX13,AX199)","v":0},{"$f":"IF('Data Input - Proposed'!$F$37=\"Yes\",AY203+AY13,AY199)","v":0},{"$f":"IF('Data Input - Proposed'!$F$37=\"Yes\",AZ203+AZ13,AZ199)","v":0},{"$f":"IF('Data Input - Proposed'!$F$37=\"Yes\",BA203+BA13,BA199)","v":0},{"$f":"IF('Data Input - Proposed'!$F$37=\"Yes\",BB203+BB13,BB199)","v":0},{"$f":"IF('Data Input - Proposed'!$F$37=\"Yes\",BC203+BC13,BC199)","v":0},{"$f":"IF('Data Input - Proposed'!$F$37=\"Yes\",BD203+BD13,BD199)","v":0},{"$f":"IF('Data Input - Proposed'!$F$37=\"Yes\",BE203+BE13,BE199)","v":0},{"$f":"IF('Data Input - Proposed'!$F$37=\"Yes\",BF203+BF13,BF199)","v":0},{"$f":"IF('Data Input - Proposed'!$F$37=\"Yes\",BG203+BG13,BG199)","v":0},{"$f":"IF('Data Input - Proposed'!$F$37=\"Yes\",BH203+BH13,BH199)","v":0},{"$f":"IF('Data Input - Proposed'!$F$37=\"Yes\",BI203+BI13,BI199)","v":0},{"$f":"IF('Data Input - Proposed'!$F$37=\"Yes\",BJ203+BJ13,BJ199)","v":0},{"$f":"IF('Data Input - Proposed'!$F$37=\"Yes\",BK203+BK13,BK199)","v":0},{"$f":"IF('Data Input - Proposed'!$F$37=\"Yes\",BL203+BL13,BL199)","v":0},{"$f":"IF('Data Input - Proposed'!$F$37=\"Yes\",BM203+BM13,BM199)","v":0},{"$f":"IF('Data Input - Proposed'!$F$37=\"Yes\",BN203+BN13,BN199)","v":0},{"$f":"IF('Data Input - Proposed'!$F$37=\"Yes\",BO203+BO13,BO199)","v":0},{"$f":"IF('Data Input - Proposed'!$F$37=\"Yes\",BP203+BP13,BP199)","v":0},{"$f":"IF('Data Input - Proposed'!$F$37=\"Yes\",BQ203+BQ13,BQ199)","v":0},{"$f":"IF('Data Input - Proposed'!$F$37=\"Yes\",BR203+BR13,BR199)","v":0},{"$f":"IF('Data Input - Proposed'!$F$37=\"Yes\",BS203+BS13,BS199)","v":0},{"$f":"IF('Data Input - Proposed'!$F$37=\"Yes\",BT203+BT13,BT199)","v":0},{"$f":"IF('Data Input - Proposed'!$F$37=\"Yes\",BU203+BU13,BU199)","v":0},{"$f":"IF('Data Input - Proposed'!$F$37=\"Yes\",BV203+BV13,BV199)","v":0},{"$f":"IF('Data Input - Proposed'!$F$37=\"Yes\",BW203+BW13,BW199)","v":0},{"$f":"IF('Data Input - Proposed'!$F$37=\"Yes\",BX203+BX13,BX199)","v":0},{"$f":"IF('Data Input - Proposed'!$F$37=\"Yes\",BY203+BY13,BY199)","v":0},{"$f":"IF('Data Input - Proposed'!$F$37=\"Yes\",BZ203+BZ13,BZ199)","v":0},{"$f":"IF('Data Input - Proposed'!$F$37=\"Yes\",CA203+CA13,CA199)","v":0},{"$f":"IF('Data Input - Proposed'!$F$37=\"Yes\",CB203+CB13,CB199)","v":0},{"$f":"IF('Data Input - Proposed'!$F$37=\"Yes\",CC203+CC13,CC199)","v":0},{"$f":"IF('Data Input - Proposed'!$F$37=\"Yes\",CD203+CD13,CD199)","v":0},{"$f":"IF('Data Input - Proposed'!$F$37=\"Yes\",CE203+CE13,CE199)","v":0},{"$f":"IF('Data Input - Proposed'!$F$37=\"Yes\",CF203+CF13,CF199)","v":0},{"$f":"IF('Data Input - Proposed'!$F$37=\"Yes\",CG203+CG13,CG199)","v":0},{"$f":"IF('Data Input - Proposed'!$F$37=\"Yes\",CH203+CH13,CH199)","v":0},{"$f":"IF('Data Input - Proposed'!$F$37=\"Yes\",CI203+CI13,CI199)","v":0},{"$f":"IF('Data Input - Proposed'!$F$37=\"Yes\",CJ203+CJ13,CJ199)","v":0},{"$f":"IF('Data Input - Proposed'!$F$37=\"Yes\",CK203+CK13,CK199)","v":0},{"$f":"IF('Data Input - Proposed'!$F$37=\"Yes\",CL203+CL13,CL199)","v":0},{"$f":"IF('Data Input - Proposed'!$F$37=\"Yes\",CM203+CM13,CM199)","v":0},{"$f":"IF('Data Input - Proposed'!$F$37=\"Yes\",CN203+CN13,CN199)","v":0},{"$f":"IF('Data Input - Proposed'!$F$37=\"Yes\",CO203+CO13,CO199)","v":0},{"$f":"IF('Data Input - Proposed'!$F$37=\"Yes\",CP203+CP13,CP199)","v":0},{"$f":"IF('Data Input - Proposed'!$F$37=\"Yes\",CQ203+CQ13,CQ199)","v":0},{"$f":"IF('Data Input - Proposed'!$F$37=\"Yes\",CR203+CR13,CR199)","v":0},{"$f":"IF('Data Input - Proposed'!$F$37=\"Yes\",CS203+CS13,CS199)","v":0},{"$f":"IF('Data Input - Proposed'!$F$37=\"Yes\",CT203+CT13,CT199)","v":0},{"$f":"IF('Data Input - Proposed'!$F$37=\"Yes\",CU203+CU13,CU199)","v":0},{"$f":"IF('Data Input - Proposed'!$F$37=\"Yes\",CV203+CV13,CV199)","v":0},{"$f":"IF('Data Input - Proposed'!$F$37=\"Yes\",CW203+CW13,CW199)","v":0},{"$f":"IF('Data Input - Proposed'!$F$37=\"Yes\",CX203+CX13,CX199)","v":0},{"$f":"IF('Data Input - Proposed'!$F$37=\"Yes\",CY203+CY13,CY199)","v":0}]
[]
[null,"Low high WACC combined with low high capex"]
[]
[null,"Low WACC","%",{"$f":"'Data Input - General'!F16","v":0.06}]
[null,"Annualised payment","£000's",{"$f":"IFERROR(-PMT($D$185,SUM('Data Input - General'!$G$26:$G$28),D20*(1-D177)*1000)/1000,0)","v":0}]
[null,"Annual value","£000's",{"$f":"IF(SUM($D$12:D$12)=0,0,$D$209)","v":0.06},{"$f":"IF(SUM($D$12:E$12)=0,0,$D$209)","v":0.06},{"$f":"IF(SUM($D$12:F$12)=0,0,$D$209)","v":0.06},{"$f":"IF(SUM($D$12:G$12)=0,0,$D$209)","v":0.06},{"$f":"IF(SUM($D$12:H$12)=0,0,$D$209)","v":0.06},{"$f":"IF(SUM($D$12:I$12)=0,0,$D$209)","v":0.06},{"$f":"IF(SUM($D$12:J$12)=0,0,$D$209)","v":0.06},{"$f":"IF(SUM($D$12:K$12)=0,0,$D$209)","v":0.06},{"$f":"IF(SUM($D$12:L$12)=0,0,$D$209)","v":0.06},{"$f":"IF(SUM($D$12:M$12)=0,0,$D$209)","v":0.06},{"$f":"IF(SUM($D$12:N$12)=0,0,$D$209)","v":0.06},{"$f":"IF(SUM($D$12:O$12)=0,0,$D$209)","v":0.06},{"$f":"IF(SUM($D$12:P$12)=0,0,$D$209)","v":0.06},{"$f":"IF(SUM($D$12:Q$12)=0,0,$D$209)","v":0.06},{"$f":"IF(SUM($D$12:R$12)=0,0,$D$209)","v":0.06},{"$f":"IF(SUM($D$12:S$12)=0,0,$D$209)","v":0.06},{"$f":"IF(SUM($D$12:T$12)=0,0,$D$209)","v":0.06},{"$f":"IF(SUM($D$12:U$12)=0,0,$D$209)","v":0.06},{"$f":"IF(SUM($D$12:V$12)=0,0,$D$209)","v":0.06},{"$f":"IF(SUM($D$12:W$12)=0,0,$D$209)","v":0.06},{"$f":"IF(SUM($D$12:X$12)=0,0,$D$209)","v":0.06},{"$f":"IF(SUM($D$12:Y$12)=0,0,$D$209)","v":0.06},{"$f":"IF(SUM($D$12:Z$12)=0,0,$D$209)","v":0.06},{"$f":"IF(SUM($D$12:AA$12)=0,0,$D$209)","v":0.06},{"$f":"IF(SUM($D$12:AB$12)=0,0,$D$209)","v":0.06},{"$f":"IF(SUM($D$12:AC$12)=0,0,$D$209)","v":0.06},{"$f":"IF(SUM($D$12:AD$12)=0,0,$D$209)","v":0.06},{"$f":"IF(SUM($D$12:AE$12)=0,0,$D$209)","v":0.06},{"$f":"IF(SUM($D$12:AF$12)=0,0,$D$209)","v":0.06},{"$f":"IF(SUM($D$12:AG$12)=0,0,$D$209)","v":0.06},{"$f":"IF(SUM($D$12:AH$12)=0,0,$D$209)","v":0.06},{"$f":"IF(SUM($D$12:AI$12)=0,0,$D$209)","v":0.06},{"$f":"IF(SUM($D$12:AJ$12)=0,0,$D$209)","v":0.06},{"$f":"IF(SUM($D$12:AK$12)=0,0,$D$209)","v":0.06},{"$f":"IF(SUM($D$12:AL$12)=0,0,$D$209)","v":0.06},{"$f":"IF(SUM($D$12:AM$12)=0,0,$D$209)","v":0.06},{"$f":"IF(SUM($D$12:AN$12)=0,0,$D$209)","v":0.06},{"$f":"IF(SUM($D$12:AO$12)=0,0,$D$209)","v":0.06},{"$f":"IF(SUM($D$12:AP$12)=0,0,$D$209)","v":0.06},{"$f":"IF(SUM($D$12:AQ$12)=0,0,$D$209)","v":0.06},{"$f":"IF(SUM($D$12:AR$12)=0,0,$D$209)","v":0.06},{"$f":"IF(SUM($D$12:AS$12)=0,0,$D$209)","v":0.06},{"$f":"IF(SUM($D$12:AT$12)=0,0,$D$209)","v":0.06},{"$f":"IF(SUM($D$12:AU$12)=0,0,$D$209)","v":0.06},{"$f":"IF(SUM($D$12:AV$12)=0,0,$D$209)","v":0.06},{"$f":"IF(SUM($D$12:AW$12)=0,0,$D$209)","v":0.06},{"$f":"IF(SUM($D$12:AX$12)=0,0,$D$209)","v":0.06},{"$f":"IF(SUM($D$12:AY$12)=0,0,$D$209)","v":0.06},{"$f":"IF(SUM($D$12:AZ$12)=0,0,$D$209)","v":0.06},{"$f":"IF(SUM($D$12:BA$12)=0,0,$D$209)","v":0.06},{"$f":"IF(SUM($D$12:BB$12)=0,0,$D$209)","v":0.06},{"$f":"IF(SUM($D$12:BC$12)=0,0,$D$209)","v":0.06},{"$f":"IF(SUM($D$12:BD$12)=0,0,$D$209)","v":0.06},{"$f":"IF(SUM($D$12:BE$12)=0,0,$D$209)","v":0.06},{"$f":"IF(SUM($D$12:BF$12)=0,0,$D$209)","v":0.06},{"$f":"IF(SUM($D$12:BG$12)=0,0,$D$209)","v":0.06},{"$f":"IF(SUM($D$12:BH$12)=0,0,$D$209)","v":0.06},{"$f":"IF(SUM($D$12:BI$12)=0,0,$D$209)","v":0.06},{"$f":"IF(SUM($D$12:BJ$12)=0,0,$D$209)","v":0.06},{"$f":"IF(SUM($D$12:BK$12)=0,0,$D$209)","v":0.06},{"$f":"IF(SUM($D$12:BL$12)=0,0,$D$209)","v":0.06},{"$f":"IF(SUM($D$12:BM$12)=0,0,$D$209)","v":0.06},{"$f":"IF(SUM($D$12:BN$12)=0,0,$D$209)","v":0.06},{"$f":"IF(SUM($D$12:BO$12)=0,0,$D$209)","v":0.06},{"$f":"IF(SUM($D$12:BP$12)=0,0,$D$209)","v":0.06},{"$f":"IF(SUM($D$12:BQ$12)=0,0,$D$209)","v":0.06},{"$f":"IF(SUM($D$12:BR$12)=0,0,$D$209)","v":0.06},{"$f":"IF(SUM($D$12:BS$12)=0,0,$D$209)","v":0.06},{"$f":"IF(SUM($D$12:BT$12)=0,0,$D$209)","v":0.06},{"$f":"IF(SUM($D$12:BU$12)=0,0,$D$209)","v":0.06},{"$f":"IF(SUM($D$12:BV$12)=0,0,$D$209)","v":0.06},{"$f":"IF(SUM($D$12:BW$12)=0,0,$D$209)","v":0.06},{"$f":"IF(SUM($D$12:BX$12)=0,0,$D$209)","v":0.06},{"$f":"IF(SUM($D$12:BY$12)=0,0,$D$209)","v":0.06},{"$f":"IF(SUM($D$12:BZ$12)=0,0,$D$209)","v":0.06},{"$f":"IF(SUM($D$12:CA$12)=0,0,$D$209)","v":0.06},{"$f":"IF(SUM($D$12:CB$12)=0,0,$D$209)","v":0.06},{"$f":"IF(SUM($D$12:CC$12)=0,0,$D$209)","v":0.06},{"$f":"IF(SUM($D$12:CD$12)=0,0,$D$209)","v":0.06},{"$f":"IF(SUM($D$12:CE$12)=0,0,$D$209)","v":0.06},{"$f":"IF(SUM($D$12:CF$12)=0,0,$D$209)","v":0.06},{"$f":"IF(SUM($D$12:CG$12)=0,0,$D$209)","v":0.06},{"$f":"IF(SUM($D$12:CH$12)=0,0,$D$209)","v":0.06},{"$f":"IF(SUM($D$12:CI$12)=0,0,$D$209)","v":0.06},{"$f":"IF(SUM($D$12:CJ$12)=0,0,$D$209)","v":0.06},{"$f":"IF(SUM($D$12:CK$12)=0,0,$D$209)","v":0.06},{"$f":"IF(SUM($D$12:CL$12)=0,0,$D$209)","v":0.06},{"$f":"IF(SUM($D$12:CM$12)=0,0,$D$209)","v":0.06},{"$f":"IF(SUM($D$12:CN$12)=0,0,$D$209)","v":0.06},{"$f":"IF(SUM($D$12:CO$12)=0,0,$D$209)","v":0.06},{"$f":"IF(SUM($D$12:CP$12)=0,0,$D$209)","v":0.06},{"$f":"IF(SUM($D$12:CQ$12)=0,0,$D$209)","v":0.06},{"$f":"IF(SUM($D$12:CR$12)=0,0,$D$209)","v":0.06},{"$f":"IF(SUM($D$12:CS$12)=0,0,$D$209)","v":0.06},{"$f":"IF(SUM($D$12:CT$12)=0,0,$D$209)","v":0.06},{"$f":"IF(SUM($D$12:CU$12)=0,0,$D$209)","v":0.06},{"$f":"IF(SUM($D$12:CV$12)=0,0,$D$209)","v":0.06},{"$f":"IF(SUM($D$12:CW$12)=0,0,$D$209)","v":0.06},{"$f":"IF(SUM($D$12:CX$12)=0,0,$D$209)","v":0.06},{"$f":"IF(SUM($D$12:CY$12)=0,0,$D$209)","v":0.06}]
[null,"Discounted WACC","£000's",{"$f":"D211*D$7","v":0.06},{"$f":"E211*E$7","v":5.7971014492753624E-2},5.6010642021984178E-2,5.4116562340081338E-2,5.2286533661914339E-2,5.0518390011511441E-2,4.8810038658465164E-2,4.7159457641029155E-2,4.5564693372975029E-2,4.4023858331376849E-2,4.2535128822586331E-2,4.109674282375491E-2,3.9706997897347746E-2,3.8364249176181399E-2,3.7066907416600389E-2,3.5813437117488293E-2,3.4602354702887243E-2,3.3432226766074637E-2,3.2301668373018975E-2,3.1209341423206739E-2,3.0153953065900234E-2,2.9134254169951919E-2,2.8149037845364176E-2,2.7197138014844618E-2,2.6277428033666301E-2,2.5388819356199327E-2,2.4530260247535584E-2,2.3700734538681725E-2,2.289926042384708E-2,2.2124889298402978E-2,2.1480475046993179E-2,0,0,0,0,0,0,0,0,0,0,0,0,0,0,0,0,0,0,0,0,0,0,0,0,0,0,0,0,0,0,0,0,0,{"$f":"BP211*BP$7","v":0},0,0,0,0,0,0,0,0,0,0,0,0,0,0,0,0,0,0,0,0,0,0,0,0,0,0,0,0,0,0,0,0,0,0,0]
[]
[null,"Financing costs"]
[null,"Financing costs (if entered manually)","£000's",{"$f":"'Data Input - Proposed'!H41","v":0},{"$f":"'Data Input - Proposed'!I41","v":0},{"$f":"'Data Input - Proposed'!J41","v":0},{"$f":"'Data Input - Proposed'!K41","v":0},{"$f":"'Data Input - Proposed'!L41","v":0},{"$f":"'Data Input - Proposed'!M41","v":0},{"$f":"'Data Input - Proposed'!N41","v":0},{"$f":"'Data Input - Proposed'!O41","v":0},{"$f":"'Data Input - Proposed'!P41","v":0},{"$f":"'Data Input - Proposed'!Q41","v":0},{"$f":"'Data Input - Proposed'!R41","v":0},{"$f":"'Data Input - Proposed'!S41","v":0},{"$f":"'Data Input - Proposed'!T41","v":0},{"$f":"'Data Input - Proposed'!U41","v":0},{"$f":"'Data Input - Proposed'!V41","v":0},{"$f":"'Data Input - Proposed'!W41","v":0},{"$f":"'Data Input - Proposed'!X41","v":0},{"$f":"'Data Input - Proposed'!Y41","v":0},{"$f":"'Data Input - Proposed'!Z41","v":0},{"$f":"'Data Input - Proposed'!AA41","v":0},{"$f":"'Data Input - Proposed'!AB41","v":0},{"$f":"'Data Input - Proposed'!AC41","v":0},{"$f":"'Data Input - Proposed'!AD41","v":0},{"$f":"'Data Input - Proposed'!AE41","v":0},{"$f":"'Data Input - Proposed'!AF41","v":0},{"$f":"'Data Input - Proposed'!AG41","v":0},{"$f":"'Data Input - Proposed'!AH41","v":0},{"$f":"'Data Input - Proposed'!AI41","v":0},{"$f":"'Data Input - Proposed'!AJ41","v":0},{"$f":"'Data Input - Proposed'!AK41","v":0},{"$f":"'Data Input - Proposed'!AL41","v":0},{"$f":"'Data Input - Proposed'!AM41","v":0},{"$f":"'Data Input - Proposed'!AN41","v":0},{"$f":"'Data Input - Proposed'!AO41","v":0},{"$f":"'Data Input - Proposed'!AP41","v":0},{"$f":"'Data Input - Proposed'!AQ41","v":0},{"$f":"'Data Input - Proposed'!AR41","v":0},{"$f":"'Data Input - Proposed'!AS41","v":0},{"$f":"'Data Input - Proposed'!AT41","v":0},{"$f":"'Data Input - Proposed'!AU41","v":0},{"$f":"'Data Input - Proposed'!AV41","v":0},{"$f":"'Data Input - Proposed'!AW41","v":0},{"$f":"'Data Input - Proposed'!AX41","v":0},{"$f":"'Data Input - Proposed'!AY41","v":0},{"$f":"'Data Input - Proposed'!AZ41","v":0},{"$f":"'Data Input - Proposed'!BA41","v":0},{"$f":"'Data Input - Proposed'!BB41","v":0},{"$f":"'Data Input - Proposed'!BC41","v":0},{"$f":"'Data Input - Proposed'!BD41","v":0},{"$f":"'Data Input - Proposed'!BE41","v":0},{"$f":"'Data Input - Proposed'!BF41","v":0},{"$f":"'Data Input - Proposed'!BG41","v":0},{"$f":"'Data Input - Proposed'!BH41","v":0},{"$f":"'Data Input - Proposed'!BI41","v":0},{"$f":"'Data Input - Proposed'!BJ41","v":0},{"$f":"'Data Input - Proposed'!BK41","v":0},{"$f":"'Data Input - Proposed'!BL41","v":0},{"$f":"'Data Input - Proposed'!BM41","v":0},{"$f":"'Data Input - Proposed'!BN41","v":0},{"$f":"'Data Input - Proposed'!BO41","v":0},{"$f":"'Data Input - Proposed'!BP41","v":0},{"$f":"'Data Input - Proposed'!BQ41","v":0},{"$f":"'Data Input - Proposed'!BR41","v":0},{"$f":"'Data Input - Proposed'!BS41","v":0},{"$f":"'Data Input - Proposed'!BT41","v":0},{"$f":"'Data Input - Proposed'!BU41","v":0},{"$f":"'Data Input - Proposed'!BV41","v":0},{"$f":"'Data Input - Proposed'!BW41","v":0},{"$f":"'Data Input - Proposed'!BX41","v":0},{"$f":"'Data Input - Proposed'!BY41","v":0},{"$f":"'Data Input - Proposed'!BZ41","v":0},{"$f":"'Data Input - Proposed'!CA41","v":0},{"$f":"'Data Input - Proposed'!CB41","v":0},{"$f":"'Data Input - Proposed'!CC41","v":0},{"$f":"'Data Input - Proposed'!CD41","v":0},{"$f":"'Data Input - Proposed'!CE41","v":0},{"$f":"'Data Input - Proposed'!CF41","v":0},{"$f":"'Data Input - Proposed'!CG41","v":0},{"$f":"'Data Input - Proposed'!CH41","v":0},{"$f":"'Data Input - Proposed'!CI41","v":0},{"$f":"'Data Input - Proposed'!CJ41","v":0},{"$f":"'Data Input - Proposed'!CK41","v":0},{"$f":"'Data Input - Proposed'!CL41","v":0},{"$f":"'Data Input - Proposed'!CM41","v":0},{"$f":"'Data Input - Proposed'!CN41","v":0},{"$f":"'Data Input - Proposed'!CO41","v":0},{"$f":"'Data Input - Proposed'!CP41","v":0},{"$f":"'Data Input - Proposed'!CQ41","v":0},{"$f":"'Data Input - Proposed'!CR41","v":0},{"$f":"'Data Input - Proposed'!CS41","v":0},{"$f":"'Data Input - Proposed'!CT41","v":0},{"$f":"'Data Input - Proposed'!CU41","v":0},{"$f":"'Data Input - Proposed'!CV41","v":0},{"$f":"'Data Input - Proposed'!CW41","v":0},{"$f":"'Data Input - Proposed'!CX41","v":0},{"$f":"'Data Input - Proposed'!CY41","v":0},{"$f":"'Data Input - Proposed'!CZ41","v":0},{"$f":"'Data Input - Proposed'!DA41","v":0},{"$f":"'Data Input - Proposed'!DB41","v":0},{"$f":"'Data Input - Proposed'!DC41","v":0}]
[null,"Discounted finacning","£000's",{"$f":"D215*D$7","v":0},{"$f":"E215*E$7","v":0},0,0,0,0,0,0,0,0,0,0,0,0,0,0,0,0,0,0,0,0,0,0,0,0,0,0,0,0,0,0,0,0,0,0,0,0,0,0,0,0,0,0,0,0,0,0,0,0,0,0,0,0,0,0,0,0,0,0,0,0,0,0,{"$f":"BP215*BP$7","v":0},0,0,0,0,0,0,0,0,0,0,0,0,0,0,0,0,0,0,0,0,0,0,0,0,0,0,0,0,0,0,0,0,0,0,0]
[]
[null,"Total capex","£000's",{"$f":"IF('Data Input - Proposed'!$F$37=\"Yes\",D216+D13*(1-$D$177),D212)","v":0.06},{"$f":"IF('Data Input - Proposed'!$F$37=\"Yes\",E216+E13*(1-$D$177),E212)","v":5.7971014492753624E-2},{"$f":"IF('Data Input - Proposed'!$F$37=\"Yes\",F216+F13*(1-$D$177),F212)","v":5.6010642021984178E-2},{"$f":"IF('Data Input - Proposed'!$F$37=\"Yes\",G216+G13*(1-$D$177),G212)","v":5.4116562340081338E-2},{"$f":"IF('Data Input - Proposed'!$F$37=\"Yes\",H216+H13*(1-$D$177),H212)","v":5.2286533661914339E-2},{"$f":"IF('Data Input - Proposed'!$F$37=\"Yes\",I216+I13*(1-$D$177),I212)","v":5.0518390011511441E-2},{"$f":"IF('Data Input - Proposed'!$F$37=\"Yes\",J216+J13*(1-$D$177),J212)","v":4.8810038658465164E-2},{"$f":"IF('Data Input - Proposed'!$F$37=\"Yes\",K216+K13*(1-$D$177),K212)","v":4.7159457641029155E-2},{"$f":"IF('Data Input - Proposed'!$F$37=\"Yes\",L216+L13*(1-$D$177),L212)","v":4.5564693372975029E-2},{"$f":"IF('Data Input - Proposed'!$F$37=\"Yes\",M216+M13*(1-$D$177),M212)","v":4.4023858331376849E-2},{"$f":"IF('Data Input - Proposed'!$F$37=\"Yes\",N216+N13*(1-$D$177),N212)","v":4.2535128822586331E-2},{"$f":"IF('Data Input - Proposed'!$F$37=\"Yes\",O216+O13*(1-$D$177),O212)","v":4.109674282375491E-2},{"$f":"IF('Data Input - Proposed'!$F$37=\"Yes\",P216+P13*(1-$D$177),P212)","v":3.9706997897347746E-2},{"$f":"IF('Data Input - Proposed'!$F$37=\"Yes\",Q216+Q13*(1-$D$177),Q212)","v":3.8364249176181399E-2},{"$f":"IF('Data Input - Proposed'!$F$37=\"Yes\",R216+R13*(1-$D$177),R212)","v":3.7066907416600389E-2},{"$f":"IF('Data Input - Proposed'!$F$37=\"Yes\",S216+S13*(1-$D$177),S212)","v":3.5813437117488293E-2},{"$f":"IF('Data Input - Proposed'!$F$37=\"Yes\",T216+T13*(1-$D$177),T212)","v":3.4602354702887243E-2},{"$f":"IF('Data Input - Proposed'!$F$37=\"Yes\",U216+U13*(1-$D$177),U212)","v":3.3432226766074637E-2},{"$f":"IF('Data Input - Proposed'!$F$37=\"Yes\",V216+V13*(1-$D$177),V212)","v":3.2301668373018975E-2},{"$f":"IF('Data Input - Proposed'!$F$37=\"Yes\",W216+W13*(1-$D$177),W212)","v":3.1209341423206739E-2},{"$f":"IF('Data Input - Proposed'!$F$37=\"Yes\",X216+X13*(1-$D$177),X212)","v":3.0153953065900234E-2},{"$f":"IF('Data Input - Proposed'!$F$37=\"Yes\",Y216+Y13*(1-$D$177),Y212)","v":2.9134254169951919E-2},{"$f":"IF('Data Input - Proposed'!$F$37=\"Yes\",Z216+Z13*(1-$D$177),Z212)","v":2.8149037845364176E-2},{"$f":"IF('Data Input - Proposed'!$F$37=\"Yes\",AA216+AA13*(1-$D$177),AA212)","v":2.7197138014844618E-2},{"$f":"IF('Data Input - Proposed'!$F$37=\"Yes\",AB216+AB13*(1-$D$177),AB212)","v":2.6277428033666301E-2},{"$f":"IF('Data Input - Proposed'!$F$37=\"Yes\",AC216+AC13*(1-$D$177),AC212)","v":2.5388819356199327E-2},{"$f":"IF('Data Input - Proposed'!$F$37=\"Yes\",AD216+AD13*(1-$D$177),AD212)","v":2.4530260247535584E-2},{"$f":"IF('Data Input - Proposed'!$F$37=\"Yes\",AE216+AE13*(1-$D$177),AE212)","v":2.3700734538681725E-2},{"$f":"IF('Data Input - Proposed'!$F$37=\"Yes\",AF216+AF13*(1-$D$177),AF212)","v":2.289926042384708E-2},{"$f":"IF('Data Input - Proposed'!$F$37=\"Yes\",AG216+AG13*(1-$D$177),AG212)","v":2.2124889298402978E-2},{"$f":"IF('Data Input - Proposed'!$F$37=\"Yes\",AH216+AH13*(1-$D$177),AH212)","v":2.1480475046993179E-2},{"$f":"IF('Data Input - Proposed'!$F$37=\"Yes\",AI216+AI13*(1-$D$177),AI212)","v":0},{"$f":"IF('Data Input - Proposed'!$F$37=\"Yes\",AJ216+AJ13*(1-$D$177),AJ212)","v":0},{"$f":"IF('Data Input - Proposed'!$F$37=\"Yes\",AK216+AK13*(1-$D$177),AK212)","v":0},{"$f":"IF('Data Input - Proposed'!$F$37=\"Yes\",AL216+AL13*(1-$D$177),AL212)","v":0},{"$f":"IF('Data Input - Proposed'!$F$37=\"Yes\",AM216+AM13*(1-$D$177),AM212)","v":0},{"$f":"IF('Data Input - Proposed'!$F$37=\"Yes\",AN216+AN13*(1-$D$177),AN212)","v":0},{"$f":"IF('Data Input - Proposed'!$F$37=\"Yes\",AO216+AO13*(1-$D$177),AO212)","v":0},{"$f":"IF('Data Input - Proposed'!$F$37=\"Yes\",AP216+AP13*(1-$D$177),AP212)","v":0},{"$f":"IF('Data Input - Proposed'!$F$37=\"Yes\",AQ216+AQ13*(1-$D$177),AQ212)","v":0},{"$f":"IF('Data Input - Proposed'!$F$37=\"Yes\",AR216+AR13*(1-$D$177),AR212)","v":0},{"$f":"IF('Data Input - Proposed'!$F$37=\"Yes\",AS216+AS13*(1-$D$177),AS212)","v":0},{"$f":"IF('Data Input - Proposed'!$F$37=\"Yes\",AT216+AT13*(1-$D$177),AT212)","v":0},{"$f":"IF('Data Input - Proposed'!$F$37=\"Yes\",AU216+AU13*(1-$D$177),AU212)","v":0},{"$f":"IF('Data Input - Proposed'!$F$37=\"Yes\",AV216+AV13*(1-$D$177),AV212)","v":0},{"$f":"IF('Data Input - Proposed'!$F$37=\"Yes\",AW216+AW13*(1-$D$177),AW212)","v":0},{"$f":"IF('Data Input - Proposed'!$F$37=\"Yes\",AX216+AX13*(1-$D$177),AX212)","v":0},{"$f":"IF('Data Input - Proposed'!$F$37=\"Yes\",AY216+AY13*(1-$D$177),AY212)","v":0},{"$f":"IF('Data Input - Proposed'!$F$37=\"Yes\",AZ216+AZ13*(1-$D$177),AZ212)","v":0},{"$f":"IF('Data Input - Proposed'!$F$37=\"Yes\",BA216+BA13*(1-$D$177),BA212)","v":0},{"$f":"IF('Data Input - Proposed'!$F$37=\"Yes\",BB216+BB13*(1-$D$177),BB212)","v":0},{"$f":"IF('Data Input - Proposed'!$F$37=\"Yes\",BC216+BC13*(1-$D$177),BC212)","v":0},{"$f":"IF('Data Input - Proposed'!$F$37=\"Yes\",BD216+BD13*(1-$D$177),BD212)","v":0},{"$f":"IF('Data Input - Proposed'!$F$37=\"Yes\",BE216+BE13*(1-$D$177),BE212)","v":0},{"$f":"IF('Data Input - Proposed'!$F$37=\"Yes\",BF216+BF13*(1-$D$177),BF212)","v":0},{"$f":"IF('Data Input - Proposed'!$F$37=\"Yes\",BG216+BG13*(1-$D$177),BG212)","v":0},{"$f":"IF('Data Input - Proposed'!$F$37=\"Yes\",BH216+BH13*(1-$D$177),BH212)","v":0},{"$f":"IF('Data Input - Proposed'!$F$37=\"Yes\",BI216+BI13*(1-$D$177),BI212)","v":0},{"$f":"IF('Data Input - Proposed'!$F$37=\"Yes\",BJ216+BJ13*(1-$D$177),BJ212)","v":0},{"$f":"IF('Data Input - Proposed'!$F$37=\"Yes\",BK216+BK13*(1-$D$177),BK212)","v":0},{"$f":"IF('Data Input - Proposed'!$F$37=\"Yes\",BL216+BL13*(1-$D$177),BL212)","v":0},{"$f":"IF('Data Input - Proposed'!$F$37=\"Yes\",BM216+BM13*(1-$D$177),BM212)","v":0},{"$f":"IF('Data Input - Proposed'!$F$37=\"Yes\",BN216+BN13*(1-$D$177),BN212)","v":0},{"$f":"IF('Data Input - Proposed'!$F$37=\"Yes\",BO216+BO13*(1-$D$177),BO212)","v":0},{"$f":"IF('Data Input - Proposed'!$F$37=\"Yes\",BP216+BP13*(1-$D$177),BP212)","v":0},{"$f":"IF('Data Input - Proposed'!$F$37=\"Yes\",BQ216+BQ13*(1-$D$177),BQ212)","v":0},{"$f":"IF('Data Input - Proposed'!$F$37=\"Yes\",BR216+BR13*(1-$D$177),BR212)","v":0},{"$f":"IF('Data Input - Proposed'!$F$37=\"Yes\",BS216+BS13*(1-$D$177),BS212)","v":0},{"$f":"IF('Data Input - Proposed'!$F$37=\"Yes\",BT216+BT13*(1-$D$177),BT212)","v":0},{"$f":"IF('Data Input - Proposed'!$F$37=\"Yes\",BU216+BU13*(1-$D$177),BU212)","v":0},{"$f":"IF('Data Input - Proposed'!$F$37=\"Yes\",BV216+BV13*(1-$D$177),BV212)","v":0},{"$f":"IF('Data Input - Proposed'!$F$37=\"Yes\",BW216+BW13*(1-$D$177),BW212)","v":0},{"$f":"IF('Data Input - Proposed'!$F$37=\"Yes\",BX216+BX13*(1-$D$177),BX212)","v":0},{"$f":"IF('Data Input - Proposed'!$F$37=\"Yes\",BY216+BY13*(1-$D$177),BY212)","v":0},{"$f":"IF('Data Input - Proposed'!$F$37=\"Yes\",BZ216+BZ13*(1-$D$177),BZ212)","v":0},{"$f":"IF('Data Input - Proposed'!$F$37=\"Yes\",CA216+CA13*(1-$D$177),CA212)","v":0},{"$f":"IF('Data Input - Proposed'!$F$37=\"Yes\",CB216+CB13*(1-$D$177),CB212)","v":0},{"$f":"IF('Data Input - Proposed'!$F$37=\"Yes\",CC216+CC13*(1-$D$177),CC212)","v":0},{"$f":"IF('Data Input - Proposed'!$F$37=\"Yes\",CD216+CD13*(1-$D$177),CD212)","v":0},{"$f":"IF('Data Input - Proposed'!$F$37=\"Yes\",CE216+CE13*(1-$D$177),CE212)","v":0},{"$f":"IF('Data Input - Proposed'!$F$37=\"Yes\",CF216+CF13*(1-$D$177),CF212)","v":0},{"$f":"IF('Data Input - Proposed'!$F$37=\"Yes\",CG216+CG13*(1-$D$177),CG212)","v":0},{"$f":"IF('Data Input - Proposed'!$F$37=\"Yes\",CH216+CH13*(1-$D$177),CH212)","v":0},{"$f":"IF('Data Input - Proposed'!$F$37=\"Yes\",CI216+CI13*(1-$D$177),CI212)","v":0},{"$f":"IF('Data Input - Proposed'!$F$37=\"Yes\",CJ216+CJ13*(1-$D$177),CJ212)","v":0},{"$f":"IF('Data Input - Proposed'!$F$37=\"Yes\",CK216+CK13*(1-$D$177),CK212)","v":0},{"$f":"IF('Data Input - Proposed'!$F$37=\"Yes\",CL216+CL13*(1-$D$177),CL212)","v":0},{"$f":"IF('Data Input - Proposed'!$F$37=\"Yes\",CM216+CM13*(1-$D$177),CM212)","v":0},{"$f":"IF('Data Input - Proposed'!$F$37=\"Yes\",CN216+CN13*(1-$D$177),CN212)","v":0},{"$f":"IF('Data Input - Proposed'!$F$37=\"Yes\",CO216+CO13*(1-$D$177),CO212)","v":0},{"$f":"IF('Data Input - Proposed'!$F$37=\"Yes\",CP216+CP13*(1-$D$177),CP212)","v":0},{"$f":"IF('Data Input - Proposed'!$F$37=\"Yes\",CQ216+CQ13*(1-$D$177),CQ212)","v":0},{"$f":"IF('Data Input - Proposed'!$F$37=\"Yes\",CR216+CR13*(1-$D$177),CR212)","v":0},{"$f":"IF('Data Input - Proposed'!$F$37=\"Yes\",CS216+CS13*(1-$D$177),CS212)","v":0},{"$f":"IF('Data Input - Proposed'!$F$37=\"Yes\",CT216+CT13*(1-$D$177),CT212)","v":0},{"$f":"IF('Data Input - Proposed'!$F$37=\"Yes\",CU216+CU13*(1-$D$177),CU212)","v":0},{"$f":"IF('Data Input - Proposed'!$F$37=\"Yes\",CV216+CV13*(1-$D$177),CV212)","v":0},{"$f":"IF('Data Input - Proposed'!$F$37=\"Yes\",CW216+CW13*(1-$D$177),CW212)","v":0},{"$f":"IF('Data Input - Proposed'!$F$37=\"Yes\",CX216+CX13*(1-$D$177),CX212)","v":0},{"$f":"IF('Data Input - Proposed'!$F$37=\"Yes\",CY216+CY13*(1-$D$177),CY212)","v":0}]
[]
[null,"High WACC","%",{"$f":"'Data Input - General'!H16","v":7.0000000000000007E-2}]
[null,"Annualised payment","£000's",{"$f":"IFERROR(-PMT($D$196,SUM('Data Input - General'!$G$26:$G$28),D20*(1+D177)*1000)/1000,0)","v":0}]
[null,"Annual value","£000's",{"$f":"IF(SUM($D$12:D$12)=0,0,$D$221)","v":0},{"$f":"IF(SUM($D$12:E$12)=0,0,$D$221)","v":0},{"$f":"IF(SUM($D$12:F$12)=0,0,$D$221)","v":0},{"$f":"IF(SUM($D$12:G$12)=0,0,$D$221)","v":0},{"$f":"IF(SUM($D$12:H$12)=0,0,$D$221)","v":0},{"$f":"IF(SUM($D$12:I$12)=0,0,$D$221)","v":0},{"$f":"IF(SUM($D$12:J$12)=0,0,$D$221)","v":0},{"$f":"IF(SUM($D$12:K$12)=0,0,$D$221)","v":0},{"$f":"IF(SUM($D$12:L$12)=0,0,$D$221)","v":0},{"$f":"IF(SUM($D$12:M$12)=0,0,$D$221)","v":0},{"$f":"IF(SUM($D$12:N$12)=0,0,$D$221)","v":0},{"$f":"IF(SUM($D$12:O$12)=0,0,$D$221)","v":0},{"$f":"IF(SUM($D$12:P$12)=0,0,$D$221)","v":0},{"$f":"IF(SUM($D$12:Q$12)=0,0,$D$221)","v":0},{"$f":"IF(SUM($D$12:R$12)=0,0,$D$221)","v":0},{"$f":"IF(SUM($D$12:S$12)=0,0,$D$221)","v":0},{"$f":"IF(SUM($D$12:T$12)=0,0,$D$221)","v":0},{"$f":"IF(SUM($D$12:U$12)=0,0,$D$221)","v":0},{"$f":"IF(SUM($D$12:V$12)=0,0,$D$221)","v":0},{"$f":"IF(SUM($D$12:W$12)=0,0,$D$221)","v":0},{"$f":"IF(SUM($D$12:X$12)=0,0,$D$221)","v":0},{"$f":"IF(SUM($D$12:Y$12)=0,0,$D$221)","v":0},{"$f":"IF(SUM($D$12:Z$12)=0,0,$D$221)","v":0},{"$f":"IF(SUM($D$12:AA$12)=0,0,$D$221)","v":0},{"$f":"IF(SUM($D$12:AB$12)=0,0,$D$221)","v":0},{"$f":"IF(SUM($D$12:AC$12)=0,0,$D$221)","v":0},{"$f":"IF(SUM($D$12:AD$12)=0,0,$D$221)","v":0},{"$f":"IF(SUM($D$12:AE$12)=0,0,$D$221)","v":0},{"$f":"IF(SUM($D$12:AF$12)=0,0,$D$221)","v":0},{"$f":"IF(SUM($D$12:AG$12)=0,0,$D$221)","v":0},{"$f":"IF(SUM($D$12:AH$12)=0,0,$D$221)","v":0},{"$f":"IF(SUM($D$12:AI$12)=0,0,$D$221)","v":0},{"$f":"IF(SUM($D$12:AJ$12)=0,0,$D$221)","v":0},{"$f":"IF(SUM($D$12:AK$12)=0,0,$D$221)","v":0},{"$f":"IF(SUM($D$12:AL$12)=0,0,$D$221)","v":0},{"$f":"IF(SUM($D$12:AM$12)=0,0,$D$221)","v":0},{"$f":"IF(SUM($D$12:AN$12)=0,0,$D$221)","v":0},{"$f":"IF(SUM($D$12:AO$12)=0,0,$D$221)","v":0},{"$f":"IF(SUM($D$12:AP$12)=0,0,$D$221)","v":0},{"$f":"IF(SUM($D$12:AQ$12)=0,0,$D$221)","v":0},{"$f":"IF(SUM($D$12:AR$12)=0,0,$D$221)","v":0},{"$f":"IF(SUM($D$12:AS$12)=0,0,$D$221)","v":0},{"$f":"IF(SUM($D$12:AT$12)=0,0,$D$221)","v":0},{"$f":"IF(SUM($D$12:AU$12)=0,0,$D$221)","v":0},{"$f":"IF(SUM($D$12:AV$12)=0,0,$D$221)","v":0},{"$f":"IF(SUM($D$12:AW$12)=0,0,$D$221)","v":0},{"$f":"IF(SUM($D$12:AX$12)=0,0,$D$221)","v":0},{"$f":"IF(SUM($D$12:AY$12)=0,0,$D$221)","v":0},{"$f":"IF(SUM($D$12:AZ$12)=0,0,$D$221)","v":0},{"$f":"IF(SUM($D$12:BA$12)=0,0,$D$221)","v":0},{"$f":"IF(SUM($D$12:BB$12)=0,0,$D$221)","v":0},{"$f":"IF(SUM($D$12:BC$12)=0,0,$D$221)","v":0},{"$f":"IF(SUM($D$12:BD$12)=0,0,$D$221)","v":0},{"$f":"IF(SUM($D$12:BE$12)=0,0,$D$221)","v":0},{"$f":"IF(SUM($D$12:BF$12)=0,0,$D$221)","v":0},{"$f":"IF(SUM($D$12:BG$12)=0,0,$D$221)","v":0},{"$f":"IF(SUM($D$12:BH$12)=0,0,$D$221)","v":0},{"$f":"IF(SUM($D$12:BI$12)=0,0,$D$221)","v":0},{"$f":"IF(SUM($D$12:BJ$12)=0,0,$D$221)","v":0},{"$f":"IF(SUM($D$12:BK$12)=0,0,$D$221)","v":0},{"$f":"IF(SUM($D$12:BL$12)=0,0,$D$221)","v":0},{"$f":"IF(SUM($D$12:BM$12)=0,0,$D$221)","v":0},{"$f":"IF(SUM($D$12:BN$12)=0,0,$D$221)","v":0},{"$f":"IF(SUM($D$12:BO$12)=0,0,$D$221)","v":0},{"$f":"IF(SUM($D$12:BP$12)=0,0,$D$221)","v":0},{"$f":"IF(SUM($D$12:BQ$12)=0,0,$D$221)","v":0},{"$f":"IF(SUM($D$12:BR$12)=0,0,$D$221)","v":0},{"$f":"IF(SUM($D$12:BS$12)=0,0,$D$221)","v":0},{"$f":"IF(SUM($D$12:BT$12)=0,0,$D$221)","v":0},{"$f":"IF(SUM($D$12:BU$12)=0,0,$D$221)","v":0},{"$f":"IF(SUM($D$12:BV$12)=0,0,$D$221)","v":0},{"$f":"IF(SUM($D$12:BW$12)=0,0,$D$221)","v":0},{"$f":"IF(SUM($D$12:BX$12)=0,0,$D$221)","v":0},{"$f":"IF(SUM($D$12:BY$12)=0,0,$D$221)","v":0},{"$f":"IF(SUM($D$12:BZ$12)=0,0,$D$221)","v":0},{"$f":"IF(SUM($D$12:CA$12)=0,0,$D$221)","v":0},{"$f":"IF(SUM($D$12:CB$12)=0,0,$D$221)","v":0},{"$f":"IF(SUM($D$12:CC$12)=0,0,$D$221)","v":0},{"$f":"IF(SUM($D$12:CD$12)=0,0,$D$221)","v":0},{"$f":"IF(SUM($D$12:CE$12)=0,0,$D$221)","v":0},{"$f":"IF(SUM($D$12:CF$12)=0,0,$D$221)","v":0},{"$f":"IF(SUM($D$12:CG$12)=0,0,$D$221)","v":0},{"$f":"IF(SUM($D$12:CH$12)=0,0,$D$221)","v":0},{"$f":"IF(SUM($D$12:CI$12)=0,0,$D$221)","v":0},{"$f":"IF(SUM($D$12:CJ$12)=0,0,$D$221)","v":0},{"$f":"IF(SUM($D$12:CK$12)=0,0,$D$221)","v":0},{"$f":"IF(SUM($D$12:CL$12)=0,0,$D$221)","v":0},{"$f":"IF(SUM($D$12:CM$12)=0,0,$D$221)","v":0},{"$f":"IF(SUM($D$12:CN$12)=0,0,$D$221)","v":0},{"$f":"IF(SUM($D$12:CO$12)=0,0,$D$221)","v":0},{"$f":"IF(SUM($D$12:CP$12)=0,0,$D$221)","v":0},{"$f":"IF(SUM($D$12:CQ$12)=0,0,$D$221)","v":0},{"$f":"IF(SUM($D$12:CR$12)=0,0,$D$221)","v":0},{"$f":"IF(SUM($D$12:CS$12)=0,0,$D$221)","v":0},{"$f":"IF(SUM($D$12:CT$12)=0,0,$D$221)","v":0},{"$f":"IF(SUM($D$12:CU$12)=0,0,$D$221)","v":0},{"$f":"IF(SUM($D$12:CV$12)=0,0,$D$221)","v":0},{"$f":"IF(SUM($D$12:CW$12)=0,0,$D$221)","v":0},{"$f":"IF(SUM($D$12:CX$12)=0,0,$D$221)","v":0},{"$f":"IF(SUM($D$12:CY$12)=0,0,$D$221)","v":0}]
[null,"Discounted WACC","£000's",{"$f":"D222*D$7","v":0},0,0,0,0,0,0,0,0,0,0,0,0,0,0,0,0,0,0,0,0,0,0,0,0,0,0,0,0,0,0,0,0,0,0,0,0,0,0,0,0,0,0,0,0,0,0,0,0,0,0,0,0,0,0,0,0,0,0,0,0,0,0,0,{"$f":"BP222*BP$7","v":0},0,0,0,0,0,0,0,0,0,0,0,0,0,0,0,0,0,0,0,0,0,0,0,0,0,0,0,0,0,0,0,0,0,0,0]
[]
[null,"Financing costs"]
[null,"Financing costs (if entered manually)","£000's",{"$f":"'Data Input - Proposed'!H42","v":0},{"$f":"'Data Input - Proposed'!I42","v":0},{"$f":"'Data Input - Proposed'!J42","v":0},{"$f":"'Data Input - Proposed'!K42","v":0},{"$f":"'Data Input - Proposed'!L42","v":0},{"$f":"'Data Input - Proposed'!M42","v":0},{"$f":"'Data Input - Proposed'!N42","v":0},{"$f":"'Data Input - Proposed'!O42","v":0},{"$f":"'Data Input - Proposed'!P42","v":0},{"$f":"'Data Input - Proposed'!Q42","v":0},{"$f":"'Data Input - Proposed'!R42","v":0},{"$f":"'Data Input - Proposed'!S42","v":0},{"$f":"'Data Input - Proposed'!T42","v":0},{"$f":"'Data Input - Proposed'!U42","v":0},{"$f":"'Data Input - Proposed'!V42","v":0},{"$f":"'Data Input - Proposed'!W42","v":0},{"$f":"'Data Input - Proposed'!X42","v":0},{"$f":"'Data Input - Proposed'!Y42","v":0},{"$f":"'Data Input - Proposed'!Z42","v":0},{"$f":"'Data Input - Proposed'!AA42","v":0},{"$f":"'Data Input - Proposed'!AB42","v":0},{"$f":"'Data Input - Proposed'!AC42","v":0},{"$f":"'Data Input - Proposed'!AD42","v":0},{"$f":"'Data Input - Proposed'!AE42","v":0},{"$f":"'Data Input - Proposed'!AF42","v":0},{"$f":"'Data Input - Proposed'!AG42","v":0},{"$f":"'Data Input - Proposed'!AH42","v":0},{"$f":"'Data Input - Proposed'!AI42","v":0},{"$f":"'Data Input - Proposed'!AJ42","v":0},{"$f":"'Data Input - Proposed'!AK42","v":0},{"$f":"'Data Input - Proposed'!AL42","v":0},{"$f":"'Data Input - Proposed'!AM42","v":0},{"$f":"'Data Input - Proposed'!AN42","v":0},{"$f":"'Data Input - Proposed'!AO42","v":0},{"$f":"'Data Input - Proposed'!AP42","v":0},{"$f":"'Data Input - Proposed'!AQ42","v":0},{"$f":"'Data Input - Proposed'!AR42","v":0},{"$f":"'Data Input - Proposed'!AS42","v":0},{"$f":"'Data Input - Proposed'!AT42","v":0},{"$f":"'Data Input - Proposed'!AU42","v":0},{"$f":"'Data Input - Proposed'!AV42","v":0},{"$f":"'Data Input - Proposed'!AW42","v":0},{"$f":"'Data Input - Proposed'!AX42","v":0},{"$f":"'Data Input - Proposed'!AY42","v":0},{"$f":"'Data Input - Proposed'!AZ42","v":0},{"$f":"'Data Input - Proposed'!BA42","v":0},{"$f":"'Data Input - Proposed'!BB42","v":0},{"$f":"'Data Input - Proposed'!BC42","v":0},{"$f":"'Data Input - Proposed'!BD42","v":0},{"$f":"'Data Input - Proposed'!BE42","v":0},{"$f":"'Data Input - Proposed'!BF42","v":0},{"$f":"'Data Input - Proposed'!BG42","v":0},{"$f":"'Data Input - Proposed'!BH42","v":0},{"$f":"'Data Input - Proposed'!BI42","v":0},{"$f":"'Data Input - Proposed'!BJ42","v":0},{"$f":"'Data Input - Proposed'!BK42","v":0},{"$f":"'Data Input - Proposed'!BL42","v":0},{"$f":"'Data Input - Proposed'!BM42","v":0},{"$f":"'Data Input - Proposed'!BN42","v":0},{"$f":"'Data Input - Proposed'!BO42","v":0},{"$f":"'Data Input - Proposed'!BP42","v":0},{"$f":"'Data Input - Proposed'!BQ42","v":0},{"$f":"'Data Input - Proposed'!BR42","v":0},{"$f":"'Data Input - Proposed'!BS42","v":0},{"$f":"'Data Input - Proposed'!BT42","v":0},{"$f":"'Data Input - Proposed'!BU42","v":0},{"$f":"'Data Input - Proposed'!BV42","v":0},{"$f":"'Data Input - Proposed'!BW42","v":0},{"$f":"'Data Input - Proposed'!BX42","v":0},{"$f":"'Data Input - Proposed'!BY42","v":0},{"$f":"'Data Input - Proposed'!BZ42","v":0},{"$f":"'Data Input - Proposed'!CA42","v":0},{"$f":"'Data Input - Proposed'!CB42","v":0},{"$f":"'Data Input - Proposed'!CC42","v":0},{"$f":"'Data Input - Proposed'!CD42","v":0},{"$f":"'Data Input - Proposed'!CE42","v":0},{"$f":"'Data Input - Proposed'!CF42","v":0},{"$f":"'Data Input - Proposed'!CG42","v":0},{"$f":"'Data Input - Proposed'!CH42","v":0},{"$f":"'Data Input - Proposed'!CI42","v":0},{"$f":"'Data Input - Proposed'!CJ42","v":0},{"$f":"'Data Input - Proposed'!CK42","v":0},{"$f":"'Data Input - Proposed'!CL42","v":0},{"$f":"'Data Input - Proposed'!CM42","v":0},{"$f":"'Data Input - Proposed'!CN42","v":0},{"$f":"'Data Input - Proposed'!CO42","v":0},{"$f":"'Data Input - Proposed'!CP42","v":0},{"$f":"'Data Input - Proposed'!CQ42","v":0},{"$f":"'Data Input - Proposed'!CR42","v":0},{"$f":"'Data Input - Proposed'!CS42","v":0},{"$f":"'Data Input - Proposed'!CT42","v":0},{"$f":"'Data Input - Proposed'!CU42","v":0},{"$f":"'Data Input - Proposed'!CV42","v":0},{"$f":"'Data Input - Proposed'!CW42","v":0},{"$f":"'Data Input - Proposed'!CX42","v":0},{"$f":"'Data Input - Proposed'!CY42","v":0},{"$f":"'Data Input - Proposed'!CZ42","v":0},{"$f":"'Data Input - Proposed'!DA42","v":0},{"$f":"'Data Input - Proposed'!DB42","v":0},{"$f":"'Data Input - Proposed'!DC42","v":0}]
[null,"Discounted finacning","£000's",{"$f":"D226*D$7","v":0},0,0,0,0,0,0,0,0,0,0,0,0,0,0,0,0,0,0,0,0,0,0,0,0,0,0,0,0,0,0,0,0,0,0,0,0,0,0,0,0,0,0,0,0,0,0,0,0,0,0,0,0,0,0,0,0,0,0,0,0,0,0,0,{"$f":"BP226*BP$7","v":0},0,0,0,0,0,0,0,0,0,0,0,0,0,0,0,0,0,0,0,0,0,0,0,0,0,0,0,0,0,0,0,0,0,0,0]
[]
[null,"Total capex","£000's",{"$f":"IF('Data Input - Proposed'!$F$37=\"Yes\",D227+D13*(1+$D$177),D223)","v":0},{"$f":"IF('Data Input - Proposed'!$F$37=\"Yes\",E227+E13*(1+$D$177),E223)","v":0},{"$f":"IF('Data Input - Proposed'!$F$37=\"Yes\",F227+F13*(1+$D$177),F223)","v":0},{"$f":"IF('Data Input - Proposed'!$F$37=\"Yes\",G227+G13*(1+$D$177),G223)","v":0},{"$f":"IF('Data Input - Proposed'!$F$37=\"Yes\",H227+H13*(1+$D$177),H223)","v":0},{"$f":"IF('Data Input - Proposed'!$F$37=\"Yes\",I227+I13*(1+$D$177),I223)","v":0},{"$f":"IF('Data Input - Proposed'!$F$37=\"Yes\",J227+J13*(1+$D$177),J223)","v":0},{"$f":"IF('Data Input - Proposed'!$F$37=\"Yes\",K227+K13*(1+$D$177),K223)","v":0},{"$f":"IF('Data Input - Proposed'!$F$37=\"Yes\",L227+L13*(1+$D$177),L223)","v":0},{"$f":"IF('Data Input - Proposed'!$F$37=\"Yes\",M227+M13*(1+$D$177),M223)","v":0},{"$f":"IF('Data Input - Proposed'!$F$37=\"Yes\",N227+N13*(1+$D$177),N223)","v":0},{"$f":"IF('Data Input - Proposed'!$F$37=\"Yes\",O227+O13*(1+$D$177),O223)","v":0},{"$f":"IF('Data Input - Proposed'!$F$37=\"Yes\",P227+P13*(1+$D$177),P223)","v":0},{"$f":"IF('Data Input - Proposed'!$F$37=\"Yes\",Q227+Q13*(1+$D$177),Q223)","v":0},{"$f":"IF('Data Input - Proposed'!$F$37=\"Yes\",R227+R13*(1+$D$177),R223)","v":0},{"$f":"IF('Data Input - Proposed'!$F$37=\"Yes\",S227+S13*(1+$D$177),S223)","v":0},{"$f":"IF('Data Input - Proposed'!$F$37=\"Yes\",T227+T13*(1+$D$177),T223)","v":0},{"$f":"IF('Data Input - Proposed'!$F$37=\"Yes\",U227+U13*(1+$D$177),U223)","v":0},{"$f":"IF('Data Input - Proposed'!$F$37=\"Yes\",V227+V13*(1+$D$177),V223)","v":0},{"$f":"IF('Data Input - Proposed'!$F$37=\"Yes\",W227+W13*(1+$D$177),W223)","v":0},{"$f":"IF('Data Input - Proposed'!$F$37=\"Yes\",X227+X13*(1+$D$177),X223)","v":0},{"$f":"IF('Data Input - Proposed'!$F$37=\"Yes\",Y227+Y13*(1+$D$177),Y223)","v":0},{"$f":"IF('Data Input - Proposed'!$F$37=\"Yes\",Z227+Z13*(1+$D$177),Z223)","v":0},{"$f":"IF('Data Input - Proposed'!$F$37=\"Yes\",AA227+AA13*(1+$D$177),AA223)","v":0},{"$f":"IF('Data Input - Proposed'!$F$37=\"Yes\",AB227+AB13*(1+$D$177),AB223)","v":0},{"$f":"IF('Data Input - Proposed'!$F$37=\"Yes\",AC227+AC13*(1+$D$177),AC223)","v":0},{"$f":"IF('Data Input - Proposed'!$F$37=\"Yes\",AD227+AD13*(1+$D$177),AD223)","v":0},{"$f":"IF('Data Input - Proposed'!$F$37=\"Yes\",AE227+AE13*(1+$D$177),AE223)","v":0},{"$f":"IF('Data Input - Proposed'!$F$37=\"Yes\",AF227+AF13*(1+$D$177),AF223)","v":0},{"$f":"IF('Data Input - Proposed'!$F$37=\"Yes\",AG227+AG13*(1+$D$177),AG223)","v":0},{"$f":"IF('Data Input - Proposed'!$F$37=\"Yes\",AH227+AH13*(1+$D$177),AH223)","v":0},{"$f":"IF('Data Input - Proposed'!$F$37=\"Yes\",AI227+AI13*(1+$D$177),AI223)","v":0},{"$f":"IF('Data Input - Proposed'!$F$37=\"Yes\",AJ227+AJ13*(1+$D$177),AJ223)","v":0},{"$f":"IF('Data Input - Proposed'!$F$37=\"Yes\",AK227+AK13*(1+$D$177),AK223)","v":0},{"$f":"IF('Data Input - Proposed'!$F$37=\"Yes\",AL227+AL13*(1+$D$177),AL223)","v":0},{"$f":"IF('Data Input - Proposed'!$F$37=\"Yes\",AM227+AM13*(1+$D$177),AM223)","v":0},{"$f":"IF('Data Input - Proposed'!$F$37=\"Yes\",AN227+AN13*(1+$D$177),AN223)","v":0},{"$f":"IF('Data Input - Proposed'!$F$37=\"Yes\",AO227+AO13*(1+$D$177),AO223)","v":0},{"$f":"IF('Data Input - Proposed'!$F$37=\"Yes\",AP227+AP13*(1+$D$177),AP223)","v":0},{"$f":"IF('Data Input - Proposed'!$F$37=\"Yes\",AQ227+AQ13*(1+$D$177),AQ223)","v":0},{"$f":"IF('Data Input - Proposed'!$F$37=\"Yes\",AR227+AR13*(1+$D$177),AR223)","v":0},{"$f":"IF('Data Input - Proposed'!$F$37=\"Yes\",AS227+AS13*(1+$D$177),AS223)","v":0},{"$f":"IF('Data Input - Proposed'!$F$37=\"Yes\",AT227+AT13*(1+$D$177),AT223)","v":0},{"$f":"IF('Data Input - Proposed'!$F$37=\"Yes\",AU227+AU13*(1+$D$177),AU223)","v":0},{"$f":"IF('Data Input - Proposed'!$F$37=\"Yes\",AV227+AV13*(1+$D$177),AV223)","v":0},{"$f":"IF('Data Input - Proposed'!$F$37=\"Yes\",AW227+AW13*(1+$D$177),AW223)","v":0},{"$f":"IF('Data Input - Proposed'!$F$37=\"Yes\",AX227+AX13*(1+$D$177),AX223)","v":0},{"$f":"IF('Data Input - Proposed'!$F$37=\"Yes\",AY227+AY13*(1+$D$177),AY223)","v":0},{"$f":"IF('Data Input - Proposed'!$F$37=\"Yes\",AZ227+AZ13*(1+$D$177),AZ223)","v":0},{"$f":"IF('Data Input - Proposed'!$F$37=\"Yes\",BA227+BA13*(1+$D$177),BA223)","v":0},{"$f":"IF('Data Input - Proposed'!$F$37=\"Yes\",BB227+BB13*(1+$D$177),BB223)","v":0},{"$f":"IF('Data Input - Proposed'!$F$37=\"Yes\",BC227+BC13*(1+$D$177),BC223)","v":0},{"$f":"IF('Data Input - Proposed'!$F$37=\"Yes\",BD227+BD13*(1+$D$177),BD223)","v":0},{"$f":"IF('Data Input - Proposed'!$F$37=\"Yes\",BE227+BE13*(1+$D$177),BE223)","v":0},{"$f":"IF('Data Input - Proposed'!$F$37=\"Yes\",BF227+BF13*(1+$D$177),BF223)","v":0},{"$f":"IF('Data Input - Proposed'!$F$37=\"Yes\",BG227+BG13*(1+$D$177),BG223)","v":0},{"$f":"IF('Data Input - Proposed'!$F$37=\"Yes\",BH227+BH13*(1+$D$177),BH223)","v":0},{"$f":"IF('Data Input - Proposed'!$F$37=\"Yes\",BI227+BI13*(1+$D$177),BI223)","v":0},{"$f":"IF('Data Input - Proposed'!$F$37=\"Yes\",BJ227+BJ13*(1+$D$177),BJ223)","v":0},{"$f":"IF('Data Input - Proposed'!$F$37=\"Yes\",BK227+BK13*(1+$D$177),BK223)","v":0},{"$f":"IF('Data Input - Proposed'!$F$37=\"Yes\",BL227+BL13*(1+$D$177),BL223)","v":0},{"$f":"IF('Data Input - Proposed'!$F$37=\"Yes\",BM227+BM13*(1+$D$177),BM223)","v":0},{"$f":"IF('Data Input - Proposed'!$F$37=\"Yes\",BN227+BN13*(1+$D$177),BN223)","v":0},{"$f":"IF('Data Input - Proposed'!$F$37=\"Yes\",BO227+BO13*(1+$D$177),BO223)","v":0},{"$f":"IF('Data Input - Proposed'!$F$37=\"Yes\",BP227+BP13*(1+$D$177),BP223)","v":0},{"$f":"IF('Data Input - Proposed'!$F$37=\"Yes\",BQ227+BQ13*(1+$D$177),BQ223)","v":0},{"$f":"IF('Data Input - Proposed'!$F$37=\"Yes\",BR227+BR13*(1+$D$177),BR223)","v":0},{"$f":"IF('Data Input - Proposed'!$F$37=\"Yes\",BS227+BS13*(1+$D$177),BS223)","v":0},{"$f":"IF('Data Input - Proposed'!$F$37=\"Yes\",BT227+BT13*(1+$D$177),BT223)","v":0},{"$f":"IF('Data Input - Proposed'!$F$37=\"Yes\",BU227+BU13*(1+$D$177),BU223)","v":0},{"$f":"IF('Data Input - Proposed'!$F$37=\"Yes\",BV227+BV13*(1+$D$177),BV223)","v":0},{"$f":"IF('Data Input - Proposed'!$F$37=\"Yes\",BW227+BW13*(1+$D$177),BW223)","v":0},{"$f":"IF('Data Input - Proposed'!$F$37=\"Yes\",BX227+BX13*(1+$D$177),BX223)","v":0},{"$f":"IF('Data Input - Proposed'!$F$37=\"Yes\",BY227+BY13*(1+$D$177),BY223)","v":0},{"$f":"IF('Data Input - Proposed'!$F$37=\"Yes\",BZ227+BZ13*(1+$D$177),BZ223)","v":0},{"$f":"IF('Data Input - Proposed'!$F$37=\"Yes\",CA227+CA13*(1+$D$177),CA223)","v":0},{"$f":"IF('Data Input - Proposed'!$F$37=\"Yes\",CB227+CB13*(1+$D$177),CB223)","v":0},{"$f":"IF('Data Input - Proposed'!$F$37=\"Yes\",CC227+CC13*(1+$D$177),CC223)","v":0},{"$f":"IF('Data Input - Proposed'!$F$37=\"Yes\",CD227+CD13*(1+$D$177),CD223)","v":0},{"$f":"IF('Data Input - Proposed'!$F$37=\"Yes\",CE227+CE13*(1+$D$177),CE223)","v":0},{"$f":"IF('Data Input - Proposed'!$F$37=\"Yes\",CF227+CF13*(1+$D$177),CF223)","v":0},{"$f":"IF('Data Input - Proposed'!$F$37=\"Yes\",CG227+CG13*(1+$D$177),CG223)","v":0},{"$f":"IF('Data Input - Proposed'!$F$37=\"Yes\",CH227+CH13*(1+$D$177),CH223)","v":0},{"$f":"IF('Data Input - Proposed'!$F$37=\"Yes\",CI227+CI13*(1+$D$177),CI223)","v":0},{"$f":"IF('Data Input - Proposed'!$F$37=\"Yes\",CJ227+CJ13*(1+$D$177),CJ223)","v":0},{"$f":"IF('Data Input - Proposed'!$F$37=\"Yes\",CK227+CK13*(1+$D$177),CK223)","v":0},{"$f":"IF('Data Input - Proposed'!$F$37=\"Yes\",CL227+CL13*(1+$D$177),CL223)","v":0},{"$f":"IF('Data Input - Proposed'!$F$37=\"Yes\",CM227+CM13*(1+$D$177),CM223)","v":0},{"$f":"IF('Data Input - Proposed'!$F$37=\"Yes\",CN227+CN13*(1+$D$177),CN223)","v":0},{"$f":"IF('Data Input - Proposed'!$F$37=\"Yes\",CO227+CO13*(1+$D$177),CO223)","v":0},{"$f":"IF('Data Input - Proposed'!$F$37=\"Yes\",CP227+CP13*(1+$D$177),CP223)","v":0},{"$f":"IF('Data Input - Proposed'!$F$37=\"Yes\",CQ227+CQ13*(1+$D$177),CQ223)","v":0},{"$f":"IF('Data Input - Proposed'!$F$37=\"Yes\",CR227+CR13*(1+$D$177),CR223)","v":0},{"$f":"IF('Data Input - Proposed'!$F$37=\"Yes\",CS227+CS13*(1+$D$177),CS223)","v":0},{"$f":"IF('Data Input - Proposed'!$F$37=\"Yes\",CT227+CT13*(1+$D$177),CT223)","v":0},{"$f":"IF('Data Input - Proposed'!$F$37=\"Yes\",CU227+CU13*(1+$D$177),CU223)","v":0},{"$f":"IF('Data Input - Proposed'!$F$37=\"Yes\",CV227+CV13*(1+$D$177),CV223)","v":0},{"$f":"IF('Data Input - Proposed'!$F$37=\"Yes\",CW227+CW13*(1+$D$177),CW223)","v":0},{"$f":"IF('Data Input - Proposed'!$F$37=\"Yes\",CX227+CX13*(1+$D$177),CX223)","v":0},{"$f":"IF('Data Input - Proposed'!$F$37=\"Yes\",CY227+CY13*(1+$D$177),CY223)","v":0}]
[]
[null,"TOTALS"]
[]
[null,"Scenario Name",null,"Central","Low values","High values","EEA",null,"Low cost (Capex / opex)","High Cost (capex / opex)","Low WACC","High WACC","Low cost (Capex / WACC)","High cost (Capex / WACC)"]
[null,"Capex","£000's",{"$f":"SUM(D36:CY36)","v":0},null,null,null,null,{"$f":"D234*(1-$D$177)","v":0},{"$f":"D234*(1+$D$177)","v":0},{"$f":"SUM(D194:CY194)","v":0},{"$f":"SUM(D205:CY205)","v":0},{"$f":"SUM(D218:CY218)","v":1.1636264950926249},{"$f":"SUM(D229:CY229)","v":0}]
[null,"Opex","£000's",{"$f":"SUM(D40:CY40)","v":2441.2173950253136},null,null,null,null,{"$f":"$D$235*(1-$D$181)","v":1952.973916020251},{"$f":"$D$235*(1+$D$181)","v":2929.4608740303761}]
[null,"Waste","£000's",{"$f":"SUM(D44:CY44)","v":0}]
[null,"Energy consumption","£000's",{"$f":"SUM(D48:CY48)","v":11919.831628597303},{"$f":"SUM(D101:CY101)+SUM(D49:CY49)","v":10037.007675232446},{"$f":"SUM(D135:CY135)+SUM(D49:CY49)","v":13977.530704422566}]
[null,"Air pollutant emissions","£000's",{"$f":"SUM(D72:CY72)","v":33.016068586064108},{"$f":"SUM(D115:CY115)","v":7.8474347619674134},{"$f":"SUM(D149:CY149)","v":94.006057869550617},{"$f":"SUM(D173:CY173)","v":51.898075371535569}]
[null,"GHG emissions","£000's",{"$f":"SUM(D87:CY87)","v":15983.981786527293},{"$f":"SUM(D122:CY122)","v":7632.7113632680703},{"$f":"SUM(D156:CY156)","v":43812.459557315284}]
[null,"Wider impacts","£000's"]
[]
[null,"Sensitivity analysis",null,"Low capex","High capex","Low opex","High opex","Low energy price","High energy price","Low AQ Values","High AQ Values","EEA Values","Location adjusted AQ","Low WACC","High WACC"]
[null,"Capex","£000's",{"$f":"I234","v":0},{"$f":"J234","v":0},{"$f":"$D234","v":0},0,0,0,0,0,0,0,{"$f":"K234","v":0},{"$f":"L234","v":0}]
[null,"Opex","£000's",{"$f":"$D235","v":2441.2173950253136},2441.2173950253136,{"$f":"I235","v":1952.973916020251},{"$f":"J235","v":2929.4608740303761},{"$f":"$D235","v":2441.2173950253136},2441.2173950253136,2441.2173950253136,2441.2173950253136,2441.2173950253136,2441.2173950253136,2441.2173950253136,2441.2173950253136]
[null,"Waste","£000's",0,0,{"$f":"$D236","v":0},0,0,0,0,0,0,0,0,0]
[null,"Energy consumption","£000's",11919.831628597303,11919.831628597303,11919.831628597303,11919.831628597303,{"$f":"E237","v":10037.007675232446},{"$f":"F237","v":13977.530704422566},{"$f":"$D237","v":11919.831628597303},11919.831628597303,11919.831628597303,11919.831628597303,11919.831628597303,11919.831628597303]
[null,"Air pollutant emissions","£000's",33.016068586064108,33.016068586064108,33.016068586064108,33.016068586064108,{"$f":"$D238","v":33.016068586064108},{"$f":"$D238","v":33.016068586064108},{"$f":"E238","v":7.8474347619674134},{"$f":"F238","v":94.006057869550617},{"$f":"G238","v":51.898075371535569},{"$f":"H238","v":0},{"$f":"$D238","v":33.016068586064108},{"$f":"$D238","v":33.016068586064108}]
[null,"GHG emissions","£000's",15983.981786527293,15983.981786527293,15983.981786527293,15983.981786527293,{"$f":"$D239","v":15983.981786527293},{"$f":"$D239","v":15983.981786527293},{"$f":"$D239","v":15983.981786527293},{"$f":"$D239","v":15983.981786527293},{"$f":"$D239","v":15983.981786527293},{"$f":"$D239","v":15983.981786527293},{"$f":"$D239","v":15983.981786527293},{"$f":"$D239","v":15983.981786527293}]
[]
[null,"Scenario analysis",null,"H Cost/L Benefit","L Cost/H benefit"]
[null,"Capex","£000's",{"$f":"N234","v":0},{"$f":"M234","v":1.1636264950926249}]
[null,"Opex","£000's",{"$f":"J235","v":2929.4608740303761},{"$f":"I235","v":1952.973916020251}]
[null,"Waste","£000's",{"$f":"$D$236","v":0},{"$f":"$D$236","v":0}]
[null,"Energy consumption","£000's",{"$f":"E237","v":10037.007675232446},13977.530704422566]
[null,"Air pollutant emissions","£000's",7.8474347619674134,94.006057869550617]
[null,"GHG emissions","£000's",7632.7113632680703,43812.459557315284]
[]
[null,"Totals £m"]
[]
[null,"Scenario Name",null,"Central","Low values","High values","EEA","Location adjusted","Low cost (Capex / opex)","High Cost (capex / opex)","Low WACC","High WACC","Low cost (Capex / WACC)","High cost (Capex / WACC)"]
[null,"Capex","£m",{"$f":"D234/1000","v":0},0,0,0,0,0,0,0,0,1.163626495092625E-3,0]
[null,"Opex","£m",{"$f":"D235/1000","v":2.4412173950253138},0,0,0,0,1.9529739160202511,2.9294608740303762,0,0,0,0]
[null,"Waste","£m",{"$f":"D236/1000","v":0},0,0,0,0,0,0,0,0,0,0]
[null,"Energy consumption","£m",{"$f":"D237/1000","v":11.919831628597302},10.037007675232445,13.977530704422566,0,0,0,0,0,0,0,0]
[null,"Air pollutant emissions","£m",{"$f":"D238/1000","v":3.301606858606411E-2},7.8474347619674131E-3,9.4006057869550616E-2,5.1898075371535568E-2,0,0,0,0,0,0,0]
[null,"GHG emissions","£m",{"$f":"D239/1000","v":15.983981786527293},7.6327113632680703,43.812459557315286,0,0,0,0,0,0,0,0]
[null,"Wider impacts","£m",{"$f":"D240/1000","v":0},0,0,0,0,0,0,0,0,0,0]
[]
[null,"Sensitivity analysis",null,"Low capex","High capex","Low opex","High opex","Low energy price","High energy price","Low AQ Values","High AQ Values","EEA Values","Location adjusted AQ","Low WACC","High WACC"]
[null,"Capex","£m",{"$f":"D243/1000","v":0},0,0,0,0,0,0,0,0,0,0,0]
[null,"Opex","£m",{"$f":"D244/1000","v":2.4412173950253138},2.4412173950253138,1.9529739160202511,2.9294608740303762,2.4412173950253138,2.4412173950253138,2.4412173950253138,2.4412173950253138,2.4412173950253138,2.4412173950253138,2.4412173950253138,2.4412173950253138]
[null,"Waste","£m",{"$f":"D245/1000","v":0},0,0,0,0,0,0,0,0,0,0,0]
[null,"Energy consumption","£m",{"$f":"D246/1000","v":11.919831628597302},11.919831628597302,11.919831628597302,11.919831628597302,10.037007675232445,13.977530704422566,11.919831628597302,11.919831628597302,11.919831628597302,11.919831628597302,11.919831628597302,11.919831628597302]
[null,"Air pollutant emissions","£m",{"$f":"D247/1000","v":3.301606858606411E-2},3.301606858606411E-2,3.301606858606411E-2,3.301606858606411E-2,3.301606858606411E-2,3.301606858606411E-2,7.8474347619674131E-3,9.4006057869550616E-2,5.1898075371535568E-2,0,3.301606858606411E-2,3.301606858606411E-2]
[null,"GHG emissions","£m",{"$f":"D248/1000","v":15.983981786527293},15.983981786527293,15.983981786527293,15.983981786527293,15.983981786527293,15.983981786527293,15.983981786527293,15.983981786527293,15.983981786527293,15.983981786527293,15.983981786527293,15.983981786527293]
[]
[null,"Scenario analysis",null,{"$f":"D250","v":"H Cost/L Benefit"},"L Cost/H benefit"]
[null,"Capex","£m",{"$f":"D251/1000","v":0},1.163626495092625E-3]
[null,"Opex","£m",2.9294608740303762,1.9529739160202511]
[null,"Waste","£m",0,0]
[null,"Energy consumption","£m",10.037007675232445,13.977530704422566]
[null,"Air pollutant emissions","£m",7.8474347619674131E-3,9.4006057869550616E-2]
[null,"GHG emissions","£m",7.6327113632680703,43.812459557315286]

{"sheet":"Calc_BAT","index":21,"n_rows":283,"n_cols":103,"rows_kept":283,"cut":false,"hidden":false,"merged":[]}
[]
[null,"Calculations - BAT","<< BACK to Data Input"]
[null,{"$f":"IF(ISBLANK('Data Input - Case description'!G19),\"Option not selected\",'Data Input - Case description'!G19)","v":"BAT-AEL"}]
[null,"First year",{"$f":"IF('Data Input - General'!F25=0,'Data Input - General'!F22,'Data Input - General'!F25)","v":2019}]
[null,"Year number",null,0,1,2,3,4,5,6,7,8,9,10,11,12,13,14,15,16,17,18,19,20,21,22,23,24,25,26,27,28,29,30,31,32,33,34,35,36,37,38,39,40,41,42,43,44,45,46,47,48,49,50,51,52,53,54,55,56,57,58,59]
[null,"Year",null,{"$f":"'Data Input - BAT'!H7","v":2019},{"$f":"'Data Input - BAT'!I7","v":2020},{"$f":"'Data Input - BAT'!J7","v":2021},{"$f":"'Data Input - BAT'!K7","v":2022},{"$f":"'Data Input - BAT'!L7","v":2023},{"$f":"'Data Input - BAT'!M7","v":2024},{"$f":"'Data Input - BAT'!N7","v":2025},{"$f":"'Data Input - BAT'!O7","v":2026},{"$f":"'Data Input - BAT'!P7","v":2027},{"$f":"'Data Input - BAT'!Q7","v":2028},{"$f":"'Data Input - BAT'!R7","v":2029},{"$f":"'Data Input - BAT'!S7","v":2030},{"$f":"'Data Input - BAT'!T7","v":2031},{"$f":"'Data Input - BAT'!U7","v":2032},{"$f":"'Data Input - BAT'!V7","v":2033},{"$f":"'Data Input - BAT'!W7","v":2034},{"$f":"'Data Input - BAT'!X7","v":2035},{"$f":"'Data Input - BAT'!Y7","v":2036},{"$f":"'Data Input - BAT'!Z7","v":2037},{"$f":"'Data Input - BAT'!AA7","v":2038},{"$f":"'Data Input - BAT'!AB7","v":2039},{"$f":"'Data Input - BAT'!AC7","v":2040},{"$f":"'Data Input - BAT'!AD7","v":2041},{"$f":"'Data Input - BAT'!AE7","v":2042},{"$f":"'Data Input - BAT'!AF7","v":2043},{"$f":"'Data Input - BAT'!AG7","v":2044},{"$f":"'Data Input - BAT'!AH7","v":2045},{"$f":"'Data Input - BAT'!AI7","v":2046},{"$f":"'Data Input - BAT'!AJ7","v":2047},{"$f":"'Data Input - BAT'!AK7","v":2048},{"$f":"'Data Input - BAT'!AL7","v":2049},{"$f":"'Data Input - BAT'!AM7","v":0},{"$f":"'Data Input - BAT'!AN7","v":0},{"$f":"'Data Input - BAT'!AO7","v":0},{"$f":"'Data Input - BAT'!AP7","v":0},{"$f":"'Data Input - BAT'!AQ7","v":0},{"$f":"'Data Input - BAT'!AR7","v":0},{"$f":"'Data Input - BAT'!AS7","v":0},{"$f":"'Data Input - BAT'!AT7","v":0},{"$f":"'Data Input - BAT'!AU7","v":0},{"$f":"'Data Input - BAT'!AV7","v":0},{"$f":"'Data Input - BAT'!AW7","v":0},{"$f":"'Data Input - BAT'!AX7","v":0},{"$f":"'Data Input - BAT'!AY7","v":0},{"$f":"'Data Input - BAT'!AZ7","v":0},{"$f":"'Data Input - BAT'!BA7","v":0},{"$f":"'Data Input - BAT'!BB7","v":0},{"$f":"'Data Input - BAT'!BC7","v":0},{"$f":"'Data Input - BAT'!BD7","v":0},{"$f":"'Data Input - BAT'!BE7","v":0},{"$f":"'Data Input - BAT'!BF7","v":0},{"$f":"'Data Input - BAT'!BG7","v":0},{"$f":"'Data Input - BAT'!BH7","v":0},{"$f":"'Data Input - BAT'!BI7","v":0},{"$f":"'Data Input - BAT'!BJ7","v":0},{"$f":"'Data Input - BAT'!BK7","v":0},{"$f":"'Data Input - BAT'!BL7","v":0},{"$f":"'Data Input - BAT'!BM7","v":0},{"$f":"'Data Input - BAT'!BN7","v":0},{"$f":"'Data Input - BAT'!BO7","v":0},{"$f":"'Data Input - BAT'!BP7","v":0},{"$f":"'Data Input - BAT'!BQ7","v":0},{"$f":"'Data Input - BAT'!BR7","v":0},{"$f":"'Data Input - BAT'!BS7","v":0},{"$f":"'Data Input - BAT'!BT7","v":0},{"$f":"'Data Input - BAT'!BU7","v":0},{"$f":"'Data Input - BAT'!BV7","v":0},{"$f":"'Data Input - BAT'!BW7","v":0},{"$f":"'Data Input - BAT'!BX7","v":0},{"$f":"'Data Input - BAT'!BY7","v":0},{"$f":"'Data Input - BAT'!BZ7","v":0},{"$f":"'Data Input - BAT'!CA7","v":0},{"$f":"'Data Input - BAT'!CB7","v":0},{"$f":"'Data Input - BAT'!CC7","v":0},{"$f":"'Data Input - BAT'!CD7","v":0},{"$f":"'Data Input - BAT'!CE7","v":0},{"$f":"'Data Input - BAT'!CF7","v":0},{"$f":"'Data Input - BAT'!CG7","v":0},{"$f":"'Data Input - BAT'!CH7","v":0},{"$f":"'Data Input - BAT'!CI7","v":0},{"$f":"'Data Input - BAT'!CJ7","v":0},{"$f":"'Data Input - BAT'!CK7","v":0},{"$f":"'Data Input - BAT'!CL7","v":0},{"$f":"'Data Input - BAT'!CM7","v":0},{"$f":"'Data Input - BAT'!CN7","v":0},{"$f":"'Data Input - BAT'!CO7","v":0},{"$f":"'Data Input - BAT'!CP7","v":0},{"$f":"'Data Input - BAT'!CQ7","v":0},{"$f":"'Data Input - BAT'!CR7","v":0},{"$f":"'Data Input - BAT'!CS7","v":0},{"$f":"'Data Input - BAT'!CT7","v":0},{"$f":"'Data Input - BAT'!CU7","v":0},{"$f":"'Data Input - BAT'!CV7","v":0},{"$f":"'Data Input - BAT'!CW7","v":0},{"$f":"'Data Input - BAT'!CX7","v":0},{"$f":"'Data Input - BAT'!CY7","v":0},{"$f":"'Data Input - BAT'!CZ7","v":0},{"$f":"'Data Input - BAT'!DA7","v":0},{"$f":"'Data Input - BAT'!DB7","v":0},{"$f":"'Data Input - BAT'!DC7","v":0}]
[null,"Discount factor",null,{"$f":"IF(D6=0,0,'Discount and deflators'!F12)","v":1},{"$f":"IF(E6=0,0,'Discount and deflators'!G12)","v":0.96618357487922713},{"$f":"IF(F6=0,0,'Discount and deflators'!H12)","v":0.93351070036640305},{"$f":"IF(G6=0,0,'Discount and deflators'!I12)","v":0.90194270566802237},{"$f":"IF(H6=0,0,'Discount and deflators'!J12)","v":0.87144222769857238},{"$f":"IF(I6=0,0,'Discount and deflators'!K12)","v":0.84197316685852408},{"$f":"IF(J6=0,0,'Discount and deflators'!L12)","v":0.81350064430775282},{"$f":"IF(K6=0,0,'Discount and deflators'!M12)","v":0.78599096068381924},{"$f":"IF(L6=0,0,'Discount and deflators'!N12)","v":0.75941155621625056},{"$f":"IF(M6=0,0,'Discount and deflators'!O12)","v":0.73373097218961414},{"$f":"IF(N6=0,0,'Discount and deflators'!P12)","v":0.70891881370977217},{"$f":"IF(O6=0,0,'Discount and deflators'!Q12)","v":0.68494571372924851},{"$f":"IF(P6=0,0,'Discount and deflators'!R12)","v":0.66178329828912907},{"$f":"IF(Q6=0,0,'Discount and deflators'!S12)","v":0.63940415293635666},{"$f":"IF(R6=0,0,'Discount and deflators'!T12)","v":0.61778179027667313},{"$f":"IF(S6=0,0,'Discount and deflators'!U12)","v":0.59689061862480497},{"$f":"IF(T6=0,0,'Discount and deflators'!V12)","v":0.57670591171478747},{"$f":"IF(U6=0,0,'Discount and deflators'!W12)","v":0.55720377943457733},{"$f":"IF(V6=0,0,'Discount and deflators'!X12)","v":0.53836113955031628},{"$f":"IF(W6=0,0,'Discount and deflators'!Y12)","v":0.520155690386779},{"$f":"IF(X6=0,0,'Discount and deflators'!Z12)","v":0.50256588443167061},{"$f":"IF(Y6=0,0,'Discount and deflators'!AA12)","v":0.48557090283253201},{"$f":"IF(Z6=0,0,'Discount and deflators'!AB12)","v":0.46915063075606961},{"$f":"IF(AA6=0,0,'Discount and deflators'!AC12)","v":0.45328563358074364},{"$f":"IF(AB6=0,0,'Discount and deflators'!AD12)","v":0.43795713389443836},{"$f":"IF(AC6=0,0,'Discount and deflators'!AE12)","v":0.42314698926998878},{"$f":"IF(AD6=0,0,'Discount and deflators'!AF12)","v":0.40883767079225974},{"$f":"IF(AE6=0,0,'Discount and deflators'!AG12)","v":0.39501224231136212},{"$f":"IF(AF6=0,0,'Discount and deflators'!AH12)","v":0.38165434039745133},{"$f":"IF(AG6=0,0,'Discount and deflators'!AI12)","v":0.36874815497338298},{"$f":"IF(AH6=0,0,'Discount and deflators'!AJ12)","v":0.35800791744988636},{"$f":"IF(AI6=0,0,'Discount and deflators'!AK12)","v":0},{"$f":"IF(AJ6=0,0,'Discount and deflators'!AL12)","v":0},{"$f":"IF(AK6=0,0,'Discount and deflators'!AM12)","v":0},{"$f":"IF(AL6=0,0,'Discount and deflators'!AN12)","v":0},{"$f":"IF(AM6=0,0,'Discount and deflators'!AO12)","v":0},{"$f":"IF(AN6=0,0,'Discount and deflators'!AP12)","v":0},{"$f":"IF(AO6=0,0,'Discount and deflators'!AQ12)","v":0},{"$f":"IF(AP6=0,0,'Discount and deflators'!AR12)","v":0},{"$f":"IF(AQ6=0,0,'Discount and deflators'!AS12)","v":0},{"$f":"IF(AR6=0,0,'Discount and deflators'!AT12)","v":0},{"$f":"IF(AS6=0,0,'Discount and deflators'!AU12)","v":0},{"$f":"IF(AT6=0,0,'Discount and deflators'!AV12)","v":0},{"$f":"IF(AU6=0,0,'Discount and deflators'!AW12)","v":0},{"$f":"IF(AV6=0,0,'Discount and deflators'!AX12)","v":0},{"$f":"IF(AW6=0,0,'Discount and deflators'!AY12)","v":0},{"$f":"IF(AX6=0,0,'Discount and deflators'!AZ12)","v":0},{"$f":"IF(AY6=0,0,'Discount and deflators'!BA12)","v":0},{"$f":"IF(AZ6=0,0,'Discount and deflators'!BB12)","v":0},{"$f":"IF(BA6=0,0,'Discount and deflators'!BC12)","v":0},{"$f":"IF(BB6=0,0,'Discount and deflators'!BD12)","v":0},{"$f":"IF(BC6=0,0,'Discount and deflators'!BE12)","v":0},{"$f":"IF(BD6=0,0,'Discount and deflators'!BF12)","v":0},{"$f":"IF(BE6=0,0,'Discount and deflators'!BG12)","v":0},{"$f":"IF(BF6=0,0,'Discount and deflators'!BH12)","v":0},{"$f":"IF(BG6=0,0,'Discount and deflators'!BI12)","v":0},{"$f":"IF(BH6=0,0,'Discount and deflators'!BJ12)","v":0},{"$f":"IF(BI6=0,0,'Discount and deflators'!BK12)","v":0},{"$f":"IF(BJ6=0,0,'Discount and deflators'!BL12)","v":0},{"$f":"IF(BK6=0,0,'Discount and deflators'!BM12)","v":0},{"$f":"IF(BL6=0,0,'Discount and deflators'!BN12)","v":0},{"$f":"IF(BM6=0,0,'Discount and deflators'!BO12)","v":0},{"$f":"IF(BN6=0,0,'Discount and deflators'!BP12)","v":0},{"$f":"IF(BO6=0,0,'Discount and deflators'!BQ12)","v":0},{"$f":"IF(BP6=0,0,'Discount and deflators'!BR12)","v":0},{"$f":"IF(BQ6=0,0,'Discount and deflators'!BS12)","v":0},{"$f":"IF(BR6=0,0,'Discount and deflators'!BT12)","v":0},{"$f":"IF(BS6=0,0,'Discount and deflators'!BU12)","v":0},{"$f":"IF(BT6=0,0,'Discount and deflators'!BV12)","v":0},{"$f":"IF(BU6=0,0,'Discount and deflators'!BW12)","v":0},{"$f":"IF(BV6=0,0,'Discount and deflators'!BX12)","v":0},{"$f":"IF(BW6=0,0,'Discount and deflators'!BY12)","v":0},{"$f":"IF(BX6=0,0,'Discount and deflators'!BZ12)","v":0},{"$f":"IF(BY6=0,0,'Discount and deflators'!CA12)","v":0},{"$f":"IF(BZ6=0,0,'Discount and deflators'!CB12)","v":0},{"$f":"IF(CA6=0,0,'Discount and deflators'!CC12)","v":0},{"$f":"IF(CB6=0,0,'Discount and deflators'!CD12)","v":0},{"$f":"IF(CC6=0,0,'Discount and deflators'!CE12)","v":0},{"$f":"IF(CD6=0,0,'Discount and deflators'!CF12)","v":0},{"$f":"IF(CE6=0,0,'Discount and deflators'!CG12)","v":0},{"$f":"IF(CF6=0,0,'Discount and deflators'!CH12)","v":0},{"$f":"IF(CG6=0,0,'Discount and deflators'!CI12)","v":0},{"$f":"IF(CH6=0,0,'Discount and deflators'!CJ12)","v":0},{"$f":"IF(CI6=0,0,'Discount and deflators'!CK12)","v":0},{"$f":"IF(CJ6=0,0,'Discount and deflators'!CL12)","v":0},{"$f":"IF(CK6=0,0,'Discount and deflators'!CM12)","v":0},{"$f":"IF(CL6=0,0,'Discount and deflators'!CN12)","v":0},{"$f":"IF(CM6=0,0,'Discount and deflators'!CO12)","v":0},{"$f":"IF(CN6=0,0,'Discount and deflators'!CP12)","v":0},{"$f":"IF(CO6=0,0,'Discount and deflators'!CQ12)","v":0},{"$f":"IF(CP6=0,0,'Discount and deflators'!CR12)","v":0},{"$f":"IF(CQ6=0,0,'Discount and deflators'!CS12)","v":0},{"$f":"IF(CR6=0,0,'Discount and deflators'!CT12)","v":0},{"$f":"IF(CS6=0,0,'Discount and deflators'!CU12)","v":0},{"$f":"IF(CT6=0,0,'Discount and deflators'!CV12)","v":0},{"$f":"IF(CU6=0,0,'Discount and deflators'!CW12)","v":0},{"$f":"IF(CV6=0,0,'Discount and deflators'!CX12)","v":0},{"$f":"IF(CW6=0,0,'Discount and deflators'!CY12)","v":0},{"$f":"IF(CX6=0,0,'Discount and deflators'!CZ12)","v":0},{"$f":"IF(CY6=0,0,'Discount and deflators'!DA12)","v":0}]
[]
[null,"CENTRAL CALCULATIONS"]
[]
[null,"Capital Costs (total)"]
[null,"Total Capex","£000's",{"$f":"'Data Input - BAT'!H30","v":526},{"$f":"'Data Input - BAT'!I30","v":526},{"$f":"'Data Input - BAT'!J30","v":556},{"$f":"'Data Input - BAT'!K30","v":6006},{"$f":"'Data Input - BAT'!L30","v":556},{"$f":"'Data Input - BAT'!M30","v":556},{"$f":"'Data Input - BAT'!N30","v":556},{"$f":"'Data Input - BAT'!O30","v":556},{"$f":"'Data Input - BAT'!P30","v":0},{"$f":"'Data Input - BAT'!Q30","v":0},{"$f":"'Data Input - BAT'!R30","v":0},{"$f":"'Data Input - BAT'!S30","v":0},{"$f":"'Data Input - BAT'!T30","v":0},{"$f":"'Data Input - BAT'!U30","v":0},{"$f":"'Data Input - BAT'!V30","v":0},{"$f":"'Data Input - BAT'!W30","v":0},{"$f":"'Data Input - BAT'!X30","v":0},{"$f":"'Data Input - BAT'!Y30","v":0},{"$f":"'Data Input - BAT'!Z30","v":0},{"$f":"'Data Input - BAT'!AA30","v":0},{"$f":"'Data Input - BAT'!AB30","v":0},{"$f":"'Data Input - BAT'!AC30","v":0},{"$f":"'Data Input - BAT'!AD30","v":0},{"$f":"'Data Input - BAT'!AE30","v":0},{"$f":"'Data Input - BAT'!AF30","v":0},{"$f":"'Data Input - BAT'!AG30","v":0},{"$f":"'Data Input - BAT'!AH30","v":0},{"$f":"'Data Input - BAT'!AI30","v":0},{"$f":"'Data Input - BAT'!AJ30","v":0},{"$f":"'Data Input - BAT'!AK30","v":0},{"$f":"'Data Input - BAT'!AL30","v":0},{"$f":"'Data Input - BAT'!AM30","v":0},{"$f":"'Data Input - BAT'!AN30","v":0},{"$f":"'Data Input - BAT'!AO30","v":0},{"$f":"'Data Input - BAT'!AP30","v":0},{"$f":"'Data Input - BAT'!AQ30","v":0},{"$f":"'Data Input - BAT'!AR30","v":0},{"$f":"'Data Input - BAT'!AS30","v":0},{"$f":"'Data Input - BAT'!AT30","v":0},{"$f":"'Data Input - BAT'!AU30","v":0},{"$f":"'Data Input - BAT'!AV30","v":0},{"$f":"'Data Input - BAT'!AW30","v":0},{"$f":"'Data Input - BAT'!AX30","v":0},{"$f":"'Data Input - BAT'!AY30","v":0},{"$f":"'Data Input - BAT'!AZ30","v":0},{"$f":"'Data Input - BAT'!BA30","v":0},{"$f":"'Data Input - BAT'!BB30","v":0},{"$f":"'Data Input - BAT'!BC30","v":0},{"$f":"'Data Input - BAT'!BD30","v":0},{"$f":"'Data Input - BAT'!BE30","v":0},{"$f":"'Data Input - BAT'!BF30","v":0},{"$f":"'Data Input - BAT'!BG30","v":0},{"$f":"'Data Input - BAT'!BH30","v":0},{"$f":"'Data Input - BAT'!BI30","v":0},{"$f":"'Data Input - BAT'!BJ30","v":0},{"$f":"'Data Input - BAT'!BK30","v":0},{"$f":"'Data Input - BAT'!BL30","v":0},{"$f":"'Data Input - BAT'!BM30","v":0},{"$f":"'Data Input - BAT'!BN30","v":0},{"$f":"'Data Input - BAT'!BO30","v":0},{"$f":"'Data Input - BAT'!BP30","v":0},{"$f":"'Data Input - BAT'!BQ30","v":0},{"$f":"'Data Input - BAT'!BR30","v":0},{"$f":"'Data Input - BAT'!BS30","v":0},{"$f":"'Data Input - BAT'!BT30","v":0},{"$f":"'Data Input - BAT'!BU30","v":0},{"$f":"'Data Input - BAT'!BV30","v":0},{"$f":"'Data Input - BAT'!BW30","v":0},{"$f":"'Data Input - BAT'!BX30","v":0},{"$f":"'Data Input - BAT'!BY30","v":0},{"$f":"'Data Input - BAT'!BZ30","v":0},{"$f":"'Data Input - BAT'!CA30","v":0},{"$f":"'Data Input - BAT'!CB30","v":0},{"$f":"'Data Input - BAT'!CC30","v":0},{"$f":"'Data Input - BAT'!CD30","v":0},{"$f":"'Data Input - BAT'!CE30","v":0},{"$f":"'Data Input - BAT'!CF30","v":0},{"$f":"'Data Input - BAT'!CG30","v":0},{"$f":"'Data Input - BAT'!CH30","v":0},{"$f":"'Data Input - BAT'!CI30","v":0},{"$f":"'Data Input - BAT'!CJ30","v":0},{"$f":"'Data Input - BAT'!CK30","v":0},{"$f":"'Data Input - BAT'!CL30","v":0},{"$f":"'Data Input - BAT'!CM30","v":0},{"$f":"'Data Input - BAT'!CN30","v":0},{"$f":"'Data Input - BAT'!CO30","v":0},{"$f":"'Data Input - BAT'!CP30","v":0},{"$f":"'Data Input - BAT'!CQ30","v":0},{"$f":"'Data Input - BAT'!CR30","v":0},{"$f":"'Data Input - BAT'!CS30","v":0},{"$f":"'Data Input - BAT'!CT30","v":0},{"$f":"'Data Input - BAT'!CU30","v":0},{"$f":"'Data Input - BAT'!CV30","v":0},{"$f":"'Data Input - BAT'!CW30","v":0},{"$f":"'Data Input - BAT'!CX30","v":0},{"$f":"'Data Input - BAT'!CY30","v":0},{"$f":"'Data Input - BAT'!CZ30","v":0},{"$f":"'Data Input - BAT'!DA30","v":0},{"$f":"'Data Input - BAT'!DB30","v":0},{"$f":"'Data Input - BAT'!DC30","v":0}]
[null,"Total capex discounted","£000's",{"$f":"D12*D$7","v":526},{"$f":"E12*E$7","v":508.21256038647346},519.03194940372009,5417.0678902421423,484.52187860040624,468.13708077333939,452.30635823511057,437.01097414020347,0,0,0,0,0,0,0,0,0,0,0,0,0,0,0,0,0,0,0,0,0,0,0,0,0,0,0,0,0,0,0,0,0,0,0,0,0,0,0,0,0,0,0,0,0,0,0,0,0,0,0,0,0,0,0,0,0,{"$f":"BQ12*BQ$7","v":0},0,0,0,0,0,0,0,0,0,0,0,0,0,0,0,0,0,0,0,0,0,0,0,0,0,0,0,0,0,0,0,0,0,0]
[]
[null,"First Year of upfront costs? - Array",null,{"$f":"IF(D12<>0,TRUE,FALSE)","v":true},{"$f":"IF(D15=TRUE,\"ALREADY FOUND\",IF(E12<>0,TRUE,FALSE))","v":"ALREADY FOUND"},{"$f":"IF(E15=\"ALREADY FOUND\",\"ALREADY FOUND\",IF(E15=TRUE,\"ALREADY FOUND\",IF(F12<>0,TRUE,FALSE)))","v":"ALREADY FOUND"},{"$f":"IF(F15=\"ALREADY FOUND\",\"ALREADY FOUND\",IF(F15=TRUE,\"ALREADY FOUND\",IF(G12<>0,TRUE,FALSE)))","v":"ALREADY FOUND"},"ALREADY FOUND","ALREADY FOUND","ALREADY FOUND","ALREADY FOUND","ALREADY FOUND","ALREADY FOUND","ALREADY FOUND","ALREADY FOUND","ALREADY FOUND","ALREADY FOUND","ALREADY FOUND","ALREADY FOUND","ALREADY FOUND","ALREADY FOUND","ALREADY FOUND","ALREADY FOUND","ALREADY FOUND","ALREADY FOUND","ALREADY FOUND","ALREADY FOUND","ALREADY FOUND","ALREADY FOUND","ALREADY FOUND","ALREADY FOUND","ALREADY FOUND","ALREADY FOUND","ALREADY FOUND","ALREADY FOUND","ALREADY FOUND","ALREADY FOUND","ALREADY FOUND","ALREADY FOUND","ALREADY FOUND","ALREADY FOUND","ALREADY FOUND","ALREADY FOUND","ALREADY FOUND","ALREADY FOUND","ALREADY FOUND","ALREADY FOUND","ALREADY FOUND","ALREADY FOUND","ALREADY FOUND","ALREADY FOUND","ALREADY FOUND","ALREADY FOUND","ALREADY FOUND","ALREADY FOUND","ALREADY FOUND","ALREADY FOUND","ALREADY FOUND","ALREADY FOUND","ALREADY FOUND","ALREADY FOUND","ALREADY FOUND","ALREADY FOUND","ALREADY FOUND","ALREADY FOUND","ALREADY FOUND","ALREADY FOUND","ALREADY FOUND","ALREADY FOUND","ALREADY FOUND",{"$f":"IF(BR15=\"ALREADY FOUND\",\"ALREADY FOUND\",IF(BR15=TRUE,\"ALREADY FOUND\",IF(BS12<>0,TRUE,FALSE)))","v":"ALREADY FOUND"},"ALREADY FOUND","ALREADY FOUND","ALREADY FOUND","ALREADY FOUND","ALREADY FOUND","ALREADY FOUND","ALREADY FOUND","ALREADY FOUND","ALREADY FOUND","ALREADY FOUND","ALREADY FOUND","ALREADY FOUND","ALREADY FOUND","ALREADY FOUND","ALREADY FOUND","ALREADY FOUND","ALREADY FOUND","ALREADY FOUND","ALREADY FOUND","ALREADY FOUND","ALREADY FOUND","ALREADY FOUND","ALREADY FOUND","ALREADY FOUND","ALREADY FOUND","ALREADY FOUND","ALREADY FOUND","ALREADY FOUND","ALREADY FOUND","ALREADY FOUND","ALREADY FOUND"]
[null,"First Year of upfront costs",null,{"$f":"INDEX($D$6:$CX$6,MATCH(TRUE,$D$15:$CX$15,0))","v":2019}]
[null,"Final Year of upfront costs? - Array",null,{"$f":"IF(D6<$D$16,FALSE,IF(D12+E12=0,TRUE,FALSE))","v":false},{"$f":"IF(D17=TRUE,\"N/A\",IF(D17=\"N/A\",\"N/A\",IF(E6<$D$16,FALSE,IF(E12+F12=0,TRUE,FALSE))))","v":false},{"$f":"IF(E17=TRUE,\"N/A\",IF(E17=\"N/A\",\"N/A\",IF(F6<$D$16,FALSE,IF(F12+G12=0,TRUE,FALSE))))","v":false},{"$f":"IF(F17=TRUE,\"N/A\",IF(F17=\"N/A\",\"N/A\",IF(G6<$D$16,FALSE,IF(G12+H12=0,TRUE,FALSE))))","v":false},{"$f":"IF(G17=TRUE,\"N/A\",IF(G17=\"N/A\",\"N/A\",IF(H6<$D$16,FALSE,IF(H12+I12=0,TRUE,FALSE))))","v":false},{"$f":"IF(H17=TRUE,\"N/A\",IF(H17=\"N/A\",\"N/A\",IF(I6<$D$16,FALSE,IF(I12+J12=0,TRUE,FALSE))))","v":false},{"$f":"IF(I17=TRUE,\"N/A\",IF(I17=\"N/A\",\"N/A\",IF(J6<$D$16,FALSE,IF(J12+K12=0,TRUE,FALSE))))","v":false},false,true,"N/A","N/A","N/A","N/A","N/A","N/A","N/A","N/A","N/A","N/A","N/A","N/A","N/A","N/A","N/A","N/A","N/A","N/A","N/A","N/A","N/A","N/A","N/A","N/A","N/A","N/A","N/A","N/A","N/A","N/A","N/A","N/A","N/A","N/A","N/A","N/A","N/A","N/A","N/A","N/A","N/A","N/A","N/A","N/A","N/A","N/A","N/A","N/A","N/A","N/A","N/A","N/A","N/A","N/A","N/A","N/A","N/A","N/A","N/A","N/A","N/A",{"$f":"IF(BU17=TRUE,\"N/A\",IF(BU17=\"N/A\",\"N/A\",IF(BV6<$D$16,FALSE,IF(BV12+BW12=0,TRUE,FALSE))))","v":"N/A"},"N/A","N/A","N/A","N/A","N/A","N/A","N/A","N/A","N/A","N/A","N/A","N/A","N/A","N/A","N/A","N/A","N/A","N/A","N/A","N/A","N/A","N/A","N/A","N/A","N/A","N/A","N/A","N/A"]
[null,"Final Year of upfront costs",null,{"$f":"INDEX($D$6:$CX$6,MATCH(TRUE,$D$17:$CX$17,0))","v":2027}]
[null,"Include undiscounted total capex in SUM?",null,{"$f":"IF(AND(OR(D6=$D$16,D6>$D$16),OR(D6=$D$18,D6<$D$18)),D12,0)","v":526},{"$f":"IF(AND(OR(E6=$D$16,E6>$D$16),OR(E6=$D$18,E6<$D$18)),E12,0)","v":526},556,6006,{"$f":"IF(AND(OR(H6=$D$16,H6>$D$16),OR(H6=$D$18,H6<$D$18)),H12,0)","v":556},{"$f":"IF(AND(OR(I6=$D$16,I6>$D$16),OR(I6=$D$18,I6<$D$18)),I12,0)","v":556},556,556,0,0,0,0,0,0,0,0,0,0,0,0,0,0,0,0,0,0,0,0,0,0,0,0,0,0,0,0,0,0,0,0,0,0,0,0,0,0,0,0,0,0,0,0,0,0,0,0,0,0,0,0,0,0,0,0,0,0,0,0,0,{"$f":"IF(AND(OR(BU6=$D$16,BU6>$D$16),OR(BU6=$D$18,BU6<$D$18)),BU12,0)","v":0},0,0,0,0,0,0,0,0,0,0,0,0,0,0,0,0,0,0,0,0,0,0,0,0,0,0,0,0,0]
[null,"Total upfront investment cost for first installation only",null,{"$f":"SUM(D19:CX19)","v":9838}]
[null,"New invesment/refurbishment cost?",null,null,null,null,{"$f":"IF(OR(AND(SUM(D12:F12)=0,G12>0,G15=\"ALREADY FOUND\"),AND(F21=TRUE,G12>0),AND(F21=TRUE,SUM(H12:I12)>0)),TRUE,FALSE)","v":false},{"$f":"IF(OR(AND(SUM(E12:G12)=0,H12>0,H15=\"ALREADY FOUND\"),AND(G21=TRUE,H12>0),AND(G21=TRUE,SUM(I12:J12)>0)),TRUE,FALSE)","v":false},false,false,false,false,false,false,false,false,false,false,false,false,false,false,false,false,false,false,false,false,false,false,false,false,false,false,false,false,false,false,false,false,false,false,false,false,false,false,false,false,false,false,false,false,false,false,false,false,false,false,false,false,false,false,false,false,false,false,false,false,false,false,false,{"$f":"IF(OR(AND(SUM(BQ12:BS12)=0,BT12>0,BT15=\"ALREADY FOUND\"),AND(BS21=TRUE,BT12>0),AND(BS21=TRUE,SUM(BU12:BV12)>0)),TRUE,FALSE)","v":false},false,false,false,false,false,false,false,false,false,false,false,false,false,false,false,false,false,false,false,false,false,false,false,false,false,false,false,false,false,false]
[null,"New invesment/refurbishment counter",null,null,null,null,{"$f":"IF(G21=FALSE,0,IF(F22<>0,F22,MAX($D$22:F22)+1))","v":0},{"$f":"IF(H21=FALSE,0,IF(G22<>0,G22,MAX($D$22:G22)+1))","v":0},{"$f":"IF(I21=FALSE,0,IF(H22<>0,H22,MAX($D$22:H22)+1))","v":0},{"$f":"IF(J21=FALSE,0,IF(I22<>0,I22,MAX($D$22:I22)+1))","v":0},{"$f":"IF(K21=FALSE,0,IF(J22<>0,J22,MAX($D$22:J22)+1))","v":0},{"$f":"IF(L21=FALSE,0,IF(K22<>0,K22,MAX($D$22:K22)+1))","v":0},{"$f":"IF(M21=FALSE,0,IF(L22<>0,L22,MAX($D$22:L22)+1))","v":0},{"$f":"IF(N21=FALSE,0,IF(M22<>0,M22,MAX($D$22:M22)+1))","v":0},{"$f":"IF(O21=FALSE,0,IF(N22<>0,N22,MAX($D$22:N22)+1))","v":0},{"$f":"IF(P21=FALSE,0,IF(O22<>0,O22,MAX($D$22:O22)+1))","v":0},{"$f":"IF(Q21=FALSE,0,IF(P22<>0,P22,MAX($D$22:P22)+1))","v":0},{"$f":"IF(R21=FALSE,0,IF(Q22<>0,Q22,MAX($D$22:Q22)+1))","v":0},{"$f":"IF(S21=FALSE,0,IF(R22<>0,R22,MAX($D$22:R22)+1))","v":0},{"$f":"IF(T21=FALSE,0,IF(S22<>0,S22,MAX($D$22:S22)+1))","v":0},{"$f":"IF(U21=FALSE,0,IF(T22<>0,T22,MAX($D$22:T22)+1))","v":0},{"$f":"IF(V21=FALSE,0,IF(U22<>0,U22,MAX($D$22:U22)+1))","v":0},{"$f":"IF(W21=FALSE,0,IF(V22<>0,V22,MAX($D$22:V22)+1))","v":0},{"$f":"IF(X21=FALSE,0,IF(W22<>0,W22,MAX($D$22:W22)+1))","v":0},{"$f":"IF(Y21=FALSE,0,IF(X22<>0,X22,MAX($D$22:X22)+1))","v":0},{"$f":"IF(Z21=FALSE,0,IF(Y22<>0,Y22,MAX($D$22:Y22)+1))","v":0},{"$f":"IF(AA21=FALSE,0,IF(Z22<>0,Z22,MAX($D$22:Z22)+1))","v":0},{"$f":"IF(AB21=FALSE,0,IF(AA22<>0,AA22,MAX($D$22:AA22)+1))","v":0},{"$f":"IF(AC21=FALSE,0,IF(AB22<>0,AB22,MAX($D$22:AB22)+1))","v":0},{"$f":"IF(AD21=FALSE,0,IF(AC22<>0,AC22,MAX($D$22:AC22)+1))","v":0},{"$f":"IF(AE21=FALSE,0,IF(AD22<>0,AD22,MAX($D$22:AD22)+1))","v":0},{"$f":"IF(AF21=FALSE,0,IF(AE22<>0,AE22,MAX($D$22:AE22)+1))","v":0},{"$f":"IF(AG21=FALSE,0,IF(AF22<>0,AF22,MAX($D$22:AF22)+1))","v":0},{"$f":"IF(AH21=FALSE,0,IF(AG22<>0,AG22,MAX($D$22:AG22)+1))","v":0},{"$f":"IF(AI21=FALSE,0,IF(AH22<>0,AH22,MAX($D$22:AH22)+1))","v":0},{"$f":"IF(AJ21=FALSE,0,IF(AI22<>0,AI22,MAX($D$22:AI22)+1))","v":0},{"$f":"IF(AK21=FALSE,0,IF(AJ22<>0,AJ22,MAX($D$22:AJ22)+1))","v":0},{"$f":"IF(AL21=FALSE,0,IF(AK22<>0,AK22,MAX($D$22:AK22)+1))","v":0},{"$f":"IF(AM21=FALSE,0,IF(AL22<>0,AL22,MAX($D$22:AL22)+1))","v":0},{"$f":"IF(AN21=FALSE,0,IF(AM22<>0,AM22,MAX($D$22:AM22)+1))","v":0},{"$f":"IF(AO21=FALSE,0,IF(AN22<>0,AN22,MAX($D$22:AN22)+1))","v":0},{"$f":"IF(AP21=FALSE,0,IF(AO22<>0,AO22,MAX($D$22:AO22)+1))","v":0},{"$f":"IF(AQ21=FALSE,0,IF(AP22<>0,AP22,MAX($D$22:AP22)+1))","v":0},{"$f":"IF(AR21=FALSE,0,IF(AQ22<>0,AQ22,MAX($D$22:AQ22)+1))","v":0},{"$f":"IF(AS21=FALSE,0,IF(AR22<>0,AR22,MAX($D$22:AR22)+1))","v":0},{"$f":"IF(AT21=FALSE,0,IF(AS22<>0,AS22,MAX($D$22:AS22)+1))","v":0},{"$f":"IF(AU21=FALSE,0,IF(AT22<>0,AT22,MAX($D$22:AT22)+1))","v":0},{"$f":"IF(AV21=FALSE,0,IF(AU22<>0,AU22,MAX($D$22:AU22)+1))","v":0},{"$f":"IF(AW21=FALSE,0,IF(AV22<>0,AV22,MAX($D$22:AV22)+1))","v":0},{"$f":"IF(AX21=FALSE,0,IF(AW22<>0,AW22,MAX($D$22:AW22)+1))","v":0},{"$f":"IF(AY21=FALSE,0,IF(AX22<>0,AX22,MAX($D$22:AX22)+1))","v":0},{"$f":"IF(AZ21=FALSE,0,IF(AY22<>0,AY22,MAX($D$22:AY22)+1))","v":0},{"$f":"IF(BA21=FALSE,0,IF(AZ22<>0,AZ22,MAX($D$22:AZ22)+1))","v":0},{"$f":"IF(BB21=FALSE,0,IF(BA22<>0,BA22,MAX($D$22:BA22)+1))","v":0},{"$f":"IF(BC21=FALSE,0,IF(BB22<>0,BB22,MAX($D$22:BB22)+1))","v":0},{"$f":"IF(BD21=FALSE,0,IF(BC22<>0,BC22,MAX($D$22:BC22)+1))","v":0},{"$f":"IF(BE21=FALSE,0,IF(BD22<>0,BD22,MAX($D$22:BD22)+1))","v":0},{"$f":"IF(BF21=FALSE,0,IF(BE22<>0,BE22,MAX($D$22:BE22)+1))","v":0},{"$f":"IF(BG21=FALSE,0,IF(BF22<>0,BF22,MAX($D$22:BF22)+1))","v":0},{"$f":"IF(BH21=FALSE,0,IF(BG22<>0,BG22,MAX($D$22:BG22)+1))","v":0},{"$f":"IF(BI21=FALSE,0,IF(BH22<>0,BH22,MAX($D$22:BH22)+1))","v":0},{"$f":"IF(BJ21=FALSE,0,IF(BI22<>0,BI22,MAX($D$22:BI22)+1))","v":0},{"$f":"IF(BK21=FALSE,0,IF(BJ22<>0,BJ22,MAX($D$22:BJ22)+1))","v":0},{"$f":"IF(BL21=FALSE,0,IF(BK22<>0,BK22,MAX($D$22:BK22)+1))","v":0},{"$f":"IF(BM21=FALSE,0,IF(BL22<>0,BL22,MAX($D$22:BL22)+1))","v":0},{"$f":"IF(BN21=FALSE,0,IF(BM22<>0,BM22,MAX($D$22:BM22)+1))","v":0},{"$f":"IF(BO21=FALSE,0,IF(BN22<>0,BN22,MAX($D$22:BN22)+1))","v":0},{"$f":"IF(BP21=FALSE,0,IF(BO22<>0,BO22,MAX($D$22:BO22)+1))","v":0},{"$f":"IF(BQ21=FALSE,0,IF(BP22<>0,BP22,MAX($D$22:BP22)+1))","v":0},{"$f":"IF(BR21=FALSE,0,IF(BQ22<>0,BQ22,MAX($D$22:BQ22)+1))","v":0},{"$f":"IF(BS21=FALSE,0,IF(BR22<>0,BR22,MAX($D$22:BR22)+1))","v":0},{"$f":"IF(BT21=FALSE,0,IF(BS22<>0,BS22,MAX($D$22:BS22)+1))","v":0},{"$f":"IF(BU21=FALSE,0,IF(BT22<>0,BT22,MAX($D$22:BT22)+1))","v":0},{"$f":"IF(BV21=FALSE,0,IF(BU22<>0,BU22,MAX($D$22:BU22)+1))","v":0},{"$f":"IF(BW21=FALSE,0,IF(BV22<>0,BV22,MAX($D$22:BV22)+1))","v":0},{"$f":"IF(BX21=FALSE,0,IF(BW22<>0,BW22,MAX($D$22:BW22)+1))","v":0},{"$f":"IF(BY21=FALSE,0,IF(BX22<>0,BX22,MAX($D$22:BX22)+1))","v":0},{"$f":"IF(BZ21=FALSE,0,IF(BY22<>0,BY22,MAX($D$22:BY22)+1))","v":0},{"$f":"IF(CA21=FALSE,0,IF(BZ22<>0,BZ22,MAX($D$22:BZ22)+1))","v":0},{"$f":"IF(CB21=FALSE,0,IF(CA22<>0,CA22,MAX($D$22:CA22)+1))","v":0},{"$f":"IF(CC21=FALSE,0,IF(CB22<>0,CB22,MAX($D$22:CB22)+1))","v":0},{"$f":"IF(CD21=FALSE,0,IF(CC22<>0,CC22,MAX($D$22:CC22)+1))","v":0},{"$f":"IF(CE21=FALSE,0,IF(CD22<>0,CD22,MAX($D$22:CD22)+1))","v":0},{"$f":"IF(CF21=FALSE,0,IF(CE22<>0,CE22,MAX($D$22:CE22)+1))","v":0},{"$f":"IF(CG21=FALSE,0,IF(CF22<>0,CF22,MAX($D$22:CF22)+1))","v":0},{"$f":"IF(CH21=FALSE,0,IF(CG22<>0,CG22,MAX($D$22:CG22)+1))","v":0},{"$f":"IF(CI21=FALSE,0,IF(CH22<>0,CH22,MAX($D$22:CH22)+1))","v":0},{"$f":"IF(CJ21=FALSE,0,IF(CI22<>0,CI22,MAX($D$22:CI22)+1))","v":0},{"$f":"IF(CK21=FALSE,0,IF(CJ22<>0,CJ22,MAX($D$22:CJ22)+1))","v":0},{"$f":"IF(CL21=FALSE,0,IF(CK22<>0,CK22,MAX($D$22:CK22)+1))","v":0},{"$f":"IF(CM21=FALSE,0,IF(CL22<>0,CL22,MAX($D$22:CL22)+1))","v":0},{"$f":"IF(CN21=FALSE,0,IF(CM22<>0,CM22,MAX($D$22:CM22)+1))","v":0},{"$f":"IF(CO21=FALSE,0,IF(CN22<>0,CN22,MAX($D$22:CN22)+1))","v":0},{"$f":"IF(CP21=FALSE,0,IF(CO22<>0,CO22,MAX($D$22:CO22)+1))","v":0},{"$f":"IF(CQ21=FALSE,0,IF(CP22<>0,CP22,MAX($D$22:CP22)+1))","v":0},{"$f":"IF(CR21=FALSE,0,IF(CQ22<>0,CQ22,MAX($D$22:CQ22)+1))","v":0},{"$f":"IF(CS21=FALSE,0,IF(CR22<>0,CR22,MAX($D$22:CR22)+1))","v":0},{"$f":"IF(CT21=FALSE,0,IF(CS22<>0,CS22,MAX($D$22:CS22)+1))","v":0},{"$f":"IF(CU21=FALSE,0,IF(CT22<>0,CT22,MAX($D$22:CT22)+1))","v":0},{"$f":"IF(CV21=FALSE,0,IF(CU22<>0,CU22,MAX($D$22:CU22)+1))","v":0},{"$f":"IF(CW21=FALSE,0,IF(CV22<>0,CV22,MAX($D$22:CV22)+1))","v":0},{"$f":"IF(CX21=FALSE,0,IF(CW22<>0,CW22,MAX($D$22:CW22)+1))","v":0}]
[null,"Total upfront investment cost for given invesment/refurb",null,null,null,null,{"$f":"IF(G21=TRUE,SUMIF($G$22:$CX$22,G22,$G$13:$CY$13),0)","v":0},{"$f":"IF(H21=TRUE,SUMIF($G$22:$CX$22,H22,$G$13:$CY$13),0)","v":0},0,0,0,0,0,0,0,0,0,0,0,0,0,0,{"$f":"IF(W21=TRUE,SUMIF($G$22:$CX$22,W22,$G$13:$CY$13),0)","v":0},{"$f":"IF(X21=TRUE,SUMIF($G$22:$CX$22,X22,$G$13:$CY$13),0)","v":0},0,0,0,0,0,0,0,0,0,0,0,0,0,0,0,0,0,0,0,0,0,0,0,0,0,0,0,0,0,0,0,0,0,0,0,0,0,0,0,0,0,0,0,0,0,0,0,0,0,0,0,0,0,0,0,0,0,0,0,0,0,0,0,{"$f":"IF(CJ21=TRUE,SUMIF($G$22:$CX$22,CJ22,$G$13:$CY$13),0)","v":0},0,0,0,0,0,0,0,0,0,0,0,0,0,0]
[]
[null,"WACC"]
[null,"Annualised payment","£000's",{"$f":"IFERROR(-PMT('Data Input - General'!$G$16,SUM('Data Input - General'!$H$26:$H$28),D20*1000)/1000,0)","v":871.77798243613597}]
[null,"Annualised payment - additional invesment or refurbishments","£000's",0,0,0,{"$f":"IFERROR(IF(G15=FALSE,0,IF(G21=TRUE,-PMT('Data Input - General'!$G$16,SUM('Data Input - General'!$H$26:$H$28),G23*1000)/1000,0)),0)","v":0},{"$f":"IFERROR(IF(H15=FALSE,0,IF(H21=TRUE,-PMT('Data Input - General'!$G$16,SUM('Data Input - General'!$H$26:$H$28),H23*1000)/1000,0)),0)","v":0},{"$f":"IFERROR(IF(I15=FALSE,0,IF(I21=TRUE,-PMT('Data Input - General'!$G$16,SUM('Data Input - General'!$H$26:$H$28),I23*1000)/1000,0)),0)","v":0},{"$f":"IFERROR(IF(J15=FALSE,0,IF(J21=TRUE,-PMT('Data Input - General'!$G$16,SUM('Data Input - General'!$H$26:$H$28),J23*1000)/1000,0)),0)","v":0},{"$f":"IFERROR(IF(K15=FALSE,0,IF(K21=TRUE,-PMT('Data Input - General'!$G$16,SUM('Data Input - General'!$H$26:$H$28),K23*1000)/1000,0)),0)","v":0},{"$f":"IFERROR(IF(L15=FALSE,0,IF(L21=TRUE,-PMT('Data Input - General'!$G$16,SUM('Data Input - General'!$H$26:$H$28),L23*1000)/1000,0)),0)","v":0},{"$f":"IFERROR(IF(M15=FALSE,0,IF(M21=TRUE,-PMT('Data Input - General'!$G$16,SUM('Data Input - General'!$H$26:$H$28),M23*1000)/1000,0)),0)","v":0},{"$f":"IFERROR(IF(N15=FALSE,0,IF(N21=TRUE,-PMT('Data Input - General'!$G$16,SUM('Data Input - General'!$H$26:$H$28),N23*1000)/1000,0)),0)","v":0},{"$f":"IFERROR(IF(O15=FALSE,0,IF(O21=TRUE,-PMT('Data Input - General'!$G$16,SUM('Data Input - General'!$H$26:$H$28),O23*1000)/1000,0)),0)","v":0},{"$f":"IFERROR(IF(P15=FALSE,0,IF(P21=TRUE,-PMT('Data Input - General'!$G$16,SUM('Data Input - General'!$H$26:$H$28),P23*1000)/1000,0)),0)","v":0},{"$f":"IFERROR(IF(Q15=FALSE,0,IF(Q21=TRUE,-PMT('Data Input - General'!$G$16,SUM('Data Input - General'!$H$26:$H$28),Q23*1000)/1000,0)),0)","v":0},{"$f":"IFERROR(IF(R15=FALSE,0,IF(R21=TRUE,-PMT('Data Input - General'!$G$16,SUM('Data Input - General'!$H$26:$H$28),R23*1000)/1000,0)),0)","v":0},{"$f":"IFERROR(IF(S15=FALSE,0,IF(S21=TRUE,-PMT('Data Input - General'!$G$16,SUM('Data Input - General'!$H$26:$H$28),S23*1000)/1000,0)),0)","v":0},{"$f":"IFERROR(IF(T15=FALSE,0,IF(T21=TRUE,-PMT('Data Input - General'!$G$16,SUM('Data Input - General'!$H$26:$H$28),T23*1000)/1000,0)),0)","v":0},{"$f":"IFERROR(IF(U15=FALSE,0,IF(U21=TRUE,-PMT('Data Input - General'!$G$16,SUM('Data Input - General'!$H$26:$H$28),U23*1000)/1000,0)),0)","v":0},{"$f":"IFERROR(IF(V15=FALSE,0,IF(V21=TRUE,-PMT('Data Input - General'!$G$16,SUM('Data Input - General'!$H$26:$H$28),V23*1000)/1000,0)),0)","v":0},{"$f":"IFERROR(IF(W15=FALSE,0,IF(W21=TRUE,-PMT('Data Input - General'!$G$16,SUM('Data Input - General'!$H$26:$H$28),W23*1000)/1000,0)),0)","v":0},{"$f":"IFERROR(IF(X15=FALSE,0,IF(X21=TRUE,-PMT('Data Input - General'!$G$16,SUM('Data Input - General'!$H$26:$H$28),X23*1000)/1000,0)),0)","v":0},{"$f":"IFERROR(IF(Y15=FALSE,0,IF(Y21=TRUE,-PMT('Data Input - General'!$G$16,SUM('Data Input - General'!$H$26:$H$28),Y23*1000)/1000,0)),0)","v":0},{"$f":"IFERROR(IF(Z15=FALSE,0,IF(Z21=TRUE,-PMT('Data Input - General'!$G$16,SUM('Data Input - General'!$H$26:$H$28),Z23*1000)/1000,0)),0)","v":0},{"$f":"IFERROR(IF(AA15=FALSE,0,IF(AA21=TRUE,-PMT('Data Input - General'!$G$16,SUM('Data Input - General'!$H$26:$H$28),AA23*1000)/1000,0)),0)","v":0},{"$f":"IFERROR(IF(AB15=FALSE,0,IF(AB21=TRUE,-PMT('Data Input - General'!$G$16,SUM('Data Input - General'!$H$26:$H$28),AB23*1000)/1000,0)),0)","v":0},{"$f":"IFERROR(IF(AC15=FALSE,0,IF(AC21=TRUE,-PMT('Data Input - General'!$G$16,SUM('Data Input - General'!$H$26:$H$28),AC23*1000)/1000,0)),0)","v":0},{"$f":"IFERROR(IF(AD15=FALSE,0,IF(AD21=TRUE,-PMT('Data Input - General'!$G$16,SUM('Data Input - General'!$H$26:$H$28),AD23*1000)/1000,0)),0)","v":0},{"$f":"IFERROR(IF(AE15=FALSE,0,IF(AE21=TRUE,-PMT('Data Input - General'!$G$16,SUM('Data Input - General'!$H$26:$H$28),AE23*1000)/1000,0)),0)","v":0},{"$f":"IFERROR(IF(AF15=FALSE,0,IF(AF21=TRUE,-PMT('Data Input - General'!$G$16,SUM('Data Input - General'!$H$26:$H$28),AF23*1000)/1000,0)),0)","v":0},{"$f":"IFERROR(IF(AG15=FALSE,0,IF(AG21=TRUE,-PMT('Data Input - General'!$G$16,SUM('Data Input - General'!$H$26:$H$28),AG23*1000)/1000,0)),0)","v":0},{"$f":"IFERROR(IF(AH15=FALSE,0,IF(AH21=TRUE,-PMT('Data Input - General'!$G$16,SUM('Data Input - General'!$H$26:$H$28),AH23*1000)/1000,0)),0)","v":0},{"$f":"IFERROR(IF(AI15=FALSE,0,IF(AI21=TRUE,-PMT('Data Input - General'!$G$16,SUM('Data Input - General'!$H$26:$H$28),AI23*1000)/1000,0)),0)","v":0},{"$f":"IFERROR(IF(AJ15=FALSE,0,IF(AJ21=TRUE,-PMT('Data Input - General'!$G$16,SUM('Data Input - General'!$H$26:$H$28),AJ23*1000)/1000,0)),0)","v":0},{"$f":"IFERROR(IF(AK15=FALSE,0,IF(AK21=TRUE,-PMT('Data Input - General'!$G$16,SUM('Data Input - General'!$H$26:$H$28),AK23*1000)/1000,0)),0)","v":0},{"$f":"IFERROR(IF(AL15=FALSE,0,IF(AL21=TRUE,-PMT('Data Input - General'!$G$16,SUM('Data Input - General'!$H$26:$H$28),AL23*1000)/1000,0)),0)","v":0},{"$f":"IFERROR(IF(AM15=FALSE,0,IF(AM21=TRUE,-PMT('Data Input - General'!$G$16,SUM('Data Input - General'!$H$26:$H$28),AM23*1000)/1000,0)),0)","v":0},{"$f":"IFERROR(IF(AN15=FALSE,0,IF(AN21=TRUE,-PMT('Data Input - General'!$G$16,SUM('Data Input - General'!$H$26:$H$28),AN23*1000)/1000,0)),0)","v":0},{"$f":"IFERROR(IF(AO15=FALSE,0,IF(AO21=TRUE,-PMT('Data Input - General'!$G$16,SUM('Data Input - General'!$H$26:$H$28),AO23*1000)/1000,0)),0)","v":0},{"$f":"IFERROR(IF(AP15=FALSE,0,IF(AP21=TRUE,-PMT('Data Input - General'!$G$16,SUM('Data Input - General'!$H$26:$H$28),AP23*1000)/1000,0)),0)","v":0},{"$f":"IFERROR(IF(AQ15=FALSE,0,IF(AQ21=TRUE,-PMT('Data Input - General'!$G$16,SUM('Data Input - General'!$H$26:$H$28),AQ23*1000)/1000,0)),0)","v":0},{"$f":"IFERROR(IF(AR15=FALSE,0,IF(AR21=TRUE,-PMT('Data Input - General'!$G$16,SUM('Data Input - General'!$H$26:$H$28),AR23*1000)/1000,0)),0)","v":0},{"$f":"IFERROR(IF(AS15=FALSE,0,IF(AS21=TRUE,-PMT('Data Input - General'!$G$16,SUM('Data Input - General'!$H$26:$H$28),AS23*1000)/1000,0)),0)","v":0},{"$f":"IFERROR(IF(AT15=FALSE,0,IF(AT21=TRUE,-PMT('Data Input - General'!$G$16,SUM('Data Input - General'!$H$26:$H$28),AT23*1000)/1000,0)),0)","v":0},{"$f":"IFERROR(IF(AU15=FALSE,0,IF(AU21=TRUE,-PMT('Data Input - General'!$G$16,SUM('Data Input - General'!$H$26:$H$28),AU23*1000)/1000,0)),0)","v":0},{"$f":"IFERROR(IF(AV15=FALSE,0,IF(AV21=TRUE,-PMT('Data Input - General'!$G$16,SUM('Data Input - General'!$H$26:$H$28),AV23*1000)/1000,0)),0)","v":0},{"$f":"IFERROR(IF(AW15=FALSE,0,IF(AW21=TRUE,-PMT('Data Input - General'!$G$16,SUM('Data Input - General'!$H$26:$H$28),AW23*1000)/1000,0)),0)","v":0},{"$f":"IFERROR(IF(AX15=FALSE,0,IF(AX21=TRUE,-PMT('Data Input - General'!$G$16,SUM('Data Input - General'!$H$26:$H$28),AX23*1000)/1000,0)),0)","v":0},{"$f":"IFERROR(IF(AY15=FALSE,0,IF(AY21=TRUE,-PMT('Data Input - General'!$G$16,SUM('Data Input - General'!$H$26:$H$28),AY23*1000)/1000,0)),0)","v":0},{"$f":"IFERROR(IF(AZ15=FALSE,0,IF(AZ21=TRUE,-PMT('Data Input - General'!$G$16,SUM('Data Input - General'!$H$26:$H$28),AZ23*1000)/1000,0)),0)","v":0},{"$f":"IFERROR(IF(BA15=FALSE,0,IF(BA21=TRUE,-PMT('Data Input - General'!$G$16,SUM('Data Input - General'!$H$26:$H$28),BA23*1000)/1000,0)),0)","v":0},{"$f":"IFERROR(IF(BB15=FALSE,0,IF(BB21=TRUE,-PMT('Data Input - General'!$G$16,SUM('Data Input - General'!$H$26:$H$28),BB23*1000)/1000,0)),0)","v":0},{"$f":"IFERROR(IF(BC15=FALSE,0,IF(BC21=TRUE,-PMT('Data Input - General'!$G$16,SUM('Data Input - General'!$H$26:$H$28),BC23*1000)/1000,0)),0)","v":0},{"$f":"IFERROR(IF(BD15=FALSE,0,IF(BD21=TRUE,-PMT('Data Input - General'!$G$16,SUM('Data Input - General'!$H$26:$H$28),BD23*1000)/1000,0)),0)","v":0},{"$f":"IFERROR(IF(BE15=FALSE,0,IF(BE21=TRUE,-PMT('Data Input - General'!$G$16,SUM('Data Input - General'!$H$26:$H$28),BE23*1000)/1000,0)),0)","v":0},{"$f":"IFERROR(IF(BF15=FALSE,0,IF(BF21=TRUE,-PMT('Data Input - General'!$G$16,SUM('Data Input - General'!$H$26:$H$28),BF23*1000)/1000,0)),0)","v":0},{"$f":"IFERROR(IF(BG15=FALSE,0,IF(BG21=TRUE,-PMT('Data Input - General'!$G$16,SUM('Data Input - General'!$H$26:$H$28),BG23*1000)/1000,0)),0)","v":0},{"$f":"IFERROR(IF(BH15=FALSE,0,IF(BH21=TRUE,-PMT('Data Input - General'!$G$16,SUM('Data Input - General'!$H$26:$H$28),BH23*1000)/1000,0)),0)","v":0},{"$f":"IFERROR(IF(BI15=FALSE,0,IF(BI21=TRUE,-PMT('Data Input - General'!$G$16,SUM('Data Input - General'!$H$26:$H$28),BI23*1000)/1000,0)),0)","v":0},{"$f":"IFERROR(IF(BJ15=FALSE,0,IF(BJ21=TRUE,-PMT('Data Input - General'!$G$16,SUM('Data Input - General'!$H$26:$H$28),BJ23*1000)/1000,0)),0)","v":0},{"$f":"IFERROR(IF(BK15=FALSE,0,IF(BK21=TRUE,-PMT('Data Input - General'!$G$16,SUM('Data Input - General'!$H$26:$H$28),BK23*1000)/1000,0)),0)","v":0},{"$f":"IFERROR(IF(BL15=FALSE,0,IF(BL21=TRUE,-PMT('Data Input - General'!$G$16,SUM('Data Input - General'!$H$26:$H$28),BL23*1000)/1000,0)),0)","v":0},{"$f":"IFERROR(IF(BM15=FALSE,0,IF(BM21=TRUE,-PMT('Data Input - General'!$G$16,SUM('Data Input - General'!$H$26:$H$28),BM23*1000)/1000,0)),0)","v":0},{"$f":"IFERROR(IF(BN15=FALSE,0,IF(BN21=TRUE,-PMT('Data Input - General'!$G$16,SUM('Data Input - General'!$H$26:$H$28),BN23*1000)/1000,0)),0)","v":0},{"$f":"IFERROR(IF(BO15=FALSE,0,IF(BO21=TRUE,-PMT('Data Input - General'!$G$16,SUM('Data Input - General'!$H$26:$H$28),BO23*1000)/1000,0)),0)","v":0},{"$f":"IFERROR(IF(BP15=FALSE,0,IF(BP21=TRUE,-PMT('Data Input - General'!$G$16,SUM('Data Input - General'!$H$26:$H$28),BP23*1000)/1000,0)),0)","v":0},{"$f":"IFERROR(IF(BQ15=FALSE,0,IF(BQ21=TRUE,-PMT('Data Input - General'!$G$16,SUM('Data Input - General'!$H$26:$H$28),BQ23*1000)/1000,0)),0)","v":0},{"$f":"IFERROR(IF(BR15=FALSE,0,IF(BR21=TRUE,-PMT('Data Input - General'!$G$16,SUM('Data Input - General'!$H$26:$H$28),BR23*1000)/1000,0)),0)","v":0},{"$f":"IFERROR(IF(BS15=FALSE,0,IF(BS21=TRUE,-PMT('Data Input - General'!$G$16,SUM('Data Input - General'!$H$26:$H$28),BS23*1000)/1000,0)),0)","v":0},{"$f":"IFERROR(IF(BT15=FALSE,0,IF(BT21=TRUE,-PMT('Data Input - General'!$G$16,SUM('Data Input - General'!$H$26:$H$28),BT23*1000)/1000,0)),0)","v":0},{"$f":"IFERROR(IF(BU15=FALSE,0,IF(BU21=TRUE,-PMT('Data Input - General'!$G$16,SUM('Data Input - General'!$H$26:$H$28),BU23*1000)/1000,0)),0)","v":0},{"$f":"IFERROR(IF(BV15=FALSE,0,IF(BV21=TRUE,-PMT('Data Input - General'!$G$16,SUM('Data Input - General'!$H$26:$H$28),BV23*1000)/1000,0)),0)","v":0},{"$f":"IFERROR(IF(BW15=FALSE,0,IF(BW21=TRUE,-PMT('Data Input - General'!$G$16,SUM('Data Input - General'!$H$26:$H$28),BW23*1000)/1000,0)),0)","v":0},{"$f":"IFERROR(IF(BX15=FALSE,0,IF(BX21=TRUE,-PMT('Data Input - General'!$G$16,SUM('Data Input - General'!$H$26:$H$28),BX23*1000)/1000,0)),0)","v":0},{"$f":"IFERROR(IF(BY15=FALSE,0,IF(BY21=TRUE,-PMT('Data Input - General'!$G$16,SUM('Data Input - General'!$H$26:$H$28),BY23*1000)/1000,0)),0)","v":0},{"$f":"IFERROR(IF(BZ15=FALSE,0,IF(BZ21=TRUE,-PMT('Data Input - General'!$G$16,SUM('Data Input - General'!$H$26:$H$28),BZ23*1000)/1000,0)),0)","v":0},{"$f":"IFERROR(IF(CA15=FALSE,0,IF(CA21=TRUE,-PMT('Data Input - General'!$G$16,SUM('Data Input - General'!$H$26:$H$28),CA23*1000)/1000,0)),0)","v":0},{"$f":"IFERROR(IF(CB15=FALSE,0,IF(CB21=TRUE,-PMT('Data Input - General'!$G$16,SUM('Data Input - General'!$H$26:$H$28),CB23*1000)/1000,0)),0)","v":0},{"$f":"IFERROR(IF(CC15=FALSE,0,IF(CC21=TRUE,-PMT('Data Input - General'!$G$16,SUM('Data Input - General'!$H$26:$H$28),CC23*1000)/1000,0)),0)","v":0},{"$f":"IFERROR(IF(CD15=FALSE,0,IF(CD21=TRUE,-PMT('Data Input - General'!$G$16,SUM('Data Input - General'!$H$26:$H$28),CD23*1000)/1000,0)),0)","v":0},{"$f":"IFERROR(IF(CE15=FALSE,0,IF(CE21=TRUE,-PMT('Data Input - General'!$G$16,SUM('Data Input - General'!$H$26:$H$28),CE23*1000)/1000,0)),0)","v":0},{"$f":"IFERROR(IF(CF15=FALSE,0,IF(CF21=TRUE,-PMT('Data Input - General'!$G$16,SUM('Data Input - General'!$H$26:$H$28),CF23*1000)/1000,0)),0)","v":0},{"$f":"IFERROR(IF(CG15=FALSE,0,IF(CG21=TRUE,-PMT('Data Input - General'!$G$16,SUM('Data Input - General'!$H$26:$H$28),CG23*1000)/1000,0)),0)","v":0},{"$f":"IFERROR(IF(CH15=FALSE,0,IF(CH21=TRUE,-PMT('Data Input - General'!$G$16,SUM('Data Input - General'!$H$26:$H$28),CH23*1000)/1000,0)),0)","v":0},{"$f":"IFERROR(IF(CI15=FALSE,0,IF(CI21=TRUE,-PMT('Data Input - General'!$G$16,SUM('Data Input - General'!$H$26:$H$28),CI23*1000)/1000,0)),0)","v":0},{"$f":"IFERROR(IF(CJ15=FALSE,0,IF(CJ21=TRUE,-PMT('Data Input - General'!$G$16,SUM('Data Input - General'!$H$26:$H$28),CJ23*1000)/1000,0)),0)","v":0},{"$f":"IFERROR(IF(CK15=FALSE,0,IF(CK21=TRUE,-PMT('Data Input - General'!$G$16,SUM('Data Input - General'!$H$26:$H$28),CK23*1000)/1000,0)),0)","v":0},{"$f":"IFERROR(IF(CL15=FALSE,0,IF(CL21=TRUE,-PMT('Data Input - General'!$G$16,SUM('Data Input - General'!$H$26:$H$28),CL23*1000)/1000,0)),0)","v":0},{"$f":"IFERROR(IF(CM15=FALSE,0,IF(CM21=TRUE,-PMT('Data Input - General'!$G$16,SUM('Data Input - General'!$H$26:$H$28),CM23*1000)/1000,0)),0)","v":0},{"$f":"IFERROR(IF(CN15=FALSE,0,IF(CN21=TRUE,-PMT('Data Input - General'!$G$16,SUM('Data Input - General'!$H$26:$H$28),CN23*1000)/1000,0)),0)","v":0},{"$f":"IFERROR(IF(CO15=FALSE,0,IF(CO21=TRUE,-PMT('Data Input - General'!$G$16,SUM('Data Input - General'!$H$26:$H$28),CO23*1000)/1000,0)),0)","v":0},{"$f":"IFERROR(IF(CP15=FALSE,0,IF(CP21=TRUE,-PMT('Data Input - General'!$G$16,SUM('Data Input - General'!$H$26:$H$28),CP23*1000)/1000,0)),0)","v":0},{"$f":"IFERROR(IF(CQ15=FALSE,0,IF(CQ21=TRUE,-PMT('Data Input - General'!$G$16,SUM('Data Input - General'!$H$26:$H$28),CQ23*1000)/1000,0)),0)","v":0},{"$f":"IFERROR(IF(CR15=FALSE,0,IF(CR21=TRUE,-PMT('Data Input - General'!$G$16,SUM('Data Input - General'!$H$26:$H$28),CR23*1000)/1000,0)),0)","v":0},{"$f":"IFERROR(IF(CS15=FALSE,0,IF(CS21=TRUE,-PMT('Data Input - General'!$G$16,SUM('Data Input - General'!$H$26:$H$28),CS23*1000)/1000,0)),0)","v":0},{"$f":"IFERROR(IF(CT15=FALSE,0,IF(CT21=TRUE,-PMT('Data Input - General'!$G$16,SUM('Data Input - General'!$H$26:$H$28),CT23*1000)/1000,0)),0)","v":0},{"$f":"IFERROR(IF(CU15=FALSE,0,IF(CU21=TRUE,-PMT('Data Input - General'!$G$16,SUM('Data Input - General'!$H$26:$H$28),CU23*1000)/1000,0)),0)","v":0},{"$f":"IFERROR(IF(CV15=FALSE,0,IF(CV21=TRUE,-PMT('Data Input - General'!$G$16,SUM('Data Input - General'!$H$26:$H$28),CV23*1000)/1000,0)),0)","v":0},{"$f":"IFERROR(IF(CW15=FALSE,0,IF(CW21=TRUE,-PMT('Data Input - General'!$G$16,SUM('Data Input - General'!$H$26:$H$28),CW23*1000)/1000,0)),0)","v":0},{"$f":"IFERROR(IF(CX15=FALSE,0,IF(CX21=TRUE,-PMT('Data Input - General'!$G$16,SUM('Data Input - General'!$H$26:$H$28),CX23*1000)/1000,0)),0)","v":0},{"$f":"IFERROR(IF(CY15=FALSE,0,IF(CY21=TRUE,-PMT('Data Input - General'!$G$16,SUM('Data Input - General'!$H$26:$H$28),CY23*1000)/1000,0)),0)","v":0}]
[null,"Cummulative annualised payment","£000's",0,0,0,{"$f":"IF(G27=0,F28,IF(F27=G27,F28,F28+G27))","v":0},{"$f":"IF(H27=0,G28,IF(G27=H27,G28,G28+H27))","v":0},0,0,0,0,0,0,0,0,0,0,0,0,0,0,0,0,0,0,0,0,0,0,0,0,0,0,0,0,0,0,0,0,0,0,0,0,0,0,0,0,0,0,0,0,0,0,0,0,0,0,0,0,0,0,0,0,0,0,0,0,0,0,0,{"$f":"IF(BT27=0,BS28,IF(BS27=BT27,BS28,BS28+BT27))","v":0},0,0,0,0,0,0,0,0,0,0,0,0,0,0,0,0,0,0,0,0,0,0,0,0,0,0,0,0,0,0,0]
[null,"Annual value (taking into account installation year)","£000's",{"$f":"IF(D15=FALSE,0,IF(D28=0,$D$26,D28))","v":871.77798243613597},{"$f":"IF(E15=FALSE,0,IF(E28=0,$D$26,E28))","v":871.77798243613597},871.77798243613597,871.77798243613597,871.77798243613597,871.77798243613597,871.77798243613597,871.77798243613597,871.77798243613597,871.77798243613597,871.77798243613597,871.77798243613597,871.77798243613597,871.77798243613597,871.77798243613597,871.77798243613597,871.77798243613597,871.77798243613597,871.77798243613597,871.77798243613597,871.77798243613597,871.77798243613597,871.77798243613597,871.77798243613597,871.77798243613597,871.77798243613597,871.77798243613597,871.77798243613597,871.77798243613597,871.77798243613597,871.77798243613597,871.77798243613597,871.77798243613597,871.77798243613597,871.77798243613597,871.77798243613597,871.77798243613597,871.77798243613597,871.77798243613597,871.77798243613597,871.77798243613597,871.77798243613597,871.77798243613597,871.77798243613597,871.77798243613597,871.77798243613597,871.77798243613597,871.77798243613597,871.77798243613597,871.77798243613597,871.77798243613597,871.77798243613597,871.77798243613597,871.77798243613597,871.77798243613597,871.77798243613597,871.77798243613597,871.77798243613597,871.77798243613597,871.77798243613597,871.77798243613597,871.77798243613597,871.77798243613597,871.77798243613597,871.77798243613597,{"$f":"IF(BQ15=FALSE,0,IF(BQ28=0,$D$26,BQ28))","v":871.77798243613597},871.77798243613597,871.77798243613597,871.77798243613597,871.77798243613597,871.77798243613597,871.77798243613597,871.77798243613597,871.77798243613597,871.77798243613597,871.77798243613597,871.77798243613597,871.77798243613597,871.77798243613597,871.77798243613597,871.77798243613597,871.77798243613597,871.77798243613597,871.77798243613597,871.77798243613597,871.77798243613597,871.77798243613597,871.77798243613597,871.77798243613597,871.77798243613597,871.77798243613597,871.77798243613597,871.77798243613597,871.77798243613597,871.77798243613597,871.77798243613597,871.77798243613597,871.77798243613597,871.77798243613597,0]
[null,"Discounted annual value","£000's",{"$f":"D29*D$7","v":871.77798243613597},{"$f":"E29*E$7","v":842.29756757114592},813.81407494796713,786.29379222025818,759.70414707271323,734.01366866928822,709.19195040510942,685.20961391798016,662.03827431688921,639.65050658636642,618.01981312692408,597.12059239316341,576.92810859242854,557.41846240814357,538.56856271318213,520.35609923978961,502.75951617370976,485.75798664126552,469.33138805919378,453.46027831806163,438.12587277107406,423.31002200103779,408.99519033916698,395.16443511030627,381.80138658000612,368.89022857971611,356.41567978716535,344.36297563977331,332.7178508596844,321.4665225697434,312.10341997062466,0,0,0,0,0,0,0,0,0,0,0,0,0,0,0,0,0,0,0,0,0,0,0,0,0,0,0,0,0,0,0,0,0,{"$f":"BP29*BP$7","v":0},0,0,0,0,0,0,0,0,0,0,0,0,0,0,0,0,0,0,0,0,0,0,0,0,0,0,0,0,0,0,0,0,0,0,0]
[]
[null,"Cost of Capital (finance)"]
[null,"Financing costs (when entered manually)","£000's",{"$f":"'Data Input - BAT'!H39","v":0},{"$f":"'Data Input - BAT'!I39","v":0},{"$f":"'Data Input - BAT'!J39","v":0},{"$f":"'Data Input - BAT'!K39","v":0},{"$f":"'Data Input - BAT'!L39","v":0},{"$f":"'Data Input - BAT'!M39","v":0},{"$f":"'Data Input - BAT'!N39","v":0},{"$f":"'Data Input - BAT'!O39","v":0},{"$f":"'Data Input - BAT'!P39","v":0},{"$f":"'Data Input - BAT'!Q39","v":0},{"$f":"'Data Input - BAT'!R39","v":0},{"$f":"'Data Input - BAT'!S39","v":0},{"$f":"'Data Input - BAT'!T39","v":0},{"$f":"'Data Input - BAT'!U39","v":0},{"$f":"'Data Input - BAT'!V39","v":0},{"$f":"'Data Input - BAT'!W39","v":0},{"$f":"'Data Input - BAT'!X39","v":0},{"$f":"'Data Input - BAT'!Y39","v":0},{"$f":"'Data Input - BAT'!Z39","v":0},{"$f":"'Data Input - BAT'!AA39","v":0},{"$f":"'Data Input - BAT'!AB39","v":0},{"$f":"'Data Input - BAT'!AC39","v":0},{"$f":"'Data Input - BAT'!AD39","v":0},{"$f":"'Data Input - BAT'!AE39","v":0},{"$f":"'Data Input - BAT'!AF39","v":0},{"$f":"'Data Input - BAT'!AG39","v":0},{"$f":"'Data Input - BAT'!AH39","v":0},{"$f":"'Data Input - BAT'!AI39","v":0},{"$f":"'Data Input - BAT'!AJ39","v":0},{"$f":"'Data Input - BAT'!AK39","v":0},{"$f":"'Data Input - BAT'!AL39","v":0},{"$f":"'Data Input - BAT'!AM39","v":0},{"$f":"'Data Input - BAT'!AN39","v":0},{"$f":"'Data Input - BAT'!AO39","v":0},{"$f":"'Data Input - BAT'!AP39","v":0},{"$f":"'Data Input - BAT'!AQ39","v":0},{"$f":"'Data Input - BAT'!AR39","v":0},{"$f":"'Data Input - BAT'!AS39","v":0},{"$f":"'Data Input - BAT'!AT39","v":0},{"$f":"'Data Input - BAT'!AU39","v":0},{"$f":"'Data Input - BAT'!AV39","v":0},{"$f":"'Data Input - BAT'!AW39","v":0},{"$f":"'Data Input - BAT'!AX39","v":0},{"$f":"'Data Input - BAT'!AY39","v":0},{"$f":"'Data Input - BAT'!AZ39","v":0},{"$f":"'Data Input - BAT'!BA39","v":0},{"$f":"'Data Input - BAT'!BB39","v":0},{"$f":"'Data Input - BAT'!BC39","v":0},{"$f":"'Data Input - BAT'!BD39","v":0},{"$f":"'Data Input - BAT'!BE39","v":0},{"$f":"'Data Input - BAT'!BF39","v":0},{"$f":"'Data Input - BAT'!BG39","v":0},{"$f":"'Data Input - BAT'!BH39","v":0},{"$f":"'Data Input - BAT'!BI39","v":0},{"$f":"'Data Input - BAT'!BJ39","v":0},{"$f":"'Data Input - BAT'!BK39","v":0},{"$f":"'Data Input - BAT'!BL39","v":0},{"$f":"'Data Input - BAT'!BM39","v":0},{"$f":"'Data Input - BAT'!BN39","v":0},{"$f":"'Data Input - BAT'!BO39","v":0},{"$f":"'Data Input - BAT'!BP39","v":0},{"$f":"'Data Input - BAT'!BQ39","v":0},{"$f":"'Data Input - BAT'!BR39","v":0},{"$f":"'Data Input - BAT'!BS39","v":0},{"$f":"'Data Input - BAT'!BT39","v":0},{"$f":"'Data Input - BAT'!BU39","v":0},{"$f":"'Data Input - BAT'!BV39","v":0},{"$f":"'Data Input - BAT'!BW39","v":0},{"$f":"'Data Input - BAT'!BX39","v":0},{"$f":"'Data Input - BAT'!BY39","v":0},{"$f":"'Data Input - BAT'!BZ39","v":0},{"$f":"'Data Input - BAT'!CA39","v":0},{"$f":"'Data Input - BAT'!CB39","v":0},{"$f":"'Data Input - BAT'!CC39","v":0},{"$f":"'Data Input - BAT'!CD39","v":0},{"$f":"'Data Input - BAT'!CE39","v":0},{"$f":"'Data Input - BAT'!CF39","v":0},{"$f":"'Data Input - BAT'!CG39","v":0},{"$f":"'Data Input - BAT'!CH39","v":0},{"$f":"'Data Input - BAT'!CI39","v":0},{"$f":"'Data Input - BAT'!CJ39","v":0},{"$f":"'Data Input - BAT'!CK39","v":0},{"$f":"'Data Input - BAT'!CL39","v":0},{"$f":"'Data Input - BAT'!CM39","v":0},{"$f":"'Data Input - BAT'!CN39","v":0},{"$f":"'Data Input - BAT'!CO39","v":0},{"$f":"'Data Input - BAT'!CP39","v":0},{"$f":"'Data Input - BAT'!CQ39","v":0},{"$f":"'Data Input - BAT'!CR39","v":0},{"$f":"'Data Input - BAT'!CS39","v":0},{"$f":"'Data Input - BAT'!CT39","v":0},{"$f":"'Data Input - BAT'!CU39","v":0},{"$f":"'Data Input - BAT'!CV39","v":0},{"$f":"'Data Input - BAT'!CW39","v":0},{"$f":"'Data Input - BAT'!CX39","v":0},{"$f":"'Data Input - BAT'!CY39","v":0},{"$f":"'Data Input - BAT'!CZ39","v":0},{"$f":"'Data Input - BAT'!DA39","v":0},{"$f":"'Data Input - BAT'!DB39","v":0},{"$f":"'Data Input - BAT'!DC39","v":0}]
[null,"Discounted finacning","£000's",{"$f":"D33*D$7","v":0},{"$f":"E33*E$7","v":0},{"$f":"F33*F$7","v":0},0,0,0,0,0,0,0,0,0,0,0,0,0,0,0,0,0,0,0,0,0,0,0,0,0,0,0,0,0,0,0,0,0,0,0,0,0,0,0,0,0,0,0,0,0,0,0,0,0,0,0,0,0,0,0,0,0,0,0,0,0,0,{"$f":"BQ33*BQ$7","v":0},0,0,0,0,0,0,0,0,0,0,0,0,0,0,0,0,0,0,0,0,0,0,0,0,0,0,0,0,0,0,0,0,0,0]
[]
[null,"Total capex","£000's",{"$f":"IF('Data Input - BAT'!$F$37=\"Yes\",D34+D13,D30)","v":871.77798243613597},{"$f":"IF('Data Input - BAT'!$F$37=\"Yes\",E34+E13,E30)","v":842.29756757114592},{"$f":"IF('Data Input - BAT'!$F$37=\"Yes\",F34+F13,F30)","v":813.81407494796713},{"$f":"IF('Data Input - BAT'!$F$37=\"Yes\",G34+G13,G30)","v":786.29379222025818},{"$f":"IF('Data Input - BAT'!$F$37=\"Yes\",H34+H13,H30)","v":759.70414707271323},{"$f":"IF('Data Input - BAT'!$F$37=\"Yes\",I34+I13,I30)","v":734.01366866928822},{"$f":"IF('Data Input - BAT'!$F$37=\"Yes\",J34+J13,J30)","v":709.19195040510942},{"$f":"IF('Data Input - BAT'!$F$37=\"Yes\",K34+K13,K30)","v":685.20961391798016},{"$f":"IF('Data Input - BAT'!$F$37=\"Yes\",L34+L13,L30)","v":662.03827431688921},{"$f":"IF('Data Input - BAT'!$F$37=\"Yes\",M34+M13,M30)","v":639.65050658636642},{"$f":"IF('Data Input - BAT'!$F$37=\"Yes\",N34+N13,N30)","v":618.01981312692408},{"$f":"IF('Data Input - BAT'!$F$37=\"Yes\",O34+O13,O30)","v":597.12059239316341},{"$f":"IF('Data Input - BAT'!$F$37=\"Yes\",P34+P13,P30)","v":576.92810859242854},{"$f":"IF('Data Input - BAT'!$F$37=\"Yes\",Q34+Q13,Q30)","v":557.41846240814357},{"$f":"IF('Data Input - BAT'!$F$37=\"Yes\",R34+R13,R30)","v":538.56856271318213},{"$f":"IF('Data Input - BAT'!$F$37=\"Yes\",S34+S13,S30)","v":520.35609923978961},{"$f":"IF('Data Input - BAT'!$F$37=\"Yes\",T34+T13,T30)","v":502.75951617370976},{"$f":"IF('Data Input - BAT'!$F$37=\"Yes\",U34+U13,U30)","v":485.75798664126552},{"$f":"IF('Data Input - BAT'!$F$37=\"Yes\",V34+V13,V30)","v":469.33138805919378},{"$f":"IF('Data Input - BAT'!$F$37=\"Yes\",W34+W13,W30)","v":453.46027831806163},{"$f":"IF('Data Input - BAT'!$F$37=\"Yes\",X34+X13,X30)","v":438.12587277107406},{"$f":"IF('Data Input - BAT'!$F$37=\"Yes\",Y34+Y13,Y30)","v":423.31002200103779},{"$f":"IF('Data Input - BAT'!$F$37=\"Yes\",Z34+Z13,Z30)","v":408.99519033916698},{"$f":"IF('Data Input - BAT'!$F$37=\"Yes\",AA34+AA13,AA30)","v":395.16443511030627},{"$f":"IF('Data Input - BAT'!$F$37=\"Yes\",AB34+AB13,AB30)","v":381.80138658000612},{"$f":"IF('Data Input - BAT'!$F$37=\"Yes\",AC34+AC13,AC30)","v":368.89022857971611},{"$f":"IF('Data Input - BAT'!$F$37=\"Yes\",AD34+AD13,AD30)","v":356.41567978716535},{"$f":"IF('Data Input - BAT'!$F$37=\"Yes\",AE34+AE13,AE30)","v":344.36297563977331},{"$f":"IF('Data Input - BAT'!$F$37=\"Yes\",AF34+AF13,AF30)","v":332.7178508596844},{"$f":"IF('Data Input - BAT'!$F$37=\"Yes\",AG34+AG13,AG30)","v":321.4665225697434},{"$f":"IF('Data Input - BAT'!$F$37=\"Yes\",AH34+AH13,AH30)","v":312.10341997062466},{"$f":"IF('Data Input - BAT'!$F$37=\"Yes\",AI34+AI13,AI30)","v":0},{"$f":"IF('Data Input - BAT'!$F$37=\"Yes\",AJ34+AJ13,AJ30)","v":0},{"$f":"IF('Data Input - BAT'!$F$37=\"Yes\",AK34+AK13,AK30)","v":0},{"$f":"IF('Data Input - BAT'!$F$37=\"Yes\",AL34+AL13,AL30)","v":0},{"$f":"IF('Data Input - BAT'!$F$37=\"Yes\",AM34+AM13,AM30)","v":0},{"$f":"IF('Data Input - BAT'!$F$37=\"Yes\",AN34+AN13,AN30)","v":0},{"$f":"IF('Data Input - BAT'!$F$37=\"Yes\",AO34+AO13,AO30)","v":0},{"$f":"IF('Data Input - BAT'!$F$37=\"Yes\",AP34+AP13,AP30)","v":0},{"$f":"IF('Data Input - BAT'!$F$37=\"Yes\",AQ34+AQ13,AQ30)","v":0},{"$f":"IF('Data Input - BAT'!$F$37=\"Yes\",AR34+AR13,AR30)","v":0},{"$f":"IF('Data Input - BAT'!$F$37=\"Yes\",AS34+AS13,AS30)","v":0},{"$f":"IF('Data Input - BAT'!$F$37=\"Yes\",AT34+AT13,AT30)","v":0},{"$f":"IF('Data Input - BAT'!$F$37=\"Yes\",AU34+AU13,AU30)","v":0},{"$f":"IF('Data Input - BAT'!$F$37=\"Yes\",AV34+AV13,AV30)","v":0},{"$f":"IF('Data Input - BAT'!$F$37=\"Yes\",AW34+AW13,AW30)","v":0},{"$f":"IF('Data Input - BAT'!$F$37=\"Yes\",AX34+AX13,AX30)","v":0},{"$f":"IF('Data Input - BAT'!$F$37=\"Yes\",AY34+AY13,AY30)","v":0},{"$f":"IF('Data Input - BAT'!$F$37=\"Yes\",AZ34+AZ13,AZ30)","v":0},{"$f":"IF('Data Input - BAT'!$F$37=\"Yes\",BA34+BA13,BA30)","v":0},{"$f":"IF('Data Input - BAT'!$F$37=\"Yes\",BB34+BB13,BB30)","v":0},{"$f":"IF('Data Input - BAT'!$F$37=\"Yes\",BC34+BC13,BC30)","v":0},{"$f":"IF('Data Input - BAT'!$F$37=\"Yes\",BD34+BD13,BD30)","v":0},{"$f":"IF('Data Input - BAT'!$F$37=\"Yes\",BE34+BE13,BE30)","v":0},{"$f":"IF('Data Input - BAT'!$F$37=\"Yes\",BF34+BF13,BF30)","v":0},{"$f":"IF('Data Input - BAT'!$F$37=\"Yes\",BG34+BG13,BG30)","v":0},{"$f":"IF('Data Input - BAT'!$F$37=\"Yes\",BH34+BH13,BH30)","v":0},{"$f":"IF('Data Input - BAT'!$F$37=\"Yes\",BI34+BI13,BI30)","v":0},{"$f":"IF('Data Input - BAT'!$F$37=\"Yes\",BJ34+BJ13,BJ30)","v":0},{"$f":"IF('Data Input - BAT'!$F$37=\"Yes\",BK34+BK13,BK30)","v":0},{"$f":"IF('Data Input - BAT'!$F$37=\"Yes\",BL34+BL13,BL30)","v":0},{"$f":"IF('Data Input - BAT'!$F$37=\"Yes\",BM34+BM13,BM30)","v":0},{"$f":"IF('Data Input - BAT'!$F$37=\"Yes\",BN34+BN13,BN30)","v":0},{"$f":"IF('Data Input - BAT'!$F$37=\"Yes\",BO34+BO13,BO30)","v":0},{"$f":"IF('Data Input - BAT'!$F$37=\"Yes\",BP34+BP13,BP30)","v":0},{"$f":"IF('Data Input - BAT'!$F$37=\"Yes\",BQ34+BQ13,BQ30)","v":0},{"$f":"IF('Data Input - BAT'!$F$37=\"Yes\",BR34+BR13,BR30)","v":0},{"$f":"IF('Data Input - BAT'!$F$37=\"Yes\",BS34+BS13,BS30)","v":0},{"$f":"IF('Data Input - BAT'!$F$37=\"Yes\",BT34+BT13,BT30)","v":0},{"$f":"IF('Data Input - BAT'!$F$37=\"Yes\",BU34+BU13,BU30)","v":0},{"$f":"IF('Data Input - BAT'!$F$37=\"Yes\",BV34+BV13,BV30)","v":0},{"$f":"IF('Data Input - BAT'!$F$37=\"Yes\",BW34+BW13,BW30)","v":0},{"$f":"IF('Data Input - BAT'!$F$37=\"Yes\",BX34+BX13,BX30)","v":0},{"$f":"IF('Data Input - BAT'!$F$37=\"Yes\",BY34+BY13,BY30)","v":0},{"$f":"IF('Data Input - BAT'!$F$37=\"Yes\",BZ34+BZ13,BZ30)","v":0},{"$f":"IF('Data Input - BAT'!$F$37=\"Yes\",CA34+CA13,CA30)","v":0},{"$f":"IF('Data Input - BAT'!$F$37=\"Yes\",CB34+CB13,CB30)","v":0},{"$f":"IF('Data Input - BAT'!$F$37=\"Yes\",CC34+CC13,CC30)","v":0},{"$f":"IF('Data Input - BAT'!$F$37=\"Yes\",CD34+CD13,CD30)","v":0},{"$f":"IF('Data Input - BAT'!$F$37=\"Yes\",CE34+CE13,CE30)","v":0},{"$f":"IF('Data Input - BAT'!$F$37=\"Yes\",CF34+CF13,CF30)","v":0},{"$f":"IF('Data Input - BAT'!$F$37=\"Yes\",CG34+CG13,CG30)","v":0},{"$f":"IF('Data Input - BAT'!$F$37=\"Yes\",CH34+CH13,CH30)","v":0},{"$f":"IF('Data Input - BAT'!$F$37=\"Yes\",CI34+CI13,CI30)","v":0},{"$f":"IF('Data Input - BAT'!$F$37=\"Yes\",CJ34+CJ13,CJ30)","v":0},{"$f":"IF('Data Input - BAT'!$F$37=\"Yes\",CK34+CK13,CK30)","v":0},{"$f":"IF('Data Input - BAT'!$F$37=\"Yes\",CL34+CL13,CL30)","v":0},{"$f":"IF('Data Input - BAT'!$F$37=\"Yes\",CM34+CM13,CM30)","v":0},{"$f":"IF('Data Input - BAT'!$F$37=\"Yes\",CN34+CN13,CN30)","v":0},{"$f":"IF('Data Input - BAT'!$F$37=\"Yes\",CO34+CO13,CO30)","v":0},{"$f":"IF('Data Input - BAT'!$F$37=\"Yes\",CP34+CP13,CP30)","v":0},{"$f":"IF('Data Input - BAT'!$F$37=\"Yes\",CQ34+CQ13,CQ30)","v":0},{"$f":"IF('Data Input - BAT'!$F$37=\"Yes\",CR34+CR13,CR30)","v":0},{"$f":"IF('Data Input - BAT'!$F$37=\"Yes\",CS34+CS13,CS30)","v":0},{"$f":"IF('Data Input - BAT'!$F$37=\"Yes\",CT34+CT13,CT30)","v":0},{"$f":"IF('Data Input - BAT'!$F$37=\"Yes\",CU34+CU13,CU30)","v":0},{"$f":"IF('Data Input - BAT'!$F$37=\"Yes\",CV34+CV13,CV30)","v":0},{"$f":"IF('Data Input - BAT'!$F$37=\"Yes\",CW34+CW13,CW30)","v":0},{"$f":"IF('Data Input - BAT'!$F$37=\"Yes\",CX34+CX13,CX30)","v":0},{"$f":"IF('Data Input - BAT'!$F$37=\"Yes\",CY34+CY13,CY30)","v":0}]
[]
[null,"Operating costs (non-energy, per annum)"]
[null,"Total Opex","£000's",{"$f":"'Data Input - BAT'!H50","v":250},{"$f":"'Data Input - BAT'!I50","v":450},{"$f":"'Data Input - BAT'!J50","v":450},{"$f":"'Data Input - BAT'!K50","v":450},{"$f":"'Data Input - BAT'!L50","v":450},{"$f":"'Data Input - BAT'!M50","v":450},{"$f":"'Data Input - BAT'!N50","v":450},{"$f":"'Data Input - BAT'!O50","v":450},{"$f":"'Data Input - BAT'!P50","v":0},{"$f":"'Data Input - BAT'!Q50","v":0},{"$f":"'Data Input - BAT'!R50","v":0},{"$f":"'Data Input - BAT'!S50","v":0},{"$f":"'Data Input - BAT'!T50","v":0},{"$f":"'Data Input - BAT'!U50","v":0},{"$f":"'Data Input - BAT'!V50","v":0},{"$f":"'Data Input - BAT'!W50","v":0},{"$f":"'Data Input - BAT'!X50","v":0},{"$f":"'Data Input - BAT'!Y50","v":0},{"$f":"'Data Input - BAT'!Z50","v":0},{"$f":"'Data Input - BAT'!AA50","v":0},{"$f":"'Data Input - BAT'!AB50","v":0},{"$f":"'Data Input - BAT'!AC50","v":0},{"$f":"'Data Input - BAT'!AD50","v":0},{"$f":"'Data Input - BAT'!AE50","v":0},{"$f":"'Data Input - BAT'!AF50","v":0},{"$f":"'Data Input - BAT'!AG50","v":0},{"$f":"'Data Input - BAT'!AH50","v":0},{"$f":"'Data Input - BAT'!AI50","v":0},{"$f":"'Data Input - BAT'!AJ50","v":0},{"$f":"'Data Input - BAT'!AK50","v":0},{"$f":"'Data Input - BAT'!AL50","v":0},{"$f":"'Data Input - BAT'!AM50","v":0},{"$f":"'Data Input - BAT'!AN50","v":0},{"$f":"'Data Input - BAT'!AO50","v":0},{"$f":"'Data Input - BAT'!AP50","v":0},{"$f":"'Data Input - BAT'!AQ50","v":0},{"$f":"'Data Input - BAT'!AR50","v":0},{"$f":"'Data Input - BAT'!AS50","v":0},{"$f":"'Data Input - BAT'!AT50","v":0},{"$f":"'Data Input - BAT'!AU50","v":0},{"$f":"'Data Input - BAT'!AV50","v":0},{"$f":"'Data Input - BAT'!AW50","v":0},{"$f":"'Data Input - BAT'!AX50","v":0},{"$f":"'Data Input - BAT'!AY50","v":0},{"$f":"'Data Input - BAT'!AZ50","v":0},{"$f":"'Data Input - BAT'!BA50","v":0},{"$f":"'Data Input - BAT'!BB50","v":0},{"$f":"'Data Input - BAT'!BC50","v":0},{"$f":"'Data Input - BAT'!BD50","v":0},{"$f":"'Data Input - BAT'!BE50","v":0},{"$f":"'Data Input - BAT'!BF50","v":0},{"$f":"'Data Input - BAT'!BG50","v":0},{"$f":"'Data Input - BAT'!BH50","v":0},{"$f":"'Data Input - BAT'!BI50","v":0},{"$f":"'Data Input - BAT'!BJ50","v":0},{"$f":"'Data Input - BAT'!BK50","v":0},{"$f":"'Data Input - BAT'!BL50","v":0},{"$f":"'Data Input - BAT'!BM50","v":0},{"$f":"'Data Input - BAT'!BN50","v":0},{"$f":"'Data Input - BAT'!BO50","v":0},{"$f":"'Data Input - BAT'!BP50","v":0},{"$f":"'Data Input - BAT'!BQ50","v":0},{"$f":"'Data Input - BAT'!BR50","v":0},{"$f":"'Data Input - BAT'!BS50","v":0},{"$f":"'Data Input - BAT'!BT50","v":0},{"$f":"'Data Input - BAT'!BU50","v":0},{"$f":"'Data Input - BAT'!BV50","v":0},{"$f":"'Data Input - BAT'!BW50","v":0},{"$f":"'Data Input - BAT'!BX50","v":0},{"$f":"'Data Input - BAT'!BY50","v":0},{"$f":"'Data Input - BAT'!BZ50","v":0},{"$f":"'Data Input - BAT'!CA50","v":0},{"$f":"'Data Input - BAT'!CB50","v":0},{"$f":"'Data Input - BAT'!CC50","v":0},{"$f":"'Data Input - BAT'!CD50","v":0},{"$f":"'Data Input - BAT'!CE50","v":0},{"$f":"'Data Input - BAT'!CF50","v":0},{"$f":"'Data Input - BAT'!CG50","v":0},{"$f":"'Data Input - BAT'!CH50","v":0},{"$f":"'Data Input - BAT'!CI50","v":0},{"$f":"'Data Input - BAT'!CJ50","v":0},{"$f":"'Data Input - BAT'!CK50","v":0},{"$f":"'Data Input - BAT'!CL50","v":0},{"$f":"'Data Input - BAT'!CM50","v":0},{"$f":"'Data Input - BAT'!CN50","v":0},{"$f":"'Data Input - BAT'!CO50","v":0},{"$f":"'Data Input - BAT'!CP50","v":0},{"$f":"'Data Input - BAT'!CQ50","v":0},{"$f":"'Data Input - BAT'!CR50","v":0},{"$f":"'Data Input - BAT'!CS50","v":0},{"$f":"'Data Input - BAT'!CT50","v":0},{"$f":"'Data Input - BAT'!CU50","v":0},{"$f":"'Data Input - BAT'!CV50","v":0},{"$f":"'Data Input - BAT'!CW50","v":0},{"$f":"'Data Input - BAT'!CX50","v":0},{"$f":"'Data Input - BAT'!CY50","v":0},{"$f":"'Data Input - BAT'!CZ50","v":0},{"$f":"'Data Input - BAT'!DA50","v":0},{"$f":"'Data Input - BAT'!DB50","v":0},{"$f":"'Data Input - BAT'!DC50","v":0}]
[null,"Discounted total opex","£000's",{"$f":"D39*D$7","v":250},{"$f":"E39*E$7","v":434.78260869565219},420.07981516488138,405.87421755061007,392.14900246435758,378.88792508633583,366.07528993848877,353.69593230771864,0,0,0,0,0,0,0,0,0,0,0,0,0,0,0,0,0,0,0,0,0,0,0,0,0,0,0,0,0,0,0,0,0,0,0,0,0,0,0,0,0,0,0,0,0,0,0,0,0,0,0,0,0,0,0,0,0,{"$f":"BQ39*BQ$7","v":0},0,0,0,0,0,0,0,0,0,0,0,0,0,0,0,0,0,0,0,0,0,0,0,0,0,0,0,0,0,0,0,0,0,0]
[]
[null,"Waste output (annual amount generated"]
[null,"Total","£000's",{"$f":"'Data Input - BAT'!H79","v":0},{"$f":"'Data Input - BAT'!I79","v":0},{"$f":"'Data Input - BAT'!J79","v":0},{"$f":"'Data Input - BAT'!K79","v":0},{"$f":"'Data Input - BAT'!L79","v":0},{"$f":"'Data Input - BAT'!M79","v":0},{"$f":"'Data Input - BAT'!N79","v":0},{"$f":"'Data Input - BAT'!O79","v":0},{"$f":"'Data Input - BAT'!P79","v":0},{"$f":"'Data Input - BAT'!Q79","v":0},{"$f":"'Data Input - BAT'!R79","v":0},{"$f":"'Data Input - BAT'!S79","v":0},{"$f":"'Data Input - BAT'!T79","v":0},{"$f":"'Data Input - BAT'!U79","v":0},{"$f":"'Data Input - BAT'!V79","v":0},{"$f":"'Data Input - BAT'!W79","v":0},{"$f":"'Data Input - BAT'!X79","v":0},{"$f":"'Data Input - BAT'!Y79","v":0},{"$f":"'Data Input - BAT'!Z79","v":0},{"$f":"'Data Input - BAT'!AA79","v":0},{"$f":"'Data Input - BAT'!AB79","v":0},{"$f":"'Data Input - BAT'!AC79","v":0},{"$f":"'Data Input - BAT'!AD79","v":0},{"$f":"'Data Input - BAT'!AE79","v":0},{"$f":"'Data Input - BAT'!AF79","v":0},{"$f":"'Data Input - BAT'!AG79","v":0},{"$f":"'Data Input - BAT'!AH79","v":0},{"$f":"'Data Input - BAT'!AI79","v":0},{"$f":"'Data Input - BAT'!AJ79","v":0},{"$f":"'Data Input - BAT'!AK79","v":0},{"$f":"'Data Input - BAT'!AL79","v":0},{"$f":"'Data Input - BAT'!AM79","v":0},{"$f":"'Data Input - BAT'!AN79","v":0},{"$f":"'Data Input - BAT'!AO79","v":0},{"$f":"'Data Input - BAT'!AP79","v":0},{"$f":"'Data Input - BAT'!AQ79","v":0},{"$f":"'Data Input - BAT'!AR79","v":0},{"$f":"'Data Input - BAT'!AS79","v":0},{"$f":"'Data Input - BAT'!AT79","v":0},{"$f":"'Data Input - BAT'!AU79","v":0},{"$f":"'Data Input - BAT'!AV79","v":0},{"$f":"'Data Input - BAT'!AW79","v":0},{"$f":"'Data Input - BAT'!AX79","v":0},{"$f":"'Data Input - BAT'!AY79","v":0},{"$f":"'Data Input - BAT'!AZ79","v":0},{"$f":"'Data Input - BAT'!BA79","v":0},{"$f":"'Data Input - BAT'!BB79","v":0},{"$f":"'Data Input - BAT'!BC79","v":0},{"$f":"'Data Input - BAT'!BD79","v":0},{"$f":"'Data Input - BAT'!BE79","v":0},{"$f":"'Data Input - BAT'!BF79","v":0},{"$f":"'Data Input - BAT'!BG79","v":0},{"$f":"'Data Input - BAT'!BH79","v":0},{"$f":"'Data Input - BAT'!BI79","v":0},{"$f":"'Data Input - BAT'!BJ79","v":0},{"$f":"'Data Input - BAT'!BK79","v":0},{"$f":"'Data Input - BAT'!BL79","v":0},{"$f":"'Data Input - BAT'!BM79","v":0},{"$f":"'Data Input - BAT'!BN79","v":0},{"$f":"'Data Input - BAT'!BO79","v":0},{"$f":"'Data Input - BAT'!BP79","v":0},{"$f":"'Data Input - BAT'!BQ79","v":0},{"$f":"'Data Input - BAT'!BR79","v":0},{"$f":"'Data Input - BAT'!BS79","v":0},{"$f":"'Data Input - BAT'!BT79","v":0},{"$f":"'Data Input - BAT'!BU79","v":0},{"$f":"'Data Input - BAT'!BV79","v":0},{"$f":"'Data Input - BAT'!BW79","v":0},{"$f":"'Data Input - BAT'!BX79","v":0},{"$f":"'Data Input - BAT'!BY79","v":0},{"$f":"'Data Input - BAT'!BZ79","v":0},{"$f":"'Data Input - BAT'!CA79","v":0},{"$f":"'Data Input - BAT'!CB79","v":0},{"$f":"'Data Input - BAT'!CC79","v":0},{"$f":"'Data Input - BAT'!CD79","v":0},{"$f":"'Data Input - BAT'!CE79","v":0},{"$f":"'Data Input - BAT'!CF79","v":0},{"$f":"'Data Input - BAT'!CG79","v":0},{"$f":"'Data Input - BAT'!CH79","v":0},{"$f":"'Data Input - BAT'!CI79","v":0},{"$f":"'Data Input - BAT'!CJ79","v":0},{"$f":"'Data Input - BAT'!CK79","v":0},{"$f":"'Data Input - BAT'!CL79","v":0},{"$f":"'Data Input - BAT'!CM79","v":0},{"$f":"'Data Input - BAT'!CN79","v":0},{"$f":"'Data Input - BAT'!CO79","v":0},{"$f":"'Data Input - BAT'!CP79","v":0},{"$f":"'Data Input - BAT'!CQ79","v":0},{"$f":"'Data Input - BAT'!CR79","v":0},{"$f":"'Data Input - BAT'!CS79","v":0},{"$f":"'Data Input - BAT'!CT79","v":0},{"$f":"'Data Input - BAT'!CU79","v":0},{"$f":"'Data Input - BAT'!CV79","v":0},{"$f":"'Data Input - BAT'!CW79","v":0},{"$f":"'Data Input - BAT'!CX79","v":0},{"$f":"'Data Input - BAT'!CY79","v":0},{"$f":"'Data Input - BAT'!CZ79","v":0},{"$f":"'Data Input - BAT'!DA79","v":0},{"$f":"'Data Input - BAT'!DB79","v":0},{"$f":"'Data Input - BAT'!DC79","v":0}]
[null,"Discounted total waste cost","£000's",{"$f":"D43*D$7","v":0},{"$f":"E43*E$7","v":0},0,0,0,0,0,0,0,0,0,0,0,0,0,0,0,0,0,0,0,0,0,0,0,0,0,0,0,0,0,0,0,0,0,0,0,0,0,0,0,0,0,0,0,0,0,0,0,0,0,0,0,0,0,0,0,0,0,0,0,0,0,0,0,{"$f":"BQ43*BQ$7","v":0},0,0,0,0,0,0,0,0,0,0,0,0,0,0,0,0,0,0,0,0,0,0,0,0,0,0,0,0,0,0,0,0,0,0]
[]
[null,"Energy Consumption"]
[null,"Total","£000's",{"$f":"'Data Input - BAT'!H100","v":1485.700561305305},{"$f":"'Data Input - BAT'!I100","v":1541.531148540691},{"$f":"'Data Input - BAT'!J100","v":1610.4918821663023},{"$f":"'Data Input - BAT'!K100","v":1657.4780678945503},{"$f":"'Data Input - BAT'!L100","v":1704.5754416158256},{"$f":"'Data Input - BAT'!M100","v":1776.9735001686643},{"$f":"'Data Input - BAT'!N100","v":1837.2202118852731},{"$f":"'Data Input - BAT'!O100","v":1870.4852286646578},{"$f":"'Data Input - BAT'!P100","v":0},{"$f":"'Data Input - BAT'!Q100","v":0},{"$f":"'Data Input - BAT'!R100","v":0},{"$f":"'Data Input - BAT'!S100","v":0},{"$f":"'Data Input - BAT'!T100","v":0},{"$f":"'Data Input - BAT'!U100","v":0},{"$f":"'Data Input - BAT'!V100","v":0},{"$f":"'Data Input - BAT'!W100","v":0},{"$f":"'Data Input - BAT'!X100","v":0},{"$f":"'Data Input - BAT'!Y100","v":0},{"$f":"'Data Input - BAT'!Z100","v":0},{"$f":"'Data Input - BAT'!AA100","v":0},{"$f":"'Data Input - BAT'!AB100","v":0},{"$f":"'Data Input - BAT'!AC100","v":0},{"$f":"'Data Input - BAT'!AD100","v":0},{"$f":"'Data Input - BAT'!AE100","v":0},{"$f":"'Data Input - BAT'!AF100","v":0},{"$f":"'Data Input - BAT'!AG100","v":0},{"$f":"'Data Input - BAT'!AH100","v":0},{"$f":"'Data Input - BAT'!AI100","v":0},{"$f":"'Data Input - BAT'!AJ100","v":0},{"$f":"'Data Input - BAT'!AK100","v":0},{"$f":"'Data Input - BAT'!AL100","v":0},{"$f":"'Data Input - BAT'!AM100","v":0},{"$f":"'Data Input - BAT'!AN100","v":0},{"$f":"'Data Input - BAT'!AO100","v":0},{"$f":"'Data Input - BAT'!AP100","v":0},{"$f":"'Data Input - BAT'!AQ100","v":0},{"$f":"'Data Input - BAT'!AR100","v":0},{"$f":"'Data Input - BAT'!AS100","v":0},{"$f":"'Data Input - BAT'!AT100","v":0},{"$f":"'Data Input - BAT'!AU100","v":0},{"$f":"'Data Input - BAT'!AV100","v":0},{"$f":"'Data Input - BAT'!AW100","v":0},{"$f":"'Data Input - BAT'!AX100","v":0},{"$f":"'Data Input - BAT'!AY100","v":0},{"$f":"'Data Input - BAT'!AZ100","v":0},{"$f":"'Data Input - BAT'!BA100","v":0},{"$f":"'Data Input - BAT'!BB100","v":0},{"$f":"'Data Input - BAT'!BC100","v":0},{"$f":"'Data Input - BAT'!BD100","v":0},{"$f":"'Data Input - BAT'!BE100","v":0},{"$f":"'Data Input - BAT'!BF100","v":0},{"$f":"'Data Input - BAT'!BG100","v":0},{"$f":"'Data Input - BAT'!BH100","v":0},{"$f":"'Data Input - BAT'!BI100","v":0},{"$f":"'Data Input - BAT'!BJ100","v":0},{"$f":"'Data Input - BAT'!BK100","v":0},{"$f":"'Data Input - BAT'!BL100","v":0},{"$f":"'Data Input - BAT'!BM100","v":0},{"$f":"'Data Input - BAT'!BN100","v":0},{"$f":"'Data Input - BAT'!BO100","v":0},{"$f":"'Data Input - BAT'!BP100","v":0},{"$f":"'Data Input - BAT'!BQ100","v":0},{"$f":"'Data Input - BAT'!BR100","v":0},{"$f":"'Data Input - BAT'!BS100","v":0},{"$f":"'Data Input - BAT'!BT100","v":0},{"$f":"'Data Input - BAT'!BU100","v":0},{"$f":"'Data Input - BAT'!BV100","v":0},{"$f":"'Data Input - BAT'!BW100","v":0},{"$f":"'Data Input - BAT'!BX100","v":0},{"$f":"'Data Input - BAT'!BY100","v":0},{"$f":"'Data Input - BAT'!BZ100","v":0},{"$f":"'Data Input - BAT'!CA100","v":0},{"$f":"'Data Input - BAT'!CB100","v":0},{"$f":"'Data Input - BAT'!CC100","v":0},{"$f":"'Data Input - BAT'!CD100","v":0},{"$f":"'Data Input - BAT'!CE100","v":0},{"$f":"'Data Input - BAT'!CF100","v":0},{"$f":"'Data Input - BAT'!CG100","v":0},{"$f":"'Data Input - BAT'!CH100","v":0},{"$f":"'Data Input - BAT'!CI100","v":0},{"$f":"'Data Input - BAT'!CJ100","v":0},{"$f":"'Data Input - BAT'!CK100","v":0},{"$f":"'Data Input - BAT'!CL100","v":0},{"$f":"'Data Input - BAT'!CM100","v":0},{"$f":"'Data Input - BAT'!CN100","v":0},{"$f":"'Data Input - BAT'!CO100","v":0},{"$f":"'Data Input - BAT'!CP100","v":0},{"$f":"'Data Input - BAT'!CQ100","v":0},{"$f":"'Data Input - BAT'!CR100","v":0},{"$f":"'Data Input - BAT'!CS100","v":0},{"$f":"'Data Input - BAT'!CT100","v":0},{"$f":"'Data Input - BAT'!CU100","v":0},{"$f":"'Data Input - BAT'!CV100","v":0},{"$f":"'Data Input - BAT'!CW100","v":0},{"$f":"'Data Input - BAT'!CX100","v":0},{"$f":"'Data Input - BAT'!CY100","v":0},{"$f":"'Data Input - BAT'!CZ100","v":0},{"$f":"'Data Input - BAT'!DA100","v":0},{"$f":"'Data Input - BAT'!DB100","v":0},{"$f":"'Data Input - BAT'!DC100","v":0}]
[null,"Discounted energy consumption","£000's",{"$f":"D47*D$7","v":1485.700561305305},{"$f":"E47*E$7","v":1489.4020758847257},1503.4114048554716,1494.9502531422168,1485.4390201219728,1496.1640053606864,1494.5798261038958,1470.1844818230277,0,0,0,0,0,0,0,0,0,0,0,0,0,0,0,0,0,0,0,0,0,0,0,0,0,0,0,0,0,0,0,0,0,0,0,0,0,0,0,0,0,0,0,0,0,0,0,0,0,0,0,0,0,0,0,0,0,{"$f":"BQ47*BQ$7","v":0},0,0,0,0,0,0,0,0,0,0,0,0,0,0,0,0,0,0,0,0,0,0,0,0,0,0,0,0,0,0,0,0,0,0]
[null,"Excluding those for which DECC prices used","£000's",{"$f":"('Data Input - BAT'!H100-SUM('Data Input - BAT'!H92:H97))*Calc_BAT!D$7","v":0},{"$f":"('Data Input - BAT'!I100-SUM('Data Input - BAT'!I92:I97))*Calc_BAT!E$7","v":0},{"$f":"('Data Input - BAT'!J100-SUM('Data Input - BAT'!J92:J97))*Calc_BAT!F$7","v":0},{"$f":"('Data Input - BAT'!K100-SUM('Data Input - BAT'!K92:K97))*Calc_BAT!G$7","v":0},{"$f":"('Data Input - BAT'!L100-SUM('Data Input - BAT'!L92:L97))*Calc_BAT!H$7","v":0},{"$f":"('Data Input - BAT'!M100-SUM('Data Input - BAT'!M92:M97))*Calc_BAT!I$7","v":0},{"$f":"('Data Input - BAT'!N100-SUM('Data Input - BAT'!N92:N97))*Calc_BAT!J$7","v":0},{"$f":"('Data Input - BAT'!O100-SUM('Data Input - BAT'!O92:O97))*Calc_BAT!K$7","v":0},{"$f":"('Data Input - BAT'!P100-SUM('Data Input - BAT'!P92:P97))*Calc_BAT!L$7","v":0},{"$f":"('Data Input - BAT'!Q100-SUM('Data Input - BAT'!Q92:Q97))*Calc_BAT!M$7","v":0},{"$f":"('Data Input - BAT'!R100-SUM('Data Input - BAT'!R92:R97))*Calc_BAT!N$7","v":0},{"$f":"('Data Input - BAT'!S100-SUM('Data Input - BAT'!S92:S97))*Calc_BAT!O$7","v":0},{"$f":"('Data Input - BAT'!T100-SUM('Data Input - BAT'!T92:T97))*Calc_BAT!P$7","v":0},{"$f":"('Data Input - BAT'!U100-SUM('Data Input - BAT'!U92:U97))*Calc_BAT!Q$7","v":0},{"$f":"('Data Input - BAT'!V100-SUM('Data Input - BAT'!V92:V97))*Calc_BAT!R$7","v":0},{"$f":"('Data Input - BAT'!W100-SUM('Data Input - BAT'!W92:W97))*Calc_BAT!S$7","v":0},{"$f":"('Data Input - BAT'!X100-SUM('Data Input - BAT'!X92:X97))*Calc_BAT!T$7","v":0},{"$f":"('Data Input - BAT'!Y100-SUM('Data Input - BAT'!Y92:Y97))*Calc_BAT!U$7","v":0},{"$f":"('Data Input - BAT'!Z100-SUM('Data Input - BAT'!Z92:Z97))*Calc_BAT!V$7","v":0},{"$f":"('Data Input - BAT'!AA100-SUM('Data Input - BAT'!AA92:AA97))*Calc_BAT!W$7","v":0},{"$f":"('Data Input - BAT'!AB100-SUM('Data Input - BAT'!AB92:AB97))*Calc_BAT!X$7","v":0},{"$f":"('Data Input - BAT'!AC100-SUM('Data Input - BAT'!AC92:AC97))*Calc_BAT!Y$7","v":0},{"$f":"('Data Input - BAT'!AD100-SUM('Data Input - BAT'!AD92:AD97))*Calc_BAT!Z$7","v":0},{"$f":"('Data Input - BAT'!AE100-SUM('Data Input - BAT'!AE92:AE97))*Calc_BAT!AA$7","v":0},{"$f":"('Data Input - BAT'!AF100-SUM('Data Input - BAT'!AF92:AF97))*Calc_BAT!AB$7","v":0},{"$f":"('Data Input - BAT'!AG100-SUM('Data Input - BAT'!AG92:AG97))*Calc_BAT!AC$7","v":0},{"$f":"('Data Input - BAT'!AH100-SUM('Data Input - BAT'!AH92:AH97))*Calc_BAT!AD$7","v":0},{"$f":"('Data Input - BAT'!AI100-SUM('Data Input - BAT'!AI92:AI97))*Calc_BAT!AE$7","v":0},{"$f":"('Data Input - BAT'!AJ100-SUM('Data Input - BAT'!AJ92:AJ97))*Calc_BAT!AF$7","v":0},{"$f":"('Data Input - BAT'!AK100-SUM('Data Input - BAT'!AK92:AK97))*Calc_BAT!AG$7","v":0},{"$f":"('Data Input - BAT'!AL100-SUM('Data Input - BAT'!AL92:AL97))*Calc_BAT!AH$7","v":0},{"$f":"('Data Input - BAT'!AM100-SUM('Data Input - BAT'!AM92:AM97))*Calc_BAT!AI$7","v":0},{"$f":"('Data Input - BAT'!AN100-SUM('Data Input - BAT'!AN92:AN97))*Calc_BAT!AJ$7","v":0},{"$f":"('Data Input - BAT'!AO100-SUM('Data Input - BAT'!AO92:AO97))*Calc_BAT!AK$7","v":0},{"$f":"('Data Input - BAT'!AP100-SUM('Data Input - BAT'!AP92:AP97))*Calc_BAT!AL$7","v":0},{"$f":"('Data Input - BAT'!AQ100-SUM('Data Input - BAT'!AQ92:AQ97))*Calc_BAT!AM$7","v":0},{"$f":"('Data Input - BAT'!AR100-SUM('Data Input - BAT'!AR92:AR97))*Calc_BAT!AN$7","v":0},{"$f":"('Data Input - BAT'!AS100-SUM('Data Input - BAT'!AS92:AS97))*Calc_BAT!AO$7","v":0},{"$f":"('Data Input - BAT'!AT100-SUM('Data Input - BAT'!AT92:AT97))*Calc_BAT!AP$7","v":0},{"$f":"('Data Input - BAT'!AU100-SUM('Data Input - BAT'!AU92:AU97))*Calc_BAT!AQ$7","v":0},{"$f":"('Data Input - BAT'!AV100-SUM('Data Input - BAT'!AV92:AV97))*Calc_BAT!AR$7","v":0},{"$f":"('Data Input - BAT'!AW100-SUM('Data Input - BAT'!AW92:AW97))*Calc_BAT!AS$7","v":0},{"$f":"('Data Input - BAT'!AX100-SUM('Data Input - BAT'!AX92:AX97))*Calc_BAT!AT$7","v":0},{"$f":"('Data Input - BAT'!AY100-SUM('Data Input - BAT'!AY92:AY97))*Calc_BAT!AU$7","v":0},{"$f":"('Data Input - BAT'!AZ100-SUM('Data Input - BAT'!AZ92:AZ97))*Calc_BAT!AV$7","v":0},{"$f":"('Data Input - BAT'!BA100-SUM('Data Input - BAT'!BA92:BA97))*Calc_BAT!AW$7","v":0},{"$f":"('Data Input - BAT'!BB100-SUM('Data Input - BAT'!BB92:BB97))*Calc_BAT!AX$7","v":0},{"$f":"('Data Input - BAT'!BC100-SUM('Data Input - BAT'!BC92:BC97))*Calc_BAT!AY$7","v":0},{"$f":"('Data Input - BAT'!BD100-SUM('Data Input - BAT'!BD92:BD97))*Calc_BAT!AZ$7","v":0},{"$f":"('Data Input - BAT'!BE100-SUM('Data Input - BAT'!BE92:BE97))*Calc_BAT!BA$7","v":0},{"$f":"('Data Input - BAT'!BF100-SUM('Data Input - BAT'!BF92:BF97))*Calc_BAT!BB$7","v":0},{"$f":"('Data Input - BAT'!BG100-SUM('Data Input - BAT'!BG92:BG97))*Calc_BAT!BC$7","v":0},{"$f":"('Data Input - BAT'!BH100-SUM('Data Input - BAT'!BH92:BH97))*Calc_BAT!BD$7","v":0},{"$f":"('Data Input - BAT'!BI100-SUM('Data Input - BAT'!BI92:BI97))*Calc_BAT!BE$7","v":0},{"$f":"('Data Input - BAT'!BJ100-SUM('Data Input - BAT'!BJ92:BJ97))*Calc_BAT!BF$7","v":0},{"$f":"('Data Input - BAT'!BK100-SUM('Data Input - BAT'!BK92:BK97))*Calc_BAT!BG$7","v":0},{"$f":"('Data Input - BAT'!BL100-SUM('Data Input - BAT'!BL92:BL97))*Calc_BAT!BH$7","v":0},{"$f":"('Data Input - BAT'!BM100-SUM('Data Input - BAT'!BM92:BM97))*Calc_BAT!BI$7","v":0},{"$f":"('Data Input - BAT'!BN100-SUM('Data Input - BAT'!BN92:BN97))*Calc_BAT!BJ$7","v":0},{"$f":"('Data Input - BAT'!BO100-SUM('Data Input - BAT'!BO92:BO97))*Calc_BAT!BK$7","v":0},{"$f":"('Data Input - BAT'!BP100-SUM('Data Input - BAT'!BP92:BP97))*Calc_BAT!BL$7","v":0},{"$f":"('Data Input - BAT'!BQ100-SUM('Data Input - BAT'!BQ92:BQ97))*Calc_BAT!BM$7","v":0},{"$f":"('Data Input - BAT'!BR100-SUM('Data Input - BAT'!BR92:BR97))*Calc_BAT!BN$7","v":0},{"$f":"('Data Input - BAT'!BS100-SUM('Data Input - BAT'!BS92:BS97))*Calc_BAT!BO$7","v":0},{"$f":"('Data Input - BAT'!BT100-SUM('Data Input - BAT'!BT92:BT97))*Calc_BAT!BP$7","v":0},{"$f":"('Data Input - BAT'!BU100-SUM('Data Input - BAT'!BU92:BU97))*Calc_BAT!BQ$7","v":0},{"$f":"('Data Input - BAT'!BV100-SUM('Data Input - BAT'!BV92:BV97))*Calc_BAT!BR$7","v":0},{"$f":"('Data Input - BAT'!BW100-SUM('Data Input - BAT'!BW92:BW97))*Calc_BAT!BS$7","v":0},{"$f":"('Data Input - BAT'!BX100-SUM('Data Input - BAT'!BX92:BX97))*Calc_BAT!BT$7","v":0},{"$f":"('Data Input - BAT'!BY100-SUM('Data Input - BAT'!BY92:BY97))*Calc_BAT!BU$7","v":0},{"$f":"('Data Input - BAT'!BZ100-SUM('Data Input - BAT'!BZ92:BZ97))*Calc_BAT!BV$7","v":0},{"$f":"('Data Input - BAT'!CA100-SUM('Data Input - BAT'!CA92:CA97))*Calc_BAT!BW$7","v":0},{"$f":"('Data Input - BAT'!CB100-SUM('Data Input - BAT'!CB92:CB97))*Calc_BAT!BX$7","v":0},{"$f":"('Data Input - BAT'!CC100-SUM('Data Input - BAT'!CC92:CC97))*Calc_BAT!BY$7","v":0},{"$f":"('Data Input - BAT'!CD100-SUM('Data Input - BAT'!CD92:CD97))*Calc_BAT!BZ$7","v":0},{"$f":"('Data Input - BAT'!CE100-SUM('Data Input - BAT'!CE92:CE97))*Calc_BAT!CA$7","v":0},{"$f":"('Data Input - BAT'!CF100-SUM('Data Input - BAT'!CF92:CF97))*Calc_BAT!CB$7","v":0},{"$f":"('Data Input - BAT'!CG100-SUM('Data Input - BAT'!CG92:CG97))*Calc_BAT!CC$7","v":0},{"$f":"('Data Input - BAT'!CH100-SUM('Data Input - BAT'!CH92:CH97))*Calc_BAT!CD$7","v":0},{"$f":"('Data Input - BAT'!CI100-SUM('Data Input - BAT'!CI92:CI97))*Calc_BAT!CE$7","v":0},{"$f":"('Data Input - BAT'!CJ100-SUM('Data Input - BAT'!CJ92:CJ97))*Calc_BAT!CF$7","v":0},{"$f":"('Data Input - BAT'!CK100-SUM('Data Input - BAT'!CK92:CK97))*Calc_BAT!CG$7","v":0},{"$f":"('Data Input - BAT'!CL100-SUM('Data Input - BAT'!CL92:CL97))*Calc_BAT!CH$7","v":0},{"$f":"('Data Input - BAT'!CM100-SUM('Data Input - BAT'!CM92:CM97))*Calc_BAT!CI$7","v":0},{"$f":"('Data Input - BAT'!CN100-SUM('Data Input - BAT'!CN92:CN97))*Calc_BAT!CJ$7","v":0},{"$f":"('Data Input - BAT'!CO100-SUM('Data Input - BAT'!CO92:CO97))*Calc_BAT!CK$7","v":0},{"$f":"('Data Input - BAT'!CP100-SUM('Data Input - BAT'!CP92:CP97))*Calc_BAT!CL$7","v":0},{"$f":"('Data Input - BAT'!CQ100-SUM('Data Input - BAT'!CQ92:CQ97))*Calc_BAT!CM$7","v":0},{"$f":"('Data Input - BAT'!CR100-SUM('Data Input - BAT'!CR92:CR97))*Calc_BAT!CN$7","v":0},{"$f":"('Data Input - BAT'!CS100-SUM('Data Input - BAT'!CS92:CS97))*Calc_BAT!CO$7","v":0},{"$f":"('Data Input - BAT'!CT100-SUM('Data Input - BAT'!CT92:CT97))*Calc_BAT!CP$7","v":0},{"$f":"('Data Input - BAT'!CU100-SUM('Data Input - BAT'!CU92:CU97))*Calc_BAT!CQ$7","v":0},{"$f":"('Data Input - BAT'!CV100-SUM('Data Input - BAT'!CV92:CV97))*Calc_BAT!CR$7","v":0},{"$f":"('Data Input - BAT'!CW100-SUM('Data Input - BAT'!CW92:CW97))*Calc_BAT!CS$7","v":0},{"$f":"('Data Input - BAT'!CX100-SUM('Data Input - BAT'!CX92:CX97))*Calc_BAT!CT$7","v":0},{"$f":"('Data Input - BAT'!CY100-SUM('Data Input - BAT'!CY92:CY97))*Calc_BAT!CU$7","v":0},{"$f":"('Data Input - BAT'!CZ100-SUM('Data Input - BAT'!CZ92:CZ97))*Calc_BAT!CV$7","v":0},{"$f":"('Data Input - BAT'!DA100-SUM('Data Input - BAT'!DA92:DA97))*Calc_BAT!CW$7","v":0},{"$f":"('Data Input - BAT'!DB100-SUM('Data Input - BAT'!DB92:DB97))*Calc_BAT!CX$7","v":0},{"$f":"('Data Input - BAT'!DC100-SUM('Data Input - BAT'!DC92:DC97))*Calc_BAT!CY$7","v":0}]
[]
[null,"Environmental impacts"]
[null,"Air pollutant emissions"]
[null,{"$f":"'Data Input - BAT'!D105","v":"Sox 2019"},"Tonnes pa",{"$f":"'Data Input - BAT'!H105","v":1},{"$f":"'Data Input - BAT'!I105","v":0.26600000000000001},{"$f":"'Data Input - BAT'!J105","v":0.26600000000000001},{"$f":"'Data Input - BAT'!K105","v":0.26600000000000001},{"$f":"'Data Input - BAT'!L105","v":0.26600000000000001},{"$f":"'Data Input - BAT'!M105","v":0.26600000000000001},{"$f":"'Data Input - BAT'!N105","v":0.26600000000000001},{"$f":"'Data Input - BAT'!O105","v":0.26600000000000001},{"$f":"'Data Input - BAT'!P105","v":0},{"$f":"'Data Input - BAT'!Q105","v":0},{"$f":"'Data Input - BAT'!R105","v":0},{"$f":"'Data Input - BAT'!S105","v":0},{"$f":"'Data Input - BAT'!T105","v":0},{"$f":"'Data Input - BAT'!U105","v":0},{"$f":"'Data Input - BAT'!V105","v":0},{"$f":"'Data Input - BAT'!W105","v":0},{"$f":"'Data Input - BAT'!X105","v":0},{"$f":"'Data Input - BAT'!Y105","v":0},{"$f":"'Data Input - BAT'!Z105","v":0},{"$f":"'Data Input - BAT'!AA105","v":0},{"$f":"'Data Input - BAT'!AB105","v":0},{"$f":"'Data Input - BAT'!AC105","v":0},{"$f":"'Data Input - BAT'!AD105","v":0},{"$f":"'Data Input - BAT'!AE105","v":0},{"$f":"'Data Input - BAT'!AF105","v":0},{"$f":"'Data Input - BAT'!AG105","v":0},{"$f":"'Data Input - BAT'!AH105","v":0},{"$f":"'Data Input - BAT'!AI105","v":0},{"$f":"'Data Input - BAT'!AJ105","v":0},{"$f":"'Data Input - BAT'!AK105","v":0},{"$f":"'Data Input - BAT'!AL105","v":0},{"$f":"'Data Input - BAT'!AM105","v":0},{"$f":"'Data Input - BAT'!AN105","v":0},{"$f":"'Data Input - BAT'!AO105","v":0},{"$f":"'Data Input - BAT'!AP105","v":0},{"$f":"'Data Input - BAT'!AQ105","v":0},{"$f":"'Data Input - BAT'!AR105","v":0},{"$f":"'Data Input - BAT'!AS105","v":0},{"$f":"'Data Input - BAT'!AT105","v":0},{"$f":"'Data Input - BAT'!AU105","v":0},{"$f":"'Data Input - BAT'!AV105","v":0},{"$f":"'Data Input - BAT'!AW105","v":0},{"$f":"'Data Input - BAT'!AX105","v":0},{"$f":"'Data Input - BAT'!AY105","v":0},{"$f":"'Data Input - BAT'!AZ105","v":0},{"$f":"'Data Input - BAT'!BA105","v":0},{"$f":"'Data Input - BAT'!BB105","v":0},{"$f":"'Data Input - BAT'!BC105","v":0},{"$f":"'Data Input - BAT'!BD105","v":0},{"$f":"'Data Input - BAT'!BE105","v":0},{"$f":"'Data Input - BAT'!BF105","v":0},{"$f":"'Data Input - BAT'!BG105","v":0},{"$f":"'Data Input - BAT'!BH105","v":0},{"$f":"'Data Input - BAT'!BI105","v":0},{"$f":"'Data Input - BAT'!BJ105","v":0},{"$f":"'Data Input - BAT'!BK105","v":0},{"$f":"'Data Input - BAT'!BL105","v":0},{"$f":"'Data Input - BAT'!BM105","v":0},{"$f":"'Data Input - BAT'!BN105","v":0},{"$f":"'Data Input - BAT'!BO105","v":0},{"$f":"'Data Input - BAT'!BP105","v":0},{"$f":"'Data Input - BAT'!BQ105","v":0},{"$f":"'Data Input - BAT'!BR105","v":0},{"$f":"'Data Input - BAT'!BS105","v":0},{"$f":"'Data Input - BAT'!BT105","v":0},{"$f":"'Data Input - BAT'!BU105","v":0},{"$f":"'Data Input - BAT'!BV105","v":0},{"$f":"'Data Input - BAT'!BW105","v":0},{"$f":"'Data Input - BAT'!BX105","v":0},{"$f":"'Data Input - BAT'!BY105","v":0},{"$f":"'Data Input - BAT'!BZ105","v":0},{"$f":"'Data Input - BAT'!CA105","v":0},{"$f":"'Data Input - BAT'!CB105","v":0},{"$f":"'Data Input - BAT'!CC105","v":0},{"$f":"'Data Input - BAT'!CD105","v":0},{"$f":"'Data Input - BAT'!CE105","v":0},{"$f":"'Data Input - BAT'!CF105","v":0},{"$f":"'Data Input - BAT'!CG105","v":0},{"$f":"'Data Input - BAT'!CH105","v":0},{"$f":"'Data Input - BAT'!CI105","v":0},{"$f":"'Data Input - BAT'!CJ105","v":0},{"$f":"'Data Input - BAT'!CK105","v":0},{"$f":"'Data Input - BAT'!CL105","v":0},{"$f":"'Data Input - BAT'!CM105","v":0},{"$f":"'Data Input - BAT'!CN105","v":0},{"$f":"'Data Input - BAT'!CO105","v":0},{"$f":"'Data Input - BAT'!CP105","v":0},{"$f":"'Data Input - BAT'!CQ105","v":0},{"$f":"'Data Input - BAT'!CR105","v":0},{"$f":"'Data Input - BAT'!CS105","v":0},{"$f":"'Data Input - BAT'!CT105","v":0},{"$f":"'Data Input - BAT'!CU105","v":0},{"$f":"'Data Input - BAT'!CV105","v":0},{"$f":"'Data Input - BAT'!CW105","v":0},{"$f":"'Data Input - BAT'!CX105","v":0},{"$f":"'Data Input - BAT'!CY105","v":0},{"$f":"'Data Input - BAT'!CZ105","v":0},{"$f":"'Data Input - BAT'!DA105","v":0},{"$f":"'Data Input - BAT'!DB105","v":0},{"$f":"'Data Input - BAT'!DC105","v":0}]
[null,{"$f":"'Data Input - BAT'!D106","v":0},"Tonnes pa",{"$f":"'Data Input - BAT'!H106","v":0},{"$f":"'Data Input - BAT'!I106","v":0},{"$f":"'Data Input - BAT'!J106","v":0},{"$f":"'Data Input - BAT'!K106","v":0},{"$f":"'Data Input - BAT'!L106","v":0},{"$f":"'Data Input - BAT'!M106","v":0},{"$f":"'Data Input - BAT'!N106","v":0},{"$f":"'Data Input - BAT'!O106","v":0},{"$f":"'Data Input - BAT'!P106","v":0},{"$f":"'Data Input - BAT'!Q106","v":0},{"$f":"'Data Input - BAT'!R106","v":0},{"$f":"'Data Input - BAT'!S106","v":0},{"$f":"'Data Input - BAT'!T106","v":0},{"$f":"'Data Input - BAT'!U106","v":0},{"$f":"'Data Input - BAT'!V106","v":0},{"$f":"'Data Input - BAT'!W106","v":0},{"$f":"'Data Input - BAT'!X106","v":0},{"$f":"'Data Input - BAT'!Y106","v":0},{"$f":"'Data Input - BAT'!Z106","v":0},{"$f":"'Data Input - BAT'!AA106","v":0},{"$f":"'Data Input - BAT'!AB106","v":0},{"$f":"'Data Input - BAT'!AC106","v":0},{"$f":"'Data Input - BAT'!AD106","v":0},{"$f":"'Data Input - BAT'!AE106","v":0},{"$f":"'Data Input - BAT'!AF106","v":0},{"$f":"'Data Input - BAT'!AG106","v":0},{"$f":"'Data Input - BAT'!AH106","v":0},{"$f":"'Data Input - BAT'!AI106","v":0},{"$f":"'Data Input - BAT'!AJ106","v":0},{"$f":"'Data Input - BAT'!AK106","v":0},{"$f":"'Data Input - BAT'!AL106","v":0},{"$f":"'Data Input - BAT'!AM106","v":0},{"$f":"'Data Input - BAT'!AN106","v":0},{"$f":"'Data Input - BAT'!AO106","v":0},{"$f":"'Data Input - BAT'!AP106","v":0},{"$f":"'Data Input - BAT'!AQ106","v":0},{"$f":"'Data Input - BAT'!AR106","v":0},{"$f":"'Data Input - BAT'!AS106","v":0},{"$f":"'Data Input - BAT'!AT106","v":0},{"$f":"'Data Input - BAT'!AU106","v":0},{"$f":"'Data Input - BAT'!AV106","v":0},{"$f":"'Data Input - BAT'!AW106","v":0},{"$f":"'Data Input - BAT'!AX106","v":0},{"$f":"'Data Input - BAT'!AY106","v":0},{"$f":"'Data Input - BAT'!AZ106","v":0},{"$f":"'Data Input - BAT'!BA106","v":0},{"$f":"'Data Input - BAT'!BB106","v":0},{"$f":"'Data Input - BAT'!BC106","v":0},{"$f":"'Data Input - BAT'!BD106","v":0},{"$f":"'Data Input - BAT'!BE106","v":0},{"$f":"'Data Input - BAT'!BF106","v":0},{"$f":"'Data Input - BAT'!BG106","v":0},{"$f":"'Data Input - BAT'!BH106","v":0},{"$f":"'Data Input - BAT'!BI106","v":0},{"$f":"'Data Input - BAT'!BJ106","v":0},{"$f":"'Data Input - BAT'!BK106","v":0},{"$f":"'Data Input - BAT'!BL106","v":0},{"$f":"'Data Input - BAT'!BM106","v":0},{"$f":"'Data Input - BAT'!BN106","v":0},{"$f":"'Data Input - BAT'!BO106","v":0},{"$f":"'Data Input - BAT'!BP106","v":0},{"$f":"'Data Input - BAT'!BQ106","v":0},{"$f":"'Data Input - BAT'!BR106","v":0},{"$f":"'Data Input - BAT'!BS106","v":0},{"$f":"'Data Input - BAT'!BT106","v":0},{"$f":"'Data Input - BAT'!BU106","v":0},{"$f":"'Data Input - BAT'!BV106","v":0},{"$f":"'Data Input - BAT'!BW106","v":0},{"$f":"'Data Input - BAT'!BX106","v":0},{"$f":"'Data Input - BAT'!BY106","v":0},{"$f":"'Data Input - BAT'!BZ106","v":0},{"$f":"'Data Input - BAT'!CA106","v":0},{"$f":"'Data Input - BAT'!CB106","v":0},{"$f":"'Data Input - BAT'!CC106","v":0},{"$f":"'Data Input - BAT'!CD106","v":0},{"$f":"'Data Input - BAT'!CE106","v":0},{"$f":"'Data Input - BAT'!CF106","v":0},{"$f":"'Data Input - BAT'!CG106","v":0},{"$f":"'Data Input - BAT'!CH106","v":0},{"$f":"'Data Input - BAT'!CI106","v":0},{"$f":"'Data Input - BAT'!CJ106","v":0},{"$f":"'Data Input - BAT'!CK106","v":0},{"$f":"'Data Input - BAT'!CL106","v":0},{"$f":"'Data Input - BAT'!CM106","v":0},{"$f":"'Data Input - BAT'!CN106","v":0},{"$f":"'Data Input - BAT'!CO106","v":0},{"$f":"'Data Input - BAT'!CP106","v":0},{"$f":"'Data Input - BAT'!CQ106","v":0},{"$f":"'Data Input - BAT'!CR106","v":0},{"$f":"'Data Input - BAT'!CS106","v":0},{"$f":"'Data Input - BAT'!CT106","v":0},{"$f":"'Data Input - BAT'!CU106","v":0},{"$f":"'Data Input - BAT'!CV106","v":0},{"$f":"'Data Input - BAT'!CW106","v":0},{"$f":"'Data Input - BAT'!CX106","v":0},{"$f":"'Data Input - BAT'!CY106","v":0},{"$f":"'Data Input - BAT'!CZ106","v":0},{"$f":"'Data Input - BAT'!DA106","v":0},{"$f":"'Data Input - BAT'!DB106","v":0},{"$f":"'Data Input - BAT'!DC106","v":0}]
[null,{"$f":"'Data Input - BAT'!D107","v":0},"Tonnes pa",{"$f":"'Data Input - BAT'!H107","v":0},{"$f":"'Data Input - BAT'!I107","v":0},{"$f":"'Data Input - BAT'!J107","v":0},{"$f":"'Data Input - BAT'!K107","v":0},{"$f":"'Data Input - BAT'!L107","v":0},{"$f":"'Data Input - BAT'!M107","v":0},{"$f":"'Data Input - BAT'!N107","v":0},{"$f":"'Data Input - BAT'!O107","v":0},{"$f":"'Data Input - BAT'!P107","v":0},{"$f":"'Data Input - BAT'!Q107","v":0},{"$f":"'Data Input - BAT'!R107","v":0},{"$f":"'Data Input - BAT'!S107","v":0},{"$f":"'Data Input - BAT'!T107","v":0},{"$f":"'Data Input - BAT'!U107","v":0},{"$f":"'Data Input - BAT'!V107","v":0},{"$f":"'Data Input - BAT'!W107","v":0},{"$f":"'Data Input - BAT'!X107","v":0},{"$f":"'Data Input - BAT'!Y107","v":0},{"$f":"'Data Input - BAT'!Z107","v":0},{"$f":"'Data Input - BAT'!AA107","v":0},{"$f":"'Data Input - BAT'!AB107","v":0},{"$f":"'Data Input - BAT'!AC107","v":0},{"$f":"'Data Input - BAT'!AD107","v":0},{"$f":"'Data Input - BAT'!AE107","v":0},{"$f":"'Data Input - BAT'!AF107","v":0},{"$f":"'Data Input - BAT'!AG107","v":0},{"$f":"'Data Input - BAT'!AH107","v":0},{"$f":"'Data Input - BAT'!AI107","v":0},{"$f":"'Data Input - BAT'!AJ107","v":0},{"$f":"'Data Input - BAT'!AK107","v":0},{"$f":"'Data Input - BAT'!AL107","v":0},{"$f":"'Data Input - BAT'!AM107","v":0},{"$f":"'Data Input - BAT'!AN107","v":0},{"$f":"'Data Input - BAT'!AO107","v":0},{"$f":"'Data Input - BAT'!AP107","v":0},{"$f":"'Data Input - BAT'!AQ107","v":0},{"$f":"'Data Input - BAT'!AR107","v":0},{"$f":"'Data Input - BAT'!AS107","v":0},{"$f":"'Data Input - BAT'!AT107","v":0},{"$f":"'Data Input - BAT'!AU107","v":0},{"$f":"'Data Input - BAT'!AV107","v":0},{"$f":"'Data Input - BAT'!AW107","v":0},{"$f":"'Data Input - BAT'!AX107","v":0},{"$f":"'Data Input - BAT'!AY107","v":0},{"$f":"'Data Input - BAT'!AZ107","v":0},{"$f":"'Data Input - BAT'!BA107","v":0},{"$f":"'Data Input - BAT'!BB107","v":0},{"$f":"'Data Input - BAT'!BC107","v":0},{"$f":"'Data Input - BAT'!BD107","v":0},{"$f":"'Data Input - BAT'!BE107","v":0},{"$f":"'Data Input - BAT'!BF107","v":0},{"$f":"'Data Input - BAT'!BG107","v":0},{"$f":"'Data Input - BAT'!BH107","v":0},{"$f":"'Data Input - BAT'!BI107","v":0},{"$f":"'Data Input - BAT'!BJ107","v":0},{"$f":"'Data Input - BAT'!BK107","v":0},{"$f":"'Data Input - BAT'!BL107","v":0},{"$f":"'Data Input - BAT'!BM107","v":0},{"$f":"'Data Input - BAT'!BN107","v":0},{"$f":"'Data Input - BAT'!BO107","v":0},{"$f":"'Data Input - BAT'!BP107","v":0},{"$f":"'Data Input - BAT'!BQ107","v":0},{"$f":"'Data Input - BAT'!BR107","v":0},{"$f":"'Data Input - BAT'!BS107","v":0},{"$f":"'Data Input - BAT'!BT107","v":0},{"$f":"'Data Input - BAT'!BU107","v":0},{"$f":"'Data Input - BAT'!BV107","v":0},{"$f":"'Data Input - BAT'!BW107","v":0},{"$f":"'Data Input - BAT'!BX107","v":0},{"$f":"'Data Input - BAT'!BY107","v":0},{"$f":"'Data Input - BAT'!BZ107","v":0},{"$f":"'Data Input - BAT'!CA107","v":0},{"$f":"'Data Input - BAT'!CB107","v":0},{"$f":"'Data Input - BAT'!CC107","v":0},{"$f":"'Data Input - BAT'!CD107","v":0},{"$f":"'Data Input - BAT'!CE107","v":0},{"$f":"'Data Input - BAT'!CF107","v":0},{"$f":"'Data Input - BAT'!CG107","v":0},{"$f":"'Data Input - BAT'!CH107","v":0},{"$f":"'Data Input - BAT'!CI107","v":0},{"$f":"'Data Input - BAT'!CJ107","v":0},{"$f":"'Data Input - BAT'!CK107","v":0},{"$f":"'Data Input - BAT'!CL107","v":0},{"$f":"'Data Input - BAT'!CM107","v":0},{"$f":"'Data Input - BAT'!CN107","v":0},{"$f":"'Data Input - BAT'!CO107","v":0},{"$f":"'Data Input - BAT'!CP107","v":0},{"$f":"'Data Input - BAT'!CQ107","v":0},{"$f":"'Data Input - BAT'!CR107","v":0},{"$f":"'Data Input - BAT'!CS107","v":0},{"$f":"'Data Input - BAT'!CT107","v":0},{"$f":"'Data Input - BAT'!CU107","v":0},{"$f":"'Data Input - BAT'!CV107","v":0},{"$f":"'Data Input - BAT'!CW107","v":0},{"$f":"'Data Input - BAT'!CX107","v":0},{"$f":"'Data Input - BAT'!CY107","v":0},{"$f":"'Data Input - BAT'!CZ107","v":0},{"$f":"'Data Input - BAT'!DA107","v":0},{"$f":"'Data Input - BAT'!DB107","v":0},{"$f":"'Data Input - BAT'!DC107","v":0}]
[null,{"$f":"'Data Input - BAT'!D108","v":0},"Tonnes pa",{"$f":"'Data Input - BAT'!H108","v":0},{"$f":"'Data Input - BAT'!I108","v":0},{"$f":"'Data Input - BAT'!J108","v":0},{"$f":"'Data Input - BAT'!K108","v":0},{"$f":"'Data Input - BAT'!L108","v":0},{"$f":"'Data Input - BAT'!M108","v":0},{"$f":"'Data Input - BAT'!N108","v":0},{"$f":"'Data Input - BAT'!O108","v":0},{"$f":"'Data Input - BAT'!P108","v":0},{"$f":"'Data Input - BAT'!Q108","v":0},{"$f":"'Data Input - BAT'!R108","v":0},{"$f":"'Data Input - BAT'!S108","v":0},{"$f":"'Data Input - BAT'!T108","v":0},{"$f":"'Data Input - BAT'!U108","v":0},{"$f":"'Data Input - BAT'!V108","v":0},{"$f":"'Data Input - BAT'!W108","v":0},{"$f":"'Data Input - BAT'!X108","v":0},{"$f":"'Data Input - BAT'!Y108","v":0},{"$f":"'Data Input - BAT'!Z108","v":0},{"$f":"'Data Input - BAT'!AA108","v":0},{"$f":"'Data Input - BAT'!AB108","v":0},{"$f":"'Data Input - BAT'!AC108","v":0},{"$f":"'Data Input - BAT'!AD108","v":0},{"$f":"'Data Input - BAT'!AE108","v":0},{"$f":"'Data Input - BAT'!AF108","v":0},{"$f":"'Data Input - BAT'!AG108","v":0},{"$f":"'Data Input - BAT'!AH108","v":0},{"$f":"'Data Input - BAT'!AI108","v":0},{"$f":"'Data Input - BAT'!AJ108","v":0},{"$f":"'Data Input - BAT'!AK108","v":0},{"$f":"'Data Input - BAT'!AL108","v":0},{"$f":"'Data Input - BAT'!AM108","v":0},{"$f":"'Data Input - BAT'!AN108","v":0},{"$f":"'Data Input - BAT'!AO108","v":0},{"$f":"'Data Input - BAT'!AP108","v":0},{"$f":"'Data Input - BAT'!AQ108","v":0},{"$f":"'Data Input - BAT'!AR108","v":0},{"$f":"'Data Input - BAT'!AS108","v":0},{"$f":"'Data Input - BAT'!AT108","v":0},{"$f":"'Data Input - BAT'!AU108","v":0},{"$f":"'Data Input - BAT'!AV108","v":0},{"$f":"'Data Input - BAT'!AW108","v":0},{"$f":"'Data Input - BAT'!AX108","v":0},{"$f":"'Data Input - BAT'!AY108","v":0},{"$f":"'Data Input - BAT'!AZ108","v":0},{"$f":"'Data Input - BAT'!BA108","v":0},{"$f":"'Data Input - BAT'!BB108","v":0},{"$f":"'Data Input - BAT'!BC108","v":0},{"$f":"'Data Input - BAT'!BD108","v":0},{"$f":"'Data Input - BAT'!BE108","v":0},{"$f":"'Data Input - BAT'!BF108","v":0},{"$f":"'Data Input - BAT'!BG108","v":0},{"$f":"'Data Input - BAT'!BH108","v":0},{"$f":"'Data Input - BAT'!BI108","v":0},{"$f":"'Data Input - BAT'!BJ108","v":0},{"$f":"'Data Input - BAT'!BK108","v":0},{"$f":"'Data Input - BAT'!BL108","v":0},{"$f":"'Data Input - BAT'!BM108","v":0},{"$f":"'Data Input - BAT'!BN108","v":0},{"$f":"'Data Input - BAT'!BO108","v":0},{"$f":"'Data Input - BAT'!BP108","v":0},{"$f":"'Data Input - BAT'!BQ108","v":0},{"$f":"'Data Input - BAT'!BR108","v":0},{"$f":"'Data Input - BAT'!BS108","v":0},{"$f":"'Data Input - BAT'!BT108","v":0},{"$f":"'Data Input - BAT'!BU108","v":0},{"$f":"'Data Input - BAT'!BV108","v":0},{"$f":"'Data Input - BAT'!BW108","v":0},{"$f":"'Data Input - BAT'!BX108","v":0},{"$f":"'Data Input - BAT'!BY108","v":0},{"$f":"'Data Input - BAT'!BZ108","v":0},{"$f":"'Data Input - BAT'!CA108","v":0},{"$f":"'Data Input - BAT'!CB108","v":0},{"$f":"'Data Input - BAT'!CC108","v":0},{"$f":"'Data Input - BAT'!CD108","v":0},{"$f":"'Data Input - BAT'!CE108","v":0},{"$f":"'Data Input - BAT'!CF108","v":0},{"$f":"'Data Input - BAT'!CG108","v":0},{"$f":"'Data Input - BAT'!CH108","v":0},{"$f":"'Data Input - BAT'!CI108","v":0},{"$f":"'Data Input - BAT'!CJ108","v":0},{"$f":"'Data Input - BAT'!CK108","v":0},{"$f":"'Data Input - BAT'!CL108","v":0},{"$f":"'Data Input - BAT'!CM108","v":0},{"$f":"'Data Input - BAT'!CN108","v":0},{"$f":"'Data Input - BAT'!CO108","v":0},{"$f":"'Data Input - BAT'!CP108","v":0},{"$f":"'Data Input - BAT'!CQ108","v":0},{"$f":"'Data Input - BAT'!CR108","v":0},{"$f":"'Data Input - BAT'!CS108","v":0},{"$f":"'Data Input - BAT'!CT108","v":0},{"$f":"'Data Input - BAT'!CU108","v":0},{"$f":"'Data Input - BAT'!CV108","v":0},{"$f":"'Data Input - BAT'!CW108","v":0},{"$f":"'Data Input - BAT'!CX108","v":0},{"$f":"'Data Input - BAT'!CY108","v":0},{"$f":"'Data Input - BAT'!CZ108","v":0},{"$f":"'Data Input - BAT'!DA108","v":0},{"$f":"'Data Input - BAT'!DB108","v":0},{"$f":"'Data Input - BAT'!DC108","v":0}]
[null,{"$f":"'Data Input - BAT'!D109","v":0},"Tonnes pa",{"$f":"'Data Input - BAT'!H109","v":0},{"$f":"'Data Input - BAT'!I109","v":0},{"$f":"'Data Input - BAT'!J109","v":0},{"$f":"'Data Input - BAT'!K109","v":0},{"$f":"'Data Input - BAT'!L109","v":0},{"$f":"'Data Input - BAT'!M109","v":0},{"$f":"'Data Input - BAT'!N109","v":0},{"$f":"'Data Input - BAT'!O109","v":0},{"$f":"'Data Input - BAT'!P109","v":0},{"$f":"'Data Input - BAT'!Q109","v":0},{"$f":"'Data Input - BAT'!R109","v":0},{"$f":"'Data Input - BAT'!S109","v":0},{"$f":"'Data Input - BAT'!T109","v":0},{"$f":"'Data Input - BAT'!U109","v":0},{"$f":"'Data Input - BAT'!V109","v":0},{"$f":"'Data Input - BAT'!W109","v":0},{"$f":"'Data Input - BAT'!X109","v":0},{"$f":"'Data Input - BAT'!Y109","v":0},{"$f":"'Data Input - BAT'!Z109","v":0},{"$f":"'Data Input - BAT'!AA109","v":0},{"$f":"'Data Input - BAT'!AB109","v":0},{"$f":"'Data Input - BAT'!AC109","v":0},{"$f":"'Data Input - BAT'!AD109","v":0},{"$f":"'Data Input - BAT'!AE109","v":0},{"$f":"'Data Input - BAT'!AF109","v":0},{"$f":"'Data Input - BAT'!AG109","v":0},{"$f":"'Data Input - BAT'!AH109","v":0},{"$f":"'Data Input - BAT'!AI109","v":0},{"$f":"'Data Input - BAT'!AJ109","v":0},{"$f":"'Data Input - BAT'!AK109","v":0},{"$f":"'Data Input - BAT'!AL109","v":0},{"$f":"'Data Input - BAT'!AM109","v":0},{"$f":"'Data Input - BAT'!AN109","v":0},{"$f":"'Data Input - BAT'!AO109","v":0},{"$f":"'Data Input - BAT'!AP109","v":0},{"$f":"'Data Input - BAT'!AQ109","v":0},{"$f":"'Data Input - BAT'!AR109","v":0},{"$f":"'Data Input - BAT'!AS109","v":0},{"$f":"'Data Input - BAT'!AT109","v":0},{"$f":"'Data Input - BAT'!AU109","v":0},{"$f":"'Data Input - BAT'!AV109","v":0},{"$f":"'Data Input - BAT'!AW109","v":0},{"$f":"'Data Input - BAT'!AX109","v":0},{"$f":"'Data Input - BAT'!AY109","v":0},{"$f":"'Data Input - BAT'!AZ109","v":0},{"$f":"'Data Input - BAT'!BA109","v":0},{"$f":"'Data Input - BAT'!BB109","v":0},{"$f":"'Data Input - BAT'!BC109","v":0},{"$f":"'Data Input - BAT'!BD109","v":0},{"$f":"'Data Input - BAT'!BE109","v":0},{"$f":"'Data Input - BAT'!BF109","v":0},{"$f":"'Data Input - BAT'!BG109","v":0},{"$f":"'Data Input - BAT'!BH109","v":0},{"$f":"'Data Input - BAT'!BI109","v":0},{"$f":"'Data Input - BAT'!BJ109","v":0},{"$f":"'Data Input - BAT'!BK109","v":0},{"$f":"'Data Input - BAT'!BL109","v":0},{"$f":"'Data Input - BAT'!BM109","v":0},{"$f":"'Data Input - BAT'!BN109","v":0},{"$f":"'Data Input - BAT'!BO109","v":0},{"$f":"'Data Input - BAT'!BP109","v":0},{"$f":"'Data Input - BAT'!BQ109","v":0},{"$f":"'Data Input - BAT'!BR109","v":0},{"$f":"'Data Input - BAT'!BS109","v":0},{"$f":"'Data Input - BAT'!BT109","v":0},{"$f":"'Data Input - BAT'!BU109","v":0},{"$f":"'Data Input - BAT'!BV109","v":0},{"$f":"'Data Input - BAT'!BW109","v":0},{"$f":"'Data Input - BAT'!BX109","v":0},{"$f":"'Data Input - BAT'!BY109","v":0},{"$f":"'Data Input - BAT'!BZ109","v":0},{"$f":"'Data Input - BAT'!CA109","v":0},{"$f":"'Data Input - BAT'!CB109","v":0},{"$f":"'Data Input - BAT'!CC109","v":0},{"$f":"'Data Input - BAT'!CD109","v":0},{"$f":"'Data Input - BAT'!CE109","v":0},{"$f":"'Data Input - BAT'!CF109","v":0},{"$f":"'Data Input - BAT'!CG109","v":0},{"$f":"'Data Input - BAT'!CH109","v":0},{"$f":"'Data Input - BAT'!CI109","v":0},{"$f":"'Data Input - BAT'!CJ109","v":0},{"$f":"'Data Input - BAT'!CK109","v":0},{"$f":"'Data Input - BAT'!CL109","v":0},{"$f":"'Data Input - BAT'!CM109","v":0},{"$f":"'Data Input - BAT'!CN109","v":0},{"$f":"'Data Input - BAT'!CO109","v":0},{"$f":"'Data Input - BAT'!CP109","v":0},{"$f":"'Data Input - BAT'!CQ109","v":0},{"$f":"'Data Input - BAT'!CR109","v":0},{"$f":"'Data Input - BAT'!CS109","v":0},{"$f":"'Data Input - BAT'!CT109","v":0},{"$f":"'Data Input - BAT'!CU109","v":0},{"$f":"'Data Input - BAT'!CV109","v":0},{"$f":"'Data Input - BAT'!CW109","v":0},{"$f":"'Data Input - BAT'!CX109","v":0},{"$f":"'Data Input - BAT'!CY109","v":0},{"$f":"'Data Input - BAT'!CZ109","v":0},{"$f":"'Data Input - BAT'!DA109","v":0},{"$f":"'Data Input - BAT'!DB109","v":0},{"$f":"'Data Input - BAT'!DC109","v":0}]
[null,{"$f":"'Data Input - BAT'!D110","v":0},"Tonnes pa",{"$f":"'Data Input - BAT'!H110","v":0},{"$f":"'Data Input - BAT'!I110","v":0},{"$f":"'Data Input - BAT'!J110","v":0},{"$f":"'Data Input - BAT'!K110","v":0},{"$f":"'Data Input - BAT'!L110","v":0},{"$f":"'Data Input - BAT'!M110","v":0},{"$f":"'Data Input - BAT'!N110","v":0},{"$f":"'Data Input - BAT'!O110","v":0},{"$f":"'Data Input - BAT'!P110","v":0},{"$f":"'Data Input - BAT'!Q110","v":0},{"$f":"'Data Input - BAT'!R110","v":0},{"$f":"'Data Input - BAT'!S110","v":0},{"$f":"'Data Input - BAT'!T110","v":0},{"$f":"'Data Input - BAT'!U110","v":0},{"$f":"'Data Input - BAT'!V110","v":0},{"$f":"'Data Input - BAT'!W110","v":0},{"$f":"'Data Input - BAT'!X110","v":0},{"$f":"'Data Input - BAT'!Y110","v":0},{"$f":"'Data Input - BAT'!Z110","v":0},{"$f":"'Data Input - BAT'!AA110","v":0},{"$f":"'Data Input - BAT'!AB110","v":0},{"$f":"'Data Input - BAT'!AC110","v":0},{"$f":"'Data Input - BAT'!AD110","v":0},{"$f":"'Data Input - BAT'!AE110","v":0},{"$f":"'Data Input - BAT'!AF110","v":0},{"$f":"'Data Input - BAT'!AG110","v":0},{"$f":"'Data Input - BAT'!AH110","v":0},{"$f":"'Data Input - BAT'!AI110","v":0},{"$f":"'Data Input - BAT'!AJ110","v":0},{"$f":"'Data Input - BAT'!AK110","v":0},{"$f":"'Data Input - BAT'!AL110","v":0},{"$f":"'Data Input - BAT'!AM110","v":0},{"$f":"'Data Input - BAT'!AN110","v":0},{"$f":"'Data Input - BAT'!AO110","v":0},{"$f":"'Data Input - BAT'!AP110","v":0},{"$f":"'Data Input - BAT'!AQ110","v":0},{"$f":"'Data Input - BAT'!AR110","v":0},{"$f":"'Data Input - BAT'!AS110","v":0},{"$f":"'Data Input - BAT'!AT110","v":0},{"$f":"'Data Input - BAT'!AU110","v":0},{"$f":"'Data Input - BAT'!AV110","v":0},{"$f":"'Data Input - BAT'!AW110","v":0},{"$f":"'Data Input - BAT'!AX110","v":0},{"$f":"'Data Input - BAT'!AY110","v":0},{"$f":"'Data Input - BAT'!AZ110","v":0},{"$f":"'Data Input - BAT'!BA110","v":0},{"$f":"'Data Input - BAT'!BB110","v":0},{"$f":"'Data Input - BAT'!BC110","v":0},{"$f":"'Data Input - BAT'!BD110","v":0},{"$f":"'Data Input - BAT'!BE110","v":0},{"$f":"'Data Input - BAT'!BF110","v":0},{"$f":"'Data Input - BAT'!BG110","v":0},{"$f":"'Data Input - BAT'!BH110","v":0},{"$f":"'Data Input - BAT'!BI110","v":0},{"$f":"'Data Input - BAT'!BJ110","v":0},{"$f":"'Data Input - BAT'!BK110","v":0},{"$f":"'Data Input - BAT'!BL110","v":0},{"$f":"'Data Input - BAT'!BM110","v":0},{"$f":"'Data Input - BAT'!BN110","v":0},{"$f":"'Data Input - BAT'!BO110","v":0},{"$f":"'Data Input - BAT'!BP110","v":0},{"$f":"'Data Input - BAT'!BQ110","v":0},{"$f":"'Data Input - BAT'!BR110","v":0},{"$f":"'Data Input - BAT'!BS110","v":0},{"$f":"'Data Input - BAT'!BT110","v":0},{"$f":"'Data Input - BAT'!BU110","v":0},{"$f":"'Data Input - BAT'!BV110","v":0},{"$f":"'Data Input - BAT'!BW110","v":0},{"$f":"'Data Input - BAT'!BX110","v":0},{"$f":"'Data Input - BAT'!BY110","v":0},{"$f":"'Data Input - BAT'!BZ110","v":0},{"$f":"'Data Input - BAT'!CA110","v":0},{"$f":"'Data Input - BAT'!CB110","v":0},{"$f":"'Data Input - BAT'!CC110","v":0},{"$f":"'Data Input - BAT'!CD110","v":0},{"$f":"'Data Input - BAT'!CE110","v":0},{"$f":"'Data Input - BAT'!CF110","v":0},{"$f":"'Data Input - BAT'!CG110","v":0},{"$f":"'Data Input - BAT'!CH110","v":0},{"$f":"'Data Input - BAT'!CI110","v":0},{"$f":"'Data Input - BAT'!CJ110","v":0},{"$f":"'Data Input - BAT'!CK110","v":0},{"$f":"'Data Input - BAT'!CL110","v":0},{"$f":"'Data Input - BAT'!CM110","v":0},{"$f":"'Data Input - BAT'!CN110","v":0},{"$f":"'Data Input - BAT'!CO110","v":0},{"$f":"'Data Input - BAT'!CP110","v":0},{"$f":"'Data Input - BAT'!CQ110","v":0},{"$f":"'Data Input - BAT'!CR110","v":0},{"$f":"'Data Input - BAT'!CS110","v":0},{"$f":"'Data Input - BAT'!CT110","v":0},{"$f":"'Data Input - BAT'!CU110","v":0},{"$f":"'Data Input - BAT'!CV110","v":0},{"$f":"'Data Input - BAT'!CW110","v":0},{"$f":"'Data Input - BAT'!CX110","v":0},{"$f":"'Data Input - BAT'!CY110","v":0},{"$f":"'Data Input - BAT'!CZ110","v":0},{"$f":"'Data Input - BAT'!DA110","v":0},{"$f":"'Data Input - BAT'!DB110","v":0},{"$f":"'Data Input - BAT'!DC110","v":0}]
[]
[null,"Air pollutant emissions- value"]
[null,{"$f":"B53","v":"Sox 2019"},"£000's",{"$f":"IFERROR(IF(OR($C$67=FALSE,LEFT($B61,3)<>\"NOX\"),D53*INDEX('Damage costs'!$O$16:$O$43,MATCH($B61,'Damage costs'!$C$16:$C$43,0))/1000,D53*INDEX('Damage costs'!$S$16:$S$43,MATCH($B61,'Damage costs'!$C$16:$C$43,0))/1000),\"\")","v":6.7435895540131199},{"$f":"IFERROR(IF(OR($C$67=FALSE,LEFT($B61,3)<>\"NOX\"),E53*INDEX('Damage costs'!$O$16:$O$43,MATCH($B61,'Damage costs'!$C$16:$C$43,0))/1000,E53*INDEX('Damage costs'!$S$16:$S$43,MATCH($B61,'Damage costs'!$C$16:$C$43,0))/1000),\"\")","v":1.7937948213674899},{"$f":"IFERROR(IF(OR($C$67=FALSE,LEFT($B61,3)<>\"NOX\"),F53*INDEX('Damage costs'!$O$16:$O$43,MATCH($B61,'Damage costs'!$C$16:$C$43,0))/1000,F53*INDEX('Damage costs'!$S$16:$S$43,MATCH($B61,'Damage costs'!$C$16:$C$43,0))/1000),\"\")","v":1.7937948213674899},{"$f":"IFERROR(IF(OR($C$67=FALSE,LEFT($B61,3)<>\"NOX\"),G53*INDEX('Damage costs'!$O$16:$O$43,MATCH($B61,'Damage costs'!$C$16:$C$43,0))/1000,G53*INDEX('Damage costs'!$S$16:$S$43,MATCH($B61,'Damage costs'!$C$16:$C$43,0))/1000),\"\")","v":1.7937948213674899},{"$f":"IFERROR(IF(OR($C$67=FALSE,LEFT($B61,3)<>\"NOX\"),H53*INDEX('Damage costs'!$O$16:$O$43,MATCH($B61,'Damage costs'!$C$16:$C$43,0))/1000,H53*INDEX('Damage costs'!$S$16:$S$43,MATCH($B61,'Damage costs'!$C$16:$C$43,0))/1000),\"\")","v":1.7937948213674899},{"$f":"IFERROR(IF(OR($C$67=FALSE,LEFT($B61,3)<>\"NOX\"),I53*INDEX('Damage costs'!$O$16:$O$43,MATCH($B61,'Damage costs'!$C$16:$C$43,0))/1000,I53*INDEX('Damage costs'!$S$16:$S$43,MATCH($B61,'Damage costs'!$C$16:$C$43,0))/1000),\"\")","v":1.7937948213674899},{"$f":"IFERROR(IF(OR($C$67=FALSE,LEFT($B61,3)<>\"NOX\"),J53*INDEX('Damage costs'!$O$16:$O$43,MATCH($B61,'Damage costs'!$C$16:$C$43,0))/1000,J53*INDEX('Damage costs'!$S$16:$S$43,MATCH($B61,'Damage costs'!$C$16:$C$43,0))/1000),\"\")","v":1.7937948213674899},{"$f":"IFERROR(IF(OR($C$67=FALSE,LEFT($B61,3)<>\"NOX\"),K53*INDEX('Damage costs'!$O$16:$O$43,MATCH($B61,'Damage costs'!$C$16:$C$43,0))/1000,K53*INDEX('Damage costs'!$S$16:$S$43,MATCH($B61,'Damage costs'!$C$16:$C$43,0))/1000),\"\")","v":1.7937948213674899},{"$f":"IFERROR(IF(OR($C$67=FALSE,LEFT($B61,3)<>\"NOX\"),L53*INDEX('Damage costs'!$O$16:$O$43,MATCH($B61,'Damage costs'!$C$16:$C$43,0))/1000,L53*INDEX('Damage costs'!$S$16:$S$43,MATCH($B61,'Damage costs'!$C$16:$C$43,0))/1000),\"\")","v":0},{"$f":"IFERROR(IF(OR($C$67=FALSE,LEFT($B61,3)<>\"NOX\"),M53*INDEX('Damage costs'!$O$16:$O$43,MATCH($B61,'Damage costs'!$C$16:$C$43,0))/1000,M53*INDEX('Damage costs'!$S$16:$S$43,MATCH($B61,'Damage costs'!$C$16:$C$43,0))/1000),\"\")","v":0},{"$f":"IFERROR(IF(OR($C$67=FALSE,LEFT($B61,3)<>\"NOX\"),N53*INDEX('Damage costs'!$O$16:$O$43,MATCH($B61,'Damage costs'!$C$16:$C$43,0))/1000,N53*INDEX('Damage costs'!$S$16:$S$43,MATCH($B61,'Damage costs'!$C$16:$C$43,0))/1000),\"\")","v":0},{"$f":"IFERROR(IF(OR($C$67=FALSE,LEFT($B61,3)<>\"NOX\"),O53*INDEX('Damage costs'!$O$16:$O$43,MATCH($B61,'Damage costs'!$C$16:$C$43,0))/1000,O53*INDEX('Damage costs'!$S$16:$S$43,MATCH($B61,'Damage costs'!$C$16:$C$43,0))/1000),\"\")","v":0},{"$f":"IFERROR(IF(OR($C$67=FALSE,LEFT($B61,3)<>\"NOX\"),P53*INDEX('Damage costs'!$O$16:$O$43,MATCH($B61,'Damage costs'!$C$16:$C$43,0))/1000,P53*INDEX('Damage costs'!$S$16:$S$43,MATCH($B61,'Damage costs'!$C$16:$C$43,0))/1000),\"\")","v":0},{"$f":"IFERROR(IF(OR($C$67=FALSE,LEFT($B61,3)<>\"NOX\"),Q53*INDEX('Damage costs'!$O$16:$O$43,MATCH($B61,'Damage costs'!$C$16:$C$43,0))/1000,Q53*INDEX('Damage costs'!$S$16:$S$43,MATCH($B61,'Damage costs'!$C$16:$C$43,0))/1000),\"\")","v":0},{"$f":"IFERROR(IF(OR($C$67=FALSE,LEFT($B61,3)<>\"NOX\"),R53*INDEX('Damage costs'!$O$16:$O$43,MATCH($B61,'Damage costs'!$C$16:$C$43,0))/1000,R53*INDEX('Damage costs'!$S$16:$S$43,MATCH($B61,'Damage costs'!$C$16:$C$43,0))/1000),\"\")","v":0},{"$f":"IFERROR(IF(OR($C$67=FALSE,LEFT($B61,3)<>\"NOX\"),S53*INDEX('Damage costs'!$O$16:$O$43,MATCH($B61,'Damage costs'!$C$16:$C$43,0))/1000,S53*INDEX('Damage costs'!$S$16:$S$43,MATCH($B61,'Damage costs'!$C$16:$C$43,0))/1000),\"\")","v":0},{"$f":"IFERROR(IF(OR($C$67=FALSE,LEFT($B61,3)<>\"NOX\"),T53*INDEX('Damage costs'!$O$16:$O$43,MATCH($B61,'Damage costs'!$C$16:$C$43,0))/1000,T53*INDEX('Damage costs'!$S$16:$S$43,MATCH($B61,'Damage costs'!$C$16:$C$43,0))/1000),\"\")","v":0},{"$f":"IFERROR(IF(OR($C$67=FALSE,LEFT($B61,3)<>\"NOX\"),U53*INDEX('Damage costs'!$O$16:$O$43,MATCH($B61,'Damage costs'!$C$16:$C$43,0))/1000,U53*INDEX('Damage costs'!$S$16:$S$43,MATCH($B61,'Damage costs'!$C$16:$C$43,0))/1000),\"\")","v":0},{"$f":"IFERROR(IF(OR($C$67=FALSE,LEFT($B61,3)<>\"NOX\"),V53*INDEX('Damage costs'!$O$16:$O$43,MATCH($B61,'Damage costs'!$C$16:$C$43,0))/1000,V53*INDEX('Damage costs'!$S$16:$S$43,MATCH($B61,'Damage costs'!$C$16:$C$43,0))/1000),\"\")","v":0},{"$f":"IFERROR(IF(OR($C$67=FALSE,LEFT($B61,3)<>\"NOX\"),W53*INDEX('Damage costs'!$O$16:$O$43,MATCH($B61,'Damage costs'!$C$16:$C$43,0))/1000,W53*INDEX('Damage costs'!$S$16:$S$43,MATCH($B61,'Damage costs'!$C$16:$C$43,0))/1000),\"\")","v":0},{"$f":"IFERROR(IF(OR($C$67=FALSE,LEFT($B61,3)<>\"NOX\"),X53*INDEX('Damage costs'!$O$16:$O$43,MATCH($B61,'Damage costs'!$C$16:$C$43,0))/1000,X53*INDEX('Damage costs'!$S$16:$S$43,MATCH($B61,'Damage costs'!$C$16:$C$43,0))/1000),\"\")","v":0},{"$f":"IFERROR(IF(OR($C$67=FALSE,LEFT($B61,3)<>\"NOX\"),Y53*INDEX('Damage costs'!$O$16:$O$43,MATCH($B61,'Damage costs'!$C$16:$C$43,0))/1000,Y53*INDEX('Damage costs'!$S$16:$S$43,MATCH($B61,'Damage costs'!$C$16:$C$43,0))/1000),\"\")","v":0},{"$f":"IFERROR(IF(OR($C$67=FALSE,LEFT($B61,3)<>\"NOX\"),Z53*INDEX('Damage costs'!$O$16:$O$43,MATCH($B61,'Damage costs'!$C$16:$C$43,0))/1000,Z53*INDEX('Damage costs'!$S$16:$S$43,MATCH($B61,'Damage costs'!$C$16:$C$43,0))/1000),\"\")","v":0},{"$f":"IFERROR(IF(OR($C$67=FALSE,LEFT($B61,3)<>\"NOX\"),AA53*INDEX('Damage costs'!$O$16:$O$43,MATCH($B61,'Damage costs'!$C$16:$C$43,0))/1000,AA53*INDEX('Damage costs'!$S$16:$S$43,MATCH($B61,'Damage costs'!$C$16:$C$43,0))/1000),\"\")","v":0},{"$f":"IFERROR(IF(OR($C$67=FALSE,LEFT($B61,3)<>\"NOX\"),AB53*INDEX('Damage costs'!$O$16:$O$43,MATCH($B61,'Damage costs'!$C$16:$C$43,0))/1000,AB53*INDEX('Damage costs'!$S$16:$S$43,MATCH($B61,'Damage costs'!$C$16:$C$43,0))/1000),\"\")","v":0},{"$f":"IFERROR(IF(OR($C$67=FALSE,LEFT($B61,3)<>\"NOX\"),AC53*INDEX('Damage costs'!$O$16:$O$43,MATCH($B61,'Damage costs'!$C$16:$C$43,0))/1000,AC53*INDEX('Damage costs'!$S$16:$S$43,MATCH($B61,'Damage costs'!$C$16:$C$43,0))/1000),\"\")","v":0},{"$f":"IFERROR(IF(OR($C$67=FALSE,LEFT($B61,3)<>\"NOX\"),AD53*INDEX('Damage costs'!$O$16:$O$43,MATCH($B61,'Damage costs'!$C$16:$C$43,0))/1000,AD53*INDEX('Damage costs'!$S$16:$S$43,MATCH($B61,'Damage costs'!$C$16:$C$43,0))/1000),\"\")","v":0},{"$f":"IFERROR(IF(OR($C$67=FALSE,LEFT($B61,3)<>\"NOX\"),AE53*INDEX('Damage costs'!$O$16:$O$43,MATCH($B61,'Damage costs'!$C$16:$C$43,0))/1000,AE53*INDEX('Damage costs'!$S$16:$S$43,MATCH($B61,'Damage costs'!$C$16:$C$43,0))/1000),\"\")","v":0},{"$f":"IFERROR(IF(OR($C$67=FALSE,LEFT($B61,3)<>\"NOX\"),AF53*INDEX('Damage costs'!$O$16:$O$43,MATCH($B61,'Damage costs'!$C$16:$C$43,0))/1000,AF53*INDEX('Damage costs'!$S$16:$S$43,MATCH($B61,'Damage costs'!$C$16:$C$43,0))/1000),\"\")","v":0},{"$f":"IFERROR(IF(OR($C$67=FALSE,LEFT($B61,3)<>\"NOX\"),AG53*INDEX('Damage costs'!$O$16:$O$43,MATCH($B61,'Damage costs'!$C$16:$C$43,0))/1000,AG53*INDEX('Damage costs'!$S$16:$S$43,MATCH($B61,'Damage costs'!$C$16:$C$43,0))/1000),\"\")","v":0},{"$f":"IFERROR(IF(OR($C$67=FALSE,LEFT($B61,3)<>\"NOX\"),AH53*INDEX('Damage costs'!$O$16:$O$43,MATCH($B61,'Damage costs'!$C$16:$C$43,0))/1000,AH53*INDEX('Damage costs'!$S$16:$S$43,MATCH($B61,'Damage costs'!$C$16:$C$43,0))/1000),\"\")","v":0},{"$f":"IFERROR(IF(OR($C$67=FALSE,LEFT($B61,3)<>\"NOX\"),AI53*INDEX('Damage costs'!$O$16:$O$43,MATCH($B61,'Damage costs'!$C$16:$C$43,0))/1000,AI53*INDEX('Damage costs'!$S$16:$S$43,MATCH($B61,'Damage costs'!$C$16:$C$43,0))/1000),\"\")","v":0},{"$f":"IFERROR(IF(OR($C$67=FALSE,LEFT($B61,3)<>\"NOX\"),AJ53*INDEX('Damage costs'!$O$16:$O$43,MATCH($B61,'Damage costs'!$C$16:$C$43,0))/1000,AJ53*INDEX('Damage costs'!$S$16:$S$43,MATCH($B61,'Damage costs'!$C$16:$C$43,0))/1000),\"\")","v":0},{"$f":"IFERROR(IF(OR($C$67=FALSE,LEFT($B61,3)<>\"NOX\"),AK53*INDEX('Damage costs'!$O$16:$O$43,MATCH($B61,'Damage costs'!$C$16:$C$43,0))/1000,AK53*INDEX('Damage costs'!$S$16:$S$43,MATCH($B61,'Damage costs'!$C$16:$C$43,0))/1000),\"\")","v":0},{"$f":"IFERROR(IF(OR($C$67=FALSE,LEFT($B61,3)<>\"NOX\"),AL53*INDEX('Damage costs'!$O$16:$O$43,MATCH($B61,'Damage costs'!$C$16:$C$43,0))/1000,AL53*INDEX('Damage costs'!$S$16:$S$43,MATCH($B61,'Damage costs'!$C$16:$C$43,0))/1000),\"\")","v":0},{"$f":"IFERROR(IF(OR($C$67=FALSE,LEFT($B61,3)<>\"NOX\"),AM53*INDEX('Damage costs'!$O$16:$O$43,MATCH($B61,'Damage costs'!$C$16:$C$43,0))/1000,AM53*INDEX('Damage costs'!$S$16:$S$43,MATCH($B61,'Damage costs'!$C$16:$C$43,0))/1000),\"\")","v":0},{"$f":"IFERROR(IF(OR($C$67=FALSE,LEFT($B61,3)<>\"NOX\"),AN53*INDEX('Damage costs'!$O$16:$O$43,MATCH($B61,'Damage costs'!$C$16:$C$43,0))/1000,AN53*INDEX('Damage costs'!$S$16:$S$43,MATCH($B61,'Damage costs'!$C$16:$C$43,0))/1000),\"\")","v":0},{"$f":"IFERROR(IF(OR($C$67=FALSE,LEFT($B61,3)<>\"NOX\"),AO53*INDEX('Damage costs'!$O$16:$O$43,MATCH($B61,'Damage costs'!$C$16:$C$43,0))/1000,AO53*INDEX('Damage costs'!$S$16:$S$43,MATCH($B61,'Damage costs'!$C$16:$C$43,0))/1000),\"\")","v":0},{"$f":"IFERROR(IF(OR($C$67=FALSE,LEFT($B61,3)<>\"NOX\"),AP53*INDEX('Damage costs'!$O$16:$O$43,MATCH($B61,'Damage costs'!$C$16:$C$43,0))/1000,AP53*INDEX('Damage costs'!$S$16:$S$43,MATCH($B61,'Damage costs'!$C$16:$C$43,0))/1000),\"\")","v":0},{"$f":"IFERROR(IF(OR($C$67=FALSE,LEFT($B61,3)<>\"NOX\"),AQ53*INDEX('Damage costs'!$O$16:$O$43,MATCH($B61,'Damage costs'!$C$16:$C$43,0))/1000,AQ53*INDEX('Damage costs'!$S$16:$S$43,MATCH($B61,'Damage costs'!$C$16:$C$43,0))/1000),\"\")","v":0},{"$f":"IFERROR(IF(OR($C$67=FALSE,LEFT($B61,3)<>\"NOX\"),AR53*INDEX('Damage costs'!$O$16:$O$43,MATCH($B61,'Damage costs'!$C$16:$C$43,0))/1000,AR53*INDEX('Damage costs'!$S$16:$S$43,MATCH($B61,'Damage costs'!$C$16:$C$43,0))/1000),\"\")","v":0},{"$f":"IFERROR(IF(OR($C$67=FALSE,LEFT($B61,3)<>\"NOX\"),AS53*INDEX('Damage costs'!$O$16:$O$43,MATCH($B61,'Damage costs'!$C$16:$C$43,0))/1000,AS53*INDEX('Damage costs'!$S$16:$S$43,MATCH($B61,'Damage costs'!$C$16:$C$43,0))/1000),\"\")","v":0},{"$f":"IFERROR(IF(OR($C$67=FALSE,LEFT($B61,3)<>\"NOX\"),AT53*INDEX('Damage costs'!$O$16:$O$43,MATCH($B61,'Damage costs'!$C$16:$C$43,0))/1000,AT53*INDEX('Damage costs'!$S$16:$S$43,MATCH($B61,'Damage costs'!$C$16:$C$43,0))/1000),\"\")","v":0},{"$f":"IFERROR(IF(OR($C$67=FALSE,LEFT($B61,3)<>\"NOX\"),AU53*INDEX('Damage costs'!$O$16:$O$43,MATCH($B61,'Damage costs'!$C$16:$C$43,0))/1000,AU53*INDEX('Damage costs'!$S$16:$S$43,MATCH($B61,'Damage costs'!$C$16:$C$43,0))/1000),\"\")","v":0},{"$f":"IFERROR(IF(OR($C$67=FALSE,LEFT($B61,3)<>\"NOX\"),AV53*INDEX('Damage costs'!$O$16:$O$43,MATCH($B61,'Damage costs'!$C$16:$C$43,0))/1000,AV53*INDEX('Damage costs'!$S$16:$S$43,MATCH($B61,'Damage costs'!$C$16:$C$43,0))/1000),\"\")","v":0},{"$f":"IFERROR(IF(OR($C$67=FALSE,LEFT($B61,3)<>\"NOX\"),AW53*INDEX('Damage costs'!$O$16:$O$43,MATCH($B61,'Damage costs'!$C$16:$C$43,0))/1000,AW53*INDEX('Damage costs'!$S$16:$S$43,MATCH($B61,'Damage costs'!$C$16:$C$43,0))/1000),\"\")","v":0},{"$f":"IFERROR(IF(OR($C$67=FALSE,LEFT($B61,3)<>\"NOX\"),AX53*INDEX('Damage costs'!$O$16:$O$43,MATCH($B61,'Damage costs'!$C$16:$C$43,0))/1000,AX53*INDEX('Damage costs'!$S$16:$S$43,MATCH($B61,'Damage costs'!$C$16:$C$43,0))/1000),\"\")","v":0},{"$f":"IFERROR(IF(OR($C$67=FALSE,LEFT($B61,3)<>\"NOX\"),AY53*INDEX('Damage costs'!$O$16:$O$43,MATCH($B61,'Damage costs'!$C$16:$C$43,0))/1000,AY53*INDEX('Damage costs'!$S$16:$S$43,MATCH($B61,'Damage costs'!$C$16:$C$43,0))/1000),\"\")","v":0},{"$f":"IFERROR(IF(OR($C$67=FALSE,LEFT($B61,3)<>\"NOX\"),AZ53*INDEX('Damage costs'!$O$16:$O$43,MATCH($B61,'Damage costs'!$C$16:$C$43,0))/1000,AZ53*INDEX('Damage costs'!$S$16:$S$43,MATCH($B61,'Damage costs'!$C$16:$C$43,0))/1000),\"\")","v":0},{"$f":"IFERROR(IF(OR($C$67=FALSE,LEFT($B61,3)<>\"NOX\"),BA53*INDEX('Damage costs'!$O$16:$O$43,MATCH($B61,'Damage costs'!$C$16:$C$43,0))/1000,BA53*INDEX('Damage costs'!$S$16:$S$43,MATCH($B61,'Damage costs'!$C$16:$C$43,0))/1000),\"\")","v":0},{"$f":"IFERROR(IF(OR($C$67=FALSE,LEFT($B61,3)<>\"NOX\"),BB53*INDEX('Damage costs'!$O$16:$O$43,MATCH($B61,'Damage costs'!$C$16:$C$43,0))/1000,BB53*INDEX('Damage costs'!$S$16:$S$43,MATCH($B61,'Damage costs'!$C$16:$C$43,0))/1000),\"\")","v":0},{"$f":"IFERROR(IF(OR($C$67=FALSE,LEFT($B61,3)<>\"NOX\"),BC53*INDEX('Damage costs'!$O$16:$O$43,MATCH($B61,'Damage costs'!$C$16:$C$43,0))/1000,BC53*INDEX('Damage costs'!$S$16:$S$43,MATCH($B61,'Damage costs'!$C$16:$C$43,0))/1000),\"\")","v":0},{"$f":"IFERROR(IF(OR($C$67=FALSE,LEFT($B61,3)<>\"NOX\"),BD53*INDEX('Damage costs'!$O$16:$O$43,MATCH($B61,'Damage costs'!$C$16:$C$43,0))/1000,BD53*INDEX('Damage costs'!$S$16:$S$43,MATCH($B61,'Damage costs'!$C$16:$C$43,0))/1000),\"\")","v":0},{"$f":"IFERROR(IF(OR($C$67=FALSE,LEFT($B61,3)<>\"NOX\"),BE53*INDEX('Damage costs'!$O$16:$O$43,MATCH($B61,'Damage costs'!$C$16:$C$43,0))/1000,BE53*INDEX('Damage costs'!$S$16:$S$43,MATCH($B61,'Damage costs'!$C$16:$C$43,0))/1000),\"\")","v":0},{"$f":"IFERROR(IF(OR($C$67=FALSE,LEFT($B61,3)<>\"NOX\"),BF53*INDEX('Damage costs'!$O$16:$O$43,MATCH($B61,'Damage costs'!$C$16:$C$43,0))/1000,BF53*INDEX('Damage costs'!$S$16:$S$43,MATCH($B61,'Damage costs'!$C$16:$C$43,0))/1000),\"\")","v":0},{"$f":"IFERROR(IF(OR($C$67=FALSE,LEFT($B61,3)<>\"NOX\"),BG53*INDEX('Damage costs'!$O$16:$O$43,MATCH($B61,'Damage costs'!$C$16:$C$43,0))/1000,BG53*INDEX('Damage costs'!$S$16:$S$43,MATCH($B61,'Damage costs'!$C$16:$C$43,0))/1000),\"\")","v":0},{"$f":"IFERROR(IF(OR($C$67=FALSE,LEFT($B61,3)<>\"NOX\"),BH53*INDEX('Damage costs'!$O$16:$O$43,MATCH($B61,'Damage costs'!$C$16:$C$43,0))/1000,BH53*INDEX('Damage costs'!$S$16:$S$43,MATCH($B61,'Damage costs'!$C$16:$C$43,0))/1000),\"\")","v":0},{"$f":"IFERROR(IF(OR($C$67=FALSE,LEFT($B61,3)<>\"NOX\"),BI53*INDEX('Damage costs'!$O$16:$O$43,MATCH($B61,'Damage costs'!$C$16:$C$43,0))/1000,BI53*INDEX('Damage costs'!$S$16:$S$43,MATCH($B61,'Damage costs'!$C$16:$C$43,0))/1000),\"\")","v":0},{"$f":"IFERROR(IF(OR($C$67=FALSE,LEFT($B61,3)<>\"NOX\"),BJ53*INDEX('Damage costs'!$O$16:$O$43,MATCH($B61,'Damage costs'!$C$16:$C$43,0))/1000,BJ53*INDEX('Damage costs'!$S$16:$S$43,MATCH($B61,'Damage costs'!$C$16:$C$43,0))/1000),\"\")","v":0},{"$f":"IFERROR(IF(OR($C$67=FALSE,LEFT($B61,3)<>\"NOX\"),BK53*INDEX('Damage costs'!$O$16:$O$43,MATCH($B61,'Damage costs'!$C$16:$C$43,0))/1000,BK53*INDEX('Damage costs'!$S$16:$S$43,MATCH($B61,'Damage costs'!$C$16:$C$43,0))/1000),\"\")","v":0},{"$f":"IFERROR(IF(OR($C$67=FALSE,LEFT($B61,3)<>\"NOX\"),BL53*INDEX('Damage costs'!$O$16:$O$43,MATCH($B61,'Damage costs'!$C$16:$C$43,0))/1000,BL53*INDEX('Damage costs'!$S$16:$S$43,MATCH($B61,'Damage costs'!$C$16:$C$43,0))/1000),\"\")","v":0},{"$f":"IFERROR(IF(OR($C$67=FALSE,LEFT($B61,3)<>\"NOX\"),BM53*INDEX('Damage costs'!$O$16:$O$43,MATCH($B61,'Damage costs'!$C$16:$C$43,0))/1000,BM53*INDEX('Damage costs'!$S$16:$S$43,MATCH($B61,'Damage costs'!$C$16:$C$43,0))/1000),\"\")","v":0},{"$f":"IFERROR(IF(OR($C$67=FALSE,LEFT($B61,3)<>\"NOX\"),BN53*INDEX('Damage costs'!$O$16:$O$43,MATCH($B61,'Damage costs'!$C$16:$C$43,0))/1000,BN53*INDEX('Damage costs'!$S$16:$S$43,MATCH($B61,'Damage costs'!$C$16:$C$43,0))/1000),\"\")","v":0},{"$f":"IFERROR(IF(OR($C$67=FALSE,LEFT($B61,3)<>\"NOX\"),BO53*INDEX('Damage costs'!$O$16:$O$43,MATCH($B61,'Damage costs'!$C$16:$C$43,0))/1000,BO53*INDEX('Damage costs'!$S$16:$S$43,MATCH($B61,'Damage costs'!$C$16:$C$43,0))/1000),\"\")","v":0},{"$f":"IFERROR(IF(OR($C$67=FALSE,LEFT($B61,3)<>\"NOX\"),BP53*INDEX('Damage costs'!$O$16:$O$43,MATCH($B61,'Damage costs'!$C$16:$C$43,0))/1000,BP53*INDEX('Damage costs'!$S$16:$S$43,MATCH($B61,'Damage costs'!$C$16:$C$43,0))/1000),\"\")","v":0},{"$f":"IFERROR(IF(OR($C$67=FALSE,LEFT($B61,3)<>\"NOX\"),BQ53*INDEX('Damage costs'!$O$16:$O$43,MATCH($B61,'Damage costs'!$C$16:$C$43,0))/1000,BQ53*INDEX('Damage costs'!$S$16:$S$43,MATCH($B61,'Damage costs'!$C$16:$C$43,0))/1000),\"\")","v":0},{"$f":"IFERROR(IF(OR($C$67=FALSE,LEFT($B61,3)<>\"NOX\"),BR53*INDEX('Damage costs'!$O$16:$O$43,MATCH($B61,'Damage costs'!$C$16:$C$43,0))/1000,BR53*INDEX('Damage costs'!$S$16:$S$43,MATCH($B61,'Damage costs'!$C$16:$C$43,0))/1000),\"\")","v":0},{"$f":"IFERROR(IF(OR($C$67=FALSE,LEFT($B61,3)<>\"NOX\"),BS53*INDEX('Damage costs'!$O$16:$O$43,MATCH($B61,'Damage costs'!$C$16:$C$43,0))/1000,BS53*INDEX('Damage costs'!$S$16:$S$43,MATCH($B61,'Damage costs'!$C$16:$C$43,0))/1000),\"\")","v":0},{"$f":"IFERROR(IF(OR($C$67=FALSE,LEFT($B61,3)<>\"NOX\"),BT53*INDEX('Damage costs'!$O$16:$O$43,MATCH($B61,'Damage costs'!$C$16:$C$43,0))/1000,BT53*INDEX('Damage costs'!$S$16:$S$43,MATCH($B61,'Damage costs'!$C$16:$C$43,0))/1000),\"\")","v":0},{"$f":"IFERROR(IF(OR($C$67=FALSE,LEFT($B61,3)<>\"NOX\"),BU53*INDEX('Damage costs'!$O$16:$O$43,MATCH($B61,'Damage costs'!$C$16:$C$43,0))/1000,BU53*INDEX('Damage costs'!$S$16:$S$43,MATCH($B61,'Damage costs'!$C$16:$C$43,0))/1000),\"\")","v":0},{"$f":"IFERROR(IF(OR($C$67=FALSE,LEFT($B61,3)<>\"NOX\"),BV53*INDEX('Damage costs'!$O$16:$O$43,MATCH($B61,'Damage costs'!$C$16:$C$43,0))/1000,BV53*INDEX('Damage costs'!$S$16:$S$43,MATCH($B61,'Damage costs'!$C$16:$C$43,0))/1000),\"\")","v":0},{"$f":"IFERROR(IF(OR($C$67=FALSE,LEFT($B61,3)<>\"NOX\"),BW53*INDEX('Damage costs'!$O$16:$O$43,MATCH($B61,'Damage costs'!$C$16:$C$43,0))/1000,BW53*INDEX('Damage costs'!$S$16:$S$43,MATCH($B61,'Damage costs'!$C$16:$C$43,0))/1000),\"\")","v":0},{"$f":"IFERROR(IF(OR($C$67=FALSE,LEFT($B61,3)<>\"NOX\"),BX53*INDEX('Damage costs'!$O$16:$O$43,MATCH($B61,'Damage costs'!$C$16:$C$43,0))/1000,BX53*INDEX('Damage costs'!$S$16:$S$43,MATCH($B61,'Damage costs'!$C$16:$C$43,0))/1000),\"\")","v":0},{"$f":"IFERROR(IF(OR($C$67=FALSE,LEFT($B61,3)<>\"NOX\"),BY53*INDEX('Damage costs'!$O$16:$O$43,MATCH($B61,'Damage costs'!$C$16:$C$43,0))/1000,BY53*INDEX('Damage costs'!$S$16:$S$43,MATCH($B61,'Damage costs'!$C$16:$C$43,0))/1000),\"\")","v":0},{"$f":"IFERROR(IF(OR($C$67=FALSE,LEFT($B61,3)<>\"NOX\"),BZ53*INDEX('Damage costs'!$O$16:$O$43,MATCH($B61,'Damage costs'!$C$16:$C$43,0))/1000,BZ53*INDEX('Damage costs'!$S$16:$S$43,MATCH($B61,'Damage costs'!$C$16:$C$43,0))/1000),\"\")","v":0},{"$f":"IFERROR(IF(OR($C$67=FALSE,LEFT($B61,3)<>\"NOX\"),CA53*INDEX('Damage costs'!$O$16:$O$43,MATCH($B61,'Damage costs'!$C$16:$C$43,0))/1000,CA53*INDEX('Damage costs'!$S$16:$S$43,MATCH($B61,'Damage costs'!$C$16:$C$43,0))/1000),\"\")","v":0},{"$f":"IFERROR(IF(OR($C$67=FALSE,LEFT($B61,3)<>\"NOX\"),CB53*INDEX('Damage costs'!$O$16:$O$43,MATCH($B61,'Damage costs'!$C$16:$C$43,0))/1000,CB53*INDEX('Damage costs'!$S$16:$S$43,MATCH($B61,'Damage costs'!$C$16:$C$43,0))/1000),\"\")","v":0},{"$f":"IFERROR(IF(OR($C$67=FALSE,LEFT($B61,3)<>\"NOX\"),CC53*INDEX('Damage costs'!$O$16:$O$43,MATCH($B61,'Damage costs'!$C$16:$C$43,0))/1000,CC53*INDEX('Damage costs'!$S$16:$S$43,MATCH($B61,'Damage costs'!$C$16:$C$43,0))/1000),\"\")","v":0},{"$f":"IFERROR(IF(OR($C$67=FALSE,LEFT($B61,3)<>\"NOX\"),CD53*INDEX('Damage costs'!$O$16:$O$43,MATCH($B61,'Damage costs'!$C$16:$C$43,0))/1000,CD53*INDEX('Damage costs'!$S$16:$S$43,MATCH($B61,'Damage costs'!$C$16:$C$43,0))/1000),\"\")","v":0},{"$f":"IFERROR(IF(OR($C$67=FALSE,LEFT($B61,3)<>\"NOX\"),CE53*INDEX('Damage costs'!$O$16:$O$43,MATCH($B61,'Damage costs'!$C$16:$C$43,0))/1000,CE53*INDEX('Damage costs'!$S$16:$S$43,MATCH($B61,'Damage costs'!$C$16:$C$43,0))/1000),\"\")","v":0},{"$f":"IFERROR(IF(OR($C$67=FALSE,LEFT($B61,3)<>\"NOX\"),CF53*INDEX('Damage costs'!$O$16:$O$43,MATCH($B61,'Damage costs'!$C$16:$C$43,0))/1000,CF53*INDEX('Damage costs'!$S$16:$S$43,MATCH($B61,'Damage costs'!$C$16:$C$43,0))/1000),\"\")","v":0},{"$f":"IFERROR(IF(OR($C$67=FALSE,LEFT($B61,3)<>\"NOX\"),CG53*INDEX('Damage costs'!$O$16:$O$43,MATCH($B61,'Damage costs'!$C$16:$C$43,0))/1000,CG53*INDEX('Damage costs'!$S$16:$S$43,MATCH($B61,'Damage costs'!$C$16:$C$43,0))/1000),\"\")","v":0},{"$f":"IFERROR(IF(OR($C$67=FALSE,LEFT($B61,3)<>\"NOX\"),CH53*INDEX('Damage costs'!$O$16:$O$43,MATCH($B61,'Damage costs'!$C$16:$C$43,0))/1000,CH53*INDEX('Damage costs'!$S$16:$S$43,MATCH($B61,'Damage costs'!$C$16:$C$43,0))/1000),\"\")","v":0},{"$f":"IFERROR(IF(OR($C$67=FALSE,LEFT($B61,3)<>\"NOX\"),CI53*INDEX('Damage costs'!$O$16:$O$43,MATCH($B61,'Damage costs'!$C$16:$C$43,0))/1000,CI53*INDEX('Damage costs'!$S$16:$S$43,MATCH($B61,'Damage costs'!$C$16:$C$43,0))/1000),\"\")","v":0},{"$f":"IFERROR(IF(OR($C$67=FALSE,LEFT($B61,3)<>\"NOX\"),CJ53*INDEX('Damage costs'!$O$16:$O$43,MATCH($B61,'Damage costs'!$C$16:$C$43,0))/1000,CJ53*INDEX('Damage costs'!$S$16:$S$43,MATCH($B61,'Damage costs'!$C$16:$C$43,0))/1000),\"\")","v":0},{"$f":"IFERROR(IF(OR($C$67=FALSE,LEFT($B61,3)<>\"NOX\"),CK53*INDEX('Damage costs'!$O$16:$O$43,MATCH($B61,'Damage costs'!$C$16:$C$43,0))/1000,CK53*INDEX('Damage costs'!$S$16:$S$43,MATCH($B61,'Damage costs'!$C$16:$C$43,0))/1000),\"\")","v":0},{"$f":"IFERROR(IF(OR($C$67=FALSE,LEFT($B61,3)<>\"NOX\"),CL53*INDEX('Damage costs'!$O$16:$O$43,MATCH($B61,'Damage costs'!$C$16:$C$43,0))/1000,CL53*INDEX('Damage costs'!$S$16:$S$43,MATCH($B61,'Damage costs'!$C$16:$C$43,0))/1000),\"\")","v":0},{"$f":"IFERROR(IF(OR($C$67=FALSE,LEFT($B61,3)<>\"NOX\"),CM53*INDEX('Damage costs'!$O$16:$O$43,MATCH($B61,'Damage costs'!$C$16:$C$43,0))/1000,CM53*INDEX('Damage costs'!$S$16:$S$43,MATCH($B61,'Damage costs'!$C$16:$C$43,0))/1000),\"\")","v":0},{"$f":"IFERROR(IF(OR($C$67=FALSE,LEFT($B61,3)<>\"NOX\"),CN53*INDEX('Damage costs'!$O$16:$O$43,MATCH($B61,'Damage costs'!$C$16:$C$43,0))/1000,CN53*INDEX('Damage costs'!$S$16:$S$43,MATCH($B61,'Damage costs'!$C$16:$C$43,0))/1000),\"\")","v":0},{"$f":"IFERROR(IF(OR($C$67=FALSE,LEFT($B61,3)<>\"NOX\"),CO53*INDEX('Damage costs'!$O$16:$O$43,MATCH($B61,'Damage costs'!$C$16:$C$43,0))/1000,CO53*INDEX('Damage costs'!$S$16:$S$43,MATCH($B61,'Damage costs'!$C$16:$C$43,0))/1000),\"\")","v":0},{"$f":"IFERROR(IF(OR($C$67=FALSE,LEFT($B61,3)<>\"NOX\"),CP53*INDEX('Damage costs'!$O$16:$O$43,MATCH($B61,'Damage costs'!$C$16:$C$43,0))/1000,CP53*INDEX('Damage costs'!$S$16:$S$43,MATCH($B61,'Damage costs'!$C$16:$C$43,0))/1000),\"\")","v":0},{"$f":"IFERROR(IF(OR($C$67=FALSE,LEFT($B61,3)<>\"NOX\"),CQ53*INDEX('Damage costs'!$O$16:$O$43,MATCH($B61,'Damage costs'!$C$16:$C$43,0))/1000,CQ53*INDEX('Damage costs'!$S$16:$S$43,MATCH($B61,'Damage costs'!$C$16:$C$43,0))/1000),\"\")","v":0},{"$f":"IFERROR(IF(OR($C$67=FALSE,LEFT($B61,3)<>\"NOX\"),CR53*INDEX('Damage costs'!$O$16:$O$43,MATCH($B61,'Damage costs'!$C$16:$C$43,0))/1000,CR53*INDEX('Damage costs'!$S$16:$S$43,MATCH($B61,'Damage costs'!$C$16:$C$43,0))/1000),\"\")","v":0},{"$f":"IFERROR(IF(OR($C$67=FALSE,LEFT($B61,3)<>\"NOX\"),CS53*INDEX('Damage costs'!$O$16:$O$43,MATCH($B61,'Damage costs'!$C$16:$C$43,0))/1000,CS53*INDEX('Damage costs'!$S$16:$S$43,MATCH($B61,'Damage costs'!$C$16:$C$43,0))/1000),\"\")","v":0},{"$f":"IFERROR(IF(OR($C$67=FALSE,LEFT($B61,3)<>\"NOX\"),CT53*INDEX('Damage costs'!$O$16:$O$43,MATCH($B61,'Damage costs'!$C$16:$C$43,0))/1000,CT53*INDEX('Damage costs'!$S$16:$S$43,MATCH($B61,'Damage costs'!$C$16:$C$43,0))/1000),\"\")","v":0},{"$f":"IFERROR(IF(OR($C$67=FALSE,LEFT($B61,3)<>\"NOX\"),CU53*INDEX('Damage costs'!$O$16:$O$43,MATCH($B61,'Damage costs'!$C$16:$C$43,0))/1000,CU53*INDEX('Damage costs'!$S$16:$S$43,MATCH($B61,'Damage costs'!$C$16:$C$43,0))/1000),\"\")","v":0},{"$f":"IFERROR(IF(OR($C$67=FALSE,LEFT($B61,3)<>\"NOX\"),CV53*INDEX('Damage costs'!$O$16:$O$43,MATCH($B61,'Damage costs'!$C$16:$C$43,0))/1000,CV53*INDEX('Damage costs'!$S$16:$S$43,MATCH($B61,'Damage costs'!$C$16:$C$43,0))/1000),\"\")","v":0},{"$f":"IFERROR(IF(OR($C$67=FALSE,LEFT($B61,3)<>\"NOX\"),CW53*INDEX('Damage costs'!$O$16:$O$43,MATCH($B61,'Damage costs'!$C$16:$C$43,0))/1000,CW53*INDEX('Damage costs'!$S$16:$S$43,MATCH($B61,'Damage costs'!$C$16:$C$43,0))/1000),\"\")","v":0},{"$f":"IFERROR(IF(OR($C$67=FALSE,LEFT($B61,3)<>\"NOX\"),CX53*INDEX('Damage costs'!$O$16:$O$43,MATCH($B61,'Damage costs'!$C$16:$C$43,0))/1000,CX53*INDEX('Damage costs'!$S$16:$S$43,MATCH($B61,'Damage costs'!$C$16:$C$43,0))/1000),\"\")","v":0},{"$f":"IFERROR(IF(OR($C$67=FALSE,LEFT($B61,3)<>\"NOX\"),CY53*INDEX('Damage costs'!$O$16:$O$43,MATCH($B61,'Damage costs'!$C$16:$C$43,0))/1000,CY53*INDEX('Damage costs'!$S$16:$S$43,MATCH($B61,'Damage costs'!$C$16:$C$43,0))/1000),\"\")","v":0}]
[null,0,"£000's",{"$f":"IFERROR(IF(OR($C$67=FALSE,LEFT($B62,3)<>\"NOX\"),D54*INDEX('Damage costs'!$O$16:$O$43,MATCH($B62,'Damage costs'!$C$16:$C$43,0))/1000,D54*INDEX('Damage costs'!$S$16:$S$43,MATCH($B62,'Damage costs'!$C$16:$C$43,0))/1000),\"\")","v":""},{"$f":"IFERROR(IF(OR($C$67=FALSE,LEFT($B62,3)<>\"NOX\"),E54*INDEX('Damage costs'!$O$16:$O$43,MATCH($B62,'Damage costs'!$C$16:$C$43,0))/1000,E54*INDEX('Damage costs'!$S$16:$S$43,MATCH($B62,'Damage costs'!$C$16:$C$43,0))/1000),\"\")","v":""},{"$f":"IFERROR(IF(OR($C$67=FALSE,LEFT($B62,3)<>\"NOX\"),F54*INDEX('Damage costs'!$O$16:$O$43,MATCH($B62,'Damage costs'!$C$16:$C$43,0))/1000,F54*INDEX('Damage costs'!$S$16:$S$43,MATCH($B62,'Damage costs'!$C$16:$C$43,0))/1000),\"\")","v":""},{"$f":"IFERROR(IF(OR($C$67=FALSE,LEFT($B62,3)<>\"NOX\"),G54*INDEX('Damage costs'!$O$16:$O$43,MATCH($B62,'Damage costs'!$C$16:$C$43,0))/1000,G54*INDEX('Damage costs'!$S$16:$S$43,MATCH($B62,'Damage costs'!$C$16:$C$43,0))/1000),\"\")","v":""},{"$f":"IFERROR(IF(OR($C$67=FALSE,LEFT($B62,3)<>\"NOX\"),H54*INDEX('Damage costs'!$O$16:$O$43,MATCH($B62,'Damage costs'!$C$16:$C$43,0))/1000,H54*INDEX('Damage costs'!$S$16:$S$43,MATCH($B62,'Damage costs'!$C$16:$C$43,0))/1000),\"\")","v":""},{"$f":"IFERROR(IF(OR($C$67=FALSE,LEFT($B62,3)<>\"NOX\"),I54*INDEX('Damage costs'!$O$16:$O$43,MATCH($B62,'Damage costs'!$C$16:$C$43,0))/1000,I54*INDEX('Damage costs'!$S$16:$S$43,MATCH($B62,'Damage costs'!$C$16:$C$43,0))/1000),\"\")","v":""},{"$f":"IFERROR(IF(OR($C$67=FALSE,LEFT($B62,3)<>\"NOX\"),J54*INDEX('Damage costs'!$O$16:$O$43,MATCH($B62,'Damage costs'!$C$16:$C$43,0))/1000,J54*INDEX('Damage costs'!$S$16:$S$43,MATCH($B62,'Damage costs'!$C$16:$C$43,0))/1000),\"\")","v":""},{"$f":"IFERROR(IF(OR($C$67=FALSE,LEFT($B62,3)<>\"NOX\"),K54*INDEX('Damage costs'!$O$16:$O$43,MATCH($B62,'Damage costs'!$C$16:$C$43,0))/1000,K54*INDEX('Damage costs'!$S$16:$S$43,MATCH($B62,'Damage costs'!$C$16:$C$43,0))/1000),\"\")","v":""},{"$f":"IFERROR(IF(OR($C$67=FALSE,LEFT($B62,3)<>\"NOX\"),L54*INDEX('Damage costs'!$O$16:$O$43,MATCH($B62,'Damage costs'!$C$16:$C$43,0))/1000,L54*INDEX('Damage costs'!$S$16:$S$43,MATCH($B62,'Damage costs'!$C$16:$C$43,0))/1000),\"\")","v":""},{"$f":"IFERROR(IF(OR($C$67=FALSE,LEFT($B62,3)<>\"NOX\"),M54*INDEX('Damage costs'!$O$16:$O$43,MATCH($B62,'Damage costs'!$C$16:$C$43,0))/1000,M54*INDEX('Damage costs'!$S$16:$S$43,MATCH($B62,'Damage costs'!$C$16:$C$43,0))/1000),\"\")","v":""},{"$f":"IFERROR(IF(OR($C$67=FALSE,LEFT($B62,3)<>\"NOX\"),N54*INDEX('Damage costs'!$O$16:$O$43,MATCH($B62,'Damage costs'!$C$16:$C$43,0))/1000,N54*INDEX('Damage costs'!$S$16:$S$43,MATCH($B62,'Damage costs'!$C$16:$C$43,0))/1000),\"\")","v":""},{"$f":"IFERROR(IF(OR($C$67=FALSE,LEFT($B62,3)<>\"NOX\"),O54*INDEX('Damage costs'!$O$16:$O$43,MATCH($B62,'Damage costs'!$C$16:$C$43,0))/1000,O54*INDEX('Damage costs'!$S$16:$S$43,MATCH($B62,'Damage costs'!$C$16:$C$43,0))/1000),\"\")","v":""},{"$f":"IFERROR(IF(OR($C$67=FALSE,LEFT($B62,3)<>\"NOX\"),P54*INDEX('Damage costs'!$O$16:$O$43,MATCH($B62,'Damage costs'!$C$16:$C$43,0))/1000,P54*INDEX('Damage costs'!$S$16:$S$43,MATCH($B62,'Damage costs'!$C$16:$C$43,0))/1000),\"\")","v":""},{"$f":"IFERROR(IF(OR($C$67=FALSE,LEFT($B62,3)<>\"NOX\"),Q54*INDEX('Damage costs'!$O$16:$O$43,MATCH($B62,'Damage costs'!$C$16:$C$43,0))/1000,Q54*INDEX('Damage costs'!$S$16:$S$43,MATCH($B62,'Damage costs'!$C$16:$C$43,0))/1000),\"\")","v":""},{"$f":"IFERROR(IF(OR($C$67=FALSE,LEFT($B62,3)<>\"NOX\"),R54*INDEX('Damage costs'!$O$16:$O$43,MATCH($B62,'Damage costs'!$C$16:$C$43,0))/1000,R54*INDEX('Damage costs'!$S$16:$S$43,MATCH($B62,'Damage costs'!$C$16:$C$43,0))/1000),\"\")","v":""},{"$f":"IFERROR(IF(OR($C$67=FALSE,LEFT($B62,3)<>\"NOX\"),S54*INDEX('Damage costs'!$O$16:$O$43,MATCH($B62,'Damage costs'!$C$16:$C$43,0))/1000,S54*INDEX('Damage costs'!$S$16:$S$43,MATCH($B62,'Damage costs'!$C$16:$C$43,0))/1000),\"\")","v":""},{"$f":"IFERROR(IF(OR($C$67=FALSE,LEFT($B62,3)<>\"NOX\"),T54*INDEX('Damage costs'!$O$16:$O$43,MATCH($B62,'Damage costs'!$C$16:$C$43,0))/1000,T54*INDEX('Damage costs'!$S$16:$S$43,MATCH($B62,'Damage costs'!$C$16:$C$43,0))/1000),\"\")","v":""},{"$f":"IFERROR(IF(OR($C$67=FALSE,LEFT($B62,3)<>\"NOX\"),U54*INDEX('Damage costs'!$O$16:$O$43,MATCH($B62,'Damage costs'!$C$16:$C$43,0))/1000,U54*INDEX('Damage costs'!$S$16:$S$43,MATCH($B62,'Damage costs'!$C$16:$C$43,0))/1000),\"\")","v":""},{"$f":"IFERROR(IF(OR($C$67=FALSE,LEFT($B62,3)<>\"NOX\"),V54*INDEX('Damage costs'!$O$16:$O$43,MATCH($B62,'Damage costs'!$C$16:$C$43,0))/1000,V54*INDEX('Damage costs'!$S$16:$S$43,MATCH($B62,'Damage costs'!$C$16:$C$43,0))/1000),\"\")","v":""},{"$f":"IFERROR(IF(OR($C$67=FALSE,LEFT($B62,3)<>\"NOX\"),W54*INDEX('Damage costs'!$O$16:$O$43,MATCH($B62,'Damage costs'!$C$16:$C$43,0))/1000,W54*INDEX('Damage costs'!$S$16:$S$43,MATCH($B62,'Damage costs'!$C$16:$C$43,0))/1000),\"\")","v":""},{"$f":"IFERROR(IF(OR($C$67=FALSE,LEFT($B62,3)<>\"NOX\"),X54*INDEX('Damage costs'!$O$16:$O$43,MATCH($B62,'Damage costs'!$C$16:$C$43,0))/1000,X54*INDEX('Damage costs'!$S$16:$S$43,MATCH($B62,'Damage costs'!$C$16:$C$43,0))/1000),\"\")","v":""},{"$f":"IFERROR(IF(OR($C$67=FALSE,LEFT($B62,3)<>\"NOX\"),Y54*INDEX('Damage costs'!$O$16:$O$43,MATCH($B62,'Damage costs'!$C$16:$C$43,0))/1000,Y54*INDEX('Damage costs'!$S$16:$S$43,MATCH($B62,'Damage costs'!$C$16:$C$43,0))/1000),\"\")","v":""},{"$f":"IFERROR(IF(OR($C$67=FALSE,LEFT($B62,3)<>\"NOX\"),Z54*INDEX('Damage costs'!$O$16:$O$43,MATCH($B62,'Damage costs'!$C$16:$C$43,0))/1000,Z54*INDEX('Damage costs'!$S$16:$S$43,MATCH($B62,'Damage costs'!$C$16:$C$43,0))/1000),\"\")","v":""},{"$f":"IFERROR(IF(OR($C$67=FALSE,LEFT($B62,3)<>\"NOX\"),AA54*INDEX('Damage costs'!$O$16:$O$43,MATCH($B62,'Damage costs'!$C$16:$C$43,0))/1000,AA54*INDEX('Damage costs'!$S$16:$S$43,MATCH($B62,'Damage costs'!$C$16:$C$43,0))/1000),\"\")","v":""},{"$f":"IFERROR(IF(OR($C$67=FALSE,LEFT($B62,3)<>\"NOX\"),AB54*INDEX('Damage costs'!$O$16:$O$43,MATCH($B62,'Damage costs'!$C$16:$C$43,0))/1000,AB54*INDEX('Damage costs'!$S$16:$S$43,MATCH($B62,'Damage costs'!$C$16:$C$43,0))/1000),\"\")","v":""},{"$f":"IFERROR(IF(OR($C$67=FALSE,LEFT($B62,3)<>\"NOX\"),AC54*INDEX('Damage costs'!$O$16:$O$43,MATCH($B62,'Damage costs'!$C$16:$C$43,0))/1000,AC54*INDEX('Damage costs'!$S$16:$S$43,MATCH($B62,'Damage costs'!$C$16:$C$43,0))/1000),\"\")","v":""},{"$f":"IFERROR(IF(OR($C$67=FALSE,LEFT($B62,3)<>\"NOX\"),AD54*INDEX('Damage costs'!$O$16:$O$43,MATCH($B62,'Damage costs'!$C$16:$C$43,0))/1000,AD54*INDEX('Damage costs'!$S$16:$S$43,MATCH($B62,'Damage costs'!$C$16:$C$43,0))/1000),\"\")","v":""},{"$f":"IFERROR(IF(OR($C$67=FALSE,LEFT($B62,3)<>\"NOX\"),AE54*INDEX('Damage costs'!$O$16:$O$43,MATCH($B62,'Damage costs'!$C$16:$C$43,0))/1000,AE54*INDEX('Damage costs'!$S$16:$S$43,MATCH($B62,'Damage costs'!$C$16:$C$43,0))/1000),\"\")","v":""},{"$f":"IFERROR(IF(OR($C$67=FALSE,LEFT($B62,3)<>\"NOX\"),AF54*INDEX('Damage costs'!$O$16:$O$43,MATCH($B62,'Damage costs'!$C$16:$C$43,0))/1000,AF54*INDEX('Damage costs'!$S$16:$S$43,MATCH($B62,'Damage costs'!$C$16:$C$43,0))/1000),\"\")","v":""},{"$f":"IFERROR(IF(OR($C$67=FALSE,LEFT($B62,3)<>\"NOX\"),AG54*INDEX('Damage costs'!$O$16:$O$43,MATCH($B62,'Damage costs'!$C$16:$C$43,0))/1000,AG54*INDEX('Damage costs'!$S$16:$S$43,MATCH($B62,'Damage costs'!$C$16:$C$43,0))/1000),\"\")","v":""},{"$f":"IFERROR(IF(OR($C$67=FALSE,LEFT($B62,3)<>\"NOX\"),AH54*INDEX('Damage costs'!$O$16:$O$43,MATCH($B62,'Damage costs'!$C$16:$C$43,0))/1000,AH54*INDEX('Damage costs'!$S$16:$S$43,MATCH($B62,'Damage costs'!$C$16:$C$43,0))/1000),\"\")","v":""},{"$f":"IFERROR(IF(OR($C$67=FALSE,LEFT($B62,3)<>\"NOX\"),AI54*INDEX('Damage costs'!$O$16:$O$43,MATCH($B62,'Damage costs'!$C$16:$C$43,0))/1000,AI54*INDEX('Damage costs'!$S$16:$S$43,MATCH($B62,'Damage costs'!$C$16:$C$43,0))/1000),\"\")","v":""},{"$f":"IFERROR(IF(OR($C$67=FALSE,LEFT($B62,3)<>\"NOX\"),AJ54*INDEX('Damage costs'!$O$16:$O$43,MATCH($B62,'Damage costs'!$C$16:$C$43,0))/1000,AJ54*INDEX('Damage costs'!$S$16:$S$43,MATCH($B62,'Damage costs'!$C$16:$C$43,0))/1000),\"\")","v":""},{"$f":"IFERROR(IF(OR($C$67=FALSE,LEFT($B62,3)<>\"NOX\"),AK54*INDEX('Damage costs'!$O$16:$O$43,MATCH($B62,'Damage costs'!$C$16:$C$43,0))/1000,AK54*INDEX('Damage costs'!$S$16:$S$43,MATCH($B62,'Damage costs'!$C$16:$C$43,0))/1000),\"\")","v":""},{"$f":"IFERROR(IF(OR($C$67=FALSE,LEFT($B62,3)<>\"NOX\"),AL54*INDEX('Damage costs'!$O$16:$O$43,MATCH($B62,'Damage costs'!$C$16:$C$43,0))/1000,AL54*INDEX('Damage costs'!$S$16:$S$43,MATCH($B62,'Damage costs'!$C$16:$C$43,0))/1000),\"\")","v":""},{"$f":"IFERROR(IF(OR($C$67=FALSE,LEFT($B62,3)<>\"NOX\"),AM54*INDEX('Damage costs'!$O$16:$O$43,MATCH($B62,'Damage costs'!$C$16:$C$43,0))/1000,AM54*INDEX('Damage costs'!$S$16:$S$43,MATCH($B62,'Damage costs'!$C$16:$C$43,0))/1000),\"\")","v":""},{"$f":"IFERROR(IF(OR($C$67=FALSE,LEFT($B62,3)<>\"NOX\"),AN54*INDEX('Damage costs'!$O$16:$O$43,MATCH($B62,'Damage costs'!$C$16:$C$43,0))/1000,AN54*INDEX('Damage costs'!$S$16:$S$43,MATCH($B62,'Damage costs'!$C$16:$C$43,0))/1000),\"\")","v":""},{"$f":"IFERROR(IF(OR($C$67=FALSE,LEFT($B62,3)<>\"NOX\"),AO54*INDEX('Damage costs'!$O$16:$O$43,MATCH($B62,'Damage costs'!$C$16:$C$43,0))/1000,AO54*INDEX('Damage costs'!$S$16:$S$43,MATCH($B62,'Damage costs'!$C$16:$C$43,0))/1000),\"\")","v":""},{"$f":"IFERROR(IF(OR($C$67=FALSE,LEFT($B62,3)<>\"NOX\"),AP54*INDEX('Damage costs'!$O$16:$O$43,MATCH($B62,'Damage costs'!$C$16:$C$43,0))/1000,AP54*INDEX('Damage costs'!$S$16:$S$43,MATCH($B62,'Damage costs'!$C$16:$C$43,0))/1000),\"\")","v":""},{"$f":"IFERROR(IF(OR($C$67=FALSE,LEFT($B62,3)<>\"NOX\"),AQ54*INDEX('Damage costs'!$O$16:$O$43,MATCH($B62,'Damage costs'!$C$16:$C$43,0))/1000,AQ54*INDEX('Damage costs'!$S$16:$S$43,MATCH($B62,'Damage costs'!$C$16:$C$43,0))/1000),\"\")","v":""},{"$f":"IFERROR(IF(OR($C$67=FALSE,LEFT($B62,3)<>\"NOX\"),AR54*INDEX('Damage costs'!$O$16:$O$43,MATCH($B62,'Damage costs'!$C$16:$C$43,0))/1000,AR54*INDEX('Damage costs'!$S$16:$S$43,MATCH($B62,'Damage costs'!$C$16:$C$43,0))/1000),\"\")","v":""},{"$f":"IFERROR(IF(OR($C$67=FALSE,LEFT($B62,3)<>\"NOX\"),AS54*INDEX('Damage costs'!$O$16:$O$43,MATCH($B62,'Damage costs'!$C$16:$C$43,0))/1000,AS54*INDEX('Damage costs'!$S$16:$S$43,MATCH($B62,'Damage costs'!$C$16:$C$43,0))/1000),\"\")","v":""},{"$f":"IFERROR(IF(OR($C$67=FALSE,LEFT($B62,3)<>\"NOX\"),AT54*INDEX('Damage costs'!$O$16:$O$43,MATCH($B62,'Damage costs'!$C$16:$C$43,0))/1000,AT54*INDEX('Damage costs'!$S$16:$S$43,MATCH($B62,'Damage costs'!$C$16:$C$43,0))/1000),\"\")","v":""},{"$f":"IFERROR(IF(OR($C$67=FALSE,LEFT($B62,3)<>\"NOX\"),AU54*INDEX('Damage costs'!$O$16:$O$43,MATCH($B62,'Damage costs'!$C$16:$C$43,0))/1000,AU54*INDEX('Damage costs'!$S$16:$S$43,MATCH($B62,'Damage costs'!$C$16:$C$43,0))/1000),\"\")","v":""},{"$f":"IFERROR(IF(OR($C$67=FALSE,LEFT($B62,3)<>\"NOX\"),AV54*INDEX('Damage costs'!$O$16:$O$43,MATCH($B62,'Damage costs'!$C$16:$C$43,0))/1000,AV54*INDEX('Damage costs'!$S$16:$S$43,MATCH($B62,'Damage costs'!$C$16:$C$43,0))/1000),\"\")","v":""},{"$f":"IFERROR(IF(OR($C$67=FALSE,LEFT($B62,3)<>\"NOX\"),AW54*INDEX('Damage costs'!$O$16:$O$43,MATCH($B62,'Damage costs'!$C$16:$C$43,0))/1000,AW54*INDEX('Damage costs'!$S$16:$S$43,MATCH($B62,'Damage costs'!$C$16:$C$43,0))/1000),\"\")","v":""},{"$f":"IFERROR(IF(OR($C$67=FALSE,LEFT($B62,3)<>\"NOX\"),AX54*INDEX('Damage costs'!$O$16:$O$43,MATCH($B62,'Damage costs'!$C$16:$C$43,0))/1000,AX54*INDEX('Damage costs'!$S$16:$S$43,MATCH($B62,'Damage costs'!$C$16:$C$43,0))/1000),\"\")","v":""},{"$f":"IFERROR(IF(OR($C$67=FALSE,LEFT($B62,3)<>\"NOX\"),AY54*INDEX('Damage costs'!$O$16:$O$43,MATCH($B62,'Damage costs'!$C$16:$C$43,0))/1000,AY54*INDEX('Damage costs'!$S$16:$S$43,MATCH($B62,'Damage costs'!$C$16:$C$43,0))/1000),\"\")","v":""},{"$f":"IFERROR(IF(OR($C$67=FALSE,LEFT($B62,3)<>\"NOX\"),AZ54*INDEX('Damage costs'!$O$16:$O$43,MATCH($B62,'Damage costs'!$C$16:$C$43,0))/1000,AZ54*INDEX('Damage costs'!$S$16:$S$43,MATCH($B62,'Damage costs'!$C$16:$C$43,0))/1000),\"\")","v":""},{"$f":"IFERROR(IF(OR($C$67=FALSE,LEFT($B62,3)<>\"NOX\"),BA54*INDEX('Damage costs'!$O$16:$O$43,MATCH($B62,'Damage costs'!$C$16:$C$43,0))/1000,BA54*INDEX('Damage costs'!$S$16:$S$43,MATCH($B62,'Damage costs'!$C$16:$C$43,0))/1000),\"\")","v":""},{"$f":"IFERROR(IF(OR($C$67=FALSE,LEFT($B62,3)<>\"NOX\"),BB54*INDEX('Damage costs'!$O$16:$O$43,MATCH($B62,'Damage costs'!$C$16:$C$43,0))/1000,BB54*INDEX('Damage costs'!$S$16:$S$43,MATCH($B62,'Damage costs'!$C$16:$C$43,0))/1000),\"\")","v":""},{"$f":"IFERROR(IF(OR($C$67=FALSE,LEFT($B62,3)<>\"NOX\"),BC54*INDEX('Damage costs'!$O$16:$O$43,MATCH($B62,'Damage costs'!$C$16:$C$43,0))/1000,BC54*INDEX('Damage costs'!$S$16:$S$43,MATCH($B62,'Damage costs'!$C$16:$C$43,0))/1000),\"\")","v":""},{"$f":"IFERROR(IF(OR($C$67=FALSE,LEFT($B62,3)<>\"NOX\"),BD54*INDEX('Damage costs'!$O$16:$O$43,MATCH($B62,'Damage costs'!$C$16:$C$43,0))/1000,BD54*INDEX('Damage costs'!$S$16:$S$43,MATCH($B62,'Damage costs'!$C$16:$C$43,0))/1000),\"\")","v":""},{"$f":"IFERROR(IF(OR($C$67=FALSE,LEFT($B62,3)<>\"NOX\"),BE54*INDEX('Damage costs'!$O$16:$O$43,MATCH($B62,'Damage costs'!$C$16:$C$43,0))/1000,BE54*INDEX('Damage costs'!$S$16:$S$43,MATCH($B62,'Damage costs'!$C$16:$C$43,0))/1000),\"\")","v":""},{"$f":"IFERROR(IF(OR($C$67=FALSE,LEFT($B62,3)<>\"NOX\"),BF54*INDEX('Damage costs'!$O$16:$O$43,MATCH($B62,'Damage costs'!$C$16:$C$43,0))/1000,BF54*INDEX('Damage costs'!$S$16:$S$43,MATCH($B62,'Damage costs'!$C$16:$C$43,0))/1000),\"\")","v":""},{"$f":"IFERROR(IF(OR($C$67=FALSE,LEFT($B62,3)<>\"NOX\"),BG54*INDEX('Damage costs'!$O$16:$O$43,MATCH($B62,'Damage costs'!$C$16:$C$43,0))/1000,BG54*INDEX('Damage costs'!$S$16:$S$43,MATCH($B62,'Damage costs'!$C$16:$C$43,0))/1000),\"\")","v":""},{"$f":"IFERROR(IF(OR($C$67=FALSE,LEFT($B62,3)<>\"NOX\"),BH54*INDEX('Damage costs'!$O$16:$O$43,MATCH($B62,'Damage costs'!$C$16:$C$43,0))/1000,BH54*INDEX('Damage costs'!$S$16:$S$43,MATCH($B62,'Damage costs'!$C$16:$C$43,0))/1000),\"\")","v":""},{"$f":"IFERROR(IF(OR($C$67=FALSE,LEFT($B62,3)<>\"NOX\"),BI54*INDEX('Damage costs'!$O$16:$O$43,MATCH($B62,'Damage costs'!$C$16:$C$43,0))/1000,BI54*INDEX('Damage costs'!$S$16:$S$43,MATCH($B62,'Damage costs'!$C$16:$C$43,0))/1000),\"\")","v":""},{"$f":"IFERROR(IF(OR($C$67=FALSE,LEFT($B62,3)<>\"NOX\"),BJ54*INDEX('Damage costs'!$O$16:$O$43,MATCH($B62,'Damage costs'!$C$16:$C$43,0))/1000,BJ54*INDEX('Damage costs'!$S$16:$S$43,MATCH($B62,'Damage costs'!$C$16:$C$43,0))/1000),\"\")","v":""},{"$f":"IFERROR(IF(OR($C$67=FALSE,LEFT($B62,3)<>\"NOX\"),BK54*INDEX('Damage costs'!$O$16:$O$43,MATCH($B62,'Damage costs'!$C$16:$C$43,0))/1000,BK54*INDEX('Damage costs'!$S$16:$S$43,MATCH($B62,'Damage costs'!$C$16:$C$43,0))/1000),\"\")","v":""},{"$f":"IFERROR(IF(OR($C$67=FALSE,LEFT($B62,3)<>\"NOX\"),BL54*INDEX('Damage costs'!$O$16:$O$43,MATCH($B62,'Damage costs'!$C$16:$C$43,0))/1000,BL54*INDEX('Damage costs'!$S$16:$S$43,MATCH($B62,'Damage costs'!$C$16:$C$43,0))/1000),\"\")","v":""},{"$f":"IFERROR(IF(OR($C$67=FALSE,LEFT($B62,3)<>\"NOX\"),BM54*INDEX('Damage costs'!$O$16:$O$43,MATCH($B62,'Damage costs'!$C$16:$C$43,0))/1000,BM54*INDEX('Damage costs'!$S$16:$S$43,MATCH($B62,'Damage costs'!$C$16:$C$43,0))/1000),\"\")","v":""},{"$f":"IFERROR(IF(OR($C$67=FALSE,LEFT($B62,3)<>\"NOX\"),BN54*INDEX('Damage costs'!$O$16:$O$43,MATCH($B62,'Damage costs'!$C$16:$C$43,0))/1000,BN54*INDEX('Damage costs'!$S$16:$S$43,MATCH($B62,'Damage costs'!$C$16:$C$43,0))/1000),\"\")","v":""},{"$f":"IFERROR(IF(OR($C$67=FALSE,LEFT($B62,3)<>\"NOX\"),BO54*INDEX('Damage costs'!$O$16:$O$43,MATCH($B62,'Damage costs'!$C$16:$C$43,0))/1000,BO54*INDEX('Damage costs'!$S$16:$S$43,MATCH($B62,'Damage costs'!$C$16:$C$43,0))/1000),\"\")","v":""},{"$f":"IFERROR(IF(OR($C$67=FALSE,LEFT($B62,3)<>\"NOX\"),BP54*INDEX('Damage costs'!$O$16:$O$43,MATCH($B62,'Damage costs'!$C$16:$C$43,0))/1000,BP54*INDEX('Damage costs'!$S$16:$S$43,MATCH($B62,'Damage costs'!$C$16:$C$43,0))/1000),\"\")","v":""},{"$f":"IFERROR(IF(OR($C$67=FALSE,LEFT($B62,3)<>\"NOX\"),BQ54*INDEX('Damage costs'!$O$16:$O$43,MATCH($B62,'Damage costs'!$C$16:$C$43,0))/1000,BQ54*INDEX('Damage costs'!$S$16:$S$43,MATCH($B62,'Damage costs'!$C$16:$C$43,0))/1000),\"\")","v":""},{"$f":"IFERROR(IF(OR($C$67=FALSE,LEFT($B62,3)<>\"NOX\"),BR54*INDEX('Damage costs'!$O$16:$O$43,MATCH($B62,'Damage costs'!$C$16:$C$43,0))/1000,BR54*INDEX('Damage costs'!$S$16:$S$43,MATCH($B62,'Damage costs'!$C$16:$C$43,0))/1000),\"\")","v":""},{"$f":"IFERROR(IF(OR($C$67=FALSE,LEFT($B62,3)<>\"NOX\"),BS54*INDEX('Damage costs'!$O$16:$O$43,MATCH($B62,'Damage costs'!$C$16:$C$43,0))/1000,BS54*INDEX('Damage costs'!$S$16:$S$43,MATCH($B62,'Damage costs'!$C$16:$C$43,0))/1000),\"\")","v":""},{"$f":"IFERROR(IF(OR($C$67=FALSE,LEFT($B62,3)<>\"NOX\"),BT54*INDEX('Damage costs'!$O$16:$O$43,MATCH($B62,'Damage costs'!$C$16:$C$43,0))/1000,BT54*INDEX('Damage costs'!$S$16:$S$43,MATCH($B62,'Damage costs'!$C$16:$C$43,0))/1000),\"\")","v":""},{"$f":"IFERROR(IF(OR($C$67=FALSE,LEFT($B62,3)<>\"NOX\"),BU54*INDEX('Damage costs'!$O$16:$O$43,MATCH($B62,'Damage costs'!$C$16:$C$43,0))/1000,BU54*INDEX('Damage costs'!$S$16:$S$43,MATCH($B62,'Damage costs'!$C$16:$C$43,0))/1000),\"\")","v":""},{"$f":"IFERROR(IF(OR($C$67=FALSE,LEFT($B62,3)<>\"NOX\"),BV54*INDEX('Damage costs'!$O$16:$O$43,MATCH($B62,'Damage costs'!$C$16:$C$43,0))/1000,BV54*INDEX('Damage costs'!$S$16:$S$43,MATCH($B62,'Damage costs'!$C$16:$C$43,0))/1000),\"\")","v":""},{"$f":"IFERROR(IF(OR($C$67=FALSE,LEFT($B62,3)<>\"NOX\"),BW54*INDEX('Damage costs'!$O$16:$O$43,MATCH($B62,'Damage costs'!$C$16:$C$43,0))/1000,BW54*INDEX('Damage costs'!$S$16:$S$43,MATCH($B62,'Damage costs'!$C$16:$C$43,0))/1000),\"\")","v":""},{"$f":"IFERROR(IF(OR($C$67=FALSE,LEFT($B62,3)<>\"NOX\"),BX54*INDEX('Damage costs'!$O$16:$O$43,MATCH($B62,'Damage costs'!$C$16:$C$43,0))/1000,BX54*INDEX('Damage costs'!$S$16:$S$43,MATCH($B62,'Damage costs'!$C$16:$C$43,0))/1000),\"\")","v":""},{"$f":"IFERROR(IF(OR($C$67=FALSE,LEFT($B62,3)<>\"NOX\"),BY54*INDEX('Damage costs'!$O$16:$O$43,MATCH($B62,'Damage costs'!$C$16:$C$43,0))/1000,BY54*INDEX('Damage costs'!$S$16:$S$43,MATCH($B62,'Damage costs'!$C$16:$C$43,0))/1000),\"\")","v":""},{"$f":"IFERROR(IF(OR($C$67=FALSE,LEFT($B62,3)<>\"NOX\"),BZ54*INDEX('Damage costs'!$O$16:$O$43,MATCH($B62,'Damage costs'!$C$16:$C$43,0))/1000,BZ54*INDEX('Damage costs'!$S$16:$S$43,MATCH($B62,'Damage costs'!$C$16:$C$43,0))/1000),\"\")","v":""},{"$f":"IFERROR(IF(OR($C$67=FALSE,LEFT($B62,3)<>\"NOX\"),CA54*INDEX('Damage costs'!$O$16:$O$43,MATCH($B62,'Damage costs'!$C$16:$C$43,0))/1000,CA54*INDEX('Damage costs'!$S$16:$S$43,MATCH($B62,'Damage costs'!$C$16:$C$43,0))/1000),\"\")","v":""},{"$f":"IFERROR(IF(OR($C$67=FALSE,LEFT($B62,3)<>\"NOX\"),CB54*INDEX('Damage costs'!$O$16:$O$43,MATCH($B62,'Damage costs'!$C$16:$C$43,0))/1000,CB54*INDEX('Damage costs'!$S$16:$S$43,MATCH($B62,'Damage costs'!$C$16:$C$43,0))/1000),\"\")","v":""},{"$f":"IFERROR(IF(OR($C$67=FALSE,LEFT($B62,3)<>\"NOX\"),CC54*INDEX('Damage costs'!$O$16:$O$43,MATCH($B62,'Damage costs'!$C$16:$C$43,0))/1000,CC54*INDEX('Damage costs'!$S$16:$S$43,MATCH($B62,'Damage costs'!$C$16:$C$43,0))/1000),\"\")","v":""},{"$f":"IFERROR(IF(OR($C$67=FALSE,LEFT($B62,3)<>\"NOX\"),CD54*INDEX('Damage costs'!$O$16:$O$43,MATCH($B62,'Damage costs'!$C$16:$C$43,0))/1000,CD54*INDEX('Damage costs'!$S$16:$S$43,MATCH($B62,'Damage costs'!$C$16:$C$43,0))/1000),\"\")","v":""},{"$f":"IFERROR(IF(OR($C$67=FALSE,LEFT($B62,3)<>\"NOX\"),CE54*INDEX('Damage costs'!$O$16:$O$43,MATCH($B62,'Damage costs'!$C$16:$C$43,0))/1000,CE54*INDEX('Damage costs'!$S$16:$S$43,MATCH($B62,'Damage costs'!$C$16:$C$43,0))/1000),\"\")","v":""},{"$f":"IFERROR(IF(OR($C$67=FALSE,LEFT($B62,3)<>\"NOX\"),CF54*INDEX('Damage costs'!$O$16:$O$43,MATCH($B62,'Damage costs'!$C$16:$C$43,0))/1000,CF54*INDEX('Damage costs'!$S$16:$S$43,MATCH($B62,'Damage costs'!$C$16:$C$43,0))/1000),\"\")","v":""},{"$f":"IFERROR(IF(OR($C$67=FALSE,LEFT($B62,3)<>\"NOX\"),CG54*INDEX('Damage costs'!$O$16:$O$43,MATCH($B62,'Damage costs'!$C$16:$C$43,0))/1000,CG54*INDEX('Damage costs'!$S$16:$S$43,MATCH($B62,'Damage costs'!$C$16:$C$43,0))/1000),\"\")","v":""},{"$f":"IFERROR(IF(OR($C$67=FALSE,LEFT($B62,3)<>\"NOX\"),CH54*INDEX('Damage costs'!$O$16:$O$43,MATCH($B62,'Damage costs'!$C$16:$C$43,0))/1000,CH54*INDEX('Damage costs'!$S$16:$S$43,MATCH($B62,'Damage costs'!$C$16:$C$43,0))/1000),\"\")","v":""},{"$f":"IFERROR(IF(OR($C$67=FALSE,LEFT($B62,3)<>\"NOX\"),CI54*INDEX('Damage costs'!$O$16:$O$43,MATCH($B62,'Damage costs'!$C$16:$C$43,0))/1000,CI54*INDEX('Damage costs'!$S$16:$S$43,MATCH($B62,'Damage costs'!$C$16:$C$43,0))/1000),\"\")","v":""},{"$f":"IFERROR(IF(OR($C$67=FALSE,LEFT($B62,3)<>\"NOX\"),CJ54*INDEX('Damage costs'!$O$16:$O$43,MATCH($B62,'Damage costs'!$C$16:$C$43,0))/1000,CJ54*INDEX('Damage costs'!$S$16:$S$43,MATCH($B62,'Damage costs'!$C$16:$C$43,0))/1000),\"\")","v":""},{"$f":"IFERROR(IF(OR($C$67=FALSE,LEFT($B62,3)<>\"NOX\"),CK54*INDEX('Damage costs'!$O$16:$O$43,MATCH($B62,'Damage costs'!$C$16:$C$43,0))/1000,CK54*INDEX('Damage costs'!$S$16:$S$43,MATCH($B62,'Damage costs'!$C$16:$C$43,0))/1000),\"\")","v":""},{"$f":"IFERROR(IF(OR($C$67=FALSE,LEFT($B62,3)<>\"NOX\"),CL54*INDEX('Damage costs'!$O$16:$O$43,MATCH($B62,'Damage costs'!$C$16:$C$43,0))/1000,CL54*INDEX('Damage costs'!$S$16:$S$43,MATCH($B62,'Damage costs'!$C$16:$C$43,0))/1000),\"\")","v":""},{"$f":"IFERROR(IF(OR($C$67=FALSE,LEFT($B62,3)<>\"NOX\"),CM54*INDEX('Damage costs'!$O$16:$O$43,MATCH($B62,'Damage costs'!$C$16:$C$43,0))/1000,CM54*INDEX('Damage costs'!$S$16:$S$43,MATCH($B62,'Damage costs'!$C$16:$C$43,0))/1000),\"\")","v":""},{"$f":"IFERROR(IF(OR($C$67=FALSE,LEFT($B62,3)<>\"NOX\"),CN54*INDEX('Damage costs'!$O$16:$O$43,MATCH($B62,'Damage costs'!$C$16:$C$43,0))/1000,CN54*INDEX('Damage costs'!$S$16:$S$43,MATCH($B62,'Damage costs'!$C$16:$C$43,0))/1000),\"\")","v":""},{"$f":"IFERROR(IF(OR($C$67=FALSE,LEFT($B62,3)<>\"NOX\"),CO54*INDEX('Damage costs'!$O$16:$O$43,MATCH($B62,'Damage costs'!$C$16:$C$43,0))/1000,CO54*INDEX('Damage costs'!$S$16:$S$43,MATCH($B62,'Damage costs'!$C$16:$C$43,0))/1000),\"\")","v":""},{"$f":"IFERROR(IF(OR($C$67=FALSE,LEFT($B62,3)<>\"NOX\"),CP54*INDEX('Damage costs'!$O$16:$O$43,MATCH($B62,'Damage costs'!$C$16:$C$43,0))/1000,CP54*INDEX('Damage costs'!$S$16:$S$43,MATCH($B62,'Damage costs'!$C$16:$C$43,0))/1000),\"\")","v":""},{"$f":"IFERROR(IF(OR($C$67=FALSE,LEFT($B62,3)<>\"NOX\"),CQ54*INDEX('Damage costs'!$O$16:$O$43,MATCH($B62,'Damage costs'!$C$16:$C$43,0))/1000,CQ54*INDEX('Damage costs'!$S$16:$S$43,MATCH($B62,'Damage costs'!$C$16:$C$43,0))/1000),\"\")","v":""},{"$f":"IFERROR(IF(OR($C$67=FALSE,LEFT($B62,3)<>\"NOX\"),CR54*INDEX('Damage costs'!$O$16:$O$43,MATCH($B62,'Damage costs'!$C$16:$C$43,0))/1000,CR54*INDEX('Damage costs'!$S$16:$S$43,MATCH($B62,'Damage costs'!$C$16:$C$43,0))/1000),\"\")","v":""},{"$f":"IFERROR(IF(OR($C$67=FALSE,LEFT($B62,3)<>\"NOX\"),CS54*INDEX('Damage costs'!$O$16:$O$43,MATCH($B62,'Damage costs'!$C$16:$C$43,0))/1000,CS54*INDEX('Damage costs'!$S$16:$S$43,MATCH($B62,'Damage costs'!$C$16:$C$43,0))/1000),\"\")","v":""},{"$f":"IFERROR(IF(OR($C$67=FALSE,LEFT($B62,3)<>\"NOX\"),CT54*INDEX('Damage costs'!$O$16:$O$43,MATCH($B62,'Damage costs'!$C$16:$C$43,0))/1000,CT54*INDEX('Damage costs'!$S$16:$S$43,MATCH($B62,'Damage costs'!$C$16:$C$43,0))/1000),\"\")","v":""},{"$f":"IFERROR(IF(OR($C$67=FALSE,LEFT($B62,3)<>\"NOX\"),CU54*INDEX('Damage costs'!$O$16:$O$43,MATCH($B62,'Damage costs'!$C$16:$C$43,0))/1000,CU54*INDEX('Damage costs'!$S$16:$S$43,MATCH($B62,'Damage costs'!$C$16:$C$43,0))/1000),\"\")","v":""},{"$f":"IFERROR(IF(OR($C$67=FALSE,LEFT($B62,3)<>\"NOX\"),CV54*INDEX('Damage costs'!$O$16:$O$43,MATCH($B62,'Damage costs'!$C$16:$C$43,0))/1000,CV54*INDEX('Damage costs'!$S$16:$S$43,MATCH($B62,'Damage costs'!$C$16:$C$43,0))/1000),\"\")","v":""},{"$f":"IFERROR(IF(OR($C$67=FALSE,LEFT($B62,3)<>\"NOX\"),CW54*INDEX('Damage costs'!$O$16:$O$43,MATCH($B62,'Damage costs'!$C$16:$C$43,0))/1000,CW54*INDEX('Damage costs'!$S$16:$S$43,MATCH($B62,'Damage costs'!$C$16:$C$43,0))/1000),\"\")","v":""},{"$f":"IFERROR(IF(OR($C$67=FALSE,LEFT($B62,3)<>\"NOX\"),CX54*INDEX('Damage costs'!$O$16:$O$43,MATCH($B62,'Damage costs'!$C$16:$C$43,0))/1000,CX54*INDEX('Damage costs'!$S$16:$S$43,MATCH($B62,'Damage costs'!$C$16:$C$43,0))/1000),\"\")","v":""},{"$f":"IFERROR(IF(OR($C$67=FALSE,LEFT($B62,3)<>\"NOX\"),CY54*INDEX('Damage costs'!$O$16:$O$43,MATCH($B62,'Damage costs'!$C$16:$C$43,0))/1000,CY54*INDEX('Damage costs'!$S$16:$S$43,MATCH($B62,'Damage costs'!$C$16:$C$43,0))/1000),\"\")","v":""}]
[null,0,"£000's",{"$f":"IFERROR(IF(OR($C$67=FALSE,LEFT($B63,3)<>\"NOX\"),D55*INDEX('Damage costs'!$O$16:$O$43,MATCH($B63,'Damage costs'!$C$16:$C$43,0))/1000,D55*INDEX('Damage costs'!$S$16:$S$43,MATCH($B63,'Damage costs'!$C$16:$C$43,0))/1000),\"\")","v":""},{"$f":"IFERROR(IF(OR($C$67=FALSE,LEFT($B63,3)<>\"NOX\"),E55*INDEX('Damage costs'!$O$16:$O$43,MATCH($B63,'Damage costs'!$C$16:$C$43,0))/1000,E55*INDEX('Damage costs'!$S$16:$S$43,MATCH($B63,'Damage costs'!$C$16:$C$43,0))/1000),\"\")","v":""},{"$f":"IFERROR(IF(OR($C$67=FALSE,LEFT($B63,3)<>\"NOX\"),F55*INDEX('Damage costs'!$O$16:$O$43,MATCH($B63,'Damage costs'!$C$16:$C$43,0))/1000,F55*INDEX('Damage costs'!$S$16:$S$43,MATCH($B63,'Damage costs'!$C$16:$C$43,0))/1000),\"\")","v":""},{"$f":"IFERROR(IF(OR($C$67=FALSE,LEFT($B63,3)<>\"NOX\"),G55*INDEX('Damage costs'!$O$16:$O$43,MATCH($B63,'Damage costs'!$C$16:$C$43,0))/1000,G55*INDEX('Damage costs'!$S$16:$S$43,MATCH($B63,'Damage costs'!$C$16:$C$43,0))/1000),\"\")","v":""},{"$f":"IFERROR(IF(OR($C$67=FALSE,LEFT($B63,3)<>\"NOX\"),H55*INDEX('Damage costs'!$O$16:$O$43,MATCH($B63,'Damage costs'!$C$16:$C$43,0))/1000,H55*INDEX('Damage costs'!$S$16:$S$43,MATCH($B63,'Damage costs'!$C$16:$C$43,0))/1000),\"\")","v":""},{"$f":"IFERROR(IF(OR($C$67=FALSE,LEFT($B63,3)<>\"NOX\"),I55*INDEX('Damage costs'!$O$16:$O$43,MATCH($B63,'Damage costs'!$C$16:$C$43,0))/1000,I55*INDEX('Damage costs'!$S$16:$S$43,MATCH($B63,'Damage costs'!$C$16:$C$43,0))/1000),\"\")","v":""},{"$f":"IFERROR(IF(OR($C$67=FALSE,LEFT($B63,3)<>\"NOX\"),J55*INDEX('Damage costs'!$O$16:$O$43,MATCH($B63,'Damage costs'!$C$16:$C$43,0))/1000,J55*INDEX('Damage costs'!$S$16:$S$43,MATCH($B63,'Damage costs'!$C$16:$C$43,0))/1000),\"\")","v":""},{"$f":"IFERROR(IF(OR($C$67=FALSE,LEFT($B63,3)<>\"NOX\"),K55*INDEX('Damage costs'!$O$16:$O$43,MATCH($B63,'Damage costs'!$C$16:$C$43,0))/1000,K55*INDEX('Damage costs'!$S$16:$S$43,MATCH($B63,'Damage costs'!$C$16:$C$43,0))/1000),\"\")","v":""},{"$f":"IFERROR(IF(OR($C$67=FALSE,LEFT($B63,3)<>\"NOX\"),L55*INDEX('Damage costs'!$O$16:$O$43,MATCH($B63,'Damage costs'!$C$16:$C$43,0))/1000,L55*INDEX('Damage costs'!$S$16:$S$43,MATCH($B63,'Damage costs'!$C$16:$C$43,0))/1000),\"\")","v":""},{"$f":"IFERROR(IF(OR($C$67=FALSE,LEFT($B63,3)<>\"NOX\"),M55*INDEX('Damage costs'!$O$16:$O$43,MATCH($B63,'Damage costs'!$C$16:$C$43,0))/1000,M55*INDEX('Damage costs'!$S$16:$S$43,MATCH($B63,'Damage costs'!$C$16:$C$43,0))/1000),\"\")","v":""},{"$f":"IFERROR(IF(OR($C$67=FALSE,LEFT($B63,3)<>\"NOX\"),N55*INDEX('Damage costs'!$O$16:$O$43,MATCH($B63,'Damage costs'!$C$16:$C$43,0))/1000,N55*INDEX('Damage costs'!$S$16:$S$43,MATCH($B63,'Damage costs'!$C$16:$C$43,0))/1000),\"\")","v":""},{"$f":"IFERROR(IF(OR($C$67=FALSE,LEFT($B63,3)<>\"NOX\"),O55*INDEX('Damage costs'!$O$16:$O$43,MATCH($B63,'Damage costs'!$C$16:$C$43,0))/1000,O55*INDEX('Damage costs'!$S$16:$S$43,MATCH($B63,'Damage costs'!$C$16:$C$43,0))/1000),\"\")","v":""},{"$f":"IFERROR(IF(OR($C$67=FALSE,LEFT($B63,3)<>\"NOX\"),P55*INDEX('Damage costs'!$O$16:$O$43,MATCH($B63,'Damage costs'!$C$16:$C$43,0))/1000,P55*INDEX('Damage costs'!$S$16:$S$43,MATCH($B63,'Damage costs'!$C$16:$C$43,0))/1000),\"\")","v":""},{"$f":"IFERROR(IF(OR($C$67=FALSE,LEFT($B63,3)<>\"NOX\"),Q55*INDEX('Damage costs'!$O$16:$O$43,MATCH($B63,'Damage costs'!$C$16:$C$43,0))/1000,Q55*INDEX('Damage costs'!$S$16:$S$43,MATCH($B63,'Damage costs'!$C$16:$C$43,0))/1000),\"\")","v":""},{"$f":"IFERROR(IF(OR($C$67=FALSE,LEFT($B63,3)<>\"NOX\"),R55*INDEX('Damage costs'!$O$16:$O$43,MATCH($B63,'Damage costs'!$C$16:$C$43,0))/1000,R55*INDEX('Damage costs'!$S$16:$S$43,MATCH($B63,'Damage costs'!$C$16:$C$43,0))/1000),\"\")","v":""},{"$f":"IFERROR(IF(OR($C$67=FALSE,LEFT($B63,3)<>\"NOX\"),S55*INDEX('Damage costs'!$O$16:$O$43,MATCH($B63,'Damage costs'!$C$16:$C$43,0))/1000,S55*INDEX('Damage costs'!$S$16:$S$43,MATCH($B63,'Damage costs'!$C$16:$C$43,0))/1000),\"\")","v":""},{"$f":"IFERROR(IF(OR($C$67=FALSE,LEFT($B63,3)<>\"NOX\"),T55*INDEX('Damage costs'!$O$16:$O$43,MATCH($B63,'Damage costs'!$C$16:$C$43,0))/1000,T55*INDEX('Damage costs'!$S$16:$S$43,MATCH($B63,'Damage costs'!$C$16:$C$43,0))/1000),\"\")","v":""},{"$f":"IFERROR(IF(OR($C$67=FALSE,LEFT($B63,3)<>\"NOX\"),U55*INDEX('Damage costs'!$O$16:$O$43,MATCH($B63,'Damage costs'!$C$16:$C$43,0))/1000,U55*INDEX('Damage costs'!$S$16:$S$43,MATCH($B63,'Damage costs'!$C$16:$C$43,0))/1000),\"\")","v":""},{"$f":"IFERROR(IF(OR($C$67=FALSE,LEFT($B63,3)<>\"NOX\"),V55*INDEX('Damage costs'!$O$16:$O$43,MATCH($B63,'Damage costs'!$C$16:$C$43,0))/1000,V55*INDEX('Damage costs'!$S$16:$S$43,MATCH($B63,'Damage costs'!$C$16:$C$43,0))/1000),\"\")","v":""},{"$f":"IFERROR(IF(OR($C$67=FALSE,LEFT($B63,3)<>\"NOX\"),W55*INDEX('Damage costs'!$O$16:$O$43,MATCH($B63,'Damage costs'!$C$16:$C$43,0))/1000,W55*INDEX('Damage costs'!$S$16:$S$43,MATCH($B63,'Damage costs'!$C$16:$C$43,0))/1000),\"\")","v":""},{"$f":"IFERROR(IF(OR($C$67=FALSE,LEFT($B63,3)<>\"NOX\"),X55*INDEX('Damage costs'!$O$16:$O$43,MATCH($B63,'Damage costs'!$C$16:$C$43,0))/1000,X55*INDEX('Damage costs'!$S$16:$S$43,MATCH($B63,'Damage costs'!$C$16:$C$43,0))/1000),\"\")","v":""},{"$f":"IFERROR(IF(OR($C$67=FALSE,LEFT($B63,3)<>\"NOX\"),Y55*INDEX('Damage costs'!$O$16:$O$43,MATCH($B63,'Damage costs'!$C$16:$C$43,0))/1000,Y55*INDEX('Damage costs'!$S$16:$S$43,MATCH($B63,'Damage costs'!$C$16:$C$43,0))/1000),\"\")","v":""},{"$f":"IFERROR(IF(OR($C$67=FALSE,LEFT($B63,3)<>\"NOX\"),Z55*INDEX('Damage costs'!$O$16:$O$43,MATCH($B63,'Damage costs'!$C$16:$C$43,0))/1000,Z55*INDEX('Damage costs'!$S$16:$S$43,MATCH($B63,'Damage costs'!$C$16:$C$43,0))/1000),\"\")","v":""},{"$f":"IFERROR(IF(OR($C$67=FALSE,LEFT($B63,3)<>\"NOX\"),AA55*INDEX('Damage costs'!$O$16:$O$43,MATCH($B63,'Damage costs'!$C$16:$C$43,0))/1000,AA55*INDEX('Damage costs'!$S$16:$S$43,MATCH($B63,'Damage costs'!$C$16:$C$43,0))/1000),\"\")","v":""},{"$f":"IFERROR(IF(OR($C$67=FALSE,LEFT($B63,3)<>\"NOX\"),AB55*INDEX('Damage costs'!$O$16:$O$43,MATCH($B63,'Damage costs'!$C$16:$C$43,0))/1000,AB55*INDEX('Damage costs'!$S$16:$S$43,MATCH($B63,'Damage costs'!$C$16:$C$43,0))/1000),\"\")","v":""},{"$f":"IFERROR(IF(OR($C$67=FALSE,LEFT($B63,3)<>\"NOX\"),AC55*INDEX('Damage costs'!$O$16:$O$43,MATCH($B63,'Damage costs'!$C$16:$C$43,0))/1000,AC55*INDEX('Damage costs'!$S$16:$S$43,MATCH($B63,'Damage costs'!$C$16:$C$43,0))/1000),\"\")","v":""},{"$f":"IFERROR(IF(OR($C$67=FALSE,LEFT($B63,3)<>\"NOX\"),AD55*INDEX('Damage costs'!$O$16:$O$43,MATCH($B63,'Damage costs'!$C$16:$C$43,0))/1000,AD55*INDEX('Damage costs'!$S$16:$S$43,MATCH($B63,'Damage costs'!$C$16:$C$43,0))/1000),\"\")","v":""},{"$f":"IFERROR(IF(OR($C$67=FALSE,LEFT($B63,3)<>\"NOX\"),AE55*INDEX('Damage costs'!$O$16:$O$43,MATCH($B63,'Damage costs'!$C$16:$C$43,0))/1000,AE55*INDEX('Damage costs'!$S$16:$S$43,MATCH($B63,'Damage costs'!$C$16:$C$43,0))/1000),\"\")","v":""},{"$f":"IFERROR(IF(OR($C$67=FALSE,LEFT($B63,3)<>\"NOX\"),AF55*INDEX('Damage costs'!$O$16:$O$43,MATCH($B63,'Damage costs'!$C$16:$C$43,0))/1000,AF55*INDEX('Damage costs'!$S$16:$S$43,MATCH($B63,'Damage costs'!$C$16:$C$43,0))/1000),\"\")","v":""},{"$f":"IFERROR(IF(OR($C$67=FALSE,LEFT($B63,3)<>\"NOX\"),AG55*INDEX('Damage costs'!$O$16:$O$43,MATCH($B63,'Damage costs'!$C$16:$C$43,0))/1000,AG55*INDEX('Damage costs'!$S$16:$S$43,MATCH($B63,'Damage costs'!$C$16:$C$43,0))/1000),\"\")","v":""},{"$f":"IFERROR(IF(OR($C$67=FALSE,LEFT($B63,3)<>\"NOX\"),AH55*INDEX('Damage costs'!$O$16:$O$43,MATCH($B63,'Damage costs'!$C$16:$C$43,0))/1000,AH55*INDEX('Damage costs'!$S$16:$S$43,MATCH($B63,'Damage costs'!$C$16:$C$43,0))/1000),\"\")","v":""},{"$f":"IFERROR(IF(OR($C$67=FALSE,LEFT($B63,3)<>\"NOX\"),AI55*INDEX('Damage costs'!$O$16:$O$43,MATCH($B63,'Damage costs'!$C$16:$C$43,0))/1000,AI55*INDEX('Damage costs'!$S$16:$S$43,MATCH($B63,'Damage costs'!$C$16:$C$43,0))/1000),\"\")","v":""},{"$f":"IFERROR(IF(OR($C$67=FALSE,LEFT($B63,3)<>\"NOX\"),AJ55*INDEX('Damage costs'!$O$16:$O$43,MATCH($B63,'Damage costs'!$C$16:$C$43,0))/1000,AJ55*INDEX('Damage costs'!$S$16:$S$43,MATCH($B63,'Damage costs'!$C$16:$C$43,0))/1000),\"\")","v":""},{"$f":"IFERROR(IF(OR($C$67=FALSE,LEFT($B63,3)<>\"NOX\"),AK55*INDEX('Damage costs'!$O$16:$O$43,MATCH($B63,'Damage costs'!$C$16:$C$43,0))/1000,AK55*INDEX('Damage costs'!$S$16:$S$43,MATCH($B63,'Damage costs'!$C$16:$C$43,0))/1000),\"\")","v":""},{"$f":"IFERROR(IF(OR($C$67=FALSE,LEFT($B63,3)<>\"NOX\"),AL55*INDEX('Damage costs'!$O$16:$O$43,MATCH($B63,'Damage costs'!$C$16:$C$43,0))/1000,AL55*INDEX('Damage costs'!$S$16:$S$43,MATCH($B63,'Damage costs'!$C$16:$C$43,0))/1000),\"\")","v":""},{"$f":"IFERROR(IF(OR($C$67=FALSE,LEFT($B63,3)<>\"NOX\"),AM55*INDEX('Damage costs'!$O$16:$O$43,MATCH($B63,'Damage costs'!$C$16:$C$43,0))/1000,AM55*INDEX('Damage costs'!$S$16:$S$43,MATCH($B63,'Damage costs'!$C$16:$C$43,0))/1000),\"\")","v":""},{"$f":"IFERROR(IF(OR($C$67=FALSE,LEFT($B63,3)<>\"NOX\"),AN55*INDEX('Damage costs'!$O$16:$O$43,MATCH($B63,'Damage costs'!$C$16:$C$43,0))/1000,AN55*INDEX('Damage costs'!$S$16:$S$43,MATCH($B63,'Damage costs'!$C$16:$C$43,0))/1000),\"\")","v":""},{"$f":"IFERROR(IF(OR($C$67=FALSE,LEFT($B63,3)<>\"NOX\"),AO55*INDEX('Damage costs'!$O$16:$O$43,MATCH($B63,'Damage costs'!$C$16:$C$43,0))/1000,AO55*INDEX('Damage costs'!$S$16:$S$43,MATCH($B63,'Damage costs'!$C$16:$C$43,0))/1000),\"\")","v":""},{"$f":"IFERROR(IF(OR($C$67=FALSE,LEFT($B63,3)<>\"NOX\"),AP55*INDEX('Damage costs'!$O$16:$O$43,MATCH($B63,'Damage costs'!$C$16:$C$43,0))/1000,AP55*INDEX('Damage costs'!$S$16:$S$43,MATCH($B63,'Damage costs'!$C$16:$C$43,0))/1000),\"\")","v":""},{"$f":"IFERROR(IF(OR($C$67=FALSE,LEFT($B63,3)<>\"NOX\"),AQ55*INDEX('Damage costs'!$O$16:$O$43,MATCH($B63,'Damage costs'!$C$16:$C$43,0))/1000,AQ55*INDEX('Damage costs'!$S$16:$S$43,MATCH($B63,'Damage costs'!$C$16:$C$43,0))/1000),\"\")","v":""},{"$f":"IFERROR(IF(OR($C$67=FALSE,LEFT($B63,3)<>\"NOX\"),AR55*INDEX('Damage costs'!$O$16:$O$43,MATCH($B63,'Damage costs'!$C$16:$C$43,0))/1000,AR55*INDEX('Damage costs'!$S$16:$S$43,MATCH($B63,'Damage costs'!$C$16:$C$43,0))/1000),\"\")","v":""},{"$f":"IFERROR(IF(OR($C$67=FALSE,LEFT($B63,3)<>\"NOX\"),AS55*INDEX('Damage costs'!$O$16:$O$43,MATCH($B63,'Damage costs'!$C$16:$C$43,0))/1000,AS55*INDEX('Damage costs'!$S$16:$S$43,MATCH($B63,'Damage costs'!$C$16:$C$43,0))/1000),\"\")","v":""},{"$f":"IFERROR(IF(OR($C$67=FALSE,LEFT($B63,3)<>\"NOX\"),AT55*INDEX('Damage costs'!$O$16:$O$43,MATCH($B63,'Damage costs'!$C$16:$C$43,0))/1000,AT55*INDEX('Damage costs'!$S$16:$S$43,MATCH($B63,'Damage costs'!$C$16:$C$43,0))/1000),\"\")","v":""},{"$f":"IFERROR(IF(OR($C$67=FALSE,LEFT($B63,3)<>\"NOX\"),AU55*INDEX('Damage costs'!$O$16:$O$43,MATCH($B63,'Damage costs'!$C$16:$C$43,0))/1000,AU55*INDEX('Damage costs'!$S$16:$S$43,MATCH($B63,'Damage costs'!$C$16:$C$43,0))/1000),\"\")","v":""},{"$f":"IFERROR(IF(OR($C$67=FALSE,LEFT($B63,3)<>\"NOX\"),AV55*INDEX('Damage costs'!$O$16:$O$43,MATCH($B63,'Damage costs'!$C$16:$C$43,0))/1000,AV55*INDEX('Damage costs'!$S$16:$S$43,MATCH($B63,'Damage costs'!$C$16:$C$43,0))/1000),\"\")","v":""},{"$f":"IFERROR(IF(OR($C$67=FALSE,LEFT($B63,3)<>\"NOX\"),AW55*INDEX('Damage costs'!$O$16:$O$43,MATCH($B63,'Damage costs'!$C$16:$C$43,0))/1000,AW55*INDEX('Damage costs'!$S$16:$S$43,MATCH($B63,'Damage costs'!$C$16:$C$43,0))/1000),\"\")","v":""},{"$f":"IFERROR(IF(OR($C$67=FALSE,LEFT($B63,3)<>\"NOX\"),AX55*INDEX('Damage costs'!$O$16:$O$43,MATCH($B63,'Damage costs'!$C$16:$C$43,0))/1000,AX55*INDEX('Damage costs'!$S$16:$S$43,MATCH($B63,'Damage costs'!$C$16:$C$43,0))/1000),\"\")","v":""},{"$f":"IFERROR(IF(OR($C$67=FALSE,LEFT($B63,3)<>\"NOX\"),AY55*INDEX('Damage costs'!$O$16:$O$43,MATCH($B63,'Damage costs'!$C$16:$C$43,0))/1000,AY55*INDEX('Damage costs'!$S$16:$S$43,MATCH($B63,'Damage costs'!$C$16:$C$43,0))/1000),\"\")","v":""},{"$f":"IFERROR(IF(OR($C$67=FALSE,LEFT($B63,3)<>\"NOX\"),AZ55*INDEX('Damage costs'!$O$16:$O$43,MATCH($B63,'Damage costs'!$C$16:$C$43,0))/1000,AZ55*INDEX('Damage costs'!$S$16:$S$43,MATCH($B63,'Damage costs'!$C$16:$C$43,0))/1000),\"\")","v":""},{"$f":"IFERROR(IF(OR($C$67=FALSE,LEFT($B63,3)<>\"NOX\"),BA55*INDEX('Damage costs'!$O$16:$O$43,MATCH($B63,'Damage costs'!$C$16:$C$43,0))/1000,BA55*INDEX('Damage costs'!$S$16:$S$43,MATCH($B63,'Damage costs'!$C$16:$C$43,0))/1000),\"\")","v":""},{"$f":"IFERROR(IF(OR($C$67=FALSE,LEFT($B63,3)<>\"NOX\"),BB55*INDEX('Damage costs'!$O$16:$O$43,MATCH($B63,'Damage costs'!$C$16:$C$43,0))/1000,BB55*INDEX('Damage costs'!$S$16:$S$43,MATCH($B63,'Damage costs'!$C$16:$C$43,0))/1000),\"\")","v":""},{"$f":"IFERROR(IF(OR($C$67=FALSE,LEFT($B63,3)<>\"NOX\"),BC55*INDEX('Damage costs'!$O$16:$O$43,MATCH($B63,'Damage costs'!$C$16:$C$43,0))/1000,BC55*INDEX('Damage costs'!$S$16:$S$43,MATCH($B63,'Damage costs'!$C$16:$C$43,0))/1000),\"\")","v":""},{"$f":"IFERROR(IF(OR($C$67=FALSE,LEFT($B63,3)<>\"NOX\"),BD55*INDEX('Damage costs'!$O$16:$O$43,MATCH($B63,'Damage costs'!$C$16:$C$43,0))/1000,BD55*INDEX('Damage costs'!$S$16:$S$43,MATCH($B63,'Damage costs'!$C$16:$C$43,0))/1000),\"\")","v":""},{"$f":"IFERROR(IF(OR($C$67=FALSE,LEFT($B63,3)<>\"NOX\"),BE55*INDEX('Damage costs'!$O$16:$O$43,MATCH($B63,'Damage costs'!$C$16:$C$43,0))/1000,BE55*INDEX('Damage costs'!$S$16:$S$43,MATCH($B63,'Damage costs'!$C$16:$C$43,0))/1000),\"\")","v":""},{"$f":"IFERROR(IF(OR($C$67=FALSE,LEFT($B63,3)<>\"NOX\"),BF55*INDEX('Damage costs'!$O$16:$O$43,MATCH($B63,'Damage costs'!$C$16:$C$43,0))/1000,BF55*INDEX('Damage costs'!$S$16:$S$43,MATCH($B63,'Damage costs'!$C$16:$C$43,0))/1000),\"\")","v":""},{"$f":"IFERROR(IF(OR($C$67=FALSE,LEFT($B63,3)<>\"NOX\"),BG55*INDEX('Damage costs'!$O$16:$O$43,MATCH($B63,'Damage costs'!$C$16:$C$43,0))/1000,BG55*INDEX('Damage costs'!$S$16:$S$43,MATCH($B63,'Damage costs'!$C$16:$C$43,0))/1000),\"\")","v":""},{"$f":"IFERROR(IF(OR($C$67=FALSE,LEFT($B63,3)<>\"NOX\"),BH55*INDEX('Damage costs'!$O$16:$O$43,MATCH($B63,'Damage costs'!$C$16:$C$43,0))/1000,BH55*INDEX('Damage costs'!$S$16:$S$43,MATCH($B63,'Damage costs'!$C$16:$C$43,0))/1000),\"\")","v":""},{"$f":"IFERROR(IF(OR($C$67=FALSE,LEFT($B63,3)<>\"NOX\"),BI55*INDEX('Damage costs'!$O$16:$O$43,MATCH($B63,'Damage costs'!$C$16:$C$43,0))/1000,BI55*INDEX('Damage costs'!$S$16:$S$43,MATCH($B63,'Damage costs'!$C$16:$C$43,0))/1000),\"\")","v":""},{"$f":"IFERROR(IF(OR($C$67=FALSE,LEFT($B63,3)<>\"NOX\"),BJ55*INDEX('Damage costs'!$O$16:$O$43,MATCH($B63,'Damage costs'!$C$16:$C$43,0))/1000,BJ55*INDEX('Damage costs'!$S$16:$S$43,MATCH($B63,'Damage costs'!$C$16:$C$43,0))/1000),\"\")","v":""},{"$f":"IFERROR(IF(OR($C$67=FALSE,LEFT($B63,3)<>\"NOX\"),BK55*INDEX('Damage costs'!$O$16:$O$43,MATCH($B63,'Damage costs'!$C$16:$C$43,0))/1000,BK55*INDEX('Damage costs'!$S$16:$S$43,MATCH($B63,'Damage costs'!$C$16:$C$43,0))/1000),\"\")","v":""},{"$f":"IFERROR(IF(OR($C$67=FALSE,LEFT($B63,3)<>\"NOX\"),BL55*INDEX('Damage costs'!$O$16:$O$43,MATCH($B63,'Damage costs'!$C$16:$C$43,0))/1000,BL55*INDEX('Damage costs'!$S$16:$S$43,MATCH($B63,'Damage costs'!$C$16:$C$43,0))/1000),\"\")","v":""},{"$f":"IFERROR(IF(OR($C$67=FALSE,LEFT($B63,3)<>\"NOX\"),BM55*INDEX('Damage costs'!$O$16:$O$43,MATCH($B63,'Damage costs'!$C$16:$C$43,0))/1000,BM55*INDEX('Damage costs'!$S$16:$S$43,MATCH($B63,'Damage costs'!$C$16:$C$43,0))/1000),\"\")","v":""},{"$f":"IFERROR(IF(OR($C$67=FALSE,LEFT($B63,3)<>\"NOX\"),BN55*INDEX('Damage costs'!$O$16:$O$43,MATCH($B63,'Damage costs'!$C$16:$C$43,0))/1000,BN55*INDEX('Damage costs'!$S$16:$S$43,MATCH($B63,'Damage costs'!$C$16:$C$43,0))/1000),\"\")","v":""},{"$f":"IFERROR(IF(OR($C$67=FALSE,LEFT($B63,3)<>\"NOX\"),BO55*INDEX('Damage costs'!$O$16:$O$43,MATCH($B63,'Damage costs'!$C$16:$C$43,0))/1000,BO55*INDEX('Damage costs'!$S$16:$S$43,MATCH($B63,'Damage costs'!$C$16:$C$43,0))/1000),\"\")","v":""},{"$f":"IFERROR(IF(OR($C$67=FALSE,LEFT($B63,3)<>\"NOX\"),BP55*INDEX('Damage costs'!$O$16:$O$43,MATCH($B63,'Damage costs'!$C$16:$C$43,0))/1000,BP55*INDEX('Damage costs'!$S$16:$S$43,MATCH($B63,'Damage costs'!$C$16:$C$43,0))/1000),\"\")","v":""},{"$f":"IFERROR(IF(OR($C$67=FALSE,LEFT($B63,3)<>\"NOX\"),BQ55*INDEX('Damage costs'!$O$16:$O$43,MATCH($B63,'Damage costs'!$C$16:$C$43,0))/1000,BQ55*INDEX('Damage costs'!$S$16:$S$43,MATCH($B63,'Damage costs'!$C$16:$C$43,0))/1000),\"\")","v":""},{"$f":"IFERROR(IF(OR($C$67=FALSE,LEFT($B63,3)<>\"NOX\"),BR55*INDEX('Damage costs'!$O$16:$O$43,MATCH($B63,'Damage costs'!$C$16:$C$43,0))/1000,BR55*INDEX('Damage costs'!$S$16:$S$43,MATCH($B63,'Damage costs'!$C$16:$C$43,0))/1000),\"\")","v":""},{"$f":"IFERROR(IF(OR($C$67=FALSE,LEFT($B63,3)<>\"NOX\"),BS55*INDEX('Damage costs'!$O$16:$O$43,MATCH($B63,'Damage costs'!$C$16:$C$43,0))/1000,BS55*INDEX('Damage costs'!$S$16:$S$43,MATCH($B63,'Damage costs'!$C$16:$C$43,0))/1000),\"\")","v":""},{"$f":"IFERROR(IF(OR($C$67=FALSE,LEFT($B63,3)<>\"NOX\"),BT55*INDEX('Damage costs'!$O$16:$O$43,MATCH($B63,'Damage costs'!$C$16:$C$43,0))/1000,BT55*INDEX('Damage costs'!$S$16:$S$43,MATCH($B63,'Damage costs'!$C$16:$C$43,0))/1000),\"\")","v":""},{"$f":"IFERROR(IF(OR($C$67=FALSE,LEFT($B63,3)<>\"NOX\"),BU55*INDEX('Damage costs'!$O$16:$O$43,MATCH($B63,'Damage costs'!$C$16:$C$43,0))/1000,BU55*INDEX('Damage costs'!$S$16:$S$43,MATCH($B63,'Damage costs'!$C$16:$C$43,0))/1000),\"\")","v":""},{"$f":"IFERROR(IF(OR($C$67=FALSE,LEFT($B63,3)<>\"NOX\"),BV55*INDEX('Damage costs'!$O$16:$O$43,MATCH($B63,'Damage costs'!$C$16:$C$43,0))/1000,BV55*INDEX('Damage costs'!$S$16:$S$43,MATCH($B63,'Damage costs'!$C$16:$C$43,0))/1000),\"\")","v":""},{"$f":"IFERROR(IF(OR($C$67=FALSE,LEFT($B63,3)<>\"NOX\"),BW55*INDEX('Damage costs'!$O$16:$O$43,MATCH($B63,'Damage costs'!$C$16:$C$43,0))/1000,BW55*INDEX('Damage costs'!$S$16:$S$43,MATCH($B63,'Damage costs'!$C$16:$C$43,0))/1000),\"\")","v":""},{"$f":"IFERROR(IF(OR($C$67=FALSE,LEFT($B63,3)<>\"NOX\"),BX55*INDEX('Damage costs'!$O$16:$O$43,MATCH($B63,'Damage costs'!$C$16:$C$43,0))/1000,BX55*INDEX('Damage costs'!$S$16:$S$43,MATCH($B63,'Damage costs'!$C$16:$C$43,0))/1000),\"\")","v":""},{"$f":"IFERROR(IF(OR($C$67=FALSE,LEFT($B63,3)<>\"NOX\"),BY55*INDEX('Damage costs'!$O$16:$O$43,MATCH($B63,'Damage costs'!$C$16:$C$43,0))/1000,BY55*INDEX('Damage costs'!$S$16:$S$43,MATCH($B63,'Damage costs'!$C$16:$C$43,0))/1000),\"\")","v":""},{"$f":"IFERROR(IF(OR($C$67=FALSE,LEFT($B63,3)<>\"NOX\"),BZ55*INDEX('Damage costs'!$O$16:$O$43,MATCH($B63,'Damage costs'!$C$16:$C$43,0))/1000,BZ55*INDEX('Damage costs'!$S$16:$S$43,MATCH($B63,'Damage costs'!$C$16:$C$43,0))/1000),\"\")","v":""},{"$f":"IFERROR(IF(OR($C$67=FALSE,LEFT($B63,3)<>\"NOX\"),CA55*INDEX('Damage costs'!$O$16:$O$43,MATCH($B63,'Damage costs'!$C$16:$C$43,0))/1000,CA55*INDEX('Damage costs'!$S$16:$S$43,MATCH($B63,'Damage costs'!$C$16:$C$43,0))/1000),\"\")","v":""},{"$f":"IFERROR(IF(OR($C$67=FALSE,LEFT($B63,3)<>\"NOX\"),CB55*INDEX('Damage costs'!$O$16:$O$43,MATCH($B63,'Damage costs'!$C$16:$C$43,0))/1000,CB55*INDEX('Damage costs'!$S$16:$S$43,MATCH($B63,'Damage costs'!$C$16:$C$43,0))/1000),\"\")","v":""},{"$f":"IFERROR(IF(OR($C$67=FALSE,LEFT($B63,3)<>\"NOX\"),CC55*INDEX('Damage costs'!$O$16:$O$43,MATCH($B63,'Damage costs'!$C$16:$C$43,0))/1000,CC55*INDEX('Damage costs'!$S$16:$S$43,MATCH($B63,'Damage costs'!$C$16:$C$43,0))/1000),\"\")","v":""},{"$f":"IFERROR(IF(OR($C$67=FALSE,LEFT($B63,3)<>\"NOX\"),CD55*INDEX('Damage costs'!$O$16:$O$43,MATCH($B63,'Damage costs'!$C$16:$C$43,0))/1000,CD55*INDEX('Damage costs'!$S$16:$S$43,MATCH($B63,'Damage costs'!$C$16:$C$43,0))/1000),\"\")","v":""},{"$f":"IFERROR(IF(OR($C$67=FALSE,LEFT($B63,3)<>\"NOX\"),CE55*INDEX('Damage costs'!$O$16:$O$43,MATCH($B63,'Damage costs'!$C$16:$C$43,0))/1000,CE55*INDEX('Damage costs'!$S$16:$S$43,MATCH($B63,'Damage costs'!$C$16:$C$43,0))/1000),\"\")","v":""},{"$f":"IFERROR(IF(OR($C$67=FALSE,LEFT($B63,3)<>\"NOX\"),CF55*INDEX('Damage costs'!$O$16:$O$43,MATCH($B63,'Damage costs'!$C$16:$C$43,0))/1000,CF55*INDEX('Damage costs'!$S$16:$S$43,MATCH($B63,'Damage costs'!$C$16:$C$43,0))/1000),\"\")","v":""},{"$f":"IFERROR(IF(OR($C$67=FALSE,LEFT($B63,3)<>\"NOX\"),CG55*INDEX('Damage costs'!$O$16:$O$43,MATCH($B63,'Damage costs'!$C$16:$C$43,0))/1000,CG55*INDEX('Damage costs'!$S$16:$S$43,MATCH($B63,'Damage costs'!$C$16:$C$43,0))/1000),\"\")","v":""},{"$f":"IFERROR(IF(OR($C$67=FALSE,LEFT($B63,3)<>\"NOX\"),CH55*INDEX('Damage costs'!$O$16:$O$43,MATCH($B63,'Damage costs'!$C$16:$C$43,0))/1000,CH55*INDEX('Damage costs'!$S$16:$S$43,MATCH($B63,'Damage costs'!$C$16:$C$43,0))/1000),\"\")","v":""},{"$f":"IFERROR(IF(OR($C$67=FALSE,LEFT($B63,3)<>\"NOX\"),CI55*INDEX('Damage costs'!$O$16:$O$43,MATCH($B63,'Damage costs'!$C$16:$C$43,0))/1000,CI55*INDEX('Damage costs'!$S$16:$S$43,MATCH($B63,'Damage costs'!$C$16:$C$43,0))/1000),\"\")","v":""},{"$f":"IFERROR(IF(OR($C$67=FALSE,LEFT($B63,3)<>\"NOX\"),CJ55*INDEX('Damage costs'!$O$16:$O$43,MATCH($B63,'Damage costs'!$C$16:$C$43,0))/1000,CJ55*INDEX('Damage costs'!$S$16:$S$43,MATCH($B63,'Damage costs'!$C$16:$C$43,0))/1000),\"\")","v":""},{"$f":"IFERROR(IF(OR($C$67=FALSE,LEFT($B63,3)<>\"NOX\"),CK55*INDEX('Damage costs'!$O$16:$O$43,MATCH($B63,'Damage costs'!$C$16:$C$43,0))/1000,CK55*INDEX('Damage costs'!$S$16:$S$43,MATCH($B63,'Damage costs'!$C$16:$C$43,0))/1000),\"\")","v":""},{"$f":"IFERROR(IF(OR($C$67=FALSE,LEFT($B63,3)<>\"NOX\"),CL55*INDEX('Damage costs'!$O$16:$O$43,MATCH($B63,'Damage costs'!$C$16:$C$43,0))/1000,CL55*INDEX('Damage costs'!$S$16:$S$43,MATCH($B63,'Damage costs'!$C$16:$C$43,0))/1000),\"\")","v":""},{"$f":"IFERROR(IF(OR($C$67=FALSE,LEFT($B63,3)<>\"NOX\"),CM55*INDEX('Damage costs'!$O$16:$O$43,MATCH($B63,'Damage costs'!$C$16:$C$43,0))/1000,CM55*INDEX('Damage costs'!$S$16:$S$43,MATCH($B63,'Damage costs'!$C$16:$C$43,0))/1000),\"\")","v":""},{"$f":"IFERROR(IF(OR($C$67=FALSE,LEFT($B63,3)<>\"NOX\"),CN55*INDEX('Damage costs'!$O$16:$O$43,MATCH($B63,'Damage costs'!$C$16:$C$43,0))/1000,CN55*INDEX('Damage costs'!$S$16:$S$43,MATCH($B63,'Damage costs'!$C$16:$C$43,0))/1000),\"\")","v":""},{"$f":"IFERROR(IF(OR($C$67=FALSE,LEFT($B63,3)<>\"NOX\"),CO55*INDEX('Damage costs'!$O$16:$O$43,MATCH($B63,'Damage costs'!$C$16:$C$43,0))/1000,CO55*INDEX('Damage costs'!$S$16:$S$43,MATCH($B63,'Damage costs'!$C$16:$C$43,0))/1000),\"\")","v":""},{"$f":"IFERROR(IF(OR($C$67=FALSE,LEFT($B63,3)<>\"NOX\"),CP55*INDEX('Damage costs'!$O$16:$O$43,MATCH($B63,'Damage costs'!$C$16:$C$43,0))/1000,CP55*INDEX('Damage costs'!$S$16:$S$43,MATCH($B63,'Damage costs'!$C$16:$C$43,0))/1000),\"\")","v":""},{"$f":"IFERROR(IF(OR($C$67=FALSE,LEFT($B63,3)<>\"NOX\"),CQ55*INDEX('Damage costs'!$O$16:$O$43,MATCH($B63,'Damage costs'!$C$16:$C$43,0))/1000,CQ55*INDEX('Damage costs'!$S$16:$S$43,MATCH($B63,'Damage costs'!$C$16:$C$43,0))/1000),\"\")","v":""},{"$f":"IFERROR(IF(OR($C$67=FALSE,LEFT($B63,3)<>\"NOX\"),CR55*INDEX('Damage costs'!$O$16:$O$43,MATCH($B63,'Damage costs'!$C$16:$C$43,0))/1000,CR55*INDEX('Damage costs'!$S$16:$S$43,MATCH($B63,'Damage costs'!$C$16:$C$43,0))/1000),\"\")","v":""},{"$f":"IFERROR(IF(OR($C$67=FALSE,LEFT($B63,3)<>\"NOX\"),CS55*INDEX('Damage costs'!$O$16:$O$43,MATCH($B63,'Damage costs'!$C$16:$C$43,0))/1000,CS55*INDEX('Damage costs'!$S$16:$S$43,MATCH($B63,'Damage costs'!$C$16:$C$43,0))/1000),\"\")","v":""},{"$f":"IFERROR(IF(OR($C$67=FALSE,LEFT($B63,3)<>\"NOX\"),CT55*INDEX('Damage costs'!$O$16:$O$43,MATCH($B63,'Damage costs'!$C$16:$C$43,0))/1000,CT55*INDEX('Damage costs'!$S$16:$S$43,MATCH($B63,'Damage costs'!$C$16:$C$43,0))/1000),\"\")","v":""},{"$f":"IFERROR(IF(OR($C$67=FALSE,LEFT($B63,3)<>\"NOX\"),CU55*INDEX('Damage costs'!$O$16:$O$43,MATCH($B63,'Damage costs'!$C$16:$C$43,0))/1000,CU55*INDEX('Damage costs'!$S$16:$S$43,MATCH($B63,'Damage costs'!$C$16:$C$43,0))/1000),\"\")","v":""},{"$f":"IFERROR(IF(OR($C$67=FALSE,LEFT($B63,3)<>\"NOX\"),CV55*INDEX('Damage costs'!$O$16:$O$43,MATCH($B63,'Damage costs'!$C$16:$C$43,0))/1000,CV55*INDEX('Damage costs'!$S$16:$S$43,MATCH($B63,'Damage costs'!$C$16:$C$43,0))/1000),\"\")","v":""},{"$f":"IFERROR(IF(OR($C$67=FALSE,LEFT($B63,3)<>\"NOX\"),CW55*INDEX('Damage costs'!$O$16:$O$43,MATCH($B63,'Damage costs'!$C$16:$C$43,0))/1000,CW55*INDEX('Damage costs'!$S$16:$S$43,MATCH($B63,'Damage costs'!$C$16:$C$43,0))/1000),\"\")","v":""},{"$f":"IFERROR(IF(OR($C$67=FALSE,LEFT($B63,3)<>\"NOX\"),CX55*INDEX('Damage costs'!$O$16:$O$43,MATCH($B63,'Damage costs'!$C$16:$C$43,0))/1000,CX55*INDEX('Damage costs'!$S$16:$S$43,MATCH($B63,'Damage costs'!$C$16:$C$43,0))/1000),\"\")","v":""},{"$f":"IFERROR(IF(OR($C$67=FALSE,LEFT($B63,3)<>\"NOX\"),CY55*INDEX('Damage costs'!$O$16:$O$43,MATCH($B63,'Damage costs'!$C$16:$C$43,0))/1000,CY55*INDEX('Damage costs'!$S$16:$S$43,MATCH($B63,'Damage costs'!$C$16:$C$43,0))/1000),\"\")","v":""}]
[null,0,"£000's",{"$f":"IFERROR(IF(OR($C$67=FALSE,LEFT($B64,3)<>\"NOX\"),D56*INDEX('Damage costs'!$O$16:$O$43,MATCH($B64,'Damage costs'!$C$16:$C$43,0))/1000,D56*INDEX('Damage costs'!$S$16:$S$43,MATCH($B64,'Damage costs'!$C$16:$C$43,0))/1000),\"\")","v":""},{"$f":"IFERROR(IF(OR($C$67=FALSE,LEFT($B64,3)<>\"NOX\"),E56*INDEX('Damage costs'!$O$16:$O$43,MATCH($B64,'Damage costs'!$C$16:$C$43,0))/1000,E56*INDEX('Damage costs'!$S$16:$S$43,MATCH($B64,'Damage costs'!$C$16:$C$43,0))/1000),\"\")","v":""},{"$f":"IFERROR(IF(OR($C$67=FALSE,LEFT($B64,3)<>\"NOX\"),F56*INDEX('Damage costs'!$O$16:$O$43,MATCH($B64,'Damage costs'!$C$16:$C$43,0))/1000,F56*INDEX('Damage costs'!$S$16:$S$43,MATCH($B64,'Damage costs'!$C$16:$C$43,0))/1000),\"\")","v":""},{"$f":"IFERROR(IF(OR($C$67=FALSE,LEFT($B64,3)<>\"NOX\"),G56*INDEX('Damage costs'!$O$16:$O$43,MATCH($B64,'Damage costs'!$C$16:$C$43,0))/1000,G56*INDEX('Damage costs'!$S$16:$S$43,MATCH($B64,'Damage costs'!$C$16:$C$43,0))/1000),\"\")","v":""},{"$f":"IFERROR(IF(OR($C$67=FALSE,LEFT($B64,3)<>\"NOX\"),H56*INDEX('Damage costs'!$O$16:$O$43,MATCH($B64,'Damage costs'!$C$16:$C$43,0))/1000,H56*INDEX('Damage costs'!$S$16:$S$43,MATCH($B64,'Damage costs'!$C$16:$C$43,0))/1000),\"\")","v":""},{"$f":"IFERROR(IF(OR($C$67=FALSE,LEFT($B64,3)<>\"NOX\"),I56*INDEX('Damage costs'!$O$16:$O$43,MATCH($B64,'Damage costs'!$C$16:$C$43,0))/1000,I56*INDEX('Damage costs'!$S$16:$S$43,MATCH($B64,'Damage costs'!$C$16:$C$43,0))/1000),\"\")","v":""},{"$f":"IFERROR(IF(OR($C$67=FALSE,LEFT($B64,3)<>\"NOX\"),J56*INDEX('Damage costs'!$O$16:$O$43,MATCH($B64,'Damage costs'!$C$16:$C$43,0))/1000,J56*INDEX('Damage costs'!$S$16:$S$43,MATCH($B64,'Damage costs'!$C$16:$C$43,0))/1000),\"\")","v":""},{"$f":"IFERROR(IF(OR($C$67=FALSE,LEFT($B64,3)<>\"NOX\"),K56*INDEX('Damage costs'!$O$16:$O$43,MATCH($B64,'Damage costs'!$C$16:$C$43,0))/1000,K56*INDEX('Damage costs'!$S$16:$S$43,MATCH($B64,'Damage costs'!$C$16:$C$43,0))/1000),\"\")","v":""},{"$f":"IFERROR(IF(OR($C$67=FALSE,LEFT($B64,3)<>\"NOX\"),L56*INDEX('Damage costs'!$O$16:$O$43,MATCH($B64,'Damage costs'!$C$16:$C$43,0))/1000,L56*INDEX('Damage costs'!$S$16:$S$43,MATCH($B64,'Damage costs'!$C$16:$C$43,0))/1000),\"\")","v":""},{"$f":"IFERROR(IF(OR($C$67=FALSE,LEFT($B64,3)<>\"NOX\"),M56*INDEX('Damage costs'!$O$16:$O$43,MATCH($B64,'Damage costs'!$C$16:$C$43,0))/1000,M56*INDEX('Damage costs'!$S$16:$S$43,MATCH($B64,'Damage costs'!$C$16:$C$43,0))/1000),\"\")","v":""},{"$f":"IFERROR(IF(OR($C$67=FALSE,LEFT($B64,3)<>\"NOX\"),N56*INDEX('Damage costs'!$O$16:$O$43,MATCH($B64,'Damage costs'!$C$16:$C$43,0))/1000,N56*INDEX('Damage costs'!$S$16:$S$43,MATCH($B64,'Damage costs'!$C$16:$C$43,0))/1000),\"\")","v":""},{"$f":"IFERROR(IF(OR($C$67=FALSE,LEFT($B64,3)<>\"NOX\"),O56*INDEX('Damage costs'!$O$16:$O$43,MATCH($B64,'Damage costs'!$C$16:$C$43,0))/1000,O56*INDEX('Damage costs'!$S$16:$S$43,MATCH($B64,'Damage costs'!$C$16:$C$43,0))/1000),\"\")","v":""},{"$f":"IFERROR(IF(OR($C$67=FALSE,LEFT($B64,3)<>\"NOX\"),P56*INDEX('Damage costs'!$O$16:$O$43,MATCH($B64,'Damage costs'!$C$16:$C$43,0))/1000,P56*INDEX('Damage costs'!$S$16:$S$43,MATCH($B64,'Damage costs'!$C$16:$C$43,0))/1000),\"\")","v":""},{"$f":"IFERROR(IF(OR($C$67=FALSE,LEFT($B64,3)<>\"NOX\"),Q56*INDEX('Damage costs'!$O$16:$O$43,MATCH($B64,'Damage costs'!$C$16:$C$43,0))/1000,Q56*INDEX('Damage costs'!$S$16:$S$43,MATCH($B64,'Damage costs'!$C$16:$C$43,0))/1000),\"\")","v":""},{"$f":"IFERROR(IF(OR($C$67=FALSE,LEFT($B64,3)<>\"NOX\"),R56*INDEX('Damage costs'!$O$16:$O$43,MATCH($B64,'Damage costs'!$C$16:$C$43,0))/1000,R56*INDEX('Damage costs'!$S$16:$S$43,MATCH($B64,'Damage costs'!$C$16:$C$43,0))/1000),\"\")","v":""},{"$f":"IFERROR(IF(OR($C$67=FALSE,LEFT($B64,3)<>\"NOX\"),S56*INDEX('Damage costs'!$O$16:$O$43,MATCH($B64,'Damage costs'!$C$16:$C$43,0))/1000,S56*INDEX('Damage costs'!$S$16:$S$43,MATCH($B64,'Damage costs'!$C$16:$C$43,0))/1000),\"\")","v":""},{"$f":"IFERROR(IF(OR($C$67=FALSE,LEFT($B64,3)<>\"NOX\"),T56*INDEX('Damage costs'!$O$16:$O$43,MATCH($B64,'Damage costs'!$C$16:$C$43,0))/1000,T56*INDEX('Damage costs'!$S$16:$S$43,MATCH($B64,'Damage costs'!$C$16:$C$43,0))/1000),\"\")","v":""},{"$f":"IFERROR(IF(OR($C$67=FALSE,LEFT($B64,3)<>\"NOX\"),U56*INDEX('Damage costs'!$O$16:$O$43,MATCH($B64,'Damage costs'!$C$16:$C$43,0))/1000,U56*INDEX('Damage costs'!$S$16:$S$43,MATCH($B64,'Damage costs'!$C$16:$C$43,0))/1000),\"\")","v":""},{"$f":"IFERROR(IF(OR($C$67=FALSE,LEFT($B64,3)<>\"NOX\"),V56*INDEX('Damage costs'!$O$16:$O$43,MATCH($B64,'Damage costs'!$C$16:$C$43,0))/1000,V56*INDEX('Damage costs'!$S$16:$S$43,MATCH($B64,'Damage costs'!$C$16:$C$43,0))/1000),\"\")","v":""},{"$f":"IFERROR(IF(OR($C$67=FALSE,LEFT($B64,3)<>\"NOX\"),W56*INDEX('Damage costs'!$O$16:$O$43,MATCH($B64,'Damage costs'!$C$16:$C$43,0))/1000,W56*INDEX('Damage costs'!$S$16:$S$43,MATCH($B64,'Damage costs'!$C$16:$C$43,0))/1000),\"\")","v":""},{"$f":"IFERROR(IF(OR($C$67=FALSE,LEFT($B64,3)<>\"NOX\"),X56*INDEX('Damage costs'!$O$16:$O$43,MATCH($B64,'Damage costs'!$C$16:$C$43,0))/1000,X56*INDEX('Damage costs'!$S$16:$S$43,MATCH($B64,'Damage costs'!$C$16:$C$43,0))/1000),\"\")","v":""},{"$f":"IFERROR(IF(OR($C$67=FALSE,LEFT($B64,3)<>\"NOX\"),Y56*INDEX('Damage costs'!$O$16:$O$43,MATCH($B64,'Damage costs'!$C$16:$C$43,0))/1000,Y56*INDEX('Damage costs'!$S$16:$S$43,MATCH($B64,'Damage costs'!$C$16:$C$43,0))/1000),\"\")","v":""},{"$f":"IFERROR(IF(OR($C$67=FALSE,LEFT($B64,3)<>\"NOX\"),Z56*INDEX('Damage costs'!$O$16:$O$43,MATCH($B64,'Damage costs'!$C$16:$C$43,0))/1000,Z56*INDEX('Damage costs'!$S$16:$S$43,MATCH($B64,'Damage costs'!$C$16:$C$43,0))/1000),\"\")","v":""},{"$f":"IFERROR(IF(OR($C$67=FALSE,LEFT($B64,3)<>\"NOX\"),AA56*INDEX('Damage costs'!$O$16:$O$43,MATCH($B64,'Damage costs'!$C$16:$C$43,0))/1000,AA56*INDEX('Damage costs'!$S$16:$S$43,MATCH($B64,'Damage costs'!$C$16:$C$43,0))/1000),\"\")","v":""},{"$f":"IFERROR(IF(OR($C$67=FALSE,LEFT($B64,3)<>\"NOX\"),AB56*INDEX('Damage costs'!$O$16:$O$43,MATCH($B64,'Damage costs'!$C$16:$C$43,0))/1000,AB56*INDEX('Damage costs'!$S$16:$S$43,MATCH($B64,'Damage costs'!$C$16:$C$43,0))/1000),\"\")","v":""},{"$f":"IFERROR(IF(OR($C$67=FALSE,LEFT($B64,3)<>\"NOX\"),AC56*INDEX('Damage costs'!$O$16:$O$43,MATCH($B64,'Damage costs'!$C$16:$C$43,0))/1000,AC56*INDEX('Damage costs'!$S$16:$S$43,MATCH($B64,'Damage costs'!$C$16:$C$43,0))/1000),\"\")","v":""},{"$f":"IFERROR(IF(OR($C$67=FALSE,LEFT($B64,3)<>\"NOX\"),AD56*INDEX('Damage costs'!$O$16:$O$43,MATCH($B64,'Damage costs'!$C$16:$C$43,0))/1000,AD56*INDEX('Damage costs'!$S$16:$S$43,MATCH($B64,'Damage costs'!$C$16:$C$43,0))/1000),\"\")","v":""},{"$f":"IFERROR(IF(OR($C$67=FALSE,LEFT($B64,3)<>\"NOX\"),AE56*INDEX('Damage costs'!$O$16:$O$43,MATCH($B64,'Damage costs'!$C$16:$C$43,0))/1000,AE56*INDEX('Damage costs'!$S$16:$S$43,MATCH($B64,'Damage costs'!$C$16:$C$43,0))/1000),\"\")","v":""},{"$f":"IFERROR(IF(OR($C$67=FALSE,LEFT($B64,3)<>\"NOX\"),AF56*INDEX('Damage costs'!$O$16:$O$43,MATCH($B64,'Damage costs'!$C$16:$C$43,0))/1000,AF56*INDEX('Damage costs'!$S$16:$S$43,MATCH($B64,'Damage costs'!$C$16:$C$43,0))/1000),\"\")","v":""},{"$f":"IFERROR(IF(OR($C$67=FALSE,LEFT($B64,3)<>\"NOX\"),AG56*INDEX('Damage costs'!$O$16:$O$43,MATCH($B64,'Damage costs'!$C$16:$C$43,0))/1000,AG56*INDEX('Damage costs'!$S$16:$S$43,MATCH($B64,'Damage costs'!$C$16:$C$43,0))/1000),\"\")","v":""},{"$f":"IFERROR(IF(OR($C$67=FALSE,LEFT($B64,3)<>\"NOX\"),AH56*INDEX('Damage costs'!$O$16:$O$43,MATCH($B64,'Damage costs'!$C$16:$C$43,0))/1000,AH56*INDEX('Damage costs'!$S$16:$S$43,MATCH($B64,'Damage costs'!$C$16:$C$43,0))/1000),\"\")","v":""},{"$f":"IFERROR(IF(OR($C$67=FALSE,LEFT($B64,3)<>\"NOX\"),AI56*INDEX('Damage costs'!$O$16:$O$43,MATCH($B64,'Damage costs'!$C$16:$C$43,0))/1000,AI56*INDEX('Damage costs'!$S$16:$S$43,MATCH($B64,'Damage costs'!$C$16:$C$43,0))/1000),\"\")","v":""},{"$f":"IFERROR(IF(OR($C$67=FALSE,LEFT($B64,3)<>\"NOX\"),AJ56*INDEX('Damage costs'!$O$16:$O$43,MATCH($B64,'Damage costs'!$C$16:$C$43,0))/1000,AJ56*INDEX('Damage costs'!$S$16:$S$43,MATCH($B64,'Damage costs'!$C$16:$C$43,0))/1000),\"\")","v":""},{"$f":"IFERROR(IF(OR($C$67=FALSE,LEFT($B64,3)<>\"NOX\"),AK56*INDEX('Damage costs'!$O$16:$O$43,MATCH($B64,'Damage costs'!$C$16:$C$43,0))/1000,AK56*INDEX('Damage costs'!$S$16:$S$43,MATCH($B64,'Damage costs'!$C$16:$C$43,0))/1000),\"\")","v":""},{"$f":"IFERROR(IF(OR($C$67=FALSE,LEFT($B64,3)<>\"NOX\"),AL56*INDEX('Damage costs'!$O$16:$O$43,MATCH($B64,'Damage costs'!$C$16:$C$43,0))/1000,AL56*INDEX('Damage costs'!$S$16:$S$43,MATCH($B64,'Damage costs'!$C$16:$C$43,0))/1000),\"\")","v":""},{"$f":"IFERROR(IF(OR($C$67=FALSE,LEFT($B64,3)<>\"NOX\"),AM56*INDEX('Damage costs'!$O$16:$O$43,MATCH($B64,'Damage costs'!$C$16:$C$43,0))/1000,AM56*INDEX('Damage costs'!$S$16:$S$43,MATCH($B64,'Damage costs'!$C$16:$C$43,0))/1000),\"\")","v":""},{"$f":"IFERROR(IF(OR($C$67=FALSE,LEFT($B64,3)<>\"NOX\"),AN56*INDEX('Damage costs'!$O$16:$O$43,MATCH($B64,'Damage costs'!$C$16:$C$43,0))/1000,AN56*INDEX('Damage costs'!$S$16:$S$43,MATCH($B64,'Damage costs'!$C$16:$C$43,0))/1000),\"\")","v":""},{"$f":"IFERROR(IF(OR($C$67=FALSE,LEFT($B64,3)<>\"NOX\"),AO56*INDEX('Damage costs'!$O$16:$O$43,MATCH($B64,'Damage costs'!$C$16:$C$43,0))/1000,AO56*INDEX('Damage costs'!$S$16:$S$43,MATCH($B64,'Damage costs'!$C$16:$C$43,0))/1000),\"\")","v":""},{"$f":"IFERROR(IF(OR($C$67=FALSE,LEFT($B64,3)<>\"NOX\"),AP56*INDEX('Damage costs'!$O$16:$O$43,MATCH($B64,'Damage costs'!$C$16:$C$43,0))/1000,AP56*INDEX('Damage costs'!$S$16:$S$43,MATCH($B64,'Damage costs'!$C$16:$C$43,0))/1000),\"\")","v":""},{"$f":"IFERROR(IF(OR($C$67=FALSE,LEFT($B64,3)<>\"NOX\"),AQ56*INDEX('Damage costs'!$O$16:$O$43,MATCH($B64,'Damage costs'!$C$16:$C$43,0))/1000,AQ56*INDEX('Damage costs'!$S$16:$S$43,MATCH($B64,'Damage costs'!$C$16:$C$43,0))/1000),\"\")","v":""},{"$f":"IFERROR(IF(OR($C$67=FALSE,LEFT($B64,3)<>\"NOX\"),AR56*INDEX('Damage costs'!$O$16:$O$43,MATCH($B64,'Damage costs'!$C$16:$C$43,0))/1000,AR56*INDEX('Damage costs'!$S$16:$S$43,MATCH($B64,'Damage costs'!$C$16:$C$43,0))/1000),\"\")","v":""},{"$f":"IFERROR(IF(OR($C$67=FALSE,LEFT($B64,3)<>\"NOX\"),AS56*INDEX('Damage costs'!$O$16:$O$43,MATCH($B64,'Damage costs'!$C$16:$C$43,0))/1000,AS56*INDEX('Damage costs'!$S$16:$S$43,MATCH($B64,'Damage costs'!$C$16:$C$43,0))/1000),\"\")","v":""},{"$f":"IFERROR(IF(OR($C$67=FALSE,LEFT($B64,3)<>\"NOX\"),AT56*INDEX('Damage costs'!$O$16:$O$43,MATCH($B64,'Damage costs'!$C$16:$C$43,0))/1000,AT56*INDEX('Damage costs'!$S$16:$S$43,MATCH($B64,'Damage costs'!$C$16:$C$43,0))/1000),\"\")","v":""},{"$f":"IFERROR(IF(OR($C$67=FALSE,LEFT($B64,3)<>\"NOX\"),AU56*INDEX('Damage costs'!$O$16:$O$43,MATCH($B64,'Damage costs'!$C$16:$C$43,0))/1000,AU56*INDEX('Damage costs'!$S$16:$S$43,MATCH($B64,'Damage costs'!$C$16:$C$43,0))/1000),\"\")","v":""},{"$f":"IFERROR(IF(OR($C$67=FALSE,LEFT($B64,3)<>\"NOX\"),AV56*INDEX('Damage costs'!$O$16:$O$43,MATCH($B64,'Damage costs'!$C$16:$C$43,0))/1000,AV56*INDEX('Damage costs'!$S$16:$S$43,MATCH($B64,'Damage costs'!$C$16:$C$43,0))/1000),\"\")","v":""},{"$f":"IFERROR(IF(OR($C$67=FALSE,LEFT($B64,3)<>\"NOX\"),AW56*INDEX('Damage costs'!$O$16:$O$43,MATCH($B64,'Damage costs'!$C$16:$C$43,0))/1000,AW56*INDEX('Damage costs'!$S$16:$S$43,MATCH($B64,'Damage costs'!$C$16:$C$43,0))/1000),\"\")","v":""},{"$f":"IFERROR(IF(OR($C$67=FALSE,LEFT($B64,3)<>\"NOX\"),AX56*INDEX('Damage costs'!$O$16:$O$43,MATCH($B64,'Damage costs'!$C$16:$C$43,0))/1000,AX56*INDEX('Damage costs'!$S$16:$S$43,MATCH($B64,'Damage costs'!$C$16:$C$43,0))/1000),\"\")","v":""},{"$f":"IFERROR(IF(OR($C$67=FALSE,LEFT($B64,3)<>\"NOX\"),AY56*INDEX('Damage costs'!$O$16:$O$43,MATCH($B64,'Damage costs'!$C$16:$C$43,0))/1000,AY56*INDEX('Damage costs'!$S$16:$S$43,MATCH($B64,'Damage costs'!$C$16:$C$43,0))/1000),\"\")","v":""},{"$f":"IFERROR(IF(OR($C$67=FALSE,LEFT($B64,3)<>\"NOX\"),AZ56*INDEX('Damage costs'!$O$16:$O$43,MATCH($B64,'Damage costs'!$C$16:$C$43,0))/1000,AZ56*INDEX('Damage costs'!$S$16:$S$43,MATCH($B64,'Damage costs'!$C$16:$C$43,0))/1000),\"\")","v":""},{"$f":"IFERROR(IF(OR($C$67=FALSE,LEFT($B64,3)<>\"NOX\"),BA56*INDEX('Damage costs'!$O$16:$O$43,MATCH($B64,'Damage costs'!$C$16:$C$43,0))/1000,BA56*INDEX('Damage costs'!$S$16:$S$43,MATCH($B64,'Damage costs'!$C$16:$C$43,0))/1000),\"\")","v":""},{"$f":"IFERROR(IF(OR($C$67=FALSE,LEFT($B64,3)<>\"NOX\"),BB56*INDEX('Damage costs'!$O$16:$O$43,MATCH($B64,'Damage costs'!$C$16:$C$43,0))/1000,BB56*INDEX('Damage costs'!$S$16:$S$43,MATCH($B64,'Damage costs'!$C$16:$C$43,0))/1000),\"\")","v":""},{"$f":"IFERROR(IF(OR($C$67=FALSE,LEFT($B64,3)<>\"NOX\"),BC56*INDEX('Damage costs'!$O$16:$O$43,MATCH($B64,'Damage costs'!$C$16:$C$43,0))/1000,BC56*INDEX('Damage costs'!$S$16:$S$43,MATCH($B64,'Damage costs'!$C$16:$C$43,0))/1000),\"\")","v":""},{"$f":"IFERROR(IF(OR($C$67=FALSE,LEFT($B64,3)<>\"NOX\"),BD56*INDEX('Damage costs'!$O$16:$O$43,MATCH($B64,'Damage costs'!$C$16:$C$43,0))/1000,BD56*INDEX('Damage costs'!$S$16:$S$43,MATCH($B64,'Damage costs'!$C$16:$C$43,0))/1000),\"\")","v":""},{"$f":"IFERROR(IF(OR($C$67=FALSE,LEFT($B64,3)<>\"NOX\"),BE56*INDEX('Damage costs'!$O$16:$O$43,MATCH($B64,'Damage costs'!$C$16:$C$43,0))/1000,BE56*INDEX('Damage costs'!$S$16:$S$43,MATCH($B64,'Damage costs'!$C$16:$C$43,0))/1000),\"\")","v":""},{"$f":"IFERROR(IF(OR($C$67=FALSE,LEFT($B64,3)<>\"NOX\"),BF56*INDEX('Damage costs'!$O$16:$O$43,MATCH($B64,'Damage costs'!$C$16:$C$43,0))/1000,BF56*INDEX('Damage costs'!$S$16:$S$43,MATCH($B64,'Damage costs'!$C$16:$C$43,0))/1000),\"\")","v":""},{"$f":"IFERROR(IF(OR($C$67=FALSE,LEFT($B64,3)<>\"NOX\"),BG56*INDEX('Damage costs'!$O$16:$O$43,MATCH($B64,'Damage costs'!$C$16:$C$43,0))/1000,BG56*INDEX('Damage costs'!$S$16:$S$43,MATCH($B64,'Damage costs'!$C$16:$C$43,0))/1000),\"\")","v":""},{"$f":"IFERROR(IF(OR($C$67=FALSE,LEFT($B64,3)<>\"NOX\"),BH56*INDEX('Damage costs'!$O$16:$O$43,MATCH($B64,'Damage costs'!$C$16:$C$43,0))/1000,BH56*INDEX('Damage costs'!$S$16:$S$43,MATCH($B64,'Damage costs'!$C$16:$C$43,0))/1000),\"\")","v":""},{"$f":"IFERROR(IF(OR($C$67=FALSE,LEFT($B64,3)<>\"NOX\"),BI56*INDEX('Damage costs'!$O$16:$O$43,MATCH($B64,'Damage costs'!$C$16:$C$43,0))/1000,BI56*INDEX('Damage costs'!$S$16:$S$43,MATCH($B64,'Damage costs'!$C$16:$C$43,0))/1000),\"\")","v":""},{"$f":"IFERROR(IF(OR($C$67=FALSE,LEFT($B64,3)<>\"NOX\"),BJ56*INDEX('Damage costs'!$O$16:$O$43,MATCH($B64,'Damage costs'!$C$16:$C$43,0))/1000,BJ56*INDEX('Damage costs'!$S$16:$S$43,MATCH($B64,'Damage costs'!$C$16:$C$43,0))/1000),\"\")","v":""},{"$f":"IFERROR(IF(OR($C$67=FALSE,LEFT($B64,3)<>\"NOX\"),BK56*INDEX('Damage costs'!$O$16:$O$43,MATCH($B64,'Damage costs'!$C$16:$C$43,0))/1000,BK56*INDEX('Damage costs'!$S$16:$S$43,MATCH($B64,'Damage costs'!$C$16:$C$43,0))/1000),\"\")","v":""},{"$f":"IFERROR(IF(OR($C$67=FALSE,LEFT($B64,3)<>\"NOX\"),BL56*INDEX('Damage costs'!$O$16:$O$43,MATCH($B64,'Damage costs'!$C$16:$C$43,0))/1000,BL56*INDEX('Damage costs'!$S$16:$S$43,MATCH($B64,'Damage costs'!$C$16:$C$43,0))/1000),\"\")","v":""},{"$f":"IFERROR(IF(OR($C$67=FALSE,LEFT($B64,3)<>\"NOX\"),BM56*INDEX('Damage costs'!$O$16:$O$43,MATCH($B64,'Damage costs'!$C$16:$C$43,0))/1000,BM56*INDEX('Damage costs'!$S$16:$S$43,MATCH($B64,'Damage costs'!$C$16:$C$43,0))/1000),\"\")","v":""},{"$f":"IFERROR(IF(OR($C$67=FALSE,LEFT($B64,3)<>\"NOX\"),BN56*INDEX('Damage costs'!$O$16:$O$43,MATCH($B64,'Damage costs'!$C$16:$C$43,0))/1000,BN56*INDEX('Damage costs'!$S$16:$S$43,MATCH($B64,'Damage costs'!$C$16:$C$43,0))/1000),\"\")","v":""},{"$f":"IFERROR(IF(OR($C$67=FALSE,LEFT($B64,3)<>\"NOX\"),BO56*INDEX('Damage costs'!$O$16:$O$43,MATCH($B64,'Damage costs'!$C$16:$C$43,0))/1000,BO56*INDEX('Damage costs'!$S$16:$S$43,MATCH($B64,'Damage costs'!$C$16:$C$43,0))/1000),\"\")","v":""},{"$f":"IFERROR(IF(OR($C$67=FALSE,LEFT($B64,3)<>\"NOX\"),BP56*INDEX('Damage costs'!$O$16:$O$43,MATCH($B64,'Damage costs'!$C$16:$C$43,0))/1000,BP56*INDEX('Damage costs'!$S$16:$S$43,MATCH($B64,'Damage costs'!$C$16:$C$43,0))/1000),\"\")","v":""},{"$f":"IFERROR(IF(OR($C$67=FALSE,LEFT($B64,3)<>\"NOX\"),BQ56*INDEX('Damage costs'!$O$16:$O$43,MATCH($B64,'Damage costs'!$C$16:$C$43,0))/1000,BQ56*INDEX('Damage costs'!$S$16:$S$43,MATCH($B64,'Damage costs'!$C$16:$C$43,0))/1000),\"\")","v":""},{"$f":"IFERROR(IF(OR($C$67=FALSE,LEFT($B64,3)<>\"NOX\"),BR56*INDEX('Damage costs'!$O$16:$O$43,MATCH($B64,'Damage costs'!$C$16:$C$43,0))/1000,BR56*INDEX('Damage costs'!$S$16:$S$43,MATCH($B64,'Damage costs'!$C$16:$C$43,0))/1000),\"\")","v":""},{"$f":"IFERROR(IF(OR($C$67=FALSE,LEFT($B64,3)<>\"NOX\"),BS56*INDEX('Damage costs'!$O$16:$O$43,MATCH($B64,'Damage costs'!$C$16:$C$43,0))/1000,BS56*INDEX('Damage costs'!$S$16:$S$43,MATCH($B64,'Damage costs'!$C$16:$C$43,0))/1000),\"\")","v":""},{"$f":"IFERROR(IF(OR($C$67=FALSE,LEFT($B64,3)<>\"NOX\"),BT56*INDEX('Damage costs'!$O$16:$O$43,MATCH($B64,'Damage costs'!$C$16:$C$43,0))/1000,BT56*INDEX('Damage costs'!$S$16:$S$43,MATCH($B64,'Damage costs'!$C$16:$C$43,0))/1000),\"\")","v":""},{"$f":"IFERROR(IF(OR($C$67=FALSE,LEFT($B64,3)<>\"NOX\"),BU56*INDEX('Damage costs'!$O$16:$O$43,MATCH($B64,'Damage costs'!$C$16:$C$43,0))/1000,BU56*INDEX('Damage costs'!$S$16:$S$43,MATCH($B64,'Damage costs'!$C$16:$C$43,0))/1000),\"\")","v":""},{"$f":"IFERROR(IF(OR($C$67=FALSE,LEFT($B64,3)<>\"NOX\"),BV56*INDEX('Damage costs'!$O$16:$O$43,MATCH($B64,'Damage costs'!$C$16:$C$43,0))/1000,BV56*INDEX('Damage costs'!$S$16:$S$43,MATCH($B64,'Damage costs'!$C$16:$C$43,0))/1000),\"\")","v":""},{"$f":"IFERROR(IF(OR($C$67=FALSE,LEFT($B64,3)<>\"NOX\"),BW56*INDEX('Damage costs'!$O$16:$O$43,MATCH($B64,'Damage costs'!$C$16:$C$43,0))/1000,BW56*INDEX('Damage costs'!$S$16:$S$43,MATCH($B64,'Damage costs'!$C$16:$C$43,0))/1000),\"\")","v":""},{"$f":"IFERROR(IF(OR($C$67=FALSE,LEFT($B64,3)<>\"NOX\"),BX56*INDEX('Damage costs'!$O$16:$O$43,MATCH($B64,'Damage costs'!$C$16:$C$43,0))/1000,BX56*INDEX('Damage costs'!$S$16:$S$43,MATCH($B64,'Damage costs'!$C$16:$C$43,0))/1000),\"\")","v":""},{"$f":"IFERROR(IF(OR($C$67=FALSE,LEFT($B64,3)<>\"NOX\"),BY56*INDEX('Damage costs'!$O$16:$O$43,MATCH($B64,'Damage costs'!$C$16:$C$43,0))/1000,BY56*INDEX('Damage costs'!$S$16:$S$43,MATCH($B64,'Damage costs'!$C$16:$C$43,0))/1000),\"\")","v":""},{"$f":"IFERROR(IF(OR($C$67=FALSE,LEFT($B64,3)<>\"NOX\"),BZ56*INDEX('Damage costs'!$O$16:$O$43,MATCH($B64,'Damage costs'!$C$16:$C$43,0))/1000,BZ56*INDEX('Damage costs'!$S$16:$S$43,MATCH($B64,'Damage costs'!$C$16:$C$43,0))/1000),\"\")","v":""},{"$f":"IFERROR(IF(OR($C$67=FALSE,LEFT($B64,3)<>\"NOX\"),CA56*INDEX('Damage costs'!$O$16:$O$43,MATCH($B64,'Damage costs'!$C$16:$C$43,0))/1000,CA56*INDEX('Damage costs'!$S$16:$S$43,MATCH($B64,'Damage costs'!$C$16:$C$43,0))/1000),\"\")","v":""},{"$f":"IFERROR(IF(OR($C$67=FALSE,LEFT($B64,3)<>\"NOX\"),CB56*INDEX('Damage costs'!$O$16:$O$43,MATCH($B64,'Damage costs'!$C$16:$C$43,0))/1000,CB56*INDEX('Damage costs'!$S$16:$S$43,MATCH($B64,'Damage costs'!$C$16:$C$43,0))/1000),\"\")","v":""},{"$f":"IFERROR(IF(OR($C$67=FALSE,LEFT($B64,3)<>\"NOX\"),CC56*INDEX('Damage costs'!$O$16:$O$43,MATCH($B64,'Damage costs'!$C$16:$C$43,0))/1000,CC56*INDEX('Damage costs'!$S$16:$S$43,MATCH($B64,'Damage costs'!$C$16:$C$43,0))/1000),\"\")","v":""},{"$f":"IFERROR(IF(OR($C$67=FALSE,LEFT($B64,3)<>\"NOX\"),CD56*INDEX('Damage costs'!$O$16:$O$43,MATCH($B64,'Damage costs'!$C$16:$C$43,0))/1000,CD56*INDEX('Damage costs'!$S$16:$S$43,MATCH($B64,'Damage costs'!$C$16:$C$43,0))/1000),\"\")","v":""},{"$f":"IFERROR(IF(OR($C$67=FALSE,LEFT($B64,3)<>\"NOX\"),CE56*INDEX('Damage costs'!$O$16:$O$43,MATCH($B64,'Damage costs'!$C$16:$C$43,0))/1000,CE56*INDEX('Damage costs'!$S$16:$S$43,MATCH($B64,'Damage costs'!$C$16:$C$43,0))/1000),\"\")","v":""},{"$f":"IFERROR(IF(OR($C$67=FALSE,LEFT($B64,3)<>\"NOX\"),CF56*INDEX('Damage costs'!$O$16:$O$43,MATCH($B64,'Damage costs'!$C$16:$C$43,0))/1000,CF56*INDEX('Damage costs'!$S$16:$S$43,MATCH($B64,'Damage costs'!$C$16:$C$43,0))/1000),\"\")","v":""},{"$f":"IFERROR(IF(OR($C$67=FALSE,LEFT($B64,3)<>\"NOX\"),CG56*INDEX('Damage costs'!$O$16:$O$43,MATCH($B64,'Damage costs'!$C$16:$C$43,0))/1000,CG56*INDEX('Damage costs'!$S$16:$S$43,MATCH($B64,'Damage costs'!$C$16:$C$43,0))/1000),\"\")","v":""},{"$f":"IFERROR(IF(OR($C$67=FALSE,LEFT($B64,3)<>\"NOX\"),CH56*INDEX('Damage costs'!$O$16:$O$43,MATCH($B64,'Damage costs'!$C$16:$C$43,0))/1000,CH56*INDEX('Damage costs'!$S$16:$S$43,MATCH($B64,'Damage costs'!$C$16:$C$43,0))/1000),\"\")","v":""},{"$f":"IFERROR(IF(OR($C$67=FALSE,LEFT($B64,3)<>\"NOX\"),CI56*INDEX('Damage costs'!$O$16:$O$43,MATCH($B64,'Damage costs'!$C$16:$C$43,0))/1000,CI56*INDEX('Damage costs'!$S$16:$S$43,MATCH($B64,'Damage costs'!$C$16:$C$43,0))/1000),\"\")","v":""},{"$f":"IFERROR(IF(OR($C$67=FALSE,LEFT($B64,3)<>\"NOX\"),CJ56*INDEX('Damage costs'!$O$16:$O$43,MATCH($B64,'Damage costs'!$C$16:$C$43,0))/1000,CJ56*INDEX('Damage costs'!$S$16:$S$43,MATCH($B64,'Damage costs'!$C$16:$C$43,0))/1000),\"\")","v":""},{"$f":"IFERROR(IF(OR($C$67=FALSE,LEFT($B64,3)<>\"NOX\"),CK56*INDEX('Damage costs'!$O$16:$O$43,MATCH($B64,'Damage costs'!$C$16:$C$43,0))/1000,CK56*INDEX('Damage costs'!$S$16:$S$43,MATCH($B64,'Damage costs'!$C$16:$C$43,0))/1000),\"\")","v":""},{"$f":"IFERROR(IF(OR($C$67=FALSE,LEFT($B64,3)<>\"NOX\"),CL56*INDEX('Damage costs'!$O$16:$O$43,MATCH($B64,'Damage costs'!$C$16:$C$43,0))/1000,CL56*INDEX('Damage costs'!$S$16:$S$43,MATCH($B64,'Damage costs'!$C$16:$C$43,0))/1000),\"\")","v":""},{"$f":"IFERROR(IF(OR($C$67=FALSE,LEFT($B64,3)<>\"NOX\"),CM56*INDEX('Damage costs'!$O$16:$O$43,MATCH($B64,'Damage costs'!$C$16:$C$43,0))/1000,CM56*INDEX('Damage costs'!$S$16:$S$43,MATCH($B64,'Damage costs'!$C$16:$C$43,0))/1000),\"\")","v":""},{"$f":"IFERROR(IF(OR($C$67=FALSE,LEFT($B64,3)<>\"NOX\"),CN56*INDEX('Damage costs'!$O$16:$O$43,MATCH($B64,'Damage costs'!$C$16:$C$43,0))/1000,CN56*INDEX('Damage costs'!$S$16:$S$43,MATCH($B64,'Damage costs'!$C$16:$C$43,0))/1000),\"\")","v":""},{"$f":"IFERROR(IF(OR($C$67=FALSE,LEFT($B64,3)<>\"NOX\"),CO56*INDEX('Damage costs'!$O$16:$O$43,MATCH($B64,'Damage costs'!$C$16:$C$43,0))/1000,CO56*INDEX('Damage costs'!$S$16:$S$43,MATCH($B64,'Damage costs'!$C$16:$C$43,0))/1000),\"\")","v":""},{"$f":"IFERROR(IF(OR($C$67=FALSE,LEFT($B64,3)<>\"NOX\"),CP56*INDEX('Damage costs'!$O$16:$O$43,MATCH($B64,'Damage costs'!$C$16:$C$43,0))/1000,CP56*INDEX('Damage costs'!$S$16:$S$43,MATCH($B64,'Damage costs'!$C$16:$C$43,0))/1000),\"\")","v":""},{"$f":"IFERROR(IF(OR($C$67=FALSE,LEFT($B64,3)<>\"NOX\"),CQ56*INDEX('Damage costs'!$O$16:$O$43,MATCH($B64,'Damage costs'!$C$16:$C$43,0))/1000,CQ56*INDEX('Damage costs'!$S$16:$S$43,MATCH($B64,'Damage costs'!$C$16:$C$43,0))/1000),\"\")","v":""},{"$f":"IFERROR(IF(OR($C$67=FALSE,LEFT($B64,3)<>\"NOX\"),CR56*INDEX('Damage costs'!$O$16:$O$43,MATCH($B64,'Damage costs'!$C$16:$C$43,0))/1000,CR56*INDEX('Damage costs'!$S$16:$S$43,MATCH($B64,'Damage costs'!$C$16:$C$43,0))/1000),\"\")","v":""},{"$f":"IFERROR(IF(OR($C$67=FALSE,LEFT($B64,3)<>\"NOX\"),CS56*INDEX('Damage costs'!$O$16:$O$43,MATCH($B64,'Damage costs'!$C$16:$C$43,0))/1000,CS56*INDEX('Damage costs'!$S$16:$S$43,MATCH($B64,'Damage costs'!$C$16:$C$43,0))/1000),\"\")","v":""},{"$f":"IFERROR(IF(OR($C$67=FALSE,LEFT($B64,3)<>\"NOX\"),CT56*INDEX('Damage costs'!$O$16:$O$43,MATCH($B64,'Damage costs'!$C$16:$C$43,0))/1000,CT56*INDEX('Damage costs'!$S$16:$S$43,MATCH($B64,'Damage costs'!$C$16:$C$43,0))/1000),\"\")","v":""},{"$f":"IFERROR(IF(OR($C$67=FALSE,LEFT($B64,3)<>\"NOX\"),CU56*INDEX('Damage costs'!$O$16:$O$43,MATCH($B64,'Damage costs'!$C$16:$C$43,0))/1000,CU56*INDEX('Damage costs'!$S$16:$S$43,MATCH($B64,'Damage costs'!$C$16:$C$43,0))/1000),\"\")","v":""},{"$f":"IFERROR(IF(OR($C$67=FALSE,LEFT($B64,3)<>\"NOX\"),CV56*INDEX('Damage costs'!$O$16:$O$43,MATCH($B64,'Damage costs'!$C$16:$C$43,0))/1000,CV56*INDEX('Damage costs'!$S$16:$S$43,MATCH($B64,'Damage costs'!$C$16:$C$43,0))/1000),\"\")","v":""},{"$f":"IFERROR(IF(OR($C$67=FALSE,LEFT($B64,3)<>\"NOX\"),CW56*INDEX('Damage costs'!$O$16:$O$43,MATCH($B64,'Damage costs'!$C$16:$C$43,0))/1000,CW56*INDEX('Damage costs'!$S$16:$S$43,MATCH($B64,'Damage costs'!$C$16:$C$43,0))/1000),\"\")","v":""},{"$f":"IFERROR(IF(OR($C$67=FALSE,LEFT($B64,3)<>\"NOX\"),CX56*INDEX('Damage costs'!$O$16:$O$43,MATCH($B64,'Damage costs'!$C$16:$C$43,0))/1000,CX56*INDEX('Damage costs'!$S$16:$S$43,MATCH($B64,'Damage costs'!$C$16:$C$43,0))/1000),\"\")","v":""},{"$f":"IFERROR(IF(OR($C$67=FALSE,LEFT($B64,3)<>\"NOX\"),CY56*INDEX('Damage costs'!$O$16:$O$43,MATCH($B64,'Damage costs'!$C$16:$C$43,0))/1000,CY56*INDEX('Damage costs'!$S$16:$S$43,MATCH($B64,'Damage costs'!$C$16:$C$43,0))/1000),\"\")","v":""}]
[null,0,"£000's",{"$f":"IFERROR(IF(OR($C$67=FALSE,LEFT($B65,3)<>\"NOX\"),D57*INDEX('Damage costs'!$O$16:$O$43,MATCH($B65,'Damage costs'!$C$16:$C$43,0))/1000,D57*INDEX('Damage costs'!$S$16:$S$43,MATCH($B65,'Damage costs'!$C$16:$C$43,0))/1000),\"\")","v":""},{"$f":"IFERROR(IF(OR($C$67=FALSE,LEFT($B65,3)<>\"NOX\"),E57*INDEX('Damage costs'!$O$16:$O$43,MATCH($B65,'Damage costs'!$C$16:$C$43,0))/1000,E57*INDEX('Damage costs'!$S$16:$S$43,MATCH($B65,'Damage costs'!$C$16:$C$43,0))/1000),\"\")","v":""},{"$f":"IFERROR(IF(OR($C$67=FALSE,LEFT($B65,3)<>\"NOX\"),F57*INDEX('Damage costs'!$O$16:$O$43,MATCH($B65,'Damage costs'!$C$16:$C$43,0))/1000,F57*INDEX('Damage costs'!$S$16:$S$43,MATCH($B65,'Damage costs'!$C$16:$C$43,0))/1000),\"\")","v":""},{"$f":"IFERROR(IF(OR($C$67=FALSE,LEFT($B65,3)<>\"NOX\"),G57*INDEX('Damage costs'!$O$16:$O$43,MATCH($B65,'Damage costs'!$C$16:$C$43,0))/1000,G57*INDEX('Damage costs'!$S$16:$S$43,MATCH($B65,'Damage costs'!$C$16:$C$43,0))/1000),\"\")","v":""},{"$f":"IFERROR(IF(OR($C$67=FALSE,LEFT($B65,3)<>\"NOX\"),H57*INDEX('Damage costs'!$O$16:$O$43,MATCH($B65,'Damage costs'!$C$16:$C$43,0))/1000,H57*INDEX('Damage costs'!$S$16:$S$43,MATCH($B65,'Damage costs'!$C$16:$C$43,0))/1000),\"\")","v":""},{"$f":"IFERROR(IF(OR($C$67=FALSE,LEFT($B65,3)<>\"NOX\"),I57*INDEX('Damage costs'!$O$16:$O$43,MATCH($B65,'Damage costs'!$C$16:$C$43,0))/1000,I57*INDEX('Damage costs'!$S$16:$S$43,MATCH($B65,'Damage costs'!$C$16:$C$43,0))/1000),\"\")","v":""},{"$f":"IFERROR(IF(OR($C$67=FALSE,LEFT($B65,3)<>\"NOX\"),J57*INDEX('Damage costs'!$O$16:$O$43,MATCH($B65,'Damage costs'!$C$16:$C$43,0))/1000,J57*INDEX('Damage costs'!$S$16:$S$43,MATCH($B65,'Damage costs'!$C$16:$C$43,0))/1000),\"\")","v":""},{"$f":"IFERROR(IF(OR($C$67=FALSE,LEFT($B65,3)<>\"NOX\"),K57*INDEX('Damage costs'!$O$16:$O$43,MATCH($B65,'Damage costs'!$C$16:$C$43,0))/1000,K57*INDEX('Damage costs'!$S$16:$S$43,MATCH($B65,'Damage costs'!$C$16:$C$43,0))/1000),\"\")","v":""},{"$f":"IFERROR(IF(OR($C$67=FALSE,LEFT($B65,3)<>\"NOX\"),L57*INDEX('Damage costs'!$O$16:$O$43,MATCH($B65,'Damage costs'!$C$16:$C$43,0))/1000,L57*INDEX('Damage costs'!$S$16:$S$43,MATCH($B65,'Damage costs'!$C$16:$C$43,0))/1000),\"\")","v":""},{"$f":"IFERROR(IF(OR($C$67=FALSE,LEFT($B65,3)<>\"NOX\"),M57*INDEX('Damage costs'!$O$16:$O$43,MATCH($B65,'Damage costs'!$C$16:$C$43,0))/1000,M57*INDEX('Damage costs'!$S$16:$S$43,MATCH($B65,'Damage costs'!$C$16:$C$43,0))/1000),\"\")","v":""},{"$f":"IFERROR(IF(OR($C$67=FALSE,LEFT($B65,3)<>\"NOX\"),N57*INDEX('Damage costs'!$O$16:$O$43,MATCH($B65,'Damage costs'!$C$16:$C$43,0))/1000,N57*INDEX('Damage costs'!$S$16:$S$43,MATCH($B65,'Damage costs'!$C$16:$C$43,0))/1000),\"\")","v":""},{"$f":"IFERROR(IF(OR($C$67=FALSE,LEFT($B65,3)<>\"NOX\"),O57*INDEX('Damage costs'!$O$16:$O$43,MATCH($B65,'Damage costs'!$C$16:$C$43,0))/1000,O57*INDEX('Damage costs'!$S$16:$S$43,MATCH($B65,'Damage costs'!$C$16:$C$43,0))/1000),\"\")","v":""},{"$f":"IFERROR(IF(OR($C$67=FALSE,LEFT($B65,3)<>\"NOX\"),P57*INDEX('Damage costs'!$O$16:$O$43,MATCH($B65,'Damage costs'!$C$16:$C$43,0))/1000,P57*INDEX('Damage costs'!$S$16:$S$43,MATCH($B65,'Damage costs'!$C$16:$C$43,0))/1000),\"\")","v":""},{"$f":"IFERROR(IF(OR($C$67=FALSE,LEFT($B65,3)<>\"NOX\"),Q57*INDEX('Damage costs'!$O$16:$O$43,MATCH($B65,'Damage costs'!$C$16:$C$43,0))/1000,Q57*INDEX('Damage costs'!$S$16:$S$43,MATCH($B65,'Damage costs'!$C$16:$C$43,0))/1000),\"\")","v":""},{"$f":"IFERROR(IF(OR($C$67=FALSE,LEFT($B65,3)<>\"NOX\"),R57*INDEX('Damage costs'!$O$16:$O$43,MATCH($B65,'Damage costs'!$C$16:$C$43,0))/1000,R57*INDEX('Damage costs'!$S$16:$S$43,MATCH($B65,'Damage costs'!$C$16:$C$43,0))/1000),\"\")","v":""},{"$f":"IFERROR(IF(OR($C$67=FALSE,LEFT($B65,3)<>\"NOX\"),S57*INDEX('Damage costs'!$O$16:$O$43,MATCH($B65,'Damage costs'!$C$16:$C$43,0))/1000,S57*INDEX('Damage costs'!$S$16:$S$43,MATCH($B65,'Damage costs'!$C$16:$C$43,0))/1000),\"\")","v":""},{"$f":"IFERROR(IF(OR($C$67=FALSE,LEFT($B65,3)<>\"NOX\"),T57*INDEX('Damage costs'!$O$16:$O$43,MATCH($B65,'Damage costs'!$C$16:$C$43,0))/1000,T57*INDEX('Damage costs'!$S$16:$S$43,MATCH($B65,'Damage costs'!$C$16:$C$43,0))/1000),\"\")","v":""},{"$f":"IFERROR(IF(OR($C$67=FALSE,LEFT($B65,3)<>\"NOX\"),U57*INDEX('Damage costs'!$O$16:$O$43,MATCH($B65,'Damage costs'!$C$16:$C$43,0))/1000,U57*INDEX('Damage costs'!$S$16:$S$43,MATCH($B65,'Damage costs'!$C$16:$C$43,0))/1000),\"\")","v":""},{"$f":"IFERROR(IF(OR($C$67=FALSE,LEFT($B65,3)<>\"NOX\"),V57*INDEX('Damage costs'!$O$16:$O$43,MATCH($B65,'Damage costs'!$C$16:$C$43,0))/1000,V57*INDEX('Damage costs'!$S$16:$S$43,MATCH($B65,'Damage costs'!$C$16:$C$43,0))/1000),\"\")","v":""},{"$f":"IFERROR(IF(OR($C$67=FALSE,LEFT($B65,3)<>\"NOX\"),W57*INDEX('Damage costs'!$O$16:$O$43,MATCH($B65,'Damage costs'!$C$16:$C$43,0))/1000,W57*INDEX('Damage costs'!$S$16:$S$43,MATCH($B65,'Damage costs'!$C$16:$C$43,0))/1000),\"\")","v":""},{"$f":"IFERROR(IF(OR($C$67=FALSE,LEFT($B65,3)<>\"NOX\"),X57*INDEX('Damage costs'!$O$16:$O$43,MATCH($B65,'Damage costs'!$C$16:$C$43,0))/1000,X57*INDEX('Damage costs'!$S$16:$S$43,MATCH($B65,'Damage costs'!$C$16:$C$43,0))/1000),\"\")","v":""},{"$f":"IFERROR(IF(OR($C$67=FALSE,LEFT($B65,3)<>\"NOX\"),Y57*INDEX('Damage costs'!$O$16:$O$43,MATCH($B65,'Damage costs'!$C$16:$C$43,0))/1000,Y57*INDEX('Damage costs'!$S$16:$S$43,MATCH($B65,'Damage costs'!$C$16:$C$43,0))/1000),\"\")","v":""},{"$f":"IFERROR(IF(OR($C$67=FALSE,LEFT($B65,3)<>\"NOX\"),Z57*INDEX('Damage costs'!$O$16:$O$43,MATCH($B65,'Damage costs'!$C$16:$C$43,0))/1000,Z57*INDEX('Damage costs'!$S$16:$S$43,MATCH($B65,'Damage costs'!$C$16:$C$43,0))/1000),\"\")","v":""},{"$f":"IFERROR(IF(OR($C$67=FALSE,LEFT($B65,3)<>\"NOX\"),AA57*INDEX('Damage costs'!$O$16:$O$43,MATCH($B65,'Damage costs'!$C$16:$C$43,0))/1000,AA57*INDEX('Damage costs'!$S$16:$S$43,MATCH($B65,'Damage costs'!$C$16:$C$43,0))/1000),\"\")","v":""},{"$f":"IFERROR(IF(OR($C$67=FALSE,LEFT($B65,3)<>\"NOX\"),AB57*INDEX('Damage costs'!$O$16:$O$43,MATCH($B65,'Damage costs'!$C$16:$C$43,0))/1000,AB57*INDEX('Damage costs'!$S$16:$S$43,MATCH($B65,'Damage costs'!$C$16:$C$43,0))/1000),\"\")","v":""},{"$f":"IFERROR(IF(OR($C$67=FALSE,LEFT($B65,3)<>\"NOX\"),AC57*INDEX('Damage costs'!$O$16:$O$43,MATCH($B65,'Damage costs'!$C$16:$C$43,0))/1000,AC57*INDEX('Damage costs'!$S$16:$S$43,MATCH($B65,'Damage costs'!$C$16:$C$43,0))/1000),\"\")","v":""},{"$f":"IFERROR(IF(OR($C$67=FALSE,LEFT($B65,3)<>\"NOX\"),AD57*INDEX('Damage costs'!$O$16:$O$43,MATCH($B65,'Damage costs'!$C$16:$C$43,0))/1000,AD57*INDEX('Damage costs'!$S$16:$S$43,MATCH($B65,'Damage costs'!$C$16:$C$43,0))/1000),\"\")","v":""},{"$f":"IFERROR(IF(OR($C$67=FALSE,LEFT($B65,3)<>\"NOX\"),AE57*INDEX('Damage costs'!$O$16:$O$43,MATCH($B65,'Damage costs'!$C$16:$C$43,0))/1000,AE57*INDEX('Damage costs'!$S$16:$S$43,MATCH($B65,'Damage costs'!$C$16:$C$43,0))/1000),\"\")","v":""},{"$f":"IFERROR(IF(OR($C$67=FALSE,LEFT($B65,3)<>\"NOX\"),AF57*INDEX('Damage costs'!$O$16:$O$43,MATCH($B65,'Damage costs'!$C$16:$C$43,0))/1000,AF57*INDEX('Damage costs'!$S$16:$S$43,MATCH($B65,'Damage costs'!$C$16:$C$43,0))/1000),\"\")","v":""},{"$f":"IFERROR(IF(OR($C$67=FALSE,LEFT($B65,3)<>\"NOX\"),AG57*INDEX('Damage costs'!$O$16:$O$43,MATCH($B65,'Damage costs'!$C$16:$C$43,0))/1000,AG57*INDEX('Damage costs'!$S$16:$S$43,MATCH($B65,'Damage costs'!$C$16:$C$43,0))/1000),\"\")","v":""},{"$f":"IFERROR(IF(OR($C$67=FALSE,LEFT($B65,3)<>\"NOX\"),AH57*INDEX('Damage costs'!$O$16:$O$43,MATCH($B65,'Damage costs'!$C$16:$C$43,0))/1000,AH57*INDEX('Damage costs'!$S$16:$S$43,MATCH($B65,'Damage costs'!$C$16:$C$43,0))/1000),\"\")","v":""},{"$f":"IFERROR(IF(OR($C$67=FALSE,LEFT($B65,3)<>\"NOX\"),AI57*INDEX('Damage costs'!$O$16:$O$43,MATCH($B65,'Damage costs'!$C$16:$C$43,0))/1000,AI57*INDEX('Damage costs'!$S$16:$S$43,MATCH($B65,'Damage costs'!$C$16:$C$43,0))/1000),\"\")","v":""},{"$f":"IFERROR(IF(OR($C$67=FALSE,LEFT($B65,3)<>\"NOX\"),AJ57*INDEX('Damage costs'!$O$16:$O$43,MATCH($B65,'Damage costs'!$C$16:$C$43,0))/1000,AJ57*INDEX('Damage costs'!$S$16:$S$43,MATCH($B65,'Damage costs'!$C$16:$C$43,0))/1000),\"\")","v":""},{"$f":"IFERROR(IF(OR($C$67=FALSE,LEFT($B65,3)<>\"NOX\"),AK57*INDEX('Damage costs'!$O$16:$O$43,MATCH($B65,'Damage costs'!$C$16:$C$43,0))/1000,AK57*INDEX('Damage costs'!$S$16:$S$43,MATCH($B65,'Damage costs'!$C$16:$C$43,0))/1000),\"\")","v":""},{"$f":"IFERROR(IF(OR($C$67=FALSE,LEFT($B65,3)<>\"NOX\"),AL57*INDEX('Damage costs'!$O$16:$O$43,MATCH($B65,'Damage costs'!$C$16:$C$43,0))/1000,AL57*INDEX('Damage costs'!$S$16:$S$43,MATCH($B65,'Damage costs'!$C$16:$C$43,0))/1000),\"\")","v":""},{"$f":"IFERROR(IF(OR($C$67=FALSE,LEFT($B65,3)<>\"NOX\"),AM57*INDEX('Damage costs'!$O$16:$O$43,MATCH($B65,'Damage costs'!$C$16:$C$43,0))/1000,AM57*INDEX('Damage costs'!$S$16:$S$43,MATCH($B65,'Damage costs'!$C$16:$C$43,0))/1000),\"\")","v":""},{"$f":"IFERROR(IF(OR($C$67=FALSE,LEFT($B65,3)<>\"NOX\"),AN57*INDEX('Damage costs'!$O$16:$O$43,MATCH($B65,'Damage costs'!$C$16:$C$43,0))/1000,AN57*INDEX('Damage costs'!$S$16:$S$43,MATCH($B65,'Damage costs'!$C$16:$C$43,0))/1000),\"\")","v":""},{"$f":"IFERROR(IF(OR($C$67=FALSE,LEFT($B65,3)<>\"NOX\"),AO57*INDEX('Damage costs'!$O$16:$O$43,MATCH($B65,'Damage costs'!$C$16:$C$43,0))/1000,AO57*INDEX('Damage costs'!$S$16:$S$43,MATCH($B65,'Damage costs'!$C$16:$C$43,0))/1000),\"\")","v":""},{"$f":"IFERROR(IF(OR($C$67=FALSE,LEFT($B65,3)<>\"NOX\"),AP57*INDEX('Damage costs'!$O$16:$O$43,MATCH($B65,'Damage costs'!$C$16:$C$43,0))/1000,AP57*INDEX('Damage costs'!$S$16:$S$43,MATCH($B65,'Damage costs'!$C$16:$C$43,0))/1000),\"\")","v":""},{"$f":"IFERROR(IF(OR($C$67=FALSE,LEFT($B65,3)<>\"NOX\"),AQ57*INDEX('Damage costs'!$O$16:$O$43,MATCH($B65,'Damage costs'!$C$16:$C$43,0))/1000,AQ57*INDEX('Damage costs'!$S$16:$S$43,MATCH($B65,'Damage costs'!$C$16:$C$43,0))/1000),\"\")","v":""},{"$f":"IFERROR(IF(OR($C$67=FALSE,LEFT($B65,3)<>\"NOX\"),AR57*INDEX('Damage costs'!$O$16:$O$43,MATCH($B65,'Damage costs'!$C$16:$C$43,0))/1000,AR57*INDEX('Damage costs'!$S$16:$S$43,MATCH($B65,'Damage costs'!$C$16:$C$43,0))/1000),\"\")","v":""},{"$f":"IFERROR(IF(OR($C$67=FALSE,LEFT($B65,3)<>\"NOX\"),AS57*INDEX('Damage costs'!$O$16:$O$43,MATCH($B65,'Damage costs'!$C$16:$C$43,0))/1000,AS57*INDEX('Damage costs'!$S$16:$S$43,MATCH($B65,'Damage costs'!$C$16:$C$43,0))/1000),\"\")","v":""},{"$f":"IFERROR(IF(OR($C$67=FALSE,LEFT($B65,3)<>\"NOX\"),AT57*INDEX('Damage costs'!$O$16:$O$43,MATCH($B65,'Damage costs'!$C$16:$C$43,0))/1000,AT57*INDEX('Damage costs'!$S$16:$S$43,MATCH($B65,'Damage costs'!$C$16:$C$43,0))/1000),\"\")","v":""},{"$f":"IFERROR(IF(OR($C$67=FALSE,LEFT($B65,3)<>\"NOX\"),AU57*INDEX('Damage costs'!$O$16:$O$43,MATCH($B65,'Damage costs'!$C$16:$C$43,0))/1000,AU57*INDEX('Damage costs'!$S$16:$S$43,MATCH($B65,'Damage costs'!$C$16:$C$43,0))/1000),\"\")","v":""},{"$f":"IFERROR(IF(OR($C$67=FALSE,LEFT($B65,3)<>\"NOX\"),AV57*INDEX('Damage costs'!$O$16:$O$43,MATCH($B65,'Damage costs'!$C$16:$C$43,0))/1000,AV57*INDEX('Damage costs'!$S$16:$S$43,MATCH($B65,'Damage costs'!$C$16:$C$43,0))/1000),\"\")","v":""},{"$f":"IFERROR(IF(OR($C$67=FALSE,LEFT($B65,3)<>\"NOX\"),AW57*INDEX('Damage costs'!$O$16:$O$43,MATCH($B65,'Damage costs'!$C$16:$C$43,0))/1000,AW57*INDEX('Damage costs'!$S$16:$S$43,MATCH($B65,'Damage costs'!$C$16:$C$43,0))/1000),\"\")","v":""},{"$f":"IFERROR(IF(OR($C$67=FALSE,LEFT($B65,3)<>\"NOX\"),AX57*INDEX('Damage costs'!$O$16:$O$43,MATCH($B65,'Damage costs'!$C$16:$C$43,0))/1000,AX57*INDEX('Damage costs'!$S$16:$S$43,MATCH($B65,'Damage costs'!$C$16:$C$43,0))/1000),\"\")","v":""},{"$f":"IFERROR(IF(OR($C$67=FALSE,LEFT($B65,3)<>\"NOX\"),AY57*INDEX('Damage costs'!$O$16:$O$43,MATCH($B65,'Damage costs'!$C$16:$C$43,0))/1000,AY57*INDEX('Damage costs'!$S$16:$S$43,MATCH($B65,'Damage costs'!$C$16:$C$43,0))/1000),\"\")","v":""},{"$f":"IFERROR(IF(OR($C$67=FALSE,LEFT($B65,3)<>\"NOX\"),AZ57*INDEX('Damage costs'!$O$16:$O$43,MATCH($B65,'Damage costs'!$C$16:$C$43,0))/1000,AZ57*INDEX('Damage costs'!$S$16:$S$43,MATCH($B65,'Damage costs'!$C$16:$C$43,0))/1000),\"\")","v":""},{"$f":"IFERROR(IF(OR($C$67=FALSE,LEFT($B65,3)<>\"NOX\"),BA57*INDEX('Damage costs'!$O$16:$O$43,MATCH($B65,'Damage costs'!$C$16:$C$43,0))/1000,BA57*INDEX('Damage costs'!$S$16:$S$43,MATCH($B65,'Damage costs'!$C$16:$C$43,0))/1000),\"\")","v":""},{"$f":"IFERROR(IF(OR($C$67=FALSE,LEFT($B65,3)<>\"NOX\"),BB57*INDEX('Damage costs'!$O$16:$O$43,MATCH($B65,'Damage costs'!$C$16:$C$43,0))/1000,BB57*INDEX('Damage costs'!$S$16:$S$43,MATCH($B65,'Damage costs'!$C$16:$C$43,0))/1000),\"\")","v":""},{"$f":"IFERROR(IF(OR($C$67=FALSE,LEFT($B65,3)<>\"NOX\"),BC57*INDEX('Damage costs'!$O$16:$O$43,MATCH($B65,'Damage costs'!$C$16:$C$43,0))/1000,BC57*INDEX('Damage costs'!$S$16:$S$43,MATCH($B65,'Damage costs'!$C$16:$C$43,0))/1000),\"\")","v":""},{"$f":"IFERROR(IF(OR($C$67=FALSE,LEFT($B65,3)<>\"NOX\"),BD57*INDEX('Damage costs'!$O$16:$O$43,MATCH($B65,'Damage costs'!$C$16:$C$43,0))/1000,BD57*INDEX('Damage costs'!$S$16:$S$43,MATCH($B65,'Damage costs'!$C$16:$C$43,0))/1000),\"\")","v":""},{"$f":"IFERROR(IF(OR($C$67=FALSE,LEFT($B65,3)<>\"NOX\"),BE57*INDEX('Damage costs'!$O$16:$O$43,MATCH($B65,'Damage costs'!$C$16:$C$43,0))/1000,BE57*INDEX('Damage costs'!$S$16:$S$43,MATCH($B65,'Damage costs'!$C$16:$C$43,0))/1000),\"\")","v":""},{"$f":"IFERROR(IF(OR($C$67=FALSE,LEFT($B65,3)<>\"NOX\"),BF57*INDEX('Damage costs'!$O$16:$O$43,MATCH($B65,'Damage costs'!$C$16:$C$43,0))/1000,BF57*INDEX('Damage costs'!$S$16:$S$43,MATCH($B65,'Damage costs'!$C$16:$C$43,0))/1000),\"\")","v":""},{"$f":"IFERROR(IF(OR($C$67=FALSE,LEFT($B65,3)<>\"NOX\"),BG57*INDEX('Damage costs'!$O$16:$O$43,MATCH($B65,'Damage costs'!$C$16:$C$43,0))/1000,BG57*INDEX('Damage costs'!$S$16:$S$43,MATCH($B65,'Damage costs'!$C$16:$C$43,0))/1000),\"\")","v":""},{"$f":"IFERROR(IF(OR($C$67=FALSE,LEFT($B65,3)<>\"NOX\"),BH57*INDEX('Damage costs'!$O$16:$O$43,MATCH($B65,'Damage costs'!$C$16:$C$43,0))/1000,BH57*INDEX('Damage costs'!$S$16:$S$43,MATCH($B65,'Damage costs'!$C$16:$C$43,0))/1000),\"\")","v":""},{"$f":"IFERROR(IF(OR($C$67=FALSE,LEFT($B65,3)<>\"NOX\"),BI57*INDEX('Damage costs'!$O$16:$O$43,MATCH($B65,'Damage costs'!$C$16:$C$43,0))/1000,BI57*INDEX('Damage costs'!$S$16:$S$43,MATCH($B65,'Damage costs'!$C$16:$C$43,0))/1000),\"\")","v":""},{"$f":"IFERROR(IF(OR($C$67=FALSE,LEFT($B65,3)<>\"NOX\"),BJ57*INDEX('Damage costs'!$O$16:$O$43,MATCH($B65,'Damage costs'!$C$16:$C$43,0))/1000,BJ57*INDEX('Damage costs'!$S$16:$S$43,MATCH($B65,'Damage costs'!$C$16:$C$43,0))/1000),\"\")","v":""},{"$f":"IFERROR(IF(OR($C$67=FALSE,LEFT($B65,3)<>\"NOX\"),BK57*INDEX('Damage costs'!$O$16:$O$43,MATCH($B65,'Damage costs'!$C$16:$C$43,0))/1000,BK57*INDEX('Damage costs'!$S$16:$S$43,MATCH($B65,'Damage costs'!$C$16:$C$43,0))/1000),\"\")","v":""},{"$f":"IFERROR(IF(OR($C$67=FALSE,LEFT($B65,3)<>\"NOX\"),BL57*INDEX('Damage costs'!$O$16:$O$43,MATCH($B65,'Damage costs'!$C$16:$C$43,0))/1000,BL57*INDEX('Damage costs'!$S$16:$S$43,MATCH($B65,'Damage costs'!$C$16:$C$43,0))/1000),\"\")","v":""},{"$f":"IFERROR(IF(OR($C$67=FALSE,LEFT($B65,3)<>\"NOX\"),BM57*INDEX('Damage costs'!$O$16:$O$43,MATCH($B65,'Damage costs'!$C$16:$C$43,0))/1000,BM57*INDEX('Damage costs'!$S$16:$S$43,MATCH($B65,'Damage costs'!$C$16:$C$43,0))/1000),\"\")","v":""},{"$f":"IFERROR(IF(OR($C$67=FALSE,LEFT($B65,3)<>\"NOX\"),BN57*INDEX('Damage costs'!$O$16:$O$43,MATCH($B65,'Damage costs'!$C$16:$C$43,0))/1000,BN57*INDEX('Damage costs'!$S$16:$S$43,MATCH($B65,'Damage costs'!$C$16:$C$43,0))/1000),\"\")","v":""},{"$f":"IFERROR(IF(OR($C$67=FALSE,LEFT($B65,3)<>\"NOX\"),BO57*INDEX('Damage costs'!$O$16:$O$43,MATCH($B65,'Damage costs'!$C$16:$C$43,0))/1000,BO57*INDEX('Damage costs'!$S$16:$S$43,MATCH($B65,'Damage costs'!$C$16:$C$43,0))/1000),\"\")","v":""},{"$f":"IFERROR(IF(OR($C$67=FALSE,LEFT($B65,3)<>\"NOX\"),BP57*INDEX('Damage costs'!$O$16:$O$43,MATCH($B65,'Damage costs'!$C$16:$C$43,0))/1000,BP57*INDEX('Damage costs'!$S$16:$S$43,MATCH($B65,'Damage costs'!$C$16:$C$43,0))/1000),\"\")","v":""},{"$f":"IFERROR(IF(OR($C$67=FALSE,LEFT($B65,3)<>\"NOX\"),BQ57*INDEX('Damage costs'!$O$16:$O$43,MATCH($B65,'Damage costs'!$C$16:$C$43,0))/1000,BQ57*INDEX('Damage costs'!$S$16:$S$43,MATCH($B65,'Damage costs'!$C$16:$C$43,0))/1000),\"\")","v":""},{"$f":"IFERROR(IF(OR($C$67=FALSE,LEFT($B65,3)<>\"NOX\"),BR57*INDEX('Damage costs'!$O$16:$O$43,MATCH($B65,'Damage costs'!$C$16:$C$43,0))/1000,BR57*INDEX('Damage costs'!$S$16:$S$43,MATCH($B65,'Damage costs'!$C$16:$C$43,0))/1000),\"\")","v":""},{"$f":"IFERROR(IF(OR($C$67=FALSE,LEFT($B65,3)<>\"NOX\"),BS57*INDEX('Damage costs'!$O$16:$O$43,MATCH($B65,'Damage costs'!$C$16:$C$43,0))/1000,BS57*INDEX('Damage costs'!$S$16:$S$43,MATCH($B65,'Damage costs'!$C$16:$C$43,0))/1000),\"\")","v":""},{"$f":"IFERROR(IF(OR($C$67=FALSE,LEFT($B65,3)<>\"NOX\"),BT57*INDEX('Damage costs'!$O$16:$O$43,MATCH($B65,'Damage costs'!$C$16:$C$43,0))/1000,BT57*INDEX('Damage costs'!$S$16:$S$43,MATCH($B65,'Damage costs'!$C$16:$C$43,0))/1000),\"\")","v":""},{"$f":"IFERROR(IF(OR($C$67=FALSE,LEFT($B65,3)<>\"NOX\"),BU57*INDEX('Damage costs'!$O$16:$O$43,MATCH($B65,'Damage costs'!$C$16:$C$43,0))/1000,BU57*INDEX('Damage costs'!$S$16:$S$43,MATCH($B65,'Damage costs'!$C$16:$C$43,0))/1000),\"\")","v":""},{"$f":"IFERROR(IF(OR($C$67=FALSE,LEFT($B65,3)<>\"NOX\"),BV57*INDEX('Damage costs'!$O$16:$O$43,MATCH($B65,'Damage costs'!$C$16:$C$43,0))/1000,BV57*INDEX('Damage costs'!$S$16:$S$43,MATCH($B65,'Damage costs'!$C$16:$C$43,0))/1000),\"\")","v":""},{"$f":"IFERROR(IF(OR($C$67=FALSE,LEFT($B65,3)<>\"NOX\"),BW57*INDEX('Damage costs'!$O$16:$O$43,MATCH($B65,'Damage costs'!$C$16:$C$43,0))/1000,BW57*INDEX('Damage costs'!$S$16:$S$43,MATCH($B65,'Damage costs'!$C$16:$C$43,0))/1000),\"\")","v":""},{"$f":"IFERROR(IF(OR($C$67=FALSE,LEFT($B65,3)<>\"NOX\"),BX57*INDEX('Damage costs'!$O$16:$O$43,MATCH($B65,'Damage costs'!$C$16:$C$43,0))/1000,BX57*INDEX('Damage costs'!$S$16:$S$43,MATCH($B65,'Damage costs'!$C$16:$C$43,0))/1000),\"\")","v":""},{"$f":"IFERROR(IF(OR($C$67=FALSE,LEFT($B65,3)<>\"NOX\"),BY57*INDEX('Damage costs'!$O$16:$O$43,MATCH($B65,'Damage costs'!$C$16:$C$43,0))/1000,BY57*INDEX('Damage costs'!$S$16:$S$43,MATCH($B65,'Damage costs'!$C$16:$C$43,0))/1000),\"\")","v":""},{"$f":"IFERROR(IF(OR($C$67=FALSE,LEFT($B65,3)<>\"NOX\"),BZ57*INDEX('Damage costs'!$O$16:$O$43,MATCH($B65,'Damage costs'!$C$16:$C$43,0))/1000,BZ57*INDEX('Damage costs'!$S$16:$S$43,MATCH($B65,'Damage costs'!$C$16:$C$43,0))/1000),\"\")","v":""},{"$f":"IFERROR(IF(OR($C$67=FALSE,LEFT($B65,3)<>\"NOX\"),CA57*INDEX('Damage costs'!$O$16:$O$43,MATCH($B65,'Damage costs'!$C$16:$C$43,0))/1000,CA57*INDEX('Damage costs'!$S$16:$S$43,MATCH($B65,'Damage costs'!$C$16:$C$43,0))/1000),\"\")","v":""},{"$f":"IFERROR(IF(OR($C$67=FALSE,LEFT($B65,3)<>\"NOX\"),CB57*INDEX('Damage costs'!$O$16:$O$43,MATCH($B65,'Damage costs'!$C$16:$C$43,0))/1000,CB57*INDEX('Damage costs'!$S$16:$S$43,MATCH($B65,'Damage costs'!$C$16:$C$43,0))/1000),\"\")","v":""},{"$f":"IFERROR(IF(OR($C$67=FALSE,LEFT($B65,3)<>\"NOX\"),CC57*INDEX('Damage costs'!$O$16:$O$43,MATCH($B65,'Damage costs'!$C$16:$C$43,0))/1000,CC57*INDEX('Damage costs'!$S$16:$S$43,MATCH($B65,'Damage costs'!$C$16:$C$43,0))/1000),\"\")","v":""},{"$f":"IFERROR(IF(OR($C$67=FALSE,LEFT($B65,3)<>\"NOX\"),CD57*INDEX('Damage costs'!$O$16:$O$43,MATCH($B65,'Damage costs'!$C$16:$C$43,0))/1000,CD57*INDEX('Damage costs'!$S$16:$S$43,MATCH($B65,'Damage costs'!$C$16:$C$43,0))/1000),\"\")","v":""},{"$f":"IFERROR(IF(OR($C$67=FALSE,LEFT($B65,3)<>\"NOX\"),CE57*INDEX('Damage costs'!$O$16:$O$43,MATCH($B65,'Damage costs'!$C$16:$C$43,0))/1000,CE57*INDEX('Damage costs'!$S$16:$S$43,MATCH($B65,'Damage costs'!$C$16:$C$43,0))/1000),\"\")","v":""},{"$f":"IFERROR(IF(OR($C$67=FALSE,LEFT($B65,3)<>\"NOX\"),CF57*INDEX('Damage costs'!$O$16:$O$43,MATCH($B65,'Damage costs'!$C$16:$C$43,0))/1000,CF57*INDEX('Damage costs'!$S$16:$S$43,MATCH($B65,'Damage costs'!$C$16:$C$43,0))/1000),\"\")","v":""},{"$f":"IFERROR(IF(OR($C$67=FALSE,LEFT($B65,3)<>\"NOX\"),CG57*INDEX('Damage costs'!$O$16:$O$43,MATCH($B65,'Damage costs'!$C$16:$C$43,0))/1000,CG57*INDEX('Damage costs'!$S$16:$S$43,MATCH($B65,'Damage costs'!$C$16:$C$43,0))/1000),\"\")","v":""},{"$f":"IFERROR(IF(OR($C$67=FALSE,LEFT($B65,3)<>\"NOX\"),CH57*INDEX('Damage costs'!$O$16:$O$43,MATCH($B65,'Damage costs'!$C$16:$C$43,0))/1000,CH57*INDEX('Damage costs'!$S$16:$S$43,MATCH($B65,'Damage costs'!$C$16:$C$43,0))/1000),\"\")","v":""},{"$f":"IFERROR(IF(OR($C$67=FALSE,LEFT($B65,3)<>\"NOX\"),CI57*INDEX('Damage costs'!$O$16:$O$43,MATCH($B65,'Damage costs'!$C$16:$C$43,0))/1000,CI57*INDEX('Damage costs'!$S$16:$S$43,MATCH($B65,'Damage costs'!$C$16:$C$43,0))/1000),\"\")","v":""},{"$f":"IFERROR(IF(OR($C$67=FALSE,LEFT($B65,3)<>\"NOX\"),CJ57*INDEX('Damage costs'!$O$16:$O$43,MATCH($B65,'Damage costs'!$C$16:$C$43,0))/1000,CJ57*INDEX('Damage costs'!$S$16:$S$43,MATCH($B65,'Damage costs'!$C$16:$C$43,0))/1000),\"\")","v":""},{"$f":"IFERROR(IF(OR($C$67=FALSE,LEFT($B65,3)<>\"NOX\"),CK57*INDEX('Damage costs'!$O$16:$O$43,MATCH($B65,'Damage costs'!$C$16:$C$43,0))/1000,CK57*INDEX('Damage costs'!$S$16:$S$43,MATCH($B65,'Damage costs'!$C$16:$C$43,0))/1000),\"\")","v":""},{"$f":"IFERROR(IF(OR($C$67=FALSE,LEFT($B65,3)<>\"NOX\"),CL57*INDEX('Damage costs'!$O$16:$O$43,MATCH($B65,'Damage costs'!$C$16:$C$43,0))/1000,CL57*INDEX('Damage costs'!$S$16:$S$43,MATCH($B65,'Damage costs'!$C$16:$C$43,0))/1000),\"\")","v":""},{"$f":"IFERROR(IF(OR($C$67=FALSE,LEFT($B65,3)<>\"NOX\"),CM57*INDEX('Damage costs'!$O$16:$O$43,MATCH($B65,'Damage costs'!$C$16:$C$43,0))/1000,CM57*INDEX('Damage costs'!$S$16:$S$43,MATCH($B65,'Damage costs'!$C$16:$C$43,0))/1000),\"\")","v":""},{"$f":"IFERROR(IF(OR($C$67=FALSE,LEFT($B65,3)<>\"NOX\"),CN57*INDEX('Damage costs'!$O$16:$O$43,MATCH($B65,'Damage costs'!$C$16:$C$43,0))/1000,CN57*INDEX('Damage costs'!$S$16:$S$43,MATCH($B65,'Damage costs'!$C$16:$C$43,0))/1000),\"\")","v":""},{"$f":"IFERROR(IF(OR($C$67=FALSE,LEFT($B65,3)<>\"NOX\"),CO57*INDEX('Damage costs'!$O$16:$O$43,MATCH($B65,'Damage costs'!$C$16:$C$43,0))/1000,CO57*INDEX('Damage costs'!$S$16:$S$43,MATCH($B65,'Damage costs'!$C$16:$C$43,0))/1000),\"\")","v":""},{"$f":"IFERROR(IF(OR($C$67=FALSE,LEFT($B65,3)<>\"NOX\"),CP57*INDEX('Damage costs'!$O$16:$O$43,MATCH($B65,'Damage costs'!$C$16:$C$43,0))/1000,CP57*INDEX('Damage costs'!$S$16:$S$43,MATCH($B65,'Damage costs'!$C$16:$C$43,0))/1000),\"\")","v":""},{"$f":"IFERROR(IF(OR($C$67=FALSE,LEFT($B65,3)<>\"NOX\"),CQ57*INDEX('Damage costs'!$O$16:$O$43,MATCH($B65,'Damage costs'!$C$16:$C$43,0))/1000,CQ57*INDEX('Damage costs'!$S$16:$S$43,MATCH($B65,'Damage costs'!$C$16:$C$43,0))/1000),\"\")","v":""},{"$f":"IFERROR(IF(OR($C$67=FALSE,LEFT($B65,3)<>\"NOX\"),CR57*INDEX('Damage costs'!$O$16:$O$43,MATCH($B65,'Damage costs'!$C$16:$C$43,0))/1000,CR57*INDEX('Damage costs'!$S$16:$S$43,MATCH($B65,'Damage costs'!$C$16:$C$43,0))/1000),\"\")","v":""},{"$f":"IFERROR(IF(OR($C$67=FALSE,LEFT($B65,3)<>\"NOX\"),CS57*INDEX('Damage costs'!$O$16:$O$43,MATCH($B65,'Damage costs'!$C$16:$C$43,0))/1000,CS57*INDEX('Damage costs'!$S$16:$S$43,MATCH($B65,'Damage costs'!$C$16:$C$43,0))/1000),\"\")","v":""},{"$f":"IFERROR(IF(OR($C$67=FALSE,LEFT($B65,3)<>\"NOX\"),CT57*INDEX('Damage costs'!$O$16:$O$43,MATCH($B65,'Damage costs'!$C$16:$C$43,0))/1000,CT57*INDEX('Damage costs'!$S$16:$S$43,MATCH($B65,'Damage costs'!$C$16:$C$43,0))/1000),\"\")","v":""},{"$f":"IFERROR(IF(OR($C$67=FALSE,LEFT($B65,3)<>\"NOX\"),CU57*INDEX('Damage costs'!$O$16:$O$43,MATCH($B65,'Damage costs'!$C$16:$C$43,0))/1000,CU57*INDEX('Damage costs'!$S$16:$S$43,MATCH($B65,'Damage costs'!$C$16:$C$43,0))/1000),\"\")","v":""},{"$f":"IFERROR(IF(OR($C$67=FALSE,LEFT($B65,3)<>\"NOX\"),CV57*INDEX('Damage costs'!$O$16:$O$43,MATCH($B65,'Damage costs'!$C$16:$C$43,0))/1000,CV57*INDEX('Damage costs'!$S$16:$S$43,MATCH($B65,'Damage costs'!$C$16:$C$43,0))/1000),\"\")","v":""},{"$f":"IFERROR(IF(OR($C$67=FALSE,LEFT($B65,3)<>\"NOX\"),CW57*INDEX('Damage costs'!$O$16:$O$43,MATCH($B65,'Damage costs'!$C$16:$C$43,0))/1000,CW57*INDEX('Damage costs'!$S$16:$S$43,MATCH($B65,'Damage costs'!$C$16:$C$43,0))/1000),\"\")","v":""},{"$f":"IFERROR(IF(OR($C$67=FALSE,LEFT($B65,3)<>\"NOX\"),CX57*INDEX('Damage costs'!$O$16:$O$43,MATCH($B65,'Damage costs'!$C$16:$C$43,0))/1000,CX57*INDEX('Damage costs'!$S$16:$S$43,MATCH($B65,'Damage costs'!$C$16:$C$43,0))/1000),\"\")","v":""},{"$f":"IFERROR(IF(OR($C$67=FALSE,LEFT($B65,3)<>\"NOX\"),CY57*INDEX('Damage costs'!$O$16:$O$43,MATCH($B65,'Damage costs'!$C$16:$C$43,0))/1000,CY57*INDEX('Damage costs'!$S$16:$S$43,MATCH($B65,'Damage costs'!$C$16:$C$43,0))/1000),\"\")","v":""}]
[null,0,"£000's",{"$f":"IFERROR(IF(OR($C$67=FALSE,LEFT($B66,3)<>\"NOX\"),D58*INDEX('Damage costs'!$O$16:$O$43,MATCH($B66,'Damage costs'!$C$16:$C$43,0))/1000,D58*INDEX('Damage costs'!$S$16:$S$43,MATCH($B66,'Damage costs'!$C$16:$C$43,0))/1000),\"\")","v":""},{"$f":"IFERROR(IF(OR($C$67=FALSE,LEFT($B66,3)<>\"NOX\"),E58*INDEX('Damage costs'!$O$16:$O$43,MATCH($B66,'Damage costs'!$C$16:$C$43,0))/1000,E58*INDEX('Damage costs'!$S$16:$S$43,MATCH($B66,'Damage costs'!$C$16:$C$43,0))/1000),\"\")","v":""},{"$f":"IFERROR(IF(OR($C$67=FALSE,LEFT($B66,3)<>\"NOX\"),F58*INDEX('Damage costs'!$O$16:$O$43,MATCH($B66,'Damage costs'!$C$16:$C$43,0))/1000,F58*INDEX('Damage costs'!$S$16:$S$43,MATCH($B66,'Damage costs'!$C$16:$C$43,0))/1000),\"\")","v":""},{"$f":"IFERROR(IF(OR($C$67=FALSE,LEFT($B66,3)<>\"NOX\"),G58*INDEX('Damage costs'!$O$16:$O$43,MATCH($B66,'Damage costs'!$C$16:$C$43,0))/1000,G58*INDEX('Damage costs'!$S$16:$S$43,MATCH($B66,'Damage costs'!$C$16:$C$43,0))/1000),\"\")","v":""},{"$f":"IFERROR(IF(OR($C$67=FALSE,LEFT($B66,3)<>\"NOX\"),H58*INDEX('Damage costs'!$O$16:$O$43,MATCH($B66,'Damage costs'!$C$16:$C$43,0))/1000,H58*INDEX('Damage costs'!$S$16:$S$43,MATCH($B66,'Damage costs'!$C$16:$C$43,0))/1000),\"\")","v":""},{"$f":"IFERROR(IF(OR($C$67=FALSE,LEFT($B66,3)<>\"NOX\"),I58*INDEX('Damage costs'!$O$16:$O$43,MATCH($B66,'Damage costs'!$C$16:$C$43,0))/1000,I58*INDEX('Damage costs'!$S$16:$S$43,MATCH($B66,'Damage costs'!$C$16:$C$43,0))/1000),\"\")","v":""},{"$f":"IFERROR(IF(OR($C$67=FALSE,LEFT($B66,3)<>\"NOX\"),J58*INDEX('Damage costs'!$O$16:$O$43,MATCH($B66,'Damage costs'!$C$16:$C$43,0))/1000,J58*INDEX('Damage costs'!$S$16:$S$43,MATCH($B66,'Damage costs'!$C$16:$C$43,0))/1000),\"\")","v":""},{"$f":"IFERROR(IF(OR($C$67=FALSE,LEFT($B66,3)<>\"NOX\"),K58*INDEX('Damage costs'!$O$16:$O$43,MATCH($B66,'Damage costs'!$C$16:$C$43,0))/1000,K58*INDEX('Damage costs'!$S$16:$S$43,MATCH($B66,'Damage costs'!$C$16:$C$43,0))/1000),\"\")","v":""},{"$f":"IFERROR(IF(OR($C$67=FALSE,LEFT($B66,3)<>\"NOX\"),L58*INDEX('Damage costs'!$O$16:$O$43,MATCH($B66,'Damage costs'!$C$16:$C$43,0))/1000,L58*INDEX('Damage costs'!$S$16:$S$43,MATCH($B66,'Damage costs'!$C$16:$C$43,0))/1000),\"\")","v":""},{"$f":"IFERROR(IF(OR($C$67=FALSE,LEFT($B66,3)<>\"NOX\"),M58*INDEX('Damage costs'!$O$16:$O$43,MATCH($B66,'Damage costs'!$C$16:$C$43,0))/1000,M58*INDEX('Damage costs'!$S$16:$S$43,MATCH($B66,'Damage costs'!$C$16:$C$43,0))/1000),\"\")","v":""},{"$f":"IFERROR(IF(OR($C$67=FALSE,LEFT($B66,3)<>\"NOX\"),N58*INDEX('Damage costs'!$O$16:$O$43,MATCH($B66,'Damage costs'!$C$16:$C$43,0))/1000,N58*INDEX('Damage costs'!$S$16:$S$43,MATCH($B66,'Damage costs'!$C$16:$C$43,0))/1000),\"\")","v":""},{"$f":"IFERROR(IF(OR($C$67=FALSE,LEFT($B66,3)<>\"NOX\"),O58*INDEX('Damage costs'!$O$16:$O$43,MATCH($B66,'Damage costs'!$C$16:$C$43,0))/1000,O58*INDEX('Damage costs'!$S$16:$S$43,MATCH($B66,'Damage costs'!$C$16:$C$43,0))/1000),\"\")","v":""},{"$f":"IFERROR(IF(OR($C$67=FALSE,LEFT($B66,3)<>\"NOX\"),P58*INDEX('Damage costs'!$O$16:$O$43,MATCH($B66,'Damage costs'!$C$16:$C$43,0))/1000,P58*INDEX('Damage costs'!$S$16:$S$43,MATCH($B66,'Damage costs'!$C$16:$C$43,0))/1000),\"\")","v":""},{"$f":"IFERROR(IF(OR($C$67=FALSE,LEFT($B66,3)<>\"NOX\"),Q58*INDEX('Damage costs'!$O$16:$O$43,MATCH($B66,'Damage costs'!$C$16:$C$43,0))/1000,Q58*INDEX('Damage costs'!$S$16:$S$43,MATCH($B66,'Damage costs'!$C$16:$C$43,0))/1000),\"\")","v":""},{"$f":"IFERROR(IF(OR($C$67=FALSE,LEFT($B66,3)<>\"NOX\"),R58*INDEX('Damage costs'!$O$16:$O$43,MATCH($B66,'Damage costs'!$C$16:$C$43,0))/1000,R58*INDEX('Damage costs'!$S$16:$S$43,MATCH($B66,'Damage costs'!$C$16:$C$43,0))/1000),\"\")","v":""},{"$f":"IFERROR(IF(OR($C$67=FALSE,LEFT($B66,3)<>\"NOX\"),S58*INDEX('Damage costs'!$O$16:$O$43,MATCH($B66,'Damage costs'!$C$16:$C$43,0))/1000,S58*INDEX('Damage costs'!$S$16:$S$43,MATCH($B66,'Damage costs'!$C$16:$C$43,0))/1000),\"\")","v":""},{"$f":"IFERROR(IF(OR($C$67=FALSE,LEFT($B66,3)<>\"NOX\"),T58*INDEX('Damage costs'!$O$16:$O$43,MATCH($B66,'Damage costs'!$C$16:$C$43,0))/1000,T58*INDEX('Damage costs'!$S$16:$S$43,MATCH($B66,'Damage costs'!$C$16:$C$43,0))/1000),\"\")","v":""},{"$f":"IFERROR(IF(OR($C$67=FALSE,LEFT($B66,3)<>\"NOX\"),U58*INDEX('Damage costs'!$O$16:$O$43,MATCH($B66,'Damage costs'!$C$16:$C$43,0))/1000,U58*INDEX('Damage costs'!$S$16:$S$43,MATCH($B66,'Damage costs'!$C$16:$C$43,0))/1000),\"\")","v":""},{"$f":"IFERROR(IF(OR($C$67=FALSE,LEFT($B66,3)<>\"NOX\"),V58*INDEX('Damage costs'!$O$16:$O$43,MATCH($B66,'Damage costs'!$C$16:$C$43,0))/1000,V58*INDEX('Damage costs'!$S$16:$S$43,MATCH($B66,'Damage costs'!$C$16:$C$43,0))/1000),\"\")","v":""},{"$f":"IFERROR(IF(OR($C$67=FALSE,LEFT($B66,3)<>\"NOX\"),W58*INDEX('Damage costs'!$O$16:$O$43,MATCH($B66,'Damage costs'!$C$16:$C$43,0))/1000,W58*INDEX('Damage costs'!$S$16:$S$43,MATCH($B66,'Damage costs'!$C$16:$C$43,0))/1000),\"\")","v":""},{"$f":"IFERROR(IF(OR($C$67=FALSE,LEFT($B66,3)<>\"NOX\"),X58*INDEX('Damage costs'!$O$16:$O$43,MATCH($B66,'Damage costs'!$C$16:$C$43,0))/1000,X58*INDEX('Damage costs'!$S$16:$S$43,MATCH($B66,'Damage costs'!$C$16:$C$43,0))/1000),\"\")","v":""},{"$f":"IFERROR(IF(OR($C$67=FALSE,LEFT($B66,3)<>\"NOX\"),Y58*INDEX('Damage costs'!$O$16:$O$43,MATCH($B66,'Damage costs'!$C$16:$C$43,0))/1000,Y58*INDEX('Damage costs'!$S$16:$S$43,MATCH($B66,'Damage costs'!$C$16:$C$43,0))/1000),\"\")","v":""},{"$f":"IFERROR(IF(OR($C$67=FALSE,LEFT($B66,3)<>\"NOX\"),Z58*INDEX('Damage costs'!$O$16:$O$43,MATCH($B66,'Damage costs'!$C$16:$C$43,0))/1000,Z58*INDEX('Damage costs'!$S$16:$S$43,MATCH($B66,'Damage costs'!$C$16:$C$43,0))/1000),\"\")","v":""},{"$f":"IFERROR(IF(OR($C$67=FALSE,LEFT($B66,3)<>\"NOX\"),AA58*INDEX('Damage costs'!$O$16:$O$43,MATCH($B66,'Damage costs'!$C$16:$C$43,0))/1000,AA58*INDEX('Damage costs'!$S$16:$S$43,MATCH($B66,'Damage costs'!$C$16:$C$43,0))/1000),\"\")","v":""},{"$f":"IFERROR(IF(OR($C$67=FALSE,LEFT($B66,3)<>\"NOX\"),AB58*INDEX('Damage costs'!$O$16:$O$43,MATCH($B66,'Damage costs'!$C$16:$C$43,0))/1000,AB58*INDEX('Damage costs'!$S$16:$S$43,MATCH($B66,'Damage costs'!$C$16:$C$43,0))/1000),\"\")","v":""},{"$f":"IFERROR(IF(OR($C$67=FALSE,LEFT($B66,3)<>\"NOX\"),AC58*INDEX('Damage costs'!$O$16:$O$43,MATCH($B66,'Damage costs'!$C$16:$C$43,0))/1000,AC58*INDEX('Damage costs'!$S$16:$S$43,MATCH($B66,'Damage costs'!$C$16:$C$43,0))/1000),\"\")","v":""},{"$f":"IFERROR(IF(OR($C$67=FALSE,LEFT($B66,3)<>\"NOX\"),AD58*INDEX('Damage costs'!$O$16:$O$43,MATCH($B66,'Damage costs'!$C$16:$C$43,0))/1000,AD58*INDEX('Damage costs'!$S$16:$S$43,MATCH($B66,'Damage costs'!$C$16:$C$43,0))/1000),\"\")","v":""},{"$f":"IFERROR(IF(OR($C$67=FALSE,LEFT($B66,3)<>\"NOX\"),AE58*INDEX('Damage costs'!$O$16:$O$43,MATCH($B66,'Damage costs'!$C$16:$C$43,0))/1000,AE58*INDEX('Damage costs'!$S$16:$S$43,MATCH($B66,'Damage costs'!$C$16:$C$43,0))/1000),\"\")","v":""},{"$f":"IFERROR(IF(OR($C$67=FALSE,LEFT($B66,3)<>\"NOX\"),AF58*INDEX('Damage costs'!$O$16:$O$43,MATCH($B66,'Damage costs'!$C$16:$C$43,0))/1000,AF58*INDEX('Damage costs'!$S$16:$S$43,MATCH($B66,'Damage costs'!$C$16:$C$43,0))/1000),\"\")","v":""},{"$f":"IFERROR(IF(OR($C$67=FALSE,LEFT($B66,3)<>\"NOX\"),AG58*INDEX('Damage costs'!$O$16:$O$43,MATCH($B66,'Damage costs'!$C$16:$C$43,0))/1000,AG58*INDEX('Damage costs'!$S$16:$S$43,MATCH($B66,'Damage costs'!$C$16:$C$43,0))/1000),\"\")","v":""},{"$f":"IFERROR(IF(OR($C$67=FALSE,LEFT($B66,3)<>\"NOX\"),AH58*INDEX('Damage costs'!$O$16:$O$43,MATCH($B66,'Damage costs'!$C$16:$C$43,0))/1000,AH58*INDEX('Damage costs'!$S$16:$S$43,MATCH($B66,'Damage costs'!$C$16:$C$43,0))/1000),\"\")","v":""},{"$f":"IFERROR(IF(OR($C$67=FALSE,LEFT($B66,3)<>\"NOX\"),AI58*INDEX('Damage costs'!$O$16:$O$43,MATCH($B66,'Damage costs'!$C$16:$C$43,0))/1000,AI58*INDEX('Damage costs'!$S$16:$S$43,MATCH($B66,'Damage costs'!$C$16:$C$43,0))/1000),\"\")","v":""},{"$f":"IFERROR(IF(OR($C$67=FALSE,LEFT($B66,3)<>\"NOX\"),AJ58*INDEX('Damage costs'!$O$16:$O$43,MATCH($B66,'Damage costs'!$C$16:$C$43,0))/1000,AJ58*INDEX('Damage costs'!$S$16:$S$43,MATCH($B66,'Damage costs'!$C$16:$C$43,0))/1000),\"\")","v":""},{"$f":"IFERROR(IF(OR($C$67=FALSE,LEFT($B66,3)<>\"NOX\"),AK58*INDEX('Damage costs'!$O$16:$O$43,MATCH($B66,'Damage costs'!$C$16:$C$43,0))/1000,AK58*INDEX('Damage costs'!$S$16:$S$43,MATCH($B66,'Damage costs'!$C$16:$C$43,0))/1000),\"\")","v":""},{"$f":"IFERROR(IF(OR($C$67=FALSE,LEFT($B66,3)<>\"NOX\"),AL58*INDEX('Damage costs'!$O$16:$O$43,MATCH($B66,'Damage costs'!$C$16:$C$43,0))/1000,AL58*INDEX('Damage costs'!$S$16:$S$43,MATCH($B66,'Damage costs'!$C$16:$C$43,0))/1000),\"\")","v":""},{"$f":"IFERROR(IF(OR($C$67=FALSE,LEFT($B66,3)<>\"NOX\"),AM58*INDEX('Damage costs'!$O$16:$O$43,MATCH($B66,'Damage costs'!$C$16:$C$43,0))/1000,AM58*INDEX('Damage costs'!$S$16:$S$43,MATCH($B66,'Damage costs'!$C$16:$C$43,0))/1000),\"\")","v":""},{"$f":"IFERROR(IF(OR($C$67=FALSE,LEFT($B66,3)<>\"NOX\"),AN58*INDEX('Damage costs'!$O$16:$O$43,MATCH($B66,'Damage costs'!$C$16:$C$43,0))/1000,AN58*INDEX('Damage costs'!$S$16:$S$43,MATCH($B66,'Damage costs'!$C$16:$C$43,0))/1000),\"\")","v":""},{"$f":"IFERROR(IF(OR($C$67=FALSE,LEFT($B66,3)<>\"NOX\"),AO58*INDEX('Damage costs'!$O$16:$O$43,MATCH($B66,'Damage costs'!$C$16:$C$43,0))/1000,AO58*INDEX('Damage costs'!$S$16:$S$43,MATCH($B66,'Damage costs'!$C$16:$C$43,0))/1000),\"\")","v":""},{"$f":"IFERROR(IF(OR($C$67=FALSE,LEFT($B66,3)<>\"NOX\"),AP58*INDEX('Damage costs'!$O$16:$O$43,MATCH($B66,'Damage costs'!$C$16:$C$43,0))/1000,AP58*INDEX('Damage costs'!$S$16:$S$43,MATCH($B66,'Damage costs'!$C$16:$C$43,0))/1000),\"\")","v":""},{"$f":"IFERROR(IF(OR($C$67=FALSE,LEFT($B66,3)<>\"NOX\"),AQ58*INDEX('Damage costs'!$O$16:$O$43,MATCH($B66,'Damage costs'!$C$16:$C$43,0))/1000,AQ58*INDEX('Damage costs'!$S$16:$S$43,MATCH($B66,'Damage costs'!$C$16:$C$43,0))/1000),\"\")","v":""},{"$f":"IFERROR(IF(OR($C$67=FALSE,LEFT($B66,3)<>\"NOX\"),AR58*INDEX('Damage costs'!$O$16:$O$43,MATCH($B66,'Damage costs'!$C$16:$C$43,0))/1000,AR58*INDEX('Damage costs'!$S$16:$S$43,MATCH($B66,'Damage costs'!$C$16:$C$43,0))/1000),\"\")","v":""},{"$f":"IFERROR(IF(OR($C$67=FALSE,LEFT($B66,3)<>\"NOX\"),AS58*INDEX('Damage costs'!$O$16:$O$43,MATCH($B66,'Damage costs'!$C$16:$C$43,0))/1000,AS58*INDEX('Damage costs'!$S$16:$S$43,MATCH($B66,'Damage costs'!$C$16:$C$43,0))/1000),\"\")","v":""},{"$f":"IFERROR(IF(OR($C$67=FALSE,LEFT($B66,3)<>\"NOX\"),AT58*INDEX('Damage costs'!$O$16:$O$43,MATCH($B66,'Damage costs'!$C$16:$C$43,0))/1000,AT58*INDEX('Damage costs'!$S$16:$S$43,MATCH($B66,'Damage costs'!$C$16:$C$43,0))/1000),\"\")","v":""},{"$f":"IFERROR(IF(OR($C$67=FALSE,LEFT($B66,3)<>\"NOX\"),AU58*INDEX('Damage costs'!$O$16:$O$43,MATCH($B66,'Damage costs'!$C$16:$C$43,0))/1000,AU58*INDEX('Damage costs'!$S$16:$S$43,MATCH($B66,'Damage costs'!$C$16:$C$43,0))/1000),\"\")","v":""},{"$f":"IFERROR(IF(OR($C$67=FALSE,LEFT($B66,3)<>\"NOX\"),AV58*INDEX('Damage costs'!$O$16:$O$43,MATCH($B66,'Damage costs'!$C$16:$C$43,0))/1000,AV58*INDEX('Damage costs'!$S$16:$S$43,MATCH($B66,'Damage costs'!$C$16:$C$43,0))/1000),\"\")","v":""},{"$f":"IFERROR(IF(OR($C$67=FALSE,LEFT($B66,3)<>\"NOX\"),AW58*INDEX('Damage costs'!$O$16:$O$43,MATCH($B66,'Damage costs'!$C$16:$C$43,0))/1000,AW58*INDEX('Damage costs'!$S$16:$S$43,MATCH($B66,'Damage costs'!$C$16:$C$43,0))/1000),\"\")","v":""},{"$f":"IFERROR(IF(OR($C$67=FALSE,LEFT($B66,3)<>\"NOX\"),AX58*INDEX('Damage costs'!$O$16:$O$43,MATCH($B66,'Damage costs'!$C$16:$C$43,0))/1000,AX58*INDEX('Damage costs'!$S$16:$S$43,MATCH($B66,'Damage costs'!$C$16:$C$43,0))/1000),\"\")","v":""},{"$f":"IFERROR(IF(OR($C$67=FALSE,LEFT($B66,3)<>\"NOX\"),AY58*INDEX('Damage costs'!$O$16:$O$43,MATCH($B66,'Damage costs'!$C$16:$C$43,0))/1000,AY58*INDEX('Damage costs'!$S$16:$S$43,MATCH($B66,'Damage costs'!$C$16:$C$43,0))/1000),\"\")","v":""},{"$f":"IFERROR(IF(OR($C$67=FALSE,LEFT($B66,3)<>\"NOX\"),AZ58*INDEX('Damage costs'!$O$16:$O$43,MATCH($B66,'Damage costs'!$C$16:$C$43,0))/1000,AZ58*INDEX('Damage costs'!$S$16:$S$43,MATCH($B66,'Damage costs'!$C$16:$C$43,0))/1000),\"\")","v":""},{"$f":"IFERROR(IF(OR($C$67=FALSE,LEFT($B66,3)<>\"NOX\"),BA58*INDEX('Damage costs'!$O$16:$O$43,MATCH($B66,'Damage costs'!$C$16:$C$43,0))/1000,BA58*INDEX('Damage costs'!$S$16:$S$43,MATCH($B66,'Damage costs'!$C$16:$C$43,0))/1000),\"\")","v":""},{"$f":"IFERROR(IF(OR($C$67=FALSE,LEFT($B66,3)<>\"NOX\"),BB58*INDEX('Damage costs'!$O$16:$O$43,MATCH($B66,'Damage costs'!$C$16:$C$43,0))/1000,BB58*INDEX('Damage costs'!$S$16:$S$43,MATCH($B66,'Damage costs'!$C$16:$C$43,0))/1000),\"\")","v":""},{"$f":"IFERROR(IF(OR($C$67=FALSE,LEFT($B66,3)<>\"NOX\"),BC58*INDEX('Damage costs'!$O$16:$O$43,MATCH($B66,'Damage costs'!$C$16:$C$43,0))/1000,BC58*INDEX('Damage costs'!$S$16:$S$43,MATCH($B66,'Damage costs'!$C$16:$C$43,0))/1000),\"\")","v":""},{"$f":"IFERROR(IF(OR($C$67=FALSE,LEFT($B66,3)<>\"NOX\"),BD58*INDEX('Damage costs'!$O$16:$O$43,MATCH($B66,'Damage costs'!$C$16:$C$43,0))/1000,BD58*INDEX('Damage costs'!$S$16:$S$43,MATCH($B66,'Damage costs'!$C$16:$C$43,0))/1000),\"\")","v":""},{"$f":"IFERROR(IF(OR($C$67=FALSE,LEFT($B66,3)<>\"NOX\"),BE58*INDEX('Damage costs'!$O$16:$O$43,MATCH($B66,'Damage costs'!$C$16:$C$43,0))/1000,BE58*INDEX('Damage costs'!$S$16:$S$43,MATCH($B66,'Damage costs'!$C$16:$C$43,0))/1000),\"\")","v":""},{"$f":"IFERROR(IF(OR($C$67=FALSE,LEFT($B66,3)<>\"NOX\"),BF58*INDEX('Damage costs'!$O$16:$O$43,MATCH($B66,'Damage costs'!$C$16:$C$43,0))/1000,BF58*INDEX('Damage costs'!$S$16:$S$43,MATCH($B66,'Damage costs'!$C$16:$C$43,0))/1000),\"\")","v":""},{"$f":"IFERROR(IF(OR($C$67=FALSE,LEFT($B66,3)<>\"NOX\"),BG58*INDEX('Damage costs'!$O$16:$O$43,MATCH($B66,'Damage costs'!$C$16:$C$43,0))/1000,BG58*INDEX('Damage costs'!$S$16:$S$43,MATCH($B66,'Damage costs'!$C$16:$C$43,0))/1000),\"\")","v":""},{"$f":"IFERROR(IF(OR($C$67=FALSE,LEFT($B66,3)<>\"NOX\"),BH58*INDEX('Damage costs'!$O$16:$O$43,MATCH($B66,'Damage costs'!$C$16:$C$43,0))/1000,BH58*INDEX('Damage costs'!$S$16:$S$43,MATCH($B66,'Damage costs'!$C$16:$C$43,0))/1000),\"\")","v":""},{"$f":"IFERROR(IF(OR($C$67=FALSE,LEFT($B66,3)<>\"NOX\"),BI58*INDEX('Damage costs'!$O$16:$O$43,MATCH($B66,'Damage costs'!$C$16:$C$43,0))/1000,BI58*INDEX('Damage costs'!$S$16:$S$43,MATCH($B66,'Damage costs'!$C$16:$C$43,0))/1000),\"\")","v":""},{"$f":"IFERROR(IF(OR($C$67=FALSE,LEFT($B66,3)<>\"NOX\"),BJ58*INDEX('Damage costs'!$O$16:$O$43,MATCH($B66,'Damage costs'!$C$16:$C$43,0))/1000,BJ58*INDEX('Damage costs'!$S$16:$S$43,MATCH($B66,'Damage costs'!$C$16:$C$43,0))/1000),\"\")","v":""},{"$f":"IFERROR(IF(OR($C$67=FALSE,LEFT($B66,3)<>\"NOX\"),BK58*INDEX('Damage costs'!$O$16:$O$43,MATCH($B66,'Damage costs'!$C$16:$C$43,0))/1000,BK58*INDEX('Damage costs'!$S$16:$S$43,MATCH($B66,'Damage costs'!$C$16:$C$43,0))/1000),\"\")","v":""},{"$f":"IFERROR(IF(OR($C$67=FALSE,LEFT($B66,3)<>\"NOX\"),BL58*INDEX('Damage costs'!$O$16:$O$43,MATCH($B66,'Damage costs'!$C$16:$C$43,0))/1000,BL58*INDEX('Damage costs'!$S$16:$S$43,MATCH($B66,'Damage costs'!$C$16:$C$43,0))/1000),\"\")","v":""},{"$f":"IFERROR(IF(OR($C$67=FALSE,LEFT($B66,3)<>\"NOX\"),BM58*INDEX('Damage costs'!$O$16:$O$43,MATCH($B66,'Damage costs'!$C$16:$C$43,0))/1000,BM58*INDEX('Damage costs'!$S$16:$S$43,MATCH($B66,'Damage costs'!$C$16:$C$43,0))/1000),\"\")","v":""},{"$f":"IFERROR(IF(OR($C$67=FALSE,LEFT($B66,3)<>\"NOX\"),BN58*INDEX('Damage costs'!$O$16:$O$43,MATCH($B66,'Damage costs'!$C$16:$C$43,0))/1000,BN58*INDEX('Damage costs'!$S$16:$S$43,MATCH($B66,'Damage costs'!$C$16:$C$43,0))/1000),\"\")","v":""},{"$f":"IFERROR(IF(OR($C$67=FALSE,LEFT($B66,3)<>\"NOX\"),BO58*INDEX('Damage costs'!$O$16:$O$43,MATCH($B66,'Damage costs'!$C$16:$C$43,0))/1000,BO58*INDEX('Damage costs'!$S$16:$S$43,MATCH($B66,'Damage costs'!$C$16:$C$43,0))/1000),\"\")","v":""},{"$f":"IFERROR(IF(OR($C$67=FALSE,LEFT($B66,3)<>\"NOX\"),BP58*INDEX('Damage costs'!$O$16:$O$43,MATCH($B66,'Damage costs'!$C$16:$C$43,0))/1000,BP58*INDEX('Damage costs'!$S$16:$S$43,MATCH($B66,'Damage costs'!$C$16:$C$43,0))/1000),\"\")","v":""},{"$f":"IFERROR(IF(OR($C$67=FALSE,LEFT($B66,3)<>\"NOX\"),BQ58*INDEX('Damage costs'!$O$16:$O$43,MATCH($B66,'Damage costs'!$C$16:$C$43,0))/1000,BQ58*INDEX('Damage costs'!$S$16:$S$43,MATCH($B66,'Damage costs'!$C$16:$C$43,0))/1000),\"\")","v":""},{"$f":"IFERROR(IF(OR($C$67=FALSE,LEFT($B66,3)<>\"NOX\"),BR58*INDEX('Damage costs'!$O$16:$O$43,MATCH($B66,'Damage costs'!$C$16:$C$43,0))/1000,BR58*INDEX('Damage costs'!$S$16:$S$43,MATCH($B66,'Damage costs'!$C$16:$C$43,0))/1000),\"\")","v":""},{"$f":"IFERROR(IF(OR($C$67=FALSE,LEFT($B66,3)<>\"NOX\"),BS58*INDEX('Damage costs'!$O$16:$O$43,MATCH($B66,'Damage costs'!$C$16:$C$43,0))/1000,BS58*INDEX('Damage costs'!$S$16:$S$43,MATCH($B66,'Damage costs'!$C$16:$C$43,0))/1000),\"\")","v":""},{"$f":"IFERROR(IF(OR($C$67=FALSE,LEFT($B66,3)<>\"NOX\"),BT58*INDEX('Damage costs'!$O$16:$O$43,MATCH($B66,'Damage costs'!$C$16:$C$43,0))/1000,BT58*INDEX('Damage costs'!$S$16:$S$43,MATCH($B66,'Damage costs'!$C$16:$C$43,0))/1000),\"\")","v":""},{"$f":"IFERROR(IF(OR($C$67=FALSE,LEFT($B66,3)<>\"NOX\"),BU58*INDEX('Damage costs'!$O$16:$O$43,MATCH($B66,'Damage costs'!$C$16:$C$43,0))/1000,BU58*INDEX('Damage costs'!$S$16:$S$43,MATCH($B66,'Damage costs'!$C$16:$C$43,0))/1000),\"\")","v":""},{"$f":"IFERROR(IF(OR($C$67=FALSE,LEFT($B66,3)<>\"NOX\"),BV58*INDEX('Damage costs'!$O$16:$O$43,MATCH($B66,'Damage costs'!$C$16:$C$43,0))/1000,BV58*INDEX('Damage costs'!$S$16:$S$43,MATCH($B66,'Damage costs'!$C$16:$C$43,0))/1000),\"\")","v":""},{"$f":"IFERROR(IF(OR($C$67=FALSE,LEFT($B66,3)<>\"NOX\"),BW58*INDEX('Damage costs'!$O$16:$O$43,MATCH($B66,'Damage costs'!$C$16:$C$43,0))/1000,BW58*INDEX('Damage costs'!$S$16:$S$43,MATCH($B66,'Damage costs'!$C$16:$C$43,0))/1000),\"\")","v":""},{"$f":"IFERROR(IF(OR($C$67=FALSE,LEFT($B66,3)<>\"NOX\"),BX58*INDEX('Damage costs'!$O$16:$O$43,MATCH($B66,'Damage costs'!$C$16:$C$43,0))/1000,BX58*INDEX('Damage costs'!$S$16:$S$43,MATCH($B66,'Damage costs'!$C$16:$C$43,0))/1000),\"\")","v":""},{"$f":"IFERROR(IF(OR($C$67=FALSE,LEFT($B66,3)<>\"NOX\"),BY58*INDEX('Damage costs'!$O$16:$O$43,MATCH($B66,'Damage costs'!$C$16:$C$43,0))/1000,BY58*INDEX('Damage costs'!$S$16:$S$43,MATCH($B66,'Damage costs'!$C$16:$C$43,0))/1000),\"\")","v":""},{"$f":"IFERROR(IF(OR($C$67=FALSE,LEFT($B66,3)<>\"NOX\"),BZ58*INDEX('Damage costs'!$O$16:$O$43,MATCH($B66,'Damage costs'!$C$16:$C$43,0))/1000,BZ58*INDEX('Damage costs'!$S$16:$S$43,MATCH($B66,'Damage costs'!$C$16:$C$43,0))/1000),\"\")","v":""},{"$f":"IFERROR(IF(OR($C$67=FALSE,LEFT($B66,3)<>\"NOX\"),CA58*INDEX('Damage costs'!$O$16:$O$43,MATCH($B66,'Damage costs'!$C$16:$C$43,0))/1000,CA58*INDEX('Damage costs'!$S$16:$S$43,MATCH($B66,'Damage costs'!$C$16:$C$43,0))/1000),\"\")","v":""},{"$f":"IFERROR(IF(OR($C$67=FALSE,LEFT($B66,3)<>\"NOX\"),CB58*INDEX('Damage costs'!$O$16:$O$43,MATCH($B66,'Damage costs'!$C$16:$C$43,0))/1000,CB58*INDEX('Damage costs'!$S$16:$S$43,MATCH($B66,'Damage costs'!$C$16:$C$43,0))/1000),\"\")","v":""},{"$f":"IFERROR(IF(OR($C$67=FALSE,LEFT($B66,3)<>\"NOX\"),CC58*INDEX('Damage costs'!$O$16:$O$43,MATCH($B66,'Damage costs'!$C$16:$C$43,0))/1000,CC58*INDEX('Damage costs'!$S$16:$S$43,MATCH($B66,'Damage costs'!$C$16:$C$43,0))/1000),\"\")","v":""},{"$f":"IFERROR(IF(OR($C$67=FALSE,LEFT($B66,3)<>\"NOX\"),CD58*INDEX('Damage costs'!$O$16:$O$43,MATCH($B66,'Damage costs'!$C$16:$C$43,0))/1000,CD58*INDEX('Damage costs'!$S$16:$S$43,MATCH($B66,'Damage costs'!$C$16:$C$43,0))/1000),\"\")","v":""},{"$f":"IFERROR(IF(OR($C$67=FALSE,LEFT($B66,3)<>\"NOX\"),CE58*INDEX('Damage costs'!$O$16:$O$43,MATCH($B66,'Damage costs'!$C$16:$C$43,0))/1000,CE58*INDEX('Damage costs'!$S$16:$S$43,MATCH($B66,'Damage costs'!$C$16:$C$43,0))/1000),\"\")","v":""},{"$f":"IFERROR(IF(OR($C$67=FALSE,LEFT($B66,3)<>\"NOX\"),CF58*INDEX('Damage costs'!$O$16:$O$43,MATCH($B66,'Damage costs'!$C$16:$C$43,0))/1000,CF58*INDEX('Damage costs'!$S$16:$S$43,MATCH($B66,'Damage costs'!$C$16:$C$43,0))/1000),\"\")","v":""},{"$f":"IFERROR(IF(OR($C$67=FALSE,LEFT($B66,3)<>\"NOX\"),CG58*INDEX('Damage costs'!$O$16:$O$43,MATCH($B66,'Damage costs'!$C$16:$C$43,0))/1000,CG58*INDEX('Damage costs'!$S$16:$S$43,MATCH($B66,'Damage costs'!$C$16:$C$43,0))/1000),\"\")","v":""},{"$f":"IFERROR(IF(OR($C$67=FALSE,LEFT($B66,3)<>\"NOX\"),CH58*INDEX('Damage costs'!$O$16:$O$43,MATCH($B66,'Damage costs'!$C$16:$C$43,0))/1000,CH58*INDEX('Damage costs'!$S$16:$S$43,MATCH($B66,'Damage costs'!$C$16:$C$43,0))/1000),\"\")","v":""},{"$f":"IFERROR(IF(OR($C$67=FALSE,LEFT($B66,3)<>\"NOX\"),CI58*INDEX('Damage costs'!$O$16:$O$43,MATCH($B66,'Damage costs'!$C$16:$C$43,0))/1000,CI58*INDEX('Damage costs'!$S$16:$S$43,MATCH($B66,'Damage costs'!$C$16:$C$43,0))/1000),\"\")","v":""},{"$f":"IFERROR(IF(OR($C$67=FALSE,LEFT($B66,3)<>\"NOX\"),CJ58*INDEX('Damage costs'!$O$16:$O$43,MATCH($B66,'Damage costs'!$C$16:$C$43,0))/1000,CJ58*INDEX('Damage costs'!$S$16:$S$43,MATCH($B66,'Damage costs'!$C$16:$C$43,0))/1000),\"\")","v":""},{"$f":"IFERROR(IF(OR($C$67=FALSE,LEFT($B66,3)<>\"NOX\"),CK58*INDEX('Damage costs'!$O$16:$O$43,MATCH($B66,'Damage costs'!$C$16:$C$43,0))/1000,CK58*INDEX('Damage costs'!$S$16:$S$43,MATCH($B66,'Damage costs'!$C$16:$C$43,0))/1000),\"\")","v":""},{"$f":"IFERROR(IF(OR($C$67=FALSE,LEFT($B66,3)<>\"NOX\"),CL58*INDEX('Damage costs'!$O$16:$O$43,MATCH($B66,'Damage costs'!$C$16:$C$43,0))/1000,CL58*INDEX('Damage costs'!$S$16:$S$43,MATCH($B66,'Damage costs'!$C$16:$C$43,0))/1000),\"\")","v":""},{"$f":"IFERROR(IF(OR($C$67=FALSE,LEFT($B66,3)<>\"NOX\"),CM58*INDEX('Damage costs'!$O$16:$O$43,MATCH($B66,'Damage costs'!$C$16:$C$43,0))/1000,CM58*INDEX('Damage costs'!$S$16:$S$43,MATCH($B66,'Damage costs'!$C$16:$C$43,0))/1000),\"\")","v":""},{"$f":"IFERROR(IF(OR($C$67=FALSE,LEFT($B66,3)<>\"NOX\"),CN58*INDEX('Damage costs'!$O$16:$O$43,MATCH($B66,'Damage costs'!$C$16:$C$43,0))/1000,CN58*INDEX('Damage costs'!$S$16:$S$43,MATCH($B66,'Damage costs'!$C$16:$C$43,0))/1000),\"\")","v":""},{"$f":"IFERROR(IF(OR($C$67=FALSE,LEFT($B66,3)<>\"NOX\"),CO58*INDEX('Damage costs'!$O$16:$O$43,MATCH($B66,'Damage costs'!$C$16:$C$43,0))/1000,CO58*INDEX('Damage costs'!$S$16:$S$43,MATCH($B66,'Damage costs'!$C$16:$C$43,0))/1000),\"\")","v":""},{"$f":"IFERROR(IF(OR($C$67=FALSE,LEFT($B66,3)<>\"NOX\"),CP58*INDEX('Damage costs'!$O$16:$O$43,MATCH($B66,'Damage costs'!$C$16:$C$43,0))/1000,CP58*INDEX('Damage costs'!$S$16:$S$43,MATCH($B66,'Damage costs'!$C$16:$C$43,0))/1000),\"\")","v":""},{"$f":"IFERROR(IF(OR($C$67=FALSE,LEFT($B66,3)<>\"NOX\"),CQ58*INDEX('Damage costs'!$O$16:$O$43,MATCH($B66,'Damage costs'!$C$16:$C$43,0))/1000,CQ58*INDEX('Damage costs'!$S$16:$S$43,MATCH($B66,'Damage costs'!$C$16:$C$43,0))/1000),\"\")","v":""},{"$f":"IFERROR(IF(OR($C$67=FALSE,LEFT($B66,3)<>\"NOX\"),CR58*INDEX('Damage costs'!$O$16:$O$43,MATCH($B66,'Damage costs'!$C$16:$C$43,0))/1000,CR58*INDEX('Damage costs'!$S$16:$S$43,MATCH($B66,'Damage costs'!$C$16:$C$43,0))/1000),\"\")","v":""},{"$f":"IFERROR(IF(OR($C$67=FALSE,LEFT($B66,3)<>\"NOX\"),CS58*INDEX('Damage costs'!$O$16:$O$43,MATCH($B66,'Damage costs'!$C$16:$C$43,0))/1000,CS58*INDEX('Damage costs'!$S$16:$S$43,MATCH($B66,'Damage costs'!$C$16:$C$43,0))/1000),\"\")","v":""},{"$f":"IFERROR(IF(OR($C$67=FALSE,LEFT($B66,3)<>\"NOX\"),CT58*INDEX('Damage costs'!$O$16:$O$43,MATCH($B66,'Damage costs'!$C$16:$C$43,0))/1000,CT58*INDEX('Damage costs'!$S$16:$S$43,MATCH($B66,'Damage costs'!$C$16:$C$43,0))/1000),\"\")","v":""},{"$f":"IFERROR(IF(OR($C$67=FALSE,LEFT($B66,3)<>\"NOX\"),CU58*INDEX('Damage costs'!$O$16:$O$43,MATCH($B66,'Damage costs'!$C$16:$C$43,0))/1000,CU58*INDEX('Damage costs'!$S$16:$S$43,MATCH($B66,'Damage costs'!$C$16:$C$43,0))/1000),\"\")","v":""},{"$f":"IFERROR(IF(OR($C$67=FALSE,LEFT($B66,3)<>\"NOX\"),CV58*INDEX('Damage costs'!$O$16:$O$43,MATCH($B66,'Damage costs'!$C$16:$C$43,0))/1000,CV58*INDEX('Damage costs'!$S$16:$S$43,MATCH($B66,'Damage costs'!$C$16:$C$43,0))/1000),\"\")","v":""},{"$f":"IFERROR(IF(OR($C$67=FALSE,LEFT($B66,3)<>\"NOX\"),CW58*INDEX('Damage costs'!$O$16:$O$43,MATCH($B66,'Damage costs'!$C$16:$C$43,0))/1000,CW58*INDEX('Damage costs'!$S$16:$S$43,MATCH($B66,'Damage costs'!$C$16:$C$43,0))/1000),\"\")","v":""},{"$f":"IFERROR(IF(OR($C$67=FALSE,LEFT($B66,3)<>\"NOX\"),CX58*INDEX('Damage costs'!$O$16:$O$43,MATCH($B66,'Damage costs'!$C$16:$C$43,0))/1000,CX58*INDEX('Damage costs'!$S$16:$S$43,MATCH($B66,'Damage costs'!$C$16:$C$43,0))/1000),\"\")","v":""},{"$f":"IFERROR(IF(OR($C$67=FALSE,LEFT($B66,3)<>\"NOX\"),CY58*INDEX('Damage costs'!$O$16:$O$43,MATCH($B66,'Damage costs'!$C$16:$C$43,0))/1000,CY58*INDEX('Damage costs'!$S$16:$S$43,MATCH($B66,'Damage costs'!$C$16:$C$43,0))/1000),\"\")","v":""}]
[null,"PM10 Used",{"$f":"IF(OR(LEFT(B61,4)=\"PM10\",LEFT(B62,4)=\"PM10\",LEFT(B63,4)=\"PM10\",LEFT(B64,4)=\"PM10\",LEFT(B65,4)=\"PM10\",LEFT(B66,4)=\"PM10\"),TRUE,FALSE)","v":false}]
[]
[null,"Uplift pa","%",{"$f":"'Discount and deflators'!$H$5","v":0.02}]
[null,"Uplift factor",null,{"$f":"IF(D$6=0,0,(1+$D69)^(D$6-'Data Input - General'!$F$22))","v":1},{"$f":"IF(E$6=0,0,(1+$D69)^(E$6-'Data Input - General'!$F$22))","v":1.02},{"$f":"IF(F$6=0,0,(1+$D69)^(F$6-'Data Input - General'!$F$22))","v":1.0404},{"$f":"IF(G$6=0,0,(1+$D69)^(G$6-'Data Input - General'!$F$22))","v":1.0612079999999999},{"$f":"IF(H$6=0,0,(1+$D69)^(H$6-'Data Input - General'!$F$22))","v":1.08243216},{"$f":"IF(I$6=0,0,(1+$D69)^(I$6-'Data Input - General'!$F$22))","v":1.1040808032},{"$f":"IF(J$6=0,0,(1+$D69)^(J$6-'Data Input - General'!$F$22))","v":1.1261624192640001},{"$f":"IF(K$6=0,0,(1+$D69)^(K$6-'Data Input - General'!$F$22))","v":1.1486856676492798},{"$f":"IF(L$6=0,0,(1+$D69)^(L$6-'Data Input - General'!$F$22))","v":1.1716593810022655},{"$f":"IF(M$6=0,0,(1+$D69)^(M$6-'Data Input - General'!$F$22))","v":1.1950925686223108},{"$f":"IF(N$6=0,0,(1+$D69)^(N$6-'Data Input - General'!$F$22))","v":1.2189944199947571},{"$f":"IF(O$6=0,0,(1+$D69)^(O$6-'Data Input - General'!$F$22))","v":1.243374308394652},{"$f":"IF(P$6=0,0,(1+$D69)^(P$6-'Data Input - General'!$F$22))","v":1.2682417945625453},{"$f":"IF(Q$6=0,0,(1+$D69)^(Q$6-'Data Input - General'!$F$22))","v":1.2936066304537961},{"$f":"IF(R$6=0,0,(1+$D69)^(R$6-'Data Input - General'!$F$22))","v":1.3194787630628722},{"$f":"IF(S$6=0,0,(1+$D69)^(S$6-'Data Input - General'!$F$22))","v":1.3458683383241292},{"$f":"IF(T$6=0,0,(1+$D69)^(T$6-'Data Input - General'!$F$22))","v":1.372785705090612},{"$f":"IF(U$6=0,0,(1+$D69)^(U$6-'Data Input - General'!$F$22))","v":1.4002414191924244},{"$f":"IF(V$6=0,0,(1+$D69)^(V$6-'Data Input - General'!$F$22))","v":1.4282462475762727},{"$f":"IF(W$6=0,0,(1+$D69)^(W$6-'Data Input - General'!$F$22))","v":1.4568111725277981},{"$f":"IF(X$6=0,0,(1+$D69)^(X$6-'Data Input - General'!$F$22))","v":1.4859473959783542},{"$f":"IF(Y$6=0,0,(1+$D69)^(Y$6-'Data Input - General'!$F$22))","v":1.5156663438979212},{"$f":"IF(Z$6=0,0,(1+$D69)^(Z$6-'Data Input - General'!$F$22))","v":1.5459796707758797},{"$f":"IF(AA$6=0,0,(1+$D69)^(AA$6-'Data Input - General'!$F$22))","v":1.576899264191397},{"$f":"IF(AB$6=0,0,(1+$D69)^(AB$6-'Data Input - General'!$F$22))","v":1.608437249475225},{"$f":"IF(AC$6=0,0,(1+$D69)^(AC$6-'Data Input - General'!$F$22))","v":1.6406059944647295},{"$f":"IF(AD$6=0,0,(1+$D69)^(AD$6-'Data Input - General'!$F$22))","v":1.6734181143540243},{"$f":"IF(AE$6=0,0,(1+$D69)^(AE$6-'Data Input - General'!$F$22))","v":1.7068864766411045},{"$f":"IF(AF$6=0,0,(1+$D69)^(AF$6-'Data Input - General'!$F$22))","v":1.7410242061739269},{"$f":"IF(AG$6=0,0,(1+$D69)^(AG$6-'Data Input - General'!$F$22))","v":1.7758446902974052},{"$f":"IF(AH$6=0,0,(1+$D69)^(AH$6-'Data Input - General'!$F$22))","v":1.8113615841033535},{"$f":"IF(AI$6=0,0,(1+$D69)^(AI$6-'Data Input - General'!$F$22))","v":0},{"$f":"IF(AJ$6=0,0,(1+$D69)^(AJ$6-'Data Input - General'!$F$22))","v":0},{"$f":"IF(AK$6=0,0,(1+$D69)^(AK$6-'Data Input - General'!$F$22))","v":0},{"$f":"IF(AL$6=0,0,(1+$D69)^(AL$6-'Data Input - General'!$F$22))","v":0},{"$f":"IF(AM$6=0,0,(1+$D69)^(AM$6-'Data Input - General'!$F$22))","v":0},{"$f":"IF(AN$6=0,0,(1+$D69)^(AN$6-'Data Input - General'!$F$22))","v":0},{"$f":"IF(AO$6=0,0,(1+$D69)^(AO$6-'Data Input - General'!$F$22))","v":0},{"$f":"IF(AP$6=0,0,(1+$D69)^(AP$6-'Data Input - General'!$F$22))","v":0},{"$f":"IF(AQ$6=0,0,(1+$D69)^(AQ$6-'Data Input - General'!$F$22))","v":0},{"$f":"IF(AR$6=0,0,(1+$D69)^(AR$6-'Data Input - General'!$F$22))","v":0},{"$f":"IF(AS$6=0,0,(1+$D69)^(AS$6-'Data Input - General'!$F$22))","v":0},{"$f":"IF(AT$6=0,0,(1+$D69)^(AT$6-'Data Input - General'!$F$22))","v":0},{"$f":"IF(AU$6=0,0,(1+$D69)^(AU$6-'Data Input - General'!$F$22))","v":0},{"$f":"IF(AV$6=0,0,(1+$D69)^(AV$6-'Data Input - General'!$F$22))","v":0},{"$f":"IF(AW$6=0,0,(1+$D69)^(AW$6-'Data Input - General'!$F$22))","v":0},{"$f":"IF(AX$6=0,0,(1+$D69)^(AX$6-'Data Input - General'!$F$22))","v":0},{"$f":"IF(AY$6=0,0,(1+$D69)^(AY$6-'Data Input - General'!$F$22))","v":0},{"$f":"IF(AZ$6=0,0,(1+$D69)^(AZ$6-'Data Input - General'!$F$22))","v":0},{"$f":"IF(BA$6=0,0,(1+$D69)^(BA$6-'Data Input - General'!$F$22))","v":0},{"$f":"IF(BB$6=0,0,(1+$D69)^(BB$6-'Data Input - General'!$F$22))","v":0},{"$f":"IF(BC$6=0,0,(1+$D69)^(BC$6-'Data Input - General'!$F$22))","v":0},{"$f":"IF(BD$6=0,0,(1+$D69)^(BD$6-'Data Input - General'!$F$22))","v":0},{"$f":"IF(BE$6=0,0,(1+$D69)^(BE$6-'Data Input - General'!$F$22))","v":0},{"$f":"IF(BF$6=0,0,(1+$D69)^(BF$6-'Data Input - General'!$F$22))","v":0},{"$f":"IF(BG$6=0,0,(1+$D69)^(BG$6-'Data Input - General'!$F$22))","v":0},{"$f":"IF(BH$6=0,0,(1+$D69)^(BH$6-'Data Input - General'!$F$22))","v":0},{"$f":"IF(BI$6=0,0,(1+$D69)^(BI$6-'Data Input - General'!$F$22))","v":0},{"$f":"IF(BJ$6=0,0,(1+$D69)^(BJ$6-'Data Input - General'!$F$22))","v":0},{"$f":"IF(BK$6=0,0,(1+$D69)^(BK$6-'Data Input - General'!$F$22))","v":0},{"$f":"IF(BL$6=0,0,(1+$D69)^(BL$6-'Data Input - General'!$F$22))","v":0},{"$f":"IF(BM$6=0,0,(1+$D69)^(BM$6-'Data Input - General'!$F$22))","v":0},{"$f":"IF(BN$6=0,0,(1+$D69)^(BN$6-'Data Input - General'!$F$22))","v":0},{"$f":"IF(BO$6=0,0,(1+$D69)^(BO$6-'Data Input - General'!$F$22))","v":0},{"$f":"IF(BP$6=0,0,(1+$D69)^(BP$6-'Data Input - General'!$F$22))","v":0},{"$f":"IF(BQ$6=0,0,(1+$D69)^(BQ$6-'Data Input - General'!$F$22))","v":0},{"$f":"IF(BR$6=0,0,(1+$D69)^(BR$6-'Data Input - General'!$F$22))","v":0},{"$f":"IF(BS$6=0,0,(1+$D69)^(BS$6-'Data Input - General'!$F$22))","v":0},{"$f":"IF(BT$6=0,0,(1+$D69)^(BT$6-'Data Input - General'!$F$22))","v":0},{"$f":"IF(BU$6=0,0,(1+$D69)^(BU$6-'Data Input - General'!$F$22))","v":0},{"$f":"IF(BV$6=0,0,(1+$D69)^(BV$6-'Data Input - General'!$F$22))","v":0},{"$f":"IF(BW$6=0,0,(1+$D69)^(BW$6-'Data Input - General'!$F$22))","v":0},{"$f":"IF(BX$6=0,0,(1+$D69)^(BX$6-'Data Input - General'!$F$22))","v":0},{"$f":"IF(BY$6=0,0,(1+$D69)^(BY$6-'Data Input - General'!$F$22))","v":0},{"$f":"IF(BZ$6=0,0,(1+$D69)^(BZ$6-'Data Input - General'!$F$22))","v":0},{"$f":"IF(CA$6=0,0,(1+$D69)^(CA$6-'Data Input - General'!$F$22))","v":0},{"$f":"IF(CB$6=0,0,(1+$D69)^(CB$6-'Data Input - General'!$F$22))","v":0},{"$f":"IF(CC$6=0,0,(1+$D69)^(CC$6-'Data Input - General'!$F$22))","v":0},{"$f":"IF(CD$6=0,0,(1+$D69)^(CD$6-'Data Input - General'!$F$22))","v":0},{"$f":"IF(CE$6=0,0,(1+$D69)^(CE$6-'Data Input - General'!$F$22))","v":0},{"$f":"IF(CF$6=0,0,(1+$D69)^(CF$6-'Data Input - General'!$F$22))","v":0},{"$f":"IF(CG$6=0,0,(1+$D69)^(CG$6-'Data Input - General'!$F$22))","v":0},{"$f":"IF(CH$6=0,0,(1+$D69)^(CH$6-'Data Input - General'!$F$22))","v":0},{"$f":"IF(CI$6=0,0,(1+$D69)^(CI$6-'Data Input - General'!$F$22))","v":0},{"$f":"IF(CJ$6=0,0,(1+$D69)^(CJ$6-'Data Input - General'!$F$22))","v":0},{"$f":"IF(CK$6=0,0,(1+$D69)^(CK$6-'Data Input - General'!$F$22))","v":0},{"$f":"IF(CL$6=0,0,(1+$D69)^(CL$6-'Data Input - General'!$F$22))","v":0},{"$f":"IF(CM$6=0,0,(1+$D69)^(CM$6-'Data Input - General'!$F$22))","v":0},{"$f":"IF(CN$6=0,0,(1+$D69)^(CN$6-'Data Input - General'!$F$22))","v":0},{"$f":"IF(CO$6=0,0,(1+$D69)^(CO$6-'Data Input - General'!$F$22))","v":0},{"$f":"IF(CP$6=0,0,(1+$D69)^(CP$6-'Data Input - General'!$F$22))","v":0},{"$f":"IF(CQ$6=0,0,(1+$D69)^(CQ$6-'Data Input - General'!$F$22))","v":0},{"$f":"IF(CR$6=0,0,(1+$D69)^(CR$6-'Data Input - General'!$F$22))","v":0},{"$f":"IF(CS$6=0,0,(1+$D69)^(CS$6-'Data Input - General'!$F$22))","v":0},{"$f":"IF(CT$6=0,0,(1+$D69)^(CT$6-'Data Input - General'!$F$22))","v":0},{"$f":"IF(CU$6=0,0,(1+$D69)^(CU$6-'Data Input - General'!$F$22))","v":0},{"$f":"IF(CV$6=0,0,(1+$D69)^(CV$6-'Data Input - General'!$F$22))","v":0},{"$f":"IF(CW$6=0,0,(1+$D69)^(CW$6-'Data Input - General'!$F$22))","v":0},{"$f":"IF(CX$6=0,0,(1+$D69)^(CX$6-'Data Input - General'!$F$22))","v":0},{"$f":"IF(CY$6=0,0,(1+$D69)^(CY$6-'Data Input - General'!$F$22))","v":0}]
[null,"Total value","£000's",{"$f":"SUM(D61:D66)*D70","v":6.7435895540131199},{"$f":"SUM(E61:E66)*E70","v":1.8296707177948397},{"$f":"SUM(F61:F66)*F70","v":1.8662641321507365},{"$f":"SUM(G61:G66)*G70","v":1.9035894147937511},1.9416612030896263,1.9804944271514189,2.0201043156944474,2.0605064020083357,0,0,0,0,0,0,0,0,0,0,0,0,0,0,0,0,0,0,0,0,0,0,0,0,{"$f":"SUM(AJ61:AJ66)*AJ70","v":0},0,0,0,0,0,0,0,0,0,0,0,0,0,0,0,0,0,0,0,0,0,0,0,0,0,0,0,{"$f":"SUM(BL61:BL66)*BL70","v":0},0,0,0,0,0,0,0,0,0,0,0,0,0,0,0,0,0,0,0,0,0,0,0,0,0,0,0,0,0,0,0,0,0,0,0,0,0,0,0]
[null,"Discounted total value","£000's",{"$f":"D71*D$7","v":6.7435895540131199},{"$f":"E71*E$7","v":1.7677977949708596},{"$f":"F71*F$7","v":1.7421775370727315},1.7169285872600832,1.6920455642563141,1.6675231647743387,1.6433561623863051,1.6195394064096915,0,0,0,0,0,0,0,0,0,0,0,0,0,0,0,0,0,0,0,0,0,0,0,0,0,0,0,0,0,0,0,0,0,0,0,0,0,0,0,0,0,0,0,0,0,0,0,0,0,0,0,0,0,0,0,0,0,0,{"$f":"BR71*BR$7","v":0},0,0,0,0,0,0,0,0,0,0,0,0,0,0,0,0,0,0,0,0,0,0,0,0,0,0,0,0,0,0,0,0,0]
[]
[null,"Greenhouse gas emissions (not associated with fuel use)"]
[null,"Emissions","tCO2e",{"$f":"'Data Input - BAT'!H117","v":45000},{"$f":"'Data Input - BAT'!I117","v":45000},{"$f":"'Data Input - BAT'!J117","v":45000},{"$f":"'Data Input - BAT'!K117","v":45000},{"$f":"'Data Input - BAT'!L117","v":45000},{"$f":"'Data Input - BAT'!M117","v":45000},{"$f":"'Data Input - BAT'!N117","v":45000},{"$f":"'Data Input - BAT'!O117","v":45000},{"$f":"'Data Input - BAT'!P117","v":0},{"$f":"'Data Input - BAT'!Q117","v":0},{"$f":"'Data Input - BAT'!R117","v":0},{"$f":"'Data Input - BAT'!S117","v":0},{"$f":"'Data Input - BAT'!T117","v":0},{"$f":"'Data Input - BAT'!U117","v":0},{"$f":"'Data Input - BAT'!V117","v":0},{"$f":"'Data Input - BAT'!W117","v":0},{"$f":"'Data Input - BAT'!X117","v":0},{"$f":"'Data Input - BAT'!Y117","v":0},{"$f":"'Data Input - BAT'!Z117","v":0},{"$f":"'Data Input - BAT'!AA117","v":0},{"$f":"'Data Input - BAT'!AB117","v":0},{"$f":"'Data Input - BAT'!AC117","v":0},{"$f":"'Data Input - BAT'!AD117","v":0},{"$f":"'Data Input - BAT'!AE117","v":0},{"$f":"'Data Input - BAT'!AF117","v":0},{"$f":"'Data Input - BAT'!AG117","v":0},{"$f":"'Data Input - BAT'!AH117","v":0},{"$f":"'Data Input - BAT'!AI117","v":0},{"$f":"'Data Input - BAT'!AJ117","v":0},{"$f":"'Data Input - BAT'!AK117","v":0},{"$f":"'Data Input - BAT'!AL117","v":0},{"$f":"'Data Input - BAT'!AM117","v":0},{"$f":"'Data Input - BAT'!AN117","v":0},{"$f":"'Data Input - BAT'!AO117","v":0},{"$f":"'Data Input - BAT'!AP117","v":0},{"$f":"'Data Input - BAT'!AQ117","v":0},{"$f":"'Data Input - BAT'!AR117","v":0},{"$f":"'Data Input - BAT'!AS117","v":0},{"$f":"'Data Input - BAT'!AT117","v":0},{"$f":"'Data Input - BAT'!AU117","v":0},{"$f":"'Data Input - BAT'!AV117","v":0},{"$f":"'Data Input - BAT'!AW117","v":0},{"$f":"'Data Input - BAT'!AX117","v":0},{"$f":"'Data Input - BAT'!AY117","v":0},{"$f":"'Data Input - BAT'!AZ117","v":0},{"$f":"'Data Input - BAT'!BA117","v":0},{"$f":"'Data Input - BAT'!BB117","v":0},{"$f":"'Data Input - BAT'!BC117","v":0},{"$f":"'Data Input - BAT'!BD117","v":0},{"$f":"'Data Input - BAT'!BE117","v":0},{"$f":"'Data Input - BAT'!BF117","v":0},{"$f":"'Data Input - BAT'!BG117","v":0},{"$f":"'Data Input - BAT'!BH117","v":0},{"$f":"'Data Input - BAT'!BI117","v":0},{"$f":"'Data Input - BAT'!BJ117","v":0},{"$f":"'Data Input - BAT'!BK117","v":0},{"$f":"'Data Input - BAT'!BL117","v":0},{"$f":"'Data Input - BAT'!BM117","v":0},{"$f":"'Data Input - BAT'!BN117","v":0},{"$f":"'Data Input - BAT'!BO117","v":0},{"$f":"'Data Input - BAT'!BP117","v":0},{"$f":"'Data Input - BAT'!BQ117","v":0},{"$f":"'Data Input - BAT'!BR117","v":0},{"$f":"'Data Input - BAT'!BS117","v":0},{"$f":"'Data Input - BAT'!BT117","v":0},{"$f":"'Data Input - BAT'!BU117","v":0},{"$f":"'Data Input - BAT'!BV117","v":0},{"$f":"'Data Input - BAT'!BW117","v":0},{"$f":"'Data Input - BAT'!BX117","v":0},{"$f":"'Data Input - BAT'!BY117","v":0},{"$f":"'Data Input - BAT'!BZ117","v":0},{"$f":"'Data Input - BAT'!CA117","v":0},{"$f":"'Data Input - BAT'!CB117","v":0},{"$f":"'Data Input - BAT'!CC117","v":0},{"$f":"'Data Input - BAT'!CD117","v":0},{"$f":"'Data Input - BAT'!CE117","v":0},{"$f":"'Data Input - BAT'!CF117","v":0},{"$f":"'Data Input - BAT'!CG117","v":0},{"$f":"'Data Input - BAT'!CH117","v":0},{"$f":"'Data Input - BAT'!CI117","v":0},{"$f":"'Data Input - BAT'!CJ117","v":0},{"$f":"'Data Input - BAT'!CK117","v":0},{"$f":"'Data Input - BAT'!CL117","v":0},{"$f":"'Data Input - BAT'!CM117","v":0},{"$f":"'Data Input - BAT'!CN117","v":0},{"$f":"'Data Input - BAT'!CO117","v":0},{"$f":"'Data Input - BAT'!CP117","v":0},{"$f":"'Data Input - BAT'!CQ117","v":0},{"$f":"'Data Input - BAT'!CR117","v":0},{"$f":"'Data Input - BAT'!CS117","v":0},{"$f":"'Data Input - BAT'!CT117","v":0},{"$f":"'Data Input - BAT'!CU117","v":0},{"$f":"'Data Input - BAT'!CV117","v":0},{"$f":"'Data Input - BAT'!CW117","v":0},{"$f":"'Data Input - BAT'!CX117","v":0},{"$f":"'Data Input - BAT'!CY117","v":0},{"$f":"'Data Input - BAT'!CZ117","v":0},{"$f":"'Data Input - BAT'!DA117","v":0},{"$f":"'Data Input - BAT'!DB117","v":0},{"$f":"'Data Input - BAT'!DC117","v":0}]
[null,"Unit value","£000's",{"$f":"IFERROR(IF('Data Input - General'!$F$12=\"Yes\",HLOOKUP(Calc_BAT!D$6,'Carbon Prices'!$D$9:$CP$15,3,FALSE),HLOOKUP(Calc_BAT!D$6,'Carbon Prices'!$D$9:$CP$15,6,FALSE)),0)","v":6.8248086829049139},{"$f":"IFERROR(IF('Data Input - General'!$F$12=\"Yes\",HLOOKUP(Calc_BAT!E$6,'Carbon Prices'!$D$9:$CP$15,3,FALSE),HLOOKUP(Calc_BAT!E$6,'Carbon Prices'!$D$9:$CP$15,6,FALSE)),0)","v":7.0841514128553005},{"$f":"IFERROR(IF('Data Input - General'!$F$12=\"Yes\",HLOOKUP(Calc_BAT!F$6,'Carbon Prices'!$D$9:$CP$15,3,FALSE),HLOOKUP(Calc_BAT!F$6,'Carbon Prices'!$D$9:$CP$15,6,FALSE)),0)","v":14.809366678834097},{"$f":"IFERROR(IF('Data Input - General'!$F$12=\"Yes\",HLOOKUP(Calc_BAT!G$6,'Carbon Prices'!$D$9:$CP$15,3,FALSE),HLOOKUP(Calc_BAT!G$6,'Carbon Prices'!$D$9:$CP$15,6,FALSE)),0)","v":22.534581944812892},{"$f":"IFERROR(IF('Data Input - General'!$F$12=\"Yes\",HLOOKUP(Calc_BAT!H$6,'Carbon Prices'!$D$9:$CP$15,3,FALSE),HLOOKUP(Calc_BAT!H$6,'Carbon Prices'!$D$9:$CP$15,6,FALSE)),0)","v":30.259797210791689},{"$f":"IFERROR(IF('Data Input - General'!$F$12=\"Yes\",HLOOKUP(Calc_BAT!I$6,'Carbon Prices'!$D$9:$CP$15,3,FALSE),HLOOKUP(Calc_BAT!I$6,'Carbon Prices'!$D$9:$CP$15,6,FALSE)),0)","v":37.985012476770486},{"$f":"IFERROR(IF('Data Input - General'!$F$12=\"Yes\",HLOOKUP(Calc_BAT!J$6,'Carbon Prices'!$D$9:$CP$15,3,FALSE),HLOOKUP(Calc_BAT!J$6,'Carbon Prices'!$D$9:$CP$15,6,FALSE)),0)","v":45.710227742749282},{"$f":"IFERROR(IF('Data Input - General'!$F$12=\"Yes\",HLOOKUP(Calc_BAT!K$6,'Carbon Prices'!$D$9:$CP$15,3,FALSE),HLOOKUP(Calc_BAT!K$6,'Carbon Prices'!$D$9:$CP$15,6,FALSE)),0)","v":53.435443008728079},{"$f":"IFERROR(IF('Data Input - General'!$F$12=\"Yes\",HLOOKUP(Calc_BAT!L$6,'Carbon Prices'!$D$9:$CP$15,3,FALSE),HLOOKUP(Calc_BAT!L$6,'Carbon Prices'!$D$9:$CP$15,6,FALSE)),0)","v":61.160658274706876},{"$f":"IFERROR(IF('Data Input - General'!$F$12=\"Yes\",HLOOKUP(Calc_BAT!M$6,'Carbon Prices'!$D$9:$CP$15,3,FALSE),HLOOKUP(Calc_BAT!M$6,'Carbon Prices'!$D$9:$CP$15,6,FALSE)),0)","v":68.885873540685665},{"$f":"IFERROR(IF('Data Input - General'!$F$12=\"Yes\",HLOOKUP(Calc_BAT!N$6,'Carbon Prices'!$D$9:$CP$15,3,FALSE),HLOOKUP(Calc_BAT!N$6,'Carbon Prices'!$D$9:$CP$15,6,FALSE)),0)","v":76.611088806664469},{"$f":"IFERROR(IF('Data Input - General'!$F$12=\"Yes\",HLOOKUP(Calc_BAT!O$6,'Carbon Prices'!$D$9:$CP$15,3,FALSE),HLOOKUP(Calc_BAT!O$6,'Carbon Prices'!$D$9:$CP$15,6,FALSE)),0)","v":84.336304072643259},{"$f":"IFERROR(IF('Data Input - General'!$F$12=\"Yes\",HLOOKUP(Calc_BAT!P$6,'Carbon Prices'!$D$9:$CP$15,3,FALSE),HLOOKUP(Calc_BAT!P$6,'Carbon Prices'!$D$9:$CP$15,6,FALSE)),0)","v":92.167532307960172},{"$f":"IFERROR(IF('Data Input - General'!$F$12=\"Yes\",HLOOKUP(Calc_BAT!Q$6,'Carbon Prices'!$D$9:$CP$15,3,FALSE),HLOOKUP(Calc_BAT!Q$6,'Carbon Prices'!$D$9:$CP$15,6,FALSE)),0)","v":99.998760543277044},{"$f":"IFERROR(IF('Data Input - General'!$F$12=\"Yes\",HLOOKUP(Calc_BAT!R$6,'Carbon Prices'!$D$9:$CP$15,3,FALSE),HLOOKUP(Calc_BAT!R$6,'Carbon Prices'!$D$9:$CP$15,6,FALSE)),0)","v":107.82998877859391},{"$f":"IFERROR(IF('Data Input - General'!$F$12=\"Yes\",HLOOKUP(Calc_BAT!S$6,'Carbon Prices'!$D$9:$CP$15,3,FALSE),HLOOKUP(Calc_BAT!S$6,'Carbon Prices'!$D$9:$CP$15,6,FALSE)),0)","v":115.6612170139108},{"$f":"IFERROR(IF('Data Input - General'!$F$12=\"Yes\",HLOOKUP(Calc_BAT!T$6,'Carbon Prices'!$D$9:$CP$15,3,FALSE),HLOOKUP(Calc_BAT!T$6,'Carbon Prices'!$D$9:$CP$15,6,FALSE)),0)","v":123.49244524922767},{"$f":"IFERROR(IF('Data Input - General'!$F$12=\"Yes\",HLOOKUP(Calc_BAT!U$6,'Carbon Prices'!$D$9:$CP$15,3,FALSE),HLOOKUP(Calc_BAT!U$6,'Carbon Prices'!$D$9:$CP$15,6,FALSE)),0)","v":131.32367348454454},{"$f":"IFERROR(IF('Data Input - General'!$F$12=\"Yes\",HLOOKUP(Calc_BAT!V$6,'Carbon Prices'!$D$9:$CP$15,3,FALSE),HLOOKUP(Calc_BAT!V$6,'Carbon Prices'!$D$9:$CP$15,6,FALSE)),0)","v":139.15490171986141},{"$f":"IFERROR(IF('Data Input - General'!$F$12=\"Yes\",HLOOKUP(Calc_BAT!W$6,'Carbon Prices'!$D$9:$CP$15,3,FALSE),HLOOKUP(Calc_BAT!W$6,'Carbon Prices'!$D$9:$CP$15,6,FALSE)),0)","v":146.98612995517828},{"$f":"IFERROR(IF('Data Input - General'!$F$12=\"Yes\",HLOOKUP(Calc_BAT!X$6,'Carbon Prices'!$D$9:$CP$15,3,FALSE),HLOOKUP(Calc_BAT!X$6,'Carbon Prices'!$D$9:$CP$15,6,FALSE)),0)","v":154.81735819049521},{"$f":"IFERROR(IF('Data Input - General'!$F$12=\"Yes\",HLOOKUP(Calc_BAT!Y$6,'Carbon Prices'!$D$9:$CP$15,3,FALSE),HLOOKUP(Calc_BAT!Y$6,'Carbon Prices'!$D$9:$CP$15,6,FALSE)),0)","v":162.64858642581208},{"$f":"IFERROR(IF('Data Input - General'!$F$12=\"Yes\",HLOOKUP(Calc_BAT!Z$6,'Carbon Prices'!$D$9:$CP$15,3,FALSE),HLOOKUP(Calc_BAT!Z$6,'Carbon Prices'!$D$9:$CP$15,6,FALSE)),0)","v":170.47981466112896},{"$f":"IFERROR(IF('Data Input - General'!$F$12=\"Yes\",HLOOKUP(Calc_BAT!AA$6,'Carbon Prices'!$D$9:$CP$15,3,FALSE),HLOOKUP(Calc_BAT!AA$6,'Carbon Prices'!$D$9:$CP$15,6,FALSE)),0)","v":178.31104289644583},{"$f":"IFERROR(IF('Data Input - General'!$F$12=\"Yes\",HLOOKUP(Calc_BAT!AB$6,'Carbon Prices'!$D$9:$CP$15,3,FALSE),HLOOKUP(Calc_BAT!AB$6,'Carbon Prices'!$D$9:$CP$15,6,FALSE)),0)","v":186.1422711317627},{"$f":"IFERROR(IF('Data Input - General'!$F$12=\"Yes\",HLOOKUP(Calc_BAT!AC$6,'Carbon Prices'!$D$9:$CP$15,3,FALSE),HLOOKUP(Calc_BAT!AC$6,'Carbon Prices'!$D$9:$CP$15,6,FALSE)),0)","v":193.97349936707957},{"$f":"IFERROR(IF('Data Input - General'!$F$12=\"Yes\",HLOOKUP(Calc_BAT!AD$6,'Carbon Prices'!$D$9:$CP$15,3,FALSE),HLOOKUP(Calc_BAT!AD$6,'Carbon Prices'!$D$9:$CP$15,6,FALSE)),0)","v":201.80472760239644},{"$f":"IFERROR(IF('Data Input - General'!$F$12=\"Yes\",HLOOKUP(Calc_BAT!AE$6,'Carbon Prices'!$D$9:$CP$15,3,FALSE),HLOOKUP(Calc_BAT!AE$6,'Carbon Prices'!$D$9:$CP$15,6,FALSE)),0)","v":209.63595583771331},{"$f":"IFERROR(IF('Data Input - General'!$F$12=\"Yes\",HLOOKUP(Calc_BAT!AF$6,'Carbon Prices'!$D$9:$CP$15,3,FALSE),HLOOKUP(Calc_BAT!AF$6,'Carbon Prices'!$D$9:$CP$15,6,FALSE)),0)","v":217.46718407303021},{"$f":"IFERROR(IF('Data Input - General'!$F$12=\"Yes\",HLOOKUP(Calc_BAT!AG$6,'Carbon Prices'!$D$9:$CP$15,3,FALSE),HLOOKUP(Calc_BAT!AG$6,'Carbon Prices'!$D$9:$CP$15,6,FALSE)),0)","v":225.29841230834708},{"$f":"IFERROR(IF('Data Input - General'!$F$12=\"Yes\",HLOOKUP(Calc_BAT!AH$6,'Carbon Prices'!$D$9:$CP$15,3,FALSE),HLOOKUP(Calc_BAT!AH$6,'Carbon Prices'!$D$9:$CP$15,6,FALSE)),0)","v":233.12964054366395},{"$f":"IFERROR(IF('Data Input - General'!$F$12=\"Yes\",HLOOKUP(Calc_BAT!AI$6,'Carbon Prices'!$D$9:$CP$15,3,FALSE),HLOOKUP(Calc_BAT!AI$6,'Carbon Prices'!$D$9:$CP$15,6,FALSE)),0)","v":0},{"$f":"IFERROR(IF('Data Input - General'!$F$12=\"Yes\",HLOOKUP(Calc_BAT!AJ$6,'Carbon Prices'!$D$9:$CP$15,3,FALSE),HLOOKUP(Calc_BAT!AJ$6,'Carbon Prices'!$D$9:$CP$15,6,FALSE)),0)","v":0},{"$f":"IFERROR(IF('Data Input - General'!$F$12=\"Yes\",HLOOKUP(Calc_BAT!AK$6,'Carbon Prices'!$D$9:$CP$15,3,FALSE),HLOOKUP(Calc_BAT!AK$6,'Carbon Prices'!$D$9:$CP$15,6,FALSE)),0)","v":0},{"$f":"IFERROR(IF('Data Input - General'!$F$12=\"Yes\",HLOOKUP(Calc_BAT!AL$6,'Carbon Prices'!$D$9:$CP$15,3,FALSE),HLOOKUP(Calc_BAT!AL$6,'Carbon Prices'!$D$9:$CP$15,6,FALSE)),0)","v":0},{"$f":"IFERROR(IF('Data Input - General'!$F$12=\"Yes\",HLOOKUP(Calc_BAT!AM$6,'Carbon Prices'!$D$9:$CP$15,3,FALSE),HLOOKUP(Calc_BAT!AM$6,'Carbon Prices'!$D$9:$CP$15,6,FALSE)),0)","v":0},{"$f":"IFERROR(IF('Data Input - General'!$F$12=\"Yes\",HLOOKUP(Calc_BAT!AN$6,'Carbon Prices'!$D$9:$CP$15,3,FALSE),HLOOKUP(Calc_BAT!AN$6,'Carbon Prices'!$D$9:$CP$15,6,FALSE)),0)","v":0},{"$f":"IFERROR(IF('Data Input - General'!$F$12=\"Yes\",HLOOKUP(Calc_BAT!AO$6,'Carbon Prices'!$D$9:$CP$15,3,FALSE),HLOOKUP(Calc_BAT!AO$6,'Carbon Prices'!$D$9:$CP$15,6,FALSE)),0)","v":0},{"$f":"IFERROR(IF('Data Input - General'!$F$12=\"Yes\",HLOOKUP(Calc_BAT!AP$6,'Carbon Prices'!$D$9:$CP$15,3,FALSE),HLOOKUP(Calc_BAT!AP$6,'Carbon Prices'!$D$9:$CP$15,6,FALSE)),0)","v":0},{"$f":"IFERROR(IF('Data Input - General'!$F$12=\"Yes\",HLOOKUP(Calc_BAT!AQ$6,'Carbon Prices'!$D$9:$CP$15,3,FALSE),HLOOKUP(Calc_BAT!AQ$6,'Carbon Prices'!$D$9:$CP$15,6,FALSE)),0)","v":0},{"$f":"IFERROR(IF('Data Input - General'!$F$12=\"Yes\",HLOOKUP(Calc_BAT!AR$6,'Carbon Prices'!$D$9:$CP$15,3,FALSE),HLOOKUP(Calc_BAT!AR$6,'Carbon Prices'!$D$9:$CP$15,6,FALSE)),0)","v":0},{"$f":"IFERROR(IF('Data Input - General'!$F$12=\"Yes\",HLOOKUP(Calc_BAT!AS$6,'Carbon Prices'!$D$9:$CP$15,3,FALSE),HLOOKUP(Calc_BAT!AS$6,'Carbon Prices'!$D$9:$CP$15,6,FALSE)),0)","v":0},{"$f":"IFERROR(IF('Data Input - General'!$F$12=\"Yes\",HLOOKUP(Calc_BAT!AT$6,'Carbon Prices'!$D$9:$CP$15,3,FALSE),HLOOKUP(Calc_BAT!AT$6,'Carbon Prices'!$D$9:$CP$15,6,FALSE)),0)","v":0},{"$f":"IFERROR(IF('Data Input - General'!$F$12=\"Yes\",HLOOKUP(Calc_BAT!AU$6,'Carbon Prices'!$D$9:$CP$15,3,FALSE),HLOOKUP(Calc_BAT!AU$6,'Carbon Prices'!$D$9:$CP$15,6,FALSE)),0)","v":0},{"$f":"IFERROR(IF('Data Input - General'!$F$12=\"Yes\",HLOOKUP(Calc_BAT!AV$6,'Carbon Prices'!$D$9:$CP$15,3,FALSE),HLOOKUP(Calc_BAT!AV$6,'Carbon Prices'!$D$9:$CP$15,6,FALSE)),0)","v":0},{"$f":"IFERROR(IF('Data Input - General'!$F$12=\"Yes\",HLOOKUP(Calc_BAT!AW$6,'Carbon Prices'!$D$9:$CP$15,3,FALSE),HLOOKUP(Calc_BAT!AW$6,'Carbon Prices'!$D$9:$CP$15,6,FALSE)),0)","v":0},{"$f":"IFERROR(IF('Data Input - General'!$F$12=\"Yes\",HLOOKUP(Calc_BAT!AX$6,'Carbon Prices'!$D$9:$CP$15,3,FALSE),HLOOKUP(Calc_BAT!AX$6,'Carbon Prices'!$D$9:$CP$15,6,FALSE)),0)","v":0},{"$f":"IFERROR(IF('Data Input - General'!$F$12=\"Yes\",HLOOKUP(Calc_BAT!AY$6,'Carbon Prices'!$D$9:$CP$15,3,FALSE),HLOOKUP(Calc_BAT!AY$6,'Carbon Prices'!$D$9:$CP$15,6,FALSE)),0)","v":0},{"$f":"IFERROR(IF('Data Input - General'!$F$12=\"Yes\",HLOOKUP(Calc_BAT!AZ$6,'Carbon Prices'!$D$9:$CP$15,3,FALSE),HLOOKUP(Calc_BAT!AZ$6,'Carbon Prices'!$D$9:$CP$15,6,FALSE)),0)","v":0},{"$f":"IFERROR(IF('Data Input - General'!$F$12=\"Yes\",HLOOKUP(Calc_BAT!BA$6,'Carbon Prices'!$D$9:$CP$15,3,FALSE),HLOOKUP(Calc_BAT!BA$6,'Carbon Prices'!$D$9:$CP$15,6,FALSE)),0)","v":0},{"$f":"IFERROR(IF('Data Input - General'!$F$12=\"Yes\",HLOOKUP(Calc_BAT!BB$6,'Carbon Prices'!$D$9:$CP$15,3,FALSE),HLOOKUP(Calc_BAT!BB$6,'Carbon Prices'!$D$9:$CP$15,6,FALSE)),0)","v":0},{"$f":"IFERROR(IF('Data Input - General'!$F$12=\"Yes\",HLOOKUP(Calc_BAT!BC$6,'Carbon Prices'!$D$9:$CP$15,3,FALSE),HLOOKUP(Calc_BAT!BC$6,'Carbon Prices'!$D$9:$CP$15,6,FALSE)),0)","v":0},{"$f":"IFERROR(IF('Data Input - General'!$F$12=\"Yes\",HLOOKUP(Calc_BAT!BD$6,'Carbon Prices'!$D$9:$CP$15,3,FALSE),HLOOKUP(Calc_BAT!BD$6,'Carbon Prices'!$D$9:$CP$15,6,FALSE)),0)","v":0},{"$f":"IFERROR(IF('Data Input - General'!$F$12=\"Yes\",HLOOKUP(Calc_BAT!BE$6,'Carbon Prices'!$D$9:$CP$15,3,FALSE),HLOOKUP(Calc_BAT!BE$6,'Carbon Prices'!$D$9:$CP$15,6,FALSE)),0)","v":0},{"$f":"IFERROR(IF('Data Input - General'!$F$12=\"Yes\",HLOOKUP(Calc_BAT!BF$6,'Carbon Prices'!$D$9:$CP$15,3,FALSE),HLOOKUP(Calc_BAT!BF$6,'Carbon Prices'!$D$9:$CP$15,6,FALSE)),0)","v":0},{"$f":"IFERROR(IF('Data Input - General'!$F$12=\"Yes\",HLOOKUP(Calc_BAT!BG$6,'Carbon Prices'!$D$9:$CP$15,3,FALSE),HLOOKUP(Calc_BAT!BG$6,'Carbon Prices'!$D$9:$CP$15,6,FALSE)),0)","v":0},{"$f":"IFERROR(IF('Data Input - General'!$F$12=\"Yes\",HLOOKUP(Calc_BAT!BH$6,'Carbon Prices'!$D$9:$CP$15,3,FALSE),HLOOKUP(Calc_BAT!BH$6,'Carbon Prices'!$D$9:$CP$15,6,FALSE)),0)","v":0},{"$f":"IFERROR(IF('Data Input - General'!$F$12=\"Yes\",HLOOKUP(Calc_BAT!BI$6,'Carbon Prices'!$D$9:$CP$15,3,FALSE),HLOOKUP(Calc_BAT!BI$6,'Carbon Prices'!$D$9:$CP$15,6,FALSE)),0)","v":0},{"$f":"IFERROR(IF('Data Input - General'!$F$12=\"Yes\",HLOOKUP(Calc_BAT!BJ$6,'Carbon Prices'!$D$9:$CP$15,3,FALSE),HLOOKUP(Calc_BAT!BJ$6,'Carbon Prices'!$D$9:$CP$15,6,FALSE)),0)","v":0},{"$f":"IFERROR(IF('Data Input - General'!$F$12=\"Yes\",HLOOKUP(Calc_BAT!BK$6,'Carbon Prices'!$D$9:$CP$15,3,FALSE),HLOOKUP(Calc_BAT!BK$6,'Carbon Prices'!$D$9:$CP$15,6,FALSE)),0)","v":0},{"$f":"IFERROR(IF('Data Input - General'!$F$12=\"Yes\",HLOOKUP(Calc_BAT!BL$6,'Carbon Prices'!$D$9:$CP$15,3,FALSE),HLOOKUP(Calc_BAT!BL$6,'Carbon Prices'!$D$9:$CP$15,6,FALSE)),0)","v":0},{"$f":"IFERROR(IF('Data Input - General'!$F$12=\"Yes\",HLOOKUP(Calc_BAT!BM$6,'Carbon Prices'!$D$9:$CP$15,3,FALSE),HLOOKUP(Calc_BAT!BM$6,'Carbon Prices'!$D$9:$CP$15,6,FALSE)),0)","v":0},{"$f":"IFERROR(IF('Data Input - General'!$F$12=\"Yes\",HLOOKUP(Calc_BAT!BN$6,'Carbon Prices'!$D$9:$CP$15,3,FALSE),HLOOKUP(Calc_BAT!BN$6,'Carbon Prices'!$D$9:$CP$15,6,FALSE)),0)","v":0},{"$f":"IFERROR(IF('Data Input - General'!$F$12=\"Yes\",HLOOKUP(Calc_BAT!BO$6,'Carbon Prices'!$D$9:$CP$15,3,FALSE),HLOOKUP(Calc_BAT!BO$6,'Carbon Prices'!$D$9:$CP$15,6,FALSE)),0)","v":0},{"$f":"IFERROR(IF('Data Input - General'!$F$12=\"Yes\",HLOOKUP(Calc_BAT!BP$6,'Carbon Prices'!$D$9:$CP$15,3,FALSE),HLOOKUP(Calc_BAT!BP$6,'Carbon Prices'!$D$9:$CP$15,6,FALSE)),0)","v":0},{"$f":"IFERROR(IF('Data Input - General'!$F$12=\"Yes\",HLOOKUP(Calc_BAT!BQ$6,'Carbon Prices'!$D$9:$CP$15,3,FALSE),HLOOKUP(Calc_BAT!BQ$6,'Carbon Prices'!$D$9:$CP$15,6,FALSE)),0)","v":0},{"$f":"IFERROR(IF('Data Input - General'!$F$12=\"Yes\",HLOOKUP(Calc_BAT!BR$6,'Carbon Prices'!$D$9:$CP$15,3,FALSE),HLOOKUP(Calc_BAT!BR$6,'Carbon Prices'!$D$9:$CP$15,6,FALSE)),0)","v":0},{"$f":"IFERROR(IF('Data Input - General'!$F$12=\"Yes\",HLOOKUP(Calc_BAT!BS$6,'Carbon Prices'!$D$9:$CP$15,3,FALSE),HLOOKUP(Calc_BAT!BS$6,'Carbon Prices'!$D$9:$CP$15,6,FALSE)),0)","v":0},{"$f":"IFERROR(IF('Data Input - General'!$F$12=\"Yes\",HLOOKUP(Calc_BAT!BT$6,'Carbon Prices'!$D$9:$CP$15,3,FALSE),HLOOKUP(Calc_BAT!BT$6,'Carbon Prices'!$D$9:$CP$15,6,FALSE)),0)","v":0},{"$f":"IFERROR(IF('Data Input - General'!$F$12=\"Yes\",HLOOKUP(Calc_BAT!BU$6,'Carbon Prices'!$D$9:$CP$15,3,FALSE),HLOOKUP(Calc_BAT!BU$6,'Carbon Prices'!$D$9:$CP$15,6,FALSE)),0)","v":0},{"$f":"IFERROR(IF('Data Input - General'!$F$12=\"Yes\",HLOOKUP(Calc_BAT!BV$6,'Carbon Prices'!$D$9:$CP$15,3,FALSE),HLOOKUP(Calc_BAT!BV$6,'Carbon Prices'!$D$9:$CP$15,6,FALSE)),0)","v":0},{"$f":"IFERROR(IF('Data Input - General'!$F$12=\"Yes\",HLOOKUP(Calc_BAT!BW$6,'Carbon Prices'!$D$9:$CP$15,3,FALSE),HLOOKUP(Calc_BAT!BW$6,'Carbon Prices'!$D$9:$CP$15,6,FALSE)),0)","v":0},{"$f":"IFERROR(IF('Data Input - General'!$F$12=\"Yes\",HLOOKUP(Calc_BAT!BX$6,'Carbon Prices'!$D$9:$CP$15,3,FALSE),HLOOKUP(Calc_BAT!BX$6,'Carbon Prices'!$D$9:$CP$15,6,FALSE)),0)","v":0},{"$f":"IFERROR(IF('Data Input - General'!$F$12=\"Yes\",HLOOKUP(Calc_BAT!BY$6,'Carbon Prices'!$D$9:$CP$15,3,FALSE),HLOOKUP(Calc_BAT!BY$6,'Carbon Prices'!$D$9:$CP$15,6,FALSE)),0)","v":0},{"$f":"IFERROR(IF('Data Input - General'!$F$12=\"Yes\",HLOOKUP(Calc_BAT!BZ$6,'Carbon Prices'!$D$9:$CP$15,3,FALSE),HLOOKUP(Calc_BAT!BZ$6,'Carbon Prices'!$D$9:$CP$15,6,FALSE)),0)","v":0},{"$f":"IFERROR(IF('Data Input - General'!$F$12=\"Yes\",HLOOKUP(Calc_BAT!CA$6,'Carbon Prices'!$D$9:$CP$15,3,FALSE),HLOOKUP(Calc_BAT!CA$6,'Carbon Prices'!$D$9:$CP$15,6,FALSE)),0)","v":0},{"$f":"IFERROR(IF('Data Input - General'!$F$12=\"Yes\",HLOOKUP(Calc_BAT!CB$6,'Carbon Prices'!$D$9:$CP$15,3,FALSE),HLOOKUP(Calc_BAT!CB$6,'Carbon Prices'!$D$9:$CP$15,6,FALSE)),0)","v":0},{"$f":"IFERROR(IF('Data Input - General'!$F$12=\"Yes\",HLOOKUP(Calc_BAT!CC$6,'Carbon Prices'!$D$9:$CP$15,3,FALSE),HLOOKUP(Calc_BAT!CC$6,'Carbon Prices'!$D$9:$CP$15,6,FALSE)),0)","v":0},{"$f":"IFERROR(IF('Data Input - General'!$F$12=\"Yes\",HLOOKUP(Calc_BAT!CD$6,'Carbon Prices'!$D$9:$CP$15,3,FALSE),HLOOKUP(Calc_BAT!CD$6,'Carbon Prices'!$D$9:$CP$15,6,FALSE)),0)","v":0},{"$f":"IFERROR(IF('Data Input - General'!$F$12=\"Yes\",HLOOKUP(Calc_BAT!CE$6,'Carbon Prices'!$D$9:$CP$15,3,FALSE),HLOOKUP(Calc_BAT!CE$6,'Carbon Prices'!$D$9:$CP$15,6,FALSE)),0)","v":0},{"$f":"IFERROR(IF('Data Input - General'!$F$12=\"Yes\",HLOOKUP(Calc_BAT!CF$6,'Carbon Prices'!$D$9:$CP$15,3,FALSE),HLOOKUP(Calc_BAT!CF$6,'Carbon Prices'!$D$9:$CP$15,6,FALSE)),0)","v":0},{"$f":"IFERROR(IF('Data Input - General'!$F$12=\"Yes\",HLOOKUP(Calc_BAT!CG$6,'Carbon Prices'!$D$9:$CP$15,3,FALSE),HLOOKUP(Calc_BAT!CG$6,'Carbon Prices'!$D$9:$CP$15,6,FALSE)),0)","v":0},{"$f":"IFERROR(IF('Data Input - General'!$F$12=\"Yes\",HLOOKUP(Calc_BAT!CH$6,'Carbon Prices'!$D$9:$CP$15,3,FALSE),HLOOKUP(Calc_BAT!CH$6,'Carbon Prices'!$D$9:$CP$15,6,FALSE)),0)","v":0},{"$f":"IFERROR(IF('Data Input - General'!$F$12=\"Yes\",HLOOKUP(Calc_BAT!CI$6,'Carbon Prices'!$D$9:$CP$15,3,FALSE),HLOOKUP(Calc_BAT!CI$6,'Carbon Prices'!$D$9:$CP$15,6,FALSE)),0)","v":0},{"$f":"IFERROR(IF('Data Input - General'!$F$12=\"Yes\",HLOOKUP(Calc_BAT!CJ$6,'Carbon Prices'!$D$9:$CP$15,3,FALSE),HLOOKUP(Calc_BAT!CJ$6,'Carbon Prices'!$D$9:$CP$15,6,FALSE)),0)","v":0},{"$f":"IFERROR(IF('Data Input - General'!$F$12=\"Yes\",HLOOKUP(Calc_BAT!CK$6,'Carbon Prices'!$D$9:$CP$15,3,FALSE),HLOOKUP(Calc_BAT!CK$6,'Carbon Prices'!$D$9:$CP$15,6,FALSE)),0)","v":0},{"$f":"IFERROR(IF('Data Input - General'!$F$12=\"Yes\",HLOOKUP(Calc_BAT!CL$6,'Carbon Prices'!$D$9:$CP$15,3,FALSE),HLOOKUP(Calc_BAT!CL$6,'Carbon Prices'!$D$9:$CP$15,6,FALSE)),0)","v":0},{"$f":"IFERROR(IF('Data Input - General'!$F$12=\"Yes\",HLOOKUP(Calc_BAT!CM$6,'Carbon Prices'!$D$9:$CP$15,3,FALSE),HLOOKUP(Calc_BAT!CM$6,'Carbon Prices'!$D$9:$CP$15,6,FALSE)),0)","v":0},{"$f":"IFERROR(IF('Data Input - General'!$F$12=\"Yes\",HLOOKUP(Calc_BAT!CN$6,'Carbon Prices'!$D$9:$CP$15,3,FALSE),HLOOKUP(Calc_BAT!CN$6,'Carbon Prices'!$D$9:$CP$15,6,FALSE)),0)","v":0},{"$f":"IFERROR(IF('Data Input - General'!$F$12=\"Yes\",HLOOKUP(Calc_BAT!CO$6,'Carbon Prices'!$D$9:$CP$15,3,FALSE),HLOOKUP(Calc_BAT!CO$6,'Carbon Prices'!$D$9:$CP$15,6,FALSE)),0)","v":0},{"$f":"IFERROR(IF('Data Input - General'!$F$12=\"Yes\",HLOOKUP(Calc_BAT!CP$6,'Carbon Prices'!$D$9:$CP$15,3,FALSE),HLOOKUP(Calc_BAT!CP$6,'Carbon Prices'!$D$9:$CP$15,6,FALSE)),0)","v":0},{"$f":"IFERROR(IF('Data Input - General'!$F$12=\"Yes\",HLOOKUP(Calc_BAT!CQ$6,'Carbon Prices'!$D$9:$CP$15,3,FALSE),HLOOKUP(Calc_BAT!CQ$6,'Carbon Prices'!$D$9:$CP$15,6,FALSE)),0)","v":0},{"$f":"IFERROR(IF('Data Input - General'!$F$12=\"Yes\",HLOOKUP(Calc_BAT!CR$6,'Carbon Prices'!$D$9:$CP$15,3,FALSE),HLOOKUP(Calc_BAT!CR$6,'Carbon Prices'!$D$9:$CP$15,6,FALSE)),0)","v":0},{"$f":"IFERROR(IF('Data Input - General'!$F$12=\"Yes\",HLOOKUP(Calc_BAT!CS$6,'Carbon Prices'!$D$9:$CP$15,3,FALSE),HLOOKUP(Calc_BAT!CS$6,'Carbon Prices'!$D$9:$CP$15,6,FALSE)),0)","v":0},{"$f":"IFERROR(IF('Data Input - General'!$F$12=\"Yes\",HLOOKUP(Calc_BAT!CT$6,'Carbon Prices'!$D$9:$CP$15,3,FALSE),HLOOKUP(Calc_BAT!CT$6,'Carbon Prices'!$D$9:$CP$15,6,FALSE)),0)","v":0},{"$f":"IFERROR(IF('Data Input - General'!$F$12=\"Yes\",HLOOKUP(Calc_BAT!CU$6,'Carbon Prices'!$D$9:$CP$15,3,FALSE),HLOOKUP(Calc_BAT!CU$6,'Carbon Prices'!$D$9:$CP$15,6,FALSE)),0)","v":0},{"$f":"IFERROR(IF('Data Input - General'!$F$12=\"Yes\",HLOOKUP(Calc_BAT!CV$6,'Carbon Prices'!$D$9:$CP$15,3,FALSE),HLOOKUP(Calc_BAT!CV$6,'Carbon Prices'!$D$9:$CP$15,6,FALSE)),0)","v":0},{"$f":"IFERROR(IF('Data Input - General'!$F$12=\"Yes\",HLOOKUP(Calc_BAT!CW$6,'Carbon Prices'!$D$9:$CP$15,3,FALSE),HLOOKUP(Calc_BAT!CW$6,'Carbon Prices'!$D$9:$CP$15,6,FALSE)),0)","v":0},{"$f":"IFERROR(IF('Data Input - General'!$F$12=\"Yes\",HLOOKUP(Calc_BAT!CX$6,'Carbon Prices'!$D$9:$CP$15,3,FALSE),HLOOKUP(Calc_BAT!CX$6,'Carbon Prices'!$D$9:$CP$15,6,FALSE)),0)","v":0},{"$f":"IFERROR(IF('Data Input - General'!$F$12=\"Yes\",HLOOKUP(Calc_BAT!CY$6,'Carbon Prices'!$D$9:$CP$15,3,FALSE),HLOOKUP(Calc_BAT!CY$6,'Carbon Prices'!$D$9:$CP$15,6,FALSE)),0)","v":0}]
[null,"Total value","£000's",{"$f":"IFERROR(D75*D76,0)","v":307116.39073072112},{"$f":"IFERROR(E75*E76,0)","v":318786.81357848854},{"$f":"IFERROR(F75*F76,0)","v":666421.50054753432},{"$f":"IFERROR(G75*G76,0)","v":1014056.1875165801},1361690.8744856259,1709325.5614546719,2056960.2484237177,2404594.9353927635,0,0,0,0,0,0,0,0,0,0,0,0,0,0,0,0,0,0,0,0,0,0,0,0,0,0,0,0,0,0,0,0,0,0,0,0,0,0,0,0,0,0,0,0,0,0,0,0,0,0,0,0,0,0,0,0,0,0,0,{"$f":"IFERROR(BS75*BS76,0)","v":0},0,0,0,0,0,0,0,0,0,0,0,0,0,0,0,0,0,0,0,0,0,0,0,0,0,0,0,0,0,0,0,0]
[]
[null,"Greenhouse gas emissions (associated with fuel use)"]
[null,"Elec","tCO2e",{"$f":"'Data Input - BAT'!H120","v":1147.9102063708638},{"$f":"'Data Input - BAT'!I120","v":1022.7509038254832},{"$f":"'Data Input - BAT'!J120","v":900.70523018473978},{"$f":"'Data Input - BAT'!K120","v":829.51171353866823},{"$f":"'Data Input - BAT'!L120","v":706.29239328079632},{"$f":"'Data Input - BAT'!M120","v":741.68258779755536},{"$f":"'Data Input - BAT'!N120","v":695.10356862610229},{"$f":"'Data Input - BAT'!O120","v":617.9056138546847},{"$f":"'Data Input - BAT'!P120","v":0},{"$f":"'Data Input - BAT'!Q120","v":0},{"$f":"'Data Input - BAT'!R120","v":0},{"$f":"'Data Input - BAT'!S120","v":0},{"$f":"'Data Input - BAT'!T120","v":0},{"$f":"'Data Input - BAT'!U120","v":0},{"$f":"'Data Input - BAT'!V120","v":0},{"$f":"'Data Input - BAT'!W120","v":0},{"$f":"'Data Input - BAT'!X120","v":0},{"$f":"'Data Input - BAT'!Y120","v":0},{"$f":"'Data Input - BAT'!Z120","v":0},{"$f":"'Data Input - BAT'!AA120","v":0},{"$f":"'Data Input - BAT'!AB120","v":0},{"$f":"'Data Input - BAT'!AC120","v":0},{"$f":"'Data Input - BAT'!AD120","v":0},{"$f":"'Data Input - BAT'!AE120","v":0},{"$f":"'Data Input - BAT'!AF120","v":0},{"$f":"'Data Input - BAT'!AG120","v":0},{"$f":"'Data Input - BAT'!AH120","v":0},{"$f":"'Data Input - BAT'!AI120","v":0},{"$f":"'Data Input - BAT'!AJ120","v":0},{"$f":"'Data Input - BAT'!AK120","v":0},{"$f":"'Data Input - BAT'!AL120","v":0},{"$f":"'Data Input - BAT'!AM120","v":0},{"$f":"'Data Input - BAT'!AN120","v":0},{"$f":"'Data Input - BAT'!AO120","v":0},{"$f":"'Data Input - BAT'!AP120","v":0},{"$f":"'Data Input - BAT'!AQ120","v":0},{"$f":"'Data Input - BAT'!AR120","v":0},{"$f":"'Data Input - BAT'!AS120","v":0},{"$f":"'Data Input - BAT'!AT120","v":0},{"$f":"'Data Input - BAT'!AU120","v":0},{"$f":"'Data Input - BAT'!AV120","v":0},{"$f":"'Data Input - BAT'!AW120","v":0},{"$f":"'Data Input - BAT'!AX120","v":0},{"$f":"'Data Input - BAT'!AY120","v":0},{"$f":"'Data Input - BAT'!AZ120","v":0},{"$f":"'Data Input - BAT'!BA120","v":0},{"$f":"'Data Input - BAT'!BB120","v":0},{"$f":"'Data Input - BAT'!BC120","v":0},{"$f":"'Data Input - BAT'!BD120","v":0},{"$f":"'Data Input - BAT'!BE120","v":0},{"$f":"'Data Input - BAT'!BF120","v":0},{"$f":"'Data Input - BAT'!BG120","v":0},{"$f":"'Data Input - BAT'!BH120","v":0},{"$f":"'Data Input - BAT'!BI120","v":0},{"$f":"'Data Input - BAT'!BJ120","v":0},{"$f":"'Data Input - BAT'!BK120","v":0},{"$f":"'Data Input - BAT'!BL120","v":0},{"$f":"'Data Input - BAT'!BM120","v":0},{"$f":"'Data Input - BAT'!BN120","v":0},{"$f":"'Data Input - BAT'!BO120","v":0},{"$f":"'Data Input - BAT'!BP120","v":0},{"$f":"'Data Input - BAT'!BQ120","v":0},{"$f":"'Data Input - BAT'!BR120","v":0},{"$f":"'Data Input - BAT'!BS120","v":0},{"$f":"'Data Input - BAT'!BT120","v":0},{"$f":"'Data Input - BAT'!BU120","v":0},{"$f":"'Data Input - BAT'!BV120","v":0},{"$f":"'Data Input - BAT'!BW120","v":0},{"$f":"'Data Input - BAT'!BX120","v":0},{"$f":"'Data Input - BAT'!BY120","v":0},{"$f":"'Data Input - BAT'!BZ120","v":0},{"$f":"'Data Input - BAT'!CA120","v":0},{"$f":"'Data Input - BAT'!CB120","v":0},{"$f":"'Data Input - BAT'!CC120","v":0},{"$f":"'Data Input - BAT'!CD120","v":0},{"$f":"'Data Input - BAT'!CE120","v":0},{"$f":"'Data Input - BAT'!CF120","v":0},{"$f":"'Data Input - BAT'!CG120","v":0},{"$f":"'Data Input - BAT'!CH120","v":0},{"$f":"'Data Input - BAT'!CI120","v":0},{"$f":"'Data Input - BAT'!CJ120","v":0},{"$f":"'Data Input - BAT'!CK120","v":0},{"$f":"'Data Input - BAT'!CL120","v":0},{"$f":"'Data Input - BAT'!CM120","v":0},{"$f":"'Data Input - BAT'!CN120","v":0},{"$f":"'Data Input - BAT'!CO120","v":0},{"$f":"'Data Input - BAT'!CP120","v":0},{"$f":"'Data Input - BAT'!CQ120","v":0},{"$f":"'Data Input - BAT'!CR120","v":0},{"$f":"'Data Input - BAT'!CS120","v":0},{"$f":"'Data Input - BAT'!CT120","v":0},{"$f":"'Data Input - BAT'!CU120","v":0},{"$f":"'Data Input - BAT'!CV120","v":0},{"$f":"'Data Input - BAT'!CW120","v":0},{"$f":"'Data Input - BAT'!CX120","v":0},{"$f":"'Data Input - BAT'!CY120","v":0},{"$f":"'Data Input - BAT'!CZ120","v":0},{"$f":"'Data Input - BAT'!DA120","v":0},{"$f":"'Data Input - BAT'!DB120","v":0},{"$f":"'Data Input - BAT'!DC120","v":0}]
[null,"Non-elec","tCO2e",{"$f":"'Data Input - BAT'!H128-'Data Input - BAT'!H120","v":40496.827401879185},{"$f":"'Data Input - BAT'!I128-'Data Input - BAT'!I120","v":40487.482271193861},{"$f":"'Data Input - BAT'!J128-'Data Input - BAT'!J120","v":40487.482271193861},{"$f":"'Data Input - BAT'!K128-'Data Input - BAT'!K120","v":40487.482271193861},{"$f":"'Data Input - BAT'!L128-'Data Input - BAT'!L120","v":40487.482271193861},{"$f":"'Data Input - BAT'!M128-'Data Input - BAT'!M120","v":40487.482271193861},{"$f":"'Data Input - BAT'!N128-'Data Input - BAT'!N120","v":40487.482271193861},{"$f":"'Data Input - BAT'!O128-'Data Input - BAT'!O120","v":40487.482271193861},{"$f":"'Data Input - BAT'!P128-'Data Input - BAT'!P120","v":0},{"$f":"'Data Input - BAT'!Q128-'Data Input - BAT'!Q120","v":0},{"$f":"'Data Input - BAT'!R128-'Data Input - BAT'!R120","v":0},{"$f":"'Data Input - BAT'!S128-'Data Input - BAT'!S120","v":0},{"$f":"'Data Input - BAT'!T128-'Data Input - BAT'!T120","v":0},{"$f":"'Data Input - BAT'!U128-'Data Input - BAT'!U120","v":0},{"$f":"'Data Input - BAT'!V128-'Data Input - BAT'!V120","v":0},{"$f":"'Data Input - BAT'!W128-'Data Input - BAT'!W120","v":0},{"$f":"'Data Input - BAT'!X128-'Data Input - BAT'!X120","v":0},{"$f":"'Data Input - BAT'!Y128-'Data Input - BAT'!Y120","v":0},{"$f":"'Data Input - BAT'!Z128-'Data Input - BAT'!Z120","v":0},{"$f":"'Data Input - BAT'!AA128-'Data Input - BAT'!AA120","v":0},{"$f":"'Data Input - BAT'!AB128-'Data Input - BAT'!AB120","v":0},{"$f":"'Data Input - BAT'!AC128-'Data Input - BAT'!AC120","v":0},{"$f":"'Data Input - BAT'!AD128-'Data Input - BAT'!AD120","v":0},{"$f":"'Data Input - BAT'!AE128-'Data Input - BAT'!AE120","v":0},{"$f":"'Data Input - BAT'!AF128-'Data Input - BAT'!AF120","v":0},{"$f":"'Data Input - BAT'!AG128-'Data Input - BAT'!AG120","v":0},{"$f":"'Data Input - BAT'!AH128-'Data Input - BAT'!AH120","v":0},{"$f":"'Data Input - BAT'!AI128-'Data Input - BAT'!AI120","v":0},{"$f":"'Data Input - BAT'!AJ128-'Data Input - BAT'!AJ120","v":0},{"$f":"'Data Input - BAT'!AK128-'Data Input - BAT'!AK120","v":0},{"$f":"'Data Input - BAT'!AL128-'Data Input - BAT'!AL120","v":0},{"$f":"'Data Input - BAT'!AM128-'Data Input - BAT'!AM120","v":0},{"$f":"'Data Input - BAT'!AN128-'Data Input - BAT'!AN120","v":0},{"$f":"'Data Input - BAT'!AO128-'Data Input - BAT'!AO120","v":0},{"$f":"'Data Input - BAT'!AP128-'Data Input - BAT'!AP120","v":0},{"$f":"'Data Input - BAT'!AQ128-'Data Input - BAT'!AQ120","v":0},{"$f":"'Data Input - BAT'!AR128-'Data Input - BAT'!AR120","v":0},{"$f":"'Data Input - BAT'!AS128-'Data Input - BAT'!AS120","v":0},{"$f":"'Data Input - BAT'!AT128-'Data Input - BAT'!AT120","v":0},{"$f":"'Data Input - BAT'!AU128-'Data Input - BAT'!AU120","v":0},{"$f":"'Data Input - BAT'!AV128-'Data Input - BAT'!AV120","v":0},{"$f":"'Data Input - BAT'!AW128-'Data Input - BAT'!AW120","v":0},{"$f":"'Data Input - BAT'!AX128-'Data Input - BAT'!AX120","v":0},{"$f":"'Data Input - BAT'!AY128-'Data Input - BAT'!AY120","v":0},{"$f":"'Data Input - BAT'!AZ128-'Data Input - BAT'!AZ120","v":0},{"$f":"'Data Input - BAT'!BA128-'Data Input - BAT'!BA120","v":0},{"$f":"'Data Input - BAT'!BB128-'Data Input - BAT'!BB120","v":0},{"$f":"'Data Input - BAT'!BC128-'Data Input - BAT'!BC120","v":0},{"$f":"'Data Input - BAT'!BD128-'Data Input - BAT'!BD120","v":0},{"$f":"'Data Input - BAT'!BE128-'Data Input - BAT'!BE120","v":0},{"$f":"'Data Input - BAT'!BF128-'Data Input - BAT'!BF120","v":0},{"$f":"'Data Input - BAT'!BG128-'Data Input - BAT'!BG120","v":0},{"$f":"'Data Input - BAT'!BH128-'Data Input - BAT'!BH120","v":0},{"$f":"'Data Input - BAT'!BI128-'Data Input - BAT'!BI120","v":0},{"$f":"'Data Input - BAT'!BJ128-'Data Input - BAT'!BJ120","v":0},{"$f":"'Data Input - BAT'!BK128-'Data Input - BAT'!BK120","v":0},{"$f":"'Data Input - BAT'!BL128-'Data Input - BAT'!BL120","v":0},{"$f":"'Data Input - BAT'!BM128-'Data Input - BAT'!BM120","v":0},{"$f":"'Data Input - BAT'!BN128-'Data Input - BAT'!BN120","v":0},{"$f":"'Data Input - BAT'!BO128-'Data Input - BAT'!BO120","v":0},{"$f":"'Data Input - BAT'!BP128-'Data Input - BAT'!BP120","v":0},{"$f":"'Data Input - BAT'!BQ128-'Data Input - BAT'!BQ120","v":0},{"$f":"'Data Input - BAT'!BR128-'Data Input - BAT'!BR120","v":0},{"$f":"'Data Input - BAT'!BS128-'Data Input - BAT'!BS120","v":0},{"$f":"'Data Input - BAT'!BT128-'Data Input - BAT'!BT120","v":0},{"$f":"'Data Input - BAT'!BU128-'Data Input - BAT'!BU120","v":0},{"$f":"'Data Input - BAT'!BV128-'Data Input - BAT'!BV120","v":0},{"$f":"'Data Input - BAT'!BW128-'Data Input - BAT'!BW120","v":0},{"$f":"'Data Input - BAT'!BX128-'Data Input - BAT'!BX120","v":0},{"$f":"'Data Input - BAT'!BY128-'Data Input - BAT'!BY120","v":0},{"$f":"'Data Input - BAT'!BZ128-'Data Input - BAT'!BZ120","v":0},{"$f":"'Data Input - BAT'!CA128-'Data Input - BAT'!CA120","v":0},{"$f":"'Data Input - BAT'!CB128-'Data Input - BAT'!CB120","v":0},{"$f":"'Data Input - BAT'!CC128-'Data Input - BAT'!CC120","v":0},{"$f":"'Data Input - BAT'!CD128-'Data Input - BAT'!CD120","v":0},{"$f":"'Data Input - BAT'!CE128-'Data Input - BAT'!CE120","v":0},{"$f":"'Data Input - BAT'!CF128-'Data Input - BAT'!CF120","v":0},{"$f":"'Data Input - BAT'!CG128-'Data Input - BAT'!CG120","v":0},{"$f":"'Data Input - BAT'!CH128-'Data Input - BAT'!CH120","v":0},{"$f":"'Data Input - BAT'!CI128-'Data Input - BAT'!CI120","v":0},{"$f":"'Data Input - BAT'!CJ128-'Data Input - BAT'!CJ120","v":0},{"$f":"'Data Input - BAT'!CK128-'Data Input - BAT'!CK120","v":0},{"$f":"'Data Input - BAT'!CL128-'Data Input - BAT'!CL120","v":0},{"$f":"'Data Input - BAT'!CM128-'Data Input - BAT'!CM120","v":0},{"$f":"'Data Input - BAT'!CN128-'Data Input - BAT'!CN120","v":0},{"$f":"'Data Input - BAT'!CO128-'Data Input - BAT'!CO120","v":0},{"$f":"'Data Input - BAT'!CP128-'Data Input - BAT'!CP120","v":0},{"$f":"'Data Input - BAT'!CQ128-'Data Input - BAT'!CQ120","v":0},{"$f":"'Data Input - BAT'!CR128-'Data Input - BAT'!CR120","v":0},{"$f":"'Data Input - BAT'!CS128-'Data Input - BAT'!CS120","v":0},{"$f":"'Data Input - BAT'!CT128-'Data Input - BAT'!CT120","v":0},{"$f":"'Data Input - BAT'!CU128-'Data Input - BAT'!CU120","v":0},{"$f":"'Data Input - BAT'!CV128-'Data Input - BAT'!CV120","v":0},{"$f":"'Data Input - BAT'!CW128-'Data Input - BAT'!CW120","v":0},{"$f":"'Data Input - BAT'!CX128-'Data Input - BAT'!CX120","v":0},{"$f":"'Data Input - BAT'!CY128-'Data Input - BAT'!CY120","v":0},{"$f":"'Data Input - BAT'!CZ128-'Data Input - BAT'!CZ120","v":0},{"$f":"'Data Input - BAT'!DA128-'Data Input - BAT'!DA120","v":0},{"$f":"'Data Input - BAT'!DB128-'Data Input - BAT'!DB120","v":0},{"$f":"'Data Input - BAT'!DC128-'Data Input - BAT'!DC120","v":0}]
[null,"Value elec","£000's",{"$f":"HLOOKUP(Calc_BAT!D$6,'Carbon Prices'!$D$9:$CP$15,3,FALSE)","v":6.8248086829049139},{"$f":"HLOOKUP(Calc_BAT!E$6,'Carbon Prices'!$D$9:$CP$15,3,FALSE)","v":7.0841514128553005},{"$f":"HLOOKUP(Calc_BAT!F$6,'Carbon Prices'!$D$9:$CP$15,3,FALSE)","v":14.809366678834097},{"$f":"HLOOKUP(Calc_BAT!G$6,'Carbon Prices'!$D$9:$CP$15,3,FALSE)","v":22.534581944812892},{"$f":"HLOOKUP(Calc_BAT!H$6,'Carbon Prices'!$D$9:$CP$15,3,FALSE)","v":30.259797210791689},{"$f":"HLOOKUP(Calc_BAT!I$6,'Carbon Prices'!$D$9:$CP$15,3,FALSE)","v":37.985012476770486},{"$f":"HLOOKUP(Calc_BAT!J$6,'Carbon Prices'!$D$9:$CP$15,3,FALSE)","v":45.710227742749282},{"$f":"HLOOKUP(Calc_BAT!K$6,'Carbon Prices'!$D$9:$CP$15,3,FALSE)","v":53.435443008728079},{"$f":"HLOOKUP(Calc_BAT!L$6,'Carbon Prices'!$D$9:$CP$15,3,FALSE)","v":61.160658274706876},{"$f":"HLOOKUP(Calc_BAT!M$6,'Carbon Prices'!$D$9:$CP$15,3,FALSE)","v":68.885873540685665},{"$f":"HLOOKUP(Calc_BAT!N$6,'Carbon Prices'!$D$9:$CP$15,3,FALSE)","v":76.611088806664469},{"$f":"HLOOKUP(Calc_BAT!O$6,'Carbon Prices'!$D$9:$CP$15,3,FALSE)","v":84.336304072643259},{"$f":"HLOOKUP(Calc_BAT!P$6,'Carbon Prices'!$D$9:$CP$15,3,FALSE)","v":92.167532307960172},{"$f":"HLOOKUP(Calc_BAT!Q$6,'Carbon Prices'!$D$9:$CP$15,3,FALSE)","v":99.998760543277044},{"$f":"HLOOKUP(Calc_BAT!R$6,'Carbon Prices'!$D$9:$CP$15,3,FALSE)","v":107.82998877859391},{"$f":"HLOOKUP(Calc_BAT!S$6,'Carbon Prices'!$D$9:$CP$15,3,FALSE)","v":115.6612170139108},{"$f":"HLOOKUP(Calc_BAT!T$6,'Carbon Prices'!$D$9:$CP$15,3,FALSE)","v":123.49244524922767},{"$f":"HLOOKUP(Calc_BAT!U$6,'Carbon Prices'!$D$9:$CP$15,3,FALSE)","v":131.32367348454454},{"$f":"HLOOKUP(Calc_BAT!V$6,'Carbon Prices'!$D$9:$CP$15,3,FALSE)","v":139.15490171986141},{"$f":"HLOOKUP(Calc_BAT!W$6,'Carbon Prices'!$D$9:$CP$15,3,FALSE)","v":146.98612995517828},{"$f":"HLOOKUP(Calc_BAT!X$6,'Carbon Prices'!$D$9:$CP$15,3,FALSE)","v":154.81735819049521},{"$f":"HLOOKUP(Calc_BAT!Y$6,'Carbon Prices'!$D$9:$CP$15,3,FALSE)","v":162.64858642581208},{"$f":"HLOOKUP(Calc_BAT!Z$6,'Carbon Prices'!$D$9:$CP$15,3,FALSE)","v":170.47981466112896},{"$f":"HLOOKUP(Calc_BAT!AA$6,'Carbon Prices'!$D$9:$CP$15,3,FALSE)","v":178.31104289644583},{"$f":"HLOOKUP(Calc_BAT!AB$6,'Carbon Prices'!$D$9:$CP$15,3,FALSE)","v":186.1422711317627},{"$f":"HLOOKUP(Calc_BAT!AC$6,'Carbon Prices'!$D$9:$CP$15,3,FALSE)","v":193.97349936707957},{"$f":"HLOOKUP(Calc_BAT!AD$6,'Carbon Prices'!$D$9:$CP$15,3,FALSE)","v":201.80472760239644},{"$f":"HLOOKUP(Calc_BAT!AE$6,'Carbon Prices'!$D$9:$CP$15,3,FALSE)","v":209.63595583771331},{"$f":"HLOOKUP(Calc_BAT!AF$6,'Carbon Prices'!$D$9:$CP$15,3,FALSE)","v":217.46718407303021},{"$f":"HLOOKUP(Calc_BAT!AG$6,'Carbon Prices'!$D$9:$CP$15,3,FALSE)","v":225.29841230834708},{"$f":"HLOOKUP(Calc_BAT!AH$6,'Carbon Prices'!$D$9:$CP$15,3,FALSE)","v":233.12964054366395},{"$f":"HLOOKUP(Calc_BAT!AI$6,'Carbon Prices'!$D$9:$CP$15,3,FALSE)","v":{"$error":"#N/A"}},{"$f":"HLOOKUP(Calc_BAT!AJ$6,'Carbon Prices'!$D$9:$CP$15,3,FALSE)","v":{"$error":"#N/A"}},{"$f":"HLOOKUP(Calc_BAT!AK$6,'Carbon Prices'!$D$9:$CP$15,3,FALSE)","v":{"$error":"#N/A"}},{"$f":"HLOOKUP(Calc_BAT!AL$6,'Carbon Prices'!$D$9:$CP$15,3,FALSE)","v":{"$error":"#N/A"}},{"$f":"HLOOKUP(Calc_BAT!AM$6,'Carbon Prices'!$D$9:$CP$15,3,FALSE)","v":{"$error":"#N/A"}},{"$f":"HLOOKUP(Calc_BAT!AN$6,'Carbon Prices'!$D$9:$CP$15,3,FALSE)","v":{"$error":"#N/A"}},{"$f":"HLOOKUP(Calc_BAT!AO$6,'Carbon Prices'!$D$9:$CP$15,3,FALSE)","v":{"$error":"#N/A"}},{"$f":"HLOOKUP(Calc_BAT!AP$6,'Carbon Prices'!$D$9:$CP$15,3,FALSE)","v":{"$error":"#N/A"}},{"$f":"HLOOKUP(Calc_BAT!AQ$6,'Carbon Prices'!$D$9:$CP$15,3,FALSE)","v":{"$error":"#N/A"}},{"$f":"HLOOKUP(Calc_BAT!AR$6,'Carbon Prices'!$D$9:$CP$15,3,FALSE)","v":{"$error":"#N/A"}},{"$f":"HLOOKUP(Calc_BAT!AS$6,'Carbon Prices'!$D$9:$CP$15,3,FALSE)","v":{"$error":"#N/A"}},{"$f":"HLOOKUP(Calc_BAT!AT$6,'Carbon Prices'!$D$9:$CP$15,3,FALSE)","v":{"$error":"#N/A"}},{"$f":"HLOOKUP(Calc_BAT!AU$6,'Carbon Prices'!$D$9:$CP$15,3,FALSE)","v":{"$error":"#N/A"}},{"$f":"HLOOKUP(Calc_BAT!AV$6,'Carbon Prices'!$D$9:$CP$15,3,FALSE)","v":{"$error":"#N/A"}},{"$f":"HLOOKUP(Calc_BAT!AW$6,'Carbon Prices'!$D$9:$CP$15,3,FALSE)","v":{"$error":"#N/A"}},{"$f":"HLOOKUP(Calc_BAT!AX$6,'Carbon Prices'!$D$9:$CP$15,3,FALSE)","v":{"$error":"#N/A"}},{"$f":"HLOOKUP(Calc_BAT!AY$6,'Carbon Prices'!$D$9:$CP$15,3,FALSE)","v":{"$error":"#N/A"}},{"$f":"HLOOKUP(Calc_BAT!AZ$6,'Carbon Prices'!$D$9:$CP$15,3,FALSE)","v":{"$error":"#N/A"}},{"$f":"HLOOKUP(Calc_BAT!BA$6,'Carbon Prices'!$D$9:$CP$15,3,FALSE)","v":{"$error":"#N/A"}},{"$f":"HLOOKUP(Calc_BAT!BB$6,'Carbon Prices'!$D$9:$CP$15,3,FALSE)","v":{"$error":"#N/A"}},{"$f":"HLOOKUP(Calc_BAT!BC$6,'Carbon Prices'!$D$9:$CP$15,3,FALSE)","v":{"$error":"#N/A"}},{"$f":"HLOOKUP(Calc_BAT!BD$6,'Carbon Prices'!$D$9:$CP$15,3,FALSE)","v":{"$error":"#N/A"}},{"$f":"HLOOKUP(Calc_BAT!BE$6,'Carbon Prices'!$D$9:$CP$15,3,FALSE)","v":{"$error":"#N/A"}},{"$f":"HLOOKUP(Calc_BAT!BF$6,'Carbon Prices'!$D$9:$CP$15,3,FALSE)","v":{"$error":"#N/A"}},{"$f":"HLOOKUP(Calc_BAT!BG$6,'Carbon Prices'!$D$9:$CP$15,3,FALSE)","v":{"$error":"#N/A"}},{"$f":"HLOOKUP(Calc_BAT!BH$6,'Carbon Prices'!$D$9:$CP$15,3,FALSE)","v":{"$error":"#N/A"}},{"$f":"HLOOKUP(Calc_BAT!BI$6,'Carbon Prices'!$D$9:$CP$15,3,FALSE)","v":{"$error":"#N/A"}},{"$f":"HLOOKUP(Calc_BAT!BJ$6,'Carbon Prices'!$D$9:$CP$15,3,FALSE)","v":{"$error":"#N/A"}},{"$f":"HLOOKUP(Calc_BAT!BK$6,'Carbon Prices'!$D$9:$CP$15,3,FALSE)","v":{"$error":"#N/A"}},{"$f":"HLOOKUP(Calc_BAT!BL$6,'Carbon Prices'!$D$9:$CP$15,3,FALSE)","v":{"$error":"#N/A"}},{"$f":"HLOOKUP(Calc_BAT!BM$6,'Carbon Prices'!$D$9:$CP$15,3,FALSE)","v":{"$error":"#N/A"}},{"$f":"HLOOKUP(Calc_BAT!BN$6,'Carbon Prices'!$D$9:$CP$15,3,FALSE)","v":{"$error":"#N/A"}},{"$f":"HLOOKUP(Calc_BAT!BO$6,'Carbon Prices'!$D$9:$CP$15,3,FALSE)","v":{"$error":"#N/A"}},{"$f":"HLOOKUP(Calc_BAT!BP$6,'Carbon Prices'!$D$9:$CP$15,3,FALSE)","v":{"$error":"#N/A"}},{"$f":"HLOOKUP(Calc_BAT!BQ$6,'Carbon Prices'!$D$9:$CP$15,3,FALSE)","v":{"$error":"#N/A"}},{"$f":"HLOOKUP(Calc_BAT!BR$6,'Carbon Prices'!$D$9:$CP$15,3,FALSE)","v":{"$error":"#N/A"}},{"$f":"HLOOKUP(Calc_BAT!BS$6,'Carbon Prices'!$D$9:$CP$15,3,FALSE)","v":{"$error":"#N/A"}},{"$f":"HLOOKUP(Calc_BAT!BT$6,'Carbon Prices'!$D$9:$CP$15,3,FALSE)","v":{"$error":"#N/A"}},{"$f":"HLOOKUP(Calc_BAT!BU$6,'Carbon Prices'!$D$9:$CP$15,3,FALSE)","v":{"$error":"#N/A"}},{"$f":"HLOOKUP(Calc_BAT!BV$6,'Carbon Prices'!$D$9:$CP$15,3,FALSE)","v":{"$error":"#N/A"}},{"$f":"HLOOKUP(Calc_BAT!BW$6,'Carbon Prices'!$D$9:$CP$15,3,FALSE)","v":{"$error":"#N/A"}},{"$f":"HLOOKUP(Calc_BAT!BX$6,'Carbon Prices'!$D$9:$CP$15,3,FALSE)","v":{"$error":"#N/A"}},{"$f":"HLOOKUP(Calc_BAT!BY$6,'Carbon Prices'!$D$9:$CP$15,3,FALSE)","v":{"$error":"#N/A"}},{"$f":"HLOOKUP(Calc_BAT!BZ$6,'Carbon Prices'!$D$9:$CP$15,3,FALSE)","v":{"$error":"#N/A"}},{"$f":"HLOOKUP(Calc_BAT!CA$6,'Carbon Prices'!$D$9:$CP$15,3,FALSE)","v":{"$error":"#N/A"}},{"$f":"HLOOKUP(Calc_BAT!CB$6,'Carbon Prices'!$D$9:$CP$15,3,FALSE)","v":{"$error":"#N/A"}},{"$f":"HLOOKUP(Calc_BAT!CC$6,'Carbon Prices'!$D$9:$CP$15,3,FALSE)","v":{"$error":"#N/A"}},{"$f":"HLOOKUP(Calc_BAT!CD$6,'Carbon Prices'!$D$9:$CP$15,3,FALSE)","v":{"$error":"#N/A"}},{"$f":"HLOOKUP(Calc_BAT!CE$6,'Carbon Prices'!$D$9:$CP$15,3,FALSE)","v":{"$error":"#N/A"}},{"$f":"HLOOKUP(Calc_BAT!CF$6,'Carbon Prices'!$D$9:$CP$15,3,FALSE)","v":{"$error":"#N/A"}},{"$f":"HLOOKUP(Calc_BAT!CG$6,'Carbon Prices'!$D$9:$CP$15,3,FALSE)","v":{"$error":"#N/A"}},{"$f":"HLOOKUP(Calc_BAT!CH$6,'Carbon Prices'!$D$9:$CP$15,3,FALSE)","v":{"$error":"#N/A"}},{"$f":"HLOOKUP(Calc_BAT!CI$6,'Carbon Prices'!$D$9:$CP$15,3,FALSE)","v":{"$error":"#N/A"}},{"$f":"HLOOKUP(Calc_BAT!CJ$6,'Carbon Prices'!$D$9:$CP$15,3,FALSE)","v":{"$error":"#N/A"}},{"$f":"HLOOKUP(Calc_BAT!CK$6,'Carbon Prices'!$D$9:$CP$15,3,FALSE)","v":{"$error":"#N/A"}},{"$f":"HLOOKUP(Calc_BAT!CL$6,'Carbon Prices'!$D$9:$CP$15,3,FALSE)","v":{"$error":"#N/A"}},{"$f":"HLOOKUP(Calc_BAT!CM$6,'Carbon Prices'!$D$9:$CP$15,3,FALSE)","v":{"$error":"#N/A"}},{"$f":"HLOOKUP(Calc_BAT!CN$6,'Carbon Prices'!$D$9:$CP$15,3,FALSE)","v":{"$error":"#N/A"}},{"$f":"HLOOKUP(Calc_BAT!CO$6,'Carbon Prices'!$D$9:$CP$15,3,FALSE)","v":{"$error":"#N/A"}},{"$f":"HLOOKUP(Calc_BAT!CP$6,'Carbon Prices'!$D$9:$CP$15,3,FALSE)","v":{"$error":"#N/A"}},{"$f":"HLOOKUP(Calc_BAT!CQ$6,'Carbon Prices'!$D$9:$CP$15,3,FALSE)","v":{"$error":"#N/A"}},{"$f":"HLOOKUP(Calc_BAT!CR$6,'Carbon Prices'!$D$9:$CP$15,3,FALSE)","v":{"$error":"#N/A"}},{"$f":"HLOOKUP(Calc_BAT!CS$6,'Carbon Prices'!$D$9:$CP$15,3,FALSE)","v":{"$error":"#N/A"}},{"$f":"HLOOKUP(Calc_BAT!CT$6,'Carbon Prices'!$D$9:$CP$15,3,FALSE)","v":{"$error":"#N/A"}},{"$f":"HLOOKUP(Calc_BAT!CU$6,'Carbon Prices'!$D$9:$CP$15,3,FALSE)","v":{"$error":"#N/A"}},{"$f":"HLOOKUP(Calc_BAT!CV$6,'Carbon Prices'!$D$9:$CP$15,3,FALSE)","v":{"$error":"#N/A"}},{"$f":"HLOOKUP(Calc_BAT!CW$6,'Carbon Prices'!$D$9:$CP$15,3,FALSE)","v":{"$error":"#N/A"}},{"$f":"HLOOKUP(Calc_BAT!CX$6,'Carbon Prices'!$D$9:$CP$15,3,FALSE)","v":{"$error":"#N/A"}},{"$f":"HLOOKUP(Calc_BAT!CY$6,'Carbon Prices'!$D$9:$CP$15,3,FALSE)","v":{"$error":"#N/A"}}]
[null,"Value non-elec","£000's",{"$f":"IF('Data Input - General'!$F$10=\"Yes\",HLOOKUP(Calc_BAT!D$6,'Carbon Prices'!$D$9:$CP$15,3,FALSE),HLOOKUP(Calc_BAT!D$6,'Carbon Prices'!$D$9:$CP$15,6,FALSE))","v":6.8248086829049139},{"$f":"IF('Data Input - General'!$F$10=\"Yes\",HLOOKUP(Calc_BAT!E$6,'Carbon Prices'!$D$9:$CP$15,3,FALSE),HLOOKUP(Calc_BAT!E$6,'Carbon Prices'!$D$9:$CP$15,6,FALSE))","v":7.0841514128553005},{"$f":"IF('Data Input - General'!$F$10=\"Yes\",HLOOKUP(Calc_BAT!F$6,'Carbon Prices'!$D$9:$CP$15,3,FALSE),HLOOKUP(Calc_BAT!F$6,'Carbon Prices'!$D$9:$CP$15,6,FALSE))","v":14.809366678834097},{"$f":"IF('Data Input - General'!$F$10=\"Yes\",HLOOKUP(Calc_BAT!G$6,'Carbon Prices'!$D$9:$CP$15,3,FALSE),HLOOKUP(Calc_BAT!G$6,'Carbon Prices'!$D$9:$CP$15,6,FALSE))","v":22.534581944812892},{"$f":"IF('Data Input - General'!$F$10=\"Yes\",HLOOKUP(Calc_BAT!H$6,'Carbon Prices'!$D$9:$CP$15,3,FALSE),HLOOKUP(Calc_BAT!H$6,'Carbon Prices'!$D$9:$CP$15,6,FALSE))","v":30.259797210791689},{"$f":"IF('Data Input - General'!$F$10=\"Yes\",HLOOKUP(Calc_BAT!I$6,'Carbon Prices'!$D$9:$CP$15,3,FALSE),HLOOKUP(Calc_BAT!I$6,'Carbon Prices'!$D$9:$CP$15,6,FALSE))","v":37.985012476770486},{"$f":"IF('Data Input - General'!$F$10=\"Yes\",HLOOKUP(Calc_BAT!J$6,'Carbon Prices'!$D$9:$CP$15,3,FALSE),HLOOKUP(Calc_BAT!J$6,'Carbon Prices'!$D$9:$CP$15,6,FALSE))","v":45.710227742749282},{"$f":"IF('Data Input - General'!$F$10=\"Yes\",HLOOKUP(Calc_BAT!K$6,'Carbon Prices'!$D$9:$CP$15,3,FALSE),HLOOKUP(Calc_BAT!K$6,'Carbon Prices'!$D$9:$CP$15,6,FALSE))","v":53.435443008728079},{"$f":"IF('Data Input - General'!$F$10=\"Yes\",HLOOKUP(Calc_BAT!L$6,'Carbon Prices'!$D$9:$CP$15,3,FALSE),HLOOKUP(Calc_BAT!L$6,'Carbon Prices'!$D$9:$CP$15,6,FALSE))","v":61.160658274706876},{"$f":"IF('Data Input - General'!$F$10=\"Yes\",HLOOKUP(Calc_BAT!M$6,'Carbon Prices'!$D$9:$CP$15,3,FALSE),HLOOKUP(Calc_BAT!M$6,'Carbon Prices'!$D$9:$CP$15,6,FALSE))","v":68.885873540685665},{"$f":"IF('Data Input - General'!$F$10=\"Yes\",HLOOKUP(Calc_BAT!N$6,'Carbon Prices'!$D$9:$CP$15,3,FALSE),HLOOKUP(Calc_BAT!N$6,'Carbon Prices'!$D$9:$CP$15,6,FALSE))","v":76.611088806664469},{"$f":"IF('Data Input - General'!$F$10=\"Yes\",HLOOKUP(Calc_BAT!O$6,'Carbon Prices'!$D$9:$CP$15,3,FALSE),HLOOKUP(Calc_BAT!O$6,'Carbon Prices'!$D$9:$CP$15,6,FALSE))","v":84.336304072643259},{"$f":"IF('Data Input - General'!$F$10=\"Yes\",HLOOKUP(Calc_BAT!P$6,'Carbon Prices'!$D$9:$CP$15,3,FALSE),HLOOKUP(Calc_BAT!P$6,'Carbon Prices'!$D$9:$CP$15,6,FALSE))","v":92.167532307960172},{"$f":"IF('Data Input - General'!$F$10=\"Yes\",HLOOKUP(Calc_BAT!Q$6,'Carbon Prices'!$D$9:$CP$15,3,FALSE),HLOOKUP(Calc_BAT!Q$6,'Carbon Prices'!$D$9:$CP$15,6,FALSE))","v":99.998760543277044},{"$f":"IF('Data Input - General'!$F$10=\"Yes\",HLOOKUP(Calc_BAT!R$6,'Carbon Prices'!$D$9:$CP$15,3,FALSE),HLOOKUP(Calc_BAT!R$6,'Carbon Prices'!$D$9:$CP$15,6,FALSE))","v":107.82998877859391},{"$f":"IF('Data Input - General'!$F$10=\"Yes\",HLOOKUP(Calc_BAT!S$6,'Carbon Prices'!$D$9:$CP$15,3,FALSE),HLOOKUP(Calc_BAT!S$6,'Carbon Prices'!$D$9:$CP$15,6,FALSE))","v":115.6612170139108},{"$f":"IF('Data Input - General'!$F$10=\"Yes\",HLOOKUP(Calc_BAT!T$6,'Carbon Prices'!$D$9:$CP$15,3,FALSE),HLOOKUP(Calc_BAT!T$6,'Carbon Prices'!$D$9:$CP$15,6,FALSE))","v":123.49244524922767},{"$f":"IF('Data Input - General'!$F$10=\"Yes\",HLOOKUP(Calc_BAT!U$6,'Carbon Prices'!$D$9:$CP$15,3,FALSE),HLOOKUP(Calc_BAT!U$6,'Carbon Prices'!$D$9:$CP$15,6,FALSE))","v":131.32367348454454},{"$f":"IF('Data Input - General'!$F$10=\"Yes\",HLOOKUP(Calc_BAT!V$6,'Carbon Prices'!$D$9:$CP$15,3,FALSE),HLOOKUP(Calc_BAT!V$6,'Carbon Prices'!$D$9:$CP$15,6,FALSE))","v":139.15490171986141},{"$f":"IF('Data Input - General'!$F$10=\"Yes\",HLOOKUP(Calc_BAT!W$6,'Carbon Prices'!$D$9:$CP$15,3,FALSE),HLOOKUP(Calc_BAT!W$6,'Carbon Prices'!$D$9:$CP$15,6,FALSE))","v":146.98612995517828},{"$f":"IF('Data Input - General'!$F$10=\"Yes\",HLOOKUP(Calc_BAT!X$6,'Carbon Prices'!$D$9:$CP$15,3,FALSE),HLOOKUP(Calc_BAT!X$6,'Carbon Prices'!$D$9:$CP$15,6,FALSE))","v":154.81735819049521},{"$f":"IF('Data Input - General'!$F$10=\"Yes\",HLOOKUP(Calc_BAT!Y$6,'Carbon Prices'!$D$9:$CP$15,3,FALSE),HLOOKUP(Calc_BAT!Y$6,'Carbon Prices'!$D$9:$CP$15,6,FALSE))","v":162.64858642581208},{"$f":"IF('Data Input - General'!$F$10=\"Yes\",HLOOKUP(Calc_BAT!Z$6,'Carbon Prices'!$D$9:$CP$15,3,FALSE),HLOOKUP(Calc_BAT!Z$6,'Carbon Prices'!$D$9:$CP$15,6,FALSE))","v":170.47981466112896},{"$f":"IF('Data Input - General'!$F$10=\"Yes\",HLOOKUP(Calc_BAT!AA$6,'Carbon Prices'!$D$9:$CP$15,3,FALSE),HLOOKUP(Calc_BAT!AA$6,'Carbon Prices'!$D$9:$CP$15,6,FALSE))","v":178.31104289644583},{"$f":"IF('Data Input - General'!$F$10=\"Yes\",HLOOKUP(Calc_BAT!AB$6,'Carbon Prices'!$D$9:$CP$15,3,FALSE),HLOOKUP(Calc_BAT!AB$6,'Carbon Prices'!$D$9:$CP$15,6,FALSE))","v":186.1422711317627},{"$f":"IF('Data Input - General'!$F$10=\"Yes\",HLOOKUP(Calc_BAT!AC$6,'Carbon Prices'!$D$9:$CP$15,3,FALSE),HLOOKUP(Calc_BAT!AC$6,'Carbon Prices'!$D$9:$CP$15,6,FALSE))","v":193.97349936707957},{"$f":"IF('Data Input - General'!$F$10=\"Yes\",HLOOKUP(Calc_BAT!AD$6,'Carbon Prices'!$D$9:$CP$15,3,FALSE),HLOOKUP(Calc_BAT!AD$6,'Carbon Prices'!$D$9:$CP$15,6,FALSE))","v":201.80472760239644},{"$f":"IF('Data Input - General'!$F$10=\"Yes\",HLOOKUP(Calc_BAT!AE$6,'Carbon Prices'!$D$9:$CP$15,3,FALSE),HLOOKUP(Calc_BAT!AE$6,'Carbon Prices'!$D$9:$CP$15,6,FALSE))","v":209.63595583771331},{"$f":"IF('Data Input - General'!$F$10=\"Yes\",HLOOKUP(Calc_BAT!AF$6,'Carbon Prices'!$D$9:$CP$15,3,FALSE),HLOOKUP(Calc_BAT!AF$6,'Carbon Prices'!$D$9:$CP$15,6,FALSE))","v":217.46718407303021},{"$f":"IF('Data Input - General'!$F$10=\"Yes\",HLOOKUP(Calc_BAT!AG$6,'Carbon Prices'!$D$9:$CP$15,3,FALSE),HLOOKUP(Calc_BAT!AG$6,'Carbon Prices'!$D$9:$CP$15,6,FALSE))","v":225.29841230834708},{"$f":"IF('Data Input - General'!$F$10=\"Yes\",HLOOKUP(Calc_BAT!AH$6,'Carbon Prices'!$D$9:$CP$15,3,FALSE),HLOOKUP(Calc_BAT!AH$6,'Carbon Prices'!$D$9:$CP$15,6,FALSE))","v":233.12964054366395},{"$f":"IF('Data Input - General'!$F$10=\"Yes\",HLOOKUP(Calc_BAT!AI$6,'Carbon Prices'!$D$9:$CP$15,3,FALSE),HLOOKUP(Calc_BAT!AI$6,'Carbon Prices'!$D$9:$CP$15,6,FALSE))","v":{"$error":"#N/A"}},{"$f":"IF('Data Input - General'!$F$10=\"Yes\",HLOOKUP(Calc_BAT!AJ$6,'Carbon Prices'!$D$9:$CP$15,3,FALSE),HLOOKUP(Calc_BAT!AJ$6,'Carbon Prices'!$D$9:$CP$15,6,FALSE))","v":{"$error":"#N/A"}},{"$f":"IF('Data Input - General'!$F$10=\"Yes\",HLOOKUP(Calc_BAT!AK$6,'Carbon Prices'!$D$9:$CP$15,3,FALSE),HLOOKUP(Calc_BAT!AK$6,'Carbon Prices'!$D$9:$CP$15,6,FALSE))","v":{"$error":"#N/A"}},{"$f":"IF('Data Input - General'!$F$10=\"Yes\",HLOOKUP(Calc_BAT!AL$6,'Carbon Prices'!$D$9:$CP$15,3,FALSE),HLOOKUP(Calc_BAT!AL$6,'Carbon Prices'!$D$9:$CP$15,6,FALSE))","v":{"$error":"#N/A"}},{"$f":"IF('Data Input - General'!$F$10=\"Yes\",HLOOKUP(Calc_BAT!AM$6,'Carbon Prices'!$D$9:$CP$15,3,FALSE),HLOOKUP(Calc_BAT!AM$6,'Carbon Prices'!$D$9:$CP$15,6,FALSE))","v":{"$error":"#N/A"}},{"$f":"IF('Data Input - General'!$F$10=\"Yes\",HLOOKUP(Calc_BAT!AN$6,'Carbon Prices'!$D$9:$CP$15,3,FALSE),HLOOKUP(Calc_BAT!AN$6,'Carbon Prices'!$D$9:$CP$15,6,FALSE))","v":{"$error":"#N/A"}},{"$f":"IF('Data Input - General'!$F$10=\"Yes\",HLOOKUP(Calc_BAT!AO$6,'Carbon Prices'!$D$9:$CP$15,3,FALSE),HLOOKUP(Calc_BAT!AO$6,'Carbon Prices'!$D$9:$CP$15,6,FALSE))","v":{"$error":"#N/A"}},{"$f":"IF('Data Input - General'!$F$10=\"Yes\",HLOOKUP(Calc_BAT!AP$6,'Carbon Prices'!$D$9:$CP$15,3,FALSE),HLOOKUP(Calc_BAT!AP$6,'Carbon Prices'!$D$9:$CP$15,6,FALSE))","v":{"$error":"#N/A"}},{"$f":"IF('Data Input - General'!$F$10=\"Yes\",HLOOKUP(Calc_BAT!AQ$6,'Carbon Prices'!$D$9:$CP$15,3,FALSE),HLOOKUP(Calc_BAT!AQ$6,'Carbon Prices'!$D$9:$CP$15,6,FALSE))","v":{"$error":"#N/A"}},{"$f":"IF('Data Input - General'!$F$10=\"Yes\",HLOOKUP(Calc_BAT!AR$6,'Carbon Prices'!$D$9:$CP$15,3,FALSE),HLOOKUP(Calc_BAT!AR$6,'Carbon Prices'!$D$9:$CP$15,6,FALSE))","v":{"$error":"#N/A"}},{"$f":"IF('Data Input - General'!$F$10=\"Yes\",HLOOKUP(Calc_BAT!AS$6,'Carbon Prices'!$D$9:$CP$15,3,FALSE),HLOOKUP(Calc_BAT!AS$6,'Carbon Prices'!$D$9:$CP$15,6,FALSE))","v":{"$error":"#N/A"}},{"$f":"IF('Data Input - General'!$F$10=\"Yes\",HLOOKUP(Calc_BAT!AT$6,'Carbon Prices'!$D$9:$CP$15,3,FALSE),HLOOKUP(Calc_BAT!AT$6,'Carbon Prices'!$D$9:$CP$15,6,FALSE))","v":{"$error":"#N/A"}},{"$f":"IF('Data Input - General'!$F$10=\"Yes\",HLOOKUP(Calc_BAT!AU$6,'Carbon Prices'!$D$9:$CP$15,3,FALSE),HLOOKUP(Calc_BAT!AU$6,'Carbon Prices'!$D$9:$CP$15,6,FALSE))","v":{"$error":"#N/A"}},{"$f":"IF('Data Input - General'!$F$10=\"Yes\",HLOOKUP(Calc_BAT!AV$6,'Carbon Prices'!$D$9:$CP$15,3,FALSE),HLOOKUP(Calc_BAT!AV$6,'Carbon Prices'!$D$9:$CP$15,6,FALSE))","v":{"$error":"#N/A"}},{"$f":"IF('Data Input - General'!$F$10=\"Yes\",HLOOKUP(Calc_BAT!AW$6,'Carbon Prices'!$D$9:$CP$15,3,FALSE),HLOOKUP(Calc_BAT!AW$6,'Carbon Prices'!$D$9:$CP$15,6,FALSE))","v":{"$error":"#N/A"}},{"$f":"IF('Data Input - General'!$F$10=\"Yes\",HLOOKUP(Calc_BAT!AX$6,'Carbon Prices'!$D$9:$CP$15,3,FALSE),HLOOKUP(Calc_BAT!AX$6,'Carbon Prices'!$D$9:$CP$15,6,FALSE))","v":{"$error":"#N/A"}},{"$f":"IF('Data Input - General'!$F$10=\"Yes\",HLOOKUP(Calc_BAT!AY$6,'Carbon Prices'!$D$9:$CP$15,3,FALSE),HLOOKUP(Calc_BAT!AY$6,'Carbon Prices'!$D$9:$CP$15,6,FALSE))","v":{"$error":"#N/A"}},{"$f":"IF('Data Input - General'!$F$10=\"Yes\",HLOOKUP(Calc_BAT!AZ$6,'Carbon Prices'!$D$9:$CP$15,3,FALSE),HLOOKUP(Calc_BAT!AZ$6,'Carbon Prices'!$D$9:$CP$15,6,FALSE))","v":{"$error":"#N/A"}},{"$f":"IF('Data Input - General'!$F$10=\"Yes\",HLOOKUP(Calc_BAT!BA$6,'Carbon Prices'!$D$9:$CP$15,3,FALSE),HLOOKUP(Calc_BAT!BA$6,'Carbon Prices'!$D$9:$CP$15,6,FALSE))","v":{"$error":"#N/A"}},{"$f":"IF('Data Input - General'!$F$10=\"Yes\",HLOOKUP(Calc_BAT!BB$6,'Carbon Prices'!$D$9:$CP$15,3,FALSE),HLOOKUP(Calc_BAT!BB$6,'Carbon Prices'!$D$9:$CP$15,6,FALSE))","v":{"$error":"#N/A"}},{"$f":"IF('Data Input - General'!$F$10=\"Yes\",HLOOKUP(Calc_BAT!BC$6,'Carbon Prices'!$D$9:$CP$15,3,FALSE),HLOOKUP(Calc_BAT!BC$6,'Carbon Prices'!$D$9:$CP$15,6,FALSE))","v":{"$error":"#N/A"}},{"$f":"IF('Data Input - General'!$F$10=\"Yes\",HLOOKUP(Calc_BAT!BD$6,'Carbon Prices'!$D$9:$CP$15,3,FALSE),HLOOKUP(Calc_BAT!BD$6,'Carbon Prices'!$D$9:$CP$15,6,FALSE))","v":{"$error":"#N/A"}},{"$f":"IF('Data Input - General'!$F$10=\"Yes\",HLOOKUP(Calc_BAT!BE$6,'Carbon Prices'!$D$9:$CP$15,3,FALSE),HLOOKUP(Calc_BAT!BE$6,'Carbon Prices'!$D$9:$CP$15,6,FALSE))","v":{"$error":"#N/A"}},{"$f":"IF('Data Input - General'!$F$10=\"Yes\",HLOOKUP(Calc_BAT!BF$6,'Carbon Prices'!$D$9:$CP$15,3,FALSE),HLOOKUP(Calc_BAT!BF$6,'Carbon Prices'!$D$9:$CP$15,6,FALSE))","v":{"$error":"#N/A"}},{"$f":"IF('Data Input - General'!$F$10=\"Yes\",HLOOKUP(Calc_BAT!BG$6,'Carbon Prices'!$D$9:$CP$15,3,FALSE),HLOOKUP(Calc_BAT!BG$6,'Carbon Prices'!$D$9:$CP$15,6,FALSE))","v":{"$error":"#N/A"}},{"$f":"IF('Data Input - General'!$F$10=\"Yes\",HLOOKUP(Calc_BAT!BH$6,'Carbon Prices'!$D$9:$CP$15,3,FALSE),HLOOKUP(Calc_BAT!BH$6,'Carbon Prices'!$D$9:$CP$15,6,FALSE))","v":{"$error":"#N/A"}},{"$f":"IF('Data Input - General'!$F$10=\"Yes\",HLOOKUP(Calc_BAT!BI$6,'Carbon Prices'!$D$9:$CP$15,3,FALSE),HLOOKUP(Calc_BAT!BI$6,'Carbon Prices'!$D$9:$CP$15,6,FALSE))","v":{"$error":"#N/A"}},{"$f":"IF('Data Input - General'!$F$10=\"Yes\",HLOOKUP(Calc_BAT!BJ$6,'Carbon Prices'!$D$9:$CP$15,3,FALSE),HLOOKUP(Calc_BAT!BJ$6,'Carbon Prices'!$D$9:$CP$15,6,FALSE))","v":{"$error":"#N/A"}},{"$f":"IF('Data Input - General'!$F$10=\"Yes\",HLOOKUP(Calc_BAT!BK$6,'Carbon Prices'!$D$9:$CP$15,3,FALSE),HLOOKUP(Calc_BAT!BK$6,'Carbon Prices'!$D$9:$CP$15,6,FALSE))","v":{"$error":"#N/A"}},{"$f":"IF('Data Input - General'!$F$10=\"Yes\",HLOOKUP(Calc_BAT!BL$6,'Carbon Prices'!$D$9:$CP$15,3,FALSE),HLOOKUP(Calc_BAT!BL$6,'Carbon Prices'!$D$9:$CP$15,6,FALSE))","v":{"$error":"#N/A"}},{"$f":"IF('Data Input - General'!$F$10=\"Yes\",HLOOKUP(Calc_BAT!BM$6,'Carbon Prices'!$D$9:$CP$15,3,FALSE),HLOOKUP(Calc_BAT!BM$6,'Carbon Prices'!$D$9:$CP$15,6,FALSE))","v":{"$error":"#N/A"}},{"$f":"IF('Data Input - General'!$F$10=\"Yes\",HLOOKUP(Calc_BAT!BN$6,'Carbon Prices'!$D$9:$CP$15,3,FALSE),HLOOKUP(Calc_BAT!BN$6,'Carbon Prices'!$D$9:$CP$15,6,FALSE))","v":{"$error":"#N/A"}},{"$f":"IF('Data Input - General'!$F$10=\"Yes\",HLOOKUP(Calc_BAT!BO$6,'Carbon Prices'!$D$9:$CP$15,3,FALSE),HLOOKUP(Calc_BAT!BO$6,'Carbon Prices'!$D$9:$CP$15,6,FALSE))","v":{"$error":"#N/A"}},{"$f":"IF('Data Input - General'!$F$10=\"Yes\",HLOOKUP(Calc_BAT!BP$6,'Carbon Prices'!$D$9:$CP$15,3,FALSE),HLOOKUP(Calc_BAT!BP$6,'Carbon Prices'!$D$9:$CP$15,6,FALSE))","v":{"$error":"#N/A"}},{"$f":"IF('Data Input - General'!$F$10=\"Yes\",HLOOKUP(Calc_BAT!BQ$6,'Carbon Prices'!$D$9:$CP$15,3,FALSE),HLOOKUP(Calc_BAT!BQ$6,'Carbon Prices'!$D$9:$CP$15,6,FALSE))","v":{"$error":"#N/A"}},{"$f":"IF('Data Input - General'!$F$10=\"Yes\",HLOOKUP(Calc_BAT!BR$6,'Carbon Prices'!$D$9:$CP$15,3,FALSE),HLOOKUP(Calc_BAT!BR$6,'Carbon Prices'!$D$9:$CP$15,6,FALSE))","v":{"$error":"#N/A"}},{"$f":"IF('Data Input - General'!$F$10=\"Yes\",HLOOKUP(Calc_BAT!BS$6,'Carbon Prices'!$D$9:$CP$15,3,FALSE),HLOOKUP(Calc_BAT!BS$6,'Carbon Prices'!$D$9:$CP$15,6,FALSE))","v":{"$error":"#N/A"}},{"$f":"IF('Data Input - General'!$F$10=\"Yes\",HLOOKUP(Calc_BAT!BT$6,'Carbon Prices'!$D$9:$CP$15,3,FALSE),HLOOKUP(Calc_BAT!BT$6,'Carbon Prices'!$D$9:$CP$15,6,FALSE))","v":{"$error":"#N/A"}},{"$f":"IF('Data Input - General'!$F$10=\"Yes\",HLOOKUP(Calc_BAT!BU$6,'Carbon Prices'!$D$9:$CP$15,3,FALSE),HLOOKUP(Calc_BAT!BU$6,'Carbon Prices'!$D$9:$CP$15,6,FALSE))","v":{"$error":"#N/A"}},{"$f":"IF('Data Input - General'!$F$10=\"Yes\",HLOOKUP(Calc_BAT!BV$6,'Carbon Prices'!$D$9:$CP$15,3,FALSE),HLOOKUP(Calc_BAT!BV$6,'Carbon Prices'!$D$9:$CP$15,6,FALSE))","v":{"$error":"#N/A"}},{"$f":"IF('Data Input - General'!$F$10=\"Yes\",HLOOKUP(Calc_BAT!BW$6,'Carbon Prices'!$D$9:$CP$15,3,FALSE),HLOOKUP(Calc_BAT!BW$6,'Carbon Prices'!$D$9:$CP$15,6,FALSE))","v":{"$error":"#N/A"}},{"$f":"IF('Data Input - General'!$F$10=\"Yes\",HLOOKUP(Calc_BAT!BX$6,'Carbon Prices'!$D$9:$CP$15,3,FALSE),HLOOKUP(Calc_BAT!BX$6,'Carbon Prices'!$D$9:$CP$15,6,FALSE))","v":{"$error":"#N/A"}},{"$f":"IF('Data Input - General'!$F$10=\"Yes\",HLOOKUP(Calc_BAT!BY$6,'Carbon Prices'!$D$9:$CP$15,3,FALSE),HLOOKUP(Calc_BAT!BY$6,'Carbon Prices'!$D$9:$CP$15,6,FALSE))","v":{"$error":"#N/A"}},{"$f":"IF('Data Input - General'!$F$10=\"Yes\",HLOOKUP(Calc_BAT!BZ$6,'Carbon Prices'!$D$9:$CP$15,3,FALSE),HLOOKUP(Calc_BAT!BZ$6,'Carbon Prices'!$D$9:$CP$15,6,FALSE))","v":{"$error":"#N/A"}},{"$f":"IF('Data Input - General'!$F$10=\"Yes\",HLOOKUP(Calc_BAT!CA$6,'Carbon Prices'!$D$9:$CP$15,3,FALSE),HLOOKUP(Calc_BAT!CA$6,'Carbon Prices'!$D$9:$CP$15,6,FALSE))","v":{"$error":"#N/A"}},{"$f":"IF('Data Input - General'!$F$10=\"Yes\",HLOOKUP(Calc_BAT!CB$6,'Carbon Prices'!$D$9:$CP$15,3,FALSE),HLOOKUP(Calc_BAT!CB$6,'Carbon Prices'!$D$9:$CP$15,6,FALSE))","v":{"$error":"#N/A"}},{"$f":"IF('Data Input - General'!$F$10=\"Yes\",HLOOKUP(Calc_BAT!CC$6,'Carbon Prices'!$D$9:$CP$15,3,FALSE),HLOOKUP(Calc_BAT!CC$6,'Carbon Prices'!$D$9:$CP$15,6,FALSE))","v":{"$error":"#N/A"}},{"$f":"IF('Data Input - General'!$F$10=\"Yes\",HLOOKUP(Calc_BAT!CD$6,'Carbon Prices'!$D$9:$CP$15,3,FALSE),HLOOKUP(Calc_BAT!CD$6,'Carbon Prices'!$D$9:$CP$15,6,FALSE))","v":{"$error":"#N/A"}},{"$f":"IF('Data Input - General'!$F$10=\"Yes\",HLOOKUP(Calc_BAT!CE$6,'Carbon Prices'!$D$9:$CP$15,3,FALSE),HLOOKUP(Calc_BAT!CE$6,'Carbon Prices'!$D$9:$CP$15,6,FALSE))","v":{"$error":"#N/A"}},{"$f":"IF('Data Input - General'!$F$10=\"Yes\",HLOOKUP(Calc_BAT!CF$6,'Carbon Prices'!$D$9:$CP$15,3,FALSE),HLOOKUP(Calc_BAT!CF$6,'Carbon Prices'!$D$9:$CP$15,6,FALSE))","v":{"$error":"#N/A"}},{"$f":"IF('Data Input - General'!$F$10=\"Yes\",HLOOKUP(Calc_BAT!CG$6,'Carbon Prices'!$D$9:$CP$15,3,FALSE),HLOOKUP(Calc_BAT!CG$6,'Carbon Prices'!$D$9:$CP$15,6,FALSE))","v":{"$error":"#N/A"}},{"$f":"IF('Data Input - General'!$F$10=\"Yes\",HLOOKUP(Calc_BAT!CH$6,'Carbon Prices'!$D$9:$CP$15,3,FALSE),HLOOKUP(Calc_BAT!CH$6,'Carbon Prices'!$D$9:$CP$15,6,FALSE))","v":{"$error":"#N/A"}},{"$f":"IF('Data Input - General'!$F$10=\"Yes\",HLOOKUP(Calc_BAT!CI$6,'Carbon Prices'!$D$9:$CP$15,3,FALSE),HLOOKUP(Calc_BAT!CI$6,'Carbon Prices'!$D$9:$CP$15,6,FALSE))","v":{"$error":"#N/A"}},{"$f":"IF('Data Input - General'!$F$10=\"Yes\",HLOOKUP(Calc_BAT!CJ$6,'Carbon Prices'!$D$9:$CP$15,3,FALSE),HLOOKUP(Calc_BAT!CJ$6,'Carbon Prices'!$D$9:$CP$15,6,FALSE))","v":{"$error":"#N/A"}},{"$f":"IF('Data Input - General'!$F$10=\"Yes\",HLOOKUP(Calc_BAT!CK$6,'Carbon Prices'!$D$9:$CP$15,3,FALSE),HLOOKUP(Calc_BAT!CK$6,'Carbon Prices'!$D$9:$CP$15,6,FALSE))","v":{"$error":"#N/A"}},{"$f":"IF('Data Input - General'!$F$10=\"Yes\",HLOOKUP(Calc_BAT!CL$6,'Carbon Prices'!$D$9:$CP$15,3,FALSE),HLOOKUP(Calc_BAT!CL$6,'Carbon Prices'!$D$9:$CP$15,6,FALSE))","v":{"$error":"#N/A"}},{"$f":"IF('Data Input - General'!$F$10=\"Yes\",HLOOKUP(Calc_BAT!CM$6,'Carbon Prices'!$D$9:$CP$15,3,FALSE),HLOOKUP(Calc_BAT!CM$6,'Carbon Prices'!$D$9:$CP$15,6,FALSE))","v":{"$error":"#N/A"}},{"$f":"IF('Data Input - General'!$F$10=\"Yes\",HLOOKUP(Calc_BAT!CN$6,'Carbon Prices'!$D$9:$CP$15,3,FALSE),HLOOKUP(Calc_BAT!CN$6,'Carbon Prices'!$D$9:$CP$15,6,FALSE))","v":{"$error":"#N/A"}},{"$f":"IF('Data Input - General'!$F$10=\"Yes\",HLOOKUP(Calc_BAT!CO$6,'Carbon Prices'!$D$9:$CP$15,3,FALSE),HLOOKUP(Calc_BAT!CO$6,'Carbon Prices'!$D$9:$CP$15,6,FALSE))","v":{"$error":"#N/A"}},{"$f":"IF('Data Input - General'!$F$10=\"Yes\",HLOOKUP(Calc_BAT!CP$6,'Carbon Prices'!$D$9:$CP$15,3,FALSE),HLOOKUP(Calc_BAT!CP$6,'Carbon Prices'!$D$9:$CP$15,6,FALSE))","v":{"$error":"#N/A"}},{"$f":"IF('Data Input - General'!$F$10=\"Yes\",HLOOKUP(Calc_BAT!CQ$6,'Carbon Prices'!$D$9:$CP$15,3,FALSE),HLOOKUP(Calc_BAT!CQ$6,'Carbon Prices'!$D$9:$CP$15,6,FALSE))","v":{"$error":"#N/A"}},{"$f":"IF('Data Input - General'!$F$10=\"Yes\",HLOOKUP(Calc_BAT!CR$6,'Carbon Prices'!$D$9:$CP$15,3,FALSE),HLOOKUP(Calc_BAT!CR$6,'Carbon Prices'!$D$9:$CP$15,6,FALSE))","v":{"$error":"#N/A"}},{"$f":"IF('Data Input - General'!$F$10=\"Yes\",HLOOKUP(Calc_BAT!CS$6,'Carbon Prices'!$D$9:$CP$15,3,FALSE),HLOOKUP(Calc_BAT!CS$6,'Carbon Prices'!$D$9:$CP$15,6,FALSE))","v":{"$error":"#N/A"}},{"$f":"IF('Data Input - General'!$F$10=\"Yes\",HLOOKUP(Calc_BAT!CT$6,'Carbon Prices'!$D$9:$CP$15,3,FALSE),HLOOKUP(Calc_BAT!CT$6,'Carbon Prices'!$D$9:$CP$15,6,FALSE))","v":{"$error":"#N/A"}},{"$f":"IF('Data Input - General'!$F$10=\"Yes\",HLOOKUP(Calc_BAT!CU$6,'Carbon Prices'!$D$9:$CP$15,3,FALSE),HLOOKUP(Calc_BAT!CU$6,'Carbon Prices'!$D$9:$CP$15,6,FALSE))","v":{"$error":"#N/A"}},{"$f":"IF('Data Input - General'!$F$10=\"Yes\",HLOOKUP(Calc_BAT!CV$6,'Carbon Prices'!$D$9:$CP$15,3,FALSE),HLOOKUP(Calc_BAT!CV$6,'Carbon Prices'!$D$9:$CP$15,6,FALSE))","v":{"$error":"#N/A"}},{"$f":"IF('Data Input - General'!$F$10=\"Yes\",HLOOKUP(Calc_BAT!CW$6,'Carbon Prices'!$D$9:$CP$15,3,FALSE),HLOOKUP(Calc_BAT!CW$6,'Carbon Prices'!$D$9:$CP$15,6,FALSE))","v":{"$error":"#N/A"}},{"$f":"IF('Data Input - General'!$F$10=\"Yes\",HLOOKUP(Calc_BAT!CX$6,'Carbon Prices'!$D$9:$CP$15,3,FALSE),HLOOKUP(Calc_BAT!CX$6,'Carbon Prices'!$D$9:$CP$15,6,FALSE))","v":{"$error":"#N/A"}},{"$f":"IF('Data Input - General'!$F$10=\"Yes\",HLOOKUP(Calc_BAT!CY$6,'Carbon Prices'!$D$9:$CP$15,3,FALSE),HLOOKUP(Calc_BAT!CY$6,'Carbon Prices'!$D$9:$CP$15,6,FALSE))","v":{"$error":"#N/A"}}]
[null,"Total value elec","£000's",{"$f":"IFERROR(D80*D82,0)","v":7834.2675436350428},{"$f":"IFERROR(E80*E82,0)","v":7245.322260334332},{"$f":"IFERROR(F80*F82,0)","v":13338.874023349481},18692.699682919276,21372.264592201627,28172.822351293562,31773.34242669689,33018.060213905141,0,0,0,0,0,0,0,0,0,0,0,0,0,0,0,0,0,0,0,0,0,0,0,0,0,0,0,0,0,0,0,0,0,0,0,0,0,0,0,0,0,0,0,0,0,0,0,0,0,0,0,0,0,0,0,0,0,0,{"$f":"IFERROR(BR80*BR82,0)","v":0},0,0,0,0,0,0,0,0,0,0,0,0,0,0,0,0,0,0,0,0,0,0,0,0,0,0,0,0,0,0,0,0,0]
[null,"Total value non-elec","£000's",{"$f":"IFERROR(D81*D83,0)","v":276383.09928244672},{"$f":"IFERROR(E81*E83,0)","v":286819.45473443193},599593.97085690463,912368.48697937722,1225143.0031018499,1537917.5192243226,1850692.0353467953,2163466.5514692683,0,0,0,0,0,0,0,0,0,0,0,0,0,0,0,0,0,0,0,0,0,0,0,0,0,0,0,0,0,0,0,0,0,0,0,0,0,0,0,0,0,0,0,0,0,0,0,0,0,0,0,0,0,0,0,0,0,0,0,0,0,0,0,0,0,0,0,0,0,0,0,0,0,0,0,0,0,0,0,0,0,0,0,0,0,0,0,0,0,0,0,0]
[]
[null,"Discounted total GHG","£000's",{"$f":"SUM(D84:D85,D77)*D$7/1000","v":591.33375755680288},{"$f":"SUM(E84:E85,E77)*E$7/1000","v":592.12714065048772},1194.2909710170957,1754.384427308775,2272.9009708381573,2757.8123006531841,3204.7252851139028,3616.4069333888874,0,0,0,0,0,0,0,0,0,0,0,0,0,0,0,0,0,0,0,0,0,0,0,0,0,0,0,0,0,0,0,0,0,0,0,0,0,0,0,0,0,0,0,0,0,0,0,0,0,0,0,0,0,0,0,0,0,{"$f":"SUM(BQ84:BQ85,BQ77)*BQ$7/1000","v":0},0,0,0,0,0,0,0,0,0,0,0,0,0,0,0,0,0,0,0,0,0,0,0,0,0,0,0,0,0,0,0,0,0,0]
[]
[null,"SENSITIVITY ANALYSIS"]
[]
[null,"Low values"]
[]
[null,"Energy Consumption"]
[null,"Electricity","£000's",{"$f":"IFERROR('Data Input - BAT'!H84*INDEX('Energy Prices'!$F$19:$CR$24,MATCH($B94,'Energy Prices'!$C$19:$C$24,0),MATCH(Calc_BAT!D$6,'Energy Prices'!$F$11:$CR$11,0))/100000,\"\")","v":381.14765882209355},{"$f":"IFERROR('Data Input - BAT'!I84*INDEX('Energy Prices'!$F$19:$CR$24,MATCH($B94,'Energy Prices'!$C$19:$C$24,0),MATCH(Calc_BAT!E$6,'Energy Prices'!$F$11:$CR$11,0))/100000,\"\")","v":419.92655846774767},{"$f":"IFERROR('Data Input - BAT'!J84*INDEX('Energy Prices'!$F$19:$CR$24,MATCH($B94,'Energy Prices'!$C$19:$C$24,0),MATCH(Calc_BAT!F$6,'Energy Prices'!$F$11:$CR$11,0))/100000,\"\")","v":423.88884434102221},{"$f":"IFERROR('Data Input - BAT'!K84*INDEX('Energy Prices'!$F$19:$CR$24,MATCH($B94,'Energy Prices'!$C$19:$C$24,0),MATCH(Calc_BAT!G$6,'Energy Prices'!$F$11:$CR$11,0))/100000,\"\")","v":455.56962244407958},{"$f":"IFERROR('Data Input - BAT'!L84*INDEX('Energy Prices'!$F$19:$CR$24,MATCH($B94,'Energy Prices'!$C$19:$C$24,0),MATCH(Calc_BAT!H$6,'Energy Prices'!$F$11:$CR$11,0))/100000,\"\")","v":454.23873487734414},{"$f":"IFERROR('Data Input - BAT'!M84*INDEX('Energy Prices'!$F$19:$CR$24,MATCH($B94,'Energy Prices'!$C$19:$C$24,0),MATCH(Calc_BAT!I$6,'Energy Prices'!$F$11:$CR$11,0))/100000,\"\")","v":489.76258839178865},{"$f":"IFERROR('Data Input - BAT'!N84*INDEX('Energy Prices'!$F$19:$CR$24,MATCH($B94,'Energy Prices'!$C$19:$C$24,0),MATCH(Calc_BAT!J$6,'Energy Prices'!$F$11:$CR$11,0))/100000,\"\")","v":515.2556060578778},{"$f":"IFERROR('Data Input - BAT'!O84*INDEX('Energy Prices'!$F$19:$CR$24,MATCH($B94,'Energy Prices'!$C$19:$C$24,0),MATCH(Calc_BAT!K$6,'Energy Prices'!$F$11:$CR$11,0))/100000,\"\")","v":509.17496416322342},{"$f":"IFERROR('Data Input - BAT'!P84*INDEX('Energy Prices'!$F$19:$CR$24,MATCH($B94,'Energy Prices'!$C$19:$C$24,0),MATCH(Calc_BAT!L$6,'Energy Prices'!$F$11:$CR$11,0))/100000,\"\")","v":0},{"$f":"IFERROR('Data Input - BAT'!Q84*INDEX('Energy Prices'!$F$19:$CR$24,MATCH($B94,'Energy Prices'!$C$19:$C$24,0),MATCH(Calc_BAT!M$6,'Energy Prices'!$F$11:$CR$11,0))/100000,\"\")","v":0},{"$f":"IFERROR('Data Input - BAT'!R84*INDEX('Energy Prices'!$F$19:$CR$24,MATCH($B94,'Energy Prices'!$C$19:$C$24,0),MATCH(Calc_BAT!N$6,'Energy Prices'!$F$11:$CR$11,0))/100000,\"\")","v":0},{"$f":"IFERROR('Data Input - BAT'!S84*INDEX('Energy Prices'!$F$19:$CR$24,MATCH($B94,'Energy Prices'!$C$19:$C$24,0),MATCH(Calc_BAT!O$6,'Energy Prices'!$F$11:$CR$11,0))/100000,\"\")","v":0},{"$f":"IFERROR('Data Input - BAT'!T84*INDEX('Energy Prices'!$F$19:$CR$24,MATCH($B94,'Energy Prices'!$C$19:$C$24,0),MATCH(Calc_BAT!P$6,'Energy Prices'!$F$11:$CR$11,0))/100000,\"\")","v":0},{"$f":"IFERROR('Data Input - BAT'!U84*INDEX('Energy Prices'!$F$19:$CR$24,MATCH($B94,'Energy Prices'!$C$19:$C$24,0),MATCH(Calc_BAT!Q$6,'Energy Prices'!$F$11:$CR$11,0))/100000,\"\")","v":0},{"$f":"IFERROR('Data Input - BAT'!V84*INDEX('Energy Prices'!$F$19:$CR$24,MATCH($B94,'Energy Prices'!$C$19:$C$24,0),MATCH(Calc_BAT!R$6,'Energy Prices'!$F$11:$CR$11,0))/100000,\"\")","v":0},{"$f":"IFERROR('Data Input - BAT'!W84*INDEX('Energy Prices'!$F$19:$CR$24,MATCH($B94,'Energy Prices'!$C$19:$C$24,0),MATCH(Calc_BAT!S$6,'Energy Prices'!$F$11:$CR$11,0))/100000,\"\")","v":0},{"$f":"IFERROR('Data Input - BAT'!X84*INDEX('Energy Prices'!$F$19:$CR$24,MATCH($B94,'Energy Prices'!$C$19:$C$24,0),MATCH(Calc_BAT!T$6,'Energy Prices'!$F$11:$CR$11,0))/100000,\"\")","v":0},{"$f":"IFERROR('Data Input - BAT'!Y84*INDEX('Energy Prices'!$F$19:$CR$24,MATCH($B94,'Energy Prices'!$C$19:$C$24,0),MATCH(Calc_BAT!U$6,'Energy Prices'!$F$11:$CR$11,0))/100000,\"\")","v":0},{"$f":"IFERROR('Data Input - BAT'!Z84*INDEX('Energy Prices'!$F$19:$CR$24,MATCH($B94,'Energy Prices'!$C$19:$C$24,0),MATCH(Calc_BAT!V$6,'Energy Prices'!$F$11:$CR$11,0))/100000,\"\")","v":0},{"$f":"IFERROR('Data Input - BAT'!AA84*INDEX('Energy Prices'!$F$19:$CR$24,MATCH($B94,'Energy Prices'!$C$19:$C$24,0),MATCH(Calc_BAT!W$6,'Energy Prices'!$F$11:$CR$11,0))/100000,\"\")","v":0},{"$f":"IFERROR('Data Input - BAT'!AB84*INDEX('Energy Prices'!$F$19:$CR$24,MATCH($B94,'Energy Prices'!$C$19:$C$24,0),MATCH(Calc_BAT!X$6,'Energy Prices'!$F$11:$CR$11,0))/100000,\"\")","v":0},{"$f":"IFERROR('Data Input - BAT'!AC84*INDEX('Energy Prices'!$F$19:$CR$24,MATCH($B94,'Energy Prices'!$C$19:$C$24,0),MATCH(Calc_BAT!Y$6,'Energy Prices'!$F$11:$CR$11,0))/100000,\"\")","v":0},{"$f":"IFERROR('Data Input - BAT'!AD84*INDEX('Energy Prices'!$F$19:$CR$24,MATCH($B94,'Energy Prices'!$C$19:$C$24,0),MATCH(Calc_BAT!Z$6,'Energy Prices'!$F$11:$CR$11,0))/100000,\"\")","v":0},{"$f":"IFERROR('Data Input - BAT'!AE84*INDEX('Energy Prices'!$F$19:$CR$24,MATCH($B94,'Energy Prices'!$C$19:$C$24,0),MATCH(Calc_BAT!AA$6,'Energy Prices'!$F$11:$CR$11,0))/100000,\"\")","v":0},{"$f":"IFERROR('Data Input - BAT'!AF84*INDEX('Energy Prices'!$F$19:$CR$24,MATCH($B94,'Energy Prices'!$C$19:$C$24,0),MATCH(Calc_BAT!AB$6,'Energy Prices'!$F$11:$CR$11,0))/100000,\"\")","v":0},{"$f":"IFERROR('Data Input - BAT'!AG84*INDEX('Energy Prices'!$F$19:$CR$24,MATCH($B94,'Energy Prices'!$C$19:$C$24,0),MATCH(Calc_BAT!AC$6,'Energy Prices'!$F$11:$CR$11,0))/100000,\"\")","v":0},{"$f":"IFERROR('Data Input - BAT'!AH84*INDEX('Energy Prices'!$F$19:$CR$24,MATCH($B94,'Energy Prices'!$C$19:$C$24,0),MATCH(Calc_BAT!AD$6,'Energy Prices'!$F$11:$CR$11,0))/100000,\"\")","v":0},{"$f":"IFERROR('Data Input - BAT'!AI84*INDEX('Energy Prices'!$F$19:$CR$24,MATCH($B94,'Energy Prices'!$C$19:$C$24,0),MATCH(Calc_BAT!AE$6,'Energy Prices'!$F$11:$CR$11,0))/100000,\"\")","v":0},{"$f":"IFERROR('Data Input - BAT'!AJ84*INDEX('Energy Prices'!$F$19:$CR$24,MATCH($B94,'Energy Prices'!$C$19:$C$24,0),MATCH(Calc_BAT!AF$6,'Energy Prices'!$F$11:$CR$11,0))/100000,\"\")","v":0},{"$f":"IFERROR('Data Input - BAT'!AK84*INDEX('Energy Prices'!$F$19:$CR$24,MATCH($B94,'Energy Prices'!$C$19:$C$24,0),MATCH(Calc_BAT!AG$6,'Energy Prices'!$F$11:$CR$11,0))/100000,\"\")","v":0},{"$f":"IFERROR('Data Input - BAT'!AL84*INDEX('Energy Prices'!$F$19:$CR$24,MATCH($B94,'Energy Prices'!$C$19:$C$24,0),MATCH(Calc_BAT!AH$6,'Energy Prices'!$F$11:$CR$11,0))/100000,\"\")","v":0},{"$f":"IFERROR('Data Input - BAT'!AM84*INDEX('Energy Prices'!$F$19:$CR$24,MATCH($B94,'Energy Prices'!$C$19:$C$24,0),MATCH(Calc_BAT!AI$6,'Energy Prices'!$F$11:$CR$11,0))/100000,\"\")","v":""},{"$f":"IFERROR('Data Input - BAT'!AN84*INDEX('Energy Prices'!$F$19:$CR$24,MATCH($B94,'Energy Prices'!$C$19:$C$24,0),MATCH(Calc_BAT!AJ$6,'Energy Prices'!$F$11:$CR$11,0))/100000,\"\")","v":""},{"$f":"IFERROR('Data Input - BAT'!AO84*INDEX('Energy Prices'!$F$19:$CR$24,MATCH($B94,'Energy Prices'!$C$19:$C$24,0),MATCH(Calc_BAT!AK$6,'Energy Prices'!$F$11:$CR$11,0))/100000,\"\")","v":""},{"$f":"IFERROR('Data Input - BAT'!AP84*INDEX('Energy Prices'!$F$19:$CR$24,MATCH($B94,'Energy Prices'!$C$19:$C$24,0),MATCH(Calc_BAT!AL$6,'Energy Prices'!$F$11:$CR$11,0))/100000,\"\")","v":""},{"$f":"IFERROR('Data Input - BAT'!AQ84*INDEX('Energy Prices'!$F$19:$CR$24,MATCH($B94,'Energy Prices'!$C$19:$C$24,0),MATCH(Calc_BAT!AM$6,'Energy Prices'!$F$11:$CR$11,0))/100000,\"\")","v":""},{"$f":"IFERROR('Data Input - BAT'!AR84*INDEX('Energy Prices'!$F$19:$CR$24,MATCH($B94,'Energy Prices'!$C$19:$C$24,0),MATCH(Calc_BAT!AN$6,'Energy Prices'!$F$11:$CR$11,0))/100000,\"\")","v":""},{"$f":"IFERROR('Data Input - BAT'!AS84*INDEX('Energy Prices'!$F$19:$CR$24,MATCH($B94,'Energy Prices'!$C$19:$C$24,0),MATCH(Calc_BAT!AO$6,'Energy Prices'!$F$11:$CR$11,0))/100000,\"\")","v":""},{"$f":"IFERROR('Data Input - BAT'!AT84*INDEX('Energy Prices'!$F$19:$CR$24,MATCH($B94,'Energy Prices'!$C$19:$C$24,0),MATCH(Calc_BAT!AP$6,'Energy Prices'!$F$11:$CR$11,0))/100000,\"\")","v":""},{"$f":"IFERROR('Data Input - BAT'!AU84*INDEX('Energy Prices'!$F$19:$CR$24,MATCH($B94,'Energy Prices'!$C$19:$C$24,0),MATCH(Calc_BAT!AQ$6,'Energy Prices'!$F$11:$CR$11,0))/100000,\"\")","v":""},{"$f":"IFERROR('Data Input - BAT'!AV84*INDEX('Energy Prices'!$F$19:$CR$24,MATCH($B94,'Energy Prices'!$C$19:$C$24,0),MATCH(Calc_BAT!AR$6,'Energy Prices'!$F$11:$CR$11,0))/100000,\"\")","v":""},{"$f":"IFERROR('Data Input - BAT'!AW84*INDEX('Energy Prices'!$F$19:$CR$24,MATCH($B94,'Energy Prices'!$C$19:$C$24,0),MATCH(Calc_BAT!AS$6,'Energy Prices'!$F$11:$CR$11,0))/100000,\"\")","v":""},{"$f":"IFERROR('Data Input - BAT'!AX84*INDEX('Energy Prices'!$F$19:$CR$24,MATCH($B94,'Energy Prices'!$C$19:$C$24,0),MATCH(Calc_BAT!AT$6,'Energy Prices'!$F$11:$CR$11,0))/100000,\"\")","v":""},{"$f":"IFERROR('Data Input - BAT'!AY84*INDEX('Energy Prices'!$F$19:$CR$24,MATCH($B94,'Energy Prices'!$C$19:$C$24,0),MATCH(Calc_BAT!AU$6,'Energy Prices'!$F$11:$CR$11,0))/100000,\"\")","v":""},{"$f":"IFERROR('Data Input - BAT'!AZ84*INDEX('Energy Prices'!$F$19:$CR$24,MATCH($B94,'Energy Prices'!$C$19:$C$24,0),MATCH(Calc_BAT!AV$6,'Energy Prices'!$F$11:$CR$11,0))/100000,\"\")","v":""},{"$f":"IFERROR('Data Input - BAT'!BA84*INDEX('Energy Prices'!$F$19:$CR$24,MATCH($B94,'Energy Prices'!$C$19:$C$24,0),MATCH(Calc_BAT!AW$6,'Energy Prices'!$F$11:$CR$11,0))/100000,\"\")","v":""},{"$f":"IFERROR('Data Input - BAT'!BB84*INDEX('Energy Prices'!$F$19:$CR$24,MATCH($B94,'Energy Prices'!$C$19:$C$24,0),MATCH(Calc_BAT!AX$6,'Energy Prices'!$F$11:$CR$11,0))/100000,\"\")","v":""},{"$f":"IFERROR('Data Input - BAT'!BC84*INDEX('Energy Prices'!$F$19:$CR$24,MATCH($B94,'Energy Prices'!$C$19:$C$24,0),MATCH(Calc_BAT!AY$6,'Energy Prices'!$F$11:$CR$11,0))/100000,\"\")","v":""},{"$f":"IFERROR('Data Input - BAT'!BD84*INDEX('Energy Prices'!$F$19:$CR$24,MATCH($B94,'Energy Prices'!$C$19:$C$24,0),MATCH(Calc_BAT!AZ$6,'Energy Prices'!$F$11:$CR$11,0))/100000,\"\")","v":""},{"$f":"IFERROR('Data Input - BAT'!BE84*INDEX('Energy Prices'!$F$19:$CR$24,MATCH($B94,'Energy Prices'!$C$19:$C$24,0),MATCH(Calc_BAT!BA$6,'Energy Prices'!$F$11:$CR$11,0))/100000,\"\")","v":""},{"$f":"IFERROR('Data Input - BAT'!BF84*INDEX('Energy Prices'!$F$19:$CR$24,MATCH($B94,'Energy Prices'!$C$19:$C$24,0),MATCH(Calc_BAT!BB$6,'Energy Prices'!$F$11:$CR$11,0))/100000,\"\")","v":""},{"$f":"IFERROR('Data Input - BAT'!BG84*INDEX('Energy Prices'!$F$19:$CR$24,MATCH($B94,'Energy Prices'!$C$19:$C$24,0),MATCH(Calc_BAT!BC$6,'Energy Prices'!$F$11:$CR$11,0))/100000,\"\")","v":""},{"$f":"IFERROR('Data Input - BAT'!BH84*INDEX('Energy Prices'!$F$19:$CR$24,MATCH($B94,'Energy Prices'!$C$19:$C$24,0),MATCH(Calc_BAT!BD$6,'Energy Prices'!$F$11:$CR$11,0))/100000,\"\")","v":""},{"$f":"IFERROR('Data Input - BAT'!BI84*INDEX('Energy Prices'!$F$19:$CR$24,MATCH($B94,'Energy Prices'!$C$19:$C$24,0),MATCH(Calc_BAT!BE$6,'Energy Prices'!$F$11:$CR$11,0))/100000,\"\")","v":""},{"$f":"IFERROR('Data Input - BAT'!BJ84*INDEX('Energy Prices'!$F$19:$CR$24,MATCH($B94,'Energy Prices'!$C$19:$C$24,0),MATCH(Calc_BAT!BF$6,'Energy Prices'!$F$11:$CR$11,0))/100000,\"\")","v":""},{"$f":"IFERROR('Data Input - BAT'!BK84*INDEX('Energy Prices'!$F$19:$CR$24,MATCH($B94,'Energy Prices'!$C$19:$C$24,0),MATCH(Calc_BAT!BG$6,'Energy Prices'!$F$11:$CR$11,0))/100000,\"\")","v":""},{"$f":"IFERROR('Data Input - BAT'!BL84*INDEX('Energy Prices'!$F$19:$CR$24,MATCH($B94,'Energy Prices'!$C$19:$C$24,0),MATCH(Calc_BAT!BH$6,'Energy Prices'!$F$11:$CR$11,0))/100000,\"\")","v":""},{"$f":"IFERROR('Data Input - BAT'!BM84*INDEX('Energy Prices'!$F$19:$CR$24,MATCH($B94,'Energy Prices'!$C$19:$C$24,0),MATCH(Calc_BAT!BI$6,'Energy Prices'!$F$11:$CR$11,0))/100000,\"\")","v":""},{"$f":"IFERROR('Data Input - BAT'!BN84*INDEX('Energy Prices'!$F$19:$CR$24,MATCH($B94,'Energy Prices'!$C$19:$C$24,0),MATCH(Calc_BAT!BJ$6,'Energy Prices'!$F$11:$CR$11,0))/100000,\"\")","v":""},{"$f":"IFERROR('Data Input - BAT'!BO84*INDEX('Energy Prices'!$F$19:$CR$24,MATCH($B94,'Energy Prices'!$C$19:$C$24,0),MATCH(Calc_BAT!BK$6,'Energy Prices'!$F$11:$CR$11,0))/100000,\"\")","v":""},{"$f":"IFERROR('Data Input - BAT'!BP84*INDEX('Energy Prices'!$F$19:$CR$24,MATCH($B94,'Energy Prices'!$C$19:$C$24,0),MATCH(Calc_BAT!BL$6,'Energy Prices'!$F$11:$CR$11,0))/100000,\"\")","v":""},{"$f":"IFERROR('Data Input - BAT'!BQ84*INDEX('Energy Prices'!$F$19:$CR$24,MATCH($B94,'Energy Prices'!$C$19:$C$24,0),MATCH(Calc_BAT!BM$6,'Energy Prices'!$F$11:$CR$11,0))/100000,\"\")","v":""},{"$f":"IFERROR('Data Input - BAT'!BR84*INDEX('Energy Prices'!$F$19:$CR$24,MATCH($B94,'Energy Prices'!$C$19:$C$24,0),MATCH(Calc_BAT!BN$6,'Energy Prices'!$F$11:$CR$11,0))/100000,\"\")","v":""},{"$f":"IFERROR('Data Input - BAT'!BS84*INDEX('Energy Prices'!$F$19:$CR$24,MATCH($B94,'Energy Prices'!$C$19:$C$24,0),MATCH(Calc_BAT!BO$6,'Energy Prices'!$F$11:$CR$11,0))/100000,\"\")","v":""},{"$f":"IFERROR('Data Input - BAT'!BT84*INDEX('Energy Prices'!$F$19:$CR$24,MATCH($B94,'Energy Prices'!$C$19:$C$24,0),MATCH(Calc_BAT!BP$6,'Energy Prices'!$F$11:$CR$11,0))/100000,\"\")","v":""},{"$f":"IFERROR('Data Input - BAT'!BU84*INDEX('Energy Prices'!$F$19:$CR$24,MATCH($B94,'Energy Prices'!$C$19:$C$24,0),MATCH(Calc_BAT!BQ$6,'Energy Prices'!$F$11:$CR$11,0))/100000,\"\")","v":""},{"$f":"IFERROR('Data Input - BAT'!BV84*INDEX('Energy Prices'!$F$19:$CR$24,MATCH($B94,'Energy Prices'!$C$19:$C$24,0),MATCH(Calc_BAT!BR$6,'Energy Prices'!$F$11:$CR$11,0))/100000,\"\")","v":""},{"$f":"IFERROR('Data Input - BAT'!BW84*INDEX('Energy Prices'!$F$19:$CR$24,MATCH($B94,'Energy Prices'!$C$19:$C$24,0),MATCH(Calc_BAT!BS$6,'Energy Prices'!$F$11:$CR$11,0))/100000,\"\")","v":""},{"$f":"IFERROR('Data Input - BAT'!BX84*INDEX('Energy Prices'!$F$19:$CR$24,MATCH($B94,'Energy Prices'!$C$19:$C$24,0),MATCH(Calc_BAT!BT$6,'Energy Prices'!$F$11:$CR$11,0))/100000,\"\")","v":""},{"$f":"IFERROR('Data Input - BAT'!BY84*INDEX('Energy Prices'!$F$19:$CR$24,MATCH($B94,'Energy Prices'!$C$19:$C$24,0),MATCH(Calc_BAT!BU$6,'Energy Prices'!$F$11:$CR$11,0))/100000,\"\")","v":""},{"$f":"IFERROR('Data Input - BAT'!BZ84*INDEX('Energy Prices'!$F$19:$CR$24,MATCH($B94,'Energy Prices'!$C$19:$C$24,0),MATCH(Calc_BAT!BV$6,'Energy Prices'!$F$11:$CR$11,0))/100000,\"\")","v":""},{"$f":"IFERROR('Data Input - BAT'!CA84*INDEX('Energy Prices'!$F$19:$CR$24,MATCH($B94,'Energy Prices'!$C$19:$C$24,0),MATCH(Calc_BAT!BW$6,'Energy Prices'!$F$11:$CR$11,0))/100000,\"\")","v":""},{"$f":"IFERROR('Data Input - BAT'!CB84*INDEX('Energy Prices'!$F$19:$CR$24,MATCH($B94,'Energy Prices'!$C$19:$C$24,0),MATCH(Calc_BAT!BX$6,'Energy Prices'!$F$11:$CR$11,0))/100000,\"\")","v":""},{"$f":"IFERROR('Data Input - BAT'!CC84*INDEX('Energy Prices'!$F$19:$CR$24,MATCH($B94,'Energy Prices'!$C$19:$C$24,0),MATCH(Calc_BAT!BY$6,'Energy Prices'!$F$11:$CR$11,0))/100000,\"\")","v":""},{"$f":"IFERROR('Data Input - BAT'!CD84*INDEX('Energy Prices'!$F$19:$CR$24,MATCH($B94,'Energy Prices'!$C$19:$C$24,0),MATCH(Calc_BAT!BZ$6,'Energy Prices'!$F$11:$CR$11,0))/100000,\"\")","v":""},{"$f":"IFERROR('Data Input - BAT'!CE84*INDEX('Energy Prices'!$F$19:$CR$24,MATCH($B94,'Energy Prices'!$C$19:$C$24,0),MATCH(Calc_BAT!CA$6,'Energy Prices'!$F$11:$CR$11,0))/100000,\"\")","v":""},{"$f":"IFERROR('Data Input - BAT'!CF84*INDEX('Energy Prices'!$F$19:$CR$24,MATCH($B94,'Energy Prices'!$C$19:$C$24,0),MATCH(Calc_BAT!CB$6,'Energy Prices'!$F$11:$CR$11,0))/100000,\"\")","v":""},{"$f":"IFERROR('Data Input - BAT'!CG84*INDEX('Energy Prices'!$F$19:$CR$24,MATCH($B94,'Energy Prices'!$C$19:$C$24,0),MATCH(Calc_BAT!CC$6,'Energy Prices'!$F$11:$CR$11,0))/100000,\"\")","v":""},{"$f":"IFERROR('Data Input - BAT'!CH84*INDEX('Energy Prices'!$F$19:$CR$24,MATCH($B94,'Energy Prices'!$C$19:$C$24,0),MATCH(Calc_BAT!CD$6,'Energy Prices'!$F$11:$CR$11,0))/100000,\"\")","v":""},{"$f":"IFERROR('Data Input - BAT'!CI84*INDEX('Energy Prices'!$F$19:$CR$24,MATCH($B94,'Energy Prices'!$C$19:$C$24,0),MATCH(Calc_BAT!CE$6,'Energy Prices'!$F$11:$CR$11,0))/100000,\"\")","v":""},{"$f":"IFERROR('Data Input - BAT'!CJ84*INDEX('Energy Prices'!$F$19:$CR$24,MATCH($B94,'Energy Prices'!$C$19:$C$24,0),MATCH(Calc_BAT!CF$6,'Energy Prices'!$F$11:$CR$11,0))/100000,\"\")","v":""},{"$f":"IFERROR('Data Input - BAT'!CK84*INDEX('Energy Prices'!$F$19:$CR$24,MATCH($B94,'Energy Prices'!$C$19:$C$24,0),MATCH(Calc_BAT!CG$6,'Energy Prices'!$F$11:$CR$11,0))/100000,\"\")","v":""},{"$f":"IFERROR('Data Input - BAT'!CL84*INDEX('Energy Prices'!$F$19:$CR$24,MATCH($B94,'Energy Prices'!$C$19:$C$24,0),MATCH(Calc_BAT!CH$6,'Energy Prices'!$F$11:$CR$11,0))/100000,\"\")","v":""},{"$f":"IFERROR('Data Input - BAT'!CM84*INDEX('Energy Prices'!$F$19:$CR$24,MATCH($B94,'Energy Prices'!$C$19:$C$24,0),MATCH(Calc_BAT!CI$6,'Energy Prices'!$F$11:$CR$11,0))/100000,\"\")","v":""},{"$f":"IFERROR('Data Input - BAT'!CN84*INDEX('Energy Prices'!$F$19:$CR$24,MATCH($B94,'Energy Prices'!$C$19:$C$24,0),MATCH(Calc_BAT!CJ$6,'Energy Prices'!$F$11:$CR$11,0))/100000,\"\")","v":""},{"$f":"IFERROR('Data Input - BAT'!CO84*INDEX('Energy Prices'!$F$19:$CR$24,MATCH($B94,'Energy Prices'!$C$19:$C$24,0),MATCH(Calc_BAT!CK$6,'Energy Prices'!$F$11:$CR$11,0))/100000,\"\")","v":""},{"$f":"IFERROR('Data Input - BAT'!CP84*INDEX('Energy Prices'!$F$19:$CR$24,MATCH($B94,'Energy Prices'!$C$19:$C$24,0),MATCH(Calc_BAT!CL$6,'Energy Prices'!$F$11:$CR$11,0))/100000,\"\")","v":""},{"$f":"IFERROR('Data Input - BAT'!CQ84*INDEX('Energy Prices'!$F$19:$CR$24,MATCH($B94,'Energy Prices'!$C$19:$C$24,0),MATCH(Calc_BAT!CM$6,'Energy Prices'!$F$11:$CR$11,0))/100000,\"\")","v":""},{"$f":"IFERROR('Data Input - BAT'!CR84*INDEX('Energy Prices'!$F$19:$CR$24,MATCH($B94,'Energy Prices'!$C$19:$C$24,0),MATCH(Calc_BAT!CN$6,'Energy Prices'!$F$11:$CR$11,0))/100000,\"\")","v":""},{"$f":"IFERROR('Data Input - BAT'!CS84*INDEX('Energy Prices'!$F$19:$CR$24,MATCH($B94,'Energy Prices'!$C$19:$C$24,0),MATCH(Calc_BAT!CO$6,'Energy Prices'!$F$11:$CR$11,0))/100000,\"\")","v":""},{"$f":"IFERROR('Data Input - BAT'!CT84*INDEX('Energy Prices'!$F$19:$CR$24,MATCH($B94,'Energy Prices'!$C$19:$C$24,0),MATCH(Calc_BAT!CP$6,'Energy Prices'!$F$11:$CR$11,0))/100000,\"\")","v":""},{"$f":"IFERROR('Data Input - BAT'!CU84*INDEX('Energy Prices'!$F$19:$CR$24,MATCH($B94,'Energy Prices'!$C$19:$C$24,0),MATCH(Calc_BAT!CQ$6,'Energy Prices'!$F$11:$CR$11,0))/100000,\"\")","v":""},{"$f":"IFERROR('Data Input - BAT'!CV84*INDEX('Energy Prices'!$F$19:$CR$24,MATCH($B94,'Energy Prices'!$C$19:$C$24,0),MATCH(Calc_BAT!CR$6,'Energy Prices'!$F$11:$CR$11,0))/100000,\"\")","v":""},{"$f":"IFERROR('Data Input - BAT'!CW84*INDEX('Energy Prices'!$F$19:$CR$24,MATCH($B94,'Energy Prices'!$C$19:$C$24,0),MATCH(Calc_BAT!CS$6,'Energy Prices'!$F$11:$CR$11,0))/100000,\"\")","v":""},{"$f":"IFERROR('Data Input - BAT'!CX84*INDEX('Energy Prices'!$F$19:$CR$24,MATCH($B94,'Energy Prices'!$C$19:$C$24,0),MATCH(Calc_BAT!CT$6,'Energy Prices'!$F$11:$CR$11,0))/100000,\"\")","v":""},{"$f":"IFERROR('Data Input - BAT'!CY84*INDEX('Energy Prices'!$F$19:$CR$24,MATCH($B94,'Energy Prices'!$C$19:$C$24,0),MATCH(Calc_BAT!CU$6,'Energy Prices'!$F$11:$CR$11,0))/100000,\"\")","v":""},{"$f":"IFERROR('Data Input - BAT'!CZ84*INDEX('Energy Prices'!$F$19:$CR$24,MATCH($B94,'Energy Prices'!$C$19:$C$24,0),MATCH(Calc_BAT!CV$6,'Energy Prices'!$F$11:$CR$11,0))/100000,\"\")","v":""},{"$f":"IFERROR('Data Input - BAT'!DA84*INDEX('Energy Prices'!$F$19:$CR$24,MATCH($B94,'Energy Prices'!$C$19:$C$24,0),MATCH(Calc_BAT!CW$6,'Energy Prices'!$F$11:$CR$11,0))/100000,\"\")","v":""},{"$f":"IFERROR('Data Input - BAT'!DB84*INDEX('Energy Prices'!$F$19:$CR$24,MATCH($B94,'Energy Prices'!$C$19:$C$24,0),MATCH(Calc_BAT!CX$6,'Energy Prices'!$F$11:$CR$11,0))/100000,\"\")","v":""},{"$f":"IFERROR('Data Input - BAT'!DC84*INDEX('Energy Prices'!$F$19:$CR$24,MATCH($B94,'Energy Prices'!$C$19:$C$24,0),MATCH(Calc_BAT!CY$6,'Energy Prices'!$F$11:$CR$11,0))/100000,\"\")","v":""}]
[null,"Natural Gas","£000's",{"$f":"IFERROR('Data Input - BAT'!H85*INDEX('Energy Prices'!$F$19:$CR$24,MATCH($B95,'Energy Prices'!$C$19:$C$24,0),MATCH(Calc_BAT!D$6,'Energy Prices'!$F$11:$CR$11,0))/100000,\"\")","v":0},{"$f":"IFERROR('Data Input - BAT'!I85*INDEX('Energy Prices'!$F$19:$CR$24,MATCH($B95,'Energy Prices'!$C$19:$C$24,0),MATCH(Calc_BAT!E$6,'Energy Prices'!$F$11:$CR$11,0))/100000,\"\")","v":0},{"$f":"IFERROR('Data Input - BAT'!J85*INDEX('Energy Prices'!$F$19:$CR$24,MATCH($B95,'Energy Prices'!$C$19:$C$24,0),MATCH(Calc_BAT!F$6,'Energy Prices'!$F$11:$CR$11,0))/100000,\"\")","v":0},{"$f":"IFERROR('Data Input - BAT'!K85*INDEX('Energy Prices'!$F$19:$CR$24,MATCH($B95,'Energy Prices'!$C$19:$C$24,0),MATCH(Calc_BAT!G$6,'Energy Prices'!$F$11:$CR$11,0))/100000,\"\")","v":0},{"$f":"IFERROR('Data Input - BAT'!L85*INDEX('Energy Prices'!$F$19:$CR$24,MATCH($B95,'Energy Prices'!$C$19:$C$24,0),MATCH(Calc_BAT!H$6,'Energy Prices'!$F$11:$CR$11,0))/100000,\"\")","v":0},{"$f":"IFERROR('Data Input - BAT'!M85*INDEX('Energy Prices'!$F$19:$CR$24,MATCH($B95,'Energy Prices'!$C$19:$C$24,0),MATCH(Calc_BAT!I$6,'Energy Prices'!$F$11:$CR$11,0))/100000,\"\")","v":0},{"$f":"IFERROR('Data Input - BAT'!N85*INDEX('Energy Prices'!$F$19:$CR$24,MATCH($B95,'Energy Prices'!$C$19:$C$24,0),MATCH(Calc_BAT!J$6,'Energy Prices'!$F$11:$CR$11,0))/100000,\"\")","v":0},{"$f":"IFERROR('Data Input - BAT'!O85*INDEX('Energy Prices'!$F$19:$CR$24,MATCH($B95,'Energy Prices'!$C$19:$C$24,0),MATCH(Calc_BAT!K$6,'Energy Prices'!$F$11:$CR$11,0))/100000,\"\")","v":0},{"$f":"IFERROR('Data Input - BAT'!P85*INDEX('Energy Prices'!$F$19:$CR$24,MATCH($B95,'Energy Prices'!$C$19:$C$24,0),MATCH(Calc_BAT!L$6,'Energy Prices'!$F$11:$CR$11,0))/100000,\"\")","v":0},{"$f":"IFERROR('Data Input - BAT'!Q85*INDEX('Energy Prices'!$F$19:$CR$24,MATCH($B95,'Energy Prices'!$C$19:$C$24,0),MATCH(Calc_BAT!M$6,'Energy Prices'!$F$11:$CR$11,0))/100000,\"\")","v":0},{"$f":"IFERROR('Data Input - BAT'!R85*INDEX('Energy Prices'!$F$19:$CR$24,MATCH($B95,'Energy Prices'!$C$19:$C$24,0),MATCH(Calc_BAT!N$6,'Energy Prices'!$F$11:$CR$11,0))/100000,\"\")","v":0},{"$f":"IFERROR('Data Input - BAT'!S85*INDEX('Energy Prices'!$F$19:$CR$24,MATCH($B95,'Energy Prices'!$C$19:$C$24,0),MATCH(Calc_BAT!O$6,'Energy Prices'!$F$11:$CR$11,0))/100000,\"\")","v":0},{"$f":"IFERROR('Data Input - BAT'!T85*INDEX('Energy Prices'!$F$19:$CR$24,MATCH($B95,'Energy Prices'!$C$19:$C$24,0),MATCH(Calc_BAT!P$6,'Energy Prices'!$F$11:$CR$11,0))/100000,\"\")","v":0},{"$f":"IFERROR('Data Input - BAT'!U85*INDEX('Energy Prices'!$F$19:$CR$24,MATCH($B95,'Energy Prices'!$C$19:$C$24,0),MATCH(Calc_BAT!Q$6,'Energy Prices'!$F$11:$CR$11,0))/100000,\"\")","v":0},{"$f":"IFERROR('Data Input - BAT'!V85*INDEX('Energy Prices'!$F$19:$CR$24,MATCH($B95,'Energy Prices'!$C$19:$C$24,0),MATCH(Calc_BAT!R$6,'Energy Prices'!$F$11:$CR$11,0))/100000,\"\")","v":0},{"$f":"IFERROR('Data Input - BAT'!W85*INDEX('Energy Prices'!$F$19:$CR$24,MATCH($B95,'Energy Prices'!$C$19:$C$24,0),MATCH(Calc_BAT!S$6,'Energy Prices'!$F$11:$CR$11,0))/100000,\"\")","v":0},{"$f":"IFERROR('Data Input - BAT'!X85*INDEX('Energy Prices'!$F$19:$CR$24,MATCH($B95,'Energy Prices'!$C$19:$C$24,0),MATCH(Calc_BAT!T$6,'Energy Prices'!$F$11:$CR$11,0))/100000,\"\")","v":0},{"$f":"IFERROR('Data Input - BAT'!Y85*INDEX('Energy Prices'!$F$19:$CR$24,MATCH($B95,'Energy Prices'!$C$19:$C$24,0),MATCH(Calc_BAT!U$6,'Energy Prices'!$F$11:$CR$11,0))/100000,\"\")","v":0},{"$f":"IFERROR('Data Input - BAT'!Z85*INDEX('Energy Prices'!$F$19:$CR$24,MATCH($B95,'Energy Prices'!$C$19:$C$24,0),MATCH(Calc_BAT!V$6,'Energy Prices'!$F$11:$CR$11,0))/100000,\"\")","v":0},{"$f":"IFERROR('Data Input - BAT'!AA85*INDEX('Energy Prices'!$F$19:$CR$24,MATCH($B95,'Energy Prices'!$C$19:$C$24,0),MATCH(Calc_BAT!W$6,'Energy Prices'!$F$11:$CR$11,0))/100000,\"\")","v":0},{"$f":"IFERROR('Data Input - BAT'!AB85*INDEX('Energy Prices'!$F$19:$CR$24,MATCH($B95,'Energy Prices'!$C$19:$C$24,0),MATCH(Calc_BAT!X$6,'Energy Prices'!$F$11:$CR$11,0))/100000,\"\")","v":0},{"$f":"IFERROR('Data Input - BAT'!AC85*INDEX('Energy Prices'!$F$19:$CR$24,MATCH($B95,'Energy Prices'!$C$19:$C$24,0),MATCH(Calc_BAT!Y$6,'Energy Prices'!$F$11:$CR$11,0))/100000,\"\")","v":0},{"$f":"IFERROR('Data Input - BAT'!AD85*INDEX('Energy Prices'!$F$19:$CR$24,MATCH($B95,'Energy Prices'!$C$19:$C$24,0),MATCH(Calc_BAT!Z$6,'Energy Prices'!$F$11:$CR$11,0))/100000,\"\")","v":0},{"$f":"IFERROR('Data Input - BAT'!AE85*INDEX('Energy Prices'!$F$19:$CR$24,MATCH($B95,'Energy Prices'!$C$19:$C$24,0),MATCH(Calc_BAT!AA$6,'Energy Prices'!$F$11:$CR$11,0))/100000,\"\")","v":0},{"$f":"IFERROR('Data Input - BAT'!AF85*INDEX('Energy Prices'!$F$19:$CR$24,MATCH($B95,'Energy Prices'!$C$19:$C$24,0),MATCH(Calc_BAT!AB$6,'Energy Prices'!$F$11:$CR$11,0))/100000,\"\")","v":0},{"$f":"IFERROR('Data Input - BAT'!AG85*INDEX('Energy Prices'!$F$19:$CR$24,MATCH($B95,'Energy Prices'!$C$19:$C$24,0),MATCH(Calc_BAT!AC$6,'Energy Prices'!$F$11:$CR$11,0))/100000,\"\")","v":0},{"$f":"IFERROR('Data Input - BAT'!AH85*INDEX('Energy Prices'!$F$19:$CR$24,MATCH($B95,'Energy Prices'!$C$19:$C$24,0),MATCH(Calc_BAT!AD$6,'Energy Prices'!$F$11:$CR$11,0))/100000,\"\")","v":0},{"$f":"IFERROR('Data Input - BAT'!AI85*INDEX('Energy Prices'!$F$19:$CR$24,MATCH($B95,'Energy Prices'!$C$19:$C$24,0),MATCH(Calc_BAT!AE$6,'Energy Prices'!$F$11:$CR$11,0))/100000,\"\")","v":0},{"$f":"IFERROR('Data Input - BAT'!AJ85*INDEX('Energy Prices'!$F$19:$CR$24,MATCH($B95,'Energy Prices'!$C$19:$C$24,0),MATCH(Calc_BAT!AF$6,'Energy Prices'!$F$11:$CR$11,0))/100000,\"\")","v":0},{"$f":"IFERROR('Data Input - BAT'!AK85*INDEX('Energy Prices'!$F$19:$CR$24,MATCH($B95,'Energy Prices'!$C$19:$C$24,0),MATCH(Calc_BAT!AG$6,'Energy Prices'!$F$11:$CR$11,0))/100000,\"\")","v":0},{"$f":"IFERROR('Data Input - BAT'!AL85*INDEX('Energy Prices'!$F$19:$CR$24,MATCH($B95,'Energy Prices'!$C$19:$C$24,0),MATCH(Calc_BAT!AH$6,'Energy Prices'!$F$11:$CR$11,0))/100000,\"\")","v":0},{"$f":"IFERROR('Data Input - BAT'!AM85*INDEX('Energy Prices'!$F$19:$CR$24,MATCH($B95,'Energy Prices'!$C$19:$C$24,0),MATCH(Calc_BAT!AI$6,'Energy Prices'!$F$11:$CR$11,0))/100000,\"\")","v":""},{"$f":"IFERROR('Data Input - BAT'!AN85*INDEX('Energy Prices'!$F$19:$CR$24,MATCH($B95,'Energy Prices'!$C$19:$C$24,0),MATCH(Calc_BAT!AJ$6,'Energy Prices'!$F$11:$CR$11,0))/100000,\"\")","v":""},{"$f":"IFERROR('Data Input - BAT'!AO85*INDEX('Energy Prices'!$F$19:$CR$24,MATCH($B95,'Energy Prices'!$C$19:$C$24,0),MATCH(Calc_BAT!AK$6,'Energy Prices'!$F$11:$CR$11,0))/100000,\"\")","v":""},{"$f":"IFERROR('Data Input - BAT'!AP85*INDEX('Energy Prices'!$F$19:$CR$24,MATCH($B95,'Energy Prices'!$C$19:$C$24,0),MATCH(Calc_BAT!AL$6,'Energy Prices'!$F$11:$CR$11,0))/100000,\"\")","v":""},{"$f":"IFERROR('Data Input - BAT'!AQ85*INDEX('Energy Prices'!$F$19:$CR$24,MATCH($B95,'Energy Prices'!$C$19:$C$24,0),MATCH(Calc_BAT!AM$6,'Energy Prices'!$F$11:$CR$11,0))/100000,\"\")","v":""},{"$f":"IFERROR('Data Input - BAT'!AR85*INDEX('Energy Prices'!$F$19:$CR$24,MATCH($B95,'Energy Prices'!$C$19:$C$24,0),MATCH(Calc_BAT!AN$6,'Energy Prices'!$F$11:$CR$11,0))/100000,\"\")","v":""},{"$f":"IFERROR('Data Input - BAT'!AS85*INDEX('Energy Prices'!$F$19:$CR$24,MATCH($B95,'Energy Prices'!$C$19:$C$24,0),MATCH(Calc_BAT!AO$6,'Energy Prices'!$F$11:$CR$11,0))/100000,\"\")","v":""},{"$f":"IFERROR('Data Input - BAT'!AT85*INDEX('Energy Prices'!$F$19:$CR$24,MATCH($B95,'Energy Prices'!$C$19:$C$24,0),MATCH(Calc_BAT!AP$6,'Energy Prices'!$F$11:$CR$11,0))/100000,\"\")","v":""},{"$f":"IFERROR('Data Input - BAT'!AU85*INDEX('Energy Prices'!$F$19:$CR$24,MATCH($B95,'Energy Prices'!$C$19:$C$24,0),MATCH(Calc_BAT!AQ$6,'Energy Prices'!$F$11:$CR$11,0))/100000,\"\")","v":""},{"$f":"IFERROR('Data Input - BAT'!AV85*INDEX('Energy Prices'!$F$19:$CR$24,MATCH($B95,'Energy Prices'!$C$19:$C$24,0),MATCH(Calc_BAT!AR$6,'Energy Prices'!$F$11:$CR$11,0))/100000,\"\")","v":""},{"$f":"IFERROR('Data Input - BAT'!AW85*INDEX('Energy Prices'!$F$19:$CR$24,MATCH($B95,'Energy Prices'!$C$19:$C$24,0),MATCH(Calc_BAT!AS$6,'Energy Prices'!$F$11:$CR$11,0))/100000,\"\")","v":""},{"$f":"IFERROR('Data Input - BAT'!AX85*INDEX('Energy Prices'!$F$19:$CR$24,MATCH($B95,'Energy Prices'!$C$19:$C$24,0),MATCH(Calc_BAT!AT$6,'Energy Prices'!$F$11:$CR$11,0))/100000,\"\")","v":""},{"$f":"IFERROR('Data Input - BAT'!AY85*INDEX('Energy Prices'!$F$19:$CR$24,MATCH($B95,'Energy Prices'!$C$19:$C$24,0),MATCH(Calc_BAT!AU$6,'Energy Prices'!$F$11:$CR$11,0))/100000,\"\")","v":""},{"$f":"IFERROR('Data Input - BAT'!AZ85*INDEX('Energy Prices'!$F$19:$CR$24,MATCH($B95,'Energy Prices'!$C$19:$C$24,0),MATCH(Calc_BAT!AV$6,'Energy Prices'!$F$11:$CR$11,0))/100000,\"\")","v":""},{"$f":"IFERROR('Data Input - BAT'!BA85*INDEX('Energy Prices'!$F$19:$CR$24,MATCH($B95,'Energy Prices'!$C$19:$C$24,0),MATCH(Calc_BAT!AW$6,'Energy Prices'!$F$11:$CR$11,0))/100000,\"\")","v":""},{"$f":"IFERROR('Data Input - BAT'!BB85*INDEX('Energy Prices'!$F$19:$CR$24,MATCH($B95,'Energy Prices'!$C$19:$C$24,0),MATCH(Calc_BAT!AX$6,'Energy Prices'!$F$11:$CR$11,0))/100000,\"\")","v":""},{"$f":"IFERROR('Data Input - BAT'!BC85*INDEX('Energy Prices'!$F$19:$CR$24,MATCH($B95,'Energy Prices'!$C$19:$C$24,0),MATCH(Calc_BAT!AY$6,'Energy Prices'!$F$11:$CR$11,0))/100000,\"\")","v":""},{"$f":"IFERROR('Data Input - BAT'!BD85*INDEX('Energy Prices'!$F$19:$CR$24,MATCH($B95,'Energy Prices'!$C$19:$C$24,0),MATCH(Calc_BAT!AZ$6,'Energy Prices'!$F$11:$CR$11,0))/100000,\"\")","v":""},{"$f":"IFERROR('Data Input - BAT'!BE85*INDEX('Energy Prices'!$F$19:$CR$24,MATCH($B95,'Energy Prices'!$C$19:$C$24,0),MATCH(Calc_BAT!BA$6,'Energy Prices'!$F$11:$CR$11,0))/100000,\"\")","v":""},{"$f":"IFERROR('Data Input - BAT'!BF85*INDEX('Energy Prices'!$F$19:$CR$24,MATCH($B95,'Energy Prices'!$C$19:$C$24,0),MATCH(Calc_BAT!BB$6,'Energy Prices'!$F$11:$CR$11,0))/100000,\"\")","v":""},{"$f":"IFERROR('Data Input - BAT'!BG85*INDEX('Energy Prices'!$F$19:$CR$24,MATCH($B95,'Energy Prices'!$C$19:$C$24,0),MATCH(Calc_BAT!BC$6,'Energy Prices'!$F$11:$CR$11,0))/100000,\"\")","v":""},{"$f":"IFERROR('Data Input - BAT'!BH85*INDEX('Energy Prices'!$F$19:$CR$24,MATCH($B95,'Energy Prices'!$C$19:$C$24,0),MATCH(Calc_BAT!BD$6,'Energy Prices'!$F$11:$CR$11,0))/100000,\"\")","v":""},{"$f":"IFERROR('Data Input - BAT'!BI85*INDEX('Energy Prices'!$F$19:$CR$24,MATCH($B95,'Energy Prices'!$C$19:$C$24,0),MATCH(Calc_BAT!BE$6,'Energy Prices'!$F$11:$CR$11,0))/100000,\"\")","v":""},{"$f":"IFERROR('Data Input - BAT'!BJ85*INDEX('Energy Prices'!$F$19:$CR$24,MATCH($B95,'Energy Prices'!$C$19:$C$24,0),MATCH(Calc_BAT!BF$6,'Energy Prices'!$F$11:$CR$11,0))/100000,\"\")","v":""},{"$f":"IFERROR('Data Input - BAT'!BK85*INDEX('Energy Prices'!$F$19:$CR$24,MATCH($B95,'Energy Prices'!$C$19:$C$24,0),MATCH(Calc_BAT!BG$6,'Energy Prices'!$F$11:$CR$11,0))/100000,\"\")","v":""},{"$f":"IFERROR('Data Input - BAT'!BL85*INDEX('Energy Prices'!$F$19:$CR$24,MATCH($B95,'Energy Prices'!$C$19:$C$24,0),MATCH(Calc_BAT!BH$6,'Energy Prices'!$F$11:$CR$11,0))/100000,\"\")","v":""},{"$f":"IFERROR('Data Input - BAT'!BM85*INDEX('Energy Prices'!$F$19:$CR$24,MATCH($B95,'Energy Prices'!$C$19:$C$24,0),MATCH(Calc_BAT!BI$6,'Energy Prices'!$F$11:$CR$11,0))/100000,\"\")","v":""},{"$f":"IFERROR('Data Input - BAT'!BN85*INDEX('Energy Prices'!$F$19:$CR$24,MATCH($B95,'Energy Prices'!$C$19:$C$24,0),MATCH(Calc_BAT!BJ$6,'Energy Prices'!$F$11:$CR$11,0))/100000,\"\")","v":""},{"$f":"IFERROR('Data Input - BAT'!BO85*INDEX('Energy Prices'!$F$19:$CR$24,MATCH($B95,'Energy Prices'!$C$19:$C$24,0),MATCH(Calc_BAT!BK$6,'Energy Prices'!$F$11:$CR$11,0))/100000,\"\")","v":""},{"$f":"IFERROR('Data Input - BAT'!BP85*INDEX('Energy Prices'!$F$19:$CR$24,MATCH($B95,'Energy Prices'!$C$19:$C$24,0),MATCH(Calc_BAT!BL$6,'Energy Prices'!$F$11:$CR$11,0))/100000,\"\")","v":""},{"$f":"IFERROR('Data Input - BAT'!BQ85*INDEX('Energy Prices'!$F$19:$CR$24,MATCH($B95,'Energy Prices'!$C$19:$C$24,0),MATCH(Calc_BAT!BM$6,'Energy Prices'!$F$11:$CR$11,0))/100000,\"\")","v":""},{"$f":"IFERROR('Data Input - BAT'!BR85*INDEX('Energy Prices'!$F$19:$CR$24,MATCH($B95,'Energy Prices'!$C$19:$C$24,0),MATCH(Calc_BAT!BN$6,'Energy Prices'!$F$11:$CR$11,0))/100000,\"\")","v":""},{"$f":"IFERROR('Data Input - BAT'!BS85*INDEX('Energy Prices'!$F$19:$CR$24,MATCH($B95,'Energy Prices'!$C$19:$C$24,0),MATCH(Calc_BAT!BO$6,'Energy Prices'!$F$11:$CR$11,0))/100000,\"\")","v":""},{"$f":"IFERROR('Data Input - BAT'!BT85*INDEX('Energy Prices'!$F$19:$CR$24,MATCH($B95,'Energy Prices'!$C$19:$C$24,0),MATCH(Calc_BAT!BP$6,'Energy Prices'!$F$11:$CR$11,0))/100000,\"\")","v":""},{"$f":"IFERROR('Data Input - BAT'!BU85*INDEX('Energy Prices'!$F$19:$CR$24,MATCH($B95,'Energy Prices'!$C$19:$C$24,0),MATCH(Calc_BAT!BQ$6,'Energy Prices'!$F$11:$CR$11,0))/100000,\"\")","v":""},{"$f":"IFERROR('Data Input - BAT'!BV85*INDEX('Energy Prices'!$F$19:$CR$24,MATCH($B95,'Energy Prices'!$C$19:$C$24,0),MATCH(Calc_BAT!BR$6,'Energy Prices'!$F$11:$CR$11,0))/100000,\"\")","v":""},{"$f":"IFERROR('Data Input - BAT'!BW85*INDEX('Energy Prices'!$F$19:$CR$24,MATCH($B95,'Energy Prices'!$C$19:$C$24,0),MATCH(Calc_BAT!BS$6,'Energy Prices'!$F$11:$CR$11,0))/100000,\"\")","v":""},{"$f":"IFERROR('Data Input - BAT'!BX85*INDEX('Energy Prices'!$F$19:$CR$24,MATCH($B95,'Energy Prices'!$C$19:$C$24,0),MATCH(Calc_BAT!BT$6,'Energy Prices'!$F$11:$CR$11,0))/100000,\"\")","v":""},{"$f":"IFERROR('Data Input - BAT'!BY85*INDEX('Energy Prices'!$F$19:$CR$24,MATCH($B95,'Energy Prices'!$C$19:$C$24,0),MATCH(Calc_BAT!BU$6,'Energy Prices'!$F$11:$CR$11,0))/100000,\"\")","v":""},{"$f":"IFERROR('Data Input - BAT'!BZ85*INDEX('Energy Prices'!$F$19:$CR$24,MATCH($B95,'Energy Prices'!$C$19:$C$24,0),MATCH(Calc_BAT!BV$6,'Energy Prices'!$F$11:$CR$11,0))/100000,\"\")","v":""},{"$f":"IFERROR('Data Input - BAT'!CA85*INDEX('Energy Prices'!$F$19:$CR$24,MATCH($B95,'Energy Prices'!$C$19:$C$24,0),MATCH(Calc_BAT!BW$6,'Energy Prices'!$F$11:$CR$11,0))/100000,\"\")","v":""},{"$f":"IFERROR('Data Input - BAT'!CB85*INDEX('Energy Prices'!$F$19:$CR$24,MATCH($B95,'Energy Prices'!$C$19:$C$24,0),MATCH(Calc_BAT!BX$6,'Energy Prices'!$F$11:$CR$11,0))/100000,\"\")","v":""},{"$f":"IFERROR('Data Input - BAT'!CC85*INDEX('Energy Prices'!$F$19:$CR$24,MATCH($B95,'Energy Prices'!$C$19:$C$24,0),MATCH(Calc_BAT!BY$6,'Energy Prices'!$F$11:$CR$11,0))/100000,\"\")","v":""},{"$f":"IFERROR('Data Input - BAT'!CD85*INDEX('Energy Prices'!$F$19:$CR$24,MATCH($B95,'Energy Prices'!$C$19:$C$24,0),MATCH(Calc_BAT!BZ$6,'Energy Prices'!$F$11:$CR$11,0))/100000,\"\")","v":""},{"$f":"IFERROR('Data Input - BAT'!CE85*INDEX('Energy Prices'!$F$19:$CR$24,MATCH($B95,'Energy Prices'!$C$19:$C$24,0),MATCH(Calc_BAT!CA$6,'Energy Prices'!$F$11:$CR$11,0))/100000,\"\")","v":""},{"$f":"IFERROR('Data Input - BAT'!CF85*INDEX('Energy Prices'!$F$19:$CR$24,MATCH($B95,'Energy Prices'!$C$19:$C$24,0),MATCH(Calc_BAT!CB$6,'Energy Prices'!$F$11:$CR$11,0))/100000,\"\")","v":""},{"$f":"IFERROR('Data Input - BAT'!CG85*INDEX('Energy Prices'!$F$19:$CR$24,MATCH($B95,'Energy Prices'!$C$19:$C$24,0),MATCH(Calc_BAT!CC$6,'Energy Prices'!$F$11:$CR$11,0))/100000,\"\")","v":""},{"$f":"IFERROR('Data Input - BAT'!CH85*INDEX('Energy Prices'!$F$19:$CR$24,MATCH($B95,'Energy Prices'!$C$19:$C$24,0),MATCH(Calc_BAT!CD$6,'Energy Prices'!$F$11:$CR$11,0))/100000,\"\")","v":""},{"$f":"IFERROR('Data Input - BAT'!CI85*INDEX('Energy Prices'!$F$19:$CR$24,MATCH($B95,'Energy Prices'!$C$19:$C$24,0),MATCH(Calc_BAT!CE$6,'Energy Prices'!$F$11:$CR$11,0))/100000,\"\")","v":""},{"$f":"IFERROR('Data Input - BAT'!CJ85*INDEX('Energy Prices'!$F$19:$CR$24,MATCH($B95,'Energy Prices'!$C$19:$C$24,0),MATCH(Calc_BAT!CF$6,'Energy Prices'!$F$11:$CR$11,0))/100000,\"\")","v":""},{"$f":"IFERROR('Data Input - BAT'!CK85*INDEX('Energy Prices'!$F$19:$CR$24,MATCH($B95,'Energy Prices'!$C$19:$C$24,0),MATCH(Calc_BAT!CG$6,'Energy Prices'!$F$11:$CR$11,0))/100000,\"\")","v":""},{"$f":"IFERROR('Data Input - BAT'!CL85*INDEX('Energy Prices'!$F$19:$CR$24,MATCH($B95,'Energy Prices'!$C$19:$C$24,0),MATCH(Calc_BAT!CH$6,'Energy Prices'!$F$11:$CR$11,0))/100000,\"\")","v":""},{"$f":"IFERROR('Data Input - BAT'!CM85*INDEX('Energy Prices'!$F$19:$CR$24,MATCH($B95,'Energy Prices'!$C$19:$C$24,0),MATCH(Calc_BAT!CI$6,'Energy Prices'!$F$11:$CR$11,0))/100000,\"\")","v":""},{"$f":"IFERROR('Data Input - BAT'!CN85*INDEX('Energy Prices'!$F$19:$CR$24,MATCH($B95,'Energy Prices'!$C$19:$C$24,0),MATCH(Calc_BAT!CJ$6,'Energy Prices'!$F$11:$CR$11,0))/100000,\"\")","v":""},{"$f":"IFERROR('Data Input - BAT'!CO85*INDEX('Energy Prices'!$F$19:$CR$24,MATCH($B95,'Energy Prices'!$C$19:$C$24,0),MATCH(Calc_BAT!CK$6,'Energy Prices'!$F$11:$CR$11,0))/100000,\"\")","v":""},{"$f":"IFERROR('Data Input - BAT'!CP85*INDEX('Energy Prices'!$F$19:$CR$24,MATCH($B95,'Energy Prices'!$C$19:$C$24,0),MATCH(Calc_BAT!CL$6,'Energy Prices'!$F$11:$CR$11,0))/100000,\"\")","v":""},{"$f":"IFERROR('Data Input - BAT'!CQ85*INDEX('Energy Prices'!$F$19:$CR$24,MATCH($B95,'Energy Prices'!$C$19:$C$24,0),MATCH(Calc_BAT!CM$6,'Energy Prices'!$F$11:$CR$11,0))/100000,\"\")","v":""},{"$f":"IFERROR('Data Input - BAT'!CR85*INDEX('Energy Prices'!$F$19:$CR$24,MATCH($B95,'Energy Prices'!$C$19:$C$24,0),MATCH(Calc_BAT!CN$6,'Energy Prices'!$F$11:$CR$11,0))/100000,\"\")","v":""},{"$f":"IFERROR('Data Input - BAT'!CS85*INDEX('Energy Prices'!$F$19:$CR$24,MATCH($B95,'Energy Prices'!$C$19:$C$24,0),MATCH(Calc_BAT!CO$6,'Energy Prices'!$F$11:$CR$11,0))/100000,\"\")","v":""},{"$f":"IFERROR('Data Input - BAT'!CT85*INDEX('Energy Prices'!$F$19:$CR$24,MATCH($B95,'Energy Prices'!$C$19:$C$24,0),MATCH(Calc_BAT!CP$6,'Energy Prices'!$F$11:$CR$11,0))/100000,\"\")","v":""},{"$f":"IFERROR('Data Input - BAT'!CU85*INDEX('Energy Prices'!$F$19:$CR$24,MATCH($B95,'Energy Prices'!$C$19:$C$24,0),MATCH(Calc_BAT!CQ$6,'Energy Prices'!$F$11:$CR$11,0))/100000,\"\")","v":""},{"$f":"IFERROR('Data Input - BAT'!CV85*INDEX('Energy Prices'!$F$19:$CR$24,MATCH($B95,'Energy Prices'!$C$19:$C$24,0),MATCH(Calc_BAT!CR$6,'Energy Prices'!$F$11:$CR$11,0))/100000,\"\")","v":""},{"$f":"IFERROR('Data Input - BAT'!CW85*INDEX('Energy Prices'!$F$19:$CR$24,MATCH($B95,'Energy Prices'!$C$19:$C$24,0),MATCH(Calc_BAT!CS$6,'Energy Prices'!$F$11:$CR$11,0))/100000,\"\")","v":""},{"$f":"IFERROR('Data Input - BAT'!CX85*INDEX('Energy Prices'!$F$19:$CR$24,MATCH($B95,'Energy Prices'!$C$19:$C$24,0),MATCH(Calc_BAT!CT$6,'Energy Prices'!$F$11:$CR$11,0))/100000,\"\")","v":""},{"$f":"IFERROR('Data Input - BAT'!CY85*INDEX('Energy Prices'!$F$19:$CR$24,MATCH($B95,'Energy Prices'!$C$19:$C$24,0),MATCH(Calc_BAT!CU$6,'Energy Prices'!$F$11:$CR$11,0))/100000,\"\")","v":""},{"$f":"IFERROR('Data Input - BAT'!CZ85*INDEX('Energy Prices'!$F$19:$CR$24,MATCH($B95,'Energy Prices'!$C$19:$C$24,0),MATCH(Calc_BAT!CV$6,'Energy Prices'!$F$11:$CR$11,0))/100000,\"\")","v":""},{"$f":"IFERROR('Data Input - BAT'!DA85*INDEX('Energy Prices'!$F$19:$CR$24,MATCH($B95,'Energy Prices'!$C$19:$C$24,0),MATCH(Calc_BAT!CW$6,'Energy Prices'!$F$11:$CR$11,0))/100000,\"\")","v":""},{"$f":"IFERROR('Data Input - BAT'!DB85*INDEX('Energy Prices'!$F$19:$CR$24,MATCH($B95,'Energy Prices'!$C$19:$C$24,0),MATCH(Calc_BAT!CX$6,'Energy Prices'!$F$11:$CR$11,0))/100000,\"\")","v":""},{"$f":"IFERROR('Data Input - BAT'!DC85*INDEX('Energy Prices'!$F$19:$CR$24,MATCH($B95,'Energy Prices'!$C$19:$C$24,0),MATCH(Calc_BAT!CY$6,'Energy Prices'!$F$11:$CR$11,0))/100000,\"\")","v":""}]
[null,"Coal","£000's",{"$f":"IFERROR('Data Input - BAT'!H86*INDEX('Energy Prices'!$F$19:$CR$24,MATCH($B96,'Energy Prices'!$C$19:$C$24,0),MATCH(Calc_BAT!D$6,'Energy Prices'!$F$11:$CR$11,0))/100000,\"\")","v":759.63719790738185},{"$f":"IFERROR('Data Input - BAT'!I86*INDEX('Energy Prices'!$F$19:$CR$24,MATCH($B96,'Energy Prices'!$C$19:$C$24,0),MATCH(Calc_BAT!E$6,'Energy Prices'!$F$11:$CR$11,0))/100000,\"\")","v":795.46900458389712},{"$f":"IFERROR('Data Input - BAT'!J86*INDEX('Energy Prices'!$F$19:$CR$24,MATCH($B96,'Energy Prices'!$C$19:$C$24,0),MATCH(Calc_BAT!F$6,'Energy Prices'!$F$11:$CR$11,0))/100000,\"\")","v":831.30491866935665},{"$f":"IFERROR('Data Input - BAT'!K86*INDEX('Energy Prices'!$F$19:$CR$24,MATCH($B96,'Energy Prices'!$C$19:$C$24,0),MATCH(Calc_BAT!G$6,'Energy Prices'!$F$11:$CR$11,0))/100000,\"\")","v":867.13715021114353},{"$f":"IFERROR('Data Input - BAT'!L86*INDEX('Energy Prices'!$F$19:$CR$24,MATCH($B96,'Energy Prices'!$C$19:$C$24,0),MATCH(Calc_BAT!H$6,'Energy Prices'!$F$11:$CR$11,0))/100000,\"\")","v":902.96956981471021},{"$f":"IFERROR('Data Input - BAT'!M86*INDEX('Energy Prices'!$F$19:$CR$24,MATCH($B96,'Energy Prices'!$C$19:$C$24,0),MATCH(Calc_BAT!I$6,'Energy Prices'!$F$11:$CR$11,0))/100000,\"\")","v":938.80217876689312},{"$f":"IFERROR('Data Input - BAT'!N86*INDEX('Energy Prices'!$F$19:$CR$24,MATCH($B96,'Energy Prices'!$C$19:$C$24,0),MATCH(Calc_BAT!J$6,'Energy Prices'!$F$11:$CR$11,0))/100000,\"\")","v":974.63497836333215},{"$f":"IFERROR('Data Input - BAT'!O86*INDEX('Energy Prices'!$F$19:$CR$24,MATCH($B96,'Energy Prices'!$C$19:$C$24,0),MATCH(Calc_BAT!K$6,'Energy Prices'!$F$11:$CR$11,0))/100000,\"\")","v":1010.4679699085341},{"$f":"IFERROR('Data Input - BAT'!P86*INDEX('Energy Prices'!$F$19:$CR$24,MATCH($B96,'Energy Prices'!$C$19:$C$24,0),MATCH(Calc_BAT!L$6,'Energy Prices'!$F$11:$CR$11,0))/100000,\"\")","v":0},{"$f":"IFERROR('Data Input - BAT'!Q86*INDEX('Energy Prices'!$F$19:$CR$24,MATCH($B96,'Energy Prices'!$C$19:$C$24,0),MATCH(Calc_BAT!M$6,'Energy Prices'!$F$11:$CR$11,0))/100000,\"\")","v":0},{"$f":"IFERROR('Data Input - BAT'!R86*INDEX('Energy Prices'!$F$19:$CR$24,MATCH($B96,'Energy Prices'!$C$19:$C$24,0),MATCH(Calc_BAT!N$6,'Energy Prices'!$F$11:$CR$11,0))/100000,\"\")","v":0},{"$f":"IFERROR('Data Input - BAT'!S86*INDEX('Energy Prices'!$F$19:$CR$24,MATCH($B96,'Energy Prices'!$C$19:$C$24,0),MATCH(Calc_BAT!O$6,'Energy Prices'!$F$11:$CR$11,0))/100000,\"\")","v":0},{"$f":"IFERROR('Data Input - BAT'!T86*INDEX('Energy Prices'!$F$19:$CR$24,MATCH($B96,'Energy Prices'!$C$19:$C$24,0),MATCH(Calc_BAT!P$6,'Energy Prices'!$F$11:$CR$11,0))/100000,\"\")","v":0},{"$f":"IFERROR('Data Input - BAT'!U86*INDEX('Energy Prices'!$F$19:$CR$24,MATCH($B96,'Energy Prices'!$C$19:$C$24,0),MATCH(Calc_BAT!Q$6,'Energy Prices'!$F$11:$CR$11,0))/100000,\"\")","v":0},{"$f":"IFERROR('Data Input - BAT'!V86*INDEX('Energy Prices'!$F$19:$CR$24,MATCH($B96,'Energy Prices'!$C$19:$C$24,0),MATCH(Calc_BAT!R$6,'Energy Prices'!$F$11:$CR$11,0))/100000,\"\")","v":0},{"$f":"IFERROR('Data Input - BAT'!W86*INDEX('Energy Prices'!$F$19:$CR$24,MATCH($B96,'Energy Prices'!$C$19:$C$24,0),MATCH(Calc_BAT!S$6,'Energy Prices'!$F$11:$CR$11,0))/100000,\"\")","v":0},{"$f":"IFERROR('Data Input - BAT'!X86*INDEX('Energy Prices'!$F$19:$CR$24,MATCH($B96,'Energy Prices'!$C$19:$C$24,0),MATCH(Calc_BAT!T$6,'Energy Prices'!$F$11:$CR$11,0))/100000,\"\")","v":0},{"$f":"IFERROR('Data Input - BAT'!Y86*INDEX('Energy Prices'!$F$19:$CR$24,MATCH($B96,'Energy Prices'!$C$19:$C$24,0),MATCH(Calc_BAT!U$6,'Energy Prices'!$F$11:$CR$11,0))/100000,\"\")","v":0},{"$f":"IFERROR('Data Input - BAT'!Z86*INDEX('Energy Prices'!$F$19:$CR$24,MATCH($B96,'Energy Prices'!$C$19:$C$24,0),MATCH(Calc_BAT!V$6,'Energy Prices'!$F$11:$CR$11,0))/100000,\"\")","v":0},{"$f":"IFERROR('Data Input - BAT'!AA86*INDEX('Energy Prices'!$F$19:$CR$24,MATCH($B96,'Energy Prices'!$C$19:$C$24,0),MATCH(Calc_BAT!W$6,'Energy Prices'!$F$11:$CR$11,0))/100000,\"\")","v":0},{"$f":"IFERROR('Data Input - BAT'!AB86*INDEX('Energy Prices'!$F$19:$CR$24,MATCH($B96,'Energy Prices'!$C$19:$C$24,0),MATCH(Calc_BAT!X$6,'Energy Prices'!$F$11:$CR$11,0))/100000,\"\")","v":0},{"$f":"IFERROR('Data Input - BAT'!AC86*INDEX('Energy Prices'!$F$19:$CR$24,MATCH($B96,'Energy Prices'!$C$19:$C$24,0),MATCH(Calc_BAT!Y$6,'Energy Prices'!$F$11:$CR$11,0))/100000,\"\")","v":0},{"$f":"IFERROR('Data Input - BAT'!AD86*INDEX('Energy Prices'!$F$19:$CR$24,MATCH($B96,'Energy Prices'!$C$19:$C$24,0),MATCH(Calc_BAT!Z$6,'Energy Prices'!$F$11:$CR$11,0))/100000,\"\")","v":0},{"$f":"IFERROR('Data Input - BAT'!AE86*INDEX('Energy Prices'!$F$19:$CR$24,MATCH($B96,'Energy Prices'!$C$19:$C$24,0),MATCH(Calc_BAT!AA$6,'Energy Prices'!$F$11:$CR$11,0))/100000,\"\")","v":0},{"$f":"IFERROR('Data Input - BAT'!AF86*INDEX('Energy Prices'!$F$19:$CR$24,MATCH($B96,'Energy Prices'!$C$19:$C$24,0),MATCH(Calc_BAT!AB$6,'Energy Prices'!$F$11:$CR$11,0))/100000,\"\")","v":0},{"$f":"IFERROR('Data Input - BAT'!AG86*INDEX('Energy Prices'!$F$19:$CR$24,MATCH($B96,'Energy Prices'!$C$19:$C$24,0),MATCH(Calc_BAT!AC$6,'Energy Prices'!$F$11:$CR$11,0))/100000,\"\")","v":0},{"$f":"IFERROR('Data Input - BAT'!AH86*INDEX('Energy Prices'!$F$19:$CR$24,MATCH($B96,'Energy Prices'!$C$19:$C$24,0),MATCH(Calc_BAT!AD$6,'Energy Prices'!$F$11:$CR$11,0))/100000,\"\")","v":0},{"$f":"IFERROR('Data Input - BAT'!AI86*INDEX('Energy Prices'!$F$19:$CR$24,MATCH($B96,'Energy Prices'!$C$19:$C$24,0),MATCH(Calc_BAT!AE$6,'Energy Prices'!$F$11:$CR$11,0))/100000,\"\")","v":0},{"$f":"IFERROR('Data Input - BAT'!AJ86*INDEX('Energy Prices'!$F$19:$CR$24,MATCH($B96,'Energy Prices'!$C$19:$C$24,0),MATCH(Calc_BAT!AF$6,'Energy Prices'!$F$11:$CR$11,0))/100000,\"\")","v":0},{"$f":"IFERROR('Data Input - BAT'!AK86*INDEX('Energy Prices'!$F$19:$CR$24,MATCH($B96,'Energy Prices'!$C$19:$C$24,0),MATCH(Calc_BAT!AG$6,'Energy Prices'!$F$11:$CR$11,0))/100000,\"\")","v":0},{"$f":"IFERROR('Data Input - BAT'!AL86*INDEX('Energy Prices'!$F$19:$CR$24,MATCH($B96,'Energy Prices'!$C$19:$C$24,0),MATCH(Calc_BAT!AH$6,'Energy Prices'!$F$11:$CR$11,0))/100000,\"\")","v":0},{"$f":"IFERROR('Data Input - BAT'!AM86*INDEX('Energy Prices'!$F$19:$CR$24,MATCH($B96,'Energy Prices'!$C$19:$C$24,0),MATCH(Calc_BAT!AI$6,'Energy Prices'!$F$11:$CR$11,0))/100000,\"\")","v":""},{"$f":"IFERROR('Data Input - BAT'!AN86*INDEX('Energy Prices'!$F$19:$CR$24,MATCH($B96,'Energy Prices'!$C$19:$C$24,0),MATCH(Calc_BAT!AJ$6,'Energy Prices'!$F$11:$CR$11,0))/100000,\"\")","v":""},{"$f":"IFERROR('Data Input - BAT'!AO86*INDEX('Energy Prices'!$F$19:$CR$24,MATCH($B96,'Energy Prices'!$C$19:$C$24,0),MATCH(Calc_BAT!AK$6,'Energy Prices'!$F$11:$CR$11,0))/100000,\"\")","v":""},{"$f":"IFERROR('Data Input - BAT'!AP86*INDEX('Energy Prices'!$F$19:$CR$24,MATCH($B96,'Energy Prices'!$C$19:$C$24,0),MATCH(Calc_BAT!AL$6,'Energy Prices'!$F$11:$CR$11,0))/100000,\"\")","v":""},{"$f":"IFERROR('Data Input - BAT'!AQ86*INDEX('Energy Prices'!$F$19:$CR$24,MATCH($B96,'Energy Prices'!$C$19:$C$24,0),MATCH(Calc_BAT!AM$6,'Energy Prices'!$F$11:$CR$11,0))/100000,\"\")","v":""},{"$f":"IFERROR('Data Input - BAT'!AR86*INDEX('Energy Prices'!$F$19:$CR$24,MATCH($B96,'Energy Prices'!$C$19:$C$24,0),MATCH(Calc_BAT!AN$6,'Energy Prices'!$F$11:$CR$11,0))/100000,\"\")","v":""},{"$f":"IFERROR('Data Input - BAT'!AS86*INDEX('Energy Prices'!$F$19:$CR$24,MATCH($B96,'Energy Prices'!$C$19:$C$24,0),MATCH(Calc_BAT!AO$6,'Energy Prices'!$F$11:$CR$11,0))/100000,\"\")","v":""},{"$f":"IFERROR('Data Input - BAT'!AT86*INDEX('Energy Prices'!$F$19:$CR$24,MATCH($B96,'Energy Prices'!$C$19:$C$24,0),MATCH(Calc_BAT!AP$6,'Energy Prices'!$F$11:$CR$11,0))/100000,\"\")","v":""},{"$f":"IFERROR('Data Input - BAT'!AU86*INDEX('Energy Prices'!$F$19:$CR$24,MATCH($B96,'Energy Prices'!$C$19:$C$24,0),MATCH(Calc_BAT!AQ$6,'Energy Prices'!$F$11:$CR$11,0))/100000,\"\")","v":""},{"$f":"IFERROR('Data Input - BAT'!AV86*INDEX('Energy Prices'!$F$19:$CR$24,MATCH($B96,'Energy Prices'!$C$19:$C$24,0),MATCH(Calc_BAT!AR$6,'Energy Prices'!$F$11:$CR$11,0))/100000,\"\")","v":""},{"$f":"IFERROR('Data Input - BAT'!AW86*INDEX('Energy Prices'!$F$19:$CR$24,MATCH($B96,'Energy Prices'!$C$19:$C$24,0),MATCH(Calc_BAT!AS$6,'Energy Prices'!$F$11:$CR$11,0))/100000,\"\")","v":""},{"$f":"IFERROR('Data Input - BAT'!AX86*INDEX('Energy Prices'!$F$19:$CR$24,MATCH($B96,'Energy Prices'!$C$19:$C$24,0),MATCH(Calc_BAT!AT$6,'Energy Prices'!$F$11:$CR$11,0))/100000,\"\")","v":""},{"$f":"IFERROR('Data Input - BAT'!AY86*INDEX('Energy Prices'!$F$19:$CR$24,MATCH($B96,'Energy Prices'!$C$19:$C$24,0),MATCH(Calc_BAT!AU$6,'Energy Prices'!$F$11:$CR$11,0))/100000,\"\")","v":""},{"$f":"IFERROR('Data Input - BAT'!AZ86*INDEX('Energy Prices'!$F$19:$CR$24,MATCH($B96,'Energy Prices'!$C$19:$C$24,0),MATCH(Calc_BAT!AV$6,'Energy Prices'!$F$11:$CR$11,0))/100000,\"\")","v":""},{"$f":"IFERROR('Data Input - BAT'!BA86*INDEX('Energy Prices'!$F$19:$CR$24,MATCH($B96,'Energy Prices'!$C$19:$C$24,0),MATCH(Calc_BAT!AW$6,'Energy Prices'!$F$11:$CR$11,0))/100000,\"\")","v":""},{"$f":"IFERROR('Data Input - BAT'!BB86*INDEX('Energy Prices'!$F$19:$CR$24,MATCH($B96,'Energy Prices'!$C$19:$C$24,0),MATCH(Calc_BAT!AX$6,'Energy Prices'!$F$11:$CR$11,0))/100000,\"\")","v":""},{"$f":"IFERROR('Data Input - BAT'!BC86*INDEX('Energy Prices'!$F$19:$CR$24,MATCH($B96,'Energy Prices'!$C$19:$C$24,0),MATCH(Calc_BAT!AY$6,'Energy Prices'!$F$11:$CR$11,0))/100000,\"\")","v":""},{"$f":"IFERROR('Data Input - BAT'!BD86*INDEX('Energy Prices'!$F$19:$CR$24,MATCH($B96,'Energy Prices'!$C$19:$C$24,0),MATCH(Calc_BAT!AZ$6,'Energy Prices'!$F$11:$CR$11,0))/100000,\"\")","v":""},{"$f":"IFERROR('Data Input - BAT'!BE86*INDEX('Energy Prices'!$F$19:$CR$24,MATCH($B96,'Energy Prices'!$C$19:$C$24,0),MATCH(Calc_BAT!BA$6,'Energy Prices'!$F$11:$CR$11,0))/100000,\"\")","v":""},{"$f":"IFERROR('Data Input - BAT'!BF86*INDEX('Energy Prices'!$F$19:$CR$24,MATCH($B96,'Energy Prices'!$C$19:$C$24,0),MATCH(Calc_BAT!BB$6,'Energy Prices'!$F$11:$CR$11,0))/100000,\"\")","v":""},{"$f":"IFERROR('Data Input - BAT'!BG86*INDEX('Energy Prices'!$F$19:$CR$24,MATCH($B96,'Energy Prices'!$C$19:$C$24,0),MATCH(Calc_BAT!BC$6,'Energy Prices'!$F$11:$CR$11,0))/100000,\"\")","v":""},{"$f":"IFERROR('Data Input - BAT'!BH86*INDEX('Energy Prices'!$F$19:$CR$24,MATCH($B96,'Energy Prices'!$C$19:$C$24,0),MATCH(Calc_BAT!BD$6,'Energy Prices'!$F$11:$CR$11,0))/100000,\"\")","v":""},{"$f":"IFERROR('Data Input - BAT'!BI86*INDEX('Energy Prices'!$F$19:$CR$24,MATCH($B96,'Energy Prices'!$C$19:$C$24,0),MATCH(Calc_BAT!BE$6,'Energy Prices'!$F$11:$CR$11,0))/100000,\"\")","v":""},{"$f":"IFERROR('Data Input - BAT'!BJ86*INDEX('Energy Prices'!$F$19:$CR$24,MATCH($B96,'Energy Prices'!$C$19:$C$24,0),MATCH(Calc_BAT!BF$6,'Energy Prices'!$F$11:$CR$11,0))/100000,\"\")","v":""},{"$f":"IFERROR('Data Input - BAT'!BK86*INDEX('Energy Prices'!$F$19:$CR$24,MATCH($B96,'Energy Prices'!$C$19:$C$24,0),MATCH(Calc_BAT!BG$6,'Energy Prices'!$F$11:$CR$11,0))/100000,\"\")","v":""},{"$f":"IFERROR('Data Input - BAT'!BL86*INDEX('Energy Prices'!$F$19:$CR$24,MATCH($B96,'Energy Prices'!$C$19:$C$24,0),MATCH(Calc_BAT!BH$6,'Energy Prices'!$F$11:$CR$11,0))/100000,\"\")","v":""},{"$f":"IFERROR('Data Input - BAT'!BM86*INDEX('Energy Prices'!$F$19:$CR$24,MATCH($B96,'Energy Prices'!$C$19:$C$24,0),MATCH(Calc_BAT!BI$6,'Energy Prices'!$F$11:$CR$11,0))/100000,\"\")","v":""},{"$f":"IFERROR('Data Input - BAT'!BN86*INDEX('Energy Prices'!$F$19:$CR$24,MATCH($B96,'Energy Prices'!$C$19:$C$24,0),MATCH(Calc_BAT!BJ$6,'Energy Prices'!$F$11:$CR$11,0))/100000,\"\")","v":""},{"$f":"IFERROR('Data Input - BAT'!BO86*INDEX('Energy Prices'!$F$19:$CR$24,MATCH($B96,'Energy Prices'!$C$19:$C$24,0),MATCH(Calc_BAT!BK$6,'Energy Prices'!$F$11:$CR$11,0))/100000,\"\")","v":""},{"$f":"IFERROR('Data Input - BAT'!BP86*INDEX('Energy Prices'!$F$19:$CR$24,MATCH($B96,'Energy Prices'!$C$19:$C$24,0),MATCH(Calc_BAT!BL$6,'Energy Prices'!$F$11:$CR$11,0))/100000,\"\")","v":""},{"$f":"IFERROR('Data Input - BAT'!BQ86*INDEX('Energy Prices'!$F$19:$CR$24,MATCH($B96,'Energy Prices'!$C$19:$C$24,0),MATCH(Calc_BAT!BM$6,'Energy Prices'!$F$11:$CR$11,0))/100000,\"\")","v":""},{"$f":"IFERROR('Data Input - BAT'!BR86*INDEX('Energy Prices'!$F$19:$CR$24,MATCH($B96,'Energy Prices'!$C$19:$C$24,0),MATCH(Calc_BAT!BN$6,'Energy Prices'!$F$11:$CR$11,0))/100000,\"\")","v":""},{"$f":"IFERROR('Data Input - BAT'!BS86*INDEX('Energy Prices'!$F$19:$CR$24,MATCH($B96,'Energy Prices'!$C$19:$C$24,0),MATCH(Calc_BAT!BO$6,'Energy Prices'!$F$11:$CR$11,0))/100000,\"\")","v":""},{"$f":"IFERROR('Data Input - BAT'!BT86*INDEX('Energy Prices'!$F$19:$CR$24,MATCH($B96,'Energy Prices'!$C$19:$C$24,0),MATCH(Calc_BAT!BP$6,'Energy Prices'!$F$11:$CR$11,0))/100000,\"\")","v":""},{"$f":"IFERROR('Data Input - BAT'!BU86*INDEX('Energy Prices'!$F$19:$CR$24,MATCH($B96,'Energy Prices'!$C$19:$C$24,0),MATCH(Calc_BAT!BQ$6,'Energy Prices'!$F$11:$CR$11,0))/100000,\"\")","v":""},{"$f":"IFERROR('Data Input - BAT'!BV86*INDEX('Energy Prices'!$F$19:$CR$24,MATCH($B96,'Energy Prices'!$C$19:$C$24,0),MATCH(Calc_BAT!BR$6,'Energy Prices'!$F$11:$CR$11,0))/100000,\"\")","v":""},{"$f":"IFERROR('Data Input - BAT'!BW86*INDEX('Energy Prices'!$F$19:$CR$24,MATCH($B96,'Energy Prices'!$C$19:$C$24,0),MATCH(Calc_BAT!BS$6,'Energy Prices'!$F$11:$CR$11,0))/100000,\"\")","v":""},{"$f":"IFERROR('Data Input - BAT'!BX86*INDEX('Energy Prices'!$F$19:$CR$24,MATCH($B96,'Energy Prices'!$C$19:$C$24,0),MATCH(Calc_BAT!BT$6,'Energy Prices'!$F$11:$CR$11,0))/100000,\"\")","v":""},{"$f":"IFERROR('Data Input - BAT'!BY86*INDEX('Energy Prices'!$F$19:$CR$24,MATCH($B96,'Energy Prices'!$C$19:$C$24,0),MATCH(Calc_BAT!BU$6,'Energy Prices'!$F$11:$CR$11,0))/100000,\"\")","v":""},{"$f":"IFERROR('Data Input - BAT'!BZ86*INDEX('Energy Prices'!$F$19:$CR$24,MATCH($B96,'Energy Prices'!$C$19:$C$24,0),MATCH(Calc_BAT!BV$6,'Energy Prices'!$F$11:$CR$11,0))/100000,\"\")","v":""},{"$f":"IFERROR('Data Input - BAT'!CA86*INDEX('Energy Prices'!$F$19:$CR$24,MATCH($B96,'Energy Prices'!$C$19:$C$24,0),MATCH(Calc_BAT!BW$6,'Energy Prices'!$F$11:$CR$11,0))/100000,\"\")","v":""},{"$f":"IFERROR('Data Input - BAT'!CB86*INDEX('Energy Prices'!$F$19:$CR$24,MATCH($B96,'Energy Prices'!$C$19:$C$24,0),MATCH(Calc_BAT!BX$6,'Energy Prices'!$F$11:$CR$11,0))/100000,\"\")","v":""},{"$f":"IFERROR('Data Input - BAT'!CC86*INDEX('Energy Prices'!$F$19:$CR$24,MATCH($B96,'Energy Prices'!$C$19:$C$24,0),MATCH(Calc_BAT!BY$6,'Energy Prices'!$F$11:$CR$11,0))/100000,\"\")","v":""},{"$f":"IFERROR('Data Input - BAT'!CD86*INDEX('Energy Prices'!$F$19:$CR$24,MATCH($B96,'Energy Prices'!$C$19:$C$24,0),MATCH(Calc_BAT!BZ$6,'Energy Prices'!$F$11:$CR$11,0))/100000,\"\")","v":""},{"$f":"IFERROR('Data Input - BAT'!CE86*INDEX('Energy Prices'!$F$19:$CR$24,MATCH($B96,'Energy Prices'!$C$19:$C$24,0),MATCH(Calc_BAT!CA$6,'Energy Prices'!$F$11:$CR$11,0))/100000,\"\")","v":""},{"$f":"IFERROR('Data Input - BAT'!CF86*INDEX('Energy Prices'!$F$19:$CR$24,MATCH($B96,'Energy Prices'!$C$19:$C$24,0),MATCH(Calc_BAT!CB$6,'Energy Prices'!$F$11:$CR$11,0))/100000,\"\")","v":""},{"$f":"IFERROR('Data Input - BAT'!CG86*INDEX('Energy Prices'!$F$19:$CR$24,MATCH($B96,'Energy Prices'!$C$19:$C$24,0),MATCH(Calc_BAT!CC$6,'Energy Prices'!$F$11:$CR$11,0))/100000,\"\")","v":""},{"$f":"IFERROR('Data Input - BAT'!CH86*INDEX('Energy Prices'!$F$19:$CR$24,MATCH($B96,'Energy Prices'!$C$19:$C$24,0),MATCH(Calc_BAT!CD$6,'Energy Prices'!$F$11:$CR$11,0))/100000,\"\")","v":""},{"$f":"IFERROR('Data Input - BAT'!CI86*INDEX('Energy Prices'!$F$19:$CR$24,MATCH($B96,'Energy Prices'!$C$19:$C$24,0),MATCH(Calc_BAT!CE$6,'Energy Prices'!$F$11:$CR$11,0))/100000,\"\")","v":""},{"$f":"IFERROR('Data Input - BAT'!CJ86*INDEX('Energy Prices'!$F$19:$CR$24,MATCH($B96,'Energy Prices'!$C$19:$C$24,0),MATCH(Calc_BAT!CF$6,'Energy Prices'!$F$11:$CR$11,0))/100000,\"\")","v":""},{"$f":"IFERROR('Data Input - BAT'!CK86*INDEX('Energy Prices'!$F$19:$CR$24,MATCH($B96,'Energy Prices'!$C$19:$C$24,0),MATCH(Calc_BAT!CG$6,'Energy Prices'!$F$11:$CR$11,0))/100000,\"\")","v":""},{"$f":"IFERROR('Data Input - BAT'!CL86*INDEX('Energy Prices'!$F$19:$CR$24,MATCH($B96,'Energy Prices'!$C$19:$C$24,0),MATCH(Calc_BAT!CH$6,'Energy Prices'!$F$11:$CR$11,0))/100000,\"\")","v":""},{"$f":"IFERROR('Data Input - BAT'!CM86*INDEX('Energy Prices'!$F$19:$CR$24,MATCH($B96,'Energy Prices'!$C$19:$C$24,0),MATCH(Calc_BAT!CI$6,'Energy Prices'!$F$11:$CR$11,0))/100000,\"\")","v":""},{"$f":"IFERROR('Data Input - BAT'!CN86*INDEX('Energy Prices'!$F$19:$CR$24,MATCH($B96,'Energy Prices'!$C$19:$C$24,0),MATCH(Calc_BAT!CJ$6,'Energy Prices'!$F$11:$CR$11,0))/100000,\"\")","v":""},{"$f":"IFERROR('Data Input - BAT'!CO86*INDEX('Energy Prices'!$F$19:$CR$24,MATCH($B96,'Energy Prices'!$C$19:$C$24,0),MATCH(Calc_BAT!CK$6,'Energy Prices'!$F$11:$CR$11,0))/100000,\"\")","v":""},{"$f":"IFERROR('Data Input - BAT'!CP86*INDEX('Energy Prices'!$F$19:$CR$24,MATCH($B96,'Energy Prices'!$C$19:$C$24,0),MATCH(Calc_BAT!CL$6,'Energy Prices'!$F$11:$CR$11,0))/100000,\"\")","v":""},{"$f":"IFERROR('Data Input - BAT'!CQ86*INDEX('Energy Prices'!$F$19:$CR$24,MATCH($B96,'Energy Prices'!$C$19:$C$24,0),MATCH(Calc_BAT!CM$6,'Energy Prices'!$F$11:$CR$11,0))/100000,\"\")","v":""},{"$f":"IFERROR('Data Input - BAT'!CR86*INDEX('Energy Prices'!$F$19:$CR$24,MATCH($B96,'Energy Prices'!$C$19:$C$24,0),MATCH(Calc_BAT!CN$6,'Energy Prices'!$F$11:$CR$11,0))/100000,\"\")","v":""},{"$f":"IFERROR('Data Input - BAT'!CS86*INDEX('Energy Prices'!$F$19:$CR$24,MATCH($B96,'Energy Prices'!$C$19:$C$24,0),MATCH(Calc_BAT!CO$6,'Energy Prices'!$F$11:$CR$11,0))/100000,\"\")","v":""},{"$f":"IFERROR('Data Input - BAT'!CT86*INDEX('Energy Prices'!$F$19:$CR$24,MATCH($B96,'Energy Prices'!$C$19:$C$24,0),MATCH(Calc_BAT!CP$6,'Energy Prices'!$F$11:$CR$11,0))/100000,\"\")","v":""},{"$f":"IFERROR('Data Input - BAT'!CU86*INDEX('Energy Prices'!$F$19:$CR$24,MATCH($B96,'Energy Prices'!$C$19:$C$24,0),MATCH(Calc_BAT!CQ$6,'Energy Prices'!$F$11:$CR$11,0))/100000,\"\")","v":""},{"$f":"IFERROR('Data Input - BAT'!CV86*INDEX('Energy Prices'!$F$19:$CR$24,MATCH($B96,'Energy Prices'!$C$19:$C$24,0),MATCH(Calc_BAT!CR$6,'Energy Prices'!$F$11:$CR$11,0))/100000,\"\")","v":""},{"$f":"IFERROR('Data Input - BAT'!CW86*INDEX('Energy Prices'!$F$19:$CR$24,MATCH($B96,'Energy Prices'!$C$19:$C$24,0),MATCH(Calc_BAT!CS$6,'Energy Prices'!$F$11:$CR$11,0))/100000,\"\")","v":""},{"$f":"IFERROR('Data Input - BAT'!CX86*INDEX('Energy Prices'!$F$19:$CR$24,MATCH($B96,'Energy Prices'!$C$19:$C$24,0),MATCH(Calc_BAT!CT$6,'Energy Prices'!$F$11:$CR$11,0))/100000,\"\")","v":""},{"$f":"IFERROR('Data Input - BAT'!CY86*INDEX('Energy Prices'!$F$19:$CR$24,MATCH($B96,'Energy Prices'!$C$19:$C$24,0),MATCH(Calc_BAT!CU$6,'Energy Prices'!$F$11:$CR$11,0))/100000,\"\")","v":""},{"$f":"IFERROR('Data Input - BAT'!CZ86*INDEX('Energy Prices'!$F$19:$CR$24,MATCH($B96,'Energy Prices'!$C$19:$C$24,0),MATCH(Calc_BAT!CV$6,'Energy Prices'!$F$11:$CR$11,0))/100000,\"\")","v":""},{"$f":"IFERROR('Data Input - BAT'!DA86*INDEX('Energy Prices'!$F$19:$CR$24,MATCH($B96,'Energy Prices'!$C$19:$C$24,0),MATCH(Calc_BAT!CW$6,'Energy Prices'!$F$11:$CR$11,0))/100000,\"\")","v":""},{"$f":"IFERROR('Data Input - BAT'!DB86*INDEX('Energy Prices'!$F$19:$CR$24,MATCH($B96,'Energy Prices'!$C$19:$C$24,0),MATCH(Calc_BAT!CX$6,'Energy Prices'!$F$11:$CR$11,0))/100000,\"\")","v":""},{"$f":"IFERROR('Data Input - BAT'!DC86*INDEX('Energy Prices'!$F$19:$CR$24,MATCH($B96,'Energy Prices'!$C$19:$C$24,0),MATCH(Calc_BAT!CY$6,'Energy Prices'!$F$11:$CR$11,0))/100000,\"\")","v":""}]
[null,"Gas Oil","£000's",{"$f":"IFERROR('Data Input - BAT'!H87*INDEX('Energy Prices'!$F$19:$CR$24,MATCH($B97,'Energy Prices'!$C$19:$C$24,0),MATCH(Calc_BAT!D$6,'Energy Prices'!$F$11:$CR$11,0))/100000,\"\")","v":55.666248959960114},{"$f":"IFERROR('Data Input - BAT'!I87*INDEX('Energy Prices'!$F$19:$CR$24,MATCH($B97,'Energy Prices'!$C$19:$C$24,0),MATCH(Calc_BAT!E$6,'Energy Prices'!$F$11:$CR$11,0))/100000,\"\")","v":63.064053899665872},{"$f":"IFERROR('Data Input - BAT'!J87*INDEX('Energy Prices'!$F$19:$CR$24,MATCH($B97,'Energy Prices'!$C$19:$C$24,0),MATCH(Calc_BAT!F$6,'Energy Prices'!$F$11:$CR$11,0))/100000,\"\")","v":70.481173983169569},{"$f":"IFERROR('Data Input - BAT'!K87*INDEX('Energy Prices'!$F$19:$CR$24,MATCH($B97,'Energy Prices'!$C$19:$C$24,0),MATCH(Calc_BAT!G$6,'Energy Prices'!$F$11:$CR$11,0))/100000,\"\")","v":77.883658222867751},{"$f":"IFERROR('Data Input - BAT'!L87*INDEX('Energy Prices'!$F$19:$CR$24,MATCH($B97,'Energy Prices'!$C$19:$C$24,0),MATCH(Calc_BAT!H$6,'Energy Prices'!$F$11:$CR$11,0))/100000,\"\")","v":85.279524067697764},{"$f":"IFERROR('Data Input - BAT'!M87*INDEX('Energy Prices'!$F$19:$CR$24,MATCH($B97,'Energy Prices'!$C$19:$C$24,0),MATCH(Calc_BAT!I$6,'Energy Prices'!$F$11:$CR$11,0))/100000,\"\")","v":92.676544839111386},{"$f":"IFERROR('Data Input - BAT'!N87*INDEX('Energy Prices'!$F$19:$CR$24,MATCH($B97,'Energy Prices'!$C$19:$C$24,0),MATCH(Calc_BAT!J$6,'Energy Prices'!$F$11:$CR$11,0))/100000,\"\")","v":100.07472843983201},{"$f":"IFERROR('Data Input - BAT'!O87*INDEX('Energy Prices'!$F$19:$CR$24,MATCH($B97,'Energy Prices'!$C$19:$C$24,0),MATCH(Calc_BAT!K$6,'Energy Prices'!$F$11:$CR$11,0))/100000,\"\")","v":100.24700125254226},{"$f":"IFERROR('Data Input - BAT'!P87*INDEX('Energy Prices'!$F$19:$CR$24,MATCH($B97,'Energy Prices'!$C$19:$C$24,0),MATCH(Calc_BAT!L$6,'Energy Prices'!$F$11:$CR$11,0))/100000,\"\")","v":0},{"$f":"IFERROR('Data Input - BAT'!Q87*INDEX('Energy Prices'!$F$19:$CR$24,MATCH($B97,'Energy Prices'!$C$19:$C$24,0),MATCH(Calc_BAT!M$6,'Energy Prices'!$F$11:$CR$11,0))/100000,\"\")","v":0},{"$f":"IFERROR('Data Input - BAT'!R87*INDEX('Energy Prices'!$F$19:$CR$24,MATCH($B97,'Energy Prices'!$C$19:$C$24,0),MATCH(Calc_BAT!N$6,'Energy Prices'!$F$11:$CR$11,0))/100000,\"\")","v":0},{"$f":"IFERROR('Data Input - BAT'!S87*INDEX('Energy Prices'!$F$19:$CR$24,MATCH($B97,'Energy Prices'!$C$19:$C$24,0),MATCH(Calc_BAT!O$6,'Energy Prices'!$F$11:$CR$11,0))/100000,\"\")","v":0},{"$f":"IFERROR('Data Input - BAT'!T87*INDEX('Energy Prices'!$F$19:$CR$24,MATCH($B97,'Energy Prices'!$C$19:$C$24,0),MATCH(Calc_BAT!P$6,'Energy Prices'!$F$11:$CR$11,0))/100000,\"\")","v":0},{"$f":"IFERROR('Data Input - BAT'!U87*INDEX('Energy Prices'!$F$19:$CR$24,MATCH($B97,'Energy Prices'!$C$19:$C$24,0),MATCH(Calc_BAT!Q$6,'Energy Prices'!$F$11:$CR$11,0))/100000,\"\")","v":0},{"$f":"IFERROR('Data Input - BAT'!V87*INDEX('Energy Prices'!$F$19:$CR$24,MATCH($B97,'Energy Prices'!$C$19:$C$24,0),MATCH(Calc_BAT!R$6,'Energy Prices'!$F$11:$CR$11,0))/100000,\"\")","v":0},{"$f":"IFERROR('Data Input - BAT'!W87*INDEX('Energy Prices'!$F$19:$CR$24,MATCH($B97,'Energy Prices'!$C$19:$C$24,0),MATCH(Calc_BAT!S$6,'Energy Prices'!$F$11:$CR$11,0))/100000,\"\")","v":0},{"$f":"IFERROR('Data Input - BAT'!X87*INDEX('Energy Prices'!$F$19:$CR$24,MATCH($B97,'Energy Prices'!$C$19:$C$24,0),MATCH(Calc_BAT!T$6,'Energy Prices'!$F$11:$CR$11,0))/100000,\"\")","v":0},{"$f":"IFERROR('Data Input - BAT'!Y87*INDEX('Energy Prices'!$F$19:$CR$24,MATCH($B97,'Energy Prices'!$C$19:$C$24,0),MATCH(Calc_BAT!U$6,'Energy Prices'!$F$11:$CR$11,0))/100000,\"\")","v":0},{"$f":"IFERROR('Data Input - BAT'!Z87*INDEX('Energy Prices'!$F$19:$CR$24,MATCH($B97,'Energy Prices'!$C$19:$C$24,0),MATCH(Calc_BAT!V$6,'Energy Prices'!$F$11:$CR$11,0))/100000,\"\")","v":0},{"$f":"IFERROR('Data Input - BAT'!AA87*INDEX('Energy Prices'!$F$19:$CR$24,MATCH($B97,'Energy Prices'!$C$19:$C$24,0),MATCH(Calc_BAT!W$6,'Energy Prices'!$F$11:$CR$11,0))/100000,\"\")","v":0},{"$f":"IFERROR('Data Input - BAT'!AB87*INDEX('Energy Prices'!$F$19:$CR$24,MATCH($B97,'Energy Prices'!$C$19:$C$24,0),MATCH(Calc_BAT!X$6,'Energy Prices'!$F$11:$CR$11,0))/100000,\"\")","v":0},{"$f":"IFERROR('Data Input - BAT'!AC87*INDEX('Energy Prices'!$F$19:$CR$24,MATCH($B97,'Energy Prices'!$C$19:$C$24,0),MATCH(Calc_BAT!Y$6,'Energy Prices'!$F$11:$CR$11,0))/100000,\"\")","v":0},{"$f":"IFERROR('Data Input - BAT'!AD87*INDEX('Energy Prices'!$F$19:$CR$24,MATCH($B97,'Energy Prices'!$C$19:$C$24,0),MATCH(Calc_BAT!Z$6,'Energy Prices'!$F$11:$CR$11,0))/100000,\"\")","v":0},{"$f":"IFERROR('Data Input - BAT'!AE87*INDEX('Energy Prices'!$F$19:$CR$24,MATCH($B97,'Energy Prices'!$C$19:$C$24,0),MATCH(Calc_BAT!AA$6,'Energy Prices'!$F$11:$CR$11,0))/100000,\"\")","v":0},{"$f":"IFERROR('Data Input - BAT'!AF87*INDEX('Energy Prices'!$F$19:$CR$24,MATCH($B97,'Energy Prices'!$C$19:$C$24,0),MATCH(Calc_BAT!AB$6,'Energy Prices'!$F$11:$CR$11,0))/100000,\"\")","v":0},{"$f":"IFERROR('Data Input - BAT'!AG87*INDEX('Energy Prices'!$F$19:$CR$24,MATCH($B97,'Energy Prices'!$C$19:$C$24,0),MATCH(Calc_BAT!AC$6,'Energy Prices'!$F$11:$CR$11,0))/100000,\"\")","v":0},{"$f":"IFERROR('Data Input - BAT'!AH87*INDEX('Energy Prices'!$F$19:$CR$24,MATCH($B97,'Energy Prices'!$C$19:$C$24,0),MATCH(Calc_BAT!AD$6,'Energy Prices'!$F$11:$CR$11,0))/100000,\"\")","v":0},{"$f":"IFERROR('Data Input - BAT'!AI87*INDEX('Energy Prices'!$F$19:$CR$24,MATCH($B97,'Energy Prices'!$C$19:$C$24,0),MATCH(Calc_BAT!AE$6,'Energy Prices'!$F$11:$CR$11,0))/100000,\"\")","v":0},{"$f":"IFERROR('Data Input - BAT'!AJ87*INDEX('Energy Prices'!$F$19:$CR$24,MATCH($B97,'Energy Prices'!$C$19:$C$24,0),MATCH(Calc_BAT!AF$6,'Energy Prices'!$F$11:$CR$11,0))/100000,\"\")","v":0},{"$f":"IFERROR('Data Input - BAT'!AK87*INDEX('Energy Prices'!$F$19:$CR$24,MATCH($B97,'Energy Prices'!$C$19:$C$24,0),MATCH(Calc_BAT!AG$6,'Energy Prices'!$F$11:$CR$11,0))/100000,\"\")","v":0},{"$f":"IFERROR('Data Input - BAT'!AL87*INDEX('Energy Prices'!$F$19:$CR$24,MATCH($B97,'Energy Prices'!$C$19:$C$24,0),MATCH(Calc_BAT!AH$6,'Energy Prices'!$F$11:$CR$11,0))/100000,\"\")","v":0},{"$f":"IFERROR('Data Input - BAT'!AM87*INDEX('Energy Prices'!$F$19:$CR$24,MATCH($B97,'Energy Prices'!$C$19:$C$24,0),MATCH(Calc_BAT!AI$6,'Energy Prices'!$F$11:$CR$11,0))/100000,\"\")","v":""},{"$f":"IFERROR('Data Input - BAT'!AN87*INDEX('Energy Prices'!$F$19:$CR$24,MATCH($B97,'Energy Prices'!$C$19:$C$24,0),MATCH(Calc_BAT!AJ$6,'Energy Prices'!$F$11:$CR$11,0))/100000,\"\")","v":""},{"$f":"IFERROR('Data Input - BAT'!AO87*INDEX('Energy Prices'!$F$19:$CR$24,MATCH($B97,'Energy Prices'!$C$19:$C$24,0),MATCH(Calc_BAT!AK$6,'Energy Prices'!$F$11:$CR$11,0))/100000,\"\")","v":""},{"$f":"IFERROR('Data Input - BAT'!AP87*INDEX('Energy Prices'!$F$19:$CR$24,MATCH($B97,'Energy Prices'!$C$19:$C$24,0),MATCH(Calc_BAT!AL$6,'Energy Prices'!$F$11:$CR$11,0))/100000,\"\")","v":""},{"$f":"IFERROR('Data Input - BAT'!AQ87*INDEX('Energy Prices'!$F$19:$CR$24,MATCH($B97,'Energy Prices'!$C$19:$C$24,0),MATCH(Calc_BAT!AM$6,'Energy Prices'!$F$11:$CR$11,0))/100000,\"\")","v":""},{"$f":"IFERROR('Data Input - BAT'!AR87*INDEX('Energy Prices'!$F$19:$CR$24,MATCH($B97,'Energy Prices'!$C$19:$C$24,0),MATCH(Calc_BAT!AN$6,'Energy Prices'!$F$11:$CR$11,0))/100000,\"\")","v":""},{"$f":"IFERROR('Data Input - BAT'!AS87*INDEX('Energy Prices'!$F$19:$CR$24,MATCH($B97,'Energy Prices'!$C$19:$C$24,0),MATCH(Calc_BAT!AO$6,'Energy Prices'!$F$11:$CR$11,0))/100000,\"\")","v":""},{"$f":"IFERROR('Data Input - BAT'!AT87*INDEX('Energy Prices'!$F$19:$CR$24,MATCH($B97,'Energy Prices'!$C$19:$C$24,0),MATCH(Calc_BAT!AP$6,'Energy Prices'!$F$11:$CR$11,0))/100000,\"\")","v":""},{"$f":"IFERROR('Data Input - BAT'!AU87*INDEX('Energy Prices'!$F$19:$CR$24,MATCH($B97,'Energy Prices'!$C$19:$C$24,0),MATCH(Calc_BAT!AQ$6,'Energy Prices'!$F$11:$CR$11,0))/100000,\"\")","v":""},{"$f":"IFERROR('Data Input - BAT'!AV87*INDEX('Energy Prices'!$F$19:$CR$24,MATCH($B97,'Energy Prices'!$C$19:$C$24,0),MATCH(Calc_BAT!AR$6,'Energy Prices'!$F$11:$CR$11,0))/100000,\"\")","v":""},{"$f":"IFERROR('Data Input - BAT'!AW87*INDEX('Energy Prices'!$F$19:$CR$24,MATCH($B97,'Energy Prices'!$C$19:$C$24,0),MATCH(Calc_BAT!AS$6,'Energy Prices'!$F$11:$CR$11,0))/100000,\"\")","v":""},{"$f":"IFERROR('Data Input - BAT'!AX87*INDEX('Energy Prices'!$F$19:$CR$24,MATCH($B97,'Energy Prices'!$C$19:$C$24,0),MATCH(Calc_BAT!AT$6,'Energy Prices'!$F$11:$CR$11,0))/100000,\"\")","v":""},{"$f":"IFERROR('Data Input - BAT'!AY87*INDEX('Energy Prices'!$F$19:$CR$24,MATCH($B97,'Energy Prices'!$C$19:$C$24,0),MATCH(Calc_BAT!AU$6,'Energy Prices'!$F$11:$CR$11,0))/100000,\"\")","v":""},{"$f":"IFERROR('Data Input - BAT'!AZ87*INDEX('Energy Prices'!$F$19:$CR$24,MATCH($B97,'Energy Prices'!$C$19:$C$24,0),MATCH(Calc_BAT!AV$6,'Energy Prices'!$F$11:$CR$11,0))/100000,\"\")","v":""},{"$f":"IFERROR('Data Input - BAT'!BA87*INDEX('Energy Prices'!$F$19:$CR$24,MATCH($B97,'Energy Prices'!$C$19:$C$24,0),MATCH(Calc_BAT!AW$6,'Energy Prices'!$F$11:$CR$11,0))/100000,\"\")","v":""},{"$f":"IFERROR('Data Input - BAT'!BB87*INDEX('Energy Prices'!$F$19:$CR$24,MATCH($B97,'Energy Prices'!$C$19:$C$24,0),MATCH(Calc_BAT!AX$6,'Energy Prices'!$F$11:$CR$11,0))/100000,\"\")","v":""},{"$f":"IFERROR('Data Input - BAT'!BC87*INDEX('Energy Prices'!$F$19:$CR$24,MATCH($B97,'Energy Prices'!$C$19:$C$24,0),MATCH(Calc_BAT!AY$6,'Energy Prices'!$F$11:$CR$11,0))/100000,\"\")","v":""},{"$f":"IFERROR('Data Input - BAT'!BD87*INDEX('Energy Prices'!$F$19:$CR$24,MATCH($B97,'Energy Prices'!$C$19:$C$24,0),MATCH(Calc_BAT!AZ$6,'Energy Prices'!$F$11:$CR$11,0))/100000,\"\")","v":""},{"$f":"IFERROR('Data Input - BAT'!BE87*INDEX('Energy Prices'!$F$19:$CR$24,MATCH($B97,'Energy Prices'!$C$19:$C$24,0),MATCH(Calc_BAT!BA$6,'Energy Prices'!$F$11:$CR$11,0))/100000,\"\")","v":""},{"$f":"IFERROR('Data Input - BAT'!BF87*INDEX('Energy Prices'!$F$19:$CR$24,MATCH($B97,'Energy Prices'!$C$19:$C$24,0),MATCH(Calc_BAT!BB$6,'Energy Prices'!$F$11:$CR$11,0))/100000,\"\")","v":""},{"$f":"IFERROR('Data Input - BAT'!BG87*INDEX('Energy Prices'!$F$19:$CR$24,MATCH($B97,'Energy Prices'!$C$19:$C$24,0),MATCH(Calc_BAT!BC$6,'Energy Prices'!$F$11:$CR$11,0))/100000,\"\")","v":""},{"$f":"IFERROR('Data Input - BAT'!BH87*INDEX('Energy Prices'!$F$19:$CR$24,MATCH($B97,'Energy Prices'!$C$19:$C$24,0),MATCH(Calc_BAT!BD$6,'Energy Prices'!$F$11:$CR$11,0))/100000,\"\")","v":""},{"$f":"IFERROR('Data Input - BAT'!BI87*INDEX('Energy Prices'!$F$19:$CR$24,MATCH($B97,'Energy Prices'!$C$19:$C$24,0),MATCH(Calc_BAT!BE$6,'Energy Prices'!$F$11:$CR$11,0))/100000,\"\")","v":""},{"$f":"IFERROR('Data Input - BAT'!BJ87*INDEX('Energy Prices'!$F$19:$CR$24,MATCH($B97,'Energy Prices'!$C$19:$C$24,0),MATCH(Calc_BAT!BF$6,'Energy Prices'!$F$11:$CR$11,0))/100000,\"\")","v":""},{"$f":"IFERROR('Data Input - BAT'!BK87*INDEX('Energy Prices'!$F$19:$CR$24,MATCH($B97,'Energy Prices'!$C$19:$C$24,0),MATCH(Calc_BAT!BG$6,'Energy Prices'!$F$11:$CR$11,0))/100000,\"\")","v":""},{"$f":"IFERROR('Data Input - BAT'!BL87*INDEX('Energy Prices'!$F$19:$CR$24,MATCH($B97,'Energy Prices'!$C$19:$C$24,0),MATCH(Calc_BAT!BH$6,'Energy Prices'!$F$11:$CR$11,0))/100000,\"\")","v":""},{"$f":"IFERROR('Data Input - BAT'!BM87*INDEX('Energy Prices'!$F$19:$CR$24,MATCH($B97,'Energy Prices'!$C$19:$C$24,0),MATCH(Calc_BAT!BI$6,'Energy Prices'!$F$11:$CR$11,0))/100000,\"\")","v":""},{"$f":"IFERROR('Data Input - BAT'!BN87*INDEX('Energy Prices'!$F$19:$CR$24,MATCH($B97,'Energy Prices'!$C$19:$C$24,0),MATCH(Calc_BAT!BJ$6,'Energy Prices'!$F$11:$CR$11,0))/100000,\"\")","v":""},{"$f":"IFERROR('Data Input - BAT'!BO87*INDEX('Energy Prices'!$F$19:$CR$24,MATCH($B97,'Energy Prices'!$C$19:$C$24,0),MATCH(Calc_BAT!BK$6,'Energy Prices'!$F$11:$CR$11,0))/100000,\"\")","v":""},{"$f":"IFERROR('Data Input - BAT'!BP87*INDEX('Energy Prices'!$F$19:$CR$24,MATCH($B97,'Energy Prices'!$C$19:$C$24,0),MATCH(Calc_BAT!BL$6,'Energy Prices'!$F$11:$CR$11,0))/100000,\"\")","v":""},{"$f":"IFERROR('Data Input - BAT'!BQ87*INDEX('Energy Prices'!$F$19:$CR$24,MATCH($B97,'Energy Prices'!$C$19:$C$24,0),MATCH(Calc_BAT!BM$6,'Energy Prices'!$F$11:$CR$11,0))/100000,\"\")","v":""},{"$f":"IFERROR('Data Input - BAT'!BR87*INDEX('Energy Prices'!$F$19:$CR$24,MATCH($B97,'Energy Prices'!$C$19:$C$24,0),MATCH(Calc_BAT!BN$6,'Energy Prices'!$F$11:$CR$11,0))/100000,\"\")","v":""},{"$f":"IFERROR('Data Input - BAT'!BS87*INDEX('Energy Prices'!$F$19:$CR$24,MATCH($B97,'Energy Prices'!$C$19:$C$24,0),MATCH(Calc_BAT!BO$6,'Energy Prices'!$F$11:$CR$11,0))/100000,\"\")","v":""},{"$f":"IFERROR('Data Input - BAT'!BT87*INDEX('Energy Prices'!$F$19:$CR$24,MATCH($B97,'Energy Prices'!$C$19:$C$24,0),MATCH(Calc_BAT!BP$6,'Energy Prices'!$F$11:$CR$11,0))/100000,\"\")","v":""},{"$f":"IFERROR('Data Input - BAT'!BU87*INDEX('Energy Prices'!$F$19:$CR$24,MATCH($B97,'Energy Prices'!$C$19:$C$24,0),MATCH(Calc_BAT!BQ$6,'Energy Prices'!$F$11:$CR$11,0))/100000,\"\")","v":""},{"$f":"IFERROR('Data Input - BAT'!BV87*INDEX('Energy Prices'!$F$19:$CR$24,MATCH($B97,'Energy Prices'!$C$19:$C$24,0),MATCH(Calc_BAT!BR$6,'Energy Prices'!$F$11:$CR$11,0))/100000,\"\")","v":""},{"$f":"IFERROR('Data Input - BAT'!BW87*INDEX('Energy Prices'!$F$19:$CR$24,MATCH($B97,'Energy Prices'!$C$19:$C$24,0),MATCH(Calc_BAT!BS$6,'Energy Prices'!$F$11:$CR$11,0))/100000,\"\")","v":""},{"$f":"IFERROR('Data Input - BAT'!BX87*INDEX('Energy Prices'!$F$19:$CR$24,MATCH($B97,'Energy Prices'!$C$19:$C$24,0),MATCH(Calc_BAT!BT$6,'Energy Prices'!$F$11:$CR$11,0))/100000,\"\")","v":""},{"$f":"IFERROR('Data Input - BAT'!BY87*INDEX('Energy Prices'!$F$19:$CR$24,MATCH($B97,'Energy Prices'!$C$19:$C$24,0),MATCH(Calc_BAT!BU$6,'Energy Prices'!$F$11:$CR$11,0))/100000,\"\")","v":""},{"$f":"IFERROR('Data Input - BAT'!BZ87*INDEX('Energy Prices'!$F$19:$CR$24,MATCH($B97,'Energy Prices'!$C$19:$C$24,0),MATCH(Calc_BAT!BV$6,'Energy Prices'!$F$11:$CR$11,0))/100000,\"\")","v":""},{"$f":"IFERROR('Data Input - BAT'!CA87*INDEX('Energy Prices'!$F$19:$CR$24,MATCH($B97,'Energy Prices'!$C$19:$C$24,0),MATCH(Calc_BAT!BW$6,'Energy Prices'!$F$11:$CR$11,0))/100000,\"\")","v":""},{"$f":"IFERROR('Data Input - BAT'!CB87*INDEX('Energy Prices'!$F$19:$CR$24,MATCH($B97,'Energy Prices'!$C$19:$C$24,0),MATCH(Calc_BAT!BX$6,'Energy Prices'!$F$11:$CR$11,0))/100000,\"\")","v":""},{"$f":"IFERROR('Data Input - BAT'!CC87*INDEX('Energy Prices'!$F$19:$CR$24,MATCH($B97,'Energy Prices'!$C$19:$C$24,0),MATCH(Calc_BAT!BY$6,'Energy Prices'!$F$11:$CR$11,0))/100000,\"\")","v":""},{"$f":"IFERROR('Data Input - BAT'!CD87*INDEX('Energy Prices'!$F$19:$CR$24,MATCH($B97,'Energy Prices'!$C$19:$C$24,0),MATCH(Calc_BAT!BZ$6,'Energy Prices'!$F$11:$CR$11,0))/100000,\"\")","v":""},{"$f":"IFERROR('Data Input - BAT'!CE87*INDEX('Energy Prices'!$F$19:$CR$24,MATCH($B97,'Energy Prices'!$C$19:$C$24,0),MATCH(Calc_BAT!CA$6,'Energy Prices'!$F$11:$CR$11,0))/100000,\"\")","v":""},{"$f":"IFERROR('Data Input - BAT'!CF87*INDEX('Energy Prices'!$F$19:$CR$24,MATCH($B97,'Energy Prices'!$C$19:$C$24,0),MATCH(Calc_BAT!CB$6,'Energy Prices'!$F$11:$CR$11,0))/100000,\"\")","v":""},{"$f":"IFERROR('Data Input - BAT'!CG87*INDEX('Energy Prices'!$F$19:$CR$24,MATCH($B97,'Energy Prices'!$C$19:$C$24,0),MATCH(Calc_BAT!CC$6,'Energy Prices'!$F$11:$CR$11,0))/100000,\"\")","v":""},{"$f":"IFERROR('Data Input - BAT'!CH87*INDEX('Energy Prices'!$F$19:$CR$24,MATCH($B97,'Energy Prices'!$C$19:$C$24,0),MATCH(Calc_BAT!CD$6,'Energy Prices'!$F$11:$CR$11,0))/100000,\"\")","v":""},{"$f":"IFERROR('Data Input - BAT'!CI87*INDEX('Energy Prices'!$F$19:$CR$24,MATCH($B97,'Energy Prices'!$C$19:$C$24,0),MATCH(Calc_BAT!CE$6,'Energy Prices'!$F$11:$CR$11,0))/100000,\"\")","v":""},{"$f":"IFERROR('Data Input - BAT'!CJ87*INDEX('Energy Prices'!$F$19:$CR$24,MATCH($B97,'Energy Prices'!$C$19:$C$24,0),MATCH(Calc_BAT!CF$6,'Energy Prices'!$F$11:$CR$11,0))/100000,\"\")","v":""},{"$f":"IFERROR('Data Input - BAT'!CK87*INDEX('Energy Prices'!$F$19:$CR$24,MATCH($B97,'Energy Prices'!$C$19:$C$24,0),MATCH(Calc_BAT!CG$6,'Energy Prices'!$F$11:$CR$11,0))/100000,\"\")","v":""},{"$f":"IFERROR('Data Input - BAT'!CL87*INDEX('Energy Prices'!$F$19:$CR$24,MATCH($B97,'Energy Prices'!$C$19:$C$24,0),MATCH(Calc_BAT!CH$6,'Energy Prices'!$F$11:$CR$11,0))/100000,\"\")","v":""},{"$f":"IFERROR('Data Input - BAT'!CM87*INDEX('Energy Prices'!$F$19:$CR$24,MATCH($B97,'Energy Prices'!$C$19:$C$24,0),MATCH(Calc_BAT!CI$6,'Energy Prices'!$F$11:$CR$11,0))/100000,\"\")","v":""},{"$f":"IFERROR('Data Input - BAT'!CN87*INDEX('Energy Prices'!$F$19:$CR$24,MATCH($B97,'Energy Prices'!$C$19:$C$24,0),MATCH(Calc_BAT!CJ$6,'Energy Prices'!$F$11:$CR$11,0))/100000,\"\")","v":""},{"$f":"IFERROR('Data Input - BAT'!CO87*INDEX('Energy Prices'!$F$19:$CR$24,MATCH($B97,'Energy Prices'!$C$19:$C$24,0),MATCH(Calc_BAT!CK$6,'Energy Prices'!$F$11:$CR$11,0))/100000,\"\")","v":""},{"$f":"IFERROR('Data Input - BAT'!CP87*INDEX('Energy Prices'!$F$19:$CR$24,MATCH($B97,'Energy Prices'!$C$19:$C$24,0),MATCH(Calc_BAT!CL$6,'Energy Prices'!$F$11:$CR$11,0))/100000,\"\")","v":""},{"$f":"IFERROR('Data Input - BAT'!CQ87*INDEX('Energy Prices'!$F$19:$CR$24,MATCH($B97,'Energy Prices'!$C$19:$C$24,0),MATCH(Calc_BAT!CM$6,'Energy Prices'!$F$11:$CR$11,0))/100000,\"\")","v":""},{"$f":"IFERROR('Data Input - BAT'!CR87*INDEX('Energy Prices'!$F$19:$CR$24,MATCH($B97,'Energy Prices'!$C$19:$C$24,0),MATCH(Calc_BAT!CN$6,'Energy Prices'!$F$11:$CR$11,0))/100000,\"\")","v":""},{"$f":"IFERROR('Data Input - BAT'!CS87*INDEX('Energy Prices'!$F$19:$CR$24,MATCH($B97,'Energy Prices'!$C$19:$C$24,0),MATCH(Calc_BAT!CO$6,'Energy Prices'!$F$11:$CR$11,0))/100000,\"\")","v":""},{"$f":"IFERROR('Data Input - BAT'!CT87*INDEX('Energy Prices'!$F$19:$CR$24,MATCH($B97,'Energy Prices'!$C$19:$C$24,0),MATCH(Calc_BAT!CP$6,'Energy Prices'!$F$11:$CR$11,0))/100000,\"\")","v":""},{"$f":"IFERROR('Data Input - BAT'!CU87*INDEX('Energy Prices'!$F$19:$CR$24,MATCH($B97,'Energy Prices'!$C$19:$C$24,0),MATCH(Calc_BAT!CQ$6,'Energy Prices'!$F$11:$CR$11,0))/100000,\"\")","v":""},{"$f":"IFERROR('Data Input - BAT'!CV87*INDEX('Energy Prices'!$F$19:$CR$24,MATCH($B97,'Energy Prices'!$C$19:$C$24,0),MATCH(Calc_BAT!CR$6,'Energy Prices'!$F$11:$CR$11,0))/100000,\"\")","v":""},{"$f":"IFERROR('Data Input - BAT'!CW87*INDEX('Energy Prices'!$F$19:$CR$24,MATCH($B97,'Energy Prices'!$C$19:$C$24,0),MATCH(Calc_BAT!CS$6,'Energy Prices'!$F$11:$CR$11,0))/100000,\"\")","v":""},{"$f":"IFERROR('Data Input - BAT'!CX87*INDEX('Energy Prices'!$F$19:$CR$24,MATCH($B97,'Energy Prices'!$C$19:$C$24,0),MATCH(Calc_BAT!CT$6,'Energy Prices'!$F$11:$CR$11,0))/100000,\"\")","v":""},{"$f":"IFERROR('Data Input - BAT'!CY87*INDEX('Energy Prices'!$F$19:$CR$24,MATCH($B97,'Energy Prices'!$C$19:$C$24,0),MATCH(Calc_BAT!CU$6,'Energy Prices'!$F$11:$CR$11,0))/100000,\"\")","v":""},{"$f":"IFERROR('Data Input - BAT'!CZ87*INDEX('Energy Prices'!$F$19:$CR$24,MATCH($B97,'Energy Prices'!$C$19:$C$24,0),MATCH(Calc_BAT!CV$6,'Energy Prices'!$F$11:$CR$11,0))/100000,\"\")","v":""},{"$f":"IFERROR('Data Input - BAT'!DA87*INDEX('Energy Prices'!$F$19:$CR$24,MATCH($B97,'Energy Prices'!$C$19:$C$24,0),MATCH(Calc_BAT!CW$6,'Energy Prices'!$F$11:$CR$11,0))/100000,\"\")","v":""},{"$f":"IFERROR('Data Input - BAT'!DB87*INDEX('Energy Prices'!$F$19:$CR$24,MATCH($B97,'Energy Prices'!$C$19:$C$24,0),MATCH(Calc_BAT!CX$6,'Energy Prices'!$F$11:$CR$11,0))/100000,\"\")","v":""},{"$f":"IFERROR('Data Input - BAT'!DC87*INDEX('Energy Prices'!$F$19:$CR$24,MATCH($B97,'Energy Prices'!$C$19:$C$24,0),MATCH(Calc_BAT!CY$6,'Energy Prices'!$F$11:$CR$11,0))/100000,\"\")","v":""}]
[null,"Road - Petrol","£000's",{"$f":"IFERROR('Data Input - BAT'!H88*INDEX('Energy Prices'!$F$19:$CR$24,MATCH($B98,'Energy Prices'!$C$19:$C$24,0),MATCH(Calc_BAT!D$6,'Energy Prices'!$F$11:$CR$11,0))/100000,\"\")","v":0},{"$f":"IFERROR('Data Input - BAT'!I88*INDEX('Energy Prices'!$F$19:$CR$24,MATCH($B98,'Energy Prices'!$C$19:$C$24,0),MATCH(Calc_BAT!E$6,'Energy Prices'!$F$11:$CR$11,0))/100000,\"\")","v":0},{"$f":"IFERROR('Data Input - BAT'!J88*INDEX('Energy Prices'!$F$19:$CR$24,MATCH($B98,'Energy Prices'!$C$19:$C$24,0),MATCH(Calc_BAT!F$6,'Energy Prices'!$F$11:$CR$11,0))/100000,\"\")","v":0},{"$f":"IFERROR('Data Input - BAT'!K88*INDEX('Energy Prices'!$F$19:$CR$24,MATCH($B98,'Energy Prices'!$C$19:$C$24,0),MATCH(Calc_BAT!G$6,'Energy Prices'!$F$11:$CR$11,0))/100000,\"\")","v":0},{"$f":"IFERROR('Data Input - BAT'!L88*INDEX('Energy Prices'!$F$19:$CR$24,MATCH($B98,'Energy Prices'!$C$19:$C$24,0),MATCH(Calc_BAT!H$6,'Energy Prices'!$F$11:$CR$11,0))/100000,\"\")","v":0},{"$f":"IFERROR('Data Input - BAT'!M88*INDEX('Energy Prices'!$F$19:$CR$24,MATCH($B98,'Energy Prices'!$C$19:$C$24,0),MATCH(Calc_BAT!I$6,'Energy Prices'!$F$11:$CR$11,0))/100000,\"\")","v":0},{"$f":"IFERROR('Data Input - BAT'!N88*INDEX('Energy Prices'!$F$19:$CR$24,MATCH($B98,'Energy Prices'!$C$19:$C$24,0),MATCH(Calc_BAT!J$6,'Energy Prices'!$F$11:$CR$11,0))/100000,\"\")","v":0},{"$f":"IFERROR('Data Input - BAT'!O88*INDEX('Energy Prices'!$F$19:$CR$24,MATCH($B98,'Energy Prices'!$C$19:$C$24,0),MATCH(Calc_BAT!K$6,'Energy Prices'!$F$11:$CR$11,0))/100000,\"\")","v":0},{"$f":"IFERROR('Data Input - BAT'!P88*INDEX('Energy Prices'!$F$19:$CR$24,MATCH($B98,'Energy Prices'!$C$19:$C$24,0),MATCH(Calc_BAT!L$6,'Energy Prices'!$F$11:$CR$11,0))/100000,\"\")","v":0},{"$f":"IFERROR('Data Input - BAT'!Q88*INDEX('Energy Prices'!$F$19:$CR$24,MATCH($B98,'Energy Prices'!$C$19:$C$24,0),MATCH(Calc_BAT!M$6,'Energy Prices'!$F$11:$CR$11,0))/100000,\"\")","v":0},{"$f":"IFERROR('Data Input - BAT'!R88*INDEX('Energy Prices'!$F$19:$CR$24,MATCH($B98,'Energy Prices'!$C$19:$C$24,0),MATCH(Calc_BAT!N$6,'Energy Prices'!$F$11:$CR$11,0))/100000,\"\")","v":0},{"$f":"IFERROR('Data Input - BAT'!S88*INDEX('Energy Prices'!$F$19:$CR$24,MATCH($B98,'Energy Prices'!$C$19:$C$24,0),MATCH(Calc_BAT!O$6,'Energy Prices'!$F$11:$CR$11,0))/100000,\"\")","v":0},{"$f":"IFERROR('Data Input - BAT'!T88*INDEX('Energy Prices'!$F$19:$CR$24,MATCH($B98,'Energy Prices'!$C$19:$C$24,0),MATCH(Calc_BAT!P$6,'Energy Prices'!$F$11:$CR$11,0))/100000,\"\")","v":0},{"$f":"IFERROR('Data Input - BAT'!U88*INDEX('Energy Prices'!$F$19:$CR$24,MATCH($B98,'Energy Prices'!$C$19:$C$24,0),MATCH(Calc_BAT!Q$6,'Energy Prices'!$F$11:$CR$11,0))/100000,\"\")","v":0},{"$f":"IFERROR('Data Input - BAT'!V88*INDEX('Energy Prices'!$F$19:$CR$24,MATCH($B98,'Energy Prices'!$C$19:$C$24,0),MATCH(Calc_BAT!R$6,'Energy Prices'!$F$11:$CR$11,0))/100000,\"\")","v":0},{"$f":"IFERROR('Data Input - BAT'!W88*INDEX('Energy Prices'!$F$19:$CR$24,MATCH($B98,'Energy Prices'!$C$19:$C$24,0),MATCH(Calc_BAT!S$6,'Energy Prices'!$F$11:$CR$11,0))/100000,\"\")","v":0},{"$f":"IFERROR('Data Input - BAT'!X88*INDEX('Energy Prices'!$F$19:$CR$24,MATCH($B98,'Energy Prices'!$C$19:$C$24,0),MATCH(Calc_BAT!T$6,'Energy Prices'!$F$11:$CR$11,0))/100000,\"\")","v":0},{"$f":"IFERROR('Data Input - BAT'!Y88*INDEX('Energy Prices'!$F$19:$CR$24,MATCH($B98,'Energy Prices'!$C$19:$C$24,0),MATCH(Calc_BAT!U$6,'Energy Prices'!$F$11:$CR$11,0))/100000,\"\")","v":0},{"$f":"IFERROR('Data Input - BAT'!Z88*INDEX('Energy Prices'!$F$19:$CR$24,MATCH($B98,'Energy Prices'!$C$19:$C$24,0),MATCH(Calc_BAT!V$6,'Energy Prices'!$F$11:$CR$11,0))/100000,\"\")","v":0},{"$f":"IFERROR('Data Input - BAT'!AA88*INDEX('Energy Prices'!$F$19:$CR$24,MATCH($B98,'Energy Prices'!$C$19:$C$24,0),MATCH(Calc_BAT!W$6,'Energy Prices'!$F$11:$CR$11,0))/100000,\"\")","v":0},{"$f":"IFERROR('Data Input - BAT'!AB88*INDEX('Energy Prices'!$F$19:$CR$24,MATCH($B98,'Energy Prices'!$C$19:$C$24,0),MATCH(Calc_BAT!X$6,'Energy Prices'!$F$11:$CR$11,0))/100000,\"\")","v":0},{"$f":"IFERROR('Data Input - BAT'!AC88*INDEX('Energy Prices'!$F$19:$CR$24,MATCH($B98,'Energy Prices'!$C$19:$C$24,0),MATCH(Calc_BAT!Y$6,'Energy Prices'!$F$11:$CR$11,0))/100000,\"\")","v":0},{"$f":"IFERROR('Data Input - BAT'!AD88*INDEX('Energy Prices'!$F$19:$CR$24,MATCH($B98,'Energy Prices'!$C$19:$C$24,0),MATCH(Calc_BAT!Z$6,'Energy Prices'!$F$11:$CR$11,0))/100000,\"\")","v":0},{"$f":"IFERROR('Data Input - BAT'!AE88*INDEX('Energy Prices'!$F$19:$CR$24,MATCH($B98,'Energy Prices'!$C$19:$C$24,0),MATCH(Calc_BAT!AA$6,'Energy Prices'!$F$11:$CR$11,0))/100000,\"\")","v":0},{"$f":"IFERROR('Data Input - BAT'!AF88*INDEX('Energy Prices'!$F$19:$CR$24,MATCH($B98,'Energy Prices'!$C$19:$C$24,0),MATCH(Calc_BAT!AB$6,'Energy Prices'!$F$11:$CR$11,0))/100000,\"\")","v":0},{"$f":"IFERROR('Data Input - BAT'!AG88*INDEX('Energy Prices'!$F$19:$CR$24,MATCH($B98,'Energy Prices'!$C$19:$C$24,0),MATCH(Calc_BAT!AC$6,'Energy Prices'!$F$11:$CR$11,0))/100000,\"\")","v":0},{"$f":"IFERROR('Data Input - BAT'!AH88*INDEX('Energy Prices'!$F$19:$CR$24,MATCH($B98,'Energy Prices'!$C$19:$C$24,0),MATCH(Calc_BAT!AD$6,'Energy Prices'!$F$11:$CR$11,0))/100000,\"\")","v":0},{"$f":"IFERROR('Data Input - BAT'!AI88*INDEX('Energy Prices'!$F$19:$CR$24,MATCH($B98,'Energy Prices'!$C$19:$C$24,0),MATCH(Calc_BAT!AE$6,'Energy Prices'!$F$11:$CR$11,0))/100000,\"\")","v":0},{"$f":"IFERROR('Data Input - BAT'!AJ88*INDEX('Energy Prices'!$F$19:$CR$24,MATCH($B98,'Energy Prices'!$C$19:$C$24,0),MATCH(Calc_BAT!AF$6,'Energy Prices'!$F$11:$CR$11,0))/100000,\"\")","v":0},{"$f":"IFERROR('Data Input - BAT'!AK88*INDEX('Energy Prices'!$F$19:$CR$24,MATCH($B98,'Energy Prices'!$C$19:$C$24,0),MATCH(Calc_BAT!AG$6,'Energy Prices'!$F$11:$CR$11,0))/100000,\"\")","v":0},{"$f":"IFERROR('Data Input - BAT'!AL88*INDEX('Energy Prices'!$F$19:$CR$24,MATCH($B98,'Energy Prices'!$C$19:$C$24,0),MATCH(Calc_BAT!AH$6,'Energy Prices'!$F$11:$CR$11,0))/100000,\"\")","v":0},{"$f":"IFERROR('Data Input - BAT'!AM88*INDEX('Energy Prices'!$F$19:$CR$24,MATCH($B98,'Energy Prices'!$C$19:$C$24,0),MATCH(Calc_BAT!AI$6,'Energy Prices'!$F$11:$CR$11,0))/100000,\"\")","v":""},{"$f":"IFERROR('Data Input - BAT'!AN88*INDEX('Energy Prices'!$F$19:$CR$24,MATCH($B98,'Energy Prices'!$C$19:$C$24,0),MATCH(Calc_BAT!AJ$6,'Energy Prices'!$F$11:$CR$11,0))/100000,\"\")","v":""},{"$f":"IFERROR('Data Input - BAT'!AO88*INDEX('Energy Prices'!$F$19:$CR$24,MATCH($B98,'Energy Prices'!$C$19:$C$24,0),MATCH(Calc_BAT!AK$6,'Energy Prices'!$F$11:$CR$11,0))/100000,\"\")","v":""},{"$f":"IFERROR('Data Input - BAT'!AP88*INDEX('Energy Prices'!$F$19:$CR$24,MATCH($B98,'Energy Prices'!$C$19:$C$24,0),MATCH(Calc_BAT!AL$6,'Energy Prices'!$F$11:$CR$11,0))/100000,\"\")","v":""},{"$f":"IFERROR('Data Input - BAT'!AQ88*INDEX('Energy Prices'!$F$19:$CR$24,MATCH($B98,'Energy Prices'!$C$19:$C$24,0),MATCH(Calc_BAT!AM$6,'Energy Prices'!$F$11:$CR$11,0))/100000,\"\")","v":""},{"$f":"IFERROR('Data Input - BAT'!AR88*INDEX('Energy Prices'!$F$19:$CR$24,MATCH($B98,'Energy Prices'!$C$19:$C$24,0),MATCH(Calc_BAT!AN$6,'Energy Prices'!$F$11:$CR$11,0))/100000,\"\")","v":""},{"$f":"IFERROR('Data Input - BAT'!AS88*INDEX('Energy Prices'!$F$19:$CR$24,MATCH($B98,'Energy Prices'!$C$19:$C$24,0),MATCH(Calc_BAT!AO$6,'Energy Prices'!$F$11:$CR$11,0))/100000,\"\")","v":""},{"$f":"IFERROR('Data Input - BAT'!AT88*INDEX('Energy Prices'!$F$19:$CR$24,MATCH($B98,'Energy Prices'!$C$19:$C$24,0),MATCH(Calc_BAT!AP$6,'Energy Prices'!$F$11:$CR$11,0))/100000,\"\")","v":""},{"$f":"IFERROR('Data Input - BAT'!AU88*INDEX('Energy Prices'!$F$19:$CR$24,MATCH($B98,'Energy Prices'!$C$19:$C$24,0),MATCH(Calc_BAT!AQ$6,'Energy Prices'!$F$11:$CR$11,0))/100000,\"\")","v":""},{"$f":"IFERROR('Data Input - BAT'!AV88*INDEX('Energy Prices'!$F$19:$CR$24,MATCH($B98,'Energy Prices'!$C$19:$C$24,0),MATCH(Calc_BAT!AR$6,'Energy Prices'!$F$11:$CR$11,0))/100000,\"\")","v":""},{"$f":"IFERROR('Data Input - BAT'!AW88*INDEX('Energy Prices'!$F$19:$CR$24,MATCH($B98,'Energy Prices'!$C$19:$C$24,0),MATCH(Calc_BAT!AS$6,'Energy Prices'!$F$11:$CR$11,0))/100000,\"\")","v":""},{"$f":"IFERROR('Data Input - BAT'!AX88*INDEX('Energy Prices'!$F$19:$CR$24,MATCH($B98,'Energy Prices'!$C$19:$C$24,0),MATCH(Calc_BAT!AT$6,'Energy Prices'!$F$11:$CR$11,0))/100000,\"\")","v":""},{"$f":"IFERROR('Data Input - BAT'!AY88*INDEX('Energy Prices'!$F$19:$CR$24,MATCH($B98,'Energy Prices'!$C$19:$C$24,0),MATCH(Calc_BAT!AU$6,'Energy Prices'!$F$11:$CR$11,0))/100000,\"\")","v":""},{"$f":"IFERROR('Data Input - BAT'!AZ88*INDEX('Energy Prices'!$F$19:$CR$24,MATCH($B98,'Energy Prices'!$C$19:$C$24,0),MATCH(Calc_BAT!AV$6,'Energy Prices'!$F$11:$CR$11,0))/100000,\"\")","v":""},{"$f":"IFERROR('Data Input - BAT'!BA88*INDEX('Energy Prices'!$F$19:$CR$24,MATCH($B98,'Energy Prices'!$C$19:$C$24,0),MATCH(Calc_BAT!AW$6,'Energy Prices'!$F$11:$CR$11,0))/100000,\"\")","v":""},{"$f":"IFERROR('Data Input - BAT'!BB88*INDEX('Energy Prices'!$F$19:$CR$24,MATCH($B98,'Energy Prices'!$C$19:$C$24,0),MATCH(Calc_BAT!AX$6,'Energy Prices'!$F$11:$CR$11,0))/100000,\"\")","v":""},{"$f":"IFERROR('Data Input - BAT'!BC88*INDEX('Energy Prices'!$F$19:$CR$24,MATCH($B98,'Energy Prices'!$C$19:$C$24,0),MATCH(Calc_BAT!AY$6,'Energy Prices'!$F$11:$CR$11,0))/100000,\"\")","v":""},{"$f":"IFERROR('Data Input - BAT'!BD88*INDEX('Energy Prices'!$F$19:$CR$24,MATCH($B98,'Energy Prices'!$C$19:$C$24,0),MATCH(Calc_BAT!AZ$6,'Energy Prices'!$F$11:$CR$11,0))/100000,\"\")","v":""},{"$f":"IFERROR('Data Input - BAT'!BE88*INDEX('Energy Prices'!$F$19:$CR$24,MATCH($B98,'Energy Prices'!$C$19:$C$24,0),MATCH(Calc_BAT!BA$6,'Energy Prices'!$F$11:$CR$11,0))/100000,\"\")","v":""},{"$f":"IFERROR('Data Input - BAT'!BF88*INDEX('Energy Prices'!$F$19:$CR$24,MATCH($B98,'Energy Prices'!$C$19:$C$24,0),MATCH(Calc_BAT!BB$6,'Energy Prices'!$F$11:$CR$11,0))/100000,\"\")","v":""},{"$f":"IFERROR('Data Input - BAT'!BG88*INDEX('Energy Prices'!$F$19:$CR$24,MATCH($B98,'Energy Prices'!$C$19:$C$24,0),MATCH(Calc_BAT!BC$6,'Energy Prices'!$F$11:$CR$11,0))/100000,\"\")","v":""},{"$f":"IFERROR('Data Input - BAT'!BH88*INDEX('Energy Prices'!$F$19:$CR$24,MATCH($B98,'Energy Prices'!$C$19:$C$24,0),MATCH(Calc_BAT!BD$6,'Energy Prices'!$F$11:$CR$11,0))/100000,\"\")","v":""},{"$f":"IFERROR('Data Input - BAT'!BI88*INDEX('Energy Prices'!$F$19:$CR$24,MATCH($B98,'Energy Prices'!$C$19:$C$24,0),MATCH(Calc_BAT!BE$6,'Energy Prices'!$F$11:$CR$11,0))/100000,\"\")","v":""},{"$f":"IFERROR('Data Input - BAT'!BJ88*INDEX('Energy Prices'!$F$19:$CR$24,MATCH($B98,'Energy Prices'!$C$19:$C$24,0),MATCH(Calc_BAT!BF$6,'Energy Prices'!$F$11:$CR$11,0))/100000,\"\")","v":""},{"$f":"IFERROR('Data Input - BAT'!BK88*INDEX('Energy Prices'!$F$19:$CR$24,MATCH($B98,'Energy Prices'!$C$19:$C$24,0),MATCH(Calc_BAT!BG$6,'Energy Prices'!$F$11:$CR$11,0))/100000,\"\")","v":""},{"$f":"IFERROR('Data Input - BAT'!BL88*INDEX('Energy Prices'!$F$19:$CR$24,MATCH($B98,'Energy Prices'!$C$19:$C$24,0),MATCH(Calc_BAT!BH$6,'Energy Prices'!$F$11:$CR$11,0))/100000,\"\")","v":""},{"$f":"IFERROR('Data Input - BAT'!BM88*INDEX('Energy Prices'!$F$19:$CR$24,MATCH($B98,'Energy Prices'!$C$19:$C$24,0),MATCH(Calc_BAT!BI$6,'Energy Prices'!$F$11:$CR$11,0))/100000,\"\")","v":""},{"$f":"IFERROR('Data Input - BAT'!BN88*INDEX('Energy Prices'!$F$19:$CR$24,MATCH($B98,'Energy Prices'!$C$19:$C$24,0),MATCH(Calc_BAT!BJ$6,'Energy Prices'!$F$11:$CR$11,0))/100000,\"\")","v":""},{"$f":"IFERROR('Data Input - BAT'!BO88*INDEX('Energy Prices'!$F$19:$CR$24,MATCH($B98,'Energy Prices'!$C$19:$C$24,0),MATCH(Calc_BAT!BK$6,'Energy Prices'!$F$11:$CR$11,0))/100000,\"\")","v":""},{"$f":"IFERROR('Data Input - BAT'!BP88*INDEX('Energy Prices'!$F$19:$CR$24,MATCH($B98,'Energy Prices'!$C$19:$C$24,0),MATCH(Calc_BAT!BL$6,'Energy Prices'!$F$11:$CR$11,0))/100000,\"\")","v":""},{"$f":"IFERROR('Data Input - BAT'!BQ88*INDEX('Energy Prices'!$F$19:$CR$24,MATCH($B98,'Energy Prices'!$C$19:$C$24,0),MATCH(Calc_BAT!BM$6,'Energy Prices'!$F$11:$CR$11,0))/100000,\"\")","v":""},{"$f":"IFERROR('Data Input - BAT'!BR88*INDEX('Energy Prices'!$F$19:$CR$24,MATCH($B98,'Energy Prices'!$C$19:$C$24,0),MATCH(Calc_BAT!BN$6,'Energy Prices'!$F$11:$CR$11,0))/100000,\"\")","v":""},{"$f":"IFERROR('Data Input - BAT'!BS88*INDEX('Energy Prices'!$F$19:$CR$24,MATCH($B98,'Energy Prices'!$C$19:$C$24,0),MATCH(Calc_BAT!BO$6,'Energy Prices'!$F$11:$CR$11,0))/100000,\"\")","v":""},{"$f":"IFERROR('Data Input - BAT'!BT88*INDEX('Energy Prices'!$F$19:$CR$24,MATCH($B98,'Energy Prices'!$C$19:$C$24,0),MATCH(Calc_BAT!BP$6,'Energy Prices'!$F$11:$CR$11,0))/100000,\"\")","v":""},{"$f":"IFERROR('Data Input - BAT'!BU88*INDEX('Energy Prices'!$F$19:$CR$24,MATCH($B98,'Energy Prices'!$C$19:$C$24,0),MATCH(Calc_BAT!BQ$6,'Energy Prices'!$F$11:$CR$11,0))/100000,\"\")","v":""},{"$f":"IFERROR('Data Input - BAT'!BV88*INDEX('Energy Prices'!$F$19:$CR$24,MATCH($B98,'Energy Prices'!$C$19:$C$24,0),MATCH(Calc_BAT!BR$6,'Energy Prices'!$F$11:$CR$11,0))/100000,\"\")","v":""},{"$f":"IFERROR('Data Input - BAT'!BW88*INDEX('Energy Prices'!$F$19:$CR$24,MATCH($B98,'Energy Prices'!$C$19:$C$24,0),MATCH(Calc_BAT!BS$6,'Energy Prices'!$F$11:$CR$11,0))/100000,\"\")","v":""},{"$f":"IFERROR('Data Input - BAT'!BX88*INDEX('Energy Prices'!$F$19:$CR$24,MATCH($B98,'Energy Prices'!$C$19:$C$24,0),MATCH(Calc_BAT!BT$6,'Energy Prices'!$F$11:$CR$11,0))/100000,\"\")","v":""},{"$f":"IFERROR('Data Input - BAT'!BY88*INDEX('Energy Prices'!$F$19:$CR$24,MATCH($B98,'Energy Prices'!$C$19:$C$24,0),MATCH(Calc_BAT!BU$6,'Energy Prices'!$F$11:$CR$11,0))/100000,\"\")","v":""},{"$f":"IFERROR('Data Input - BAT'!BZ88*INDEX('Energy Prices'!$F$19:$CR$24,MATCH($B98,'Energy Prices'!$C$19:$C$24,0),MATCH(Calc_BAT!BV$6,'Energy Prices'!$F$11:$CR$11,0))/100000,\"\")","v":""},{"$f":"IFERROR('Data Input - BAT'!CA88*INDEX('Energy Prices'!$F$19:$CR$24,MATCH($B98,'Energy Prices'!$C$19:$C$24,0),MATCH(Calc_BAT!BW$6,'Energy Prices'!$F$11:$CR$11,0))/100000,\"\")","v":""},{"$f":"IFERROR('Data Input - BAT'!CB88*INDEX('Energy Prices'!$F$19:$CR$24,MATCH($B98,'Energy Prices'!$C$19:$C$24,0),MATCH(Calc_BAT!BX$6,'Energy Prices'!$F$11:$CR$11,0))/100000,\"\")","v":""},{"$f":"IFERROR('Data Input - BAT'!CC88*INDEX('Energy Prices'!$F$19:$CR$24,MATCH($B98,'Energy Prices'!$C$19:$C$24,0),MATCH(Calc_BAT!BY$6,'Energy Prices'!$F$11:$CR$11,0))/100000,\"\")","v":""},{"$f":"IFERROR('Data Input - BAT'!CD88*INDEX('Energy Prices'!$F$19:$CR$24,MATCH($B98,'Energy Prices'!$C$19:$C$24,0),MATCH(Calc_BAT!BZ$6,'Energy Prices'!$F$11:$CR$11,0))/100000,\"\")","v":""},{"$f":"IFERROR('Data Input - BAT'!CE88*INDEX('Energy Prices'!$F$19:$CR$24,MATCH($B98,'Energy Prices'!$C$19:$C$24,0),MATCH(Calc_BAT!CA$6,'Energy Prices'!$F$11:$CR$11,0))/100000,\"\")","v":""},{"$f":"IFERROR('Data Input - BAT'!CF88*INDEX('Energy Prices'!$F$19:$CR$24,MATCH($B98,'Energy Prices'!$C$19:$C$24,0),MATCH(Calc_BAT!CB$6,'Energy Prices'!$F$11:$CR$11,0))/100000,\"\")","v":""},{"$f":"IFERROR('Data Input - BAT'!CG88*INDEX('Energy Prices'!$F$19:$CR$24,MATCH($B98,'Energy Prices'!$C$19:$C$24,0),MATCH(Calc_BAT!CC$6,'Energy Prices'!$F$11:$CR$11,0))/100000,\"\")","v":""},{"$f":"IFERROR('Data Input - BAT'!CH88*INDEX('Energy Prices'!$F$19:$CR$24,MATCH($B98,'Energy Prices'!$C$19:$C$24,0),MATCH(Calc_BAT!CD$6,'Energy Prices'!$F$11:$CR$11,0))/100000,\"\")","v":""},{"$f":"IFERROR('Data Input - BAT'!CI88*INDEX('Energy Prices'!$F$19:$CR$24,MATCH($B98,'Energy Prices'!$C$19:$C$24,0),MATCH(Calc_BAT!CE$6,'Energy Prices'!$F$11:$CR$11,0))/100000,\"\")","v":""},{"$f":"IFERROR('Data Input - BAT'!CJ88*INDEX('Energy Prices'!$F$19:$CR$24,MATCH($B98,'Energy Prices'!$C$19:$C$24,0),MATCH(Calc_BAT!CF$6,'Energy Prices'!$F$11:$CR$11,0))/100000,\"\")","v":""},{"$f":"IFERROR('Data Input - BAT'!CK88*INDEX('Energy Prices'!$F$19:$CR$24,MATCH($B98,'Energy Prices'!$C$19:$C$24,0),MATCH(Calc_BAT!CG$6,'Energy Prices'!$F$11:$CR$11,0))/100000,\"\")","v":""},{"$f":"IFERROR('Data Input - BAT'!CL88*INDEX('Energy Prices'!$F$19:$CR$24,MATCH($B98,'Energy Prices'!$C$19:$C$24,0),MATCH(Calc_BAT!CH$6,'Energy Prices'!$F$11:$CR$11,0))/100000,\"\")","v":""},{"$f":"IFERROR('Data Input - BAT'!CM88*INDEX('Energy Prices'!$F$19:$CR$24,MATCH($B98,'Energy Prices'!$C$19:$C$24,0),MATCH(Calc_BAT!CI$6,'Energy Prices'!$F$11:$CR$11,0))/100000,\"\")","v":""},{"$f":"IFERROR('Data Input - BAT'!CN88*INDEX('Energy Prices'!$F$19:$CR$24,MATCH($B98,'Energy Prices'!$C$19:$C$24,0),MATCH(Calc_BAT!CJ$6,'Energy Prices'!$F$11:$CR$11,0))/100000,\"\")","v":""},{"$f":"IFERROR('Data Input - BAT'!CO88*INDEX('Energy Prices'!$F$19:$CR$24,MATCH($B98,'Energy Prices'!$C$19:$C$24,0),MATCH(Calc_BAT!CK$6,'Energy Prices'!$F$11:$CR$11,0))/100000,\"\")","v":""},{"$f":"IFERROR('Data Input - BAT'!CP88*INDEX('Energy Prices'!$F$19:$CR$24,MATCH($B98,'Energy Prices'!$C$19:$C$24,0),MATCH(Calc_BAT!CL$6,'Energy Prices'!$F$11:$CR$11,0))/100000,\"\")","v":""},{"$f":"IFERROR('Data Input - BAT'!CQ88*INDEX('Energy Prices'!$F$19:$CR$24,MATCH($B98,'Energy Prices'!$C$19:$C$24,0),MATCH(Calc_BAT!CM$6,'Energy Prices'!$F$11:$CR$11,0))/100000,\"\")","v":""},{"$f":"IFERROR('Data Input - BAT'!CR88*INDEX('Energy Prices'!$F$19:$CR$24,MATCH($B98,'Energy Prices'!$C$19:$C$24,0),MATCH(Calc_BAT!CN$6,'Energy Prices'!$F$11:$CR$11,0))/100000,\"\")","v":""},{"$f":"IFERROR('Data Input - BAT'!CS88*INDEX('Energy Prices'!$F$19:$CR$24,MATCH($B98,'Energy Prices'!$C$19:$C$24,0),MATCH(Calc_BAT!CO$6,'Energy Prices'!$F$11:$CR$11,0))/100000,\"\")","v":""},{"$f":"IFERROR('Data Input - BAT'!CT88*INDEX('Energy Prices'!$F$19:$CR$24,MATCH($B98,'Energy Prices'!$C$19:$C$24,0),MATCH(Calc_BAT!CP$6,'Energy Prices'!$F$11:$CR$11,0))/100000,\"\")","v":""},{"$f":"IFERROR('Data Input - BAT'!CU88*INDEX('Energy Prices'!$F$19:$CR$24,MATCH($B98,'Energy Prices'!$C$19:$C$24,0),MATCH(Calc_BAT!CQ$6,'Energy Prices'!$F$11:$CR$11,0))/100000,\"\")","v":""},{"$f":"IFERROR('Data Input - BAT'!CV88*INDEX('Energy Prices'!$F$19:$CR$24,MATCH($B98,'Energy Prices'!$C$19:$C$24,0),MATCH(Calc_BAT!CR$6,'Energy Prices'!$F$11:$CR$11,0))/100000,\"\")","v":""},{"$f":"IFERROR('Data Input - BAT'!CW88*INDEX('Energy Prices'!$F$19:$CR$24,MATCH($B98,'Energy Prices'!$C$19:$C$24,0),MATCH(Calc_BAT!CS$6,'Energy Prices'!$F$11:$CR$11,0))/100000,\"\")","v":""},{"$f":"IFERROR('Data Input - BAT'!CX88*INDEX('Energy Prices'!$F$19:$CR$24,MATCH($B98,'Energy Prices'!$C$19:$C$24,0),MATCH(Calc_BAT!CT$6,'Energy Prices'!$F$11:$CR$11,0))/100000,\"\")","v":""},{"$f":"IFERROR('Data Input - BAT'!CY88*INDEX('Energy Prices'!$F$19:$CR$24,MATCH($B98,'Energy Prices'!$C$19:$C$24,0),MATCH(Calc_BAT!CU$6,'Energy Prices'!$F$11:$CR$11,0))/100000,\"\")","v":""},{"$f":"IFERROR('Data Input - BAT'!CZ88*INDEX('Energy Prices'!$F$19:$CR$24,MATCH($B98,'Energy Prices'!$C$19:$C$24,0),MATCH(Calc_BAT!CV$6,'Energy Prices'!$F$11:$CR$11,0))/100000,\"\")","v":""},{"$f":"IFERROR('Data Input - BAT'!DA88*INDEX('Energy Prices'!$F$19:$CR$24,MATCH($B98,'Energy Prices'!$C$19:$C$24,0),MATCH(Calc_BAT!CW$6,'Energy Prices'!$F$11:$CR$11,0))/100000,\"\")","v":""},{"$f":"IFERROR('Data Input - BAT'!DB88*INDEX('Energy Prices'!$F$19:$CR$24,MATCH($B98,'Energy Prices'!$C$19:$C$24,0),MATCH(Calc_BAT!CX$6,'Energy Prices'!$F$11:$CR$11,0))/100000,\"\")","v":""},{"$f":"IFERROR('Data Input - BAT'!DC88*INDEX('Energy Prices'!$F$19:$CR$24,MATCH($B98,'Energy Prices'!$C$19:$C$24,0),MATCH(Calc_BAT!CY$6,'Energy Prices'!$F$11:$CR$11,0))/100000,\"\")","v":""}]
[null,"Road - Diesel","£000's",{"$f":"IFERROR('Data Input - BAT'!H89*INDEX('Energy Prices'!$F$19:$CR$24,MATCH($B99,'Energy Prices'!$C$19:$C$24,0),MATCH(Calc_BAT!D$6,'Energy Prices'!$F$11:$CR$11,0))/100000,\"\")","v":0},{"$f":"IFERROR('Data Input - BAT'!I89*INDEX('Energy Prices'!$F$19:$CR$24,MATCH($B99,'Energy Prices'!$C$19:$C$24,0),MATCH(Calc_BAT!E$6,'Energy Prices'!$F$11:$CR$11,0))/100000,\"\")","v":0},{"$f":"IFERROR('Data Input - BAT'!J89*INDEX('Energy Prices'!$F$19:$CR$24,MATCH($B99,'Energy Prices'!$C$19:$C$24,0),MATCH(Calc_BAT!F$6,'Energy Prices'!$F$11:$CR$11,0))/100000,\"\")","v":0},{"$f":"IFERROR('Data Input - BAT'!K89*INDEX('Energy Prices'!$F$19:$CR$24,MATCH($B99,'Energy Prices'!$C$19:$C$24,0),MATCH(Calc_BAT!G$6,'Energy Prices'!$F$11:$CR$11,0))/100000,\"\")","v":0},{"$f":"IFERROR('Data Input - BAT'!L89*INDEX('Energy Prices'!$F$19:$CR$24,MATCH($B99,'Energy Prices'!$C$19:$C$24,0),MATCH(Calc_BAT!H$6,'Energy Prices'!$F$11:$CR$11,0))/100000,\"\")","v":0},{"$f":"IFERROR('Data Input - BAT'!M89*INDEX('Energy Prices'!$F$19:$CR$24,MATCH($B99,'Energy Prices'!$C$19:$C$24,0),MATCH(Calc_BAT!I$6,'Energy Prices'!$F$11:$CR$11,0))/100000,\"\")","v":0},{"$f":"IFERROR('Data Input - BAT'!N89*INDEX('Energy Prices'!$F$19:$CR$24,MATCH($B99,'Energy Prices'!$C$19:$C$24,0),MATCH(Calc_BAT!J$6,'Energy Prices'!$F$11:$CR$11,0))/100000,\"\")","v":0},{"$f":"IFERROR('Data Input - BAT'!O89*INDEX('Energy Prices'!$F$19:$CR$24,MATCH($B99,'Energy Prices'!$C$19:$C$24,0),MATCH(Calc_BAT!K$6,'Energy Prices'!$F$11:$CR$11,0))/100000,\"\")","v":0},{"$f":"IFERROR('Data Input - BAT'!P89*INDEX('Energy Prices'!$F$19:$CR$24,MATCH($B99,'Energy Prices'!$C$19:$C$24,0),MATCH(Calc_BAT!L$6,'Energy Prices'!$F$11:$CR$11,0))/100000,\"\")","v":0},{"$f":"IFERROR('Data Input - BAT'!Q89*INDEX('Energy Prices'!$F$19:$CR$24,MATCH($B99,'Energy Prices'!$C$19:$C$24,0),MATCH(Calc_BAT!M$6,'Energy Prices'!$F$11:$CR$11,0))/100000,\"\")","v":0},{"$f":"IFERROR('Data Input - BAT'!R89*INDEX('Energy Prices'!$F$19:$CR$24,MATCH($B99,'Energy Prices'!$C$19:$C$24,0),MATCH(Calc_BAT!N$6,'Energy Prices'!$F$11:$CR$11,0))/100000,\"\")","v":0},{"$f":"IFERROR('Data Input - BAT'!S89*INDEX('Energy Prices'!$F$19:$CR$24,MATCH($B99,'Energy Prices'!$C$19:$C$24,0),MATCH(Calc_BAT!O$6,'Energy Prices'!$F$11:$CR$11,0))/100000,\"\")","v":0},{"$f":"IFERROR('Data Input - BAT'!T89*INDEX('Energy Prices'!$F$19:$CR$24,MATCH($B99,'Energy Prices'!$C$19:$C$24,0),MATCH(Calc_BAT!P$6,'Energy Prices'!$F$11:$CR$11,0))/100000,\"\")","v":0},{"$f":"IFERROR('Data Input - BAT'!U89*INDEX('Energy Prices'!$F$19:$CR$24,MATCH($B99,'Energy Prices'!$C$19:$C$24,0),MATCH(Calc_BAT!Q$6,'Energy Prices'!$F$11:$CR$11,0))/100000,\"\")","v":0},{"$f":"IFERROR('Data Input - BAT'!V89*INDEX('Energy Prices'!$F$19:$CR$24,MATCH($B99,'Energy Prices'!$C$19:$C$24,0),MATCH(Calc_BAT!R$6,'Energy Prices'!$F$11:$CR$11,0))/100000,\"\")","v":0},{"$f":"IFERROR('Data Input - BAT'!W89*INDEX('Energy Prices'!$F$19:$CR$24,MATCH($B99,'Energy Prices'!$C$19:$C$24,0),MATCH(Calc_BAT!S$6,'Energy Prices'!$F$11:$CR$11,0))/100000,\"\")","v":0},{"$f":"IFERROR('Data Input - BAT'!X89*INDEX('Energy Prices'!$F$19:$CR$24,MATCH($B99,'Energy Prices'!$C$19:$C$24,0),MATCH(Calc_BAT!T$6,'Energy Prices'!$F$11:$CR$11,0))/100000,\"\")","v":0},{"$f":"IFERROR('Data Input - BAT'!Y89*INDEX('Energy Prices'!$F$19:$CR$24,MATCH($B99,'Energy Prices'!$C$19:$C$24,0),MATCH(Calc_BAT!U$6,'Energy Prices'!$F$11:$CR$11,0))/100000,\"\")","v":0},{"$f":"IFERROR('Data Input - BAT'!Z89*INDEX('Energy Prices'!$F$19:$CR$24,MATCH($B99,'Energy Prices'!$C$19:$C$24,0),MATCH(Calc_BAT!V$6,'Energy Prices'!$F$11:$CR$11,0))/100000,\"\")","v":0},{"$f":"IFERROR('Data Input - BAT'!AA89*INDEX('Energy Prices'!$F$19:$CR$24,MATCH($B99,'Energy Prices'!$C$19:$C$24,0),MATCH(Calc_BAT!W$6,'Energy Prices'!$F$11:$CR$11,0))/100000,\"\")","v":0},{"$f":"IFERROR('Data Input - BAT'!AB89*INDEX('Energy Prices'!$F$19:$CR$24,MATCH($B99,'Energy Prices'!$C$19:$C$24,0),MATCH(Calc_BAT!X$6,'Energy Prices'!$F$11:$CR$11,0))/100000,\"\")","v":0},{"$f":"IFERROR('Data Input - BAT'!AC89*INDEX('Energy Prices'!$F$19:$CR$24,MATCH($B99,'Energy Prices'!$C$19:$C$24,0),MATCH(Calc_BAT!Y$6,'Energy Prices'!$F$11:$CR$11,0))/100000,\"\")","v":0},{"$f":"IFERROR('Data Input - BAT'!AD89*INDEX('Energy Prices'!$F$19:$CR$24,MATCH($B99,'Energy Prices'!$C$19:$C$24,0),MATCH(Calc_BAT!Z$6,'Energy Prices'!$F$11:$CR$11,0))/100000,\"\")","v":0},{"$f":"IFERROR('Data Input - BAT'!AE89*INDEX('Energy Prices'!$F$19:$CR$24,MATCH($B99,'Energy Prices'!$C$19:$C$24,0),MATCH(Calc_BAT!AA$6,'Energy Prices'!$F$11:$CR$11,0))/100000,\"\")","v":0},{"$f":"IFERROR('Data Input - BAT'!AF89*INDEX('Energy Prices'!$F$19:$CR$24,MATCH($B99,'Energy Prices'!$C$19:$C$24,0),MATCH(Calc_BAT!AB$6,'Energy Prices'!$F$11:$CR$11,0))/100000,\"\")","v":0},{"$f":"IFERROR('Data Input - BAT'!AG89*INDEX('Energy Prices'!$F$19:$CR$24,MATCH($B99,'Energy Prices'!$C$19:$C$24,0),MATCH(Calc_BAT!AC$6,'Energy Prices'!$F$11:$CR$11,0))/100000,\"\")","v":0},{"$f":"IFERROR('Data Input - BAT'!AH89*INDEX('Energy Prices'!$F$19:$CR$24,MATCH($B99,'Energy Prices'!$C$19:$C$24,0),MATCH(Calc_BAT!AD$6,'Energy Prices'!$F$11:$CR$11,0))/100000,\"\")","v":0},{"$f":"IFERROR('Data Input - BAT'!AI89*INDEX('Energy Prices'!$F$19:$CR$24,MATCH($B99,'Energy Prices'!$C$19:$C$24,0),MATCH(Calc_BAT!AE$6,'Energy Prices'!$F$11:$CR$11,0))/100000,\"\")","v":0},{"$f":"IFERROR('Data Input - BAT'!AJ89*INDEX('Energy Prices'!$F$19:$CR$24,MATCH($B99,'Energy Prices'!$C$19:$C$24,0),MATCH(Calc_BAT!AF$6,'Energy Prices'!$F$11:$CR$11,0))/100000,\"\")","v":0},{"$f":"IFERROR('Data Input - BAT'!AK89*INDEX('Energy Prices'!$F$19:$CR$24,MATCH($B99,'Energy Prices'!$C$19:$C$24,0),MATCH(Calc_BAT!AG$6,'Energy Prices'!$F$11:$CR$11,0))/100000,\"\")","v":0},{"$f":"IFERROR('Data Input - BAT'!AL89*INDEX('Energy Prices'!$F$19:$CR$24,MATCH($B99,'Energy Prices'!$C$19:$C$24,0),MATCH(Calc_BAT!AH$6,'Energy Prices'!$F$11:$CR$11,0))/100000,\"\")","v":0},{"$f":"IFERROR('Data Input - BAT'!AM89*INDEX('Energy Prices'!$F$19:$CR$24,MATCH($B99,'Energy Prices'!$C$19:$C$24,0),MATCH(Calc_BAT!AI$6,'Energy Prices'!$F$11:$CR$11,0))/100000,\"\")","v":""},{"$f":"IFERROR('Data Input - BAT'!AN89*INDEX('Energy Prices'!$F$19:$CR$24,MATCH($B99,'Energy Prices'!$C$19:$C$24,0),MATCH(Calc_BAT!AJ$6,'Energy Prices'!$F$11:$CR$11,0))/100000,\"\")","v":""},{"$f":"IFERROR('Data Input - BAT'!AO89*INDEX('Energy Prices'!$F$19:$CR$24,MATCH($B99,'Energy Prices'!$C$19:$C$24,0),MATCH(Calc_BAT!AK$6,'Energy Prices'!$F$11:$CR$11,0))/100000,\"\")","v":""},{"$f":"IFERROR('Data Input - BAT'!AP89*INDEX('Energy Prices'!$F$19:$CR$24,MATCH($B99,'Energy Prices'!$C$19:$C$24,0),MATCH(Calc_BAT!AL$6,'Energy Prices'!$F$11:$CR$11,0))/100000,\"\")","v":""},{"$f":"IFERROR('Data Input - BAT'!AQ89*INDEX('Energy Prices'!$F$19:$CR$24,MATCH($B99,'Energy Prices'!$C$19:$C$24,0),MATCH(Calc_BAT!AM$6,'Energy Prices'!$F$11:$CR$11,0))/100000,\"\")","v":""},{"$f":"IFERROR('Data Input - BAT'!AR89*INDEX('Energy Prices'!$F$19:$CR$24,MATCH($B99,'Energy Prices'!$C$19:$C$24,0),MATCH(Calc_BAT!AN$6,'Energy Prices'!$F$11:$CR$11,0))/100000,\"\")","v":""},{"$f":"IFERROR('Data Input - BAT'!AS89*INDEX('Energy Prices'!$F$19:$CR$24,MATCH($B99,'Energy Prices'!$C$19:$C$24,0),MATCH(Calc_BAT!AO$6,'Energy Prices'!$F$11:$CR$11,0))/100000,\"\")","v":""},{"$f":"IFERROR('Data Input - BAT'!AT89*INDEX('Energy Prices'!$F$19:$CR$24,MATCH($B99,'Energy Prices'!$C$19:$C$24,0),MATCH(Calc_BAT!AP$6,'Energy Prices'!$F$11:$CR$11,0))/100000,\"\")","v":""},{"$f":"IFERROR('Data Input - BAT'!AU89*INDEX('Energy Prices'!$F$19:$CR$24,MATCH($B99,'Energy Prices'!$C$19:$C$24,0),MATCH(Calc_BAT!AQ$6,'Energy Prices'!$F$11:$CR$11,0))/100000,\"\")","v":""},{"$f":"IFERROR('Data Input - BAT'!AV89*INDEX('Energy Prices'!$F$19:$CR$24,MATCH($B99,'Energy Prices'!$C$19:$C$24,0),MATCH(Calc_BAT!AR$6,'Energy Prices'!$F$11:$CR$11,0))/100000,\"\")","v":""},{"$f":"IFERROR('Data Input - BAT'!AW89*INDEX('Energy Prices'!$F$19:$CR$24,MATCH($B99,'Energy Prices'!$C$19:$C$24,0),MATCH(Calc_BAT!AS$6,'Energy Prices'!$F$11:$CR$11,0))/100000,\"\")","v":""},{"$f":"IFERROR('Data Input - BAT'!AX89*INDEX('Energy Prices'!$F$19:$CR$24,MATCH($B99,'Energy Prices'!$C$19:$C$24,0),MATCH(Calc_BAT!AT$6,'Energy Prices'!$F$11:$CR$11,0))/100000,\"\")","v":""},{"$f":"IFERROR('Data Input - BAT'!AY89*INDEX('Energy Prices'!$F$19:$CR$24,MATCH($B99,'Energy Prices'!$C$19:$C$24,0),MATCH(Calc_BAT!AU$6,'Energy Prices'!$F$11:$CR$11,0))/100000,\"\")","v":""},{"$f":"IFERROR('Data Input - BAT'!AZ89*INDEX('Energy Prices'!$F$19:$CR$24,MATCH($B99,'Energy Prices'!$C$19:$C$24,0),MATCH(Calc_BAT!AV$6,'Energy Prices'!$F$11:$CR$11,0))/100000,\"\")","v":""},{"$f":"IFERROR('Data Input - BAT'!BA89*INDEX('Energy Prices'!$F$19:$CR$24,MATCH($B99,'Energy Prices'!$C$19:$C$24,0),MATCH(Calc_BAT!AW$6,'Energy Prices'!$F$11:$CR$11,0))/100000,\"\")","v":""},{"$f":"IFERROR('Data Input - BAT'!BB89*INDEX('Energy Prices'!$F$19:$CR$24,MATCH($B99,'Energy Prices'!$C$19:$C$24,0),MATCH(Calc_BAT!AX$6,'Energy Prices'!$F$11:$CR$11,0))/100000,\"\")","v":""},{"$f":"IFERROR('Data Input - BAT'!BC89*INDEX('Energy Prices'!$F$19:$CR$24,MATCH($B99,'Energy Prices'!$C$19:$C$24,0),MATCH(Calc_BAT!AY$6,'Energy Prices'!$F$11:$CR$11,0))/100000,\"\")","v":""},{"$f":"IFERROR('Data Input - BAT'!BD89*INDEX('Energy Prices'!$F$19:$CR$24,MATCH($B99,'Energy Prices'!$C$19:$C$24,0),MATCH(Calc_BAT!AZ$6,'Energy Prices'!$F$11:$CR$11,0))/100000,\"\")","v":""},{"$f":"IFERROR('Data Input - BAT'!BE89*INDEX('Energy Prices'!$F$19:$CR$24,MATCH($B99,'Energy Prices'!$C$19:$C$24,0),MATCH(Calc_BAT!BA$6,'Energy Prices'!$F$11:$CR$11,0))/100000,\"\")","v":""},{"$f":"IFERROR('Data Input - BAT'!BF89*INDEX('Energy Prices'!$F$19:$CR$24,MATCH($B99,'Energy Prices'!$C$19:$C$24,0),MATCH(Calc_BAT!BB$6,'Energy Prices'!$F$11:$CR$11,0))/100000,\"\")","v":""},{"$f":"IFERROR('Data Input - BAT'!BG89*INDEX('Energy Prices'!$F$19:$CR$24,MATCH($B99,'Energy Prices'!$C$19:$C$24,0),MATCH(Calc_BAT!BC$6,'Energy Prices'!$F$11:$CR$11,0))/100000,\"\")","v":""},{"$f":"IFERROR('Data Input - BAT'!BH89*INDEX('Energy Prices'!$F$19:$CR$24,MATCH($B99,'Energy Prices'!$C$19:$C$24,0),MATCH(Calc_BAT!BD$6,'Energy Prices'!$F$11:$CR$11,0))/100000,\"\")","v":""},{"$f":"IFERROR('Data Input - BAT'!BI89*INDEX('Energy Prices'!$F$19:$CR$24,MATCH($B99,'Energy Prices'!$C$19:$C$24,0),MATCH(Calc_BAT!BE$6,'Energy Prices'!$F$11:$CR$11,0))/100000,\"\")","v":""},{"$f":"IFERROR('Data Input - BAT'!BJ89*INDEX('Energy Prices'!$F$19:$CR$24,MATCH($B99,'Energy Prices'!$C$19:$C$24,0),MATCH(Calc_BAT!BF$6,'Energy Prices'!$F$11:$CR$11,0))/100000,\"\")","v":""},{"$f":"IFERROR('Data Input - BAT'!BK89*INDEX('Energy Prices'!$F$19:$CR$24,MATCH($B99,'Energy Prices'!$C$19:$C$24,0),MATCH(Calc_BAT!BG$6,'Energy Prices'!$F$11:$CR$11,0))/100000,\"\")","v":""},{"$f":"IFERROR('Data Input - BAT'!BL89*INDEX('Energy Prices'!$F$19:$CR$24,MATCH($B99,'Energy Prices'!$C$19:$C$24,0),MATCH(Calc_BAT!BH$6,'Energy Prices'!$F$11:$CR$11,0))/100000,\"\")","v":""},{"$f":"IFERROR('Data Input - BAT'!BM89*INDEX('Energy Prices'!$F$19:$CR$24,MATCH($B99,'Energy Prices'!$C$19:$C$24,0),MATCH(Calc_BAT!BI$6,'Energy Prices'!$F$11:$CR$11,0))/100000,\"\")","v":""},{"$f":"IFERROR('Data Input - BAT'!BN89*INDEX('Energy Prices'!$F$19:$CR$24,MATCH($B99,'Energy Prices'!$C$19:$C$24,0),MATCH(Calc_BAT!BJ$6,'Energy Prices'!$F$11:$CR$11,0))/100000,\"\")","v":""},{"$f":"IFERROR('Data Input - BAT'!BO89*INDEX('Energy Prices'!$F$19:$CR$24,MATCH($B99,'Energy Prices'!$C$19:$C$24,0),MATCH(Calc_BAT!BK$6,'Energy Prices'!$F$11:$CR$11,0))/100000,\"\")","v":""},{"$f":"IFERROR('Data Input - BAT'!BP89*INDEX('Energy Prices'!$F$19:$CR$24,MATCH($B99,'Energy Prices'!$C$19:$C$24,0),MATCH(Calc_BAT!BL$6,'Energy Prices'!$F$11:$CR$11,0))/100000,\"\")","v":""},{"$f":"IFERROR('Data Input - BAT'!BQ89*INDEX('Energy Prices'!$F$19:$CR$24,MATCH($B99,'Energy Prices'!$C$19:$C$24,0),MATCH(Calc_BAT!BM$6,'Energy Prices'!$F$11:$CR$11,0))/100000,\"\")","v":""},{"$f":"IFERROR('Data Input - BAT'!BR89*INDEX('Energy Prices'!$F$19:$CR$24,MATCH($B99,'Energy Prices'!$C$19:$C$24,0),MATCH(Calc_BAT!BN$6,'Energy Prices'!$F$11:$CR$11,0))/100000,\"\")","v":""},{"$f":"IFERROR('Data Input - BAT'!BS89*INDEX('Energy Prices'!$F$19:$CR$24,MATCH($B99,'Energy Prices'!$C$19:$C$24,0),MATCH(Calc_BAT!BO$6,'Energy Prices'!$F$11:$CR$11,0))/100000,\"\")","v":""},{"$f":"IFERROR('Data Input - BAT'!BT89*INDEX('Energy Prices'!$F$19:$CR$24,MATCH($B99,'Energy Prices'!$C$19:$C$24,0),MATCH(Calc_BAT!BP$6,'Energy Prices'!$F$11:$CR$11,0))/100000,\"\")","v":""},{"$f":"IFERROR('Data Input - BAT'!BU89*INDEX('Energy Prices'!$F$19:$CR$24,MATCH($B99,'Energy Prices'!$C$19:$C$24,0),MATCH(Calc_BAT!BQ$6,'Energy Prices'!$F$11:$CR$11,0))/100000,\"\")","v":""},{"$f":"IFERROR('Data Input - BAT'!BV89*INDEX('Energy Prices'!$F$19:$CR$24,MATCH($B99,'Energy Prices'!$C$19:$C$24,0),MATCH(Calc_BAT!BR$6,'Energy Prices'!$F$11:$CR$11,0))/100000,\"\")","v":""},{"$f":"IFERROR('Data Input - BAT'!BW89*INDEX('Energy Prices'!$F$19:$CR$24,MATCH($B99,'Energy Prices'!$C$19:$C$24,0),MATCH(Calc_BAT!BS$6,'Energy Prices'!$F$11:$CR$11,0))/100000,\"\")","v":""},{"$f":"IFERROR('Data Input - BAT'!BX89*INDEX('Energy Prices'!$F$19:$CR$24,MATCH($B99,'Energy Prices'!$C$19:$C$24,0),MATCH(Calc_BAT!BT$6,'Energy Prices'!$F$11:$CR$11,0))/100000,\"\")","v":""},{"$f":"IFERROR('Data Input - BAT'!BY89*INDEX('Energy Prices'!$F$19:$CR$24,MATCH($B99,'Energy Prices'!$C$19:$C$24,0),MATCH(Calc_BAT!BU$6,'Energy Prices'!$F$11:$CR$11,0))/100000,\"\")","v":""},{"$f":"IFERROR('Data Input - BAT'!BZ89*INDEX('Energy Prices'!$F$19:$CR$24,MATCH($B99,'Energy Prices'!$C$19:$C$24,0),MATCH(Calc_BAT!BV$6,'Energy Prices'!$F$11:$CR$11,0))/100000,\"\")","v":""},{"$f":"IFERROR('Data Input - BAT'!CA89*INDEX('Energy Prices'!$F$19:$CR$24,MATCH($B99,'Energy Prices'!$C$19:$C$24,0),MATCH(Calc_BAT!BW$6,'Energy Prices'!$F$11:$CR$11,0))/100000,\"\")","v":""},{"$f":"IFERROR('Data Input - BAT'!CB89*INDEX('Energy Prices'!$F$19:$CR$24,MATCH($B99,'Energy Prices'!$C$19:$C$24,0),MATCH(Calc_BAT!BX$6,'Energy Prices'!$F$11:$CR$11,0))/100000,\"\")","v":""},{"$f":"IFERROR('Data Input - BAT'!CC89*INDEX('Energy Prices'!$F$19:$CR$24,MATCH($B99,'Energy Prices'!$C$19:$C$24,0),MATCH(Calc_BAT!BY$6,'Energy Prices'!$F$11:$CR$11,0))/100000,\"\")","v":""},{"$f":"IFERROR('Data Input - BAT'!CD89*INDEX('Energy Prices'!$F$19:$CR$24,MATCH($B99,'Energy Prices'!$C$19:$C$24,0),MATCH(Calc_BAT!BZ$6,'Energy Prices'!$F$11:$CR$11,0))/100000,\"\")","v":""},{"$f":"IFERROR('Data Input - BAT'!CE89*INDEX('Energy Prices'!$F$19:$CR$24,MATCH($B99,'Energy Prices'!$C$19:$C$24,0),MATCH(Calc_BAT!CA$6,'Energy Prices'!$F$11:$CR$11,0))/100000,\"\")","v":""},{"$f":"IFERROR('Data Input - BAT'!CF89*INDEX('Energy Prices'!$F$19:$CR$24,MATCH($B99,'Energy Prices'!$C$19:$C$24,0),MATCH(Calc_BAT!CB$6,'Energy Prices'!$F$11:$CR$11,0))/100000,\"\")","v":""},{"$f":"IFERROR('Data Input - BAT'!CG89*INDEX('Energy Prices'!$F$19:$CR$24,MATCH($B99,'Energy Prices'!$C$19:$C$24,0),MATCH(Calc_BAT!CC$6,'Energy Prices'!$F$11:$CR$11,0))/100000,\"\")","v":""},{"$f":"IFERROR('Data Input - BAT'!CH89*INDEX('Energy Prices'!$F$19:$CR$24,MATCH($B99,'Energy Prices'!$C$19:$C$24,0),MATCH(Calc_BAT!CD$6,'Energy Prices'!$F$11:$CR$11,0))/100000,\"\")","v":""},{"$f":"IFERROR('Data Input - BAT'!CI89*INDEX('Energy Prices'!$F$19:$CR$24,MATCH($B99,'Energy Prices'!$C$19:$C$24,0),MATCH(Calc_BAT!CE$6,'Energy Prices'!$F$11:$CR$11,0))/100000,\"\")","v":""},{"$f":"IFERROR('Data Input - BAT'!CJ89*INDEX('Energy Prices'!$F$19:$CR$24,MATCH($B99,'Energy Prices'!$C$19:$C$24,0),MATCH(Calc_BAT!CF$6,'Energy Prices'!$F$11:$CR$11,0))/100000,\"\")","v":""},{"$f":"IFERROR('Data Input - BAT'!CK89*INDEX('Energy Prices'!$F$19:$CR$24,MATCH($B99,'Energy Prices'!$C$19:$C$24,0),MATCH(Calc_BAT!CG$6,'Energy Prices'!$F$11:$CR$11,0))/100000,\"\")","v":""},{"$f":"IFERROR('Data Input - BAT'!CL89*INDEX('Energy Prices'!$F$19:$CR$24,MATCH($B99,'Energy Prices'!$C$19:$C$24,0),MATCH(Calc_BAT!CH$6,'Energy Prices'!$F$11:$CR$11,0))/100000,\"\")","v":""},{"$f":"IFERROR('Data Input - BAT'!CM89*INDEX('Energy Prices'!$F$19:$CR$24,MATCH($B99,'Energy Prices'!$C$19:$C$24,0),MATCH(Calc_BAT!CI$6,'Energy Prices'!$F$11:$CR$11,0))/100000,\"\")","v":""},{"$f":"IFERROR('Data Input - BAT'!CN89*INDEX('Energy Prices'!$F$19:$CR$24,MATCH($B99,'Energy Prices'!$C$19:$C$24,0),MATCH(Calc_BAT!CJ$6,'Energy Prices'!$F$11:$CR$11,0))/100000,\"\")","v":""},{"$f":"IFERROR('Data Input - BAT'!CO89*INDEX('Energy Prices'!$F$19:$CR$24,MATCH($B99,'Energy Prices'!$C$19:$C$24,0),MATCH(Calc_BAT!CK$6,'Energy Prices'!$F$11:$CR$11,0))/100000,\"\")","v":""},{"$f":"IFERROR('Data Input - BAT'!CP89*INDEX('Energy Prices'!$F$19:$CR$24,MATCH($B99,'Energy Prices'!$C$19:$C$24,0),MATCH(Calc_BAT!CL$6,'Energy Prices'!$F$11:$CR$11,0))/100000,\"\")","v":""},{"$f":"IFERROR('Data Input - BAT'!CQ89*INDEX('Energy Prices'!$F$19:$CR$24,MATCH($B99,'Energy Prices'!$C$19:$C$24,0),MATCH(Calc_BAT!CM$6,'Energy Prices'!$F$11:$CR$11,0))/100000,\"\")","v":""},{"$f":"IFERROR('Data Input - BAT'!CR89*INDEX('Energy Prices'!$F$19:$CR$24,MATCH($B99,'Energy Prices'!$C$19:$C$24,0),MATCH(Calc_BAT!CN$6,'Energy Prices'!$F$11:$CR$11,0))/100000,\"\")","v":""},{"$f":"IFERROR('Data Input - BAT'!CS89*INDEX('Energy Prices'!$F$19:$CR$24,MATCH($B99,'Energy Prices'!$C$19:$C$24,0),MATCH(Calc_BAT!CO$6,'Energy Prices'!$F$11:$CR$11,0))/100000,\"\")","v":""},{"$f":"IFERROR('Data Input - BAT'!CT89*INDEX('Energy Prices'!$F$19:$CR$24,MATCH($B99,'Energy Prices'!$C$19:$C$24,0),MATCH(Calc_BAT!CP$6,'Energy Prices'!$F$11:$CR$11,0))/100000,\"\")","v":""},{"$f":"IFERROR('Data Input - BAT'!CU89*INDEX('Energy Prices'!$F$19:$CR$24,MATCH($B99,'Energy Prices'!$C$19:$C$24,0),MATCH(Calc_BAT!CQ$6,'Energy Prices'!$F$11:$CR$11,0))/100000,\"\")","v":""},{"$f":"IFERROR('Data Input - BAT'!CV89*INDEX('Energy Prices'!$F$19:$CR$24,MATCH($B99,'Energy Prices'!$C$19:$C$24,0),MATCH(Calc_BAT!CR$6,'Energy Prices'!$F$11:$CR$11,0))/100000,\"\")","v":""},{"$f":"IFERROR('Data Input - BAT'!CW89*INDEX('Energy Prices'!$F$19:$CR$24,MATCH($B99,'Energy Prices'!$C$19:$C$24,0),MATCH(Calc_BAT!CS$6,'Energy Prices'!$F$11:$CR$11,0))/100000,\"\")","v":""},{"$f":"IFERROR('Data Input - BAT'!CX89*INDEX('Energy Prices'!$F$19:$CR$24,MATCH($B99,'Energy Prices'!$C$19:$C$24,0),MATCH(Calc_BAT!CT$6,'Energy Prices'!$F$11:$CR$11,0))/100000,\"\")","v":""},{"$f":"IFERROR('Data Input - BAT'!CY89*INDEX('Energy Prices'!$F$19:$CR$24,MATCH($B99,'Energy Prices'!$C$19:$C$24,0),MATCH(Calc_BAT!CU$6,'Energy Prices'!$F$11:$CR$11,0))/100000,\"\")","v":""},{"$f":"IFERROR('Data Input - BAT'!CZ89*INDEX('Energy Prices'!$F$19:$CR$24,MATCH($B99,'Energy Prices'!$C$19:$C$24,0),MATCH(Calc_BAT!CV$6,'Energy Prices'!$F$11:$CR$11,0))/100000,\"\")","v":""},{"$f":"IFERROR('Data Input - BAT'!DA89*INDEX('Energy Prices'!$F$19:$CR$24,MATCH($B99,'Energy Prices'!$C$19:$C$24,0),MATCH(Calc_BAT!CW$6,'Energy Prices'!$F$11:$CR$11,0))/100000,\"\")","v":""},{"$f":"IFERROR('Data Input - BAT'!DB89*INDEX('Energy Prices'!$F$19:$CR$24,MATCH($B99,'Energy Prices'!$C$19:$C$24,0),MATCH(Calc_BAT!CX$6,'Energy Prices'!$F$11:$CR$11,0))/100000,\"\")","v":""},{"$f":"IFERROR('Data Input - BAT'!DC89*INDEX('Energy Prices'!$F$19:$CR$24,MATCH($B99,'Energy Prices'!$C$19:$C$24,0),MATCH(Calc_BAT!CY$6,'Energy Prices'!$F$11:$CR$11,0))/100000,\"\")","v":""}]
[]
[null,"Discounted energy","£000's",{"$f":"SUM(D94:D99)*D$7","v":1196.4511056894355},{"$f":"SUM(E94:E99)*E$7","v":1235.2266830447447},1237.5317388910346,1263.2523227589265,1257.0448069224751,1280.8443650187978,1293.4378064394352,1273.2188464675962,0,0,0,0,0,0,0,0,0,0,0,0,0,0,0,0,0,0,0,0,0,0,0,0,0,0,0,0,0,0,0,0,0,0,0,0,0,0,0,0,0,0,0,0,0,0,0,0,0,0,0,0,{"$f":"SUM(BL94:BL99)*BL$7","v":0},0,0,0,0,0,0,0,0,0,0,0,0,0,0,0,0,0,0,0,0,0,0,0,0,0,0,0,0,0,0,0,0,0,0,0,0,0,0,0]
[]
[null,"Air pollutant emissions- value"]
[null,{"$f":"B61","v":"Sox 2019"},"£000's",{"$f":"IFERROR(IF(OR($C$110=FALSE,LEFT($B104,3)<>\"NOX\"),D53*INDEX('Damage costs'!$W$16:$W$43,MATCH($B104,'Damage costs'!$C$16:$C$43,0))/1000,D53*INDEX('Damage costs'!$AA$16:$AA$43,MATCH($B104,'Damage costs'!$C$16:$C$43,0))/1000),\"\")","v":1.6028522278070398},{"$f":"IFERROR(IF(OR($C$110=FALSE,LEFT($B104,3)<>\"NOX\"),E53*INDEX('Damage costs'!$W$16:$W$43,MATCH($B104,'Damage costs'!$C$16:$C$43,0))/1000,E53*INDEX('Damage costs'!$AA$16:$AA$43,MATCH($B104,'Damage costs'!$C$16:$C$43,0))/1000),\"\")","v":0.42635869259667258},{"$f":"IFERROR(IF(OR($C$110=FALSE,LEFT($B104,3)<>\"NOX\"),F53*INDEX('Damage costs'!$W$16:$W$43,MATCH($B104,'Damage costs'!$C$16:$C$43,0))/1000,F53*INDEX('Damage costs'!$AA$16:$AA$43,MATCH($B104,'Damage costs'!$C$16:$C$43,0))/1000),\"\")","v":0.42635869259667258},{"$f":"IFERROR(IF(OR($C$110=FALSE,LEFT($B104,3)<>\"NOX\"),G53*INDEX('Damage costs'!$W$16:$W$43,MATCH($B104,'Damage costs'!$C$16:$C$43,0))/1000,G53*INDEX('Damage costs'!$AA$16:$AA$43,MATCH($B104,'Damage costs'!$C$16:$C$43,0))/1000),\"\")","v":0.42635869259667258},{"$f":"IFERROR(IF(OR($C$110=FALSE,LEFT($B104,3)<>\"NOX\"),H53*INDEX('Damage costs'!$W$16:$W$43,MATCH($B104,'Damage costs'!$C$16:$C$43,0))/1000,H53*INDEX('Damage costs'!$AA$16:$AA$43,MATCH($B104,'Damage costs'!$C$16:$C$43,0))/1000),\"\")","v":0.42635869259667258},{"$f":"IFERROR(IF(OR($C$110=FALSE,LEFT($B104,3)<>\"NOX\"),I53*INDEX('Damage costs'!$W$16:$W$43,MATCH($B104,'Damage costs'!$C$16:$C$43,0))/1000,I53*INDEX('Damage costs'!$AA$16:$AA$43,MATCH($B104,'Damage costs'!$C$16:$C$43,0))/1000),\"\")","v":0.42635869259667258},{"$f":"IFERROR(IF(OR($C$110=FALSE,LEFT($B104,3)<>\"NOX\"),J53*INDEX('Damage costs'!$W$16:$W$43,MATCH($B104,'Damage costs'!$C$16:$C$43,0))/1000,J53*INDEX('Damage costs'!$AA$16:$AA$43,MATCH($B104,'Damage costs'!$C$16:$C$43,0))/1000),\"\")","v":0.42635869259667258},{"$f":"IFERROR(IF(OR($C$110=FALSE,LEFT($B104,3)<>\"NOX\"),K53*INDEX('Damage costs'!$W$16:$W$43,MATCH($B104,'Damage costs'!$C$16:$C$43,0))/1000,K53*INDEX('Damage costs'!$AA$16:$AA$43,MATCH($B104,'Damage costs'!$C$16:$C$43,0))/1000),\"\")","v":0.42635869259667258},{"$f":"IFERROR(IF(OR($C$110=FALSE,LEFT($B104,3)<>\"NOX\"),L53*INDEX('Damage costs'!$W$16:$W$43,MATCH($B104,'Damage costs'!$C$16:$C$43,0))/1000,L53*INDEX('Damage costs'!$AA$16:$AA$43,MATCH($B104,'Damage costs'!$C$16:$C$43,0))/1000),\"\")","v":0},{"$f":"IFERROR(IF(OR($C$110=FALSE,LEFT($B104,3)<>\"NOX\"),M53*INDEX('Damage costs'!$W$16:$W$43,MATCH($B104,'Damage costs'!$C$16:$C$43,0))/1000,M53*INDEX('Damage costs'!$AA$16:$AA$43,MATCH($B104,'Damage costs'!$C$16:$C$43,0))/1000),\"\")","v":0},{"$f":"IFERROR(IF(OR($C$110=FALSE,LEFT($B104,3)<>\"NOX\"),N53*INDEX('Damage costs'!$W$16:$W$43,MATCH($B104,'Damage costs'!$C$16:$C$43,0))/1000,N53*INDEX('Damage costs'!$AA$16:$AA$43,MATCH($B104,'Damage costs'!$C$16:$C$43,0))/1000),\"\")","v":0},{"$f":"IFERROR(IF(OR($C$110=FALSE,LEFT($B104,3)<>\"NOX\"),O53*INDEX('Damage costs'!$W$16:$W$43,MATCH($B104,'Damage costs'!$C$16:$C$43,0))/1000,O53*INDEX('Damage costs'!$AA$16:$AA$43,MATCH($B104,'Damage costs'!$C$16:$C$43,0))/1000),\"\")","v":0},{"$f":"IFERROR(IF(OR($C$110=FALSE,LEFT($B104,3)<>\"NOX\"),P53*INDEX('Damage costs'!$W$16:$W$43,MATCH($B104,'Damage costs'!$C$16:$C$43,0))/1000,P53*INDEX('Damage costs'!$AA$16:$AA$43,MATCH($B104,'Damage costs'!$C$16:$C$43,0))/1000),\"\")","v":0},{"$f":"IFERROR(IF(OR($C$110=FALSE,LEFT($B104,3)<>\"NOX\"),Q53*INDEX('Damage costs'!$W$16:$W$43,MATCH($B104,'Damage costs'!$C$16:$C$43,0))/1000,Q53*INDEX('Damage costs'!$AA$16:$AA$43,MATCH($B104,'Damage costs'!$C$16:$C$43,0))/1000),\"\")","v":0},{"$f":"IFERROR(IF(OR($C$110=FALSE,LEFT($B104,3)<>\"NOX\"),R53*INDEX('Damage costs'!$W$16:$W$43,MATCH($B104,'Damage costs'!$C$16:$C$43,0))/1000,R53*INDEX('Damage costs'!$AA$16:$AA$43,MATCH($B104,'Damage costs'!$C$16:$C$43,0))/1000),\"\")","v":0},{"$f":"IFERROR(IF(OR($C$110=FALSE,LEFT($B104,3)<>\"NOX\"),S53*INDEX('Damage costs'!$W$16:$W$43,MATCH($B104,'Damage costs'!$C$16:$C$43,0))/1000,S53*INDEX('Damage costs'!$AA$16:$AA$43,MATCH($B104,'Damage costs'!$C$16:$C$43,0))/1000),\"\")","v":0},{"$f":"IFERROR(IF(OR($C$110=FALSE,LEFT($B104,3)<>\"NOX\"),T53*INDEX('Damage costs'!$W$16:$W$43,MATCH($B104,'Damage costs'!$C$16:$C$43,0))/1000,T53*INDEX('Damage costs'!$AA$16:$AA$43,MATCH($B104,'Damage costs'!$C$16:$C$43,0))/1000),\"\")","v":0},{"$f":"IFERROR(IF(OR($C$110=FALSE,LEFT($B104,3)<>\"NOX\"),U53*INDEX('Damage costs'!$W$16:$W$43,MATCH($B104,'Damage costs'!$C$16:$C$43,0))/1000,U53*INDEX('Damage costs'!$AA$16:$AA$43,MATCH($B104,'Damage costs'!$C$16:$C$43,0))/1000),\"\")","v":0},{"$f":"IFERROR(IF(OR($C$110=FALSE,LEFT($B104,3)<>\"NOX\"),V53*INDEX('Damage costs'!$W$16:$W$43,MATCH($B104,'Damage costs'!$C$16:$C$43,0))/1000,V53*INDEX('Damage costs'!$AA$16:$AA$43,MATCH($B104,'Damage costs'!$C$16:$C$43,0))/1000),\"\")","v":0},{"$f":"IFERROR(IF(OR($C$110=FALSE,LEFT($B104,3)<>\"NOX\"),W53*INDEX('Damage costs'!$W$16:$W$43,MATCH($B104,'Damage costs'!$C$16:$C$43,0))/1000,W53*INDEX('Damage costs'!$AA$16:$AA$43,MATCH($B104,'Damage costs'!$C$16:$C$43,0))/1000),\"\")","v":0},{"$f":"IFERROR(IF(OR($C$110=FALSE,LEFT($B104,3)<>\"NOX\"),X53*INDEX('Damage costs'!$W$16:$W$43,MATCH($B104,'Damage costs'!$C$16:$C$43,0))/1000,X53*INDEX('Damage costs'!$AA$16:$AA$43,MATCH($B104,'Damage costs'!$C$16:$C$43,0))/1000),\"\")","v":0},{"$f":"IFERROR(IF(OR($C$110=FALSE,LEFT($B104,3)<>\"NOX\"),Y53*INDEX('Damage costs'!$W$16:$W$43,MATCH($B104,'Damage costs'!$C$16:$C$43,0))/1000,Y53*INDEX('Damage costs'!$AA$16:$AA$43,MATCH($B104,'Damage costs'!$C$16:$C$43,0))/1000),\"\")","v":0},{"$f":"IFERROR(IF(OR($C$110=FALSE,LEFT($B104,3)<>\"NOX\"),Z53*INDEX('Damage costs'!$W$16:$W$43,MATCH($B104,'Damage costs'!$C$16:$C$43,0))/1000,Z53*INDEX('Damage costs'!$AA$16:$AA$43,MATCH($B104,'Damage costs'!$C$16:$C$43,0))/1000),\"\")","v":0},{"$f":"IFERROR(IF(OR($C$110=FALSE,LEFT($B104,3)<>\"NOX\"),AA53*INDEX('Damage costs'!$W$16:$W$43,MATCH($B104,'Damage costs'!$C$16:$C$43,0))/1000,AA53*INDEX('Damage costs'!$AA$16:$AA$43,MATCH($B104,'Damage costs'!$C$16:$C$43,0))/1000),\"\")","v":0},{"$f":"IFERROR(IF(OR($C$110=FALSE,LEFT($B104,3)<>\"NOX\"),AB53*INDEX('Damage costs'!$W$16:$W$43,MATCH($B104,'Damage costs'!$C$16:$C$43,0))/1000,AB53*INDEX('Damage costs'!$AA$16:$AA$43,MATCH($B104,'Damage costs'!$C$16:$C$43,0))/1000),\"\")","v":0},{"$f":"IFERROR(IF(OR($C$110=FALSE,LEFT($B104,3)<>\"NOX\"),AC53*INDEX('Damage costs'!$W$16:$W$43,MATCH($B104,'Damage costs'!$C$16:$C$43,0))/1000,AC53*INDEX('Damage costs'!$AA$16:$AA$43,MATCH($B104,'Damage costs'!$C$16:$C$43,0))/1000),\"\")","v":0},{"$f":"IFERROR(IF(OR($C$110=FALSE,LEFT($B104,3)<>\"NOX\"),AD53*INDEX('Damage costs'!$W$16:$W$43,MATCH($B104,'Damage costs'!$C$16:$C$43,0))/1000,AD53*INDEX('Damage costs'!$AA$16:$AA$43,MATCH($B104,'Damage costs'!$C$16:$C$43,0))/1000),\"\")","v":0},{"$f":"IFERROR(IF(OR($C$110=FALSE,LEFT($B104,3)<>\"NOX\"),AE53*INDEX('Damage costs'!$W$16:$W$43,MATCH($B104,'Damage costs'!$C$16:$C$43,0))/1000,AE53*INDEX('Damage costs'!$AA$16:$AA$43,MATCH($B104,'Damage costs'!$C$16:$C$43,0))/1000),\"\")","v":0},{"$f":"IFERROR(IF(OR($C$110=FALSE,LEFT($B104,3)<>\"NOX\"),AF53*INDEX('Damage costs'!$W$16:$W$43,MATCH($B104,'Damage costs'!$C$16:$C$43,0))/1000,AF53*INDEX('Damage costs'!$AA$16:$AA$43,MATCH($B104,'Damage costs'!$C$16:$C$43,0))/1000),\"\")","v":0},{"$f":"IFERROR(IF(OR($C$110=FALSE,LEFT($B104,3)<>\"NOX\"),AG53*INDEX('Damage costs'!$W$16:$W$43,MATCH($B104,'Damage costs'!$C$16:$C$43,0))/1000,AG53*INDEX('Damage costs'!$AA$16:$AA$43,MATCH($B104,'Damage costs'!$C$16:$C$43,0))/1000),\"\")","v":0},{"$f":"IFERROR(IF(OR($C$110=FALSE,LEFT($B104,3)<>\"NOX\"),AH53*INDEX('Damage costs'!$W$16:$W$43,MATCH($B104,'Damage costs'!$C$16:$C$43,0))/1000,AH53*INDEX('Damage costs'!$AA$16:$AA$43,MATCH($B104,'Damage costs'!$C$16:$C$43,0))/1000),\"\")","v":0},{"$f":"IFERROR(IF(OR($C$110=FALSE,LEFT($B104,3)<>\"NOX\"),AI53*INDEX('Damage costs'!$W$16:$W$43,MATCH($B104,'Damage costs'!$C$16:$C$43,0))/1000,AI53*INDEX('Damage costs'!$AA$16:$AA$43,MATCH($B104,'Damage costs'!$C$16:$C$43,0))/1000),\"\")","v":0},{"$f":"IFERROR(IF(OR($C$110=FALSE,LEFT($B104,3)<>\"NOX\"),AJ53*INDEX('Damage costs'!$W$16:$W$43,MATCH($B104,'Damage costs'!$C$16:$C$43,0))/1000,AJ53*INDEX('Damage costs'!$AA$16:$AA$43,MATCH($B104,'Damage costs'!$C$16:$C$43,0))/1000),\"\")","v":0},{"$f":"IFERROR(IF(OR($C$110=FALSE,LEFT($B104,3)<>\"NOX\"),AK53*INDEX('Damage costs'!$W$16:$W$43,MATCH($B104,'Damage costs'!$C$16:$C$43,0))/1000,AK53*INDEX('Damage costs'!$AA$16:$AA$43,MATCH($B104,'Damage costs'!$C$16:$C$43,0))/1000),\"\")","v":0},{"$f":"IFERROR(IF(OR($C$110=FALSE,LEFT($B104,3)<>\"NOX\"),AL53*INDEX('Damage costs'!$W$16:$W$43,MATCH($B104,'Damage costs'!$C$16:$C$43,0))/1000,AL53*INDEX('Damage costs'!$AA$16:$AA$43,MATCH($B104,'Damage costs'!$C$16:$C$43,0))/1000),\"\")","v":0},{"$f":"IFERROR(IF(OR($C$110=FALSE,LEFT($B104,3)<>\"NOX\"),AM53*INDEX('Damage costs'!$W$16:$W$43,MATCH($B104,'Damage costs'!$C$16:$C$43,0))/1000,AM53*INDEX('Damage costs'!$AA$16:$AA$43,MATCH($B104,'Damage costs'!$C$16:$C$43,0))/1000),\"\")","v":0},{"$f":"IFERROR(IF(OR($C$110=FALSE,LEFT($B104,3)<>\"NOX\"),AN53*INDEX('Damage costs'!$W$16:$W$43,MATCH($B104,'Damage costs'!$C$16:$C$43,0))/1000,AN53*INDEX('Damage costs'!$AA$16:$AA$43,MATCH($B104,'Damage costs'!$C$16:$C$43,0))/1000),\"\")","v":0},{"$f":"IFERROR(IF(OR($C$110=FALSE,LEFT($B104,3)<>\"NOX\"),AO53*INDEX('Damage costs'!$W$16:$W$43,MATCH($B104,'Damage costs'!$C$16:$C$43,0))/1000,AO53*INDEX('Damage costs'!$AA$16:$AA$43,MATCH($B104,'Damage costs'!$C$16:$C$43,0))/1000),\"\")","v":0},{"$f":"IFERROR(IF(OR($C$110=FALSE,LEFT($B104,3)<>\"NOX\"),AP53*INDEX('Damage costs'!$W$16:$W$43,MATCH($B104,'Damage costs'!$C$16:$C$43,0))/1000,AP53*INDEX('Damage costs'!$AA$16:$AA$43,MATCH($B104,'Damage costs'!$C$16:$C$43,0))/1000),\"\")","v":0},{"$f":"IFERROR(IF(OR($C$110=FALSE,LEFT($B104,3)<>\"NOX\"),AQ53*INDEX('Damage costs'!$W$16:$W$43,MATCH($B104,'Damage costs'!$C$16:$C$43,0))/1000,AQ53*INDEX('Damage costs'!$AA$16:$AA$43,MATCH($B104,'Damage costs'!$C$16:$C$43,0))/1000),\"\")","v":0},{"$f":"IFERROR(IF(OR($C$110=FALSE,LEFT($B104,3)<>\"NOX\"),AR53*INDEX('Damage costs'!$W$16:$W$43,MATCH($B104,'Damage costs'!$C$16:$C$43,0))/1000,AR53*INDEX('Damage costs'!$AA$16:$AA$43,MATCH($B104,'Damage costs'!$C$16:$C$43,0))/1000),\"\")","v":0},{"$f":"IFERROR(IF(OR($C$110=FALSE,LEFT($B104,3)<>\"NOX\"),AS53*INDEX('Damage costs'!$W$16:$W$43,MATCH($B104,'Damage costs'!$C$16:$C$43,0))/1000,AS53*INDEX('Damage costs'!$AA$16:$AA$43,MATCH($B104,'Damage costs'!$C$16:$C$43,0))/1000),\"\")","v":0},{"$f":"IFERROR(IF(OR($C$110=FALSE,LEFT($B104,3)<>\"NOX\"),AT53*INDEX('Damage costs'!$W$16:$W$43,MATCH($B104,'Damage costs'!$C$16:$C$43,0))/1000,AT53*INDEX('Damage costs'!$AA$16:$AA$43,MATCH($B104,'Damage costs'!$C$16:$C$43,0))/1000),\"\")","v":0},{"$f":"IFERROR(IF(OR($C$110=FALSE,LEFT($B104,3)<>\"NOX\"),AU53*INDEX('Damage costs'!$W$16:$W$43,MATCH($B104,'Damage costs'!$C$16:$C$43,0))/1000,AU53*INDEX('Damage costs'!$AA$16:$AA$43,MATCH($B104,'Damage costs'!$C$16:$C$43,0))/1000),\"\")","v":0},{"$f":"IFERROR(IF(OR($C$110=FALSE,LEFT($B104,3)<>\"NOX\"),AV53*INDEX('Damage costs'!$W$16:$W$43,MATCH($B104,'Damage costs'!$C$16:$C$43,0))/1000,AV53*INDEX('Damage costs'!$AA$16:$AA$43,MATCH($B104,'Damage costs'!$C$16:$C$43,0))/1000),\"\")","v":0},{"$f":"IFERROR(IF(OR($C$110=FALSE,LEFT($B104,3)<>\"NOX\"),AW53*INDEX('Damage costs'!$W$16:$W$43,MATCH($B104,'Damage costs'!$C$16:$C$43,0))/1000,AW53*INDEX('Damage costs'!$AA$16:$AA$43,MATCH($B104,'Damage costs'!$C$16:$C$43,0))/1000),\"\")","v":0},{"$f":"IFERROR(IF(OR($C$110=FALSE,LEFT($B104,3)<>\"NOX\"),AX53*INDEX('Damage costs'!$W$16:$W$43,MATCH($B104,'Damage costs'!$C$16:$C$43,0))/1000,AX53*INDEX('Damage costs'!$AA$16:$AA$43,MATCH($B104,'Damage costs'!$C$16:$C$43,0))/1000),\"\")","v":0},{"$f":"IFERROR(IF(OR($C$110=FALSE,LEFT($B104,3)<>\"NOX\"),AY53*INDEX('Damage costs'!$W$16:$W$43,MATCH($B104,'Damage costs'!$C$16:$C$43,0))/1000,AY53*INDEX('Damage costs'!$AA$16:$AA$43,MATCH($B104,'Damage costs'!$C$16:$C$43,0))/1000),\"\")","v":0},{"$f":"IFERROR(IF(OR($C$110=FALSE,LEFT($B104,3)<>\"NOX\"),AZ53*INDEX('Damage costs'!$W$16:$W$43,MATCH($B104,'Damage costs'!$C$16:$C$43,0))/1000,AZ53*INDEX('Damage costs'!$AA$16:$AA$43,MATCH($B104,'Damage costs'!$C$16:$C$43,0))/1000),\"\")","v":0},{"$f":"IFERROR(IF(OR($C$110=FALSE,LEFT($B104,3)<>\"NOX\"),BA53*INDEX('Damage costs'!$W$16:$W$43,MATCH($B104,'Damage costs'!$C$16:$C$43,0))/1000,BA53*INDEX('Damage costs'!$AA$16:$AA$43,MATCH($B104,'Damage costs'!$C$16:$C$43,0))/1000),\"\")","v":0},{"$f":"IFERROR(IF(OR($C$110=FALSE,LEFT($B104,3)<>\"NOX\"),BB53*INDEX('Damage costs'!$W$16:$W$43,MATCH($B104,'Damage costs'!$C$16:$C$43,0))/1000,BB53*INDEX('Damage costs'!$AA$16:$AA$43,MATCH($B104,'Damage costs'!$C$16:$C$43,0))/1000),\"\")","v":0},{"$f":"IFERROR(IF(OR($C$110=FALSE,LEFT($B104,3)<>\"NOX\"),BC53*INDEX('Damage costs'!$W$16:$W$43,MATCH($B104,'Damage costs'!$C$16:$C$43,0))/1000,BC53*INDEX('Damage costs'!$AA$16:$AA$43,MATCH($B104,'Damage costs'!$C$16:$C$43,0))/1000),\"\")","v":0},{"$f":"IFERROR(IF(OR($C$110=FALSE,LEFT($B104,3)<>\"NOX\"),BD53*INDEX('Damage costs'!$W$16:$W$43,MATCH($B104,'Damage costs'!$C$16:$C$43,0))/1000,BD53*INDEX('Damage costs'!$AA$16:$AA$43,MATCH($B104,'Damage costs'!$C$16:$C$43,0))/1000),\"\")","v":0},{"$f":"IFERROR(IF(OR($C$110=FALSE,LEFT($B104,3)<>\"NOX\"),BE53*INDEX('Damage costs'!$W$16:$W$43,MATCH($B104,'Damage costs'!$C$16:$C$43,0))/1000,BE53*INDEX('Damage costs'!$AA$16:$AA$43,MATCH($B104,'Damage costs'!$C$16:$C$43,0))/1000),\"\")","v":0},{"$f":"IFERROR(IF(OR($C$110=FALSE,LEFT($B104,3)<>\"NOX\"),BF53*INDEX('Damage costs'!$W$16:$W$43,MATCH($B104,'Damage costs'!$C$16:$C$43,0))/1000,BF53*INDEX('Damage costs'!$AA$16:$AA$43,MATCH($B104,'Damage costs'!$C$16:$C$43,0))/1000),\"\")","v":0},{"$f":"IFERROR(IF(OR($C$110=FALSE,LEFT($B104,3)<>\"NOX\"),BG53*INDEX('Damage costs'!$W$16:$W$43,MATCH($B104,'Damage costs'!$C$16:$C$43,0))/1000,BG53*INDEX('Damage costs'!$AA$16:$AA$43,MATCH($B104,'Damage costs'!$C$16:$C$43,0))/1000),\"\")","v":0},{"$f":"IFERROR(IF(OR($C$110=FALSE,LEFT($B104,3)<>\"NOX\"),BH53*INDEX('Damage costs'!$W$16:$W$43,MATCH($B104,'Damage costs'!$C$16:$C$43,0))/1000,BH53*INDEX('Damage costs'!$AA$16:$AA$43,MATCH($B104,'Damage costs'!$C$16:$C$43,0))/1000),\"\")","v":0},{"$f":"IFERROR(IF(OR($C$110=FALSE,LEFT($B104,3)<>\"NOX\"),BI53*INDEX('Damage costs'!$W$16:$W$43,MATCH($B104,'Damage costs'!$C$16:$C$43,0))/1000,BI53*INDEX('Damage costs'!$AA$16:$AA$43,MATCH($B104,'Damage costs'!$C$16:$C$43,0))/1000),\"\")","v":0},{"$f":"IFERROR(IF(OR($C$110=FALSE,LEFT($B104,3)<>\"NOX\"),BJ53*INDEX('Damage costs'!$W$16:$W$43,MATCH($B104,'Damage costs'!$C$16:$C$43,0))/1000,BJ53*INDEX('Damage costs'!$AA$16:$AA$43,MATCH($B104,'Damage costs'!$C$16:$C$43,0))/1000),\"\")","v":0},{"$f":"IFERROR(IF(OR($C$110=FALSE,LEFT($B104,3)<>\"NOX\"),BK53*INDEX('Damage costs'!$W$16:$W$43,MATCH($B104,'Damage costs'!$C$16:$C$43,0))/1000,BK53*INDEX('Damage costs'!$AA$16:$AA$43,MATCH($B104,'Damage costs'!$C$16:$C$43,0))/1000),\"\")","v":0},{"$f":"IFERROR(IF(OR($C$110=FALSE,LEFT($B104,3)<>\"NOX\"),BL53*INDEX('Damage costs'!$W$16:$W$43,MATCH($B104,'Damage costs'!$C$16:$C$43,0))/1000,BL53*INDEX('Damage costs'!$AA$16:$AA$43,MATCH($B104,'Damage costs'!$C$16:$C$43,0))/1000),\"\")","v":0},{"$f":"IFERROR(IF(OR($C$110=FALSE,LEFT($B104,3)<>\"NOX\"),BM53*INDEX('Damage costs'!$W$16:$W$43,MATCH($B104,'Damage costs'!$C$16:$C$43,0))/1000,BM53*INDEX('Damage costs'!$AA$16:$AA$43,MATCH($B104,'Damage costs'!$C$16:$C$43,0))/1000),\"\")","v":0},{"$f":"IFERROR(IF(OR($C$110=FALSE,LEFT($B104,3)<>\"NOX\"),BN53*INDEX('Damage costs'!$W$16:$W$43,MATCH($B104,'Damage costs'!$C$16:$C$43,0))/1000,BN53*INDEX('Damage costs'!$AA$16:$AA$43,MATCH($B104,'Damage costs'!$C$16:$C$43,0))/1000),\"\")","v":0},{"$f":"IFERROR(IF(OR($C$110=FALSE,LEFT($B104,3)<>\"NOX\"),BO53*INDEX('Damage costs'!$W$16:$W$43,MATCH($B104,'Damage costs'!$C$16:$C$43,0))/1000,BO53*INDEX('Damage costs'!$AA$16:$AA$43,MATCH($B104,'Damage costs'!$C$16:$C$43,0))/1000),\"\")","v":0},{"$f":"IFERROR(IF(OR($C$110=FALSE,LEFT($B104,3)<>\"NOX\"),BP53*INDEX('Damage costs'!$W$16:$W$43,MATCH($B104,'Damage costs'!$C$16:$C$43,0))/1000,BP53*INDEX('Damage costs'!$AA$16:$AA$43,MATCH($B104,'Damage costs'!$C$16:$C$43,0))/1000),\"\")","v":0},{"$f":"IFERROR(IF(OR($C$110=FALSE,LEFT($B104,3)<>\"NOX\"),BQ53*INDEX('Damage costs'!$W$16:$W$43,MATCH($B104,'Damage costs'!$C$16:$C$43,0))/1000,BQ53*INDEX('Damage costs'!$AA$16:$AA$43,MATCH($B104,'Damage costs'!$C$16:$C$43,0))/1000),\"\")","v":0},{"$f":"IFERROR(IF(OR($C$110=FALSE,LEFT($B104,3)<>\"NOX\"),BR53*INDEX('Damage costs'!$W$16:$W$43,MATCH($B104,'Damage costs'!$C$16:$C$43,0))/1000,BR53*INDEX('Damage costs'!$AA$16:$AA$43,MATCH($B104,'Damage costs'!$C$16:$C$43,0))/1000),\"\")","v":0},{"$f":"IFERROR(IF(OR($C$110=FALSE,LEFT($B104,3)<>\"NOX\"),BS53*INDEX('Damage costs'!$W$16:$W$43,MATCH($B104,'Damage costs'!$C$16:$C$43,0))/1000,BS53*INDEX('Damage costs'!$AA$16:$AA$43,MATCH($B104,'Damage costs'!$C$16:$C$43,0))/1000),\"\")","v":0},{"$f":"IFERROR(IF(OR($C$110=FALSE,LEFT($B104,3)<>\"NOX\"),BT53*INDEX('Damage costs'!$W$16:$W$43,MATCH($B104,'Damage costs'!$C$16:$C$43,0))/1000,BT53*INDEX('Damage costs'!$AA$16:$AA$43,MATCH($B104,'Damage costs'!$C$16:$C$43,0))/1000),\"\")","v":0},{"$f":"IFERROR(IF(OR($C$110=FALSE,LEFT($B104,3)<>\"NOX\"),BU53*INDEX('Damage costs'!$W$16:$W$43,MATCH($B104,'Damage costs'!$C$16:$C$43,0))/1000,BU53*INDEX('Damage costs'!$AA$16:$AA$43,MATCH($B104,'Damage costs'!$C$16:$C$43,0))/1000),\"\")","v":0},{"$f":"IFERROR(IF(OR($C$110=FALSE,LEFT($B104,3)<>\"NOX\"),BV53*INDEX('Damage costs'!$W$16:$W$43,MATCH($B104,'Damage costs'!$C$16:$C$43,0))/1000,BV53*INDEX('Damage costs'!$AA$16:$AA$43,MATCH($B104,'Damage costs'!$C$16:$C$43,0))/1000),\"\")","v":0},{"$f":"IFERROR(IF(OR($C$110=FALSE,LEFT($B104,3)<>\"NOX\"),BW53*INDEX('Damage costs'!$W$16:$W$43,MATCH($B104,'Damage costs'!$C$16:$C$43,0))/1000,BW53*INDEX('Damage costs'!$AA$16:$AA$43,MATCH($B104,'Damage costs'!$C$16:$C$43,0))/1000),\"\")","v":0},{"$f":"IFERROR(IF(OR($C$110=FALSE,LEFT($B104,3)<>\"NOX\"),BX53*INDEX('Damage costs'!$W$16:$W$43,MATCH($B104,'Damage costs'!$C$16:$C$43,0))/1000,BX53*INDEX('Damage costs'!$AA$16:$AA$43,MATCH($B104,'Damage costs'!$C$16:$C$43,0))/1000),\"\")","v":0},{"$f":"IFERROR(IF(OR($C$110=FALSE,LEFT($B104,3)<>\"NOX\"),BY53*INDEX('Damage costs'!$W$16:$W$43,MATCH($B104,'Damage costs'!$C$16:$C$43,0))/1000,BY53*INDEX('Damage costs'!$AA$16:$AA$43,MATCH($B104,'Damage costs'!$C$16:$C$43,0))/1000),\"\")","v":0},{"$f":"IFERROR(IF(OR($C$110=FALSE,LEFT($B104,3)<>\"NOX\"),BZ53*INDEX('Damage costs'!$W$16:$W$43,MATCH($B104,'Damage costs'!$C$16:$C$43,0))/1000,BZ53*INDEX('Damage costs'!$AA$16:$AA$43,MATCH($B104,'Damage costs'!$C$16:$C$43,0))/1000),\"\")","v":0},{"$f":"IFERROR(IF(OR($C$110=FALSE,LEFT($B104,3)<>\"NOX\"),CA53*INDEX('Damage costs'!$W$16:$W$43,MATCH($B104,'Damage costs'!$C$16:$C$43,0))/1000,CA53*INDEX('Damage costs'!$AA$16:$AA$43,MATCH($B104,'Damage costs'!$C$16:$C$43,0))/1000),\"\")","v":0},{"$f":"IFERROR(IF(OR($C$110=FALSE,LEFT($B104,3)<>\"NOX\"),CB53*INDEX('Damage costs'!$W$16:$W$43,MATCH($B104,'Damage costs'!$C$16:$C$43,0))/1000,CB53*INDEX('Damage costs'!$AA$16:$AA$43,MATCH($B104,'Damage costs'!$C$16:$C$43,0))/1000),\"\")","v":0},{"$f":"IFERROR(IF(OR($C$110=FALSE,LEFT($B104,3)<>\"NOX\"),CC53*INDEX('Damage costs'!$W$16:$W$43,MATCH($B104,'Damage costs'!$C$16:$C$43,0))/1000,CC53*INDEX('Damage costs'!$AA$16:$AA$43,MATCH($B104,'Damage costs'!$C$16:$C$43,0))/1000),\"\")","v":0},{"$f":"IFERROR(IF(OR($C$110=FALSE,LEFT($B104,3)<>\"NOX\"),CD53*INDEX('Damage costs'!$W$16:$W$43,MATCH($B104,'Damage costs'!$C$16:$C$43,0))/1000,CD53*INDEX('Damage costs'!$AA$16:$AA$43,MATCH($B104,'Damage costs'!$C$16:$C$43,0))/1000),\"\")","v":0},{"$f":"IFERROR(IF(OR($C$110=FALSE,LEFT($B104,3)<>\"NOX\"),CE53*INDEX('Damage costs'!$W$16:$W$43,MATCH($B104,'Damage costs'!$C$16:$C$43,0))/1000,CE53*INDEX('Damage costs'!$AA$16:$AA$43,MATCH($B104,'Damage costs'!$C$16:$C$43,0))/1000),\"\")","v":0},{"$f":"IFERROR(IF(OR($C$110=FALSE,LEFT($B104,3)<>\"NOX\"),CF53*INDEX('Damage costs'!$W$16:$W$43,MATCH($B104,'Damage costs'!$C$16:$C$43,0))/1000,CF53*INDEX('Damage costs'!$AA$16:$AA$43,MATCH($B104,'Damage costs'!$C$16:$C$43,0))/1000),\"\")","v":0},{"$f":"IFERROR(IF(OR($C$110=FALSE,LEFT($B104,3)<>\"NOX\"),CG53*INDEX('Damage costs'!$W$16:$W$43,MATCH($B104,'Damage costs'!$C$16:$C$43,0))/1000,CG53*INDEX('Damage costs'!$AA$16:$AA$43,MATCH($B104,'Damage costs'!$C$16:$C$43,0))/1000),\"\")","v":0},{"$f":"IFERROR(IF(OR($C$110=FALSE,LEFT($B104,3)<>\"NOX\"),CH53*INDEX('Damage costs'!$W$16:$W$43,MATCH($B104,'Damage costs'!$C$16:$C$43,0))/1000,CH53*INDEX('Damage costs'!$AA$16:$AA$43,MATCH($B104,'Damage costs'!$C$16:$C$43,0))/1000),\"\")","v":0},{"$f":"IFERROR(IF(OR($C$110=FALSE,LEFT($B104,3)<>\"NOX\"),CI53*INDEX('Damage costs'!$W$16:$W$43,MATCH($B104,'Damage costs'!$C$16:$C$43,0))/1000,CI53*INDEX('Damage costs'!$AA$16:$AA$43,MATCH($B104,'Damage costs'!$C$16:$C$43,0))/1000),\"\")","v":0},{"$f":"IFERROR(IF(OR($C$110=FALSE,LEFT($B104,3)<>\"NOX\"),CJ53*INDEX('Damage costs'!$W$16:$W$43,MATCH($B104,'Damage costs'!$C$16:$C$43,0))/1000,CJ53*INDEX('Damage costs'!$AA$16:$AA$43,MATCH($B104,'Damage costs'!$C$16:$C$43,0))/1000),\"\")","v":0},{"$f":"IFERROR(IF(OR($C$110=FALSE,LEFT($B104,3)<>\"NOX\"),CK53*INDEX('Damage costs'!$W$16:$W$43,MATCH($B104,'Damage costs'!$C$16:$C$43,0))/1000,CK53*INDEX('Damage costs'!$AA$16:$AA$43,MATCH($B104,'Damage costs'!$C$16:$C$43,0))/1000),\"\")","v":0},{"$f":"IFERROR(IF(OR($C$110=FALSE,LEFT($B104,3)<>\"NOX\"),CL53*INDEX('Damage costs'!$W$16:$W$43,MATCH($B104,'Damage costs'!$C$16:$C$43,0))/1000,CL53*INDEX('Damage costs'!$AA$16:$AA$43,MATCH($B104,'Damage costs'!$C$16:$C$43,0))/1000),\"\")","v":0},{"$f":"IFERROR(IF(OR($C$110=FALSE,LEFT($B104,3)<>\"NOX\"),CM53*INDEX('Damage costs'!$W$16:$W$43,MATCH($B104,'Damage costs'!$C$16:$C$43,0))/1000,CM53*INDEX('Damage costs'!$AA$16:$AA$43,MATCH($B104,'Damage costs'!$C$16:$C$43,0))/1000),\"\")","v":0},{"$f":"IFERROR(IF(OR($C$110=FALSE,LEFT($B104,3)<>\"NOX\"),CN53*INDEX('Damage costs'!$W$16:$W$43,MATCH($B104,'Damage costs'!$C$16:$C$43,0))/1000,CN53*INDEX('Damage costs'!$AA$16:$AA$43,MATCH($B104,'Damage costs'!$C$16:$C$43,0))/1000),\"\")","v":0},{"$f":"IFERROR(IF(OR($C$110=FALSE,LEFT($B104,3)<>\"NOX\"),CO53*INDEX('Damage costs'!$W$16:$W$43,MATCH($B104,'Damage costs'!$C$16:$C$43,0))/1000,CO53*INDEX('Damage costs'!$AA$16:$AA$43,MATCH($B104,'Damage costs'!$C$16:$C$43,0))/1000),\"\")","v":0},{"$f":"IFERROR(IF(OR($C$110=FALSE,LEFT($B104,3)<>\"NOX\"),CP53*INDEX('Damage costs'!$W$16:$W$43,MATCH($B104,'Damage costs'!$C$16:$C$43,0))/1000,CP53*INDEX('Damage costs'!$AA$16:$AA$43,MATCH($B104,'Damage costs'!$C$16:$C$43,0))/1000),\"\")","v":0},{"$f":"IFERROR(IF(OR($C$110=FALSE,LEFT($B104,3)<>\"NOX\"),CQ53*INDEX('Damage costs'!$W$16:$W$43,MATCH($B104,'Damage costs'!$C$16:$C$43,0))/1000,CQ53*INDEX('Damage costs'!$AA$16:$AA$43,MATCH($B104,'Damage costs'!$C$16:$C$43,0))/1000),\"\")","v":0},{"$f":"IFERROR(IF(OR($C$110=FALSE,LEFT($B104,3)<>\"NOX\"),CR53*INDEX('Damage costs'!$W$16:$W$43,MATCH($B104,'Damage costs'!$C$16:$C$43,0))/1000,CR53*INDEX('Damage costs'!$AA$16:$AA$43,MATCH($B104,'Damage costs'!$C$16:$C$43,0))/1000),\"\")","v":0},{"$f":"IFERROR(IF(OR($C$110=FALSE,LEFT($B104,3)<>\"NOX\"),CS53*INDEX('Damage costs'!$W$16:$W$43,MATCH($B104,'Damage costs'!$C$16:$C$43,0))/1000,CS53*INDEX('Damage costs'!$AA$16:$AA$43,MATCH($B104,'Damage costs'!$C$16:$C$43,0))/1000),\"\")","v":0},{"$f":"IFERROR(IF(OR($C$110=FALSE,LEFT($B104,3)<>\"NOX\"),CT53*INDEX('Damage costs'!$W$16:$W$43,MATCH($B104,'Damage costs'!$C$16:$C$43,0))/1000,CT53*INDEX('Damage costs'!$AA$16:$AA$43,MATCH($B104,'Damage costs'!$C$16:$C$43,0))/1000),\"\")","v":0},{"$f":"IFERROR(IF(OR($C$110=FALSE,LEFT($B104,3)<>\"NOX\"),CU53*INDEX('Damage costs'!$W$16:$W$43,MATCH($B104,'Damage costs'!$C$16:$C$43,0))/1000,CU53*INDEX('Damage costs'!$AA$16:$AA$43,MATCH($B104,'Damage costs'!$C$16:$C$43,0))/1000),\"\")","v":0},{"$f":"IFERROR(IF(OR($C$110=FALSE,LEFT($B104,3)<>\"NOX\"),CV53*INDEX('Damage costs'!$W$16:$W$43,MATCH($B104,'Damage costs'!$C$16:$C$43,0))/1000,CV53*INDEX('Damage costs'!$AA$16:$AA$43,MATCH($B104,'Damage costs'!$C$16:$C$43,0))/1000),\"\")","v":0},{"$f":"IFERROR(IF(OR($C$110=FALSE,LEFT($B104,3)<>\"NOX\"),CW53*INDEX('Damage costs'!$W$16:$W$43,MATCH($B104,'Damage costs'!$C$16:$C$43,0))/1000,CW53*INDEX('Damage costs'!$AA$16:$AA$43,MATCH($B104,'Damage costs'!$C$16:$C$43,0))/1000),\"\")","v":0},{"$f":"IFERROR(IF(OR($C$110=FALSE,LEFT($B104,3)<>\"NOX\"),CX53*INDEX('Damage costs'!$W$16:$W$43,MATCH($B104,'Damage costs'!$C$16:$C$43,0))/1000,CX53*INDEX('Damage costs'!$AA$16:$AA$43,MATCH($B104,'Damage costs'!$C$16:$C$43,0))/1000),\"\")","v":0},{"$f":"IFERROR(IF(OR($C$110=FALSE,LEFT($B104,3)<>\"NOX\"),CY53*INDEX('Damage costs'!$W$16:$W$43,MATCH($B104,'Damage costs'!$C$16:$C$43,0))/1000,CY53*INDEX('Damage costs'!$AA$16:$AA$43,MATCH($B104,'Damage costs'!$C$16:$C$43,0))/1000),\"\")","v":0}]
[null,0,"£000's",{"$f":"IFERROR(IF(OR($C$110=FALSE,LEFT($B105,3)<>\"NOX\"),D54*INDEX('Damage costs'!$W$16:$W$43,MATCH($B105,'Damage costs'!$C$16:$C$43,0))/1000,D54*INDEX('Damage costs'!$AA$16:$AA$43,MATCH($B105,'Damage costs'!$C$16:$C$43,0))/1000),\"\")","v":""},{"$f":"IFERROR(IF(OR($C$110=FALSE,LEFT($B105,3)<>\"NOX\"),E54*INDEX('Damage costs'!$W$16:$W$43,MATCH($B105,'Damage costs'!$C$16:$C$43,0))/1000,E54*INDEX('Damage costs'!$AA$16:$AA$43,MATCH($B105,'Damage costs'!$C$16:$C$43,0))/1000),\"\")","v":""},{"$f":"IFERROR(IF(OR($C$110=FALSE,LEFT($B105,3)<>\"NOX\"),F54*INDEX('Damage costs'!$W$16:$W$43,MATCH($B105,'Damage costs'!$C$16:$C$43,0))/1000,F54*INDEX('Damage costs'!$AA$16:$AA$43,MATCH($B105,'Damage costs'!$C$16:$C$43,0))/1000),\"\")","v":""},{"$f":"IFERROR(IF(OR($C$110=FALSE,LEFT($B105,3)<>\"NOX\"),G54*INDEX('Damage costs'!$W$16:$W$43,MATCH($B105,'Damage costs'!$C$16:$C$43,0))/1000,G54*INDEX('Damage costs'!$AA$16:$AA$43,MATCH($B105,'Damage costs'!$C$16:$C$43,0))/1000),\"\")","v":""},{"$f":"IFERROR(IF(OR($C$110=FALSE,LEFT($B105,3)<>\"NOX\"),H54*INDEX('Damage costs'!$W$16:$W$43,MATCH($B105,'Damage costs'!$C$16:$C$43,0))/1000,H54*INDEX('Damage costs'!$AA$16:$AA$43,MATCH($B105,'Damage costs'!$C$16:$C$43,0))/1000),\"\")","v":""},{"$f":"IFERROR(IF(OR($C$110=FALSE,LEFT($B105,3)<>\"NOX\"),I54*INDEX('Damage costs'!$W$16:$W$43,MATCH($B105,'Damage costs'!$C$16:$C$43,0))/1000,I54*INDEX('Damage costs'!$AA$16:$AA$43,MATCH($B105,'Damage costs'!$C$16:$C$43,0))/1000),\"\")","v":""},{"$f":"IFERROR(IF(OR($C$110=FALSE,LEFT($B105,3)<>\"NOX\"),J54*INDEX('Damage costs'!$W$16:$W$43,MATCH($B105,'Damage costs'!$C$16:$C$43,0))/1000,J54*INDEX('Damage costs'!$AA$16:$AA$43,MATCH($B105,'Damage costs'!$C$16:$C$43,0))/1000),\"\")","v":""},{"$f":"IFERROR(IF(OR($C$110=FALSE,LEFT($B105,3)<>\"NOX\"),K54*INDEX('Damage costs'!$W$16:$W$43,MATCH($B105,'Damage costs'!$C$16:$C$43,0))/1000,K54*INDEX('Damage costs'!$AA$16:$AA$43,MATCH($B105,'Damage costs'!$C$16:$C$43,0))/1000),\"\")","v":""},{"$f":"IFERROR(IF(OR($C$110=FALSE,LEFT($B105,3)<>\"NOX\"),L54*INDEX('Damage costs'!$W$16:$W$43,MATCH($B105,'Damage costs'!$C$16:$C$43,0))/1000,L54*INDEX('Damage costs'!$AA$16:$AA$43,MATCH($B105,'Damage costs'!$C$16:$C$43,0))/1000),\"\")","v":""},{"$f":"IFERROR(IF(OR($C$110=FALSE,LEFT($B105,3)<>\"NOX\"),M54*INDEX('Damage costs'!$W$16:$W$43,MATCH($B105,'Damage costs'!$C$16:$C$43,0))/1000,M54*INDEX('Damage costs'!$AA$16:$AA$43,MATCH($B105,'Damage costs'!$C$16:$C$43,0))/1000),\"\")","v":""},{"$f":"IFERROR(IF(OR($C$110=FALSE,LEFT($B105,3)<>\"NOX\"),N54*INDEX('Damage costs'!$W$16:$W$43,MATCH($B105,'Damage costs'!$C$16:$C$43,0))/1000,N54*INDEX('Damage costs'!$AA$16:$AA$43,MATCH($B105,'Damage costs'!$C$16:$C$43,0))/1000),\"\")","v":""},{"$f":"IFERROR(IF(OR($C$110=FALSE,LEFT($B105,3)<>\"NOX\"),O54*INDEX('Damage costs'!$W$16:$W$43,MATCH($B105,'Damage costs'!$C$16:$C$43,0))/1000,O54*INDEX('Damage costs'!$AA$16:$AA$43,MATCH($B105,'Damage costs'!$C$16:$C$43,0))/1000),\"\")","v":""},{"$f":"IFERROR(IF(OR($C$110=FALSE,LEFT($B105,3)<>\"NOX\"),P54*INDEX('Damage costs'!$W$16:$W$43,MATCH($B105,'Damage costs'!$C$16:$C$43,0))/1000,P54*INDEX('Damage costs'!$AA$16:$AA$43,MATCH($B105,'Damage costs'!$C$16:$C$43,0))/1000),\"\")","v":""},{"$f":"IFERROR(IF(OR($C$110=FALSE,LEFT($B105,3)<>\"NOX\"),Q54*INDEX('Damage costs'!$W$16:$W$43,MATCH($B105,'Damage costs'!$C$16:$C$43,0))/1000,Q54*INDEX('Damage costs'!$AA$16:$AA$43,MATCH($B105,'Damage costs'!$C$16:$C$43,0))/1000),\"\")","v":""},{"$f":"IFERROR(IF(OR($C$110=FALSE,LEFT($B105,3)<>\"NOX\"),R54*INDEX('Damage costs'!$W$16:$W$43,MATCH($B105,'Damage costs'!$C$16:$C$43,0))/1000,R54*INDEX('Damage costs'!$AA$16:$AA$43,MATCH($B105,'Damage costs'!$C$16:$C$43,0))/1000),\"\")","v":""},{"$f":"IFERROR(IF(OR($C$110=FALSE,LEFT($B105,3)<>\"NOX\"),S54*INDEX('Damage costs'!$W$16:$W$43,MATCH($B105,'Damage costs'!$C$16:$C$43,0))/1000,S54*INDEX('Damage costs'!$AA$16:$AA$43,MATCH($B105,'Damage costs'!$C$16:$C$43,0))/1000),\"\")","v":""},{"$f":"IFERROR(IF(OR($C$110=FALSE,LEFT($B105,3)<>\"NOX\"),T54*INDEX('Damage costs'!$W$16:$W$43,MATCH($B105,'Damage costs'!$C$16:$C$43,0))/1000,T54*INDEX('Damage costs'!$AA$16:$AA$43,MATCH($B105,'Damage costs'!$C$16:$C$43,0))/1000),\"\")","v":""},{"$f":"IFERROR(IF(OR($C$110=FALSE,LEFT($B105,3)<>\"NOX\"),U54*INDEX('Damage costs'!$W$16:$W$43,MATCH($B105,'Damage costs'!$C$16:$C$43,0))/1000,U54*INDEX('Damage costs'!$AA$16:$AA$43,MATCH($B105,'Damage costs'!$C$16:$C$43,0))/1000),\"\")","v":""},{"$f":"IFERROR(IF(OR($C$110=FALSE,LEFT($B105,3)<>\"NOX\"),V54*INDEX('Damage costs'!$W$16:$W$43,MATCH($B105,'Damage costs'!$C$16:$C$43,0))/1000,V54*INDEX('Damage costs'!$AA$16:$AA$43,MATCH($B105,'Damage costs'!$C$16:$C$43,0))/1000),\"\")","v":""},{"$f":"IFERROR(IF(OR($C$110=FALSE,LEFT($B105,3)<>\"NOX\"),W54*INDEX('Damage costs'!$W$16:$W$43,MATCH($B105,'Damage costs'!$C$16:$C$43,0))/1000,W54*INDEX('Damage costs'!$AA$16:$AA$43,MATCH($B105,'Damage costs'!$C$16:$C$43,0))/1000),\"\")","v":""},{"$f":"IFERROR(IF(OR($C$110=FALSE,LEFT($B105,3)<>\"NOX\"),X54*INDEX('Damage costs'!$W$16:$W$43,MATCH($B105,'Damage costs'!$C$16:$C$43,0))/1000,X54*INDEX('Damage costs'!$AA$16:$AA$43,MATCH($B105,'Damage costs'!$C$16:$C$43,0))/1000),\"\")","v":""},{"$f":"IFERROR(IF(OR($C$110=FALSE,LEFT($B105,3)<>\"NOX\"),Y54*INDEX('Damage costs'!$W$16:$W$43,MATCH($B105,'Damage costs'!$C$16:$C$43,0))/1000,Y54*INDEX('Damage costs'!$AA$16:$AA$43,MATCH($B105,'Damage costs'!$C$16:$C$43,0))/1000),\"\")","v":""},{"$f":"IFERROR(IF(OR($C$110=FALSE,LEFT($B105,3)<>\"NOX\"),Z54*INDEX('Damage costs'!$W$16:$W$43,MATCH($B105,'Damage costs'!$C$16:$C$43,0))/1000,Z54*INDEX('Damage costs'!$AA$16:$AA$43,MATCH($B105,'Damage costs'!$C$16:$C$43,0))/1000),\"\")","v":""},{"$f":"IFERROR(IF(OR($C$110=FALSE,LEFT($B105,3)<>\"NOX\"),AA54*INDEX('Damage costs'!$W$16:$W$43,MATCH($B105,'Damage costs'!$C$16:$C$43,0))/1000,AA54*INDEX('Damage costs'!$AA$16:$AA$43,MATCH($B105,'Damage costs'!$C$16:$C$43,0))/1000),\"\")","v":""},{"$f":"IFERROR(IF(OR($C$110=FALSE,LEFT($B105,3)<>\"NOX\"),AB54*INDEX('Damage costs'!$W$16:$W$43,MATCH($B105,'Damage costs'!$C$16:$C$43,0))/1000,AB54*INDEX('Damage costs'!$AA$16:$AA$43,MATCH($B105,'Damage costs'!$C$16:$C$43,0))/1000),\"\")","v":""},{"$f":"IFERROR(IF(OR($C$110=FALSE,LEFT($B105,3)<>\"NOX\"),AC54*INDEX('Damage costs'!$W$16:$W$43,MATCH($B105,'Damage costs'!$C$16:$C$43,0))/1000,AC54*INDEX('Damage costs'!$AA$16:$AA$43,MATCH($B105,'Damage costs'!$C$16:$C$43,0))/1000),\"\")","v":""},{"$f":"IFERROR(IF(OR($C$110=FALSE,LEFT($B105,3)<>\"NOX\"),AD54*INDEX('Damage costs'!$W$16:$W$43,MATCH($B105,'Damage costs'!$C$16:$C$43,0))/1000,AD54*INDEX('Damage costs'!$AA$16:$AA$43,MATCH($B105,'Damage costs'!$C$16:$C$43,0))/1000),\"\")","v":""},{"$f":"IFERROR(IF(OR($C$110=FALSE,LEFT($B105,3)<>\"NOX\"),AE54*INDEX('Damage costs'!$W$16:$W$43,MATCH($B105,'Damage costs'!$C$16:$C$43,0))/1000,AE54*INDEX('Damage costs'!$AA$16:$AA$43,MATCH($B105,'Damage costs'!$C$16:$C$43,0))/1000),\"\")","v":""},{"$f":"IFERROR(IF(OR($C$110=FALSE,LEFT($B105,3)<>\"NOX\"),AF54*INDEX('Damage costs'!$W$16:$W$43,MATCH($B105,'Damage costs'!$C$16:$C$43,0))/1000,AF54*INDEX('Damage costs'!$AA$16:$AA$43,MATCH($B105,'Damage costs'!$C$16:$C$43,0))/1000),\"\")","v":""},{"$f":"IFERROR(IF(OR($C$110=FALSE,LEFT($B105,3)<>\"NOX\"),AG54*INDEX('Damage costs'!$W$16:$W$43,MATCH($B105,'Damage costs'!$C$16:$C$43,0))/1000,AG54*INDEX('Damage costs'!$AA$16:$AA$43,MATCH($B105,'Damage costs'!$C$16:$C$43,0))/1000),\"\")","v":""},{"$f":"IFERROR(IF(OR($C$110=FALSE,LEFT($B105,3)<>\"NOX\"),AH54*INDEX('Damage costs'!$W$16:$W$43,MATCH($B105,'Damage costs'!$C$16:$C$43,0))/1000,AH54*INDEX('Damage costs'!$AA$16:$AA$43,MATCH($B105,'Damage costs'!$C$16:$C$43,0))/1000),\"\")","v":""},{"$f":"IFERROR(IF(OR($C$110=FALSE,LEFT($B105,3)<>\"NOX\"),AI54*INDEX('Damage costs'!$W$16:$W$43,MATCH($B105,'Damage costs'!$C$16:$C$43,0))/1000,AI54*INDEX('Damage costs'!$AA$16:$AA$43,MATCH($B105,'Damage costs'!$C$16:$C$43,0))/1000),\"\")","v":""},{"$f":"IFERROR(IF(OR($C$110=FALSE,LEFT($B105,3)<>\"NOX\"),AJ54*INDEX('Damage costs'!$W$16:$W$43,MATCH($B105,'Damage costs'!$C$16:$C$43,0))/1000,AJ54*INDEX('Damage costs'!$AA$16:$AA$43,MATCH($B105,'Damage costs'!$C$16:$C$43,0))/1000),\"\")","v":""},{"$f":"IFERROR(IF(OR($C$110=FALSE,LEFT($B105,3)<>\"NOX\"),AK54*INDEX('Damage costs'!$W$16:$W$43,MATCH($B105,'Damage costs'!$C$16:$C$43,0))/1000,AK54*INDEX('Damage costs'!$AA$16:$AA$43,MATCH($B105,'Damage costs'!$C$16:$C$43,0))/1000),\"\")","v":""},{"$f":"IFERROR(IF(OR($C$110=FALSE,LEFT($B105,3)<>\"NOX\"),AL54*INDEX('Damage costs'!$W$16:$W$43,MATCH($B105,'Damage costs'!$C$16:$C$43,0))/1000,AL54*INDEX('Damage costs'!$AA$16:$AA$43,MATCH($B105,'Damage costs'!$C$16:$C$43,0))/1000),\"\")","v":""},{"$f":"IFERROR(IF(OR($C$110=FALSE,LEFT($B105,3)<>\"NOX\"),AM54*INDEX('Damage costs'!$W$16:$W$43,MATCH($B105,'Damage costs'!$C$16:$C$43,0))/1000,AM54*INDEX('Damage costs'!$AA$16:$AA$43,MATCH($B105,'Damage costs'!$C$16:$C$43,0))/1000),\"\")","v":""},{"$f":"IFERROR(IF(OR($C$110=FALSE,LEFT($B105,3)<>\"NOX\"),AN54*INDEX('Damage costs'!$W$16:$W$43,MATCH($B105,'Damage costs'!$C$16:$C$43,0))/1000,AN54*INDEX('Damage costs'!$AA$16:$AA$43,MATCH($B105,'Damage costs'!$C$16:$C$43,0))/1000),\"\")","v":""},{"$f":"IFERROR(IF(OR($C$110=FALSE,LEFT($B105,3)<>\"NOX\"),AO54*INDEX('Damage costs'!$W$16:$W$43,MATCH($B105,'Damage costs'!$C$16:$C$43,0))/1000,AO54*INDEX('Damage costs'!$AA$16:$AA$43,MATCH($B105,'Damage costs'!$C$16:$C$43,0))/1000),\"\")","v":""},{"$f":"IFERROR(IF(OR($C$110=FALSE,LEFT($B105,3)<>\"NOX\"),AP54*INDEX('Damage costs'!$W$16:$W$43,MATCH($B105,'Damage costs'!$C$16:$C$43,0))/1000,AP54*INDEX('Damage costs'!$AA$16:$AA$43,MATCH($B105,'Damage costs'!$C$16:$C$43,0))/1000),\"\")","v":""},{"$f":"IFERROR(IF(OR($C$110=FALSE,LEFT($B105,3)<>\"NOX\"),AQ54*INDEX('Damage costs'!$W$16:$W$43,MATCH($B105,'Damage costs'!$C$16:$C$43,0))/1000,AQ54*INDEX('Damage costs'!$AA$16:$AA$43,MATCH($B105,'Damage costs'!$C$16:$C$43,0))/1000),\"\")","v":""},{"$f":"IFERROR(IF(OR($C$110=FALSE,LEFT($B105,3)<>\"NOX\"),AR54*INDEX('Damage costs'!$W$16:$W$43,MATCH($B105,'Damage costs'!$C$16:$C$43,0))/1000,AR54*INDEX('Damage costs'!$AA$16:$AA$43,MATCH($B105,'Damage costs'!$C$16:$C$43,0))/1000),\"\")","v":""},{"$f":"IFERROR(IF(OR($C$110=FALSE,LEFT($B105,3)<>\"NOX\"),AS54*INDEX('Damage costs'!$W$16:$W$43,MATCH($B105,'Damage costs'!$C$16:$C$43,0))/1000,AS54*INDEX('Damage costs'!$AA$16:$AA$43,MATCH($B105,'Damage costs'!$C$16:$C$43,0))/1000),\"\")","v":""},{"$f":"IFERROR(IF(OR($C$110=FALSE,LEFT($B105,3)<>\"NOX\"),AT54*INDEX('Damage costs'!$W$16:$W$43,MATCH($B105,'Damage costs'!$C$16:$C$43,0))/1000,AT54*INDEX('Damage costs'!$AA$16:$AA$43,MATCH($B105,'Damage costs'!$C$16:$C$43,0))/1000),\"\")","v":""},{"$f":"IFERROR(IF(OR($C$110=FALSE,LEFT($B105,3)<>\"NOX\"),AU54*INDEX('Damage costs'!$W$16:$W$43,MATCH($B105,'Damage costs'!$C$16:$C$43,0))/1000,AU54*INDEX('Damage costs'!$AA$16:$AA$43,MATCH($B105,'Damage costs'!$C$16:$C$43,0))/1000),\"\")","v":""},{"$f":"IFERROR(IF(OR($C$110=FALSE,LEFT($B105,3)<>\"NOX\"),AV54*INDEX('Damage costs'!$W$16:$W$43,MATCH($B105,'Damage costs'!$C$16:$C$43,0))/1000,AV54*INDEX('Damage costs'!$AA$16:$AA$43,MATCH($B105,'Damage costs'!$C$16:$C$43,0))/1000),\"\")","v":""},{"$f":"IFERROR(IF(OR($C$110=FALSE,LEFT($B105,3)<>\"NOX\"),AW54*INDEX('Damage costs'!$W$16:$W$43,MATCH($B105,'Damage costs'!$C$16:$C$43,0))/1000,AW54*INDEX('Damage costs'!$AA$16:$AA$43,MATCH($B105,'Damage costs'!$C$16:$C$43,0))/1000),\"\")","v":""},{"$f":"IFERROR(IF(OR($C$110=FALSE,LEFT($B105,3)<>\"NOX\"),AX54*INDEX('Damage costs'!$W$16:$W$43,MATCH($B105,'Damage costs'!$C$16:$C$43,0))/1000,AX54*INDEX('Damage costs'!$AA$16:$AA$43,MATCH($B105,'Damage costs'!$C$16:$C$43,0))/1000),\"\")","v":""},{"$f":"IFERROR(IF(OR($C$110=FALSE,LEFT($B105,3)<>\"NOX\"),AY54*INDEX('Damage costs'!$W$16:$W$43,MATCH($B105,'Damage costs'!$C$16:$C$43,0))/1000,AY54*INDEX('Damage costs'!$AA$16:$AA$43,MATCH($B105,'Damage costs'!$C$16:$C$43,0))/1000),\"\")","v":""},{"$f":"IFERROR(IF(OR($C$110=FALSE,LEFT($B105,3)<>\"NOX\"),AZ54*INDEX('Damage costs'!$W$16:$W$43,MATCH($B105,'Damage costs'!$C$16:$C$43,0))/1000,AZ54*INDEX('Damage costs'!$AA$16:$AA$43,MATCH($B105,'Damage costs'!$C$16:$C$43,0))/1000),\"\")","v":""},{"$f":"IFERROR(IF(OR($C$110=FALSE,LEFT($B105,3)<>\"NOX\"),BA54*INDEX('Damage costs'!$W$16:$W$43,MATCH($B105,'Damage costs'!$C$16:$C$43,0))/1000,BA54*INDEX('Damage costs'!$AA$16:$AA$43,MATCH($B105,'Damage costs'!$C$16:$C$43,0))/1000),\"\")","v":""},{"$f":"IFERROR(IF(OR($C$110=FALSE,LEFT($B105,3)<>\"NOX\"),BB54*INDEX('Damage costs'!$W$16:$W$43,MATCH($B105,'Damage costs'!$C$16:$C$43,0))/1000,BB54*INDEX('Damage costs'!$AA$16:$AA$43,MATCH($B105,'Damage costs'!$C$16:$C$43,0))/1000),\"\")","v":""},{"$f":"IFERROR(IF(OR($C$110=FALSE,LEFT($B105,3)<>\"NOX\"),BC54*INDEX('Damage costs'!$W$16:$W$43,MATCH($B105,'Damage costs'!$C$16:$C$43,0))/1000,BC54*INDEX('Damage costs'!$AA$16:$AA$43,MATCH($B105,'Damage costs'!$C$16:$C$43,0))/1000),\"\")","v":""},{"$f":"IFERROR(IF(OR($C$110=FALSE,LEFT($B105,3)<>\"NOX\"),BD54*INDEX('Damage costs'!$W$16:$W$43,MATCH($B105,'Damage costs'!$C$16:$C$43,0))/1000,BD54*INDEX('Damage costs'!$AA$16:$AA$43,MATCH($B105,'Damage costs'!$C$16:$C$43,0))/1000),\"\")","v":""},{"$f":"IFERROR(IF(OR($C$110=FALSE,LEFT($B105,3)<>\"NOX\"),BE54*INDEX('Damage costs'!$W$16:$W$43,MATCH($B105,'Damage costs'!$C$16:$C$43,0))/1000,BE54*INDEX('Damage costs'!$AA$16:$AA$43,MATCH($B105,'Damage costs'!$C$16:$C$43,0))/1000),\"\")","v":""},{"$f":"IFERROR(IF(OR($C$110=FALSE,LEFT($B105,3)<>\"NOX\"),BF54*INDEX('Damage costs'!$W$16:$W$43,MATCH($B105,'Damage costs'!$C$16:$C$43,0))/1000,BF54*INDEX('Damage costs'!$AA$16:$AA$43,MATCH($B105,'Damage costs'!$C$16:$C$43,0))/1000),\"\")","v":""},{"$f":"IFERROR(IF(OR($C$110=FALSE,LEFT($B105,3)<>\"NOX\"),BG54*INDEX('Damage costs'!$W$16:$W$43,MATCH($B105,'Damage costs'!$C$16:$C$43,0))/1000,BG54*INDEX('Damage costs'!$AA$16:$AA$43,MATCH($B105,'Damage costs'!$C$16:$C$43,0))/1000),\"\")","v":""},{"$f":"IFERROR(IF(OR($C$110=FALSE,LEFT($B105,3)<>\"NOX\"),BH54*INDEX('Damage costs'!$W$16:$W$43,MATCH($B105,'Damage costs'!$C$16:$C$43,0))/1000,BH54*INDEX('Damage costs'!$AA$16:$AA$43,MATCH($B105,'Damage costs'!$C$16:$C$43,0))/1000),\"\")","v":""},{"$f":"IFERROR(IF(OR($C$110=FALSE,LEFT($B105,3)<>\"NOX\"),BI54*INDEX('Damage costs'!$W$16:$W$43,MATCH($B105,'Damage costs'!$C$16:$C$43,0))/1000,BI54*INDEX('Damage costs'!$AA$16:$AA$43,MATCH($B105,'Damage costs'!$C$16:$C$43,0))/1000),\"\")","v":""},{"$f":"IFERROR(IF(OR($C$110=FALSE,LEFT($B105,3)<>\"NOX\"),BJ54*INDEX('Damage costs'!$W$16:$W$43,MATCH($B105,'Damage costs'!$C$16:$C$43,0))/1000,BJ54*INDEX('Damage costs'!$AA$16:$AA$43,MATCH($B105,'Damage costs'!$C$16:$C$43,0))/1000),\"\")","v":""},{"$f":"IFERROR(IF(OR($C$110=FALSE,LEFT($B105,3)<>\"NOX\"),BK54*INDEX('Damage costs'!$W$16:$W$43,MATCH($B105,'Damage costs'!$C$16:$C$43,0))/1000,BK54*INDEX('Damage costs'!$AA$16:$AA$43,MATCH($B105,'Damage costs'!$C$16:$C$43,0))/1000),\"\")","v":""},{"$f":"IFERROR(IF(OR($C$110=FALSE,LEFT($B105,3)<>\"NOX\"),BL54*INDEX('Damage costs'!$W$16:$W$43,MATCH($B105,'Damage costs'!$C$16:$C$43,0))/1000,BL54*INDEX('Damage costs'!$AA$16:$AA$43,MATCH($B105,'Damage costs'!$C$16:$C$43,0))/1000),\"\")","v":""},{"$f":"IFERROR(IF(OR($C$110=FALSE,LEFT($B105,3)<>\"NOX\"),BM54*INDEX('Damage costs'!$W$16:$W$43,MATCH($B105,'Damage costs'!$C$16:$C$43,0))/1000,BM54*INDEX('Damage costs'!$AA$16:$AA$43,MATCH($B105,'Damage costs'!$C$16:$C$43,0))/1000),\"\")","v":""},{"$f":"IFERROR(IF(OR($C$110=FALSE,LEFT($B105,3)<>\"NOX\"),BN54*INDEX('Damage costs'!$W$16:$W$43,MATCH($B105,'Damage costs'!$C$16:$C$43,0))/1000,BN54*INDEX('Damage costs'!$AA$16:$AA$43,MATCH($B105,'Damage costs'!$C$16:$C$43,0))/1000),\"\")","v":""},{"$f":"IFERROR(IF(OR($C$110=FALSE,LEFT($B105,3)<>\"NOX\"),BO54*INDEX('Damage costs'!$W$16:$W$43,MATCH($B105,'Damage costs'!$C$16:$C$43,0))/1000,BO54*INDEX('Damage costs'!$AA$16:$AA$43,MATCH($B105,'Damage costs'!$C$16:$C$43,0))/1000),\"\")","v":""},{"$f":"IFERROR(IF(OR($C$110=FALSE,LEFT($B105,3)<>\"NOX\"),BP54*INDEX('Damage costs'!$W$16:$W$43,MATCH($B105,'Damage costs'!$C$16:$C$43,0))/1000,BP54*INDEX('Damage costs'!$AA$16:$AA$43,MATCH($B105,'Damage costs'!$C$16:$C$43,0))/1000),\"\")","v":""},{"$f":"IFERROR(IF(OR($C$110=FALSE,LEFT($B105,3)<>\"NOX\"),BQ54*INDEX('Damage costs'!$W$16:$W$43,MATCH($B105,'Damage costs'!$C$16:$C$43,0))/1000,BQ54*INDEX('Damage costs'!$AA$16:$AA$43,MATCH($B105,'Damage costs'!$C$16:$C$43,0))/1000),\"\")","v":""},{"$f":"IFERROR(IF(OR($C$110=FALSE,LEFT($B105,3)<>\"NOX\"),BR54*INDEX('Damage costs'!$W$16:$W$43,MATCH($B105,'Damage costs'!$C$16:$C$43,0))/1000,BR54*INDEX('Damage costs'!$AA$16:$AA$43,MATCH($B105,'Damage costs'!$C$16:$C$43,0))/1000),\"\")","v":""},{"$f":"IFERROR(IF(OR($C$110=FALSE,LEFT($B105,3)<>\"NOX\"),BS54*INDEX('Damage costs'!$W$16:$W$43,MATCH($B105,'Damage costs'!$C$16:$C$43,0))/1000,BS54*INDEX('Damage costs'!$AA$16:$AA$43,MATCH($B105,'Damage costs'!$C$16:$C$43,0))/1000),\"\")","v":""},{"$f":"IFERROR(IF(OR($C$110=FALSE,LEFT($B105,3)<>\"NOX\"),BT54*INDEX('Damage costs'!$W$16:$W$43,MATCH($B105,'Damage costs'!$C$16:$C$43,0))/1000,BT54*INDEX('Damage costs'!$AA$16:$AA$43,MATCH($B105,'Damage costs'!$C$16:$C$43,0))/1000),\"\")","v":""},{"$f":"IFERROR(IF(OR($C$110=FALSE,LEFT($B105,3)<>\"NOX\"),BU54*INDEX('Damage costs'!$W$16:$W$43,MATCH($B105,'Damage costs'!$C$16:$C$43,0))/1000,BU54*INDEX('Damage costs'!$AA$16:$AA$43,MATCH($B105,'Damage costs'!$C$16:$C$43,0))/1000),\"\")","v":""},{"$f":"IFERROR(IF(OR($C$110=FALSE,LEFT($B105,3)<>\"NOX\"),BV54*INDEX('Damage costs'!$W$16:$W$43,MATCH($B105,'Damage costs'!$C$16:$C$43,0))/1000,BV54*INDEX('Damage costs'!$AA$16:$AA$43,MATCH($B105,'Damage costs'!$C$16:$C$43,0))/1000),\"\")","v":""},{"$f":"IFERROR(IF(OR($C$110=FALSE,LEFT($B105,3)<>\"NOX\"),BW54*INDEX('Damage costs'!$W$16:$W$43,MATCH($B105,'Damage costs'!$C$16:$C$43,0))/1000,BW54*INDEX('Damage costs'!$AA$16:$AA$43,MATCH($B105,'Damage costs'!$C$16:$C$43,0))/1000),\"\")","v":""},{"$f":"IFERROR(IF(OR($C$110=FALSE,LEFT($B105,3)<>\"NOX\"),BX54*INDEX('Damage costs'!$W$16:$W$43,MATCH($B105,'Damage costs'!$C$16:$C$43,0))/1000,BX54*INDEX('Damage costs'!$AA$16:$AA$43,MATCH($B105,'Damage costs'!$C$16:$C$43,0))/1000),\"\")","v":""},{"$f":"IFERROR(IF(OR($C$110=FALSE,LEFT($B105,3)<>\"NOX\"),BY54*INDEX('Damage costs'!$W$16:$W$43,MATCH($B105,'Damage costs'!$C$16:$C$43,0))/1000,BY54*INDEX('Damage costs'!$AA$16:$AA$43,MATCH($B105,'Damage costs'!$C$16:$C$43,0))/1000),\"\")","v":""},{"$f":"IFERROR(IF(OR($C$110=FALSE,LEFT($B105,3)<>\"NOX\"),BZ54*INDEX('Damage costs'!$W$16:$W$43,MATCH($B105,'Damage costs'!$C$16:$C$43,0))/1000,BZ54*INDEX('Damage costs'!$AA$16:$AA$43,MATCH($B105,'Damage costs'!$C$16:$C$43,0))/1000),\"\")","v":""},{"$f":"IFERROR(IF(OR($C$110=FALSE,LEFT($B105,3)<>\"NOX\"),CA54*INDEX('Damage costs'!$W$16:$W$43,MATCH($B105,'Damage costs'!$C$16:$C$43,0))/1000,CA54*INDEX('Damage costs'!$AA$16:$AA$43,MATCH($B105,'Damage costs'!$C$16:$C$43,0))/1000),\"\")","v":""},{"$f":"IFERROR(IF(OR($C$110=FALSE,LEFT($B105,3)<>\"NOX\"),CB54*INDEX('Damage costs'!$W$16:$W$43,MATCH($B105,'Damage costs'!$C$16:$C$43,0))/1000,CB54*INDEX('Damage costs'!$AA$16:$AA$43,MATCH($B105,'Damage costs'!$C$16:$C$43,0))/1000),\"\")","v":""},{"$f":"IFERROR(IF(OR($C$110=FALSE,LEFT($B105,3)<>\"NOX\"),CC54*INDEX('Damage costs'!$W$16:$W$43,MATCH($B105,'Damage costs'!$C$16:$C$43,0))/1000,CC54*INDEX('Damage costs'!$AA$16:$AA$43,MATCH($B105,'Damage costs'!$C$16:$C$43,0))/1000),\"\")","v":""},{"$f":"IFERROR(IF(OR($C$110=FALSE,LEFT($B105,3)<>\"NOX\"),CD54*INDEX('Damage costs'!$W$16:$W$43,MATCH($B105,'Damage costs'!$C$16:$C$43,0))/1000,CD54*INDEX('Damage costs'!$AA$16:$AA$43,MATCH($B105,'Damage costs'!$C$16:$C$43,0))/1000),\"\")","v":""},{"$f":"IFERROR(IF(OR($C$110=FALSE,LEFT($B105,3)<>\"NOX\"),CE54*INDEX('Damage costs'!$W$16:$W$43,MATCH($B105,'Damage costs'!$C$16:$C$43,0))/1000,CE54*INDEX('Damage costs'!$AA$16:$AA$43,MATCH($B105,'Damage costs'!$C$16:$C$43,0))/1000),\"\")","v":""},{"$f":"IFERROR(IF(OR($C$110=FALSE,LEFT($B105,3)<>\"NOX\"),CF54*INDEX('Damage costs'!$W$16:$W$43,MATCH($B105,'Damage costs'!$C$16:$C$43,0))/1000,CF54*INDEX('Damage costs'!$AA$16:$AA$43,MATCH($B105,'Damage costs'!$C$16:$C$43,0))/1000),\"\")","v":""},{"$f":"IFERROR(IF(OR($C$110=FALSE,LEFT($B105,3)<>\"NOX\"),CG54*INDEX('Damage costs'!$W$16:$W$43,MATCH($B105,'Damage costs'!$C$16:$C$43,0))/1000,CG54*INDEX('Damage costs'!$AA$16:$AA$43,MATCH($B105,'Damage costs'!$C$16:$C$43,0))/1000),\"\")","v":""},{"$f":"IFERROR(IF(OR($C$110=FALSE,LEFT($B105,3)<>\"NOX\"),CH54*INDEX('Damage costs'!$W$16:$W$43,MATCH($B105,'Damage costs'!$C$16:$C$43,0))/1000,CH54*INDEX('Damage costs'!$AA$16:$AA$43,MATCH($B105,'Damage costs'!$C$16:$C$43,0))/1000),\"\")","v":""},{"$f":"IFERROR(IF(OR($C$110=FALSE,LEFT($B105,3)<>\"NOX\"),CI54*INDEX('Damage costs'!$W$16:$W$43,MATCH($B105,'Damage costs'!$C$16:$C$43,0))/1000,CI54*INDEX('Damage costs'!$AA$16:$AA$43,MATCH($B105,'Damage costs'!$C$16:$C$43,0))/1000),\"\")","v":""},{"$f":"IFERROR(IF(OR($C$110=FALSE,LEFT($B105,3)<>\"NOX\"),CJ54*INDEX('Damage costs'!$W$16:$W$43,MATCH($B105,'Damage costs'!$C$16:$C$43,0))/1000,CJ54*INDEX('Damage costs'!$AA$16:$AA$43,MATCH($B105,'Damage costs'!$C$16:$C$43,0))/1000),\"\")","v":""},{"$f":"IFERROR(IF(OR($C$110=FALSE,LEFT($B105,3)<>\"NOX\"),CK54*INDEX('Damage costs'!$W$16:$W$43,MATCH($B105,'Damage costs'!$C$16:$C$43,0))/1000,CK54*INDEX('Damage costs'!$AA$16:$AA$43,MATCH($B105,'Damage costs'!$C$16:$C$43,0))/1000),\"\")","v":""},{"$f":"IFERROR(IF(OR($C$110=FALSE,LEFT($B105,3)<>\"NOX\"),CL54*INDEX('Damage costs'!$W$16:$W$43,MATCH($B105,'Damage costs'!$C$16:$C$43,0))/1000,CL54*INDEX('Damage costs'!$AA$16:$AA$43,MATCH($B105,'Damage costs'!$C$16:$C$43,0))/1000),\"\")","v":""},{"$f":"IFERROR(IF(OR($C$110=FALSE,LEFT($B105,3)<>\"NOX\"),CM54*INDEX('Damage costs'!$W$16:$W$43,MATCH($B105,'Damage costs'!$C$16:$C$43,0))/1000,CM54*INDEX('Damage costs'!$AA$16:$AA$43,MATCH($B105,'Damage costs'!$C$16:$C$43,0))/1000),\"\")","v":""},{"$f":"IFERROR(IF(OR($C$110=FALSE,LEFT($B105,3)<>\"NOX\"),CN54*INDEX('Damage costs'!$W$16:$W$43,MATCH($B105,'Damage costs'!$C$16:$C$43,0))/1000,CN54*INDEX('Damage costs'!$AA$16:$AA$43,MATCH($B105,'Damage costs'!$C$16:$C$43,0))/1000),\"\")","v":""},{"$f":"IFERROR(IF(OR($C$110=FALSE,LEFT($B105,3)<>\"NOX\"),CO54*INDEX('Damage costs'!$W$16:$W$43,MATCH($B105,'Damage costs'!$C$16:$C$43,0))/1000,CO54*INDEX('Damage costs'!$AA$16:$AA$43,MATCH($B105,'Damage costs'!$C$16:$C$43,0))/1000),\"\")","v":""},{"$f":"IFERROR(IF(OR($C$110=FALSE,LEFT($B105,3)<>\"NOX\"),CP54*INDEX('Damage costs'!$W$16:$W$43,MATCH($B105,'Damage costs'!$C$16:$C$43,0))/1000,CP54*INDEX('Damage costs'!$AA$16:$AA$43,MATCH($B105,'Damage costs'!$C$16:$C$43,0))/1000),\"\")","v":""},{"$f":"IFERROR(IF(OR($C$110=FALSE,LEFT($B105,3)<>\"NOX\"),CQ54*INDEX('Damage costs'!$W$16:$W$43,MATCH($B105,'Damage costs'!$C$16:$C$43,0))/1000,CQ54*INDEX('Damage costs'!$AA$16:$AA$43,MATCH($B105,'Damage costs'!$C$16:$C$43,0))/1000),\"\")","v":""},{"$f":"IFERROR(IF(OR($C$110=FALSE,LEFT($B105,3)<>\"NOX\"),CR54*INDEX('Damage costs'!$W$16:$W$43,MATCH($B105,'Damage costs'!$C$16:$C$43,0))/1000,CR54*INDEX('Damage costs'!$AA$16:$AA$43,MATCH($B105,'Damage costs'!$C$16:$C$43,0))/1000),\"\")","v":""},{"$f":"IFERROR(IF(OR($C$110=FALSE,LEFT($B105,3)<>\"NOX\"),CS54*INDEX('Damage costs'!$W$16:$W$43,MATCH($B105,'Damage costs'!$C$16:$C$43,0))/1000,CS54*INDEX('Damage costs'!$AA$16:$AA$43,MATCH($B105,'Damage costs'!$C$16:$C$43,0))/1000),\"\")","v":""},{"$f":"IFERROR(IF(OR($C$110=FALSE,LEFT($B105,3)<>\"NOX\"),CT54*INDEX('Damage costs'!$W$16:$W$43,MATCH($B105,'Damage costs'!$C$16:$C$43,0))/1000,CT54*INDEX('Damage costs'!$AA$16:$AA$43,MATCH($B105,'Damage costs'!$C$16:$C$43,0))/1000),\"\")","v":""},{"$f":"IFERROR(IF(OR($C$110=FALSE,LEFT($B105,3)<>\"NOX\"),CU54*INDEX('Damage costs'!$W$16:$W$43,MATCH($B105,'Damage costs'!$C$16:$C$43,0))/1000,CU54*INDEX('Damage costs'!$AA$16:$AA$43,MATCH($B105,'Damage costs'!$C$16:$C$43,0))/1000),\"\")","v":""},{"$f":"IFERROR(IF(OR($C$110=FALSE,LEFT($B105,3)<>\"NOX\"),CV54*INDEX('Damage costs'!$W$16:$W$43,MATCH($B105,'Damage costs'!$C$16:$C$43,0))/1000,CV54*INDEX('Damage costs'!$AA$16:$AA$43,MATCH($B105,'Damage costs'!$C$16:$C$43,0))/1000),\"\")","v":""},{"$f":"IFERROR(IF(OR($C$110=FALSE,LEFT($B105,3)<>\"NOX\"),CW54*INDEX('Damage costs'!$W$16:$W$43,MATCH($B105,'Damage costs'!$C$16:$C$43,0))/1000,CW54*INDEX('Damage costs'!$AA$16:$AA$43,MATCH($B105,'Damage costs'!$C$16:$C$43,0))/1000),\"\")","v":""},{"$f":"IFERROR(IF(OR($C$110=FALSE,LEFT($B105,3)<>\"NOX\"),CX54*INDEX('Damage costs'!$W$16:$W$43,MATCH($B105,'Damage costs'!$C$16:$C$43,0))/1000,CX54*INDEX('Damage costs'!$AA$16:$AA$43,MATCH($B105,'Damage costs'!$C$16:$C$43,0))/1000),\"\")","v":""},{"$f":"IFERROR(IF(OR($C$110=FALSE,LEFT($B105,3)<>\"NOX\"),CY54*INDEX('Damage costs'!$W$16:$W$43,MATCH($B105,'Damage costs'!$C$16:$C$43,0))/1000,CY54*INDEX('Damage costs'!$AA$16:$AA$43,MATCH($B105,'Damage costs'!$C$16:$C$43,0))/1000),\"\")","v":""}]
[null,0,"£000's",{"$f":"IFERROR(IF(OR($C$110=FALSE,LEFT($B106,3)<>\"NOX\"),D55*INDEX('Damage costs'!$W$16:$W$43,MATCH($B106,'Damage costs'!$C$16:$C$43,0))/1000,D55*INDEX('Damage costs'!$AA$16:$AA$43,MATCH($B106,'Damage costs'!$C$16:$C$43,0))/1000),\"\")","v":""},{"$f":"IFERROR(IF(OR($C$110=FALSE,LEFT($B106,3)<>\"NOX\"),E55*INDEX('Damage costs'!$W$16:$W$43,MATCH($B106,'Damage costs'!$C$16:$C$43,0))/1000,E55*INDEX('Damage costs'!$AA$16:$AA$43,MATCH($B106,'Damage costs'!$C$16:$C$43,0))/1000),\"\")","v":""},{"$f":"IFERROR(IF(OR($C$110=FALSE,LEFT($B106,3)<>\"NOX\"),F55*INDEX('Damage costs'!$W$16:$W$43,MATCH($B106,'Damage costs'!$C$16:$C$43,0))/1000,F55*INDEX('Damage costs'!$AA$16:$AA$43,MATCH($B106,'Damage costs'!$C$16:$C$43,0))/1000),\"\")","v":""},{"$f":"IFERROR(IF(OR($C$110=FALSE,LEFT($B106,3)<>\"NOX\"),G55*INDEX('Damage costs'!$W$16:$W$43,MATCH($B106,'Damage costs'!$C$16:$C$43,0))/1000,G55*INDEX('Damage costs'!$AA$16:$AA$43,MATCH($B106,'Damage costs'!$C$16:$C$43,0))/1000),\"\")","v":""},{"$f":"IFERROR(IF(OR($C$110=FALSE,LEFT($B106,3)<>\"NOX\"),H55*INDEX('Damage costs'!$W$16:$W$43,MATCH($B106,'Damage costs'!$C$16:$C$43,0))/1000,H55*INDEX('Damage costs'!$AA$16:$AA$43,MATCH($B106,'Damage costs'!$C$16:$C$43,0))/1000),\"\")","v":""},{"$f":"IFERROR(IF(OR($C$110=FALSE,LEFT($B106,3)<>\"NOX\"),I55*INDEX('Damage costs'!$W$16:$W$43,MATCH($B106,'Damage costs'!$C$16:$C$43,0))/1000,I55*INDEX('Damage costs'!$AA$16:$AA$43,MATCH($B106,'Damage costs'!$C$16:$C$43,0))/1000),\"\")","v":""},{"$f":"IFERROR(IF(OR($C$110=FALSE,LEFT($B106,3)<>\"NOX\"),J55*INDEX('Damage costs'!$W$16:$W$43,MATCH($B106,'Damage costs'!$C$16:$C$43,0))/1000,J55*INDEX('Damage costs'!$AA$16:$AA$43,MATCH($B106,'Damage costs'!$C$16:$C$43,0))/1000),\"\")","v":""},{"$f":"IFERROR(IF(OR($C$110=FALSE,LEFT($B106,3)<>\"NOX\"),K55*INDEX('Damage costs'!$W$16:$W$43,MATCH($B106,'Damage costs'!$C$16:$C$43,0))/1000,K55*INDEX('Damage costs'!$AA$16:$AA$43,MATCH($B106,'Damage costs'!$C$16:$C$43,0))/1000),\"\")","v":""},{"$f":"IFERROR(IF(OR($C$110=FALSE,LEFT($B106,3)<>\"NOX\"),L55*INDEX('Damage costs'!$W$16:$W$43,MATCH($B106,'Damage costs'!$C$16:$C$43,0))/1000,L55*INDEX('Damage costs'!$AA$16:$AA$43,MATCH($B106,'Damage costs'!$C$16:$C$43,0))/1000),\"\")","v":""},{"$f":"IFERROR(IF(OR($C$110=FALSE,LEFT($B106,3)<>\"NOX\"),M55*INDEX('Damage costs'!$W$16:$W$43,MATCH($B106,'Damage costs'!$C$16:$C$43,0))/1000,M55*INDEX('Damage costs'!$AA$16:$AA$43,MATCH($B106,'Damage costs'!$C$16:$C$43,0))/1000),\"\")","v":""},{"$f":"IFERROR(IF(OR($C$110=FALSE,LEFT($B106,3)<>\"NOX\"),N55*INDEX('Damage costs'!$W$16:$W$43,MATCH($B106,'Damage costs'!$C$16:$C$43,0))/1000,N55*INDEX('Damage costs'!$AA$16:$AA$43,MATCH($B106,'Damage costs'!$C$16:$C$43,0))/1000),\"\")","v":""},{"$f":"IFERROR(IF(OR($C$110=FALSE,LEFT($B106,3)<>\"NOX\"),O55*INDEX('Damage costs'!$W$16:$W$43,MATCH($B106,'Damage costs'!$C$16:$C$43,0))/1000,O55*INDEX('Damage costs'!$AA$16:$AA$43,MATCH($B106,'Damage costs'!$C$16:$C$43,0))/1000),\"\")","v":""},{"$f":"IFERROR(IF(OR($C$110=FALSE,LEFT($B106,3)<>\"NOX\"),P55*INDEX('Damage costs'!$W$16:$W$43,MATCH($B106,'Damage costs'!$C$16:$C$43,0))/1000,P55*INDEX('Damage costs'!$AA$16:$AA$43,MATCH($B106,'Damage costs'!$C$16:$C$43,0))/1000),\"\")","v":""},{"$f":"IFERROR(IF(OR($C$110=FALSE,LEFT($B106,3)<>\"NOX\"),Q55*INDEX('Damage costs'!$W$16:$W$43,MATCH($B106,'Damage costs'!$C$16:$C$43,0))/1000,Q55*INDEX('Damage costs'!$AA$16:$AA$43,MATCH($B106,'Damage costs'!$C$16:$C$43,0))/1000),\"\")","v":""},{"$f":"IFERROR(IF(OR($C$110=FALSE,LEFT($B106,3)<>\"NOX\"),R55*INDEX('Damage costs'!$W$16:$W$43,MATCH($B106,'Damage costs'!$C$16:$C$43,0))/1000,R55*INDEX('Damage costs'!$AA$16:$AA$43,MATCH($B106,'Damage costs'!$C$16:$C$43,0))/1000),\"\")","v":""},{"$f":"IFERROR(IF(OR($C$110=FALSE,LEFT($B106,3)<>\"NOX\"),S55*INDEX('Damage costs'!$W$16:$W$43,MATCH($B106,'Damage costs'!$C$16:$C$43,0))/1000,S55*INDEX('Damage costs'!$AA$16:$AA$43,MATCH($B106,'Damage costs'!$C$16:$C$43,0))/1000),\"\")","v":""},{"$f":"IFERROR(IF(OR($C$110=FALSE,LEFT($B106,3)<>\"NOX\"),T55*INDEX('Damage costs'!$W$16:$W$43,MATCH($B106,'Damage costs'!$C$16:$C$43,0))/1000,T55*INDEX('Damage costs'!$AA$16:$AA$43,MATCH($B106,'Damage costs'!$C$16:$C$43,0))/1000),\"\")","v":""},{"$f":"IFERROR(IF(OR($C$110=FALSE,LEFT($B106,3)<>\"NOX\"),U55*INDEX('Damage costs'!$W$16:$W$43,MATCH($B106,'Damage costs'!$C$16:$C$43,0))/1000,U55*INDEX('Damage costs'!$AA$16:$AA$43,MATCH($B106,'Damage costs'!$C$16:$C$43,0))/1000),\"\")","v":""},{"$f":"IFERROR(IF(OR($C$110=FALSE,LEFT($B106,3)<>\"NOX\"),V55*INDEX('Damage costs'!$W$16:$W$43,MATCH($B106,'Damage costs'!$C$16:$C$43,0))/1000,V55*INDEX('Damage costs'!$AA$16:$AA$43,MATCH($B106,'Damage costs'!$C$16:$C$43,0))/1000),\"\")","v":""},{"$f":"IFERROR(IF(OR($C$110=FALSE,LEFT($B106,3)<>\"NOX\"),W55*INDEX('Damage costs'!$W$16:$W$43,MATCH($B106,'Damage costs'!$C$16:$C$43,0))/1000,W55*INDEX('Damage costs'!$AA$16:$AA$43,MATCH($B106,'Damage costs'!$C$16:$C$43,0))/1000),\"\")","v":""},{"$f":"IFERROR(IF(OR($C$110=FALSE,LEFT($B106,3)<>\"NOX\"),X55*INDEX('Damage costs'!$W$16:$W$43,MATCH($B106,'Damage costs'!$C$16:$C$43,0))/1000,X55*INDEX('Damage costs'!$AA$16:$AA$43,MATCH($B106,'Damage costs'!$C$16:$C$43,0))/1000),\"\")","v":""},{"$f":"IFERROR(IF(OR($C$110=FALSE,LEFT($B106,3)<>\"NOX\"),Y55*INDEX('Damage costs'!$W$16:$W$43,MATCH($B106,'Damage costs'!$C$16:$C$43,0))/1000,Y55*INDEX('Damage costs'!$AA$16:$AA$43,MATCH($B106,'Damage costs'!$C$16:$C$43,0))/1000),\"\")","v":""},{"$f":"IFERROR(IF(OR($C$110=FALSE,LEFT($B106,3)<>\"NOX\"),Z55*INDEX('Damage costs'!$W$16:$W$43,MATCH($B106,'Damage costs'!$C$16:$C$43,0))/1000,Z55*INDEX('Damage costs'!$AA$16:$AA$43,MATCH($B106,'Damage costs'!$C$16:$C$43,0))/1000),\"\")","v":""},{"$f":"IFERROR(IF(OR($C$110=FALSE,LEFT($B106,3)<>\"NOX\"),AA55*INDEX('Damage costs'!$W$16:$W$43,MATCH($B106,'Damage costs'!$C$16:$C$43,0))/1000,AA55*INDEX('Damage costs'!$AA$16:$AA$43,MATCH($B106,'Damage costs'!$C$16:$C$43,0))/1000),\"\")","v":""},{"$f":"IFERROR(IF(OR($C$110=FALSE,LEFT($B106,3)<>\"NOX\"),AB55*INDEX('Damage costs'!$W$16:$W$43,MATCH($B106,'Damage costs'!$C$16:$C$43,0))/1000,AB55*INDEX('Damage costs'!$AA$16:$AA$43,MATCH($B106,'Damage costs'!$C$16:$C$43,0))/1000),\"\")","v":""},{"$f":"IFERROR(IF(OR($C$110=FALSE,LEFT($B106,3)<>\"NOX\"),AC55*INDEX('Damage costs'!$W$16:$W$43,MATCH($B106,'Damage costs'!$C$16:$C$43,0))/1000,AC55*INDEX('Damage costs'!$AA$16:$AA$43,MATCH($B106,'Damage costs'!$C$16:$C$43,0))/1000),\"\")","v":""},{"$f":"IFERROR(IF(OR($C$110=FALSE,LEFT($B106,3)<>\"NOX\"),AD55*INDEX('Damage costs'!$W$16:$W$43,MATCH($B106,'Damage costs'!$C$16:$C$43,0))/1000,AD55*INDEX('Damage costs'!$AA$16:$AA$43,MATCH($B106,'Damage costs'!$C$16:$C$43,0))/1000),\"\")","v":""},{"$f":"IFERROR(IF(OR($C$110=FALSE,LEFT($B106,3)<>\"NOX\"),AE55*INDEX('Damage costs'!$W$16:$W$43,MATCH($B106,'Damage costs'!$C$16:$C$43,0))/1000,AE55*INDEX('Damage costs'!$AA$16:$AA$43,MATCH($B106,'Damage costs'!$C$16:$C$43,0))/1000),\"\")","v":""},{"$f":"IFERROR(IF(OR($C$110=FALSE,LEFT($B106,3)<>\"NOX\"),AF55*INDEX('Damage costs'!$W$16:$W$43,MATCH($B106,'Damage costs'!$C$16:$C$43,0))/1000,AF55*INDEX('Damage costs'!$AA$16:$AA$43,MATCH($B106,'Damage costs'!$C$16:$C$43,0))/1000),\"\")","v":""},{"$f":"IFERROR(IF(OR($C$110=FALSE,LEFT($B106,3)<>\"NOX\"),AG55*INDEX('Damage costs'!$W$16:$W$43,MATCH($B106,'Damage costs'!$C$16:$C$43,0))/1000,AG55*INDEX('Damage costs'!$AA$16:$AA$43,MATCH($B106,'Damage costs'!$C$16:$C$43,0))/1000),\"\")","v":""},{"$f":"IFERROR(IF(OR($C$110=FALSE,LEFT($B106,3)<>\"NOX\"),AH55*INDEX('Damage costs'!$W$16:$W$43,MATCH($B106,'Damage costs'!$C$16:$C$43,0))/1000,AH55*INDEX('Damage costs'!$AA$16:$AA$43,MATCH($B106,'Damage costs'!$C$16:$C$43,0))/1000),\"\")","v":""},{"$f":"IFERROR(IF(OR($C$110=FALSE,LEFT($B106,3)<>\"NOX\"),AI55*INDEX('Damage costs'!$W$16:$W$43,MATCH($B106,'Damage costs'!$C$16:$C$43,0))/1000,AI55*INDEX('Damage costs'!$AA$16:$AA$43,MATCH($B106,'Damage costs'!$C$16:$C$43,0))/1000),\"\")","v":""},{"$f":"IFERROR(IF(OR($C$110=FALSE,LEFT($B106,3)<>\"NOX\"),AJ55*INDEX('Damage costs'!$W$16:$W$43,MATCH($B106,'Damage costs'!$C$16:$C$43,0))/1000,AJ55*INDEX('Damage costs'!$AA$16:$AA$43,MATCH($B106,'Damage costs'!$C$16:$C$43,0))/1000),\"\")","v":""},{"$f":"IFERROR(IF(OR($C$110=FALSE,LEFT($B106,3)<>\"NOX\"),AK55*INDEX('Damage costs'!$W$16:$W$43,MATCH($B106,'Damage costs'!$C$16:$C$43,0))/1000,AK55*INDEX('Damage costs'!$AA$16:$AA$43,MATCH($B106,'Damage costs'!$C$16:$C$43,0))/1000),\"\")","v":""},{"$f":"IFERROR(IF(OR($C$110=FALSE,LEFT($B106,3)<>\"NOX\"),AL55*INDEX('Damage costs'!$W$16:$W$43,MATCH($B106,'Damage costs'!$C$16:$C$43,0))/1000,AL55*INDEX('Damage costs'!$AA$16:$AA$43,MATCH($B106,'Damage costs'!$C$16:$C$43,0))/1000),\"\")","v":""},{"$f":"IFERROR(IF(OR($C$110=FALSE,LEFT($B106,3)<>\"NOX\"),AM55*INDEX('Damage costs'!$W$16:$W$43,MATCH($B106,'Damage costs'!$C$16:$C$43,0))/1000,AM55*INDEX('Damage costs'!$AA$16:$AA$43,MATCH($B106,'Damage costs'!$C$16:$C$43,0))/1000),\"\")","v":""},{"$f":"IFERROR(IF(OR($C$110=FALSE,LEFT($B106,3)<>\"NOX\"),AN55*INDEX('Damage costs'!$W$16:$W$43,MATCH($B106,'Damage costs'!$C$16:$C$43,0))/1000,AN55*INDEX('Damage costs'!$AA$16:$AA$43,MATCH($B106,'Damage costs'!$C$16:$C$43,0))/1000),\"\")","v":""},{"$f":"IFERROR(IF(OR($C$110=FALSE,LEFT($B106,3)<>\"NOX\"),AO55*INDEX('Damage costs'!$W$16:$W$43,MATCH($B106,'Damage costs'!$C$16:$C$43,0))/1000,AO55*INDEX('Damage costs'!$AA$16:$AA$43,MATCH($B106,'Damage costs'!$C$16:$C$43,0))/1000),\"\")","v":""},{"$f":"IFERROR(IF(OR($C$110=FALSE,LEFT($B106,3)<>\"NOX\"),AP55*INDEX('Damage costs'!$W$16:$W$43,MATCH($B106,'Damage costs'!$C$16:$C$43,0))/1000,AP55*INDEX('Damage costs'!$AA$16:$AA$43,MATCH($B106,'Damage costs'!$C$16:$C$43,0))/1000),\"\")","v":""},{"$f":"IFERROR(IF(OR($C$110=FALSE,LEFT($B106,3)<>\"NOX\"),AQ55*INDEX('Damage costs'!$W$16:$W$43,MATCH($B106,'Damage costs'!$C$16:$C$43,0))/1000,AQ55*INDEX('Damage costs'!$AA$16:$AA$43,MATCH($B106,'Damage costs'!$C$16:$C$43,0))/1000),\"\")","v":""},{"$f":"IFERROR(IF(OR($C$110=FALSE,LEFT($B106,3)<>\"NOX\"),AR55*INDEX('Damage costs'!$W$16:$W$43,MATCH($B106,'Damage costs'!$C$16:$C$43,0))/1000,AR55*INDEX('Damage costs'!$AA$16:$AA$43,MATCH($B106,'Damage costs'!$C$16:$C$43,0))/1000),\"\")","v":""},{"$f":"IFERROR(IF(OR($C$110=FALSE,LEFT($B106,3)<>\"NOX\"),AS55*INDEX('Damage costs'!$W$16:$W$43,MATCH($B106,'Damage costs'!$C$16:$C$43,0))/1000,AS55*INDEX('Damage costs'!$AA$16:$AA$43,MATCH($B106,'Damage costs'!$C$16:$C$43,0))/1000),\"\")","v":""},{"$f":"IFERROR(IF(OR($C$110=FALSE,LEFT($B106,3)<>\"NOX\"),AT55*INDEX('Damage costs'!$W$16:$W$43,MATCH($B106,'Damage costs'!$C$16:$C$43,0))/1000,AT55*INDEX('Damage costs'!$AA$16:$AA$43,MATCH($B106,'Damage costs'!$C$16:$C$43,0))/1000),\"\")","v":""},{"$f":"IFERROR(IF(OR($C$110=FALSE,LEFT($B106,3)<>\"NOX\"),AU55*INDEX('Damage costs'!$W$16:$W$43,MATCH($B106,'Damage costs'!$C$16:$C$43,0))/1000,AU55*INDEX('Damage costs'!$AA$16:$AA$43,MATCH($B106,'Damage costs'!$C$16:$C$43,0))/1000),\"\")","v":""},{"$f":"IFERROR(IF(OR($C$110=FALSE,LEFT($B106,3)<>\"NOX\"),AV55*INDEX('Damage costs'!$W$16:$W$43,MATCH($B106,'Damage costs'!$C$16:$C$43,0))/1000,AV55*INDEX('Damage costs'!$AA$16:$AA$43,MATCH($B106,'Damage costs'!$C$16:$C$43,0))/1000),\"\")","v":""},{"$f":"IFERROR(IF(OR($C$110=FALSE,LEFT($B106,3)<>\"NOX\"),AW55*INDEX('Damage costs'!$W$16:$W$43,MATCH($B106,'Damage costs'!$C$16:$C$43,0))/1000,AW55*INDEX('Damage costs'!$AA$16:$AA$43,MATCH($B106,'Damage costs'!$C$16:$C$43,0))/1000),\"\")","v":""},{"$f":"IFERROR(IF(OR($C$110=FALSE,LEFT($B106,3)<>\"NOX\"),AX55*INDEX('Damage costs'!$W$16:$W$43,MATCH($B106,'Damage costs'!$C$16:$C$43,0))/1000,AX55*INDEX('Damage costs'!$AA$16:$AA$43,MATCH($B106,'Damage costs'!$C$16:$C$43,0))/1000),\"\")","v":""},{"$f":"IFERROR(IF(OR($C$110=FALSE,LEFT($B106,3)<>\"NOX\"),AY55*INDEX('Damage costs'!$W$16:$W$43,MATCH($B106,'Damage costs'!$C$16:$C$43,0))/1000,AY55*INDEX('Damage costs'!$AA$16:$AA$43,MATCH($B106,'Damage costs'!$C$16:$C$43,0))/1000),\"\")","v":""},{"$f":"IFERROR(IF(OR($C$110=FALSE,LEFT($B106,3)<>\"NOX\"),AZ55*INDEX('Damage costs'!$W$16:$W$43,MATCH($B106,'Damage costs'!$C$16:$C$43,0))/1000,AZ55*INDEX('Damage costs'!$AA$16:$AA$43,MATCH($B106,'Damage costs'!$C$16:$C$43,0))/1000),\"\")","v":""},{"$f":"IFERROR(IF(OR($C$110=FALSE,LEFT($B106,3)<>\"NOX\"),BA55*INDEX('Damage costs'!$W$16:$W$43,MATCH($B106,'Damage costs'!$C$16:$C$43,0))/1000,BA55*INDEX('Damage costs'!$AA$16:$AA$43,MATCH($B106,'Damage costs'!$C$16:$C$43,0))/1000),\"\")","v":""},{"$f":"IFERROR(IF(OR($C$110=FALSE,LEFT($B106,3)<>\"NOX\"),BB55*INDEX('Damage costs'!$W$16:$W$43,MATCH($B106,'Damage costs'!$C$16:$C$43,0))/1000,BB55*INDEX('Damage costs'!$AA$16:$AA$43,MATCH($B106,'Damage costs'!$C$16:$C$43,0))/1000),\"\")","v":""},{"$f":"IFERROR(IF(OR($C$110=FALSE,LEFT($B106,3)<>\"NOX\"),BC55*INDEX('Damage costs'!$W$16:$W$43,MATCH($B106,'Damage costs'!$C$16:$C$43,0))/1000,BC55*INDEX('Damage costs'!$AA$16:$AA$43,MATCH($B106,'Damage costs'!$C$16:$C$43,0))/1000),\"\")","v":""},{"$f":"IFERROR(IF(OR($C$110=FALSE,LEFT($B106,3)<>\"NOX\"),BD55*INDEX('Damage costs'!$W$16:$W$43,MATCH($B106,'Damage costs'!$C$16:$C$43,0))/1000,BD55*INDEX('Damage costs'!$AA$16:$AA$43,MATCH($B106,'Damage costs'!$C$16:$C$43,0))/1000),\"\")","v":""},{"$f":"IFERROR(IF(OR($C$110=FALSE,LEFT($B106,3)<>\"NOX\"),BE55*INDEX('Damage costs'!$W$16:$W$43,MATCH($B106,'Damage costs'!$C$16:$C$43,0))/1000,BE55*INDEX('Damage costs'!$AA$16:$AA$43,MATCH($B106,'Damage costs'!$C$16:$C$43,0))/1000),\"\")","v":""},{"$f":"IFERROR(IF(OR($C$110=FALSE,LEFT($B106,3)<>\"NOX\"),BF55*INDEX('Damage costs'!$W$16:$W$43,MATCH($B106,'Damage costs'!$C$16:$C$43,0))/1000,BF55*INDEX('Damage costs'!$AA$16:$AA$43,MATCH($B106,'Damage costs'!$C$16:$C$43,0))/1000),\"\")","v":""},{"$f":"IFERROR(IF(OR($C$110=FALSE,LEFT($B106,3)<>\"NOX\"),BG55*INDEX('Damage costs'!$W$16:$W$43,MATCH($B106,'Damage costs'!$C$16:$C$43,0))/1000,BG55*INDEX('Damage costs'!$AA$16:$AA$43,MATCH($B106,'Damage costs'!$C$16:$C$43,0))/1000),\"\")","v":""},{"$f":"IFERROR(IF(OR($C$110=FALSE,LEFT($B106,3)<>\"NOX\"),BH55*INDEX('Damage costs'!$W$16:$W$43,MATCH($B106,'Damage costs'!$C$16:$C$43,0))/1000,BH55*INDEX('Damage costs'!$AA$16:$AA$43,MATCH($B106,'Damage costs'!$C$16:$C$43,0))/1000),\"\")","v":""},{"$f":"IFERROR(IF(OR($C$110=FALSE,LEFT($B106,3)<>\"NOX\"),BI55*INDEX('Damage costs'!$W$16:$W$43,MATCH($B106,'Damage costs'!$C$16:$C$43,0))/1000,BI55*INDEX('Damage costs'!$AA$16:$AA$43,MATCH($B106,'Damage costs'!$C$16:$C$43,0))/1000),\"\")","v":""},{"$f":"IFERROR(IF(OR($C$110=FALSE,LEFT($B106,3)<>\"NOX\"),BJ55*INDEX('Damage costs'!$W$16:$W$43,MATCH($B106,'Damage costs'!$C$16:$C$43,0))/1000,BJ55*INDEX('Damage costs'!$AA$16:$AA$43,MATCH($B106,'Damage costs'!$C$16:$C$43,0))/1000),\"\")","v":""},{"$f":"IFERROR(IF(OR($C$110=FALSE,LEFT($B106,3)<>\"NOX\"),BK55*INDEX('Damage costs'!$W$16:$W$43,MATCH($B106,'Damage costs'!$C$16:$C$43,0))/1000,BK55*INDEX('Damage costs'!$AA$16:$AA$43,MATCH($B106,'Damage costs'!$C$16:$C$43,0))/1000),\"\")","v":""},{"$f":"IFERROR(IF(OR($C$110=FALSE,LEFT($B106,3)<>\"NOX\"),BL55*INDEX('Damage costs'!$W$16:$W$43,MATCH($B106,'Damage costs'!$C$16:$C$43,0))/1000,BL55*INDEX('Damage costs'!$AA$16:$AA$43,MATCH($B106,'Damage costs'!$C$16:$C$43,0))/1000),\"\")","v":""},{"$f":"IFERROR(IF(OR($C$110=FALSE,LEFT($B106,3)<>\"NOX\"),BM55*INDEX('Damage costs'!$W$16:$W$43,MATCH($B106,'Damage costs'!$C$16:$C$43,0))/1000,BM55*INDEX('Damage costs'!$AA$16:$AA$43,MATCH($B106,'Damage costs'!$C$16:$C$43,0))/1000),\"\")","v":""},{"$f":"IFERROR(IF(OR($C$110=FALSE,LEFT($B106,3)<>\"NOX\"),BN55*INDEX('Damage costs'!$W$16:$W$43,MATCH($B106,'Damage costs'!$C$16:$C$43,0))/1000,BN55*INDEX('Damage costs'!$AA$16:$AA$43,MATCH($B106,'Damage costs'!$C$16:$C$43,0))/1000),\"\")","v":""},{"$f":"IFERROR(IF(OR($C$110=FALSE,LEFT($B106,3)<>\"NOX\"),BO55*INDEX('Damage costs'!$W$16:$W$43,MATCH($B106,'Damage costs'!$C$16:$C$43,0))/1000,BO55*INDEX('Damage costs'!$AA$16:$AA$43,MATCH($B106,'Damage costs'!$C$16:$C$43,0))/1000),\"\")","v":""},{"$f":"IFERROR(IF(OR($C$110=FALSE,LEFT($B106,3)<>\"NOX\"),BP55*INDEX('Damage costs'!$W$16:$W$43,MATCH($B106,'Damage costs'!$C$16:$C$43,0))/1000,BP55*INDEX('Damage costs'!$AA$16:$AA$43,MATCH($B106,'Damage costs'!$C$16:$C$43,0))/1000),\"\")","v":""},{"$f":"IFERROR(IF(OR($C$110=FALSE,LEFT($B106,3)<>\"NOX\"),BQ55*INDEX('Damage costs'!$W$16:$W$43,MATCH($B106,'Damage costs'!$C$16:$C$43,0))/1000,BQ55*INDEX('Damage costs'!$AA$16:$AA$43,MATCH($B106,'Damage costs'!$C$16:$C$43,0))/1000),\"\")","v":""},{"$f":"IFERROR(IF(OR($C$110=FALSE,LEFT($B106,3)<>\"NOX\"),BR55*INDEX('Damage costs'!$W$16:$W$43,MATCH($B106,'Damage costs'!$C$16:$C$43,0))/1000,BR55*INDEX('Damage costs'!$AA$16:$AA$43,MATCH($B106,'Damage costs'!$C$16:$C$43,0))/1000),\"\")","v":""},{"$f":"IFERROR(IF(OR($C$110=FALSE,LEFT($B106,3)<>\"NOX\"),BS55*INDEX('Damage costs'!$W$16:$W$43,MATCH($B106,'Damage costs'!$C$16:$C$43,0))/1000,BS55*INDEX('Damage costs'!$AA$16:$AA$43,MATCH($B106,'Damage costs'!$C$16:$C$43,0))/1000),\"\")","v":""},{"$f":"IFERROR(IF(OR($C$110=FALSE,LEFT($B106,3)<>\"NOX\"),BT55*INDEX('Damage costs'!$W$16:$W$43,MATCH($B106,'Damage costs'!$C$16:$C$43,0))/1000,BT55*INDEX('Damage costs'!$AA$16:$AA$43,MATCH($B106,'Damage costs'!$C$16:$C$43,0))/1000),\"\")","v":""},{"$f":"IFERROR(IF(OR($C$110=FALSE,LEFT($B106,3)<>\"NOX\"),BU55*INDEX('Damage costs'!$W$16:$W$43,MATCH($B106,'Damage costs'!$C$16:$C$43,0))/1000,BU55*INDEX('Damage costs'!$AA$16:$AA$43,MATCH($B106,'Damage costs'!$C$16:$C$43,0))/1000),\"\")","v":""},{"$f":"IFERROR(IF(OR($C$110=FALSE,LEFT($B106,3)<>\"NOX\"),BV55*INDEX('Damage costs'!$W$16:$W$43,MATCH($B106,'Damage costs'!$C$16:$C$43,0))/1000,BV55*INDEX('Damage costs'!$AA$16:$AA$43,MATCH($B106,'Damage costs'!$C$16:$C$43,0))/1000),\"\")","v":""},{"$f":"IFERROR(IF(OR($C$110=FALSE,LEFT($B106,3)<>\"NOX\"),BW55*INDEX('Damage costs'!$W$16:$W$43,MATCH($B106,'Damage costs'!$C$16:$C$43,0))/1000,BW55*INDEX('Damage costs'!$AA$16:$AA$43,MATCH($B106,'Damage costs'!$C$16:$C$43,0))/1000),\"\")","v":""},{"$f":"IFERROR(IF(OR($C$110=FALSE,LEFT($B106,3)<>\"NOX\"),BX55*INDEX('Damage costs'!$W$16:$W$43,MATCH($B106,'Damage costs'!$C$16:$C$43,0))/1000,BX55*INDEX('Damage costs'!$AA$16:$AA$43,MATCH($B106,'Damage costs'!$C$16:$C$43,0))/1000),\"\")","v":""},{"$f":"IFERROR(IF(OR($C$110=FALSE,LEFT($B106,3)<>\"NOX\"),BY55*INDEX('Damage costs'!$W$16:$W$43,MATCH($B106,'Damage costs'!$C$16:$C$43,0))/1000,BY55*INDEX('Damage costs'!$AA$16:$AA$43,MATCH($B106,'Damage costs'!$C$16:$C$43,0))/1000),\"\")","v":""},{"$f":"IFERROR(IF(OR($C$110=FALSE,LEFT($B106,3)<>\"NOX\"),BZ55*INDEX('Damage costs'!$W$16:$W$43,MATCH($B106,'Damage costs'!$C$16:$C$43,0))/1000,BZ55*INDEX('Damage costs'!$AA$16:$AA$43,MATCH($B106,'Damage costs'!$C$16:$C$43,0))/1000),\"\")","v":""},{"$f":"IFERROR(IF(OR($C$110=FALSE,LEFT($B106,3)<>\"NOX\"),CA55*INDEX('Damage costs'!$W$16:$W$43,MATCH($B106,'Damage costs'!$C$16:$C$43,0))/1000,CA55*INDEX('Damage costs'!$AA$16:$AA$43,MATCH($B106,'Damage costs'!$C$16:$C$43,0))/1000),\"\")","v":""},{"$f":"IFERROR(IF(OR($C$110=FALSE,LEFT($B106,3)<>\"NOX\"),CB55*INDEX('Damage costs'!$W$16:$W$43,MATCH($B106,'Damage costs'!$C$16:$C$43,0))/1000,CB55*INDEX('Damage costs'!$AA$16:$AA$43,MATCH($B106,'Damage costs'!$C$16:$C$43,0))/1000),\"\")","v":""},{"$f":"IFERROR(IF(OR($C$110=FALSE,LEFT($B106,3)<>\"NOX\"),CC55*INDEX('Damage costs'!$W$16:$W$43,MATCH($B106,'Damage costs'!$C$16:$C$43,0))/1000,CC55*INDEX('Damage costs'!$AA$16:$AA$43,MATCH($B106,'Damage costs'!$C$16:$C$43,0))/1000),\"\")","v":""},{"$f":"IFERROR(IF(OR($C$110=FALSE,LEFT($B106,3)<>\"NOX\"),CD55*INDEX('Damage costs'!$W$16:$W$43,MATCH($B106,'Damage costs'!$C$16:$C$43,0))/1000,CD55*INDEX('Damage costs'!$AA$16:$AA$43,MATCH($B106,'Damage costs'!$C$16:$C$43,0))/1000),\"\")","v":""},{"$f":"IFERROR(IF(OR($C$110=FALSE,LEFT($B106,3)<>\"NOX\"),CE55*INDEX('Damage costs'!$W$16:$W$43,MATCH($B106,'Damage costs'!$C$16:$C$43,0))/1000,CE55*INDEX('Damage costs'!$AA$16:$AA$43,MATCH($B106,'Damage costs'!$C$16:$C$43,0))/1000),\"\")","v":""},{"$f":"IFERROR(IF(OR($C$110=FALSE,LEFT($B106,3)<>\"NOX\"),CF55*INDEX('Damage costs'!$W$16:$W$43,MATCH($B106,'Damage costs'!$C$16:$C$43,0))/1000,CF55*INDEX('Damage costs'!$AA$16:$AA$43,MATCH($B106,'Damage costs'!$C$16:$C$43,0))/1000),\"\")","v":""},{"$f":"IFERROR(IF(OR($C$110=FALSE,LEFT($B106,3)<>\"NOX\"),CG55*INDEX('Damage costs'!$W$16:$W$43,MATCH($B106,'Damage costs'!$C$16:$C$43,0))/1000,CG55*INDEX('Damage costs'!$AA$16:$AA$43,MATCH($B106,'Damage costs'!$C$16:$C$43,0))/1000),\"\")","v":""},{"$f":"IFERROR(IF(OR($C$110=FALSE,LEFT($B106,3)<>\"NOX\"),CH55*INDEX('Damage costs'!$W$16:$W$43,MATCH($B106,'Damage costs'!$C$16:$C$43,0))/1000,CH55*INDEX('Damage costs'!$AA$16:$AA$43,MATCH($B106,'Damage costs'!$C$16:$C$43,0))/1000),\"\")","v":""},{"$f":"IFERROR(IF(OR($C$110=FALSE,LEFT($B106,3)<>\"NOX\"),CI55*INDEX('Damage costs'!$W$16:$W$43,MATCH($B106,'Damage costs'!$C$16:$C$43,0))/1000,CI55*INDEX('Damage costs'!$AA$16:$AA$43,MATCH($B106,'Damage costs'!$C$16:$C$43,0))/1000),\"\")","v":""},{"$f":"IFERROR(IF(OR($C$110=FALSE,LEFT($B106,3)<>\"NOX\"),CJ55*INDEX('Damage costs'!$W$16:$W$43,MATCH($B106,'Damage costs'!$C$16:$C$43,0))/1000,CJ55*INDEX('Damage costs'!$AA$16:$AA$43,MATCH($B106,'Damage costs'!$C$16:$C$43,0))/1000),\"\")","v":""},{"$f":"IFERROR(IF(OR($C$110=FALSE,LEFT($B106,3)<>\"NOX\"),CK55*INDEX('Damage costs'!$W$16:$W$43,MATCH($B106,'Damage costs'!$C$16:$C$43,0))/1000,CK55*INDEX('Damage costs'!$AA$16:$AA$43,MATCH($B106,'Damage costs'!$C$16:$C$43,0))/1000),\"\")","v":""},{"$f":"IFERROR(IF(OR($C$110=FALSE,LEFT($B106,3)<>\"NOX\"),CL55*INDEX('Damage costs'!$W$16:$W$43,MATCH($B106,'Damage costs'!$C$16:$C$43,0))/1000,CL55*INDEX('Damage costs'!$AA$16:$AA$43,MATCH($B106,'Damage costs'!$C$16:$C$43,0))/1000),\"\")","v":""},{"$f":"IFERROR(IF(OR($C$110=FALSE,LEFT($B106,3)<>\"NOX\"),CM55*INDEX('Damage costs'!$W$16:$W$43,MATCH($B106,'Damage costs'!$C$16:$C$43,0))/1000,CM55*INDEX('Damage costs'!$AA$16:$AA$43,MATCH($B106,'Damage costs'!$C$16:$C$43,0))/1000),\"\")","v":""},{"$f":"IFERROR(IF(OR($C$110=FALSE,LEFT($B106,3)<>\"NOX\"),CN55*INDEX('Damage costs'!$W$16:$W$43,MATCH($B106,'Damage costs'!$C$16:$C$43,0))/1000,CN55*INDEX('Damage costs'!$AA$16:$AA$43,MATCH($B106,'Damage costs'!$C$16:$C$43,0))/1000),\"\")","v":""},{"$f":"IFERROR(IF(OR($C$110=FALSE,LEFT($B106,3)<>\"NOX\"),CO55*INDEX('Damage costs'!$W$16:$W$43,MATCH($B106,'Damage costs'!$C$16:$C$43,0))/1000,CO55*INDEX('Damage costs'!$AA$16:$AA$43,MATCH($B106,'Damage costs'!$C$16:$C$43,0))/1000),\"\")","v":""},{"$f":"IFERROR(IF(OR($C$110=FALSE,LEFT($B106,3)<>\"NOX\"),CP55*INDEX('Damage costs'!$W$16:$W$43,MATCH($B106,'Damage costs'!$C$16:$C$43,0))/1000,CP55*INDEX('Damage costs'!$AA$16:$AA$43,MATCH($B106,'Damage costs'!$C$16:$C$43,0))/1000),\"\")","v":""},{"$f":"IFERROR(IF(OR($C$110=FALSE,LEFT($B106,3)<>\"NOX\"),CQ55*INDEX('Damage costs'!$W$16:$W$43,MATCH($B106,'Damage costs'!$C$16:$C$43,0))/1000,CQ55*INDEX('Damage costs'!$AA$16:$AA$43,MATCH($B106,'Damage costs'!$C$16:$C$43,0))/1000),\"\")","v":""},{"$f":"IFERROR(IF(OR($C$110=FALSE,LEFT($B106,3)<>\"NOX\"),CR55*INDEX('Damage costs'!$W$16:$W$43,MATCH($B106,'Damage costs'!$C$16:$C$43,0))/1000,CR55*INDEX('Damage costs'!$AA$16:$AA$43,MATCH($B106,'Damage costs'!$C$16:$C$43,0))/1000),\"\")","v":""},{"$f":"IFERROR(IF(OR($C$110=FALSE,LEFT($B106,3)<>\"NOX\"),CS55*INDEX('Damage costs'!$W$16:$W$43,MATCH($B106,'Damage costs'!$C$16:$C$43,0))/1000,CS55*INDEX('Damage costs'!$AA$16:$AA$43,MATCH($B106,'Damage costs'!$C$16:$C$43,0))/1000),\"\")","v":""},{"$f":"IFERROR(IF(OR($C$110=FALSE,LEFT($B106,3)<>\"NOX\"),CT55*INDEX('Damage costs'!$W$16:$W$43,MATCH($B106,'Damage costs'!$C$16:$C$43,0))/1000,CT55*INDEX('Damage costs'!$AA$16:$AA$43,MATCH($B106,'Damage costs'!$C$16:$C$43,0))/1000),\"\")","v":""},{"$f":"IFERROR(IF(OR($C$110=FALSE,LEFT($B106,3)<>\"NOX\"),CU55*INDEX('Damage costs'!$W$16:$W$43,MATCH($B106,'Damage costs'!$C$16:$C$43,0))/1000,CU55*INDEX('Damage costs'!$AA$16:$AA$43,MATCH($B106,'Damage costs'!$C$16:$C$43,0))/1000),\"\")","v":""},{"$f":"IFERROR(IF(OR($C$110=FALSE,LEFT($B106,3)<>\"NOX\"),CV55*INDEX('Damage costs'!$W$16:$W$43,MATCH($B106,'Damage costs'!$C$16:$C$43,0))/1000,CV55*INDEX('Damage costs'!$AA$16:$AA$43,MATCH($B106,'Damage costs'!$C$16:$C$43,0))/1000),\"\")","v":""},{"$f":"IFERROR(IF(OR($C$110=FALSE,LEFT($B106,3)<>\"NOX\"),CW55*INDEX('Damage costs'!$W$16:$W$43,MATCH($B106,'Damage costs'!$C$16:$C$43,0))/1000,CW55*INDEX('Damage costs'!$AA$16:$AA$43,MATCH($B106,'Damage costs'!$C$16:$C$43,0))/1000),\"\")","v":""},{"$f":"IFERROR(IF(OR($C$110=FALSE,LEFT($B106,3)<>\"NOX\"),CX55*INDEX('Damage costs'!$W$16:$W$43,MATCH($B106,'Damage costs'!$C$16:$C$43,0))/1000,CX55*INDEX('Damage costs'!$AA$16:$AA$43,MATCH($B106,'Damage costs'!$C$16:$C$43,0))/1000),\"\")","v":""},{"$f":"IFERROR(IF(OR($C$110=FALSE,LEFT($B106,3)<>\"NOX\"),CY55*INDEX('Damage costs'!$W$16:$W$43,MATCH($B106,'Damage costs'!$C$16:$C$43,0))/1000,CY55*INDEX('Damage costs'!$AA$16:$AA$43,MATCH($B106,'Damage costs'!$C$16:$C$43,0))/1000),\"\")","v":""}]
[null,0,"£000's",{"$f":"IFERROR(IF(OR($C$110=FALSE,LEFT($B107,3)<>\"NOX\"),D56*INDEX('Damage costs'!$W$16:$W$43,MATCH($B107,'Damage costs'!$C$16:$C$43,0))/1000,D56*INDEX('Damage costs'!$AA$16:$AA$43,MATCH($B107,'Damage costs'!$C$16:$C$43,0))/1000),\"\")","v":""},{"$f":"IFERROR(IF(OR($C$110=FALSE,LEFT($B107,3)<>\"NOX\"),E56*INDEX('Damage costs'!$W$16:$W$43,MATCH($B107,'Damage costs'!$C$16:$C$43,0))/1000,E56*INDEX('Damage costs'!$AA$16:$AA$43,MATCH($B107,'Damage costs'!$C$16:$C$43,0))/1000),\"\")","v":""},{"$f":"IFERROR(IF(OR($C$110=FALSE,LEFT($B107,3)<>\"NOX\"),F56*INDEX('Damage costs'!$W$16:$W$43,MATCH($B107,'Damage costs'!$C$16:$C$43,0))/1000,F56*INDEX('Damage costs'!$AA$16:$AA$43,MATCH($B107,'Damage costs'!$C$16:$C$43,0))/1000),\"\")","v":""},{"$f":"IFERROR(IF(OR($C$110=FALSE,LEFT($B107,3)<>\"NOX\"),G56*INDEX('Damage costs'!$W$16:$W$43,MATCH($B107,'Damage costs'!$C$16:$C$43,0))/1000,G56*INDEX('Damage costs'!$AA$16:$AA$43,MATCH($B107,'Damage costs'!$C$16:$C$43,0))/1000),\"\")","v":""},{"$f":"IFERROR(IF(OR($C$110=FALSE,LEFT($B107,3)<>\"NOX\"),H56*INDEX('Damage costs'!$W$16:$W$43,MATCH($B107,'Damage costs'!$C$16:$C$43,0))/1000,H56*INDEX('Damage costs'!$AA$16:$AA$43,MATCH($B107,'Damage costs'!$C$16:$C$43,0))/1000),\"\")","v":""},{"$f":"IFERROR(IF(OR($C$110=FALSE,LEFT($B107,3)<>\"NOX\"),I56*INDEX('Damage costs'!$W$16:$W$43,MATCH($B107,'Damage costs'!$C$16:$C$43,0))/1000,I56*INDEX('Damage costs'!$AA$16:$AA$43,MATCH($B107,'Damage costs'!$C$16:$C$43,0))/1000),\"\")","v":""},{"$f":"IFERROR(IF(OR($C$110=FALSE,LEFT($B107,3)<>\"NOX\"),J56*INDEX('Damage costs'!$W$16:$W$43,MATCH($B107,'Damage costs'!$C$16:$C$43,0))/1000,J56*INDEX('Damage costs'!$AA$16:$AA$43,MATCH($B107,'Damage costs'!$C$16:$C$43,0))/1000),\"\")","v":""},{"$f":"IFERROR(IF(OR($C$110=FALSE,LEFT($B107,3)<>\"NOX\"),K56*INDEX('Damage costs'!$W$16:$W$43,MATCH($B107,'Damage costs'!$C$16:$C$43,0))/1000,K56*INDEX('Damage costs'!$AA$16:$AA$43,MATCH($B107,'Damage costs'!$C$16:$C$43,0))/1000),\"\")","v":""},{"$f":"IFERROR(IF(OR($C$110=FALSE,LEFT($B107,3)<>\"NOX\"),L56*INDEX('Damage costs'!$W$16:$W$43,MATCH($B107,'Damage costs'!$C$16:$C$43,0))/1000,L56*INDEX('Damage costs'!$AA$16:$AA$43,MATCH($B107,'Damage costs'!$C$16:$C$43,0))/1000),\"\")","v":""},{"$f":"IFERROR(IF(OR($C$110=FALSE,LEFT($B107,3)<>\"NOX\"),M56*INDEX('Damage costs'!$W$16:$W$43,MATCH($B107,'Damage costs'!$C$16:$C$43,0))/1000,M56*INDEX('Damage costs'!$AA$16:$AA$43,MATCH($B107,'Damage costs'!$C$16:$C$43,0))/1000),\"\")","v":""},{"$f":"IFERROR(IF(OR($C$110=FALSE,LEFT($B107,3)<>\"NOX\"),N56*INDEX('Damage costs'!$W$16:$W$43,MATCH($B107,'Damage costs'!$C$16:$C$43,0))/1000,N56*INDEX('Damage costs'!$AA$16:$AA$43,MATCH($B107,'Damage costs'!$C$16:$C$43,0))/1000),\"\")","v":""},{"$f":"IFERROR(IF(OR($C$110=FALSE,LEFT($B107,3)<>\"NOX\"),O56*INDEX('Damage costs'!$W$16:$W$43,MATCH($B107,'Damage costs'!$C$16:$C$43,0))/1000,O56*INDEX('Damage costs'!$AA$16:$AA$43,MATCH($B107,'Damage costs'!$C$16:$C$43,0))/1000),\"\")","v":""},{"$f":"IFERROR(IF(OR($C$110=FALSE,LEFT($B107,3)<>\"NOX\"),P56*INDEX('Damage costs'!$W$16:$W$43,MATCH($B107,'Damage costs'!$C$16:$C$43,0))/1000,P56*INDEX('Damage costs'!$AA$16:$AA$43,MATCH($B107,'Damage costs'!$C$16:$C$43,0))/1000),\"\")","v":""},{"$f":"IFERROR(IF(OR($C$110=FALSE,LEFT($B107,3)<>\"NOX\"),Q56*INDEX('Damage costs'!$W$16:$W$43,MATCH($B107,'Damage costs'!$C$16:$C$43,0))/1000,Q56*INDEX('Damage costs'!$AA$16:$AA$43,MATCH($B107,'Damage costs'!$C$16:$C$43,0))/1000),\"\")","v":""},{"$f":"IFERROR(IF(OR($C$110=FALSE,LEFT($B107,3)<>\"NOX\"),R56*INDEX('Damage costs'!$W$16:$W$43,MATCH($B107,'Damage costs'!$C$16:$C$43,0))/1000,R56*INDEX('Damage costs'!$AA$16:$AA$43,MATCH($B107,'Damage costs'!$C$16:$C$43,0))/1000),\"\")","v":""},{"$f":"IFERROR(IF(OR($C$110=FALSE,LEFT($B107,3)<>\"NOX\"),S56*INDEX('Damage costs'!$W$16:$W$43,MATCH($B107,'Damage costs'!$C$16:$C$43,0))/1000,S56*INDEX('Damage costs'!$AA$16:$AA$43,MATCH($B107,'Damage costs'!$C$16:$C$43,0))/1000),\"\")","v":""},{"$f":"IFERROR(IF(OR($C$110=FALSE,LEFT($B107,3)<>\"NOX\"),T56*INDEX('Damage costs'!$W$16:$W$43,MATCH($B107,'Damage costs'!$C$16:$C$43,0))/1000,T56*INDEX('Damage costs'!$AA$16:$AA$43,MATCH($B107,'Damage costs'!$C$16:$C$43,0))/1000),\"\")","v":""},{"$f":"IFERROR(IF(OR($C$110=FALSE,LEFT($B107,3)<>\"NOX\"),U56*INDEX('Damage costs'!$W$16:$W$43,MATCH($B107,'Damage costs'!$C$16:$C$43,0))/1000,U56*INDEX('Damage costs'!$AA$16:$AA$43,MATCH($B107,'Damage costs'!$C$16:$C$43,0))/1000),\"\")","v":""},{"$f":"IFERROR(IF(OR($C$110=FALSE,LEFT($B107,3)<>\"NOX\"),V56*INDEX('Damage costs'!$W$16:$W$43,MATCH($B107,'Damage costs'!$C$16:$C$43,0))/1000,V56*INDEX('Damage costs'!$AA$16:$AA$43,MATCH($B107,'Damage costs'!$C$16:$C$43,0))/1000),\"\")","v":""},{"$f":"IFERROR(IF(OR($C$110=FALSE,LEFT($B107,3)<>\"NOX\"),W56*INDEX('Damage costs'!$W$16:$W$43,MATCH($B107,'Damage costs'!$C$16:$C$43,0))/1000,W56*INDEX('Damage costs'!$AA$16:$AA$43,MATCH($B107,'Damage costs'!$C$16:$C$43,0))/1000),\"\")","v":""},{"$f":"IFERROR(IF(OR($C$110=FALSE,LEFT($B107,3)<>\"NOX\"),X56*INDEX('Damage costs'!$W$16:$W$43,MATCH($B107,'Damage costs'!$C$16:$C$43,0))/1000,X56*INDEX('Damage costs'!$AA$16:$AA$43,MATCH($B107,'Damage costs'!$C$16:$C$43,0))/1000),\"\")","v":""},{"$f":"IFERROR(IF(OR($C$110=FALSE,LEFT($B107,3)<>\"NOX\"),Y56*INDEX('Damage costs'!$W$16:$W$43,MATCH($B107,'Damage costs'!$C$16:$C$43,0))/1000,Y56*INDEX('Damage costs'!$AA$16:$AA$43,MATCH($B107,'Damage costs'!$C$16:$C$43,0))/1000),\"\")","v":""},{"$f":"IFERROR(IF(OR($C$110=FALSE,LEFT($B107,3)<>\"NOX\"),Z56*INDEX('Damage costs'!$W$16:$W$43,MATCH($B107,'Damage costs'!$C$16:$C$43,0))/1000,Z56*INDEX('Damage costs'!$AA$16:$AA$43,MATCH($B107,'Damage costs'!$C$16:$C$43,0))/1000),\"\")","v":""},{"$f":"IFERROR(IF(OR($C$110=FALSE,LEFT($B107,3)<>\"NOX\"),AA56*INDEX('Damage costs'!$W$16:$W$43,MATCH($B107,'Damage costs'!$C$16:$C$43,0))/1000,AA56*INDEX('Damage costs'!$AA$16:$AA$43,MATCH($B107,'Damage costs'!$C$16:$C$43,0))/1000),\"\")","v":""},{"$f":"IFERROR(IF(OR($C$110=FALSE,LEFT($B107,3)<>\"NOX\"),AB56*INDEX('Damage costs'!$W$16:$W$43,MATCH($B107,'Damage costs'!$C$16:$C$43,0))/1000,AB56*INDEX('Damage costs'!$AA$16:$AA$43,MATCH($B107,'Damage costs'!$C$16:$C$43,0))/1000),\"\")","v":""},{"$f":"IFERROR(IF(OR($C$110=FALSE,LEFT($B107,3)<>\"NOX\"),AC56*INDEX('Damage costs'!$W$16:$W$43,MATCH($B107,'Damage costs'!$C$16:$C$43,0))/1000,AC56*INDEX('Damage costs'!$AA$16:$AA$43,MATCH($B107,'Damage costs'!$C$16:$C$43,0))/1000),\"\")","v":""},{"$f":"IFERROR(IF(OR($C$110=FALSE,LEFT($B107,3)<>\"NOX\"),AD56*INDEX('Damage costs'!$W$16:$W$43,MATCH($B107,'Damage costs'!$C$16:$C$43,0))/1000,AD56*INDEX('Damage costs'!$AA$16:$AA$43,MATCH($B107,'Damage costs'!$C$16:$C$43,0))/1000),\"\")","v":""},{"$f":"IFERROR(IF(OR($C$110=FALSE,LEFT($B107,3)<>\"NOX\"),AE56*INDEX('Damage costs'!$W$16:$W$43,MATCH($B107,'Damage costs'!$C$16:$C$43,0))/1000,AE56*INDEX('Damage costs'!$AA$16:$AA$43,MATCH($B107,'Damage costs'!$C$16:$C$43,0))/1000),\"\")","v":""},{"$f":"IFERROR(IF(OR($C$110=FALSE,LEFT($B107,3)<>\"NOX\"),AF56*INDEX('Damage costs'!$W$16:$W$43,MATCH($B107,'Damage costs'!$C$16:$C$43,0))/1000,AF56*INDEX('Damage costs'!$AA$16:$AA$43,MATCH($B107,'Damage costs'!$C$16:$C$43,0))/1000),\"\")","v":""},{"$f":"IFERROR(IF(OR($C$110=FALSE,LEFT($B107,3)<>\"NOX\"),AG56*INDEX('Damage costs'!$W$16:$W$43,MATCH($B107,'Damage costs'!$C$16:$C$43,0))/1000,AG56*INDEX('Damage costs'!$AA$16:$AA$43,MATCH($B107,'Damage costs'!$C$16:$C$43,0))/1000),\"\")","v":""},{"$f":"IFERROR(IF(OR($C$110=FALSE,LEFT($B107,3)<>\"NOX\"),AH56*INDEX('Damage costs'!$W$16:$W$43,MATCH($B107,'Damage costs'!$C$16:$C$43,0))/1000,AH56*INDEX('Damage costs'!$AA$16:$AA$43,MATCH($B107,'Damage costs'!$C$16:$C$43,0))/1000),\"\")","v":""},{"$f":"IFERROR(IF(OR($C$110=FALSE,LEFT($B107,3)<>\"NOX\"),AI56*INDEX('Damage costs'!$W$16:$W$43,MATCH($B107,'Damage costs'!$C$16:$C$43,0))/1000,AI56*INDEX('Damage costs'!$AA$16:$AA$43,MATCH($B107,'Damage costs'!$C$16:$C$43,0))/1000),\"\")","v":""},{"$f":"IFERROR(IF(OR($C$110=FALSE,LEFT($B107,3)<>\"NOX\"),AJ56*INDEX('Damage costs'!$W$16:$W$43,MATCH($B107,'Damage costs'!$C$16:$C$43,0))/1000,AJ56*INDEX('Damage costs'!$AA$16:$AA$43,MATCH($B107,'Damage costs'!$C$16:$C$43,0))/1000),\"\")","v":""},{"$f":"IFERROR(IF(OR($C$110=FALSE,LEFT($B107,3)<>\"NOX\"),AK56*INDEX('Damage costs'!$W$16:$W$43,MATCH($B107,'Damage costs'!$C$16:$C$43,0))/1000,AK56*INDEX('Damage costs'!$AA$16:$AA$43,MATCH($B107,'Damage costs'!$C$16:$C$43,0))/1000),\"\")","v":""},{"$f":"IFERROR(IF(OR($C$110=FALSE,LEFT($B107,3)<>\"NOX\"),AL56*INDEX('Damage costs'!$W$16:$W$43,MATCH($B107,'Damage costs'!$C$16:$C$43,0))/1000,AL56*INDEX('Damage costs'!$AA$16:$AA$43,MATCH($B107,'Damage costs'!$C$16:$C$43,0))/1000),\"\")","v":""},{"$f":"IFERROR(IF(OR($C$110=FALSE,LEFT($B107,3)<>\"NOX\"),AM56*INDEX('Damage costs'!$W$16:$W$43,MATCH($B107,'Damage costs'!$C$16:$C$43,0))/1000,AM56*INDEX('Damage costs'!$AA$16:$AA$43,MATCH($B107,'Damage costs'!$C$16:$C$43,0))/1000),\"\")","v":""},{"$f":"IFERROR(IF(OR($C$110=FALSE,LEFT($B107,3)<>\"NOX\"),AN56*INDEX('Damage costs'!$W$16:$W$43,MATCH($B107,'Damage costs'!$C$16:$C$43,0))/1000,AN56*INDEX('Damage costs'!$AA$16:$AA$43,MATCH($B107,'Damage costs'!$C$16:$C$43,0))/1000),\"\")","v":""},{"$f":"IFERROR(IF(OR($C$110=FALSE,LEFT($B107,3)<>\"NOX\"),AO56*INDEX('Damage costs'!$W$16:$W$43,MATCH($B107,'Damage costs'!$C$16:$C$43,0))/1000,AO56*INDEX('Damage costs'!$AA$16:$AA$43,MATCH($B107,'Damage costs'!$C$16:$C$43,0))/1000),\"\")","v":""},{"$f":"IFERROR(IF(OR($C$110=FALSE,LEFT($B107,3)<>\"NOX\"),AP56*INDEX('Damage costs'!$W$16:$W$43,MATCH($B107,'Damage costs'!$C$16:$C$43,0))/1000,AP56*INDEX('Damage costs'!$AA$16:$AA$43,MATCH($B107,'Damage costs'!$C$16:$C$43,0))/1000),\"\")","v":""},{"$f":"IFERROR(IF(OR($C$110=FALSE,LEFT($B107,3)<>\"NOX\"),AQ56*INDEX('Damage costs'!$W$16:$W$43,MATCH($B107,'Damage costs'!$C$16:$C$43,0))/1000,AQ56*INDEX('Damage costs'!$AA$16:$AA$43,MATCH($B107,'Damage costs'!$C$16:$C$43,0))/1000),\"\")","v":""},{"$f":"IFERROR(IF(OR($C$110=FALSE,LEFT($B107,3)<>\"NOX\"),AR56*INDEX('Damage costs'!$W$16:$W$43,MATCH($B107,'Damage costs'!$C$16:$C$43,0))/1000,AR56*INDEX('Damage costs'!$AA$16:$AA$43,MATCH($B107,'Damage costs'!$C$16:$C$43,0))/1000),\"\")","v":""},{"$f":"IFERROR(IF(OR($C$110=FALSE,LEFT($B107,3)<>\"NOX\"),AS56*INDEX('Damage costs'!$W$16:$W$43,MATCH($B107,'Damage costs'!$C$16:$C$43,0))/1000,AS56*INDEX('Damage costs'!$AA$16:$AA$43,MATCH($B107,'Damage costs'!$C$16:$C$43,0))/1000),\"\")","v":""},{"$f":"IFERROR(IF(OR($C$110=FALSE,LEFT($B107,3)<>\"NOX\"),AT56*INDEX('Damage costs'!$W$16:$W$43,MATCH($B107,'Damage costs'!$C$16:$C$43,0))/1000,AT56*INDEX('Damage costs'!$AA$16:$AA$43,MATCH($B107,'Damage costs'!$C$16:$C$43,0))/1000),\"\")","v":""},{"$f":"IFERROR(IF(OR($C$110=FALSE,LEFT($B107,3)<>\"NOX\"),AU56*INDEX('Damage costs'!$W$16:$W$43,MATCH($B107,'Damage costs'!$C$16:$C$43,0))/1000,AU56*INDEX('Damage costs'!$AA$16:$AA$43,MATCH($B107,'Damage costs'!$C$16:$C$43,0))/1000),\"\")","v":""},{"$f":"IFERROR(IF(OR($C$110=FALSE,LEFT($B107,3)<>\"NOX\"),AV56*INDEX('Damage costs'!$W$16:$W$43,MATCH($B107,'Damage costs'!$C$16:$C$43,0))/1000,AV56*INDEX('Damage costs'!$AA$16:$AA$43,MATCH($B107,'Damage costs'!$C$16:$C$43,0))/1000),\"\")","v":""},{"$f":"IFERROR(IF(OR($C$110=FALSE,LEFT($B107,3)<>\"NOX\"),AW56*INDEX('Damage costs'!$W$16:$W$43,MATCH($B107,'Damage costs'!$C$16:$C$43,0))/1000,AW56*INDEX('Damage costs'!$AA$16:$AA$43,MATCH($B107,'Damage costs'!$C$16:$C$43,0))/1000),\"\")","v":""},{"$f":"IFERROR(IF(OR($C$110=FALSE,LEFT($B107,3)<>\"NOX\"),AX56*INDEX('Damage costs'!$W$16:$W$43,MATCH($B107,'Damage costs'!$C$16:$C$43,0))/1000,AX56*INDEX('Damage costs'!$AA$16:$AA$43,MATCH($B107,'Damage costs'!$C$16:$C$43,0))/1000),\"\")","v":""},{"$f":"IFERROR(IF(OR($C$110=FALSE,LEFT($B107,3)<>\"NOX\"),AY56*INDEX('Damage costs'!$W$16:$W$43,MATCH($B107,'Damage costs'!$C$16:$C$43,0))/1000,AY56*INDEX('Damage costs'!$AA$16:$AA$43,MATCH($B107,'Damage costs'!$C$16:$C$43,0))/1000),\"\")","v":""},{"$f":"IFERROR(IF(OR($C$110=FALSE,LEFT($B107,3)<>\"NOX\"),AZ56*INDEX('Damage costs'!$W$16:$W$43,MATCH($B107,'Damage costs'!$C$16:$C$43,0))/1000,AZ56*INDEX('Damage costs'!$AA$16:$AA$43,MATCH($B107,'Damage costs'!$C$16:$C$43,0))/1000),\"\")","v":""},{"$f":"IFERROR(IF(OR($C$110=FALSE,LEFT($B107,3)<>\"NOX\"),BA56*INDEX('Damage costs'!$W$16:$W$43,MATCH($B107,'Damage costs'!$C$16:$C$43,0))/1000,BA56*INDEX('Damage costs'!$AA$16:$AA$43,MATCH($B107,'Damage costs'!$C$16:$C$43,0))/1000),\"\")","v":""},{"$f":"IFERROR(IF(OR($C$110=FALSE,LEFT($B107,3)<>\"NOX\"),BB56*INDEX('Damage costs'!$W$16:$W$43,MATCH($B107,'Damage costs'!$C$16:$C$43,0))/1000,BB56*INDEX('Damage costs'!$AA$16:$AA$43,MATCH($B107,'Damage costs'!$C$16:$C$43,0))/1000),\"\")","v":""},{"$f":"IFERROR(IF(OR($C$110=FALSE,LEFT($B107,3)<>\"NOX\"),BC56*INDEX('Damage costs'!$W$16:$W$43,MATCH($B107,'Damage costs'!$C$16:$C$43,0))/1000,BC56*INDEX('Damage costs'!$AA$16:$AA$43,MATCH($B107,'Damage costs'!$C$16:$C$43,0))/1000),\"\")","v":""},{"$f":"IFERROR(IF(OR($C$110=FALSE,LEFT($B107,3)<>\"NOX\"),BD56*INDEX('Damage costs'!$W$16:$W$43,MATCH($B107,'Damage costs'!$C$16:$C$43,0))/1000,BD56*INDEX('Damage costs'!$AA$16:$AA$43,MATCH($B107,'Damage costs'!$C$16:$C$43,0))/1000),\"\")","v":""},{"$f":"IFERROR(IF(OR($C$110=FALSE,LEFT($B107,3)<>\"NOX\"),BE56*INDEX('Damage costs'!$W$16:$W$43,MATCH($B107,'Damage costs'!$C$16:$C$43,0))/1000,BE56*INDEX('Damage costs'!$AA$16:$AA$43,MATCH($B107,'Damage costs'!$C$16:$C$43,0))/1000),\"\")","v":""},{"$f":"IFERROR(IF(OR($C$110=FALSE,LEFT($B107,3)<>\"NOX\"),BF56*INDEX('Damage costs'!$W$16:$W$43,MATCH($B107,'Damage costs'!$C$16:$C$43,0))/1000,BF56*INDEX('Damage costs'!$AA$16:$AA$43,MATCH($B107,'Damage costs'!$C$16:$C$43,0))/1000),\"\")","v":""},{"$f":"IFERROR(IF(OR($C$110=FALSE,LEFT($B107,3)<>\"NOX\"),BG56*INDEX('Damage costs'!$W$16:$W$43,MATCH($B107,'Damage costs'!$C$16:$C$43,0))/1000,BG56*INDEX('Damage costs'!$AA$16:$AA$43,MATCH($B107,'Damage costs'!$C$16:$C$43,0))/1000),\"\")","v":""},{"$f":"IFERROR(IF(OR($C$110=FALSE,LEFT($B107,3)<>\"NOX\"),BH56*INDEX('Damage costs'!$W$16:$W$43,MATCH($B107,'Damage costs'!$C$16:$C$43,0))/1000,BH56*INDEX('Damage costs'!$AA$16:$AA$43,MATCH($B107,'Damage costs'!$C$16:$C$43,0))/1000),\"\")","v":""},{"$f":"IFERROR(IF(OR($C$110=FALSE,LEFT($B107,3)<>\"NOX\"),BI56*INDEX('Damage costs'!$W$16:$W$43,MATCH($B107,'Damage costs'!$C$16:$C$43,0))/1000,BI56*INDEX('Damage costs'!$AA$16:$AA$43,MATCH($B107,'Damage costs'!$C$16:$C$43,0))/1000),\"\")","v":""},{"$f":"IFERROR(IF(OR($C$110=FALSE,LEFT($B107,3)<>\"NOX\"),BJ56*INDEX('Damage costs'!$W$16:$W$43,MATCH($B107,'Damage costs'!$C$16:$C$43,0))/1000,BJ56*INDEX('Damage costs'!$AA$16:$AA$43,MATCH($B107,'Damage costs'!$C$16:$C$43,0))/1000),\"\")","v":""},{"$f":"IFERROR(IF(OR($C$110=FALSE,LEFT($B107,3)<>\"NOX\"),BK56*INDEX('Damage costs'!$W$16:$W$43,MATCH($B107,'Damage costs'!$C$16:$C$43,0))/1000,BK56*INDEX('Damage costs'!$AA$16:$AA$43,MATCH($B107,'Damage costs'!$C$16:$C$43,0))/1000),\"\")","v":""},{"$f":"IFERROR(IF(OR($C$110=FALSE,LEFT($B107,3)<>\"NOX\"),BL56*INDEX('Damage costs'!$W$16:$W$43,MATCH($B107,'Damage costs'!$C$16:$C$43,0))/1000,BL56*INDEX('Damage costs'!$AA$16:$AA$43,MATCH($B107,'Damage costs'!$C$16:$C$43,0))/1000),\"\")","v":""},{"$f":"IFERROR(IF(OR($C$110=FALSE,LEFT($B107,3)<>\"NOX\"),BM56*INDEX('Damage costs'!$W$16:$W$43,MATCH($B107,'Damage costs'!$C$16:$C$43,0))/1000,BM56*INDEX('Damage costs'!$AA$16:$AA$43,MATCH($B107,'Damage costs'!$C$16:$C$43,0))/1000),\"\")","v":""},{"$f":"IFERROR(IF(OR($C$110=FALSE,LEFT($B107,3)<>\"NOX\"),BN56*INDEX('Damage costs'!$W$16:$W$43,MATCH($B107,'Damage costs'!$C$16:$C$43,0))/1000,BN56*INDEX('Damage costs'!$AA$16:$AA$43,MATCH($B107,'Damage costs'!$C$16:$C$43,0))/1000),\"\")","v":""},{"$f":"IFERROR(IF(OR($C$110=FALSE,LEFT($B107,3)<>\"NOX\"),BO56*INDEX('Damage costs'!$W$16:$W$43,MATCH($B107,'Damage costs'!$C$16:$C$43,0))/1000,BO56*INDEX('Damage costs'!$AA$16:$AA$43,MATCH($B107,'Damage costs'!$C$16:$C$43,0))/1000),\"\")","v":""},{"$f":"IFERROR(IF(OR($C$110=FALSE,LEFT($B107,3)<>\"NOX\"),BP56*INDEX('Damage costs'!$W$16:$W$43,MATCH($B107,'Damage costs'!$C$16:$C$43,0))/1000,BP56*INDEX('Damage costs'!$AA$16:$AA$43,MATCH($B107,'Damage costs'!$C$16:$C$43,0))/1000),\"\")","v":""},{"$f":"IFERROR(IF(OR($C$110=FALSE,LEFT($B107,3)<>\"NOX\"),BQ56*INDEX('Damage costs'!$W$16:$W$43,MATCH($B107,'Damage costs'!$C$16:$C$43,0))/1000,BQ56*INDEX('Damage costs'!$AA$16:$AA$43,MATCH($B107,'Damage costs'!$C$16:$C$43,0))/1000),\"\")","v":""},{"$f":"IFERROR(IF(OR($C$110=FALSE,LEFT($B107,3)<>\"NOX\"),BR56*INDEX('Damage costs'!$W$16:$W$43,MATCH($B107,'Damage costs'!$C$16:$C$43,0))/1000,BR56*INDEX('Damage costs'!$AA$16:$AA$43,MATCH($B107,'Damage costs'!$C$16:$C$43,0))/1000),\"\")","v":""},{"$f":"IFERROR(IF(OR($C$110=FALSE,LEFT($B107,3)<>\"NOX\"),BS56*INDEX('Damage costs'!$W$16:$W$43,MATCH($B107,'Damage costs'!$C$16:$C$43,0))/1000,BS56*INDEX('Damage costs'!$AA$16:$AA$43,MATCH($B107,'Damage costs'!$C$16:$C$43,0))/1000),\"\")","v":""},{"$f":"IFERROR(IF(OR($C$110=FALSE,LEFT($B107,3)<>\"NOX\"),BT56*INDEX('Damage costs'!$W$16:$W$43,MATCH($B107,'Damage costs'!$C$16:$C$43,0))/1000,BT56*INDEX('Damage costs'!$AA$16:$AA$43,MATCH($B107,'Damage costs'!$C$16:$C$43,0))/1000),\"\")","v":""},{"$f":"IFERROR(IF(OR($C$110=FALSE,LEFT($B107,3)<>\"NOX\"),BU56*INDEX('Damage costs'!$W$16:$W$43,MATCH($B107,'Damage costs'!$C$16:$C$43,0))/1000,BU56*INDEX('Damage costs'!$AA$16:$AA$43,MATCH($B107,'Damage costs'!$C$16:$C$43,0))/1000),\"\")","v":""},{"$f":"IFERROR(IF(OR($C$110=FALSE,LEFT($B107,3)<>\"NOX\"),BV56*INDEX('Damage costs'!$W$16:$W$43,MATCH($B107,'Damage costs'!$C$16:$C$43,0))/1000,BV56*INDEX('Damage costs'!$AA$16:$AA$43,MATCH($B107,'Damage costs'!$C$16:$C$43,0))/1000),\"\")","v":""},{"$f":"IFERROR(IF(OR($C$110=FALSE,LEFT($B107,3)<>\"NOX\"),BW56*INDEX('Damage costs'!$W$16:$W$43,MATCH($B107,'Damage costs'!$C$16:$C$43,0))/1000,BW56*INDEX('Damage costs'!$AA$16:$AA$43,MATCH($B107,'Damage costs'!$C$16:$C$43,0))/1000),\"\")","v":""},{"$f":"IFERROR(IF(OR($C$110=FALSE,LEFT($B107,3)<>\"NOX\"),BX56*INDEX('Damage costs'!$W$16:$W$43,MATCH($B107,'Damage costs'!$C$16:$C$43,0))/1000,BX56*INDEX('Damage costs'!$AA$16:$AA$43,MATCH($B107,'Damage costs'!$C$16:$C$43,0))/1000),\"\")","v":""},{"$f":"IFERROR(IF(OR($C$110=FALSE,LEFT($B107,3)<>\"NOX\"),BY56*INDEX('Damage costs'!$W$16:$W$43,MATCH($B107,'Damage costs'!$C$16:$C$43,0))/1000,BY56*INDEX('Damage costs'!$AA$16:$AA$43,MATCH($B107,'Damage costs'!$C$16:$C$43,0))/1000),\"\")","v":""},{"$f":"IFERROR(IF(OR($C$110=FALSE,LEFT($B107,3)<>\"NOX\"),BZ56*INDEX('Damage costs'!$W$16:$W$43,MATCH($B107,'Damage costs'!$C$16:$C$43,0))/1000,BZ56*INDEX('Damage costs'!$AA$16:$AA$43,MATCH($B107,'Damage costs'!$C$16:$C$43,0))/1000),\"\")","v":""},{"$f":"IFERROR(IF(OR($C$110=FALSE,LEFT($B107,3)<>\"NOX\"),CA56*INDEX('Damage costs'!$W$16:$W$43,MATCH($B107,'Damage costs'!$C$16:$C$43,0))/1000,CA56*INDEX('Damage costs'!$AA$16:$AA$43,MATCH($B107,'Damage costs'!$C$16:$C$43,0))/1000),\"\")","v":""},{"$f":"IFERROR(IF(OR($C$110=FALSE,LEFT($B107,3)<>\"NOX\"),CB56*INDEX('Damage costs'!$W$16:$W$43,MATCH($B107,'Damage costs'!$C$16:$C$43,0))/1000,CB56*INDEX('Damage costs'!$AA$16:$AA$43,MATCH($B107,'Damage costs'!$C$16:$C$43,0))/1000),\"\")","v":""},{"$f":"IFERROR(IF(OR($C$110=FALSE,LEFT($B107,3)<>\"NOX\"),CC56*INDEX('Damage costs'!$W$16:$W$43,MATCH($B107,'Damage costs'!$C$16:$C$43,0))/1000,CC56*INDEX('Damage costs'!$AA$16:$AA$43,MATCH($B107,'Damage costs'!$C$16:$C$43,0))/1000),\"\")","v":""},{"$f":"IFERROR(IF(OR($C$110=FALSE,LEFT($B107,3)<>\"NOX\"),CD56*INDEX('Damage costs'!$W$16:$W$43,MATCH($B107,'Damage costs'!$C$16:$C$43,0))/1000,CD56*INDEX('Damage costs'!$AA$16:$AA$43,MATCH($B107,'Damage costs'!$C$16:$C$43,0))/1000),\"\")","v":""},{"$f":"IFERROR(IF(OR($C$110=FALSE,LEFT($B107,3)<>\"NOX\"),CE56*INDEX('Damage costs'!$W$16:$W$43,MATCH($B107,'Damage costs'!$C$16:$C$43,0))/1000,CE56*INDEX('Damage costs'!$AA$16:$AA$43,MATCH($B107,'Damage costs'!$C$16:$C$43,0))/1000),\"\")","v":""},{"$f":"IFERROR(IF(OR($C$110=FALSE,LEFT($B107,3)<>\"NOX\"),CF56*INDEX('Damage costs'!$W$16:$W$43,MATCH($B107,'Damage costs'!$C$16:$C$43,0))/1000,CF56*INDEX('Damage costs'!$AA$16:$AA$43,MATCH($B107,'Damage costs'!$C$16:$C$43,0))/1000),\"\")","v":""},{"$f":"IFERROR(IF(OR($C$110=FALSE,LEFT($B107,3)<>\"NOX\"),CG56*INDEX('Damage costs'!$W$16:$W$43,MATCH($B107,'Damage costs'!$C$16:$C$43,0))/1000,CG56*INDEX('Damage costs'!$AA$16:$AA$43,MATCH($B107,'Damage costs'!$C$16:$C$43,0))/1000),\"\")","v":""},{"$f":"IFERROR(IF(OR($C$110=FALSE,LEFT($B107,3)<>\"NOX\"),CH56*INDEX('Damage costs'!$W$16:$W$43,MATCH($B107,'Damage costs'!$C$16:$C$43,0))/1000,CH56*INDEX('Damage costs'!$AA$16:$AA$43,MATCH($B107,'Damage costs'!$C$16:$C$43,0))/1000),\"\")","v":""},{"$f":"IFERROR(IF(OR($C$110=FALSE,LEFT($B107,3)<>\"NOX\"),CI56*INDEX('Damage costs'!$W$16:$W$43,MATCH($B107,'Damage costs'!$C$16:$C$43,0))/1000,CI56*INDEX('Damage costs'!$AA$16:$AA$43,MATCH($B107,'Damage costs'!$C$16:$C$43,0))/1000),\"\")","v":""},{"$f":"IFERROR(IF(OR($C$110=FALSE,LEFT($B107,3)<>\"NOX\"),CJ56*INDEX('Damage costs'!$W$16:$W$43,MATCH($B107,'Damage costs'!$C$16:$C$43,0))/1000,CJ56*INDEX('Damage costs'!$AA$16:$AA$43,MATCH($B107,'Damage costs'!$C$16:$C$43,0))/1000),\"\")","v":""},{"$f":"IFERROR(IF(OR($C$110=FALSE,LEFT($B107,3)<>\"NOX\"),CK56*INDEX('Damage costs'!$W$16:$W$43,MATCH($B107,'Damage costs'!$C$16:$C$43,0))/1000,CK56*INDEX('Damage costs'!$AA$16:$AA$43,MATCH($B107,'Damage costs'!$C$16:$C$43,0))/1000),\"\")","v":""},{"$f":"IFERROR(IF(OR($C$110=FALSE,LEFT($B107,3)<>\"NOX\"),CL56*INDEX('Damage costs'!$W$16:$W$43,MATCH($B107,'Damage costs'!$C$16:$C$43,0))/1000,CL56*INDEX('Damage costs'!$AA$16:$AA$43,MATCH($B107,'Damage costs'!$C$16:$C$43,0))/1000),\"\")","v":""},{"$f":"IFERROR(IF(OR($C$110=FALSE,LEFT($B107,3)<>\"NOX\"),CM56*INDEX('Damage costs'!$W$16:$W$43,MATCH($B107,'Damage costs'!$C$16:$C$43,0))/1000,CM56*INDEX('Damage costs'!$AA$16:$AA$43,MATCH($B107,'Damage costs'!$C$16:$C$43,0))/1000),\"\")","v":""},{"$f":"IFERROR(IF(OR($C$110=FALSE,LEFT($B107,3)<>\"NOX\"),CN56*INDEX('Damage costs'!$W$16:$W$43,MATCH($B107,'Damage costs'!$C$16:$C$43,0))/1000,CN56*INDEX('Damage costs'!$AA$16:$AA$43,MATCH($B107,'Damage costs'!$C$16:$C$43,0))/1000),\"\")","v":""},{"$f":"IFERROR(IF(OR($C$110=FALSE,LEFT($B107,3)<>\"NOX\"),CO56*INDEX('Damage costs'!$W$16:$W$43,MATCH($B107,'Damage costs'!$C$16:$C$43,0))/1000,CO56*INDEX('Damage costs'!$AA$16:$AA$43,MATCH($B107,'Damage costs'!$C$16:$C$43,0))/1000),\"\")","v":""},{"$f":"IFERROR(IF(OR($C$110=FALSE,LEFT($B107,3)<>\"NOX\"),CP56*INDEX('Damage costs'!$W$16:$W$43,MATCH($B107,'Damage costs'!$C$16:$C$43,0))/1000,CP56*INDEX('Damage costs'!$AA$16:$AA$43,MATCH($B107,'Damage costs'!$C$16:$C$43,0))/1000),\"\")","v":""},{"$f":"IFERROR(IF(OR($C$110=FALSE,LEFT($B107,3)<>\"NOX\"),CQ56*INDEX('Damage costs'!$W$16:$W$43,MATCH($B107,'Damage costs'!$C$16:$C$43,0))/1000,CQ56*INDEX('Damage costs'!$AA$16:$AA$43,MATCH($B107,'Damage costs'!$C$16:$C$43,0))/1000),\"\")","v":""},{"$f":"IFERROR(IF(OR($C$110=FALSE,LEFT($B107,3)<>\"NOX\"),CR56*INDEX('Damage costs'!$W$16:$W$43,MATCH($B107,'Damage costs'!$C$16:$C$43,0))/1000,CR56*INDEX('Damage costs'!$AA$16:$AA$43,MATCH($B107,'Damage costs'!$C$16:$C$43,0))/1000),\"\")","v":""},{"$f":"IFERROR(IF(OR($C$110=FALSE,LEFT($B107,3)<>\"NOX\"),CS56*INDEX('Damage costs'!$W$16:$W$43,MATCH($B107,'Damage costs'!$C$16:$C$43,0))/1000,CS56*INDEX('Damage costs'!$AA$16:$AA$43,MATCH($B107,'Damage costs'!$C$16:$C$43,0))/1000),\"\")","v":""},{"$f":"IFERROR(IF(OR($C$110=FALSE,LEFT($B107,3)<>\"NOX\"),CT56*INDEX('Damage costs'!$W$16:$W$43,MATCH($B107,'Damage costs'!$C$16:$C$43,0))/1000,CT56*INDEX('Damage costs'!$AA$16:$AA$43,MATCH($B107,'Damage costs'!$C$16:$C$43,0))/1000),\"\")","v":""},{"$f":"IFERROR(IF(OR($C$110=FALSE,LEFT($B107,3)<>\"NOX\"),CU56*INDEX('Damage costs'!$W$16:$W$43,MATCH($B107,'Damage costs'!$C$16:$C$43,0))/1000,CU56*INDEX('Damage costs'!$AA$16:$AA$43,MATCH($B107,'Damage costs'!$C$16:$C$43,0))/1000),\"\")","v":""},{"$f":"IFERROR(IF(OR($C$110=FALSE,LEFT($B107,3)<>\"NOX\"),CV56*INDEX('Damage costs'!$W$16:$W$43,MATCH($B107,'Damage costs'!$C$16:$C$43,0))/1000,CV56*INDEX('Damage costs'!$AA$16:$AA$43,MATCH($B107,'Damage costs'!$C$16:$C$43,0))/1000),\"\")","v":""},{"$f":"IFERROR(IF(OR($C$110=FALSE,LEFT($B107,3)<>\"NOX\"),CW56*INDEX('Damage costs'!$W$16:$W$43,MATCH($B107,'Damage costs'!$C$16:$C$43,0))/1000,CW56*INDEX('Damage costs'!$AA$16:$AA$43,MATCH($B107,'Damage costs'!$C$16:$C$43,0))/1000),\"\")","v":""},{"$f":"IFERROR(IF(OR($C$110=FALSE,LEFT($B107,3)<>\"NOX\"),CX56*INDEX('Damage costs'!$W$16:$W$43,MATCH($B107,'Damage costs'!$C$16:$C$43,0))/1000,CX56*INDEX('Damage costs'!$AA$16:$AA$43,MATCH($B107,'Damage costs'!$C$16:$C$43,0))/1000),\"\")","v":""},{"$f":"IFERROR(IF(OR($C$110=FALSE,LEFT($B107,3)<>\"NOX\"),CY56*INDEX('Damage costs'!$W$16:$W$43,MATCH($B107,'Damage costs'!$C$16:$C$43,0))/1000,CY56*INDEX('Damage costs'!$AA$16:$AA$43,MATCH($B107,'Damage costs'!$C$16:$C$43,0))/1000),\"\")","v":""}]
[null,0,"£000's",{"$f":"IFERROR(IF(OR($C$110=FALSE,LEFT($B108,3)<>\"NOX\"),D57*INDEX('Damage costs'!$W$16:$W$43,MATCH($B108,'Damage costs'!$C$16:$C$43,0))/1000,D57*INDEX('Damage costs'!$AA$16:$AA$43,MATCH($B108,'Damage costs'!$C$16:$C$43,0))/1000),\"\")","v":""},{"$f":"IFERROR(IF(OR($C$110=FALSE,LEFT($B108,3)<>\"NOX\"),E57*INDEX('Damage costs'!$W$16:$W$43,MATCH($B108,'Damage costs'!$C$16:$C$43,0))/1000,E57*INDEX('Damage costs'!$AA$16:$AA$43,MATCH($B108,'Damage costs'!$C$16:$C$43,0))/1000),\"\")","v":""},{"$f":"IFERROR(IF(OR($C$110=FALSE,LEFT($B108,3)<>\"NOX\"),F57*INDEX('Damage costs'!$W$16:$W$43,MATCH($B108,'Damage costs'!$C$16:$C$43,0))/1000,F57*INDEX('Damage costs'!$AA$16:$AA$43,MATCH($B108,'Damage costs'!$C$16:$C$43,0))/1000),\"\")","v":""},{"$f":"IFERROR(IF(OR($C$110=FALSE,LEFT($B108,3)<>\"NOX\"),G57*INDEX('Damage costs'!$W$16:$W$43,MATCH($B108,'Damage costs'!$C$16:$C$43,0))/1000,G57*INDEX('Damage costs'!$AA$16:$AA$43,MATCH($B108,'Damage costs'!$C$16:$C$43,0))/1000),\"\")","v":""},{"$f":"IFERROR(IF(OR($C$110=FALSE,LEFT($B108,3)<>\"NOX\"),H57*INDEX('Damage costs'!$W$16:$W$43,MATCH($B108,'Damage costs'!$C$16:$C$43,0))/1000,H57*INDEX('Damage costs'!$AA$16:$AA$43,MATCH($B108,'Damage costs'!$C$16:$C$43,0))/1000),\"\")","v":""},{"$f":"IFERROR(IF(OR($C$110=FALSE,LEFT($B108,3)<>\"NOX\"),I57*INDEX('Damage costs'!$W$16:$W$43,MATCH($B108,'Damage costs'!$C$16:$C$43,0))/1000,I57*INDEX('Damage costs'!$AA$16:$AA$43,MATCH($B108,'Damage costs'!$C$16:$C$43,0))/1000),\"\")","v":""},{"$f":"IFERROR(IF(OR($C$110=FALSE,LEFT($B108,3)<>\"NOX\"),J57*INDEX('Damage costs'!$W$16:$W$43,MATCH($B108,'Damage costs'!$C$16:$C$43,0))/1000,J57*INDEX('Damage costs'!$AA$16:$AA$43,MATCH($B108,'Damage costs'!$C$16:$C$43,0))/1000),\"\")","v":""},{"$f":"IFERROR(IF(OR($C$110=FALSE,LEFT($B108,3)<>\"NOX\"),K57*INDEX('Damage costs'!$W$16:$W$43,MATCH($B108,'Damage costs'!$C$16:$C$43,0))/1000,K57*INDEX('Damage costs'!$AA$16:$AA$43,MATCH($B108,'Damage costs'!$C$16:$C$43,0))/1000),\"\")","v":""},{"$f":"IFERROR(IF(OR($C$110=FALSE,LEFT($B108,3)<>\"NOX\"),L57*INDEX('Damage costs'!$W$16:$W$43,MATCH($B108,'Damage costs'!$C$16:$C$43,0))/1000,L57*INDEX('Damage costs'!$AA$16:$AA$43,MATCH($B108,'Damage costs'!$C$16:$C$43,0))/1000),\"\")","v":""},{"$f":"IFERROR(IF(OR($C$110=FALSE,LEFT($B108,3)<>\"NOX\"),M57*INDEX('Damage costs'!$W$16:$W$43,MATCH($B108,'Damage costs'!$C$16:$C$43,0))/1000,M57*INDEX('Damage costs'!$AA$16:$AA$43,MATCH($B108,'Damage costs'!$C$16:$C$43,0))/1000),\"\")","v":""},{"$f":"IFERROR(IF(OR($C$110=FALSE,LEFT($B108,3)<>\"NOX\"),N57*INDEX('Damage costs'!$W$16:$W$43,MATCH($B108,'Damage costs'!$C$16:$C$43,0))/1000,N57*INDEX('Damage costs'!$AA$16:$AA$43,MATCH($B108,'Damage costs'!$C$16:$C$43,0))/1000),\"\")","v":""},{"$f":"IFERROR(IF(OR($C$110=FALSE,LEFT($B108,3)<>\"NOX\"),O57*INDEX('Damage costs'!$W$16:$W$43,MATCH($B108,'Damage costs'!$C$16:$C$43,0))/1000,O57*INDEX('Damage costs'!$AA$16:$AA$43,MATCH($B108,'Damage costs'!$C$16:$C$43,0))/1000),\"\")","v":""},{"$f":"IFERROR(IF(OR($C$110=FALSE,LEFT($B108,3)<>\"NOX\"),P57*INDEX('Damage costs'!$W$16:$W$43,MATCH($B108,'Damage costs'!$C$16:$C$43,0))/1000,P57*INDEX('Damage costs'!$AA$16:$AA$43,MATCH($B108,'Damage costs'!$C$16:$C$43,0))/1000),\"\")","v":""},{"$f":"IFERROR(IF(OR($C$110=FALSE,LEFT($B108,3)<>\"NOX\"),Q57*INDEX('Damage costs'!$W$16:$W$43,MATCH($B108,'Damage costs'!$C$16:$C$43,0))/1000,Q57*INDEX('Damage costs'!$AA$16:$AA$43,MATCH($B108,'Damage costs'!$C$16:$C$43,0))/1000),\"\")","v":""},{"$f":"IFERROR(IF(OR($C$110=FALSE,LEFT($B108,3)<>\"NOX\"),R57*INDEX('Damage costs'!$W$16:$W$43,MATCH($B108,'Damage costs'!$C$16:$C$43,0))/1000,R57*INDEX('Damage costs'!$AA$16:$AA$43,MATCH($B108,'Damage costs'!$C$16:$C$43,0))/1000),\"\")","v":""},{"$f":"IFERROR(IF(OR($C$110=FALSE,LEFT($B108,3)<>\"NOX\"),S57*INDEX('Damage costs'!$W$16:$W$43,MATCH($B108,'Damage costs'!$C$16:$C$43,0))/1000,S57*INDEX('Damage costs'!$AA$16:$AA$43,MATCH($B108,'Damage costs'!$C$16:$C$43,0))/1000),\"\")","v":""},{"$f":"IFERROR(IF(OR($C$110=FALSE,LEFT($B108,3)<>\"NOX\"),T57*INDEX('Damage costs'!$W$16:$W$43,MATCH($B108,'Damage costs'!$C$16:$C$43,0))/1000,T57*INDEX('Damage costs'!$AA$16:$AA$43,MATCH($B108,'Damage costs'!$C$16:$C$43,0))/1000),\"\")","v":""},{"$f":"IFERROR(IF(OR($C$110=FALSE,LEFT($B108,3)<>\"NOX\"),U57*INDEX('Damage costs'!$W$16:$W$43,MATCH($B108,'Damage costs'!$C$16:$C$43,0))/1000,U57*INDEX('Damage costs'!$AA$16:$AA$43,MATCH($B108,'Damage costs'!$C$16:$C$43,0))/1000),\"\")","v":""},{"$f":"IFERROR(IF(OR($C$110=FALSE,LEFT($B108,3)<>\"NOX\"),V57*INDEX('Damage costs'!$W$16:$W$43,MATCH($B108,'Damage costs'!$C$16:$C$43,0))/1000,V57*INDEX('Damage costs'!$AA$16:$AA$43,MATCH($B108,'Damage costs'!$C$16:$C$43,0))/1000),\"\")","v":""},{"$f":"IFERROR(IF(OR($C$110=FALSE,LEFT($B108,3)<>\"NOX\"),W57*INDEX('Damage costs'!$W$16:$W$43,MATCH($B108,'Damage costs'!$C$16:$C$43,0))/1000,W57*INDEX('Damage costs'!$AA$16:$AA$43,MATCH($B108,'Damage costs'!$C$16:$C$43,0))/1000),\"\")","v":""},{"$f":"IFERROR(IF(OR($C$110=FALSE,LEFT($B108,3)<>\"NOX\"),X57*INDEX('Damage costs'!$W$16:$W$43,MATCH($B108,'Damage costs'!$C$16:$C$43,0))/1000,X57*INDEX('Damage costs'!$AA$16:$AA$43,MATCH($B108,'Damage costs'!$C$16:$C$43,0))/1000),\"\")","v":""},{"$f":"IFERROR(IF(OR($C$110=FALSE,LEFT($B108,3)<>\"NOX\"),Y57*INDEX('Damage costs'!$W$16:$W$43,MATCH($B108,'Damage costs'!$C$16:$C$43,0))/1000,Y57*INDEX('Damage costs'!$AA$16:$AA$43,MATCH($B108,'Damage costs'!$C$16:$C$43,0))/1000),\"\")","v":""},{"$f":"IFERROR(IF(OR($C$110=FALSE,LEFT($B108,3)<>\"NOX\"),Z57*INDEX('Damage costs'!$W$16:$W$43,MATCH($B108,'Damage costs'!$C$16:$C$43,0))/1000,Z57*INDEX('Damage costs'!$AA$16:$AA$43,MATCH($B108,'Damage costs'!$C$16:$C$43,0))/1000),\"\")","v":""},{"$f":"IFERROR(IF(OR($C$110=FALSE,LEFT($B108,3)<>\"NOX\"),AA57*INDEX('Damage costs'!$W$16:$W$43,MATCH($B108,'Damage costs'!$C$16:$C$43,0))/1000,AA57*INDEX('Damage costs'!$AA$16:$AA$43,MATCH($B108,'Damage costs'!$C$16:$C$43,0))/1000),\"\")","v":""},{"$f":"IFERROR(IF(OR($C$110=FALSE,LEFT($B108,3)<>\"NOX\"),AB57*INDEX('Damage costs'!$W$16:$W$43,MATCH($B108,'Damage costs'!$C$16:$C$43,0))/1000,AB57*INDEX('Damage costs'!$AA$16:$AA$43,MATCH($B108,'Damage costs'!$C$16:$C$43,0))/1000),\"\")","v":""},{"$f":"IFERROR(IF(OR($C$110=FALSE,LEFT($B108,3)<>\"NOX\"),AC57*INDEX('Damage costs'!$W$16:$W$43,MATCH($B108,'Damage costs'!$C$16:$C$43,0))/1000,AC57*INDEX('Damage costs'!$AA$16:$AA$43,MATCH($B108,'Damage costs'!$C$16:$C$43,0))/1000),\"\")","v":""},{"$f":"IFERROR(IF(OR($C$110=FALSE,LEFT($B108,3)<>\"NOX\"),AD57*INDEX('Damage costs'!$W$16:$W$43,MATCH($B108,'Damage costs'!$C$16:$C$43,0))/1000,AD57*INDEX('Damage costs'!$AA$16:$AA$43,MATCH($B108,'Damage costs'!$C$16:$C$43,0))/1000),\"\")","v":""},{"$f":"IFERROR(IF(OR($C$110=FALSE,LEFT($B108,3)<>\"NOX\"),AE57*INDEX('Damage costs'!$W$16:$W$43,MATCH($B108,'Damage costs'!$C$16:$C$43,0))/1000,AE57*INDEX('Damage costs'!$AA$16:$AA$43,MATCH($B108,'Damage costs'!$C$16:$C$43,0))/1000),\"\")","v":""},{"$f":"IFERROR(IF(OR($C$110=FALSE,LEFT($B108,3)<>\"NOX\"),AF57*INDEX('Damage costs'!$W$16:$W$43,MATCH($B108,'Damage costs'!$C$16:$C$43,0))/1000,AF57*INDEX('Damage costs'!$AA$16:$AA$43,MATCH($B108,'Damage costs'!$C$16:$C$43,0))/1000),\"\")","v":""},{"$f":"IFERROR(IF(OR($C$110=FALSE,LEFT($B108,3)<>\"NOX\"),AG57*INDEX('Damage costs'!$W$16:$W$43,MATCH($B108,'Damage costs'!$C$16:$C$43,0))/1000,AG57*INDEX('Damage costs'!$AA$16:$AA$43,MATCH($B108,'Damage costs'!$C$16:$C$43,0))/1000),\"\")","v":""},{"$f":"IFERROR(IF(OR($C$110=FALSE,LEFT($B108,3)<>\"NOX\"),AH57*INDEX('Damage costs'!$W$16:$W$43,MATCH($B108,'Damage costs'!$C$16:$C$43,0))/1000,AH57*INDEX('Damage costs'!$AA$16:$AA$43,MATCH($B108,'Damage costs'!$C$16:$C$43,0))/1000),\"\")","v":""},{"$f":"IFERROR(IF(OR($C$110=FALSE,LEFT($B108,3)<>\"NOX\"),AI57*INDEX('Damage costs'!$W$16:$W$43,MATCH($B108,'Damage costs'!$C$16:$C$43,0))/1000,AI57*INDEX('Damage costs'!$AA$16:$AA$43,MATCH($B108,'Damage costs'!$C$16:$C$43,0))/1000),\"\")","v":""},{"$f":"IFERROR(IF(OR($C$110=FALSE,LEFT($B108,3)<>\"NOX\"),AJ57*INDEX('Damage costs'!$W$16:$W$43,MATCH($B108,'Damage costs'!$C$16:$C$43,0))/1000,AJ57*INDEX('Damage costs'!$AA$16:$AA$43,MATCH($B108,'Damage costs'!$C$16:$C$43,0))/1000),\"\")","v":""},{"$f":"IFERROR(IF(OR($C$110=FALSE,LEFT($B108,3)<>\"NOX\"),AK57*INDEX('Damage costs'!$W$16:$W$43,MATCH($B108,'Damage costs'!$C$16:$C$43,0))/1000,AK57*INDEX('Damage costs'!$AA$16:$AA$43,MATCH($B108,'Damage costs'!$C$16:$C$43,0))/1000),\"\")","v":""},{"$f":"IFERROR(IF(OR($C$110=FALSE,LEFT($B108,3)<>\"NOX\"),AL57*INDEX('Damage costs'!$W$16:$W$43,MATCH($B108,'Damage costs'!$C$16:$C$43,0))/1000,AL57*INDEX('Damage costs'!$AA$16:$AA$43,MATCH($B108,'Damage costs'!$C$16:$C$43,0))/1000),\"\")","v":""},{"$f":"IFERROR(IF(OR($C$110=FALSE,LEFT($B108,3)<>\"NOX\"),AM57*INDEX('Damage costs'!$W$16:$W$43,MATCH($B108,'Damage costs'!$C$16:$C$43,0))/1000,AM57*INDEX('Damage costs'!$AA$16:$AA$43,MATCH($B108,'Damage costs'!$C$16:$C$43,0))/1000),\"\")","v":""},{"$f":"IFERROR(IF(OR($C$110=FALSE,LEFT($B108,3)<>\"NOX\"),AN57*INDEX('Damage costs'!$W$16:$W$43,MATCH($B108,'Damage costs'!$C$16:$C$43,0))/1000,AN57*INDEX('Damage costs'!$AA$16:$AA$43,MATCH($B108,'Damage costs'!$C$16:$C$43,0))/1000),\"\")","v":""},{"$f":"IFERROR(IF(OR($C$110=FALSE,LEFT($B108,3)<>\"NOX\"),AO57*INDEX('Damage costs'!$W$16:$W$43,MATCH($B108,'Damage costs'!$C$16:$C$43,0))/1000,AO57*INDEX('Damage costs'!$AA$16:$AA$43,MATCH($B108,'Damage costs'!$C$16:$C$43,0))/1000),\"\")","v":""},{"$f":"IFERROR(IF(OR($C$110=FALSE,LEFT($B108,3)<>\"NOX\"),AP57*INDEX('Damage costs'!$W$16:$W$43,MATCH($B108,'Damage costs'!$C$16:$C$43,0))/1000,AP57*INDEX('Damage costs'!$AA$16:$AA$43,MATCH($B108,'Damage costs'!$C$16:$C$43,0))/1000),\"\")","v":""},{"$f":"IFERROR(IF(OR($C$110=FALSE,LEFT($B108,3)<>\"NOX\"),AQ57*INDEX('Damage costs'!$W$16:$W$43,MATCH($B108,'Damage costs'!$C$16:$C$43,0))/1000,AQ57*INDEX('Damage costs'!$AA$16:$AA$43,MATCH($B108,'Damage costs'!$C$16:$C$43,0))/1000),\"\")","v":""},{"$f":"IFERROR(IF(OR($C$110=FALSE,LEFT($B108,3)<>\"NOX\"),AR57*INDEX('Damage costs'!$W$16:$W$43,MATCH($B108,'Damage costs'!$C$16:$C$43,0))/1000,AR57*INDEX('Damage costs'!$AA$16:$AA$43,MATCH($B108,'Damage costs'!$C$16:$C$43,0))/1000),\"\")","v":""},{"$f":"IFERROR(IF(OR($C$110=FALSE,LEFT($B108,3)<>\"NOX\"),AS57*INDEX('Damage costs'!$W$16:$W$43,MATCH($B108,'Damage costs'!$C$16:$C$43,0))/1000,AS57*INDEX('Damage costs'!$AA$16:$AA$43,MATCH($B108,'Damage costs'!$C$16:$C$43,0))/1000),\"\")","v":""},{"$f":"IFERROR(IF(OR($C$110=FALSE,LEFT($B108,3)<>\"NOX\"),AT57*INDEX('Damage costs'!$W$16:$W$43,MATCH($B108,'Damage costs'!$C$16:$C$43,0))/1000,AT57*INDEX('Damage costs'!$AA$16:$AA$43,MATCH($B108,'Damage costs'!$C$16:$C$43,0))/1000),\"\")","v":""},{"$f":"IFERROR(IF(OR($C$110=FALSE,LEFT($B108,3)<>\"NOX\"),AU57*INDEX('Damage costs'!$W$16:$W$43,MATCH($B108,'Damage costs'!$C$16:$C$43,0))/1000,AU57*INDEX('Damage costs'!$AA$16:$AA$43,MATCH($B108,'Damage costs'!$C$16:$C$43,0))/1000),\"\")","v":""},{"$f":"IFERROR(IF(OR($C$110=FALSE,LEFT($B108,3)<>\"NOX\"),AV57*INDEX('Damage costs'!$W$16:$W$43,MATCH($B108,'Damage costs'!$C$16:$C$43,0))/1000,AV57*INDEX('Damage costs'!$AA$16:$AA$43,MATCH($B108,'Damage costs'!$C$16:$C$43,0))/1000),\"\")","v":""},{"$f":"IFERROR(IF(OR($C$110=FALSE,LEFT($B108,3)<>\"NOX\"),AW57*INDEX('Damage costs'!$W$16:$W$43,MATCH($B108,'Damage costs'!$C$16:$C$43,0))/1000,AW57*INDEX('Damage costs'!$AA$16:$AA$43,MATCH($B108,'Damage costs'!$C$16:$C$43,0))/1000),\"\")","v":""},{"$f":"IFERROR(IF(OR($C$110=FALSE,LEFT($B108,3)<>\"NOX\"),AX57*INDEX('Damage costs'!$W$16:$W$43,MATCH($B108,'Damage costs'!$C$16:$C$43,0))/1000,AX57*INDEX('Damage costs'!$AA$16:$AA$43,MATCH($B108,'Damage costs'!$C$16:$C$43,0))/1000),\"\")","v":""},{"$f":"IFERROR(IF(OR($C$110=FALSE,LEFT($B108,3)<>\"NOX\"),AY57*INDEX('Damage costs'!$W$16:$W$43,MATCH($B108,'Damage costs'!$C$16:$C$43,0))/1000,AY57*INDEX('Damage costs'!$AA$16:$AA$43,MATCH($B108,'Damage costs'!$C$16:$C$43,0))/1000),\"\")","v":""},{"$f":"IFERROR(IF(OR($C$110=FALSE,LEFT($B108,3)<>\"NOX\"),AZ57*INDEX('Damage costs'!$W$16:$W$43,MATCH($B108,'Damage costs'!$C$16:$C$43,0))/1000,AZ57*INDEX('Damage costs'!$AA$16:$AA$43,MATCH($B108,'Damage costs'!$C$16:$C$43,0))/1000),\"\")","v":""},{"$f":"IFERROR(IF(OR($C$110=FALSE,LEFT($B108,3)<>\"NOX\"),BA57*INDEX('Damage costs'!$W$16:$W$43,MATCH($B108,'Damage costs'!$C$16:$C$43,0))/1000,BA57*INDEX('Damage costs'!$AA$16:$AA$43,MATCH($B108,'Damage costs'!$C$16:$C$43,0))/1000),\"\")","v":""},{"$f":"IFERROR(IF(OR($C$110=FALSE,LEFT($B108,3)<>\"NOX\"),BB57*INDEX('Damage costs'!$W$16:$W$43,MATCH($B108,'Damage costs'!$C$16:$C$43,0))/1000,BB57*INDEX('Damage costs'!$AA$16:$AA$43,MATCH($B108,'Damage costs'!$C$16:$C$43,0))/1000),\"\")","v":""},{"$f":"IFERROR(IF(OR($C$110=FALSE,LEFT($B108,3)<>\"NOX\"),BC57*INDEX('Damage costs'!$W$16:$W$43,MATCH($B108,'Damage costs'!$C$16:$C$43,0))/1000,BC57*INDEX('Damage costs'!$AA$16:$AA$43,MATCH($B108,'Damage costs'!$C$16:$C$43,0))/1000),\"\")","v":""},{"$f":"IFERROR(IF(OR($C$110=FALSE,LEFT($B108,3)<>\"NOX\"),BD57*INDEX('Damage costs'!$W$16:$W$43,MATCH($B108,'Damage costs'!$C$16:$C$43,0))/1000,BD57*INDEX('Damage costs'!$AA$16:$AA$43,MATCH($B108,'Damage costs'!$C$16:$C$43,0))/1000),\"\")","v":""},{"$f":"IFERROR(IF(OR($C$110=FALSE,LEFT($B108,3)<>\"NOX\"),BE57*INDEX('Damage costs'!$W$16:$W$43,MATCH($B108,'Damage costs'!$C$16:$C$43,0))/1000,BE57*INDEX('Damage costs'!$AA$16:$AA$43,MATCH($B108,'Damage costs'!$C$16:$C$43,0))/1000),\"\")","v":""},{"$f":"IFERROR(IF(OR($C$110=FALSE,LEFT($B108,3)<>\"NOX\"),BF57*INDEX('Damage costs'!$W$16:$W$43,MATCH($B108,'Damage costs'!$C$16:$C$43,0))/1000,BF57*INDEX('Damage costs'!$AA$16:$AA$43,MATCH($B108,'Damage costs'!$C$16:$C$43,0))/1000),\"\")","v":""},{"$f":"IFERROR(IF(OR($C$110=FALSE,LEFT($B108,3)<>\"NOX\"),BG57*INDEX('Damage costs'!$W$16:$W$43,MATCH($B108,'Damage costs'!$C$16:$C$43,0))/1000,BG57*INDEX('Damage costs'!$AA$16:$AA$43,MATCH($B108,'Damage costs'!$C$16:$C$43,0))/1000),\"\")","v":""},{"$f":"IFERROR(IF(OR($C$110=FALSE,LEFT($B108,3)<>\"NOX\"),BH57*INDEX('Damage costs'!$W$16:$W$43,MATCH($B108,'Damage costs'!$C$16:$C$43,0))/1000,BH57*INDEX('Damage costs'!$AA$16:$AA$43,MATCH($B108,'Damage costs'!$C$16:$C$43,0))/1000),\"\")","v":""},{"$f":"IFERROR(IF(OR($C$110=FALSE,LEFT($B108,3)<>\"NOX\"),BI57*INDEX('Damage costs'!$W$16:$W$43,MATCH($B108,'Damage costs'!$C$16:$C$43,0))/1000,BI57*INDEX('Damage costs'!$AA$16:$AA$43,MATCH($B108,'Damage costs'!$C$16:$C$43,0))/1000),\"\")","v":""},{"$f":"IFERROR(IF(OR($C$110=FALSE,LEFT($B108,3)<>\"NOX\"),BJ57*INDEX('Damage costs'!$W$16:$W$43,MATCH($B108,'Damage costs'!$C$16:$C$43,0))/1000,BJ57*INDEX('Damage costs'!$AA$16:$AA$43,MATCH($B108,'Damage costs'!$C$16:$C$43,0))/1000),\"\")","v":""},{"$f":"IFERROR(IF(OR($C$110=FALSE,LEFT($B108,3)<>\"NOX\"),BK57*INDEX('Damage costs'!$W$16:$W$43,MATCH($B108,'Damage costs'!$C$16:$C$43,0))/1000,BK57*INDEX('Damage costs'!$AA$16:$AA$43,MATCH($B108,'Damage costs'!$C$16:$C$43,0))/1000),\"\")","v":""},{"$f":"IFERROR(IF(OR($C$110=FALSE,LEFT($B108,3)<>\"NOX\"),BL57*INDEX('Damage costs'!$W$16:$W$43,MATCH($B108,'Damage costs'!$C$16:$C$43,0))/1000,BL57*INDEX('Damage costs'!$AA$16:$AA$43,MATCH($B108,'Damage costs'!$C$16:$C$43,0))/1000),\"\")","v":""},{"$f":"IFERROR(IF(OR($C$110=FALSE,LEFT($B108,3)<>\"NOX\"),BM57*INDEX('Damage costs'!$W$16:$W$43,MATCH($B108,'Damage costs'!$C$16:$C$43,0))/1000,BM57*INDEX('Damage costs'!$AA$16:$AA$43,MATCH($B108,'Damage costs'!$C$16:$C$43,0))/1000),\"\")","v":""},{"$f":"IFERROR(IF(OR($C$110=FALSE,LEFT($B108,3)<>\"NOX\"),BN57*INDEX('Damage costs'!$W$16:$W$43,MATCH($B108,'Damage costs'!$C$16:$C$43,0))/1000,BN57*INDEX('Damage costs'!$AA$16:$AA$43,MATCH($B108,'Damage costs'!$C$16:$C$43,0))/1000),\"\")","v":""},{"$f":"IFERROR(IF(OR($C$110=FALSE,LEFT($B108,3)<>\"NOX\"),BO57*INDEX('Damage costs'!$W$16:$W$43,MATCH($B108,'Damage costs'!$C$16:$C$43,0))/1000,BO57*INDEX('Damage costs'!$AA$16:$AA$43,MATCH($B108,'Damage costs'!$C$16:$C$43,0))/1000),\"\")","v":""},{"$f":"IFERROR(IF(OR($C$110=FALSE,LEFT($B108,3)<>\"NOX\"),BP57*INDEX('Damage costs'!$W$16:$W$43,MATCH($B108,'Damage costs'!$C$16:$C$43,0))/1000,BP57*INDEX('Damage costs'!$AA$16:$AA$43,MATCH($B108,'Damage costs'!$C$16:$C$43,0))/1000),\"\")","v":""},{"$f":"IFERROR(IF(OR($C$110=FALSE,LEFT($B108,3)<>\"NOX\"),BQ57*INDEX('Damage costs'!$W$16:$W$43,MATCH($B108,'Damage costs'!$C$16:$C$43,0))/1000,BQ57*INDEX('Damage costs'!$AA$16:$AA$43,MATCH($B108,'Damage costs'!$C$16:$C$43,0))/1000),\"\")","v":""},{"$f":"IFERROR(IF(OR($C$110=FALSE,LEFT($B108,3)<>\"NOX\"),BR57*INDEX('Damage costs'!$W$16:$W$43,MATCH($B108,'Damage costs'!$C$16:$C$43,0))/1000,BR57*INDEX('Damage costs'!$AA$16:$AA$43,MATCH($B108,'Damage costs'!$C$16:$C$43,0))/1000),\"\")","v":""},{"$f":"IFERROR(IF(OR($C$110=FALSE,LEFT($B108,3)<>\"NOX\"),BS57*INDEX('Damage costs'!$W$16:$W$43,MATCH($B108,'Damage costs'!$C$16:$C$43,0))/1000,BS57*INDEX('Damage costs'!$AA$16:$AA$43,MATCH($B108,'Damage costs'!$C$16:$C$43,0))/1000),\"\")","v":""},{"$f":"IFERROR(IF(OR($C$110=FALSE,LEFT($B108,3)<>\"NOX\"),BT57*INDEX('Damage costs'!$W$16:$W$43,MATCH($B108,'Damage costs'!$C$16:$C$43,0))/1000,BT57*INDEX('Damage costs'!$AA$16:$AA$43,MATCH($B108,'Damage costs'!$C$16:$C$43,0))/1000),\"\")","v":""},{"$f":"IFERROR(IF(OR($C$110=FALSE,LEFT($B108,3)<>\"NOX\"),BU57*INDEX('Damage costs'!$W$16:$W$43,MATCH($B108,'Damage costs'!$C$16:$C$43,0))/1000,BU57*INDEX('Damage costs'!$AA$16:$AA$43,MATCH($B108,'Damage costs'!$C$16:$C$43,0))/1000),\"\")","v":""},{"$f":"IFERROR(IF(OR($C$110=FALSE,LEFT($B108,3)<>\"NOX\"),BV57*INDEX('Damage costs'!$W$16:$W$43,MATCH($B108,'Damage costs'!$C$16:$C$43,0))/1000,BV57*INDEX('Damage costs'!$AA$16:$AA$43,MATCH($B108,'Damage costs'!$C$16:$C$43,0))/1000),\"\")","v":""},{"$f":"IFERROR(IF(OR($C$110=FALSE,LEFT($B108,3)<>\"NOX\"),BW57*INDEX('Damage costs'!$W$16:$W$43,MATCH($B108,'Damage costs'!$C$16:$C$43,0))/1000,BW57*INDEX('Damage costs'!$AA$16:$AA$43,MATCH($B108,'Damage costs'!$C$16:$C$43,0))/1000),\"\")","v":""},{"$f":"IFERROR(IF(OR($C$110=FALSE,LEFT($B108,3)<>\"NOX\"),BX57*INDEX('Damage costs'!$W$16:$W$43,MATCH($B108,'Damage costs'!$C$16:$C$43,0))/1000,BX57*INDEX('Damage costs'!$AA$16:$AA$43,MATCH($B108,'Damage costs'!$C$16:$C$43,0))/1000),\"\")","v":""},{"$f":"IFERROR(IF(OR($C$110=FALSE,LEFT($B108,3)<>\"NOX\"),BY57*INDEX('Damage costs'!$W$16:$W$43,MATCH($B108,'Damage costs'!$C$16:$C$43,0))/1000,BY57*INDEX('Damage costs'!$AA$16:$AA$43,MATCH($B108,'Damage costs'!$C$16:$C$43,0))/1000),\"\")","v":""},{"$f":"IFERROR(IF(OR($C$110=FALSE,LEFT($B108,3)<>\"NOX\"),BZ57*INDEX('Damage costs'!$W$16:$W$43,MATCH($B108,'Damage costs'!$C$16:$C$43,0))/1000,BZ57*INDEX('Damage costs'!$AA$16:$AA$43,MATCH($B108,'Damage costs'!$C$16:$C$43,0))/1000),\"\")","v":""},{"$f":"IFERROR(IF(OR($C$110=FALSE,LEFT($B108,3)<>\"NOX\"),CA57*INDEX('Damage costs'!$W$16:$W$43,MATCH($B108,'Damage costs'!$C$16:$C$43,0))/1000,CA57*INDEX('Damage costs'!$AA$16:$AA$43,MATCH($B108,'Damage costs'!$C$16:$C$43,0))/1000),\"\")","v":""},{"$f":"IFERROR(IF(OR($C$110=FALSE,LEFT($B108,3)<>\"NOX\"),CB57*INDEX('Damage costs'!$W$16:$W$43,MATCH($B108,'Damage costs'!$C$16:$C$43,0))/1000,CB57*INDEX('Damage costs'!$AA$16:$AA$43,MATCH($B108,'Damage costs'!$C$16:$C$43,0))/1000),\"\")","v":""},{"$f":"IFERROR(IF(OR($C$110=FALSE,LEFT($B108,3)<>\"NOX\"),CC57*INDEX('Damage costs'!$W$16:$W$43,MATCH($B108,'Damage costs'!$C$16:$C$43,0))/1000,CC57*INDEX('Damage costs'!$AA$16:$AA$43,MATCH($B108,'Damage costs'!$C$16:$C$43,0))/1000),\"\")","v":""},{"$f":"IFERROR(IF(OR($C$110=FALSE,LEFT($B108,3)<>\"NOX\"),CD57*INDEX('Damage costs'!$W$16:$W$43,MATCH($B108,'Damage costs'!$C$16:$C$43,0))/1000,CD57*INDEX('Damage costs'!$AA$16:$AA$43,MATCH($B108,'Damage costs'!$C$16:$C$43,0))/1000),\"\")","v":""},{"$f":"IFERROR(IF(OR($C$110=FALSE,LEFT($B108,3)<>\"NOX\"),CE57*INDEX('Damage costs'!$W$16:$W$43,MATCH($B108,'Damage costs'!$C$16:$C$43,0))/1000,CE57*INDEX('Damage costs'!$AA$16:$AA$43,MATCH($B108,'Damage costs'!$C$16:$C$43,0))/1000),\"\")","v":""},{"$f":"IFERROR(IF(OR($C$110=FALSE,LEFT($B108,3)<>\"NOX\"),CF57*INDEX('Damage costs'!$W$16:$W$43,MATCH($B108,'Damage costs'!$C$16:$C$43,0))/1000,CF57*INDEX('Damage costs'!$AA$16:$AA$43,MATCH($B108,'Damage costs'!$C$16:$C$43,0))/1000),\"\")","v":""},{"$f":"IFERROR(IF(OR($C$110=FALSE,LEFT($B108,3)<>\"NOX\"),CG57*INDEX('Damage costs'!$W$16:$W$43,MATCH($B108,'Damage costs'!$C$16:$C$43,0))/1000,CG57*INDEX('Damage costs'!$AA$16:$AA$43,MATCH($B108,'Damage costs'!$C$16:$C$43,0))/1000),\"\")","v":""},{"$f":"IFERROR(IF(OR($C$110=FALSE,LEFT($B108,3)<>\"NOX\"),CH57*INDEX('Damage costs'!$W$16:$W$43,MATCH($B108,'Damage costs'!$C$16:$C$43,0))/1000,CH57*INDEX('Damage costs'!$AA$16:$AA$43,MATCH($B108,'Damage costs'!$C$16:$C$43,0))/1000),\"\")","v":""},{"$f":"IFERROR(IF(OR($C$110=FALSE,LEFT($B108,3)<>\"NOX\"),CI57*INDEX('Damage costs'!$W$16:$W$43,MATCH($B108,'Damage costs'!$C$16:$C$43,0))/1000,CI57*INDEX('Damage costs'!$AA$16:$AA$43,MATCH($B108,'Damage costs'!$C$16:$C$43,0))/1000),\"\")","v":""},{"$f":"IFERROR(IF(OR($C$110=FALSE,LEFT($B108,3)<>\"NOX\"),CJ57*INDEX('Damage costs'!$W$16:$W$43,MATCH($B108,'Damage costs'!$C$16:$C$43,0))/1000,CJ57*INDEX('Damage costs'!$AA$16:$AA$43,MATCH($B108,'Damage costs'!$C$16:$C$43,0))/1000),\"\")","v":""},{"$f":"IFERROR(IF(OR($C$110=FALSE,LEFT($B108,3)<>\"NOX\"),CK57*INDEX('Damage costs'!$W$16:$W$43,MATCH($B108,'Damage costs'!$C$16:$C$43,0))/1000,CK57*INDEX('Damage costs'!$AA$16:$AA$43,MATCH($B108,'Damage costs'!$C$16:$C$43,0))/1000),\"\")","v":""},{"$f":"IFERROR(IF(OR($C$110=FALSE,LEFT($B108,3)<>\"NOX\"),CL57*INDEX('Damage costs'!$W$16:$W$43,MATCH($B108,'Damage costs'!$C$16:$C$43,0))/1000,CL57*INDEX('Damage costs'!$AA$16:$AA$43,MATCH($B108,'Damage costs'!$C$16:$C$43,0))/1000),\"\")","v":""},{"$f":"IFERROR(IF(OR($C$110=FALSE,LEFT($B108,3)<>\"NOX\"),CM57*INDEX('Damage costs'!$W$16:$W$43,MATCH($B108,'Damage costs'!$C$16:$C$43,0))/1000,CM57*INDEX('Damage costs'!$AA$16:$AA$43,MATCH($B108,'Damage costs'!$C$16:$C$43,0))/1000),\"\")","v":""},{"$f":"IFERROR(IF(OR($C$110=FALSE,LEFT($B108,3)<>\"NOX\"),CN57*INDEX('Damage costs'!$W$16:$W$43,MATCH($B108,'Damage costs'!$C$16:$C$43,0))/1000,CN57*INDEX('Damage costs'!$AA$16:$AA$43,MATCH($B108,'Damage costs'!$C$16:$C$43,0))/1000),\"\")","v":""},{"$f":"IFERROR(IF(OR($C$110=FALSE,LEFT($B108,3)<>\"NOX\"),CO57*INDEX('Damage costs'!$W$16:$W$43,MATCH($B108,'Damage costs'!$C$16:$C$43,0))/1000,CO57*INDEX('Damage costs'!$AA$16:$AA$43,MATCH($B108,'Damage costs'!$C$16:$C$43,0))/1000),\"\")","v":""},{"$f":"IFERROR(IF(OR($C$110=FALSE,LEFT($B108,3)<>\"NOX\"),CP57*INDEX('Damage costs'!$W$16:$W$43,MATCH($B108,'Damage costs'!$C$16:$C$43,0))/1000,CP57*INDEX('Damage costs'!$AA$16:$AA$43,MATCH($B108,'Damage costs'!$C$16:$C$43,0))/1000),\"\")","v":""},{"$f":"IFERROR(IF(OR($C$110=FALSE,LEFT($B108,3)<>\"NOX\"),CQ57*INDEX('Damage costs'!$W$16:$W$43,MATCH($B108,'Damage costs'!$C$16:$C$43,0))/1000,CQ57*INDEX('Damage costs'!$AA$16:$AA$43,MATCH($B108,'Damage costs'!$C$16:$C$43,0))/1000),\"\")","v":""},{"$f":"IFERROR(IF(OR($C$110=FALSE,LEFT($B108,3)<>\"NOX\"),CR57*INDEX('Damage costs'!$W$16:$W$43,MATCH($B108,'Damage costs'!$C$16:$C$43,0))/1000,CR57*INDEX('Damage costs'!$AA$16:$AA$43,MATCH($B108,'Damage costs'!$C$16:$C$43,0))/1000),\"\")","v":""},{"$f":"IFERROR(IF(OR($C$110=FALSE,LEFT($B108,3)<>\"NOX\"),CS57*INDEX('Damage costs'!$W$16:$W$43,MATCH($B108,'Damage costs'!$C$16:$C$43,0))/1000,CS57*INDEX('Damage costs'!$AA$16:$AA$43,MATCH($B108,'Damage costs'!$C$16:$C$43,0))/1000),\"\")","v":""},{"$f":"IFERROR(IF(OR($C$110=FALSE,LEFT($B108,3)<>\"NOX\"),CT57*INDEX('Damage costs'!$W$16:$W$43,MATCH($B108,'Damage costs'!$C$16:$C$43,0))/1000,CT57*INDEX('Damage costs'!$AA$16:$AA$43,MATCH($B108,'Damage costs'!$C$16:$C$43,0))/1000),\"\")","v":""},{"$f":"IFERROR(IF(OR($C$110=FALSE,LEFT($B108,3)<>\"NOX\"),CU57*INDEX('Damage costs'!$W$16:$W$43,MATCH($B108,'Damage costs'!$C$16:$C$43,0))/1000,CU57*INDEX('Damage costs'!$AA$16:$AA$43,MATCH($B108,'Damage costs'!$C$16:$C$43,0))/1000),\"\")","v":""},{"$f":"IFERROR(IF(OR($C$110=FALSE,LEFT($B108,3)<>\"NOX\"),CV57*INDEX('Damage costs'!$W$16:$W$43,MATCH($B108,'Damage costs'!$C$16:$C$43,0))/1000,CV57*INDEX('Damage costs'!$AA$16:$AA$43,MATCH($B108,'Damage costs'!$C$16:$C$43,0))/1000),\"\")","v":""},{"$f":"IFERROR(IF(OR($C$110=FALSE,LEFT($B108,3)<>\"NOX\"),CW57*INDEX('Damage costs'!$W$16:$W$43,MATCH($B108,'Damage costs'!$C$16:$C$43,0))/1000,CW57*INDEX('Damage costs'!$AA$16:$AA$43,MATCH($B108,'Damage costs'!$C$16:$C$43,0))/1000),\"\")","v":""},{"$f":"IFERROR(IF(OR($C$110=FALSE,LEFT($B108,3)<>\"NOX\"),CX57*INDEX('Damage costs'!$W$16:$W$43,MATCH($B108,'Damage costs'!$C$16:$C$43,0))/1000,CX57*INDEX('Damage costs'!$AA$16:$AA$43,MATCH($B108,'Damage costs'!$C$16:$C$43,0))/1000),\"\")","v":""},{"$f":"IFERROR(IF(OR($C$110=FALSE,LEFT($B108,3)<>\"NOX\"),CY57*INDEX('Damage costs'!$W$16:$W$43,MATCH($B108,'Damage costs'!$C$16:$C$43,0))/1000,CY57*INDEX('Damage costs'!$AA$16:$AA$43,MATCH($B108,'Damage costs'!$C$16:$C$43,0))/1000),\"\")","v":""}]
[null,0,"£000's",{"$f":"IFERROR(IF(OR($C$110=FALSE,LEFT($B109,3)<>\"NOX\"),D58*INDEX('Damage costs'!$W$16:$W$43,MATCH($B109,'Damage costs'!$C$16:$C$43,0))/1000,D58*INDEX('Damage costs'!$AA$16:$AA$43,MATCH($B109,'Damage costs'!$C$16:$C$43,0))/1000),\"\")","v":""},{"$f":"IFERROR(IF(OR($C$110=FALSE,LEFT($B109,3)<>\"NOX\"),E58*INDEX('Damage costs'!$W$16:$W$43,MATCH($B109,'Damage costs'!$C$16:$C$43,0))/1000,E58*INDEX('Damage costs'!$AA$16:$AA$43,MATCH($B109,'Damage costs'!$C$16:$C$43,0))/1000),\"\")","v":""},{"$f":"IFERROR(IF(OR($C$110=FALSE,LEFT($B109,3)<>\"NOX\"),F58*INDEX('Damage costs'!$W$16:$W$43,MATCH($B109,'Damage costs'!$C$16:$C$43,0))/1000,F58*INDEX('Damage costs'!$AA$16:$AA$43,MATCH($B109,'Damage costs'!$C$16:$C$43,0))/1000),\"\")","v":""},{"$f":"IFERROR(IF(OR($C$110=FALSE,LEFT($B109,3)<>\"NOX\"),G58*INDEX('Damage costs'!$W$16:$W$43,MATCH($B109,'Damage costs'!$C$16:$C$43,0))/1000,G58*INDEX('Damage costs'!$AA$16:$AA$43,MATCH($B109,'Damage costs'!$C$16:$C$43,0))/1000),\"\")","v":""},{"$f":"IFERROR(IF(OR($C$110=FALSE,LEFT($B109,3)<>\"NOX\"),H58*INDEX('Damage costs'!$W$16:$W$43,MATCH($B109,'Damage costs'!$C$16:$C$43,0))/1000,H58*INDEX('Damage costs'!$AA$16:$AA$43,MATCH($B109,'Damage costs'!$C$16:$C$43,0))/1000),\"\")","v":""},{"$f":"IFERROR(IF(OR($C$110=FALSE,LEFT($B109,3)<>\"NOX\"),I58*INDEX('Damage costs'!$W$16:$W$43,MATCH($B109,'Damage costs'!$C$16:$C$43,0))/1000,I58*INDEX('Damage costs'!$AA$16:$AA$43,MATCH($B109,'Damage costs'!$C$16:$C$43,0))/1000),\"\")","v":""},{"$f":"IFERROR(IF(OR($C$110=FALSE,LEFT($B109,3)<>\"NOX\"),J58*INDEX('Damage costs'!$W$16:$W$43,MATCH($B109,'Damage costs'!$C$16:$C$43,0))/1000,J58*INDEX('Damage costs'!$AA$16:$AA$43,MATCH($B109,'Damage costs'!$C$16:$C$43,0))/1000),\"\")","v":""},{"$f":"IFERROR(IF(OR($C$110=FALSE,LEFT($B109,3)<>\"NOX\"),K58*INDEX('Damage costs'!$W$16:$W$43,MATCH($B109,'Damage costs'!$C$16:$C$43,0))/1000,K58*INDEX('Damage costs'!$AA$16:$AA$43,MATCH($B109,'Damage costs'!$C$16:$C$43,0))/1000),\"\")","v":""},{"$f":"IFERROR(IF(OR($C$110=FALSE,LEFT($B109,3)<>\"NOX\"),L58*INDEX('Damage costs'!$W$16:$W$43,MATCH($B109,'Damage costs'!$C$16:$C$43,0))/1000,L58*INDEX('Damage costs'!$AA$16:$AA$43,MATCH($B109,'Damage costs'!$C$16:$C$43,0))/1000),\"\")","v":""},{"$f":"IFERROR(IF(OR($C$110=FALSE,LEFT($B109,3)<>\"NOX\"),M58*INDEX('Damage costs'!$W$16:$W$43,MATCH($B109,'Damage costs'!$C$16:$C$43,0))/1000,M58*INDEX('Damage costs'!$AA$16:$AA$43,MATCH($B109,'Damage costs'!$C$16:$C$43,0))/1000),\"\")","v":""},{"$f":"IFERROR(IF(OR($C$110=FALSE,LEFT($B109,3)<>\"NOX\"),N58*INDEX('Damage costs'!$W$16:$W$43,MATCH($B109,'Damage costs'!$C$16:$C$43,0))/1000,N58*INDEX('Damage costs'!$AA$16:$AA$43,MATCH($B109,'Damage costs'!$C$16:$C$43,0))/1000),\"\")","v":""},{"$f":"IFERROR(IF(OR($C$110=FALSE,LEFT($B109,3)<>\"NOX\"),O58*INDEX('Damage costs'!$W$16:$W$43,MATCH($B109,'Damage costs'!$C$16:$C$43,0))/1000,O58*INDEX('Damage costs'!$AA$16:$AA$43,MATCH($B109,'Damage costs'!$C$16:$C$43,0))/1000),\"\")","v":""},{"$f":"IFERROR(IF(OR($C$110=FALSE,LEFT($B109,3)<>\"NOX\"),P58*INDEX('Damage costs'!$W$16:$W$43,MATCH($B109,'Damage costs'!$C$16:$C$43,0))/1000,P58*INDEX('Damage costs'!$AA$16:$AA$43,MATCH($B109,'Damage costs'!$C$16:$C$43,0))/1000),\"\")","v":""},{"$f":"IFERROR(IF(OR($C$110=FALSE,LEFT($B109,3)<>\"NOX\"),Q58*INDEX('Damage costs'!$W$16:$W$43,MATCH($B109,'Damage costs'!$C$16:$C$43,0))/1000,Q58*INDEX('Damage costs'!$AA$16:$AA$43,MATCH($B109,'Damage costs'!$C$16:$C$43,0))/1000),\"\")","v":""},{"$f":"IFERROR(IF(OR($C$110=FALSE,LEFT($B109,3)<>\"NOX\"),R58*INDEX('Damage costs'!$W$16:$W$43,MATCH($B109,'Damage costs'!$C$16:$C$43,0))/1000,R58*INDEX('Damage costs'!$AA$16:$AA$43,MATCH($B109,'Damage costs'!$C$16:$C$43,0))/1000),\"\")","v":""},{"$f":"IFERROR(IF(OR($C$110=FALSE,LEFT($B109,3)<>\"NOX\"),S58*INDEX('Damage costs'!$W$16:$W$43,MATCH($B109,'Damage costs'!$C$16:$C$43,0))/1000,S58*INDEX('Damage costs'!$AA$16:$AA$43,MATCH($B109,'Damage costs'!$C$16:$C$43,0))/1000),\"\")","v":""},{"$f":"IFERROR(IF(OR($C$110=FALSE,LEFT($B109,3)<>\"NOX\"),T58*INDEX('Damage costs'!$W$16:$W$43,MATCH($B109,'Damage costs'!$C$16:$C$43,0))/1000,T58*INDEX('Damage costs'!$AA$16:$AA$43,MATCH($B109,'Damage costs'!$C$16:$C$43,0))/1000),\"\")","v":""},{"$f":"IFERROR(IF(OR($C$110=FALSE,LEFT($B109,3)<>\"NOX\"),U58*INDEX('Damage costs'!$W$16:$W$43,MATCH($B109,'Damage costs'!$C$16:$C$43,0))/1000,U58*INDEX('Damage costs'!$AA$16:$AA$43,MATCH($B109,'Damage costs'!$C$16:$C$43,0))/1000),\"\")","v":""},{"$f":"IFERROR(IF(OR($C$110=FALSE,LEFT($B109,3)<>\"NOX\"),V58*INDEX('Damage costs'!$W$16:$W$43,MATCH($B109,'Damage costs'!$C$16:$C$43,0))/1000,V58*INDEX('Damage costs'!$AA$16:$AA$43,MATCH($B109,'Damage costs'!$C$16:$C$43,0))/1000),\"\")","v":""},{"$f":"IFERROR(IF(OR($C$110=FALSE,LEFT($B109,3)<>\"NOX\"),W58*INDEX('Damage costs'!$W$16:$W$43,MATCH($B109,'Damage costs'!$C$16:$C$43,0))/1000,W58*INDEX('Damage costs'!$AA$16:$AA$43,MATCH($B109,'Damage costs'!$C$16:$C$43,0))/1000),\"\")","v":""},{"$f":"IFERROR(IF(OR($C$110=FALSE,LEFT($B109,3)<>\"NOX\"),X58*INDEX('Damage costs'!$W$16:$W$43,MATCH($B109,'Damage costs'!$C$16:$C$43,0))/1000,X58*INDEX('Damage costs'!$AA$16:$AA$43,MATCH($B109,'Damage costs'!$C$16:$C$43,0))/1000),\"\")","v":""},{"$f":"IFERROR(IF(OR($C$110=FALSE,LEFT($B109,3)<>\"NOX\"),Y58*INDEX('Damage costs'!$W$16:$W$43,MATCH($B109,'Damage costs'!$C$16:$C$43,0))/1000,Y58*INDEX('Damage costs'!$AA$16:$AA$43,MATCH($B109,'Damage costs'!$C$16:$C$43,0))/1000),\"\")","v":""},{"$f":"IFERROR(IF(OR($C$110=FALSE,LEFT($B109,3)<>\"NOX\"),Z58*INDEX('Damage costs'!$W$16:$W$43,MATCH($B109,'Damage costs'!$C$16:$C$43,0))/1000,Z58*INDEX('Damage costs'!$AA$16:$AA$43,MATCH($B109,'Damage costs'!$C$16:$C$43,0))/1000),\"\")","v":""},{"$f":"IFERROR(IF(OR($C$110=FALSE,LEFT($B109,3)<>\"NOX\"),AA58*INDEX('Damage costs'!$W$16:$W$43,MATCH($B109,'Damage costs'!$C$16:$C$43,0))/1000,AA58*INDEX('Damage costs'!$AA$16:$AA$43,MATCH($B109,'Damage costs'!$C$16:$C$43,0))/1000),\"\")","v":""},{"$f":"IFERROR(IF(OR($C$110=FALSE,LEFT($B109,3)<>\"NOX\"),AB58*INDEX('Damage costs'!$W$16:$W$43,MATCH($B109,'Damage costs'!$C$16:$C$43,0))/1000,AB58*INDEX('Damage costs'!$AA$16:$AA$43,MATCH($B109,'Damage costs'!$C$16:$C$43,0))/1000),\"\")","v":""},{"$f":"IFERROR(IF(OR($C$110=FALSE,LEFT($B109,3)<>\"NOX\"),AC58*INDEX('Damage costs'!$W$16:$W$43,MATCH($B109,'Damage costs'!$C$16:$C$43,0))/1000,AC58*INDEX('Damage costs'!$AA$16:$AA$43,MATCH($B109,'Damage costs'!$C$16:$C$43,0))/1000),\"\")","v":""},{"$f":"IFERROR(IF(OR($C$110=FALSE,LEFT($B109,3)<>\"NOX\"),AD58*INDEX('Damage costs'!$W$16:$W$43,MATCH($B109,'Damage costs'!$C$16:$C$43,0))/1000,AD58*INDEX('Damage costs'!$AA$16:$AA$43,MATCH($B109,'Damage costs'!$C$16:$C$43,0))/1000),\"\")","v":""},{"$f":"IFERROR(IF(OR($C$110=FALSE,LEFT($B109,3)<>\"NOX\"),AE58*INDEX('Damage costs'!$W$16:$W$43,MATCH($B109,'Damage costs'!$C$16:$C$43,0))/1000,AE58*INDEX('Damage costs'!$AA$16:$AA$43,MATCH($B109,'Damage costs'!$C$16:$C$43,0))/1000),\"\")","v":""},{"$f":"IFERROR(IF(OR($C$110=FALSE,LEFT($B109,3)<>\"NOX\"),AF58*INDEX('Damage costs'!$W$16:$W$43,MATCH($B109,'Damage costs'!$C$16:$C$43,0))/1000,AF58*INDEX('Damage costs'!$AA$16:$AA$43,MATCH($B109,'Damage costs'!$C$16:$C$43,0))/1000),\"\")","v":""},{"$f":"IFERROR(IF(OR($C$110=FALSE,LEFT($B109,3)<>\"NOX\"),AG58*INDEX('Damage costs'!$W$16:$W$43,MATCH($B109,'Damage costs'!$C$16:$C$43,0))/1000,AG58*INDEX('Damage costs'!$AA$16:$AA$43,MATCH($B109,'Damage costs'!$C$16:$C$43,0))/1000),\"\")","v":""},{"$f":"IFERROR(IF(OR($C$110=FALSE,LEFT($B109,3)<>\"NOX\"),AH58*INDEX('Damage costs'!$W$16:$W$43,MATCH($B109,'Damage costs'!$C$16:$C$43,0))/1000,AH58*INDEX('Damage costs'!$AA$16:$AA$43,MATCH($B109,'Damage costs'!$C$16:$C$43,0))/1000),\"\")","v":""},{"$f":"IFERROR(IF(OR($C$110=FALSE,LEFT($B109,3)<>\"NOX\"),AI58*INDEX('Damage costs'!$W$16:$W$43,MATCH($B109,'Damage costs'!$C$16:$C$43,0))/1000,AI58*INDEX('Damage costs'!$AA$16:$AA$43,MATCH($B109,'Damage costs'!$C$16:$C$43,0))/1000),\"\")","v":""},{"$f":"IFERROR(IF(OR($C$110=FALSE,LEFT($B109,3)<>\"NOX\"),AJ58*INDEX('Damage costs'!$W$16:$W$43,MATCH($B109,'Damage costs'!$C$16:$C$43,0))/1000,AJ58*INDEX('Damage costs'!$AA$16:$AA$43,MATCH($B109,'Damage costs'!$C$16:$C$43,0))/1000),\"\")","v":""},{"$f":"IFERROR(IF(OR($C$110=FALSE,LEFT($B109,3)<>\"NOX\"),AK58*INDEX('Damage costs'!$W$16:$W$43,MATCH($B109,'Damage costs'!$C$16:$C$43,0))/1000,AK58*INDEX('Damage costs'!$AA$16:$AA$43,MATCH($B109,'Damage costs'!$C$16:$C$43,0))/1000),\"\")","v":""},{"$f":"IFERROR(IF(OR($C$110=FALSE,LEFT($B109,3)<>\"NOX\"),AL58*INDEX('Damage costs'!$W$16:$W$43,MATCH($B109,'Damage costs'!$C$16:$C$43,0))/1000,AL58*INDEX('Damage costs'!$AA$16:$AA$43,MATCH($B109,'Damage costs'!$C$16:$C$43,0))/1000),\"\")","v":""},{"$f":"IFERROR(IF(OR($C$110=FALSE,LEFT($B109,3)<>\"NOX\"),AM58*INDEX('Damage costs'!$W$16:$W$43,MATCH($B109,'Damage costs'!$C$16:$C$43,0))/1000,AM58*INDEX('Damage costs'!$AA$16:$AA$43,MATCH($B109,'Damage costs'!$C$16:$C$43,0))/1000),\"\")","v":""},{"$f":"IFERROR(IF(OR($C$110=FALSE,LEFT($B109,3)<>\"NOX\"),AN58*INDEX('Damage costs'!$W$16:$W$43,MATCH($B109,'Damage costs'!$C$16:$C$43,0))/1000,AN58*INDEX('Damage costs'!$AA$16:$AA$43,MATCH($B109,'Damage costs'!$C$16:$C$43,0))/1000),\"\")","v":""},{"$f":"IFERROR(IF(OR($C$110=FALSE,LEFT($B109,3)<>\"NOX\"),AO58*INDEX('Damage costs'!$W$16:$W$43,MATCH($B109,'Damage costs'!$C$16:$C$43,0))/1000,AO58*INDEX('Damage costs'!$AA$16:$AA$43,MATCH($B109,'Damage costs'!$C$16:$C$43,0))/1000),\"\")","v":""},{"$f":"IFERROR(IF(OR($C$110=FALSE,LEFT($B109,3)<>\"NOX\"),AP58*INDEX('Damage costs'!$W$16:$W$43,MATCH($B109,'Damage costs'!$C$16:$C$43,0))/1000,AP58*INDEX('Damage costs'!$AA$16:$AA$43,MATCH($B109,'Damage costs'!$C$16:$C$43,0))/1000),\"\")","v":""},{"$f":"IFERROR(IF(OR($C$110=FALSE,LEFT($B109,3)<>\"NOX\"),AQ58*INDEX('Damage costs'!$W$16:$W$43,MATCH($B109,'Damage costs'!$C$16:$C$43,0))/1000,AQ58*INDEX('Damage costs'!$AA$16:$AA$43,MATCH($B109,'Damage costs'!$C$16:$C$43,0))/1000),\"\")","v":""},{"$f":"IFERROR(IF(OR($C$110=FALSE,LEFT($B109,3)<>\"NOX\"),AR58*INDEX('Damage costs'!$W$16:$W$43,MATCH($B109,'Damage costs'!$C$16:$C$43,0))/1000,AR58*INDEX('Damage costs'!$AA$16:$AA$43,MATCH($B109,'Damage costs'!$C$16:$C$43,0))/1000),\"\")","v":""},{"$f":"IFERROR(IF(OR($C$110=FALSE,LEFT($B109,3)<>\"NOX\"),AS58*INDEX('Damage costs'!$W$16:$W$43,MATCH($B109,'Damage costs'!$C$16:$C$43,0))/1000,AS58*INDEX('Damage costs'!$AA$16:$AA$43,MATCH($B109,'Damage costs'!$C$16:$C$43,0))/1000),\"\")","v":""},{"$f":"IFERROR(IF(OR($C$110=FALSE,LEFT($B109,3)<>\"NOX\"),AT58*INDEX('Damage costs'!$W$16:$W$43,MATCH($B109,'Damage costs'!$C$16:$C$43,0))/1000,AT58*INDEX('Damage costs'!$AA$16:$AA$43,MATCH($B109,'Damage costs'!$C$16:$C$43,0))/1000),\"\")","v":""},{"$f":"IFERROR(IF(OR($C$110=FALSE,LEFT($B109,3)<>\"NOX\"),AU58*INDEX('Damage costs'!$W$16:$W$43,MATCH($B109,'Damage costs'!$C$16:$C$43,0))/1000,AU58*INDEX('Damage costs'!$AA$16:$AA$43,MATCH($B109,'Damage costs'!$C$16:$C$43,0))/1000),\"\")","v":""},{"$f":"IFERROR(IF(OR($C$110=FALSE,LEFT($B109,3)<>\"NOX\"),AV58*INDEX('Damage costs'!$W$16:$W$43,MATCH($B109,'Damage costs'!$C$16:$C$43,0))/1000,AV58*INDEX('Damage costs'!$AA$16:$AA$43,MATCH($B109,'Damage costs'!$C$16:$C$43,0))/1000),\"\")","v":""},{"$f":"IFERROR(IF(OR($C$110=FALSE,LEFT($B109,3)<>\"NOX\"),AW58*INDEX('Damage costs'!$W$16:$W$43,MATCH($B109,'Damage costs'!$C$16:$C$43,0))/1000,AW58*INDEX('Damage costs'!$AA$16:$AA$43,MATCH($B109,'Damage costs'!$C$16:$C$43,0))/1000),\"\")","v":""},{"$f":"IFERROR(IF(OR($C$110=FALSE,LEFT($B109,3)<>\"NOX\"),AX58*INDEX('Damage costs'!$W$16:$W$43,MATCH($B109,'Damage costs'!$C$16:$C$43,0))/1000,AX58*INDEX('Damage costs'!$AA$16:$AA$43,MATCH($B109,'Damage costs'!$C$16:$C$43,0))/1000),\"\")","v":""},{"$f":"IFERROR(IF(OR($C$110=FALSE,LEFT($B109,3)<>\"NOX\"),AY58*INDEX('Damage costs'!$W$16:$W$43,MATCH($B109,'Damage costs'!$C$16:$C$43,0))/1000,AY58*INDEX('Damage costs'!$AA$16:$AA$43,MATCH($B109,'Damage costs'!$C$16:$C$43,0))/1000),\"\")","v":""},{"$f":"IFERROR(IF(OR($C$110=FALSE,LEFT($B109,3)<>\"NOX\"),AZ58*INDEX('Damage costs'!$W$16:$W$43,MATCH($B109,'Damage costs'!$C$16:$C$43,0))/1000,AZ58*INDEX('Damage costs'!$AA$16:$AA$43,MATCH($B109,'Damage costs'!$C$16:$C$43,0))/1000),\"\")","v":""},{"$f":"IFERROR(IF(OR($C$110=FALSE,LEFT($B109,3)<>\"NOX\"),BA58*INDEX('Damage costs'!$W$16:$W$43,MATCH($B109,'Damage costs'!$C$16:$C$43,0))/1000,BA58*INDEX('Damage costs'!$AA$16:$AA$43,MATCH($B109,'Damage costs'!$C$16:$C$43,0))/1000),\"\")","v":""},{"$f":"IFERROR(IF(OR($C$110=FALSE,LEFT($B109,3)<>\"NOX\"),BB58*INDEX('Damage costs'!$W$16:$W$43,MATCH($B109,'Damage costs'!$C$16:$C$43,0))/1000,BB58*INDEX('Damage costs'!$AA$16:$AA$43,MATCH($B109,'Damage costs'!$C$16:$C$43,0))/1000),\"\")","v":""},{"$f":"IFERROR(IF(OR($C$110=FALSE,LEFT($B109,3)<>\"NOX\"),BC58*INDEX('Damage costs'!$W$16:$W$43,MATCH($B109,'Damage costs'!$C$16:$C$43,0))/1000,BC58*INDEX('Damage costs'!$AA$16:$AA$43,MATCH($B109,'Damage costs'!$C$16:$C$43,0))/1000),\"\")","v":""},{"$f":"IFERROR(IF(OR($C$110=FALSE,LEFT($B109,3)<>\"NOX\"),BD58*INDEX('Damage costs'!$W$16:$W$43,MATCH($B109,'Damage costs'!$C$16:$C$43,0))/1000,BD58*INDEX('Damage costs'!$AA$16:$AA$43,MATCH($B109,'Damage costs'!$C$16:$C$43,0))/1000),\"\")","v":""},{"$f":"IFERROR(IF(OR($C$110=FALSE,LEFT($B109,3)<>\"NOX\"),BE58*INDEX('Damage costs'!$W$16:$W$43,MATCH($B109,'Damage costs'!$C$16:$C$43,0))/1000,BE58*INDEX('Damage costs'!$AA$16:$AA$43,MATCH($B109,'Damage costs'!$C$16:$C$43,0))/1000),\"\")","v":""},{"$f":"IFERROR(IF(OR($C$110=FALSE,LEFT($B109,3)<>\"NOX\"),BF58*INDEX('Damage costs'!$W$16:$W$43,MATCH($B109,'Damage costs'!$C$16:$C$43,0))/1000,BF58*INDEX('Damage costs'!$AA$16:$AA$43,MATCH($B109,'Damage costs'!$C$16:$C$43,0))/1000),\"\")","v":""},{"$f":"IFERROR(IF(OR($C$110=FALSE,LEFT($B109,3)<>\"NOX\"),BG58*INDEX('Damage costs'!$W$16:$W$43,MATCH($B109,'Damage costs'!$C$16:$C$43,0))/1000,BG58*INDEX('Damage costs'!$AA$16:$AA$43,MATCH($B109,'Damage costs'!$C$16:$C$43,0))/1000),\"\")","v":""},{"$f":"IFERROR(IF(OR($C$110=FALSE,LEFT($B109,3)<>\"NOX\"),BH58*INDEX('Damage costs'!$W$16:$W$43,MATCH($B109,'Damage costs'!$C$16:$C$43,0))/1000,BH58*INDEX('Damage costs'!$AA$16:$AA$43,MATCH($B109,'Damage costs'!$C$16:$C$43,0))/1000),\"\")","v":""},{"$f":"IFERROR(IF(OR($C$110=FALSE,LEFT($B109,3)<>\"NOX\"),BI58*INDEX('Damage costs'!$W$16:$W$43,MATCH($B109,'Damage costs'!$C$16:$C$43,0))/1000,BI58*INDEX('Damage costs'!$AA$16:$AA$43,MATCH($B109,'Damage costs'!$C$16:$C$43,0))/1000),\"\")","v":""},{"$f":"IFERROR(IF(OR($C$110=FALSE,LEFT($B109,3)<>\"NOX\"),BJ58*INDEX('Damage costs'!$W$16:$W$43,MATCH($B109,'Damage costs'!$C$16:$C$43,0))/1000,BJ58*INDEX('Damage costs'!$AA$16:$AA$43,MATCH($B109,'Damage costs'!$C$16:$C$43,0))/1000),\"\")","v":""},{"$f":"IFERROR(IF(OR($C$110=FALSE,LEFT($B109,3)<>\"NOX\"),BK58*INDEX('Damage costs'!$W$16:$W$43,MATCH($B109,'Damage costs'!$C$16:$C$43,0))/1000,BK58*INDEX('Damage costs'!$AA$16:$AA$43,MATCH($B109,'Damage costs'!$C$16:$C$43,0))/1000),\"\")","v":""},{"$f":"IFERROR(IF(OR($C$110=FALSE,LEFT($B109,3)<>\"NOX\"),BL58*INDEX('Damage costs'!$W$16:$W$43,MATCH($B109,'Damage costs'!$C$16:$C$43,0))/1000,BL58*INDEX('Damage costs'!$AA$16:$AA$43,MATCH($B109,'Damage costs'!$C$16:$C$43,0))/1000),\"\")","v":""},{"$f":"IFERROR(IF(OR($C$110=FALSE,LEFT($B109,3)<>\"NOX\"),BM58*INDEX('Damage costs'!$W$16:$W$43,MATCH($B109,'Damage costs'!$C$16:$C$43,0))/1000,BM58*INDEX('Damage costs'!$AA$16:$AA$43,MATCH($B109,'Damage costs'!$C$16:$C$43,0))/1000),\"\")","v":""},{"$f":"IFERROR(IF(OR($C$110=FALSE,LEFT($B109,3)<>\"NOX\"),BN58*INDEX('Damage costs'!$W$16:$W$43,MATCH($B109,'Damage costs'!$C$16:$C$43,0))/1000,BN58*INDEX('Damage costs'!$AA$16:$AA$43,MATCH($B109,'Damage costs'!$C$16:$C$43,0))/1000),\"\")","v":""},{"$f":"IFERROR(IF(OR($C$110=FALSE,LEFT($B109,3)<>\"NOX\"),BO58*INDEX('Damage costs'!$W$16:$W$43,MATCH($B109,'Damage costs'!$C$16:$C$43,0))/1000,BO58*INDEX('Damage costs'!$AA$16:$AA$43,MATCH($B109,'Damage costs'!$C$16:$C$43,0))/1000),\"\")","v":""},{"$f":"IFERROR(IF(OR($C$110=FALSE,LEFT($B109,3)<>\"NOX\"),BP58*INDEX('Damage costs'!$W$16:$W$43,MATCH($B109,'Damage costs'!$C$16:$C$43,0))/1000,BP58*INDEX('Damage costs'!$AA$16:$AA$43,MATCH($B109,'Damage costs'!$C$16:$C$43,0))/1000),\"\")","v":""},{"$f":"IFERROR(IF(OR($C$110=FALSE,LEFT($B109,3)<>\"NOX\"),BQ58*INDEX('Damage costs'!$W$16:$W$43,MATCH($B109,'Damage costs'!$C$16:$C$43,0))/1000,BQ58*INDEX('Damage costs'!$AA$16:$AA$43,MATCH($B109,'Damage costs'!$C$16:$C$43,0))/1000),\"\")","v":""},{"$f":"IFERROR(IF(OR($C$110=FALSE,LEFT($B109,3)<>\"NOX\"),BR58*INDEX('Damage costs'!$W$16:$W$43,MATCH($B109,'Damage costs'!$C$16:$C$43,0))/1000,BR58*INDEX('Damage costs'!$AA$16:$AA$43,MATCH($B109,'Damage costs'!$C$16:$C$43,0))/1000),\"\")","v":""},{"$f":"IFERROR(IF(OR($C$110=FALSE,LEFT($B109,3)<>\"NOX\"),BS58*INDEX('Damage costs'!$W$16:$W$43,MATCH($B109,'Damage costs'!$C$16:$C$43,0))/1000,BS58*INDEX('Damage costs'!$AA$16:$AA$43,MATCH($B109,'Damage costs'!$C$16:$C$43,0))/1000),\"\")","v":""},{"$f":"IFERROR(IF(OR($C$110=FALSE,LEFT($B109,3)<>\"NOX\"),BT58*INDEX('Damage costs'!$W$16:$W$43,MATCH($B109,'Damage costs'!$C$16:$C$43,0))/1000,BT58*INDEX('Damage costs'!$AA$16:$AA$43,MATCH($B109,'Damage costs'!$C$16:$C$43,0))/1000),\"\")","v":""},{"$f":"IFERROR(IF(OR($C$110=FALSE,LEFT($B109,3)<>\"NOX\"),BU58*INDEX('Damage costs'!$W$16:$W$43,MATCH($B109,'Damage costs'!$C$16:$C$43,0))/1000,BU58*INDEX('Damage costs'!$AA$16:$AA$43,MATCH($B109,'Damage costs'!$C$16:$C$43,0))/1000),\"\")","v":""},{"$f":"IFERROR(IF(OR($C$110=FALSE,LEFT($B109,3)<>\"NOX\"),BV58*INDEX('Damage costs'!$W$16:$W$43,MATCH($B109,'Damage costs'!$C$16:$C$43,0))/1000,BV58*INDEX('Damage costs'!$AA$16:$AA$43,MATCH($B109,'Damage costs'!$C$16:$C$43,0))/1000),\"\")","v":""},{"$f":"IFERROR(IF(OR($C$110=FALSE,LEFT($B109,3)<>\"NOX\"),BW58*INDEX('Damage costs'!$W$16:$W$43,MATCH($B109,'Damage costs'!$C$16:$C$43,0))/1000,BW58*INDEX('Damage costs'!$AA$16:$AA$43,MATCH($B109,'Damage costs'!$C$16:$C$43,0))/1000),\"\")","v":""},{"$f":"IFERROR(IF(OR($C$110=FALSE,LEFT($B109,3)<>\"NOX\"),BX58*INDEX('Damage costs'!$W$16:$W$43,MATCH($B109,'Damage costs'!$C$16:$C$43,0))/1000,BX58*INDEX('Damage costs'!$AA$16:$AA$43,MATCH($B109,'Damage costs'!$C$16:$C$43,0))/1000),\"\")","v":""},{"$f":"IFERROR(IF(OR($C$110=FALSE,LEFT($B109,3)<>\"NOX\"),BY58*INDEX('Damage costs'!$W$16:$W$43,MATCH($B109,'Damage costs'!$C$16:$C$43,0))/1000,BY58*INDEX('Damage costs'!$AA$16:$AA$43,MATCH($B109,'Damage costs'!$C$16:$C$43,0))/1000),\"\")","v":""},{"$f":"IFERROR(IF(OR($C$110=FALSE,LEFT($B109,3)<>\"NOX\"),BZ58*INDEX('Damage costs'!$W$16:$W$43,MATCH($B109,'Damage costs'!$C$16:$C$43,0))/1000,BZ58*INDEX('Damage costs'!$AA$16:$AA$43,MATCH($B109,'Damage costs'!$C$16:$C$43,0))/1000),\"\")","v":""},{"$f":"IFERROR(IF(OR($C$110=FALSE,LEFT($B109,3)<>\"NOX\"),CA58*INDEX('Damage costs'!$W$16:$W$43,MATCH($B109,'Damage costs'!$C$16:$C$43,0))/1000,CA58*INDEX('Damage costs'!$AA$16:$AA$43,MATCH($B109,'Damage costs'!$C$16:$C$43,0))/1000),\"\")","v":""},{"$f":"IFERROR(IF(OR($C$110=FALSE,LEFT($B109,3)<>\"NOX\"),CB58*INDEX('Damage costs'!$W$16:$W$43,MATCH($B109,'Damage costs'!$C$16:$C$43,0))/1000,CB58*INDEX('Damage costs'!$AA$16:$AA$43,MATCH($B109,'Damage costs'!$C$16:$C$43,0))/1000),\"\")","v":""},{"$f":"IFERROR(IF(OR($C$110=FALSE,LEFT($B109,3)<>\"NOX\"),CC58*INDEX('Damage costs'!$W$16:$W$43,MATCH($B109,'Damage costs'!$C$16:$C$43,0))/1000,CC58*INDEX('Damage costs'!$AA$16:$AA$43,MATCH($B109,'Damage costs'!$C$16:$C$43,0))/1000),\"\")","v":""},{"$f":"IFERROR(IF(OR($C$110=FALSE,LEFT($B109,3)<>\"NOX\"),CD58*INDEX('Damage costs'!$W$16:$W$43,MATCH($B109,'Damage costs'!$C$16:$C$43,0))/1000,CD58*INDEX('Damage costs'!$AA$16:$AA$43,MATCH($B109,'Damage costs'!$C$16:$C$43,0))/1000),\"\")","v":""},{"$f":"IFERROR(IF(OR($C$110=FALSE,LEFT($B109,3)<>\"NOX\"),CE58*INDEX('Damage costs'!$W$16:$W$43,MATCH($B109,'Damage costs'!$C$16:$C$43,0))/1000,CE58*INDEX('Damage costs'!$AA$16:$AA$43,MATCH($B109,'Damage costs'!$C$16:$C$43,0))/1000),\"\")","v":""},{"$f":"IFERROR(IF(OR($C$110=FALSE,LEFT($B109,3)<>\"NOX\"),CF58*INDEX('Damage costs'!$W$16:$W$43,MATCH($B109,'Damage costs'!$C$16:$C$43,0))/1000,CF58*INDEX('Damage costs'!$AA$16:$AA$43,MATCH($B109,'Damage costs'!$C$16:$C$43,0))/1000),\"\")","v":""},{"$f":"IFERROR(IF(OR($C$110=FALSE,LEFT($B109,3)<>\"NOX\"),CG58*INDEX('Damage costs'!$W$16:$W$43,MATCH($B109,'Damage costs'!$C$16:$C$43,0))/1000,CG58*INDEX('Damage costs'!$AA$16:$AA$43,MATCH($B109,'Damage costs'!$C$16:$C$43,0))/1000),\"\")","v":""},{"$f":"IFERROR(IF(OR($C$110=FALSE,LEFT($B109,3)<>\"NOX\"),CH58*INDEX('Damage costs'!$W$16:$W$43,MATCH($B109,'Damage costs'!$C$16:$C$43,0))/1000,CH58*INDEX('Damage costs'!$AA$16:$AA$43,MATCH($B109,'Damage costs'!$C$16:$C$43,0))/1000),\"\")","v":""},{"$f":"IFERROR(IF(OR($C$110=FALSE,LEFT($B109,3)<>\"NOX\"),CI58*INDEX('Damage costs'!$W$16:$W$43,MATCH($B109,'Damage costs'!$C$16:$C$43,0))/1000,CI58*INDEX('Damage costs'!$AA$16:$AA$43,MATCH($B109,'Damage costs'!$C$16:$C$43,0))/1000),\"\")","v":""},{"$f":"IFERROR(IF(OR($C$110=FALSE,LEFT($B109,3)<>\"NOX\"),CJ58*INDEX('Damage costs'!$W$16:$W$43,MATCH($B109,'Damage costs'!$C$16:$C$43,0))/1000,CJ58*INDEX('Damage costs'!$AA$16:$AA$43,MATCH($B109,'Damage costs'!$C$16:$C$43,0))/1000),\"\")","v":""},{"$f":"IFERROR(IF(OR($C$110=FALSE,LEFT($B109,3)<>\"NOX\"),CK58*INDEX('Damage costs'!$W$16:$W$43,MATCH($B109,'Damage costs'!$C$16:$C$43,0))/1000,CK58*INDEX('Damage costs'!$AA$16:$AA$43,MATCH($B109,'Damage costs'!$C$16:$C$43,0))/1000),\"\")","v":""},{"$f":"IFERROR(IF(OR($C$110=FALSE,LEFT($B109,3)<>\"NOX\"),CL58*INDEX('Damage costs'!$W$16:$W$43,MATCH($B109,'Damage costs'!$C$16:$C$43,0))/1000,CL58*INDEX('Damage costs'!$AA$16:$AA$43,MATCH($B109,'Damage costs'!$C$16:$C$43,0))/1000),\"\")","v":""},{"$f":"IFERROR(IF(OR($C$110=FALSE,LEFT($B109,3)<>\"NOX\"),CM58*INDEX('Damage costs'!$W$16:$W$43,MATCH($B109,'Damage costs'!$C$16:$C$43,0))/1000,CM58*INDEX('Damage costs'!$AA$16:$AA$43,MATCH($B109,'Damage costs'!$C$16:$C$43,0))/1000),\"\")","v":""},{"$f":"IFERROR(IF(OR($C$110=FALSE,LEFT($B109,3)<>\"NOX\"),CN58*INDEX('Damage costs'!$W$16:$W$43,MATCH($B109,'Damage costs'!$C$16:$C$43,0))/1000,CN58*INDEX('Damage costs'!$AA$16:$AA$43,MATCH($B109,'Damage costs'!$C$16:$C$43,0))/1000),\"\")","v":""},{"$f":"IFERROR(IF(OR($C$110=FALSE,LEFT($B109,3)<>\"NOX\"),CO58*INDEX('Damage costs'!$W$16:$W$43,MATCH($B109,'Damage costs'!$C$16:$C$43,0))/1000,CO58*INDEX('Damage costs'!$AA$16:$AA$43,MATCH($B109,'Damage costs'!$C$16:$C$43,0))/1000),\"\")","v":""},{"$f":"IFERROR(IF(OR($C$110=FALSE,LEFT($B109,3)<>\"NOX\"),CP58*INDEX('Damage costs'!$W$16:$W$43,MATCH($B109,'Damage costs'!$C$16:$C$43,0))/1000,CP58*INDEX('Damage costs'!$AA$16:$AA$43,MATCH($B109,'Damage costs'!$C$16:$C$43,0))/1000),\"\")","v":""},{"$f":"IFERROR(IF(OR($C$110=FALSE,LEFT($B109,3)<>\"NOX\"),CQ58*INDEX('Damage costs'!$W$16:$W$43,MATCH($B109,'Damage costs'!$C$16:$C$43,0))/1000,CQ58*INDEX('Damage costs'!$AA$16:$AA$43,MATCH($B109,'Damage costs'!$C$16:$C$43,0))/1000),\"\")","v":""},{"$f":"IFERROR(IF(OR($C$110=FALSE,LEFT($B109,3)<>\"NOX\"),CR58*INDEX('Damage costs'!$W$16:$W$43,MATCH($B109,'Damage costs'!$C$16:$C$43,0))/1000,CR58*INDEX('Damage costs'!$AA$16:$AA$43,MATCH($B109,'Damage costs'!$C$16:$C$43,0))/1000),\"\")","v":""},{"$f":"IFERROR(IF(OR($C$110=FALSE,LEFT($B109,3)<>\"NOX\"),CS58*INDEX('Damage costs'!$W$16:$W$43,MATCH($B109,'Damage costs'!$C$16:$C$43,0))/1000,CS58*INDEX('Damage costs'!$AA$16:$AA$43,MATCH($B109,'Damage costs'!$C$16:$C$43,0))/1000),\"\")","v":""},{"$f":"IFERROR(IF(OR($C$110=FALSE,LEFT($B109,3)<>\"NOX\"),CT58*INDEX('Damage costs'!$W$16:$W$43,MATCH($B109,'Damage costs'!$C$16:$C$43,0))/1000,CT58*INDEX('Damage costs'!$AA$16:$AA$43,MATCH($B109,'Damage costs'!$C$16:$C$43,0))/1000),\"\")","v":""},{"$f":"IFERROR(IF(OR($C$110=FALSE,LEFT($B109,3)<>\"NOX\"),CU58*INDEX('Damage costs'!$W$16:$W$43,MATCH($B109,'Damage costs'!$C$16:$C$43,0))/1000,CU58*INDEX('Damage costs'!$AA$16:$AA$43,MATCH($B109,'Damage costs'!$C$16:$C$43,0))/1000),\"\")","v":""},{"$f":"IFERROR(IF(OR($C$110=FALSE,LEFT($B109,3)<>\"NOX\"),CV58*INDEX('Damage costs'!$W$16:$W$43,MATCH($B109,'Damage costs'!$C$16:$C$43,0))/1000,CV58*INDEX('Damage costs'!$AA$16:$AA$43,MATCH($B109,'Damage costs'!$C$16:$C$43,0))/1000),\"\")","v":""},{"$f":"IFERROR(IF(OR($C$110=FALSE,LEFT($B109,3)<>\"NOX\"),CW58*INDEX('Damage costs'!$W$16:$W$43,MATCH($B109,'Damage costs'!$C$16:$C$43,0))/1000,CW58*INDEX('Damage costs'!$AA$16:$AA$43,MATCH($B109,'Damage costs'!$C$16:$C$43,0))/1000),\"\")","v":""},{"$f":"IFERROR(IF(OR($C$110=FALSE,LEFT($B109,3)<>\"NOX\"),CX58*INDEX('Damage costs'!$W$16:$W$43,MATCH($B109,'Damage costs'!$C$16:$C$43,0))/1000,CX58*INDEX('Damage costs'!$AA$16:$AA$43,MATCH($B109,'Damage costs'!$C$16:$C$43,0))/1000),\"\")","v":""},{"$f":"IFERROR(IF(OR($C$110=FALSE,LEFT($B109,3)<>\"NOX\"),CY58*INDEX('Damage costs'!$W$16:$W$43,MATCH($B109,'Damage costs'!$C$16:$C$43,0))/1000,CY58*INDEX('Damage costs'!$AA$16:$AA$43,MATCH($B109,'Damage costs'!$C$16:$C$43,0))/1000),\"\")","v":""}]
[null,"PM10 Used",{"$f":"IF(OR(LEFT(B104,4)=\"PM10\",LEFT(B105,4)=\"PM10\",LEFT(B106,4)=\"PM10\",LEFT(B107,4)=\"PM10\",LEFT(B108,4)=\"PM10\",LEFT(B109,4)=\"PM10\"),TRUE,FALSE)","v":false}]
[]
[null,"Uplift pa","%",{"$f":"'Discount and deflators'!$H$5","v":0.02}]
[null,"Uplift factor",null,{"$f":"IF(D$6=0,0,(1+$D112)^(D$6-'Data Input - General'!$F$22))","v":1},{"$f":"IF(E$6=0,0,(1+$D112)^(E$6-'Data Input - General'!$F$22))","v":1.02},{"$f":"IF(F$6=0,0,(1+$D112)^(F$6-'Data Input - General'!$F$22))","v":1.0404},{"$f":"IF(G$6=0,0,(1+$D112)^(G$6-'Data Input - General'!$F$22))","v":1.0612079999999999},{"$f":"IF(H$6=0,0,(1+$D112)^(H$6-'Data Input - General'!$F$22))","v":1.08243216},{"$f":"IF(I$6=0,0,(1+$D112)^(I$6-'Data Input - General'!$F$22))","v":1.1040808032},{"$f":"IF(J$6=0,0,(1+$D112)^(J$6-'Data Input - General'!$F$22))","v":1.1261624192640001},{"$f":"IF(K$6=0,0,(1+$D112)^(K$6-'Data Input - General'!$F$22))","v":1.1486856676492798},{"$f":"IF(L$6=0,0,(1+$D112)^(L$6-'Data Input - General'!$F$22))","v":1.1716593810022655},{"$f":"IF(M$6=0,0,(1+$D112)^(M$6-'Data Input - General'!$F$22))","v":1.1950925686223108},{"$f":"IF(N$6=0,0,(1+$D112)^(N$6-'Data Input - General'!$F$22))","v":1.2189944199947571},{"$f":"IF(O$6=0,0,(1+$D112)^(O$6-'Data Input - General'!$F$22))","v":1.243374308394652},{"$f":"IF(P$6=0,0,(1+$D112)^(P$6-'Data Input - General'!$F$22))","v":1.2682417945625453},{"$f":"IF(Q$6=0,0,(1+$D112)^(Q$6-'Data Input - General'!$F$22))","v":1.2936066304537961},{"$f":"IF(R$6=0,0,(1+$D112)^(R$6-'Data Input - General'!$F$22))","v":1.3194787630628722},{"$f":"IF(S$6=0,0,(1+$D112)^(S$6-'Data Input - General'!$F$22))","v":1.3458683383241292},{"$f":"IF(T$6=0,0,(1+$D112)^(T$6-'Data Input - General'!$F$22))","v":1.372785705090612},{"$f":"IF(U$6=0,0,(1+$D112)^(U$6-'Data Input - General'!$F$22))","v":1.4002414191924244},{"$f":"IF(V$6=0,0,(1+$D112)^(V$6-'Data Input - General'!$F$22))","v":1.4282462475762727},{"$f":"IF(W$6=0,0,(1+$D112)^(W$6-'Data Input - General'!$F$22))","v":1.4568111725277981},{"$f":"IF(X$6=0,0,(1+$D112)^(X$6-'Data Input - General'!$F$22))","v":1.4859473959783542},{"$f":"IF(Y$6=0,0,(1+$D112)^(Y$6-'Data Input - General'!$F$22))","v":1.5156663438979212},{"$f":"IF(Z$6=0,0,(1+$D112)^(Z$6-'Data Input - General'!$F$22))","v":1.5459796707758797},{"$f":"IF(AA$6=0,0,(1+$D112)^(AA$6-'Data Input - General'!$F$22))","v":1.576899264191397},{"$f":"IF(AB$6=0,0,(1+$D112)^(AB$6-'Data Input - General'!$F$22))","v":1.608437249475225},{"$f":"IF(AC$6=0,0,(1+$D112)^(AC$6-'Data Input - General'!$F$22))","v":1.6406059944647295},{"$f":"IF(AD$6=0,0,(1+$D112)^(AD$6-'Data Input - General'!$F$22))","v":1.6734181143540243},{"$f":"IF(AE$6=0,0,(1+$D112)^(AE$6-'Data Input - General'!$F$22))","v":1.7068864766411045},{"$f":"IF(AF$6=0,0,(1+$D112)^(AF$6-'Data Input - General'!$F$22))","v":1.7410242061739269},{"$f":"IF(AG$6=0,0,(1+$D112)^(AG$6-'Data Input - General'!$F$22))","v":1.7758446902974052},{"$f":"IF(AH$6=0,0,(1+$D112)^(AH$6-'Data Input - General'!$F$22))","v":1.8113615841033535},{"$f":"IF(AI$6=0,0,(1+$D112)^(AI$6-'Data Input - General'!$F$22))","v":0},{"$f":"IF(AJ$6=0,0,(1+$D112)^(AJ$6-'Data Input - General'!$F$22))","v":0},{"$f":"IF(AK$6=0,0,(1+$D112)^(AK$6-'Data Input - General'!$F$22))","v":0},{"$f":"IF(AL$6=0,0,(1+$D112)^(AL$6-'Data Input - General'!$F$22))","v":0},{"$f":"IF(AM$6=0,0,(1+$D112)^(AM$6-'Data Input - General'!$F$22))","v":0},{"$f":"IF(AN$6=0,0,(1+$D112)^(AN$6-'Data Input - General'!$F$22))","v":0},{"$f":"IF(AO$6=0,0,(1+$D112)^(AO$6-'Data Input - General'!$F$22))","v":0},{"$f":"IF(AP$6=0,0,(1+$D112)^(AP$6-'Data Input - General'!$F$22))","v":0},{"$f":"IF(AQ$6=0,0,(1+$D112)^(AQ$6-'Data Input - General'!$F$22))","v":0},{"$f":"IF(AR$6=0,0,(1+$D112)^(AR$6-'Data Input - General'!$F$22))","v":0},{"$f":"IF(AS$6=0,0,(1+$D112)^(AS$6-'Data Input - General'!$F$22))","v":0},{"$f":"IF(AT$6=0,0,(1+$D112)^(AT$6-'Data Input - General'!$F$22))","v":0},{"$f":"IF(AU$6=0,0,(1+$D112)^(AU$6-'Data Input - General'!$F$22))","v":0},{"$f":"IF(AV$6=0,0,(1+$D112)^(AV$6-'Data Input - General'!$F$22))","v":0},{"$f":"IF(AW$6=0,0,(1+$D112)^(AW$6-'Data Input - General'!$F$22))","v":0},{"$f":"IF(AX$6=0,0,(1+$D112)^(AX$6-'Data Input - General'!$F$22))","v":0},{"$f":"IF(AY$6=0,0,(1+$D112)^(AY$6-'Data Input - General'!$F$22))","v":0},{"$f":"IF(AZ$6=0,0,(1+$D112)^(AZ$6-'Data Input - General'!$F$22))","v":0},{"$f":"IF(BA$6=0,0,(1+$D112)^(BA$6-'Data Input - General'!$F$22))","v":0},{"$f":"IF(BB$6=0,0,(1+$D112)^(BB$6-'Data Input - General'!$F$22))","v":0},{"$f":"IF(BC$6=0,0,(1+$D112)^(BC$6-'Data Input - General'!$F$22))","v":0},{"$f":"IF(BD$6=0,0,(1+$D112)^(BD$6-'Data Input - General'!$F$22))","v":0},{"$f":"IF(BE$6=0,0,(1+$D112)^(BE$6-'Data Input - General'!$F$22))","v":0},{"$f":"IF(BF$6=0,0,(1+$D112)^(BF$6-'Data Input - General'!$F$22))","v":0},{"$f":"IF(BG$6=0,0,(1+$D112)^(BG$6-'Data Input - General'!$F$22))","v":0},{"$f":"IF(BH$6=0,0,(1+$D112)^(BH$6-'Data Input - General'!$F$22))","v":0},{"$f":"IF(BI$6=0,0,(1+$D112)^(BI$6-'Data Input - General'!$F$22))","v":0},{"$f":"IF(BJ$6=0,0,(1+$D112)^(BJ$6-'Data Input - General'!$F$22))","v":0},{"$f":"IF(BK$6=0,0,(1+$D112)^(BK$6-'Data Input - General'!$F$22))","v":0},{"$f":"IF(BL$6=0,0,(1+$D112)^(BL$6-'Data Input - General'!$F$22))","v":0},{"$f":"IF(BM$6=0,0,(1+$D112)^(BM$6-'Data Input - General'!$F$22))","v":0},{"$f":"IF(BN$6=0,0,(1+$D112)^(BN$6-'Data Input - General'!$F$22))","v":0},{"$f":"IF(BO$6=0,0,(1+$D112)^(BO$6-'Data Input - General'!$F$22))","v":0},{"$f":"IF(BP$6=0,0,(1+$D112)^(BP$6-'Data Input - General'!$F$22))","v":0},{"$f":"IF(BQ$6=0,0,(1+$D112)^(BQ$6-'Data Input - General'!$F$22))","v":0},{"$f":"IF(BR$6=0,0,(1+$D112)^(BR$6-'Data Input - General'!$F$22))","v":0},{"$f":"IF(BS$6=0,0,(1+$D112)^(BS$6-'Data Input - General'!$F$22))","v":0},{"$f":"IF(BT$6=0,0,(1+$D112)^(BT$6-'Data Input - General'!$F$22))","v":0},{"$f":"IF(BU$6=0,0,(1+$D112)^(BU$6-'Data Input - General'!$F$22))","v":0},{"$f":"IF(BV$6=0,0,(1+$D112)^(BV$6-'Data Input - General'!$F$22))","v":0},{"$f":"IF(BW$6=0,0,(1+$D112)^(BW$6-'Data Input - General'!$F$22))","v":0},{"$f":"IF(BX$6=0,0,(1+$D112)^(BX$6-'Data Input - General'!$F$22))","v":0},{"$f":"IF(BY$6=0,0,(1+$D112)^(BY$6-'Data Input - General'!$F$22))","v":0},{"$f":"IF(BZ$6=0,0,(1+$D112)^(BZ$6-'Data Input - General'!$F$22))","v":0},{"$f":"IF(CA$6=0,0,(1+$D112)^(CA$6-'Data Input - General'!$F$22))","v":0},{"$f":"IF(CB$6=0,0,(1+$D112)^(CB$6-'Data Input - General'!$F$22))","v":0},{"$f":"IF(CC$6=0,0,(1+$D112)^(CC$6-'Data Input - General'!$F$22))","v":0},{"$f":"IF(CD$6=0,0,(1+$D112)^(CD$6-'Data Input - General'!$F$22))","v":0},{"$f":"IF(CE$6=0,0,(1+$D112)^(CE$6-'Data Input - General'!$F$22))","v":0},{"$f":"IF(CF$6=0,0,(1+$D112)^(CF$6-'Data Input - General'!$F$22))","v":0},{"$f":"IF(CG$6=0,0,(1+$D112)^(CG$6-'Data Input - General'!$F$22))","v":0},{"$f":"IF(CH$6=0,0,(1+$D112)^(CH$6-'Data Input - General'!$F$22))","v":0},{"$f":"IF(CI$6=0,0,(1+$D112)^(CI$6-'Data Input - General'!$F$22))","v":0},{"$f":"IF(CJ$6=0,0,(1+$D112)^(CJ$6-'Data Input - General'!$F$22))","v":0},{"$f":"IF(CK$6=0,0,(1+$D112)^(CK$6-'Data Input - General'!$F$22))","v":0},{"$f":"IF(CL$6=0,0,(1+$D112)^(CL$6-'Data Input - General'!$F$22))","v":0},{"$f":"IF(CM$6=0,0,(1+$D112)^(CM$6-'Data Input - General'!$F$22))","v":0},{"$f":"IF(CN$6=0,0,(1+$D112)^(CN$6-'Data Input - General'!$F$22))","v":0},{"$f":"IF(CO$6=0,0,(1+$D112)^(CO$6-'Data Input - General'!$F$22))","v":0},{"$f":"IF(CP$6=0,0,(1+$D112)^(CP$6-'Data Input - General'!$F$22))","v":0},{"$f":"IF(CQ$6=0,0,(1+$D112)^(CQ$6-'Data Input - General'!$F$22))","v":0},{"$f":"IF(CR$6=0,0,(1+$D112)^(CR$6-'Data Input - General'!$F$22))","v":0},{"$f":"IF(CS$6=0,0,(1+$D112)^(CS$6-'Data Input - General'!$F$22))","v":0},{"$f":"IF(CT$6=0,0,(1+$D112)^(CT$6-'Data Input - General'!$F$22))","v":0},{"$f":"IF(CU$6=0,0,(1+$D112)^(CU$6-'Data Input - General'!$F$22))","v":0},{"$f":"IF(CV$6=0,0,(1+$D112)^(CV$6-'Data Input - General'!$F$22))","v":0},{"$f":"IF(CW$6=0,0,(1+$D112)^(CW$6-'Data Input - General'!$F$22))","v":0},{"$f":"IF(CX$6=0,0,(1+$D112)^(CX$6-'Data Input - General'!$F$22))","v":0},{"$f":"IF(CY$6=0,0,(1+$D112)^(CY$6-'Data Input - General'!$F$22))","v":0}]
[null,"Total value","£000's",{"$f":"SUM(D104:D109)*D113","v":1.6028522278070398},0.43488586644860605,0.44358358377757817,0.4524552554531297,0.4615043605621923,0.47073444777343615,0.48014913672890491,0.4897521194634829,0,0,0,0,0,0,0,0,0,0,0,0,0,0,0,0,0,0,0,0,0,0,0,0,{"$f":"SUM(AJ104:AJ109)*AJ113","v":0},0,0,0,0,0,0,0,0,0,0,0,0,0,0,0,0,0,0,0,0,0,0,0,0,0,0,0,0,0,0,0,{"$f":"SUM(BP104:BP109)*BP113","v":0},0,0,0,0,0,0,0,0,0,0,0,0,0,0,0,0,0,0,0,0,0,0,0,0,0,0,0,0,0,0,0,{"$f":"SUM(CV104:CV109)*CV113","v":0},0,0,0]
[null,"Discounted total value","£000's",{"$f":"D114*D$7","v":1.6028522278070398},{"$f":"E114*E$7","v":0.42017958110976433},{"$f":"F114*F$7","v":0.41409002196324601},{"$f":"G114*G$7","v":0.40808871729711205},0.40217438806092204,0.39634577374119856,0.39060163209277543,0.38494073887403951,0,0,0,0,0,0,0,0,0,0,0,0,0,0,0,0,0,0,0,0,0,0,0,0,0,0,0,0,0,0,0,0,0,0,0,0,0,0,0,0,0,0,0,0,0,0,0,0,0,0,0,0,0,0,0,0,0,0,0,{"$f":"BS114*BS$7","v":0},0,0,0,0,0,0,0,0,0,0,0,0,0,0,0,0,0,0,0,0,0,0,0,0,0,0,0,0,0,0,0,0]
[]
[null,"GHG emissions"]
[null,"Traded","tCO2e",{"$f":"D80+IF('Data Input - General'!$F$10=\"Yes\",Calc_BAT!D$81,0)+IF('Data Input - General'!$F$12=\"Yes\",Calc_BAT!D$75,0)","v":86644.737608250056},{"$f":"E80+IF('Data Input - General'!$F$10=\"Yes\",Calc_BAT!E$81,0)+IF('Data Input - General'!$F$12=\"Yes\",Calc_BAT!E$75,0)","v":86510.233175019355},{"$f":"F80+IF('Data Input - General'!$F$10=\"Yes\",Calc_BAT!F$81,0)+IF('Data Input - General'!$F$12=\"Yes\",Calc_BAT!F$75,0)","v":86388.187501378605},{"$f":"G80+IF('Data Input - General'!$F$10=\"Yes\",Calc_BAT!G$81,0)+IF('Data Input - General'!$F$12=\"Yes\",Calc_BAT!G$75,0)","v":86316.993984732529},{"$f":"H80+IF('Data Input - General'!$F$10=\"Yes\",Calc_BAT!H$81,0)+IF('Data Input - General'!$F$12=\"Yes\",Calc_BAT!H$75,0)","v":86193.774664474651},{"$f":"I80+IF('Data Input - General'!$F$10=\"Yes\",Calc_BAT!I$81,0)+IF('Data Input - General'!$F$12=\"Yes\",Calc_BAT!I$75,0)","v":86229.164858991426},{"$f":"J80+IF('Data Input - General'!$F$10=\"Yes\",Calc_BAT!J$81,0)+IF('Data Input - General'!$F$12=\"Yes\",Calc_BAT!J$75,0)","v":86182.585839819963},{"$f":"K80+IF('Data Input - General'!$F$10=\"Yes\",Calc_BAT!K$81,0)+IF('Data Input - General'!$F$12=\"Yes\",Calc_BAT!K$75,0)","v":86105.387885048549},{"$f":"L80+IF('Data Input - General'!$F$10=\"Yes\",Calc_BAT!L$81,0)+IF('Data Input - General'!$F$12=\"Yes\",Calc_BAT!L$75,0)","v":0},{"$f":"M80+IF('Data Input - General'!$F$10=\"Yes\",Calc_BAT!M$81,0)+IF('Data Input - General'!$F$12=\"Yes\",Calc_BAT!M$75,0)","v":0},{"$f":"N80+IF('Data Input - General'!$F$10=\"Yes\",Calc_BAT!N$81,0)+IF('Data Input - General'!$F$12=\"Yes\",Calc_BAT!N$75,0)","v":0},{"$f":"O80+IF('Data Input - General'!$F$10=\"Yes\",Calc_BAT!O$81,0)+IF('Data Input - General'!$F$12=\"Yes\",Calc_BAT!O$75,0)","v":0},{"$f":"P80+IF('Data Input - General'!$F$10=\"Yes\",Calc_BAT!P$81,0)+IF('Data Input - General'!$F$12=\"Yes\",Calc_BAT!P$75,0)","v":0},{"$f":"Q80+IF('Data Input - General'!$F$10=\"Yes\",Calc_BAT!Q$81,0)+IF('Data Input - General'!$F$12=\"Yes\",Calc_BAT!Q$75,0)","v":0},{"$f":"R80+IF('Data Input - General'!$F$10=\"Yes\",Calc_BAT!R$81,0)+IF('Data Input - General'!$F$12=\"Yes\",Calc_BAT!R$75,0)","v":0},{"$f":"S80+IF('Data Input - General'!$F$10=\"Yes\",Calc_BAT!S$81,0)+IF('Data Input - General'!$F$12=\"Yes\",Calc_BAT!S$75,0)","v":0},{"$f":"T80+IF('Data Input - General'!$F$10=\"Yes\",Calc_BAT!T$81,0)+IF('Data Input - General'!$F$12=\"Yes\",Calc_BAT!T$75,0)","v":0},{"$f":"U80+IF('Data Input - General'!$F$10=\"Yes\",Calc_BAT!U$81,0)+IF('Data Input - General'!$F$12=\"Yes\",Calc_BAT!U$75,0)","v":0},{"$f":"V80+IF('Data Input - General'!$F$10=\"Yes\",Calc_BAT!V$81,0)+IF('Data Input - General'!$F$12=\"Yes\",Calc_BAT!V$75,0)","v":0},{"$f":"W80+IF('Data Input - General'!$F$10=\"Yes\",Calc_BAT!W$81,0)+IF('Data Input - General'!$F$12=\"Yes\",Calc_BAT!W$75,0)","v":0},{"$f":"X80+IF('Data Input - General'!$F$10=\"Yes\",Calc_BAT!X$81,0)+IF('Data Input - General'!$F$12=\"Yes\",Calc_BAT!X$75,0)","v":0},{"$f":"Y80+IF('Data Input - General'!$F$10=\"Yes\",Calc_BAT!Y$81,0)+IF('Data Input - General'!$F$12=\"Yes\",Calc_BAT!Y$75,0)","v":0},{"$f":"Z80+IF('Data Input - General'!$F$10=\"Yes\",Calc_BAT!Z$81,0)+IF('Data Input - General'!$F$12=\"Yes\",Calc_BAT!Z$75,0)","v":0},{"$f":"AA80+IF('Data Input - General'!$F$10=\"Yes\",Calc_BAT!AA$81,0)+IF('Data Input - General'!$F$12=\"Yes\",Calc_BAT!AA$75,0)","v":0},{"$f":"AB80+IF('Data Input - General'!$F$10=\"Yes\",Calc_BAT!AB$81,0)+IF('Data Input - General'!$F$12=\"Yes\",Calc_BAT!AB$75,0)","v":0},{"$f":"AC80+IF('Data Input - General'!$F$10=\"Yes\",Calc_BAT!AC$81,0)+IF('Data Input - General'!$F$12=\"Yes\",Calc_BAT!AC$75,0)","v":0},{"$f":"AD80+IF('Data Input - General'!$F$10=\"Yes\",Calc_BAT!AD$81,0)+IF('Data Input - General'!$F$12=\"Yes\",Calc_BAT!AD$75,0)","v":0},{"$f":"AE80+IF('Data Input - General'!$F$10=\"Yes\",Calc_BAT!AE$81,0)+IF('Data Input - General'!$F$12=\"Yes\",Calc_BAT!AE$75,0)","v":0},{"$f":"AF80+IF('Data Input - General'!$F$10=\"Yes\",Calc_BAT!AF$81,0)+IF('Data Input - General'!$F$12=\"Yes\",Calc_BAT!AF$75,0)","v":0},{"$f":"AG80+IF('Data Input - General'!$F$10=\"Yes\",Calc_BAT!AG$81,0)+IF('Data Input - General'!$F$12=\"Yes\",Calc_BAT!AG$75,0)","v":0},{"$f":"AH80+IF('Data Input - General'!$F$10=\"Yes\",Calc_BAT!AH$81,0)+IF('Data Input - General'!$F$12=\"Yes\",Calc_BAT!AH$75,0)","v":0},{"$f":"AI80+IF('Data Input - General'!$F$10=\"Yes\",Calc_BAT!AI$81,0)+IF('Data Input - General'!$F$12=\"Yes\",Calc_BAT!AI$75,0)","v":0},{"$f":"AJ80+IF('Data Input - General'!$F$10=\"Yes\",Calc_BAT!AJ$81,0)+IF('Data Input - General'!$F$12=\"Yes\",Calc_BAT!AJ$75,0)","v":0},{"$f":"AK80+IF('Data Input - General'!$F$10=\"Yes\",Calc_BAT!AK$81,0)+IF('Data Input - General'!$F$12=\"Yes\",Calc_BAT!AK$75,0)","v":0},{"$f":"AL80+IF('Data Input - General'!$F$10=\"Yes\",Calc_BAT!AL$81,0)+IF('Data Input - General'!$F$12=\"Yes\",Calc_BAT!AL$75,0)","v":0},{"$f":"AM80+IF('Data Input - General'!$F$10=\"Yes\",Calc_BAT!AM$81,0)+IF('Data Input - General'!$F$12=\"Yes\",Calc_BAT!AM$75,0)","v":0},{"$f":"AN80+IF('Data Input - General'!$F$10=\"Yes\",Calc_BAT!AN$81,0)+IF('Data Input - General'!$F$12=\"Yes\",Calc_BAT!AN$75,0)","v":0},{"$f":"AO80+IF('Data Input - General'!$F$10=\"Yes\",Calc_BAT!AO$81,0)+IF('Data Input - General'!$F$12=\"Yes\",Calc_BAT!AO$75,0)","v":0},{"$f":"AP80+IF('Data Input - General'!$F$10=\"Yes\",Calc_BAT!AP$81,0)+IF('Data Input - General'!$F$12=\"Yes\",Calc_BAT!AP$75,0)","v":0},{"$f":"AQ80+IF('Data Input - General'!$F$10=\"Yes\",Calc_BAT!AQ$81,0)+IF('Data Input - General'!$F$12=\"Yes\",Calc_BAT!AQ$75,0)","v":0},{"$f":"AR80+IF('Data Input - General'!$F$10=\"Yes\",Calc_BAT!AR$81,0)+IF('Data Input - General'!$F$12=\"Yes\",Calc_BAT!AR$75,0)","v":0},{"$f":"AS80+IF('Data Input - General'!$F$10=\"Yes\",Calc_BAT!AS$81,0)+IF('Data Input - General'!$F$12=\"Yes\",Calc_BAT!AS$75,0)","v":0},{"$f":"AT80+IF('Data Input - General'!$F$10=\"Yes\",Calc_BAT!AT$81,0)+IF('Data Input - General'!$F$12=\"Yes\",Calc_BAT!AT$75,0)","v":0},{"$f":"AU80+IF('Data Input - General'!$F$10=\"Yes\",Calc_BAT!AU$81,0)+IF('Data Input - General'!$F$12=\"Yes\",Calc_BAT!AU$75,0)","v":0},{"$f":"AV80+IF('Data Input - General'!$F$10=\"Yes\",Calc_BAT!AV$81,0)+IF('Data Input - General'!$F$12=\"Yes\",Calc_BAT!AV$75,0)","v":0},{"$f":"AW80+IF('Data Input - General'!$F$10=\"Yes\",Calc_BAT!AW$81,0)+IF('Data Input - General'!$F$12=\"Yes\",Calc_BAT!AW$75,0)","v":0},{"$f":"AX80+IF('Data Input - General'!$F$10=\"Yes\",Calc_BAT!AX$81,0)+IF('Data Input - General'!$F$12=\"Yes\",Calc_BAT!AX$75,0)","v":0},{"$f":"AY80+IF('Data Input - General'!$F$10=\"Yes\",Calc_BAT!AY$81,0)+IF('Data Input - General'!$F$12=\"Yes\",Calc_BAT!AY$75,0)","v":0},{"$f":"AZ80+IF('Data Input - General'!$F$10=\"Yes\",Calc_BAT!AZ$81,0)+IF('Data Input - General'!$F$12=\"Yes\",Calc_BAT!AZ$75,0)","v":0},{"$f":"BA80+IF('Data Input - General'!$F$10=\"Yes\",Calc_BAT!BA$81,0)+IF('Data Input - General'!$F$12=\"Yes\",Calc_BAT!BA$75,0)","v":0},{"$f":"BB80+IF('Data Input - General'!$F$10=\"Yes\",Calc_BAT!BB$81,0)+IF('Data Input - General'!$F$12=\"Yes\",Calc_BAT!BB$75,0)","v":0},{"$f":"BC80+IF('Data Input - General'!$F$10=\"Yes\",Calc_BAT!BC$81,0)+IF('Data Input - General'!$F$12=\"Yes\",Calc_BAT!BC$75,0)","v":0},{"$f":"BD80+IF('Data Input - General'!$F$10=\"Yes\",Calc_BAT!BD$81,0)+IF('Data Input - General'!$F$12=\"Yes\",Calc_BAT!BD$75,0)","v":0},{"$f":"BE80+IF('Data Input - General'!$F$10=\"Yes\",Calc_BAT!BE$81,0)+IF('Data Input - General'!$F$12=\"Yes\",Calc_BAT!BE$75,0)","v":0},{"$f":"BF80+IF('Data Input - General'!$F$10=\"Yes\",Calc_BAT!BF$81,0)+IF('Data Input - General'!$F$12=\"Yes\",Calc_BAT!BF$75,0)","v":0},{"$f":"BG80+IF('Data Input - General'!$F$10=\"Yes\",Calc_BAT!BG$81,0)+IF('Data Input - General'!$F$12=\"Yes\",Calc_BAT!BG$75,0)","v":0},{"$f":"BH80+IF('Data Input - General'!$F$10=\"Yes\",Calc_BAT!BH$81,0)+IF('Data Input - General'!$F$12=\"Yes\",Calc_BAT!BH$75,0)","v":0},{"$f":"BI80+IF('Data Input - General'!$F$10=\"Yes\",Calc_BAT!BI$81,0)+IF('Data Input - General'!$F$12=\"Yes\",Calc_BAT!BI$75,0)","v":0},{"$f":"BJ80+IF('Data Input - General'!$F$10=\"Yes\",Calc_BAT!BJ$81,0)+IF('Data Input - General'!$F$12=\"Yes\",Calc_BAT!BJ$75,0)","v":0},{"$f":"BK80+IF('Data Input - General'!$F$10=\"Yes\",Calc_BAT!BK$81,0)+IF('Data Input - General'!$F$12=\"Yes\",Calc_BAT!BK$75,0)","v":0},{"$f":"BL80+IF('Data Input - General'!$F$10=\"Yes\",Calc_BAT!BL$81,0)+IF('Data Input - General'!$F$12=\"Yes\",Calc_BAT!BL$75,0)","v":0},{"$f":"BM80+IF('Data Input - General'!$F$10=\"Yes\",Calc_BAT!BM$81,0)+IF('Data Input - General'!$F$12=\"Yes\",Calc_BAT!BM$75,0)","v":0},{"$f":"BN80+IF('Data Input - General'!$F$10=\"Yes\",Calc_BAT!BN$81,0)+IF('Data Input - General'!$F$12=\"Yes\",Calc_BAT!BN$75,0)","v":0},{"$f":"BO80+IF('Data Input - General'!$F$10=\"Yes\",Calc_BAT!BO$81,0)+IF('Data Input - General'!$F$12=\"Yes\",Calc_BAT!BO$75,0)","v":0},{"$f":"BP80+IF('Data Input - General'!$F$10=\"Yes\",Calc_BAT!BP$81,0)+IF('Data Input - General'!$F$12=\"Yes\",Calc_BAT!BP$75,0)","v":0},{"$f":"BQ80+IF('Data Input - General'!$F$10=\"Yes\",Calc_BAT!BQ$81,0)+IF('Data Input - General'!$F$12=\"Yes\",Calc_BAT!BQ$75,0)","v":0},{"$f":"BR80+IF('Data Input - General'!$F$10=\"Yes\",Calc_BAT!BR$81,0)+IF('Data Input - General'!$F$12=\"Yes\",Calc_BAT!BR$75,0)","v":0},{"$f":"BS80+IF('Data Input - General'!$F$10=\"Yes\",Calc_BAT!BS$81,0)+IF('Data Input - General'!$F$12=\"Yes\",Calc_BAT!BS$75,0)","v":0},{"$f":"BT80+IF('Data Input - General'!$F$10=\"Yes\",Calc_BAT!BT$81,0)+IF('Data Input - General'!$F$12=\"Yes\",Calc_BAT!BT$75,0)","v":0},{"$f":"BU80+IF('Data Input - General'!$F$10=\"Yes\",Calc_BAT!BU$81,0)+IF('Data Input - General'!$F$12=\"Yes\",Calc_BAT!BU$75,0)","v":0},{"$f":"BV80+IF('Data Input - General'!$F$10=\"Yes\",Calc_BAT!BV$81,0)+IF('Data Input - General'!$F$12=\"Yes\",Calc_BAT!BV$75,0)","v":0},{"$f":"BW80+IF('Data Input - General'!$F$10=\"Yes\",Calc_BAT!BW$81,0)+IF('Data Input - General'!$F$12=\"Yes\",Calc_BAT!BW$75,0)","v":0},{"$f":"BX80+IF('Data Input - General'!$F$10=\"Yes\",Calc_BAT!BX$81,0)+IF('Data Input - General'!$F$12=\"Yes\",Calc_BAT!BX$75,0)","v":0},{"$f":"BY80+IF('Data Input - General'!$F$10=\"Yes\",Calc_BAT!BY$81,0)+IF('Data Input - General'!$F$12=\"Yes\",Calc_BAT!BY$75,0)","v":0},{"$f":"BZ80+IF('Data Input - General'!$F$10=\"Yes\",Calc_BAT!BZ$81,0)+IF('Data Input - General'!$F$12=\"Yes\",Calc_BAT!BZ$75,0)","v":0},{"$f":"CA80+IF('Data Input - General'!$F$10=\"Yes\",Calc_BAT!CA$81,0)+IF('Data Input - General'!$F$12=\"Yes\",Calc_BAT!CA$75,0)","v":0},{"$f":"CB80+IF('Data Input - General'!$F$10=\"Yes\",Calc_BAT!CB$81,0)+IF('Data Input - General'!$F$12=\"Yes\",Calc_BAT!CB$75,0)","v":0},{"$f":"CC80+IF('Data Input - General'!$F$10=\"Yes\",Calc_BAT!CC$81,0)+IF('Data Input - General'!$F$12=\"Yes\",Calc_BAT!CC$75,0)","v":0},{"$f":"CD80+IF('Data Input - General'!$F$10=\"Yes\",Calc_BAT!CD$81,0)+IF('Data Input - General'!$F$12=\"Yes\",Calc_BAT!CD$75,0)","v":0},{"$f":"CE80+IF('Data Input - General'!$F$10=\"Yes\",Calc_BAT!CE$81,0)+IF('Data Input - General'!$F$12=\"Yes\",Calc_BAT!CE$75,0)","v":0},{"$f":"CF80+IF('Data Input - General'!$F$10=\"Yes\",Calc_BAT!CF$81,0)+IF('Data Input - General'!$F$12=\"Yes\",Calc_BAT!CF$75,0)","v":0},{"$f":"CG80+IF('Data Input - General'!$F$10=\"Yes\",Calc_BAT!CG$81,0)+IF('Data Input - General'!$F$12=\"Yes\",Calc_BAT!CG$75,0)","v":0},{"$f":"CH80+IF('Data Input - General'!$F$10=\"Yes\",Calc_BAT!CH$81,0)+IF('Data Input - General'!$F$12=\"Yes\",Calc_BAT!CH$75,0)","v":0},{"$f":"CI80+IF('Data Input - General'!$F$10=\"Yes\",Calc_BAT!CI$81,0)+IF('Data Input - General'!$F$12=\"Yes\",Calc_BAT!CI$75,0)","v":0},{"$f":"CJ80+IF('Data Input - General'!$F$10=\"Yes\",Calc_BAT!CJ$81,0)+IF('Data Input - General'!$F$12=\"Yes\",Calc_BAT!CJ$75,0)","v":0},{"$f":"CK80+IF('Data Input - General'!$F$10=\"Yes\",Calc_BAT!CK$81,0)+IF('Data Input - General'!$F$12=\"Yes\",Calc_BAT!CK$75,0)","v":0},{"$f":"CL80+IF('Data Input - General'!$F$10=\"Yes\",Calc_BAT!CL$81,0)+IF('Data Input - General'!$F$12=\"Yes\",Calc_BAT!CL$75,0)","v":0},{"$f":"CM80+IF('Data Input - General'!$F$10=\"Yes\",Calc_BAT!CM$81,0)+IF('Data Input - General'!$F$12=\"Yes\",Calc_BAT!CM$75,0)","v":0},{"$f":"CN80+IF('Data Input - General'!$F$10=\"Yes\",Calc_BAT!CN$81,0)+IF('Data Input - General'!$F$12=\"Yes\",Calc_BAT!CN$75,0)","v":0},{"$f":"CO80+IF('Data Input - General'!$F$10=\"Yes\",Calc_BAT!CO$81,0)+IF('Data Input - General'!$F$12=\"Yes\",Calc_BAT!CO$75,0)","v":0},{"$f":"CP80+IF('Data Input - General'!$F$10=\"Yes\",Calc_BAT!CP$81,0)+IF('Data Input - General'!$F$12=\"Yes\",Calc_BAT!CP$75,0)","v":0},{"$f":"CQ80+IF('Data Input - General'!$F$10=\"Yes\",Calc_BAT!CQ$81,0)+IF('Data Input - General'!$F$12=\"Yes\",Calc_BAT!CQ$75,0)","v":0},{"$f":"CR80+IF('Data Input - General'!$F$10=\"Yes\",Calc_BAT!CR$81,0)+IF('Data Input - General'!$F$12=\"Yes\",Calc_BAT!CR$75,0)","v":0},{"$f":"CS80+IF('Data Input - General'!$F$10=\"Yes\",Calc_BAT!CS$81,0)+IF('Data Input - General'!$F$12=\"Yes\",Calc_BAT!CS$75,0)","v":0},{"$f":"CT80+IF('Data Input - General'!$F$10=\"Yes\",Calc_BAT!CT$81,0)+IF('Data Input - General'!$F$12=\"Yes\",Calc_BAT!CT$75,0)","v":0},{"$f":"CU80+IF('Data Input - General'!$F$10=\"Yes\",Calc_BAT!CU$81,0)+IF('Data Input - General'!$F$12=\"Yes\",Calc_BAT!CU$75,0)","v":0},{"$f":"CV80+IF('Data Input - General'!$F$10=\"Yes\",Calc_BAT!CV$81,0)+IF('Data Input - General'!$F$12=\"Yes\",Calc_BAT!CV$75,0)","v":0},{"$f":"CW80+IF('Data Input - General'!$F$10=\"Yes\",Calc_BAT!CW$81,0)+IF('Data Input - General'!$F$12=\"Yes\",Calc_BAT!CW$75,0)","v":0},{"$f":"CX80+IF('Data Input - General'!$F$10=\"Yes\",Calc_BAT!CX$81,0)+IF('Data Input - General'!$F$12=\"Yes\",Calc_BAT!CX$75,0)","v":0},{"$f":"CY80+IF('Data Input - General'!$F$10=\"Yes\",Calc_BAT!CY$81,0)+IF('Data Input - General'!$F$12=\"Yes\",Calc_BAT!CY$75,0)","v":0}]
[null,"Non-traded","tCO2e",{"$f":"IF('Data Input - General'!$F$10=\"Yes\",0,Calc_BAT!D$81)+IF('Data Input - General'!$F$12=\"Yes\",0,Calc_BAT!D$75)","v":0},{"$f":"IF('Data Input - General'!$F$10=\"Yes\",0,Calc_BAT!E$81)+IF('Data Input - General'!$F$12=\"Yes\",0,Calc_BAT!E$75)","v":0},{"$f":"IF('Data Input - General'!$F$10=\"Yes\",0,Calc_BAT!F$81)+IF('Data Input - General'!$F$12=\"Yes\",0,Calc_BAT!F$75)","v":0},{"$f":"IF('Data Input - General'!$F$10=\"Yes\",0,Calc_BAT!G$81)+IF('Data Input - General'!$F$12=\"Yes\",0,Calc_BAT!G$75)","v":0},{"$f":"IF('Data Input - General'!$F$10=\"Yes\",0,Calc_BAT!H$81)+IF('Data Input - General'!$F$12=\"Yes\",0,Calc_BAT!H$75)","v":0},{"$f":"IF('Data Input - General'!$F$10=\"Yes\",0,Calc_BAT!I$81)+IF('Data Input - General'!$F$12=\"Yes\",0,Calc_BAT!I$75)","v":0},{"$f":"IF('Data Input - General'!$F$10=\"Yes\",0,Calc_BAT!J$81)+IF('Data Input - General'!$F$12=\"Yes\",0,Calc_BAT!J$75)","v":0},{"$f":"IF('Data Input - General'!$F$10=\"Yes\",0,Calc_BAT!K$81)+IF('Data Input - General'!$F$12=\"Yes\",0,Calc_BAT!K$75)","v":0},{"$f":"IF('Data Input - General'!$F$10=\"Yes\",0,Calc_BAT!L$81)+IF('Data Input - General'!$F$12=\"Yes\",0,Calc_BAT!L$75)","v":0},{"$f":"IF('Data Input - General'!$F$10=\"Yes\",0,Calc_BAT!M$81)+IF('Data Input - General'!$F$12=\"Yes\",0,Calc_BAT!M$75)","v":0},{"$f":"IF('Data Input - General'!$F$10=\"Yes\",0,Calc_BAT!N$81)+IF('Data Input - General'!$F$12=\"Yes\",0,Calc_BAT!N$75)","v":0},{"$f":"IF('Data Input - General'!$F$10=\"Yes\",0,Calc_BAT!O$81)+IF('Data Input - General'!$F$12=\"Yes\",0,Calc_BAT!O$75)","v":0},{"$f":"IF('Data Input - General'!$F$10=\"Yes\",0,Calc_BAT!P$81)+IF('Data Input - General'!$F$12=\"Yes\",0,Calc_BAT!P$75)","v":0},{"$f":"IF('Data Input - General'!$F$10=\"Yes\",0,Calc_BAT!Q$81)+IF('Data Input - General'!$F$12=\"Yes\",0,Calc_BAT!Q$75)","v":0},{"$f":"IF('Data Input - General'!$F$10=\"Yes\",0,Calc_BAT!R$81)+IF('Data Input - General'!$F$12=\"Yes\",0,Calc_BAT!R$75)","v":0},{"$f":"IF('Data Input - General'!$F$10=\"Yes\",0,Calc_BAT!S$81)+IF('Data Input - General'!$F$12=\"Yes\",0,Calc_BAT!S$75)","v":0},{"$f":"IF('Data Input - General'!$F$10=\"Yes\",0,Calc_BAT!T$81)+IF('Data Input - General'!$F$12=\"Yes\",0,Calc_BAT!T$75)","v":0},{"$f":"IF('Data Input - General'!$F$10=\"Yes\",0,Calc_BAT!U$81)+IF('Data Input - General'!$F$12=\"Yes\",0,Calc_BAT!U$75)","v":0},{"$f":"IF('Data Input - General'!$F$10=\"Yes\",0,Calc_BAT!V$81)+IF('Data Input - General'!$F$12=\"Yes\",0,Calc_BAT!V$75)","v":0},{"$f":"IF('Data Input - General'!$F$10=\"Yes\",0,Calc_BAT!W$81)+IF('Data Input - General'!$F$12=\"Yes\",0,Calc_BAT!W$75)","v":0},{"$f":"IF('Data Input - General'!$F$10=\"Yes\",0,Calc_BAT!X$81)+IF('Data Input - General'!$F$12=\"Yes\",0,Calc_BAT!X$75)","v":0},{"$f":"IF('Data Input - General'!$F$10=\"Yes\",0,Calc_BAT!Y$81)+IF('Data Input - General'!$F$12=\"Yes\",0,Calc_BAT!Y$75)","v":0},{"$f":"IF('Data Input - General'!$F$10=\"Yes\",0,Calc_BAT!Z$81)+IF('Data Input - General'!$F$12=\"Yes\",0,Calc_BAT!Z$75)","v":0},{"$f":"IF('Data Input - General'!$F$10=\"Yes\",0,Calc_BAT!AA$81)+IF('Data Input - General'!$F$12=\"Yes\",0,Calc_BAT!AA$75)","v":0},{"$f":"IF('Data Input - General'!$F$10=\"Yes\",0,Calc_BAT!AB$81)+IF('Data Input - General'!$F$12=\"Yes\",0,Calc_BAT!AB$75)","v":0},{"$f":"IF('Data Input - General'!$F$10=\"Yes\",0,Calc_BAT!AC$81)+IF('Data Input - General'!$F$12=\"Yes\",0,Calc_BAT!AC$75)","v":0},{"$f":"IF('Data Input - General'!$F$10=\"Yes\",0,Calc_BAT!AD$81)+IF('Data Input - General'!$F$12=\"Yes\",0,Calc_BAT!AD$75)","v":0},{"$f":"IF('Data Input - General'!$F$10=\"Yes\",0,Calc_BAT!AE$81)+IF('Data Input - General'!$F$12=\"Yes\",0,Calc_BAT!AE$75)","v":0},{"$f":"IF('Data Input - General'!$F$10=\"Yes\",0,Calc_BAT!AF$81)+IF('Data Input - General'!$F$12=\"Yes\",0,Calc_BAT!AF$75)","v":0},{"$f":"IF('Data Input - General'!$F$10=\"Yes\",0,Calc_BAT!AG$81)+IF('Data Input - General'!$F$12=\"Yes\",0,Calc_BAT!AG$75)","v":0},{"$f":"IF('Data Input - General'!$F$10=\"Yes\",0,Calc_BAT!AH$81)+IF('Data Input - General'!$F$12=\"Yes\",0,Calc_BAT!AH$75)","v":0},{"$f":"IF('Data Input - General'!$F$10=\"Yes\",0,Calc_BAT!AI$81)+IF('Data Input - General'!$F$12=\"Yes\",0,Calc_BAT!AI$75)","v":0},{"$f":"IF('Data Input - General'!$F$10=\"Yes\",0,Calc_BAT!AJ$81)+IF('Data Input - General'!$F$12=\"Yes\",0,Calc_BAT!AJ$75)","v":0},{"$f":"IF('Data Input - General'!$F$10=\"Yes\",0,Calc_BAT!AK$81)+IF('Data Input - General'!$F$12=\"Yes\",0,Calc_BAT!AK$75)","v":0},{"$f":"IF('Data Input - General'!$F$10=\"Yes\",0,Calc_BAT!AL$81)+IF('Data Input - General'!$F$12=\"Yes\",0,Calc_BAT!AL$75)","v":0},{"$f":"IF('Data Input - General'!$F$10=\"Yes\",0,Calc_BAT!AM$81)+IF('Data Input - General'!$F$12=\"Yes\",0,Calc_BAT!AM$75)","v":0},{"$f":"IF('Data Input - General'!$F$10=\"Yes\",0,Calc_BAT!AN$81)+IF('Data Input - General'!$F$12=\"Yes\",0,Calc_BAT!AN$75)","v":0},{"$f":"IF('Data Input - General'!$F$10=\"Yes\",0,Calc_BAT!AO$81)+IF('Data Input - General'!$F$12=\"Yes\",0,Calc_BAT!AO$75)","v":0},{"$f":"IF('Data Input - General'!$F$10=\"Yes\",0,Calc_BAT!AP$81)+IF('Data Input - General'!$F$12=\"Yes\",0,Calc_BAT!AP$75)","v":0},{"$f":"IF('Data Input - General'!$F$10=\"Yes\",0,Calc_BAT!AQ$81)+IF('Data Input - General'!$F$12=\"Yes\",0,Calc_BAT!AQ$75)","v":0},{"$f":"IF('Data Input - General'!$F$10=\"Yes\",0,Calc_BAT!AR$81)+IF('Data Input - General'!$F$12=\"Yes\",0,Calc_BAT!AR$75)","v":0},{"$f":"IF('Data Input - General'!$F$10=\"Yes\",0,Calc_BAT!AS$81)+IF('Data Input - General'!$F$12=\"Yes\",0,Calc_BAT!AS$75)","v":0},{"$f":"IF('Data Input - General'!$F$10=\"Yes\",0,Calc_BAT!AT$81)+IF('Data Input - General'!$F$12=\"Yes\",0,Calc_BAT!AT$75)","v":0},{"$f":"IF('Data Input - General'!$F$10=\"Yes\",0,Calc_BAT!AU$81)+IF('Data Input - General'!$F$12=\"Yes\",0,Calc_BAT!AU$75)","v":0},{"$f":"IF('Data Input - General'!$F$10=\"Yes\",0,Calc_BAT!AV$81)+IF('Data Input - General'!$F$12=\"Yes\",0,Calc_BAT!AV$75)","v":0},{"$f":"IF('Data Input - General'!$F$10=\"Yes\",0,Calc_BAT!AW$81)+IF('Data Input - General'!$F$12=\"Yes\",0,Calc_BAT!AW$75)","v":0},{"$f":"IF('Data Input - General'!$F$10=\"Yes\",0,Calc_BAT!AX$81)+IF('Data Input - General'!$F$12=\"Yes\",0,Calc_BAT!AX$75)","v":0},{"$f":"IF('Data Input - General'!$F$10=\"Yes\",0,Calc_BAT!AY$81)+IF('Data Input - General'!$F$12=\"Yes\",0,Calc_BAT!AY$75)","v":0},{"$f":"IF('Data Input - General'!$F$10=\"Yes\",0,Calc_BAT!AZ$81)+IF('Data Input - General'!$F$12=\"Yes\",0,Calc_BAT!AZ$75)","v":0},{"$f":"IF('Data Input - General'!$F$10=\"Yes\",0,Calc_BAT!BA$81)+IF('Data Input - General'!$F$12=\"Yes\",0,Calc_BAT!BA$75)","v":0},{"$f":"IF('Data Input - General'!$F$10=\"Yes\",0,Calc_BAT!BB$81)+IF('Data Input - General'!$F$12=\"Yes\",0,Calc_BAT!BB$75)","v":0},{"$f":"IF('Data Input - General'!$F$10=\"Yes\",0,Calc_BAT!BC$81)+IF('Data Input - General'!$F$12=\"Yes\",0,Calc_BAT!BC$75)","v":0},{"$f":"IF('Data Input - General'!$F$10=\"Yes\",0,Calc_BAT!BD$81)+IF('Data Input - General'!$F$12=\"Yes\",0,Calc_BAT!BD$75)","v":0},{"$f":"IF('Data Input - General'!$F$10=\"Yes\",0,Calc_BAT!BE$81)+IF('Data Input - General'!$F$12=\"Yes\",0,Calc_BAT!BE$75)","v":0},{"$f":"IF('Data Input - General'!$F$10=\"Yes\",0,Calc_BAT!BF$81)+IF('Data Input - General'!$F$12=\"Yes\",0,Calc_BAT!BF$75)","v":0},{"$f":"IF('Data Input - General'!$F$10=\"Yes\",0,Calc_BAT!BG$81)+IF('Data Input - General'!$F$12=\"Yes\",0,Calc_BAT!BG$75)","v":0},{"$f":"IF('Data Input - General'!$F$10=\"Yes\",0,Calc_BAT!BH$81)+IF('Data Input - General'!$F$12=\"Yes\",0,Calc_BAT!BH$75)","v":0},{"$f":"IF('Data Input - General'!$F$10=\"Yes\",0,Calc_BAT!BI$81)+IF('Data Input - General'!$F$12=\"Yes\",0,Calc_BAT!BI$75)","v":0},{"$f":"IF('Data Input - General'!$F$10=\"Yes\",0,Calc_BAT!BJ$81)+IF('Data Input - General'!$F$12=\"Yes\",0,Calc_BAT!BJ$75)","v":0},{"$f":"IF('Data Input - General'!$F$10=\"Yes\",0,Calc_BAT!BK$81)+IF('Data Input - General'!$F$12=\"Yes\",0,Calc_BAT!BK$75)","v":0},{"$f":"IF('Data Input - General'!$F$10=\"Yes\",0,Calc_BAT!BL$81)+IF('Data Input - General'!$F$12=\"Yes\",0,Calc_BAT!BL$75)","v":0},{"$f":"IF('Data Input - General'!$F$10=\"Yes\",0,Calc_BAT!BM$81)+IF('Data Input - General'!$F$12=\"Yes\",0,Calc_BAT!BM$75)","v":0},{"$f":"IF('Data Input - General'!$F$10=\"Yes\",0,Calc_BAT!BN$81)+IF('Data Input - General'!$F$12=\"Yes\",0,Calc_BAT!BN$75)","v":0},{"$f":"IF('Data Input - General'!$F$10=\"Yes\",0,Calc_BAT!BO$81)+IF('Data Input - General'!$F$12=\"Yes\",0,Calc_BAT!BO$75)","v":0},{"$f":"IF('Data Input - General'!$F$10=\"Yes\",0,Calc_BAT!BP$81)+IF('Data Input - General'!$F$12=\"Yes\",0,Calc_BAT!BP$75)","v":0},{"$f":"IF('Data Input - General'!$F$10=\"Yes\",0,Calc_BAT!BQ$81)+IF('Data Input - General'!$F$12=\"Yes\",0,Calc_BAT!BQ$75)","v":0},{"$f":"IF('Data Input - General'!$F$10=\"Yes\",0,Calc_BAT!BR$81)+IF('Data Input - General'!$F$12=\"Yes\",0,Calc_BAT!BR$75)","v":0},{"$f":"IF('Data Input - General'!$F$10=\"Yes\",0,Calc_BAT!BS$81)+IF('Data Input - General'!$F$12=\"Yes\",0,Calc_BAT!BS$75)","v":0},{"$f":"IF('Data Input - General'!$F$10=\"Yes\",0,Calc_BAT!BT$81)+IF('Data Input - General'!$F$12=\"Yes\",0,Calc_BAT!BT$75)","v":0},{"$f":"IF('Data Input - General'!$F$10=\"Yes\",0,Calc_BAT!BU$81)+IF('Data Input - General'!$F$12=\"Yes\",0,Calc_BAT!BU$75)","v":0},{"$f":"IF('Data Input - General'!$F$10=\"Yes\",0,Calc_BAT!BV$81)+IF('Data Input - General'!$F$12=\"Yes\",0,Calc_BAT!BV$75)","v":0},{"$f":"IF('Data Input - General'!$F$10=\"Yes\",0,Calc_BAT!BW$81)+IF('Data Input - General'!$F$12=\"Yes\",0,Calc_BAT!BW$75)","v":0},{"$f":"IF('Data Input - General'!$F$10=\"Yes\",0,Calc_BAT!BX$81)+IF('Data Input - General'!$F$12=\"Yes\",0,Calc_BAT!BX$75)","v":0},{"$f":"IF('Data Input - General'!$F$10=\"Yes\",0,Calc_BAT!BY$81)+IF('Data Input - General'!$F$12=\"Yes\",0,Calc_BAT!BY$75)","v":0},{"$f":"IF('Data Input - General'!$F$10=\"Yes\",0,Calc_BAT!BZ$81)+IF('Data Input - General'!$F$12=\"Yes\",0,Calc_BAT!BZ$75)","v":0},{"$f":"IF('Data Input - General'!$F$10=\"Yes\",0,Calc_BAT!CA$81)+IF('Data Input - General'!$F$12=\"Yes\",0,Calc_BAT!CA$75)","v":0},{"$f":"IF('Data Input - General'!$F$10=\"Yes\",0,Calc_BAT!CB$81)+IF('Data Input - General'!$F$12=\"Yes\",0,Calc_BAT!CB$75)","v":0},{"$f":"IF('Data Input - General'!$F$10=\"Yes\",0,Calc_BAT!CC$81)+IF('Data Input - General'!$F$12=\"Yes\",0,Calc_BAT!CC$75)","v":0},{"$f":"IF('Data Input - General'!$F$10=\"Yes\",0,Calc_BAT!CD$81)+IF('Data Input - General'!$F$12=\"Yes\",0,Calc_BAT!CD$75)","v":0},{"$f":"IF('Data Input - General'!$F$10=\"Yes\",0,Calc_BAT!CE$81)+IF('Data Input - General'!$F$12=\"Yes\",0,Calc_BAT!CE$75)","v":0},{"$f":"IF('Data Input - General'!$F$10=\"Yes\",0,Calc_BAT!CF$81)+IF('Data Input - General'!$F$12=\"Yes\",0,Calc_BAT!CF$75)","v":0},{"$f":"IF('Data Input - General'!$F$10=\"Yes\",0,Calc_BAT!CG$81)+IF('Data Input - General'!$F$12=\"Yes\",0,Calc_BAT!CG$75)","v":0},{"$f":"IF('Data Input - General'!$F$10=\"Yes\",0,Calc_BAT!CH$81)+IF('Data Input - General'!$F$12=\"Yes\",0,Calc_BAT!CH$75)","v":0},{"$f":"IF('Data Input - General'!$F$10=\"Yes\",0,Calc_BAT!CI$81)+IF('Data Input - General'!$F$12=\"Yes\",0,Calc_BAT!CI$75)","v":0},{"$f":"IF('Data Input - General'!$F$10=\"Yes\",0,Calc_BAT!CJ$81)+IF('Data Input - General'!$F$12=\"Yes\",0,Calc_BAT!CJ$75)","v":0},{"$f":"IF('Data Input - General'!$F$10=\"Yes\",0,Calc_BAT!CK$81)+IF('Data Input - General'!$F$12=\"Yes\",0,Calc_BAT!CK$75)","v":0},{"$f":"IF('Data Input - General'!$F$10=\"Yes\",0,Calc_BAT!CL$81)+IF('Data Input - General'!$F$12=\"Yes\",0,Calc_BAT!CL$75)","v":0},{"$f":"IF('Data Input - General'!$F$10=\"Yes\",0,Calc_BAT!CM$81)+IF('Data Input - General'!$F$12=\"Yes\",0,Calc_BAT!CM$75)","v":0},{"$f":"IF('Data Input - General'!$F$10=\"Yes\",0,Calc_BAT!CN$81)+IF('Data Input - General'!$F$12=\"Yes\",0,Calc_BAT!CN$75)","v":0},{"$f":"IF('Data Input - General'!$F$10=\"Yes\",0,Calc_BAT!CO$81)+IF('Data Input - General'!$F$12=\"Yes\",0,Calc_BAT!CO$75)","v":0},{"$f":"IF('Data Input - General'!$F$10=\"Yes\",0,Calc_BAT!CP$81)+IF('Data Input - General'!$F$12=\"Yes\",0,Calc_BAT!CP$75)","v":0},{"$f":"IF('Data Input - General'!$F$10=\"Yes\",0,Calc_BAT!CQ$81)+IF('Data Input - General'!$F$12=\"Yes\",0,Calc_BAT!CQ$75)","v":0},{"$f":"IF('Data Input - General'!$F$10=\"Yes\",0,Calc_BAT!CR$81)+IF('Data Input - General'!$F$12=\"Yes\",0,Calc_BAT!CR$75)","v":0},{"$f":"IF('Data Input - General'!$F$10=\"Yes\",0,Calc_BAT!CS$81)+IF('Data Input - General'!$F$12=\"Yes\",0,Calc_BAT!CS$75)","v":0},{"$f":"IF('Data Input - General'!$F$10=\"Yes\",0,Calc_BAT!CT$81)+IF('Data Input - General'!$F$12=\"Yes\",0,Calc_BAT!CT$75)","v":0},{"$f":"IF('Data Input - General'!$F$10=\"Yes\",0,Calc_BAT!CU$81)+IF('Data Input - General'!$F$12=\"Yes\",0,Calc_BAT!CU$75)","v":0},{"$f":"IF('Data Input - General'!$F$10=\"Yes\",0,Calc_BAT!CV$81)+IF('Data Input - General'!$F$12=\"Yes\",0,Calc_BAT!CV$75)","v":0},{"$f":"IF('Data Input - General'!$F$10=\"Yes\",0,Calc_BAT!CW$81)+IF('Data Input - General'!$F$12=\"Yes\",0,Calc_BAT!CW$75)","v":0},{"$f":"IF('Data Input - General'!$F$10=\"Yes\",0,Calc_BAT!CX$81)+IF('Data Input - General'!$F$12=\"Yes\",0,Calc_BAT!CX$75)","v":0},{"$f":"IF('Data Input - General'!$F$10=\"Yes\",0,Calc_BAT!CY$81)+IF('Data Input - General'!$F$12=\"Yes\",0,Calc_BAT!CY$75)","v":0}]
[null,"Value TRADED","£000's",{"$f":"IFERROR(INDEX('Carbon Prices'!$D$10:$CP$15,1,MATCH(Calc_BAT!D$6,'Carbon Prices'!$D$9:$CP$9,0))/1000,0)","v":0},{"$f":"IFERROR(INDEX('Carbon Prices'!$D$10:$CP$15,1,MATCH(Calc_BAT!E$6,'Carbon Prices'!$D$9:$CP$9,0))/1000,0)","v":0},{"$f":"IFERROR(INDEX('Carbon Prices'!$D$10:$CP$15,1,MATCH(Calc_BAT!F$6,'Carbon Prices'!$D$9:$CP$9,0))/1000,0)","v":4.2168152036321628E-3},{"$f":"IFERROR(INDEX('Carbon Prices'!$D$10:$CP$15,1,MATCH(Calc_BAT!G$6,'Carbon Prices'!$D$9:$CP$9,0))/1000,0)","v":8.4336304072643257E-3},{"$f":"IFERROR(INDEX('Carbon Prices'!$D$10:$CP$15,1,MATCH(Calc_BAT!H$6,'Carbon Prices'!$D$9:$CP$9,0))/1000,0)","v":1.2650445610896488E-2},{"$f":"IFERROR(INDEX('Carbon Prices'!$D$10:$CP$15,1,MATCH(Calc_BAT!I$6,'Carbon Prices'!$D$9:$CP$9,0))/1000,0)","v":1.6867260814528651E-2},{"$f":"IFERROR(INDEX('Carbon Prices'!$D$10:$CP$15,1,MATCH(Calc_BAT!J$6,'Carbon Prices'!$D$9:$CP$9,0))/1000,0)","v":2.1084076018160813E-2},{"$f":"IFERROR(INDEX('Carbon Prices'!$D$10:$CP$15,1,MATCH(Calc_BAT!K$6,'Carbon Prices'!$D$9:$CP$9,0))/1000,0)","v":2.5300891221792975E-2},{"$f":"IFERROR(INDEX('Carbon Prices'!$D$10:$CP$15,1,MATCH(Calc_BAT!L$6,'Carbon Prices'!$D$9:$CP$9,0))/1000,0)","v":2.9517706425425144E-2},{"$f":"IFERROR(INDEX('Carbon Prices'!$D$10:$CP$15,1,MATCH(Calc_BAT!M$6,'Carbon Prices'!$D$9:$CP$9,0))/1000,0)","v":3.3734521629057303E-2},{"$f":"IFERROR(INDEX('Carbon Prices'!$D$10:$CP$15,1,MATCH(Calc_BAT!N$6,'Carbon Prices'!$D$9:$CP$9,0))/1000,0)","v":3.7951336832689468E-2},{"$f":"IFERROR(INDEX('Carbon Prices'!$D$10:$CP$15,1,MATCH(Calc_BAT!O$6,'Carbon Prices'!$D$9:$CP$9,0))/1000,0)","v":4.2168152036321627E-2},{"$f":"IFERROR(INDEX('Carbon Prices'!$D$10:$CP$15,1,MATCH(Calc_BAT!P$6,'Carbon Prices'!$D$9:$CP$9,0))/1000,0)","v":4.6083766153980084E-2},{"$f":"IFERROR(INDEX('Carbon Prices'!$D$10:$CP$15,1,MATCH(Calc_BAT!Q$6,'Carbon Prices'!$D$9:$CP$9,0))/1000,0)","v":4.999938027163852E-2},{"$f":"IFERROR(INDEX('Carbon Prices'!$D$10:$CP$15,1,MATCH(Calc_BAT!R$6,'Carbon Prices'!$D$9:$CP$9,0))/1000,0)","v":5.3914994389296957E-2},{"$f":"IFERROR(INDEX('Carbon Prices'!$D$10:$CP$15,1,MATCH(Calc_BAT!S$6,'Carbon Prices'!$D$9:$CP$9,0))/1000,0)","v":5.78306085069554E-2},{"$f":"IFERROR(INDEX('Carbon Prices'!$D$10:$CP$15,1,MATCH(Calc_BAT!T$6,'Carbon Prices'!$D$9:$CP$9,0))/1000,0)","v":6.1746222624613836E-2},{"$f":"IFERROR(INDEX('Carbon Prices'!$D$10:$CP$15,1,MATCH(Calc_BAT!U$6,'Carbon Prices'!$D$9:$CP$9,0))/1000,0)","v":6.5661836742272273E-2},{"$f":"IFERROR(INDEX('Carbon Prices'!$D$10:$CP$15,1,MATCH(Calc_BAT!V$6,'Carbon Prices'!$D$9:$CP$9,0))/1000,0)","v":6.9577450859930709E-2},{"$f":"IFERROR(INDEX('Carbon Prices'!$D$10:$CP$15,1,MATCH(Calc_BAT!W$6,'Carbon Prices'!$D$9:$CP$9,0))/1000,0)","v":7.3493064977589145E-2},{"$f":"IFERROR(INDEX('Carbon Prices'!$D$10:$CP$15,1,MATCH(Calc_BAT!X$6,'Carbon Prices'!$D$9:$CP$9,0))/1000,0)","v":7.7408679095247609E-2},{"$f":"IFERROR(INDEX('Carbon Prices'!$D$10:$CP$15,1,MATCH(Calc_BAT!Y$6,'Carbon Prices'!$D$9:$CP$9,0))/1000,0)","v":8.1324293212906046E-2},{"$f":"IFERROR(INDEX('Carbon Prices'!$D$10:$CP$15,1,MATCH(Calc_BAT!Z$6,'Carbon Prices'!$D$9:$CP$9,0))/1000,0)","v":8.5239907330564482E-2},{"$f":"IFERROR(INDEX('Carbon Prices'!$D$10:$CP$15,1,MATCH(Calc_BAT!AA$6,'Carbon Prices'!$D$9:$CP$9,0))/1000,0)","v":8.9155521448222919E-2},{"$f":"IFERROR(INDEX('Carbon Prices'!$D$10:$CP$15,1,MATCH(Calc_BAT!AB$6,'Carbon Prices'!$D$9:$CP$9,0))/1000,0)","v":9.3071135565881355E-2},{"$f":"IFERROR(INDEX('Carbon Prices'!$D$10:$CP$15,1,MATCH(Calc_BAT!AC$6,'Carbon Prices'!$D$9:$CP$9,0))/1000,0)","v":9.6986749683539791E-2},{"$f":"IFERROR(INDEX('Carbon Prices'!$D$10:$CP$15,1,MATCH(Calc_BAT!AD$6,'Carbon Prices'!$D$9:$CP$9,0))/1000,0)","v":0.10090236380119821},{"$f":"IFERROR(INDEX('Carbon Prices'!$D$10:$CP$15,1,MATCH(Calc_BAT!AE$6,'Carbon Prices'!$D$9:$CP$9,0))/1000,0)","v":0.10481797791885665},{"$f":"IFERROR(INDEX('Carbon Prices'!$D$10:$CP$15,1,MATCH(Calc_BAT!AF$6,'Carbon Prices'!$D$9:$CP$9,0))/1000,0)","v":0.1087335920365151},{"$f":"IFERROR(INDEX('Carbon Prices'!$D$10:$CP$15,1,MATCH(Calc_BAT!AG$6,'Carbon Prices'!$D$9:$CP$9,0))/1000,0)","v":0.11264920615417354},{"$f":"IFERROR(INDEX('Carbon Prices'!$D$10:$CP$15,1,MATCH(Calc_BAT!AH$6,'Carbon Prices'!$D$9:$CP$9,0))/1000,0)","v":0.11656482027183197},{"$f":"IFERROR(INDEX('Carbon Prices'!$D$10:$CP$15,1,MATCH(Calc_BAT!AI$6,'Carbon Prices'!$D$9:$CP$9,0))/1000,0)","v":0},{"$f":"IFERROR(INDEX('Carbon Prices'!$D$10:$CP$15,1,MATCH(Calc_BAT!AJ$6,'Carbon Prices'!$D$9:$CP$9,0))/1000,0)","v":0},{"$f":"IFERROR(INDEX('Carbon Prices'!$D$10:$CP$15,1,MATCH(Calc_BAT!AK$6,'Carbon Prices'!$D$9:$CP$9,0))/1000,0)","v":0},{"$f":"IFERROR(INDEX('Carbon Prices'!$D$10:$CP$15,1,MATCH(Calc_BAT!AL$6,'Carbon Prices'!$D$9:$CP$9,0))/1000,0)","v":0},{"$f":"IFERROR(INDEX('Carbon Prices'!$D$10:$CP$15,1,MATCH(Calc_BAT!AM$6,'Carbon Prices'!$D$9:$CP$9,0))/1000,0)","v":0},{"$f":"IFERROR(INDEX('Carbon Prices'!$D$10:$CP$15,1,MATCH(Calc_BAT!AN$6,'Carbon Prices'!$D$9:$CP$9,0))/1000,0)","v":0},{"$f":"IFERROR(INDEX('Carbon Prices'!$D$10:$CP$15,1,MATCH(Calc_BAT!AO$6,'Carbon Prices'!$D$9:$CP$9,0))/1000,0)","v":0},{"$f":"IFERROR(INDEX('Carbon Prices'!$D$10:$CP$15,1,MATCH(Calc_BAT!AP$6,'Carbon Prices'!$D$9:$CP$9,0))/1000,0)","v":0},{"$f":"IFERROR(INDEX('Carbon Prices'!$D$10:$CP$15,1,MATCH(Calc_BAT!AQ$6,'Carbon Prices'!$D$9:$CP$9,0))/1000,0)","v":0},{"$f":"IFERROR(INDEX('Carbon Prices'!$D$10:$CP$15,1,MATCH(Calc_BAT!AR$6,'Carbon Prices'!$D$9:$CP$9,0))/1000,0)","v":0},{"$f":"IFERROR(INDEX('Carbon Prices'!$D$10:$CP$15,1,MATCH(Calc_BAT!AS$6,'Carbon Prices'!$D$9:$CP$9,0))/1000,0)","v":0},{"$f":"IFERROR(INDEX('Carbon Prices'!$D$10:$CP$15,1,MATCH(Calc_BAT!AT$6,'Carbon Prices'!$D$9:$CP$9,0))/1000,0)","v":0},{"$f":"IFERROR(INDEX('Carbon Prices'!$D$10:$CP$15,1,MATCH(Calc_BAT!AU$6,'Carbon Prices'!$D$9:$CP$9,0))/1000,0)","v":0},{"$f":"IFERROR(INDEX('Carbon Prices'!$D$10:$CP$15,1,MATCH(Calc_BAT!AV$6,'Carbon Prices'!$D$9:$CP$9,0))/1000,0)","v":0},{"$f":"IFERROR(INDEX('Carbon Prices'!$D$10:$CP$15,1,MATCH(Calc_BAT!AW$6,'Carbon Prices'!$D$9:$CP$9,0))/1000,0)","v":0},{"$f":"IFERROR(INDEX('Carbon Prices'!$D$10:$CP$15,1,MATCH(Calc_BAT!AX$6,'Carbon Prices'!$D$9:$CP$9,0))/1000,0)","v":0},{"$f":"IFERROR(INDEX('Carbon Prices'!$D$10:$CP$15,1,MATCH(Calc_BAT!AY$6,'Carbon Prices'!$D$9:$CP$9,0))/1000,0)","v":0},{"$f":"IFERROR(INDEX('Carbon Prices'!$D$10:$CP$15,1,MATCH(Calc_BAT!AZ$6,'Carbon Prices'!$D$9:$CP$9,0))/1000,0)","v":0},{"$f":"IFERROR(INDEX('Carbon Prices'!$D$10:$CP$15,1,MATCH(Calc_BAT!BA$6,'Carbon Prices'!$D$9:$CP$9,0))/1000,0)","v":0},{"$f":"IFERROR(INDEX('Carbon Prices'!$D$10:$CP$15,1,MATCH(Calc_BAT!BB$6,'Carbon Prices'!$D$9:$CP$9,0))/1000,0)","v":0},{"$f":"IFERROR(INDEX('Carbon Prices'!$D$10:$CP$15,1,MATCH(Calc_BAT!BC$6,'Carbon Prices'!$D$9:$CP$9,0))/1000,0)","v":0},{"$f":"IFERROR(INDEX('Carbon Prices'!$D$10:$CP$15,1,MATCH(Calc_BAT!BD$6,'Carbon Prices'!$D$9:$CP$9,0))/1000,0)","v":0},{"$f":"IFERROR(INDEX('Carbon Prices'!$D$10:$CP$15,1,MATCH(Calc_BAT!BE$6,'Carbon Prices'!$D$9:$CP$9,0))/1000,0)","v":0},{"$f":"IFERROR(INDEX('Carbon Prices'!$D$10:$CP$15,1,MATCH(Calc_BAT!BF$6,'Carbon Prices'!$D$9:$CP$9,0))/1000,0)","v":0},{"$f":"IFERROR(INDEX('Carbon Prices'!$D$10:$CP$15,1,MATCH(Calc_BAT!BG$6,'Carbon Prices'!$D$9:$CP$9,0))/1000,0)","v":0},{"$f":"IFERROR(INDEX('Carbon Prices'!$D$10:$CP$15,1,MATCH(Calc_BAT!BH$6,'Carbon Prices'!$D$9:$CP$9,0))/1000,0)","v":0},{"$f":"IFERROR(INDEX('Carbon Prices'!$D$10:$CP$15,1,MATCH(Calc_BAT!BI$6,'Carbon Prices'!$D$9:$CP$9,0))/1000,0)","v":0},{"$f":"IFERROR(INDEX('Carbon Prices'!$D$10:$CP$15,1,MATCH(Calc_BAT!BJ$6,'Carbon Prices'!$D$9:$CP$9,0))/1000,0)","v":0},{"$f":"IFERROR(INDEX('Carbon Prices'!$D$10:$CP$15,1,MATCH(Calc_BAT!BK$6,'Carbon Prices'!$D$9:$CP$9,0))/1000,0)","v":0},{"$f":"IFERROR(INDEX('Carbon Prices'!$D$10:$CP$15,1,MATCH(Calc_BAT!BL$6,'Carbon Prices'!$D$9:$CP$9,0))/1000,0)","v":0},{"$f":"IFERROR(INDEX('Carbon Prices'!$D$10:$CP$15,1,MATCH(Calc_BAT!BM$6,'Carbon Prices'!$D$9:$CP$9,0))/1000,0)","v":0},{"$f":"IFERROR(INDEX('Carbon Prices'!$D$10:$CP$15,1,MATCH(Calc_BAT!BN$6,'Carbon Prices'!$D$9:$CP$9,0))/1000,0)","v":0},{"$f":"IFERROR(INDEX('Carbon Prices'!$D$10:$CP$15,1,MATCH(Calc_BAT!BO$6,'Carbon Prices'!$D$9:$CP$9,0))/1000,0)","v":0},{"$f":"IFERROR(INDEX('Carbon Prices'!$D$10:$CP$15,1,MATCH(Calc_BAT!BP$6,'Carbon Prices'!$D$9:$CP$9,0))/1000,0)","v":0},{"$f":"IFERROR(INDEX('Carbon Prices'!$D$10:$CP$15,1,MATCH(Calc_BAT!BQ$6,'Carbon Prices'!$D$9:$CP$9,0))/1000,0)","v":0},{"$f":"IFERROR(INDEX('Carbon Prices'!$D$10:$CP$15,1,MATCH(Calc_BAT!BR$6,'Carbon Prices'!$D$9:$CP$9,0))/1000,0)","v":0},{"$f":"IFERROR(INDEX('Carbon Prices'!$D$10:$CP$15,1,MATCH(Calc_BAT!BS$6,'Carbon Prices'!$D$9:$CP$9,0))/1000,0)","v":0},{"$f":"IFERROR(INDEX('Carbon Prices'!$D$10:$CP$15,1,MATCH(Calc_BAT!BT$6,'Carbon Prices'!$D$9:$CP$9,0))/1000,0)","v":0},{"$f":"IFERROR(INDEX('Carbon Prices'!$D$10:$CP$15,1,MATCH(Calc_BAT!BU$6,'Carbon Prices'!$D$9:$CP$9,0))/1000,0)","v":0},{"$f":"IFERROR(INDEX('Carbon Prices'!$D$10:$CP$15,1,MATCH(Calc_BAT!BV$6,'Carbon Prices'!$D$9:$CP$9,0))/1000,0)","v":0},{"$f":"IFERROR(INDEX('Carbon Prices'!$D$10:$CP$15,1,MATCH(Calc_BAT!BW$6,'Carbon Prices'!$D$9:$CP$9,0))/1000,0)","v":0},{"$f":"IFERROR(INDEX('Carbon Prices'!$D$10:$CP$15,1,MATCH(Calc_BAT!BX$6,'Carbon Prices'!$D$9:$CP$9,0))/1000,0)","v":0},{"$f":"IFERROR(INDEX('Carbon Prices'!$D$10:$CP$15,1,MATCH(Calc_BAT!BY$6,'Carbon Prices'!$D$9:$CP$9,0))/1000,0)","v":0},{"$f":"IFERROR(INDEX('Carbon Prices'!$D$10:$CP$15,1,MATCH(Calc_BAT!BZ$6,'Carbon Prices'!$D$9:$CP$9,0))/1000,0)","v":0},{"$f":"IFERROR(INDEX('Carbon Prices'!$D$10:$CP$15,1,MATCH(Calc_BAT!CA$6,'Carbon Prices'!$D$9:$CP$9,0))/1000,0)","v":0},{"$f":"IFERROR(INDEX('Carbon Prices'!$D$10:$CP$15,1,MATCH(Calc_BAT!CB$6,'Carbon Prices'!$D$9:$CP$9,0))/1000,0)","v":0},{"$f":"IFERROR(INDEX('Carbon Prices'!$D$10:$CP$15,1,MATCH(Calc_BAT!CC$6,'Carbon Prices'!$D$9:$CP$9,0))/1000,0)","v":0},{"$f":"IFERROR(INDEX('Carbon Prices'!$D$10:$CP$15,1,MATCH(Calc_BAT!CD$6,'Carbon Prices'!$D$9:$CP$9,0))/1000,0)","v":0},{"$f":"IFERROR(INDEX('Carbon Prices'!$D$10:$CP$15,1,MATCH(Calc_BAT!CE$6,'Carbon Prices'!$D$9:$CP$9,0))/1000,0)","v":0},{"$f":"IFERROR(INDEX('Carbon Prices'!$D$10:$CP$15,1,MATCH(Calc_BAT!CF$6,'Carbon Prices'!$D$9:$CP$9,0))/1000,0)","v":0},{"$f":"IFERROR(INDEX('Carbon Prices'!$D$10:$CP$15,1,MATCH(Calc_BAT!CG$6,'Carbon Prices'!$D$9:$CP$9,0))/1000,0)","v":0},{"$f":"IFERROR(INDEX('Carbon Prices'!$D$10:$CP$15,1,MATCH(Calc_BAT!CH$6,'Carbon Prices'!$D$9:$CP$9,0))/1000,0)","v":0},{"$f":"IFERROR(INDEX('Carbon Prices'!$D$10:$CP$15,1,MATCH(Calc_BAT!CI$6,'Carbon Prices'!$D$9:$CP$9,0))/1000,0)","v":0},{"$f":"IFERROR(INDEX('Carbon Prices'!$D$10:$CP$15,1,MATCH(Calc_BAT!CJ$6,'Carbon Prices'!$D$9:$CP$9,0))/1000,0)","v":0},{"$f":"IFERROR(INDEX('Carbon Prices'!$D$10:$CP$15,1,MATCH(Calc_BAT!CK$6,'Carbon Prices'!$D$9:$CP$9,0))/1000,0)","v":0},{"$f":"IFERROR(INDEX('Carbon Prices'!$D$10:$CP$15,1,MATCH(Calc_BAT!CL$6,'Carbon Prices'!$D$9:$CP$9,0))/1000,0)","v":0},{"$f":"IFERROR(INDEX('Carbon Prices'!$D$10:$CP$15,1,MATCH(Calc_BAT!CM$6,'Carbon Prices'!$D$9:$CP$9,0))/1000,0)","v":0},{"$f":"IFERROR(INDEX('Carbon Prices'!$D$10:$CP$15,1,MATCH(Calc_BAT!CN$6,'Carbon Prices'!$D$9:$CP$9,0))/1000,0)","v":0},{"$f":"IFERROR(INDEX('Carbon Prices'!$D$10:$CP$15,1,MATCH(Calc_BAT!CO$6,'Carbon Prices'!$D$9:$CP$9,0))/1000,0)","v":0},{"$f":"IFERROR(INDEX('Carbon Prices'!$D$10:$CP$15,1,MATCH(Calc_BAT!CP$6,'Carbon Prices'!$D$9:$CP$9,0))/1000,0)","v":0},{"$f":"IFERROR(INDEX('Carbon Prices'!$D$10:$CP$15,1,MATCH(Calc_BAT!CQ$6,'Carbon Prices'!$D$9:$CP$9,0))/1000,0)","v":0},{"$f":"IFERROR(INDEX('Carbon Prices'!$D$10:$CP$15,1,MATCH(Calc_BAT!CR$6,'Carbon Prices'!$D$9:$CP$9,0))/1000,0)","v":0},{"$f":"IFERROR(INDEX('Carbon Prices'!$D$10:$CP$15,1,MATCH(Calc_BAT!CS$6,'Carbon Prices'!$D$9:$CP$9,0))/1000,0)","v":0},{"$f":"IFERROR(INDEX('Carbon Prices'!$D$10:$CP$15,1,MATCH(Calc_BAT!CT$6,'Carbon Prices'!$D$9:$CP$9,0))/1000,0)","v":0},{"$f":"IFERROR(INDEX('Carbon Prices'!$D$10:$CP$15,1,MATCH(Calc_BAT!CU$6,'Carbon Prices'!$D$9:$CP$9,0))/1000,0)","v":0},{"$f":"IFERROR(INDEX('Carbon Prices'!$D$10:$CP$15,1,MATCH(Calc_BAT!CV$6,'Carbon Prices'!$D$9:$CP$9,0))/1000,0)","v":0},{"$f":"IFERROR(INDEX('Carbon Prices'!$D$10:$CP$15,1,MATCH(Calc_BAT!CW$6,'Carbon Prices'!$D$9:$CP$9,0))/1000,0)","v":0},{"$f":"IFERROR(INDEX('Carbon Prices'!$D$10:$CP$15,1,MATCH(Calc_BAT!CX$6,'Carbon Prices'!$D$9:$CP$9,0))/1000,0)","v":0},{"$f":"IFERROR(INDEX('Carbon Prices'!$D$10:$CP$15,1,MATCH(Calc_BAT!CY$6,'Carbon Prices'!$D$9:$CP$9,0))/1000,0)","v":0}]
[null,"Total NON-TRADED","£000's",{"$f":"IFERROR(INDEX('Carbon Prices'!$D$10:$CP$15,4,MATCH(Calc_BAT!D$6,'Carbon Prices'!$D$9:$CP$9,0))/1000,0)","v":3.560998060773117E-2},{"$f":"IFERROR(INDEX('Carbon Prices'!$D$10:$CP$15,4,MATCH(Calc_BAT!E$6,'Carbon Prices'!$D$9:$CP$9,0))/1000,0)","v":3.6144130316847128E-2},{"$f":"IFERROR(INDEX('Carbon Prices'!$D$10:$CP$15,4,MATCH(Calc_BAT!F$6,'Carbon Prices'!$D$9:$CP$9,0))/1000,0)","v":3.6746532488794573E-2},{"$f":"IFERROR(INDEX('Carbon Prices'!$D$10:$CP$15,4,MATCH(Calc_BAT!G$6,'Carbon Prices'!$D$9:$CP$9,0))/1000,0)","v":3.7348934660742031E-2},{"$f":"IFERROR(INDEX('Carbon Prices'!$D$10:$CP$15,4,MATCH(Calc_BAT!H$6,'Carbon Prices'!$D$9:$CP$9,0))/1000,0)","v":3.7951336832689482E-2},{"$f":"IFERROR(INDEX('Carbon Prices'!$D$10:$CP$15,4,MATCH(Calc_BAT!I$6,'Carbon Prices'!$D$9:$CP$9,0))/1000,0)","v":3.8553739004636933E-2},{"$f":"IFERROR(INDEX('Carbon Prices'!$D$10:$CP$15,4,MATCH(Calc_BAT!J$6,'Carbon Prices'!$D$9:$CP$9,0))/1000,0)","v":3.9156141176584384E-2},{"$f":"IFERROR(INDEX('Carbon Prices'!$D$10:$CP$15,4,MATCH(Calc_BAT!K$6,'Carbon Prices'!$D$9:$CP$9,0))/1000,0)","v":3.9758543348531836E-2},{"$f":"IFERROR(INDEX('Carbon Prices'!$D$10:$CP$15,4,MATCH(Calc_BAT!L$6,'Carbon Prices'!$D$9:$CP$9,0))/1000,0)","v":4.0360945520479294E-2},{"$f":"IFERROR(INDEX('Carbon Prices'!$D$10:$CP$15,4,MATCH(Calc_BAT!M$6,'Carbon Prices'!$D$9:$CP$9,0))/1000,0)","v":4.0963347692426738E-2},{"$f":"IFERROR(INDEX('Carbon Prices'!$D$10:$CP$15,4,MATCH(Calc_BAT!N$6,'Carbon Prices'!$D$9:$CP$9,0))/1000,0)","v":4.1565749864374189E-2},{"$f":"IFERROR(INDEX('Carbon Prices'!$D$10:$CP$15,4,MATCH(Calc_BAT!O$6,'Carbon Prices'!$D$9:$CP$9,0))/1000,0)","v":4.2168152036321647E-2},{"$f":"IFERROR(INDEX('Carbon Prices'!$D$10:$CP$15,4,MATCH(Calc_BAT!P$6,'Carbon Prices'!$D$9:$CP$9,0))/1000,0)","v":4.6083766153980084E-2},{"$f":"IFERROR(INDEX('Carbon Prices'!$D$10:$CP$15,4,MATCH(Calc_BAT!Q$6,'Carbon Prices'!$D$9:$CP$9,0))/1000,0)","v":4.999938027163852E-2},{"$f":"IFERROR(INDEX('Carbon Prices'!$D$10:$CP$15,4,MATCH(Calc_BAT!R$6,'Carbon Prices'!$D$9:$CP$9,0))/1000,0)","v":5.3914994389296957E-2},{"$f":"IFERROR(INDEX('Carbon Prices'!$D$10:$CP$15,4,MATCH(Calc_BAT!S$6,'Carbon Prices'!$D$9:$CP$9,0))/1000,0)","v":5.78306085069554E-2},{"$f":"IFERROR(INDEX('Carbon Prices'!$D$10:$CP$15,4,MATCH(Calc_BAT!T$6,'Carbon Prices'!$D$9:$CP$9,0))/1000,0)","v":6.1746222624613836E-2},{"$f":"IFERROR(INDEX('Carbon Prices'!$D$10:$CP$15,4,MATCH(Calc_BAT!U$6,'Carbon Prices'!$D$9:$CP$9,0))/1000,0)","v":6.5661836742272273E-2},{"$f":"IFERROR(INDEX('Carbon Prices'!$D$10:$CP$15,4,MATCH(Calc_BAT!V$6,'Carbon Prices'!$D$9:$CP$9,0))/1000,0)","v":6.9577450859930709E-2},{"$f":"IFERROR(INDEX('Carbon Prices'!$D$10:$CP$15,4,MATCH(Calc_BAT!W$6,'Carbon Prices'!$D$9:$CP$9,0))/1000,0)","v":7.3493064977589145E-2},{"$f":"IFERROR(INDEX('Carbon Prices'!$D$10:$CP$15,4,MATCH(Calc_BAT!X$6,'Carbon Prices'!$D$9:$CP$9,0))/1000,0)","v":7.7408679095247609E-2},{"$f":"IFERROR(INDEX('Carbon Prices'!$D$10:$CP$15,4,MATCH(Calc_BAT!Y$6,'Carbon Prices'!$D$9:$CP$9,0))/1000,0)","v":8.1324293212906046E-2},{"$f":"IFERROR(INDEX('Carbon Prices'!$D$10:$CP$15,4,MATCH(Calc_BAT!Z$6,'Carbon Prices'!$D$9:$CP$9,0))/1000,0)","v":8.5239907330564482E-2},{"$f":"IFERROR(INDEX('Carbon Prices'!$D$10:$CP$15,4,MATCH(Calc_BAT!AA$6,'Carbon Prices'!$D$9:$CP$9,0))/1000,0)","v":8.9155521448222919E-2},{"$f":"IFERROR(INDEX('Carbon Prices'!$D$10:$CP$15,4,MATCH(Calc_BAT!AB$6,'Carbon Prices'!$D$9:$CP$9,0))/1000,0)","v":9.3071135565881355E-2},{"$f":"IFERROR(INDEX('Carbon Prices'!$D$10:$CP$15,4,MATCH(Calc_BAT!AC$6,'Carbon Prices'!$D$9:$CP$9,0))/1000,0)","v":9.6986749683539791E-2},{"$f":"IFERROR(INDEX('Carbon Prices'!$D$10:$CP$15,4,MATCH(Calc_BAT!AD$6,'Carbon Prices'!$D$9:$CP$9,0))/1000,0)","v":0.10090236380119821},{"$f":"IFERROR(INDEX('Carbon Prices'!$D$10:$CP$15,4,MATCH(Calc_BAT!AE$6,'Carbon Prices'!$D$9:$CP$9,0))/1000,0)","v":0.10481797791885665},{"$f":"IFERROR(INDEX('Carbon Prices'!$D$10:$CP$15,4,MATCH(Calc_BAT!AF$6,'Carbon Prices'!$D$9:$CP$9,0))/1000,0)","v":0.1087335920365151},{"$f":"IFERROR(INDEX('Carbon Prices'!$D$10:$CP$15,4,MATCH(Calc_BAT!AG$6,'Carbon Prices'!$D$9:$CP$9,0))/1000,0)","v":0.11264920615417354},{"$f":"IFERROR(INDEX('Carbon Prices'!$D$10:$CP$15,4,MATCH(Calc_BAT!AH$6,'Carbon Prices'!$D$9:$CP$9,0))/1000,0)","v":0.11656482027183197},{"$f":"IFERROR(INDEX('Carbon Prices'!$D$10:$CP$15,4,MATCH(Calc_BAT!AI$6,'Carbon Prices'!$D$9:$CP$9,0))/1000,0)","v":0},{"$f":"IFERROR(INDEX('Carbon Prices'!$D$10:$CP$15,4,MATCH(Calc_BAT!AJ$6,'Carbon Prices'!$D$9:$CP$9,0))/1000,0)","v":0},{"$f":"IFERROR(INDEX('Carbon Prices'!$D$10:$CP$15,4,MATCH(Calc_BAT!AK$6,'Carbon Prices'!$D$9:$CP$9,0))/1000,0)","v":0},{"$f":"IFERROR(INDEX('Carbon Prices'!$D$10:$CP$15,4,MATCH(Calc_BAT!AL$6,'Carbon Prices'!$D$9:$CP$9,0))/1000,0)","v":0},{"$f":"IFERROR(INDEX('Carbon Prices'!$D$10:$CP$15,4,MATCH(Calc_BAT!AM$6,'Carbon Prices'!$D$9:$CP$9,0))/1000,0)","v":0},{"$f":"IFERROR(INDEX('Carbon Prices'!$D$10:$CP$15,4,MATCH(Calc_BAT!AN$6,'Carbon Prices'!$D$9:$CP$9,0))/1000,0)","v":0},{"$f":"IFERROR(INDEX('Carbon Prices'!$D$10:$CP$15,4,MATCH(Calc_BAT!AO$6,'Carbon Prices'!$D$9:$CP$9,0))/1000,0)","v":0},{"$f":"IFERROR(INDEX('Carbon Prices'!$D$10:$CP$15,4,MATCH(Calc_BAT!AP$6,'Carbon Prices'!$D$9:$CP$9,0))/1000,0)","v":0},{"$f":"IFERROR(INDEX('Carbon Prices'!$D$10:$CP$15,4,MATCH(Calc_BAT!AQ$6,'Carbon Prices'!$D$9:$CP$9,0))/1000,0)","v":0},{"$f":"IFERROR(INDEX('Carbon Prices'!$D$10:$CP$15,4,MATCH(Calc_BAT!AR$6,'Carbon Prices'!$D$9:$CP$9,0))/1000,0)","v":0},{"$f":"IFERROR(INDEX('Carbon Prices'!$D$10:$CP$15,4,MATCH(Calc_BAT!AS$6,'Carbon Prices'!$D$9:$CP$9,0))/1000,0)","v":0},{"$f":"IFERROR(INDEX('Carbon Prices'!$D$10:$CP$15,4,MATCH(Calc_BAT!AT$6,'Carbon Prices'!$D$9:$CP$9,0))/1000,0)","v":0},{"$f":"IFERROR(INDEX('Carbon Prices'!$D$10:$CP$15,4,MATCH(Calc_BAT!AU$6,'Carbon Prices'!$D$9:$CP$9,0))/1000,0)","v":0},{"$f":"IFERROR(INDEX('Carbon Prices'!$D$10:$CP$15,4,MATCH(Calc_BAT!AV$6,'Carbon Prices'!$D$9:$CP$9,0))/1000,0)","v":0},{"$f":"IFERROR(INDEX('Carbon Prices'!$D$10:$CP$15,4,MATCH(Calc_BAT!AW$6,'Carbon Prices'!$D$9:$CP$9,0))/1000,0)","v":0},{"$f":"IFERROR(INDEX('Carbon Prices'!$D$10:$CP$15,4,MATCH(Calc_BAT!AX$6,'Carbon Prices'!$D$9:$CP$9,0))/1000,0)","v":0},{"$f":"IFERROR(INDEX('Carbon Prices'!$D$10:$CP$15,4,MATCH(Calc_BAT!AY$6,'Carbon Prices'!$D$9:$CP$9,0))/1000,0)","v":0},{"$f":"IFERROR(INDEX('Carbon Prices'!$D$10:$CP$15,4,MATCH(Calc_BAT!AZ$6,'Carbon Prices'!$D$9:$CP$9,0))/1000,0)","v":0},{"$f":"IFERROR(INDEX('Carbon Prices'!$D$10:$CP$15,4,MATCH(Calc_BAT!BA$6,'Carbon Prices'!$D$9:$CP$9,0))/1000,0)","v":0},{"$f":"IFERROR(INDEX('Carbon Prices'!$D$10:$CP$15,4,MATCH(Calc_BAT!BB$6,'Carbon Prices'!$D$9:$CP$9,0))/1000,0)","v":0},{"$f":"IFERROR(INDEX('Carbon Prices'!$D$10:$CP$15,4,MATCH(Calc_BAT!BC$6,'Carbon Prices'!$D$9:$CP$9,0))/1000,0)","v":0},{"$f":"IFERROR(INDEX('Carbon Prices'!$D$10:$CP$15,4,MATCH(Calc_BAT!BD$6,'Carbon Prices'!$D$9:$CP$9,0))/1000,0)","v":0},{"$f":"IFERROR(INDEX('Carbon Prices'!$D$10:$CP$15,4,MATCH(Calc_BAT!BE$6,'Carbon Prices'!$D$9:$CP$9,0))/1000,0)","v":0},{"$f":"IFERROR(INDEX('Carbon Prices'!$D$10:$CP$15,4,MATCH(Calc_BAT!BF$6,'Carbon Prices'!$D$9:$CP$9,0))/1000,0)","v":0},{"$f":"IFERROR(INDEX('Carbon Prices'!$D$10:$CP$15,4,MATCH(Calc_BAT!BG$6,'Carbon Prices'!$D$9:$CP$9,0))/1000,0)","v":0},{"$f":"IFERROR(INDEX('Carbon Prices'!$D$10:$CP$15,4,MATCH(Calc_BAT!BH$6,'Carbon Prices'!$D$9:$CP$9,0))/1000,0)","v":0},{"$f":"IFERROR(INDEX('Carbon Prices'!$D$10:$CP$15,4,MATCH(Calc_BAT!BI$6,'Carbon Prices'!$D$9:$CP$9,0))/1000,0)","v":0},{"$f":"IFERROR(INDEX('Carbon Prices'!$D$10:$CP$15,4,MATCH(Calc_BAT!BJ$6,'Carbon Prices'!$D$9:$CP$9,0))/1000,0)","v":0},{"$f":"IFERROR(INDEX('Carbon Prices'!$D$10:$CP$15,4,MATCH(Calc_BAT!BK$6,'Carbon Prices'!$D$9:$CP$9,0))/1000,0)","v":0},{"$f":"IFERROR(INDEX('Carbon Prices'!$D$10:$CP$15,4,MATCH(Calc_BAT!BL$6,'Carbon Prices'!$D$9:$CP$9,0))/1000,0)","v":0},{"$f":"IFERROR(INDEX('Carbon Prices'!$D$10:$CP$15,4,MATCH(Calc_BAT!BM$6,'Carbon Prices'!$D$9:$CP$9,0))/1000,0)","v":0},{"$f":"IFERROR(INDEX('Carbon Prices'!$D$10:$CP$15,4,MATCH(Calc_BAT!BN$6,'Carbon Prices'!$D$9:$CP$9,0))/1000,0)","v":0},{"$f":"IFERROR(INDEX('Carbon Prices'!$D$10:$CP$15,4,MATCH(Calc_BAT!BO$6,'Carbon Prices'!$D$9:$CP$9,0))/1000,0)","v":0},{"$f":"IFERROR(INDEX('Carbon Prices'!$D$10:$CP$15,4,MATCH(Calc_BAT!BP$6,'Carbon Prices'!$D$9:$CP$9,0))/1000,0)","v":0},{"$f":"IFERROR(INDEX('Carbon Prices'!$D$10:$CP$15,4,MATCH(Calc_BAT!BQ$6,'Carbon Prices'!$D$9:$CP$9,0))/1000,0)","v":0},{"$f":"IFERROR(INDEX('Carbon Prices'!$D$10:$CP$15,4,MATCH(Calc_BAT!BR$6,'Carbon Prices'!$D$9:$CP$9,0))/1000,0)","v":0},{"$f":"IFERROR(INDEX('Carbon Prices'!$D$10:$CP$15,4,MATCH(Calc_BAT!BS$6,'Carbon Prices'!$D$9:$CP$9,0))/1000,0)","v":0},{"$f":"IFERROR(INDEX('Carbon Prices'!$D$10:$CP$15,4,MATCH(Calc_BAT!BT$6,'Carbon Prices'!$D$9:$CP$9,0))/1000,0)","v":0},{"$f":"IFERROR(INDEX('Carbon Prices'!$D$10:$CP$15,4,MATCH(Calc_BAT!BU$6,'Carbon Prices'!$D$9:$CP$9,0))/1000,0)","v":0},{"$f":"IFERROR(INDEX('Carbon Prices'!$D$10:$CP$15,4,MATCH(Calc_BAT!BV$6,'Carbon Prices'!$D$9:$CP$9,0))/1000,0)","v":0},{"$f":"IFERROR(INDEX('Carbon Prices'!$D$10:$CP$15,4,MATCH(Calc_BAT!BW$6,'Carbon Prices'!$D$9:$CP$9,0))/1000,0)","v":0},{"$f":"IFERROR(INDEX('Carbon Prices'!$D$10:$CP$15,4,MATCH(Calc_BAT!BX$6,'Carbon Prices'!$D$9:$CP$9,0))/1000,0)","v":0},{"$f":"IFERROR(INDEX('Carbon Prices'!$D$10:$CP$15,4,MATCH(Calc_BAT!BY$6,'Carbon Prices'!$D$9:$CP$9,0))/1000,0)","v":0},{"$f":"IFERROR(INDEX('Carbon Prices'!$D$10:$CP$15,4,MATCH(Calc_BAT!BZ$6,'Carbon Prices'!$D$9:$CP$9,0))/1000,0)","v":0},{"$f":"IFERROR(INDEX('Carbon Prices'!$D$10:$CP$15,4,MATCH(Calc_BAT!CA$6,'Carbon Prices'!$D$9:$CP$9,0))/1000,0)","v":0},{"$f":"IFERROR(INDEX('Carbon Prices'!$D$10:$CP$15,4,MATCH(Calc_BAT!CB$6,'Carbon Prices'!$D$9:$CP$9,0))/1000,0)","v":0},{"$f":"IFERROR(INDEX('Carbon Prices'!$D$10:$CP$15,4,MATCH(Calc_BAT!CC$6,'Carbon Prices'!$D$9:$CP$9,0))/1000,0)","v":0},{"$f":"IFERROR(INDEX('Carbon Prices'!$D$10:$CP$15,4,MATCH(Calc_BAT!CD$6,'Carbon Prices'!$D$9:$CP$9,0))/1000,0)","v":0},{"$f":"IFERROR(INDEX('Carbon Prices'!$D$10:$CP$15,4,MATCH(Calc_BAT!CE$6,'Carbon Prices'!$D$9:$CP$9,0))/1000,0)","v":0},{"$f":"IFERROR(INDEX('Carbon Prices'!$D$10:$CP$15,4,MATCH(Calc_BAT!CF$6,'Carbon Prices'!$D$9:$CP$9,0))/1000,0)","v":0},{"$f":"IFERROR(INDEX('Carbon Prices'!$D$10:$CP$15,4,MATCH(Calc_BAT!CG$6,'Carbon Prices'!$D$9:$CP$9,0))/1000,0)","v":0},{"$f":"IFERROR(INDEX('Carbon Prices'!$D$10:$CP$15,4,MATCH(Calc_BAT!CH$6,'Carbon Prices'!$D$9:$CP$9,0))/1000,0)","v":0},{"$f":"IFERROR(INDEX('Carbon Prices'!$D$10:$CP$15,4,MATCH(Calc_BAT!CI$6,'Carbon Prices'!$D$9:$CP$9,0))/1000,0)","v":0},{"$f":"IFERROR(INDEX('Carbon Prices'!$D$10:$CP$15,4,MATCH(Calc_BAT!CJ$6,'Carbon Prices'!$D$9:$CP$9,0))/1000,0)","v":0},{"$f":"IFERROR(INDEX('Carbon Prices'!$D$10:$CP$15,4,MATCH(Calc_BAT!CK$6,'Carbon Prices'!$D$9:$CP$9,0))/1000,0)","v":0},{"$f":"IFERROR(INDEX('Carbon Prices'!$D$10:$CP$15,4,MATCH(Calc_BAT!CL$6,'Carbon Prices'!$D$9:$CP$9,0))/1000,0)","v":0},{"$f":"IFERROR(INDEX('Carbon Prices'!$D$10:$CP$15,4,MATCH(Calc_BAT!CM$6,'Carbon Prices'!$D$9:$CP$9,0))/1000,0)","v":0},{"$f":"IFERROR(INDEX('Carbon Prices'!$D$10:$CP$15,4,MATCH(Calc_BAT!CN$6,'Carbon Prices'!$D$9:$CP$9,0))/1000,0)","v":0},{"$f":"IFERROR(INDEX('Carbon Prices'!$D$10:$CP$15,4,MATCH(Calc_BAT!CO$6,'Carbon Prices'!$D$9:$CP$9,0))/1000,0)","v":0},{"$f":"IFERROR(INDEX('Carbon Prices'!$D$10:$CP$15,4,MATCH(Calc_BAT!CP$6,'Carbon Prices'!$D$9:$CP$9,0))/1000,0)","v":0},{"$f":"IFERROR(INDEX('Carbon Prices'!$D$10:$CP$15,4,MATCH(Calc_BAT!CQ$6,'Carbon Prices'!$D$9:$CP$9,0))/1000,0)","v":0},{"$f":"IFERROR(INDEX('Carbon Prices'!$D$10:$CP$15,4,MATCH(Calc_BAT!CR$6,'Carbon Prices'!$D$9:$CP$9,0))/1000,0)","v":0},{"$f":"IFERROR(INDEX('Carbon Prices'!$D$10:$CP$15,4,MATCH(Calc_BAT!CS$6,'Carbon Prices'!$D$9:$CP$9,0))/1000,0)","v":0},{"$f":"IFERROR(INDEX('Carbon Prices'!$D$10:$CP$15,4,MATCH(Calc_BAT!CT$6,'Carbon Prices'!$D$9:$CP$9,0))/1000,0)","v":0},{"$f":"IFERROR(INDEX('Carbon Prices'!$D$10:$CP$15,4,MATCH(Calc_BAT!CU$6,'Carbon Prices'!$D$9:$CP$9,0))/1000,0)","v":0},{"$f":"IFERROR(INDEX('Carbon Prices'!$D$10:$CP$15,4,MATCH(Calc_BAT!CV$6,'Carbon Prices'!$D$9:$CP$9,0))/1000,0)","v":0},{"$f":"IFERROR(INDEX('Carbon Prices'!$D$10:$CP$15,4,MATCH(Calc_BAT!CW$6,'Carbon Prices'!$D$9:$CP$9,0))/1000,0)","v":0},{"$f":"IFERROR(INDEX('Carbon Prices'!$D$10:$CP$15,4,MATCH(Calc_BAT!CX$6,'Carbon Prices'!$D$9:$CP$9,0))/1000,0)","v":0},{"$f":"IFERROR(INDEX('Carbon Prices'!$D$10:$CP$15,4,MATCH(Calc_BAT!CY$6,'Carbon Prices'!$D$9:$CP$9,0))/1000,0)","v":0}]
[null,"Discounted total","£000's",{"$f":"(D118*D120)+(D119*D121)*D$7","v":0},{"$f":"(E118*E120)+(E119*E121)*E$7","v":0},364.28302247003927,727.96562513329218,1090.3896583908042,1454.449813495597,1817.0801912884338,2178.5430524899039,0,0,0,0,0,0,0,0,0,0,0,0,0,0,0,0,0,0,0,0,0,0,0,0,0,0,0,0,0,0,0,0,0,0,0,0,0,0,0,0,0,0,0,0,0,0,0,0,0,0,0,0,0,0,0,0,0,{"$f":"(BQ118*BQ120)+(BQ119*BQ121)*BQ$7","v":0},0,0,0,0,0,0,0,0,0,0,0,0,0,0,0,0,0,0,0,0,0,0,0,0,0,0,0,0,0,0,0,0,0,0]
[]
[]
[null,"High values"]
[]
[null,"Energy Consumption"]
[null,"Electricity","£000's",{"$f":"IFERROR('Data Input - BAT'!H84*INDEX('Energy Prices'!$F$26:$CR$31,MATCH($B128,'Energy Prices'!$C$26:$C$31,0),MATCH(Calc_BAT!D$6,'Energy Prices'!$F$11:$CR$11,0))/100000,0)","v":510.4472426746147},{"$f":"IFERROR('Data Input - BAT'!I84*INDEX('Energy Prices'!$F$26:$CR$31,MATCH($B128,'Energy Prices'!$C$26:$C$31,0),MATCH(Calc_BAT!E$6,'Energy Prices'!$F$11:$CR$11,0))/100000,0)","v":521.90154191402712},{"$f":"IFERROR('Data Input - BAT'!J84*INDEX('Energy Prices'!$F$26:$CR$31,MATCH($B128,'Energy Prices'!$C$26:$C$31,0),MATCH(Calc_BAT!F$6,'Energy Prices'!$F$11:$CR$11,0))/100000,0)","v":567.55914390054477},{"$f":"IFERROR('Data Input - BAT'!K84*INDEX('Energy Prices'!$F$26:$CR$31,MATCH($B128,'Energy Prices'!$C$26:$C$31,0),MATCH(Calc_BAT!G$6,'Energy Prices'!$F$11:$CR$11,0))/100000,0)","v":566.26766982012589},{"$f":"IFERROR('Data Input - BAT'!L84*INDEX('Energy Prices'!$F$26:$CR$31,MATCH($B128,'Energy Prices'!$C$26:$C$31,0),MATCH(Calc_BAT!H$6,'Energy Prices'!$F$11:$CR$11,0))/100000,0)","v":588.7100968226282},{"$f":"IFERROR('Data Input - BAT'!M84*INDEX('Energy Prices'!$F$26:$CR$31,MATCH($B128,'Energy Prices'!$C$26:$C$31,0),MATCH(Calc_BAT!I$6,'Energy Prices'!$F$11:$CR$11,0))/100000,0)","v":618.69761981242652},{"$f":"IFERROR('Data Input - BAT'!N84*INDEX('Energy Prices'!$F$26:$CR$31,MATCH($B128,'Energy Prices'!$C$26:$C$31,0),MATCH(Calc_BAT!J$6,'Energy Prices'!$F$11:$CR$11,0))/100000,0)","v":642.5681104029253},{"$f":"IFERROR('Data Input - BAT'!O84*INDEX('Energy Prices'!$F$26:$CR$31,MATCH($B128,'Energy Prices'!$C$26:$C$31,0),MATCH(Calc_BAT!K$6,'Energy Prices'!$F$11:$CR$11,0))/100000,0)","v":628.25817918514724},{"$f":"IFERROR('Data Input - BAT'!P84*INDEX('Energy Prices'!$F$26:$CR$31,MATCH($B128,'Energy Prices'!$C$26:$C$31,0),MATCH(Calc_BAT!L$6,'Energy Prices'!$F$11:$CR$11,0))/100000,0)","v":0},{"$f":"IFERROR('Data Input - BAT'!Q84*INDEX('Energy Prices'!$F$26:$CR$31,MATCH($B128,'Energy Prices'!$C$26:$C$31,0),MATCH(Calc_BAT!M$6,'Energy Prices'!$F$11:$CR$11,0))/100000,0)","v":0},{"$f":"IFERROR('Data Input - BAT'!R84*INDEX('Energy Prices'!$F$26:$CR$31,MATCH($B128,'Energy Prices'!$C$26:$C$31,0),MATCH(Calc_BAT!N$6,'Energy Prices'!$F$11:$CR$11,0))/100000,0)","v":0},{"$f":"IFERROR('Data Input - BAT'!S84*INDEX('Energy Prices'!$F$26:$CR$31,MATCH($B128,'Energy Prices'!$C$26:$C$31,0),MATCH(Calc_BAT!O$6,'Energy Prices'!$F$11:$CR$11,0))/100000,0)","v":0},{"$f":"IFERROR('Data Input - BAT'!T84*INDEX('Energy Prices'!$F$26:$CR$31,MATCH($B128,'Energy Prices'!$C$26:$C$31,0),MATCH(Calc_BAT!P$6,'Energy Prices'!$F$11:$CR$11,0))/100000,0)","v":0},{"$f":"IFERROR('Data Input - BAT'!U84*INDEX('Energy Prices'!$F$26:$CR$31,MATCH($B128,'Energy Prices'!$C$26:$C$31,0),MATCH(Calc_BAT!Q$6,'Energy Prices'!$F$11:$CR$11,0))/100000,0)","v":0},{"$f":"IFERROR('Data Input - BAT'!V84*INDEX('Energy Prices'!$F$26:$CR$31,MATCH($B128,'Energy Prices'!$C$26:$C$31,0),MATCH(Calc_BAT!R$6,'Energy Prices'!$F$11:$CR$11,0))/100000,0)","v":0},{"$f":"IFERROR('Data Input - BAT'!W84*INDEX('Energy Prices'!$F$26:$CR$31,MATCH($B128,'Energy Prices'!$C$26:$C$31,0),MATCH(Calc_BAT!S$6,'Energy Prices'!$F$11:$CR$11,0))/100000,0)","v":0},{"$f":"IFERROR('Data Input - BAT'!X84*INDEX('Energy Prices'!$F$26:$CR$31,MATCH($B128,'Energy Prices'!$C$26:$C$31,0),MATCH(Calc_BAT!T$6,'Energy Prices'!$F$11:$CR$11,0))/100000,0)","v":0},{"$f":"IFERROR('Data Input - BAT'!Y84*INDEX('Energy Prices'!$F$26:$CR$31,MATCH($B128,'Energy Prices'!$C$26:$C$31,0),MATCH(Calc_BAT!U$6,'Energy Prices'!$F$11:$CR$11,0))/100000,0)","v":0},{"$f":"IFERROR('Data Input - BAT'!Z84*INDEX('Energy Prices'!$F$26:$CR$31,MATCH($B128,'Energy Prices'!$C$26:$C$31,0),MATCH(Calc_BAT!V$6,'Energy Prices'!$F$11:$CR$11,0))/100000,0)","v":0},{"$f":"IFERROR('Data Input - BAT'!AA84*INDEX('Energy Prices'!$F$26:$CR$31,MATCH($B128,'Energy Prices'!$C$26:$C$31,0),MATCH(Calc_BAT!W$6,'Energy Prices'!$F$11:$CR$11,0))/100000,0)","v":0},{"$f":"IFERROR('Data Input - BAT'!AB84*INDEX('Energy Prices'!$F$26:$CR$31,MATCH($B128,'Energy Prices'!$C$26:$C$31,0),MATCH(Calc_BAT!X$6,'Energy Prices'!$F$11:$CR$11,0))/100000,0)","v":0},{"$f":"IFERROR('Data Input - BAT'!AC84*INDEX('Energy Prices'!$F$26:$CR$31,MATCH($B128,'Energy Prices'!$C$26:$C$31,0),MATCH(Calc_BAT!Y$6,'Energy Prices'!$F$11:$CR$11,0))/100000,0)","v":0},{"$f":"IFERROR('Data Input - BAT'!AD84*INDEX('Energy Prices'!$F$26:$CR$31,MATCH($B128,'Energy Prices'!$C$26:$C$31,0),MATCH(Calc_BAT!Z$6,'Energy Prices'!$F$11:$CR$11,0))/100000,0)","v":0},{"$f":"IFERROR('Data Input - BAT'!AE84*INDEX('Energy Prices'!$F$26:$CR$31,MATCH($B128,'Energy Prices'!$C$26:$C$31,0),MATCH(Calc_BAT!AA$6,'Energy Prices'!$F$11:$CR$11,0))/100000,0)","v":0},{"$f":"IFERROR('Data Input - BAT'!AF84*INDEX('Energy Prices'!$F$26:$CR$31,MATCH($B128,'Energy Prices'!$C$26:$C$31,0),MATCH(Calc_BAT!AB$6,'Energy Prices'!$F$11:$CR$11,0))/100000,0)","v":0},{"$f":"IFERROR('Data Input - BAT'!AG84*INDEX('Energy Prices'!$F$26:$CR$31,MATCH($B128,'Energy Prices'!$C$26:$C$31,0),MATCH(Calc_BAT!AC$6,'Energy Prices'!$F$11:$CR$11,0))/100000,0)","v":0},{"$f":"IFERROR('Data Input - BAT'!AH84*INDEX('Energy Prices'!$F$26:$CR$31,MATCH($B128,'Energy Prices'!$C$26:$C$31,0),MATCH(Calc_BAT!AD$6,'Energy Prices'!$F$11:$CR$11,0))/100000,0)","v":0},{"$f":"IFERROR('Data Input - BAT'!AI84*INDEX('Energy Prices'!$F$26:$CR$31,MATCH($B128,'Energy Prices'!$C$26:$C$31,0),MATCH(Calc_BAT!AE$6,'Energy Prices'!$F$11:$CR$11,0))/100000,0)","v":0},{"$f":"IFERROR('Data Input - BAT'!AJ84*INDEX('Energy Prices'!$F$26:$CR$31,MATCH($B128,'Energy Prices'!$C$26:$C$31,0),MATCH(Calc_BAT!AF$6,'Energy Prices'!$F$11:$CR$11,0))/100000,0)","v":0},{"$f":"IFERROR('Data Input - BAT'!AK84*INDEX('Energy Prices'!$F$26:$CR$31,MATCH($B128,'Energy Prices'!$C$26:$C$31,0),MATCH(Calc_BAT!AG$6,'Energy Prices'!$F$11:$CR$11,0))/100000,0)","v":0},{"$f":"IFERROR('Data Input - BAT'!AL84*INDEX('Energy Prices'!$F$26:$CR$31,MATCH($B128,'Energy Prices'!$C$26:$C$31,0),MATCH(Calc_BAT!AH$6,'Energy Prices'!$F$11:$CR$11,0))/100000,0)","v":0},{"$f":"IFERROR('Data Input - BAT'!AM84*INDEX('Energy Prices'!$F$26:$CR$31,MATCH($B128,'Energy Prices'!$C$26:$C$31,0),MATCH(Calc_BAT!AI$6,'Energy Prices'!$F$11:$CR$11,0))/100000,0)","v":0},{"$f":"IFERROR('Data Input - BAT'!AN84*INDEX('Energy Prices'!$F$26:$CR$31,MATCH($B128,'Energy Prices'!$C$26:$C$31,0),MATCH(Calc_BAT!AJ$6,'Energy Prices'!$F$11:$CR$11,0))/100000,0)","v":0},{"$f":"IFERROR('Data Input - BAT'!AO84*INDEX('Energy Prices'!$F$26:$CR$31,MATCH($B128,'Energy Prices'!$C$26:$C$31,0),MATCH(Calc_BAT!AK$6,'Energy Prices'!$F$11:$CR$11,0))/100000,0)","v":0},{"$f":"IFERROR('Data Input - BAT'!AP84*INDEX('Energy Prices'!$F$26:$CR$31,MATCH($B128,'Energy Prices'!$C$26:$C$31,0),MATCH(Calc_BAT!AL$6,'Energy Prices'!$F$11:$CR$11,0))/100000,0)","v":0},{"$f":"IFERROR('Data Input - BAT'!AQ84*INDEX('Energy Prices'!$F$26:$CR$31,MATCH($B128,'Energy Prices'!$C$26:$C$31,0),MATCH(Calc_BAT!AM$6,'Energy Prices'!$F$11:$CR$11,0))/100000,0)","v":0},{"$f":"IFERROR('Data Input - BAT'!AR84*INDEX('Energy Prices'!$F$26:$CR$31,MATCH($B128,'Energy Prices'!$C$26:$C$31,0),MATCH(Calc_BAT!AN$6,'Energy Prices'!$F$11:$CR$11,0))/100000,0)","v":0},{"$f":"IFERROR('Data Input - BAT'!AS84*INDEX('Energy Prices'!$F$26:$CR$31,MATCH($B128,'Energy Prices'!$C$26:$C$31,0),MATCH(Calc_BAT!AO$6,'Energy Prices'!$F$11:$CR$11,0))/100000,0)","v":0},{"$f":"IFERROR('Data Input - BAT'!AT84*INDEX('Energy Prices'!$F$26:$CR$31,MATCH($B128,'Energy Prices'!$C$26:$C$31,0),MATCH(Calc_BAT!AP$6,'Energy Prices'!$F$11:$CR$11,0))/100000,0)","v":0},{"$f":"IFERROR('Data Input - BAT'!AU84*INDEX('Energy Prices'!$F$26:$CR$31,MATCH($B128,'Energy Prices'!$C$26:$C$31,0),MATCH(Calc_BAT!AQ$6,'Energy Prices'!$F$11:$CR$11,0))/100000,0)","v":0},{"$f":"IFERROR('Data Input - BAT'!AV84*INDEX('Energy Prices'!$F$26:$CR$31,MATCH($B128,'Energy Prices'!$C$26:$C$31,0),MATCH(Calc_BAT!AR$6,'Energy Prices'!$F$11:$CR$11,0))/100000,0)","v":0},{"$f":"IFERROR('Data Input - BAT'!AW84*INDEX('Energy Prices'!$F$26:$CR$31,MATCH($B128,'Energy Prices'!$C$26:$C$31,0),MATCH(Calc_BAT!AS$6,'Energy Prices'!$F$11:$CR$11,0))/100000,0)","v":0},{"$f":"IFERROR('Data Input - BAT'!AX84*INDEX('Energy Prices'!$F$26:$CR$31,MATCH($B128,'Energy Prices'!$C$26:$C$31,0),MATCH(Calc_BAT!AT$6,'Energy Prices'!$F$11:$CR$11,0))/100000,0)","v":0},{"$f":"IFERROR('Data Input - BAT'!AY84*INDEX('Energy Prices'!$F$26:$CR$31,MATCH($B128,'Energy Prices'!$C$26:$C$31,0),MATCH(Calc_BAT!AU$6,'Energy Prices'!$F$11:$CR$11,0))/100000,0)","v":0},{"$f":"IFERROR('Data Input - BAT'!AZ84*INDEX('Energy Prices'!$F$26:$CR$31,MATCH($B128,'Energy Prices'!$C$26:$C$31,0),MATCH(Calc_BAT!AV$6,'Energy Prices'!$F$11:$CR$11,0))/100000,0)","v":0},{"$f":"IFERROR('Data Input - BAT'!BA84*INDEX('Energy Prices'!$F$26:$CR$31,MATCH($B128,'Energy Prices'!$C$26:$C$31,0),MATCH(Calc_BAT!AW$6,'Energy Prices'!$F$11:$CR$11,0))/100000,0)","v":0},{"$f":"IFERROR('Data Input - BAT'!BB84*INDEX('Energy Prices'!$F$26:$CR$31,MATCH($B128,'Energy Prices'!$C$26:$C$31,0),MATCH(Calc_BAT!AX$6,'Energy Prices'!$F$11:$CR$11,0))/100000,0)","v":0},{"$f":"IFERROR('Data Input - BAT'!BC84*INDEX('Energy Prices'!$F$26:$CR$31,MATCH($B128,'Energy Prices'!$C$26:$C$31,0),MATCH(Calc_BAT!AY$6,'Energy Prices'!$F$11:$CR$11,0))/100000,0)","v":0},{"$f":"IFERROR('Data Input - BAT'!BD84*INDEX('Energy Prices'!$F$26:$CR$31,MATCH($B128,'Energy Prices'!$C$26:$C$31,0),MATCH(Calc_BAT!AZ$6,'Energy Prices'!$F$11:$CR$11,0))/100000,0)","v":0},{"$f":"IFERROR('Data Input - BAT'!BE84*INDEX('Energy Prices'!$F$26:$CR$31,MATCH($B128,'Energy Prices'!$C$26:$C$31,0),MATCH(Calc_BAT!BA$6,'Energy Prices'!$F$11:$CR$11,0))/100000,0)","v":0},{"$f":"IFERROR('Data Input - BAT'!BF84*INDEX('Energy Prices'!$F$26:$CR$31,MATCH($B128,'Energy Prices'!$C$26:$C$31,0),MATCH(Calc_BAT!BB$6,'Energy Prices'!$F$11:$CR$11,0))/100000,0)","v":0},{"$f":"IFERROR('Data Input - BAT'!BG84*INDEX('Energy Prices'!$F$26:$CR$31,MATCH($B128,'Energy Prices'!$C$26:$C$31,0),MATCH(Calc_BAT!BC$6,'Energy Prices'!$F$11:$CR$11,0))/100000,0)","v":0},{"$f":"IFERROR('Data Input - BAT'!BH84*INDEX('Energy Prices'!$F$26:$CR$31,MATCH($B128,'Energy Prices'!$C$26:$C$31,0),MATCH(Calc_BAT!BD$6,'Energy Prices'!$F$11:$CR$11,0))/100000,0)","v":0},{"$f":"IFERROR('Data Input - BAT'!BI84*INDEX('Energy Prices'!$F$26:$CR$31,MATCH($B128,'Energy Prices'!$C$26:$C$31,0),MATCH(Calc_BAT!BE$6,'Energy Prices'!$F$11:$CR$11,0))/100000,0)","v":0},{"$f":"IFERROR('Data Input - BAT'!BJ84*INDEX('Energy Prices'!$F$26:$CR$31,MATCH($B128,'Energy Prices'!$C$26:$C$31,0),MATCH(Calc_BAT!BF$6,'Energy Prices'!$F$11:$CR$11,0))/100000,0)","v":0},{"$f":"IFERROR('Data Input - BAT'!BK84*INDEX('Energy Prices'!$F$26:$CR$31,MATCH($B128,'Energy Prices'!$C$26:$C$31,0),MATCH(Calc_BAT!BG$6,'Energy Prices'!$F$11:$CR$11,0))/100000,0)","v":0},{"$f":"IFERROR('Data Input - BAT'!BL84*INDEX('Energy Prices'!$F$26:$CR$31,MATCH($B128,'Energy Prices'!$C$26:$C$31,0),MATCH(Calc_BAT!BH$6,'Energy Prices'!$F$11:$CR$11,0))/100000,0)","v":0},{"$f":"IFERROR('Data Input - BAT'!BM84*INDEX('Energy Prices'!$F$26:$CR$31,MATCH($B128,'Energy Prices'!$C$26:$C$31,0),MATCH(Calc_BAT!BI$6,'Energy Prices'!$F$11:$CR$11,0))/100000,0)","v":0},{"$f":"IFERROR('Data Input - BAT'!BN84*INDEX('Energy Prices'!$F$26:$CR$31,MATCH($B128,'Energy Prices'!$C$26:$C$31,0),MATCH(Calc_BAT!BJ$6,'Energy Prices'!$F$11:$CR$11,0))/100000,0)","v":0},{"$f":"IFERROR('Data Input - BAT'!BO84*INDEX('Energy Prices'!$F$26:$CR$31,MATCH($B128,'Energy Prices'!$C$26:$C$31,0),MATCH(Calc_BAT!BK$6,'Energy Prices'!$F$11:$CR$11,0))/100000,0)","v":0},{"$f":"IFERROR('Data Input - BAT'!BP84*INDEX('Energy Prices'!$F$26:$CR$31,MATCH($B128,'Energy Prices'!$C$26:$C$31,0),MATCH(Calc_BAT!BL$6,'Energy Prices'!$F$11:$CR$11,0))/100000,0)","v":0},{"$f":"IFERROR('Data Input - BAT'!BQ84*INDEX('Energy Prices'!$F$26:$CR$31,MATCH($B128,'Energy Prices'!$C$26:$C$31,0),MATCH(Calc_BAT!BM$6,'Energy Prices'!$F$11:$CR$11,0))/100000,0)","v":0},{"$f":"IFERROR('Data Input - BAT'!BR84*INDEX('Energy Prices'!$F$26:$CR$31,MATCH($B128,'Energy Prices'!$C$26:$C$31,0),MATCH(Calc_BAT!BN$6,'Energy Prices'!$F$11:$CR$11,0))/100000,0)","v":0},{"$f":"IFERROR('Data Input - BAT'!BS84*INDEX('Energy Prices'!$F$26:$CR$31,MATCH($B128,'Energy Prices'!$C$26:$C$31,0),MATCH(Calc_BAT!BO$6,'Energy Prices'!$F$11:$CR$11,0))/100000,0)","v":0},{"$f":"IFERROR('Data Input - BAT'!BT84*INDEX('Energy Prices'!$F$26:$CR$31,MATCH($B128,'Energy Prices'!$C$26:$C$31,0),MATCH(Calc_BAT!BP$6,'Energy Prices'!$F$11:$CR$11,0))/100000,0)","v":0},{"$f":"IFERROR('Data Input - BAT'!BU84*INDEX('Energy Prices'!$F$26:$CR$31,MATCH($B128,'Energy Prices'!$C$26:$C$31,0),MATCH(Calc_BAT!BQ$6,'Energy Prices'!$F$11:$CR$11,0))/100000,0)","v":0},{"$f":"IFERROR('Data Input - BAT'!BV84*INDEX('Energy Prices'!$F$26:$CR$31,MATCH($B128,'Energy Prices'!$C$26:$C$31,0),MATCH(Calc_BAT!BR$6,'Energy Prices'!$F$11:$CR$11,0))/100000,0)","v":0},{"$f":"IFERROR('Data Input - BAT'!BW84*INDEX('Energy Prices'!$F$26:$CR$31,MATCH($B128,'Energy Prices'!$C$26:$C$31,0),MATCH(Calc_BAT!BS$6,'Energy Prices'!$F$11:$CR$11,0))/100000,0)","v":0},{"$f":"IFERROR('Data Input - BAT'!BX84*INDEX('Energy Prices'!$F$26:$CR$31,MATCH($B128,'Energy Prices'!$C$26:$C$31,0),MATCH(Calc_BAT!BT$6,'Energy Prices'!$F$11:$CR$11,0))/100000,0)","v":0},{"$f":"IFERROR('Data Input - BAT'!BY84*INDEX('Energy Prices'!$F$26:$CR$31,MATCH($B128,'Energy Prices'!$C$26:$C$31,0),MATCH(Calc_BAT!BU$6,'Energy Prices'!$F$11:$CR$11,0))/100000,0)","v":0},{"$f":"IFERROR('Data Input - BAT'!BZ84*INDEX('Energy Prices'!$F$26:$CR$31,MATCH($B128,'Energy Prices'!$C$26:$C$31,0),MATCH(Calc_BAT!BV$6,'Energy Prices'!$F$11:$CR$11,0))/100000,0)","v":0},{"$f":"IFERROR('Data Input - BAT'!CA84*INDEX('Energy Prices'!$F$26:$CR$31,MATCH($B128,'Energy Prices'!$C$26:$C$31,0),MATCH(Calc_BAT!BW$6,'Energy Prices'!$F$11:$CR$11,0))/100000,0)","v":0},{"$f":"IFERROR('Data Input - BAT'!CB84*INDEX('Energy Prices'!$F$26:$CR$31,MATCH($B128,'Energy Prices'!$C$26:$C$31,0),MATCH(Calc_BAT!BX$6,'Energy Prices'!$F$11:$CR$11,0))/100000,0)","v":0},{"$f":"IFERROR('Data Input - BAT'!CC84*INDEX('Energy Prices'!$F$26:$CR$31,MATCH($B128,'Energy Prices'!$C$26:$C$31,0),MATCH(Calc_BAT!BY$6,'Energy Prices'!$F$11:$CR$11,0))/100000,0)","v":0},{"$f":"IFERROR('Data Input - BAT'!CD84*INDEX('Energy Prices'!$F$26:$CR$31,MATCH($B128,'Energy Prices'!$C$26:$C$31,0),MATCH(Calc_BAT!BZ$6,'Energy Prices'!$F$11:$CR$11,0))/100000,0)","v":0},{"$f":"IFERROR('Data Input - BAT'!CE84*INDEX('Energy Prices'!$F$26:$CR$31,MATCH($B128,'Energy Prices'!$C$26:$C$31,0),MATCH(Calc_BAT!CA$6,'Energy Prices'!$F$11:$CR$11,0))/100000,0)","v":0},{"$f":"IFERROR('Data Input - BAT'!CF84*INDEX('Energy Prices'!$F$26:$CR$31,MATCH($B128,'Energy Prices'!$C$26:$C$31,0),MATCH(Calc_BAT!CB$6,'Energy Prices'!$F$11:$CR$11,0))/100000,0)","v":0},{"$f":"IFERROR('Data Input - BAT'!CG84*INDEX('Energy Prices'!$F$26:$CR$31,MATCH($B128,'Energy Prices'!$C$26:$C$31,0),MATCH(Calc_BAT!CC$6,'Energy Prices'!$F$11:$CR$11,0))/100000,0)","v":0},{"$f":"IFERROR('Data Input - BAT'!CH84*INDEX('Energy Prices'!$F$26:$CR$31,MATCH($B128,'Energy Prices'!$C$26:$C$31,0),MATCH(Calc_BAT!CD$6,'Energy Prices'!$F$11:$CR$11,0))/100000,0)","v":0},{"$f":"IFERROR('Data Input - BAT'!CI84*INDEX('Energy Prices'!$F$26:$CR$31,MATCH($B128,'Energy Prices'!$C$26:$C$31,0),MATCH(Calc_BAT!CE$6,'Energy Prices'!$F$11:$CR$11,0))/100000,0)","v":0},{"$f":"IFERROR('Data Input - BAT'!CJ84*INDEX('Energy Prices'!$F$26:$CR$31,MATCH($B128,'Energy Prices'!$C$26:$C$31,0),MATCH(Calc_BAT!CF$6,'Energy Prices'!$F$11:$CR$11,0))/100000,0)","v":0},{"$f":"IFERROR('Data Input - BAT'!CK84*INDEX('Energy Prices'!$F$26:$CR$31,MATCH($B128,'Energy Prices'!$C$26:$C$31,0),MATCH(Calc_BAT!CG$6,'Energy Prices'!$F$11:$CR$11,0))/100000,0)","v":0},{"$f":"IFERROR('Data Input - BAT'!CL84*INDEX('Energy Prices'!$F$26:$CR$31,MATCH($B128,'Energy Prices'!$C$26:$C$31,0),MATCH(Calc_BAT!CH$6,'Energy Prices'!$F$11:$CR$11,0))/100000,0)","v":0},{"$f":"IFERROR('Data Input - BAT'!CM84*INDEX('Energy Prices'!$F$26:$CR$31,MATCH($B128,'Energy Prices'!$C$26:$C$31,0),MATCH(Calc_BAT!CI$6,'Energy Prices'!$F$11:$CR$11,0))/100000,0)","v":0},{"$f":"IFERROR('Data Input - BAT'!CN84*INDEX('Energy Prices'!$F$26:$CR$31,MATCH($B128,'Energy Prices'!$C$26:$C$31,0),MATCH(Calc_BAT!CJ$6,'Energy Prices'!$F$11:$CR$11,0))/100000,0)","v":0},{"$f":"IFERROR('Data Input - BAT'!CO84*INDEX('Energy Prices'!$F$26:$CR$31,MATCH($B128,'Energy Prices'!$C$26:$C$31,0),MATCH(Calc_BAT!CK$6,'Energy Prices'!$F$11:$CR$11,0))/100000,0)","v":0},{"$f":"IFERROR('Data Input - BAT'!CP84*INDEX('Energy Prices'!$F$26:$CR$31,MATCH($B128,'Energy Prices'!$C$26:$C$31,0),MATCH(Calc_BAT!CL$6,'Energy Prices'!$F$11:$CR$11,0))/100000,0)","v":0},{"$f":"IFERROR('Data Input - BAT'!CQ84*INDEX('Energy Prices'!$F$26:$CR$31,MATCH($B128,'Energy Prices'!$C$26:$C$31,0),MATCH(Calc_BAT!CM$6,'Energy Prices'!$F$11:$CR$11,0))/100000,0)","v":0},{"$f":"IFERROR('Data Input - BAT'!CR84*INDEX('Energy Prices'!$F$26:$CR$31,MATCH($B128,'Energy Prices'!$C$26:$C$31,0),MATCH(Calc_BAT!CN$6,'Energy Prices'!$F$11:$CR$11,0))/100000,0)","v":0},{"$f":"IFERROR('Data Input - BAT'!CS84*INDEX('Energy Prices'!$F$26:$CR$31,MATCH($B128,'Energy Prices'!$C$26:$C$31,0),MATCH(Calc_BAT!CO$6,'Energy Prices'!$F$11:$CR$11,0))/100000,0)","v":0},{"$f":"IFERROR('Data Input - BAT'!CT84*INDEX('Energy Prices'!$F$26:$CR$31,MATCH($B128,'Energy Prices'!$C$26:$C$31,0),MATCH(Calc_BAT!CP$6,'Energy Prices'!$F$11:$CR$11,0))/100000,0)","v":0},{"$f":"IFERROR('Data Input - BAT'!CU84*INDEX('Energy Prices'!$F$26:$CR$31,MATCH($B128,'Energy Prices'!$C$26:$C$31,0),MATCH(Calc_BAT!CQ$6,'Energy Prices'!$F$11:$CR$11,0))/100000,0)","v":0},{"$f":"IFERROR('Data Input - BAT'!CV84*INDEX('Energy Prices'!$F$26:$CR$31,MATCH($B128,'Energy Prices'!$C$26:$C$31,0),MATCH(Calc_BAT!CR$6,'Energy Prices'!$F$11:$CR$11,0))/100000,0)","v":0},{"$f":"IFERROR('Data Input - BAT'!CW84*INDEX('Energy Prices'!$F$26:$CR$31,MATCH($B128,'Energy Prices'!$C$26:$C$31,0),MATCH(Calc_BAT!CS$6,'Energy Prices'!$F$11:$CR$11,0))/100000,0)","v":0},{"$f":"IFERROR('Data Input - BAT'!CX84*INDEX('Energy Prices'!$F$26:$CR$31,MATCH($B128,'Energy Prices'!$C$26:$C$31,0),MATCH(Calc_BAT!CT$6,'Energy Prices'!$F$11:$CR$11,0))/100000,0)","v":0},{"$f":"IFERROR('Data Input - BAT'!CY84*INDEX('Energy Prices'!$F$26:$CR$31,MATCH($B128,'Energy Prices'!$C$26:$C$31,0),MATCH(Calc_BAT!CU$6,'Energy Prices'!$F$11:$CR$11,0))/100000,0)","v":0},{"$f":"IFERROR('Data Input - BAT'!CZ84*INDEX('Energy Prices'!$F$26:$CR$31,MATCH($B128,'Energy Prices'!$C$26:$C$31,0),MATCH(Calc_BAT!CV$6,'Energy Prices'!$F$11:$CR$11,0))/100000,0)","v":0},{"$f":"IFERROR('Data Input - BAT'!DA84*INDEX('Energy Prices'!$F$26:$CR$31,MATCH($B128,'Energy Prices'!$C$26:$C$31,0),MATCH(Calc_BAT!CW$6,'Energy Prices'!$F$11:$CR$11,0))/100000,0)","v":0},{"$f":"IFERROR('Data Input - BAT'!DB84*INDEX('Energy Prices'!$F$26:$CR$31,MATCH($B128,'Energy Prices'!$C$26:$C$31,0),MATCH(Calc_BAT!CX$6,'Energy Prices'!$F$11:$CR$11,0))/100000,0)","v":0},{"$f":"IFERROR('Data Input - BAT'!DC84*INDEX('Energy Prices'!$F$26:$CR$31,MATCH($B128,'Energy Prices'!$C$26:$C$31,0),MATCH(Calc_BAT!CY$6,'Energy Prices'!$F$11:$CR$11,0))/100000,0)","v":0}]
[null,"Natural Gas","£000's",{"$f":"IFERROR('Data Input - BAT'!H85*INDEX('Energy Prices'!$F$26:$CR$31,MATCH($B129,'Energy Prices'!$C$26:$C$31,0),MATCH(Calc_BAT!D$6,'Energy Prices'!$F$11:$CR$11,0))/100000,0)","v":0},{"$f":"IFERROR('Data Input - BAT'!I85*INDEX('Energy Prices'!$F$26:$CR$31,MATCH($B129,'Energy Prices'!$C$26:$C$31,0),MATCH(Calc_BAT!E$6,'Energy Prices'!$F$11:$CR$11,0))/100000,0)","v":0},{"$f":"IFERROR('Data Input - BAT'!J85*INDEX('Energy Prices'!$F$26:$CR$31,MATCH($B129,'Energy Prices'!$C$26:$C$31,0),MATCH(Calc_BAT!F$6,'Energy Prices'!$F$11:$CR$11,0))/100000,0)","v":0},{"$f":"IFERROR('Data Input - BAT'!K85*INDEX('Energy Prices'!$F$26:$CR$31,MATCH($B129,'Energy Prices'!$C$26:$C$31,0),MATCH(Calc_BAT!G$6,'Energy Prices'!$F$11:$CR$11,0))/100000,0)","v":0},{"$f":"IFERROR('Data Input - BAT'!L85*INDEX('Energy Prices'!$F$26:$CR$31,MATCH($B129,'Energy Prices'!$C$26:$C$31,0),MATCH(Calc_BAT!H$6,'Energy Prices'!$F$11:$CR$11,0))/100000,0)","v":0},{"$f":"IFERROR('Data Input - BAT'!M85*INDEX('Energy Prices'!$F$26:$CR$31,MATCH($B129,'Energy Prices'!$C$26:$C$31,0),MATCH(Calc_BAT!I$6,'Energy Prices'!$F$11:$CR$11,0))/100000,0)","v":0},{"$f":"IFERROR('Data Input - BAT'!N85*INDEX('Energy Prices'!$F$26:$CR$31,MATCH($B129,'Energy Prices'!$C$26:$C$31,0),MATCH(Calc_BAT!J$6,'Energy Prices'!$F$11:$CR$11,0))/100000,0)","v":0},{"$f":"IFERROR('Data Input - BAT'!O85*INDEX('Energy Prices'!$F$26:$CR$31,MATCH($B129,'Energy Prices'!$C$26:$C$31,0),MATCH(Calc_BAT!K$6,'Energy Prices'!$F$11:$CR$11,0))/100000,0)","v":0},{"$f":"IFERROR('Data Input - BAT'!P85*INDEX('Energy Prices'!$F$26:$CR$31,MATCH($B129,'Energy Prices'!$C$26:$C$31,0),MATCH(Calc_BAT!L$6,'Energy Prices'!$F$11:$CR$11,0))/100000,0)","v":0},{"$f":"IFERROR('Data Input - BAT'!Q85*INDEX('Energy Prices'!$F$26:$CR$31,MATCH($B129,'Energy Prices'!$C$26:$C$31,0),MATCH(Calc_BAT!M$6,'Energy Prices'!$F$11:$CR$11,0))/100000,0)","v":0},{"$f":"IFERROR('Data Input - BAT'!R85*INDEX('Energy Prices'!$F$26:$CR$31,MATCH($B129,'Energy Prices'!$C$26:$C$31,0),MATCH(Calc_BAT!N$6,'Energy Prices'!$F$11:$CR$11,0))/100000,0)","v":0},{"$f":"IFERROR('Data Input - BAT'!S85*INDEX('Energy Prices'!$F$26:$CR$31,MATCH($B129,'Energy Prices'!$C$26:$C$31,0),MATCH(Calc_BAT!O$6,'Energy Prices'!$F$11:$CR$11,0))/100000,0)","v":0},{"$f":"IFERROR('Data Input - BAT'!T85*INDEX('Energy Prices'!$F$26:$CR$31,MATCH($B129,'Energy Prices'!$C$26:$C$31,0),MATCH(Calc_BAT!P$6,'Energy Prices'!$F$11:$CR$11,0))/100000,0)","v":0},{"$f":"IFERROR('Data Input - BAT'!U85*INDEX('Energy Prices'!$F$26:$CR$31,MATCH($B129,'Energy Prices'!$C$26:$C$31,0),MATCH(Calc_BAT!Q$6,'Energy Prices'!$F$11:$CR$11,0))/100000,0)","v":0},{"$f":"IFERROR('Data Input - BAT'!V85*INDEX('Energy Prices'!$F$26:$CR$31,MATCH($B129,'Energy Prices'!$C$26:$C$31,0),MATCH(Calc_BAT!R$6,'Energy Prices'!$F$11:$CR$11,0))/100000,0)","v":0},{"$f":"IFERROR('Data Input - BAT'!W85*INDEX('Energy Prices'!$F$26:$CR$31,MATCH($B129,'Energy Prices'!$C$26:$C$31,0),MATCH(Calc_BAT!S$6,'Energy Prices'!$F$11:$CR$11,0))/100000,0)","v":0},{"$f":"IFERROR('Data Input - BAT'!X85*INDEX('Energy Prices'!$F$26:$CR$31,MATCH($B129,'Energy Prices'!$C$26:$C$31,0),MATCH(Calc_BAT!T$6,'Energy Prices'!$F$11:$CR$11,0))/100000,0)","v":0},{"$f":"IFERROR('Data Input - BAT'!Y85*INDEX('Energy Prices'!$F$26:$CR$31,MATCH($B129,'Energy Prices'!$C$26:$C$31,0),MATCH(Calc_BAT!U$6,'Energy Prices'!$F$11:$CR$11,0))/100000,0)","v":0},{"$f":"IFERROR('Data Input - BAT'!Z85*INDEX('Energy Prices'!$F$26:$CR$31,MATCH($B129,'Energy Prices'!$C$26:$C$31,0),MATCH(Calc_BAT!V$6,'Energy Prices'!$F$11:$CR$11,0))/100000,0)","v":0},{"$f":"IFERROR('Data Input - BAT'!AA85*INDEX('Energy Prices'!$F$26:$CR$31,MATCH($B129,'Energy Prices'!$C$26:$C$31,0),MATCH(Calc_BAT!W$6,'Energy Prices'!$F$11:$CR$11,0))/100000,0)","v":0},{"$f":"IFERROR('Data Input - BAT'!AB85*INDEX('Energy Prices'!$F$26:$CR$31,MATCH($B129,'Energy Prices'!$C$26:$C$31,0),MATCH(Calc_BAT!X$6,'Energy Prices'!$F$11:$CR$11,0))/100000,0)","v":0},{"$f":"IFERROR('Data Input - BAT'!AC85*INDEX('Energy Prices'!$F$26:$CR$31,MATCH($B129,'Energy Prices'!$C$26:$C$31,0),MATCH(Calc_BAT!Y$6,'Energy Prices'!$F$11:$CR$11,0))/100000,0)","v":0},{"$f":"IFERROR('Data Input - BAT'!AD85*INDEX('Energy Prices'!$F$26:$CR$31,MATCH($B129,'Energy Prices'!$C$26:$C$31,0),MATCH(Calc_BAT!Z$6,'Energy Prices'!$F$11:$CR$11,0))/100000,0)","v":0},{"$f":"IFERROR('Data Input - BAT'!AE85*INDEX('Energy Prices'!$F$26:$CR$31,MATCH($B129,'Energy Prices'!$C$26:$C$31,0),MATCH(Calc_BAT!AA$6,'Energy Prices'!$F$11:$CR$11,0))/100000,0)","v":0},{"$f":"IFERROR('Data Input - BAT'!AF85*INDEX('Energy Prices'!$F$26:$CR$31,MATCH($B129,'Energy Prices'!$C$26:$C$31,0),MATCH(Calc_BAT!AB$6,'Energy Prices'!$F$11:$CR$11,0))/100000,0)","v":0},{"$f":"IFERROR('Data Input - BAT'!AG85*INDEX('Energy Prices'!$F$26:$CR$31,MATCH($B129,'Energy Prices'!$C$26:$C$31,0),MATCH(Calc_BAT!AC$6,'Energy Prices'!$F$11:$CR$11,0))/100000,0)","v":0},{"$f":"IFERROR('Data Input - BAT'!AH85*INDEX('Energy Prices'!$F$26:$CR$31,MATCH($B129,'Energy Prices'!$C$26:$C$31,0),MATCH(Calc_BAT!AD$6,'Energy Prices'!$F$11:$CR$11,0))/100000,0)","v":0},{"$f":"IFERROR('Data Input - BAT'!AI85*INDEX('Energy Prices'!$F$26:$CR$31,MATCH($B129,'Energy Prices'!$C$26:$C$31,0),MATCH(Calc_BAT!AE$6,'Energy Prices'!$F$11:$CR$11,0))/100000,0)","v":0},{"$f":"IFERROR('Data Input - BAT'!AJ85*INDEX('Energy Prices'!$F$26:$CR$31,MATCH($B129,'Energy Prices'!$C$26:$C$31,0),MATCH(Calc_BAT!AF$6,'Energy Prices'!$F$11:$CR$11,0))/100000,0)","v":0},{"$f":"IFERROR('Data Input - BAT'!AK85*INDEX('Energy Prices'!$F$26:$CR$31,MATCH($B129,'Energy Prices'!$C$26:$C$31,0),MATCH(Calc_BAT!AG$6,'Energy Prices'!$F$11:$CR$11,0))/100000,0)","v":0},{"$f":"IFERROR('Data Input - BAT'!AL85*INDEX('Energy Prices'!$F$26:$CR$31,MATCH($B129,'Energy Prices'!$C$26:$C$31,0),MATCH(Calc_BAT!AH$6,'Energy Prices'!$F$11:$CR$11,0))/100000,0)","v":0},{"$f":"IFERROR('Data Input - BAT'!AM85*INDEX('Energy Prices'!$F$26:$CR$31,MATCH($B129,'Energy Prices'!$C$26:$C$31,0),MATCH(Calc_BAT!AI$6,'Energy Prices'!$F$11:$CR$11,0))/100000,0)","v":0},{"$f":"IFERROR('Data Input - BAT'!AN85*INDEX('Energy Prices'!$F$26:$CR$31,MATCH($B129,'Energy Prices'!$C$26:$C$31,0),MATCH(Calc_BAT!AJ$6,'Energy Prices'!$F$11:$CR$11,0))/100000,0)","v":0},{"$f":"IFERROR('Data Input - BAT'!AO85*INDEX('Energy Prices'!$F$26:$CR$31,MATCH($B129,'Energy Prices'!$C$26:$C$31,0),MATCH(Calc_BAT!AK$6,'Energy Prices'!$F$11:$CR$11,0))/100000,0)","v":0},{"$f":"IFERROR('Data Input - BAT'!AP85*INDEX('Energy Prices'!$F$26:$CR$31,MATCH($B129,'Energy Prices'!$C$26:$C$31,0),MATCH(Calc_BAT!AL$6,'Energy Prices'!$F$11:$CR$11,0))/100000,0)","v":0},{"$f":"IFERROR('Data Input - BAT'!AQ85*INDEX('Energy Prices'!$F$26:$CR$31,MATCH($B129,'Energy Prices'!$C$26:$C$31,0),MATCH(Calc_BAT!AM$6,'Energy Prices'!$F$11:$CR$11,0))/100000,0)","v":0},{"$f":"IFERROR('Data Input - BAT'!AR85*INDEX('Energy Prices'!$F$26:$CR$31,MATCH($B129,'Energy Prices'!$C$26:$C$31,0),MATCH(Calc_BAT!AN$6,'Energy Prices'!$F$11:$CR$11,0))/100000,0)","v":0},{"$f":"IFERROR('Data Input - BAT'!AS85*INDEX('Energy Prices'!$F$26:$CR$31,MATCH($B129,'Energy Prices'!$C$26:$C$31,0),MATCH(Calc_BAT!AO$6,'Energy Prices'!$F$11:$CR$11,0))/100000,0)","v":0},{"$f":"IFERROR('Data Input - BAT'!AT85*INDEX('Energy Prices'!$F$26:$CR$31,MATCH($B129,'Energy Prices'!$C$26:$C$31,0),MATCH(Calc_BAT!AP$6,'Energy Prices'!$F$11:$CR$11,0))/100000,0)","v":0},{"$f":"IFERROR('Data Input - BAT'!AU85*INDEX('Energy Prices'!$F$26:$CR$31,MATCH($B129,'Energy Prices'!$C$26:$C$31,0),MATCH(Calc_BAT!AQ$6,'Energy Prices'!$F$11:$CR$11,0))/100000,0)","v":0},{"$f":"IFERROR('Data Input - BAT'!AV85*INDEX('Energy Prices'!$F$26:$CR$31,MATCH($B129,'Energy Prices'!$C$26:$C$31,0),MATCH(Calc_BAT!AR$6,'Energy Prices'!$F$11:$CR$11,0))/100000,0)","v":0},{"$f":"IFERROR('Data Input - BAT'!AW85*INDEX('Energy Prices'!$F$26:$CR$31,MATCH($B129,'Energy Prices'!$C$26:$C$31,0),MATCH(Calc_BAT!AS$6,'Energy Prices'!$F$11:$CR$11,0))/100000,0)","v":0},{"$f":"IFERROR('Data Input - BAT'!AX85*INDEX('Energy Prices'!$F$26:$CR$31,MATCH($B129,'Energy Prices'!$C$26:$C$31,0),MATCH(Calc_BAT!AT$6,'Energy Prices'!$F$11:$CR$11,0))/100000,0)","v":0},{"$f":"IFERROR('Data Input - BAT'!AY85*INDEX('Energy Prices'!$F$26:$CR$31,MATCH($B129,'Energy Prices'!$C$26:$C$31,0),MATCH(Calc_BAT!AU$6,'Energy Prices'!$F$11:$CR$11,0))/100000,0)","v":0},{"$f":"IFERROR('Data Input - BAT'!AZ85*INDEX('Energy Prices'!$F$26:$CR$31,MATCH($B129,'Energy Prices'!$C$26:$C$31,0),MATCH(Calc_BAT!AV$6,'Energy Prices'!$F$11:$CR$11,0))/100000,0)","v":0},{"$f":"IFERROR('Data Input - BAT'!BA85*INDEX('Energy Prices'!$F$26:$CR$31,MATCH($B129,'Energy Prices'!$C$26:$C$31,0),MATCH(Calc_BAT!AW$6,'Energy Prices'!$F$11:$CR$11,0))/100000,0)","v":0},{"$f":"IFERROR('Data Input - BAT'!BB85*INDEX('Energy Prices'!$F$26:$CR$31,MATCH($B129,'Energy Prices'!$C$26:$C$31,0),MATCH(Calc_BAT!AX$6,'Energy Prices'!$F$11:$CR$11,0))/100000,0)","v":0},{"$f":"IFERROR('Data Input - BAT'!BC85*INDEX('Energy Prices'!$F$26:$CR$31,MATCH($B129,'Energy Prices'!$C$26:$C$31,0),MATCH(Calc_BAT!AY$6,'Energy Prices'!$F$11:$CR$11,0))/100000,0)","v":0},{"$f":"IFERROR('Data Input - BAT'!BD85*INDEX('Energy Prices'!$F$26:$CR$31,MATCH($B129,'Energy Prices'!$C$26:$C$31,0),MATCH(Calc_BAT!AZ$6,'Energy Prices'!$F$11:$CR$11,0))/100000,0)","v":0},{"$f":"IFERROR('Data Input - BAT'!BE85*INDEX('Energy Prices'!$F$26:$CR$31,MATCH($B129,'Energy Prices'!$C$26:$C$31,0),MATCH(Calc_BAT!BA$6,'Energy Prices'!$F$11:$CR$11,0))/100000,0)","v":0},{"$f":"IFERROR('Data Input - BAT'!BF85*INDEX('Energy Prices'!$F$26:$CR$31,MATCH($B129,'Energy Prices'!$C$26:$C$31,0),MATCH(Calc_BAT!BB$6,'Energy Prices'!$F$11:$CR$11,0))/100000,0)","v":0},{"$f":"IFERROR('Data Input - BAT'!BG85*INDEX('Energy Prices'!$F$26:$CR$31,MATCH($B129,'Energy Prices'!$C$26:$C$31,0),MATCH(Calc_BAT!BC$6,'Energy Prices'!$F$11:$CR$11,0))/100000,0)","v":0},{"$f":"IFERROR('Data Input - BAT'!BH85*INDEX('Energy Prices'!$F$26:$CR$31,MATCH($B129,'Energy Prices'!$C$26:$C$31,0),MATCH(Calc_BAT!BD$6,'Energy Prices'!$F$11:$CR$11,0))/100000,0)","v":0},{"$f":"IFERROR('Data Input - BAT'!BI85*INDEX('Energy Prices'!$F$26:$CR$31,MATCH($B129,'Energy Prices'!$C$26:$C$31,0),MATCH(Calc_BAT!BE$6,'Energy Prices'!$F$11:$CR$11,0))/100000,0)","v":0},{"$f":"IFERROR('Data Input - BAT'!BJ85*INDEX('Energy Prices'!$F$26:$CR$31,MATCH($B129,'Energy Prices'!$C$26:$C$31,0),MATCH(Calc_BAT!BF$6,'Energy Prices'!$F$11:$CR$11,0))/100000,0)","v":0},{"$f":"IFERROR('Data Input - BAT'!BK85*INDEX('Energy Prices'!$F$26:$CR$31,MATCH($B129,'Energy Prices'!$C$26:$C$31,0),MATCH(Calc_BAT!BG$6,'Energy Prices'!$F$11:$CR$11,0))/100000,0)","v":0},{"$f":"IFERROR('Data Input - BAT'!BL85*INDEX('Energy Prices'!$F$26:$CR$31,MATCH($B129,'Energy Prices'!$C$26:$C$31,0),MATCH(Calc_BAT!BH$6,'Energy Prices'!$F$11:$CR$11,0))/100000,0)","v":0},{"$f":"IFERROR('Data Input - BAT'!BM85*INDEX('Energy Prices'!$F$26:$CR$31,MATCH($B129,'Energy Prices'!$C$26:$C$31,0),MATCH(Calc_BAT!BI$6,'Energy Prices'!$F$11:$CR$11,0))/100000,0)","v":0},{"$f":"IFERROR('Data Input - BAT'!BN85*INDEX('Energy Prices'!$F$26:$CR$31,MATCH($B129,'Energy Prices'!$C$26:$C$31,0),MATCH(Calc_BAT!BJ$6,'Energy Prices'!$F$11:$CR$11,0))/100000,0)","v":0},{"$f":"IFERROR('Data Input - BAT'!BO85*INDEX('Energy Prices'!$F$26:$CR$31,MATCH($B129,'Energy Prices'!$C$26:$C$31,0),MATCH(Calc_BAT!BK$6,'Energy Prices'!$F$11:$CR$11,0))/100000,0)","v":0},{"$f":"IFERROR('Data Input - BAT'!BP85*INDEX('Energy Prices'!$F$26:$CR$31,MATCH($B129,'Energy Prices'!$C$26:$C$31,0),MATCH(Calc_BAT!BL$6,'Energy Prices'!$F$11:$CR$11,0))/100000,0)","v":0},{"$f":"IFERROR('Data Input - BAT'!BQ85*INDEX('Energy Prices'!$F$26:$CR$31,MATCH($B129,'Energy Prices'!$C$26:$C$31,0),MATCH(Calc_BAT!BM$6,'Energy Prices'!$F$11:$CR$11,0))/100000,0)","v":0},{"$f":"IFERROR('Data Input - BAT'!BR85*INDEX('Energy Prices'!$F$26:$CR$31,MATCH($B129,'Energy Prices'!$C$26:$C$31,0),MATCH(Calc_BAT!BN$6,'Energy Prices'!$F$11:$CR$11,0))/100000,0)","v":0},{"$f":"IFERROR('Data Input - BAT'!BS85*INDEX('Energy Prices'!$F$26:$CR$31,MATCH($B129,'Energy Prices'!$C$26:$C$31,0),MATCH(Calc_BAT!BO$6,'Energy Prices'!$F$11:$CR$11,0))/100000,0)","v":0},{"$f":"IFERROR('Data Input - BAT'!BT85*INDEX('Energy Prices'!$F$26:$CR$31,MATCH($B129,'Energy Prices'!$C$26:$C$31,0),MATCH(Calc_BAT!BP$6,'Energy Prices'!$F$11:$CR$11,0))/100000,0)","v":0},{"$f":"IFERROR('Data Input - BAT'!BU85*INDEX('Energy Prices'!$F$26:$CR$31,MATCH($B129,'Energy Prices'!$C$26:$C$31,0),MATCH(Calc_BAT!BQ$6,'Energy Prices'!$F$11:$CR$11,0))/100000,0)","v":0},{"$f":"IFERROR('Data Input - BAT'!BV85*INDEX('Energy Prices'!$F$26:$CR$31,MATCH($B129,'Energy Prices'!$C$26:$C$31,0),MATCH(Calc_BAT!BR$6,'Energy Prices'!$F$11:$CR$11,0))/100000,0)","v":0},{"$f":"IFERROR('Data Input - BAT'!BW85*INDEX('Energy Prices'!$F$26:$CR$31,MATCH($B129,'Energy Prices'!$C$26:$C$31,0),MATCH(Calc_BAT!BS$6,'Energy Prices'!$F$11:$CR$11,0))/100000,0)","v":0},{"$f":"IFERROR('Data Input - BAT'!BX85*INDEX('Energy Prices'!$F$26:$CR$31,MATCH($B129,'Energy Prices'!$C$26:$C$31,0),MATCH(Calc_BAT!BT$6,'Energy Prices'!$F$11:$CR$11,0))/100000,0)","v":0},{"$f":"IFERROR('Data Input - BAT'!BY85*INDEX('Energy Prices'!$F$26:$CR$31,MATCH($B129,'Energy Prices'!$C$26:$C$31,0),MATCH(Calc_BAT!BU$6,'Energy Prices'!$F$11:$CR$11,0))/100000,0)","v":0},{"$f":"IFERROR('Data Input - BAT'!BZ85*INDEX('Energy Prices'!$F$26:$CR$31,MATCH($B129,'Energy Prices'!$C$26:$C$31,0),MATCH(Calc_BAT!BV$6,'Energy Prices'!$F$11:$CR$11,0))/100000,0)","v":0},{"$f":"IFERROR('Data Input - BAT'!CA85*INDEX('Energy Prices'!$F$26:$CR$31,MATCH($B129,'Energy Prices'!$C$26:$C$31,0),MATCH(Calc_BAT!BW$6,'Energy Prices'!$F$11:$CR$11,0))/100000,0)","v":0},{"$f":"IFERROR('Data Input - BAT'!CB85*INDEX('Energy Prices'!$F$26:$CR$31,MATCH($B129,'Energy Prices'!$C$26:$C$31,0),MATCH(Calc_BAT!BX$6,'Energy Prices'!$F$11:$CR$11,0))/100000,0)","v":0},{"$f":"IFERROR('Data Input - BAT'!CC85*INDEX('Energy Prices'!$F$26:$CR$31,MATCH($B129,'Energy Prices'!$C$26:$C$31,0),MATCH(Calc_BAT!BY$6,'Energy Prices'!$F$11:$CR$11,0))/100000,0)","v":0},{"$f":"IFERROR('Data Input - BAT'!CD85*INDEX('Energy Prices'!$F$26:$CR$31,MATCH($B129,'Energy Prices'!$C$26:$C$31,0),MATCH(Calc_BAT!BZ$6,'Energy Prices'!$F$11:$CR$11,0))/100000,0)","v":0},{"$f":"IFERROR('Data Input - BAT'!CE85*INDEX('Energy Prices'!$F$26:$CR$31,MATCH($B129,'Energy Prices'!$C$26:$C$31,0),MATCH(Calc_BAT!CA$6,'Energy Prices'!$F$11:$CR$11,0))/100000,0)","v":0},{"$f":"IFERROR('Data Input - BAT'!CF85*INDEX('Energy Prices'!$F$26:$CR$31,MATCH($B129,'Energy Prices'!$C$26:$C$31,0),MATCH(Calc_BAT!CB$6,'Energy Prices'!$F$11:$CR$11,0))/100000,0)","v":0},{"$f":"IFERROR('Data Input - BAT'!CG85*INDEX('Energy Prices'!$F$26:$CR$31,MATCH($B129,'Energy Prices'!$C$26:$C$31,0),MATCH(Calc_BAT!CC$6,'Energy Prices'!$F$11:$CR$11,0))/100000,0)","v":0},{"$f":"IFERROR('Data Input - BAT'!CH85*INDEX('Energy Prices'!$F$26:$CR$31,MATCH($B129,'Energy Prices'!$C$26:$C$31,0),MATCH(Calc_BAT!CD$6,'Energy Prices'!$F$11:$CR$11,0))/100000,0)","v":0},{"$f":"IFERROR('Data Input - BAT'!CI85*INDEX('Energy Prices'!$F$26:$CR$31,MATCH($B129,'Energy Prices'!$C$26:$C$31,0),MATCH(Calc_BAT!CE$6,'Energy Prices'!$F$11:$CR$11,0))/100000,0)","v":0},{"$f":"IFERROR('Data Input - BAT'!CJ85*INDEX('Energy Prices'!$F$26:$CR$31,MATCH($B129,'Energy Prices'!$C$26:$C$31,0),MATCH(Calc_BAT!CF$6,'Energy Prices'!$F$11:$CR$11,0))/100000,0)","v":0},{"$f":"IFERROR('Data Input - BAT'!CK85*INDEX('Energy Prices'!$F$26:$CR$31,MATCH($B129,'Energy Prices'!$C$26:$C$31,0),MATCH(Calc_BAT!CG$6,'Energy Prices'!$F$11:$CR$11,0))/100000,0)","v":0},{"$f":"IFERROR('Data Input - BAT'!CL85*INDEX('Energy Prices'!$F$26:$CR$31,MATCH($B129,'Energy Prices'!$C$26:$C$31,0),MATCH(Calc_BAT!CH$6,'Energy Prices'!$F$11:$CR$11,0))/100000,0)","v":0},{"$f":"IFERROR('Data Input - BAT'!CM85*INDEX('Energy Prices'!$F$26:$CR$31,MATCH($B129,'Energy Prices'!$C$26:$C$31,0),MATCH(Calc_BAT!CI$6,'Energy Prices'!$F$11:$CR$11,0))/100000,0)","v":0},{"$f":"IFERROR('Data Input - BAT'!CN85*INDEX('Energy Prices'!$F$26:$CR$31,MATCH($B129,'Energy Prices'!$C$26:$C$31,0),MATCH(Calc_BAT!CJ$6,'Energy Prices'!$F$11:$CR$11,0))/100000,0)","v":0},{"$f":"IFERROR('Data Input - BAT'!CO85*INDEX('Energy Prices'!$F$26:$CR$31,MATCH($B129,'Energy Prices'!$C$26:$C$31,0),MATCH(Calc_BAT!CK$6,'Energy Prices'!$F$11:$CR$11,0))/100000,0)","v":0},{"$f":"IFERROR('Data Input - BAT'!CP85*INDEX('Energy Prices'!$F$26:$CR$31,MATCH($B129,'Energy Prices'!$C$26:$C$31,0),MATCH(Calc_BAT!CL$6,'Energy Prices'!$F$11:$CR$11,0))/100000,0)","v":0},{"$f":"IFERROR('Data Input - BAT'!CQ85*INDEX('Energy Prices'!$F$26:$CR$31,MATCH($B129,'Energy Prices'!$C$26:$C$31,0),MATCH(Calc_BAT!CM$6,'Energy Prices'!$F$11:$CR$11,0))/100000,0)","v":0},{"$f":"IFERROR('Data Input - BAT'!CR85*INDEX('Energy Prices'!$F$26:$CR$31,MATCH($B129,'Energy Prices'!$C$26:$C$31,0),MATCH(Calc_BAT!CN$6,'Energy Prices'!$F$11:$CR$11,0))/100000,0)","v":0},{"$f":"IFERROR('Data Input - BAT'!CS85*INDEX('Energy Prices'!$F$26:$CR$31,MATCH($B129,'Energy Prices'!$C$26:$C$31,0),MATCH(Calc_BAT!CO$6,'Energy Prices'!$F$11:$CR$11,0))/100000,0)","v":0},{"$f":"IFERROR('Data Input - BAT'!CT85*INDEX('Energy Prices'!$F$26:$CR$31,MATCH($B129,'Energy Prices'!$C$26:$C$31,0),MATCH(Calc_BAT!CP$6,'Energy Prices'!$F$11:$CR$11,0))/100000,0)","v":0},{"$f":"IFERROR('Data Input - BAT'!CU85*INDEX('Energy Prices'!$F$26:$CR$31,MATCH($B129,'Energy Prices'!$C$26:$C$31,0),MATCH(Calc_BAT!CQ$6,'Energy Prices'!$F$11:$CR$11,0))/100000,0)","v":0},{"$f":"IFERROR('Data Input - BAT'!CV85*INDEX('Energy Prices'!$F$26:$CR$31,MATCH($B129,'Energy Prices'!$C$26:$C$31,0),MATCH(Calc_BAT!CR$6,'Energy Prices'!$F$11:$CR$11,0))/100000,0)","v":0},{"$f":"IFERROR('Data Input - BAT'!CW85*INDEX('Energy Prices'!$F$26:$CR$31,MATCH($B129,'Energy Prices'!$C$26:$C$31,0),MATCH(Calc_BAT!CS$6,'Energy Prices'!$F$11:$CR$11,0))/100000,0)","v":0},{"$f":"IFERROR('Data Input - BAT'!CX85*INDEX('Energy Prices'!$F$26:$CR$31,MATCH($B129,'Energy Prices'!$C$26:$C$31,0),MATCH(Calc_BAT!CT$6,'Energy Prices'!$F$11:$CR$11,0))/100000,0)","v":0},{"$f":"IFERROR('Data Input - BAT'!CY85*INDEX('Energy Prices'!$F$26:$CR$31,MATCH($B129,'Energy Prices'!$C$26:$C$31,0),MATCH(Calc_BAT!CU$6,'Energy Prices'!$F$11:$CR$11,0))/100000,0)","v":0},{"$f":"IFERROR('Data Input - BAT'!CZ85*INDEX('Energy Prices'!$F$26:$CR$31,MATCH($B129,'Energy Prices'!$C$26:$C$31,0),MATCH(Calc_BAT!CV$6,'Energy Prices'!$F$11:$CR$11,0))/100000,0)","v":0},{"$f":"IFERROR('Data Input - BAT'!DA85*INDEX('Energy Prices'!$F$26:$CR$31,MATCH($B129,'Energy Prices'!$C$26:$C$31,0),MATCH(Calc_BAT!CW$6,'Energy Prices'!$F$11:$CR$11,0))/100000,0)","v":0},{"$f":"IFERROR('Data Input - BAT'!DB85*INDEX('Energy Prices'!$F$26:$CR$31,MATCH($B129,'Energy Prices'!$C$26:$C$31,0),MATCH(Calc_BAT!CX$6,'Energy Prices'!$F$11:$CR$11,0))/100000,0)","v":0},{"$f":"IFERROR('Data Input - BAT'!DC85*INDEX('Energy Prices'!$F$26:$CR$31,MATCH($B129,'Energy Prices'!$C$26:$C$31,0),MATCH(Calc_BAT!CY$6,'Energy Prices'!$F$11:$CR$11,0))/100000,0)","v":0}]
[null,"Coal","£000's",{"$f":"IFERROR('Data Input - BAT'!H86*INDEX('Energy Prices'!$F$26:$CR$31,MATCH($B130,'Energy Prices'!$C$26:$C$31,0),MATCH(Calc_BAT!D$6,'Energy Prices'!$F$11:$CR$11,0))/100000,0)","v":1115.9423257851734},{"$f":"IFERROR('Data Input - BAT'!I86*INDEX('Energy Prices'!$F$26:$CR$31,MATCH($B130,'Energy Prices'!$C$26:$C$31,0),MATCH(Calc_BAT!E$6,'Energy Prices'!$F$11:$CR$11,0))/100000,0)","v":1145.3793368593567},{"$f":"IFERROR('Data Input - BAT'!J86*INDEX('Energy Prices'!$F$26:$CR$31,MATCH($B130,'Energy Prices'!$C$26:$C$31,0),MATCH(Calc_BAT!F$6,'Energy Prices'!$F$11:$CR$11,0))/100000,0)","v":1174.8204553424844},{"$f":"IFERROR('Data Input - BAT'!K86*INDEX('Energy Prices'!$F$26:$CR$31,MATCH($B130,'Energy Prices'!$C$26:$C$31,0),MATCH(Calc_BAT!G$6,'Energy Prices'!$F$11:$CR$11,0))/100000,0)","v":1204.2578912819392},{"$f":"IFERROR('Data Input - BAT'!L86*INDEX('Energy Prices'!$F$26:$CR$31,MATCH($B130,'Energy Prices'!$C$26:$C$31,0),MATCH(Calc_BAT!H$6,'Energy Prices'!$F$11:$CR$11,0))/100000,0)","v":1233.6955152831745},{"$f":"IFERROR('Data Input - BAT'!M86*INDEX('Energy Prices'!$F$26:$CR$31,MATCH($B130,'Energy Prices'!$C$26:$C$31,0),MATCH(Calc_BAT!I$6,'Energy Prices'!$F$11:$CR$11,0))/100000,0)","v":1263.1333286330253},{"$f":"IFERROR('Data Input - BAT'!N86*INDEX('Energy Prices'!$F$26:$CR$31,MATCH($B130,'Energy Prices'!$C$26:$C$31,0),MATCH(Calc_BAT!J$6,'Energy Prices'!$F$11:$CR$11,0))/100000,0)","v":1292.5713326271323},{"$f":"IFERROR('Data Input - BAT'!O86*INDEX('Energy Prices'!$F$26:$CR$31,MATCH($B130,'Energy Prices'!$C$26:$C$31,0),MATCH(Calc_BAT!K$6,'Energy Prices'!$F$11:$CR$11,0))/100000,0)","v":1322.009528570002},{"$f":"IFERROR('Data Input - BAT'!P86*INDEX('Energy Prices'!$F$26:$CR$31,MATCH($B130,'Energy Prices'!$C$26:$C$31,0),MATCH(Calc_BAT!L$6,'Energy Prices'!$F$11:$CR$11,0))/100000,0)","v":0},{"$f":"IFERROR('Data Input - BAT'!Q86*INDEX('Energy Prices'!$F$26:$CR$31,MATCH($B130,'Energy Prices'!$C$26:$C$31,0),MATCH(Calc_BAT!M$6,'Energy Prices'!$F$11:$CR$11,0))/100000,0)","v":0},{"$f":"IFERROR('Data Input - BAT'!R86*INDEX('Energy Prices'!$F$26:$CR$31,MATCH($B130,'Energy Prices'!$C$26:$C$31,0),MATCH(Calc_BAT!N$6,'Energy Prices'!$F$11:$CR$11,0))/100000,0)","v":0},{"$f":"IFERROR('Data Input - BAT'!S86*INDEX('Energy Prices'!$F$26:$CR$31,MATCH($B130,'Energy Prices'!$C$26:$C$31,0),MATCH(Calc_BAT!O$6,'Energy Prices'!$F$11:$CR$11,0))/100000,0)","v":0},{"$f":"IFERROR('Data Input - BAT'!T86*INDEX('Energy Prices'!$F$26:$CR$31,MATCH($B130,'Energy Prices'!$C$26:$C$31,0),MATCH(Calc_BAT!P$6,'Energy Prices'!$F$11:$CR$11,0))/100000,0)","v":0},{"$f":"IFERROR('Data Input - BAT'!U86*INDEX('Energy Prices'!$F$26:$CR$31,MATCH($B130,'Energy Prices'!$C$26:$C$31,0),MATCH(Calc_BAT!Q$6,'Energy Prices'!$F$11:$CR$11,0))/100000,0)","v":0},{"$f":"IFERROR('Data Input - BAT'!V86*INDEX('Energy Prices'!$F$26:$CR$31,MATCH($B130,'Energy Prices'!$C$26:$C$31,0),MATCH(Calc_BAT!R$6,'Energy Prices'!$F$11:$CR$11,0))/100000,0)","v":0},{"$f":"IFERROR('Data Input - BAT'!W86*INDEX('Energy Prices'!$F$26:$CR$31,MATCH($B130,'Energy Prices'!$C$26:$C$31,0),MATCH(Calc_BAT!S$6,'Energy Prices'!$F$11:$CR$11,0))/100000,0)","v":0},{"$f":"IFERROR('Data Input - BAT'!X86*INDEX('Energy Prices'!$F$26:$CR$31,MATCH($B130,'Energy Prices'!$C$26:$C$31,0),MATCH(Calc_BAT!T$6,'Energy Prices'!$F$11:$CR$11,0))/100000,0)","v":0},{"$f":"IFERROR('Data Input - BAT'!Y86*INDEX('Energy Prices'!$F$26:$CR$31,MATCH($B130,'Energy Prices'!$C$26:$C$31,0),MATCH(Calc_BAT!U$6,'Energy Prices'!$F$11:$CR$11,0))/100000,0)","v":0},{"$f":"IFERROR('Data Input - BAT'!Z86*INDEX('Energy Prices'!$F$26:$CR$31,MATCH($B130,'Energy Prices'!$C$26:$C$31,0),MATCH(Calc_BAT!V$6,'Energy Prices'!$F$11:$CR$11,0))/100000,0)","v":0},{"$f":"IFERROR('Data Input - BAT'!AA86*INDEX('Energy Prices'!$F$26:$CR$31,MATCH($B130,'Energy Prices'!$C$26:$C$31,0),MATCH(Calc_BAT!W$6,'Energy Prices'!$F$11:$CR$11,0))/100000,0)","v":0},{"$f":"IFERROR('Data Input - BAT'!AB86*INDEX('Energy Prices'!$F$26:$CR$31,MATCH($B130,'Energy Prices'!$C$26:$C$31,0),MATCH(Calc_BAT!X$6,'Energy Prices'!$F$11:$CR$11,0))/100000,0)","v":0},{"$f":"IFERROR('Data Input - BAT'!AC86*INDEX('Energy Prices'!$F$26:$CR$31,MATCH($B130,'Energy Prices'!$C$26:$C$31,0),MATCH(Calc_BAT!Y$6,'Energy Prices'!$F$11:$CR$11,0))/100000,0)","v":0},{"$f":"IFERROR('Data Input - BAT'!AD86*INDEX('Energy Prices'!$F$26:$CR$31,MATCH($B130,'Energy Prices'!$C$26:$C$31,0),MATCH(Calc_BAT!Z$6,'Energy Prices'!$F$11:$CR$11,0))/100000,0)","v":0},{"$f":"IFERROR('Data Input - BAT'!AE86*INDEX('Energy Prices'!$F$26:$CR$31,MATCH($B130,'Energy Prices'!$C$26:$C$31,0),MATCH(Calc_BAT!AA$6,'Energy Prices'!$F$11:$CR$11,0))/100000,0)","v":0},{"$f":"IFERROR('Data Input - BAT'!AF86*INDEX('Energy Prices'!$F$26:$CR$31,MATCH($B130,'Energy Prices'!$C$26:$C$31,0),MATCH(Calc_BAT!AB$6,'Energy Prices'!$F$11:$CR$11,0))/100000,0)","v":0},{"$f":"IFERROR('Data Input - BAT'!AG86*INDEX('Energy Prices'!$F$26:$CR$31,MATCH($B130,'Energy Prices'!$C$26:$C$31,0),MATCH(Calc_BAT!AC$6,'Energy Prices'!$F$11:$CR$11,0))/100000,0)","v":0},{"$f":"IFERROR('Data Input - BAT'!AH86*INDEX('Energy Prices'!$F$26:$CR$31,MATCH($B130,'Energy Prices'!$C$26:$C$31,0),MATCH(Calc_BAT!AD$6,'Energy Prices'!$F$11:$CR$11,0))/100000,0)","v":0},{"$f":"IFERROR('Data Input - BAT'!AI86*INDEX('Energy Prices'!$F$26:$CR$31,MATCH($B130,'Energy Prices'!$C$26:$C$31,0),MATCH(Calc_BAT!AE$6,'Energy Prices'!$F$11:$CR$11,0))/100000,0)","v":0},{"$f":"IFERROR('Data Input - BAT'!AJ86*INDEX('Energy Prices'!$F$26:$CR$31,MATCH($B130,'Energy Prices'!$C$26:$C$31,0),MATCH(Calc_BAT!AF$6,'Energy Prices'!$F$11:$CR$11,0))/100000,0)","v":0},{"$f":"IFERROR('Data Input - BAT'!AK86*INDEX('Energy Prices'!$F$26:$CR$31,MATCH($B130,'Energy Prices'!$C$26:$C$31,0),MATCH(Calc_BAT!AG$6,'Energy Prices'!$F$11:$CR$11,0))/100000,0)","v":0},{"$f":"IFERROR('Data Input - BAT'!AL86*INDEX('Energy Prices'!$F$26:$CR$31,MATCH($B130,'Energy Prices'!$C$26:$C$31,0),MATCH(Calc_BAT!AH$6,'Energy Prices'!$F$11:$CR$11,0))/100000,0)","v":0},{"$f":"IFERROR('Data Input - BAT'!AM86*INDEX('Energy Prices'!$F$26:$CR$31,MATCH($B130,'Energy Prices'!$C$26:$C$31,0),MATCH(Calc_BAT!AI$6,'Energy Prices'!$F$11:$CR$11,0))/100000,0)","v":0},{"$f":"IFERROR('Data Input - BAT'!AN86*INDEX('Energy Prices'!$F$26:$CR$31,MATCH($B130,'Energy Prices'!$C$26:$C$31,0),MATCH(Calc_BAT!AJ$6,'Energy Prices'!$F$11:$CR$11,0))/100000,0)","v":0},{"$f":"IFERROR('Data Input - BAT'!AO86*INDEX('Energy Prices'!$F$26:$CR$31,MATCH($B130,'Energy Prices'!$C$26:$C$31,0),MATCH(Calc_BAT!AK$6,'Energy Prices'!$F$11:$CR$11,0))/100000,0)","v":0},{"$f":"IFERROR('Data Input - BAT'!AP86*INDEX('Energy Prices'!$F$26:$CR$31,MATCH($B130,'Energy Prices'!$C$26:$C$31,0),MATCH(Calc_BAT!AL$6,'Energy Prices'!$F$11:$CR$11,0))/100000,0)","v":0},{"$f":"IFERROR('Data Input - BAT'!AQ86*INDEX('Energy Prices'!$F$26:$CR$31,MATCH($B130,'Energy Prices'!$C$26:$C$31,0),MATCH(Calc_BAT!AM$6,'Energy Prices'!$F$11:$CR$11,0))/100000,0)","v":0},{"$f":"IFERROR('Data Input - BAT'!AR86*INDEX('Energy Prices'!$F$26:$CR$31,MATCH($B130,'Energy Prices'!$C$26:$C$31,0),MATCH(Calc_BAT!AN$6,'Energy Prices'!$F$11:$CR$11,0))/100000,0)","v":0},{"$f":"IFERROR('Data Input - BAT'!AS86*INDEX('Energy Prices'!$F$26:$CR$31,MATCH($B130,'Energy Prices'!$C$26:$C$31,0),MATCH(Calc_BAT!AO$6,'Energy Prices'!$F$11:$CR$11,0))/100000,0)","v":0},{"$f":"IFERROR('Data Input - BAT'!AT86*INDEX('Energy Prices'!$F$26:$CR$31,MATCH($B130,'Energy Prices'!$C$26:$C$31,0),MATCH(Calc_BAT!AP$6,'Energy Prices'!$F$11:$CR$11,0))/100000,0)","v":0},{"$f":"IFERROR('Data Input - BAT'!AU86*INDEX('Energy Prices'!$F$26:$CR$31,MATCH($B130,'Energy Prices'!$C$26:$C$31,0),MATCH(Calc_BAT!AQ$6,'Energy Prices'!$F$11:$CR$11,0))/100000,0)","v":0},{"$f":"IFERROR('Data Input - BAT'!AV86*INDEX('Energy Prices'!$F$26:$CR$31,MATCH($B130,'Energy Prices'!$C$26:$C$31,0),MATCH(Calc_BAT!AR$6,'Energy Prices'!$F$11:$CR$11,0))/100000,0)","v":0},{"$f":"IFERROR('Data Input - BAT'!AW86*INDEX('Energy Prices'!$F$26:$CR$31,MATCH($B130,'Energy Prices'!$C$26:$C$31,0),MATCH(Calc_BAT!AS$6,'Energy Prices'!$F$11:$CR$11,0))/100000,0)","v":0},{"$f":"IFERROR('Data Input - BAT'!AX86*INDEX('Energy Prices'!$F$26:$CR$31,MATCH($B130,'Energy Prices'!$C$26:$C$31,0),MATCH(Calc_BAT!AT$6,'Energy Prices'!$F$11:$CR$11,0))/100000,0)","v":0},{"$f":"IFERROR('Data Input - BAT'!AY86*INDEX('Energy Prices'!$F$26:$CR$31,MATCH($B130,'Energy Prices'!$C$26:$C$31,0),MATCH(Calc_BAT!AU$6,'Energy Prices'!$F$11:$CR$11,0))/100000,0)","v":0},{"$f":"IFERROR('Data Input - BAT'!AZ86*INDEX('Energy Prices'!$F$26:$CR$31,MATCH($B130,'Energy Prices'!$C$26:$C$31,0),MATCH(Calc_BAT!AV$6,'Energy Prices'!$F$11:$CR$11,0))/100000,0)","v":0},{"$f":"IFERROR('Data Input - BAT'!BA86*INDEX('Energy Prices'!$F$26:$CR$31,MATCH($B130,'Energy Prices'!$C$26:$C$31,0),MATCH(Calc_BAT!AW$6,'Energy Prices'!$F$11:$CR$11,0))/100000,0)","v":0},{"$f":"IFERROR('Data Input - BAT'!BB86*INDEX('Energy Prices'!$F$26:$CR$31,MATCH($B130,'Energy Prices'!$C$26:$C$31,0),MATCH(Calc_BAT!AX$6,'Energy Prices'!$F$11:$CR$11,0))/100000,0)","v":0},{"$f":"IFERROR('Data Input - BAT'!BC86*INDEX('Energy Prices'!$F$26:$CR$31,MATCH($B130,'Energy Prices'!$C$26:$C$31,0),MATCH(Calc_BAT!AY$6,'Energy Prices'!$F$11:$CR$11,0))/100000,0)","v":0},{"$f":"IFERROR('Data Input - BAT'!BD86*INDEX('Energy Prices'!$F$26:$CR$31,MATCH($B130,'Energy Prices'!$C$26:$C$31,0),MATCH(Calc_BAT!AZ$6,'Energy Prices'!$F$11:$CR$11,0))/100000,0)","v":0},{"$f":"IFERROR('Data Input - BAT'!BE86*INDEX('Energy Prices'!$F$26:$CR$31,MATCH($B130,'Energy Prices'!$C$26:$C$31,0),MATCH(Calc_BAT!BA$6,'Energy Prices'!$F$11:$CR$11,0))/100000,0)","v":0},{"$f":"IFERROR('Data Input - BAT'!BF86*INDEX('Energy Prices'!$F$26:$CR$31,MATCH($B130,'Energy Prices'!$C$26:$C$31,0),MATCH(Calc_BAT!BB$6,'Energy Prices'!$F$11:$CR$11,0))/100000,0)","v":0},{"$f":"IFERROR('Data Input - BAT'!BG86*INDEX('Energy Prices'!$F$26:$CR$31,MATCH($B130,'Energy Prices'!$C$26:$C$31,0),MATCH(Calc_BAT!BC$6,'Energy Prices'!$F$11:$CR$11,0))/100000,0)","v":0},{"$f":"IFERROR('Data Input - BAT'!BH86*INDEX('Energy Prices'!$F$26:$CR$31,MATCH($B130,'Energy Prices'!$C$26:$C$31,0),MATCH(Calc_BAT!BD$6,'Energy Prices'!$F$11:$CR$11,0))/100000,0)","v":0},{"$f":"IFERROR('Data Input - BAT'!BI86*INDEX('Energy Prices'!$F$26:$CR$31,MATCH($B130,'Energy Prices'!$C$26:$C$31,0),MATCH(Calc_BAT!BE$6,'Energy Prices'!$F$11:$CR$11,0))/100000,0)","v":0},{"$f":"IFERROR('Data Input - BAT'!BJ86*INDEX('Energy Prices'!$F$26:$CR$31,MATCH($B130,'Energy Prices'!$C$26:$C$31,0),MATCH(Calc_BAT!BF$6,'Energy Prices'!$F$11:$CR$11,0))/100000,0)","v":0},{"$f":"IFERROR('Data Input - BAT'!BK86*INDEX('Energy Prices'!$F$26:$CR$31,MATCH($B130,'Energy Prices'!$C$26:$C$31,0),MATCH(Calc_BAT!BG$6,'Energy Prices'!$F$11:$CR$11,0))/100000,0)","v":0},{"$f":"IFERROR('Data Input - BAT'!BL86*INDEX('Energy Prices'!$F$26:$CR$31,MATCH($B130,'Energy Prices'!$C$26:$C$31,0),MATCH(Calc_BAT!BH$6,'Energy Prices'!$F$11:$CR$11,0))/100000,0)","v":0},{"$f":"IFERROR('Data Input - BAT'!BM86*INDEX('Energy Prices'!$F$26:$CR$31,MATCH($B130,'Energy Prices'!$C$26:$C$31,0),MATCH(Calc_BAT!BI$6,'Energy Prices'!$F$11:$CR$11,0))/100000,0)","v":0},{"$f":"IFERROR('Data Input - BAT'!BN86*INDEX('Energy Prices'!$F$26:$CR$31,MATCH($B130,'Energy Prices'!$C$26:$C$31,0),MATCH(Calc_BAT!BJ$6,'Energy Prices'!$F$11:$CR$11,0))/100000,0)","v":0},{"$f":"IFERROR('Data Input - BAT'!BO86*INDEX('Energy Prices'!$F$26:$CR$31,MATCH($B130,'Energy Prices'!$C$26:$C$31,0),MATCH(Calc_BAT!BK$6,'Energy Prices'!$F$11:$CR$11,0))/100000,0)","v":0},{"$f":"IFERROR('Data Input - BAT'!BP86*INDEX('Energy Prices'!$F$26:$CR$31,MATCH($B130,'Energy Prices'!$C$26:$C$31,0),MATCH(Calc_BAT!BL$6,'Energy Prices'!$F$11:$CR$11,0))/100000,0)","v":0},{"$f":"IFERROR('Data Input - BAT'!BQ86*INDEX('Energy Prices'!$F$26:$CR$31,MATCH($B130,'Energy Prices'!$C$26:$C$31,0),MATCH(Calc_BAT!BM$6,'Energy Prices'!$F$11:$CR$11,0))/100000,0)","v":0},{"$f":"IFERROR('Data Input - BAT'!BR86*INDEX('Energy Prices'!$F$26:$CR$31,MATCH($B130,'Energy Prices'!$C$26:$C$31,0),MATCH(Calc_BAT!BN$6,'Energy Prices'!$F$11:$CR$11,0))/100000,0)","v":0},{"$f":"IFERROR('Data Input - BAT'!BS86*INDEX('Energy Prices'!$F$26:$CR$31,MATCH($B130,'Energy Prices'!$C$26:$C$31,0),MATCH(Calc_BAT!BO$6,'Energy Prices'!$F$11:$CR$11,0))/100000,0)","v":0},{"$f":"IFERROR('Data Input - BAT'!BT86*INDEX('Energy Prices'!$F$26:$CR$31,MATCH($B130,'Energy Prices'!$C$26:$C$31,0),MATCH(Calc_BAT!BP$6,'Energy Prices'!$F$11:$CR$11,0))/100000,0)","v":0},{"$f":"IFERROR('Data Input - BAT'!BU86*INDEX('Energy Prices'!$F$26:$CR$31,MATCH($B130,'Energy Prices'!$C$26:$C$31,0),MATCH(Calc_BAT!BQ$6,'Energy Prices'!$F$11:$CR$11,0))/100000,0)","v":0},{"$f":"IFERROR('Data Input - BAT'!BV86*INDEX('Energy Prices'!$F$26:$CR$31,MATCH($B130,'Energy Prices'!$C$26:$C$31,0),MATCH(Calc_BAT!BR$6,'Energy Prices'!$F$11:$CR$11,0))/100000,0)","v":0},{"$f":"IFERROR('Data Input - BAT'!BW86*INDEX('Energy Prices'!$F$26:$CR$31,MATCH($B130,'Energy Prices'!$C$26:$C$31,0),MATCH(Calc_BAT!BS$6,'Energy Prices'!$F$11:$CR$11,0))/100000,0)","v":0},{"$f":"IFERROR('Data Input - BAT'!BX86*INDEX('Energy Prices'!$F$26:$CR$31,MATCH($B130,'Energy Prices'!$C$26:$C$31,0),MATCH(Calc_BAT!BT$6,'Energy Prices'!$F$11:$CR$11,0))/100000,0)","v":0},{"$f":"IFERROR('Data Input - BAT'!BY86*INDEX('Energy Prices'!$F$26:$CR$31,MATCH($B130,'Energy Prices'!$C$26:$C$31,0),MATCH(Calc_BAT!BU$6,'Energy Prices'!$F$11:$CR$11,0))/100000,0)","v":0},{"$f":"IFERROR('Data Input - BAT'!BZ86*INDEX('Energy Prices'!$F$26:$CR$31,MATCH($B130,'Energy Prices'!$C$26:$C$31,0),MATCH(Calc_BAT!BV$6,'Energy Prices'!$F$11:$CR$11,0))/100000,0)","v":0},{"$f":"IFERROR('Data Input - BAT'!CA86*INDEX('Energy Prices'!$F$26:$CR$31,MATCH($B130,'Energy Prices'!$C$26:$C$31,0),MATCH(Calc_BAT!BW$6,'Energy Prices'!$F$11:$CR$11,0))/100000,0)","v":0},{"$f":"IFERROR('Data Input - BAT'!CB86*INDEX('Energy Prices'!$F$26:$CR$31,MATCH($B130,'Energy Prices'!$C$26:$C$31,0),MATCH(Calc_BAT!BX$6,'Energy Prices'!$F$11:$CR$11,0))/100000,0)","v":0},{"$f":"IFERROR('Data Input - BAT'!CC86*INDEX('Energy Prices'!$F$26:$CR$31,MATCH($B130,'Energy Prices'!$C$26:$C$31,0),MATCH(Calc_BAT!BY$6,'Energy Prices'!$F$11:$CR$11,0))/100000,0)","v":0},{"$f":"IFERROR('Data Input - BAT'!CD86*INDEX('Energy Prices'!$F$26:$CR$31,MATCH($B130,'Energy Prices'!$C$26:$C$31,0),MATCH(Calc_BAT!BZ$6,'Energy Prices'!$F$11:$CR$11,0))/100000,0)","v":0},{"$f":"IFERROR('Data Input - BAT'!CE86*INDEX('Energy Prices'!$F$26:$CR$31,MATCH($B130,'Energy Prices'!$C$26:$C$31,0),MATCH(Calc_BAT!CA$6,'Energy Prices'!$F$11:$CR$11,0))/100000,0)","v":0},{"$f":"IFERROR('Data Input - BAT'!CF86*INDEX('Energy Prices'!$F$26:$CR$31,MATCH($B130,'Energy Prices'!$C$26:$C$31,0),MATCH(Calc_BAT!CB$6,'Energy Prices'!$F$11:$CR$11,0))/100000,0)","v":0},{"$f":"IFERROR('Data Input - BAT'!CG86*INDEX('Energy Prices'!$F$26:$CR$31,MATCH($B130,'Energy Prices'!$C$26:$C$31,0),MATCH(Calc_BAT!CC$6,'Energy Prices'!$F$11:$CR$11,0))/100000,0)","v":0},{"$f":"IFERROR('Data Input - BAT'!CH86*INDEX('Energy Prices'!$F$26:$CR$31,MATCH($B130,'Energy Prices'!$C$26:$C$31,0),MATCH(Calc_BAT!CD$6,'Energy Prices'!$F$11:$CR$11,0))/100000,0)","v":0},{"$f":"IFERROR('Data Input - BAT'!CI86*INDEX('Energy Prices'!$F$26:$CR$31,MATCH($B130,'Energy Prices'!$C$26:$C$31,0),MATCH(Calc_BAT!CE$6,'Energy Prices'!$F$11:$CR$11,0))/100000,0)","v":0},{"$f":"IFERROR('Data Input - BAT'!CJ86*INDEX('Energy Prices'!$F$26:$CR$31,MATCH($B130,'Energy Prices'!$C$26:$C$31,0),MATCH(Calc_BAT!CF$6,'Energy Prices'!$F$11:$CR$11,0))/100000,0)","v":0},{"$f":"IFERROR('Data Input - BAT'!CK86*INDEX('Energy Prices'!$F$26:$CR$31,MATCH($B130,'Energy Prices'!$C$26:$C$31,0),MATCH(Calc_BAT!CG$6,'Energy Prices'!$F$11:$CR$11,0))/100000,0)","v":0},{"$f":"IFERROR('Data Input - BAT'!CL86*INDEX('Energy Prices'!$F$26:$CR$31,MATCH($B130,'Energy Prices'!$C$26:$C$31,0),MATCH(Calc_BAT!CH$6,'Energy Prices'!$F$11:$CR$11,0))/100000,0)","v":0},{"$f":"IFERROR('Data Input - BAT'!CM86*INDEX('Energy Prices'!$F$26:$CR$31,MATCH($B130,'Energy Prices'!$C$26:$C$31,0),MATCH(Calc_BAT!CI$6,'Energy Prices'!$F$11:$CR$11,0))/100000,0)","v":0},{"$f":"IFERROR('Data Input - BAT'!CN86*INDEX('Energy Prices'!$F$26:$CR$31,MATCH($B130,'Energy Prices'!$C$26:$C$31,0),MATCH(Calc_BAT!CJ$6,'Energy Prices'!$F$11:$CR$11,0))/100000,0)","v":0},{"$f":"IFERROR('Data Input - BAT'!CO86*INDEX('Energy Prices'!$F$26:$CR$31,MATCH($B130,'Energy Prices'!$C$26:$C$31,0),MATCH(Calc_BAT!CK$6,'Energy Prices'!$F$11:$CR$11,0))/100000,0)","v":0},{"$f":"IFERROR('Data Input - BAT'!CP86*INDEX('Energy Prices'!$F$26:$CR$31,MATCH($B130,'Energy Prices'!$C$26:$C$31,0),MATCH(Calc_BAT!CL$6,'Energy Prices'!$F$11:$CR$11,0))/100000,0)","v":0},{"$f":"IFERROR('Data Input - BAT'!CQ86*INDEX('Energy Prices'!$F$26:$CR$31,MATCH($B130,'Energy Prices'!$C$26:$C$31,0),MATCH(Calc_BAT!CM$6,'Energy Prices'!$F$11:$CR$11,0))/100000,0)","v":0},{"$f":"IFERROR('Data Input - BAT'!CR86*INDEX('Energy Prices'!$F$26:$CR$31,MATCH($B130,'Energy Prices'!$C$26:$C$31,0),MATCH(Calc_BAT!CN$6,'Energy Prices'!$F$11:$CR$11,0))/100000,0)","v":0},{"$f":"IFERROR('Data Input - BAT'!CS86*INDEX('Energy Prices'!$F$26:$CR$31,MATCH($B130,'Energy Prices'!$C$26:$C$31,0),MATCH(Calc_BAT!CO$6,'Energy Prices'!$F$11:$CR$11,0))/100000,0)","v":0},{"$f":"IFERROR('Data Input - BAT'!CT86*INDEX('Energy Prices'!$F$26:$CR$31,MATCH($B130,'Energy Prices'!$C$26:$C$31,0),MATCH(Calc_BAT!CP$6,'Energy Prices'!$F$11:$CR$11,0))/100000,0)","v":0},{"$f":"IFERROR('Data Input - BAT'!CU86*INDEX('Energy Prices'!$F$26:$CR$31,MATCH($B130,'Energy Prices'!$C$26:$C$31,0),MATCH(Calc_BAT!CQ$6,'Energy Prices'!$F$11:$CR$11,0))/100000,0)","v":0},{"$f":"IFERROR('Data Input - BAT'!CV86*INDEX('Energy Prices'!$F$26:$CR$31,MATCH($B130,'Energy Prices'!$C$26:$C$31,0),MATCH(Calc_BAT!CR$6,'Energy Prices'!$F$11:$CR$11,0))/100000,0)","v":0},{"$f":"IFERROR('Data Input - BAT'!CW86*INDEX('Energy Prices'!$F$26:$CR$31,MATCH($B130,'Energy Prices'!$C$26:$C$31,0),MATCH(Calc_BAT!CS$6,'Energy Prices'!$F$11:$CR$11,0))/100000,0)","v":0},{"$f":"IFERROR('Data Input - BAT'!CX86*INDEX('Energy Prices'!$F$26:$CR$31,MATCH($B130,'Energy Prices'!$C$26:$C$31,0),MATCH(Calc_BAT!CT$6,'Energy Prices'!$F$11:$CR$11,0))/100000,0)","v":0},{"$f":"IFERROR('Data Input - BAT'!CY86*INDEX('Energy Prices'!$F$26:$CR$31,MATCH($B130,'Energy Prices'!$C$26:$C$31,0),MATCH(Calc_BAT!CU$6,'Energy Prices'!$F$11:$CR$11,0))/100000,0)","v":0},{"$f":"IFERROR('Data Input - BAT'!CZ86*INDEX('Energy Prices'!$F$26:$CR$31,MATCH($B130,'Energy Prices'!$C$26:$C$31,0),MATCH(Calc_BAT!CV$6,'Energy Prices'!$F$11:$CR$11,0))/100000,0)","v":0},{"$f":"IFERROR('Data Input - BAT'!DA86*INDEX('Energy Prices'!$F$26:$CR$31,MATCH($B130,'Energy Prices'!$C$26:$C$31,0),MATCH(Calc_BAT!CW$6,'Energy Prices'!$F$11:$CR$11,0))/100000,0)","v":0},{"$f":"IFERROR('Data Input - BAT'!DB86*INDEX('Energy Prices'!$F$26:$CR$31,MATCH($B130,'Energy Prices'!$C$26:$C$31,0),MATCH(Calc_BAT!CX$6,'Energy Prices'!$F$11:$CR$11,0))/100000,0)","v":0},{"$f":"IFERROR('Data Input - BAT'!DC86*INDEX('Energy Prices'!$F$26:$CR$31,MATCH($B130,'Energy Prices'!$C$26:$C$31,0),MATCH(Calc_BAT!CY$6,'Energy Prices'!$F$11:$CR$11,0))/100000,0)","v":0}]
[null,"Gas Oil","£000's",{"$f":"IFERROR('Data Input - BAT'!H87*INDEX('Energy Prices'!$F$26:$CR$31,MATCH($B131,'Energy Prices'!$C$26:$C$31,0),MATCH(Calc_BAT!D$6,'Energy Prices'!$F$11:$CR$11,0))/100000,0)","v":159.58768760508622},{"$f":"IFERROR('Data Input - BAT'!I87*INDEX('Energy Prices'!$F$26:$CR$31,MATCH($B131,'Energy Prices'!$C$26:$C$31,0),MATCH(Calc_BAT!E$6,'Energy Prices'!$F$11:$CR$11,0))/100000,0)","v":163.88916071794324},{"$f":"IFERROR('Data Input - BAT'!J87*INDEX('Energy Prices'!$F$26:$CR$31,MATCH($B131,'Energy Prices'!$C$26:$C$31,0),MATCH(Calc_BAT!F$6,'Energy Prices'!$F$11:$CR$11,0))/100000,0)","v":168.20994897459815},{"$f":"IFERROR('Data Input - BAT'!K87*INDEX('Energy Prices'!$F$26:$CR$31,MATCH($B131,'Energy Prices'!$C$26:$C$31,0),MATCH(Calc_BAT!G$6,'Energy Prices'!$F$11:$CR$11,0))/100000,0)","v":172.51610138744758},{"$f":"IFERROR('Data Input - BAT'!L87*INDEX('Energy Prices'!$F$26:$CR$31,MATCH($B131,'Energy Prices'!$C$26:$C$31,0),MATCH(Calc_BAT!H$6,'Energy Prices'!$F$11:$CR$11,0))/100000,0)","v":176.81563540542891},{"$f":"IFERROR('Data Input - BAT'!M87*INDEX('Energy Prices'!$F$26:$CR$31,MATCH($B131,'Energy Prices'!$C$26:$C$31,0),MATCH(Calc_BAT!I$6,'Energy Prices'!$F$11:$CR$11,0))/100000,0)","v":181.11632434999379},{"$f":"IFERROR('Data Input - BAT'!N87*INDEX('Energy Prices'!$F$26:$CR$31,MATCH($B131,'Energy Prices'!$C$26:$C$31,0),MATCH(Calc_BAT!J$6,'Energy Prices'!$F$11:$CR$11,0))/100000,0)","v":185.41817612386572},{"$f":"IFERROR('Data Input - BAT'!O87*INDEX('Energy Prices'!$F$26:$CR$31,MATCH($B131,'Energy Prices'!$C$26:$C$31,0),MATCH(Calc_BAT!K$6,'Energy Prices'!$F$11:$CR$11,0))/100000,0)","v":189.7211986838434},{"$f":"IFERROR('Data Input - BAT'!P87*INDEX('Energy Prices'!$F$26:$CR$31,MATCH($B131,'Energy Prices'!$C$26:$C$31,0),MATCH(Calc_BAT!L$6,'Energy Prices'!$F$11:$CR$11,0))/100000,0)","v":0},{"$f":"IFERROR('Data Input - BAT'!Q87*INDEX('Energy Prices'!$F$26:$CR$31,MATCH($B131,'Energy Prices'!$C$26:$C$31,0),MATCH(Calc_BAT!M$6,'Energy Prices'!$F$11:$CR$11,0))/100000,0)","v":0},{"$f":"IFERROR('Data Input - BAT'!R87*INDEX('Energy Prices'!$F$26:$CR$31,MATCH($B131,'Energy Prices'!$C$26:$C$31,0),MATCH(Calc_BAT!N$6,'Energy Prices'!$F$11:$CR$11,0))/100000,0)","v":0},{"$f":"IFERROR('Data Input - BAT'!S87*INDEX('Energy Prices'!$F$26:$CR$31,MATCH($B131,'Energy Prices'!$C$26:$C$31,0),MATCH(Calc_BAT!O$6,'Energy Prices'!$F$11:$CR$11,0))/100000,0)","v":0},{"$f":"IFERROR('Data Input - BAT'!T87*INDEX('Energy Prices'!$F$26:$CR$31,MATCH($B131,'Energy Prices'!$C$26:$C$31,0),MATCH(Calc_BAT!P$6,'Energy Prices'!$F$11:$CR$11,0))/100000,0)","v":0},{"$f":"IFERROR('Data Input - BAT'!U87*INDEX('Energy Prices'!$F$26:$CR$31,MATCH($B131,'Energy Prices'!$C$26:$C$31,0),MATCH(Calc_BAT!Q$6,'Energy Prices'!$F$11:$CR$11,0))/100000,0)","v":0},{"$f":"IFERROR('Data Input - BAT'!V87*INDEX('Energy Prices'!$F$26:$CR$31,MATCH($B131,'Energy Prices'!$C$26:$C$31,0),MATCH(Calc_BAT!R$6,'Energy Prices'!$F$11:$CR$11,0))/100000,0)","v":0},{"$f":"IFERROR('Data Input - BAT'!W87*INDEX('Energy Prices'!$F$26:$CR$31,MATCH($B131,'Energy Prices'!$C$26:$C$31,0),MATCH(Calc_BAT!S$6,'Energy Prices'!$F$11:$CR$11,0))/100000,0)","v":0},{"$f":"IFERROR('Data Input - BAT'!X87*INDEX('Energy Prices'!$F$26:$CR$31,MATCH($B131,'Energy Prices'!$C$26:$C$31,0),MATCH(Calc_BAT!T$6,'Energy Prices'!$F$11:$CR$11,0))/100000,0)","v":0},{"$f":"IFERROR('Data Input - BAT'!Y87*INDEX('Energy Prices'!$F$26:$CR$31,MATCH($B131,'Energy Prices'!$C$26:$C$31,0),MATCH(Calc_BAT!U$6,'Energy Prices'!$F$11:$CR$11,0))/100000,0)","v":0},{"$f":"IFERROR('Data Input - BAT'!Z87*INDEX('Energy Prices'!$F$26:$CR$31,MATCH($B131,'Energy Prices'!$C$26:$C$31,0),MATCH(Calc_BAT!V$6,'Energy Prices'!$F$11:$CR$11,0))/100000,0)","v":0},{"$f":"IFERROR('Data Input - BAT'!AA87*INDEX('Energy Prices'!$F$26:$CR$31,MATCH($B131,'Energy Prices'!$C$26:$C$31,0),MATCH(Calc_BAT!W$6,'Energy Prices'!$F$11:$CR$11,0))/100000,0)","v":0},{"$f":"IFERROR('Data Input - BAT'!AB87*INDEX('Energy Prices'!$F$26:$CR$31,MATCH($B131,'Energy Prices'!$C$26:$C$31,0),MATCH(Calc_BAT!X$6,'Energy Prices'!$F$11:$CR$11,0))/100000,0)","v":0},{"$f":"IFERROR('Data Input - BAT'!AC87*INDEX('Energy Prices'!$F$26:$CR$31,MATCH($B131,'Energy Prices'!$C$26:$C$31,0),MATCH(Calc_BAT!Y$6,'Energy Prices'!$F$11:$CR$11,0))/100000,0)","v":0},{"$f":"IFERROR('Data Input - BAT'!AD87*INDEX('Energy Prices'!$F$26:$CR$31,MATCH($B131,'Energy Prices'!$C$26:$C$31,0),MATCH(Calc_BAT!Z$6,'Energy Prices'!$F$11:$CR$11,0))/100000,0)","v":0},{"$f":"IFERROR('Data Input - BAT'!AE87*INDEX('Energy Prices'!$F$26:$CR$31,MATCH($B131,'Energy Prices'!$C$26:$C$31,0),MATCH(Calc_BAT!AA$6,'Energy Prices'!$F$11:$CR$11,0))/100000,0)","v":0},{"$f":"IFERROR('Data Input - BAT'!AF87*INDEX('Energy Prices'!$F$26:$CR$31,MATCH($B131,'Energy Prices'!$C$26:$C$31,0),MATCH(Calc_BAT!AB$6,'Energy Prices'!$F$11:$CR$11,0))/100000,0)","v":0},{"$f":"IFERROR('Data Input - BAT'!AG87*INDEX('Energy Prices'!$F$26:$CR$31,MATCH($B131,'Energy Prices'!$C$26:$C$31,0),MATCH(Calc_BAT!AC$6,'Energy Prices'!$F$11:$CR$11,0))/100000,0)","v":0},{"$f":"IFERROR('Data Input - BAT'!AH87*INDEX('Energy Prices'!$F$26:$CR$31,MATCH($B131,'Energy Prices'!$C$26:$C$31,0),MATCH(Calc_BAT!AD$6,'Energy Prices'!$F$11:$CR$11,0))/100000,0)","v":0},{"$f":"IFERROR('Data Input - BAT'!AI87*INDEX('Energy Prices'!$F$26:$CR$31,MATCH($B131,'Energy Prices'!$C$26:$C$31,0),MATCH(Calc_BAT!AE$6,'Energy Prices'!$F$11:$CR$11,0))/100000,0)","v":0},{"$f":"IFERROR('Data Input - BAT'!AJ87*INDEX('Energy Prices'!$F$26:$CR$31,MATCH($B131,'Energy Prices'!$C$26:$C$31,0),MATCH(Calc_BAT!AF$6,'Energy Prices'!$F$11:$CR$11,0))/100000,0)","v":0},{"$f":"IFERROR('Data Input - BAT'!AK87*INDEX('Energy Prices'!$F$26:$CR$31,MATCH($B131,'Energy Prices'!$C$26:$C$31,0),MATCH(Calc_BAT!AG$6,'Energy Prices'!$F$11:$CR$11,0))/100000,0)","v":0},{"$f":"IFERROR('Data Input - BAT'!AL87*INDEX('Energy Prices'!$F$26:$CR$31,MATCH($B131,'Energy Prices'!$C$26:$C$31,0),MATCH(Calc_BAT!AH$6,'Energy Prices'!$F$11:$CR$11,0))/100000,0)","v":0},{"$f":"IFERROR('Data Input - BAT'!AM87*INDEX('Energy Prices'!$F$26:$CR$31,MATCH($B131,'Energy Prices'!$C$26:$C$31,0),MATCH(Calc_BAT!AI$6,'Energy Prices'!$F$11:$CR$11,0))/100000,0)","v":0},{"$f":"IFERROR('Data Input - BAT'!AN87*INDEX('Energy Prices'!$F$26:$CR$31,MATCH($B131,'Energy Prices'!$C$26:$C$31,0),MATCH(Calc_BAT!AJ$6,'Energy Prices'!$F$11:$CR$11,0))/100000,0)","v":0},{"$f":"IFERROR('Data Input - BAT'!AO87*INDEX('Energy Prices'!$F$26:$CR$31,MATCH($B131,'Energy Prices'!$C$26:$C$31,0),MATCH(Calc_BAT!AK$6,'Energy Prices'!$F$11:$CR$11,0))/100000,0)","v":0},{"$f":"IFERROR('Data Input - BAT'!AP87*INDEX('Energy Prices'!$F$26:$CR$31,MATCH($B131,'Energy Prices'!$C$26:$C$31,0),MATCH(Calc_BAT!AL$6,'Energy Prices'!$F$11:$CR$11,0))/100000,0)","v":0},{"$f":"IFERROR('Data Input - BAT'!AQ87*INDEX('Energy Prices'!$F$26:$CR$31,MATCH($B131,'Energy Prices'!$C$26:$C$31,0),MATCH(Calc_BAT!AM$6,'Energy Prices'!$F$11:$CR$11,0))/100000,0)","v":0},{"$f":"IFERROR('Data Input - BAT'!AR87*INDEX('Energy Prices'!$F$26:$CR$31,MATCH($B131,'Energy Prices'!$C$26:$C$31,0),MATCH(Calc_BAT!AN$6,'Energy Prices'!$F$11:$CR$11,0))/100000,0)","v":0},{"$f":"IFERROR('Data Input - BAT'!AS87*INDEX('Energy Prices'!$F$26:$CR$31,MATCH($B131,'Energy Prices'!$C$26:$C$31,0),MATCH(Calc_BAT!AO$6,'Energy Prices'!$F$11:$CR$11,0))/100000,0)","v":0},{"$f":"IFERROR('Data Input - BAT'!AT87*INDEX('Energy Prices'!$F$26:$CR$31,MATCH($B131,'Energy Prices'!$C$26:$C$31,0),MATCH(Calc_BAT!AP$6,'Energy Prices'!$F$11:$CR$11,0))/100000,0)","v":0},{"$f":"IFERROR('Data Input - BAT'!AU87*INDEX('Energy Prices'!$F$26:$CR$31,MATCH($B131,'Energy Prices'!$C$26:$C$31,0),MATCH(Calc_BAT!AQ$6,'Energy Prices'!$F$11:$CR$11,0))/100000,0)","v":0},{"$f":"IFERROR('Data Input - BAT'!AV87*INDEX('Energy Prices'!$F$26:$CR$31,MATCH($B131,'Energy Prices'!$C$26:$C$31,0),MATCH(Calc_BAT!AR$6,'Energy Prices'!$F$11:$CR$11,0))/100000,0)","v":0},{"$f":"IFERROR('Data Input - BAT'!AW87*INDEX('Energy Prices'!$F$26:$CR$31,MATCH($B131,'Energy Prices'!$C$26:$C$31,0),MATCH(Calc_BAT!AS$6,'Energy Prices'!$F$11:$CR$11,0))/100000,0)","v":0},{"$f":"IFERROR('Data Input - BAT'!AX87*INDEX('Energy Prices'!$F$26:$CR$31,MATCH($B131,'Energy Prices'!$C$26:$C$31,0),MATCH(Calc_BAT!AT$6,'Energy Prices'!$F$11:$CR$11,0))/100000,0)","v":0},{"$f":"IFERROR('Data Input - BAT'!AY87*INDEX('Energy Prices'!$F$26:$CR$31,MATCH($B131,'Energy Prices'!$C$26:$C$31,0),MATCH(Calc_BAT!AU$6,'Energy Prices'!$F$11:$CR$11,0))/100000,0)","v":0},{"$f":"IFERROR('Data Input - BAT'!AZ87*INDEX('Energy Prices'!$F$26:$CR$31,MATCH($B131,'Energy Prices'!$C$26:$C$31,0),MATCH(Calc_BAT!AV$6,'Energy Prices'!$F$11:$CR$11,0))/100000,0)","v":0},{"$f":"IFERROR('Data Input - BAT'!BA87*INDEX('Energy Prices'!$F$26:$CR$31,MATCH($B131,'Energy Prices'!$C$26:$C$31,0),MATCH(Calc_BAT!AW$6,'Energy Prices'!$F$11:$CR$11,0))/100000,0)","v":0},{"$f":"IFERROR('Data Input - BAT'!BB87*INDEX('Energy Prices'!$F$26:$CR$31,MATCH($B131,'Energy Prices'!$C$26:$C$31,0),MATCH(Calc_BAT!AX$6,'Energy Prices'!$F$11:$CR$11,0))/100000,0)","v":0},{"$f":"IFERROR('Data Input - BAT'!BC87*INDEX('Energy Prices'!$F$26:$CR$31,MATCH($B131,'Energy Prices'!$C$26:$C$31,0),MATCH(Calc_BAT!AY$6,'Energy Prices'!$F$11:$CR$11,0))/100000,0)","v":0},{"$f":"IFERROR('Data Input - BAT'!BD87*INDEX('Energy Prices'!$F$26:$CR$31,MATCH($B131,'Energy Prices'!$C$26:$C$31,0),MATCH(Calc_BAT!AZ$6,'Energy Prices'!$F$11:$CR$11,0))/100000,0)","v":0},{"$f":"IFERROR('Data Input - BAT'!BE87*INDEX('Energy Prices'!$F$26:$CR$31,MATCH($B131,'Energy Prices'!$C$26:$C$31,0),MATCH(Calc_BAT!BA$6,'Energy Prices'!$F$11:$CR$11,0))/100000,0)","v":0},{"$f":"IFERROR('Data Input - BAT'!BF87*INDEX('Energy Prices'!$F$26:$CR$31,MATCH($B131,'Energy Prices'!$C$26:$C$31,0),MATCH(Calc_BAT!BB$6,'Energy Prices'!$F$11:$CR$11,0))/100000,0)","v":0},{"$f":"IFERROR('Data Input - BAT'!BG87*INDEX('Energy Prices'!$F$26:$CR$31,MATCH($B131,'Energy Prices'!$C$26:$C$31,0),MATCH(Calc_BAT!BC$6,'Energy Prices'!$F$11:$CR$11,0))/100000,0)","v":0},{"$f":"IFERROR('Data Input - BAT'!BH87*INDEX('Energy Prices'!$F$26:$CR$31,MATCH($B131,'Energy Prices'!$C$26:$C$31,0),MATCH(Calc_BAT!BD$6,'Energy Prices'!$F$11:$CR$11,0))/100000,0)","v":0},{"$f":"IFERROR('Data Input - BAT'!BI87*INDEX('Energy Prices'!$F$26:$CR$31,MATCH($B131,'Energy Prices'!$C$26:$C$31,0),MATCH(Calc_BAT!BE$6,'Energy Prices'!$F$11:$CR$11,0))/100000,0)","v":0},{"$f":"IFERROR('Data Input - BAT'!BJ87*INDEX('Energy Prices'!$F$26:$CR$31,MATCH($B131,'Energy Prices'!$C$26:$C$31,0),MATCH(Calc_BAT!BF$6,'Energy Prices'!$F$11:$CR$11,0))/100000,0)","v":0},{"$f":"IFERROR('Data Input - BAT'!BK87*INDEX('Energy Prices'!$F$26:$CR$31,MATCH($B131,'Energy Prices'!$C$26:$C$31,0),MATCH(Calc_BAT!BG$6,'Energy Prices'!$F$11:$CR$11,0))/100000,0)","v":0},{"$f":"IFERROR('Data Input - BAT'!BL87*INDEX('Energy Prices'!$F$26:$CR$31,MATCH($B131,'Energy Prices'!$C$26:$C$31,0),MATCH(Calc_BAT!BH$6,'Energy Prices'!$F$11:$CR$11,0))/100000,0)","v":0},{"$f":"IFERROR('Data Input - BAT'!BM87*INDEX('Energy Prices'!$F$26:$CR$31,MATCH($B131,'Energy Prices'!$C$26:$C$31,0),MATCH(Calc_BAT!BI$6,'Energy Prices'!$F$11:$CR$11,0))/100000,0)","v":0},{"$f":"IFERROR('Data Input - BAT'!BN87*INDEX('Energy Prices'!$F$26:$CR$31,MATCH($B131,'Energy Prices'!$C$26:$C$31,0),MATCH(Calc_BAT!BJ$6,'Energy Prices'!$F$11:$CR$11,0))/100000,0)","v":0},{"$f":"IFERROR('Data Input - BAT'!BO87*INDEX('Energy Prices'!$F$26:$CR$31,MATCH($B131,'Energy Prices'!$C$26:$C$31,0),MATCH(Calc_BAT!BK$6,'Energy Prices'!$F$11:$CR$11,0))/100000,0)","v":0},{"$f":"IFERROR('Data Input - BAT'!BP87*INDEX('Energy Prices'!$F$26:$CR$31,MATCH($B131,'Energy Prices'!$C$26:$C$31,0),MATCH(Calc_BAT!BL$6,'Energy Prices'!$F$11:$CR$11,0))/100000,0)","v":0},{"$f":"IFERROR('Data Input - BAT'!BQ87*INDEX('Energy Prices'!$F$26:$CR$31,MATCH($B131,'Energy Prices'!$C$26:$C$31,0),MATCH(Calc_BAT!BM$6,'Energy Prices'!$F$11:$CR$11,0))/100000,0)","v":0},{"$f":"IFERROR('Data Input - BAT'!BR87*INDEX('Energy Prices'!$F$26:$CR$31,MATCH($B131,'Energy Prices'!$C$26:$C$31,0),MATCH(Calc_BAT!BN$6,'Energy Prices'!$F$11:$CR$11,0))/100000,0)","v":0},{"$f":"IFERROR('Data Input - BAT'!BS87*INDEX('Energy Prices'!$F$26:$CR$31,MATCH($B131,'Energy Prices'!$C$26:$C$31,0),MATCH(Calc_BAT!BO$6,'Energy Prices'!$F$11:$CR$11,0))/100000,0)","v":0},{"$f":"IFERROR('Data Input - BAT'!BT87*INDEX('Energy Prices'!$F$26:$CR$31,MATCH($B131,'Energy Prices'!$C$26:$C$31,0),MATCH(Calc_BAT!BP$6,'Energy Prices'!$F$11:$CR$11,0))/100000,0)","v":0},{"$f":"IFERROR('Data Input - BAT'!BU87*INDEX('Energy Prices'!$F$26:$CR$31,MATCH($B131,'Energy Prices'!$C$26:$C$31,0),MATCH(Calc_BAT!BQ$6,'Energy Prices'!$F$11:$CR$11,0))/100000,0)","v":0},{"$f":"IFERROR('Data Input - BAT'!BV87*INDEX('Energy Prices'!$F$26:$CR$31,MATCH($B131,'Energy Prices'!$C$26:$C$31,0),MATCH(Calc_BAT!BR$6,'Energy Prices'!$F$11:$CR$11,0))/100000,0)","v":0},{"$f":"IFERROR('Data Input - BAT'!BW87*INDEX('Energy Prices'!$F$26:$CR$31,MATCH($B131,'Energy Prices'!$C$26:$C$31,0),MATCH(Calc_BAT!BS$6,'Energy Prices'!$F$11:$CR$11,0))/100000,0)","v":0},{"$f":"IFERROR('Data Input - BAT'!BX87*INDEX('Energy Prices'!$F$26:$CR$31,MATCH($B131,'Energy Prices'!$C$26:$C$31,0),MATCH(Calc_BAT!BT$6,'Energy Prices'!$F$11:$CR$11,0))/100000,0)","v":0},{"$f":"IFERROR('Data Input - BAT'!BY87*INDEX('Energy Prices'!$F$26:$CR$31,MATCH($B131,'Energy Prices'!$C$26:$C$31,0),MATCH(Calc_BAT!BU$6,'Energy Prices'!$F$11:$CR$11,0))/100000,0)","v":0},{"$f":"IFERROR('Data Input - BAT'!BZ87*INDEX('Energy Prices'!$F$26:$CR$31,MATCH($B131,'Energy Prices'!$C$26:$C$31,0),MATCH(Calc_BAT!BV$6,'Energy Prices'!$F$11:$CR$11,0))/100000,0)","v":0},{"$f":"IFERROR('Data Input - BAT'!CA87*INDEX('Energy Prices'!$F$26:$CR$31,MATCH($B131,'Energy Prices'!$C$26:$C$31,0),MATCH(Calc_BAT!BW$6,'Energy Prices'!$F$11:$CR$11,0))/100000,0)","v":0},{"$f":"IFERROR('Data Input - BAT'!CB87*INDEX('Energy Prices'!$F$26:$CR$31,MATCH($B131,'Energy Prices'!$C$26:$C$31,0),MATCH(Calc_BAT!BX$6,'Energy Prices'!$F$11:$CR$11,0))/100000,0)","v":0},{"$f":"IFERROR('Data Input - BAT'!CC87*INDEX('Energy Prices'!$F$26:$CR$31,MATCH($B131,'Energy Prices'!$C$26:$C$31,0),MATCH(Calc_BAT!BY$6,'Energy Prices'!$F$11:$CR$11,0))/100000,0)","v":0},{"$f":"IFERROR('Data Input - BAT'!CD87*INDEX('Energy Prices'!$F$26:$CR$31,MATCH($B131,'Energy Prices'!$C$26:$C$31,0),MATCH(Calc_BAT!BZ$6,'Energy Prices'!$F$11:$CR$11,0))/100000,0)","v":0},{"$f":"IFERROR('Data Input - BAT'!CE87*INDEX('Energy Prices'!$F$26:$CR$31,MATCH($B131,'Energy Prices'!$C$26:$C$31,0),MATCH(Calc_BAT!CA$6,'Energy Prices'!$F$11:$CR$11,0))/100000,0)","v":0},{"$f":"IFERROR('Data Input - BAT'!CF87*INDEX('Energy Prices'!$F$26:$CR$31,MATCH($B131,'Energy Prices'!$C$26:$C$31,0),MATCH(Calc_BAT!CB$6,'Energy Prices'!$F$11:$CR$11,0))/100000,0)","v":0},{"$f":"IFERROR('Data Input - BAT'!CG87*INDEX('Energy Prices'!$F$26:$CR$31,MATCH($B131,'Energy Prices'!$C$26:$C$31,0),MATCH(Calc_BAT!CC$6,'Energy Prices'!$F$11:$CR$11,0))/100000,0)","v":0},{"$f":"IFERROR('Data Input - BAT'!CH87*INDEX('Energy Prices'!$F$26:$CR$31,MATCH($B131,'Energy Prices'!$C$26:$C$31,0),MATCH(Calc_BAT!CD$6,'Energy Prices'!$F$11:$CR$11,0))/100000,0)","v":0},{"$f":"IFERROR('Data Input - BAT'!CI87*INDEX('Energy Prices'!$F$26:$CR$31,MATCH($B131,'Energy Prices'!$C$26:$C$31,0),MATCH(Calc_BAT!CE$6,'Energy Prices'!$F$11:$CR$11,0))/100000,0)","v":0},{"$f":"IFERROR('Data Input - BAT'!CJ87*INDEX('Energy Prices'!$F$26:$CR$31,MATCH($B131,'Energy Prices'!$C$26:$C$31,0),MATCH(Calc_BAT!CF$6,'Energy Prices'!$F$11:$CR$11,0))/100000,0)","v":0},{"$f":"IFERROR('Data Input - BAT'!CK87*INDEX('Energy Prices'!$F$26:$CR$31,MATCH($B131,'Energy Prices'!$C$26:$C$31,0),MATCH(Calc_BAT!CG$6,'Energy Prices'!$F$11:$CR$11,0))/100000,0)","v":0},{"$f":"IFERROR('Data Input - BAT'!CL87*INDEX('Energy Prices'!$F$26:$CR$31,MATCH($B131,'Energy Prices'!$C$26:$C$31,0),MATCH(Calc_BAT!CH$6,'Energy Prices'!$F$11:$CR$11,0))/100000,0)","v":0},{"$f":"IFERROR('Data Input - BAT'!CM87*INDEX('Energy Prices'!$F$26:$CR$31,MATCH($B131,'Energy Prices'!$C$26:$C$31,0),MATCH(Calc_BAT!CI$6,'Energy Prices'!$F$11:$CR$11,0))/100000,0)","v":0},{"$f":"IFERROR('Data Input - BAT'!CN87*INDEX('Energy Prices'!$F$26:$CR$31,MATCH($B131,'Energy Prices'!$C$26:$C$31,0),MATCH(Calc_BAT!CJ$6,'Energy Prices'!$F$11:$CR$11,0))/100000,0)","v":0},{"$f":"IFERROR('Data Input - BAT'!CO87*INDEX('Energy Prices'!$F$26:$CR$31,MATCH($B131,'Energy Prices'!$C$26:$C$31,0),MATCH(Calc_BAT!CK$6,'Energy Prices'!$F$11:$CR$11,0))/100000,0)","v":0},{"$f":"IFERROR('Data Input - BAT'!CP87*INDEX('Energy Prices'!$F$26:$CR$31,MATCH($B131,'Energy Prices'!$C$26:$C$31,0),MATCH(Calc_BAT!CL$6,'Energy Prices'!$F$11:$CR$11,0))/100000,0)","v":0},{"$f":"IFERROR('Data Input - BAT'!CQ87*INDEX('Energy Prices'!$F$26:$CR$31,MATCH($B131,'Energy Prices'!$C$26:$C$31,0),MATCH(Calc_BAT!CM$6,'Energy Prices'!$F$11:$CR$11,0))/100000,0)","v":0},{"$f":"IFERROR('Data Input - BAT'!CR87*INDEX('Energy Prices'!$F$26:$CR$31,MATCH($B131,'Energy Prices'!$C$26:$C$31,0),MATCH(Calc_BAT!CN$6,'Energy Prices'!$F$11:$CR$11,0))/100000,0)","v":0},{"$f":"IFERROR('Data Input - BAT'!CS87*INDEX('Energy Prices'!$F$26:$CR$31,MATCH($B131,'Energy Prices'!$C$26:$C$31,0),MATCH(Calc_BAT!CO$6,'Energy Prices'!$F$11:$CR$11,0))/100000,0)","v":0},{"$f":"IFERROR('Data Input - BAT'!CT87*INDEX('Energy Prices'!$F$26:$CR$31,MATCH($B131,'Energy Prices'!$C$26:$C$31,0),MATCH(Calc_BAT!CP$6,'Energy Prices'!$F$11:$CR$11,0))/100000,0)","v":0},{"$f":"IFERROR('Data Input - BAT'!CU87*INDEX('Energy Prices'!$F$26:$CR$31,MATCH($B131,'Energy Prices'!$C$26:$C$31,0),MATCH(Calc_BAT!CQ$6,'Energy Prices'!$F$11:$CR$11,0))/100000,0)","v":0},{"$f":"IFERROR('Data Input - BAT'!CV87*INDEX('Energy Prices'!$F$26:$CR$31,MATCH($B131,'Energy Prices'!$C$26:$C$31,0),MATCH(Calc_BAT!CR$6,'Energy Prices'!$F$11:$CR$11,0))/100000,0)","v":0},{"$f":"IFERROR('Data Input - BAT'!CW87*INDEX('Energy Prices'!$F$26:$CR$31,MATCH($B131,'Energy Prices'!$C$26:$C$31,0),MATCH(Calc_BAT!CS$6,'Energy Prices'!$F$11:$CR$11,0))/100000,0)","v":0},{"$f":"IFERROR('Data Input - BAT'!CX87*INDEX('Energy Prices'!$F$26:$CR$31,MATCH($B131,'Energy Prices'!$C$26:$C$31,0),MATCH(Calc_BAT!CT$6,'Energy Prices'!$F$11:$CR$11,0))/100000,0)","v":0},{"$f":"IFERROR('Data Input - BAT'!CY87*INDEX('Energy Prices'!$F$26:$CR$31,MATCH($B131,'Energy Prices'!$C$26:$C$31,0),MATCH(Calc_BAT!CU$6,'Energy Prices'!$F$11:$CR$11,0))/100000,0)","v":0},{"$f":"IFERROR('Data Input - BAT'!CZ87*INDEX('Energy Prices'!$F$26:$CR$31,MATCH($B131,'Energy Prices'!$C$26:$C$31,0),MATCH(Calc_BAT!CV$6,'Energy Prices'!$F$11:$CR$11,0))/100000,0)","v":0},{"$f":"IFERROR('Data Input - BAT'!DA87*INDEX('Energy Prices'!$F$26:$CR$31,MATCH($B131,'Energy Prices'!$C$26:$C$31,0),MATCH(Calc_BAT!CW$6,'Energy Prices'!$F$11:$CR$11,0))/100000,0)","v":0},{"$f":"IFERROR('Data Input - BAT'!DB87*INDEX('Energy Prices'!$F$26:$CR$31,MATCH($B131,'Energy Prices'!$C$26:$C$31,0),MATCH(Calc_BAT!CX$6,'Energy Prices'!$F$11:$CR$11,0))/100000,0)","v":0},{"$f":"IFERROR('Data Input - BAT'!DC87*INDEX('Energy Prices'!$F$26:$CR$31,MATCH($B131,'Energy Prices'!$C$26:$C$31,0),MATCH(Calc_BAT!CY$6,'Energy Prices'!$F$11:$CR$11,0))/100000,0)","v":0}]
[null,"Road - Petrol","£000's",{"$f":"IFERROR('Data Input - BAT'!H88*INDEX('Energy Prices'!$F$26:$CR$31,MATCH($B132,'Energy Prices'!$C$26:$C$31,0),MATCH(Calc_BAT!D$6,'Energy Prices'!$F$11:$CR$11,0))/100000,0)","v":0},{"$f":"IFERROR('Data Input - BAT'!I88*INDEX('Energy Prices'!$F$26:$CR$31,MATCH($B132,'Energy Prices'!$C$26:$C$31,0),MATCH(Calc_BAT!E$6,'Energy Prices'!$F$11:$CR$11,0))/100000,0)","v":0},{"$f":"IFERROR('Data Input - BAT'!J88*INDEX('Energy Prices'!$F$26:$CR$31,MATCH($B132,'Energy Prices'!$C$26:$C$31,0),MATCH(Calc_BAT!F$6,'Energy Prices'!$F$11:$CR$11,0))/100000,0)","v":0},{"$f":"IFERROR('Data Input - BAT'!K88*INDEX('Energy Prices'!$F$26:$CR$31,MATCH($B132,'Energy Prices'!$C$26:$C$31,0),MATCH(Calc_BAT!G$6,'Energy Prices'!$F$11:$CR$11,0))/100000,0)","v":0},{"$f":"IFERROR('Data Input - BAT'!L88*INDEX('Energy Prices'!$F$26:$CR$31,MATCH($B132,'Energy Prices'!$C$26:$C$31,0),MATCH(Calc_BAT!H$6,'Energy Prices'!$F$11:$CR$11,0))/100000,0)","v":0},{"$f":"IFERROR('Data Input - BAT'!M88*INDEX('Energy Prices'!$F$26:$CR$31,MATCH($B132,'Energy Prices'!$C$26:$C$31,0),MATCH(Calc_BAT!I$6,'Energy Prices'!$F$11:$CR$11,0))/100000,0)","v":0},{"$f":"IFERROR('Data Input - BAT'!N88*INDEX('Energy Prices'!$F$26:$CR$31,MATCH($B132,'Energy Prices'!$C$26:$C$31,0),MATCH(Calc_BAT!J$6,'Energy Prices'!$F$11:$CR$11,0))/100000,0)","v":0},{"$f":"IFERROR('Data Input - BAT'!O88*INDEX('Energy Prices'!$F$26:$CR$31,MATCH($B132,'Energy Prices'!$C$26:$C$31,0),MATCH(Calc_BAT!K$6,'Energy Prices'!$F$11:$CR$11,0))/100000,0)","v":0},{"$f":"IFERROR('Data Input - BAT'!P88*INDEX('Energy Prices'!$F$26:$CR$31,MATCH($B132,'Energy Prices'!$C$26:$C$31,0),MATCH(Calc_BAT!L$6,'Energy Prices'!$F$11:$CR$11,0))/100000,0)","v":0},{"$f":"IFERROR('Data Input - BAT'!Q88*INDEX('Energy Prices'!$F$26:$CR$31,MATCH($B132,'Energy Prices'!$C$26:$C$31,0),MATCH(Calc_BAT!M$6,'Energy Prices'!$F$11:$CR$11,0))/100000,0)","v":0},{"$f":"IFERROR('Data Input - BAT'!R88*INDEX('Energy Prices'!$F$26:$CR$31,MATCH($B132,'Energy Prices'!$C$26:$C$31,0),MATCH(Calc_BAT!N$6,'Energy Prices'!$F$11:$CR$11,0))/100000,0)","v":0},{"$f":"IFERROR('Data Input - BAT'!S88*INDEX('Energy Prices'!$F$26:$CR$31,MATCH($B132,'Energy Prices'!$C$26:$C$31,0),MATCH(Calc_BAT!O$6,'Energy Prices'!$F$11:$CR$11,0))/100000,0)","v":0},{"$f":"IFERROR('Data Input - BAT'!T88*INDEX('Energy Prices'!$F$26:$CR$31,MATCH($B132,'Energy Prices'!$C$26:$C$31,0),MATCH(Calc_BAT!P$6,'Energy Prices'!$F$11:$CR$11,0))/100000,0)","v":0},{"$f":"IFERROR('Data Input - BAT'!U88*INDEX('Energy Prices'!$F$26:$CR$31,MATCH($B132,'Energy Prices'!$C$26:$C$31,0),MATCH(Calc_BAT!Q$6,'Energy Prices'!$F$11:$CR$11,0))/100000,0)","v":0},{"$f":"IFERROR('Data Input - BAT'!V88*INDEX('Energy Prices'!$F$26:$CR$31,MATCH($B132,'Energy Prices'!$C$26:$C$31,0),MATCH(Calc_BAT!R$6,'Energy Prices'!$F$11:$CR$11,0))/100000,0)","v":0},{"$f":"IFERROR('Data Input - BAT'!W88*INDEX('Energy Prices'!$F$26:$CR$31,MATCH($B132,'Energy Prices'!$C$26:$C$31,0),MATCH(Calc_BAT!S$6,'Energy Prices'!$F$11:$CR$11,0))/100000,0)","v":0},{"$f":"IFERROR('Data Input - BAT'!X88*INDEX('Energy Prices'!$F$26:$CR$31,MATCH($B132,'Energy Prices'!$C$26:$C$31,0),MATCH(Calc_BAT!T$6,'Energy Prices'!$F$11:$CR$11,0))/100000,0)","v":0},{"$f":"IFERROR('Data Input - BAT'!Y88*INDEX('Energy Prices'!$F$26:$CR$31,MATCH($B132,'Energy Prices'!$C$26:$C$31,0),MATCH(Calc_BAT!U$6,'Energy Prices'!$F$11:$CR$11,0))/100000,0)","v":0},{"$f":"IFERROR('Data Input - BAT'!Z88*INDEX('Energy Prices'!$F$26:$CR$31,MATCH($B132,'Energy Prices'!$C$26:$C$31,0),MATCH(Calc_BAT!V$6,'Energy Prices'!$F$11:$CR$11,0))/100000,0)","v":0},{"$f":"IFERROR('Data Input - BAT'!AA88*INDEX('Energy Prices'!$F$26:$CR$31,MATCH($B132,'Energy Prices'!$C$26:$C$31,0),MATCH(Calc_BAT!W$6,'Energy Prices'!$F$11:$CR$11,0))/100000,0)","v":0},{"$f":"IFERROR('Data Input - BAT'!AB88*INDEX('Energy Prices'!$F$26:$CR$31,MATCH($B132,'Energy Prices'!$C$26:$C$31,0),MATCH(Calc_BAT!X$6,'Energy Prices'!$F$11:$CR$11,0))/100000,0)","v":0},{"$f":"IFERROR('Data Input - BAT'!AC88*INDEX('Energy Prices'!$F$26:$CR$31,MATCH($B132,'Energy Prices'!$C$26:$C$31,0),MATCH(Calc_BAT!Y$6,'Energy Prices'!$F$11:$CR$11,0))/100000,0)","v":0},{"$f":"IFERROR('Data Input - BAT'!AD88*INDEX('Energy Prices'!$F$26:$CR$31,MATCH($B132,'Energy Prices'!$C$26:$C$31,0),MATCH(Calc_BAT!Z$6,'Energy Prices'!$F$11:$CR$11,0))/100000,0)","v":0},{"$f":"IFERROR('Data Input - BAT'!AE88*INDEX('Energy Prices'!$F$26:$CR$31,MATCH($B132,'Energy Prices'!$C$26:$C$31,0),MATCH(Calc_BAT!AA$6,'Energy Prices'!$F$11:$CR$11,0))/100000,0)","v":0},{"$f":"IFERROR('Data Input - BAT'!AF88*INDEX('Energy Prices'!$F$26:$CR$31,MATCH($B132,'Energy Prices'!$C$26:$C$31,0),MATCH(Calc_BAT!AB$6,'Energy Prices'!$F$11:$CR$11,0))/100000,0)","v":0},{"$f":"IFERROR('Data Input - BAT'!AG88*INDEX('Energy Prices'!$F$26:$CR$31,MATCH($B132,'Energy Prices'!$C$26:$C$31,0),MATCH(Calc_BAT!AC$6,'Energy Prices'!$F$11:$CR$11,0))/100000,0)","v":0},{"$f":"IFERROR('Data Input - BAT'!AH88*INDEX('Energy Prices'!$F$26:$CR$31,MATCH($B132,'Energy Prices'!$C$26:$C$31,0),MATCH(Calc_BAT!AD$6,'Energy Prices'!$F$11:$CR$11,0))/100000,0)","v":0},{"$f":"IFERROR('Data Input - BAT'!AI88*INDEX('Energy Prices'!$F$26:$CR$31,MATCH($B132,'Energy Prices'!$C$26:$C$31,0),MATCH(Calc_BAT!AE$6,'Energy Prices'!$F$11:$CR$11,0))/100000,0)","v":0},{"$f":"IFERROR('Data Input - BAT'!AJ88*INDEX('Energy Prices'!$F$26:$CR$31,MATCH($B132,'Energy Prices'!$C$26:$C$31,0),MATCH(Calc_BAT!AF$6,'Energy Prices'!$F$11:$CR$11,0))/100000,0)","v":0},{"$f":"IFERROR('Data Input - BAT'!AK88*INDEX('Energy Prices'!$F$26:$CR$31,MATCH($B132,'Energy Prices'!$C$26:$C$31,0),MATCH(Calc_BAT!AG$6,'Energy Prices'!$F$11:$CR$11,0))/100000,0)","v":0},{"$f":"IFERROR('Data Input - BAT'!AL88*INDEX('Energy Prices'!$F$26:$CR$31,MATCH($B132,'Energy Prices'!$C$26:$C$31,0),MATCH(Calc_BAT!AH$6,'Energy Prices'!$F$11:$CR$11,0))/100000,0)","v":0},{"$f":"IFERROR('Data Input - BAT'!AM88*INDEX('Energy Prices'!$F$26:$CR$31,MATCH($B132,'Energy Prices'!$C$26:$C$31,0),MATCH(Calc_BAT!AI$6,'Energy Prices'!$F$11:$CR$11,0))/100000,0)","v":0},{"$f":"IFERROR('Data Input - BAT'!AN88*INDEX('Energy Prices'!$F$26:$CR$31,MATCH($B132,'Energy Prices'!$C$26:$C$31,0),MATCH(Calc_BAT!AJ$6,'Energy Prices'!$F$11:$CR$11,0))/100000,0)","v":0},{"$f":"IFERROR('Data Input - BAT'!AO88*INDEX('Energy Prices'!$F$26:$CR$31,MATCH($B132,'Energy Prices'!$C$26:$C$31,0),MATCH(Calc_BAT!AK$6,'Energy Prices'!$F$11:$CR$11,0))/100000,0)","v":0},{"$f":"IFERROR('Data Input - BAT'!AP88*INDEX('Energy Prices'!$F$26:$CR$31,MATCH($B132,'Energy Prices'!$C$26:$C$31,0),MATCH(Calc_BAT!AL$6,'Energy Prices'!$F$11:$CR$11,0))/100000,0)","v":0},{"$f":"IFERROR('Data Input - BAT'!AQ88*INDEX('Energy Prices'!$F$26:$CR$31,MATCH($B132,'Energy Prices'!$C$26:$C$31,0),MATCH(Calc_BAT!AM$6,'Energy Prices'!$F$11:$CR$11,0))/100000,0)","v":0},{"$f":"IFERROR('Data Input - BAT'!AR88*INDEX('Energy Prices'!$F$26:$CR$31,MATCH($B132,'Energy Prices'!$C$26:$C$31,0),MATCH(Calc_BAT!AN$6,'Energy Prices'!$F$11:$CR$11,0))/100000,0)","v":0},{"$f":"IFERROR('Data Input - BAT'!AS88*INDEX('Energy Prices'!$F$26:$CR$31,MATCH($B132,'Energy Prices'!$C$26:$C$31,0),MATCH(Calc_BAT!AO$6,'Energy Prices'!$F$11:$CR$11,0))/100000,0)","v":0},{"$f":"IFERROR('Data Input - BAT'!AT88*INDEX('Energy Prices'!$F$26:$CR$31,MATCH($B132,'Energy Prices'!$C$26:$C$31,0),MATCH(Calc_BAT!AP$6,'Energy Prices'!$F$11:$CR$11,0))/100000,0)","v":0},{"$f":"IFERROR('Data Input - BAT'!AU88*INDEX('Energy Prices'!$F$26:$CR$31,MATCH($B132,'Energy Prices'!$C$26:$C$31,0),MATCH(Calc_BAT!AQ$6,'Energy Prices'!$F$11:$CR$11,0))/100000,0)","v":0},{"$f":"IFERROR('Data Input - BAT'!AV88*INDEX('Energy Prices'!$F$26:$CR$31,MATCH($B132,'Energy Prices'!$C$26:$C$31,0),MATCH(Calc_BAT!AR$6,'Energy Prices'!$F$11:$CR$11,0))/100000,0)","v":0},{"$f":"IFERROR('Data Input - BAT'!AW88*INDEX('Energy Prices'!$F$26:$CR$31,MATCH($B132,'Energy Prices'!$C$26:$C$31,0),MATCH(Calc_BAT!AS$6,'Energy Prices'!$F$11:$CR$11,0))/100000,0)","v":0},{"$f":"IFERROR('Data Input - BAT'!AX88*INDEX('Energy Prices'!$F$26:$CR$31,MATCH($B132,'Energy Prices'!$C$26:$C$31,0),MATCH(Calc_BAT!AT$6,'Energy Prices'!$F$11:$CR$11,0))/100000,0)","v":0},{"$f":"IFERROR('Data Input - BAT'!AY88*INDEX('Energy Prices'!$F$26:$CR$31,MATCH($B132,'Energy Prices'!$C$26:$C$31,0),MATCH(Calc_BAT!AU$6,'Energy Prices'!$F$11:$CR$11,0))/100000,0)","v":0},{"$f":"IFERROR('Data Input - BAT'!AZ88*INDEX('Energy Prices'!$F$26:$CR$31,MATCH($B132,'Energy Prices'!$C$26:$C$31,0),MATCH(Calc_BAT!AV$6,'Energy Prices'!$F$11:$CR$11,0))/100000,0)","v":0},{"$f":"IFERROR('Data Input - BAT'!BA88*INDEX('Energy Prices'!$F$26:$CR$31,MATCH($B132,'Energy Prices'!$C$26:$C$31,0),MATCH(Calc_BAT!AW$6,'Energy Prices'!$F$11:$CR$11,0))/100000,0)","v":0},{"$f":"IFERROR('Data Input - BAT'!BB88*INDEX('Energy Prices'!$F$26:$CR$31,MATCH($B132,'Energy Prices'!$C$26:$C$31,0),MATCH(Calc_BAT!AX$6,'Energy Prices'!$F$11:$CR$11,0))/100000,0)","v":0},{"$f":"IFERROR('Data Input - BAT'!BC88*INDEX('Energy Prices'!$F$26:$CR$31,MATCH($B132,'Energy Prices'!$C$26:$C$31,0),MATCH(Calc_BAT!AY$6,'Energy Prices'!$F$11:$CR$11,0))/100000,0)","v":0},{"$f":"IFERROR('Data Input - BAT'!BD88*INDEX('Energy Prices'!$F$26:$CR$31,MATCH($B132,'Energy Prices'!$C$26:$C$31,0),MATCH(Calc_BAT!AZ$6,'Energy Prices'!$F$11:$CR$11,0))/100000,0)","v":0},{"$f":"IFERROR('Data Input - BAT'!BE88*INDEX('Energy Prices'!$F$26:$CR$31,MATCH($B132,'Energy Prices'!$C$26:$C$31,0),MATCH(Calc_BAT!BA$6,'Energy Prices'!$F$11:$CR$11,0))/100000,0)","v":0},{"$f":"IFERROR('Data Input - BAT'!BF88*INDEX('Energy Prices'!$F$26:$CR$31,MATCH($B132,'Energy Prices'!$C$26:$C$31,0),MATCH(Calc_BAT!BB$6,'Energy Prices'!$F$11:$CR$11,0))/100000,0)","v":0},{"$f":"IFERROR('Data Input - BAT'!BG88*INDEX('Energy Prices'!$F$26:$CR$31,MATCH($B132,'Energy Prices'!$C$26:$C$31,0),MATCH(Calc_BAT!BC$6,'Energy Prices'!$F$11:$CR$11,0))/100000,0)","v":0},{"$f":"IFERROR('Data Input - BAT'!BH88*INDEX('Energy Prices'!$F$26:$CR$31,MATCH($B132,'Energy Prices'!$C$26:$C$31,0),MATCH(Calc_BAT!BD$6,'Energy Prices'!$F$11:$CR$11,0))/100000,0)","v":0},{"$f":"IFERROR('Data Input - BAT'!BI88*INDEX('Energy Prices'!$F$26:$CR$31,MATCH($B132,'Energy Prices'!$C$26:$C$31,0),MATCH(Calc_BAT!BE$6,'Energy Prices'!$F$11:$CR$11,0))/100000,0)","v":0},{"$f":"IFERROR('Data Input - BAT'!BJ88*INDEX('Energy Prices'!$F$26:$CR$31,MATCH($B132,'Energy Prices'!$C$26:$C$31,0),MATCH(Calc_BAT!BF$6,'Energy Prices'!$F$11:$CR$11,0))/100000,0)","v":0},{"$f":"IFERROR('Data Input - BAT'!BK88*INDEX('Energy Prices'!$F$26:$CR$31,MATCH($B132,'Energy Prices'!$C$26:$C$31,0),MATCH(Calc_BAT!BG$6,'Energy Prices'!$F$11:$CR$11,0))/100000,0)","v":0},{"$f":"IFERROR('Data Input - BAT'!BL88*INDEX('Energy Prices'!$F$26:$CR$31,MATCH($B132,'Energy Prices'!$C$26:$C$31,0),MATCH(Calc_BAT!BH$6,'Energy Prices'!$F$11:$CR$11,0))/100000,0)","v":0},{"$f":"IFERROR('Data Input - BAT'!BM88*INDEX('Energy Prices'!$F$26:$CR$31,MATCH($B132,'Energy Prices'!$C$26:$C$31,0),MATCH(Calc_BAT!BI$6,'Energy Prices'!$F$11:$CR$11,0))/100000,0)","v":0},{"$f":"IFERROR('Data Input - BAT'!BN88*INDEX('Energy Prices'!$F$26:$CR$31,MATCH($B132,'Energy Prices'!$C$26:$C$31,0),MATCH(Calc_BAT!BJ$6,'Energy Prices'!$F$11:$CR$11,0))/100000,0)","v":0},{"$f":"IFERROR('Data Input - BAT'!BO88*INDEX('Energy Prices'!$F$26:$CR$31,MATCH($B132,'Energy Prices'!$C$26:$C$31,0),MATCH(Calc_BAT!BK$6,'Energy Prices'!$F$11:$CR$11,0))/100000,0)","v":0},{"$f":"IFERROR('Data Input - BAT'!BP88*INDEX('Energy Prices'!$F$26:$CR$31,MATCH($B132,'Energy Prices'!$C$26:$C$31,0),MATCH(Calc_BAT!BL$6,'Energy Prices'!$F$11:$CR$11,0))/100000,0)","v":0},{"$f":"IFERROR('Data Input - BAT'!BQ88*INDEX('Energy Prices'!$F$26:$CR$31,MATCH($B132,'Energy Prices'!$C$26:$C$31,0),MATCH(Calc_BAT!BM$6,'Energy Prices'!$F$11:$CR$11,0))/100000,0)","v":0},{"$f":"IFERROR('Data Input - BAT'!BR88*INDEX('Energy Prices'!$F$26:$CR$31,MATCH($B132,'Energy Prices'!$C$26:$C$31,0),MATCH(Calc_BAT!BN$6,'Energy Prices'!$F$11:$CR$11,0))/100000,0)","v":0},{"$f":"IFERROR('Data Input - BAT'!BS88*INDEX('Energy Prices'!$F$26:$CR$31,MATCH($B132,'Energy Prices'!$C$26:$C$31,0),MATCH(Calc_BAT!BO$6,'Energy Prices'!$F$11:$CR$11,0))/100000,0)","v":0},{"$f":"IFERROR('Data Input - BAT'!BT88*INDEX('Energy Prices'!$F$26:$CR$31,MATCH($B132,'Energy Prices'!$C$26:$C$31,0),MATCH(Calc_BAT!BP$6,'Energy Prices'!$F$11:$CR$11,0))/100000,0)","v":0},{"$f":"IFERROR('Data Input - BAT'!BU88*INDEX('Energy Prices'!$F$26:$CR$31,MATCH($B132,'Energy Prices'!$C$26:$C$31,0),MATCH(Calc_BAT!BQ$6,'Energy Prices'!$F$11:$CR$11,0))/100000,0)","v":0},{"$f":"IFERROR('Data Input - BAT'!BV88*INDEX('Energy Prices'!$F$26:$CR$31,MATCH($B132,'Energy Prices'!$C$26:$C$31,0),MATCH(Calc_BAT!BR$6,'Energy Prices'!$F$11:$CR$11,0))/100000,0)","v":0},{"$f":"IFERROR('Data Input - BAT'!BW88*INDEX('Energy Prices'!$F$26:$CR$31,MATCH($B132,'Energy Prices'!$C$26:$C$31,0),MATCH(Calc_BAT!BS$6,'Energy Prices'!$F$11:$CR$11,0))/100000,0)","v":0},{"$f":"IFERROR('Data Input - BAT'!BX88*INDEX('Energy Prices'!$F$26:$CR$31,MATCH($B132,'Energy Prices'!$C$26:$C$31,0),MATCH(Calc_BAT!BT$6,'Energy Prices'!$F$11:$CR$11,0))/100000,0)","v":0},{"$f":"IFERROR('Data Input - BAT'!BY88*INDEX('Energy Prices'!$F$26:$CR$31,MATCH($B132,'Energy Prices'!$C$26:$C$31,0),MATCH(Calc_BAT!BU$6,'Energy Prices'!$F$11:$CR$11,0))/100000,0)","v":0},{"$f":"IFERROR('Data Input - BAT'!BZ88*INDEX('Energy Prices'!$F$26:$CR$31,MATCH($B132,'Energy Prices'!$C$26:$C$31,0),MATCH(Calc_BAT!BV$6,'Energy Prices'!$F$11:$CR$11,0))/100000,0)","v":0},{"$f":"IFERROR('Data Input - BAT'!CA88*INDEX('Energy Prices'!$F$26:$CR$31,MATCH($B132,'Energy Prices'!$C$26:$C$31,0),MATCH(Calc_BAT!BW$6,'Energy Prices'!$F$11:$CR$11,0))/100000,0)","v":0},{"$f":"IFERROR('Data Input - BAT'!CB88*INDEX('Energy Prices'!$F$26:$CR$31,MATCH($B132,'Energy Prices'!$C$26:$C$31,0),MATCH(Calc_BAT!BX$6,'Energy Prices'!$F$11:$CR$11,0))/100000,0)","v":0},{"$f":"IFERROR('Data Input - BAT'!CC88*INDEX('Energy Prices'!$F$26:$CR$31,MATCH($B132,'Energy Prices'!$C$26:$C$31,0),MATCH(Calc_BAT!BY$6,'Energy Prices'!$F$11:$CR$11,0))/100000,0)","v":0},{"$f":"IFERROR('Data Input - BAT'!CD88*INDEX('Energy Prices'!$F$26:$CR$31,MATCH($B132,'Energy Prices'!$C$26:$C$31,0),MATCH(Calc_BAT!BZ$6,'Energy Prices'!$F$11:$CR$11,0))/100000,0)","v":0},{"$f":"IFERROR('Data Input - BAT'!CE88*INDEX('Energy Prices'!$F$26:$CR$31,MATCH($B132,'Energy Prices'!$C$26:$C$31,0),MATCH(Calc_BAT!CA$6,'Energy Prices'!$F$11:$CR$11,0))/100000,0)","v":0},{"$f":"IFERROR('Data Input - BAT'!CF88*INDEX('Energy Prices'!$F$26:$CR$31,MATCH($B132,'Energy Prices'!$C$26:$C$31,0),MATCH(Calc_BAT!CB$6,'Energy Prices'!$F$11:$CR$11,0))/100000,0)","v":0},{"$f":"IFERROR('Data Input - BAT'!CG88*INDEX('Energy Prices'!$F$26:$CR$31,MATCH($B132,'Energy Prices'!$C$26:$C$31,0),MATCH(Calc_BAT!CC$6,'Energy Prices'!$F$11:$CR$11,0))/100000,0)","v":0},{"$f":"IFERROR('Data Input - BAT'!CH88*INDEX('Energy Prices'!$F$26:$CR$31,MATCH($B132,'Energy Prices'!$C$26:$C$31,0),MATCH(Calc_BAT!CD$6,'Energy Prices'!$F$11:$CR$11,0))/100000,0)","v":0},{"$f":"IFERROR('Data Input - BAT'!CI88*INDEX('Energy Prices'!$F$26:$CR$31,MATCH($B132,'Energy Prices'!$C$26:$C$31,0),MATCH(Calc_BAT!CE$6,'Energy Prices'!$F$11:$CR$11,0))/100000,0)","v":0},{"$f":"IFERROR('Data Input - BAT'!CJ88*INDEX('Energy Prices'!$F$26:$CR$31,MATCH($B132,'Energy Prices'!$C$26:$C$31,0),MATCH(Calc_BAT!CF$6,'Energy Prices'!$F$11:$CR$11,0))/100000,0)","v":0},{"$f":"IFERROR('Data Input - BAT'!CK88*INDEX('Energy Prices'!$F$26:$CR$31,MATCH($B132,'Energy Prices'!$C$26:$C$31,0),MATCH(Calc_BAT!CG$6,'Energy Prices'!$F$11:$CR$11,0))/100000,0)","v":0},{"$f":"IFERROR('Data Input - BAT'!CL88*INDEX('Energy Prices'!$F$26:$CR$31,MATCH($B132,'Energy Prices'!$C$26:$C$31,0),MATCH(Calc_BAT!CH$6,'Energy Prices'!$F$11:$CR$11,0))/100000,0)","v":0},{"$f":"IFERROR('Data Input - BAT'!CM88*INDEX('Energy Prices'!$F$26:$CR$31,MATCH($B132,'Energy Prices'!$C$26:$C$31,0),MATCH(Calc_BAT!CI$6,'Energy Prices'!$F$11:$CR$11,0))/100000,0)","v":0},{"$f":"IFERROR('Data Input - BAT'!CN88*INDEX('Energy Prices'!$F$26:$CR$31,MATCH($B132,'Energy Prices'!$C$26:$C$31,0),MATCH(Calc_BAT!CJ$6,'Energy Prices'!$F$11:$CR$11,0))/100000,0)","v":0},{"$f":"IFERROR('Data Input - BAT'!CO88*INDEX('Energy Prices'!$F$26:$CR$31,MATCH($B132,'Energy Prices'!$C$26:$C$31,0),MATCH(Calc_BAT!CK$6,'Energy Prices'!$F$11:$CR$11,0))/100000,0)","v":0},{"$f":"IFERROR('Data Input - BAT'!CP88*INDEX('Energy Prices'!$F$26:$CR$31,MATCH($B132,'Energy Prices'!$C$26:$C$31,0),MATCH(Calc_BAT!CL$6,'Energy Prices'!$F$11:$CR$11,0))/100000,0)","v":0},{"$f":"IFERROR('Data Input - BAT'!CQ88*INDEX('Energy Prices'!$F$26:$CR$31,MATCH($B132,'Energy Prices'!$C$26:$C$31,0),MATCH(Calc_BAT!CM$6,'Energy Prices'!$F$11:$CR$11,0))/100000,0)","v":0},{"$f":"IFERROR('Data Input - BAT'!CR88*INDEX('Energy Prices'!$F$26:$CR$31,MATCH($B132,'Energy Prices'!$C$26:$C$31,0),MATCH(Calc_BAT!CN$6,'Energy Prices'!$F$11:$CR$11,0))/100000,0)","v":0},{"$f":"IFERROR('Data Input - BAT'!CS88*INDEX('Energy Prices'!$F$26:$CR$31,MATCH($B132,'Energy Prices'!$C$26:$C$31,0),MATCH(Calc_BAT!CO$6,'Energy Prices'!$F$11:$CR$11,0))/100000,0)","v":0},{"$f":"IFERROR('Data Input - BAT'!CT88*INDEX('Energy Prices'!$F$26:$CR$31,MATCH($B132,'Energy Prices'!$C$26:$C$31,0),MATCH(Calc_BAT!CP$6,'Energy Prices'!$F$11:$CR$11,0))/100000,0)","v":0},{"$f":"IFERROR('Data Input - BAT'!CU88*INDEX('Energy Prices'!$F$26:$CR$31,MATCH($B132,'Energy Prices'!$C$26:$C$31,0),MATCH(Calc_BAT!CQ$6,'Energy Prices'!$F$11:$CR$11,0))/100000,0)","v":0},{"$f":"IFERROR('Data Input - BAT'!CV88*INDEX('Energy Prices'!$F$26:$CR$31,MATCH($B132,'Energy Prices'!$C$26:$C$31,0),MATCH(Calc_BAT!CR$6,'Energy Prices'!$F$11:$CR$11,0))/100000,0)","v":0},{"$f":"IFERROR('Data Input - BAT'!CW88*INDEX('Energy Prices'!$F$26:$CR$31,MATCH($B132,'Energy Prices'!$C$26:$C$31,0),MATCH(Calc_BAT!CS$6,'Energy Prices'!$F$11:$CR$11,0))/100000,0)","v":0},{"$f":"IFERROR('Data Input - BAT'!CX88*INDEX('Energy Prices'!$F$26:$CR$31,MATCH($B132,'Energy Prices'!$C$26:$C$31,0),MATCH(Calc_BAT!CT$6,'Energy Prices'!$F$11:$CR$11,0))/100000,0)","v":0},{"$f":"IFERROR('Data Input - BAT'!CY88*INDEX('Energy Prices'!$F$26:$CR$31,MATCH($B132,'Energy Prices'!$C$26:$C$31,0),MATCH(Calc_BAT!CU$6,'Energy Prices'!$F$11:$CR$11,0))/100000,0)","v":0},{"$f":"IFERROR('Data Input - BAT'!CZ88*INDEX('Energy Prices'!$F$26:$CR$31,MATCH($B132,'Energy Prices'!$C$26:$C$31,0),MATCH(Calc_BAT!CV$6,'Energy Prices'!$F$11:$CR$11,0))/100000,0)","v":0},{"$f":"IFERROR('Data Input - BAT'!DA88*INDEX('Energy Prices'!$F$26:$CR$31,MATCH($B132,'Energy Prices'!$C$26:$C$31,0),MATCH(Calc_BAT!CW$6,'Energy Prices'!$F$11:$CR$11,0))/100000,0)","v":0},{"$f":"IFERROR('Data Input - BAT'!DB88*INDEX('Energy Prices'!$F$26:$CR$31,MATCH($B132,'Energy Prices'!$C$26:$C$31,0),MATCH(Calc_BAT!CX$6,'Energy Prices'!$F$11:$CR$11,0))/100000,0)","v":0},{"$f":"IFERROR('Data Input - BAT'!DC88*INDEX('Energy Prices'!$F$26:$CR$31,MATCH($B132,'Energy Prices'!$C$26:$C$31,0),MATCH(Calc_BAT!CY$6,'Energy Prices'!$F$11:$CR$11,0))/100000,0)","v":0}]
[null,"Road - Diesel","£000's",{"$f":"IFERROR('Data Input - BAT'!H89*INDEX('Energy Prices'!$F$26:$CR$31,MATCH($B133,'Energy Prices'!$C$26:$C$31,0),MATCH(Calc_BAT!D$6,'Energy Prices'!$F$11:$CR$11,0))/100000,0)","v":0},{"$f":"IFERROR('Data Input - BAT'!I89*INDEX('Energy Prices'!$F$26:$CR$31,MATCH($B133,'Energy Prices'!$C$26:$C$31,0),MATCH(Calc_BAT!E$6,'Energy Prices'!$F$11:$CR$11,0))/100000,0)","v":0},{"$f":"IFERROR('Data Input - BAT'!J89*INDEX('Energy Prices'!$F$26:$CR$31,MATCH($B133,'Energy Prices'!$C$26:$C$31,0),MATCH(Calc_BAT!F$6,'Energy Prices'!$F$11:$CR$11,0))/100000,0)","v":0},{"$f":"IFERROR('Data Input - BAT'!K89*INDEX('Energy Prices'!$F$26:$CR$31,MATCH($B133,'Energy Prices'!$C$26:$C$31,0),MATCH(Calc_BAT!G$6,'Energy Prices'!$F$11:$CR$11,0))/100000,0)","v":0},{"$f":"IFERROR('Data Input - BAT'!L89*INDEX('Energy Prices'!$F$26:$CR$31,MATCH($B133,'Energy Prices'!$C$26:$C$31,0),MATCH(Calc_BAT!H$6,'Energy Prices'!$F$11:$CR$11,0))/100000,0)","v":0},{"$f":"IFERROR('Data Input - BAT'!M89*INDEX('Energy Prices'!$F$26:$CR$31,MATCH($B133,'Energy Prices'!$C$26:$C$31,0),MATCH(Calc_BAT!I$6,'Energy Prices'!$F$11:$CR$11,0))/100000,0)","v":0},{"$f":"IFERROR('Data Input - BAT'!N89*INDEX('Energy Prices'!$F$26:$CR$31,MATCH($B133,'Energy Prices'!$C$26:$C$31,0),MATCH(Calc_BAT!J$6,'Energy Prices'!$F$11:$CR$11,0))/100000,0)","v":0},{"$f":"IFERROR('Data Input - BAT'!O89*INDEX('Energy Prices'!$F$26:$CR$31,MATCH($B133,'Energy Prices'!$C$26:$C$31,0),MATCH(Calc_BAT!K$6,'Energy Prices'!$F$11:$CR$11,0))/100000,0)","v":0},{"$f":"IFERROR('Data Input - BAT'!P89*INDEX('Energy Prices'!$F$26:$CR$31,MATCH($B133,'Energy Prices'!$C$26:$C$31,0),MATCH(Calc_BAT!L$6,'Energy Prices'!$F$11:$CR$11,0))/100000,0)","v":0},{"$f":"IFERROR('Data Input - BAT'!Q89*INDEX('Energy Prices'!$F$26:$CR$31,MATCH($B133,'Energy Prices'!$C$26:$C$31,0),MATCH(Calc_BAT!M$6,'Energy Prices'!$F$11:$CR$11,0))/100000,0)","v":0},{"$f":"IFERROR('Data Input - BAT'!R89*INDEX('Energy Prices'!$F$26:$CR$31,MATCH($B133,'Energy Prices'!$C$26:$C$31,0),MATCH(Calc_BAT!N$6,'Energy Prices'!$F$11:$CR$11,0))/100000,0)","v":0},{"$f":"IFERROR('Data Input - BAT'!S89*INDEX('Energy Prices'!$F$26:$CR$31,MATCH($B133,'Energy Prices'!$C$26:$C$31,0),MATCH(Calc_BAT!O$6,'Energy Prices'!$F$11:$CR$11,0))/100000,0)","v":0},{"$f":"IFERROR('Data Input - BAT'!T89*INDEX('Energy Prices'!$F$26:$CR$31,MATCH($B133,'Energy Prices'!$C$26:$C$31,0),MATCH(Calc_BAT!P$6,'Energy Prices'!$F$11:$CR$11,0))/100000,0)","v":0},{"$f":"IFERROR('Data Input - BAT'!U89*INDEX('Energy Prices'!$F$26:$CR$31,MATCH($B133,'Energy Prices'!$C$26:$C$31,0),MATCH(Calc_BAT!Q$6,'Energy Prices'!$F$11:$CR$11,0))/100000,0)","v":0},{"$f":"IFERROR('Data Input - BAT'!V89*INDEX('Energy Prices'!$F$26:$CR$31,MATCH($B133,'Energy Prices'!$C$26:$C$31,0),MATCH(Calc_BAT!R$6,'Energy Prices'!$F$11:$CR$11,0))/100000,0)","v":0},{"$f":"IFERROR('Data Input - BAT'!W89*INDEX('Energy Prices'!$F$26:$CR$31,MATCH($B133,'Energy Prices'!$C$26:$C$31,0),MATCH(Calc_BAT!S$6,'Energy Prices'!$F$11:$CR$11,0))/100000,0)","v":0},{"$f":"IFERROR('Data Input - BAT'!X89*INDEX('Energy Prices'!$F$26:$CR$31,MATCH($B133,'Energy Prices'!$C$26:$C$31,0),MATCH(Calc_BAT!T$6,'Energy Prices'!$F$11:$CR$11,0))/100000,0)","v":0},{"$f":"IFERROR('Data Input - BAT'!Y89*INDEX('Energy Prices'!$F$26:$CR$31,MATCH($B133,'Energy Prices'!$C$26:$C$31,0),MATCH(Calc_BAT!U$6,'Energy Prices'!$F$11:$CR$11,0))/100000,0)","v":0},{"$f":"IFERROR('Data Input - BAT'!Z89*INDEX('Energy Prices'!$F$26:$CR$31,MATCH($B133,'Energy Prices'!$C$26:$C$31,0),MATCH(Calc_BAT!V$6,'Energy Prices'!$F$11:$CR$11,0))/100000,0)","v":0},{"$f":"IFERROR('Data Input - BAT'!AA89*INDEX('Energy Prices'!$F$26:$CR$31,MATCH($B133,'Energy Prices'!$C$26:$C$31,0),MATCH(Calc_BAT!W$6,'Energy Prices'!$F$11:$CR$11,0))/100000,0)","v":0},{"$f":"IFERROR('Data Input - BAT'!AB89*INDEX('Energy Prices'!$F$26:$CR$31,MATCH($B133,'Energy Prices'!$C$26:$C$31,0),MATCH(Calc_BAT!X$6,'Energy Prices'!$F$11:$CR$11,0))/100000,0)","v":0},{"$f":"IFERROR('Data Input - BAT'!AC89*INDEX('Energy Prices'!$F$26:$CR$31,MATCH($B133,'Energy Prices'!$C$26:$C$31,0),MATCH(Calc_BAT!Y$6,'Energy Prices'!$F$11:$CR$11,0))/100000,0)","v":0},{"$f":"IFERROR('Data Input - BAT'!AD89*INDEX('Energy Prices'!$F$26:$CR$31,MATCH($B133,'Energy Prices'!$C$26:$C$31,0),MATCH(Calc_BAT!Z$6,'Energy Prices'!$F$11:$CR$11,0))/100000,0)","v":0},{"$f":"IFERROR('Data Input - BAT'!AE89*INDEX('Energy Prices'!$F$26:$CR$31,MATCH($B133,'Energy Prices'!$C$26:$C$31,0),MATCH(Calc_BAT!AA$6,'Energy Prices'!$F$11:$CR$11,0))/100000,0)","v":0},{"$f":"IFERROR('Data Input - BAT'!AF89*INDEX('Energy Prices'!$F$26:$CR$31,MATCH($B133,'Energy Prices'!$C$26:$C$31,0),MATCH(Calc_BAT!AB$6,'Energy Prices'!$F$11:$CR$11,0))/100000,0)","v":0},{"$f":"IFERROR('Data Input - BAT'!AG89*INDEX('Energy Prices'!$F$26:$CR$31,MATCH($B133,'Energy Prices'!$C$26:$C$31,0),MATCH(Calc_BAT!AC$6,'Energy Prices'!$F$11:$CR$11,0))/100000,0)","v":0},{"$f":"IFERROR('Data Input - BAT'!AH89*INDEX('Energy Prices'!$F$26:$CR$31,MATCH($B133,'Energy Prices'!$C$26:$C$31,0),MATCH(Calc_BAT!AD$6,'Energy Prices'!$F$11:$CR$11,0))/100000,0)","v":0},{"$f":"IFERROR('Data Input - BAT'!AI89*INDEX('Energy Prices'!$F$26:$CR$31,MATCH($B133,'Energy Prices'!$C$26:$C$31,0),MATCH(Calc_BAT!AE$6,'Energy Prices'!$F$11:$CR$11,0))/100000,0)","v":0},{"$f":"IFERROR('Data Input - BAT'!AJ89*INDEX('Energy Prices'!$F$26:$CR$31,MATCH($B133,'Energy Prices'!$C$26:$C$31,0),MATCH(Calc_BAT!AF$6,'Energy Prices'!$F$11:$CR$11,0))/100000,0)","v":0},{"$f":"IFERROR('Data Input - BAT'!AK89*INDEX('Energy Prices'!$F$26:$CR$31,MATCH($B133,'Energy Prices'!$C$26:$C$31,0),MATCH(Calc_BAT!AG$6,'Energy Prices'!$F$11:$CR$11,0))/100000,0)","v":0},{"$f":"IFERROR('Data Input - BAT'!AL89*INDEX('Energy Prices'!$F$26:$CR$31,MATCH($B133,'Energy Prices'!$C$26:$C$31,0),MATCH(Calc_BAT!AH$6,'Energy Prices'!$F$11:$CR$11,0))/100000,0)","v":0},{"$f":"IFERROR('Data Input - BAT'!AM89*INDEX('Energy Prices'!$F$26:$CR$31,MATCH($B133,'Energy Prices'!$C$26:$C$31,0),MATCH(Calc_BAT!AI$6,'Energy Prices'!$F$11:$CR$11,0))/100000,0)","v":0},{"$f":"IFERROR('Data Input - BAT'!AN89*INDEX('Energy Prices'!$F$26:$CR$31,MATCH($B133,'Energy Prices'!$C$26:$C$31,0),MATCH(Calc_BAT!AJ$6,'Energy Prices'!$F$11:$CR$11,0))/100000,0)","v":0},{"$f":"IFERROR('Data Input - BAT'!AO89*INDEX('Energy Prices'!$F$26:$CR$31,MATCH($B133,'Energy Prices'!$C$26:$C$31,0),MATCH(Calc_BAT!AK$6,'Energy Prices'!$F$11:$CR$11,0))/100000,0)","v":0},{"$f":"IFERROR('Data Input - BAT'!AP89*INDEX('Energy Prices'!$F$26:$CR$31,MATCH($B133,'Energy Prices'!$C$26:$C$31,0),MATCH(Calc_BAT!AL$6,'Energy Prices'!$F$11:$CR$11,0))/100000,0)","v":0},{"$f":"IFERROR('Data Input - BAT'!AQ89*INDEX('Energy Prices'!$F$26:$CR$31,MATCH($B133,'Energy Prices'!$C$26:$C$31,0),MATCH(Calc_BAT!AM$6,'Energy Prices'!$F$11:$CR$11,0))/100000,0)","v":0},{"$f":"IFERROR('Data Input - BAT'!AR89*INDEX('Energy Prices'!$F$26:$CR$31,MATCH($B133,'Energy Prices'!$C$26:$C$31,0),MATCH(Calc_BAT!AN$6,'Energy Prices'!$F$11:$CR$11,0))/100000,0)","v":0},{"$f":"IFERROR('Data Input - BAT'!AS89*INDEX('Energy Prices'!$F$26:$CR$31,MATCH($B133,'Energy Prices'!$C$26:$C$31,0),MATCH(Calc_BAT!AO$6,'Energy Prices'!$F$11:$CR$11,0))/100000,0)","v":0},{"$f":"IFERROR('Data Input - BAT'!AT89*INDEX('Energy Prices'!$F$26:$CR$31,MATCH($B133,'Energy Prices'!$C$26:$C$31,0),MATCH(Calc_BAT!AP$6,'Energy Prices'!$F$11:$CR$11,0))/100000,0)","v":0},{"$f":"IFERROR('Data Input - BAT'!AU89*INDEX('Energy Prices'!$F$26:$CR$31,MATCH($B133,'Energy Prices'!$C$26:$C$31,0),MATCH(Calc_BAT!AQ$6,'Energy Prices'!$F$11:$CR$11,0))/100000,0)","v":0},{"$f":"IFERROR('Data Input - BAT'!AV89*INDEX('Energy Prices'!$F$26:$CR$31,MATCH($B133,'Energy Prices'!$C$26:$C$31,0),MATCH(Calc_BAT!AR$6,'Energy Prices'!$F$11:$CR$11,0))/100000,0)","v":0},{"$f":"IFERROR('Data Input - BAT'!AW89*INDEX('Energy Prices'!$F$26:$CR$31,MATCH($B133,'Energy Prices'!$C$26:$C$31,0),MATCH(Calc_BAT!AS$6,'Energy Prices'!$F$11:$CR$11,0))/100000,0)","v":0},{"$f":"IFERROR('Data Input - BAT'!AX89*INDEX('Energy Prices'!$F$26:$CR$31,MATCH($B133,'Energy Prices'!$C$26:$C$31,0),MATCH(Calc_BAT!AT$6,'Energy Prices'!$F$11:$CR$11,0))/100000,0)","v":0},{"$f":"IFERROR('Data Input - BAT'!AY89*INDEX('Energy Prices'!$F$26:$CR$31,MATCH($B133,'Energy Prices'!$C$26:$C$31,0),MATCH(Calc_BAT!AU$6,'Energy Prices'!$F$11:$CR$11,0))/100000,0)","v":0},{"$f":"IFERROR('Data Input - BAT'!AZ89*INDEX('Energy Prices'!$F$26:$CR$31,MATCH($B133,'Energy Prices'!$C$26:$C$31,0),MATCH(Calc_BAT!AV$6,'Energy Prices'!$F$11:$CR$11,0))/100000,0)","v":0},{"$f":"IFERROR('Data Input - BAT'!BA89*INDEX('Energy Prices'!$F$26:$CR$31,MATCH($B133,'Energy Prices'!$C$26:$C$31,0),MATCH(Calc_BAT!AW$6,'Energy Prices'!$F$11:$CR$11,0))/100000,0)","v":0},{"$f":"IFERROR('Data Input - BAT'!BB89*INDEX('Energy Prices'!$F$26:$CR$31,MATCH($B133,'Energy Prices'!$C$26:$C$31,0),MATCH(Calc_BAT!AX$6,'Energy Prices'!$F$11:$CR$11,0))/100000,0)","v":0},{"$f":"IFERROR('Data Input - BAT'!BC89*INDEX('Energy Prices'!$F$26:$CR$31,MATCH($B133,'Energy Prices'!$C$26:$C$31,0),MATCH(Calc_BAT!AY$6,'Energy Prices'!$F$11:$CR$11,0))/100000,0)","v":0},{"$f":"IFERROR('Data Input - BAT'!BD89*INDEX('Energy Prices'!$F$26:$CR$31,MATCH($B133,'Energy Prices'!$C$26:$C$31,0),MATCH(Calc_BAT!AZ$6,'Energy Prices'!$F$11:$CR$11,0))/100000,0)","v":0},{"$f":"IFERROR('Data Input - BAT'!BE89*INDEX('Energy Prices'!$F$26:$CR$31,MATCH($B133,'Energy Prices'!$C$26:$C$31,0),MATCH(Calc_BAT!BA$6,'Energy Prices'!$F$11:$CR$11,0))/100000,0)","v":0},{"$f":"IFERROR('Data Input - BAT'!BF89*INDEX('Energy Prices'!$F$26:$CR$31,MATCH($B133,'Energy Prices'!$C$26:$C$31,0),MATCH(Calc_BAT!BB$6,'Energy Prices'!$F$11:$CR$11,0))/100000,0)","v":0},{"$f":"IFERROR('Data Input - BAT'!BG89*INDEX('Energy Prices'!$F$26:$CR$31,MATCH($B133,'Energy Prices'!$C$26:$C$31,0),MATCH(Calc_BAT!BC$6,'Energy Prices'!$F$11:$CR$11,0))/100000,0)","v":0},{"$f":"IFERROR('Data Input - BAT'!BH89*INDEX('Energy Prices'!$F$26:$CR$31,MATCH($B133,'Energy Prices'!$C$26:$C$31,0),MATCH(Calc_BAT!BD$6,'Energy Prices'!$F$11:$CR$11,0))/100000,0)","v":0},{"$f":"IFERROR('Data Input - BAT'!BI89*INDEX('Energy Prices'!$F$26:$CR$31,MATCH($B133,'Energy Prices'!$C$26:$C$31,0),MATCH(Calc_BAT!BE$6,'Energy Prices'!$F$11:$CR$11,0))/100000,0)","v":0},{"$f":"IFERROR('Data Input - BAT'!BJ89*INDEX('Energy Prices'!$F$26:$CR$31,MATCH($B133,'Energy Prices'!$C$26:$C$31,0),MATCH(Calc_BAT!BF$6,'Energy Prices'!$F$11:$CR$11,0))/100000,0)","v":0},{"$f":"IFERROR('Data Input - BAT'!BK89*INDEX('Energy Prices'!$F$26:$CR$31,MATCH($B133,'Energy Prices'!$C$26:$C$31,0),MATCH(Calc_BAT!BG$6,'Energy Prices'!$F$11:$CR$11,0))/100000,0)","v":0},{"$f":"IFERROR('Data Input - BAT'!BL89*INDEX('Energy Prices'!$F$26:$CR$31,MATCH($B133,'Energy Prices'!$C$26:$C$31,0),MATCH(Calc_BAT!BH$6,'Energy Prices'!$F$11:$CR$11,0))/100000,0)","v":0},{"$f":"IFERROR('Data Input - BAT'!BM89*INDEX('Energy Prices'!$F$26:$CR$31,MATCH($B133,'Energy Prices'!$C$26:$C$31,0),MATCH(Calc_BAT!BI$6,'Energy Prices'!$F$11:$CR$11,0))/100000,0)","v":0},{"$f":"IFERROR('Data Input - BAT'!BN89*INDEX('Energy Prices'!$F$26:$CR$31,MATCH($B133,'Energy Prices'!$C$26:$C$31,0),MATCH(Calc_BAT!BJ$6,'Energy Prices'!$F$11:$CR$11,0))/100000,0)","v":0},{"$f":"IFERROR('Data Input - BAT'!BO89*INDEX('Energy Prices'!$F$26:$CR$31,MATCH($B133,'Energy Prices'!$C$26:$C$31,0),MATCH(Calc_BAT!BK$6,'Energy Prices'!$F$11:$CR$11,0))/100000,0)","v":0},{"$f":"IFERROR('Data Input - BAT'!BP89*INDEX('Energy Prices'!$F$26:$CR$31,MATCH($B133,'Energy Prices'!$C$26:$C$31,0),MATCH(Calc_BAT!BL$6,'Energy Prices'!$F$11:$CR$11,0))/100000,0)","v":0},{"$f":"IFERROR('Data Input - BAT'!BQ89*INDEX('Energy Prices'!$F$26:$CR$31,MATCH($B133,'Energy Prices'!$C$26:$C$31,0),MATCH(Calc_BAT!BM$6,'Energy Prices'!$F$11:$CR$11,0))/100000,0)","v":0},{"$f":"IFERROR('Data Input - BAT'!BR89*INDEX('Energy Prices'!$F$26:$CR$31,MATCH($B133,'Energy Prices'!$C$26:$C$31,0),MATCH(Calc_BAT!BN$6,'Energy Prices'!$F$11:$CR$11,0))/100000,0)","v":0},{"$f":"IFERROR('Data Input - BAT'!BS89*INDEX('Energy Prices'!$F$26:$CR$31,MATCH($B133,'Energy Prices'!$C$26:$C$31,0),MATCH(Calc_BAT!BO$6,'Energy Prices'!$F$11:$CR$11,0))/100000,0)","v":0},{"$f":"IFERROR('Data Input - BAT'!BT89*INDEX('Energy Prices'!$F$26:$CR$31,MATCH($B133,'Energy Prices'!$C$26:$C$31,0),MATCH(Calc_BAT!BP$6,'Energy Prices'!$F$11:$CR$11,0))/100000,0)","v":0},{"$f":"IFERROR('Data Input - BAT'!BU89*INDEX('Energy Prices'!$F$26:$CR$31,MATCH($B133,'Energy Prices'!$C$26:$C$31,0),MATCH(Calc_BAT!BQ$6,'Energy Prices'!$F$11:$CR$11,0))/100000,0)","v":0},{"$f":"IFERROR('Data Input - BAT'!BV89*INDEX('Energy Prices'!$F$26:$CR$31,MATCH($B133,'Energy Prices'!$C$26:$C$31,0),MATCH(Calc_BAT!BR$6,'Energy Prices'!$F$11:$CR$11,0))/100000,0)","v":0},{"$f":"IFERROR('Data Input - BAT'!BW89*INDEX('Energy Prices'!$F$26:$CR$31,MATCH($B133,'Energy Prices'!$C$26:$C$31,0),MATCH(Calc_BAT!BS$6,'Energy Prices'!$F$11:$CR$11,0))/100000,0)","v":0},{"$f":"IFERROR('Data Input - BAT'!BX89*INDEX('Energy Prices'!$F$26:$CR$31,MATCH($B133,'Energy Prices'!$C$26:$C$31,0),MATCH(Calc_BAT!BT$6,'Energy Prices'!$F$11:$CR$11,0))/100000,0)","v":0},{"$f":"IFERROR('Data Input - BAT'!BY89*INDEX('Energy Prices'!$F$26:$CR$31,MATCH($B133,'Energy Prices'!$C$26:$C$31,0),MATCH(Calc_BAT!BU$6,'Energy Prices'!$F$11:$CR$11,0))/100000,0)","v":0},{"$f":"IFERROR('Data Input - BAT'!BZ89*INDEX('Energy Prices'!$F$26:$CR$31,MATCH($B133,'Energy Prices'!$C$26:$C$31,0),MATCH(Calc_BAT!BV$6,'Energy Prices'!$F$11:$CR$11,0))/100000,0)","v":0},{"$f":"IFERROR('Data Input - BAT'!CA89*INDEX('Energy Prices'!$F$26:$CR$31,MATCH($B133,'Energy Prices'!$C$26:$C$31,0),MATCH(Calc_BAT!BW$6,'Energy Prices'!$F$11:$CR$11,0))/100000,0)","v":0},{"$f":"IFERROR('Data Input - BAT'!CB89*INDEX('Energy Prices'!$F$26:$CR$31,MATCH($B133,'Energy Prices'!$C$26:$C$31,0),MATCH(Calc_BAT!BX$6,'Energy Prices'!$F$11:$CR$11,0))/100000,0)","v":0},{"$f":"IFERROR('Data Input - BAT'!CC89*INDEX('Energy Prices'!$F$26:$CR$31,MATCH($B133,'Energy Prices'!$C$26:$C$31,0),MATCH(Calc_BAT!BY$6,'Energy Prices'!$F$11:$CR$11,0))/100000,0)","v":0},{"$f":"IFERROR('Data Input - BAT'!CD89*INDEX('Energy Prices'!$F$26:$CR$31,MATCH($B133,'Energy Prices'!$C$26:$C$31,0),MATCH(Calc_BAT!BZ$6,'Energy Prices'!$F$11:$CR$11,0))/100000,0)","v":0},{"$f":"IFERROR('Data Input - BAT'!CE89*INDEX('Energy Prices'!$F$26:$CR$31,MATCH($B133,'Energy Prices'!$C$26:$C$31,0),MATCH(Calc_BAT!CA$6,'Energy Prices'!$F$11:$CR$11,0))/100000,0)","v":0},{"$f":"IFERROR('Data Input - BAT'!CF89*INDEX('Energy Prices'!$F$26:$CR$31,MATCH($B133,'Energy Prices'!$C$26:$C$31,0),MATCH(Calc_BAT!CB$6,'Energy Prices'!$F$11:$CR$11,0))/100000,0)","v":0},{"$f":"IFERROR('Data Input - BAT'!CG89*INDEX('Energy Prices'!$F$26:$CR$31,MATCH($B133,'Energy Prices'!$C$26:$C$31,0),MATCH(Calc_BAT!CC$6,'Energy Prices'!$F$11:$CR$11,0))/100000,0)","v":0},{"$f":"IFERROR('Data Input - BAT'!CH89*INDEX('Energy Prices'!$F$26:$CR$31,MATCH($B133,'Energy Prices'!$C$26:$C$31,0),MATCH(Calc_BAT!CD$6,'Energy Prices'!$F$11:$CR$11,0))/100000,0)","v":0},{"$f":"IFERROR('Data Input - BAT'!CI89*INDEX('Energy Prices'!$F$26:$CR$31,MATCH($B133,'Energy Prices'!$C$26:$C$31,0),MATCH(Calc_BAT!CE$6,'Energy Prices'!$F$11:$CR$11,0))/100000,0)","v":0},{"$f":"IFERROR('Data Input - BAT'!CJ89*INDEX('Energy Prices'!$F$26:$CR$31,MATCH($B133,'Energy Prices'!$C$26:$C$31,0),MATCH(Calc_BAT!CF$6,'Energy Prices'!$F$11:$CR$11,0))/100000,0)","v":0},{"$f":"IFERROR('Data Input - BAT'!CK89*INDEX('Energy Prices'!$F$26:$CR$31,MATCH($B133,'Energy Prices'!$C$26:$C$31,0),MATCH(Calc_BAT!CG$6,'Energy Prices'!$F$11:$CR$11,0))/100000,0)","v":0},{"$f":"IFERROR('Data Input - BAT'!CL89*INDEX('Energy Prices'!$F$26:$CR$31,MATCH($B133,'Energy Prices'!$C$26:$C$31,0),MATCH(Calc_BAT!CH$6,'Energy Prices'!$F$11:$CR$11,0))/100000,0)","v":0},{"$f":"IFERROR('Data Input - BAT'!CM89*INDEX('Energy Prices'!$F$26:$CR$31,MATCH($B133,'Energy Prices'!$C$26:$C$31,0),MATCH(Calc_BAT!CI$6,'Energy Prices'!$F$11:$CR$11,0))/100000,0)","v":0},{"$f":"IFERROR('Data Input - BAT'!CN89*INDEX('Energy Prices'!$F$26:$CR$31,MATCH($B133,'Energy Prices'!$C$26:$C$31,0),MATCH(Calc_BAT!CJ$6,'Energy Prices'!$F$11:$CR$11,0))/100000,0)","v":0},{"$f":"IFERROR('Data Input - BAT'!CO89*INDEX('Energy Prices'!$F$26:$CR$31,MATCH($B133,'Energy Prices'!$C$26:$C$31,0),MATCH(Calc_BAT!CK$6,'Energy Prices'!$F$11:$CR$11,0))/100000,0)","v":0},{"$f":"IFERROR('Data Input - BAT'!CP89*INDEX('Energy Prices'!$F$26:$CR$31,MATCH($B133,'Energy Prices'!$C$26:$C$31,0),MATCH(Calc_BAT!CL$6,'Energy Prices'!$F$11:$CR$11,0))/100000,0)","v":0},{"$f":"IFERROR('Data Input - BAT'!CQ89*INDEX('Energy Prices'!$F$26:$CR$31,MATCH($B133,'Energy Prices'!$C$26:$C$31,0),MATCH(Calc_BAT!CM$6,'Energy Prices'!$F$11:$CR$11,0))/100000,0)","v":0},{"$f":"IFERROR('Data Input - BAT'!CR89*INDEX('Energy Prices'!$F$26:$CR$31,MATCH($B133,'Energy Prices'!$C$26:$C$31,0),MATCH(Calc_BAT!CN$6,'Energy Prices'!$F$11:$CR$11,0))/100000,0)","v":0},{"$f":"IFERROR('Data Input - BAT'!CS89*INDEX('Energy Prices'!$F$26:$CR$31,MATCH($B133,'Energy Prices'!$C$26:$C$31,0),MATCH(Calc_BAT!CO$6,'Energy Prices'!$F$11:$CR$11,0))/100000,0)","v":0},{"$f":"IFERROR('Data Input - BAT'!CT89*INDEX('Energy Prices'!$F$26:$CR$31,MATCH($B133,'Energy Prices'!$C$26:$C$31,0),MATCH(Calc_BAT!CP$6,'Energy Prices'!$F$11:$CR$11,0))/100000,0)","v":0},{"$f":"IFERROR('Data Input - BAT'!CU89*INDEX('Energy Prices'!$F$26:$CR$31,MATCH($B133,'Energy Prices'!$C$26:$C$31,0),MATCH(Calc_BAT!CQ$6,'Energy Prices'!$F$11:$CR$11,0))/100000,0)","v":0},{"$f":"IFERROR('Data Input - BAT'!CV89*INDEX('Energy Prices'!$F$26:$CR$31,MATCH($B133,'Energy Prices'!$C$26:$C$31,0),MATCH(Calc_BAT!CR$6,'Energy Prices'!$F$11:$CR$11,0))/100000,0)","v":0},{"$f":"IFERROR('Data Input - BAT'!CW89*INDEX('Energy Prices'!$F$26:$CR$31,MATCH($B133,'Energy Prices'!$C$26:$C$31,0),MATCH(Calc_BAT!CS$6,'Energy Prices'!$F$11:$CR$11,0))/100000,0)","v":0},{"$f":"IFERROR('Data Input - BAT'!CX89*INDEX('Energy Prices'!$F$26:$CR$31,MATCH($B133,'Energy Prices'!$C$26:$C$31,0),MATCH(Calc_BAT!CT$6,'Energy Prices'!$F$11:$CR$11,0))/100000,0)","v":0},{"$f":"IFERROR('Data Input - BAT'!CY89*INDEX('Energy Prices'!$F$26:$CR$31,MATCH($B133,'Energy Prices'!$C$26:$C$31,0),MATCH(Calc_BAT!CU$6,'Energy Prices'!$F$11:$CR$11,0))/100000,0)","v":0},{"$f":"IFERROR('Data Input - BAT'!CZ89*INDEX('Energy Prices'!$F$26:$CR$31,MATCH($B133,'Energy Prices'!$C$26:$C$31,0),MATCH(Calc_BAT!CV$6,'Energy Prices'!$F$11:$CR$11,0))/100000,0)","v":0},{"$f":"IFERROR('Data Input - BAT'!DA89*INDEX('Energy Prices'!$F$26:$CR$31,MATCH($B133,'Energy Prices'!$C$26:$C$31,0),MATCH(Calc_BAT!CW$6,'Energy Prices'!$F$11:$CR$11,0))/100000,0)","v":0},{"$f":"IFERROR('Data Input - BAT'!DB89*INDEX('Energy Prices'!$F$26:$CR$31,MATCH($B133,'Energy Prices'!$C$26:$C$31,0),MATCH(Calc_BAT!CX$6,'Energy Prices'!$F$11:$CR$11,0))/100000,0)","v":0},{"$f":"IFERROR('Data Input - BAT'!DC89*INDEX('Energy Prices'!$F$26:$CR$31,MATCH($B133,'Energy Prices'!$C$26:$C$31,0),MATCH(Calc_BAT!CY$6,'Energy Prices'!$F$11:$CR$11,0))/100000,0)","v":0}]
[]
[null,"Discounted energy","£000's",{"$f":"SUM(D128:D133)*D$7","v":1785.9772560648744},{"$f":"SUM(E128:E133)*E$7","v":1769.2464149674659},1783.5557872693669,1752.5122542914835,1742.2058175935065,1736.9462483377367,1725.0749894734306,1682.0119364246996,0,0,0,0,0,0,0,0,0,0,0,0,0,0,0,0,0,0,0,0,0,0,0,0,0,0,0,0,0,0,0,0,0,0,0,0,0,0,0,0,0,0,0,0,0,0,0,0,0,0,0,0,{"$f":"SUM(BL128:BL133)*BL$7","v":0},0,0,0,0,0,0,0,0,0,0,0,0,0,0,0,0,0,0,0,0,0,0,0,0,0,0,0,0,0,0,0,0,0,0,0,0,0,0,0]
[]
[null,"Air pollutant emissions- value"]
[null,{"$f":"B53","v":"Sox 2019"},"£000's",{"$f":"IFERROR(IF(OR($C$144=FALSE,LEFT($B138,3)<>\"NOX\"),D53*INDEX('Damage costs'!$U$16:$U$43,MATCH($B138,'Damage costs'!$C$16:$C$43,0))/1000,D53*INDEX('Damage costs'!$Y$16:$Y$43,MATCH($B138,'Damage costs'!$C$16:$C$43,0))/1000),\"\")","v":19.20090116757984},{"$f":"IFERROR(IF(OR($C$144=FALSE,LEFT($B138,3)<>\"NOX\"),E53*INDEX('Damage costs'!$U$16:$U$43,MATCH($B138,'Damage costs'!$C$16:$C$43,0))/1000,E53*INDEX('Damage costs'!$Y$16:$Y$43,MATCH($B138,'Damage costs'!$C$16:$C$43,0))/1000),\"\")","v":5.1074397105762372},{"$f":"IFERROR(IF(OR($C$144=FALSE,LEFT($B138,3)<>\"NOX\"),F53*INDEX('Damage costs'!$U$16:$U$43,MATCH($B138,'Damage costs'!$C$16:$C$43,0))/1000,F53*INDEX('Damage costs'!$Y$16:$Y$43,MATCH($B138,'Damage costs'!$C$16:$C$43,0))/1000),\"\")","v":5.1074397105762372},{"$f":"IFERROR(IF(OR($C$144=FALSE,LEFT($B138,3)<>\"NOX\"),G53*INDEX('Damage costs'!$U$16:$U$43,MATCH($B138,'Damage costs'!$C$16:$C$43,0))/1000,G53*INDEX('Damage costs'!$Y$16:$Y$43,MATCH($B138,'Damage costs'!$C$16:$C$43,0))/1000),\"\")","v":5.1074397105762372},{"$f":"IFERROR(IF(OR($C$144=FALSE,LEFT($B138,3)<>\"NOX\"),H53*INDEX('Damage costs'!$U$16:$U$43,MATCH($B138,'Damage costs'!$C$16:$C$43,0))/1000,H53*INDEX('Damage costs'!$Y$16:$Y$43,MATCH($B138,'Damage costs'!$C$16:$C$43,0))/1000),\"\")","v":5.1074397105762372},{"$f":"IFERROR(IF(OR($C$144=FALSE,LEFT($B138,3)<>\"NOX\"),I53*INDEX('Damage costs'!$U$16:$U$43,MATCH($B138,'Damage costs'!$C$16:$C$43,0))/1000,I53*INDEX('Damage costs'!$Y$16:$Y$43,MATCH($B138,'Damage costs'!$C$16:$C$43,0))/1000),\"\")","v":5.1074397105762372},{"$f":"IFERROR(IF(OR($C$144=FALSE,LEFT($B138,3)<>\"NOX\"),J53*INDEX('Damage costs'!$U$16:$U$43,MATCH($B138,'Damage costs'!$C$16:$C$43,0))/1000,J53*INDEX('Damage costs'!$Y$16:$Y$43,MATCH($B138,'Damage costs'!$C$16:$C$43,0))/1000),\"\")","v":5.1074397105762372},{"$f":"IFERROR(IF(OR($C$144=FALSE,LEFT($B138,3)<>\"NOX\"),K53*INDEX('Damage costs'!$U$16:$U$43,MATCH($B138,'Damage costs'!$C$16:$C$43,0))/1000,K53*INDEX('Damage costs'!$Y$16:$Y$43,MATCH($B138,'Damage costs'!$C$16:$C$43,0))/1000),\"\")","v":5.1074397105762372},{"$f":"IFERROR(IF(OR($C$144=FALSE,LEFT($B138,3)<>\"NOX\"),L53*INDEX('Damage costs'!$U$16:$U$43,MATCH($B138,'Damage costs'!$C$16:$C$43,0))/1000,L53*INDEX('Damage costs'!$Y$16:$Y$43,MATCH($B138,'Damage costs'!$C$16:$C$43,0))/1000),\"\")","v":0},{"$f":"IFERROR(IF(OR($C$144=FALSE,LEFT($B138,3)<>\"NOX\"),M53*INDEX('Damage costs'!$U$16:$U$43,MATCH($B138,'Damage costs'!$C$16:$C$43,0))/1000,M53*INDEX('Damage costs'!$Y$16:$Y$43,MATCH($B138,'Damage costs'!$C$16:$C$43,0))/1000),\"\")","v":0},{"$f":"IFERROR(IF(OR($C$144=FALSE,LEFT($B138,3)<>\"NOX\"),N53*INDEX('Damage costs'!$U$16:$U$43,MATCH($B138,'Damage costs'!$C$16:$C$43,0))/1000,N53*INDEX('Damage costs'!$Y$16:$Y$43,MATCH($B138,'Damage costs'!$C$16:$C$43,0))/1000),\"\")","v":0},{"$f":"IFERROR(IF(OR($C$144=FALSE,LEFT($B138,3)<>\"NOX\"),O53*INDEX('Damage costs'!$U$16:$U$43,MATCH($B138,'Damage costs'!$C$16:$C$43,0))/1000,O53*INDEX('Damage costs'!$Y$16:$Y$43,MATCH($B138,'Damage costs'!$C$16:$C$43,0))/1000),\"\")","v":0},{"$f":"IFERROR(IF(OR($C$144=FALSE,LEFT($B138,3)<>\"NOX\"),P53*INDEX('Damage costs'!$U$16:$U$43,MATCH($B138,'Damage costs'!$C$16:$C$43,0))/1000,P53*INDEX('Damage costs'!$Y$16:$Y$43,MATCH($B138,'Damage costs'!$C$16:$C$43,0))/1000),\"\")","v":0},{"$f":"IFERROR(IF(OR($C$144=FALSE,LEFT($B138,3)<>\"NOX\"),Q53*INDEX('Damage costs'!$U$16:$U$43,MATCH($B138,'Damage costs'!$C$16:$C$43,0))/1000,Q53*INDEX('Damage costs'!$Y$16:$Y$43,MATCH($B138,'Damage costs'!$C$16:$C$43,0))/1000),\"\")","v":0},{"$f":"IFERROR(IF(OR($C$144=FALSE,LEFT($B138,3)<>\"NOX\"),R53*INDEX('Damage costs'!$U$16:$U$43,MATCH($B138,'Damage costs'!$C$16:$C$43,0))/1000,R53*INDEX('Damage costs'!$Y$16:$Y$43,MATCH($B138,'Damage costs'!$C$16:$C$43,0))/1000),\"\")","v":0},{"$f":"IFERROR(IF(OR($C$144=FALSE,LEFT($B138,3)<>\"NOX\"),S53*INDEX('Damage costs'!$U$16:$U$43,MATCH($B138,'Damage costs'!$C$16:$C$43,0))/1000,S53*INDEX('Damage costs'!$Y$16:$Y$43,MATCH($B138,'Damage costs'!$C$16:$C$43,0))/1000),\"\")","v":0},{"$f":"IFERROR(IF(OR($C$144=FALSE,LEFT($B138,3)<>\"NOX\"),T53*INDEX('Damage costs'!$U$16:$U$43,MATCH($B138,'Damage costs'!$C$16:$C$43,0))/1000,T53*INDEX('Damage costs'!$Y$16:$Y$43,MATCH($B138,'Damage costs'!$C$16:$C$43,0))/1000),\"\")","v":0},{"$f":"IFERROR(IF(OR($C$144=FALSE,LEFT($B138,3)<>\"NOX\"),U53*INDEX('Damage costs'!$U$16:$U$43,MATCH($B138,'Damage costs'!$C$16:$C$43,0))/1000,U53*INDEX('Damage costs'!$Y$16:$Y$43,MATCH($B138,'Damage costs'!$C$16:$C$43,0))/1000),\"\")","v":0},{"$f":"IFERROR(IF(OR($C$144=FALSE,LEFT($B138,3)<>\"NOX\"),V53*INDEX('Damage costs'!$U$16:$U$43,MATCH($B138,'Damage costs'!$C$16:$C$43,0))/1000,V53*INDEX('Damage costs'!$Y$16:$Y$43,MATCH($B138,'Damage costs'!$C$16:$C$43,0))/1000),\"\")","v":0},{"$f":"IFERROR(IF(OR($C$144=FALSE,LEFT($B138,3)<>\"NOX\"),W53*INDEX('Damage costs'!$U$16:$U$43,MATCH($B138,'Damage costs'!$C$16:$C$43,0))/1000,W53*INDEX('Damage costs'!$Y$16:$Y$43,MATCH($B138,'Damage costs'!$C$16:$C$43,0))/1000),\"\")","v":0},{"$f":"IFERROR(IF(OR($C$144=FALSE,LEFT($B138,3)<>\"NOX\"),X53*INDEX('Damage costs'!$U$16:$U$43,MATCH($B138,'Damage costs'!$C$16:$C$43,0))/1000,X53*INDEX('Damage costs'!$Y$16:$Y$43,MATCH($B138,'Damage costs'!$C$16:$C$43,0))/1000),\"\")","v":0},{"$f":"IFERROR(IF(OR($C$144=FALSE,LEFT($B138,3)<>\"NOX\"),Y53*INDEX('Damage costs'!$U$16:$U$43,MATCH($B138,'Damage costs'!$C$16:$C$43,0))/1000,Y53*INDEX('Damage costs'!$Y$16:$Y$43,MATCH($B138,'Damage costs'!$C$16:$C$43,0))/1000),\"\")","v":0},{"$f":"IFERROR(IF(OR($C$144=FALSE,LEFT($B138,3)<>\"NOX\"),Z53*INDEX('Damage costs'!$U$16:$U$43,MATCH($B138,'Damage costs'!$C$16:$C$43,0))/1000,Z53*INDEX('Damage costs'!$Y$16:$Y$43,MATCH($B138,'Damage costs'!$C$16:$C$43,0))/1000),\"\")","v":0},{"$f":"IFERROR(IF(OR($C$144=FALSE,LEFT($B138,3)<>\"NOX\"),AA53*INDEX('Damage costs'!$U$16:$U$43,MATCH($B138,'Damage costs'!$C$16:$C$43,0))/1000,AA53*INDEX('Damage costs'!$Y$16:$Y$43,MATCH($B138,'Damage costs'!$C$16:$C$43,0))/1000),\"\")","v":0},{"$f":"IFERROR(IF(OR($C$144=FALSE,LEFT($B138,3)<>\"NOX\"),AB53*INDEX('Damage costs'!$U$16:$U$43,MATCH($B138,'Damage costs'!$C$16:$C$43,0))/1000,AB53*INDEX('Damage costs'!$Y$16:$Y$43,MATCH($B138,'Damage costs'!$C$16:$C$43,0))/1000),\"\")","v":0},{"$f":"IFERROR(IF(OR($C$144=FALSE,LEFT($B138,3)<>\"NOX\"),AC53*INDEX('Damage costs'!$U$16:$U$43,MATCH($B138,'Damage costs'!$C$16:$C$43,0))/1000,AC53*INDEX('Damage costs'!$Y$16:$Y$43,MATCH($B138,'Damage costs'!$C$16:$C$43,0))/1000),\"\")","v":0},{"$f":"IFERROR(IF(OR($C$144=FALSE,LEFT($B138,3)<>\"NOX\"),AD53*INDEX('Damage costs'!$U$16:$U$43,MATCH($B138,'Damage costs'!$C$16:$C$43,0))/1000,AD53*INDEX('Damage costs'!$Y$16:$Y$43,MATCH($B138,'Damage costs'!$C$16:$C$43,0))/1000),\"\")","v":0},{"$f":"IFERROR(IF(OR($C$144=FALSE,LEFT($B138,3)<>\"NOX\"),AE53*INDEX('Damage costs'!$U$16:$U$43,MATCH($B138,'Damage costs'!$C$16:$C$43,0))/1000,AE53*INDEX('Damage costs'!$Y$16:$Y$43,MATCH($B138,'Damage costs'!$C$16:$C$43,0))/1000),\"\")","v":0},{"$f":"IFERROR(IF(OR($C$144=FALSE,LEFT($B138,3)<>\"NOX\"),AF53*INDEX('Damage costs'!$U$16:$U$43,MATCH($B138,'Damage costs'!$C$16:$C$43,0))/1000,AF53*INDEX('Damage costs'!$Y$16:$Y$43,MATCH($B138,'Damage costs'!$C$16:$C$43,0))/1000),\"\")","v":0},{"$f":"IFERROR(IF(OR($C$144=FALSE,LEFT($B138,3)<>\"NOX\"),AG53*INDEX('Damage costs'!$U$16:$U$43,MATCH($B138,'Damage costs'!$C$16:$C$43,0))/1000,AG53*INDEX('Damage costs'!$Y$16:$Y$43,MATCH($B138,'Damage costs'!$C$16:$C$43,0))/1000),\"\")","v":0},{"$f":"IFERROR(IF(OR($C$144=FALSE,LEFT($B138,3)<>\"NOX\"),AH53*INDEX('Damage costs'!$U$16:$U$43,MATCH($B138,'Damage costs'!$C$16:$C$43,0))/1000,AH53*INDEX('Damage costs'!$Y$16:$Y$43,MATCH($B138,'Damage costs'!$C$16:$C$43,0))/1000),\"\")","v":0},{"$f":"IFERROR(IF(OR($C$144=FALSE,LEFT($B138,3)<>\"NOX\"),AI53*INDEX('Damage costs'!$U$16:$U$43,MATCH($B138,'Damage costs'!$C$16:$C$43,0))/1000,AI53*INDEX('Damage costs'!$Y$16:$Y$43,MATCH($B138,'Damage costs'!$C$16:$C$43,0))/1000),\"\")","v":0},{"$f":"IFERROR(IF(OR($C$144=FALSE,LEFT($B138,3)<>\"NOX\"),AJ53*INDEX('Damage costs'!$U$16:$U$43,MATCH($B138,'Damage costs'!$C$16:$C$43,0))/1000,AJ53*INDEX('Damage costs'!$Y$16:$Y$43,MATCH($B138,'Damage costs'!$C$16:$C$43,0))/1000),\"\")","v":0},{"$f":"IFERROR(IF(OR($C$144=FALSE,LEFT($B138,3)<>\"NOX\"),AK53*INDEX('Damage costs'!$U$16:$U$43,MATCH($B138,'Damage costs'!$C$16:$C$43,0))/1000,AK53*INDEX('Damage costs'!$Y$16:$Y$43,MATCH($B138,'Damage costs'!$C$16:$C$43,0))/1000),\"\")","v":0},{"$f":"IFERROR(IF(OR($C$144=FALSE,LEFT($B138,3)<>\"NOX\"),AL53*INDEX('Damage costs'!$U$16:$U$43,MATCH($B138,'Damage costs'!$C$16:$C$43,0))/1000,AL53*INDEX('Damage costs'!$Y$16:$Y$43,MATCH($B138,'Damage costs'!$C$16:$C$43,0))/1000),\"\")","v":0},{"$f":"IFERROR(IF(OR($C$144=FALSE,LEFT($B138,3)<>\"NOX\"),AM53*INDEX('Damage costs'!$U$16:$U$43,MATCH($B138,'Damage costs'!$C$16:$C$43,0))/1000,AM53*INDEX('Damage costs'!$Y$16:$Y$43,MATCH($B138,'Damage costs'!$C$16:$C$43,0))/1000),\"\")","v":0},{"$f":"IFERROR(IF(OR($C$144=FALSE,LEFT($B138,3)<>\"NOX\"),AN53*INDEX('Damage costs'!$U$16:$U$43,MATCH($B138,'Damage costs'!$C$16:$C$43,0))/1000,AN53*INDEX('Damage costs'!$Y$16:$Y$43,MATCH($B138,'Damage costs'!$C$16:$C$43,0))/1000),\"\")","v":0},{"$f":"IFERROR(IF(OR($C$144=FALSE,LEFT($B138,3)<>\"NOX\"),AO53*INDEX('Damage costs'!$U$16:$U$43,MATCH($B138,'Damage costs'!$C$16:$C$43,0))/1000,AO53*INDEX('Damage costs'!$Y$16:$Y$43,MATCH($B138,'Damage costs'!$C$16:$C$43,0))/1000),\"\")","v":0},{"$f":"IFERROR(IF(OR($C$144=FALSE,LEFT($B138,3)<>\"NOX\"),AP53*INDEX('Damage costs'!$U$16:$U$43,MATCH($B138,'Damage costs'!$C$16:$C$43,0))/1000,AP53*INDEX('Damage costs'!$Y$16:$Y$43,MATCH($B138,'Damage costs'!$C$16:$C$43,0))/1000),\"\")","v":0},{"$f":"IFERROR(IF(OR($C$144=FALSE,LEFT($B138,3)<>\"NOX\"),AQ53*INDEX('Damage costs'!$U$16:$U$43,MATCH($B138,'Damage costs'!$C$16:$C$43,0))/1000,AQ53*INDEX('Damage costs'!$Y$16:$Y$43,MATCH($B138,'Damage costs'!$C$16:$C$43,0))/1000),\"\")","v":0},{"$f":"IFERROR(IF(OR($C$144=FALSE,LEFT($B138,3)<>\"NOX\"),AR53*INDEX('Damage costs'!$U$16:$U$43,MATCH($B138,'Damage costs'!$C$16:$C$43,0))/1000,AR53*INDEX('Damage costs'!$Y$16:$Y$43,MATCH($B138,'Damage costs'!$C$16:$C$43,0))/1000),\"\")","v":0},{"$f":"IFERROR(IF(OR($C$144=FALSE,LEFT($B138,3)<>\"NOX\"),AS53*INDEX('Damage costs'!$U$16:$U$43,MATCH($B138,'Damage costs'!$C$16:$C$43,0))/1000,AS53*INDEX('Damage costs'!$Y$16:$Y$43,MATCH($B138,'Damage costs'!$C$16:$C$43,0))/1000),\"\")","v":0},{"$f":"IFERROR(IF(OR($C$144=FALSE,LEFT($B138,3)<>\"NOX\"),AT53*INDEX('Damage costs'!$U$16:$U$43,MATCH($B138,'Damage costs'!$C$16:$C$43,0))/1000,AT53*INDEX('Damage costs'!$Y$16:$Y$43,MATCH($B138,'Damage costs'!$C$16:$C$43,0))/1000),\"\")","v":0},{"$f":"IFERROR(IF(OR($C$144=FALSE,LEFT($B138,3)<>\"NOX\"),AU53*INDEX('Damage costs'!$U$16:$U$43,MATCH($B138,'Damage costs'!$C$16:$C$43,0))/1000,AU53*INDEX('Damage costs'!$Y$16:$Y$43,MATCH($B138,'Damage costs'!$C$16:$C$43,0))/1000),\"\")","v":0},{"$f":"IFERROR(IF(OR($C$144=FALSE,LEFT($B138,3)<>\"NOX\"),AV53*INDEX('Damage costs'!$U$16:$U$43,MATCH($B138,'Damage costs'!$C$16:$C$43,0))/1000,AV53*INDEX('Damage costs'!$Y$16:$Y$43,MATCH($B138,'Damage costs'!$C$16:$C$43,0))/1000),\"\")","v":0},{"$f":"IFERROR(IF(OR($C$144=FALSE,LEFT($B138,3)<>\"NOX\"),AW53*INDEX('Damage costs'!$U$16:$U$43,MATCH($B138,'Damage costs'!$C$16:$C$43,0))/1000,AW53*INDEX('Damage costs'!$Y$16:$Y$43,MATCH($B138,'Damage costs'!$C$16:$C$43,0))/1000),\"\")","v":0},{"$f":"IFERROR(IF(OR($C$144=FALSE,LEFT($B138,3)<>\"NOX\"),AX53*INDEX('Damage costs'!$U$16:$U$43,MATCH($B138,'Damage costs'!$C$16:$C$43,0))/1000,AX53*INDEX('Damage costs'!$Y$16:$Y$43,MATCH($B138,'Damage costs'!$C$16:$C$43,0))/1000),\"\")","v":0},{"$f":"IFERROR(IF(OR($C$144=FALSE,LEFT($B138,3)<>\"NOX\"),AY53*INDEX('Damage costs'!$U$16:$U$43,MATCH($B138,'Damage costs'!$C$16:$C$43,0))/1000,AY53*INDEX('Damage costs'!$Y$16:$Y$43,MATCH($B138,'Damage costs'!$C$16:$C$43,0))/1000),\"\")","v":0},{"$f":"IFERROR(IF(OR($C$144=FALSE,LEFT($B138,3)<>\"NOX\"),AZ53*INDEX('Damage costs'!$U$16:$U$43,MATCH($B138,'Damage costs'!$C$16:$C$43,0))/1000,AZ53*INDEX('Damage costs'!$Y$16:$Y$43,MATCH($B138,'Damage costs'!$C$16:$C$43,0))/1000),\"\")","v":0},{"$f":"IFERROR(IF(OR($C$144=FALSE,LEFT($B138,3)<>\"NOX\"),BA53*INDEX('Damage costs'!$U$16:$U$43,MATCH($B138,'Damage costs'!$C$16:$C$43,0))/1000,BA53*INDEX('Damage costs'!$Y$16:$Y$43,MATCH($B138,'Damage costs'!$C$16:$C$43,0))/1000),\"\")","v":0},{"$f":"IFERROR(IF(OR($C$144=FALSE,LEFT($B138,3)<>\"NOX\"),BB53*INDEX('Damage costs'!$U$16:$U$43,MATCH($B138,'Damage costs'!$C$16:$C$43,0))/1000,BB53*INDEX('Damage costs'!$Y$16:$Y$43,MATCH($B138,'Damage costs'!$C$16:$C$43,0))/1000),\"\")","v":0},{"$f":"IFERROR(IF(OR($C$144=FALSE,LEFT($B138,3)<>\"NOX\"),BC53*INDEX('Damage costs'!$U$16:$U$43,MATCH($B138,'Damage costs'!$C$16:$C$43,0))/1000,BC53*INDEX('Damage costs'!$Y$16:$Y$43,MATCH($B138,'Damage costs'!$C$16:$C$43,0))/1000),\"\")","v":0},{"$f":"IFERROR(IF(OR($C$144=FALSE,LEFT($B138,3)<>\"NOX\"),BD53*INDEX('Damage costs'!$U$16:$U$43,MATCH($B138,'Damage costs'!$C$16:$C$43,0))/1000,BD53*INDEX('Damage costs'!$Y$16:$Y$43,MATCH($B138,'Damage costs'!$C$16:$C$43,0))/1000),\"\")","v":0},{"$f":"IFERROR(IF(OR($C$144=FALSE,LEFT($B138,3)<>\"NOX\"),BE53*INDEX('Damage costs'!$U$16:$U$43,MATCH($B138,'Damage costs'!$C$16:$C$43,0))/1000,BE53*INDEX('Damage costs'!$Y$16:$Y$43,MATCH($B138,'Damage costs'!$C$16:$C$43,0))/1000),\"\")","v":0},{"$f":"IFERROR(IF(OR($C$144=FALSE,LEFT($B138,3)<>\"NOX\"),BF53*INDEX('Damage costs'!$U$16:$U$43,MATCH($B138,'Damage costs'!$C$16:$C$43,0))/1000,BF53*INDEX('Damage costs'!$Y$16:$Y$43,MATCH($B138,'Damage costs'!$C$16:$C$43,0))/1000),\"\")","v":0},{"$f":"IFERROR(IF(OR($C$144=FALSE,LEFT($B138,3)<>\"NOX\"),BG53*INDEX('Damage costs'!$U$16:$U$43,MATCH($B138,'Damage costs'!$C$16:$C$43,0))/1000,BG53*INDEX('Damage costs'!$Y$16:$Y$43,MATCH($B138,'Damage costs'!$C$16:$C$43,0))/1000),\"\")","v":0},{"$f":"IFERROR(IF(OR($C$144=FALSE,LEFT($B138,3)<>\"NOX\"),BH53*INDEX('Damage costs'!$U$16:$U$43,MATCH($B138,'Damage costs'!$C$16:$C$43,0))/1000,BH53*INDEX('Damage costs'!$Y$16:$Y$43,MATCH($B138,'Damage costs'!$C$16:$C$43,0))/1000),\"\")","v":0},{"$f":"IFERROR(IF(OR($C$144=FALSE,LEFT($B138,3)<>\"NOX\"),BI53*INDEX('Damage costs'!$U$16:$U$43,MATCH($B138,'Damage costs'!$C$16:$C$43,0))/1000,BI53*INDEX('Damage costs'!$Y$16:$Y$43,MATCH($B138,'Damage costs'!$C$16:$C$43,0))/1000),\"\")","v":0},{"$f":"IFERROR(IF(OR($C$144=FALSE,LEFT($B138,3)<>\"NOX\"),BJ53*INDEX('Damage costs'!$U$16:$U$43,MATCH($B138,'Damage costs'!$C$16:$C$43,0))/1000,BJ53*INDEX('Damage costs'!$Y$16:$Y$43,MATCH($B138,'Damage costs'!$C$16:$C$43,0))/1000),\"\")","v":0},{"$f":"IFERROR(IF(OR($C$144=FALSE,LEFT($B138,3)<>\"NOX\"),BK53*INDEX('Damage costs'!$U$16:$U$43,MATCH($B138,'Damage costs'!$C$16:$C$43,0))/1000,BK53*INDEX('Damage costs'!$Y$16:$Y$43,MATCH($B138,'Damage costs'!$C$16:$C$43,0))/1000),\"\")","v":0},{"$f":"IFERROR(IF(OR($C$144=FALSE,LEFT($B138,3)<>\"NOX\"),BL53*INDEX('Damage costs'!$U$16:$U$43,MATCH($B138,'Damage costs'!$C$16:$C$43,0))/1000,BL53*INDEX('Damage costs'!$Y$16:$Y$43,MATCH($B138,'Damage costs'!$C$16:$C$43,0))/1000),\"\")","v":0},{"$f":"IFERROR(IF(OR($C$144=FALSE,LEFT($B138,3)<>\"NOX\"),BM53*INDEX('Damage costs'!$U$16:$U$43,MATCH($B138,'Damage costs'!$C$16:$C$43,0))/1000,BM53*INDEX('Damage costs'!$Y$16:$Y$43,MATCH($B138,'Damage costs'!$C$16:$C$43,0))/1000),\"\")","v":0},{"$f":"IFERROR(IF(OR($C$144=FALSE,LEFT($B138,3)<>\"NOX\"),BN53*INDEX('Damage costs'!$U$16:$U$43,MATCH($B138,'Damage costs'!$C$16:$C$43,0))/1000,BN53*INDEX('Damage costs'!$Y$16:$Y$43,MATCH($B138,'Damage costs'!$C$16:$C$43,0))/1000),\"\")","v":0},{"$f":"IFERROR(IF(OR($C$144=FALSE,LEFT($B138,3)<>\"NOX\"),BO53*INDEX('Damage costs'!$U$16:$U$43,MATCH($B138,'Damage costs'!$C$16:$C$43,0))/1000,BO53*INDEX('Damage costs'!$Y$16:$Y$43,MATCH($B138,'Damage costs'!$C$16:$C$43,0))/1000),\"\")","v":0},{"$f":"IFERROR(IF(OR($C$144=FALSE,LEFT($B138,3)<>\"NOX\"),BP53*INDEX('Damage costs'!$U$16:$U$43,MATCH($B138,'Damage costs'!$C$16:$C$43,0))/1000,BP53*INDEX('Damage costs'!$Y$16:$Y$43,MATCH($B138,'Damage costs'!$C$16:$C$43,0))/1000),\"\")","v":0},{"$f":"IFERROR(IF(OR($C$144=FALSE,LEFT($B138,3)<>\"NOX\"),BQ53*INDEX('Damage costs'!$U$16:$U$43,MATCH($B138,'Damage costs'!$C$16:$C$43,0))/1000,BQ53*INDEX('Damage costs'!$Y$16:$Y$43,MATCH($B138,'Damage costs'!$C$16:$C$43,0))/1000),\"\")","v":0},{"$f":"IFERROR(IF(OR($C$144=FALSE,LEFT($B138,3)<>\"NOX\"),BR53*INDEX('Damage costs'!$U$16:$U$43,MATCH($B138,'Damage costs'!$C$16:$C$43,0))/1000,BR53*INDEX('Damage costs'!$Y$16:$Y$43,MATCH($B138,'Damage costs'!$C$16:$C$43,0))/1000),\"\")","v":0},{"$f":"IFERROR(IF(OR($C$144=FALSE,LEFT($B138,3)<>\"NOX\"),BS53*INDEX('Damage costs'!$U$16:$U$43,MATCH($B138,'Damage costs'!$C$16:$C$43,0))/1000,BS53*INDEX('Damage costs'!$Y$16:$Y$43,MATCH($B138,'Damage costs'!$C$16:$C$43,0))/1000),\"\")","v":0},{"$f":"IFERROR(IF(OR($C$144=FALSE,LEFT($B138,3)<>\"NOX\"),BT53*INDEX('Damage costs'!$U$16:$U$43,MATCH($B138,'Damage costs'!$C$16:$C$43,0))/1000,BT53*INDEX('Damage costs'!$Y$16:$Y$43,MATCH($B138,'Damage costs'!$C$16:$C$43,0))/1000),\"\")","v":0},{"$f":"IFERROR(IF(OR($C$144=FALSE,LEFT($B138,3)<>\"NOX\"),BU53*INDEX('Damage costs'!$U$16:$U$43,MATCH($B138,'Damage costs'!$C$16:$C$43,0))/1000,BU53*INDEX('Damage costs'!$Y$16:$Y$43,MATCH($B138,'Damage costs'!$C$16:$C$43,0))/1000),\"\")","v":0},{"$f":"IFERROR(IF(OR($C$144=FALSE,LEFT($B138,3)<>\"NOX\"),BV53*INDEX('Damage costs'!$U$16:$U$43,MATCH($B138,'Damage costs'!$C$16:$C$43,0))/1000,BV53*INDEX('Damage costs'!$Y$16:$Y$43,MATCH($B138,'Damage costs'!$C$16:$C$43,0))/1000),\"\")","v":0},{"$f":"IFERROR(IF(OR($C$144=FALSE,LEFT($B138,3)<>\"NOX\"),BW53*INDEX('Damage costs'!$U$16:$U$43,MATCH($B138,'Damage costs'!$C$16:$C$43,0))/1000,BW53*INDEX('Damage costs'!$Y$16:$Y$43,MATCH($B138,'Damage costs'!$C$16:$C$43,0))/1000),\"\")","v":0},{"$f":"IFERROR(IF(OR($C$144=FALSE,LEFT($B138,3)<>\"NOX\"),BX53*INDEX('Damage costs'!$U$16:$U$43,MATCH($B138,'Damage costs'!$C$16:$C$43,0))/1000,BX53*INDEX('Damage costs'!$Y$16:$Y$43,MATCH($B138,'Damage costs'!$C$16:$C$43,0))/1000),\"\")","v":0},{"$f":"IFERROR(IF(OR($C$144=FALSE,LEFT($B138,3)<>\"NOX\"),BY53*INDEX('Damage costs'!$U$16:$U$43,MATCH($B138,'Damage costs'!$C$16:$C$43,0))/1000,BY53*INDEX('Damage costs'!$Y$16:$Y$43,MATCH($B138,'Damage costs'!$C$16:$C$43,0))/1000),\"\")","v":0},{"$f":"IFERROR(IF(OR($C$144=FALSE,LEFT($B138,3)<>\"NOX\"),BZ53*INDEX('Damage costs'!$U$16:$U$43,MATCH($B138,'Damage costs'!$C$16:$C$43,0))/1000,BZ53*INDEX('Damage costs'!$Y$16:$Y$43,MATCH($B138,'Damage costs'!$C$16:$C$43,0))/1000),\"\")","v":0},{"$f":"IFERROR(IF(OR($C$144=FALSE,LEFT($B138,3)<>\"NOX\"),CA53*INDEX('Damage costs'!$U$16:$U$43,MATCH($B138,'Damage costs'!$C$16:$C$43,0))/1000,CA53*INDEX('Damage costs'!$Y$16:$Y$43,MATCH($B138,'Damage costs'!$C$16:$C$43,0))/1000),\"\")","v":0},{"$f":"IFERROR(IF(OR($C$144=FALSE,LEFT($B138,3)<>\"NOX\"),CB53*INDEX('Damage costs'!$U$16:$U$43,MATCH($B138,'Damage costs'!$C$16:$C$43,0))/1000,CB53*INDEX('Damage costs'!$Y$16:$Y$43,MATCH($B138,'Damage costs'!$C$16:$C$43,0))/1000),\"\")","v":0},{"$f":"IFERROR(IF(OR($C$144=FALSE,LEFT($B138,3)<>\"NOX\"),CC53*INDEX('Damage costs'!$U$16:$U$43,MATCH($B138,'Damage costs'!$C$16:$C$43,0))/1000,CC53*INDEX('Damage costs'!$Y$16:$Y$43,MATCH($B138,'Damage costs'!$C$16:$C$43,0))/1000),\"\")","v":0},{"$f":"IFERROR(IF(OR($C$144=FALSE,LEFT($B138,3)<>\"NOX\"),CD53*INDEX('Damage costs'!$U$16:$U$43,MATCH($B138,'Damage costs'!$C$16:$C$43,0))/1000,CD53*INDEX('Damage costs'!$Y$16:$Y$43,MATCH($B138,'Damage costs'!$C$16:$C$43,0))/1000),\"\")","v":0},{"$f":"IFERROR(IF(OR($C$144=FALSE,LEFT($B138,3)<>\"NOX\"),CE53*INDEX('Damage costs'!$U$16:$U$43,MATCH($B138,'Damage costs'!$C$16:$C$43,0))/1000,CE53*INDEX('Damage costs'!$Y$16:$Y$43,MATCH($B138,'Damage costs'!$C$16:$C$43,0))/1000),\"\")","v":0},{"$f":"IFERROR(IF(OR($C$144=FALSE,LEFT($B138,3)<>\"NOX\"),CF53*INDEX('Damage costs'!$U$16:$U$43,MATCH($B138,'Damage costs'!$C$16:$C$43,0))/1000,CF53*INDEX('Damage costs'!$Y$16:$Y$43,MATCH($B138,'Damage costs'!$C$16:$C$43,0))/1000),\"\")","v":0},{"$f":"IFERROR(IF(OR($C$144=FALSE,LEFT($B138,3)<>\"NOX\"),CG53*INDEX('Damage costs'!$U$16:$U$43,MATCH($B138,'Damage costs'!$C$16:$C$43,0))/1000,CG53*INDEX('Damage costs'!$Y$16:$Y$43,MATCH($B138,'Damage costs'!$C$16:$C$43,0))/1000),\"\")","v":0},{"$f":"IFERROR(IF(OR($C$144=FALSE,LEFT($B138,3)<>\"NOX\"),CH53*INDEX('Damage costs'!$U$16:$U$43,MATCH($B138,'Damage costs'!$C$16:$C$43,0))/1000,CH53*INDEX('Damage costs'!$Y$16:$Y$43,MATCH($B138,'Damage costs'!$C$16:$C$43,0))/1000),\"\")","v":0},{"$f":"IFERROR(IF(OR($C$144=FALSE,LEFT($B138,3)<>\"NOX\"),CI53*INDEX('Damage costs'!$U$16:$U$43,MATCH($B138,'Damage costs'!$C$16:$C$43,0))/1000,CI53*INDEX('Damage costs'!$Y$16:$Y$43,MATCH($B138,'Damage costs'!$C$16:$C$43,0))/1000),\"\")","v":0},{"$f":"IFERROR(IF(OR($C$144=FALSE,LEFT($B138,3)<>\"NOX\"),CJ53*INDEX('Damage costs'!$U$16:$U$43,MATCH($B138,'Damage costs'!$C$16:$C$43,0))/1000,CJ53*INDEX('Damage costs'!$Y$16:$Y$43,MATCH($B138,'Damage costs'!$C$16:$C$43,0))/1000),\"\")","v":0},{"$f":"IFERROR(IF(OR($C$144=FALSE,LEFT($B138,3)<>\"NOX\"),CK53*INDEX('Damage costs'!$U$16:$U$43,MATCH($B138,'Damage costs'!$C$16:$C$43,0))/1000,CK53*INDEX('Damage costs'!$Y$16:$Y$43,MATCH($B138,'Damage costs'!$C$16:$C$43,0))/1000),\"\")","v":0},{"$f":"IFERROR(IF(OR($C$144=FALSE,LEFT($B138,3)<>\"NOX\"),CL53*INDEX('Damage costs'!$U$16:$U$43,MATCH($B138,'Damage costs'!$C$16:$C$43,0))/1000,CL53*INDEX('Damage costs'!$Y$16:$Y$43,MATCH($B138,'Damage costs'!$C$16:$C$43,0))/1000),\"\")","v":0},{"$f":"IFERROR(IF(OR($C$144=FALSE,LEFT($B138,3)<>\"NOX\"),CM53*INDEX('Damage costs'!$U$16:$U$43,MATCH($B138,'Damage costs'!$C$16:$C$43,0))/1000,CM53*INDEX('Damage costs'!$Y$16:$Y$43,MATCH($B138,'Damage costs'!$C$16:$C$43,0))/1000),\"\")","v":0},{"$f":"IFERROR(IF(OR($C$144=FALSE,LEFT($B138,3)<>\"NOX\"),CN53*INDEX('Damage costs'!$U$16:$U$43,MATCH($B138,'Damage costs'!$C$16:$C$43,0))/1000,CN53*INDEX('Damage costs'!$Y$16:$Y$43,MATCH($B138,'Damage costs'!$C$16:$C$43,0))/1000),\"\")","v":0},{"$f":"IFERROR(IF(OR($C$144=FALSE,LEFT($B138,3)<>\"NOX\"),CO53*INDEX('Damage costs'!$U$16:$U$43,MATCH($B138,'Damage costs'!$C$16:$C$43,0))/1000,CO53*INDEX('Damage costs'!$Y$16:$Y$43,MATCH($B138,'Damage costs'!$C$16:$C$43,0))/1000),\"\")","v":0},{"$f":"IFERROR(IF(OR($C$144=FALSE,LEFT($B138,3)<>\"NOX\"),CP53*INDEX('Damage costs'!$U$16:$U$43,MATCH($B138,'Damage costs'!$C$16:$C$43,0))/1000,CP53*INDEX('Damage costs'!$Y$16:$Y$43,MATCH($B138,'Damage costs'!$C$16:$C$43,0))/1000),\"\")","v":0},{"$f":"IFERROR(IF(OR($C$144=FALSE,LEFT($B138,3)<>\"NOX\"),CQ53*INDEX('Damage costs'!$U$16:$U$43,MATCH($B138,'Damage costs'!$C$16:$C$43,0))/1000,CQ53*INDEX('Damage costs'!$Y$16:$Y$43,MATCH($B138,'Damage costs'!$C$16:$C$43,0))/1000),\"\")","v":0},{"$f":"IFERROR(IF(OR($C$144=FALSE,LEFT($B138,3)<>\"NOX\"),CR53*INDEX('Damage costs'!$U$16:$U$43,MATCH($B138,'Damage costs'!$C$16:$C$43,0))/1000,CR53*INDEX('Damage costs'!$Y$16:$Y$43,MATCH($B138,'Damage costs'!$C$16:$C$43,0))/1000),\"\")","v":0},{"$f":"IFERROR(IF(OR($C$144=FALSE,LEFT($B138,3)<>\"NOX\"),CS53*INDEX('Damage costs'!$U$16:$U$43,MATCH($B138,'Damage costs'!$C$16:$C$43,0))/1000,CS53*INDEX('Damage costs'!$Y$16:$Y$43,MATCH($B138,'Damage costs'!$C$16:$C$43,0))/1000),\"\")","v":0},{"$f":"IFERROR(IF(OR($C$144=FALSE,LEFT($B138,3)<>\"NOX\"),CT53*INDEX('Damage costs'!$U$16:$U$43,MATCH($B138,'Damage costs'!$C$16:$C$43,0))/1000,CT53*INDEX('Damage costs'!$Y$16:$Y$43,MATCH($B138,'Damage costs'!$C$16:$C$43,0))/1000),\"\")","v":0},{"$f":"IFERROR(IF(OR($C$144=FALSE,LEFT($B138,3)<>\"NOX\"),CU53*INDEX('Damage costs'!$U$16:$U$43,MATCH($B138,'Damage costs'!$C$16:$C$43,0))/1000,CU53*INDEX('Damage costs'!$Y$16:$Y$43,MATCH($B138,'Damage costs'!$C$16:$C$43,0))/1000),\"\")","v":0},{"$f":"IFERROR(IF(OR($C$144=FALSE,LEFT($B138,3)<>\"NOX\"),CV53*INDEX('Damage costs'!$U$16:$U$43,MATCH($B138,'Damage costs'!$C$16:$C$43,0))/1000,CV53*INDEX('Damage costs'!$Y$16:$Y$43,MATCH($B138,'Damage costs'!$C$16:$C$43,0))/1000),\"\")","v":0},{"$f":"IFERROR(IF(OR($C$144=FALSE,LEFT($B138,3)<>\"NOX\"),CW53*INDEX('Damage costs'!$U$16:$U$43,MATCH($B138,'Damage costs'!$C$16:$C$43,0))/1000,CW53*INDEX('Damage costs'!$Y$16:$Y$43,MATCH($B138,'Damage costs'!$C$16:$C$43,0))/1000),\"\")","v":0},{"$f":"IFERROR(IF(OR($C$144=FALSE,LEFT($B138,3)<>\"NOX\"),CX53*INDEX('Damage costs'!$U$16:$U$43,MATCH($B138,'Damage costs'!$C$16:$C$43,0))/1000,CX53*INDEX('Damage costs'!$Y$16:$Y$43,MATCH($B138,'Damage costs'!$C$16:$C$43,0))/1000),\"\")","v":0},{"$f":"IFERROR(IF(OR($C$144=FALSE,LEFT($B138,3)<>\"NOX\"),CY53*INDEX('Damage costs'!$U$16:$U$43,MATCH($B138,'Damage costs'!$C$16:$C$43,0))/1000,CY53*INDEX('Damage costs'!$Y$16:$Y$43,MATCH($B138,'Damage costs'!$C$16:$C$43,0))/1000),\"\")","v":0}]
[null,0,"£000's",{"$f":"IFERROR(IF(OR($C$144=FALSE,LEFT($B139,3)<>\"NOX\"),D54*INDEX('Damage costs'!$U$16:$U$43,MATCH($B139,'Damage costs'!$C$16:$C$43,0))/1000,D54*INDEX('Damage costs'!$Y$16:$Y$43,MATCH($B139,'Damage costs'!$C$16:$C$43,0))/1000),\"\")","v":""},{"$f":"IFERROR(IF(OR($C$144=FALSE,LEFT($B139,3)<>\"NOX\"),E54*INDEX('Damage costs'!$U$16:$U$43,MATCH($B139,'Damage costs'!$C$16:$C$43,0))/1000,E54*INDEX('Damage costs'!$Y$16:$Y$43,MATCH($B139,'Damage costs'!$C$16:$C$43,0))/1000),\"\")","v":""},{"$f":"IFERROR(IF(OR($C$144=FALSE,LEFT($B139,3)<>\"NOX\"),F54*INDEX('Damage costs'!$U$16:$U$43,MATCH($B139,'Damage costs'!$C$16:$C$43,0))/1000,F54*INDEX('Damage costs'!$Y$16:$Y$43,MATCH($B139,'Damage costs'!$C$16:$C$43,0))/1000),\"\")","v":""},{"$f":"IFERROR(IF(OR($C$144=FALSE,LEFT($B139,3)<>\"NOX\"),G54*INDEX('Damage costs'!$U$16:$U$43,MATCH($B139,'Damage costs'!$C$16:$C$43,0))/1000,G54*INDEX('Damage costs'!$Y$16:$Y$43,MATCH($B139,'Damage costs'!$C$16:$C$43,0))/1000),\"\")","v":""},{"$f":"IFERROR(IF(OR($C$144=FALSE,LEFT($B139,3)<>\"NOX\"),H54*INDEX('Damage costs'!$U$16:$U$43,MATCH($B139,'Damage costs'!$C$16:$C$43,0))/1000,H54*INDEX('Damage costs'!$Y$16:$Y$43,MATCH($B139,'Damage costs'!$C$16:$C$43,0))/1000),\"\")","v":""},{"$f":"IFERROR(IF(OR($C$144=FALSE,LEFT($B139,3)<>\"NOX\"),I54*INDEX('Damage costs'!$U$16:$U$43,MATCH($B139,'Damage costs'!$C$16:$C$43,0))/1000,I54*INDEX('Damage costs'!$Y$16:$Y$43,MATCH($B139,'Damage costs'!$C$16:$C$43,0))/1000),\"\")","v":""},{"$f":"IFERROR(IF(OR($C$144=FALSE,LEFT($B139,3)<>\"NOX\"),J54*INDEX('Damage costs'!$U$16:$U$43,MATCH($B139,'Damage costs'!$C$16:$C$43,0))/1000,J54*INDEX('Damage costs'!$Y$16:$Y$43,MATCH($B139,'Damage costs'!$C$16:$C$43,0))/1000),\"\")","v":""},{"$f":"IFERROR(IF(OR($C$144=FALSE,LEFT($B139,3)<>\"NOX\"),K54*INDEX('Damage costs'!$U$16:$U$43,MATCH($B139,'Damage costs'!$C$16:$C$43,0))/1000,K54*INDEX('Damage costs'!$Y$16:$Y$43,MATCH($B139,'Damage costs'!$C$16:$C$43,0))/1000),\"\")","v":""},{"$f":"IFERROR(IF(OR($C$144=FALSE,LEFT($B139,3)<>\"NOX\"),L54*INDEX('Damage costs'!$U$16:$U$43,MATCH($B139,'Damage costs'!$C$16:$C$43,0))/1000,L54*INDEX('Damage costs'!$Y$16:$Y$43,MATCH($B139,'Damage costs'!$C$16:$C$43,0))/1000),\"\")","v":""},{"$f":"IFERROR(IF(OR($C$144=FALSE,LEFT($B139,3)<>\"NOX\"),M54*INDEX('Damage costs'!$U$16:$U$43,MATCH($B139,'Damage costs'!$C$16:$C$43,0))/1000,M54*INDEX('Damage costs'!$Y$16:$Y$43,MATCH($B139,'Damage costs'!$C$16:$C$43,0))/1000),\"\")","v":""},{"$f":"IFERROR(IF(OR($C$144=FALSE,LEFT($B139,3)<>\"NOX\"),N54*INDEX('Damage costs'!$U$16:$U$43,MATCH($B139,'Damage costs'!$C$16:$C$43,0))/1000,N54*INDEX('Damage costs'!$Y$16:$Y$43,MATCH($B139,'Damage costs'!$C$16:$C$43,0))/1000),\"\")","v":""},{"$f":"IFERROR(IF(OR($C$144=FALSE,LEFT($B139,3)<>\"NOX\"),O54*INDEX('Damage costs'!$U$16:$U$43,MATCH($B139,'Damage costs'!$C$16:$C$43,0))/1000,O54*INDEX('Damage costs'!$Y$16:$Y$43,MATCH($B139,'Damage costs'!$C$16:$C$43,0))/1000),\"\")","v":""},{"$f":"IFERROR(IF(OR($C$144=FALSE,LEFT($B139,3)<>\"NOX\"),P54*INDEX('Damage costs'!$U$16:$U$43,MATCH($B139,'Damage costs'!$C$16:$C$43,0))/1000,P54*INDEX('Damage costs'!$Y$16:$Y$43,MATCH($B139,'Damage costs'!$C$16:$C$43,0))/1000),\"\")","v":""},{"$f":"IFERROR(IF(OR($C$144=FALSE,LEFT($B139,3)<>\"NOX\"),Q54*INDEX('Damage costs'!$U$16:$U$43,MATCH($B139,'Damage costs'!$C$16:$C$43,0))/1000,Q54*INDEX('Damage costs'!$Y$16:$Y$43,MATCH($B139,'Damage costs'!$C$16:$C$43,0))/1000),\"\")","v":""},{"$f":"IFERROR(IF(OR($C$144=FALSE,LEFT($B139,3)<>\"NOX\"),R54*INDEX('Damage costs'!$U$16:$U$43,MATCH($B139,'Damage costs'!$C$16:$C$43,0))/1000,R54*INDEX('Damage costs'!$Y$16:$Y$43,MATCH($B139,'Damage costs'!$C$16:$C$43,0))/1000),\"\")","v":""},{"$f":"IFERROR(IF(OR($C$144=FALSE,LEFT($B139,3)<>\"NOX\"),S54*INDEX('Damage costs'!$U$16:$U$43,MATCH($B139,'Damage costs'!$C$16:$C$43,0))/1000,S54*INDEX('Damage costs'!$Y$16:$Y$43,MATCH($B139,'Damage costs'!$C$16:$C$43,0))/1000),\"\")","v":""},{"$f":"IFERROR(IF(OR($C$144=FALSE,LEFT($B139,3)<>\"NOX\"),T54*INDEX('Damage costs'!$U$16:$U$43,MATCH($B139,'Damage costs'!$C$16:$C$43,0))/1000,T54*INDEX('Damage costs'!$Y$16:$Y$43,MATCH($B139,'Damage costs'!$C$16:$C$43,0))/1000),\"\")","v":""},{"$f":"IFERROR(IF(OR($C$144=FALSE,LEFT($B139,3)<>\"NOX\"),U54*INDEX('Damage costs'!$U$16:$U$43,MATCH($B139,'Damage costs'!$C$16:$C$43,0))/1000,U54*INDEX('Damage costs'!$Y$16:$Y$43,MATCH($B139,'Damage costs'!$C$16:$C$43,0))/1000),\"\")","v":""},{"$f":"IFERROR(IF(OR($C$144=FALSE,LEFT($B139,3)<>\"NOX\"),V54*INDEX('Damage costs'!$U$16:$U$43,MATCH($B139,'Damage costs'!$C$16:$C$43,0))/1000,V54*INDEX('Damage costs'!$Y$16:$Y$43,MATCH($B139,'Damage costs'!$C$16:$C$43,0))/1000),\"\")","v":""},{"$f":"IFERROR(IF(OR($C$144=FALSE,LEFT($B139,3)<>\"NOX\"),W54*INDEX('Damage costs'!$U$16:$U$43,MATCH($B139,'Damage costs'!$C$16:$C$43,0))/1000,W54*INDEX('Damage costs'!$Y$16:$Y$43,MATCH($B139,'Damage costs'!$C$16:$C$43,0))/1000),\"\")","v":""},{"$f":"IFERROR(IF(OR($C$144=FALSE,LEFT($B139,3)<>\"NOX\"),X54*INDEX('Damage costs'!$U$16:$U$43,MATCH($B139,'Damage costs'!$C$16:$C$43,0))/1000,X54*INDEX('Damage costs'!$Y$16:$Y$43,MATCH($B139,'Damage costs'!$C$16:$C$43,0))/1000),\"\")","v":""},{"$f":"IFERROR(IF(OR($C$144=FALSE,LEFT($B139,3)<>\"NOX\"),Y54*INDEX('Damage costs'!$U$16:$U$43,MATCH($B139,'Damage costs'!$C$16:$C$43,0))/1000,Y54*INDEX('Damage costs'!$Y$16:$Y$43,MATCH($B139,'Damage costs'!$C$16:$C$43,0))/1000),\"\")","v":""},{"$f":"IFERROR(IF(OR($C$144=FALSE,LEFT($B139,3)<>\"NOX\"),Z54*INDEX('Damage costs'!$U$16:$U$43,MATCH($B139,'Damage costs'!$C$16:$C$43,0))/1000,Z54*INDEX('Damage costs'!$Y$16:$Y$43,MATCH($B139,'Damage costs'!$C$16:$C$43,0))/1000),\"\")","v":""},{"$f":"IFERROR(IF(OR($C$144=FALSE,LEFT($B139,3)<>\"NOX\"),AA54*INDEX('Damage costs'!$U$16:$U$43,MATCH($B139,'Damage costs'!$C$16:$C$43,0))/1000,AA54*INDEX('Damage costs'!$Y$16:$Y$43,MATCH($B139,'Damage costs'!$C$16:$C$43,0))/1000),\"\")","v":""},{"$f":"IFERROR(IF(OR($C$144=FALSE,LEFT($B139,3)<>\"NOX\"),AB54*INDEX('Damage costs'!$U$16:$U$43,MATCH($B139,'Damage costs'!$C$16:$C$43,0))/1000,AB54*INDEX('Damage costs'!$Y$16:$Y$43,MATCH($B139,'Damage costs'!$C$16:$C$43,0))/1000),\"\")","v":""},{"$f":"IFERROR(IF(OR($C$144=FALSE,LEFT($B139,3)<>\"NOX\"),AC54*INDEX('Damage costs'!$U$16:$U$43,MATCH($B139,'Damage costs'!$C$16:$C$43,0))/1000,AC54*INDEX('Damage costs'!$Y$16:$Y$43,MATCH($B139,'Damage costs'!$C$16:$C$43,0))/1000),\"\")","v":""},{"$f":"IFERROR(IF(OR($C$144=FALSE,LEFT($B139,3)<>\"NOX\"),AD54*INDEX('Damage costs'!$U$16:$U$43,MATCH($B139,'Damage costs'!$C$16:$C$43,0))/1000,AD54*INDEX('Damage costs'!$Y$16:$Y$43,MATCH($B139,'Damage costs'!$C$16:$C$43,0))/1000),\"\")","v":""},{"$f":"IFERROR(IF(OR($C$144=FALSE,LEFT($B139,3)<>\"NOX\"),AE54*INDEX('Damage costs'!$U$16:$U$43,MATCH($B139,'Damage costs'!$C$16:$C$43,0))/1000,AE54*INDEX('Damage costs'!$Y$16:$Y$43,MATCH($B139,'Damage costs'!$C$16:$C$43,0))/1000),\"\")","v":""},{"$f":"IFERROR(IF(OR($C$144=FALSE,LEFT($B139,3)<>\"NOX\"),AF54*INDEX('Damage costs'!$U$16:$U$43,MATCH($B139,'Damage costs'!$C$16:$C$43,0))/1000,AF54*INDEX('Damage costs'!$Y$16:$Y$43,MATCH($B139,'Damage costs'!$C$16:$C$43,0))/1000),\"\")","v":""},{"$f":"IFERROR(IF(OR($C$144=FALSE,LEFT($B139,3)<>\"NOX\"),AG54*INDEX('Damage costs'!$U$16:$U$43,MATCH($B139,'Damage costs'!$C$16:$C$43,0))/1000,AG54*INDEX('Damage costs'!$Y$16:$Y$43,MATCH($B139,'Damage costs'!$C$16:$C$43,0))/1000),\"\")","v":""},{"$f":"IFERROR(IF(OR($C$144=FALSE,LEFT($B139,3)<>\"NOX\"),AH54*INDEX('Damage costs'!$U$16:$U$43,MATCH($B139,'Damage costs'!$C$16:$C$43,0))/1000,AH54*INDEX('Damage costs'!$Y$16:$Y$43,MATCH($B139,'Damage costs'!$C$16:$C$43,0))/1000),\"\")","v":""},{"$f":"IFERROR(IF(OR($C$144=FALSE,LEFT($B139,3)<>\"NOX\"),AI54*INDEX('Damage costs'!$U$16:$U$43,MATCH($B139,'Damage costs'!$C$16:$C$43,0))/1000,AI54*INDEX('Damage costs'!$Y$16:$Y$43,MATCH($B139,'Damage costs'!$C$16:$C$43,0))/1000),\"\")","v":""},{"$f":"IFERROR(IF(OR($C$144=FALSE,LEFT($B139,3)<>\"NOX\"),AJ54*INDEX('Damage costs'!$U$16:$U$43,MATCH($B139,'Damage costs'!$C$16:$C$43,0))/1000,AJ54*INDEX('Damage costs'!$Y$16:$Y$43,MATCH($B139,'Damage costs'!$C$16:$C$43,0))/1000),\"\")","v":""},{"$f":"IFERROR(IF(OR($C$144=FALSE,LEFT($B139,3)<>\"NOX\"),AK54*INDEX('Damage costs'!$U$16:$U$43,MATCH($B139,'Damage costs'!$C$16:$C$43,0))/1000,AK54*INDEX('Damage costs'!$Y$16:$Y$43,MATCH($B139,'Damage costs'!$C$16:$C$43,0))/1000),\"\")","v":""},{"$f":"IFERROR(IF(OR($C$144=FALSE,LEFT($B139,3)<>\"NOX\"),AL54*INDEX('Damage costs'!$U$16:$U$43,MATCH($B139,'Damage costs'!$C$16:$C$43,0))/1000,AL54*INDEX('Damage costs'!$Y$16:$Y$43,MATCH($B139,'Damage costs'!$C$16:$C$43,0))/1000),\"\")","v":""},{"$f":"IFERROR(IF(OR($C$144=FALSE,LEFT($B139,3)<>\"NOX\"),AM54*INDEX('Damage costs'!$U$16:$U$43,MATCH($B139,'Damage costs'!$C$16:$C$43,0))/1000,AM54*INDEX('Damage costs'!$Y$16:$Y$43,MATCH($B139,'Damage costs'!$C$16:$C$43,0))/1000),\"\")","v":""},{"$f":"IFERROR(IF(OR($C$144=FALSE,LEFT($B139,3)<>\"NOX\"),AN54*INDEX('Damage costs'!$U$16:$U$43,MATCH($B139,'Damage costs'!$C$16:$C$43,0))/1000,AN54*INDEX('Damage costs'!$Y$16:$Y$43,MATCH($B139,'Damage costs'!$C$16:$C$43,0))/1000),\"\")","v":""},{"$f":"IFERROR(IF(OR($C$144=FALSE,LEFT($B139,3)<>\"NOX\"),AO54*INDEX('Damage costs'!$U$16:$U$43,MATCH($B139,'Damage costs'!$C$16:$C$43,0))/1000,AO54*INDEX('Damage costs'!$Y$16:$Y$43,MATCH($B139,'Damage costs'!$C$16:$C$43,0))/1000),\"\")","v":""},{"$f":"IFERROR(IF(OR($C$144=FALSE,LEFT($B139,3)<>\"NOX\"),AP54*INDEX('Damage costs'!$U$16:$U$43,MATCH($B139,'Damage costs'!$C$16:$C$43,0))/1000,AP54*INDEX('Damage costs'!$Y$16:$Y$43,MATCH($B139,'Damage costs'!$C$16:$C$43,0))/1000),\"\")","v":""},{"$f":"IFERROR(IF(OR($C$144=FALSE,LEFT($B139,3)<>\"NOX\"),AQ54*INDEX('Damage costs'!$U$16:$U$43,MATCH($B139,'Damage costs'!$C$16:$C$43,0))/1000,AQ54*INDEX('Damage costs'!$Y$16:$Y$43,MATCH($B139,'Damage costs'!$C$16:$C$43,0))/1000),\"\")","v":""},{"$f":"IFERROR(IF(OR($C$144=FALSE,LEFT($B139,3)<>\"NOX\"),AR54*INDEX('Damage costs'!$U$16:$U$43,MATCH($B139,'Damage costs'!$C$16:$C$43,0))/1000,AR54*INDEX('Damage costs'!$Y$16:$Y$43,MATCH($B139,'Damage costs'!$C$16:$C$43,0))/1000),\"\")","v":""},{"$f":"IFERROR(IF(OR($C$144=FALSE,LEFT($B139,3)<>\"NOX\"),AS54*INDEX('Damage costs'!$U$16:$U$43,MATCH($B139,'Damage costs'!$C$16:$C$43,0))/1000,AS54*INDEX('Damage costs'!$Y$16:$Y$43,MATCH($B139,'Damage costs'!$C$16:$C$43,0))/1000),\"\")","v":""},{"$f":"IFERROR(IF(OR($C$144=FALSE,LEFT($B139,3)<>\"NOX\"),AT54*INDEX('Damage costs'!$U$16:$U$43,MATCH($B139,'Damage costs'!$C$16:$C$43,0))/1000,AT54*INDEX('Damage costs'!$Y$16:$Y$43,MATCH($B139,'Damage costs'!$C$16:$C$43,0))/1000),\"\")","v":""},{"$f":"IFERROR(IF(OR($C$144=FALSE,LEFT($B139,3)<>\"NOX\"),AU54*INDEX('Damage costs'!$U$16:$U$43,MATCH($B139,'Damage costs'!$C$16:$C$43,0))/1000,AU54*INDEX('Damage costs'!$Y$16:$Y$43,MATCH($B139,'Damage costs'!$C$16:$C$43,0))/1000),\"\")","v":""},{"$f":"IFERROR(IF(OR($C$144=FALSE,LEFT($B139,3)<>\"NOX\"),AV54*INDEX('Damage costs'!$U$16:$U$43,MATCH($B139,'Damage costs'!$C$16:$C$43,0))/1000,AV54*INDEX('Damage costs'!$Y$16:$Y$43,MATCH($B139,'Damage costs'!$C$16:$C$43,0))/1000),\"\")","v":""},{"$f":"IFERROR(IF(OR($C$144=FALSE,LEFT($B139,3)<>\"NOX\"),AW54*INDEX('Damage costs'!$U$16:$U$43,MATCH($B139,'Damage costs'!$C$16:$C$43,0))/1000,AW54*INDEX('Damage costs'!$Y$16:$Y$43,MATCH($B139,'Damage costs'!$C$16:$C$43,0))/1000),\"\")","v":""},{"$f":"IFERROR(IF(OR($C$144=FALSE,LEFT($B139,3)<>\"NOX\"),AX54*INDEX('Damage costs'!$U$16:$U$43,MATCH($B139,'Damage costs'!$C$16:$C$43,0))/1000,AX54*INDEX('Damage costs'!$Y$16:$Y$43,MATCH($B139,'Damage costs'!$C$16:$C$43,0))/1000),\"\")","v":""},{"$f":"IFERROR(IF(OR($C$144=FALSE,LEFT($B139,3)<>\"NOX\"),AY54*INDEX('Damage costs'!$U$16:$U$43,MATCH($B139,'Damage costs'!$C$16:$C$43,0))/1000,AY54*INDEX('Damage costs'!$Y$16:$Y$43,MATCH($B139,'Damage costs'!$C$16:$C$43,0))/1000),\"\")","v":""},{"$f":"IFERROR(IF(OR($C$144=FALSE,LEFT($B139,3)<>\"NOX\"),AZ54*INDEX('Damage costs'!$U$16:$U$43,MATCH($B139,'Damage costs'!$C$16:$C$43,0))/1000,AZ54*INDEX('Damage costs'!$Y$16:$Y$43,MATCH($B139,'Damage costs'!$C$16:$C$43,0))/1000),\"\")","v":""},{"$f":"IFERROR(IF(OR($C$144=FALSE,LEFT($B139,3)<>\"NOX\"),BA54*INDEX('Damage costs'!$U$16:$U$43,MATCH($B139,'Damage costs'!$C$16:$C$43,0))/1000,BA54*INDEX('Damage costs'!$Y$16:$Y$43,MATCH($B139,'Damage costs'!$C$16:$C$43,0))/1000),\"\")","v":""},{"$f":"IFERROR(IF(OR($C$144=FALSE,LEFT($B139,3)<>\"NOX\"),BB54*INDEX('Damage costs'!$U$16:$U$43,MATCH($B139,'Damage costs'!$C$16:$C$43,0))/1000,BB54*INDEX('Damage costs'!$Y$16:$Y$43,MATCH($B139,'Damage costs'!$C$16:$C$43,0))/1000),\"\")","v":""},{"$f":"IFERROR(IF(OR($C$144=FALSE,LEFT($B139,3)<>\"NOX\"),BC54*INDEX('Damage costs'!$U$16:$U$43,MATCH($B139,'Damage costs'!$C$16:$C$43,0))/1000,BC54*INDEX('Damage costs'!$Y$16:$Y$43,MATCH($B139,'Damage costs'!$C$16:$C$43,0))/1000),\"\")","v":""},{"$f":"IFERROR(IF(OR($C$144=FALSE,LEFT($B139,3)<>\"NOX\"),BD54*INDEX('Damage costs'!$U$16:$U$43,MATCH($B139,'Damage costs'!$C$16:$C$43,0))/1000,BD54*INDEX('Damage costs'!$Y$16:$Y$43,MATCH($B139,'Damage costs'!$C$16:$C$43,0))/1000),\"\")","v":""},{"$f":"IFERROR(IF(OR($C$144=FALSE,LEFT($B139,3)<>\"NOX\"),BE54*INDEX('Damage costs'!$U$16:$U$43,MATCH($B139,'Damage costs'!$C$16:$C$43,0))/1000,BE54*INDEX('Damage costs'!$Y$16:$Y$43,MATCH($B139,'Damage costs'!$C$16:$C$43,0))/1000),\"\")","v":""},{"$f":"IFERROR(IF(OR($C$144=FALSE,LEFT($B139,3)<>\"NOX\"),BF54*INDEX('Damage costs'!$U$16:$U$43,MATCH($B139,'Damage costs'!$C$16:$C$43,0))/1000,BF54*INDEX('Damage costs'!$Y$16:$Y$43,MATCH($B139,'Damage costs'!$C$16:$C$43,0))/1000),\"\")","v":""},{"$f":"IFERROR(IF(OR($C$144=FALSE,LEFT($B139,3)<>\"NOX\"),BG54*INDEX('Damage costs'!$U$16:$U$43,MATCH($B139,'Damage costs'!$C$16:$C$43,0))/1000,BG54*INDEX('Damage costs'!$Y$16:$Y$43,MATCH($B139,'Damage costs'!$C$16:$C$43,0))/1000),\"\")","v":""},{"$f":"IFERROR(IF(OR($C$144=FALSE,LEFT($B139,3)<>\"NOX\"),BH54*INDEX('Damage costs'!$U$16:$U$43,MATCH($B139,'Damage costs'!$C$16:$C$43,0))/1000,BH54*INDEX('Damage costs'!$Y$16:$Y$43,MATCH($B139,'Damage costs'!$C$16:$C$43,0))/1000),\"\")","v":""},{"$f":"IFERROR(IF(OR($C$144=FALSE,LEFT($B139,3)<>\"NOX\"),BI54*INDEX('Damage costs'!$U$16:$U$43,MATCH($B139,'Damage costs'!$C$16:$C$43,0))/1000,BI54*INDEX('Damage costs'!$Y$16:$Y$43,MATCH($B139,'Damage costs'!$C$16:$C$43,0))/1000),\"\")","v":""},{"$f":"IFERROR(IF(OR($C$144=FALSE,LEFT($B139,3)<>\"NOX\"),BJ54*INDEX('Damage costs'!$U$16:$U$43,MATCH($B139,'Damage costs'!$C$16:$C$43,0))/1000,BJ54*INDEX('Damage costs'!$Y$16:$Y$43,MATCH($B139,'Damage costs'!$C$16:$C$43,0))/1000),\"\")","v":""},{"$f":"IFERROR(IF(OR($C$144=FALSE,LEFT($B139,3)<>\"NOX\"),BK54*INDEX('Damage costs'!$U$16:$U$43,MATCH($B139,'Damage costs'!$C$16:$C$43,0))/1000,BK54*INDEX('Damage costs'!$Y$16:$Y$43,MATCH($B139,'Damage costs'!$C$16:$C$43,0))/1000),\"\")","v":""},{"$f":"IFERROR(IF(OR($C$144=FALSE,LEFT($B139,3)<>\"NOX\"),BL54*INDEX('Damage costs'!$U$16:$U$43,MATCH($B139,'Damage costs'!$C$16:$C$43,0))/1000,BL54*INDEX('Damage costs'!$Y$16:$Y$43,MATCH($B139,'Damage costs'!$C$16:$C$43,0))/1000),\"\")","v":""},{"$f":"IFERROR(IF(OR($C$144=FALSE,LEFT($B139,3)<>\"NOX\"),BM54*INDEX('Damage costs'!$U$16:$U$43,MATCH($B139,'Damage costs'!$C$16:$C$43,0))/1000,BM54*INDEX('Damage costs'!$Y$16:$Y$43,MATCH($B139,'Damage costs'!$C$16:$C$43,0))/1000),\"\")","v":""},{"$f":"IFERROR(IF(OR($C$144=FALSE,LEFT($B139,3)<>\"NOX\"),BN54*INDEX('Damage costs'!$U$16:$U$43,MATCH($B139,'Damage costs'!$C$16:$C$43,0))/1000,BN54*INDEX('Damage costs'!$Y$16:$Y$43,MATCH($B139,'Damage costs'!$C$16:$C$43,0))/1000),\"\")","v":""},{"$f":"IFERROR(IF(OR($C$144=FALSE,LEFT($B139,3)<>\"NOX\"),BO54*INDEX('Damage costs'!$U$16:$U$43,MATCH($B139,'Damage costs'!$C$16:$C$43,0))/1000,BO54*INDEX('Damage costs'!$Y$16:$Y$43,MATCH($B139,'Damage costs'!$C$16:$C$43,0))/1000),\"\")","v":""},{"$f":"IFERROR(IF(OR($C$144=FALSE,LEFT($B139,3)<>\"NOX\"),BP54*INDEX('Damage costs'!$U$16:$U$43,MATCH($B139,'Damage costs'!$C$16:$C$43,0))/1000,BP54*INDEX('Damage costs'!$Y$16:$Y$43,MATCH($B139,'Damage costs'!$C$16:$C$43,0))/1000),\"\")","v":""},{"$f":"IFERROR(IF(OR($C$144=FALSE,LEFT($B139,3)<>\"NOX\"),BQ54*INDEX('Damage costs'!$U$16:$U$43,MATCH($B139,'Damage costs'!$C$16:$C$43,0))/1000,BQ54*INDEX('Damage costs'!$Y$16:$Y$43,MATCH($B139,'Damage costs'!$C$16:$C$43,0))/1000),\"\")","v":""},{"$f":"IFERROR(IF(OR($C$144=FALSE,LEFT($B139,3)<>\"NOX\"),BR54*INDEX('Damage costs'!$U$16:$U$43,MATCH($B139,'Damage costs'!$C$16:$C$43,0))/1000,BR54*INDEX('Damage costs'!$Y$16:$Y$43,MATCH($B139,'Damage costs'!$C$16:$C$43,0))/1000),\"\")","v":""},{"$f":"IFERROR(IF(OR($C$144=FALSE,LEFT($B139,3)<>\"NOX\"),BS54*INDEX('Damage costs'!$U$16:$U$43,MATCH($B139,'Damage costs'!$C$16:$C$43,0))/1000,BS54*INDEX('Damage costs'!$Y$16:$Y$43,MATCH($B139,'Damage costs'!$C$16:$C$43,0))/1000),\"\")","v":""},{"$f":"IFERROR(IF(OR($C$144=FALSE,LEFT($B139,3)<>\"NOX\"),BT54*INDEX('Damage costs'!$U$16:$U$43,MATCH($B139,'Damage costs'!$C$16:$C$43,0))/1000,BT54*INDEX('Damage costs'!$Y$16:$Y$43,MATCH($B139,'Damage costs'!$C$16:$C$43,0))/1000),\"\")","v":""},{"$f":"IFERROR(IF(OR($C$144=FALSE,LEFT($B139,3)<>\"NOX\"),BU54*INDEX('Damage costs'!$U$16:$U$43,MATCH($B139,'Damage costs'!$C$16:$C$43,0))/1000,BU54*INDEX('Damage costs'!$Y$16:$Y$43,MATCH($B139,'Damage costs'!$C$16:$C$43,0))/1000),\"\")","v":""},{"$f":"IFERROR(IF(OR($C$144=FALSE,LEFT($B139,3)<>\"NOX\"),BV54*INDEX('Damage costs'!$U$16:$U$43,MATCH($B139,'Damage costs'!$C$16:$C$43,0))/1000,BV54*INDEX('Damage costs'!$Y$16:$Y$43,MATCH($B139,'Damage costs'!$C$16:$C$43,0))/1000),\"\")","v":""},{"$f":"IFERROR(IF(OR($C$144=FALSE,LEFT($B139,3)<>\"NOX\"),BW54*INDEX('Damage costs'!$U$16:$U$43,MATCH($B139,'Damage costs'!$C$16:$C$43,0))/1000,BW54*INDEX('Damage costs'!$Y$16:$Y$43,MATCH($B139,'Damage costs'!$C$16:$C$43,0))/1000),\"\")","v":""},{"$f":"IFERROR(IF(OR($C$144=FALSE,LEFT($B139,3)<>\"NOX\"),BX54*INDEX('Damage costs'!$U$16:$U$43,MATCH($B139,'Damage costs'!$C$16:$C$43,0))/1000,BX54*INDEX('Damage costs'!$Y$16:$Y$43,MATCH($B139,'Damage costs'!$C$16:$C$43,0))/1000),\"\")","v":""},{"$f":"IFERROR(IF(OR($C$144=FALSE,LEFT($B139,3)<>\"NOX\"),BY54*INDEX('Damage costs'!$U$16:$U$43,MATCH($B139,'Damage costs'!$C$16:$C$43,0))/1000,BY54*INDEX('Damage costs'!$Y$16:$Y$43,MATCH($B139,'Damage costs'!$C$16:$C$43,0))/1000),\"\")","v":""},{"$f":"IFERROR(IF(OR($C$144=FALSE,LEFT($B139,3)<>\"NOX\"),BZ54*INDEX('Damage costs'!$U$16:$U$43,MATCH($B139,'Damage costs'!$C$16:$C$43,0))/1000,BZ54*INDEX('Damage costs'!$Y$16:$Y$43,MATCH($B139,'Damage costs'!$C$16:$C$43,0))/1000),\"\")","v":""},{"$f":"IFERROR(IF(OR($C$144=FALSE,LEFT($B139,3)<>\"NOX\"),CA54*INDEX('Damage costs'!$U$16:$U$43,MATCH($B139,'Damage costs'!$C$16:$C$43,0))/1000,CA54*INDEX('Damage costs'!$Y$16:$Y$43,MATCH($B139,'Damage costs'!$C$16:$C$43,0))/1000),\"\")","v":""},{"$f":"IFERROR(IF(OR($C$144=FALSE,LEFT($B139,3)<>\"NOX\"),CB54*INDEX('Damage costs'!$U$16:$U$43,MATCH($B139,'Damage costs'!$C$16:$C$43,0))/1000,CB54*INDEX('Damage costs'!$Y$16:$Y$43,MATCH($B139,'Damage costs'!$C$16:$C$43,0))/1000),\"\")","v":""},{"$f":"IFERROR(IF(OR($C$144=FALSE,LEFT($B139,3)<>\"NOX\"),CC54*INDEX('Damage costs'!$U$16:$U$43,MATCH($B139,'Damage costs'!$C$16:$C$43,0))/1000,CC54*INDEX('Damage costs'!$Y$16:$Y$43,MATCH($B139,'Damage costs'!$C$16:$C$43,0))/1000),\"\")","v":""},{"$f":"IFERROR(IF(OR($C$144=FALSE,LEFT($B139,3)<>\"NOX\"),CD54*INDEX('Damage costs'!$U$16:$U$43,MATCH($B139,'Damage costs'!$C$16:$C$43,0))/1000,CD54*INDEX('Damage costs'!$Y$16:$Y$43,MATCH($B139,'Damage costs'!$C$16:$C$43,0))/1000),\"\")","v":""},{"$f":"IFERROR(IF(OR($C$144=FALSE,LEFT($B139,3)<>\"NOX\"),CE54*INDEX('Damage costs'!$U$16:$U$43,MATCH($B139,'Damage costs'!$C$16:$C$43,0))/1000,CE54*INDEX('Damage costs'!$Y$16:$Y$43,MATCH($B139,'Damage costs'!$C$16:$C$43,0))/1000),\"\")","v":""},{"$f":"IFERROR(IF(OR($C$144=FALSE,LEFT($B139,3)<>\"NOX\"),CF54*INDEX('Damage costs'!$U$16:$U$43,MATCH($B139,'Damage costs'!$C$16:$C$43,0))/1000,CF54*INDEX('Damage costs'!$Y$16:$Y$43,MATCH($B139,'Damage costs'!$C$16:$C$43,0))/1000),\"\")","v":""},{"$f":"IFERROR(IF(OR($C$144=FALSE,LEFT($B139,3)<>\"NOX\"),CG54*INDEX('Damage costs'!$U$16:$U$43,MATCH($B139,'Damage costs'!$C$16:$C$43,0))/1000,CG54*INDEX('Damage costs'!$Y$16:$Y$43,MATCH($B139,'Damage costs'!$C$16:$C$43,0))/1000),\"\")","v":""},{"$f":"IFERROR(IF(OR($C$144=FALSE,LEFT($B139,3)<>\"NOX\"),CH54*INDEX('Damage costs'!$U$16:$U$43,MATCH($B139,'Damage costs'!$C$16:$C$43,0))/1000,CH54*INDEX('Damage costs'!$Y$16:$Y$43,MATCH($B139,'Damage costs'!$C$16:$C$43,0))/1000),\"\")","v":""},{"$f":"IFERROR(IF(OR($C$144=FALSE,LEFT($B139,3)<>\"NOX\"),CI54*INDEX('Damage costs'!$U$16:$U$43,MATCH($B139,'Damage costs'!$C$16:$C$43,0))/1000,CI54*INDEX('Damage costs'!$Y$16:$Y$43,MATCH($B139,'Damage costs'!$C$16:$C$43,0))/1000),\"\")","v":""},{"$f":"IFERROR(IF(OR($C$144=FALSE,LEFT($B139,3)<>\"NOX\"),CJ54*INDEX('Damage costs'!$U$16:$U$43,MATCH($B139,'Damage costs'!$C$16:$C$43,0))/1000,CJ54*INDEX('Damage costs'!$Y$16:$Y$43,MATCH($B139,'Damage costs'!$C$16:$C$43,0))/1000),\"\")","v":""},{"$f":"IFERROR(IF(OR($C$144=FALSE,LEFT($B139,3)<>\"NOX\"),CK54*INDEX('Damage costs'!$U$16:$U$43,MATCH($B139,'Damage costs'!$C$16:$C$43,0))/1000,CK54*INDEX('Damage costs'!$Y$16:$Y$43,MATCH($B139,'Damage costs'!$C$16:$C$43,0))/1000),\"\")","v":""},{"$f":"IFERROR(IF(OR($C$144=FALSE,LEFT($B139,3)<>\"NOX\"),CL54*INDEX('Damage costs'!$U$16:$U$43,MATCH($B139,'Damage costs'!$C$16:$C$43,0))/1000,CL54*INDEX('Damage costs'!$Y$16:$Y$43,MATCH($B139,'Damage costs'!$C$16:$C$43,0))/1000),\"\")","v":""},{"$f":"IFERROR(IF(OR($C$144=FALSE,LEFT($B139,3)<>\"NOX\"),CM54*INDEX('Damage costs'!$U$16:$U$43,MATCH($B139,'Damage costs'!$C$16:$C$43,0))/1000,CM54*INDEX('Damage costs'!$Y$16:$Y$43,MATCH($B139,'Damage costs'!$C$16:$C$43,0))/1000),\"\")","v":""},{"$f":"IFERROR(IF(OR($C$144=FALSE,LEFT($B139,3)<>\"NOX\"),CN54*INDEX('Damage costs'!$U$16:$U$43,MATCH($B139,'Damage costs'!$C$16:$C$43,0))/1000,CN54*INDEX('Damage costs'!$Y$16:$Y$43,MATCH($B139,'Damage costs'!$C$16:$C$43,0))/1000),\"\")","v":""},{"$f":"IFERROR(IF(OR($C$144=FALSE,LEFT($B139,3)<>\"NOX\"),CO54*INDEX('Damage costs'!$U$16:$U$43,MATCH($B139,'Damage costs'!$C$16:$C$43,0))/1000,CO54*INDEX('Damage costs'!$Y$16:$Y$43,MATCH($B139,'Damage costs'!$C$16:$C$43,0))/1000),\"\")","v":""},{"$f":"IFERROR(IF(OR($C$144=FALSE,LEFT($B139,3)<>\"NOX\"),CP54*INDEX('Damage costs'!$U$16:$U$43,MATCH($B139,'Damage costs'!$C$16:$C$43,0))/1000,CP54*INDEX('Damage costs'!$Y$16:$Y$43,MATCH($B139,'Damage costs'!$C$16:$C$43,0))/1000),\"\")","v":""},{"$f":"IFERROR(IF(OR($C$144=FALSE,LEFT($B139,3)<>\"NOX\"),CQ54*INDEX('Damage costs'!$U$16:$U$43,MATCH($B139,'Damage costs'!$C$16:$C$43,0))/1000,CQ54*INDEX('Damage costs'!$Y$16:$Y$43,MATCH($B139,'Damage costs'!$C$16:$C$43,0))/1000),\"\")","v":""},{"$f":"IFERROR(IF(OR($C$144=FALSE,LEFT($B139,3)<>\"NOX\"),CR54*INDEX('Damage costs'!$U$16:$U$43,MATCH($B139,'Damage costs'!$C$16:$C$43,0))/1000,CR54*INDEX('Damage costs'!$Y$16:$Y$43,MATCH($B139,'Damage costs'!$C$16:$C$43,0))/1000),\"\")","v":""},{"$f":"IFERROR(IF(OR($C$144=FALSE,LEFT($B139,3)<>\"NOX\"),CS54*INDEX('Damage costs'!$U$16:$U$43,MATCH($B139,'Damage costs'!$C$16:$C$43,0))/1000,CS54*INDEX('Damage costs'!$Y$16:$Y$43,MATCH($B139,'Damage costs'!$C$16:$C$43,0))/1000),\"\")","v":""},{"$f":"IFERROR(IF(OR($C$144=FALSE,LEFT($B139,3)<>\"NOX\"),CT54*INDEX('Damage costs'!$U$16:$U$43,MATCH($B139,'Damage costs'!$C$16:$C$43,0))/1000,CT54*INDEX('Damage costs'!$Y$16:$Y$43,MATCH($B139,'Damage costs'!$C$16:$C$43,0))/1000),\"\")","v":""},{"$f":"IFERROR(IF(OR($C$144=FALSE,LEFT($B139,3)<>\"NOX\"),CU54*INDEX('Damage costs'!$U$16:$U$43,MATCH($B139,'Damage costs'!$C$16:$C$43,0))/1000,CU54*INDEX('Damage costs'!$Y$16:$Y$43,MATCH($B139,'Damage costs'!$C$16:$C$43,0))/1000),\"\")","v":""},{"$f":"IFERROR(IF(OR($C$144=FALSE,LEFT($B139,3)<>\"NOX\"),CV54*INDEX('Damage costs'!$U$16:$U$43,MATCH($B139,'Damage costs'!$C$16:$C$43,0))/1000,CV54*INDEX('Damage costs'!$Y$16:$Y$43,MATCH($B139,'Damage costs'!$C$16:$C$43,0))/1000),\"\")","v":""},{"$f":"IFERROR(IF(OR($C$144=FALSE,LEFT($B139,3)<>\"NOX\"),CW54*INDEX('Damage costs'!$U$16:$U$43,MATCH($B139,'Damage costs'!$C$16:$C$43,0))/1000,CW54*INDEX('Damage costs'!$Y$16:$Y$43,MATCH($B139,'Damage costs'!$C$16:$C$43,0))/1000),\"\")","v":""},{"$f":"IFERROR(IF(OR($C$144=FALSE,LEFT($B139,3)<>\"NOX\"),CX54*INDEX('Damage costs'!$U$16:$U$43,MATCH($B139,'Damage costs'!$C$16:$C$43,0))/1000,CX54*INDEX('Damage costs'!$Y$16:$Y$43,MATCH($B139,'Damage costs'!$C$16:$C$43,0))/1000),\"\")","v":""},{"$f":"IFERROR(IF(OR($C$144=FALSE,LEFT($B139,3)<>\"NOX\"),CY54*INDEX('Damage costs'!$U$16:$U$43,MATCH($B139,'Damage costs'!$C$16:$C$43,0))/1000,CY54*INDEX('Damage costs'!$Y$16:$Y$43,MATCH($B139,'Damage costs'!$C$16:$C$43,0))/1000),\"\")","v":""}]
[null,0,"£000's",{"$f":"IFERROR(IF(OR($C$144=FALSE,LEFT($B140,3)<>\"NOX\"),D55*INDEX('Damage costs'!$U$16:$U$43,MATCH($B140,'Damage costs'!$C$16:$C$43,0))/1000,D55*INDEX('Damage costs'!$Y$16:$Y$43,MATCH($B140,'Damage costs'!$C$16:$C$43,0))/1000),\"\")","v":""},{"$f":"IFERROR(IF(OR($C$144=FALSE,LEFT($B140,3)<>\"NOX\"),E55*INDEX('Damage costs'!$U$16:$U$43,MATCH($B140,'Damage costs'!$C$16:$C$43,0))/1000,E55*INDEX('Damage costs'!$Y$16:$Y$43,MATCH($B140,'Damage costs'!$C$16:$C$43,0))/1000),\"\")","v":""},{"$f":"IFERROR(IF(OR($C$144=FALSE,LEFT($B140,3)<>\"NOX\"),F55*INDEX('Damage costs'!$U$16:$U$43,MATCH($B140,'Damage costs'!$C$16:$C$43,0))/1000,F55*INDEX('Damage costs'!$Y$16:$Y$43,MATCH($B140,'Damage costs'!$C$16:$C$43,0))/1000),\"\")","v":""},{"$f":"IFERROR(IF(OR($C$144=FALSE,LEFT($B140,3)<>\"NOX\"),G55*INDEX('Damage costs'!$U$16:$U$43,MATCH($B140,'Damage costs'!$C$16:$C$43,0))/1000,G55*INDEX('Damage costs'!$Y$16:$Y$43,MATCH($B140,'Damage costs'!$C$16:$C$43,0))/1000),\"\")","v":""},{"$f":"IFERROR(IF(OR($C$144=FALSE,LEFT($B140,3)<>\"NOX\"),H55*INDEX('Damage costs'!$U$16:$U$43,MATCH($B140,'Damage costs'!$C$16:$C$43,0))/1000,H55*INDEX('Damage costs'!$Y$16:$Y$43,MATCH($B140,'Damage costs'!$C$16:$C$43,0))/1000),\"\")","v":""},{"$f":"IFERROR(IF(OR($C$144=FALSE,LEFT($B140,3)<>\"NOX\"),I55*INDEX('Damage costs'!$U$16:$U$43,MATCH($B140,'Damage costs'!$C$16:$C$43,0))/1000,I55*INDEX('Damage costs'!$Y$16:$Y$43,MATCH($B140,'Damage costs'!$C$16:$C$43,0))/1000),\"\")","v":""},{"$f":"IFERROR(IF(OR($C$144=FALSE,LEFT($B140,3)<>\"NOX\"),J55*INDEX('Damage costs'!$U$16:$U$43,MATCH($B140,'Damage costs'!$C$16:$C$43,0))/1000,J55*INDEX('Damage costs'!$Y$16:$Y$43,MATCH($B140,'Damage costs'!$C$16:$C$43,0))/1000),\"\")","v":""},{"$f":"IFERROR(IF(OR($C$144=FALSE,LEFT($B140,3)<>\"NOX\"),K55*INDEX('Damage costs'!$U$16:$U$43,MATCH($B140,'Damage costs'!$C$16:$C$43,0))/1000,K55*INDEX('Damage costs'!$Y$16:$Y$43,MATCH($B140,'Damage costs'!$C$16:$C$43,0))/1000),\"\")","v":""},{"$f":"IFERROR(IF(OR($C$144=FALSE,LEFT($B140,3)<>\"NOX\"),L55*INDEX('Damage costs'!$U$16:$U$43,MATCH($B140,'Damage costs'!$C$16:$C$43,0))/1000,L55*INDEX('Damage costs'!$Y$16:$Y$43,MATCH($B140,'Damage costs'!$C$16:$C$43,0))/1000),\"\")","v":""},{"$f":"IFERROR(IF(OR($C$144=FALSE,LEFT($B140,3)<>\"NOX\"),M55*INDEX('Damage costs'!$U$16:$U$43,MATCH($B140,'Damage costs'!$C$16:$C$43,0))/1000,M55*INDEX('Damage costs'!$Y$16:$Y$43,MATCH($B140,'Damage costs'!$C$16:$C$43,0))/1000),\"\")","v":""},{"$f":"IFERROR(IF(OR($C$144=FALSE,LEFT($B140,3)<>\"NOX\"),N55*INDEX('Damage costs'!$U$16:$U$43,MATCH($B140,'Damage costs'!$C$16:$C$43,0))/1000,N55*INDEX('Damage costs'!$Y$16:$Y$43,MATCH($B140,'Damage costs'!$C$16:$C$43,0))/1000),\"\")","v":""},{"$f":"IFERROR(IF(OR($C$144=FALSE,LEFT($B140,3)<>\"NOX\"),O55*INDEX('Damage costs'!$U$16:$U$43,MATCH($B140,'Damage costs'!$C$16:$C$43,0))/1000,O55*INDEX('Damage costs'!$Y$16:$Y$43,MATCH($B140,'Damage costs'!$C$16:$C$43,0))/1000),\"\")","v":""},{"$f":"IFERROR(IF(OR($C$144=FALSE,LEFT($B140,3)<>\"NOX\"),P55*INDEX('Damage costs'!$U$16:$U$43,MATCH($B140,'Damage costs'!$C$16:$C$43,0))/1000,P55*INDEX('Damage costs'!$Y$16:$Y$43,MATCH($B140,'Damage costs'!$C$16:$C$43,0))/1000),\"\")","v":""},{"$f":"IFERROR(IF(OR($C$144=FALSE,LEFT($B140,3)<>\"NOX\"),Q55*INDEX('Damage costs'!$U$16:$U$43,MATCH($B140,'Damage costs'!$C$16:$C$43,0))/1000,Q55*INDEX('Damage costs'!$Y$16:$Y$43,MATCH($B140,'Damage costs'!$C$16:$C$43,0))/1000),\"\")","v":""},{"$f":"IFERROR(IF(OR($C$144=FALSE,LEFT($B140,3)<>\"NOX\"),R55*INDEX('Damage costs'!$U$16:$U$43,MATCH($B140,'Damage costs'!$C$16:$C$43,0))/1000,R55*INDEX('Damage costs'!$Y$16:$Y$43,MATCH($B140,'Damage costs'!$C$16:$C$43,0))/1000),\"\")","v":""},{"$f":"IFERROR(IF(OR($C$144=FALSE,LEFT($B140,3)<>\"NOX\"),S55*INDEX('Damage costs'!$U$16:$U$43,MATCH($B140,'Damage costs'!$C$16:$C$43,0))/1000,S55*INDEX('Damage costs'!$Y$16:$Y$43,MATCH($B140,'Damage costs'!$C$16:$C$43,0))/1000),\"\")","v":""},{"$f":"IFERROR(IF(OR($C$144=FALSE,LEFT($B140,3)<>\"NOX\"),T55*INDEX('Damage costs'!$U$16:$U$43,MATCH($B140,'Damage costs'!$C$16:$C$43,0))/1000,T55*INDEX('Damage costs'!$Y$16:$Y$43,MATCH($B140,'Damage costs'!$C$16:$C$43,0))/1000),\"\")","v":""},{"$f":"IFERROR(IF(OR($C$144=FALSE,LEFT($B140,3)<>\"NOX\"),U55*INDEX('Damage costs'!$U$16:$U$43,MATCH($B140,'Damage costs'!$C$16:$C$43,0))/1000,U55*INDEX('Damage costs'!$Y$16:$Y$43,MATCH($B140,'Damage costs'!$C$16:$C$43,0))/1000),\"\")","v":""},{"$f":"IFERROR(IF(OR($C$144=FALSE,LEFT($B140,3)<>\"NOX\"),V55*INDEX('Damage costs'!$U$16:$U$43,MATCH($B140,'Damage costs'!$C$16:$C$43,0))/1000,V55*INDEX('Damage costs'!$Y$16:$Y$43,MATCH($B140,'Damage costs'!$C$16:$C$43,0))/1000),\"\")","v":""},{"$f":"IFERROR(IF(OR($C$144=FALSE,LEFT($B140,3)<>\"NOX\"),W55*INDEX('Damage costs'!$U$16:$U$43,MATCH($B140,'Damage costs'!$C$16:$C$43,0))/1000,W55*INDEX('Damage costs'!$Y$16:$Y$43,MATCH($B140,'Damage costs'!$C$16:$C$43,0))/1000),\"\")","v":""},{"$f":"IFERROR(IF(OR($C$144=FALSE,LEFT($B140,3)<>\"NOX\"),X55*INDEX('Damage costs'!$U$16:$U$43,MATCH($B140,'Damage costs'!$C$16:$C$43,0))/1000,X55*INDEX('Damage costs'!$Y$16:$Y$43,MATCH($B140,'Damage costs'!$C$16:$C$43,0))/1000),\"\")","v":""},{"$f":"IFERROR(IF(OR($C$144=FALSE,LEFT($B140,3)<>\"NOX\"),Y55*INDEX('Damage costs'!$U$16:$U$43,MATCH($B140,'Damage costs'!$C$16:$C$43,0))/1000,Y55*INDEX('Damage costs'!$Y$16:$Y$43,MATCH($B140,'Damage costs'!$C$16:$C$43,0))/1000),\"\")","v":""},{"$f":"IFERROR(IF(OR($C$144=FALSE,LEFT($B140,3)<>\"NOX\"),Z55*INDEX('Damage costs'!$U$16:$U$43,MATCH($B140,'Damage costs'!$C$16:$C$43,0))/1000,Z55*INDEX('Damage costs'!$Y$16:$Y$43,MATCH($B140,'Damage costs'!$C$16:$C$43,0))/1000),\"\")","v":""},{"$f":"IFERROR(IF(OR($C$144=FALSE,LEFT($B140,3)<>\"NOX\"),AA55*INDEX('Damage costs'!$U$16:$U$43,MATCH($B140,'Damage costs'!$C$16:$C$43,0))/1000,AA55*INDEX('Damage costs'!$Y$16:$Y$43,MATCH($B140,'Damage costs'!$C$16:$C$43,0))/1000),\"\")","v":""},{"$f":"IFERROR(IF(OR($C$144=FALSE,LEFT($B140,3)<>\"NOX\"),AB55*INDEX('Damage costs'!$U$16:$U$43,MATCH($B140,'Damage costs'!$C$16:$C$43,0))/1000,AB55*INDEX('Damage costs'!$Y$16:$Y$43,MATCH($B140,'Damage costs'!$C$16:$C$43,0))/1000),\"\")","v":""},{"$f":"IFERROR(IF(OR($C$144=FALSE,LEFT($B140,3)<>\"NOX\"),AC55*INDEX('Damage costs'!$U$16:$U$43,MATCH($B140,'Damage costs'!$C$16:$C$43,0))/1000,AC55*INDEX('Damage costs'!$Y$16:$Y$43,MATCH($B140,'Damage costs'!$C$16:$C$43,0))/1000),\"\")","v":""},{"$f":"IFERROR(IF(OR($C$144=FALSE,LEFT($B140,3)<>\"NOX\"),AD55*INDEX('Damage costs'!$U$16:$U$43,MATCH($B140,'Damage costs'!$C$16:$C$43,0))/1000,AD55*INDEX('Damage costs'!$Y$16:$Y$43,MATCH($B140,'Damage costs'!$C$16:$C$43,0))/1000),\"\")","v":""},{"$f":"IFERROR(IF(OR($C$144=FALSE,LEFT($B140,3)<>\"NOX\"),AE55*INDEX('Damage costs'!$U$16:$U$43,MATCH($B140,'Damage costs'!$C$16:$C$43,0))/1000,AE55*INDEX('Damage costs'!$Y$16:$Y$43,MATCH($B140,'Damage costs'!$C$16:$C$43,0))/1000),\"\")","v":""},{"$f":"IFERROR(IF(OR($C$144=FALSE,LEFT($B140,3)<>\"NOX\"),AF55*INDEX('Damage costs'!$U$16:$U$43,MATCH($B140,'Damage costs'!$C$16:$C$43,0))/1000,AF55*INDEX('Damage costs'!$Y$16:$Y$43,MATCH($B140,'Damage costs'!$C$16:$C$43,0))/1000),\"\")","v":""},{"$f":"IFERROR(IF(OR($C$144=FALSE,LEFT($B140,3)<>\"NOX\"),AG55*INDEX('Damage costs'!$U$16:$U$43,MATCH($B140,'Damage costs'!$C$16:$C$43,0))/1000,AG55*INDEX('Damage costs'!$Y$16:$Y$43,MATCH($B140,'Damage costs'!$C$16:$C$43,0))/1000),\"\")","v":""},{"$f":"IFERROR(IF(OR($C$144=FALSE,LEFT($B140,3)<>\"NOX\"),AH55*INDEX('Damage costs'!$U$16:$U$43,MATCH($B140,'Damage costs'!$C$16:$C$43,0))/1000,AH55*INDEX('Damage costs'!$Y$16:$Y$43,MATCH($B140,'Damage costs'!$C$16:$C$43,0))/1000),\"\")","v":""},{"$f":"IFERROR(IF(OR($C$144=FALSE,LEFT($B140,3)<>\"NOX\"),AI55*INDEX('Damage costs'!$U$16:$U$43,MATCH($B140,'Damage costs'!$C$16:$C$43,0))/1000,AI55*INDEX('Damage costs'!$Y$16:$Y$43,MATCH($B140,'Damage costs'!$C$16:$C$43,0))/1000),\"\")","v":""},{"$f":"IFERROR(IF(OR($C$144=FALSE,LEFT($B140,3)<>\"NOX\"),AJ55*INDEX('Damage costs'!$U$16:$U$43,MATCH($B140,'Damage costs'!$C$16:$C$43,0))/1000,AJ55*INDEX('Damage costs'!$Y$16:$Y$43,MATCH($B140,'Damage costs'!$C$16:$C$43,0))/1000),\"\")","v":""},{"$f":"IFERROR(IF(OR($C$144=FALSE,LEFT($B140,3)<>\"NOX\"),AK55*INDEX('Damage costs'!$U$16:$U$43,MATCH($B140,'Damage costs'!$C$16:$C$43,0))/1000,AK55*INDEX('Damage costs'!$Y$16:$Y$43,MATCH($B140,'Damage costs'!$C$16:$C$43,0))/1000),\"\")","v":""},{"$f":"IFERROR(IF(OR($C$144=FALSE,LEFT($B140,3)<>\"NOX\"),AL55*INDEX('Damage costs'!$U$16:$U$43,MATCH($B140,'Damage costs'!$C$16:$C$43,0))/1000,AL55*INDEX('Damage costs'!$Y$16:$Y$43,MATCH($B140,'Damage costs'!$C$16:$C$43,0))/1000),\"\")","v":""},{"$f":"IFERROR(IF(OR($C$144=FALSE,LEFT($B140,3)<>\"NOX\"),AM55*INDEX('Damage costs'!$U$16:$U$43,MATCH($B140,'Damage costs'!$C$16:$C$43,0))/1000,AM55*INDEX('Damage costs'!$Y$16:$Y$43,MATCH($B140,'Damage costs'!$C$16:$C$43,0))/1000),\"\")","v":""},{"$f":"IFERROR(IF(OR($C$144=FALSE,LEFT($B140,3)<>\"NOX\"),AN55*INDEX('Damage costs'!$U$16:$U$43,MATCH($B140,'Damage costs'!$C$16:$C$43,0))/1000,AN55*INDEX('Damage costs'!$Y$16:$Y$43,MATCH($B140,'Damage costs'!$C$16:$C$43,0))/1000),\"\")","v":""},{"$f":"IFERROR(IF(OR($C$144=FALSE,LEFT($B140,3)<>\"NOX\"),AO55*INDEX('Damage costs'!$U$16:$U$43,MATCH($B140,'Damage costs'!$C$16:$C$43,0))/1000,AO55*INDEX('Damage costs'!$Y$16:$Y$43,MATCH($B140,'Damage costs'!$C$16:$C$43,0))/1000),\"\")","v":""},{"$f":"IFERROR(IF(OR($C$144=FALSE,LEFT($B140,3)<>\"NOX\"),AP55*INDEX('Damage costs'!$U$16:$U$43,MATCH($B140,'Damage costs'!$C$16:$C$43,0))/1000,AP55*INDEX('Damage costs'!$Y$16:$Y$43,MATCH($B140,'Damage costs'!$C$16:$C$43,0))/1000),\"\")","v":""},{"$f":"IFERROR(IF(OR($C$144=FALSE,LEFT($B140,3)<>\"NOX\"),AQ55*INDEX('Damage costs'!$U$16:$U$43,MATCH($B140,'Damage costs'!$C$16:$C$43,0))/1000,AQ55*INDEX('Damage costs'!$Y$16:$Y$43,MATCH($B140,'Damage costs'!$C$16:$C$43,0))/1000),\"\")","v":""},{"$f":"IFERROR(IF(OR($C$144=FALSE,LEFT($B140,3)<>\"NOX\"),AR55*INDEX('Damage costs'!$U$16:$U$43,MATCH($B140,'Damage costs'!$C$16:$C$43,0))/1000,AR55*INDEX('Damage costs'!$Y$16:$Y$43,MATCH($B140,'Damage costs'!$C$16:$C$43,0))/1000),\"\")","v":""},{"$f":"IFERROR(IF(OR($C$144=FALSE,LEFT($B140,3)<>\"NOX\"),AS55*INDEX('Damage costs'!$U$16:$U$43,MATCH($B140,'Damage costs'!$C$16:$C$43,0))/1000,AS55*INDEX('Damage costs'!$Y$16:$Y$43,MATCH($B140,'Damage costs'!$C$16:$C$43,0))/1000),\"\")","v":""},{"$f":"IFERROR(IF(OR($C$144=FALSE,LEFT($B140,3)<>\"NOX\"),AT55*INDEX('Damage costs'!$U$16:$U$43,MATCH($B140,'Damage costs'!$C$16:$C$43,0))/1000,AT55*INDEX('Damage costs'!$Y$16:$Y$43,MATCH($B140,'Damage costs'!$C$16:$C$43,0))/1000),\"\")","v":""},{"$f":"IFERROR(IF(OR($C$144=FALSE,LEFT($B140,3)<>\"NOX\"),AU55*INDEX('Damage costs'!$U$16:$U$43,MATCH($B140,'Damage costs'!$C$16:$C$43,0))/1000,AU55*INDEX('Damage costs'!$Y$16:$Y$43,MATCH($B140,'Damage costs'!$C$16:$C$43,0))/1000),\"\")","v":""},{"$f":"IFERROR(IF(OR($C$144=FALSE,LEFT($B140,3)<>\"NOX\"),AV55*INDEX('Damage costs'!$U$16:$U$43,MATCH($B140,'Damage costs'!$C$16:$C$43,0))/1000,AV55*INDEX('Damage costs'!$Y$16:$Y$43,MATCH($B140,'Damage costs'!$C$16:$C$43,0))/1000),\"\")","v":""},{"$f":"IFERROR(IF(OR($C$144=FALSE,LEFT($B140,3)<>\"NOX\"),AW55*INDEX('Damage costs'!$U$16:$U$43,MATCH($B140,'Damage costs'!$C$16:$C$43,0))/1000,AW55*INDEX('Damage costs'!$Y$16:$Y$43,MATCH($B140,'Damage costs'!$C$16:$C$43,0))/1000),\"\")","v":""},{"$f":"IFERROR(IF(OR($C$144=FALSE,LEFT($B140,3)<>\"NOX\"),AX55*INDEX('Damage costs'!$U$16:$U$43,MATCH($B140,'Damage costs'!$C$16:$C$43,0))/1000,AX55*INDEX('Damage costs'!$Y$16:$Y$43,MATCH($B140,'Damage costs'!$C$16:$C$43,0))/1000),\"\")","v":""},{"$f":"IFERROR(IF(OR($C$144=FALSE,LEFT($B140,3)<>\"NOX\"),AY55*INDEX('Damage costs'!$U$16:$U$43,MATCH($B140,'Damage costs'!$C$16:$C$43,0))/1000,AY55*INDEX('Damage costs'!$Y$16:$Y$43,MATCH($B140,'Damage costs'!$C$16:$C$43,0))/1000),\"\")","v":""},{"$f":"IFERROR(IF(OR($C$144=FALSE,LEFT($B140,3)<>\"NOX\"),AZ55*INDEX('Damage costs'!$U$16:$U$43,MATCH($B140,'Damage costs'!$C$16:$C$43,0))/1000,AZ55*INDEX('Damage costs'!$Y$16:$Y$43,MATCH($B140,'Damage costs'!$C$16:$C$43,0))/1000),\"\")","v":""},{"$f":"IFERROR(IF(OR($C$144=FALSE,LEFT($B140,3)<>\"NOX\"),BA55*INDEX('Damage costs'!$U$16:$U$43,MATCH($B140,'Damage costs'!$C$16:$C$43,0))/1000,BA55*INDEX('Damage costs'!$Y$16:$Y$43,MATCH($B140,'Damage costs'!$C$16:$C$43,0))/1000),\"\")","v":""},{"$f":"IFERROR(IF(OR($C$144=FALSE,LEFT($B140,3)<>\"NOX\"),BB55*INDEX('Damage costs'!$U$16:$U$43,MATCH($B140,'Damage costs'!$C$16:$C$43,0))/1000,BB55*INDEX('Damage costs'!$Y$16:$Y$43,MATCH($B140,'Damage costs'!$C$16:$C$43,0))/1000),\"\")","v":""},{"$f":"IFERROR(IF(OR($C$144=FALSE,LEFT($B140,3)<>\"NOX\"),BC55*INDEX('Damage costs'!$U$16:$U$43,MATCH($B140,'Damage costs'!$C$16:$C$43,0))/1000,BC55*INDEX('Damage costs'!$Y$16:$Y$43,MATCH($B140,'Damage costs'!$C$16:$C$43,0))/1000),\"\")","v":""},{"$f":"IFERROR(IF(OR($C$144=FALSE,LEFT($B140,3)<>\"NOX\"),BD55*INDEX('Damage costs'!$U$16:$U$43,MATCH($B140,'Damage costs'!$C$16:$C$43,0))/1000,BD55*INDEX('Damage costs'!$Y$16:$Y$43,MATCH($B140,'Damage costs'!$C$16:$C$43,0))/1000),\"\")","v":""},{"$f":"IFERROR(IF(OR($C$144=FALSE,LEFT($B140,3)<>\"NOX\"),BE55*INDEX('Damage costs'!$U$16:$U$43,MATCH($B140,'Damage costs'!$C$16:$C$43,0))/1000,BE55*INDEX('Damage costs'!$Y$16:$Y$43,MATCH($B140,'Damage costs'!$C$16:$C$43,0))/1000),\"\")","v":""},{"$f":"IFERROR(IF(OR($C$144=FALSE,LEFT($B140,3)<>\"NOX\"),BF55*INDEX('Damage costs'!$U$16:$U$43,MATCH($B140,'Damage costs'!$C$16:$C$43,0))/1000,BF55*INDEX('Damage costs'!$Y$16:$Y$43,MATCH($B140,'Damage costs'!$C$16:$C$43,0))/1000),\"\")","v":""},{"$f":"IFERROR(IF(OR($C$144=FALSE,LEFT($B140,3)<>\"NOX\"),BG55*INDEX('Damage costs'!$U$16:$U$43,MATCH($B140,'Damage costs'!$C$16:$C$43,0))/1000,BG55*INDEX('Damage costs'!$Y$16:$Y$43,MATCH($B140,'Damage costs'!$C$16:$C$43,0))/1000),\"\")","v":""},{"$f":"IFERROR(IF(OR($C$144=FALSE,LEFT($B140,3)<>\"NOX\"),BH55*INDEX('Damage costs'!$U$16:$U$43,MATCH($B140,'Damage costs'!$C$16:$C$43,0))/1000,BH55*INDEX('Damage costs'!$Y$16:$Y$43,MATCH($B140,'Damage costs'!$C$16:$C$43,0))/1000),\"\")","v":""},{"$f":"IFERROR(IF(OR($C$144=FALSE,LEFT($B140,3)<>\"NOX\"),BI55*INDEX('Damage costs'!$U$16:$U$43,MATCH($B140,'Damage costs'!$C$16:$C$43,0))/1000,BI55*INDEX('Damage costs'!$Y$16:$Y$43,MATCH($B140,'Damage costs'!$C$16:$C$43,0))/1000),\"\")","v":""},{"$f":"IFERROR(IF(OR($C$144=FALSE,LEFT($B140,3)<>\"NOX\"),BJ55*INDEX('Damage costs'!$U$16:$U$43,MATCH($B140,'Damage costs'!$C$16:$C$43,0))/1000,BJ55*INDEX('Damage costs'!$Y$16:$Y$43,MATCH($B140,'Damage costs'!$C$16:$C$43,0))/1000),\"\")","v":""},{"$f":"IFERROR(IF(OR($C$144=FALSE,LEFT($B140,3)<>\"NOX\"),BK55*INDEX('Damage costs'!$U$16:$U$43,MATCH($B140,'Damage costs'!$C$16:$C$43,0))/1000,BK55*INDEX('Damage costs'!$Y$16:$Y$43,MATCH($B140,'Damage costs'!$C$16:$C$43,0))/1000),\"\")","v":""},{"$f":"IFERROR(IF(OR($C$144=FALSE,LEFT($B140,3)<>\"NOX\"),BL55*INDEX('Damage costs'!$U$16:$U$43,MATCH($B140,'Damage costs'!$C$16:$C$43,0))/1000,BL55*INDEX('Damage costs'!$Y$16:$Y$43,MATCH($B140,'Damage costs'!$C$16:$C$43,0))/1000),\"\")","v":""},{"$f":"IFERROR(IF(OR($C$144=FALSE,LEFT($B140,3)<>\"NOX\"),BM55*INDEX('Damage costs'!$U$16:$U$43,MATCH($B140,'Damage costs'!$C$16:$C$43,0))/1000,BM55*INDEX('Damage costs'!$Y$16:$Y$43,MATCH($B140,'Damage costs'!$C$16:$C$43,0))/1000),\"\")","v":""},{"$f":"IFERROR(IF(OR($C$144=FALSE,LEFT($B140,3)<>\"NOX\"),BN55*INDEX('Damage costs'!$U$16:$U$43,MATCH($B140,'Damage costs'!$C$16:$C$43,0))/1000,BN55*INDEX('Damage costs'!$Y$16:$Y$43,MATCH($B140,'Damage costs'!$C$16:$C$43,0))/1000),\"\")","v":""},{"$f":"IFERROR(IF(OR($C$144=FALSE,LEFT($B140,3)<>\"NOX\"),BO55*INDEX('Damage costs'!$U$16:$U$43,MATCH($B140,'Damage costs'!$C$16:$C$43,0))/1000,BO55*INDEX('Damage costs'!$Y$16:$Y$43,MATCH($B140,'Damage costs'!$C$16:$C$43,0))/1000),\"\")","v":""},{"$f":"IFERROR(IF(OR($C$144=FALSE,LEFT($B140,3)<>\"NOX\"),BP55*INDEX('Damage costs'!$U$16:$U$43,MATCH($B140,'Damage costs'!$C$16:$C$43,0))/1000,BP55*INDEX('Damage costs'!$Y$16:$Y$43,MATCH($B140,'Damage costs'!$C$16:$C$43,0))/1000),\"\")","v":""},{"$f":"IFERROR(IF(OR($C$144=FALSE,LEFT($B140,3)<>\"NOX\"),BQ55*INDEX('Damage costs'!$U$16:$U$43,MATCH($B140,'Damage costs'!$C$16:$C$43,0))/1000,BQ55*INDEX('Damage costs'!$Y$16:$Y$43,MATCH($B140,'Damage costs'!$C$16:$C$43,0))/1000),\"\")","v":""},{"$f":"IFERROR(IF(OR($C$144=FALSE,LEFT($B140,3)<>\"NOX\"),BR55*INDEX('Damage costs'!$U$16:$U$43,MATCH($B140,'Damage costs'!$C$16:$C$43,0))/1000,BR55*INDEX('Damage costs'!$Y$16:$Y$43,MATCH($B140,'Damage costs'!$C$16:$C$43,0))/1000),\"\")","v":""},{"$f":"IFERROR(IF(OR($C$144=FALSE,LEFT($B140,3)<>\"NOX\"),BS55*INDEX('Damage costs'!$U$16:$U$43,MATCH($B140,'Damage costs'!$C$16:$C$43,0))/1000,BS55*INDEX('Damage costs'!$Y$16:$Y$43,MATCH($B140,'Damage costs'!$C$16:$C$43,0))/1000),\"\")","v":""},{"$f":"IFERROR(IF(OR($C$144=FALSE,LEFT($B140,3)<>\"NOX\"),BT55*INDEX('Damage costs'!$U$16:$U$43,MATCH($B140,'Damage costs'!$C$16:$C$43,0))/1000,BT55*INDEX('Damage costs'!$Y$16:$Y$43,MATCH($B140,'Damage costs'!$C$16:$C$43,0))/1000),\"\")","v":""},{"$f":"IFERROR(IF(OR($C$144=FALSE,LEFT($B140,3)<>\"NOX\"),BU55*INDEX('Damage costs'!$U$16:$U$43,MATCH($B140,'Damage costs'!$C$16:$C$43,0))/1000,BU55*INDEX('Damage costs'!$Y$16:$Y$43,MATCH($B140,'Damage costs'!$C$16:$C$43,0))/1000),\"\")","v":""},{"$f":"IFERROR(IF(OR($C$144=FALSE,LEFT($B140,3)<>\"NOX\"),BV55*INDEX('Damage costs'!$U$16:$U$43,MATCH($B140,'Damage costs'!$C$16:$C$43,0))/1000,BV55*INDEX('Damage costs'!$Y$16:$Y$43,MATCH($B140,'Damage costs'!$C$16:$C$43,0))/1000),\"\")","v":""},{"$f":"IFERROR(IF(OR($C$144=FALSE,LEFT($B140,3)<>\"NOX\"),BW55*INDEX('Damage costs'!$U$16:$U$43,MATCH($B140,'Damage costs'!$C$16:$C$43,0))/1000,BW55*INDEX('Damage costs'!$Y$16:$Y$43,MATCH($B140,'Damage costs'!$C$16:$C$43,0))/1000),\"\")","v":""},{"$f":"IFERROR(IF(OR($C$144=FALSE,LEFT($B140,3)<>\"NOX\"),BX55*INDEX('Damage costs'!$U$16:$U$43,MATCH($B140,'Damage costs'!$C$16:$C$43,0))/1000,BX55*INDEX('Damage costs'!$Y$16:$Y$43,MATCH($B140,'Damage costs'!$C$16:$C$43,0))/1000),\"\")","v":""},{"$f":"IFERROR(IF(OR($C$144=FALSE,LEFT($B140,3)<>\"NOX\"),BY55*INDEX('Damage costs'!$U$16:$U$43,MATCH($B140,'Damage costs'!$C$16:$C$43,0))/1000,BY55*INDEX('Damage costs'!$Y$16:$Y$43,MATCH($B140,'Damage costs'!$C$16:$C$43,0))/1000),\"\")","v":""},{"$f":"IFERROR(IF(OR($C$144=FALSE,LEFT($B140,3)<>\"NOX\"),BZ55*INDEX('Damage costs'!$U$16:$U$43,MATCH($B140,'Damage costs'!$C$16:$C$43,0))/1000,BZ55*INDEX('Damage costs'!$Y$16:$Y$43,MATCH($B140,'Damage costs'!$C$16:$C$43,0))/1000),\"\")","v":""},{"$f":"IFERROR(IF(OR($C$144=FALSE,LEFT($B140,3)<>\"NOX\"),CA55*INDEX('Damage costs'!$U$16:$U$43,MATCH($B140,'Damage costs'!$C$16:$C$43,0))/1000,CA55*INDEX('Damage costs'!$Y$16:$Y$43,MATCH($B140,'Damage costs'!$C$16:$C$43,0))/1000),\"\")","v":""},{"$f":"IFERROR(IF(OR($C$144=FALSE,LEFT($B140,3)<>\"NOX\"),CB55*INDEX('Damage costs'!$U$16:$U$43,MATCH($B140,'Damage costs'!$C$16:$C$43,0))/1000,CB55*INDEX('Damage costs'!$Y$16:$Y$43,MATCH($B140,'Damage costs'!$C$16:$C$43,0))/1000),\"\")","v":""},{"$f":"IFERROR(IF(OR($C$144=FALSE,LEFT($B140,3)<>\"NOX\"),CC55*INDEX('Damage costs'!$U$16:$U$43,MATCH($B140,'Damage costs'!$C$16:$C$43,0))/1000,CC55*INDEX('Damage costs'!$Y$16:$Y$43,MATCH($B140,'Damage costs'!$C$16:$C$43,0))/1000),\"\")","v":""},{"$f":"IFERROR(IF(OR($C$144=FALSE,LEFT($B140,3)<>\"NOX\"),CD55*INDEX('Damage costs'!$U$16:$U$43,MATCH($B140,'Damage costs'!$C$16:$C$43,0))/1000,CD55*INDEX('Damage costs'!$Y$16:$Y$43,MATCH($B140,'Damage costs'!$C$16:$C$43,0))/1000),\"\")","v":""},{"$f":"IFERROR(IF(OR($C$144=FALSE,LEFT($B140,3)<>\"NOX\"),CE55*INDEX('Damage costs'!$U$16:$U$43,MATCH($B140,'Damage costs'!$C$16:$C$43,0))/1000,CE55*INDEX('Damage costs'!$Y$16:$Y$43,MATCH($B140,'Damage costs'!$C$16:$C$43,0))/1000),\"\")","v":""},{"$f":"IFERROR(IF(OR($C$144=FALSE,LEFT($B140,3)<>\"NOX\"),CF55*INDEX('Damage costs'!$U$16:$U$43,MATCH($B140,'Damage costs'!$C$16:$C$43,0))/1000,CF55*INDEX('Damage costs'!$Y$16:$Y$43,MATCH($B140,'Damage costs'!$C$16:$C$43,0))/1000),\"\")","v":""},{"$f":"IFERROR(IF(OR($C$144=FALSE,LEFT($B140,3)<>\"NOX\"),CG55*INDEX('Damage costs'!$U$16:$U$43,MATCH($B140,'Damage costs'!$C$16:$C$43,0))/1000,CG55*INDEX('Damage costs'!$Y$16:$Y$43,MATCH($B140,'Damage costs'!$C$16:$C$43,0))/1000),\"\")","v":""},{"$f":"IFERROR(IF(OR($C$144=FALSE,LEFT($B140,3)<>\"NOX\"),CH55*INDEX('Damage costs'!$U$16:$U$43,MATCH($B140,'Damage costs'!$C$16:$C$43,0))/1000,CH55*INDEX('Damage costs'!$Y$16:$Y$43,MATCH($B140,'Damage costs'!$C$16:$C$43,0))/1000),\"\")","v":""},{"$f":"IFERROR(IF(OR($C$144=FALSE,LEFT($B140,3)<>\"NOX\"),CI55*INDEX('Damage costs'!$U$16:$U$43,MATCH($B140,'Damage costs'!$C$16:$C$43,0))/1000,CI55*INDEX('Damage costs'!$Y$16:$Y$43,MATCH($B140,'Damage costs'!$C$16:$C$43,0))/1000),\"\")","v":""},{"$f":"IFERROR(IF(OR($C$144=FALSE,LEFT($B140,3)<>\"NOX\"),CJ55*INDEX('Damage costs'!$U$16:$U$43,MATCH($B140,'Damage costs'!$C$16:$C$43,0))/1000,CJ55*INDEX('Damage costs'!$Y$16:$Y$43,MATCH($B140,'Damage costs'!$C$16:$C$43,0))/1000),\"\")","v":""},{"$f":"IFERROR(IF(OR($C$144=FALSE,LEFT($B140,3)<>\"NOX\"),CK55*INDEX('Damage costs'!$U$16:$U$43,MATCH($B140,'Damage costs'!$C$16:$C$43,0))/1000,CK55*INDEX('Damage costs'!$Y$16:$Y$43,MATCH($B140,'Damage costs'!$C$16:$C$43,0))/1000),\"\")","v":""},{"$f":"IFERROR(IF(OR($C$144=FALSE,LEFT($B140,3)<>\"NOX\"),CL55*INDEX('Damage costs'!$U$16:$U$43,MATCH($B140,'Damage costs'!$C$16:$C$43,0))/1000,CL55*INDEX('Damage costs'!$Y$16:$Y$43,MATCH($B140,'Damage costs'!$C$16:$C$43,0))/1000),\"\")","v":""},{"$f":"IFERROR(IF(OR($C$144=FALSE,LEFT($B140,3)<>\"NOX\"),CM55*INDEX('Damage costs'!$U$16:$U$43,MATCH($B140,'Damage costs'!$C$16:$C$43,0))/1000,CM55*INDEX('Damage costs'!$Y$16:$Y$43,MATCH($B140,'Damage costs'!$C$16:$C$43,0))/1000),\"\")","v":""},{"$f":"IFERROR(IF(OR($C$144=FALSE,LEFT($B140,3)<>\"NOX\"),CN55*INDEX('Damage costs'!$U$16:$U$43,MATCH($B140,'Damage costs'!$C$16:$C$43,0))/1000,CN55*INDEX('Damage costs'!$Y$16:$Y$43,MATCH($B140,'Damage costs'!$C$16:$C$43,0))/1000),\"\")","v":""},{"$f":"IFERROR(IF(OR($C$144=FALSE,LEFT($B140,3)<>\"NOX\"),CO55*INDEX('Damage costs'!$U$16:$U$43,MATCH($B140,'Damage costs'!$C$16:$C$43,0))/1000,CO55*INDEX('Damage costs'!$Y$16:$Y$43,MATCH($B140,'Damage costs'!$C$16:$C$43,0))/1000),\"\")","v":""},{"$f":"IFERROR(IF(OR($C$144=FALSE,LEFT($B140,3)<>\"NOX\"),CP55*INDEX('Damage costs'!$U$16:$U$43,MATCH($B140,'Damage costs'!$C$16:$C$43,0))/1000,CP55*INDEX('Damage costs'!$Y$16:$Y$43,MATCH($B140,'Damage costs'!$C$16:$C$43,0))/1000),\"\")","v":""},{"$f":"IFERROR(IF(OR($C$144=FALSE,LEFT($B140,3)<>\"NOX\"),CQ55*INDEX('Damage costs'!$U$16:$U$43,MATCH($B140,'Damage costs'!$C$16:$C$43,0))/1000,CQ55*INDEX('Damage costs'!$Y$16:$Y$43,MATCH($B140,'Damage costs'!$C$16:$C$43,0))/1000),\"\")","v":""},{"$f":"IFERROR(IF(OR($C$144=FALSE,LEFT($B140,3)<>\"NOX\"),CR55*INDEX('Damage costs'!$U$16:$U$43,MATCH($B140,'Damage costs'!$C$16:$C$43,0))/1000,CR55*INDEX('Damage costs'!$Y$16:$Y$43,MATCH($B140,'Damage costs'!$C$16:$C$43,0))/1000),\"\")","v":""},{"$f":"IFERROR(IF(OR($C$144=FALSE,LEFT($B140,3)<>\"NOX\"),CS55*INDEX('Damage costs'!$U$16:$U$43,MATCH($B140,'Damage costs'!$C$16:$C$43,0))/1000,CS55*INDEX('Damage costs'!$Y$16:$Y$43,MATCH($B140,'Damage costs'!$C$16:$C$43,0))/1000),\"\")","v":""},{"$f":"IFERROR(IF(OR($C$144=FALSE,LEFT($B140,3)<>\"NOX\"),CT55*INDEX('Damage costs'!$U$16:$U$43,MATCH($B140,'Damage costs'!$C$16:$C$43,0))/1000,CT55*INDEX('Damage costs'!$Y$16:$Y$43,MATCH($B140,'Damage costs'!$C$16:$C$43,0))/1000),\"\")","v":""},{"$f":"IFERROR(IF(OR($C$144=FALSE,LEFT($B140,3)<>\"NOX\"),CU55*INDEX('Damage costs'!$U$16:$U$43,MATCH($B140,'Damage costs'!$C$16:$C$43,0))/1000,CU55*INDEX('Damage costs'!$Y$16:$Y$43,MATCH($B140,'Damage costs'!$C$16:$C$43,0))/1000),\"\")","v":""},{"$f":"IFERROR(IF(OR($C$144=FALSE,LEFT($B140,3)<>\"NOX\"),CV55*INDEX('Damage costs'!$U$16:$U$43,MATCH($B140,'Damage costs'!$C$16:$C$43,0))/1000,CV55*INDEX('Damage costs'!$Y$16:$Y$43,MATCH($B140,'Damage costs'!$C$16:$C$43,0))/1000),\"\")","v":""},{"$f":"IFERROR(IF(OR($C$144=FALSE,LEFT($B140,3)<>\"NOX\"),CW55*INDEX('Damage costs'!$U$16:$U$43,MATCH($B140,'Damage costs'!$C$16:$C$43,0))/1000,CW55*INDEX('Damage costs'!$Y$16:$Y$43,MATCH($B140,'Damage costs'!$C$16:$C$43,0))/1000),\"\")","v":""},{"$f":"IFERROR(IF(OR($C$144=FALSE,LEFT($B140,3)<>\"NOX\"),CX55*INDEX('Damage costs'!$U$16:$U$43,MATCH($B140,'Damage costs'!$C$16:$C$43,0))/1000,CX55*INDEX('Damage costs'!$Y$16:$Y$43,MATCH($B140,'Damage costs'!$C$16:$C$43,0))/1000),\"\")","v":""},{"$f":"IFERROR(IF(OR($C$144=FALSE,LEFT($B140,3)<>\"NOX\"),CY55*INDEX('Damage costs'!$U$16:$U$43,MATCH($B140,'Damage costs'!$C$16:$C$43,0))/1000,CY55*INDEX('Damage costs'!$Y$16:$Y$43,MATCH($B140,'Damage costs'!$C$16:$C$43,0))/1000),\"\")","v":""}]
[null,0,"£000's",{"$f":"IFERROR(IF(OR($C$144=FALSE,LEFT($B141,3)<>\"NOX\"),D56*INDEX('Damage costs'!$U$16:$U$43,MATCH($B141,'Damage costs'!$C$16:$C$43,0))/1000,D56*INDEX('Damage costs'!$Y$16:$Y$43,MATCH($B141,'Damage costs'!$C$16:$C$43,0))/1000),\"\")","v":""},{"$f":"IFERROR(IF(OR($C$144=FALSE,LEFT($B141,3)<>\"NOX\"),E56*INDEX('Damage costs'!$U$16:$U$43,MATCH($B141,'Damage costs'!$C$16:$C$43,0))/1000,E56*INDEX('Damage costs'!$Y$16:$Y$43,MATCH($B141,'Damage costs'!$C$16:$C$43,0))/1000),\"\")","v":""},{"$f":"IFERROR(IF(OR($C$144=FALSE,LEFT($B141,3)<>\"NOX\"),F56*INDEX('Damage costs'!$U$16:$U$43,MATCH($B141,'Damage costs'!$C$16:$C$43,0))/1000,F56*INDEX('Damage costs'!$Y$16:$Y$43,MATCH($B141,'Damage costs'!$C$16:$C$43,0))/1000),\"\")","v":""},{"$f":"IFERROR(IF(OR($C$144=FALSE,LEFT($B141,3)<>\"NOX\"),G56*INDEX('Damage costs'!$U$16:$U$43,MATCH($B141,'Damage costs'!$C$16:$C$43,0))/1000,G56*INDEX('Damage costs'!$Y$16:$Y$43,MATCH($B141,'Damage costs'!$C$16:$C$43,0))/1000),\"\")","v":""},{"$f":"IFERROR(IF(OR($C$144=FALSE,LEFT($B141,3)<>\"NOX\"),H56*INDEX('Damage costs'!$U$16:$U$43,MATCH($B141,'Damage costs'!$C$16:$C$43,0))/1000,H56*INDEX('Damage costs'!$Y$16:$Y$43,MATCH($B141,'Damage costs'!$C$16:$C$43,0))/1000),\"\")","v":""},{"$f":"IFERROR(IF(OR($C$144=FALSE,LEFT($B141,3)<>\"NOX\"),I56*INDEX('Damage costs'!$U$16:$U$43,MATCH($B141,'Damage costs'!$C$16:$C$43,0))/1000,I56*INDEX('Damage costs'!$Y$16:$Y$43,MATCH($B141,'Damage costs'!$C$16:$C$43,0))/1000),\"\")","v":""},{"$f":"IFERROR(IF(OR($C$144=FALSE,LEFT($B141,3)<>\"NOX\"),J56*INDEX('Damage costs'!$U$16:$U$43,MATCH($B141,'Damage costs'!$C$16:$C$43,0))/1000,J56*INDEX('Damage costs'!$Y$16:$Y$43,MATCH($B141,'Damage costs'!$C$16:$C$43,0))/1000),\"\")","v":""},{"$f":"IFERROR(IF(OR($C$144=FALSE,LEFT($B141,3)<>\"NOX\"),K56*INDEX('Damage costs'!$U$16:$U$43,MATCH($B141,'Damage costs'!$C$16:$C$43,0))/1000,K56*INDEX('Damage costs'!$Y$16:$Y$43,MATCH($B141,'Damage costs'!$C$16:$C$43,0))/1000),\"\")","v":""},{"$f":"IFERROR(IF(OR($C$144=FALSE,LEFT($B141,3)<>\"NOX\"),L56*INDEX('Damage costs'!$U$16:$U$43,MATCH($B141,'Damage costs'!$C$16:$C$43,0))/1000,L56*INDEX('Damage costs'!$Y$16:$Y$43,MATCH($B141,'Damage costs'!$C$16:$C$43,0))/1000),\"\")","v":""},{"$f":"IFERROR(IF(OR($C$144=FALSE,LEFT($B141,3)<>\"NOX\"),M56*INDEX('Damage costs'!$U$16:$U$43,MATCH($B141,'Damage costs'!$C$16:$C$43,0))/1000,M56*INDEX('Damage costs'!$Y$16:$Y$43,MATCH($B141,'Damage costs'!$C$16:$C$43,0))/1000),\"\")","v":""},{"$f":"IFERROR(IF(OR($C$144=FALSE,LEFT($B141,3)<>\"NOX\"),N56*INDEX('Damage costs'!$U$16:$U$43,MATCH($B141,'Damage costs'!$C$16:$C$43,0))/1000,N56*INDEX('Damage costs'!$Y$16:$Y$43,MATCH($B141,'Damage costs'!$C$16:$C$43,0))/1000),\"\")","v":""},{"$f":"IFERROR(IF(OR($C$144=FALSE,LEFT($B141,3)<>\"NOX\"),O56*INDEX('Damage costs'!$U$16:$U$43,MATCH($B141,'Damage costs'!$C$16:$C$43,0))/1000,O56*INDEX('Damage costs'!$Y$16:$Y$43,MATCH($B141,'Damage costs'!$C$16:$C$43,0))/1000),\"\")","v":""},{"$f":"IFERROR(IF(OR($C$144=FALSE,LEFT($B141,3)<>\"NOX\"),P56*INDEX('Damage costs'!$U$16:$U$43,MATCH($B141,'Damage costs'!$C$16:$C$43,0))/1000,P56*INDEX('Damage costs'!$Y$16:$Y$43,MATCH($B141,'Damage costs'!$C$16:$C$43,0))/1000),\"\")","v":""},{"$f":"IFERROR(IF(OR($C$144=FALSE,LEFT($B141,3)<>\"NOX\"),Q56*INDEX('Damage costs'!$U$16:$U$43,MATCH($B141,'Damage costs'!$C$16:$C$43,0))/1000,Q56*INDEX('Damage costs'!$Y$16:$Y$43,MATCH($B141,'Damage costs'!$C$16:$C$43,0))/1000),\"\")","v":""},{"$f":"IFERROR(IF(OR($C$144=FALSE,LEFT($B141,3)<>\"NOX\"),R56*INDEX('Damage costs'!$U$16:$U$43,MATCH($B141,'Damage costs'!$C$16:$C$43,0))/1000,R56*INDEX('Damage costs'!$Y$16:$Y$43,MATCH($B141,'Damage costs'!$C$16:$C$43,0))/1000),\"\")","v":""},{"$f":"IFERROR(IF(OR($C$144=FALSE,LEFT($B141,3)<>\"NOX\"),S56*INDEX('Damage costs'!$U$16:$U$43,MATCH($B141,'Damage costs'!$C$16:$C$43,0))/1000,S56*INDEX('Damage costs'!$Y$16:$Y$43,MATCH($B141,'Damage costs'!$C$16:$C$43,0))/1000),\"\")","v":""},{"$f":"IFERROR(IF(OR($C$144=FALSE,LEFT($B141,3)<>\"NOX\"),T56*INDEX('Damage costs'!$U$16:$U$43,MATCH($B141,'Damage costs'!$C$16:$C$43,0))/1000,T56*INDEX('Damage costs'!$Y$16:$Y$43,MATCH($B141,'Damage costs'!$C$16:$C$43,0))/1000),\"\")","v":""},{"$f":"IFERROR(IF(OR($C$144=FALSE,LEFT($B141,3)<>\"NOX\"),U56*INDEX('Damage costs'!$U$16:$U$43,MATCH($B141,'Damage costs'!$C$16:$C$43,0))/1000,U56*INDEX('Damage costs'!$Y$16:$Y$43,MATCH($B141,'Damage costs'!$C$16:$C$43,0))/1000),\"\")","v":""},{"$f":"IFERROR(IF(OR($C$144=FALSE,LEFT($B141,3)<>\"NOX\"),V56*INDEX('Damage costs'!$U$16:$U$43,MATCH($B141,'Damage costs'!$C$16:$C$43,0))/1000,V56*INDEX('Damage costs'!$Y$16:$Y$43,MATCH($B141,'Damage costs'!$C$16:$C$43,0))/1000),\"\")","v":""},{"$f":"IFERROR(IF(OR($C$144=FALSE,LEFT($B141,3)<>\"NOX\"),W56*INDEX('Damage costs'!$U$16:$U$43,MATCH($B141,'Damage costs'!$C$16:$C$43,0))/1000,W56*INDEX('Damage costs'!$Y$16:$Y$43,MATCH($B141,'Damage costs'!$C$16:$C$43,0))/1000),\"\")","v":""},{"$f":"IFERROR(IF(OR($C$144=FALSE,LEFT($B141,3)<>\"NOX\"),X56*INDEX('Damage costs'!$U$16:$U$43,MATCH($B141,'Damage costs'!$C$16:$C$43,0))/1000,X56*INDEX('Damage costs'!$Y$16:$Y$43,MATCH($B141,'Damage costs'!$C$16:$C$43,0))/1000),\"\")","v":""},{"$f":"IFERROR(IF(OR($C$144=FALSE,LEFT($B141,3)<>\"NOX\"),Y56*INDEX('Damage costs'!$U$16:$U$43,MATCH($B141,'Damage costs'!$C$16:$C$43,0))/1000,Y56*INDEX('Damage costs'!$Y$16:$Y$43,MATCH($B141,'Damage costs'!$C$16:$C$43,0))/1000),\"\")","v":""},{"$f":"IFERROR(IF(OR($C$144=FALSE,LEFT($B141,3)<>\"NOX\"),Z56*INDEX('Damage costs'!$U$16:$U$43,MATCH($B141,'Damage costs'!$C$16:$C$43,0))/1000,Z56*INDEX('Damage costs'!$Y$16:$Y$43,MATCH($B141,'Damage costs'!$C$16:$C$43,0))/1000),\"\")","v":""},{"$f":"IFERROR(IF(OR($C$144=FALSE,LEFT($B141,3)<>\"NOX\"),AA56*INDEX('Damage costs'!$U$16:$U$43,MATCH($B141,'Damage costs'!$C$16:$C$43,0))/1000,AA56*INDEX('Damage costs'!$Y$16:$Y$43,MATCH($B141,'Damage costs'!$C$16:$C$43,0))/1000),\"\")","v":""},{"$f":"IFERROR(IF(OR($C$144=FALSE,LEFT($B141,3)<>\"NOX\"),AB56*INDEX('Damage costs'!$U$16:$U$43,MATCH($B141,'Damage costs'!$C$16:$C$43,0))/1000,AB56*INDEX('Damage costs'!$Y$16:$Y$43,MATCH($B141,'Damage costs'!$C$16:$C$43,0))/1000),\"\")","v":""},{"$f":"IFERROR(IF(OR($C$144=FALSE,LEFT($B141,3)<>\"NOX\"),AC56*INDEX('Damage costs'!$U$16:$U$43,MATCH($B141,'Damage costs'!$C$16:$C$43,0))/1000,AC56*INDEX('Damage costs'!$Y$16:$Y$43,MATCH($B141,'Damage costs'!$C$16:$C$43,0))/1000),\"\")","v":""},{"$f":"IFERROR(IF(OR($C$144=FALSE,LEFT($B141,3)<>\"NOX\"),AD56*INDEX('Damage costs'!$U$16:$U$43,MATCH($B141,'Damage costs'!$C$16:$C$43,0))/1000,AD56*INDEX('Damage costs'!$Y$16:$Y$43,MATCH($B141,'Damage costs'!$C$16:$C$43,0))/1000),\"\")","v":""},{"$f":"IFERROR(IF(OR($C$144=FALSE,LEFT($B141,3)<>\"NOX\"),AE56*INDEX('Damage costs'!$U$16:$U$43,MATCH($B141,'Damage costs'!$C$16:$C$43,0))/1000,AE56*INDEX('Damage costs'!$Y$16:$Y$43,MATCH($B141,'Damage costs'!$C$16:$C$43,0))/1000),\"\")","v":""},{"$f":"IFERROR(IF(OR($C$144=FALSE,LEFT($B141,3)<>\"NOX\"),AF56*INDEX('Damage costs'!$U$16:$U$43,MATCH($B141,'Damage costs'!$C$16:$C$43,0))/1000,AF56*INDEX('Damage costs'!$Y$16:$Y$43,MATCH($B141,'Damage costs'!$C$16:$C$43,0))/1000),\"\")","v":""},{"$f":"IFERROR(IF(OR($C$144=FALSE,LEFT($B141,3)<>\"NOX\"),AG56*INDEX('Damage costs'!$U$16:$U$43,MATCH($B141,'Damage costs'!$C$16:$C$43,0))/1000,AG56*INDEX('Damage costs'!$Y$16:$Y$43,MATCH($B141,'Damage costs'!$C$16:$C$43,0))/1000),\"\")","v":""},{"$f":"IFERROR(IF(OR($C$144=FALSE,LEFT($B141,3)<>\"NOX\"),AH56*INDEX('Damage costs'!$U$16:$U$43,MATCH($B141,'Damage costs'!$C$16:$C$43,0))/1000,AH56*INDEX('Damage costs'!$Y$16:$Y$43,MATCH($B141,'Damage costs'!$C$16:$C$43,0))/1000),\"\")","v":""},{"$f":"IFERROR(IF(OR($C$144=FALSE,LEFT($B141,3)<>\"NOX\"),AI56*INDEX('Damage costs'!$U$16:$U$43,MATCH($B141,'Damage costs'!$C$16:$C$43,0))/1000,AI56*INDEX('Damage costs'!$Y$16:$Y$43,MATCH($B141,'Damage costs'!$C$16:$C$43,0))/1000),\"\")","v":""},{"$f":"IFERROR(IF(OR($C$144=FALSE,LEFT($B141,3)<>\"NOX\"),AJ56*INDEX('Damage costs'!$U$16:$U$43,MATCH($B141,'Damage costs'!$C$16:$C$43,0))/1000,AJ56*INDEX('Damage costs'!$Y$16:$Y$43,MATCH($B141,'Damage costs'!$C$16:$C$43,0))/1000),\"\")","v":""},{"$f":"IFERROR(IF(OR($C$144=FALSE,LEFT($B141,3)<>\"NOX\"),AK56*INDEX('Damage costs'!$U$16:$U$43,MATCH($B141,'Damage costs'!$C$16:$C$43,0))/1000,AK56*INDEX('Damage costs'!$Y$16:$Y$43,MATCH($B141,'Damage costs'!$C$16:$C$43,0))/1000),\"\")","v":""},{"$f":"IFERROR(IF(OR($C$144=FALSE,LEFT($B141,3)<>\"NOX\"),AL56*INDEX('Damage costs'!$U$16:$U$43,MATCH($B141,'Damage costs'!$C$16:$C$43,0))/1000,AL56*INDEX('Damage costs'!$Y$16:$Y$43,MATCH($B141,'Damage costs'!$C$16:$C$43,0))/1000),\"\")","v":""},{"$f":"IFERROR(IF(OR($C$144=FALSE,LEFT($B141,3)<>\"NOX\"),AM56*INDEX('Damage costs'!$U$16:$U$43,MATCH($B141,'Damage costs'!$C$16:$C$43,0))/1000,AM56*INDEX('Damage costs'!$Y$16:$Y$43,MATCH($B141,'Damage costs'!$C$16:$C$43,0))/1000),\"\")","v":""},{"$f":"IFERROR(IF(OR($C$144=FALSE,LEFT($B141,3)<>\"NOX\"),AN56*INDEX('Damage costs'!$U$16:$U$43,MATCH($B141,'Damage costs'!$C$16:$C$43,0))/1000,AN56*INDEX('Damage costs'!$Y$16:$Y$43,MATCH($B141,'Damage costs'!$C$16:$C$43,0))/1000),\"\")","v":""},{"$f":"IFERROR(IF(OR($C$144=FALSE,LEFT($B141,3)<>\"NOX\"),AO56*INDEX('Damage costs'!$U$16:$U$43,MATCH($B141,'Damage costs'!$C$16:$C$43,0))/1000,AO56*INDEX('Damage costs'!$Y$16:$Y$43,MATCH($B141,'Damage costs'!$C$16:$C$43,0))/1000),\"\")","v":""},{"$f":"IFERROR(IF(OR($C$144=FALSE,LEFT($B141,3)<>\"NOX\"),AP56*INDEX('Damage costs'!$U$16:$U$43,MATCH($B141,'Damage costs'!$C$16:$C$43,0))/1000,AP56*INDEX('Damage costs'!$Y$16:$Y$43,MATCH($B141,'Damage costs'!$C$16:$C$43,0))/1000),\"\")","v":""},{"$f":"IFERROR(IF(OR($C$144=FALSE,LEFT($B141,3)<>\"NOX\"),AQ56*INDEX('Damage costs'!$U$16:$U$43,MATCH($B141,'Damage costs'!$C$16:$C$43,0))/1000,AQ56*INDEX('Damage costs'!$Y$16:$Y$43,MATCH($B141,'Damage costs'!$C$16:$C$43,0))/1000),\"\")","v":""},{"$f":"IFERROR(IF(OR($C$144=FALSE,LEFT($B141,3)<>\"NOX\"),AR56*INDEX('Damage costs'!$U$16:$U$43,MATCH($B141,'Damage costs'!$C$16:$C$43,0))/1000,AR56*INDEX('Damage costs'!$Y$16:$Y$43,MATCH($B141,'Damage costs'!$C$16:$C$43,0))/1000),\"\")","v":""},{"$f":"IFERROR(IF(OR($C$144=FALSE,LEFT($B141,3)<>\"NOX\"),AS56*INDEX('Damage costs'!$U$16:$U$43,MATCH($B141,'Damage costs'!$C$16:$C$43,0))/1000,AS56*INDEX('Damage costs'!$Y$16:$Y$43,MATCH($B141,'Damage costs'!$C$16:$C$43,0))/1000),\"\")","v":""},{"$f":"IFERROR(IF(OR($C$144=FALSE,LEFT($B141,3)<>\"NOX\"),AT56*INDEX('Damage costs'!$U$16:$U$43,MATCH($B141,'Damage costs'!$C$16:$C$43,0))/1000,AT56*INDEX('Damage costs'!$Y$16:$Y$43,MATCH($B141,'Damage costs'!$C$16:$C$43,0))/1000),\"\")","v":""},{"$f":"IFERROR(IF(OR($C$144=FALSE,LEFT($B141,3)<>\"NOX\"),AU56*INDEX('Damage costs'!$U$16:$U$43,MATCH($B141,'Damage costs'!$C$16:$C$43,0))/1000,AU56*INDEX('Damage costs'!$Y$16:$Y$43,MATCH($B141,'Damage costs'!$C$16:$C$43,0))/1000),\"\")","v":""},{"$f":"IFERROR(IF(OR($C$144=FALSE,LEFT($B141,3)<>\"NOX\"),AV56*INDEX('Damage costs'!$U$16:$U$43,MATCH($B141,'Damage costs'!$C$16:$C$43,0))/1000,AV56*INDEX('Damage costs'!$Y$16:$Y$43,MATCH($B141,'Damage costs'!$C$16:$C$43,0))/1000),\"\")","v":""},{"$f":"IFERROR(IF(OR($C$144=FALSE,LEFT($B141,3)<>\"NOX\"),AW56*INDEX('Damage costs'!$U$16:$U$43,MATCH($B141,'Damage costs'!$C$16:$C$43,0))/1000,AW56*INDEX('Damage costs'!$Y$16:$Y$43,MATCH($B141,'Damage costs'!$C$16:$C$43,0))/1000),\"\")","v":""},{"$f":"IFERROR(IF(OR($C$144=FALSE,LEFT($B141,3)<>\"NOX\"),AX56*INDEX('Damage costs'!$U$16:$U$43,MATCH($B141,'Damage costs'!$C$16:$C$43,0))/1000,AX56*INDEX('Damage costs'!$Y$16:$Y$43,MATCH($B141,'Damage costs'!$C$16:$C$43,0))/1000),\"\")","v":""},{"$f":"IFERROR(IF(OR($C$144=FALSE,LEFT($B141,3)<>\"NOX\"),AY56*INDEX('Damage costs'!$U$16:$U$43,MATCH($B141,'Damage costs'!$C$16:$C$43,0))/1000,AY56*INDEX('Damage costs'!$Y$16:$Y$43,MATCH($B141,'Damage costs'!$C$16:$C$43,0))/1000),\"\")","v":""},{"$f":"IFERROR(IF(OR($C$144=FALSE,LEFT($B141,3)<>\"NOX\"),AZ56*INDEX('Damage costs'!$U$16:$U$43,MATCH($B141,'Damage costs'!$C$16:$C$43,0))/1000,AZ56*INDEX('Damage costs'!$Y$16:$Y$43,MATCH($B141,'Damage costs'!$C$16:$C$43,0))/1000),\"\")","v":""},{"$f":"IFERROR(IF(OR($C$144=FALSE,LEFT($B141,3)<>\"NOX\"),BA56*INDEX('Damage costs'!$U$16:$U$43,MATCH($B141,'Damage costs'!$C$16:$C$43,0))/1000,BA56*INDEX('Damage costs'!$Y$16:$Y$43,MATCH($B141,'Damage costs'!$C$16:$C$43,0))/1000),\"\")","v":""},{"$f":"IFERROR(IF(OR($C$144=FALSE,LEFT($B141,3)<>\"NOX\"),BB56*INDEX('Damage costs'!$U$16:$U$43,MATCH($B141,'Damage costs'!$C$16:$C$43,0))/1000,BB56*INDEX('Damage costs'!$Y$16:$Y$43,MATCH($B141,'Damage costs'!$C$16:$C$43,0))/1000),\"\")","v":""},{"$f":"IFERROR(IF(OR($C$144=FALSE,LEFT($B141,3)<>\"NOX\"),BC56*INDEX('Damage costs'!$U$16:$U$43,MATCH($B141,'Damage costs'!$C$16:$C$43,0))/1000,BC56*INDEX('Damage costs'!$Y$16:$Y$43,MATCH($B141,'Damage costs'!$C$16:$C$43,0))/1000),\"\")","v":""},{"$f":"IFERROR(IF(OR($C$144=FALSE,LEFT($B141,3)<>\"NOX\"),BD56*INDEX('Damage costs'!$U$16:$U$43,MATCH($B141,'Damage costs'!$C$16:$C$43,0))/1000,BD56*INDEX('Damage costs'!$Y$16:$Y$43,MATCH($B141,'Damage costs'!$C$16:$C$43,0))/1000),\"\")","v":""},{"$f":"IFERROR(IF(OR($C$144=FALSE,LEFT($B141,3)<>\"NOX\"),BE56*INDEX('Damage costs'!$U$16:$U$43,MATCH($B141,'Damage costs'!$C$16:$C$43,0))/1000,BE56*INDEX('Damage costs'!$Y$16:$Y$43,MATCH($B141,'Damage costs'!$C$16:$C$43,0))/1000),\"\")","v":""},{"$f":"IFERROR(IF(OR($C$144=FALSE,LEFT($B141,3)<>\"NOX\"),BF56*INDEX('Damage costs'!$U$16:$U$43,MATCH($B141,'Damage costs'!$C$16:$C$43,0))/1000,BF56*INDEX('Damage costs'!$Y$16:$Y$43,MATCH($B141,'Damage costs'!$C$16:$C$43,0))/1000),\"\")","v":""},{"$f":"IFERROR(IF(OR($C$144=FALSE,LEFT($B141,3)<>\"NOX\"),BG56*INDEX('Damage costs'!$U$16:$U$43,MATCH($B141,'Damage costs'!$C$16:$C$43,0))/1000,BG56*INDEX('Damage costs'!$Y$16:$Y$43,MATCH($B141,'Damage costs'!$C$16:$C$43,0))/1000),\"\")","v":""},{"$f":"IFERROR(IF(OR($C$144=FALSE,LEFT($B141,3)<>\"NOX\"),BH56*INDEX('Damage costs'!$U$16:$U$43,MATCH($B141,'Damage costs'!$C$16:$C$43,0))/1000,BH56*INDEX('Damage costs'!$Y$16:$Y$43,MATCH($B141,'Damage costs'!$C$16:$C$43,0))/1000),\"\")","v":""},{"$f":"IFERROR(IF(OR($C$144=FALSE,LEFT($B141,3)<>\"NOX\"),BI56*INDEX('Damage costs'!$U$16:$U$43,MATCH($B141,'Damage costs'!$C$16:$C$43,0))/1000,BI56*INDEX('Damage costs'!$Y$16:$Y$43,MATCH($B141,'Damage costs'!$C$16:$C$43,0))/1000),\"\")","v":""},{"$f":"IFERROR(IF(OR($C$144=FALSE,LEFT($B141,3)<>\"NOX\"),BJ56*INDEX('Damage costs'!$U$16:$U$43,MATCH($B141,'Damage costs'!$C$16:$C$43,0))/1000,BJ56*INDEX('Damage costs'!$Y$16:$Y$43,MATCH($B141,'Damage costs'!$C$16:$C$43,0))/1000),\"\")","v":""},{"$f":"IFERROR(IF(OR($C$144=FALSE,LEFT($B141,3)<>\"NOX\"),BK56*INDEX('Damage costs'!$U$16:$U$43,MATCH($B141,'Damage costs'!$C$16:$C$43,0))/1000,BK56*INDEX('Damage costs'!$Y$16:$Y$43,MATCH($B141,'Damage costs'!$C$16:$C$43,0))/1000),\"\")","v":""},{"$f":"IFERROR(IF(OR($C$144=FALSE,LEFT($B141,3)<>\"NOX\"),BL56*INDEX('Damage costs'!$U$16:$U$43,MATCH($B141,'Damage costs'!$C$16:$C$43,0))/1000,BL56*INDEX('Damage costs'!$Y$16:$Y$43,MATCH($B141,'Damage costs'!$C$16:$C$43,0))/1000),\"\")","v":""},{"$f":"IFERROR(IF(OR($C$144=FALSE,LEFT($B141,3)<>\"NOX\"),BM56*INDEX('Damage costs'!$U$16:$U$43,MATCH($B141,'Damage costs'!$C$16:$C$43,0))/1000,BM56*INDEX('Damage costs'!$Y$16:$Y$43,MATCH($B141,'Damage costs'!$C$16:$C$43,0))/1000),\"\")","v":""},{"$f":"IFERROR(IF(OR($C$144=FALSE,LEFT($B141,3)<>\"NOX\"),BN56*INDEX('Damage costs'!$U$16:$U$43,MATCH($B141,'Damage costs'!$C$16:$C$43,0))/1000,BN56*INDEX('Damage costs'!$Y$16:$Y$43,MATCH($B141,'Damage costs'!$C$16:$C$43,0))/1000),\"\")","v":""},{"$f":"IFERROR(IF(OR($C$144=FALSE,LEFT($B141,3)<>\"NOX\"),BO56*INDEX('Damage costs'!$U$16:$U$43,MATCH($B141,'Damage costs'!$C$16:$C$43,0))/1000,BO56*INDEX('Damage costs'!$Y$16:$Y$43,MATCH($B141,'Damage costs'!$C$16:$C$43,0))/1000),\"\")","v":""},{"$f":"IFERROR(IF(OR($C$144=FALSE,LEFT($B141,3)<>\"NOX\"),BP56*INDEX('Damage costs'!$U$16:$U$43,MATCH($B141,'Damage costs'!$C$16:$C$43,0))/1000,BP56*INDEX('Damage costs'!$Y$16:$Y$43,MATCH($B141,'Damage costs'!$C$16:$C$43,0))/1000),\"\")","v":""},{"$f":"IFERROR(IF(OR($C$144=FALSE,LEFT($B141,3)<>\"NOX\"),BQ56*INDEX('Damage costs'!$U$16:$U$43,MATCH($B141,'Damage costs'!$C$16:$C$43,0))/1000,BQ56*INDEX('Damage costs'!$Y$16:$Y$43,MATCH($B141,'Damage costs'!$C$16:$C$43,0))/1000),\"\")","v":""},{"$f":"IFERROR(IF(OR($C$144=FALSE,LEFT($B141,3)<>\"NOX\"),BR56*INDEX('Damage costs'!$U$16:$U$43,MATCH($B141,'Damage costs'!$C$16:$C$43,0))/1000,BR56*INDEX('Damage costs'!$Y$16:$Y$43,MATCH($B141,'Damage costs'!$C$16:$C$43,0))/1000),\"\")","v":""},{"$f":"IFERROR(IF(OR($C$144=FALSE,LEFT($B141,3)<>\"NOX\"),BS56*INDEX('Damage costs'!$U$16:$U$43,MATCH($B141,'Damage costs'!$C$16:$C$43,0))/1000,BS56*INDEX('Damage costs'!$Y$16:$Y$43,MATCH($B141,'Damage costs'!$C$16:$C$43,0))/1000),\"\")","v":""},{"$f":"IFERROR(IF(OR($C$144=FALSE,LEFT($B141,3)<>\"NOX\"),BT56*INDEX('Damage costs'!$U$16:$U$43,MATCH($B141,'Damage costs'!$C$16:$C$43,0))/1000,BT56*INDEX('Damage costs'!$Y$16:$Y$43,MATCH($B141,'Damage costs'!$C$16:$C$43,0))/1000),\"\")","v":""},{"$f":"IFERROR(IF(OR($C$144=FALSE,LEFT($B141,3)<>\"NOX\"),BU56*INDEX('Damage costs'!$U$16:$U$43,MATCH($B141,'Damage costs'!$C$16:$C$43,0))/1000,BU56*INDEX('Damage costs'!$Y$16:$Y$43,MATCH($B141,'Damage costs'!$C$16:$C$43,0))/1000),\"\")","v":""},{"$f":"IFERROR(IF(OR($C$144=FALSE,LEFT($B141,3)<>\"NOX\"),BV56*INDEX('Damage costs'!$U$16:$U$43,MATCH($B141,'Damage costs'!$C$16:$C$43,0))/1000,BV56*INDEX('Damage costs'!$Y$16:$Y$43,MATCH($B141,'Damage costs'!$C$16:$C$43,0))/1000),\"\")","v":""},{"$f":"IFERROR(IF(OR($C$144=FALSE,LEFT($B141,3)<>\"NOX\"),BW56*INDEX('Damage costs'!$U$16:$U$43,MATCH($B141,'Damage costs'!$C$16:$C$43,0))/1000,BW56*INDEX('Damage costs'!$Y$16:$Y$43,MATCH($B141,'Damage costs'!$C$16:$C$43,0))/1000),\"\")","v":""},{"$f":"IFERROR(IF(OR($C$144=FALSE,LEFT($B141,3)<>\"NOX\"),BX56*INDEX('Damage costs'!$U$16:$U$43,MATCH($B141,'Damage costs'!$C$16:$C$43,0))/1000,BX56*INDEX('Damage costs'!$Y$16:$Y$43,MATCH($B141,'Damage costs'!$C$16:$C$43,0))/1000),\"\")","v":""},{"$f":"IFERROR(IF(OR($C$144=FALSE,LEFT($B141,3)<>\"NOX\"),BY56*INDEX('Damage costs'!$U$16:$U$43,MATCH($B141,'Damage costs'!$C$16:$C$43,0))/1000,BY56*INDEX('Damage costs'!$Y$16:$Y$43,MATCH($B141,'Damage costs'!$C$16:$C$43,0))/1000),\"\")","v":""},{"$f":"IFERROR(IF(OR($C$144=FALSE,LEFT($B141,3)<>\"NOX\"),BZ56*INDEX('Damage costs'!$U$16:$U$43,MATCH($B141,'Damage costs'!$C$16:$C$43,0))/1000,BZ56*INDEX('Damage costs'!$Y$16:$Y$43,MATCH($B141,'Damage costs'!$C$16:$C$43,0))/1000),\"\")","v":""},{"$f":"IFERROR(IF(OR($C$144=FALSE,LEFT($B141,3)<>\"NOX\"),CA56*INDEX('Damage costs'!$U$16:$U$43,MATCH($B141,'Damage costs'!$C$16:$C$43,0))/1000,CA56*INDEX('Damage costs'!$Y$16:$Y$43,MATCH($B141,'Damage costs'!$C$16:$C$43,0))/1000),\"\")","v":""},{"$f":"IFERROR(IF(OR($C$144=FALSE,LEFT($B141,3)<>\"NOX\"),CB56*INDEX('Damage costs'!$U$16:$U$43,MATCH($B141,'Damage costs'!$C$16:$C$43,0))/1000,CB56*INDEX('Damage costs'!$Y$16:$Y$43,MATCH($B141,'Damage costs'!$C$16:$C$43,0))/1000),\"\")","v":""},{"$f":"IFERROR(IF(OR($C$144=FALSE,LEFT($B141,3)<>\"NOX\"),CC56*INDEX('Damage costs'!$U$16:$U$43,MATCH($B141,'Damage costs'!$C$16:$C$43,0))/1000,CC56*INDEX('Damage costs'!$Y$16:$Y$43,MATCH($B141,'Damage costs'!$C$16:$C$43,0))/1000),\"\")","v":""},{"$f":"IFERROR(IF(OR($C$144=FALSE,LEFT($B141,3)<>\"NOX\"),CD56*INDEX('Damage costs'!$U$16:$U$43,MATCH($B141,'Damage costs'!$C$16:$C$43,0))/1000,CD56*INDEX('Damage costs'!$Y$16:$Y$43,MATCH($B141,'Damage costs'!$C$16:$C$43,0))/1000),\"\")","v":""},{"$f":"IFERROR(IF(OR($C$144=FALSE,LEFT($B141,3)<>\"NOX\"),CE56*INDEX('Damage costs'!$U$16:$U$43,MATCH($B141,'Damage costs'!$C$16:$C$43,0))/1000,CE56*INDEX('Damage costs'!$Y$16:$Y$43,MATCH($B141,'Damage costs'!$C$16:$C$43,0))/1000),\"\")","v":""},{"$f":"IFERROR(IF(OR($C$144=FALSE,LEFT($B141,3)<>\"NOX\"),CF56*INDEX('Damage costs'!$U$16:$U$43,MATCH($B141,'Damage costs'!$C$16:$C$43,0))/1000,CF56*INDEX('Damage costs'!$Y$16:$Y$43,MATCH($B141,'Damage costs'!$C$16:$C$43,0))/1000),\"\")","v":""},{"$f":"IFERROR(IF(OR($C$144=FALSE,LEFT($B141,3)<>\"NOX\"),CG56*INDEX('Damage costs'!$U$16:$U$43,MATCH($B141,'Damage costs'!$C$16:$C$43,0))/1000,CG56*INDEX('Damage costs'!$Y$16:$Y$43,MATCH($B141,'Damage costs'!$C$16:$C$43,0))/1000),\"\")","v":""},{"$f":"IFERROR(IF(OR($C$144=FALSE,LEFT($B141,3)<>\"NOX\"),CH56*INDEX('Damage costs'!$U$16:$U$43,MATCH($B141,'Damage costs'!$C$16:$C$43,0))/1000,CH56*INDEX('Damage costs'!$Y$16:$Y$43,MATCH($B141,'Damage costs'!$C$16:$C$43,0))/1000),\"\")","v":""},{"$f":"IFERROR(IF(OR($C$144=FALSE,LEFT($B141,3)<>\"NOX\"),CI56*INDEX('Damage costs'!$U$16:$U$43,MATCH($B141,'Damage costs'!$C$16:$C$43,0))/1000,CI56*INDEX('Damage costs'!$Y$16:$Y$43,MATCH($B141,'Damage costs'!$C$16:$C$43,0))/1000),\"\")","v":""},{"$f":"IFERROR(IF(OR($C$144=FALSE,LEFT($B141,3)<>\"NOX\"),CJ56*INDEX('Damage costs'!$U$16:$U$43,MATCH($B141,'Damage costs'!$C$16:$C$43,0))/1000,CJ56*INDEX('Damage costs'!$Y$16:$Y$43,MATCH($B141,'Damage costs'!$C$16:$C$43,0))/1000),\"\")","v":""},{"$f":"IFERROR(IF(OR($C$144=FALSE,LEFT($B141,3)<>\"NOX\"),CK56*INDEX('Damage costs'!$U$16:$U$43,MATCH($B141,'Damage costs'!$C$16:$C$43,0))/1000,CK56*INDEX('Damage costs'!$Y$16:$Y$43,MATCH($B141,'Damage costs'!$C$16:$C$43,0))/1000),\"\")","v":""},{"$f":"IFERROR(IF(OR($C$144=FALSE,LEFT($B141,3)<>\"NOX\"),CL56*INDEX('Damage costs'!$U$16:$U$43,MATCH($B141,'Damage costs'!$C$16:$C$43,0))/1000,CL56*INDEX('Damage costs'!$Y$16:$Y$43,MATCH($B141,'Damage costs'!$C$16:$C$43,0))/1000),\"\")","v":""},{"$f":"IFERROR(IF(OR($C$144=FALSE,LEFT($B141,3)<>\"NOX\"),CM56*INDEX('Damage costs'!$U$16:$U$43,MATCH($B141,'Damage costs'!$C$16:$C$43,0))/1000,CM56*INDEX('Damage costs'!$Y$16:$Y$43,MATCH($B141,'Damage costs'!$C$16:$C$43,0))/1000),\"\")","v":""},{"$f":"IFERROR(IF(OR($C$144=FALSE,LEFT($B141,3)<>\"NOX\"),CN56*INDEX('Damage costs'!$U$16:$U$43,MATCH($B141,'Damage costs'!$C$16:$C$43,0))/1000,CN56*INDEX('Damage costs'!$Y$16:$Y$43,MATCH($B141,'Damage costs'!$C$16:$C$43,0))/1000),\"\")","v":""},{"$f":"IFERROR(IF(OR($C$144=FALSE,LEFT($B141,3)<>\"NOX\"),CO56*INDEX('Damage costs'!$U$16:$U$43,MATCH($B141,'Damage costs'!$C$16:$C$43,0))/1000,CO56*INDEX('Damage costs'!$Y$16:$Y$43,MATCH($B141,'Damage costs'!$C$16:$C$43,0))/1000),\"\")","v":""},{"$f":"IFERROR(IF(OR($C$144=FALSE,LEFT($B141,3)<>\"NOX\"),CP56*INDEX('Damage costs'!$U$16:$U$43,MATCH($B141,'Damage costs'!$C$16:$C$43,0))/1000,CP56*INDEX('Damage costs'!$Y$16:$Y$43,MATCH($B141,'Damage costs'!$C$16:$C$43,0))/1000),\"\")","v":""},{"$f":"IFERROR(IF(OR($C$144=FALSE,LEFT($B141,3)<>\"NOX\"),CQ56*INDEX('Damage costs'!$U$16:$U$43,MATCH($B141,'Damage costs'!$C$16:$C$43,0))/1000,CQ56*INDEX('Damage costs'!$Y$16:$Y$43,MATCH($B141,'Damage costs'!$C$16:$C$43,0))/1000),\"\")","v":""},{"$f":"IFERROR(IF(OR($C$144=FALSE,LEFT($B141,3)<>\"NOX\"),CR56*INDEX('Damage costs'!$U$16:$U$43,MATCH($B141,'Damage costs'!$C$16:$C$43,0))/1000,CR56*INDEX('Damage costs'!$Y$16:$Y$43,MATCH($B141,'Damage costs'!$C$16:$C$43,0))/1000),\"\")","v":""},{"$f":"IFERROR(IF(OR($C$144=FALSE,LEFT($B141,3)<>\"NOX\"),CS56*INDEX('Damage costs'!$U$16:$U$43,MATCH($B141,'Damage costs'!$C$16:$C$43,0))/1000,CS56*INDEX('Damage costs'!$Y$16:$Y$43,MATCH($B141,'Damage costs'!$C$16:$C$43,0))/1000),\"\")","v":""},{"$f":"IFERROR(IF(OR($C$144=FALSE,LEFT($B141,3)<>\"NOX\"),CT56*INDEX('Damage costs'!$U$16:$U$43,MATCH($B141,'Damage costs'!$C$16:$C$43,0))/1000,CT56*INDEX('Damage costs'!$Y$16:$Y$43,MATCH($B141,'Damage costs'!$C$16:$C$43,0))/1000),\"\")","v":""},{"$f":"IFERROR(IF(OR($C$144=FALSE,LEFT($B141,3)<>\"NOX\"),CU56*INDEX('Damage costs'!$U$16:$U$43,MATCH($B141,'Damage costs'!$C$16:$C$43,0))/1000,CU56*INDEX('Damage costs'!$Y$16:$Y$43,MATCH($B141,'Damage costs'!$C$16:$C$43,0))/1000),\"\")","v":""},{"$f":"IFERROR(IF(OR($C$144=FALSE,LEFT($B141,3)<>\"NOX\"),CV56*INDEX('Damage costs'!$U$16:$U$43,MATCH($B141,'Damage costs'!$C$16:$C$43,0))/1000,CV56*INDEX('Damage costs'!$Y$16:$Y$43,MATCH($B141,'Damage costs'!$C$16:$C$43,0))/1000),\"\")","v":""},{"$f":"IFERROR(IF(OR($C$144=FALSE,LEFT($B141,3)<>\"NOX\"),CW56*INDEX('Damage costs'!$U$16:$U$43,MATCH($B141,'Damage costs'!$C$16:$C$43,0))/1000,CW56*INDEX('Damage costs'!$Y$16:$Y$43,MATCH($B141,'Damage costs'!$C$16:$C$43,0))/1000),\"\")","v":""},{"$f":"IFERROR(IF(OR($C$144=FALSE,LEFT($B141,3)<>\"NOX\"),CX56*INDEX('Damage costs'!$U$16:$U$43,MATCH($B141,'Damage costs'!$C$16:$C$43,0))/1000,CX56*INDEX('Damage costs'!$Y$16:$Y$43,MATCH($B141,'Damage costs'!$C$16:$C$43,0))/1000),\"\")","v":""},{"$f":"IFERROR(IF(OR($C$144=FALSE,LEFT($B141,3)<>\"NOX\"),CY56*INDEX('Damage costs'!$U$16:$U$43,MATCH($B141,'Damage costs'!$C$16:$C$43,0))/1000,CY56*INDEX('Damage costs'!$Y$16:$Y$43,MATCH($B141,'Damage costs'!$C$16:$C$43,0))/1000),\"\")","v":""}]
[null,0,"£000's",{"$f":"IFERROR(IF(OR($C$144=FALSE,LEFT($B142,3)<>\"NOX\"),D57*INDEX('Damage costs'!$U$16:$U$43,MATCH($B142,'Damage costs'!$C$16:$C$43,0))/1000,D57*INDEX('Damage costs'!$Y$16:$Y$43,MATCH($B142,'Damage costs'!$C$16:$C$43,0))/1000),\"\")","v":""},{"$f":"IFERROR(IF(OR($C$144=FALSE,LEFT($B142,3)<>\"NOX\"),E57*INDEX('Damage costs'!$U$16:$U$43,MATCH($B142,'Damage costs'!$C$16:$C$43,0))/1000,E57*INDEX('Damage costs'!$Y$16:$Y$43,MATCH($B142,'Damage costs'!$C$16:$C$43,0))/1000),\"\")","v":""},{"$f":"IFERROR(IF(OR($C$144=FALSE,LEFT($B142,3)<>\"NOX\"),F57*INDEX('Damage costs'!$U$16:$U$43,MATCH($B142,'Damage costs'!$C$16:$C$43,0))/1000,F57*INDEX('Damage costs'!$Y$16:$Y$43,MATCH($B142,'Damage costs'!$C$16:$C$43,0))/1000),\"\")","v":""},{"$f":"IFERROR(IF(OR($C$144=FALSE,LEFT($B142,3)<>\"NOX\"),G57*INDEX('Damage costs'!$U$16:$U$43,MATCH($B142,'Damage costs'!$C$16:$C$43,0))/1000,G57*INDEX('Damage costs'!$Y$16:$Y$43,MATCH($B142,'Damage costs'!$C$16:$C$43,0))/1000),\"\")","v":""},{"$f":"IFERROR(IF(OR($C$144=FALSE,LEFT($B142,3)<>\"NOX\"),H57*INDEX('Damage costs'!$U$16:$U$43,MATCH($B142,'Damage costs'!$C$16:$C$43,0))/1000,H57*INDEX('Damage costs'!$Y$16:$Y$43,MATCH($B142,'Damage costs'!$C$16:$C$43,0))/1000),\"\")","v":""},{"$f":"IFERROR(IF(OR($C$144=FALSE,LEFT($B142,3)<>\"NOX\"),I57*INDEX('Damage costs'!$U$16:$U$43,MATCH($B142,'Damage costs'!$C$16:$C$43,0))/1000,I57*INDEX('Damage costs'!$Y$16:$Y$43,MATCH($B142,'Damage costs'!$C$16:$C$43,0))/1000),\"\")","v":""},{"$f":"IFERROR(IF(OR($C$144=FALSE,LEFT($B142,3)<>\"NOX\"),J57*INDEX('Damage costs'!$U$16:$U$43,MATCH($B142,'Damage costs'!$C$16:$C$43,0))/1000,J57*INDEX('Damage costs'!$Y$16:$Y$43,MATCH($B142,'Damage costs'!$C$16:$C$43,0))/1000),\"\")","v":""},{"$f":"IFERROR(IF(OR($C$144=FALSE,LEFT($B142,3)<>\"NOX\"),K57*INDEX('Damage costs'!$U$16:$U$43,MATCH($B142,'Damage costs'!$C$16:$C$43,0))/1000,K57*INDEX('Damage costs'!$Y$16:$Y$43,MATCH($B142,'Damage costs'!$C$16:$C$43,0))/1000),\"\")","v":""},{"$f":"IFERROR(IF(OR($C$144=FALSE,LEFT($B142,3)<>\"NOX\"),L57*INDEX('Damage costs'!$U$16:$U$43,MATCH($B142,'Damage costs'!$C$16:$C$43,0))/1000,L57*INDEX('Damage costs'!$Y$16:$Y$43,MATCH($B142,'Damage costs'!$C$16:$C$43,0))/1000),\"\")","v":""},{"$f":"IFERROR(IF(OR($C$144=FALSE,LEFT($B142,3)<>\"NOX\"),M57*INDEX('Damage costs'!$U$16:$U$43,MATCH($B142,'Damage costs'!$C$16:$C$43,0))/1000,M57*INDEX('Damage costs'!$Y$16:$Y$43,MATCH($B142,'Damage costs'!$C$16:$C$43,0))/1000),\"\")","v":""},{"$f":"IFERROR(IF(OR($C$144=FALSE,LEFT($B142,3)<>\"NOX\"),N57*INDEX('Damage costs'!$U$16:$U$43,MATCH($B142,'Damage costs'!$C$16:$C$43,0))/1000,N57*INDEX('Damage costs'!$Y$16:$Y$43,MATCH($B142,'Damage costs'!$C$16:$C$43,0))/1000),\"\")","v":""},{"$f":"IFERROR(IF(OR($C$144=FALSE,LEFT($B142,3)<>\"NOX\"),O57*INDEX('Damage costs'!$U$16:$U$43,MATCH($B142,'Damage costs'!$C$16:$C$43,0))/1000,O57*INDEX('Damage costs'!$Y$16:$Y$43,MATCH($B142,'Damage costs'!$C$16:$C$43,0))/1000),\"\")","v":""},{"$f":"IFERROR(IF(OR($C$144=FALSE,LEFT($B142,3)<>\"NOX\"),P57*INDEX('Damage costs'!$U$16:$U$43,MATCH($B142,'Damage costs'!$C$16:$C$43,0))/1000,P57*INDEX('Damage costs'!$Y$16:$Y$43,MATCH($B142,'Damage costs'!$C$16:$C$43,0))/1000),\"\")","v":""},{"$f":"IFERROR(IF(OR($C$144=FALSE,LEFT($B142,3)<>\"NOX\"),Q57*INDEX('Damage costs'!$U$16:$U$43,MATCH($B142,'Damage costs'!$C$16:$C$43,0))/1000,Q57*INDEX('Damage costs'!$Y$16:$Y$43,MATCH($B142,'Damage costs'!$C$16:$C$43,0))/1000),\"\")","v":""},{"$f":"IFERROR(IF(OR($C$144=FALSE,LEFT($B142,3)<>\"NOX\"),R57*INDEX('Damage costs'!$U$16:$U$43,MATCH($B142,'Damage costs'!$C$16:$C$43,0))/1000,R57*INDEX('Damage costs'!$Y$16:$Y$43,MATCH($B142,'Damage costs'!$C$16:$C$43,0))/1000),\"\")","v":""},{"$f":"IFERROR(IF(OR($C$144=FALSE,LEFT($B142,3)<>\"NOX\"),S57*INDEX('Damage costs'!$U$16:$U$43,MATCH($B142,'Damage costs'!$C$16:$C$43,0))/1000,S57*INDEX('Damage costs'!$Y$16:$Y$43,MATCH($B142,'Damage costs'!$C$16:$C$43,0))/1000),\"\")","v":""},{"$f":"IFERROR(IF(OR($C$144=FALSE,LEFT($B142,3)<>\"NOX\"),T57*INDEX('Damage costs'!$U$16:$U$43,MATCH($B142,'Damage costs'!$C$16:$C$43,0))/1000,T57*INDEX('Damage costs'!$Y$16:$Y$43,MATCH($B142,'Damage costs'!$C$16:$C$43,0))/1000),\"\")","v":""},{"$f":"IFERROR(IF(OR($C$144=FALSE,LEFT($B142,3)<>\"NOX\"),U57*INDEX('Damage costs'!$U$16:$U$43,MATCH($B142,'Damage costs'!$C$16:$C$43,0))/1000,U57*INDEX('Damage costs'!$Y$16:$Y$43,MATCH($B142,'Damage costs'!$C$16:$C$43,0))/1000),\"\")","v":""},{"$f":"IFERROR(IF(OR($C$144=FALSE,LEFT($B142,3)<>\"NOX\"),V57*INDEX('Damage costs'!$U$16:$U$43,MATCH($B142,'Damage costs'!$C$16:$C$43,0))/1000,V57*INDEX('Damage costs'!$Y$16:$Y$43,MATCH($B142,'Damage costs'!$C$16:$C$43,0))/1000),\"\")","v":""},{"$f":"IFERROR(IF(OR($C$144=FALSE,LEFT($B142,3)<>\"NOX\"),W57*INDEX('Damage costs'!$U$16:$U$43,MATCH($B142,'Damage costs'!$C$16:$C$43,0))/1000,W57*INDEX('Damage costs'!$Y$16:$Y$43,MATCH($B142,'Damage costs'!$C$16:$C$43,0))/1000),\"\")","v":""},{"$f":"IFERROR(IF(OR($C$144=FALSE,LEFT($B142,3)<>\"NOX\"),X57*INDEX('Damage costs'!$U$16:$U$43,MATCH($B142,'Damage costs'!$C$16:$C$43,0))/1000,X57*INDEX('Damage costs'!$Y$16:$Y$43,MATCH($B142,'Damage costs'!$C$16:$C$43,0))/1000),\"\")","v":""},{"$f":"IFERROR(IF(OR($C$144=FALSE,LEFT($B142,3)<>\"NOX\"),Y57*INDEX('Damage costs'!$U$16:$U$43,MATCH($B142,'Damage costs'!$C$16:$C$43,0))/1000,Y57*INDEX('Damage costs'!$Y$16:$Y$43,MATCH($B142,'Damage costs'!$C$16:$C$43,0))/1000),\"\")","v":""},{"$f":"IFERROR(IF(OR($C$144=FALSE,LEFT($B142,3)<>\"NOX\"),Z57*INDEX('Damage costs'!$U$16:$U$43,MATCH($B142,'Damage costs'!$C$16:$C$43,0))/1000,Z57*INDEX('Damage costs'!$Y$16:$Y$43,MATCH($B142,'Damage costs'!$C$16:$C$43,0))/1000),\"\")","v":""},{"$f":"IFERROR(IF(OR($C$144=FALSE,LEFT($B142,3)<>\"NOX\"),AA57*INDEX('Damage costs'!$U$16:$U$43,MATCH($B142,'Damage costs'!$C$16:$C$43,0))/1000,AA57*INDEX('Damage costs'!$Y$16:$Y$43,MATCH($B142,'Damage costs'!$C$16:$C$43,0))/1000),\"\")","v":""},{"$f":"IFERROR(IF(OR($C$144=FALSE,LEFT($B142,3)<>\"NOX\"),AB57*INDEX('Damage costs'!$U$16:$U$43,MATCH($B142,'Damage costs'!$C$16:$C$43,0))/1000,AB57*INDEX('Damage costs'!$Y$16:$Y$43,MATCH($B142,'Damage costs'!$C$16:$C$43,0))/1000),\"\")","v":""},{"$f":"IFERROR(IF(OR($C$144=FALSE,LEFT($B142,3)<>\"NOX\"),AC57*INDEX('Damage costs'!$U$16:$U$43,MATCH($B142,'Damage costs'!$C$16:$C$43,0))/1000,AC57*INDEX('Damage costs'!$Y$16:$Y$43,MATCH($B142,'Damage costs'!$C$16:$C$43,0))/1000),\"\")","v":""},{"$f":"IFERROR(IF(OR($C$144=FALSE,LEFT($B142,3)<>\"NOX\"),AD57*INDEX('Damage costs'!$U$16:$U$43,MATCH($B142,'Damage costs'!$C$16:$C$43,0))/1000,AD57*INDEX('Damage costs'!$Y$16:$Y$43,MATCH($B142,'Damage costs'!$C$16:$C$43,0))/1000),\"\")","v":""},{"$f":"IFERROR(IF(OR($C$144=FALSE,LEFT($B142,3)<>\"NOX\"),AE57*INDEX('Damage costs'!$U$16:$U$43,MATCH($B142,'Damage costs'!$C$16:$C$43,0))/1000,AE57*INDEX('Damage costs'!$Y$16:$Y$43,MATCH($B142,'Damage costs'!$C$16:$C$43,0))/1000),\"\")","v":""},{"$f":"IFERROR(IF(OR($C$144=FALSE,LEFT($B142,3)<>\"NOX\"),AF57*INDEX('Damage costs'!$U$16:$U$43,MATCH($B142,'Damage costs'!$C$16:$C$43,0))/1000,AF57*INDEX('Damage costs'!$Y$16:$Y$43,MATCH($B142,'Damage costs'!$C$16:$C$43,0))/1000),\"\")","v":""},{"$f":"IFERROR(IF(OR($C$144=FALSE,LEFT($B142,3)<>\"NOX\"),AG57*INDEX('Damage costs'!$U$16:$U$43,MATCH($B142,'Damage costs'!$C$16:$C$43,0))/1000,AG57*INDEX('Damage costs'!$Y$16:$Y$43,MATCH($B142,'Damage costs'!$C$16:$C$43,0))/1000),\"\")","v":""},{"$f":"IFERROR(IF(OR($C$144=FALSE,LEFT($B142,3)<>\"NOX\"),AH57*INDEX('Damage costs'!$U$16:$U$43,MATCH($B142,'Damage costs'!$C$16:$C$43,0))/1000,AH57*INDEX('Damage costs'!$Y$16:$Y$43,MATCH($B142,'Damage costs'!$C$16:$C$43,0))/1000),\"\")","v":""},{"$f":"IFERROR(IF(OR($C$144=FALSE,LEFT($B142,3)<>\"NOX\"),AI57*INDEX('Damage costs'!$U$16:$U$43,MATCH($B142,'Damage costs'!$C$16:$C$43,0))/1000,AI57*INDEX('Damage costs'!$Y$16:$Y$43,MATCH($B142,'Damage costs'!$C$16:$C$43,0))/1000),\"\")","v":""},{"$f":"IFERROR(IF(OR($C$144=FALSE,LEFT($B142,3)<>\"NOX\"),AJ57*INDEX('Damage costs'!$U$16:$U$43,MATCH($B142,'Damage costs'!$C$16:$C$43,0))/1000,AJ57*INDEX('Damage costs'!$Y$16:$Y$43,MATCH($B142,'Damage costs'!$C$16:$C$43,0))/1000),\"\")","v":""},{"$f":"IFERROR(IF(OR($C$144=FALSE,LEFT($B142,3)<>\"NOX\"),AK57*INDEX('Damage costs'!$U$16:$U$43,MATCH($B142,'Damage costs'!$C$16:$C$43,0))/1000,AK57*INDEX('Damage costs'!$Y$16:$Y$43,MATCH($B142,'Damage costs'!$C$16:$C$43,0))/1000),\"\")","v":""},{"$f":"IFERROR(IF(OR($C$144=FALSE,LEFT($B142,3)<>\"NOX\"),AL57*INDEX('Damage costs'!$U$16:$U$43,MATCH($B142,'Damage costs'!$C$16:$C$43,0))/1000,AL57*INDEX('Damage costs'!$Y$16:$Y$43,MATCH($B142,'Damage costs'!$C$16:$C$43,0))/1000),\"\")","v":""},{"$f":"IFERROR(IF(OR($C$144=FALSE,LEFT($B142,3)<>\"NOX\"),AM57*INDEX('Damage costs'!$U$16:$U$43,MATCH($B142,'Damage costs'!$C$16:$C$43,0))/1000,AM57*INDEX('Damage costs'!$Y$16:$Y$43,MATCH($B142,'Damage costs'!$C$16:$C$43,0))/1000),\"\")","v":""},{"$f":"IFERROR(IF(OR($C$144=FALSE,LEFT($B142,3)<>\"NOX\"),AN57*INDEX('Damage costs'!$U$16:$U$43,MATCH($B142,'Damage costs'!$C$16:$C$43,0))/1000,AN57*INDEX('Damage costs'!$Y$16:$Y$43,MATCH($B142,'Damage costs'!$C$16:$C$43,0))/1000),\"\")","v":""},{"$f":"IFERROR(IF(OR($C$144=FALSE,LEFT($B142,3)<>\"NOX\"),AO57*INDEX('Damage costs'!$U$16:$U$43,MATCH($B142,'Damage costs'!$C$16:$C$43,0))/1000,AO57*INDEX('Damage costs'!$Y$16:$Y$43,MATCH($B142,'Damage costs'!$C$16:$C$43,0))/1000),\"\")","v":""},{"$f":"IFERROR(IF(OR($C$144=FALSE,LEFT($B142,3)<>\"NOX\"),AP57*INDEX('Damage costs'!$U$16:$U$43,MATCH($B142,'Damage costs'!$C$16:$C$43,0))/1000,AP57*INDEX('Damage costs'!$Y$16:$Y$43,MATCH($B142,'Damage costs'!$C$16:$C$43,0))/1000),\"\")","v":""},{"$f":"IFERROR(IF(OR($C$144=FALSE,LEFT($B142,3)<>\"NOX\"),AQ57*INDEX('Damage costs'!$U$16:$U$43,MATCH($B142,'Damage costs'!$C$16:$C$43,0))/1000,AQ57*INDEX('Damage costs'!$Y$16:$Y$43,MATCH($B142,'Damage costs'!$C$16:$C$43,0))/1000),\"\")","v":""},{"$f":"IFERROR(IF(OR($C$144=FALSE,LEFT($B142,3)<>\"NOX\"),AR57*INDEX('Damage costs'!$U$16:$U$43,MATCH($B142,'Damage costs'!$C$16:$C$43,0))/1000,AR57*INDEX('Damage costs'!$Y$16:$Y$43,MATCH($B142,'Damage costs'!$C$16:$C$43,0))/1000),\"\")","v":""},{"$f":"IFERROR(IF(OR($C$144=FALSE,LEFT($B142,3)<>\"NOX\"),AS57*INDEX('Damage costs'!$U$16:$U$43,MATCH($B142,'Damage costs'!$C$16:$C$43,0))/1000,AS57*INDEX('Damage costs'!$Y$16:$Y$43,MATCH($B142,'Damage costs'!$C$16:$C$43,0))/1000),\"\")","v":""},{"$f":"IFERROR(IF(OR($C$144=FALSE,LEFT($B142,3)<>\"NOX\"),AT57*INDEX('Damage costs'!$U$16:$U$43,MATCH($B142,'Damage costs'!$C$16:$C$43,0))/1000,AT57*INDEX('Damage costs'!$Y$16:$Y$43,MATCH($B142,'Damage costs'!$C$16:$C$43,0))/1000),\"\")","v":""},{"$f":"IFERROR(IF(OR($C$144=FALSE,LEFT($B142,3)<>\"NOX\"),AU57*INDEX('Damage costs'!$U$16:$U$43,MATCH($B142,'Damage costs'!$C$16:$C$43,0))/1000,AU57*INDEX('Damage costs'!$Y$16:$Y$43,MATCH($B142,'Damage costs'!$C$16:$C$43,0))/1000),\"\")","v":""},{"$f":"IFERROR(IF(OR($C$144=FALSE,LEFT($B142,3)<>\"NOX\"),AV57*INDEX('Damage costs'!$U$16:$U$43,MATCH($B142,'Damage costs'!$C$16:$C$43,0))/1000,AV57*INDEX('Damage costs'!$Y$16:$Y$43,MATCH($B142,'Damage costs'!$C$16:$C$43,0))/1000),\"\")","v":""},{"$f":"IFERROR(IF(OR($C$144=FALSE,LEFT($B142,3)<>\"NOX\"),AW57*INDEX('Damage costs'!$U$16:$U$43,MATCH($B142,'Damage costs'!$C$16:$C$43,0))/1000,AW57*INDEX('Damage costs'!$Y$16:$Y$43,MATCH($B142,'Damage costs'!$C$16:$C$43,0))/1000),\"\")","v":""},{"$f":"IFERROR(IF(OR($C$144=FALSE,LEFT($B142,3)<>\"NOX\"),AX57*INDEX('Damage costs'!$U$16:$U$43,MATCH($B142,'Damage costs'!$C$16:$C$43,0))/1000,AX57*INDEX('Damage costs'!$Y$16:$Y$43,MATCH($B142,'Damage costs'!$C$16:$C$43,0))/1000),\"\")","v":""},{"$f":"IFERROR(IF(OR($C$144=FALSE,LEFT($B142,3)<>\"NOX\"),AY57*INDEX('Damage costs'!$U$16:$U$43,MATCH($B142,'Damage costs'!$C$16:$C$43,0))/1000,AY57*INDEX('Damage costs'!$Y$16:$Y$43,MATCH($B142,'Damage costs'!$C$16:$C$43,0))/1000),\"\")","v":""},{"$f":"IFERROR(IF(OR($C$144=FALSE,LEFT($B142,3)<>\"NOX\"),AZ57*INDEX('Damage costs'!$U$16:$U$43,MATCH($B142,'Damage costs'!$C$16:$C$43,0))/1000,AZ57*INDEX('Damage costs'!$Y$16:$Y$43,MATCH($B142,'Damage costs'!$C$16:$C$43,0))/1000),\"\")","v":""},{"$f":"IFERROR(IF(OR($C$144=FALSE,LEFT($B142,3)<>\"NOX\"),BA57*INDEX('Damage costs'!$U$16:$U$43,MATCH($B142,'Damage costs'!$C$16:$C$43,0))/1000,BA57*INDEX('Damage costs'!$Y$16:$Y$43,MATCH($B142,'Damage costs'!$C$16:$C$43,0))/1000),\"\")","v":""},{"$f":"IFERROR(IF(OR($C$144=FALSE,LEFT($B142,3)<>\"NOX\"),BB57*INDEX('Damage costs'!$U$16:$U$43,MATCH($B142,'Damage costs'!$C$16:$C$43,0))/1000,BB57*INDEX('Damage costs'!$Y$16:$Y$43,MATCH($B142,'Damage costs'!$C$16:$C$43,0))/1000),\"\")","v":""},{"$f":"IFERROR(IF(OR($C$144=FALSE,LEFT($B142,3)<>\"NOX\"),BC57*INDEX('Damage costs'!$U$16:$U$43,MATCH($B142,'Damage costs'!$C$16:$C$43,0))/1000,BC57*INDEX('Damage costs'!$Y$16:$Y$43,MATCH($B142,'Damage costs'!$C$16:$C$43,0))/1000),\"\")","v":""},{"$f":"IFERROR(IF(OR($C$144=FALSE,LEFT($B142,3)<>\"NOX\"),BD57*INDEX('Damage costs'!$U$16:$U$43,MATCH($B142,'Damage costs'!$C$16:$C$43,0))/1000,BD57*INDEX('Damage costs'!$Y$16:$Y$43,MATCH($B142,'Damage costs'!$C$16:$C$43,0))/1000),\"\")","v":""},{"$f":"IFERROR(IF(OR($C$144=FALSE,LEFT($B142,3)<>\"NOX\"),BE57*INDEX('Damage costs'!$U$16:$U$43,MATCH($B142,'Damage costs'!$C$16:$C$43,0))/1000,BE57*INDEX('Damage costs'!$Y$16:$Y$43,MATCH($B142,'Damage costs'!$C$16:$C$43,0))/1000),\"\")","v":""},{"$f":"IFERROR(IF(OR($C$144=FALSE,LEFT($B142,3)<>\"NOX\"),BF57*INDEX('Damage costs'!$U$16:$U$43,MATCH($B142,'Damage costs'!$C$16:$C$43,0))/1000,BF57*INDEX('Damage costs'!$Y$16:$Y$43,MATCH($B142,'Damage costs'!$C$16:$C$43,0))/1000),\"\")","v":""},{"$f":"IFERROR(IF(OR($C$144=FALSE,LEFT($B142,3)<>\"NOX\"),BG57*INDEX('Damage costs'!$U$16:$U$43,MATCH($B142,'Damage costs'!$C$16:$C$43,0))/1000,BG57*INDEX('Damage costs'!$Y$16:$Y$43,MATCH($B142,'Damage costs'!$C$16:$C$43,0))/1000),\"\")","v":""},{"$f":"IFERROR(IF(OR($C$144=FALSE,LEFT($B142,3)<>\"NOX\"),BH57*INDEX('Damage costs'!$U$16:$U$43,MATCH($B142,'Damage costs'!$C$16:$C$43,0))/1000,BH57*INDEX('Damage costs'!$Y$16:$Y$43,MATCH($B142,'Damage costs'!$C$16:$C$43,0))/1000),\"\")","v":""},{"$f":"IFERROR(IF(OR($C$144=FALSE,LEFT($B142,3)<>\"NOX\"),BI57*INDEX('Damage costs'!$U$16:$U$43,MATCH($B142,'Damage costs'!$C$16:$C$43,0))/1000,BI57*INDEX('Damage costs'!$Y$16:$Y$43,MATCH($B142,'Damage costs'!$C$16:$C$43,0))/1000),\"\")","v":""},{"$f":"IFERROR(IF(OR($C$144=FALSE,LEFT($B142,3)<>\"NOX\"),BJ57*INDEX('Damage costs'!$U$16:$U$43,MATCH($B142,'Damage costs'!$C$16:$C$43,0))/1000,BJ57*INDEX('Damage costs'!$Y$16:$Y$43,MATCH($B142,'Damage costs'!$C$16:$C$43,0))/1000),\"\")","v":""},{"$f":"IFERROR(IF(OR($C$144=FALSE,LEFT($B142,3)<>\"NOX\"),BK57*INDEX('Damage costs'!$U$16:$U$43,MATCH($B142,'Damage costs'!$C$16:$C$43,0))/1000,BK57*INDEX('Damage costs'!$Y$16:$Y$43,MATCH($B142,'Damage costs'!$C$16:$C$43,0))/1000),\"\")","v":""},{"$f":"IFERROR(IF(OR($C$144=FALSE,LEFT($B142,3)<>\"NOX\"),BL57*INDEX('Damage costs'!$U$16:$U$43,MATCH($B142,'Damage costs'!$C$16:$C$43,0))/1000,BL57*INDEX('Damage costs'!$Y$16:$Y$43,MATCH($B142,'Damage costs'!$C$16:$C$43,0))/1000),\"\")","v":""},{"$f":"IFERROR(IF(OR($C$144=FALSE,LEFT($B142,3)<>\"NOX\"),BM57*INDEX('Damage costs'!$U$16:$U$43,MATCH($B142,'Damage costs'!$C$16:$C$43,0))/1000,BM57*INDEX('Damage costs'!$Y$16:$Y$43,MATCH($B142,'Damage costs'!$C$16:$C$43,0))/1000),\"\")","v":""},{"$f":"IFERROR(IF(OR($C$144=FALSE,LEFT($B142,3)<>\"NOX\"),BN57*INDEX('Damage costs'!$U$16:$U$43,MATCH($B142,'Damage costs'!$C$16:$C$43,0))/1000,BN57*INDEX('Damage costs'!$Y$16:$Y$43,MATCH($B142,'Damage costs'!$C$16:$C$43,0))/1000),\"\")","v":""},{"$f":"IFERROR(IF(OR($C$144=FALSE,LEFT($B142,3)<>\"NOX\"),BO57*INDEX('Damage costs'!$U$16:$U$43,MATCH($B142,'Damage costs'!$C$16:$C$43,0))/1000,BO57*INDEX('Damage costs'!$Y$16:$Y$43,MATCH($B142,'Damage costs'!$C$16:$C$43,0))/1000),\"\")","v":""},{"$f":"IFERROR(IF(OR($C$144=FALSE,LEFT($B142,3)<>\"NOX\"),BP57*INDEX('Damage costs'!$U$16:$U$43,MATCH($B142,'Damage costs'!$C$16:$C$43,0))/1000,BP57*INDEX('Damage costs'!$Y$16:$Y$43,MATCH($B142,'Damage costs'!$C$16:$C$43,0))/1000),\"\")","v":""},{"$f":"IFERROR(IF(OR($C$144=FALSE,LEFT($B142,3)<>\"NOX\"),BQ57*INDEX('Damage costs'!$U$16:$U$43,MATCH($B142,'Damage costs'!$C$16:$C$43,0))/1000,BQ57*INDEX('Damage costs'!$Y$16:$Y$43,MATCH($B142,'Damage costs'!$C$16:$C$43,0))/1000),\"\")","v":""},{"$f":"IFERROR(IF(OR($C$144=FALSE,LEFT($B142,3)<>\"NOX\"),BR57*INDEX('Damage costs'!$U$16:$U$43,MATCH($B142,'Damage costs'!$C$16:$C$43,0))/1000,BR57*INDEX('Damage costs'!$Y$16:$Y$43,MATCH($B142,'Damage costs'!$C$16:$C$43,0))/1000),\"\")","v":""},{"$f":"IFERROR(IF(OR($C$144=FALSE,LEFT($B142,3)<>\"NOX\"),BS57*INDEX('Damage costs'!$U$16:$U$43,MATCH($B142,'Damage costs'!$C$16:$C$43,0))/1000,BS57*INDEX('Damage costs'!$Y$16:$Y$43,MATCH($B142,'Damage costs'!$C$16:$C$43,0))/1000),\"\")","v":""},{"$f":"IFERROR(IF(OR($C$144=FALSE,LEFT($B142,3)<>\"NOX\"),BT57*INDEX('Damage costs'!$U$16:$U$43,MATCH($B142,'Damage costs'!$C$16:$C$43,0))/1000,BT57*INDEX('Damage costs'!$Y$16:$Y$43,MATCH($B142,'Damage costs'!$C$16:$C$43,0))/1000),\"\")","v":""},{"$f":"IFERROR(IF(OR($C$144=FALSE,LEFT($B142,3)<>\"NOX\"),BU57*INDEX('Damage costs'!$U$16:$U$43,MATCH($B142,'Damage costs'!$C$16:$C$43,0))/1000,BU57*INDEX('Damage costs'!$Y$16:$Y$43,MATCH($B142,'Damage costs'!$C$16:$C$43,0))/1000),\"\")","v":""},{"$f":"IFERROR(IF(OR($C$144=FALSE,LEFT($B142,3)<>\"NOX\"),BV57*INDEX('Damage costs'!$U$16:$U$43,MATCH($B142,'Damage costs'!$C$16:$C$43,0))/1000,BV57*INDEX('Damage costs'!$Y$16:$Y$43,MATCH($B142,'Damage costs'!$C$16:$C$43,0))/1000),\"\")","v":""},{"$f":"IFERROR(IF(OR($C$144=FALSE,LEFT($B142,3)<>\"NOX\"),BW57*INDEX('Damage costs'!$U$16:$U$43,MATCH($B142,'Damage costs'!$C$16:$C$43,0))/1000,BW57*INDEX('Damage costs'!$Y$16:$Y$43,MATCH($B142,'Damage costs'!$C$16:$C$43,0))/1000),\"\")","v":""},{"$f":"IFERROR(IF(OR($C$144=FALSE,LEFT($B142,3)<>\"NOX\"),BX57*INDEX('Damage costs'!$U$16:$U$43,MATCH($B142,'Damage costs'!$C$16:$C$43,0))/1000,BX57*INDEX('Damage costs'!$Y$16:$Y$43,MATCH($B142,'Damage costs'!$C$16:$C$43,0))/1000),\"\")","v":""},{"$f":"IFERROR(IF(OR($C$144=FALSE,LEFT($B142,3)<>\"NOX\"),BY57*INDEX('Damage costs'!$U$16:$U$43,MATCH($B142,'Damage costs'!$C$16:$C$43,0))/1000,BY57*INDEX('Damage costs'!$Y$16:$Y$43,MATCH($B142,'Damage costs'!$C$16:$C$43,0))/1000),\"\")","v":""},{"$f":"IFERROR(IF(OR($C$144=FALSE,LEFT($B142,3)<>\"NOX\"),BZ57*INDEX('Damage costs'!$U$16:$U$43,MATCH($B142,'Damage costs'!$C$16:$C$43,0))/1000,BZ57*INDEX('Damage costs'!$Y$16:$Y$43,MATCH($B142,'Damage costs'!$C$16:$C$43,0))/1000),\"\")","v":""},{"$f":"IFERROR(IF(OR($C$144=FALSE,LEFT($B142,3)<>\"NOX\"),CA57*INDEX('Damage costs'!$U$16:$U$43,MATCH($B142,'Damage costs'!$C$16:$C$43,0))/1000,CA57*INDEX('Damage costs'!$Y$16:$Y$43,MATCH($B142,'Damage costs'!$C$16:$C$43,0))/1000),\"\")","v":""},{"$f":"IFERROR(IF(OR($C$144=FALSE,LEFT($B142,3)<>\"NOX\"),CB57*INDEX('Damage costs'!$U$16:$U$43,MATCH($B142,'Damage costs'!$C$16:$C$43,0))/1000,CB57*INDEX('Damage costs'!$Y$16:$Y$43,MATCH($B142,'Damage costs'!$C$16:$C$43,0))/1000),\"\")","v":""},{"$f":"IFERROR(IF(OR($C$144=FALSE,LEFT($B142,3)<>\"NOX\"),CC57*INDEX('Damage costs'!$U$16:$U$43,MATCH($B142,'Damage costs'!$C$16:$C$43,0))/1000,CC57*INDEX('Damage costs'!$Y$16:$Y$43,MATCH($B142,'Damage costs'!$C$16:$C$43,0))/1000),\"\")","v":""},{"$f":"IFERROR(IF(OR($C$144=FALSE,LEFT($B142,3)<>\"NOX\"),CD57*INDEX('Damage costs'!$U$16:$U$43,MATCH($B142,'Damage costs'!$C$16:$C$43,0))/1000,CD57*INDEX('Damage costs'!$Y$16:$Y$43,MATCH($B142,'Damage costs'!$C$16:$C$43,0))/1000),\"\")","v":""},{"$f":"IFERROR(IF(OR($C$144=FALSE,LEFT($B142,3)<>\"NOX\"),CE57*INDEX('Damage costs'!$U$16:$U$43,MATCH($B142,'Damage costs'!$C$16:$C$43,0))/1000,CE57*INDEX('Damage costs'!$Y$16:$Y$43,MATCH($B142,'Damage costs'!$C$16:$C$43,0))/1000),\"\")","v":""},{"$f":"IFERROR(IF(OR($C$144=FALSE,LEFT($B142,3)<>\"NOX\"),CF57*INDEX('Damage costs'!$U$16:$U$43,MATCH($B142,'Damage costs'!$C$16:$C$43,0))/1000,CF57*INDEX('Damage costs'!$Y$16:$Y$43,MATCH($B142,'Damage costs'!$C$16:$C$43,0))/1000),\"\")","v":""},{"$f":"IFERROR(IF(OR($C$144=FALSE,LEFT($B142,3)<>\"NOX\"),CG57*INDEX('Damage costs'!$U$16:$U$43,MATCH($B142,'Damage costs'!$C$16:$C$43,0))/1000,CG57*INDEX('Damage costs'!$Y$16:$Y$43,MATCH($B142,'Damage costs'!$C$16:$C$43,0))/1000),\"\")","v":""},{"$f":"IFERROR(IF(OR($C$144=FALSE,LEFT($B142,3)<>\"NOX\"),CH57*INDEX('Damage costs'!$U$16:$U$43,MATCH($B142,'Damage costs'!$C$16:$C$43,0))/1000,CH57*INDEX('Damage costs'!$Y$16:$Y$43,MATCH($B142,'Damage costs'!$C$16:$C$43,0))/1000),\"\")","v":""},{"$f":"IFERROR(IF(OR($C$144=FALSE,LEFT($B142,3)<>\"NOX\"),CI57*INDEX('Damage costs'!$U$16:$U$43,MATCH($B142,'Damage costs'!$C$16:$C$43,0))/1000,CI57*INDEX('Damage costs'!$Y$16:$Y$43,MATCH($B142,'Damage costs'!$C$16:$C$43,0))/1000),\"\")","v":""},{"$f":"IFERROR(IF(OR($C$144=FALSE,LEFT($B142,3)<>\"NOX\"),CJ57*INDEX('Damage costs'!$U$16:$U$43,MATCH($B142,'Damage costs'!$C$16:$C$43,0))/1000,CJ57*INDEX('Damage costs'!$Y$16:$Y$43,MATCH($B142,'Damage costs'!$C$16:$C$43,0))/1000),\"\")","v":""},{"$f":"IFERROR(IF(OR($C$144=FALSE,LEFT($B142,3)<>\"NOX\"),CK57*INDEX('Damage costs'!$U$16:$U$43,MATCH($B142,'Damage costs'!$C$16:$C$43,0))/1000,CK57*INDEX('Damage costs'!$Y$16:$Y$43,MATCH($B142,'Damage costs'!$C$16:$C$43,0))/1000),\"\")","v":""},{"$f":"IFERROR(IF(OR($C$144=FALSE,LEFT($B142,3)<>\"NOX\"),CL57*INDEX('Damage costs'!$U$16:$U$43,MATCH($B142,'Damage costs'!$C$16:$C$43,0))/1000,CL57*INDEX('Damage costs'!$Y$16:$Y$43,MATCH($B142,'Damage costs'!$C$16:$C$43,0))/1000),\"\")","v":""},{"$f":"IFERROR(IF(OR($C$144=FALSE,LEFT($B142,3)<>\"NOX\"),CM57*INDEX('Damage costs'!$U$16:$U$43,MATCH($B142,'Damage costs'!$C$16:$C$43,0))/1000,CM57*INDEX('Damage costs'!$Y$16:$Y$43,MATCH($B142,'Damage costs'!$C$16:$C$43,0))/1000),\"\")","v":""},{"$f":"IFERROR(IF(OR($C$144=FALSE,LEFT($B142,3)<>\"NOX\"),CN57*INDEX('Damage costs'!$U$16:$U$43,MATCH($B142,'Damage costs'!$C$16:$C$43,0))/1000,CN57*INDEX('Damage costs'!$Y$16:$Y$43,MATCH($B142,'Damage costs'!$C$16:$C$43,0))/1000),\"\")","v":""},{"$f":"IFERROR(IF(OR($C$144=FALSE,LEFT($B142,3)<>\"NOX\"),CO57*INDEX('Damage costs'!$U$16:$U$43,MATCH($B142,'Damage costs'!$C$16:$C$43,0))/1000,CO57*INDEX('Damage costs'!$Y$16:$Y$43,MATCH($B142,'Damage costs'!$C$16:$C$43,0))/1000),\"\")","v":""},{"$f":"IFERROR(IF(OR($C$144=FALSE,LEFT($B142,3)<>\"NOX\"),CP57*INDEX('Damage costs'!$U$16:$U$43,MATCH($B142,'Damage costs'!$C$16:$C$43,0))/1000,CP57*INDEX('Damage costs'!$Y$16:$Y$43,MATCH($B142,'Damage costs'!$C$16:$C$43,0))/1000),\"\")","v":""},{"$f":"IFERROR(IF(OR($C$144=FALSE,LEFT($B142,3)<>\"NOX\"),CQ57*INDEX('Damage costs'!$U$16:$U$43,MATCH($B142,'Damage costs'!$C$16:$C$43,0))/1000,CQ57*INDEX('Damage costs'!$Y$16:$Y$43,MATCH($B142,'Damage costs'!$C$16:$C$43,0))/1000),\"\")","v":""},{"$f":"IFERROR(IF(OR($C$144=FALSE,LEFT($B142,3)<>\"NOX\"),CR57*INDEX('Damage costs'!$U$16:$U$43,MATCH($B142,'Damage costs'!$C$16:$C$43,0))/1000,CR57*INDEX('Damage costs'!$Y$16:$Y$43,MATCH($B142,'Damage costs'!$C$16:$C$43,0))/1000),\"\")","v":""},{"$f":"IFERROR(IF(OR($C$144=FALSE,LEFT($B142,3)<>\"NOX\"),CS57*INDEX('Damage costs'!$U$16:$U$43,MATCH($B142,'Damage costs'!$C$16:$C$43,0))/1000,CS57*INDEX('Damage costs'!$Y$16:$Y$43,MATCH($B142,'Damage costs'!$C$16:$C$43,0))/1000),\"\")","v":""},{"$f":"IFERROR(IF(OR($C$144=FALSE,LEFT($B142,3)<>\"NOX\"),CT57*INDEX('Damage costs'!$U$16:$U$43,MATCH($B142,'Damage costs'!$C$16:$C$43,0))/1000,CT57*INDEX('Damage costs'!$Y$16:$Y$43,MATCH($B142,'Damage costs'!$C$16:$C$43,0))/1000),\"\")","v":""},{"$f":"IFERROR(IF(OR($C$144=FALSE,LEFT($B142,3)<>\"NOX\"),CU57*INDEX('Damage costs'!$U$16:$U$43,MATCH($B142,'Damage costs'!$C$16:$C$43,0))/1000,CU57*INDEX('Damage costs'!$Y$16:$Y$43,MATCH($B142,'Damage costs'!$C$16:$C$43,0))/1000),\"\")","v":""},{"$f":"IFERROR(IF(OR($C$144=FALSE,LEFT($B142,3)<>\"NOX\"),CV57*INDEX('Damage costs'!$U$16:$U$43,MATCH($B142,'Damage costs'!$C$16:$C$43,0))/1000,CV57*INDEX('Damage costs'!$Y$16:$Y$43,MATCH($B142,'Damage costs'!$C$16:$C$43,0))/1000),\"\")","v":""},{"$f":"IFERROR(IF(OR($C$144=FALSE,LEFT($B142,3)<>\"NOX\"),CW57*INDEX('Damage costs'!$U$16:$U$43,MATCH($B142,'Damage costs'!$C$16:$C$43,0))/1000,CW57*INDEX('Damage costs'!$Y$16:$Y$43,MATCH($B142,'Damage costs'!$C$16:$C$43,0))/1000),\"\")","v":""},{"$f":"IFERROR(IF(OR($C$144=FALSE,LEFT($B142,3)<>\"NOX\"),CX57*INDEX('Damage costs'!$U$16:$U$43,MATCH($B142,'Damage costs'!$C$16:$C$43,0))/1000,CX57*INDEX('Damage costs'!$Y$16:$Y$43,MATCH($B142,'Damage costs'!$C$16:$C$43,0))/1000),\"\")","v":""},{"$f":"IFERROR(IF(OR($C$144=FALSE,LEFT($B142,3)<>\"NOX\"),CY57*INDEX('Damage costs'!$U$16:$U$43,MATCH($B142,'Damage costs'!$C$16:$C$43,0))/1000,CY57*INDEX('Damage costs'!$Y$16:$Y$43,MATCH($B142,'Damage costs'!$C$16:$C$43,0))/1000),\"\")","v":""}]
[null,0,"£000's",{"$f":"IFERROR(IF(OR($C$144=FALSE,LEFT($B143,3)<>\"NOX\"),D58*INDEX('Damage costs'!$U$16:$U$43,MATCH($B143,'Damage costs'!$C$16:$C$43,0))/1000,D58*INDEX('Damage costs'!$Y$16:$Y$43,MATCH($B143,'Damage costs'!$C$16:$C$43,0))/1000),\"\")","v":""},{"$f":"IFERROR(IF(OR($C$144=FALSE,LEFT($B143,3)<>\"NOX\"),E58*INDEX('Damage costs'!$U$16:$U$43,MATCH($B143,'Damage costs'!$C$16:$C$43,0))/1000,E58*INDEX('Damage costs'!$Y$16:$Y$43,MATCH($B143,'Damage costs'!$C$16:$C$43,0))/1000),\"\")","v":""},{"$f":"IFERROR(IF(OR($C$144=FALSE,LEFT($B143,3)<>\"NOX\"),F58*INDEX('Damage costs'!$U$16:$U$43,MATCH($B143,'Damage costs'!$C$16:$C$43,0))/1000,F58*INDEX('Damage costs'!$Y$16:$Y$43,MATCH($B143,'Damage costs'!$C$16:$C$43,0))/1000),\"\")","v":""},{"$f":"IFERROR(IF(OR($C$144=FALSE,LEFT($B143,3)<>\"NOX\"),G58*INDEX('Damage costs'!$U$16:$U$43,MATCH($B143,'Damage costs'!$C$16:$C$43,0))/1000,G58*INDEX('Damage costs'!$Y$16:$Y$43,MATCH($B143,'Damage costs'!$C$16:$C$43,0))/1000),\"\")","v":""},{"$f":"IFERROR(IF(OR($C$144=FALSE,LEFT($B143,3)<>\"NOX\"),H58*INDEX('Damage costs'!$U$16:$U$43,MATCH($B143,'Damage costs'!$C$16:$C$43,0))/1000,H58*INDEX('Damage costs'!$Y$16:$Y$43,MATCH($B143,'Damage costs'!$C$16:$C$43,0))/1000),\"\")","v":""},{"$f":"IFERROR(IF(OR($C$144=FALSE,LEFT($B143,3)<>\"NOX\"),I58*INDEX('Damage costs'!$U$16:$U$43,MATCH($B143,'Damage costs'!$C$16:$C$43,0))/1000,I58*INDEX('Damage costs'!$Y$16:$Y$43,MATCH($B143,'Damage costs'!$C$16:$C$43,0))/1000),\"\")","v":""},{"$f":"IFERROR(IF(OR($C$144=FALSE,LEFT($B143,3)<>\"NOX\"),J58*INDEX('Damage costs'!$U$16:$U$43,MATCH($B143,'Damage costs'!$C$16:$C$43,0))/1000,J58*INDEX('Damage costs'!$Y$16:$Y$43,MATCH($B143,'Damage costs'!$C$16:$C$43,0))/1000),\"\")","v":""},{"$f":"IFERROR(IF(OR($C$144=FALSE,LEFT($B143,3)<>\"NOX\"),K58*INDEX('Damage costs'!$U$16:$U$43,MATCH($B143,'Damage costs'!$C$16:$C$43,0))/1000,K58*INDEX('Damage costs'!$Y$16:$Y$43,MATCH($B143,'Damage costs'!$C$16:$C$43,0))/1000),\"\")","v":""},{"$f":"IFERROR(IF(OR($C$144=FALSE,LEFT($B143,3)<>\"NOX\"),L58*INDEX('Damage costs'!$U$16:$U$43,MATCH($B143,'Damage costs'!$C$16:$C$43,0))/1000,L58*INDEX('Damage costs'!$Y$16:$Y$43,MATCH($B143,'Damage costs'!$C$16:$C$43,0))/1000),\"\")","v":""},{"$f":"IFERROR(IF(OR($C$144=FALSE,LEFT($B143,3)<>\"NOX\"),M58*INDEX('Damage costs'!$U$16:$U$43,MATCH($B143,'Damage costs'!$C$16:$C$43,0))/1000,M58*INDEX('Damage costs'!$Y$16:$Y$43,MATCH($B143,'Damage costs'!$C$16:$C$43,0))/1000),\"\")","v":""},{"$f":"IFERROR(IF(OR($C$144=FALSE,LEFT($B143,3)<>\"NOX\"),N58*INDEX('Damage costs'!$U$16:$U$43,MATCH($B143,'Damage costs'!$C$16:$C$43,0))/1000,N58*INDEX('Damage costs'!$Y$16:$Y$43,MATCH($B143,'Damage costs'!$C$16:$C$43,0))/1000),\"\")","v":""},{"$f":"IFERROR(IF(OR($C$144=FALSE,LEFT($B143,3)<>\"NOX\"),O58*INDEX('Damage costs'!$U$16:$U$43,MATCH($B143,'Damage costs'!$C$16:$C$43,0))/1000,O58*INDEX('Damage costs'!$Y$16:$Y$43,MATCH($B143,'Damage costs'!$C$16:$C$43,0))/1000),\"\")","v":""},{"$f":"IFERROR(IF(OR($C$144=FALSE,LEFT($B143,3)<>\"NOX\"),P58*INDEX('Damage costs'!$U$16:$U$43,MATCH($B143,'Damage costs'!$C$16:$C$43,0))/1000,P58*INDEX('Damage costs'!$Y$16:$Y$43,MATCH($B143,'Damage costs'!$C$16:$C$43,0))/1000),\"\")","v":""},{"$f":"IFERROR(IF(OR($C$144=FALSE,LEFT($B143,3)<>\"NOX\"),Q58*INDEX('Damage costs'!$U$16:$U$43,MATCH($B143,'Damage costs'!$C$16:$C$43,0))/1000,Q58*INDEX('Damage costs'!$Y$16:$Y$43,MATCH($B143,'Damage costs'!$C$16:$C$43,0))/1000),\"\")","v":""},{"$f":"IFERROR(IF(OR($C$144=FALSE,LEFT($B143,3)<>\"NOX\"),R58*INDEX('Damage costs'!$U$16:$U$43,MATCH($B143,'Damage costs'!$C$16:$C$43,0))/1000,R58*INDEX('Damage costs'!$Y$16:$Y$43,MATCH($B143,'Damage costs'!$C$16:$C$43,0))/1000),\"\")","v":""},{"$f":"IFERROR(IF(OR($C$144=FALSE,LEFT($B143,3)<>\"NOX\"),S58*INDEX('Damage costs'!$U$16:$U$43,MATCH($B143,'Damage costs'!$C$16:$C$43,0))/1000,S58*INDEX('Damage costs'!$Y$16:$Y$43,MATCH($B143,'Damage costs'!$C$16:$C$43,0))/1000),\"\")","v":""},{"$f":"IFERROR(IF(OR($C$144=FALSE,LEFT($B143,3)<>\"NOX\"),T58*INDEX('Damage costs'!$U$16:$U$43,MATCH($B143,'Damage costs'!$C$16:$C$43,0))/1000,T58*INDEX('Damage costs'!$Y$16:$Y$43,MATCH($B143,'Damage costs'!$C$16:$C$43,0))/1000),\"\")","v":""},{"$f":"IFERROR(IF(OR($C$144=FALSE,LEFT($B143,3)<>\"NOX\"),U58*INDEX('Damage costs'!$U$16:$U$43,MATCH($B143,'Damage costs'!$C$16:$C$43,0))/1000,U58*INDEX('Damage costs'!$Y$16:$Y$43,MATCH($B143,'Damage costs'!$C$16:$C$43,0))/1000),\"\")","v":""},{"$f":"IFERROR(IF(OR($C$144=FALSE,LEFT($B143,3)<>\"NOX\"),V58*INDEX('Damage costs'!$U$16:$U$43,MATCH($B143,'Damage costs'!$C$16:$C$43,0))/1000,V58*INDEX('Damage costs'!$Y$16:$Y$43,MATCH($B143,'Damage costs'!$C$16:$C$43,0))/1000),\"\")","v":""},{"$f":"IFERROR(IF(OR($C$144=FALSE,LEFT($B143,3)<>\"NOX\"),W58*INDEX('Damage costs'!$U$16:$U$43,MATCH($B143,'Damage costs'!$C$16:$C$43,0))/1000,W58*INDEX('Damage costs'!$Y$16:$Y$43,MATCH($B143,'Damage costs'!$C$16:$C$43,0))/1000),\"\")","v":""},{"$f":"IFERROR(IF(OR($C$144=FALSE,LEFT($B143,3)<>\"NOX\"),X58*INDEX('Damage costs'!$U$16:$U$43,MATCH($B143,'Damage costs'!$C$16:$C$43,0))/1000,X58*INDEX('Damage costs'!$Y$16:$Y$43,MATCH($B143,'Damage costs'!$C$16:$C$43,0))/1000),\"\")","v":""},{"$f":"IFERROR(IF(OR($C$144=FALSE,LEFT($B143,3)<>\"NOX\"),Y58*INDEX('Damage costs'!$U$16:$U$43,MATCH($B143,'Damage costs'!$C$16:$C$43,0))/1000,Y58*INDEX('Damage costs'!$Y$16:$Y$43,MATCH($B143,'Damage costs'!$C$16:$C$43,0))/1000),\"\")","v":""},{"$f":"IFERROR(IF(OR($C$144=FALSE,LEFT($B143,3)<>\"NOX\"),Z58*INDEX('Damage costs'!$U$16:$U$43,MATCH($B143,'Damage costs'!$C$16:$C$43,0))/1000,Z58*INDEX('Damage costs'!$Y$16:$Y$43,MATCH($B143,'Damage costs'!$C$16:$C$43,0))/1000),\"\")","v":""},{"$f":"IFERROR(IF(OR($C$144=FALSE,LEFT($B143,3)<>\"NOX\"),AA58*INDEX('Damage costs'!$U$16:$U$43,MATCH($B143,'Damage costs'!$C$16:$C$43,0))/1000,AA58*INDEX('Damage costs'!$Y$16:$Y$43,MATCH($B143,'Damage costs'!$C$16:$C$43,0))/1000),\"\")","v":""},{"$f":"IFERROR(IF(OR($C$144=FALSE,LEFT($B143,3)<>\"NOX\"),AB58*INDEX('Damage costs'!$U$16:$U$43,MATCH($B143,'Damage costs'!$C$16:$C$43,0))/1000,AB58*INDEX('Damage costs'!$Y$16:$Y$43,MATCH($B143,'Damage costs'!$C$16:$C$43,0))/1000),\"\")","v":""},{"$f":"IFERROR(IF(OR($C$144=FALSE,LEFT($B143,3)<>\"NOX\"),AC58*INDEX('Damage costs'!$U$16:$U$43,MATCH($B143,'Damage costs'!$C$16:$C$43,0))/1000,AC58*INDEX('Damage costs'!$Y$16:$Y$43,MATCH($B143,'Damage costs'!$C$16:$C$43,0))/1000),\"\")","v":""},{"$f":"IFERROR(IF(OR($C$144=FALSE,LEFT($B143,3)<>\"NOX\"),AD58*INDEX('Damage costs'!$U$16:$U$43,MATCH($B143,'Damage costs'!$C$16:$C$43,0))/1000,AD58*INDEX('Damage costs'!$Y$16:$Y$43,MATCH($B143,'Damage costs'!$C$16:$C$43,0))/1000),\"\")","v":""},{"$f":"IFERROR(IF(OR($C$144=FALSE,LEFT($B143,3)<>\"NOX\"),AE58*INDEX('Damage costs'!$U$16:$U$43,MATCH($B143,'Damage costs'!$C$16:$C$43,0))/1000,AE58*INDEX('Damage costs'!$Y$16:$Y$43,MATCH($B143,'Damage costs'!$C$16:$C$43,0))/1000),\"\")","v":""},{"$f":"IFERROR(IF(OR($C$144=FALSE,LEFT($B143,3)<>\"NOX\"),AF58*INDEX('Damage costs'!$U$16:$U$43,MATCH($B143,'Damage costs'!$C$16:$C$43,0))/1000,AF58*INDEX('Damage costs'!$Y$16:$Y$43,MATCH($B143,'Damage costs'!$C$16:$C$43,0))/1000),\"\")","v":""},{"$f":"IFERROR(IF(OR($C$144=FALSE,LEFT($B143,3)<>\"NOX\"),AG58*INDEX('Damage costs'!$U$16:$U$43,MATCH($B143,'Damage costs'!$C$16:$C$43,0))/1000,AG58*INDEX('Damage costs'!$Y$16:$Y$43,MATCH($B143,'Damage costs'!$C$16:$C$43,0))/1000),\"\")","v":""},{"$f":"IFERROR(IF(OR($C$144=FALSE,LEFT($B143,3)<>\"NOX\"),AH58*INDEX('Damage costs'!$U$16:$U$43,MATCH($B143,'Damage costs'!$C$16:$C$43,0))/1000,AH58*INDEX('Damage costs'!$Y$16:$Y$43,MATCH($B143,'Damage costs'!$C$16:$C$43,0))/1000),\"\")","v":""},{"$f":"IFERROR(IF(OR($C$144=FALSE,LEFT($B143,3)<>\"NOX\"),AI58*INDEX('Damage costs'!$U$16:$U$43,MATCH($B143,'Damage costs'!$C$16:$C$43,0))/1000,AI58*INDEX('Damage costs'!$Y$16:$Y$43,MATCH($B143,'Damage costs'!$C$16:$C$43,0))/1000),\"\")","v":""},{"$f":"IFERROR(IF(OR($C$144=FALSE,LEFT($B143,3)<>\"NOX\"),AJ58*INDEX('Damage costs'!$U$16:$U$43,MATCH($B143,'Damage costs'!$C$16:$C$43,0))/1000,AJ58*INDEX('Damage costs'!$Y$16:$Y$43,MATCH($B143,'Damage costs'!$C$16:$C$43,0))/1000),\"\")","v":""},{"$f":"IFERROR(IF(OR($C$144=FALSE,LEFT($B143,3)<>\"NOX\"),AK58*INDEX('Damage costs'!$U$16:$U$43,MATCH($B143,'Damage costs'!$C$16:$C$43,0))/1000,AK58*INDEX('Damage costs'!$Y$16:$Y$43,MATCH($B143,'Damage costs'!$C$16:$C$43,0))/1000),\"\")","v":""},{"$f":"IFERROR(IF(OR($C$144=FALSE,LEFT($B143,3)<>\"NOX\"),AL58*INDEX('Damage costs'!$U$16:$U$43,MATCH($B143,'Damage costs'!$C$16:$C$43,0))/1000,AL58*INDEX('Damage costs'!$Y$16:$Y$43,MATCH($B143,'Damage costs'!$C$16:$C$43,0))/1000),\"\")","v":""},{"$f":"IFERROR(IF(OR($C$144=FALSE,LEFT($B143,3)<>\"NOX\"),AM58*INDEX('Damage costs'!$U$16:$U$43,MATCH($B143,'Damage costs'!$C$16:$C$43,0))/1000,AM58*INDEX('Damage costs'!$Y$16:$Y$43,MATCH($B143,'Damage costs'!$C$16:$C$43,0))/1000),\"\")","v":""},{"$f":"IFERROR(IF(OR($C$144=FALSE,LEFT($B143,3)<>\"NOX\"),AN58*INDEX('Damage costs'!$U$16:$U$43,MATCH($B143,'Damage costs'!$C$16:$C$43,0))/1000,AN58*INDEX('Damage costs'!$Y$16:$Y$43,MATCH($B143,'Damage costs'!$C$16:$C$43,0))/1000),\"\")","v":""},{"$f":"IFERROR(IF(OR($C$144=FALSE,LEFT($B143,3)<>\"NOX\"),AO58*INDEX('Damage costs'!$U$16:$U$43,MATCH($B143,'Damage costs'!$C$16:$C$43,0))/1000,AO58*INDEX('Damage costs'!$Y$16:$Y$43,MATCH($B143,'Damage costs'!$C$16:$C$43,0))/1000),\"\")","v":""},{"$f":"IFERROR(IF(OR($C$144=FALSE,LEFT($B143,3)<>\"NOX\"),AP58*INDEX('Damage costs'!$U$16:$U$43,MATCH($B143,'Damage costs'!$C$16:$C$43,0))/1000,AP58*INDEX('Damage costs'!$Y$16:$Y$43,MATCH($B143,'Damage costs'!$C$16:$C$43,0))/1000),\"\")","v":""},{"$f":"IFERROR(IF(OR($C$144=FALSE,LEFT($B143,3)<>\"NOX\"),AQ58*INDEX('Damage costs'!$U$16:$U$43,MATCH($B143,'Damage costs'!$C$16:$C$43,0))/1000,AQ58*INDEX('Damage costs'!$Y$16:$Y$43,MATCH($B143,'Damage costs'!$C$16:$C$43,0))/1000),\"\")","v":""},{"$f":"IFERROR(IF(OR($C$144=FALSE,LEFT($B143,3)<>\"NOX\"),AR58*INDEX('Damage costs'!$U$16:$U$43,MATCH($B143,'Damage costs'!$C$16:$C$43,0))/1000,AR58*INDEX('Damage costs'!$Y$16:$Y$43,MATCH($B143,'Damage costs'!$C$16:$C$43,0))/1000),\"\")","v":""},{"$f":"IFERROR(IF(OR($C$144=FALSE,LEFT($B143,3)<>\"NOX\"),AS58*INDEX('Damage costs'!$U$16:$U$43,MATCH($B143,'Damage costs'!$C$16:$C$43,0))/1000,AS58*INDEX('Damage costs'!$Y$16:$Y$43,MATCH($B143,'Damage costs'!$C$16:$C$43,0))/1000),\"\")","v":""},{"$f":"IFERROR(IF(OR($C$144=FALSE,LEFT($B143,3)<>\"NOX\"),AT58*INDEX('Damage costs'!$U$16:$U$43,MATCH($B143,'Damage costs'!$C$16:$C$43,0))/1000,AT58*INDEX('Damage costs'!$Y$16:$Y$43,MATCH($B143,'Damage costs'!$C$16:$C$43,0))/1000),\"\")","v":""},{"$f":"IFERROR(IF(OR($C$144=FALSE,LEFT($B143,3)<>\"NOX\"),AU58*INDEX('Damage costs'!$U$16:$U$43,MATCH($B143,'Damage costs'!$C$16:$C$43,0))/1000,AU58*INDEX('Damage costs'!$Y$16:$Y$43,MATCH($B143,'Damage costs'!$C$16:$C$43,0))/1000),\"\")","v":""},{"$f":"IFERROR(IF(OR($C$144=FALSE,LEFT($B143,3)<>\"NOX\"),AV58*INDEX('Damage costs'!$U$16:$U$43,MATCH($B143,'Damage costs'!$C$16:$C$43,0))/1000,AV58*INDEX('Damage costs'!$Y$16:$Y$43,MATCH($B143,'Damage costs'!$C$16:$C$43,0))/1000),\"\")","v":""},{"$f":"IFERROR(IF(OR($C$144=FALSE,LEFT($B143,3)<>\"NOX\"),AW58*INDEX('Damage costs'!$U$16:$U$43,MATCH($B143,'Damage costs'!$C$16:$C$43,0))/1000,AW58*INDEX('Damage costs'!$Y$16:$Y$43,MATCH($B143,'Damage costs'!$C$16:$C$43,0))/1000),\"\")","v":""},{"$f":"IFERROR(IF(OR($C$144=FALSE,LEFT($B143,3)<>\"NOX\"),AX58*INDEX('Damage costs'!$U$16:$U$43,MATCH($B143,'Damage costs'!$C$16:$C$43,0))/1000,AX58*INDEX('Damage costs'!$Y$16:$Y$43,MATCH($B143,'Damage costs'!$C$16:$C$43,0))/1000),\"\")","v":""},{"$f":"IFERROR(IF(OR($C$144=FALSE,LEFT($B143,3)<>\"NOX\"),AY58*INDEX('Damage costs'!$U$16:$U$43,MATCH($B143,'Damage costs'!$C$16:$C$43,0))/1000,AY58*INDEX('Damage costs'!$Y$16:$Y$43,MATCH($B143,'Damage costs'!$C$16:$C$43,0))/1000),\"\")","v":""},{"$f":"IFERROR(IF(OR($C$144=FALSE,LEFT($B143,3)<>\"NOX\"),AZ58*INDEX('Damage costs'!$U$16:$U$43,MATCH($B143,'Damage costs'!$C$16:$C$43,0))/1000,AZ58*INDEX('Damage costs'!$Y$16:$Y$43,MATCH($B143,'Damage costs'!$C$16:$C$43,0))/1000),\"\")","v":""},{"$f":"IFERROR(IF(OR($C$144=FALSE,LEFT($B143,3)<>\"NOX\"),BA58*INDEX('Damage costs'!$U$16:$U$43,MATCH($B143,'Damage costs'!$C$16:$C$43,0))/1000,BA58*INDEX('Damage costs'!$Y$16:$Y$43,MATCH($B143,'Damage costs'!$C$16:$C$43,0))/1000),\"\")","v":""},{"$f":"IFERROR(IF(OR($C$144=FALSE,LEFT($B143,3)<>\"NOX\"),BB58*INDEX('Damage costs'!$U$16:$U$43,MATCH($B143,'Damage costs'!$C$16:$C$43,0))/1000,BB58*INDEX('Damage costs'!$Y$16:$Y$43,MATCH($B143,'Damage costs'!$C$16:$C$43,0))/1000),\"\")","v":""},{"$f":"IFERROR(IF(OR($C$144=FALSE,LEFT($B143,3)<>\"NOX\"),BC58*INDEX('Damage costs'!$U$16:$U$43,MATCH($B143,'Damage costs'!$C$16:$C$43,0))/1000,BC58*INDEX('Damage costs'!$Y$16:$Y$43,MATCH($B143,'Damage costs'!$C$16:$C$43,0))/1000),\"\")","v":""},{"$f":"IFERROR(IF(OR($C$144=FALSE,LEFT($B143,3)<>\"NOX\"),BD58*INDEX('Damage costs'!$U$16:$U$43,MATCH($B143,'Damage costs'!$C$16:$C$43,0))/1000,BD58*INDEX('Damage costs'!$Y$16:$Y$43,MATCH($B143,'Damage costs'!$C$16:$C$43,0))/1000),\"\")","v":""},{"$f":"IFERROR(IF(OR($C$144=FALSE,LEFT($B143,3)<>\"NOX\"),BE58*INDEX('Damage costs'!$U$16:$U$43,MATCH($B143,'Damage costs'!$C$16:$C$43,0))/1000,BE58*INDEX('Damage costs'!$Y$16:$Y$43,MATCH($B143,'Damage costs'!$C$16:$C$43,0))/1000),\"\")","v":""},{"$f":"IFERROR(IF(OR($C$144=FALSE,LEFT($B143,3)<>\"NOX\"),BF58*INDEX('Damage costs'!$U$16:$U$43,MATCH($B143,'Damage costs'!$C$16:$C$43,0))/1000,BF58*INDEX('Damage costs'!$Y$16:$Y$43,MATCH($B143,'Damage costs'!$C$16:$C$43,0))/1000),\"\")","v":""},{"$f":"IFERROR(IF(OR($C$144=FALSE,LEFT($B143,3)<>\"NOX\"),BG58*INDEX('Damage costs'!$U$16:$U$43,MATCH($B143,'Damage costs'!$C$16:$C$43,0))/1000,BG58*INDEX('Damage costs'!$Y$16:$Y$43,MATCH($B143,'Damage costs'!$C$16:$C$43,0))/1000),\"\")","v":""},{"$f":"IFERROR(IF(OR($C$144=FALSE,LEFT($B143,3)<>\"NOX\"),BH58*INDEX('Damage costs'!$U$16:$U$43,MATCH($B143,'Damage costs'!$C$16:$C$43,0))/1000,BH58*INDEX('Damage costs'!$Y$16:$Y$43,MATCH($B143,'Damage costs'!$C$16:$C$43,0))/1000),\"\")","v":""},{"$f":"IFERROR(IF(OR($C$144=FALSE,LEFT($B143,3)<>\"NOX\"),BI58*INDEX('Damage costs'!$U$16:$U$43,MATCH($B143,'Damage costs'!$C$16:$C$43,0))/1000,BI58*INDEX('Damage costs'!$Y$16:$Y$43,MATCH($B143,'Damage costs'!$C$16:$C$43,0))/1000),\"\")","v":""},{"$f":"IFERROR(IF(OR($C$144=FALSE,LEFT($B143,3)<>\"NOX\"),BJ58*INDEX('Damage costs'!$U$16:$U$43,MATCH($B143,'Damage costs'!$C$16:$C$43,0))/1000,BJ58*INDEX('Damage costs'!$Y$16:$Y$43,MATCH($B143,'Damage costs'!$C$16:$C$43,0))/1000),\"\")","v":""},{"$f":"IFERROR(IF(OR($C$144=FALSE,LEFT($B143,3)<>\"NOX\"),BK58*INDEX('Damage costs'!$U$16:$U$43,MATCH($B143,'Damage costs'!$C$16:$C$43,0))/1000,BK58*INDEX('Damage costs'!$Y$16:$Y$43,MATCH($B143,'Damage costs'!$C$16:$C$43,0))/1000),\"\")","v":""},{"$f":"IFERROR(IF(OR($C$144=FALSE,LEFT($B143,3)<>\"NOX\"),BL58*INDEX('Damage costs'!$U$16:$U$43,MATCH($B143,'Damage costs'!$C$16:$C$43,0))/1000,BL58*INDEX('Damage costs'!$Y$16:$Y$43,MATCH($B143,'Damage costs'!$C$16:$C$43,0))/1000),\"\")","v":""},{"$f":"IFERROR(IF(OR($C$144=FALSE,LEFT($B143,3)<>\"NOX\"),BM58*INDEX('Damage costs'!$U$16:$U$43,MATCH($B143,'Damage costs'!$C$16:$C$43,0))/1000,BM58*INDEX('Damage costs'!$Y$16:$Y$43,MATCH($B143,'Damage costs'!$C$16:$C$43,0))/1000),\"\")","v":""},{"$f":"IFERROR(IF(OR($C$144=FALSE,LEFT($B143,3)<>\"NOX\"),BN58*INDEX('Damage costs'!$U$16:$U$43,MATCH($B143,'Damage costs'!$C$16:$C$43,0))/1000,BN58*INDEX('Damage costs'!$Y$16:$Y$43,MATCH($B143,'Damage costs'!$C$16:$C$43,0))/1000),\"\")","v":""},{"$f":"IFERROR(IF(OR($C$144=FALSE,LEFT($B143,3)<>\"NOX\"),BO58*INDEX('Damage costs'!$U$16:$U$43,MATCH($B143,'Damage costs'!$C$16:$C$43,0))/1000,BO58*INDEX('Damage costs'!$Y$16:$Y$43,MATCH($B143,'Damage costs'!$C$16:$C$43,0))/1000),\"\")","v":""},{"$f":"IFERROR(IF(OR($C$144=FALSE,LEFT($B143,3)<>\"NOX\"),BP58*INDEX('Damage costs'!$U$16:$U$43,MATCH($B143,'Damage costs'!$C$16:$C$43,0))/1000,BP58*INDEX('Damage costs'!$Y$16:$Y$43,MATCH($B143,'Damage costs'!$C$16:$C$43,0))/1000),\"\")","v":""},{"$f":"IFERROR(IF(OR($C$144=FALSE,LEFT($B143,3)<>\"NOX\"),BQ58*INDEX('Damage costs'!$U$16:$U$43,MATCH($B143,'Damage costs'!$C$16:$C$43,0))/1000,BQ58*INDEX('Damage costs'!$Y$16:$Y$43,MATCH($B143,'Damage costs'!$C$16:$C$43,0))/1000),\"\")","v":""},{"$f":"IFERROR(IF(OR($C$144=FALSE,LEFT($B143,3)<>\"NOX\"),BR58*INDEX('Damage costs'!$U$16:$U$43,MATCH($B143,'Damage costs'!$C$16:$C$43,0))/1000,BR58*INDEX('Damage costs'!$Y$16:$Y$43,MATCH($B143,'Damage costs'!$C$16:$C$43,0))/1000),\"\")","v":""},{"$f":"IFERROR(IF(OR($C$144=FALSE,LEFT($B143,3)<>\"NOX\"),BS58*INDEX('Damage costs'!$U$16:$U$43,MATCH($B143,'Damage costs'!$C$16:$C$43,0))/1000,BS58*INDEX('Damage costs'!$Y$16:$Y$43,MATCH($B143,'Damage costs'!$C$16:$C$43,0))/1000),\"\")","v":""},{"$f":"IFERROR(IF(OR($C$144=FALSE,LEFT($B143,3)<>\"NOX\"),BT58*INDEX('Damage costs'!$U$16:$U$43,MATCH($B143,'Damage costs'!$C$16:$C$43,0))/1000,BT58*INDEX('Damage costs'!$Y$16:$Y$43,MATCH($B143,'Damage costs'!$C$16:$C$43,0))/1000),\"\")","v":""},{"$f":"IFERROR(IF(OR($C$144=FALSE,LEFT($B143,3)<>\"NOX\"),BU58*INDEX('Damage costs'!$U$16:$U$43,MATCH($B143,'Damage costs'!$C$16:$C$43,0))/1000,BU58*INDEX('Damage costs'!$Y$16:$Y$43,MATCH($B143,'Damage costs'!$C$16:$C$43,0))/1000),\"\")","v":""},{"$f":"IFERROR(IF(OR($C$144=FALSE,LEFT($B143,3)<>\"NOX\"),BV58*INDEX('Damage costs'!$U$16:$U$43,MATCH($B143,'Damage costs'!$C$16:$C$43,0))/1000,BV58*INDEX('Damage costs'!$Y$16:$Y$43,MATCH($B143,'Damage costs'!$C$16:$C$43,0))/1000),\"\")","v":""},{"$f":"IFERROR(IF(OR($C$144=FALSE,LEFT($B143,3)<>\"NOX\"),BW58*INDEX('Damage costs'!$U$16:$U$43,MATCH($B143,'Damage costs'!$C$16:$C$43,0))/1000,BW58*INDEX('Damage costs'!$Y$16:$Y$43,MATCH($B143,'Damage costs'!$C$16:$C$43,0))/1000),\"\")","v":""},{"$f":"IFERROR(IF(OR($C$144=FALSE,LEFT($B143,3)<>\"NOX\"),BX58*INDEX('Damage costs'!$U$16:$U$43,MATCH($B143,'Damage costs'!$C$16:$C$43,0))/1000,BX58*INDEX('Damage costs'!$Y$16:$Y$43,MATCH($B143,'Damage costs'!$C$16:$C$43,0))/1000),\"\")","v":""},{"$f":"IFERROR(IF(OR($C$144=FALSE,LEFT($B143,3)<>\"NOX\"),BY58*INDEX('Damage costs'!$U$16:$U$43,MATCH($B143,'Damage costs'!$C$16:$C$43,0))/1000,BY58*INDEX('Damage costs'!$Y$16:$Y$43,MATCH($B143,'Damage costs'!$C$16:$C$43,0))/1000),\"\")","v":""},{"$f":"IFERROR(IF(OR($C$144=FALSE,LEFT($B143,3)<>\"NOX\"),BZ58*INDEX('Damage costs'!$U$16:$U$43,MATCH($B143,'Damage costs'!$C$16:$C$43,0))/1000,BZ58*INDEX('Damage costs'!$Y$16:$Y$43,MATCH($B143,'Damage costs'!$C$16:$C$43,0))/1000),\"\")","v":""},{"$f":"IFERROR(IF(OR($C$144=FALSE,LEFT($B143,3)<>\"NOX\"),CA58*INDEX('Damage costs'!$U$16:$U$43,MATCH($B143,'Damage costs'!$C$16:$C$43,0))/1000,CA58*INDEX('Damage costs'!$Y$16:$Y$43,MATCH($B143,'Damage costs'!$C$16:$C$43,0))/1000),\"\")","v":""},{"$f":"IFERROR(IF(OR($C$144=FALSE,LEFT($B143,3)<>\"NOX\"),CB58*INDEX('Damage costs'!$U$16:$U$43,MATCH($B143,'Damage costs'!$C$16:$C$43,0))/1000,CB58*INDEX('Damage costs'!$Y$16:$Y$43,MATCH($B143,'Damage costs'!$C$16:$C$43,0))/1000),\"\")","v":""},{"$f":"IFERROR(IF(OR($C$144=FALSE,LEFT($B143,3)<>\"NOX\"),CC58*INDEX('Damage costs'!$U$16:$U$43,MATCH($B143,'Damage costs'!$C$16:$C$43,0))/1000,CC58*INDEX('Damage costs'!$Y$16:$Y$43,MATCH($B143,'Damage costs'!$C$16:$C$43,0))/1000),\"\")","v":""},{"$f":"IFERROR(IF(OR($C$144=FALSE,LEFT($B143,3)<>\"NOX\"),CD58*INDEX('Damage costs'!$U$16:$U$43,MATCH($B143,'Damage costs'!$C$16:$C$43,0))/1000,CD58*INDEX('Damage costs'!$Y$16:$Y$43,MATCH($B143,'Damage costs'!$C$16:$C$43,0))/1000),\"\")","v":""},{"$f":"IFERROR(IF(OR($C$144=FALSE,LEFT($B143,3)<>\"NOX\"),CE58*INDEX('Damage costs'!$U$16:$U$43,MATCH($B143,'Damage costs'!$C$16:$C$43,0))/1000,CE58*INDEX('Damage costs'!$Y$16:$Y$43,MATCH($B143,'Damage costs'!$C$16:$C$43,0))/1000),\"\")","v":""},{"$f":"IFERROR(IF(OR($C$144=FALSE,LEFT($B143,3)<>\"NOX\"),CF58*INDEX('Damage costs'!$U$16:$U$43,MATCH($B143,'Damage costs'!$C$16:$C$43,0))/1000,CF58*INDEX('Damage costs'!$Y$16:$Y$43,MATCH($B143,'Damage costs'!$C$16:$C$43,0))/1000),\"\")","v":""},{"$f":"IFERROR(IF(OR($C$144=FALSE,LEFT($B143,3)<>\"NOX\"),CG58*INDEX('Damage costs'!$U$16:$U$43,MATCH($B143,'Damage costs'!$C$16:$C$43,0))/1000,CG58*INDEX('Damage costs'!$Y$16:$Y$43,MATCH($B143,'Damage costs'!$C$16:$C$43,0))/1000),\"\")","v":""},{"$f":"IFERROR(IF(OR($C$144=FALSE,LEFT($B143,3)<>\"NOX\"),CH58*INDEX('Damage costs'!$U$16:$U$43,MATCH($B143,'Damage costs'!$C$16:$C$43,0))/1000,CH58*INDEX('Damage costs'!$Y$16:$Y$43,MATCH($B143,'Damage costs'!$C$16:$C$43,0))/1000),\"\")","v":""},{"$f":"IFERROR(IF(OR($C$144=FALSE,LEFT($B143,3)<>\"NOX\"),CI58*INDEX('Damage costs'!$U$16:$U$43,MATCH($B143,'Damage costs'!$C$16:$C$43,0))/1000,CI58*INDEX('Damage costs'!$Y$16:$Y$43,MATCH($B143,'Damage costs'!$C$16:$C$43,0))/1000),\"\")","v":""},{"$f":"IFERROR(IF(OR($C$144=FALSE,LEFT($B143,3)<>\"NOX\"),CJ58*INDEX('Damage costs'!$U$16:$U$43,MATCH($B143,'Damage costs'!$C$16:$C$43,0))/1000,CJ58*INDEX('Damage costs'!$Y$16:$Y$43,MATCH($B143,'Damage costs'!$C$16:$C$43,0))/1000),\"\")","v":""},{"$f":"IFERROR(IF(OR($C$144=FALSE,LEFT($B143,3)<>\"NOX\"),CK58*INDEX('Damage costs'!$U$16:$U$43,MATCH($B143,'Damage costs'!$C$16:$C$43,0))/1000,CK58*INDEX('Damage costs'!$Y$16:$Y$43,MATCH($B143,'Damage costs'!$C$16:$C$43,0))/1000),\"\")","v":""},{"$f":"IFERROR(IF(OR($C$144=FALSE,LEFT($B143,3)<>\"NOX\"),CL58*INDEX('Damage costs'!$U$16:$U$43,MATCH($B143,'Damage costs'!$C$16:$C$43,0))/1000,CL58*INDEX('Damage costs'!$Y$16:$Y$43,MATCH($B143,'Damage costs'!$C$16:$C$43,0))/1000),\"\")","v":""},{"$f":"IFERROR(IF(OR($C$144=FALSE,LEFT($B143,3)<>\"NOX\"),CM58*INDEX('Damage costs'!$U$16:$U$43,MATCH($B143,'Damage costs'!$C$16:$C$43,0))/1000,CM58*INDEX('Damage costs'!$Y$16:$Y$43,MATCH($B143,'Damage costs'!$C$16:$C$43,0))/1000),\"\")","v":""},{"$f":"IFERROR(IF(OR($C$144=FALSE,LEFT($B143,3)<>\"NOX\"),CN58*INDEX('Damage costs'!$U$16:$U$43,MATCH($B143,'Damage costs'!$C$16:$C$43,0))/1000,CN58*INDEX('Damage costs'!$Y$16:$Y$43,MATCH($B143,'Damage costs'!$C$16:$C$43,0))/1000),\"\")","v":""},{"$f":"IFERROR(IF(OR($C$144=FALSE,LEFT($B143,3)<>\"NOX\"),CO58*INDEX('Damage costs'!$U$16:$U$43,MATCH($B143,'Damage costs'!$C$16:$C$43,0))/1000,CO58*INDEX('Damage costs'!$Y$16:$Y$43,MATCH($B143,'Damage costs'!$C$16:$C$43,0))/1000),\"\")","v":""},{"$f":"IFERROR(IF(OR($C$144=FALSE,LEFT($B143,3)<>\"NOX\"),CP58*INDEX('Damage costs'!$U$16:$U$43,MATCH($B143,'Damage costs'!$C$16:$C$43,0))/1000,CP58*INDEX('Damage costs'!$Y$16:$Y$43,MATCH($B143,'Damage costs'!$C$16:$C$43,0))/1000),\"\")","v":""},{"$f":"IFERROR(IF(OR($C$144=FALSE,LEFT($B143,3)<>\"NOX\"),CQ58*INDEX('Damage costs'!$U$16:$U$43,MATCH($B143,'Damage costs'!$C$16:$C$43,0))/1000,CQ58*INDEX('Damage costs'!$Y$16:$Y$43,MATCH($B143,'Damage costs'!$C$16:$C$43,0))/1000),\"\")","v":""},{"$f":"IFERROR(IF(OR($C$144=FALSE,LEFT($B143,3)<>\"NOX\"),CR58*INDEX('Damage costs'!$U$16:$U$43,MATCH($B143,'Damage costs'!$C$16:$C$43,0))/1000,CR58*INDEX('Damage costs'!$Y$16:$Y$43,MATCH($B143,'Damage costs'!$C$16:$C$43,0))/1000),\"\")","v":""},{"$f":"IFERROR(IF(OR($C$144=FALSE,LEFT($B143,3)<>\"NOX\"),CS58*INDEX('Damage costs'!$U$16:$U$43,MATCH($B143,'Damage costs'!$C$16:$C$43,0))/1000,CS58*INDEX('Damage costs'!$Y$16:$Y$43,MATCH($B143,'Damage costs'!$C$16:$C$43,0))/1000),\"\")","v":""},{"$f":"IFERROR(IF(OR($C$144=FALSE,LEFT($B143,3)<>\"NOX\"),CT58*INDEX('Damage costs'!$U$16:$U$43,MATCH($B143,'Damage costs'!$C$16:$C$43,0))/1000,CT58*INDEX('Damage costs'!$Y$16:$Y$43,MATCH($B143,'Damage costs'!$C$16:$C$43,0))/1000),\"\")","v":""},{"$f":"IFERROR(IF(OR($C$144=FALSE,LEFT($B143,3)<>\"NOX\"),CU58*INDEX('Damage costs'!$U$16:$U$43,MATCH($B143,'Damage costs'!$C$16:$C$43,0))/1000,CU58*INDEX('Damage costs'!$Y$16:$Y$43,MATCH($B143,'Damage costs'!$C$16:$C$43,0))/1000),\"\")","v":""},{"$f":"IFERROR(IF(OR($C$144=FALSE,LEFT($B143,3)<>\"NOX\"),CV58*INDEX('Damage costs'!$U$16:$U$43,MATCH($B143,'Damage costs'!$C$16:$C$43,0))/1000,CV58*INDEX('Damage costs'!$Y$16:$Y$43,MATCH($B143,'Damage costs'!$C$16:$C$43,0))/1000),\"\")","v":""},{"$f":"IFERROR(IF(OR($C$144=FALSE,LEFT($B143,3)<>\"NOX\"),CW58*INDEX('Damage costs'!$U$16:$U$43,MATCH($B143,'Damage costs'!$C$16:$C$43,0))/1000,CW58*INDEX('Damage costs'!$Y$16:$Y$43,MATCH($B143,'Damage costs'!$C$16:$C$43,0))/1000),\"\")","v":""},{"$f":"IFERROR(IF(OR($C$144=FALSE,LEFT($B143,3)<>\"NOX\"),CX58*INDEX('Damage costs'!$U$16:$U$43,MATCH($B143,'Damage costs'!$C$16:$C$43,0))/1000,CX58*INDEX('Damage costs'!$Y$16:$Y$43,MATCH($B143,'Damage costs'!$C$16:$C$43,0))/1000),\"\")","v":""},{"$f":"IFERROR(IF(OR($C$144=FALSE,LEFT($B143,3)<>\"NOX\"),CY58*INDEX('Damage costs'!$U$16:$U$43,MATCH($B143,'Damage costs'!$C$16:$C$43,0))/1000,CY58*INDEX('Damage costs'!$Y$16:$Y$43,MATCH($B143,'Damage costs'!$C$16:$C$43,0))/1000),\"\")","v":""}]
[null,"PM10 Used",{"$f":"IF(OR(LEFT(B138,4)=\"PM10\",LEFT(B139,4)=\"PM10\",LEFT(B140,4)=\"PM10\",LEFT(B141,4)=\"PM10\",LEFT(B142,4)=\"PM10\",LEFT(B143,4)=\"PM10\"),TRUE,FALSE)","v":false}]
[]
[null,"Uplift pa","%",{"$f":"'Discount and deflators'!$H$5","v":0.02}]
[null,"Uplift factor",null,{"$f":"IF(D$6=0,0,(1+$D146)^(D$6-'Data Input - General'!$F$22))","v":1},{"$f":"IF(E$6=0,0,(1+$D146)^(E$6-'Data Input - General'!$F$22))","v":1.02},{"$f":"IF(F$6=0,0,(1+$D146)^(F$6-'Data Input - General'!$F$22))","v":1.0404},{"$f":"IF(G$6=0,0,(1+$D146)^(G$6-'Data Input - General'!$F$22))","v":1.0612079999999999},{"$f":"IF(H$6=0,0,(1+$D146)^(H$6-'Data Input - General'!$F$22))","v":1.08243216},{"$f":"IF(I$6=0,0,(1+$D146)^(I$6-'Data Input - General'!$F$22))","v":1.1040808032},{"$f":"IF(J$6=0,0,(1+$D146)^(J$6-'Data Input - General'!$F$22))","v":1.1261624192640001},{"$f":"IF(K$6=0,0,(1+$D146)^(K$6-'Data Input - General'!$F$22))","v":1.1486856676492798},{"$f":"IF(L$6=0,0,(1+$D146)^(L$6-'Data Input - General'!$F$22))","v":1.1716593810022655},{"$f":"IF(M$6=0,0,(1+$D146)^(M$6-'Data Input - General'!$F$22))","v":1.1950925686223108},{"$f":"IF(N$6=0,0,(1+$D146)^(N$6-'Data Input - General'!$F$22))","v":1.2189944199947571},{"$f":"IF(O$6=0,0,(1+$D146)^(O$6-'Data Input - General'!$F$22))","v":1.243374308394652},{"$f":"IF(P$6=0,0,(1+$D146)^(P$6-'Data Input - General'!$F$22))","v":1.2682417945625453},{"$f":"IF(Q$6=0,0,(1+$D146)^(Q$6-'Data Input - General'!$F$22))","v":1.2936066304537961},{"$f":"IF(R$6=0,0,(1+$D146)^(R$6-'Data Input - General'!$F$22))","v":1.3194787630628722},{"$f":"IF(S$6=0,0,(1+$D146)^(S$6-'Data Input - General'!$F$22))","v":1.3458683383241292},{"$f":"IF(T$6=0,0,(1+$D146)^(T$6-'Data Input - General'!$F$22))","v":1.372785705090612},{"$f":"IF(U$6=0,0,(1+$D146)^(U$6-'Data Input - General'!$F$22))","v":1.4002414191924244},{"$f":"IF(V$6=0,0,(1+$D146)^(V$6-'Data Input - General'!$F$22))","v":1.4282462475762727},{"$f":"IF(W$6=0,0,(1+$D146)^(W$6-'Data Input - General'!$F$22))","v":1.4568111725277981},{"$f":"IF(X$6=0,0,(1+$D146)^(X$6-'Data Input - General'!$F$22))","v":1.4859473959783542},{"$f":"IF(Y$6=0,0,(1+$D146)^(Y$6-'Data Input - General'!$F$22))","v":1.5156663438979212},{"$f":"IF(Z$6=0,0,(1+$D146)^(Z$6-'Data Input - General'!$F$22))","v":1.5459796707758797},{"$f":"IF(AA$6=0,0,(1+$D146)^(AA$6-'Data Input - General'!$F$22))","v":1.576899264191397},{"$f":"IF(AB$6=0,0,(1+$D146)^(AB$6-'Data Input - General'!$F$22))","v":1.608437249475225},{"$f":"IF(AC$6=0,0,(1+$D146)^(AC$6-'Data Input - General'!$F$22))","v":1.6406059944647295},{"$f":"IF(AD$6=0,0,(1+$D146)^(AD$6-'Data Input - General'!$F$22))","v":1.6734181143540243},{"$f":"IF(AE$6=0,0,(1+$D146)^(AE$6-'Data Input - General'!$F$22))","v":1.7068864766411045},{"$f":"IF(AF$6=0,0,(1+$D146)^(AF$6-'Data Input - General'!$F$22))","v":1.7410242061739269},{"$f":"IF(AG$6=0,0,(1+$D146)^(AG$6-'Data Input - General'!$F$22))","v":1.7758446902974052},{"$f":"IF(AH$6=0,0,(1+$D146)^(AH$6-'Data Input - General'!$F$22))","v":1.8113615841033535},{"$f":"IF(AI$6=0,0,(1+$D146)^(AI$6-'Data Input - General'!$F$22))","v":0},{"$f":"IF(AJ$6=0,0,(1+$D146)^(AJ$6-'Data Input - General'!$F$22))","v":0},{"$f":"IF(AK$6=0,0,(1+$D146)^(AK$6-'Data Input - General'!$F$22))","v":0},{"$f":"IF(AL$6=0,0,(1+$D146)^(AL$6-'Data Input - General'!$F$22))","v":0},{"$f":"IF(AM$6=0,0,(1+$D146)^(AM$6-'Data Input - General'!$F$22))","v":0},{"$f":"IF(AN$6=0,0,(1+$D146)^(AN$6-'Data Input - General'!$F$22))","v":0},{"$f":"IF(AO$6=0,0,(1+$D146)^(AO$6-'Data Input - General'!$F$22))","v":0},{"$f":"IF(AP$6=0,0,(1+$D146)^(AP$6-'Data Input - General'!$F$22))","v":0},{"$f":"IF(AQ$6=0,0,(1+$D146)^(AQ$6-'Data Input - General'!$F$22))","v":0},{"$f":"IF(AR$6=0,0,(1+$D146)^(AR$6-'Data Input - General'!$F$22))","v":0},{"$f":"IF(AS$6=0,0,(1+$D146)^(AS$6-'Data Input - General'!$F$22))","v":0},{"$f":"IF(AT$6=0,0,(1+$D146)^(AT$6-'Data Input - General'!$F$22))","v":0},{"$f":"IF(AU$6=0,0,(1+$D146)^(AU$6-'Data Input - General'!$F$22))","v":0},{"$f":"IF(AV$6=0,0,(1+$D146)^(AV$6-'Data Input - General'!$F$22))","v":0},{"$f":"IF(AW$6=0,0,(1+$D146)^(AW$6-'Data Input - General'!$F$22))","v":0},{"$f":"IF(AX$6=0,0,(1+$D146)^(AX$6-'Data Input - General'!$F$22))","v":0},{"$f":"IF(AY$6=0,0,(1+$D146)^(AY$6-'Data Input - General'!$F$22))","v":0},{"$f":"IF(AZ$6=0,0,(1+$D146)^(AZ$6-'Data Input - General'!$F$22))","v":0},{"$f":"IF(BA$6=0,0,(1+$D146)^(BA$6-'Data Input - General'!$F$22))","v":0},{"$f":"IF(BB$6=0,0,(1+$D146)^(BB$6-'Data Input - General'!$F$22))","v":0},{"$f":"IF(BC$6=0,0,(1+$D146)^(BC$6-'Data Input - General'!$F$22))","v":0},{"$f":"IF(BD$6=0,0,(1+$D146)^(BD$6-'Data Input - General'!$F$22))","v":0},{"$f":"IF(BE$6=0,0,(1+$D146)^(BE$6-'Data Input - General'!$F$22))","v":0},{"$f":"IF(BF$6=0,0,(1+$D146)^(BF$6-'Data Input - General'!$F$22))","v":0},{"$f":"IF(BG$6=0,0,(1+$D146)^(BG$6-'Data Input - General'!$F$22))","v":0},{"$f":"IF(BH$6=0,0,(1+$D146)^(BH$6-'Data Input - General'!$F$22))","v":0},{"$f":"IF(BI$6=0,0,(1+$D146)^(BI$6-'Data Input - General'!$F$22))","v":0},{"$f":"IF(BJ$6=0,0,(1+$D146)^(BJ$6-'Data Input - General'!$F$22))","v":0},{"$f":"IF(BK$6=0,0,(1+$D146)^(BK$6-'Data Input - General'!$F$22))","v":0},{"$f":"IF(BL$6=0,0,(1+$D146)^(BL$6-'Data Input - General'!$F$22))","v":0},{"$f":"IF(BM$6=0,0,(1+$D146)^(BM$6-'Data Input - General'!$F$22))","v":0},{"$f":"IF(BN$6=0,0,(1+$D146)^(BN$6-'Data Input - General'!$F$22))","v":0},{"$f":"IF(BO$6=0,0,(1+$D146)^(BO$6-'Data Input - General'!$F$22))","v":0},{"$f":"IF(BP$6=0,0,(1+$D146)^(BP$6-'Data Input - General'!$F$22))","v":0},{"$f":"IF(BQ$6=0,0,(1+$D146)^(BQ$6-'Data Input - General'!$F$22))","v":0},{"$f":"IF(BR$6=0,0,(1+$D146)^(BR$6-'Data Input - General'!$F$22))","v":0},{"$f":"IF(BS$6=0,0,(1+$D146)^(BS$6-'Data Input - General'!$F$22))","v":0},{"$f":"IF(BT$6=0,0,(1+$D146)^(BT$6-'Data Input - General'!$F$22))","v":0},{"$f":"IF(BU$6=0,0,(1+$D146)^(BU$6-'Data Input - General'!$F$22))","v":0},{"$f":"IF(BV$6=0,0,(1+$D146)^(BV$6-'Data Input - General'!$F$22))","v":0},{"$f":"IF(BW$6=0,0,(1+$D146)^(BW$6-'Data Input - General'!$F$22))","v":0},{"$f":"IF(BX$6=0,0,(1+$D146)^(BX$6-'Data Input - General'!$F$22))","v":0},{"$f":"IF(BY$6=0,0,(1+$D146)^(BY$6-'Data Input - General'!$F$22))","v":0},{"$f":"IF(BZ$6=0,0,(1+$D146)^(BZ$6-'Data Input - General'!$F$22))","v":0},{"$f":"IF(CA$6=0,0,(1+$D146)^(CA$6-'Data Input - General'!$F$22))","v":0},{"$f":"IF(CB$6=0,0,(1+$D146)^(CB$6-'Data Input - General'!$F$22))","v":0},{"$f":"IF(CC$6=0,0,(1+$D146)^(CC$6-'Data Input - General'!$F$22))","v":0},{"$f":"IF(CD$6=0,0,(1+$D146)^(CD$6-'Data Input - General'!$F$22))","v":0},{"$f":"IF(CE$6=0,0,(1+$D146)^(CE$6-'Data Input - General'!$F$22))","v":0},{"$f":"IF(CF$6=0,0,(1+$D146)^(CF$6-'Data Input - General'!$F$22))","v":0},{"$f":"IF(CG$6=0,0,(1+$D146)^(CG$6-'Data Input - General'!$F$22))","v":0},{"$f":"IF(CH$6=0,0,(1+$D146)^(CH$6-'Data Input - General'!$F$22))","v":0},{"$f":"IF(CI$6=0,0,(1+$D146)^(CI$6-'Data Input - General'!$F$22))","v":0},{"$f":"IF(CJ$6=0,0,(1+$D146)^(CJ$6-'Data Input - General'!$F$22))","v":0},{"$f":"IF(CK$6=0,0,(1+$D146)^(CK$6-'Data Input - General'!$F$22))","v":0},{"$f":"IF(CL$6=0,0,(1+$D146)^(CL$6-'Data Input - General'!$F$22))","v":0},{"$f":"IF(CM$6=0,0,(1+$D146)^(CM$6-'Data Input - General'!$F$22))","v":0},{"$f":"IF(CN$6=0,0,(1+$D146)^(CN$6-'Data Input - General'!$F$22))","v":0},{"$f":"IF(CO$6=0,0,(1+$D146)^(CO$6-'Data Input - General'!$F$22))","v":0},{"$f":"IF(CP$6=0,0,(1+$D146)^(CP$6-'Data Input - General'!$F$22))","v":0},{"$f":"IF(CQ$6=0,0,(1+$D146)^(CQ$6-'Data Input - General'!$F$22))","v":0},{"$f":"IF(CR$6=0,0,(1+$D146)^(CR$6-'Data Input - General'!$F$22))","v":0},{"$f":"IF(CS$6=0,0,(1+$D146)^(CS$6-'Data Input - General'!$F$22))","v":0},{"$f":"IF(CT$6=0,0,(1+$D146)^(CT$6-'Data Input - General'!$F$22))","v":0},{"$f":"IF(CU$6=0,0,(1+$D146)^(CU$6-'Data Input - General'!$F$22))","v":0},{"$f":"IF(CV$6=0,0,(1+$D146)^(CV$6-'Data Input - General'!$F$22))","v":0},{"$f":"IF(CW$6=0,0,(1+$D146)^(CW$6-'Data Input - General'!$F$22))","v":0},{"$f":"IF(CX$6=0,0,(1+$D146)^(CX$6-'Data Input - General'!$F$22))","v":0},{"$f":"IF(CY$6=0,0,(1+$D146)^(CY$6-'Data Input - General'!$F$22))","v":0}]
[null,"Total value","£000's",{"$f":"SUM(D138:D143)*D147","v":19.20090116757984},{"$f":"SUM(E138:E143)*E147","v":5.2095885047877619},{"$f":"SUM(F138:F143)*F147","v":5.3137802748835172},5.4200558803811871,5.528456997988811,5.639026137948588,5.75180666070756,5.8668427939217098,0,0,0,0,0,0,0,0,0,0,0,0,0,0,0,0,0,0,0,0,0,0,0,0,{"$f":"SUM(AJ138:AJ143)*AJ147","v":0},0,0,0,0,0,0,0,0,0,0,0,0,0,0,0,0,0,0,0,0,0,0,0,0,0,0,0,{"$f":"SUM(BL138:BL143)*BL147","v":0},0,0,0,0,0,0,0,0,0,0,0,0,0,0,0,0,0,0,0,0,0,0,0,0,0,0,0,0,0,0,0,0,0,0,0,0,0,0,0]
[null,"Discounted total value","£000's",{"$f":"D148*D$7","v":19.20090116757984},{"$f":"E148*E$7","v":5.033418845205567},4.9604707459996895,4.8885798656228827,4.817730882063131,4.747908695366565,4.679098424419224,4.6112854037754669,0,0,0,0,0,0,0,0,0,0,0,0,0,0,0,0,0,0,0,0,0,0,0,0,0,0,0,0,0,0,0,0,0,0,0,0,0,0,0,0,0,0,0,0,0,0,0,0,0,0,0,0,0,0,0,0,{"$f":"BP148*BP$7","v":0},0,0,0,0,0,0,0,0,0,0,0,0,0,0,0,0,0,0,0,0,0,0,0,0,0,0,0,0,0,0,0,0,0,0,0]
[]
[null,"GHG emissions"]
[null,"Traded","tCO2e",{"$f":"D$80+IF('Data Input - General'!$F$10=\"Yes\",Calc_BAT!D$81,0)+IF('Data Input - General'!$F$12=\"Yes\",Calc_BAT!D$75,0)","v":86644.737608250056},{"$f":"E$80+IF('Data Input - General'!$F$10=\"Yes\",Calc_BAT!E$81,0)+IF('Data Input - General'!$F$12=\"Yes\",Calc_BAT!E$75,0)","v":86510.233175019355},{"$f":"F$80+IF('Data Input - General'!$F$10=\"Yes\",Calc_BAT!F$81,0)+IF('Data Input - General'!$F$12=\"Yes\",Calc_BAT!F$75,0)","v":86388.187501378605},{"$f":"G$80+IF('Data Input - General'!$F$10=\"Yes\",Calc_BAT!G$81,0)+IF('Data Input - General'!$F$12=\"Yes\",Calc_BAT!G$75,0)","v":86316.993984732529},{"$f":"H$80+IF('Data Input - General'!$F$10=\"Yes\",Calc_BAT!H$81,0)+IF('Data Input - General'!$F$12=\"Yes\",Calc_BAT!H$75,0)","v":86193.774664474651},{"$f":"I$80+IF('Data Input - General'!$F$10=\"Yes\",Calc_BAT!I$81,0)+IF('Data Input - General'!$F$12=\"Yes\",Calc_BAT!I$75,0)","v":86229.164858991426},{"$f":"J$80+IF('Data Input - General'!$F$10=\"Yes\",Calc_BAT!J$81,0)+IF('Data Input - General'!$F$12=\"Yes\",Calc_BAT!J$75,0)","v":86182.585839819963},{"$f":"K$80+IF('Data Input - General'!$F$10=\"Yes\",Calc_BAT!K$81,0)+IF('Data Input - General'!$F$12=\"Yes\",Calc_BAT!K$75,0)","v":86105.387885048549},{"$f":"L$80+IF('Data Input - General'!$F$10=\"Yes\",Calc_BAT!L$81,0)+IF('Data Input - General'!$F$12=\"Yes\",Calc_BAT!L$75,0)","v":0},{"$f":"M$80+IF('Data Input - General'!$F$10=\"Yes\",Calc_BAT!M$81,0)+IF('Data Input - General'!$F$12=\"Yes\",Calc_BAT!M$75,0)","v":0},{"$f":"N$80+IF('Data Input - General'!$F$10=\"Yes\",Calc_BAT!N$81,0)+IF('Data Input - General'!$F$12=\"Yes\",Calc_BAT!N$75,0)","v":0},{"$f":"O$80+IF('Data Input - General'!$F$10=\"Yes\",Calc_BAT!O$81,0)+IF('Data Input - General'!$F$12=\"Yes\",Calc_BAT!O$75,0)","v":0},{"$f":"P$80+IF('Data Input - General'!$F$10=\"Yes\",Calc_BAT!P$81,0)+IF('Data Input - General'!$F$12=\"Yes\",Calc_BAT!P$75,0)","v":0},{"$f":"Q$80+IF('Data Input - General'!$F$10=\"Yes\",Calc_BAT!Q$81,0)+IF('Data Input - General'!$F$12=\"Yes\",Calc_BAT!Q$75,0)","v":0},{"$f":"R$80+IF('Data Input - General'!$F$10=\"Yes\",Calc_BAT!R$81,0)+IF('Data Input - General'!$F$12=\"Yes\",Calc_BAT!R$75,0)","v":0},{"$f":"S$80+IF('Data Input - General'!$F$10=\"Yes\",Calc_BAT!S$81,0)+IF('Data Input - General'!$F$12=\"Yes\",Calc_BAT!S$75,0)","v":0},{"$f":"T$80+IF('Data Input - General'!$F$10=\"Yes\",Calc_BAT!T$81,0)+IF('Data Input - General'!$F$12=\"Yes\",Calc_BAT!T$75,0)","v":0},{"$f":"U$80+IF('Data Input - General'!$F$10=\"Yes\",Calc_BAT!U$81,0)+IF('Data Input - General'!$F$12=\"Yes\",Calc_BAT!U$75,0)","v":0},{"$f":"V$80+IF('Data Input - General'!$F$10=\"Yes\",Calc_BAT!V$81,0)+IF('Data Input - General'!$F$12=\"Yes\",Calc_BAT!V$75,0)","v":0},{"$f":"W$80+IF('Data Input - General'!$F$10=\"Yes\",Calc_BAT!W$81,0)+IF('Data Input - General'!$F$12=\"Yes\",Calc_BAT!W$75,0)","v":0},{"$f":"X$80+IF('Data Input - General'!$F$10=\"Yes\",Calc_BAT!X$81,0)+IF('Data Input - General'!$F$12=\"Yes\",Calc_BAT!X$75,0)","v":0},{"$f":"Y$80+IF('Data Input - General'!$F$10=\"Yes\",Calc_BAT!Y$81,0)+IF('Data Input - General'!$F$12=\"Yes\",Calc_BAT!Y$75,0)","v":0},{"$f":"Z$80+IF('Data Input - General'!$F$10=\"Yes\",Calc_BAT!Z$81,0)+IF('Data Input - General'!$F$12=\"Yes\",Calc_BAT!Z$75,0)","v":0},{"$f":"AA$80+IF('Data Input - General'!$F$10=\"Yes\",Calc_BAT!AA$81,0)+IF('Data Input - General'!$F$12=\"Yes\",Calc_BAT!AA$75,0)","v":0},{"$f":"AB$80+IF('Data Input - General'!$F$10=\"Yes\",Calc_BAT!AB$81,0)+IF('Data Input - General'!$F$12=\"Yes\",Calc_BAT!AB$75,0)","v":0},{"$f":"AC$80+IF('Data Input - General'!$F$10=\"Yes\",Calc_BAT!AC$81,0)+IF('Data Input - General'!$F$12=\"Yes\",Calc_BAT!AC$75,0)","v":0},{"$f":"AD$80+IF('Data Input - General'!$F$10=\"Yes\",Calc_BAT!AD$81,0)+IF('Data Input - General'!$F$12=\"Yes\",Calc_BAT!AD$75,0)","v":0},{"$f":"AE$80+IF('Data Input - General'!$F$10=\"Yes\",Calc_BAT!AE$81,0)+IF('Data Input - General'!$F$12=\"Yes\",Calc_BAT!AE$75,0)","v":0},{"$f":"AF$80+IF('Data Input - General'!$F$10=\"Yes\",Calc_BAT!AF$81,0)+IF('Data Input - General'!$F$12=\"Yes\",Calc_BAT!AF$75,0)","v":0},{"$f":"AG$80+IF('Data Input - General'!$F$10=\"Yes\",Calc_BAT!AG$81,0)+IF('Data Input - General'!$F$12=\"Yes\",Calc_BAT!AG$75,0)","v":0},{"$f":"AH$80+IF('Data Input - General'!$F$10=\"Yes\",Calc_BAT!AH$81,0)+IF('Data Input - General'!$F$12=\"Yes\",Calc_BAT!AH$75,0)","v":0},{"$f":"AI$80+IF('Data Input - General'!$F$10=\"Yes\",Calc_BAT!AI$81,0)+IF('Data Input - General'!$F$12=\"Yes\",Calc_BAT!AI$75,0)","v":0},{"$f":"AJ$80+IF('Data Input - General'!$F$10=\"Yes\",Calc_BAT!AJ$81,0)+IF('Data Input - General'!$F$12=\"Yes\",Calc_BAT!AJ$75,0)","v":0},{"$f":"AK$80+IF('Data Input - General'!$F$10=\"Yes\",Calc_BAT!AK$81,0)+IF('Data Input - General'!$F$12=\"Yes\",Calc_BAT!AK$75,0)","v":0},{"$f":"AL$80+IF('Data Input - General'!$F$10=\"Yes\",Calc_BAT!AL$81,0)+IF('Data Input - General'!$F$12=\"Yes\",Calc_BAT!AL$75,0)","v":0},{"$f":"AM$80+IF('Data Input - General'!$F$10=\"Yes\",Calc_BAT!AM$81,0)+IF('Data Input - General'!$F$12=\"Yes\",Calc_BAT!AM$75,0)","v":0},{"$f":"AN$80+IF('Data Input - General'!$F$10=\"Yes\",Calc_BAT!AN$81,0)+IF('Data Input - General'!$F$12=\"Yes\",Calc_BAT!AN$75,0)","v":0},{"$f":"AO$80+IF('Data Input - General'!$F$10=\"Yes\",Calc_BAT!AO$81,0)+IF('Data Input - General'!$F$12=\"Yes\",Calc_BAT!AO$75,0)","v":0},{"$f":"AP$80+IF('Data Input - General'!$F$10=\"Yes\",Calc_BAT!AP$81,0)+IF('Data Input - General'!$F$12=\"Yes\",Calc_BAT!AP$75,0)","v":0},{"$f":"AQ$80+IF('Data Input - General'!$F$10=\"Yes\",Calc_BAT!AQ$81,0)+IF('Data Input - General'!$F$12=\"Yes\",Calc_BAT!AQ$75,0)","v":0},{"$f":"AR$80+IF('Data Input - General'!$F$10=\"Yes\",Calc_BAT!AR$81,0)+IF('Data Input - General'!$F$12=\"Yes\",Calc_BAT!AR$75,0)","v":0},{"$f":"AS$80+IF('Data Input - General'!$F$10=\"Yes\",Calc_BAT!AS$81,0)+IF('Data Input - General'!$F$12=\"Yes\",Calc_BAT!AS$75,0)","v":0},{"$f":"AT$80+IF('Data Input - General'!$F$10=\"Yes\",Calc_BAT!AT$81,0)+IF('Data Input - General'!$F$12=\"Yes\",Calc_BAT!AT$75,0)","v":0},{"$f":"AU$80+IF('Data Input - General'!$F$10=\"Yes\",Calc_BAT!AU$81,0)+IF('Data Input - General'!$F$12=\"Yes\",Calc_BAT!AU$75,0)","v":0},{"$f":"AV$80+IF('Data Input - General'!$F$10=\"Yes\",Calc_BAT!AV$81,0)+IF('Data Input - General'!$F$12=\"Yes\",Calc_BAT!AV$75,0)","v":0},{"$f":"AW$80+IF('Data Input - General'!$F$10=\"Yes\",Calc_BAT!AW$81,0)+IF('Data Input - General'!$F$12=\"Yes\",Calc_BAT!AW$75,0)","v":0},{"$f":"AX$80+IF('Data Input - General'!$F$10=\"Yes\",Calc_BAT!AX$81,0)+IF('Data Input - General'!$F$12=\"Yes\",Calc_BAT!AX$75,0)","v":0},{"$f":"AY$80+IF('Data Input - General'!$F$10=\"Yes\",Calc_BAT!AY$81,0)+IF('Data Input - General'!$F$12=\"Yes\",Calc_BAT!AY$75,0)","v":0},{"$f":"AZ$80+IF('Data Input - General'!$F$10=\"Yes\",Calc_BAT!AZ$81,0)+IF('Data Input - General'!$F$12=\"Yes\",Calc_BAT!AZ$75,0)","v":0},{"$f":"BA$80+IF('Data Input - General'!$F$10=\"Yes\",Calc_BAT!BA$81,0)+IF('Data Input - General'!$F$12=\"Yes\",Calc_BAT!BA$75,0)","v":0},{"$f":"BB$80+IF('Data Input - General'!$F$10=\"Yes\",Calc_BAT!BB$81,0)+IF('Data Input - General'!$F$12=\"Yes\",Calc_BAT!BB$75,0)","v":0},{"$f":"BC$80+IF('Data Input - General'!$F$10=\"Yes\",Calc_BAT!BC$81,0)+IF('Data Input - General'!$F$12=\"Yes\",Calc_BAT!BC$75,0)","v":0},{"$f":"BD$80+IF('Data Input - General'!$F$10=\"Yes\",Calc_BAT!BD$81,0)+IF('Data Input - General'!$F$12=\"Yes\",Calc_BAT!BD$75,0)","v":0},{"$f":"BE$80+IF('Data Input - General'!$F$10=\"Yes\",Calc_BAT!BE$81,0)+IF('Data Input - General'!$F$12=\"Yes\",Calc_BAT!BE$75,0)","v":0},{"$f":"BF$80+IF('Data Input - General'!$F$10=\"Yes\",Calc_BAT!BF$81,0)+IF('Data Input - General'!$F$12=\"Yes\",Calc_BAT!BF$75,0)","v":0},{"$f":"BG$80+IF('Data Input - General'!$F$10=\"Yes\",Calc_BAT!BG$81,0)+IF('Data Input - General'!$F$12=\"Yes\",Calc_BAT!BG$75,0)","v":0},{"$f":"BH$80+IF('Data Input - General'!$F$10=\"Yes\",Calc_BAT!BH$81,0)+IF('Data Input - General'!$F$12=\"Yes\",Calc_BAT!BH$75,0)","v":0},{"$f":"BI$80+IF('Data Input - General'!$F$10=\"Yes\",Calc_BAT!BI$81,0)+IF('Data Input - General'!$F$12=\"Yes\",Calc_BAT!BI$75,0)","v":0},{"$f":"BJ$80+IF('Data Input - General'!$F$10=\"Yes\",Calc_BAT!BJ$81,0)+IF('Data Input - General'!$F$12=\"Yes\",Calc_BAT!BJ$75,0)","v":0},{"$f":"BK$80+IF('Data Input - General'!$F$10=\"Yes\",Calc_BAT!BK$81,0)+IF('Data Input - General'!$F$12=\"Yes\",Calc_BAT!BK$75,0)","v":0},{"$f":"BL$80+IF('Data Input - General'!$F$10=\"Yes\",Calc_BAT!BL$81,0)+IF('Data Input - General'!$F$12=\"Yes\",Calc_BAT!BL$75,0)","v":0},{"$f":"BM$80+IF('Data Input - General'!$F$10=\"Yes\",Calc_BAT!BM$81,0)+IF('Data Input - General'!$F$12=\"Yes\",Calc_BAT!BM$75,0)","v":0},{"$f":"BN$80+IF('Data Input - General'!$F$10=\"Yes\",Calc_BAT!BN$81,0)+IF('Data Input - General'!$F$12=\"Yes\",Calc_BAT!BN$75,0)","v":0},{"$f":"BO$80+IF('Data Input - General'!$F$10=\"Yes\",Calc_BAT!BO$81,0)+IF('Data Input - General'!$F$12=\"Yes\",Calc_BAT!BO$75,0)","v":0},{"$f":"BP$80+IF('Data Input - General'!$F$10=\"Yes\",Calc_BAT!BP$81,0)+IF('Data Input - General'!$F$12=\"Yes\",Calc_BAT!BP$75,0)","v":0},{"$f":"BQ$80+IF('Data Input - General'!$F$10=\"Yes\",Calc_BAT!BQ$81,0)+IF('Data Input - General'!$F$12=\"Yes\",Calc_BAT!BQ$75,0)","v":0},{"$f":"BR$80+IF('Data Input - General'!$F$10=\"Yes\",Calc_BAT!BR$81,0)+IF('Data Input - General'!$F$12=\"Yes\",Calc_BAT!BR$75,0)","v":0},{"$f":"BS$80+IF('Data Input - General'!$F$10=\"Yes\",Calc_BAT!BS$81,0)+IF('Data Input - General'!$F$12=\"Yes\",Calc_BAT!BS$75,0)","v":0},{"$f":"BT$80+IF('Data Input - General'!$F$10=\"Yes\",Calc_BAT!BT$81,0)+IF('Data Input - General'!$F$12=\"Yes\",Calc_BAT!BT$75,0)","v":0},{"$f":"BU$80+IF('Data Input - General'!$F$10=\"Yes\",Calc_BAT!BU$81,0)+IF('Data Input - General'!$F$12=\"Yes\",Calc_BAT!BU$75,0)","v":0},{"$f":"BV$80+IF('Data Input - General'!$F$10=\"Yes\",Calc_BAT!BV$81,0)+IF('Data Input - General'!$F$12=\"Yes\",Calc_BAT!BV$75,0)","v":0},{"$f":"BW$80+IF('Data Input - General'!$F$10=\"Yes\",Calc_BAT!BW$81,0)+IF('Data Input - General'!$F$12=\"Yes\",Calc_BAT!BW$75,0)","v":0},{"$f":"BX$80+IF('Data Input - General'!$F$10=\"Yes\",Calc_BAT!BX$81,0)+IF('Data Input - General'!$F$12=\"Yes\",Calc_BAT!BX$75,0)","v":0},{"$f":"BY$80+IF('Data Input - General'!$F$10=\"Yes\",Calc_BAT!BY$81,0)+IF('Data Input - General'!$F$12=\"Yes\",Calc_BAT!BY$75,0)","v":0},{"$f":"BZ$80+IF('Data Input - General'!$F$10=\"Yes\",Calc_BAT!BZ$81,0)+IF('Data Input - General'!$F$12=\"Yes\",Calc_BAT!BZ$75,0)","v":0},{"$f":"CA$80+IF('Data Input - General'!$F$10=\"Yes\",Calc_BAT!CA$81,0)+IF('Data Input - General'!$F$12=\"Yes\",Calc_BAT!CA$75,0)","v":0},{"$f":"CB$80+IF('Data Input - General'!$F$10=\"Yes\",Calc_BAT!CB$81,0)+IF('Data Input - General'!$F$12=\"Yes\",Calc_BAT!CB$75,0)","v":0},{"$f":"CC$80+IF('Data Input - General'!$F$10=\"Yes\",Calc_BAT!CC$81,0)+IF('Data Input - General'!$F$12=\"Yes\",Calc_BAT!CC$75,0)","v":0},{"$f":"CD$80+IF('Data Input - General'!$F$10=\"Yes\",Calc_BAT!CD$81,0)+IF('Data Input - General'!$F$12=\"Yes\",Calc_BAT!CD$75,0)","v":0},{"$f":"CE$80+IF('Data Input - General'!$F$10=\"Yes\",Calc_BAT!CE$81,0)+IF('Data Input - General'!$F$12=\"Yes\",Calc_BAT!CE$75,0)","v":0},{"$f":"CF$80+IF('Data Input - General'!$F$10=\"Yes\",Calc_BAT!CF$81,0)+IF('Data Input - General'!$F$12=\"Yes\",Calc_BAT!CF$75,0)","v":0},{"$f":"CG$80+IF('Data Input - General'!$F$10=\"Yes\",Calc_BAT!CG$81,0)+IF('Data Input - General'!$F$12=\"Yes\",Calc_BAT!CG$75,0)","v":0},{"$f":"CH$80+IF('Data Input - General'!$F$10=\"Yes\",Calc_BAT!CH$81,0)+IF('Data Input - General'!$F$12=\"Yes\",Calc_BAT!CH$75,0)","v":0},{"$f":"CI$80+IF('Data Input - General'!$F$10=\"Yes\",Calc_BAT!CI$81,0)+IF('Data Input - General'!$F$12=\"Yes\",Calc_BAT!CI$75,0)","v":0},{"$f":"CJ$80+IF('Data Input - General'!$F$10=\"Yes\",Calc_BAT!CJ$81,0)+IF('Data Input - General'!$F$12=\"Yes\",Calc_BAT!CJ$75,0)","v":0},{"$f":"CK$80+IF('Data Input - General'!$F$10=\"Yes\",Calc_BAT!CK$81,0)+IF('Data Input - General'!$F$12=\"Yes\",Calc_BAT!CK$75,0)","v":0},{"$f":"CL$80+IF('Data Input - General'!$F$10=\"Yes\",Calc_BAT!CL$81,0)+IF('Data Input - General'!$F$12=\"Yes\",Calc_BAT!CL$75,0)","v":0},{"$f":"CM$80+IF('Data Input - General'!$F$10=\"Yes\",Calc_BAT!CM$81,0)+IF('Data Input - General'!$F$12=\"Yes\",Calc_BAT!CM$75,0)","v":0},{"$f":"CN$80+IF('Data Input - General'!$F$10=\"Yes\",Calc_BAT!CN$81,0)+IF('Data Input - General'!$F$12=\"Yes\",Calc_BAT!CN$75,0)","v":0},{"$f":"CO$80+IF('Data Input - General'!$F$10=\"Yes\",Calc_BAT!CO$81,0)+IF('Data Input - General'!$F$12=\"Yes\",Calc_BAT!CO$75,0)","v":0},{"$f":"CP$80+IF('Data Input - General'!$F$10=\"Yes\",Calc_BAT!CP$81,0)+IF('Data Input - General'!$F$12=\"Yes\",Calc_BAT!CP$75,0)","v":0},{"$f":"CQ$80+IF('Data Input - General'!$F$10=\"Yes\",Calc_BAT!CQ$81,0)+IF('Data Input - General'!$F$12=\"Yes\",Calc_BAT!CQ$75,0)","v":0},{"$f":"CR$80+IF('Data Input - General'!$F$10=\"Yes\",Calc_BAT!CR$81,0)+IF('Data Input - General'!$F$12=\"Yes\",Calc_BAT!CR$75,0)","v":0},{"$f":"CS$80+IF('Data Input - General'!$F$10=\"Yes\",Calc_BAT!CS$81,0)+IF('Data Input - General'!$F$12=\"Yes\",Calc_BAT!CS$75,0)","v":0},{"$f":"CT$80+IF('Data Input - General'!$F$10=\"Yes\",Calc_BAT!CT$81,0)+IF('Data Input - General'!$F$12=\"Yes\",Calc_BAT!CT$75,0)","v":0},{"$f":"CU$80+IF('Data Input - General'!$F$10=\"Yes\",Calc_BAT!CU$81,0)+IF('Data Input - General'!$F$12=\"Yes\",Calc_BAT!CU$75,0)","v":0},{"$f":"CV$80+IF('Data Input - General'!$F$10=\"Yes\",Calc_BAT!CV$81,0)+IF('Data Input - General'!$F$12=\"Yes\",Calc_BAT!CV$75,0)","v":0},{"$f":"CW$80+IF('Data Input - General'!$F$10=\"Yes\",Calc_BAT!CW$81,0)+IF('Data Input - General'!$F$12=\"Yes\",Calc_BAT!CW$75,0)","v":0},{"$f":"CX$80+IF('Data Input - General'!$F$10=\"Yes\",Calc_BAT!CX$81,0)+IF('Data Input - General'!$F$12=\"Yes\",Calc_BAT!CX$75,0)","v":0},{"$f":"CY$80+IF('Data Input - General'!$F$10=\"Yes\",Calc_BAT!CY$81,0)+IF('Data Input - General'!$F$12=\"Yes\",Calc_BAT!CY$75,0)","v":0}]
[null,"Non-traded","tCO2e",{"$f":"IF('Data Input - General'!$F$10=\"Yes\",0,Calc_BAT!D$81)+IF('Data Input - General'!$F$12=\"Yes\",0,Calc_BAT!D$75)","v":0},{"$f":"IF('Data Input - General'!$F$10=\"Yes\",0,Calc_BAT!E$81)+IF('Data Input - General'!$F$12=\"Yes\",0,Calc_BAT!E$75)","v":0},{"$f":"IF('Data Input - General'!$F$10=\"Yes\",0,Calc_BAT!F$81)+IF('Data Input - General'!$F$12=\"Yes\",0,Calc_BAT!F$75)","v":0},{"$f":"IF('Data Input - General'!$F$10=\"Yes\",0,Calc_BAT!G$81)+IF('Data Input - General'!$F$12=\"Yes\",0,Calc_BAT!G$75)","v":0},{"$f":"IF('Data Input - General'!$F$10=\"Yes\",0,Calc_BAT!H$81)+IF('Data Input - General'!$F$12=\"Yes\",0,Calc_BAT!H$75)","v":0},{"$f":"IF('Data Input - General'!$F$10=\"Yes\",0,Calc_BAT!I$81)+IF('Data Input - General'!$F$12=\"Yes\",0,Calc_BAT!I$75)","v":0},{"$f":"IF('Data Input - General'!$F$10=\"Yes\",0,Calc_BAT!J$81)+IF('Data Input - General'!$F$12=\"Yes\",0,Calc_BAT!J$75)","v":0},{"$f":"IF('Data Input - General'!$F$10=\"Yes\",0,Calc_BAT!K$81)+IF('Data Input - General'!$F$12=\"Yes\",0,Calc_BAT!K$75)","v":0},{"$f":"IF('Data Input - General'!$F$10=\"Yes\",0,Calc_BAT!L$81)+IF('Data Input - General'!$F$12=\"Yes\",0,Calc_BAT!L$75)","v":0},{"$f":"IF('Data Input - General'!$F$10=\"Yes\",0,Calc_BAT!M$81)+IF('Data Input - General'!$F$12=\"Yes\",0,Calc_BAT!M$75)","v":0},{"$f":"IF('Data Input - General'!$F$10=\"Yes\",0,Calc_BAT!N$81)+IF('Data Input - General'!$F$12=\"Yes\",0,Calc_BAT!N$75)","v":0},{"$f":"IF('Data Input - General'!$F$10=\"Yes\",0,Calc_BAT!O$81)+IF('Data Input - General'!$F$12=\"Yes\",0,Calc_BAT!O$75)","v":0},{"$f":"IF('Data Input - General'!$F$10=\"Yes\",0,Calc_BAT!P$81)+IF('Data Input - General'!$F$12=\"Yes\",0,Calc_BAT!P$75)","v":0},{"$f":"IF('Data Input - General'!$F$10=\"Yes\",0,Calc_BAT!Q$81)+IF('Data Input - General'!$F$12=\"Yes\",0,Calc_BAT!Q$75)","v":0},{"$f":"IF('Data Input - General'!$F$10=\"Yes\",0,Calc_BAT!R$81)+IF('Data Input - General'!$F$12=\"Yes\",0,Calc_BAT!R$75)","v":0},{"$f":"IF('Data Input - General'!$F$10=\"Yes\",0,Calc_BAT!S$81)+IF('Data Input - General'!$F$12=\"Yes\",0,Calc_BAT!S$75)","v":0},{"$f":"IF('Data Input - General'!$F$10=\"Yes\",0,Calc_BAT!T$81)+IF('Data Input - General'!$F$12=\"Yes\",0,Calc_BAT!T$75)","v":0},{"$f":"IF('Data Input - General'!$F$10=\"Yes\",0,Calc_BAT!U$81)+IF('Data Input - General'!$F$12=\"Yes\",0,Calc_BAT!U$75)","v":0},{"$f":"IF('Data Input - General'!$F$10=\"Yes\",0,Calc_BAT!V$81)+IF('Data Input - General'!$F$12=\"Yes\",0,Calc_BAT!V$75)","v":0},{"$f":"IF('Data Input - General'!$F$10=\"Yes\",0,Calc_BAT!W$81)+IF('Data Input - General'!$F$12=\"Yes\",0,Calc_BAT!W$75)","v":0},{"$f":"IF('Data Input - General'!$F$10=\"Yes\",0,Calc_BAT!X$81)+IF('Data Input - General'!$F$12=\"Yes\",0,Calc_BAT!X$75)","v":0},{"$f":"IF('Data Input - General'!$F$10=\"Yes\",0,Calc_BAT!Y$81)+IF('Data Input - General'!$F$12=\"Yes\",0,Calc_BAT!Y$75)","v":0},{"$f":"IF('Data Input - General'!$F$10=\"Yes\",0,Calc_BAT!Z$81)+IF('Data Input - General'!$F$12=\"Yes\",0,Calc_BAT!Z$75)","v":0},{"$f":"IF('Data Input - General'!$F$10=\"Yes\",0,Calc_BAT!AA$81)+IF('Data Input - General'!$F$12=\"Yes\",0,Calc_BAT!AA$75)","v":0},{"$f":"IF('Data Input - General'!$F$10=\"Yes\",0,Calc_BAT!AB$81)+IF('Data Input - General'!$F$12=\"Yes\",0,Calc_BAT!AB$75)","v":0},{"$f":"IF('Data Input - General'!$F$10=\"Yes\",0,Calc_BAT!AC$81)+IF('Data Input - General'!$F$12=\"Yes\",0,Calc_BAT!AC$75)","v":0},{"$f":"IF('Data Input - General'!$F$10=\"Yes\",0,Calc_BAT!AD$81)+IF('Data Input - General'!$F$12=\"Yes\",0,Calc_BAT!AD$75)","v":0},{"$f":"IF('Data Input - General'!$F$10=\"Yes\",0,Calc_BAT!AE$81)+IF('Data Input - General'!$F$12=\"Yes\",0,Calc_BAT!AE$75)","v":0},{"$f":"IF('Data Input - General'!$F$10=\"Yes\",0,Calc_BAT!AF$81)+IF('Data Input - General'!$F$12=\"Yes\",0,Calc_BAT!AF$75)","v":0},{"$f":"IF('Data Input - General'!$F$10=\"Yes\",0,Calc_BAT!AG$81)+IF('Data Input - General'!$F$12=\"Yes\",0,Calc_BAT!AG$75)","v":0},{"$f":"IF('Data Input - General'!$F$10=\"Yes\",0,Calc_BAT!AH$81)+IF('Data Input - General'!$F$12=\"Yes\",0,Calc_BAT!AH$75)","v":0},{"$f":"IF('Data Input - General'!$F$10=\"Yes\",0,Calc_BAT!AI$81)+IF('Data Input - General'!$F$12=\"Yes\",0,Calc_BAT!AI$75)","v":0},{"$f":"IF('Data Input - General'!$F$10=\"Yes\",0,Calc_BAT!AJ$81)+IF('Data Input - General'!$F$12=\"Yes\",0,Calc_BAT!AJ$75)","v":0},{"$f":"IF('Data Input - General'!$F$10=\"Yes\",0,Calc_BAT!AK$81)+IF('Data Input - General'!$F$12=\"Yes\",0,Calc_BAT!AK$75)","v":0},{"$f":"IF('Data Input - General'!$F$10=\"Yes\",0,Calc_BAT!AL$81)+IF('Data Input - General'!$F$12=\"Yes\",0,Calc_BAT!AL$75)","v":0},{"$f":"IF('Data Input - General'!$F$10=\"Yes\",0,Calc_BAT!AM$81)+IF('Data Input - General'!$F$12=\"Yes\",0,Calc_BAT!AM$75)","v":0},{"$f":"IF('Data Input - General'!$F$10=\"Yes\",0,Calc_BAT!AN$81)+IF('Data Input - General'!$F$12=\"Yes\",0,Calc_BAT!AN$75)","v":0},{"$f":"IF('Data Input - General'!$F$10=\"Yes\",0,Calc_BAT!AO$81)+IF('Data Input - General'!$F$12=\"Yes\",0,Calc_BAT!AO$75)","v":0},{"$f":"IF('Data Input - General'!$F$10=\"Yes\",0,Calc_BAT!AP$81)+IF('Data Input - General'!$F$12=\"Yes\",0,Calc_BAT!AP$75)","v":0},{"$f":"IF('Data Input - General'!$F$10=\"Yes\",0,Calc_BAT!AQ$81)+IF('Data Input - General'!$F$12=\"Yes\",0,Calc_BAT!AQ$75)","v":0},{"$f":"IF('Data Input - General'!$F$10=\"Yes\",0,Calc_BAT!AR$81)+IF('Data Input - General'!$F$12=\"Yes\",0,Calc_BAT!AR$75)","v":0},{"$f":"IF('Data Input - General'!$F$10=\"Yes\",0,Calc_BAT!AS$81)+IF('Data Input - General'!$F$12=\"Yes\",0,Calc_BAT!AS$75)","v":0},{"$f":"IF('Data Input - General'!$F$10=\"Yes\",0,Calc_BAT!AT$81)+IF('Data Input - General'!$F$12=\"Yes\",0,Calc_BAT!AT$75)","v":0},{"$f":"IF('Data Input - General'!$F$10=\"Yes\",0,Calc_BAT!AU$81)+IF('Data Input - General'!$F$12=\"Yes\",0,Calc_BAT!AU$75)","v":0},{"$f":"IF('Data Input - General'!$F$10=\"Yes\",0,Calc_BAT!AV$81)+IF('Data Input - General'!$F$12=\"Yes\",0,Calc_BAT!AV$75)","v":0},{"$f":"IF('Data Input - General'!$F$10=\"Yes\",0,Calc_BAT!AW$81)+IF('Data Input - General'!$F$12=\"Yes\",0,Calc_BAT!AW$75)","v":0},{"$f":"IF('Data Input - General'!$F$10=\"Yes\",0,Calc_BAT!AX$81)+IF('Data Input - General'!$F$12=\"Yes\",0,Calc_BAT!AX$75)","v":0},{"$f":"IF('Data Input - General'!$F$10=\"Yes\",0,Calc_BAT!AY$81)+IF('Data Input - General'!$F$12=\"Yes\",0,Calc_BAT!AY$75)","v":0},{"$f":"IF('Data Input - General'!$F$10=\"Yes\",0,Calc_BAT!AZ$81)+IF('Data Input - General'!$F$12=\"Yes\",0,Calc_BAT!AZ$75)","v":0},{"$f":"IF('Data Input - General'!$F$10=\"Yes\",0,Calc_BAT!BA$81)+IF('Data Input - General'!$F$12=\"Yes\",0,Calc_BAT!BA$75)","v":0},{"$f":"IF('Data Input - General'!$F$10=\"Yes\",0,Calc_BAT!BB$81)+IF('Data Input - General'!$F$12=\"Yes\",0,Calc_BAT!BB$75)","v":0},{"$f":"IF('Data Input - General'!$F$10=\"Yes\",0,Calc_BAT!BC$81)+IF('Data Input - General'!$F$12=\"Yes\",0,Calc_BAT!BC$75)","v":0},{"$f":"IF('Data Input - General'!$F$10=\"Yes\",0,Calc_BAT!BD$81)+IF('Data Input - General'!$F$12=\"Yes\",0,Calc_BAT!BD$75)","v":0},{"$f":"IF('Data Input - General'!$F$10=\"Yes\",0,Calc_BAT!BE$81)+IF('Data Input - General'!$F$12=\"Yes\",0,Calc_BAT!BE$75)","v":0},{"$f":"IF('Data Input - General'!$F$10=\"Yes\",0,Calc_BAT!BF$81)+IF('Data Input - General'!$F$12=\"Yes\",0,Calc_BAT!BF$75)","v":0},{"$f":"IF('Data Input - General'!$F$10=\"Yes\",0,Calc_BAT!BG$81)+IF('Data Input - General'!$F$12=\"Yes\",0,Calc_BAT!BG$75)","v":0},{"$f":"IF('Data Input - General'!$F$10=\"Yes\",0,Calc_BAT!BH$81)+IF('Data Input - General'!$F$12=\"Yes\",0,Calc_BAT!BH$75)","v":0},{"$f":"IF('Data Input - General'!$F$10=\"Yes\",0,Calc_BAT!BI$81)+IF('Data Input - General'!$F$12=\"Yes\",0,Calc_BAT!BI$75)","v":0},{"$f":"IF('Data Input - General'!$F$10=\"Yes\",0,Calc_BAT!BJ$81)+IF('Data Input - General'!$F$12=\"Yes\",0,Calc_BAT!BJ$75)","v":0},{"$f":"IF('Data Input - General'!$F$10=\"Yes\",0,Calc_BAT!BK$81)+IF('Data Input - General'!$F$12=\"Yes\",0,Calc_BAT!BK$75)","v":0},{"$f":"IF('Data Input - General'!$F$10=\"Yes\",0,Calc_BAT!BL$81)+IF('Data Input - General'!$F$12=\"Yes\",0,Calc_BAT!BL$75)","v":0},{"$f":"IF('Data Input - General'!$F$10=\"Yes\",0,Calc_BAT!BM$81)+IF('Data Input - General'!$F$12=\"Yes\",0,Calc_BAT!BM$75)","v":0},{"$f":"IF('Data Input - General'!$F$10=\"Yes\",0,Calc_BAT!BN$81)+IF('Data Input - General'!$F$12=\"Yes\",0,Calc_BAT!BN$75)","v":0},{"$f":"IF('Data Input - General'!$F$10=\"Yes\",0,Calc_BAT!BO$81)+IF('Data Input - General'!$F$12=\"Yes\",0,Calc_BAT!BO$75)","v":0},{"$f":"IF('Data Input - General'!$F$10=\"Yes\",0,Calc_BAT!BP$81)+IF('Data Input - General'!$F$12=\"Yes\",0,Calc_BAT!BP$75)","v":0},{"$f":"IF('Data Input - General'!$F$10=\"Yes\",0,Calc_BAT!BQ$81)+IF('Data Input - General'!$F$12=\"Yes\",0,Calc_BAT!BQ$75)","v":0},{"$f":"IF('Data Input - General'!$F$10=\"Yes\",0,Calc_BAT!BR$81)+IF('Data Input - General'!$F$12=\"Yes\",0,Calc_BAT!BR$75)","v":0},{"$f":"IF('Data Input - General'!$F$10=\"Yes\",0,Calc_BAT!BS$81)+IF('Data Input - General'!$F$12=\"Yes\",0,Calc_BAT!BS$75)","v":0},{"$f":"IF('Data Input - General'!$F$10=\"Yes\",0,Calc_BAT!BT$81)+IF('Data Input - General'!$F$12=\"Yes\",0,Calc_BAT!BT$75)","v":0},{"$f":"IF('Data Input - General'!$F$10=\"Yes\",0,Calc_BAT!BU$81)+IF('Data Input - General'!$F$12=\"Yes\",0,Calc_BAT!BU$75)","v":0},{"$f":"IF('Data Input - General'!$F$10=\"Yes\",0,Calc_BAT!BV$81)+IF('Data Input - General'!$F$12=\"Yes\",0,Calc_BAT!BV$75)","v":0},{"$f":"IF('Data Input - General'!$F$10=\"Yes\",0,Calc_BAT!BW$81)+IF('Data Input - General'!$F$12=\"Yes\",0,Calc_BAT!BW$75)","v":0},{"$f":"IF('Data Input - General'!$F$10=\"Yes\",0,Calc_BAT!BX$81)+IF('Data Input - General'!$F$12=\"Yes\",0,Calc_BAT!BX$75)","v":0},{"$f":"IF('Data Input - General'!$F$10=\"Yes\",0,Calc_BAT!BY$81)+IF('Data Input - General'!$F$12=\"Yes\",0,Calc_BAT!BY$75)","v":0},{"$f":"IF('Data Input - General'!$F$10=\"Yes\",0,Calc_BAT!BZ$81)+IF('Data Input - General'!$F$12=\"Yes\",0,Calc_BAT!BZ$75)","v":0},{"$f":"IF('Data Input - General'!$F$10=\"Yes\",0,Calc_BAT!CA$81)+IF('Data Input - General'!$F$12=\"Yes\",0,Calc_BAT!CA$75)","v":0},{"$f":"IF('Data Input - General'!$F$10=\"Yes\",0,Calc_BAT!CB$81)+IF('Data Input - General'!$F$12=\"Yes\",0,Calc_BAT!CB$75)","v":0},{"$f":"IF('Data Input - General'!$F$10=\"Yes\",0,Calc_BAT!CC$81)+IF('Data Input - General'!$F$12=\"Yes\",0,Calc_BAT!CC$75)","v":0},{"$f":"IF('Data Input - General'!$F$10=\"Yes\",0,Calc_BAT!CD$81)+IF('Data Input - General'!$F$12=\"Yes\",0,Calc_BAT!CD$75)","v":0},{"$f":"IF('Data Input - General'!$F$10=\"Yes\",0,Calc_BAT!CE$81)+IF('Data Input - General'!$F$12=\"Yes\",0,Calc_BAT!CE$75)","v":0},{"$f":"IF('Data Input - General'!$F$10=\"Yes\",0,Calc_BAT!CF$81)+IF('Data Input - General'!$F$12=\"Yes\",0,Calc_BAT!CF$75)","v":0},{"$f":"IF('Data Input - General'!$F$10=\"Yes\",0,Calc_BAT!CG$81)+IF('Data Input - General'!$F$12=\"Yes\",0,Calc_BAT!CG$75)","v":0},{"$f":"IF('Data Input - General'!$F$10=\"Yes\",0,Calc_BAT!CH$81)+IF('Data Input - General'!$F$12=\"Yes\",0,Calc_BAT!CH$75)","v":0},{"$f":"IF('Data Input - General'!$F$10=\"Yes\",0,Calc_BAT!CI$81)+IF('Data Input - General'!$F$12=\"Yes\",0,Calc_BAT!CI$75)","v":0},{"$f":"IF('Data Input - General'!$F$10=\"Yes\",0,Calc_BAT!CJ$81)+IF('Data Input - General'!$F$12=\"Yes\",0,Calc_BAT!CJ$75)","v":0},{"$f":"IF('Data Input - General'!$F$10=\"Yes\",0,Calc_BAT!CK$81)+IF('Data Input - General'!$F$12=\"Yes\",0,Calc_BAT!CK$75)","v":0},{"$f":"IF('Data Input - General'!$F$10=\"Yes\",0,Calc_BAT!CL$81)+IF('Data Input - General'!$F$12=\"Yes\",0,Calc_BAT!CL$75)","v":0},{"$f":"IF('Data Input - General'!$F$10=\"Yes\",0,Calc_BAT!CM$81)+IF('Data Input - General'!$F$12=\"Yes\",0,Calc_BAT!CM$75)","v":0},{"$f":"IF('Data Input - General'!$F$10=\"Yes\",0,Calc_BAT!CN$81)+IF('Data Input - General'!$F$12=\"Yes\",0,Calc_BAT!CN$75)","v":0},{"$f":"IF('Data Input - General'!$F$10=\"Yes\",0,Calc_BAT!CO$81)+IF('Data Input - General'!$F$12=\"Yes\",0,Calc_BAT!CO$75)","v":0},{"$f":"IF('Data Input - General'!$F$10=\"Yes\",0,Calc_BAT!CP$81)+IF('Data Input - General'!$F$12=\"Yes\",0,Calc_BAT!CP$75)","v":0},{"$f":"IF('Data Input - General'!$F$10=\"Yes\",0,Calc_BAT!CQ$81)+IF('Data Input - General'!$F$12=\"Yes\",0,Calc_BAT!CQ$75)","v":0},{"$f":"IF('Data Input - General'!$F$10=\"Yes\",0,Calc_BAT!CR$81)+IF('Data Input - General'!$F$12=\"Yes\",0,Calc_BAT!CR$75)","v":0},{"$f":"IF('Data Input - General'!$F$10=\"Yes\",0,Calc_BAT!CS$81)+IF('Data Input - General'!$F$12=\"Yes\",0,Calc_BAT!CS$75)","v":0},{"$f":"IF('Data Input - General'!$F$10=\"Yes\",0,Calc_BAT!CT$81)+IF('Data Input - General'!$F$12=\"Yes\",0,Calc_BAT!CT$75)","v":0},{"$f":"IF('Data Input - General'!$F$10=\"Yes\",0,Calc_BAT!CU$81)+IF('Data Input - General'!$F$12=\"Yes\",0,Calc_BAT!CU$75)","v":0},{"$f":"IF('Data Input - General'!$F$10=\"Yes\",0,Calc_BAT!CV$81)+IF('Data Input - General'!$F$12=\"Yes\",0,Calc_BAT!CV$75)","v":0},{"$f":"IF('Data Input - General'!$F$10=\"Yes\",0,Calc_BAT!CW$81)+IF('Data Input - General'!$F$12=\"Yes\",0,Calc_BAT!CW$75)","v":0},{"$f":"IF('Data Input - General'!$F$10=\"Yes\",0,Calc_BAT!CX$81)+IF('Data Input - General'!$F$12=\"Yes\",0,Calc_BAT!CX$75)","v":0},{"$f":"IF('Data Input - General'!$F$10=\"Yes\",0,Calc_BAT!CY$81)+IF('Data Input - General'!$F$12=\"Yes\",0,Calc_BAT!CY$75)","v":0}]
[null,"Value non-elec","£000's",{"$f":"IFERROR(INDEX('Carbon Prices'!$D$10:$CP$15,3,MATCH(Calc_BAT!D$6,'Carbon Prices'!$D$9:$CP$9,0))/1000,0)","v":3.6595483614396386E-2},{"$f":"IFERROR(INDEX('Carbon Prices'!$D$10:$CP$15,3,MATCH(Calc_BAT!E$6,'Carbon Prices'!$D$9:$CP$9,0))/1000,0)","v":4.1954810259537539E-2},{"$f":"IFERROR(INDEX('Carbon Prices'!$D$10:$CP$15,3,MATCH(Calc_BAT!F$6,'Carbon Prices'!$D$9:$CP$9,0))/1000,0)","v":5.0409774844480275E-2},{"$f":"IFERROR(INDEX('Carbon Prices'!$D$10:$CP$15,3,MATCH(Calc_BAT!G$6,'Carbon Prices'!$D$9:$CP$9,0))/1000,0)","v":5.886473942942301E-2},{"$f":"IFERROR(INDEX('Carbon Prices'!$D$10:$CP$15,3,MATCH(Calc_BAT!H$6,'Carbon Prices'!$D$9:$CP$9,0))/1000,0)","v":6.7319704014365739E-2},{"$f":"IFERROR(INDEX('Carbon Prices'!$D$10:$CP$15,3,MATCH(Calc_BAT!I$6,'Carbon Prices'!$D$9:$CP$9,0))/1000,0)","v":7.5774668599308467E-2},{"$f":"IFERROR(INDEX('Carbon Prices'!$D$10:$CP$15,3,MATCH(Calc_BAT!J$6,'Carbon Prices'!$D$9:$CP$9,0))/1000,0)","v":8.422963318425121E-2},{"$f":"IFERROR(INDEX('Carbon Prices'!$D$10:$CP$15,3,MATCH(Calc_BAT!K$6,'Carbon Prices'!$D$9:$CP$9,0))/1000,0)","v":9.2684597769193938E-2},{"$f":"IFERROR(INDEX('Carbon Prices'!$D$10:$CP$15,3,MATCH(Calc_BAT!L$6,'Carbon Prices'!$D$9:$CP$9,0))/1000,0)","v":0.10113956235413668},{"$f":"IFERROR(INDEX('Carbon Prices'!$D$10:$CP$15,3,MATCH(Calc_BAT!M$6,'Carbon Prices'!$D$9:$CP$9,0))/1000,0)","v":0.10959452693907941},{"$f":"IFERROR(INDEX('Carbon Prices'!$D$10:$CP$15,3,MATCH(Calc_BAT!N$6,'Carbon Prices'!$D$9:$CP$9,0))/1000,0)","v":0.11804949152402217},{"$f":"IFERROR(INDEX('Carbon Prices'!$D$10:$CP$15,3,MATCH(Calc_BAT!O$6,'Carbon Prices'!$D$9:$CP$9,0))/1000,0)","v":0.12650445610896488},{"$f":"IFERROR(INDEX('Carbon Prices'!$D$10:$CP$15,3,MATCH(Calc_BAT!P$6,'Carbon Prices'!$D$9:$CP$9,0))/1000,0)","v":0.13825129846194026},{"$f":"IFERROR(INDEX('Carbon Prices'!$D$10:$CP$15,3,MATCH(Calc_BAT!Q$6,'Carbon Prices'!$D$9:$CP$9,0))/1000,0)","v":0.14999814081491555},{"$f":"IFERROR(INDEX('Carbon Prices'!$D$10:$CP$15,3,MATCH(Calc_BAT!R$6,'Carbon Prices'!$D$9:$CP$9,0))/1000,0)","v":0.1617449831678909},{"$f":"IFERROR(INDEX('Carbon Prices'!$D$10:$CP$15,3,MATCH(Calc_BAT!S$6,'Carbon Prices'!$D$9:$CP$9,0))/1000,0)","v":0.1734918255208662},{"$f":"IFERROR(INDEX('Carbon Prices'!$D$10:$CP$15,3,MATCH(Calc_BAT!T$6,'Carbon Prices'!$D$9:$CP$9,0))/1000,0)","v":0.18523866787384149},{"$f":"IFERROR(INDEX('Carbon Prices'!$D$10:$CP$15,3,MATCH(Calc_BAT!U$6,'Carbon Prices'!$D$9:$CP$9,0))/1000,0)","v":0.19698551022681682},{"$f":"IFERROR(INDEX('Carbon Prices'!$D$10:$CP$15,3,MATCH(Calc_BAT!V$6,'Carbon Prices'!$D$9:$CP$9,0))/1000,0)","v":0.20873235257979214},{"$f":"IFERROR(INDEX('Carbon Prices'!$D$10:$CP$15,3,MATCH(Calc_BAT!W$6,'Carbon Prices'!$D$9:$CP$9,0))/1000,0)","v":0.22047919493276749},{"$f":"IFERROR(INDEX('Carbon Prices'!$D$10:$CP$15,3,MATCH(Calc_BAT!X$6,'Carbon Prices'!$D$9:$CP$9,0))/1000,0)","v":0.23222603728574279},{"$f":"IFERROR(INDEX('Carbon Prices'!$D$10:$CP$15,3,MATCH(Calc_BAT!Y$6,'Carbon Prices'!$D$9:$CP$9,0))/1000,0)","v":0.24397287963871811},{"$f":"IFERROR(INDEX('Carbon Prices'!$D$10:$CP$15,3,MATCH(Calc_BAT!Z$6,'Carbon Prices'!$D$9:$CP$9,0))/1000,0)","v":0.25571972199169341},{"$f":"IFERROR(INDEX('Carbon Prices'!$D$10:$CP$15,3,MATCH(Calc_BAT!AA$6,'Carbon Prices'!$D$9:$CP$9,0))/1000,0)","v":0.2674665643446687},{"$f":"IFERROR(INDEX('Carbon Prices'!$D$10:$CP$15,3,MATCH(Calc_BAT!AB$6,'Carbon Prices'!$D$9:$CP$9,0))/1000,0)","v":0.27921340669764405},{"$f":"IFERROR(INDEX('Carbon Prices'!$D$10:$CP$15,3,MATCH(Calc_BAT!AC$6,'Carbon Prices'!$D$9:$CP$9,0))/1000,0)","v":0.2909602490506194},{"$f":"IFERROR(INDEX('Carbon Prices'!$D$10:$CP$15,3,MATCH(Calc_BAT!AD$6,'Carbon Prices'!$D$9:$CP$9,0))/1000,0)","v":0.3027070914035947},{"$f":"IFERROR(INDEX('Carbon Prices'!$D$10:$CP$15,3,MATCH(Calc_BAT!AE$6,'Carbon Prices'!$D$9:$CP$9,0))/1000,0)","v":0.31445393375656999},{"$f":"IFERROR(INDEX('Carbon Prices'!$D$10:$CP$15,3,MATCH(Calc_BAT!AF$6,'Carbon Prices'!$D$9:$CP$9,0))/1000,0)","v":0.32620077610954529},{"$f":"IFERROR(INDEX('Carbon Prices'!$D$10:$CP$15,3,MATCH(Calc_BAT!AG$6,'Carbon Prices'!$D$9:$CP$9,0))/1000,0)","v":0.33794761846252058},{"$f":"IFERROR(INDEX('Carbon Prices'!$D$10:$CP$15,3,MATCH(Calc_BAT!AH$6,'Carbon Prices'!$D$9:$CP$9,0))/1000,0)","v":0.34969446081549593},{"$f":"IFERROR(INDEX('Carbon Prices'!$D$10:$CP$15,3,MATCH(Calc_BAT!AI$6,'Carbon Prices'!$D$9:$CP$9,0))/1000,0)","v":0},{"$f":"IFERROR(INDEX('Carbon Prices'!$D$10:$CP$15,3,MATCH(Calc_BAT!AJ$6,'Carbon Prices'!$D$9:$CP$9,0))/1000,0)","v":0},{"$f":"IFERROR(INDEX('Carbon Prices'!$D$10:$CP$15,3,MATCH(Calc_BAT!AK$6,'Carbon Prices'!$D$9:$CP$9,0))/1000,0)","v":0},{"$f":"IFERROR(INDEX('Carbon Prices'!$D$10:$CP$15,3,MATCH(Calc_BAT!AL$6,'Carbon Prices'!$D$9:$CP$9,0))/1000,0)","v":0},{"$f":"IFERROR(INDEX('Carbon Prices'!$D$10:$CP$15,3,MATCH(Calc_BAT!AM$6,'Carbon Prices'!$D$9:$CP$9,0))/1000,0)","v":0},{"$f":"IFERROR(INDEX('Carbon Prices'!$D$10:$CP$15,3,MATCH(Calc_BAT!AN$6,'Carbon Prices'!$D$9:$CP$9,0))/1000,0)","v":0},{"$f":"IFERROR(INDEX('Carbon Prices'!$D$10:$CP$15,3,MATCH(Calc_BAT!AO$6,'Carbon Prices'!$D$9:$CP$9,0))/1000,0)","v":0},{"$f":"IFERROR(INDEX('Carbon Prices'!$D$10:$CP$15,3,MATCH(Calc_BAT!AP$6,'Carbon Prices'!$D$9:$CP$9,0))/1000,0)","v":0},{"$f":"IFERROR(INDEX('Carbon Prices'!$D$10:$CP$15,3,MATCH(Calc_BAT!AQ$6,'Carbon Prices'!$D$9:$CP$9,0))/1000,0)","v":0},{"$f":"IFERROR(INDEX('Carbon Prices'!$D$10:$CP$15,3,MATCH(Calc_BAT!AR$6,'Carbon Prices'!$D$9:$CP$9,0))/1000,0)","v":0},{"$f":"IFERROR(INDEX('Carbon Prices'!$D$10:$CP$15,3,MATCH(Calc_BAT!AS$6,'Carbon Prices'!$D$9:$CP$9,0))/1000,0)","v":0},{"$f":"IFERROR(INDEX('Carbon Prices'!$D$10:$CP$15,3,MATCH(Calc_BAT!AT$6,'Carbon Prices'!$D$9:$CP$9,0))/1000,0)","v":0},{"$f":"IFERROR(INDEX('Carbon Prices'!$D$10:$CP$15,3,MATCH(Calc_BAT!AU$6,'Carbon Prices'!$D$9:$CP$9,0))/1000,0)","v":0},{"$f":"IFERROR(INDEX('Carbon Prices'!$D$10:$CP$15,3,MATCH(Calc_BAT!AV$6,'Carbon Prices'!$D$9:$CP$9,0))/1000,0)","v":0},{"$f":"IFERROR(INDEX('Carbon Prices'!$D$10:$CP$15,3,MATCH(Calc_BAT!AW$6,'Carbon Prices'!$D$9:$CP$9,0))/1000,0)","v":0},{"$f":"IFERROR(INDEX('Carbon Prices'!$D$10:$CP$15,3,MATCH(Calc_BAT!AX$6,'Carbon Prices'!$D$9:$CP$9,0))/1000,0)","v":0},{"$f":"IFERROR(INDEX('Carbon Prices'!$D$10:$CP$15,3,MATCH(Calc_BAT!AY$6,'Carbon Prices'!$D$9:$CP$9,0))/1000,0)","v":0},{"$f":"IFERROR(INDEX('Carbon Prices'!$D$10:$CP$15,3,MATCH(Calc_BAT!AZ$6,'Carbon Prices'!$D$9:$CP$9,0))/1000,0)","v":0},{"$f":"IFERROR(INDEX('Carbon Prices'!$D$10:$CP$15,3,MATCH(Calc_BAT!BA$6,'Carbon Prices'!$D$9:$CP$9,0))/1000,0)","v":0},{"$f":"IFERROR(INDEX('Carbon Prices'!$D$10:$CP$15,3,MATCH(Calc_BAT!BB$6,'Carbon Prices'!$D$9:$CP$9,0))/1000,0)","v":0},{"$f":"IFERROR(INDEX('Carbon Prices'!$D$10:$CP$15,3,MATCH(Calc_BAT!BC$6,'Carbon Prices'!$D$9:$CP$9,0))/1000,0)","v":0},{"$f":"IFERROR(INDEX('Carbon Prices'!$D$10:$CP$15,3,MATCH(Calc_BAT!BD$6,'Carbon Prices'!$D$9:$CP$9,0))/1000,0)","v":0},{"$f":"IFERROR(INDEX('Carbon Prices'!$D$10:$CP$15,3,MATCH(Calc_BAT!BE$6,'Carbon Prices'!$D$9:$CP$9,0))/1000,0)","v":0},{"$f":"IFERROR(INDEX('Carbon Prices'!$D$10:$CP$15,3,MATCH(Calc_BAT!BF$6,'Carbon Prices'!$D$9:$CP$9,0))/1000,0)","v":0},{"$f":"IFERROR(INDEX('Carbon Prices'!$D$10:$CP$15,3,MATCH(Calc_BAT!BG$6,'Carbon Prices'!$D$9:$CP$9,0))/1000,0)","v":0},{"$f":"IFERROR(INDEX('Carbon Prices'!$D$10:$CP$15,3,MATCH(Calc_BAT!BH$6,'Carbon Prices'!$D$9:$CP$9,0))/1000,0)","v":0},{"$f":"IFERROR(INDEX('Carbon Prices'!$D$10:$CP$15,3,MATCH(Calc_BAT!BI$6,'Carbon Prices'!$D$9:$CP$9,0))/1000,0)","v":0},{"$f":"IFERROR(INDEX('Carbon Prices'!$D$10:$CP$15,3,MATCH(Calc_BAT!BJ$6,'Carbon Prices'!$D$9:$CP$9,0))/1000,0)","v":0},{"$f":"IFERROR(INDEX('Carbon Prices'!$D$10:$CP$15,3,MATCH(Calc_BAT!BK$6,'Carbon Prices'!$D$9:$CP$9,0))/1000,0)","v":0},{"$f":"IFERROR(INDEX('Carbon Prices'!$D$10:$CP$15,3,MATCH(Calc_BAT!BL$6,'Carbon Prices'!$D$9:$CP$9,0))/1000,0)","v":0},{"$f":"IFERROR(INDEX('Carbon Prices'!$D$10:$CP$15,3,MATCH(Calc_BAT!BM$6,'Carbon Prices'!$D$9:$CP$9,0))/1000,0)","v":0},{"$f":"IFERROR(INDEX('Carbon Prices'!$D$10:$CP$15,3,MATCH(Calc_BAT!BN$6,'Carbon Prices'!$D$9:$CP$9,0))/1000,0)","v":0},{"$f":"IFERROR(INDEX('Carbon Prices'!$D$10:$CP$15,3,MATCH(Calc_BAT!BO$6,'Carbon Prices'!$D$9:$CP$9,0))/1000,0)","v":0},{"$f":"IFERROR(INDEX('Carbon Prices'!$D$10:$CP$15,3,MATCH(Calc_BAT!BP$6,'Carbon Prices'!$D$9:$CP$9,0))/1000,0)","v":0},{"$f":"IFERROR(INDEX('Carbon Prices'!$D$10:$CP$15,3,MATCH(Calc_BAT!BQ$6,'Carbon Prices'!$D$9:$CP$9,0))/1000,0)","v":0},{"$f":"IFERROR(INDEX('Carbon Prices'!$D$10:$CP$15,3,MATCH(Calc_BAT!BR$6,'Carbon Prices'!$D$9:$CP$9,0))/1000,0)","v":0},{"$f":"IFERROR(INDEX('Carbon Prices'!$D$10:$CP$15,3,MATCH(Calc_BAT!BS$6,'Carbon Prices'!$D$9:$CP$9,0))/1000,0)","v":0},{"$f":"IFERROR(INDEX('Carbon Prices'!$D$10:$CP$15,3,MATCH(Calc_BAT!BT$6,'Carbon Prices'!$D$9:$CP$9,0))/1000,0)","v":0},{"$f":"IFERROR(INDEX('Carbon Prices'!$D$10:$CP$15,3,MATCH(Calc_BAT!BU$6,'Carbon Prices'!$D$9:$CP$9,0))/1000,0)","v":0},{"$f":"IFERROR(INDEX('Carbon Prices'!$D$10:$CP$15,3,MATCH(Calc_BAT!BV$6,'Carbon Prices'!$D$9:$CP$9,0))/1000,0)","v":0},{"$f":"IFERROR(INDEX('Carbon Prices'!$D$10:$CP$15,3,MATCH(Calc_BAT!BW$6,'Carbon Prices'!$D$9:$CP$9,0))/1000,0)","v":0},{"$f":"IFERROR(INDEX('Carbon Prices'!$D$10:$CP$15,3,MATCH(Calc_BAT!BX$6,'Carbon Prices'!$D$9:$CP$9,0))/1000,0)","v":0},{"$f":"IFERROR(INDEX('Carbon Prices'!$D$10:$CP$15,3,MATCH(Calc_BAT!BY$6,'Carbon Prices'!$D$9:$CP$9,0))/1000,0)","v":0},{"$f":"IFERROR(INDEX('Carbon Prices'!$D$10:$CP$15,3,MATCH(Calc_BAT!BZ$6,'Carbon Prices'!$D$9:$CP$9,0))/1000,0)","v":0},{"$f":"IFERROR(INDEX('Carbon Prices'!$D$10:$CP$15,3,MATCH(Calc_BAT!CA$6,'Carbon Prices'!$D$9:$CP$9,0))/1000,0)","v":0},{"$f":"IFERROR(INDEX('Carbon Prices'!$D$10:$CP$15,3,MATCH(Calc_BAT!CB$6,'Carbon Prices'!$D$9:$CP$9,0))/1000,0)","v":0},{"$f":"IFERROR(INDEX('Carbon Prices'!$D$10:$CP$15,3,MATCH(Calc_BAT!CC$6,'Carbon Prices'!$D$9:$CP$9,0))/1000,0)","v":0},{"$f":"IFERROR(INDEX('Carbon Prices'!$D$10:$CP$15,3,MATCH(Calc_BAT!CD$6,'Carbon Prices'!$D$9:$CP$9,0))/1000,0)","v":0},{"$f":"IFERROR(INDEX('Carbon Prices'!$D$10:$CP$15,3,MATCH(Calc_BAT!CE$6,'Carbon Prices'!$D$9:$CP$9,0))/1000,0)","v":0},{"$f":"IFERROR(INDEX('Carbon Prices'!$D$10:$CP$15,3,MATCH(Calc_BAT!CF$6,'Carbon Prices'!$D$9:$CP$9,0))/1000,0)","v":0},{"$f":"IFERROR(INDEX('Carbon Prices'!$D$10:$CP$15,3,MATCH(Calc_BAT!CG$6,'Carbon Prices'!$D$9:$CP$9,0))/1000,0)","v":0},{"$f":"IFERROR(INDEX('Carbon Prices'!$D$10:$CP$15,3,MATCH(Calc_BAT!CH$6,'Carbon Prices'!$D$9:$CP$9,0))/1000,0)","v":0},{"$f":"IFERROR(INDEX('Carbon Prices'!$D$10:$CP$15,3,MATCH(Calc_BAT!CI$6,'Carbon Prices'!$D$9:$CP$9,0))/1000,0)","v":0},{"$f":"IFERROR(INDEX('Carbon Prices'!$D$10:$CP$15,3,MATCH(Calc_BAT!CJ$6,'Carbon Prices'!$D$9:$CP$9,0))/1000,0)","v":0},{"$f":"IFERROR(INDEX('Carbon Prices'!$D$10:$CP$15,3,MATCH(Calc_BAT!CK$6,'Carbon Prices'!$D$9:$CP$9,0))/1000,0)","v":0},{"$f":"IFERROR(INDEX('Carbon Prices'!$D$10:$CP$15,3,MATCH(Calc_BAT!CL$6,'Carbon Prices'!$D$9:$CP$9,0))/1000,0)","v":0},{"$f":"IFERROR(INDEX('Carbon Prices'!$D$10:$CP$15,3,MATCH(Calc_BAT!CM$6,'Carbon Prices'!$D$9:$CP$9,0))/1000,0)","v":0},{"$f":"IFERROR(INDEX('Carbon Prices'!$D$10:$CP$15,3,MATCH(Calc_BAT!CN$6,'Carbon Prices'!$D$9:$CP$9,0))/1000,0)","v":0},{"$f":"IFERROR(INDEX('Carbon Prices'!$D$10:$CP$15,3,MATCH(Calc_BAT!CO$6,'Carbon Prices'!$D$9:$CP$9,0))/1000,0)","v":0},{"$f":"IFERROR(INDEX('Carbon Prices'!$D$10:$CP$15,3,MATCH(Calc_BAT!CP$6,'Carbon Prices'!$D$9:$CP$9,0))/1000,0)","v":0},{"$f":"IFERROR(INDEX('Carbon Prices'!$D$10:$CP$15,3,MATCH(Calc_BAT!CQ$6,'Carbon Prices'!$D$9:$CP$9,0))/1000,0)","v":0},{"$f":"IFERROR(INDEX('Carbon Prices'!$D$10:$CP$15,3,MATCH(Calc_BAT!CR$6,'Carbon Prices'!$D$9:$CP$9,0))/1000,0)","v":0},{"$f":"IFERROR(INDEX('Carbon Prices'!$D$10:$CP$15,3,MATCH(Calc_BAT!CS$6,'Carbon Prices'!$D$9:$CP$9,0))/1000,0)","v":0},{"$f":"IFERROR(INDEX('Carbon Prices'!$D$10:$CP$15,3,MATCH(Calc_BAT!CT$6,'Carbon Prices'!$D$9:$CP$9,0))/1000,0)","v":0},{"$f":"IFERROR(INDEX('Carbon Prices'!$D$10:$CP$15,3,MATCH(Calc_BAT!CU$6,'Carbon Prices'!$D$9:$CP$9,0))/1000,0)","v":0},{"$f":"IFERROR(INDEX('Carbon Prices'!$D$10:$CP$15,3,MATCH(Calc_BAT!CV$6,'Carbon Prices'!$D$9:$CP$9,0))/1000,0)","v":0},{"$f":"IFERROR(INDEX('Carbon Prices'!$D$10:$CP$15,3,MATCH(Calc_BAT!CW$6,'Carbon Prices'!$D$9:$CP$9,0))/1000,0)","v":0},{"$f":"IFERROR(INDEX('Carbon Prices'!$D$10:$CP$15,3,MATCH(Calc_BAT!CX$6,'Carbon Prices'!$D$9:$CP$9,0))/1000,0)","v":0},{"$f":"IFERROR(INDEX('Carbon Prices'!$D$10:$CP$15,3,MATCH(Calc_BAT!CY$6,'Carbon Prices'!$D$9:$CP$9,0))/1000,0)","v":0}]
[null,"Total value elec","£000's",{"$f":"IFERROR(INDEX('Carbon Prices'!$D$10:$CP$15,6,MATCH(Calc_BAT!D$6,'Carbon Prices'!$D$9:$CP$9,0))/1000,0)","v":0.10682994182319348},{"$f":"IFERROR(INDEX('Carbon Prices'!$D$10:$CP$15,6,MATCH(Calc_BAT!E$6,'Carbon Prices'!$D$9:$CP$9,0))/1000,0)","v":0.10843239095054137},{"$f":"IFERROR(INDEX('Carbon Prices'!$D$10:$CP$15,6,MATCH(Calc_BAT!F$6,'Carbon Prices'!$D$9:$CP$9,0))/1000,0)","v":0.11023959746638375},{"$f":"IFERROR(INDEX('Carbon Prices'!$D$10:$CP$15,6,MATCH(Calc_BAT!G$6,'Carbon Prices'!$D$9:$CP$9,0))/1000,0)","v":0.11204680398222609},{"$f":"IFERROR(INDEX('Carbon Prices'!$D$10:$CP$15,6,MATCH(Calc_BAT!H$6,'Carbon Prices'!$D$9:$CP$9,0))/1000,0)","v":0.11385401049806844},{"$f":"IFERROR(INDEX('Carbon Prices'!$D$10:$CP$15,6,MATCH(Calc_BAT!I$6,'Carbon Prices'!$D$9:$CP$9,0))/1000,0)","v":0.1156612170139108},{"$f":"IFERROR(INDEX('Carbon Prices'!$D$10:$CP$15,6,MATCH(Calc_BAT!J$6,'Carbon Prices'!$D$9:$CP$9,0))/1000,0)","v":0.11746842352975315},{"$f":"IFERROR(INDEX('Carbon Prices'!$D$10:$CP$15,6,MATCH(Calc_BAT!K$6,'Carbon Prices'!$D$9:$CP$9,0))/1000,0)","v":0.11927563004559551},{"$f":"IFERROR(INDEX('Carbon Prices'!$D$10:$CP$15,6,MATCH(Calc_BAT!L$6,'Carbon Prices'!$D$9:$CP$9,0))/1000,0)","v":0.12108283656143787},{"$f":"IFERROR(INDEX('Carbon Prices'!$D$10:$CP$15,6,MATCH(Calc_BAT!M$6,'Carbon Prices'!$D$9:$CP$9,0))/1000,0)","v":0.12289004307728023},{"$f":"IFERROR(INDEX('Carbon Prices'!$D$10:$CP$15,6,MATCH(Calc_BAT!N$6,'Carbon Prices'!$D$9:$CP$9,0))/1000,0)","v":0.12469724959312259},{"$f":"IFERROR(INDEX('Carbon Prices'!$D$10:$CP$15,6,MATCH(Calc_BAT!O$6,'Carbon Prices'!$D$9:$CP$9,0))/1000,0)","v":0.12650445610896494},{"$f":"IFERROR(INDEX('Carbon Prices'!$D$10:$CP$15,6,MATCH(Calc_BAT!P$6,'Carbon Prices'!$D$9:$CP$9,0))/1000,0)","v":0.13825129846194026},{"$f":"IFERROR(INDEX('Carbon Prices'!$D$10:$CP$15,6,MATCH(Calc_BAT!Q$6,'Carbon Prices'!$D$9:$CP$9,0))/1000,0)","v":0.14999814081491555},{"$f":"IFERROR(INDEX('Carbon Prices'!$D$10:$CP$15,6,MATCH(Calc_BAT!R$6,'Carbon Prices'!$D$9:$CP$9,0))/1000,0)","v":0.1617449831678909},{"$f":"IFERROR(INDEX('Carbon Prices'!$D$10:$CP$15,6,MATCH(Calc_BAT!S$6,'Carbon Prices'!$D$9:$CP$9,0))/1000,0)","v":0.1734918255208662},{"$f":"IFERROR(INDEX('Carbon Prices'!$D$10:$CP$15,6,MATCH(Calc_BAT!T$6,'Carbon Prices'!$D$9:$CP$9,0))/1000,0)","v":0.18523866787384149},{"$f":"IFERROR(INDEX('Carbon Prices'!$D$10:$CP$15,6,MATCH(Calc_BAT!U$6,'Carbon Prices'!$D$9:$CP$9,0))/1000,0)","v":0.19698551022681682},{"$f":"IFERROR(INDEX('Carbon Prices'!$D$10:$CP$15,6,MATCH(Calc_BAT!V$6,'Carbon Prices'!$D$9:$CP$9,0))/1000,0)","v":0.20873235257979214},{"$f":"IFERROR(INDEX('Carbon Prices'!$D$10:$CP$15,6,MATCH(Calc_BAT!W$6,'Carbon Prices'!$D$9:$CP$9,0))/1000,0)","v":0.22047919493276749},{"$f":"IFERROR(INDEX('Carbon Prices'!$D$10:$CP$15,6,MATCH(Calc_BAT!X$6,'Carbon Prices'!$D$9:$CP$9,0))/1000,0)","v":0.23222603728574279},{"$f":"IFERROR(INDEX('Carbon Prices'!$D$10:$CP$15,6,MATCH(Calc_BAT!Y$6,'Carbon Prices'!$D$9:$CP$9,0))/1000,0)","v":0.24397287963871811},{"$f":"IFERROR(INDEX('Carbon Prices'!$D$10:$CP$15,6,MATCH(Calc_BAT!Z$6,'Carbon Prices'!$D$9:$CP$9,0))/1000,0)","v":0.25571972199169341},{"$f":"IFERROR(INDEX('Carbon Prices'!$D$10:$CP$15,6,MATCH(Calc_BAT!AA$6,'Carbon Prices'!$D$9:$CP$9,0))/1000,0)","v":0.2674665643446687},{"$f":"IFERROR(INDEX('Carbon Prices'!$D$10:$CP$15,6,MATCH(Calc_BAT!AB$6,'Carbon Prices'!$D$9:$CP$9,0))/1000,0)","v":0.27921340669764405},{"$f":"IFERROR(INDEX('Carbon Prices'!$D$10:$CP$15,6,MATCH(Calc_BAT!AC$6,'Carbon Prices'!$D$9:$CP$9,0))/1000,0)","v":0.2909602490506194},{"$f":"IFERROR(INDEX('Carbon Prices'!$D$10:$CP$15,6,MATCH(Calc_BAT!AD$6,'Carbon Prices'!$D$9:$CP$9,0))/1000,0)","v":0.3027070914035947},{"$f":"IFERROR(INDEX('Carbon Prices'!$D$10:$CP$15,6,MATCH(Calc_BAT!AE$6,'Carbon Prices'!$D$9:$CP$9,0))/1000,0)","v":0.31445393375656999},{"$f":"IFERROR(INDEX('Carbon Prices'!$D$10:$CP$15,6,MATCH(Calc_BAT!AF$6,'Carbon Prices'!$D$9:$CP$9,0))/1000,0)","v":0.32620077610954529},{"$f":"IFERROR(INDEX('Carbon Prices'!$D$10:$CP$15,6,MATCH(Calc_BAT!AG$6,'Carbon Prices'!$D$9:$CP$9,0))/1000,0)","v":0.33794761846252058},{"$f":"IFERROR(INDEX('Carbon Prices'!$D$10:$CP$15,6,MATCH(Calc_BAT!AH$6,'Carbon Prices'!$D$9:$CP$9,0))/1000,0)","v":0.34969446081549593},{"$f":"IFERROR(INDEX('Carbon Prices'!$D$10:$CP$15,6,MATCH(Calc_BAT!AI$6,'Carbon Prices'!$D$9:$CP$9,0))/1000,0)","v":0},{"$f":"IFERROR(INDEX('Carbon Prices'!$D$10:$CP$15,6,MATCH(Calc_BAT!AJ$6,'Carbon Prices'!$D$9:$CP$9,0))/1000,0)","v":0},{"$f":"IFERROR(INDEX('Carbon Prices'!$D$10:$CP$15,6,MATCH(Calc_BAT!AK$6,'Carbon Prices'!$D$9:$CP$9,0))/1000,0)","v":0},{"$f":"IFERROR(INDEX('Carbon Prices'!$D$10:$CP$15,6,MATCH(Calc_BAT!AL$6,'Carbon Prices'!$D$9:$CP$9,0))/1000,0)","v":0},{"$f":"IFERROR(INDEX('Carbon Prices'!$D$10:$CP$15,6,MATCH(Calc_BAT!AM$6,'Carbon Prices'!$D$9:$CP$9,0))/1000,0)","v":0},{"$f":"IFERROR(INDEX('Carbon Prices'!$D$10:$CP$15,6,MATCH(Calc_BAT!AN$6,'Carbon Prices'!$D$9:$CP$9,0))/1000,0)","v":0},{"$f":"IFERROR(INDEX('Carbon Prices'!$D$10:$CP$15,6,MATCH(Calc_BAT!AO$6,'Carbon Prices'!$D$9:$CP$9,0))/1000,0)","v":0},{"$f":"IFERROR(INDEX('Carbon Prices'!$D$10:$CP$15,6,MATCH(Calc_BAT!AP$6,'Carbon Prices'!$D$9:$CP$9,0))/1000,0)","v":0},{"$f":"IFERROR(INDEX('Carbon Prices'!$D$10:$CP$15,6,MATCH(Calc_BAT!AQ$6,'Carbon Prices'!$D$9:$CP$9,0))/1000,0)","v":0},{"$f":"IFERROR(INDEX('Carbon Prices'!$D$10:$CP$15,6,MATCH(Calc_BAT!AR$6,'Carbon Prices'!$D$9:$CP$9,0))/1000,0)","v":0},{"$f":"IFERROR(INDEX('Carbon Prices'!$D$10:$CP$15,6,MATCH(Calc_BAT!AS$6,'Carbon Prices'!$D$9:$CP$9,0))/1000,0)","v":0},{"$f":"IFERROR(INDEX('Carbon Prices'!$D$10:$CP$15,6,MATCH(Calc_BAT!AT$6,'Carbon Prices'!$D$9:$CP$9,0))/1000,0)","v":0},{"$f":"IFERROR(INDEX('Carbon Prices'!$D$10:$CP$15,6,MATCH(Calc_BAT!AU$6,'Carbon Prices'!$D$9:$CP$9,0))/1000,0)","v":0},{"$f":"IFERROR(INDEX('Carbon Prices'!$D$10:$CP$15,6,MATCH(Calc_BAT!AV$6,'Carbon Prices'!$D$9:$CP$9,0))/1000,0)","v":0},{"$f":"IFERROR(INDEX('Carbon Prices'!$D$10:$CP$15,6,MATCH(Calc_BAT!AW$6,'Carbon Prices'!$D$9:$CP$9,0))/1000,0)","v":0},{"$f":"IFERROR(INDEX('Carbon Prices'!$D$10:$CP$15,6,MATCH(Calc_BAT!AX$6,'Carbon Prices'!$D$9:$CP$9,0))/1000,0)","v":0},{"$f":"IFERROR(INDEX('Carbon Prices'!$D$10:$CP$15,6,MATCH(Calc_BAT!AY$6,'Carbon Prices'!$D$9:$CP$9,0))/1000,0)","v":0},{"$f":"IFERROR(INDEX('Carbon Prices'!$D$10:$CP$15,6,MATCH(Calc_BAT!AZ$6,'Carbon Prices'!$D$9:$CP$9,0))/1000,0)","v":0},{"$f":"IFERROR(INDEX('Carbon Prices'!$D$10:$CP$15,6,MATCH(Calc_BAT!BA$6,'Carbon Prices'!$D$9:$CP$9,0))/1000,0)","v":0},{"$f":"IFERROR(INDEX('Carbon Prices'!$D$10:$CP$15,6,MATCH(Calc_BAT!BB$6,'Carbon Prices'!$D$9:$CP$9,0))/1000,0)","v":0},{"$f":"IFERROR(INDEX('Carbon Prices'!$D$10:$CP$15,6,MATCH(Calc_BAT!BC$6,'Carbon Prices'!$D$9:$CP$9,0))/1000,0)","v":0},{"$f":"IFERROR(INDEX('Carbon Prices'!$D$10:$CP$15,6,MATCH(Calc_BAT!BD$6,'Carbon Prices'!$D$9:$CP$9,0))/1000,0)","v":0},{"$f":"IFERROR(INDEX('Carbon Prices'!$D$10:$CP$15,6,MATCH(Calc_BAT!BE$6,'Carbon Prices'!$D$9:$CP$9,0))/1000,0)","v":0},{"$f":"IFERROR(INDEX('Carbon Prices'!$D$10:$CP$15,6,MATCH(Calc_BAT!BF$6,'Carbon Prices'!$D$9:$CP$9,0))/1000,0)","v":0},{"$f":"IFERROR(INDEX('Carbon Prices'!$D$10:$CP$15,6,MATCH(Calc_BAT!BG$6,'Carbon Prices'!$D$9:$CP$9,0))/1000,0)","v":0},{"$f":"IFERROR(INDEX('Carbon Prices'!$D$10:$CP$15,6,MATCH(Calc_BAT!BH$6,'Carbon Prices'!$D$9:$CP$9,0))/1000,0)","v":0},{"$f":"IFERROR(INDEX('Carbon Prices'!$D$10:$CP$15,6,MATCH(Calc_BAT!BI$6,'Carbon Prices'!$D$9:$CP$9,0))/1000,0)","v":0},{"$f":"IFERROR(INDEX('Carbon Prices'!$D$10:$CP$15,6,MATCH(Calc_BAT!BJ$6,'Carbon Prices'!$D$9:$CP$9,0))/1000,0)","v":0},{"$f":"IFERROR(INDEX('Carbon Prices'!$D$10:$CP$15,6,MATCH(Calc_BAT!BK$6,'Carbon Prices'!$D$9:$CP$9,0))/1000,0)","v":0},{"$f":"IFERROR(INDEX('Carbon Prices'!$D$10:$CP$15,6,MATCH(Calc_BAT!BL$6,'Carbon Prices'!$D$9:$CP$9,0))/1000,0)","v":0},{"$f":"IFERROR(INDEX('Carbon Prices'!$D$10:$CP$15,6,MATCH(Calc_BAT!BM$6,'Carbon Prices'!$D$9:$CP$9,0))/1000,0)","v":0},{"$f":"IFERROR(INDEX('Carbon Prices'!$D$10:$CP$15,6,MATCH(Calc_BAT!BN$6,'Carbon Prices'!$D$9:$CP$9,0))/1000,0)","v":0},{"$f":"IFERROR(INDEX('Carbon Prices'!$D$10:$CP$15,6,MATCH(Calc_BAT!BO$6,'Carbon Prices'!$D$9:$CP$9,0))/1000,0)","v":0},{"$f":"IFERROR(INDEX('Carbon Prices'!$D$10:$CP$15,6,MATCH(Calc_BAT!BP$6,'Carbon Prices'!$D$9:$CP$9,0))/1000,0)","v":0},{"$f":"IFERROR(INDEX('Carbon Prices'!$D$10:$CP$15,6,MATCH(Calc_BAT!BQ$6,'Carbon Prices'!$D$9:$CP$9,0))/1000,0)","v":0},{"$f":"IFERROR(INDEX('Carbon Prices'!$D$10:$CP$15,6,MATCH(Calc_BAT!BR$6,'Carbon Prices'!$D$9:$CP$9,0))/1000,0)","v":0},{"$f":"IFERROR(INDEX('Carbon Prices'!$D$10:$CP$15,6,MATCH(Calc_BAT!BS$6,'Carbon Prices'!$D$9:$CP$9,0))/1000,0)","v":0},{"$f":"IFERROR(INDEX('Carbon Prices'!$D$10:$CP$15,6,MATCH(Calc_BAT!BT$6,'Carbon Prices'!$D$9:$CP$9,0))/1000,0)","v":0},{"$f":"IFERROR(INDEX('Carbon Prices'!$D$10:$CP$15,6,MATCH(Calc_BAT!BU$6,'Carbon Prices'!$D$9:$CP$9,0))/1000,0)","v":0},{"$f":"IFERROR(INDEX('Carbon Prices'!$D$10:$CP$15,6,MATCH(Calc_BAT!BV$6,'Carbon Prices'!$D$9:$CP$9,0))/1000,0)","v":0},{"$f":"IFERROR(INDEX('Carbon Prices'!$D$10:$CP$15,6,MATCH(Calc_BAT!BW$6,'Carbon Prices'!$D$9:$CP$9,0))/1000,0)","v":0},{"$f":"IFERROR(INDEX('Carbon Prices'!$D$10:$CP$15,6,MATCH(Calc_BAT!BX$6,'Carbon Prices'!$D$9:$CP$9,0))/1000,0)","v":0},{"$f":"IFERROR(INDEX('Carbon Prices'!$D$10:$CP$15,6,MATCH(Calc_BAT!BY$6,'Carbon Prices'!$D$9:$CP$9,0))/1000,0)","v":0},{"$f":"IFERROR(INDEX('Carbon Prices'!$D$10:$CP$15,6,MATCH(Calc_BAT!BZ$6,'Carbon Prices'!$D$9:$CP$9,0))/1000,0)","v":0},{"$f":"IFERROR(INDEX('Carbon Prices'!$D$10:$CP$15,6,MATCH(Calc_BAT!CA$6,'Carbon Prices'!$D$9:$CP$9,0))/1000,0)","v":0},{"$f":"IFERROR(INDEX('Carbon Prices'!$D$10:$CP$15,6,MATCH(Calc_BAT!CB$6,'Carbon Prices'!$D$9:$CP$9,0))/1000,0)","v":0},{"$f":"IFERROR(INDEX('Carbon Prices'!$D$10:$CP$15,6,MATCH(Calc_BAT!CC$6,'Carbon Prices'!$D$9:$CP$9,0))/1000,0)","v":0},{"$f":"IFERROR(INDEX('Carbon Prices'!$D$10:$CP$15,6,MATCH(Calc_BAT!CD$6,'Carbon Prices'!$D$9:$CP$9,0))/1000,0)","v":0},{"$f":"IFERROR(INDEX('Carbon Prices'!$D$10:$CP$15,6,MATCH(Calc_BAT!CE$6,'Carbon Prices'!$D$9:$CP$9,0))/1000,0)","v":0},{"$f":"IFERROR(INDEX('Carbon Prices'!$D$10:$CP$15,6,MATCH(Calc_BAT!CF$6,'Carbon Prices'!$D$9:$CP$9,0))/1000,0)","v":0},{"$f":"IFERROR(INDEX('Carbon Prices'!$D$10:$CP$15,6,MATCH(Calc_BAT!CG$6,'Carbon Prices'!$D$9:$CP$9,0))/1000,0)","v":0},{"$f":"IFERROR(INDEX('Carbon Prices'!$D$10:$CP$15,6,MATCH(Calc_BAT!CH$6,'Carbon Prices'!$D$9:$CP$9,0))/1000,0)","v":0},{"$f":"IFERROR(INDEX('Carbon Prices'!$D$10:$CP$15,6,MATCH(Calc_BAT!CI$6,'Carbon Prices'!$D$9:$CP$9,0))/1000,0)","v":0},{"$f":"IFERROR(INDEX('Carbon Prices'!$D$10:$CP$15,6,MATCH(Calc_BAT!CJ$6,'Carbon Prices'!$D$9:$CP$9,0))/1000,0)","v":0},{"$f":"IFERROR(INDEX('Carbon Prices'!$D$10:$CP$15,6,MATCH(Calc_BAT!CK$6,'Carbon Prices'!$D$9:$CP$9,0))/1000,0)","v":0},{"$f":"IFERROR(INDEX('Carbon Prices'!$D$10:$CP$15,6,MATCH(Calc_BAT!CL$6,'Carbon Prices'!$D$9:$CP$9,0))/1000,0)","v":0},{"$f":"IFERROR(INDEX('Carbon Prices'!$D$10:$CP$15,6,MATCH(Calc_BAT!CM$6,'Carbon Prices'!$D$9:$CP$9,0))/1000,0)","v":0},{"$f":"IFERROR(INDEX('Carbon Prices'!$D$10:$CP$15,6,MATCH(Calc_BAT!CN$6,'Carbon Prices'!$D$9:$CP$9,0))/1000,0)","v":0},{"$f":"IFERROR(INDEX('Carbon Prices'!$D$10:$CP$15,6,MATCH(Calc_BAT!CO$6,'Carbon Prices'!$D$9:$CP$9,0))/1000,0)","v":0},{"$f":"IFERROR(INDEX('Carbon Prices'!$D$10:$CP$15,6,MATCH(Calc_BAT!CP$6,'Carbon Prices'!$D$9:$CP$9,0))/1000,0)","v":0},{"$f":"IFERROR(INDEX('Carbon Prices'!$D$10:$CP$15,6,MATCH(Calc_BAT!CQ$6,'Carbon Prices'!$D$9:$CP$9,0))/1000,0)","v":0},{"$f":"IFERROR(INDEX('Carbon Prices'!$D$10:$CP$15,6,MATCH(Calc_BAT!CR$6,'Carbon Prices'!$D$9:$CP$9,0))/1000,0)","v":0},{"$f":"IFERROR(INDEX('Carbon Prices'!$D$10:$CP$15,6,MATCH(Calc_BAT!CS$6,'Carbon Prices'!$D$9:$CP$9,0))/1000,0)","v":0},{"$f":"IFERROR(INDEX('Carbon Prices'!$D$10:$CP$15,6,MATCH(Calc_BAT!CT$6,'Carbon Prices'!$D$9:$CP$9,0))/1000,0)","v":0},{"$f":"IFERROR(INDEX('Carbon Prices'!$D$10:$CP$15,6,MATCH(Calc_BAT!CU$6,'Carbon Prices'!$D$9:$CP$9,0))/1000,0)","v":0},{"$f":"IFERROR(INDEX('Carbon Prices'!$D$10:$CP$15,6,MATCH(Calc_BAT!CV$6,'Carbon Prices'!$D$9:$CP$9,0))/1000,0)","v":0},{"$f":"IFERROR(INDEX('Carbon Prices'!$D$10:$CP$15,6,MATCH(Calc_BAT!CW$6,'Carbon Prices'!$D$9:$CP$9,0))/1000,0)","v":0},{"$f":"IFERROR(INDEX('Carbon Prices'!$D$10:$CP$15,6,MATCH(Calc_BAT!CX$6,'Carbon Prices'!$D$9:$CP$9,0))/1000,0)","v":0},{"$f":"IFERROR(INDEX('Carbon Prices'!$D$10:$CP$15,6,MATCH(Calc_BAT!CY$6,'Carbon Prices'!$D$9:$CP$9,0))/1000,0)","v":0}]
[null,"Discounted total","£000's",{"$f":"(D152*D154)+(D153*D155)*D$7","v":3170.8060754163894},{"$f":"(E152*E154)+(E153*E155)*E$7","v":3629.5204183662868},4354.80908116724,5081.0273592423537,5802.5393982933701,6533.9863907852105,7259.1275921582783,7980.6432418861496,0,0,0,0,0,0,0,0,0,0,0,0,0,0,0,0,0,0,0,0,0,0,0,0,0,0,0,0,0,0,0,0,0,0,0,0,0,0,0,0,0,0,0,0,0,0,0,0,0,0,0,0,0,0,0,0,0,{"$f":"(BQ152*BQ154)+(BQ153*BQ155)*BQ$7","v":0},0,0,0,0,0,0,0,0,0,0,0,0,0,0,0,0,0,0,0,0,0,0,0,0,0,0,0,0,0,0,0,0,0,0]
[]
[]
[null,"EEA Damage costs"]
[]
[null,"Air pollutant emissions- value"]
[null,{"$f":"B138","v":"Sox 2019"},"£000's",{"$f":"IFERROR(IF(OR($C$168=FALSE,LEFT($B162,3)<>\"NOX\"),D53*INDEX('Damage costs'!$P$16:$P$43,MATCH($B162,'Damage costs'!$C$16:$C$43,0))/1000,D53*INDEX('Damage costs'!$T$16:$T$43,MATCH($B162,'Damage costs'!$C$16:$C$43,0))/1000),\"\")","v":10.600272350312391},{"$f":"IFERROR(IF(OR($C$168=FALSE,LEFT($B162,3)<>\"NOX\"),E53*INDEX('Damage costs'!$P$16:$P$43,MATCH($B162,'Damage costs'!$C$16:$C$43,0))/1000,E53*INDEX('Damage costs'!$T$16:$T$43,MATCH($B162,'Damage costs'!$C$16:$C$43,0))/1000),\"\")","v":2.8196724451830959},{"$f":"IFERROR(IF(OR($C$168=FALSE,LEFT($B162,3)<>\"NOX\"),F53*INDEX('Damage costs'!$P$16:$P$43,MATCH($B162,'Damage costs'!$C$16:$C$43,0))/1000,F53*INDEX('Damage costs'!$T$16:$T$43,MATCH($B162,'Damage costs'!$C$16:$C$43,0))/1000),\"\")","v":2.8196724451830959},{"$f":"IFERROR(IF(OR($C$168=FALSE,LEFT($B162,3)<>\"NOX\"),G53*INDEX('Damage costs'!$P$16:$P$43,MATCH($B162,'Damage costs'!$C$16:$C$43,0))/1000,G53*INDEX('Damage costs'!$T$16:$T$43,MATCH($B162,'Damage costs'!$C$16:$C$43,0))/1000),\"\")","v":2.8196724451830959},{"$f":"IFERROR(IF(OR($C$168=FALSE,LEFT($B162,3)<>\"NOX\"),H53*INDEX('Damage costs'!$P$16:$P$43,MATCH($B162,'Damage costs'!$C$16:$C$43,0))/1000,H53*INDEX('Damage costs'!$T$16:$T$43,MATCH($B162,'Damage costs'!$C$16:$C$43,0))/1000),\"\")","v":2.8196724451830959},{"$f":"IFERROR(IF(OR($C$168=FALSE,LEFT($B162,3)<>\"NOX\"),I53*INDEX('Damage costs'!$P$16:$P$43,MATCH($B162,'Damage costs'!$C$16:$C$43,0))/1000,I53*INDEX('Damage costs'!$T$16:$T$43,MATCH($B162,'Damage costs'!$C$16:$C$43,0))/1000),\"\")","v":2.8196724451830959},{"$f":"IFERROR(IF(OR($C$168=FALSE,LEFT($B162,3)<>\"NOX\"),J53*INDEX('Damage costs'!$P$16:$P$43,MATCH($B162,'Damage costs'!$C$16:$C$43,0))/1000,J53*INDEX('Damage costs'!$T$16:$T$43,MATCH($B162,'Damage costs'!$C$16:$C$43,0))/1000),\"\")","v":2.8196724451830959},{"$f":"IFERROR(IF(OR($C$168=FALSE,LEFT($B162,3)<>\"NOX\"),K53*INDEX('Damage costs'!$P$16:$P$43,MATCH($B162,'Damage costs'!$C$16:$C$43,0))/1000,K53*INDEX('Damage costs'!$T$16:$T$43,MATCH($B162,'Damage costs'!$C$16:$C$43,0))/1000),\"\")","v":2.8196724451830959},{"$f":"IFERROR(IF(OR($C$168=FALSE,LEFT($B162,3)<>\"NOX\"),L53*INDEX('Damage costs'!$P$16:$P$43,MATCH($B162,'Damage costs'!$C$16:$C$43,0))/1000,L53*INDEX('Damage costs'!$T$16:$T$43,MATCH($B162,'Damage costs'!$C$16:$C$43,0))/1000),\"\")","v":0},{"$f":"IFERROR(IF(OR($C$168=FALSE,LEFT($B162,3)<>\"NOX\"),M53*INDEX('Damage costs'!$P$16:$P$43,MATCH($B162,'Damage costs'!$C$16:$C$43,0))/1000,M53*INDEX('Damage costs'!$T$16:$T$43,MATCH($B162,'Damage costs'!$C$16:$C$43,0))/1000),\"\")","v":0},{"$f":"IFERROR(IF(OR($C$168=FALSE,LEFT($B162,3)<>\"NOX\"),N53*INDEX('Damage costs'!$P$16:$P$43,MATCH($B162,'Damage costs'!$C$16:$C$43,0))/1000,N53*INDEX('Damage costs'!$T$16:$T$43,MATCH($B162,'Damage costs'!$C$16:$C$43,0))/1000),\"\")","v":0},{"$f":"IFERROR(IF(OR($C$168=FALSE,LEFT($B162,3)<>\"NOX\"),O53*INDEX('Damage costs'!$P$16:$P$43,MATCH($B162,'Damage costs'!$C$16:$C$43,0))/1000,O53*INDEX('Damage costs'!$T$16:$T$43,MATCH($B162,'Damage costs'!$C$16:$C$43,0))/1000),\"\")","v":0},{"$f":"IFERROR(IF(OR($C$168=FALSE,LEFT($B162,3)<>\"NOX\"),P53*INDEX('Damage costs'!$P$16:$P$43,MATCH($B162,'Damage costs'!$C$16:$C$43,0))/1000,P53*INDEX('Damage costs'!$T$16:$T$43,MATCH($B162,'Damage costs'!$C$16:$C$43,0))/1000),\"\")","v":0},{"$f":"IFERROR(IF(OR($C$168=FALSE,LEFT($B162,3)<>\"NOX\"),Q53*INDEX('Damage costs'!$P$16:$P$43,MATCH($B162,'Damage costs'!$C$16:$C$43,0))/1000,Q53*INDEX('Damage costs'!$T$16:$T$43,MATCH($B162,'Damage costs'!$C$16:$C$43,0))/1000),\"\")","v":0},{"$f":"IFERROR(IF(OR($C$168=FALSE,LEFT($B162,3)<>\"NOX\"),R53*INDEX('Damage costs'!$P$16:$P$43,MATCH($B162,'Damage costs'!$C$16:$C$43,0))/1000,R53*INDEX('Damage costs'!$T$16:$T$43,MATCH($B162,'Damage costs'!$C$16:$C$43,0))/1000),\"\")","v":0},{"$f":"IFERROR(IF(OR($C$168=FALSE,LEFT($B162,3)<>\"NOX\"),S53*INDEX('Damage costs'!$P$16:$P$43,MATCH($B162,'Damage costs'!$C$16:$C$43,0))/1000,S53*INDEX('Damage costs'!$T$16:$T$43,MATCH($B162,'Damage costs'!$C$16:$C$43,0))/1000),\"\")","v":0},{"$f":"IFERROR(IF(OR($C$168=FALSE,LEFT($B162,3)<>\"NOX\"),T53*INDEX('Damage costs'!$P$16:$P$43,MATCH($B162,'Damage costs'!$C$16:$C$43,0))/1000,T53*INDEX('Damage costs'!$T$16:$T$43,MATCH($B162,'Damage costs'!$C$16:$C$43,0))/1000),\"\")","v":0},{"$f":"IFERROR(IF(OR($C$168=FALSE,LEFT($B162,3)<>\"NOX\"),U53*INDEX('Damage costs'!$P$16:$P$43,MATCH($B162,'Damage costs'!$C$16:$C$43,0))/1000,U53*INDEX('Damage costs'!$T$16:$T$43,MATCH($B162,'Damage costs'!$C$16:$C$43,0))/1000),\"\")","v":0},{"$f":"IFERROR(IF(OR($C$168=FALSE,LEFT($B162,3)<>\"NOX\"),V53*INDEX('Damage costs'!$P$16:$P$43,MATCH($B162,'Damage costs'!$C$16:$C$43,0))/1000,V53*INDEX('Damage costs'!$T$16:$T$43,MATCH($B162,'Damage costs'!$C$16:$C$43,0))/1000),\"\")","v":0},{"$f":"IFERROR(IF(OR($C$168=FALSE,LEFT($B162,3)<>\"NOX\"),W53*INDEX('Damage costs'!$P$16:$P$43,MATCH($B162,'Damage costs'!$C$16:$C$43,0))/1000,W53*INDEX('Damage costs'!$T$16:$T$43,MATCH($B162,'Damage costs'!$C$16:$C$43,0))/1000),\"\")","v":0},{"$f":"IFERROR(IF(OR($C$168=FALSE,LEFT($B162,3)<>\"NOX\"),X53*INDEX('Damage costs'!$P$16:$P$43,MATCH($B162,'Damage costs'!$C$16:$C$43,0))/1000,X53*INDEX('Damage costs'!$T$16:$T$43,MATCH($B162,'Damage costs'!$C$16:$C$43,0))/1000),\"\")","v":0},{"$f":"IFERROR(IF(OR($C$168=FALSE,LEFT($B162,3)<>\"NOX\"),Y53*INDEX('Damage costs'!$P$16:$P$43,MATCH($B162,'Damage costs'!$C$16:$C$43,0))/1000,Y53*INDEX('Damage costs'!$T$16:$T$43,MATCH($B162,'Damage costs'!$C$16:$C$43,0))/1000),\"\")","v":0},{"$f":"IFERROR(IF(OR($C$168=FALSE,LEFT($B162,3)<>\"NOX\"),Z53*INDEX('Damage costs'!$P$16:$P$43,MATCH($B162,'Damage costs'!$C$16:$C$43,0))/1000,Z53*INDEX('Damage costs'!$T$16:$T$43,MATCH($B162,'Damage costs'!$C$16:$C$43,0))/1000),\"\")","v":0},{"$f":"IFERROR(IF(OR($C$168=FALSE,LEFT($B162,3)<>\"NOX\"),AA53*INDEX('Damage costs'!$P$16:$P$43,MATCH($B162,'Damage costs'!$C$16:$C$43,0))/1000,AA53*INDEX('Damage costs'!$T$16:$T$43,MATCH($B162,'Damage costs'!$C$16:$C$43,0))/1000),\"\")","v":0},{"$f":"IFERROR(IF(OR($C$168=FALSE,LEFT($B162,3)<>\"NOX\"),AB53*INDEX('Damage costs'!$P$16:$P$43,MATCH($B162,'Damage costs'!$C$16:$C$43,0))/1000,AB53*INDEX('Damage costs'!$T$16:$T$43,MATCH($B162,'Damage costs'!$C$16:$C$43,0))/1000),\"\")","v":0},{"$f":"IFERROR(IF(OR($C$168=FALSE,LEFT($B162,3)<>\"NOX\"),AC53*INDEX('Damage costs'!$P$16:$P$43,MATCH($B162,'Damage costs'!$C$16:$C$43,0))/1000,AC53*INDEX('Damage costs'!$T$16:$T$43,MATCH($B162,'Damage costs'!$C$16:$C$43,0))/1000),\"\")","v":0},{"$f":"IFERROR(IF(OR($C$168=FALSE,LEFT($B162,3)<>\"NOX\"),AD53*INDEX('Damage costs'!$P$16:$P$43,MATCH($B162,'Damage costs'!$C$16:$C$43,0))/1000,AD53*INDEX('Damage costs'!$T$16:$T$43,MATCH($B162,'Damage costs'!$C$16:$C$43,0))/1000),\"\")","v":0},{"$f":"IFERROR(IF(OR($C$168=FALSE,LEFT($B162,3)<>\"NOX\"),AE53*INDEX('Damage costs'!$P$16:$P$43,MATCH($B162,'Damage costs'!$C$16:$C$43,0))/1000,AE53*INDEX('Damage costs'!$T$16:$T$43,MATCH($B162,'Damage costs'!$C$16:$C$43,0))/1000),\"\")","v":0},{"$f":"IFERROR(IF(OR($C$168=FALSE,LEFT($B162,3)<>\"NOX\"),AF53*INDEX('Damage costs'!$P$16:$P$43,MATCH($B162,'Damage costs'!$C$16:$C$43,0))/1000,AF53*INDEX('Damage costs'!$T$16:$T$43,MATCH($B162,'Damage costs'!$C$16:$C$43,0))/1000),\"\")","v":0},{"$f":"IFERROR(IF(OR($C$168=FALSE,LEFT($B162,3)<>\"NOX\"),AG53*INDEX('Damage costs'!$P$16:$P$43,MATCH($B162,'Damage costs'!$C$16:$C$43,0))/1000,AG53*INDEX('Damage costs'!$T$16:$T$43,MATCH($B162,'Damage costs'!$C$16:$C$43,0))/1000),\"\")","v":0},{"$f":"IFERROR(IF(OR($C$168=FALSE,LEFT($B162,3)<>\"NOX\"),AH53*INDEX('Damage costs'!$P$16:$P$43,MATCH($B162,'Damage costs'!$C$16:$C$43,0))/1000,AH53*INDEX('Damage costs'!$T$16:$T$43,MATCH($B162,'Damage costs'!$C$16:$C$43,0))/1000),\"\")","v":0},{"$f":"IFERROR(IF(OR($C$168=FALSE,LEFT($B162,3)<>\"NOX\"),AI53*INDEX('Damage costs'!$P$16:$P$43,MATCH($B162,'Damage costs'!$C$16:$C$43,0))/1000,AI53*INDEX('Damage costs'!$T$16:$T$43,MATCH($B162,'Damage costs'!$C$16:$C$43,0))/1000),\"\")","v":0},{"$f":"IFERROR(IF(OR($C$168=FALSE,LEFT($B162,3)<>\"NOX\"),AJ53*INDEX('Damage costs'!$P$16:$P$43,MATCH($B162,'Damage costs'!$C$16:$C$43,0))/1000,AJ53*INDEX('Damage costs'!$T$16:$T$43,MATCH($B162,'Damage costs'!$C$16:$C$43,0))/1000),\"\")","v":0},{"$f":"IFERROR(IF(OR($C$168=FALSE,LEFT($B162,3)<>\"NOX\"),AK53*INDEX('Damage costs'!$P$16:$P$43,MATCH($B162,'Damage costs'!$C$16:$C$43,0))/1000,AK53*INDEX('Damage costs'!$T$16:$T$43,MATCH($B162,'Damage costs'!$C$16:$C$43,0))/1000),\"\")","v":0},{"$f":"IFERROR(IF(OR($C$168=FALSE,LEFT($B162,3)<>\"NOX\"),AL53*INDEX('Damage costs'!$P$16:$P$43,MATCH($B162,'Damage costs'!$C$16:$C$43,0))/1000,AL53*INDEX('Damage costs'!$T$16:$T$43,MATCH($B162,'Damage costs'!$C$16:$C$43,0))/1000),\"\")","v":0},{"$f":"IFERROR(IF(OR($C$168=FALSE,LEFT($B162,3)<>\"NOX\"),AM53*INDEX('Damage costs'!$P$16:$P$43,MATCH($B162,'Damage costs'!$C$16:$C$43,0))/1000,AM53*INDEX('Damage costs'!$T$16:$T$43,MATCH($B162,'Damage costs'!$C$16:$C$43,0))/1000),\"\")","v":0},{"$f":"IFERROR(IF(OR($C$168=FALSE,LEFT($B162,3)<>\"NOX\"),AN53*INDEX('Damage costs'!$P$16:$P$43,MATCH($B162,'Damage costs'!$C$16:$C$43,0))/1000,AN53*INDEX('Damage costs'!$T$16:$T$43,MATCH($B162,'Damage costs'!$C$16:$C$43,0))/1000),\"\")","v":0},{"$f":"IFERROR(IF(OR($C$168=FALSE,LEFT($B162,3)<>\"NOX\"),AO53*INDEX('Damage costs'!$P$16:$P$43,MATCH($B162,'Damage costs'!$C$16:$C$43,0))/1000,AO53*INDEX('Damage costs'!$T$16:$T$43,MATCH($B162,'Damage costs'!$C$16:$C$43,0))/1000),\"\")","v":0},{"$f":"IFERROR(IF(OR($C$168=FALSE,LEFT($B162,3)<>\"NOX\"),AP53*INDEX('Damage costs'!$P$16:$P$43,MATCH($B162,'Damage costs'!$C$16:$C$43,0))/1000,AP53*INDEX('Damage costs'!$T$16:$T$43,MATCH($B162,'Damage costs'!$C$16:$C$43,0))/1000),\"\")","v":0},{"$f":"IFERROR(IF(OR($C$168=FALSE,LEFT($B162,3)<>\"NOX\"),AQ53*INDEX('Damage costs'!$P$16:$P$43,MATCH($B162,'Damage costs'!$C$16:$C$43,0))/1000,AQ53*INDEX('Damage costs'!$T$16:$T$43,MATCH($B162,'Damage costs'!$C$16:$C$43,0))/1000),\"\")","v":0},{"$f":"IFERROR(IF(OR($C$168=FALSE,LEFT($B162,3)<>\"NOX\"),AR53*INDEX('Damage costs'!$P$16:$P$43,MATCH($B162,'Damage costs'!$C$16:$C$43,0))/1000,AR53*INDEX('Damage costs'!$T$16:$T$43,MATCH($B162,'Damage costs'!$C$16:$C$43,0))/1000),\"\")","v":0},{"$f":"IFERROR(IF(OR($C$168=FALSE,LEFT($B162,3)<>\"NOX\"),AS53*INDEX('Damage costs'!$P$16:$P$43,MATCH($B162,'Damage costs'!$C$16:$C$43,0))/1000,AS53*INDEX('Damage costs'!$T$16:$T$43,MATCH($B162,'Damage costs'!$C$16:$C$43,0))/1000),\"\")","v":0},{"$f":"IFERROR(IF(OR($C$168=FALSE,LEFT($B162,3)<>\"NOX\"),AT53*INDEX('Damage costs'!$P$16:$P$43,MATCH($B162,'Damage costs'!$C$16:$C$43,0))/1000,AT53*INDEX('Damage costs'!$T$16:$T$43,MATCH($B162,'Damage costs'!$C$16:$C$43,0))/1000),\"\")","v":0},{"$f":"IFERROR(IF(OR($C$168=FALSE,LEFT($B162,3)<>\"NOX\"),AU53*INDEX('Damage costs'!$P$16:$P$43,MATCH($B162,'Damage costs'!$C$16:$C$43,0))/1000,AU53*INDEX('Damage costs'!$T$16:$T$43,MATCH($B162,'Damage costs'!$C$16:$C$43,0))/1000),\"\")","v":0},{"$f":"IFERROR(IF(OR($C$168=FALSE,LEFT($B162,3)<>\"NOX\"),AV53*INDEX('Damage costs'!$P$16:$P$43,MATCH($B162,'Damage costs'!$C$16:$C$43,0))/1000,AV53*INDEX('Damage costs'!$T$16:$T$43,MATCH($B162,'Damage costs'!$C$16:$C$43,0))/1000),\"\")","v":0},{"$f":"IFERROR(IF(OR($C$168=FALSE,LEFT($B162,3)<>\"NOX\"),AW53*INDEX('Damage costs'!$P$16:$P$43,MATCH($B162,'Damage costs'!$C$16:$C$43,0))/1000,AW53*INDEX('Damage costs'!$T$16:$T$43,MATCH($B162,'Damage costs'!$C$16:$C$43,0))/1000),\"\")","v":0},{"$f":"IFERROR(IF(OR($C$168=FALSE,LEFT($B162,3)<>\"NOX\"),AX53*INDEX('Damage costs'!$P$16:$P$43,MATCH($B162,'Damage costs'!$C$16:$C$43,0))/1000,AX53*INDEX('Damage costs'!$T$16:$T$43,MATCH($B162,'Damage costs'!$C$16:$C$43,0))/1000),\"\")","v":0},{"$f":"IFERROR(IF(OR($C$168=FALSE,LEFT($B162,3)<>\"NOX\"),AY53*INDEX('Damage costs'!$P$16:$P$43,MATCH($B162,'Damage costs'!$C$16:$C$43,0))/1000,AY53*INDEX('Damage costs'!$T$16:$T$43,MATCH($B162,'Damage costs'!$C$16:$C$43,0))/1000),\"\")","v":0},{"$f":"IFERROR(IF(OR($C$168=FALSE,LEFT($B162,3)<>\"NOX\"),AZ53*INDEX('Damage costs'!$P$16:$P$43,MATCH($B162,'Damage costs'!$C$16:$C$43,0))/1000,AZ53*INDEX('Damage costs'!$T$16:$T$43,MATCH($B162,'Damage costs'!$C$16:$C$43,0))/1000),\"\")","v":0},{"$f":"IFERROR(IF(OR($C$168=FALSE,LEFT($B162,3)<>\"NOX\"),BA53*INDEX('Damage costs'!$P$16:$P$43,MATCH($B162,'Damage costs'!$C$16:$C$43,0))/1000,BA53*INDEX('Damage costs'!$T$16:$T$43,MATCH($B162,'Damage costs'!$C$16:$C$43,0))/1000),\"\")","v":0},{"$f":"IFERROR(IF(OR($C$168=FALSE,LEFT($B162,3)<>\"NOX\"),BB53*INDEX('Damage costs'!$P$16:$P$43,MATCH($B162,'Damage costs'!$C$16:$C$43,0))/1000,BB53*INDEX('Damage costs'!$T$16:$T$43,MATCH($B162,'Damage costs'!$C$16:$C$43,0))/1000),\"\")","v":0},{"$f":"IFERROR(IF(OR($C$168=FALSE,LEFT($B162,3)<>\"NOX\"),BC53*INDEX('Damage costs'!$P$16:$P$43,MATCH($B162,'Damage costs'!$C$16:$C$43,0))/1000,BC53*INDEX('Damage costs'!$T$16:$T$43,MATCH($B162,'Damage costs'!$C$16:$C$43,0))/1000),\"\")","v":0},{"$f":"IFERROR(IF(OR($C$168=FALSE,LEFT($B162,3)<>\"NOX\"),BD53*INDEX('Damage costs'!$P$16:$P$43,MATCH($B162,'Damage costs'!$C$16:$C$43,0))/1000,BD53*INDEX('Damage costs'!$T$16:$T$43,MATCH($B162,'Damage costs'!$C$16:$C$43,0))/1000),\"\")","v":0},{"$f":"IFERROR(IF(OR($C$168=FALSE,LEFT($B162,3)<>\"NOX\"),BE53*INDEX('Damage costs'!$P$16:$P$43,MATCH($B162,'Damage costs'!$C$16:$C$43,0))/1000,BE53*INDEX('Damage costs'!$T$16:$T$43,MATCH($B162,'Damage costs'!$C$16:$C$43,0))/1000),\"\")","v":0},{"$f":"IFERROR(IF(OR($C$168=FALSE,LEFT($B162,3)<>\"NOX\"),BF53*INDEX('Damage costs'!$P$16:$P$43,MATCH($B162,'Damage costs'!$C$16:$C$43,0))/1000,BF53*INDEX('Damage costs'!$T$16:$T$43,MATCH($B162,'Damage costs'!$C$16:$C$43,0))/1000),\"\")","v":0},{"$f":"IFERROR(IF(OR($C$168=FALSE,LEFT($B162,3)<>\"NOX\"),BG53*INDEX('Damage costs'!$P$16:$P$43,MATCH($B162,'Damage costs'!$C$16:$C$43,0))/1000,BG53*INDEX('Damage costs'!$T$16:$T$43,MATCH($B162,'Damage costs'!$C$16:$C$43,0))/1000),\"\")","v":0},{"$f":"IFERROR(IF(OR($C$168=FALSE,LEFT($B162,3)<>\"NOX\"),BH53*INDEX('Damage costs'!$P$16:$P$43,MATCH($B162,'Damage costs'!$C$16:$C$43,0))/1000,BH53*INDEX('Damage costs'!$T$16:$T$43,MATCH($B162,'Damage costs'!$C$16:$C$43,0))/1000),\"\")","v":0},{"$f":"IFERROR(IF(OR($C$168=FALSE,LEFT($B162,3)<>\"NOX\"),BI53*INDEX('Damage costs'!$P$16:$P$43,MATCH($B162,'Damage costs'!$C$16:$C$43,0))/1000,BI53*INDEX('Damage costs'!$T$16:$T$43,MATCH($B162,'Damage costs'!$C$16:$C$43,0))/1000),\"\")","v":0},{"$f":"IFERROR(IF(OR($C$168=FALSE,LEFT($B162,3)<>\"NOX\"),BJ53*INDEX('Damage costs'!$P$16:$P$43,MATCH($B162,'Damage costs'!$C$16:$C$43,0))/1000,BJ53*INDEX('Damage costs'!$T$16:$T$43,MATCH($B162,'Damage costs'!$C$16:$C$43,0))/1000),\"\")","v":0},{"$f":"IFERROR(IF(OR($C$168=FALSE,LEFT($B162,3)<>\"NOX\"),BK53*INDEX('Damage costs'!$P$16:$P$43,MATCH($B162,'Damage costs'!$C$16:$C$43,0))/1000,BK53*INDEX('Damage costs'!$T$16:$T$43,MATCH($B162,'Damage costs'!$C$16:$C$43,0))/1000),\"\")","v":0},{"$f":"IFERROR(IF(OR($C$168=FALSE,LEFT($B162,3)<>\"NOX\"),BL53*INDEX('Damage costs'!$P$16:$P$43,MATCH($B162,'Damage costs'!$C$16:$C$43,0))/1000,BL53*INDEX('Damage costs'!$T$16:$T$43,MATCH($B162,'Damage costs'!$C$16:$C$43,0))/1000),\"\")","v":0},{"$f":"IFERROR(IF(OR($C$168=FALSE,LEFT($B162,3)<>\"NOX\"),BM53*INDEX('Damage costs'!$P$16:$P$43,MATCH($B162,'Damage costs'!$C$16:$C$43,0))/1000,BM53*INDEX('Damage costs'!$T$16:$T$43,MATCH($B162,'Damage costs'!$C$16:$C$43,0))/1000),\"\")","v":0},{"$f":"IFERROR(IF(OR($C$168=FALSE,LEFT($B162,3)<>\"NOX\"),BN53*INDEX('Damage costs'!$P$16:$P$43,MATCH($B162,'Damage costs'!$C$16:$C$43,0))/1000,BN53*INDEX('Damage costs'!$T$16:$T$43,MATCH($B162,'Damage costs'!$C$16:$C$43,0))/1000),\"\")","v":0},{"$f":"IFERROR(IF(OR($C$168=FALSE,LEFT($B162,3)<>\"NOX\"),BO53*INDEX('Damage costs'!$P$16:$P$43,MATCH($B162,'Damage costs'!$C$16:$C$43,0))/1000,BO53*INDEX('Damage costs'!$T$16:$T$43,MATCH($B162,'Damage costs'!$C$16:$C$43,0))/1000),\"\")","v":0},{"$f":"IFERROR(IF(OR($C$168=FALSE,LEFT($B162,3)<>\"NOX\"),BP53*INDEX('Damage costs'!$P$16:$P$43,MATCH($B162,'Damage costs'!$C$16:$C$43,0))/1000,BP53*INDEX('Damage costs'!$T$16:$T$43,MATCH($B162,'Damage costs'!$C$16:$C$43,0))/1000),\"\")","v":0},{"$f":"IFERROR(IF(OR($C$168=FALSE,LEFT($B162,3)<>\"NOX\"),BQ53*INDEX('Damage costs'!$P$16:$P$43,MATCH($B162,'Damage costs'!$C$16:$C$43,0))/1000,BQ53*INDEX('Damage costs'!$T$16:$T$43,MATCH($B162,'Damage costs'!$C$16:$C$43,0))/1000),\"\")","v":0},{"$f":"IFERROR(IF(OR($C$168=FALSE,LEFT($B162,3)<>\"NOX\"),BR53*INDEX('Damage costs'!$P$16:$P$43,MATCH($B162,'Damage costs'!$C$16:$C$43,0))/1000,BR53*INDEX('Damage costs'!$T$16:$T$43,MATCH($B162,'Damage costs'!$C$16:$C$43,0))/1000),\"\")","v":0},{"$f":"IFERROR(IF(OR($C$168=FALSE,LEFT($B162,3)<>\"NOX\"),BS53*INDEX('Damage costs'!$P$16:$P$43,MATCH($B162,'Damage costs'!$C$16:$C$43,0))/1000,BS53*INDEX('Damage costs'!$T$16:$T$43,MATCH($B162,'Damage costs'!$C$16:$C$43,0))/1000),\"\")","v":0},{"$f":"IFERROR(IF(OR($C$168=FALSE,LEFT($B162,3)<>\"NOX\"),BT53*INDEX('Damage costs'!$P$16:$P$43,MATCH($B162,'Damage costs'!$C$16:$C$43,0))/1000,BT53*INDEX('Damage costs'!$T$16:$T$43,MATCH($B162,'Damage costs'!$C$16:$C$43,0))/1000),\"\")","v":0},{"$f":"IFERROR(IF(OR($C$168=FALSE,LEFT($B162,3)<>\"NOX\"),BU53*INDEX('Damage costs'!$P$16:$P$43,MATCH($B162,'Damage costs'!$C$16:$C$43,0))/1000,BU53*INDEX('Damage costs'!$T$16:$T$43,MATCH($B162,'Damage costs'!$C$16:$C$43,0))/1000),\"\")","v":0},{"$f":"IFERROR(IF(OR($C$168=FALSE,LEFT($B162,3)<>\"NOX\"),BV53*INDEX('Damage costs'!$P$16:$P$43,MATCH($B162,'Damage costs'!$C$16:$C$43,0))/1000,BV53*INDEX('Damage costs'!$T$16:$T$43,MATCH($B162,'Damage costs'!$C$16:$C$43,0))/1000),\"\")","v":0},{"$f":"IFERROR(IF(OR($C$168=FALSE,LEFT($B162,3)<>\"NOX\"),BW53*INDEX('Damage costs'!$P$16:$P$43,MATCH($B162,'Damage costs'!$C$16:$C$43,0))/1000,BW53*INDEX('Damage costs'!$T$16:$T$43,MATCH($B162,'Damage costs'!$C$16:$C$43,0))/1000),\"\")","v":0},{"$f":"IFERROR(IF(OR($C$168=FALSE,LEFT($B162,3)<>\"NOX\"),BX53*INDEX('Damage costs'!$P$16:$P$43,MATCH($B162,'Damage costs'!$C$16:$C$43,0))/1000,BX53*INDEX('Damage costs'!$T$16:$T$43,MATCH($B162,'Damage costs'!$C$16:$C$43,0))/1000),\"\")","v":0},{"$f":"IFERROR(IF(OR($C$168=FALSE,LEFT($B162,3)<>\"NOX\"),BY53*INDEX('Damage costs'!$P$16:$P$43,MATCH($B162,'Damage costs'!$C$16:$C$43,0))/1000,BY53*INDEX('Damage costs'!$T$16:$T$43,MATCH($B162,'Damage costs'!$C$16:$C$43,0))/1000),\"\")","v":0},{"$f":"IFERROR(IF(OR($C$168=FALSE,LEFT($B162,3)<>\"NOX\"),BZ53*INDEX('Damage costs'!$P$16:$P$43,MATCH($B162,'Damage costs'!$C$16:$C$43,0))/1000,BZ53*INDEX('Damage costs'!$T$16:$T$43,MATCH($B162,'Damage costs'!$C$16:$C$43,0))/1000),\"\")","v":0},{"$f":"IFERROR(IF(OR($C$168=FALSE,LEFT($B162,3)<>\"NOX\"),CA53*INDEX('Damage costs'!$P$16:$P$43,MATCH($B162,'Damage costs'!$C$16:$C$43,0))/1000,CA53*INDEX('Damage costs'!$T$16:$T$43,MATCH($B162,'Damage costs'!$C$16:$C$43,0))/1000),\"\")","v":0},{"$f":"IFERROR(IF(OR($C$168=FALSE,LEFT($B162,3)<>\"NOX\"),CB53*INDEX('Damage costs'!$P$16:$P$43,MATCH($B162,'Damage costs'!$C$16:$C$43,0))/1000,CB53*INDEX('Damage costs'!$T$16:$T$43,MATCH($B162,'Damage costs'!$C$16:$C$43,0))/1000),\"\")","v":0},{"$f":"IFERROR(IF(OR($C$168=FALSE,LEFT($B162,3)<>\"NOX\"),CC53*INDEX('Damage costs'!$P$16:$P$43,MATCH($B162,'Damage costs'!$C$16:$C$43,0))/1000,CC53*INDEX('Damage costs'!$T$16:$T$43,MATCH($B162,'Damage costs'!$C$16:$C$43,0))/1000),\"\")","v":0},{"$f":"IFERROR(IF(OR($C$168=FALSE,LEFT($B162,3)<>\"NOX\"),CD53*INDEX('Damage costs'!$P$16:$P$43,MATCH($B162,'Damage costs'!$C$16:$C$43,0))/1000,CD53*INDEX('Damage costs'!$T$16:$T$43,MATCH($B162,'Damage costs'!$C$16:$C$43,0))/1000),\"\")","v":0},{"$f":"IFERROR(IF(OR($C$168=FALSE,LEFT($B162,3)<>\"NOX\"),CE53*INDEX('Damage costs'!$P$16:$P$43,MATCH($B162,'Damage costs'!$C$16:$C$43,0))/1000,CE53*INDEX('Damage costs'!$T$16:$T$43,MATCH($B162,'Damage costs'!$C$16:$C$43,0))/1000),\"\")","v":0},{"$f":"IFERROR(IF(OR($C$168=FALSE,LEFT($B162,3)<>\"NOX\"),CF53*INDEX('Damage costs'!$P$16:$P$43,MATCH($B162,'Damage costs'!$C$16:$C$43,0))/1000,CF53*INDEX('Damage costs'!$T$16:$T$43,MATCH($B162,'Damage costs'!$C$16:$C$43,0))/1000),\"\")","v":0},{"$f":"IFERROR(IF(OR($C$168=FALSE,LEFT($B162,3)<>\"NOX\"),CG53*INDEX('Damage costs'!$P$16:$P$43,MATCH($B162,'Damage costs'!$C$16:$C$43,0))/1000,CG53*INDEX('Damage costs'!$T$16:$T$43,MATCH($B162,'Damage costs'!$C$16:$C$43,0))/1000),\"\")","v":0},{"$f":"IFERROR(IF(OR($C$168=FALSE,LEFT($B162,3)<>\"NOX\"),CH53*INDEX('Damage costs'!$P$16:$P$43,MATCH($B162,'Damage costs'!$C$16:$C$43,0))/1000,CH53*INDEX('Damage costs'!$T$16:$T$43,MATCH($B162,'Damage costs'!$C$16:$C$43,0))/1000),\"\")","v":0},{"$f":"IFERROR(IF(OR($C$168=FALSE,LEFT($B162,3)<>\"NOX\"),CI53*INDEX('Damage costs'!$P$16:$P$43,MATCH($B162,'Damage costs'!$C$16:$C$43,0))/1000,CI53*INDEX('Damage costs'!$T$16:$T$43,MATCH($B162,'Damage costs'!$C$16:$C$43,0))/1000),\"\")","v":0},{"$f":"IFERROR(IF(OR($C$168=FALSE,LEFT($B162,3)<>\"NOX\"),CJ53*INDEX('Damage costs'!$P$16:$P$43,MATCH($B162,'Damage costs'!$C$16:$C$43,0))/1000,CJ53*INDEX('Damage costs'!$T$16:$T$43,MATCH($B162,'Damage costs'!$C$16:$C$43,0))/1000),\"\")","v":0},{"$f":"IFERROR(IF(OR($C$168=FALSE,LEFT($B162,3)<>\"NOX\"),CK53*INDEX('Damage costs'!$P$16:$P$43,MATCH($B162,'Damage costs'!$C$16:$C$43,0))/1000,CK53*INDEX('Damage costs'!$T$16:$T$43,MATCH($B162,'Damage costs'!$C$16:$C$43,0))/1000),\"\")","v":0},{"$f":"IFERROR(IF(OR($C$168=FALSE,LEFT($B162,3)<>\"NOX\"),CL53*INDEX('Damage costs'!$P$16:$P$43,MATCH($B162,'Damage costs'!$C$16:$C$43,0))/1000,CL53*INDEX('Damage costs'!$T$16:$T$43,MATCH($B162,'Damage costs'!$C$16:$C$43,0))/1000),\"\")","v":0},{"$f":"IFERROR(IF(OR($C$168=FALSE,LEFT($B162,3)<>\"NOX\"),CM53*INDEX('Damage costs'!$P$16:$P$43,MATCH($B162,'Damage costs'!$C$16:$C$43,0))/1000,CM53*INDEX('Damage costs'!$T$16:$T$43,MATCH($B162,'Damage costs'!$C$16:$C$43,0))/1000),\"\")","v":0},{"$f":"IFERROR(IF(OR($C$168=FALSE,LEFT($B162,3)<>\"NOX\"),CN53*INDEX('Damage costs'!$P$16:$P$43,MATCH($B162,'Damage costs'!$C$16:$C$43,0))/1000,CN53*INDEX('Damage costs'!$T$16:$T$43,MATCH($B162,'Damage costs'!$C$16:$C$43,0))/1000),\"\")","v":0},{"$f":"IFERROR(IF(OR($C$168=FALSE,LEFT($B162,3)<>\"NOX\"),CO53*INDEX('Damage costs'!$P$16:$P$43,MATCH($B162,'Damage costs'!$C$16:$C$43,0))/1000,CO53*INDEX('Damage costs'!$T$16:$T$43,MATCH($B162,'Damage costs'!$C$16:$C$43,0))/1000),\"\")","v":0},{"$f":"IFERROR(IF(OR($C$168=FALSE,LEFT($B162,3)<>\"NOX\"),CP53*INDEX('Damage costs'!$P$16:$P$43,MATCH($B162,'Damage costs'!$C$16:$C$43,0))/1000,CP53*INDEX('Damage costs'!$T$16:$T$43,MATCH($B162,'Damage costs'!$C$16:$C$43,0))/1000),\"\")","v":0},{"$f":"IFERROR(IF(OR($C$168=FALSE,LEFT($B162,3)<>\"NOX\"),CQ53*INDEX('Damage costs'!$P$16:$P$43,MATCH($B162,'Damage costs'!$C$16:$C$43,0))/1000,CQ53*INDEX('Damage costs'!$T$16:$T$43,MATCH($B162,'Damage costs'!$C$16:$C$43,0))/1000),\"\")","v":0},{"$f":"IFERROR(IF(OR($C$168=FALSE,LEFT($B162,3)<>\"NOX\"),CR53*INDEX('Damage costs'!$P$16:$P$43,MATCH($B162,'Damage costs'!$C$16:$C$43,0))/1000,CR53*INDEX('Damage costs'!$T$16:$T$43,MATCH($B162,'Damage costs'!$C$16:$C$43,0))/1000),\"\")","v":0},{"$f":"IFERROR(IF(OR($C$168=FALSE,LEFT($B162,3)<>\"NOX\"),CS53*INDEX('Damage costs'!$P$16:$P$43,MATCH($B162,'Damage costs'!$C$16:$C$43,0))/1000,CS53*INDEX('Damage costs'!$T$16:$T$43,MATCH($B162,'Damage costs'!$C$16:$C$43,0))/1000),\"\")","v":0},{"$f":"IFERROR(IF(OR($C$168=FALSE,LEFT($B162,3)<>\"NOX\"),CT53*INDEX('Damage costs'!$P$16:$P$43,MATCH($B162,'Damage costs'!$C$16:$C$43,0))/1000,CT53*INDEX('Damage costs'!$T$16:$T$43,MATCH($B162,'Damage costs'!$C$16:$C$43,0))/1000),\"\")","v":0},{"$f":"IFERROR(IF(OR($C$168=FALSE,LEFT($B162,3)<>\"NOX\"),CU53*INDEX('Damage costs'!$P$16:$P$43,MATCH($B162,'Damage costs'!$C$16:$C$43,0))/1000,CU53*INDEX('Damage costs'!$T$16:$T$43,MATCH($B162,'Damage costs'!$C$16:$C$43,0))/1000),\"\")","v":0},{"$f":"IFERROR(IF(OR($C$168=FALSE,LEFT($B162,3)<>\"NOX\"),CV53*INDEX('Damage costs'!$P$16:$P$43,MATCH($B162,'Damage costs'!$C$16:$C$43,0))/1000,CV53*INDEX('Damage costs'!$T$16:$T$43,MATCH($B162,'Damage costs'!$C$16:$C$43,0))/1000),\"\")","v":0},{"$f":"IFERROR(IF(OR($C$168=FALSE,LEFT($B162,3)<>\"NOX\"),CW53*INDEX('Damage costs'!$P$16:$P$43,MATCH($B162,'Damage costs'!$C$16:$C$43,0))/1000,CW53*INDEX('Damage costs'!$T$16:$T$43,MATCH($B162,'Damage costs'!$C$16:$C$43,0))/1000),\"\")","v":0},{"$f":"IFERROR(IF(OR($C$168=FALSE,LEFT($B162,3)<>\"NOX\"),CX53*INDEX('Damage costs'!$P$16:$P$43,MATCH($B162,'Damage costs'!$C$16:$C$43,0))/1000,CX53*INDEX('Damage costs'!$T$16:$T$43,MATCH($B162,'Damage costs'!$C$16:$C$43,0))/1000),\"\")","v":0},{"$f":"IFERROR(IF(OR($C$168=FALSE,LEFT($B162,3)<>\"NOX\"),CY53*INDEX('Damage costs'!$P$16:$P$43,MATCH($B162,'Damage costs'!$C$16:$C$43,0))/1000,CY53*INDEX('Damage costs'!$T$16:$T$43,MATCH($B162,'Damage costs'!$C$16:$C$43,0))/1000),\"\")","v":0}]
[null,0,"£000's",{"$f":"IFERROR(IF(OR($C$168=FALSE,LEFT($B163,3)<>\"NOX\"),D54*INDEX('Damage costs'!$P$16:$P$43,MATCH($B163,'Damage costs'!$C$16:$C$43,0))/1000,D54*INDEX('Damage costs'!$T$16:$T$43,MATCH($B163,'Damage costs'!$C$16:$C$43,0))/1000),\"\")","v":""},{"$f":"IFERROR(IF(OR($C$168=FALSE,LEFT($B163,3)<>\"NOX\"),E54*INDEX('Damage costs'!$P$16:$P$43,MATCH($B163,'Damage costs'!$C$16:$C$43,0))/1000,E54*INDEX('Damage costs'!$T$16:$T$43,MATCH($B163,'Damage costs'!$C$16:$C$43,0))/1000),\"\")","v":""},{"$f":"IFERROR(IF(OR($C$168=FALSE,LEFT($B163,3)<>\"NOX\"),F54*INDEX('Damage costs'!$P$16:$P$43,MATCH($B163,'Damage costs'!$C$16:$C$43,0))/1000,F54*INDEX('Damage costs'!$T$16:$T$43,MATCH($B163,'Damage costs'!$C$16:$C$43,0))/1000),\"\")","v":""},{"$f":"IFERROR(IF(OR($C$168=FALSE,LEFT($B163,3)<>\"NOX\"),G54*INDEX('Damage costs'!$P$16:$P$43,MATCH($B163,'Damage costs'!$C$16:$C$43,0))/1000,G54*INDEX('Damage costs'!$T$16:$T$43,MATCH($B163,'Damage costs'!$C$16:$C$43,0))/1000),\"\")","v":""},{"$f":"IFERROR(IF(OR($C$168=FALSE,LEFT($B163,3)<>\"NOX\"),H54*INDEX('Damage costs'!$P$16:$P$43,MATCH($B163,'Damage costs'!$C$16:$C$43,0))/1000,H54*INDEX('Damage costs'!$T$16:$T$43,MATCH($B163,'Damage costs'!$C$16:$C$43,0))/1000),\"\")","v":""},{"$f":"IFERROR(IF(OR($C$168=FALSE,LEFT($B163,3)<>\"NOX\"),I54*INDEX('Damage costs'!$P$16:$P$43,MATCH($B163,'Damage costs'!$C$16:$C$43,0))/1000,I54*INDEX('Damage costs'!$T$16:$T$43,MATCH($B163,'Damage costs'!$C$16:$C$43,0))/1000),\"\")","v":""},{"$f":"IFERROR(IF(OR($C$168=FALSE,LEFT($B163,3)<>\"NOX\"),J54*INDEX('Damage costs'!$P$16:$P$43,MATCH($B163,'Damage costs'!$C$16:$C$43,0))/1000,J54*INDEX('Damage costs'!$T$16:$T$43,MATCH($B163,'Damage costs'!$C$16:$C$43,0))/1000),\"\")","v":""},{"$f":"IFERROR(IF(OR($C$168=FALSE,LEFT($B163,3)<>\"NOX\"),K54*INDEX('Damage costs'!$P$16:$P$43,MATCH($B163,'Damage costs'!$C$16:$C$43,0))/1000,K54*INDEX('Damage costs'!$T$16:$T$43,MATCH($B163,'Damage costs'!$C$16:$C$43,0))/1000),\"\")","v":""},{"$f":"IFERROR(IF(OR($C$168=FALSE,LEFT($B163,3)<>\"NOX\"),L54*INDEX('Damage costs'!$P$16:$P$43,MATCH($B163,'Damage costs'!$C$16:$C$43,0))/1000,L54*INDEX('Damage costs'!$T$16:$T$43,MATCH($B163,'Damage costs'!$C$16:$C$43,0))/1000),\"\")","v":""},{"$f":"IFERROR(IF(OR($C$168=FALSE,LEFT($B163,3)<>\"NOX\"),M54*INDEX('Damage costs'!$P$16:$P$43,MATCH($B163,'Damage costs'!$C$16:$C$43,0))/1000,M54*INDEX('Damage costs'!$T$16:$T$43,MATCH($B163,'Damage costs'!$C$16:$C$43,0))/1000),\"\")","v":""},{"$f":"IFERROR(IF(OR($C$168=FALSE,LEFT($B163,3)<>\"NOX\"),N54*INDEX('Damage costs'!$P$16:$P$43,MATCH($B163,'Damage costs'!$C$16:$C$43,0))/1000,N54*INDEX('Damage costs'!$T$16:$T$43,MATCH($B163,'Damage costs'!$C$16:$C$43,0))/1000),\"\")","v":""},{"$f":"IFERROR(IF(OR($C$168=FALSE,LEFT($B163,3)<>\"NOX\"),O54*INDEX('Damage costs'!$P$16:$P$43,MATCH($B163,'Damage costs'!$C$16:$C$43,0))/1000,O54*INDEX('Damage costs'!$T$16:$T$43,MATCH($B163,'Damage costs'!$C$16:$C$43,0))/1000),\"\")","v":""},{"$f":"IFERROR(IF(OR($C$168=FALSE,LEFT($B163,3)<>\"NOX\"),P54*INDEX('Damage costs'!$P$16:$P$43,MATCH($B163,'Damage costs'!$C$16:$C$43,0))/1000,P54*INDEX('Damage costs'!$T$16:$T$43,MATCH($B163,'Damage costs'!$C$16:$C$43,0))/1000),\"\")","v":""},{"$f":"IFERROR(IF(OR($C$168=FALSE,LEFT($B163,3)<>\"NOX\"),Q54*INDEX('Damage costs'!$P$16:$P$43,MATCH($B163,'Damage costs'!$C$16:$C$43,0))/1000,Q54*INDEX('Damage costs'!$T$16:$T$43,MATCH($B163,'Damage costs'!$C$16:$C$43,0))/1000),\"\")","v":""},{"$f":"IFERROR(IF(OR($C$168=FALSE,LEFT($B163,3)<>\"NOX\"),R54*INDEX('Damage costs'!$P$16:$P$43,MATCH($B163,'Damage costs'!$C$16:$C$43,0))/1000,R54*INDEX('Damage costs'!$T$16:$T$43,MATCH($B163,'Damage costs'!$C$16:$C$43,0))/1000),\"\")","v":""},{"$f":"IFERROR(IF(OR($C$168=FALSE,LEFT($B163,3)<>\"NOX\"),S54*INDEX('Damage costs'!$P$16:$P$43,MATCH($B163,'Damage costs'!$C$16:$C$43,0))/1000,S54*INDEX('Damage costs'!$T$16:$T$43,MATCH($B163,'Damage costs'!$C$16:$C$43,0))/1000),\"\")","v":""},{"$f":"IFERROR(IF(OR($C$168=FALSE,LEFT($B163,3)<>\"NOX\"),T54*INDEX('Damage costs'!$P$16:$P$43,MATCH($B163,'Damage costs'!$C$16:$C$43,0))/1000,T54*INDEX('Damage costs'!$T$16:$T$43,MATCH($B163,'Damage costs'!$C$16:$C$43,0))/1000),\"\")","v":""},{"$f":"IFERROR(IF(OR($C$168=FALSE,LEFT($B163,3)<>\"NOX\"),U54*INDEX('Damage costs'!$P$16:$P$43,MATCH($B163,'Damage costs'!$C$16:$C$43,0))/1000,U54*INDEX('Damage costs'!$T$16:$T$43,MATCH($B163,'Damage costs'!$C$16:$C$43,0))/1000),\"\")","v":""},{"$f":"IFERROR(IF(OR($C$168=FALSE,LEFT($B163,3)<>\"NOX\"),V54*INDEX('Damage costs'!$P$16:$P$43,MATCH($B163,'Damage costs'!$C$16:$C$43,0))/1000,V54*INDEX('Damage costs'!$T$16:$T$43,MATCH($B163,'Damage costs'!$C$16:$C$43,0))/1000),\"\")","v":""},{"$f":"IFERROR(IF(OR($C$168=FALSE,LEFT($B163,3)<>\"NOX\"),W54*INDEX('Damage costs'!$P$16:$P$43,MATCH($B163,'Damage costs'!$C$16:$C$43,0))/1000,W54*INDEX('Damage costs'!$T$16:$T$43,MATCH($B163,'Damage costs'!$C$16:$C$43,0))/1000),\"\")","v":""},{"$f":"IFERROR(IF(OR($C$168=FALSE,LEFT($B163,3)<>\"NOX\"),X54*INDEX('Damage costs'!$P$16:$P$43,MATCH($B163,'Damage costs'!$C$16:$C$43,0))/1000,X54*INDEX('Damage costs'!$T$16:$T$43,MATCH($B163,'Damage costs'!$C$16:$C$43,0))/1000),\"\")","v":""},{"$f":"IFERROR(IF(OR($C$168=FALSE,LEFT($B163,3)<>\"NOX\"),Y54*INDEX('Damage costs'!$P$16:$P$43,MATCH($B163,'Damage costs'!$C$16:$C$43,0))/1000,Y54*INDEX('Damage costs'!$T$16:$T$43,MATCH($B163,'Damage costs'!$C$16:$C$43,0))/1000),\"\")","v":""},{"$f":"IFERROR(IF(OR($C$168=FALSE,LEFT($B163,3)<>\"NOX\"),Z54*INDEX('Damage costs'!$P$16:$P$43,MATCH($B163,'Damage costs'!$C$16:$C$43,0))/1000,Z54*INDEX('Damage costs'!$T$16:$T$43,MATCH($B163,'Damage costs'!$C$16:$C$43,0))/1000),\"\")","v":""},{"$f":"IFERROR(IF(OR($C$168=FALSE,LEFT($B163,3)<>\"NOX\"),AA54*INDEX('Damage costs'!$P$16:$P$43,MATCH($B163,'Damage costs'!$C$16:$C$43,0))/1000,AA54*INDEX('Damage costs'!$T$16:$T$43,MATCH($B163,'Damage costs'!$C$16:$C$43,0))/1000),\"\")","v":""},{"$f":"IFERROR(IF(OR($C$168=FALSE,LEFT($B163,3)<>\"NOX\"),AB54*INDEX('Damage costs'!$P$16:$P$43,MATCH($B163,'Damage costs'!$C$16:$C$43,0))/1000,AB54*INDEX('Damage costs'!$T$16:$T$43,MATCH($B163,'Damage costs'!$C$16:$C$43,0))/1000),\"\")","v":""},{"$f":"IFERROR(IF(OR($C$168=FALSE,LEFT($B163,3)<>\"NOX\"),AC54*INDEX('Damage costs'!$P$16:$P$43,MATCH($B163,'Damage costs'!$C$16:$C$43,0))/1000,AC54*INDEX('Damage costs'!$T$16:$T$43,MATCH($B163,'Damage costs'!$C$16:$C$43,0))/1000),\"\")","v":""},{"$f":"IFERROR(IF(OR($C$168=FALSE,LEFT($B163,3)<>\"NOX\"),AD54*INDEX('Damage costs'!$P$16:$P$43,MATCH($B163,'Damage costs'!$C$16:$C$43,0))/1000,AD54*INDEX('Damage costs'!$T$16:$T$43,MATCH($B163,'Damage costs'!$C$16:$C$43,0))/1000),\"\")","v":""},{"$f":"IFERROR(IF(OR($C$168=FALSE,LEFT($B163,3)<>\"NOX\"),AE54*INDEX('Damage costs'!$P$16:$P$43,MATCH($B163,'Damage costs'!$C$16:$C$43,0))/1000,AE54*INDEX('Damage costs'!$T$16:$T$43,MATCH($B163,'Damage costs'!$C$16:$C$43,0))/1000),\"\")","v":""},{"$f":"IFERROR(IF(OR($C$168=FALSE,LEFT($B163,3)<>\"NOX\"),AF54*INDEX('Damage costs'!$P$16:$P$43,MATCH($B163,'Damage costs'!$C$16:$C$43,0))/1000,AF54*INDEX('Damage costs'!$T$16:$T$43,MATCH($B163,'Damage costs'!$C$16:$C$43,0))/1000),\"\")","v":""},{"$f":"IFERROR(IF(OR($C$168=FALSE,LEFT($B163,3)<>\"NOX\"),AG54*INDEX('Damage costs'!$P$16:$P$43,MATCH($B163,'Damage costs'!$C$16:$C$43,0))/1000,AG54*INDEX('Damage costs'!$T$16:$T$43,MATCH($B163,'Damage costs'!$C$16:$C$43,0))/1000),\"\")","v":""},{"$f":"IFERROR(IF(OR($C$168=FALSE,LEFT($B163,3)<>\"NOX\"),AH54*INDEX('Damage costs'!$P$16:$P$43,MATCH($B163,'Damage costs'!$C$16:$C$43,0))/1000,AH54*INDEX('Damage costs'!$T$16:$T$43,MATCH($B163,'Damage costs'!$C$16:$C$43,0))/1000),\"\")","v":""},{"$f":"IFERROR(IF(OR($C$168=FALSE,LEFT($B163,3)<>\"NOX\"),AI54*INDEX('Damage costs'!$P$16:$P$43,MATCH($B163,'Damage costs'!$C$16:$C$43,0))/1000,AI54*INDEX('Damage costs'!$T$16:$T$43,MATCH($B163,'Damage costs'!$C$16:$C$43,0))/1000),\"\")","v":""},{"$f":"IFERROR(IF(OR($C$168=FALSE,LEFT($B163,3)<>\"NOX\"),AJ54*INDEX('Damage costs'!$P$16:$P$43,MATCH($B163,'Damage costs'!$C$16:$C$43,0))/1000,AJ54*INDEX('Damage costs'!$T$16:$T$43,MATCH($B163,'Damage costs'!$C$16:$C$43,0))/1000),\"\")","v":""},{"$f":"IFERROR(IF(OR($C$168=FALSE,LEFT($B163,3)<>\"NOX\"),AK54*INDEX('Damage costs'!$P$16:$P$43,MATCH($B163,'Damage costs'!$C$16:$C$43,0))/1000,AK54*INDEX('Damage costs'!$T$16:$T$43,MATCH($B163,'Damage costs'!$C$16:$C$43,0))/1000),\"\")","v":""},{"$f":"IFERROR(IF(OR($C$168=FALSE,LEFT($B163,3)<>\"NOX\"),AL54*INDEX('Damage costs'!$P$16:$P$43,MATCH($B163,'Damage costs'!$C$16:$C$43,0))/1000,AL54*INDEX('Damage costs'!$T$16:$T$43,MATCH($B163,'Damage costs'!$C$16:$C$43,0))/1000),\"\")","v":""},{"$f":"IFERROR(IF(OR($C$168=FALSE,LEFT($B163,3)<>\"NOX\"),AM54*INDEX('Damage costs'!$P$16:$P$43,MATCH($B163,'Damage costs'!$C$16:$C$43,0))/1000,AM54*INDEX('Damage costs'!$T$16:$T$43,MATCH($B163,'Damage costs'!$C$16:$C$43,0))/1000),\"\")","v":""},{"$f":"IFERROR(IF(OR($C$168=FALSE,LEFT($B163,3)<>\"NOX\"),AN54*INDEX('Damage costs'!$P$16:$P$43,MATCH($B163,'Damage costs'!$C$16:$C$43,0))/1000,AN54*INDEX('Damage costs'!$T$16:$T$43,MATCH($B163,'Damage costs'!$C$16:$C$43,0))/1000),\"\")","v":""},{"$f":"IFERROR(IF(OR($C$168=FALSE,LEFT($B163,3)<>\"NOX\"),AO54*INDEX('Damage costs'!$P$16:$P$43,MATCH($B163,'Damage costs'!$C$16:$C$43,0))/1000,AO54*INDEX('Damage costs'!$T$16:$T$43,MATCH($B163,'Damage costs'!$C$16:$C$43,0))/1000),\"\")","v":""},{"$f":"IFERROR(IF(OR($C$168=FALSE,LEFT($B163,3)<>\"NOX\"),AP54*INDEX('Damage costs'!$P$16:$P$43,MATCH($B163,'Damage costs'!$C$16:$C$43,0))/1000,AP54*INDEX('Damage costs'!$T$16:$T$43,MATCH($B163,'Damage costs'!$C$16:$C$43,0))/1000),\"\")","v":""},{"$f":"IFERROR(IF(OR($C$168=FALSE,LEFT($B163,3)<>\"NOX\"),AQ54*INDEX('Damage costs'!$P$16:$P$43,MATCH($B163,'Damage costs'!$C$16:$C$43,0))/1000,AQ54*INDEX('Damage costs'!$T$16:$T$43,MATCH($B163,'Damage costs'!$C$16:$C$43,0))/1000),\"\")","v":""},{"$f":"IFERROR(IF(OR($C$168=FALSE,LEFT($B163,3)<>\"NOX\"),AR54*INDEX('Damage costs'!$P$16:$P$43,MATCH($B163,'Damage costs'!$C$16:$C$43,0))/1000,AR54*INDEX('Damage costs'!$T$16:$T$43,MATCH($B163,'Damage costs'!$C$16:$C$43,0))/1000),\"\")","v":""},{"$f":"IFERROR(IF(OR($C$168=FALSE,LEFT($B163,3)<>\"NOX\"),AS54*INDEX('Damage costs'!$P$16:$P$43,MATCH($B163,'Damage costs'!$C$16:$C$43,0))/1000,AS54*INDEX('Damage costs'!$T$16:$T$43,MATCH($B163,'Damage costs'!$C$16:$C$43,0))/1000),\"\")","v":""},{"$f":"IFERROR(IF(OR($C$168=FALSE,LEFT($B163,3)<>\"NOX\"),AT54*INDEX('Damage costs'!$P$16:$P$43,MATCH($B163,'Damage costs'!$C$16:$C$43,0))/1000,AT54*INDEX('Damage costs'!$T$16:$T$43,MATCH($B163,'Damage costs'!$C$16:$C$43,0))/1000),\"\")","v":""},{"$f":"IFERROR(IF(OR($C$168=FALSE,LEFT($B163,3)<>\"NOX\"),AU54*INDEX('Damage costs'!$P$16:$P$43,MATCH($B163,'Damage costs'!$C$16:$C$43,0))/1000,AU54*INDEX('Damage costs'!$T$16:$T$43,MATCH($B163,'Damage costs'!$C$16:$C$43,0))/1000),\"\")","v":""},{"$f":"IFERROR(IF(OR($C$168=FALSE,LEFT($B163,3)<>\"NOX\"),AV54*INDEX('Damage costs'!$P$16:$P$43,MATCH($B163,'Damage costs'!$C$16:$C$43,0))/1000,AV54*INDEX('Damage costs'!$T$16:$T$43,MATCH($B163,'Damage costs'!$C$16:$C$43,0))/1000),\"\")","v":""},{"$f":"IFERROR(IF(OR($C$168=FALSE,LEFT($B163,3)<>\"NOX\"),AW54*INDEX('Damage costs'!$P$16:$P$43,MATCH($B163,'Damage costs'!$C$16:$C$43,0))/1000,AW54*INDEX('Damage costs'!$T$16:$T$43,MATCH($B163,'Damage costs'!$C$16:$C$43,0))/1000),\"\")","v":""},{"$f":"IFERROR(IF(OR($C$168=FALSE,LEFT($B163,3)<>\"NOX\"),AX54*INDEX('Damage costs'!$P$16:$P$43,MATCH($B163,'Damage costs'!$C$16:$C$43,0))/1000,AX54*INDEX('Damage costs'!$T$16:$T$43,MATCH($B163,'Damage costs'!$C$16:$C$43,0))/1000),\"\")","v":""},{"$f":"IFERROR(IF(OR($C$168=FALSE,LEFT($B163,3)<>\"NOX\"),AY54*INDEX('Damage costs'!$P$16:$P$43,MATCH($B163,'Damage costs'!$C$16:$C$43,0))/1000,AY54*INDEX('Damage costs'!$T$16:$T$43,MATCH($B163,'Damage costs'!$C$16:$C$43,0))/1000),\"\")","v":""},{"$f":"IFERROR(IF(OR($C$168=FALSE,LEFT($B163,3)<>\"NOX\"),AZ54*INDEX('Damage costs'!$P$16:$P$43,MATCH($B163,'Damage costs'!$C$16:$C$43,0))/1000,AZ54*INDEX('Damage costs'!$T$16:$T$43,MATCH($B163,'Damage costs'!$C$16:$C$43,0))/1000),\"\")","v":""},{"$f":"IFERROR(IF(OR($C$168=FALSE,LEFT($B163,3)<>\"NOX\"),BA54*INDEX('Damage costs'!$P$16:$P$43,MATCH($B163,'Damage costs'!$C$16:$C$43,0))/1000,BA54*INDEX('Damage costs'!$T$16:$T$43,MATCH($B163,'Damage costs'!$C$16:$C$43,0))/1000),\"\")","v":""},{"$f":"IFERROR(IF(OR($C$168=FALSE,LEFT($B163,3)<>\"NOX\"),BB54*INDEX('Damage costs'!$P$16:$P$43,MATCH($B163,'Damage costs'!$C$16:$C$43,0))/1000,BB54*INDEX('Damage costs'!$T$16:$T$43,MATCH($B163,'Damage costs'!$C$16:$C$43,0))/1000),\"\")","v":""},{"$f":"IFERROR(IF(OR($C$168=FALSE,LEFT($B163,3)<>\"NOX\"),BC54*INDEX('Damage costs'!$P$16:$P$43,MATCH($B163,'Damage costs'!$C$16:$C$43,0))/1000,BC54*INDEX('Damage costs'!$T$16:$T$43,MATCH($B163,'Damage costs'!$C$16:$C$43,0))/1000),\"\")","v":""},{"$f":"IFERROR(IF(OR($C$168=FALSE,LEFT($B163,3)<>\"NOX\"),BD54*INDEX('Damage costs'!$P$16:$P$43,MATCH($B163,'Damage costs'!$C$16:$C$43,0))/1000,BD54*INDEX('Damage costs'!$T$16:$T$43,MATCH($B163,'Damage costs'!$C$16:$C$43,0))/1000),\"\")","v":""},{"$f":"IFERROR(IF(OR($C$168=FALSE,LEFT($B163,3)<>\"NOX\"),BE54*INDEX('Damage costs'!$P$16:$P$43,MATCH($B163,'Damage costs'!$C$16:$C$43,0))/1000,BE54*INDEX('Damage costs'!$T$16:$T$43,MATCH($B163,'Damage costs'!$C$16:$C$43,0))/1000),\"\")","v":""},{"$f":"IFERROR(IF(OR($C$168=FALSE,LEFT($B163,3)<>\"NOX\"),BF54*INDEX('Damage costs'!$P$16:$P$43,MATCH($B163,'Damage costs'!$C$16:$C$43,0))/1000,BF54*INDEX('Damage costs'!$T$16:$T$43,MATCH($B163,'Damage costs'!$C$16:$C$43,0))/1000),\"\")","v":""},{"$f":"IFERROR(IF(OR($C$168=FALSE,LEFT($B163,3)<>\"NOX\"),BG54*INDEX('Damage costs'!$P$16:$P$43,MATCH($B163,'Damage costs'!$C$16:$C$43,0))/1000,BG54*INDEX('Damage costs'!$T$16:$T$43,MATCH($B163,'Damage costs'!$C$16:$C$43,0))/1000),\"\")","v":""},{"$f":"IFERROR(IF(OR($C$168=FALSE,LEFT($B163,3)<>\"NOX\"),BH54*INDEX('Damage costs'!$P$16:$P$43,MATCH($B163,'Damage costs'!$C$16:$C$43,0))/1000,BH54*INDEX('Damage costs'!$T$16:$T$43,MATCH($B163,'Damage costs'!$C$16:$C$43,0))/1000),\"\")","v":""},{"$f":"IFERROR(IF(OR($C$168=FALSE,LEFT($B163,3)<>\"NOX\"),BI54*INDEX('Damage costs'!$P$16:$P$43,MATCH($B163,'Damage costs'!$C$16:$C$43,0))/1000,BI54*INDEX('Damage costs'!$T$16:$T$43,MATCH($B163,'Damage costs'!$C$16:$C$43,0))/1000),\"\")","v":""},{"$f":"IFERROR(IF(OR($C$168=FALSE,LEFT($B163,3)<>\"NOX\"),BJ54*INDEX('Damage costs'!$P$16:$P$43,MATCH($B163,'Damage costs'!$C$16:$C$43,0))/1000,BJ54*INDEX('Damage costs'!$T$16:$T$43,MATCH($B163,'Damage costs'!$C$16:$C$43,0))/1000),\"\")","v":""},{"$f":"IFERROR(IF(OR($C$168=FALSE,LEFT($B163,3)<>\"NOX\"),BK54*INDEX('Damage costs'!$P$16:$P$43,MATCH($B163,'Damage costs'!$C$16:$C$43,0))/1000,BK54*INDEX('Damage costs'!$T$16:$T$43,MATCH($B163,'Damage costs'!$C$16:$C$43,0))/1000),\"\")","v":""},{"$f":"IFERROR(IF(OR($C$168=FALSE,LEFT($B163,3)<>\"NOX\"),BL54*INDEX('Damage costs'!$P$16:$P$43,MATCH($B163,'Damage costs'!$C$16:$C$43,0))/1000,BL54*INDEX('Damage costs'!$T$16:$T$43,MATCH($B163,'Damage costs'!$C$16:$C$43,0))/1000),\"\")","v":""},{"$f":"IFERROR(IF(OR($C$168=FALSE,LEFT($B163,3)<>\"NOX\"),BM54*INDEX('Damage costs'!$P$16:$P$43,MATCH($B163,'Damage costs'!$C$16:$C$43,0))/1000,BM54*INDEX('Damage costs'!$T$16:$T$43,MATCH($B163,'Damage costs'!$C$16:$C$43,0))/1000),\"\")","v":""},{"$f":"IFERROR(IF(OR($C$168=FALSE,LEFT($B163,3)<>\"NOX\"),BN54*INDEX('Damage costs'!$P$16:$P$43,MATCH($B163,'Damage costs'!$C$16:$C$43,0))/1000,BN54*INDEX('Damage costs'!$T$16:$T$43,MATCH($B163,'Damage costs'!$C$16:$C$43,0))/1000),\"\")","v":""},{"$f":"IFERROR(IF(OR($C$168=FALSE,LEFT($B163,3)<>\"NOX\"),BO54*INDEX('Damage costs'!$P$16:$P$43,MATCH($B163,'Damage costs'!$C$16:$C$43,0))/1000,BO54*INDEX('Damage costs'!$T$16:$T$43,MATCH($B163,'Damage costs'!$C$16:$C$43,0))/1000),\"\")","v":""},{"$f":"IFERROR(IF(OR($C$168=FALSE,LEFT($B163,3)<>\"NOX\"),BP54*INDEX('Damage costs'!$P$16:$P$43,MATCH($B163,'Damage costs'!$C$16:$C$43,0))/1000,BP54*INDEX('Damage costs'!$T$16:$T$43,MATCH($B163,'Damage costs'!$C$16:$C$43,0))/1000),\"\")","v":""},{"$f":"IFERROR(IF(OR($C$168=FALSE,LEFT($B163,3)<>\"NOX\"),BQ54*INDEX('Damage costs'!$P$16:$P$43,MATCH($B163,'Damage costs'!$C$16:$C$43,0))/1000,BQ54*INDEX('Damage costs'!$T$16:$T$43,MATCH($B163,'Damage costs'!$C$16:$C$43,0))/1000),\"\")","v":""},{"$f":"IFERROR(IF(OR($C$168=FALSE,LEFT($B163,3)<>\"NOX\"),BR54*INDEX('Damage costs'!$P$16:$P$43,MATCH($B163,'Damage costs'!$C$16:$C$43,0))/1000,BR54*INDEX('Damage costs'!$T$16:$T$43,MATCH($B163,'Damage costs'!$C$16:$C$43,0))/1000),\"\")","v":""},{"$f":"IFERROR(IF(OR($C$168=FALSE,LEFT($B163,3)<>\"NOX\"),BS54*INDEX('Damage costs'!$P$16:$P$43,MATCH($B163,'Damage costs'!$C$16:$C$43,0))/1000,BS54*INDEX('Damage costs'!$T$16:$T$43,MATCH($B163,'Damage costs'!$C$16:$C$43,0))/1000),\"\")","v":""},{"$f":"IFERROR(IF(OR($C$168=FALSE,LEFT($B163,3)<>\"NOX\"),BT54*INDEX('Damage costs'!$P$16:$P$43,MATCH($B163,'Damage costs'!$C$16:$C$43,0))/1000,BT54*INDEX('Damage costs'!$T$16:$T$43,MATCH($B163,'Damage costs'!$C$16:$C$43,0))/1000),\"\")","v":""},{"$f":"IFERROR(IF(OR($C$168=FALSE,LEFT($B163,3)<>\"NOX\"),BU54*INDEX('Damage costs'!$P$16:$P$43,MATCH($B163,'Damage costs'!$C$16:$C$43,0))/1000,BU54*INDEX('Damage costs'!$T$16:$T$43,MATCH($B163,'Damage costs'!$C$16:$C$43,0))/1000),\"\")","v":""},{"$f":"IFERROR(IF(OR($C$168=FALSE,LEFT($B163,3)<>\"NOX\"),BV54*INDEX('Damage costs'!$P$16:$P$43,MATCH($B163,'Damage costs'!$C$16:$C$43,0))/1000,BV54*INDEX('Damage costs'!$T$16:$T$43,MATCH($B163,'Damage costs'!$C$16:$C$43,0))/1000),\"\")","v":""},{"$f":"IFERROR(IF(OR($C$168=FALSE,LEFT($B163,3)<>\"NOX\"),BW54*INDEX('Damage costs'!$P$16:$P$43,MATCH($B163,'Damage costs'!$C$16:$C$43,0))/1000,BW54*INDEX('Damage costs'!$T$16:$T$43,MATCH($B163,'Damage costs'!$C$16:$C$43,0))/1000),\"\")","v":""},{"$f":"IFERROR(IF(OR($C$168=FALSE,LEFT($B163,3)<>\"NOX\"),BX54*INDEX('Damage costs'!$P$16:$P$43,MATCH($B163,'Damage costs'!$C$16:$C$43,0))/1000,BX54*INDEX('Damage costs'!$T$16:$T$43,MATCH($B163,'Damage costs'!$C$16:$C$43,0))/1000),\"\")","v":""},{"$f":"IFERROR(IF(OR($C$168=FALSE,LEFT($B163,3)<>\"NOX\"),BY54*INDEX('Damage costs'!$P$16:$P$43,MATCH($B163,'Damage costs'!$C$16:$C$43,0))/1000,BY54*INDEX('Damage costs'!$T$16:$T$43,MATCH($B163,'Damage costs'!$C$16:$C$43,0))/1000),\"\")","v":""},{"$f":"IFERROR(IF(OR($C$168=FALSE,LEFT($B163,3)<>\"NOX\"),BZ54*INDEX('Damage costs'!$P$16:$P$43,MATCH($B163,'Damage costs'!$C$16:$C$43,0))/1000,BZ54*INDEX('Damage costs'!$T$16:$T$43,MATCH($B163,'Damage costs'!$C$16:$C$43,0))/1000),\"\")","v":""},{"$f":"IFERROR(IF(OR($C$168=FALSE,LEFT($B163,3)<>\"NOX\"),CA54*INDEX('Damage costs'!$P$16:$P$43,MATCH($B163,'Damage costs'!$C$16:$C$43,0))/1000,CA54*INDEX('Damage costs'!$T$16:$T$43,MATCH($B163,'Damage costs'!$C$16:$C$43,0))/1000),\"\")","v":""},{"$f":"IFERROR(IF(OR($C$168=FALSE,LEFT($B163,3)<>\"NOX\"),CB54*INDEX('Damage costs'!$P$16:$P$43,MATCH($B163,'Damage costs'!$C$16:$C$43,0))/1000,CB54*INDEX('Damage costs'!$T$16:$T$43,MATCH($B163,'Damage costs'!$C$16:$C$43,0))/1000),\"\")","v":""},{"$f":"IFERROR(IF(OR($C$168=FALSE,LEFT($B163,3)<>\"NOX\"),CC54*INDEX('Damage costs'!$P$16:$P$43,MATCH($B163,'Damage costs'!$C$16:$C$43,0))/1000,CC54*INDEX('Damage costs'!$T$16:$T$43,MATCH($B163,'Damage costs'!$C$16:$C$43,0))/1000),\"\")","v":""},{"$f":"IFERROR(IF(OR($C$168=FALSE,LEFT($B163,3)<>\"NOX\"),CD54*INDEX('Damage costs'!$P$16:$P$43,MATCH($B163,'Damage costs'!$C$16:$C$43,0))/1000,CD54*INDEX('Damage costs'!$T$16:$T$43,MATCH($B163,'Damage costs'!$C$16:$C$43,0))/1000),\"\")","v":""},{"$f":"IFERROR(IF(OR($C$168=FALSE,LEFT($B163,3)<>\"NOX\"),CE54*INDEX('Damage costs'!$P$16:$P$43,MATCH($B163,'Damage costs'!$C$16:$C$43,0))/1000,CE54*INDEX('Damage costs'!$T$16:$T$43,MATCH($B163,'Damage costs'!$C$16:$C$43,0))/1000),\"\")","v":""},{"$f":"IFERROR(IF(OR($C$168=FALSE,LEFT($B163,3)<>\"NOX\"),CF54*INDEX('Damage costs'!$P$16:$P$43,MATCH($B163,'Damage costs'!$C$16:$C$43,0))/1000,CF54*INDEX('Damage costs'!$T$16:$T$43,MATCH($B163,'Damage costs'!$C$16:$C$43,0))/1000),\"\")","v":""},{"$f":"IFERROR(IF(OR($C$168=FALSE,LEFT($B163,3)<>\"NOX\"),CG54*INDEX('Damage costs'!$P$16:$P$43,MATCH($B163,'Damage costs'!$C$16:$C$43,0))/1000,CG54*INDEX('Damage costs'!$T$16:$T$43,MATCH($B163,'Damage costs'!$C$16:$C$43,0))/1000),\"\")","v":""},{"$f":"IFERROR(IF(OR($C$168=FALSE,LEFT($B163,3)<>\"NOX\"),CH54*INDEX('Damage costs'!$P$16:$P$43,MATCH($B163,'Damage costs'!$C$16:$C$43,0))/1000,CH54*INDEX('Damage costs'!$T$16:$T$43,MATCH($B163,'Damage costs'!$C$16:$C$43,0))/1000),\"\")","v":""},{"$f":"IFERROR(IF(OR($C$168=FALSE,LEFT($B163,3)<>\"NOX\"),CI54*INDEX('Damage costs'!$P$16:$P$43,MATCH($B163,'Damage costs'!$C$16:$C$43,0))/1000,CI54*INDEX('Damage costs'!$T$16:$T$43,MATCH($B163,'Damage costs'!$C$16:$C$43,0))/1000),\"\")","v":""},{"$f":"IFERROR(IF(OR($C$168=FALSE,LEFT($B163,3)<>\"NOX\"),CJ54*INDEX('Damage costs'!$P$16:$P$43,MATCH($B163,'Damage costs'!$C$16:$C$43,0))/1000,CJ54*INDEX('Damage costs'!$T$16:$T$43,MATCH($B163,'Damage costs'!$C$16:$C$43,0))/1000),\"\")","v":""},{"$f":"IFERROR(IF(OR($C$168=FALSE,LEFT($B163,3)<>\"NOX\"),CK54*INDEX('Damage costs'!$P$16:$P$43,MATCH($B163,'Damage costs'!$C$16:$C$43,0))/1000,CK54*INDEX('Damage costs'!$T$16:$T$43,MATCH($B163,'Damage costs'!$C$16:$C$43,0))/1000),\"\")","v":""},{"$f":"IFERROR(IF(OR($C$168=FALSE,LEFT($B163,3)<>\"NOX\"),CL54*INDEX('Damage costs'!$P$16:$P$43,MATCH($B163,'Damage costs'!$C$16:$C$43,0))/1000,CL54*INDEX('Damage costs'!$T$16:$T$43,MATCH($B163,'Damage costs'!$C$16:$C$43,0))/1000),\"\")","v":""},{"$f":"IFERROR(IF(OR($C$168=FALSE,LEFT($B163,3)<>\"NOX\"),CM54*INDEX('Damage costs'!$P$16:$P$43,MATCH($B163,'Damage costs'!$C$16:$C$43,0))/1000,CM54*INDEX('Damage costs'!$T$16:$T$43,MATCH($B163,'Damage costs'!$C$16:$C$43,0))/1000),\"\")","v":""},{"$f":"IFERROR(IF(OR($C$168=FALSE,LEFT($B163,3)<>\"NOX\"),CN54*INDEX('Damage costs'!$P$16:$P$43,MATCH($B163,'Damage costs'!$C$16:$C$43,0))/1000,CN54*INDEX('Damage costs'!$T$16:$T$43,MATCH($B163,'Damage costs'!$C$16:$C$43,0))/1000),\"\")","v":""},{"$f":"IFERROR(IF(OR($C$168=FALSE,LEFT($B163,3)<>\"NOX\"),CO54*INDEX('Damage costs'!$P$16:$P$43,MATCH($B163,'Damage costs'!$C$16:$C$43,0))/1000,CO54*INDEX('Damage costs'!$T$16:$T$43,MATCH($B163,'Damage costs'!$C$16:$C$43,0))/1000),\"\")","v":""},{"$f":"IFERROR(IF(OR($C$168=FALSE,LEFT($B163,3)<>\"NOX\"),CP54*INDEX('Damage costs'!$P$16:$P$43,MATCH($B163,'Damage costs'!$C$16:$C$43,0))/1000,CP54*INDEX('Damage costs'!$T$16:$T$43,MATCH($B163,'Damage costs'!$C$16:$C$43,0))/1000),\"\")","v":""},{"$f":"IFERROR(IF(OR($C$168=FALSE,LEFT($B163,3)<>\"NOX\"),CQ54*INDEX('Damage costs'!$P$16:$P$43,MATCH($B163,'Damage costs'!$C$16:$C$43,0))/1000,CQ54*INDEX('Damage costs'!$T$16:$T$43,MATCH($B163,'Damage costs'!$C$16:$C$43,0))/1000),\"\")","v":""},{"$f":"IFERROR(IF(OR($C$168=FALSE,LEFT($B163,3)<>\"NOX\"),CR54*INDEX('Damage costs'!$P$16:$P$43,MATCH($B163,'Damage costs'!$C$16:$C$43,0))/1000,CR54*INDEX('Damage costs'!$T$16:$T$43,MATCH($B163,'Damage costs'!$C$16:$C$43,0))/1000),\"\")","v":""},{"$f":"IFERROR(IF(OR($C$168=FALSE,LEFT($B163,3)<>\"NOX\"),CS54*INDEX('Damage costs'!$P$16:$P$43,MATCH($B163,'Damage costs'!$C$16:$C$43,0))/1000,CS54*INDEX('Damage costs'!$T$16:$T$43,MATCH($B163,'Damage costs'!$C$16:$C$43,0))/1000),\"\")","v":""},{"$f":"IFERROR(IF(OR($C$168=FALSE,LEFT($B163,3)<>\"NOX\"),CT54*INDEX('Damage costs'!$P$16:$P$43,MATCH($B163,'Damage costs'!$C$16:$C$43,0))/1000,CT54*INDEX('Damage costs'!$T$16:$T$43,MATCH($B163,'Damage costs'!$C$16:$C$43,0))/1000),\"\")","v":""},{"$f":"IFERROR(IF(OR($C$168=FALSE,LEFT($B163,3)<>\"NOX\"),CU54*INDEX('Damage costs'!$P$16:$P$43,MATCH($B163,'Damage costs'!$C$16:$C$43,0))/1000,CU54*INDEX('Damage costs'!$T$16:$T$43,MATCH($B163,'Damage costs'!$C$16:$C$43,0))/1000),\"\")","v":""},{"$f":"IFERROR(IF(OR($C$168=FALSE,LEFT($B163,3)<>\"NOX\"),CV54*INDEX('Damage costs'!$P$16:$P$43,MATCH($B163,'Damage costs'!$C$16:$C$43,0))/1000,CV54*INDEX('Damage costs'!$T$16:$T$43,MATCH($B163,'Damage costs'!$C$16:$C$43,0))/1000),\"\")","v":""},{"$f":"IFERROR(IF(OR($C$168=FALSE,LEFT($B163,3)<>\"NOX\"),CW54*INDEX('Damage costs'!$P$16:$P$43,MATCH($B163,'Damage costs'!$C$16:$C$43,0))/1000,CW54*INDEX('Damage costs'!$T$16:$T$43,MATCH($B163,'Damage costs'!$C$16:$C$43,0))/1000),\"\")","v":""},{"$f":"IFERROR(IF(OR($C$168=FALSE,LEFT($B163,3)<>\"NOX\"),CX54*INDEX('Damage costs'!$P$16:$P$43,MATCH($B163,'Damage costs'!$C$16:$C$43,0))/1000,CX54*INDEX('Damage costs'!$T$16:$T$43,MATCH($B163,'Damage costs'!$C$16:$C$43,0))/1000),\"\")","v":""},{"$f":"IFERROR(IF(OR($C$168=FALSE,LEFT($B163,3)<>\"NOX\"),CY54*INDEX('Damage costs'!$P$16:$P$43,MATCH($B163,'Damage costs'!$C$16:$C$43,0))/1000,CY54*INDEX('Damage costs'!$T$16:$T$43,MATCH($B163,'Damage costs'!$C$16:$C$43,0))/1000),\"\")","v":""}]
[null,0,"£000's",{"$f":"IFERROR(IF(OR($C$168=FALSE,LEFT($B164,3)<>\"NOX\"),D55*INDEX('Damage costs'!$P$16:$P$43,MATCH($B164,'Damage costs'!$C$16:$C$43,0))/1000,D55*INDEX('Damage costs'!$T$16:$T$43,MATCH($B164,'Damage costs'!$C$16:$C$43,0))/1000),\"\")","v":""},{"$f":"IFERROR(IF(OR($C$168=FALSE,LEFT($B164,3)<>\"NOX\"),E55*INDEX('Damage costs'!$P$16:$P$43,MATCH($B164,'Damage costs'!$C$16:$C$43,0))/1000,E55*INDEX('Damage costs'!$T$16:$T$43,MATCH($B164,'Damage costs'!$C$16:$C$43,0))/1000),\"\")","v":""},{"$f":"IFERROR(IF(OR($C$168=FALSE,LEFT($B164,3)<>\"NOX\"),F55*INDEX('Damage costs'!$P$16:$P$43,MATCH($B164,'Damage costs'!$C$16:$C$43,0))/1000,F55*INDEX('Damage costs'!$T$16:$T$43,MATCH($B164,'Damage costs'!$C$16:$C$43,0))/1000),\"\")","v":""},{"$f":"IFERROR(IF(OR($C$168=FALSE,LEFT($B164,3)<>\"NOX\"),G55*INDEX('Damage costs'!$P$16:$P$43,MATCH($B164,'Damage costs'!$C$16:$C$43,0))/1000,G55*INDEX('Damage costs'!$T$16:$T$43,MATCH($B164,'Damage costs'!$C$16:$C$43,0))/1000),\"\")","v":""},{"$f":"IFERROR(IF(OR($C$168=FALSE,LEFT($B164,3)<>\"NOX\"),H55*INDEX('Damage costs'!$P$16:$P$43,MATCH($B164,'Damage costs'!$C$16:$C$43,0))/1000,H55*INDEX('Damage costs'!$T$16:$T$43,MATCH($B164,'Damage costs'!$C$16:$C$43,0))/1000),\"\")","v":""},{"$f":"IFERROR(IF(OR($C$168=FALSE,LEFT($B164,3)<>\"NOX\"),I55*INDEX('Damage costs'!$P$16:$P$43,MATCH($B164,'Damage costs'!$C$16:$C$43,0))/1000,I55*INDEX('Damage costs'!$T$16:$T$43,MATCH($B164,'Damage costs'!$C$16:$C$43,0))/1000),\"\")","v":""},{"$f":"IFERROR(IF(OR($C$168=FALSE,LEFT($B164,3)<>\"NOX\"),J55*INDEX('Damage costs'!$P$16:$P$43,MATCH($B164,'Damage costs'!$C$16:$C$43,0))/1000,J55*INDEX('Damage costs'!$T$16:$T$43,MATCH($B164,'Damage costs'!$C$16:$C$43,0))/1000),\"\")","v":""},{"$f":"IFERROR(IF(OR($C$168=FALSE,LEFT($B164,3)<>\"NOX\"),K55*INDEX('Damage costs'!$P$16:$P$43,MATCH($B164,'Damage costs'!$C$16:$C$43,0))/1000,K55*INDEX('Damage costs'!$T$16:$T$43,MATCH($B164,'Damage costs'!$C$16:$C$43,0))/1000),\"\")","v":""},{"$f":"IFERROR(IF(OR($C$168=FALSE,LEFT($B164,3)<>\"NOX\"),L55*INDEX('Damage costs'!$P$16:$P$43,MATCH($B164,'Damage costs'!$C$16:$C$43,0))/1000,L55*INDEX('Damage costs'!$T$16:$T$43,MATCH($B164,'Damage costs'!$C$16:$C$43,0))/1000),\"\")","v":""},{"$f":"IFERROR(IF(OR($C$168=FALSE,LEFT($B164,3)<>\"NOX\"),M55*INDEX('Damage costs'!$P$16:$P$43,MATCH($B164,'Damage costs'!$C$16:$C$43,0))/1000,M55*INDEX('Damage costs'!$T$16:$T$43,MATCH($B164,'Damage costs'!$C$16:$C$43,0))/1000),\"\")","v":""},{"$f":"IFERROR(IF(OR($C$168=FALSE,LEFT($B164,3)<>\"NOX\"),N55*INDEX('Damage costs'!$P$16:$P$43,MATCH($B164,'Damage costs'!$C$16:$C$43,0))/1000,N55*INDEX('Damage costs'!$T$16:$T$43,MATCH($B164,'Damage costs'!$C$16:$C$43,0))/1000),\"\")","v":""},{"$f":"IFERROR(IF(OR($C$168=FALSE,LEFT($B164,3)<>\"NOX\"),O55*INDEX('Damage costs'!$P$16:$P$43,MATCH($B164,'Damage costs'!$C$16:$C$43,0))/1000,O55*INDEX('Damage costs'!$T$16:$T$43,MATCH($B164,'Damage costs'!$C$16:$C$43,0))/1000),\"\")","v":""},{"$f":"IFERROR(IF(OR($C$168=FALSE,LEFT($B164,3)<>\"NOX\"),P55*INDEX('Damage costs'!$P$16:$P$43,MATCH($B164,'Damage costs'!$C$16:$C$43,0))/1000,P55*INDEX('Damage costs'!$T$16:$T$43,MATCH($B164,'Damage costs'!$C$16:$C$43,0))/1000),\"\")","v":""},{"$f":"IFERROR(IF(OR($C$168=FALSE,LEFT($B164,3)<>\"NOX\"),Q55*INDEX('Damage costs'!$P$16:$P$43,MATCH($B164,'Damage costs'!$C$16:$C$43,0))/1000,Q55*INDEX('Damage costs'!$T$16:$T$43,MATCH($B164,'Damage costs'!$C$16:$C$43,0))/1000),\"\")","v":""},{"$f":"IFERROR(IF(OR($C$168=FALSE,LEFT($B164,3)<>\"NOX\"),R55*INDEX('Damage costs'!$P$16:$P$43,MATCH($B164,'Damage costs'!$C$16:$C$43,0))/1000,R55*INDEX('Damage costs'!$T$16:$T$43,MATCH($B164,'Damage costs'!$C$16:$C$43,0))/1000),\"\")","v":""},{"$f":"IFERROR(IF(OR($C$168=FALSE,LEFT($B164,3)<>\"NOX\"),S55*INDEX('Damage costs'!$P$16:$P$43,MATCH($B164,'Damage costs'!$C$16:$C$43,0))/1000,S55*INDEX('Damage costs'!$T$16:$T$43,MATCH($B164,'Damage costs'!$C$16:$C$43,0))/1000),\"\")","v":""},{"$f":"IFERROR(IF(OR($C$168=FALSE,LEFT($B164,3)<>\"NOX\"),T55*INDEX('Damage costs'!$P$16:$P$43,MATCH($B164,'Damage costs'!$C$16:$C$43,0))/1000,T55*INDEX('Damage costs'!$T$16:$T$43,MATCH($B164,'Damage costs'!$C$16:$C$43,0))/1000),\"\")","v":""},{"$f":"IFERROR(IF(OR($C$168=FALSE,LEFT($B164,3)<>\"NOX\"),U55*INDEX('Damage costs'!$P$16:$P$43,MATCH($B164,'Damage costs'!$C$16:$C$43,0))/1000,U55*INDEX('Damage costs'!$T$16:$T$43,MATCH($B164,'Damage costs'!$C$16:$C$43,0))/1000),\"\")","v":""},{"$f":"IFERROR(IF(OR($C$168=FALSE,LEFT($B164,3)<>\"NOX\"),V55*INDEX('Damage costs'!$P$16:$P$43,MATCH($B164,'Damage costs'!$C$16:$C$43,0))/1000,V55*INDEX('Damage costs'!$T$16:$T$43,MATCH($B164,'Damage costs'!$C$16:$C$43,0))/1000),\"\")","v":""},{"$f":"IFERROR(IF(OR($C$168=FALSE,LEFT($B164,3)<>\"NOX\"),W55*INDEX('Damage costs'!$P$16:$P$43,MATCH($B164,'Damage costs'!$C$16:$C$43,0))/1000,W55*INDEX('Damage costs'!$T$16:$T$43,MATCH($B164,'Damage costs'!$C$16:$C$43,0))/1000),\"\")","v":""},{"$f":"IFERROR(IF(OR($C$168=FALSE,LEFT($B164,3)<>\"NOX\"),X55*INDEX('Damage costs'!$P$16:$P$43,MATCH($B164,'Damage costs'!$C$16:$C$43,0))/1000,X55*INDEX('Damage costs'!$T$16:$T$43,MATCH($B164,'Damage costs'!$C$16:$C$43,0))/1000),\"\")","v":""},{"$f":"IFERROR(IF(OR($C$168=FALSE,LEFT($B164,3)<>\"NOX\"),Y55*INDEX('Damage costs'!$P$16:$P$43,MATCH($B164,'Damage costs'!$C$16:$C$43,0))/1000,Y55*INDEX('Damage costs'!$T$16:$T$43,MATCH($B164,'Damage costs'!$C$16:$C$43,0))/1000),\"\")","v":""},{"$f":"IFERROR(IF(OR($C$168=FALSE,LEFT($B164,3)<>\"NOX\"),Z55*INDEX('Damage costs'!$P$16:$P$43,MATCH($B164,'Damage costs'!$C$16:$C$43,0))/1000,Z55*INDEX('Damage costs'!$T$16:$T$43,MATCH($B164,'Damage costs'!$C$16:$C$43,0))/1000),\"\")","v":""},{"$f":"IFERROR(IF(OR($C$168=FALSE,LEFT($B164,3)<>\"NOX\"),AA55*INDEX('Damage costs'!$P$16:$P$43,MATCH($B164,'Damage costs'!$C$16:$C$43,0))/1000,AA55*INDEX('Damage costs'!$T$16:$T$43,MATCH($B164,'Damage costs'!$C$16:$C$43,0))/1000),\"\")","v":""},{"$f":"IFERROR(IF(OR($C$168=FALSE,LEFT($B164,3)<>\"NOX\"),AB55*INDEX('Damage costs'!$P$16:$P$43,MATCH($B164,'Damage costs'!$C$16:$C$43,0))/1000,AB55*INDEX('Damage costs'!$T$16:$T$43,MATCH($B164,'Damage costs'!$C$16:$C$43,0))/1000),\"\")","v":""},{"$f":"IFERROR(IF(OR($C$168=FALSE,LEFT($B164,3)<>\"NOX\"),AC55*INDEX('Damage costs'!$P$16:$P$43,MATCH($B164,'Damage costs'!$C$16:$C$43,0))/1000,AC55*INDEX('Damage costs'!$T$16:$T$43,MATCH($B164,'Damage costs'!$C$16:$C$43,0))/1000),\"\")","v":""},{"$f":"IFERROR(IF(OR($C$168=FALSE,LEFT($B164,3)<>\"NOX\"),AD55*INDEX('Damage costs'!$P$16:$P$43,MATCH($B164,'Damage costs'!$C$16:$C$43,0))/1000,AD55*INDEX('Damage costs'!$T$16:$T$43,MATCH($B164,'Damage costs'!$C$16:$C$43,0))/1000),\"\")","v":""},{"$f":"IFERROR(IF(OR($C$168=FALSE,LEFT($B164,3)<>\"NOX\"),AE55*INDEX('Damage costs'!$P$16:$P$43,MATCH($B164,'Damage costs'!$C$16:$C$43,0))/1000,AE55*INDEX('Damage costs'!$T$16:$T$43,MATCH($B164,'Damage costs'!$C$16:$C$43,0))/1000),\"\")","v":""},{"$f":"IFERROR(IF(OR($C$168=FALSE,LEFT($B164,3)<>\"NOX\"),AF55*INDEX('Damage costs'!$P$16:$P$43,MATCH($B164,'Damage costs'!$C$16:$C$43,0))/1000,AF55*INDEX('Damage costs'!$T$16:$T$43,MATCH($B164,'Damage costs'!$C$16:$C$43,0))/1000),\"\")","v":""},{"$f":"IFERROR(IF(OR($C$168=FALSE,LEFT($B164,3)<>\"NOX\"),AG55*INDEX('Damage costs'!$P$16:$P$43,MATCH($B164,'Damage costs'!$C$16:$C$43,0))/1000,AG55*INDEX('Damage costs'!$T$16:$T$43,MATCH($B164,'Damage costs'!$C$16:$C$43,0))/1000),\"\")","v":""},{"$f":"IFERROR(IF(OR($C$168=FALSE,LEFT($B164,3)<>\"NOX\"),AH55*INDEX('Damage costs'!$P$16:$P$43,MATCH($B164,'Damage costs'!$C$16:$C$43,0))/1000,AH55*INDEX('Damage costs'!$T$16:$T$43,MATCH($B164,'Damage costs'!$C$16:$C$43,0))/1000),\"\")","v":""},{"$f":"IFERROR(IF(OR($C$168=FALSE,LEFT($B164,3)<>\"NOX\"),AI55*INDEX('Damage costs'!$P$16:$P$43,MATCH($B164,'Damage costs'!$C$16:$C$43,0))/1000,AI55*INDEX('Damage costs'!$T$16:$T$43,MATCH($B164,'Damage costs'!$C$16:$C$43,0))/1000),\"\")","v":""},{"$f":"IFERROR(IF(OR($C$168=FALSE,LEFT($B164,3)<>\"NOX\"),AJ55*INDEX('Damage costs'!$P$16:$P$43,MATCH($B164,'Damage costs'!$C$16:$C$43,0))/1000,AJ55*INDEX('Damage costs'!$T$16:$T$43,MATCH($B164,'Damage costs'!$C$16:$C$43,0))/1000),\"\")","v":""},{"$f":"IFERROR(IF(OR($C$168=FALSE,LEFT($B164,3)<>\"NOX\"),AK55*INDEX('Damage costs'!$P$16:$P$43,MATCH($B164,'Damage costs'!$C$16:$C$43,0))/1000,AK55*INDEX('Damage costs'!$T$16:$T$43,MATCH($B164,'Damage costs'!$C$16:$C$43,0))/1000),\"\")","v":""},{"$f":"IFERROR(IF(OR($C$168=FALSE,LEFT($B164,3)<>\"NOX\"),AL55*INDEX('Damage costs'!$P$16:$P$43,MATCH($B164,'Damage costs'!$C$16:$C$43,0))/1000,AL55*INDEX('Damage costs'!$T$16:$T$43,MATCH($B164,'Damage costs'!$C$16:$C$43,0))/1000),\"\")","v":""},{"$f":"IFERROR(IF(OR($C$168=FALSE,LEFT($B164,3)<>\"NOX\"),AM55*INDEX('Damage costs'!$P$16:$P$43,MATCH($B164,'Damage costs'!$C$16:$C$43,0))/1000,AM55*INDEX('Damage costs'!$T$16:$T$43,MATCH($B164,'Damage costs'!$C$16:$C$43,0))/1000),\"\")","v":""},{"$f":"IFERROR(IF(OR($C$168=FALSE,LEFT($B164,3)<>\"NOX\"),AN55*INDEX('Damage costs'!$P$16:$P$43,MATCH($B164,'Damage costs'!$C$16:$C$43,0))/1000,AN55*INDEX('Damage costs'!$T$16:$T$43,MATCH($B164,'Damage costs'!$C$16:$C$43,0))/1000),\"\")","v":""},{"$f":"IFERROR(IF(OR($C$168=FALSE,LEFT($B164,3)<>\"NOX\"),AO55*INDEX('Damage costs'!$P$16:$P$43,MATCH($B164,'Damage costs'!$C$16:$C$43,0))/1000,AO55*INDEX('Damage costs'!$T$16:$T$43,MATCH($B164,'Damage costs'!$C$16:$C$43,0))/1000),\"\")","v":""},{"$f":"IFERROR(IF(OR($C$168=FALSE,LEFT($B164,3)<>\"NOX\"),AP55*INDEX('Damage costs'!$P$16:$P$43,MATCH($B164,'Damage costs'!$C$16:$C$43,0))/1000,AP55*INDEX('Damage costs'!$T$16:$T$43,MATCH($B164,'Damage costs'!$C$16:$C$43,0))/1000),\"\")","v":""},{"$f":"IFERROR(IF(OR($C$168=FALSE,LEFT($B164,3)<>\"NOX\"),AQ55*INDEX('Damage costs'!$P$16:$P$43,MATCH($B164,'Damage costs'!$C$16:$C$43,0))/1000,AQ55*INDEX('Damage costs'!$T$16:$T$43,MATCH($B164,'Damage costs'!$C$16:$C$43,0))/1000),\"\")","v":""},{"$f":"IFERROR(IF(OR($C$168=FALSE,LEFT($B164,3)<>\"NOX\"),AR55*INDEX('Damage costs'!$P$16:$P$43,MATCH($B164,'Damage costs'!$C$16:$C$43,0))/1000,AR55*INDEX('Damage costs'!$T$16:$T$43,MATCH($B164,'Damage costs'!$C$16:$C$43,0))/1000),\"\")","v":""},{"$f":"IFERROR(IF(OR($C$168=FALSE,LEFT($B164,3)<>\"NOX\"),AS55*INDEX('Damage costs'!$P$16:$P$43,MATCH($B164,'Damage costs'!$C$16:$C$43,0))/1000,AS55*INDEX('Damage costs'!$T$16:$T$43,MATCH($B164,'Damage costs'!$C$16:$C$43,0))/1000),\"\")","v":""},{"$f":"IFERROR(IF(OR($C$168=FALSE,LEFT($B164,3)<>\"NOX\"),AT55*INDEX('Damage costs'!$P$16:$P$43,MATCH($B164,'Damage costs'!$C$16:$C$43,0))/1000,AT55*INDEX('Damage costs'!$T$16:$T$43,MATCH($B164,'Damage costs'!$C$16:$C$43,0))/1000),\"\")","v":""},{"$f":"IFERROR(IF(OR($C$168=FALSE,LEFT($B164,3)<>\"NOX\"),AU55*INDEX('Damage costs'!$P$16:$P$43,MATCH($B164,'Damage costs'!$C$16:$C$43,0))/1000,AU55*INDEX('Damage costs'!$T$16:$T$43,MATCH($B164,'Damage costs'!$C$16:$C$43,0))/1000),\"\")","v":""},{"$f":"IFERROR(IF(OR($C$168=FALSE,LEFT($B164,3)<>\"NOX\"),AV55*INDEX('Damage costs'!$P$16:$P$43,MATCH($B164,'Damage costs'!$C$16:$C$43,0))/1000,AV55*INDEX('Damage costs'!$T$16:$T$43,MATCH($B164,'Damage costs'!$C$16:$C$43,0))/1000),\"\")","v":""},{"$f":"IFERROR(IF(OR($C$168=FALSE,LEFT($B164,3)<>\"NOX\"),AW55*INDEX('Damage costs'!$P$16:$P$43,MATCH($B164,'Damage costs'!$C$16:$C$43,0))/1000,AW55*INDEX('Damage costs'!$T$16:$T$43,MATCH($B164,'Damage costs'!$C$16:$C$43,0))/1000),\"\")","v":""},{"$f":"IFERROR(IF(OR($C$168=FALSE,LEFT($B164,3)<>\"NOX\"),AX55*INDEX('Damage costs'!$P$16:$P$43,MATCH($B164,'Damage costs'!$C$16:$C$43,0))/1000,AX55*INDEX('Damage costs'!$T$16:$T$43,MATCH($B164,'Damage costs'!$C$16:$C$43,0))/1000),\"\")","v":""},{"$f":"IFERROR(IF(OR($C$168=FALSE,LEFT($B164,3)<>\"NOX\"),AY55*INDEX('Damage costs'!$P$16:$P$43,MATCH($B164,'Damage costs'!$C$16:$C$43,0))/1000,AY55*INDEX('Damage costs'!$T$16:$T$43,MATCH($B164,'Damage costs'!$C$16:$C$43,0))/1000),\"\")","v":""},{"$f":"IFERROR(IF(OR($C$168=FALSE,LEFT($B164,3)<>\"NOX\"),AZ55*INDEX('Damage costs'!$P$16:$P$43,MATCH($B164,'Damage costs'!$C$16:$C$43,0))/1000,AZ55*INDEX('Damage costs'!$T$16:$T$43,MATCH($B164,'Damage costs'!$C$16:$C$43,0))/1000),\"\")","v":""},{"$f":"IFERROR(IF(OR($C$168=FALSE,LEFT($B164,3)<>\"NOX\"),BA55*INDEX('Damage costs'!$P$16:$P$43,MATCH($B164,'Damage costs'!$C$16:$C$43,0))/1000,BA55*INDEX('Damage costs'!$T$16:$T$43,MATCH($B164,'Damage costs'!$C$16:$C$43,0))/1000),\"\")","v":""},{"$f":"IFERROR(IF(OR($C$168=FALSE,LEFT($B164,3)<>\"NOX\"),BB55*INDEX('Damage costs'!$P$16:$P$43,MATCH($B164,'Damage costs'!$C$16:$C$43,0))/1000,BB55*INDEX('Damage costs'!$T$16:$T$43,MATCH($B164,'Damage costs'!$C$16:$C$43,0))/1000),\"\")","v":""},{"$f":"IFERROR(IF(OR($C$168=FALSE,LEFT($B164,3)<>\"NOX\"),BC55*INDEX('Damage costs'!$P$16:$P$43,MATCH($B164,'Damage costs'!$C$16:$C$43,0))/1000,BC55*INDEX('Damage costs'!$T$16:$T$43,MATCH($B164,'Damage costs'!$C$16:$C$43,0))/1000),\"\")","v":""},{"$f":"IFERROR(IF(OR($C$168=FALSE,LEFT($B164,3)<>\"NOX\"),BD55*INDEX('Damage costs'!$P$16:$P$43,MATCH($B164,'Damage costs'!$C$16:$C$43,0))/1000,BD55*INDEX('Damage costs'!$T$16:$T$43,MATCH($B164,'Damage costs'!$C$16:$C$43,0))/1000),\"\")","v":""},{"$f":"IFERROR(IF(OR($C$168=FALSE,LEFT($B164,3)<>\"NOX\"),BE55*INDEX('Damage costs'!$P$16:$P$43,MATCH($B164,'Damage costs'!$C$16:$C$43,0))/1000,BE55*INDEX('Damage costs'!$T$16:$T$43,MATCH($B164,'Damage costs'!$C$16:$C$43,0))/1000),\"\")","v":""},{"$f":"IFERROR(IF(OR($C$168=FALSE,LEFT($B164,3)<>\"NOX\"),BF55*INDEX('Damage costs'!$P$16:$P$43,MATCH($B164,'Damage costs'!$C$16:$C$43,0))/1000,BF55*INDEX('Damage costs'!$T$16:$T$43,MATCH($B164,'Damage costs'!$C$16:$C$43,0))/1000),\"\")","v":""},{"$f":"IFERROR(IF(OR($C$168=FALSE,LEFT($B164,3)<>\"NOX\"),BG55*INDEX('Damage costs'!$P$16:$P$43,MATCH($B164,'Damage costs'!$C$16:$C$43,0))/1000,BG55*INDEX('Damage costs'!$T$16:$T$43,MATCH($B164,'Damage costs'!$C$16:$C$43,0))/1000),\"\")","v":""},{"$f":"IFERROR(IF(OR($C$168=FALSE,LEFT($B164,3)<>\"NOX\"),BH55*INDEX('Damage costs'!$P$16:$P$43,MATCH($B164,'Damage costs'!$C$16:$C$43,0))/1000,BH55*INDEX('Damage costs'!$T$16:$T$43,MATCH($B164,'Damage costs'!$C$16:$C$43,0))/1000),\"\")","v":""},{"$f":"IFERROR(IF(OR($C$168=FALSE,LEFT($B164,3)<>\"NOX\"),BI55*INDEX('Damage costs'!$P$16:$P$43,MATCH($B164,'Damage costs'!$C$16:$C$43,0))/1000,BI55*INDEX('Damage costs'!$T$16:$T$43,MATCH($B164,'Damage costs'!$C$16:$C$43,0))/1000),\"\")","v":""},{"$f":"IFERROR(IF(OR($C$168=FALSE,LEFT($B164,3)<>\"NOX\"),BJ55*INDEX('Damage costs'!$P$16:$P$43,MATCH($B164,'Damage costs'!$C$16:$C$43,0))/1000,BJ55*INDEX('Damage costs'!$T$16:$T$43,MATCH($B164,'Damage costs'!$C$16:$C$43,0))/1000),\"\")","v":""},{"$f":"IFERROR(IF(OR($C$168=FALSE,LEFT($B164,3)<>\"NOX\"),BK55*INDEX('Damage costs'!$P$16:$P$43,MATCH($B164,'Damage costs'!$C$16:$C$43,0))/1000,BK55*INDEX('Damage costs'!$T$16:$T$43,MATCH($B164,'Damage costs'!$C$16:$C$43,0))/1000),\"\")","v":""},{"$f":"IFERROR(IF(OR($C$168=FALSE,LEFT($B164,3)<>\"NOX\"),BL55*INDEX('Damage costs'!$P$16:$P$43,MATCH($B164,'Damage costs'!$C$16:$C$43,0))/1000,BL55*INDEX('Damage costs'!$T$16:$T$43,MATCH($B164,'Damage costs'!$C$16:$C$43,0))/1000),\"\")","v":""},{"$f":"IFERROR(IF(OR($C$168=FALSE,LEFT($B164,3)<>\"NOX\"),BM55*INDEX('Damage costs'!$P$16:$P$43,MATCH($B164,'Damage costs'!$C$16:$C$43,0))/1000,BM55*INDEX('Damage costs'!$T$16:$T$43,MATCH($B164,'Damage costs'!$C$16:$C$43,0))/1000),\"\")","v":""},{"$f":"IFERROR(IF(OR($C$168=FALSE,LEFT($B164,3)<>\"NOX\"),BN55*INDEX('Damage costs'!$P$16:$P$43,MATCH($B164,'Damage costs'!$C$16:$C$43,0))/1000,BN55*INDEX('Damage costs'!$T$16:$T$43,MATCH($B164,'Damage costs'!$C$16:$C$43,0))/1000),\"\")","v":""},{"$f":"IFERROR(IF(OR($C$168=FALSE,LEFT($B164,3)<>\"NOX\"),BO55*INDEX('Damage costs'!$P$16:$P$43,MATCH($B164,'Damage costs'!$C$16:$C$43,0))/1000,BO55*INDEX('Damage costs'!$T$16:$T$43,MATCH($B164,'Damage costs'!$C$16:$C$43,0))/1000),\"\")","v":""},{"$f":"IFERROR(IF(OR($C$168=FALSE,LEFT($B164,3)<>\"NOX\"),BP55*INDEX('Damage costs'!$P$16:$P$43,MATCH($B164,'Damage costs'!$C$16:$C$43,0))/1000,BP55*INDEX('Damage costs'!$T$16:$T$43,MATCH($B164,'Damage costs'!$C$16:$C$43,0))/1000),\"\")","v":""},{"$f":"IFERROR(IF(OR($C$168=FALSE,LEFT($B164,3)<>\"NOX\"),BQ55*INDEX('Damage costs'!$P$16:$P$43,MATCH($B164,'Damage costs'!$C$16:$C$43,0))/1000,BQ55*INDEX('Damage costs'!$T$16:$T$43,MATCH($B164,'Damage costs'!$C$16:$C$43,0))/1000),\"\")","v":""},{"$f":"IFERROR(IF(OR($C$168=FALSE,LEFT($B164,3)<>\"NOX\"),BR55*INDEX('Damage costs'!$P$16:$P$43,MATCH($B164,'Damage costs'!$C$16:$C$43,0))/1000,BR55*INDEX('Damage costs'!$T$16:$T$43,MATCH($B164,'Damage costs'!$C$16:$C$43,0))/1000),\"\")","v":""},{"$f":"IFERROR(IF(OR($C$168=FALSE,LEFT($B164,3)<>\"NOX\"),BS55*INDEX('Damage costs'!$P$16:$P$43,MATCH($B164,'Damage costs'!$C$16:$C$43,0))/1000,BS55*INDEX('Damage costs'!$T$16:$T$43,MATCH($B164,'Damage costs'!$C$16:$C$43,0))/1000),\"\")","v":""},{"$f":"IFERROR(IF(OR($C$168=FALSE,LEFT($B164,3)<>\"NOX\"),BT55*INDEX('Damage costs'!$P$16:$P$43,MATCH($B164,'Damage costs'!$C$16:$C$43,0))/1000,BT55*INDEX('Damage costs'!$T$16:$T$43,MATCH($B164,'Damage costs'!$C$16:$C$43,0))/1000),\"\")","v":""},{"$f":"IFERROR(IF(OR($C$168=FALSE,LEFT($B164,3)<>\"NOX\"),BU55*INDEX('Damage costs'!$P$16:$P$43,MATCH($B164,'Damage costs'!$C$16:$C$43,0))/1000,BU55*INDEX('Damage costs'!$T$16:$T$43,MATCH($B164,'Damage costs'!$C$16:$C$43,0))/1000),\"\")","v":""},{"$f":"IFERROR(IF(OR($C$168=FALSE,LEFT($B164,3)<>\"NOX\"),BV55*INDEX('Damage costs'!$P$16:$P$43,MATCH($B164,'Damage costs'!$C$16:$C$43,0))/1000,BV55*INDEX('Damage costs'!$T$16:$T$43,MATCH($B164,'Damage costs'!$C$16:$C$43,0))/1000),\"\")","v":""},{"$f":"IFERROR(IF(OR($C$168=FALSE,LEFT($B164,3)<>\"NOX\"),BW55*INDEX('Damage costs'!$P$16:$P$43,MATCH($B164,'Damage costs'!$C$16:$C$43,0))/1000,BW55*INDEX('Damage costs'!$T$16:$T$43,MATCH($B164,'Damage costs'!$C$16:$C$43,0))/1000),\"\")","v":""},{"$f":"IFERROR(IF(OR($C$168=FALSE,LEFT($B164,3)<>\"NOX\"),BX55*INDEX('Damage costs'!$P$16:$P$43,MATCH($B164,'Damage costs'!$C$16:$C$43,0))/1000,BX55*INDEX('Damage costs'!$T$16:$T$43,MATCH($B164,'Damage costs'!$C$16:$C$43,0))/1000),\"\")","v":""},{"$f":"IFERROR(IF(OR($C$168=FALSE,LEFT($B164,3)<>\"NOX\"),BY55*INDEX('Damage costs'!$P$16:$P$43,MATCH($B164,'Damage costs'!$C$16:$C$43,0))/1000,BY55*INDEX('Damage costs'!$T$16:$T$43,MATCH($B164,'Damage costs'!$C$16:$C$43,0))/1000),\"\")","v":""},{"$f":"IFERROR(IF(OR($C$168=FALSE,LEFT($B164,3)<>\"NOX\"),BZ55*INDEX('Damage costs'!$P$16:$P$43,MATCH($B164,'Damage costs'!$C$16:$C$43,0))/1000,BZ55*INDEX('Damage costs'!$T$16:$T$43,MATCH($B164,'Damage costs'!$C$16:$C$43,0))/1000),\"\")","v":""},{"$f":"IFERROR(IF(OR($C$168=FALSE,LEFT($B164,3)<>\"NOX\"),CA55*INDEX('Damage costs'!$P$16:$P$43,MATCH($B164,'Damage costs'!$C$16:$C$43,0))/1000,CA55*INDEX('Damage costs'!$T$16:$T$43,MATCH($B164,'Damage costs'!$C$16:$C$43,0))/1000),\"\")","v":""},{"$f":"IFERROR(IF(OR($C$168=FALSE,LEFT($B164,3)<>\"NOX\"),CB55*INDEX('Damage costs'!$P$16:$P$43,MATCH($B164,'Damage costs'!$C$16:$C$43,0))/1000,CB55*INDEX('Damage costs'!$T$16:$T$43,MATCH($B164,'Damage costs'!$C$16:$C$43,0))/1000),\"\")","v":""},{"$f":"IFERROR(IF(OR($C$168=FALSE,LEFT($B164,3)<>\"NOX\"),CC55*INDEX('Damage costs'!$P$16:$P$43,MATCH($B164,'Damage costs'!$C$16:$C$43,0))/1000,CC55*INDEX('Damage costs'!$T$16:$T$43,MATCH($B164,'Damage costs'!$C$16:$C$43,0))/1000),\"\")","v":""},{"$f":"IFERROR(IF(OR($C$168=FALSE,LEFT($B164,3)<>\"NOX\"),CD55*INDEX('Damage costs'!$P$16:$P$43,MATCH($B164,'Damage costs'!$C$16:$C$43,0))/1000,CD55*INDEX('Damage costs'!$T$16:$T$43,MATCH($B164,'Damage costs'!$C$16:$C$43,0))/1000),\"\")","v":""},{"$f":"IFERROR(IF(OR($C$168=FALSE,LEFT($B164,3)<>\"NOX\"),CE55*INDEX('Damage costs'!$P$16:$P$43,MATCH($B164,'Damage costs'!$C$16:$C$43,0))/1000,CE55*INDEX('Damage costs'!$T$16:$T$43,MATCH($B164,'Damage costs'!$C$16:$C$43,0))/1000),\"\")","v":""},{"$f":"IFERROR(IF(OR($C$168=FALSE,LEFT($B164,3)<>\"NOX\"),CF55*INDEX('Damage costs'!$P$16:$P$43,MATCH($B164,'Damage costs'!$C$16:$C$43,0))/1000,CF55*INDEX('Damage costs'!$T$16:$T$43,MATCH($B164,'Damage costs'!$C$16:$C$43,0))/1000),\"\")","v":""},{"$f":"IFERROR(IF(OR($C$168=FALSE,LEFT($B164,3)<>\"NOX\"),CG55*INDEX('Damage costs'!$P$16:$P$43,MATCH($B164,'Damage costs'!$C$16:$C$43,0))/1000,CG55*INDEX('Damage costs'!$T$16:$T$43,MATCH($B164,'Damage costs'!$C$16:$C$43,0))/1000),\"\")","v":""},{"$f":"IFERROR(IF(OR($C$168=FALSE,LEFT($B164,3)<>\"NOX\"),CH55*INDEX('Damage costs'!$P$16:$P$43,MATCH($B164,'Damage costs'!$C$16:$C$43,0))/1000,CH55*INDEX('Damage costs'!$T$16:$T$43,MATCH($B164,'Damage costs'!$C$16:$C$43,0))/1000),\"\")","v":""},{"$f":"IFERROR(IF(OR($C$168=FALSE,LEFT($B164,3)<>\"NOX\"),CI55*INDEX('Damage costs'!$P$16:$P$43,MATCH($B164,'Damage costs'!$C$16:$C$43,0))/1000,CI55*INDEX('Damage costs'!$T$16:$T$43,MATCH($B164,'Damage costs'!$C$16:$C$43,0))/1000),\"\")","v":""},{"$f":"IFERROR(IF(OR($C$168=FALSE,LEFT($B164,3)<>\"NOX\"),CJ55*INDEX('Damage costs'!$P$16:$P$43,MATCH($B164,'Damage costs'!$C$16:$C$43,0))/1000,CJ55*INDEX('Damage costs'!$T$16:$T$43,MATCH($B164,'Damage costs'!$C$16:$C$43,0))/1000),\"\")","v":""},{"$f":"IFERROR(IF(OR($C$168=FALSE,LEFT($B164,3)<>\"NOX\"),CK55*INDEX('Damage costs'!$P$16:$P$43,MATCH($B164,'Damage costs'!$C$16:$C$43,0))/1000,CK55*INDEX('Damage costs'!$T$16:$T$43,MATCH($B164,'Damage costs'!$C$16:$C$43,0))/1000),\"\")","v":""},{"$f":"IFERROR(IF(OR($C$168=FALSE,LEFT($B164,3)<>\"NOX\"),CL55*INDEX('Damage costs'!$P$16:$P$43,MATCH($B164,'Damage costs'!$C$16:$C$43,0))/1000,CL55*INDEX('Damage costs'!$T$16:$T$43,MATCH($B164,'Damage costs'!$C$16:$C$43,0))/1000),\"\")","v":""},{"$f":"IFERROR(IF(OR($C$168=FALSE,LEFT($B164,3)<>\"NOX\"),CM55*INDEX('Damage costs'!$P$16:$P$43,MATCH($B164,'Damage costs'!$C$16:$C$43,0))/1000,CM55*INDEX('Damage costs'!$T$16:$T$43,MATCH($B164,'Damage costs'!$C$16:$C$43,0))/1000),\"\")","v":""},{"$f":"IFERROR(IF(OR($C$168=FALSE,LEFT($B164,3)<>\"NOX\"),CN55*INDEX('Damage costs'!$P$16:$P$43,MATCH($B164,'Damage costs'!$C$16:$C$43,0))/1000,CN55*INDEX('Damage costs'!$T$16:$T$43,MATCH($B164,'Damage costs'!$C$16:$C$43,0))/1000),\"\")","v":""},{"$f":"IFERROR(IF(OR($C$168=FALSE,LEFT($B164,3)<>\"NOX\"),CO55*INDEX('Damage costs'!$P$16:$P$43,MATCH($B164,'Damage costs'!$C$16:$C$43,0))/1000,CO55*INDEX('Damage costs'!$T$16:$T$43,MATCH($B164,'Damage costs'!$C$16:$C$43,0))/1000),\"\")","v":""},{"$f":"IFERROR(IF(OR($C$168=FALSE,LEFT($B164,3)<>\"NOX\"),CP55*INDEX('Damage costs'!$P$16:$P$43,MATCH($B164,'Damage costs'!$C$16:$C$43,0))/1000,CP55*INDEX('Damage costs'!$T$16:$T$43,MATCH($B164,'Damage costs'!$C$16:$C$43,0))/1000),\"\")","v":""},{"$f":"IFERROR(IF(OR($C$168=FALSE,LEFT($B164,3)<>\"NOX\"),CQ55*INDEX('Damage costs'!$P$16:$P$43,MATCH($B164,'Damage costs'!$C$16:$C$43,0))/1000,CQ55*INDEX('Damage costs'!$T$16:$T$43,MATCH($B164,'Damage costs'!$C$16:$C$43,0))/1000),\"\")","v":""},{"$f":"IFERROR(IF(OR($C$168=FALSE,LEFT($B164,3)<>\"NOX\"),CR55*INDEX('Damage costs'!$P$16:$P$43,MATCH($B164,'Damage costs'!$C$16:$C$43,0))/1000,CR55*INDEX('Damage costs'!$T$16:$T$43,MATCH($B164,'Damage costs'!$C$16:$C$43,0))/1000),\"\")","v":""},{"$f":"IFERROR(IF(OR($C$168=FALSE,LEFT($B164,3)<>\"NOX\"),CS55*INDEX('Damage costs'!$P$16:$P$43,MATCH($B164,'Damage costs'!$C$16:$C$43,0))/1000,CS55*INDEX('Damage costs'!$T$16:$T$43,MATCH($B164,'Damage costs'!$C$16:$C$43,0))/1000),\"\")","v":""},{"$f":"IFERROR(IF(OR($C$168=FALSE,LEFT($B164,3)<>\"NOX\"),CT55*INDEX('Damage costs'!$P$16:$P$43,MATCH($B164,'Damage costs'!$C$16:$C$43,0))/1000,CT55*INDEX('Damage costs'!$T$16:$T$43,MATCH($B164,'Damage costs'!$C$16:$C$43,0))/1000),\"\")","v":""},{"$f":"IFERROR(IF(OR($C$168=FALSE,LEFT($B164,3)<>\"NOX\"),CU55*INDEX('Damage costs'!$P$16:$P$43,MATCH($B164,'Damage costs'!$C$16:$C$43,0))/1000,CU55*INDEX('Damage costs'!$T$16:$T$43,MATCH($B164,'Damage costs'!$C$16:$C$43,0))/1000),\"\")","v":""},{"$f":"IFERROR(IF(OR($C$168=FALSE,LEFT($B164,3)<>\"NOX\"),CV55*INDEX('Damage costs'!$P$16:$P$43,MATCH($B164,'Damage costs'!$C$16:$C$43,0))/1000,CV55*INDEX('Damage costs'!$T$16:$T$43,MATCH($B164,'Damage costs'!$C$16:$C$43,0))/1000),\"\")","v":""},{"$f":"IFERROR(IF(OR($C$168=FALSE,LEFT($B164,3)<>\"NOX\"),CW55*INDEX('Damage costs'!$P$16:$P$43,MATCH($B164,'Damage costs'!$C$16:$C$43,0))/1000,CW55*INDEX('Damage costs'!$T$16:$T$43,MATCH($B164,'Damage costs'!$C$16:$C$43,0))/1000),\"\")","v":""},{"$f":"IFERROR(IF(OR($C$168=FALSE,LEFT($B164,3)<>\"NOX\"),CX55*INDEX('Damage costs'!$P$16:$P$43,MATCH($B164,'Damage costs'!$C$16:$C$43,0))/1000,CX55*INDEX('Damage costs'!$T$16:$T$43,MATCH($B164,'Damage costs'!$C$16:$C$43,0))/1000),\"\")","v":""},{"$f":"IFERROR(IF(OR($C$168=FALSE,LEFT($B164,3)<>\"NOX\"),CY55*INDEX('Damage costs'!$P$16:$P$43,MATCH($B164,'Damage costs'!$C$16:$C$43,0))/1000,CY55*INDEX('Damage costs'!$T$16:$T$43,MATCH($B164,'Damage costs'!$C$16:$C$43,0))/1000),\"\")","v":""}]
[null,0,"£000's",{"$f":"IFERROR(IF(OR($C$168=FALSE,LEFT($B165,3)<>\"NOX\"),D56*INDEX('Damage costs'!$P$16:$P$43,MATCH($B165,'Damage costs'!$C$16:$C$43,0))/1000,D56*INDEX('Damage costs'!$T$16:$T$43,MATCH($B165,'Damage costs'!$C$16:$C$43,0))/1000),\"\")","v":""},{"$f":"IFERROR(IF(OR($C$168=FALSE,LEFT($B165,3)<>\"NOX\"),E56*INDEX('Damage costs'!$P$16:$P$43,MATCH($B165,'Damage costs'!$C$16:$C$43,0))/1000,E56*INDEX('Damage costs'!$T$16:$T$43,MATCH($B165,'Damage costs'!$C$16:$C$43,0))/1000),\"\")","v":""},{"$f":"IFERROR(IF(OR($C$168=FALSE,LEFT($B165,3)<>\"NOX\"),F56*INDEX('Damage costs'!$P$16:$P$43,MATCH($B165,'Damage costs'!$C$16:$C$43,0))/1000,F56*INDEX('Damage costs'!$T$16:$T$43,MATCH($B165,'Damage costs'!$C$16:$C$43,0))/1000),\"\")","v":""},{"$f":"IFERROR(IF(OR($C$168=FALSE,LEFT($B165,3)<>\"NOX\"),G56*INDEX('Damage costs'!$P$16:$P$43,MATCH($B165,'Damage costs'!$C$16:$C$43,0))/1000,G56*INDEX('Damage costs'!$T$16:$T$43,MATCH($B165,'Damage costs'!$C$16:$C$43,0))/1000),\"\")","v":""},{"$f":"IFERROR(IF(OR($C$168=FALSE,LEFT($B165,3)<>\"NOX\"),H56*INDEX('Damage costs'!$P$16:$P$43,MATCH($B165,'Damage costs'!$C$16:$C$43,0))/1000,H56*INDEX('Damage costs'!$T$16:$T$43,MATCH($B165,'Damage costs'!$C$16:$C$43,0))/1000),\"\")","v":""},{"$f":"IFERROR(IF(OR($C$168=FALSE,LEFT($B165,3)<>\"NOX\"),I56*INDEX('Damage costs'!$P$16:$P$43,MATCH($B165,'Damage costs'!$C$16:$C$43,0))/1000,I56*INDEX('Damage costs'!$T$16:$T$43,MATCH($B165,'Damage costs'!$C$16:$C$43,0))/1000),\"\")","v":""},{"$f":"IFERROR(IF(OR($C$168=FALSE,LEFT($B165,3)<>\"NOX\"),J56*INDEX('Damage costs'!$P$16:$P$43,MATCH($B165,'Damage costs'!$C$16:$C$43,0))/1000,J56*INDEX('Damage costs'!$T$16:$T$43,MATCH($B165,'Damage costs'!$C$16:$C$43,0))/1000),\"\")","v":""},{"$f":"IFERROR(IF(OR($C$168=FALSE,LEFT($B165,3)<>\"NOX\"),K56*INDEX('Damage costs'!$P$16:$P$43,MATCH($B165,'Damage costs'!$C$16:$C$43,0))/1000,K56*INDEX('Damage costs'!$T$16:$T$43,MATCH($B165,'Damage costs'!$C$16:$C$43,0))/1000),\"\")","v":""},{"$f":"IFERROR(IF(OR($C$168=FALSE,LEFT($B165,3)<>\"NOX\"),L56*INDEX('Damage costs'!$P$16:$P$43,MATCH($B165,'Damage costs'!$C$16:$C$43,0))/1000,L56*INDEX('Damage costs'!$T$16:$T$43,MATCH($B165,'Damage costs'!$C$16:$C$43,0))/1000),\"\")","v":""},{"$f":"IFERROR(IF(OR($C$168=FALSE,LEFT($B165,3)<>\"NOX\"),M56*INDEX('Damage costs'!$P$16:$P$43,MATCH($B165,'Damage costs'!$C$16:$C$43,0))/1000,M56*INDEX('Damage costs'!$T$16:$T$43,MATCH($B165,'Damage costs'!$C$16:$C$43,0))/1000),\"\")","v":""},{"$f":"IFERROR(IF(OR($C$168=FALSE,LEFT($B165,3)<>\"NOX\"),N56*INDEX('Damage costs'!$P$16:$P$43,MATCH($B165,'Damage costs'!$C$16:$C$43,0))/1000,N56*INDEX('Damage costs'!$T$16:$T$43,MATCH($B165,'Damage costs'!$C$16:$C$43,0))/1000),\"\")","v":""},{"$f":"IFERROR(IF(OR($C$168=FALSE,LEFT($B165,3)<>\"NOX\"),O56*INDEX('Damage costs'!$P$16:$P$43,MATCH($B165,'Damage costs'!$C$16:$C$43,0))/1000,O56*INDEX('Damage costs'!$T$16:$T$43,MATCH($B165,'Damage costs'!$C$16:$C$43,0))/1000),\"\")","v":""},{"$f":"IFERROR(IF(OR($C$168=FALSE,LEFT($B165,3)<>\"NOX\"),P56*INDEX('Damage costs'!$P$16:$P$43,MATCH($B165,'Damage costs'!$C$16:$C$43,0))/1000,P56*INDEX('Damage costs'!$T$16:$T$43,MATCH($B165,'Damage costs'!$C$16:$C$43,0))/1000),\"\")","v":""},{"$f":"IFERROR(IF(OR($C$168=FALSE,LEFT($B165,3)<>\"NOX\"),Q56*INDEX('Damage costs'!$P$16:$P$43,MATCH($B165,'Damage costs'!$C$16:$C$43,0))/1000,Q56*INDEX('Damage costs'!$T$16:$T$43,MATCH($B165,'Damage costs'!$C$16:$C$43,0))/1000),\"\")","v":""},{"$f":"IFERROR(IF(OR($C$168=FALSE,LEFT($B165,3)<>\"NOX\"),R56*INDEX('Damage costs'!$P$16:$P$43,MATCH($B165,'Damage costs'!$C$16:$C$43,0))/1000,R56*INDEX('Damage costs'!$T$16:$T$43,MATCH($B165,'Damage costs'!$C$16:$C$43,0))/1000),\"\")","v":""},{"$f":"IFERROR(IF(OR($C$168=FALSE,LEFT($B165,3)<>\"NOX\"),S56*INDEX('Damage costs'!$P$16:$P$43,MATCH($B165,'Damage costs'!$C$16:$C$43,0))/1000,S56*INDEX('Damage costs'!$T$16:$T$43,MATCH($B165,'Damage costs'!$C$16:$C$43,0))/1000),\"\")","v":""},{"$f":"IFERROR(IF(OR($C$168=FALSE,LEFT($B165,3)<>\"NOX\"),T56*INDEX('Damage costs'!$P$16:$P$43,MATCH($B165,'Damage costs'!$C$16:$C$43,0))/1000,T56*INDEX('Damage costs'!$T$16:$T$43,MATCH($B165,'Damage costs'!$C$16:$C$43,0))/1000),\"\")","v":""},{"$f":"IFERROR(IF(OR($C$168=FALSE,LEFT($B165,3)<>\"NOX\"),U56*INDEX('Damage costs'!$P$16:$P$43,MATCH($B165,'Damage costs'!$C$16:$C$43,0))/1000,U56*INDEX('Damage costs'!$T$16:$T$43,MATCH($B165,'Damage costs'!$C$16:$C$43,0))/1000),\"\")","v":""},{"$f":"IFERROR(IF(OR($C$168=FALSE,LEFT($B165,3)<>\"NOX\"),V56*INDEX('Damage costs'!$P$16:$P$43,MATCH($B165,'Damage costs'!$C$16:$C$43,0))/1000,V56*INDEX('Damage costs'!$T$16:$T$43,MATCH($B165,'Damage costs'!$C$16:$C$43,0))/1000),\"\")","v":""},{"$f":"IFERROR(IF(OR($C$168=FALSE,LEFT($B165,3)<>\"NOX\"),W56*INDEX('Damage costs'!$P$16:$P$43,MATCH($B165,'Damage costs'!$C$16:$C$43,0))/1000,W56*INDEX('Damage costs'!$T$16:$T$43,MATCH($B165,'Damage costs'!$C$16:$C$43,0))/1000),\"\")","v":""},{"$f":"IFERROR(IF(OR($C$168=FALSE,LEFT($B165,3)<>\"NOX\"),X56*INDEX('Damage costs'!$P$16:$P$43,MATCH($B165,'Damage costs'!$C$16:$C$43,0))/1000,X56*INDEX('Damage costs'!$T$16:$T$43,MATCH($B165,'Damage costs'!$C$16:$C$43,0))/1000),\"\")","v":""},{"$f":"IFERROR(IF(OR($C$168=FALSE,LEFT($B165,3)<>\"NOX\"),Y56*INDEX('Damage costs'!$P$16:$P$43,MATCH($B165,'Damage costs'!$C$16:$C$43,0))/1000,Y56*INDEX('Damage costs'!$T$16:$T$43,MATCH($B165,'Damage costs'!$C$16:$C$43,0))/1000),\"\")","v":""},{"$f":"IFERROR(IF(OR($C$168=FALSE,LEFT($B165,3)<>\"NOX\"),Z56*INDEX('Damage costs'!$P$16:$P$43,MATCH($B165,'Damage costs'!$C$16:$C$43,0))/1000,Z56*INDEX('Damage costs'!$T$16:$T$43,MATCH($B165,'Damage costs'!$C$16:$C$43,0))/1000),\"\")","v":""},{"$f":"IFERROR(IF(OR($C$168=FALSE,LEFT($B165,3)<>\"NOX\"),AA56*INDEX('Damage costs'!$P$16:$P$43,MATCH($B165,'Damage costs'!$C$16:$C$43,0))/1000,AA56*INDEX('Damage costs'!$T$16:$T$43,MATCH($B165,'Damage costs'!$C$16:$C$43,0))/1000),\"\")","v":""},{"$f":"IFERROR(IF(OR($C$168=FALSE,LEFT($B165,3)<>\"NOX\"),AB56*INDEX('Damage costs'!$P$16:$P$43,MATCH($B165,'Damage costs'!$C$16:$C$43,0))/1000,AB56*INDEX('Damage costs'!$T$16:$T$43,MATCH($B165,'Damage costs'!$C$16:$C$43,0))/1000),\"\")","v":""},{"$f":"IFERROR(IF(OR($C$168=FALSE,LEFT($B165,3)<>\"NOX\"),AC56*INDEX('Damage costs'!$P$16:$P$43,MATCH($B165,'Damage costs'!$C$16:$C$43,0))/1000,AC56*INDEX('Damage costs'!$T$16:$T$43,MATCH($B165,'Damage costs'!$C$16:$C$43,0))/1000),\"\")","v":""},{"$f":"IFERROR(IF(OR($C$168=FALSE,LEFT($B165,3)<>\"NOX\"),AD56*INDEX('Damage costs'!$P$16:$P$43,MATCH($B165,'Damage costs'!$C$16:$C$43,0))/1000,AD56*INDEX('Damage costs'!$T$16:$T$43,MATCH($B165,'Damage costs'!$C$16:$C$43,0))/1000),\"\")","v":""},{"$f":"IFERROR(IF(OR($C$168=FALSE,LEFT($B165,3)<>\"NOX\"),AE56*INDEX('Damage costs'!$P$16:$P$43,MATCH($B165,'Damage costs'!$C$16:$C$43,0))/1000,AE56*INDEX('Damage costs'!$T$16:$T$43,MATCH($B165,'Damage costs'!$C$16:$C$43,0))/1000),\"\")","v":""},{"$f":"IFERROR(IF(OR($C$168=FALSE,LEFT($B165,3)<>\"NOX\"),AF56*INDEX('Damage costs'!$P$16:$P$43,MATCH($B165,'Damage costs'!$C$16:$C$43,0))/1000,AF56*INDEX('Damage costs'!$T$16:$T$43,MATCH($B165,'Damage costs'!$C$16:$C$43,0))/1000),\"\")","v":""},{"$f":"IFERROR(IF(OR($C$168=FALSE,LEFT($B165,3)<>\"NOX\"),AG56*INDEX('Damage costs'!$P$16:$P$43,MATCH($B165,'Damage costs'!$C$16:$C$43,0))/1000,AG56*INDEX('Damage costs'!$T$16:$T$43,MATCH($B165,'Damage costs'!$C$16:$C$43,0))/1000),\"\")","v":""},{"$f":"IFERROR(IF(OR($C$168=FALSE,LEFT($B165,3)<>\"NOX\"),AH56*INDEX('Damage costs'!$P$16:$P$43,MATCH($B165,'Damage costs'!$C$16:$C$43,0))/1000,AH56*INDEX('Damage costs'!$T$16:$T$43,MATCH($B165,'Damage costs'!$C$16:$C$43,0))/1000),\"\")","v":""},{"$f":"IFERROR(IF(OR($C$168=FALSE,LEFT($B165,3)<>\"NOX\"),AI56*INDEX('Damage costs'!$P$16:$P$43,MATCH($B165,'Damage costs'!$C$16:$C$43,0))/1000,AI56*INDEX('Damage costs'!$T$16:$T$43,MATCH($B165,'Damage costs'!$C$16:$C$43,0))/1000),\"\")","v":""},{"$f":"IFERROR(IF(OR($C$168=FALSE,LEFT($B165,3)<>\"NOX\"),AJ56*INDEX('Damage costs'!$P$16:$P$43,MATCH($B165,'Damage costs'!$C$16:$C$43,0))/1000,AJ56*INDEX('Damage costs'!$T$16:$T$43,MATCH($B165,'Damage costs'!$C$16:$C$43,0))/1000),\"\")","v":""},{"$f":"IFERROR(IF(OR($C$168=FALSE,LEFT($B165,3)<>\"NOX\"),AK56*INDEX('Damage costs'!$P$16:$P$43,MATCH($B165,'Damage costs'!$C$16:$C$43,0))/1000,AK56*INDEX('Damage costs'!$T$16:$T$43,MATCH($B165,'Damage costs'!$C$16:$C$43,0))/1000),\"\")","v":""},{"$f":"IFERROR(IF(OR($C$168=FALSE,LEFT($B165,3)<>\"NOX\"),AL56*INDEX('Damage costs'!$P$16:$P$43,MATCH($B165,'Damage costs'!$C$16:$C$43,0))/1000,AL56*INDEX('Damage costs'!$T$16:$T$43,MATCH($B165,'Damage costs'!$C$16:$C$43,0))/1000),\"\")","v":""},{"$f":"IFERROR(IF(OR($C$168=FALSE,LEFT($B165,3)<>\"NOX\"),AM56*INDEX('Damage costs'!$P$16:$P$43,MATCH($B165,'Damage costs'!$C$16:$C$43,0))/1000,AM56*INDEX('Damage costs'!$T$16:$T$43,MATCH($B165,'Damage costs'!$C$16:$C$43,0))/1000),\"\")","v":""},{"$f":"IFERROR(IF(OR($C$168=FALSE,LEFT($B165,3)<>\"NOX\"),AN56*INDEX('Damage costs'!$P$16:$P$43,MATCH($B165,'Damage costs'!$C$16:$C$43,0))/1000,AN56*INDEX('Damage costs'!$T$16:$T$43,MATCH($B165,'Damage costs'!$C$16:$C$43,0))/1000),\"\")","v":""},{"$f":"IFERROR(IF(OR($C$168=FALSE,LEFT($B165,3)<>\"NOX\"),AO56*INDEX('Damage costs'!$P$16:$P$43,MATCH($B165,'Damage costs'!$C$16:$C$43,0))/1000,AO56*INDEX('Damage costs'!$T$16:$T$43,MATCH($B165,'Damage costs'!$C$16:$C$43,0))/1000),\"\")","v":""},{"$f":"IFERROR(IF(OR($C$168=FALSE,LEFT($B165,3)<>\"NOX\"),AP56*INDEX('Damage costs'!$P$16:$P$43,MATCH($B165,'Damage costs'!$C$16:$C$43,0))/1000,AP56*INDEX('Damage costs'!$T$16:$T$43,MATCH($B165,'Damage costs'!$C$16:$C$43,0))/1000),\"\")","v":""},{"$f":"IFERROR(IF(OR($C$168=FALSE,LEFT($B165,3)<>\"NOX\"),AQ56*INDEX('Damage costs'!$P$16:$P$43,MATCH($B165,'Damage costs'!$C$16:$C$43,0))/1000,AQ56*INDEX('Damage costs'!$T$16:$T$43,MATCH($B165,'Damage costs'!$C$16:$C$43,0))/1000),\"\")","v":""},{"$f":"IFERROR(IF(OR($C$168=FALSE,LEFT($B165,3)<>\"NOX\"),AR56*INDEX('Damage costs'!$P$16:$P$43,MATCH($B165,'Damage costs'!$C$16:$C$43,0))/1000,AR56*INDEX('Damage costs'!$T$16:$T$43,MATCH($B165,'Damage costs'!$C$16:$C$43,0))/1000),\"\")","v":""},{"$f":"IFERROR(IF(OR($C$168=FALSE,LEFT($B165,3)<>\"NOX\"),AS56*INDEX('Damage costs'!$P$16:$P$43,MATCH($B165,'Damage costs'!$C$16:$C$43,0))/1000,AS56*INDEX('Damage costs'!$T$16:$T$43,MATCH($B165,'Damage costs'!$C$16:$C$43,0))/1000),\"\")","v":""},{"$f":"IFERROR(IF(OR($C$168=FALSE,LEFT($B165,3)<>\"NOX\"),AT56*INDEX('Damage costs'!$P$16:$P$43,MATCH($B165,'Damage costs'!$C$16:$C$43,0))/1000,AT56*INDEX('Damage costs'!$T$16:$T$43,MATCH($B165,'Damage costs'!$C$16:$C$43,0))/1000),\"\")","v":""},{"$f":"IFERROR(IF(OR($C$168=FALSE,LEFT($B165,3)<>\"NOX\"),AU56*INDEX('Damage costs'!$P$16:$P$43,MATCH($B165,'Damage costs'!$C$16:$C$43,0))/1000,AU56*INDEX('Damage costs'!$T$16:$T$43,MATCH($B165,'Damage costs'!$C$16:$C$43,0))/1000),\"\")","v":""},{"$f":"IFERROR(IF(OR($C$168=FALSE,LEFT($B165,3)<>\"NOX\"),AV56*INDEX('Damage costs'!$P$16:$P$43,MATCH($B165,'Damage costs'!$C$16:$C$43,0))/1000,AV56*INDEX('Damage costs'!$T$16:$T$43,MATCH($B165,'Damage costs'!$C$16:$C$43,0))/1000),\"\")","v":""},{"$f":"IFERROR(IF(OR($C$168=FALSE,LEFT($B165,3)<>\"NOX\"),AW56*INDEX('Damage costs'!$P$16:$P$43,MATCH($B165,'Damage costs'!$C$16:$C$43,0))/1000,AW56*INDEX('Damage costs'!$T$16:$T$43,MATCH($B165,'Damage costs'!$C$16:$C$43,0))/1000),\"\")","v":""},{"$f":"IFERROR(IF(OR($C$168=FALSE,LEFT($B165,3)<>\"NOX\"),AX56*INDEX('Damage costs'!$P$16:$P$43,MATCH($B165,'Damage costs'!$C$16:$C$43,0))/1000,AX56*INDEX('Damage costs'!$T$16:$T$43,MATCH($B165,'Damage costs'!$C$16:$C$43,0))/1000),\"\")","v":""},{"$f":"IFERROR(IF(OR($C$168=FALSE,LEFT($B165,3)<>\"NOX\"),AY56*INDEX('Damage costs'!$P$16:$P$43,MATCH($B165,'Damage costs'!$C$16:$C$43,0))/1000,AY56*INDEX('Damage costs'!$T$16:$T$43,MATCH($B165,'Damage costs'!$C$16:$C$43,0))/1000),\"\")","v":""},{"$f":"IFERROR(IF(OR($C$168=FALSE,LEFT($B165,3)<>\"NOX\"),AZ56*INDEX('Damage costs'!$P$16:$P$43,MATCH($B165,'Damage costs'!$C$16:$C$43,0))/1000,AZ56*INDEX('Damage costs'!$T$16:$T$43,MATCH($B165,'Damage costs'!$C$16:$C$43,0))/1000),\"\")","v":""},{"$f":"IFERROR(IF(OR($C$168=FALSE,LEFT($B165,3)<>\"NOX\"),BA56*INDEX('Damage costs'!$P$16:$P$43,MATCH($B165,'Damage costs'!$C$16:$C$43,0))/1000,BA56*INDEX('Damage costs'!$T$16:$T$43,MATCH($B165,'Damage costs'!$C$16:$C$43,0))/1000),\"\")","v":""},{"$f":"IFERROR(IF(OR($C$168=FALSE,LEFT($B165,3)<>\"NOX\"),BB56*INDEX('Damage costs'!$P$16:$P$43,MATCH($B165,'Damage costs'!$C$16:$C$43,0))/1000,BB56*INDEX('Damage costs'!$T$16:$T$43,MATCH($B165,'Damage costs'!$C$16:$C$43,0))/1000),\"\")","v":""},{"$f":"IFERROR(IF(OR($C$168=FALSE,LEFT($B165,3)<>\"NOX\"),BC56*INDEX('Damage costs'!$P$16:$P$43,MATCH($B165,'Damage costs'!$C$16:$C$43,0))/1000,BC56*INDEX('Damage costs'!$T$16:$T$43,MATCH($B165,'Damage costs'!$C$16:$C$43,0))/1000),\"\")","v":""},{"$f":"IFERROR(IF(OR($C$168=FALSE,LEFT($B165,3)<>\"NOX\"),BD56*INDEX('Damage costs'!$P$16:$P$43,MATCH($B165,'Damage costs'!$C$16:$C$43,0))/1000,BD56*INDEX('Damage costs'!$T$16:$T$43,MATCH($B165,'Damage costs'!$C$16:$C$43,0))/1000),\"\")","v":""},{"$f":"IFERROR(IF(OR($C$168=FALSE,LEFT($B165,3)<>\"NOX\"),BE56*INDEX('Damage costs'!$P$16:$P$43,MATCH($B165,'Damage costs'!$C$16:$C$43,0))/1000,BE56*INDEX('Damage costs'!$T$16:$T$43,MATCH($B165,'Damage costs'!$C$16:$C$43,0))/1000),\"\")","v":""},{"$f":"IFERROR(IF(OR($C$168=FALSE,LEFT($B165,3)<>\"NOX\"),BF56*INDEX('Damage costs'!$P$16:$P$43,MATCH($B165,'Damage costs'!$C$16:$C$43,0))/1000,BF56*INDEX('Damage costs'!$T$16:$T$43,MATCH($B165,'Damage costs'!$C$16:$C$43,0))/1000),\"\")","v":""},{"$f":"IFERROR(IF(OR($C$168=FALSE,LEFT($B165,3)<>\"NOX\"),BG56*INDEX('Damage costs'!$P$16:$P$43,MATCH($B165,'Damage costs'!$C$16:$C$43,0))/1000,BG56*INDEX('Damage costs'!$T$16:$T$43,MATCH($B165,'Damage costs'!$C$16:$C$43,0))/1000),\"\")","v":""},{"$f":"IFERROR(IF(OR($C$168=FALSE,LEFT($B165,3)<>\"NOX\"),BH56*INDEX('Damage costs'!$P$16:$P$43,MATCH($B165,'Damage costs'!$C$16:$C$43,0))/1000,BH56*INDEX('Damage costs'!$T$16:$T$43,MATCH($B165,'Damage costs'!$C$16:$C$43,0))/1000),\"\")","v":""},{"$f":"IFERROR(IF(OR($C$168=FALSE,LEFT($B165,3)<>\"NOX\"),BI56*INDEX('Damage costs'!$P$16:$P$43,MATCH($B165,'Damage costs'!$C$16:$C$43,0))/1000,BI56*INDEX('Damage costs'!$T$16:$T$43,MATCH($B165,'Damage costs'!$C$16:$C$43,0))/1000),\"\")","v":""},{"$f":"IFERROR(IF(OR($C$168=FALSE,LEFT($B165,3)<>\"NOX\"),BJ56*INDEX('Damage costs'!$P$16:$P$43,MATCH($B165,'Damage costs'!$C$16:$C$43,0))/1000,BJ56*INDEX('Damage costs'!$T$16:$T$43,MATCH($B165,'Damage costs'!$C$16:$C$43,0))/1000),\"\")","v":""},{"$f":"IFERROR(IF(OR($C$168=FALSE,LEFT($B165,3)<>\"NOX\"),BK56*INDEX('Damage costs'!$P$16:$P$43,MATCH($B165,'Damage costs'!$C$16:$C$43,0))/1000,BK56*INDEX('Damage costs'!$T$16:$T$43,MATCH($B165,'Damage costs'!$C$16:$C$43,0))/1000),\"\")","v":""},{"$f":"IFERROR(IF(OR($C$168=FALSE,LEFT($B165,3)<>\"NOX\"),BL56*INDEX('Damage costs'!$P$16:$P$43,MATCH($B165,'Damage costs'!$C$16:$C$43,0))/1000,BL56*INDEX('Damage costs'!$T$16:$T$43,MATCH($B165,'Damage costs'!$C$16:$C$43,0))/1000),\"\")","v":""},{"$f":"IFERROR(IF(OR($C$168=FALSE,LEFT($B165,3)<>\"NOX\"),BM56*INDEX('Damage costs'!$P$16:$P$43,MATCH($B165,'Damage costs'!$C$16:$C$43,0))/1000,BM56*INDEX('Damage costs'!$T$16:$T$43,MATCH($B165,'Damage costs'!$C$16:$C$43,0))/1000),\"\")","v":""},{"$f":"IFERROR(IF(OR($C$168=FALSE,LEFT($B165,3)<>\"NOX\"),BN56*INDEX('Damage costs'!$P$16:$P$43,MATCH($B165,'Damage costs'!$C$16:$C$43,0))/1000,BN56*INDEX('Damage costs'!$T$16:$T$43,MATCH($B165,'Damage costs'!$C$16:$C$43,0))/1000),\"\")","v":""},{"$f":"IFERROR(IF(OR($C$168=FALSE,LEFT($B165,3)<>\"NOX\"),BO56*INDEX('Damage costs'!$P$16:$P$43,MATCH($B165,'Damage costs'!$C$16:$C$43,0))/1000,BO56*INDEX('Damage costs'!$T$16:$T$43,MATCH($B165,'Damage costs'!$C$16:$C$43,0))/1000),\"\")","v":""},{"$f":"IFERROR(IF(OR($C$168=FALSE,LEFT($B165,3)<>\"NOX\"),BP56*INDEX('Damage costs'!$P$16:$P$43,MATCH($B165,'Damage costs'!$C$16:$C$43,0))/1000,BP56*INDEX('Damage costs'!$T$16:$T$43,MATCH($B165,'Damage costs'!$C$16:$C$43,0))/1000),\"\")","v":""},{"$f":"IFERROR(IF(OR($C$168=FALSE,LEFT($B165,3)<>\"NOX\"),BQ56*INDEX('Damage costs'!$P$16:$P$43,MATCH($B165,'Damage costs'!$C$16:$C$43,0))/1000,BQ56*INDEX('Damage costs'!$T$16:$T$43,MATCH($B165,'Damage costs'!$C$16:$C$43,0))/1000),\"\")","v":""},{"$f":"IFERROR(IF(OR($C$168=FALSE,LEFT($B165,3)<>\"NOX\"),BR56*INDEX('Damage costs'!$P$16:$P$43,MATCH($B165,'Damage costs'!$C$16:$C$43,0))/1000,BR56*INDEX('Damage costs'!$T$16:$T$43,MATCH($B165,'Damage costs'!$C$16:$C$43,0))/1000),\"\")","v":""},{"$f":"IFERROR(IF(OR($C$168=FALSE,LEFT($B165,3)<>\"NOX\"),BS56*INDEX('Damage costs'!$P$16:$P$43,MATCH($B165,'Damage costs'!$C$16:$C$43,0))/1000,BS56*INDEX('Damage costs'!$T$16:$T$43,MATCH($B165,'Damage costs'!$C$16:$C$43,0))/1000),\"\")","v":""},{"$f":"IFERROR(IF(OR($C$168=FALSE,LEFT($B165,3)<>\"NOX\"),BT56*INDEX('Damage costs'!$P$16:$P$43,MATCH($B165,'Damage costs'!$C$16:$C$43,0))/1000,BT56*INDEX('Damage costs'!$T$16:$T$43,MATCH($B165,'Damage costs'!$C$16:$C$43,0))/1000),\"\")","v":""},{"$f":"IFERROR(IF(OR($C$168=FALSE,LEFT($B165,3)<>\"NOX\"),BU56*INDEX('Damage costs'!$P$16:$P$43,MATCH($B165,'Damage costs'!$C$16:$C$43,0))/1000,BU56*INDEX('Damage costs'!$T$16:$T$43,MATCH($B165,'Damage costs'!$C$16:$C$43,0))/1000),\"\")","v":""},{"$f":"IFERROR(IF(OR($C$168=FALSE,LEFT($B165,3)<>\"NOX\"),BV56*INDEX('Damage costs'!$P$16:$P$43,MATCH($B165,'Damage costs'!$C$16:$C$43,0))/1000,BV56*INDEX('Damage costs'!$T$16:$T$43,MATCH($B165,'Damage costs'!$C$16:$C$43,0))/1000),\"\")","v":""},{"$f":"IFERROR(IF(OR($C$168=FALSE,LEFT($B165,3)<>\"NOX\"),BW56*INDEX('Damage costs'!$P$16:$P$43,MATCH($B165,'Damage costs'!$C$16:$C$43,0))/1000,BW56*INDEX('Damage costs'!$T$16:$T$43,MATCH($B165,'Damage costs'!$C$16:$C$43,0))/1000),\"\")","v":""},{"$f":"IFERROR(IF(OR($C$168=FALSE,LEFT($B165,3)<>\"NOX\"),BX56*INDEX('Damage costs'!$P$16:$P$43,MATCH($B165,'Damage costs'!$C$16:$C$43,0))/1000,BX56*INDEX('Damage costs'!$T$16:$T$43,MATCH($B165,'Damage costs'!$C$16:$C$43,0))/1000),\"\")","v":""},{"$f":"IFERROR(IF(OR($C$168=FALSE,LEFT($B165,3)<>\"NOX\"),BY56*INDEX('Damage costs'!$P$16:$P$43,MATCH($B165,'Damage costs'!$C$16:$C$43,0))/1000,BY56*INDEX('Damage costs'!$T$16:$T$43,MATCH($B165,'Damage costs'!$C$16:$C$43,0))/1000),\"\")","v":""},{"$f":"IFERROR(IF(OR($C$168=FALSE,LEFT($B165,3)<>\"NOX\"),BZ56*INDEX('Damage costs'!$P$16:$P$43,MATCH($B165,'Damage costs'!$C$16:$C$43,0))/1000,BZ56*INDEX('Damage costs'!$T$16:$T$43,MATCH($B165,'Damage costs'!$C$16:$C$43,0))/1000),\"\")","v":""},{"$f":"IFERROR(IF(OR($C$168=FALSE,LEFT($B165,3)<>\"NOX\"),CA56*INDEX('Damage costs'!$P$16:$P$43,MATCH($B165,'Damage costs'!$C$16:$C$43,0))/1000,CA56*INDEX('Damage costs'!$T$16:$T$43,MATCH($B165,'Damage costs'!$C$16:$C$43,0))/1000),\"\")","v":""},{"$f":"IFERROR(IF(OR($C$168=FALSE,LEFT($B165,3)<>\"NOX\"),CB56*INDEX('Damage costs'!$P$16:$P$43,MATCH($B165,'Damage costs'!$C$16:$C$43,0))/1000,CB56*INDEX('Damage costs'!$T$16:$T$43,MATCH($B165,'Damage costs'!$C$16:$C$43,0))/1000),\"\")","v":""},{"$f":"IFERROR(IF(OR($C$168=FALSE,LEFT($B165,3)<>\"NOX\"),CC56*INDEX('Damage costs'!$P$16:$P$43,MATCH($B165,'Damage costs'!$C$16:$C$43,0))/1000,CC56*INDEX('Damage costs'!$T$16:$T$43,MATCH($B165,'Damage costs'!$C$16:$C$43,0))/1000),\"\")","v":""},{"$f":"IFERROR(IF(OR($C$168=FALSE,LEFT($B165,3)<>\"NOX\"),CD56*INDEX('Damage costs'!$P$16:$P$43,MATCH($B165,'Damage costs'!$C$16:$C$43,0))/1000,CD56*INDEX('Damage costs'!$T$16:$T$43,MATCH($B165,'Damage costs'!$C$16:$C$43,0))/1000),\"\")","v":""},{"$f":"IFERROR(IF(OR($C$168=FALSE,LEFT($B165,3)<>\"NOX\"),CE56*INDEX('Damage costs'!$P$16:$P$43,MATCH($B165,'Damage costs'!$C$16:$C$43,0))/1000,CE56*INDEX('Damage costs'!$T$16:$T$43,MATCH($B165,'Damage costs'!$C$16:$C$43,0))/1000),\"\")","v":""},{"$f":"IFERROR(IF(OR($C$168=FALSE,LEFT($B165,3)<>\"NOX\"),CF56*INDEX('Damage costs'!$P$16:$P$43,MATCH($B165,'Damage costs'!$C$16:$C$43,0))/1000,CF56*INDEX('Damage costs'!$T$16:$T$43,MATCH($B165,'Damage costs'!$C$16:$C$43,0))/1000),\"\")","v":""},{"$f":"IFERROR(IF(OR($C$168=FALSE,LEFT($B165,3)<>\"NOX\"),CG56*INDEX('Damage costs'!$P$16:$P$43,MATCH($B165,'Damage costs'!$C$16:$C$43,0))/1000,CG56*INDEX('Damage costs'!$T$16:$T$43,MATCH($B165,'Damage costs'!$C$16:$C$43,0))/1000),\"\")","v":""},{"$f":"IFERROR(IF(OR($C$168=FALSE,LEFT($B165,3)<>\"NOX\"),CH56*INDEX('Damage costs'!$P$16:$P$43,MATCH($B165,'Damage costs'!$C$16:$C$43,0))/1000,CH56*INDEX('Damage costs'!$T$16:$T$43,MATCH($B165,'Damage costs'!$C$16:$C$43,0))/1000),\"\")","v":""},{"$f":"IFERROR(IF(OR($C$168=FALSE,LEFT($B165,3)<>\"NOX\"),CI56*INDEX('Damage costs'!$P$16:$P$43,MATCH($B165,'Damage costs'!$C$16:$C$43,0))/1000,CI56*INDEX('Damage costs'!$T$16:$T$43,MATCH($B165,'Damage costs'!$C$16:$C$43,0))/1000),\"\")","v":""},{"$f":"IFERROR(IF(OR($C$168=FALSE,LEFT($B165,3)<>\"NOX\"),CJ56*INDEX('Damage costs'!$P$16:$P$43,MATCH($B165,'Damage costs'!$C$16:$C$43,0))/1000,CJ56*INDEX('Damage costs'!$T$16:$T$43,MATCH($B165,'Damage costs'!$C$16:$C$43,0))/1000),\"\")","v":""},{"$f":"IFERROR(IF(OR($C$168=FALSE,LEFT($B165,3)<>\"NOX\"),CK56*INDEX('Damage costs'!$P$16:$P$43,MATCH($B165,'Damage costs'!$C$16:$C$43,0))/1000,CK56*INDEX('Damage costs'!$T$16:$T$43,MATCH($B165,'Damage costs'!$C$16:$C$43,0))/1000),\"\")","v":""},{"$f":"IFERROR(IF(OR($C$168=FALSE,LEFT($B165,3)<>\"NOX\"),CL56*INDEX('Damage costs'!$P$16:$P$43,MATCH($B165,'Damage costs'!$C$16:$C$43,0))/1000,CL56*INDEX('Damage costs'!$T$16:$T$43,MATCH($B165,'Damage costs'!$C$16:$C$43,0))/1000),\"\")","v":""},{"$f":"IFERROR(IF(OR($C$168=FALSE,LEFT($B165,3)<>\"NOX\"),CM56*INDEX('Damage costs'!$P$16:$P$43,MATCH($B165,'Damage costs'!$C$16:$C$43,0))/1000,CM56*INDEX('Damage costs'!$T$16:$T$43,MATCH($B165,'Damage costs'!$C$16:$C$43,0))/1000),\"\")","v":""},{"$f":"IFERROR(IF(OR($C$168=FALSE,LEFT($B165,3)<>\"NOX\"),CN56*INDEX('Damage costs'!$P$16:$P$43,MATCH($B165,'Damage costs'!$C$16:$C$43,0))/1000,CN56*INDEX('Damage costs'!$T$16:$T$43,MATCH($B165,'Damage costs'!$C$16:$C$43,0))/1000),\"\")","v":""},{"$f":"IFERROR(IF(OR($C$168=FALSE,LEFT($B165,3)<>\"NOX\"),CO56*INDEX('Damage costs'!$P$16:$P$43,MATCH($B165,'Damage costs'!$C$16:$C$43,0))/1000,CO56*INDEX('Damage costs'!$T$16:$T$43,MATCH($B165,'Damage costs'!$C$16:$C$43,0))/1000),\"\")","v":""},{"$f":"IFERROR(IF(OR($C$168=FALSE,LEFT($B165,3)<>\"NOX\"),CP56*INDEX('Damage costs'!$P$16:$P$43,MATCH($B165,'Damage costs'!$C$16:$C$43,0))/1000,CP56*INDEX('Damage costs'!$T$16:$T$43,MATCH($B165,'Damage costs'!$C$16:$C$43,0))/1000),\"\")","v":""},{"$f":"IFERROR(IF(OR($C$168=FALSE,LEFT($B165,3)<>\"NOX\"),CQ56*INDEX('Damage costs'!$P$16:$P$43,MATCH($B165,'Damage costs'!$C$16:$C$43,0))/1000,CQ56*INDEX('Damage costs'!$T$16:$T$43,MATCH($B165,'Damage costs'!$C$16:$C$43,0))/1000),\"\")","v":""},{"$f":"IFERROR(IF(OR($C$168=FALSE,LEFT($B165,3)<>\"NOX\"),CR56*INDEX('Damage costs'!$P$16:$P$43,MATCH($B165,'Damage costs'!$C$16:$C$43,0))/1000,CR56*INDEX('Damage costs'!$T$16:$T$43,MATCH($B165,'Damage costs'!$C$16:$C$43,0))/1000),\"\")","v":""},{"$f":"IFERROR(IF(OR($C$168=FALSE,LEFT($B165,3)<>\"NOX\"),CS56*INDEX('Damage costs'!$P$16:$P$43,MATCH($B165,'Damage costs'!$C$16:$C$43,0))/1000,CS56*INDEX('Damage costs'!$T$16:$T$43,MATCH($B165,'Damage costs'!$C$16:$C$43,0))/1000),\"\")","v":""},{"$f":"IFERROR(IF(OR($C$168=FALSE,LEFT($B165,3)<>\"NOX\"),CT56*INDEX('Damage costs'!$P$16:$P$43,MATCH($B165,'Damage costs'!$C$16:$C$43,0))/1000,CT56*INDEX('Damage costs'!$T$16:$T$43,MATCH($B165,'Damage costs'!$C$16:$C$43,0))/1000),\"\")","v":""},{"$f":"IFERROR(IF(OR($C$168=FALSE,LEFT($B165,3)<>\"NOX\"),CU56*INDEX('Damage costs'!$P$16:$P$43,MATCH($B165,'Damage costs'!$C$16:$C$43,0))/1000,CU56*INDEX('Damage costs'!$T$16:$T$43,MATCH($B165,'Damage costs'!$C$16:$C$43,0))/1000),\"\")","v":""},{"$f":"IFERROR(IF(OR($C$168=FALSE,LEFT($B165,3)<>\"NOX\"),CV56*INDEX('Damage costs'!$P$16:$P$43,MATCH($B165,'Damage costs'!$C$16:$C$43,0))/1000,CV56*INDEX('Damage costs'!$T$16:$T$43,MATCH($B165,'Damage costs'!$C$16:$C$43,0))/1000),\"\")","v":""},{"$f":"IFERROR(IF(OR($C$168=FALSE,LEFT($B165,3)<>\"NOX\"),CW56*INDEX('Damage costs'!$P$16:$P$43,MATCH($B165,'Damage costs'!$C$16:$C$43,0))/1000,CW56*INDEX('Damage costs'!$T$16:$T$43,MATCH($B165,'Damage costs'!$C$16:$C$43,0))/1000),\"\")","v":""},{"$f":"IFERROR(IF(OR($C$168=FALSE,LEFT($B165,3)<>\"NOX\"),CX56*INDEX('Damage costs'!$P$16:$P$43,MATCH($B165,'Damage costs'!$C$16:$C$43,0))/1000,CX56*INDEX('Damage costs'!$T$16:$T$43,MATCH($B165,'Damage costs'!$C$16:$C$43,0))/1000),\"\")","v":""},{"$f":"IFERROR(IF(OR($C$168=FALSE,LEFT($B165,3)<>\"NOX\"),CY56*INDEX('Damage costs'!$P$16:$P$43,MATCH($B165,'Damage costs'!$C$16:$C$43,0))/1000,CY56*INDEX('Damage costs'!$T$16:$T$43,MATCH($B165,'Damage costs'!$C$16:$C$43,0))/1000),\"\")","v":""}]
[null,0,"£000's",{"$f":"IFERROR(IF(OR($C$168=FALSE,LEFT($B166,3)<>\"NOX\"),D57*INDEX('Damage costs'!$P$16:$P$43,MATCH($B166,'Damage costs'!$C$16:$C$43,0))/1000,D57*INDEX('Damage costs'!$T$16:$T$43,MATCH($B166,'Damage costs'!$C$16:$C$43,0))/1000),\"\")","v":""},{"$f":"IFERROR(IF(OR($C$168=FALSE,LEFT($B166,3)<>\"NOX\"),E57*INDEX('Damage costs'!$P$16:$P$43,MATCH($B166,'Damage costs'!$C$16:$C$43,0))/1000,E57*INDEX('Damage costs'!$T$16:$T$43,MATCH($B166,'Damage costs'!$C$16:$C$43,0))/1000),\"\")","v":""},{"$f":"IFERROR(IF(OR($C$168=FALSE,LEFT($B166,3)<>\"NOX\"),F57*INDEX('Damage costs'!$P$16:$P$43,MATCH($B166,'Damage costs'!$C$16:$C$43,0))/1000,F57*INDEX('Damage costs'!$T$16:$T$43,MATCH($B166,'Damage costs'!$C$16:$C$43,0))/1000),\"\")","v":""},{"$f":"IFERROR(IF(OR($C$168=FALSE,LEFT($B166,3)<>\"NOX\"),G57*INDEX('Damage costs'!$P$16:$P$43,MATCH($B166,'Damage costs'!$C$16:$C$43,0))/1000,G57*INDEX('Damage costs'!$T$16:$T$43,MATCH($B166,'Damage costs'!$C$16:$C$43,0))/1000),\"\")","v":""},{"$f":"IFERROR(IF(OR($C$168=FALSE,LEFT($B166,3)<>\"NOX\"),H57*INDEX('Damage costs'!$P$16:$P$43,MATCH($B166,'Damage costs'!$C$16:$C$43,0))/1000,H57*INDEX('Damage costs'!$T$16:$T$43,MATCH($B166,'Damage costs'!$C$16:$C$43,0))/1000),\"\")","v":""},{"$f":"IFERROR(IF(OR($C$168=FALSE,LEFT($B166,3)<>\"NOX\"),I57*INDEX('Damage costs'!$P$16:$P$43,MATCH($B166,'Damage costs'!$C$16:$C$43,0))/1000,I57*INDEX('Damage costs'!$T$16:$T$43,MATCH($B166,'Damage costs'!$C$16:$C$43,0))/1000),\"\")","v":""},{"$f":"IFERROR(IF(OR($C$168=FALSE,LEFT($B166,3)<>\"NOX\"),J57*INDEX('Damage costs'!$P$16:$P$43,MATCH($B166,'Damage costs'!$C$16:$C$43,0))/1000,J57*INDEX('Damage costs'!$T$16:$T$43,MATCH($B166,'Damage costs'!$C$16:$C$43,0))/1000),\"\")","v":""},{"$f":"IFERROR(IF(OR($C$168=FALSE,LEFT($B166,3)<>\"NOX\"),K57*INDEX('Damage costs'!$P$16:$P$43,MATCH($B166,'Damage costs'!$C$16:$C$43,0))/1000,K57*INDEX('Damage costs'!$T$16:$T$43,MATCH($B166,'Damage costs'!$C$16:$C$43,0))/1000),\"\")","v":""},{"$f":"IFERROR(IF(OR($C$168=FALSE,LEFT($B166,3)<>\"NOX\"),L57*INDEX('Damage costs'!$P$16:$P$43,MATCH($B166,'Damage costs'!$C$16:$C$43,0))/1000,L57*INDEX('Damage costs'!$T$16:$T$43,MATCH($B166,'Damage costs'!$C$16:$C$43,0))/1000),\"\")","v":""},{"$f":"IFERROR(IF(OR($C$168=FALSE,LEFT($B166,3)<>\"NOX\"),M57*INDEX('Damage costs'!$P$16:$P$43,MATCH($B166,'Damage costs'!$C$16:$C$43,0))/1000,M57*INDEX('Damage costs'!$T$16:$T$43,MATCH($B166,'Damage costs'!$C$16:$C$43,0))/1000),\"\")","v":""},{"$f":"IFERROR(IF(OR($C$168=FALSE,LEFT($B166,3)<>\"NOX\"),N57*INDEX('Damage costs'!$P$16:$P$43,MATCH($B166,'Damage costs'!$C$16:$C$43,0))/1000,N57*INDEX('Damage costs'!$T$16:$T$43,MATCH($B166,'Damage costs'!$C$16:$C$43,0))/1000),\"\")","v":""},{"$f":"IFERROR(IF(OR($C$168=FALSE,LEFT($B166,3)<>\"NOX\"),O57*INDEX('Damage costs'!$P$16:$P$43,MATCH($B166,'Damage costs'!$C$16:$C$43,0))/1000,O57*INDEX('Damage costs'!$T$16:$T$43,MATCH($B166,'Damage costs'!$C$16:$C$43,0))/1000),\"\")","v":""},{"$f":"IFERROR(IF(OR($C$168=FALSE,LEFT($B166,3)<>\"NOX\"),P57*INDEX('Damage costs'!$P$16:$P$43,MATCH($B166,'Damage costs'!$C$16:$C$43,0))/1000,P57*INDEX('Damage costs'!$T$16:$T$43,MATCH($B166,'Damage costs'!$C$16:$C$43,0))/1000),\"\")","v":""},{"$f":"IFERROR(IF(OR($C$168=FALSE,LEFT($B166,3)<>\"NOX\"),Q57*INDEX('Damage costs'!$P$16:$P$43,MATCH($B166,'Damage costs'!$C$16:$C$43,0))/1000,Q57*INDEX('Damage costs'!$T$16:$T$43,MATCH($B166,'Damage costs'!$C$16:$C$43,0))/1000),\"\")","v":""},{"$f":"IFERROR(IF(OR($C$168=FALSE,LEFT($B166,3)<>\"NOX\"),R57*INDEX('Damage costs'!$P$16:$P$43,MATCH($B166,'Damage costs'!$C$16:$C$43,0))/1000,R57*INDEX('Damage costs'!$T$16:$T$43,MATCH($B166,'Damage costs'!$C$16:$C$43,0))/1000),\"\")","v":""},{"$f":"IFERROR(IF(OR($C$168=FALSE,LEFT($B166,3)<>\"NOX\"),S57*INDEX('Damage costs'!$P$16:$P$43,MATCH($B166,'Damage costs'!$C$16:$C$43,0))/1000,S57*INDEX('Damage costs'!$T$16:$T$43,MATCH($B166,'Damage costs'!$C$16:$C$43,0))/1000),\"\")","v":""},{"$f":"IFERROR(IF(OR($C$168=FALSE,LEFT($B166,3)<>\"NOX\"),T57*INDEX('Damage costs'!$P$16:$P$43,MATCH($B166,'Damage costs'!$C$16:$C$43,0))/1000,T57*INDEX('Damage costs'!$T$16:$T$43,MATCH($B166,'Damage costs'!$C$16:$C$43,0))/1000),\"\")","v":""},{"$f":"IFERROR(IF(OR($C$168=FALSE,LEFT($B166,3)<>\"NOX\"),U57*INDEX('Damage costs'!$P$16:$P$43,MATCH($B166,'Damage costs'!$C$16:$C$43,0))/1000,U57*INDEX('Damage costs'!$T$16:$T$43,MATCH($B166,'Damage costs'!$C$16:$C$43,0))/1000),\"\")","v":""},{"$f":"IFERROR(IF(OR($C$168=FALSE,LEFT($B166,3)<>\"NOX\"),V57*INDEX('Damage costs'!$P$16:$P$43,MATCH($B166,'Damage costs'!$C$16:$C$43,0))/1000,V57*INDEX('Damage costs'!$T$16:$T$43,MATCH($B166,'Damage costs'!$C$16:$C$43,0))/1000),\"\")","v":""},{"$f":"IFERROR(IF(OR($C$168=FALSE,LEFT($B166,3)<>\"NOX\"),W57*INDEX('Damage costs'!$P$16:$P$43,MATCH($B166,'Damage costs'!$C$16:$C$43,0))/1000,W57*INDEX('Damage costs'!$T$16:$T$43,MATCH($B166,'Damage costs'!$C$16:$C$43,0))/1000),\"\")","v":""},{"$f":"IFERROR(IF(OR($C$168=FALSE,LEFT($B166,3)<>\"NOX\"),X57*INDEX('Damage costs'!$P$16:$P$43,MATCH($B166,'Damage costs'!$C$16:$C$43,0))/1000,X57*INDEX('Damage costs'!$T$16:$T$43,MATCH($B166,'Damage costs'!$C$16:$C$43,0))/1000),\"\")","v":""},{"$f":"IFERROR(IF(OR($C$168=FALSE,LEFT($B166,3)<>\"NOX\"),Y57*INDEX('Damage costs'!$P$16:$P$43,MATCH($B166,'Damage costs'!$C$16:$C$43,0))/1000,Y57*INDEX('Damage costs'!$T$16:$T$43,MATCH($B166,'Damage costs'!$C$16:$C$43,0))/1000),\"\")","v":""},{"$f":"IFERROR(IF(OR($C$168=FALSE,LEFT($B166,3)<>\"NOX\"),Z57*INDEX('Damage costs'!$P$16:$P$43,MATCH($B166,'Damage costs'!$C$16:$C$43,0))/1000,Z57*INDEX('Damage costs'!$T$16:$T$43,MATCH($B166,'Damage costs'!$C$16:$C$43,0))/1000),\"\")","v":""},{"$f":"IFERROR(IF(OR($C$168=FALSE,LEFT($B166,3)<>\"NOX\"),AA57*INDEX('Damage costs'!$P$16:$P$43,MATCH($B166,'Damage costs'!$C$16:$C$43,0))/1000,AA57*INDEX('Damage costs'!$T$16:$T$43,MATCH($B166,'Damage costs'!$C$16:$C$43,0))/1000),\"\")","v":""},{"$f":"IFERROR(IF(OR($C$168=FALSE,LEFT($B166,3)<>\"NOX\"),AB57*INDEX('Damage costs'!$P$16:$P$43,MATCH($B166,'Damage costs'!$C$16:$C$43,0))/1000,AB57*INDEX('Damage costs'!$T$16:$T$43,MATCH($B166,'Damage costs'!$C$16:$C$43,0))/1000),\"\")","v":""},{"$f":"IFERROR(IF(OR($C$168=FALSE,LEFT($B166,3)<>\"NOX\"),AC57*INDEX('Damage costs'!$P$16:$P$43,MATCH($B166,'Damage costs'!$C$16:$C$43,0))/1000,AC57*INDEX('Damage costs'!$T$16:$T$43,MATCH($B166,'Damage costs'!$C$16:$C$43,0))/1000),\"\")","v":""},{"$f":"IFERROR(IF(OR($C$168=FALSE,LEFT($B166,3)<>\"NOX\"),AD57*INDEX('Damage costs'!$P$16:$P$43,MATCH($B166,'Damage costs'!$C$16:$C$43,0))/1000,AD57*INDEX('Damage costs'!$T$16:$T$43,MATCH($B166,'Damage costs'!$C$16:$C$43,0))/1000),\"\")","v":""},{"$f":"IFERROR(IF(OR($C$168=FALSE,LEFT($B166,3)<>\"NOX\"),AE57*INDEX('Damage costs'!$P$16:$P$43,MATCH($B166,'Damage costs'!$C$16:$C$43,0))/1000,AE57*INDEX('Damage costs'!$T$16:$T$43,MATCH($B166,'Damage costs'!$C$16:$C$43,0))/1000),\"\")","v":""},{"$f":"IFERROR(IF(OR($C$168=FALSE,LEFT($B166,3)<>\"NOX\"),AF57*INDEX('Damage costs'!$P$16:$P$43,MATCH($B166,'Damage costs'!$C$16:$C$43,0))/1000,AF57*INDEX('Damage costs'!$T$16:$T$43,MATCH($B166,'Damage costs'!$C$16:$C$43,0))/1000),\"\")","v":""},{"$f":"IFERROR(IF(OR($C$168=FALSE,LEFT($B166,3)<>\"NOX\"),AG57*INDEX('Damage costs'!$P$16:$P$43,MATCH($B166,'Damage costs'!$C$16:$C$43,0))/1000,AG57*INDEX('Damage costs'!$T$16:$T$43,MATCH($B166,'Damage costs'!$C$16:$C$43,0))/1000),\"\")","v":""},{"$f":"IFERROR(IF(OR($C$168=FALSE,LEFT($B166,3)<>\"NOX\"),AH57*INDEX('Damage costs'!$P$16:$P$43,MATCH($B166,'Damage costs'!$C$16:$C$43,0))/1000,AH57*INDEX('Damage costs'!$T$16:$T$43,MATCH($B166,'Damage costs'!$C$16:$C$43,0))/1000),\"\")","v":""},{"$f":"IFERROR(IF(OR($C$168=FALSE,LEFT($B166,3)<>\"NOX\"),AI57*INDEX('Damage costs'!$P$16:$P$43,MATCH($B166,'Damage costs'!$C$16:$C$43,0))/1000,AI57*INDEX('Damage costs'!$T$16:$T$43,MATCH($B166,'Damage costs'!$C$16:$C$43,0))/1000),\"\")","v":""},{"$f":"IFERROR(IF(OR($C$168=FALSE,LEFT($B166,3)<>\"NOX\"),AJ57*INDEX('Damage costs'!$P$16:$P$43,MATCH($B166,'Damage costs'!$C$16:$C$43,0))/1000,AJ57*INDEX('Damage costs'!$T$16:$T$43,MATCH($B166,'Damage costs'!$C$16:$C$43,0))/1000),\"\")","v":""},{"$f":"IFERROR(IF(OR($C$168=FALSE,LEFT($B166,3)<>\"NOX\"),AK57*INDEX('Damage costs'!$P$16:$P$43,MATCH($B166,'Damage costs'!$C$16:$C$43,0))/1000,AK57*INDEX('Damage costs'!$T$16:$T$43,MATCH($B166,'Damage costs'!$C$16:$C$43,0))/1000),\"\")","v":""},{"$f":"IFERROR(IF(OR($C$168=FALSE,LEFT($B166,3)<>\"NOX\"),AL57*INDEX('Damage costs'!$P$16:$P$43,MATCH($B166,'Damage costs'!$C$16:$C$43,0))/1000,AL57*INDEX('Damage costs'!$T$16:$T$43,MATCH($B166,'Damage costs'!$C$16:$C$43,0))/1000),\"\")","v":""},{"$f":"IFERROR(IF(OR($C$168=FALSE,LEFT($B166,3)<>\"NOX\"),AM57*INDEX('Damage costs'!$P$16:$P$43,MATCH($B166,'Damage costs'!$C$16:$C$43,0))/1000,AM57*INDEX('Damage costs'!$T$16:$T$43,MATCH($B166,'Damage costs'!$C$16:$C$43,0))/1000),\"\")","v":""},{"$f":"IFERROR(IF(OR($C$168=FALSE,LEFT($B166,3)<>\"NOX\"),AN57*INDEX('Damage costs'!$P$16:$P$43,MATCH($B166,'Damage costs'!$C$16:$C$43,0))/1000,AN57*INDEX('Damage costs'!$T$16:$T$43,MATCH($B166,'Damage costs'!$C$16:$C$43,0))/1000),\"\")","v":""},{"$f":"IFERROR(IF(OR($C$168=FALSE,LEFT($B166,3)<>\"NOX\"),AO57*INDEX('Damage costs'!$P$16:$P$43,MATCH($B166,'Damage costs'!$C$16:$C$43,0))/1000,AO57*INDEX('Damage costs'!$T$16:$T$43,MATCH($B166,'Damage costs'!$C$16:$C$43,0))/1000),\"\")","v":""},{"$f":"IFERROR(IF(OR($C$168=FALSE,LEFT($B166,3)<>\"NOX\"),AP57*INDEX('Damage costs'!$P$16:$P$43,MATCH($B166,'Damage costs'!$C$16:$C$43,0))/1000,AP57*INDEX('Damage costs'!$T$16:$T$43,MATCH($B166,'Damage costs'!$C$16:$C$43,0))/1000),\"\")","v":""},{"$f":"IFERROR(IF(OR($C$168=FALSE,LEFT($B166,3)<>\"NOX\"),AQ57*INDEX('Damage costs'!$P$16:$P$43,MATCH($B166,'Damage costs'!$C$16:$C$43,0))/1000,AQ57*INDEX('Damage costs'!$T$16:$T$43,MATCH($B166,'Damage costs'!$C$16:$C$43,0))/1000),\"\")","v":""},{"$f":"IFERROR(IF(OR($C$168=FALSE,LEFT($B166,3)<>\"NOX\"),AR57*INDEX('Damage costs'!$P$16:$P$43,MATCH($B166,'Damage costs'!$C$16:$C$43,0))/1000,AR57*INDEX('Damage costs'!$T$16:$T$43,MATCH($B166,'Damage costs'!$C$16:$C$43,0))/1000),\"\")","v":""},{"$f":"IFERROR(IF(OR($C$168=FALSE,LEFT($B166,3)<>\"NOX\"),AS57*INDEX('Damage costs'!$P$16:$P$43,MATCH($B166,'Damage costs'!$C$16:$C$43,0))/1000,AS57*INDEX('Damage costs'!$T$16:$T$43,MATCH($B166,'Damage costs'!$C$16:$C$43,0))/1000),\"\")","v":""},{"$f":"IFERROR(IF(OR($C$168=FALSE,LEFT($B166,3)<>\"NOX\"),AT57*INDEX('Damage costs'!$P$16:$P$43,MATCH($B166,'Damage costs'!$C$16:$C$43,0))/1000,AT57*INDEX('Damage costs'!$T$16:$T$43,MATCH($B166,'Damage costs'!$C$16:$C$43,0))/1000),\"\")","v":""},{"$f":"IFERROR(IF(OR($C$168=FALSE,LEFT($B166,3)<>\"NOX\"),AU57*INDEX('Damage costs'!$P$16:$P$43,MATCH($B166,'Damage costs'!$C$16:$C$43,0))/1000,AU57*INDEX('Damage costs'!$T$16:$T$43,MATCH($B166,'Damage costs'!$C$16:$C$43,0))/1000),\"\")","v":""},{"$f":"IFERROR(IF(OR($C$168=FALSE,LEFT($B166,3)<>\"NOX\"),AV57*INDEX('Damage costs'!$P$16:$P$43,MATCH($B166,'Damage costs'!$C$16:$C$43,0))/1000,AV57*INDEX('Damage costs'!$T$16:$T$43,MATCH($B166,'Damage costs'!$C$16:$C$43,0))/1000),\"\")","v":""},{"$f":"IFERROR(IF(OR($C$168=FALSE,LEFT($B166,3)<>\"NOX\"),AW57*INDEX('Damage costs'!$P$16:$P$43,MATCH($B166,'Damage costs'!$C$16:$C$43,0))/1000,AW57*INDEX('Damage costs'!$T$16:$T$43,MATCH($B166,'Damage costs'!$C$16:$C$43,0))/1000),\"\")","v":""},{"$f":"IFERROR(IF(OR($C$168=FALSE,LEFT($B166,3)<>\"NOX\"),AX57*INDEX('Damage costs'!$P$16:$P$43,MATCH($B166,'Damage costs'!$C$16:$C$43,0))/1000,AX57*INDEX('Damage costs'!$T$16:$T$43,MATCH($B166,'Damage costs'!$C$16:$C$43,0))/1000),\"\")","v":""},{"$f":"IFERROR(IF(OR($C$168=FALSE,LEFT($B166,3)<>\"NOX\"),AY57*INDEX('Damage costs'!$P$16:$P$43,MATCH($B166,'Damage costs'!$C$16:$C$43,0))/1000,AY57*INDEX('Damage costs'!$T$16:$T$43,MATCH($B166,'Damage costs'!$C$16:$C$43,0))/1000),\"\")","v":""},{"$f":"IFERROR(IF(OR($C$168=FALSE,LEFT($B166,3)<>\"NOX\"),AZ57*INDEX('Damage costs'!$P$16:$P$43,MATCH($B166,'Damage costs'!$C$16:$C$43,0))/1000,AZ57*INDEX('Damage costs'!$T$16:$T$43,MATCH($B166,'Damage costs'!$C$16:$C$43,0))/1000),\"\")","v":""},{"$f":"IFERROR(IF(OR($C$168=FALSE,LEFT($B166,3)<>\"NOX\"),BA57*INDEX('Damage costs'!$P$16:$P$43,MATCH($B166,'Damage costs'!$C$16:$C$43,0))/1000,BA57*INDEX('Damage costs'!$T$16:$T$43,MATCH($B166,'Damage costs'!$C$16:$C$43,0))/1000),\"\")","v":""},{"$f":"IFERROR(IF(OR($C$168=FALSE,LEFT($B166,3)<>\"NOX\"),BB57*INDEX('Damage costs'!$P$16:$P$43,MATCH($B166,'Damage costs'!$C$16:$C$43,0))/1000,BB57*INDEX('Damage costs'!$T$16:$T$43,MATCH($B166,'Damage costs'!$C$16:$C$43,0))/1000),\"\")","v":""},{"$f":"IFERROR(IF(OR($C$168=FALSE,LEFT($B166,3)<>\"NOX\"),BC57*INDEX('Damage costs'!$P$16:$P$43,MATCH($B166,'Damage costs'!$C$16:$C$43,0))/1000,BC57*INDEX('Damage costs'!$T$16:$T$43,MATCH($B166,'Damage costs'!$C$16:$C$43,0))/1000),\"\")","v":""},{"$f":"IFERROR(IF(OR($C$168=FALSE,LEFT($B166,3)<>\"NOX\"),BD57*INDEX('Damage costs'!$P$16:$P$43,MATCH($B166,'Damage costs'!$C$16:$C$43,0))/1000,BD57*INDEX('Damage costs'!$T$16:$T$43,MATCH($B166,'Damage costs'!$C$16:$C$43,0))/1000),\"\")","v":""},{"$f":"IFERROR(IF(OR($C$168=FALSE,LEFT($B166,3)<>\"NOX\"),BE57*INDEX('Damage costs'!$P$16:$P$43,MATCH($B166,'Damage costs'!$C$16:$C$43,0))/1000,BE57*INDEX('Damage costs'!$T$16:$T$43,MATCH($B166,'Damage costs'!$C$16:$C$43,0))/1000),\"\")","v":""},{"$f":"IFERROR(IF(OR($C$168=FALSE,LEFT($B166,3)<>\"NOX\"),BF57*INDEX('Damage costs'!$P$16:$P$43,MATCH($B166,'Damage costs'!$C$16:$C$43,0))/1000,BF57*INDEX('Damage costs'!$T$16:$T$43,MATCH($B166,'Damage costs'!$C$16:$C$43,0))/1000),\"\")","v":""},{"$f":"IFERROR(IF(OR($C$168=FALSE,LEFT($B166,3)<>\"NOX\"),BG57*INDEX('Damage costs'!$P$16:$P$43,MATCH($B166,'Damage costs'!$C$16:$C$43,0))/1000,BG57*INDEX('Damage costs'!$T$16:$T$43,MATCH($B166,'Damage costs'!$C$16:$C$43,0))/1000),\"\")","v":""},{"$f":"IFERROR(IF(OR($C$168=FALSE,LEFT($B166,3)<>\"NOX\"),BH57*INDEX('Damage costs'!$P$16:$P$43,MATCH($B166,'Damage costs'!$C$16:$C$43,0))/1000,BH57*INDEX('Damage costs'!$T$16:$T$43,MATCH($B166,'Damage costs'!$C$16:$C$43,0))/1000),\"\")","v":""},{"$f":"IFERROR(IF(OR($C$168=FALSE,LEFT($B166,3)<>\"NOX\"),BI57*INDEX('Damage costs'!$P$16:$P$43,MATCH($B166,'Damage costs'!$C$16:$C$43,0))/1000,BI57*INDEX('Damage costs'!$T$16:$T$43,MATCH($B166,'Damage costs'!$C$16:$C$43,0))/1000),\"\")","v":""},{"$f":"IFERROR(IF(OR($C$168=FALSE,LEFT($B166,3)<>\"NOX\"),BJ57*INDEX('Damage costs'!$P$16:$P$43,MATCH($B166,'Damage costs'!$C$16:$C$43,0))/1000,BJ57*INDEX('Damage costs'!$T$16:$T$43,MATCH($B166,'Damage costs'!$C$16:$C$43,0))/1000),\"\")","v":""},{"$f":"IFERROR(IF(OR($C$168=FALSE,LEFT($B166,3)<>\"NOX\"),BK57*INDEX('Damage costs'!$P$16:$P$43,MATCH($B166,'Damage costs'!$C$16:$C$43,0))/1000,BK57*INDEX('Damage costs'!$T$16:$T$43,MATCH($B166,'Damage costs'!$C$16:$C$43,0))/1000),\"\")","v":""},{"$f":"IFERROR(IF(OR($C$168=FALSE,LEFT($B166,3)<>\"NOX\"),BL57*INDEX('Damage costs'!$P$16:$P$43,MATCH($B166,'Damage costs'!$C$16:$C$43,0))/1000,BL57*INDEX('Damage costs'!$T$16:$T$43,MATCH($B166,'Damage costs'!$C$16:$C$43,0))/1000),\"\")","v":""},{"$f":"IFERROR(IF(OR($C$168=FALSE,LEFT($B166,3)<>\"NOX\"),BM57*INDEX('Damage costs'!$P$16:$P$43,MATCH($B166,'Damage costs'!$C$16:$C$43,0))/1000,BM57*INDEX('Damage costs'!$T$16:$T$43,MATCH($B166,'Damage costs'!$C$16:$C$43,0))/1000),\"\")","v":""},{"$f":"IFERROR(IF(OR($C$168=FALSE,LEFT($B166,3)<>\"NOX\"),BN57*INDEX('Damage costs'!$P$16:$P$43,MATCH($B166,'Damage costs'!$C$16:$C$43,0))/1000,BN57*INDEX('Damage costs'!$T$16:$T$43,MATCH($B166,'Damage costs'!$C$16:$C$43,0))/1000),\"\")","v":""},{"$f":"IFERROR(IF(OR($C$168=FALSE,LEFT($B166,3)<>\"NOX\"),BO57*INDEX('Damage costs'!$P$16:$P$43,MATCH($B166,'Damage costs'!$C$16:$C$43,0))/1000,BO57*INDEX('Damage costs'!$T$16:$T$43,MATCH($B166,'Damage costs'!$C$16:$C$43,0))/1000),\"\")","v":""},{"$f":"IFERROR(IF(OR($C$168=FALSE,LEFT($B166,3)<>\"NOX\"),BP57*INDEX('Damage costs'!$P$16:$P$43,MATCH($B166,'Damage costs'!$C$16:$C$43,0))/1000,BP57*INDEX('Damage costs'!$T$16:$T$43,MATCH($B166,'Damage costs'!$C$16:$C$43,0))/1000),\"\")","v":""},{"$f":"IFERROR(IF(OR($C$168=FALSE,LEFT($B166,3)<>\"NOX\"),BQ57*INDEX('Damage costs'!$P$16:$P$43,MATCH($B166,'Damage costs'!$C$16:$C$43,0))/1000,BQ57*INDEX('Damage costs'!$T$16:$T$43,MATCH($B166,'Damage costs'!$C$16:$C$43,0))/1000),\"\")","v":""},{"$f":"IFERROR(IF(OR($C$168=FALSE,LEFT($B166,3)<>\"NOX\"),BR57*INDEX('Damage costs'!$P$16:$P$43,MATCH($B166,'Damage costs'!$C$16:$C$43,0))/1000,BR57*INDEX('Damage costs'!$T$16:$T$43,MATCH($B166,'Damage costs'!$C$16:$C$43,0))/1000),\"\")","v":""},{"$f":"IFERROR(IF(OR($C$168=FALSE,LEFT($B166,3)<>\"NOX\"),BS57*INDEX('Damage costs'!$P$16:$P$43,MATCH($B166,'Damage costs'!$C$16:$C$43,0))/1000,BS57*INDEX('Damage costs'!$T$16:$T$43,MATCH($B166,'Damage costs'!$C$16:$C$43,0))/1000),\"\")","v":""},{"$f":"IFERROR(IF(OR($C$168=FALSE,LEFT($B166,3)<>\"NOX\"),BT57*INDEX('Damage costs'!$P$16:$P$43,MATCH($B166,'Damage costs'!$C$16:$C$43,0))/1000,BT57*INDEX('Damage costs'!$T$16:$T$43,MATCH($B166,'Damage costs'!$C$16:$C$43,0))/1000),\"\")","v":""},{"$f":"IFERROR(IF(OR($C$168=FALSE,LEFT($B166,3)<>\"NOX\"),BU57*INDEX('Damage costs'!$P$16:$P$43,MATCH($B166,'Damage costs'!$C$16:$C$43,0))/1000,BU57*INDEX('Damage costs'!$T$16:$T$43,MATCH($B166,'Damage costs'!$C$16:$C$43,0))/1000),\"\")","v":""},{"$f":"IFERROR(IF(OR($C$168=FALSE,LEFT($B166,3)<>\"NOX\"),BV57*INDEX('Damage costs'!$P$16:$P$43,MATCH($B166,'Damage costs'!$C$16:$C$43,0))/1000,BV57*INDEX('Damage costs'!$T$16:$T$43,MATCH($B166,'Damage costs'!$C$16:$C$43,0))/1000),\"\")","v":""},{"$f":"IFERROR(IF(OR($C$168=FALSE,LEFT($B166,3)<>\"NOX\"),BW57*INDEX('Damage costs'!$P$16:$P$43,MATCH($B166,'Damage costs'!$C$16:$C$43,0))/1000,BW57*INDEX('Damage costs'!$T$16:$T$43,MATCH($B166,'Damage costs'!$C$16:$C$43,0))/1000),\"\")","v":""},{"$f":"IFERROR(IF(OR($C$168=FALSE,LEFT($B166,3)<>\"NOX\"),BX57*INDEX('Damage costs'!$P$16:$P$43,MATCH($B166,'Damage costs'!$C$16:$C$43,0))/1000,BX57*INDEX('Damage costs'!$T$16:$T$43,MATCH($B166,'Damage costs'!$C$16:$C$43,0))/1000),\"\")","v":""},{"$f":"IFERROR(IF(OR($C$168=FALSE,LEFT($B166,3)<>\"NOX\"),BY57*INDEX('Damage costs'!$P$16:$P$43,MATCH($B166,'Damage costs'!$C$16:$C$43,0))/1000,BY57*INDEX('Damage costs'!$T$16:$T$43,MATCH($B166,'Damage costs'!$C$16:$C$43,0))/1000),\"\")","v":""},{"$f":"IFERROR(IF(OR($C$168=FALSE,LEFT($B166,3)<>\"NOX\"),BZ57*INDEX('Damage costs'!$P$16:$P$43,MATCH($B166,'Damage costs'!$C$16:$C$43,0))/1000,BZ57*INDEX('Damage costs'!$T$16:$T$43,MATCH($B166,'Damage costs'!$C$16:$C$43,0))/1000),\"\")","v":""},{"$f":"IFERROR(IF(OR($C$168=FALSE,LEFT($B166,3)<>\"NOX\"),CA57*INDEX('Damage costs'!$P$16:$P$43,MATCH($B166,'Damage costs'!$C$16:$C$43,0))/1000,CA57*INDEX('Damage costs'!$T$16:$T$43,MATCH($B166,'Damage costs'!$C$16:$C$43,0))/1000),\"\")","v":""},{"$f":"IFERROR(IF(OR($C$168=FALSE,LEFT($B166,3)<>\"NOX\"),CB57*INDEX('Damage costs'!$P$16:$P$43,MATCH($B166,'Damage costs'!$C$16:$C$43,0))/1000,CB57*INDEX('Damage costs'!$T$16:$T$43,MATCH($B166,'Damage costs'!$C$16:$C$43,0))/1000),\"\")","v":""},{"$f":"IFERROR(IF(OR($C$168=FALSE,LEFT($B166,3)<>\"NOX\"),CC57*INDEX('Damage costs'!$P$16:$P$43,MATCH($B166,'Damage costs'!$C$16:$C$43,0))/1000,CC57*INDEX('Damage costs'!$T$16:$T$43,MATCH($B166,'Damage costs'!$C$16:$C$43,0))/1000),\"\")","v":""},{"$f":"IFERROR(IF(OR($C$168=FALSE,LEFT($B166,3)<>\"NOX\"),CD57*INDEX('Damage costs'!$P$16:$P$43,MATCH($B166,'Damage costs'!$C$16:$C$43,0))/1000,CD57*INDEX('Damage costs'!$T$16:$T$43,MATCH($B166,'Damage costs'!$C$16:$C$43,0))/1000),\"\")","v":""},{"$f":"IFERROR(IF(OR($C$168=FALSE,LEFT($B166,3)<>\"NOX\"),CE57*INDEX('Damage costs'!$P$16:$P$43,MATCH($B166,'Damage costs'!$C$16:$C$43,0))/1000,CE57*INDEX('Damage costs'!$T$16:$T$43,MATCH($B166,'Damage costs'!$C$16:$C$43,0))/1000),\"\")","v":""},{"$f":"IFERROR(IF(OR($C$168=FALSE,LEFT($B166,3)<>\"NOX\"),CF57*INDEX('Damage costs'!$P$16:$P$43,MATCH($B166,'Damage costs'!$C$16:$C$43,0))/1000,CF57*INDEX('Damage costs'!$T$16:$T$43,MATCH($B166,'Damage costs'!$C$16:$C$43,0))/1000),\"\")","v":""},{"$f":"IFERROR(IF(OR($C$168=FALSE,LEFT($B166,3)<>\"NOX\"),CG57*INDEX('Damage costs'!$P$16:$P$43,MATCH($B166,'Damage costs'!$C$16:$C$43,0))/1000,CG57*INDEX('Damage costs'!$T$16:$T$43,MATCH($B166,'Damage costs'!$C$16:$C$43,0))/1000),\"\")","v":""},{"$f":"IFERROR(IF(OR($C$168=FALSE,LEFT($B166,3)<>\"NOX\"),CH57*INDEX('Damage costs'!$P$16:$P$43,MATCH($B166,'Damage costs'!$C$16:$C$43,0))/1000,CH57*INDEX('Damage costs'!$T$16:$T$43,MATCH($B166,'Damage costs'!$C$16:$C$43,0))/1000),\"\")","v":""},{"$f":"IFERROR(IF(OR($C$168=FALSE,LEFT($B166,3)<>\"NOX\"),CI57*INDEX('Damage costs'!$P$16:$P$43,MATCH($B166,'Damage costs'!$C$16:$C$43,0))/1000,CI57*INDEX('Damage costs'!$T$16:$T$43,MATCH($B166,'Damage costs'!$C$16:$C$43,0))/1000),\"\")","v":""},{"$f":"IFERROR(IF(OR($C$168=FALSE,LEFT($B166,3)<>\"NOX\"),CJ57*INDEX('Damage costs'!$P$16:$P$43,MATCH($B166,'Damage costs'!$C$16:$C$43,0))/1000,CJ57*INDEX('Damage costs'!$T$16:$T$43,MATCH($B166,'Damage costs'!$C$16:$C$43,0))/1000),\"\")","v":""},{"$f":"IFERROR(IF(OR($C$168=FALSE,LEFT($B166,3)<>\"NOX\"),CK57*INDEX('Damage costs'!$P$16:$P$43,MATCH($B166,'Damage costs'!$C$16:$C$43,0))/1000,CK57*INDEX('Damage costs'!$T$16:$T$43,MATCH($B166,'Damage costs'!$C$16:$C$43,0))/1000),\"\")","v":""},{"$f":"IFERROR(IF(OR($C$168=FALSE,LEFT($B166,3)<>\"NOX\"),CL57*INDEX('Damage costs'!$P$16:$P$43,MATCH($B166,'Damage costs'!$C$16:$C$43,0))/1000,CL57*INDEX('Damage costs'!$T$16:$T$43,MATCH($B166,'Damage costs'!$C$16:$C$43,0))/1000),\"\")","v":""},{"$f":"IFERROR(IF(OR($C$168=FALSE,LEFT($B166,3)<>\"NOX\"),CM57*INDEX('Damage costs'!$P$16:$P$43,MATCH($B166,'Damage costs'!$C$16:$C$43,0))/1000,CM57*INDEX('Damage costs'!$T$16:$T$43,MATCH($B166,'Damage costs'!$C$16:$C$43,0))/1000),\"\")","v":""},{"$f":"IFERROR(IF(OR($C$168=FALSE,LEFT($B166,3)<>\"NOX\"),CN57*INDEX('Damage costs'!$P$16:$P$43,MATCH($B166,'Damage costs'!$C$16:$C$43,0))/1000,CN57*INDEX('Damage costs'!$T$16:$T$43,MATCH($B166,'Damage costs'!$C$16:$C$43,0))/1000),\"\")","v":""},{"$f":"IFERROR(IF(OR($C$168=FALSE,LEFT($B166,3)<>\"NOX\"),CO57*INDEX('Damage costs'!$P$16:$P$43,MATCH($B166,'Damage costs'!$C$16:$C$43,0))/1000,CO57*INDEX('Damage costs'!$T$16:$T$43,MATCH($B166,'Damage costs'!$C$16:$C$43,0))/1000),\"\")","v":""},{"$f":"IFERROR(IF(OR($C$168=FALSE,LEFT($B166,3)<>\"NOX\"),CP57*INDEX('Damage costs'!$P$16:$P$43,MATCH($B166,'Damage costs'!$C$16:$C$43,0))/1000,CP57*INDEX('Damage costs'!$T$16:$T$43,MATCH($B166,'Damage costs'!$C$16:$C$43,0))/1000),\"\")","v":""},{"$f":"IFERROR(IF(OR($C$168=FALSE,LEFT($B166,3)<>\"NOX\"),CQ57*INDEX('Damage costs'!$P$16:$P$43,MATCH($B166,'Damage costs'!$C$16:$C$43,0))/1000,CQ57*INDEX('Damage costs'!$T$16:$T$43,MATCH($B166,'Damage costs'!$C$16:$C$43,0))/1000),\"\")","v":""},{"$f":"IFERROR(IF(OR($C$168=FALSE,LEFT($B166,3)<>\"NOX\"),CR57*INDEX('Damage costs'!$P$16:$P$43,MATCH($B166,'Damage costs'!$C$16:$C$43,0))/1000,CR57*INDEX('Damage costs'!$T$16:$T$43,MATCH($B166,'Damage costs'!$C$16:$C$43,0))/1000),\"\")","v":""},{"$f":"IFERROR(IF(OR($C$168=FALSE,LEFT($B166,3)<>\"NOX\"),CS57*INDEX('Damage costs'!$P$16:$P$43,MATCH($B166,'Damage costs'!$C$16:$C$43,0))/1000,CS57*INDEX('Damage costs'!$T$16:$T$43,MATCH($B166,'Damage costs'!$C$16:$C$43,0))/1000),\"\")","v":""},{"$f":"IFERROR(IF(OR($C$168=FALSE,LEFT($B166,3)<>\"NOX\"),CT57*INDEX('Damage costs'!$P$16:$P$43,MATCH($B166,'Damage costs'!$C$16:$C$43,0))/1000,CT57*INDEX('Damage costs'!$T$16:$T$43,MATCH($B166,'Damage costs'!$C$16:$C$43,0))/1000),\"\")","v":""},{"$f":"IFERROR(IF(OR($C$168=FALSE,LEFT($B166,3)<>\"NOX\"),CU57*INDEX('Damage costs'!$P$16:$P$43,MATCH($B166,'Damage costs'!$C$16:$C$43,0))/1000,CU57*INDEX('Damage costs'!$T$16:$T$43,MATCH($B166,'Damage costs'!$C$16:$C$43,0))/1000),\"\")","v":""},{"$f":"IFERROR(IF(OR($C$168=FALSE,LEFT($B166,3)<>\"NOX\"),CV57*INDEX('Damage costs'!$P$16:$P$43,MATCH($B166,'Damage costs'!$C$16:$C$43,0))/1000,CV57*INDEX('Damage costs'!$T$16:$T$43,MATCH($B166,'Damage costs'!$C$16:$C$43,0))/1000),\"\")","v":""},{"$f":"IFERROR(IF(OR($C$168=FALSE,LEFT($B166,3)<>\"NOX\"),CW57*INDEX('Damage costs'!$P$16:$P$43,MATCH($B166,'Damage costs'!$C$16:$C$43,0))/1000,CW57*INDEX('Damage costs'!$T$16:$T$43,MATCH($B166,'Damage costs'!$C$16:$C$43,0))/1000),\"\")","v":""},{"$f":"IFERROR(IF(OR($C$168=FALSE,LEFT($B166,3)<>\"NOX\"),CX57*INDEX('Damage costs'!$P$16:$P$43,MATCH($B166,'Damage costs'!$C$16:$C$43,0))/1000,CX57*INDEX('Damage costs'!$T$16:$T$43,MATCH($B166,'Damage costs'!$C$16:$C$43,0))/1000),\"\")","v":""},{"$f":"IFERROR(IF(OR($C$168=FALSE,LEFT($B166,3)<>\"NOX\"),CY57*INDEX('Damage costs'!$P$16:$P$43,MATCH($B166,'Damage costs'!$C$16:$C$43,0))/1000,CY57*INDEX('Damage costs'!$T$16:$T$43,MATCH($B166,'Damage costs'!$C$16:$C$43,0))/1000),\"\")","v":""}]
[null,0,"£000's",{"$f":"IFERROR(IF(OR($C$168=FALSE,LEFT($B167,3)<>\"NOX\"),D58*INDEX('Damage costs'!$P$16:$P$43,MATCH($B167,'Damage costs'!$C$16:$C$43,0))/1000,D58*INDEX('Damage costs'!$T$16:$T$43,MATCH($B167,'Damage costs'!$C$16:$C$43,0))/1000),\"\")","v":""},{"$f":"IFERROR(IF(OR($C$168=FALSE,LEFT($B167,3)<>\"NOX\"),E58*INDEX('Damage costs'!$P$16:$P$43,MATCH($B167,'Damage costs'!$C$16:$C$43,0))/1000,E58*INDEX('Damage costs'!$T$16:$T$43,MATCH($B167,'Damage costs'!$C$16:$C$43,0))/1000),\"\")","v":""},{"$f":"IFERROR(IF(OR($C$168=FALSE,LEFT($B167,3)<>\"NOX\"),F58*INDEX('Damage costs'!$P$16:$P$43,MATCH($B167,'Damage costs'!$C$16:$C$43,0))/1000,F58*INDEX('Damage costs'!$T$16:$T$43,MATCH($B167,'Damage costs'!$C$16:$C$43,0))/1000),\"\")","v":""},{"$f":"IFERROR(IF(OR($C$168=FALSE,LEFT($B167,3)<>\"NOX\"),G58*INDEX('Damage costs'!$P$16:$P$43,MATCH($B167,'Damage costs'!$C$16:$C$43,0))/1000,G58*INDEX('Damage costs'!$T$16:$T$43,MATCH($B167,'Damage costs'!$C$16:$C$43,0))/1000),\"\")","v":""},{"$f":"IFERROR(IF(OR($C$168=FALSE,LEFT($B167,3)<>\"NOX\"),H58*INDEX('Damage costs'!$P$16:$P$43,MATCH($B167,'Damage costs'!$C$16:$C$43,0))/1000,H58*INDEX('Damage costs'!$T$16:$T$43,MATCH($B167,'Damage costs'!$C$16:$C$43,0))/1000),\"\")","v":""},{"$f":"IFERROR(IF(OR($C$168=FALSE,LEFT($B167,3)<>\"NOX\"),I58*INDEX('Damage costs'!$P$16:$P$43,MATCH($B167,'Damage costs'!$C$16:$C$43,0))/1000,I58*INDEX('Damage costs'!$T$16:$T$43,MATCH($B167,'Damage costs'!$C$16:$C$43,0))/1000),\"\")","v":""},{"$f":"IFERROR(IF(OR($C$168=FALSE,LEFT($B167,3)<>\"NOX\"),J58*INDEX('Damage costs'!$P$16:$P$43,MATCH($B167,'Damage costs'!$C$16:$C$43,0))/1000,J58*INDEX('Damage costs'!$T$16:$T$43,MATCH($B167,'Damage costs'!$C$16:$C$43,0))/1000),\"\")","v":""},{"$f":"IFERROR(IF(OR($C$168=FALSE,LEFT($B167,3)<>\"NOX\"),K58*INDEX('Damage costs'!$P$16:$P$43,MATCH($B167,'Damage costs'!$C$16:$C$43,0))/1000,K58*INDEX('Damage costs'!$T$16:$T$43,MATCH($B167,'Damage costs'!$C$16:$C$43,0))/1000),\"\")","v":""},{"$f":"IFERROR(IF(OR($C$168=FALSE,LEFT($B167,3)<>\"NOX\"),L58*INDEX('Damage costs'!$P$16:$P$43,MATCH($B167,'Damage costs'!$C$16:$C$43,0))/1000,L58*INDEX('Damage costs'!$T$16:$T$43,MATCH($B167,'Damage costs'!$C$16:$C$43,0))/1000),\"\")","v":""},{"$f":"IFERROR(IF(OR($C$168=FALSE,LEFT($B167,3)<>\"NOX\"),M58*INDEX('Damage costs'!$P$16:$P$43,MATCH($B167,'Damage costs'!$C$16:$C$43,0))/1000,M58*INDEX('Damage costs'!$T$16:$T$43,MATCH($B167,'Damage costs'!$C$16:$C$43,0))/1000),\"\")","v":""},{"$f":"IFERROR(IF(OR($C$168=FALSE,LEFT($B167,3)<>\"NOX\"),N58*INDEX('Damage costs'!$P$16:$P$43,MATCH($B167,'Damage costs'!$C$16:$C$43,0))/1000,N58*INDEX('Damage costs'!$T$16:$T$43,MATCH($B167,'Damage costs'!$C$16:$C$43,0))/1000),\"\")","v":""},{"$f":"IFERROR(IF(OR($C$168=FALSE,LEFT($B167,3)<>\"NOX\"),O58*INDEX('Damage costs'!$P$16:$P$43,MATCH($B167,'Damage costs'!$C$16:$C$43,0))/1000,O58*INDEX('Damage costs'!$T$16:$T$43,MATCH($B167,'Damage costs'!$C$16:$C$43,0))/1000),\"\")","v":""},{"$f":"IFERROR(IF(OR($C$168=FALSE,LEFT($B167,3)<>\"NOX\"),P58*INDEX('Damage costs'!$P$16:$P$43,MATCH($B167,'Damage costs'!$C$16:$C$43,0))/1000,P58*INDEX('Damage costs'!$T$16:$T$43,MATCH($B167,'Damage costs'!$C$16:$C$43,0))/1000),\"\")","v":""},{"$f":"IFERROR(IF(OR($C$168=FALSE,LEFT($B167,3)<>\"NOX\"),Q58*INDEX('Damage costs'!$P$16:$P$43,MATCH($B167,'Damage costs'!$C$16:$C$43,0))/1000,Q58*INDEX('Damage costs'!$T$16:$T$43,MATCH($B167,'Damage costs'!$C$16:$C$43,0))/1000),\"\")","v":""},{"$f":"IFERROR(IF(OR($C$168=FALSE,LEFT($B167,3)<>\"NOX\"),R58*INDEX('Damage costs'!$P$16:$P$43,MATCH($B167,'Damage costs'!$C$16:$C$43,0))/1000,R58*INDEX('Damage costs'!$T$16:$T$43,MATCH($B167,'Damage costs'!$C$16:$C$43,0))/1000),\"\")","v":""},{"$f":"IFERROR(IF(OR($C$168=FALSE,LEFT($B167,3)<>\"NOX\"),S58*INDEX('Damage costs'!$P$16:$P$43,MATCH($B167,'Damage costs'!$C$16:$C$43,0))/1000,S58*INDEX('Damage costs'!$T$16:$T$43,MATCH($B167,'Damage costs'!$C$16:$C$43,0))/1000),\"\")","v":""},{"$f":"IFERROR(IF(OR($C$168=FALSE,LEFT($B167,3)<>\"NOX\"),T58*INDEX('Damage costs'!$P$16:$P$43,MATCH($B167,'Damage costs'!$C$16:$C$43,0))/1000,T58*INDEX('Damage costs'!$T$16:$T$43,MATCH($B167,'Damage costs'!$C$16:$C$43,0))/1000),\"\")","v":""},{"$f":"IFERROR(IF(OR($C$168=FALSE,LEFT($B167,3)<>\"NOX\"),U58*INDEX('Damage costs'!$P$16:$P$43,MATCH($B167,'Damage costs'!$C$16:$C$43,0))/1000,U58*INDEX('Damage costs'!$T$16:$T$43,MATCH($B167,'Damage costs'!$C$16:$C$43,0))/1000),\"\")","v":""},{"$f":"IFERROR(IF(OR($C$168=FALSE,LEFT($B167,3)<>\"NOX\"),V58*INDEX('Damage costs'!$P$16:$P$43,MATCH($B167,'Damage costs'!$C$16:$C$43,0))/1000,V58*INDEX('Damage costs'!$T$16:$T$43,MATCH($B167,'Damage costs'!$C$16:$C$43,0))/1000),\"\")","v":""},{"$f":"IFERROR(IF(OR($C$168=FALSE,LEFT($B167,3)<>\"NOX\"),W58*INDEX('Damage costs'!$P$16:$P$43,MATCH($B167,'Damage costs'!$C$16:$C$43,0))/1000,W58*INDEX('Damage costs'!$T$16:$T$43,MATCH($B167,'Damage costs'!$C$16:$C$43,0))/1000),\"\")","v":""},{"$f":"IFERROR(IF(OR($C$168=FALSE,LEFT($B167,3)<>\"NOX\"),X58*INDEX('Damage costs'!$P$16:$P$43,MATCH($B167,'Damage costs'!$C$16:$C$43,0))/1000,X58*INDEX('Damage costs'!$T$16:$T$43,MATCH($B167,'Damage costs'!$C$16:$C$43,0))/1000),\"\")","v":""},{"$f":"IFERROR(IF(OR($C$168=FALSE,LEFT($B167,3)<>\"NOX\"),Y58*INDEX('Damage costs'!$P$16:$P$43,MATCH($B167,'Damage costs'!$C$16:$C$43,0))/1000,Y58*INDEX('Damage costs'!$T$16:$T$43,MATCH($B167,'Damage costs'!$C$16:$C$43,0))/1000),\"\")","v":""},{"$f":"IFERROR(IF(OR($C$168=FALSE,LEFT($B167,3)<>\"NOX\"),Z58*INDEX('Damage costs'!$P$16:$P$43,MATCH($B167,'Damage costs'!$C$16:$C$43,0))/1000,Z58*INDEX('Damage costs'!$T$16:$T$43,MATCH($B167,'Damage costs'!$C$16:$C$43,0))/1000),\"\")","v":""},{"$f":"IFERROR(IF(OR($C$168=FALSE,LEFT($B167,3)<>\"NOX\"),AA58*INDEX('Damage costs'!$P$16:$P$43,MATCH($B167,'Damage costs'!$C$16:$C$43,0))/1000,AA58*INDEX('Damage costs'!$T$16:$T$43,MATCH($B167,'Damage costs'!$C$16:$C$43,0))/1000),\"\")","v":""},{"$f":"IFERROR(IF(OR($C$168=FALSE,LEFT($B167,3)<>\"NOX\"),AB58*INDEX('Damage costs'!$P$16:$P$43,MATCH($B167,'Damage costs'!$C$16:$C$43,0))/1000,AB58*INDEX('Damage costs'!$T$16:$T$43,MATCH($B167,'Damage costs'!$C$16:$C$43,0))/1000),\"\")","v":""},{"$f":"IFERROR(IF(OR($C$168=FALSE,LEFT($B167,3)<>\"NOX\"),AC58*INDEX('Damage costs'!$P$16:$P$43,MATCH($B167,'Damage costs'!$C$16:$C$43,0))/1000,AC58*INDEX('Damage costs'!$T$16:$T$43,MATCH($B167,'Damage costs'!$C$16:$C$43,0))/1000),\"\")","v":""},{"$f":"IFERROR(IF(OR($C$168=FALSE,LEFT($B167,3)<>\"NOX\"),AD58*INDEX('Damage costs'!$P$16:$P$43,MATCH($B167,'Damage costs'!$C$16:$C$43,0))/1000,AD58*INDEX('Damage costs'!$T$16:$T$43,MATCH($B167,'Damage costs'!$C$16:$C$43,0))/1000),\"\")","v":""},{"$f":"IFERROR(IF(OR($C$168=FALSE,LEFT($B167,3)<>\"NOX\"),AE58*INDEX('Damage costs'!$P$16:$P$43,MATCH($B167,'Damage costs'!$C$16:$C$43,0))/1000,AE58*INDEX('Damage costs'!$T$16:$T$43,MATCH($B167,'Damage costs'!$C$16:$C$43,0))/1000),\"\")","v":""},{"$f":"IFERROR(IF(OR($C$168=FALSE,LEFT($B167,3)<>\"NOX\"),AF58*INDEX('Damage costs'!$P$16:$P$43,MATCH($B167,'Damage costs'!$C$16:$C$43,0))/1000,AF58*INDEX('Damage costs'!$T$16:$T$43,MATCH($B167,'Damage costs'!$C$16:$C$43,0))/1000),\"\")","v":""},{"$f":"IFERROR(IF(OR($C$168=FALSE,LEFT($B167,3)<>\"NOX\"),AG58*INDEX('Damage costs'!$P$16:$P$43,MATCH($B167,'Damage costs'!$C$16:$C$43,0))/1000,AG58*INDEX('Damage costs'!$T$16:$T$43,MATCH($B167,'Damage costs'!$C$16:$C$43,0))/1000),\"\")","v":""},{"$f":"IFERROR(IF(OR($C$168=FALSE,LEFT($B167,3)<>\"NOX\"),AH58*INDEX('Damage costs'!$P$16:$P$43,MATCH($B167,'Damage costs'!$C$16:$C$43,0))/1000,AH58*INDEX('Damage costs'!$T$16:$T$43,MATCH($B167,'Damage costs'!$C$16:$C$43,0))/1000),\"\")","v":""},{"$f":"IFERROR(IF(OR($C$168=FALSE,LEFT($B167,3)<>\"NOX\"),AI58*INDEX('Damage costs'!$P$16:$P$43,MATCH($B167,'Damage costs'!$C$16:$C$43,0))/1000,AI58*INDEX('Damage costs'!$T$16:$T$43,MATCH($B167,'Damage costs'!$C$16:$C$43,0))/1000),\"\")","v":""},{"$f":"IFERROR(IF(OR($C$168=FALSE,LEFT($B167,3)<>\"NOX\"),AJ58*INDEX('Damage costs'!$P$16:$P$43,MATCH($B167,'Damage costs'!$C$16:$C$43,0))/1000,AJ58*INDEX('Damage costs'!$T$16:$T$43,MATCH($B167,'Damage costs'!$C$16:$C$43,0))/1000),\"\")","v":""},{"$f":"IFERROR(IF(OR($C$168=FALSE,LEFT($B167,3)<>\"NOX\"),AK58*INDEX('Damage costs'!$P$16:$P$43,MATCH($B167,'Damage costs'!$C$16:$C$43,0))/1000,AK58*INDEX('Damage costs'!$T$16:$T$43,MATCH($B167,'Damage costs'!$C$16:$C$43,0))/1000),\"\")","v":""},{"$f":"IFERROR(IF(OR($C$168=FALSE,LEFT($B167,3)<>\"NOX\"),AL58*INDEX('Damage costs'!$P$16:$P$43,MATCH($B167,'Damage costs'!$C$16:$C$43,0))/1000,AL58*INDEX('Damage costs'!$T$16:$T$43,MATCH($B167,'Damage costs'!$C$16:$C$43,0))/1000),\"\")","v":""},{"$f":"IFERROR(IF(OR($C$168=FALSE,LEFT($B167,3)<>\"NOX\"),AM58*INDEX('Damage costs'!$P$16:$P$43,MATCH($B167,'Damage costs'!$C$16:$C$43,0))/1000,AM58*INDEX('Damage costs'!$T$16:$T$43,MATCH($B167,'Damage costs'!$C$16:$C$43,0))/1000),\"\")","v":""},{"$f":"IFERROR(IF(OR($C$168=FALSE,LEFT($B167,3)<>\"NOX\"),AN58*INDEX('Damage costs'!$P$16:$P$43,MATCH($B167,'Damage costs'!$C$16:$C$43,0))/1000,AN58*INDEX('Damage costs'!$T$16:$T$43,MATCH($B167,'Damage costs'!$C$16:$C$43,0))/1000),\"\")","v":""},{"$f":"IFERROR(IF(OR($C$168=FALSE,LEFT($B167,3)<>\"NOX\"),AO58*INDEX('Damage costs'!$P$16:$P$43,MATCH($B167,'Damage costs'!$C$16:$C$43,0))/1000,AO58*INDEX('Damage costs'!$T$16:$T$43,MATCH($B167,'Damage costs'!$C$16:$C$43,0))/1000),\"\")","v":""},{"$f":"IFERROR(IF(OR($C$168=FALSE,LEFT($B167,3)<>\"NOX\"),AP58*INDEX('Damage costs'!$P$16:$P$43,MATCH($B167,'Damage costs'!$C$16:$C$43,0))/1000,AP58*INDEX('Damage costs'!$T$16:$T$43,MATCH($B167,'Damage costs'!$C$16:$C$43,0))/1000),\"\")","v":""},{"$f":"IFERROR(IF(OR($C$168=FALSE,LEFT($B167,3)<>\"NOX\"),AQ58*INDEX('Damage costs'!$P$16:$P$43,MATCH($B167,'Damage costs'!$C$16:$C$43,0))/1000,AQ58*INDEX('Damage costs'!$T$16:$T$43,MATCH($B167,'Damage costs'!$C$16:$C$43,0))/1000),\"\")","v":""},{"$f":"IFERROR(IF(OR($C$168=FALSE,LEFT($B167,3)<>\"NOX\"),AR58*INDEX('Damage costs'!$P$16:$P$43,MATCH($B167,'Damage costs'!$C$16:$C$43,0))/1000,AR58*INDEX('Damage costs'!$T$16:$T$43,MATCH($B167,'Damage costs'!$C$16:$C$43,0))/1000),\"\")","v":""},{"$f":"IFERROR(IF(OR($C$168=FALSE,LEFT($B167,3)<>\"NOX\"),AS58*INDEX('Damage costs'!$P$16:$P$43,MATCH($B167,'Damage costs'!$C$16:$C$43,0))/1000,AS58*INDEX('Damage costs'!$T$16:$T$43,MATCH($B167,'Damage costs'!$C$16:$C$43,0))/1000),\"\")","v":""},{"$f":"IFERROR(IF(OR($C$168=FALSE,LEFT($B167,3)<>\"NOX\"),AT58*INDEX('Damage costs'!$P$16:$P$43,MATCH($B167,'Damage costs'!$C$16:$C$43,0))/1000,AT58*INDEX('Damage costs'!$T$16:$T$43,MATCH($B167,'Damage costs'!$C$16:$C$43,0))/1000),\"\")","v":""},{"$f":"IFERROR(IF(OR($C$168=FALSE,LEFT($B167,3)<>\"NOX\"),AU58*INDEX('Damage costs'!$P$16:$P$43,MATCH($B167,'Damage costs'!$C$16:$C$43,0))/1000,AU58*INDEX('Damage costs'!$T$16:$T$43,MATCH($B167,'Damage costs'!$C$16:$C$43,0))/1000),\"\")","v":""},{"$f":"IFERROR(IF(OR($C$168=FALSE,LEFT($B167,3)<>\"NOX\"),AV58*INDEX('Damage costs'!$P$16:$P$43,MATCH($B167,'Damage costs'!$C$16:$C$43,0))/1000,AV58*INDEX('Damage costs'!$T$16:$T$43,MATCH($B167,'Damage costs'!$C$16:$C$43,0))/1000),\"\")","v":""},{"$f":"IFERROR(IF(OR($C$168=FALSE,LEFT($B167,3)<>\"NOX\"),AW58*INDEX('Damage costs'!$P$16:$P$43,MATCH($B167,'Damage costs'!$C$16:$C$43,0))/1000,AW58*INDEX('Damage costs'!$T$16:$T$43,MATCH($B167,'Damage costs'!$C$16:$C$43,0))/1000),\"\")","v":""},{"$f":"IFERROR(IF(OR($C$168=FALSE,LEFT($B167,3)<>\"NOX\"),AX58*INDEX('Damage costs'!$P$16:$P$43,MATCH($B167,'Damage costs'!$C$16:$C$43,0))/1000,AX58*INDEX('Damage costs'!$T$16:$T$43,MATCH($B167,'Damage costs'!$C$16:$C$43,0))/1000),\"\")","v":""},{"$f":"IFERROR(IF(OR($C$168=FALSE,LEFT($B167,3)<>\"NOX\"),AY58*INDEX('Damage costs'!$P$16:$P$43,MATCH($B167,'Damage costs'!$C$16:$C$43,0))/1000,AY58*INDEX('Damage costs'!$T$16:$T$43,MATCH($B167,'Damage costs'!$C$16:$C$43,0))/1000),\"\")","v":""},{"$f":"IFERROR(IF(OR($C$168=FALSE,LEFT($B167,3)<>\"NOX\"),AZ58*INDEX('Damage costs'!$P$16:$P$43,MATCH($B167,'Damage costs'!$C$16:$C$43,0))/1000,AZ58*INDEX('Damage costs'!$T$16:$T$43,MATCH($B167,'Damage costs'!$C$16:$C$43,0))/1000),\"\")","v":""},{"$f":"IFERROR(IF(OR($C$168=FALSE,LEFT($B167,3)<>\"NOX\"),BA58*INDEX('Damage costs'!$P$16:$P$43,MATCH($B167,'Damage costs'!$C$16:$C$43,0))/1000,BA58*INDEX('Damage costs'!$T$16:$T$43,MATCH($B167,'Damage costs'!$C$16:$C$43,0))/1000),\"\")","v":""},{"$f":"IFERROR(IF(OR($C$168=FALSE,LEFT($B167,3)<>\"NOX\"),BB58*INDEX('Damage costs'!$P$16:$P$43,MATCH($B167,'Damage costs'!$C$16:$C$43,0))/1000,BB58*INDEX('Damage costs'!$T$16:$T$43,MATCH($B167,'Damage costs'!$C$16:$C$43,0))/1000),\"\")","v":""},{"$f":"IFERROR(IF(OR($C$168=FALSE,LEFT($B167,3)<>\"NOX\"),BC58*INDEX('Damage costs'!$P$16:$P$43,MATCH($B167,'Damage costs'!$C$16:$C$43,0))/1000,BC58*INDEX('Damage costs'!$T$16:$T$43,MATCH($B167,'Damage costs'!$C$16:$C$43,0))/1000),\"\")","v":""},{"$f":"IFERROR(IF(OR($C$168=FALSE,LEFT($B167,3)<>\"NOX\"),BD58*INDEX('Damage costs'!$P$16:$P$43,MATCH($B167,'Damage costs'!$C$16:$C$43,0))/1000,BD58*INDEX('Damage costs'!$T$16:$T$43,MATCH($B167,'Damage costs'!$C$16:$C$43,0))/1000),\"\")","v":""},{"$f":"IFERROR(IF(OR($C$168=FALSE,LEFT($B167,3)<>\"NOX\"),BE58*INDEX('Damage costs'!$P$16:$P$43,MATCH($B167,'Damage costs'!$C$16:$C$43,0))/1000,BE58*INDEX('Damage costs'!$T$16:$T$43,MATCH($B167,'Damage costs'!$C$16:$C$43,0))/1000),\"\")","v":""},{"$f":"IFERROR(IF(OR($C$168=FALSE,LEFT($B167,3)<>\"NOX\"),BF58*INDEX('Damage costs'!$P$16:$P$43,MATCH($B167,'Damage costs'!$C$16:$C$43,0))/1000,BF58*INDEX('Damage costs'!$T$16:$T$43,MATCH($B167,'Damage costs'!$C$16:$C$43,0))/1000),\"\")","v":""},{"$f":"IFERROR(IF(OR($C$168=FALSE,LEFT($B167,3)<>\"NOX\"),BG58*INDEX('Damage costs'!$P$16:$P$43,MATCH($B167,'Damage costs'!$C$16:$C$43,0))/1000,BG58*INDEX('Damage costs'!$T$16:$T$43,MATCH($B167,'Damage costs'!$C$16:$C$43,0))/1000),\"\")","v":""},{"$f":"IFERROR(IF(OR($C$168=FALSE,LEFT($B167,3)<>\"NOX\"),BH58*INDEX('Damage costs'!$P$16:$P$43,MATCH($B167,'Damage costs'!$C$16:$C$43,0))/1000,BH58*INDEX('Damage costs'!$T$16:$T$43,MATCH($B167,'Damage costs'!$C$16:$C$43,0))/1000),\"\")","v":""},{"$f":"IFERROR(IF(OR($C$168=FALSE,LEFT($B167,3)<>\"NOX\"),BI58*INDEX('Damage costs'!$P$16:$P$43,MATCH($B167,'Damage costs'!$C$16:$C$43,0))/1000,BI58*INDEX('Damage costs'!$T$16:$T$43,MATCH($B167,'Damage costs'!$C$16:$C$43,0))/1000),\"\")","v":""},{"$f":"IFERROR(IF(OR($C$168=FALSE,LEFT($B167,3)<>\"NOX\"),BJ58*INDEX('Damage costs'!$P$16:$P$43,MATCH($B167,'Damage costs'!$C$16:$C$43,0))/1000,BJ58*INDEX('Damage costs'!$T$16:$T$43,MATCH($B167,'Damage costs'!$C$16:$C$43,0))/1000),\"\")","v":""},{"$f":"IFERROR(IF(OR($C$168=FALSE,LEFT($B167,3)<>\"NOX\"),BK58*INDEX('Damage costs'!$P$16:$P$43,MATCH($B167,'Damage costs'!$C$16:$C$43,0))/1000,BK58*INDEX('Damage costs'!$T$16:$T$43,MATCH($B167,'Damage costs'!$C$16:$C$43,0))/1000),\"\")","v":""},{"$f":"IFERROR(IF(OR($C$168=FALSE,LEFT($B167,3)<>\"NOX\"),BL58*INDEX('Damage costs'!$P$16:$P$43,MATCH($B167,'Damage costs'!$C$16:$C$43,0))/1000,BL58*INDEX('Damage costs'!$T$16:$T$43,MATCH($B167,'Damage costs'!$C$16:$C$43,0))/1000),\"\")","v":""},{"$f":"IFERROR(IF(OR($C$168=FALSE,LEFT($B167,3)<>\"NOX\"),BM58*INDEX('Damage costs'!$P$16:$P$43,MATCH($B167,'Damage costs'!$C$16:$C$43,0))/1000,BM58*INDEX('Damage costs'!$T$16:$T$43,MATCH($B167,'Damage costs'!$C$16:$C$43,0))/1000),\"\")","v":""},{"$f":"IFERROR(IF(OR($C$168=FALSE,LEFT($B167,3)<>\"NOX\"),BN58*INDEX('Damage costs'!$P$16:$P$43,MATCH($B167,'Damage costs'!$C$16:$C$43,0))/1000,BN58*INDEX('Damage costs'!$T$16:$T$43,MATCH($B167,'Damage costs'!$C$16:$C$43,0))/1000),\"\")","v":""},{"$f":"IFERROR(IF(OR($C$168=FALSE,LEFT($B167,3)<>\"NOX\"),BO58*INDEX('Damage costs'!$P$16:$P$43,MATCH($B167,'Damage costs'!$C$16:$C$43,0))/1000,BO58*INDEX('Damage costs'!$T$16:$T$43,MATCH($B167,'Damage costs'!$C$16:$C$43,0))/1000),\"\")","v":""},{"$f":"IFERROR(IF(OR($C$168=FALSE,LEFT($B167,3)<>\"NOX\"),BP58*INDEX('Damage costs'!$P$16:$P$43,MATCH($B167,'Damage costs'!$C$16:$C$43,0))/1000,BP58*INDEX('Damage costs'!$T$16:$T$43,MATCH($B167,'Damage costs'!$C$16:$C$43,0))/1000),\"\")","v":""},{"$f":"IFERROR(IF(OR($C$168=FALSE,LEFT($B167,3)<>\"NOX\"),BQ58*INDEX('Damage costs'!$P$16:$P$43,MATCH($B167,'Damage costs'!$C$16:$C$43,0))/1000,BQ58*INDEX('Damage costs'!$T$16:$T$43,MATCH($B167,'Damage costs'!$C$16:$C$43,0))/1000),\"\")","v":""},{"$f":"IFERROR(IF(OR($C$168=FALSE,LEFT($B167,3)<>\"NOX\"),BR58*INDEX('Damage costs'!$P$16:$P$43,MATCH($B167,'Damage costs'!$C$16:$C$43,0))/1000,BR58*INDEX('Damage costs'!$T$16:$T$43,MATCH($B167,'Damage costs'!$C$16:$C$43,0))/1000),\"\")","v":""},{"$f":"IFERROR(IF(OR($C$168=FALSE,LEFT($B167,3)<>\"NOX\"),BS58*INDEX('Damage costs'!$P$16:$P$43,MATCH($B167,'Damage costs'!$C$16:$C$43,0))/1000,BS58*INDEX('Damage costs'!$T$16:$T$43,MATCH($B167,'Damage costs'!$C$16:$C$43,0))/1000),\"\")","v":""},{"$f":"IFERROR(IF(OR($C$168=FALSE,LEFT($B167,3)<>\"NOX\"),BT58*INDEX('Damage costs'!$P$16:$P$43,MATCH($B167,'Damage costs'!$C$16:$C$43,0))/1000,BT58*INDEX('Damage costs'!$T$16:$T$43,MATCH($B167,'Damage costs'!$C$16:$C$43,0))/1000),\"\")","v":""},{"$f":"IFERROR(IF(OR($C$168=FALSE,LEFT($B167,3)<>\"NOX\"),BU58*INDEX('Damage costs'!$P$16:$P$43,MATCH($B167,'Damage costs'!$C$16:$C$43,0))/1000,BU58*INDEX('Damage costs'!$T$16:$T$43,MATCH($B167,'Damage costs'!$C$16:$C$43,0))/1000),\"\")","v":""},{"$f":"IFERROR(IF(OR($C$168=FALSE,LEFT($B167,3)<>\"NOX\"),BV58*INDEX('Damage costs'!$P$16:$P$43,MATCH($B167,'Damage costs'!$C$16:$C$43,0))/1000,BV58*INDEX('Damage costs'!$T$16:$T$43,MATCH($B167,'Damage costs'!$C$16:$C$43,0))/1000),\"\")","v":""},{"$f":"IFERROR(IF(OR($C$168=FALSE,LEFT($B167,3)<>\"NOX\"),BW58*INDEX('Damage costs'!$P$16:$P$43,MATCH($B167,'Damage costs'!$C$16:$C$43,0))/1000,BW58*INDEX('Damage costs'!$T$16:$T$43,MATCH($B167,'Damage costs'!$C$16:$C$43,0))/1000),\"\")","v":""},{"$f":"IFERROR(IF(OR($C$168=FALSE,LEFT($B167,3)<>\"NOX\"),BX58*INDEX('Damage costs'!$P$16:$P$43,MATCH($B167,'Damage costs'!$C$16:$C$43,0))/1000,BX58*INDEX('Damage costs'!$T$16:$T$43,MATCH($B167,'Damage costs'!$C$16:$C$43,0))/1000),\"\")","v":""},{"$f":"IFERROR(IF(OR($C$168=FALSE,LEFT($B167,3)<>\"NOX\"),BY58*INDEX('Damage costs'!$P$16:$P$43,MATCH($B167,'Damage costs'!$C$16:$C$43,0))/1000,BY58*INDEX('Damage costs'!$T$16:$T$43,MATCH($B167,'Damage costs'!$C$16:$C$43,0))/1000),\"\")","v":""},{"$f":"IFERROR(IF(OR($C$168=FALSE,LEFT($B167,3)<>\"NOX\"),BZ58*INDEX('Damage costs'!$P$16:$P$43,MATCH($B167,'Damage costs'!$C$16:$C$43,0))/1000,BZ58*INDEX('Damage costs'!$T$16:$T$43,MATCH($B167,'Damage costs'!$C$16:$C$43,0))/1000),\"\")","v":""},{"$f":"IFERROR(IF(OR($C$168=FALSE,LEFT($B167,3)<>\"NOX\"),CA58*INDEX('Damage costs'!$P$16:$P$43,MATCH($B167,'Damage costs'!$C$16:$C$43,0))/1000,CA58*INDEX('Damage costs'!$T$16:$T$43,MATCH($B167,'Damage costs'!$C$16:$C$43,0))/1000),\"\")","v":""},{"$f":"IFERROR(IF(OR($C$168=FALSE,LEFT($B167,3)<>\"NOX\"),CB58*INDEX('Damage costs'!$P$16:$P$43,MATCH($B167,'Damage costs'!$C$16:$C$43,0))/1000,CB58*INDEX('Damage costs'!$T$16:$T$43,MATCH($B167,'Damage costs'!$C$16:$C$43,0))/1000),\"\")","v":""},{"$f":"IFERROR(IF(OR($C$168=FALSE,LEFT($B167,3)<>\"NOX\"),CC58*INDEX('Damage costs'!$P$16:$P$43,MATCH($B167,'Damage costs'!$C$16:$C$43,0))/1000,CC58*INDEX('Damage costs'!$T$16:$T$43,MATCH($B167,'Damage costs'!$C$16:$C$43,0))/1000),\"\")","v":""},{"$f":"IFERROR(IF(OR($C$168=FALSE,LEFT($B167,3)<>\"NOX\"),CD58*INDEX('Damage costs'!$P$16:$P$43,MATCH($B167,'Damage costs'!$C$16:$C$43,0))/1000,CD58*INDEX('Damage costs'!$T$16:$T$43,MATCH($B167,'Damage costs'!$C$16:$C$43,0))/1000),\"\")","v":""},{"$f":"IFERROR(IF(OR($C$168=FALSE,LEFT($B167,3)<>\"NOX\"),CE58*INDEX('Damage costs'!$P$16:$P$43,MATCH($B167,'Damage costs'!$C$16:$C$43,0))/1000,CE58*INDEX('Damage costs'!$T$16:$T$43,MATCH($B167,'Damage costs'!$C$16:$C$43,0))/1000),\"\")","v":""},{"$f":"IFERROR(IF(OR($C$168=FALSE,LEFT($B167,3)<>\"NOX\"),CF58*INDEX('Damage costs'!$P$16:$P$43,MATCH($B167,'Damage costs'!$C$16:$C$43,0))/1000,CF58*INDEX('Damage costs'!$T$16:$T$43,MATCH($B167,'Damage costs'!$C$16:$C$43,0))/1000),\"\")","v":""},{"$f":"IFERROR(IF(OR($C$168=FALSE,LEFT($B167,3)<>\"NOX\"),CG58*INDEX('Damage costs'!$P$16:$P$43,MATCH($B167,'Damage costs'!$C$16:$C$43,0))/1000,CG58*INDEX('Damage costs'!$T$16:$T$43,MATCH($B167,'Damage costs'!$C$16:$C$43,0))/1000),\"\")","v":""},{"$f":"IFERROR(IF(OR($C$168=FALSE,LEFT($B167,3)<>\"NOX\"),CH58*INDEX('Damage costs'!$P$16:$P$43,MATCH($B167,'Damage costs'!$C$16:$C$43,0))/1000,CH58*INDEX('Damage costs'!$T$16:$T$43,MATCH($B167,'Damage costs'!$C$16:$C$43,0))/1000),\"\")","v":""},{"$f":"IFERROR(IF(OR($C$168=FALSE,LEFT($B167,3)<>\"NOX\"),CI58*INDEX('Damage costs'!$P$16:$P$43,MATCH($B167,'Damage costs'!$C$16:$C$43,0))/1000,CI58*INDEX('Damage costs'!$T$16:$T$43,MATCH($B167,'Damage costs'!$C$16:$C$43,0))/1000),\"\")","v":""},{"$f":"IFERROR(IF(OR($C$168=FALSE,LEFT($B167,3)<>\"NOX\"),CJ58*INDEX('Damage costs'!$P$16:$P$43,MATCH($B167,'Damage costs'!$C$16:$C$43,0))/1000,CJ58*INDEX('Damage costs'!$T$16:$T$43,MATCH($B167,'Damage costs'!$C$16:$C$43,0))/1000),\"\")","v":""},{"$f":"IFERROR(IF(OR($C$168=FALSE,LEFT($B167,3)<>\"NOX\"),CK58*INDEX('Damage costs'!$P$16:$P$43,MATCH($B167,'Damage costs'!$C$16:$C$43,0))/1000,CK58*INDEX('Damage costs'!$T$16:$T$43,MATCH($B167,'Damage costs'!$C$16:$C$43,0))/1000),\"\")","v":""},{"$f":"IFERROR(IF(OR($C$168=FALSE,LEFT($B167,3)<>\"NOX\"),CL58*INDEX('Damage costs'!$P$16:$P$43,MATCH($B167,'Damage costs'!$C$16:$C$43,0))/1000,CL58*INDEX('Damage costs'!$T$16:$T$43,MATCH($B167,'Damage costs'!$C$16:$C$43,0))/1000),\"\")","v":""},{"$f":"IFERROR(IF(OR($C$168=FALSE,LEFT($B167,3)<>\"NOX\"),CM58*INDEX('Damage costs'!$P$16:$P$43,MATCH($B167,'Damage costs'!$C$16:$C$43,0))/1000,CM58*INDEX('Damage costs'!$T$16:$T$43,MATCH($B167,'Damage costs'!$C$16:$C$43,0))/1000),\"\")","v":""},{"$f":"IFERROR(IF(OR($C$168=FALSE,LEFT($B167,3)<>\"NOX\"),CN58*INDEX('Damage costs'!$P$16:$P$43,MATCH($B167,'Damage costs'!$C$16:$C$43,0))/1000,CN58*INDEX('Damage costs'!$T$16:$T$43,MATCH($B167,'Damage costs'!$C$16:$C$43,0))/1000),\"\")","v":""},{"$f":"IFERROR(IF(OR($C$168=FALSE,LEFT($B167,3)<>\"NOX\"),CO58*INDEX('Damage costs'!$P$16:$P$43,MATCH($B167,'Damage costs'!$C$16:$C$43,0))/1000,CO58*INDEX('Damage costs'!$T$16:$T$43,MATCH($B167,'Damage costs'!$C$16:$C$43,0))/1000),\"\")","v":""},{"$f":"IFERROR(IF(OR($C$168=FALSE,LEFT($B167,3)<>\"NOX\"),CP58*INDEX('Damage costs'!$P$16:$P$43,MATCH($B167,'Damage costs'!$C$16:$C$43,0))/1000,CP58*INDEX('Damage costs'!$T$16:$T$43,MATCH($B167,'Damage costs'!$C$16:$C$43,0))/1000),\"\")","v":""},{"$f":"IFERROR(IF(OR($C$168=FALSE,LEFT($B167,3)<>\"NOX\"),CQ58*INDEX('Damage costs'!$P$16:$P$43,MATCH($B167,'Damage costs'!$C$16:$C$43,0))/1000,CQ58*INDEX('Damage costs'!$T$16:$T$43,MATCH($B167,'Damage costs'!$C$16:$C$43,0))/1000),\"\")","v":""},{"$f":"IFERROR(IF(OR($C$168=FALSE,LEFT($B167,3)<>\"NOX\"),CR58*INDEX('Damage costs'!$P$16:$P$43,MATCH($B167,'Damage costs'!$C$16:$C$43,0))/1000,CR58*INDEX('Damage costs'!$T$16:$T$43,MATCH($B167,'Damage costs'!$C$16:$C$43,0))/1000),\"\")","v":""},{"$f":"IFERROR(IF(OR($C$168=FALSE,LEFT($B167,3)<>\"NOX\"),CS58*INDEX('Damage costs'!$P$16:$P$43,MATCH($B167,'Damage costs'!$C$16:$C$43,0))/1000,CS58*INDEX('Damage costs'!$T$16:$T$43,MATCH($B167,'Damage costs'!$C$16:$C$43,0))/1000),\"\")","v":""},{"$f":"IFERROR(IF(OR($C$168=FALSE,LEFT($B167,3)<>\"NOX\"),CT58*INDEX('Damage costs'!$P$16:$P$43,MATCH($B167,'Damage costs'!$C$16:$C$43,0))/1000,CT58*INDEX('Damage costs'!$T$16:$T$43,MATCH($B167,'Damage costs'!$C$16:$C$43,0))/1000),\"\")","v":""},{"$f":"IFERROR(IF(OR($C$168=FALSE,LEFT($B167,3)<>\"NOX\"),CU58*INDEX('Damage costs'!$P$16:$P$43,MATCH($B167,'Damage costs'!$C$16:$C$43,0))/1000,CU58*INDEX('Damage costs'!$T$16:$T$43,MATCH($B167,'Damage costs'!$C$16:$C$43,0))/1000),\"\")","v":""},{"$f":"IFERROR(IF(OR($C$168=FALSE,LEFT($B167,3)<>\"NOX\"),CV58*INDEX('Damage costs'!$P$16:$P$43,MATCH($B167,'Damage costs'!$C$16:$C$43,0))/1000,CV58*INDEX('Damage costs'!$T$16:$T$43,MATCH($B167,'Damage costs'!$C$16:$C$43,0))/1000),\"\")","v":""},{"$f":"IFERROR(IF(OR($C$168=FALSE,LEFT($B167,3)<>\"NOX\"),CW58*INDEX('Damage costs'!$P$16:$P$43,MATCH($B167,'Damage costs'!$C$16:$C$43,0))/1000,CW58*INDEX('Damage costs'!$T$16:$T$43,MATCH($B167,'Damage costs'!$C$16:$C$43,0))/1000),\"\")","v":""},{"$f":"IFERROR(IF(OR($C$168=FALSE,LEFT($B167,3)<>\"NOX\"),CX58*INDEX('Damage costs'!$P$16:$P$43,MATCH($B167,'Damage costs'!$C$16:$C$43,0))/1000,CX58*INDEX('Damage costs'!$T$16:$T$43,MATCH($B167,'Damage costs'!$C$16:$C$43,0))/1000),\"\")","v":""},{"$f":"IFERROR(IF(OR($C$168=FALSE,LEFT($B167,3)<>\"NOX\"),CY58*INDEX('Damage costs'!$P$16:$P$43,MATCH($B167,'Damage costs'!$C$16:$C$43,0))/1000,CY58*INDEX('Damage costs'!$T$16:$T$43,MATCH($B167,'Damage costs'!$C$16:$C$43,0))/1000),\"\")","v":""}]
[null,"PM10 Used",{"$f":"IF(OR(LEFT(B162,4)=\"PM10\",LEFT(B163,4)=\"PM10\",LEFT(B164,4)=\"PM10\",LEFT(B165,4)=\"PM10\",LEFT(B166,4)=\"PM10\",LEFT(B167,4)=\"PM10\"),TRUE,FALSE)","v":false}]
[]
[null,"Uplift pa","%",{"$f":"'Discount and deflators'!$H$5","v":0.02}]
[null,"Uplift factor",null,{"$f":"IF(D$6=0,0,(1+$D170)^(D$6-'Data Input - General'!$F$22))","v":1},{"$f":"IF(E$6=0,0,(1+$D170)^(E$6-'Data Input - General'!$F$22))","v":1.02},{"$f":"IF(F$6=0,0,(1+$D170)^(F$6-'Data Input - General'!$F$22))","v":1.0404},{"$f":"IF(G$6=0,0,(1+$D170)^(G$6-'Data Input - General'!$F$22))","v":1.0612079999999999},{"$f":"IF(H$6=0,0,(1+$D170)^(H$6-'Data Input - General'!$F$22))","v":1.08243216},{"$f":"IF(I$6=0,0,(1+$D170)^(I$6-'Data Input - General'!$F$22))","v":1.1040808032},{"$f":"IF(J$6=0,0,(1+$D170)^(J$6-'Data Input - General'!$F$22))","v":1.1261624192640001},{"$f":"IF(K$6=0,0,(1+$D170)^(K$6-'Data Input - General'!$F$22))","v":1.1486856676492798},{"$f":"IF(L$6=0,0,(1+$D170)^(L$6-'Data Input - General'!$F$22))","v":1.1716593810022655},{"$f":"IF(M$6=0,0,(1+$D170)^(M$6-'Data Input - General'!$F$22))","v":1.1950925686223108},{"$f":"IF(N$6=0,0,(1+$D170)^(N$6-'Data Input - General'!$F$22))","v":1.2189944199947571},{"$f":"IF(O$6=0,0,(1+$D170)^(O$6-'Data Input - General'!$F$22))","v":1.243374308394652},{"$f":"IF(P$6=0,0,(1+$D170)^(P$6-'Data Input - General'!$F$22))","v":1.2682417945625453},{"$f":"IF(Q$6=0,0,(1+$D170)^(Q$6-'Data Input - General'!$F$22))","v":1.2936066304537961},{"$f":"IF(R$6=0,0,(1+$D170)^(R$6-'Data Input - General'!$F$22))","v":1.3194787630628722},{"$f":"IF(S$6=0,0,(1+$D170)^(S$6-'Data Input - General'!$F$22))","v":1.3458683383241292},{"$f":"IF(T$6=0,0,(1+$D170)^(T$6-'Data Input - General'!$F$22))","v":1.372785705090612},{"$f":"IF(U$6=0,0,(1+$D170)^(U$6-'Data Input - General'!$F$22))","v":1.4002414191924244},{"$f":"IF(V$6=0,0,(1+$D170)^(V$6-'Data Input - General'!$F$22))","v":1.4282462475762727},{"$f":"IF(W$6=0,0,(1+$D170)^(W$6-'Data Input - General'!$F$22))","v":1.4568111725277981},{"$f":"IF(X$6=0,0,(1+$D170)^(X$6-'Data Input - General'!$F$22))","v":1.4859473959783542},{"$f":"IF(Y$6=0,0,(1+$D170)^(Y$6-'Data Input - General'!$F$22))","v":1.5156663438979212},{"$f":"IF(Z$6=0,0,(1+$D170)^(Z$6-'Data Input - General'!$F$22))","v":1.5459796707758797},{"$f":"IF(AA$6=0,0,(1+$D170)^(AA$6-'Data Input - General'!$F$22))","v":1.576899264191397},{"$f":"IF(AB$6=0,0,(1+$D170)^(AB$6-'Data Input - General'!$F$22))","v":1.608437249475225},{"$f":"IF(AC$6=0,0,(1+$D170)^(AC$6-'Data Input - General'!$F$22))","v":1.6406059944647295},{"$f":"IF(AD$6=0,0,(1+$D170)^(AD$6-'Data Input - General'!$F$22))","v":1.6734181143540243},{"$f":"IF(AE$6=0,0,(1+$D170)^(AE$6-'Data Input - General'!$F$22))","v":1.7068864766411045},{"$f":"IF(AF$6=0,0,(1+$D170)^(AF$6-'Data Input - General'!$F$22))","v":1.7410242061739269},{"$f":"IF(AG$6=0,0,(1+$D170)^(AG$6-'Data Input - General'!$F$22))","v":1.7758446902974052},{"$f":"IF(AH$6=0,0,(1+$D170)^(AH$6-'Data Input - General'!$F$22))","v":1.8113615841033535},{"$f":"IF(AI$6=0,0,(1+$D170)^(AI$6-'Data Input - General'!$F$22))","v":0},{"$f":"IF(AJ$6=0,0,(1+$D170)^(AJ$6-'Data Input - General'!$F$22))","v":0},{"$f":"IF(AK$6=0,0,(1+$D170)^(AK$6-'Data Input - General'!$F$22))","v":0},{"$f":"IF(AL$6=0,0,(1+$D170)^(AL$6-'Data Input - General'!$F$22))","v":0},{"$f":"IF(AM$6=0,0,(1+$D170)^(AM$6-'Data Input - General'!$F$22))","v":0},{"$f":"IF(AN$6=0,0,(1+$D170)^(AN$6-'Data Input - General'!$F$22))","v":0},{"$f":"IF(AO$6=0,0,(1+$D170)^(AO$6-'Data Input - General'!$F$22))","v":0},{"$f":"IF(AP$6=0,0,(1+$D170)^(AP$6-'Data Input - General'!$F$22))","v":0},{"$f":"IF(AQ$6=0,0,(1+$D170)^(AQ$6-'Data Input - General'!$F$22))","v":0},{"$f":"IF(AR$6=0,0,(1+$D170)^(AR$6-'Data Input - General'!$F$22))","v":0},{"$f":"IF(AS$6=0,0,(1+$D170)^(AS$6-'Data Input - General'!$F$22))","v":0},{"$f":"IF(AT$6=0,0,(1+$D170)^(AT$6-'Data Input - General'!$F$22))","v":0},{"$f":"IF(AU$6=0,0,(1+$D170)^(AU$6-'Data Input - General'!$F$22))","v":0},{"$f":"IF(AV$6=0,0,(1+$D170)^(AV$6-'Data Input - General'!$F$22))","v":0},{"$f":"IF(AW$6=0,0,(1+$D170)^(AW$6-'Data Input - General'!$F$22))","v":0},{"$f":"IF(AX$6=0,0,(1+$D170)^(AX$6-'Data Input - General'!$F$22))","v":0},{"$f":"IF(AY$6=0,0,(1+$D170)^(AY$6-'Data Input - General'!$F$22))","v":0},{"$f":"IF(AZ$6=0,0,(1+$D170)^(AZ$6-'Data Input - General'!$F$22))","v":0},{"$f":"IF(BA$6=0,0,(1+$D170)^(BA$6-'Data Input - General'!$F$22))","v":0},{"$f":"IF(BB$6=0,0,(1+$D170)^(BB$6-'Data Input - General'!$F$22))","v":0},{"$f":"IF(BC$6=0,0,(1+$D170)^(BC$6-'Data Input - General'!$F$22))","v":0},{"$f":"IF(BD$6=0,0,(1+$D170)^(BD$6-'Data Input - General'!$F$22))","v":0},{"$f":"IF(BE$6=0,0,(1+$D170)^(BE$6-'Data Input - General'!$F$22))","v":0},{"$f":"IF(BF$6=0,0,(1+$D170)^(BF$6-'Data Input - General'!$F$22))","v":0},{"$f":"IF(BG$6=0,0,(1+$D170)^(BG$6-'Data Input - General'!$F$22))","v":0},{"$f":"IF(BH$6=0,0,(1+$D170)^(BH$6-'Data Input - General'!$F$22))","v":0},{"$f":"IF(BI$6=0,0,(1+$D170)^(BI$6-'Data Input - General'!$F$22))","v":0},{"$f":"IF(BJ$6=0,0,(1+$D170)^(BJ$6-'Data Input - General'!$F$22))","v":0},{"$f":"IF(BK$6=0,0,(1+$D170)^(BK$6-'Data Input - General'!$F$22))","v":0},{"$f":"IF(BL$6=0,0,(1+$D170)^(BL$6-'Data Input - General'!$F$22))","v":0},{"$f":"IF(BM$6=0,0,(1+$D170)^(BM$6-'Data Input - General'!$F$22))","v":0},{"$f":"IF(BN$6=0,0,(1+$D170)^(BN$6-'Data Input - General'!$F$22))","v":0},{"$f":"IF(BO$6=0,0,(1+$D170)^(BO$6-'Data Input - General'!$F$22))","v":0},{"$f":"IF(BP$6=0,0,(1+$D170)^(BP$6-'Data Input - General'!$F$22))","v":0},{"$f":"IF(BQ$6=0,0,(1+$D170)^(BQ$6-'Data Input - General'!$F$22))","v":0},{"$f":"IF(BR$6=0,0,(1+$D170)^(BR$6-'Data Input - General'!$F$22))","v":0},{"$f":"IF(BS$6=0,0,(1+$D170)^(BS$6-'Data Input - General'!$F$22))","v":0},{"$f":"IF(BT$6=0,0,(1+$D170)^(BT$6-'Data Input - General'!$F$22))","v":0},{"$f":"IF(BU$6=0,0,(1+$D170)^(BU$6-'Data Input - General'!$F$22))","v":0},{"$f":"IF(BV$6=0,0,(1+$D170)^(BV$6-'Data Input - General'!$F$22))","v":0},{"$f":"IF(BW$6=0,0,(1+$D170)^(BW$6-'Data Input - General'!$F$22))","v":0},{"$f":"IF(BX$6=0,0,(1+$D170)^(BX$6-'Data Input - General'!$F$22))","v":0},{"$f":"IF(BY$6=0,0,(1+$D170)^(BY$6-'Data Input - General'!$F$22))","v":0},{"$f":"IF(BZ$6=0,0,(1+$D170)^(BZ$6-'Data Input - General'!$F$22))","v":0},{"$f":"IF(CA$6=0,0,(1+$D170)^(CA$6-'Data Input - General'!$F$22))","v":0},{"$f":"IF(CB$6=0,0,(1+$D170)^(CB$6-'Data Input - General'!$F$22))","v":0},{"$f":"IF(CC$6=0,0,(1+$D170)^(CC$6-'Data Input - General'!$F$22))","v":0},{"$f":"IF(CD$6=0,0,(1+$D170)^(CD$6-'Data Input - General'!$F$22))","v":0},{"$f":"IF(CE$6=0,0,(1+$D170)^(CE$6-'Data Input - General'!$F$22))","v":0},{"$f":"IF(CF$6=0,0,(1+$D170)^(CF$6-'Data Input - General'!$F$22))","v":0},{"$f":"IF(CG$6=0,0,(1+$D170)^(CG$6-'Data Input - General'!$F$22))","v":0},{"$f":"IF(CH$6=0,0,(1+$D170)^(CH$6-'Data Input - General'!$F$22))","v":0},{"$f":"IF(CI$6=0,0,(1+$D170)^(CI$6-'Data Input - General'!$F$22))","v":0},{"$f":"IF(CJ$6=0,0,(1+$D170)^(CJ$6-'Data Input - General'!$F$22))","v":0},{"$f":"IF(CK$6=0,0,(1+$D170)^(CK$6-'Data Input - General'!$F$22))","v":0},{"$f":"IF(CL$6=0,0,(1+$D170)^(CL$6-'Data Input - General'!$F$22))","v":0},{"$f":"IF(CM$6=0,0,(1+$D170)^(CM$6-'Data Input - General'!$F$22))","v":0},{"$f":"IF(CN$6=0,0,(1+$D170)^(CN$6-'Data Input - General'!$F$22))","v":0},{"$f":"IF(CO$6=0,0,(1+$D170)^(CO$6-'Data Input - General'!$F$22))","v":0},{"$f":"IF(CP$6=0,0,(1+$D170)^(CP$6-'Data Input - General'!$F$22))","v":0},{"$f":"IF(CQ$6=0,0,(1+$D170)^(CQ$6-'Data Input - General'!$F$22))","v":0},{"$f":"IF(CR$6=0,0,(1+$D170)^(CR$6-'Data Input - General'!$F$22))","v":0},{"$f":"IF(CS$6=0,0,(1+$D170)^(CS$6-'Data Input - General'!$F$22))","v":0},{"$f":"IF(CT$6=0,0,(1+$D170)^(CT$6-'Data Input - General'!$F$22))","v":0},{"$f":"IF(CU$6=0,0,(1+$D170)^(CU$6-'Data Input - General'!$F$22))","v":0},{"$f":"IF(CV$6=0,0,(1+$D170)^(CV$6-'Data Input - General'!$F$22))","v":0},{"$f":"IF(CW$6=0,0,(1+$D170)^(CW$6-'Data Input - General'!$F$22))","v":0},{"$f":"IF(CX$6=0,0,(1+$D170)^(CX$6-'Data Input - General'!$F$22))","v":0},{"$f":"IF(CY$6=0,0,(1+$D170)^(CY$6-'Data Input - General'!$F$22))","v":0}]
[null,"Total value","£000's",{"$f":"SUM(D162:D167)*D171","v":10.600272350312391},{"$f":"SUM(E162:E167)*E171","v":2.8760658940867581},{"$f":"SUM(F162:F167)*F171","v":2.9335872119684931},{"$f":"SUM(G162:G167)*G171","v":2.9922589562078628},3.0521041353320202,3.1131462180386604,3.1754091423994337,3.2389173252474217,0,0,0,0,0,0,0,0,0,0,0,0,0,0,0,0,0,0,0,0,0,0,0,0,{"$f":"SUM(AJ162:AJ167)*AJ171","v":0},0,0,0,0,0,0,0,0,0,0,0,0,0,0,0,0,0,0,0,0,0,0,0,0,0,0,0,{"$f":"SUM(BL162:BL167)*BL171","v":0},0,0,0,0,0,0,0,0,0,0,0,0,0,0,0,0,0,0,0,0,0,0,0,0,0,0,0,0,0,0,0,0,0,0,0,0,0,0,0]
[null,"Discounted total value","£000's",{"$f":"D172*D$7","v":10.600272350312391},2.7788076271369646,2.7385350528306316,2.6988461390214922,2.6597324268617606,2.6211855800956481,2.583197383282668,2.5457597400466874,0,0,0,0,0,0,0,0,0,0,0,0,0,0,0,0,0,0,0,0,0,0,0,0,0,0,0,0,0,0,0,0,0,0,0,0,0,0,0,0,0,0,0,0,0,0,0,0,0,0,0,0,0,0,0,0,{"$f":"BP172*BP$7","v":0},0,0,0,0,0,0,0,0,0,0,0,0,0,0,0,0,0,0,0,0,0,0,0,0,0,0,0,0,0,0,0,0,0,0,0]
[]
[null,"Low high capex"]
[]
[null,"Low high range","%",{"$f":"'Data Input - BAT'!F34","v":0.3}]
[]
[null,"Low high opex"]
[]
[null,"Low high range","%",{"$f":"'Data Input - BAT'!F54","v":0.2}]
[]
[null,"Low high WACC"]
[]
[null,"Low WACC","%",{"$f":"'Data Input - General'!F16","v":0.06}]
[null,"Annualised payment","£000's",{"$f":"IFERROR(-PMT($D$185,SUM('Data Input - General'!$H$26:$H$28),D20*1000)/1000,0)","v":836.2747299858114}]
[null,"Annual value","£000's",{"$f":"IF(SUM($D$12:D$12)=0,0,$D$186)","v":836.2747299858114},{"$f":"IF(SUM($D$12:E$12)=0,0,$D$186)","v":836.2747299858114},{"$f":"IF(SUM($D$12:F$12)=0,0,$D$186)","v":836.2747299858114},{"$f":"IF(SUM($D$12:G$12)=0,0,$D$186)","v":836.2747299858114},{"$f":"IF(SUM($D$12:H$12)=0,0,$D$186)","v":836.2747299858114},{"$f":"IF(SUM($D$12:I$12)=0,0,$D$186)","v":836.2747299858114},{"$f":"IF(SUM($D$12:J$12)=0,0,$D$186)","v":836.2747299858114},{"$f":"IF(SUM($D$12:K$12)=0,0,$D$186)","v":836.2747299858114},{"$f":"IF(SUM($D$12:L$12)=0,0,$D$186)","v":836.2747299858114},{"$f":"IF(SUM($D$12:M$12)=0,0,$D$186)","v":836.2747299858114},{"$f":"IF(SUM($D$12:N$12)=0,0,$D$186)","v":836.2747299858114},{"$f":"IF(SUM($D$12:O$12)=0,0,$D$186)","v":836.2747299858114},{"$f":"IF(SUM($D$12:P$12)=0,0,$D$186)","v":836.2747299858114},{"$f":"IF(SUM($D$12:Q$12)=0,0,$D$186)","v":836.2747299858114},{"$f":"IF(SUM($D$12:R$12)=0,0,$D$186)","v":836.2747299858114},{"$f":"IF(SUM($D$12:S$12)=0,0,$D$186)","v":836.2747299858114},{"$f":"IF(SUM($D$12:T$12)=0,0,$D$186)","v":836.2747299858114},{"$f":"IF(SUM($D$12:U$12)=0,0,$D$186)","v":836.2747299858114},{"$f":"IF(SUM($D$12:V$12)=0,0,$D$186)","v":836.2747299858114},{"$f":"IF(SUM($D$12:W$12)=0,0,$D$186)","v":836.2747299858114},{"$f":"IF(SUM($D$12:X$12)=0,0,$D$186)","v":836.2747299858114},{"$f":"IF(SUM($D$12:Y$12)=0,0,$D$186)","v":836.2747299858114},{"$f":"IF(SUM($D$12:Z$12)=0,0,$D$186)","v":836.2747299858114},{"$f":"IF(SUM($D$12:AA$12)=0,0,$D$186)","v":836.2747299858114},{"$f":"IF(SUM($D$12:AB$12)=0,0,$D$186)","v":836.2747299858114},{"$f":"IF(SUM($D$12:AC$12)=0,0,$D$186)","v":836.2747299858114},{"$f":"IF(SUM($D$12:AD$12)=0,0,$D$186)","v":836.2747299858114},{"$f":"IF(SUM($D$12:AE$12)=0,0,$D$186)","v":836.2747299858114},{"$f":"IF(SUM($D$12:AF$12)=0,0,$D$186)","v":836.2747299858114},{"$f":"IF(SUM($D$12:AG$12)=0,0,$D$186)","v":836.2747299858114},{"$f":"IF(SUM($D$12:AH$12)=0,0,$D$186)","v":836.2747299858114},{"$f":"IF(SUM($D$12:AI$12)=0,0,$D$186)","v":836.2747299858114},{"$f":"IF(SUM($D$12:AJ$12)=0,0,$D$186)","v":836.2747299858114},{"$f":"IF(SUM($D$12:AK$12)=0,0,$D$186)","v":836.2747299858114},{"$f":"IF(SUM($D$12:AL$12)=0,0,$D$186)","v":836.2747299858114},{"$f":"IF(SUM($D$12:AM$12)=0,0,$D$186)","v":836.2747299858114},{"$f":"IF(SUM($D$12:AN$12)=0,0,$D$186)","v":836.2747299858114},{"$f":"IF(SUM($D$12:AO$12)=0,0,$D$186)","v":836.2747299858114},{"$f":"IF(SUM($D$12:AP$12)=0,0,$D$186)","v":836.2747299858114},{"$f":"IF(SUM($D$12:AQ$12)=0,0,$D$186)","v":836.2747299858114},{"$f":"IF(SUM($D$12:AR$12)=0,0,$D$186)","v":836.2747299858114},{"$f":"IF(SUM($D$12:AS$12)=0,0,$D$186)","v":836.2747299858114},{"$f":"IF(SUM($D$12:AT$12)=0,0,$D$186)","v":836.2747299858114},{"$f":"IF(SUM($D$12:AU$12)=0,0,$D$186)","v":836.2747299858114},{"$f":"IF(SUM($D$12:AV$12)=0,0,$D$186)","v":836.2747299858114},{"$f":"IF(SUM($D$12:AW$12)=0,0,$D$186)","v":836.2747299858114},{"$f":"IF(SUM($D$12:AX$12)=0,0,$D$186)","v":836.2747299858114},{"$f":"IF(SUM($D$12:AY$12)=0,0,$D$186)","v":836.2747299858114},{"$f":"IF(SUM($D$12:AZ$12)=0,0,$D$186)","v":836.2747299858114},{"$f":"IF(SUM($D$12:BA$12)=0,0,$D$186)","v":836.2747299858114},{"$f":"IF(SUM($D$12:BB$12)=0,0,$D$186)","v":836.2747299858114},{"$f":"IF(SUM($D$12:BC$12)=0,0,$D$186)","v":836.2747299858114},{"$f":"IF(SUM($D$12:BD$12)=0,0,$D$186)","v":836.2747299858114},{"$f":"IF(SUM($D$12:BE$12)=0,0,$D$186)","v":836.2747299858114},{"$f":"IF(SUM($D$12:BF$12)=0,0,$D$186)","v":836.2747299858114},{"$f":"IF(SUM($D$12:BG$12)=0,0,$D$186)","v":836.2747299858114},{"$f":"IF(SUM($D$12:BH$12)=0,0,$D$186)","v":836.2747299858114},{"$f":"IF(SUM($D$12:BI$12)=0,0,$D$186)","v":836.2747299858114},{"$f":"IF(SUM($D$12:BJ$12)=0,0,$D$186)","v":836.2747299858114},{"$f":"IF(SUM($D$12:BK$12)=0,0,$D$186)","v":836.2747299858114},{"$f":"IF(SUM($D$12:BL$12)=0,0,$D$186)","v":836.2747299858114},{"$f":"IF(SUM($D$12:BM$12)=0,0,$D$186)","v":836.2747299858114},{"$f":"IF(SUM($D$12:BN$12)=0,0,$D$186)","v":836.2747299858114},{"$f":"IF(SUM($D$12:BO$12)=0,0,$D$186)","v":836.2747299858114},{"$f":"IF(SUM($D$12:BP$12)=0,0,$D$186)","v":836.2747299858114},{"$f":"IF(SUM($D$12:BQ$12)=0,0,$D$186)","v":836.2747299858114},{"$f":"IF(SUM($D$12:BR$12)=0,0,$D$186)","v":836.2747299858114},{"$f":"IF(SUM($D$12:BS$12)=0,0,$D$186)","v":836.2747299858114},{"$f":"IF(SUM($D$12:BT$12)=0,0,$D$186)","v":836.2747299858114},{"$f":"IF(SUM($D$12:BU$12)=0,0,$D$186)","v":836.2747299858114},{"$f":"IF(SUM($D$12:BV$12)=0,0,$D$186)","v":836.2747299858114},{"$f":"IF(SUM($D$12:BW$12)=0,0,$D$186)","v":836.2747299858114},{"$f":"IF(SUM($D$12:BX$12)=0,0,$D$186)","v":836.2747299858114},{"$f":"IF(SUM($D$12:BY$12)=0,0,$D$186)","v":836.2747299858114},{"$f":"IF(SUM($D$12:BZ$12)=0,0,$D$186)","v":836.2747299858114},{"$f":"IF(SUM($D$12:CA$12)=0,0,$D$186)","v":836.2747299858114},{"$f":"IF(SUM($D$12:CB$12)=0,0,$D$186)","v":836.2747299858114},{"$f":"IF(SUM($D$12:CC$12)=0,0,$D$186)","v":836.2747299858114},{"$f":"IF(SUM($D$12:CD$12)=0,0,$D$186)","v":836.2747299858114},{"$f":"IF(SUM($D$12:CE$12)=0,0,$D$186)","v":836.2747299858114},{"$f":"IF(SUM($D$12:CF$12)=0,0,$D$186)","v":836.2747299858114},{"$f":"IF(SUM($D$12:CG$12)=0,0,$D$186)","v":836.2747299858114},{"$f":"IF(SUM($D$12:CH$12)=0,0,$D$186)","v":836.2747299858114},{"$f":"IF(SUM($D$12:CI$12)=0,0,$D$186)","v":836.2747299858114},{"$f":"IF(SUM($D$12:CJ$12)=0,0,$D$186)","v":836.2747299858114},{"$f":"IF(SUM($D$12:CK$12)=0,0,$D$186)","v":836.2747299858114},{"$f":"IF(SUM($D$12:CL$12)=0,0,$D$186)","v":836.2747299858114},{"$f":"IF(SUM($D$12:CM$12)=0,0,$D$186)","v":836.2747299858114},{"$f":"IF(SUM($D$12:CN$12)=0,0,$D$186)","v":836.2747299858114},{"$f":"IF(SUM($D$12:CO$12)=0,0,$D$186)","v":836.2747299858114},{"$f":"IF(SUM($D$12:CP$12)=0,0,$D$186)","v":836.2747299858114},{"$f":"IF(SUM($D$12:CQ$12)=0,0,$D$186)","v":836.2747299858114},{"$f":"IF(SUM($D$12:CR$12)=0,0,$D$186)","v":836.2747299858114},{"$f":"IF(SUM($D$12:CS$12)=0,0,$D$186)","v":836.2747299858114},{"$f":"IF(SUM($D$12:CT$12)=0,0,$D$186)","v":836.2747299858114},{"$f":"IF(SUM($D$12:CU$12)=0,0,$D$186)","v":836.2747299858114},{"$f":"IF(SUM($D$12:CV$12)=0,0,$D$186)","v":836.2747299858114},{"$f":"IF(SUM($D$12:CW$12)=0,0,$D$186)","v":836.2747299858114},{"$f":"IF(SUM($D$12:CX$12)=0,0,$D$186)","v":836.2747299858114},{"$f":"IF(SUM($D$12:CY$12)=0,0,$D$186)","v":836.2747299858114}]
[null,"Discounted WACC","£000's",{"$f":"D187*D$7","v":836.2747299858114},807.9949081988517,780.67140888777942,754.27189264519757,728.76511366685759,704.12088276991074,680.31003166174958,657.30437841714945,635.07669412284974,613.6006706500965,592.85088951700141,572.80279180386617,553.43264908586116,534.71753534865809,516.63529985377602,499.1645409215227,482.28458060050508,465.97544019372475,450.21781661229448,434.99305952878694,420.28314930317583,406.07067565524238,392.33881705820522,379.07132082918383,366.25248389293131,353.86713419606889,341.90061274982509,330.33875628002426,319.16788046379156,308.374763733132,299.39297449818639,0,0,0,0,0,0,0,0,0,0,0,0,0,0,0,0,0,0,0,0,0,0,0,0,0,0,0,0,0,0,0,0,0,{"$f":"BP187*BP$7","v":0},0,0,0,0,0,0,0,0,0,0,0,0,0,0,0,0,0,0,0,0,0,0,0,0,0,0,0,0,0,0,0,0,0,0,0]
[]
[null,"Financing costs"]
[null,"Financing costs (if entered manually)","£000's",{"$f":"'Data Input - BAT'!H41","v":0},{"$f":"'Data Input - BAT'!I41","v":0},{"$f":"'Data Input - BAT'!J41","v":0},{"$f":"'Data Input - BAT'!K41","v":0},{"$f":"'Data Input - BAT'!L41","v":0},{"$f":"'Data Input - BAT'!M41","v":0},{"$f":"'Data Input - BAT'!N41","v":0},{"$f":"'Data Input - BAT'!O41","v":0},{"$f":"'Data Input - BAT'!P41","v":0},{"$f":"'Data Input - BAT'!Q41","v":0},{"$f":"'Data Input - BAT'!R41","v":0},{"$f":"'Data Input - BAT'!S41","v":0},{"$f":"'Data Input - BAT'!T41","v":0},{"$f":"'Data Input - BAT'!U41","v":0},{"$f":"'Data Input - BAT'!V41","v":0},{"$f":"'Data Input - BAT'!W41","v":0},{"$f":"'Data Input - BAT'!X41","v":0},{"$f":"'Data Input - BAT'!Y41","v":0},{"$f":"'Data Input - BAT'!Z41","v":0},{"$f":"'Data Input - BAT'!AA41","v":0},{"$f":"'Data Input - BAT'!AB41","v":0},{"$f":"'Data Input - BAT'!AC41","v":0},{"$f":"'Data Input - BAT'!AD41","v":0},{"$f":"'Data Input - BAT'!AE41","v":0},{"$f":"'Data Input - BAT'!AF41","v":0},{"$f":"'Data Input - BAT'!AG41","v":0},{"$f":"'Data Input - BAT'!AH41","v":0},{"$f":"'Data Input - BAT'!AI41","v":0},{"$f":"'Data Input - BAT'!AJ41","v":0},{"$f":"'Data Input - BAT'!AK41","v":0},{"$f":"'Data Input - BAT'!AL41","v":0},{"$f":"'Data Input - BAT'!AM41","v":0},{"$f":"'Data Input - BAT'!AN41","v":0},{"$f":"'Data Input - BAT'!AO41","v":0},{"$f":"'Data Input - BAT'!AP41","v":0},{"$f":"'Data Input - BAT'!AQ41","v":0},{"$f":"'Data Input - BAT'!AR41","v":0},{"$f":"'Data Input - BAT'!AS41","v":0},{"$f":"'Data Input - BAT'!AT41","v":0},{"$f":"'Data Input - BAT'!AU41","v":0},{"$f":"'Data Input - BAT'!AV41","v":0},{"$f":"'Data Input - BAT'!AW41","v":0},{"$f":"'Data Input - BAT'!AX41","v":0},{"$f":"'Data Input - BAT'!AY41","v":0},{"$f":"'Data Input - BAT'!AZ41","v":0},{"$f":"'Data Input - BAT'!BA41","v":0},{"$f":"'Data Input - BAT'!BB41","v":0},{"$f":"'Data Input - BAT'!BC41","v":0},{"$f":"'Data Input - BAT'!BD41","v":0},{"$f":"'Data Input - BAT'!BE41","v":0},{"$f":"'Data Input - BAT'!BF41","v":0},{"$f":"'Data Input - BAT'!BG41","v":0},{"$f":"'Data Input - BAT'!BH41","v":0},{"$f":"'Data Input - BAT'!BI41","v":0},{"$f":"'Data Input - BAT'!BJ41","v":0},{"$f":"'Data Input - BAT'!BK41","v":0},{"$f":"'Data Input - BAT'!BL41","v":0},{"$f":"'Data Input - BAT'!BM41","v":0},{"$f":"'Data Input - BAT'!BN41","v":0},{"$f":"'Data Input - BAT'!BO41","v":0},{"$f":"'Data Input - BAT'!BP41","v":0},{"$f":"'Data Input - BAT'!BQ41","v":0},{"$f":"'Data Input - BAT'!BR41","v":0},{"$f":"'Data Input - BAT'!BS41","v":0},{"$f":"'Data Input - BAT'!BT41","v":0},{"$f":"'Data Input - BAT'!BU41","v":0},{"$f":"'Data Input - BAT'!BV41","v":0},{"$f":"'Data Input - BAT'!BW41","v":0},{"$f":"'Data Input - BAT'!BX41","v":0},{"$f":"'Data Input - BAT'!BY41","v":0},{"$f":"'Data Input - BAT'!BZ41","v":0},{"$f":"'Data Input - BAT'!CA41","v":0},{"$f":"'Data Input - BAT'!CB41","v":0},{"$f":"'Data Input - BAT'!CC41","v":0},{"$f":"'Data Input - BAT'!CD41","v":0},{"$f":"'Data Input - BAT'!CE41","v":0},{"$f":"'Data Input - BAT'!CF41","v":0},{"$f":"'Data Input - BAT'!CG41","v":0},{"$f":"'Data Input - BAT'!CH41","v":0},{"$f":"'Data Input - BAT'!CI41","v":0},{"$f":"'Data Input - BAT'!CJ41","v":0},{"$f":"'Data Input - BAT'!CK41","v":0},{"$f":"'Data Input - BAT'!CL41","v":0},{"$f":"'Data Input - BAT'!CM41","v":0},{"$f":"'Data Input - BAT'!CN41","v":0},{"$f":"'Data Input - BAT'!CO41","v":0},{"$f":"'Data Input - BAT'!CP41","v":0},{"$f":"'Data Input - BAT'!CQ41","v":0},{"$f":"'Data Input - BAT'!CR41","v":0},{"$f":"'Data Input - BAT'!CS41","v":0},{"$f":"'Data Input - BAT'!CT41","v":0},{"$f":"'Data Input - BAT'!CU41","v":0},{"$f":"'Data Input - BAT'!CV41","v":0},{"$f":"'Data Input - BAT'!CW41","v":0},{"$f":"'Data Input - BAT'!CX41","v":0},{"$f":"'Data Input - BAT'!CY41","v":0},{"$f":"'Data Input - BAT'!CZ41","v":0},{"$f":"'Data Input - BAT'!DA41","v":0},{"$f":"'Data Input - BAT'!DB41","v":0},{"$f":"'Data Input - BAT'!DC41","v":0}]
[null,"Discounted finacning","£000's",{"$f":"D191*D$7","v":0},0,0,0,0,0,0,0,0,0,0,0,0,0,0,0,0,0,0,0,0,0,0,0,0,0,0,0,0,0,0,0,0,0,0,0,0,0,0,0,0,0,0,0,0,0,0,0,0,0,0,0,0,0,0,0,0,0,0,0,0,0,0,0,{"$f":"BP191*BP$7","v":0},0,0,0,0,0,0,0,0,0,0,0,0,0,0,0,0,0,0,0,0,0,0,0,0,0,0,0,0,0,0,0,0,0,0,0]
[]
[null,"Total capex","£000's",{"$f":"IF('Data Input - BAT'!$F$37=\"Yes\",D192+D13,D188)","v":836.2747299858114},{"$f":"IF('Data Input - BAT'!$F$37=\"Yes\",E192+E13,E188)","v":807.9949081988517},{"$f":"IF('Data Input - BAT'!$F$37=\"Yes\",F192+F13,F188)","v":780.67140888777942},{"$f":"IF('Data Input - BAT'!$F$37=\"Yes\",G192+G13,G188)","v":754.27189264519757},{"$f":"IF('Data Input - BAT'!$F$37=\"Yes\",H192+H13,H188)","v":728.76511366685759},{"$f":"IF('Data Input - BAT'!$F$37=\"Yes\",I192+I13,I188)","v":704.12088276991074},{"$f":"IF('Data Input - BAT'!$F$37=\"Yes\",J192+J13,J188)","v":680.31003166174958},{"$f":"IF('Data Input - BAT'!$F$37=\"Yes\",K192+K13,K188)","v":657.30437841714945},{"$f":"IF('Data Input - BAT'!$F$37=\"Yes\",L192+L13,L188)","v":635.07669412284974},{"$f":"IF('Data Input - BAT'!$F$37=\"Yes\",M192+M13,M188)","v":613.6006706500965},{"$f":"IF('Data Input - BAT'!$F$37=\"Yes\",N192+N13,N188)","v":592.85088951700141},{"$f":"IF('Data Input - BAT'!$F$37=\"Yes\",O192+O13,O188)","v":572.80279180386617},{"$f":"IF('Data Input - BAT'!$F$37=\"Yes\",P192+P13,P188)","v":553.43264908586116},{"$f":"IF('Data Input - BAT'!$F$37=\"Yes\",Q192+Q13,Q188)","v":534.71753534865809},{"$f":"IF('Data Input - BAT'!$F$37=\"Yes\",R192+R13,R188)","v":516.63529985377602},{"$f":"IF('Data Input - BAT'!$F$37=\"Yes\",S192+S13,S188)","v":499.1645409215227},{"$f":"IF('Data Input - BAT'!$F$37=\"Yes\",T192+T13,T188)","v":482.28458060050508},{"$f":"IF('Data Input - BAT'!$F$37=\"Yes\",U192+U13,U188)","v":465.97544019372475},{"$f":"IF('Data Input - BAT'!$F$37=\"Yes\",V192+V13,V188)","v":450.21781661229448},{"$f":"IF('Data Input - BAT'!$F$37=\"Yes\",W192+W13,W188)","v":434.99305952878694},{"$f":"IF('Data Input - BAT'!$F$37=\"Yes\",X192+X13,X188)","v":420.28314930317583},{"$f":"IF('Data Input - BAT'!$F$37=\"Yes\",Y192+Y13,Y188)","v":406.07067565524238},{"$f":"IF('Data Input - BAT'!$F$37=\"Yes\",Z192+Z13,Z188)","v":392.33881705820522},{"$f":"IF('Data Input - BAT'!$F$37=\"Yes\",AA192+AA13,AA188)","v":379.07132082918383},{"$f":"IF('Data Input - BAT'!$F$37=\"Yes\",AB192+AB13,AB188)","v":366.25248389293131},{"$f":"IF('Data Input - BAT'!$F$37=\"Yes\",AC192+AC13,AC188)","v":353.86713419606889},{"$f":"IF('Data Input - BAT'!$F$37=\"Yes\",AD192+AD13,AD188)","v":341.90061274982509},{"$f":"IF('Data Input - BAT'!$F$37=\"Yes\",AE192+AE13,AE188)","v":330.33875628002426},{"$f":"IF('Data Input - BAT'!$F$37=\"Yes\",AF192+AF13,AF188)","v":319.16788046379156},{"$f":"IF('Data Input - BAT'!$F$37=\"Yes\",AG192+AG13,AG188)","v":308.374763733132},{"$f":"IF('Data Input - BAT'!$F$37=\"Yes\",AH192+AH13,AH188)","v":299.39297449818639},{"$f":"IF('Data Input - BAT'!$F$37=\"Yes\",AI192+AI13,AI188)","v":0},{"$f":"IF('Data Input - BAT'!$F$37=\"Yes\",AJ192+AJ13,AJ188)","v":0},{"$f":"IF('Data Input - BAT'!$F$37=\"Yes\",AK192+AK13,AK188)","v":0},{"$f":"IF('Data Input - BAT'!$F$37=\"Yes\",AL192+AL13,AL188)","v":0},{"$f":"IF('Data Input - BAT'!$F$37=\"Yes\",AM192+AM13,AM188)","v":0},{"$f":"IF('Data Input - BAT'!$F$37=\"Yes\",AN192+AN13,AN188)","v":0},{"$f":"IF('Data Input - BAT'!$F$37=\"Yes\",AO192+AO13,AO188)","v":0},{"$f":"IF('Data Input - BAT'!$F$37=\"Yes\",AP192+AP13,AP188)","v":0},{"$f":"IF('Data Input - BAT'!$F$37=\"Yes\",AQ192+AQ13,AQ188)","v":0},{"$f":"IF('Data Input - BAT'!$F$37=\"Yes\",AR192+AR13,AR188)","v":0},{"$f":"IF('Data Input - BAT'!$F$37=\"Yes\",AS192+AS13,AS188)","v":0},{"$f":"IF('Data Input - BAT'!$F$37=\"Yes\",AT192+AT13,AT188)","v":0},{"$f":"IF('Data Input - BAT'!$F$37=\"Yes\",AU192+AU13,AU188)","v":0},{"$f":"IF('Data Input - BAT'!$F$37=\"Yes\",AV192+AV13,AV188)","v":0},{"$f":"IF('Data Input - BAT'!$F$37=\"Yes\",AW192+AW13,AW188)","v":0},{"$f":"IF('Data Input - BAT'!$F$37=\"Yes\",AX192+AX13,AX188)","v":0},{"$f":"IF('Data Input - BAT'!$F$37=\"Yes\",AY192+AY13,AY188)","v":0},{"$f":"IF('Data Input - BAT'!$F$37=\"Yes\",AZ192+AZ13,AZ188)","v":0},{"$f":"IF('Data Input - BAT'!$F$37=\"Yes\",BA192+BA13,BA188)","v":0},{"$f":"IF('Data Input - BAT'!$F$37=\"Yes\",BB192+BB13,BB188)","v":0},{"$f":"IF('Data Input - BAT'!$F$37=\"Yes\",BC192+BC13,BC188)","v":0},{"$f":"IF('Data Input - BAT'!$F$37=\"Yes\",BD192+BD13,BD188)","v":0},{"$f":"IF('Data Input - BAT'!$F$37=\"Yes\",BE192+BE13,BE188)","v":0},{"$f":"IF('Data Input - BAT'!$F$37=\"Yes\",BF192+BF13,BF188)","v":0},{"$f":"IF('Data Input - BAT'!$F$37=\"Yes\",BG192+BG13,BG188)","v":0},{"$f":"IF('Data Input - BAT'!$F$37=\"Yes\",BH192+BH13,BH188)","v":0},{"$f":"IF('Data Input - BAT'!$F$37=\"Yes\",BI192+BI13,BI188)","v":0},{"$f":"IF('Data Input - BAT'!$F$37=\"Yes\",BJ192+BJ13,BJ188)","v":0},{"$f":"IF('Data Input - BAT'!$F$37=\"Yes\",BK192+BK13,BK188)","v":0},{"$f":"IF('Data Input - BAT'!$F$37=\"Yes\",BL192+BL13,BL188)","v":0},{"$f":"IF('Data Input - BAT'!$F$37=\"Yes\",BM192+BM13,BM188)","v":0},{"$f":"IF('Data Input - BAT'!$F$37=\"Yes\",BN192+BN13,BN188)","v":0},{"$f":"IF('Data Input - BAT'!$F$37=\"Yes\",BO192+BO13,BO188)","v":0},{"$f":"IF('Data Input - BAT'!$F$37=\"Yes\",BP192+BP13,BP188)","v":0},{"$f":"IF('Data Input - BAT'!$F$37=\"Yes\",BQ192+BQ13,BQ188)","v":0},{"$f":"IF('Data Input - BAT'!$F$37=\"Yes\",BR192+BR13,BR188)","v":0},{"$f":"IF('Data Input - BAT'!$F$37=\"Yes\",BS192+BS13,BS188)","v":0},{"$f":"IF('Data Input - BAT'!$F$37=\"Yes\",BT192+BT13,BT188)","v":0},{"$f":"IF('Data Input - BAT'!$F$37=\"Yes\",BU192+BU13,BU188)","v":0},{"$f":"IF('Data Input - BAT'!$F$37=\"Yes\",BV192+BV13,BV188)","v":0},{"$f":"IF('Data Input - BAT'!$F$37=\"Yes\",BW192+BW13,BW188)","v":0},{"$f":"IF('Data Input - BAT'!$F$37=\"Yes\",BX192+BX13,BX188)","v":0},{"$f":"IF('Data Input - BAT'!$F$37=\"Yes\",BY192+BY13,BY188)","v":0},{"$f":"IF('Data Input - BAT'!$F$37=\"Yes\",BZ192+BZ13,BZ188)","v":0},{"$f":"IF('Data Input - BAT'!$F$37=\"Yes\",CA192+CA13,CA188)","v":0},{"$f":"IF('Data Input - BAT'!$F$37=\"Yes\",CB192+CB13,CB188)","v":0},{"$f":"IF('Data Input - BAT'!$F$37=\"Yes\",CC192+CC13,CC188)","v":0},{"$f":"IF('Data Input - BAT'!$F$37=\"Yes\",CD192+CD13,CD188)","v":0},{"$f":"IF('Data Input - BAT'!$F$37=\"Yes\",CE192+CE13,CE188)","v":0},{"$f":"IF('Data Input - BAT'!$F$37=\"Yes\",CF192+CF13,CF188)","v":0},{"$f":"IF('Data Input - BAT'!$F$37=\"Yes\",CG192+CG13,CG188)","v":0},{"$f":"IF('Data Input - BAT'!$F$37=\"Yes\",CH192+CH13,CH188)","v":0},{"$f":"IF('Data Input - BAT'!$F$37=\"Yes\",CI192+CI13,CI188)","v":0},{"$f":"IF('Data Input - BAT'!$F$37=\"Yes\",CJ192+CJ13,CJ188)","v":0},{"$f":"IF('Data Input - BAT'!$F$37=\"Yes\",CK192+CK13,CK188)","v":0},{"$f":"IF('Data Input - BAT'!$F$37=\"Yes\",CL192+CL13,CL188)","v":0},{"$f":"IF('Data Input - BAT'!$F$37=\"Yes\",CM192+CM13,CM188)","v":0},{"$f":"IF('Data Input - BAT'!$F$37=\"Yes\",CN192+CN13,CN188)","v":0},{"$f":"IF('Data Input - BAT'!$F$37=\"Yes\",CO192+CO13,CO188)","v":0},{"$f":"IF('Data Input - BAT'!$F$37=\"Yes\",CP192+CP13,CP188)","v":0},{"$f":"IF('Data Input - BAT'!$F$37=\"Yes\",CQ192+CQ13,CQ188)","v":0},{"$f":"IF('Data Input - BAT'!$F$37=\"Yes\",CR192+CR13,CR188)","v":0},{"$f":"IF('Data Input - BAT'!$F$37=\"Yes\",CS192+CS13,CS188)","v":0},{"$f":"IF('Data Input - BAT'!$F$37=\"Yes\",CT192+CT13,CT188)","v":0},{"$f":"IF('Data Input - BAT'!$F$37=\"Yes\",CU192+CU13,CU188)","v":0},{"$f":"IF('Data Input - BAT'!$F$37=\"Yes\",CV192+CV13,CV188)","v":0},{"$f":"IF('Data Input - BAT'!$F$37=\"Yes\",CW192+CW13,CW188)","v":0},{"$f":"IF('Data Input - BAT'!$F$37=\"Yes\",CX192+CX13,CX188)","v":0},{"$f":"IF('Data Input - BAT'!$F$37=\"Yes\",CY192+CY13,CY188)","v":0}]
[]
[null,"High WACC","%",{"$f":"'Data Input - General'!H16","v":7.0000000000000007E-2}]
[null,"Annualised payment","£000's",{"$f":"IFERROR(-PMT($D$196,SUM('Data Input - General'!$H$26:$H$28),D20*1000)/1000,0)","v":907.93919837307897}]
[null,"Annual value","£000's",{"$f":"IF(SUM($D$12:D$12)=0,0,$D$197)","v":907.93919837307897},{"$f":"IF(SUM($D$12:E$12)=0,0,$D$197)","v":907.93919837307897},{"$f":"IF(SUM($D$12:F$12)=0,0,$D$197)","v":907.93919837307897},{"$f":"IF(SUM($D$12:G$12)=0,0,$D$197)","v":907.93919837307897},{"$f":"IF(SUM($D$12:H$12)=0,0,$D$197)","v":907.93919837307897},{"$f":"IF(SUM($D$12:I$12)=0,0,$D$197)","v":907.93919837307897},{"$f":"IF(SUM($D$12:J$12)=0,0,$D$197)","v":907.93919837307897},{"$f":"IF(SUM($D$12:K$12)=0,0,$D$197)","v":907.93919837307897},{"$f":"IF(SUM($D$12:L$12)=0,0,$D$197)","v":907.93919837307897},{"$f":"IF(SUM($D$12:M$12)=0,0,$D$197)","v":907.93919837307897},{"$f":"IF(SUM($D$12:N$12)=0,0,$D$197)","v":907.93919837307897},{"$f":"IF(SUM($D$12:O$12)=0,0,$D$197)","v":907.93919837307897},{"$f":"IF(SUM($D$12:P$12)=0,0,$D$197)","v":907.93919837307897},{"$f":"IF(SUM($D$12:Q$12)=0,0,$D$197)","v":907.93919837307897},{"$f":"IF(SUM($D$12:R$12)=0,0,$D$197)","v":907.93919837307897},{"$f":"IF(SUM($D$12:S$12)=0,0,$D$197)","v":907.93919837307897},{"$f":"IF(SUM($D$12:T$12)=0,0,$D$197)","v":907.93919837307897},{"$f":"IF(SUM($D$12:U$12)=0,0,$D$197)","v":907.93919837307897},{"$f":"IF(SUM($D$12:V$12)=0,0,$D$197)","v":907.93919837307897},{"$f":"IF(SUM($D$12:W$12)=0,0,$D$197)","v":907.93919837307897},{"$f":"IF(SUM($D$12:X$12)=0,0,$D$197)","v":907.93919837307897},{"$f":"IF(SUM($D$12:Y$12)=0,0,$D$197)","v":907.93919837307897},{"$f":"IF(SUM($D$12:Z$12)=0,0,$D$197)","v":907.93919837307897},{"$f":"IF(SUM($D$12:AA$12)=0,0,$D$197)","v":907.93919837307897},{"$f":"IF(SUM($D$12:AB$12)=0,0,$D$197)","v":907.93919837307897},{"$f":"IF(SUM($D$12:AC$12)=0,0,$D$197)","v":907.93919837307897},{"$f":"IF(SUM($D$12:AD$12)=0,0,$D$197)","v":907.93919837307897},{"$f":"IF(SUM($D$12:AE$12)=0,0,$D$197)","v":907.93919837307897},{"$f":"IF(SUM($D$12:AF$12)=0,0,$D$197)","v":907.93919837307897},{"$f":"IF(SUM($D$12:AG$12)=0,0,$D$197)","v":907.93919837307897},{"$f":"IF(SUM($D$12:AH$12)=0,0,$D$197)","v":907.93919837307897},{"$f":"IF(SUM($D$12:AI$12)=0,0,$D$197)","v":907.93919837307897},{"$f":"IF(SUM($D$12:AJ$12)=0,0,$D$197)","v":907.93919837307897},{"$f":"IF(SUM($D$12:AK$12)=0,0,$D$197)","v":907.93919837307897},{"$f":"IF(SUM($D$12:AL$12)=0,0,$D$197)","v":907.93919837307897},{"$f":"IF(SUM($D$12:AM$12)=0,0,$D$197)","v":907.93919837307897},{"$f":"IF(SUM($D$12:AN$12)=0,0,$D$197)","v":907.93919837307897},{"$f":"IF(SUM($D$12:AO$12)=0,0,$D$197)","v":907.93919837307897},{"$f":"IF(SUM($D$12:AP$12)=0,0,$D$197)","v":907.93919837307897},{"$f":"IF(SUM($D$12:AQ$12)=0,0,$D$197)","v":907.93919837307897},{"$f":"IF(SUM($D$12:AR$12)=0,0,$D$197)","v":907.93919837307897},{"$f":"IF(SUM($D$12:AS$12)=0,0,$D$197)","v":907.93919837307897},{"$f":"IF(SUM($D$12:AT$12)=0,0,$D$197)","v":907.93919837307897},{"$f":"IF(SUM($D$12:AU$12)=0,0,$D$197)","v":907.93919837307897},{"$f":"IF(SUM($D$12:AV$12)=0,0,$D$197)","v":907.93919837307897},{"$f":"IF(SUM($D$12:AW$12)=0,0,$D$197)","v":907.93919837307897},{"$f":"IF(SUM($D$12:AX$12)=0,0,$D$197)","v":907.93919837307897},{"$f":"IF(SUM($D$12:AY$12)=0,0,$D$197)","v":907.93919837307897},{"$f":"IF(SUM($D$12:AZ$12)=0,0,$D$197)","v":907.93919837307897},{"$f":"IF(SUM($D$12:BA$12)=0,0,$D$197)","v":907.93919837307897},{"$f":"IF(SUM($D$12:BB$12)=0,0,$D$197)","v":907.93919837307897},{"$f":"IF(SUM($D$12:BC$12)=0,0,$D$197)","v":907.93919837307897},{"$f":"IF(SUM($D$12:BD$12)=0,0,$D$197)","v":907.93919837307897},{"$f":"IF(SUM($D$12:BE$12)=0,0,$D$197)","v":907.93919837307897},{"$f":"IF(SUM($D$12:BF$12)=0,0,$D$197)","v":907.93919837307897},{"$f":"IF(SUM($D$12:BG$12)=0,0,$D$197)","v":907.93919837307897},{"$f":"IF(SUM($D$12:BH$12)=0,0,$D$197)","v":907.93919837307897},{"$f":"IF(SUM($D$12:BI$12)=0,0,$D$197)","v":907.93919837307897},{"$f":"IF(SUM($D$12:BJ$12)=0,0,$D$197)","v":907.93919837307897},{"$f":"IF(SUM($D$12:BK$12)=0,0,$D$197)","v":907.93919837307897},{"$f":"IF(SUM($D$12:BL$12)=0,0,$D$197)","v":907.93919837307897},{"$f":"IF(SUM($D$12:BM$12)=0,0,$D$197)","v":907.93919837307897},{"$f":"IF(SUM($D$12:BN$12)=0,0,$D$197)","v":907.93919837307897},{"$f":"IF(SUM($D$12:BO$12)=0,0,$D$197)","v":907.93919837307897},{"$f":"IF(SUM($D$12:BP$12)=0,0,$D$197)","v":907.93919837307897},{"$f":"IF(SUM($D$12:BQ$12)=0,0,$D$197)","v":907.93919837307897},{"$f":"IF(SUM($D$12:BR$12)=0,0,$D$197)","v":907.93919837307897},{"$f":"IF(SUM($D$12:BS$12)=0,0,$D$197)","v":907.93919837307897},{"$f":"IF(SUM($D$12:BT$12)=0,0,$D$197)","v":907.93919837307897},{"$f":"IF(SUM($D$12:BU$12)=0,0,$D$197)","v":907.93919837307897},{"$f":"IF(SUM($D$12:BV$12)=0,0,$D$197)","v":907.93919837307897},{"$f":"IF(SUM($D$12:BW$12)=0,0,$D$197)","v":907.93919837307897},{"$f":"IF(SUM($D$12:BX$12)=0,0,$D$197)","v":907.93919837307897},{"$f":"IF(SUM($D$12:BY$12)=0,0,$D$197)","v":907.93919837307897},{"$f":"IF(SUM($D$12:BZ$12)=0,0,$D$197)","v":907.93919837307897},{"$f":"IF(SUM($D$12:CA$12)=0,0,$D$197)","v":907.93919837307897},{"$f":"IF(SUM($D$12:CB$12)=0,0,$D$197)","v":907.93919837307897},{"$f":"IF(SUM($D$12:CC$12)=0,0,$D$197)","v":907.93919837307897},{"$f":"IF(SUM($D$12:CD$12)=0,0,$D$197)","v":907.93919837307897},{"$f":"IF(SUM($D$12:CE$12)=0,0,$D$197)","v":907.93919837307897},{"$f":"IF(SUM($D$12:CF$12)=0,0,$D$197)","v":907.93919837307897},{"$f":"IF(SUM($D$12:CG$12)=0,0,$D$197)","v":907.93919837307897},{"$f":"IF(SUM($D$12:CH$12)=0,0,$D$197)","v":907.93919837307897},{"$f":"IF(SUM($D$12:CI$12)=0,0,$D$197)","v":907.93919837307897},{"$f":"IF(SUM($D$12:CJ$12)=0,0,$D$197)","v":907.93919837307897},{"$f":"IF(SUM($D$12:CK$12)=0,0,$D$197)","v":907.93919837307897},{"$f":"IF(SUM($D$12:CL$12)=0,0,$D$197)","v":907.93919837307897},{"$f":"IF(SUM($D$12:CM$12)=0,0,$D$197)","v":907.93919837307897},{"$f":"IF(SUM($D$12:CN$12)=0,0,$D$197)","v":907.93919837307897},{"$f":"IF(SUM($D$12:CO$12)=0,0,$D$197)","v":907.93919837307897},{"$f":"IF(SUM($D$12:CP$12)=0,0,$D$197)","v":907.93919837307897},{"$f":"IF(SUM($D$12:CQ$12)=0,0,$D$197)","v":907.93919837307897},{"$f":"IF(SUM($D$12:CR$12)=0,0,$D$197)","v":907.93919837307897},{"$f":"IF(SUM($D$12:CS$12)=0,0,$D$197)","v":907.93919837307897},{"$f":"IF(SUM($D$12:CT$12)=0,0,$D$197)","v":907.93919837307897},{"$f":"IF(SUM($D$12:CU$12)=0,0,$D$197)","v":907.93919837307897},{"$f":"IF(SUM($D$12:CV$12)=0,0,$D$197)","v":907.93919837307897},{"$f":"IF(SUM($D$12:CW$12)=0,0,$D$197)","v":907.93919837307897},{"$f":"IF(SUM($D$12:CX$12)=0,0,$D$197)","v":907.93919837307897},{"$f":"IF(SUM($D$12:CY$12)=0,0,$D$197)","v":907.93919837307897}]
[null,"Discounted WACC","£000's",{"$f":"D198*D$7","v":907.93919837307897},877.23594045708114,847.57095696336353,818.90913716267016,791.21655764509194,764.46044216917096,738.6091228687643,713.63200277175304,689.4995195862349,666.18311071133814,643.65517943124462,621.88906225241033,600.85899734532404,580.54009405345323,560.90830343328821,541.94038979061668,523.61390317933979,505.90715283028004,488.79918147853147,472.26974055896756,456.29926624054843,440.86885627106136,425.96024760489018,411.55579478733358,397.6384490698876,384.19173823177545,371.19974708384109,358.64709863173056,346.51893587606816,334.80090422808524,325.04942158066524,0,0,0,0,0,0,0,0,0,0,0,0,0,0,0,0,0,0,0,0,0,0,0,0,0,0,0,0,0,0,0,0,0,{"$f":"BP198*BP$7","v":0},0,0,0,0,0,0,0,0,0,0,0,0,0,0,0,0,0,0,0,0,0,0,0,0,0,0,0,0,0,0,0,0,0,0,0]
[]
[null,"Financing costs"]
[null,"Financing costs (if entered manually)","£000's",{"$f":"'Data Input - BAT'!H42","v":0},{"$f":"'Data Input - BAT'!I42","v":0},{"$f":"'Data Input - BAT'!J42","v":0},{"$f":"'Data Input - BAT'!K42","v":0},{"$f":"'Data Input - BAT'!L42","v":0},{"$f":"'Data Input - BAT'!M42","v":0},{"$f":"'Data Input - BAT'!N42","v":0},{"$f":"'Data Input - BAT'!O42","v":0},{"$f":"'Data Input - BAT'!P42","v":0},{"$f":"'Data Input - BAT'!Q42","v":0},{"$f":"'Data Input - BAT'!R42","v":0},{"$f":"'Data Input - BAT'!S42","v":0},{"$f":"'Data Input - BAT'!T42","v":0},{"$f":"'Data Input - BAT'!U42","v":0},{"$f":"'Data Input - BAT'!V42","v":0},{"$f":"'Data Input - BAT'!W42","v":0},{"$f":"'Data Input - BAT'!X42","v":0},{"$f":"'Data Input - BAT'!Y42","v":0},{"$f":"'Data Input - BAT'!Z42","v":0},{"$f":"'Data Input - BAT'!AA42","v":0},{"$f":"'Data Input - BAT'!AB42","v":0},{"$f":"'Data Input - BAT'!AC42","v":0},{"$f":"'Data Input - BAT'!AD42","v":0},{"$f":"'Data Input - BAT'!AE42","v":0},{"$f":"'Data Input - BAT'!AF42","v":0},{"$f":"'Data Input - BAT'!AG42","v":0},{"$f":"'Data Input - BAT'!AH42","v":0},{"$f":"'Data Input - BAT'!AI42","v":0},{"$f":"'Data Input - BAT'!AJ42","v":0},{"$f":"'Data Input - BAT'!AK42","v":0},{"$f":"'Data Input - BAT'!AL42","v":0},{"$f":"'Data Input - BAT'!AM42","v":0},{"$f":"'Data Input - BAT'!AN42","v":0},{"$f":"'Data Input - BAT'!AO42","v":0},{"$f":"'Data Input - BAT'!AP42","v":0},{"$f":"'Data Input - BAT'!AQ42","v":0},{"$f":"'Data Input - BAT'!AR42","v":0},{"$f":"'Data Input - BAT'!AS42","v":0},{"$f":"'Data Input - BAT'!AT42","v":0},{"$f":"'Data Input - BAT'!AU42","v":0},{"$f":"'Data Input - BAT'!AV42","v":0},{"$f":"'Data Input - BAT'!AW42","v":0},{"$f":"'Data Input - BAT'!AX42","v":0},{"$f":"'Data Input - BAT'!AY42","v":0},{"$f":"'Data Input - BAT'!AZ42","v":0},{"$f":"'Data Input - BAT'!BA42","v":0},{"$f":"'Data Input - BAT'!BB42","v":0},{"$f":"'Data Input - BAT'!BC42","v":0},{"$f":"'Data Input - BAT'!BD42","v":0},{"$f":"'Data Input - BAT'!BE42","v":0},{"$f":"'Data Input - BAT'!BF42","v":0},{"$f":"'Data Input - BAT'!BG42","v":0},{"$f":"'Data Input - BAT'!BH42","v":0},{"$f":"'Data Input - BAT'!BI42","v":0},{"$f":"'Data Input - BAT'!BJ42","v":0},{"$f":"'Data Input - BAT'!BK42","v":0},{"$f":"'Data Input - BAT'!BL42","v":0},{"$f":"'Data Input - BAT'!BM42","v":0},{"$f":"'Data Input - BAT'!BN42","v":0},{"$f":"'Data Input - BAT'!BO42","v":0},{"$f":"'Data Input - BAT'!BP42","v":0},{"$f":"'Data Input - BAT'!BQ42","v":0},{"$f":"'Data Input - BAT'!BR42","v":0},{"$f":"'Data Input - BAT'!BS42","v":0},{"$f":"'Data Input - BAT'!BT42","v":0},{"$f":"'Data Input - BAT'!BU42","v":0},{"$f":"'Data Input - BAT'!BV42","v":0},{"$f":"'Data Input - BAT'!BW42","v":0},{"$f":"'Data Input - BAT'!BX42","v":0},{"$f":"'Data Input - BAT'!BY42","v":0},{"$f":"'Data Input - BAT'!BZ42","v":0},{"$f":"'Data Input - BAT'!CA42","v":0},{"$f":"'Data Input - BAT'!CB42","v":0},{"$f":"'Data Input - BAT'!CC42","v":0},{"$f":"'Data Input - BAT'!CD42","v":0},{"$f":"'Data Input - BAT'!CE42","v":0},{"$f":"'Data Input - BAT'!CF42","v":0},{"$f":"'Data Input - BAT'!CG42","v":0},{"$f":"'Data Input - BAT'!CH42","v":0},{"$f":"'Data Input - BAT'!CI42","v":0},{"$f":"'Data Input - BAT'!CJ42","v":0},{"$f":"'Data Input - BAT'!CK42","v":0},{"$f":"'Data Input - BAT'!CL42","v":0},{"$f":"'Data Input - BAT'!CM42","v":0},{"$f":"'Data Input - BAT'!CN42","v":0},{"$f":"'Data Input - BAT'!CO42","v":0},{"$f":"'Data Input - BAT'!CP42","v":0},{"$f":"'Data Input - BAT'!CQ42","v":0},{"$f":"'Data Input - BAT'!CR42","v":0},{"$f":"'Data Input - BAT'!CS42","v":0},{"$f":"'Data Input - BAT'!CT42","v":0},{"$f":"'Data Input - BAT'!CU42","v":0},{"$f":"'Data Input - BAT'!CV42","v":0},{"$f":"'Data Input - BAT'!CW42","v":0},{"$f":"'Data Input - BAT'!CX42","v":0},{"$f":"'Data Input - BAT'!CY42","v":0},{"$f":"'Data Input - BAT'!CZ42","v":0},{"$f":"'Data Input - BAT'!DA42","v":0},{"$f":"'Data Input - BAT'!DB42","v":0},{"$f":"'Data Input - BAT'!DC42","v":0}]
[null,"Discounted finacning","£000's",{"$f":"D202*D$7","v":0},0,0,0,0,0,0,0,0,0,0,0,0,0,0,0,0,0,0,0,0,0,0,0,0,0,0,0,0,0,0,0,0,0,0,0,0,0,0,0,0,0,0,0,0,0,0,0,0,0,0,0,0,0,0,0,0,0,0,0,0,0,0,0,{"$f":"BP202*BP$7","v":0},0,0,0,0,0,0,0,0,0,0,0,0,0,0,0,0,0,0,0,0,0,0,0,0,0,0,0,0,0,0,0,0,0,0,0]
[]
[null,"Total capex","£000's",{"$f":"IF('Data Input - BAT'!$F$37=\"Yes\",D203+D13,D199)","v":907.93919837307897},{"$f":"IF('Data Input - BAT'!$F$37=\"Yes\",E203+E13,E199)","v":877.23594045708114},{"$f":"IF('Data Input - BAT'!$F$37=\"Yes\",F203+F13,F199)","v":847.57095696336353},{"$f":"IF('Data Input - BAT'!$F$37=\"Yes\",G203+G13,G199)","v":818.90913716267016},{"$f":"IF('Data Input - BAT'!$F$37=\"Yes\",H203+H13,H199)","v":791.21655764509194},{"$f":"IF('Data Input - BAT'!$F$37=\"Yes\",I203+I13,I199)","v":764.46044216917096},{"$f":"IF('Data Input - BAT'!$F$37=\"Yes\",J203+J13,J199)","v":738.6091228687643},{"$f":"IF('Data Input - BAT'!$F$37=\"Yes\",K203+K13,K199)","v":713.63200277175304},{"$f":"IF('Data Input - BAT'!$F$37=\"Yes\",L203+L13,L199)","v":689.4995195862349},{"$f":"IF('Data Input - BAT'!$F$37=\"Yes\",M203+M13,M199)","v":666.18311071133814},{"$f":"IF('Data Input - BAT'!$F$37=\"Yes\",N203+N13,N199)","v":643.65517943124462},{"$f":"IF('Data Input - BAT'!$F$37=\"Yes\",O203+O13,O199)","v":621.88906225241033},{"$f":"IF('Data Input - BAT'!$F$37=\"Yes\",P203+P13,P199)","v":600.85899734532404},{"$f":"IF('Data Input - BAT'!$F$37=\"Yes\",Q203+Q13,Q199)","v":580.54009405345323},{"$f":"IF('Data Input - BAT'!$F$37=\"Yes\",R203+R13,R199)","v":560.90830343328821},{"$f":"IF('Data Input - BAT'!$F$37=\"Yes\",S203+S13,S199)","v":541.94038979061668},{"$f":"IF('Data Input - BAT'!$F$37=\"Yes\",T203+T13,T199)","v":523.61390317933979},{"$f":"IF('Data Input - BAT'!$F$37=\"Yes\",U203+U13,U199)","v":505.90715283028004},{"$f":"IF('Data Input - BAT'!$F$37=\"Yes\",V203+V13,V199)","v":488.79918147853147},{"$f":"IF('Data Input - BAT'!$F$37=\"Yes\",W203+W13,W199)","v":472.26974055896756},{"$f":"IF('Data Input - BAT'!$F$37=\"Yes\",X203+X13,X199)","v":456.29926624054843},{"$f":"IF('Data Input - BAT'!$F$37=\"Yes\",Y203+Y13,Y199)","v":440.86885627106136},{"$f":"IF('Data Input - BAT'!$F$37=\"Yes\",Z203+Z13,Z199)","v":425.96024760489018},{"$f":"IF('Data Input - BAT'!$F$37=\"Yes\",AA203+AA13,AA199)","v":411.55579478733358},{"$f":"IF('Data Input - BAT'!$F$37=\"Yes\",AB203+AB13,AB199)","v":397.6384490698876},{"$f":"IF('Data Input - BAT'!$F$37=\"Yes\",AC203+AC13,AC199)","v":384.19173823177545},{"$f":"IF('Data Input - BAT'!$F$37=\"Yes\",AD203+AD13,AD199)","v":371.19974708384109},{"$f":"IF('Data Input - BAT'!$F$37=\"Yes\",AE203+AE13,AE199)","v":358.64709863173056},{"$f":"IF('Data Input - BAT'!$F$37=\"Yes\",AF203+AF13,AF199)","v":346.51893587606816},{"$f":"IF('Data Input - BAT'!$F$37=\"Yes\",AG203+AG13,AG199)","v":334.80090422808524},{"$f":"IF('Data Input - BAT'!$F$37=\"Yes\",AH203+AH13,AH199)","v":325.04942158066524},{"$f":"IF('Data Input - BAT'!$F$37=\"Yes\",AI203+AI13,AI199)","v":0},{"$f":"IF('Data Input - BAT'!$F$37=\"Yes\",AJ203+AJ13,AJ199)","v":0},{"$f":"IF('Data Input - BAT'!$F$37=\"Yes\",AK203+AK13,AK199)","v":0},{"$f":"IF('Data Input - BAT'!$F$37=\"Yes\",AL203+AL13,AL199)","v":0},{"$f":"IF('Data Input - BAT'!$F$37=\"Yes\",AM203+AM13,AM199)","v":0},{"$f":"IF('Data Input - BAT'!$F$37=\"Yes\",AN203+AN13,AN199)","v":0},{"$f":"IF('Data Input - BAT'!$F$37=\"Yes\",AO203+AO13,AO199)","v":0},{"$f":"IF('Data Input - BAT'!$F$37=\"Yes\",AP203+AP13,AP199)","v":0},{"$f":"IF('Data Input - BAT'!$F$37=\"Yes\",AQ203+AQ13,AQ199)","v":0},{"$f":"IF('Data Input - BAT'!$F$37=\"Yes\",AR203+AR13,AR199)","v":0},{"$f":"IF('Data Input - BAT'!$F$37=\"Yes\",AS203+AS13,AS199)","v":0},{"$f":"IF('Data Input - BAT'!$F$37=\"Yes\",AT203+AT13,AT199)","v":0},{"$f":"IF('Data Input - BAT'!$F$37=\"Yes\",AU203+AU13,AU199)","v":0},{"$f":"IF('Data Input - BAT'!$F$37=\"Yes\",AV203+AV13,AV199)","v":0},{"$f":"IF('Data Input - BAT'!$F$37=\"Yes\",AW203+AW13,AW199)","v":0},{"$f":"IF('Data Input - BAT'!$F$37=\"Yes\",AX203+AX13,AX199)","v":0},{"$f":"IF('Data Input - BAT'!$F$37=\"Yes\",AY203+AY13,AY199)","v":0},{"$f":"IF('Data Input - BAT'!$F$37=\"Yes\",AZ203+AZ13,AZ199)","v":0},{"$f":"IF('Data Input - BAT'!$F$37=\"Yes\",BA203+BA13,BA199)","v":0},{"$f":"IF('Data Input - BAT'!$F$37=\"Yes\",BB203+BB13,BB199)","v":0},{"$f":"IF('Data Input - BAT'!$F$37=\"Yes\",BC203+BC13,BC199)","v":0},{"$f":"IF('Data Input - BAT'!$F$37=\"Yes\",BD203+BD13,BD199)","v":0},{"$f":"IF('Data Input - BAT'!$F$37=\"Yes\",BE203+BE13,BE199)","v":0},{"$f":"IF('Data Input - BAT'!$F$37=\"Yes\",BF203+BF13,BF199)","v":0},{"$f":"IF('Data Input - BAT'!$F$37=\"Yes\",BG203+BG13,BG199)","v":0},{"$f":"IF('Data Input - BAT'!$F$37=\"Yes\",BH203+BH13,BH199)","v":0},{"$f":"IF('Data Input - BAT'!$F$37=\"Yes\",BI203+BI13,BI199)","v":0},{"$f":"IF('Data Input - BAT'!$F$37=\"Yes\",BJ203+BJ13,BJ199)","v":0},{"$f":"IF('Data Input - BAT'!$F$37=\"Yes\",BK203+BK13,BK199)","v":0},{"$f":"IF('Data Input - BAT'!$F$37=\"Yes\",BL203+BL13,BL199)","v":0},{"$f":"IF('Data Input - BAT'!$F$37=\"Yes\",BM203+BM13,BM199)","v":0},{"$f":"IF('Data Input - BAT'!$F$37=\"Yes\",BN203+BN13,BN199)","v":0},{"$f":"IF('Data Input - BAT'!$F$37=\"Yes\",BO203+BO13,BO199)","v":0},{"$f":"IF('Data Input - BAT'!$F$37=\"Yes\",BP203+BP13,BP199)","v":0},{"$f":"IF('Data Input - BAT'!$F$37=\"Yes\",BQ203+BQ13,BQ199)","v":0},{"$f":"IF('Data Input - BAT'!$F$37=\"Yes\",BR203+BR13,BR199)","v":0},{"$f":"IF('Data Input - BAT'!$F$37=\"Yes\",BS203+BS13,BS199)","v":0},{"$f":"IF('Data Input - BAT'!$F$37=\"Yes\",BT203+BT13,BT199)","v":0},{"$f":"IF('Data Input - BAT'!$F$37=\"Yes\",BU203+BU13,BU199)","v":0},{"$f":"IF('Data Input - BAT'!$F$37=\"Yes\",BV203+BV13,BV199)","v":0},{"$f":"IF('Data Input - BAT'!$F$37=\"Yes\",BW203+BW13,BW199)","v":0},{"$f":"IF('Data Input - BAT'!$F$37=\"Yes\",BX203+BX13,BX199)","v":0},{"$f":"IF('Data Input - BAT'!$F$37=\"Yes\",BY203+BY13,BY199)","v":0},{"$f":"IF('Data Input - BAT'!$F$37=\"Yes\",BZ203+BZ13,BZ199)","v":0},{"$f":"IF('Data Input - BAT'!$F$37=\"Yes\",CA203+CA13,CA199)","v":0},{"$f":"IF('Data Input - BAT'!$F$37=\"Yes\",CB203+CB13,CB199)","v":0},{"$f":"IF('Data Input - BAT'!$F$37=\"Yes\",CC203+CC13,CC199)","v":0},{"$f":"IF('Data Input - BAT'!$F$37=\"Yes\",CD203+CD13,CD199)","v":0},{"$f":"IF('Data Input - BAT'!$F$37=\"Yes\",CE203+CE13,CE199)","v":0},{"$f":"IF('Data Input - BAT'!$F$37=\"Yes\",CF203+CF13,CF199)","v":0},{"$f":"IF('Data Input - BAT'!$F$37=\"Yes\",CG203+CG13,CG199)","v":0},{"$f":"IF('Data Input - BAT'!$F$37=\"Yes\",CH203+CH13,CH199)","v":0},{"$f":"IF('Data Input - BAT'!$F$37=\"Yes\",CI203+CI13,CI199)","v":0},{"$f":"IF('Data Input - BAT'!$F$37=\"Yes\",CJ203+CJ13,CJ199)","v":0},{"$f":"IF('Data Input - BAT'!$F$37=\"Yes\",CK203+CK13,CK199)","v":0},{"$f":"IF('Data Input - BAT'!$F$37=\"Yes\",CL203+CL13,CL199)","v":0},{"$f":"IF('Data Input - BAT'!$F$37=\"Yes\",CM203+CM13,CM199)","v":0},{"$f":"IF('Data Input - BAT'!$F$37=\"Yes\",CN203+CN13,CN199)","v":0},{"$f":"IF('Data Input - BAT'!$F$37=\"Yes\",CO203+CO13,CO199)","v":0},{"$f":"IF('Data Input - BAT'!$F$37=\"Yes\",CP203+CP13,CP199)","v":0},{"$f":"IF('Data Input - BAT'!$F$37=\"Yes\",CQ203+CQ13,CQ199)","v":0},{"$f":"IF('Data Input - BAT'!$F$37=\"Yes\",CR203+CR13,CR199)","v":0},{"$f":"IF('Data Input - BAT'!$F$37=\"Yes\",CS203+CS13,CS199)","v":0},{"$f":"IF('Data Input - BAT'!$F$37=\"Yes\",CT203+CT13,CT199)","v":0},{"$f":"IF('Data Input - BAT'!$F$37=\"Yes\",CU203+CU13,CU199)","v":0},{"$f":"IF('Data Input - BAT'!$F$37=\"Yes\",CV203+CV13,CV199)","v":0},{"$f":"IF('Data Input - BAT'!$F$37=\"Yes\",CW203+CW13,CW199)","v":0},{"$f":"IF('Data Input - BAT'!$F$37=\"Yes\",CX203+CX13,CX199)","v":0},{"$f":"IF('Data Input - BAT'!$F$37=\"Yes\",CY203+CY13,CY199)","v":0}]
[]
[null,"Low high WACC combined with low high capex"]
[]
[null,"Low WACC","%",{"$f":"'Data Input - General'!F16","v":0.06}]
[null,"Annualised payment","£000's",{"$f":"IFERROR(-PMT($D$185,SUM('Data Input - General'!$H$26:$H$28),D20*(1-D177)*1000)/1000,0)","v":585.39231099006793}]
[null,"Annual value","£000's",{"$f":"IF(SUM($D$12:D$12)=0,0,$D$210)","v":585.39231099006793},{"$f":"IF(SUM($D$12:E$12)=0,0,$D$210)","v":585.39231099006793},{"$f":"IF(SUM($D$12:F$12)=0,0,$D$210)","v":585.39231099006793},{"$f":"IF(SUM($D$12:G$12)=0,0,$D$210)","v":585.39231099006793},{"$f":"IF(SUM($D$12:H$12)=0,0,$D$210)","v":585.39231099006793},{"$f":"IF(SUM($D$12:I$12)=0,0,$D$210)","v":585.39231099006793},{"$f":"IF(SUM($D$12:J$12)=0,0,$D$210)","v":585.39231099006793},{"$f":"IF(SUM($D$12:K$12)=0,0,$D$210)","v":585.39231099006793},{"$f":"IF(SUM($D$12:L$12)=0,0,$D$210)","v":585.39231099006793},{"$f":"IF(SUM($D$12:M$12)=0,0,$D$210)","v":585.39231099006793},{"$f":"IF(SUM($D$12:N$12)=0,0,$D$210)","v":585.39231099006793},{"$f":"IF(SUM($D$12:O$12)=0,0,$D$210)","v":585.39231099006793},{"$f":"IF(SUM($D$12:P$12)=0,0,$D$210)","v":585.39231099006793},{"$f":"IF(SUM($D$12:Q$12)=0,0,$D$210)","v":585.39231099006793},{"$f":"IF(SUM($D$12:R$12)=0,0,$D$210)","v":585.39231099006793},{"$f":"IF(SUM($D$12:S$12)=0,0,$D$210)","v":585.39231099006793},{"$f":"IF(SUM($D$12:T$12)=0,0,$D$210)","v":585.39231099006793},{"$f":"IF(SUM($D$12:U$12)=0,0,$D$210)","v":585.39231099006793},{"$f":"IF(SUM($D$12:V$12)=0,0,$D$210)","v":585.39231099006793},{"$f":"IF(SUM($D$12:W$12)=0,0,$D$210)","v":585.39231099006793},{"$f":"IF(SUM($D$12:X$12)=0,0,$D$210)","v":585.39231099006793},{"$f":"IF(SUM($D$12:Y$12)=0,0,$D$210)","v":585.39231099006793},{"$f":"IF(SUM($D$12:Z$12)=0,0,$D$210)","v":585.39231099006793},{"$f":"IF(SUM($D$12:AA$12)=0,0,$D$210)","v":585.39231099006793},{"$f":"IF(SUM($D$12:AB$12)=0,0,$D$210)","v":585.39231099006793},{"$f":"IF(SUM($D$12:AC$12)=0,0,$D$210)","v":585.39231099006793},{"$f":"IF(SUM($D$12:AD$12)=0,0,$D$210)","v":585.39231099006793},{"$f":"IF(SUM($D$12:AE$12)=0,0,$D$210)","v":585.39231099006793},{"$f":"IF(SUM($D$12:AF$12)=0,0,$D$210)","v":585.39231099006793},{"$f":"IF(SUM($D$12:AG$12)=0,0,$D$210)","v":585.39231099006793},{"$f":"IF(SUM($D$12:AH$12)=0,0,$D$210)","v":585.39231099006793},{"$f":"IF(SUM($D$12:AI$12)=0,0,$D$210)","v":585.39231099006793},{"$f":"IF(SUM($D$12:AJ$12)=0,0,$D$210)","v":585.39231099006793},{"$f":"IF(SUM($D$12:AK$12)=0,0,$D$210)","v":585.39231099006793},{"$f":"IF(SUM($D$12:AL$12)=0,0,$D$210)","v":585.39231099006793},{"$f":"IF(SUM($D$12:AM$12)=0,0,$D$210)","v":585.39231099006793},{"$f":"IF(SUM($D$12:AN$12)=0,0,$D$210)","v":585.39231099006793},{"$f":"IF(SUM($D$12:AO$12)=0,0,$D$210)","v":585.39231099006793},{"$f":"IF(SUM($D$12:AP$12)=0,0,$D$210)","v":585.39231099006793},{"$f":"IF(SUM($D$12:AQ$12)=0,0,$D$210)","v":585.39231099006793},{"$f":"IF(SUM($D$12:AR$12)=0,0,$D$210)","v":585.39231099006793},{"$f":"IF(SUM($D$12:AS$12)=0,0,$D$210)","v":585.39231099006793},{"$f":"IF(SUM($D$12:AT$12)=0,0,$D$210)","v":585.39231099006793},{"$f":"IF(SUM($D$12:AU$12)=0,0,$D$210)","v":585.39231099006793},{"$f":"IF(SUM($D$12:AV$12)=0,0,$D$210)","v":585.39231099006793},{"$f":"IF(SUM($D$12:AW$12)=0,0,$D$210)","v":585.39231099006793},{"$f":"IF(SUM($D$12:AX$12)=0,0,$D$210)","v":585.39231099006793},{"$f":"IF(SUM($D$12:AY$12)=0,0,$D$210)","v":585.39231099006793},{"$f":"IF(SUM($D$12:AZ$12)=0,0,$D$210)","v":585.39231099006793},{"$f":"IF(SUM($D$12:BA$12)=0,0,$D$210)","v":585.39231099006793},{"$f":"IF(SUM($D$12:BB$12)=0,0,$D$210)","v":585.39231099006793},{"$f":"IF(SUM($D$12:BC$12)=0,0,$D$210)","v":585.39231099006793},{"$f":"IF(SUM($D$12:BD$12)=0,0,$D$210)","v":585.39231099006793},{"$f":"IF(SUM($D$12:BE$12)=0,0,$D$210)","v":585.39231099006793},{"$f":"IF(SUM($D$12:BF$12)=0,0,$D$210)","v":585.39231099006793},{"$f":"IF(SUM($D$12:BG$12)=0,0,$D$210)","v":585.39231099006793},{"$f":"IF(SUM($D$12:BH$12)=0,0,$D$210)","v":585.39231099006793},{"$f":"IF(SUM($D$12:BI$12)=0,0,$D$210)","v":585.39231099006793},{"$f":"IF(SUM($D$12:BJ$12)=0,0,$D$210)","v":585.39231099006793},{"$f":"IF(SUM($D$12:BK$12)=0,0,$D$210)","v":585.39231099006793},{"$f":"IF(SUM($D$12:BL$12)=0,0,$D$210)","v":585.39231099006793},{"$f":"IF(SUM($D$12:BM$12)=0,0,$D$210)","v":585.39231099006793},{"$f":"IF(SUM($D$12:BN$12)=0,0,$D$210)","v":585.39231099006793},{"$f":"IF(SUM($D$12:BO$12)=0,0,$D$210)","v":585.39231099006793},{"$f":"IF(SUM($D$12:BP$12)=0,0,$D$210)","v":585.39231099006793},{"$f":"IF(SUM($D$12:BQ$12)=0,0,$D$210)","v":585.39231099006793},{"$f":"IF(SUM($D$12:BR$12)=0,0,$D$210)","v":585.39231099006793},{"$f":"IF(SUM($D$12:BS$12)=0,0,$D$210)","v":585.39231099006793},{"$f":"IF(SUM($D$12:BT$12)=0,0,$D$210)","v":585.39231099006793},{"$f":"IF(SUM($D$12:BU$12)=0,0,$D$210)","v":585.39231099006793},{"$f":"IF(SUM($D$12:BV$12)=0,0,$D$210)","v":585.39231099006793},{"$f":"IF(SUM($D$12:BW$12)=0,0,$D$210)","v":585.39231099006793},{"$f":"IF(SUM($D$12:BX$12)=0,0,$D$210)","v":585.39231099006793},{"$f":"IF(SUM($D$12:BY$12)=0,0,$D$210)","v":585.39231099006793},{"$f":"IF(SUM($D$12:BZ$12)=0,0,$D$210)","v":585.39231099006793},{"$f":"IF(SUM($D$12:CA$12)=0,0,$D$210)","v":585.39231099006793},{"$f":"IF(SUM($D$12:CB$12)=0,0,$D$210)","v":585.39231099006793},{"$f":"IF(SUM($D$12:CC$12)=0,0,$D$210)","v":585.39231099006793},{"$f":"IF(SUM($D$12:CD$12)=0,0,$D$210)","v":585.39231099006793},{"$f":"IF(SUM($D$12:CE$12)=0,0,$D$210)","v":585.39231099006793},{"$f":"IF(SUM($D$12:CF$12)=0,0,$D$210)","v":585.39231099006793},{"$f":"IF(SUM($D$12:CG$12)=0,0,$D$210)","v":585.39231099006793},{"$f":"IF(SUM($D$12:CH$12)=0,0,$D$210)","v":585.39231099006793},{"$f":"IF(SUM($D$12:CI$12)=0,0,$D$210)","v":585.39231099006793},{"$f":"IF(SUM($D$12:CJ$12)=0,0,$D$210)","v":585.39231099006793},{"$f":"IF(SUM($D$12:CK$12)=0,0,$D$210)","v":585.39231099006793},{"$f":"IF(SUM($D$12:CL$12)=0,0,$D$210)","v":585.39231099006793},{"$f":"IF(SUM($D$12:CM$12)=0,0,$D$210)","v":585.39231099006793},{"$f":"IF(SUM($D$12:CN$12)=0,0,$D$210)","v":585.39231099006793},{"$f":"IF(SUM($D$12:CO$12)=0,0,$D$210)","v":585.39231099006793},{"$f":"IF(SUM($D$12:CP$12)=0,0,$D$210)","v":585.39231099006793},{"$f":"IF(SUM($D$12:CQ$12)=0,0,$D$210)","v":585.39231099006793},{"$f":"IF(SUM($D$12:CR$12)=0,0,$D$210)","v":585.39231099006793},{"$f":"IF(SUM($D$12:CS$12)=0,0,$D$210)","v":585.39231099006793},{"$f":"IF(SUM($D$12:CT$12)=0,0,$D$210)","v":585.39231099006793},{"$f":"IF(SUM($D$12:CU$12)=0,0,$D$210)","v":585.39231099006793},{"$f":"IF(SUM($D$12:CV$12)=0,0,$D$210)","v":585.39231099006793},{"$f":"IF(SUM($D$12:CW$12)=0,0,$D$210)","v":585.39231099006793},{"$f":"IF(SUM($D$12:CX$12)=0,0,$D$210)","v":585.39231099006793},{"$f":"IF(SUM($D$12:CY$12)=0,0,$D$210)","v":585.39231099006793}]
[null,"Discounted WACC","£000's",{"$f":"D211*D$7","v":585.39231099006793},565.59643573919607,546.46998622144554,527.99032485163821,510.13557956680029,492.88461793893748,476.21702216322467,460.11306489200456,444.55368588599481,429.52046945506748,414.995622661901,400.96195426270629,387.40285436010271,374.30227474406064,361.64470989764317,349.41517864506585,337.59920642035354,326.18280813560733,315.15247162860612,304.49514167015082,294.19820451222307,284.24947295866963,274.6371719407436,265.34992458042865,256.37673872505189,247.7069939372482,239.33042892487754,231.23712939601697,223.41751632465409,215.86233461319236,209.57508214873044,0,0,0,0,0,0,0,0,0,0,0,0,0,0,0,0,0,0,0,0,0,0,0,0,0,0,0,0,0,0,0,0,0,{"$f":"BP211*BP$7","v":0},0,0,0,0,0,0,0,0,0,0,0,0,0,0,0,0,0,0,0,0,0,0,0,0,0,0,0,0,0,0,0,0,0,0,0]
[]
[null,"Financing costs"]
[null,"Financing costs (if entered manually)","£000's",{"$f":"'Data Input - BAT'!H41","v":0},{"$f":"'Data Input - BAT'!I41","v":0},{"$f":"'Data Input - BAT'!J41","v":0},{"$f":"'Data Input - BAT'!K41","v":0},{"$f":"'Data Input - BAT'!L41","v":0},{"$f":"'Data Input - BAT'!M41","v":0},{"$f":"'Data Input - BAT'!N41","v":0},{"$f":"'Data Input - BAT'!O41","v":0},{"$f":"'Data Input - BAT'!P41","v":0},{"$f":"'Data Input - BAT'!Q41","v":0},{"$f":"'Data Input - BAT'!R41","v":0},{"$f":"'Data Input - BAT'!S41","v":0},{"$f":"'Data Input - BAT'!T41","v":0},{"$f":"'Data Input - BAT'!U41","v":0},{"$f":"'Data Input - BAT'!V41","v":0},{"$f":"'Data Input - BAT'!W41","v":0},{"$f":"'Data Input - BAT'!X41","v":0},{"$f":"'Data Input - BAT'!Y41","v":0},{"$f":"'Data Input - BAT'!Z41","v":0},{"$f":"'Data Input - BAT'!AA41","v":0},{"$f":"'Data Input - BAT'!AB41","v":0},{"$f":"'Data Input - BAT'!AC41","v":0},{"$f":"'Data Input - BAT'!AD41","v":0},{"$f":"'Data Input - BAT'!AE41","v":0},{"$f":"'Data Input - BAT'!AF41","v":0},{"$f":"'Data Input - BAT'!AG41","v":0},{"$f":"'Data Input - BAT'!AH41","v":0},{"$f":"'Data Input - BAT'!AI41","v":0},{"$f":"'Data Input - BAT'!AJ41","v":0},{"$f":"'Data Input - BAT'!AK41","v":0},{"$f":"'Data Input - BAT'!AL41","v":0},{"$f":"'Data Input - BAT'!AM41","v":0},{"$f":"'Data Input - BAT'!AN41","v":0},{"$f":"'Data Input - BAT'!AO41","v":0},{"$f":"'Data Input - BAT'!AP41","v":0},{"$f":"'Data Input - BAT'!AQ41","v":0},{"$f":"'Data Input - BAT'!AR41","v":0},{"$f":"'Data Input - BAT'!AS41","v":0},{"$f":"'Data Input - BAT'!AT41","v":0},{"$f":"'Data Input - BAT'!AU41","v":0},{"$f":"'Data Input - BAT'!AV41","v":0},{"$f":"'Data Input - BAT'!AW41","v":0},{"$f":"'Data Input - BAT'!AX41","v":0},{"$f":"'Data Input - BAT'!AY41","v":0},{"$f":"'Data Input - BAT'!AZ41","v":0},{"$f":"'Data Input - BAT'!BA41","v":0},{"$f":"'Data Input - BAT'!BB41","v":0},{"$f":"'Data Input - BAT'!BC41","v":0},{"$f":"'Data Input - BAT'!BD41","v":0},{"$f":"'Data Input - BAT'!BE41","v":0},{"$f":"'Data Input - BAT'!BF41","v":0},{"$f":"'Data Input - BAT'!BG41","v":0},{"$f":"'Data Input - BAT'!BH41","v":0},{"$f":"'Data Input - BAT'!BI41","v":0},{"$f":"'Data Input - BAT'!BJ41","v":0},{"$f":"'Data Input - BAT'!BK41","v":0},{"$f":"'Data Input - BAT'!BL41","v":0},{"$f":"'Data Input - BAT'!BM41","v":0},{"$f":"'Data Input - BAT'!BN41","v":0},{"$f":"'Data Input - BAT'!BO41","v":0},{"$f":"'Data Input - BAT'!BP41","v":0},{"$f":"'Data Input - BAT'!BQ41","v":0},{"$f":"'Data Input - BAT'!BR41","v":0},{"$f":"'Data Input - BAT'!BS41","v":0},{"$f":"'Data Input - BAT'!BT41","v":0},{"$f":"'Data Input - BAT'!BU41","v":0},{"$f":"'Data Input - BAT'!BV41","v":0},{"$f":"'Data Input - BAT'!BW41","v":0},{"$f":"'Data Input - BAT'!BX41","v":0},{"$f":"'Data Input - BAT'!BY41","v":0},{"$f":"'Data Input - BAT'!BZ41","v":0},{"$f":"'Data Input - BAT'!CA41","v":0},{"$f":"'Data Input - BAT'!CB41","v":0},{"$f":"'Data Input - BAT'!CC41","v":0},{"$f":"'Data Input - BAT'!CD41","v":0},{"$f":"'Data Input - BAT'!CE41","v":0},{"$f":"'Data Input - BAT'!CF41","v":0},{"$f":"'Data Input - BAT'!CG41","v":0},{"$f":"'Data Input - BAT'!CH41","v":0},{"$f":"'Data Input - BAT'!CI41","v":0},{"$f":"'Data Input - BAT'!CJ41","v":0},{"$f":"'Data Input - BAT'!CK41","v":0},{"$f":"'Data Input - BAT'!CL41","v":0},{"$f":"'Data Input - BAT'!CM41","v":0},{"$f":"'Data Input - BAT'!CN41","v":0},{"$f":"'Data Input - BAT'!CO41","v":0},{"$f":"'Data Input - BAT'!CP41","v":0},{"$f":"'Data Input - BAT'!CQ41","v":0},{"$f":"'Data Input - BAT'!CR41","v":0},{"$f":"'Data Input - BAT'!CS41","v":0},{"$f":"'Data Input - BAT'!CT41","v":0},{"$f":"'Data Input - BAT'!CU41","v":0},{"$f":"'Data Input - BAT'!CV41","v":0},{"$f":"'Data Input - BAT'!CW41","v":0},{"$f":"'Data Input - BAT'!CX41","v":0},{"$f":"'Data Input - BAT'!CY41","v":0},{"$f":"'Data Input - BAT'!CZ41","v":0},{"$f":"'Data Input - BAT'!DA41","v":0},{"$f":"'Data Input - BAT'!DB41","v":0},{"$f":"'Data Input - BAT'!DC41","v":0}]
[null,"Discounted finacning","£000's",{"$f":"D215*D$7","v":0},0,0,0,0,0,0,0,0,0,0,0,0,0,0,0,0,0,0,0,0,0,0,0,0,0,0,0,0,0,0,0,0,0,0,0,0,0,0,0,0,0,0,0,0,0,0,0,0,0,0,0,0,0,0,0,0,0,0,0,0,0,0,0,{"$f":"BP215*BP$7","v":0},0,0,0,0,0,0,0,0,0,0,0,0,0,0,0,0,0,0,0,0,0,0,0,0,0,0,0,0,0,0,0,0,0,0,0]
[]
[null,"Total capex","£000's",{"$f":"IF('Data Input - BAT'!$F$37=\"Yes\",D216+D13*(1-$D$177),D212)","v":585.39231099006793},{"$f":"IF('Data Input - BAT'!$F$37=\"Yes\",E216+E13*(1-$D$177),E212)","v":565.59643573919607},{"$f":"IF('Data Input - BAT'!$F$37=\"Yes\",F216+F13*(1-$D$177),F212)","v":546.46998622144554},{"$f":"IF('Data Input - BAT'!$F$37=\"Yes\",G216+G13*(1-$D$177),G212)","v":527.99032485163821},{"$f":"IF('Data Input - BAT'!$F$37=\"Yes\",H216+H13*(1-$D$177),H212)","v":510.13557956680029},{"$f":"IF('Data Input - BAT'!$F$37=\"Yes\",I216+I13*(1-$D$177),I212)","v":492.88461793893748},{"$f":"IF('Data Input - BAT'!$F$37=\"Yes\",J216+J13*(1-$D$177),J212)","v":476.21702216322467},{"$f":"IF('Data Input - BAT'!$F$37=\"Yes\",K216+K13*(1-$D$177),K212)","v":460.11306489200456},{"$f":"IF('Data Input - BAT'!$F$37=\"Yes\",L216+L13*(1-$D$177),L212)","v":444.55368588599481},{"$f":"IF('Data Input - BAT'!$F$37=\"Yes\",M216+M13*(1-$D$177),M212)","v":429.52046945506748},{"$f":"IF('Data Input - BAT'!$F$37=\"Yes\",N216+N13*(1-$D$177),N212)","v":414.995622661901},{"$f":"IF('Data Input - BAT'!$F$37=\"Yes\",O216+O13*(1-$D$177),O212)","v":400.96195426270629},{"$f":"IF('Data Input - BAT'!$F$37=\"Yes\",P216+P13*(1-$D$177),P212)","v":387.40285436010271},{"$f":"IF('Data Input - BAT'!$F$37=\"Yes\",Q216+Q13*(1-$D$177),Q212)","v":374.30227474406064},{"$f":"IF('Data Input - BAT'!$F$37=\"Yes\",R216+R13*(1-$D$177),R212)","v":361.64470989764317},{"$f":"IF('Data Input - BAT'!$F$37=\"Yes\",S216+S13*(1-$D$177),S212)","v":349.41517864506585},{"$f":"IF('Data Input - BAT'!$F$37=\"Yes\",T216+T13*(1-$D$177),T212)","v":337.59920642035354},{"$f":"IF('Data Input - BAT'!$F$37=\"Yes\",U216+U13*(1-$D$177),U212)","v":326.18280813560733},{"$f":"IF('Data Input - BAT'!$F$37=\"Yes\",V216+V13*(1-$D$177),V212)","v":315.15247162860612},{"$f":"IF('Data Input - BAT'!$F$37=\"Yes\",W216+W13*(1-$D$177),W212)","v":304.49514167015082},{"$f":"IF('Data Input - BAT'!$F$37=\"Yes\",X216+X13*(1-$D$177),X212)","v":294.19820451222307},{"$f":"IF('Data Input - BAT'!$F$37=\"Yes\",Y216+Y13*(1-$D$177),Y212)","v":284.24947295866963},{"$f":"IF('Data Input - BAT'!$F$37=\"Yes\",Z216+Z13*(1-$D$177),Z212)","v":274.6371719407436},{"$f":"IF('Data Input - BAT'!$F$37=\"Yes\",AA216+AA13*(1-$D$177),AA212)","v":265.34992458042865},{"$f":"IF('Data Input - BAT'!$F$37=\"Yes\",AB216+AB13*(1-$D$177),AB212)","v":256.37673872505189},{"$f":"IF('Data Input - BAT'!$F$37=\"Yes\",AC216+AC13*(1-$D$177),AC212)","v":247.7069939372482},{"$f":"IF('Data Input - BAT'!$F$37=\"Yes\",AD216+AD13*(1-$D$177),AD212)","v":239.33042892487754},{"$f":"IF('Data Input - BAT'!$F$37=\"Yes\",AE216+AE13*(1-$D$177),AE212)","v":231.23712939601697},{"$f":"IF('Data Input - BAT'!$F$37=\"Yes\",AF216+AF13*(1-$D$177),AF212)","v":223.41751632465409},{"$f":"IF('Data Input - BAT'!$F$37=\"Yes\",AG216+AG13*(1-$D$177),AG212)","v":215.86233461319236},{"$f":"IF('Data Input - BAT'!$F$37=\"Yes\",AH216+AH13*(1-$D$177),AH212)","v":209.57508214873044},{"$f":"IF('Data Input - BAT'!$F$37=\"Yes\",AI216+AI13*(1-$D$177),AI212)","v":0},{"$f":"IF('Data Input - BAT'!$F$37=\"Yes\",AJ216+AJ13*(1-$D$177),AJ212)","v":0},{"$f":"IF('Data Input - BAT'!$F$37=\"Yes\",AK216+AK13*(1-$D$177),AK212)","v":0},{"$f":"IF('Data Input - BAT'!$F$37=\"Yes\",AL216+AL13*(1-$D$177),AL212)","v":0},{"$f":"IF('Data Input - BAT'!$F$37=\"Yes\",AM216+AM13*(1-$D$177),AM212)","v":0},{"$f":"IF('Data Input - BAT'!$F$37=\"Yes\",AN216+AN13*(1-$D$177),AN212)","v":0},{"$f":"IF('Data Input - BAT'!$F$37=\"Yes\",AO216+AO13*(1-$D$177),AO212)","v":0},{"$f":"IF('Data Input - BAT'!$F$37=\"Yes\",AP216+AP13*(1-$D$177),AP212)","v":0},{"$f":"IF('Data Input - BAT'!$F$37=\"Yes\",AQ216+AQ13*(1-$D$177),AQ212)","v":0},{"$f":"IF('Data Input - BAT'!$F$37=\"Yes\",AR216+AR13*(1-$D$177),AR212)","v":0},{"$f":"IF('Data Input - BAT'!$F$37=\"Yes\",AS216+AS13*(1-$D$177),AS212)","v":0},{"$f":"IF('Data Input - BAT'!$F$37=\"Yes\",AT216+AT13*(1-$D$177),AT212)","v":0},{"$f":"IF('Data Input - BAT'!$F$37=\"Yes\",AU216+AU13*(1-$D$177),AU212)","v":0},{"$f":"IF('Data Input - BAT'!$F$37=\"Yes\",AV216+AV13*(1-$D$177),AV212)","v":0},{"$f":"IF('Data Input - BAT'!$F$37=\"Yes\",AW216+AW13*(1-$D$177),AW212)","v":0},{"$f":"IF('Data Input - BAT'!$F$37=\"Yes\",AX216+AX13*(1-$D$177),AX212)","v":0},{"$f":"IF('Data Input - BAT'!$F$37=\"Yes\",AY216+AY13*(1-$D$177),AY212)","v":0},{"$f":"IF('Data Input - BAT'!$F$37=\"Yes\",AZ216+AZ13*(1-$D$177),AZ212)","v":0},{"$f":"IF('Data Input - BAT'!$F$37=\"Yes\",BA216+BA13*(1-$D$177),BA212)","v":0},{"$f":"IF('Data Input - BAT'!$F$37=\"Yes\",BB216+BB13*(1-$D$177),BB212)","v":0},{"$f":"IF('Data Input - BAT'!$F$37=\"Yes\",BC216+BC13*(1-$D$177),BC212)","v":0},{"$f":"IF('Data Input - BAT'!$F$37=\"Yes\",BD216+BD13*(1-$D$177),BD212)","v":0},{"$f":"IF('Data Input - BAT'!$F$37=\"Yes\",BE216+BE13*(1-$D$177),BE212)","v":0},{"$f":"IF('Data Input - BAT'!$F$37=\"Yes\",BF216+BF13*(1-$D$177),BF212)","v":0},{"$f":"IF('Data Input - BAT'!$F$37=\"Yes\",BG216+BG13*(1-$D$177),BG212)","v":0},{"$f":"IF('Data Input - BAT'!$F$37=\"Yes\",BH216+BH13*(1-$D$177),BH212)","v":0},{"$f":"IF('Data Input - BAT'!$F$37=\"Yes\",BI216+BI13*(1-$D$177),BI212)","v":0},{"$f":"IF('Data Input - BAT'!$F$37=\"Yes\",BJ216+BJ13*(1-$D$177),BJ212)","v":0},{"$f":"IF('Data Input - BAT'!$F$37=\"Yes\",BK216+BK13*(1-$D$177),BK212)","v":0},{"$f":"IF('Data Input - BAT'!$F$37=\"Yes\",BL216+BL13*(1-$D$177),BL212)","v":0},{"$f":"IF('Data Input - BAT'!$F$37=\"Yes\",BM216+BM13*(1-$D$177),BM212)","v":0},{"$f":"IF('Data Input - BAT'!$F$37=\"Yes\",BN216+BN13*(1-$D$177),BN212)","v":0},{"$f":"IF('Data Input - BAT'!$F$37=\"Yes\",BO216+BO13*(1-$D$177),BO212)","v":0},{"$f":"IF('Data Input - BAT'!$F$37=\"Yes\",BP216+BP13*(1-$D$177),BP212)","v":0},{"$f":"IF('Data Input - BAT'!$F$37=\"Yes\",BQ216+BQ13*(1-$D$177),BQ212)","v":0},{"$f":"IF('Data Input - BAT'!$F$37=\"Yes\",BR216+BR13*(1-$D$177),BR212)","v":0},{"$f":"IF('Data Input - BAT'!$F$37=\"Yes\",BS216+BS13*(1-$D$177),BS212)","v":0},{"$f":"IF('Data Input - BAT'!$F$37=\"Yes\",BT216+BT13*(1-$D$177),BT212)","v":0},{"$f":"IF('Data Input - BAT'!$F$37=\"Yes\",BU216+BU13*(1-$D$177),BU212)","v":0},{"$f":"IF('Data Input - BAT'!$F$37=\"Yes\",BV216+BV13*(1-$D$177),BV212)","v":0},{"$f":"IF('Data Input - BAT'!$F$37=\"Yes\",BW216+BW13*(1-$D$177),BW212)","v":0},{"$f":"IF('Data Input - BAT'!$F$37=\"Yes\",BX216+BX13*(1-$D$177),BX212)","v":0},{"$f":"IF('Data Input - BAT'!$F$37=\"Yes\",BY216+BY13*(1-$D$177),BY212)","v":0},{"$f":"IF('Data Input - BAT'!$F$37=\"Yes\",BZ216+BZ13*(1-$D$177),BZ212)","v":0},{"$f":"IF('Data Input - BAT'!$F$37=\"Yes\",CA216+CA13*(1-$D$177),CA212)","v":0},{"$f":"IF('Data Input - BAT'!$F$37=\"Yes\",CB216+CB13*(1-$D$177),CB212)","v":0},{"$f":"IF('Data Input - BAT'!$F$37=\"Yes\",CC216+CC13*(1-$D$177),CC212)","v":0},{"$f":"IF('Data Input - BAT'!$F$37=\"Yes\",CD216+CD13*(1-$D$177),CD212)","v":0},{"$f":"IF('Data Input - BAT'!$F$37=\"Yes\",CE216+CE13*(1-$D$177),CE212)","v":0},{"$f":"IF('Data Input - BAT'!$F$37=\"Yes\",CF216+CF13*(1-$D$177),CF212)","v":0},{"$f":"IF('Data Input - BAT'!$F$37=\"Yes\",CG216+CG13*(1-$D$177),CG212)","v":0},{"$f":"IF('Data Input - BAT'!$F$37=\"Yes\",CH216+CH13*(1-$D$177),CH212)","v":0},{"$f":"IF('Data Input - BAT'!$F$37=\"Yes\",CI216+CI13*(1-$D$177),CI212)","v":0},{"$f":"IF('Data Input - BAT'!$F$37=\"Yes\",CJ216+CJ13*(1-$D$177),CJ212)","v":0},{"$f":"IF('Data Input - BAT'!$F$37=\"Yes\",CK216+CK13*(1-$D$177),CK212)","v":0},{"$f":"IF('Data Input - BAT'!$F$37=\"Yes\",CL216+CL13*(1-$D$177),CL212)","v":0},{"$f":"IF('Data Input - BAT'!$F$37=\"Yes\",CM216+CM13*(1-$D$177),CM212)","v":0},{"$f":"IF('Data Input - BAT'!$F$37=\"Yes\",CN216+CN13*(1-$D$177),CN212)","v":0},{"$f":"IF('Data Input - BAT'!$F$37=\"Yes\",CO216+CO13*(1-$D$177),CO212)","v":0},{"$f":"IF('Data Input - BAT'!$F$37=\"Yes\",CP216+CP13*(1-$D$177),CP212)","v":0},{"$f":"IF('Data Input - BAT'!$F$37=\"Yes\",CQ216+CQ13*(1-$D$177),CQ212)","v":0},{"$f":"IF('Data Input - BAT'!$F$37=\"Yes\",CR216+CR13*(1-$D$177),CR212)","v":0},{"$f":"IF('Data Input - BAT'!$F$37=\"Yes\",CS216+CS13*(1-$D$177),CS212)","v":0},{"$f":"IF('Data Input - BAT'!$F$37=\"Yes\",CT216+CT13*(1-$D$177),CT212)","v":0},{"$f":"IF('Data Input - BAT'!$F$37=\"Yes\",CU216+CU13*(1-$D$177),CU212)","v":0},{"$f":"IF('Data Input - BAT'!$F$37=\"Yes\",CV216+CV13*(1-$D$177),CV212)","v":0},{"$f":"IF('Data Input - BAT'!$F$37=\"Yes\",CW216+CW13*(1-$D$177),CW212)","v":0},{"$f":"IF('Data Input - BAT'!$F$37=\"Yes\",CX216+CX13*(1-$D$177),CX212)","v":0},{"$f":"IF('Data Input - BAT'!$F$37=\"Yes\",CY216+CY13*(1-$D$177),CY212)","v":0}]
[]
[null,"High WACC","%",{"$f":"'Data Input - General'!H16","v":7.0000000000000007E-2}]
[null,"Annualised payment","£000's",{"$f":"IFERROR(-PMT($D$196,SUM('Data Input - General'!$H$26:$H$28),D20*(1+D177)*1000)/1000,0)","v":1180.3209578850028}]
[null,"Annual value","£000's",{"$f":"IF(SUM($D$12:D$12)=0,0,$D$221)","v":1180.3209578850028},{"$f":"IF(SUM($D$12:E$12)=0,0,$D$221)","v":1180.3209578850028},{"$f":"IF(SUM($D$12:F$12)=0,0,$D$221)","v":1180.3209578850028},{"$f":"IF(SUM($D$12:G$12)=0,0,$D$221)","v":1180.3209578850028},{"$f":"IF(SUM($D$12:H$12)=0,0,$D$221)","v":1180.3209578850028},{"$f":"IF(SUM($D$12:I$12)=0,0,$D$221)","v":1180.3209578850028},{"$f":"IF(SUM($D$12:J$12)=0,0,$D$221)","v":1180.3209578850028},{"$f":"IF(SUM($D$12:K$12)=0,0,$D$221)","v":1180.3209578850028},{"$f":"IF(SUM($D$12:L$12)=0,0,$D$221)","v":1180.3209578850028},{"$f":"IF(SUM($D$12:M$12)=0,0,$D$221)","v":1180.3209578850028},{"$f":"IF(SUM($D$12:N$12)=0,0,$D$221)","v":1180.3209578850028},{"$f":"IF(SUM($D$12:O$12)=0,0,$D$221)","v":1180.3209578850028},{"$f":"IF(SUM($D$12:P$12)=0,0,$D$221)","v":1180.3209578850028},{"$f":"IF(SUM($D$12:Q$12)=0,0,$D$221)","v":1180.3209578850028},{"$f":"IF(SUM($D$12:R$12)=0,0,$D$221)","v":1180.3209578850028},{"$f":"IF(SUM($D$12:S$12)=0,0,$D$221)","v":1180.3209578850028},{"$f":"IF(SUM($D$12:T$12)=0,0,$D$221)","v":1180.3209578850028},{"$f":"IF(SUM($D$12:U$12)=0,0,$D$221)","v":1180.3209578850028},{"$f":"IF(SUM($D$12:V$12)=0,0,$D$221)","v":1180.3209578850028},{"$f":"IF(SUM($D$12:W$12)=0,0,$D$221)","v":1180.3209578850028},{"$f":"IF(SUM($D$12:X$12)=0,0,$D$221)","v":1180.3209578850028},{"$f":"IF(SUM($D$12:Y$12)=0,0,$D$221)","v":1180.3209578850028},{"$f":"IF(SUM($D$12:Z$12)=0,0,$D$221)","v":1180.3209578850028},{"$f":"IF(SUM($D$12:AA$12)=0,0,$D$221)","v":1180.3209578850028},{"$f":"IF(SUM($D$12:AB$12)=0,0,$D$221)","v":1180.3209578850028},{"$f":"IF(SUM($D$12:AC$12)=0,0,$D$221)","v":1180.3209578850028},{"$f":"IF(SUM($D$12:AD$12)=0,0,$D$221)","v":1180.3209578850028},{"$f":"IF(SUM($D$12:AE$12)=0,0,$D$221)","v":1180.3209578850028},{"$f":"IF(SUM($D$12:AF$12)=0,0,$D$221)","v":1180.3209578850028},{"$f":"IF(SUM($D$12:AG$12)=0,0,$D$221)","v":1180.3209578850028},{"$f":"IF(SUM($D$12:AH$12)=0,0,$D$221)","v":1180.3209578850028},{"$f":"IF(SUM($D$12:AI$12)=0,0,$D$221)","v":1180.3209578850028},{"$f":"IF(SUM($D$12:AJ$12)=0,0,$D$221)","v":1180.3209578850028},{"$f":"IF(SUM($D$12:AK$12)=0,0,$D$221)","v":1180.3209578850028},{"$f":"IF(SUM($D$12:AL$12)=0,0,$D$221)","v":1180.3209578850028},{"$f":"IF(SUM($D$12:AM$12)=0,0,$D$221)","v":1180.3209578850028},{"$f":"IF(SUM($D$12:AN$12)=0,0,$D$221)","v":1180.3209578850028},{"$f":"IF(SUM($D$12:AO$12)=0,0,$D$221)","v":1180.3209578850028},{"$f":"IF(SUM($D$12:AP$12)=0,0,$D$221)","v":1180.3209578850028},{"$f":"IF(SUM($D$12:AQ$12)=0,0,$D$221)","v":1180.3209578850028},{"$f":"IF(SUM($D$12:AR$12)=0,0,$D$221)","v":1180.3209578850028},{"$f":"IF(SUM($D$12:AS$12)=0,0,$D$221)","v":1180.3209578850028},{"$f":"IF(SUM($D$12:AT$12)=0,0,$D$221)","v":1180.3209578850028},{"$f":"IF(SUM($D$12:AU$12)=0,0,$D$221)","v":1180.3209578850028},{"$f":"IF(SUM($D$12:AV$12)=0,0,$D$221)","v":1180.3209578850028},{"$f":"IF(SUM($D$12:AW$12)=0,0,$D$221)","v":1180.3209578850028},{"$f":"IF(SUM($D$12:AX$12)=0,0,$D$221)","v":1180.3209578850028},{"$f":"IF(SUM($D$12:AY$12)=0,0,$D$221)","v":1180.3209578850028},{"$f":"IF(SUM($D$12:AZ$12)=0,0,$D$221)","v":1180.3209578850028},{"$f":"IF(SUM($D$12:BA$12)=0,0,$D$221)","v":1180.3209578850028},{"$f":"IF(SUM($D$12:BB$12)=0,0,$D$221)","v":1180.3209578850028},{"$f":"IF(SUM($D$12:BC$12)=0,0,$D$221)","v":1180.3209578850028},{"$f":"IF(SUM($D$12:BD$12)=0,0,$D$221)","v":1180.3209578850028},{"$f":"IF(SUM($D$12:BE$12)=0,0,$D$221)","v":1180.3209578850028},{"$f":"IF(SUM($D$12:BF$12)=0,0,$D$221)","v":1180.3209578850028},{"$f":"IF(SUM($D$12:BG$12)=0,0,$D$221)","v":1180.3209578850028},{"$f":"IF(SUM($D$12:BH$12)=0,0,$D$221)","v":1180.3209578850028},{"$f":"IF(SUM($D$12:BI$12)=0,0,$D$221)","v":1180.3209578850028},{"$f":"IF(SUM($D$12:BJ$12)=0,0,$D$221)","v":1180.3209578850028},{"$f":"IF(SUM($D$12:BK$12)=0,0,$D$221)","v":1180.3209578850028},{"$f":"IF(SUM($D$12:BL$12)=0,0,$D$221)","v":1180.3209578850028},{"$f":"IF(SUM($D$12:BM$12)=0,0,$D$221)","v":1180.3209578850028},{"$f":"IF(SUM($D$12:BN$12)=0,0,$D$221)","v":1180.3209578850028},{"$f":"IF(SUM($D$12:BO$12)=0,0,$D$221)","v":1180.3209578850028},{"$f":"IF(SUM($D$12:BP$12)=0,0,$D$221)","v":1180.3209578850028},{"$f":"IF(SUM($D$12:BQ$12)=0,0,$D$221)","v":1180.3209578850028},{"$f":"IF(SUM($D$12:BR$12)=0,0,$D$221)","v":1180.3209578850028},{"$f":"IF(SUM($D$12:BS$12)=0,0,$D$221)","v":1180.3209578850028},{"$f":"IF(SUM($D$12:BT$12)=0,0,$D$221)","v":1180.3209578850028},{"$f":"IF(SUM($D$12:BU$12)=0,0,$D$221)","v":1180.3209578850028},{"$f":"IF(SUM($D$12:BV$12)=0,0,$D$221)","v":1180.3209578850028},{"$f":"IF(SUM($D$12:BW$12)=0,0,$D$221)","v":1180.3209578850028},{"$f":"IF(SUM($D$12:BX$12)=0,0,$D$221)","v":1180.3209578850028},{"$f":"IF(SUM($D$12:BY$12)=0,0,$D$221)","v":1180.3209578850028},{"$f":"IF(SUM($D$12:BZ$12)=0,0,$D$221)","v":1180.3209578850028},{"$f":"IF(SUM($D$12:CA$12)=0,0,$D$221)","v":1180.3209578850028},{"$f":"IF(SUM($D$12:CB$12)=0,0,$D$221)","v":1180.3209578850028},{"$f":"IF(SUM($D$12:CC$12)=0,0,$D$221)","v":1180.3209578850028},{"$f":"IF(SUM($D$12:CD$12)=0,0,$D$221)","v":1180.3209578850028},{"$f":"IF(SUM($D$12:CE$12)=0,0,$D$221)","v":1180.3209578850028},{"$f":"IF(SUM($D$12:CF$12)=0,0,$D$221)","v":1180.3209578850028},{"$f":"IF(SUM($D$12:CG$12)=0,0,$D$221)","v":1180.3209578850028},{"$f":"IF(SUM($D$12:CH$12)=0,0,$D$221)","v":1180.3209578850028},{"$f":"IF(SUM($D$12:CI$12)=0,0,$D$221)","v":1180.3209578850028},{"$f":"IF(SUM($D$12:CJ$12)=0,0,$D$221)","v":1180.3209578850028},{"$f":"IF(SUM($D$12:CK$12)=0,0,$D$221)","v":1180.3209578850028},{"$f":"IF(SUM($D$12:CL$12)=0,0,$D$221)","v":1180.3209578850028},{"$f":"IF(SUM($D$12:CM$12)=0,0,$D$221)","v":1180.3209578850028},{"$f":"IF(SUM($D$12:CN$12)=0,0,$D$221)","v":1180.3209578850028},{"$f":"IF(SUM($D$12:CO$12)=0,0,$D$221)","v":1180.3209578850028},{"$f":"IF(SUM($D$12:CP$12)=0,0,$D$221)","v":1180.3209578850028},{"$f":"IF(SUM($D$12:CQ$12)=0,0,$D$221)","v":1180.3209578850028},{"$f":"IF(SUM($D$12:CR$12)=0,0,$D$221)","v":1180.3209578850028},{"$f":"IF(SUM($D$12:CS$12)=0,0,$D$221)","v":1180.3209578850028},{"$f":"IF(SUM($D$12:CT$12)=0,0,$D$221)","v":1180.3209578850028},{"$f":"IF(SUM($D$12:CU$12)=0,0,$D$221)","v":1180.3209578850028},{"$f":"IF(SUM($D$12:CV$12)=0,0,$D$221)","v":1180.3209578850028},{"$f":"IF(SUM($D$12:CW$12)=0,0,$D$221)","v":1180.3209578850028},{"$f":"IF(SUM($D$12:CX$12)=0,0,$D$221)","v":1180.3209578850028},{"$f":"IF(SUM($D$12:CY$12)=0,0,$D$221)","v":1180.3209578850028}]
[null,"Discounted WACC","£000's",{"$f":"D222*D$7","v":1180.3209578850028},{"$f":"E222*E$7","v":1140.4067225942058},1101.8422440523727,1064.5818783114714,1028.5815249386196,993.79857481992246,960.19185972939374,927.72160360327916,896.34937546210551,866.03804392473978,836.75173326061815,808.45578092813355,781.11669654892137,754.70212226948934,729.18079446327476,704.52250672780167,680.69807413314186,657.67929867936414,635.43893592209099,613.95066272665792,593.18904611271307,573.12951315237979,553.7483218863573,535.02253322353374,516.92998379085395,499.44925970130816,482.55967120899345,466.2412282212498,450.47461663888868,435.24117549651089,422.56424805486489,0,0,0,0,0,0,0,0,0,0,0,0,0,0,0,0,0,0,0,0,0,0,0,0,0,0,0,0,0,0,0,0,0,{"$f":"BP222*BP$7","v":0},0,0,0,0,0,0,0,0,0,0,0,0,0,0,0,0,0,0,0,0,0,0,0,0,0,0,0,0,0,0,0,0,0,0,0]
[]
[null,"Financing costs"]
[null,"Financing costs (if entered manually)","£000's",{"$f":"'Data Input - BAT'!H42","v":0},{"$f":"'Data Input - BAT'!I42","v":0},{"$f":"'Data Input - BAT'!J42","v":0},{"$f":"'Data Input - BAT'!K42","v":0},{"$f":"'Data Input - BAT'!L42","v":0},{"$f":"'Data Input - BAT'!M42","v":0},{"$f":"'Data Input - BAT'!N42","v":0},{"$f":"'Data Input - BAT'!O42","v":0},{"$f":"'Data Input - BAT'!P42","v":0},{"$f":"'Data Input - BAT'!Q42","v":0},{"$f":"'Data Input - BAT'!R42","v":0},{"$f":"'Data Input - BAT'!S42","v":0},{"$f":"'Data Input - BAT'!T42","v":0},{"$f":"'Data Input - BAT'!U42","v":0},{"$f":"'Data Input - BAT'!V42","v":0},{"$f":"'Data Input - BAT'!W42","v":0},{"$f":"'Data Input - BAT'!X42","v":0},{"$f":"'Data Input - BAT'!Y42","v":0},{"$f":"'Data Input - BAT'!Z42","v":0},{"$f":"'Data Input - BAT'!AA42","v":0},{"$f":"'Data Input - BAT'!AB42","v":0},{"$f":"'Data Input - BAT'!AC42","v":0},{"$f":"'Data Input - BAT'!AD42","v":0},{"$f":"'Data Input - BAT'!AE42","v":0},{"$f":"'Data Input - BAT'!AF42","v":0},{"$f":"'Data Input - BAT'!AG42","v":0},{"$f":"'Data Input - BAT'!AH42","v":0},{"$f":"'Data Input - BAT'!AI42","v":0},{"$f":"'Data Input - BAT'!AJ42","v":0},{"$f":"'Data Input - BAT'!AK42","v":0},{"$f":"'Data Input - BAT'!AL42","v":0},{"$f":"'Data Input - BAT'!AM42","v":0},{"$f":"'Data Input - BAT'!AN42","v":0},{"$f":"'Data Input - BAT'!AO42","v":0},{"$f":"'Data Input - BAT'!AP42","v":0},{"$f":"'Data Input - BAT'!AQ42","v":0},{"$f":"'Data Input - BAT'!AR42","v":0},{"$f":"'Data Input - BAT'!AS42","v":0},{"$f":"'Data Input - BAT'!AT42","v":0},{"$f":"'Data Input - BAT'!AU42","v":0},{"$f":"'Data Input - BAT'!AV42","v":0},{"$f":"'Data Input - BAT'!AW42","v":0},{"$f":"'Data Input - BAT'!AX42","v":0},{"$f":"'Data Input - BAT'!AY42","v":0},{"$f":"'Data Input - BAT'!AZ42","v":0},{"$f":"'Data Input - BAT'!BA42","v":0},{"$f":"'Data Input - BAT'!BB42","v":0},{"$f":"'Data Input - BAT'!BC42","v":0},{"$f":"'Data Input - BAT'!BD42","v":0},{"$f":"'Data Input - BAT'!BE42","v":0},{"$f":"'Data Input - BAT'!BF42","v":0},{"$f":"'Data Input - BAT'!BG42","v":0},{"$f":"'Data Input - BAT'!BH42","v":0},{"$f":"'Data Input - BAT'!BI42","v":0},{"$f":"'Data Input - BAT'!BJ42","v":0},{"$f":"'Data Input - BAT'!BK42","v":0},{"$f":"'Data Input - BAT'!BL42","v":0},{"$f":"'Data Input - BAT'!BM42","v":0},{"$f":"'Data Input - BAT'!BN42","v":0},{"$f":"'Data Input - BAT'!BO42","v":0},{"$f":"'Data Input - BAT'!BP42","v":0},{"$f":"'Data Input - BAT'!BQ42","v":0},{"$f":"'Data Input - BAT'!BR42","v":0},{"$f":"'Data Input - BAT'!BS42","v":0},{"$f":"'Data Input - BAT'!BT42","v":0},{"$f":"'Data Input - BAT'!BU42","v":0},{"$f":"'Data Input - BAT'!BV42","v":0},{"$f":"'Data Input - BAT'!BW42","v":0},{"$f":"'Data Input - BAT'!BX42","v":0},{"$f":"'Data Input - BAT'!BY42","v":0},{"$f":"'Data Input - BAT'!BZ42","v":0},{"$f":"'Data Input - BAT'!CA42","v":0},{"$f":"'Data Input - BAT'!CB42","v":0},{"$f":"'Data Input - BAT'!CC42","v":0},{"$f":"'Data Input - BAT'!CD42","v":0},{"$f":"'Data Input - BAT'!CE42","v":0},{"$f":"'Data Input - BAT'!CF42","v":0},{"$f":"'Data Input - BAT'!CG42","v":0},{"$f":"'Data Input - BAT'!CH42","v":0},{"$f":"'Data Input - BAT'!CI42","v":0},{"$f":"'Data Input - BAT'!CJ42","v":0},{"$f":"'Data Input - BAT'!CK42","v":0},{"$f":"'Data Input - BAT'!CL42","v":0},{"$f":"'Data Input - BAT'!CM42","v":0},{"$f":"'Data Input - BAT'!CN42","v":0},{"$f":"'Data Input - BAT'!CO42","v":0},{"$f":"'Data Input - BAT'!CP42","v":0},{"$f":"'Data Input - BAT'!CQ42","v":0},{"$f":"'Data Input - BAT'!CR42","v":0},{"$f":"'Data Input - BAT'!CS42","v":0},{"$f":"'Data Input - BAT'!CT42","v":0},{"$f":"'Data Input - BAT'!CU42","v":0},{"$f":"'Data Input - BAT'!CV42","v":0},{"$f":"'Data Input - BAT'!CW42","v":0},{"$f":"'Data Input - BAT'!CX42","v":0},{"$f":"'Data Input - BAT'!CY42","v":0},{"$f":"'Data Input - BAT'!CZ42","v":0},{"$f":"'Data Input - BAT'!DA42","v":0},{"$f":"'Data Input - BAT'!DB42","v":0},{"$f":"'Data Input - BAT'!DC42","v":0}]
[null,"Discounted finacning","£000's",{"$f":"D226*D$7","v":0},{"$f":"E226*E$7","v":0},0,0,0,0,0,0,0,0,0,0,0,0,0,0,0,0,0,0,0,0,0,0,0,0,0,0,0,0,0,0,0,0,0,0,0,0,0,0,0,0,0,0,0,0,0,0,0,0,0,0,0,0,0,0,0,0,0,0,0,0,0,0,{"$f":"BP226*BP$7","v":0},0,0,0,0,0,0,0,0,0,0,0,0,0,0,0,0,0,0,0,0,0,0,0,0,0,0,0,0,0,0,0,0,0,0,0]
[]
[null,"Total capex","£000's",{"$f":"IF('Data Input - BAT'!$F$37=\"Yes\",D227+D13*(1+$D$177),D223)","v":1180.3209578850028},{"$f":"IF('Data Input - BAT'!$F$37=\"Yes\",E227+E13*(1+$D$177),E223)","v":1140.4067225942058},{"$f":"IF('Data Input - BAT'!$F$37=\"Yes\",F227+F13*(1+$D$177),F223)","v":1101.8422440523727},{"$f":"IF('Data Input - BAT'!$F$37=\"Yes\",G227+G13*(1+$D$177),G223)","v":1064.5818783114714},{"$f":"IF('Data Input - BAT'!$F$37=\"Yes\",H227+H13*(1+$D$177),H223)","v":1028.5815249386196},{"$f":"IF('Data Input - BAT'!$F$37=\"Yes\",I227+I13*(1+$D$177),I223)","v":993.79857481992246},{"$f":"IF('Data Input - BAT'!$F$37=\"Yes\",J227+J13*(1+$D$177),J223)","v":960.19185972939374},{"$f":"IF('Data Input - BAT'!$F$37=\"Yes\",K227+K13*(1+$D$177),K223)","v":927.72160360327916},{"$f":"IF('Data Input - BAT'!$F$37=\"Yes\",L227+L13*(1+$D$177),L223)","v":896.34937546210551},{"$f":"IF('Data Input - BAT'!$F$37=\"Yes\",M227+M13*(1+$D$177),M223)","v":866.03804392473978},{"$f":"IF('Data Input - BAT'!$F$37=\"Yes\",N227+N13*(1+$D$177),N223)","v":836.75173326061815},{"$f":"IF('Data Input - BAT'!$F$37=\"Yes\",O227+O13*(1+$D$177),O223)","v":808.45578092813355},{"$f":"IF('Data Input - BAT'!$F$37=\"Yes\",P227+P13*(1+$D$177),P223)","v":781.11669654892137},{"$f":"IF('Data Input - BAT'!$F$37=\"Yes\",Q227+Q13*(1+$D$177),Q223)","v":754.70212226948934},{"$f":"IF('Data Input - BAT'!$F$37=\"Yes\",R227+R13*(1+$D$177),R223)","v":729.18079446327476},{"$f":"IF('Data Input - BAT'!$F$37=\"Yes\",S227+S13*(1+$D$177),S223)","v":704.52250672780167},{"$f":"IF('Data Input - BAT'!$F$37=\"Yes\",T227+T13*(1+$D$177),T223)","v":680.69807413314186},{"$f":"IF('Data Input - BAT'!$F$37=\"Yes\",U227+U13*(1+$D$177),U223)","v":657.67929867936414},{"$f":"IF('Data Input - BAT'!$F$37=\"Yes\",V227+V13*(1+$D$177),V223)","v":635.43893592209099},{"$f":"IF('Data Input - BAT'!$F$37=\"Yes\",W227+W13*(1+$D$177),W223)","v":613.95066272665792},{"$f":"IF('Data Input - BAT'!$F$37=\"Yes\",X227+X13*(1+$D$177),X223)","v":593.18904611271307},{"$f":"IF('Data Input - BAT'!$F$37=\"Yes\",Y227+Y13*(1+$D$177),Y223)","v":573.12951315237979},{"$f":"IF('Data Input - BAT'!$F$37=\"Yes\",Z227+Z13*(1+$D$177),Z223)","v":553.7483218863573},{"$f":"IF('Data Input - BAT'!$F$37=\"Yes\",AA227+AA13*(1+$D$177),AA223)","v":535.02253322353374},{"$f":"IF('Data Input - BAT'!$F$37=\"Yes\",AB227+AB13*(1+$D$177),AB223)","v":516.92998379085395},{"$f":"IF('Data Input - BAT'!$F$37=\"Yes\",AC227+AC13*(1+$D$177),AC223)","v":499.44925970130816},{"$f":"IF('Data Input - BAT'!$F$37=\"Yes\",AD227+AD13*(1+$D$177),AD223)","v":482.55967120899345},{"$f":"IF('Data Input - BAT'!$F$37=\"Yes\",AE227+AE13*(1+$D$177),AE223)","v":466.2412282212498},{"$f":"IF('Data Input - BAT'!$F$37=\"Yes\",AF227+AF13*(1+$D$177),AF223)","v":450.47461663888868},{"$f":"IF('Data Input - BAT'!$F$37=\"Yes\",AG227+AG13*(1+$D$177),AG223)","v":435.24117549651089},{"$f":"IF('Data Input - BAT'!$F$37=\"Yes\",AH227+AH13*(1+$D$177),AH223)","v":422.56424805486489},{"$f":"IF('Data Input - BAT'!$F$37=\"Yes\",AI227+AI13*(1+$D$177),AI223)","v":0},{"$f":"IF('Data Input - BAT'!$F$37=\"Yes\",AJ227+AJ13*(1+$D$177),AJ223)","v":0},{"$f":"IF('Data Input - BAT'!$F$37=\"Yes\",AK227+AK13*(1+$D$177),AK223)","v":0},{"$f":"IF('Data Input - BAT'!$F$37=\"Yes\",AL227+AL13*(1+$D$177),AL223)","v":0},{"$f":"IF('Data Input - BAT'!$F$37=\"Yes\",AM227+AM13*(1+$D$177),AM223)","v":0},{"$f":"IF('Data Input - BAT'!$F$37=\"Yes\",AN227+AN13*(1+$D$177),AN223)","v":0},{"$f":"IF('Data Input - BAT'!$F$37=\"Yes\",AO227+AO13*(1+$D$177),AO223)","v":0},{"$f":"IF('Data Input - BAT'!$F$37=\"Yes\",AP227+AP13*(1+$D$177),AP223)","v":0},{"$f":"IF('Data Input - BAT'!$F$37=\"Yes\",AQ227+AQ13*(1+$D$177),AQ223)","v":0},{"$f":"IF('Data Input - BAT'!$F$37=\"Yes\",AR227+AR13*(1+$D$177),AR223)","v":0},{"$f":"IF('Data Input - BAT'!$F$37=\"Yes\",AS227+AS13*(1+$D$177),AS223)","v":0},{"$f":"IF('Data Input - BAT'!$F$37=\"Yes\",AT227+AT13*(1+$D$177),AT223)","v":0},{"$f":"IF('Data Input - BAT'!$F$37=\"Yes\",AU227+AU13*(1+$D$177),AU223)","v":0},{"$f":"IF('Data Input - BAT'!$F$37=\"Yes\",AV227+AV13*(1+$D$177),AV223)","v":0},{"$f":"IF('Data Input - BAT'!$F$37=\"Yes\",AW227+AW13*(1+$D$177),AW223)","v":0},{"$f":"IF('Data Input - BAT'!$F$37=\"Yes\",AX227+AX13*(1+$D$177),AX223)","v":0},{"$f":"IF('Data Input - BAT'!$F$37=\"Yes\",AY227+AY13*(1+$D$177),AY223)","v":0},{"$f":"IF('Data Input - BAT'!$F$37=\"Yes\",AZ227+AZ13*(1+$D$177),AZ223)","v":0},{"$f":"IF('Data Input - BAT'!$F$37=\"Yes\",BA227+BA13*(1+$D$177),BA223)","v":0},{"$f":"IF('Data Input - BAT'!$F$37=\"Yes\",BB227+BB13*(1+$D$177),BB223)","v":0},{"$f":"IF('Data Input - BAT'!$F$37=\"Yes\",BC227+BC13*(1+$D$177),BC223)","v":0},{"$f":"IF('Data Input - BAT'!$F$37=\"Yes\",BD227+BD13*(1+$D$177),BD223)","v":0},{"$f":"IF('Data Input - BAT'!$F$37=\"Yes\",BE227+BE13*(1+$D$177),BE223)","v":0},{"$f":"IF('Data Input - BAT'!$F$37=\"Yes\",BF227+BF13*(1+$D$177),BF223)","v":0},{"$f":"IF('Data Input - BAT'!$F$37=\"Yes\",BG227+BG13*(1+$D$177),BG223)","v":0},{"$f":"IF('Data Input - BAT'!$F$37=\"Yes\",BH227+BH13*(1+$D$177),BH223)","v":0},{"$f":"IF('Data Input - BAT'!$F$37=\"Yes\",BI227+BI13*(1+$D$177),BI223)","v":0},{"$f":"IF('Data Input - BAT'!$F$37=\"Yes\",BJ227+BJ13*(1+$D$177),BJ223)","v":0},{"$f":"IF('Data Input - BAT'!$F$37=\"Yes\",BK227+BK13*(1+$D$177),BK223)","v":0},{"$f":"IF('Data Input - BAT'!$F$37=\"Yes\",BL227+BL13*(1+$D$177),BL223)","v":0},{"$f":"IF('Data Input - BAT'!$F$37=\"Yes\",BM227+BM13*(1+$D$177),BM223)","v":0},{"$f":"IF('Data Input - BAT'!$F$37=\"Yes\",BN227+BN13*(1+$D$177),BN223)","v":0},{"$f":"IF('Data Input - BAT'!$F$37=\"Yes\",BO227+BO13*(1+$D$177),BO223)","v":0},{"$f":"IF('Data Input - BAT'!$F$37=\"Yes\",BP227+BP13*(1+$D$177),BP223)","v":0},{"$f":"IF('Data Input - BAT'!$F$37=\"Yes\",BQ227+BQ13*(1+$D$177),BQ223)","v":0},{"$f":"IF('Data Input - BAT'!$F$37=\"Yes\",BR227+BR13*(1+$D$177),BR223)","v":0},{"$f":"IF('Data Input - BAT'!$F$37=\"Yes\",BS227+BS13*(1+$D$177),BS223)","v":0},{"$f":"IF('Data Input - BAT'!$F$37=\"Yes\",BT227+BT13*(1+$D$177),BT223)","v":0},{"$f":"IF('Data Input - BAT'!$F$37=\"Yes\",BU227+BU13*(1+$D$177),BU223)","v":0},{"$f":"IF('Data Input - BAT'!$F$37=\"Yes\",BV227+BV13*(1+$D$177),BV223)","v":0},{"$f":"IF('Data Input - BAT'!$F$37=\"Yes\",BW227+BW13*(1+$D$177),BW223)","v":0},{"$f":"IF('Data Input - BAT'!$F$37=\"Yes\",BX227+BX13*(1+$D$177),BX223)","v":0},{"$f":"IF('Data Input - BAT'!$F$37=\"Yes\",BY227+BY13*(1+$D$177),BY223)","v":0},{"$f":"IF('Data Input - BAT'!$F$37=\"Yes\",BZ227+BZ13*(1+$D$177),BZ223)","v":0},{"$f":"IF('Data Input - BAT'!$F$37=\"Yes\",CA227+CA13*(1+$D$177),CA223)","v":0},{"$f":"IF('Data Input - BAT'!$F$37=\"Yes\",CB227+CB13*(1+$D$177),CB223)","v":0},{"$f":"IF('Data Input - BAT'!$F$37=\"Yes\",CC227+CC13*(1+$D$177),CC223)","v":0},{"$f":"IF('Data Input - BAT'!$F$37=\"Yes\",CD227+CD13*(1+$D$177),CD223)","v":0},{"$f":"IF('Data Input - BAT'!$F$37=\"Yes\",CE227+CE13*(1+$D$177),CE223)","v":0},{"$f":"IF('Data Input - BAT'!$F$37=\"Yes\",CF227+CF13*(1+$D$177),CF223)","v":0},{"$f":"IF('Data Input - BAT'!$F$37=\"Yes\",CG227+CG13*(1+$D$177),CG223)","v":0},{"$f":"IF('Data Input - BAT'!$F$37=\"Yes\",CH227+CH13*(1+$D$177),CH223)","v":0},{"$f":"IF('Data Input - BAT'!$F$37=\"Yes\",CI227+CI13*(1+$D$177),CI223)","v":0},{"$f":"IF('Data Input - BAT'!$F$37=\"Yes\",CJ227+CJ13*(1+$D$177),CJ223)","v":0},{"$f":"IF('Data Input - BAT'!$F$37=\"Yes\",CK227+CK13*(1+$D$177),CK223)","v":0},{"$f":"IF('Data Input - BAT'!$F$37=\"Yes\",CL227+CL13*(1+$D$177),CL223)","v":0},{"$f":"IF('Data Input - BAT'!$F$37=\"Yes\",CM227+CM13*(1+$D$177),CM223)","v":0},{"$f":"IF('Data Input - BAT'!$F$37=\"Yes\",CN227+CN13*(1+$D$177),CN223)","v":0},{"$f":"IF('Data Input - BAT'!$F$37=\"Yes\",CO227+CO13*(1+$D$177),CO223)","v":0},{"$f":"IF('Data Input - BAT'!$F$37=\"Yes\",CP227+CP13*(1+$D$177),CP223)","v":0},{"$f":"IF('Data Input - BAT'!$F$37=\"Yes\",CQ227+CQ13*(1+$D$177),CQ223)","v":0},{"$f":"IF('Data Input - BAT'!$F$37=\"Yes\",CR227+CR13*(1+$D$177),CR223)","v":0},{"$f":"IF('Data Input - BAT'!$F$37=\"Yes\",CS227+CS13*(1+$D$177),CS223)","v":0},{"$f":"IF('Data Input - BAT'!$F$37=\"Yes\",CT227+CT13*(1+$D$177),CT223)","v":0},{"$f":"IF('Data Input - BAT'!$F$37=\"Yes\",CU227+CU13*(1+$D$177),CU223)","v":0},{"$f":"IF('Data Input - BAT'!$F$37=\"Yes\",CV227+CV13*(1+$D$177),CV223)","v":0},{"$f":"IF('Data Input - BAT'!$F$37=\"Yes\",CW227+CW13*(1+$D$177),CW223)","v":0},{"$f":"IF('Data Input - BAT'!$F$37=\"Yes\",CX227+CX13*(1+$D$177),CX223)","v":0},{"$f":"IF('Data Input - BAT'!$F$37=\"Yes\",CY227+CY13*(1+$D$177),CY223)","v":0}]
[]
[null,"TOTALS"]
[]
[null,"Scenario Name",null,"Central","Low values","High values","EEA",null,"Low cost (Capex / opex)","High Cost (capex / opex)","Low WACC","High WACC","Low cost (Capex / WACC)","High cost (Capex / WACC)"]
[null,"Capex","£000's",{"$f":"SUM(D36:CY36)","v":16907.065970018015},null,null,null,null,{"$f":"D234*(1-$D$177)","v":11834.94617901261},{"$f":"D234*(1+$D$177)","v":21979.185761023422},{"$f":"SUM(D194:CY194)","v":16218.523883132018},{"$f":"SUM(D205:CY205)","v":17608.368452667888},{"$f":"SUM(D218:CY218)","v":11352.966718192411},{"$f":"SUM(D229:CY229)","v":22890.878988468259}]
[null,"Opex","£000's",{"$f":"SUM(D40:CY40)","v":3001.5447912080449},null,null,null,null,{"$f":"$D$235*(1-$D$181)","v":2401.2358329664362},{"$f":"$D$235*(1+$D$181)","v":3601.8537494496536}]
[null,"Waste","£000's",{"$f":"SUM(D44:CY44)","v":0}]
[null,"Energy consumption","£000's",{"$f":"SUM(D48:CY48)","v":11919.831628597303},{"$f":"SUM(D101:CY101)+SUM(D49:CY49)","v":10037.007675232446},{"$f":"SUM(D135:CY135)+SUM(D49:CY49)","v":13977.530704422566}]
[null,"Air pollutant emissions","£000's",{"$f":"SUM(D72:CY72)","v":18.592957771143446},{"$f":"SUM(D115:CY115)","v":4.4192730809460983},{"$f":"SUM(D149:CY149)","v":52.939394030032361},{"$f":"SUM(D173:CY173)","v":29.226336299588244}]
[null,"GHG emissions","£000's",{"$f":"SUM(D87:CY87)","v":15983.981786527293},{"$f":"SUM(D122:CY122)","v":7632.7113632680703},{"$f":"SUM(D156:CY156)","v":43812.459557315284}]
[null,"Wider impacts","£000's"]
[]
[null,"Sensitivity analysis",null,"Low capex","High capex","Low opex","High opex","Low energy price","High energy price","Low AQ Values","High AQ Values","EEA Values","Location adjusted AQ","Low WACC","High WACC"]
[null,"Capex","£000's",{"$f":"I234","v":11834.94617901261},{"$f":"J234","v":21979.185761023422},{"$f":"$D234","v":16907.065970018015},16907.065970018015,16907.065970018015,16907.065970018015,16907.065970018015,16907.065970018015,16907.065970018015,16907.065970018015,{"$f":"K234","v":16218.523883132018},{"$f":"L234","v":17608.368452667888}]
[null,"Opex","£000's",{"$f":"$D235","v":3001.5447912080449},3001.5447912080449,{"$f":"I235","v":2401.2358329664362},{"$f":"J235","v":3601.8537494496536},{"$f":"$D235","v":3001.5447912080449},3001.5447912080449,3001.5447912080449,3001.5447912080449,3001.5447912080449,3001.5447912080449,3001.5447912080449,3001.5447912080449]
[null,"Waste","£000's",0,0,{"$f":"$D236","v":0},0,0,0,0,0,0,0,0,0]
[null,"Energy consumption","£000's",11919.831628597303,11919.831628597303,11919.831628597303,11919.831628597303,{"$f":"E237","v":10037.007675232446},{"$f":"F237","v":13977.530704422566},{"$f":"$D237","v":11919.831628597303},11919.831628597303,11919.831628597303,11919.831628597303,11919.831628597303,11919.831628597303]
[null,"Air pollutant emissions","£000's",18.592957771143446,18.592957771143446,18.592957771143446,18.592957771143446,{"$f":"$D238","v":18.592957771143446},{"$f":"$D238","v":18.592957771143446},{"$f":"E238","v":4.4192730809460983},{"$f":"F238","v":52.939394030032361},{"$f":"G238","v":29.226336299588244},{"$f":"H238","v":0},{"$f":"$D238","v":18.592957771143446},{"$f":"$D238","v":18.592957771143446}]
[null,"GHG emissions","£000's",15983.981786527293,15983.981786527293,15983.981786527293,15983.981786527293,{"$f":"$D239","v":15983.981786527293},{"$f":"$D239","v":15983.981786527293},{"$f":"$D239","v":15983.981786527293},{"$f":"$D239","v":15983.981786527293},{"$f":"$D239","v":15983.981786527293},{"$f":"$D239","v":15983.981786527293},{"$f":"$D239","v":15983.981786527293},{"$f":"$D239","v":15983.981786527293}]
[]
[null,"Scenario analysis",null,"H Cost/L Benefit","L Cost/H benefit"]
[null,"Capex","£000's",{"$f":"N234","v":22890.878988468259},{"$f":"M234","v":11352.966718192411}]
[null,"Opex","£000's",{"$f":"J235","v":3601.8537494496536},{"$f":"I235","v":2401.2358329664362}]
[null,"Waste","£000's",{"$f":"$D$236","v":0},{"$f":"$D$236","v":0}]
[null,"Energy consumption","£000's",{"$f":"E237","v":10037.007675232446},13977.530704422566]
[null,"Air pollutant emissions","£000's",4.4192730809460983,52.939394030032361]
[null,"GHG emissions","£000's",7632.7113632680703,43812.459557315284]
[]
[null,"Totals £m"]
[]
[null,"Scenario Name",null,"Central","Low values","High values","EEA","Location adjusted","Low cost (Capex / opex)","High Cost (capex / opex)","Low WACC","High WACC","Low cost (Capex / WACC)","High cost (Capex / WACC)"]
[null,"Capex","£m",{"$f":"D234/1000","v":16.907065970018014},0,0,0,0,11.83494617901261,21.979185761023423,16.218523883132018,17.608368452667889,11.352966718192411,22.890878988468259]
[null,"Opex","£m",{"$f":"D235/1000","v":3.0015447912080448},0,0,0,0,2.4012358329664361,3.6018537494496536,0,0,0,0]
[null,"Waste","£m",{"$f":"D236/1000","v":0},0,0,0,0,0,0,0,0,0,0]
[null,"Energy consumption","£m",{"$f":"D237/1000","v":11.919831628597302},10.037007675232445,13.977530704422566,0,0,0,0,0,0,0,0]
[null,"Air pollutant emissions","£m",{"$f":"D238/1000","v":1.8592957771143444E-2},4.4192730809460984E-3,5.2939394030032359E-2,2.9226336299588245E-2,0,0,0,0,0,0,0]
[null,"GHG emissions","£m",{"$f":"D239/1000","v":15.983981786527293},7.6327113632680703,43.812459557315286,0,0,0,0,0,0,0,0]
[null,"Wider impacts","£m",{"$f":"D240/1000","v":0},0,0,0,0,0,0,0,0,0,0]
[]
[null,"Sensitivity analysis",null,"Low capex","High capex","Low opex","High opex","Low energy price","High energy price","Low AQ Values","High AQ Values","EEA Values","Location adjusted AQ","Low WACC","High WACC"]
[null,"Capex","£m",{"$f":"D243/1000","v":11.83494617901261},21.979185761023423,16.907065970018014,16.907065970018014,16.907065970018014,16.907065970018014,16.907065970018014,16.907065970018014,16.907065970018014,16.907065970018014,16.218523883132018,17.608368452667889]
[null,"Opex","£m",{"$f":"D244/1000","v":3.0015447912080448},3.0015447912080448,2.4012358329664361,3.6018537494496536,3.0015447912080448,3.0015447912080448,3.0015447912080448,3.0015447912080448,3.0015447912080448,3.0015447912080448,3.0015447912080448,3.0015447912080448]
[null,"Waste","£m",{"$f":"D245/1000","v":0},0,0,0,0,0,0,0,0,0,0,0]
[null,"Energy consumption","£m",{"$f":"D246/1000","v":11.919831628597302},11.919831628597302,11.919831628597302,11.919831628597302,10.037007675232445,13.977530704422566,11.919831628597302,11.919831628597302,11.919831628597302,11.919831628597302,11.919831628597302,11.919831628597302]
[null,"Air pollutant emissions","£m",{"$f":"D247/1000","v":1.8592957771143444E-2},1.8592957771143444E-2,1.8592957771143444E-2,1.8592957771143444E-2,1.8592957771143444E-2,1.8592957771143444E-2,4.4192730809460984E-3,5.2939394030032359E-2,2.9226336299588245E-2,0,1.8592957771143444E-2,1.8592957771143444E-2]
[null,"GHG emissions","£m",{"$f":"D248/1000","v":15.983981786527293},15.983981786527293,15.983981786527293,15.983981786527293,15.983981786527293,15.983981786527293,15.983981786527293,15.983981786527293,15.983981786527293,15.983981786527293,15.983981786527293,15.983981786527293]
[]
[null,"Scenario analysis",null,{"$f":"D250","v":"H Cost/L Benefit"},"L Cost/H benefit"]
[null,"Capex","£m",{"$f":"D251/1000","v":22.890878988468259},{"$f":"E251/1000","v":11.352966718192411}]
[null,"Opex","£m",3.6018537494496536,2.4012358329664361]
[null,"Waste","£m",0,0]
[null,"Energy consumption","£m",10.037007675232445,13.977530704422566]
[null,"Air pollutant emissions","£m",4.4192730809460984E-3,5.2939394030032359E-2]
[null,"GHG emissions","£m",7.6327113632680703,43.812459557315286]

{"sheet":"Calc_Option3","index":22,"n_rows":283,"n_cols":103,"rows_kept":283,"cut":false,"hidden":false,"merged":[]}
[]
[null,"Calculations - Option 3","<< BACK to Data Input"]
[null,{"$f":"IF(ISBLANK('Data Input - Case description'!G20),\"Option not selected\",'Data Input - Case description'!G20)","v":"Waste off"}]
[null,"First year",{"$f":"IF('Data Input - General'!F25=0,'Data Input - General'!F22,'Data Input - General'!F25)","v":2019}]
[null,"Year number",null,0,1,2,3,4,5,6,7,8,9,10,11,12,13,14,15,16,17,18,19,20,21,22,23,24,25,26,27,28,29,30,31,32,33,34,35,36,37,38,39,40,41,42,43,44,45,46,47,48,49,50,51,52,53,54,55,56,57,58,59]
[null,"Year",null,{"$f":"'Data Input - Option 3'!H7","v":2019},{"$f":"'Data Input - Option 3'!I7","v":2020},{"$f":"'Data Input - Option 3'!J7","v":2021},{"$f":"'Data Input - Option 3'!K7","v":2022},{"$f":"'Data Input - Option 3'!L7","v":2023},{"$f":"'Data Input - Option 3'!M7","v":2024},{"$f":"'Data Input - Option 3'!N7","v":2025},{"$f":"'Data Input - Option 3'!O7","v":2026},{"$f":"'Data Input - Option 3'!P7","v":2027},{"$f":"'Data Input - Option 3'!Q7","v":2028},{"$f":"'Data Input - Option 3'!R7","v":2029},{"$f":"'Data Input - Option 3'!S7","v":2030},{"$f":"'Data Input - Option 3'!T7","v":2031},{"$f":"'Data Input - Option 3'!U7","v":2032},{"$f":"'Data Input - Option 3'!V7","v":2033},{"$f":"'Data Input - Option 3'!W7","v":2034},{"$f":"'Data Input - Option 3'!X7","v":2035},{"$f":"'Data Input - Option 3'!Y7","v":2036},{"$f":"'Data Input - Option 3'!Z7","v":2037},{"$f":"'Data Input - Option 3'!AA7","v":2038},{"$f":"'Data Input - Option 3'!AB7","v":2039},{"$f":"'Data Input - Option 3'!AC7","v":2040},{"$f":"'Data Input - Option 3'!AD7","v":2041},{"$f":"'Data Input - Option 3'!AE7","v":2042},{"$f":"'Data Input - Option 3'!AF7","v":2043},{"$f":"'Data Input - Option 3'!AG7","v":2044},{"$f":"'Data Input - Option 3'!AH7","v":2045},{"$f":"'Data Input - Option 3'!AI7","v":2046},{"$f":"'Data Input - Option 3'!AJ7","v":2047},{"$f":"'Data Input - Option 3'!AK7","v":2048},{"$f":"'Data Input - Option 3'!AL7","v":2049},{"$f":"'Data Input - Option 3'!AM7","v":0},{"$f":"'Data Input - Option 3'!AN7","v":0},{"$f":"'Data Input - Option 3'!AO7","v":0},{"$f":"'Data Input - Option 3'!AP7","v":0},{"$f":"'Data Input - Option 3'!AQ7","v":0},{"$f":"'Data Input - Option 3'!AR7","v":0},{"$f":"'Data Input - Option 3'!AS7","v":0},{"$f":"'Data Input - Option 3'!AT7","v":0},{"$f":"'Data Input - Option 3'!AU7","v":0},{"$f":"'Data Input - Option 3'!AV7","v":0},{"$f":"'Data Input - Option 3'!AW7","v":0},{"$f":"'Data Input - Option 3'!AX7","v":0},{"$f":"'Data Input - Option 3'!AY7","v":0},{"$f":"'Data Input - Option 3'!AZ7","v":0},{"$f":"'Data Input - Option 3'!BA7","v":0},{"$f":"'Data Input - Option 3'!BB7","v":0},{"$f":"'Data Input - Option 3'!BC7","v":0},{"$f":"'Data Input - Option 3'!BD7","v":0},{"$f":"'Data Input - Option 3'!BE7","v":0},{"$f":"'Data Input - Option 3'!BF7","v":0},{"$f":"'Data Input - Option 3'!BG7","v":0},{"$f":"'Data Input - Option 3'!BH7","v":0},{"$f":"'Data Input - Option 3'!BI7","v":0},{"$f":"'Data Input - Option 3'!BJ7","v":0},{"$f":"'Data Input - Option 3'!BK7","v":0},{"$f":"'Data Input - Option 3'!BL7","v":0},{"$f":"'Data Input - Option 3'!BM7","v":0},{"$f":"'Data Input - Option 3'!BN7","v":0},{"$f":"'Data Input - Option 3'!BO7","v":0},{"$f":"'Data Input - Option 3'!BP7","v":0},{"$f":"'Data Input - Option 3'!BQ7","v":0},{"$f":"'Data Input - Option 3'!BR7","v":0},{"$f":"'Data Input - Option 3'!BS7","v":0},{"$f":"'Data Input - Option 3'!BT7","v":0},{"$f":"'Data Input - Option 3'!BU7","v":0},{"$f":"'Data Input - Option 3'!BV7","v":0},{"$f":"'Data Input - Option 3'!BW7","v":0},{"$f":"'Data Input - Option 3'!BX7","v":0},{"$f":"'Data Input - Option 3'!BY7","v":0},{"$f":"'Data Input - Option 3'!BZ7","v":0},{"$f":"'Data Input - Option 3'!CA7","v":0},{"$f":"'Data Input - Option 3'!CB7","v":0},{"$f":"'Data Input - Option 3'!CC7","v":0},{"$f":"'Data Input - Option 3'!CD7","v":0},{"$f":"'Data Input - Option 3'!CE7","v":0},{"$f":"'Data Input - Option 3'!CF7","v":0},{"$f":"'Data Input - Option 3'!CG7","v":0},{"$f":"'Data Input - Option 3'!CH7","v":0},{"$f":"'Data Input - Option 3'!CI7","v":0},{"$f":"'Data Input - Option 3'!CJ7","v":0},{"$f":"'Data Input - Option 3'!CK7","v":0},{"$f":"'Data Input - Option 3'!CL7","v":0},{"$f":"'Data Input - Option 3'!CM7","v":0},{"$f":"'Data Input - Option 3'!CN7","v":0},{"$f":"'Data Input - Option 3'!CO7","v":0},{"$f":"'Data Input - Option 3'!CP7","v":0},{"$f":"'Data Input - Option 3'!CQ7","v":0},{"$f":"'Data Input - Option 3'!CR7","v":0},{"$f":"'Data Input - Option 3'!CS7","v":0},{"$f":"'Data Input - Option 3'!CT7","v":0},{"$f":"'Data Input - Option 3'!CU7","v":0},{"$f":"'Data Input - Option 3'!CV7","v":0},{"$f":"'Data Input - Option 3'!CW7","v":0},{"$f":"'Data Input - Option 3'!CX7","v":0},{"$f":"'Data Input - Option 3'!CY7","v":0},{"$f":"'Data Input - Option 3'!CZ7","v":0},{"$f":"'Data Input - Option 3'!DA7","v":0},{"$f":"'Data Input - Option 3'!DB7","v":0},{"$f":"'Data Input - Option 3'!DC7","v":0}]
[null,"Discount factor",null,{"$f":"IF(D6=0,0,'Discount and deflators'!F12)","v":1},{"$f":"IF(E6=0,0,'Discount and deflators'!G12)","v":0.96618357487922713},{"$f":"IF(F6=0,0,'Discount and deflators'!H12)","v":0.93351070036640305},{"$f":"IF(G6=0,0,'Discount and deflators'!I12)","v":0.90194270566802237},{"$f":"IF(H6=0,0,'Discount and deflators'!J12)","v":0.87144222769857238},{"$f":"IF(I6=0,0,'Discount and deflators'!K12)","v":0.84197316685852408},{"$f":"IF(J6=0,0,'Discount and deflators'!L12)","v":0.81350064430775282},{"$f":"IF(K6=0,0,'Discount and deflators'!M12)","v":0.78599096068381924},{"$f":"IF(L6=0,0,'Discount and deflators'!N12)","v":0.75941155621625056},{"$f":"IF(M6=0,0,'Discount and deflators'!O12)","v":0.73373097218961414},{"$f":"IF(N6=0,0,'Discount and deflators'!P12)","v":0.70891881370977217},{"$f":"IF(O6=0,0,'Discount and deflators'!Q12)","v":0.68494571372924851},{"$f":"IF(P6=0,0,'Discount and deflators'!R12)","v":0.66178329828912907},{"$f":"IF(Q6=0,0,'Discount and deflators'!S12)","v":0.63940415293635666},{"$f":"IF(R6=0,0,'Discount and deflators'!T12)","v":0.61778179027667313},{"$f":"IF(S6=0,0,'Discount and deflators'!U12)","v":0.59689061862480497},{"$f":"IF(T6=0,0,'Discount and deflators'!V12)","v":0.57670591171478747},{"$f":"IF(U6=0,0,'Discount and deflators'!W12)","v":0.55720377943457733},{"$f":"IF(V6=0,0,'Discount and deflators'!X12)","v":0.53836113955031628},{"$f":"IF(W6=0,0,'Discount and deflators'!Y12)","v":0.520155690386779},{"$f":"IF(X6=0,0,'Discount and deflators'!Z12)","v":0.50256588443167061},{"$f":"IF(Y6=0,0,'Discount and deflators'!AA12)","v":0.48557090283253201},{"$f":"IF(Z6=0,0,'Discount and deflators'!AB12)","v":0.46915063075606961},{"$f":"IF(AA6=0,0,'Discount and deflators'!AC12)","v":0.45328563358074364},{"$f":"IF(AB6=0,0,'Discount and deflators'!AD12)","v":0.43795713389443836},{"$f":"IF(AC6=0,0,'Discount and deflators'!AE12)","v":0.42314698926998878},{"$f":"IF(AD6=0,0,'Discount and deflators'!AF12)","v":0.40883767079225974},{"$f":"IF(AE6=0,0,'Discount and deflators'!AG12)","v":0.39501224231136212},{"$f":"IF(AF6=0,0,'Discount and deflators'!AH12)","v":0.38165434039745133},{"$f":"IF(AG6=0,0,'Discount and deflators'!AI12)","v":0.36874815497338298},{"$f":"IF(AH6=0,0,'Discount and deflators'!AJ12)","v":0.35800791744988636},{"$f":"IF(AI6=0,0,'Discount and deflators'!AK12)","v":0},{"$f":"IF(AJ6=0,0,'Discount and deflators'!AL12)","v":0},{"$f":"IF(AK6=0,0,'Discount and deflators'!AM12)","v":0},{"$f":"IF(AL6=0,0,'Discount and deflators'!AN12)","v":0},{"$f":"IF(AM6=0,0,'Discount and deflators'!AO12)","v":0},{"$f":"IF(AN6=0,0,'Discount and deflators'!AP12)","v":0},{"$f":"IF(AO6=0,0,'Discount and deflators'!AQ12)","v":0},{"$f":"IF(AP6=0,0,'Discount and deflators'!AR12)","v":0},{"$f":"IF(AQ6=0,0,'Discount and deflators'!AS12)","v":0},{"$f":"IF(AR6=0,0,'Discount and deflators'!AT12)","v":0},{"$f":"IF(AS6=0,0,'Discount and deflators'!AU12)","v":0},{"$f":"IF(AT6=0,0,'Discount and deflators'!AV12)","v":0},{"$f":"IF(AU6=0,0,'Discount and deflators'!AW12)","v":0},{"$f":"IF(AV6=0,0,'Discount and deflators'!AX12)","v":0},{"$f":"IF(AW6=0,0,'Discount and deflators'!AY12)","v":0},{"$f":"IF(AX6=0,0,'Discount and deflators'!AZ12)","v":0},{"$f":"IF(AY6=0,0,'Discount and deflators'!BA12)","v":0},{"$f":"IF(AZ6=0,0,'Discount and deflators'!BB12)","v":0},{"$f":"IF(BA6=0,0,'Discount and deflators'!BC12)","v":0},{"$f":"IF(BB6=0,0,'Discount and deflators'!BD12)","v":0},{"$f":"IF(BC6=0,0,'Discount and deflators'!BE12)","v":0},{"$f":"IF(BD6=0,0,'Discount and deflators'!BF12)","v":0},{"$f":"IF(BE6=0,0,'Discount and deflators'!BG12)","v":0},{"$f":"IF(BF6=0,0,'Discount and deflators'!BH12)","v":0},{"$f":"IF(BG6=0,0,'Discount and deflators'!BI12)","v":0},{"$f":"IF(BH6=0,0,'Discount and deflators'!BJ12)","v":0},{"$f":"IF(BI6=0,0,'Discount and deflators'!BK12)","v":0},{"$f":"IF(BJ6=0,0,'Discount and deflators'!BL12)","v":0},{"$f":"IF(BK6=0,0,'Discount and deflators'!BM12)","v":0},{"$f":"IF(BL6=0,0,'Discount and deflators'!BN12)","v":0},{"$f":"IF(BM6=0,0,'Discount and deflators'!BO12)","v":0},{"$f":"IF(BN6=0,0,'Discount and deflators'!BP12)","v":0},{"$f":"IF(BO6=0,0,'Discount and deflators'!BQ12)","v":0},{"$f":"IF(BP6=0,0,'Discount and deflators'!BR12)","v":0},{"$f":"IF(BQ6=0,0,'Discount and deflators'!BS12)","v":0},{"$f":"IF(BR6=0,0,'Discount and deflators'!BT12)","v":0},{"$f":"IF(BS6=0,0,'Discount and deflators'!BU12)","v":0},{"$f":"IF(BT6=0,0,'Discount and deflators'!BV12)","v":0},{"$f":"IF(BU6=0,0,'Discount and deflators'!BW12)","v":0},{"$f":"IF(BV6=0,0,'Discount and deflators'!BX12)","v":0},{"$f":"IF(BW6=0,0,'Discount and deflators'!BY12)","v":0},{"$f":"IF(BX6=0,0,'Discount and deflators'!BZ12)","v":0},{"$f":"IF(BY6=0,0,'Discount and deflators'!CA12)","v":0},{"$f":"IF(BZ6=0,0,'Discount and deflators'!CB12)","v":0},{"$f":"IF(CA6=0,0,'Discount and deflators'!CC12)","v":0},{"$f":"IF(CB6=0,0,'Discount and deflators'!CD12)","v":0},{"$f":"IF(CC6=0,0,'Discount and deflators'!CE12)","v":0},{"$f":"IF(CD6=0,0,'Discount and deflators'!CF12)","v":0},{"$f":"IF(CE6=0,0,'Discount and deflators'!CG12)","v":0},{"$f":"IF(CF6=0,0,'Discount and deflators'!CH12)","v":0},{"$f":"IF(CG6=0,0,'Discount and deflators'!CI12)","v":0},{"$f":"IF(CH6=0,0,'Discount and deflators'!CJ12)","v":0},{"$f":"IF(CI6=0,0,'Discount and deflators'!CK12)","v":0},{"$f":"IF(CJ6=0,0,'Discount and deflators'!CL12)","v":0},{"$f":"IF(CK6=0,0,'Discount and deflators'!CM12)","v":0},{"$f":"IF(CL6=0,0,'Discount and deflators'!CN12)","v":0},{"$f":"IF(CM6=0,0,'Discount and deflators'!CO12)","v":0},{"$f":"IF(CN6=0,0,'Discount and deflators'!CP12)","v":0},{"$f":"IF(CO6=0,0,'Discount and deflators'!CQ12)","v":0},{"$f":"IF(CP6=0,0,'Discount and deflators'!CR12)","v":0},{"$f":"IF(CQ6=0,0,'Discount and deflators'!CS12)","v":0},{"$f":"IF(CR6=0,0,'Discount and deflators'!CT12)","v":0},{"$f":"IF(CS6=0,0,'Discount and deflators'!CU12)","v":0},{"$f":"IF(CT6=0,0,'Discount and deflators'!CV12)","v":0},{"$f":"IF(CU6=0,0,'Discount and deflators'!CW12)","v":0},{"$f":"IF(CV6=0,0,'Discount and deflators'!CX12)","v":0},{"$f":"IF(CW6=0,0,'Discount and deflators'!CY12)","v":0},{"$f":"IF(CX6=0,0,'Discount and deflators'!CZ12)","v":0},{"$f":"IF(CY6=0,0,'Discount and deflators'!DA12)","v":0}]
[]
[null,"CENTRAL CALCULATIONS"]
[]
[null,"Capital Costs (total)"]
[null,"Total Capex","£000's",{"$f":"'Data Input - Option 3'!H30","v":476},{"$f":"'Data Input - Option 3'!I30","v":476},{"$f":"'Data Input - Option 3'!J30","v":476},{"$f":"'Data Input - Option 3'!K30","v":476},{"$f":"'Data Input - Option 3'!L30","v":476},{"$f":"'Data Input - Option 3'!M30","v":476},{"$f":"'Data Input - Option 3'!N30","v":476},{"$f":"'Data Input - Option 3'!O30","v":0},{"$f":"'Data Input - Option 3'!P30","v":0},{"$f":"'Data Input - Option 3'!Q30","v":0},{"$f":"'Data Input - Option 3'!R30","v":0},{"$f":"'Data Input - Option 3'!S30","v":0},{"$f":"'Data Input - Option 3'!T30","v":0},{"$f":"'Data Input - Option 3'!U30","v":0},{"$f":"'Data Input - Option 3'!V30","v":0},{"$f":"'Data Input - Option 3'!W30","v":0},{"$f":"'Data Input - Option 3'!X30","v":0},{"$f":"'Data Input - Option 3'!Y30","v":0},{"$f":"'Data Input - Option 3'!Z30","v":0},{"$f":"'Data Input - Option 3'!AA30","v":0},{"$f":"'Data Input - Option 3'!AB30","v":0},{"$f":"'Data Input - Option 3'!AC30","v":0},{"$f":"'Data Input - Option 3'!AD30","v":0},{"$f":"'Data Input - Option 3'!AE30","v":0},{"$f":"'Data Input - Option 3'!AF30","v":0},{"$f":"'Data Input - Option 3'!AG30","v":0},{"$f":"'Data Input - Option 3'!AH30","v":0},{"$f":"'Data Input - Option 3'!AI30","v":0},{"$f":"'Data Input - Option 3'!AJ30","v":0},{"$f":"'Data Input - Option 3'!AK30","v":0},{"$f":"'Data Input - Option 3'!AL30","v":0},{"$f":"'Data Input - Option 3'!AM30","v":0},{"$f":"'Data Input - Option 3'!AN30","v":0},{"$f":"'Data Input - Option 3'!AO30","v":0},{"$f":"'Data Input - Option 3'!AP30","v":0},{"$f":"'Data Input - Option 3'!AQ30","v":0},{"$f":"'Data Input - Option 3'!AR30","v":0},{"$f":"'Data Input - Option 3'!AS30","v":0},{"$f":"'Data Input - Option 3'!AT30","v":0},{"$f":"'Data Input - Option 3'!AU30","v":0},{"$f":"'Data Input - Option 3'!AV30","v":0},{"$f":"'Data Input - Option 3'!AW30","v":0},{"$f":"'Data Input - Option 3'!AX30","v":0},{"$f":"'Data Input - Option 3'!AY30","v":0},{"$f":"'Data Input - Option 3'!AZ30","v":0},{"$f":"'Data Input - Option 3'!BA30","v":0},{"$f":"'Data Input - Option 3'!BB30","v":0},{"$f":"'Data Input - Option 3'!BC30","v":0},{"$f":"'Data Input - Option 3'!BD30","v":0},{"$f":"'Data Input - Option 3'!BE30","v":0},{"$f":"'Data Input - Option 3'!BF30","v":0},{"$f":"'Data Input - Option 3'!BG30","v":0},{"$f":"'Data Input - Option 3'!BH30","v":0},{"$f":"'Data Input - Option 3'!BI30","v":0},{"$f":"'Data Input - Option 3'!BJ30","v":0},{"$f":"'Data Input - Option 3'!BK30","v":0},{"$f":"'Data Input - Option 3'!BL30","v":0},{"$f":"'Data Input - Option 3'!BM30","v":0},{"$f":"'Data Input - Option 3'!BN30","v":0},{"$f":"'Data Input - Option 3'!BO30","v":0},{"$f":"'Data Input - Option 3'!BP30","v":0},{"$f":"'Data Input - Option 3'!BQ30","v":0},{"$f":"'Data Input - Option 3'!BR30","v":0},{"$f":"'Data Input - Option 3'!BS30","v":0},{"$f":"'Data Input - Option 3'!BT30","v":0},{"$f":"'Data Input - Option 3'!BU30","v":0},{"$f":"'Data Input - Option 3'!BV30","v":0},{"$f":"'Data Input - Option 3'!BW30","v":0},{"$f":"'Data Input - Option 3'!BX30","v":0},{"$f":"'Data Input - Option 3'!BY30","v":0},{"$f":"'Data Input - Option 3'!BZ30","v":0},{"$f":"'Data Input - Option 3'!CA30","v":0},{"$f":"'Data Input - Option 3'!CB30","v":0},{"$f":"'Data Input - Option 3'!CC30","v":0},{"$f":"'Data Input - Option 3'!CD30","v":0},{"$f":"'Data Input - Option 3'!CE30","v":0},{"$f":"'Data Input - Option 3'!CF30","v":0},{"$f":"'Data Input - Option 3'!CG30","v":0},{"$f":"'Data Input - Option 3'!CH30","v":0},{"$f":"'Data Input - Option 3'!CI30","v":0},{"$f":"'Data Input - Option 3'!CJ30","v":0},{"$f":"'Data Input - Option 3'!CK30","v":0},{"$f":"'Data Input - Option 3'!CL30","v":0},{"$f":"'Data Input - Option 3'!CM30","v":0},{"$f":"'Data Input - Option 3'!CN30","v":0},{"$f":"'Data Input - Option 3'!CO30","v":0},{"$f":"'Data Input - Option 3'!CP30","v":0},{"$f":"'Data Input - Option 3'!CQ30","v":0},{"$f":"'Data Input - Option 3'!CR30","v":0},{"$f":"'Data Input - Option 3'!CS30","v":0},{"$f":"'Data Input - Option 3'!CT30","v":0},{"$f":"'Data Input - Option 3'!CU30","v":0},{"$f":"'Data Input - Option 3'!CV30","v":0},{"$f":"'Data Input - Option 3'!CW30","v":0},{"$f":"'Data Input - Option 3'!CX30","v":0},{"$f":"'Data Input - Option 3'!CY30","v":0},{"$f":"'Data Input - Option 3'!CZ30","v":0},{"$f":"'Data Input - Option 3'!DA30","v":0},{"$f":"'Data Input - Option 3'!DB30","v":0},{"$f":"'Data Input - Option 3'!DC30","v":0}]
[null,"Total capex discounted","£000's",{"$f":"D12*D$7","v":476},{"$f":"E12*E$7","v":459.9033816425121},444.35109337440787,429.32472789797868,414.80650038452046,400.77922742465745,387.22630669049033,0,0,0,0,0,0,0,0,0,0,0,0,0,0,0,0,0,0,0,0,0,0,0,0,0,0,0,0,0,0,0,0,0,0,0,0,0,0,0,0,0,0,0,0,0,0,0,0,0,0,0,0,0,0,0,0,0,0,{"$f":"BQ12*BQ$7","v":0},0,0,0,0,0,0,0,0,0,0,0,0,0,0,0,0,0,0,0,0,0,0,0,0,0,0,0,0,0,0,0,0,0,0]
[]
[null,"First Year of upfront costs? - Array",null,{"$f":"IF(D12<>0,TRUE,FALSE)","v":true},{"$f":"IF(D15=TRUE,\"ALREADY FOUND\",IF(E12<>0,TRUE,FALSE))","v":"ALREADY FOUND"},{"$f":"IF(E15=\"ALREADY FOUND\",\"ALREADY FOUND\",IF(E15=TRUE,\"ALREADY FOUND\",IF(F12<>0,TRUE,FALSE)))","v":"ALREADY FOUND"},{"$f":"IF(F15=\"ALREADY FOUND\",\"ALREADY FOUND\",IF(F15=TRUE,\"ALREADY FOUND\",IF(G12<>0,TRUE,FALSE)))","v":"ALREADY FOUND"},"ALREADY FOUND","ALREADY FOUND","ALREADY FOUND","ALREADY FOUND","ALREADY FOUND","ALREADY FOUND","ALREADY FOUND","ALREADY FOUND","ALREADY FOUND","ALREADY FOUND","ALREADY FOUND","ALREADY FOUND","ALREADY FOUND","ALREADY FOUND","ALREADY FOUND","ALREADY FOUND","ALREADY FOUND","ALREADY FOUND","ALREADY FOUND","ALREADY FOUND","ALREADY FOUND","ALREADY FOUND","ALREADY FOUND","ALREADY FOUND","ALREADY FOUND","ALREADY FOUND","ALREADY FOUND","ALREADY FOUND","ALREADY FOUND","ALREADY FOUND","ALREADY FOUND","ALREADY FOUND","ALREADY FOUND","ALREADY FOUND","ALREADY FOUND","ALREADY FOUND","ALREADY FOUND","ALREADY FOUND","ALREADY FOUND","ALREADY FOUND","ALREADY FOUND","ALREADY FOUND","ALREADY FOUND","ALREADY FOUND","ALREADY FOUND","ALREADY FOUND","ALREADY FOUND","ALREADY FOUND","ALREADY FOUND","ALREADY FOUND","ALREADY FOUND","ALREADY FOUND","ALREADY FOUND","ALREADY FOUND","ALREADY FOUND","ALREADY FOUND","ALREADY FOUND","ALREADY FOUND","ALREADY FOUND","ALREADY FOUND","ALREADY FOUND","ALREADY FOUND","ALREADY FOUND",{"$f":"IF(BR15=\"ALREADY FOUND\",\"ALREADY FOUND\",IF(BR15=TRUE,\"ALREADY FOUND\",IF(BS12<>0,TRUE,FALSE)))","v":"ALREADY FOUND"},"ALREADY FOUND","ALREADY FOUND","ALREADY FOUND","ALREADY FOUND","ALREADY FOUND","ALREADY FOUND","ALREADY FOUND","ALREADY FOUND","ALREADY FOUND","ALREADY FOUND","ALREADY FOUND","ALREADY FOUND","ALREADY FOUND","ALREADY FOUND","ALREADY FOUND","ALREADY FOUND","ALREADY FOUND","ALREADY FOUND","ALREADY FOUND","ALREADY FOUND","ALREADY FOUND","ALREADY FOUND","ALREADY FOUND","ALREADY FOUND","ALREADY FOUND","ALREADY FOUND","ALREADY FOUND","ALREADY FOUND","ALREADY FOUND","ALREADY FOUND","ALREADY FOUND"]
[null,"First Year of upfront costs",null,{"$f":"INDEX($D$6:$CX$6,MATCH(TRUE,$D$15:$CX$15,0))","v":2019}]
[null,"Final Year of upfront costs? - Array",null,{"$f":"IF(D6<$D$16,FALSE,IF(D12+E12=0,TRUE,FALSE))","v":false},{"$f":"IF(D17=TRUE,\"N/A\",IF(D17=\"N/A\",\"N/A\",IF(E6<$D$16,FALSE,IF(E12+F12=0,TRUE,FALSE))))","v":false},{"$f":"IF(E17=TRUE,\"N/A\",IF(E17=\"N/A\",\"N/A\",IF(F6<$D$16,FALSE,IF(F12+G12=0,TRUE,FALSE))))","v":false},{"$f":"IF(F17=TRUE,\"N/A\",IF(F17=\"N/A\",\"N/A\",IF(G6<$D$16,FALSE,IF(G12+H12=0,TRUE,FALSE))))","v":false},{"$f":"IF(G17=TRUE,\"N/A\",IF(G17=\"N/A\",\"N/A\",IF(H6<$D$16,FALSE,IF(H12+I12=0,TRUE,FALSE))))","v":false},{"$f":"IF(H17=TRUE,\"N/A\",IF(H17=\"N/A\",\"N/A\",IF(I6<$D$16,FALSE,IF(I12+J12=0,TRUE,FALSE))))","v":false},{"$f":"IF(I17=TRUE,\"N/A\",IF(I17=\"N/A\",\"N/A\",IF(J6<$D$16,FALSE,IF(J12+K12=0,TRUE,FALSE))))","v":false},true,"N/A","N/A","N/A","N/A","N/A","N/A","N/A","N/A","N/A","N/A","N/A","N/A","N/A","N/A","N/A","N/A","N/A","N/A","N/A","N/A","N/A","N/A","N/A","N/A","N/A","N/A","N/A","N/A","N/A","N/A","N/A","N/A","N/A","N/A","N/A","N/A","N/A","N/A","N/A","N/A","N/A","N/A","N/A","N/A","N/A","N/A","N/A","N/A","N/A","N/A","N/A","N/A","N/A","N/A","N/A","N/A","N/A","N/A","N/A","N/A","N/A","N/A",{"$f":"IF(BU17=TRUE,\"N/A\",IF(BU17=\"N/A\",\"N/A\",IF(BV6<$D$16,FALSE,IF(BV12+BW12=0,TRUE,FALSE))))","v":"N/A"},"N/A","N/A","N/A","N/A","N/A","N/A","N/A","N/A","N/A","N/A","N/A","N/A","N/A","N/A","N/A","N/A","N/A","N/A","N/A","N/A","N/A","N/A","N/A","N/A","N/A","N/A","N/A","N/A"]
[null,"Final Year of upfront costs",null,{"$f":"INDEX($D$6:$CX$6,MATCH(TRUE,$D$17:$CX$17,0))","v":2026}]
[null,"Include undiscounted total capex in SUM?",null,{"$f":"IF(AND(OR(D6=$D$16,D6>$D$16),OR(D6=$D$18,D6<$D$18)),D12,0)","v":476},{"$f":"IF(AND(OR(E6=$D$16,E6>$D$16),OR(E6=$D$18,E6<$D$18)),E12,0)","v":476},476,476,{"$f":"IF(AND(OR(H6=$D$16,H6>$D$16),OR(H6=$D$18,H6<$D$18)),H12,0)","v":476},{"$f":"IF(AND(OR(I6=$D$16,I6>$D$16),OR(I6=$D$18,I6<$D$18)),I12,0)","v":476},476,0,0,0,0,0,0,0,0,0,0,0,0,0,0,0,0,0,0,0,0,0,0,0,0,0,0,0,0,0,0,0,0,0,0,0,0,0,0,0,0,0,0,0,0,0,0,0,0,0,0,0,0,0,0,0,0,0,0,0,0,0,0,{"$f":"IF(AND(OR(BU6=$D$16,BU6>$D$16),OR(BU6=$D$18,BU6<$D$18)),BU12,0)","v":0},0,0,0,0,0,0,0,0,0,0,0,0,0,0,0,0,0,0,0,0,0,0,0,0,0,0,0,0,0]
[null,"Total upfront investment cost for first installation only",null,{"$f":"SUM(D19:CX19)","v":3332}]
[null,"New invesment/refurbishment cost?",null,null,null,null,{"$f":"IF(OR(AND(SUM(D12:F12)=0,G12>0,G15=\"ALREADY FOUND\"),AND(F21=TRUE,G12>0),AND(F21=TRUE,SUM(H12:I12)>0)),TRUE,FALSE)","v":false},{"$f":"IF(OR(AND(SUM(E12:G12)=0,H12>0,H15=\"ALREADY FOUND\"),AND(G21=TRUE,H12>0),AND(G21=TRUE,SUM(I12:J12)>0)),TRUE,FALSE)","v":false},false,false,false,false,false,false,false,false,false,false,false,false,false,false,false,false,false,false,false,false,false,false,false,false,false,false,false,false,false,false,false,false,false,false,false,false,false,false,false,false,false,false,false,false,false,false,false,false,false,false,false,false,false,false,false,false,false,false,false,false,false,false,false,{"$f":"IF(OR(AND(SUM(BQ12:BS12)=0,BT12>0,BT15=\"ALREADY FOUND\"),AND(BS21=TRUE,BT12>0),AND(BS21=TRUE,SUM(BU12:BV12)>0)),TRUE,FALSE)","v":false},false,false,false,false,false,false,false,false,false,false,false,false,false,false,false,false,false,false,false,false,false,false,false,false,false,false,false,false,false,false]
[null,"New invesment/refurbishment counter",null,null,null,null,{"$f":"IF(G21=FALSE,0,IF(F22<>0,F22,MAX($D$22:F22)+1))","v":0},{"$f":"IF(H21=FALSE,0,IF(G22<>0,G22,MAX($D$22:G22)+1))","v":0},{"$f":"IF(I21=FALSE,0,IF(H22<>0,H22,MAX($D$22:H22)+1))","v":0},{"$f":"IF(J21=FALSE,0,IF(I22<>0,I22,MAX($D$22:I22)+1))","v":0},{"$f":"IF(K21=FALSE,0,IF(J22<>0,J22,MAX($D$22:J22)+1))","v":0},{"$f":"IF(L21=FALSE,0,IF(K22<>0,K22,MAX($D$22:K22)+1))","v":0},{"$f":"IF(M21=FALSE,0,IF(L22<>0,L22,MAX($D$22:L22)+1))","v":0},{"$f":"IF(N21=FALSE,0,IF(M22<>0,M22,MAX($D$22:M22)+1))","v":0},{"$f":"IF(O21=FALSE,0,IF(N22<>0,N22,MAX($D$22:N22)+1))","v":0},{"$f":"IF(P21=FALSE,0,IF(O22<>0,O22,MAX($D$22:O22)+1))","v":0},{"$f":"IF(Q21=FALSE,0,IF(P22<>0,P22,MAX($D$22:P22)+1))","v":0},{"$f":"IF(R21=FALSE,0,IF(Q22<>0,Q22,MAX($D$22:Q22)+1))","v":0},{"$f":"IF(S21=FALSE,0,IF(R22<>0,R22,MAX($D$22:R22)+1))","v":0},{"$f":"IF(T21=FALSE,0,IF(S22<>0,S22,MAX($D$22:S22)+1))","v":0},{"$f":"IF(U21=FALSE,0,IF(T22<>0,T22,MAX($D$22:T22)+1))","v":0},{"$f":"IF(V21=FALSE,0,IF(U22<>0,U22,MAX($D$22:U22)+1))","v":0},{"$f":"IF(W21=FALSE,0,IF(V22<>0,V22,MAX($D$22:V22)+1))","v":0},{"$f":"IF(X21=FALSE,0,IF(W22<>0,W22,MAX($D$22:W22)+1))","v":0},{"$f":"IF(Y21=FALSE,0,IF(X22<>0,X22,MAX($D$22:X22)+1))","v":0},{"$f":"IF(Z21=FALSE,0,IF(Y22<>0,Y22,MAX($D$22:Y22)+1))","v":0},{"$f":"IF(AA21=FALSE,0,IF(Z22<>0,Z22,MAX($D$22:Z22)+1))","v":0},{"$f":"IF(AB21=FALSE,0,IF(AA22<>0,AA22,MAX($D$22:AA22)+1))","v":0},{"$f":"IF(AC21=FALSE,0,IF(AB22<>0,AB22,MAX($D$22:AB22)+1))","v":0},{"$f":"IF(AD21=FALSE,0,IF(AC22<>0,AC22,MAX($D$22:AC22)+1))","v":0},{"$f":"IF(AE21=FALSE,0,IF(AD22<>0,AD22,MAX($D$22:AD22)+1))","v":0},{"$f":"IF(AF21=FALSE,0,IF(AE22<>0,AE22,MAX($D$22:AE22)+1))","v":0},{"$f":"IF(AG21=FALSE,0,IF(AF22<>0,AF22,MAX($D$22:AF22)+1))","v":0},{"$f":"IF(AH21=FALSE,0,IF(AG22<>0,AG22,MAX($D$22:AG22)+1))","v":0},{"$f":"IF(AI21=FALSE,0,IF(AH22<>0,AH22,MAX($D$22:AH22)+1))","v":0},{"$f":"IF(AJ21=FALSE,0,IF(AI22<>0,AI22,MAX($D$22:AI22)+1))","v":0},{"$f":"IF(AK21=FALSE,0,IF(AJ22<>0,AJ22,MAX($D$22:AJ22)+1))","v":0},{"$f":"IF(AL21=FALSE,0,IF(AK22<>0,AK22,MAX($D$22:AK22)+1))","v":0},{"$f":"IF(AM21=FALSE,0,IF(AL22<>0,AL22,MAX($D$22:AL22)+1))","v":0},{"$f":"IF(AN21=FALSE,0,IF(AM22<>0,AM22,MAX($D$22:AM22)+1))","v":0},{"$f":"IF(AO21=FALSE,0,IF(AN22<>0,AN22,MAX($D$22:AN22)+1))","v":0},{"$f":"IF(AP21=FALSE,0,IF(AO22<>0,AO22,MAX($D$22:AO22)+1))","v":0},{"$f":"IF(AQ21=FALSE,0,IF(AP22<>0,AP22,MAX($D$22:AP22)+1))","v":0},{"$f":"IF(AR21=FALSE,0,IF(AQ22<>0,AQ22,MAX($D$22:AQ22)+1))","v":0},{"$f":"IF(AS21=FALSE,0,IF(AR22<>0,AR22,MAX($D$22:AR22)+1))","v":0},{"$f":"IF(AT21=FALSE,0,IF(AS22<>0,AS22,MAX($D$22:AS22)+1))","v":0},{"$f":"IF(AU21=FALSE,0,IF(AT22<>0,AT22,MAX($D$22:AT22)+1))","v":0},{"$f":"IF(AV21=FALSE,0,IF(AU22<>0,AU22,MAX($D$22:AU22)+1))","v":0},{"$f":"IF(AW21=FALSE,0,IF(AV22<>0,AV22,MAX($D$22:AV22)+1))","v":0},{"$f":"IF(AX21=FALSE,0,IF(AW22<>0,AW22,MAX($D$22:AW22)+1))","v":0},{"$f":"IF(AY21=FALSE,0,IF(AX22<>0,AX22,MAX($D$22:AX22)+1))","v":0},{"$f":"IF(AZ21=FALSE,0,IF(AY22<>0,AY22,MAX($D$22:AY22)+1))","v":0},{"$f":"IF(BA21=FALSE,0,IF(AZ22<>0,AZ22,MAX($D$22:AZ22)+1))","v":0},{"$f":"IF(BB21=FALSE,0,IF(BA22<>0,BA22,MAX($D$22:BA22)+1))","v":0},{"$f":"IF(BC21=FALSE,0,IF(BB22<>0,BB22,MAX($D$22:BB22)+1))","v":0},{"$f":"IF(BD21=FALSE,0,IF(BC22<>0,BC22,MAX($D$22:BC22)+1))","v":0},{"$f":"IF(BE21=FALSE,0,IF(BD22<>0,BD22,MAX($D$22:BD22)+1))","v":0},{"$f":"IF(BF21=FALSE,0,IF(BE22<>0,BE22,MAX($D$22:BE22)+1))","v":0},{"$f":"IF(BG21=FALSE,0,IF(BF22<>0,BF22,MAX($D$22:BF22)+1))","v":0},{"$f":"IF(BH21=FALSE,0,IF(BG22<>0,BG22,MAX($D$22:BG22)+1))","v":0},{"$f":"IF(BI21=FALSE,0,IF(BH22<>0,BH22,MAX($D$22:BH22)+1))","v":0},{"$f":"IF(BJ21=FALSE,0,IF(BI22<>0,BI22,MAX($D$22:BI22)+1))","v":0},{"$f":"IF(BK21=FALSE,0,IF(BJ22<>0,BJ22,MAX($D$22:BJ22)+1))","v":0},{"$f":"IF(BL21=FALSE,0,IF(BK22<>0,BK22,MAX($D$22:BK22)+1))","v":0},{"$f":"IF(BM21=FALSE,0,IF(BL22<>0,BL22,MAX($D$22:BL22)+1))","v":0},{"$f":"IF(BN21=FALSE,0,IF(BM22<>0,BM22,MAX($D$22:BM22)+1))","v":0},{"$f":"IF(BO21=FALSE,0,IF(BN22<>0,BN22,MAX($D$22:BN22)+1))","v":0},{"$f":"IF(BP21=FALSE,0,IF(BO22<>0,BO22,MAX($D$22:BO22)+1))","v":0},{"$f":"IF(BQ21=FALSE,0,IF(BP22<>0,BP22,MAX($D$22:BP22)+1))","v":0},{"$f":"IF(BR21=FALSE,0,IF(BQ22<>0,BQ22,MAX($D$22:BQ22)+1))","v":0},{"$f":"IF(BS21=FALSE,0,IF(BR22<>0,BR22,MAX($D$22:BR22)+1))","v":0},{"$f":"IF(BT21=FALSE,0,IF(BS22<>0,BS22,MAX($D$22:BS22)+1))","v":0},{"$f":"IF(BU21=FALSE,0,IF(BT22<>0,BT22,MAX($D$22:BT22)+1))","v":0},{"$f":"IF(BV21=FALSE,0,IF(BU22<>0,BU22,MAX($D$22:BU22)+1))","v":0},{"$f":"IF(BW21=FALSE,0,IF(BV22<>0,BV22,MAX($D$22:BV22)+1))","v":0},{"$f":"IF(BX21=FALSE,0,IF(BW22<>0,BW22,MAX($D$22:BW22)+1))","v":0},{"$f":"IF(BY21=FALSE,0,IF(BX22<>0,BX22,MAX($D$22:BX22)+1))","v":0},{"$f":"IF(BZ21=FALSE,0,IF(BY22<>0,BY22,MAX($D$22:BY22)+1))","v":0},{"$f":"IF(CA21=FALSE,0,IF(BZ22<>0,BZ22,MAX($D$22:BZ22)+1))","v":0},{"$f":"IF(CB21=FALSE,0,IF(CA22<>0,CA22,MAX($D$22:CA22)+1))","v":0},{"$f":"IF(CC21=FALSE,0,IF(CB22<>0,CB22,MAX($D$22:CB22)+1))","v":0},{"$f":"IF(CD21=FALSE,0,IF(CC22<>0,CC22,MAX($D$22:CC22)+1))","v":0},{"$f":"IF(CE21=FALSE,0,IF(CD22<>0,CD22,MAX($D$22:CD22)+1))","v":0},{"$f":"IF(CF21=FALSE,0,IF(CE22<>0,CE22,MAX($D$22:CE22)+1))","v":0},{"$f":"IF(CG21=FALSE,0,IF(CF22<>0,CF22,MAX($D$22:CF22)+1))","v":0},{"$f":"IF(CH21=FALSE,0,IF(CG22<>0,CG22,MAX($D$22:CG22)+1))","v":0},{"$f":"IF(CI21=FALSE,0,IF(CH22<>0,CH22,MAX($D$22:CH22)+1))","v":0},{"$f":"IF(CJ21=FALSE,0,IF(CI22<>0,CI22,MAX($D$22:CI22)+1))","v":0},{"$f":"IF(CK21=FALSE,0,IF(CJ22<>0,CJ22,MAX($D$22:CJ22)+1))","v":0},{"$f":"IF(CL21=FALSE,0,IF(CK22<>0,CK22,MAX($D$22:CK22)+1))","v":0},{"$f":"IF(CM21=FALSE,0,IF(CL22<>0,CL22,MAX($D$22:CL22)+1))","v":0},{"$f":"IF(CN21=FALSE,0,IF(CM22<>0,CM22,MAX($D$22:CM22)+1))","v":0},{"$f":"IF(CO21=FALSE,0,IF(CN22<>0,CN22,MAX($D$22:CN22)+1))","v":0},{"$f":"IF(CP21=FALSE,0,IF(CO22<>0,CO22,MAX($D$22:CO22)+1))","v":0},{"$f":"IF(CQ21=FALSE,0,IF(CP22<>0,CP22,MAX($D$22:CP22)+1))","v":0},{"$f":"IF(CR21=FALSE,0,IF(CQ22<>0,CQ22,MAX($D$22:CQ22)+1))","v":0},{"$f":"IF(CS21=FALSE,0,IF(CR22<>0,CR22,MAX($D$22:CR22)+1))","v":0},{"$f":"IF(CT21=FALSE,0,IF(CS22<>0,CS22,MAX($D$22:CS22)+1))","v":0},{"$f":"IF(CU21=FALSE,0,IF(CT22<>0,CT22,MAX($D$22:CT22)+1))","v":0},{"$f":"IF(CV21=FALSE,0,IF(CU22<>0,CU22,MAX($D$22:CU22)+1))","v":0},{"$f":"IF(CW21=FALSE,0,IF(CV22<>0,CV22,MAX($D$22:CV22)+1))","v":0},{"$f":"IF(CX21=FALSE,0,IF(CW22<>0,CW22,MAX($D$22:CW22)+1))","v":0}]
[null,"Total upfront investment cost for given invesment/refurb",null,null,null,null,{"$f":"IF(G21=TRUE,SUMIF($G$22:$CX$22,G22,$G$13:$CY$13),0)","v":0},{"$f":"IF(H21=TRUE,SUMIF($G$22:$CX$22,H22,$G$13:$CY$13),0)","v":0},0,0,0,0,0,0,0,0,0,0,0,0,0,0,{"$f":"IF(W21=TRUE,SUMIF($G$22:$CX$22,W22,$G$13:$CY$13),0)","v":0},{"$f":"IF(X21=TRUE,SUMIF($G$22:$CX$22,X22,$G$13:$CY$13),0)","v":0},0,0,0,0,0,0,0,0,0,0,0,0,0,0,0,0,0,0,0,0,0,0,0,0,0,0,0,0,0,0,0,0,0,0,0,0,0,0,0,0,0,0,0,0,0,0,0,0,0,0,0,0,0,0,0,0,0,0,0,0,0,0,0,{"$f":"IF(CJ21=TRUE,SUMIF($G$22:$CX$22,CJ22,$G$13:$CY$13),0)","v":0},0,0,0,0,0,0,0,0,0,0,0,0,0,0]
[]
[null,"WACC"]
[null,"Annualised payment","£000's",{"$f":"IFERROR(-PMT('Data Input - General'!$G$16,SUM('Data Input - General'!$I$26:$I$28),D20*1000)/1000,0)","v":0}]
[null,"Annualised payment - additional invesment or refurbishments","£000's",0,0,0,{"$f":"IFERROR(IF(G15=FALSE,0,IF(G21=TRUE,-PMT('Data Input - General'!$G$16,SUM('Data Input - General'!$I$26:$I$28),G23*1000)/1000,0)),0)","v":0},{"$f":"IFERROR(IF(H15=FALSE,0,IF(H21=TRUE,-PMT('Data Input - General'!$G$16,SUM('Data Input - General'!$I$26:$I$28),H23*1000)/1000,0)),0)","v":0},{"$f":"IFERROR(IF(I15=FALSE,0,IF(I21=TRUE,-PMT('Data Input - General'!$G$16,SUM('Data Input - General'!$I$26:$I$28),I23*1000)/1000,0)),0)","v":0},{"$f":"IFERROR(IF(J15=FALSE,0,IF(J21=TRUE,-PMT('Data Input - General'!$G$16,SUM('Data Input - General'!$I$26:$I$28),J23*1000)/1000,0)),0)","v":0},{"$f":"IFERROR(IF(K15=FALSE,0,IF(K21=TRUE,-PMT('Data Input - General'!$G$16,SUM('Data Input - General'!$I$26:$I$28),K23*1000)/1000,0)),0)","v":0},{"$f":"IFERROR(IF(L15=FALSE,0,IF(L21=TRUE,-PMT('Data Input - General'!$G$16,SUM('Data Input - General'!$I$26:$I$28),L23*1000)/1000,0)),0)","v":0},{"$f":"IFERROR(IF(M15=FALSE,0,IF(M21=TRUE,-PMT('Data Input - General'!$G$16,SUM('Data Input - General'!$I$26:$I$28),M23*1000)/1000,0)),0)","v":0},{"$f":"IFERROR(IF(N15=FALSE,0,IF(N21=TRUE,-PMT('Data Input - General'!$G$16,SUM('Data Input - General'!$I$26:$I$28),N23*1000)/1000,0)),0)","v":0},{"$f":"IFERROR(IF(O15=FALSE,0,IF(O21=TRUE,-PMT('Data Input - General'!$G$16,SUM('Data Input - General'!$I$26:$I$28),O23*1000)/1000,0)),0)","v":0},{"$f":"IFERROR(IF(P15=FALSE,0,IF(P21=TRUE,-PMT('Data Input - General'!$G$16,SUM('Data Input - General'!$I$26:$I$28),P23*1000)/1000,0)),0)","v":0},{"$f":"IFERROR(IF(Q15=FALSE,0,IF(Q21=TRUE,-PMT('Data Input - General'!$G$16,SUM('Data Input - General'!$I$26:$I$28),Q23*1000)/1000,0)),0)","v":0},{"$f":"IFERROR(IF(R15=FALSE,0,IF(R21=TRUE,-PMT('Data Input - General'!$G$16,SUM('Data Input - General'!$I$26:$I$28),R23*1000)/1000,0)),0)","v":0},{"$f":"IFERROR(IF(S15=FALSE,0,IF(S21=TRUE,-PMT('Data Input - General'!$G$16,SUM('Data Input - General'!$I$26:$I$28),S23*1000)/1000,0)),0)","v":0},{"$f":"IFERROR(IF(T15=FALSE,0,IF(T21=TRUE,-PMT('Data Input - General'!$G$16,SUM('Data Input - General'!$I$26:$I$28),T23*1000)/1000,0)),0)","v":0},{"$f":"IFERROR(IF(U15=FALSE,0,IF(U21=TRUE,-PMT('Data Input - General'!$G$16,SUM('Data Input - General'!$I$26:$I$28),U23*1000)/1000,0)),0)","v":0},{"$f":"IFERROR(IF(V15=FALSE,0,IF(V21=TRUE,-PMT('Data Input - General'!$G$16,SUM('Data Input - General'!$I$26:$I$28),V23*1000)/1000,0)),0)","v":0},{"$f":"IFERROR(IF(W15=FALSE,0,IF(W21=TRUE,-PMT('Data Input - General'!$G$16,SUM('Data Input - General'!$I$26:$I$28),W23*1000)/1000,0)),0)","v":0},{"$f":"IFERROR(IF(X15=FALSE,0,IF(X21=TRUE,-PMT('Data Input - General'!$G$16,SUM('Data Input - General'!$I$26:$I$28),X23*1000)/1000,0)),0)","v":0},{"$f":"IFERROR(IF(Y15=FALSE,0,IF(Y21=TRUE,-PMT('Data Input - General'!$G$16,SUM('Data Input - General'!$I$26:$I$28),Y23*1000)/1000,0)),0)","v":0},{"$f":"IFERROR(IF(Z15=FALSE,0,IF(Z21=TRUE,-PMT('Data Input - General'!$G$16,SUM('Data Input - General'!$I$26:$I$28),Z23*1000)/1000,0)),0)","v":0},{"$f":"IFERROR(IF(AA15=FALSE,0,IF(AA21=TRUE,-PMT('Data Input - General'!$G$16,SUM('Data Input - General'!$I$26:$I$28),AA23*1000)/1000,0)),0)","v":0},{"$f":"IFERROR(IF(AB15=FALSE,0,IF(AB21=TRUE,-PMT('Data Input - General'!$G$16,SUM('Data Input - General'!$I$26:$I$28),AB23*1000)/1000,0)),0)","v":0},{"$f":"IFERROR(IF(AC15=FALSE,0,IF(AC21=TRUE,-PMT('Data Input - General'!$G$16,SUM('Data Input - General'!$I$26:$I$28),AC23*1000)/1000,0)),0)","v":0},{"$f":"IFERROR(IF(AD15=FALSE,0,IF(AD21=TRUE,-PMT('Data Input - General'!$G$16,SUM('Data Input - General'!$I$26:$I$28),AD23*1000)/1000,0)),0)","v":0},{"$f":"IFERROR(IF(AE15=FALSE,0,IF(AE21=TRUE,-PMT('Data Input - General'!$G$16,SUM('Data Input - General'!$I$26:$I$28),AE23*1000)/1000,0)),0)","v":0},{"$f":"IFERROR(IF(AF15=FALSE,0,IF(AF21=TRUE,-PMT('Data Input - General'!$G$16,SUM('Data Input - General'!$I$26:$I$28),AF23*1000)/1000,0)),0)","v":0},{"$f":"IFERROR(IF(AG15=FALSE,0,IF(AG21=TRUE,-PMT('Data Input - General'!$G$16,SUM('Data Input - General'!$I$26:$I$28),AG23*1000)/1000,0)),0)","v":0},{"$f":"IFERROR(IF(AH15=FALSE,0,IF(AH21=TRUE,-PMT('Data Input - General'!$G$16,SUM('Data Input - General'!$I$26:$I$28),AH23*1000)/1000,0)),0)","v":0},{"$f":"IFERROR(IF(AI15=FALSE,0,IF(AI21=TRUE,-PMT('Data Input - General'!$G$16,SUM('Data Input - General'!$I$26:$I$28),AI23*1000)/1000,0)),0)","v":0},{"$f":"IFERROR(IF(AJ15=FALSE,0,IF(AJ21=TRUE,-PMT('Data Input - General'!$G$16,SUM('Data Input - General'!$I$26:$I$28),AJ23*1000)/1000,0)),0)","v":0},{"$f":"IFERROR(IF(AK15=FALSE,0,IF(AK21=TRUE,-PMT('Data Input - General'!$G$16,SUM('Data Input - General'!$I$26:$I$28),AK23*1000)/1000,0)),0)","v":0},{"$f":"IFERROR(IF(AL15=FALSE,0,IF(AL21=TRUE,-PMT('Data Input - General'!$G$16,SUM('Data Input - General'!$I$26:$I$28),AL23*1000)/1000,0)),0)","v":0},{"$f":"IFERROR(IF(AM15=FALSE,0,IF(AM21=TRUE,-PMT('Data Input - General'!$G$16,SUM('Data Input - General'!$I$26:$I$28),AM23*1000)/1000,0)),0)","v":0},{"$f":"IFERROR(IF(AN15=FALSE,0,IF(AN21=TRUE,-PMT('Data Input - General'!$G$16,SUM('Data Input - General'!$I$26:$I$28),AN23*1000)/1000,0)),0)","v":0},{"$f":"IFERROR(IF(AO15=FALSE,0,IF(AO21=TRUE,-PMT('Data Input - General'!$G$16,SUM('Data Input - General'!$I$26:$I$28),AO23*1000)/1000,0)),0)","v":0},{"$f":"IFERROR(IF(AP15=FALSE,0,IF(AP21=TRUE,-PMT('Data Input - General'!$G$16,SUM('Data Input - General'!$I$26:$I$28),AP23*1000)/1000,0)),0)","v":0},{"$f":"IFERROR(IF(AQ15=FALSE,0,IF(AQ21=TRUE,-PMT('Data Input - General'!$G$16,SUM('Data Input - General'!$I$26:$I$28),AQ23*1000)/1000,0)),0)","v":0},{"$f":"IFERROR(IF(AR15=FALSE,0,IF(AR21=TRUE,-PMT('Data Input - General'!$G$16,SUM('Data Input - General'!$I$26:$I$28),AR23*1000)/1000,0)),0)","v":0},{"$f":"IFERROR(IF(AS15=FALSE,0,IF(AS21=TRUE,-PMT('Data Input - General'!$G$16,SUM('Data Input - General'!$I$26:$I$28),AS23*1000)/1000,0)),0)","v":0},{"$f":"IFERROR(IF(AT15=FALSE,0,IF(AT21=TRUE,-PMT('Data Input - General'!$G$16,SUM('Data Input - General'!$I$26:$I$28),AT23*1000)/1000,0)),0)","v":0},{"$f":"IFERROR(IF(AU15=FALSE,0,IF(AU21=TRUE,-PMT('Data Input - General'!$G$16,SUM('Data Input - General'!$I$26:$I$28),AU23*1000)/1000,0)),0)","v":0},{"$f":"IFERROR(IF(AV15=FALSE,0,IF(AV21=TRUE,-PMT('Data Input - General'!$G$16,SUM('Data Input - General'!$I$26:$I$28),AV23*1000)/1000,0)),0)","v":0},{"$f":"IFERROR(IF(AW15=FALSE,0,IF(AW21=TRUE,-PMT('Data Input - General'!$G$16,SUM('Data Input - General'!$I$26:$I$28),AW23*1000)/1000,0)),0)","v":0},{"$f":"IFERROR(IF(AX15=FALSE,0,IF(AX21=TRUE,-PMT('Data Input - General'!$G$16,SUM('Data Input - General'!$I$26:$I$28),AX23*1000)/1000,0)),0)","v":0},{"$f":"IFERROR(IF(AY15=FALSE,0,IF(AY21=TRUE,-PMT('Data Input - General'!$G$16,SUM('Data Input - General'!$I$26:$I$28),AY23*1000)/1000,0)),0)","v":0},{"$f":"IFERROR(IF(AZ15=FALSE,0,IF(AZ21=TRUE,-PMT('Data Input - General'!$G$16,SUM('Data Input - General'!$I$26:$I$28),AZ23*1000)/1000,0)),0)","v":0},{"$f":"IFERROR(IF(BA15=FALSE,0,IF(BA21=TRUE,-PMT('Data Input - General'!$G$16,SUM('Data Input - General'!$I$26:$I$28),BA23*1000)/1000,0)),0)","v":0},{"$f":"IFERROR(IF(BB15=FALSE,0,IF(BB21=TRUE,-PMT('Data Input - General'!$G$16,SUM('Data Input - General'!$I$26:$I$28),BB23*1000)/1000,0)),0)","v":0},{"$f":"IFERROR(IF(BC15=FALSE,0,IF(BC21=TRUE,-PMT('Data Input - General'!$G$16,SUM('Data Input - General'!$I$26:$I$28),BC23*1000)/1000,0)),0)","v":0},{"$f":"IFERROR(IF(BD15=FALSE,0,IF(BD21=TRUE,-PMT('Data Input - General'!$G$16,SUM('Data Input - General'!$I$26:$I$28),BD23*1000)/1000,0)),0)","v":0},{"$f":"IFERROR(IF(BE15=FALSE,0,IF(BE21=TRUE,-PMT('Data Input - General'!$G$16,SUM('Data Input - General'!$I$26:$I$28),BE23*1000)/1000,0)),0)","v":0},{"$f":"IFERROR(IF(BF15=FALSE,0,IF(BF21=TRUE,-PMT('Data Input - General'!$G$16,SUM('Data Input - General'!$I$26:$I$28),BF23*1000)/1000,0)),0)","v":0},{"$f":"IFERROR(IF(BG15=FALSE,0,IF(BG21=TRUE,-PMT('Data Input - General'!$G$16,SUM('Data Input - General'!$I$26:$I$28),BG23*1000)/1000,0)),0)","v":0},{"$f":"IFERROR(IF(BH15=FALSE,0,IF(BH21=TRUE,-PMT('Data Input - General'!$G$16,SUM('Data Input - General'!$I$26:$I$28),BH23*1000)/1000,0)),0)","v":0},{"$f":"IFERROR(IF(BI15=FALSE,0,IF(BI21=TRUE,-PMT('Data Input - General'!$G$16,SUM('Data Input - General'!$I$26:$I$28),BI23*1000)/1000,0)),0)","v":0},{"$f":"IFERROR(IF(BJ15=FALSE,0,IF(BJ21=TRUE,-PMT('Data Input - General'!$G$16,SUM('Data Input - General'!$I$26:$I$28),BJ23*1000)/1000,0)),0)","v":0},{"$f":"IFERROR(IF(BK15=FALSE,0,IF(BK21=TRUE,-PMT('Data Input - General'!$G$16,SUM('Data Input - General'!$I$26:$I$28),BK23*1000)/1000,0)),0)","v":0},{"$f":"IFERROR(IF(BL15=FALSE,0,IF(BL21=TRUE,-PMT('Data Input - General'!$G$16,SUM('Data Input - General'!$I$26:$I$28),BL23*1000)/1000,0)),0)","v":0},{"$f":"IFERROR(IF(BM15=FALSE,0,IF(BM21=TRUE,-PMT('Data Input - General'!$G$16,SUM('Data Input - General'!$I$26:$I$28),BM23*1000)/1000,0)),0)","v":0},{"$f":"IFERROR(IF(BN15=FALSE,0,IF(BN21=TRUE,-PMT('Data Input - General'!$G$16,SUM('Data Input - General'!$I$26:$I$28),BN23*1000)/1000,0)),0)","v":0},{"$f":"IFERROR(IF(BO15=FALSE,0,IF(BO21=TRUE,-PMT('Data Input - General'!$G$16,SUM('Data Input - General'!$I$26:$I$28),BO23*1000)/1000,0)),0)","v":0},{"$f":"IFERROR(IF(BP15=FALSE,0,IF(BP21=TRUE,-PMT('Data Input - General'!$G$16,SUM('Data Input - General'!$I$26:$I$28),BP23*1000)/1000,0)),0)","v":0},{"$f":"IFERROR(IF(BQ15=FALSE,0,IF(BQ21=TRUE,-PMT('Data Input - General'!$G$16,SUM('Data Input - General'!$I$26:$I$28),BQ23*1000)/1000,0)),0)","v":0},{"$f":"IFERROR(IF(BR15=FALSE,0,IF(BR21=TRUE,-PMT('Data Input - General'!$G$16,SUM('Data Input - General'!$I$26:$I$28),BR23*1000)/1000,0)),0)","v":0},{"$f":"IFERROR(IF(BS15=FALSE,0,IF(BS21=TRUE,-PMT('Data Input - General'!$G$16,SUM('Data Input - General'!$I$26:$I$28),BS23*1000)/1000,0)),0)","v":0},{"$f":"IFERROR(IF(BT15=FALSE,0,IF(BT21=TRUE,-PMT('Data Input - General'!$G$16,SUM('Data Input - General'!$I$26:$I$28),BT23*1000)/1000,0)),0)","v":0},{"$f":"IFERROR(IF(BU15=FALSE,0,IF(BU21=TRUE,-PMT('Data Input - General'!$G$16,SUM('Data Input - General'!$I$26:$I$28),BU23*1000)/1000,0)),0)","v":0},{"$f":"IFERROR(IF(BV15=FALSE,0,IF(BV21=TRUE,-PMT('Data Input - General'!$G$16,SUM('Data Input - General'!$I$26:$I$28),BV23*1000)/1000,0)),0)","v":0},{"$f":"IFERROR(IF(BW15=FALSE,0,IF(BW21=TRUE,-PMT('Data Input - General'!$G$16,SUM('Data Input - General'!$I$26:$I$28),BW23*1000)/1000,0)),0)","v":0},{"$f":"IFERROR(IF(BX15=FALSE,0,IF(BX21=TRUE,-PMT('Data Input - General'!$G$16,SUM('Data Input - General'!$I$26:$I$28),BX23*1000)/1000,0)),0)","v":0},{"$f":"IFERROR(IF(BY15=FALSE,0,IF(BY21=TRUE,-PMT('Data Input - General'!$G$16,SUM('Data Input - General'!$I$26:$I$28),BY23*1000)/1000,0)),0)","v":0},{"$f":"IFERROR(IF(BZ15=FALSE,0,IF(BZ21=TRUE,-PMT('Data Input - General'!$G$16,SUM('Data Input - General'!$I$26:$I$28),BZ23*1000)/1000,0)),0)","v":0},{"$f":"IFERROR(IF(CA15=FALSE,0,IF(CA21=TRUE,-PMT('Data Input - General'!$G$16,SUM('Data Input - General'!$I$26:$I$28),CA23*1000)/1000,0)),0)","v":0},{"$f":"IFERROR(IF(CB15=FALSE,0,IF(CB21=TRUE,-PMT('Data Input - General'!$G$16,SUM('Data Input - General'!$I$26:$I$28),CB23*1000)/1000,0)),0)","v":0},{"$f":"IFERROR(IF(CC15=FALSE,0,IF(CC21=TRUE,-PMT('Data Input - General'!$G$16,SUM('Data Input - General'!$I$26:$I$28),CC23*1000)/1000,0)),0)","v":0},{"$f":"IFERROR(IF(CD15=FALSE,0,IF(CD21=TRUE,-PMT('Data Input - General'!$G$16,SUM('Data Input - General'!$I$26:$I$28),CD23*1000)/1000,0)),0)","v":0},{"$f":"IFERROR(IF(CE15=FALSE,0,IF(CE21=TRUE,-PMT('Data Input - General'!$G$16,SUM('Data Input - General'!$I$26:$I$28),CE23*1000)/1000,0)),0)","v":0},{"$f":"IFERROR(IF(CF15=FALSE,0,IF(CF21=TRUE,-PMT('Data Input - General'!$G$16,SUM('Data Input - General'!$I$26:$I$28),CF23*1000)/1000,0)),0)","v":0},{"$f":"IFERROR(IF(CG15=FALSE,0,IF(CG21=TRUE,-PMT('Data Input - General'!$G$16,SUM('Data Input - General'!$I$26:$I$28),CG23*1000)/1000,0)),0)","v":0},{"$f":"IFERROR(IF(CH15=FALSE,0,IF(CH21=TRUE,-PMT('Data Input - General'!$G$16,SUM('Data Input - General'!$I$26:$I$28),CH23*1000)/1000,0)),0)","v":0},{"$f":"IFERROR(IF(CI15=FALSE,0,IF(CI21=TRUE,-PMT('Data Input - General'!$G$16,SUM('Data Input - General'!$I$26:$I$28),CI23*1000)/1000,0)),0)","v":0},{"$f":"IFERROR(IF(CJ15=FALSE,0,IF(CJ21=TRUE,-PMT('Data Input - General'!$G$16,SUM('Data Input - General'!$I$26:$I$28),CJ23*1000)/1000,0)),0)","v":0},{"$f":"IFERROR(IF(CK15=FALSE,0,IF(CK21=TRUE,-PMT('Data Input - General'!$G$16,SUM('Data Input - General'!$I$26:$I$28),CK23*1000)/1000,0)),0)","v":0},{"$f":"IFERROR(IF(CL15=FALSE,0,IF(CL21=TRUE,-PMT('Data Input - General'!$G$16,SUM('Data Input - General'!$I$26:$I$28),CL23*1000)/1000,0)),0)","v":0},{"$f":"IFERROR(IF(CM15=FALSE,0,IF(CM21=TRUE,-PMT('Data Input - General'!$G$16,SUM('Data Input - General'!$I$26:$I$28),CM23*1000)/1000,0)),0)","v":0},{"$f":"IFERROR(IF(CN15=FALSE,0,IF(CN21=TRUE,-PMT('Data Input - General'!$G$16,SUM('Data Input - General'!$I$26:$I$28),CN23*1000)/1000,0)),0)","v":0},{"$f":"IFERROR(IF(CO15=FALSE,0,IF(CO21=TRUE,-PMT('Data Input - General'!$G$16,SUM('Data Input - General'!$I$26:$I$28),CO23*1000)/1000,0)),0)","v":0},{"$f":"IFERROR(IF(CP15=FALSE,0,IF(CP21=TRUE,-PMT('Data Input - General'!$G$16,SUM('Data Input - General'!$I$26:$I$28),CP23*1000)/1000,0)),0)","v":0},{"$f":"IFERROR(IF(CQ15=FALSE,0,IF(CQ21=TRUE,-PMT('Data Input - General'!$G$16,SUM('Data Input - General'!$I$26:$I$28),CQ23*1000)/1000,0)),0)","v":0},{"$f":"IFERROR(IF(CR15=FALSE,0,IF(CR21=TRUE,-PMT('Data Input - General'!$G$16,SUM('Data Input - General'!$I$26:$I$28),CR23*1000)/1000,0)),0)","v":0},{"$f":"IFERROR(IF(CS15=FALSE,0,IF(CS21=TRUE,-PMT('Data Input - General'!$G$16,SUM('Data Input - General'!$I$26:$I$28),CS23*1000)/1000,0)),0)","v":0},{"$f":"IFERROR(IF(CT15=FALSE,0,IF(CT21=TRUE,-PMT('Data Input - General'!$G$16,SUM('Data Input - General'!$I$26:$I$28),CT23*1000)/1000,0)),0)","v":0},{"$f":"IFERROR(IF(CU15=FALSE,0,IF(CU21=TRUE,-PMT('Data Input - General'!$G$16,SUM('Data Input - General'!$I$26:$I$28),CU23*1000)/1000,0)),0)","v":0},{"$f":"IFERROR(IF(CV15=FALSE,0,IF(CV21=TRUE,-PMT('Data Input - General'!$G$16,SUM('Data Input - General'!$I$26:$I$28),CV23*1000)/1000,0)),0)","v":0},{"$f":"IFERROR(IF(CW15=FALSE,0,IF(CW21=TRUE,-PMT('Data Input - General'!$G$16,SUM('Data Input - General'!$I$26:$I$28),CW23*1000)/1000,0)),0)","v":0},{"$f":"IFERROR(IF(CX15=FALSE,0,IF(CX21=TRUE,-PMT('Data Input - General'!$G$16,SUM('Data Input - General'!$I$26:$I$28),CX23*1000)/1000,0)),0)","v":0},{"$f":"IFERROR(IF(CY15=FALSE,0,IF(CY21=TRUE,-PMT('Data Input - General'!$G$16,SUM('Data Input - General'!$I$26:$I$28),CY23*1000)/1000,0)),0)","v":0}]
[null,"Cummulative annualised payment","£000's",0,0,0,{"$f":"IF(G27=0,F28,IF(F27=G27,F28,F28+G27))","v":0},{"$f":"IF(H27=0,G28,IF(G27=H27,G28,G28+H27))","v":0},0,0,0,0,0,0,0,0,0,0,0,0,0,0,0,0,0,0,0,0,0,0,0,0,0,0,0,0,0,0,0,0,0,0,0,0,0,0,0,0,0,0,0,0,0,0,0,0,0,0,0,0,0,0,0,0,0,0,0,0,0,0,0,{"$f":"IF(BT27=0,BS28,IF(BS27=BT27,BS28,BS28+BT27))","v":0},0,0,0,0,0,0,0,0,0,0,0,0,0,0,0,0,0,0,0,0,0,0,0,0,0,0,0,0,0,0,0]
[null,"Annual value (taking into account installation year)","£000's",{"$f":"IF(D15=FALSE,0,IF(D28=0,$D$26,D28))","v":0},{"$f":"IF(E15=FALSE,0,IF(E28=0,$D$26,E28))","v":0},0,0,0,0,0,0,0,0,0,0,0,0,0,0,0,0,0,0,0,0,0,0,0,0,0,0,0,0,0,0,0,0,0,0,0,0,0,0,0,0,0,0,0,0,0,0,0,0,0,0,0,0,0,0,0,0,0,0,0,0,0,0,0,{"$f":"IF(BQ15=FALSE,0,IF(BQ28=0,$D$26,BQ28))","v":0},0,0,0,0,0,0,0,0,0,0,0,0,0,0,0,0,0,0,0,0,0,0,0,0,0,0,0,0,0,0,0,0,0,0]
[null,"Discounted annual value","£000's",{"$f":"D29*D$7","v":0},{"$f":"E29*E$7","v":0},0,0,0,0,0,0,0,0,0,0,0,0,0,0,0,0,0,0,0,0,0,0,0,0,0,0,0,0,0,0,0,0,0,0,0,0,0,0,0,0,0,0,0,0,0,0,0,0,0,0,0,0,0,0,0,0,0,0,0,0,0,0,0,{"$f":"BQ29*BQ$7","v":0},0,0,0,0,0,0,0,0,0,0,0,0,0,0,0,0,0,0,0,0,0,0,0,0,0,0,0,0,0,0,0,0,0,0]
[]
[null,"Cost of Capital (finance)"]
[null,"Financing costs (when entered manually)","£000's",{"$f":"'Data Input - Option 3'!H39","v":0},{"$f":"'Data Input - Option 3'!I39","v":0},{"$f":"'Data Input - Option 3'!J39","v":0},{"$f":"'Data Input - Option 3'!K39","v":0},{"$f":"'Data Input - Option 3'!L39","v":0},{"$f":"'Data Input - Option 3'!M39","v":0},{"$f":"'Data Input - Option 3'!N39","v":0},{"$f":"'Data Input - Option 3'!O39","v":0},{"$f":"'Data Input - Option 3'!P39","v":0},{"$f":"'Data Input - Option 3'!Q39","v":0},{"$f":"'Data Input - Option 3'!R39","v":0},{"$f":"'Data Input - Option 3'!S39","v":0},{"$f":"'Data Input - Option 3'!T39","v":0},{"$f":"'Data Input - Option 3'!U39","v":0},{"$f":"'Data Input - Option 3'!V39","v":0},{"$f":"'Data Input - Option 3'!W39","v":0},{"$f":"'Data Input - Option 3'!X39","v":0},{"$f":"'Data Input - Option 3'!Y39","v":0},{"$f":"'Data Input - Option 3'!Z39","v":0},{"$f":"'Data Input - Option 3'!AA39","v":0},{"$f":"'Data Input - Option 3'!AB39","v":0},{"$f":"'Data Input - Option 3'!AC39","v":0},{"$f":"'Data Input - Option 3'!AD39","v":0},{"$f":"'Data Input - Option 3'!AE39","v":0},{"$f":"'Data Input - Option 3'!AF39","v":0},{"$f":"'Data Input - Option 3'!AG39","v":0},{"$f":"'Data Input - Option 3'!AH39","v":0},{"$f":"'Data Input - Option 3'!AI39","v":0},{"$f":"'Data Input - Option 3'!AJ39","v":0},{"$f":"'Data Input - Option 3'!AK39","v":0},{"$f":"'Data Input - Option 3'!AL39","v":0},{"$f":"'Data Input - Option 3'!AM39","v":0},{"$f":"'Data Input - Option 3'!AN39","v":0},{"$f":"'Data Input - Option 3'!AO39","v":0},{"$f":"'Data Input - Option 3'!AP39","v":0},{"$f":"'Data Input - Option 3'!AQ39","v":0},{"$f":"'Data Input - Option 3'!AR39","v":0},{"$f":"'Data Input - Option 3'!AS39","v":0},{"$f":"'Data Input - Option 3'!AT39","v":0},{"$f":"'Data Input - Option 3'!AU39","v":0},{"$f":"'Data Input - Option 3'!AV39","v":0},{"$f":"'Data Input - Option 3'!AW39","v":0},{"$f":"'Data Input - Option 3'!AX39","v":0},{"$f":"'Data Input - Option 3'!AY39","v":0},{"$f":"'Data Input - Option 3'!AZ39","v":0},{"$f":"'Data Input - Option 3'!BA39","v":0},{"$f":"'Data Input - Option 3'!BB39","v":0},{"$f":"'Data Input - Option 3'!BC39","v":0},{"$f":"'Data Input - Option 3'!BD39","v":0},{"$f":"'Data Input - Option 3'!BE39","v":0},{"$f":"'Data Input - Option 3'!BF39","v":0},{"$f":"'Data Input - Option 3'!BG39","v":0},{"$f":"'Data Input - Option 3'!BH39","v":0},{"$f":"'Data Input - Option 3'!BI39","v":0},{"$f":"'Data Input - Option 3'!BJ39","v":0},{"$f":"'Data Input - Option 3'!BK39","v":0},{"$f":"'Data Input - Option 3'!BL39","v":0},{"$f":"'Data Input - Option 3'!BM39","v":0},{"$f":"'Data Input - Option 3'!BN39","v":0},{"$f":"'Data Input - Option 3'!BO39","v":0},{"$f":"'Data Input - Option 3'!BP39","v":0},{"$f":"'Data Input - Option 3'!BQ39","v":0},{"$f":"'Data Input - Option 3'!BR39","v":0},{"$f":"'Data Input - Option 3'!BS39","v":0},{"$f":"'Data Input - Option 3'!BT39","v":0},{"$f":"'Data Input - Option 3'!BU39","v":0},{"$f":"'Data Input - Option 3'!BV39","v":0},{"$f":"'Data Input - Option 3'!BW39","v":0},{"$f":"'Data Input - Option 3'!BX39","v":0},{"$f":"'Data Input - Option 3'!BY39","v":0},{"$f":"'Data Input - Option 3'!BZ39","v":0},{"$f":"'Data Input - Option 3'!CA39","v":0},{"$f":"'Data Input - Option 3'!CB39","v":0},{"$f":"'Data Input - Option 3'!CC39","v":0},{"$f":"'Data Input - Option 3'!CD39","v":0},{"$f":"'Data Input - Option 3'!CE39","v":0},{"$f":"'Data Input - Option 3'!CF39","v":0},{"$f":"'Data Input - Option 3'!CG39","v":0},{"$f":"'Data Input - Option 3'!CH39","v":0},{"$f":"'Data Input - Option 3'!CI39","v":0},{"$f":"'Data Input - Option 3'!CJ39","v":0},{"$f":"'Data Input - Option 3'!CK39","v":0},{"$f":"'Data Input - Option 3'!CL39","v":0},{"$f":"'Data Input - Option 3'!CM39","v":0},{"$f":"'Data Input - Option 3'!CN39","v":0},{"$f":"'Data Input - Option 3'!CO39","v":0},{"$f":"'Data Input - Option 3'!CP39","v":0},{"$f":"'Data Input - Option 3'!CQ39","v":0},{"$f":"'Data Input - Option 3'!CR39","v":0},{"$f":"'Data Input - Option 3'!CS39","v":0},{"$f":"'Data Input - Option 3'!CT39","v":0},{"$f":"'Data Input - Option 3'!CU39","v":0},{"$f":"'Data Input - Option 3'!CV39","v":0},{"$f":"'Data Input - Option 3'!CW39","v":0},{"$f":"'Data Input - Option 3'!CX39","v":0},{"$f":"'Data Input - Option 3'!CY39","v":0},{"$f":"'Data Input - Option 3'!CZ39","v":0},{"$f":"'Data Input - Option 3'!DA39","v":0},{"$f":"'Data Input - Option 3'!DB39","v":0},{"$f":"'Data Input - Option 3'!DC39","v":0}]
[null,"Discounted finacning","£000's",{"$f":"D33*D$7","v":0},{"$f":"E33*E$7","v":0},{"$f":"F33*F$7","v":0},0,0,0,0,0,0,0,0,0,0,0,0,0,0,0,0,0,0,0,0,0,0,0,0,0,0,0,0,0,0,0,0,0,0,0,0,0,0,0,0,0,0,0,0,0,0,0,0,0,0,0,0,0,0,0,0,0,0,0,0,0,0,{"$f":"BQ33*BQ$7","v":0},0,0,0,0,0,0,0,0,0,0,0,0,0,0,0,0,0,0,0,0,0,0,0,0,0,0,0,0,0,0,0,0,0,0]
[]
[null,"Total capex","£000's",{"$f":"IF('Data Input - Option 3'!$F$37=\"Yes\",D34+D13,D30)","v":0},{"$f":"IF('Data Input - Option 3'!$F$37=\"Yes\",E34+E13,E30)","v":0},{"$f":"IF('Data Input - Option 3'!$F$37=\"Yes\",F34+F13,F30)","v":0},{"$f":"IF('Data Input - Option 3'!$F$37=\"Yes\",G34+G13,G30)","v":0},{"$f":"IF('Data Input - Option 3'!$F$37=\"Yes\",H34+H13,H30)","v":0},{"$f":"IF('Data Input - Option 3'!$F$37=\"Yes\",I34+I13,I30)","v":0},{"$f":"IF('Data Input - Option 3'!$F$37=\"Yes\",J34+J13,J30)","v":0},{"$f":"IF('Data Input - Option 3'!$F$37=\"Yes\",K34+K13,K30)","v":0},{"$f":"IF('Data Input - Option 3'!$F$37=\"Yes\",L34+L13,L30)","v":0},{"$f":"IF('Data Input - Option 3'!$F$37=\"Yes\",M34+M13,M30)","v":0},{"$f":"IF('Data Input - Option 3'!$F$37=\"Yes\",N34+N13,N30)","v":0},{"$f":"IF('Data Input - Option 3'!$F$37=\"Yes\",O34+O13,O30)","v":0},{"$f":"IF('Data Input - Option 3'!$F$37=\"Yes\",P34+P13,P30)","v":0},{"$f":"IF('Data Input - Option 3'!$F$37=\"Yes\",Q34+Q13,Q30)","v":0},{"$f":"IF('Data Input - Option 3'!$F$37=\"Yes\",R34+R13,R30)","v":0},{"$f":"IF('Data Input - Option 3'!$F$37=\"Yes\",S34+S13,S30)","v":0},{"$f":"IF('Data Input - Option 3'!$F$37=\"Yes\",T34+T13,T30)","v":0},{"$f":"IF('Data Input - Option 3'!$F$37=\"Yes\",U34+U13,U30)","v":0},{"$f":"IF('Data Input - Option 3'!$F$37=\"Yes\",V34+V13,V30)","v":0},{"$f":"IF('Data Input - Option 3'!$F$37=\"Yes\",W34+W13,W30)","v":0},{"$f":"IF('Data Input - Option 3'!$F$37=\"Yes\",X34+X13,X30)","v":0},{"$f":"IF('Data Input - Option 3'!$F$37=\"Yes\",Y34+Y13,Y30)","v":0},{"$f":"IF('Data Input - Option 3'!$F$37=\"Yes\",Z34+Z13,Z30)","v":0},{"$f":"IF('Data Input - Option 3'!$F$37=\"Yes\",AA34+AA13,AA30)","v":0},{"$f":"IF('Data Input - Option 3'!$F$37=\"Yes\",AB34+AB13,AB30)","v":0},{"$f":"IF('Data Input - Option 3'!$F$37=\"Yes\",AC34+AC13,AC30)","v":0},{"$f":"IF('Data Input - Option 3'!$F$37=\"Yes\",AD34+AD13,AD30)","v":0},{"$f":"IF('Data Input - Option 3'!$F$37=\"Yes\",AE34+AE13,AE30)","v":0},{"$f":"IF('Data Input - Option 3'!$F$37=\"Yes\",AF34+AF13,AF30)","v":0},{"$f":"IF('Data Input - Option 3'!$F$37=\"Yes\",AG34+AG13,AG30)","v":0},{"$f":"IF('Data Input - Option 3'!$F$37=\"Yes\",AH34+AH13,AH30)","v":0},{"$f":"IF('Data Input - Option 3'!$F$37=\"Yes\",AI34+AI13,AI30)","v":0},{"$f":"IF('Data Input - Option 3'!$F$37=\"Yes\",AJ34+AJ13,AJ30)","v":0},{"$f":"IF('Data Input - Option 3'!$F$37=\"Yes\",AK34+AK13,AK30)","v":0},{"$f":"IF('Data Input - Option 3'!$F$37=\"Yes\",AL34+AL13,AL30)","v":0},{"$f":"IF('Data Input - Option 3'!$F$37=\"Yes\",AM34+AM13,AM30)","v":0},{"$f":"IF('Data Input - Option 3'!$F$37=\"Yes\",AN34+AN13,AN30)","v":0},{"$f":"IF('Data Input - Option 3'!$F$37=\"Yes\",AO34+AO13,AO30)","v":0},{"$f":"IF('Data Input - Option 3'!$F$37=\"Yes\",AP34+AP13,AP30)","v":0},{"$f":"IF('Data Input - Option 3'!$F$37=\"Yes\",AQ34+AQ13,AQ30)","v":0},{"$f":"IF('Data Input - Option 3'!$F$37=\"Yes\",AR34+AR13,AR30)","v":0},{"$f":"IF('Data Input - Option 3'!$F$37=\"Yes\",AS34+AS13,AS30)","v":0},{"$f":"IF('Data Input - Option 3'!$F$37=\"Yes\",AT34+AT13,AT30)","v":0},{"$f":"IF('Data Input - Option 3'!$F$37=\"Yes\",AU34+AU13,AU30)","v":0},{"$f":"IF('Data Input - Option 3'!$F$37=\"Yes\",AV34+AV13,AV30)","v":0},{"$f":"IF('Data Input - Option 3'!$F$37=\"Yes\",AW34+AW13,AW30)","v":0},{"$f":"IF('Data Input - Option 3'!$F$37=\"Yes\",AX34+AX13,AX30)","v":0},{"$f":"IF('Data Input - Option 3'!$F$37=\"Yes\",AY34+AY13,AY30)","v":0},{"$f":"IF('Data Input - Option 3'!$F$37=\"Yes\",AZ34+AZ13,AZ30)","v":0},{"$f":"IF('Data Input - Option 3'!$F$37=\"Yes\",BA34+BA13,BA30)","v":0},{"$f":"IF('Data Input - Option 3'!$F$37=\"Yes\",BB34+BB13,BB30)","v":0},{"$f":"IF('Data Input - Option 3'!$F$37=\"Yes\",BC34+BC13,BC30)","v":0},{"$f":"IF('Data Input - Option 3'!$F$37=\"Yes\",BD34+BD13,BD30)","v":0},{"$f":"IF('Data Input - Option 3'!$F$37=\"Yes\",BE34+BE13,BE30)","v":0},{"$f":"IF('Data Input - Option 3'!$F$37=\"Yes\",BF34+BF13,BF30)","v":0},{"$f":"IF('Data Input - Option 3'!$F$37=\"Yes\",BG34+BG13,BG30)","v":0},{"$f":"IF('Data Input - Option 3'!$F$37=\"Yes\",BH34+BH13,BH30)","v":0},{"$f":"IF('Data Input - Option 3'!$F$37=\"Yes\",BI34+BI13,BI30)","v":0},{"$f":"IF('Data Input - Option 3'!$F$37=\"Yes\",BJ34+BJ13,BJ30)","v":0},{"$f":"IF('Data Input - Option 3'!$F$37=\"Yes\",BK34+BK13,BK30)","v":0},{"$f":"IF('Data Input - Option 3'!$F$37=\"Yes\",BL34+BL13,BL30)","v":0},{"$f":"IF('Data Input - Option 3'!$F$37=\"Yes\",BM34+BM13,BM30)","v":0},{"$f":"IF('Data Input - Option 3'!$F$37=\"Yes\",BN34+BN13,BN30)","v":0},{"$f":"IF('Data Input - Option 3'!$F$37=\"Yes\",BO34+BO13,BO30)","v":0},{"$f":"IF('Data Input - Option 3'!$F$37=\"Yes\",BP34+BP13,BP30)","v":0},{"$f":"IF('Data Input - Option 3'!$F$37=\"Yes\",BQ34+BQ13,BQ30)","v":0},{"$f":"IF('Data Input - Option 3'!$F$37=\"Yes\",BR34+BR13,BR30)","v":0},{"$f":"IF('Data Input - Option 3'!$F$37=\"Yes\",BS34+BS13,BS30)","v":0},{"$f":"IF('Data Input - Option 3'!$F$37=\"Yes\",BT34+BT13,BT30)","v":0},{"$f":"IF('Data Input - Option 3'!$F$37=\"Yes\",BU34+BU13,BU30)","v":0},{"$f":"IF('Data Input - Option 3'!$F$37=\"Yes\",BV34+BV13,BV30)","v":0},{"$f":"IF('Data Input - Option 3'!$F$37=\"Yes\",BW34+BW13,BW30)","v":0},{"$f":"IF('Data Input - Option 3'!$F$37=\"Yes\",BX34+BX13,BX30)","v":0},{"$f":"IF('Data Input - Option 3'!$F$37=\"Yes\",BY34+BY13,BY30)","v":0},{"$f":"IF('Data Input - Option 3'!$F$37=\"Yes\",BZ34+BZ13,BZ30)","v":0},{"$f":"IF('Data Input - Option 3'!$F$37=\"Yes\",CA34+CA13,CA30)","v":0},{"$f":"IF('Data Input - Option 3'!$F$37=\"Yes\",CB34+CB13,CB30)","v":0},{"$f":"IF('Data Input - Option 3'!$F$37=\"Yes\",CC34+CC13,CC30)","v":0},{"$f":"IF('Data Input - Option 3'!$F$37=\"Yes\",CD34+CD13,CD30)","v":0},{"$f":"IF('Data Input - Option 3'!$F$37=\"Yes\",CE34+CE13,CE30)","v":0},{"$f":"IF('Data Input - Option 3'!$F$37=\"Yes\",CF34+CF13,CF30)","v":0},{"$f":"IF('Data Input - Option 3'!$F$37=\"Yes\",CG34+CG13,CG30)","v":0},{"$f":"IF('Data Input - Option 3'!$F$37=\"Yes\",CH34+CH13,CH30)","v":0},{"$f":"IF('Data Input - Option 3'!$F$37=\"Yes\",CI34+CI13,CI30)","v":0},{"$f":"IF('Data Input - Option 3'!$F$37=\"Yes\",CJ34+CJ13,CJ30)","v":0},{"$f":"IF('Data Input - Option 3'!$F$37=\"Yes\",CK34+CK13,CK30)","v":0},{"$f":"IF('Data Input - Option 3'!$F$37=\"Yes\",CL34+CL13,CL30)","v":0},{"$f":"IF('Data Input - Option 3'!$F$37=\"Yes\",CM34+CM13,CM30)","v":0},{"$f":"IF('Data Input - Option 3'!$F$37=\"Yes\",CN34+CN13,CN30)","v":0},{"$f":"IF('Data Input - Option 3'!$F$37=\"Yes\",CO34+CO13,CO30)","v":0},{"$f":"IF('Data Input - Option 3'!$F$37=\"Yes\",CP34+CP13,CP30)","v":0},{"$f":"IF('Data Input - Option 3'!$F$37=\"Yes\",CQ34+CQ13,CQ30)","v":0},{"$f":"IF('Data Input - Option 3'!$F$37=\"Yes\",CR34+CR13,CR30)","v":0},{"$f":"IF('Data Input - Option 3'!$F$37=\"Yes\",CS34+CS13,CS30)","v":0},{"$f":"IF('Data Input - Option 3'!$F$37=\"Yes\",CT34+CT13,CT30)","v":0},{"$f":"IF('Data Input - Option 3'!$F$37=\"Yes\",CU34+CU13,CU30)","v":0},{"$f":"IF('Data Input - Option 3'!$F$37=\"Yes\",CV34+CV13,CV30)","v":0},{"$f":"IF('Data Input - Option 3'!$F$37=\"Yes\",CW34+CW13,CW30)","v":0},{"$f":"IF('Data Input - Option 3'!$F$37=\"Yes\",CX34+CX13,CX30)","v":0},{"$f":"IF('Data Input - Option 3'!$F$37=\"Yes\",CY34+CY13,CY30)","v":0}]
[]
[null,"Operating costs (non-energy, per annum)"]
[null,"Total Opex","£000's",{"$f":"'Data Input - Option 3'!H50","v":250},{"$f":"'Data Input - Option 3'!I50","v":250},{"$f":"'Data Input - Option 3'!J50","v":250},{"$f":"'Data Input - Option 3'!K50","v":250},{"$f":"'Data Input - Option 3'!L50","v":250},{"$f":"'Data Input - Option 3'!M50","v":250},{"$f":"'Data Input - Option 3'!N50","v":250},{"$f":"'Data Input - Option 3'!O50","v":250},{"$f":"'Data Input - Option 3'!P50","v":0},{"$f":"'Data Input - Option 3'!Q50","v":0},{"$f":"'Data Input - Option 3'!R50","v":0},{"$f":"'Data Input - Option 3'!S50","v":0},{"$f":"'Data Input - Option 3'!T50","v":0},{"$f":"'Data Input - Option 3'!U50","v":0},{"$f":"'Data Input - Option 3'!V50","v":0},{"$f":"'Data Input - Option 3'!W50","v":0},{"$f":"'Data Input - Option 3'!X50","v":0},{"$f":"'Data Input - Option 3'!Y50","v":0},{"$f":"'Data Input - Option 3'!Z50","v":0},{"$f":"'Data Input - Option 3'!AA50","v":0},{"$f":"'Data Input - Option 3'!AB50","v":0},{"$f":"'Data Input - Option 3'!AC50","v":0},{"$f":"'Data Input - Option 3'!AD50","v":0},{"$f":"'Data Input - Option 3'!AE50","v":0},{"$f":"'Data Input - Option 3'!AF50","v":0},{"$f":"'Data Input - Option 3'!AG50","v":0},{"$f":"'Data Input - Option 3'!AH50","v":0},{"$f":"'Data Input - Option 3'!AI50","v":0},{"$f":"'Data Input - Option 3'!AJ50","v":0},{"$f":"'Data Input - Option 3'!AK50","v":0},{"$f":"'Data Input - Option 3'!AL50","v":0},{"$f":"'Data Input - Option 3'!AM50","v":0},{"$f":"'Data Input - Option 3'!AN50","v":0},{"$f":"'Data Input - Option 3'!AO50","v":0},{"$f":"'Data Input - Option 3'!AP50","v":0},{"$f":"'Data Input - Option 3'!AQ50","v":0},{"$f":"'Data Input - Option 3'!AR50","v":0},{"$f":"'Data Input - Option 3'!AS50","v":0},{"$f":"'Data Input - Option 3'!AT50","v":0},{"$f":"'Data Input - Option 3'!AU50","v":0},{"$f":"'Data Input - Option 3'!AV50","v":0},{"$f":"'Data Input - Option 3'!AW50","v":0},{"$f":"'Data Input - Option 3'!AX50","v":0},{"$f":"'Data Input - Option 3'!AY50","v":0},{"$f":"'Data Input - Option 3'!AZ50","v":0},{"$f":"'Data Input - Option 3'!BA50","v":0},{"$f":"'Data Input - Option 3'!BB50","v":0},{"$f":"'Data Input - Option 3'!BC50","v":0},{"$f":"'Data Input - Option 3'!BD50","v":0},{"$f":"'Data Input - Option 3'!BE50","v":0},{"$f":"'Data Input - Option 3'!BF50","v":0},{"$f":"'Data Input - Option 3'!BG50","v":0},{"$f":"'Data Input - Option 3'!BH50","v":0},{"$f":"'Data Input - Option 3'!BI50","v":0},{"$f":"'Data Input - Option 3'!BJ50","v":0},{"$f":"'Data Input - Option 3'!BK50","v":0},{"$f":"'Data Input - Option 3'!BL50","v":0},{"$f":"'Data Input - Option 3'!BM50","v":0},{"$f":"'Data Input - Option 3'!BN50","v":0},{"$f":"'Data Input - Option 3'!BO50","v":0},{"$f":"'Data Input - Option 3'!BP50","v":0},{"$f":"'Data Input - Option 3'!BQ50","v":0},{"$f":"'Data Input - Option 3'!BR50","v":0},{"$f":"'Data Input - Option 3'!BS50","v":0},{"$f":"'Data Input - Option 3'!BT50","v":0},{"$f":"'Data Input - Option 3'!BU50","v":0},{"$f":"'Data Input - Option 3'!BV50","v":0},{"$f":"'Data Input - Option 3'!BW50","v":0},{"$f":"'Data Input - Option 3'!BX50","v":0},{"$f":"'Data Input - Option 3'!BY50","v":0},{"$f":"'Data Input - Option 3'!BZ50","v":0},{"$f":"'Data Input - Option 3'!CA50","v":0},{"$f":"'Data Input - Option 3'!CB50","v":0},{"$f":"'Data Input - Option 3'!CC50","v":0},{"$f":"'Data Input - Option 3'!CD50","v":0},{"$f":"'Data Input - Option 3'!CE50","v":0},{"$f":"'Data Input - Option 3'!CF50","v":0},{"$f":"'Data Input - Option 3'!CG50","v":0},{"$f":"'Data Input - Option 3'!CH50","v":0},{"$f":"'Data Input - Option 3'!CI50","v":0},{"$f":"'Data Input - Option 3'!CJ50","v":0},{"$f":"'Data Input - Option 3'!CK50","v":0},{"$f":"'Data Input - Option 3'!CL50","v":0},{"$f":"'Data Input - Option 3'!CM50","v":0},{"$f":"'Data Input - Option 3'!CN50","v":0},{"$f":"'Data Input - Option 3'!CO50","v":0},{"$f":"'Data Input - Option 3'!CP50","v":0},{"$f":"'Data Input - Option 3'!CQ50","v":0},{"$f":"'Data Input - Option 3'!CR50","v":0},{"$f":"'Data Input - Option 3'!CS50","v":0},{"$f":"'Data Input - Option 3'!CT50","v":0},{"$f":"'Data Input - Option 3'!CU50","v":0},{"$f":"'Data Input - Option 3'!CV50","v":0},{"$f":"'Data Input - Option 3'!CW50","v":0},{"$f":"'Data Input - Option 3'!CX50","v":0},{"$f":"'Data Input - Option 3'!CY50","v":0},{"$f":"'Data Input - Option 3'!CZ50","v":0},{"$f":"'Data Input - Option 3'!DA50","v":0},{"$f":"'Data Input - Option 3'!DB50","v":0},{"$f":"'Data Input - Option 3'!DC50","v":0}]
[null,"Discounted total opex","£000's",{"$f":"D39*D$7","v":250},{"$f":"E39*E$7","v":241.54589371980677},233.37767509160076,225.48567641700561,217.86055692464311,210.49329171463103,203.37516107693821,196.49774017095481,0,0,0,0,0,0,0,0,0,0,0,0,0,0,0,0,0,0,0,0,0,0,0,0,0,0,0,0,0,0,0,0,0,0,0,0,0,0,0,0,0,0,0,0,0,0,0,0,0,0,0,0,0,0,0,0,0,{"$f":"BQ39*BQ$7","v":0},0,0,0,0,0,0,0,0,0,0,0,0,0,0,0,0,0,0,0,0,0,0,0,0,0,0,0,0,0,0,0,0,0,0]
[]
[null,"Waste output (annual amount generated"]
[null,"Total","£000's",{"$f":"'Data Input - Option 3'!H79","v":0},{"$f":"'Data Input - Option 3'!I79","v":0},{"$f":"'Data Input - Option 3'!J79","v":0},{"$f":"'Data Input - Option 3'!K79","v":0},{"$f":"'Data Input - Option 3'!L79","v":0},{"$f":"'Data Input - Option 3'!M79","v":0},{"$f":"'Data Input - Option 3'!N79","v":0},{"$f":"'Data Input - Option 3'!O79","v":0},{"$f":"'Data Input - Option 3'!P79","v":0},{"$f":"'Data Input - Option 3'!Q79","v":0},{"$f":"'Data Input - Option 3'!R79","v":0},{"$f":"'Data Input - Option 3'!S79","v":0},{"$f":"'Data Input - Option 3'!T79","v":0},{"$f":"'Data Input - Option 3'!U79","v":0},{"$f":"'Data Input - Option 3'!V79","v":0},{"$f":"'Data Input - Option 3'!W79","v":0},{"$f":"'Data Input - Option 3'!X79","v":0},{"$f":"'Data Input - Option 3'!Y79","v":0},{"$f":"'Data Input - Option 3'!Z79","v":0},{"$f":"'Data Input - Option 3'!AA79","v":0},{"$f":"'Data Input - Option 3'!AB79","v":0},{"$f":"'Data Input - Option 3'!AC79","v":0},{"$f":"'Data Input - Option 3'!AD79","v":0},{"$f":"'Data Input - Option 3'!AE79","v":0},{"$f":"'Data Input - Option 3'!AF79","v":0},{"$f":"'Data Input - Option 3'!AG79","v":0},{"$f":"'Data Input - Option 3'!AH79","v":0},{"$f":"'Data Input - Option 3'!AI79","v":0},{"$f":"'Data Input - Option 3'!AJ79","v":0},{"$f":"'Data Input - Option 3'!AK79","v":0},{"$f":"'Data Input - Option 3'!AL79","v":0},{"$f":"'Data Input - Option 3'!AM79","v":0},{"$f":"'Data Input - Option 3'!AN79","v":0},{"$f":"'Data Input - Option 3'!AO79","v":0},{"$f":"'Data Input - Option 3'!AP79","v":0},{"$f":"'Data Input - Option 3'!AQ79","v":0},{"$f":"'Data Input - Option 3'!AR79","v":0},{"$f":"'Data Input - Option 3'!AS79","v":0},{"$f":"'Data Input - Option 3'!AT79","v":0},{"$f":"'Data Input - Option 3'!AU79","v":0},{"$f":"'Data Input - Option 3'!AV79","v":0},{"$f":"'Data Input - Option 3'!AW79","v":0},{"$f":"'Data Input - Option 3'!AX79","v":0},{"$f":"'Data Input - Option 3'!AY79","v":0},{"$f":"'Data Input - Option 3'!AZ79","v":0},{"$f":"'Data Input - Option 3'!BA79","v":0},{"$f":"'Data Input - Option 3'!BB79","v":0},{"$f":"'Data Input - Option 3'!BC79","v":0},{"$f":"'Data Input - Option 3'!BD79","v":0},{"$f":"'Data Input - Option 3'!BE79","v":0},{"$f":"'Data Input - Option 3'!BF79","v":0},{"$f":"'Data Input - Option 3'!BG79","v":0},{"$f":"'Data Input - Option 3'!BH79","v":0},{"$f":"'Data Input - Option 3'!BI79","v":0},{"$f":"'Data Input - Option 3'!BJ79","v":0},{"$f":"'Data Input - Option 3'!BK79","v":0},{"$f":"'Data Input - Option 3'!BL79","v":0},{"$f":"'Data Input - Option 3'!BM79","v":0},{"$f":"'Data Input - Option 3'!BN79","v":0},{"$f":"'Data Input - Option 3'!BO79","v":0},{"$f":"'Data Input - Option 3'!BP79","v":0},{"$f":"'Data Input - Option 3'!BQ79","v":0},{"$f":"'Data Input - Option 3'!BR79","v":0},{"$f":"'Data Input - Option 3'!BS79","v":0},{"$f":"'Data Input - Option 3'!BT79","v":0},{"$f":"'Data Input - Option 3'!BU79","v":0},{"$f":"'Data Input - Option 3'!BV79","v":0},{"$f":"'Data Input - Option 3'!BW79","v":0},{"$f":"'Data Input - Option 3'!BX79","v":0},{"$f":"'Data Input - Option 3'!BY79","v":0},{"$f":"'Data Input - Option 3'!BZ79","v":0},{"$f":"'Data Input - Option 3'!CA79","v":0},{"$f":"'Data Input - Option 3'!CB79","v":0},{"$f":"'Data Input - Option 3'!CC79","v":0},{"$f":"'Data Input - Option 3'!CD79","v":0},{"$f":"'Data Input - Option 3'!CE79","v":0},{"$f":"'Data Input - Option 3'!CF79","v":0},{"$f":"'Data Input - Option 3'!CG79","v":0},{"$f":"'Data Input - Option 3'!CH79","v":0},{"$f":"'Data Input - Option 3'!CI79","v":0},{"$f":"'Data Input - Option 3'!CJ79","v":0},{"$f":"'Data Input - Option 3'!CK79","v":0},{"$f":"'Data Input - Option 3'!CL79","v":0},{"$f":"'Data Input - Option 3'!CM79","v":0},{"$f":"'Data Input - Option 3'!CN79","v":0},{"$f":"'Data Input - Option 3'!CO79","v":0},{"$f":"'Data Input - Option 3'!CP79","v":0},{"$f":"'Data Input - Option 3'!CQ79","v":0},{"$f":"'Data Input - Option 3'!CR79","v":0},{"$f":"'Data Input - Option 3'!CS79","v":0},{"$f":"'Data Input - Option 3'!CT79","v":0},{"$f":"'Data Input - Option 3'!CU79","v":0},{"$f":"'Data Input - Option 3'!CV79","v":0},{"$f":"'Data Input - Option 3'!CW79","v":0},{"$f":"'Data Input - Option 3'!CX79","v":0},{"$f":"'Data Input - Option 3'!CY79","v":0},{"$f":"'Data Input - Option 3'!CZ79","v":0},{"$f":"'Data Input - Option 3'!DA79","v":0},{"$f":"'Data Input - Option 3'!DB79","v":0},{"$f":"'Data Input - Option 3'!DC79","v":0}]
[null,"Discounted total waste cost","£000's",{"$f":"D43*D$7","v":0},{"$f":"E43*E$7","v":0},0,0,0,0,0,0,0,0,0,0,0,0,0,0,0,0,0,0,0,0,0,0,0,0,0,0,0,0,0,0,0,0,0,0,0,0,0,0,0,0,0,0,0,0,0,0,0,0,0,0,0,0,0,0,0,0,0,0,0,0,0,0,0,{"$f":"BQ43*BQ$7","v":0},0,0,0,0,0,0,0,0,0,0,0,0,0,0,0,0,0,0,0,0,0,0,0,0,0,0,0,0,0,0,0,0,0,0]
[]
[null,"Energy Consumption"]
[null,"Total","£000's",{"$f":"'Data Input - Option 3'!H100","v":1720.1480017668744},{"$f":"'Data Input - Option 3'!I100","v":1783.2921671361921},{"$f":"'Data Input - Option 3'!J100","v":1859.5675057479709},{"$f":"'Data Input - Option 3'!K100","v":1913.8673758264686},{"$f":"'Data Input - Option 3'!L100","v":1968.2784809134387},{"$f":"'Data Input - Option 3'!M100","v":2047.9903181691259},{"$f":"'Data Input - Option 3'!N100","v":2115.550856249647},{"$f":"'Data Input - Option 3'!O100","v":2156.1297473801351},{"$f":"'Data Input - Option 3'!P100","v":0},{"$f":"'Data Input - Option 3'!Q100","v":0},{"$f":"'Data Input - Option 3'!R100","v":0},{"$f":"'Data Input - Option 3'!S100","v":0},{"$f":"'Data Input - Option 3'!T100","v":0},{"$f":"'Data Input - Option 3'!U100","v":0},{"$f":"'Data Input - Option 3'!V100","v":0},{"$f":"'Data Input - Option 3'!W100","v":0},{"$f":"'Data Input - Option 3'!X100","v":0},{"$f":"'Data Input - Option 3'!Y100","v":0},{"$f":"'Data Input - Option 3'!Z100","v":0},{"$f":"'Data Input - Option 3'!AA100","v":0},{"$f":"'Data Input - Option 3'!AB100","v":0},{"$f":"'Data Input - Option 3'!AC100","v":0},{"$f":"'Data Input - Option 3'!AD100","v":0},{"$f":"'Data Input - Option 3'!AE100","v":0},{"$f":"'Data Input - Option 3'!AF100","v":0},{"$f":"'Data Input - Option 3'!AG100","v":0},{"$f":"'Data Input - Option 3'!AH100","v":0},{"$f":"'Data Input - Option 3'!AI100","v":0},{"$f":"'Data Input - Option 3'!AJ100","v":0},{"$f":"'Data Input - Option 3'!AK100","v":0},{"$f":"'Data Input - Option 3'!AL100","v":0},{"$f":"'Data Input - Option 3'!AM100","v":0},{"$f":"'Data Input - Option 3'!AN100","v":0},{"$f":"'Data Input - Option 3'!AO100","v":0},{"$f":"'Data Input - Option 3'!AP100","v":0},{"$f":"'Data Input - Option 3'!AQ100","v":0},{"$f":"'Data Input - Option 3'!AR100","v":0},{"$f":"'Data Input - Option 3'!AS100","v":0},{"$f":"'Data Input - Option 3'!AT100","v":0},{"$f":"'Data Input - Option 3'!AU100","v":0},{"$f":"'Data Input - Option 3'!AV100","v":0},{"$f":"'Data Input - Option 3'!AW100","v":0},{"$f":"'Data Input - Option 3'!AX100","v":0},{"$f":"'Data Input - Option 3'!AY100","v":0},{"$f":"'Data Input - Option 3'!AZ100","v":0},{"$f":"'Data Input - Option 3'!BA100","v":0},{"$f":"'Data Input - Option 3'!BB100","v":0},{"$f":"'Data Input - Option 3'!BC100","v":0},{"$f":"'Data Input - Option 3'!BD100","v":0},{"$f":"'Data Input - Option 3'!BE100","v":0},{"$f":"'Data Input - Option 3'!BF100","v":0},{"$f":"'Data Input - Option 3'!BG100","v":0},{"$f":"'Data Input - Option 3'!BH100","v":0},{"$f":"'Data Input - Option 3'!BI100","v":0},{"$f":"'Data Input - Option 3'!BJ100","v":0},{"$f":"'Data Input - Option 3'!BK100","v":0},{"$f":"'Data Input - Option 3'!BL100","v":0},{"$f":"'Data Input - Option 3'!BM100","v":0},{"$f":"'Data Input - Option 3'!BN100","v":0},{"$f":"'Data Input - Option 3'!BO100","v":0},{"$f":"'Data Input - Option 3'!BP100","v":0},{"$f":"'Data Input - Option 3'!BQ100","v":0},{"$f":"'Data Input - Option 3'!BR100","v":0},{"$f":"'Data Input - Option 3'!BS100","v":0},{"$f":"'Data Input - Option 3'!BT100","v":0},{"$f":"'Data Input - Option 3'!BU100","v":0},{"$f":"'Data Input - Option 3'!BV100","v":0},{"$f":"'Data Input - Option 3'!BW100","v":0},{"$f":"'Data Input - Option 3'!BX100","v":0},{"$f":"'Data Input - Option 3'!BY100","v":0},{"$f":"'Data Input - Option 3'!BZ100","v":0},{"$f":"'Data Input - Option 3'!CA100","v":0},{"$f":"'Data Input - Option 3'!CB100","v":0},{"$f":"'Data Input - Option 3'!CC100","v":0},{"$f":"'Data Input - Option 3'!CD100","v":0},{"$f":"'Data Input - Option 3'!CE100","v":0},{"$f":"'Data Input - Option 3'!CF100","v":0},{"$f":"'Data Input - Option 3'!CG100","v":0},{"$f":"'Data Input - Option 3'!CH100","v":0},{"$f":"'Data Input - Option 3'!CI100","v":0},{"$f":"'Data Input - Option 3'!CJ100","v":0},{"$f":"'Data Input - Option 3'!CK100","v":0},{"$f":"'Data Input - Option 3'!CL100","v":0},{"$f":"'Data Input - Option 3'!CM100","v":0},{"$f":"'Data Input - Option 3'!CN100","v":0},{"$f":"'Data Input - Option 3'!CO100","v":0},{"$f":"'Data Input - Option 3'!CP100","v":0},{"$f":"'Data Input - Option 3'!CQ100","v":0},{"$f":"'Data Input - Option 3'!CR100","v":0},{"$f":"'Data Input - Option 3'!CS100","v":0},{"$f":"'Data Input - Option 3'!CT100","v":0},{"$f":"'Data Input - Option 3'!CU100","v":0},{"$f":"'Data Input - Option 3'!CV100","v":0},{"$f":"'Data Input - Option 3'!CW100","v":0},{"$f":"'Data Input - Option 3'!CX100","v":0},{"$f":"'Data Input - Option 3'!CY100","v":0},{"$f":"'Data Input - Option 3'!CZ100","v":0},{"$f":"'Data Input - Option 3'!DA100","v":0},{"$f":"'Data Input - Option 3'!DB100","v":0},{"$f":"'Data Input - Option 3'!DC100","v":0}]
[null,"Discounted energy consumption","£000's",{"$f":"D47*D$7","v":1720.1480017668744},{"$f":"E47*E$7","v":1722.9876010977703},1735.9261646693935,1726.198719242683,1715.240984138369,1724.3528938844552,1721.0019846249061,1694.6984915022729,0,0,0,0,0,0,0,0,0,0,0,0,0,0,0,0,0,0,0,0,0,0,0,0,0,0,0,0,0,0,0,0,0,0,0,0,0,0,0,0,0,0,0,0,0,0,0,0,0,0,0,0,0,0,0,0,0,{"$f":"BQ47*BQ$7","v":0},0,0,0,0,0,0,0,0,0,0,0,0,0,0,0,0,0,0,0,0,0,0,0,0,0,0,0,0,0,0,0,0,0,0]
[null,"Excluding those for which DECC prices used","£000's",{"$f":"('Data Input - Option 3'!H100-SUM('Data Input - Option 3'!H92:H97))*Calc_Option3!D$7","v":0},{"$f":"('Data Input - Option 3'!I100-SUM('Data Input - Option 3'!I92:I97))*Calc_Option3!E$7","v":0},{"$f":"('Data Input - Option 3'!J100-SUM('Data Input - Option 3'!J92:J97))*Calc_Option3!F$7","v":0},{"$f":"('Data Input - Option 3'!K100-SUM('Data Input - Option 3'!K92:K97))*Calc_Option3!G$7","v":0},{"$f":"('Data Input - Option 3'!L100-SUM('Data Input - Option 3'!L92:L97))*Calc_Option3!H$7","v":0},{"$f":"('Data Input - Option 3'!M100-SUM('Data Input - Option 3'!M92:M97))*Calc_Option3!I$7","v":0},{"$f":"('Data Input - Option 3'!N100-SUM('Data Input - Option 3'!N92:N97))*Calc_Option3!J$7","v":0},{"$f":"('Data Input - Option 3'!O100-SUM('Data Input - Option 3'!O92:O97))*Calc_Option3!K$7","v":0},{"$f":"('Data Input - Option 3'!P100-SUM('Data Input - Option 3'!P92:P97))*Calc_Option3!L$7","v":0},{"$f":"('Data Input - Option 3'!Q100-SUM('Data Input - Option 3'!Q92:Q97))*Calc_Option3!M$7","v":0},{"$f":"('Data Input - Option 3'!R100-SUM('Data Input - Option 3'!R92:R97))*Calc_Option3!N$7","v":0},{"$f":"('Data Input - Option 3'!S100-SUM('Data Input - Option 3'!S92:S97))*Calc_Option3!O$7","v":0},{"$f":"('Data Input - Option 3'!T100-SUM('Data Input - Option 3'!T92:T97))*Calc_Option3!P$7","v":0},{"$f":"('Data Input - Option 3'!U100-SUM('Data Input - Option 3'!U92:U97))*Calc_Option3!Q$7","v":0},{"$f":"('Data Input - Option 3'!V100-SUM('Data Input - Option 3'!V92:V97))*Calc_Option3!R$7","v":0},{"$f":"('Data Input - Option 3'!W100-SUM('Data Input - Option 3'!W92:W97))*Calc_Option3!S$7","v":0},{"$f":"('Data Input - Option 3'!X100-SUM('Data Input - Option 3'!X92:X97))*Calc_Option3!T$7","v":0},{"$f":"('Data Input - Option 3'!Y100-SUM('Data Input - Option 3'!Y92:Y97))*Calc_Option3!U$7","v":0},{"$f":"('Data Input - Option 3'!Z100-SUM('Data Input - Option 3'!Z92:Z97))*Calc_Option3!V$7","v":0},{"$f":"('Data Input - Option 3'!AA100-SUM('Data Input - Option 3'!AA92:AA97))*Calc_Option3!W$7","v":0},{"$f":"('Data Input - Option 3'!AB100-SUM('Data Input - Option 3'!AB92:AB97))*Calc_Option3!X$7","v":0},{"$f":"('Data Input - Option 3'!AC100-SUM('Data Input - Option 3'!AC92:AC97))*Calc_Option3!Y$7","v":0},{"$f":"('Data Input - Option 3'!AD100-SUM('Data Input - Option 3'!AD92:AD97))*Calc_Option3!Z$7","v":0},{"$f":"('Data Input - Option 3'!AE100-SUM('Data Input - Option 3'!AE92:AE97))*Calc_Option3!AA$7","v":0},{"$f":"('Data Input - Option 3'!AF100-SUM('Data Input - Option 3'!AF92:AF97))*Calc_Option3!AB$7","v":0},{"$f":"('Data Input - Option 3'!AG100-SUM('Data Input - Option 3'!AG92:AG97))*Calc_Option3!AC$7","v":0},{"$f":"('Data Input - Option 3'!AH100-SUM('Data Input - Option 3'!AH92:AH97))*Calc_Option3!AD$7","v":0},{"$f":"('Data Input - Option 3'!AI100-SUM('Data Input - Option 3'!AI92:AI97))*Calc_Option3!AE$7","v":0},{"$f":"('Data Input - Option 3'!AJ100-SUM('Data Input - Option 3'!AJ92:AJ97))*Calc_Option3!AF$7","v":0},{"$f":"('Data Input - Option 3'!AK100-SUM('Data Input - Option 3'!AK92:AK97))*Calc_Option3!AG$7","v":0},{"$f":"('Data Input - Option 3'!AL100-SUM('Data Input - Option 3'!AL92:AL97))*Calc_Option3!AH$7","v":0},{"$f":"('Data Input - Option 3'!AM100-SUM('Data Input - Option 3'!AM92:AM97))*Calc_Option3!AI$7","v":0},{"$f":"('Data Input - Option 3'!AN100-SUM('Data Input - Option 3'!AN92:AN97))*Calc_Option3!AJ$7","v":0},{"$f":"('Data Input - Option 3'!AO100-SUM('Data Input - Option 3'!AO92:AO97))*Calc_Option3!AK$7","v":0},{"$f":"('Data Input - Option 3'!AP100-SUM('Data Input - Option 3'!AP92:AP97))*Calc_Option3!AL$7","v":0},{"$f":"('Data Input - Option 3'!AQ100-SUM('Data Input - Option 3'!AQ92:AQ97))*Calc_Option3!AM$7","v":0},{"$f":"('Data Input - Option 3'!AR100-SUM('Data Input - Option 3'!AR92:AR97))*Calc_Option3!AN$7","v":0},{"$f":"('Data Input - Option 3'!AS100-SUM('Data Input - Option 3'!AS92:AS97))*Calc_Option3!AO$7","v":0},{"$f":"('Data Input - Option 3'!AT100-SUM('Data Input - Option 3'!AT92:AT97))*Calc_Option3!AP$7","v":0},{"$f":"('Data Input - Option 3'!AU100-SUM('Data Input - Option 3'!AU92:AU97))*Calc_Option3!AQ$7","v":0},{"$f":"('Data Input - Option 3'!AV100-SUM('Data Input - Option 3'!AV92:AV97))*Calc_Option3!AR$7","v":0},{"$f":"('Data Input - Option 3'!AW100-SUM('Data Input - Option 3'!AW92:AW97))*Calc_Option3!AS$7","v":0},{"$f":"('Data Input - Option 3'!AX100-SUM('Data Input - Option 3'!AX92:AX97))*Calc_Option3!AT$7","v":0},{"$f":"('Data Input - Option 3'!AY100-SUM('Data Input - Option 3'!AY92:AY97))*Calc_Option3!AU$7","v":0},{"$f":"('Data Input - Option 3'!AZ100-SUM('Data Input - Option 3'!AZ92:AZ97))*Calc_Option3!AV$7","v":0},{"$f":"('Data Input - Option 3'!BA100-SUM('Data Input - Option 3'!BA92:BA97))*Calc_Option3!AW$7","v":0},{"$f":"('Data Input - Option 3'!BB100-SUM('Data Input - Option 3'!BB92:BB97))*Calc_Option3!AX$7","v":0},{"$f":"('Data Input - Option 3'!BC100-SUM('Data Input - Option 3'!BC92:BC97))*Calc_Option3!AY$7","v":0},{"$f":"('Data Input - Option 3'!BD100-SUM('Data Input - Option 3'!BD92:BD97))*Calc_Option3!AZ$7","v":0},{"$f":"('Data Input - Option 3'!BE100-SUM('Data Input - Option 3'!BE92:BE97))*Calc_Option3!BA$7","v":0},{"$f":"('Data Input - Option 3'!BF100-SUM('Data Input - Option 3'!BF92:BF97))*Calc_Option3!BB$7","v":0},{"$f":"('Data Input - Option 3'!BG100-SUM('Data Input - Option 3'!BG92:BG97))*Calc_Option3!BC$7","v":0},{"$f":"('Data Input - Option 3'!BH100-SUM('Data Input - Option 3'!BH92:BH97))*Calc_Option3!BD$7","v":0},{"$f":"('Data Input - Option 3'!BI100-SUM('Data Input - Option 3'!BI92:BI97))*Calc_Option3!BE$7","v":0},{"$f":"('Data Input - Option 3'!BJ100-SUM('Data Input - Option 3'!BJ92:BJ97))*Calc_Option3!BF$7","v":0},{"$f":"('Data Input - Option 3'!BK100-SUM('Data Input - Option 3'!BK92:BK97))*Calc_Option3!BG$7","v":0},{"$f":"('Data Input - Option 3'!BL100-SUM('Data Input - Option 3'!BL92:BL97))*Calc_Option3!BH$7","v":0},{"$f":"('Data Input - Option 3'!BM100-SUM('Data Input - Option 3'!BM92:BM97))*Calc_Option3!BI$7","v":0},{"$f":"('Data Input - Option 3'!BN100-SUM('Data Input - Option 3'!BN92:BN97))*Calc_Option3!BJ$7","v":0},{"$f":"('Data Input - Option 3'!BO100-SUM('Data Input - Option 3'!BO92:BO97))*Calc_Option3!BK$7","v":0},{"$f":"('Data Input - Option 3'!BP100-SUM('Data Input - Option 3'!BP92:BP97))*Calc_Option3!BL$7","v":0},{"$f":"('Data Input - Option 3'!BQ100-SUM('Data Input - Option 3'!BQ92:BQ97))*Calc_Option3!BM$7","v":0},{"$f":"('Data Input - Option 3'!BR100-SUM('Data Input - Option 3'!BR92:BR97))*Calc_Option3!BN$7","v":0},{"$f":"('Data Input - Option 3'!BS100-SUM('Data Input - Option 3'!BS92:BS97))*Calc_Option3!BO$7","v":0},{"$f":"('Data Input - Option 3'!BT100-SUM('Data Input - Option 3'!BT92:BT97))*Calc_Option3!BP$7","v":0},{"$f":"('Data Input - Option 3'!BU100-SUM('Data Input - Option 3'!BU92:BU97))*Calc_Option3!BQ$7","v":0},{"$f":"('Data Input - Option 3'!BV100-SUM('Data Input - Option 3'!BV92:BV97))*Calc_Option3!BR$7","v":0},{"$f":"('Data Input - Option 3'!BW100-SUM('Data Input - Option 3'!BW92:BW97))*Calc_Option3!BS$7","v":0},{"$f":"('Data Input - Option 3'!BX100-SUM('Data Input - Option 3'!BX92:BX97))*Calc_Option3!BT$7","v":0},{"$f":"('Data Input - Option 3'!BY100-SUM('Data Input - Option 3'!BY92:BY97))*Calc_Option3!BU$7","v":0},{"$f":"('Data Input - Option 3'!BZ100-SUM('Data Input - Option 3'!BZ92:BZ97))*Calc_Option3!BV$7","v":0},{"$f":"('Data Input - Option 3'!CA100-SUM('Data Input - Option 3'!CA92:CA97))*Calc_Option3!BW$7","v":0},{"$f":"('Data Input - Option 3'!CB100-SUM('Data Input - Option 3'!CB92:CB97))*Calc_Option3!BX$7","v":0},{"$f":"('Data Input - Option 3'!CC100-SUM('Data Input - Option 3'!CC92:CC97))*Calc_Option3!BY$7","v":0},{"$f":"('Data Input - Option 3'!CD100-SUM('Data Input - Option 3'!CD92:CD97))*Calc_Option3!BZ$7","v":0},{"$f":"('Data Input - Option 3'!CE100-SUM('Data Input - Option 3'!CE92:CE97))*Calc_Option3!CA$7","v":0},{"$f":"('Data Input - Option 3'!CF100-SUM('Data Input - Option 3'!CF92:CF97))*Calc_Option3!CB$7","v":0},{"$f":"('Data Input - Option 3'!CG100-SUM('Data Input - Option 3'!CG92:CG97))*Calc_Option3!CC$7","v":0},{"$f":"('Data Input - Option 3'!CH100-SUM('Data Input - Option 3'!CH92:CH97))*Calc_Option3!CD$7","v":0},{"$f":"('Data Input - Option 3'!CI100-SUM('Data Input - Option 3'!CI92:CI97))*Calc_Option3!CE$7","v":0},{"$f":"('Data Input - Option 3'!CJ100-SUM('Data Input - Option 3'!CJ92:CJ97))*Calc_Option3!CF$7","v":0},{"$f":"('Data Input - Option 3'!CK100-SUM('Data Input - Option 3'!CK92:CK97))*Calc_Option3!CG$7","v":0},{"$f":"('Data Input - Option 3'!CL100-SUM('Data Input - Option 3'!CL92:CL97))*Calc_Option3!CH$7","v":0},{"$f":"('Data Input - Option 3'!CM100-SUM('Data Input - Option 3'!CM92:CM97))*Calc_Option3!CI$7","v":0},{"$f":"('Data Input - Option 3'!CN100-SUM('Data Input - Option 3'!CN92:CN97))*Calc_Option3!CJ$7","v":0},{"$f":"('Data Input - Option 3'!CO100-SUM('Data Input - Option 3'!CO92:CO97))*Calc_Option3!CK$7","v":0},{"$f":"('Data Input - Option 3'!CP100-SUM('Data Input - Option 3'!CP92:CP97))*Calc_Option3!CL$7","v":0},{"$f":"('Data Input - Option 3'!CQ100-SUM('Data Input - Option 3'!CQ92:CQ97))*Calc_Option3!CM$7","v":0},{"$f":"('Data Input - Option 3'!CR100-SUM('Data Input - Option 3'!CR92:CR97))*Calc_Option3!CN$7","v":0},{"$f":"('Data Input - Option 3'!CS100-SUM('Data Input - Option 3'!CS92:CS97))*Calc_Option3!CO$7","v":0},{"$f":"('Data Input - Option 3'!CT100-SUM('Data Input - Option 3'!CT92:CT97))*Calc_Option3!CP$7","v":0},{"$f":"('Data Input - Option 3'!CU100-SUM('Data Input - Option 3'!CU92:CU97))*Calc_Option3!CQ$7","v":0},{"$f":"('Data Input - Option 3'!CV100-SUM('Data Input - Option 3'!CV92:CV97))*Calc_Option3!CR$7","v":0},{"$f":"('Data Input - Option 3'!CW100-SUM('Data Input - Option 3'!CW92:CW97))*Calc_Option3!CS$7","v":0},{"$f":"('Data Input - Option 3'!CX100-SUM('Data Input - Option 3'!CX92:CX97))*Calc_Option3!CT$7","v":0},{"$f":"('Data Input - Option 3'!CY100-SUM('Data Input - Option 3'!CY92:CY97))*Calc_Option3!CU$7","v":0},{"$f":"('Data Input - Option 3'!CZ100-SUM('Data Input - Option 3'!CZ92:CZ97))*Calc_Option3!CV$7","v":0},{"$f":"('Data Input - Option 3'!DA100-SUM('Data Input - Option 3'!DA92:DA97))*Calc_Option3!CW$7","v":0},{"$f":"('Data Input - Option 3'!DB100-SUM('Data Input - Option 3'!DB92:DB97))*Calc_Option3!CX$7","v":0},{"$f":"('Data Input - Option 3'!DC100-SUM('Data Input - Option 3'!DC92:DC97))*Calc_Option3!CY$7","v":0}]
[]
[null,"Environmental impacts"]
[null,"Air pollutant emissions"]
[null,{"$f":"'Data Input - Option 3'!D105","v":"Sox 2019"},"Tonnes pa",{"$f":"'Data Input - Option 3'!H105","v":0.26600000000000001},{"$f":"'Data Input - Option 3'!I105","v":0.26600000000000001},{"$f":"'Data Input - Option 3'!J105","v":0.26600000000000001},{"$f":"'Data Input - Option 3'!K105","v":0.26600000000000001},{"$f":"'Data Input - Option 3'!L105","v":0.26600000000000001},{"$f":"'Data Input - Option 3'!M105","v":0.26600000000000001},{"$f":"'Data Input - Option 3'!N105","v":0.26600000000000001},{"$f":"'Data Input - Option 3'!O105","v":0.26600000000000001},{"$f":"'Data Input - Option 3'!P105","v":0},{"$f":"'Data Input - Option 3'!Q105","v":0},{"$f":"'Data Input - Option 3'!R105","v":0},{"$f":"'Data Input - Option 3'!S105","v":0},{"$f":"'Data Input - Option 3'!T105","v":0},{"$f":"'Data Input - Option 3'!U105","v":0},{"$f":"'Data Input - Option 3'!V105","v":0},{"$f":"'Data Input - Option 3'!W105","v":0},{"$f":"'Data Input - Option 3'!X105","v":0},{"$f":"'Data Input - Option 3'!Y105","v":0},{"$f":"'Data Input - Option 3'!Z105","v":0},{"$f":"'Data Input - Option 3'!AA105","v":0},{"$f":"'Data Input - Option 3'!AB105","v":0},{"$f":"'Data Input - Option 3'!AC105","v":0},{"$f":"'Data Input - Option 3'!AD105","v":0},{"$f":"'Data Input - Option 3'!AE105","v":0},{"$f":"'Data Input - Option 3'!AF105","v":0},{"$f":"'Data Input - Option 3'!AG105","v":0},{"$f":"'Data Input - Option 3'!AH105","v":0},{"$f":"'Data Input - Option 3'!AI105","v":0},{"$f":"'Data Input - Option 3'!AJ105","v":0},{"$f":"'Data Input - Option 3'!AK105","v":0},{"$f":"'Data Input - Option 3'!AL105","v":0},{"$f":"'Data Input - Option 3'!AM105","v":0},{"$f":"'Data Input - Option 3'!AN105","v":0},{"$f":"'Data Input - Option 3'!AO105","v":0},{"$f":"'Data Input - Option 3'!AP105","v":0},{"$f":"'Data Input - Option 3'!AQ105","v":0},{"$f":"'Data Input - Option 3'!AR105","v":0},{"$f":"'Data Input - Option 3'!AS105","v":0},{"$f":"'Data Input - Option 3'!AT105","v":0},{"$f":"'Data Input - Option 3'!AU105","v":0},{"$f":"'Data Input - Option 3'!AV105","v":0},{"$f":"'Data Input - Option 3'!AW105","v":0},{"$f":"'Data Input - Option 3'!AX105","v":0},{"$f":"'Data Input - Option 3'!AY105","v":0},{"$f":"'Data Input - Option 3'!AZ105","v":0},{"$f":"'Data Input - Option 3'!BA105","v":0},{"$f":"'Data Input - Option 3'!BB105","v":0},{"$f":"'Data Input - Option 3'!BC105","v":0},{"$f":"'Data Input - Option 3'!BD105","v":0},{"$f":"'Data Input - Option 3'!BE105","v":0},{"$f":"'Data Input - Option 3'!BF105","v":0},{"$f":"'Data Input - Option 3'!BG105","v":0},{"$f":"'Data Input - Option 3'!BH105","v":0},{"$f":"'Data Input - Option 3'!BI105","v":0},{"$f":"'Data Input - Option 3'!BJ105","v":0},{"$f":"'Data Input - Option 3'!BK105","v":0},{"$f":"'Data Input - Option 3'!BL105","v":0},{"$f":"'Data Input - Option 3'!BM105","v":0},{"$f":"'Data Input - Option 3'!BN105","v":0},{"$f":"'Data Input - Option 3'!BO105","v":0},{"$f":"'Data Input - Option 3'!BP105","v":0},{"$f":"'Data Input - Option 3'!BQ105","v":0},{"$f":"'Data Input - Option 3'!BR105","v":0},{"$f":"'Data Input - Option 3'!BS105","v":0},{"$f":"'Data Input - Option 3'!BT105","v":0},{"$f":"'Data Input - Option 3'!BU105","v":0},{"$f":"'Data Input - Option 3'!BV105","v":0},{"$f":"'Data Input - Option 3'!BW105","v":0},{"$f":"'Data Input - Option 3'!BX105","v":0},{"$f":"'Data Input - Option 3'!BY105","v":0},{"$f":"'Data Input - Option 3'!BZ105","v":0},{"$f":"'Data Input - Option 3'!CA105","v":0},{"$f":"'Data Input - Option 3'!CB105","v":0},{"$f":"'Data Input - Option 3'!CC105","v":0},{"$f":"'Data Input - Option 3'!CD105","v":0},{"$f":"'Data Input - Option 3'!CE105","v":0},{"$f":"'Data Input - Option 3'!CF105","v":0},{"$f":"'Data Input - Option 3'!CG105","v":0},{"$f":"'Data Input - Option 3'!CH105","v":0},{"$f":"'Data Input - Option 3'!CI105","v":0},{"$f":"'Data Input - Option 3'!CJ105","v":0},{"$f":"'Data Input - Option 3'!CK105","v":0},{"$f":"'Data Input - Option 3'!CL105","v":0},{"$f":"'Data Input - Option 3'!CM105","v":0},{"$f":"'Data Input - Option 3'!CN105","v":0},{"$f":"'Data Input - Option 3'!CO105","v":0},{"$f":"'Data Input - Option 3'!CP105","v":0},{"$f":"'Data Input - Option 3'!CQ105","v":0},{"$f":"'Data Input - Option 3'!CR105","v":0},{"$f":"'Data Input - Option 3'!CS105","v":0},{"$f":"'Data Input - Option 3'!CT105","v":0},{"$f":"'Data Input - Option 3'!CU105","v":0},{"$f":"'Data Input - Option 3'!CV105","v":0},{"$f":"'Data Input - Option 3'!CW105","v":0},{"$f":"'Data Input - Option 3'!CX105","v":0},{"$f":"'Data Input - Option 3'!CY105","v":0},{"$f":"'Data Input - Option 3'!CZ105","v":0},{"$f":"'Data Input - Option 3'!DA105","v":0},{"$f":"'Data Input - Option 3'!DB105","v":0},{"$f":"'Data Input - Option 3'!DC105","v":0}]
[null,{"$f":"'Data Input - Option 3'!D106","v":0},"Tonnes pa",{"$f":"'Data Input - Option 3'!H106","v":0},{"$f":"'Data Input - Option 3'!I106","v":0},{"$f":"'Data Input - Option 3'!J106","v":0},{"$f":"'Data Input - Option 3'!K106","v":0},{"$f":"'Data Input - Option 3'!L106","v":0},{"$f":"'Data Input - Option 3'!M106","v":0},{"$f":"'Data Input - Option 3'!N106","v":0},{"$f":"'Data Input - Option 3'!O106","v":0},{"$f":"'Data Input - Option 3'!P106","v":0},{"$f":"'Data Input - Option 3'!Q106","v":0},{"$f":"'Data Input - Option 3'!R106","v":0},{"$f":"'Data Input - Option 3'!S106","v":0},{"$f":"'Data Input - Option 3'!T106","v":0},{"$f":"'Data Input - Option 3'!U106","v":0},{"$f":"'Data Input - Option 3'!V106","v":0},{"$f":"'Data Input - Option 3'!W106","v":0},{"$f":"'Data Input - Option 3'!X106","v":0},{"$f":"'Data Input - Option 3'!Y106","v":0},{"$f":"'Data Input - Option 3'!Z106","v":0},{"$f":"'Data Input - Option 3'!AA106","v":0},{"$f":"'Data Input - Option 3'!AB106","v":0},{"$f":"'Data Input - Option 3'!AC106","v":0},{"$f":"'Data Input - Option 3'!AD106","v":0},{"$f":"'Data Input - Option 3'!AE106","v":0},{"$f":"'Data Input - Option 3'!AF106","v":0},{"$f":"'Data Input - Option 3'!AG106","v":0},{"$f":"'Data Input - Option 3'!AH106","v":0},{"$f":"'Data Input - Option 3'!AI106","v":0},{"$f":"'Data Input - Option 3'!AJ106","v":0},{"$f":"'Data Input - Option 3'!AK106","v":0},{"$f":"'Data Input - Option 3'!AL106","v":0},{"$f":"'Data Input - Option 3'!AM106","v":0},{"$f":"'Data Input - Option 3'!AN106","v":0},{"$f":"'Data Input - Option 3'!AO106","v":0},{"$f":"'Data Input - Option 3'!AP106","v":0},{"$f":"'Data Input - Option 3'!AQ106","v":0},{"$f":"'Data Input - Option 3'!AR106","v":0},{"$f":"'Data Input - Option 3'!AS106","v":0},{"$f":"'Data Input - Option 3'!AT106","v":0},{"$f":"'Data Input - Option 3'!AU106","v":0},{"$f":"'Data Input - Option 3'!AV106","v":0},{"$f":"'Data Input - Option 3'!AW106","v":0},{"$f":"'Data Input - Option 3'!AX106","v":0},{"$f":"'Data Input - Option 3'!AY106","v":0},{"$f":"'Data Input - Option 3'!AZ106","v":0},{"$f":"'Data Input - Option 3'!BA106","v":0},{"$f":"'Data Input - Option 3'!BB106","v":0},{"$f":"'Data Input - Option 3'!BC106","v":0},{"$f":"'Data Input - Option 3'!BD106","v":0},{"$f":"'Data Input - Option 3'!BE106","v":0},{"$f":"'Data Input - Option 3'!BF106","v":0},{"$f":"'Data Input - Option 3'!BG106","v":0},{"$f":"'Data Input - Option 3'!BH106","v":0},{"$f":"'Data Input - Option 3'!BI106","v":0},{"$f":"'Data Input - Option 3'!BJ106","v":0},{"$f":"'Data Input - Option 3'!BK106","v":0},{"$f":"'Data Input - Option 3'!BL106","v":0},{"$f":"'Data Input - Option 3'!BM106","v":0},{"$f":"'Data Input - Option 3'!BN106","v":0},{"$f":"'Data Input - Option 3'!BO106","v":0},{"$f":"'Data Input - Option 3'!BP106","v":0},{"$f":"'Data Input - Option 3'!BQ106","v":0},{"$f":"'Data Input - Option 3'!BR106","v":0},{"$f":"'Data Input - Option 3'!BS106","v":0},{"$f":"'Data Input - Option 3'!BT106","v":0},{"$f":"'Data Input - Option 3'!BU106","v":0},{"$f":"'Data Input - Option 3'!BV106","v":0},{"$f":"'Data Input - Option 3'!BW106","v":0},{"$f":"'Data Input - Option 3'!BX106","v":0},{"$f":"'Data Input - Option 3'!BY106","v":0},{"$f":"'Data Input - Option 3'!BZ106","v":0},{"$f":"'Data Input - Option 3'!CA106","v":0},{"$f":"'Data Input - Option 3'!CB106","v":0},{"$f":"'Data Input - Option 3'!CC106","v":0},{"$f":"'Data Input - Option 3'!CD106","v":0},{"$f":"'Data Input - Option 3'!CE106","v":0},{"$f":"'Data Input - Option 3'!CF106","v":0},{"$f":"'Data Input - Option 3'!CG106","v":0},{"$f":"'Data Input - Option 3'!CH106","v":0},{"$f":"'Data Input - Option 3'!CI106","v":0},{"$f":"'Data Input - Option 3'!CJ106","v":0},{"$f":"'Data Input - Option 3'!CK106","v":0},{"$f":"'Data Input - Option 3'!CL106","v":0},{"$f":"'Data Input - Option 3'!CM106","v":0},{"$f":"'Data Input - Option 3'!CN106","v":0},{"$f":"'Data Input - Option 3'!CO106","v":0},{"$f":"'Data Input - Option 3'!CP106","v":0},{"$f":"'Data Input - Option 3'!CQ106","v":0},{"$f":"'Data Input - Option 3'!CR106","v":0},{"$f":"'Data Input - Option 3'!CS106","v":0},{"$f":"'Data Input - Option 3'!CT106","v":0},{"$f":"'Data Input - Option 3'!CU106","v":0},{"$f":"'Data Input - Option 3'!CV106","v":0},{"$f":"'Data Input - Option 3'!CW106","v":0},{"$f":"'Data Input - Option 3'!CX106","v":0},{"$f":"'Data Input - Option 3'!CY106","v":0},{"$f":"'Data Input - Option 3'!CZ106","v":0},{"$f":"'Data Input - Option 3'!DA106","v":0},{"$f":"'Data Input - Option 3'!DB106","v":0},{"$f":"'Data Input - Option 3'!DC106","v":0}]
[null,{"$f":"'Data Input - Option 3'!D107","v":0},"Tonnes pa",{"$f":"'Data Input - Option 3'!H107","v":0},{"$f":"'Data Input - Option 3'!I107","v":0},{"$f":"'Data Input - Option 3'!J107","v":0},{"$f":"'Data Input - Option 3'!K107","v":0},{"$f":"'Data Input - Option 3'!L107","v":0},{"$f":"'Data Input - Option 3'!M107","v":0},{"$f":"'Data Input - Option 3'!N107","v":0},{"$f":"'Data Input - Option 3'!O107","v":0},{"$f":"'Data Input - Option 3'!P107","v":0},{"$f":"'Data Input - Option 3'!Q107","v":0},{"$f":"'Data Input - Option 3'!R107","v":0},{"$f":"'Data Input - Option 3'!S107","v":0},{"$f":"'Data Input - Option 3'!T107","v":0},{"$f":"'Data Input - Option 3'!U107","v":0},{"$f":"'Data Input - Option 3'!V107","v":0},{"$f":"'Data Input - Option 3'!W107","v":0},{"$f":"'Data Input - Option 3'!X107","v":0},{"$f":"'Data Input - Option 3'!Y107","v":0},{"$f":"'Data Input - Option 3'!Z107","v":0},{"$f":"'Data Input - Option 3'!AA107","v":0},{"$f":"'Data Input - Option 3'!AB107","v":0},{"$f":"'Data Input - Option 3'!AC107","v":0},{"$f":"'Data Input - Option 3'!AD107","v":0},{"$f":"'Data Input - Option 3'!AE107","v":0},{"$f":"'Data Input - Option 3'!AF107","v":0},{"$f":"'Data Input - Option 3'!AG107","v":0},{"$f":"'Data Input - Option 3'!AH107","v":0},{"$f":"'Data Input - Option 3'!AI107","v":0},{"$f":"'Data Input - Option 3'!AJ107","v":0},{"$f":"'Data Input - Option 3'!AK107","v":0},{"$f":"'Data Input - Option 3'!AL107","v":0},{"$f":"'Data Input - Option 3'!AM107","v":0},{"$f":"'Data Input - Option 3'!AN107","v":0},{"$f":"'Data Input - Option 3'!AO107","v":0},{"$f":"'Data Input - Option 3'!AP107","v":0},{"$f":"'Data Input - Option 3'!AQ107","v":0},{"$f":"'Data Input - Option 3'!AR107","v":0},{"$f":"'Data Input - Option 3'!AS107","v":0},{"$f":"'Data Input - Option 3'!AT107","v":0},{"$f":"'Data Input - Option 3'!AU107","v":0},{"$f":"'Data Input - Option 3'!AV107","v":0},{"$f":"'Data Input - Option 3'!AW107","v":0},{"$f":"'Data Input - Option 3'!AX107","v":0},{"$f":"'Data Input - Option 3'!AY107","v":0},{"$f":"'Data Input - Option 3'!AZ107","v":0},{"$f":"'Data Input - Option 3'!BA107","v":0},{"$f":"'Data Input - Option 3'!BB107","v":0},{"$f":"'Data Input - Option 3'!BC107","v":0},{"$f":"'Data Input - Option 3'!BD107","v":0},{"$f":"'Data Input - Option 3'!BE107","v":0},{"$f":"'Data Input - Option 3'!BF107","v":0},{"$f":"'Data Input - Option 3'!BG107","v":0},{"$f":"'Data Input - Option 3'!BH107","v":0},{"$f":"'Data Input - Option 3'!BI107","v":0},{"$f":"'Data Input - Option 3'!BJ107","v":0},{"$f":"'Data Input - Option 3'!BK107","v":0},{"$f":"'Data Input - Option 3'!BL107","v":0},{"$f":"'Data Input - Option 3'!BM107","v":0},{"$f":"'Data Input - Option 3'!BN107","v":0},{"$f":"'Data Input - Option 3'!BO107","v":0},{"$f":"'Data Input - Option 3'!BP107","v":0},{"$f":"'Data Input - Option 3'!BQ107","v":0},{"$f":"'Data Input - Option 3'!BR107","v":0},{"$f":"'Data Input - Option 3'!BS107","v":0},{"$f":"'Data Input - Option 3'!BT107","v":0},{"$f":"'Data Input - Option 3'!BU107","v":0},{"$f":"'Data Input - Option 3'!BV107","v":0},{"$f":"'Data Input - Option 3'!BW107","v":0},{"$f":"'Data Input - Option 3'!BX107","v":0},{"$f":"'Data Input - Option 3'!BY107","v":0},{"$f":"'Data Input - Option 3'!BZ107","v":0},{"$f":"'Data Input - Option 3'!CA107","v":0},{"$f":"'Data Input - Option 3'!CB107","v":0},{"$f":"'Data Input - Option 3'!CC107","v":0},{"$f":"'Data Input - Option 3'!CD107","v":0},{"$f":"'Data Input - Option 3'!CE107","v":0},{"$f":"'Data Input - Option 3'!CF107","v":0},{"$f":"'Data Input - Option 3'!CG107","v":0},{"$f":"'Data Input - Option 3'!CH107","v":0},{"$f":"'Data Input - Option 3'!CI107","v":0},{"$f":"'Data Input - Option 3'!CJ107","v":0},{"$f":"'Data Input - Option 3'!CK107","v":0},{"$f":"'Data Input - Option 3'!CL107","v":0},{"$f":"'Data Input - Option 3'!CM107","v":0},{"$f":"'Data Input - Option 3'!CN107","v":0},{"$f":"'Data Input - Option 3'!CO107","v":0},{"$f":"'Data Input - Option 3'!CP107","v":0},{"$f":"'Data Input - Option 3'!CQ107","v":0},{"$f":"'Data Input - Option 3'!CR107","v":0},{"$f":"'Data Input - Option 3'!CS107","v":0},{"$f":"'Data Input - Option 3'!CT107","v":0},{"$f":"'Data Input - Option 3'!CU107","v":0},{"$f":"'Data Input - Option 3'!CV107","v":0},{"$f":"'Data Input - Option 3'!CW107","v":0},{"$f":"'Data Input - Option 3'!CX107","v":0},{"$f":"'Data Input - Option 3'!CY107","v":0},{"$f":"'Data Input - Option 3'!CZ107","v":0},{"$f":"'Data Input - Option 3'!DA107","v":0},{"$f":"'Data Input - Option 3'!DB107","v":0},{"$f":"'Data Input - Option 3'!DC107","v":0}]
[null,{"$f":"'Data Input - Option 3'!D108","v":0},"Tonnes pa",{"$f":"'Data Input - Option 3'!H108","v":0},{"$f":"'Data Input - Option 3'!I108","v":0},{"$f":"'Data Input - Option 3'!J108","v":0},{"$f":"'Data Input - Option 3'!K108","v":0},{"$f":"'Data Input - Option 3'!L108","v":0},{"$f":"'Data Input - Option 3'!M108","v":0},{"$f":"'Data Input - Option 3'!N108","v":0},{"$f":"'Data Input - Option 3'!O108","v":0},{"$f":"'Data Input - Option 3'!P108","v":0},{"$f":"'Data Input - Option 3'!Q108","v":0},{"$f":"'Data Input - Option 3'!R108","v":0},{"$f":"'Data Input - Option 3'!S108","v":0},{"$f":"'Data Input - Option 3'!T108","v":0},{"$f":"'Data Input - Option 3'!U108","v":0},{"$f":"'Data Input - Option 3'!V108","v":0},{"$f":"'Data Input - Option 3'!W108","v":0},{"$f":"'Data Input - Option 3'!X108","v":0},{"$f":"'Data Input - Option 3'!Y108","v":0},{"$f":"'Data Input - Option 3'!Z108","v":0},{"$f":"'Data Input - Option 3'!AA108","v":0},{"$f":"'Data Input - Option 3'!AB108","v":0},{"$f":"'Data Input - Option 3'!AC108","v":0},{"$f":"'Data Input - Option 3'!AD108","v":0},{"$f":"'Data Input - Option 3'!AE108","v":0},{"$f":"'Data Input - Option 3'!AF108","v":0},{"$f":"'Data Input - Option 3'!AG108","v":0},{"$f":"'Data Input - Option 3'!AH108","v":0},{"$f":"'Data Input - Option 3'!AI108","v":0},{"$f":"'Data Input - Option 3'!AJ108","v":0},{"$f":"'Data Input - Option 3'!AK108","v":0},{"$f":"'Data Input - Option 3'!AL108","v":0},{"$f":"'Data Input - Option 3'!AM108","v":0},{"$f":"'Data Input - Option 3'!AN108","v":0},{"$f":"'Data Input - Option 3'!AO108","v":0},{"$f":"'Data Input - Option 3'!AP108","v":0},{"$f":"'Data Input - Option 3'!AQ108","v":0},{"$f":"'Data Input - Option 3'!AR108","v":0},{"$f":"'Data Input - Option 3'!AS108","v":0},{"$f":"'Data Input - Option 3'!AT108","v":0},{"$f":"'Data Input - Option 3'!AU108","v":0},{"$f":"'Data Input - Option 3'!AV108","v":0},{"$f":"'Data Input - Option 3'!AW108","v":0},{"$f":"'Data Input - Option 3'!AX108","v":0},{"$f":"'Data Input - Option 3'!AY108","v":0},{"$f":"'Data Input - Option 3'!AZ108","v":0},{"$f":"'Data Input - Option 3'!BA108","v":0},{"$f":"'Data Input - Option 3'!BB108","v":0},{"$f":"'Data Input - Option 3'!BC108","v":0},{"$f":"'Data Input - Option 3'!BD108","v":0},{"$f":"'Data Input - Option 3'!BE108","v":0},{"$f":"'Data Input - Option 3'!BF108","v":0},{"$f":"'Data Input - Option 3'!BG108","v":0},{"$f":"'Data Input - Option 3'!BH108","v":0},{"$f":"'Data Input - Option 3'!BI108","v":0},{"$f":"'Data Input - Option 3'!BJ108","v":0},{"$f":"'Data Input - Option 3'!BK108","v":0},{"$f":"'Data Input - Option 3'!BL108","v":0},{"$f":"'Data Input - Option 3'!BM108","v":0},{"$f":"'Data Input - Option 3'!BN108","v":0},{"$f":"'Data Input - Option 3'!BO108","v":0},{"$f":"'Data Input - Option 3'!BP108","v":0},{"$f":"'Data Input - Option 3'!BQ108","v":0},{"$f":"'Data Input - Option 3'!BR108","v":0},{"$f":"'Data Input - Option 3'!BS108","v":0},{"$f":"'Data Input - Option 3'!BT108","v":0},{"$f":"'Data Input - Option 3'!BU108","v":0},{"$f":"'Data Input - Option 3'!BV108","v":0},{"$f":"'Data Input - Option 3'!BW108","v":0},{"$f":"'Data Input - Option 3'!BX108","v":0},{"$f":"'Data Input - Option 3'!BY108","v":0},{"$f":"'Data Input - Option 3'!BZ108","v":0},{"$f":"'Data Input - Option 3'!CA108","v":0},{"$f":"'Data Input - Option 3'!CB108","v":0},{"$f":"'Data Input - Option 3'!CC108","v":0},{"$f":"'Data Input - Option 3'!CD108","v":0},{"$f":"'Data Input - Option 3'!CE108","v":0},{"$f":"'Data Input - Option 3'!CF108","v":0},{"$f":"'Data Input - Option 3'!CG108","v":0},{"$f":"'Data Input - Option 3'!CH108","v":0},{"$f":"'Data Input - Option 3'!CI108","v":0},{"$f":"'Data Input - Option 3'!CJ108","v":0},{"$f":"'Data Input - Option 3'!CK108","v":0},{"$f":"'Data Input - Option 3'!CL108","v":0},{"$f":"'Data Input - Option 3'!CM108","v":0},{"$f":"'Data Input - Option 3'!CN108","v":0},{"$f":"'Data Input - Option 3'!CO108","v":0},{"$f":"'Data Input - Option 3'!CP108","v":0},{"$f":"'Data Input - Option 3'!CQ108","v":0},{"$f":"'Data Input - Option 3'!CR108","v":0},{"$f":"'Data Input - Option 3'!CS108","v":0},{"$f":"'Data Input - Option 3'!CT108","v":0},{"$f":"'Data Input - Option 3'!CU108","v":0},{"$f":"'Data Input - Option 3'!CV108","v":0},{"$f":"'Data Input - Option 3'!CW108","v":0},{"$f":"'Data Input - Option 3'!CX108","v":0},{"$f":"'Data Input - Option 3'!CY108","v":0},{"$f":"'Data Input - Option 3'!CZ108","v":0},{"$f":"'Data Input - Option 3'!DA108","v":0},{"$f":"'Data Input - Option 3'!DB108","v":0},{"$f":"'Data Input - Option 3'!DC108","v":0}]
[null,{"$f":"'Data Input - Option 3'!D109","v":0},"Tonnes pa",{"$f":"'Data Input - Option 3'!H109","v":0},{"$f":"'Data Input - Option 3'!I109","v":0},{"$f":"'Data Input - Option 3'!J109","v":0},{"$f":"'Data Input - Option 3'!K109","v":0},{"$f":"'Data Input - Option 3'!L109","v":0},{"$f":"'Data Input - Option 3'!M109","v":0},{"$f":"'Data Input - Option 3'!N109","v":0},{"$f":"'Data Input - Option 3'!O109","v":0},{"$f":"'Data Input - Option 3'!P109","v":0},{"$f":"'Data Input - Option 3'!Q109","v":0},{"$f":"'Data Input - Option 3'!R109","v":0},{"$f":"'Data Input - Option 3'!S109","v":0},{"$f":"'Data Input - Option 3'!T109","v":0},{"$f":"'Data Input - Option 3'!U109","v":0},{"$f":"'Data Input - Option 3'!V109","v":0},{"$f":"'Data Input - Option 3'!W109","v":0},{"$f":"'Data Input - Option 3'!X109","v":0},{"$f":"'Data Input - Option 3'!Y109","v":0},{"$f":"'Data Input - Option 3'!Z109","v":0},{"$f":"'Data Input - Option 3'!AA109","v":0},{"$f":"'Data Input - Option 3'!AB109","v":0},{"$f":"'Data Input - Option 3'!AC109","v":0},{"$f":"'Data Input - Option 3'!AD109","v":0},{"$f":"'Data Input - Option 3'!AE109","v":0},{"$f":"'Data Input - Option 3'!AF109","v":0},{"$f":"'Data Input - Option 3'!AG109","v":0},{"$f":"'Data Input - Option 3'!AH109","v":0},{"$f":"'Data Input - Option 3'!AI109","v":0},{"$f":"'Data Input - Option 3'!AJ109","v":0},{"$f":"'Data Input - Option 3'!AK109","v":0},{"$f":"'Data Input - Option 3'!AL109","v":0},{"$f":"'Data Input - Option 3'!AM109","v":0},{"$f":"'Data Input - Option 3'!AN109","v":0},{"$f":"'Data Input - Option 3'!AO109","v":0},{"$f":"'Data Input - Option 3'!AP109","v":0},{"$f":"'Data Input - Option 3'!AQ109","v":0},{"$f":"'Data Input - Option 3'!AR109","v":0},{"$f":"'Data Input - Option 3'!AS109","v":0},{"$f":"'Data Input - Option 3'!AT109","v":0},{"$f":"'Data Input - Option 3'!AU109","v":0},{"$f":"'Data Input - Option 3'!AV109","v":0},{"$f":"'Data Input - Option 3'!AW109","v":0},{"$f":"'Data Input - Option 3'!AX109","v":0},{"$f":"'Data Input - Option 3'!AY109","v":0},{"$f":"'Data Input - Option 3'!AZ109","v":0},{"$f":"'Data Input - Option 3'!BA109","v":0},{"$f":"'Data Input - Option 3'!BB109","v":0},{"$f":"'Data Input - Option 3'!BC109","v":0},{"$f":"'Data Input - Option 3'!BD109","v":0},{"$f":"'Data Input - Option 3'!BE109","v":0},{"$f":"'Data Input - Option 3'!BF109","v":0},{"$f":"'Data Input - Option 3'!BG109","v":0},{"$f":"'Data Input - Option 3'!BH109","v":0},{"$f":"'Data Input - Option 3'!BI109","v":0},{"$f":"'Data Input - Option 3'!BJ109","v":0},{"$f":"'Data Input - Option 3'!BK109","v":0},{"$f":"'Data Input - Option 3'!BL109","v":0},{"$f":"'Data Input - Option 3'!BM109","v":0},{"$f":"'Data Input - Option 3'!BN109","v":0},{"$f":"'Data Input - Option 3'!BO109","v":0},{"$f":"'Data Input - Option 3'!BP109","v":0},{"$f":"'Data Input - Option 3'!BQ109","v":0},{"$f":"'Data Input - Option 3'!BR109","v":0},{"$f":"'Data Input - Option 3'!BS109","v":0},{"$f":"'Data Input - Option 3'!BT109","v":0},{"$f":"'Data Input - Option 3'!BU109","v":0},{"$f":"'Data Input - Option 3'!BV109","v":0},{"$f":"'Data Input - Option 3'!BW109","v":0},{"$f":"'Data Input - Option 3'!BX109","v":0},{"$f":"'Data Input - Option 3'!BY109","v":0},{"$f":"'Data Input - Option 3'!BZ109","v":0},{"$f":"'Data Input - Option 3'!CA109","v":0},{"$f":"'Data Input - Option 3'!CB109","v":0},{"$f":"'Data Input - Option 3'!CC109","v":0},{"$f":"'Data Input - Option 3'!CD109","v":0},{"$f":"'Data Input - Option 3'!CE109","v":0},{"$f":"'Data Input - Option 3'!CF109","v":0},{"$f":"'Data Input - Option 3'!CG109","v":0},{"$f":"'Data Input - Option 3'!CH109","v":0},{"$f":"'Data Input - Option 3'!CI109","v":0},{"$f":"'Data Input - Option 3'!CJ109","v":0},{"$f":"'Data Input - Option 3'!CK109","v":0},{"$f":"'Data Input - Option 3'!CL109","v":0},{"$f":"'Data Input - Option 3'!CM109","v":0},{"$f":"'Data Input - Option 3'!CN109","v":0},{"$f":"'Data Input - Option 3'!CO109","v":0},{"$f":"'Data Input - Option 3'!CP109","v":0},{"$f":"'Data Input - Option 3'!CQ109","v":0},{"$f":"'Data Input - Option 3'!CR109","v":0},{"$f":"'Data Input - Option 3'!CS109","v":0},{"$f":"'Data Input - Option 3'!CT109","v":0},{"$f":"'Data Input - Option 3'!CU109","v":0},{"$f":"'Data Input - Option 3'!CV109","v":0},{"$f":"'Data Input - Option 3'!CW109","v":0},{"$f":"'Data Input - Option 3'!CX109","v":0},{"$f":"'Data Input - Option 3'!CY109","v":0},{"$f":"'Data Input - Option 3'!CZ109","v":0},{"$f":"'Data Input - Option 3'!DA109","v":0},{"$f":"'Data Input - Option 3'!DB109","v":0},{"$f":"'Data Input - Option 3'!DC109","v":0}]
[null,{"$f":"'Data Input - Option 3'!D110","v":0},"Tonnes pa",{"$f":"'Data Input - Option 3'!H110","v":0},{"$f":"'Data Input - Option 3'!I110","v":0},{"$f":"'Data Input - Option 3'!J110","v":0},{"$f":"'Data Input - Option 3'!K110","v":0},{"$f":"'Data Input - Option 3'!L110","v":0},{"$f":"'Data Input - Option 3'!M110","v":0},{"$f":"'Data Input - Option 3'!N110","v":0},{"$f":"'Data Input - Option 3'!O110","v":0},{"$f":"'Data Input - Option 3'!P110","v":0},{"$f":"'Data Input - Option 3'!Q110","v":0},{"$f":"'Data Input - Option 3'!R110","v":0},{"$f":"'Data Input - Option 3'!S110","v":0},{"$f":"'Data Input - Option 3'!T110","v":0},{"$f":"'Data Input - Option 3'!U110","v":0},{"$f":"'Data Input - Option 3'!V110","v":0},{"$f":"'Data Input - Option 3'!W110","v":0},{"$f":"'Data Input - Option 3'!X110","v":0},{"$f":"'Data Input - Option 3'!Y110","v":0},{"$f":"'Data Input - Option 3'!Z110","v":0},{"$f":"'Data Input - Option 3'!AA110","v":0},{"$f":"'Data Input - Option 3'!AB110","v":0},{"$f":"'Data Input - Option 3'!AC110","v":0},{"$f":"'Data Input - Option 3'!AD110","v":0},{"$f":"'Data Input - Option 3'!AE110","v":0},{"$f":"'Data Input - Option 3'!AF110","v":0},{"$f":"'Data Input - Option 3'!AG110","v":0},{"$f":"'Data Input - Option 3'!AH110","v":0},{"$f":"'Data Input - Option 3'!AI110","v":0},{"$f":"'Data Input - Option 3'!AJ110","v":0},{"$f":"'Data Input - Option 3'!AK110","v":0},{"$f":"'Data Input - Option 3'!AL110","v":0},{"$f":"'Data Input - Option 3'!AM110","v":0},{"$f":"'Data Input - Option 3'!AN110","v":0},{"$f":"'Data Input - Option 3'!AO110","v":0},{"$f":"'Data Input - Option 3'!AP110","v":0},{"$f":"'Data Input - Option 3'!AQ110","v":0},{"$f":"'Data Input - Option 3'!AR110","v":0},{"$f":"'Data Input - Option 3'!AS110","v":0},{"$f":"'Data Input - Option 3'!AT110","v":0},{"$f":"'Data Input - Option 3'!AU110","v":0},{"$f":"'Data Input - Option 3'!AV110","v":0},{"$f":"'Data Input - Option 3'!AW110","v":0},{"$f":"'Data Input - Option 3'!AX110","v":0},{"$f":"'Data Input - Option 3'!AY110","v":0},{"$f":"'Data Input - Option 3'!AZ110","v":0},{"$f":"'Data Input - Option 3'!BA110","v":0},{"$f":"'Data Input - Option 3'!BB110","v":0},{"$f":"'Data Input - Option 3'!BC110","v":0},{"$f":"'Data Input - Option 3'!BD110","v":0},{"$f":"'Data Input - Option 3'!BE110","v":0},{"$f":"'Data Input - Option 3'!BF110","v":0},{"$f":"'Data Input - Option 3'!BG110","v":0},{"$f":"'Data Input - Option 3'!BH110","v":0},{"$f":"'Data Input - Option 3'!BI110","v":0},{"$f":"'Data Input - Option 3'!BJ110","v":0},{"$f":"'Data Input - Option 3'!BK110","v":0},{"$f":"'Data Input - Option 3'!BL110","v":0},{"$f":"'Data Input - Option 3'!BM110","v":0},{"$f":"'Data Input - Option 3'!BN110","v":0},{"$f":"'Data Input - Option 3'!BO110","v":0},{"$f":"'Data Input - Option 3'!BP110","v":0},{"$f":"'Data Input - Option 3'!BQ110","v":0},{"$f":"'Data Input - Option 3'!BR110","v":0},{"$f":"'Data Input - Option 3'!BS110","v":0},{"$f":"'Data Input - Option 3'!BT110","v":0},{"$f":"'Data Input - Option 3'!BU110","v":0},{"$f":"'Data Input - Option 3'!BV110","v":0},{"$f":"'Data Input - Option 3'!BW110","v":0},{"$f":"'Data Input - Option 3'!BX110","v":0},{"$f":"'Data Input - Option 3'!BY110","v":0},{"$f":"'Data Input - Option 3'!BZ110","v":0},{"$f":"'Data Input - Option 3'!CA110","v":0},{"$f":"'Data Input - Option 3'!CB110","v":0},{"$f":"'Data Input - Option 3'!CC110","v":0},{"$f":"'Data Input - Option 3'!CD110","v":0},{"$f":"'Data Input - Option 3'!CE110","v":0},{"$f":"'Data Input - Option 3'!CF110","v":0},{"$f":"'Data Input - Option 3'!CG110","v":0},{"$f":"'Data Input - Option 3'!CH110","v":0},{"$f":"'Data Input - Option 3'!CI110","v":0},{"$f":"'Data Input - Option 3'!CJ110","v":0},{"$f":"'Data Input - Option 3'!CK110","v":0},{"$f":"'Data Input - Option 3'!CL110","v":0},{"$f":"'Data Input - Option 3'!CM110","v":0},{"$f":"'Data Input - Option 3'!CN110","v":0},{"$f":"'Data Input - Option 3'!CO110","v":0},{"$f":"'Data Input - Option 3'!CP110","v":0},{"$f":"'Data Input - Option 3'!CQ110","v":0},{"$f":"'Data Input - Option 3'!CR110","v":0},{"$f":"'Data Input - Option 3'!CS110","v":0},{"$f":"'Data Input - Option 3'!CT110","v":0},{"$f":"'Data Input - Option 3'!CU110","v":0},{"$f":"'Data Input - Option 3'!CV110","v":0},{"$f":"'Data Input - Option 3'!CW110","v":0},{"$f":"'Data Input - Option 3'!CX110","v":0},{"$f":"'Data Input - Option 3'!CY110","v":0},{"$f":"'Data Input - Option 3'!CZ110","v":0},{"$f":"'Data Input - Option 3'!DA110","v":0},{"$f":"'Data Input - Option 3'!DB110","v":0},{"$f":"'Data Input - Option 3'!DC110","v":0}]
[]
[null,"Air pollutant emissions- value"]
[null,{"$f":"B53","v":"Sox 2019"},"£000's",{"$f":"IFERROR(IF(OR($C$67=FALSE,LEFT($B61,3)<>\"NOX\"),D53*INDEX('Damage costs'!$O$16:$O$43,MATCH($B61,'Damage costs'!$C$16:$C$43,0))/1000,D53*INDEX('Damage costs'!$S$16:$S$43,MATCH($B61,'Damage costs'!$C$16:$C$43,0))/1000),\"\")","v":1.7937948213674899},{"$f":"IFERROR(IF(OR($C$67=FALSE,LEFT($B61,3)<>\"NOX\"),E53*INDEX('Damage costs'!$O$16:$O$43,MATCH($B61,'Damage costs'!$C$16:$C$43,0))/1000,E53*INDEX('Damage costs'!$S$16:$S$43,MATCH($B61,'Damage costs'!$C$16:$C$43,0))/1000),\"\")","v":1.7937948213674899},{"$f":"IFERROR(IF(OR($C$67=FALSE,LEFT($B61,3)<>\"NOX\"),F53*INDEX('Damage costs'!$O$16:$O$43,MATCH($B61,'Damage costs'!$C$16:$C$43,0))/1000,F53*INDEX('Damage costs'!$S$16:$S$43,MATCH($B61,'Damage costs'!$C$16:$C$43,0))/1000),\"\")","v":1.7937948213674899},{"$f":"IFERROR(IF(OR($C$67=FALSE,LEFT($B61,3)<>\"NOX\"),G53*INDEX('Damage costs'!$O$16:$O$43,MATCH($B61,'Damage costs'!$C$16:$C$43,0))/1000,G53*INDEX('Damage costs'!$S$16:$S$43,MATCH($B61,'Damage costs'!$C$16:$C$43,0))/1000),\"\")","v":1.7937948213674899},{"$f":"IFERROR(IF(OR($C$67=FALSE,LEFT($B61,3)<>\"NOX\"),H53*INDEX('Damage costs'!$O$16:$O$43,MATCH($B61,'Damage costs'!$C$16:$C$43,0))/1000,H53*INDEX('Damage costs'!$S$16:$S$43,MATCH($B61,'Damage costs'!$C$16:$C$43,0))/1000),\"\")","v":1.7937948213674899},{"$f":"IFERROR(IF(OR($C$67=FALSE,LEFT($B61,3)<>\"NOX\"),I53*INDEX('Damage costs'!$O$16:$O$43,MATCH($B61,'Damage costs'!$C$16:$C$43,0))/1000,I53*INDEX('Damage costs'!$S$16:$S$43,MATCH($B61,'Damage costs'!$C$16:$C$43,0))/1000),\"\")","v":1.7937948213674899},{"$f":"IFERROR(IF(OR($C$67=FALSE,LEFT($B61,3)<>\"NOX\"),J53*INDEX('Damage costs'!$O$16:$O$43,MATCH($B61,'Damage costs'!$C$16:$C$43,0))/1000,J53*INDEX('Damage costs'!$S$16:$S$43,MATCH($B61,'Damage costs'!$C$16:$C$43,0))/1000),\"\")","v":1.7937948213674899},{"$f":"IFERROR(IF(OR($C$67=FALSE,LEFT($B61,3)<>\"NOX\"),K53*INDEX('Damage costs'!$O$16:$O$43,MATCH($B61,'Damage costs'!$C$16:$C$43,0))/1000,K53*INDEX('Damage costs'!$S$16:$S$43,MATCH($B61,'Damage costs'!$C$16:$C$43,0))/1000),\"\")","v":1.7937948213674899},{"$f":"IFERROR(IF(OR($C$67=FALSE,LEFT($B61,3)<>\"NOX\"),L53*INDEX('Damage costs'!$O$16:$O$43,MATCH($B61,'Damage costs'!$C$16:$C$43,0))/1000,L53*INDEX('Damage costs'!$S$16:$S$43,MATCH($B61,'Damage costs'!$C$16:$C$43,0))/1000),\"\")","v":0},{"$f":"IFERROR(IF(OR($C$67=FALSE,LEFT($B61,3)<>\"NOX\"),M53*INDEX('Damage costs'!$O$16:$O$43,MATCH($B61,'Damage costs'!$C$16:$C$43,0))/1000,M53*INDEX('Damage costs'!$S$16:$S$43,MATCH($B61,'Damage costs'!$C$16:$C$43,0))/1000),\"\")","v":0},{"$f":"IFERROR(IF(OR($C$67=FALSE,LEFT($B61,3)<>\"NOX\"),N53*INDEX('Damage costs'!$O$16:$O$43,MATCH($B61,'Damage costs'!$C$16:$C$43,0))/1000,N53*INDEX('Damage costs'!$S$16:$S$43,MATCH($B61,'Damage costs'!$C$16:$C$43,0))/1000),\"\")","v":0},{"$f":"IFERROR(IF(OR($C$67=FALSE,LEFT($B61,3)<>\"NOX\"),O53*INDEX('Damage costs'!$O$16:$O$43,MATCH($B61,'Damage costs'!$C$16:$C$43,0))/1000,O53*INDEX('Damage costs'!$S$16:$S$43,MATCH($B61,'Damage costs'!$C$16:$C$43,0))/1000),\"\")","v":0},{"$f":"IFERROR(IF(OR($C$67=FALSE,LEFT($B61,3)<>\"NOX\"),P53*INDEX('Damage costs'!$O$16:$O$43,MATCH($B61,'Damage costs'!$C$16:$C$43,0))/1000,P53*INDEX('Damage costs'!$S$16:$S$43,MATCH($B61,'Damage costs'!$C$16:$C$43,0))/1000),\"\")","v":0},{"$f":"IFERROR(IF(OR($C$67=FALSE,LEFT($B61,3)<>\"NOX\"),Q53*INDEX('Damage costs'!$O$16:$O$43,MATCH($B61,'Damage costs'!$C$16:$C$43,0))/1000,Q53*INDEX('Damage costs'!$S$16:$S$43,MATCH($B61,'Damage costs'!$C$16:$C$43,0))/1000),\"\")","v":0},{"$f":"IFERROR(IF(OR($C$67=FALSE,LEFT($B61,3)<>\"NOX\"),R53*INDEX('Damage costs'!$O$16:$O$43,MATCH($B61,'Damage costs'!$C$16:$C$43,0))/1000,R53*INDEX('Damage costs'!$S$16:$S$43,MATCH($B61,'Damage costs'!$C$16:$C$43,0))/1000),\"\")","v":0},{"$f":"IFERROR(IF(OR($C$67=FALSE,LEFT($B61,3)<>\"NOX\"),S53*INDEX('Damage costs'!$O$16:$O$43,MATCH($B61,'Damage costs'!$C$16:$C$43,0))/1000,S53*INDEX('Damage costs'!$S$16:$S$43,MATCH($B61,'Damage costs'!$C$16:$C$43,0))/1000),\"\")","v":0},{"$f":"IFERROR(IF(OR($C$67=FALSE,LEFT($B61,3)<>\"NOX\"),T53*INDEX('Damage costs'!$O$16:$O$43,MATCH($B61,'Damage costs'!$C$16:$C$43,0))/1000,T53*INDEX('Damage costs'!$S$16:$S$43,MATCH($B61,'Damage costs'!$C$16:$C$43,0))/1000),\"\")","v":0},{"$f":"IFERROR(IF(OR($C$67=FALSE,LEFT($B61,3)<>\"NOX\"),U53*INDEX('Damage costs'!$O$16:$O$43,MATCH($B61,'Damage costs'!$C$16:$C$43,0))/1000,U53*INDEX('Damage costs'!$S$16:$S$43,MATCH($B61,'Damage costs'!$C$16:$C$43,0))/1000),\"\")","v":0},{"$f":"IFERROR(IF(OR($C$67=FALSE,LEFT($B61,3)<>\"NOX\"),V53*INDEX('Damage costs'!$O$16:$O$43,MATCH($B61,'Damage costs'!$C$16:$C$43,0))/1000,V53*INDEX('Damage costs'!$S$16:$S$43,MATCH($B61,'Damage costs'!$C$16:$C$43,0))/1000),\"\")","v":0},{"$f":"IFERROR(IF(OR($C$67=FALSE,LEFT($B61,3)<>\"NOX\"),W53*INDEX('Damage costs'!$O$16:$O$43,MATCH($B61,'Damage costs'!$C$16:$C$43,0))/1000,W53*INDEX('Damage costs'!$S$16:$S$43,MATCH($B61,'Damage costs'!$C$16:$C$43,0))/1000),\"\")","v":0},{"$f":"IFERROR(IF(OR($C$67=FALSE,LEFT($B61,3)<>\"NOX\"),X53*INDEX('Damage costs'!$O$16:$O$43,MATCH($B61,'Damage costs'!$C$16:$C$43,0))/1000,X53*INDEX('Damage costs'!$S$16:$S$43,MATCH($B61,'Damage costs'!$C$16:$C$43,0))/1000),\"\")","v":0},{"$f":"IFERROR(IF(OR($C$67=FALSE,LEFT($B61,3)<>\"NOX\"),Y53*INDEX('Damage costs'!$O$16:$O$43,MATCH($B61,'Damage costs'!$C$16:$C$43,0))/1000,Y53*INDEX('Damage costs'!$S$16:$S$43,MATCH($B61,'Damage costs'!$C$16:$C$43,0))/1000),\"\")","v":0},{"$f":"IFERROR(IF(OR($C$67=FALSE,LEFT($B61,3)<>\"NOX\"),Z53*INDEX('Damage costs'!$O$16:$O$43,MATCH($B61,'Damage costs'!$C$16:$C$43,0))/1000,Z53*INDEX('Damage costs'!$S$16:$S$43,MATCH($B61,'Damage costs'!$C$16:$C$43,0))/1000),\"\")","v":0},{"$f":"IFERROR(IF(OR($C$67=FALSE,LEFT($B61,3)<>\"NOX\"),AA53*INDEX('Damage costs'!$O$16:$O$43,MATCH($B61,'Damage costs'!$C$16:$C$43,0))/1000,AA53*INDEX('Damage costs'!$S$16:$S$43,MATCH($B61,'Damage costs'!$C$16:$C$43,0))/1000),\"\")","v":0},{"$f":"IFERROR(IF(OR($C$67=FALSE,LEFT($B61,3)<>\"NOX\"),AB53*INDEX('Damage costs'!$O$16:$O$43,MATCH($B61,'Damage costs'!$C$16:$C$43,0))/1000,AB53*INDEX('Damage costs'!$S$16:$S$43,MATCH($B61,'Damage costs'!$C$16:$C$43,0))/1000),\"\")","v":0},{"$f":"IFERROR(IF(OR($C$67=FALSE,LEFT($B61,3)<>\"NOX\"),AC53*INDEX('Damage costs'!$O$16:$O$43,MATCH($B61,'Damage costs'!$C$16:$C$43,0))/1000,AC53*INDEX('Damage costs'!$S$16:$S$43,MATCH($B61,'Damage costs'!$C$16:$C$43,0))/1000),\"\")","v":0},{"$f":"IFERROR(IF(OR($C$67=FALSE,LEFT($B61,3)<>\"NOX\"),AD53*INDEX('Damage costs'!$O$16:$O$43,MATCH($B61,'Damage costs'!$C$16:$C$43,0))/1000,AD53*INDEX('Damage costs'!$S$16:$S$43,MATCH($B61,'Damage costs'!$C$16:$C$43,0))/1000),\"\")","v":0},{"$f":"IFERROR(IF(OR($C$67=FALSE,LEFT($B61,3)<>\"NOX\"),AE53*INDEX('Damage costs'!$O$16:$O$43,MATCH($B61,'Damage costs'!$C$16:$C$43,0))/1000,AE53*INDEX('Damage costs'!$S$16:$S$43,MATCH($B61,'Damage costs'!$C$16:$C$43,0))/1000),\"\")","v":0},{"$f":"IFERROR(IF(OR($C$67=FALSE,LEFT($B61,3)<>\"NOX\"),AF53*INDEX('Damage costs'!$O$16:$O$43,MATCH($B61,'Damage costs'!$C$16:$C$43,0))/1000,AF53*INDEX('Damage costs'!$S$16:$S$43,MATCH($B61,'Damage costs'!$C$16:$C$43,0))/1000),\"\")","v":0},{"$f":"IFERROR(IF(OR($C$67=FALSE,LEFT($B61,3)<>\"NOX\"),AG53*INDEX('Damage costs'!$O$16:$O$43,MATCH($B61,'Damage costs'!$C$16:$C$43,0))/1000,AG53*INDEX('Damage costs'!$S$16:$S$43,MATCH($B61,'Damage costs'!$C$16:$C$43,0))/1000),\"\")","v":0},{"$f":"IFERROR(IF(OR($C$67=FALSE,LEFT($B61,3)<>\"NOX\"),AH53*INDEX('Damage costs'!$O$16:$O$43,MATCH($B61,'Damage costs'!$C$16:$C$43,0))/1000,AH53*INDEX('Damage costs'!$S$16:$S$43,MATCH($B61,'Damage costs'!$C$16:$C$43,0))/1000),\"\")","v":0},{"$f":"IFERROR(IF(OR($C$67=FALSE,LEFT($B61,3)<>\"NOX\"),AI53*INDEX('Damage costs'!$O$16:$O$43,MATCH($B61,'Damage costs'!$C$16:$C$43,0))/1000,AI53*INDEX('Damage costs'!$S$16:$S$43,MATCH($B61,'Damage costs'!$C$16:$C$43,0))/1000),\"\")","v":0},{"$f":"IFERROR(IF(OR($C$67=FALSE,LEFT($B61,3)<>\"NOX\"),AJ53*INDEX('Damage costs'!$O$16:$O$43,MATCH($B61,'Damage costs'!$C$16:$C$43,0))/1000,AJ53*INDEX('Damage costs'!$S$16:$S$43,MATCH($B61,'Damage costs'!$C$16:$C$43,0))/1000),\"\")","v":0},{"$f":"IFERROR(IF(OR($C$67=FALSE,LEFT($B61,3)<>\"NOX\"),AK53*INDEX('Damage costs'!$O$16:$O$43,MATCH($B61,'Damage costs'!$C$16:$C$43,0))/1000,AK53*INDEX('Damage costs'!$S$16:$S$43,MATCH($B61,'Damage costs'!$C$16:$C$43,0))/1000),\"\")","v":0},{"$f":"IFERROR(IF(OR($C$67=FALSE,LEFT($B61,3)<>\"NOX\"),AL53*INDEX('Damage costs'!$O$16:$O$43,MATCH($B61,'Damage costs'!$C$16:$C$43,0))/1000,AL53*INDEX('Damage costs'!$S$16:$S$43,MATCH($B61,'Damage costs'!$C$16:$C$43,0))/1000),\"\")","v":0},{"$f":"IFERROR(IF(OR($C$67=FALSE,LEFT($B61,3)<>\"NOX\"),AM53*INDEX('Damage costs'!$O$16:$O$43,MATCH($B61,'Damage costs'!$C$16:$C$43,0))/1000,AM53*INDEX('Damage costs'!$S$16:$S$43,MATCH($B61,'Damage costs'!$C$16:$C$43,0))/1000),\"\")","v":0},{"$f":"IFERROR(IF(OR($C$67=FALSE,LEFT($B61,3)<>\"NOX\"),AN53*INDEX('Damage costs'!$O$16:$O$43,MATCH($B61,'Damage costs'!$C$16:$C$43,0))/1000,AN53*INDEX('Damage costs'!$S$16:$S$43,MATCH($B61,'Damage costs'!$C$16:$C$43,0))/1000),\"\")","v":0},{"$f":"IFERROR(IF(OR($C$67=FALSE,LEFT($B61,3)<>\"NOX\"),AO53*INDEX('Damage costs'!$O$16:$O$43,MATCH($B61,'Damage costs'!$C$16:$C$43,0))/1000,AO53*INDEX('Damage costs'!$S$16:$S$43,MATCH($B61,'Damage costs'!$C$16:$C$43,0))/1000),\"\")","v":0},{"$f":"IFERROR(IF(OR($C$67=FALSE,LEFT($B61,3)<>\"NOX\"),AP53*INDEX('Damage costs'!$O$16:$O$43,MATCH($B61,'Damage costs'!$C$16:$C$43,0))/1000,AP53*INDEX('Damage costs'!$S$16:$S$43,MATCH($B61,'Damage costs'!$C$16:$C$43,0))/1000),\"\")","v":0},{"$f":"IFERROR(IF(OR($C$67=FALSE,LEFT($B61,3)<>\"NOX\"),AQ53*INDEX('Damage costs'!$O$16:$O$43,MATCH($B61,'Damage costs'!$C$16:$C$43,0))/1000,AQ53*INDEX('Damage costs'!$S$16:$S$43,MATCH($B61,'Damage costs'!$C$16:$C$43,0))/1000),\"\")","v":0},{"$f":"IFERROR(IF(OR($C$67=FALSE,LEFT($B61,3)<>\"NOX\"),AR53*INDEX('Damage costs'!$O$16:$O$43,MATCH($B61,'Damage costs'!$C$16:$C$43,0))/1000,AR53*INDEX('Damage costs'!$S$16:$S$43,MATCH($B61,'Damage costs'!$C$16:$C$43,0))/1000),\"\")","v":0},{"$f":"IFERROR(IF(OR($C$67=FALSE,LEFT($B61,3)<>\"NOX\"),AS53*INDEX('Damage costs'!$O$16:$O$43,MATCH($B61,'Damage costs'!$C$16:$C$43,0))/1000,AS53*INDEX('Damage costs'!$S$16:$S$43,MATCH($B61,'Damage costs'!$C$16:$C$43,0))/1000),\"\")","v":0},{"$f":"IFERROR(IF(OR($C$67=FALSE,LEFT($B61,3)<>\"NOX\"),AT53*INDEX('Damage costs'!$O$16:$O$43,MATCH($B61,'Damage costs'!$C$16:$C$43,0))/1000,AT53*INDEX('Damage costs'!$S$16:$S$43,MATCH($B61,'Damage costs'!$C$16:$C$43,0))/1000),\"\")","v":0},{"$f":"IFERROR(IF(OR($C$67=FALSE,LEFT($B61,3)<>\"NOX\"),AU53*INDEX('Damage costs'!$O$16:$O$43,MATCH($B61,'Damage costs'!$C$16:$C$43,0))/1000,AU53*INDEX('Damage costs'!$S$16:$S$43,MATCH($B61,'Damage costs'!$C$16:$C$43,0))/1000),\"\")","v":0},{"$f":"IFERROR(IF(OR($C$67=FALSE,LEFT($B61,3)<>\"NOX\"),AV53*INDEX('Damage costs'!$O$16:$O$43,MATCH($B61,'Damage costs'!$C$16:$C$43,0))/1000,AV53*INDEX('Damage costs'!$S$16:$S$43,MATCH($B61,'Damage costs'!$C$16:$C$43,0))/1000),\"\")","v":0},{"$f":"IFERROR(IF(OR($C$67=FALSE,LEFT($B61,3)<>\"NOX\"),AW53*INDEX('Damage costs'!$O$16:$O$43,MATCH($B61,'Damage costs'!$C$16:$C$43,0))/1000,AW53*INDEX('Damage costs'!$S$16:$S$43,MATCH($B61,'Damage costs'!$C$16:$C$43,0))/1000),\"\")","v":0},{"$f":"IFERROR(IF(OR($C$67=FALSE,LEFT($B61,3)<>\"NOX\"),AX53*INDEX('Damage costs'!$O$16:$O$43,MATCH($B61,'Damage costs'!$C$16:$C$43,0))/1000,AX53*INDEX('Damage costs'!$S$16:$S$43,MATCH($B61,'Damage costs'!$C$16:$C$43,0))/1000),\"\")","v":0},{"$f":"IFERROR(IF(OR($C$67=FALSE,LEFT($B61,3)<>\"NOX\"),AY53*INDEX('Damage costs'!$O$16:$O$43,MATCH($B61,'Damage costs'!$C$16:$C$43,0))/1000,AY53*INDEX('Damage costs'!$S$16:$S$43,MATCH($B61,'Damage costs'!$C$16:$C$43,0))/1000),\"\")","v":0},{"$f":"IFERROR(IF(OR($C$67=FALSE,LEFT($B61,3)<>\"NOX\"),AZ53*INDEX('Damage costs'!$O$16:$O$43,MATCH($B61,'Damage costs'!$C$16:$C$43,0))/1000,AZ53*INDEX('Damage costs'!$S$16:$S$43,MATCH($B61,'Damage costs'!$C$16:$C$43,0))/1000),\"\")","v":0},{"$f":"IFERROR(IF(OR($C$67=FALSE,LEFT($B61,3)<>\"NOX\"),BA53*INDEX('Damage costs'!$O$16:$O$43,MATCH($B61,'Damage costs'!$C$16:$C$43,0))/1000,BA53*INDEX('Damage costs'!$S$16:$S$43,MATCH($B61,'Damage costs'!$C$16:$C$43,0))/1000),\"\")","v":0},{"$f":"IFERROR(IF(OR($C$67=FALSE,LEFT($B61,3)<>\"NOX\"),BB53*INDEX('Damage costs'!$O$16:$O$43,MATCH($B61,'Damage costs'!$C$16:$C$43,0))/1000,BB53*INDEX('Damage costs'!$S$16:$S$43,MATCH($B61,'Damage costs'!$C$16:$C$43,0))/1000),\"\")","v":0},{"$f":"IFERROR(IF(OR($C$67=FALSE,LEFT($B61,3)<>\"NOX\"),BC53*INDEX('Damage costs'!$O$16:$O$43,MATCH($B61,'Damage costs'!$C$16:$C$43,0))/1000,BC53*INDEX('Damage costs'!$S$16:$S$43,MATCH($B61,'Damage costs'!$C$16:$C$43,0))/1000),\"\")","v":0},{"$f":"IFERROR(IF(OR($C$67=FALSE,LEFT($B61,3)<>\"NOX\"),BD53*INDEX('Damage costs'!$O$16:$O$43,MATCH($B61,'Damage costs'!$C$16:$C$43,0))/1000,BD53*INDEX('Damage costs'!$S$16:$S$43,MATCH($B61,'Damage costs'!$C$16:$C$43,0))/1000),\"\")","v":0},{"$f":"IFERROR(IF(OR($C$67=FALSE,LEFT($B61,3)<>\"NOX\"),BE53*INDEX('Damage costs'!$O$16:$O$43,MATCH($B61,'Damage costs'!$C$16:$C$43,0))/1000,BE53*INDEX('Damage costs'!$S$16:$S$43,MATCH($B61,'Damage costs'!$C$16:$C$43,0))/1000),\"\")","v":0},{"$f":"IFERROR(IF(OR($C$67=FALSE,LEFT($B61,3)<>\"NOX\"),BF53*INDEX('Damage costs'!$O$16:$O$43,MATCH($B61,'Damage costs'!$C$16:$C$43,0))/1000,BF53*INDEX('Damage costs'!$S$16:$S$43,MATCH($B61,'Damage costs'!$C$16:$C$43,0))/1000),\"\")","v":0},{"$f":"IFERROR(IF(OR($C$67=FALSE,LEFT($B61,3)<>\"NOX\"),BG53*INDEX('Damage costs'!$O$16:$O$43,MATCH($B61,'Damage costs'!$C$16:$C$43,0))/1000,BG53*INDEX('Damage costs'!$S$16:$S$43,MATCH($B61,'Damage costs'!$C$16:$C$43,0))/1000),\"\")","v":0},{"$f":"IFERROR(IF(OR($C$67=FALSE,LEFT($B61,3)<>\"NOX\"),BH53*INDEX('Damage costs'!$O$16:$O$43,MATCH($B61,'Damage costs'!$C$16:$C$43,0))/1000,BH53*INDEX('Damage costs'!$S$16:$S$43,MATCH($B61,'Damage costs'!$C$16:$C$43,0))/1000),\"\")","v":0},{"$f":"IFERROR(IF(OR($C$67=FALSE,LEFT($B61,3)<>\"NOX\"),BI53*INDEX('Damage costs'!$O$16:$O$43,MATCH($B61,'Damage costs'!$C$16:$C$43,0))/1000,BI53*INDEX('Damage costs'!$S$16:$S$43,MATCH($B61,'Damage costs'!$C$16:$C$43,0))/1000),\"\")","v":0},{"$f":"IFERROR(IF(OR($C$67=FALSE,LEFT($B61,3)<>\"NOX\"),BJ53*INDEX('Damage costs'!$O$16:$O$43,MATCH($B61,'Damage costs'!$C$16:$C$43,0))/1000,BJ53*INDEX('Damage costs'!$S$16:$S$43,MATCH($B61,'Damage costs'!$C$16:$C$43,0))/1000),\"\")","v":0},{"$f":"IFERROR(IF(OR($C$67=FALSE,LEFT($B61,3)<>\"NOX\"),BK53*INDEX('Damage costs'!$O$16:$O$43,MATCH($B61,'Damage costs'!$C$16:$C$43,0))/1000,BK53*INDEX('Damage costs'!$S$16:$S$43,MATCH($B61,'Damage costs'!$C$16:$C$43,0))/1000),\"\")","v":0},{"$f":"IFERROR(IF(OR($C$67=FALSE,LEFT($B61,3)<>\"NOX\"),BL53*INDEX('Damage costs'!$O$16:$O$43,MATCH($B61,'Damage costs'!$C$16:$C$43,0))/1000,BL53*INDEX('Damage costs'!$S$16:$S$43,MATCH($B61,'Damage costs'!$C$16:$C$43,0))/1000),\"\")","v":0},{"$f":"IFERROR(IF(OR($C$67=FALSE,LEFT($B61,3)<>\"NOX\"),BM53*INDEX('Damage costs'!$O$16:$O$43,MATCH($B61,'Damage costs'!$C$16:$C$43,0))/1000,BM53*INDEX('Damage costs'!$S$16:$S$43,MATCH($B61,'Damage costs'!$C$16:$C$43,0))/1000),\"\")","v":0},{"$f":"IFERROR(IF(OR($C$67=FALSE,LEFT($B61,3)<>\"NOX\"),BN53*INDEX('Damage costs'!$O$16:$O$43,MATCH($B61,'Damage costs'!$C$16:$C$43,0))/1000,BN53*INDEX('Damage costs'!$S$16:$S$43,MATCH($B61,'Damage costs'!$C$16:$C$43,0))/1000),\"\")","v":0},{"$f":"IFERROR(IF(OR($C$67=FALSE,LEFT($B61,3)<>\"NOX\"),BO53*INDEX('Damage costs'!$O$16:$O$43,MATCH($B61,'Damage costs'!$C$16:$C$43,0))/1000,BO53*INDEX('Damage costs'!$S$16:$S$43,MATCH($B61,'Damage costs'!$C$16:$C$43,0))/1000),\"\")","v":0},{"$f":"IFERROR(IF(OR($C$67=FALSE,LEFT($B61,3)<>\"NOX\"),BP53*INDEX('Damage costs'!$O$16:$O$43,MATCH($B61,'Damage costs'!$C$16:$C$43,0))/1000,BP53*INDEX('Damage costs'!$S$16:$S$43,MATCH($B61,'Damage costs'!$C$16:$C$43,0))/1000),\"\")","v":0},{"$f":"IFERROR(IF(OR($C$67=FALSE,LEFT($B61,3)<>\"NOX\"),BQ53*INDEX('Damage costs'!$O$16:$O$43,MATCH($B61,'Damage costs'!$C$16:$C$43,0))/1000,BQ53*INDEX('Damage costs'!$S$16:$S$43,MATCH($B61,'Damage costs'!$C$16:$C$43,0))/1000),\"\")","v":0},{"$f":"IFERROR(IF(OR($C$67=FALSE,LEFT($B61,3)<>\"NOX\"),BR53*INDEX('Damage costs'!$O$16:$O$43,MATCH($B61,'Damage costs'!$C$16:$C$43,0))/1000,BR53*INDEX('Damage costs'!$S$16:$S$43,MATCH($B61,'Damage costs'!$C$16:$C$43,0))/1000),\"\")","v":0},{"$f":"IFERROR(IF(OR($C$67=FALSE,LEFT($B61,3)<>\"NOX\"),BS53*INDEX('Damage costs'!$O$16:$O$43,MATCH($B61,'Damage costs'!$C$16:$C$43,0))/1000,BS53*INDEX('Damage costs'!$S$16:$S$43,MATCH($B61,'Damage costs'!$C$16:$C$43,0))/1000),\"\")","v":0},{"$f":"IFERROR(IF(OR($C$67=FALSE,LEFT($B61,3)<>\"NOX\"),BT53*INDEX('Damage costs'!$O$16:$O$43,MATCH($B61,'Damage costs'!$C$16:$C$43,0))/1000,BT53*INDEX('Damage costs'!$S$16:$S$43,MATCH($B61,'Damage costs'!$C$16:$C$43,0))/1000),\"\")","v":0},{"$f":"IFERROR(IF(OR($C$67=FALSE,LEFT($B61,3)<>\"NOX\"),BU53*INDEX('Damage costs'!$O$16:$O$43,MATCH($B61,'Damage costs'!$C$16:$C$43,0))/1000,BU53*INDEX('Damage costs'!$S$16:$S$43,MATCH($B61,'Damage costs'!$C$16:$C$43,0))/1000),\"\")","v":0},{"$f":"IFERROR(IF(OR($C$67=FALSE,LEFT($B61,3)<>\"NOX\"),BV53*INDEX('Damage costs'!$O$16:$O$43,MATCH($B61,'Damage costs'!$C$16:$C$43,0))/1000,BV53*INDEX('Damage costs'!$S$16:$S$43,MATCH($B61,'Damage costs'!$C$16:$C$43,0))/1000),\"\")","v":0},{"$f":"IFERROR(IF(OR($C$67=FALSE,LEFT($B61,3)<>\"NOX\"),BW53*INDEX('Damage costs'!$O$16:$O$43,MATCH($B61,'Damage costs'!$C$16:$C$43,0))/1000,BW53*INDEX('Damage costs'!$S$16:$S$43,MATCH($B61,'Damage costs'!$C$16:$C$43,0))/1000),\"\")","v":0},{"$f":"IFERROR(IF(OR($C$67=FALSE,LEFT($B61,3)<>\"NOX\"),BX53*INDEX('Damage costs'!$O$16:$O$43,MATCH($B61,'Damage costs'!$C$16:$C$43,0))/1000,BX53*INDEX('Damage costs'!$S$16:$S$43,MATCH($B61,'Damage costs'!$C$16:$C$43,0))/1000),\"\")","v":0},{"$f":"IFERROR(IF(OR($C$67=FALSE,LEFT($B61,3)<>\"NOX\"),BY53*INDEX('Damage costs'!$O$16:$O$43,MATCH($B61,'Damage costs'!$C$16:$C$43,0))/1000,BY53*INDEX('Damage costs'!$S$16:$S$43,MATCH($B61,'Damage costs'!$C$16:$C$43,0))/1000),\"\")","v":0},{"$f":"IFERROR(IF(OR($C$67=FALSE,LEFT($B61,3)<>\"NOX\"),BZ53*INDEX('Damage costs'!$O$16:$O$43,MATCH($B61,'Damage costs'!$C$16:$C$43,0))/1000,BZ53*INDEX('Damage costs'!$S$16:$S$43,MATCH($B61,'Damage costs'!$C$16:$C$43,0))/1000),\"\")","v":0},{"$f":"IFERROR(IF(OR($C$67=FALSE,LEFT($B61,3)<>\"NOX\"),CA53*INDEX('Damage costs'!$O$16:$O$43,MATCH($B61,'Damage costs'!$C$16:$C$43,0))/1000,CA53*INDEX('Damage costs'!$S$16:$S$43,MATCH($B61,'Damage costs'!$C$16:$C$43,0))/1000),\"\")","v":0},{"$f":"IFERROR(IF(OR($C$67=FALSE,LEFT($B61,3)<>\"NOX\"),CB53*INDEX('Damage costs'!$O$16:$O$43,MATCH($B61,'Damage costs'!$C$16:$C$43,0))/1000,CB53*INDEX('Damage costs'!$S$16:$S$43,MATCH($B61,'Damage costs'!$C$16:$C$43,0))/1000),\"\")","v":0},{"$f":"IFERROR(IF(OR($C$67=FALSE,LEFT($B61,3)<>\"NOX\"),CC53*INDEX('Damage costs'!$O$16:$O$43,MATCH($B61,'Damage costs'!$C$16:$C$43,0))/1000,CC53*INDEX('Damage costs'!$S$16:$S$43,MATCH($B61,'Damage costs'!$C$16:$C$43,0))/1000),\"\")","v":0},{"$f":"IFERROR(IF(OR($C$67=FALSE,LEFT($B61,3)<>\"NOX\"),CD53*INDEX('Damage costs'!$O$16:$O$43,MATCH($B61,'Damage costs'!$C$16:$C$43,0))/1000,CD53*INDEX('Damage costs'!$S$16:$S$43,MATCH($B61,'Damage costs'!$C$16:$C$43,0))/1000),\"\")","v":0},{"$f":"IFERROR(IF(OR($C$67=FALSE,LEFT($B61,3)<>\"NOX\"),CE53*INDEX('Damage costs'!$O$16:$O$43,MATCH($B61,'Damage costs'!$C$16:$C$43,0))/1000,CE53*INDEX('Damage costs'!$S$16:$S$43,MATCH($B61,'Damage costs'!$C$16:$C$43,0))/1000),\"\")","v":0},{"$f":"IFERROR(IF(OR($C$67=FALSE,LEFT($B61,3)<>\"NOX\"),CF53*INDEX('Damage costs'!$O$16:$O$43,MATCH($B61,'Damage costs'!$C$16:$C$43,0))/1000,CF53*INDEX('Damage costs'!$S$16:$S$43,MATCH($B61,'Damage costs'!$C$16:$C$43,0))/1000),\"\")","v":0},{"$f":"IFERROR(IF(OR($C$67=FALSE,LEFT($B61,3)<>\"NOX\"),CG53*INDEX('Damage costs'!$O$16:$O$43,MATCH($B61,'Damage costs'!$C$16:$C$43,0))/1000,CG53*INDEX('Damage costs'!$S$16:$S$43,MATCH($B61,'Damage costs'!$C$16:$C$43,0))/1000),\"\")","v":0},{"$f":"IFERROR(IF(OR($C$67=FALSE,LEFT($B61,3)<>\"NOX\"),CH53*INDEX('Damage costs'!$O$16:$O$43,MATCH($B61,'Damage costs'!$C$16:$C$43,0))/1000,CH53*INDEX('Damage costs'!$S$16:$S$43,MATCH($B61,'Damage costs'!$C$16:$C$43,0))/1000),\"\")","v":0},{"$f":"IFERROR(IF(OR($C$67=FALSE,LEFT($B61,3)<>\"NOX\"),CI53*INDEX('Damage costs'!$O$16:$O$43,MATCH($B61,'Damage costs'!$C$16:$C$43,0))/1000,CI53*INDEX('Damage costs'!$S$16:$S$43,MATCH($B61,'Damage costs'!$C$16:$C$43,0))/1000),\"\")","v":0},{"$f":"IFERROR(IF(OR($C$67=FALSE,LEFT($B61,3)<>\"NOX\"),CJ53*INDEX('Damage costs'!$O$16:$O$43,MATCH($B61,'Damage costs'!$C$16:$C$43,0))/1000,CJ53*INDEX('Damage costs'!$S$16:$S$43,MATCH($B61,'Damage costs'!$C$16:$C$43,0))/1000),\"\")","v":0},{"$f":"IFERROR(IF(OR($C$67=FALSE,LEFT($B61,3)<>\"NOX\"),CK53*INDEX('Damage costs'!$O$16:$O$43,MATCH($B61,'Damage costs'!$C$16:$C$43,0))/1000,CK53*INDEX('Damage costs'!$S$16:$S$43,MATCH($B61,'Damage costs'!$C$16:$C$43,0))/1000),\"\")","v":0},{"$f":"IFERROR(IF(OR($C$67=FALSE,LEFT($B61,3)<>\"NOX\"),CL53*INDEX('Damage costs'!$O$16:$O$43,MATCH($B61,'Damage costs'!$C$16:$C$43,0))/1000,CL53*INDEX('Damage costs'!$S$16:$S$43,MATCH($B61,'Damage costs'!$C$16:$C$43,0))/1000),\"\")","v":0},{"$f":"IFERROR(IF(OR($C$67=FALSE,LEFT($B61,3)<>\"NOX\"),CM53*INDEX('Damage costs'!$O$16:$O$43,MATCH($B61,'Damage costs'!$C$16:$C$43,0))/1000,CM53*INDEX('Damage costs'!$S$16:$S$43,MATCH($B61,'Damage costs'!$C$16:$C$43,0))/1000),\"\")","v":0},{"$f":"IFERROR(IF(OR($C$67=FALSE,LEFT($B61,3)<>\"NOX\"),CN53*INDEX('Damage costs'!$O$16:$O$43,MATCH($B61,'Damage costs'!$C$16:$C$43,0))/1000,CN53*INDEX('Damage costs'!$S$16:$S$43,MATCH($B61,'Damage costs'!$C$16:$C$43,0))/1000),\"\")","v":0},{"$f":"IFERROR(IF(OR($C$67=FALSE,LEFT($B61,3)<>\"NOX\"),CO53*INDEX('Damage costs'!$O$16:$O$43,MATCH($B61,'Damage costs'!$C$16:$C$43,0))/1000,CO53*INDEX('Damage costs'!$S$16:$S$43,MATCH($B61,'Damage costs'!$C$16:$C$43,0))/1000),\"\")","v":0},{"$f":"IFERROR(IF(OR($C$67=FALSE,LEFT($B61,3)<>\"NOX\"),CP53*INDEX('Damage costs'!$O$16:$O$43,MATCH($B61,'Damage costs'!$C$16:$C$43,0))/1000,CP53*INDEX('Damage costs'!$S$16:$S$43,MATCH($B61,'Damage costs'!$C$16:$C$43,0))/1000),\"\")","v":0},{"$f":"IFERROR(IF(OR($C$67=FALSE,LEFT($B61,3)<>\"NOX\"),CQ53*INDEX('Damage costs'!$O$16:$O$43,MATCH($B61,'Damage costs'!$C$16:$C$43,0))/1000,CQ53*INDEX('Damage costs'!$S$16:$S$43,MATCH($B61,'Damage costs'!$C$16:$C$43,0))/1000),\"\")","v":0},{"$f":"IFERROR(IF(OR($C$67=FALSE,LEFT($B61,3)<>\"NOX\"),CR53*INDEX('Damage costs'!$O$16:$O$43,MATCH($B61,'Damage costs'!$C$16:$C$43,0))/1000,CR53*INDEX('Damage costs'!$S$16:$S$43,MATCH($B61,'Damage costs'!$C$16:$C$43,0))/1000),\"\")","v":0},{"$f":"IFERROR(IF(OR($C$67=FALSE,LEFT($B61,3)<>\"NOX\"),CS53*INDEX('Damage costs'!$O$16:$O$43,MATCH($B61,'Damage costs'!$C$16:$C$43,0))/1000,CS53*INDEX('Damage costs'!$S$16:$S$43,MATCH($B61,'Damage costs'!$C$16:$C$43,0))/1000),\"\")","v":0},{"$f":"IFERROR(IF(OR($C$67=FALSE,LEFT($B61,3)<>\"NOX\"),CT53*INDEX('Damage costs'!$O$16:$O$43,MATCH($B61,'Damage costs'!$C$16:$C$43,0))/1000,CT53*INDEX('Damage costs'!$S$16:$S$43,MATCH($B61,'Damage costs'!$C$16:$C$43,0))/1000),\"\")","v":0},{"$f":"IFERROR(IF(OR($C$67=FALSE,LEFT($B61,3)<>\"NOX\"),CU53*INDEX('Damage costs'!$O$16:$O$43,MATCH($B61,'Damage costs'!$C$16:$C$43,0))/1000,CU53*INDEX('Damage costs'!$S$16:$S$43,MATCH($B61,'Damage costs'!$C$16:$C$43,0))/1000),\"\")","v":0},{"$f":"IFERROR(IF(OR($C$67=FALSE,LEFT($B61,3)<>\"NOX\"),CV53*INDEX('Damage costs'!$O$16:$O$43,MATCH($B61,'Damage costs'!$C$16:$C$43,0))/1000,CV53*INDEX('Damage costs'!$S$16:$S$43,MATCH($B61,'Damage costs'!$C$16:$C$43,0))/1000),\"\")","v":0},{"$f":"IFERROR(IF(OR($C$67=FALSE,LEFT($B61,3)<>\"NOX\"),CW53*INDEX('Damage costs'!$O$16:$O$43,MATCH($B61,'Damage costs'!$C$16:$C$43,0))/1000,CW53*INDEX('Damage costs'!$S$16:$S$43,MATCH($B61,'Damage costs'!$C$16:$C$43,0))/1000),\"\")","v":0},{"$f":"IFERROR(IF(OR($C$67=FALSE,LEFT($B61,3)<>\"NOX\"),CX53*INDEX('Damage costs'!$O$16:$O$43,MATCH($B61,'Damage costs'!$C$16:$C$43,0))/1000,CX53*INDEX('Damage costs'!$S$16:$S$43,MATCH($B61,'Damage costs'!$C$16:$C$43,0))/1000),\"\")","v":0},{"$f":"IFERROR(IF(OR($C$67=FALSE,LEFT($B61,3)<>\"NOX\"),CY53*INDEX('Damage costs'!$O$16:$O$43,MATCH($B61,'Damage costs'!$C$16:$C$43,0))/1000,CY53*INDEX('Damage costs'!$S$16:$S$43,MATCH($B61,'Damage costs'!$C$16:$C$43,0))/1000),\"\")","v":0}]
[null,0,"£000's",{"$f":"IFERROR(IF(OR($C$67=FALSE,LEFT($B62,3)<>\"NOX\"),D54*INDEX('Damage costs'!$O$16:$O$43,MATCH($B62,'Damage costs'!$C$16:$C$43,0))/1000,D54*INDEX('Damage costs'!$S$16:$S$43,MATCH($B62,'Damage costs'!$C$16:$C$43,0))/1000),\"\")","v":""},{"$f":"IFERROR(IF(OR($C$67=FALSE,LEFT($B62,3)<>\"NOX\"),E54*INDEX('Damage costs'!$O$16:$O$43,MATCH($B62,'Damage costs'!$C$16:$C$43,0))/1000,E54*INDEX('Damage costs'!$S$16:$S$43,MATCH($B62,'Damage costs'!$C$16:$C$43,0))/1000),\"\")","v":""},{"$f":"IFERROR(IF(OR($C$67=FALSE,LEFT($B62,3)<>\"NOX\"),F54*INDEX('Damage costs'!$O$16:$O$43,MATCH($B62,'Damage costs'!$C$16:$C$43,0))/1000,F54*INDEX('Damage costs'!$S$16:$S$43,MATCH($B62,'Damage costs'!$C$16:$C$43,0))/1000),\"\")","v":""},{"$f":"IFERROR(IF(OR($C$67=FALSE,LEFT($B62,3)<>\"NOX\"),G54*INDEX('Damage costs'!$O$16:$O$43,MATCH($B62,'Damage costs'!$C$16:$C$43,0))/1000,G54*INDEX('Damage costs'!$S$16:$S$43,MATCH($B62,'Damage costs'!$C$16:$C$43,0))/1000),\"\")","v":""},{"$f":"IFERROR(IF(OR($C$67=FALSE,LEFT($B62,3)<>\"NOX\"),H54*INDEX('Damage costs'!$O$16:$O$43,MATCH($B62,'Damage costs'!$C$16:$C$43,0))/1000,H54*INDEX('Damage costs'!$S$16:$S$43,MATCH($B62,'Damage costs'!$C$16:$C$43,0))/1000),\"\")","v":""},{"$f":"IFERROR(IF(OR($C$67=FALSE,LEFT($B62,3)<>\"NOX\"),I54*INDEX('Damage costs'!$O$16:$O$43,MATCH($B62,'Damage costs'!$C$16:$C$43,0))/1000,I54*INDEX('Damage costs'!$S$16:$S$43,MATCH($B62,'Damage costs'!$C$16:$C$43,0))/1000),\"\")","v":""},{"$f":"IFERROR(IF(OR($C$67=FALSE,LEFT($B62,3)<>\"NOX\"),J54*INDEX('Damage costs'!$O$16:$O$43,MATCH($B62,'Damage costs'!$C$16:$C$43,0))/1000,J54*INDEX('Damage costs'!$S$16:$S$43,MATCH($B62,'Damage costs'!$C$16:$C$43,0))/1000),\"\")","v":""},{"$f":"IFERROR(IF(OR($C$67=FALSE,LEFT($B62,3)<>\"NOX\"),K54*INDEX('Damage costs'!$O$16:$O$43,MATCH($B62,'Damage costs'!$C$16:$C$43,0))/1000,K54*INDEX('Damage costs'!$S$16:$S$43,MATCH($B62,'Damage costs'!$C$16:$C$43,0))/1000),\"\")","v":""},{"$f":"IFERROR(IF(OR($C$67=FALSE,LEFT($B62,3)<>\"NOX\"),L54*INDEX('Damage costs'!$O$16:$O$43,MATCH($B62,'Damage costs'!$C$16:$C$43,0))/1000,L54*INDEX('Damage costs'!$S$16:$S$43,MATCH($B62,'Damage costs'!$C$16:$C$43,0))/1000),\"\")","v":""},{"$f":"IFERROR(IF(OR($C$67=FALSE,LEFT($B62,3)<>\"NOX\"),M54*INDEX('Damage costs'!$O$16:$O$43,MATCH($B62,'Damage costs'!$C$16:$C$43,0))/1000,M54*INDEX('Damage costs'!$S$16:$S$43,MATCH($B62,'Damage costs'!$C$16:$C$43,0))/1000),\"\")","v":""},{"$f":"IFERROR(IF(OR($C$67=FALSE,LEFT($B62,3)<>\"NOX\"),N54*INDEX('Damage costs'!$O$16:$O$43,MATCH($B62,'Damage costs'!$C$16:$C$43,0))/1000,N54*INDEX('Damage costs'!$S$16:$S$43,MATCH($B62,'Damage costs'!$C$16:$C$43,0))/1000),\"\")","v":""},{"$f":"IFERROR(IF(OR($C$67=FALSE,LEFT($B62,3)<>\"NOX\"),O54*INDEX('Damage costs'!$O$16:$O$43,MATCH($B62,'Damage costs'!$C$16:$C$43,0))/1000,O54*INDEX('Damage costs'!$S$16:$S$43,MATCH($B62,'Damage costs'!$C$16:$C$43,0))/1000),\"\")","v":""},{"$f":"IFERROR(IF(OR($C$67=FALSE,LEFT($B62,3)<>\"NOX\"),P54*INDEX('Damage costs'!$O$16:$O$43,MATCH($B62,'Damage costs'!$C$16:$C$43,0))/1000,P54*INDEX('Damage costs'!$S$16:$S$43,MATCH($B62,'Damage costs'!$C$16:$C$43,0))/1000),\"\")","v":""},{"$f":"IFERROR(IF(OR($C$67=FALSE,LEFT($B62,3)<>\"NOX\"),Q54*INDEX('Damage costs'!$O$16:$O$43,MATCH($B62,'Damage costs'!$C$16:$C$43,0))/1000,Q54*INDEX('Damage costs'!$S$16:$S$43,MATCH($B62,'Damage costs'!$C$16:$C$43,0))/1000),\"\")","v":""},{"$f":"IFERROR(IF(OR($C$67=FALSE,LEFT($B62,3)<>\"NOX\"),R54*INDEX('Damage costs'!$O$16:$O$43,MATCH($B62,'Damage costs'!$C$16:$C$43,0))/1000,R54*INDEX('Damage costs'!$S$16:$S$43,MATCH($B62,'Damage costs'!$C$16:$C$43,0))/1000),\"\")","v":""},{"$f":"IFERROR(IF(OR($C$67=FALSE,LEFT($B62,3)<>\"NOX\"),S54*INDEX('Damage costs'!$O$16:$O$43,MATCH($B62,'Damage costs'!$C$16:$C$43,0))/1000,S54*INDEX('Damage costs'!$S$16:$S$43,MATCH($B62,'Damage costs'!$C$16:$C$43,0))/1000),\"\")","v":""},{"$f":"IFERROR(IF(OR($C$67=FALSE,LEFT($B62,3)<>\"NOX\"),T54*INDEX('Damage costs'!$O$16:$O$43,MATCH($B62,'Damage costs'!$C$16:$C$43,0))/1000,T54*INDEX('Damage costs'!$S$16:$S$43,MATCH($B62,'Damage costs'!$C$16:$C$43,0))/1000),\"\")","v":""},{"$f":"IFERROR(IF(OR($C$67=FALSE,LEFT($B62,3)<>\"NOX\"),U54*INDEX('Damage costs'!$O$16:$O$43,MATCH($B62,'Damage costs'!$C$16:$C$43,0))/1000,U54*INDEX('Damage costs'!$S$16:$S$43,MATCH($B62,'Damage costs'!$C$16:$C$43,0))/1000),\"\")","v":""},{"$f":"IFERROR(IF(OR($C$67=FALSE,LEFT($B62,3)<>\"NOX\"),V54*INDEX('Damage costs'!$O$16:$O$43,MATCH($B62,'Damage costs'!$C$16:$C$43,0))/1000,V54*INDEX('Damage costs'!$S$16:$S$43,MATCH($B62,'Damage costs'!$C$16:$C$43,0))/1000),\"\")","v":""},{"$f":"IFERROR(IF(OR($C$67=FALSE,LEFT($B62,3)<>\"NOX\"),W54*INDEX('Damage costs'!$O$16:$O$43,MATCH($B62,'Damage costs'!$C$16:$C$43,0))/1000,W54*INDEX('Damage costs'!$S$16:$S$43,MATCH($B62,'Damage costs'!$C$16:$C$43,0))/1000),\"\")","v":""},{"$f":"IFERROR(IF(OR($C$67=FALSE,LEFT($B62,3)<>\"NOX\"),X54*INDEX('Damage costs'!$O$16:$O$43,MATCH($B62,'Damage costs'!$C$16:$C$43,0))/1000,X54*INDEX('Damage costs'!$S$16:$S$43,MATCH($B62,'Damage costs'!$C$16:$C$43,0))/1000),\"\")","v":""},{"$f":"IFERROR(IF(OR($C$67=FALSE,LEFT($B62,3)<>\"NOX\"),Y54*INDEX('Damage costs'!$O$16:$O$43,MATCH($B62,'Damage costs'!$C$16:$C$43,0))/1000,Y54*INDEX('Damage costs'!$S$16:$S$43,MATCH($B62,'Damage costs'!$C$16:$C$43,0))/1000),\"\")","v":""},{"$f":"IFERROR(IF(OR($C$67=FALSE,LEFT($B62,3)<>\"NOX\"),Z54*INDEX('Damage costs'!$O$16:$O$43,MATCH($B62,'Damage costs'!$C$16:$C$43,0))/1000,Z54*INDEX('Damage costs'!$S$16:$S$43,MATCH($B62,'Damage costs'!$C$16:$C$43,0))/1000),\"\")","v":""},{"$f":"IFERROR(IF(OR($C$67=FALSE,LEFT($B62,3)<>\"NOX\"),AA54*INDEX('Damage costs'!$O$16:$O$43,MATCH($B62,'Damage costs'!$C$16:$C$43,0))/1000,AA54*INDEX('Damage costs'!$S$16:$S$43,MATCH($B62,'Damage costs'!$C$16:$C$43,0))/1000),\"\")","v":""},{"$f":"IFERROR(IF(OR($C$67=FALSE,LEFT($B62,3)<>\"NOX\"),AB54*INDEX('Damage costs'!$O$16:$O$43,MATCH($B62,'Damage costs'!$C$16:$C$43,0))/1000,AB54*INDEX('Damage costs'!$S$16:$S$43,MATCH($B62,'Damage costs'!$C$16:$C$43,0))/1000),\"\")","v":""},{"$f":"IFERROR(IF(OR($C$67=FALSE,LEFT($B62,3)<>\"NOX\"),AC54*INDEX('Damage costs'!$O$16:$O$43,MATCH($B62,'Damage costs'!$C$16:$C$43,0))/1000,AC54*INDEX('Damage costs'!$S$16:$S$43,MATCH($B62,'Damage costs'!$C$16:$C$43,0))/1000),\"\")","v":""},{"$f":"IFERROR(IF(OR($C$67=FALSE,LEFT($B62,3)<>\"NOX\"),AD54*INDEX('Damage costs'!$O$16:$O$43,MATCH($B62,'Damage costs'!$C$16:$C$43,0))/1000,AD54*INDEX('Damage costs'!$S$16:$S$43,MATCH($B62,'Damage costs'!$C$16:$C$43,0))/1000),\"\")","v":""},{"$f":"IFERROR(IF(OR($C$67=FALSE,LEFT($B62,3)<>\"NOX\"),AE54*INDEX('Damage costs'!$O$16:$O$43,MATCH($B62,'Damage costs'!$C$16:$C$43,0))/1000,AE54*INDEX('Damage costs'!$S$16:$S$43,MATCH($B62,'Damage costs'!$C$16:$C$43,0))/1000),\"\")","v":""},{"$f":"IFERROR(IF(OR($C$67=FALSE,LEFT($B62,3)<>\"NOX\"),AF54*INDEX('Damage costs'!$O$16:$O$43,MATCH($B62,'Damage costs'!$C$16:$C$43,0))/1000,AF54*INDEX('Damage costs'!$S$16:$S$43,MATCH($B62,'Damage costs'!$C$16:$C$43,0))/1000),\"\")","v":""},{"$f":"IFERROR(IF(OR($C$67=FALSE,LEFT($B62,3)<>\"NOX\"),AG54*INDEX('Damage costs'!$O$16:$O$43,MATCH($B62,'Damage costs'!$C$16:$C$43,0))/1000,AG54*INDEX('Damage costs'!$S$16:$S$43,MATCH($B62,'Damage costs'!$C$16:$C$43,0))/1000),\"\")","v":""},{"$f":"IFERROR(IF(OR($C$67=FALSE,LEFT($B62,3)<>\"NOX\"),AH54*INDEX('Damage costs'!$O$16:$O$43,MATCH($B62,'Damage costs'!$C$16:$C$43,0))/1000,AH54*INDEX('Damage costs'!$S$16:$S$43,MATCH($B62,'Damage costs'!$C$16:$C$43,0))/1000),\"\")","v":""},{"$f":"IFERROR(IF(OR($C$67=FALSE,LEFT($B62,3)<>\"NOX\"),AI54*INDEX('Damage costs'!$O$16:$O$43,MATCH($B62,'Damage costs'!$C$16:$C$43,0))/1000,AI54*INDEX('Damage costs'!$S$16:$S$43,MATCH($B62,'Damage costs'!$C$16:$C$43,0))/1000),\"\")","v":""},{"$f":"IFERROR(IF(OR($C$67=FALSE,LEFT($B62,3)<>\"NOX\"),AJ54*INDEX('Damage costs'!$O$16:$O$43,MATCH($B62,'Damage costs'!$C$16:$C$43,0))/1000,AJ54*INDEX('Damage costs'!$S$16:$S$43,MATCH($B62,'Damage costs'!$C$16:$C$43,0))/1000),\"\")","v":""},{"$f":"IFERROR(IF(OR($C$67=FALSE,LEFT($B62,3)<>\"NOX\"),AK54*INDEX('Damage costs'!$O$16:$O$43,MATCH($B62,'Damage costs'!$C$16:$C$43,0))/1000,AK54*INDEX('Damage costs'!$S$16:$S$43,MATCH($B62,'Damage costs'!$C$16:$C$43,0))/1000),\"\")","v":""},{"$f":"IFERROR(IF(OR($C$67=FALSE,LEFT($B62,3)<>\"NOX\"),AL54*INDEX('Damage costs'!$O$16:$O$43,MATCH($B62,'Damage costs'!$C$16:$C$43,0))/1000,AL54*INDEX('Damage costs'!$S$16:$S$43,MATCH($B62,'Damage costs'!$C$16:$C$43,0))/1000),\"\")","v":""},{"$f":"IFERROR(IF(OR($C$67=FALSE,LEFT($B62,3)<>\"NOX\"),AM54*INDEX('Damage costs'!$O$16:$O$43,MATCH($B62,'Damage costs'!$C$16:$C$43,0))/1000,AM54*INDEX('Damage costs'!$S$16:$S$43,MATCH($B62,'Damage costs'!$C$16:$C$43,0))/1000),\"\")","v":""},{"$f":"IFERROR(IF(OR($C$67=FALSE,LEFT($B62,3)<>\"NOX\"),AN54*INDEX('Damage costs'!$O$16:$O$43,MATCH($B62,'Damage costs'!$C$16:$C$43,0))/1000,AN54*INDEX('Damage costs'!$S$16:$S$43,MATCH($B62,'Damage costs'!$C$16:$C$43,0))/1000),\"\")","v":""},{"$f":"IFERROR(IF(OR($C$67=FALSE,LEFT($B62,3)<>\"NOX\"),AO54*INDEX('Damage costs'!$O$16:$O$43,MATCH($B62,'Damage costs'!$C$16:$C$43,0))/1000,AO54*INDEX('Damage costs'!$S$16:$S$43,MATCH($B62,'Damage costs'!$C$16:$C$43,0))/1000),\"\")","v":""},{"$f":"IFERROR(IF(OR($C$67=FALSE,LEFT($B62,3)<>\"NOX\"),AP54*INDEX('Damage costs'!$O$16:$O$43,MATCH($B62,'Damage costs'!$C$16:$C$43,0))/1000,AP54*INDEX('Damage costs'!$S$16:$S$43,MATCH($B62,'Damage costs'!$C$16:$C$43,0))/1000),\"\")","v":""},{"$f":"IFERROR(IF(OR($C$67=FALSE,LEFT($B62,3)<>\"NOX\"),AQ54*INDEX('Damage costs'!$O$16:$O$43,MATCH($B62,'Damage costs'!$C$16:$C$43,0))/1000,AQ54*INDEX('Damage costs'!$S$16:$S$43,MATCH($B62,'Damage costs'!$C$16:$C$43,0))/1000),\"\")","v":""},{"$f":"IFERROR(IF(OR($C$67=FALSE,LEFT($B62,3)<>\"NOX\"),AR54*INDEX('Damage costs'!$O$16:$O$43,MATCH($B62,'Damage costs'!$C$16:$C$43,0))/1000,AR54*INDEX('Damage costs'!$S$16:$S$43,MATCH($B62,'Damage costs'!$C$16:$C$43,0))/1000),\"\")","v":""},{"$f":"IFERROR(IF(OR($C$67=FALSE,LEFT($B62,3)<>\"NOX\"),AS54*INDEX('Damage costs'!$O$16:$O$43,MATCH($B62,'Damage costs'!$C$16:$C$43,0))/1000,AS54*INDEX('Damage costs'!$S$16:$S$43,MATCH($B62,'Damage costs'!$C$16:$C$43,0))/1000),\"\")","v":""},{"$f":"IFERROR(IF(OR($C$67=FALSE,LEFT($B62,3)<>\"NOX\"),AT54*INDEX('Damage costs'!$O$16:$O$43,MATCH($B62,'Damage costs'!$C$16:$C$43,0))/1000,AT54*INDEX('Damage costs'!$S$16:$S$43,MATCH($B62,'Damage costs'!$C$16:$C$43,0))/1000),\"\")","v":""},{"$f":"IFERROR(IF(OR($C$67=FALSE,LEFT($B62,3)<>\"NOX\"),AU54*INDEX('Damage costs'!$O$16:$O$43,MATCH($B62,'Damage costs'!$C$16:$C$43,0))/1000,AU54*INDEX('Damage costs'!$S$16:$S$43,MATCH($B62,'Damage costs'!$C$16:$C$43,0))/1000),\"\")","v":""},{"$f":"IFERROR(IF(OR($C$67=FALSE,LEFT($B62,3)<>\"NOX\"),AV54*INDEX('Damage costs'!$O$16:$O$43,MATCH($B62,'Damage costs'!$C$16:$C$43,0))/1000,AV54*INDEX('Damage costs'!$S$16:$S$43,MATCH($B62,'Damage costs'!$C$16:$C$43,0))/1000),\"\")","v":""},{"$f":"IFERROR(IF(OR($C$67=FALSE,LEFT($B62,3)<>\"NOX\"),AW54*INDEX('Damage costs'!$O$16:$O$43,MATCH($B62,'Damage costs'!$C$16:$C$43,0))/1000,AW54*INDEX('Damage costs'!$S$16:$S$43,MATCH($B62,'Damage costs'!$C$16:$C$43,0))/1000),\"\")","v":""},{"$f":"IFERROR(IF(OR($C$67=FALSE,LEFT($B62,3)<>\"NOX\"),AX54*INDEX('Damage costs'!$O$16:$O$43,MATCH($B62,'Damage costs'!$C$16:$C$43,0))/1000,AX54*INDEX('Damage costs'!$S$16:$S$43,MATCH($B62,'Damage costs'!$C$16:$C$43,0))/1000),\"\")","v":""},{"$f":"IFERROR(IF(OR($C$67=FALSE,LEFT($B62,3)<>\"NOX\"),AY54*INDEX('Damage costs'!$O$16:$O$43,MATCH($B62,'Damage costs'!$C$16:$C$43,0))/1000,AY54*INDEX('Damage costs'!$S$16:$S$43,MATCH($B62,'Damage costs'!$C$16:$C$43,0))/1000),\"\")","v":""},{"$f":"IFERROR(IF(OR($C$67=FALSE,LEFT($B62,3)<>\"NOX\"),AZ54*INDEX('Damage costs'!$O$16:$O$43,MATCH($B62,'Damage costs'!$C$16:$C$43,0))/1000,AZ54*INDEX('Damage costs'!$S$16:$S$43,MATCH($B62,'Damage costs'!$C$16:$C$43,0))/1000),\"\")","v":""},{"$f":"IFERROR(IF(OR($C$67=FALSE,LEFT($B62,3)<>\"NOX\"),BA54*INDEX('Damage costs'!$O$16:$O$43,MATCH($B62,'Damage costs'!$C$16:$C$43,0))/1000,BA54*INDEX('Damage costs'!$S$16:$S$43,MATCH($B62,'Damage costs'!$C$16:$C$43,0))/1000),\"\")","v":""},{"$f":"IFERROR(IF(OR($C$67=FALSE,LEFT($B62,3)<>\"NOX\"),BB54*INDEX('Damage costs'!$O$16:$O$43,MATCH($B62,'Damage costs'!$C$16:$C$43,0))/1000,BB54*INDEX('Damage costs'!$S$16:$S$43,MATCH($B62,'Damage costs'!$C$16:$C$43,0))/1000),\"\")","v":""},{"$f":"IFERROR(IF(OR($C$67=FALSE,LEFT($B62,3)<>\"NOX\"),BC54*INDEX('Damage costs'!$O$16:$O$43,MATCH($B62,'Damage costs'!$C$16:$C$43,0))/1000,BC54*INDEX('Damage costs'!$S$16:$S$43,MATCH($B62,'Damage costs'!$C$16:$C$43,0))/1000),\"\")","v":""},{"$f":"IFERROR(IF(OR($C$67=FALSE,LEFT($B62,3)<>\"NOX\"),BD54*INDEX('Damage costs'!$O$16:$O$43,MATCH($B62,'Damage costs'!$C$16:$C$43,0))/1000,BD54*INDEX('Damage costs'!$S$16:$S$43,MATCH($B62,'Damage costs'!$C$16:$C$43,0))/1000),\"\")","v":""},{"$f":"IFERROR(IF(OR($C$67=FALSE,LEFT($B62,3)<>\"NOX\"),BE54*INDEX('Damage costs'!$O$16:$O$43,MATCH($B62,'Damage costs'!$C$16:$C$43,0))/1000,BE54*INDEX('Damage costs'!$S$16:$S$43,MATCH($B62,'Damage costs'!$C$16:$C$43,0))/1000),\"\")","v":""},{"$f":"IFERROR(IF(OR($C$67=FALSE,LEFT($B62,3)<>\"NOX\"),BF54*INDEX('Damage costs'!$O$16:$O$43,MATCH($B62,'Damage costs'!$C$16:$C$43,0))/1000,BF54*INDEX('Damage costs'!$S$16:$S$43,MATCH($B62,'Damage costs'!$C$16:$C$43,0))/1000),\"\")","v":""},{"$f":"IFERROR(IF(OR($C$67=FALSE,LEFT($B62,3)<>\"NOX\"),BG54*INDEX('Damage costs'!$O$16:$O$43,MATCH($B62,'Damage costs'!$C$16:$C$43,0))/1000,BG54*INDEX('Damage costs'!$S$16:$S$43,MATCH($B62,'Damage costs'!$C$16:$C$43,0))/1000),\"\")","v":""},{"$f":"IFERROR(IF(OR($C$67=FALSE,LEFT($B62,3)<>\"NOX\"),BH54*INDEX('Damage costs'!$O$16:$O$43,MATCH($B62,'Damage costs'!$C$16:$C$43,0))/1000,BH54*INDEX('Damage costs'!$S$16:$S$43,MATCH($B62,'Damage costs'!$C$16:$C$43,0))/1000),\"\")","v":""},{"$f":"IFERROR(IF(OR($C$67=FALSE,LEFT($B62,3)<>\"NOX\"),BI54*INDEX('Damage costs'!$O$16:$O$43,MATCH($B62,'Damage costs'!$C$16:$C$43,0))/1000,BI54*INDEX('Damage costs'!$S$16:$S$43,MATCH($B62,'Damage costs'!$C$16:$C$43,0))/1000),\"\")","v":""},{"$f":"IFERROR(IF(OR($C$67=FALSE,LEFT($B62,3)<>\"NOX\"),BJ54*INDEX('Damage costs'!$O$16:$O$43,MATCH($B62,'Damage costs'!$C$16:$C$43,0))/1000,BJ54*INDEX('Damage costs'!$S$16:$S$43,MATCH($B62,'Damage costs'!$C$16:$C$43,0))/1000),\"\")","v":""},{"$f":"IFERROR(IF(OR($C$67=FALSE,LEFT($B62,3)<>\"NOX\"),BK54*INDEX('Damage costs'!$O$16:$O$43,MATCH($B62,'Damage costs'!$C$16:$C$43,0))/1000,BK54*INDEX('Damage costs'!$S$16:$S$43,MATCH($B62,'Damage costs'!$C$16:$C$43,0))/1000),\"\")","v":""},{"$f":"IFERROR(IF(OR($C$67=FALSE,LEFT($B62,3)<>\"NOX\"),BL54*INDEX('Damage costs'!$O$16:$O$43,MATCH($B62,'Damage costs'!$C$16:$C$43,0))/1000,BL54*INDEX('Damage costs'!$S$16:$S$43,MATCH($B62,'Damage costs'!$C$16:$C$43,0))/1000),\"\")","v":""},{"$f":"IFERROR(IF(OR($C$67=FALSE,LEFT($B62,3)<>\"NOX\"),BM54*INDEX('Damage costs'!$O$16:$O$43,MATCH($B62,'Damage costs'!$C$16:$C$43,0))/1000,BM54*INDEX('Damage costs'!$S$16:$S$43,MATCH($B62,'Damage costs'!$C$16:$C$43,0))/1000),\"\")","v":""},{"$f":"IFERROR(IF(OR($C$67=FALSE,LEFT($B62,3)<>\"NOX\"),BN54*INDEX('Damage costs'!$O$16:$O$43,MATCH($B62,'Damage costs'!$C$16:$C$43,0))/1000,BN54*INDEX('Damage costs'!$S$16:$S$43,MATCH($B62,'Damage costs'!$C$16:$C$43,0))/1000),\"\")","v":""},{"$f":"IFERROR(IF(OR($C$67=FALSE,LEFT($B62,3)<>\"NOX\"),BO54*INDEX('Damage costs'!$O$16:$O$43,MATCH($B62,'Damage costs'!$C$16:$C$43,0))/1000,BO54*INDEX('Damage costs'!$S$16:$S$43,MATCH($B62,'Damage costs'!$C$16:$C$43,0))/1000),\"\")","v":""},{"$f":"IFERROR(IF(OR($C$67=FALSE,LEFT($B62,3)<>\"NOX\"),BP54*INDEX('Damage costs'!$O$16:$O$43,MATCH($B62,'Damage costs'!$C$16:$C$43,0))/1000,BP54*INDEX('Damage costs'!$S$16:$S$43,MATCH($B62,'Damage costs'!$C$16:$C$43,0))/1000),\"\")","v":""},{"$f":"IFERROR(IF(OR($C$67=FALSE,LEFT($B62,3)<>\"NOX\"),BQ54*INDEX('Damage costs'!$O$16:$O$43,MATCH($B62,'Damage costs'!$C$16:$C$43,0))/1000,BQ54*INDEX('Damage costs'!$S$16:$S$43,MATCH($B62,'Damage costs'!$C$16:$C$43,0))/1000),\"\")","v":""},{"$f":"IFERROR(IF(OR($C$67=FALSE,LEFT($B62,3)<>\"NOX\"),BR54*INDEX('Damage costs'!$O$16:$O$43,MATCH($B62,'Damage costs'!$C$16:$C$43,0))/1000,BR54*INDEX('Damage costs'!$S$16:$S$43,MATCH($B62,'Damage costs'!$C$16:$C$43,0))/1000),\"\")","v":""},{"$f":"IFERROR(IF(OR($C$67=FALSE,LEFT($B62,3)<>\"NOX\"),BS54*INDEX('Damage costs'!$O$16:$O$43,MATCH($B62,'Damage costs'!$C$16:$C$43,0))/1000,BS54*INDEX('Damage costs'!$S$16:$S$43,MATCH($B62,'Damage costs'!$C$16:$C$43,0))/1000),\"\")","v":""},{"$f":"IFERROR(IF(OR($C$67=FALSE,LEFT($B62,3)<>\"NOX\"),BT54*INDEX('Damage costs'!$O$16:$O$43,MATCH($B62,'Damage costs'!$C$16:$C$43,0))/1000,BT54*INDEX('Damage costs'!$S$16:$S$43,MATCH($B62,'Damage costs'!$C$16:$C$43,0))/1000),\"\")","v":""},{"$f":"IFERROR(IF(OR($C$67=FALSE,LEFT($B62,3)<>\"NOX\"),BU54*INDEX('Damage costs'!$O$16:$O$43,MATCH($B62,'Damage costs'!$C$16:$C$43,0))/1000,BU54*INDEX('Damage costs'!$S$16:$S$43,MATCH($B62,'Damage costs'!$C$16:$C$43,0))/1000),\"\")","v":""},{"$f":"IFERROR(IF(OR($C$67=FALSE,LEFT($B62,3)<>\"NOX\"),BV54*INDEX('Damage costs'!$O$16:$O$43,MATCH($B62,'Damage costs'!$C$16:$C$43,0))/1000,BV54*INDEX('Damage costs'!$S$16:$S$43,MATCH($B62,'Damage costs'!$C$16:$C$43,0))/1000),\"\")","v":""},{"$f":"IFERROR(IF(OR($C$67=FALSE,LEFT($B62,3)<>\"NOX\"),BW54*INDEX('Damage costs'!$O$16:$O$43,MATCH($B62,'Damage costs'!$C$16:$C$43,0))/1000,BW54*INDEX('Damage costs'!$S$16:$S$43,MATCH($B62,'Damage costs'!$C$16:$C$43,0))/1000),\"\")","v":""},{"$f":"IFERROR(IF(OR($C$67=FALSE,LEFT($B62,3)<>\"NOX\"),BX54*INDEX('Damage costs'!$O$16:$O$43,MATCH($B62,'Damage costs'!$C$16:$C$43,0))/1000,BX54*INDEX('Damage costs'!$S$16:$S$43,MATCH($B62,'Damage costs'!$C$16:$C$43,0))/1000),\"\")","v":""},{"$f":"IFERROR(IF(OR($C$67=FALSE,LEFT($B62,3)<>\"NOX\"),BY54*INDEX('Damage costs'!$O$16:$O$43,MATCH($B62,'Damage costs'!$C$16:$C$43,0))/1000,BY54*INDEX('Damage costs'!$S$16:$S$43,MATCH($B62,'Damage costs'!$C$16:$C$43,0))/1000),\"\")","v":""},{"$f":"IFERROR(IF(OR($C$67=FALSE,LEFT($B62,3)<>\"NOX\"),BZ54*INDEX('Damage costs'!$O$16:$O$43,MATCH($B62,'Damage costs'!$C$16:$C$43,0))/1000,BZ54*INDEX('Damage costs'!$S$16:$S$43,MATCH($B62,'Damage costs'!$C$16:$C$43,0))/1000),\"\")","v":""},{"$f":"IFERROR(IF(OR($C$67=FALSE,LEFT($B62,3)<>\"NOX\"),CA54*INDEX('Damage costs'!$O$16:$O$43,MATCH($B62,'Damage costs'!$C$16:$C$43,0))/1000,CA54*INDEX('Damage costs'!$S$16:$S$43,MATCH($B62,'Damage costs'!$C$16:$C$43,0))/1000),\"\")","v":""},{"$f":"IFERROR(IF(OR($C$67=FALSE,LEFT($B62,3)<>\"NOX\"),CB54*INDEX('Damage costs'!$O$16:$O$43,MATCH($B62,'Damage costs'!$C$16:$C$43,0))/1000,CB54*INDEX('Damage costs'!$S$16:$S$43,MATCH($B62,'Damage costs'!$C$16:$C$43,0))/1000),\"\")","v":""},{"$f":"IFERROR(IF(OR($C$67=FALSE,LEFT($B62,3)<>\"NOX\"),CC54*INDEX('Damage costs'!$O$16:$O$43,MATCH($B62,'Damage costs'!$C$16:$C$43,0))/1000,CC54*INDEX('Damage costs'!$S$16:$S$43,MATCH($B62,'Damage costs'!$C$16:$C$43,0))/1000),\"\")","v":""},{"$f":"IFERROR(IF(OR($C$67=FALSE,LEFT($B62,3)<>\"NOX\"),CD54*INDEX('Damage costs'!$O$16:$O$43,MATCH($B62,'Damage costs'!$C$16:$C$43,0))/1000,CD54*INDEX('Damage costs'!$S$16:$S$43,MATCH($B62,'Damage costs'!$C$16:$C$43,0))/1000),\"\")","v":""},{"$f":"IFERROR(IF(OR($C$67=FALSE,LEFT($B62,3)<>\"NOX\"),CE54*INDEX('Damage costs'!$O$16:$O$43,MATCH($B62,'Damage costs'!$C$16:$C$43,0))/1000,CE54*INDEX('Damage costs'!$S$16:$S$43,MATCH($B62,'Damage costs'!$C$16:$C$43,0))/1000),\"\")","v":""},{"$f":"IFERROR(IF(OR($C$67=FALSE,LEFT($B62,3)<>\"NOX\"),CF54*INDEX('Damage costs'!$O$16:$O$43,MATCH($B62,'Damage costs'!$C$16:$C$43,0))/1000,CF54*INDEX('Damage costs'!$S$16:$S$43,MATCH($B62,'Damage costs'!$C$16:$C$43,0))/1000),\"\")","v":""},{"$f":"IFERROR(IF(OR($C$67=FALSE,LEFT($B62,3)<>\"NOX\"),CG54*INDEX('Damage costs'!$O$16:$O$43,MATCH($B62,'Damage costs'!$C$16:$C$43,0))/1000,CG54*INDEX('Damage costs'!$S$16:$S$43,MATCH($B62,'Damage costs'!$C$16:$C$43,0))/1000),\"\")","v":""},{"$f":"IFERROR(IF(OR($C$67=FALSE,LEFT($B62,3)<>\"NOX\"),CH54*INDEX('Damage costs'!$O$16:$O$43,MATCH($B62,'Damage costs'!$C$16:$C$43,0))/1000,CH54*INDEX('Damage costs'!$S$16:$S$43,MATCH($B62,'Damage costs'!$C$16:$C$43,0))/1000),\"\")","v":""},{"$f":"IFERROR(IF(OR($C$67=FALSE,LEFT($B62,3)<>\"NOX\"),CI54*INDEX('Damage costs'!$O$16:$O$43,MATCH($B62,'Damage costs'!$C$16:$C$43,0))/1000,CI54*INDEX('Damage costs'!$S$16:$S$43,MATCH($B62,'Damage costs'!$C$16:$C$43,0))/1000),\"\")","v":""},{"$f":"IFERROR(IF(OR($C$67=FALSE,LEFT($B62,3)<>\"NOX\"),CJ54*INDEX('Damage costs'!$O$16:$O$43,MATCH($B62,'Damage costs'!$C$16:$C$43,0))/1000,CJ54*INDEX('Damage costs'!$S$16:$S$43,MATCH($B62,'Damage costs'!$C$16:$C$43,0))/1000),\"\")","v":""},{"$f":"IFERROR(IF(OR($C$67=FALSE,LEFT($B62,3)<>\"NOX\"),CK54*INDEX('Damage costs'!$O$16:$O$43,MATCH($B62,'Damage costs'!$C$16:$C$43,0))/1000,CK54*INDEX('Damage costs'!$S$16:$S$43,MATCH($B62,'Damage costs'!$C$16:$C$43,0))/1000),\"\")","v":""},{"$f":"IFERROR(IF(OR($C$67=FALSE,LEFT($B62,3)<>\"NOX\"),CL54*INDEX('Damage costs'!$O$16:$O$43,MATCH($B62,'Damage costs'!$C$16:$C$43,0))/1000,CL54*INDEX('Damage costs'!$S$16:$S$43,MATCH($B62,'Damage costs'!$C$16:$C$43,0))/1000),\"\")","v":""},{"$f":"IFERROR(IF(OR($C$67=FALSE,LEFT($B62,3)<>\"NOX\"),CM54*INDEX('Damage costs'!$O$16:$O$43,MATCH($B62,'Damage costs'!$C$16:$C$43,0))/1000,CM54*INDEX('Damage costs'!$S$16:$S$43,MATCH($B62,'Damage costs'!$C$16:$C$43,0))/1000),\"\")","v":""},{"$f":"IFERROR(IF(OR($C$67=FALSE,LEFT($B62,3)<>\"NOX\"),CN54*INDEX('Damage costs'!$O$16:$O$43,MATCH($B62,'Damage costs'!$C$16:$C$43,0))/1000,CN54*INDEX('Damage costs'!$S$16:$S$43,MATCH($B62,'Damage costs'!$C$16:$C$43,0))/1000),\"\")","v":""},{"$f":"IFERROR(IF(OR($C$67=FALSE,LEFT($B62,3)<>\"NOX\"),CO54*INDEX('Damage costs'!$O$16:$O$43,MATCH($B62,'Damage costs'!$C$16:$C$43,0))/1000,CO54*INDEX('Damage costs'!$S$16:$S$43,MATCH($B62,'Damage costs'!$C$16:$C$43,0))/1000),\"\")","v":""},{"$f":"IFERROR(IF(OR($C$67=FALSE,LEFT($B62,3)<>\"NOX\"),CP54*INDEX('Damage costs'!$O$16:$O$43,MATCH($B62,'Damage costs'!$C$16:$C$43,0))/1000,CP54*INDEX('Damage costs'!$S$16:$S$43,MATCH($B62,'Damage costs'!$C$16:$C$43,0))/1000),\"\")","v":""},{"$f":"IFERROR(IF(OR($C$67=FALSE,LEFT($B62,3)<>\"NOX\"),CQ54*INDEX('Damage costs'!$O$16:$O$43,MATCH($B62,'Damage costs'!$C$16:$C$43,0))/1000,CQ54*INDEX('Damage costs'!$S$16:$S$43,MATCH($B62,'Damage costs'!$C$16:$C$43,0))/1000),\"\")","v":""},{"$f":"IFERROR(IF(OR($C$67=FALSE,LEFT($B62,3)<>\"NOX\"),CR54*INDEX('Damage costs'!$O$16:$O$43,MATCH($B62,'Damage costs'!$C$16:$C$43,0))/1000,CR54*INDEX('Damage costs'!$S$16:$S$43,MATCH($B62,'Damage costs'!$C$16:$C$43,0))/1000),\"\")","v":""},{"$f":"IFERROR(IF(OR($C$67=FALSE,LEFT($B62,3)<>\"NOX\"),CS54*INDEX('Damage costs'!$O$16:$O$43,MATCH($B62,'Damage costs'!$C$16:$C$43,0))/1000,CS54*INDEX('Damage costs'!$S$16:$S$43,MATCH($B62,'Damage costs'!$C$16:$C$43,0))/1000),\"\")","v":""},{"$f":"IFERROR(IF(OR($C$67=FALSE,LEFT($B62,3)<>\"NOX\"),CT54*INDEX('Damage costs'!$O$16:$O$43,MATCH($B62,'Damage costs'!$C$16:$C$43,0))/1000,CT54*INDEX('Damage costs'!$S$16:$S$43,MATCH($B62,'Damage costs'!$C$16:$C$43,0))/1000),\"\")","v":""},{"$f":"IFERROR(IF(OR($C$67=FALSE,LEFT($B62,3)<>\"NOX\"),CU54*INDEX('Damage costs'!$O$16:$O$43,MATCH($B62,'Damage costs'!$C$16:$C$43,0))/1000,CU54*INDEX('Damage costs'!$S$16:$S$43,MATCH($B62,'Damage costs'!$C$16:$C$43,0))/1000),\"\")","v":""},{"$f":"IFERROR(IF(OR($C$67=FALSE,LEFT($B62,3)<>\"NOX\"),CV54*INDEX('Damage costs'!$O$16:$O$43,MATCH($B62,'Damage costs'!$C$16:$C$43,0))/1000,CV54*INDEX('Damage costs'!$S$16:$S$43,MATCH($B62,'Damage costs'!$C$16:$C$43,0))/1000),\"\")","v":""},{"$f":"IFERROR(IF(OR($C$67=FALSE,LEFT($B62,3)<>\"NOX\"),CW54*INDEX('Damage costs'!$O$16:$O$43,MATCH($B62,'Damage costs'!$C$16:$C$43,0))/1000,CW54*INDEX('Damage costs'!$S$16:$S$43,MATCH($B62,'Damage costs'!$C$16:$C$43,0))/1000),\"\")","v":""},{"$f":"IFERROR(IF(OR($C$67=FALSE,LEFT($B62,3)<>\"NOX\"),CX54*INDEX('Damage costs'!$O$16:$O$43,MATCH($B62,'Damage costs'!$C$16:$C$43,0))/1000,CX54*INDEX('Damage costs'!$S$16:$S$43,MATCH($B62,'Damage costs'!$C$16:$C$43,0))/1000),\"\")","v":""},{"$f":"IFERROR(IF(OR($C$67=FALSE,LEFT($B62,3)<>\"NOX\"),CY54*INDEX('Damage costs'!$O$16:$O$43,MATCH($B62,'Damage costs'!$C$16:$C$43,0))/1000,CY54*INDEX('Damage costs'!$S$16:$S$43,MATCH($B62,'Damage costs'!$C$16:$C$43,0))/1000),\"\")","v":""}]
[null,0,"£000's",{"$f":"IFERROR(IF(OR($C$67=FALSE,LEFT($B63,3)<>\"NOX\"),D55*INDEX('Damage costs'!$O$16:$O$43,MATCH($B63,'Damage costs'!$C$16:$C$43,0))/1000,D55*INDEX('Damage costs'!$S$16:$S$43,MATCH($B63,'Damage costs'!$C$16:$C$43,0))/1000),\"\")","v":""},{"$f":"IFERROR(IF(OR($C$67=FALSE,LEFT($B63,3)<>\"NOX\"),E55*INDEX('Damage costs'!$O$16:$O$43,MATCH($B63,'Damage costs'!$C$16:$C$43,0))/1000,E55*INDEX('Damage costs'!$S$16:$S$43,MATCH($B63,'Damage costs'!$C$16:$C$43,0))/1000),\"\")","v":""},{"$f":"IFERROR(IF(OR($C$67=FALSE,LEFT($B63,3)<>\"NOX\"),F55*INDEX('Damage costs'!$O$16:$O$43,MATCH($B63,'Damage costs'!$C$16:$C$43,0))/1000,F55*INDEX('Damage costs'!$S$16:$S$43,MATCH($B63,'Damage costs'!$C$16:$C$43,0))/1000),\"\")","v":""},{"$f":"IFERROR(IF(OR($C$67=FALSE,LEFT($B63,3)<>\"NOX\"),G55*INDEX('Damage costs'!$O$16:$O$43,MATCH($B63,'Damage costs'!$C$16:$C$43,0))/1000,G55*INDEX('Damage costs'!$S$16:$S$43,MATCH($B63,'Damage costs'!$C$16:$C$43,0))/1000),\"\")","v":""},{"$f":"IFERROR(IF(OR($C$67=FALSE,LEFT($B63,3)<>\"NOX\"),H55*INDEX('Damage costs'!$O$16:$O$43,MATCH($B63,'Damage costs'!$C$16:$C$43,0))/1000,H55*INDEX('Damage costs'!$S$16:$S$43,MATCH($B63,'Damage costs'!$C$16:$C$43,0))/1000),\"\")","v":""},{"$f":"IFERROR(IF(OR($C$67=FALSE,LEFT($B63,3)<>\"NOX\"),I55*INDEX('Damage costs'!$O$16:$O$43,MATCH($B63,'Damage costs'!$C$16:$C$43,0))/1000,I55*INDEX('Damage costs'!$S$16:$S$43,MATCH($B63,'Damage costs'!$C$16:$C$43,0))/1000),\"\")","v":""},{"$f":"IFERROR(IF(OR($C$67=FALSE,LEFT($B63,3)<>\"NOX\"),J55*INDEX('Damage costs'!$O$16:$O$43,MATCH($B63,'Damage costs'!$C$16:$C$43,0))/1000,J55*INDEX('Damage costs'!$S$16:$S$43,MATCH($B63,'Damage costs'!$C$16:$C$43,0))/1000),\"\")","v":""},{"$f":"IFERROR(IF(OR($C$67=FALSE,LEFT($B63,3)<>\"NOX\"),K55*INDEX('Damage costs'!$O$16:$O$43,MATCH($B63,'Damage costs'!$C$16:$C$43,0))/1000,K55*INDEX('Damage costs'!$S$16:$S$43,MATCH($B63,'Damage costs'!$C$16:$C$43,0))/1000),\"\")","v":""},{"$f":"IFERROR(IF(OR($C$67=FALSE,LEFT($B63,3)<>\"NOX\"),L55*INDEX('Damage costs'!$O$16:$O$43,MATCH($B63,'Damage costs'!$C$16:$C$43,0))/1000,L55*INDEX('Damage costs'!$S$16:$S$43,MATCH($B63,'Damage costs'!$C$16:$C$43,0))/1000),\"\")","v":""},{"$f":"IFERROR(IF(OR($C$67=FALSE,LEFT($B63,3)<>\"NOX\"),M55*INDEX('Damage costs'!$O$16:$O$43,MATCH($B63,'Damage costs'!$C$16:$C$43,0))/1000,M55*INDEX('Damage costs'!$S$16:$S$43,MATCH($B63,'Damage costs'!$C$16:$C$43,0))/1000),\"\")","v":""},{"$f":"IFERROR(IF(OR($C$67=FALSE,LEFT($B63,3)<>\"NOX\"),N55*INDEX('Damage costs'!$O$16:$O$43,MATCH($B63,'Damage costs'!$C$16:$C$43,0))/1000,N55*INDEX('Damage costs'!$S$16:$S$43,MATCH($B63,'Damage costs'!$C$16:$C$43,0))/1000),\"\")","v":""},{"$f":"IFERROR(IF(OR($C$67=FALSE,LEFT($B63,3)<>\"NOX\"),O55*INDEX('Damage costs'!$O$16:$O$43,MATCH($B63,'Damage costs'!$C$16:$C$43,0))/1000,O55*INDEX('Damage costs'!$S$16:$S$43,MATCH($B63,'Damage costs'!$C$16:$C$43,0))/1000),\"\")","v":""},{"$f":"IFERROR(IF(OR($C$67=FALSE,LEFT($B63,3)<>\"NOX\"),P55*INDEX('Damage costs'!$O$16:$O$43,MATCH($B63,'Damage costs'!$C$16:$C$43,0))/1000,P55*INDEX('Damage costs'!$S$16:$S$43,MATCH($B63,'Damage costs'!$C$16:$C$43,0))/1000),\"\")","v":""},{"$f":"IFERROR(IF(OR($C$67=FALSE,LEFT($B63,3)<>\"NOX\"),Q55*INDEX('Damage costs'!$O$16:$O$43,MATCH($B63,'Damage costs'!$C$16:$C$43,0))/1000,Q55*INDEX('Damage costs'!$S$16:$S$43,MATCH($B63,'Damage costs'!$C$16:$C$43,0))/1000),\"\")","v":""},{"$f":"IFERROR(IF(OR($C$67=FALSE,LEFT($B63,3)<>\"NOX\"),R55*INDEX('Damage costs'!$O$16:$O$43,MATCH($B63,'Damage costs'!$C$16:$C$43,0))/1000,R55*INDEX('Damage costs'!$S$16:$S$43,MATCH($B63,'Damage costs'!$C$16:$C$43,0))/1000),\"\")","v":""},{"$f":"IFERROR(IF(OR($C$67=FALSE,LEFT($B63,3)<>\"NOX\"),S55*INDEX('Damage costs'!$O$16:$O$43,MATCH($B63,'Damage costs'!$C$16:$C$43,0))/1000,S55*INDEX('Damage costs'!$S$16:$S$43,MATCH($B63,'Damage costs'!$C$16:$C$43,0))/1000),\"\")","v":""},{"$f":"IFERROR(IF(OR($C$67=FALSE,LEFT($B63,3)<>\"NOX\"),T55*INDEX('Damage costs'!$O$16:$O$43,MATCH($B63,'Damage costs'!$C$16:$C$43,0))/1000,T55*INDEX('Damage costs'!$S$16:$S$43,MATCH($B63,'Damage costs'!$C$16:$C$43,0))/1000),\"\")","v":""},{"$f":"IFERROR(IF(OR($C$67=FALSE,LEFT($B63,3)<>\"NOX\"),U55*INDEX('Damage costs'!$O$16:$O$43,MATCH($B63,'Damage costs'!$C$16:$C$43,0))/1000,U55*INDEX('Damage costs'!$S$16:$S$43,MATCH($B63,'Damage costs'!$C$16:$C$43,0))/1000),\"\")","v":""},{"$f":"IFERROR(IF(OR($C$67=FALSE,LEFT($B63,3)<>\"NOX\"),V55*INDEX('Damage costs'!$O$16:$O$43,MATCH($B63,'Damage costs'!$C$16:$C$43,0))/1000,V55*INDEX('Damage costs'!$S$16:$S$43,MATCH($B63,'Damage costs'!$C$16:$C$43,0))/1000),\"\")","v":""},{"$f":"IFERROR(IF(OR($C$67=FALSE,LEFT($B63,3)<>\"NOX\"),W55*INDEX('Damage costs'!$O$16:$O$43,MATCH($B63,'Damage costs'!$C$16:$C$43,0))/1000,W55*INDEX('Damage costs'!$S$16:$S$43,MATCH($B63,'Damage costs'!$C$16:$C$43,0))/1000),\"\")","v":""},{"$f":"IFERROR(IF(OR($C$67=FALSE,LEFT($B63,3)<>\"NOX\"),X55*INDEX('Damage costs'!$O$16:$O$43,MATCH($B63,'Damage costs'!$C$16:$C$43,0))/1000,X55*INDEX('Damage costs'!$S$16:$S$43,MATCH($B63,'Damage costs'!$C$16:$C$43,0))/1000),\"\")","v":""},{"$f":"IFERROR(IF(OR($C$67=FALSE,LEFT($B63,3)<>\"NOX\"),Y55*INDEX('Damage costs'!$O$16:$O$43,MATCH($B63,'Damage costs'!$C$16:$C$43,0))/1000,Y55*INDEX('Damage costs'!$S$16:$S$43,MATCH($B63,'Damage costs'!$C$16:$C$43,0))/1000),\"\")","v":""},{"$f":"IFERROR(IF(OR($C$67=FALSE,LEFT($B63,3)<>\"NOX\"),Z55*INDEX('Damage costs'!$O$16:$O$43,MATCH($B63,'Damage costs'!$C$16:$C$43,0))/1000,Z55*INDEX('Damage costs'!$S$16:$S$43,MATCH($B63,'Damage costs'!$C$16:$C$43,0))/1000),\"\")","v":""},{"$f":"IFERROR(IF(OR($C$67=FALSE,LEFT($B63,3)<>\"NOX\"),AA55*INDEX('Damage costs'!$O$16:$O$43,MATCH($B63,'Damage costs'!$C$16:$C$43,0))/1000,AA55*INDEX('Damage costs'!$S$16:$S$43,MATCH($B63,'Damage costs'!$C$16:$C$43,0))/1000),\"\")","v":""},{"$f":"IFERROR(IF(OR($C$67=FALSE,LEFT($B63,3)<>\"NOX\"),AB55*INDEX('Damage costs'!$O$16:$O$43,MATCH($B63,'Damage costs'!$C$16:$C$43,0))/1000,AB55*INDEX('Damage costs'!$S$16:$S$43,MATCH($B63,'Damage costs'!$C$16:$C$43,0))/1000),\"\")","v":""},{"$f":"IFERROR(IF(OR($C$67=FALSE,LEFT($B63,3)<>\"NOX\"),AC55*INDEX('Damage costs'!$O$16:$O$43,MATCH($B63,'Damage costs'!$C$16:$C$43,0))/1000,AC55*INDEX('Damage costs'!$S$16:$S$43,MATCH($B63,'Damage costs'!$C$16:$C$43,0))/1000),\"\")","v":""},{"$f":"IFERROR(IF(OR($C$67=FALSE,LEFT($B63,3)<>\"NOX\"),AD55*INDEX('Damage costs'!$O$16:$O$43,MATCH($B63,'Damage costs'!$C$16:$C$43,0))/1000,AD55*INDEX('Damage costs'!$S$16:$S$43,MATCH($B63,'Damage costs'!$C$16:$C$43,0))/1000),\"\")","v":""},{"$f":"IFERROR(IF(OR($C$67=FALSE,LEFT($B63,3)<>\"NOX\"),AE55*INDEX('Damage costs'!$O$16:$O$43,MATCH($B63,'Damage costs'!$C$16:$C$43,0))/1000,AE55*INDEX('Damage costs'!$S$16:$S$43,MATCH($B63,'Damage costs'!$C$16:$C$43,0))/1000),\"\")","v":""},{"$f":"IFERROR(IF(OR($C$67=FALSE,LEFT($B63,3)<>\"NOX\"),AF55*INDEX('Damage costs'!$O$16:$O$43,MATCH($B63,'Damage costs'!$C$16:$C$43,0))/1000,AF55*INDEX('Damage costs'!$S$16:$S$43,MATCH($B63,'Damage costs'!$C$16:$C$43,0))/1000),\"\")","v":""},{"$f":"IFERROR(IF(OR($C$67=FALSE,LEFT($B63,3)<>\"NOX\"),AG55*INDEX('Damage costs'!$O$16:$O$43,MATCH($B63,'Damage costs'!$C$16:$C$43,0))/1000,AG55*INDEX('Damage costs'!$S$16:$S$43,MATCH($B63,'Damage costs'!$C$16:$C$43,0))/1000),\"\")","v":""},{"$f":"IFERROR(IF(OR($C$67=FALSE,LEFT($B63,3)<>\"NOX\"),AH55*INDEX('Damage costs'!$O$16:$O$43,MATCH($B63,'Damage costs'!$C$16:$C$43,0))/1000,AH55*INDEX('Damage costs'!$S$16:$S$43,MATCH($B63,'Damage costs'!$C$16:$C$43,0))/1000),\"\")","v":""},{"$f":"IFERROR(IF(OR($C$67=FALSE,LEFT($B63,3)<>\"NOX\"),AI55*INDEX('Damage costs'!$O$16:$O$43,MATCH($B63,'Damage costs'!$C$16:$C$43,0))/1000,AI55*INDEX('Damage costs'!$S$16:$S$43,MATCH($B63,'Damage costs'!$C$16:$C$43,0))/1000),\"\")","v":""},{"$f":"IFERROR(IF(OR($C$67=FALSE,LEFT($B63,3)<>\"NOX\"),AJ55*INDEX('Damage costs'!$O$16:$O$43,MATCH($B63,'Damage costs'!$C$16:$C$43,0))/1000,AJ55*INDEX('Damage costs'!$S$16:$S$43,MATCH($B63,'Damage costs'!$C$16:$C$43,0))/1000),\"\")","v":""},{"$f":"IFERROR(IF(OR($C$67=FALSE,LEFT($B63,3)<>\"NOX\"),AK55*INDEX('Damage costs'!$O$16:$O$43,MATCH($B63,'Damage costs'!$C$16:$C$43,0))/1000,AK55*INDEX('Damage costs'!$S$16:$S$43,MATCH($B63,'Damage costs'!$C$16:$C$43,0))/1000),\"\")","v":""},{"$f":"IFERROR(IF(OR($C$67=FALSE,LEFT($B63,3)<>\"NOX\"),AL55*INDEX('Damage costs'!$O$16:$O$43,MATCH($B63,'Damage costs'!$C$16:$C$43,0))/1000,AL55*INDEX('Damage costs'!$S$16:$S$43,MATCH($B63,'Damage costs'!$C$16:$C$43,0))/1000),\"\")","v":""},{"$f":"IFERROR(IF(OR($C$67=FALSE,LEFT($B63,3)<>\"NOX\"),AM55*INDEX('Damage costs'!$O$16:$O$43,MATCH($B63,'Damage costs'!$C$16:$C$43,0))/1000,AM55*INDEX('Damage costs'!$S$16:$S$43,MATCH($B63,'Damage costs'!$C$16:$C$43,0))/1000),\"\")","v":""},{"$f":"IFERROR(IF(OR($C$67=FALSE,LEFT($B63,3)<>\"NOX\"),AN55*INDEX('Damage costs'!$O$16:$O$43,MATCH($B63,'Damage costs'!$C$16:$C$43,0))/1000,AN55*INDEX('Damage costs'!$S$16:$S$43,MATCH($B63,'Damage costs'!$C$16:$C$43,0))/1000),\"\")","v":""},{"$f":"IFERROR(IF(OR($C$67=FALSE,LEFT($B63,3)<>\"NOX\"),AO55*INDEX('Damage costs'!$O$16:$O$43,MATCH($B63,'Damage costs'!$C$16:$C$43,0))/1000,AO55*INDEX('Damage costs'!$S$16:$S$43,MATCH($B63,'Damage costs'!$C$16:$C$43,0))/1000),\"\")","v":""},{"$f":"IFERROR(IF(OR($C$67=FALSE,LEFT($B63,3)<>\"NOX\"),AP55*INDEX('Damage costs'!$O$16:$O$43,MATCH($B63,'Damage costs'!$C$16:$C$43,0))/1000,AP55*INDEX('Damage costs'!$S$16:$S$43,MATCH($B63,'Damage costs'!$C$16:$C$43,0))/1000),\"\")","v":""},{"$f":"IFERROR(IF(OR($C$67=FALSE,LEFT($B63,3)<>\"NOX\"),AQ55*INDEX('Damage costs'!$O$16:$O$43,MATCH($B63,'Damage costs'!$C$16:$C$43,0))/1000,AQ55*INDEX('Damage costs'!$S$16:$S$43,MATCH($B63,'Damage costs'!$C$16:$C$43,0))/1000),\"\")","v":""},{"$f":"IFERROR(IF(OR($C$67=FALSE,LEFT($B63,3)<>\"NOX\"),AR55*INDEX('Damage costs'!$O$16:$O$43,MATCH($B63,'Damage costs'!$C$16:$C$43,0))/1000,AR55*INDEX('Damage costs'!$S$16:$S$43,MATCH($B63,'Damage costs'!$C$16:$C$43,0))/1000),\"\")","v":""},{"$f":"IFERROR(IF(OR($C$67=FALSE,LEFT($B63,3)<>\"NOX\"),AS55*INDEX('Damage costs'!$O$16:$O$43,MATCH($B63,'Damage costs'!$C$16:$C$43,0))/1000,AS55*INDEX('Damage costs'!$S$16:$S$43,MATCH($B63,'Damage costs'!$C$16:$C$43,0))/1000),\"\")","v":""},{"$f":"IFERROR(IF(OR($C$67=FALSE,LEFT($B63,3)<>\"NOX\"),AT55*INDEX('Damage costs'!$O$16:$O$43,MATCH($B63,'Damage costs'!$C$16:$C$43,0))/1000,AT55*INDEX('Damage costs'!$S$16:$S$43,MATCH($B63,'Damage costs'!$C$16:$C$43,0))/1000),\"\")","v":""},{"$f":"IFERROR(IF(OR($C$67=FALSE,LEFT($B63,3)<>\"NOX\"),AU55*INDEX('Damage costs'!$O$16:$O$43,MATCH($B63,'Damage costs'!$C$16:$C$43,0))/1000,AU55*INDEX('Damage costs'!$S$16:$S$43,MATCH($B63,'Damage costs'!$C$16:$C$43,0))/1000),\"\")","v":""},{"$f":"IFERROR(IF(OR($C$67=FALSE,LEFT($B63,3)<>\"NOX\"),AV55*INDEX('Damage costs'!$O$16:$O$43,MATCH($B63,'Damage costs'!$C$16:$C$43,0))/1000,AV55*INDEX('Damage costs'!$S$16:$S$43,MATCH($B63,'Damage costs'!$C$16:$C$43,0))/1000),\"\")","v":""},{"$f":"IFERROR(IF(OR($C$67=FALSE,LEFT($B63,3)<>\"NOX\"),AW55*INDEX('Damage costs'!$O$16:$O$43,MATCH($B63,'Damage costs'!$C$16:$C$43,0))/1000,AW55*INDEX('Damage costs'!$S$16:$S$43,MATCH($B63,'Damage costs'!$C$16:$C$43,0))/1000),\"\")","v":""},{"$f":"IFERROR(IF(OR($C$67=FALSE,LEFT($B63,3)<>\"NOX\"),AX55*INDEX('Damage costs'!$O$16:$O$43,MATCH($B63,'Damage costs'!$C$16:$C$43,0))/1000,AX55*INDEX('Damage costs'!$S$16:$S$43,MATCH($B63,'Damage costs'!$C$16:$C$43,0))/1000),\"\")","v":""},{"$f":"IFERROR(IF(OR($C$67=FALSE,LEFT($B63,3)<>\"NOX\"),AY55*INDEX('Damage costs'!$O$16:$O$43,MATCH($B63,'Damage costs'!$C$16:$C$43,0))/1000,AY55*INDEX('Damage costs'!$S$16:$S$43,MATCH($B63,'Damage costs'!$C$16:$C$43,0))/1000),\"\")","v":""},{"$f":"IFERROR(IF(OR($C$67=FALSE,LEFT($B63,3)<>\"NOX\"),AZ55*INDEX('Damage costs'!$O$16:$O$43,MATCH($B63,'Damage costs'!$C$16:$C$43,0))/1000,AZ55*INDEX('Damage costs'!$S$16:$S$43,MATCH($B63,'Damage costs'!$C$16:$C$43,0))/1000),\"\")","v":""},{"$f":"IFERROR(IF(OR($C$67=FALSE,LEFT($B63,3)<>\"NOX\"),BA55*INDEX('Damage costs'!$O$16:$O$43,MATCH($B63,'Damage costs'!$C$16:$C$43,0))/1000,BA55*INDEX('Damage costs'!$S$16:$S$43,MATCH($B63,'Damage costs'!$C$16:$C$43,0))/1000),\"\")","v":""},{"$f":"IFERROR(IF(OR($C$67=FALSE,LEFT($B63,3)<>\"NOX\"),BB55*INDEX('Damage costs'!$O$16:$O$43,MATCH($B63,'Damage costs'!$C$16:$C$43,0))/1000,BB55*INDEX('Damage costs'!$S$16:$S$43,MATCH($B63,'Damage costs'!$C$16:$C$43,0))/1000),\"\")","v":""},{"$f":"IFERROR(IF(OR($C$67=FALSE,LEFT($B63,3)<>\"NOX\"),BC55*INDEX('Damage costs'!$O$16:$O$43,MATCH($B63,'Damage costs'!$C$16:$C$43,0))/1000,BC55*INDEX('Damage costs'!$S$16:$S$43,MATCH($B63,'Damage costs'!$C$16:$C$43,0))/1000),\"\")","v":""},{"$f":"IFERROR(IF(OR($C$67=FALSE,LEFT($B63,3)<>\"NOX\"),BD55*INDEX('Damage costs'!$O$16:$O$43,MATCH($B63,'Damage costs'!$C$16:$C$43,0))/1000,BD55*INDEX('Damage costs'!$S$16:$S$43,MATCH($B63,'Damage costs'!$C$16:$C$43,0))/1000),\"\")","v":""},{"$f":"IFERROR(IF(OR($C$67=FALSE,LEFT($B63,3)<>\"NOX\"),BE55*INDEX('Damage costs'!$O$16:$O$43,MATCH($B63,'Damage costs'!$C$16:$C$43,0))/1000,BE55*INDEX('Damage costs'!$S$16:$S$43,MATCH($B63,'Damage costs'!$C$16:$C$43,0))/1000),\"\")","v":""},{"$f":"IFERROR(IF(OR($C$67=FALSE,LEFT($B63,3)<>\"NOX\"),BF55*INDEX('Damage costs'!$O$16:$O$43,MATCH($B63,'Damage costs'!$C$16:$C$43,0))/1000,BF55*INDEX('Damage costs'!$S$16:$S$43,MATCH($B63,'Damage costs'!$C$16:$C$43,0))/1000),\"\")","v":""},{"$f":"IFERROR(IF(OR($C$67=FALSE,LEFT($B63,3)<>\"NOX\"),BG55*INDEX('Damage costs'!$O$16:$O$43,MATCH($B63,'Damage costs'!$C$16:$C$43,0))/1000,BG55*INDEX('Damage costs'!$S$16:$S$43,MATCH($B63,'Damage costs'!$C$16:$C$43,0))/1000),\"\")","v":""},{"$f":"IFERROR(IF(OR($C$67=FALSE,LEFT($B63,3)<>\"NOX\"),BH55*INDEX('Damage costs'!$O$16:$O$43,MATCH($B63,'Damage costs'!$C$16:$C$43,0))/1000,BH55*INDEX('Damage costs'!$S$16:$S$43,MATCH($B63,'Damage costs'!$C$16:$C$43,0))/1000),\"\")","v":""},{"$f":"IFERROR(IF(OR($C$67=FALSE,LEFT($B63,3)<>\"NOX\"),BI55*INDEX('Damage costs'!$O$16:$O$43,MATCH($B63,'Damage costs'!$C$16:$C$43,0))/1000,BI55*INDEX('Damage costs'!$S$16:$S$43,MATCH($B63,'Damage costs'!$C$16:$C$43,0))/1000),\"\")","v":""},{"$f":"IFERROR(IF(OR($C$67=FALSE,LEFT($B63,3)<>\"NOX\"),BJ55*INDEX('Damage costs'!$O$16:$O$43,MATCH($B63,'Damage costs'!$C$16:$C$43,0))/1000,BJ55*INDEX('Damage costs'!$S$16:$S$43,MATCH($B63,'Damage costs'!$C$16:$C$43,0))/1000),\"\")","v":""},{"$f":"IFERROR(IF(OR($C$67=FALSE,LEFT($B63,3)<>\"NOX\"),BK55*INDEX('Damage costs'!$O$16:$O$43,MATCH($B63,'Damage costs'!$C$16:$C$43,0))/1000,BK55*INDEX('Damage costs'!$S$16:$S$43,MATCH($B63,'Damage costs'!$C$16:$C$43,0))/1000),\"\")","v":""},{"$f":"IFERROR(IF(OR($C$67=FALSE,LEFT($B63,3)<>\"NOX\"),BL55*INDEX('Damage costs'!$O$16:$O$43,MATCH($B63,'Damage costs'!$C$16:$C$43,0))/1000,BL55*INDEX('Damage costs'!$S$16:$S$43,MATCH($B63,'Damage costs'!$C$16:$C$43,0))/1000),\"\")","v":""},{"$f":"IFERROR(IF(OR($C$67=FALSE,LEFT($B63,3)<>\"NOX\"),BM55*INDEX('Damage costs'!$O$16:$O$43,MATCH($B63,'Damage costs'!$C$16:$C$43,0))/1000,BM55*INDEX('Damage costs'!$S$16:$S$43,MATCH($B63,'Damage costs'!$C$16:$C$43,0))/1000),\"\")","v":""},{"$f":"IFERROR(IF(OR($C$67=FALSE,LEFT($B63,3)<>\"NOX\"),BN55*INDEX('Damage costs'!$O$16:$O$43,MATCH($B63,'Damage costs'!$C$16:$C$43,0))/1000,BN55*INDEX('Damage costs'!$S$16:$S$43,MATCH($B63,'Damage costs'!$C$16:$C$43,0))/1000),\"\")","v":""},{"$f":"IFERROR(IF(OR($C$67=FALSE,LEFT($B63,3)<>\"NOX\"),BO55*INDEX('Damage costs'!$O$16:$O$43,MATCH($B63,'Damage costs'!$C$16:$C$43,0))/1000,BO55*INDEX('Damage costs'!$S$16:$S$43,MATCH($B63,'Damage costs'!$C$16:$C$43,0))/1000),\"\")","v":""},{"$f":"IFERROR(IF(OR($C$67=FALSE,LEFT($B63,3)<>\"NOX\"),BP55*INDEX('Damage costs'!$O$16:$O$43,MATCH($B63,'Damage costs'!$C$16:$C$43,0))/1000,BP55*INDEX('Damage costs'!$S$16:$S$43,MATCH($B63,'Damage costs'!$C$16:$C$43,0))/1000),\"\")","v":""},{"$f":"IFERROR(IF(OR($C$67=FALSE,LEFT($B63,3)<>\"NOX\"),BQ55*INDEX('Damage costs'!$O$16:$O$43,MATCH($B63,'Damage costs'!$C$16:$C$43,0))/1000,BQ55*INDEX('Damage costs'!$S$16:$S$43,MATCH($B63,'Damage costs'!$C$16:$C$43,0))/1000),\"\")","v":""},{"$f":"IFERROR(IF(OR($C$67=FALSE,LEFT($B63,3)<>\"NOX\"),BR55*INDEX('Damage costs'!$O$16:$O$43,MATCH($B63,'Damage costs'!$C$16:$C$43,0))/1000,BR55*INDEX('Damage costs'!$S$16:$S$43,MATCH($B63,'Damage costs'!$C$16:$C$43,0))/1000),\"\")","v":""},{"$f":"IFERROR(IF(OR($C$67=FALSE,LEFT($B63,3)<>\"NOX\"),BS55*INDEX('Damage costs'!$O$16:$O$43,MATCH($B63,'Damage costs'!$C$16:$C$43,0))/1000,BS55*INDEX('Damage costs'!$S$16:$S$43,MATCH($B63,'Damage costs'!$C$16:$C$43,0))/1000),\"\")","v":""},{"$f":"IFERROR(IF(OR($C$67=FALSE,LEFT($B63,3)<>\"NOX\"),BT55*INDEX('Damage costs'!$O$16:$O$43,MATCH($B63,'Damage costs'!$C$16:$C$43,0))/1000,BT55*INDEX('Damage costs'!$S$16:$S$43,MATCH($B63,'Damage costs'!$C$16:$C$43,0))/1000),\"\")","v":""},{"$f":"IFERROR(IF(OR($C$67=FALSE,LEFT($B63,3)<>\"NOX\"),BU55*INDEX('Damage costs'!$O$16:$O$43,MATCH($B63,'Damage costs'!$C$16:$C$43,0))/1000,BU55*INDEX('Damage costs'!$S$16:$S$43,MATCH($B63,'Damage costs'!$C$16:$C$43,0))/1000),\"\")","v":""},{"$f":"IFERROR(IF(OR($C$67=FALSE,LEFT($B63,3)<>\"NOX\"),BV55*INDEX('Damage costs'!$O$16:$O$43,MATCH($B63,'Damage costs'!$C$16:$C$43,0))/1000,BV55*INDEX('Damage costs'!$S$16:$S$43,MATCH($B63,'Damage costs'!$C$16:$C$43,0))/1000),\"\")","v":""},{"$f":"IFERROR(IF(OR($C$67=FALSE,LEFT($B63,3)<>\"NOX\"),BW55*INDEX('Damage costs'!$O$16:$O$43,MATCH($B63,'Damage costs'!$C$16:$C$43,0))/1000,BW55*INDEX('Damage costs'!$S$16:$S$43,MATCH($B63,'Damage costs'!$C$16:$C$43,0))/1000),\"\")","v":""},{"$f":"IFERROR(IF(OR($C$67=FALSE,LEFT($B63,3)<>\"NOX\"),BX55*INDEX('Damage costs'!$O$16:$O$43,MATCH($B63,'Damage costs'!$C$16:$C$43,0))/1000,BX55*INDEX('Damage costs'!$S$16:$S$43,MATCH($B63,'Damage costs'!$C$16:$C$43,0))/1000),\"\")","v":""},{"$f":"IFERROR(IF(OR($C$67=FALSE,LEFT($B63,3)<>\"NOX\"),BY55*INDEX('Damage costs'!$O$16:$O$43,MATCH($B63,'Damage costs'!$C$16:$C$43,0))/1000,BY55*INDEX('Damage costs'!$S$16:$S$43,MATCH($B63,'Damage costs'!$C$16:$C$43,0))/1000),\"\")","v":""},{"$f":"IFERROR(IF(OR($C$67=FALSE,LEFT($B63,3)<>\"NOX\"),BZ55*INDEX('Damage costs'!$O$16:$O$43,MATCH($B63,'Damage costs'!$C$16:$C$43,0))/1000,BZ55*INDEX('Damage costs'!$S$16:$S$43,MATCH($B63,'Damage costs'!$C$16:$C$43,0))/1000),\"\")","v":""},{"$f":"IFERROR(IF(OR($C$67=FALSE,LEFT($B63,3)<>\"NOX\"),CA55*INDEX('Damage costs'!$O$16:$O$43,MATCH($B63,'Damage costs'!$C$16:$C$43,0))/1000,CA55*INDEX('Damage costs'!$S$16:$S$43,MATCH($B63,'Damage costs'!$C$16:$C$43,0))/1000),\"\")","v":""},{"$f":"IFERROR(IF(OR($C$67=FALSE,LEFT($B63,3)<>\"NOX\"),CB55*INDEX('Damage costs'!$O$16:$O$43,MATCH($B63,'Damage costs'!$C$16:$C$43,0))/1000,CB55*INDEX('Damage costs'!$S$16:$S$43,MATCH($B63,'Damage costs'!$C$16:$C$43,0))/1000),\"\")","v":""},{"$f":"IFERROR(IF(OR($C$67=FALSE,LEFT($B63,3)<>\"NOX\"),CC55*INDEX('Damage costs'!$O$16:$O$43,MATCH($B63,'Damage costs'!$C$16:$C$43,0))/1000,CC55*INDEX('Damage costs'!$S$16:$S$43,MATCH($B63,'Damage costs'!$C$16:$C$43,0))/1000),\"\")","v":""},{"$f":"IFERROR(IF(OR($C$67=FALSE,LEFT($B63,3)<>\"NOX\"),CD55*INDEX('Damage costs'!$O$16:$O$43,MATCH($B63,'Damage costs'!$C$16:$C$43,0))/1000,CD55*INDEX('Damage costs'!$S$16:$S$43,MATCH($B63,'Damage costs'!$C$16:$C$43,0))/1000),\"\")","v":""},{"$f":"IFERROR(IF(OR($C$67=FALSE,LEFT($B63,3)<>\"NOX\"),CE55*INDEX('Damage costs'!$O$16:$O$43,MATCH($B63,'Damage costs'!$C$16:$C$43,0))/1000,CE55*INDEX('Damage costs'!$S$16:$S$43,MATCH($B63,'Damage costs'!$C$16:$C$43,0))/1000),\"\")","v":""},{"$f":"IFERROR(IF(OR($C$67=FALSE,LEFT($B63,3)<>\"NOX\"),CF55*INDEX('Damage costs'!$O$16:$O$43,MATCH($B63,'Damage costs'!$C$16:$C$43,0))/1000,CF55*INDEX('Damage costs'!$S$16:$S$43,MATCH($B63,'Damage costs'!$C$16:$C$43,0))/1000),\"\")","v":""},{"$f":"IFERROR(IF(OR($C$67=FALSE,LEFT($B63,3)<>\"NOX\"),CG55*INDEX('Damage costs'!$O$16:$O$43,MATCH($B63,'Damage costs'!$C$16:$C$43,0))/1000,CG55*INDEX('Damage costs'!$S$16:$S$43,MATCH($B63,'Damage costs'!$C$16:$C$43,0))/1000),\"\")","v":""},{"$f":"IFERROR(IF(OR($C$67=FALSE,LEFT($B63,3)<>\"NOX\"),CH55*INDEX('Damage costs'!$O$16:$O$43,MATCH($B63,'Damage costs'!$C$16:$C$43,0))/1000,CH55*INDEX('Damage costs'!$S$16:$S$43,MATCH($B63,'Damage costs'!$C$16:$C$43,0))/1000),\"\")","v":""},{"$f":"IFERROR(IF(OR($C$67=FALSE,LEFT($B63,3)<>\"NOX\"),CI55*INDEX('Damage costs'!$O$16:$O$43,MATCH($B63,'Damage costs'!$C$16:$C$43,0))/1000,CI55*INDEX('Damage costs'!$S$16:$S$43,MATCH($B63,'Damage costs'!$C$16:$C$43,0))/1000),\"\")","v":""},{"$f":"IFERROR(IF(OR($C$67=FALSE,LEFT($B63,3)<>\"NOX\"),CJ55*INDEX('Damage costs'!$O$16:$O$43,MATCH($B63,'Damage costs'!$C$16:$C$43,0))/1000,CJ55*INDEX('Damage costs'!$S$16:$S$43,MATCH($B63,'Damage costs'!$C$16:$C$43,0))/1000),\"\")","v":""},{"$f":"IFERROR(IF(OR($C$67=FALSE,LEFT($B63,3)<>\"NOX\"),CK55*INDEX('Damage costs'!$O$16:$O$43,MATCH($B63,'Damage costs'!$C$16:$C$43,0))/1000,CK55*INDEX('Damage costs'!$S$16:$S$43,MATCH($B63,'Damage costs'!$C$16:$C$43,0))/1000),\"\")","v":""},{"$f":"IFERROR(IF(OR($C$67=FALSE,LEFT($B63,3)<>\"NOX\"),CL55*INDEX('Damage costs'!$O$16:$O$43,MATCH($B63,'Damage costs'!$C$16:$C$43,0))/1000,CL55*INDEX('Damage costs'!$S$16:$S$43,MATCH($B63,'Damage costs'!$C$16:$C$43,0))/1000),\"\")","v":""},{"$f":"IFERROR(IF(OR($C$67=FALSE,LEFT($B63,3)<>\"NOX\"),CM55*INDEX('Damage costs'!$O$16:$O$43,MATCH($B63,'Damage costs'!$C$16:$C$43,0))/1000,CM55*INDEX('Damage costs'!$S$16:$S$43,MATCH($B63,'Damage costs'!$C$16:$C$43,0))/1000),\"\")","v":""},{"$f":"IFERROR(IF(OR($C$67=FALSE,LEFT($B63,3)<>\"NOX\"),CN55*INDEX('Damage costs'!$O$16:$O$43,MATCH($B63,'Damage costs'!$C$16:$C$43,0))/1000,CN55*INDEX('Damage costs'!$S$16:$S$43,MATCH($B63,'Damage costs'!$C$16:$C$43,0))/1000),\"\")","v":""},{"$f":"IFERROR(IF(OR($C$67=FALSE,LEFT($B63,3)<>\"NOX\"),CO55*INDEX('Damage costs'!$O$16:$O$43,MATCH($B63,'Damage costs'!$C$16:$C$43,0))/1000,CO55*INDEX('Damage costs'!$S$16:$S$43,MATCH($B63,'Damage costs'!$C$16:$C$43,0))/1000),\"\")","v":""},{"$f":"IFERROR(IF(OR($C$67=FALSE,LEFT($B63,3)<>\"NOX\"),CP55*INDEX('Damage costs'!$O$16:$O$43,MATCH($B63,'Damage costs'!$C$16:$C$43,0))/1000,CP55*INDEX('Damage costs'!$S$16:$S$43,MATCH($B63,'Damage costs'!$C$16:$C$43,0))/1000),\"\")","v":""},{"$f":"IFERROR(IF(OR($C$67=FALSE,LEFT($B63,3)<>\"NOX\"),CQ55*INDEX('Damage costs'!$O$16:$O$43,MATCH($B63,'Damage costs'!$C$16:$C$43,0))/1000,CQ55*INDEX('Damage costs'!$S$16:$S$43,MATCH($B63,'Damage costs'!$C$16:$C$43,0))/1000),\"\")","v":""},{"$f":"IFERROR(IF(OR($C$67=FALSE,LEFT($B63,3)<>\"NOX\"),CR55*INDEX('Damage costs'!$O$16:$O$43,MATCH($B63,'Damage costs'!$C$16:$C$43,0))/1000,CR55*INDEX('Damage costs'!$S$16:$S$43,MATCH($B63,'Damage costs'!$C$16:$C$43,0))/1000),\"\")","v":""},{"$f":"IFERROR(IF(OR($C$67=FALSE,LEFT($B63,3)<>\"NOX\"),CS55*INDEX('Damage costs'!$O$16:$O$43,MATCH($B63,'Damage costs'!$C$16:$C$43,0))/1000,CS55*INDEX('Damage costs'!$S$16:$S$43,MATCH($B63,'Damage costs'!$C$16:$C$43,0))/1000),\"\")","v":""},{"$f":"IFERROR(IF(OR($C$67=FALSE,LEFT($B63,3)<>\"NOX\"),CT55*INDEX('Damage costs'!$O$16:$O$43,MATCH($B63,'Damage costs'!$C$16:$C$43,0))/1000,CT55*INDEX('Damage costs'!$S$16:$S$43,MATCH($B63,'Damage costs'!$C$16:$C$43,0))/1000),\"\")","v":""},{"$f":"IFERROR(IF(OR($C$67=FALSE,LEFT($B63,3)<>\"NOX\"),CU55*INDEX('Damage costs'!$O$16:$O$43,MATCH($B63,'Damage costs'!$C$16:$C$43,0))/1000,CU55*INDEX('Damage costs'!$S$16:$S$43,MATCH($B63,'Damage costs'!$C$16:$C$43,0))/1000),\"\")","v":""},{"$f":"IFERROR(IF(OR($C$67=FALSE,LEFT($B63,3)<>\"NOX\"),CV55*INDEX('Damage costs'!$O$16:$O$43,MATCH($B63,'Damage costs'!$C$16:$C$43,0))/1000,CV55*INDEX('Damage costs'!$S$16:$S$43,MATCH($B63,'Damage costs'!$C$16:$C$43,0))/1000),\"\")","v":""},{"$f":"IFERROR(IF(OR($C$67=FALSE,LEFT($B63,3)<>\"NOX\"),CW55*INDEX('Damage costs'!$O$16:$O$43,MATCH($B63,'Damage costs'!$C$16:$C$43,0))/1000,CW55*INDEX('Damage costs'!$S$16:$S$43,MATCH($B63,'Damage costs'!$C$16:$C$43,0))/1000),\"\")","v":""},{"$f":"IFERROR(IF(OR($C$67=FALSE,LEFT($B63,3)<>\"NOX\"),CX55*INDEX('Damage costs'!$O$16:$O$43,MATCH($B63,'Damage costs'!$C$16:$C$43,0))/1000,CX55*INDEX('Damage costs'!$S$16:$S$43,MATCH($B63,'Damage costs'!$C$16:$C$43,0))/1000),\"\")","v":""},{"$f":"IFERROR(IF(OR($C$67=FALSE,LEFT($B63,3)<>\"NOX\"),CY55*INDEX('Damage costs'!$O$16:$O$43,MATCH($B63,'Damage costs'!$C$16:$C$43,0))/1000,CY55*INDEX('Damage costs'!$S$16:$S$43,MATCH($B63,'Damage costs'!$C$16:$C$43,0))/1000),\"\")","v":""}]
[null,0,"£000's",{"$f":"IFERROR(IF(OR($C$67=FALSE,LEFT($B64,3)<>\"NOX\"),D56*INDEX('Damage costs'!$O$16:$O$43,MATCH($B64,'Damage costs'!$C$16:$C$43,0))/1000,D56*INDEX('Damage costs'!$S$16:$S$43,MATCH($B64,'Damage costs'!$C$16:$C$43,0))/1000),\"\")","v":""},{"$f":"IFERROR(IF(OR($C$67=FALSE,LEFT($B64,3)<>\"NOX\"),E56*INDEX('Damage costs'!$O$16:$O$43,MATCH($B64,'Damage costs'!$C$16:$C$43,0))/1000,E56*INDEX('Damage costs'!$S$16:$S$43,MATCH($B64,'Damage costs'!$C$16:$C$43,0))/1000),\"\")","v":""},{"$f":"IFERROR(IF(OR($C$67=FALSE,LEFT($B64,3)<>\"NOX\"),F56*INDEX('Damage costs'!$O$16:$O$43,MATCH($B64,'Damage costs'!$C$16:$C$43,0))/1000,F56*INDEX('Damage costs'!$S$16:$S$43,MATCH($B64,'Damage costs'!$C$16:$C$43,0))/1000),\"\")","v":""},{"$f":"IFERROR(IF(OR($C$67=FALSE,LEFT($B64,3)<>\"NOX\"),G56*INDEX('Damage costs'!$O$16:$O$43,MATCH($B64,'Damage costs'!$C$16:$C$43,0))/1000,G56*INDEX('Damage costs'!$S$16:$S$43,MATCH($B64,'Damage costs'!$C$16:$C$43,0))/1000),\"\")","v":""},{"$f":"IFERROR(IF(OR($C$67=FALSE,LEFT($B64,3)<>\"NOX\"),H56*INDEX('Damage costs'!$O$16:$O$43,MATCH($B64,'Damage costs'!$C$16:$C$43,0))/1000,H56*INDEX('Damage costs'!$S$16:$S$43,MATCH($B64,'Damage costs'!$C$16:$C$43,0))/1000),\"\")","v":""},{"$f":"IFERROR(IF(OR($C$67=FALSE,LEFT($B64,3)<>\"NOX\"),I56*INDEX('Damage costs'!$O$16:$O$43,MATCH($B64,'Damage costs'!$C$16:$C$43,0))/1000,I56*INDEX('Damage costs'!$S$16:$S$43,MATCH($B64,'Damage costs'!$C$16:$C$43,0))/1000),\"\")","v":""},{"$f":"IFERROR(IF(OR($C$67=FALSE,LEFT($B64,3)<>\"NOX\"),J56*INDEX('Damage costs'!$O$16:$O$43,MATCH($B64,'Damage costs'!$C$16:$C$43,0))/1000,J56*INDEX('Damage costs'!$S$16:$S$43,MATCH($B64,'Damage costs'!$C$16:$C$43,0))/1000),\"\")","v":""},{"$f":"IFERROR(IF(OR($C$67=FALSE,LEFT($B64,3)<>\"NOX\"),K56*INDEX('Damage costs'!$O$16:$O$43,MATCH($B64,'Damage costs'!$C$16:$C$43,0))/1000,K56*INDEX('Damage costs'!$S$16:$S$43,MATCH($B64,'Damage costs'!$C$16:$C$43,0))/1000),\"\")","v":""},{"$f":"IFERROR(IF(OR($C$67=FALSE,LEFT($B64,3)<>\"NOX\"),L56*INDEX('Damage costs'!$O$16:$O$43,MATCH($B64,'Damage costs'!$C$16:$C$43,0))/1000,L56*INDEX('Damage costs'!$S$16:$S$43,MATCH($B64,'Damage costs'!$C$16:$C$43,0))/1000),\"\")","v":""},{"$f":"IFERROR(IF(OR($C$67=FALSE,LEFT($B64,3)<>\"NOX\"),M56*INDEX('Damage costs'!$O$16:$O$43,MATCH($B64,'Damage costs'!$C$16:$C$43,0))/1000,M56*INDEX('Damage costs'!$S$16:$S$43,MATCH($B64,'Damage costs'!$C$16:$C$43,0))/1000),\"\")","v":""},{"$f":"IFERROR(IF(OR($C$67=FALSE,LEFT($B64,3)<>\"NOX\"),N56*INDEX('Damage costs'!$O$16:$O$43,MATCH($B64,'Damage costs'!$C$16:$C$43,0))/1000,N56*INDEX('Damage costs'!$S$16:$S$43,MATCH($B64,'Damage costs'!$C$16:$C$43,0))/1000),\"\")","v":""},{"$f":"IFERROR(IF(OR($C$67=FALSE,LEFT($B64,3)<>\"NOX\"),O56*INDEX('Damage costs'!$O$16:$O$43,MATCH($B64,'Damage costs'!$C$16:$C$43,0))/1000,O56*INDEX('Damage costs'!$S$16:$S$43,MATCH($B64,'Damage costs'!$C$16:$C$43,0))/1000),\"\")","v":""},{"$f":"IFERROR(IF(OR($C$67=FALSE,LEFT($B64,3)<>\"NOX\"),P56*INDEX('Damage costs'!$O$16:$O$43,MATCH($B64,'Damage costs'!$C$16:$C$43,0))/1000,P56*INDEX('Damage costs'!$S$16:$S$43,MATCH($B64,'Damage costs'!$C$16:$C$43,0))/1000),\"\")","v":""},{"$f":"IFERROR(IF(OR($C$67=FALSE,LEFT($B64,3)<>\"NOX\"),Q56*INDEX('Damage costs'!$O$16:$O$43,MATCH($B64,'Damage costs'!$C$16:$C$43,0))/1000,Q56*INDEX('Damage costs'!$S$16:$S$43,MATCH($B64,'Damage costs'!$C$16:$C$43,0))/1000),\"\")","v":""},{"$f":"IFERROR(IF(OR($C$67=FALSE,LEFT($B64,3)<>\"NOX\"),R56*INDEX('Damage costs'!$O$16:$O$43,MATCH($B64,'Damage costs'!$C$16:$C$43,0))/1000,R56*INDEX('Damage costs'!$S$16:$S$43,MATCH($B64,'Damage costs'!$C$16:$C$43,0))/1000),\"\")","v":""},{"$f":"IFERROR(IF(OR($C$67=FALSE,LEFT($B64,3)<>\"NOX\"),S56*INDEX('Damage costs'!$O$16:$O$43,MATCH($B64,'Damage costs'!$C$16:$C$43,0))/1000,S56*INDEX('Damage costs'!$S$16:$S$43,MATCH($B64,'Damage costs'!$C$16:$C$43,0))/1000),\"\")","v":""},{"$f":"IFERROR(IF(OR($C$67=FALSE,LEFT($B64,3)<>\"NOX\"),T56*INDEX('Damage costs'!$O$16:$O$43,MATCH($B64,'Damage costs'!$C$16:$C$43,0))/1000,T56*INDEX('Damage costs'!$S$16:$S$43,MATCH($B64,'Damage costs'!$C$16:$C$43,0))/1000),\"\")","v":""},{"$f":"IFERROR(IF(OR($C$67=FALSE,LEFT($B64,3)<>\"NOX\"),U56*INDEX('Damage costs'!$O$16:$O$43,MATCH($B64,'Damage costs'!$C$16:$C$43,0))/1000,U56*INDEX('Damage costs'!$S$16:$S$43,MATCH($B64,'Damage costs'!$C$16:$C$43,0))/1000),\"\")","v":""},{"$f":"IFERROR(IF(OR($C$67=FALSE,LEFT($B64,3)<>\"NOX\"),V56*INDEX('Damage costs'!$O$16:$O$43,MATCH($B64,'Damage costs'!$C$16:$C$43,0))/1000,V56*INDEX('Damage costs'!$S$16:$S$43,MATCH($B64,'Damage costs'!$C$16:$C$43,0))/1000),\"\")","v":""},{"$f":"IFERROR(IF(OR($C$67=FALSE,LEFT($B64,3)<>\"NOX\"),W56*INDEX('Damage costs'!$O$16:$O$43,MATCH($B64,'Damage costs'!$C$16:$C$43,0))/1000,W56*INDEX('Damage costs'!$S$16:$S$43,MATCH($B64,'Damage costs'!$C$16:$C$43,0))/1000),\"\")","v":""},{"$f":"IFERROR(IF(OR($C$67=FALSE,LEFT($B64,3)<>\"NOX\"),X56*INDEX('Damage costs'!$O$16:$O$43,MATCH($B64,'Damage costs'!$C$16:$C$43,0))/1000,X56*INDEX('Damage costs'!$S$16:$S$43,MATCH($B64,'Damage costs'!$C$16:$C$43,0))/1000),\"\")","v":""},{"$f":"IFERROR(IF(OR($C$67=FALSE,LEFT($B64,3)<>\"NOX\"),Y56*INDEX('Damage costs'!$O$16:$O$43,MATCH($B64,'Damage costs'!$C$16:$C$43,0))/1000,Y56*INDEX('Damage costs'!$S$16:$S$43,MATCH($B64,'Damage costs'!$C$16:$C$43,0))/1000),\"\")","v":""},{"$f":"IFERROR(IF(OR($C$67=FALSE,LEFT($B64,3)<>\"NOX\"),Z56*INDEX('Damage costs'!$O$16:$O$43,MATCH($B64,'Damage costs'!$C$16:$C$43,0))/1000,Z56*INDEX('Damage costs'!$S$16:$S$43,MATCH($B64,'Damage costs'!$C$16:$C$43,0))/1000),\"\")","v":""},{"$f":"IFERROR(IF(OR($C$67=FALSE,LEFT($B64,3)<>\"NOX\"),AA56*INDEX('Damage costs'!$O$16:$O$43,MATCH($B64,'Damage costs'!$C$16:$C$43,0))/1000,AA56*INDEX('Damage costs'!$S$16:$S$43,MATCH($B64,'Damage costs'!$C$16:$C$43,0))/1000),\"\")","v":""},{"$f":"IFERROR(IF(OR($C$67=FALSE,LEFT($B64,3)<>\"NOX\"),AB56*INDEX('Damage costs'!$O$16:$O$43,MATCH($B64,'Damage costs'!$C$16:$C$43,0))/1000,AB56*INDEX('Damage costs'!$S$16:$S$43,MATCH($B64,'Damage costs'!$C$16:$C$43,0))/1000),\"\")","v":""},{"$f":"IFERROR(IF(OR($C$67=FALSE,LEFT($B64,3)<>\"NOX\"),AC56*INDEX('Damage costs'!$O$16:$O$43,MATCH($B64,'Damage costs'!$C$16:$C$43,0))/1000,AC56*INDEX('Damage costs'!$S$16:$S$43,MATCH($B64,'Damage costs'!$C$16:$C$43,0))/1000),\"\")","v":""},{"$f":"IFERROR(IF(OR($C$67=FALSE,LEFT($B64,3)<>\"NOX\"),AD56*INDEX('Damage costs'!$O$16:$O$43,MATCH($B64,'Damage costs'!$C$16:$C$43,0))/1000,AD56*INDEX('Damage costs'!$S$16:$S$43,MATCH($B64,'Damage costs'!$C$16:$C$43,0))/1000),\"\")","v":""},{"$f":"IFERROR(IF(OR($C$67=FALSE,LEFT($B64,3)<>\"NOX\"),AE56*INDEX('Damage costs'!$O$16:$O$43,MATCH($B64,'Damage costs'!$C$16:$C$43,0))/1000,AE56*INDEX('Damage costs'!$S$16:$S$43,MATCH($B64,'Damage costs'!$C$16:$C$43,0))/1000),\"\")","v":""},{"$f":"IFERROR(IF(OR($C$67=FALSE,LEFT($B64,3)<>\"NOX\"),AF56*INDEX('Damage costs'!$O$16:$O$43,MATCH($B64,'Damage costs'!$C$16:$C$43,0))/1000,AF56*INDEX('Damage costs'!$S$16:$S$43,MATCH($B64,'Damage costs'!$C$16:$C$43,0))/1000),\"\")","v":""},{"$f":"IFERROR(IF(OR($C$67=FALSE,LEFT($B64,3)<>\"NOX\"),AG56*INDEX('Damage costs'!$O$16:$O$43,MATCH($B64,'Damage costs'!$C$16:$C$43,0))/1000,AG56*INDEX('Damage costs'!$S$16:$S$43,MATCH($B64,'Damage costs'!$C$16:$C$43,0))/1000),\"\")","v":""},{"$f":"IFERROR(IF(OR($C$67=FALSE,LEFT($B64,3)<>\"NOX\"),AH56*INDEX('Damage costs'!$O$16:$O$43,MATCH($B64,'Damage costs'!$C$16:$C$43,0))/1000,AH56*INDEX('Damage costs'!$S$16:$S$43,MATCH($B64,'Damage costs'!$C$16:$C$43,0))/1000),\"\")","v":""},{"$f":"IFERROR(IF(OR($C$67=FALSE,LEFT($B64,3)<>\"NOX\"),AI56*INDEX('Damage costs'!$O$16:$O$43,MATCH($B64,'Damage costs'!$C$16:$C$43,0))/1000,AI56*INDEX('Damage costs'!$S$16:$S$43,MATCH($B64,'Damage costs'!$C$16:$C$43,0))/1000),\"\")","v":""},{"$f":"IFERROR(IF(OR($C$67=FALSE,LEFT($B64,3)<>\"NOX\"),AJ56*INDEX('Damage costs'!$O$16:$O$43,MATCH($B64,'Damage costs'!$C$16:$C$43,0))/1000,AJ56*INDEX('Damage costs'!$S$16:$S$43,MATCH($B64,'Damage costs'!$C$16:$C$43,0))/1000),\"\")","v":""},{"$f":"IFERROR(IF(OR($C$67=FALSE,LEFT($B64,3)<>\"NOX\"),AK56*INDEX('Damage costs'!$O$16:$O$43,MATCH($B64,'Damage costs'!$C$16:$C$43,0))/1000,AK56*INDEX('Damage costs'!$S$16:$S$43,MATCH($B64,'Damage costs'!$C$16:$C$43,0))/1000),\"\")","v":""},{"$f":"IFERROR(IF(OR($C$67=FALSE,LEFT($B64,3)<>\"NOX\"),AL56*INDEX('Damage costs'!$O$16:$O$43,MATCH($B64,'Damage costs'!$C$16:$C$43,0))/1000,AL56*INDEX('Damage costs'!$S$16:$S$43,MATCH($B64,'Damage costs'!$C$16:$C$43,0))/1000),\"\")","v":""},{"$f":"IFERROR(IF(OR($C$67=FALSE,LEFT($B64,3)<>\"NOX\"),AM56*INDEX('Damage costs'!$O$16:$O$43,MATCH($B64,'Damage costs'!$C$16:$C$43,0))/1000,AM56*INDEX('Damage costs'!$S$16:$S$43,MATCH($B64,'Damage costs'!$C$16:$C$43,0))/1000),\"\")","v":""},{"$f":"IFERROR(IF(OR($C$67=FALSE,LEFT($B64,3)<>\"NOX\"),AN56*INDEX('Damage costs'!$O$16:$O$43,MATCH($B64,'Damage costs'!$C$16:$C$43,0))/1000,AN56*INDEX('Damage costs'!$S$16:$S$43,MATCH($B64,'Damage costs'!$C$16:$C$43,0))/1000),\"\")","v":""},{"$f":"IFERROR(IF(OR($C$67=FALSE,LEFT($B64,3)<>\"NOX\"),AO56*INDEX('Damage costs'!$O$16:$O$43,MATCH($B64,'Damage costs'!$C$16:$C$43,0))/1000,AO56*INDEX('Damage costs'!$S$16:$S$43,MATCH($B64,'Damage costs'!$C$16:$C$43,0))/1000),\"\")","v":""},{"$f":"IFERROR(IF(OR($C$67=FALSE,LEFT($B64,3)<>\"NOX\"),AP56*INDEX('Damage costs'!$O$16:$O$43,MATCH($B64,'Damage costs'!$C$16:$C$43,0))/1000,AP56*INDEX('Damage costs'!$S$16:$S$43,MATCH($B64,'Damage costs'!$C$16:$C$43,0))/1000),\"\")","v":""},{"$f":"IFERROR(IF(OR($C$67=FALSE,LEFT($B64,3)<>\"NOX\"),AQ56*INDEX('Damage costs'!$O$16:$O$43,MATCH($B64,'Damage costs'!$C$16:$C$43,0))/1000,AQ56*INDEX('Damage costs'!$S$16:$S$43,MATCH($B64,'Damage costs'!$C$16:$C$43,0))/1000),\"\")","v":""},{"$f":"IFERROR(IF(OR($C$67=FALSE,LEFT($B64,3)<>\"NOX\"),AR56*INDEX('Damage costs'!$O$16:$O$43,MATCH($B64,'Damage costs'!$C$16:$C$43,0))/1000,AR56*INDEX('Damage costs'!$S$16:$S$43,MATCH($B64,'Damage costs'!$C$16:$C$43,0))/1000),\"\")","v":""},{"$f":"IFERROR(IF(OR($C$67=FALSE,LEFT($B64,3)<>\"NOX\"),AS56*INDEX('Damage costs'!$O$16:$O$43,MATCH($B64,'Damage costs'!$C$16:$C$43,0))/1000,AS56*INDEX('Damage costs'!$S$16:$S$43,MATCH($B64,'Damage costs'!$C$16:$C$43,0))/1000),\"\")","v":""},{"$f":"IFERROR(IF(OR($C$67=FALSE,LEFT($B64,3)<>\"NOX\"),AT56*INDEX('Damage costs'!$O$16:$O$43,MATCH($B64,'Damage costs'!$C$16:$C$43,0))/1000,AT56*INDEX('Damage costs'!$S$16:$S$43,MATCH($B64,'Damage costs'!$C$16:$C$43,0))/1000),\"\")","v":""},{"$f":"IFERROR(IF(OR($C$67=FALSE,LEFT($B64,3)<>\"NOX\"),AU56*INDEX('Damage costs'!$O$16:$O$43,MATCH($B64,'Damage costs'!$C$16:$C$43,0))/1000,AU56*INDEX('Damage costs'!$S$16:$S$43,MATCH($B64,'Damage costs'!$C$16:$C$43,0))/1000),\"\")","v":""},{"$f":"IFERROR(IF(OR($C$67=FALSE,LEFT($B64,3)<>\"NOX\"),AV56*INDEX('Damage costs'!$O$16:$O$43,MATCH($B64,'Damage costs'!$C$16:$C$43,0))/1000,AV56*INDEX('Damage costs'!$S$16:$S$43,MATCH($B64,'Damage costs'!$C$16:$C$43,0))/1000),\"\")","v":""},{"$f":"IFERROR(IF(OR($C$67=FALSE,LEFT($B64,3)<>\"NOX\"),AW56*INDEX('Damage costs'!$O$16:$O$43,MATCH($B64,'Damage costs'!$C$16:$C$43,0))/1000,AW56*INDEX('Damage costs'!$S$16:$S$43,MATCH($B64,'Damage costs'!$C$16:$C$43,0))/1000),\"\")","v":""},{"$f":"IFERROR(IF(OR($C$67=FALSE,LEFT($B64,3)<>\"NOX\"),AX56*INDEX('Damage costs'!$O$16:$O$43,MATCH($B64,'Damage costs'!$C$16:$C$43,0))/1000,AX56*INDEX('Damage costs'!$S$16:$S$43,MATCH($B64,'Damage costs'!$C$16:$C$43,0))/1000),\"\")","v":""},{"$f":"IFERROR(IF(OR($C$67=FALSE,LEFT($B64,3)<>\"NOX\"),AY56*INDEX('Damage costs'!$O$16:$O$43,MATCH($B64,'Damage costs'!$C$16:$C$43,0))/1000,AY56*INDEX('Damage costs'!$S$16:$S$43,MATCH($B64,'Damage costs'!$C$16:$C$43,0))/1000),\"\")","v":""},{"$f":"IFERROR(IF(OR($C$67=FALSE,LEFT($B64,3)<>\"NOX\"),AZ56*INDEX('Damage costs'!$O$16:$O$43,MATCH($B64,'Damage costs'!$C$16:$C$43,0))/1000,AZ56*INDEX('Damage costs'!$S$16:$S$43,MATCH($B64,'Damage costs'!$C$16:$C$43,0))/1000),\"\")","v":""},{"$f":"IFERROR(IF(OR($C$67=FALSE,LEFT($B64,3)<>\"NOX\"),BA56*INDEX('Damage costs'!$O$16:$O$43,MATCH($B64,'Damage costs'!$C$16:$C$43,0))/1000,BA56*INDEX('Damage costs'!$S$16:$S$43,MATCH($B64,'Damage costs'!$C$16:$C$43,0))/1000),\"\")","v":""},{"$f":"IFERROR(IF(OR($C$67=FALSE,LEFT($B64,3)<>\"NOX\"),BB56*INDEX('Damage costs'!$O$16:$O$43,MATCH($B64,'Damage costs'!$C$16:$C$43,0))/1000,BB56*INDEX('Damage costs'!$S$16:$S$43,MATCH($B64,'Damage costs'!$C$16:$C$43,0))/1000),\"\")","v":""},{"$f":"IFERROR(IF(OR($C$67=FALSE,LEFT($B64,3)<>\"NOX\"),BC56*INDEX('Damage costs'!$O$16:$O$43,MATCH($B64,'Damage costs'!$C$16:$C$43,0))/1000,BC56*INDEX('Damage costs'!$S$16:$S$43,MATCH($B64,'Damage costs'!$C$16:$C$43,0))/1000),\"\")","v":""},{"$f":"IFERROR(IF(OR($C$67=FALSE,LEFT($B64,3)<>\"NOX\"),BD56*INDEX('Damage costs'!$O$16:$O$43,MATCH($B64,'Damage costs'!$C$16:$C$43,0))/1000,BD56*INDEX('Damage costs'!$S$16:$S$43,MATCH($B64,'Damage costs'!$C$16:$C$43,0))/1000),\"\")","v":""},{"$f":"IFERROR(IF(OR($C$67=FALSE,LEFT($B64,3)<>\"NOX\"),BE56*INDEX('Damage costs'!$O$16:$O$43,MATCH($B64,'Damage costs'!$C$16:$C$43,0))/1000,BE56*INDEX('Damage costs'!$S$16:$S$43,MATCH($B64,'Damage costs'!$C$16:$C$43,0))/1000),\"\")","v":""},{"$f":"IFERROR(IF(OR($C$67=FALSE,LEFT($B64,3)<>\"NOX\"),BF56*INDEX('Damage costs'!$O$16:$O$43,MATCH($B64,'Damage costs'!$C$16:$C$43,0))/1000,BF56*INDEX('Damage costs'!$S$16:$S$43,MATCH($B64,'Damage costs'!$C$16:$C$43,0))/1000),\"\")","v":""},{"$f":"IFERROR(IF(OR($C$67=FALSE,LEFT($B64,3)<>\"NOX\"),BG56*INDEX('Damage costs'!$O$16:$O$43,MATCH($B64,'Damage costs'!$C$16:$C$43,0))/1000,BG56*INDEX('Damage costs'!$S$16:$S$43,MATCH($B64,'Damage costs'!$C$16:$C$43,0))/1000),\"\")","v":""},{"$f":"IFERROR(IF(OR($C$67=FALSE,LEFT($B64,3)<>\"NOX\"),BH56*INDEX('Damage costs'!$O$16:$O$43,MATCH($B64,'Damage costs'!$C$16:$C$43,0))/1000,BH56*INDEX('Damage costs'!$S$16:$S$43,MATCH($B64,'Damage costs'!$C$16:$C$43,0))/1000),\"\")","v":""},{"$f":"IFERROR(IF(OR($C$67=FALSE,LEFT($B64,3)<>\"NOX\"),BI56*INDEX('Damage costs'!$O$16:$O$43,MATCH($B64,'Damage costs'!$C$16:$C$43,0))/1000,BI56*INDEX('Damage costs'!$S$16:$S$43,MATCH($B64,'Damage costs'!$C$16:$C$43,0))/1000),\"\")","v":""},{"$f":"IFERROR(IF(OR($C$67=FALSE,LEFT($B64,3)<>\"NOX\"),BJ56*INDEX('Damage costs'!$O$16:$O$43,MATCH($B64,'Damage costs'!$C$16:$C$43,0))/1000,BJ56*INDEX('Damage costs'!$S$16:$S$43,MATCH($B64,'Damage costs'!$C$16:$C$43,0))/1000),\"\")","v":""},{"$f":"IFERROR(IF(OR($C$67=FALSE,LEFT($B64,3)<>\"NOX\"),BK56*INDEX('Damage costs'!$O$16:$O$43,MATCH($B64,'Damage costs'!$C$16:$C$43,0))/1000,BK56*INDEX('Damage costs'!$S$16:$S$43,MATCH($B64,'Damage costs'!$C$16:$C$43,0))/1000),\"\")","v":""},{"$f":"IFERROR(IF(OR($C$67=FALSE,LEFT($B64,3)<>\"NOX\"),BL56*INDEX('Damage costs'!$O$16:$O$43,MATCH($B64,'Damage costs'!$C$16:$C$43,0))/1000,BL56*INDEX('Damage costs'!$S$16:$S$43,MATCH($B64,'Damage costs'!$C$16:$C$43,0))/1000),\"\")","v":""},{"$f":"IFERROR(IF(OR($C$67=FALSE,LEFT($B64,3)<>\"NOX\"),BM56*INDEX('Damage costs'!$O$16:$O$43,MATCH($B64,'Damage costs'!$C$16:$C$43,0))/1000,BM56*INDEX('Damage costs'!$S$16:$S$43,MATCH($B64,'Damage costs'!$C$16:$C$43,0))/1000),\"\")","v":""},{"$f":"IFERROR(IF(OR($C$67=FALSE,LEFT($B64,3)<>\"NOX\"),BN56*INDEX('Damage costs'!$O$16:$O$43,MATCH($B64,'Damage costs'!$C$16:$C$43,0))/1000,BN56*INDEX('Damage costs'!$S$16:$S$43,MATCH($B64,'Damage costs'!$C$16:$C$43,0))/1000),\"\")","v":""},{"$f":"IFERROR(IF(OR($C$67=FALSE,LEFT($B64,3)<>\"NOX\"),BO56*INDEX('Damage costs'!$O$16:$O$43,MATCH($B64,'Damage costs'!$C$16:$C$43,0))/1000,BO56*INDEX('Damage costs'!$S$16:$S$43,MATCH($B64,'Damage costs'!$C$16:$C$43,0))/1000),\"\")","v":""},{"$f":"IFERROR(IF(OR($C$67=FALSE,LEFT($B64,3)<>\"NOX\"),BP56*INDEX('Damage costs'!$O$16:$O$43,MATCH($B64,'Damage costs'!$C$16:$C$43,0))/1000,BP56*INDEX('Damage costs'!$S$16:$S$43,MATCH($B64,'Damage costs'!$C$16:$C$43,0))/1000),\"\")","v":""},{"$f":"IFERROR(IF(OR($C$67=FALSE,LEFT($B64,3)<>\"NOX\"),BQ56*INDEX('Damage costs'!$O$16:$O$43,MATCH($B64,'Damage costs'!$C$16:$C$43,0))/1000,BQ56*INDEX('Damage costs'!$S$16:$S$43,MATCH($B64,'Damage costs'!$C$16:$C$43,0))/1000),\"\")","v":""},{"$f":"IFERROR(IF(OR($C$67=FALSE,LEFT($B64,3)<>\"NOX\"),BR56*INDEX('Damage costs'!$O$16:$O$43,MATCH($B64,'Damage costs'!$C$16:$C$43,0))/1000,BR56*INDEX('Damage costs'!$S$16:$S$43,MATCH($B64,'Damage costs'!$C$16:$C$43,0))/1000),\"\")","v":""},{"$f":"IFERROR(IF(OR($C$67=FALSE,LEFT($B64,3)<>\"NOX\"),BS56*INDEX('Damage costs'!$O$16:$O$43,MATCH($B64,'Damage costs'!$C$16:$C$43,0))/1000,BS56*INDEX('Damage costs'!$S$16:$S$43,MATCH($B64,'Damage costs'!$C$16:$C$43,0))/1000),\"\")","v":""},{"$f":"IFERROR(IF(OR($C$67=FALSE,LEFT($B64,3)<>\"NOX\"),BT56*INDEX('Damage costs'!$O$16:$O$43,MATCH($B64,'Damage costs'!$C$16:$C$43,0))/1000,BT56*INDEX('Damage costs'!$S$16:$S$43,MATCH($B64,'Damage costs'!$C$16:$C$43,0))/1000),\"\")","v":""},{"$f":"IFERROR(IF(OR($C$67=FALSE,LEFT($B64,3)<>\"NOX\"),BU56*INDEX('Damage costs'!$O$16:$O$43,MATCH($B64,'Damage costs'!$C$16:$C$43,0))/1000,BU56*INDEX('Damage costs'!$S$16:$S$43,MATCH($B64,'Damage costs'!$C$16:$C$43,0))/1000),\"\")","v":""},{"$f":"IFERROR(IF(OR($C$67=FALSE,LEFT($B64,3)<>\"NOX\"),BV56*INDEX('Damage costs'!$O$16:$O$43,MATCH($B64,'Damage costs'!$C$16:$C$43,0))/1000,BV56*INDEX('Damage costs'!$S$16:$S$43,MATCH($B64,'Damage costs'!$C$16:$C$43,0))/1000),\"\")","v":""},{"$f":"IFERROR(IF(OR($C$67=FALSE,LEFT($B64,3)<>\"NOX\"),BW56*INDEX('Damage costs'!$O$16:$O$43,MATCH($B64,'Damage costs'!$C$16:$C$43,0))/1000,BW56*INDEX('Damage costs'!$S$16:$S$43,MATCH($B64,'Damage costs'!$C$16:$C$43,0))/1000),\"\")","v":""},{"$f":"IFERROR(IF(OR($C$67=FALSE,LEFT($B64,3)<>\"NOX\"),BX56*INDEX('Damage costs'!$O$16:$O$43,MATCH($B64,'Damage costs'!$C$16:$C$43,0))/1000,BX56*INDEX('Damage costs'!$S$16:$S$43,MATCH($B64,'Damage costs'!$C$16:$C$43,0))/1000),\"\")","v":""},{"$f":"IFERROR(IF(OR($C$67=FALSE,LEFT($B64,3)<>\"NOX\"),BY56*INDEX('Damage costs'!$O$16:$O$43,MATCH($B64,'Damage costs'!$C$16:$C$43,0))/1000,BY56*INDEX('Damage costs'!$S$16:$S$43,MATCH($B64,'Damage costs'!$C$16:$C$43,0))/1000),\"\")","v":""},{"$f":"IFERROR(IF(OR($C$67=FALSE,LEFT($B64,3)<>\"NOX\"),BZ56*INDEX('Damage costs'!$O$16:$O$43,MATCH($B64,'Damage costs'!$C$16:$C$43,0))/1000,BZ56*INDEX('Damage costs'!$S$16:$S$43,MATCH($B64,'Damage costs'!$C$16:$C$43,0))/1000),\"\")","v":""},{"$f":"IFERROR(IF(OR($C$67=FALSE,LEFT($B64,3)<>\"NOX\"),CA56*INDEX('Damage costs'!$O$16:$O$43,MATCH($B64,'Damage costs'!$C$16:$C$43,0))/1000,CA56*INDEX('Damage costs'!$S$16:$S$43,MATCH($B64,'Damage costs'!$C$16:$C$43,0))/1000),\"\")","v":""},{"$f":"IFERROR(IF(OR($C$67=FALSE,LEFT($B64,3)<>\"NOX\"),CB56*INDEX('Damage costs'!$O$16:$O$43,MATCH($B64,'Damage costs'!$C$16:$C$43,0))/1000,CB56*INDEX('Damage costs'!$S$16:$S$43,MATCH($B64,'Damage costs'!$C$16:$C$43,0))/1000),\"\")","v":""},{"$f":"IFERROR(IF(OR($C$67=FALSE,LEFT($B64,3)<>\"NOX\"),CC56*INDEX('Damage costs'!$O$16:$O$43,MATCH($B64,'Damage costs'!$C$16:$C$43,0))/1000,CC56*INDEX('Damage costs'!$S$16:$S$43,MATCH($B64,'Damage costs'!$C$16:$C$43,0))/1000),\"\")","v":""},{"$f":"IFERROR(IF(OR($C$67=FALSE,LEFT($B64,3)<>\"NOX\"),CD56*INDEX('Damage costs'!$O$16:$O$43,MATCH($B64,'Damage costs'!$C$16:$C$43,0))/1000,CD56*INDEX('Damage costs'!$S$16:$S$43,MATCH($B64,'Damage costs'!$C$16:$C$43,0))/1000),\"\")","v":""},{"$f":"IFERROR(IF(OR($C$67=FALSE,LEFT($B64,3)<>\"NOX\"),CE56*INDEX('Damage costs'!$O$16:$O$43,MATCH($B64,'Damage costs'!$C$16:$C$43,0))/1000,CE56*INDEX('Damage costs'!$S$16:$S$43,MATCH($B64,'Damage costs'!$C$16:$C$43,0))/1000),\"\")","v":""},{"$f":"IFERROR(IF(OR($C$67=FALSE,LEFT($B64,3)<>\"NOX\"),CF56*INDEX('Damage costs'!$O$16:$O$43,MATCH($B64,'Damage costs'!$C$16:$C$43,0))/1000,CF56*INDEX('Damage costs'!$S$16:$S$43,MATCH($B64,'Damage costs'!$C$16:$C$43,0))/1000),\"\")","v":""},{"$f":"IFERROR(IF(OR($C$67=FALSE,LEFT($B64,3)<>\"NOX\"),CG56*INDEX('Damage costs'!$O$16:$O$43,MATCH($B64,'Damage costs'!$C$16:$C$43,0))/1000,CG56*INDEX('Damage costs'!$S$16:$S$43,MATCH($B64,'Damage costs'!$C$16:$C$43,0))/1000),\"\")","v":""},{"$f":"IFERROR(IF(OR($C$67=FALSE,LEFT($B64,3)<>\"NOX\"),CH56*INDEX('Damage costs'!$O$16:$O$43,MATCH($B64,'Damage costs'!$C$16:$C$43,0))/1000,CH56*INDEX('Damage costs'!$S$16:$S$43,MATCH($B64,'Damage costs'!$C$16:$C$43,0))/1000),\"\")","v":""},{"$f":"IFERROR(IF(OR($C$67=FALSE,LEFT($B64,3)<>\"NOX\"),CI56*INDEX('Damage costs'!$O$16:$O$43,MATCH($B64,'Damage costs'!$C$16:$C$43,0))/1000,CI56*INDEX('Damage costs'!$S$16:$S$43,MATCH($B64,'Damage costs'!$C$16:$C$43,0))/1000),\"\")","v":""},{"$f":"IFERROR(IF(OR($C$67=FALSE,LEFT($B64,3)<>\"NOX\"),CJ56*INDEX('Damage costs'!$O$16:$O$43,MATCH($B64,'Damage costs'!$C$16:$C$43,0))/1000,CJ56*INDEX('Damage costs'!$S$16:$S$43,MATCH($B64,'Damage costs'!$C$16:$C$43,0))/1000),\"\")","v":""},{"$f":"IFERROR(IF(OR($C$67=FALSE,LEFT($B64,3)<>\"NOX\"),CK56*INDEX('Damage costs'!$O$16:$O$43,MATCH($B64,'Damage costs'!$C$16:$C$43,0))/1000,CK56*INDEX('Damage costs'!$S$16:$S$43,MATCH($B64,'Damage costs'!$C$16:$C$43,0))/1000),\"\")","v":""},{"$f":"IFERROR(IF(OR($C$67=FALSE,LEFT($B64,3)<>\"NOX\"),CL56*INDEX('Damage costs'!$O$16:$O$43,MATCH($B64,'Damage costs'!$C$16:$C$43,0))/1000,CL56*INDEX('Damage costs'!$S$16:$S$43,MATCH($B64,'Damage costs'!$C$16:$C$43,0))/1000),\"\")","v":""},{"$f":"IFERROR(IF(OR($C$67=FALSE,LEFT($B64,3)<>\"NOX\"),CM56*INDEX('Damage costs'!$O$16:$O$43,MATCH($B64,'Damage costs'!$C$16:$C$43,0))/1000,CM56*INDEX('Damage costs'!$S$16:$S$43,MATCH($B64,'Damage costs'!$C$16:$C$43,0))/1000),\"\")","v":""},{"$f":"IFERROR(IF(OR($C$67=FALSE,LEFT($B64,3)<>\"NOX\"),CN56*INDEX('Damage costs'!$O$16:$O$43,MATCH($B64,'Damage costs'!$C$16:$C$43,0))/1000,CN56*INDEX('Damage costs'!$S$16:$S$43,MATCH($B64,'Damage costs'!$C$16:$C$43,0))/1000),\"\")","v":""},{"$f":"IFERROR(IF(OR($C$67=FALSE,LEFT($B64,3)<>\"NOX\"),CO56*INDEX('Damage costs'!$O$16:$O$43,MATCH($B64,'Damage costs'!$C$16:$C$43,0))/1000,CO56*INDEX('Damage costs'!$S$16:$S$43,MATCH($B64,'Damage costs'!$C$16:$C$43,0))/1000),\"\")","v":""},{"$f":"IFERROR(IF(OR($C$67=FALSE,LEFT($B64,3)<>\"NOX\"),CP56*INDEX('Damage costs'!$O$16:$O$43,MATCH($B64,'Damage costs'!$C$16:$C$43,0))/1000,CP56*INDEX('Damage costs'!$S$16:$S$43,MATCH($B64,'Damage costs'!$C$16:$C$43,0))/1000),\"\")","v":""},{"$f":"IFERROR(IF(OR($C$67=FALSE,LEFT($B64,3)<>\"NOX\"),CQ56*INDEX('Damage costs'!$O$16:$O$43,MATCH($B64,'Damage costs'!$C$16:$C$43,0))/1000,CQ56*INDEX('Damage costs'!$S$16:$S$43,MATCH($B64,'Damage costs'!$C$16:$C$43,0))/1000),\"\")","v":""},{"$f":"IFERROR(IF(OR($C$67=FALSE,LEFT($B64,3)<>\"NOX\"),CR56*INDEX('Damage costs'!$O$16:$O$43,MATCH($B64,'Damage costs'!$C$16:$C$43,0))/1000,CR56*INDEX('Damage costs'!$S$16:$S$43,MATCH($B64,'Damage costs'!$C$16:$C$43,0))/1000),\"\")","v":""},{"$f":"IFERROR(IF(OR($C$67=FALSE,LEFT($B64,3)<>\"NOX\"),CS56*INDEX('Damage costs'!$O$16:$O$43,MATCH($B64,'Damage costs'!$C$16:$C$43,0))/1000,CS56*INDEX('Damage costs'!$S$16:$S$43,MATCH($B64,'Damage costs'!$C$16:$C$43,0))/1000),\"\")","v":""},{"$f":"IFERROR(IF(OR($C$67=FALSE,LEFT($B64,3)<>\"NOX\"),CT56*INDEX('Damage costs'!$O$16:$O$43,MATCH($B64,'Damage costs'!$C$16:$C$43,0))/1000,CT56*INDEX('Damage costs'!$S$16:$S$43,MATCH($B64,'Damage costs'!$C$16:$C$43,0))/1000),\"\")","v":""},{"$f":"IFERROR(IF(OR($C$67=FALSE,LEFT($B64,3)<>\"NOX\"),CU56*INDEX('Damage costs'!$O$16:$O$43,MATCH($B64,'Damage costs'!$C$16:$C$43,0))/1000,CU56*INDEX('Damage costs'!$S$16:$S$43,MATCH($B64,'Damage costs'!$C$16:$C$43,0))/1000),\"\")","v":""},{"$f":"IFERROR(IF(OR($C$67=FALSE,LEFT($B64,3)<>\"NOX\"),CV56*INDEX('Damage costs'!$O$16:$O$43,MATCH($B64,'Damage costs'!$C$16:$C$43,0))/1000,CV56*INDEX('Damage costs'!$S$16:$S$43,MATCH($B64,'Damage costs'!$C$16:$C$43,0))/1000),\"\")","v":""},{"$f":"IFERROR(IF(OR($C$67=FALSE,LEFT($B64,3)<>\"NOX\"),CW56*INDEX('Damage costs'!$O$16:$O$43,MATCH($B64,'Damage costs'!$C$16:$C$43,0))/1000,CW56*INDEX('Damage costs'!$S$16:$S$43,MATCH($B64,'Damage costs'!$C$16:$C$43,0))/1000),\"\")","v":""},{"$f":"IFERROR(IF(OR($C$67=FALSE,LEFT($B64,3)<>\"NOX\"),CX56*INDEX('Damage costs'!$O$16:$O$43,MATCH($B64,'Damage costs'!$C$16:$C$43,0))/1000,CX56*INDEX('Damage costs'!$S$16:$S$43,MATCH($B64,'Damage costs'!$C$16:$C$43,0))/1000),\"\")","v":""},{"$f":"IFERROR(IF(OR($C$67=FALSE,LEFT($B64,3)<>\"NOX\"),CY56*INDEX('Damage costs'!$O$16:$O$43,MATCH($B64,'Damage costs'!$C$16:$C$43,0))/1000,CY56*INDEX('Damage costs'!$S$16:$S$43,MATCH($B64,'Damage costs'!$C$16:$C$43,0))/1000),\"\")","v":""}]
[null,0,"£000's",{"$f":"IFERROR(IF(OR($C$67=FALSE,LEFT($B65,3)<>\"NOX\"),D57*INDEX('Damage costs'!$O$16:$O$43,MATCH($B65,'Damage costs'!$C$16:$C$43,0))/1000,D57*INDEX('Damage costs'!$S$16:$S$43,MATCH($B65,'Damage costs'!$C$16:$C$43,0))/1000),\"\")","v":""},{"$f":"IFERROR(IF(OR($C$67=FALSE,LEFT($B65,3)<>\"NOX\"),E57*INDEX('Damage costs'!$O$16:$O$43,MATCH($B65,'Damage costs'!$C$16:$C$43,0))/1000,E57*INDEX('Damage costs'!$S$16:$S$43,MATCH($B65,'Damage costs'!$C$16:$C$43,0))/1000),\"\")","v":""},{"$f":"IFERROR(IF(OR($C$67=FALSE,LEFT($B65,3)<>\"NOX\"),F57*INDEX('Damage costs'!$O$16:$O$43,MATCH($B65,'Damage costs'!$C$16:$C$43,0))/1000,F57*INDEX('Damage costs'!$S$16:$S$43,MATCH($B65,'Damage costs'!$C$16:$C$43,0))/1000),\"\")","v":""},{"$f":"IFERROR(IF(OR($C$67=FALSE,LEFT($B65,3)<>\"NOX\"),G57*INDEX('Damage costs'!$O$16:$O$43,MATCH($B65,'Damage costs'!$C$16:$C$43,0))/1000,G57*INDEX('Damage costs'!$S$16:$S$43,MATCH($B65,'Damage costs'!$C$16:$C$43,0))/1000),\"\")","v":""},{"$f":"IFERROR(IF(OR($C$67=FALSE,LEFT($B65,3)<>\"NOX\"),H57*INDEX('Damage costs'!$O$16:$O$43,MATCH($B65,'Damage costs'!$C$16:$C$43,0))/1000,H57*INDEX('Damage costs'!$S$16:$S$43,MATCH($B65,'Damage costs'!$C$16:$C$43,0))/1000),\"\")","v":""},{"$f":"IFERROR(IF(OR($C$67=FALSE,LEFT($B65,3)<>\"NOX\"),I57*INDEX('Damage costs'!$O$16:$O$43,MATCH($B65,'Damage costs'!$C$16:$C$43,0))/1000,I57*INDEX('Damage costs'!$S$16:$S$43,MATCH($B65,'Damage costs'!$C$16:$C$43,0))/1000),\"\")","v":""},{"$f":"IFERROR(IF(OR($C$67=FALSE,LEFT($B65,3)<>\"NOX\"),J57*INDEX('Damage costs'!$O$16:$O$43,MATCH($B65,'Damage costs'!$C$16:$C$43,0))/1000,J57*INDEX('Damage costs'!$S$16:$S$43,MATCH($B65,'Damage costs'!$C$16:$C$43,0))/1000),\"\")","v":""},{"$f":"IFERROR(IF(OR($C$67=FALSE,LEFT($B65,3)<>\"NOX\"),K57*INDEX('Damage costs'!$O$16:$O$43,MATCH($B65,'Damage costs'!$C$16:$C$43,0))/1000,K57*INDEX('Damage costs'!$S$16:$S$43,MATCH($B65,'Damage costs'!$C$16:$C$43,0))/1000),\"\")","v":""},{"$f":"IFERROR(IF(OR($C$67=FALSE,LEFT($B65,3)<>\"NOX\"),L57*INDEX('Damage costs'!$O$16:$O$43,MATCH($B65,'Damage costs'!$C$16:$C$43,0))/1000,L57*INDEX('Damage costs'!$S$16:$S$43,MATCH($B65,'Damage costs'!$C$16:$C$43,0))/1000),\"\")","v":""},{"$f":"IFERROR(IF(OR($C$67=FALSE,LEFT($B65,3)<>\"NOX\"),M57*INDEX('Damage costs'!$O$16:$O$43,MATCH($B65,'Damage costs'!$C$16:$C$43,0))/1000,M57*INDEX('Damage costs'!$S$16:$S$43,MATCH($B65,'Damage costs'!$C$16:$C$43,0))/1000),\"\")","v":""},{"$f":"IFERROR(IF(OR($C$67=FALSE,LEFT($B65,3)<>\"NOX\"),N57*INDEX('Damage costs'!$O$16:$O$43,MATCH($B65,'Damage costs'!$C$16:$C$43,0))/1000,N57*INDEX('Damage costs'!$S$16:$S$43,MATCH($B65,'Damage costs'!$C$16:$C$43,0))/1000),\"\")","v":""},{"$f":"IFERROR(IF(OR($C$67=FALSE,LEFT($B65,3)<>\"NOX\"),O57*INDEX('Damage costs'!$O$16:$O$43,MATCH($B65,'Damage costs'!$C$16:$C$43,0))/1000,O57*INDEX('Damage costs'!$S$16:$S$43,MATCH($B65,'Damage costs'!$C$16:$C$43,0))/1000),\"\")","v":""},{"$f":"IFERROR(IF(OR($C$67=FALSE,LEFT($B65,3)<>\"NOX\"),P57*INDEX('Damage costs'!$O$16:$O$43,MATCH($B65,'Damage costs'!$C$16:$C$43,0))/1000,P57*INDEX('Damage costs'!$S$16:$S$43,MATCH($B65,'Damage costs'!$C$16:$C$43,0))/1000),\"\")","v":""},{"$f":"IFERROR(IF(OR($C$67=FALSE,LEFT($B65,3)<>\"NOX\"),Q57*INDEX('Damage costs'!$O$16:$O$43,MATCH($B65,'Damage costs'!$C$16:$C$43,0))/1000,Q57*INDEX('Damage costs'!$S$16:$S$43,MATCH($B65,'Damage costs'!$C$16:$C$43,0))/1000),\"\")","v":""},{"$f":"IFERROR(IF(OR($C$67=FALSE,LEFT($B65,3)<>\"NOX\"),R57*INDEX('Damage costs'!$O$16:$O$43,MATCH($B65,'Damage costs'!$C$16:$C$43,0))/1000,R57*INDEX('Damage costs'!$S$16:$S$43,MATCH($B65,'Damage costs'!$C$16:$C$43,0))/1000),\"\")","v":""},{"$f":"IFERROR(IF(OR($C$67=FALSE,LEFT($B65,3)<>\"NOX\"),S57*INDEX('Damage costs'!$O$16:$O$43,MATCH($B65,'Damage costs'!$C$16:$C$43,0))/1000,S57*INDEX('Damage costs'!$S$16:$S$43,MATCH($B65,'Damage costs'!$C$16:$C$43,0))/1000),\"\")","v":""},{"$f":"IFERROR(IF(OR($C$67=FALSE,LEFT($B65,3)<>\"NOX\"),T57*INDEX('Damage costs'!$O$16:$O$43,MATCH($B65,'Damage costs'!$C$16:$C$43,0))/1000,T57*INDEX('Damage costs'!$S$16:$S$43,MATCH($B65,'Damage costs'!$C$16:$C$43,0))/1000),\"\")","v":""},{"$f":"IFERROR(IF(OR($C$67=FALSE,LEFT($B65,3)<>\"NOX\"),U57*INDEX('Damage costs'!$O$16:$O$43,MATCH($B65,'Damage costs'!$C$16:$C$43,0))/1000,U57*INDEX('Damage costs'!$S$16:$S$43,MATCH($B65,'Damage costs'!$C$16:$C$43,0))/1000),\"\")","v":""},{"$f":"IFERROR(IF(OR($C$67=FALSE,LEFT($B65,3)<>\"NOX\"),V57*INDEX('Damage costs'!$O$16:$O$43,MATCH($B65,'Damage costs'!$C$16:$C$43,0))/1000,V57*INDEX('Damage costs'!$S$16:$S$43,MATCH($B65,'Damage costs'!$C$16:$C$43,0))/1000),\"\")","v":""},{"$f":"IFERROR(IF(OR($C$67=FALSE,LEFT($B65,3)<>\"NOX\"),W57*INDEX('Damage costs'!$O$16:$O$43,MATCH($B65,'Damage costs'!$C$16:$C$43,0))/1000,W57*INDEX('Damage costs'!$S$16:$S$43,MATCH($B65,'Damage costs'!$C$16:$C$43,0))/1000),\"\")","v":""},{"$f":"IFERROR(IF(OR($C$67=FALSE,LEFT($B65,3)<>\"NOX\"),X57*INDEX('Damage costs'!$O$16:$O$43,MATCH($B65,'Damage costs'!$C$16:$C$43,0))/1000,X57*INDEX('Damage costs'!$S$16:$S$43,MATCH($B65,'Damage costs'!$C$16:$C$43,0))/1000),\"\")","v":""},{"$f":"IFERROR(IF(OR($C$67=FALSE,LEFT($B65,3)<>\"NOX\"),Y57*INDEX('Damage costs'!$O$16:$O$43,MATCH($B65,'Damage costs'!$C$16:$C$43,0))/1000,Y57*INDEX('Damage costs'!$S$16:$S$43,MATCH($B65,'Damage costs'!$C$16:$C$43,0))/1000),\"\")","v":""},{"$f":"IFERROR(IF(OR($C$67=FALSE,LEFT($B65,3)<>\"NOX\"),Z57*INDEX('Damage costs'!$O$16:$O$43,MATCH($B65,'Damage costs'!$C$16:$C$43,0))/1000,Z57*INDEX('Damage costs'!$S$16:$S$43,MATCH($B65,'Damage costs'!$C$16:$C$43,0))/1000),\"\")","v":""},{"$f":"IFERROR(IF(OR($C$67=FALSE,LEFT($B65,3)<>\"NOX\"),AA57*INDEX('Damage costs'!$O$16:$O$43,MATCH($B65,'Damage costs'!$C$16:$C$43,0))/1000,AA57*INDEX('Damage costs'!$S$16:$S$43,MATCH($B65,'Damage costs'!$C$16:$C$43,0))/1000),\"\")","v":""},{"$f":"IFERROR(IF(OR($C$67=FALSE,LEFT($B65,3)<>\"NOX\"),AB57*INDEX('Damage costs'!$O$16:$O$43,MATCH($B65,'Damage costs'!$C$16:$C$43,0))/1000,AB57*INDEX('Damage costs'!$S$16:$S$43,MATCH($B65,'Damage costs'!$C$16:$C$43,0))/1000),\"\")","v":""},{"$f":"IFERROR(IF(OR($C$67=FALSE,LEFT($B65,3)<>\"NOX\"),AC57*INDEX('Damage costs'!$O$16:$O$43,MATCH($B65,'Damage costs'!$C$16:$C$43,0))/1000,AC57*INDEX('Damage costs'!$S$16:$S$43,MATCH($B65,'Damage costs'!$C$16:$C$43,0))/1000),\"\")","v":""},{"$f":"IFERROR(IF(OR($C$67=FALSE,LEFT($B65,3)<>\"NOX\"),AD57*INDEX('Damage costs'!$O$16:$O$43,MATCH($B65,'Damage costs'!$C$16:$C$43,0))/1000,AD57*INDEX('Damage costs'!$S$16:$S$43,MATCH($B65,'Damage costs'!$C$16:$C$43,0))/1000),\"\")","v":""},{"$f":"IFERROR(IF(OR($C$67=FALSE,LEFT($B65,3)<>\"NOX\"),AE57*INDEX('Damage costs'!$O$16:$O$43,MATCH($B65,'Damage costs'!$C$16:$C$43,0))/1000,AE57*INDEX('Damage costs'!$S$16:$S$43,MATCH($B65,'Damage costs'!$C$16:$C$43,0))/1000),\"\")","v":""},{"$f":"IFERROR(IF(OR($C$67=FALSE,LEFT($B65,3)<>\"NOX\"),AF57*INDEX('Damage costs'!$O$16:$O$43,MATCH($B65,'Damage costs'!$C$16:$C$43,0))/1000,AF57*INDEX('Damage costs'!$S$16:$S$43,MATCH($B65,'Damage costs'!$C$16:$C$43,0))/1000),\"\")","v":""},{"$f":"IFERROR(IF(OR($C$67=FALSE,LEFT($B65,3)<>\"NOX\"),AG57*INDEX('Damage costs'!$O$16:$O$43,MATCH($B65,'Damage costs'!$C$16:$C$43,0))/1000,AG57*INDEX('Damage costs'!$S$16:$S$43,MATCH($B65,'Damage costs'!$C$16:$C$43,0))/1000),\"\")","v":""},{"$f":"IFERROR(IF(OR($C$67=FALSE,LEFT($B65,3)<>\"NOX\"),AH57*INDEX('Damage costs'!$O$16:$O$43,MATCH($B65,'Damage costs'!$C$16:$C$43,0))/1000,AH57*INDEX('Damage costs'!$S$16:$S$43,MATCH($B65,'Damage costs'!$C$16:$C$43,0))/1000),\"\")","v":""},{"$f":"IFERROR(IF(OR($C$67=FALSE,LEFT($B65,3)<>\"NOX\"),AI57*INDEX('Damage costs'!$O$16:$O$43,MATCH($B65,'Damage costs'!$C$16:$C$43,0))/1000,AI57*INDEX('Damage costs'!$S$16:$S$43,MATCH($B65,'Damage costs'!$C$16:$C$43,0))/1000),\"\")","v":""},{"$f":"IFERROR(IF(OR($C$67=FALSE,LEFT($B65,3)<>\"NOX\"),AJ57*INDEX('Damage costs'!$O$16:$O$43,MATCH($B65,'Damage costs'!$C$16:$C$43,0))/1000,AJ57*INDEX('Damage costs'!$S$16:$S$43,MATCH($B65,'Damage costs'!$C$16:$C$43,0))/1000),\"\")","v":""},{"$f":"IFERROR(IF(OR($C$67=FALSE,LEFT($B65,3)<>\"NOX\"),AK57*INDEX('Damage costs'!$O$16:$O$43,MATCH($B65,'Damage costs'!$C$16:$C$43,0))/1000,AK57*INDEX('Damage costs'!$S$16:$S$43,MATCH($B65,'Damage costs'!$C$16:$C$43,0))/1000),\"\")","v":""},{"$f":"IFERROR(IF(OR($C$67=FALSE,LEFT($B65,3)<>\"NOX\"),AL57*INDEX('Damage costs'!$O$16:$O$43,MATCH($B65,'Damage costs'!$C$16:$C$43,0))/1000,AL57*INDEX('Damage costs'!$S$16:$S$43,MATCH($B65,'Damage costs'!$C$16:$C$43,0))/1000),\"\")","v":""},{"$f":"IFERROR(IF(OR($C$67=FALSE,LEFT($B65,3)<>\"NOX\"),AM57*INDEX('Damage costs'!$O$16:$O$43,MATCH($B65,'Damage costs'!$C$16:$C$43,0))/1000,AM57*INDEX('Damage costs'!$S$16:$S$43,MATCH($B65,'Damage costs'!$C$16:$C$43,0))/1000),\"\")","v":""},{"$f":"IFERROR(IF(OR($C$67=FALSE,LEFT($B65,3)<>\"NOX\"),AN57*INDEX('Damage costs'!$O$16:$O$43,MATCH($B65,'Damage costs'!$C$16:$C$43,0))/1000,AN57*INDEX('Damage costs'!$S$16:$S$43,MATCH($B65,'Damage costs'!$C$16:$C$43,0))/1000),\"\")","v":""},{"$f":"IFERROR(IF(OR($C$67=FALSE,LEFT($B65,3)<>\"NOX\"),AO57*INDEX('Damage costs'!$O$16:$O$43,MATCH($B65,'Damage costs'!$C$16:$C$43,0))/1000,AO57*INDEX('Damage costs'!$S$16:$S$43,MATCH($B65,'Damage costs'!$C$16:$C$43,0))/1000),\"\")","v":""},{"$f":"IFERROR(IF(OR($C$67=FALSE,LEFT($B65,3)<>\"NOX\"),AP57*INDEX('Damage costs'!$O$16:$O$43,MATCH($B65,'Damage costs'!$C$16:$C$43,0))/1000,AP57*INDEX('Damage costs'!$S$16:$S$43,MATCH($B65,'Damage costs'!$C$16:$C$43,0))/1000),\"\")","v":""},{"$f":"IFERROR(IF(OR($C$67=FALSE,LEFT($B65,3)<>\"NOX\"),AQ57*INDEX('Damage costs'!$O$16:$O$43,MATCH($B65,'Damage costs'!$C$16:$C$43,0))/1000,AQ57*INDEX('Damage costs'!$S$16:$S$43,MATCH($B65,'Damage costs'!$C$16:$C$43,0))/1000),\"\")","v":""},{"$f":"IFERROR(IF(OR($C$67=FALSE,LEFT($B65,3)<>\"NOX\"),AR57*INDEX('Damage costs'!$O$16:$O$43,MATCH($B65,'Damage costs'!$C$16:$C$43,0))/1000,AR57*INDEX('Damage costs'!$S$16:$S$43,MATCH($B65,'Damage costs'!$C$16:$C$43,0))/1000),\"\")","v":""},{"$f":"IFERROR(IF(OR($C$67=FALSE,LEFT($B65,3)<>\"NOX\"),AS57*INDEX('Damage costs'!$O$16:$O$43,MATCH($B65,'Damage costs'!$C$16:$C$43,0))/1000,AS57*INDEX('Damage costs'!$S$16:$S$43,MATCH($B65,'Damage costs'!$C$16:$C$43,0))/1000),\"\")","v":""},{"$f":"IFERROR(IF(OR($C$67=FALSE,LEFT($B65,3)<>\"NOX\"),AT57*INDEX('Damage costs'!$O$16:$O$43,MATCH($B65,'Damage costs'!$C$16:$C$43,0))/1000,AT57*INDEX('Damage costs'!$S$16:$S$43,MATCH($B65,'Damage costs'!$C$16:$C$43,0))/1000),\"\")","v":""},{"$f":"IFERROR(IF(OR($C$67=FALSE,LEFT($B65,3)<>\"NOX\"),AU57*INDEX('Damage costs'!$O$16:$O$43,MATCH($B65,'Damage costs'!$C$16:$C$43,0))/1000,AU57*INDEX('Damage costs'!$S$16:$S$43,MATCH($B65,'Damage costs'!$C$16:$C$43,0))/1000),\"\")","v":""},{"$f":"IFERROR(IF(OR($C$67=FALSE,LEFT($B65,3)<>\"NOX\"),AV57*INDEX('Damage costs'!$O$16:$O$43,MATCH($B65,'Damage costs'!$C$16:$C$43,0))/1000,AV57*INDEX('Damage costs'!$S$16:$S$43,MATCH($B65,'Damage costs'!$C$16:$C$43,0))/1000),\"\")","v":""},{"$f":"IFERROR(IF(OR($C$67=FALSE,LEFT($B65,3)<>\"NOX\"),AW57*INDEX('Damage costs'!$O$16:$O$43,MATCH($B65,'Damage costs'!$C$16:$C$43,0))/1000,AW57*INDEX('Damage costs'!$S$16:$S$43,MATCH($B65,'Damage costs'!$C$16:$C$43,0))/1000),\"\")","v":""},{"$f":"IFERROR(IF(OR($C$67=FALSE,LEFT($B65,3)<>\"NOX\"),AX57*INDEX('Damage costs'!$O$16:$O$43,MATCH($B65,'Damage costs'!$C$16:$C$43,0))/1000,AX57*INDEX('Damage costs'!$S$16:$S$43,MATCH($B65,'Damage costs'!$C$16:$C$43,0))/1000),\"\")","v":""},{"$f":"IFERROR(IF(OR($C$67=FALSE,LEFT($B65,3)<>\"NOX\"),AY57*INDEX('Damage costs'!$O$16:$O$43,MATCH($B65,'Damage costs'!$C$16:$C$43,0))/1000,AY57*INDEX('Damage costs'!$S$16:$S$43,MATCH($B65,'Damage costs'!$C$16:$C$43,0))/1000),\"\")","v":""},{"$f":"IFERROR(IF(OR($C$67=FALSE,LEFT($B65,3)<>\"NOX\"),AZ57*INDEX('Damage costs'!$O$16:$O$43,MATCH($B65,'Damage costs'!$C$16:$C$43,0))/1000,AZ57*INDEX('Damage costs'!$S$16:$S$43,MATCH($B65,'Damage costs'!$C$16:$C$43,0))/1000),\"\")","v":""},{"$f":"IFERROR(IF(OR($C$67=FALSE,LEFT($B65,3)<>\"NOX\"),BA57*INDEX('Damage costs'!$O$16:$O$43,MATCH($B65,'Damage costs'!$C$16:$C$43,0))/1000,BA57*INDEX('Damage costs'!$S$16:$S$43,MATCH($B65,'Damage costs'!$C$16:$C$43,0))/1000),\"\")","v":""},{"$f":"IFERROR(IF(OR($C$67=FALSE,LEFT($B65,3)<>\"NOX\"),BB57*INDEX('Damage costs'!$O$16:$O$43,MATCH($B65,'Damage costs'!$C$16:$C$43,0))/1000,BB57*INDEX('Damage costs'!$S$16:$S$43,MATCH($B65,'Damage costs'!$C$16:$C$43,0))/1000),\"\")","v":""},{"$f":"IFERROR(IF(OR($C$67=FALSE,LEFT($B65,3)<>\"NOX\"),BC57*INDEX('Damage costs'!$O$16:$O$43,MATCH($B65,'Damage costs'!$C$16:$C$43,0))/1000,BC57*INDEX('Damage costs'!$S$16:$S$43,MATCH($B65,'Damage costs'!$C$16:$C$43,0))/1000),\"\")","v":""},{"$f":"IFERROR(IF(OR($C$67=FALSE,LEFT($B65,3)<>\"NOX\"),BD57*INDEX('Damage costs'!$O$16:$O$43,MATCH($B65,'Damage costs'!$C$16:$C$43,0))/1000,BD57*INDEX('Damage costs'!$S$16:$S$43,MATCH($B65,'Damage costs'!$C$16:$C$43,0))/1000),\"\")","v":""},{"$f":"IFERROR(IF(OR($C$67=FALSE,LEFT($B65,3)<>\"NOX\"),BE57*INDEX('Damage costs'!$O$16:$O$43,MATCH($B65,'Damage costs'!$C$16:$C$43,0))/1000,BE57*INDEX('Damage costs'!$S$16:$S$43,MATCH($B65,'Damage costs'!$C$16:$C$43,0))/1000),\"\")","v":""},{"$f":"IFERROR(IF(OR($C$67=FALSE,LEFT($B65,3)<>\"NOX\"),BF57*INDEX('Damage costs'!$O$16:$O$43,MATCH($B65,'Damage costs'!$C$16:$C$43,0))/1000,BF57*INDEX('Damage costs'!$S$16:$S$43,MATCH($B65,'Damage costs'!$C$16:$C$43,0))/1000),\"\")","v":""},{"$f":"IFERROR(IF(OR($C$67=FALSE,LEFT($B65,3)<>\"NOX\"),BG57*INDEX('Damage costs'!$O$16:$O$43,MATCH($B65,'Damage costs'!$C$16:$C$43,0))/1000,BG57*INDEX('Damage costs'!$S$16:$S$43,MATCH($B65,'Damage costs'!$C$16:$C$43,0))/1000),\"\")","v":""},{"$f":"IFERROR(IF(OR($C$67=FALSE,LEFT($B65,3)<>\"NOX\"),BH57*INDEX('Damage costs'!$O$16:$O$43,MATCH($B65,'Damage costs'!$C$16:$C$43,0))/1000,BH57*INDEX('Damage costs'!$S$16:$S$43,MATCH($B65,'Damage costs'!$C$16:$C$43,0))/1000),\"\")","v":""},{"$f":"IFERROR(IF(OR($C$67=FALSE,LEFT($B65,3)<>\"NOX\"),BI57*INDEX('Damage costs'!$O$16:$O$43,MATCH($B65,'Damage costs'!$C$16:$C$43,0))/1000,BI57*INDEX('Damage costs'!$S$16:$S$43,MATCH($B65,'Damage costs'!$C$16:$C$43,0))/1000),\"\")","v":""},{"$f":"IFERROR(IF(OR($C$67=FALSE,LEFT($B65,3)<>\"NOX\"),BJ57*INDEX('Damage costs'!$O$16:$O$43,MATCH($B65,'Damage costs'!$C$16:$C$43,0))/1000,BJ57*INDEX('Damage costs'!$S$16:$S$43,MATCH($B65,'Damage costs'!$C$16:$C$43,0))/1000),\"\")","v":""},{"$f":"IFERROR(IF(OR($C$67=FALSE,LEFT($B65,3)<>\"NOX\"),BK57*INDEX('Damage costs'!$O$16:$O$43,MATCH($B65,'Damage costs'!$C$16:$C$43,0))/1000,BK57*INDEX('Damage costs'!$S$16:$S$43,MATCH($B65,'Damage costs'!$C$16:$C$43,0))/1000),\"\")","v":""},{"$f":"IFERROR(IF(OR($C$67=FALSE,LEFT($B65,3)<>\"NOX\"),BL57*INDEX('Damage costs'!$O$16:$O$43,MATCH($B65,'Damage costs'!$C$16:$C$43,0))/1000,BL57*INDEX('Damage costs'!$S$16:$S$43,MATCH($B65,'Damage costs'!$C$16:$C$43,0))/1000),\"\")","v":""},{"$f":"IFERROR(IF(OR($C$67=FALSE,LEFT($B65,3)<>\"NOX\"),BM57*INDEX('Damage costs'!$O$16:$O$43,MATCH($B65,'Damage costs'!$C$16:$C$43,0))/1000,BM57*INDEX('Damage costs'!$S$16:$S$43,MATCH($B65,'Damage costs'!$C$16:$C$43,0))/1000),\"\")","v":""},{"$f":"IFERROR(IF(OR($C$67=FALSE,LEFT($B65,3)<>\"NOX\"),BN57*INDEX('Damage costs'!$O$16:$O$43,MATCH($B65,'Damage costs'!$C$16:$C$43,0))/1000,BN57*INDEX('Damage costs'!$S$16:$S$43,MATCH($B65,'Damage costs'!$C$16:$C$43,0))/1000),\"\")","v":""},{"$f":"IFERROR(IF(OR($C$67=FALSE,LEFT($B65,3)<>\"NOX\"),BO57*INDEX('Damage costs'!$O$16:$O$43,MATCH($B65,'Damage costs'!$C$16:$C$43,0))/1000,BO57*INDEX('Damage costs'!$S$16:$S$43,MATCH($B65,'Damage costs'!$C$16:$C$43,0))/1000),\"\")","v":""},{"$f":"IFERROR(IF(OR($C$67=FALSE,LEFT($B65,3)<>\"NOX\"),BP57*INDEX('Damage costs'!$O$16:$O$43,MATCH($B65,'Damage costs'!$C$16:$C$43,0))/1000,BP57*INDEX('Damage costs'!$S$16:$S$43,MATCH($B65,'Damage costs'!$C$16:$C$43,0))/1000),\"\")","v":""},{"$f":"IFERROR(IF(OR($C$67=FALSE,LEFT($B65,3)<>\"NOX\"),BQ57*INDEX('Damage costs'!$O$16:$O$43,MATCH($B65,'Damage costs'!$C$16:$C$43,0))/1000,BQ57*INDEX('Damage costs'!$S$16:$S$43,MATCH($B65,'Damage costs'!$C$16:$C$43,0))/1000),\"\")","v":""},{"$f":"IFERROR(IF(OR($C$67=FALSE,LEFT($B65,3)<>\"NOX\"),BR57*INDEX('Damage costs'!$O$16:$O$43,MATCH($B65,'Damage costs'!$C$16:$C$43,0))/1000,BR57*INDEX('Damage costs'!$S$16:$S$43,MATCH($B65,'Damage costs'!$C$16:$C$43,0))/1000),\"\")","v":""},{"$f":"IFERROR(IF(OR($C$67=FALSE,LEFT($B65,3)<>\"NOX\"),BS57*INDEX('Damage costs'!$O$16:$O$43,MATCH($B65,'Damage costs'!$C$16:$C$43,0))/1000,BS57*INDEX('Damage costs'!$S$16:$S$43,MATCH($B65,'Damage costs'!$C$16:$C$43,0))/1000),\"\")","v":""},{"$f":"IFERROR(IF(OR($C$67=FALSE,LEFT($B65,3)<>\"NOX\"),BT57*INDEX('Damage costs'!$O$16:$O$43,MATCH($B65,'Damage costs'!$C$16:$C$43,0))/1000,BT57*INDEX('Damage costs'!$S$16:$S$43,MATCH($B65,'Damage costs'!$C$16:$C$43,0))/1000),\"\")","v":""},{"$f":"IFERROR(IF(OR($C$67=FALSE,LEFT($B65,3)<>\"NOX\"),BU57*INDEX('Damage costs'!$O$16:$O$43,MATCH($B65,'Damage costs'!$C$16:$C$43,0))/1000,BU57*INDEX('Damage costs'!$S$16:$S$43,MATCH($B65,'Damage costs'!$C$16:$C$43,0))/1000),\"\")","v":""},{"$f":"IFERROR(IF(OR($C$67=FALSE,LEFT($B65,3)<>\"NOX\"),BV57*INDEX('Damage costs'!$O$16:$O$43,MATCH($B65,'Damage costs'!$C$16:$C$43,0))/1000,BV57*INDEX('Damage costs'!$S$16:$S$43,MATCH($B65,'Damage costs'!$C$16:$C$43,0))/1000),\"\")","v":""},{"$f":"IFERROR(IF(OR($C$67=FALSE,LEFT($B65,3)<>\"NOX\"),BW57*INDEX('Damage costs'!$O$16:$O$43,MATCH($B65,'Damage costs'!$C$16:$C$43,0))/1000,BW57*INDEX('Damage costs'!$S$16:$S$43,MATCH($B65,'Damage costs'!$C$16:$C$43,0))/1000),\"\")","v":""},{"$f":"IFERROR(IF(OR($C$67=FALSE,LEFT($B65,3)<>\"NOX\"),BX57*INDEX('Damage costs'!$O$16:$O$43,MATCH($B65,'Damage costs'!$C$16:$C$43,0))/1000,BX57*INDEX('Damage costs'!$S$16:$S$43,MATCH($B65,'Damage costs'!$C$16:$C$43,0))/1000),\"\")","v":""},{"$f":"IFERROR(IF(OR($C$67=FALSE,LEFT($B65,3)<>\"NOX\"),BY57*INDEX('Damage costs'!$O$16:$O$43,MATCH($B65,'Damage costs'!$C$16:$C$43,0))/1000,BY57*INDEX('Damage costs'!$S$16:$S$43,MATCH($B65,'Damage costs'!$C$16:$C$43,0))/1000),\"\")","v":""},{"$f":"IFERROR(IF(OR($C$67=FALSE,LEFT($B65,3)<>\"NOX\"),BZ57*INDEX('Damage costs'!$O$16:$O$43,MATCH($B65,'Damage costs'!$C$16:$C$43,0))/1000,BZ57*INDEX('Damage costs'!$S$16:$S$43,MATCH($B65,'Damage costs'!$C$16:$C$43,0))/1000),\"\")","v":""},{"$f":"IFERROR(IF(OR($C$67=FALSE,LEFT($B65,3)<>\"NOX\"),CA57*INDEX('Damage costs'!$O$16:$O$43,MATCH($B65,'Damage costs'!$C$16:$C$43,0))/1000,CA57*INDEX('Damage costs'!$S$16:$S$43,MATCH($B65,'Damage costs'!$C$16:$C$43,0))/1000),\"\")","v":""},{"$f":"IFERROR(IF(OR($C$67=FALSE,LEFT($B65,3)<>\"NOX\"),CB57*INDEX('Damage costs'!$O$16:$O$43,MATCH($B65,'Damage costs'!$C$16:$C$43,0))/1000,CB57*INDEX('Damage costs'!$S$16:$S$43,MATCH($B65,'Damage costs'!$C$16:$C$43,0))/1000),\"\")","v":""},{"$f":"IFERROR(IF(OR($C$67=FALSE,LEFT($B65,3)<>\"NOX\"),CC57*INDEX('Damage costs'!$O$16:$O$43,MATCH($B65,'Damage costs'!$C$16:$C$43,0))/1000,CC57*INDEX('Damage costs'!$S$16:$S$43,MATCH($B65,'Damage costs'!$C$16:$C$43,0))/1000),\"\")","v":""},{"$f":"IFERROR(IF(OR($C$67=FALSE,LEFT($B65,3)<>\"NOX\"),CD57*INDEX('Damage costs'!$O$16:$O$43,MATCH($B65,'Damage costs'!$C$16:$C$43,0))/1000,CD57*INDEX('Damage costs'!$S$16:$S$43,MATCH($B65,'Damage costs'!$C$16:$C$43,0))/1000),\"\")","v":""},{"$f":"IFERROR(IF(OR($C$67=FALSE,LEFT($B65,3)<>\"NOX\"),CE57*INDEX('Damage costs'!$O$16:$O$43,MATCH($B65,'Damage costs'!$C$16:$C$43,0))/1000,CE57*INDEX('Damage costs'!$S$16:$S$43,MATCH($B65,'Damage costs'!$C$16:$C$43,0))/1000),\"\")","v":""},{"$f":"IFERROR(IF(OR($C$67=FALSE,LEFT($B65,3)<>\"NOX\"),CF57*INDEX('Damage costs'!$O$16:$O$43,MATCH($B65,'Damage costs'!$C$16:$C$43,0))/1000,CF57*INDEX('Damage costs'!$S$16:$S$43,MATCH($B65,'Damage costs'!$C$16:$C$43,0))/1000),\"\")","v":""},{"$f":"IFERROR(IF(OR($C$67=FALSE,LEFT($B65,3)<>\"NOX\"),CG57*INDEX('Damage costs'!$O$16:$O$43,MATCH($B65,'Damage costs'!$C$16:$C$43,0))/1000,CG57*INDEX('Damage costs'!$S$16:$S$43,MATCH($B65,'Damage costs'!$C$16:$C$43,0))/1000),\"\")","v":""},{"$f":"IFERROR(IF(OR($C$67=FALSE,LEFT($B65,3)<>\"NOX\"),CH57*INDEX('Damage costs'!$O$16:$O$43,MATCH($B65,'Damage costs'!$C$16:$C$43,0))/1000,CH57*INDEX('Damage costs'!$S$16:$S$43,MATCH($B65,'Damage costs'!$C$16:$C$43,0))/1000),\"\")","v":""},{"$f":"IFERROR(IF(OR($C$67=FALSE,LEFT($B65,3)<>\"NOX\"),CI57*INDEX('Damage costs'!$O$16:$O$43,MATCH($B65,'Damage costs'!$C$16:$C$43,0))/1000,CI57*INDEX('Damage costs'!$S$16:$S$43,MATCH($B65,'Damage costs'!$C$16:$C$43,0))/1000),\"\")","v":""},{"$f":"IFERROR(IF(OR($C$67=FALSE,LEFT($B65,3)<>\"NOX\"),CJ57*INDEX('Damage costs'!$O$16:$O$43,MATCH($B65,'Damage costs'!$C$16:$C$43,0))/1000,CJ57*INDEX('Damage costs'!$S$16:$S$43,MATCH($B65,'Damage costs'!$C$16:$C$43,0))/1000),\"\")","v":""},{"$f":"IFERROR(IF(OR($C$67=FALSE,LEFT($B65,3)<>\"NOX\"),CK57*INDEX('Damage costs'!$O$16:$O$43,MATCH($B65,'Damage costs'!$C$16:$C$43,0))/1000,CK57*INDEX('Damage costs'!$S$16:$S$43,MATCH($B65,'Damage costs'!$C$16:$C$43,0))/1000),\"\")","v":""},{"$f":"IFERROR(IF(OR($C$67=FALSE,LEFT($B65,3)<>\"NOX\"),CL57*INDEX('Damage costs'!$O$16:$O$43,MATCH($B65,'Damage costs'!$C$16:$C$43,0))/1000,CL57*INDEX('Damage costs'!$S$16:$S$43,MATCH($B65,'Damage costs'!$C$16:$C$43,0))/1000),\"\")","v":""},{"$f":"IFERROR(IF(OR($C$67=FALSE,LEFT($B65,3)<>\"NOX\"),CM57*INDEX('Damage costs'!$O$16:$O$43,MATCH($B65,'Damage costs'!$C$16:$C$43,0))/1000,CM57*INDEX('Damage costs'!$S$16:$S$43,MATCH($B65,'Damage costs'!$C$16:$C$43,0))/1000),\"\")","v":""},{"$f":"IFERROR(IF(OR($C$67=FALSE,LEFT($B65,3)<>\"NOX\"),CN57*INDEX('Damage costs'!$O$16:$O$43,MATCH($B65,'Damage costs'!$C$16:$C$43,0))/1000,CN57*INDEX('Damage costs'!$S$16:$S$43,MATCH($B65,'Damage costs'!$C$16:$C$43,0))/1000),\"\")","v":""},{"$f":"IFERROR(IF(OR($C$67=FALSE,LEFT($B65,3)<>\"NOX\"),CO57*INDEX('Damage costs'!$O$16:$O$43,MATCH($B65,'Damage costs'!$C$16:$C$43,0))/1000,CO57*INDEX('Damage costs'!$S$16:$S$43,MATCH($B65,'Damage costs'!$C$16:$C$43,0))/1000),\"\")","v":""},{"$f":"IFERROR(IF(OR($C$67=FALSE,LEFT($B65,3)<>\"NOX\"),CP57*INDEX('Damage costs'!$O$16:$O$43,MATCH($B65,'Damage costs'!$C$16:$C$43,0))/1000,CP57*INDEX('Damage costs'!$S$16:$S$43,MATCH($B65,'Damage costs'!$C$16:$C$43,0))/1000),\"\")","v":""},{"$f":"IFERROR(IF(OR($C$67=FALSE,LEFT($B65,3)<>\"NOX\"),CQ57*INDEX('Damage costs'!$O$16:$O$43,MATCH($B65,'Damage costs'!$C$16:$C$43,0))/1000,CQ57*INDEX('Damage costs'!$S$16:$S$43,MATCH($B65,'Damage costs'!$C$16:$C$43,0))/1000),\"\")","v":""},{"$f":"IFERROR(IF(OR($C$67=FALSE,LEFT($B65,3)<>\"NOX\"),CR57*INDEX('Damage costs'!$O$16:$O$43,MATCH($B65,'Damage costs'!$C$16:$C$43,0))/1000,CR57*INDEX('Damage costs'!$S$16:$S$43,MATCH($B65,'Damage costs'!$C$16:$C$43,0))/1000),\"\")","v":""},{"$f":"IFERROR(IF(OR($C$67=FALSE,LEFT($B65,3)<>\"NOX\"),CS57*INDEX('Damage costs'!$O$16:$O$43,MATCH($B65,'Damage costs'!$C$16:$C$43,0))/1000,CS57*INDEX('Damage costs'!$S$16:$S$43,MATCH($B65,'Damage costs'!$C$16:$C$43,0))/1000),\"\")","v":""},{"$f":"IFERROR(IF(OR($C$67=FALSE,LEFT($B65,3)<>\"NOX\"),CT57*INDEX('Damage costs'!$O$16:$O$43,MATCH($B65,'Damage costs'!$C$16:$C$43,0))/1000,CT57*INDEX('Damage costs'!$S$16:$S$43,MATCH($B65,'Damage costs'!$C$16:$C$43,0))/1000),\"\")","v":""},{"$f":"IFERROR(IF(OR($C$67=FALSE,LEFT($B65,3)<>\"NOX\"),CU57*INDEX('Damage costs'!$O$16:$O$43,MATCH($B65,'Damage costs'!$C$16:$C$43,0))/1000,CU57*INDEX('Damage costs'!$S$16:$S$43,MATCH($B65,'Damage costs'!$C$16:$C$43,0))/1000),\"\")","v":""},{"$f":"IFERROR(IF(OR($C$67=FALSE,LEFT($B65,3)<>\"NOX\"),CV57*INDEX('Damage costs'!$O$16:$O$43,MATCH($B65,'Damage costs'!$C$16:$C$43,0))/1000,CV57*INDEX('Damage costs'!$S$16:$S$43,MATCH($B65,'Damage costs'!$C$16:$C$43,0))/1000),\"\")","v":""},{"$f":"IFERROR(IF(OR($C$67=FALSE,LEFT($B65,3)<>\"NOX\"),CW57*INDEX('Damage costs'!$O$16:$O$43,MATCH($B65,'Damage costs'!$C$16:$C$43,0))/1000,CW57*INDEX('Damage costs'!$S$16:$S$43,MATCH($B65,'Damage costs'!$C$16:$C$43,0))/1000),\"\")","v":""},{"$f":"IFERROR(IF(OR($C$67=FALSE,LEFT($B65,3)<>\"NOX\"),CX57*INDEX('Damage costs'!$O$16:$O$43,MATCH($B65,'Damage costs'!$C$16:$C$43,0))/1000,CX57*INDEX('Damage costs'!$S$16:$S$43,MATCH($B65,'Damage costs'!$C$16:$C$43,0))/1000),\"\")","v":""},{"$f":"IFERROR(IF(OR($C$67=FALSE,LEFT($B65,3)<>\"NOX\"),CY57*INDEX('Damage costs'!$O$16:$O$43,MATCH($B65,'Damage costs'!$C$16:$C$43,0))/1000,CY57*INDEX('Damage costs'!$S$16:$S$43,MATCH($B65,'Damage costs'!$C$16:$C$43,0))/1000),\"\")","v":""}]
[null,0,"£000's",{"$f":"IFERROR(IF(OR($C$67=FALSE,LEFT($B66,3)<>\"NOX\"),D58*INDEX('Damage costs'!$O$16:$O$43,MATCH($B66,'Damage costs'!$C$16:$C$43,0))/1000,D58*INDEX('Damage costs'!$S$16:$S$43,MATCH($B66,'Damage costs'!$C$16:$C$43,0))/1000),\"\")","v":""},{"$f":"IFERROR(IF(OR($C$67=FALSE,LEFT($B66,3)<>\"NOX\"),E58*INDEX('Damage costs'!$O$16:$O$43,MATCH($B66,'Damage costs'!$C$16:$C$43,0))/1000,E58*INDEX('Damage costs'!$S$16:$S$43,MATCH($B66,'Damage costs'!$C$16:$C$43,0))/1000),\"\")","v":""},{"$f":"IFERROR(IF(OR($C$67=FALSE,LEFT($B66,3)<>\"NOX\"),F58*INDEX('Damage costs'!$O$16:$O$43,MATCH($B66,'Damage costs'!$C$16:$C$43,0))/1000,F58*INDEX('Damage costs'!$S$16:$S$43,MATCH($B66,'Damage costs'!$C$16:$C$43,0))/1000),\"\")","v":""},{"$f":"IFERROR(IF(OR($C$67=FALSE,LEFT($B66,3)<>\"NOX\"),G58*INDEX('Damage costs'!$O$16:$O$43,MATCH($B66,'Damage costs'!$C$16:$C$43,0))/1000,G58*INDEX('Damage costs'!$S$16:$S$43,MATCH($B66,'Damage costs'!$C$16:$C$43,0))/1000),\"\")","v":""},{"$f":"IFERROR(IF(OR($C$67=FALSE,LEFT($B66,3)<>\"NOX\"),H58*INDEX('Damage costs'!$O$16:$O$43,MATCH($B66,'Damage costs'!$C$16:$C$43,0))/1000,H58*INDEX('Damage costs'!$S$16:$S$43,MATCH($B66,'Damage costs'!$C$16:$C$43,0))/1000),\"\")","v":""},{"$f":"IFERROR(IF(OR($C$67=FALSE,LEFT($B66,3)<>\"NOX\"),I58*INDEX('Damage costs'!$O$16:$O$43,MATCH($B66,'Damage costs'!$C$16:$C$43,0))/1000,I58*INDEX('Damage costs'!$S$16:$S$43,MATCH($B66,'Damage costs'!$C$16:$C$43,0))/1000),\"\")","v":""},{"$f":"IFERROR(IF(OR($C$67=FALSE,LEFT($B66,3)<>\"NOX\"),J58*INDEX('Damage costs'!$O$16:$O$43,MATCH($B66,'Damage costs'!$C$16:$C$43,0))/1000,J58*INDEX('Damage costs'!$S$16:$S$43,MATCH($B66,'Damage costs'!$C$16:$C$43,0))/1000),\"\")","v":""},{"$f":"IFERROR(IF(OR($C$67=FALSE,LEFT($B66,3)<>\"NOX\"),K58*INDEX('Damage costs'!$O$16:$O$43,MATCH($B66,'Damage costs'!$C$16:$C$43,0))/1000,K58*INDEX('Damage costs'!$S$16:$S$43,MATCH($B66,'Damage costs'!$C$16:$C$43,0))/1000),\"\")","v":""},{"$f":"IFERROR(IF(OR($C$67=FALSE,LEFT($B66,3)<>\"NOX\"),L58*INDEX('Damage costs'!$O$16:$O$43,MATCH($B66,'Damage costs'!$C$16:$C$43,0))/1000,L58*INDEX('Damage costs'!$S$16:$S$43,MATCH($B66,'Damage costs'!$C$16:$C$43,0))/1000),\"\")","v":""},{"$f":"IFERROR(IF(OR($C$67=FALSE,LEFT($B66,3)<>\"NOX\"),M58*INDEX('Damage costs'!$O$16:$O$43,MATCH($B66,'Damage costs'!$C$16:$C$43,0))/1000,M58*INDEX('Damage costs'!$S$16:$S$43,MATCH($B66,'Damage costs'!$C$16:$C$43,0))/1000),\"\")","v":""},{"$f":"IFERROR(IF(OR($C$67=FALSE,LEFT($B66,3)<>\"NOX\"),N58*INDEX('Damage costs'!$O$16:$O$43,MATCH($B66,'Damage costs'!$C$16:$C$43,0))/1000,N58*INDEX('Damage costs'!$S$16:$S$43,MATCH($B66,'Damage costs'!$C$16:$C$43,0))/1000),\"\")","v":""},{"$f":"IFERROR(IF(OR($C$67=FALSE,LEFT($B66,3)<>\"NOX\"),O58*INDEX('Damage costs'!$O$16:$O$43,MATCH($B66,'Damage costs'!$C$16:$C$43,0))/1000,O58*INDEX('Damage costs'!$S$16:$S$43,MATCH($B66,'Damage costs'!$C$16:$C$43,0))/1000),\"\")","v":""},{"$f":"IFERROR(IF(OR($C$67=FALSE,LEFT($B66,3)<>\"NOX\"),P58*INDEX('Damage costs'!$O$16:$O$43,MATCH($B66,'Damage costs'!$C$16:$C$43,0))/1000,P58*INDEX('Damage costs'!$S$16:$S$43,MATCH($B66,'Damage costs'!$C$16:$C$43,0))/1000),\"\")","v":""},{"$f":"IFERROR(IF(OR($C$67=FALSE,LEFT($B66,3)<>\"NOX\"),Q58*INDEX('Damage costs'!$O$16:$O$43,MATCH($B66,'Damage costs'!$C$16:$C$43,0))/1000,Q58*INDEX('Damage costs'!$S$16:$S$43,MATCH($B66,'Damage costs'!$C$16:$C$43,0))/1000),\"\")","v":""},{"$f":"IFERROR(IF(OR($C$67=FALSE,LEFT($B66,3)<>\"NOX\"),R58*INDEX('Damage costs'!$O$16:$O$43,MATCH($B66,'Damage costs'!$C$16:$C$43,0))/1000,R58*INDEX('Damage costs'!$S$16:$S$43,MATCH($B66,'Damage costs'!$C$16:$C$43,0))/1000),\"\")","v":""},{"$f":"IFERROR(IF(OR($C$67=FALSE,LEFT($B66,3)<>\"NOX\"),S58*INDEX('Damage costs'!$O$16:$O$43,MATCH($B66,'Damage costs'!$C$16:$C$43,0))/1000,S58*INDEX('Damage costs'!$S$16:$S$43,MATCH($B66,'Damage costs'!$C$16:$C$43,0))/1000),\"\")","v":""},{"$f":"IFERROR(IF(OR($C$67=FALSE,LEFT($B66,3)<>\"NOX\"),T58*INDEX('Damage costs'!$O$16:$O$43,MATCH($B66,'Damage costs'!$C$16:$C$43,0))/1000,T58*INDEX('Damage costs'!$S$16:$S$43,MATCH($B66,'Damage costs'!$C$16:$C$43,0))/1000),\"\")","v":""},{"$f":"IFERROR(IF(OR($C$67=FALSE,LEFT($B66,3)<>\"NOX\"),U58*INDEX('Damage costs'!$O$16:$O$43,MATCH($B66,'Damage costs'!$C$16:$C$43,0))/1000,U58*INDEX('Damage costs'!$S$16:$S$43,MATCH($B66,'Damage costs'!$C$16:$C$43,0))/1000),\"\")","v":""},{"$f":"IFERROR(IF(OR($C$67=FALSE,LEFT($B66,3)<>\"NOX\"),V58*INDEX('Damage costs'!$O$16:$O$43,MATCH($B66,'Damage costs'!$C$16:$C$43,0))/1000,V58*INDEX('Damage costs'!$S$16:$S$43,MATCH($B66,'Damage costs'!$C$16:$C$43,0))/1000),\"\")","v":""},{"$f":"IFERROR(IF(OR($C$67=FALSE,LEFT($B66,3)<>\"NOX\"),W58*INDEX('Damage costs'!$O$16:$O$43,MATCH($B66,'Damage costs'!$C$16:$C$43,0))/1000,W58*INDEX('Damage costs'!$S$16:$S$43,MATCH($B66,'Damage costs'!$C$16:$C$43,0))/1000),\"\")","v":""},{"$f":"IFERROR(IF(OR($C$67=FALSE,LEFT($B66,3)<>\"NOX\"),X58*INDEX('Damage costs'!$O$16:$O$43,MATCH($B66,'Damage costs'!$C$16:$C$43,0))/1000,X58*INDEX('Damage costs'!$S$16:$S$43,MATCH($B66,'Damage costs'!$C$16:$C$43,0))/1000),\"\")","v":""},{"$f":"IFERROR(IF(OR($C$67=FALSE,LEFT($B66,3)<>\"NOX\"),Y58*INDEX('Damage costs'!$O$16:$O$43,MATCH($B66,'Damage costs'!$C$16:$C$43,0))/1000,Y58*INDEX('Damage costs'!$S$16:$S$43,MATCH($B66,'Damage costs'!$C$16:$C$43,0))/1000),\"\")","v":""},{"$f":"IFERROR(IF(OR($C$67=FALSE,LEFT($B66,3)<>\"NOX\"),Z58*INDEX('Damage costs'!$O$16:$O$43,MATCH($B66,'Damage costs'!$C$16:$C$43,0))/1000,Z58*INDEX('Damage costs'!$S$16:$S$43,MATCH($B66,'Damage costs'!$C$16:$C$43,0))/1000),\"\")","v":""},{"$f":"IFERROR(IF(OR($C$67=FALSE,LEFT($B66,3)<>\"NOX\"),AA58*INDEX('Damage costs'!$O$16:$O$43,MATCH($B66,'Damage costs'!$C$16:$C$43,0))/1000,AA58*INDEX('Damage costs'!$S$16:$S$43,MATCH($B66,'Damage costs'!$C$16:$C$43,0))/1000),\"\")","v":""},{"$f":"IFERROR(IF(OR($C$67=FALSE,LEFT($B66,3)<>\"NOX\"),AB58*INDEX('Damage costs'!$O$16:$O$43,MATCH($B66,'Damage costs'!$C$16:$C$43,0))/1000,AB58*INDEX('Damage costs'!$S$16:$S$43,MATCH($B66,'Damage costs'!$C$16:$C$43,0))/1000),\"\")","v":""},{"$f":"IFERROR(IF(OR($C$67=FALSE,LEFT($B66,3)<>\"NOX\"),AC58*INDEX('Damage costs'!$O$16:$O$43,MATCH($B66,'Damage costs'!$C$16:$C$43,0))/1000,AC58*INDEX('Damage costs'!$S$16:$S$43,MATCH($B66,'Damage costs'!$C$16:$C$43,0))/1000),\"\")","v":""},{"$f":"IFERROR(IF(OR($C$67=FALSE,LEFT($B66,3)<>\"NOX\"),AD58*INDEX('Damage costs'!$O$16:$O$43,MATCH($B66,'Damage costs'!$C$16:$C$43,0))/1000,AD58*INDEX('Damage costs'!$S$16:$S$43,MATCH($B66,'Damage costs'!$C$16:$C$43,0))/1000),\"\")","v":""},{"$f":"IFERROR(IF(OR($C$67=FALSE,LEFT($B66,3)<>\"NOX\"),AE58*INDEX('Damage costs'!$O$16:$O$43,MATCH($B66,'Damage costs'!$C$16:$C$43,0))/1000,AE58*INDEX('Damage costs'!$S$16:$S$43,MATCH($B66,'Damage costs'!$C$16:$C$43,0))/1000),\"\")","v":""},{"$f":"IFERROR(IF(OR($C$67=FALSE,LEFT($B66,3)<>\"NOX\"),AF58*INDEX('Damage costs'!$O$16:$O$43,MATCH($B66,'Damage costs'!$C$16:$C$43,0))/1000,AF58*INDEX('Damage costs'!$S$16:$S$43,MATCH($B66,'Damage costs'!$C$16:$C$43,0))/1000),\"\")","v":""},{"$f":"IFERROR(IF(OR($C$67=FALSE,LEFT($B66,3)<>\"NOX\"),AG58*INDEX('Damage costs'!$O$16:$O$43,MATCH($B66,'Damage costs'!$C$16:$C$43,0))/1000,AG58*INDEX('Damage costs'!$S$16:$S$43,MATCH($B66,'Damage costs'!$C$16:$C$43,0))/1000),\"\")","v":""},{"$f":"IFERROR(IF(OR($C$67=FALSE,LEFT($B66,3)<>\"NOX\"),AH58*INDEX('Damage costs'!$O$16:$O$43,MATCH($B66,'Damage costs'!$C$16:$C$43,0))/1000,AH58*INDEX('Damage costs'!$S$16:$S$43,MATCH($B66,'Damage costs'!$C$16:$C$43,0))/1000),\"\")","v":""},{"$f":"IFERROR(IF(OR($C$67=FALSE,LEFT($B66,3)<>\"NOX\"),AI58*INDEX('Damage costs'!$O$16:$O$43,MATCH($B66,'Damage costs'!$C$16:$C$43,0))/1000,AI58*INDEX('Damage costs'!$S$16:$S$43,MATCH($B66,'Damage costs'!$C$16:$C$43,0))/1000),\"\")","v":""},{"$f":"IFERROR(IF(OR($C$67=FALSE,LEFT($B66,3)<>\"NOX\"),AJ58*INDEX('Damage costs'!$O$16:$O$43,MATCH($B66,'Damage costs'!$C$16:$C$43,0))/1000,AJ58*INDEX('Damage costs'!$S$16:$S$43,MATCH($B66,'Damage costs'!$C$16:$C$43,0))/1000),\"\")","v":""},{"$f":"IFERROR(IF(OR($C$67=FALSE,LEFT($B66,3)<>\"NOX\"),AK58*INDEX('Damage costs'!$O$16:$O$43,MATCH($B66,'Damage costs'!$C$16:$C$43,0))/1000,AK58*INDEX('Damage costs'!$S$16:$S$43,MATCH($B66,'Damage costs'!$C$16:$C$43,0))/1000),\"\")","v":""},{"$f":"IFERROR(IF(OR($C$67=FALSE,LEFT($B66,3)<>\"NOX\"),AL58*INDEX('Damage costs'!$O$16:$O$43,MATCH($B66,'Damage costs'!$C$16:$C$43,0))/1000,AL58*INDEX('Damage costs'!$S$16:$S$43,MATCH($B66,'Damage costs'!$C$16:$C$43,0))/1000),\"\")","v":""},{"$f":"IFERROR(IF(OR($C$67=FALSE,LEFT($B66,3)<>\"NOX\"),AM58*INDEX('Damage costs'!$O$16:$O$43,MATCH($B66,'Damage costs'!$C$16:$C$43,0))/1000,AM58*INDEX('Damage costs'!$S$16:$S$43,MATCH($B66,'Damage costs'!$C$16:$C$43,0))/1000),\"\")","v":""},{"$f":"IFERROR(IF(OR($C$67=FALSE,LEFT($B66,3)<>\"NOX\"),AN58*INDEX('Damage costs'!$O$16:$O$43,MATCH($B66,'Damage costs'!$C$16:$C$43,0))/1000,AN58*INDEX('Damage costs'!$S$16:$S$43,MATCH($B66,'Damage costs'!$C$16:$C$43,0))/1000),\"\")","v":""},{"$f":"IFERROR(IF(OR($C$67=FALSE,LEFT($B66,3)<>\"NOX\"),AO58*INDEX('Damage costs'!$O$16:$O$43,MATCH($B66,'Damage costs'!$C$16:$C$43,0))/1000,AO58*INDEX('Damage costs'!$S$16:$S$43,MATCH($B66,'Damage costs'!$C$16:$C$43,0))/1000),\"\")","v":""},{"$f":"IFERROR(IF(OR($C$67=FALSE,LEFT($B66,3)<>\"NOX\"),AP58*INDEX('Damage costs'!$O$16:$O$43,MATCH($B66,'Damage costs'!$C$16:$C$43,0))/1000,AP58*INDEX('Damage costs'!$S$16:$S$43,MATCH($B66,'Damage costs'!$C$16:$C$43,0))/1000),\"\")","v":""},{"$f":"IFERROR(IF(OR($C$67=FALSE,LEFT($B66,3)<>\"NOX\"),AQ58*INDEX('Damage costs'!$O$16:$O$43,MATCH($B66,'Damage costs'!$C$16:$C$43,0))/1000,AQ58*INDEX('Damage costs'!$S$16:$S$43,MATCH($B66,'Damage costs'!$C$16:$C$43,0))/1000),\"\")","v":""},{"$f":"IFERROR(IF(OR($C$67=FALSE,LEFT($B66,3)<>\"NOX\"),AR58*INDEX('Damage costs'!$O$16:$O$43,MATCH($B66,'Damage costs'!$C$16:$C$43,0))/1000,AR58*INDEX('Damage costs'!$S$16:$S$43,MATCH($B66,'Damage costs'!$C$16:$C$43,0))/1000),\"\")","v":""},{"$f":"IFERROR(IF(OR($C$67=FALSE,LEFT($B66,3)<>\"NOX\"),AS58*INDEX('Damage costs'!$O$16:$O$43,MATCH($B66,'Damage costs'!$C$16:$C$43,0))/1000,AS58*INDEX('Damage costs'!$S$16:$S$43,MATCH($B66,'Damage costs'!$C$16:$C$43,0))/1000),\"\")","v":""},{"$f":"IFERROR(IF(OR($C$67=FALSE,LEFT($B66,3)<>\"NOX\"),AT58*INDEX('Damage costs'!$O$16:$O$43,MATCH($B66,'Damage costs'!$C$16:$C$43,0))/1000,AT58*INDEX('Damage costs'!$S$16:$S$43,MATCH($B66,'Damage costs'!$C$16:$C$43,0))/1000),\"\")","v":""},{"$f":"IFERROR(IF(OR($C$67=FALSE,LEFT($B66,3)<>\"NOX\"),AU58*INDEX('Damage costs'!$O$16:$O$43,MATCH($B66,'Damage costs'!$C$16:$C$43,0))/1000,AU58*INDEX('Damage costs'!$S$16:$S$43,MATCH($B66,'Damage costs'!$C$16:$C$43,0))/1000),\"\")","v":""},{"$f":"IFERROR(IF(OR($C$67=FALSE,LEFT($B66,3)<>\"NOX\"),AV58*INDEX('Damage costs'!$O$16:$O$43,MATCH($B66,'Damage costs'!$C$16:$C$43,0))/1000,AV58*INDEX('Damage costs'!$S$16:$S$43,MATCH($B66,'Damage costs'!$C$16:$C$43,0))/1000),\"\")","v":""},{"$f":"IFERROR(IF(OR($C$67=FALSE,LEFT($B66,3)<>\"NOX\"),AW58*INDEX('Damage costs'!$O$16:$O$43,MATCH($B66,'Damage costs'!$C$16:$C$43,0))/1000,AW58*INDEX('Damage costs'!$S$16:$S$43,MATCH($B66,'Damage costs'!$C$16:$C$43,0))/1000),\"\")","v":""},{"$f":"IFERROR(IF(OR($C$67=FALSE,LEFT($B66,3)<>\"NOX\"),AX58*INDEX('Damage costs'!$O$16:$O$43,MATCH($B66,'Damage costs'!$C$16:$C$43,0))/1000,AX58*INDEX('Damage costs'!$S$16:$S$43,MATCH($B66,'Damage costs'!$C$16:$C$43,0))/1000),\"\")","v":""},{"$f":"IFERROR(IF(OR($C$67=FALSE,LEFT($B66,3)<>\"NOX\"),AY58*INDEX('Damage costs'!$O$16:$O$43,MATCH($B66,'Damage costs'!$C$16:$C$43,0))/1000,AY58*INDEX('Damage costs'!$S$16:$S$43,MATCH($B66,'Damage costs'!$C$16:$C$43,0))/1000),\"\")","v":""},{"$f":"IFERROR(IF(OR($C$67=FALSE,LEFT($B66,3)<>\"NOX\"),AZ58*INDEX('Damage costs'!$O$16:$O$43,MATCH($B66,'Damage costs'!$C$16:$C$43,0))/1000,AZ58*INDEX('Damage costs'!$S$16:$S$43,MATCH($B66,'Damage costs'!$C$16:$C$43,0))/1000),\"\")","v":""},{"$f":"IFERROR(IF(OR($C$67=FALSE,LEFT($B66,3)<>\"NOX\"),BA58*INDEX('Damage costs'!$O$16:$O$43,MATCH($B66,'Damage costs'!$C$16:$C$43,0))/1000,BA58*INDEX('Damage costs'!$S$16:$S$43,MATCH($B66,'Damage costs'!$C$16:$C$43,0))/1000),\"\")","v":""},{"$f":"IFERROR(IF(OR($C$67=FALSE,LEFT($B66,3)<>\"NOX\"),BB58*INDEX('Damage costs'!$O$16:$O$43,MATCH($B66,'Damage costs'!$C$16:$C$43,0))/1000,BB58*INDEX('Damage costs'!$S$16:$S$43,MATCH($B66,'Damage costs'!$C$16:$C$43,0))/1000),\"\")","v":""},{"$f":"IFERROR(IF(OR($C$67=FALSE,LEFT($B66,3)<>\"NOX\"),BC58*INDEX('Damage costs'!$O$16:$O$43,MATCH($B66,'Damage costs'!$C$16:$C$43,0))/1000,BC58*INDEX('Damage costs'!$S$16:$S$43,MATCH($B66,'Damage costs'!$C$16:$C$43,0))/1000),\"\")","v":""},{"$f":"IFERROR(IF(OR($C$67=FALSE,LEFT($B66,3)<>\"NOX\"),BD58*INDEX('Damage costs'!$O$16:$O$43,MATCH($B66,'Damage costs'!$C$16:$C$43,0))/1000,BD58*INDEX('Damage costs'!$S$16:$S$43,MATCH($B66,'Damage costs'!$C$16:$C$43,0))/1000),\"\")","v":""},{"$f":"IFERROR(IF(OR($C$67=FALSE,LEFT($B66,3)<>\"NOX\"),BE58*INDEX('Damage costs'!$O$16:$O$43,MATCH($B66,'Damage costs'!$C$16:$C$43,0))/1000,BE58*INDEX('Damage costs'!$S$16:$S$43,MATCH($B66,'Damage costs'!$C$16:$C$43,0))/1000),\"\")","v":""},{"$f":"IFERROR(IF(OR($C$67=FALSE,LEFT($B66,3)<>\"NOX\"),BF58*INDEX('Damage costs'!$O$16:$O$43,MATCH($B66,'Damage costs'!$C$16:$C$43,0))/1000,BF58*INDEX('Damage costs'!$S$16:$S$43,MATCH($B66,'Damage costs'!$C$16:$C$43,0))/1000),\"\")","v":""},{"$f":"IFERROR(IF(OR($C$67=FALSE,LEFT($B66,3)<>\"NOX\"),BG58*INDEX('Damage costs'!$O$16:$O$43,MATCH($B66,'Damage costs'!$C$16:$C$43,0))/1000,BG58*INDEX('Damage costs'!$S$16:$S$43,MATCH($B66,'Damage costs'!$C$16:$C$43,0))/1000),\"\")","v":""},{"$f":"IFERROR(IF(OR($C$67=FALSE,LEFT($B66,3)<>\"NOX\"),BH58*INDEX('Damage costs'!$O$16:$O$43,MATCH($B66,'Damage costs'!$C$16:$C$43,0))/1000,BH58*INDEX('Damage costs'!$S$16:$S$43,MATCH($B66,'Damage costs'!$C$16:$C$43,0))/1000),\"\")","v":""},{"$f":"IFERROR(IF(OR($C$67=FALSE,LEFT($B66,3)<>\"NOX\"),BI58*INDEX('Damage costs'!$O$16:$O$43,MATCH($B66,'Damage costs'!$C$16:$C$43,0))/1000,BI58*INDEX('Damage costs'!$S$16:$S$43,MATCH($B66,'Damage costs'!$C$16:$C$43,0))/1000),\"\")","v":""},{"$f":"IFERROR(IF(OR($C$67=FALSE,LEFT($B66,3)<>\"NOX\"),BJ58*INDEX('Damage costs'!$O$16:$O$43,MATCH($B66,'Damage costs'!$C$16:$C$43,0))/1000,BJ58*INDEX('Damage costs'!$S$16:$S$43,MATCH($B66,'Damage costs'!$C$16:$C$43,0))/1000),\"\")","v":""},{"$f":"IFERROR(IF(OR($C$67=FALSE,LEFT($B66,3)<>\"NOX\"),BK58*INDEX('Damage costs'!$O$16:$O$43,MATCH($B66,'Damage costs'!$C$16:$C$43,0))/1000,BK58*INDEX('Damage costs'!$S$16:$S$43,MATCH($B66,'Damage costs'!$C$16:$C$43,0))/1000),\"\")","v":""},{"$f":"IFERROR(IF(OR($C$67=FALSE,LEFT($B66,3)<>\"NOX\"),BL58*INDEX('Damage costs'!$O$16:$O$43,MATCH($B66,'Damage costs'!$C$16:$C$43,0))/1000,BL58*INDEX('Damage costs'!$S$16:$S$43,MATCH($B66,'Damage costs'!$C$16:$C$43,0))/1000),\"\")","v":""},{"$f":"IFERROR(IF(OR($C$67=FALSE,LEFT($B66,3)<>\"NOX\"),BM58*INDEX('Damage costs'!$O$16:$O$43,MATCH($B66,'Damage costs'!$C$16:$C$43,0))/1000,BM58*INDEX('Damage costs'!$S$16:$S$43,MATCH($B66,'Damage costs'!$C$16:$C$43,0))/1000),\"\")","v":""},{"$f":"IFERROR(IF(OR($C$67=FALSE,LEFT($B66,3)<>\"NOX\"),BN58*INDEX('Damage costs'!$O$16:$O$43,MATCH($B66,'Damage costs'!$C$16:$C$43,0))/1000,BN58*INDEX('Damage costs'!$S$16:$S$43,MATCH($B66,'Damage costs'!$C$16:$C$43,0))/1000),\"\")","v":""},{"$f":"IFERROR(IF(OR($C$67=FALSE,LEFT($B66,3)<>\"NOX\"),BO58*INDEX('Damage costs'!$O$16:$O$43,MATCH($B66,'Damage costs'!$C$16:$C$43,0))/1000,BO58*INDEX('Damage costs'!$S$16:$S$43,MATCH($B66,'Damage costs'!$C$16:$C$43,0))/1000),\"\")","v":""},{"$f":"IFERROR(IF(OR($C$67=FALSE,LEFT($B66,3)<>\"NOX\"),BP58*INDEX('Damage costs'!$O$16:$O$43,MATCH($B66,'Damage costs'!$C$16:$C$43,0))/1000,BP58*INDEX('Damage costs'!$S$16:$S$43,MATCH($B66,'Damage costs'!$C$16:$C$43,0))/1000),\"\")","v":""},{"$f":"IFERROR(IF(OR($C$67=FALSE,LEFT($B66,3)<>\"NOX\"),BQ58*INDEX('Damage costs'!$O$16:$O$43,MATCH($B66,'Damage costs'!$C$16:$C$43,0))/1000,BQ58*INDEX('Damage costs'!$S$16:$S$43,MATCH($B66,'Damage costs'!$C$16:$C$43,0))/1000),\"\")","v":""},{"$f":"IFERROR(IF(OR($C$67=FALSE,LEFT($B66,3)<>\"NOX\"),BR58*INDEX('Damage costs'!$O$16:$O$43,MATCH($B66,'Damage costs'!$C$16:$C$43,0))/1000,BR58*INDEX('Damage costs'!$S$16:$S$43,MATCH($B66,'Damage costs'!$C$16:$C$43,0))/1000),\"\")","v":""},{"$f":"IFERROR(IF(OR($C$67=FALSE,LEFT($B66,3)<>\"NOX\"),BS58*INDEX('Damage costs'!$O$16:$O$43,MATCH($B66,'Damage costs'!$C$16:$C$43,0))/1000,BS58*INDEX('Damage costs'!$S$16:$S$43,MATCH($B66,'Damage costs'!$C$16:$C$43,0))/1000),\"\")","v":""},{"$f":"IFERROR(IF(OR($C$67=FALSE,LEFT($B66,3)<>\"NOX\"),BT58*INDEX('Damage costs'!$O$16:$O$43,MATCH($B66,'Damage costs'!$C$16:$C$43,0))/1000,BT58*INDEX('Damage costs'!$S$16:$S$43,MATCH($B66,'Damage costs'!$C$16:$C$43,0))/1000),\"\")","v":""},{"$f":"IFERROR(IF(OR($C$67=FALSE,LEFT($B66,3)<>\"NOX\"),BU58*INDEX('Damage costs'!$O$16:$O$43,MATCH($B66,'Damage costs'!$C$16:$C$43,0))/1000,BU58*INDEX('Damage costs'!$S$16:$S$43,MATCH($B66,'Damage costs'!$C$16:$C$43,0))/1000),\"\")","v":""},{"$f":"IFERROR(IF(OR($C$67=FALSE,LEFT($B66,3)<>\"NOX\"),BV58*INDEX('Damage costs'!$O$16:$O$43,MATCH($B66,'Damage costs'!$C$16:$C$43,0))/1000,BV58*INDEX('Damage costs'!$S$16:$S$43,MATCH($B66,'Damage costs'!$C$16:$C$43,0))/1000),\"\")","v":""},{"$f":"IFERROR(IF(OR($C$67=FALSE,LEFT($B66,3)<>\"NOX\"),BW58*INDEX('Damage costs'!$O$16:$O$43,MATCH($B66,'Damage costs'!$C$16:$C$43,0))/1000,BW58*INDEX('Damage costs'!$S$16:$S$43,MATCH($B66,'Damage costs'!$C$16:$C$43,0))/1000),\"\")","v":""},{"$f":"IFERROR(IF(OR($C$67=FALSE,LEFT($B66,3)<>\"NOX\"),BX58*INDEX('Damage costs'!$O$16:$O$43,MATCH($B66,'Damage costs'!$C$16:$C$43,0))/1000,BX58*INDEX('Damage costs'!$S$16:$S$43,MATCH($B66,'Damage costs'!$C$16:$C$43,0))/1000),\"\")","v":""},{"$f":"IFERROR(IF(OR($C$67=FALSE,LEFT($B66,3)<>\"NOX\"),BY58*INDEX('Damage costs'!$O$16:$O$43,MATCH($B66,'Damage costs'!$C$16:$C$43,0))/1000,BY58*INDEX('Damage costs'!$S$16:$S$43,MATCH($B66,'Damage costs'!$C$16:$C$43,0))/1000),\"\")","v":""},{"$f":"IFERROR(IF(OR($C$67=FALSE,LEFT($B66,3)<>\"NOX\"),BZ58*INDEX('Damage costs'!$O$16:$O$43,MATCH($B66,'Damage costs'!$C$16:$C$43,0))/1000,BZ58*INDEX('Damage costs'!$S$16:$S$43,MATCH($B66,'Damage costs'!$C$16:$C$43,0))/1000),\"\")","v":""},{"$f":"IFERROR(IF(OR($C$67=FALSE,LEFT($B66,3)<>\"NOX\"),CA58*INDEX('Damage costs'!$O$16:$O$43,MATCH($B66,'Damage costs'!$C$16:$C$43,0))/1000,CA58*INDEX('Damage costs'!$S$16:$S$43,MATCH($B66,'Damage costs'!$C$16:$C$43,0))/1000),\"\")","v":""},{"$f":"IFERROR(IF(OR($C$67=FALSE,LEFT($B66,3)<>\"NOX\"),CB58*INDEX('Damage costs'!$O$16:$O$43,MATCH($B66,'Damage costs'!$C$16:$C$43,0))/1000,CB58*INDEX('Damage costs'!$S$16:$S$43,MATCH($B66,'Damage costs'!$C$16:$C$43,0))/1000),\"\")","v":""},{"$f":"IFERROR(IF(OR($C$67=FALSE,LEFT($B66,3)<>\"NOX\"),CC58*INDEX('Damage costs'!$O$16:$O$43,MATCH($B66,'Damage costs'!$C$16:$C$43,0))/1000,CC58*INDEX('Damage costs'!$S$16:$S$43,MATCH($B66,'Damage costs'!$C$16:$C$43,0))/1000),\"\")","v":""},{"$f":"IFERROR(IF(OR($C$67=FALSE,LEFT($B66,3)<>\"NOX\"),CD58*INDEX('Damage costs'!$O$16:$O$43,MATCH($B66,'Damage costs'!$C$16:$C$43,0))/1000,CD58*INDEX('Damage costs'!$S$16:$S$43,MATCH($B66,'Damage costs'!$C$16:$C$43,0))/1000),\"\")","v":""},{"$f":"IFERROR(IF(OR($C$67=FALSE,LEFT($B66,3)<>\"NOX\"),CE58*INDEX('Damage costs'!$O$16:$O$43,MATCH($B66,'Damage costs'!$C$16:$C$43,0))/1000,CE58*INDEX('Damage costs'!$S$16:$S$43,MATCH($B66,'Damage costs'!$C$16:$C$43,0))/1000),\"\")","v":""},{"$f":"IFERROR(IF(OR($C$67=FALSE,LEFT($B66,3)<>\"NOX\"),CF58*INDEX('Damage costs'!$O$16:$O$43,MATCH($B66,'Damage costs'!$C$16:$C$43,0))/1000,CF58*INDEX('Damage costs'!$S$16:$S$43,MATCH($B66,'Damage costs'!$C$16:$C$43,0))/1000),\"\")","v":""},{"$f":"IFERROR(IF(OR($C$67=FALSE,LEFT($B66,3)<>\"NOX\"),CG58*INDEX('Damage costs'!$O$16:$O$43,MATCH($B66,'Damage costs'!$C$16:$C$43,0))/1000,CG58*INDEX('Damage costs'!$S$16:$S$43,MATCH($B66,'Damage costs'!$C$16:$C$43,0))/1000),\"\")","v":""},{"$f":"IFERROR(IF(OR($C$67=FALSE,LEFT($B66,3)<>\"NOX\"),CH58*INDEX('Damage costs'!$O$16:$O$43,MATCH($B66,'Damage costs'!$C$16:$C$43,0))/1000,CH58*INDEX('Damage costs'!$S$16:$S$43,MATCH($B66,'Damage costs'!$C$16:$C$43,0))/1000),\"\")","v":""},{"$f":"IFERROR(IF(OR($C$67=FALSE,LEFT($B66,3)<>\"NOX\"),CI58*INDEX('Damage costs'!$O$16:$O$43,MATCH($B66,'Damage costs'!$C$16:$C$43,0))/1000,CI58*INDEX('Damage costs'!$S$16:$S$43,MATCH($B66,'Damage costs'!$C$16:$C$43,0))/1000),\"\")","v":""},{"$f":"IFERROR(IF(OR($C$67=FALSE,LEFT($B66,3)<>\"NOX\"),CJ58*INDEX('Damage costs'!$O$16:$O$43,MATCH($B66,'Damage costs'!$C$16:$C$43,0))/1000,CJ58*INDEX('Damage costs'!$S$16:$S$43,MATCH($B66,'Damage costs'!$C$16:$C$43,0))/1000),\"\")","v":""},{"$f":"IFERROR(IF(OR($C$67=FALSE,LEFT($B66,3)<>\"NOX\"),CK58*INDEX('Damage costs'!$O$16:$O$43,MATCH($B66,'Damage costs'!$C$16:$C$43,0))/1000,CK58*INDEX('Damage costs'!$S$16:$S$43,MATCH($B66,'Damage costs'!$C$16:$C$43,0))/1000),\"\")","v":""},{"$f":"IFERROR(IF(OR($C$67=FALSE,LEFT($B66,3)<>\"NOX\"),CL58*INDEX('Damage costs'!$O$16:$O$43,MATCH($B66,'Damage costs'!$C$16:$C$43,0))/1000,CL58*INDEX('Damage costs'!$S$16:$S$43,MATCH($B66,'Damage costs'!$C$16:$C$43,0))/1000),\"\")","v":""},{"$f":"IFERROR(IF(OR($C$67=FALSE,LEFT($B66,3)<>\"NOX\"),CM58*INDEX('Damage costs'!$O$16:$O$43,MATCH($B66,'Damage costs'!$C$16:$C$43,0))/1000,CM58*INDEX('Damage costs'!$S$16:$S$43,MATCH($B66,'Damage costs'!$C$16:$C$43,0))/1000),\"\")","v":""},{"$f":"IFERROR(IF(OR($C$67=FALSE,LEFT($B66,3)<>\"NOX\"),CN58*INDEX('Damage costs'!$O$16:$O$43,MATCH($B66,'Damage costs'!$C$16:$C$43,0))/1000,CN58*INDEX('Damage costs'!$S$16:$S$43,MATCH($B66,'Damage costs'!$C$16:$C$43,0))/1000),\"\")","v":""},{"$f":"IFERROR(IF(OR($C$67=FALSE,LEFT($B66,3)<>\"NOX\"),CO58*INDEX('Damage costs'!$O$16:$O$43,MATCH($B66,'Damage costs'!$C$16:$C$43,0))/1000,CO58*INDEX('Damage costs'!$S$16:$S$43,MATCH($B66,'Damage costs'!$C$16:$C$43,0))/1000),\"\")","v":""},{"$f":"IFERROR(IF(OR($C$67=FALSE,LEFT($B66,3)<>\"NOX\"),CP58*INDEX('Damage costs'!$O$16:$O$43,MATCH($B66,'Damage costs'!$C$16:$C$43,0))/1000,CP58*INDEX('Damage costs'!$S$16:$S$43,MATCH($B66,'Damage costs'!$C$16:$C$43,0))/1000),\"\")","v":""},{"$f":"IFERROR(IF(OR($C$67=FALSE,LEFT($B66,3)<>\"NOX\"),CQ58*INDEX('Damage costs'!$O$16:$O$43,MATCH($B66,'Damage costs'!$C$16:$C$43,0))/1000,CQ58*INDEX('Damage costs'!$S$16:$S$43,MATCH($B66,'Damage costs'!$C$16:$C$43,0))/1000),\"\")","v":""},{"$f":"IFERROR(IF(OR($C$67=FALSE,LEFT($B66,3)<>\"NOX\"),CR58*INDEX('Damage costs'!$O$16:$O$43,MATCH($B66,'Damage costs'!$C$16:$C$43,0))/1000,CR58*INDEX('Damage costs'!$S$16:$S$43,MATCH($B66,'Damage costs'!$C$16:$C$43,0))/1000),\"\")","v":""},{"$f":"IFERROR(IF(OR($C$67=FALSE,LEFT($B66,3)<>\"NOX\"),CS58*INDEX('Damage costs'!$O$16:$O$43,MATCH($B66,'Damage costs'!$C$16:$C$43,0))/1000,CS58*INDEX('Damage costs'!$S$16:$S$43,MATCH($B66,'Damage costs'!$C$16:$C$43,0))/1000),\"\")","v":""},{"$f":"IFERROR(IF(OR($C$67=FALSE,LEFT($B66,3)<>\"NOX\"),CT58*INDEX('Damage costs'!$O$16:$O$43,MATCH($B66,'Damage costs'!$C$16:$C$43,0))/1000,CT58*INDEX('Damage costs'!$S$16:$S$43,MATCH($B66,'Damage costs'!$C$16:$C$43,0))/1000),\"\")","v":""},{"$f":"IFERROR(IF(OR($C$67=FALSE,LEFT($B66,3)<>\"NOX\"),CU58*INDEX('Damage costs'!$O$16:$O$43,MATCH($B66,'Damage costs'!$C$16:$C$43,0))/1000,CU58*INDEX('Damage costs'!$S$16:$S$43,MATCH($B66,'Damage costs'!$C$16:$C$43,0))/1000),\"\")","v":""},{"$f":"IFERROR(IF(OR($C$67=FALSE,LEFT($B66,3)<>\"NOX\"),CV58*INDEX('Damage costs'!$O$16:$O$43,MATCH($B66,'Damage costs'!$C$16:$C$43,0))/1000,CV58*INDEX('Damage costs'!$S$16:$S$43,MATCH($B66,'Damage costs'!$C$16:$C$43,0))/1000),\"\")","v":""},{"$f":"IFERROR(IF(OR($C$67=FALSE,LEFT($B66,3)<>\"NOX\"),CW58*INDEX('Damage costs'!$O$16:$O$43,MATCH($B66,'Damage costs'!$C$16:$C$43,0))/1000,CW58*INDEX('Damage costs'!$S$16:$S$43,MATCH($B66,'Damage costs'!$C$16:$C$43,0))/1000),\"\")","v":""},{"$f":"IFERROR(IF(OR($C$67=FALSE,LEFT($B66,3)<>\"NOX\"),CX58*INDEX('Damage costs'!$O$16:$O$43,MATCH($B66,'Damage costs'!$C$16:$C$43,0))/1000,CX58*INDEX('Damage costs'!$S$16:$S$43,MATCH($B66,'Damage costs'!$C$16:$C$43,0))/1000),\"\")","v":""},{"$f":"IFERROR(IF(OR($C$67=FALSE,LEFT($B66,3)<>\"NOX\"),CY58*INDEX('Damage costs'!$O$16:$O$43,MATCH($B66,'Damage costs'!$C$16:$C$43,0))/1000,CY58*INDEX('Damage costs'!$S$16:$S$43,MATCH($B66,'Damage costs'!$C$16:$C$43,0))/1000),\"\")","v":""}]
[null,"PM10 Used",{"$f":"IF(OR(LEFT(B61,4)=\"PM10\",LEFT(B62,4)=\"PM10\",LEFT(B63,4)=\"PM10\",LEFT(B64,4)=\"PM10\",LEFT(B65,4)=\"PM10\",LEFT(B66,4)=\"PM10\"),TRUE,FALSE)","v":false}]
[]
[null,"Uplift pa","%",{"$f":"'Discount and deflators'!$H$5","v":0.02}]
[null,"Uplift factor",null,{"$f":"IF(D$6=0,0,(1+$D69)^(D$6-'Data Input - General'!$F$22))","v":1},{"$f":"IF(E$6=0,0,(1+$D69)^(E$6-'Data Input - General'!$F$22))","v":1.02},{"$f":"IF(F$6=0,0,(1+$D69)^(F$6-'Data Input - General'!$F$22))","v":1.0404},{"$f":"IF(G$6=0,0,(1+$D69)^(G$6-'Data Input - General'!$F$22))","v":1.0612079999999999},{"$f":"IF(H$6=0,0,(1+$D69)^(H$6-'Data Input - General'!$F$22))","v":1.08243216},{"$f":"IF(I$6=0,0,(1+$D69)^(I$6-'Data Input - General'!$F$22))","v":1.1040808032},{"$f":"IF(J$6=0,0,(1+$D69)^(J$6-'Data Input - General'!$F$22))","v":1.1261624192640001},{"$f":"IF(K$6=0,0,(1+$D69)^(K$6-'Data Input - General'!$F$22))","v":1.1486856676492798},{"$f":"IF(L$6=0,0,(1+$D69)^(L$6-'Data Input - General'!$F$22))","v":1.1716593810022655},{"$f":"IF(M$6=0,0,(1+$D69)^(M$6-'Data Input - General'!$F$22))","v":1.1950925686223108},{"$f":"IF(N$6=0,0,(1+$D69)^(N$6-'Data Input - General'!$F$22))","v":1.2189944199947571},{"$f":"IF(O$6=0,0,(1+$D69)^(O$6-'Data Input - General'!$F$22))","v":1.243374308394652},{"$f":"IF(P$6=0,0,(1+$D69)^(P$6-'Data Input - General'!$F$22))","v":1.2682417945625453},{"$f":"IF(Q$6=0,0,(1+$D69)^(Q$6-'Data Input - General'!$F$22))","v":1.2936066304537961},{"$f":"IF(R$6=0,0,(1+$D69)^(R$6-'Data Input - General'!$F$22))","v":1.3194787630628722},{"$f":"IF(S$6=0,0,(1+$D69)^(S$6-'Data Input - General'!$F$22))","v":1.3458683383241292},{"$f":"IF(T$6=0,0,(1+$D69)^(T$6-'Data Input - General'!$F$22))","v":1.372785705090612},{"$f":"IF(U$6=0,0,(1+$D69)^(U$6-'Data Input - General'!$F$22))","v":1.4002414191924244},{"$f":"IF(V$6=0,0,(1+$D69)^(V$6-'Data Input - General'!$F$22))","v":1.4282462475762727},{"$f":"IF(W$6=0,0,(1+$D69)^(W$6-'Data Input - General'!$F$22))","v":1.4568111725277981},{"$f":"IF(X$6=0,0,(1+$D69)^(X$6-'Data Input - General'!$F$22))","v":1.4859473959783542},{"$f":"IF(Y$6=0,0,(1+$D69)^(Y$6-'Data Input - General'!$F$22))","v":1.5156663438979212},{"$f":"IF(Z$6=0,0,(1+$D69)^(Z$6-'Data Input - General'!$F$22))","v":1.5459796707758797},{"$f":"IF(AA$6=0,0,(1+$D69)^(AA$6-'Data Input - General'!$F$22))","v":1.576899264191397},{"$f":"IF(AB$6=0,0,(1+$D69)^(AB$6-'Data Input - General'!$F$22))","v":1.608437249475225},{"$f":"IF(AC$6=0,0,(1+$D69)^(AC$6-'Data Input - General'!$F$22))","v":1.6406059944647295},{"$f":"IF(AD$6=0,0,(1+$D69)^(AD$6-'Data Input - General'!$F$22))","v":1.6734181143540243},{"$f":"IF(AE$6=0,0,(1+$D69)^(AE$6-'Data Input - General'!$F$22))","v":1.7068864766411045},{"$f":"IF(AF$6=0,0,(1+$D69)^(AF$6-'Data Input - General'!$F$22))","v":1.7410242061739269},{"$f":"IF(AG$6=0,0,(1+$D69)^(AG$6-'Data Input - General'!$F$22))","v":1.7758446902974052},{"$f":"IF(AH$6=0,0,(1+$D69)^(AH$6-'Data Input - General'!$F$22))","v":1.8113615841033535},{"$f":"IF(AI$6=0,0,(1+$D69)^(AI$6-'Data Input - General'!$F$22))","v":0},{"$f":"IF(AJ$6=0,0,(1+$D69)^(AJ$6-'Data Input - General'!$F$22))","v":0},{"$f":"IF(AK$6=0,0,(1+$D69)^(AK$6-'Data Input - General'!$F$22))","v":0},{"$f":"IF(AL$6=0,0,(1+$D69)^(AL$6-'Data Input - General'!$F$22))","v":0},{"$f":"IF(AM$6=0,0,(1+$D69)^(AM$6-'Data Input - General'!$F$22))","v":0},{"$f":"IF(AN$6=0,0,(1+$D69)^(AN$6-'Data Input - General'!$F$22))","v":0},{"$f":"IF(AO$6=0,0,(1+$D69)^(AO$6-'Data Input - General'!$F$22))","v":0},{"$f":"IF(AP$6=0,0,(1+$D69)^(AP$6-'Data Input - General'!$F$22))","v":0},{"$f":"IF(AQ$6=0,0,(1+$D69)^(AQ$6-'Data Input - General'!$F$22))","v":0},{"$f":"IF(AR$6=0,0,(1+$D69)^(AR$6-'Data Input - General'!$F$22))","v":0},{"$f":"IF(AS$6=0,0,(1+$D69)^(AS$6-'Data Input - General'!$F$22))","v":0},{"$f":"IF(AT$6=0,0,(1+$D69)^(AT$6-'Data Input - General'!$F$22))","v":0},{"$f":"IF(AU$6=0,0,(1+$D69)^(AU$6-'Data Input - General'!$F$22))","v":0},{"$f":"IF(AV$6=0,0,(1+$D69)^(AV$6-'Data Input - General'!$F$22))","v":0},{"$f":"IF(AW$6=0,0,(1+$D69)^(AW$6-'Data Input - General'!$F$22))","v":0},{"$f":"IF(AX$6=0,0,(1+$D69)^(AX$6-'Data Input - General'!$F$22))","v":0},{"$f":"IF(AY$6=0,0,(1+$D69)^(AY$6-'Data Input - General'!$F$22))","v":0},{"$f":"IF(AZ$6=0,0,(1+$D69)^(AZ$6-'Data Input - General'!$F$22))","v":0},{"$f":"IF(BA$6=0,0,(1+$D69)^(BA$6-'Data Input - General'!$F$22))","v":0},{"$f":"IF(BB$6=0,0,(1+$D69)^(BB$6-'Data Input - General'!$F$22))","v":0},{"$f":"IF(BC$6=0,0,(1+$D69)^(BC$6-'Data Input - General'!$F$22))","v":0},{"$f":"IF(BD$6=0,0,(1+$D69)^(BD$6-'Data Input - General'!$F$22))","v":0},{"$f":"IF(BE$6=0,0,(1+$D69)^(BE$6-'Data Input - General'!$F$22))","v":0},{"$f":"IF(BF$6=0,0,(1+$D69)^(BF$6-'Data Input - General'!$F$22))","v":0},{"$f":"IF(BG$6=0,0,(1+$D69)^(BG$6-'Data Input - General'!$F$22))","v":0},{"$f":"IF(BH$6=0,0,(1+$D69)^(BH$6-'Data Input - General'!$F$22))","v":0},{"$f":"IF(BI$6=0,0,(1+$D69)^(BI$6-'Data Input - General'!$F$22))","v":0},{"$f":"IF(BJ$6=0,0,(1+$D69)^(BJ$6-'Data Input - General'!$F$22))","v":0},{"$f":"IF(BK$6=0,0,(1+$D69)^(BK$6-'Data Input - General'!$F$22))","v":0},{"$f":"IF(BL$6=0,0,(1+$D69)^(BL$6-'Data Input - General'!$F$22))","v":0},{"$f":"IF(BM$6=0,0,(1+$D69)^(BM$6-'Data Input - General'!$F$22))","v":0},{"$f":"IF(BN$6=0,0,(1+$D69)^(BN$6-'Data Input - General'!$F$22))","v":0},{"$f":"IF(BO$6=0,0,(1+$D69)^(BO$6-'Data Input - General'!$F$22))","v":0},{"$f":"IF(BP$6=0,0,(1+$D69)^(BP$6-'Data Input - General'!$F$22))","v":0},{"$f":"IF(BQ$6=0,0,(1+$D69)^(BQ$6-'Data Input - General'!$F$22))","v":0},{"$f":"IF(BR$6=0,0,(1+$D69)^(BR$6-'Data Input - General'!$F$22))","v":0},{"$f":"IF(BS$6=0,0,(1+$D69)^(BS$6-'Data Input - General'!$F$22))","v":0},{"$f":"IF(BT$6=0,0,(1+$D69)^(BT$6-'Data Input - General'!$F$22))","v":0},{"$f":"IF(BU$6=0,0,(1+$D69)^(BU$6-'Data Input - General'!$F$22))","v":0},{"$f":"IF(BV$6=0,0,(1+$D69)^(BV$6-'Data Input - General'!$F$22))","v":0},{"$f":"IF(BW$6=0,0,(1+$D69)^(BW$6-'Data Input - General'!$F$22))","v":0},{"$f":"IF(BX$6=0,0,(1+$D69)^(BX$6-'Data Input - General'!$F$22))","v":0},{"$f":"IF(BY$6=0,0,(1+$D69)^(BY$6-'Data Input - General'!$F$22))","v":0},{"$f":"IF(BZ$6=0,0,(1+$D69)^(BZ$6-'Data Input - General'!$F$22))","v":0},{"$f":"IF(CA$6=0,0,(1+$D69)^(CA$6-'Data Input - General'!$F$22))","v":0},{"$f":"IF(CB$6=0,0,(1+$D69)^(CB$6-'Data Input - General'!$F$22))","v":0},{"$f":"IF(CC$6=0,0,(1+$D69)^(CC$6-'Data Input - General'!$F$22))","v":0},{"$f":"IF(CD$6=0,0,(1+$D69)^(CD$6-'Data Input - General'!$F$22))","v":0},{"$f":"IF(CE$6=0,0,(1+$D69)^(CE$6-'Data Input - General'!$F$22))","v":0},{"$f":"IF(CF$6=0,0,(1+$D69)^(CF$6-'Data Input - General'!$F$22))","v":0},{"$f":"IF(CG$6=0,0,(1+$D69)^(CG$6-'Data Input - General'!$F$22))","v":0},{"$f":"IF(CH$6=0,0,(1+$D69)^(CH$6-'Data Input - General'!$F$22))","v":0},{"$f":"IF(CI$6=0,0,(1+$D69)^(CI$6-'Data Input - General'!$F$22))","v":0},{"$f":"IF(CJ$6=0,0,(1+$D69)^(CJ$6-'Data Input - General'!$F$22))","v":0},{"$f":"IF(CK$6=0,0,(1+$D69)^(CK$6-'Data Input - General'!$F$22))","v":0},{"$f":"IF(CL$6=0,0,(1+$D69)^(CL$6-'Data Input - General'!$F$22))","v":0},{"$f":"IF(CM$6=0,0,(1+$D69)^(CM$6-'Data Input - General'!$F$22))","v":0},{"$f":"IF(CN$6=0,0,(1+$D69)^(CN$6-'Data Input - General'!$F$22))","v":0},{"$f":"IF(CO$6=0,0,(1+$D69)^(CO$6-'Data Input - General'!$F$22))","v":0},{"$f":"IF(CP$6=0,0,(1+$D69)^(CP$6-'Data Input - General'!$F$22))","v":0},{"$f":"IF(CQ$6=0,0,(1+$D69)^(CQ$6-'Data Input - General'!$F$22))","v":0},{"$f":"IF(CR$6=0,0,(1+$D69)^(CR$6-'Data Input - General'!$F$22))","v":0},{"$f":"IF(CS$6=0,0,(1+$D69)^(CS$6-'Data Input - General'!$F$22))","v":0},{"$f":"IF(CT$6=0,0,(1+$D69)^(CT$6-'Data Input - General'!$F$22))","v":0},{"$f":"IF(CU$6=0,0,(1+$D69)^(CU$6-'Data Input - General'!$F$22))","v":0},{"$f":"IF(CV$6=0,0,(1+$D69)^(CV$6-'Data Input - General'!$F$22))","v":0},{"$f":"IF(CW$6=0,0,(1+$D69)^(CW$6-'Data Input - General'!$F$22))","v":0},{"$f":"IF(CX$6=0,0,(1+$D69)^(CX$6-'Data Input - General'!$F$22))","v":0},{"$f":"IF(CY$6=0,0,(1+$D69)^(CY$6-'Data Input - General'!$F$22))","v":0}]
[null,"Total value","£000's",{"$f":"SUM(D61:D66)*D70","v":1.7937948213674899},{"$f":"SUM(E61:E66)*E70","v":1.8296707177948397},{"$f":"SUM(F61:F66)*F70","v":1.8662641321507365},{"$f":"SUM(G61:G66)*G70","v":1.9035894147937511},1.9416612030896263,1.9804944271514189,2.0201043156944474,2.0605064020083357,0,0,0,0,0,0,0,0,0,0,0,0,0,0,0,0,0,0,0,0,0,0,0,0,{"$f":"SUM(AJ61:AJ66)*AJ70","v":0},0,0,0,0,0,0,0,0,0,0,0,0,0,0,0,0,0,0,0,0,0,0,0,0,0,0,0,{"$f":"SUM(BL61:BL66)*BL70","v":0},0,0,0,0,0,0,0,0,0,0,0,0,0,0,0,0,0,0,0,0,0,0,0,0,0,0,0,0,0,0,0,0,0,0,0,0,0,0,0]
[null,"Discounted total value","£000's",{"$f":"D71*D$7","v":1.7937948213674899},{"$f":"E71*E$7","v":1.7677977949708596},{"$f":"F71*F$7","v":1.7421775370727315},1.7169285872600832,1.6920455642563141,1.6675231647743387,1.6433561623863051,1.6195394064096915,0,0,0,0,0,0,0,0,0,0,0,0,0,0,0,0,0,0,0,0,0,0,0,0,0,0,0,0,0,0,0,0,0,0,0,0,0,0,0,0,0,0,0,0,0,0,0,0,0,0,0,0,0,0,0,0,0,0,{"$f":"BR71*BR$7","v":0},0,0,0,0,0,0,0,0,0,0,0,0,0,0,0,0,0,0,0,0,0,0,0,0,0,0,0,0,0,0,0,0,0]
[]
[null,"Greenhouse gas emissions (not associated with fuel use)"]
[null,"Emissions","tCO2e",{"$f":"'Data Input - Option 3'!H117","v":45000},{"$f":"'Data Input - Option 3'!I117","v":45000},{"$f":"'Data Input - Option 3'!J117","v":45000},{"$f":"'Data Input - Option 3'!K117","v":45000},{"$f":"'Data Input - Option 3'!L117","v":45000},{"$f":"'Data Input - Option 3'!M117","v":45000},{"$f":"'Data Input - Option 3'!N117","v":45000},{"$f":"'Data Input - Option 3'!O117","v":45000},{"$f":"'Data Input - Option 3'!P117","v":0},{"$f":"'Data Input - Option 3'!Q117","v":0},{"$f":"'Data Input - Option 3'!R117","v":0},{"$f":"'Data Input - Option 3'!S117","v":0},{"$f":"'Data Input - Option 3'!T117","v":0},{"$f":"'Data Input - Option 3'!U117","v":0},{"$f":"'Data Input - Option 3'!V117","v":0},{"$f":"'Data Input - Option 3'!W117","v":0},{"$f":"'Data Input - Option 3'!X117","v":0},{"$f":"'Data Input - Option 3'!Y117","v":0},{"$f":"'Data Input - Option 3'!Z117","v":0},{"$f":"'Data Input - Option 3'!AA117","v":0},{"$f":"'Data Input - Option 3'!AB117","v":0},{"$f":"'Data Input - Option 3'!AC117","v":0},{"$f":"'Data Input - Option 3'!AD117","v":0},{"$f":"'Data Input - Option 3'!AE117","v":0},{"$f":"'Data Input - Option 3'!AF117","v":0},{"$f":"'Data Input - Option 3'!AG117","v":0},{"$f":"'Data Input - Option 3'!AH117","v":0},{"$f":"'Data Input - Option 3'!AI117","v":0},{"$f":"'Data Input - Option 3'!AJ117","v":0},{"$f":"'Data Input - Option 3'!AK117","v":0},{"$f":"'Data Input - Option 3'!AL117","v":0},{"$f":"'Data Input - Option 3'!AM117","v":0},{"$f":"'Data Input - Option 3'!AN117","v":0},{"$f":"'Data Input - Option 3'!AO117","v":0},{"$f":"'Data Input - Option 3'!AP117","v":0},{"$f":"'Data Input - Option 3'!AQ117","v":0},{"$f":"'Data Input - Option 3'!AR117","v":0},{"$f":"'Data Input - Option 3'!AS117","v":0},{"$f":"'Data Input - Option 3'!AT117","v":0},{"$f":"'Data Input - Option 3'!AU117","v":0},{"$f":"'Data Input - Option 3'!AV117","v":0},{"$f":"'Data Input - Option 3'!AW117","v":0},{"$f":"'Data Input - Option 3'!AX117","v":0},{"$f":"'Data Input - Option 3'!AY117","v":0},{"$f":"'Data Input - Option 3'!AZ117","v":0},{"$f":"'Data Input - Option 3'!BA117","v":0},{"$f":"'Data Input - Option 3'!BB117","v":0},{"$f":"'Data Input - Option 3'!BC117","v":0},{"$f":"'Data Input - Option 3'!BD117","v":0},{"$f":"'Data Input - Option 3'!BE117","v":0},{"$f":"'Data Input - Option 3'!BF117","v":0},{"$f":"'Data Input - Option 3'!BG117","v":0},{"$f":"'Data Input - Option 3'!BH117","v":0},{"$f":"'Data Input - Option 3'!BI117","v":0},{"$f":"'Data Input - Option 3'!BJ117","v":0},{"$f":"'Data Input - Option 3'!BK117","v":0},{"$f":"'Data Input - Option 3'!BL117","v":0},{"$f":"'Data Input - Option 3'!BM117","v":0},{"$f":"'Data Input - Option 3'!BN117","v":0},{"$f":"'Data Input - Option 3'!BO117","v":0},{"$f":"'Data Input - Option 3'!BP117","v":0},{"$f":"'Data Input - Option 3'!BQ117","v":0},{"$f":"'Data Input - Option 3'!BR117","v":0},{"$f":"'Data Input - Option 3'!BS117","v":0},{"$f":"'Data Input - Option 3'!BT117","v":0},{"$f":"'Data Input - Option 3'!BU117","v":0},{"$f":"'Data Input - Option 3'!BV117","v":0},{"$f":"'Data Input - Option 3'!BW117","v":0},{"$f":"'Data Input - Option 3'!BX117","v":0},{"$f":"'Data Input - Option 3'!BY117","v":0},{"$f":"'Data Input - Option 3'!BZ117","v":0},{"$f":"'Data Input - Option 3'!CA117","v":0},{"$f":"'Data Input - Option 3'!CB117","v":0},{"$f":"'Data Input - Option 3'!CC117","v":0},{"$f":"'Data Input - Option 3'!CD117","v":0},{"$f":"'Data Input - Option 3'!CE117","v":0},{"$f":"'Data Input - Option 3'!CF117","v":0},{"$f":"'Data Input - Option 3'!CG117","v":0},{"$f":"'Data Input - Option 3'!CH117","v":0},{"$f":"'Data Input - Option 3'!CI117","v":0},{"$f":"'Data Input - Option 3'!CJ117","v":0},{"$f":"'Data Input - Option 3'!CK117","v":0},{"$f":"'Data Input - Option 3'!CL117","v":0},{"$f":"'Data Input - Option 3'!CM117","v":0},{"$f":"'Data Input - Option 3'!CN117","v":0},{"$f":"'Data Input - Option 3'!CO117","v":0},{"$f":"'Data Input - Option 3'!CP117","v":0},{"$f":"'Data Input - Option 3'!CQ117","v":0},{"$f":"'Data Input - Option 3'!CR117","v":0},{"$f":"'Data Input - Option 3'!CS117","v":0},{"$f":"'Data Input - Option 3'!CT117","v":0},{"$f":"'Data Input - Option 3'!CU117","v":0},{"$f":"'Data Input - Option 3'!CV117","v":0},{"$f":"'Data Input - Option 3'!CW117","v":0},{"$f":"'Data Input - Option 3'!CX117","v":0},{"$f":"'Data Input - Option 3'!CY117","v":0},{"$f":"'Data Input - Option 3'!CZ117","v":0},{"$f":"'Data Input - Option 3'!DA117","v":0},{"$f":"'Data Input - Option 3'!DB117","v":0},{"$f":"'Data Input - Option 3'!DC117","v":0}]
[null,"Unit value","£000's",{"$f":"IFERROR(IF('Data Input - General'!$F$12=\"Yes\",HLOOKUP(Calc_Option3!D$6,'Carbon Prices'!$D$9:$CP$15,3,FALSE),HLOOKUP(Calc_Option3!D$6,'Carbon Prices'!$D$9:$CP$15,6,FALSE)),0)","v":6.8248086829049139},{"$f":"IFERROR(IF('Data Input - General'!$F$12=\"Yes\",HLOOKUP(Calc_Option3!E$6,'Carbon Prices'!$D$9:$CP$15,3,FALSE),HLOOKUP(Calc_Option3!E$6,'Carbon Prices'!$D$9:$CP$15,6,FALSE)),0)","v":7.0841514128553005},{"$f":"IFERROR(IF('Data Input - General'!$F$12=\"Yes\",HLOOKUP(Calc_Option3!F$6,'Carbon Prices'!$D$9:$CP$15,3,FALSE),HLOOKUP(Calc_Option3!F$6,'Carbon Prices'!$D$9:$CP$15,6,FALSE)),0)","v":14.809366678834097},{"$f":"IFERROR(IF('Data Input - General'!$F$12=\"Yes\",HLOOKUP(Calc_Option3!G$6,'Carbon Prices'!$D$9:$CP$15,3,FALSE),HLOOKUP(Calc_Option3!G$6,'Carbon Prices'!$D$9:$CP$15,6,FALSE)),0)","v":22.534581944812892},{"$f":"IFERROR(IF('Data Input - General'!$F$12=\"Yes\",HLOOKUP(Calc_Option3!H$6,'Carbon Prices'!$D$9:$CP$15,3,FALSE),HLOOKUP(Calc_Option3!H$6,'Carbon Prices'!$D$9:$CP$15,6,FALSE)),0)","v":30.259797210791689},{"$f":"IFERROR(IF('Data Input - General'!$F$12=\"Yes\",HLOOKUP(Calc_Option3!I$6,'Carbon Prices'!$D$9:$CP$15,3,FALSE),HLOOKUP(Calc_Option3!I$6,'Carbon Prices'!$D$9:$CP$15,6,FALSE)),0)","v":37.985012476770486},{"$f":"IFERROR(IF('Data Input - General'!$F$12=\"Yes\",HLOOKUP(Calc_Option3!J$6,'Carbon Prices'!$D$9:$CP$15,3,FALSE),HLOOKUP(Calc_Option3!J$6,'Carbon Prices'!$D$9:$CP$15,6,FALSE)),0)","v":45.710227742749282},{"$f":"IFERROR(IF('Data Input - General'!$F$12=\"Yes\",HLOOKUP(Calc_Option3!K$6,'Carbon Prices'!$D$9:$CP$15,3,FALSE),HLOOKUP(Calc_Option3!K$6,'Carbon Prices'!$D$9:$CP$15,6,FALSE)),0)","v":53.435443008728079},{"$f":"IFERROR(IF('Data Input - General'!$F$12=\"Yes\",HLOOKUP(Calc_Option3!L$6,'Carbon Prices'!$D$9:$CP$15,3,FALSE),HLOOKUP(Calc_Option3!L$6,'Carbon Prices'!$D$9:$CP$15,6,FALSE)),0)","v":61.160658274706876},{"$f":"IFERROR(IF('Data Input - General'!$F$12=\"Yes\",HLOOKUP(Calc_Option3!M$6,'Carbon Prices'!$D$9:$CP$15,3,FALSE),HLOOKUP(Calc_Option3!M$6,'Carbon Prices'!$D$9:$CP$15,6,FALSE)),0)","v":68.885873540685665},{"$f":"IFERROR(IF('Data Input - General'!$F$12=\"Yes\",HLOOKUP(Calc_Option3!N$6,'Carbon Prices'!$D$9:$CP$15,3,FALSE),HLOOKUP(Calc_Option3!N$6,'Carbon Prices'!$D$9:$CP$15,6,FALSE)),0)","v":76.611088806664469},{"$f":"IFERROR(IF('Data Input - General'!$F$12=\"Yes\",HLOOKUP(Calc_Option3!O$6,'Carbon Prices'!$D$9:$CP$15,3,FALSE),HLOOKUP(Calc_Option3!O$6,'Carbon Prices'!$D$9:$CP$15,6,FALSE)),0)","v":84.336304072643259},{"$f":"IFERROR(IF('Data Input - General'!$F$12=\"Yes\",HLOOKUP(Calc_Option3!P$6,'Carbon Prices'!$D$9:$CP$15,3,FALSE),HLOOKUP(Calc_Option3!P$6,'Carbon Prices'!$D$9:$CP$15,6,FALSE)),0)","v":92.167532307960172},{"$f":"IFERROR(IF('Data Input - General'!$F$12=\"Yes\",HLOOKUP(Calc_Option3!Q$6,'Carbon Prices'!$D$9:$CP$15,3,FALSE),HLOOKUP(Calc_Option3!Q$6,'Carbon Prices'!$D$9:$CP$15,6,FALSE)),0)","v":99.998760543277044},{"$f":"IFERROR(IF('Data Input - General'!$F$12=\"Yes\",HLOOKUP(Calc_Option3!R$6,'Carbon Prices'!$D$9:$CP$15,3,FALSE),HLOOKUP(Calc_Option3!R$6,'Carbon Prices'!$D$9:$CP$15,6,FALSE)),0)","v":107.82998877859391},{"$f":"IFERROR(IF('Data Input - General'!$F$12=\"Yes\",HLOOKUP(Calc_Option3!S$6,'Carbon Prices'!$D$9:$CP$15,3,FALSE),HLOOKUP(Calc_Option3!S$6,'Carbon Prices'!$D$9:$CP$15,6,FALSE)),0)","v":115.6612170139108},{"$f":"IFERROR(IF('Data Input - General'!$F$12=\"Yes\",HLOOKUP(Calc_Option3!T$6,'Carbon Prices'!$D$9:$CP$15,3,FALSE),HLOOKUP(Calc_Option3!T$6,'Carbon Prices'!$D$9:$CP$15,6,FALSE)),0)","v":123.49244524922767},{"$f":"IFERROR(IF('Data Input - General'!$F$12=\"Yes\",HLOOKUP(Calc_Option3!U$6,'Carbon Prices'!$D$9:$CP$15,3,FALSE),HLOOKUP(Calc_Option3!U$6,'Carbon Prices'!$D$9:$CP$15,6,FALSE)),0)","v":131.32367348454454},{"$f":"IFERROR(IF('Data Input - General'!$F$12=\"Yes\",HLOOKUP(Calc_Option3!V$6,'Carbon Prices'!$D$9:$CP$15,3,FALSE),HLOOKUP(Calc_Option3!V$6,'Carbon Prices'!$D$9:$CP$15,6,FALSE)),0)","v":139.15490171986141},{"$f":"IFERROR(IF('Data Input - General'!$F$12=\"Yes\",HLOOKUP(Calc_Option3!W$6,'Carbon Prices'!$D$9:$CP$15,3,FALSE),HLOOKUP(Calc_Option3!W$6,'Carbon Prices'!$D$9:$CP$15,6,FALSE)),0)","v":146.98612995517828},{"$f":"IFERROR(IF('Data Input - General'!$F$12=\"Yes\",HLOOKUP(Calc_Option3!X$6,'Carbon Prices'!$D$9:$CP$15,3,FALSE),HLOOKUP(Calc_Option3!X$6,'Carbon Prices'!$D$9:$CP$15,6,FALSE)),0)","v":154.81735819049521},{"$f":"IFERROR(IF('Data Input - General'!$F$12=\"Yes\",HLOOKUP(Calc_Option3!Y$6,'Carbon Prices'!$D$9:$CP$15,3,FALSE),HLOOKUP(Calc_Option3!Y$6,'Carbon Prices'!$D$9:$CP$15,6,FALSE)),0)","v":162.64858642581208},{"$f":"IFERROR(IF('Data Input - General'!$F$12=\"Yes\",HLOOKUP(Calc_Option3!Z$6,'Carbon Prices'!$D$9:$CP$15,3,FALSE),HLOOKUP(Calc_Option3!Z$6,'Carbon Prices'!$D$9:$CP$15,6,FALSE)),0)","v":170.47981466112896},{"$f":"IFERROR(IF('Data Input - General'!$F$12=\"Yes\",HLOOKUP(Calc_Option3!AA$6,'Carbon Prices'!$D$9:$CP$15,3,FALSE),HLOOKUP(Calc_Option3!AA$6,'Carbon Prices'!$D$9:$CP$15,6,FALSE)),0)","v":178.31104289644583},{"$f":"IFERROR(IF('Data Input - General'!$F$12=\"Yes\",HLOOKUP(Calc_Option3!AB$6,'Carbon Prices'!$D$9:$CP$15,3,FALSE),HLOOKUP(Calc_Option3!AB$6,'Carbon Prices'!$D$9:$CP$15,6,FALSE)),0)","v":186.1422711317627},{"$f":"IFERROR(IF('Data Input - General'!$F$12=\"Yes\",HLOOKUP(Calc_Option3!AC$6,'Carbon Prices'!$D$9:$CP$15,3,FALSE),HLOOKUP(Calc_Option3!AC$6,'Carbon Prices'!$D$9:$CP$15,6,FALSE)),0)","v":193.97349936707957},{"$f":"IFERROR(IF('Data Input - General'!$F$12=\"Yes\",HLOOKUP(Calc_Option3!AD$6,'Carbon Prices'!$D$9:$CP$15,3,FALSE),HLOOKUP(Calc_Option3!AD$6,'Carbon Prices'!$D$9:$CP$15,6,FALSE)),0)","v":201.80472760239644},{"$f":"IFERROR(IF('Data Input - General'!$F$12=\"Yes\",HLOOKUP(Calc_Option3!AE$6,'Carbon Prices'!$D$9:$CP$15,3,FALSE),HLOOKUP(Calc_Option3!AE$6,'Carbon Prices'!$D$9:$CP$15,6,FALSE)),0)","v":209.63595583771331},{"$f":"IFERROR(IF('Data Input - General'!$F$12=\"Yes\",HLOOKUP(Calc_Option3!AF$6,'Carbon Prices'!$D$9:$CP$15,3,FALSE),HLOOKUP(Calc_Option3!AF$6,'Carbon Prices'!$D$9:$CP$15,6,FALSE)),0)","v":217.46718407303021},{"$f":"IFERROR(IF('Data Input - General'!$F$12=\"Yes\",HLOOKUP(Calc_Option3!AG$6,'Carbon Prices'!$D$9:$CP$15,3,FALSE),HLOOKUP(Calc_Option3!AG$6,'Carbon Prices'!$D$9:$CP$15,6,FALSE)),0)","v":225.29841230834708},{"$f":"IFERROR(IF('Data Input - General'!$F$12=\"Yes\",HLOOKUP(Calc_Option3!AH$6,'Carbon Prices'!$D$9:$CP$15,3,FALSE),HLOOKUP(Calc_Option3!AH$6,'Carbon Prices'!$D$9:$CP$15,6,FALSE)),0)","v":233.12964054366395},{"$f":"IFERROR(IF('Data Input - General'!$F$12=\"Yes\",HLOOKUP(Calc_Option3!AI$6,'Carbon Prices'!$D$9:$CP$15,3,FALSE),HLOOKUP(Calc_Option3!AI$6,'Carbon Prices'!$D$9:$CP$15,6,FALSE)),0)","v":0},{"$f":"IFERROR(IF('Data Input - General'!$F$12=\"Yes\",HLOOKUP(Calc_Option3!AJ$6,'Carbon Prices'!$D$9:$CP$15,3,FALSE),HLOOKUP(Calc_Option3!AJ$6,'Carbon Prices'!$D$9:$CP$15,6,FALSE)),0)","v":0},{"$f":"IFERROR(IF('Data Input - General'!$F$12=\"Yes\",HLOOKUP(Calc_Option3!AK$6,'Carbon Prices'!$D$9:$CP$15,3,FALSE),HLOOKUP(Calc_Option3!AK$6,'Carbon Prices'!$D$9:$CP$15,6,FALSE)),0)","v":0},{"$f":"IFERROR(IF('Data Input - General'!$F$12=\"Yes\",HLOOKUP(Calc_Option3!AL$6,'Carbon Prices'!$D$9:$CP$15,3,FALSE),HLOOKUP(Calc_Option3!AL$6,'Carbon Prices'!$D$9:$CP$15,6,FALSE)),0)","v":0},{"$f":"IFERROR(IF('Data Input - General'!$F$12=\"Yes\",HLOOKUP(Calc_Option3!AM$6,'Carbon Prices'!$D$9:$CP$15,3,FALSE),HLOOKUP(Calc_Option3!AM$6,'Carbon Prices'!$D$9:$CP$15,6,FALSE)),0)","v":0},{"$f":"IFERROR(IF('Data Input - General'!$F$12=\"Yes\",HLOOKUP(Calc_Option3!AN$6,'Carbon Prices'!$D$9:$CP$15,3,FALSE),HLOOKUP(Calc_Option3!AN$6,'Carbon Prices'!$D$9:$CP$15,6,FALSE)),0)","v":0},{"$f":"IFERROR(IF('Data Input - General'!$F$12=\"Yes\",HLOOKUP(Calc_Option3!AO$6,'Carbon Prices'!$D$9:$CP$15,3,FALSE),HLOOKUP(Calc_Option3!AO$6,'Carbon Prices'!$D$9:$CP$15,6,FALSE)),0)","v":0},{"$f":"IFERROR(IF('Data Input - General'!$F$12=\"Yes\",HLOOKUP(Calc_Option3!AP$6,'Carbon Prices'!$D$9:$CP$15,3,FALSE),HLOOKUP(Calc_Option3!AP$6,'Carbon Prices'!$D$9:$CP$15,6,FALSE)),0)","v":0},{"$f":"IFERROR(IF('Data Input - General'!$F$12=\"Yes\",HLOOKUP(Calc_Option3!AQ$6,'Carbon Prices'!$D$9:$CP$15,3,FALSE),HLOOKUP(Calc_Option3!AQ$6,'Carbon Prices'!$D$9:$CP$15,6,FALSE)),0)","v":0},{"$f":"IFERROR(IF('Data Input - General'!$F$12=\"Yes\",HLOOKUP(Calc_Option3!AR$6,'Carbon Prices'!$D$9:$CP$15,3,FALSE),HLOOKUP(Calc_Option3!AR$6,'Carbon Prices'!$D$9:$CP$15,6,FALSE)),0)","v":0},{"$f":"IFERROR(IF('Data Input - General'!$F$12=\"Yes\",HLOOKUP(Calc_Option3!AS$6,'Carbon Prices'!$D$9:$CP$15,3,FALSE),HLOOKUP(Calc_Option3!AS$6,'Carbon Prices'!$D$9:$CP$15,6,FALSE)),0)","v":0},{"$f":"IFERROR(IF('Data Input - General'!$F$12=\"Yes\",HLOOKUP(Calc_Option3!AT$6,'Carbon Prices'!$D$9:$CP$15,3,FALSE),HLOOKUP(Calc_Option3!AT$6,'Carbon Prices'!$D$9:$CP$15,6,FALSE)),0)","v":0},{"$f":"IFERROR(IF('Data Input - General'!$F$12=\"Yes\",HLOOKUP(Calc_Option3!AU$6,'Carbon Prices'!$D$9:$CP$15,3,FALSE),HLOOKUP(Calc_Option3!AU$6,'Carbon Prices'!$D$9:$CP$15,6,FALSE)),0)","v":0},{"$f":"IFERROR(IF('Data Input - General'!$F$12=\"Yes\",HLOOKUP(Calc_Option3!AV$6,'Carbon Prices'!$D$9:$CP$15,3,FALSE),HLOOKUP(Calc_Option3!AV$6,'Carbon Prices'!$D$9:$CP$15,6,FALSE)),0)","v":0},{"$f":"IFERROR(IF('Data Input - General'!$F$12=\"Yes\",HLOOKUP(Calc_Option3!AW$6,'Carbon Prices'!$D$9:$CP$15,3,FALSE),HLOOKUP(Calc_Option3!AW$6,'Carbon Prices'!$D$9:$CP$15,6,FALSE)),0)","v":0},{"$f":"IFERROR(IF('Data Input - General'!$F$12=\"Yes\",HLOOKUP(Calc_Option3!AX$6,'Carbon Prices'!$D$9:$CP$15,3,FALSE),HLOOKUP(Calc_Option3!AX$6,'Carbon Prices'!$D$9:$CP$15,6,FALSE)),0)","v":0},{"$f":"IFERROR(IF('Data Input - General'!$F$12=\"Yes\",HLOOKUP(Calc_Option3!AY$6,'Carbon Prices'!$D$9:$CP$15,3,FALSE),HLOOKUP(Calc_Option3!AY$6,'Carbon Prices'!$D$9:$CP$15,6,FALSE)),0)","v":0},{"$f":"IFERROR(IF('Data Input - General'!$F$12=\"Yes\",HLOOKUP(Calc_Option3!AZ$6,'Carbon Prices'!$D$9:$CP$15,3,FALSE),HLOOKUP(Calc_Option3!AZ$6,'Carbon Prices'!$D$9:$CP$15,6,FALSE)),0)","v":0},{"$f":"IFERROR(IF('Data Input - General'!$F$12=\"Yes\",HLOOKUP(Calc_Option3!BA$6,'Carbon Prices'!$D$9:$CP$15,3,FALSE),HLOOKUP(Calc_Option3!BA$6,'Carbon Prices'!$D$9:$CP$15,6,FALSE)),0)","v":0},{"$f":"IFERROR(IF('Data Input - General'!$F$12=\"Yes\",HLOOKUP(Calc_Option3!BB$6,'Carbon Prices'!$D$9:$CP$15,3,FALSE),HLOOKUP(Calc_Option3!BB$6,'Carbon Prices'!$D$9:$CP$15,6,FALSE)),0)","v":0},{"$f":"IFERROR(IF('Data Input - General'!$F$12=\"Yes\",HLOOKUP(Calc_Option3!BC$6,'Carbon Prices'!$D$9:$CP$15,3,FALSE),HLOOKUP(Calc_Option3!BC$6,'Carbon Prices'!$D$9:$CP$15,6,FALSE)),0)","v":0},{"$f":"IFERROR(IF('Data Input - General'!$F$12=\"Yes\",HLOOKUP(Calc_Option3!BD$6,'Carbon Prices'!$D$9:$CP$15,3,FALSE),HLOOKUP(Calc_Option3!BD$6,'Carbon Prices'!$D$9:$CP$15,6,FALSE)),0)","v":0},{"$f":"IFERROR(IF('Data Input - General'!$F$12=\"Yes\",HLOOKUP(Calc_Option3!BE$6,'Carbon Prices'!$D$9:$CP$15,3,FALSE),HLOOKUP(Calc_Option3!BE$6,'Carbon Prices'!$D$9:$CP$15,6,FALSE)),0)","v":0},{"$f":"IFERROR(IF('Data Input - General'!$F$12=\"Yes\",HLOOKUP(Calc_Option3!BF$6,'Carbon Prices'!$D$9:$CP$15,3,FALSE),HLOOKUP(Calc_Option3!BF$6,'Carbon Prices'!$D$9:$CP$15,6,FALSE)),0)","v":0},{"$f":"IFERROR(IF('Data Input - General'!$F$12=\"Yes\",HLOOKUP(Calc_Option3!BG$6,'Carbon Prices'!$D$9:$CP$15,3,FALSE),HLOOKUP(Calc_Option3!BG$6,'Carbon Prices'!$D$9:$CP$15,6,FALSE)),0)","v":0},{"$f":"IFERROR(IF('Data Input - General'!$F$12=\"Yes\",HLOOKUP(Calc_Option3!BH$6,'Carbon Prices'!$D$9:$CP$15,3,FALSE),HLOOKUP(Calc_Option3!BH$6,'Carbon Prices'!$D$9:$CP$15,6,FALSE)),0)","v":0},{"$f":"IFERROR(IF('Data Input - General'!$F$12=\"Yes\",HLOOKUP(Calc_Option3!BI$6,'Carbon Prices'!$D$9:$CP$15,3,FALSE),HLOOKUP(Calc_Option3!BI$6,'Carbon Prices'!$D$9:$CP$15,6,FALSE)),0)","v":0},{"$f":"IFERROR(IF('Data Input - General'!$F$12=\"Yes\",HLOOKUP(Calc_Option3!BJ$6,'Carbon Prices'!$D$9:$CP$15,3,FALSE),HLOOKUP(Calc_Option3!BJ$6,'Carbon Prices'!$D$9:$CP$15,6,FALSE)),0)","v":0},{"$f":"IFERROR(IF('Data Input - General'!$F$12=\"Yes\",HLOOKUP(Calc_Option3!BK$6,'Carbon Prices'!$D$9:$CP$15,3,FALSE),HLOOKUP(Calc_Option3!BK$6,'Carbon Prices'!$D$9:$CP$15,6,FALSE)),0)","v":0},{"$f":"IFERROR(IF('Data Input - General'!$F$12=\"Yes\",HLOOKUP(Calc_Option3!BL$6,'Carbon Prices'!$D$9:$CP$15,3,FALSE),HLOOKUP(Calc_Option3!BL$6,'Carbon Prices'!$D$9:$CP$15,6,FALSE)),0)","v":0},{"$f":"IFERROR(IF('Data Input - General'!$F$12=\"Yes\",HLOOKUP(Calc_Option3!BM$6,'Carbon Prices'!$D$9:$CP$15,3,FALSE),HLOOKUP(Calc_Option3!BM$6,'Carbon Prices'!$D$9:$CP$15,6,FALSE)),0)","v":0},{"$f":"IFERROR(IF('Data Input - General'!$F$12=\"Yes\",HLOOKUP(Calc_Option3!BN$6,'Carbon Prices'!$D$9:$CP$15,3,FALSE),HLOOKUP(Calc_Option3!BN$6,'Carbon Prices'!$D$9:$CP$15,6,FALSE)),0)","v":0},{"$f":"IFERROR(IF('Data Input - General'!$F$12=\"Yes\",HLOOKUP(Calc_Option3!BO$6,'Carbon Prices'!$D$9:$CP$15,3,FALSE),HLOOKUP(Calc_Option3!BO$6,'Carbon Prices'!$D$9:$CP$15,6,FALSE)),0)","v":0},{"$f":"IFERROR(IF('Data Input - General'!$F$12=\"Yes\",HLOOKUP(Calc_Option3!BP$6,'Carbon Prices'!$D$9:$CP$15,3,FALSE),HLOOKUP(Calc_Option3!BP$6,'Carbon Prices'!$D$9:$CP$15,6,FALSE)),0)","v":0},{"$f":"IFERROR(IF('Data Input - General'!$F$12=\"Yes\",HLOOKUP(Calc_Option3!BQ$6,'Carbon Prices'!$D$9:$CP$15,3,FALSE),HLOOKUP(Calc_Option3!BQ$6,'Carbon Prices'!$D$9:$CP$15,6,FALSE)),0)","v":0},{"$f":"IFERROR(IF('Data Input - General'!$F$12=\"Yes\",HLOOKUP(Calc_Option3!BR$6,'Carbon Prices'!$D$9:$CP$15,3,FALSE),HLOOKUP(Calc_Option3!BR$6,'Carbon Prices'!$D$9:$CP$15,6,FALSE)),0)","v":0},{"$f":"IFERROR(IF('Data Input - General'!$F$12=\"Yes\",HLOOKUP(Calc_Option3!BS$6,'Carbon Prices'!$D$9:$CP$15,3,FALSE),HLOOKUP(Calc_Option3!BS$6,'Carbon Prices'!$D$9:$CP$15,6,FALSE)),0)","v":0},{"$f":"IFERROR(IF('Data Input - General'!$F$12=\"Yes\",HLOOKUP(Calc_Option3!BT$6,'Carbon Prices'!$D$9:$CP$15,3,FALSE),HLOOKUP(Calc_Option3!BT$6,'Carbon Prices'!$D$9:$CP$15,6,FALSE)),0)","v":0},{"$f":"IFERROR(IF('Data Input - General'!$F$12=\"Yes\",HLOOKUP(Calc_Option3!BU$6,'Carbon Prices'!$D$9:$CP$15,3,FALSE),HLOOKUP(Calc_Option3!BU$6,'Carbon Prices'!$D$9:$CP$15,6,FALSE)),0)","v":0},{"$f":"IFERROR(IF('Data Input - General'!$F$12=\"Yes\",HLOOKUP(Calc_Option3!BV$6,'Carbon Prices'!$D$9:$CP$15,3,FALSE),HLOOKUP(Calc_Option3!BV$6,'Carbon Prices'!$D$9:$CP$15,6,FALSE)),0)","v":0},{"$f":"IFERROR(IF('Data Input - General'!$F$12=\"Yes\",HLOOKUP(Calc_Option3!BW$6,'Carbon Prices'!$D$9:$CP$15,3,FALSE),HLOOKUP(Calc_Option3!BW$6,'Carbon Prices'!$D$9:$CP$15,6,FALSE)),0)","v":0},{"$f":"IFERROR(IF('Data Input - General'!$F$12=\"Yes\",HLOOKUP(Calc_Option3!BX$6,'Carbon Prices'!$D$9:$CP$15,3,FALSE),HLOOKUP(Calc_Option3!BX$6,'Carbon Prices'!$D$9:$CP$15,6,FALSE)),0)","v":0},{"$f":"IFERROR(IF('Data Input - General'!$F$12=\"Yes\",HLOOKUP(Calc_Option3!BY$6,'Carbon Prices'!$D$9:$CP$15,3,FALSE),HLOOKUP(Calc_Option3!BY$6,'Carbon Prices'!$D$9:$CP$15,6,FALSE)),0)","v":0},{"$f":"IFERROR(IF('Data Input - General'!$F$12=\"Yes\",HLOOKUP(Calc_Option3!BZ$6,'Carbon Prices'!$D$9:$CP$15,3,FALSE),HLOOKUP(Calc_Option3!BZ$6,'Carbon Prices'!$D$9:$CP$15,6,FALSE)),0)","v":0},{"$f":"IFERROR(IF('Data Input - General'!$F$12=\"Yes\",HLOOKUP(Calc_Option3!CA$6,'Carbon Prices'!$D$9:$CP$15,3,FALSE),HLOOKUP(Calc_Option3!CA$6,'Carbon Prices'!$D$9:$CP$15,6,FALSE)),0)","v":0},{"$f":"IFERROR(IF('Data Input - General'!$F$12=\"Yes\",HLOOKUP(Calc_Option3!CB$6,'Carbon Prices'!$D$9:$CP$15,3,FALSE),HLOOKUP(Calc_Option3!CB$6,'Carbon Prices'!$D$9:$CP$15,6,FALSE)),0)","v":0},{"$f":"IFERROR(IF('Data Input - General'!$F$12=\"Yes\",HLOOKUP(Calc_Option3!CC$6,'Carbon Prices'!$D$9:$CP$15,3,FALSE),HLOOKUP(Calc_Option3!CC$6,'Carbon Prices'!$D$9:$CP$15,6,FALSE)),0)","v":0},{"$f":"IFERROR(IF('Data Input - General'!$F$12=\"Yes\",HLOOKUP(Calc_Option3!CD$6,'Carbon Prices'!$D$9:$CP$15,3,FALSE),HLOOKUP(Calc_Option3!CD$6,'Carbon Prices'!$D$9:$CP$15,6,FALSE)),0)","v":0},{"$f":"IFERROR(IF('Data Input - General'!$F$12=\"Yes\",HLOOKUP(Calc_Option3!CE$6,'Carbon Prices'!$D$9:$CP$15,3,FALSE),HLOOKUP(Calc_Option3!CE$6,'Carbon Prices'!$D$9:$CP$15,6,FALSE)),0)","v":0},{"$f":"IFERROR(IF('Data Input - General'!$F$12=\"Yes\",HLOOKUP(Calc_Option3!CF$6,'Carbon Prices'!$D$9:$CP$15,3,FALSE),HLOOKUP(Calc_Option3!CF$6,'Carbon Prices'!$D$9:$CP$15,6,FALSE)),0)","v":0},{"$f":"IFERROR(IF('Data Input - General'!$F$12=\"Yes\",HLOOKUP(Calc_Option3!CG$6,'Carbon Prices'!$D$9:$CP$15,3,FALSE),HLOOKUP(Calc_Option3!CG$6,'Carbon Prices'!$D$9:$CP$15,6,FALSE)),0)","v":0},{"$f":"IFERROR(IF('Data Input - General'!$F$12=\"Yes\",HLOOKUP(Calc_Option3!CH$6,'Carbon Prices'!$D$9:$CP$15,3,FALSE),HLOOKUP(Calc_Option3!CH$6,'Carbon Prices'!$D$9:$CP$15,6,FALSE)),0)","v":0},{"$f":"IFERROR(IF('Data Input - General'!$F$12=\"Yes\",HLOOKUP(Calc_Option3!CI$6,'Carbon Prices'!$D$9:$CP$15,3,FALSE),HLOOKUP(Calc_Option3!CI$6,'Carbon Prices'!$D$9:$CP$15,6,FALSE)),0)","v":0},{"$f":"IFERROR(IF('Data Input - General'!$F$12=\"Yes\",HLOOKUP(Calc_Option3!CJ$6,'Carbon Prices'!$D$9:$CP$15,3,FALSE),HLOOKUP(Calc_Option3!CJ$6,'Carbon Prices'!$D$9:$CP$15,6,FALSE)),0)","v":0},{"$f":"IFERROR(IF('Data Input - General'!$F$12=\"Yes\",HLOOKUP(Calc_Option3!CK$6,'Carbon Prices'!$D$9:$CP$15,3,FALSE),HLOOKUP(Calc_Option3!CK$6,'Carbon Prices'!$D$9:$CP$15,6,FALSE)),0)","v":0},{"$f":"IFERROR(IF('Data Input - General'!$F$12=\"Yes\",HLOOKUP(Calc_Option3!CL$6,'Carbon Prices'!$D$9:$CP$15,3,FALSE),HLOOKUP(Calc_Option3!CL$6,'Carbon Prices'!$D$9:$CP$15,6,FALSE)),0)","v":0},{"$f":"IFERROR(IF('Data Input - General'!$F$12=\"Yes\",HLOOKUP(Calc_Option3!CM$6,'Carbon Prices'!$D$9:$CP$15,3,FALSE),HLOOKUP(Calc_Option3!CM$6,'Carbon Prices'!$D$9:$CP$15,6,FALSE)),0)","v":0},{"$f":"IFERROR(IF('Data Input - General'!$F$12=\"Yes\",HLOOKUP(Calc_Option3!CN$6,'Carbon Prices'!$D$9:$CP$15,3,FALSE),HLOOKUP(Calc_Option3!CN$6,'Carbon Prices'!$D$9:$CP$15,6,FALSE)),0)","v":0},{"$f":"IFERROR(IF('Data Input - General'!$F$12=\"Yes\",HLOOKUP(Calc_Option3!CO$6,'Carbon Prices'!$D$9:$CP$15,3,FALSE),HLOOKUP(Calc_Option3!CO$6,'Carbon Prices'!$D$9:$CP$15,6,FALSE)),0)","v":0},{"$f":"IFERROR(IF('Data Input - General'!$F$12=\"Yes\",HLOOKUP(Calc_Option3!CP$6,'Carbon Prices'!$D$9:$CP$15,3,FALSE),HLOOKUP(Calc_Option3!CP$6,'Carbon Prices'!$D$9:$CP$15,6,FALSE)),0)","v":0},{"$f":"IFERROR(IF('Data Input - General'!$F$12=\"Yes\",HLOOKUP(Calc_Option3!CQ$6,'Carbon Prices'!$D$9:$CP$15,3,FALSE),HLOOKUP(Calc_Option3!CQ$6,'Carbon Prices'!$D$9:$CP$15,6,FALSE)),0)","v":0},{"$f":"IFERROR(IF('Data Input - General'!$F$12=\"Yes\",HLOOKUP(Calc_Option3!CR$6,'Carbon Prices'!$D$9:$CP$15,3,FALSE),HLOOKUP(Calc_Option3!CR$6,'Carbon Prices'!$D$9:$CP$15,6,FALSE)),0)","v":0},{"$f":"IFERROR(IF('Data Input - General'!$F$12=\"Yes\",HLOOKUP(Calc_Option3!CS$6,'Carbon Prices'!$D$9:$CP$15,3,FALSE),HLOOKUP(Calc_Option3!CS$6,'Carbon Prices'!$D$9:$CP$15,6,FALSE)),0)","v":0},{"$f":"IFERROR(IF('Data Input - General'!$F$12=\"Yes\",HLOOKUP(Calc_Option3!CT$6,'Carbon Prices'!$D$9:$CP$15,3,FALSE),HLOOKUP(Calc_Option3!CT$6,'Carbon Prices'!$D$9:$CP$15,6,FALSE)),0)","v":0},{"$f":"IFERROR(IF('Data Input - General'!$F$12=\"Yes\",HLOOKUP(Calc_Option3!CU$6,'Carbon Prices'!$D$9:$CP$15,3,FALSE),HLOOKUP(Calc_Option3!CU$6,'Carbon Prices'!$D$9:$CP$15,6,FALSE)),0)","v":0},{"$f":"IFERROR(IF('Data Input - General'!$F$12=\"Yes\",HLOOKUP(Calc_Option3!CV$6,'Carbon Prices'!$D$9:$CP$15,3,FALSE),HLOOKUP(Calc_Option3!CV$6,'Carbon Prices'!$D$9:$CP$15,6,FALSE)),0)","v":0},{"$f":"IFERROR(IF('Data Input - General'!$F$12=\"Yes\",HLOOKUP(Calc_Option3!CW$6,'Carbon Prices'!$D$9:$CP$15,3,FALSE),HLOOKUP(Calc_Option3!CW$6,'Carbon Prices'!$D$9:$CP$15,6,FALSE)),0)","v":0},{"$f":"IFERROR(IF('Data Input - General'!$F$12=\"Yes\",HLOOKUP(Calc_Option3!CX$6,'Carbon Prices'!$D$9:$CP$15,3,FALSE),HLOOKUP(Calc_Option3!CX$6,'Carbon Prices'!$D$9:$CP$15,6,FALSE)),0)","v":0},{"$f":"IFERROR(IF('Data Input - General'!$F$12=\"Yes\",HLOOKUP(Calc_Option3!CY$6,'Carbon Prices'!$D$9:$CP$15,3,FALSE),HLOOKUP(Calc_Option3!CY$6,'Carbon Prices'!$D$9:$CP$15,6,FALSE)),0)","v":0}]
[null,"Total value","£000's",{"$f":"IFERROR(D75*D76,0)","v":307116.39073072112},{"$f":"IFERROR(E75*E76,0)","v":318786.81357848854},{"$f":"IFERROR(F75*F76,0)","v":666421.50054753432},{"$f":"IFERROR(G75*G76,0)","v":1014056.1875165801},1361690.8744856259,1709325.5614546719,2056960.2484237177,2404594.9353927635,0,0,0,0,0,0,0,0,0,0,0,0,0,0,0,0,0,0,0,0,0,0,0,0,0,0,0,0,0,0,0,0,0,0,0,0,0,0,0,0,0,0,0,0,0,0,0,0,0,0,0,0,0,0,0,0,0,0,0,{"$f":"IFERROR(BS75*BS76,0)","v":0},0,0,0,0,0,0,0,0,0,0,0,0,0,0,0,0,0,0,0,0,0,0,0,0,0,0,0,0,0,0,0,0]
[]
[null,"Greenhouse gas emissions (associated with fuel use)"]
[null,"Elec","tCO2e",{"$f":"'Data Input - Option 3'!H120","v":1147.9102063708638},{"$f":"'Data Input - Option 3'!I120","v":1022.7509038254832},{"$f":"'Data Input - Option 3'!J120","v":900.70523018473978},{"$f":"'Data Input - Option 3'!K120","v":829.51171353866823},{"$f":"'Data Input - Option 3'!L120","v":706.29239328079632},{"$f":"'Data Input - Option 3'!M120","v":741.68258779755536},{"$f":"'Data Input - Option 3'!N120","v":695.10356862610229},{"$f":"'Data Input - Option 3'!O120","v":617.9056138546847},{"$f":"'Data Input - Option 3'!P120","v":0},{"$f":"'Data Input - Option 3'!Q120","v":0},{"$f":"'Data Input - Option 3'!R120","v":0},{"$f":"'Data Input - Option 3'!S120","v":0},{"$f":"'Data Input - Option 3'!T120","v":0},{"$f":"'Data Input - Option 3'!U120","v":0},{"$f":"'Data Input - Option 3'!V120","v":0},{"$f":"'Data Input - Option 3'!W120","v":0},{"$f":"'Data Input - Option 3'!X120","v":0},{"$f":"'Data Input - Option 3'!Y120","v":0},{"$f":"'Data Input - Option 3'!Z120","v":0},{"$f":"'Data Input - Option 3'!AA120","v":0},{"$f":"'Data Input - Option 3'!AB120","v":0},{"$f":"'Data Input - Option 3'!AC120","v":0},{"$f":"'Data Input - Option 3'!AD120","v":0},{"$f":"'Data Input - Option 3'!AE120","v":0},{"$f":"'Data Input - Option 3'!AF120","v":0},{"$f":"'Data Input - Option 3'!AG120","v":0},{"$f":"'Data Input - Option 3'!AH120","v":0},{"$f":"'Data Input - Option 3'!AI120","v":0},{"$f":"'Data Input - Option 3'!AJ120","v":0},{"$f":"'Data Input - Option 3'!AK120","v":0},{"$f":"'Data Input - Option 3'!AL120","v":0},{"$f":"'Data Input - Option 3'!AM120","v":0},{"$f":"'Data Input - Option 3'!AN120","v":0},{"$f":"'Data Input - Option 3'!AO120","v":0},{"$f":"'Data Input - Option 3'!AP120","v":0},{"$f":"'Data Input - Option 3'!AQ120","v":0},{"$f":"'Data Input - Option 3'!AR120","v":0},{"$f":"'Data Input - Option 3'!AS120","v":0},{"$f":"'Data Input - Option 3'!AT120","v":0},{"$f":"'Data Input - Option 3'!AU120","v":0},{"$f":"'Data Input - Option 3'!AV120","v":0},{"$f":"'Data Input - Option 3'!AW120","v":0},{"$f":"'Data Input - Option 3'!AX120","v":0},{"$f":"'Data Input - Option 3'!AY120","v":0},{"$f":"'Data Input - Option 3'!AZ120","v":0},{"$f":"'Data Input - Option 3'!BA120","v":0},{"$f":"'Data Input - Option 3'!BB120","v":0},{"$f":"'Data Input - Option 3'!BC120","v":0},{"$f":"'Data Input - Option 3'!BD120","v":0},{"$f":"'Data Input - Option 3'!BE120","v":0},{"$f":"'Data Input - Option 3'!BF120","v":0},{"$f":"'Data Input - Option 3'!BG120","v":0},{"$f":"'Data Input - Option 3'!BH120","v":0},{"$f":"'Data Input - Option 3'!BI120","v":0},{"$f":"'Data Input - Option 3'!BJ120","v":0},{"$f":"'Data Input - Option 3'!BK120","v":0},{"$f":"'Data Input - Option 3'!BL120","v":0},{"$f":"'Data Input - Option 3'!BM120","v":0},{"$f":"'Data Input - Option 3'!BN120","v":0},{"$f":"'Data Input - Option 3'!BO120","v":0},{"$f":"'Data Input - Option 3'!BP120","v":0},{"$f":"'Data Input - Option 3'!BQ120","v":0},{"$f":"'Data Input - Option 3'!BR120","v":0},{"$f":"'Data Input - Option 3'!BS120","v":0},{"$f":"'Data Input - Option 3'!BT120","v":0},{"$f":"'Data Input - Option 3'!BU120","v":0},{"$f":"'Data Input - Option 3'!BV120","v":0},{"$f":"'Data Input - Option 3'!BW120","v":0},{"$f":"'Data Input - Option 3'!BX120","v":0},{"$f":"'Data Input - Option 3'!BY120","v":0},{"$f":"'Data Input - Option 3'!BZ120","v":0},{"$f":"'Data Input - Option 3'!CA120","v":0},{"$f":"'Data Input - Option 3'!CB120","v":0},{"$f":"'Data Input - Option 3'!CC120","v":0},{"$f":"'Data Input - Option 3'!CD120","v":0},{"$f":"'Data Input - Option 3'!CE120","v":0},{"$f":"'Data Input - Option 3'!CF120","v":0},{"$f":"'Data Input - Option 3'!CG120","v":0},{"$f":"'Data Input - Option 3'!CH120","v":0},{"$f":"'Data Input - Option 3'!CI120","v":0},{"$f":"'Data Input - Option 3'!CJ120","v":0},{"$f":"'Data Input - Option 3'!CK120","v":0},{"$f":"'Data Input - Option 3'!CL120","v":0},{"$f":"'Data Input - Option 3'!CM120","v":0},{"$f":"'Data Input - Option 3'!CN120","v":0},{"$f":"'Data Input - Option 3'!CO120","v":0},{"$f":"'Data Input - Option 3'!CP120","v":0},{"$f":"'Data Input - Option 3'!CQ120","v":0},{"$f":"'Data Input - Option 3'!CR120","v":0},{"$f":"'Data Input - Option 3'!CS120","v":0},{"$f":"'Data Input - Option 3'!CT120","v":0},{"$f":"'Data Input - Option 3'!CU120","v":0},{"$f":"'Data Input - Option 3'!CV120","v":0},{"$f":"'Data Input - Option 3'!CW120","v":0},{"$f":"'Data Input - Option 3'!CX120","v":0},{"$f":"'Data Input - Option 3'!CY120","v":0},{"$f":"'Data Input - Option 3'!CZ120","v":0},{"$f":"'Data Input - Option 3'!DA120","v":0},{"$f":"'Data Input - Option 3'!DB120","v":0},{"$f":"'Data Input - Option 3'!DC120","v":0}]
[null,"Non-elec","tCO2e",{"$f":"'Data Input - Option 3'!H128-'Data Input - Option 3'!H120","v":50485.236590004184},{"$f":"'Data Input - Option 3'!I128-'Data Input - Option 3'!I120","v":50475.89145931886},{"$f":"'Data Input - Option 3'!J128-'Data Input - Option 3'!J120","v":50475.891459318867},{"$f":"'Data Input - Option 3'!K128-'Data Input - Option 3'!K120","v":50475.89145931886},{"$f":"'Data Input - Option 3'!L128-'Data Input - Option 3'!L120","v":50475.89145931886},{"$f":"'Data Input - Option 3'!M128-'Data Input - Option 3'!M120","v":50475.89145931886},{"$f":"'Data Input - Option 3'!N128-'Data Input - Option 3'!N120","v":50475.89145931886},{"$f":"'Data Input - Option 3'!O128-'Data Input - Option 3'!O120","v":50475.89145931886},{"$f":"'Data Input - Option 3'!P128-'Data Input - Option 3'!P120","v":0},{"$f":"'Data Input - Option 3'!Q128-'Data Input - Option 3'!Q120","v":0},{"$f":"'Data Input - Option 3'!R128-'Data Input - Option 3'!R120","v":0},{"$f":"'Data Input - Option 3'!S128-'Data Input - Option 3'!S120","v":0},{"$f":"'Data Input - Option 3'!T128-'Data Input - Option 3'!T120","v":0},{"$f":"'Data Input - Option 3'!U128-'Data Input - Option 3'!U120","v":0},{"$f":"'Data Input - Option 3'!V128-'Data Input - Option 3'!V120","v":0},{"$f":"'Data Input - Option 3'!W128-'Data Input - Option 3'!W120","v":0},{"$f":"'Data Input - Option 3'!X128-'Data Input - Option 3'!X120","v":0},{"$f":"'Data Input - Option 3'!Y128-'Data Input - Option 3'!Y120","v":0},{"$f":"'Data Input - Option 3'!Z128-'Data Input - Option 3'!Z120","v":0},{"$f":"'Data Input - Option 3'!AA128-'Data Input - Option 3'!AA120","v":0},{"$f":"'Data Input - Option 3'!AB128-'Data Input - Option 3'!AB120","v":0},{"$f":"'Data Input - Option 3'!AC128-'Data Input - Option 3'!AC120","v":0},{"$f":"'Data Input - Option 3'!AD128-'Data Input - Option 3'!AD120","v":0},{"$f":"'Data Input - Option 3'!AE128-'Data Input - Option 3'!AE120","v":0},{"$f":"'Data Input - Option 3'!AF128-'Data Input - Option 3'!AF120","v":0},{"$f":"'Data Input - Option 3'!AG128-'Data Input - Option 3'!AG120","v":0},{"$f":"'Data Input - Option 3'!AH128-'Data Input - Option 3'!AH120","v":0},{"$f":"'Data Input - Option 3'!AI128-'Data Input - Option 3'!AI120","v":0},{"$f":"'Data Input - Option 3'!AJ128-'Data Input - Option 3'!AJ120","v":0},{"$f":"'Data Input - Option 3'!AK128-'Data Input - Option 3'!AK120","v":0},{"$f":"'Data Input - Option 3'!AL128-'Data Input - Option 3'!AL120","v":0},{"$f":"'Data Input - Option 3'!AM128-'Data Input - Option 3'!AM120","v":0},{"$f":"'Data Input - Option 3'!AN128-'Data Input - Option 3'!AN120","v":0},{"$f":"'Data Input - Option 3'!AO128-'Data Input - Option 3'!AO120","v":0},{"$f":"'Data Input - Option 3'!AP128-'Data Input - Option 3'!AP120","v":0},{"$f":"'Data Input - Option 3'!AQ128-'Data Input - Option 3'!AQ120","v":0},{"$f":"'Data Input - Option 3'!AR128-'Data Input - Option 3'!AR120","v":0},{"$f":"'Data Input - Option 3'!AS128-'Data Input - Option 3'!AS120","v":0},{"$f":"'Data Input - Option 3'!AT128-'Data Input - Option 3'!AT120","v":0},{"$f":"'Data Input - Option 3'!AU128-'Data Input - Option 3'!AU120","v":0},{"$f":"'Data Input - Option 3'!AV128-'Data Input - Option 3'!AV120","v":0},{"$f":"'Data Input - Option 3'!AW128-'Data Input - Option 3'!AW120","v":0},{"$f":"'Data Input - Option 3'!AX128-'Data Input - Option 3'!AX120","v":0},{"$f":"'Data Input - Option 3'!AY128-'Data Input - Option 3'!AY120","v":0},{"$f":"'Data Input - Option 3'!AZ128-'Data Input - Option 3'!AZ120","v":0},{"$f":"'Data Input - Option 3'!BA128-'Data Input - Option 3'!BA120","v":0},{"$f":"'Data Input - Option 3'!BB128-'Data Input - Option 3'!BB120","v":0},{"$f":"'Data Input - Option 3'!BC128-'Data Input - Option 3'!BC120","v":0},{"$f":"'Data Input - Option 3'!BD128-'Data Input - Option 3'!BD120","v":0},{"$f":"'Data Input - Option 3'!BE128-'Data Input - Option 3'!BE120","v":0},{"$f":"'Data Input - Option 3'!BF128-'Data Input - Option 3'!BF120","v":0},{"$f":"'Data Input - Option 3'!BG128-'Data Input - Option 3'!BG120","v":0},{"$f":"'Data Input - Option 3'!BH128-'Data Input - Option 3'!BH120","v":0},{"$f":"'Data Input - Option 3'!BI128-'Data Input - Option 3'!BI120","v":0},{"$f":"'Data Input - Option 3'!BJ128-'Data Input - Option 3'!BJ120","v":0},{"$f":"'Data Input - Option 3'!BK128-'Data Input - Option 3'!BK120","v":0},{"$f":"'Data Input - Option 3'!BL128-'Data Input - Option 3'!BL120","v":0},{"$f":"'Data Input - Option 3'!BM128-'Data Input - Option 3'!BM120","v":0},{"$f":"'Data Input - Option 3'!BN128-'Data Input - Option 3'!BN120","v":0},{"$f":"'Data Input - Option 3'!BO128-'Data Input - Option 3'!BO120","v":0},{"$f":"'Data Input - Option 3'!BP128-'Data Input - Option 3'!BP120","v":0},{"$f":"'Data Input - Option 3'!BQ128-'Data Input - Option 3'!BQ120","v":0},{"$f":"'Data Input - Option 3'!BR128-'Data Input - Option 3'!BR120","v":0},{"$f":"'Data Input - Option 3'!BS128-'Data Input - Option 3'!BS120","v":0},{"$f":"'Data Input - Option 3'!BT128-'Data Input - Option 3'!BT120","v":0},{"$f":"'Data Input - Option 3'!BU128-'Data Input - Option 3'!BU120","v":0},{"$f":"'Data Input - Option 3'!BV128-'Data Input - Option 3'!BV120","v":0},{"$f":"'Data Input - Option 3'!BW128-'Data Input - Option 3'!BW120","v":0},{"$f":"'Data Input - Option 3'!BX128-'Data Input - Option 3'!BX120","v":0},{"$f":"'Data Input - Option 3'!BY128-'Data Input - Option 3'!BY120","v":0},{"$f":"'Data Input - Option 3'!BZ128-'Data Input - Option 3'!BZ120","v":0},{"$f":"'Data Input - Option 3'!CA128-'Data Input - Option 3'!CA120","v":0},{"$f":"'Data Input - Option 3'!CB128-'Data Input - Option 3'!CB120","v":0},{"$f":"'Data Input - Option 3'!CC128-'Data Input - Option 3'!CC120","v":0},{"$f":"'Data Input - Option 3'!CD128-'Data Input - Option 3'!CD120","v":0},{"$f":"'Data Input - Option 3'!CE128-'Data Input - Option 3'!CE120","v":0},{"$f":"'Data Input - Option 3'!CF128-'Data Input - Option 3'!CF120","v":0},{"$f":"'Data Input - Option 3'!CG128-'Data Input - Option 3'!CG120","v":0},{"$f":"'Data Input - Option 3'!CH128-'Data Input - Option 3'!CH120","v":0},{"$f":"'Data Input - Option 3'!CI128-'Data Input - Option 3'!CI120","v":0},{"$f":"'Data Input - Option 3'!CJ128-'Data Input - Option 3'!CJ120","v":0},{"$f":"'Data Input - Option 3'!CK128-'Data Input - Option 3'!CK120","v":0},{"$f":"'Data Input - Option 3'!CL128-'Data Input - Option 3'!CL120","v":0},{"$f":"'Data Input - Option 3'!CM128-'Data Input - Option 3'!CM120","v":0},{"$f":"'Data Input - Option 3'!CN128-'Data Input - Option 3'!CN120","v":0},{"$f":"'Data Input - Option 3'!CO128-'Data Input - Option 3'!CO120","v":0},{"$f":"'Data Input - Option 3'!CP128-'Data Input - Option 3'!CP120","v":0},{"$f":"'Data Input - Option 3'!CQ128-'Data Input - Option 3'!CQ120","v":0},{"$f":"'Data Input - Option 3'!CR128-'Data Input - Option 3'!CR120","v":0},{"$f":"'Data Input - Option 3'!CS128-'Data Input - Option 3'!CS120","v":0},{"$f":"'Data Input - Option 3'!CT128-'Data Input - Option 3'!CT120","v":0},{"$f":"'Data Input - Option 3'!CU128-'Data Input - Option 3'!CU120","v":0},{"$f":"'Data Input - Option 3'!CV128-'Data Input - Option 3'!CV120","v":0},{"$f":"'Data Input - Option 3'!CW128-'Data Input - Option 3'!CW120","v":0},{"$f":"'Data Input - Option 3'!CX128-'Data Input - Option 3'!CX120","v":0},{"$f":"'Data Input - Option 3'!CY128-'Data Input - Option 3'!CY120","v":0},{"$f":"'Data Input - Option 3'!CZ128-'Data Input - Option 3'!CZ120","v":0},{"$f":"'Data Input - Option 3'!DA128-'Data Input - Option 3'!DA120","v":0},{"$f":"'Data Input - Option 3'!DB128-'Data Input - Option 3'!DB120","v":0},{"$f":"'Data Input - Option 3'!DC128-'Data Input - Option 3'!DC120","v":0}]
[null,"Value elec","£000's",{"$f":"HLOOKUP(Calc_Option3!D$6,'Carbon Prices'!$D$9:$CP$15,3,FALSE)","v":6.8248086829049139},{"$f":"HLOOKUP(Calc_Option3!E$6,'Carbon Prices'!$D$9:$CP$15,3,FALSE)","v":7.0841514128553005},{"$f":"HLOOKUP(Calc_Option3!F$6,'Carbon Prices'!$D$9:$CP$15,3,FALSE)","v":14.809366678834097},{"$f":"HLOOKUP(Calc_Option3!G$6,'Carbon Prices'!$D$9:$CP$15,3,FALSE)","v":22.534581944812892},{"$f":"HLOOKUP(Calc_Option3!H$6,'Carbon Prices'!$D$9:$CP$15,3,FALSE)","v":30.259797210791689},{"$f":"HLOOKUP(Calc_Option3!I$6,'Carbon Prices'!$D$9:$CP$15,3,FALSE)","v":37.985012476770486},{"$f":"HLOOKUP(Calc_Option3!J$6,'Carbon Prices'!$D$9:$CP$15,3,FALSE)","v":45.710227742749282},{"$f":"HLOOKUP(Calc_Option3!K$6,'Carbon Prices'!$D$9:$CP$15,3,FALSE)","v":53.435443008728079},{"$f":"HLOOKUP(Calc_Option3!L$6,'Carbon Prices'!$D$9:$CP$15,3,FALSE)","v":61.160658274706876},{"$f":"HLOOKUP(Calc_Option3!M$6,'Carbon Prices'!$D$9:$CP$15,3,FALSE)","v":68.885873540685665},{"$f":"HLOOKUP(Calc_Option3!N$6,'Carbon Prices'!$D$9:$CP$15,3,FALSE)","v":76.611088806664469},{"$f":"HLOOKUP(Calc_Option3!O$6,'Carbon Prices'!$D$9:$CP$15,3,FALSE)","v":84.336304072643259},{"$f":"HLOOKUP(Calc_Option3!P$6,'Carbon Prices'!$D$9:$CP$15,3,FALSE)","v":92.167532307960172},{"$f":"HLOOKUP(Calc_Option3!Q$6,'Carbon Prices'!$D$9:$CP$15,3,FALSE)","v":99.998760543277044},{"$f":"HLOOKUP(Calc_Option3!R$6,'Carbon Prices'!$D$9:$CP$15,3,FALSE)","v":107.82998877859391},{"$f":"HLOOKUP(Calc_Option3!S$6,'Carbon Prices'!$D$9:$CP$15,3,FALSE)","v":115.6612170139108},{"$f":"HLOOKUP(Calc_Option3!T$6,'Carbon Prices'!$D$9:$CP$15,3,FALSE)","v":123.49244524922767},{"$f":"HLOOKUP(Calc_Option3!U$6,'Carbon Prices'!$D$9:$CP$15,3,FALSE)","v":131.32367348454454},{"$f":"HLOOKUP(Calc_Option3!V$6,'Carbon Prices'!$D$9:$CP$15,3,FALSE)","v":139.15490171986141},{"$f":"HLOOKUP(Calc_Option3!W$6,'Carbon Prices'!$D$9:$CP$15,3,FALSE)","v":146.98612995517828},{"$f":"HLOOKUP(Calc_Option3!X$6,'Carbon Prices'!$D$9:$CP$15,3,FALSE)","v":154.81735819049521},{"$f":"HLOOKUP(Calc_Option3!Y$6,'Carbon Prices'!$D$9:$CP$15,3,FALSE)","v":162.64858642581208},{"$f":"HLOOKUP(Calc_Option3!Z$6,'Carbon Prices'!$D$9:$CP$15,3,FALSE)","v":170.47981466112896},{"$f":"HLOOKUP(Calc_Option3!AA$6,'Carbon Prices'!$D$9:$CP$15,3,FALSE)","v":178.31104289644583},{"$f":"HLOOKUP(Calc_Option3!AB$6,'Carbon Prices'!$D$9:$CP$15,3,FALSE)","v":186.1422711317627},{"$f":"HLOOKUP(Calc_Option3!AC$6,'Carbon Prices'!$D$9:$CP$15,3,FALSE)","v":193.97349936707957},{"$f":"HLOOKUP(Calc_Option3!AD$6,'Carbon Prices'!$D$9:$CP$15,3,FALSE)","v":201.80472760239644},{"$f":"HLOOKUP(Calc_Option3!AE$6,'Carbon Prices'!$D$9:$CP$15,3,FALSE)","v":209.63595583771331},{"$f":"HLOOKUP(Calc_Option3!AF$6,'Carbon Prices'!$D$9:$CP$15,3,FALSE)","v":217.46718407303021},{"$f":"HLOOKUP(Calc_Option3!AG$6,'Carbon Prices'!$D$9:$CP$15,3,FALSE)","v":225.29841230834708},{"$f":"HLOOKUP(Calc_Option3!AH$6,'Carbon Prices'!$D$9:$CP$15,3,FALSE)","v":233.12964054366395},{"$f":"HLOOKUP(Calc_Option3!AI$6,'Carbon Prices'!$D$9:$CP$15,3,FALSE)","v":{"$error":"#N/A"}},{"$f":"HLOOKUP(Calc_Option3!AJ$6,'Carbon Prices'!$D$9:$CP$15,3,FALSE)","v":{"$error":"#N/A"}},{"$f":"HLOOKUP(Calc_Option3!AK$6,'Carbon Prices'!$D$9:$CP$15,3,FALSE)","v":{"$error":"#N/A"}},{"$f":"HLOOKUP(Calc_Option3!AL$6,'Carbon Prices'!$D$9:$CP$15,3,FALSE)","v":{"$error":"#N/A"}},{"$f":"HLOOKUP(Calc_Option3!AM$6,'Carbon Prices'!$D$9:$CP$15,3,FALSE)","v":{"$error":"#N/A"}},{"$f":"HLOOKUP(Calc_Option3!AN$6,'Carbon Prices'!$D$9:$CP$15,3,FALSE)","v":{"$error":"#N/A"}},{"$f":"HLOOKUP(Calc_Option3!AO$6,'Carbon Prices'!$D$9:$CP$15,3,FALSE)","v":{"$error":"#N/A"}},{"$f":"HLOOKUP(Calc_Option3!AP$6,'Carbon Prices'!$D$9:$CP$15,3,FALSE)","v":{"$error":"#N/A"}},{"$f":"HLOOKUP(Calc_Option3!AQ$6,'Carbon Prices'!$D$9:$CP$15,3,FALSE)","v":{"$error":"#N/A"}},{"$f":"HLOOKUP(Calc_Option3!AR$6,'Carbon Prices'!$D$9:$CP$15,3,FALSE)","v":{"$error":"#N/A"}},{"$f":"HLOOKUP(Calc_Option3!AS$6,'Carbon Prices'!$D$9:$CP$15,3,FALSE)","v":{"$error":"#N/A"}},{"$f":"HLOOKUP(Calc_Option3!AT$6,'Carbon Prices'!$D$9:$CP$15,3,FALSE)","v":{"$error":"#N/A"}},{"$f":"HLOOKUP(Calc_Option3!AU$6,'Carbon Prices'!$D$9:$CP$15,3,FALSE)","v":{"$error":"#N/A"}},{"$f":"HLOOKUP(Calc_Option3!AV$6,'Carbon Prices'!$D$9:$CP$15,3,FALSE)","v":{"$error":"#N/A"}},{"$f":"HLOOKUP(Calc_Option3!AW$6,'Carbon Prices'!$D$9:$CP$15,3,FALSE)","v":{"$error":"#N/A"}},{"$f":"HLOOKUP(Calc_Option3!AX$6,'Carbon Prices'!$D$9:$CP$15,3,FALSE)","v":{"$error":"#N/A"}},{"$f":"HLOOKUP(Calc_Option3!AY$6,'Carbon Prices'!$D$9:$CP$15,3,FALSE)","v":{"$error":"#N/A"}},{"$f":"HLOOKUP(Calc_Option3!AZ$6,'Carbon Prices'!$D$9:$CP$15,3,FALSE)","v":{"$error":"#N/A"}},{"$f":"HLOOKUP(Calc_Option3!BA$6,'Carbon Prices'!$D$9:$CP$15,3,FALSE)","v":{"$error":"#N/A"}},{"$f":"HLOOKUP(Calc_Option3!BB$6,'Carbon Prices'!$D$9:$CP$15,3,FALSE)","v":{"$error":"#N/A"}},{"$f":"HLOOKUP(Calc_Option3!BC$6,'Carbon Prices'!$D$9:$CP$15,3,FALSE)","v":{"$error":"#N/A"}},{"$f":"HLOOKUP(Calc_Option3!BD$6,'Carbon Prices'!$D$9:$CP$15,3,FALSE)","v":{"$error":"#N/A"}},{"$f":"HLOOKUP(Calc_Option3!BE$6,'Carbon Prices'!$D$9:$CP$15,3,FALSE)","v":{"$error":"#N/A"}},{"$f":"HLOOKUP(Calc_Option3!BF$6,'Carbon Prices'!$D$9:$CP$15,3,FALSE)","v":{"$error":"#N/A"}},{"$f":"HLOOKUP(Calc_Option3!BG$6,'Carbon Prices'!$D$9:$CP$15,3,FALSE)","v":{"$error":"#N/A"}},{"$f":"HLOOKUP(Calc_Option3!BH$6,'Carbon Prices'!$D$9:$CP$15,3,FALSE)","v":{"$error":"#N/A"}},{"$f":"HLOOKUP(Calc_Option3!BI$6,'Carbon Prices'!$D$9:$CP$15,3,FALSE)","v":{"$error":"#N/A"}},{"$f":"HLOOKUP(Calc_Option3!BJ$6,'Carbon Prices'!$D$9:$CP$15,3,FALSE)","v":{"$error":"#N/A"}},{"$f":"HLOOKUP(Calc_Option3!BK$6,'Carbon Prices'!$D$9:$CP$15,3,FALSE)","v":{"$error":"#N/A"}},{"$f":"HLOOKUP(Calc_Option3!BL$6,'Carbon Prices'!$D$9:$CP$15,3,FALSE)","v":{"$error":"#N/A"}},{"$f":"HLOOKUP(Calc_Option3!BM$6,'Carbon Prices'!$D$9:$CP$15,3,FALSE)","v":{"$error":"#N/A"}},{"$f":"HLOOKUP(Calc_Option3!BN$6,'Carbon Prices'!$D$9:$CP$15,3,FALSE)","v":{"$error":"#N/A"}},{"$f":"HLOOKUP(Calc_Option3!BO$6,'Carbon Prices'!$D$9:$CP$15,3,FALSE)","v":{"$error":"#N/A"}},{"$f":"HLOOKUP(Calc_Option3!BP$6,'Carbon Prices'!$D$9:$CP$15,3,FALSE)","v":{"$error":"#N/A"}},{"$f":"HLOOKUP(Calc_Option3!BQ$6,'Carbon Prices'!$D$9:$CP$15,3,FALSE)","v":{"$error":"#N/A"}},{"$f":"HLOOKUP(Calc_Option3!BR$6,'Carbon Prices'!$D$9:$CP$15,3,FALSE)","v":{"$error":"#N/A"}},{"$f":"HLOOKUP(Calc_Option3!BS$6,'Carbon Prices'!$D$9:$CP$15,3,FALSE)","v":{"$error":"#N/A"}},{"$f":"HLOOKUP(Calc_Option3!BT$6,'Carbon Prices'!$D$9:$CP$15,3,FALSE)","v":{"$error":"#N/A"}},{"$f":"HLOOKUP(Calc_Option3!BU$6,'Carbon Prices'!$D$9:$CP$15,3,FALSE)","v":{"$error":"#N/A"}},{"$f":"HLOOKUP(Calc_Option3!BV$6,'Carbon Prices'!$D$9:$CP$15,3,FALSE)","v":{"$error":"#N/A"}},{"$f":"HLOOKUP(Calc_Option3!BW$6,'Carbon Prices'!$D$9:$CP$15,3,FALSE)","v":{"$error":"#N/A"}},{"$f":"HLOOKUP(Calc_Option3!BX$6,'Carbon Prices'!$D$9:$CP$15,3,FALSE)","v":{"$error":"#N/A"}},{"$f":"HLOOKUP(Calc_Option3!BY$6,'Carbon Prices'!$D$9:$CP$15,3,FALSE)","v":{"$error":"#N/A"}},{"$f":"HLOOKUP(Calc_Option3!BZ$6,'Carbon Prices'!$D$9:$CP$15,3,FALSE)","v":{"$error":"#N/A"}},{"$f":"HLOOKUP(Calc_Option3!CA$6,'Carbon Prices'!$D$9:$CP$15,3,FALSE)","v":{"$error":"#N/A"}},{"$f":"HLOOKUP(Calc_Option3!CB$6,'Carbon Prices'!$D$9:$CP$15,3,FALSE)","v":{"$error":"#N/A"}},{"$f":"HLOOKUP(Calc_Option3!CC$6,'Carbon Prices'!$D$9:$CP$15,3,FALSE)","v":{"$error":"#N/A"}},{"$f":"HLOOKUP(Calc_Option3!CD$6,'Carbon Prices'!$D$9:$CP$15,3,FALSE)","v":{"$error":"#N/A"}},{"$f":"HLOOKUP(Calc_Option3!CE$6,'Carbon Prices'!$D$9:$CP$15,3,FALSE)","v":{"$error":"#N/A"}},{"$f":"HLOOKUP(Calc_Option3!CF$6,'Carbon Prices'!$D$9:$CP$15,3,FALSE)","v":{"$error":"#N/A"}},{"$f":"HLOOKUP(Calc_Option3!CG$6,'Carbon Prices'!$D$9:$CP$15,3,FALSE)","v":{"$error":"#N/A"}},{"$f":"HLOOKUP(Calc_Option3!CH$6,'Carbon Prices'!$D$9:$CP$15,3,FALSE)","v":{"$error":"#N/A"}},{"$f":"HLOOKUP(Calc_Option3!CI$6,'Carbon Prices'!$D$9:$CP$15,3,FALSE)","v":{"$error":"#N/A"}},{"$f":"HLOOKUP(Calc_Option3!CJ$6,'Carbon Prices'!$D$9:$CP$15,3,FALSE)","v":{"$error":"#N/A"}},{"$f":"HLOOKUP(Calc_Option3!CK$6,'Carbon Prices'!$D$9:$CP$15,3,FALSE)","v":{"$error":"#N/A"}},{"$f":"HLOOKUP(Calc_Option3!CL$6,'Carbon Prices'!$D$9:$CP$15,3,FALSE)","v":{"$error":"#N/A"}},{"$f":"HLOOKUP(Calc_Option3!CM$6,'Carbon Prices'!$D$9:$CP$15,3,FALSE)","v":{"$error":"#N/A"}},{"$f":"HLOOKUP(Calc_Option3!CN$6,'Carbon Prices'!$D$9:$CP$15,3,FALSE)","v":{"$error":"#N/A"}},{"$f":"HLOOKUP(Calc_Option3!CO$6,'Carbon Prices'!$D$9:$CP$15,3,FALSE)","v":{"$error":"#N/A"}},{"$f":"HLOOKUP(Calc_Option3!CP$6,'Carbon Prices'!$D$9:$CP$15,3,FALSE)","v":{"$error":"#N/A"}},{"$f":"HLOOKUP(Calc_Option3!CQ$6,'Carbon Prices'!$D$9:$CP$15,3,FALSE)","v":{"$error":"#N/A"}},{"$f":"HLOOKUP(Calc_Option3!CR$6,'Carbon Prices'!$D$9:$CP$15,3,FALSE)","v":{"$error":"#N/A"}},{"$f":"HLOOKUP(Calc_Option3!CS$6,'Carbon Prices'!$D$9:$CP$15,3,FALSE)","v":{"$error":"#N/A"}},{"$f":"HLOOKUP(Calc_Option3!CT$6,'Carbon Prices'!$D$9:$CP$15,3,FALSE)","v":{"$error":"#N/A"}},{"$f":"HLOOKUP(Calc_Option3!CU$6,'Carbon Prices'!$D$9:$CP$15,3,FALSE)","v":{"$error":"#N/A"}},{"$f":"HLOOKUP(Calc_Option3!CV$6,'Carbon Prices'!$D$9:$CP$15,3,FALSE)","v":{"$error":"#N/A"}},{"$f":"HLOOKUP(Calc_Option3!CW$6,'Carbon Prices'!$D$9:$CP$15,3,FALSE)","v":{"$error":"#N/A"}},{"$f":"HLOOKUP(Calc_Option3!CX$6,'Carbon Prices'!$D$9:$CP$15,3,FALSE)","v":{"$error":"#N/A"}},{"$f":"HLOOKUP(Calc_Option3!CY$6,'Carbon Prices'!$D$9:$CP$15,3,FALSE)","v":{"$error":"#N/A"}}]
[null,"Value non-elec","£000's",{"$f":"IF('Data Input - General'!$F$10=\"Yes\",HLOOKUP(Calc_Option3!D$6,'Carbon Prices'!$D$9:$CP$15,3,FALSE),HLOOKUP(Calc_Option3!D$6,'Carbon Prices'!$D$9:$CP$15,6,FALSE))","v":6.8248086829049139},{"$f":"IF('Data Input - General'!$F$10=\"Yes\",HLOOKUP(Calc_Option3!E$6,'Carbon Prices'!$D$9:$CP$15,3,FALSE),HLOOKUP(Calc_Option3!E$6,'Carbon Prices'!$D$9:$CP$15,6,FALSE))","v":7.0841514128553005},{"$f":"IF('Data Input - General'!$F$10=\"Yes\",HLOOKUP(Calc_Option3!F$6,'Carbon Prices'!$D$9:$CP$15,3,FALSE),HLOOKUP(Calc_Option3!F$6,'Carbon Prices'!$D$9:$CP$15,6,FALSE))","v":14.809366678834097},{"$f":"IF('Data Input - General'!$F$10=\"Yes\",HLOOKUP(Calc_Option3!G$6,'Carbon Prices'!$D$9:$CP$15,3,FALSE),HLOOKUP(Calc_Option3!G$6,'Carbon Prices'!$D$9:$CP$15,6,FALSE))","v":22.534581944812892},{"$f":"IF('Data Input - General'!$F$10=\"Yes\",HLOOKUP(Calc_Option3!H$6,'Carbon Prices'!$D$9:$CP$15,3,FALSE),HLOOKUP(Calc_Option3!H$6,'Carbon Prices'!$D$9:$CP$15,6,FALSE))","v":30.259797210791689},{"$f":"IF('Data Input - General'!$F$10=\"Yes\",HLOOKUP(Calc_Option3!I$6,'Carbon Prices'!$D$9:$CP$15,3,FALSE),HLOOKUP(Calc_Option3!I$6,'Carbon Prices'!$D$9:$CP$15,6,FALSE))","v":37.985012476770486},{"$f":"IF('Data Input - General'!$F$10=\"Yes\",HLOOKUP(Calc_Option3!J$6,'Carbon Prices'!$D$9:$CP$15,3,FALSE),HLOOKUP(Calc_Option3!J$6,'Carbon Prices'!$D$9:$CP$15,6,FALSE))","v":45.710227742749282},{"$f":"IF('Data Input - General'!$F$10=\"Yes\",HLOOKUP(Calc_Option3!K$6,'Carbon Prices'!$D$9:$CP$15,3,FALSE),HLOOKUP(Calc_Option3!K$6,'Carbon Prices'!$D$9:$CP$15,6,FALSE))","v":53.435443008728079},{"$f":"IF('Data Input - General'!$F$10=\"Yes\",HLOOKUP(Calc_Option3!L$6,'Carbon Prices'!$D$9:$CP$15,3,FALSE),HLOOKUP(Calc_Option3!L$6,'Carbon Prices'!$D$9:$CP$15,6,FALSE))","v":61.160658274706876},{"$f":"IF('Data Input - General'!$F$10=\"Yes\",HLOOKUP(Calc_Option3!M$6,'Carbon Prices'!$D$9:$CP$15,3,FALSE),HLOOKUP(Calc_Option3!M$6,'Carbon Prices'!$D$9:$CP$15,6,FALSE))","v":68.885873540685665},{"$f":"IF('Data Input - General'!$F$10=\"Yes\",HLOOKUP(Calc_Option3!N$6,'Carbon Prices'!$D$9:$CP$15,3,FALSE),HLOOKUP(Calc_Option3!N$6,'Carbon Prices'!$D$9:$CP$15,6,FALSE))","v":76.611088806664469},{"$f":"IF('Data Input - General'!$F$10=\"Yes\",HLOOKUP(Calc_Option3!O$6,'Carbon Prices'!$D$9:$CP$15,3,FALSE),HLOOKUP(Calc_Option3!O$6,'Carbon Prices'!$D$9:$CP$15,6,FALSE))","v":84.336304072643259},{"$f":"IF('Data Input - General'!$F$10=\"Yes\",HLOOKUP(Calc_Option3!P$6,'Carbon Prices'!$D$9:$CP$15,3,FALSE),HLOOKUP(Calc_Option3!P$6,'Carbon Prices'!$D$9:$CP$15,6,FALSE))","v":92.167532307960172},{"$f":"IF('Data Input - General'!$F$10=\"Yes\",HLOOKUP(Calc_Option3!Q$6,'Carbon Prices'!$D$9:$CP$15,3,FALSE),HLOOKUP(Calc_Option3!Q$6,'Carbon Prices'!$D$9:$CP$15,6,FALSE))","v":99.998760543277044},{"$f":"IF('Data Input - General'!$F$10=\"Yes\",HLOOKUP(Calc_Option3!R$6,'Carbon Prices'!$D$9:$CP$15,3,FALSE),HLOOKUP(Calc_Option3!R$6,'Carbon Prices'!$D$9:$CP$15,6,FALSE))","v":107.82998877859391},{"$f":"IF('Data Input - General'!$F$10=\"Yes\",HLOOKUP(Calc_Option3!S$6,'Carbon Prices'!$D$9:$CP$15,3,FALSE),HLOOKUP(Calc_Option3!S$6,'Carbon Prices'!$D$9:$CP$15,6,FALSE))","v":115.6612170139108},{"$f":"IF('Data Input - General'!$F$10=\"Yes\",HLOOKUP(Calc_Option3!T$6,'Carbon Prices'!$D$9:$CP$15,3,FALSE),HLOOKUP(Calc_Option3!T$6,'Carbon Prices'!$D$9:$CP$15,6,FALSE))","v":123.49244524922767},{"$f":"IF('Data Input - General'!$F$10=\"Yes\",HLOOKUP(Calc_Option3!U$6,'Carbon Prices'!$D$9:$CP$15,3,FALSE),HLOOKUP(Calc_Option3!U$6,'Carbon Prices'!$D$9:$CP$15,6,FALSE))","v":131.32367348454454},{"$f":"IF('Data Input - General'!$F$10=\"Yes\",HLOOKUP(Calc_Option3!V$6,'Carbon Prices'!$D$9:$CP$15,3,FALSE),HLOOKUP(Calc_Option3!V$6,'Carbon Prices'!$D$9:$CP$15,6,FALSE))","v":139.15490171986141},{"$f":"IF('Data Input - General'!$F$10=\"Yes\",HLOOKUP(Calc_Option3!W$6,'Carbon Prices'!$D$9:$CP$15,3,FALSE),HLOOKUP(Calc_Option3!W$6,'Carbon Prices'!$D$9:$CP$15,6,FALSE))","v":146.98612995517828},{"$f":"IF('Data Input - General'!$F$10=\"Yes\",HLOOKUP(Calc_Option3!X$6,'Carbon Prices'!$D$9:$CP$15,3,FALSE),HLOOKUP(Calc_Option3!X$6,'Carbon Prices'!$D$9:$CP$15,6,FALSE))","v":154.81735819049521},{"$f":"IF('Data Input - General'!$F$10=\"Yes\",HLOOKUP(Calc_Option3!Y$6,'Carbon Prices'!$D$9:$CP$15,3,FALSE),HLOOKUP(Calc_Option3!Y$6,'Carbon Prices'!$D$9:$CP$15,6,FALSE))","v":162.64858642581208},{"$f":"IF('Data Input - General'!$F$10=\"Yes\",HLOOKUP(Calc_Option3!Z$6,'Carbon Prices'!$D$9:$CP$15,3,FALSE),HLOOKUP(Calc_Option3!Z$6,'Carbon Prices'!$D$9:$CP$15,6,FALSE))","v":170.47981466112896},{"$f":"IF('Data Input - General'!$F$10=\"Yes\",HLOOKUP(Calc_Option3!AA$6,'Carbon Prices'!$D$9:$CP$15,3,FALSE),HLOOKUP(Calc_Option3!AA$6,'Carbon Prices'!$D$9:$CP$15,6,FALSE))","v":178.31104289644583},{"$f":"IF('Data Input - General'!$F$10=\"Yes\",HLOOKUP(Calc_Option3!AB$6,'Carbon Prices'!$D$9:$CP$15,3,FALSE),HLOOKUP(Calc_Option3!AB$6,'Carbon Prices'!$D$9:$CP$15,6,FALSE))","v":186.1422711317627},{"$f":"IF('Data Input - General'!$F$10=\"Yes\",HLOOKUP(Calc_Option3!AC$6,'Carbon Prices'!$D$9:$CP$15,3,FALSE),HLOOKUP(Calc_Option3!AC$6,'Carbon Prices'!$D$9:$CP$15,6,FALSE))","v":193.97349936707957},{"$f":"IF('Data Input - General'!$F$10=\"Yes\",HLOOKUP(Calc_Option3!AD$6,'Carbon Prices'!$D$9:$CP$15,3,FALSE),HLOOKUP(Calc_Option3!AD$6,'Carbon Prices'!$D$9:$CP$15,6,FALSE))","v":201.80472760239644},{"$f":"IF('Data Input - General'!$F$10=\"Yes\",HLOOKUP(Calc_Option3!AE$6,'Carbon Prices'!$D$9:$CP$15,3,FALSE),HLOOKUP(Calc_Option3!AE$6,'Carbon Prices'!$D$9:$CP$15,6,FALSE))","v":209.63595583771331},{"$f":"IF('Data Input - General'!$F$10=\"Yes\",HLOOKUP(Calc_Option3!AF$6,'Carbon Prices'!$D$9:$CP$15,3,FALSE),HLOOKUP(Calc_Option3!AF$6,'Carbon Prices'!$D$9:$CP$15,6,FALSE))","v":217.46718407303021},{"$f":"IF('Data Input - General'!$F$10=\"Yes\",HLOOKUP(Calc_Option3!AG$6,'Carbon Prices'!$D$9:$CP$15,3,FALSE),HLOOKUP(Calc_Option3!AG$6,'Carbon Prices'!$D$9:$CP$15,6,FALSE))","v":225.29841230834708},{"$f":"IF('Data Input - General'!$F$10=\"Yes\",HLOOKUP(Calc_Option3!AH$6,'Carbon Prices'!$D$9:$CP$15,3,FALSE),HLOOKUP(Calc_Option3!AH$6,'Carbon Prices'!$D$9:$CP$15,6,FALSE))","v":233.12964054366395},{"$f":"IF('Data Input - General'!$F$10=\"Yes\",HLOOKUP(Calc_Option3!AI$6,'Carbon Prices'!$D$9:$CP$15,3,FALSE),HLOOKUP(Calc_Option3!AI$6,'Carbon Prices'!$D$9:$CP$15,6,FALSE))","v":{"$error":"#N/A"}},{"$f":"IF('Data Input - General'!$F$10=\"Yes\",HLOOKUP(Calc_Option3!AJ$6,'Carbon Prices'!$D$9:$CP$15,3,FALSE),HLOOKUP(Calc_Option3!AJ$6,'Carbon Prices'!$D$9:$CP$15,6,FALSE))","v":{"$error":"#N/A"}},{"$f":"IF('Data Input - General'!$F$10=\"Yes\",HLOOKUP(Calc_Option3!AK$6,'Carbon Prices'!$D$9:$CP$15,3,FALSE),HLOOKUP(Calc_Option3!AK$6,'Carbon Prices'!$D$9:$CP$15,6,FALSE))","v":{"$error":"#N/A"}},{"$f":"IF('Data Input - General'!$F$10=\"Yes\",HLOOKUP(Calc_Option3!AL$6,'Carbon Prices'!$D$9:$CP$15,3,FALSE),HLOOKUP(Calc_Option3!AL$6,'Carbon Prices'!$D$9:$CP$15,6,FALSE))","v":{"$error":"#N/A"}},{"$f":"IF('Data Input - General'!$F$10=\"Yes\",HLOOKUP(Calc_Option3!AM$6,'Carbon Prices'!$D$9:$CP$15,3,FALSE),HLOOKUP(Calc_Option3!AM$6,'Carbon Prices'!$D$9:$CP$15,6,FALSE))","v":{"$error":"#N/A"}},{"$f":"IF('Data Input - General'!$F$10=\"Yes\",HLOOKUP(Calc_Option3!AN$6,'Carbon Prices'!$D$9:$CP$15,3,FALSE),HLOOKUP(Calc_Option3!AN$6,'Carbon Prices'!$D$9:$CP$15,6,FALSE))","v":{"$error":"#N/A"}},{"$f":"IF('Data Input - General'!$F$10=\"Yes\",HLOOKUP(Calc_Option3!AO$6,'Carbon Prices'!$D$9:$CP$15,3,FALSE),HLOOKUP(Calc_Option3!AO$6,'Carbon Prices'!$D$9:$CP$15,6,FALSE))","v":{"$error":"#N/A"}},{"$f":"IF('Data Input - General'!$F$10=\"Yes\",HLOOKUP(Calc_Option3!AP$6,'Carbon Prices'!$D$9:$CP$15,3,FALSE),HLOOKUP(Calc_Option3!AP$6,'Carbon Prices'!$D$9:$CP$15,6,FALSE))","v":{"$error":"#N/A"}},{"$f":"IF('Data Input - General'!$F$10=\"Yes\",HLOOKUP(Calc_Option3!AQ$6,'Carbon Prices'!$D$9:$CP$15,3,FALSE),HLOOKUP(Calc_Option3!AQ$6,'Carbon Prices'!$D$9:$CP$15,6,FALSE))","v":{"$error":"#N/A"}},{"$f":"IF('Data Input - General'!$F$10=\"Yes\",HLOOKUP(Calc_Option3!AR$6,'Carbon Prices'!$D$9:$CP$15,3,FALSE),HLOOKUP(Calc_Option3!AR$6,'Carbon Prices'!$D$9:$CP$15,6,FALSE))","v":{"$error":"#N/A"}},{"$f":"IF('Data Input - General'!$F$10=\"Yes\",HLOOKUP(Calc_Option3!AS$6,'Carbon Prices'!$D$9:$CP$15,3,FALSE),HLOOKUP(Calc_Option3!AS$6,'Carbon Prices'!$D$9:$CP$15,6,FALSE))","v":{"$error":"#N/A"}},{"$f":"IF('Data Input - General'!$F$10=\"Yes\",HLOOKUP(Calc_Option3!AT$6,'Carbon Prices'!$D$9:$CP$15,3,FALSE),HLOOKUP(Calc_Option3!AT$6,'Carbon Prices'!$D$9:$CP$15,6,FALSE))","v":{"$error":"#N/A"}},{"$f":"IF('Data Input - General'!$F$10=\"Yes\",HLOOKUP(Calc_Option3!AU$6,'Carbon Prices'!$D$9:$CP$15,3,FALSE),HLOOKUP(Calc_Option3!AU$6,'Carbon Prices'!$D$9:$CP$15,6,FALSE))","v":{"$error":"#N/A"}},{"$f":"IF('Data Input - General'!$F$10=\"Yes\",HLOOKUP(Calc_Option3!AV$6,'Carbon Prices'!$D$9:$CP$15,3,FALSE),HLOOKUP(Calc_Option3!AV$6,'Carbon Prices'!$D$9:$CP$15,6,FALSE))","v":{"$error":"#N/A"}},{"$f":"IF('Data Input - General'!$F$10=\"Yes\",HLOOKUP(Calc_Option3!AW$6,'Carbon Prices'!$D$9:$CP$15,3,FALSE),HLOOKUP(Calc_Option3!AW$6,'Carbon Prices'!$D$9:$CP$15,6,FALSE))","v":{"$error":"#N/A"}},{"$f":"IF('Data Input - General'!$F$10=\"Yes\",HLOOKUP(Calc_Option3!AX$6,'Carbon Prices'!$D$9:$CP$15,3,FALSE),HLOOKUP(Calc_Option3!AX$6,'Carbon Prices'!$D$9:$CP$15,6,FALSE))","v":{"$error":"#N/A"}},{"$f":"IF('Data Input - General'!$F$10=\"Yes\",HLOOKUP(Calc_Option3!AY$6,'Carbon Prices'!$D$9:$CP$15,3,FALSE),HLOOKUP(Calc_Option3!AY$6,'Carbon Prices'!$D$9:$CP$15,6,FALSE))","v":{"$error":"#N/A"}},{"$f":"IF('Data Input - General'!$F$10=\"Yes\",HLOOKUP(Calc_Option3!AZ$6,'Carbon Prices'!$D$9:$CP$15,3,FALSE),HLOOKUP(Calc_Option3!AZ$6,'Carbon Prices'!$D$9:$CP$15,6,FALSE))","v":{"$error":"#N/A"}},{"$f":"IF('Data Input - General'!$F$10=\"Yes\",HLOOKUP(Calc_Option3!BA$6,'Carbon Prices'!$D$9:$CP$15,3,FALSE),HLOOKUP(Calc_Option3!BA$6,'Carbon Prices'!$D$9:$CP$15,6,FALSE))","v":{"$error":"#N/A"}},{"$f":"IF('Data Input - General'!$F$10=\"Yes\",HLOOKUP(Calc_Option3!BB$6,'Carbon Prices'!$D$9:$CP$15,3,FALSE),HLOOKUP(Calc_Option3!BB$6,'Carbon Prices'!$D$9:$CP$15,6,FALSE))","v":{"$error":"#N/A"}},{"$f":"IF('Data Input - General'!$F$10=\"Yes\",HLOOKUP(Calc_Option3!BC$6,'Carbon Prices'!$D$9:$CP$15,3,FALSE),HLOOKUP(Calc_Option3!BC$6,'Carbon Prices'!$D$9:$CP$15,6,FALSE))","v":{"$error":"#N/A"}},{"$f":"IF('Data Input - General'!$F$10=\"Yes\",HLOOKUP(Calc_Option3!BD$6,'Carbon Prices'!$D$9:$CP$15,3,FALSE),HLOOKUP(Calc_Option3!BD$6,'Carbon Prices'!$D$9:$CP$15,6,FALSE))","v":{"$error":"#N/A"}},{"$f":"IF('Data Input - General'!$F$10=\"Yes\",HLOOKUP(Calc_Option3!BE$6,'Carbon Prices'!$D$9:$CP$15,3,FALSE),HLOOKUP(Calc_Option3!BE$6,'Carbon Prices'!$D$9:$CP$15,6,FALSE))","v":{"$error":"#N/A"}},{"$f":"IF('Data Input - General'!$F$10=\"Yes\",HLOOKUP(Calc_Option3!BF$6,'Carbon Prices'!$D$9:$CP$15,3,FALSE),HLOOKUP(Calc_Option3!BF$6,'Carbon Prices'!$D$9:$CP$15,6,FALSE))","v":{"$error":"#N/A"}},{"$f":"IF('Data Input - General'!$F$10=\"Yes\",HLOOKUP(Calc_Option3!BG$6,'Carbon Prices'!$D$9:$CP$15,3,FALSE),HLOOKUP(Calc_Option3!BG$6,'Carbon Prices'!$D$9:$CP$15,6,FALSE))","v":{"$error":"#N/A"}},{"$f":"IF('Data Input - General'!$F$10=\"Yes\",HLOOKUP(Calc_Option3!BH$6,'Carbon Prices'!$D$9:$CP$15,3,FALSE),HLOOKUP(Calc_Option3!BH$6,'Carbon Prices'!$D$9:$CP$15,6,FALSE))","v":{"$error":"#N/A"}},{"$f":"IF('Data Input - General'!$F$10=\"Yes\",HLOOKUP(Calc_Option3!BI$6,'Carbon Prices'!$D$9:$CP$15,3,FALSE),HLOOKUP(Calc_Option3!BI$6,'Carbon Prices'!$D$9:$CP$15,6,FALSE))","v":{"$error":"#N/A"}},{"$f":"IF('Data Input - General'!$F$10=\"Yes\",HLOOKUP(Calc_Option3!BJ$6,'Carbon Prices'!$D$9:$CP$15,3,FALSE),HLOOKUP(Calc_Option3!BJ$6,'Carbon Prices'!$D$9:$CP$15,6,FALSE))","v":{"$error":"#N/A"}},{"$f":"IF('Data Input - General'!$F$10=\"Yes\",HLOOKUP(Calc_Option3!BK$6,'Carbon Prices'!$D$9:$CP$15,3,FALSE),HLOOKUP(Calc_Option3!BK$6,'Carbon Prices'!$D$9:$CP$15,6,FALSE))","v":{"$error":"#N/A"}},{"$f":"IF('Data Input - General'!$F$10=\"Yes\",HLOOKUP(Calc_Option3!BL$6,'Carbon Prices'!$D$9:$CP$15,3,FALSE),HLOOKUP(Calc_Option3!BL$6,'Carbon Prices'!$D$9:$CP$15,6,FALSE))","v":{"$error":"#N/A"}},{"$f":"IF('Data Input - General'!$F$10=\"Yes\",HLOOKUP(Calc_Option3!BM$6,'Carbon Prices'!$D$9:$CP$15,3,FALSE),HLOOKUP(Calc_Option3!BM$6,'Carbon Prices'!$D$9:$CP$15,6,FALSE))","v":{"$error":"#N/A"}},{"$f":"IF('Data Input - General'!$F$10=\"Yes\",HLOOKUP(Calc_Option3!BN$6,'Carbon Prices'!$D$9:$CP$15,3,FALSE),HLOOKUP(Calc_Option3!BN$6,'Carbon Prices'!$D$9:$CP$15,6,FALSE))","v":{"$error":"#N/A"}},{"$f":"IF('Data Input - General'!$F$10=\"Yes\",HLOOKUP(Calc_Option3!BO$6,'Carbon Prices'!$D$9:$CP$15,3,FALSE),HLOOKUP(Calc_Option3!BO$6,'Carbon Prices'!$D$9:$CP$15,6,FALSE))","v":{"$error":"#N/A"}},{"$f":"IF('Data Input - General'!$F$10=\"Yes\",HLOOKUP(Calc_Option3!BP$6,'Carbon Prices'!$D$9:$CP$15,3,FALSE),HLOOKUP(Calc_Option3!BP$6,'Carbon Prices'!$D$9:$CP$15,6,FALSE))","v":{"$error":"#N/A"}},{"$f":"IF('Data Input - General'!$F$10=\"Yes\",HLOOKUP(Calc_Option3!BQ$6,'Carbon Prices'!$D$9:$CP$15,3,FALSE),HLOOKUP(Calc_Option3!BQ$6,'Carbon Prices'!$D$9:$CP$15,6,FALSE))","v":{"$error":"#N/A"}},{"$f":"IF('Data Input - General'!$F$10=\"Yes\",HLOOKUP(Calc_Option3!BR$6,'Carbon Prices'!$D$9:$CP$15,3,FALSE),HLOOKUP(Calc_Option3!BR$6,'Carbon Prices'!$D$9:$CP$15,6,FALSE))","v":{"$error":"#N/A"}},{"$f":"IF('Data Input - General'!$F$10=\"Yes\",HLOOKUP(Calc_Option3!BS$6,'Carbon Prices'!$D$9:$CP$15,3,FALSE),HLOOKUP(Calc_Option3!BS$6,'Carbon Prices'!$D$9:$CP$15,6,FALSE))","v":{"$error":"#N/A"}},{"$f":"IF('Data Input - General'!$F$10=\"Yes\",HLOOKUP(Calc_Option3!BT$6,'Carbon Prices'!$D$9:$CP$15,3,FALSE),HLOOKUP(Calc_Option3!BT$6,'Carbon Prices'!$D$9:$CP$15,6,FALSE))","v":{"$error":"#N/A"}},{"$f":"IF('Data Input - General'!$F$10=\"Yes\",HLOOKUP(Calc_Option3!BU$6,'Carbon Prices'!$D$9:$CP$15,3,FALSE),HLOOKUP(Calc_Option3!BU$6,'Carbon Prices'!$D$9:$CP$15,6,FALSE))","v":{"$error":"#N/A"}},{"$f":"IF('Data Input - General'!$F$10=\"Yes\",HLOOKUP(Calc_Option3!BV$6,'Carbon Prices'!$D$9:$CP$15,3,FALSE),HLOOKUP(Calc_Option3!BV$6,'Carbon Prices'!$D$9:$CP$15,6,FALSE))","v":{"$error":"#N/A"}},{"$f":"IF('Data Input - General'!$F$10=\"Yes\",HLOOKUP(Calc_Option3!BW$6,'Carbon Prices'!$D$9:$CP$15,3,FALSE),HLOOKUP(Calc_Option3!BW$6,'Carbon Prices'!$D$9:$CP$15,6,FALSE))","v":{"$error":"#N/A"}},{"$f":"IF('Data Input - General'!$F$10=\"Yes\",HLOOKUP(Calc_Option3!BX$6,'Carbon Prices'!$D$9:$CP$15,3,FALSE),HLOOKUP(Calc_Option3!BX$6,'Carbon Prices'!$D$9:$CP$15,6,FALSE))","v":{"$error":"#N/A"}},{"$f":"IF('Data Input - General'!$F$10=\"Yes\",HLOOKUP(Calc_Option3!BY$6,'Carbon Prices'!$D$9:$CP$15,3,FALSE),HLOOKUP(Calc_Option3!BY$6,'Carbon Prices'!$D$9:$CP$15,6,FALSE))","v":{"$error":"#N/A"}},{"$f":"IF('Data Input - General'!$F$10=\"Yes\",HLOOKUP(Calc_Option3!BZ$6,'Carbon Prices'!$D$9:$CP$15,3,FALSE),HLOOKUP(Calc_Option3!BZ$6,'Carbon Prices'!$D$9:$CP$15,6,FALSE))","v":{"$error":"#N/A"}},{"$f":"IF('Data Input - General'!$F$10=\"Yes\",HLOOKUP(Calc_Option3!CA$6,'Carbon Prices'!$D$9:$CP$15,3,FALSE),HLOOKUP(Calc_Option3!CA$6,'Carbon Prices'!$D$9:$CP$15,6,FALSE))","v":{"$error":"#N/A"}},{"$f":"IF('Data Input - General'!$F$10=\"Yes\",HLOOKUP(Calc_Option3!CB$6,'Carbon Prices'!$D$9:$CP$15,3,FALSE),HLOOKUP(Calc_Option3!CB$6,'Carbon Prices'!$D$9:$CP$15,6,FALSE))","v":{"$error":"#N/A"}},{"$f":"IF('Data Input - General'!$F$10=\"Yes\",HLOOKUP(Calc_Option3!CC$6,'Carbon Prices'!$D$9:$CP$15,3,FALSE),HLOOKUP(Calc_Option3!CC$6,'Carbon Prices'!$D$9:$CP$15,6,FALSE))","v":{"$error":"#N/A"}},{"$f":"IF('Data Input - General'!$F$10=\"Yes\",HLOOKUP(Calc_Option3!CD$6,'Carbon Prices'!$D$9:$CP$15,3,FALSE),HLOOKUP(Calc_Option3!CD$6,'Carbon Prices'!$D$9:$CP$15,6,FALSE))","v":{"$error":"#N/A"}},{"$f":"IF('Data Input - General'!$F$10=\"Yes\",HLOOKUP(Calc_Option3!CE$6,'Carbon Prices'!$D$9:$CP$15,3,FALSE),HLOOKUP(Calc_Option3!CE$6,'Carbon Prices'!$D$9:$CP$15,6,FALSE))","v":{"$error":"#N/A"}},{"$f":"IF('Data Input - General'!$F$10=\"Yes\",HLOOKUP(Calc_Option3!CF$6,'Carbon Prices'!$D$9:$CP$15,3,FALSE),HLOOKUP(Calc_Option3!CF$6,'Carbon Prices'!$D$9:$CP$15,6,FALSE))","v":{"$error":"#N/A"}},{"$f":"IF('Data Input - General'!$F$10=\"Yes\",HLOOKUP(Calc_Option3!CG$6,'Carbon Prices'!$D$9:$CP$15,3,FALSE),HLOOKUP(Calc_Option3!CG$6,'Carbon Prices'!$D$9:$CP$15,6,FALSE))","v":{"$error":"#N/A"}},{"$f":"IF('Data Input - General'!$F$10=\"Yes\",HLOOKUP(Calc_Option3!CH$6,'Carbon Prices'!$D$9:$CP$15,3,FALSE),HLOOKUP(Calc_Option3!CH$6,'Carbon Prices'!$D$9:$CP$15,6,FALSE))","v":{"$error":"#N/A"}},{"$f":"IF('Data Input - General'!$F$10=\"Yes\",HLOOKUP(Calc_Option3!CI$6,'Carbon Prices'!$D$9:$CP$15,3,FALSE),HLOOKUP(Calc_Option3!CI$6,'Carbon Prices'!$D$9:$CP$15,6,FALSE))","v":{"$error":"#N/A"}},{"$f":"IF('Data Input - General'!$F$10=\"Yes\",HLOOKUP(Calc_Option3!CJ$6,'Carbon Prices'!$D$9:$CP$15,3,FALSE),HLOOKUP(Calc_Option3!CJ$6,'Carbon Prices'!$D$9:$CP$15,6,FALSE))","v":{"$error":"#N/A"}},{"$f":"IF('Data Input - General'!$F$10=\"Yes\",HLOOKUP(Calc_Option3!CK$6,'Carbon Prices'!$D$9:$CP$15,3,FALSE),HLOOKUP(Calc_Option3!CK$6,'Carbon Prices'!$D$9:$CP$15,6,FALSE))","v":{"$error":"#N/A"}},{"$f":"IF('Data Input - General'!$F$10=\"Yes\",HLOOKUP(Calc_Option3!CL$6,'Carbon Prices'!$D$9:$CP$15,3,FALSE),HLOOKUP(Calc_Option3!CL$6,'Carbon Prices'!$D$9:$CP$15,6,FALSE))","v":{"$error":"#N/A"}},{"$f":"IF('Data Input - General'!$F$10=\"Yes\",HLOOKUP(Calc_Option3!CM$6,'Carbon Prices'!$D$9:$CP$15,3,FALSE),HLOOKUP(Calc_Option3!CM$6,'Carbon Prices'!$D$9:$CP$15,6,FALSE))","v":{"$error":"#N/A"}},{"$f":"IF('Data Input - General'!$F$10=\"Yes\",HLOOKUP(Calc_Option3!CN$6,'Carbon Prices'!$D$9:$CP$15,3,FALSE),HLOOKUP(Calc_Option3!CN$6,'Carbon Prices'!$D$9:$CP$15,6,FALSE))","v":{"$error":"#N/A"}},{"$f":"IF('Data Input - General'!$F$10=\"Yes\",HLOOKUP(Calc_Option3!CO$6,'Carbon Prices'!$D$9:$CP$15,3,FALSE),HLOOKUP(Calc_Option3!CO$6,'Carbon Prices'!$D$9:$CP$15,6,FALSE))","v":{"$error":"#N/A"}},{"$f":"IF('Data Input - General'!$F$10=\"Yes\",HLOOKUP(Calc_Option3!CP$6,'Carbon Prices'!$D$9:$CP$15,3,FALSE),HLOOKUP(Calc_Option3!CP$6,'Carbon Prices'!$D$9:$CP$15,6,FALSE))","v":{"$error":"#N/A"}},{"$f":"IF('Data Input - General'!$F$10=\"Yes\",HLOOKUP(Calc_Option3!CQ$6,'Carbon Prices'!$D$9:$CP$15,3,FALSE),HLOOKUP(Calc_Option3!CQ$6,'Carbon Prices'!$D$9:$CP$15,6,FALSE))","v":{"$error":"#N/A"}},{"$f":"IF('Data Input - General'!$F$10=\"Yes\",HLOOKUP(Calc_Option3!CR$6,'Carbon Prices'!$D$9:$CP$15,3,FALSE),HLOOKUP(Calc_Option3!CR$6,'Carbon Prices'!$D$9:$CP$15,6,FALSE))","v":{"$error":"#N/A"}},{"$f":"IF('Data Input - General'!$F$10=\"Yes\",HLOOKUP(Calc_Option3!CS$6,'Carbon Prices'!$D$9:$CP$15,3,FALSE),HLOOKUP(Calc_Option3!CS$6,'Carbon Prices'!$D$9:$CP$15,6,FALSE))","v":{"$error":"#N/A"}},{"$f":"IF('Data Input - General'!$F$10=\"Yes\",HLOOKUP(Calc_Option3!CT$6,'Carbon Prices'!$D$9:$CP$15,3,FALSE),HLOOKUP(Calc_Option3!CT$6,'Carbon Prices'!$D$9:$CP$15,6,FALSE))","v":{"$error":"#N/A"}},{"$f":"IF('Data Input - General'!$F$10=\"Yes\",HLOOKUP(Calc_Option3!CU$6,'Carbon Prices'!$D$9:$CP$15,3,FALSE),HLOOKUP(Calc_Option3!CU$6,'Carbon Prices'!$D$9:$CP$15,6,FALSE))","v":{"$error":"#N/A"}},{"$f":"IF('Data Input - General'!$F$10=\"Yes\",HLOOKUP(Calc_Option3!CV$6,'Carbon Prices'!$D$9:$CP$15,3,FALSE),HLOOKUP(Calc_Option3!CV$6,'Carbon Prices'!$D$9:$CP$15,6,FALSE))","v":{"$error":"#N/A"}},{"$f":"IF('Data Input - General'!$F$10=\"Yes\",HLOOKUP(Calc_Option3!CW$6,'Carbon Prices'!$D$9:$CP$15,3,FALSE),HLOOKUP(Calc_Option3!CW$6,'Carbon Prices'!$D$9:$CP$15,6,FALSE))","v":{"$error":"#N/A"}},{"$f":"IF('Data Input - General'!$F$10=\"Yes\",HLOOKUP(Calc_Option3!CX$6,'Carbon Prices'!$D$9:$CP$15,3,FALSE),HLOOKUP(Calc_Option3!CX$6,'Carbon Prices'!$D$9:$CP$15,6,FALSE))","v":{"$error":"#N/A"}},{"$f":"IF('Data Input - General'!$F$10=\"Yes\",HLOOKUP(Calc_Option3!CY$6,'Carbon Prices'!$D$9:$CP$15,3,FALSE),HLOOKUP(Calc_Option3!CY$6,'Carbon Prices'!$D$9:$CP$15,6,FALSE))","v":{"$error":"#N/A"}}]
[null,"Total value elec","£000's",{"$f":"IFERROR(D80*D82,0)","v":7834.2675436350428},{"$f":"IFERROR(E80*E82,0)","v":7245.322260334332},{"$f":"IFERROR(F80*F82,0)","v":13338.874023349481},18692.699682919276,21372.264592201627,28172.822351293562,31773.34242669689,33018.060213905141,0,0,0,0,0,0,0,0,0,0,0,0,0,0,0,0,0,0,0,0,0,0,0,0,0,0,0,0,0,0,0,0,0,0,0,0,0,0,0,0,0,0,0,0,0,0,0,0,0,0,0,0,0,0,0,0,0,0,{"$f":"IFERROR(BR80*BR82,0)","v":0},0,0,0,0,0,0,0,0,0,0,0,0,0,0,0,0,0,0,0,0,0,0,0,0,0,0,0,0,0,0,0,0,0]
[null,"Total value non-elec","£000's",{"$f":"IFERROR(D81*D83,0)","v":344552.08103796944},{"$f":"IFERROR(E81*E83,0)","v":357578.85779666452},747515.98506208346,1137453.1123275021,1527390.2395929208,1917327.3668583396,2307264.4941237583,2697201.6213891772,0,0,0,0,0,0,0,0,0,0,0,0,0,0,0,0,0,0,0,0,0,0,0,0,0,0,0,0,0,0,0,0,0,0,0,0,0,0,0,0,0,0,0,0,0,0,0,0,0,0,0,0,0,0,0,0,0,0,0,0,0,0,0,0,0,0,0,0,0,0,0,0,0,0,0,0,0,0,0,0,0,0,0,0,0,0,0,0,0,0,0,0]
[]
[null,"Discounted total GHG","£000's",{"$f":"SUM(D84:D85,D77)*D$7/1000","v":659.50273931232562},{"$f":"SUM(E84:E85,E77)*E$7/1000","v":660.49371365747572},1332.3777540973813,1957.3978632995361,2536.2919759216738,3077.2652116029071,3576.147274502137,4035.9178737458824,0,0,0,0,0,0,0,0,0,0,0,0,0,0,0,0,0,0,0,0,0,0,0,0,0,0,0,0,0,0,0,0,0,0,0,0,0,0,0,0,0,0,0,0,0,0,0,0,0,0,0,0,0,0,0,0,0,{"$f":"SUM(BQ84:BQ85,BQ77)*BQ$7/1000","v":0},0,0,0,0,0,0,0,0,0,0,0,0,0,0,0,0,0,0,0,0,0,0,0,0,0,0,0,0,0,0,0,0,0,0]
[]
[null,"SENSITIVITY ANALYSIS"]
[]
[null,"Low values"]
[]
[null,"Energy Consumption"]
[null,"Electricity","£000's",{"$f":"IFERROR('Data Input - Option 3'!H84*INDEX('Energy Prices'!$F$19:$CR$24,MATCH($B94,'Energy Prices'!$C$19:$C$24,0),MATCH(Calc_Option3!D$6,'Energy Prices'!$F$11:$CR$11,0))/100000,\"\")","v":381.14765882209355},{"$f":"IFERROR('Data Input - Option 3'!I84*INDEX('Energy Prices'!$F$19:$CR$24,MATCH($B94,'Energy Prices'!$C$19:$C$24,0),MATCH(Calc_Option3!E$6,'Energy Prices'!$F$11:$CR$11,0))/100000,\"\")","v":419.92655846774767},{"$f":"IFERROR('Data Input - Option 3'!J84*INDEX('Energy Prices'!$F$19:$CR$24,MATCH($B94,'Energy Prices'!$C$19:$C$24,0),MATCH(Calc_Option3!F$6,'Energy Prices'!$F$11:$CR$11,0))/100000,\"\")","v":423.88884434102221},{"$f":"IFERROR('Data Input - Option 3'!K84*INDEX('Energy Prices'!$F$19:$CR$24,MATCH($B94,'Energy Prices'!$C$19:$C$24,0),MATCH(Calc_Option3!G$6,'Energy Prices'!$F$11:$CR$11,0))/100000,\"\")","v":455.56962244407958},{"$f":"IFERROR('Data Input - Option 3'!L84*INDEX('Energy Prices'!$F$19:$CR$24,MATCH($B94,'Energy Prices'!$C$19:$C$24,0),MATCH(Calc_Option3!H$6,'Energy Prices'!$F$11:$CR$11,0))/100000,\"\")","v":454.23873487734414},{"$f":"IFERROR('Data Input - Option 3'!M84*INDEX('Energy Prices'!$F$19:$CR$24,MATCH($B94,'Energy Prices'!$C$19:$C$24,0),MATCH(Calc_Option3!I$6,'Energy Prices'!$F$11:$CR$11,0))/100000,\"\")","v":489.76258839178865},{"$f":"IFERROR('Data Input - Option 3'!N84*INDEX('Energy Prices'!$F$19:$CR$24,MATCH($B94,'Energy Prices'!$C$19:$C$24,0),MATCH(Calc_Option3!J$6,'Energy Prices'!$F$11:$CR$11,0))/100000,\"\")","v":515.2556060578778},{"$f":"IFERROR('Data Input - Option 3'!O84*INDEX('Energy Prices'!$F$19:$CR$24,MATCH($B94,'Energy Prices'!$C$19:$C$24,0),MATCH(Calc_Option3!K$6,'Energy Prices'!$F$11:$CR$11,0))/100000,\"\")","v":509.17496416322342},{"$f":"IFERROR('Data Input - Option 3'!P84*INDEX('Energy Prices'!$F$19:$CR$24,MATCH($B94,'Energy Prices'!$C$19:$C$24,0),MATCH(Calc_Option3!L$6,'Energy Prices'!$F$11:$CR$11,0))/100000,\"\")","v":0},{"$f":"IFERROR('Data Input - Option 3'!Q84*INDEX('Energy Prices'!$F$19:$CR$24,MATCH($B94,'Energy Prices'!$C$19:$C$24,0),MATCH(Calc_Option3!M$6,'Energy Prices'!$F$11:$CR$11,0))/100000,\"\")","v":0},{"$f":"IFERROR('Data Input - Option 3'!R84*INDEX('Energy Prices'!$F$19:$CR$24,MATCH($B94,'Energy Prices'!$C$19:$C$24,0),MATCH(Calc_Option3!N$6,'Energy Prices'!$F$11:$CR$11,0))/100000,\"\")","v":0},{"$f":"IFERROR('Data Input - Option 3'!S84*INDEX('Energy Prices'!$F$19:$CR$24,MATCH($B94,'Energy Prices'!$C$19:$C$24,0),MATCH(Calc_Option3!O$6,'Energy Prices'!$F$11:$CR$11,0))/100000,\"\")","v":0},{"$f":"IFERROR('Data Input - Option 3'!T84*INDEX('Energy Prices'!$F$19:$CR$24,MATCH($B94,'Energy Prices'!$C$19:$C$24,0),MATCH(Calc_Option3!P$6,'Energy Prices'!$F$11:$CR$11,0))/100000,\"\")","v":0},{"$f":"IFERROR('Data Input - Option 3'!U84*INDEX('Energy Prices'!$F$19:$CR$24,MATCH($B94,'Energy Prices'!$C$19:$C$24,0),MATCH(Calc_Option3!Q$6,'Energy Prices'!$F$11:$CR$11,0))/100000,\"\")","v":0},{"$f":"IFERROR('Data Input - Option 3'!V84*INDEX('Energy Prices'!$F$19:$CR$24,MATCH($B94,'Energy Prices'!$C$19:$C$24,0),MATCH(Calc_Option3!R$6,'Energy Prices'!$F$11:$CR$11,0))/100000,\"\")","v":0},{"$f":"IFERROR('Data Input - Option 3'!W84*INDEX('Energy Prices'!$F$19:$CR$24,MATCH($B94,'Energy Prices'!$C$19:$C$24,0),MATCH(Calc_Option3!S$6,'Energy Prices'!$F$11:$CR$11,0))/100000,\"\")","v":0},{"$f":"IFERROR('Data Input - Option 3'!X84*INDEX('Energy Prices'!$F$19:$CR$24,MATCH($B94,'Energy Prices'!$C$19:$C$24,0),MATCH(Calc_Option3!T$6,'Energy Prices'!$F$11:$CR$11,0))/100000,\"\")","v":0},{"$f":"IFERROR('Data Input - Option 3'!Y84*INDEX('Energy Prices'!$F$19:$CR$24,MATCH($B94,'Energy Prices'!$C$19:$C$24,0),MATCH(Calc_Option3!U$6,'Energy Prices'!$F$11:$CR$11,0))/100000,\"\")","v":0},{"$f":"IFERROR('Data Input - Option 3'!Z84*INDEX('Energy Prices'!$F$19:$CR$24,MATCH($B94,'Energy Prices'!$C$19:$C$24,0),MATCH(Calc_Option3!V$6,'Energy Prices'!$F$11:$CR$11,0))/100000,\"\")","v":0},{"$f":"IFERROR('Data Input - Option 3'!AA84*INDEX('Energy Prices'!$F$19:$CR$24,MATCH($B94,'Energy Prices'!$C$19:$C$24,0),MATCH(Calc_Option3!W$6,'Energy Prices'!$F$11:$CR$11,0))/100000,\"\")","v":0},{"$f":"IFERROR('Data Input - Option 3'!AB84*INDEX('Energy Prices'!$F$19:$CR$24,MATCH($B94,'Energy Prices'!$C$19:$C$24,0),MATCH(Calc_Option3!X$6,'Energy Prices'!$F$11:$CR$11,0))/100000,\"\")","v":0},{"$f":"IFERROR('Data Input - Option 3'!AC84*INDEX('Energy Prices'!$F$19:$CR$24,MATCH($B94,'Energy Prices'!$C$19:$C$24,0),MATCH(Calc_Option3!Y$6,'Energy Prices'!$F$11:$CR$11,0))/100000,\"\")","v":0},{"$f":"IFERROR('Data Input - Option 3'!AD84*INDEX('Energy Prices'!$F$19:$CR$24,MATCH($B94,'Energy Prices'!$C$19:$C$24,0),MATCH(Calc_Option3!Z$6,'Energy Prices'!$F$11:$CR$11,0))/100000,\"\")","v":0},{"$f":"IFERROR('Data Input - Option 3'!AE84*INDEX('Energy Prices'!$F$19:$CR$24,MATCH($B94,'Energy Prices'!$C$19:$C$24,0),MATCH(Calc_Option3!AA$6,'Energy Prices'!$F$11:$CR$11,0))/100000,\"\")","v":0},{"$f":"IFERROR('Data Input - Option 3'!AF84*INDEX('Energy Prices'!$F$19:$CR$24,MATCH($B94,'Energy Prices'!$C$19:$C$24,0),MATCH(Calc_Option3!AB$6,'Energy Prices'!$F$11:$CR$11,0))/100000,\"\")","v":0},{"$f":"IFERROR('Data Input - Option 3'!AG84*INDEX('Energy Prices'!$F$19:$CR$24,MATCH($B94,'Energy Prices'!$C$19:$C$24,0),MATCH(Calc_Option3!AC$6,'Energy Prices'!$F$11:$CR$11,0))/100000,\"\")","v":0},{"$f":"IFERROR('Data Input - Option 3'!AH84*INDEX('Energy Prices'!$F$19:$CR$24,MATCH($B94,'Energy Prices'!$C$19:$C$24,0),MATCH(Calc_Option3!AD$6,'Energy Prices'!$F$11:$CR$11,0))/100000,\"\")","v":0},{"$f":"IFERROR('Data Input - Option 3'!AI84*INDEX('Energy Prices'!$F$19:$CR$24,MATCH($B94,'Energy Prices'!$C$19:$C$24,0),MATCH(Calc_Option3!AE$6,'Energy Prices'!$F$11:$CR$11,0))/100000,\"\")","v":0},{"$f":"IFERROR('Data Input - Option 3'!AJ84*INDEX('Energy Prices'!$F$19:$CR$24,MATCH($B94,'Energy Prices'!$C$19:$C$24,0),MATCH(Calc_Option3!AF$6,'Energy Prices'!$F$11:$CR$11,0))/100000,\"\")","v":0},{"$f":"IFERROR('Data Input - Option 3'!AK84*INDEX('Energy Prices'!$F$19:$CR$24,MATCH($B94,'Energy Prices'!$C$19:$C$24,0),MATCH(Calc_Option3!AG$6,'Energy Prices'!$F$11:$CR$11,0))/100000,\"\")","v":0},{"$f":"IFERROR('Data Input - Option 3'!AL84*INDEX('Energy Prices'!$F$19:$CR$24,MATCH($B94,'Energy Prices'!$C$19:$C$24,0),MATCH(Calc_Option3!AH$6,'Energy Prices'!$F$11:$CR$11,0))/100000,\"\")","v":0},{"$f":"IFERROR('Data Input - Option 3'!AM84*INDEX('Energy Prices'!$F$19:$CR$24,MATCH($B94,'Energy Prices'!$C$19:$C$24,0),MATCH(Calc_Option3!AI$6,'Energy Prices'!$F$11:$CR$11,0))/100000,\"\")","v":""},{"$f":"IFERROR('Data Input - Option 3'!AN84*INDEX('Energy Prices'!$F$19:$CR$24,MATCH($B94,'Energy Prices'!$C$19:$C$24,0),MATCH(Calc_Option3!AJ$6,'Energy Prices'!$F$11:$CR$11,0))/100000,\"\")","v":""},{"$f":"IFERROR('Data Input - Option 3'!AO84*INDEX('Energy Prices'!$F$19:$CR$24,MATCH($B94,'Energy Prices'!$C$19:$C$24,0),MATCH(Calc_Option3!AK$6,'Energy Prices'!$F$11:$CR$11,0))/100000,\"\")","v":""},{"$f":"IFERROR('Data Input - Option 3'!AP84*INDEX('Energy Prices'!$F$19:$CR$24,MATCH($B94,'Energy Prices'!$C$19:$C$24,0),MATCH(Calc_Option3!AL$6,'Energy Prices'!$F$11:$CR$11,0))/100000,\"\")","v":""},{"$f":"IFERROR('Data Input - Option 3'!AQ84*INDEX('Energy Prices'!$F$19:$CR$24,MATCH($B94,'Energy Prices'!$C$19:$C$24,0),MATCH(Calc_Option3!AM$6,'Energy Prices'!$F$11:$CR$11,0))/100000,\"\")","v":""},{"$f":"IFERROR('Data Input - Option 3'!AR84*INDEX('Energy Prices'!$F$19:$CR$24,MATCH($B94,'Energy Prices'!$C$19:$C$24,0),MATCH(Calc_Option3!AN$6,'Energy Prices'!$F$11:$CR$11,0))/100000,\"\")","v":""},{"$f":"IFERROR('Data Input - Option 3'!AS84*INDEX('Energy Prices'!$F$19:$CR$24,MATCH($B94,'Energy Prices'!$C$19:$C$24,0),MATCH(Calc_Option3!AO$6,'Energy Prices'!$F$11:$CR$11,0))/100000,\"\")","v":""},{"$f":"IFERROR('Data Input - Option 3'!AT84*INDEX('Energy Prices'!$F$19:$CR$24,MATCH($B94,'Energy Prices'!$C$19:$C$24,0),MATCH(Calc_Option3!AP$6,'Energy Prices'!$F$11:$CR$11,0))/100000,\"\")","v":""},{"$f":"IFERROR('Data Input - Option 3'!AU84*INDEX('Energy Prices'!$F$19:$CR$24,MATCH($B94,'Energy Prices'!$C$19:$C$24,0),MATCH(Calc_Option3!AQ$6,'Energy Prices'!$F$11:$CR$11,0))/100000,\"\")","v":""},{"$f":"IFERROR('Data Input - Option 3'!AV84*INDEX('Energy Prices'!$F$19:$CR$24,MATCH($B94,'Energy Prices'!$C$19:$C$24,0),MATCH(Calc_Option3!AR$6,'Energy Prices'!$F$11:$CR$11,0))/100000,\"\")","v":""},{"$f":"IFERROR('Data Input - Option 3'!AW84*INDEX('Energy Prices'!$F$19:$CR$24,MATCH($B94,'Energy Prices'!$C$19:$C$24,0),MATCH(Calc_Option3!AS$6,'Energy Prices'!$F$11:$CR$11,0))/100000,\"\")","v":""},{"$f":"IFERROR('Data Input - Option 3'!AX84*INDEX('Energy Prices'!$F$19:$CR$24,MATCH($B94,'Energy Prices'!$C$19:$C$24,0),MATCH(Calc_Option3!AT$6,'Energy Prices'!$F$11:$CR$11,0))/100000,\"\")","v":""},{"$f":"IFERROR('Data Input - Option 3'!AY84*INDEX('Energy Prices'!$F$19:$CR$24,MATCH($B94,'Energy Prices'!$C$19:$C$24,0),MATCH(Calc_Option3!AU$6,'Energy Prices'!$F$11:$CR$11,0))/100000,\"\")","v":""},{"$f":"IFERROR('Data Input - Option 3'!AZ84*INDEX('Energy Prices'!$F$19:$CR$24,MATCH($B94,'Energy Prices'!$C$19:$C$24,0),MATCH(Calc_Option3!AV$6,'Energy Prices'!$F$11:$CR$11,0))/100000,\"\")","v":""},{"$f":"IFERROR('Data Input - Option 3'!BA84*INDEX('Energy Prices'!$F$19:$CR$24,MATCH($B94,'Energy Prices'!$C$19:$C$24,0),MATCH(Calc_Option3!AW$6,'Energy Prices'!$F$11:$CR$11,0))/100000,\"\")","v":""},{"$f":"IFERROR('Data Input - Option 3'!BB84*INDEX('Energy Prices'!$F$19:$CR$24,MATCH($B94,'Energy Prices'!$C$19:$C$24,0),MATCH(Calc_Option3!AX$6,'Energy Prices'!$F$11:$CR$11,0))/100000,\"\")","v":""},{"$f":"IFERROR('Data Input - Option 3'!BC84*INDEX('Energy Prices'!$F$19:$CR$24,MATCH($B94,'Energy Prices'!$C$19:$C$24,0),MATCH(Calc_Option3!AY$6,'Energy Prices'!$F$11:$CR$11,0))/100000,\"\")","v":""},{"$f":"IFERROR('Data Input - Option 3'!BD84*INDEX('Energy Prices'!$F$19:$CR$24,MATCH($B94,'Energy Prices'!$C$19:$C$24,0),MATCH(Calc_Option3!AZ$6,'Energy Prices'!$F$11:$CR$11,0))/100000,\"\")","v":""},{"$f":"IFERROR('Data Input - Option 3'!BE84*INDEX('Energy Prices'!$F$19:$CR$24,MATCH($B94,'Energy Prices'!$C$19:$C$24,0),MATCH(Calc_Option3!BA$6,'Energy Prices'!$F$11:$CR$11,0))/100000,\"\")","v":""},{"$f":"IFERROR('Data Input - Option 3'!BF84*INDEX('Energy Prices'!$F$19:$CR$24,MATCH($B94,'Energy Prices'!$C$19:$C$24,0),MATCH(Calc_Option3!BB$6,'Energy Prices'!$F$11:$CR$11,0))/100000,\"\")","v":""},{"$f":"IFERROR('Data Input - Option 3'!BG84*INDEX('Energy Prices'!$F$19:$CR$24,MATCH($B94,'Energy Prices'!$C$19:$C$24,0),MATCH(Calc_Option3!BC$6,'Energy Prices'!$F$11:$CR$11,0))/100000,\"\")","v":""},{"$f":"IFERROR('Data Input - Option 3'!BH84*INDEX('Energy Prices'!$F$19:$CR$24,MATCH($B94,'Energy Prices'!$C$19:$C$24,0),MATCH(Calc_Option3!BD$6,'Energy Prices'!$F$11:$CR$11,0))/100000,\"\")","v":""},{"$f":"IFERROR('Data Input - Option 3'!BI84*INDEX('Energy Prices'!$F$19:$CR$24,MATCH($B94,'Energy Prices'!$C$19:$C$24,0),MATCH(Calc_Option3!BE$6,'Energy Prices'!$F$11:$CR$11,0))/100000,\"\")","v":""},{"$f":"IFERROR('Data Input - Option 3'!BJ84*INDEX('Energy Prices'!$F$19:$CR$24,MATCH($B94,'Energy Prices'!$C$19:$C$24,0),MATCH(Calc_Option3!BF$6,'Energy Prices'!$F$11:$CR$11,0))/100000,\"\")","v":""},{"$f":"IFERROR('Data Input - Option 3'!BK84*INDEX('Energy Prices'!$F$19:$CR$24,MATCH($B94,'Energy Prices'!$C$19:$C$24,0),MATCH(Calc_Option3!BG$6,'Energy Prices'!$F$11:$CR$11,0))/100000,\"\")","v":""},{"$f":"IFERROR('Data Input - Option 3'!BL84*INDEX('Energy Prices'!$F$19:$CR$24,MATCH($B94,'Energy Prices'!$C$19:$C$24,0),MATCH(Calc_Option3!BH$6,'Energy Prices'!$F$11:$CR$11,0))/100000,\"\")","v":""},{"$f":"IFERROR('Data Input - Option 3'!BM84*INDEX('Energy Prices'!$F$19:$CR$24,MATCH($B94,'Energy Prices'!$C$19:$C$24,0),MATCH(Calc_Option3!BI$6,'Energy Prices'!$F$11:$CR$11,0))/100000,\"\")","v":""},{"$f":"IFERROR('Data Input - Option 3'!BN84*INDEX('Energy Prices'!$F$19:$CR$24,MATCH($B94,'Energy Prices'!$C$19:$C$24,0),MATCH(Calc_Option3!BJ$6,'Energy Prices'!$F$11:$CR$11,0))/100000,\"\")","v":""},{"$f":"IFERROR('Data Input - Option 3'!BO84*INDEX('Energy Prices'!$F$19:$CR$24,MATCH($B94,'Energy Prices'!$C$19:$C$24,0),MATCH(Calc_Option3!BK$6,'Energy Prices'!$F$11:$CR$11,0))/100000,\"\")","v":""},{"$f":"IFERROR('Data Input - Option 3'!BP84*INDEX('Energy Prices'!$F$19:$CR$24,MATCH($B94,'Energy Prices'!$C$19:$C$24,0),MATCH(Calc_Option3!BL$6,'Energy Prices'!$F$11:$CR$11,0))/100000,\"\")","v":""},{"$f":"IFERROR('Data Input - Option 3'!BQ84*INDEX('Energy Prices'!$F$19:$CR$24,MATCH($B94,'Energy Prices'!$C$19:$C$24,0),MATCH(Calc_Option3!BM$6,'Energy Prices'!$F$11:$CR$11,0))/100000,\"\")","v":""},{"$f":"IFERROR('Data Input - Option 3'!BR84*INDEX('Energy Prices'!$F$19:$CR$24,MATCH($B94,'Energy Prices'!$C$19:$C$24,0),MATCH(Calc_Option3!BN$6,'Energy Prices'!$F$11:$CR$11,0))/100000,\"\")","v":""},{"$f":"IFERROR('Data Input - Option 3'!BS84*INDEX('Energy Prices'!$F$19:$CR$24,MATCH($B94,'Energy Prices'!$C$19:$C$24,0),MATCH(Calc_Option3!BO$6,'Energy Prices'!$F$11:$CR$11,0))/100000,\"\")","v":""},{"$f":"IFERROR('Data Input - Option 3'!BT84*INDEX('Energy Prices'!$F$19:$CR$24,MATCH($B94,'Energy Prices'!$C$19:$C$24,0),MATCH(Calc_Option3!BP$6,'Energy Prices'!$F$11:$CR$11,0))/100000,\"\")","v":""},{"$f":"IFERROR('Data Input - Option 3'!BU84*INDEX('Energy Prices'!$F$19:$CR$24,MATCH($B94,'Energy Prices'!$C$19:$C$24,0),MATCH(Calc_Option3!BQ$6,'Energy Prices'!$F$11:$CR$11,0))/100000,\"\")","v":""},{"$f":"IFERROR('Data Input - Option 3'!BV84*INDEX('Energy Prices'!$F$19:$CR$24,MATCH($B94,'Energy Prices'!$C$19:$C$24,0),MATCH(Calc_Option3!BR$6,'Energy Prices'!$F$11:$CR$11,0))/100000,\"\")","v":""},{"$f":"IFERROR('Data Input - Option 3'!BW84*INDEX('Energy Prices'!$F$19:$CR$24,MATCH($B94,'Energy Prices'!$C$19:$C$24,0),MATCH(Calc_Option3!BS$6,'Energy Prices'!$F$11:$CR$11,0))/100000,\"\")","v":""},{"$f":"IFERROR('Data Input - Option 3'!BX84*INDEX('Energy Prices'!$F$19:$CR$24,MATCH($B94,'Energy Prices'!$C$19:$C$24,0),MATCH(Calc_Option3!BT$6,'Energy Prices'!$F$11:$CR$11,0))/100000,\"\")","v":""},{"$f":"IFERROR('Data Input - Option 3'!BY84*INDEX('Energy Prices'!$F$19:$CR$24,MATCH($B94,'Energy Prices'!$C$19:$C$24,0),MATCH(Calc_Option3!BU$6,'Energy Prices'!$F$11:$CR$11,0))/100000,\"\")","v":""},{"$f":"IFERROR('Data Input - Option 3'!BZ84*INDEX('Energy Prices'!$F$19:$CR$24,MATCH($B94,'Energy Prices'!$C$19:$C$24,0),MATCH(Calc_Option3!BV$6,'Energy Prices'!$F$11:$CR$11,0))/100000,\"\")","v":""},{"$f":"IFERROR('Data Input - Option 3'!CA84*INDEX('Energy Prices'!$F$19:$CR$24,MATCH($B94,'Energy Prices'!$C$19:$C$24,0),MATCH(Calc_Option3!BW$6,'Energy Prices'!$F$11:$CR$11,0))/100000,\"\")","v":""},{"$f":"IFERROR('Data Input - Option 3'!CB84*INDEX('Energy Prices'!$F$19:$CR$24,MATCH($B94,'Energy Prices'!$C$19:$C$24,0),MATCH(Calc_Option3!BX$6,'Energy Prices'!$F$11:$CR$11,0))/100000,\"\")","v":""},{"$f":"IFERROR('Data Input - Option 3'!CC84*INDEX('Energy Prices'!$F$19:$CR$24,MATCH($B94,'Energy Prices'!$C$19:$C$24,0),MATCH(Calc_Option3!BY$6,'Energy Prices'!$F$11:$CR$11,0))/100000,\"\")","v":""},{"$f":"IFERROR('Data Input - Option 3'!CD84*INDEX('Energy Prices'!$F$19:$CR$24,MATCH($B94,'Energy Prices'!$C$19:$C$24,0),MATCH(Calc_Option3!BZ$6,'Energy Prices'!$F$11:$CR$11,0))/100000,\"\")","v":""},{"$f":"IFERROR('Data Input - Option 3'!CE84*INDEX('Energy Prices'!$F$19:$CR$24,MATCH($B94,'Energy Prices'!$C$19:$C$24,0),MATCH(Calc_Option3!CA$6,'Energy Prices'!$F$11:$CR$11,0))/100000,\"\")","v":""},{"$f":"IFERROR('Data Input - Option 3'!CF84*INDEX('Energy Prices'!$F$19:$CR$24,MATCH($B94,'Energy Prices'!$C$19:$C$24,0),MATCH(Calc_Option3!CB$6,'Energy Prices'!$F$11:$CR$11,0))/100000,\"\")","v":""},{"$f":"IFERROR('Data Input - Option 3'!CG84*INDEX('Energy Prices'!$F$19:$CR$24,MATCH($B94,'Energy Prices'!$C$19:$C$24,0),MATCH(Calc_Option3!CC$6,'Energy Prices'!$F$11:$CR$11,0))/100000,\"\")","v":""},{"$f":"IFERROR('Data Input - Option 3'!CH84*INDEX('Energy Prices'!$F$19:$CR$24,MATCH($B94,'Energy Prices'!$C$19:$C$24,0),MATCH(Calc_Option3!CD$6,'Energy Prices'!$F$11:$CR$11,0))/100000,\"\")","v":""},{"$f":"IFERROR('Data Input - Option 3'!CI84*INDEX('Energy Prices'!$F$19:$CR$24,MATCH($B94,'Energy Prices'!$C$19:$C$24,0),MATCH(Calc_Option3!CE$6,'Energy Prices'!$F$11:$CR$11,0))/100000,\"\")","v":""},{"$f":"IFERROR('Data Input - Option 3'!CJ84*INDEX('Energy Prices'!$F$19:$CR$24,MATCH($B94,'Energy Prices'!$C$19:$C$24,0),MATCH(Calc_Option3!CF$6,'Energy Prices'!$F$11:$CR$11,0))/100000,\"\")","v":""},{"$f":"IFERROR('Data Input - Option 3'!CK84*INDEX('Energy Prices'!$F$19:$CR$24,MATCH($B94,'Energy Prices'!$C$19:$C$24,0),MATCH(Calc_Option3!CG$6,'Energy Prices'!$F$11:$CR$11,0))/100000,\"\")","v":""},{"$f":"IFERROR('Data Input - Option 3'!CL84*INDEX('Energy Prices'!$F$19:$CR$24,MATCH($B94,'Energy Prices'!$C$19:$C$24,0),MATCH(Calc_Option3!CH$6,'Energy Prices'!$F$11:$CR$11,0))/100000,\"\")","v":""},{"$f":"IFERROR('Data Input - Option 3'!CM84*INDEX('Energy Prices'!$F$19:$CR$24,MATCH($B94,'Energy Prices'!$C$19:$C$24,0),MATCH(Calc_Option3!CI$6,'Energy Prices'!$F$11:$CR$11,0))/100000,\"\")","v":""},{"$f":"IFERROR('Data Input - Option 3'!CN84*INDEX('Energy Prices'!$F$19:$CR$24,MATCH($B94,'Energy Prices'!$C$19:$C$24,0),MATCH(Calc_Option3!CJ$6,'Energy Prices'!$F$11:$CR$11,0))/100000,\"\")","v":""},{"$f":"IFERROR('Data Input - Option 3'!CO84*INDEX('Energy Prices'!$F$19:$CR$24,MATCH($B94,'Energy Prices'!$C$19:$C$24,0),MATCH(Calc_Option3!CK$6,'Energy Prices'!$F$11:$CR$11,0))/100000,\"\")","v":""},{"$f":"IFERROR('Data Input - Option 3'!CP84*INDEX('Energy Prices'!$F$19:$CR$24,MATCH($B94,'Energy Prices'!$C$19:$C$24,0),MATCH(Calc_Option3!CL$6,'Energy Prices'!$F$11:$CR$11,0))/100000,\"\")","v":""},{"$f":"IFERROR('Data Input - Option 3'!CQ84*INDEX('Energy Prices'!$F$19:$CR$24,MATCH($B94,'Energy Prices'!$C$19:$C$24,0),MATCH(Calc_Option3!CM$6,'Energy Prices'!$F$11:$CR$11,0))/100000,\"\")","v":""},{"$f":"IFERROR('Data Input - Option 3'!CR84*INDEX('Energy Prices'!$F$19:$CR$24,MATCH($B94,'Energy Prices'!$C$19:$C$24,0),MATCH(Calc_Option3!CN$6,'Energy Prices'!$F$11:$CR$11,0))/100000,\"\")","v":""},{"$f":"IFERROR('Data Input - Option 3'!CS84*INDEX('Energy Prices'!$F$19:$CR$24,MATCH($B94,'Energy Prices'!$C$19:$C$24,0),MATCH(Calc_Option3!CO$6,'Energy Prices'!$F$11:$CR$11,0))/100000,\"\")","v":""},{"$f":"IFERROR('Data Input - Option 3'!CT84*INDEX('Energy Prices'!$F$19:$CR$24,MATCH($B94,'Energy Prices'!$C$19:$C$24,0),MATCH(Calc_Option3!CP$6,'Energy Prices'!$F$11:$CR$11,0))/100000,\"\")","v":""},{"$f":"IFERROR('Data Input - Option 3'!CU84*INDEX('Energy Prices'!$F$19:$CR$24,MATCH($B94,'Energy Prices'!$C$19:$C$24,0),MATCH(Calc_Option3!CQ$6,'Energy Prices'!$F$11:$CR$11,0))/100000,\"\")","v":""},{"$f":"IFERROR('Data Input - Option 3'!CV84*INDEX('Energy Prices'!$F$19:$CR$24,MATCH($B94,'Energy Prices'!$C$19:$C$24,0),MATCH(Calc_Option3!CR$6,'Energy Prices'!$F$11:$CR$11,0))/100000,\"\")","v":""},{"$f":"IFERROR('Data Input - Option 3'!CW84*INDEX('Energy Prices'!$F$19:$CR$24,MATCH($B94,'Energy Prices'!$C$19:$C$24,0),MATCH(Calc_Option3!CS$6,'Energy Prices'!$F$11:$CR$11,0))/100000,\"\")","v":""},{"$f":"IFERROR('Data Input - Option 3'!CX84*INDEX('Energy Prices'!$F$19:$CR$24,MATCH($B94,'Energy Prices'!$C$19:$C$24,0),MATCH(Calc_Option3!CT$6,'Energy Prices'!$F$11:$CR$11,0))/100000,\"\")","v":""},{"$f":"IFERROR('Data Input - Option 3'!CY84*INDEX('Energy Prices'!$F$19:$CR$24,MATCH($B94,'Energy Prices'!$C$19:$C$24,0),MATCH(Calc_Option3!CU$6,'Energy Prices'!$F$11:$CR$11,0))/100000,\"\")","v":""},{"$f":"IFERROR('Data Input - Option 3'!CZ84*INDEX('Energy Prices'!$F$19:$CR$24,MATCH($B94,'Energy Prices'!$C$19:$C$24,0),MATCH(Calc_Option3!CV$6,'Energy Prices'!$F$11:$CR$11,0))/100000,\"\")","v":""},{"$f":"IFERROR('Data Input - Option 3'!DA84*INDEX('Energy Prices'!$F$19:$CR$24,MATCH($B94,'Energy Prices'!$C$19:$C$24,0),MATCH(Calc_Option3!CW$6,'Energy Prices'!$F$11:$CR$11,0))/100000,\"\")","v":""},{"$f":"IFERROR('Data Input - Option 3'!DB84*INDEX('Energy Prices'!$F$19:$CR$24,MATCH($B94,'Energy Prices'!$C$19:$C$24,0),MATCH(Calc_Option3!CX$6,'Energy Prices'!$F$11:$CR$11,0))/100000,\"\")","v":""},{"$f":"IFERROR('Data Input - Option 3'!DC84*INDEX('Energy Prices'!$F$19:$CR$24,MATCH($B94,'Energy Prices'!$C$19:$C$24,0),MATCH(Calc_Option3!CY$6,'Energy Prices'!$F$11:$CR$11,0))/100000,\"\")","v":""}]
[null,"Natural Gas","£000's",{"$f":"IFERROR('Data Input - Option 3'!H85*INDEX('Energy Prices'!$F$19:$CR$24,MATCH($B95,'Energy Prices'!$C$19:$C$24,0),MATCH(Calc_Option3!D$6,'Energy Prices'!$F$11:$CR$11,0))/100000,\"\")","v":0},{"$f":"IFERROR('Data Input - Option 3'!I85*INDEX('Energy Prices'!$F$19:$CR$24,MATCH($B95,'Energy Prices'!$C$19:$C$24,0),MATCH(Calc_Option3!E$6,'Energy Prices'!$F$11:$CR$11,0))/100000,\"\")","v":0},{"$f":"IFERROR('Data Input - Option 3'!J85*INDEX('Energy Prices'!$F$19:$CR$24,MATCH($B95,'Energy Prices'!$C$19:$C$24,0),MATCH(Calc_Option3!F$6,'Energy Prices'!$F$11:$CR$11,0))/100000,\"\")","v":0},{"$f":"IFERROR('Data Input - Option 3'!K85*INDEX('Energy Prices'!$F$19:$CR$24,MATCH($B95,'Energy Prices'!$C$19:$C$24,0),MATCH(Calc_Option3!G$6,'Energy Prices'!$F$11:$CR$11,0))/100000,\"\")","v":0},{"$f":"IFERROR('Data Input - Option 3'!L85*INDEX('Energy Prices'!$F$19:$CR$24,MATCH($B95,'Energy Prices'!$C$19:$C$24,0),MATCH(Calc_Option3!H$6,'Energy Prices'!$F$11:$CR$11,0))/100000,\"\")","v":0},{"$f":"IFERROR('Data Input - Option 3'!M85*INDEX('Energy Prices'!$F$19:$CR$24,MATCH($B95,'Energy Prices'!$C$19:$C$24,0),MATCH(Calc_Option3!I$6,'Energy Prices'!$F$11:$CR$11,0))/100000,\"\")","v":0},{"$f":"IFERROR('Data Input - Option 3'!N85*INDEX('Energy Prices'!$F$19:$CR$24,MATCH($B95,'Energy Prices'!$C$19:$C$24,0),MATCH(Calc_Option3!J$6,'Energy Prices'!$F$11:$CR$11,0))/100000,\"\")","v":0},{"$f":"IFERROR('Data Input - Option 3'!O85*INDEX('Energy Prices'!$F$19:$CR$24,MATCH($B95,'Energy Prices'!$C$19:$C$24,0),MATCH(Calc_Option3!K$6,'Energy Prices'!$F$11:$CR$11,0))/100000,\"\")","v":0},{"$f":"IFERROR('Data Input - Option 3'!P85*INDEX('Energy Prices'!$F$19:$CR$24,MATCH($B95,'Energy Prices'!$C$19:$C$24,0),MATCH(Calc_Option3!L$6,'Energy Prices'!$F$11:$CR$11,0))/100000,\"\")","v":0},{"$f":"IFERROR('Data Input - Option 3'!Q85*INDEX('Energy Prices'!$F$19:$CR$24,MATCH($B95,'Energy Prices'!$C$19:$C$24,0),MATCH(Calc_Option3!M$6,'Energy Prices'!$F$11:$CR$11,0))/100000,\"\")","v":0},{"$f":"IFERROR('Data Input - Option 3'!R85*INDEX('Energy Prices'!$F$19:$CR$24,MATCH($B95,'Energy Prices'!$C$19:$C$24,0),MATCH(Calc_Option3!N$6,'Energy Prices'!$F$11:$CR$11,0))/100000,\"\")","v":0},{"$f":"IFERROR('Data Input - Option 3'!S85*INDEX('Energy Prices'!$F$19:$CR$24,MATCH($B95,'Energy Prices'!$C$19:$C$24,0),MATCH(Calc_Option3!O$6,'Energy Prices'!$F$11:$CR$11,0))/100000,\"\")","v":0},{"$f":"IFERROR('Data Input - Option 3'!T85*INDEX('Energy Prices'!$F$19:$CR$24,MATCH($B95,'Energy Prices'!$C$19:$C$24,0),MATCH(Calc_Option3!P$6,'Energy Prices'!$F$11:$CR$11,0))/100000,\"\")","v":0},{"$f":"IFERROR('Data Input - Option 3'!U85*INDEX('Energy Prices'!$F$19:$CR$24,MATCH($B95,'Energy Prices'!$C$19:$C$24,0),MATCH(Calc_Option3!Q$6,'Energy Prices'!$F$11:$CR$11,0))/100000,\"\")","v":0},{"$f":"IFERROR('Data Input - Option 3'!V85*INDEX('Energy Prices'!$F$19:$CR$24,MATCH($B95,'Energy Prices'!$C$19:$C$24,0),MATCH(Calc_Option3!R$6,'Energy Prices'!$F$11:$CR$11,0))/100000,\"\")","v":0},{"$f":"IFERROR('Data Input - Option 3'!W85*INDEX('Energy Prices'!$F$19:$CR$24,MATCH($B95,'Energy Prices'!$C$19:$C$24,0),MATCH(Calc_Option3!S$6,'Energy Prices'!$F$11:$CR$11,0))/100000,\"\")","v":0},{"$f":"IFERROR('Data Input - Option 3'!X85*INDEX('Energy Prices'!$F$19:$CR$24,MATCH($B95,'Energy Prices'!$C$19:$C$24,0),MATCH(Calc_Option3!T$6,'Energy Prices'!$F$11:$CR$11,0))/100000,\"\")","v":0},{"$f":"IFERROR('Data Input - Option 3'!Y85*INDEX('Energy Prices'!$F$19:$CR$24,MATCH($B95,'Energy Prices'!$C$19:$C$24,0),MATCH(Calc_Option3!U$6,'Energy Prices'!$F$11:$CR$11,0))/100000,\"\")","v":0},{"$f":"IFERROR('Data Input - Option 3'!Z85*INDEX('Energy Prices'!$F$19:$CR$24,MATCH($B95,'Energy Prices'!$C$19:$C$24,0),MATCH(Calc_Option3!V$6,'Energy Prices'!$F$11:$CR$11,0))/100000,\"\")","v":0},{"$f":"IFERROR('Data Input - Option 3'!AA85*INDEX('Energy Prices'!$F$19:$CR$24,MATCH($B95,'Energy Prices'!$C$19:$C$24,0),MATCH(Calc_Option3!W$6,'Energy Prices'!$F$11:$CR$11,0))/100000,\"\")","v":0},{"$f":"IFERROR('Data Input - Option 3'!AB85*INDEX('Energy Prices'!$F$19:$CR$24,MATCH($B95,'Energy Prices'!$C$19:$C$24,0),MATCH(Calc_Option3!X$6,'Energy Prices'!$F$11:$CR$11,0))/100000,\"\")","v":0},{"$f":"IFERROR('Data Input - Option 3'!AC85*INDEX('Energy Prices'!$F$19:$CR$24,MATCH($B95,'Energy Prices'!$C$19:$C$24,0),MATCH(Calc_Option3!Y$6,'Energy Prices'!$F$11:$CR$11,0))/100000,\"\")","v":0},{"$f":"IFERROR('Data Input - Option 3'!AD85*INDEX('Energy Prices'!$F$19:$CR$24,MATCH($B95,'Energy Prices'!$C$19:$C$24,0),MATCH(Calc_Option3!Z$6,'Energy Prices'!$F$11:$CR$11,0))/100000,\"\")","v":0},{"$f":"IFERROR('Data Input - Option 3'!AE85*INDEX('Energy Prices'!$F$19:$CR$24,MATCH($B95,'Energy Prices'!$C$19:$C$24,0),MATCH(Calc_Option3!AA$6,'Energy Prices'!$F$11:$CR$11,0))/100000,\"\")","v":0},{"$f":"IFERROR('Data Input - Option 3'!AF85*INDEX('Energy Prices'!$F$19:$CR$24,MATCH($B95,'Energy Prices'!$C$19:$C$24,0),MATCH(Calc_Option3!AB$6,'Energy Prices'!$F$11:$CR$11,0))/100000,\"\")","v":0},{"$f":"IFERROR('Data Input - Option 3'!AG85*INDEX('Energy Prices'!$F$19:$CR$24,MATCH($B95,'Energy Prices'!$C$19:$C$24,0),MATCH(Calc_Option3!AC$6,'Energy Prices'!$F$11:$CR$11,0))/100000,\"\")","v":0},{"$f":"IFERROR('Data Input - Option 3'!AH85*INDEX('Energy Prices'!$F$19:$CR$24,MATCH($B95,'Energy Prices'!$C$19:$C$24,0),MATCH(Calc_Option3!AD$6,'Energy Prices'!$F$11:$CR$11,0))/100000,\"\")","v":0},{"$f":"IFERROR('Data Input - Option 3'!AI85*INDEX('Energy Prices'!$F$19:$CR$24,MATCH($B95,'Energy Prices'!$C$19:$C$24,0),MATCH(Calc_Option3!AE$6,'Energy Prices'!$F$11:$CR$11,0))/100000,\"\")","v":0},{"$f":"IFERROR('Data Input - Option 3'!AJ85*INDEX('Energy Prices'!$F$19:$CR$24,MATCH($B95,'Energy Prices'!$C$19:$C$24,0),MATCH(Calc_Option3!AF$6,'Energy Prices'!$F$11:$CR$11,0))/100000,\"\")","v":0},{"$f":"IFERROR('Data Input - Option 3'!AK85*INDEX('Energy Prices'!$F$19:$CR$24,MATCH($B95,'Energy Prices'!$C$19:$C$24,0),MATCH(Calc_Option3!AG$6,'Energy Prices'!$F$11:$CR$11,0))/100000,\"\")","v":0},{"$f":"IFERROR('Data Input - Option 3'!AL85*INDEX('Energy Prices'!$F$19:$CR$24,MATCH($B95,'Energy Prices'!$C$19:$C$24,0),MATCH(Calc_Option3!AH$6,'Energy Prices'!$F$11:$CR$11,0))/100000,\"\")","v":0},{"$f":"IFERROR('Data Input - Option 3'!AM85*INDEX('Energy Prices'!$F$19:$CR$24,MATCH($B95,'Energy Prices'!$C$19:$C$24,0),MATCH(Calc_Option3!AI$6,'Energy Prices'!$F$11:$CR$11,0))/100000,\"\")","v":""},{"$f":"IFERROR('Data Input - Option 3'!AN85*INDEX('Energy Prices'!$F$19:$CR$24,MATCH($B95,'Energy Prices'!$C$19:$C$24,0),MATCH(Calc_Option3!AJ$6,'Energy Prices'!$F$11:$CR$11,0))/100000,\"\")","v":""},{"$f":"IFERROR('Data Input - Option 3'!AO85*INDEX('Energy Prices'!$F$19:$CR$24,MATCH($B95,'Energy Prices'!$C$19:$C$24,0),MATCH(Calc_Option3!AK$6,'Energy Prices'!$F$11:$CR$11,0))/100000,\"\")","v":""},{"$f":"IFERROR('Data Input - Option 3'!AP85*INDEX('Energy Prices'!$F$19:$CR$24,MATCH($B95,'Energy Prices'!$C$19:$C$24,0),MATCH(Calc_Option3!AL$6,'Energy Prices'!$F$11:$CR$11,0))/100000,\"\")","v":""},{"$f":"IFERROR('Data Input - Option 3'!AQ85*INDEX('Energy Prices'!$F$19:$CR$24,MATCH($B95,'Energy Prices'!$C$19:$C$24,0),MATCH(Calc_Option3!AM$6,'Energy Prices'!$F$11:$CR$11,0))/100000,\"\")","v":""},{"$f":"IFERROR('Data Input - Option 3'!AR85*INDEX('Energy Prices'!$F$19:$CR$24,MATCH($B95,'Energy Prices'!$C$19:$C$24,0),MATCH(Calc_Option3!AN$6,'Energy Prices'!$F$11:$CR$11,0))/100000,\"\")","v":""},{"$f":"IFERROR('Data Input - Option 3'!AS85*INDEX('Energy Prices'!$F$19:$CR$24,MATCH($B95,'Energy Prices'!$C$19:$C$24,0),MATCH(Calc_Option3!AO$6,'Energy Prices'!$F$11:$CR$11,0))/100000,\"\")","v":""},{"$f":"IFERROR('Data Input - Option 3'!AT85*INDEX('Energy Prices'!$F$19:$CR$24,MATCH($B95,'Energy Prices'!$C$19:$C$24,0),MATCH(Calc_Option3!AP$6,'Energy Prices'!$F$11:$CR$11,0))/100000,\"\")","v":""},{"$f":"IFERROR('Data Input - Option 3'!AU85*INDEX('Energy Prices'!$F$19:$CR$24,MATCH($B95,'Energy Prices'!$C$19:$C$24,0),MATCH(Calc_Option3!AQ$6,'Energy Prices'!$F$11:$CR$11,0))/100000,\"\")","v":""},{"$f":"IFERROR('Data Input - Option 3'!AV85*INDEX('Energy Prices'!$F$19:$CR$24,MATCH($B95,'Energy Prices'!$C$19:$C$24,0),MATCH(Calc_Option3!AR$6,'Energy Prices'!$F$11:$CR$11,0))/100000,\"\")","v":""},{"$f":"IFERROR('Data Input - Option 3'!AW85*INDEX('Energy Prices'!$F$19:$CR$24,MATCH($B95,'Energy Prices'!$C$19:$C$24,0),MATCH(Calc_Option3!AS$6,'Energy Prices'!$F$11:$CR$11,0))/100000,\"\")","v":""},{"$f":"IFERROR('Data Input - Option 3'!AX85*INDEX('Energy Prices'!$F$19:$CR$24,MATCH($B95,'Energy Prices'!$C$19:$C$24,0),MATCH(Calc_Option3!AT$6,'Energy Prices'!$F$11:$CR$11,0))/100000,\"\")","v":""},{"$f":"IFERROR('Data Input - Option 3'!AY85*INDEX('Energy Prices'!$F$19:$CR$24,MATCH($B95,'Energy Prices'!$C$19:$C$24,0),MATCH(Calc_Option3!AU$6,'Energy Prices'!$F$11:$CR$11,0))/100000,\"\")","v":""},{"$f":"IFERROR('Data Input - Option 3'!AZ85*INDEX('Energy Prices'!$F$19:$CR$24,MATCH($B95,'Energy Prices'!$C$19:$C$24,0),MATCH(Calc_Option3!AV$6,'Energy Prices'!$F$11:$CR$11,0))/100000,\"\")","v":""},{"$f":"IFERROR('Data Input - Option 3'!BA85*INDEX('Energy Prices'!$F$19:$CR$24,MATCH($B95,'Energy Prices'!$C$19:$C$24,0),MATCH(Calc_Option3!AW$6,'Energy Prices'!$F$11:$CR$11,0))/100000,\"\")","v":""},{"$f":"IFERROR('Data Input - Option 3'!BB85*INDEX('Energy Prices'!$F$19:$CR$24,MATCH($B95,'Energy Prices'!$C$19:$C$24,0),MATCH(Calc_Option3!AX$6,'Energy Prices'!$F$11:$CR$11,0))/100000,\"\")","v":""},{"$f":"IFERROR('Data Input - Option 3'!BC85*INDEX('Energy Prices'!$F$19:$CR$24,MATCH($B95,'Energy Prices'!$C$19:$C$24,0),MATCH(Calc_Option3!AY$6,'Energy Prices'!$F$11:$CR$11,0))/100000,\"\")","v":""},{"$f":"IFERROR('Data Input - Option 3'!BD85*INDEX('Energy Prices'!$F$19:$CR$24,MATCH($B95,'Energy Prices'!$C$19:$C$24,0),MATCH(Calc_Option3!AZ$6,'Energy Prices'!$F$11:$CR$11,0))/100000,\"\")","v":""},{"$f":"IFERROR('Data Input - Option 3'!BE85*INDEX('Energy Prices'!$F$19:$CR$24,MATCH($B95,'Energy Prices'!$C$19:$C$24,0),MATCH(Calc_Option3!BA$6,'Energy Prices'!$F$11:$CR$11,0))/100000,\"\")","v":""},{"$f":"IFERROR('Data Input - Option 3'!BF85*INDEX('Energy Prices'!$F$19:$CR$24,MATCH($B95,'Energy Prices'!$C$19:$C$24,0),MATCH(Calc_Option3!BB$6,'Energy Prices'!$F$11:$CR$11,0))/100000,\"\")","v":""},{"$f":"IFERROR('Data Input - Option 3'!BG85*INDEX('Energy Prices'!$F$19:$CR$24,MATCH($B95,'Energy Prices'!$C$19:$C$24,0),MATCH(Calc_Option3!BC$6,'Energy Prices'!$F$11:$CR$11,0))/100000,\"\")","v":""},{"$f":"IFERROR('Data Input - Option 3'!BH85*INDEX('Energy Prices'!$F$19:$CR$24,MATCH($B95,'Energy Prices'!$C$19:$C$24,0),MATCH(Calc_Option3!BD$6,'Energy Prices'!$F$11:$CR$11,0))/100000,\"\")","v":""},{"$f":"IFERROR('Data Input - Option 3'!BI85*INDEX('Energy Prices'!$F$19:$CR$24,MATCH($B95,'Energy Prices'!$C$19:$C$24,0),MATCH(Calc_Option3!BE$6,'Energy Prices'!$F$11:$CR$11,0))/100000,\"\")","v":""},{"$f":"IFERROR('Data Input - Option 3'!BJ85*INDEX('Energy Prices'!$F$19:$CR$24,MATCH($B95,'Energy Prices'!$C$19:$C$24,0),MATCH(Calc_Option3!BF$6,'Energy Prices'!$F$11:$CR$11,0))/100000,\"\")","v":""},{"$f":"IFERROR('Data Input - Option 3'!BK85*INDEX('Energy Prices'!$F$19:$CR$24,MATCH($B95,'Energy Prices'!$C$19:$C$24,0),MATCH(Calc_Option3!BG$6,'Energy Prices'!$F$11:$CR$11,0))/100000,\"\")","v":""},{"$f":"IFERROR('Data Input - Option 3'!BL85*INDEX('Energy Prices'!$F$19:$CR$24,MATCH($B95,'Energy Prices'!$C$19:$C$24,0),MATCH(Calc_Option3!BH$6,'Energy Prices'!$F$11:$CR$11,0))/100000,\"\")","v":""},{"$f":"IFERROR('Data Input - Option 3'!BM85*INDEX('Energy Prices'!$F$19:$CR$24,MATCH($B95,'Energy Prices'!$C$19:$C$24,0),MATCH(Calc_Option3!BI$6,'Energy Prices'!$F$11:$CR$11,0))/100000,\"\")","v":""},{"$f":"IFERROR('Data Input - Option 3'!BN85*INDEX('Energy Prices'!$F$19:$CR$24,MATCH($B95,'Energy Prices'!$C$19:$C$24,0),MATCH(Calc_Option3!BJ$6,'Energy Prices'!$F$11:$CR$11,0))/100000,\"\")","v":""},{"$f":"IFERROR('Data Input - Option 3'!BO85*INDEX('Energy Prices'!$F$19:$CR$24,MATCH($B95,'Energy Prices'!$C$19:$C$24,0),MATCH(Calc_Option3!BK$6,'Energy Prices'!$F$11:$CR$11,0))/100000,\"\")","v":""},{"$f":"IFERROR('Data Input - Option 3'!BP85*INDEX('Energy Prices'!$F$19:$CR$24,MATCH($B95,'Energy Prices'!$C$19:$C$24,0),MATCH(Calc_Option3!BL$6,'Energy Prices'!$F$11:$CR$11,0))/100000,\"\")","v":""},{"$f":"IFERROR('Data Input - Option 3'!BQ85*INDEX('Energy Prices'!$F$19:$CR$24,MATCH($B95,'Energy Prices'!$C$19:$C$24,0),MATCH(Calc_Option3!BM$6,'Energy Prices'!$F$11:$CR$11,0))/100000,\"\")","v":""},{"$f":"IFERROR('Data Input - Option 3'!BR85*INDEX('Energy Prices'!$F$19:$CR$24,MATCH($B95,'Energy Prices'!$C$19:$C$24,0),MATCH(Calc_Option3!BN$6,'Energy Prices'!$F$11:$CR$11,0))/100000,\"\")","v":""},{"$f":"IFERROR('Data Input - Option 3'!BS85*INDEX('Energy Prices'!$F$19:$CR$24,MATCH($B95,'Energy Prices'!$C$19:$C$24,0),MATCH(Calc_Option3!BO$6,'Energy Prices'!$F$11:$CR$11,0))/100000,\"\")","v":""},{"$f":"IFERROR('Data Input - Option 3'!BT85*INDEX('Energy Prices'!$F$19:$CR$24,MATCH($B95,'Energy Prices'!$C$19:$C$24,0),MATCH(Calc_Option3!BP$6,'Energy Prices'!$F$11:$CR$11,0))/100000,\"\")","v":""},{"$f":"IFERROR('Data Input - Option 3'!BU85*INDEX('Energy Prices'!$F$19:$CR$24,MATCH($B95,'Energy Prices'!$C$19:$C$24,0),MATCH(Calc_Option3!BQ$6,'Energy Prices'!$F$11:$CR$11,0))/100000,\"\")","v":""},{"$f":"IFERROR('Data Input - Option 3'!BV85*INDEX('Energy Prices'!$F$19:$CR$24,MATCH($B95,'Energy Prices'!$C$19:$C$24,0),MATCH(Calc_Option3!BR$6,'Energy Prices'!$F$11:$CR$11,0))/100000,\"\")","v":""},{"$f":"IFERROR('Data Input - Option 3'!BW85*INDEX('Energy Prices'!$F$19:$CR$24,MATCH($B95,'Energy Prices'!$C$19:$C$24,0),MATCH(Calc_Option3!BS$6,'Energy Prices'!$F$11:$CR$11,0))/100000,\"\")","v":""},{"$f":"IFERROR('Data Input - Option 3'!BX85*INDEX('Energy Prices'!$F$19:$CR$24,MATCH($B95,'Energy Prices'!$C$19:$C$24,0),MATCH(Calc_Option3!BT$6,'Energy Prices'!$F$11:$CR$11,0))/100000,\"\")","v":""},{"$f":"IFERROR('Data Input - Option 3'!BY85*INDEX('Energy Prices'!$F$19:$CR$24,MATCH($B95,'Energy Prices'!$C$19:$C$24,0),MATCH(Calc_Option3!BU$6,'Energy Prices'!$F$11:$CR$11,0))/100000,\"\")","v":""},{"$f":"IFERROR('Data Input - Option 3'!BZ85*INDEX('Energy Prices'!$F$19:$CR$24,MATCH($B95,'Energy Prices'!$C$19:$C$24,0),MATCH(Calc_Option3!BV$6,'Energy Prices'!$F$11:$CR$11,0))/100000,\"\")","v":""},{"$f":"IFERROR('Data Input - Option 3'!CA85*INDEX('Energy Prices'!$F$19:$CR$24,MATCH($B95,'Energy Prices'!$C$19:$C$24,0),MATCH(Calc_Option3!BW$6,'Energy Prices'!$F$11:$CR$11,0))/100000,\"\")","v":""},{"$f":"IFERROR('Data Input - Option 3'!CB85*INDEX('Energy Prices'!$F$19:$CR$24,MATCH($B95,'Energy Prices'!$C$19:$C$24,0),MATCH(Calc_Option3!BX$6,'Energy Prices'!$F$11:$CR$11,0))/100000,\"\")","v":""},{"$f":"IFERROR('Data Input - Option 3'!CC85*INDEX('Energy Prices'!$F$19:$CR$24,MATCH($B95,'Energy Prices'!$C$19:$C$24,0),MATCH(Calc_Option3!BY$6,'Energy Prices'!$F$11:$CR$11,0))/100000,\"\")","v":""},{"$f":"IFERROR('Data Input - Option 3'!CD85*INDEX('Energy Prices'!$F$19:$CR$24,MATCH($B95,'Energy Prices'!$C$19:$C$24,0),MATCH(Calc_Option3!BZ$6,'Energy Prices'!$F$11:$CR$11,0))/100000,\"\")","v":""},{"$f":"IFERROR('Data Input - Option 3'!CE85*INDEX('Energy Prices'!$F$19:$CR$24,MATCH($B95,'Energy Prices'!$C$19:$C$24,0),MATCH(Calc_Option3!CA$6,'Energy Prices'!$F$11:$CR$11,0))/100000,\"\")","v":""},{"$f":"IFERROR('Data Input - Option 3'!CF85*INDEX('Energy Prices'!$F$19:$CR$24,MATCH($B95,'Energy Prices'!$C$19:$C$24,0),MATCH(Calc_Option3!CB$6,'Energy Prices'!$F$11:$CR$11,0))/100000,\"\")","v":""},{"$f":"IFERROR('Data Input - Option 3'!CG85*INDEX('Energy Prices'!$F$19:$CR$24,MATCH($B95,'Energy Prices'!$C$19:$C$24,0),MATCH(Calc_Option3!CC$6,'Energy Prices'!$F$11:$CR$11,0))/100000,\"\")","v":""},{"$f":"IFERROR('Data Input - Option 3'!CH85*INDEX('Energy Prices'!$F$19:$CR$24,MATCH($B95,'Energy Prices'!$C$19:$C$24,0),MATCH(Calc_Option3!CD$6,'Energy Prices'!$F$11:$CR$11,0))/100000,\"\")","v":""},{"$f":"IFERROR('Data Input - Option 3'!CI85*INDEX('Energy Prices'!$F$19:$CR$24,MATCH($B95,'Energy Prices'!$C$19:$C$24,0),MATCH(Calc_Option3!CE$6,'Energy Prices'!$F$11:$CR$11,0))/100000,\"\")","v":""},{"$f":"IFERROR('Data Input - Option 3'!CJ85*INDEX('Energy Prices'!$F$19:$CR$24,MATCH($B95,'Energy Prices'!$C$19:$C$24,0),MATCH(Calc_Option3!CF$6,'Energy Prices'!$F$11:$CR$11,0))/100000,\"\")","v":""},{"$f":"IFERROR('Data Input - Option 3'!CK85*INDEX('Energy Prices'!$F$19:$CR$24,MATCH($B95,'Energy Prices'!$C$19:$C$24,0),MATCH(Calc_Option3!CG$6,'Energy Prices'!$F$11:$CR$11,0))/100000,\"\")","v":""},{"$f":"IFERROR('Data Input - Option 3'!CL85*INDEX('Energy Prices'!$F$19:$CR$24,MATCH($B95,'Energy Prices'!$C$19:$C$24,0),MATCH(Calc_Option3!CH$6,'Energy Prices'!$F$11:$CR$11,0))/100000,\"\")","v":""},{"$f":"IFERROR('Data Input - Option 3'!CM85*INDEX('Energy Prices'!$F$19:$CR$24,MATCH($B95,'Energy Prices'!$C$19:$C$24,0),MATCH(Calc_Option3!CI$6,'Energy Prices'!$F$11:$CR$11,0))/100000,\"\")","v":""},{"$f":"IFERROR('Data Input - Option 3'!CN85*INDEX('Energy Prices'!$F$19:$CR$24,MATCH($B95,'Energy Prices'!$C$19:$C$24,0),MATCH(Calc_Option3!CJ$6,'Energy Prices'!$F$11:$CR$11,0))/100000,\"\")","v":""},{"$f":"IFERROR('Data Input - Option 3'!CO85*INDEX('Energy Prices'!$F$19:$CR$24,MATCH($B95,'Energy Prices'!$C$19:$C$24,0),MATCH(Calc_Option3!CK$6,'Energy Prices'!$F$11:$CR$11,0))/100000,\"\")","v":""},{"$f":"IFERROR('Data Input - Option 3'!CP85*INDEX('Energy Prices'!$F$19:$CR$24,MATCH($B95,'Energy Prices'!$C$19:$C$24,0),MATCH(Calc_Option3!CL$6,'Energy Prices'!$F$11:$CR$11,0))/100000,\"\")","v":""},{"$f":"IFERROR('Data Input - Option 3'!CQ85*INDEX('Energy Prices'!$F$19:$CR$24,MATCH($B95,'Energy Prices'!$C$19:$C$24,0),MATCH(Calc_Option3!CM$6,'Energy Prices'!$F$11:$CR$11,0))/100000,\"\")","v":""},{"$f":"IFERROR('Data Input - Option 3'!CR85*INDEX('Energy Prices'!$F$19:$CR$24,MATCH($B95,'Energy Prices'!$C$19:$C$24,0),MATCH(Calc_Option3!CN$6,'Energy Prices'!$F$11:$CR$11,0))/100000,\"\")","v":""},{"$f":"IFERROR('Data Input - Option 3'!CS85*INDEX('Energy Prices'!$F$19:$CR$24,MATCH($B95,'Energy Prices'!$C$19:$C$24,0),MATCH(Calc_Option3!CO$6,'Energy Prices'!$F$11:$CR$11,0))/100000,\"\")","v":""},{"$f":"IFERROR('Data Input - Option 3'!CT85*INDEX('Energy Prices'!$F$19:$CR$24,MATCH($B95,'Energy Prices'!$C$19:$C$24,0),MATCH(Calc_Option3!CP$6,'Energy Prices'!$F$11:$CR$11,0))/100000,\"\")","v":""},{"$f":"IFERROR('Data Input - Option 3'!CU85*INDEX('Energy Prices'!$F$19:$CR$24,MATCH($B95,'Energy Prices'!$C$19:$C$24,0),MATCH(Calc_Option3!CQ$6,'Energy Prices'!$F$11:$CR$11,0))/100000,\"\")","v":""},{"$f":"IFERROR('Data Input - Option 3'!CV85*INDEX('Energy Prices'!$F$19:$CR$24,MATCH($B95,'Energy Prices'!$C$19:$C$24,0),MATCH(Calc_Option3!CR$6,'Energy Prices'!$F$11:$CR$11,0))/100000,\"\")","v":""},{"$f":"IFERROR('Data Input - Option 3'!CW85*INDEX('Energy Prices'!$F$19:$CR$24,MATCH($B95,'Energy Prices'!$C$19:$C$24,0),MATCH(Calc_Option3!CS$6,'Energy Prices'!$F$11:$CR$11,0))/100000,\"\")","v":""},{"$f":"IFERROR('Data Input - Option 3'!CX85*INDEX('Energy Prices'!$F$19:$CR$24,MATCH($B95,'Energy Prices'!$C$19:$C$24,0),MATCH(Calc_Option3!CT$6,'Energy Prices'!$F$11:$CR$11,0))/100000,\"\")","v":""},{"$f":"IFERROR('Data Input - Option 3'!CY85*INDEX('Energy Prices'!$F$19:$CR$24,MATCH($B95,'Energy Prices'!$C$19:$C$24,0),MATCH(Calc_Option3!CU$6,'Energy Prices'!$F$11:$CR$11,0))/100000,\"\")","v":""},{"$f":"IFERROR('Data Input - Option 3'!CZ85*INDEX('Energy Prices'!$F$19:$CR$24,MATCH($B95,'Energy Prices'!$C$19:$C$24,0),MATCH(Calc_Option3!CV$6,'Energy Prices'!$F$11:$CR$11,0))/100000,\"\")","v":""},{"$f":"IFERROR('Data Input - Option 3'!DA85*INDEX('Energy Prices'!$F$19:$CR$24,MATCH($B95,'Energy Prices'!$C$19:$C$24,0),MATCH(Calc_Option3!CW$6,'Energy Prices'!$F$11:$CR$11,0))/100000,\"\")","v":""},{"$f":"IFERROR('Data Input - Option 3'!DB85*INDEX('Energy Prices'!$F$19:$CR$24,MATCH($B95,'Energy Prices'!$C$19:$C$24,0),MATCH(Calc_Option3!CX$6,'Energy Prices'!$F$11:$CR$11,0))/100000,\"\")","v":""},{"$f":"IFERROR('Data Input - Option 3'!DC85*INDEX('Energy Prices'!$F$19:$CR$24,MATCH($B95,'Energy Prices'!$C$19:$C$24,0),MATCH(Calc_Option3!CY$6,'Energy Prices'!$F$11:$CR$11,0))/100000,\"\")","v":""}]
[null,"Coal","£000's",{"$f":"IFERROR('Data Input - Option 3'!H86*INDEX('Energy Prices'!$F$19:$CR$24,MATCH($B96,'Energy Prices'!$C$19:$C$24,0),MATCH(Calc_Option3!D$6,'Energy Prices'!$F$11:$CR$11,0))/100000,\"\")","v":949.54649738422722},{"$f":"IFERROR('Data Input - Option 3'!I86*INDEX('Energy Prices'!$F$19:$CR$24,MATCH($B96,'Energy Prices'!$C$19:$C$24,0),MATCH(Calc_Option3!E$6,'Energy Prices'!$F$11:$CR$11,0))/100000,\"\")","v":994.33625572987137},{"$f":"IFERROR('Data Input - Option 3'!J86*INDEX('Energy Prices'!$F$19:$CR$24,MATCH($B96,'Energy Prices'!$C$19:$C$24,0),MATCH(Calc_Option3!F$6,'Energy Prices'!$F$11:$CR$11,0))/100000,\"\")","v":1039.1311483366958},{"$f":"IFERROR('Data Input - Option 3'!K86*INDEX('Energy Prices'!$F$19:$CR$24,MATCH($B96,'Energy Prices'!$C$19:$C$24,0),MATCH(Calc_Option3!G$6,'Energy Prices'!$F$11:$CR$11,0))/100000,\"\")","v":1083.9214377639291},{"$f":"IFERROR('Data Input - Option 3'!L86*INDEX('Energy Prices'!$F$19:$CR$24,MATCH($B96,'Energy Prices'!$C$19:$C$24,0),MATCH(Calc_Option3!H$6,'Energy Prices'!$F$11:$CR$11,0))/100000,\"\")","v":1128.7119622683877},{"$f":"IFERROR('Data Input - Option 3'!M86*INDEX('Energy Prices'!$F$19:$CR$24,MATCH($B96,'Energy Prices'!$C$19:$C$24,0),MATCH(Calc_Option3!I$6,'Energy Prices'!$F$11:$CR$11,0))/100000,\"\")","v":1173.5027234586164},{"$f":"IFERROR('Data Input - Option 3'!N86*INDEX('Energy Prices'!$F$19:$CR$24,MATCH($B96,'Energy Prices'!$C$19:$C$24,0),MATCH(Calc_Option3!J$6,'Energy Prices'!$F$11:$CR$11,0))/100000,\"\")","v":1218.2937229541651},{"$f":"IFERROR('Data Input - Option 3'!O86*INDEX('Energy Prices'!$F$19:$CR$24,MATCH($B96,'Energy Prices'!$C$19:$C$24,0),MATCH(Calc_Option3!K$6,'Energy Prices'!$F$11:$CR$11,0))/100000,\"\")","v":1263.0849623856677},{"$f":"IFERROR('Data Input - Option 3'!P86*INDEX('Energy Prices'!$F$19:$CR$24,MATCH($B96,'Energy Prices'!$C$19:$C$24,0),MATCH(Calc_Option3!L$6,'Energy Prices'!$F$11:$CR$11,0))/100000,\"\")","v":0},{"$f":"IFERROR('Data Input - Option 3'!Q86*INDEX('Energy Prices'!$F$19:$CR$24,MATCH($B96,'Energy Prices'!$C$19:$C$24,0),MATCH(Calc_Option3!M$6,'Energy Prices'!$F$11:$CR$11,0))/100000,\"\")","v":0},{"$f":"IFERROR('Data Input - Option 3'!R86*INDEX('Energy Prices'!$F$19:$CR$24,MATCH($B96,'Energy Prices'!$C$19:$C$24,0),MATCH(Calc_Option3!N$6,'Energy Prices'!$F$11:$CR$11,0))/100000,\"\")","v":0},{"$f":"IFERROR('Data Input - Option 3'!S86*INDEX('Energy Prices'!$F$19:$CR$24,MATCH($B96,'Energy Prices'!$C$19:$C$24,0),MATCH(Calc_Option3!O$6,'Energy Prices'!$F$11:$CR$11,0))/100000,\"\")","v":0},{"$f":"IFERROR('Data Input - Option 3'!T86*INDEX('Energy Prices'!$F$19:$CR$24,MATCH($B96,'Energy Prices'!$C$19:$C$24,0),MATCH(Calc_Option3!P$6,'Energy Prices'!$F$11:$CR$11,0))/100000,\"\")","v":0},{"$f":"IFERROR('Data Input - Option 3'!U86*INDEX('Energy Prices'!$F$19:$CR$24,MATCH($B96,'Energy Prices'!$C$19:$C$24,0),MATCH(Calc_Option3!Q$6,'Energy Prices'!$F$11:$CR$11,0))/100000,\"\")","v":0},{"$f":"IFERROR('Data Input - Option 3'!V86*INDEX('Energy Prices'!$F$19:$CR$24,MATCH($B96,'Energy Prices'!$C$19:$C$24,0),MATCH(Calc_Option3!R$6,'Energy Prices'!$F$11:$CR$11,0))/100000,\"\")","v":0},{"$f":"IFERROR('Data Input - Option 3'!W86*INDEX('Energy Prices'!$F$19:$CR$24,MATCH($B96,'Energy Prices'!$C$19:$C$24,0),MATCH(Calc_Option3!S$6,'Energy Prices'!$F$11:$CR$11,0))/100000,\"\")","v":0},{"$f":"IFERROR('Data Input - Option 3'!X86*INDEX('Energy Prices'!$F$19:$CR$24,MATCH($B96,'Energy Prices'!$C$19:$C$24,0),MATCH(Calc_Option3!T$6,'Energy Prices'!$F$11:$CR$11,0))/100000,\"\")","v":0},{"$f":"IFERROR('Data Input - Option 3'!Y86*INDEX('Energy Prices'!$F$19:$CR$24,MATCH($B96,'Energy Prices'!$C$19:$C$24,0),MATCH(Calc_Option3!U$6,'Energy Prices'!$F$11:$CR$11,0))/100000,\"\")","v":0},{"$f":"IFERROR('Data Input - Option 3'!Z86*INDEX('Energy Prices'!$F$19:$CR$24,MATCH($B96,'Energy Prices'!$C$19:$C$24,0),MATCH(Calc_Option3!V$6,'Energy Prices'!$F$11:$CR$11,0))/100000,\"\")","v":0},{"$f":"IFERROR('Data Input - Option 3'!AA86*INDEX('Energy Prices'!$F$19:$CR$24,MATCH($B96,'Energy Prices'!$C$19:$C$24,0),MATCH(Calc_Option3!W$6,'Energy Prices'!$F$11:$CR$11,0))/100000,\"\")","v":0},{"$f":"IFERROR('Data Input - Option 3'!AB86*INDEX('Energy Prices'!$F$19:$CR$24,MATCH($B96,'Energy Prices'!$C$19:$C$24,0),MATCH(Calc_Option3!X$6,'Energy Prices'!$F$11:$CR$11,0))/100000,\"\")","v":0},{"$f":"IFERROR('Data Input - Option 3'!AC86*INDEX('Energy Prices'!$F$19:$CR$24,MATCH($B96,'Energy Prices'!$C$19:$C$24,0),MATCH(Calc_Option3!Y$6,'Energy Prices'!$F$11:$CR$11,0))/100000,\"\")","v":0},{"$f":"IFERROR('Data Input - Option 3'!AD86*INDEX('Energy Prices'!$F$19:$CR$24,MATCH($B96,'Energy Prices'!$C$19:$C$24,0),MATCH(Calc_Option3!Z$6,'Energy Prices'!$F$11:$CR$11,0))/100000,\"\")","v":0},{"$f":"IFERROR('Data Input - Option 3'!AE86*INDEX('Energy Prices'!$F$19:$CR$24,MATCH($B96,'Energy Prices'!$C$19:$C$24,0),MATCH(Calc_Option3!AA$6,'Energy Prices'!$F$11:$CR$11,0))/100000,\"\")","v":0},{"$f":"IFERROR('Data Input - Option 3'!AF86*INDEX('Energy Prices'!$F$19:$CR$24,MATCH($B96,'Energy Prices'!$C$19:$C$24,0),MATCH(Calc_Option3!AB$6,'Energy Prices'!$F$11:$CR$11,0))/100000,\"\")","v":0},{"$f":"IFERROR('Data Input - Option 3'!AG86*INDEX('Energy Prices'!$F$19:$CR$24,MATCH($B96,'Energy Prices'!$C$19:$C$24,0),MATCH(Calc_Option3!AC$6,'Energy Prices'!$F$11:$CR$11,0))/100000,\"\")","v":0},{"$f":"IFERROR('Data Input - Option 3'!AH86*INDEX('Energy Prices'!$F$19:$CR$24,MATCH($B96,'Energy Prices'!$C$19:$C$24,0),MATCH(Calc_Option3!AD$6,'Energy Prices'!$F$11:$CR$11,0))/100000,\"\")","v":0},{"$f":"IFERROR('Data Input - Option 3'!AI86*INDEX('Energy Prices'!$F$19:$CR$24,MATCH($B96,'Energy Prices'!$C$19:$C$24,0),MATCH(Calc_Option3!AE$6,'Energy Prices'!$F$11:$CR$11,0))/100000,\"\")","v":0},{"$f":"IFERROR('Data Input - Option 3'!AJ86*INDEX('Energy Prices'!$F$19:$CR$24,MATCH($B96,'Energy Prices'!$C$19:$C$24,0),MATCH(Calc_Option3!AF$6,'Energy Prices'!$F$11:$CR$11,0))/100000,\"\")","v":0},{"$f":"IFERROR('Data Input - Option 3'!AK86*INDEX('Energy Prices'!$F$19:$CR$24,MATCH($B96,'Energy Prices'!$C$19:$C$24,0),MATCH(Calc_Option3!AG$6,'Energy Prices'!$F$11:$CR$11,0))/100000,\"\")","v":0},{"$f":"IFERROR('Data Input - Option 3'!AL86*INDEX('Energy Prices'!$F$19:$CR$24,MATCH($B96,'Energy Prices'!$C$19:$C$24,0),MATCH(Calc_Option3!AH$6,'Energy Prices'!$F$11:$CR$11,0))/100000,\"\")","v":0},{"$f":"IFERROR('Data Input - Option 3'!AM86*INDEX('Energy Prices'!$F$19:$CR$24,MATCH($B96,'Energy Prices'!$C$19:$C$24,0),MATCH(Calc_Option3!AI$6,'Energy Prices'!$F$11:$CR$11,0))/100000,\"\")","v":""},{"$f":"IFERROR('Data Input - Option 3'!AN86*INDEX('Energy Prices'!$F$19:$CR$24,MATCH($B96,'Energy Prices'!$C$19:$C$24,0),MATCH(Calc_Option3!AJ$6,'Energy Prices'!$F$11:$CR$11,0))/100000,\"\")","v":""},{"$f":"IFERROR('Data Input - Option 3'!AO86*INDEX('Energy Prices'!$F$19:$CR$24,MATCH($B96,'Energy Prices'!$C$19:$C$24,0),MATCH(Calc_Option3!AK$6,'Energy Prices'!$F$11:$CR$11,0))/100000,\"\")","v":""},{"$f":"IFERROR('Data Input - Option 3'!AP86*INDEX('Energy Prices'!$F$19:$CR$24,MATCH($B96,'Energy Prices'!$C$19:$C$24,0),MATCH(Calc_Option3!AL$6,'Energy Prices'!$F$11:$CR$11,0))/100000,\"\")","v":""},{"$f":"IFERROR('Data Input - Option 3'!AQ86*INDEX('Energy Prices'!$F$19:$CR$24,MATCH($B96,'Energy Prices'!$C$19:$C$24,0),MATCH(Calc_Option3!AM$6,'Energy Prices'!$F$11:$CR$11,0))/100000,\"\")","v":""},{"$f":"IFERROR('Data Input - Option 3'!AR86*INDEX('Energy Prices'!$F$19:$CR$24,MATCH($B96,'Energy Prices'!$C$19:$C$24,0),MATCH(Calc_Option3!AN$6,'Energy Prices'!$F$11:$CR$11,0))/100000,\"\")","v":""},{"$f":"IFERROR('Data Input - Option 3'!AS86*INDEX('Energy Prices'!$F$19:$CR$24,MATCH($B96,'Energy Prices'!$C$19:$C$24,0),MATCH(Calc_Option3!AO$6,'Energy Prices'!$F$11:$CR$11,0))/100000,\"\")","v":""},{"$f":"IFERROR('Data Input - Option 3'!AT86*INDEX('Energy Prices'!$F$19:$CR$24,MATCH($B96,'Energy Prices'!$C$19:$C$24,0),MATCH(Calc_Option3!AP$6,'Energy Prices'!$F$11:$CR$11,0))/100000,\"\")","v":""},{"$f":"IFERROR('Data Input - Option 3'!AU86*INDEX('Energy Prices'!$F$19:$CR$24,MATCH($B96,'Energy Prices'!$C$19:$C$24,0),MATCH(Calc_Option3!AQ$6,'Energy Prices'!$F$11:$CR$11,0))/100000,\"\")","v":""},{"$f":"IFERROR('Data Input - Option 3'!AV86*INDEX('Energy Prices'!$F$19:$CR$24,MATCH($B96,'Energy Prices'!$C$19:$C$24,0),MATCH(Calc_Option3!AR$6,'Energy Prices'!$F$11:$CR$11,0))/100000,\"\")","v":""},{"$f":"IFERROR('Data Input - Option 3'!AW86*INDEX('Energy Prices'!$F$19:$CR$24,MATCH($B96,'Energy Prices'!$C$19:$C$24,0),MATCH(Calc_Option3!AS$6,'Energy Prices'!$F$11:$CR$11,0))/100000,\"\")","v":""},{"$f":"IFERROR('Data Input - Option 3'!AX86*INDEX('Energy Prices'!$F$19:$CR$24,MATCH($B96,'Energy Prices'!$C$19:$C$24,0),MATCH(Calc_Option3!AT$6,'Energy Prices'!$F$11:$CR$11,0))/100000,\"\")","v":""},{"$f":"IFERROR('Data Input - Option 3'!AY86*INDEX('Energy Prices'!$F$19:$CR$24,MATCH($B96,'Energy Prices'!$C$19:$C$24,0),MATCH(Calc_Option3!AU$6,'Energy Prices'!$F$11:$CR$11,0))/100000,\"\")","v":""},{"$f":"IFERROR('Data Input - Option 3'!AZ86*INDEX('Energy Prices'!$F$19:$CR$24,MATCH($B96,'Energy Prices'!$C$19:$C$24,0),MATCH(Calc_Option3!AV$6,'Energy Prices'!$F$11:$CR$11,0))/100000,\"\")","v":""},{"$f":"IFERROR('Data Input - Option 3'!BA86*INDEX('Energy Prices'!$F$19:$CR$24,MATCH($B96,'Energy Prices'!$C$19:$C$24,0),MATCH(Calc_Option3!AW$6,'Energy Prices'!$F$11:$CR$11,0))/100000,\"\")","v":""},{"$f":"IFERROR('Data Input - Option 3'!BB86*INDEX('Energy Prices'!$F$19:$CR$24,MATCH($B96,'Energy Prices'!$C$19:$C$24,0),MATCH(Calc_Option3!AX$6,'Energy Prices'!$F$11:$CR$11,0))/100000,\"\")","v":""},{"$f":"IFERROR('Data Input - Option 3'!BC86*INDEX('Energy Prices'!$F$19:$CR$24,MATCH($B96,'Energy Prices'!$C$19:$C$24,0),MATCH(Calc_Option3!AY$6,'Energy Prices'!$F$11:$CR$11,0))/100000,\"\")","v":""},{"$f":"IFERROR('Data Input - Option 3'!BD86*INDEX('Energy Prices'!$F$19:$CR$24,MATCH($B96,'Energy Prices'!$C$19:$C$24,0),MATCH(Calc_Option3!AZ$6,'Energy Prices'!$F$11:$CR$11,0))/100000,\"\")","v":""},{"$f":"IFERROR('Data Input - Option 3'!BE86*INDEX('Energy Prices'!$F$19:$CR$24,MATCH($B96,'Energy Prices'!$C$19:$C$24,0),MATCH(Calc_Option3!BA$6,'Energy Prices'!$F$11:$CR$11,0))/100000,\"\")","v":""},{"$f":"IFERROR('Data Input - Option 3'!BF86*INDEX('Energy Prices'!$F$19:$CR$24,MATCH($B96,'Energy Prices'!$C$19:$C$24,0),MATCH(Calc_Option3!BB$6,'Energy Prices'!$F$11:$CR$11,0))/100000,\"\")","v":""},{"$f":"IFERROR('Data Input - Option 3'!BG86*INDEX('Energy Prices'!$F$19:$CR$24,MATCH($B96,'Energy Prices'!$C$19:$C$24,0),MATCH(Calc_Option3!BC$6,'Energy Prices'!$F$11:$CR$11,0))/100000,\"\")","v":""},{"$f":"IFERROR('Data Input - Option 3'!BH86*INDEX('Energy Prices'!$F$19:$CR$24,MATCH($B96,'Energy Prices'!$C$19:$C$24,0),MATCH(Calc_Option3!BD$6,'Energy Prices'!$F$11:$CR$11,0))/100000,\"\")","v":""},{"$f":"IFERROR('Data Input - Option 3'!BI86*INDEX('Energy Prices'!$F$19:$CR$24,MATCH($B96,'Energy Prices'!$C$19:$C$24,0),MATCH(Calc_Option3!BE$6,'Energy Prices'!$F$11:$CR$11,0))/100000,\"\")","v":""},{"$f":"IFERROR('Data Input - Option 3'!BJ86*INDEX('Energy Prices'!$F$19:$CR$24,MATCH($B96,'Energy Prices'!$C$19:$C$24,0),MATCH(Calc_Option3!BF$6,'Energy Prices'!$F$11:$CR$11,0))/100000,\"\")","v":""},{"$f":"IFERROR('Data Input - Option 3'!BK86*INDEX('Energy Prices'!$F$19:$CR$24,MATCH($B96,'Energy Prices'!$C$19:$C$24,0),MATCH(Calc_Option3!BG$6,'Energy Prices'!$F$11:$CR$11,0))/100000,\"\")","v":""},{"$f":"IFERROR('Data Input - Option 3'!BL86*INDEX('Energy Prices'!$F$19:$CR$24,MATCH($B96,'Energy Prices'!$C$19:$C$24,0),MATCH(Calc_Option3!BH$6,'Energy Prices'!$F$11:$CR$11,0))/100000,\"\")","v":""},{"$f":"IFERROR('Data Input - Option 3'!BM86*INDEX('Energy Prices'!$F$19:$CR$24,MATCH($B96,'Energy Prices'!$C$19:$C$24,0),MATCH(Calc_Option3!BI$6,'Energy Prices'!$F$11:$CR$11,0))/100000,\"\")","v":""},{"$f":"IFERROR('Data Input - Option 3'!BN86*INDEX('Energy Prices'!$F$19:$CR$24,MATCH($B96,'Energy Prices'!$C$19:$C$24,0),MATCH(Calc_Option3!BJ$6,'Energy Prices'!$F$11:$CR$11,0))/100000,\"\")","v":""},{"$f":"IFERROR('Data Input - Option 3'!BO86*INDEX('Energy Prices'!$F$19:$CR$24,MATCH($B96,'Energy Prices'!$C$19:$C$24,0),MATCH(Calc_Option3!BK$6,'Energy Prices'!$F$11:$CR$11,0))/100000,\"\")","v":""},{"$f":"IFERROR('Data Input - Option 3'!BP86*INDEX('Energy Prices'!$F$19:$CR$24,MATCH($B96,'Energy Prices'!$C$19:$C$24,0),MATCH(Calc_Option3!BL$6,'Energy Prices'!$F$11:$CR$11,0))/100000,\"\")","v":""},{"$f":"IFERROR('Data Input - Option 3'!BQ86*INDEX('Energy Prices'!$F$19:$CR$24,MATCH($B96,'Energy Prices'!$C$19:$C$24,0),MATCH(Calc_Option3!BM$6,'Energy Prices'!$F$11:$CR$11,0))/100000,\"\")","v":""},{"$f":"IFERROR('Data Input - Option 3'!BR86*INDEX('Energy Prices'!$F$19:$CR$24,MATCH($B96,'Energy Prices'!$C$19:$C$24,0),MATCH(Calc_Option3!BN$6,'Energy Prices'!$F$11:$CR$11,0))/100000,\"\")","v":""},{"$f":"IFERROR('Data Input - Option 3'!BS86*INDEX('Energy Prices'!$F$19:$CR$24,MATCH($B96,'Energy Prices'!$C$19:$C$24,0),MATCH(Calc_Option3!BO$6,'Energy Prices'!$F$11:$CR$11,0))/100000,\"\")","v":""},{"$f":"IFERROR('Data Input - Option 3'!BT86*INDEX('Energy Prices'!$F$19:$CR$24,MATCH($B96,'Energy Prices'!$C$19:$C$24,0),MATCH(Calc_Option3!BP$6,'Energy Prices'!$F$11:$CR$11,0))/100000,\"\")","v":""},{"$f":"IFERROR('Data Input - Option 3'!BU86*INDEX('Energy Prices'!$F$19:$CR$24,MATCH($B96,'Energy Prices'!$C$19:$C$24,0),MATCH(Calc_Option3!BQ$6,'Energy Prices'!$F$11:$CR$11,0))/100000,\"\")","v":""},{"$f":"IFERROR('Data Input - Option 3'!BV86*INDEX('Energy Prices'!$F$19:$CR$24,MATCH($B96,'Energy Prices'!$C$19:$C$24,0),MATCH(Calc_Option3!BR$6,'Energy Prices'!$F$11:$CR$11,0))/100000,\"\")","v":""},{"$f":"IFERROR('Data Input - Option 3'!BW86*INDEX('Energy Prices'!$F$19:$CR$24,MATCH($B96,'Energy Prices'!$C$19:$C$24,0),MATCH(Calc_Option3!BS$6,'Energy Prices'!$F$11:$CR$11,0))/100000,\"\")","v":""},{"$f":"IFERROR('Data Input - Option 3'!BX86*INDEX('Energy Prices'!$F$19:$CR$24,MATCH($B96,'Energy Prices'!$C$19:$C$24,0),MATCH(Calc_Option3!BT$6,'Energy Prices'!$F$11:$CR$11,0))/100000,\"\")","v":""},{"$f":"IFERROR('Data Input - Option 3'!BY86*INDEX('Energy Prices'!$F$19:$CR$24,MATCH($B96,'Energy Prices'!$C$19:$C$24,0),MATCH(Calc_Option3!BU$6,'Energy Prices'!$F$11:$CR$11,0))/100000,\"\")","v":""},{"$f":"IFERROR('Data Input - Option 3'!BZ86*INDEX('Energy Prices'!$F$19:$CR$24,MATCH($B96,'Energy Prices'!$C$19:$C$24,0),MATCH(Calc_Option3!BV$6,'Energy Prices'!$F$11:$CR$11,0))/100000,\"\")","v":""},{"$f":"IFERROR('Data Input - Option 3'!CA86*INDEX('Energy Prices'!$F$19:$CR$24,MATCH($B96,'Energy Prices'!$C$19:$C$24,0),MATCH(Calc_Option3!BW$6,'Energy Prices'!$F$11:$CR$11,0))/100000,\"\")","v":""},{"$f":"IFERROR('Data Input - Option 3'!CB86*INDEX('Energy Prices'!$F$19:$CR$24,MATCH($B96,'Energy Prices'!$C$19:$C$24,0),MATCH(Calc_Option3!BX$6,'Energy Prices'!$F$11:$CR$11,0))/100000,\"\")","v":""},{"$f":"IFERROR('Data Input - Option 3'!CC86*INDEX('Energy Prices'!$F$19:$CR$24,MATCH($B96,'Energy Prices'!$C$19:$C$24,0),MATCH(Calc_Option3!BY$6,'Energy Prices'!$F$11:$CR$11,0))/100000,\"\")","v":""},{"$f":"IFERROR('Data Input - Option 3'!CD86*INDEX('Energy Prices'!$F$19:$CR$24,MATCH($B96,'Energy Prices'!$C$19:$C$24,0),MATCH(Calc_Option3!BZ$6,'Energy Prices'!$F$11:$CR$11,0))/100000,\"\")","v":""},{"$f":"IFERROR('Data Input - Option 3'!CE86*INDEX('Energy Prices'!$F$19:$CR$24,MATCH($B96,'Energy Prices'!$C$19:$C$24,0),MATCH(Calc_Option3!CA$6,'Energy Prices'!$F$11:$CR$11,0))/100000,\"\")","v":""},{"$f":"IFERROR('Data Input - Option 3'!CF86*INDEX('Energy Prices'!$F$19:$CR$24,MATCH($B96,'Energy Prices'!$C$19:$C$24,0),MATCH(Calc_Option3!CB$6,'Energy Prices'!$F$11:$CR$11,0))/100000,\"\")","v":""},{"$f":"IFERROR('Data Input - Option 3'!CG86*INDEX('Energy Prices'!$F$19:$CR$24,MATCH($B96,'Energy Prices'!$C$19:$C$24,0),MATCH(Calc_Option3!CC$6,'Energy Prices'!$F$11:$CR$11,0))/100000,\"\")","v":""},{"$f":"IFERROR('Data Input - Option 3'!CH86*INDEX('Energy Prices'!$F$19:$CR$24,MATCH($B96,'Energy Prices'!$C$19:$C$24,0),MATCH(Calc_Option3!CD$6,'Energy Prices'!$F$11:$CR$11,0))/100000,\"\")","v":""},{"$f":"IFERROR('Data Input - Option 3'!CI86*INDEX('Energy Prices'!$F$19:$CR$24,MATCH($B96,'Energy Prices'!$C$19:$C$24,0),MATCH(Calc_Option3!CE$6,'Energy Prices'!$F$11:$CR$11,0))/100000,\"\")","v":""},{"$f":"IFERROR('Data Input - Option 3'!CJ86*INDEX('Energy Prices'!$F$19:$CR$24,MATCH($B96,'Energy Prices'!$C$19:$C$24,0),MATCH(Calc_Option3!CF$6,'Energy Prices'!$F$11:$CR$11,0))/100000,\"\")","v":""},{"$f":"IFERROR('Data Input - Option 3'!CK86*INDEX('Energy Prices'!$F$19:$CR$24,MATCH($B96,'Energy Prices'!$C$19:$C$24,0),MATCH(Calc_Option3!CG$6,'Energy Prices'!$F$11:$CR$11,0))/100000,\"\")","v":""},{"$f":"IFERROR('Data Input - Option 3'!CL86*INDEX('Energy Prices'!$F$19:$CR$24,MATCH($B96,'Energy Prices'!$C$19:$C$24,0),MATCH(Calc_Option3!CH$6,'Energy Prices'!$F$11:$CR$11,0))/100000,\"\")","v":""},{"$f":"IFERROR('Data Input - Option 3'!CM86*INDEX('Energy Prices'!$F$19:$CR$24,MATCH($B96,'Energy Prices'!$C$19:$C$24,0),MATCH(Calc_Option3!CI$6,'Energy Prices'!$F$11:$CR$11,0))/100000,\"\")","v":""},{"$f":"IFERROR('Data Input - Option 3'!CN86*INDEX('Energy Prices'!$F$19:$CR$24,MATCH($B96,'Energy Prices'!$C$19:$C$24,0),MATCH(Calc_Option3!CJ$6,'Energy Prices'!$F$11:$CR$11,0))/100000,\"\")","v":""},{"$f":"IFERROR('Data Input - Option 3'!CO86*INDEX('Energy Prices'!$F$19:$CR$24,MATCH($B96,'Energy Prices'!$C$19:$C$24,0),MATCH(Calc_Option3!CK$6,'Energy Prices'!$F$11:$CR$11,0))/100000,\"\")","v":""},{"$f":"IFERROR('Data Input - Option 3'!CP86*INDEX('Energy Prices'!$F$19:$CR$24,MATCH($B96,'Energy Prices'!$C$19:$C$24,0),MATCH(Calc_Option3!CL$6,'Energy Prices'!$F$11:$CR$11,0))/100000,\"\")","v":""},{"$f":"IFERROR('Data Input - Option 3'!CQ86*INDEX('Energy Prices'!$F$19:$CR$24,MATCH($B96,'Energy Prices'!$C$19:$C$24,0),MATCH(Calc_Option3!CM$6,'Energy Prices'!$F$11:$CR$11,0))/100000,\"\")","v":""},{"$f":"IFERROR('Data Input - Option 3'!CR86*INDEX('Energy Prices'!$F$19:$CR$24,MATCH($B96,'Energy Prices'!$C$19:$C$24,0),MATCH(Calc_Option3!CN$6,'Energy Prices'!$F$11:$CR$11,0))/100000,\"\")","v":""},{"$f":"IFERROR('Data Input - Option 3'!CS86*INDEX('Energy Prices'!$F$19:$CR$24,MATCH($B96,'Energy Prices'!$C$19:$C$24,0),MATCH(Calc_Option3!CO$6,'Energy Prices'!$F$11:$CR$11,0))/100000,\"\")","v":""},{"$f":"IFERROR('Data Input - Option 3'!CT86*INDEX('Energy Prices'!$F$19:$CR$24,MATCH($B96,'Energy Prices'!$C$19:$C$24,0),MATCH(Calc_Option3!CP$6,'Energy Prices'!$F$11:$CR$11,0))/100000,\"\")","v":""},{"$f":"IFERROR('Data Input - Option 3'!CU86*INDEX('Energy Prices'!$F$19:$CR$24,MATCH($B96,'Energy Prices'!$C$19:$C$24,0),MATCH(Calc_Option3!CQ$6,'Energy Prices'!$F$11:$CR$11,0))/100000,\"\")","v":""},{"$f":"IFERROR('Data Input - Option 3'!CV86*INDEX('Energy Prices'!$F$19:$CR$24,MATCH($B96,'Energy Prices'!$C$19:$C$24,0),MATCH(Calc_Option3!CR$6,'Energy Prices'!$F$11:$CR$11,0))/100000,\"\")","v":""},{"$f":"IFERROR('Data Input - Option 3'!CW86*INDEX('Energy Prices'!$F$19:$CR$24,MATCH($B96,'Energy Prices'!$C$19:$C$24,0),MATCH(Calc_Option3!CS$6,'Energy Prices'!$F$11:$CR$11,0))/100000,\"\")","v":""},{"$f":"IFERROR('Data Input - Option 3'!CX86*INDEX('Energy Prices'!$F$19:$CR$24,MATCH($B96,'Energy Prices'!$C$19:$C$24,0),MATCH(Calc_Option3!CT$6,'Energy Prices'!$F$11:$CR$11,0))/100000,\"\")","v":""},{"$f":"IFERROR('Data Input - Option 3'!CY86*INDEX('Energy Prices'!$F$19:$CR$24,MATCH($B96,'Energy Prices'!$C$19:$C$24,0),MATCH(Calc_Option3!CU$6,'Energy Prices'!$F$11:$CR$11,0))/100000,\"\")","v":""},{"$f":"IFERROR('Data Input - Option 3'!CZ86*INDEX('Energy Prices'!$F$19:$CR$24,MATCH($B96,'Energy Prices'!$C$19:$C$24,0),MATCH(Calc_Option3!CV$6,'Energy Prices'!$F$11:$CR$11,0))/100000,\"\")","v":""},{"$f":"IFERROR('Data Input - Option 3'!DA86*INDEX('Energy Prices'!$F$19:$CR$24,MATCH($B96,'Energy Prices'!$C$19:$C$24,0),MATCH(Calc_Option3!CW$6,'Energy Prices'!$F$11:$CR$11,0))/100000,\"\")","v":""},{"$f":"IFERROR('Data Input - Option 3'!DB86*INDEX('Energy Prices'!$F$19:$CR$24,MATCH($B96,'Energy Prices'!$C$19:$C$24,0),MATCH(Calc_Option3!CX$6,'Energy Prices'!$F$11:$CR$11,0))/100000,\"\")","v":""},{"$f":"IFERROR('Data Input - Option 3'!DC86*INDEX('Energy Prices'!$F$19:$CR$24,MATCH($B96,'Energy Prices'!$C$19:$C$24,0),MATCH(Calc_Option3!CY$6,'Energy Prices'!$F$11:$CR$11,0))/100000,\"\")","v":""}]
[null,"Gas Oil","£000's",{"$f":"IFERROR('Data Input - Option 3'!H87*INDEX('Energy Prices'!$F$19:$CR$24,MATCH($B97,'Energy Prices'!$C$19:$C$24,0),MATCH(Calc_Option3!D$6,'Energy Prices'!$F$11:$CR$11,0))/100000,\"\")","v":55.666248959960114},{"$f":"IFERROR('Data Input - Option 3'!I87*INDEX('Energy Prices'!$F$19:$CR$24,MATCH($B97,'Energy Prices'!$C$19:$C$24,0),MATCH(Calc_Option3!E$6,'Energy Prices'!$F$11:$CR$11,0))/100000,\"\")","v":63.064053899665872},{"$f":"IFERROR('Data Input - Option 3'!J87*INDEX('Energy Prices'!$F$19:$CR$24,MATCH($B97,'Energy Prices'!$C$19:$C$24,0),MATCH(Calc_Option3!F$6,'Energy Prices'!$F$11:$CR$11,0))/100000,\"\")","v":70.481173983169569},{"$f":"IFERROR('Data Input - Option 3'!K87*INDEX('Energy Prices'!$F$19:$CR$24,MATCH($B97,'Energy Prices'!$C$19:$C$24,0),MATCH(Calc_Option3!G$6,'Energy Prices'!$F$11:$CR$11,0))/100000,\"\")","v":77.883658222867751},{"$f":"IFERROR('Data Input - Option 3'!L87*INDEX('Energy Prices'!$F$19:$CR$24,MATCH($B97,'Energy Prices'!$C$19:$C$24,0),MATCH(Calc_Option3!H$6,'Energy Prices'!$F$11:$CR$11,0))/100000,\"\")","v":85.279524067697764},{"$f":"IFERROR('Data Input - Option 3'!M87*INDEX('Energy Prices'!$F$19:$CR$24,MATCH($B97,'Energy Prices'!$C$19:$C$24,0),MATCH(Calc_Option3!I$6,'Energy Prices'!$F$11:$CR$11,0))/100000,\"\")","v":92.676544839111386},{"$f":"IFERROR('Data Input - Option 3'!N87*INDEX('Energy Prices'!$F$19:$CR$24,MATCH($B97,'Energy Prices'!$C$19:$C$24,0),MATCH(Calc_Option3!J$6,'Energy Prices'!$F$11:$CR$11,0))/100000,\"\")","v":100.07472843983201},{"$f":"IFERROR('Data Input - Option 3'!O87*INDEX('Energy Prices'!$F$19:$CR$24,MATCH($B97,'Energy Prices'!$C$19:$C$24,0),MATCH(Calc_Option3!K$6,'Energy Prices'!$F$11:$CR$11,0))/100000,\"\")","v":100.24700125254226},{"$f":"IFERROR('Data Input - Option 3'!P87*INDEX('Energy Prices'!$F$19:$CR$24,MATCH($B97,'Energy Prices'!$C$19:$C$24,0),MATCH(Calc_Option3!L$6,'Energy Prices'!$F$11:$CR$11,0))/100000,\"\")","v":0},{"$f":"IFERROR('Data Input - Option 3'!Q87*INDEX('Energy Prices'!$F$19:$CR$24,MATCH($B97,'Energy Prices'!$C$19:$C$24,0),MATCH(Calc_Option3!M$6,'Energy Prices'!$F$11:$CR$11,0))/100000,\"\")","v":0},{"$f":"IFERROR('Data Input - Option 3'!R87*INDEX('Energy Prices'!$F$19:$CR$24,MATCH($B97,'Energy Prices'!$C$19:$C$24,0),MATCH(Calc_Option3!N$6,'Energy Prices'!$F$11:$CR$11,0))/100000,\"\")","v":0},{"$f":"IFERROR('Data Input - Option 3'!S87*INDEX('Energy Prices'!$F$19:$CR$24,MATCH($B97,'Energy Prices'!$C$19:$C$24,0),MATCH(Calc_Option3!O$6,'Energy Prices'!$F$11:$CR$11,0))/100000,\"\")","v":0},{"$f":"IFERROR('Data Input - Option 3'!T87*INDEX('Energy Prices'!$F$19:$CR$24,MATCH($B97,'Energy Prices'!$C$19:$C$24,0),MATCH(Calc_Option3!P$6,'Energy Prices'!$F$11:$CR$11,0))/100000,\"\")","v":0},{"$f":"IFERROR('Data Input - Option 3'!U87*INDEX('Energy Prices'!$F$19:$CR$24,MATCH($B97,'Energy Prices'!$C$19:$C$24,0),MATCH(Calc_Option3!Q$6,'Energy Prices'!$F$11:$CR$11,0))/100000,\"\")","v":0},{"$f":"IFERROR('Data Input - Option 3'!V87*INDEX('Energy Prices'!$F$19:$CR$24,MATCH($B97,'Energy Prices'!$C$19:$C$24,0),MATCH(Calc_Option3!R$6,'Energy Prices'!$F$11:$CR$11,0))/100000,\"\")","v":0},{"$f":"IFERROR('Data Input - Option 3'!W87*INDEX('Energy Prices'!$F$19:$CR$24,MATCH($B97,'Energy Prices'!$C$19:$C$24,0),MATCH(Calc_Option3!S$6,'Energy Prices'!$F$11:$CR$11,0))/100000,\"\")","v":0},{"$f":"IFERROR('Data Input - Option 3'!X87*INDEX('Energy Prices'!$F$19:$CR$24,MATCH($B97,'Energy Prices'!$C$19:$C$24,0),MATCH(Calc_Option3!T$6,'Energy Prices'!$F$11:$CR$11,0))/100000,\"\")","v":0},{"$f":"IFERROR('Data Input - Option 3'!Y87*INDEX('Energy Prices'!$F$19:$CR$24,MATCH($B97,'Energy Prices'!$C$19:$C$24,0),MATCH(Calc_Option3!U$6,'Energy Prices'!$F$11:$CR$11,0))/100000,\"\")","v":0},{"$f":"IFERROR('Data Input - Option 3'!Z87*INDEX('Energy Prices'!$F$19:$CR$24,MATCH($B97,'Energy Prices'!$C$19:$C$24,0),MATCH(Calc_Option3!V$6,'Energy Prices'!$F$11:$CR$11,0))/100000,\"\")","v":0},{"$f":"IFERROR('Data Input - Option 3'!AA87*INDEX('Energy Prices'!$F$19:$CR$24,MATCH($B97,'Energy Prices'!$C$19:$C$24,0),MATCH(Calc_Option3!W$6,'Energy Prices'!$F$11:$CR$11,0))/100000,\"\")","v":0},{"$f":"IFERROR('Data Input - Option 3'!AB87*INDEX('Energy Prices'!$F$19:$CR$24,MATCH($B97,'Energy Prices'!$C$19:$C$24,0),MATCH(Calc_Option3!X$6,'Energy Prices'!$F$11:$CR$11,0))/100000,\"\")","v":0},{"$f":"IFERROR('Data Input - Option 3'!AC87*INDEX('Energy Prices'!$F$19:$CR$24,MATCH($B97,'Energy Prices'!$C$19:$C$24,0),MATCH(Calc_Option3!Y$6,'Energy Prices'!$F$11:$CR$11,0))/100000,\"\")","v":0},{"$f":"IFERROR('Data Input - Option 3'!AD87*INDEX('Energy Prices'!$F$19:$CR$24,MATCH($B97,'Energy Prices'!$C$19:$C$24,0),MATCH(Calc_Option3!Z$6,'Energy Prices'!$F$11:$CR$11,0))/100000,\"\")","v":0},{"$f":"IFERROR('Data Input - Option 3'!AE87*INDEX('Energy Prices'!$F$19:$CR$24,MATCH($B97,'Energy Prices'!$C$19:$C$24,0),MATCH(Calc_Option3!AA$6,'Energy Prices'!$F$11:$CR$11,0))/100000,\"\")","v":0},{"$f":"IFERROR('Data Input - Option 3'!AF87*INDEX('Energy Prices'!$F$19:$CR$24,MATCH($B97,'Energy Prices'!$C$19:$C$24,0),MATCH(Calc_Option3!AB$6,'Energy Prices'!$F$11:$CR$11,0))/100000,\"\")","v":0},{"$f":"IFERROR('Data Input - Option 3'!AG87*INDEX('Energy Prices'!$F$19:$CR$24,MATCH($B97,'Energy Prices'!$C$19:$C$24,0),MATCH(Calc_Option3!AC$6,'Energy Prices'!$F$11:$CR$11,0))/100000,\"\")","v":0},{"$f":"IFERROR('Data Input - Option 3'!AH87*INDEX('Energy Prices'!$F$19:$CR$24,MATCH($B97,'Energy Prices'!$C$19:$C$24,0),MATCH(Calc_Option3!AD$6,'Energy Prices'!$F$11:$CR$11,0))/100000,\"\")","v":0},{"$f":"IFERROR('Data Input - Option 3'!AI87*INDEX('Energy Prices'!$F$19:$CR$24,MATCH($B97,'Energy Prices'!$C$19:$C$24,0),MATCH(Calc_Option3!AE$6,'Energy Prices'!$F$11:$CR$11,0))/100000,\"\")","v":0},{"$f":"IFERROR('Data Input - Option 3'!AJ87*INDEX('Energy Prices'!$F$19:$CR$24,MATCH($B97,'Energy Prices'!$C$19:$C$24,0),MATCH(Calc_Option3!AF$6,'Energy Prices'!$F$11:$CR$11,0))/100000,\"\")","v":0},{"$f":"IFERROR('Data Input - Option 3'!AK87*INDEX('Energy Prices'!$F$19:$CR$24,MATCH($B97,'Energy Prices'!$C$19:$C$24,0),MATCH(Calc_Option3!AG$6,'Energy Prices'!$F$11:$CR$11,0))/100000,\"\")","v":0},{"$f":"IFERROR('Data Input - Option 3'!AL87*INDEX('Energy Prices'!$F$19:$CR$24,MATCH($B97,'Energy Prices'!$C$19:$C$24,0),MATCH(Calc_Option3!AH$6,'Energy Prices'!$F$11:$CR$11,0))/100000,\"\")","v":0},{"$f":"IFERROR('Data Input - Option 3'!AM87*INDEX('Energy Prices'!$F$19:$CR$24,MATCH($B97,'Energy Prices'!$C$19:$C$24,0),MATCH(Calc_Option3!AI$6,'Energy Prices'!$F$11:$CR$11,0))/100000,\"\")","v":""},{"$f":"IFERROR('Data Input - Option 3'!AN87*INDEX('Energy Prices'!$F$19:$CR$24,MATCH($B97,'Energy Prices'!$C$19:$C$24,0),MATCH(Calc_Option3!AJ$6,'Energy Prices'!$F$11:$CR$11,0))/100000,\"\")","v":""},{"$f":"IFERROR('Data Input - Option 3'!AO87*INDEX('Energy Prices'!$F$19:$CR$24,MATCH($B97,'Energy Prices'!$C$19:$C$24,0),MATCH(Calc_Option3!AK$6,'Energy Prices'!$F$11:$CR$11,0))/100000,\"\")","v":""},{"$f":"IFERROR('Data Input - Option 3'!AP87*INDEX('Energy Prices'!$F$19:$CR$24,MATCH($B97,'Energy Prices'!$C$19:$C$24,0),MATCH(Calc_Option3!AL$6,'Energy Prices'!$F$11:$CR$11,0))/100000,\"\")","v":""},{"$f":"IFERROR('Data Input - Option 3'!AQ87*INDEX('Energy Prices'!$F$19:$CR$24,MATCH($B97,'Energy Prices'!$C$19:$C$24,0),MATCH(Calc_Option3!AM$6,'Energy Prices'!$F$11:$CR$11,0))/100000,\"\")","v":""},{"$f":"IFERROR('Data Input - Option 3'!AR87*INDEX('Energy Prices'!$F$19:$CR$24,MATCH($B97,'Energy Prices'!$C$19:$C$24,0),MATCH(Calc_Option3!AN$6,'Energy Prices'!$F$11:$CR$11,0))/100000,\"\")","v":""},{"$f":"IFERROR('Data Input - Option 3'!AS87*INDEX('Energy Prices'!$F$19:$CR$24,MATCH($B97,'Energy Prices'!$C$19:$C$24,0),MATCH(Calc_Option3!AO$6,'Energy Prices'!$F$11:$CR$11,0))/100000,\"\")","v":""},{"$f":"IFERROR('Data Input - Option 3'!AT87*INDEX('Energy Prices'!$F$19:$CR$24,MATCH($B97,'Energy Prices'!$C$19:$C$24,0),MATCH(Calc_Option3!AP$6,'Energy Prices'!$F$11:$CR$11,0))/100000,\"\")","v":""},{"$f":"IFERROR('Data Input - Option 3'!AU87*INDEX('Energy Prices'!$F$19:$CR$24,MATCH($B97,'Energy Prices'!$C$19:$C$24,0),MATCH(Calc_Option3!AQ$6,'Energy Prices'!$F$11:$CR$11,0))/100000,\"\")","v":""},{"$f":"IFERROR('Data Input - Option 3'!AV87*INDEX('Energy Prices'!$F$19:$CR$24,MATCH($B97,'Energy Prices'!$C$19:$C$24,0),MATCH(Calc_Option3!AR$6,'Energy Prices'!$F$11:$CR$11,0))/100000,\"\")","v":""},{"$f":"IFERROR('Data Input - Option 3'!AW87*INDEX('Energy Prices'!$F$19:$CR$24,MATCH($B97,'Energy Prices'!$C$19:$C$24,0),MATCH(Calc_Option3!AS$6,'Energy Prices'!$F$11:$CR$11,0))/100000,\"\")","v":""},{"$f":"IFERROR('Data Input - Option 3'!AX87*INDEX('Energy Prices'!$F$19:$CR$24,MATCH($B97,'Energy Prices'!$C$19:$C$24,0),MATCH(Calc_Option3!AT$6,'Energy Prices'!$F$11:$CR$11,0))/100000,\"\")","v":""},{"$f":"IFERROR('Data Input - Option 3'!AY87*INDEX('Energy Prices'!$F$19:$CR$24,MATCH($B97,'Energy Prices'!$C$19:$C$24,0),MATCH(Calc_Option3!AU$6,'Energy Prices'!$F$11:$CR$11,0))/100000,\"\")","v":""},{"$f":"IFERROR('Data Input - Option 3'!AZ87*INDEX('Energy Prices'!$F$19:$CR$24,MATCH($B97,'Energy Prices'!$C$19:$C$24,0),MATCH(Calc_Option3!AV$6,'Energy Prices'!$F$11:$CR$11,0))/100000,\"\")","v":""},{"$f":"IFERROR('Data Input - Option 3'!BA87*INDEX('Energy Prices'!$F$19:$CR$24,MATCH($B97,'Energy Prices'!$C$19:$C$24,0),MATCH(Calc_Option3!AW$6,'Energy Prices'!$F$11:$CR$11,0))/100000,\"\")","v":""},{"$f":"IFERROR('Data Input - Option 3'!BB87*INDEX('Energy Prices'!$F$19:$CR$24,MATCH($B97,'Energy Prices'!$C$19:$C$24,0),MATCH(Calc_Option3!AX$6,'Energy Prices'!$F$11:$CR$11,0))/100000,\"\")","v":""},{"$f":"IFERROR('Data Input - Option 3'!BC87*INDEX('Energy Prices'!$F$19:$CR$24,MATCH($B97,'Energy Prices'!$C$19:$C$24,0),MATCH(Calc_Option3!AY$6,'Energy Prices'!$F$11:$CR$11,0))/100000,\"\")","v":""},{"$f":"IFERROR('Data Input - Option 3'!BD87*INDEX('Energy Prices'!$F$19:$CR$24,MATCH($B97,'Energy Prices'!$C$19:$C$24,0),MATCH(Calc_Option3!AZ$6,'Energy Prices'!$F$11:$CR$11,0))/100000,\"\")","v":""},{"$f":"IFERROR('Data Input - Option 3'!BE87*INDEX('Energy Prices'!$F$19:$CR$24,MATCH($B97,'Energy Prices'!$C$19:$C$24,0),MATCH(Calc_Option3!BA$6,'Energy Prices'!$F$11:$CR$11,0))/100000,\"\")","v":""},{"$f":"IFERROR('Data Input - Option 3'!BF87*INDEX('Energy Prices'!$F$19:$CR$24,MATCH($B97,'Energy Prices'!$C$19:$C$24,0),MATCH(Calc_Option3!BB$6,'Energy Prices'!$F$11:$CR$11,0))/100000,\"\")","v":""},{"$f":"IFERROR('Data Input - Option 3'!BG87*INDEX('Energy Prices'!$F$19:$CR$24,MATCH($B97,'Energy Prices'!$C$19:$C$24,0),MATCH(Calc_Option3!BC$6,'Energy Prices'!$F$11:$CR$11,0))/100000,\"\")","v":""},{"$f":"IFERROR('Data Input - Option 3'!BH87*INDEX('Energy Prices'!$F$19:$CR$24,MATCH($B97,'Energy Prices'!$C$19:$C$24,0),MATCH(Calc_Option3!BD$6,'Energy Prices'!$F$11:$CR$11,0))/100000,\"\")","v":""},{"$f":"IFERROR('Data Input - Option 3'!BI87*INDEX('Energy Prices'!$F$19:$CR$24,MATCH($B97,'Energy Prices'!$C$19:$C$24,0),MATCH(Calc_Option3!BE$6,'Energy Prices'!$F$11:$CR$11,0))/100000,\"\")","v":""},{"$f":"IFERROR('Data Input - Option 3'!BJ87*INDEX('Energy Prices'!$F$19:$CR$24,MATCH($B97,'Energy Prices'!$C$19:$C$24,0),MATCH(Calc_Option3!BF$6,'Energy Prices'!$F$11:$CR$11,0))/100000,\"\")","v":""},{"$f":"IFERROR('Data Input - Option 3'!BK87*INDEX('Energy Prices'!$F$19:$CR$24,MATCH($B97,'Energy Prices'!$C$19:$C$24,0),MATCH(Calc_Option3!BG$6,'Energy Prices'!$F$11:$CR$11,0))/100000,\"\")","v":""},{"$f":"IFERROR('Data Input - Option 3'!BL87*INDEX('Energy Prices'!$F$19:$CR$24,MATCH($B97,'Energy Prices'!$C$19:$C$24,0),MATCH(Calc_Option3!BH$6,'Energy Prices'!$F$11:$CR$11,0))/100000,\"\")","v":""},{"$f":"IFERROR('Data Input - Option 3'!BM87*INDEX('Energy Prices'!$F$19:$CR$24,MATCH($B97,'Energy Prices'!$C$19:$C$24,0),MATCH(Calc_Option3!BI$6,'Energy Prices'!$F$11:$CR$11,0))/100000,\"\")","v":""},{"$f":"IFERROR('Data Input - Option 3'!BN87*INDEX('Energy Prices'!$F$19:$CR$24,MATCH($B97,'Energy Prices'!$C$19:$C$24,0),MATCH(Calc_Option3!BJ$6,'Energy Prices'!$F$11:$CR$11,0))/100000,\"\")","v":""},{"$f":"IFERROR('Data Input - Option 3'!BO87*INDEX('Energy Prices'!$F$19:$CR$24,MATCH($B97,'Energy Prices'!$C$19:$C$24,0),MATCH(Calc_Option3!BK$6,'Energy Prices'!$F$11:$CR$11,0))/100000,\"\")","v":""},{"$f":"IFERROR('Data Input - Option 3'!BP87*INDEX('Energy Prices'!$F$19:$CR$24,MATCH($B97,'Energy Prices'!$C$19:$C$24,0),MATCH(Calc_Option3!BL$6,'Energy Prices'!$F$11:$CR$11,0))/100000,\"\")","v":""},{"$f":"IFERROR('Data Input - Option 3'!BQ87*INDEX('Energy Prices'!$F$19:$CR$24,MATCH($B97,'Energy Prices'!$C$19:$C$24,0),MATCH(Calc_Option3!BM$6,'Energy Prices'!$F$11:$CR$11,0))/100000,\"\")","v":""},{"$f":"IFERROR('Data Input - Option 3'!BR87*INDEX('Energy Prices'!$F$19:$CR$24,MATCH($B97,'Energy Prices'!$C$19:$C$24,0),MATCH(Calc_Option3!BN$6,'Energy Prices'!$F$11:$CR$11,0))/100000,\"\")","v":""},{"$f":"IFERROR('Data Input - Option 3'!BS87*INDEX('Energy Prices'!$F$19:$CR$24,MATCH($B97,'Energy Prices'!$C$19:$C$24,0),MATCH(Calc_Option3!BO$6,'Energy Prices'!$F$11:$CR$11,0))/100000,\"\")","v":""},{"$f":"IFERROR('Data Input - Option 3'!BT87*INDEX('Energy Prices'!$F$19:$CR$24,MATCH($B97,'Energy Prices'!$C$19:$C$24,0),MATCH(Calc_Option3!BP$6,'Energy Prices'!$F$11:$CR$11,0))/100000,\"\")","v":""},{"$f":"IFERROR('Data Input - Option 3'!BU87*INDEX('Energy Prices'!$F$19:$CR$24,MATCH($B97,'Energy Prices'!$C$19:$C$24,0),MATCH(Calc_Option3!BQ$6,'Energy Prices'!$F$11:$CR$11,0))/100000,\"\")","v":""},{"$f":"IFERROR('Data Input - Option 3'!BV87*INDEX('Energy Prices'!$F$19:$CR$24,MATCH($B97,'Energy Prices'!$C$19:$C$24,0),MATCH(Calc_Option3!BR$6,'Energy Prices'!$F$11:$CR$11,0))/100000,\"\")","v":""},{"$f":"IFERROR('Data Input - Option 3'!BW87*INDEX('Energy Prices'!$F$19:$CR$24,MATCH($B97,'Energy Prices'!$C$19:$C$24,0),MATCH(Calc_Option3!BS$6,'Energy Prices'!$F$11:$CR$11,0))/100000,\"\")","v":""},{"$f":"IFERROR('Data Input - Option 3'!BX87*INDEX('Energy Prices'!$F$19:$CR$24,MATCH($B97,'Energy Prices'!$C$19:$C$24,0),MATCH(Calc_Option3!BT$6,'Energy Prices'!$F$11:$CR$11,0))/100000,\"\")","v":""},{"$f":"IFERROR('Data Input - Option 3'!BY87*INDEX('Energy Prices'!$F$19:$CR$24,MATCH($B97,'Energy Prices'!$C$19:$C$24,0),MATCH(Calc_Option3!BU$6,'Energy Prices'!$F$11:$CR$11,0))/100000,\"\")","v":""},{"$f":"IFERROR('Data Input - Option 3'!BZ87*INDEX('Energy Prices'!$F$19:$CR$24,MATCH($B97,'Energy Prices'!$C$19:$C$24,0),MATCH(Calc_Option3!BV$6,'Energy Prices'!$F$11:$CR$11,0))/100000,\"\")","v":""},{"$f":"IFERROR('Data Input - Option 3'!CA87*INDEX('Energy Prices'!$F$19:$CR$24,MATCH($B97,'Energy Prices'!$C$19:$C$24,0),MATCH(Calc_Option3!BW$6,'Energy Prices'!$F$11:$CR$11,0))/100000,\"\")","v":""},{"$f":"IFERROR('Data Input - Option 3'!CB87*INDEX('Energy Prices'!$F$19:$CR$24,MATCH($B97,'Energy Prices'!$C$19:$C$24,0),MATCH(Calc_Option3!BX$6,'Energy Prices'!$F$11:$CR$11,0))/100000,\"\")","v":""},{"$f":"IFERROR('Data Input - Option 3'!CC87*INDEX('Energy Prices'!$F$19:$CR$24,MATCH($B97,'Energy Prices'!$C$19:$C$24,0),MATCH(Calc_Option3!BY$6,'Energy Prices'!$F$11:$CR$11,0))/100000,\"\")","v":""},{"$f":"IFERROR('Data Input - Option 3'!CD87*INDEX('Energy Prices'!$F$19:$CR$24,MATCH($B97,'Energy Prices'!$C$19:$C$24,0),MATCH(Calc_Option3!BZ$6,'Energy Prices'!$F$11:$CR$11,0))/100000,\"\")","v":""},{"$f":"IFERROR('Data Input - Option 3'!CE87*INDEX('Energy Prices'!$F$19:$CR$24,MATCH($B97,'Energy Prices'!$C$19:$C$24,0),MATCH(Calc_Option3!CA$6,'Energy Prices'!$F$11:$CR$11,0))/100000,\"\")","v":""},{"$f":"IFERROR('Data Input - Option 3'!CF87*INDEX('Energy Prices'!$F$19:$CR$24,MATCH($B97,'Energy Prices'!$C$19:$C$24,0),MATCH(Calc_Option3!CB$6,'Energy Prices'!$F$11:$CR$11,0))/100000,\"\")","v":""},{"$f":"IFERROR('Data Input - Option 3'!CG87*INDEX('Energy Prices'!$F$19:$CR$24,MATCH($B97,'Energy Prices'!$C$19:$C$24,0),MATCH(Calc_Option3!CC$6,'Energy Prices'!$F$11:$CR$11,0))/100000,\"\")","v":""},{"$f":"IFERROR('Data Input - Option 3'!CH87*INDEX('Energy Prices'!$F$19:$CR$24,MATCH($B97,'Energy Prices'!$C$19:$C$24,0),MATCH(Calc_Option3!CD$6,'Energy Prices'!$F$11:$CR$11,0))/100000,\"\")","v":""},{"$f":"IFERROR('Data Input - Option 3'!CI87*INDEX('Energy Prices'!$F$19:$CR$24,MATCH($B97,'Energy Prices'!$C$19:$C$24,0),MATCH(Calc_Option3!CE$6,'Energy Prices'!$F$11:$CR$11,0))/100000,\"\")","v":""},{"$f":"IFERROR('Data Input - Option 3'!CJ87*INDEX('Energy Prices'!$F$19:$CR$24,MATCH($B97,'Energy Prices'!$C$19:$C$24,0),MATCH(Calc_Option3!CF$6,'Energy Prices'!$F$11:$CR$11,0))/100000,\"\")","v":""},{"$f":"IFERROR('Data Input - Option 3'!CK87*INDEX('Energy Prices'!$F$19:$CR$24,MATCH($B97,'Energy Prices'!$C$19:$C$24,0),MATCH(Calc_Option3!CG$6,'Energy Prices'!$F$11:$CR$11,0))/100000,\"\")","v":""},{"$f":"IFERROR('Data Input - Option 3'!CL87*INDEX('Energy Prices'!$F$19:$CR$24,MATCH($B97,'Energy Prices'!$C$19:$C$24,0),MATCH(Calc_Option3!CH$6,'Energy Prices'!$F$11:$CR$11,0))/100000,\"\")","v":""},{"$f":"IFERROR('Data Input - Option 3'!CM87*INDEX('Energy Prices'!$F$19:$CR$24,MATCH($B97,'Energy Prices'!$C$19:$C$24,0),MATCH(Calc_Option3!CI$6,'Energy Prices'!$F$11:$CR$11,0))/100000,\"\")","v":""},{"$f":"IFERROR('Data Input - Option 3'!CN87*INDEX('Energy Prices'!$F$19:$CR$24,MATCH($B97,'Energy Prices'!$C$19:$C$24,0),MATCH(Calc_Option3!CJ$6,'Energy Prices'!$F$11:$CR$11,0))/100000,\"\")","v":""},{"$f":"IFERROR('Data Input - Option 3'!CO87*INDEX('Energy Prices'!$F$19:$CR$24,MATCH($B97,'Energy Prices'!$C$19:$C$24,0),MATCH(Calc_Option3!CK$6,'Energy Prices'!$F$11:$CR$11,0))/100000,\"\")","v":""},{"$f":"IFERROR('Data Input - Option 3'!CP87*INDEX('Energy Prices'!$F$19:$CR$24,MATCH($B97,'Energy Prices'!$C$19:$C$24,0),MATCH(Calc_Option3!CL$6,'Energy Prices'!$F$11:$CR$11,0))/100000,\"\")","v":""},{"$f":"IFERROR('Data Input - Option 3'!CQ87*INDEX('Energy Prices'!$F$19:$CR$24,MATCH($B97,'Energy Prices'!$C$19:$C$24,0),MATCH(Calc_Option3!CM$6,'Energy Prices'!$F$11:$CR$11,0))/100000,\"\")","v":""},{"$f":"IFERROR('Data Input - Option 3'!CR87*INDEX('Energy Prices'!$F$19:$CR$24,MATCH($B97,'Energy Prices'!$C$19:$C$24,0),MATCH(Calc_Option3!CN$6,'Energy Prices'!$F$11:$CR$11,0))/100000,\"\")","v":""},{"$f":"IFERROR('Data Input - Option 3'!CS87*INDEX('Energy Prices'!$F$19:$CR$24,MATCH($B97,'Energy Prices'!$C$19:$C$24,0),MATCH(Calc_Option3!CO$6,'Energy Prices'!$F$11:$CR$11,0))/100000,\"\")","v":""},{"$f":"IFERROR('Data Input - Option 3'!CT87*INDEX('Energy Prices'!$F$19:$CR$24,MATCH($B97,'Energy Prices'!$C$19:$C$24,0),MATCH(Calc_Option3!CP$6,'Energy Prices'!$F$11:$CR$11,0))/100000,\"\")","v":""},{"$f":"IFERROR('Data Input - Option 3'!CU87*INDEX('Energy Prices'!$F$19:$CR$24,MATCH($B97,'Energy Prices'!$C$19:$C$24,0),MATCH(Calc_Option3!CQ$6,'Energy Prices'!$F$11:$CR$11,0))/100000,\"\")","v":""},{"$f":"IFERROR('Data Input - Option 3'!CV87*INDEX('Energy Prices'!$F$19:$CR$24,MATCH($B97,'Energy Prices'!$C$19:$C$24,0),MATCH(Calc_Option3!CR$6,'Energy Prices'!$F$11:$CR$11,0))/100000,\"\")","v":""},{"$f":"IFERROR('Data Input - Option 3'!CW87*INDEX('Energy Prices'!$F$19:$CR$24,MATCH($B97,'Energy Prices'!$C$19:$C$24,0),MATCH(Calc_Option3!CS$6,'Energy Prices'!$F$11:$CR$11,0))/100000,\"\")","v":""},{"$f":"IFERROR('Data Input - Option 3'!CX87*INDEX('Energy Prices'!$F$19:$CR$24,MATCH($B97,'Energy Prices'!$C$19:$C$24,0),MATCH(Calc_Option3!CT$6,'Energy Prices'!$F$11:$CR$11,0))/100000,\"\")","v":""},{"$f":"IFERROR('Data Input - Option 3'!CY87*INDEX('Energy Prices'!$F$19:$CR$24,MATCH($B97,'Energy Prices'!$C$19:$C$24,0),MATCH(Calc_Option3!CU$6,'Energy Prices'!$F$11:$CR$11,0))/100000,\"\")","v":""},{"$f":"IFERROR('Data Input - Option 3'!CZ87*INDEX('Energy Prices'!$F$19:$CR$24,MATCH($B97,'Energy Prices'!$C$19:$C$24,0),MATCH(Calc_Option3!CV$6,'Energy Prices'!$F$11:$CR$11,0))/100000,\"\")","v":""},{"$f":"IFERROR('Data Input - Option 3'!DA87*INDEX('Energy Prices'!$F$19:$CR$24,MATCH($B97,'Energy Prices'!$C$19:$C$24,0),MATCH(Calc_Option3!CW$6,'Energy Prices'!$F$11:$CR$11,0))/100000,\"\")","v":""},{"$f":"IFERROR('Data Input - Option 3'!DB87*INDEX('Energy Prices'!$F$19:$CR$24,MATCH($B97,'Energy Prices'!$C$19:$C$24,0),MATCH(Calc_Option3!CX$6,'Energy Prices'!$F$11:$CR$11,0))/100000,\"\")","v":""},{"$f":"IFERROR('Data Input - Option 3'!DC87*INDEX('Energy Prices'!$F$19:$CR$24,MATCH($B97,'Energy Prices'!$C$19:$C$24,0),MATCH(Calc_Option3!CY$6,'Energy Prices'!$F$11:$CR$11,0))/100000,\"\")","v":""}]
[null,"Road - Petrol","£000's",{"$f":"IFERROR('Data Input - Option 3'!H88*INDEX('Energy Prices'!$F$19:$CR$24,MATCH($B98,'Energy Prices'!$C$19:$C$24,0),MATCH(Calc_Option3!D$6,'Energy Prices'!$F$11:$CR$11,0))/100000,\"\")","v":0},{"$f":"IFERROR('Data Input - Option 3'!I88*INDEX('Energy Prices'!$F$19:$CR$24,MATCH($B98,'Energy Prices'!$C$19:$C$24,0),MATCH(Calc_Option3!E$6,'Energy Prices'!$F$11:$CR$11,0))/100000,\"\")","v":0},{"$f":"IFERROR('Data Input - Option 3'!J88*INDEX('Energy Prices'!$F$19:$CR$24,MATCH($B98,'Energy Prices'!$C$19:$C$24,0),MATCH(Calc_Option3!F$6,'Energy Prices'!$F$11:$CR$11,0))/100000,\"\")","v":0},{"$f":"IFERROR('Data Input - Option 3'!K88*INDEX('Energy Prices'!$F$19:$CR$24,MATCH($B98,'Energy Prices'!$C$19:$C$24,0),MATCH(Calc_Option3!G$6,'Energy Prices'!$F$11:$CR$11,0))/100000,\"\")","v":0},{"$f":"IFERROR('Data Input - Option 3'!L88*INDEX('Energy Prices'!$F$19:$CR$24,MATCH($B98,'Energy Prices'!$C$19:$C$24,0),MATCH(Calc_Option3!H$6,'Energy Prices'!$F$11:$CR$11,0))/100000,\"\")","v":0},{"$f":"IFERROR('Data Input - Option 3'!M88*INDEX('Energy Prices'!$F$19:$CR$24,MATCH($B98,'Energy Prices'!$C$19:$C$24,0),MATCH(Calc_Option3!I$6,'Energy Prices'!$F$11:$CR$11,0))/100000,\"\")","v":0},{"$f":"IFERROR('Data Input - Option 3'!N88*INDEX('Energy Prices'!$F$19:$CR$24,MATCH($B98,'Energy Prices'!$C$19:$C$24,0),MATCH(Calc_Option3!J$6,'Energy Prices'!$F$11:$CR$11,0))/100000,\"\")","v":0},{"$f":"IFERROR('Data Input - Option 3'!O88*INDEX('Energy Prices'!$F$19:$CR$24,MATCH($B98,'Energy Prices'!$C$19:$C$24,0),MATCH(Calc_Option3!K$6,'Energy Prices'!$F$11:$CR$11,0))/100000,\"\")","v":0},{"$f":"IFERROR('Data Input - Option 3'!P88*INDEX('Energy Prices'!$F$19:$CR$24,MATCH($B98,'Energy Prices'!$C$19:$C$24,0),MATCH(Calc_Option3!L$6,'Energy Prices'!$F$11:$CR$11,0))/100000,\"\")","v":0},{"$f":"IFERROR('Data Input - Option 3'!Q88*INDEX('Energy Prices'!$F$19:$CR$24,MATCH($B98,'Energy Prices'!$C$19:$C$24,0),MATCH(Calc_Option3!M$6,'Energy Prices'!$F$11:$CR$11,0))/100000,\"\")","v":0},{"$f":"IFERROR('Data Input - Option 3'!R88*INDEX('Energy Prices'!$F$19:$CR$24,MATCH($B98,'Energy Prices'!$C$19:$C$24,0),MATCH(Calc_Option3!N$6,'Energy Prices'!$F$11:$CR$11,0))/100000,\"\")","v":0},{"$f":"IFERROR('Data Input - Option 3'!S88*INDEX('Energy Prices'!$F$19:$CR$24,MATCH($B98,'Energy Prices'!$C$19:$C$24,0),MATCH(Calc_Option3!O$6,'Energy Prices'!$F$11:$CR$11,0))/100000,\"\")","v":0},{"$f":"IFERROR('Data Input - Option 3'!T88*INDEX('Energy Prices'!$F$19:$CR$24,MATCH($B98,'Energy Prices'!$C$19:$C$24,0),MATCH(Calc_Option3!P$6,'Energy Prices'!$F$11:$CR$11,0))/100000,\"\")","v":0},{"$f":"IFERROR('Data Input - Option 3'!U88*INDEX('Energy Prices'!$F$19:$CR$24,MATCH($B98,'Energy Prices'!$C$19:$C$24,0),MATCH(Calc_Option3!Q$6,'Energy Prices'!$F$11:$CR$11,0))/100000,\"\")","v":0},{"$f":"IFERROR('Data Input - Option 3'!V88*INDEX('Energy Prices'!$F$19:$CR$24,MATCH($B98,'Energy Prices'!$C$19:$C$24,0),MATCH(Calc_Option3!R$6,'Energy Prices'!$F$11:$CR$11,0))/100000,\"\")","v":0},{"$f":"IFERROR('Data Input - Option 3'!W88*INDEX('Energy Prices'!$F$19:$CR$24,MATCH($B98,'Energy Prices'!$C$19:$C$24,0),MATCH(Calc_Option3!S$6,'Energy Prices'!$F$11:$CR$11,0))/100000,\"\")","v":0},{"$f":"IFERROR('Data Input - Option 3'!X88*INDEX('Energy Prices'!$F$19:$CR$24,MATCH($B98,'Energy Prices'!$C$19:$C$24,0),MATCH(Calc_Option3!T$6,'Energy Prices'!$F$11:$CR$11,0))/100000,\"\")","v":0},{"$f":"IFERROR('Data Input - Option 3'!Y88*INDEX('Energy Prices'!$F$19:$CR$24,MATCH($B98,'Energy Prices'!$C$19:$C$24,0),MATCH(Calc_Option3!U$6,'Energy Prices'!$F$11:$CR$11,0))/100000,\"\")","v":0},{"$f":"IFERROR('Data Input - Option 3'!Z88*INDEX('Energy Prices'!$F$19:$CR$24,MATCH($B98,'Energy Prices'!$C$19:$C$24,0),MATCH(Calc_Option3!V$6,'Energy Prices'!$F$11:$CR$11,0))/100000,\"\")","v":0},{"$f":"IFERROR('Data Input - Option 3'!AA88*INDEX('Energy Prices'!$F$19:$CR$24,MATCH($B98,'Energy Prices'!$C$19:$C$24,0),MATCH(Calc_Option3!W$6,'Energy Prices'!$F$11:$CR$11,0))/100000,\"\")","v":0},{"$f":"IFERROR('Data Input - Option 3'!AB88*INDEX('Energy Prices'!$F$19:$CR$24,MATCH($B98,'Energy Prices'!$C$19:$C$24,0),MATCH(Calc_Option3!X$6,'Energy Prices'!$F$11:$CR$11,0))/100000,\"\")","v":0},{"$f":"IFERROR('Data Input - Option 3'!AC88*INDEX('Energy Prices'!$F$19:$CR$24,MATCH($B98,'Energy Prices'!$C$19:$C$24,0),MATCH(Calc_Option3!Y$6,'Energy Prices'!$F$11:$CR$11,0))/100000,\"\")","v":0},{"$f":"IFERROR('Data Input - Option 3'!AD88*INDEX('Energy Prices'!$F$19:$CR$24,MATCH($B98,'Energy Prices'!$C$19:$C$24,0),MATCH(Calc_Option3!Z$6,'Energy Prices'!$F$11:$CR$11,0))/100000,\"\")","v":0},{"$f":"IFERROR('Data Input - Option 3'!AE88*INDEX('Energy Prices'!$F$19:$CR$24,MATCH($B98,'Energy Prices'!$C$19:$C$24,0),MATCH(Calc_Option3!AA$6,'Energy Prices'!$F$11:$CR$11,0))/100000,\"\")","v":0},{"$f":"IFERROR('Data Input - Option 3'!AF88*INDEX('Energy Prices'!$F$19:$CR$24,MATCH($B98,'Energy Prices'!$C$19:$C$24,0),MATCH(Calc_Option3!AB$6,'Energy Prices'!$F$11:$CR$11,0))/100000,\"\")","v":0},{"$f":"IFERROR('Data Input - Option 3'!AG88*INDEX('Energy Prices'!$F$19:$CR$24,MATCH($B98,'Energy Prices'!$C$19:$C$24,0),MATCH(Calc_Option3!AC$6,'Energy Prices'!$F$11:$CR$11,0))/100000,\"\")","v":0},{"$f":"IFERROR('Data Input - Option 3'!AH88*INDEX('Energy Prices'!$F$19:$CR$24,MATCH($B98,'Energy Prices'!$C$19:$C$24,0),MATCH(Calc_Option3!AD$6,'Energy Prices'!$F$11:$CR$11,0))/100000,\"\")","v":0},{"$f":"IFERROR('Data Input - Option 3'!AI88*INDEX('Energy Prices'!$F$19:$CR$24,MATCH($B98,'Energy Prices'!$C$19:$C$24,0),MATCH(Calc_Option3!AE$6,'Energy Prices'!$F$11:$CR$11,0))/100000,\"\")","v":0},{"$f":"IFERROR('Data Input - Option 3'!AJ88*INDEX('Energy Prices'!$F$19:$CR$24,MATCH($B98,'Energy Prices'!$C$19:$C$24,0),MATCH(Calc_Option3!AF$6,'Energy Prices'!$F$11:$CR$11,0))/100000,\"\")","v":0},{"$f":"IFERROR('Data Input - Option 3'!AK88*INDEX('Energy Prices'!$F$19:$CR$24,MATCH($B98,'Energy Prices'!$C$19:$C$24,0),MATCH(Calc_Option3!AG$6,'Energy Prices'!$F$11:$CR$11,0))/100000,\"\")","v":0},{"$f":"IFERROR('Data Input - Option 3'!AL88*INDEX('Energy Prices'!$F$19:$CR$24,MATCH($B98,'Energy Prices'!$C$19:$C$24,0),MATCH(Calc_Option3!AH$6,'Energy Prices'!$F$11:$CR$11,0))/100000,\"\")","v":0},{"$f":"IFERROR('Data Input - Option 3'!AM88*INDEX('Energy Prices'!$F$19:$CR$24,MATCH($B98,'Energy Prices'!$C$19:$C$24,0),MATCH(Calc_Option3!AI$6,'Energy Prices'!$F$11:$CR$11,0))/100000,\"\")","v":""},{"$f":"IFERROR('Data Input - Option 3'!AN88*INDEX('Energy Prices'!$F$19:$CR$24,MATCH($B98,'Energy Prices'!$C$19:$C$24,0),MATCH(Calc_Option3!AJ$6,'Energy Prices'!$F$11:$CR$11,0))/100000,\"\")","v":""},{"$f":"IFERROR('Data Input - Option 3'!AO88*INDEX('Energy Prices'!$F$19:$CR$24,MATCH($B98,'Energy Prices'!$C$19:$C$24,0),MATCH(Calc_Option3!AK$6,'Energy Prices'!$F$11:$CR$11,0))/100000,\"\")","v":""},{"$f":"IFERROR('Data Input - Option 3'!AP88*INDEX('Energy Prices'!$F$19:$CR$24,MATCH($B98,'Energy Prices'!$C$19:$C$24,0),MATCH(Calc_Option3!AL$6,'Energy Prices'!$F$11:$CR$11,0))/100000,\"\")","v":""},{"$f":"IFERROR('Data Input - Option 3'!AQ88*INDEX('Energy Prices'!$F$19:$CR$24,MATCH($B98,'Energy Prices'!$C$19:$C$24,0),MATCH(Calc_Option3!AM$6,'Energy Prices'!$F$11:$CR$11,0))/100000,\"\")","v":""},{"$f":"IFERROR('Data Input - Option 3'!AR88*INDEX('Energy Prices'!$F$19:$CR$24,MATCH($B98,'Energy Prices'!$C$19:$C$24,0),MATCH(Calc_Option3!AN$6,'Energy Prices'!$F$11:$CR$11,0))/100000,\"\")","v":""},{"$f":"IFERROR('Data Input - Option 3'!AS88*INDEX('Energy Prices'!$F$19:$CR$24,MATCH($B98,'Energy Prices'!$C$19:$C$24,0),MATCH(Calc_Option3!AO$6,'Energy Prices'!$F$11:$CR$11,0))/100000,\"\")","v":""},{"$f":"IFERROR('Data Input - Option 3'!AT88*INDEX('Energy Prices'!$F$19:$CR$24,MATCH($B98,'Energy Prices'!$C$19:$C$24,0),MATCH(Calc_Option3!AP$6,'Energy Prices'!$F$11:$CR$11,0))/100000,\"\")","v":""},{"$f":"IFERROR('Data Input - Option 3'!AU88*INDEX('Energy Prices'!$F$19:$CR$24,MATCH($B98,'Energy Prices'!$C$19:$C$24,0),MATCH(Calc_Option3!AQ$6,'Energy Prices'!$F$11:$CR$11,0))/100000,\"\")","v":""},{"$f":"IFERROR('Data Input - Option 3'!AV88*INDEX('Energy Prices'!$F$19:$CR$24,MATCH($B98,'Energy Prices'!$C$19:$C$24,0),MATCH(Calc_Option3!AR$6,'Energy Prices'!$F$11:$CR$11,0))/100000,\"\")","v":""},{"$f":"IFERROR('Data Input - Option 3'!AW88*INDEX('Energy Prices'!$F$19:$CR$24,MATCH($B98,'Energy Prices'!$C$19:$C$24,0),MATCH(Calc_Option3!AS$6,'Energy Prices'!$F$11:$CR$11,0))/100000,\"\")","v":""},{"$f":"IFERROR('Data Input - Option 3'!AX88*INDEX('Energy Prices'!$F$19:$CR$24,MATCH($B98,'Energy Prices'!$C$19:$C$24,0),MATCH(Calc_Option3!AT$6,'Energy Prices'!$F$11:$CR$11,0))/100000,\"\")","v":""},{"$f":"IFERROR('Data Input - Option 3'!AY88*INDEX('Energy Prices'!$F$19:$CR$24,MATCH($B98,'Energy Prices'!$C$19:$C$24,0),MATCH(Calc_Option3!AU$6,'Energy Prices'!$F$11:$CR$11,0))/100000,\"\")","v":""},{"$f":"IFERROR('Data Input - Option 3'!AZ88*INDEX('Energy Prices'!$F$19:$CR$24,MATCH($B98,'Energy Prices'!$C$19:$C$24,0),MATCH(Calc_Option3!AV$6,'Energy Prices'!$F$11:$CR$11,0))/100000,\"\")","v":""},{"$f":"IFERROR('Data Input - Option 3'!BA88*INDEX('Energy Prices'!$F$19:$CR$24,MATCH($B98,'Energy Prices'!$C$19:$C$24,0),MATCH(Calc_Option3!AW$6,'Energy Prices'!$F$11:$CR$11,0))/100000,\"\")","v":""},{"$f":"IFERROR('Data Input - Option 3'!BB88*INDEX('Energy Prices'!$F$19:$CR$24,MATCH($B98,'Energy Prices'!$C$19:$C$24,0),MATCH(Calc_Option3!AX$6,'Energy Prices'!$F$11:$CR$11,0))/100000,\"\")","v":""},{"$f":"IFERROR('Data Input - Option 3'!BC88*INDEX('Energy Prices'!$F$19:$CR$24,MATCH($B98,'Energy Prices'!$C$19:$C$24,0),MATCH(Calc_Option3!AY$6,'Energy Prices'!$F$11:$CR$11,0))/100000,\"\")","v":""},{"$f":"IFERROR('Data Input - Option 3'!BD88*INDEX('Energy Prices'!$F$19:$CR$24,MATCH($B98,'Energy Prices'!$C$19:$C$24,0),MATCH(Calc_Option3!AZ$6,'Energy Prices'!$F$11:$CR$11,0))/100000,\"\")","v":""},{"$f":"IFERROR('Data Input - Option 3'!BE88*INDEX('Energy Prices'!$F$19:$CR$24,MATCH($B98,'Energy Prices'!$C$19:$C$24,0),MATCH(Calc_Option3!BA$6,'Energy Prices'!$F$11:$CR$11,0))/100000,\"\")","v":""},{"$f":"IFERROR('Data Input - Option 3'!BF88*INDEX('Energy Prices'!$F$19:$CR$24,MATCH($B98,'Energy Prices'!$C$19:$C$24,0),MATCH(Calc_Option3!BB$6,'Energy Prices'!$F$11:$CR$11,0))/100000,\"\")","v":""},{"$f":"IFERROR('Data Input - Option 3'!BG88*INDEX('Energy Prices'!$F$19:$CR$24,MATCH($B98,'Energy Prices'!$C$19:$C$24,0),MATCH(Calc_Option3!BC$6,'Energy Prices'!$F$11:$CR$11,0))/100000,\"\")","v":""},{"$f":"IFERROR('Data Input - Option 3'!BH88*INDEX('Energy Prices'!$F$19:$CR$24,MATCH($B98,'Energy Prices'!$C$19:$C$24,0),MATCH(Calc_Option3!BD$6,'Energy Prices'!$F$11:$CR$11,0))/100000,\"\")","v":""},{"$f":"IFERROR('Data Input - Option 3'!BI88*INDEX('Energy Prices'!$F$19:$CR$24,MATCH($B98,'Energy Prices'!$C$19:$C$24,0),MATCH(Calc_Option3!BE$6,'Energy Prices'!$F$11:$CR$11,0))/100000,\"\")","v":""},{"$f":"IFERROR('Data Input - Option 3'!BJ88*INDEX('Energy Prices'!$F$19:$CR$24,MATCH($B98,'Energy Prices'!$C$19:$C$24,0),MATCH(Calc_Option3!BF$6,'Energy Prices'!$F$11:$CR$11,0))/100000,\"\")","v":""},{"$f":"IFERROR('Data Input - Option 3'!BK88*INDEX('Energy Prices'!$F$19:$CR$24,MATCH($B98,'Energy Prices'!$C$19:$C$24,0),MATCH(Calc_Option3!BG$6,'Energy Prices'!$F$11:$CR$11,0))/100000,\"\")","v":""},{"$f":"IFERROR('Data Input - Option 3'!BL88*INDEX('Energy Prices'!$F$19:$CR$24,MATCH($B98,'Energy Prices'!$C$19:$C$24,0),MATCH(Calc_Option3!BH$6,'Energy Prices'!$F$11:$CR$11,0))/100000,\"\")","v":""},{"$f":"IFERROR('Data Input - Option 3'!BM88*INDEX('Energy Prices'!$F$19:$CR$24,MATCH($B98,'Energy Prices'!$C$19:$C$24,0),MATCH(Calc_Option3!BI$6,'Energy Prices'!$F$11:$CR$11,0))/100000,\"\")","v":""},{"$f":"IFERROR('Data Input - Option 3'!BN88*INDEX('Energy Prices'!$F$19:$CR$24,MATCH($B98,'Energy Prices'!$C$19:$C$24,0),MATCH(Calc_Option3!BJ$6,'Energy Prices'!$F$11:$CR$11,0))/100000,\"\")","v":""},{"$f":"IFERROR('Data Input - Option 3'!BO88*INDEX('Energy Prices'!$F$19:$CR$24,MATCH($B98,'Energy Prices'!$C$19:$C$24,0),MATCH(Calc_Option3!BK$6,'Energy Prices'!$F$11:$CR$11,0))/100000,\"\")","v":""},{"$f":"IFERROR('Data Input - Option 3'!BP88*INDEX('Energy Prices'!$F$19:$CR$24,MATCH($B98,'Energy Prices'!$C$19:$C$24,0),MATCH(Calc_Option3!BL$6,'Energy Prices'!$F$11:$CR$11,0))/100000,\"\")","v":""},{"$f":"IFERROR('Data Input - Option 3'!BQ88*INDEX('Energy Prices'!$F$19:$CR$24,MATCH($B98,'Energy Prices'!$C$19:$C$24,0),MATCH(Calc_Option3!BM$6,'Energy Prices'!$F$11:$CR$11,0))/100000,\"\")","v":""},{"$f":"IFERROR('Data Input - Option 3'!BR88*INDEX('Energy Prices'!$F$19:$CR$24,MATCH($B98,'Energy Prices'!$C$19:$C$24,0),MATCH(Calc_Option3!BN$6,'Energy Prices'!$F$11:$CR$11,0))/100000,\"\")","v":""},{"$f":"IFERROR('Data Input - Option 3'!BS88*INDEX('Energy Prices'!$F$19:$CR$24,MATCH($B98,'Energy Prices'!$C$19:$C$24,0),MATCH(Calc_Option3!BO$6,'Energy Prices'!$F$11:$CR$11,0))/100000,\"\")","v":""},{"$f":"IFERROR('Data Input - Option 3'!BT88*INDEX('Energy Prices'!$F$19:$CR$24,MATCH($B98,'Energy Prices'!$C$19:$C$24,0),MATCH(Calc_Option3!BP$6,'Energy Prices'!$F$11:$CR$11,0))/100000,\"\")","v":""},{"$f":"IFERROR('Data Input - Option 3'!BU88*INDEX('Energy Prices'!$F$19:$CR$24,MATCH($B98,'Energy Prices'!$C$19:$C$24,0),MATCH(Calc_Option3!BQ$6,'Energy Prices'!$F$11:$CR$11,0))/100000,\"\")","v":""},{"$f":"IFERROR('Data Input - Option 3'!BV88*INDEX('Energy Prices'!$F$19:$CR$24,MATCH($B98,'Energy Prices'!$C$19:$C$24,0),MATCH(Calc_Option3!BR$6,'Energy Prices'!$F$11:$CR$11,0))/100000,\"\")","v":""},{"$f":"IFERROR('Data Input - Option 3'!BW88*INDEX('Energy Prices'!$F$19:$CR$24,MATCH($B98,'Energy Prices'!$C$19:$C$24,0),MATCH(Calc_Option3!BS$6,'Energy Prices'!$F$11:$CR$11,0))/100000,\"\")","v":""},{"$f":"IFERROR('Data Input - Option 3'!BX88*INDEX('Energy Prices'!$F$19:$CR$24,MATCH($B98,'Energy Prices'!$C$19:$C$24,0),MATCH(Calc_Option3!BT$6,'Energy Prices'!$F$11:$CR$11,0))/100000,\"\")","v":""},{"$f":"IFERROR('Data Input - Option 3'!BY88*INDEX('Energy Prices'!$F$19:$CR$24,MATCH($B98,'Energy Prices'!$C$19:$C$24,0),MATCH(Calc_Option3!BU$6,'Energy Prices'!$F$11:$CR$11,0))/100000,\"\")","v":""},{"$f":"IFERROR('Data Input - Option 3'!BZ88*INDEX('Energy Prices'!$F$19:$CR$24,MATCH($B98,'Energy Prices'!$C$19:$C$24,0),MATCH(Calc_Option3!BV$6,'Energy Prices'!$F$11:$CR$11,0))/100000,\"\")","v":""},{"$f":"IFERROR('Data Input - Option 3'!CA88*INDEX('Energy Prices'!$F$19:$CR$24,MATCH($B98,'Energy Prices'!$C$19:$C$24,0),MATCH(Calc_Option3!BW$6,'Energy Prices'!$F$11:$CR$11,0))/100000,\"\")","v":""},{"$f":"IFERROR('Data Input - Option 3'!CB88*INDEX('Energy Prices'!$F$19:$CR$24,MATCH($B98,'Energy Prices'!$C$19:$C$24,0),MATCH(Calc_Option3!BX$6,'Energy Prices'!$F$11:$CR$11,0))/100000,\"\")","v":""},{"$f":"IFERROR('Data Input - Option 3'!CC88*INDEX('Energy Prices'!$F$19:$CR$24,MATCH($B98,'Energy Prices'!$C$19:$C$24,0),MATCH(Calc_Option3!BY$6,'Energy Prices'!$F$11:$CR$11,0))/100000,\"\")","v":""},{"$f":"IFERROR('Data Input - Option 3'!CD88*INDEX('Energy Prices'!$F$19:$CR$24,MATCH($B98,'Energy Prices'!$C$19:$C$24,0),MATCH(Calc_Option3!BZ$6,'Energy Prices'!$F$11:$CR$11,0))/100000,\"\")","v":""},{"$f":"IFERROR('Data Input - Option 3'!CE88*INDEX('Energy Prices'!$F$19:$CR$24,MATCH($B98,'Energy Prices'!$C$19:$C$24,0),MATCH(Calc_Option3!CA$6,'Energy Prices'!$F$11:$CR$11,0))/100000,\"\")","v":""},{"$f":"IFERROR('Data Input - Option 3'!CF88*INDEX('Energy Prices'!$F$19:$CR$24,MATCH($B98,'Energy Prices'!$C$19:$C$24,0),MATCH(Calc_Option3!CB$6,'Energy Prices'!$F$11:$CR$11,0))/100000,\"\")","v":""},{"$f":"IFERROR('Data Input - Option 3'!CG88*INDEX('Energy Prices'!$F$19:$CR$24,MATCH($B98,'Energy Prices'!$C$19:$C$24,0),MATCH(Calc_Option3!CC$6,'Energy Prices'!$F$11:$CR$11,0))/100000,\"\")","v":""},{"$f":"IFERROR('Data Input - Option 3'!CH88*INDEX('Energy Prices'!$F$19:$CR$24,MATCH($B98,'Energy Prices'!$C$19:$C$24,0),MATCH(Calc_Option3!CD$6,'Energy Prices'!$F$11:$CR$11,0))/100000,\"\")","v":""},{"$f":"IFERROR('Data Input - Option 3'!CI88*INDEX('Energy Prices'!$F$19:$CR$24,MATCH($B98,'Energy Prices'!$C$19:$C$24,0),MATCH(Calc_Option3!CE$6,'Energy Prices'!$F$11:$CR$11,0))/100000,\"\")","v":""},{"$f":"IFERROR('Data Input - Option 3'!CJ88*INDEX('Energy Prices'!$F$19:$CR$24,MATCH($B98,'Energy Prices'!$C$19:$C$24,0),MATCH(Calc_Option3!CF$6,'Energy Prices'!$F$11:$CR$11,0))/100000,\"\")","v":""},{"$f":"IFERROR('Data Input - Option 3'!CK88*INDEX('Energy Prices'!$F$19:$CR$24,MATCH($B98,'Energy Prices'!$C$19:$C$24,0),MATCH(Calc_Option3!CG$6,'Energy Prices'!$F$11:$CR$11,0))/100000,\"\")","v":""},{"$f":"IFERROR('Data Input - Option 3'!CL88*INDEX('Energy Prices'!$F$19:$CR$24,MATCH($B98,'Energy Prices'!$C$19:$C$24,0),MATCH(Calc_Option3!CH$6,'Energy Prices'!$F$11:$CR$11,0))/100000,\"\")","v":""},{"$f":"IFERROR('Data Input - Option 3'!CM88*INDEX('Energy Prices'!$F$19:$CR$24,MATCH($B98,'Energy Prices'!$C$19:$C$24,0),MATCH(Calc_Option3!CI$6,'Energy Prices'!$F$11:$CR$11,0))/100000,\"\")","v":""},{"$f":"IFERROR('Data Input - Option 3'!CN88*INDEX('Energy Prices'!$F$19:$CR$24,MATCH($B98,'Energy Prices'!$C$19:$C$24,0),MATCH(Calc_Option3!CJ$6,'Energy Prices'!$F$11:$CR$11,0))/100000,\"\")","v":""},{"$f":"IFERROR('Data Input - Option 3'!CO88*INDEX('Energy Prices'!$F$19:$CR$24,MATCH($B98,'Energy Prices'!$C$19:$C$24,0),MATCH(Calc_Option3!CK$6,'Energy Prices'!$F$11:$CR$11,0))/100000,\"\")","v":""},{"$f":"IFERROR('Data Input - Option 3'!CP88*INDEX('Energy Prices'!$F$19:$CR$24,MATCH($B98,'Energy Prices'!$C$19:$C$24,0),MATCH(Calc_Option3!CL$6,'Energy Prices'!$F$11:$CR$11,0))/100000,\"\")","v":""},{"$f":"IFERROR('Data Input - Option 3'!CQ88*INDEX('Energy Prices'!$F$19:$CR$24,MATCH($B98,'Energy Prices'!$C$19:$C$24,0),MATCH(Calc_Option3!CM$6,'Energy Prices'!$F$11:$CR$11,0))/100000,\"\")","v":""},{"$f":"IFERROR('Data Input - Option 3'!CR88*INDEX('Energy Prices'!$F$19:$CR$24,MATCH($B98,'Energy Prices'!$C$19:$C$24,0),MATCH(Calc_Option3!CN$6,'Energy Prices'!$F$11:$CR$11,0))/100000,\"\")","v":""},{"$f":"IFERROR('Data Input - Option 3'!CS88*INDEX('Energy Prices'!$F$19:$CR$24,MATCH($B98,'Energy Prices'!$C$19:$C$24,0),MATCH(Calc_Option3!CO$6,'Energy Prices'!$F$11:$CR$11,0))/100000,\"\")","v":""},{"$f":"IFERROR('Data Input - Option 3'!CT88*INDEX('Energy Prices'!$F$19:$CR$24,MATCH($B98,'Energy Prices'!$C$19:$C$24,0),MATCH(Calc_Option3!CP$6,'Energy Prices'!$F$11:$CR$11,0))/100000,\"\")","v":""},{"$f":"IFERROR('Data Input - Option 3'!CU88*INDEX('Energy Prices'!$F$19:$CR$24,MATCH($B98,'Energy Prices'!$C$19:$C$24,0),MATCH(Calc_Option3!CQ$6,'Energy Prices'!$F$11:$CR$11,0))/100000,\"\")","v":""},{"$f":"IFERROR('Data Input - Option 3'!CV88*INDEX('Energy Prices'!$F$19:$CR$24,MATCH($B98,'Energy Prices'!$C$19:$C$24,0),MATCH(Calc_Option3!CR$6,'Energy Prices'!$F$11:$CR$11,0))/100000,\"\")","v":""},{"$f":"IFERROR('Data Input - Option 3'!CW88*INDEX('Energy Prices'!$F$19:$CR$24,MATCH($B98,'Energy Prices'!$C$19:$C$24,0),MATCH(Calc_Option3!CS$6,'Energy Prices'!$F$11:$CR$11,0))/100000,\"\")","v":""},{"$f":"IFERROR('Data Input - Option 3'!CX88*INDEX('Energy Prices'!$F$19:$CR$24,MATCH($B98,'Energy Prices'!$C$19:$C$24,0),MATCH(Calc_Option3!CT$6,'Energy Prices'!$F$11:$CR$11,0))/100000,\"\")","v":""},{"$f":"IFERROR('Data Input - Option 3'!CY88*INDEX('Energy Prices'!$F$19:$CR$24,MATCH($B98,'Energy Prices'!$C$19:$C$24,0),MATCH(Calc_Option3!CU$6,'Energy Prices'!$F$11:$CR$11,0))/100000,\"\")","v":""},{"$f":"IFERROR('Data Input - Option 3'!CZ88*INDEX('Energy Prices'!$F$19:$CR$24,MATCH($B98,'Energy Prices'!$C$19:$C$24,0),MATCH(Calc_Option3!CV$6,'Energy Prices'!$F$11:$CR$11,0))/100000,\"\")","v":""},{"$f":"IFERROR('Data Input - Option 3'!DA88*INDEX('Energy Prices'!$F$19:$CR$24,MATCH($B98,'Energy Prices'!$C$19:$C$24,0),MATCH(Calc_Option3!CW$6,'Energy Prices'!$F$11:$CR$11,0))/100000,\"\")","v":""},{"$f":"IFERROR('Data Input - Option 3'!DB88*INDEX('Energy Prices'!$F$19:$CR$24,MATCH($B98,'Energy Prices'!$C$19:$C$24,0),MATCH(Calc_Option3!CX$6,'Energy Prices'!$F$11:$CR$11,0))/100000,\"\")","v":""},{"$f":"IFERROR('Data Input - Option 3'!DC88*INDEX('Energy Prices'!$F$19:$CR$24,MATCH($B98,'Energy Prices'!$C$19:$C$24,0),MATCH(Calc_Option3!CY$6,'Energy Prices'!$F$11:$CR$11,0))/100000,\"\")","v":""}]
[null,"Road - Diesel","£000's",{"$f":"IFERROR('Data Input - Option 3'!H89*INDEX('Energy Prices'!$F$19:$CR$24,MATCH($B99,'Energy Prices'!$C$19:$C$24,0),MATCH(Calc_Option3!D$6,'Energy Prices'!$F$11:$CR$11,0))/100000,\"\")","v":0},{"$f":"IFERROR('Data Input - Option 3'!I89*INDEX('Energy Prices'!$F$19:$CR$24,MATCH($B99,'Energy Prices'!$C$19:$C$24,0),MATCH(Calc_Option3!E$6,'Energy Prices'!$F$11:$CR$11,0))/100000,\"\")","v":0},{"$f":"IFERROR('Data Input - Option 3'!J89*INDEX('Energy Prices'!$F$19:$CR$24,MATCH($B99,'Energy Prices'!$C$19:$C$24,0),MATCH(Calc_Option3!F$6,'Energy Prices'!$F$11:$CR$11,0))/100000,\"\")","v":0},{"$f":"IFERROR('Data Input - Option 3'!K89*INDEX('Energy Prices'!$F$19:$CR$24,MATCH($B99,'Energy Prices'!$C$19:$C$24,0),MATCH(Calc_Option3!G$6,'Energy Prices'!$F$11:$CR$11,0))/100000,\"\")","v":0},{"$f":"IFERROR('Data Input - Option 3'!L89*INDEX('Energy Prices'!$F$19:$CR$24,MATCH($B99,'Energy Prices'!$C$19:$C$24,0),MATCH(Calc_Option3!H$6,'Energy Prices'!$F$11:$CR$11,0))/100000,\"\")","v":0},{"$f":"IFERROR('Data Input - Option 3'!M89*INDEX('Energy Prices'!$F$19:$CR$24,MATCH($B99,'Energy Prices'!$C$19:$C$24,0),MATCH(Calc_Option3!I$6,'Energy Prices'!$F$11:$CR$11,0))/100000,\"\")","v":0},{"$f":"IFERROR('Data Input - Option 3'!N89*INDEX('Energy Prices'!$F$19:$CR$24,MATCH($B99,'Energy Prices'!$C$19:$C$24,0),MATCH(Calc_Option3!J$6,'Energy Prices'!$F$11:$CR$11,0))/100000,\"\")","v":0},{"$f":"IFERROR('Data Input - Option 3'!O89*INDEX('Energy Prices'!$F$19:$CR$24,MATCH($B99,'Energy Prices'!$C$19:$C$24,0),MATCH(Calc_Option3!K$6,'Energy Prices'!$F$11:$CR$11,0))/100000,\"\")","v":0},{"$f":"IFERROR('Data Input - Option 3'!P89*INDEX('Energy Prices'!$F$19:$CR$24,MATCH($B99,'Energy Prices'!$C$19:$C$24,0),MATCH(Calc_Option3!L$6,'Energy Prices'!$F$11:$CR$11,0))/100000,\"\")","v":0},{"$f":"IFERROR('Data Input - Option 3'!Q89*INDEX('Energy Prices'!$F$19:$CR$24,MATCH($B99,'Energy Prices'!$C$19:$C$24,0),MATCH(Calc_Option3!M$6,'Energy Prices'!$F$11:$CR$11,0))/100000,\"\")","v":0},{"$f":"IFERROR('Data Input - Option 3'!R89*INDEX('Energy Prices'!$F$19:$CR$24,MATCH($B99,'Energy Prices'!$C$19:$C$24,0),MATCH(Calc_Option3!N$6,'Energy Prices'!$F$11:$CR$11,0))/100000,\"\")","v":0},{"$f":"IFERROR('Data Input - Option 3'!S89*INDEX('Energy Prices'!$F$19:$CR$24,MATCH($B99,'Energy Prices'!$C$19:$C$24,0),MATCH(Calc_Option3!O$6,'Energy Prices'!$F$11:$CR$11,0))/100000,\"\")","v":0},{"$f":"IFERROR('Data Input - Option 3'!T89*INDEX('Energy Prices'!$F$19:$CR$24,MATCH($B99,'Energy Prices'!$C$19:$C$24,0),MATCH(Calc_Option3!P$6,'Energy Prices'!$F$11:$CR$11,0))/100000,\"\")","v":0},{"$f":"IFERROR('Data Input - Option 3'!U89*INDEX('Energy Prices'!$F$19:$CR$24,MATCH($B99,'Energy Prices'!$C$19:$C$24,0),MATCH(Calc_Option3!Q$6,'Energy Prices'!$F$11:$CR$11,0))/100000,\"\")","v":0},{"$f":"IFERROR('Data Input - Option 3'!V89*INDEX('Energy Prices'!$F$19:$CR$24,MATCH($B99,'Energy Prices'!$C$19:$C$24,0),MATCH(Calc_Option3!R$6,'Energy Prices'!$F$11:$CR$11,0))/100000,\"\")","v":0},{"$f":"IFERROR('Data Input - Option 3'!W89*INDEX('Energy Prices'!$F$19:$CR$24,MATCH($B99,'Energy Prices'!$C$19:$C$24,0),MATCH(Calc_Option3!S$6,'Energy Prices'!$F$11:$CR$11,0))/100000,\"\")","v":0},{"$f":"IFERROR('Data Input - Option 3'!X89*INDEX('Energy Prices'!$F$19:$CR$24,MATCH($B99,'Energy Prices'!$C$19:$C$24,0),MATCH(Calc_Option3!T$6,'Energy Prices'!$F$11:$CR$11,0))/100000,\"\")","v":0},{"$f":"IFERROR('Data Input - Option 3'!Y89*INDEX('Energy Prices'!$F$19:$CR$24,MATCH($B99,'Energy Prices'!$C$19:$C$24,0),MATCH(Calc_Option3!U$6,'Energy Prices'!$F$11:$CR$11,0))/100000,\"\")","v":0},{"$f":"IFERROR('Data Input - Option 3'!Z89*INDEX('Energy Prices'!$F$19:$CR$24,MATCH($B99,'Energy Prices'!$C$19:$C$24,0),MATCH(Calc_Option3!V$6,'Energy Prices'!$F$11:$CR$11,0))/100000,\"\")","v":0},{"$f":"IFERROR('Data Input - Option 3'!AA89*INDEX('Energy Prices'!$F$19:$CR$24,MATCH($B99,'Energy Prices'!$C$19:$C$24,0),MATCH(Calc_Option3!W$6,'Energy Prices'!$F$11:$CR$11,0))/100000,\"\")","v":0},{"$f":"IFERROR('Data Input - Option 3'!AB89*INDEX('Energy Prices'!$F$19:$CR$24,MATCH($B99,'Energy Prices'!$C$19:$C$24,0),MATCH(Calc_Option3!X$6,'Energy Prices'!$F$11:$CR$11,0))/100000,\"\")","v":0},{"$f":"IFERROR('Data Input - Option 3'!AC89*INDEX('Energy Prices'!$F$19:$CR$24,MATCH($B99,'Energy Prices'!$C$19:$C$24,0),MATCH(Calc_Option3!Y$6,'Energy Prices'!$F$11:$CR$11,0))/100000,\"\")","v":0},{"$f":"IFERROR('Data Input - Option 3'!AD89*INDEX('Energy Prices'!$F$19:$CR$24,MATCH($B99,'Energy Prices'!$C$19:$C$24,0),MATCH(Calc_Option3!Z$6,'Energy Prices'!$F$11:$CR$11,0))/100000,\"\")","v":0},{"$f":"IFERROR('Data Input - Option 3'!AE89*INDEX('Energy Prices'!$F$19:$CR$24,MATCH($B99,'Energy Prices'!$C$19:$C$24,0),MATCH(Calc_Option3!AA$6,'Energy Prices'!$F$11:$CR$11,0))/100000,\"\")","v":0},{"$f":"IFERROR('Data Input - Option 3'!AF89*INDEX('Energy Prices'!$F$19:$CR$24,MATCH($B99,'Energy Prices'!$C$19:$C$24,0),MATCH(Calc_Option3!AB$6,'Energy Prices'!$F$11:$CR$11,0))/100000,\"\")","v":0},{"$f":"IFERROR('Data Input - Option 3'!AG89*INDEX('Energy Prices'!$F$19:$CR$24,MATCH($B99,'Energy Prices'!$C$19:$C$24,0),MATCH(Calc_Option3!AC$6,'Energy Prices'!$F$11:$CR$11,0))/100000,\"\")","v":0},{"$f":"IFERROR('Data Input - Option 3'!AH89*INDEX('Energy Prices'!$F$19:$CR$24,MATCH($B99,'Energy Prices'!$C$19:$C$24,0),MATCH(Calc_Option3!AD$6,'Energy Prices'!$F$11:$CR$11,0))/100000,\"\")","v":0},{"$f":"IFERROR('Data Input - Option 3'!AI89*INDEX('Energy Prices'!$F$19:$CR$24,MATCH($B99,'Energy Prices'!$C$19:$C$24,0),MATCH(Calc_Option3!AE$6,'Energy Prices'!$F$11:$CR$11,0))/100000,\"\")","v":0},{"$f":"IFERROR('Data Input - Option 3'!AJ89*INDEX('Energy Prices'!$F$19:$CR$24,MATCH($B99,'Energy Prices'!$C$19:$C$24,0),MATCH(Calc_Option3!AF$6,'Energy Prices'!$F$11:$CR$11,0))/100000,\"\")","v":0},{"$f":"IFERROR('Data Input - Option 3'!AK89*INDEX('Energy Prices'!$F$19:$CR$24,MATCH($B99,'Energy Prices'!$C$19:$C$24,0),MATCH(Calc_Option3!AG$6,'Energy Prices'!$F$11:$CR$11,0))/100000,\"\")","v":0},{"$f":"IFERROR('Data Input - Option 3'!AL89*INDEX('Energy Prices'!$F$19:$CR$24,MATCH($B99,'Energy Prices'!$C$19:$C$24,0),MATCH(Calc_Option3!AH$6,'Energy Prices'!$F$11:$CR$11,0))/100000,\"\")","v":0},{"$f":"IFERROR('Data Input - Option 3'!AM89*INDEX('Energy Prices'!$F$19:$CR$24,MATCH($B99,'Energy Prices'!$C$19:$C$24,0),MATCH(Calc_Option3!AI$6,'Energy Prices'!$F$11:$CR$11,0))/100000,\"\")","v":""},{"$f":"IFERROR('Data Input - Option 3'!AN89*INDEX('Energy Prices'!$F$19:$CR$24,MATCH($B99,'Energy Prices'!$C$19:$C$24,0),MATCH(Calc_Option3!AJ$6,'Energy Prices'!$F$11:$CR$11,0))/100000,\"\")","v":""},{"$f":"IFERROR('Data Input - Option 3'!AO89*INDEX('Energy Prices'!$F$19:$CR$24,MATCH($B99,'Energy Prices'!$C$19:$C$24,0),MATCH(Calc_Option3!AK$6,'Energy Prices'!$F$11:$CR$11,0))/100000,\"\")","v":""},{"$f":"IFERROR('Data Input - Option 3'!AP89*INDEX('Energy Prices'!$F$19:$CR$24,MATCH($B99,'Energy Prices'!$C$19:$C$24,0),MATCH(Calc_Option3!AL$6,'Energy Prices'!$F$11:$CR$11,0))/100000,\"\")","v":""},{"$f":"IFERROR('Data Input - Option 3'!AQ89*INDEX('Energy Prices'!$F$19:$CR$24,MATCH($B99,'Energy Prices'!$C$19:$C$24,0),MATCH(Calc_Option3!AM$6,'Energy Prices'!$F$11:$CR$11,0))/100000,\"\")","v":""},{"$f":"IFERROR('Data Input - Option 3'!AR89*INDEX('Energy Prices'!$F$19:$CR$24,MATCH($B99,'Energy Prices'!$C$19:$C$24,0),MATCH(Calc_Option3!AN$6,'Energy Prices'!$F$11:$CR$11,0))/100000,\"\")","v":""},{"$f":"IFERROR('Data Input - Option 3'!AS89*INDEX('Energy Prices'!$F$19:$CR$24,MATCH($B99,'Energy Prices'!$C$19:$C$24,0),MATCH(Calc_Option3!AO$6,'Energy Prices'!$F$11:$CR$11,0))/100000,\"\")","v":""},{"$f":"IFERROR('Data Input - Option 3'!AT89*INDEX('Energy Prices'!$F$19:$CR$24,MATCH($B99,'Energy Prices'!$C$19:$C$24,0),MATCH(Calc_Option3!AP$6,'Energy Prices'!$F$11:$CR$11,0))/100000,\"\")","v":""},{"$f":"IFERROR('Data Input - Option 3'!AU89*INDEX('Energy Prices'!$F$19:$CR$24,MATCH($B99,'Energy Prices'!$C$19:$C$24,0),MATCH(Calc_Option3!AQ$6,'Energy Prices'!$F$11:$CR$11,0))/100000,\"\")","v":""},{"$f":"IFERROR('Data Input - Option 3'!AV89*INDEX('Energy Prices'!$F$19:$CR$24,MATCH($B99,'Energy Prices'!$C$19:$C$24,0),MATCH(Calc_Option3!AR$6,'Energy Prices'!$F$11:$CR$11,0))/100000,\"\")","v":""},{"$f":"IFERROR('Data Input - Option 3'!AW89*INDEX('Energy Prices'!$F$19:$CR$24,MATCH($B99,'Energy Prices'!$C$19:$C$24,0),MATCH(Calc_Option3!AS$6,'Energy Prices'!$F$11:$CR$11,0))/100000,\"\")","v":""},{"$f":"IFERROR('Data Input - Option 3'!AX89*INDEX('Energy Prices'!$F$19:$CR$24,MATCH($B99,'Energy Prices'!$C$19:$C$24,0),MATCH(Calc_Option3!AT$6,'Energy Prices'!$F$11:$CR$11,0))/100000,\"\")","v":""},{"$f":"IFERROR('Data Input - Option 3'!AY89*INDEX('Energy Prices'!$F$19:$CR$24,MATCH($B99,'Energy Prices'!$C$19:$C$24,0),MATCH(Calc_Option3!AU$6,'Energy Prices'!$F$11:$CR$11,0))/100000,\"\")","v":""},{"$f":"IFERROR('Data Input - Option 3'!AZ89*INDEX('Energy Prices'!$F$19:$CR$24,MATCH($B99,'Energy Prices'!$C$19:$C$24,0),MATCH(Calc_Option3!AV$6,'Energy Prices'!$F$11:$CR$11,0))/100000,\"\")","v":""},{"$f":"IFERROR('Data Input - Option 3'!BA89*INDEX('Energy Prices'!$F$19:$CR$24,MATCH($B99,'Energy Prices'!$C$19:$C$24,0),MATCH(Calc_Option3!AW$6,'Energy Prices'!$F$11:$CR$11,0))/100000,\"\")","v":""},{"$f":"IFERROR('Data Input - Option 3'!BB89*INDEX('Energy Prices'!$F$19:$CR$24,MATCH($B99,'Energy Prices'!$C$19:$C$24,0),MATCH(Calc_Option3!AX$6,'Energy Prices'!$F$11:$CR$11,0))/100000,\"\")","v":""},{"$f":"IFERROR('Data Input - Option 3'!BC89*INDEX('Energy Prices'!$F$19:$CR$24,MATCH($B99,'Energy Prices'!$C$19:$C$24,0),MATCH(Calc_Option3!AY$6,'Energy Prices'!$F$11:$CR$11,0))/100000,\"\")","v":""},{"$f":"IFERROR('Data Input - Option 3'!BD89*INDEX('Energy Prices'!$F$19:$CR$24,MATCH($B99,'Energy Prices'!$C$19:$C$24,0),MATCH(Calc_Option3!AZ$6,'Energy Prices'!$F$11:$CR$11,0))/100000,\"\")","v":""},{"$f":"IFERROR('Data Input - Option 3'!BE89*INDEX('Energy Prices'!$F$19:$CR$24,MATCH($B99,'Energy Prices'!$C$19:$C$24,0),MATCH(Calc_Option3!BA$6,'Energy Prices'!$F$11:$CR$11,0))/100000,\"\")","v":""},{"$f":"IFERROR('Data Input - Option 3'!BF89*INDEX('Energy Prices'!$F$19:$CR$24,MATCH($B99,'Energy Prices'!$C$19:$C$24,0),MATCH(Calc_Option3!BB$6,'Energy Prices'!$F$11:$CR$11,0))/100000,\"\")","v":""},{"$f":"IFERROR('Data Input - Option 3'!BG89*INDEX('Energy Prices'!$F$19:$CR$24,MATCH($B99,'Energy Prices'!$C$19:$C$24,0),MATCH(Calc_Option3!BC$6,'Energy Prices'!$F$11:$CR$11,0))/100000,\"\")","v":""},{"$f":"IFERROR('Data Input - Option 3'!BH89*INDEX('Energy Prices'!$F$19:$CR$24,MATCH($B99,'Energy Prices'!$C$19:$C$24,0),MATCH(Calc_Option3!BD$6,'Energy Prices'!$F$11:$CR$11,0))/100000,\"\")","v":""},{"$f":"IFERROR('Data Input - Option 3'!BI89*INDEX('Energy Prices'!$F$19:$CR$24,MATCH($B99,'Energy Prices'!$C$19:$C$24,0),MATCH(Calc_Option3!BE$6,'Energy Prices'!$F$11:$CR$11,0))/100000,\"\")","v":""},{"$f":"IFERROR('Data Input - Option 3'!BJ89*INDEX('Energy Prices'!$F$19:$CR$24,MATCH($B99,'Energy Prices'!$C$19:$C$24,0),MATCH(Calc_Option3!BF$6,'Energy Prices'!$F$11:$CR$11,0))/100000,\"\")","v":""},{"$f":"IFERROR('Data Input - Option 3'!BK89*INDEX('Energy Prices'!$F$19:$CR$24,MATCH($B99,'Energy Prices'!$C$19:$C$24,0),MATCH(Calc_Option3!BG$6,'Energy Prices'!$F$11:$CR$11,0))/100000,\"\")","v":""},{"$f":"IFERROR('Data Input - Option 3'!BL89*INDEX('Energy Prices'!$F$19:$CR$24,MATCH($B99,'Energy Prices'!$C$19:$C$24,0),MATCH(Calc_Option3!BH$6,'Energy Prices'!$F$11:$CR$11,0))/100000,\"\")","v":""},{"$f":"IFERROR('Data Input - Option 3'!BM89*INDEX('Energy Prices'!$F$19:$CR$24,MATCH($B99,'Energy Prices'!$C$19:$C$24,0),MATCH(Calc_Option3!BI$6,'Energy Prices'!$F$11:$CR$11,0))/100000,\"\")","v":""},{"$f":"IFERROR('Data Input - Option 3'!BN89*INDEX('Energy Prices'!$F$19:$CR$24,MATCH($B99,'Energy Prices'!$C$19:$C$24,0),MATCH(Calc_Option3!BJ$6,'Energy Prices'!$F$11:$CR$11,0))/100000,\"\")","v":""},{"$f":"IFERROR('Data Input - Option 3'!BO89*INDEX('Energy Prices'!$F$19:$CR$24,MATCH($B99,'Energy Prices'!$C$19:$C$24,0),MATCH(Calc_Option3!BK$6,'Energy Prices'!$F$11:$CR$11,0))/100000,\"\")","v":""},{"$f":"IFERROR('Data Input - Option 3'!BP89*INDEX('Energy Prices'!$F$19:$CR$24,MATCH($B99,'Energy Prices'!$C$19:$C$24,0),MATCH(Calc_Option3!BL$6,'Energy Prices'!$F$11:$CR$11,0))/100000,\"\")","v":""},{"$f":"IFERROR('Data Input - Option 3'!BQ89*INDEX('Energy Prices'!$F$19:$CR$24,MATCH($B99,'Energy Prices'!$C$19:$C$24,0),MATCH(Calc_Option3!BM$6,'Energy Prices'!$F$11:$CR$11,0))/100000,\"\")","v":""},{"$f":"IFERROR('Data Input - Option 3'!BR89*INDEX('Energy Prices'!$F$19:$CR$24,MATCH($B99,'Energy Prices'!$C$19:$C$24,0),MATCH(Calc_Option3!BN$6,'Energy Prices'!$F$11:$CR$11,0))/100000,\"\")","v":""},{"$f":"IFERROR('Data Input - Option 3'!BS89*INDEX('Energy Prices'!$F$19:$CR$24,MATCH($B99,'Energy Prices'!$C$19:$C$24,0),MATCH(Calc_Option3!BO$6,'Energy Prices'!$F$11:$CR$11,0))/100000,\"\")","v":""},{"$f":"IFERROR('Data Input - Option 3'!BT89*INDEX('Energy Prices'!$F$19:$CR$24,MATCH($B99,'Energy Prices'!$C$19:$C$24,0),MATCH(Calc_Option3!BP$6,'Energy Prices'!$F$11:$CR$11,0))/100000,\"\")","v":""},{"$f":"IFERROR('Data Input - Option 3'!BU89*INDEX('Energy Prices'!$F$19:$CR$24,MATCH($B99,'Energy Prices'!$C$19:$C$24,0),MATCH(Calc_Option3!BQ$6,'Energy Prices'!$F$11:$CR$11,0))/100000,\"\")","v":""},{"$f":"IFERROR('Data Input - Option 3'!BV89*INDEX('Energy Prices'!$F$19:$CR$24,MATCH($B99,'Energy Prices'!$C$19:$C$24,0),MATCH(Calc_Option3!BR$6,'Energy Prices'!$F$11:$CR$11,0))/100000,\"\")","v":""},{"$f":"IFERROR('Data Input - Option 3'!BW89*INDEX('Energy Prices'!$F$19:$CR$24,MATCH($B99,'Energy Prices'!$C$19:$C$24,0),MATCH(Calc_Option3!BS$6,'Energy Prices'!$F$11:$CR$11,0))/100000,\"\")","v":""},{"$f":"IFERROR('Data Input - Option 3'!BX89*INDEX('Energy Prices'!$F$19:$CR$24,MATCH($B99,'Energy Prices'!$C$19:$C$24,0),MATCH(Calc_Option3!BT$6,'Energy Prices'!$F$11:$CR$11,0))/100000,\"\")","v":""},{"$f":"IFERROR('Data Input - Option 3'!BY89*INDEX('Energy Prices'!$F$19:$CR$24,MATCH($B99,'Energy Prices'!$C$19:$C$24,0),MATCH(Calc_Option3!BU$6,'Energy Prices'!$F$11:$CR$11,0))/100000,\"\")","v":""},{"$f":"IFERROR('Data Input - Option 3'!BZ89*INDEX('Energy Prices'!$F$19:$CR$24,MATCH($B99,'Energy Prices'!$C$19:$C$24,0),MATCH(Calc_Option3!BV$6,'Energy Prices'!$F$11:$CR$11,0))/100000,\"\")","v":""},{"$f":"IFERROR('Data Input - Option 3'!CA89*INDEX('Energy Prices'!$F$19:$CR$24,MATCH($B99,'Energy Prices'!$C$19:$C$24,0),MATCH(Calc_Option3!BW$6,'Energy Prices'!$F$11:$CR$11,0))/100000,\"\")","v":""},{"$f":"IFERROR('Data Input - Option 3'!CB89*INDEX('Energy Prices'!$F$19:$CR$24,MATCH($B99,'Energy Prices'!$C$19:$C$24,0),MATCH(Calc_Option3!BX$6,'Energy Prices'!$F$11:$CR$11,0))/100000,\"\")","v":""},{"$f":"IFERROR('Data Input - Option 3'!CC89*INDEX('Energy Prices'!$F$19:$CR$24,MATCH($B99,'Energy Prices'!$C$19:$C$24,0),MATCH(Calc_Option3!BY$6,'Energy Prices'!$F$11:$CR$11,0))/100000,\"\")","v":""},{"$f":"IFERROR('Data Input - Option 3'!CD89*INDEX('Energy Prices'!$F$19:$CR$24,MATCH($B99,'Energy Prices'!$C$19:$C$24,0),MATCH(Calc_Option3!BZ$6,'Energy Prices'!$F$11:$CR$11,0))/100000,\"\")","v":""},{"$f":"IFERROR('Data Input - Option 3'!CE89*INDEX('Energy Prices'!$F$19:$CR$24,MATCH($B99,'Energy Prices'!$C$19:$C$24,0),MATCH(Calc_Option3!CA$6,'Energy Prices'!$F$11:$CR$11,0))/100000,\"\")","v":""},{"$f":"IFERROR('Data Input - Option 3'!CF89*INDEX('Energy Prices'!$F$19:$CR$24,MATCH($B99,'Energy Prices'!$C$19:$C$24,0),MATCH(Calc_Option3!CB$6,'Energy Prices'!$F$11:$CR$11,0))/100000,\"\")","v":""},{"$f":"IFERROR('Data Input - Option 3'!CG89*INDEX('Energy Prices'!$F$19:$CR$24,MATCH($B99,'Energy Prices'!$C$19:$C$24,0),MATCH(Calc_Option3!CC$6,'Energy Prices'!$F$11:$CR$11,0))/100000,\"\")","v":""},{"$f":"IFERROR('Data Input - Option 3'!CH89*INDEX('Energy Prices'!$F$19:$CR$24,MATCH($B99,'Energy Prices'!$C$19:$C$24,0),MATCH(Calc_Option3!CD$6,'Energy Prices'!$F$11:$CR$11,0))/100000,\"\")","v":""},{"$f":"IFERROR('Data Input - Option 3'!CI89*INDEX('Energy Prices'!$F$19:$CR$24,MATCH($B99,'Energy Prices'!$C$19:$C$24,0),MATCH(Calc_Option3!CE$6,'Energy Prices'!$F$11:$CR$11,0))/100000,\"\")","v":""},{"$f":"IFERROR('Data Input - Option 3'!CJ89*INDEX('Energy Prices'!$F$19:$CR$24,MATCH($B99,'Energy Prices'!$C$19:$C$24,0),MATCH(Calc_Option3!CF$6,'Energy Prices'!$F$11:$CR$11,0))/100000,\"\")","v":""},{"$f":"IFERROR('Data Input - Option 3'!CK89*INDEX('Energy Prices'!$F$19:$CR$24,MATCH($B99,'Energy Prices'!$C$19:$C$24,0),MATCH(Calc_Option3!CG$6,'Energy Prices'!$F$11:$CR$11,0))/100000,\"\")","v":""},{"$f":"IFERROR('Data Input - Option 3'!CL89*INDEX('Energy Prices'!$F$19:$CR$24,MATCH($B99,'Energy Prices'!$C$19:$C$24,0),MATCH(Calc_Option3!CH$6,'Energy Prices'!$F$11:$CR$11,0))/100000,\"\")","v":""},{"$f":"IFERROR('Data Input - Option 3'!CM89*INDEX('Energy Prices'!$F$19:$CR$24,MATCH($B99,'Energy Prices'!$C$19:$C$24,0),MATCH(Calc_Option3!CI$6,'Energy Prices'!$F$11:$CR$11,0))/100000,\"\")","v":""},{"$f":"IFERROR('Data Input - Option 3'!CN89*INDEX('Energy Prices'!$F$19:$CR$24,MATCH($B99,'Energy Prices'!$C$19:$C$24,0),MATCH(Calc_Option3!CJ$6,'Energy Prices'!$F$11:$CR$11,0))/100000,\"\")","v":""},{"$f":"IFERROR('Data Input - Option 3'!CO89*INDEX('Energy Prices'!$F$19:$CR$24,MATCH($B99,'Energy Prices'!$C$19:$C$24,0),MATCH(Calc_Option3!CK$6,'Energy Prices'!$F$11:$CR$11,0))/100000,\"\")","v":""},{"$f":"IFERROR('Data Input - Option 3'!CP89*INDEX('Energy Prices'!$F$19:$CR$24,MATCH($B99,'Energy Prices'!$C$19:$C$24,0),MATCH(Calc_Option3!CL$6,'Energy Prices'!$F$11:$CR$11,0))/100000,\"\")","v":""},{"$f":"IFERROR('Data Input - Option 3'!CQ89*INDEX('Energy Prices'!$F$19:$CR$24,MATCH($B99,'Energy Prices'!$C$19:$C$24,0),MATCH(Calc_Option3!CM$6,'Energy Prices'!$F$11:$CR$11,0))/100000,\"\")","v":""},{"$f":"IFERROR('Data Input - Option 3'!CR89*INDEX('Energy Prices'!$F$19:$CR$24,MATCH($B99,'Energy Prices'!$C$19:$C$24,0),MATCH(Calc_Option3!CN$6,'Energy Prices'!$F$11:$CR$11,0))/100000,\"\")","v":""},{"$f":"IFERROR('Data Input - Option 3'!CS89*INDEX('Energy Prices'!$F$19:$CR$24,MATCH($B99,'Energy Prices'!$C$19:$C$24,0),MATCH(Calc_Option3!CO$6,'Energy Prices'!$F$11:$CR$11,0))/100000,\"\")","v":""},{"$f":"IFERROR('Data Input - Option 3'!CT89*INDEX('Energy Prices'!$F$19:$CR$24,MATCH($B99,'Energy Prices'!$C$19:$C$24,0),MATCH(Calc_Option3!CP$6,'Energy Prices'!$F$11:$CR$11,0))/100000,\"\")","v":""},{"$f":"IFERROR('Data Input - Option 3'!CU89*INDEX('Energy Prices'!$F$19:$CR$24,MATCH($B99,'Energy Prices'!$C$19:$C$24,0),MATCH(Calc_Option3!CQ$6,'Energy Prices'!$F$11:$CR$11,0))/100000,\"\")","v":""},{"$f":"IFERROR('Data Input - Option 3'!CV89*INDEX('Energy Prices'!$F$19:$CR$24,MATCH($B99,'Energy Prices'!$C$19:$C$24,0),MATCH(Calc_Option3!CR$6,'Energy Prices'!$F$11:$CR$11,0))/100000,\"\")","v":""},{"$f":"IFERROR('Data Input - Option 3'!CW89*INDEX('Energy Prices'!$F$19:$CR$24,MATCH($B99,'Energy Prices'!$C$19:$C$24,0),MATCH(Calc_Option3!CS$6,'Energy Prices'!$F$11:$CR$11,0))/100000,\"\")","v":""},{"$f":"IFERROR('Data Input - Option 3'!CX89*INDEX('Energy Prices'!$F$19:$CR$24,MATCH($B99,'Energy Prices'!$C$19:$C$24,0),MATCH(Calc_Option3!CT$6,'Energy Prices'!$F$11:$CR$11,0))/100000,\"\")","v":""},{"$f":"IFERROR('Data Input - Option 3'!CY89*INDEX('Energy Prices'!$F$19:$CR$24,MATCH($B99,'Energy Prices'!$C$19:$C$24,0),MATCH(Calc_Option3!CU$6,'Energy Prices'!$F$11:$CR$11,0))/100000,\"\")","v":""},{"$f":"IFERROR('Data Input - Option 3'!CZ89*INDEX('Energy Prices'!$F$19:$CR$24,MATCH($B99,'Energy Prices'!$C$19:$C$24,0),MATCH(Calc_Option3!CV$6,'Energy Prices'!$F$11:$CR$11,0))/100000,\"\")","v":""},{"$f":"IFERROR('Data Input - Option 3'!DA89*INDEX('Energy Prices'!$F$19:$CR$24,MATCH($B99,'Energy Prices'!$C$19:$C$24,0),MATCH(Calc_Option3!CW$6,'Energy Prices'!$F$11:$CR$11,0))/100000,\"\")","v":""},{"$f":"IFERROR('Data Input - Option 3'!DB89*INDEX('Energy Prices'!$F$19:$CR$24,MATCH($B99,'Energy Prices'!$C$19:$C$24,0),MATCH(Calc_Option3!CX$6,'Energy Prices'!$F$11:$CR$11,0))/100000,\"\")","v":""},{"$f":"IFERROR('Data Input - Option 3'!DC89*INDEX('Energy Prices'!$F$19:$CR$24,MATCH($B99,'Energy Prices'!$C$19:$C$24,0),MATCH(Calc_Option3!CY$6,'Energy Prices'!$F$11:$CR$11,0))/100000,\"\")","v":""}]
[]
[null,"Discounted energy","£000's",{"$f":"SUM(D94:D99)*D$7","v":1386.3604051662808},{"$f":"SUM(E94:E99)*E$7","v":1427.3689546833671},1431.5397481023012,1458.7793296206007,1453.7662602883133,1478.4559258963086,1491.6543521552962,1471.7735190697556,0,0,0,0,0,0,0,0,0,0,0,0,0,0,0,0,0,0,0,0,0,0,0,0,0,0,0,0,0,0,0,0,0,0,0,0,0,0,0,0,0,0,0,0,0,0,0,0,0,0,0,0,{"$f":"SUM(BL94:BL99)*BL$7","v":0},0,0,0,0,0,0,0,0,0,0,0,0,0,0,0,0,0,0,0,0,0,0,0,0,0,0,0,0,0,0,0,0,0,0,0,0,0,0,0]
[]
[null,"Air pollutant emissions- value"]
[null,{"$f":"B61","v":"Sox 2019"},"£000's",{"$f":"IFERROR(IF(OR($C$110=FALSE,LEFT($B104,3)<>\"NOX\"),D53*INDEX('Damage costs'!$W$16:$W$43,MATCH($B104,'Damage costs'!$C$16:$C$43,0))/1000,D53*INDEX('Damage costs'!$AA$16:$AA$43,MATCH($B104,'Damage costs'!$C$16:$C$43,0))/1000),\"\")","v":0.42635869259667258},{"$f":"IFERROR(IF(OR($C$110=FALSE,LEFT($B104,3)<>\"NOX\"),E53*INDEX('Damage costs'!$W$16:$W$43,MATCH($B104,'Damage costs'!$C$16:$C$43,0))/1000,E53*INDEX('Damage costs'!$AA$16:$AA$43,MATCH($B104,'Damage costs'!$C$16:$C$43,0))/1000),\"\")","v":0.42635869259667258},{"$f":"IFERROR(IF(OR($C$110=FALSE,LEFT($B104,3)<>\"NOX\"),F53*INDEX('Damage costs'!$W$16:$W$43,MATCH($B104,'Damage costs'!$C$16:$C$43,0))/1000,F53*INDEX('Damage costs'!$AA$16:$AA$43,MATCH($B104,'Damage costs'!$C$16:$C$43,0))/1000),\"\")","v":0.42635869259667258},{"$f":"IFERROR(IF(OR($C$110=FALSE,LEFT($B104,3)<>\"NOX\"),G53*INDEX('Damage costs'!$W$16:$W$43,MATCH($B104,'Damage costs'!$C$16:$C$43,0))/1000,G53*INDEX('Damage costs'!$AA$16:$AA$43,MATCH($B104,'Damage costs'!$C$16:$C$43,0))/1000),\"\")","v":0.42635869259667258},{"$f":"IFERROR(IF(OR($C$110=FALSE,LEFT($B104,3)<>\"NOX\"),H53*INDEX('Damage costs'!$W$16:$W$43,MATCH($B104,'Damage costs'!$C$16:$C$43,0))/1000,H53*INDEX('Damage costs'!$AA$16:$AA$43,MATCH($B104,'Damage costs'!$C$16:$C$43,0))/1000),\"\")","v":0.42635869259667258},{"$f":"IFERROR(IF(OR($C$110=FALSE,LEFT($B104,3)<>\"NOX\"),I53*INDEX('Damage costs'!$W$16:$W$43,MATCH($B104,'Damage costs'!$C$16:$C$43,0))/1000,I53*INDEX('Damage costs'!$AA$16:$AA$43,MATCH($B104,'Damage costs'!$C$16:$C$43,0))/1000),\"\")","v":0.42635869259667258},{"$f":"IFERROR(IF(OR($C$110=FALSE,LEFT($B104,3)<>\"NOX\"),J53*INDEX('Damage costs'!$W$16:$W$43,MATCH($B104,'Damage costs'!$C$16:$C$43,0))/1000,J53*INDEX('Damage costs'!$AA$16:$AA$43,MATCH($B104,'Damage costs'!$C$16:$C$43,0))/1000),\"\")","v":0.42635869259667258},{"$f":"IFERROR(IF(OR($C$110=FALSE,LEFT($B104,3)<>\"NOX\"),K53*INDEX('Damage costs'!$W$16:$W$43,MATCH($B104,'Damage costs'!$C$16:$C$43,0))/1000,K53*INDEX('Damage costs'!$AA$16:$AA$43,MATCH($B104,'Damage costs'!$C$16:$C$43,0))/1000),\"\")","v":0.42635869259667258},{"$f":"IFERROR(IF(OR($C$110=FALSE,LEFT($B104,3)<>\"NOX\"),L53*INDEX('Damage costs'!$W$16:$W$43,MATCH($B104,'Damage costs'!$C$16:$C$43,0))/1000,L53*INDEX('Damage costs'!$AA$16:$AA$43,MATCH($B104,'Damage costs'!$C$16:$C$43,0))/1000),\"\")","v":0},{"$f":"IFERROR(IF(OR($C$110=FALSE,LEFT($B104,3)<>\"NOX\"),M53*INDEX('Damage costs'!$W$16:$W$43,MATCH($B104,'Damage costs'!$C$16:$C$43,0))/1000,M53*INDEX('Damage costs'!$AA$16:$AA$43,MATCH($B104,'Damage costs'!$C$16:$C$43,0))/1000),\"\")","v":0},{"$f":"IFERROR(IF(OR($C$110=FALSE,LEFT($B104,3)<>\"NOX\"),N53*INDEX('Damage costs'!$W$16:$W$43,MATCH($B104,'Damage costs'!$C$16:$C$43,0))/1000,N53*INDEX('Damage costs'!$AA$16:$AA$43,MATCH($B104,'Damage costs'!$C$16:$C$43,0))/1000),\"\")","v":0},{"$f":"IFERROR(IF(OR($C$110=FALSE,LEFT($B104,3)<>\"NOX\"),O53*INDEX('Damage costs'!$W$16:$W$43,MATCH($B104,'Damage costs'!$C$16:$C$43,0))/1000,O53*INDEX('Damage costs'!$AA$16:$AA$43,MATCH($B104,'Damage costs'!$C$16:$C$43,0))/1000),\"\")","v":0},{"$f":"IFERROR(IF(OR($C$110=FALSE,LEFT($B104,3)<>\"NOX\"),P53*INDEX('Damage costs'!$W$16:$W$43,MATCH($B104,'Damage costs'!$C$16:$C$43,0))/1000,P53*INDEX('Damage costs'!$AA$16:$AA$43,MATCH($B104,'Damage costs'!$C$16:$C$43,0))/1000),\"\")","v":0},{"$f":"IFERROR(IF(OR($C$110=FALSE,LEFT($B104,3)<>\"NOX\"),Q53*INDEX('Damage costs'!$W$16:$W$43,MATCH($B104,'Damage costs'!$C$16:$C$43,0))/1000,Q53*INDEX('Damage costs'!$AA$16:$AA$43,MATCH($B104,'Damage costs'!$C$16:$C$43,0))/1000),\"\")","v":0},{"$f":"IFERROR(IF(OR($C$110=FALSE,LEFT($B104,3)<>\"NOX\"),R53*INDEX('Damage costs'!$W$16:$W$43,MATCH($B104,'Damage costs'!$C$16:$C$43,0))/1000,R53*INDEX('Damage costs'!$AA$16:$AA$43,MATCH($B104,'Damage costs'!$C$16:$C$43,0))/1000),\"\")","v":0},{"$f":"IFERROR(IF(OR($C$110=FALSE,LEFT($B104,3)<>\"NOX\"),S53*INDEX('Damage costs'!$W$16:$W$43,MATCH($B104,'Damage costs'!$C$16:$C$43,0))/1000,S53*INDEX('Damage costs'!$AA$16:$AA$43,MATCH($B104,'Damage costs'!$C$16:$C$43,0))/1000),\"\")","v":0},{"$f":"IFERROR(IF(OR($C$110=FALSE,LEFT($B104,3)<>\"NOX\"),T53*INDEX('Damage costs'!$W$16:$W$43,MATCH($B104,'Damage costs'!$C$16:$C$43,0))/1000,T53*INDEX('Damage costs'!$AA$16:$AA$43,MATCH($B104,'Damage costs'!$C$16:$C$43,0))/1000),\"\")","v":0},{"$f":"IFERROR(IF(OR($C$110=FALSE,LEFT($B104,3)<>\"NOX\"),U53*INDEX('Damage costs'!$W$16:$W$43,MATCH($B104,'Damage costs'!$C$16:$C$43,0))/1000,U53*INDEX('Damage costs'!$AA$16:$AA$43,MATCH($B104,'Damage costs'!$C$16:$C$43,0))/1000),\"\")","v":0},{"$f":"IFERROR(IF(OR($C$110=FALSE,LEFT($B104,3)<>\"NOX\"),V53*INDEX('Damage costs'!$W$16:$W$43,MATCH($B104,'Damage costs'!$C$16:$C$43,0))/1000,V53*INDEX('Damage costs'!$AA$16:$AA$43,MATCH($B104,'Damage costs'!$C$16:$C$43,0))/1000),\"\")","v":0},{"$f":"IFERROR(IF(OR($C$110=FALSE,LEFT($B104,3)<>\"NOX\"),W53*INDEX('Damage costs'!$W$16:$W$43,MATCH($B104,'Damage costs'!$C$16:$C$43,0))/1000,W53*INDEX('Damage costs'!$AA$16:$AA$43,MATCH($B104,'Damage costs'!$C$16:$C$43,0))/1000),\"\")","v":0},{"$f":"IFERROR(IF(OR($C$110=FALSE,LEFT($B104,3)<>\"NOX\"),X53*INDEX('Damage costs'!$W$16:$W$43,MATCH($B104,'Damage costs'!$C$16:$C$43,0))/1000,X53*INDEX('Damage costs'!$AA$16:$AA$43,MATCH($B104,'Damage costs'!$C$16:$C$43,0))/1000),\"\")","v":0},{"$f":"IFERROR(IF(OR($C$110=FALSE,LEFT($B104,3)<>\"NOX\"),Y53*INDEX('Damage costs'!$W$16:$W$43,MATCH($B104,'Damage costs'!$C$16:$C$43,0))/1000,Y53*INDEX('Damage costs'!$AA$16:$AA$43,MATCH($B104,'Damage costs'!$C$16:$C$43,0))/1000),\"\")","v":0},{"$f":"IFERROR(IF(OR($C$110=FALSE,LEFT($B104,3)<>\"NOX\"),Z53*INDEX('Damage costs'!$W$16:$W$43,MATCH($B104,'Damage costs'!$C$16:$C$43,0))/1000,Z53*INDEX('Damage costs'!$AA$16:$AA$43,MATCH($B104,'Damage costs'!$C$16:$C$43,0))/1000),\"\")","v":0},{"$f":"IFERROR(IF(OR($C$110=FALSE,LEFT($B104,3)<>\"NOX\"),AA53*INDEX('Damage costs'!$W$16:$W$43,MATCH($B104,'Damage costs'!$C$16:$C$43,0))/1000,AA53*INDEX('Damage costs'!$AA$16:$AA$43,MATCH($B104,'Damage costs'!$C$16:$C$43,0))/1000),\"\")","v":0},{"$f":"IFERROR(IF(OR($C$110=FALSE,LEFT($B104,3)<>\"NOX\"),AB53*INDEX('Damage costs'!$W$16:$W$43,MATCH($B104,'Damage costs'!$C$16:$C$43,0))/1000,AB53*INDEX('Damage costs'!$AA$16:$AA$43,MATCH($B104,'Damage costs'!$C$16:$C$43,0))/1000),\"\")","v":0},{"$f":"IFERROR(IF(OR($C$110=FALSE,LEFT($B104,3)<>\"NOX\"),AC53*INDEX('Damage costs'!$W$16:$W$43,MATCH($B104,'Damage costs'!$C$16:$C$43,0))/1000,AC53*INDEX('Damage costs'!$AA$16:$AA$43,MATCH($B104,'Damage costs'!$C$16:$C$43,0))/1000),\"\")","v":0},{"$f":"IFERROR(IF(OR($C$110=FALSE,LEFT($B104,3)<>\"NOX\"),AD53*INDEX('Damage costs'!$W$16:$W$43,MATCH($B104,'Damage costs'!$C$16:$C$43,0))/1000,AD53*INDEX('Damage costs'!$AA$16:$AA$43,MATCH($B104,'Damage costs'!$C$16:$C$43,0))/1000),\"\")","v":0},{"$f":"IFERROR(IF(OR($C$110=FALSE,LEFT($B104,3)<>\"NOX\"),AE53*INDEX('Damage costs'!$W$16:$W$43,MATCH($B104,'Damage costs'!$C$16:$C$43,0))/1000,AE53*INDEX('Damage costs'!$AA$16:$AA$43,MATCH($B104,'Damage costs'!$C$16:$C$43,0))/1000),\"\")","v":0},{"$f":"IFERROR(IF(OR($C$110=FALSE,LEFT($B104,3)<>\"NOX\"),AF53*INDEX('Damage costs'!$W$16:$W$43,MATCH($B104,'Damage costs'!$C$16:$C$43,0))/1000,AF53*INDEX('Damage costs'!$AA$16:$AA$43,MATCH($B104,'Damage costs'!$C$16:$C$43,0))/1000),\"\")","v":0},{"$f":"IFERROR(IF(OR($C$110=FALSE,LEFT($B104,3)<>\"NOX\"),AG53*INDEX('Damage costs'!$W$16:$W$43,MATCH($B104,'Damage costs'!$C$16:$C$43,0))/1000,AG53*INDEX('Damage costs'!$AA$16:$AA$43,MATCH($B104,'Damage costs'!$C$16:$C$43,0))/1000),\"\")","v":0},{"$f":"IFERROR(IF(OR($C$110=FALSE,LEFT($B104,3)<>\"NOX\"),AH53*INDEX('Damage costs'!$W$16:$W$43,MATCH($B104,'Damage costs'!$C$16:$C$43,0))/1000,AH53*INDEX('Damage costs'!$AA$16:$AA$43,MATCH($B104,'Damage costs'!$C$16:$C$43,0))/1000),\"\")","v":0},{"$f":"IFERROR(IF(OR($C$110=FALSE,LEFT($B104,3)<>\"NOX\"),AI53*INDEX('Damage costs'!$W$16:$W$43,MATCH($B104,'Damage costs'!$C$16:$C$43,0))/1000,AI53*INDEX('Damage costs'!$AA$16:$AA$43,MATCH($B104,'Damage costs'!$C$16:$C$43,0))/1000),\"\")","v":0},{"$f":"IFERROR(IF(OR($C$110=FALSE,LEFT($B104,3)<>\"NOX\"),AJ53*INDEX('Damage costs'!$W$16:$W$43,MATCH($B104,'Damage costs'!$C$16:$C$43,0))/1000,AJ53*INDEX('Damage costs'!$AA$16:$AA$43,MATCH($B104,'Damage costs'!$C$16:$C$43,0))/1000),\"\")","v":0},{"$f":"IFERROR(IF(OR($C$110=FALSE,LEFT($B104,3)<>\"NOX\"),AK53*INDEX('Damage costs'!$W$16:$W$43,MATCH($B104,'Damage costs'!$C$16:$C$43,0))/1000,AK53*INDEX('Damage costs'!$AA$16:$AA$43,MATCH($B104,'Damage costs'!$C$16:$C$43,0))/1000),\"\")","v":0},{"$f":"IFERROR(IF(OR($C$110=FALSE,LEFT($B104,3)<>\"NOX\"),AL53*INDEX('Damage costs'!$W$16:$W$43,MATCH($B104,'Damage costs'!$C$16:$C$43,0))/1000,AL53*INDEX('Damage costs'!$AA$16:$AA$43,MATCH($B104,'Damage costs'!$C$16:$C$43,0))/1000),\"\")","v":0},{"$f":"IFERROR(IF(OR($C$110=FALSE,LEFT($B104,3)<>\"NOX\"),AM53*INDEX('Damage costs'!$W$16:$W$43,MATCH($B104,'Damage costs'!$C$16:$C$43,0))/1000,AM53*INDEX('Damage costs'!$AA$16:$AA$43,MATCH($B104,'Damage costs'!$C$16:$C$43,0))/1000),\"\")","v":0},{"$f":"IFERROR(IF(OR($C$110=FALSE,LEFT($B104,3)<>\"NOX\"),AN53*INDEX('Damage costs'!$W$16:$W$43,MATCH($B104,'Damage costs'!$C$16:$C$43,0))/1000,AN53*INDEX('Damage costs'!$AA$16:$AA$43,MATCH($B104,'Damage costs'!$C$16:$C$43,0))/1000),\"\")","v":0},{"$f":"IFERROR(IF(OR($C$110=FALSE,LEFT($B104,3)<>\"NOX\"),AO53*INDEX('Damage costs'!$W$16:$W$43,MATCH($B104,'Damage costs'!$C$16:$C$43,0))/1000,AO53*INDEX('Damage costs'!$AA$16:$AA$43,MATCH($B104,'Damage costs'!$C$16:$C$43,0))/1000),\"\")","v":0},{"$f":"IFERROR(IF(OR($C$110=FALSE,LEFT($B104,3)<>\"NOX\"),AP53*INDEX('Damage costs'!$W$16:$W$43,MATCH($B104,'Damage costs'!$C$16:$C$43,0))/1000,AP53*INDEX('Damage costs'!$AA$16:$AA$43,MATCH($B104,'Damage costs'!$C$16:$C$43,0))/1000),\"\")","v":0},{"$f":"IFERROR(IF(OR($C$110=FALSE,LEFT($B104,3)<>\"NOX\"),AQ53*INDEX('Damage costs'!$W$16:$W$43,MATCH($B104,'Damage costs'!$C$16:$C$43,0))/1000,AQ53*INDEX('Damage costs'!$AA$16:$AA$43,MATCH($B104,'Damage costs'!$C$16:$C$43,0))/1000),\"\")","v":0},{"$f":"IFERROR(IF(OR($C$110=FALSE,LEFT($B104,3)<>\"NOX\"),AR53*INDEX('Damage costs'!$W$16:$W$43,MATCH($B104,'Damage costs'!$C$16:$C$43,0))/1000,AR53*INDEX('Damage costs'!$AA$16:$AA$43,MATCH($B104,'Damage costs'!$C$16:$C$43,0))/1000),\"\")","v":0},{"$f":"IFERROR(IF(OR($C$110=FALSE,LEFT($B104,3)<>\"NOX\"),AS53*INDEX('Damage costs'!$W$16:$W$43,MATCH($B104,'Damage costs'!$C$16:$C$43,0))/1000,AS53*INDEX('Damage costs'!$AA$16:$AA$43,MATCH($B104,'Damage costs'!$C$16:$C$43,0))/1000),\"\")","v":0},{"$f":"IFERROR(IF(OR($C$110=FALSE,LEFT($B104,3)<>\"NOX\"),AT53*INDEX('Damage costs'!$W$16:$W$43,MATCH($B104,'Damage costs'!$C$16:$C$43,0))/1000,AT53*INDEX('Damage costs'!$AA$16:$AA$43,MATCH($B104,'Damage costs'!$C$16:$C$43,0))/1000),\"\")","v":0},{"$f":"IFERROR(IF(OR($C$110=FALSE,LEFT($B104,3)<>\"NOX\"),AU53*INDEX('Damage costs'!$W$16:$W$43,MATCH($B104,'Damage costs'!$C$16:$C$43,0))/1000,AU53*INDEX('Damage costs'!$AA$16:$AA$43,MATCH($B104,'Damage costs'!$C$16:$C$43,0))/1000),\"\")","v":0},{"$f":"IFERROR(IF(OR($C$110=FALSE,LEFT($B104,3)<>\"NOX\"),AV53*INDEX('Damage costs'!$W$16:$W$43,MATCH($B104,'Damage costs'!$C$16:$C$43,0))/1000,AV53*INDEX('Damage costs'!$AA$16:$AA$43,MATCH($B104,'Damage costs'!$C$16:$C$43,0))/1000),\"\")","v":0},{"$f":"IFERROR(IF(OR($C$110=FALSE,LEFT($B104,3)<>\"NOX\"),AW53*INDEX('Damage costs'!$W$16:$W$43,MATCH($B104,'Damage costs'!$C$16:$C$43,0))/1000,AW53*INDEX('Damage costs'!$AA$16:$AA$43,MATCH($B104,'Damage costs'!$C$16:$C$43,0))/1000),\"\")","v":0},{"$f":"IFERROR(IF(OR($C$110=FALSE,LEFT($B104,3)<>\"NOX\"),AX53*INDEX('Damage costs'!$W$16:$W$43,MATCH($B104,'Damage costs'!$C$16:$C$43,0))/1000,AX53*INDEX('Damage costs'!$AA$16:$AA$43,MATCH($B104,'Damage costs'!$C$16:$C$43,0))/1000),\"\")","v":0},{"$f":"IFERROR(IF(OR($C$110=FALSE,LEFT($B104,3)<>\"NOX\"),AY53*INDEX('Damage costs'!$W$16:$W$43,MATCH($B104,'Damage costs'!$C$16:$C$43,0))/1000,AY53*INDEX('Damage costs'!$AA$16:$AA$43,MATCH($B104,'Damage costs'!$C$16:$C$43,0))/1000),\"\")","v":0},{"$f":"IFERROR(IF(OR($C$110=FALSE,LEFT($B104,3)<>\"NOX\"),AZ53*INDEX('Damage costs'!$W$16:$W$43,MATCH($B104,'Damage costs'!$C$16:$C$43,0))/1000,AZ53*INDEX('Damage costs'!$AA$16:$AA$43,MATCH($B104,'Damage costs'!$C$16:$C$43,0))/1000),\"\")","v":0},{"$f":"IFERROR(IF(OR($C$110=FALSE,LEFT($B104,3)<>\"NOX\"),BA53*INDEX('Damage costs'!$W$16:$W$43,MATCH($B104,'Damage costs'!$C$16:$C$43,0))/1000,BA53*INDEX('Damage costs'!$AA$16:$AA$43,MATCH($B104,'Damage costs'!$C$16:$C$43,0))/1000),\"\")","v":0},{"$f":"IFERROR(IF(OR($C$110=FALSE,LEFT($B104,3)<>\"NOX\"),BB53*INDEX('Damage costs'!$W$16:$W$43,MATCH($B104,'Damage costs'!$C$16:$C$43,0))/1000,BB53*INDEX('Damage costs'!$AA$16:$AA$43,MATCH($B104,'Damage costs'!$C$16:$C$43,0))/1000),\"\")","v":0},{"$f":"IFERROR(IF(OR($C$110=FALSE,LEFT($B104,3)<>\"NOX\"),BC53*INDEX('Damage costs'!$W$16:$W$43,MATCH($B104,'Damage costs'!$C$16:$C$43,0))/1000,BC53*INDEX('Damage costs'!$AA$16:$AA$43,MATCH($B104,'Damage costs'!$C$16:$C$43,0))/1000),\"\")","v":0},{"$f":"IFERROR(IF(OR($C$110=FALSE,LEFT($B104,3)<>\"NOX\"),BD53*INDEX('Damage costs'!$W$16:$W$43,MATCH($B104,'Damage costs'!$C$16:$C$43,0))/1000,BD53*INDEX('Damage costs'!$AA$16:$AA$43,MATCH($B104,'Damage costs'!$C$16:$C$43,0))/1000),\"\")","v":0},{"$f":"IFERROR(IF(OR($C$110=FALSE,LEFT($B104,3)<>\"NOX\"),BE53*INDEX('Damage costs'!$W$16:$W$43,MATCH($B104,'Damage costs'!$C$16:$C$43,0))/1000,BE53*INDEX('Damage costs'!$AA$16:$AA$43,MATCH($B104,'Damage costs'!$C$16:$C$43,0))/1000),\"\")","v":0},{"$f":"IFERROR(IF(OR($C$110=FALSE,LEFT($B104,3)<>\"NOX\"),BF53*INDEX('Damage costs'!$W$16:$W$43,MATCH($B104,'Damage costs'!$C$16:$C$43,0))/1000,BF53*INDEX('Damage costs'!$AA$16:$AA$43,MATCH($B104,'Damage costs'!$C$16:$C$43,0))/1000),\"\")","v":0},{"$f":"IFERROR(IF(OR($C$110=FALSE,LEFT($B104,3)<>\"NOX\"),BG53*INDEX('Damage costs'!$W$16:$W$43,MATCH($B104,'Damage costs'!$C$16:$C$43,0))/1000,BG53*INDEX('Damage costs'!$AA$16:$AA$43,MATCH($B104,'Damage costs'!$C$16:$C$43,0))/1000),\"\")","v":0},{"$f":"IFERROR(IF(OR($C$110=FALSE,LEFT($B104,3)<>\"NOX\"),BH53*INDEX('Damage costs'!$W$16:$W$43,MATCH($B104,'Damage costs'!$C$16:$C$43,0))/1000,BH53*INDEX('Damage costs'!$AA$16:$AA$43,MATCH($B104,'Damage costs'!$C$16:$C$43,0))/1000),\"\")","v":0},{"$f":"IFERROR(IF(OR($C$110=FALSE,LEFT($B104,3)<>\"NOX\"),BI53*INDEX('Damage costs'!$W$16:$W$43,MATCH($B104,'Damage costs'!$C$16:$C$43,0))/1000,BI53*INDEX('Damage costs'!$AA$16:$AA$43,MATCH($B104,'Damage costs'!$C$16:$C$43,0))/1000),\"\")","v":0},{"$f":"IFERROR(IF(OR($C$110=FALSE,LEFT($B104,3)<>\"NOX\"),BJ53*INDEX('Damage costs'!$W$16:$W$43,MATCH($B104,'Damage costs'!$C$16:$C$43,0))/1000,BJ53*INDEX('Damage costs'!$AA$16:$AA$43,MATCH($B104,'Damage costs'!$C$16:$C$43,0))/1000),\"\")","v":0},{"$f":"IFERROR(IF(OR($C$110=FALSE,LEFT($B104,3)<>\"NOX\"),BK53*INDEX('Damage costs'!$W$16:$W$43,MATCH($B104,'Damage costs'!$C$16:$C$43,0))/1000,BK53*INDEX('Damage costs'!$AA$16:$AA$43,MATCH($B104,'Damage costs'!$C$16:$C$43,0))/1000),\"\")","v":0},{"$f":"IFERROR(IF(OR($C$110=FALSE,LEFT($B104,3)<>\"NOX\"),BL53*INDEX('Damage costs'!$W$16:$W$43,MATCH($B104,'Damage costs'!$C$16:$C$43,0))/1000,BL53*INDEX('Damage costs'!$AA$16:$AA$43,MATCH($B104,'Damage costs'!$C$16:$C$43,0))/1000),\"\")","v":0},{"$f":"IFERROR(IF(OR($C$110=FALSE,LEFT($B104,3)<>\"NOX\"),BM53*INDEX('Damage costs'!$W$16:$W$43,MATCH($B104,'Damage costs'!$C$16:$C$43,0))/1000,BM53*INDEX('Damage costs'!$AA$16:$AA$43,MATCH($B104,'Damage costs'!$C$16:$C$43,0))/1000),\"\")","v":0},{"$f":"IFERROR(IF(OR($C$110=FALSE,LEFT($B104,3)<>\"NOX\"),BN53*INDEX('Damage costs'!$W$16:$W$43,MATCH($B104,'Damage costs'!$C$16:$C$43,0))/1000,BN53*INDEX('Damage costs'!$AA$16:$AA$43,MATCH($B104,'Damage costs'!$C$16:$C$43,0))/1000),\"\")","v":0},{"$f":"IFERROR(IF(OR($C$110=FALSE,LEFT($B104,3)<>\"NOX\"),BO53*INDEX('Damage costs'!$W$16:$W$43,MATCH($B104,'Damage costs'!$C$16:$C$43,0))/1000,BO53*INDEX('Damage costs'!$AA$16:$AA$43,MATCH($B104,'Damage costs'!$C$16:$C$43,0))/1000),\"\")","v":0},{"$f":"IFERROR(IF(OR($C$110=FALSE,LEFT($B104,3)<>\"NOX\"),BP53*INDEX('Damage costs'!$W$16:$W$43,MATCH($B104,'Damage costs'!$C$16:$C$43,0))/1000,BP53*INDEX('Damage costs'!$AA$16:$AA$43,MATCH($B104,'Damage costs'!$C$16:$C$43,0))/1000),\"\")","v":0},{"$f":"IFERROR(IF(OR($C$110=FALSE,LEFT($B104,3)<>\"NOX\"),BQ53*INDEX('Damage costs'!$W$16:$W$43,MATCH($B104,'Damage costs'!$C$16:$C$43,0))/1000,BQ53*INDEX('Damage costs'!$AA$16:$AA$43,MATCH($B104,'Damage costs'!$C$16:$C$43,0))/1000),\"\")","v":0},{"$f":"IFERROR(IF(OR($C$110=FALSE,LEFT($B104,3)<>\"NOX\"),BR53*INDEX('Damage costs'!$W$16:$W$43,MATCH($B104,'Damage costs'!$C$16:$C$43,0))/1000,BR53*INDEX('Damage costs'!$AA$16:$AA$43,MATCH($B104,'Damage costs'!$C$16:$C$43,0))/1000),\"\")","v":0},{"$f":"IFERROR(IF(OR($C$110=FALSE,LEFT($B104,3)<>\"NOX\"),BS53*INDEX('Damage costs'!$W$16:$W$43,MATCH($B104,'Damage costs'!$C$16:$C$43,0))/1000,BS53*INDEX('Damage costs'!$AA$16:$AA$43,MATCH($B104,'Damage costs'!$C$16:$C$43,0))/1000),\"\")","v":0},{"$f":"IFERROR(IF(OR($C$110=FALSE,LEFT($B104,3)<>\"NOX\"),BT53*INDEX('Damage costs'!$W$16:$W$43,MATCH($B104,'Damage costs'!$C$16:$C$43,0))/1000,BT53*INDEX('Damage costs'!$AA$16:$AA$43,MATCH($B104,'Damage costs'!$C$16:$C$43,0))/1000),\"\")","v":0},{"$f":"IFERROR(IF(OR($C$110=FALSE,LEFT($B104,3)<>\"NOX\"),BU53*INDEX('Damage costs'!$W$16:$W$43,MATCH($B104,'Damage costs'!$C$16:$C$43,0))/1000,BU53*INDEX('Damage costs'!$AA$16:$AA$43,MATCH($B104,'Damage costs'!$C$16:$C$43,0))/1000),\"\")","v":0},{"$f":"IFERROR(IF(OR($C$110=FALSE,LEFT($B104,3)<>\"NOX\"),BV53*INDEX('Damage costs'!$W$16:$W$43,MATCH($B104,'Damage costs'!$C$16:$C$43,0))/1000,BV53*INDEX('Damage costs'!$AA$16:$AA$43,MATCH($B104,'Damage costs'!$C$16:$C$43,0))/1000),\"\")","v":0},{"$f":"IFERROR(IF(OR($C$110=FALSE,LEFT($B104,3)<>\"NOX\"),BW53*INDEX('Damage costs'!$W$16:$W$43,MATCH($B104,'Damage costs'!$C$16:$C$43,0))/1000,BW53*INDEX('Damage costs'!$AA$16:$AA$43,MATCH($B104,'Damage costs'!$C$16:$C$43,0))/1000),\"\")","v":0},{"$f":"IFERROR(IF(OR($C$110=FALSE,LEFT($B104,3)<>\"NOX\"),BX53*INDEX('Damage costs'!$W$16:$W$43,MATCH($B104,'Damage costs'!$C$16:$C$43,0))/1000,BX53*INDEX('Damage costs'!$AA$16:$AA$43,MATCH($B104,'Damage costs'!$C$16:$C$43,0))/1000),\"\")","v":0},{"$f":"IFERROR(IF(OR($C$110=FALSE,LEFT($B104,3)<>\"NOX\"),BY53*INDEX('Damage costs'!$W$16:$W$43,MATCH($B104,'Damage costs'!$C$16:$C$43,0))/1000,BY53*INDEX('Damage costs'!$AA$16:$AA$43,MATCH($B104,'Damage costs'!$C$16:$C$43,0))/1000),\"\")","v":0},{"$f":"IFERROR(IF(OR($C$110=FALSE,LEFT($B104,3)<>\"NOX\"),BZ53*INDEX('Damage costs'!$W$16:$W$43,MATCH($B104,'Damage costs'!$C$16:$C$43,0))/1000,BZ53*INDEX('Damage costs'!$AA$16:$AA$43,MATCH($B104,'Damage costs'!$C$16:$C$43,0))/1000),\"\")","v":0},{"$f":"IFERROR(IF(OR($C$110=FALSE,LEFT($B104,3)<>\"NOX\"),CA53*INDEX('Damage costs'!$W$16:$W$43,MATCH($B104,'Damage costs'!$C$16:$C$43,0))/1000,CA53*INDEX('Damage costs'!$AA$16:$AA$43,MATCH($B104,'Damage costs'!$C$16:$C$43,0))/1000),\"\")","v":0},{"$f":"IFERROR(IF(OR($C$110=FALSE,LEFT($B104,3)<>\"NOX\"),CB53*INDEX('Damage costs'!$W$16:$W$43,MATCH($B104,'Damage costs'!$C$16:$C$43,0))/1000,CB53*INDEX('Damage costs'!$AA$16:$AA$43,MATCH($B104,'Damage costs'!$C$16:$C$43,0))/1000),\"\")","v":0},{"$f":"IFERROR(IF(OR($C$110=FALSE,LEFT($B104,3)<>\"NOX\"),CC53*INDEX('Damage costs'!$W$16:$W$43,MATCH($B104,'Damage costs'!$C$16:$C$43,0))/1000,CC53*INDEX('Damage costs'!$AA$16:$AA$43,MATCH($B104,'Damage costs'!$C$16:$C$43,0))/1000),\"\")","v":0},{"$f":"IFERROR(IF(OR($C$110=FALSE,LEFT($B104,3)<>\"NOX\"),CD53*INDEX('Damage costs'!$W$16:$W$43,MATCH($B104,'Damage costs'!$C$16:$C$43,0))/1000,CD53*INDEX('Damage costs'!$AA$16:$AA$43,MATCH($B104,'Damage costs'!$C$16:$C$43,0))/1000),\"\")","v":0},{"$f":"IFERROR(IF(OR($C$110=FALSE,LEFT($B104,3)<>\"NOX\"),CE53*INDEX('Damage costs'!$W$16:$W$43,MATCH($B104,'Damage costs'!$C$16:$C$43,0))/1000,CE53*INDEX('Damage costs'!$AA$16:$AA$43,MATCH($B104,'Damage costs'!$C$16:$C$43,0))/1000),\"\")","v":0},{"$f":"IFERROR(IF(OR($C$110=FALSE,LEFT($B104,3)<>\"NOX\"),CF53*INDEX('Damage costs'!$W$16:$W$43,MATCH($B104,'Damage costs'!$C$16:$C$43,0))/1000,CF53*INDEX('Damage costs'!$AA$16:$AA$43,MATCH($B104,'Damage costs'!$C$16:$C$43,0))/1000),\"\")","v":0},{"$f":"IFERROR(IF(OR($C$110=FALSE,LEFT($B104,3)<>\"NOX\"),CG53*INDEX('Damage costs'!$W$16:$W$43,MATCH($B104,'Damage costs'!$C$16:$C$43,0))/1000,CG53*INDEX('Damage costs'!$AA$16:$AA$43,MATCH($B104,'Damage costs'!$C$16:$C$43,0))/1000),\"\")","v":0},{"$f":"IFERROR(IF(OR($C$110=FALSE,LEFT($B104,3)<>\"NOX\"),CH53*INDEX('Damage costs'!$W$16:$W$43,MATCH($B104,'Damage costs'!$C$16:$C$43,0))/1000,CH53*INDEX('Damage costs'!$AA$16:$AA$43,MATCH($B104,'Damage costs'!$C$16:$C$43,0))/1000),\"\")","v":0},{"$f":"IFERROR(IF(OR($C$110=FALSE,LEFT($B104,3)<>\"NOX\"),CI53*INDEX('Damage costs'!$W$16:$W$43,MATCH($B104,'Damage costs'!$C$16:$C$43,0))/1000,CI53*INDEX('Damage costs'!$AA$16:$AA$43,MATCH($B104,'Damage costs'!$C$16:$C$43,0))/1000),\"\")","v":0},{"$f":"IFERROR(IF(OR($C$110=FALSE,LEFT($B104,3)<>\"NOX\"),CJ53*INDEX('Damage costs'!$W$16:$W$43,MATCH($B104,'Damage costs'!$C$16:$C$43,0))/1000,CJ53*INDEX('Damage costs'!$AA$16:$AA$43,MATCH($B104,'Damage costs'!$C$16:$C$43,0))/1000),\"\")","v":0},{"$f":"IFERROR(IF(OR($C$110=FALSE,LEFT($B104,3)<>\"NOX\"),CK53*INDEX('Damage costs'!$W$16:$W$43,MATCH($B104,'Damage costs'!$C$16:$C$43,0))/1000,CK53*INDEX('Damage costs'!$AA$16:$AA$43,MATCH($B104,'Damage costs'!$C$16:$C$43,0))/1000),\"\")","v":0},{"$f":"IFERROR(IF(OR($C$110=FALSE,LEFT($B104,3)<>\"NOX\"),CL53*INDEX('Damage costs'!$W$16:$W$43,MATCH($B104,'Damage costs'!$C$16:$C$43,0))/1000,CL53*INDEX('Damage costs'!$AA$16:$AA$43,MATCH($B104,'Damage costs'!$C$16:$C$43,0))/1000),\"\")","v":0},{"$f":"IFERROR(IF(OR($C$110=FALSE,LEFT($B104,3)<>\"NOX\"),CM53*INDEX('Damage costs'!$W$16:$W$43,MATCH($B104,'Damage costs'!$C$16:$C$43,0))/1000,CM53*INDEX('Damage costs'!$AA$16:$AA$43,MATCH($B104,'Damage costs'!$C$16:$C$43,0))/1000),\"\")","v":0},{"$f":"IFERROR(IF(OR($C$110=FALSE,LEFT($B104,3)<>\"NOX\"),CN53*INDEX('Damage costs'!$W$16:$W$43,MATCH($B104,'Damage costs'!$C$16:$C$43,0))/1000,CN53*INDEX('Damage costs'!$AA$16:$AA$43,MATCH($B104,'Damage costs'!$C$16:$C$43,0))/1000),\"\")","v":0},{"$f":"IFERROR(IF(OR($C$110=FALSE,LEFT($B104,3)<>\"NOX\"),CO53*INDEX('Damage costs'!$W$16:$W$43,MATCH($B104,'Damage costs'!$C$16:$C$43,0))/1000,CO53*INDEX('Damage costs'!$AA$16:$AA$43,MATCH($B104,'Damage costs'!$C$16:$C$43,0))/1000),\"\")","v":0},{"$f":"IFERROR(IF(OR($C$110=FALSE,LEFT($B104,3)<>\"NOX\"),CP53*INDEX('Damage costs'!$W$16:$W$43,MATCH($B104,'Damage costs'!$C$16:$C$43,0))/1000,CP53*INDEX('Damage costs'!$AA$16:$AA$43,MATCH($B104,'Damage costs'!$C$16:$C$43,0))/1000),\"\")","v":0},{"$f":"IFERROR(IF(OR($C$110=FALSE,LEFT($B104,3)<>\"NOX\"),CQ53*INDEX('Damage costs'!$W$16:$W$43,MATCH($B104,'Damage costs'!$C$16:$C$43,0))/1000,CQ53*INDEX('Damage costs'!$AA$16:$AA$43,MATCH($B104,'Damage costs'!$C$16:$C$43,0))/1000),\"\")","v":0},{"$f":"IFERROR(IF(OR($C$110=FALSE,LEFT($B104,3)<>\"NOX\"),CR53*INDEX('Damage costs'!$W$16:$W$43,MATCH($B104,'Damage costs'!$C$16:$C$43,0))/1000,CR53*INDEX('Damage costs'!$AA$16:$AA$43,MATCH($B104,'Damage costs'!$C$16:$C$43,0))/1000),\"\")","v":0},{"$f":"IFERROR(IF(OR($C$110=FALSE,LEFT($B104,3)<>\"NOX\"),CS53*INDEX('Damage costs'!$W$16:$W$43,MATCH($B104,'Damage costs'!$C$16:$C$43,0))/1000,CS53*INDEX('Damage costs'!$AA$16:$AA$43,MATCH($B104,'Damage costs'!$C$16:$C$43,0))/1000),\"\")","v":0},{"$f":"IFERROR(IF(OR($C$110=FALSE,LEFT($B104,3)<>\"NOX\"),CT53*INDEX('Damage costs'!$W$16:$W$43,MATCH($B104,'Damage costs'!$C$16:$C$43,0))/1000,CT53*INDEX('Damage costs'!$AA$16:$AA$43,MATCH($B104,'Damage costs'!$C$16:$C$43,0))/1000),\"\")","v":0},{"$f":"IFERROR(IF(OR($C$110=FALSE,LEFT($B104,3)<>\"NOX\"),CU53*INDEX('Damage costs'!$W$16:$W$43,MATCH($B104,'Damage costs'!$C$16:$C$43,0))/1000,CU53*INDEX('Damage costs'!$AA$16:$AA$43,MATCH($B104,'Damage costs'!$C$16:$C$43,0))/1000),\"\")","v":0},{"$f":"IFERROR(IF(OR($C$110=FALSE,LEFT($B104,3)<>\"NOX\"),CV53*INDEX('Damage costs'!$W$16:$W$43,MATCH($B104,'Damage costs'!$C$16:$C$43,0))/1000,CV53*INDEX('Damage costs'!$AA$16:$AA$43,MATCH($B104,'Damage costs'!$C$16:$C$43,0))/1000),\"\")","v":0},{"$f":"IFERROR(IF(OR($C$110=FALSE,LEFT($B104,3)<>\"NOX\"),CW53*INDEX('Damage costs'!$W$16:$W$43,MATCH($B104,'Damage costs'!$C$16:$C$43,0))/1000,CW53*INDEX('Damage costs'!$AA$16:$AA$43,MATCH($B104,'Damage costs'!$C$16:$C$43,0))/1000),\"\")","v":0},{"$f":"IFERROR(IF(OR($C$110=FALSE,LEFT($B104,3)<>\"NOX\"),CX53*INDEX('Damage costs'!$W$16:$W$43,MATCH($B104,'Damage costs'!$C$16:$C$43,0))/1000,CX53*INDEX('Damage costs'!$AA$16:$AA$43,MATCH($B104,'Damage costs'!$C$16:$C$43,0))/1000),\"\")","v":0},{"$f":"IFERROR(IF(OR($C$110=FALSE,LEFT($B104,3)<>\"NOX\"),CY53*INDEX('Damage costs'!$W$16:$W$43,MATCH($B104,'Damage costs'!$C$16:$C$43,0))/1000,CY53*INDEX('Damage costs'!$AA$16:$AA$43,MATCH($B104,'Damage costs'!$C$16:$C$43,0))/1000),\"\")","v":0}]
[null,0,"£000's",{"$f":"IFERROR(IF(OR($C$110=FALSE,LEFT($B105,3)<>\"NOX\"),D54*INDEX('Damage costs'!$W$16:$W$43,MATCH($B105,'Damage costs'!$C$16:$C$43,0))/1000,D54*INDEX('Damage costs'!$AA$16:$AA$43,MATCH($B105,'Damage costs'!$C$16:$C$43,0))/1000),\"\")","v":""},{"$f":"IFERROR(IF(OR($C$110=FALSE,LEFT($B105,3)<>\"NOX\"),E54*INDEX('Damage costs'!$W$16:$W$43,MATCH($B105,'Damage costs'!$C$16:$C$43,0))/1000,E54*INDEX('Damage costs'!$AA$16:$AA$43,MATCH($B105,'Damage costs'!$C$16:$C$43,0))/1000),\"\")","v":""},{"$f":"IFERROR(IF(OR($C$110=FALSE,LEFT($B105,3)<>\"NOX\"),F54*INDEX('Damage costs'!$W$16:$W$43,MATCH($B105,'Damage costs'!$C$16:$C$43,0))/1000,F54*INDEX('Damage costs'!$AA$16:$AA$43,MATCH($B105,'Damage costs'!$C$16:$C$43,0))/1000),\"\")","v":""},{"$f":"IFERROR(IF(OR($C$110=FALSE,LEFT($B105,3)<>\"NOX\"),G54*INDEX('Damage costs'!$W$16:$W$43,MATCH($B105,'Damage costs'!$C$16:$C$43,0))/1000,G54*INDEX('Damage costs'!$AA$16:$AA$43,MATCH($B105,'Damage costs'!$C$16:$C$43,0))/1000),\"\")","v":""},{"$f":"IFERROR(IF(OR($C$110=FALSE,LEFT($B105,3)<>\"NOX\"),H54*INDEX('Damage costs'!$W$16:$W$43,MATCH($B105,'Damage costs'!$C$16:$C$43,0))/1000,H54*INDEX('Damage costs'!$AA$16:$AA$43,MATCH($B105,'Damage costs'!$C$16:$C$43,0))/1000),\"\")","v":""},{"$f":"IFERROR(IF(OR($C$110=FALSE,LEFT($B105,3)<>\"NOX\"),I54*INDEX('Damage costs'!$W$16:$W$43,MATCH($B105,'Damage costs'!$C$16:$C$43,0))/1000,I54*INDEX('Damage costs'!$AA$16:$AA$43,MATCH($B105,'Damage costs'!$C$16:$C$43,0))/1000),\"\")","v":""},{"$f":"IFERROR(IF(OR($C$110=FALSE,LEFT($B105,3)<>\"NOX\"),J54*INDEX('Damage costs'!$W$16:$W$43,MATCH($B105,'Damage costs'!$C$16:$C$43,0))/1000,J54*INDEX('Damage costs'!$AA$16:$AA$43,MATCH($B105,'Damage costs'!$C$16:$C$43,0))/1000),\"\")","v":""},{"$f":"IFERROR(IF(OR($C$110=FALSE,LEFT($B105,3)<>\"NOX\"),K54*INDEX('Damage costs'!$W$16:$W$43,MATCH($B105,'Damage costs'!$C$16:$C$43,0))/1000,K54*INDEX('Damage costs'!$AA$16:$AA$43,MATCH($B105,'Damage costs'!$C$16:$C$43,0))/1000),\"\")","v":""},{"$f":"IFERROR(IF(OR($C$110=FALSE,LEFT($B105,3)<>\"NOX\"),L54*INDEX('Damage costs'!$W$16:$W$43,MATCH($B105,'Damage costs'!$C$16:$C$43,0))/1000,L54*INDEX('Damage costs'!$AA$16:$AA$43,MATCH($B105,'Damage costs'!$C$16:$C$43,0))/1000),\"\")","v":""},{"$f":"IFERROR(IF(OR($C$110=FALSE,LEFT($B105,3)<>\"NOX\"),M54*INDEX('Damage costs'!$W$16:$W$43,MATCH($B105,'Damage costs'!$C$16:$C$43,0))/1000,M54*INDEX('Damage costs'!$AA$16:$AA$43,MATCH($B105,'Damage costs'!$C$16:$C$43,0))/1000),\"\")","v":""},{"$f":"IFERROR(IF(OR($C$110=FALSE,LEFT($B105,3)<>\"NOX\"),N54*INDEX('Damage costs'!$W$16:$W$43,MATCH($B105,'Damage costs'!$C$16:$C$43,0))/1000,N54*INDEX('Damage costs'!$AA$16:$AA$43,MATCH($B105,'Damage costs'!$C$16:$C$43,0))/1000),\"\")","v":""},{"$f":"IFERROR(IF(OR($C$110=FALSE,LEFT($B105,3)<>\"NOX\"),O54*INDEX('Damage costs'!$W$16:$W$43,MATCH($B105,'Damage costs'!$C$16:$C$43,0))/1000,O54*INDEX('Damage costs'!$AA$16:$AA$43,MATCH($B105,'Damage costs'!$C$16:$C$43,0))/1000),\"\")","v":""},{"$f":"IFERROR(IF(OR($C$110=FALSE,LEFT($B105,3)<>\"NOX\"),P54*INDEX('Damage costs'!$W$16:$W$43,MATCH($B105,'Damage costs'!$C$16:$C$43,0))/1000,P54*INDEX('Damage costs'!$AA$16:$AA$43,MATCH($B105,'Damage costs'!$C$16:$C$43,0))/1000),\"\")","v":""},{"$f":"IFERROR(IF(OR($C$110=FALSE,LEFT($B105,3)<>\"NOX\"),Q54*INDEX('Damage costs'!$W$16:$W$43,MATCH($B105,'Damage costs'!$C$16:$C$43,0))/1000,Q54*INDEX('Damage costs'!$AA$16:$AA$43,MATCH($B105,'Damage costs'!$C$16:$C$43,0))/1000),\"\")","v":""},{"$f":"IFERROR(IF(OR($C$110=FALSE,LEFT($B105,3)<>\"NOX\"),R54*INDEX('Damage costs'!$W$16:$W$43,MATCH($B105,'Damage costs'!$C$16:$C$43,0))/1000,R54*INDEX('Damage costs'!$AA$16:$AA$43,MATCH($B105,'Damage costs'!$C$16:$C$43,0))/1000),\"\")","v":""},{"$f":"IFERROR(IF(OR($C$110=FALSE,LEFT($B105,3)<>\"NOX\"),S54*INDEX('Damage costs'!$W$16:$W$43,MATCH($B105,'Damage costs'!$C$16:$C$43,0))/1000,S54*INDEX('Damage costs'!$AA$16:$AA$43,MATCH($B105,'Damage costs'!$C$16:$C$43,0))/1000),\"\")","v":""},{"$f":"IFERROR(IF(OR($C$110=FALSE,LEFT($B105,3)<>\"NOX\"),T54*INDEX('Damage costs'!$W$16:$W$43,MATCH($B105,'Damage costs'!$C$16:$C$43,0))/1000,T54*INDEX('Damage costs'!$AA$16:$AA$43,MATCH($B105,'Damage costs'!$C$16:$C$43,0))/1000),\"\")","v":""},{"$f":"IFERROR(IF(OR($C$110=FALSE,LEFT($B105,3)<>\"NOX\"),U54*INDEX('Damage costs'!$W$16:$W$43,MATCH($B105,'Damage costs'!$C$16:$C$43,0))/1000,U54*INDEX('Damage costs'!$AA$16:$AA$43,MATCH($B105,'Damage costs'!$C$16:$C$43,0))/1000),\"\")","v":""},{"$f":"IFERROR(IF(OR($C$110=FALSE,LEFT($B105,3)<>\"NOX\"),V54*INDEX('Damage costs'!$W$16:$W$43,MATCH($B105,'Damage costs'!$C$16:$C$43,0))/1000,V54*INDEX('Damage costs'!$AA$16:$AA$43,MATCH($B105,'Damage costs'!$C$16:$C$43,0))/1000),\"\")","v":""},{"$f":"IFERROR(IF(OR($C$110=FALSE,LEFT($B105,3)<>\"NOX\"),W54*INDEX('Damage costs'!$W$16:$W$43,MATCH($B105,'Damage costs'!$C$16:$C$43,0))/1000,W54*INDEX('Damage costs'!$AA$16:$AA$43,MATCH($B105,'Damage costs'!$C$16:$C$43,0))/1000),\"\")","v":""},{"$f":"IFERROR(IF(OR($C$110=FALSE,LEFT($B105,3)<>\"NOX\"),X54*INDEX('Damage costs'!$W$16:$W$43,MATCH($B105,'Damage costs'!$C$16:$C$43,0))/1000,X54*INDEX('Damage costs'!$AA$16:$AA$43,MATCH($B105,'Damage costs'!$C$16:$C$43,0))/1000),\"\")","v":""},{"$f":"IFERROR(IF(OR($C$110=FALSE,LEFT($B105,3)<>\"NOX\"),Y54*INDEX('Damage costs'!$W$16:$W$43,MATCH($B105,'Damage costs'!$C$16:$C$43,0))/1000,Y54*INDEX('Damage costs'!$AA$16:$AA$43,MATCH($B105,'Damage costs'!$C$16:$C$43,0))/1000),\"\")","v":""},{"$f":"IFERROR(IF(OR($C$110=FALSE,LEFT($B105,3)<>\"NOX\"),Z54*INDEX('Damage costs'!$W$16:$W$43,MATCH($B105,'Damage costs'!$C$16:$C$43,0))/1000,Z54*INDEX('Damage costs'!$AA$16:$AA$43,MATCH($B105,'Damage costs'!$C$16:$C$43,0))/1000),\"\")","v":""},{"$f":"IFERROR(IF(OR($C$110=FALSE,LEFT($B105,3)<>\"NOX\"),AA54*INDEX('Damage costs'!$W$16:$W$43,MATCH($B105,'Damage costs'!$C$16:$C$43,0))/1000,AA54*INDEX('Damage costs'!$AA$16:$AA$43,MATCH($B105,'Damage costs'!$C$16:$C$43,0))/1000),\"\")","v":""},{"$f":"IFERROR(IF(OR($C$110=FALSE,LEFT($B105,3)<>\"NOX\"),AB54*INDEX('Damage costs'!$W$16:$W$43,MATCH($B105,'Damage costs'!$C$16:$C$43,0))/1000,AB54*INDEX('Damage costs'!$AA$16:$AA$43,MATCH($B105,'Damage costs'!$C$16:$C$43,0))/1000),\"\")","v":""},{"$f":"IFERROR(IF(OR($C$110=FALSE,LEFT($B105,3)<>\"NOX\"),AC54*INDEX('Damage costs'!$W$16:$W$43,MATCH($B105,'Damage costs'!$C$16:$C$43,0))/1000,AC54*INDEX('Damage costs'!$AA$16:$AA$43,MATCH($B105,'Damage costs'!$C$16:$C$43,0))/1000),\"\")","v":""},{"$f":"IFERROR(IF(OR($C$110=FALSE,LEFT($B105,3)<>\"NOX\"),AD54*INDEX('Damage costs'!$W$16:$W$43,MATCH($B105,'Damage costs'!$C$16:$C$43,0))/1000,AD54*INDEX('Damage costs'!$AA$16:$AA$43,MATCH($B105,'Damage costs'!$C$16:$C$43,0))/1000),\"\")","v":""},{"$f":"IFERROR(IF(OR($C$110=FALSE,LEFT($B105,3)<>\"NOX\"),AE54*INDEX('Damage costs'!$W$16:$W$43,MATCH($B105,'Damage costs'!$C$16:$C$43,0))/1000,AE54*INDEX('Damage costs'!$AA$16:$AA$43,MATCH($B105,'Damage costs'!$C$16:$C$43,0))/1000),\"\")","v":""},{"$f":"IFERROR(IF(OR($C$110=FALSE,LEFT($B105,3)<>\"NOX\"),AF54*INDEX('Damage costs'!$W$16:$W$43,MATCH($B105,'Damage costs'!$C$16:$C$43,0))/1000,AF54*INDEX('Damage costs'!$AA$16:$AA$43,MATCH($B105,'Damage costs'!$C$16:$C$43,0))/1000),\"\")","v":""},{"$f":"IFERROR(IF(OR($C$110=FALSE,LEFT($B105,3)<>\"NOX\"),AG54*INDEX('Damage costs'!$W$16:$W$43,MATCH($B105,'Damage costs'!$C$16:$C$43,0))/1000,AG54*INDEX('Damage costs'!$AA$16:$AA$43,MATCH($B105,'Damage costs'!$C$16:$C$43,0))/1000),\"\")","v":""},{"$f":"IFERROR(IF(OR($C$110=FALSE,LEFT($B105,3)<>\"NOX\"),AH54*INDEX('Damage costs'!$W$16:$W$43,MATCH($B105,'Damage costs'!$C$16:$C$43,0))/1000,AH54*INDEX('Damage costs'!$AA$16:$AA$43,MATCH($B105,'Damage costs'!$C$16:$C$43,0))/1000),\"\")","v":""},{"$f":"IFERROR(IF(OR($C$110=FALSE,LEFT($B105,3)<>\"NOX\"),AI54*INDEX('Damage costs'!$W$16:$W$43,MATCH($B105,'Damage costs'!$C$16:$C$43,0))/1000,AI54*INDEX('Damage costs'!$AA$16:$AA$43,MATCH($B105,'Damage costs'!$C$16:$C$43,0))/1000),\"\")","v":""},{"$f":"IFERROR(IF(OR($C$110=FALSE,LEFT($B105,3)<>\"NOX\"),AJ54*INDEX('Damage costs'!$W$16:$W$43,MATCH($B105,'Damage costs'!$C$16:$C$43,0))/1000,AJ54*INDEX('Damage costs'!$AA$16:$AA$43,MATCH($B105,'Damage costs'!$C$16:$C$43,0))/1000),\"\")","v":""},{"$f":"IFERROR(IF(OR($C$110=FALSE,LEFT($B105,3)<>\"NOX\"),AK54*INDEX('Damage costs'!$W$16:$W$43,MATCH($B105,'Damage costs'!$C$16:$C$43,0))/1000,AK54*INDEX('Damage costs'!$AA$16:$AA$43,MATCH($B105,'Damage costs'!$C$16:$C$43,0))/1000),\"\")","v":""},{"$f":"IFERROR(IF(OR($C$110=FALSE,LEFT($B105,3)<>\"NOX\"),AL54*INDEX('Damage costs'!$W$16:$W$43,MATCH($B105,'Damage costs'!$C$16:$C$43,0))/1000,AL54*INDEX('Damage costs'!$AA$16:$AA$43,MATCH($B105,'Damage costs'!$C$16:$C$43,0))/1000),\"\")","v":""},{"$f":"IFERROR(IF(OR($C$110=FALSE,LEFT($B105,3)<>\"NOX\"),AM54*INDEX('Damage costs'!$W$16:$W$43,MATCH($B105,'Damage costs'!$C$16:$C$43,0))/1000,AM54*INDEX('Damage costs'!$AA$16:$AA$43,MATCH($B105,'Damage costs'!$C$16:$C$43,0))/1000),\"\")","v":""},{"$f":"IFERROR(IF(OR($C$110=FALSE,LEFT($B105,3)<>\"NOX\"),AN54*INDEX('Damage costs'!$W$16:$W$43,MATCH($B105,'Damage costs'!$C$16:$C$43,0))/1000,AN54*INDEX('Damage costs'!$AA$16:$AA$43,MATCH($B105,'Damage costs'!$C$16:$C$43,0))/1000),\"\")","v":""},{"$f":"IFERROR(IF(OR($C$110=FALSE,LEFT($B105,3)<>\"NOX\"),AO54*INDEX('Damage costs'!$W$16:$W$43,MATCH($B105,'Damage costs'!$C$16:$C$43,0))/1000,AO54*INDEX('Damage costs'!$AA$16:$AA$43,MATCH($B105,'Damage costs'!$C$16:$C$43,0))/1000),\"\")","v":""},{"$f":"IFERROR(IF(OR($C$110=FALSE,LEFT($B105,3)<>\"NOX\"),AP54*INDEX('Damage costs'!$W$16:$W$43,MATCH($B105,'Damage costs'!$C$16:$C$43,0))/1000,AP54*INDEX('Damage costs'!$AA$16:$AA$43,MATCH($B105,'Damage costs'!$C$16:$C$43,0))/1000),\"\")","v":""},{"$f":"IFERROR(IF(OR($C$110=FALSE,LEFT($B105,3)<>\"NOX\"),AQ54*INDEX('Damage costs'!$W$16:$W$43,MATCH($B105,'Damage costs'!$C$16:$C$43,0))/1000,AQ54*INDEX('Damage costs'!$AA$16:$AA$43,MATCH($B105,'Damage costs'!$C$16:$C$43,0))/1000),\"\")","v":""},{"$f":"IFERROR(IF(OR($C$110=FALSE,LEFT($B105,3)<>\"NOX\"),AR54*INDEX('Damage costs'!$W$16:$W$43,MATCH($B105,'Damage costs'!$C$16:$C$43,0))/1000,AR54*INDEX('Damage costs'!$AA$16:$AA$43,MATCH($B105,'Damage costs'!$C$16:$C$43,0))/1000),\"\")","v":""},{"$f":"IFERROR(IF(OR($C$110=FALSE,LEFT($B105,3)<>\"NOX\"),AS54*INDEX('Damage costs'!$W$16:$W$43,MATCH($B105,'Damage costs'!$C$16:$C$43,0))/1000,AS54*INDEX('Damage costs'!$AA$16:$AA$43,MATCH($B105,'Damage costs'!$C$16:$C$43,0))/1000),\"\")","v":""},{"$f":"IFERROR(IF(OR($C$110=FALSE,LEFT($B105,3)<>\"NOX\"),AT54*INDEX('Damage costs'!$W$16:$W$43,MATCH($B105,'Damage costs'!$C$16:$C$43,0))/1000,AT54*INDEX('Damage costs'!$AA$16:$AA$43,MATCH($B105,'Damage costs'!$C$16:$C$43,0))/1000),\"\")","v":""},{"$f":"IFERROR(IF(OR($C$110=FALSE,LEFT($B105,3)<>\"NOX\"),AU54*INDEX('Damage costs'!$W$16:$W$43,MATCH($B105,'Damage costs'!$C$16:$C$43,0))/1000,AU54*INDEX('Damage costs'!$AA$16:$AA$43,MATCH($B105,'Damage costs'!$C$16:$C$43,0))/1000),\"\")","v":""},{"$f":"IFERROR(IF(OR($C$110=FALSE,LEFT($B105,3)<>\"NOX\"),AV54*INDEX('Damage costs'!$W$16:$W$43,MATCH($B105,'Damage costs'!$C$16:$C$43,0))/1000,AV54*INDEX('Damage costs'!$AA$16:$AA$43,MATCH($B105,'Damage costs'!$C$16:$C$43,0))/1000),\"\")","v":""},{"$f":"IFERROR(IF(OR($C$110=FALSE,LEFT($B105,3)<>\"NOX\"),AW54*INDEX('Damage costs'!$W$16:$W$43,MATCH($B105,'Damage costs'!$C$16:$C$43,0))/1000,AW54*INDEX('Damage costs'!$AA$16:$AA$43,MATCH($B105,'Damage costs'!$C$16:$C$43,0))/1000),\"\")","v":""},{"$f":"IFERROR(IF(OR($C$110=FALSE,LEFT($B105,3)<>\"NOX\"),AX54*INDEX('Damage costs'!$W$16:$W$43,MATCH($B105,'Damage costs'!$C$16:$C$43,0))/1000,AX54*INDEX('Damage costs'!$AA$16:$AA$43,MATCH($B105,'Damage costs'!$C$16:$C$43,0))/1000),\"\")","v":""},{"$f":"IFERROR(IF(OR($C$110=FALSE,LEFT($B105,3)<>\"NOX\"),AY54*INDEX('Damage costs'!$W$16:$W$43,MATCH($B105,'Damage costs'!$C$16:$C$43,0))/1000,AY54*INDEX('Damage costs'!$AA$16:$AA$43,MATCH($B105,'Damage costs'!$C$16:$C$43,0))/1000),\"\")","v":""},{"$f":"IFERROR(IF(OR($C$110=FALSE,LEFT($B105,3)<>\"NOX\"),AZ54*INDEX('Damage costs'!$W$16:$W$43,MATCH($B105,'Damage costs'!$C$16:$C$43,0))/1000,AZ54*INDEX('Damage costs'!$AA$16:$AA$43,MATCH($B105,'Damage costs'!$C$16:$C$43,0))/1000),\"\")","v":""},{"$f":"IFERROR(IF(OR($C$110=FALSE,LEFT($B105,3)<>\"NOX\"),BA54*INDEX('Damage costs'!$W$16:$W$43,MATCH($B105,'Damage costs'!$C$16:$C$43,0))/1000,BA54*INDEX('Damage costs'!$AA$16:$AA$43,MATCH($B105,'Damage costs'!$C$16:$C$43,0))/1000),\"\")","v":""},{"$f":"IFERROR(IF(OR($C$110=FALSE,LEFT($B105,3)<>\"NOX\"),BB54*INDEX('Damage costs'!$W$16:$W$43,MATCH($B105,'Damage costs'!$C$16:$C$43,0))/1000,BB54*INDEX('Damage costs'!$AA$16:$AA$43,MATCH($B105,'Damage costs'!$C$16:$C$43,0))/1000),\"\")","v":""},{"$f":"IFERROR(IF(OR($C$110=FALSE,LEFT($B105,3)<>\"NOX\"),BC54*INDEX('Damage costs'!$W$16:$W$43,MATCH($B105,'Damage costs'!$C$16:$C$43,0))/1000,BC54*INDEX('Damage costs'!$AA$16:$AA$43,MATCH($B105,'Damage costs'!$C$16:$C$43,0))/1000),\"\")","v":""},{"$f":"IFERROR(IF(OR($C$110=FALSE,LEFT($B105,3)<>\"NOX\"),BD54*INDEX('Damage costs'!$W$16:$W$43,MATCH($B105,'Damage costs'!$C$16:$C$43,0))/1000,BD54*INDEX('Damage costs'!$AA$16:$AA$43,MATCH($B105,'Damage costs'!$C$16:$C$43,0))/1000),\"\")","v":""},{"$f":"IFERROR(IF(OR($C$110=FALSE,LEFT($B105,3)<>\"NOX\"),BE54*INDEX('Damage costs'!$W$16:$W$43,MATCH($B105,'Damage costs'!$C$16:$C$43,0))/1000,BE54*INDEX('Damage costs'!$AA$16:$AA$43,MATCH($B105,'Damage costs'!$C$16:$C$43,0))/1000),\"\")","v":""},{"$f":"IFERROR(IF(OR($C$110=FALSE,LEFT($B105,3)<>\"NOX\"),BF54*INDEX('Damage costs'!$W$16:$W$43,MATCH($B105,'Damage costs'!$C$16:$C$43,0))/1000,BF54*INDEX('Damage costs'!$AA$16:$AA$43,MATCH($B105,'Damage costs'!$C$16:$C$43,0))/1000),\"\")","v":""},{"$f":"IFERROR(IF(OR($C$110=FALSE,LEFT($B105,3)<>\"NOX\"),BG54*INDEX('Damage costs'!$W$16:$W$43,MATCH($B105,'Damage costs'!$C$16:$C$43,0))/1000,BG54*INDEX('Damage costs'!$AA$16:$AA$43,MATCH($B105,'Damage costs'!$C$16:$C$43,0))/1000),\"\")","v":""},{"$f":"IFERROR(IF(OR($C$110=FALSE,LEFT($B105,3)<>\"NOX\"),BH54*INDEX('Damage costs'!$W$16:$W$43,MATCH($B105,'Damage costs'!$C$16:$C$43,0))/1000,BH54*INDEX('Damage costs'!$AA$16:$AA$43,MATCH($B105,'Damage costs'!$C$16:$C$43,0))/1000),\"\")","v":""},{"$f":"IFERROR(IF(OR($C$110=FALSE,LEFT($B105,3)<>\"NOX\"),BI54*INDEX('Damage costs'!$W$16:$W$43,MATCH($B105,'Damage costs'!$C$16:$C$43,0))/1000,BI54*INDEX('Damage costs'!$AA$16:$AA$43,MATCH($B105,'Damage costs'!$C$16:$C$43,0))/1000),\"\")","v":""},{"$f":"IFERROR(IF(OR($C$110=FALSE,LEFT($B105,3)<>\"NOX\"),BJ54*INDEX('Damage costs'!$W$16:$W$43,MATCH($B105,'Damage costs'!$C$16:$C$43,0))/1000,BJ54*INDEX('Damage costs'!$AA$16:$AA$43,MATCH($B105,'Damage costs'!$C$16:$C$43,0))/1000),\"\")","v":""},{"$f":"IFERROR(IF(OR($C$110=FALSE,LEFT($B105,3)<>\"NOX\"),BK54*INDEX('Damage costs'!$W$16:$W$43,MATCH($B105,'Damage costs'!$C$16:$C$43,0))/1000,BK54*INDEX('Damage costs'!$AA$16:$AA$43,MATCH($B105,'Damage costs'!$C$16:$C$43,0))/1000),\"\")","v":""},{"$f":"IFERROR(IF(OR($C$110=FALSE,LEFT($B105,3)<>\"NOX\"),BL54*INDEX('Damage costs'!$W$16:$W$43,MATCH($B105,'Damage costs'!$C$16:$C$43,0))/1000,BL54*INDEX('Damage costs'!$AA$16:$AA$43,MATCH($B105,'Damage costs'!$C$16:$C$43,0))/1000),\"\")","v":""},{"$f":"IFERROR(IF(OR($C$110=FALSE,LEFT($B105,3)<>\"NOX\"),BM54*INDEX('Damage costs'!$W$16:$W$43,MATCH($B105,'Damage costs'!$C$16:$C$43,0))/1000,BM54*INDEX('Damage costs'!$AA$16:$AA$43,MATCH($B105,'Damage costs'!$C$16:$C$43,0))/1000),\"\")","v":""},{"$f":"IFERROR(IF(OR($C$110=FALSE,LEFT($B105,3)<>\"NOX\"),BN54*INDEX('Damage costs'!$W$16:$W$43,MATCH($B105,'Damage costs'!$C$16:$C$43,0))/1000,BN54*INDEX('Damage costs'!$AA$16:$AA$43,MATCH($B105,'Damage costs'!$C$16:$C$43,0))/1000),\"\")","v":""},{"$f":"IFERROR(IF(OR($C$110=FALSE,LEFT($B105,3)<>\"NOX\"),BO54*INDEX('Damage costs'!$W$16:$W$43,MATCH($B105,'Damage costs'!$C$16:$C$43,0))/1000,BO54*INDEX('Damage costs'!$AA$16:$AA$43,MATCH($B105,'Damage costs'!$C$16:$C$43,0))/1000),\"\")","v":""},{"$f":"IFERROR(IF(OR($C$110=FALSE,LEFT($B105,3)<>\"NOX\"),BP54*INDEX('Damage costs'!$W$16:$W$43,MATCH($B105,'Damage costs'!$C$16:$C$43,0))/1000,BP54*INDEX('Damage costs'!$AA$16:$AA$43,MATCH($B105,'Damage costs'!$C$16:$C$43,0))/1000),\"\")","v":""},{"$f":"IFERROR(IF(OR($C$110=FALSE,LEFT($B105,3)<>\"NOX\"),BQ54*INDEX('Damage costs'!$W$16:$W$43,MATCH($B105,'Damage costs'!$C$16:$C$43,0))/1000,BQ54*INDEX('Damage costs'!$AA$16:$AA$43,MATCH($B105,'Damage costs'!$C$16:$C$43,0))/1000),\"\")","v":""},{"$f":"IFERROR(IF(OR($C$110=FALSE,LEFT($B105,3)<>\"NOX\"),BR54*INDEX('Damage costs'!$W$16:$W$43,MATCH($B105,'Damage costs'!$C$16:$C$43,0))/1000,BR54*INDEX('Damage costs'!$AA$16:$AA$43,MATCH($B105,'Damage costs'!$C$16:$C$43,0))/1000),\"\")","v":""},{"$f":"IFERROR(IF(OR($C$110=FALSE,LEFT($B105,3)<>\"NOX\"),BS54*INDEX('Damage costs'!$W$16:$W$43,MATCH($B105,'Damage costs'!$C$16:$C$43,0))/1000,BS54*INDEX('Damage costs'!$AA$16:$AA$43,MATCH($B105,'Damage costs'!$C$16:$C$43,0))/1000),\"\")","v":""},{"$f":"IFERROR(IF(OR($C$110=FALSE,LEFT($B105,3)<>\"NOX\"),BT54*INDEX('Damage costs'!$W$16:$W$43,MATCH($B105,'Damage costs'!$C$16:$C$43,0))/1000,BT54*INDEX('Damage costs'!$AA$16:$AA$43,MATCH($B105,'Damage costs'!$C$16:$C$43,0))/1000),\"\")","v":""},{"$f":"IFERROR(IF(OR($C$110=FALSE,LEFT($B105,3)<>\"NOX\"),BU54*INDEX('Damage costs'!$W$16:$W$43,MATCH($B105,'Damage costs'!$C$16:$C$43,0))/1000,BU54*INDEX('Damage costs'!$AA$16:$AA$43,MATCH($B105,'Damage costs'!$C$16:$C$43,0))/1000),\"\")","v":""},{"$f":"IFERROR(IF(OR($C$110=FALSE,LEFT($B105,3)<>\"NOX\"),BV54*INDEX('Damage costs'!$W$16:$W$43,MATCH($B105,'Damage costs'!$C$16:$C$43,0))/1000,BV54*INDEX('Damage costs'!$AA$16:$AA$43,MATCH($B105,'Damage costs'!$C$16:$C$43,0))/1000),\"\")","v":""},{"$f":"IFERROR(IF(OR($C$110=FALSE,LEFT($B105,3)<>\"NOX\"),BW54*INDEX('Damage costs'!$W$16:$W$43,MATCH($B105,'Damage costs'!$C$16:$C$43,0))/1000,BW54*INDEX('Damage costs'!$AA$16:$AA$43,MATCH($B105,'Damage costs'!$C$16:$C$43,0))/1000),\"\")","v":""},{"$f":"IFERROR(IF(OR($C$110=FALSE,LEFT($B105,3)<>\"NOX\"),BX54*INDEX('Damage costs'!$W$16:$W$43,MATCH($B105,'Damage costs'!$C$16:$C$43,0))/1000,BX54*INDEX('Damage costs'!$AA$16:$AA$43,MATCH($B105,'Damage costs'!$C$16:$C$43,0))/1000),\"\")","v":""},{"$f":"IFERROR(IF(OR($C$110=FALSE,LEFT($B105,3)<>\"NOX\"),BY54*INDEX('Damage costs'!$W$16:$W$43,MATCH($B105,'Damage costs'!$C$16:$C$43,0))/1000,BY54*INDEX('Damage costs'!$AA$16:$AA$43,MATCH($B105,'Damage costs'!$C$16:$C$43,0))/1000),\"\")","v":""},{"$f":"IFERROR(IF(OR($C$110=FALSE,LEFT($B105,3)<>\"NOX\"),BZ54*INDEX('Damage costs'!$W$16:$W$43,MATCH($B105,'Damage costs'!$C$16:$C$43,0))/1000,BZ54*INDEX('Damage costs'!$AA$16:$AA$43,MATCH($B105,'Damage costs'!$C$16:$C$43,0))/1000),\"\")","v":""},{"$f":"IFERROR(IF(OR($C$110=FALSE,LEFT($B105,3)<>\"NOX\"),CA54*INDEX('Damage costs'!$W$16:$W$43,MATCH($B105,'Damage costs'!$C$16:$C$43,0))/1000,CA54*INDEX('Damage costs'!$AA$16:$AA$43,MATCH($B105,'Damage costs'!$C$16:$C$43,0))/1000),\"\")","v":""},{"$f":"IFERROR(IF(OR($C$110=FALSE,LEFT($B105,3)<>\"NOX\"),CB54*INDEX('Damage costs'!$W$16:$W$43,MATCH($B105,'Damage costs'!$C$16:$C$43,0))/1000,CB54*INDEX('Damage costs'!$AA$16:$AA$43,MATCH($B105,'Damage costs'!$C$16:$C$43,0))/1000),\"\")","v":""},{"$f":"IFERROR(IF(OR($C$110=FALSE,LEFT($B105,3)<>\"NOX\"),CC54*INDEX('Damage costs'!$W$16:$W$43,MATCH($B105,'Damage costs'!$C$16:$C$43,0))/1000,CC54*INDEX('Damage costs'!$AA$16:$AA$43,MATCH($B105,'Damage costs'!$C$16:$C$43,0))/1000),\"\")","v":""},{"$f":"IFERROR(IF(OR($C$110=FALSE,LEFT($B105,3)<>\"NOX\"),CD54*INDEX('Damage costs'!$W$16:$W$43,MATCH($B105,'Damage costs'!$C$16:$C$43,0))/1000,CD54*INDEX('Damage costs'!$AA$16:$AA$43,MATCH($B105,'Damage costs'!$C$16:$C$43,0))/1000),\"\")","v":""},{"$f":"IFERROR(IF(OR($C$110=FALSE,LEFT($B105,3)<>\"NOX\"),CE54*INDEX('Damage costs'!$W$16:$W$43,MATCH($B105,'Damage costs'!$C$16:$C$43,0))/1000,CE54*INDEX('Damage costs'!$AA$16:$AA$43,MATCH($B105,'Damage costs'!$C$16:$C$43,0))/1000),\"\")","v":""},{"$f":"IFERROR(IF(OR($C$110=FALSE,LEFT($B105,3)<>\"NOX\"),CF54*INDEX('Damage costs'!$W$16:$W$43,MATCH($B105,'Damage costs'!$C$16:$C$43,0))/1000,CF54*INDEX('Damage costs'!$AA$16:$AA$43,MATCH($B105,'Damage costs'!$C$16:$C$43,0))/1000),\"\")","v":""},{"$f":"IFERROR(IF(OR($C$110=FALSE,LEFT($B105,3)<>\"NOX\"),CG54*INDEX('Damage costs'!$W$16:$W$43,MATCH($B105,'Damage costs'!$C$16:$C$43,0))/1000,CG54*INDEX('Damage costs'!$AA$16:$AA$43,MATCH($B105,'Damage costs'!$C$16:$C$43,0))/1000),\"\")","v":""},{"$f":"IFERROR(IF(OR($C$110=FALSE,LEFT($B105,3)<>\"NOX\"),CH54*INDEX('Damage costs'!$W$16:$W$43,MATCH($B105,'Damage costs'!$C$16:$C$43,0))/1000,CH54*INDEX('Damage costs'!$AA$16:$AA$43,MATCH($B105,'Damage costs'!$C$16:$C$43,0))/1000),\"\")","v":""},{"$f":"IFERROR(IF(OR($C$110=FALSE,LEFT($B105,3)<>\"NOX\"),CI54*INDEX('Damage costs'!$W$16:$W$43,MATCH($B105,'Damage costs'!$C$16:$C$43,0))/1000,CI54*INDEX('Damage costs'!$AA$16:$AA$43,MATCH($B105,'Damage costs'!$C$16:$C$43,0))/1000),\"\")","v":""},{"$f":"IFERROR(IF(OR($C$110=FALSE,LEFT($B105,3)<>\"NOX\"),CJ54*INDEX('Damage costs'!$W$16:$W$43,MATCH($B105,'Damage costs'!$C$16:$C$43,0))/1000,CJ54*INDEX('Damage costs'!$AA$16:$AA$43,MATCH($B105,'Damage costs'!$C$16:$C$43,0))/1000),\"\")","v":""},{"$f":"IFERROR(IF(OR($C$110=FALSE,LEFT($B105,3)<>\"NOX\"),CK54*INDEX('Damage costs'!$W$16:$W$43,MATCH($B105,'Damage costs'!$C$16:$C$43,0))/1000,CK54*INDEX('Damage costs'!$AA$16:$AA$43,MATCH($B105,'Damage costs'!$C$16:$C$43,0))/1000),\"\")","v":""},{"$f":"IFERROR(IF(OR($C$110=FALSE,LEFT($B105,3)<>\"NOX\"),CL54*INDEX('Damage costs'!$W$16:$W$43,MATCH($B105,'Damage costs'!$C$16:$C$43,0))/1000,CL54*INDEX('Damage costs'!$AA$16:$AA$43,MATCH($B105,'Damage costs'!$C$16:$C$43,0))/1000),\"\")","v":""},{"$f":"IFERROR(IF(OR($C$110=FALSE,LEFT($B105,3)<>\"NOX\"),CM54*INDEX('Damage costs'!$W$16:$W$43,MATCH($B105,'Damage costs'!$C$16:$C$43,0))/1000,CM54*INDEX('Damage costs'!$AA$16:$AA$43,MATCH($B105,'Damage costs'!$C$16:$C$43,0))/1000),\"\")","v":""},{"$f":"IFERROR(IF(OR($C$110=FALSE,LEFT($B105,3)<>\"NOX\"),CN54*INDEX('Damage costs'!$W$16:$W$43,MATCH($B105,'Damage costs'!$C$16:$C$43,0))/1000,CN54*INDEX('Damage costs'!$AA$16:$AA$43,MATCH($B105,'Damage costs'!$C$16:$C$43,0))/1000),\"\")","v":""},{"$f":"IFERROR(IF(OR($C$110=FALSE,LEFT($B105,3)<>\"NOX\"),CO54*INDEX('Damage costs'!$W$16:$W$43,MATCH($B105,'Damage costs'!$C$16:$C$43,0))/1000,CO54*INDEX('Damage costs'!$AA$16:$AA$43,MATCH($B105,'Damage costs'!$C$16:$C$43,0))/1000),\"\")","v":""},{"$f":"IFERROR(IF(OR($C$110=FALSE,LEFT($B105,3)<>\"NOX\"),CP54*INDEX('Damage costs'!$W$16:$W$43,MATCH($B105,'Damage costs'!$C$16:$C$43,0))/1000,CP54*INDEX('Damage costs'!$AA$16:$AA$43,MATCH($B105,'Damage costs'!$C$16:$C$43,0))/1000),\"\")","v":""},{"$f":"IFERROR(IF(OR($C$110=FALSE,LEFT($B105,3)<>\"NOX\"),CQ54*INDEX('Damage costs'!$W$16:$W$43,MATCH($B105,'Damage costs'!$C$16:$C$43,0))/1000,CQ54*INDEX('Damage costs'!$AA$16:$AA$43,MATCH($B105,'Damage costs'!$C$16:$C$43,0))/1000),\"\")","v":""},{"$f":"IFERROR(IF(OR($C$110=FALSE,LEFT($B105,3)<>\"NOX\"),CR54*INDEX('Damage costs'!$W$16:$W$43,MATCH($B105,'Damage costs'!$C$16:$C$43,0))/1000,CR54*INDEX('Damage costs'!$AA$16:$AA$43,MATCH($B105,'Damage costs'!$C$16:$C$43,0))/1000),\"\")","v":""},{"$f":"IFERROR(IF(OR($C$110=FALSE,LEFT($B105,3)<>\"NOX\"),CS54*INDEX('Damage costs'!$W$16:$W$43,MATCH($B105,'Damage costs'!$C$16:$C$43,0))/1000,CS54*INDEX('Damage costs'!$AA$16:$AA$43,MATCH($B105,'Damage costs'!$C$16:$C$43,0))/1000),\"\")","v":""},{"$f":"IFERROR(IF(OR($C$110=FALSE,LEFT($B105,3)<>\"NOX\"),CT54*INDEX('Damage costs'!$W$16:$W$43,MATCH($B105,'Damage costs'!$C$16:$C$43,0))/1000,CT54*INDEX('Damage costs'!$AA$16:$AA$43,MATCH($B105,'Damage costs'!$C$16:$C$43,0))/1000),\"\")","v":""},{"$f":"IFERROR(IF(OR($C$110=FALSE,LEFT($B105,3)<>\"NOX\"),CU54*INDEX('Damage costs'!$W$16:$W$43,MATCH($B105,'Damage costs'!$C$16:$C$43,0))/1000,CU54*INDEX('Damage costs'!$AA$16:$AA$43,MATCH($B105,'Damage costs'!$C$16:$C$43,0))/1000),\"\")","v":""},{"$f":"IFERROR(IF(OR($C$110=FALSE,LEFT($B105,3)<>\"NOX\"),CV54*INDEX('Damage costs'!$W$16:$W$43,MATCH($B105,'Damage costs'!$C$16:$C$43,0))/1000,CV54*INDEX('Damage costs'!$AA$16:$AA$43,MATCH($B105,'Damage costs'!$C$16:$C$43,0))/1000),\"\")","v":""},{"$f":"IFERROR(IF(OR($C$110=FALSE,LEFT($B105,3)<>\"NOX\"),CW54*INDEX('Damage costs'!$W$16:$W$43,MATCH($B105,'Damage costs'!$C$16:$C$43,0))/1000,CW54*INDEX('Damage costs'!$AA$16:$AA$43,MATCH($B105,'Damage costs'!$C$16:$C$43,0))/1000),\"\")","v":""},{"$f":"IFERROR(IF(OR($C$110=FALSE,LEFT($B105,3)<>\"NOX\"),CX54*INDEX('Damage costs'!$W$16:$W$43,MATCH($B105,'Damage costs'!$C$16:$C$43,0))/1000,CX54*INDEX('Damage costs'!$AA$16:$AA$43,MATCH($B105,'Damage costs'!$C$16:$C$43,0))/1000),\"\")","v":""},{"$f":"IFERROR(IF(OR($C$110=FALSE,LEFT($B105,3)<>\"NOX\"),CY54*INDEX('Damage costs'!$W$16:$W$43,MATCH($B105,'Damage costs'!$C$16:$C$43,0))/1000,CY54*INDEX('Damage costs'!$AA$16:$AA$43,MATCH($B105,'Damage costs'!$C$16:$C$43,0))/1000),\"\")","v":""}]
[null,0,"£000's",{"$f":"IFERROR(IF(OR($C$110=FALSE,LEFT($B106,3)<>\"NOX\"),D55*INDEX('Damage costs'!$W$16:$W$43,MATCH($B106,'Damage costs'!$C$16:$C$43,0))/1000,D55*INDEX('Damage costs'!$AA$16:$AA$43,MATCH($B106,'Damage costs'!$C$16:$C$43,0))/1000),\"\")","v":""},{"$f":"IFERROR(IF(OR($C$110=FALSE,LEFT($B106,3)<>\"NOX\"),E55*INDEX('Damage costs'!$W$16:$W$43,MATCH($B106,'Damage costs'!$C$16:$C$43,0))/1000,E55*INDEX('Damage costs'!$AA$16:$AA$43,MATCH($B106,'Damage costs'!$C$16:$C$43,0))/1000),\"\")","v":""},{"$f":"IFERROR(IF(OR($C$110=FALSE,LEFT($B106,3)<>\"NOX\"),F55*INDEX('Damage costs'!$W$16:$W$43,MATCH($B106,'Damage costs'!$C$16:$C$43,0))/1000,F55*INDEX('Damage costs'!$AA$16:$AA$43,MATCH($B106,'Damage costs'!$C$16:$C$43,0))/1000),\"\")","v":""},{"$f":"IFERROR(IF(OR($C$110=FALSE,LEFT($B106,3)<>\"NOX\"),G55*INDEX('Damage costs'!$W$16:$W$43,MATCH($B106,'Damage costs'!$C$16:$C$43,0))/1000,G55*INDEX('Damage costs'!$AA$16:$AA$43,MATCH($B106,'Damage costs'!$C$16:$C$43,0))/1000),\"\")","v":""},{"$f":"IFERROR(IF(OR($C$110=FALSE,LEFT($B106,3)<>\"NOX\"),H55*INDEX('Damage costs'!$W$16:$W$43,MATCH($B106,'Damage costs'!$C$16:$C$43,0))/1000,H55*INDEX('Damage costs'!$AA$16:$AA$43,MATCH($B106,'Damage costs'!$C$16:$C$43,0))/1000),\"\")","v":""},{"$f":"IFERROR(IF(OR($C$110=FALSE,LEFT($B106,3)<>\"NOX\"),I55*INDEX('Damage costs'!$W$16:$W$43,MATCH($B106,'Damage costs'!$C$16:$C$43,0))/1000,I55*INDEX('Damage costs'!$AA$16:$AA$43,MATCH($B106,'Damage costs'!$C$16:$C$43,0))/1000),\"\")","v":""},{"$f":"IFERROR(IF(OR($C$110=FALSE,LEFT($B106,3)<>\"NOX\"),J55*INDEX('Damage costs'!$W$16:$W$43,MATCH($B106,'Damage costs'!$C$16:$C$43,0))/1000,J55*INDEX('Damage costs'!$AA$16:$AA$43,MATCH($B106,'Damage costs'!$C$16:$C$43,0))/1000),\"\")","v":""},{"$f":"IFERROR(IF(OR($C$110=FALSE,LEFT($B106,3)<>\"NOX\"),K55*INDEX('Damage costs'!$W$16:$W$43,MATCH($B106,'Damage costs'!$C$16:$C$43,0))/1000,K55*INDEX('Damage costs'!$AA$16:$AA$43,MATCH($B106,'Damage costs'!$C$16:$C$43,0))/1000),\"\")","v":""},{"$f":"IFERROR(IF(OR($C$110=FALSE,LEFT($B106,3)<>\"NOX\"),L55*INDEX('Damage costs'!$W$16:$W$43,MATCH($B106,'Damage costs'!$C$16:$C$43,0))/1000,L55*INDEX('Damage costs'!$AA$16:$AA$43,MATCH($B106,'Damage costs'!$C$16:$C$43,0))/1000),\"\")","v":""},{"$f":"IFERROR(IF(OR($C$110=FALSE,LEFT($B106,3)<>\"NOX\"),M55*INDEX('Damage costs'!$W$16:$W$43,MATCH($B106,'Damage costs'!$C$16:$C$43,0))/1000,M55*INDEX('Damage costs'!$AA$16:$AA$43,MATCH($B106,'Damage costs'!$C$16:$C$43,0))/1000),\"\")","v":""},{"$f":"IFERROR(IF(OR($C$110=FALSE,LEFT($B106,3)<>\"NOX\"),N55*INDEX('Damage costs'!$W$16:$W$43,MATCH($B106,'Damage costs'!$C$16:$C$43,0))/1000,N55*INDEX('Damage costs'!$AA$16:$AA$43,MATCH($B106,'Damage costs'!$C$16:$C$43,0))/1000),\"\")","v":""},{"$f":"IFERROR(IF(OR($C$110=FALSE,LEFT($B106,3)<>\"NOX\"),O55*INDEX('Damage costs'!$W$16:$W$43,MATCH($B106,'Damage costs'!$C$16:$C$43,0))/1000,O55*INDEX('Damage costs'!$AA$16:$AA$43,MATCH($B106,'Damage costs'!$C$16:$C$43,0))/1000),\"\")","v":""},{"$f":"IFERROR(IF(OR($C$110=FALSE,LEFT($B106,3)<>\"NOX\"),P55*INDEX('Damage costs'!$W$16:$W$43,MATCH($B106,'Damage costs'!$C$16:$C$43,0))/1000,P55*INDEX('Damage costs'!$AA$16:$AA$43,MATCH($B106,'Damage costs'!$C$16:$C$43,0))/1000),\"\")","v":""},{"$f":"IFERROR(IF(OR($C$110=FALSE,LEFT($B106,3)<>\"NOX\"),Q55*INDEX('Damage costs'!$W$16:$W$43,MATCH($B106,'Damage costs'!$C$16:$C$43,0))/1000,Q55*INDEX('Damage costs'!$AA$16:$AA$43,MATCH($B106,'Damage costs'!$C$16:$C$43,0))/1000),\"\")","v":""},{"$f":"IFERROR(IF(OR($C$110=FALSE,LEFT($B106,3)<>\"NOX\"),R55*INDEX('Damage costs'!$W$16:$W$43,MATCH($B106,'Damage costs'!$C$16:$C$43,0))/1000,R55*INDEX('Damage costs'!$AA$16:$AA$43,MATCH($B106,'Damage costs'!$C$16:$C$43,0))/1000),\"\")","v":""},{"$f":"IFERROR(IF(OR($C$110=FALSE,LEFT($B106,3)<>\"NOX\"),S55*INDEX('Damage costs'!$W$16:$W$43,MATCH($B106,'Damage costs'!$C$16:$C$43,0))/1000,S55*INDEX('Damage costs'!$AA$16:$AA$43,MATCH($B106,'Damage costs'!$C$16:$C$43,0))/1000),\"\")","v":""},{"$f":"IFERROR(IF(OR($C$110=FALSE,LEFT($B106,3)<>\"NOX\"),T55*INDEX('Damage costs'!$W$16:$W$43,MATCH($B106,'Damage costs'!$C$16:$C$43,0))/1000,T55*INDEX('Damage costs'!$AA$16:$AA$43,MATCH($B106,'Damage costs'!$C$16:$C$43,0))/1000),\"\")","v":""},{"$f":"IFERROR(IF(OR($C$110=FALSE,LEFT($B106,3)<>\"NOX\"),U55*INDEX('Damage costs'!$W$16:$W$43,MATCH($B106,'Damage costs'!$C$16:$C$43,0))/1000,U55*INDEX('Damage costs'!$AA$16:$AA$43,MATCH($B106,'Damage costs'!$C$16:$C$43,0))/1000),\"\")","v":""},{"$f":"IFERROR(IF(OR($C$110=FALSE,LEFT($B106,3)<>\"NOX\"),V55*INDEX('Damage costs'!$W$16:$W$43,MATCH($B106,'Damage costs'!$C$16:$C$43,0))/1000,V55*INDEX('Damage costs'!$AA$16:$AA$43,MATCH($B106,'Damage costs'!$C$16:$C$43,0))/1000),\"\")","v":""},{"$f":"IFERROR(IF(OR($C$110=FALSE,LEFT($B106,3)<>\"NOX\"),W55*INDEX('Damage costs'!$W$16:$W$43,MATCH($B106,'Damage costs'!$C$16:$C$43,0))/1000,W55*INDEX('Damage costs'!$AA$16:$AA$43,MATCH($B106,'Damage costs'!$C$16:$C$43,0))/1000),\"\")","v":""},{"$f":"IFERROR(IF(OR($C$110=FALSE,LEFT($B106,3)<>\"NOX\"),X55*INDEX('Damage costs'!$W$16:$W$43,MATCH($B106,'Damage costs'!$C$16:$C$43,0))/1000,X55*INDEX('Damage costs'!$AA$16:$AA$43,MATCH($B106,'Damage costs'!$C$16:$C$43,0))/1000),\"\")","v":""},{"$f":"IFERROR(IF(OR($C$110=FALSE,LEFT($B106,3)<>\"NOX\"),Y55*INDEX('Damage costs'!$W$16:$W$43,MATCH($B106,'Damage costs'!$C$16:$C$43,0))/1000,Y55*INDEX('Damage costs'!$AA$16:$AA$43,MATCH($B106,'Damage costs'!$C$16:$C$43,0))/1000),\"\")","v":""},{"$f":"IFERROR(IF(OR($C$110=FALSE,LEFT($B106,3)<>\"NOX\"),Z55*INDEX('Damage costs'!$W$16:$W$43,MATCH($B106,'Damage costs'!$C$16:$C$43,0))/1000,Z55*INDEX('Damage costs'!$AA$16:$AA$43,MATCH($B106,'Damage costs'!$C$16:$C$43,0))/1000),\"\")","v":""},{"$f":"IFERROR(IF(OR($C$110=FALSE,LEFT($B106,3)<>\"NOX\"),AA55*INDEX('Damage costs'!$W$16:$W$43,MATCH($B106,'Damage costs'!$C$16:$C$43,0))/1000,AA55*INDEX('Damage costs'!$AA$16:$AA$43,MATCH($B106,'Damage costs'!$C$16:$C$43,0))/1000),\"\")","v":""},{"$f":"IFERROR(IF(OR($C$110=FALSE,LEFT($B106,3)<>\"NOX\"),AB55*INDEX('Damage costs'!$W$16:$W$43,MATCH($B106,'Damage costs'!$C$16:$C$43,0))/1000,AB55*INDEX('Damage costs'!$AA$16:$AA$43,MATCH($B106,'Damage costs'!$C$16:$C$43,0))/1000),\"\")","v":""},{"$f":"IFERROR(IF(OR($C$110=FALSE,LEFT($B106,3)<>\"NOX\"),AC55*INDEX('Damage costs'!$W$16:$W$43,MATCH($B106,'Damage costs'!$C$16:$C$43,0))/1000,AC55*INDEX('Damage costs'!$AA$16:$AA$43,MATCH($B106,'Damage costs'!$C$16:$C$43,0))/1000),\"\")","v":""},{"$f":"IFERROR(IF(OR($C$110=FALSE,LEFT($B106,3)<>\"NOX\"),AD55*INDEX('Damage costs'!$W$16:$W$43,MATCH($B106,'Damage costs'!$C$16:$C$43,0))/1000,AD55*INDEX('Damage costs'!$AA$16:$AA$43,MATCH($B106,'Damage costs'!$C$16:$C$43,0))/1000),\"\")","v":""},{"$f":"IFERROR(IF(OR($C$110=FALSE,LEFT($B106,3)<>\"NOX\"),AE55*INDEX('Damage costs'!$W$16:$W$43,MATCH($B106,'Damage costs'!$C$16:$C$43,0))/1000,AE55*INDEX('Damage costs'!$AA$16:$AA$43,MATCH($B106,'Damage costs'!$C$16:$C$43,0))/1000),\"\")","v":""},{"$f":"IFERROR(IF(OR($C$110=FALSE,LEFT($B106,3)<>\"NOX\"),AF55*INDEX('Damage costs'!$W$16:$W$43,MATCH($B106,'Damage costs'!$C$16:$C$43,0))/1000,AF55*INDEX('Damage costs'!$AA$16:$AA$43,MATCH($B106,'Damage costs'!$C$16:$C$43,0))/1000),\"\")","v":""},{"$f":"IFERROR(IF(OR($C$110=FALSE,LEFT($B106,3)<>\"NOX\"),AG55*INDEX('Damage costs'!$W$16:$W$43,MATCH($B106,'Damage costs'!$C$16:$C$43,0))/1000,AG55*INDEX('Damage costs'!$AA$16:$AA$43,MATCH($B106,'Damage costs'!$C$16:$C$43,0))/1000),\"\")","v":""},{"$f":"IFERROR(IF(OR($C$110=FALSE,LEFT($B106,3)<>\"NOX\"),AH55*INDEX('Damage costs'!$W$16:$W$43,MATCH($B106,'Damage costs'!$C$16:$C$43,0))/1000,AH55*INDEX('Damage costs'!$AA$16:$AA$43,MATCH($B106,'Damage costs'!$C$16:$C$43,0))/1000),\"\")","v":""},{"$f":"IFERROR(IF(OR($C$110=FALSE,LEFT($B106,3)<>\"NOX\"),AI55*INDEX('Damage costs'!$W$16:$W$43,MATCH($B106,'Damage costs'!$C$16:$C$43,0))/1000,AI55*INDEX('Damage costs'!$AA$16:$AA$43,MATCH($B106,'Damage costs'!$C$16:$C$43,0))/1000),\"\")","v":""},{"$f":"IFERROR(IF(OR($C$110=FALSE,LEFT($B106,3)<>\"NOX\"),AJ55*INDEX('Damage costs'!$W$16:$W$43,MATCH($B106,'Damage costs'!$C$16:$C$43,0))/1000,AJ55*INDEX('Damage costs'!$AA$16:$AA$43,MATCH($B106,'Damage costs'!$C$16:$C$43,0))/1000),\"\")","v":""},{"$f":"IFERROR(IF(OR($C$110=FALSE,LEFT($B106,3)<>\"NOX\"),AK55*INDEX('Damage costs'!$W$16:$W$43,MATCH($B106,'Damage costs'!$C$16:$C$43,0))/1000,AK55*INDEX('Damage costs'!$AA$16:$AA$43,MATCH($B106,'Damage costs'!$C$16:$C$43,0))/1000),\"\")","v":""},{"$f":"IFERROR(IF(OR($C$110=FALSE,LEFT($B106,3)<>\"NOX\"),AL55*INDEX('Damage costs'!$W$16:$W$43,MATCH($B106,'Damage costs'!$C$16:$C$43,0))/1000,AL55*INDEX('Damage costs'!$AA$16:$AA$43,MATCH($B106,'Damage costs'!$C$16:$C$43,0))/1000),\"\")","v":""},{"$f":"IFERROR(IF(OR($C$110=FALSE,LEFT($B106,3)<>\"NOX\"),AM55*INDEX('Damage costs'!$W$16:$W$43,MATCH($B106,'Damage costs'!$C$16:$C$43,0))/1000,AM55*INDEX('Damage costs'!$AA$16:$AA$43,MATCH($B106,'Damage costs'!$C$16:$C$43,0))/1000),\"\")","v":""},{"$f":"IFERROR(IF(OR($C$110=FALSE,LEFT($B106,3)<>\"NOX\"),AN55*INDEX('Damage costs'!$W$16:$W$43,MATCH($B106,'Damage costs'!$C$16:$C$43,0))/1000,AN55*INDEX('Damage costs'!$AA$16:$AA$43,MATCH($B106,'Damage costs'!$C$16:$C$43,0))/1000),\"\")","v":""},{"$f":"IFERROR(IF(OR($C$110=FALSE,LEFT($B106,3)<>\"NOX\"),AO55*INDEX('Damage costs'!$W$16:$W$43,MATCH($B106,'Damage costs'!$C$16:$C$43,0))/1000,AO55*INDEX('Damage costs'!$AA$16:$AA$43,MATCH($B106,'Damage costs'!$C$16:$C$43,0))/1000),\"\")","v":""},{"$f":"IFERROR(IF(OR($C$110=FALSE,LEFT($B106,3)<>\"NOX\"),AP55*INDEX('Damage costs'!$W$16:$W$43,MATCH($B106,'Damage costs'!$C$16:$C$43,0))/1000,AP55*INDEX('Damage costs'!$AA$16:$AA$43,MATCH($B106,'Damage costs'!$C$16:$C$43,0))/1000),\"\")","v":""},{"$f":"IFERROR(IF(OR($C$110=FALSE,LEFT($B106,3)<>\"NOX\"),AQ55*INDEX('Damage costs'!$W$16:$W$43,MATCH($B106,'Damage costs'!$C$16:$C$43,0))/1000,AQ55*INDEX('Damage costs'!$AA$16:$AA$43,MATCH($B106,'Damage costs'!$C$16:$C$43,0))/1000),\"\")","v":""},{"$f":"IFERROR(IF(OR($C$110=FALSE,LEFT($B106,3)<>\"NOX\"),AR55*INDEX('Damage costs'!$W$16:$W$43,MATCH($B106,'Damage costs'!$C$16:$C$43,0))/1000,AR55*INDEX('Damage costs'!$AA$16:$AA$43,MATCH($B106,'Damage costs'!$C$16:$C$43,0))/1000),\"\")","v":""},{"$f":"IFERROR(IF(OR($C$110=FALSE,LEFT($B106,3)<>\"NOX\"),AS55*INDEX('Damage costs'!$W$16:$W$43,MATCH($B106,'Damage costs'!$C$16:$C$43,0))/1000,AS55*INDEX('Damage costs'!$AA$16:$AA$43,MATCH($B106,'Damage costs'!$C$16:$C$43,0))/1000),\"\")","v":""},{"$f":"IFERROR(IF(OR($C$110=FALSE,LEFT($B106,3)<>\"NOX\"),AT55*INDEX('Damage costs'!$W$16:$W$43,MATCH($B106,'Damage costs'!$C$16:$C$43,0))/1000,AT55*INDEX('Damage costs'!$AA$16:$AA$43,MATCH($B106,'Damage costs'!$C$16:$C$43,0))/1000),\"\")","v":""},{"$f":"IFERROR(IF(OR($C$110=FALSE,LEFT($B106,3)<>\"NOX\"),AU55*INDEX('Damage costs'!$W$16:$W$43,MATCH($B106,'Damage costs'!$C$16:$C$43,0))/1000,AU55*INDEX('Damage costs'!$AA$16:$AA$43,MATCH($B106,'Damage costs'!$C$16:$C$43,0))/1000),\"\")","v":""},{"$f":"IFERROR(IF(OR($C$110=FALSE,LEFT($B106,3)<>\"NOX\"),AV55*INDEX('Damage costs'!$W$16:$W$43,MATCH($B106,'Damage costs'!$C$16:$C$43,0))/1000,AV55*INDEX('Damage costs'!$AA$16:$AA$43,MATCH($B106,'Damage costs'!$C$16:$C$43,0))/1000),\"\")","v":""},{"$f":"IFERROR(IF(OR($C$110=FALSE,LEFT($B106,3)<>\"NOX\"),AW55*INDEX('Damage costs'!$W$16:$W$43,MATCH($B106,'Damage costs'!$C$16:$C$43,0))/1000,AW55*INDEX('Damage costs'!$AA$16:$AA$43,MATCH($B106,'Damage costs'!$C$16:$C$43,0))/1000),\"\")","v":""},{"$f":"IFERROR(IF(OR($C$110=FALSE,LEFT($B106,3)<>\"NOX\"),AX55*INDEX('Damage costs'!$W$16:$W$43,MATCH($B106,'Damage costs'!$C$16:$C$43,0))/1000,AX55*INDEX('Damage costs'!$AA$16:$AA$43,MATCH($B106,'Damage costs'!$C$16:$C$43,0))/1000),\"\")","v":""},{"$f":"IFERROR(IF(OR($C$110=FALSE,LEFT($B106,3)<>\"NOX\"),AY55*INDEX('Damage costs'!$W$16:$W$43,MATCH($B106,'Damage costs'!$C$16:$C$43,0))/1000,AY55*INDEX('Damage costs'!$AA$16:$AA$43,MATCH($B106,'Damage costs'!$C$16:$C$43,0))/1000),\"\")","v":""},{"$f":"IFERROR(IF(OR($C$110=FALSE,LEFT($B106,3)<>\"NOX\"),AZ55*INDEX('Damage costs'!$W$16:$W$43,MATCH($B106,'Damage costs'!$C$16:$C$43,0))/1000,AZ55*INDEX('Damage costs'!$AA$16:$AA$43,MATCH($B106,'Damage costs'!$C$16:$C$43,0))/1000),\"\")","v":""},{"$f":"IFERROR(IF(OR($C$110=FALSE,LEFT($B106,3)<>\"NOX\"),BA55*INDEX('Damage costs'!$W$16:$W$43,MATCH($B106,'Damage costs'!$C$16:$C$43,0))/1000,BA55*INDEX('Damage costs'!$AA$16:$AA$43,MATCH($B106,'Damage costs'!$C$16:$C$43,0))/1000),\"\")","v":""},{"$f":"IFERROR(IF(OR($C$110=FALSE,LEFT($B106,3)<>\"NOX\"),BB55*INDEX('Damage costs'!$W$16:$W$43,MATCH($B106,'Damage costs'!$C$16:$C$43,0))/1000,BB55*INDEX('Damage costs'!$AA$16:$AA$43,MATCH($B106,'Damage costs'!$C$16:$C$43,0))/1000),\"\")","v":""},{"$f":"IFERROR(IF(OR($C$110=FALSE,LEFT($B106,3)<>\"NOX\"),BC55*INDEX('Damage costs'!$W$16:$W$43,MATCH($B106,'Damage costs'!$C$16:$C$43,0))/1000,BC55*INDEX('Damage costs'!$AA$16:$AA$43,MATCH($B106,'Damage costs'!$C$16:$C$43,0))/1000),\"\")","v":""},{"$f":"IFERROR(IF(OR($C$110=FALSE,LEFT($B106,3)<>\"NOX\"),BD55*INDEX('Damage costs'!$W$16:$W$43,MATCH($B106,'Damage costs'!$C$16:$C$43,0))/1000,BD55*INDEX('Damage costs'!$AA$16:$AA$43,MATCH($B106,'Damage costs'!$C$16:$C$43,0))/1000),\"\")","v":""},{"$f":"IFERROR(IF(OR($C$110=FALSE,LEFT($B106,3)<>\"NOX\"),BE55*INDEX('Damage costs'!$W$16:$W$43,MATCH($B106,'Damage costs'!$C$16:$C$43,0))/1000,BE55*INDEX('Damage costs'!$AA$16:$AA$43,MATCH($B106,'Damage costs'!$C$16:$C$43,0))/1000),\"\")","v":""},{"$f":"IFERROR(IF(OR($C$110=FALSE,LEFT($B106,3)<>\"NOX\"),BF55*INDEX('Damage costs'!$W$16:$W$43,MATCH($B106,'Damage costs'!$C$16:$C$43,0))/1000,BF55*INDEX('Damage costs'!$AA$16:$AA$43,MATCH($B106,'Damage costs'!$C$16:$C$43,0))/1000),\"\")","v":""},{"$f":"IFERROR(IF(OR($C$110=FALSE,LEFT($B106,3)<>\"NOX\"),BG55*INDEX('Damage costs'!$W$16:$W$43,MATCH($B106,'Damage costs'!$C$16:$C$43,0))/1000,BG55*INDEX('Damage costs'!$AA$16:$AA$43,MATCH($B106,'Damage costs'!$C$16:$C$43,0))/1000),\"\")","v":""},{"$f":"IFERROR(IF(OR($C$110=FALSE,LEFT($B106,3)<>\"NOX\"),BH55*INDEX('Damage costs'!$W$16:$W$43,MATCH($B106,'Damage costs'!$C$16:$C$43,0))/1000,BH55*INDEX('Damage costs'!$AA$16:$AA$43,MATCH($B106,'Damage costs'!$C$16:$C$43,0))/1000),\"\")","v":""},{"$f":"IFERROR(IF(OR($C$110=FALSE,LEFT($B106,3)<>\"NOX\"),BI55*INDEX('Damage costs'!$W$16:$W$43,MATCH($B106,'Damage costs'!$C$16:$C$43,0))/1000,BI55*INDEX('Damage costs'!$AA$16:$AA$43,MATCH($B106,'Damage costs'!$C$16:$C$43,0))/1000),\"\")","v":""},{"$f":"IFERROR(IF(OR($C$110=FALSE,LEFT($B106,3)<>\"NOX\"),BJ55*INDEX('Damage costs'!$W$16:$W$43,MATCH($B106,'Damage costs'!$C$16:$C$43,0))/1000,BJ55*INDEX('Damage costs'!$AA$16:$AA$43,MATCH($B106,'Damage costs'!$C$16:$C$43,0))/1000),\"\")","v":""},{"$f":"IFERROR(IF(OR($C$110=FALSE,LEFT($B106,3)<>\"NOX\"),BK55*INDEX('Damage costs'!$W$16:$W$43,MATCH($B106,'Damage costs'!$C$16:$C$43,0))/1000,BK55*INDEX('Damage costs'!$AA$16:$AA$43,MATCH($B106,'Damage costs'!$C$16:$C$43,0))/1000),\"\")","v":""},{"$f":"IFERROR(IF(OR($C$110=FALSE,LEFT($B106,3)<>\"NOX\"),BL55*INDEX('Damage costs'!$W$16:$W$43,MATCH($B106,'Damage costs'!$C$16:$C$43,0))/1000,BL55*INDEX('Damage costs'!$AA$16:$AA$43,MATCH($B106,'Damage costs'!$C$16:$C$43,0))/1000),\"\")","v":""},{"$f":"IFERROR(IF(OR($C$110=FALSE,LEFT($B106,3)<>\"NOX\"),BM55*INDEX('Damage costs'!$W$16:$W$43,MATCH($B106,'Damage costs'!$C$16:$C$43,0))/1000,BM55*INDEX('Damage costs'!$AA$16:$AA$43,MATCH($B106,'Damage costs'!$C$16:$C$43,0))/1000),\"\")","v":""},{"$f":"IFERROR(IF(OR($C$110=FALSE,LEFT($B106,3)<>\"NOX\"),BN55*INDEX('Damage costs'!$W$16:$W$43,MATCH($B106,'Damage costs'!$C$16:$C$43,0))/1000,BN55*INDEX('Damage costs'!$AA$16:$AA$43,MATCH($B106,'Damage costs'!$C$16:$C$43,0))/1000),\"\")","v":""},{"$f":"IFERROR(IF(OR($C$110=FALSE,LEFT($B106,3)<>\"NOX\"),BO55*INDEX('Damage costs'!$W$16:$W$43,MATCH($B106,'Damage costs'!$C$16:$C$43,0))/1000,BO55*INDEX('Damage costs'!$AA$16:$AA$43,MATCH($B106,'Damage costs'!$C$16:$C$43,0))/1000),\"\")","v":""},{"$f":"IFERROR(IF(OR($C$110=FALSE,LEFT($B106,3)<>\"NOX\"),BP55*INDEX('Damage costs'!$W$16:$W$43,MATCH($B106,'Damage costs'!$C$16:$C$43,0))/1000,BP55*INDEX('Damage costs'!$AA$16:$AA$43,MATCH($B106,'Damage costs'!$C$16:$C$43,0))/1000),\"\")","v":""},{"$f":"IFERROR(IF(OR($C$110=FALSE,LEFT($B106,3)<>\"NOX\"),BQ55*INDEX('Damage costs'!$W$16:$W$43,MATCH($B106,'Damage costs'!$C$16:$C$43,0))/1000,BQ55*INDEX('Damage costs'!$AA$16:$AA$43,MATCH($B106,'Damage costs'!$C$16:$C$43,0))/1000),\"\")","v":""},{"$f":"IFERROR(IF(OR($C$110=FALSE,LEFT($B106,3)<>\"NOX\"),BR55*INDEX('Damage costs'!$W$16:$W$43,MATCH($B106,'Damage costs'!$C$16:$C$43,0))/1000,BR55*INDEX('Damage costs'!$AA$16:$AA$43,MATCH($B106,'Damage costs'!$C$16:$C$43,0))/1000),\"\")","v":""},{"$f":"IFERROR(IF(OR($C$110=FALSE,LEFT($B106,3)<>\"NOX\"),BS55*INDEX('Damage costs'!$W$16:$W$43,MATCH($B106,'Damage costs'!$C$16:$C$43,0))/1000,BS55*INDEX('Damage costs'!$AA$16:$AA$43,MATCH($B106,'Damage costs'!$C$16:$C$43,0))/1000),\"\")","v":""},{"$f":"IFERROR(IF(OR($C$110=FALSE,LEFT($B106,3)<>\"NOX\"),BT55*INDEX('Damage costs'!$W$16:$W$43,MATCH($B106,'Damage costs'!$C$16:$C$43,0))/1000,BT55*INDEX('Damage costs'!$AA$16:$AA$43,MATCH($B106,'Damage costs'!$C$16:$C$43,0))/1000),\"\")","v":""},{"$f":"IFERROR(IF(OR($C$110=FALSE,LEFT($B106,3)<>\"NOX\"),BU55*INDEX('Damage costs'!$W$16:$W$43,MATCH($B106,'Damage costs'!$C$16:$C$43,0))/1000,BU55*INDEX('Damage costs'!$AA$16:$AA$43,MATCH($B106,'Damage costs'!$C$16:$C$43,0))/1000),\"\")","v":""},{"$f":"IFERROR(IF(OR($C$110=FALSE,LEFT($B106,3)<>\"NOX\"),BV55*INDEX('Damage costs'!$W$16:$W$43,MATCH($B106,'Damage costs'!$C$16:$C$43,0))/1000,BV55*INDEX('Damage costs'!$AA$16:$AA$43,MATCH($B106,'Damage costs'!$C$16:$C$43,0))/1000),\"\")","v":""},{"$f":"IFERROR(IF(OR($C$110=FALSE,LEFT($B106,3)<>\"NOX\"),BW55*INDEX('Damage costs'!$W$16:$W$43,MATCH($B106,'Damage costs'!$C$16:$C$43,0))/1000,BW55*INDEX('Damage costs'!$AA$16:$AA$43,MATCH($B106,'Damage costs'!$C$16:$C$43,0))/1000),\"\")","v":""},{"$f":"IFERROR(IF(OR($C$110=FALSE,LEFT($B106,3)<>\"NOX\"),BX55*INDEX('Damage costs'!$W$16:$W$43,MATCH($B106,'Damage costs'!$C$16:$C$43,0))/1000,BX55*INDEX('Damage costs'!$AA$16:$AA$43,MATCH($B106,'Damage costs'!$C$16:$C$43,0))/1000),\"\")","v":""},{"$f":"IFERROR(IF(OR($C$110=FALSE,LEFT($B106,3)<>\"NOX\"),BY55*INDEX('Damage costs'!$W$16:$W$43,MATCH($B106,'Damage costs'!$C$16:$C$43,0))/1000,BY55*INDEX('Damage costs'!$AA$16:$AA$43,MATCH($B106,'Damage costs'!$C$16:$C$43,0))/1000),\"\")","v":""},{"$f":"IFERROR(IF(OR($C$110=FALSE,LEFT($B106,3)<>\"NOX\"),BZ55*INDEX('Damage costs'!$W$16:$W$43,MATCH($B106,'Damage costs'!$C$16:$C$43,0))/1000,BZ55*INDEX('Damage costs'!$AA$16:$AA$43,MATCH($B106,'Damage costs'!$C$16:$C$43,0))/1000),\"\")","v":""},{"$f":"IFERROR(IF(OR($C$110=FALSE,LEFT($B106,3)<>\"NOX\"),CA55*INDEX('Damage costs'!$W$16:$W$43,MATCH($B106,'Damage costs'!$C$16:$C$43,0))/1000,CA55*INDEX('Damage costs'!$AA$16:$AA$43,MATCH($B106,'Damage costs'!$C$16:$C$43,0))/1000),\"\")","v":""},{"$f":"IFERROR(IF(OR($C$110=FALSE,LEFT($B106,3)<>\"NOX\"),CB55*INDEX('Damage costs'!$W$16:$W$43,MATCH($B106,'Damage costs'!$C$16:$C$43,0))/1000,CB55*INDEX('Damage costs'!$AA$16:$AA$43,MATCH($B106,'Damage costs'!$C$16:$C$43,0))/1000),\"\")","v":""},{"$f":"IFERROR(IF(OR($C$110=FALSE,LEFT($B106,3)<>\"NOX\"),CC55*INDEX('Damage costs'!$W$16:$W$43,MATCH($B106,'Damage costs'!$C$16:$C$43,0))/1000,CC55*INDEX('Damage costs'!$AA$16:$AA$43,MATCH($B106,'Damage costs'!$C$16:$C$43,0))/1000),\"\")","v":""},{"$f":"IFERROR(IF(OR($C$110=FALSE,LEFT($B106,3)<>\"NOX\"),CD55*INDEX('Damage costs'!$W$16:$W$43,MATCH($B106,'Damage costs'!$C$16:$C$43,0))/1000,CD55*INDEX('Damage costs'!$AA$16:$AA$43,MATCH($B106,'Damage costs'!$C$16:$C$43,0))/1000),\"\")","v":""},{"$f":"IFERROR(IF(OR($C$110=FALSE,LEFT($B106,3)<>\"NOX\"),CE55*INDEX('Damage costs'!$W$16:$W$43,MATCH($B106,'Damage costs'!$C$16:$C$43,0))/1000,CE55*INDEX('Damage costs'!$AA$16:$AA$43,MATCH($B106,'Damage costs'!$C$16:$C$43,0))/1000),\"\")","v":""},{"$f":"IFERROR(IF(OR($C$110=FALSE,LEFT($B106,3)<>\"NOX\"),CF55*INDEX('Damage costs'!$W$16:$W$43,MATCH($B106,'Damage costs'!$C$16:$C$43,0))/1000,CF55*INDEX('Damage costs'!$AA$16:$AA$43,MATCH($B106,'Damage costs'!$C$16:$C$43,0))/1000),\"\")","v":""},{"$f":"IFERROR(IF(OR($C$110=FALSE,LEFT($B106,3)<>\"NOX\"),CG55*INDEX('Damage costs'!$W$16:$W$43,MATCH($B106,'Damage costs'!$C$16:$C$43,0))/1000,CG55*INDEX('Damage costs'!$AA$16:$AA$43,MATCH($B106,'Damage costs'!$C$16:$C$43,0))/1000),\"\")","v":""},{"$f":"IFERROR(IF(OR($C$110=FALSE,LEFT($B106,3)<>\"NOX\"),CH55*INDEX('Damage costs'!$W$16:$W$43,MATCH($B106,'Damage costs'!$C$16:$C$43,0))/1000,CH55*INDEX('Damage costs'!$AA$16:$AA$43,MATCH($B106,'Damage costs'!$C$16:$C$43,0))/1000),\"\")","v":""},{"$f":"IFERROR(IF(OR($C$110=FALSE,LEFT($B106,3)<>\"NOX\"),CI55*INDEX('Damage costs'!$W$16:$W$43,MATCH($B106,'Damage costs'!$C$16:$C$43,0))/1000,CI55*INDEX('Damage costs'!$AA$16:$AA$43,MATCH($B106,'Damage costs'!$C$16:$C$43,0))/1000),\"\")","v":""},{"$f":"IFERROR(IF(OR($C$110=FALSE,LEFT($B106,3)<>\"NOX\"),CJ55*INDEX('Damage costs'!$W$16:$W$43,MATCH($B106,'Damage costs'!$C$16:$C$43,0))/1000,CJ55*INDEX('Damage costs'!$AA$16:$AA$43,MATCH($B106,'Damage costs'!$C$16:$C$43,0))/1000),\"\")","v":""},{"$f":"IFERROR(IF(OR($C$110=FALSE,LEFT($B106,3)<>\"NOX\"),CK55*INDEX('Damage costs'!$W$16:$W$43,MATCH($B106,'Damage costs'!$C$16:$C$43,0))/1000,CK55*INDEX('Damage costs'!$AA$16:$AA$43,MATCH($B106,'Damage costs'!$C$16:$C$43,0))/1000),\"\")","v":""},{"$f":"IFERROR(IF(OR($C$110=FALSE,LEFT($B106,3)<>\"NOX\"),CL55*INDEX('Damage costs'!$W$16:$W$43,MATCH($B106,'Damage costs'!$C$16:$C$43,0))/1000,CL55*INDEX('Damage costs'!$AA$16:$AA$43,MATCH($B106,'Damage costs'!$C$16:$C$43,0))/1000),\"\")","v":""},{"$f":"IFERROR(IF(OR($C$110=FALSE,LEFT($B106,3)<>\"NOX\"),CM55*INDEX('Damage costs'!$W$16:$W$43,MATCH($B106,'Damage costs'!$C$16:$C$43,0))/1000,CM55*INDEX('Damage costs'!$AA$16:$AA$43,MATCH($B106,'Damage costs'!$C$16:$C$43,0))/1000),\"\")","v":""},{"$f":"IFERROR(IF(OR($C$110=FALSE,LEFT($B106,3)<>\"NOX\"),CN55*INDEX('Damage costs'!$W$16:$W$43,MATCH($B106,'Damage costs'!$C$16:$C$43,0))/1000,CN55*INDEX('Damage costs'!$AA$16:$AA$43,MATCH($B106,'Damage costs'!$C$16:$C$43,0))/1000),\"\")","v":""},{"$f":"IFERROR(IF(OR($C$110=FALSE,LEFT($B106,3)<>\"NOX\"),CO55*INDEX('Damage costs'!$W$16:$W$43,MATCH($B106,'Damage costs'!$C$16:$C$43,0))/1000,CO55*INDEX('Damage costs'!$AA$16:$AA$43,MATCH($B106,'Damage costs'!$C$16:$C$43,0))/1000),\"\")","v":""},{"$f":"IFERROR(IF(OR($C$110=FALSE,LEFT($B106,3)<>\"NOX\"),CP55*INDEX('Damage costs'!$W$16:$W$43,MATCH($B106,'Damage costs'!$C$16:$C$43,0))/1000,CP55*INDEX('Damage costs'!$AA$16:$AA$43,MATCH($B106,'Damage costs'!$C$16:$C$43,0))/1000),\"\")","v":""},{"$f":"IFERROR(IF(OR($C$110=FALSE,LEFT($B106,3)<>\"NOX\"),CQ55*INDEX('Damage costs'!$W$16:$W$43,MATCH($B106,'Damage costs'!$C$16:$C$43,0))/1000,CQ55*INDEX('Damage costs'!$AA$16:$AA$43,MATCH($B106,'Damage costs'!$C$16:$C$43,0))/1000),\"\")","v":""},{"$f":"IFERROR(IF(OR($C$110=FALSE,LEFT($B106,3)<>\"NOX\"),CR55*INDEX('Damage costs'!$W$16:$W$43,MATCH($B106,'Damage costs'!$C$16:$C$43,0))/1000,CR55*INDEX('Damage costs'!$AA$16:$AA$43,MATCH($B106,'Damage costs'!$C$16:$C$43,0))/1000),\"\")","v":""},{"$f":"IFERROR(IF(OR($C$110=FALSE,LEFT($B106,3)<>\"NOX\"),CS55*INDEX('Damage costs'!$W$16:$W$43,MATCH($B106,'Damage costs'!$C$16:$C$43,0))/1000,CS55*INDEX('Damage costs'!$AA$16:$AA$43,MATCH($B106,'Damage costs'!$C$16:$C$43,0))/1000),\"\")","v":""},{"$f":"IFERROR(IF(OR($C$110=FALSE,LEFT($B106,3)<>\"NOX\"),CT55*INDEX('Damage costs'!$W$16:$W$43,MATCH($B106,'Damage costs'!$C$16:$C$43,0))/1000,CT55*INDEX('Damage costs'!$AA$16:$AA$43,MATCH($B106,'Damage costs'!$C$16:$C$43,0))/1000),\"\")","v":""},{"$f":"IFERROR(IF(OR($C$110=FALSE,LEFT($B106,3)<>\"NOX\"),CU55*INDEX('Damage costs'!$W$16:$W$43,MATCH($B106,'Damage costs'!$C$16:$C$43,0))/1000,CU55*INDEX('Damage costs'!$AA$16:$AA$43,MATCH($B106,'Damage costs'!$C$16:$C$43,0))/1000),\"\")","v":""},{"$f":"IFERROR(IF(OR($C$110=FALSE,LEFT($B106,3)<>\"NOX\"),CV55*INDEX('Damage costs'!$W$16:$W$43,MATCH($B106,'Damage costs'!$C$16:$C$43,0))/1000,CV55*INDEX('Damage costs'!$AA$16:$AA$43,MATCH($B106,'Damage costs'!$C$16:$C$43,0))/1000),\"\")","v":""},{"$f":"IFERROR(IF(OR($C$110=FALSE,LEFT($B106,3)<>\"NOX\"),CW55*INDEX('Damage costs'!$W$16:$W$43,MATCH($B106,'Damage costs'!$C$16:$C$43,0))/1000,CW55*INDEX('Damage costs'!$AA$16:$AA$43,MATCH($B106,'Damage costs'!$C$16:$C$43,0))/1000),\"\")","v":""},{"$f":"IFERROR(IF(OR($C$110=FALSE,LEFT($B106,3)<>\"NOX\"),CX55*INDEX('Damage costs'!$W$16:$W$43,MATCH($B106,'Damage costs'!$C$16:$C$43,0))/1000,CX55*INDEX('Damage costs'!$AA$16:$AA$43,MATCH($B106,'Damage costs'!$C$16:$C$43,0))/1000),\"\")","v":""},{"$f":"IFERROR(IF(OR($C$110=FALSE,LEFT($B106,3)<>\"NOX\"),CY55*INDEX('Damage costs'!$W$16:$W$43,MATCH($B106,'Damage costs'!$C$16:$C$43,0))/1000,CY55*INDEX('Damage costs'!$AA$16:$AA$43,MATCH($B106,'Damage costs'!$C$16:$C$43,0))/1000),\"\")","v":""}]
[null,0,"£000's",{"$f":"IFERROR(IF(OR($C$110=FALSE,LEFT($B107,3)<>\"NOX\"),D56*INDEX('Damage costs'!$W$16:$W$43,MATCH($B107,'Damage costs'!$C$16:$C$43,0))/1000,D56*INDEX('Damage costs'!$AA$16:$AA$43,MATCH($B107,'Damage costs'!$C$16:$C$43,0))/1000),\"\")","v":""},{"$f":"IFERROR(IF(OR($C$110=FALSE,LEFT($B107,3)<>\"NOX\"),E56*INDEX('Damage costs'!$W$16:$W$43,MATCH($B107,'Damage costs'!$C$16:$C$43,0))/1000,E56*INDEX('Damage costs'!$AA$16:$AA$43,MATCH($B107,'Damage costs'!$C$16:$C$43,0))/1000),\"\")","v":""},{"$f":"IFERROR(IF(OR($C$110=FALSE,LEFT($B107,3)<>\"NOX\"),F56*INDEX('Damage costs'!$W$16:$W$43,MATCH($B107,'Damage costs'!$C$16:$C$43,0))/1000,F56*INDEX('Damage costs'!$AA$16:$AA$43,MATCH($B107,'Damage costs'!$C$16:$C$43,0))/1000),\"\")","v":""},{"$f":"IFERROR(IF(OR($C$110=FALSE,LEFT($B107,3)<>\"NOX\"),G56*INDEX('Damage costs'!$W$16:$W$43,MATCH($B107,'Damage costs'!$C$16:$C$43,0))/1000,G56*INDEX('Damage costs'!$AA$16:$AA$43,MATCH($B107,'Damage costs'!$C$16:$C$43,0))/1000),\"\")","v":""},{"$f":"IFERROR(IF(OR($C$110=FALSE,LEFT($B107,3)<>\"NOX\"),H56*INDEX('Damage costs'!$W$16:$W$43,MATCH($B107,'Damage costs'!$C$16:$C$43,0))/1000,H56*INDEX('Damage costs'!$AA$16:$AA$43,MATCH($B107,'Damage costs'!$C$16:$C$43,0))/1000),\"\")","v":""},{"$f":"IFERROR(IF(OR($C$110=FALSE,LEFT($B107,3)<>\"NOX\"),I56*INDEX('Damage costs'!$W$16:$W$43,MATCH($B107,'Damage costs'!$C$16:$C$43,0))/1000,I56*INDEX('Damage costs'!$AA$16:$AA$43,MATCH($B107,'Damage costs'!$C$16:$C$43,0))/1000),\"\")","v":""},{"$f":"IFERROR(IF(OR($C$110=FALSE,LEFT($B107,3)<>\"NOX\"),J56*INDEX('Damage costs'!$W$16:$W$43,MATCH($B107,'Damage costs'!$C$16:$C$43,0))/1000,J56*INDEX('Damage costs'!$AA$16:$AA$43,MATCH($B107,'Damage costs'!$C$16:$C$43,0))/1000),\"\")","v":""},{"$f":"IFERROR(IF(OR($C$110=FALSE,LEFT($B107,3)<>\"NOX\"),K56*INDEX('Damage costs'!$W$16:$W$43,MATCH($B107,'Damage costs'!$C$16:$C$43,0))/1000,K56*INDEX('Damage costs'!$AA$16:$AA$43,MATCH($B107,'Damage costs'!$C$16:$C$43,0))/1000),\"\")","v":""},{"$f":"IFERROR(IF(OR($C$110=FALSE,LEFT($B107,3)<>\"NOX\"),L56*INDEX('Damage costs'!$W$16:$W$43,MATCH($B107,'Damage costs'!$C$16:$C$43,0))/1000,L56*INDEX('Damage costs'!$AA$16:$AA$43,MATCH($B107,'Damage costs'!$C$16:$C$43,0))/1000),\"\")","v":""},{"$f":"IFERROR(IF(OR($C$110=FALSE,LEFT($B107,3)<>\"NOX\"),M56*INDEX('Damage costs'!$W$16:$W$43,MATCH($B107,'Damage costs'!$C$16:$C$43,0))/1000,M56*INDEX('Damage costs'!$AA$16:$AA$43,MATCH($B107,'Damage costs'!$C$16:$C$43,0))/1000),\"\")","v":""},{"$f":"IFERROR(IF(OR($C$110=FALSE,LEFT($B107,3)<>\"NOX\"),N56*INDEX('Damage costs'!$W$16:$W$43,MATCH($B107,'Damage costs'!$C$16:$C$43,0))/1000,N56*INDEX('Damage costs'!$AA$16:$AA$43,MATCH($B107,'Damage costs'!$C$16:$C$43,0))/1000),\"\")","v":""},{"$f":"IFERROR(IF(OR($C$110=FALSE,LEFT($B107,3)<>\"NOX\"),O56*INDEX('Damage costs'!$W$16:$W$43,MATCH($B107,'Damage costs'!$C$16:$C$43,0))/1000,O56*INDEX('Damage costs'!$AA$16:$AA$43,MATCH($B107,'Damage costs'!$C$16:$C$43,0))/1000),\"\")","v":""},{"$f":"IFERROR(IF(OR($C$110=FALSE,LEFT($B107,3)<>\"NOX\"),P56*INDEX('Damage costs'!$W$16:$W$43,MATCH($B107,'Damage costs'!$C$16:$C$43,0))/1000,P56*INDEX('Damage costs'!$AA$16:$AA$43,MATCH($B107,'Damage costs'!$C$16:$C$43,0))/1000),\"\")","v":""},{"$f":"IFERROR(IF(OR($C$110=FALSE,LEFT($B107,3)<>\"NOX\"),Q56*INDEX('Damage costs'!$W$16:$W$43,MATCH($B107,'Damage costs'!$C$16:$C$43,0))/1000,Q56*INDEX('Damage costs'!$AA$16:$AA$43,MATCH($B107,'Damage costs'!$C$16:$C$43,0))/1000),\"\")","v":""},{"$f":"IFERROR(IF(OR($C$110=FALSE,LEFT($B107,3)<>\"NOX\"),R56*INDEX('Damage costs'!$W$16:$W$43,MATCH($B107,'Damage costs'!$C$16:$C$43,0))/1000,R56*INDEX('Damage costs'!$AA$16:$AA$43,MATCH($B107,'Damage costs'!$C$16:$C$43,0))/1000),\"\")","v":""},{"$f":"IFERROR(IF(OR($C$110=FALSE,LEFT($B107,3)<>\"NOX\"),S56*INDEX('Damage costs'!$W$16:$W$43,MATCH($B107,'Damage costs'!$C$16:$C$43,0))/1000,S56*INDEX('Damage costs'!$AA$16:$AA$43,MATCH($B107,'Damage costs'!$C$16:$C$43,0))/1000),\"\")","v":""},{"$f":"IFERROR(IF(OR($C$110=FALSE,LEFT($B107,3)<>\"NOX\"),T56*INDEX('Damage costs'!$W$16:$W$43,MATCH($B107,'Damage costs'!$C$16:$C$43,0))/1000,T56*INDEX('Damage costs'!$AA$16:$AA$43,MATCH($B107,'Damage costs'!$C$16:$C$43,0))/1000),\"\")","v":""},{"$f":"IFERROR(IF(OR($C$110=FALSE,LEFT($B107,3)<>\"NOX\"),U56*INDEX('Damage costs'!$W$16:$W$43,MATCH($B107,'Damage costs'!$C$16:$C$43,0))/1000,U56*INDEX('Damage costs'!$AA$16:$AA$43,MATCH($B107,'Damage costs'!$C$16:$C$43,0))/1000),\"\")","v":""},{"$f":"IFERROR(IF(OR($C$110=FALSE,LEFT($B107,3)<>\"NOX\"),V56*INDEX('Damage costs'!$W$16:$W$43,MATCH($B107,'Damage costs'!$C$16:$C$43,0))/1000,V56*INDEX('Damage costs'!$AA$16:$AA$43,MATCH($B107,'Damage costs'!$C$16:$C$43,0))/1000),\"\")","v":""},{"$f":"IFERROR(IF(OR($C$110=FALSE,LEFT($B107,3)<>\"NOX\"),W56*INDEX('Damage costs'!$W$16:$W$43,MATCH($B107,'Damage costs'!$C$16:$C$43,0))/1000,W56*INDEX('Damage costs'!$AA$16:$AA$43,MATCH($B107,'Damage costs'!$C$16:$C$43,0))/1000),\"\")","v":""},{"$f":"IFERROR(IF(OR($C$110=FALSE,LEFT($B107,3)<>\"NOX\"),X56*INDEX('Damage costs'!$W$16:$W$43,MATCH($B107,'Damage costs'!$C$16:$C$43,0))/1000,X56*INDEX('Damage costs'!$AA$16:$AA$43,MATCH($B107,'Damage costs'!$C$16:$C$43,0))/1000),\"\")","v":""},{"$f":"IFERROR(IF(OR($C$110=FALSE,LEFT($B107,3)<>\"NOX\"),Y56*INDEX('Damage costs'!$W$16:$W$43,MATCH($B107,'Damage costs'!$C$16:$C$43,0))/1000,Y56*INDEX('Damage costs'!$AA$16:$AA$43,MATCH($B107,'Damage costs'!$C$16:$C$43,0))/1000),\"\")","v":""},{"$f":"IFERROR(IF(OR($C$110=FALSE,LEFT($B107,3)<>\"NOX\"),Z56*INDEX('Damage costs'!$W$16:$W$43,MATCH($B107,'Damage costs'!$C$16:$C$43,0))/1000,Z56*INDEX('Damage costs'!$AA$16:$AA$43,MATCH($B107,'Damage costs'!$C$16:$C$43,0))/1000),\"\")","v":""},{"$f":"IFERROR(IF(OR($C$110=FALSE,LEFT($B107,3)<>\"NOX\"),AA56*INDEX('Damage costs'!$W$16:$W$43,MATCH($B107,'Damage costs'!$C$16:$C$43,0))/1000,AA56*INDEX('Damage costs'!$AA$16:$AA$43,MATCH($B107,'Damage costs'!$C$16:$C$43,0))/1000),\"\")","v":""},{"$f":"IFERROR(IF(OR($C$110=FALSE,LEFT($B107,3)<>\"NOX\"),AB56*INDEX('Damage costs'!$W$16:$W$43,MATCH($B107,'Damage costs'!$C$16:$C$43,0))/1000,AB56*INDEX('Damage costs'!$AA$16:$AA$43,MATCH($B107,'Damage costs'!$C$16:$C$43,0))/1000),\"\")","v":""},{"$f":"IFERROR(IF(OR($C$110=FALSE,LEFT($B107,3)<>\"NOX\"),AC56*INDEX('Damage costs'!$W$16:$W$43,MATCH($B107,'Damage costs'!$C$16:$C$43,0))/1000,AC56*INDEX('Damage costs'!$AA$16:$AA$43,MATCH($B107,'Damage costs'!$C$16:$C$43,0))/1000),\"\")","v":""},{"$f":"IFERROR(IF(OR($C$110=FALSE,LEFT($B107,3)<>\"NOX\"),AD56*INDEX('Damage costs'!$W$16:$W$43,MATCH($B107,'Damage costs'!$C$16:$C$43,0))/1000,AD56*INDEX('Damage costs'!$AA$16:$AA$43,MATCH($B107,'Damage costs'!$C$16:$C$43,0))/1000),\"\")","v":""},{"$f":"IFERROR(IF(OR($C$110=FALSE,LEFT($B107,3)<>\"NOX\"),AE56*INDEX('Damage costs'!$W$16:$W$43,MATCH($B107,'Damage costs'!$C$16:$C$43,0))/1000,AE56*INDEX('Damage costs'!$AA$16:$AA$43,MATCH($B107,'Damage costs'!$C$16:$C$43,0))/1000),\"\")","v":""},{"$f":"IFERROR(IF(OR($C$110=FALSE,LEFT($B107,3)<>\"NOX\"),AF56*INDEX('Damage costs'!$W$16:$W$43,MATCH($B107,'Damage costs'!$C$16:$C$43,0))/1000,AF56*INDEX('Damage costs'!$AA$16:$AA$43,MATCH($B107,'Damage costs'!$C$16:$C$43,0))/1000),\"\")","v":""},{"$f":"IFERROR(IF(OR($C$110=FALSE,LEFT($B107,3)<>\"NOX\"),AG56*INDEX('Damage costs'!$W$16:$W$43,MATCH($B107,'Damage costs'!$C$16:$C$43,0))/1000,AG56*INDEX('Damage costs'!$AA$16:$AA$43,MATCH($B107,'Damage costs'!$C$16:$C$43,0))/1000),\"\")","v":""},{"$f":"IFERROR(IF(OR($C$110=FALSE,LEFT($B107,3)<>\"NOX\"),AH56*INDEX('Damage costs'!$W$16:$W$43,MATCH($B107,'Damage costs'!$C$16:$C$43,0))/1000,AH56*INDEX('Damage costs'!$AA$16:$AA$43,MATCH($B107,'Damage costs'!$C$16:$C$43,0))/1000),\"\")","v":""},{"$f":"IFERROR(IF(OR($C$110=FALSE,LEFT($B107,3)<>\"NOX\"),AI56*INDEX('Damage costs'!$W$16:$W$43,MATCH($B107,'Damage costs'!$C$16:$C$43,0))/1000,AI56*INDEX('Damage costs'!$AA$16:$AA$43,MATCH($B107,'Damage costs'!$C$16:$C$43,0))/1000),\"\")","v":""},{"$f":"IFERROR(IF(OR($C$110=FALSE,LEFT($B107,3)<>\"NOX\"),AJ56*INDEX('Damage costs'!$W$16:$W$43,MATCH($B107,'Damage costs'!$C$16:$C$43,0))/1000,AJ56*INDEX('Damage costs'!$AA$16:$AA$43,MATCH($B107,'Damage costs'!$C$16:$C$43,0))/1000),\"\")","v":""},{"$f":"IFERROR(IF(OR($C$110=FALSE,LEFT($B107,3)<>\"NOX\"),AK56*INDEX('Damage costs'!$W$16:$W$43,MATCH($B107,'Damage costs'!$C$16:$C$43,0))/1000,AK56*INDEX('Damage costs'!$AA$16:$AA$43,MATCH($B107,'Damage costs'!$C$16:$C$43,0))/1000),\"\")","v":""},{"$f":"IFERROR(IF(OR($C$110=FALSE,LEFT($B107,3)<>\"NOX\"),AL56*INDEX('Damage costs'!$W$16:$W$43,MATCH($B107,'Damage costs'!$C$16:$C$43,0))/1000,AL56*INDEX('Damage costs'!$AA$16:$AA$43,MATCH($B107,'Damage costs'!$C$16:$C$43,0))/1000),\"\")","v":""},{"$f":"IFERROR(IF(OR($C$110=FALSE,LEFT($B107,3)<>\"NOX\"),AM56*INDEX('Damage costs'!$W$16:$W$43,MATCH($B107,'Damage costs'!$C$16:$C$43,0))/1000,AM56*INDEX('Damage costs'!$AA$16:$AA$43,MATCH($B107,'Damage costs'!$C$16:$C$43,0))/1000),\"\")","v":""},{"$f":"IFERROR(IF(OR($C$110=FALSE,LEFT($B107,3)<>\"NOX\"),AN56*INDEX('Damage costs'!$W$16:$W$43,MATCH($B107,'Damage costs'!$C$16:$C$43,0))/1000,AN56*INDEX('Damage costs'!$AA$16:$AA$43,MATCH($B107,'Damage costs'!$C$16:$C$43,0))/1000),\"\")","v":""},{"$f":"IFERROR(IF(OR($C$110=FALSE,LEFT($B107,3)<>\"NOX\"),AO56*INDEX('Damage costs'!$W$16:$W$43,MATCH($B107,'Damage costs'!$C$16:$C$43,0))/1000,AO56*INDEX('Damage costs'!$AA$16:$AA$43,MATCH($B107,'Damage costs'!$C$16:$C$43,0))/1000),\"\")","v":""},{"$f":"IFERROR(IF(OR($C$110=FALSE,LEFT($B107,3)<>\"NOX\"),AP56*INDEX('Damage costs'!$W$16:$W$43,MATCH($B107,'Damage costs'!$C$16:$C$43,0))/1000,AP56*INDEX('Damage costs'!$AA$16:$AA$43,MATCH($B107,'Damage costs'!$C$16:$C$43,0))/1000),\"\")","v":""},{"$f":"IFERROR(IF(OR($C$110=FALSE,LEFT($B107,3)<>\"NOX\"),AQ56*INDEX('Damage costs'!$W$16:$W$43,MATCH($B107,'Damage costs'!$C$16:$C$43,0))/1000,AQ56*INDEX('Damage costs'!$AA$16:$AA$43,MATCH($B107,'Damage costs'!$C$16:$C$43,0))/1000),\"\")","v":""},{"$f":"IFERROR(IF(OR($C$110=FALSE,LEFT($B107,3)<>\"NOX\"),AR56*INDEX('Damage costs'!$W$16:$W$43,MATCH($B107,'Damage costs'!$C$16:$C$43,0))/1000,AR56*INDEX('Damage costs'!$AA$16:$AA$43,MATCH($B107,'Damage costs'!$C$16:$C$43,0))/1000),\"\")","v":""},{"$f":"IFERROR(IF(OR($C$110=FALSE,LEFT($B107,3)<>\"NOX\"),AS56*INDEX('Damage costs'!$W$16:$W$43,MATCH($B107,'Damage costs'!$C$16:$C$43,0))/1000,AS56*INDEX('Damage costs'!$AA$16:$AA$43,MATCH($B107,'Damage costs'!$C$16:$C$43,0))/1000),\"\")","v":""},{"$f":"IFERROR(IF(OR($C$110=FALSE,LEFT($B107,3)<>\"NOX\"),AT56*INDEX('Damage costs'!$W$16:$W$43,MATCH($B107,'Damage costs'!$C$16:$C$43,0))/1000,AT56*INDEX('Damage costs'!$AA$16:$AA$43,MATCH($B107,'Damage costs'!$C$16:$C$43,0))/1000),\"\")","v":""},{"$f":"IFERROR(IF(OR($C$110=FALSE,LEFT($B107,3)<>\"NOX\"),AU56*INDEX('Damage costs'!$W$16:$W$43,MATCH($B107,'Damage costs'!$C$16:$C$43,0))/1000,AU56*INDEX('Damage costs'!$AA$16:$AA$43,MATCH($B107,'Damage costs'!$C$16:$C$43,0))/1000),\"\")","v":""},{"$f":"IFERROR(IF(OR($C$110=FALSE,LEFT($B107,3)<>\"NOX\"),AV56*INDEX('Damage costs'!$W$16:$W$43,MATCH($B107,'Damage costs'!$C$16:$C$43,0))/1000,AV56*INDEX('Damage costs'!$AA$16:$AA$43,MATCH($B107,'Damage costs'!$C$16:$C$43,0))/1000),\"\")","v":""},{"$f":"IFERROR(IF(OR($C$110=FALSE,LEFT($B107,3)<>\"NOX\"),AW56*INDEX('Damage costs'!$W$16:$W$43,MATCH($B107,'Damage costs'!$C$16:$C$43,0))/1000,AW56*INDEX('Damage costs'!$AA$16:$AA$43,MATCH($B107,'Damage costs'!$C$16:$C$43,0))/1000),\"\")","v":""},{"$f":"IFERROR(IF(OR($C$110=FALSE,LEFT($B107,3)<>\"NOX\"),AX56*INDEX('Damage costs'!$W$16:$W$43,MATCH($B107,'Damage costs'!$C$16:$C$43,0))/1000,AX56*INDEX('Damage costs'!$AA$16:$AA$43,MATCH($B107,'Damage costs'!$C$16:$C$43,0))/1000),\"\")","v":""},{"$f":"IFERROR(IF(OR($C$110=FALSE,LEFT($B107,3)<>\"NOX\"),AY56*INDEX('Damage costs'!$W$16:$W$43,MATCH($B107,'Damage costs'!$C$16:$C$43,0))/1000,AY56*INDEX('Damage costs'!$AA$16:$AA$43,MATCH($B107,'Damage costs'!$C$16:$C$43,0))/1000),\"\")","v":""},{"$f":"IFERROR(IF(OR($C$110=FALSE,LEFT($B107,3)<>\"NOX\"),AZ56*INDEX('Damage costs'!$W$16:$W$43,MATCH($B107,'Damage costs'!$C$16:$C$43,0))/1000,AZ56*INDEX('Damage costs'!$AA$16:$AA$43,MATCH($B107,'Damage costs'!$C$16:$C$43,0))/1000),\"\")","v":""},{"$f":"IFERROR(IF(OR($C$110=FALSE,LEFT($B107,3)<>\"NOX\"),BA56*INDEX('Damage costs'!$W$16:$W$43,MATCH($B107,'Damage costs'!$C$16:$C$43,0))/1000,BA56*INDEX('Damage costs'!$AA$16:$AA$43,MATCH($B107,'Damage costs'!$C$16:$C$43,0))/1000),\"\")","v":""},{"$f":"IFERROR(IF(OR($C$110=FALSE,LEFT($B107,3)<>\"NOX\"),BB56*INDEX('Damage costs'!$W$16:$W$43,MATCH($B107,'Damage costs'!$C$16:$C$43,0))/1000,BB56*INDEX('Damage costs'!$AA$16:$AA$43,MATCH($B107,'Damage costs'!$C$16:$C$43,0))/1000),\"\")","v":""},{"$f":"IFERROR(IF(OR($C$110=FALSE,LEFT($B107,3)<>\"NOX\"),BC56*INDEX('Damage costs'!$W$16:$W$43,MATCH($B107,'Damage costs'!$C$16:$C$43,0))/1000,BC56*INDEX('Damage costs'!$AA$16:$AA$43,MATCH($B107,'Damage costs'!$C$16:$C$43,0))/1000),\"\")","v":""},{"$f":"IFERROR(IF(OR($C$110=FALSE,LEFT($B107,3)<>\"NOX\"),BD56*INDEX('Damage costs'!$W$16:$W$43,MATCH($B107,'Damage costs'!$C$16:$C$43,0))/1000,BD56*INDEX('Damage costs'!$AA$16:$AA$43,MATCH($B107,'Damage costs'!$C$16:$C$43,0))/1000),\"\")","v":""},{"$f":"IFERROR(IF(OR($C$110=FALSE,LEFT($B107,3)<>\"NOX\"),BE56*INDEX('Damage costs'!$W$16:$W$43,MATCH($B107,'Damage costs'!$C$16:$C$43,0))/1000,BE56*INDEX('Damage costs'!$AA$16:$AA$43,MATCH($B107,'Damage costs'!$C$16:$C$43,0))/1000),\"\")","v":""},{"$f":"IFERROR(IF(OR($C$110=FALSE,LEFT($B107,3)<>\"NOX\"),BF56*INDEX('Damage costs'!$W$16:$W$43,MATCH($B107,'Damage costs'!$C$16:$C$43,0))/1000,BF56*INDEX('Damage costs'!$AA$16:$AA$43,MATCH($B107,'Damage costs'!$C$16:$C$43,0))/1000),\"\")","v":""},{"$f":"IFERROR(IF(OR($C$110=FALSE,LEFT($B107,3)<>\"NOX\"),BG56*INDEX('Damage costs'!$W$16:$W$43,MATCH($B107,'Damage costs'!$C$16:$C$43,0))/1000,BG56*INDEX('Damage costs'!$AA$16:$AA$43,MATCH($B107,'Damage costs'!$C$16:$C$43,0))/1000),\"\")","v":""},{"$f":"IFERROR(IF(OR($C$110=FALSE,LEFT($B107,3)<>\"NOX\"),BH56*INDEX('Damage costs'!$W$16:$W$43,MATCH($B107,'Damage costs'!$C$16:$C$43,0))/1000,BH56*INDEX('Damage costs'!$AA$16:$AA$43,MATCH($B107,'Damage costs'!$C$16:$C$43,0))/1000),\"\")","v":""},{"$f":"IFERROR(IF(OR($C$110=FALSE,LEFT($B107,3)<>\"NOX\"),BI56*INDEX('Damage costs'!$W$16:$W$43,MATCH($B107,'Damage costs'!$C$16:$C$43,0))/1000,BI56*INDEX('Damage costs'!$AA$16:$AA$43,MATCH($B107,'Damage costs'!$C$16:$C$43,0))/1000),\"\")","v":""},{"$f":"IFERROR(IF(OR($C$110=FALSE,LEFT($B107,3)<>\"NOX\"),BJ56*INDEX('Damage costs'!$W$16:$W$43,MATCH($B107,'Damage costs'!$C$16:$C$43,0))/1000,BJ56*INDEX('Damage costs'!$AA$16:$AA$43,MATCH($B107,'Damage costs'!$C$16:$C$43,0))/1000),\"\")","v":""},{"$f":"IFERROR(IF(OR($C$110=FALSE,LEFT($B107,3)<>\"NOX\"),BK56*INDEX('Damage costs'!$W$16:$W$43,MATCH($B107,'Damage costs'!$C$16:$C$43,0))/1000,BK56*INDEX('Damage costs'!$AA$16:$AA$43,MATCH($B107,'Damage costs'!$C$16:$C$43,0))/1000),\"\")","v":""},{"$f":"IFERROR(IF(OR($C$110=FALSE,LEFT($B107,3)<>\"NOX\"),BL56*INDEX('Damage costs'!$W$16:$W$43,MATCH($B107,'Damage costs'!$C$16:$C$43,0))/1000,BL56*INDEX('Damage costs'!$AA$16:$AA$43,MATCH($B107,'Damage costs'!$C$16:$C$43,0))/1000),\"\")","v":""},{"$f":"IFERROR(IF(OR($C$110=FALSE,LEFT($B107,3)<>\"NOX\"),BM56*INDEX('Damage costs'!$W$16:$W$43,MATCH($B107,'Damage costs'!$C$16:$C$43,0))/1000,BM56*INDEX('Damage costs'!$AA$16:$AA$43,MATCH($B107,'Damage costs'!$C$16:$C$43,0))/1000),\"\")","v":""},{"$f":"IFERROR(IF(OR($C$110=FALSE,LEFT($B107,3)<>\"NOX\"),BN56*INDEX('Damage costs'!$W$16:$W$43,MATCH($B107,'Damage costs'!$C$16:$C$43,0))/1000,BN56*INDEX('Damage costs'!$AA$16:$AA$43,MATCH($B107,'Damage costs'!$C$16:$C$43,0))/1000),\"\")","v":""},{"$f":"IFERROR(IF(OR($C$110=FALSE,LEFT($B107,3)<>\"NOX\"),BO56*INDEX('Damage costs'!$W$16:$W$43,MATCH($B107,'Damage costs'!$C$16:$C$43,0))/1000,BO56*INDEX('Damage costs'!$AA$16:$AA$43,MATCH($B107,'Damage costs'!$C$16:$C$43,0))/1000),\"\")","v":""},{"$f":"IFERROR(IF(OR($C$110=FALSE,LEFT($B107,3)<>\"NOX\"),BP56*INDEX('Damage costs'!$W$16:$W$43,MATCH($B107,'Damage costs'!$C$16:$C$43,0))/1000,BP56*INDEX('Damage costs'!$AA$16:$AA$43,MATCH($B107,'Damage costs'!$C$16:$C$43,0))/1000),\"\")","v":""},{"$f":"IFERROR(IF(OR($C$110=FALSE,LEFT($B107,3)<>\"NOX\"),BQ56*INDEX('Damage costs'!$W$16:$W$43,MATCH($B107,'Damage costs'!$C$16:$C$43,0))/1000,BQ56*INDEX('Damage costs'!$AA$16:$AA$43,MATCH($B107,'Damage costs'!$C$16:$C$43,0))/1000),\"\")","v":""},{"$f":"IFERROR(IF(OR($C$110=FALSE,LEFT($B107,3)<>\"NOX\"),BR56*INDEX('Damage costs'!$W$16:$W$43,MATCH($B107,'Damage costs'!$C$16:$C$43,0))/1000,BR56*INDEX('Damage costs'!$AA$16:$AA$43,MATCH($B107,'Damage costs'!$C$16:$C$43,0))/1000),\"\")","v":""},{"$f":"IFERROR(IF(OR($C$110=FALSE,LEFT($B107,3)<>\"NOX\"),BS56*INDEX('Damage costs'!$W$16:$W$43,MATCH($B107,'Damage costs'!$C$16:$C$43,0))/1000,BS56*INDEX('Damage costs'!$AA$16:$AA$43,MATCH($B107,'Damage costs'!$C$16:$C$43,0))/1000),\"\")","v":""},{"$f":"IFERROR(IF(OR($C$110=FALSE,LEFT($B107,3)<>\"NOX\"),BT56*INDEX('Damage costs'!$W$16:$W$43,MATCH($B107,'Damage costs'!$C$16:$C$43,0))/1000,BT56*INDEX('Damage costs'!$AA$16:$AA$43,MATCH($B107,'Damage costs'!$C$16:$C$43,0))/1000),\"\")","v":""},{"$f":"IFERROR(IF(OR($C$110=FALSE,LEFT($B107,3)<>\"NOX\"),BU56*INDEX('Damage costs'!$W$16:$W$43,MATCH($B107,'Damage costs'!$C$16:$C$43,0))/1000,BU56*INDEX('Damage costs'!$AA$16:$AA$43,MATCH($B107,'Damage costs'!$C$16:$C$43,0))/1000),\"\")","v":""},{"$f":"IFERROR(IF(OR($C$110=FALSE,LEFT($B107,3)<>\"NOX\"),BV56*INDEX('Damage costs'!$W$16:$W$43,MATCH($B107,'Damage costs'!$C$16:$C$43,0))/1000,BV56*INDEX('Damage costs'!$AA$16:$AA$43,MATCH($B107,'Damage costs'!$C$16:$C$43,0))/1000),\"\")","v":""},{"$f":"IFERROR(IF(OR($C$110=FALSE,LEFT($B107,3)<>\"NOX\"),BW56*INDEX('Damage costs'!$W$16:$W$43,MATCH($B107,'Damage costs'!$C$16:$C$43,0))/1000,BW56*INDEX('Damage costs'!$AA$16:$AA$43,MATCH($B107,'Damage costs'!$C$16:$C$43,0))/1000),\"\")","v":""},{"$f":"IFERROR(IF(OR($C$110=FALSE,LEFT($B107,3)<>\"NOX\"),BX56*INDEX('Damage costs'!$W$16:$W$43,MATCH($B107,'Damage costs'!$C$16:$C$43,0))/1000,BX56*INDEX('Damage costs'!$AA$16:$AA$43,MATCH($B107,'Damage costs'!$C$16:$C$43,0))/1000),\"\")","v":""},{"$f":"IFERROR(IF(OR($C$110=FALSE,LEFT($B107,3)<>\"NOX\"),BY56*INDEX('Damage costs'!$W$16:$W$43,MATCH($B107,'Damage costs'!$C$16:$C$43,0))/1000,BY56*INDEX('Damage costs'!$AA$16:$AA$43,MATCH($B107,'Damage costs'!$C$16:$C$43,0))/1000),\"\")","v":""},{"$f":"IFERROR(IF(OR($C$110=FALSE,LEFT($B107,3)<>\"NOX\"),BZ56*INDEX('Damage costs'!$W$16:$W$43,MATCH($B107,'Damage costs'!$C$16:$C$43,0))/1000,BZ56*INDEX('Damage costs'!$AA$16:$AA$43,MATCH($B107,'Damage costs'!$C$16:$C$43,0))/1000),\"\")","v":""},{"$f":"IFERROR(IF(OR($C$110=FALSE,LEFT($B107,3)<>\"NOX\"),CA56*INDEX('Damage costs'!$W$16:$W$43,MATCH($B107,'Damage costs'!$C$16:$C$43,0))/1000,CA56*INDEX('Damage costs'!$AA$16:$AA$43,MATCH($B107,'Damage costs'!$C$16:$C$43,0))/1000),\"\")","v":""},{"$f":"IFERROR(IF(OR($C$110=FALSE,LEFT($B107,3)<>\"NOX\"),CB56*INDEX('Damage costs'!$W$16:$W$43,MATCH($B107,'Damage costs'!$C$16:$C$43,0))/1000,CB56*INDEX('Damage costs'!$AA$16:$AA$43,MATCH($B107,'Damage costs'!$C$16:$C$43,0))/1000),\"\")","v":""},{"$f":"IFERROR(IF(OR($C$110=FALSE,LEFT($B107,3)<>\"NOX\"),CC56*INDEX('Damage costs'!$W$16:$W$43,MATCH($B107,'Damage costs'!$C$16:$C$43,0))/1000,CC56*INDEX('Damage costs'!$AA$16:$AA$43,MATCH($B107,'Damage costs'!$C$16:$C$43,0))/1000),\"\")","v":""},{"$f":"IFERROR(IF(OR($C$110=FALSE,LEFT($B107,3)<>\"NOX\"),CD56*INDEX('Damage costs'!$W$16:$W$43,MATCH($B107,'Damage costs'!$C$16:$C$43,0))/1000,CD56*INDEX('Damage costs'!$AA$16:$AA$43,MATCH($B107,'Damage costs'!$C$16:$C$43,0))/1000),\"\")","v":""},{"$f":"IFERROR(IF(OR($C$110=FALSE,LEFT($B107,3)<>\"NOX\"),CE56*INDEX('Damage costs'!$W$16:$W$43,MATCH($B107,'Damage costs'!$C$16:$C$43,0))/1000,CE56*INDEX('Damage costs'!$AA$16:$AA$43,MATCH($B107,'Damage costs'!$C$16:$C$43,0))/1000),\"\")","v":""},{"$f":"IFERROR(IF(OR($C$110=FALSE,LEFT($B107,3)<>\"NOX\"),CF56*INDEX('Damage costs'!$W$16:$W$43,MATCH($B107,'Damage costs'!$C$16:$C$43,0))/1000,CF56*INDEX('Damage costs'!$AA$16:$AA$43,MATCH($B107,'Damage costs'!$C$16:$C$43,0))/1000),\"\")","v":""},{"$f":"IFERROR(IF(OR($C$110=FALSE,LEFT($B107,3)<>\"NOX\"),CG56*INDEX('Damage costs'!$W$16:$W$43,MATCH($B107,'Damage costs'!$C$16:$C$43,0))/1000,CG56*INDEX('Damage costs'!$AA$16:$AA$43,MATCH($B107,'Damage costs'!$C$16:$C$43,0))/1000),\"\")","v":""},{"$f":"IFERROR(IF(OR($C$110=FALSE,LEFT($B107,3)<>\"NOX\"),CH56*INDEX('Damage costs'!$W$16:$W$43,MATCH($B107,'Damage costs'!$C$16:$C$43,0))/1000,CH56*INDEX('Damage costs'!$AA$16:$AA$43,MATCH($B107,'Damage costs'!$C$16:$C$43,0))/1000),\"\")","v":""},{"$f":"IFERROR(IF(OR($C$110=FALSE,LEFT($B107,3)<>\"NOX\"),CI56*INDEX('Damage costs'!$W$16:$W$43,MATCH($B107,'Damage costs'!$C$16:$C$43,0))/1000,CI56*INDEX('Damage costs'!$AA$16:$AA$43,MATCH($B107,'Damage costs'!$C$16:$C$43,0))/1000),\"\")","v":""},{"$f":"IFERROR(IF(OR($C$110=FALSE,LEFT($B107,3)<>\"NOX\"),CJ56*INDEX('Damage costs'!$W$16:$W$43,MATCH($B107,'Damage costs'!$C$16:$C$43,0))/1000,CJ56*INDEX('Damage costs'!$AA$16:$AA$43,MATCH($B107,'Damage costs'!$C$16:$C$43,0))/1000),\"\")","v":""},{"$f":"IFERROR(IF(OR($C$110=FALSE,LEFT($B107,3)<>\"NOX\"),CK56*INDEX('Damage costs'!$W$16:$W$43,MATCH($B107,'Damage costs'!$C$16:$C$43,0))/1000,CK56*INDEX('Damage costs'!$AA$16:$AA$43,MATCH($B107,'Damage costs'!$C$16:$C$43,0))/1000),\"\")","v":""},{"$f":"IFERROR(IF(OR($C$110=FALSE,LEFT($B107,3)<>\"NOX\"),CL56*INDEX('Damage costs'!$W$16:$W$43,MATCH($B107,'Damage costs'!$C$16:$C$43,0))/1000,CL56*INDEX('Damage costs'!$AA$16:$AA$43,MATCH($B107,'Damage costs'!$C$16:$C$43,0))/1000),\"\")","v":""},{"$f":"IFERROR(IF(OR($C$110=FALSE,LEFT($B107,3)<>\"NOX\"),CM56*INDEX('Damage costs'!$W$16:$W$43,MATCH($B107,'Damage costs'!$C$16:$C$43,0))/1000,CM56*INDEX('Damage costs'!$AA$16:$AA$43,MATCH($B107,'Damage costs'!$C$16:$C$43,0))/1000),\"\")","v":""},{"$f":"IFERROR(IF(OR($C$110=FALSE,LEFT($B107,3)<>\"NOX\"),CN56*INDEX('Damage costs'!$W$16:$W$43,MATCH($B107,'Damage costs'!$C$16:$C$43,0))/1000,CN56*INDEX('Damage costs'!$AA$16:$AA$43,MATCH($B107,'Damage costs'!$C$16:$C$43,0))/1000),\"\")","v":""},{"$f":"IFERROR(IF(OR($C$110=FALSE,LEFT($B107,3)<>\"NOX\"),CO56*INDEX('Damage costs'!$W$16:$W$43,MATCH($B107,'Damage costs'!$C$16:$C$43,0))/1000,CO56*INDEX('Damage costs'!$AA$16:$AA$43,MATCH($B107,'Damage costs'!$C$16:$C$43,0))/1000),\"\")","v":""},{"$f":"IFERROR(IF(OR($C$110=FALSE,LEFT($B107,3)<>\"NOX\"),CP56*INDEX('Damage costs'!$W$16:$W$43,MATCH($B107,'Damage costs'!$C$16:$C$43,0))/1000,CP56*INDEX('Damage costs'!$AA$16:$AA$43,MATCH($B107,'Damage costs'!$C$16:$C$43,0))/1000),\"\")","v":""},{"$f":"IFERROR(IF(OR($C$110=FALSE,LEFT($B107,3)<>\"NOX\"),CQ56*INDEX('Damage costs'!$W$16:$W$43,MATCH($B107,'Damage costs'!$C$16:$C$43,0))/1000,CQ56*INDEX('Damage costs'!$AA$16:$AA$43,MATCH($B107,'Damage costs'!$C$16:$C$43,0))/1000),\"\")","v":""},{"$f":"IFERROR(IF(OR($C$110=FALSE,LEFT($B107,3)<>\"NOX\"),CR56*INDEX('Damage costs'!$W$16:$W$43,MATCH($B107,'Damage costs'!$C$16:$C$43,0))/1000,CR56*INDEX('Damage costs'!$AA$16:$AA$43,MATCH($B107,'Damage costs'!$C$16:$C$43,0))/1000),\"\")","v":""},{"$f":"IFERROR(IF(OR($C$110=FALSE,LEFT($B107,3)<>\"NOX\"),CS56*INDEX('Damage costs'!$W$16:$W$43,MATCH($B107,'Damage costs'!$C$16:$C$43,0))/1000,CS56*INDEX('Damage costs'!$AA$16:$AA$43,MATCH($B107,'Damage costs'!$C$16:$C$43,0))/1000),\"\")","v":""},{"$f":"IFERROR(IF(OR($C$110=FALSE,LEFT($B107,3)<>\"NOX\"),CT56*INDEX('Damage costs'!$W$16:$W$43,MATCH($B107,'Damage costs'!$C$16:$C$43,0))/1000,CT56*INDEX('Damage costs'!$AA$16:$AA$43,MATCH($B107,'Damage costs'!$C$16:$C$43,0))/1000),\"\")","v":""},{"$f":"IFERROR(IF(OR($C$110=FALSE,LEFT($B107,3)<>\"NOX\"),CU56*INDEX('Damage costs'!$W$16:$W$43,MATCH($B107,'Damage costs'!$C$16:$C$43,0))/1000,CU56*INDEX('Damage costs'!$AA$16:$AA$43,MATCH($B107,'Damage costs'!$C$16:$C$43,0))/1000),\"\")","v":""},{"$f":"IFERROR(IF(OR($C$110=FALSE,LEFT($B107,3)<>\"NOX\"),CV56*INDEX('Damage costs'!$W$16:$W$43,MATCH($B107,'Damage costs'!$C$16:$C$43,0))/1000,CV56*INDEX('Damage costs'!$AA$16:$AA$43,MATCH($B107,'Damage costs'!$C$16:$C$43,0))/1000),\"\")","v":""},{"$f":"IFERROR(IF(OR($C$110=FALSE,LEFT($B107,3)<>\"NOX\"),CW56*INDEX('Damage costs'!$W$16:$W$43,MATCH($B107,'Damage costs'!$C$16:$C$43,0))/1000,CW56*INDEX('Damage costs'!$AA$16:$AA$43,MATCH($B107,'Damage costs'!$C$16:$C$43,0))/1000),\"\")","v":""},{"$f":"IFERROR(IF(OR($C$110=FALSE,LEFT($B107,3)<>\"NOX\"),CX56*INDEX('Damage costs'!$W$16:$W$43,MATCH($B107,'Damage costs'!$C$16:$C$43,0))/1000,CX56*INDEX('Damage costs'!$AA$16:$AA$43,MATCH($B107,'Damage costs'!$C$16:$C$43,0))/1000),\"\")","v":""},{"$f":"IFERROR(IF(OR($C$110=FALSE,LEFT($B107,3)<>\"NOX\"),CY56*INDEX('Damage costs'!$W$16:$W$43,MATCH($B107,'Damage costs'!$C$16:$C$43,0))/1000,CY56*INDEX('Damage costs'!$AA$16:$AA$43,MATCH($B107,'Damage costs'!$C$16:$C$43,0))/1000),\"\")","v":""}]
[null,0,"£000's",{"$f":"IFERROR(IF(OR($C$110=FALSE,LEFT($B108,3)<>\"NOX\"),D57*INDEX('Damage costs'!$W$16:$W$43,MATCH($B108,'Damage costs'!$C$16:$C$43,0))/1000,D57*INDEX('Damage costs'!$AA$16:$AA$43,MATCH($B108,'Damage costs'!$C$16:$C$43,0))/1000),\"\")","v":""},{"$f":"IFERROR(IF(OR($C$110=FALSE,LEFT($B108,3)<>\"NOX\"),E57*INDEX('Damage costs'!$W$16:$W$43,MATCH($B108,'Damage costs'!$C$16:$C$43,0))/1000,E57*INDEX('Damage costs'!$AA$16:$AA$43,MATCH($B108,'Damage costs'!$C$16:$C$43,0))/1000),\"\")","v":""},{"$f":"IFERROR(IF(OR($C$110=FALSE,LEFT($B108,3)<>\"NOX\"),F57*INDEX('Damage costs'!$W$16:$W$43,MATCH($B108,'Damage costs'!$C$16:$C$43,0))/1000,F57*INDEX('Damage costs'!$AA$16:$AA$43,MATCH($B108,'Damage costs'!$C$16:$C$43,0))/1000),\"\")","v":""},{"$f":"IFERROR(IF(OR($C$110=FALSE,LEFT($B108,3)<>\"NOX\"),G57*INDEX('Damage costs'!$W$16:$W$43,MATCH($B108,'Damage costs'!$C$16:$C$43,0))/1000,G57*INDEX('Damage costs'!$AA$16:$AA$43,MATCH($B108,'Damage costs'!$C$16:$C$43,0))/1000),\"\")","v":""},{"$f":"IFERROR(IF(OR($C$110=FALSE,LEFT($B108,3)<>\"NOX\"),H57*INDEX('Damage costs'!$W$16:$W$43,MATCH($B108,'Damage costs'!$C$16:$C$43,0))/1000,H57*INDEX('Damage costs'!$AA$16:$AA$43,MATCH($B108,'Damage costs'!$C$16:$C$43,0))/1000),\"\")","v":""},{"$f":"IFERROR(IF(OR($C$110=FALSE,LEFT($B108,3)<>\"NOX\"),I57*INDEX('Damage costs'!$W$16:$W$43,MATCH($B108,'Damage costs'!$C$16:$C$43,0))/1000,I57*INDEX('Damage costs'!$AA$16:$AA$43,MATCH($B108,'Damage costs'!$C$16:$C$43,0))/1000),\"\")","v":""},{"$f":"IFERROR(IF(OR($C$110=FALSE,LEFT($B108,3)<>\"NOX\"),J57*INDEX('Damage costs'!$W$16:$W$43,MATCH($B108,'Damage costs'!$C$16:$C$43,0))/1000,J57*INDEX('Damage costs'!$AA$16:$AA$43,MATCH($B108,'Damage costs'!$C$16:$C$43,0))/1000),\"\")","v":""},{"$f":"IFERROR(IF(OR($C$110=FALSE,LEFT($B108,3)<>\"NOX\"),K57*INDEX('Damage costs'!$W$16:$W$43,MATCH($B108,'Damage costs'!$C$16:$C$43,0))/1000,K57*INDEX('Damage costs'!$AA$16:$AA$43,MATCH($B108,'Damage costs'!$C$16:$C$43,0))/1000),\"\")","v":""},{"$f":"IFERROR(IF(OR($C$110=FALSE,LEFT($B108,3)<>\"NOX\"),L57*INDEX('Damage costs'!$W$16:$W$43,MATCH($B108,'Damage costs'!$C$16:$C$43,0))/1000,L57*INDEX('Damage costs'!$AA$16:$AA$43,MATCH($B108,'Damage costs'!$C$16:$C$43,0))/1000),\"\")","v":""},{"$f":"IFERROR(IF(OR($C$110=FALSE,LEFT($B108,3)<>\"NOX\"),M57*INDEX('Damage costs'!$W$16:$W$43,MATCH($B108,'Damage costs'!$C$16:$C$43,0))/1000,M57*INDEX('Damage costs'!$AA$16:$AA$43,MATCH($B108,'Damage costs'!$C$16:$C$43,0))/1000),\"\")","v":""},{"$f":"IFERROR(IF(OR($C$110=FALSE,LEFT($B108,3)<>\"NOX\"),N57*INDEX('Damage costs'!$W$16:$W$43,MATCH($B108,'Damage costs'!$C$16:$C$43,0))/1000,N57*INDEX('Damage costs'!$AA$16:$AA$43,MATCH($B108,'Damage costs'!$C$16:$C$43,0))/1000),\"\")","v":""},{"$f":"IFERROR(IF(OR($C$110=FALSE,LEFT($B108,3)<>\"NOX\"),O57*INDEX('Damage costs'!$W$16:$W$43,MATCH($B108,'Damage costs'!$C$16:$C$43,0))/1000,O57*INDEX('Damage costs'!$AA$16:$AA$43,MATCH($B108,'Damage costs'!$C$16:$C$43,0))/1000),\"\")","v":""},{"$f":"IFERROR(IF(OR($C$110=FALSE,LEFT($B108,3)<>\"NOX\"),P57*INDEX('Damage costs'!$W$16:$W$43,MATCH($B108,'Damage costs'!$C$16:$C$43,0))/1000,P57*INDEX('Damage costs'!$AA$16:$AA$43,MATCH($B108,'Damage costs'!$C$16:$C$43,0))/1000),\"\")","v":""},{"$f":"IFERROR(IF(OR($C$110=FALSE,LEFT($B108,3)<>\"NOX\"),Q57*INDEX('Damage costs'!$W$16:$W$43,MATCH($B108,'Damage costs'!$C$16:$C$43,0))/1000,Q57*INDEX('Damage costs'!$AA$16:$AA$43,MATCH($B108,'Damage costs'!$C$16:$C$43,0))/1000),\"\")","v":""},{"$f":"IFERROR(IF(OR($C$110=FALSE,LEFT($B108,3)<>\"NOX\"),R57*INDEX('Damage costs'!$W$16:$W$43,MATCH($B108,'Damage costs'!$C$16:$C$43,0))/1000,R57*INDEX('Damage costs'!$AA$16:$AA$43,MATCH($B108,'Damage costs'!$C$16:$C$43,0))/1000),\"\")","v":""},{"$f":"IFERROR(IF(OR($C$110=FALSE,LEFT($B108,3)<>\"NOX\"),S57*INDEX('Damage costs'!$W$16:$W$43,MATCH($B108,'Damage costs'!$C$16:$C$43,0))/1000,S57*INDEX('Damage costs'!$AA$16:$AA$43,MATCH($B108,'Damage costs'!$C$16:$C$43,0))/1000),\"\")","v":""},{"$f":"IFERROR(IF(OR($C$110=FALSE,LEFT($B108,3)<>\"NOX\"),T57*INDEX('Damage costs'!$W$16:$W$43,MATCH($B108,'Damage costs'!$C$16:$C$43,0))/1000,T57*INDEX('Damage costs'!$AA$16:$AA$43,MATCH($B108,'Damage costs'!$C$16:$C$43,0))/1000),\"\")","v":""},{"$f":"IFERROR(IF(OR($C$110=FALSE,LEFT($B108,3)<>\"NOX\"),U57*INDEX('Damage costs'!$W$16:$W$43,MATCH($B108,'Damage costs'!$C$16:$C$43,0))/1000,U57*INDEX('Damage costs'!$AA$16:$AA$43,MATCH($B108,'Damage costs'!$C$16:$C$43,0))/1000),\"\")","v":""},{"$f":"IFERROR(IF(OR($C$110=FALSE,LEFT($B108,3)<>\"NOX\"),V57*INDEX('Damage costs'!$W$16:$W$43,MATCH($B108,'Damage costs'!$C$16:$C$43,0))/1000,V57*INDEX('Damage costs'!$AA$16:$AA$43,MATCH($B108,'Damage costs'!$C$16:$C$43,0))/1000),\"\")","v":""},{"$f":"IFERROR(IF(OR($C$110=FALSE,LEFT($B108,3)<>\"NOX\"),W57*INDEX('Damage costs'!$W$16:$W$43,MATCH($B108,'Damage costs'!$C$16:$C$43,0))/1000,W57*INDEX('Damage costs'!$AA$16:$AA$43,MATCH($B108,'Damage costs'!$C$16:$C$43,0))/1000),\"\")","v":""},{"$f":"IFERROR(IF(OR($C$110=FALSE,LEFT($B108,3)<>\"NOX\"),X57*INDEX('Damage costs'!$W$16:$W$43,MATCH($B108,'Damage costs'!$C$16:$C$43,0))/1000,X57*INDEX('Damage costs'!$AA$16:$AA$43,MATCH($B108,'Damage costs'!$C$16:$C$43,0))/1000),\"\")","v":""},{"$f":"IFERROR(IF(OR($C$110=FALSE,LEFT($B108,3)<>\"NOX\"),Y57*INDEX('Damage costs'!$W$16:$W$43,MATCH($B108,'Damage costs'!$C$16:$C$43,0))/1000,Y57*INDEX('Damage costs'!$AA$16:$AA$43,MATCH($B108,'Damage costs'!$C$16:$C$43,0))/1000),\"\")","v":""},{"$f":"IFERROR(IF(OR($C$110=FALSE,LEFT($B108,3)<>\"NOX\"),Z57*INDEX('Damage costs'!$W$16:$W$43,MATCH($B108,'Damage costs'!$C$16:$C$43,0))/1000,Z57*INDEX('Damage costs'!$AA$16:$AA$43,MATCH($B108,'Damage costs'!$C$16:$C$43,0))/1000),\"\")","v":""},{"$f":"IFERROR(IF(OR($C$110=FALSE,LEFT($B108,3)<>\"NOX\"),AA57*INDEX('Damage costs'!$W$16:$W$43,MATCH($B108,'Damage costs'!$C$16:$C$43,0))/1000,AA57*INDEX('Damage costs'!$AA$16:$AA$43,MATCH($B108,'Damage costs'!$C$16:$C$43,0))/1000),\"\")","v":""},{"$f":"IFERROR(IF(OR($C$110=FALSE,LEFT($B108,3)<>\"NOX\"),AB57*INDEX('Damage costs'!$W$16:$W$43,MATCH($B108,'Damage costs'!$C$16:$C$43,0))/1000,AB57*INDEX('Damage costs'!$AA$16:$AA$43,MATCH($B108,'Damage costs'!$C$16:$C$43,0))/1000),\"\")","v":""},{"$f":"IFERROR(IF(OR($C$110=FALSE,LEFT($B108,3)<>\"NOX\"),AC57*INDEX('Damage costs'!$W$16:$W$43,MATCH($B108,'Damage costs'!$C$16:$C$43,0))/1000,AC57*INDEX('Damage costs'!$AA$16:$AA$43,MATCH($B108,'Damage costs'!$C$16:$C$43,0))/1000),\"\")","v":""},{"$f":"IFERROR(IF(OR($C$110=FALSE,LEFT($B108,3)<>\"NOX\"),AD57*INDEX('Damage costs'!$W$16:$W$43,MATCH($B108,'Damage costs'!$C$16:$C$43,0))/1000,AD57*INDEX('Damage costs'!$AA$16:$AA$43,MATCH($B108,'Damage costs'!$C$16:$C$43,0))/1000),\"\")","v":""},{"$f":"IFERROR(IF(OR($C$110=FALSE,LEFT($B108,3)<>\"NOX\"),AE57*INDEX('Damage costs'!$W$16:$W$43,MATCH($B108,'Damage costs'!$C$16:$C$43,0))/1000,AE57*INDEX('Damage costs'!$AA$16:$AA$43,MATCH($B108,'Damage costs'!$C$16:$C$43,0))/1000),\"\")","v":""},{"$f":"IFERROR(IF(OR($C$110=FALSE,LEFT($B108,3)<>\"NOX\"),AF57*INDEX('Damage costs'!$W$16:$W$43,MATCH($B108,'Damage costs'!$C$16:$C$43,0))/1000,AF57*INDEX('Damage costs'!$AA$16:$AA$43,MATCH($B108,'Damage costs'!$C$16:$C$43,0))/1000),\"\")","v":""},{"$f":"IFERROR(IF(OR($C$110=FALSE,LEFT($B108,3)<>\"NOX\"),AG57*INDEX('Damage costs'!$W$16:$W$43,MATCH($B108,'Damage costs'!$C$16:$C$43,0))/1000,AG57*INDEX('Damage costs'!$AA$16:$AA$43,MATCH($B108,'Damage costs'!$C$16:$C$43,0))/1000),\"\")","v":""},{"$f":"IFERROR(IF(OR($C$110=FALSE,LEFT($B108,3)<>\"NOX\"),AH57*INDEX('Damage costs'!$W$16:$W$43,MATCH($B108,'Damage costs'!$C$16:$C$43,0))/1000,AH57*INDEX('Damage costs'!$AA$16:$AA$43,MATCH($B108,'Damage costs'!$C$16:$C$43,0))/1000),\"\")","v":""},{"$f":"IFERROR(IF(OR($C$110=FALSE,LEFT($B108,3)<>\"NOX\"),AI57*INDEX('Damage costs'!$W$16:$W$43,MATCH($B108,'Damage costs'!$C$16:$C$43,0))/1000,AI57*INDEX('Damage costs'!$AA$16:$AA$43,MATCH($B108,'Damage costs'!$C$16:$C$43,0))/1000),\"\")","v":""},{"$f":"IFERROR(IF(OR($C$110=FALSE,LEFT($B108,3)<>\"NOX\"),AJ57*INDEX('Damage costs'!$W$16:$W$43,MATCH($B108,'Damage costs'!$C$16:$C$43,0))/1000,AJ57*INDEX('Damage costs'!$AA$16:$AA$43,MATCH($B108,'Damage costs'!$C$16:$C$43,0))/1000),\"\")","v":""},{"$f":"IFERROR(IF(OR($C$110=FALSE,LEFT($B108,3)<>\"NOX\"),AK57*INDEX('Damage costs'!$W$16:$W$43,MATCH($B108,'Damage costs'!$C$16:$C$43,0))/1000,AK57*INDEX('Damage costs'!$AA$16:$AA$43,MATCH($B108,'Damage costs'!$C$16:$C$43,0))/1000),\"\")","v":""},{"$f":"IFERROR(IF(OR($C$110=FALSE,LEFT($B108,3)<>\"NOX\"),AL57*INDEX('Damage costs'!$W$16:$W$43,MATCH($B108,'Damage costs'!$C$16:$C$43,0))/1000,AL57*INDEX('Damage costs'!$AA$16:$AA$43,MATCH($B108,'Damage costs'!$C$16:$C$43,0))/1000),\"\")","v":""},{"$f":"IFERROR(IF(OR($C$110=FALSE,LEFT($B108,3)<>\"NOX\"),AM57*INDEX('Damage costs'!$W$16:$W$43,MATCH($B108,'Damage costs'!$C$16:$C$43,0))/1000,AM57*INDEX('Damage costs'!$AA$16:$AA$43,MATCH($B108,'Damage costs'!$C$16:$C$43,0))/1000),\"\")","v":""},{"$f":"IFERROR(IF(OR($C$110=FALSE,LEFT($B108,3)<>\"NOX\"),AN57*INDEX('Damage costs'!$W$16:$W$43,MATCH($B108,'Damage costs'!$C$16:$C$43,0))/1000,AN57*INDEX('Damage costs'!$AA$16:$AA$43,MATCH($B108,'Damage costs'!$C$16:$C$43,0))/1000),\"\")","v":""},{"$f":"IFERROR(IF(OR($C$110=FALSE,LEFT($B108,3)<>\"NOX\"),AO57*INDEX('Damage costs'!$W$16:$W$43,MATCH($B108,'Damage costs'!$C$16:$C$43,0))/1000,AO57*INDEX('Damage costs'!$AA$16:$AA$43,MATCH($B108,'Damage costs'!$C$16:$C$43,0))/1000),\"\")","v":""},{"$f":"IFERROR(IF(OR($C$110=FALSE,LEFT($B108,3)<>\"NOX\"),AP57*INDEX('Damage costs'!$W$16:$W$43,MATCH($B108,'Damage costs'!$C$16:$C$43,0))/1000,AP57*INDEX('Damage costs'!$AA$16:$AA$43,MATCH($B108,'Damage costs'!$C$16:$C$43,0))/1000),\"\")","v":""},{"$f":"IFERROR(IF(OR($C$110=FALSE,LEFT($B108,3)<>\"NOX\"),AQ57*INDEX('Damage costs'!$W$16:$W$43,MATCH($B108,'Damage costs'!$C$16:$C$43,0))/1000,AQ57*INDEX('Damage costs'!$AA$16:$AA$43,MATCH($B108,'Damage costs'!$C$16:$C$43,0))/1000),\"\")","v":""},{"$f":"IFERROR(IF(OR($C$110=FALSE,LEFT($B108,3)<>\"NOX\"),AR57*INDEX('Damage costs'!$W$16:$W$43,MATCH($B108,'Damage costs'!$C$16:$C$43,0))/1000,AR57*INDEX('Damage costs'!$AA$16:$AA$43,MATCH($B108,'Damage costs'!$C$16:$C$43,0))/1000),\"\")","v":""},{"$f":"IFERROR(IF(OR($C$110=FALSE,LEFT($B108,3)<>\"NOX\"),AS57*INDEX('Damage costs'!$W$16:$W$43,MATCH($B108,'Damage costs'!$C$16:$C$43,0))/1000,AS57*INDEX('Damage costs'!$AA$16:$AA$43,MATCH($B108,'Damage costs'!$C$16:$C$43,0))/1000),\"\")","v":""},{"$f":"IFERROR(IF(OR($C$110=FALSE,LEFT($B108,3)<>\"NOX\"),AT57*INDEX('Damage costs'!$W$16:$W$43,MATCH($B108,'Damage costs'!$C$16:$C$43,0))/1000,AT57*INDEX('Damage costs'!$AA$16:$AA$43,MATCH($B108,'Damage costs'!$C$16:$C$43,0))/1000),\"\")","v":""},{"$f":"IFERROR(IF(OR($C$110=FALSE,LEFT($B108,3)<>\"NOX\"),AU57*INDEX('Damage costs'!$W$16:$W$43,MATCH($B108,'Damage costs'!$C$16:$C$43,0))/1000,AU57*INDEX('Damage costs'!$AA$16:$AA$43,MATCH($B108,'Damage costs'!$C$16:$C$43,0))/1000),\"\")","v":""},{"$f":"IFERROR(IF(OR($C$110=FALSE,LEFT($B108,3)<>\"NOX\"),AV57*INDEX('Damage costs'!$W$16:$W$43,MATCH($B108,'Damage costs'!$C$16:$C$43,0))/1000,AV57*INDEX('Damage costs'!$AA$16:$AA$43,MATCH($B108,'Damage costs'!$C$16:$C$43,0))/1000),\"\")","v":""},{"$f":"IFERROR(IF(OR($C$110=FALSE,LEFT($B108,3)<>\"NOX\"),AW57*INDEX('Damage costs'!$W$16:$W$43,MATCH($B108,'Damage costs'!$C$16:$C$43,0))/1000,AW57*INDEX('Damage costs'!$AA$16:$AA$43,MATCH($B108,'Damage costs'!$C$16:$C$43,0))/1000),\"\")","v":""},{"$f":"IFERROR(IF(OR($C$110=FALSE,LEFT($B108,3)<>\"NOX\"),AX57*INDEX('Damage costs'!$W$16:$W$43,MATCH($B108,'Damage costs'!$C$16:$C$43,0))/1000,AX57*INDEX('Damage costs'!$AA$16:$AA$43,MATCH($B108,'Damage costs'!$C$16:$C$43,0))/1000),\"\")","v":""},{"$f":"IFERROR(IF(OR($C$110=FALSE,LEFT($B108,3)<>\"NOX\"),AY57*INDEX('Damage costs'!$W$16:$W$43,MATCH($B108,'Damage costs'!$C$16:$C$43,0))/1000,AY57*INDEX('Damage costs'!$AA$16:$AA$43,MATCH($B108,'Damage costs'!$C$16:$C$43,0))/1000),\"\")","v":""},{"$f":"IFERROR(IF(OR($C$110=FALSE,LEFT($B108,3)<>\"NOX\"),AZ57*INDEX('Damage costs'!$W$16:$W$43,MATCH($B108,'Damage costs'!$C$16:$C$43,0))/1000,AZ57*INDEX('Damage costs'!$AA$16:$AA$43,MATCH($B108,'Damage costs'!$C$16:$C$43,0))/1000),\"\")","v":""},{"$f":"IFERROR(IF(OR($C$110=FALSE,LEFT($B108,3)<>\"NOX\"),BA57*INDEX('Damage costs'!$W$16:$W$43,MATCH($B108,'Damage costs'!$C$16:$C$43,0))/1000,BA57*INDEX('Damage costs'!$AA$16:$AA$43,MATCH($B108,'Damage costs'!$C$16:$C$43,0))/1000),\"\")","v":""},{"$f":"IFERROR(IF(OR($C$110=FALSE,LEFT($B108,3)<>\"NOX\"),BB57*INDEX('Damage costs'!$W$16:$W$43,MATCH($B108,'Damage costs'!$C$16:$C$43,0))/1000,BB57*INDEX('Damage costs'!$AA$16:$AA$43,MATCH($B108,'Damage costs'!$C$16:$C$43,0))/1000),\"\")","v":""},{"$f":"IFERROR(IF(OR($C$110=FALSE,LEFT($B108,3)<>\"NOX\"),BC57*INDEX('Damage costs'!$W$16:$W$43,MATCH($B108,'Damage costs'!$C$16:$C$43,0))/1000,BC57*INDEX('Damage costs'!$AA$16:$AA$43,MATCH($B108,'Damage costs'!$C$16:$C$43,0))/1000),\"\")","v":""},{"$f":"IFERROR(IF(OR($C$110=FALSE,LEFT($B108,3)<>\"NOX\"),BD57*INDEX('Damage costs'!$W$16:$W$43,MATCH($B108,'Damage costs'!$C$16:$C$43,0))/1000,BD57*INDEX('Damage costs'!$AA$16:$AA$43,MATCH($B108,'Damage costs'!$C$16:$C$43,0))/1000),\"\")","v":""},{"$f":"IFERROR(IF(OR($C$110=FALSE,LEFT($B108,3)<>\"NOX\"),BE57*INDEX('Damage costs'!$W$16:$W$43,MATCH($B108,'Damage costs'!$C$16:$C$43,0))/1000,BE57*INDEX('Damage costs'!$AA$16:$AA$43,MATCH($B108,'Damage costs'!$C$16:$C$43,0))/1000),\"\")","v":""},{"$f":"IFERROR(IF(OR($C$110=FALSE,LEFT($B108,3)<>\"NOX\"),BF57*INDEX('Damage costs'!$W$16:$W$43,MATCH($B108,'Damage costs'!$C$16:$C$43,0))/1000,BF57*INDEX('Damage costs'!$AA$16:$AA$43,MATCH($B108,'Damage costs'!$C$16:$C$43,0))/1000),\"\")","v":""},{"$f":"IFERROR(IF(OR($C$110=FALSE,LEFT($B108,3)<>\"NOX\"),BG57*INDEX('Damage costs'!$W$16:$W$43,MATCH($B108,'Damage costs'!$C$16:$C$43,0))/1000,BG57*INDEX('Damage costs'!$AA$16:$AA$43,MATCH($B108,'Damage costs'!$C$16:$C$43,0))/1000),\"\")","v":""},{"$f":"IFERROR(IF(OR($C$110=FALSE,LEFT($B108,3)<>\"NOX\"),BH57*INDEX('Damage costs'!$W$16:$W$43,MATCH($B108,'Damage costs'!$C$16:$C$43,0))/1000,BH57*INDEX('Damage costs'!$AA$16:$AA$43,MATCH($B108,'Damage costs'!$C$16:$C$43,0))/1000),\"\")","v":""},{"$f":"IFERROR(IF(OR($C$110=FALSE,LEFT($B108,3)<>\"NOX\"),BI57*INDEX('Damage costs'!$W$16:$W$43,MATCH($B108,'Damage costs'!$C$16:$C$43,0))/1000,BI57*INDEX('Damage costs'!$AA$16:$AA$43,MATCH($B108,'Damage costs'!$C$16:$C$43,0))/1000),\"\")","v":""},{"$f":"IFERROR(IF(OR($C$110=FALSE,LEFT($B108,3)<>\"NOX\"),BJ57*INDEX('Damage costs'!$W$16:$W$43,MATCH($B108,'Damage costs'!$C$16:$C$43,0))/1000,BJ57*INDEX('Damage costs'!$AA$16:$AA$43,MATCH($B108,'Damage costs'!$C$16:$C$43,0))/1000),\"\")","v":""},{"$f":"IFERROR(IF(OR($C$110=FALSE,LEFT($B108,3)<>\"NOX\"),BK57*INDEX('Damage costs'!$W$16:$W$43,MATCH($B108,'Damage costs'!$C$16:$C$43,0))/1000,BK57*INDEX('Damage costs'!$AA$16:$AA$43,MATCH($B108,'Damage costs'!$C$16:$C$43,0))/1000),\"\")","v":""},{"$f":"IFERROR(IF(OR($C$110=FALSE,LEFT($B108,3)<>\"NOX\"),BL57*INDEX('Damage costs'!$W$16:$W$43,MATCH($B108,'Damage costs'!$C$16:$C$43,0))/1000,BL57*INDEX('Damage costs'!$AA$16:$AA$43,MATCH($B108,'Damage costs'!$C$16:$C$43,0))/1000),\"\")","v":""},{"$f":"IFERROR(IF(OR($C$110=FALSE,LEFT($B108,3)<>\"NOX\"),BM57*INDEX('Damage costs'!$W$16:$W$43,MATCH($B108,'Damage costs'!$C$16:$C$43,0))/1000,BM57*INDEX('Damage costs'!$AA$16:$AA$43,MATCH($B108,'Damage costs'!$C$16:$C$43,0))/1000),\"\")","v":""},{"$f":"IFERROR(IF(OR($C$110=FALSE,LEFT($B108,3)<>\"NOX\"),BN57*INDEX('Damage costs'!$W$16:$W$43,MATCH($B108,'Damage costs'!$C$16:$C$43,0))/1000,BN57*INDEX('Damage costs'!$AA$16:$AA$43,MATCH($B108,'Damage costs'!$C$16:$C$43,0))/1000),\"\")","v":""},{"$f":"IFERROR(IF(OR($C$110=FALSE,LEFT($B108,3)<>\"NOX\"),BO57*INDEX('Damage costs'!$W$16:$W$43,MATCH($B108,'Damage costs'!$C$16:$C$43,0))/1000,BO57*INDEX('Damage costs'!$AA$16:$AA$43,MATCH($B108,'Damage costs'!$C$16:$C$43,0))/1000),\"\")","v":""},{"$f":"IFERROR(IF(OR($C$110=FALSE,LEFT($B108,3)<>\"NOX\"),BP57*INDEX('Damage costs'!$W$16:$W$43,MATCH($B108,'Damage costs'!$C$16:$C$43,0))/1000,BP57*INDEX('Damage costs'!$AA$16:$AA$43,MATCH($B108,'Damage costs'!$C$16:$C$43,0))/1000),\"\")","v":""},{"$f":"IFERROR(IF(OR($C$110=FALSE,LEFT($B108,3)<>\"NOX\"),BQ57*INDEX('Damage costs'!$W$16:$W$43,MATCH($B108,'Damage costs'!$C$16:$C$43,0))/1000,BQ57*INDEX('Damage costs'!$AA$16:$AA$43,MATCH($B108,'Damage costs'!$C$16:$C$43,0))/1000),\"\")","v":""},{"$f":"IFERROR(IF(OR($C$110=FALSE,LEFT($B108,3)<>\"NOX\"),BR57*INDEX('Damage costs'!$W$16:$W$43,MATCH($B108,'Damage costs'!$C$16:$C$43,0))/1000,BR57*INDEX('Damage costs'!$AA$16:$AA$43,MATCH($B108,'Damage costs'!$C$16:$C$43,0))/1000),\"\")","v":""},{"$f":"IFERROR(IF(OR($C$110=FALSE,LEFT($B108,3)<>\"NOX\"),BS57*INDEX('Damage costs'!$W$16:$W$43,MATCH($B108,'Damage costs'!$C$16:$C$43,0))/1000,BS57*INDEX('Damage costs'!$AA$16:$AA$43,MATCH($B108,'Damage costs'!$C$16:$C$43,0))/1000),\"\")","v":""},{"$f":"IFERROR(IF(OR($C$110=FALSE,LEFT($B108,3)<>\"NOX\"),BT57*INDEX('Damage costs'!$W$16:$W$43,MATCH($B108,'Damage costs'!$C$16:$C$43,0))/1000,BT57*INDEX('Damage costs'!$AA$16:$AA$43,MATCH($B108,'Damage costs'!$C$16:$C$43,0))/1000),\"\")","v":""},{"$f":"IFERROR(IF(OR($C$110=FALSE,LEFT($B108,3)<>\"NOX\"),BU57*INDEX('Damage costs'!$W$16:$W$43,MATCH($B108,'Damage costs'!$C$16:$C$43,0))/1000,BU57*INDEX('Damage costs'!$AA$16:$AA$43,MATCH($B108,'Damage costs'!$C$16:$C$43,0))/1000),\"\")","v":""},{"$f":"IFERROR(IF(OR($C$110=FALSE,LEFT($B108,3)<>\"NOX\"),BV57*INDEX('Damage costs'!$W$16:$W$43,MATCH($B108,'Damage costs'!$C$16:$C$43,0))/1000,BV57*INDEX('Damage costs'!$AA$16:$AA$43,MATCH($B108,'Damage costs'!$C$16:$C$43,0))/1000),\"\")","v":""},{"$f":"IFERROR(IF(OR($C$110=FALSE,LEFT($B108,3)<>\"NOX\"),BW57*INDEX('Damage costs'!$W$16:$W$43,MATCH($B108,'Damage costs'!$C$16:$C$43,0))/1000,BW57*INDEX('Damage costs'!$AA$16:$AA$43,MATCH($B108,'Damage costs'!$C$16:$C$43,0))/1000),\"\")","v":""},{"$f":"IFERROR(IF(OR($C$110=FALSE,LEFT($B108,3)<>\"NOX\"),BX57*INDEX('Damage costs'!$W$16:$W$43,MATCH($B108,'Damage costs'!$C$16:$C$43,0))/1000,BX57*INDEX('Damage costs'!$AA$16:$AA$43,MATCH($B108,'Damage costs'!$C$16:$C$43,0))/1000),\"\")","v":""},{"$f":"IFERROR(IF(OR($C$110=FALSE,LEFT($B108,3)<>\"NOX\"),BY57*INDEX('Damage costs'!$W$16:$W$43,MATCH($B108,'Damage costs'!$C$16:$C$43,0))/1000,BY57*INDEX('Damage costs'!$AA$16:$AA$43,MATCH($B108,'Damage costs'!$C$16:$C$43,0))/1000),\"\")","v":""},{"$f":"IFERROR(IF(OR($C$110=FALSE,LEFT($B108,3)<>\"NOX\"),BZ57*INDEX('Damage costs'!$W$16:$W$43,MATCH($B108,'Damage costs'!$C$16:$C$43,0))/1000,BZ57*INDEX('Damage costs'!$AA$16:$AA$43,MATCH($B108,'Damage costs'!$C$16:$C$43,0))/1000),\"\")","v":""},{"$f":"IFERROR(IF(OR($C$110=FALSE,LEFT($B108,3)<>\"NOX\"),CA57*INDEX('Damage costs'!$W$16:$W$43,MATCH($B108,'Damage costs'!$C$16:$C$43,0))/1000,CA57*INDEX('Damage costs'!$AA$16:$AA$43,MATCH($B108,'Damage costs'!$C$16:$C$43,0))/1000),\"\")","v":""},{"$f":"IFERROR(IF(OR($C$110=FALSE,LEFT($B108,3)<>\"NOX\"),CB57*INDEX('Damage costs'!$W$16:$W$43,MATCH($B108,'Damage costs'!$C$16:$C$43,0))/1000,CB57*INDEX('Damage costs'!$AA$16:$AA$43,MATCH($B108,'Damage costs'!$C$16:$C$43,0))/1000),\"\")","v":""},{"$f":"IFERROR(IF(OR($C$110=FALSE,LEFT($B108,3)<>\"NOX\"),CC57*INDEX('Damage costs'!$W$16:$W$43,MATCH($B108,'Damage costs'!$C$16:$C$43,0))/1000,CC57*INDEX('Damage costs'!$AA$16:$AA$43,MATCH($B108,'Damage costs'!$C$16:$C$43,0))/1000),\"\")","v":""},{"$f":"IFERROR(IF(OR($C$110=FALSE,LEFT($B108,3)<>\"NOX\"),CD57*INDEX('Damage costs'!$W$16:$W$43,MATCH($B108,'Damage costs'!$C$16:$C$43,0))/1000,CD57*INDEX('Damage costs'!$AA$16:$AA$43,MATCH($B108,'Damage costs'!$C$16:$C$43,0))/1000),\"\")","v":""},{"$f":"IFERROR(IF(OR($C$110=FALSE,LEFT($B108,3)<>\"NOX\"),CE57*INDEX('Damage costs'!$W$16:$W$43,MATCH($B108,'Damage costs'!$C$16:$C$43,0))/1000,CE57*INDEX('Damage costs'!$AA$16:$AA$43,MATCH($B108,'Damage costs'!$C$16:$C$43,0))/1000),\"\")","v":""},{"$f":"IFERROR(IF(OR($C$110=FALSE,LEFT($B108,3)<>\"NOX\"),CF57*INDEX('Damage costs'!$W$16:$W$43,MATCH($B108,'Damage costs'!$C$16:$C$43,0))/1000,CF57*INDEX('Damage costs'!$AA$16:$AA$43,MATCH($B108,'Damage costs'!$C$16:$C$43,0))/1000),\"\")","v":""},{"$f":"IFERROR(IF(OR($C$110=FALSE,LEFT($B108,3)<>\"NOX\"),CG57*INDEX('Damage costs'!$W$16:$W$43,MATCH($B108,'Damage costs'!$C$16:$C$43,0))/1000,CG57*INDEX('Damage costs'!$AA$16:$AA$43,MATCH($B108,'Damage costs'!$C$16:$C$43,0))/1000),\"\")","v":""},{"$f":"IFERROR(IF(OR($C$110=FALSE,LEFT($B108,3)<>\"NOX\"),CH57*INDEX('Damage costs'!$W$16:$W$43,MATCH($B108,'Damage costs'!$C$16:$C$43,0))/1000,CH57*INDEX('Damage costs'!$AA$16:$AA$43,MATCH($B108,'Damage costs'!$C$16:$C$43,0))/1000),\"\")","v":""},{"$f":"IFERROR(IF(OR($C$110=FALSE,LEFT($B108,3)<>\"NOX\"),CI57*INDEX('Damage costs'!$W$16:$W$43,MATCH($B108,'Damage costs'!$C$16:$C$43,0))/1000,CI57*INDEX('Damage costs'!$AA$16:$AA$43,MATCH($B108,'Damage costs'!$C$16:$C$43,0))/1000),\"\")","v":""},{"$f":"IFERROR(IF(OR($C$110=FALSE,LEFT($B108,3)<>\"NOX\"),CJ57*INDEX('Damage costs'!$W$16:$W$43,MATCH($B108,'Damage costs'!$C$16:$C$43,0))/1000,CJ57*INDEX('Damage costs'!$AA$16:$AA$43,MATCH($B108,'Damage costs'!$C$16:$C$43,0))/1000),\"\")","v":""},{"$f":"IFERROR(IF(OR($C$110=FALSE,LEFT($B108,3)<>\"NOX\"),CK57*INDEX('Damage costs'!$W$16:$W$43,MATCH($B108,'Damage costs'!$C$16:$C$43,0))/1000,CK57*INDEX('Damage costs'!$AA$16:$AA$43,MATCH($B108,'Damage costs'!$C$16:$C$43,0))/1000),\"\")","v":""},{"$f":"IFERROR(IF(OR($C$110=FALSE,LEFT($B108,3)<>\"NOX\"),CL57*INDEX('Damage costs'!$W$16:$W$43,MATCH($B108,'Damage costs'!$C$16:$C$43,0))/1000,CL57*INDEX('Damage costs'!$AA$16:$AA$43,MATCH($B108,'Damage costs'!$C$16:$C$43,0))/1000),\"\")","v":""},{"$f":"IFERROR(IF(OR($C$110=FALSE,LEFT($B108,3)<>\"NOX\"),CM57*INDEX('Damage costs'!$W$16:$W$43,MATCH($B108,'Damage costs'!$C$16:$C$43,0))/1000,CM57*INDEX('Damage costs'!$AA$16:$AA$43,MATCH($B108,'Damage costs'!$C$16:$C$43,0))/1000),\"\")","v":""},{"$f":"IFERROR(IF(OR($C$110=FALSE,LEFT($B108,3)<>\"NOX\"),CN57*INDEX('Damage costs'!$W$16:$W$43,MATCH($B108,'Damage costs'!$C$16:$C$43,0))/1000,CN57*INDEX('Damage costs'!$AA$16:$AA$43,MATCH($B108,'Damage costs'!$C$16:$C$43,0))/1000),\"\")","v":""},{"$f":"IFERROR(IF(OR($C$110=FALSE,LEFT($B108,3)<>\"NOX\"),CO57*INDEX('Damage costs'!$W$16:$W$43,MATCH($B108,'Damage costs'!$C$16:$C$43,0))/1000,CO57*INDEX('Damage costs'!$AA$16:$AA$43,MATCH($B108,'Damage costs'!$C$16:$C$43,0))/1000),\"\")","v":""},{"$f":"IFERROR(IF(OR($C$110=FALSE,LEFT($B108,3)<>\"NOX\"),CP57*INDEX('Damage costs'!$W$16:$W$43,MATCH($B108,'Damage costs'!$C$16:$C$43,0))/1000,CP57*INDEX('Damage costs'!$AA$16:$AA$43,MATCH($B108,'Damage costs'!$C$16:$C$43,0))/1000),\"\")","v":""},{"$f":"IFERROR(IF(OR($C$110=FALSE,LEFT($B108,3)<>\"NOX\"),CQ57*INDEX('Damage costs'!$W$16:$W$43,MATCH($B108,'Damage costs'!$C$16:$C$43,0))/1000,CQ57*INDEX('Damage costs'!$AA$16:$AA$43,MATCH($B108,'Damage costs'!$C$16:$C$43,0))/1000),\"\")","v":""},{"$f":"IFERROR(IF(OR($C$110=FALSE,LEFT($B108,3)<>\"NOX\"),CR57*INDEX('Damage costs'!$W$16:$W$43,MATCH($B108,'Damage costs'!$C$16:$C$43,0))/1000,CR57*INDEX('Damage costs'!$AA$16:$AA$43,MATCH($B108,'Damage costs'!$C$16:$C$43,0))/1000),\"\")","v":""},{"$f":"IFERROR(IF(OR($C$110=FALSE,LEFT($B108,3)<>\"NOX\"),CS57*INDEX('Damage costs'!$W$16:$W$43,MATCH($B108,'Damage costs'!$C$16:$C$43,0))/1000,CS57*INDEX('Damage costs'!$AA$16:$AA$43,MATCH($B108,'Damage costs'!$C$16:$C$43,0))/1000),\"\")","v":""},{"$f":"IFERROR(IF(OR($C$110=FALSE,LEFT($B108,3)<>\"NOX\"),CT57*INDEX('Damage costs'!$W$16:$W$43,MATCH($B108,'Damage costs'!$C$16:$C$43,0))/1000,CT57*INDEX('Damage costs'!$AA$16:$AA$43,MATCH($B108,'Damage costs'!$C$16:$C$43,0))/1000),\"\")","v":""},{"$f":"IFERROR(IF(OR($C$110=FALSE,LEFT($B108,3)<>\"NOX\"),CU57*INDEX('Damage costs'!$W$16:$W$43,MATCH($B108,'Damage costs'!$C$16:$C$43,0))/1000,CU57*INDEX('Damage costs'!$AA$16:$AA$43,MATCH($B108,'Damage costs'!$C$16:$C$43,0))/1000),\"\")","v":""},{"$f":"IFERROR(IF(OR($C$110=FALSE,LEFT($B108,3)<>\"NOX\"),CV57*INDEX('Damage costs'!$W$16:$W$43,MATCH($B108,'Damage costs'!$C$16:$C$43,0))/1000,CV57*INDEX('Damage costs'!$AA$16:$AA$43,MATCH($B108,'Damage costs'!$C$16:$C$43,0))/1000),\"\")","v":""},{"$f":"IFERROR(IF(OR($C$110=FALSE,LEFT($B108,3)<>\"NOX\"),CW57*INDEX('Damage costs'!$W$16:$W$43,MATCH($B108,'Damage costs'!$C$16:$C$43,0))/1000,CW57*INDEX('Damage costs'!$AA$16:$AA$43,MATCH($B108,'Damage costs'!$C$16:$C$43,0))/1000),\"\")","v":""},{"$f":"IFERROR(IF(OR($C$110=FALSE,LEFT($B108,3)<>\"NOX\"),CX57*INDEX('Damage costs'!$W$16:$W$43,MATCH($B108,'Damage costs'!$C$16:$C$43,0))/1000,CX57*INDEX('Damage costs'!$AA$16:$AA$43,MATCH($B108,'Damage costs'!$C$16:$C$43,0))/1000),\"\")","v":""},{"$f":"IFERROR(IF(OR($C$110=FALSE,LEFT($B108,3)<>\"NOX\"),CY57*INDEX('Damage costs'!$W$16:$W$43,MATCH($B108,'Damage costs'!$C$16:$C$43,0))/1000,CY57*INDEX('Damage costs'!$AA$16:$AA$43,MATCH($B108,'Damage costs'!$C$16:$C$43,0))/1000),\"\")","v":""}]
[null,0,"£000's",{"$f":"IFERROR(IF(OR($C$110=FALSE,LEFT($B109,3)<>\"NOX\"),D58*INDEX('Damage costs'!$W$16:$W$43,MATCH($B109,'Damage costs'!$C$16:$C$43,0))/1000,D58*INDEX('Damage costs'!$AA$16:$AA$43,MATCH($B109,'Damage costs'!$C$16:$C$43,0))/1000),\"\")","v":""},{"$f":"IFERROR(IF(OR($C$110=FALSE,LEFT($B109,3)<>\"NOX\"),E58*INDEX('Damage costs'!$W$16:$W$43,MATCH($B109,'Damage costs'!$C$16:$C$43,0))/1000,E58*INDEX('Damage costs'!$AA$16:$AA$43,MATCH($B109,'Damage costs'!$C$16:$C$43,0))/1000),\"\")","v":""},{"$f":"IFERROR(IF(OR($C$110=FALSE,LEFT($B109,3)<>\"NOX\"),F58*INDEX('Damage costs'!$W$16:$W$43,MATCH($B109,'Damage costs'!$C$16:$C$43,0))/1000,F58*INDEX('Damage costs'!$AA$16:$AA$43,MATCH($B109,'Damage costs'!$C$16:$C$43,0))/1000),\"\")","v":""},{"$f":"IFERROR(IF(OR($C$110=FALSE,LEFT($B109,3)<>\"NOX\"),G58*INDEX('Damage costs'!$W$16:$W$43,MATCH($B109,'Damage costs'!$C$16:$C$43,0))/1000,G58*INDEX('Damage costs'!$AA$16:$AA$43,MATCH($B109,'Damage costs'!$C$16:$C$43,0))/1000),\"\")","v":""},{"$f":"IFERROR(IF(OR($C$110=FALSE,LEFT($B109,3)<>\"NOX\"),H58*INDEX('Damage costs'!$W$16:$W$43,MATCH($B109,'Damage costs'!$C$16:$C$43,0))/1000,H58*INDEX('Damage costs'!$AA$16:$AA$43,MATCH($B109,'Damage costs'!$C$16:$C$43,0))/1000),\"\")","v":""},{"$f":"IFERROR(IF(OR($C$110=FALSE,LEFT($B109,3)<>\"NOX\"),I58*INDEX('Damage costs'!$W$16:$W$43,MATCH($B109,'Damage costs'!$C$16:$C$43,0))/1000,I58*INDEX('Damage costs'!$AA$16:$AA$43,MATCH($B109,'Damage costs'!$C$16:$C$43,0))/1000),\"\")","v":""},{"$f":"IFERROR(IF(OR($C$110=FALSE,LEFT($B109,3)<>\"NOX\"),J58*INDEX('Damage costs'!$W$16:$W$43,MATCH($B109,'Damage costs'!$C$16:$C$43,0))/1000,J58*INDEX('Damage costs'!$AA$16:$AA$43,MATCH($B109,'Damage costs'!$C$16:$C$43,0))/1000),\"\")","v":""},{"$f":"IFERROR(IF(OR($C$110=FALSE,LEFT($B109,3)<>\"NOX\"),K58*INDEX('Damage costs'!$W$16:$W$43,MATCH($B109,'Damage costs'!$C$16:$C$43,0))/1000,K58*INDEX('Damage costs'!$AA$16:$AA$43,MATCH($B109,'Damage costs'!$C$16:$C$43,0))/1000),\"\")","v":""},{"$f":"IFERROR(IF(OR($C$110=FALSE,LEFT($B109,3)<>\"NOX\"),L58*INDEX('Damage costs'!$W$16:$W$43,MATCH($B109,'Damage costs'!$C$16:$C$43,0))/1000,L58*INDEX('Damage costs'!$AA$16:$AA$43,MATCH($B109,'Damage costs'!$C$16:$C$43,0))/1000),\"\")","v":""},{"$f":"IFERROR(IF(OR($C$110=FALSE,LEFT($B109,3)<>\"NOX\"),M58*INDEX('Damage costs'!$W$16:$W$43,MATCH($B109,'Damage costs'!$C$16:$C$43,0))/1000,M58*INDEX('Damage costs'!$AA$16:$AA$43,MATCH($B109,'Damage costs'!$C$16:$C$43,0))/1000),\"\")","v":""},{"$f":"IFERROR(IF(OR($C$110=FALSE,LEFT($B109,3)<>\"NOX\"),N58*INDEX('Damage costs'!$W$16:$W$43,MATCH($B109,'Damage costs'!$C$16:$C$43,0))/1000,N58*INDEX('Damage costs'!$AA$16:$AA$43,MATCH($B109,'Damage costs'!$C$16:$C$43,0))/1000),\"\")","v":""},{"$f":"IFERROR(IF(OR($C$110=FALSE,LEFT($B109,3)<>\"NOX\"),O58*INDEX('Damage costs'!$W$16:$W$43,MATCH($B109,'Damage costs'!$C$16:$C$43,0))/1000,O58*INDEX('Damage costs'!$AA$16:$AA$43,MATCH($B109,'Damage costs'!$C$16:$C$43,0))/1000),\"\")","v":""},{"$f":"IFERROR(IF(OR($C$110=FALSE,LEFT($B109,3)<>\"NOX\"),P58*INDEX('Damage costs'!$W$16:$W$43,MATCH($B109,'Damage costs'!$C$16:$C$43,0))/1000,P58*INDEX('Damage costs'!$AA$16:$AA$43,MATCH($B109,'Damage costs'!$C$16:$C$43,0))/1000),\"\")","v":""},{"$f":"IFERROR(IF(OR($C$110=FALSE,LEFT($B109,3)<>\"NOX\"),Q58*INDEX('Damage costs'!$W$16:$W$43,MATCH($B109,'Damage costs'!$C$16:$C$43,0))/1000,Q58*INDEX('Damage costs'!$AA$16:$AA$43,MATCH($B109,'Damage costs'!$C$16:$C$43,0))/1000),\"\")","v":""},{"$f":"IFERROR(IF(OR($C$110=FALSE,LEFT($B109,3)<>\"NOX\"),R58*INDEX('Damage costs'!$W$16:$W$43,MATCH($B109,'Damage costs'!$C$16:$C$43,0))/1000,R58*INDEX('Damage costs'!$AA$16:$AA$43,MATCH($B109,'Damage costs'!$C$16:$C$43,0))/1000),\"\")","v":""},{"$f":"IFERROR(IF(OR($C$110=FALSE,LEFT($B109,3)<>\"NOX\"),S58*INDEX('Damage costs'!$W$16:$W$43,MATCH($B109,'Damage costs'!$C$16:$C$43,0))/1000,S58*INDEX('Damage costs'!$AA$16:$AA$43,MATCH($B109,'Damage costs'!$C$16:$C$43,0))/1000),\"\")","v":""},{"$f":"IFERROR(IF(OR($C$110=FALSE,LEFT($B109,3)<>\"NOX\"),T58*INDEX('Damage costs'!$W$16:$W$43,MATCH($B109,'Damage costs'!$C$16:$C$43,0))/1000,T58*INDEX('Damage costs'!$AA$16:$AA$43,MATCH($B109,'Damage costs'!$C$16:$C$43,0))/1000),\"\")","v":""},{"$f":"IFERROR(IF(OR($C$110=FALSE,LEFT($B109,3)<>\"NOX\"),U58*INDEX('Damage costs'!$W$16:$W$43,MATCH($B109,'Damage costs'!$C$16:$C$43,0))/1000,U58*INDEX('Damage costs'!$AA$16:$AA$43,MATCH($B109,'Damage costs'!$C$16:$C$43,0))/1000),\"\")","v":""},{"$f":"IFERROR(IF(OR($C$110=FALSE,LEFT($B109,3)<>\"NOX\"),V58*INDEX('Damage costs'!$W$16:$W$43,MATCH($B109,'Damage costs'!$C$16:$C$43,0))/1000,V58*INDEX('Damage costs'!$AA$16:$AA$43,MATCH($B109,'Damage costs'!$C$16:$C$43,0))/1000),\"\")","v":""},{"$f":"IFERROR(IF(OR($C$110=FALSE,LEFT($B109,3)<>\"NOX\"),W58*INDEX('Damage costs'!$W$16:$W$43,MATCH($B109,'Damage costs'!$C$16:$C$43,0))/1000,W58*INDEX('Damage costs'!$AA$16:$AA$43,MATCH($B109,'Damage costs'!$C$16:$C$43,0))/1000),\"\")","v":""},{"$f":"IFERROR(IF(OR($C$110=FALSE,LEFT($B109,3)<>\"NOX\"),X58*INDEX('Damage costs'!$W$16:$W$43,MATCH($B109,'Damage costs'!$C$16:$C$43,0))/1000,X58*INDEX('Damage costs'!$AA$16:$AA$43,MATCH($B109,'Damage costs'!$C$16:$C$43,0))/1000),\"\")","v":""},{"$f":"IFERROR(IF(OR($C$110=FALSE,LEFT($B109,3)<>\"NOX\"),Y58*INDEX('Damage costs'!$W$16:$W$43,MATCH($B109,'Damage costs'!$C$16:$C$43,0))/1000,Y58*INDEX('Damage costs'!$AA$16:$AA$43,MATCH($B109,'Damage costs'!$C$16:$C$43,0))/1000),\"\")","v":""},{"$f":"IFERROR(IF(OR($C$110=FALSE,LEFT($B109,3)<>\"NOX\"),Z58*INDEX('Damage costs'!$W$16:$W$43,MATCH($B109,'Damage costs'!$C$16:$C$43,0))/1000,Z58*INDEX('Damage costs'!$AA$16:$AA$43,MATCH($B109,'Damage costs'!$C$16:$C$43,0))/1000),\"\")","v":""},{"$f":"IFERROR(IF(OR($C$110=FALSE,LEFT($B109,3)<>\"NOX\"),AA58*INDEX('Damage costs'!$W$16:$W$43,MATCH($B109,'Damage costs'!$C$16:$C$43,0))/1000,AA58*INDEX('Damage costs'!$AA$16:$AA$43,MATCH($B109,'Damage costs'!$C$16:$C$43,0))/1000),\"\")","v":""},{"$f":"IFERROR(IF(OR($C$110=FALSE,LEFT($B109,3)<>\"NOX\"),AB58*INDEX('Damage costs'!$W$16:$W$43,MATCH($B109,'Damage costs'!$C$16:$C$43,0))/1000,AB58*INDEX('Damage costs'!$AA$16:$AA$43,MATCH($B109,'Damage costs'!$C$16:$C$43,0))/1000),\"\")","v":""},{"$f":"IFERROR(IF(OR($C$110=FALSE,LEFT($B109,3)<>\"NOX\"),AC58*INDEX('Damage costs'!$W$16:$W$43,MATCH($B109,'Damage costs'!$C$16:$C$43,0))/1000,AC58*INDEX('Damage costs'!$AA$16:$AA$43,MATCH($B109,'Damage costs'!$C$16:$C$43,0))/1000),\"\")","v":""},{"$f":"IFERROR(IF(OR($C$110=FALSE,LEFT($B109,3)<>\"NOX\"),AD58*INDEX('Damage costs'!$W$16:$W$43,MATCH($B109,'Damage costs'!$C$16:$C$43,0))/1000,AD58*INDEX('Damage costs'!$AA$16:$AA$43,MATCH($B109,'Damage costs'!$C$16:$C$43,0))/1000),\"\")","v":""},{"$f":"IFERROR(IF(OR($C$110=FALSE,LEFT($B109,3)<>\"NOX\"),AE58*INDEX('Damage costs'!$W$16:$W$43,MATCH($B109,'Damage costs'!$C$16:$C$43,0))/1000,AE58*INDEX('Damage costs'!$AA$16:$AA$43,MATCH($B109,'Damage costs'!$C$16:$C$43,0))/1000),\"\")","v":""},{"$f":"IFERROR(IF(OR($C$110=FALSE,LEFT($B109,3)<>\"NOX\"),AF58*INDEX('Damage costs'!$W$16:$W$43,MATCH($B109,'Damage costs'!$C$16:$C$43,0))/1000,AF58*INDEX('Damage costs'!$AA$16:$AA$43,MATCH($B109,'Damage costs'!$C$16:$C$43,0))/1000),\"\")","v":""},{"$f":"IFERROR(IF(OR($C$110=FALSE,LEFT($B109,3)<>\"NOX\"),AG58*INDEX('Damage costs'!$W$16:$W$43,MATCH($B109,'Damage costs'!$C$16:$C$43,0))/1000,AG58*INDEX('Damage costs'!$AA$16:$AA$43,MATCH($B109,'Damage costs'!$C$16:$C$43,0))/1000),\"\")","v":""},{"$f":"IFERROR(IF(OR($C$110=FALSE,LEFT($B109,3)<>\"NOX\"),AH58*INDEX('Damage costs'!$W$16:$W$43,MATCH($B109,'Damage costs'!$C$16:$C$43,0))/1000,AH58*INDEX('Damage costs'!$AA$16:$AA$43,MATCH($B109,'Damage costs'!$C$16:$C$43,0))/1000),\"\")","v":""},{"$f":"IFERROR(IF(OR($C$110=FALSE,LEFT($B109,3)<>\"NOX\"),AI58*INDEX('Damage costs'!$W$16:$W$43,MATCH($B109,'Damage costs'!$C$16:$C$43,0))/1000,AI58*INDEX('Damage costs'!$AA$16:$AA$43,MATCH($B109,'Damage costs'!$C$16:$C$43,0))/1000),\"\")","v":""},{"$f":"IFERROR(IF(OR($C$110=FALSE,LEFT($B109,3)<>\"NOX\"),AJ58*INDEX('Damage costs'!$W$16:$W$43,MATCH($B109,'Damage costs'!$C$16:$C$43,0))/1000,AJ58*INDEX('Damage costs'!$AA$16:$AA$43,MATCH($B109,'Damage costs'!$C$16:$C$43,0))/1000),\"\")","v":""},{"$f":"IFERROR(IF(OR($C$110=FALSE,LEFT($B109,3)<>\"NOX\"),AK58*INDEX('Damage costs'!$W$16:$W$43,MATCH($B109,'Damage costs'!$C$16:$C$43,0))/1000,AK58*INDEX('Damage costs'!$AA$16:$AA$43,MATCH($B109,'Damage costs'!$C$16:$C$43,0))/1000),\"\")","v":""},{"$f":"IFERROR(IF(OR($C$110=FALSE,LEFT($B109,3)<>\"NOX\"),AL58*INDEX('Damage costs'!$W$16:$W$43,MATCH($B109,'Damage costs'!$C$16:$C$43,0))/1000,AL58*INDEX('Damage costs'!$AA$16:$AA$43,MATCH($B109,'Damage costs'!$C$16:$C$43,0))/1000),\"\")","v":""},{"$f":"IFERROR(IF(OR($C$110=FALSE,LEFT($B109,3)<>\"NOX\"),AM58*INDEX('Damage costs'!$W$16:$W$43,MATCH($B109,'Damage costs'!$C$16:$C$43,0))/1000,AM58*INDEX('Damage costs'!$AA$16:$AA$43,MATCH($B109,'Damage costs'!$C$16:$C$43,0))/1000),\"\")","v":""},{"$f":"IFERROR(IF(OR($C$110=FALSE,LEFT($B109,3)<>\"NOX\"),AN58*INDEX('Damage costs'!$W$16:$W$43,MATCH($B109,'Damage costs'!$C$16:$C$43,0))/1000,AN58*INDEX('Damage costs'!$AA$16:$AA$43,MATCH($B109,'Damage costs'!$C$16:$C$43,0))/1000),\"\")","v":""},{"$f":"IFERROR(IF(OR($C$110=FALSE,LEFT($B109,3)<>\"NOX\"),AO58*INDEX('Damage costs'!$W$16:$W$43,MATCH($B109,'Damage costs'!$C$16:$C$43,0))/1000,AO58*INDEX('Damage costs'!$AA$16:$AA$43,MATCH($B109,'Damage costs'!$C$16:$C$43,0))/1000),\"\")","v":""},{"$f":"IFERROR(IF(OR($C$110=FALSE,LEFT($B109,3)<>\"NOX\"),AP58*INDEX('Damage costs'!$W$16:$W$43,MATCH($B109,'Damage costs'!$C$16:$C$43,0))/1000,AP58*INDEX('Damage costs'!$AA$16:$AA$43,MATCH($B109,'Damage costs'!$C$16:$C$43,0))/1000),\"\")","v":""},{"$f":"IFERROR(IF(OR($C$110=FALSE,LEFT($B109,3)<>\"NOX\"),AQ58*INDEX('Damage costs'!$W$16:$W$43,MATCH($B109,'Damage costs'!$C$16:$C$43,0))/1000,AQ58*INDEX('Damage costs'!$AA$16:$AA$43,MATCH($B109,'Damage costs'!$C$16:$C$43,0))/1000),\"\")","v":""},{"$f":"IFERROR(IF(OR($C$110=FALSE,LEFT($B109,3)<>\"NOX\"),AR58*INDEX('Damage costs'!$W$16:$W$43,MATCH($B109,'Damage costs'!$C$16:$C$43,0))/1000,AR58*INDEX('Damage costs'!$AA$16:$AA$43,MATCH($B109,'Damage costs'!$C$16:$C$43,0))/1000),\"\")","v":""},{"$f":"IFERROR(IF(OR($C$110=FALSE,LEFT($B109,3)<>\"NOX\"),AS58*INDEX('Damage costs'!$W$16:$W$43,MATCH($B109,'Damage costs'!$C$16:$C$43,0))/1000,AS58*INDEX('Damage costs'!$AA$16:$AA$43,MATCH($B109,'Damage costs'!$C$16:$C$43,0))/1000),\"\")","v":""},{"$f":"IFERROR(IF(OR($C$110=FALSE,LEFT($B109,3)<>\"NOX\"),AT58*INDEX('Damage costs'!$W$16:$W$43,MATCH($B109,'Damage costs'!$C$16:$C$43,0))/1000,AT58*INDEX('Damage costs'!$AA$16:$AA$43,MATCH($B109,'Damage costs'!$C$16:$C$43,0))/1000),\"\")","v":""},{"$f":"IFERROR(IF(OR($C$110=FALSE,LEFT($B109,3)<>\"NOX\"),AU58*INDEX('Damage costs'!$W$16:$W$43,MATCH($B109,'Damage costs'!$C$16:$C$43,0))/1000,AU58*INDEX('Damage costs'!$AA$16:$AA$43,MATCH($B109,'Damage costs'!$C$16:$C$43,0))/1000),\"\")","v":""},{"$f":"IFERROR(IF(OR($C$110=FALSE,LEFT($B109,3)<>\"NOX\"),AV58*INDEX('Damage costs'!$W$16:$W$43,MATCH($B109,'Damage costs'!$C$16:$C$43,0))/1000,AV58*INDEX('Damage costs'!$AA$16:$AA$43,MATCH($B109,'Damage costs'!$C$16:$C$43,0))/1000),\"\")","v":""},{"$f":"IFERROR(IF(OR($C$110=FALSE,LEFT($B109,3)<>\"NOX\"),AW58*INDEX('Damage costs'!$W$16:$W$43,MATCH($B109,'Damage costs'!$C$16:$C$43,0))/1000,AW58*INDEX('Damage costs'!$AA$16:$AA$43,MATCH($B109,'Damage costs'!$C$16:$C$43,0))/1000),\"\")","v":""},{"$f":"IFERROR(IF(OR($C$110=FALSE,LEFT($B109,3)<>\"NOX\"),AX58*INDEX('Damage costs'!$W$16:$W$43,MATCH($B109,'Damage costs'!$C$16:$C$43,0))/1000,AX58*INDEX('Damage costs'!$AA$16:$AA$43,MATCH($B109,'Damage costs'!$C$16:$C$43,0))/1000),\"\")","v":""},{"$f":"IFERROR(IF(OR($C$110=FALSE,LEFT($B109,3)<>\"NOX\"),AY58*INDEX('Damage costs'!$W$16:$W$43,MATCH($B109,'Damage costs'!$C$16:$C$43,0))/1000,AY58*INDEX('Damage costs'!$AA$16:$AA$43,MATCH($B109,'Damage costs'!$C$16:$C$43,0))/1000),\"\")","v":""},{"$f":"IFERROR(IF(OR($C$110=FALSE,LEFT($B109,3)<>\"NOX\"),AZ58*INDEX('Damage costs'!$W$16:$W$43,MATCH($B109,'Damage costs'!$C$16:$C$43,0))/1000,AZ58*INDEX('Damage costs'!$AA$16:$AA$43,MATCH($B109,'Damage costs'!$C$16:$C$43,0))/1000),\"\")","v":""},{"$f":"IFERROR(IF(OR($C$110=FALSE,LEFT($B109,3)<>\"NOX\"),BA58*INDEX('Damage costs'!$W$16:$W$43,MATCH($B109,'Damage costs'!$C$16:$C$43,0))/1000,BA58*INDEX('Damage costs'!$AA$16:$AA$43,MATCH($B109,'Damage costs'!$C$16:$C$43,0))/1000),\"\")","v":""},{"$f":"IFERROR(IF(OR($C$110=FALSE,LEFT($B109,3)<>\"NOX\"),BB58*INDEX('Damage costs'!$W$16:$W$43,MATCH($B109,'Damage costs'!$C$16:$C$43,0))/1000,BB58*INDEX('Damage costs'!$AA$16:$AA$43,MATCH($B109,'Damage costs'!$C$16:$C$43,0))/1000),\"\")","v":""},{"$f":"IFERROR(IF(OR($C$110=FALSE,LEFT($B109,3)<>\"NOX\"),BC58*INDEX('Damage costs'!$W$16:$W$43,MATCH($B109,'Damage costs'!$C$16:$C$43,0))/1000,BC58*INDEX('Damage costs'!$AA$16:$AA$43,MATCH($B109,'Damage costs'!$C$16:$C$43,0))/1000),\"\")","v":""},{"$f":"IFERROR(IF(OR($C$110=FALSE,LEFT($B109,3)<>\"NOX\"),BD58*INDEX('Damage costs'!$W$16:$W$43,MATCH($B109,'Damage costs'!$C$16:$C$43,0))/1000,BD58*INDEX('Damage costs'!$AA$16:$AA$43,MATCH($B109,'Damage costs'!$C$16:$C$43,0))/1000),\"\")","v":""},{"$f":"IFERROR(IF(OR($C$110=FALSE,LEFT($B109,3)<>\"NOX\"),BE58*INDEX('Damage costs'!$W$16:$W$43,MATCH($B109,'Damage costs'!$C$16:$C$43,0))/1000,BE58*INDEX('Damage costs'!$AA$16:$AA$43,MATCH($B109,'Damage costs'!$C$16:$C$43,0))/1000),\"\")","v":""},{"$f":"IFERROR(IF(OR($C$110=FALSE,LEFT($B109,3)<>\"NOX\"),BF58*INDEX('Damage costs'!$W$16:$W$43,MATCH($B109,'Damage costs'!$C$16:$C$43,0))/1000,BF58*INDEX('Damage costs'!$AA$16:$AA$43,MATCH($B109,'Damage costs'!$C$16:$C$43,0))/1000),\"\")","v":""},{"$f":"IFERROR(IF(OR($C$110=FALSE,LEFT($B109,3)<>\"NOX\"),BG58*INDEX('Damage costs'!$W$16:$W$43,MATCH($B109,'Damage costs'!$C$16:$C$43,0))/1000,BG58*INDEX('Damage costs'!$AA$16:$AA$43,MATCH($B109,'Damage costs'!$C$16:$C$43,0))/1000),\"\")","v":""},{"$f":"IFERROR(IF(OR($C$110=FALSE,LEFT($B109,3)<>\"NOX\"),BH58*INDEX('Damage costs'!$W$16:$W$43,MATCH($B109,'Damage costs'!$C$16:$C$43,0))/1000,BH58*INDEX('Damage costs'!$AA$16:$AA$43,MATCH($B109,'Damage costs'!$C$16:$C$43,0))/1000),\"\")","v":""},{"$f":"IFERROR(IF(OR($C$110=FALSE,LEFT($B109,3)<>\"NOX\"),BI58*INDEX('Damage costs'!$W$16:$W$43,MATCH($B109,'Damage costs'!$C$16:$C$43,0))/1000,BI58*INDEX('Damage costs'!$AA$16:$AA$43,MATCH($B109,'Damage costs'!$C$16:$C$43,0))/1000),\"\")","v":""},{"$f":"IFERROR(IF(OR($C$110=FALSE,LEFT($B109,3)<>\"NOX\"),BJ58*INDEX('Damage costs'!$W$16:$W$43,MATCH($B109,'Damage costs'!$C$16:$C$43,0))/1000,BJ58*INDEX('Damage costs'!$AA$16:$AA$43,MATCH($B109,'Damage costs'!$C$16:$C$43,0))/1000),\"\")","v":""},{"$f":"IFERROR(IF(OR($C$110=FALSE,LEFT($B109,3)<>\"NOX\"),BK58*INDEX('Damage costs'!$W$16:$W$43,MATCH($B109,'Damage costs'!$C$16:$C$43,0))/1000,BK58*INDEX('Damage costs'!$AA$16:$AA$43,MATCH($B109,'Damage costs'!$C$16:$C$43,0))/1000),\"\")","v":""},{"$f":"IFERROR(IF(OR($C$110=FALSE,LEFT($B109,3)<>\"NOX\"),BL58*INDEX('Damage costs'!$W$16:$W$43,MATCH($B109,'Damage costs'!$C$16:$C$43,0))/1000,BL58*INDEX('Damage costs'!$AA$16:$AA$43,MATCH($B109,'Damage costs'!$C$16:$C$43,0))/1000),\"\")","v":""},{"$f":"IFERROR(IF(OR($C$110=FALSE,LEFT($B109,3)<>\"NOX\"),BM58*INDEX('Damage costs'!$W$16:$W$43,MATCH($B109,'Damage costs'!$C$16:$C$43,0))/1000,BM58*INDEX('Damage costs'!$AA$16:$AA$43,MATCH($B109,'Damage costs'!$C$16:$C$43,0))/1000),\"\")","v":""},{"$f":"IFERROR(IF(OR($C$110=FALSE,LEFT($B109,3)<>\"NOX\"),BN58*INDEX('Damage costs'!$W$16:$W$43,MATCH($B109,'Damage costs'!$C$16:$C$43,0))/1000,BN58*INDEX('Damage costs'!$AA$16:$AA$43,MATCH($B109,'Damage costs'!$C$16:$C$43,0))/1000),\"\")","v":""},{"$f":"IFERROR(IF(OR($C$110=FALSE,LEFT($B109,3)<>\"NOX\"),BO58*INDEX('Damage costs'!$W$16:$W$43,MATCH($B109,'Damage costs'!$C$16:$C$43,0))/1000,BO58*INDEX('Damage costs'!$AA$16:$AA$43,MATCH($B109,'Damage costs'!$C$16:$C$43,0))/1000),\"\")","v":""},{"$f":"IFERROR(IF(OR($C$110=FALSE,LEFT($B109,3)<>\"NOX\"),BP58*INDEX('Damage costs'!$W$16:$W$43,MATCH($B109,'Damage costs'!$C$16:$C$43,0))/1000,BP58*INDEX('Damage costs'!$AA$16:$AA$43,MATCH($B109,'Damage costs'!$C$16:$C$43,0))/1000),\"\")","v":""},{"$f":"IFERROR(IF(OR($C$110=FALSE,LEFT($B109,3)<>\"NOX\"),BQ58*INDEX('Damage costs'!$W$16:$W$43,MATCH($B109,'Damage costs'!$C$16:$C$43,0))/1000,BQ58*INDEX('Damage costs'!$AA$16:$AA$43,MATCH($B109,'Damage costs'!$C$16:$C$43,0))/1000),\"\")","v":""},{"$f":"IFERROR(IF(OR($C$110=FALSE,LEFT($B109,3)<>\"NOX\"),BR58*INDEX('Damage costs'!$W$16:$W$43,MATCH($B109,'Damage costs'!$C$16:$C$43,0))/1000,BR58*INDEX('Damage costs'!$AA$16:$AA$43,MATCH($B109,'Damage costs'!$C$16:$C$43,0))/1000),\"\")","v":""},{"$f":"IFERROR(IF(OR($C$110=FALSE,LEFT($B109,3)<>\"NOX\"),BS58*INDEX('Damage costs'!$W$16:$W$43,MATCH($B109,'Damage costs'!$C$16:$C$43,0))/1000,BS58*INDEX('Damage costs'!$AA$16:$AA$43,MATCH($B109,'Damage costs'!$C$16:$C$43,0))/1000),\"\")","v":""},{"$f":"IFERROR(IF(OR($C$110=FALSE,LEFT($B109,3)<>\"NOX\"),BT58*INDEX('Damage costs'!$W$16:$W$43,MATCH($B109,'Damage costs'!$C$16:$C$43,0))/1000,BT58*INDEX('Damage costs'!$AA$16:$AA$43,MATCH($B109,'Damage costs'!$C$16:$C$43,0))/1000),\"\")","v":""},{"$f":"IFERROR(IF(OR($C$110=FALSE,LEFT($B109,3)<>\"NOX\"),BU58*INDEX('Damage costs'!$W$16:$W$43,MATCH($B109,'Damage costs'!$C$16:$C$43,0))/1000,BU58*INDEX('Damage costs'!$AA$16:$AA$43,MATCH($B109,'Damage costs'!$C$16:$C$43,0))/1000),\"\")","v":""},{"$f":"IFERROR(IF(OR($C$110=FALSE,LEFT($B109,3)<>\"NOX\"),BV58*INDEX('Damage costs'!$W$16:$W$43,MATCH($B109,'Damage costs'!$C$16:$C$43,0))/1000,BV58*INDEX('Damage costs'!$AA$16:$AA$43,MATCH($B109,'Damage costs'!$C$16:$C$43,0))/1000),\"\")","v":""},{"$f":"IFERROR(IF(OR($C$110=FALSE,LEFT($B109,3)<>\"NOX\"),BW58*INDEX('Damage costs'!$W$16:$W$43,MATCH($B109,'Damage costs'!$C$16:$C$43,0))/1000,BW58*INDEX('Damage costs'!$AA$16:$AA$43,MATCH($B109,'Damage costs'!$C$16:$C$43,0))/1000),\"\")","v":""},{"$f":"IFERROR(IF(OR($C$110=FALSE,LEFT($B109,3)<>\"NOX\"),BX58*INDEX('Damage costs'!$W$16:$W$43,MATCH($B109,'Damage costs'!$C$16:$C$43,0))/1000,BX58*INDEX('Damage costs'!$AA$16:$AA$43,MATCH($B109,'Damage costs'!$C$16:$C$43,0))/1000),\"\")","v":""},{"$f":"IFERROR(IF(OR($C$110=FALSE,LEFT($B109,3)<>\"NOX\"),BY58*INDEX('Damage costs'!$W$16:$W$43,MATCH($B109,'Damage costs'!$C$16:$C$43,0))/1000,BY58*INDEX('Damage costs'!$AA$16:$AA$43,MATCH($B109,'Damage costs'!$C$16:$C$43,0))/1000),\"\")","v":""},{"$f":"IFERROR(IF(OR($C$110=FALSE,LEFT($B109,3)<>\"NOX\"),BZ58*INDEX('Damage costs'!$W$16:$W$43,MATCH($B109,'Damage costs'!$C$16:$C$43,0))/1000,BZ58*INDEX('Damage costs'!$AA$16:$AA$43,MATCH($B109,'Damage costs'!$C$16:$C$43,0))/1000),\"\")","v":""},{"$f":"IFERROR(IF(OR($C$110=FALSE,LEFT($B109,3)<>\"NOX\"),CA58*INDEX('Damage costs'!$W$16:$W$43,MATCH($B109,'Damage costs'!$C$16:$C$43,0))/1000,CA58*INDEX('Damage costs'!$AA$16:$AA$43,MATCH($B109,'Damage costs'!$C$16:$C$43,0))/1000),\"\")","v":""},{"$f":"IFERROR(IF(OR($C$110=FALSE,LEFT($B109,3)<>\"NOX\"),CB58*INDEX('Damage costs'!$W$16:$W$43,MATCH($B109,'Damage costs'!$C$16:$C$43,0))/1000,CB58*INDEX('Damage costs'!$AA$16:$AA$43,MATCH($B109,'Damage costs'!$C$16:$C$43,0))/1000),\"\")","v":""},{"$f":"IFERROR(IF(OR($C$110=FALSE,LEFT($B109,3)<>\"NOX\"),CC58*INDEX('Damage costs'!$W$16:$W$43,MATCH($B109,'Damage costs'!$C$16:$C$43,0))/1000,CC58*INDEX('Damage costs'!$AA$16:$AA$43,MATCH($B109,'Damage costs'!$C$16:$C$43,0))/1000),\"\")","v":""},{"$f":"IFERROR(IF(OR($C$110=FALSE,LEFT($B109,3)<>\"NOX\"),CD58*INDEX('Damage costs'!$W$16:$W$43,MATCH($B109,'Damage costs'!$C$16:$C$43,0))/1000,CD58*INDEX('Damage costs'!$AA$16:$AA$43,MATCH($B109,'Damage costs'!$C$16:$C$43,0))/1000),\"\")","v":""},{"$f":"IFERROR(IF(OR($C$110=FALSE,LEFT($B109,3)<>\"NOX\"),CE58*INDEX('Damage costs'!$W$16:$W$43,MATCH($B109,'Damage costs'!$C$16:$C$43,0))/1000,CE58*INDEX('Damage costs'!$AA$16:$AA$43,MATCH($B109,'Damage costs'!$C$16:$C$43,0))/1000),\"\")","v":""},{"$f":"IFERROR(IF(OR($C$110=FALSE,LEFT($B109,3)<>\"NOX\"),CF58*INDEX('Damage costs'!$W$16:$W$43,MATCH($B109,'Damage costs'!$C$16:$C$43,0))/1000,CF58*INDEX('Damage costs'!$AA$16:$AA$43,MATCH($B109,'Damage costs'!$C$16:$C$43,0))/1000),\"\")","v":""},{"$f":"IFERROR(IF(OR($C$110=FALSE,LEFT($B109,3)<>\"NOX\"),CG58*INDEX('Damage costs'!$W$16:$W$43,MATCH($B109,'Damage costs'!$C$16:$C$43,0))/1000,CG58*INDEX('Damage costs'!$AA$16:$AA$43,MATCH($B109,'Damage costs'!$C$16:$C$43,0))/1000),\"\")","v":""},{"$f":"IFERROR(IF(OR($C$110=FALSE,LEFT($B109,3)<>\"NOX\"),CH58*INDEX('Damage costs'!$W$16:$W$43,MATCH($B109,'Damage costs'!$C$16:$C$43,0))/1000,CH58*INDEX('Damage costs'!$AA$16:$AA$43,MATCH($B109,'Damage costs'!$C$16:$C$43,0))/1000),\"\")","v":""},{"$f":"IFERROR(IF(OR($C$110=FALSE,LEFT($B109,3)<>\"NOX\"),CI58*INDEX('Damage costs'!$W$16:$W$43,MATCH($B109,'Damage costs'!$C$16:$C$43,0))/1000,CI58*INDEX('Damage costs'!$AA$16:$AA$43,MATCH($B109,'Damage costs'!$C$16:$C$43,0))/1000),\"\")","v":""},{"$f":"IFERROR(IF(OR($C$110=FALSE,LEFT($B109,3)<>\"NOX\"),CJ58*INDEX('Damage costs'!$W$16:$W$43,MATCH($B109,'Damage costs'!$C$16:$C$43,0))/1000,CJ58*INDEX('Damage costs'!$AA$16:$AA$43,MATCH($B109,'Damage costs'!$C$16:$C$43,0))/1000),\"\")","v":""},{"$f":"IFERROR(IF(OR($C$110=FALSE,LEFT($B109,3)<>\"NOX\"),CK58*INDEX('Damage costs'!$W$16:$W$43,MATCH($B109,'Damage costs'!$C$16:$C$43,0))/1000,CK58*INDEX('Damage costs'!$AA$16:$AA$43,MATCH($B109,'Damage costs'!$C$16:$C$43,0))/1000),\"\")","v":""},{"$f":"IFERROR(IF(OR($C$110=FALSE,LEFT($B109,3)<>\"NOX\"),CL58*INDEX('Damage costs'!$W$16:$W$43,MATCH($B109,'Damage costs'!$C$16:$C$43,0))/1000,CL58*INDEX('Damage costs'!$AA$16:$AA$43,MATCH($B109,'Damage costs'!$C$16:$C$43,0))/1000),\"\")","v":""},{"$f":"IFERROR(IF(OR($C$110=FALSE,LEFT($B109,3)<>\"NOX\"),CM58*INDEX('Damage costs'!$W$16:$W$43,MATCH($B109,'Damage costs'!$C$16:$C$43,0))/1000,CM58*INDEX('Damage costs'!$AA$16:$AA$43,MATCH($B109,'Damage costs'!$C$16:$C$43,0))/1000),\"\")","v":""},{"$f":"IFERROR(IF(OR($C$110=FALSE,LEFT($B109,3)<>\"NOX\"),CN58*INDEX('Damage costs'!$W$16:$W$43,MATCH($B109,'Damage costs'!$C$16:$C$43,0))/1000,CN58*INDEX('Damage costs'!$AA$16:$AA$43,MATCH($B109,'Damage costs'!$C$16:$C$43,0))/1000),\"\")","v":""},{"$f":"IFERROR(IF(OR($C$110=FALSE,LEFT($B109,3)<>\"NOX\"),CO58*INDEX('Damage costs'!$W$16:$W$43,MATCH($B109,'Damage costs'!$C$16:$C$43,0))/1000,CO58*INDEX('Damage costs'!$AA$16:$AA$43,MATCH($B109,'Damage costs'!$C$16:$C$43,0))/1000),\"\")","v":""},{"$f":"IFERROR(IF(OR($C$110=FALSE,LEFT($B109,3)<>\"NOX\"),CP58*INDEX('Damage costs'!$W$16:$W$43,MATCH($B109,'Damage costs'!$C$16:$C$43,0))/1000,CP58*INDEX('Damage costs'!$AA$16:$AA$43,MATCH($B109,'Damage costs'!$C$16:$C$43,0))/1000),\"\")","v":""},{"$f":"IFERROR(IF(OR($C$110=FALSE,LEFT($B109,3)<>\"NOX\"),CQ58*INDEX('Damage costs'!$W$16:$W$43,MATCH($B109,'Damage costs'!$C$16:$C$43,0))/1000,CQ58*INDEX('Damage costs'!$AA$16:$AA$43,MATCH($B109,'Damage costs'!$C$16:$C$43,0))/1000),\"\")","v":""},{"$f":"IFERROR(IF(OR($C$110=FALSE,LEFT($B109,3)<>\"NOX\"),CR58*INDEX('Damage costs'!$W$16:$W$43,MATCH($B109,'Damage costs'!$C$16:$C$43,0))/1000,CR58*INDEX('Damage costs'!$AA$16:$AA$43,MATCH($B109,'Damage costs'!$C$16:$C$43,0))/1000),\"\")","v":""},{"$f":"IFERROR(IF(OR($C$110=FALSE,LEFT($B109,3)<>\"NOX\"),CS58*INDEX('Damage costs'!$W$16:$W$43,MATCH($B109,'Damage costs'!$C$16:$C$43,0))/1000,CS58*INDEX('Damage costs'!$AA$16:$AA$43,MATCH($B109,'Damage costs'!$C$16:$C$43,0))/1000),\"\")","v":""},{"$f":"IFERROR(IF(OR($C$110=FALSE,LEFT($B109,3)<>\"NOX\"),CT58*INDEX('Damage costs'!$W$16:$W$43,MATCH($B109,'Damage costs'!$C$16:$C$43,0))/1000,CT58*INDEX('Damage costs'!$AA$16:$AA$43,MATCH($B109,'Damage costs'!$C$16:$C$43,0))/1000),\"\")","v":""},{"$f":"IFERROR(IF(OR($C$110=FALSE,LEFT($B109,3)<>\"NOX\"),CU58*INDEX('Damage costs'!$W$16:$W$43,MATCH($B109,'Damage costs'!$C$16:$C$43,0))/1000,CU58*INDEX('Damage costs'!$AA$16:$AA$43,MATCH($B109,'Damage costs'!$C$16:$C$43,0))/1000),\"\")","v":""},{"$f":"IFERROR(IF(OR($C$110=FALSE,LEFT($B109,3)<>\"NOX\"),CV58*INDEX('Damage costs'!$W$16:$W$43,MATCH($B109,'Damage costs'!$C$16:$C$43,0))/1000,CV58*INDEX('Damage costs'!$AA$16:$AA$43,MATCH($B109,'Damage costs'!$C$16:$C$43,0))/1000),\"\")","v":""},{"$f":"IFERROR(IF(OR($C$110=FALSE,LEFT($B109,3)<>\"NOX\"),CW58*INDEX('Damage costs'!$W$16:$W$43,MATCH($B109,'Damage costs'!$C$16:$C$43,0))/1000,CW58*INDEX('Damage costs'!$AA$16:$AA$43,MATCH($B109,'Damage costs'!$C$16:$C$43,0))/1000),\"\")","v":""},{"$f":"IFERROR(IF(OR($C$110=FALSE,LEFT($B109,3)<>\"NOX\"),CX58*INDEX('Damage costs'!$W$16:$W$43,MATCH($B109,'Damage costs'!$C$16:$C$43,0))/1000,CX58*INDEX('Damage costs'!$AA$16:$AA$43,MATCH($B109,'Damage costs'!$C$16:$C$43,0))/1000),\"\")","v":""},{"$f":"IFERROR(IF(OR($C$110=FALSE,LEFT($B109,3)<>\"NOX\"),CY58*INDEX('Damage costs'!$W$16:$W$43,MATCH($B109,'Damage costs'!$C$16:$C$43,0))/1000,CY58*INDEX('Damage costs'!$AA$16:$AA$43,MATCH($B109,'Damage costs'!$C$16:$C$43,0))/1000),\"\")","v":""}]
[null,"PM10 Used",{"$f":"IF(OR(LEFT(B104,4)=\"PM10\",LEFT(B105,4)=\"PM10\",LEFT(B106,4)=\"PM10\",LEFT(B107,4)=\"PM10\",LEFT(B108,4)=\"PM10\",LEFT(B109,4)=\"PM10\"),TRUE,FALSE)","v":false}]
[]
[null,"Uplift pa","%",{"$f":"'Discount and deflators'!$H$5","v":0.02}]
[null,"Uplift factor",null,{"$f":"IF(D$6=0,0,(1+$D112)^(D$6-'Data Input - General'!$F$22))","v":1},{"$f":"IF(E$6=0,0,(1+$D112)^(E$6-'Data Input - General'!$F$22))","v":1.02},{"$f":"IF(F$6=0,0,(1+$D112)^(F$6-'Data Input - General'!$F$22))","v":1.0404},{"$f":"IF(G$6=0,0,(1+$D112)^(G$6-'Data Input - General'!$F$22))","v":1.0612079999999999},{"$f":"IF(H$6=0,0,(1+$D112)^(H$6-'Data Input - General'!$F$22))","v":1.08243216},{"$f":"IF(I$6=0,0,(1+$D112)^(I$6-'Data Input - General'!$F$22))","v":1.1040808032},{"$f":"IF(J$6=0,0,(1+$D112)^(J$6-'Data Input - General'!$F$22))","v":1.1261624192640001},{"$f":"IF(K$6=0,0,(1+$D112)^(K$6-'Data Input - General'!$F$22))","v":1.1486856676492798},{"$f":"IF(L$6=0,0,(1+$D112)^(L$6-'Data Input - General'!$F$22))","v":1.1716593810022655},{"$f":"IF(M$6=0,0,(1+$D112)^(M$6-'Data Input - General'!$F$22))","v":1.1950925686223108},{"$f":"IF(N$6=0,0,(1+$D112)^(N$6-'Data Input - General'!$F$22))","v":1.2189944199947571},{"$f":"IF(O$6=0,0,(1+$D112)^(O$6-'Data Input - General'!$F$22))","v":1.243374308394652},{"$f":"IF(P$6=0,0,(1+$D112)^(P$6-'Data Input - General'!$F$22))","v":1.2682417945625453},{"$f":"IF(Q$6=0,0,(1+$D112)^(Q$6-'Data Input - General'!$F$22))","v":1.2936066304537961},{"$f":"IF(R$6=0,0,(1+$D112)^(R$6-'Data Input - General'!$F$22))","v":1.3194787630628722},{"$f":"IF(S$6=0,0,(1+$D112)^(S$6-'Data Input - General'!$F$22))","v":1.3458683383241292},{"$f":"IF(T$6=0,0,(1+$D112)^(T$6-'Data Input - General'!$F$22))","v":1.372785705090612},{"$f":"IF(U$6=0,0,(1+$D112)^(U$6-'Data Input - General'!$F$22))","v":1.4002414191924244},{"$f":"IF(V$6=0,0,(1+$D112)^(V$6-'Data Input - General'!$F$22))","v":1.4282462475762727},{"$f":"IF(W$6=0,0,(1+$D112)^(W$6-'Data Input - General'!$F$22))","v":1.4568111725277981},{"$f":"IF(X$6=0,0,(1+$D112)^(X$6-'Data Input - General'!$F$22))","v":1.4859473959783542},{"$f":"IF(Y$6=0,0,(1+$D112)^(Y$6-'Data Input - General'!$F$22))","v":1.5156663438979212},{"$f":"IF(Z$6=0,0,(1+$D112)^(Z$6-'Data Input - General'!$F$22))","v":1.5459796707758797},{"$f":"IF(AA$6=0,0,(1+$D112)^(AA$6-'Data Input - General'!$F$22))","v":1.576899264191397},{"$f":"IF(AB$6=0,0,(1+$D112)^(AB$6-'Data Input - General'!$F$22))","v":1.608437249475225},{"$f":"IF(AC$6=0,0,(1+$D112)^(AC$6-'Data Input - General'!$F$22))","v":1.6406059944647295},{"$f":"IF(AD$6=0,0,(1+$D112)^(AD$6-'Data Input - General'!$F$22))","v":1.6734181143540243},{"$f":"IF(AE$6=0,0,(1+$D112)^(AE$6-'Data Input - General'!$F$22))","v":1.7068864766411045},{"$f":"IF(AF$6=0,0,(1+$D112)^(AF$6-'Data Input - General'!$F$22))","v":1.7410242061739269},{"$f":"IF(AG$6=0,0,(1+$D112)^(AG$6-'Data Input - General'!$F$22))","v":1.7758446902974052},{"$f":"IF(AH$6=0,0,(1+$D112)^(AH$6-'Data Input - General'!$F$22))","v":1.8113615841033535},{"$f":"IF(AI$6=0,0,(1+$D112)^(AI$6-'Data Input - General'!$F$22))","v":0},{"$f":"IF(AJ$6=0,0,(1+$D112)^(AJ$6-'Data Input - General'!$F$22))","v":0},{"$f":"IF(AK$6=0,0,(1+$D112)^(AK$6-'Data Input - General'!$F$22))","v":0},{"$f":"IF(AL$6=0,0,(1+$D112)^(AL$6-'Data Input - General'!$F$22))","v":0},{"$f":"IF(AM$6=0,0,(1+$D112)^(AM$6-'Data Input - General'!$F$22))","v":0},{"$f":"IF(AN$6=0,0,(1+$D112)^(AN$6-'Data Input - General'!$F$22))","v":0},{"$f":"IF(AO$6=0,0,(1+$D112)^(AO$6-'Data Input - General'!$F$22))","v":0},{"$f":"IF(AP$6=0,0,(1+$D112)^(AP$6-'Data Input - General'!$F$22))","v":0},{"$f":"IF(AQ$6=0,0,(1+$D112)^(AQ$6-'Data Input - General'!$F$22))","v":0},{"$f":"IF(AR$6=0,0,(1+$D112)^(AR$6-'Data Input - General'!$F$22))","v":0},{"$f":"IF(AS$6=0,0,(1+$D112)^(AS$6-'Data Input - General'!$F$22))","v":0},{"$f":"IF(AT$6=0,0,(1+$D112)^(AT$6-'Data Input - General'!$F$22))","v":0},{"$f":"IF(AU$6=0,0,(1+$D112)^(AU$6-'Data Input - General'!$F$22))","v":0},{"$f":"IF(AV$6=0,0,(1+$D112)^(AV$6-'Data Input - General'!$F$22))","v":0},{"$f":"IF(AW$6=0,0,(1+$D112)^(AW$6-'Data Input - General'!$F$22))","v":0},{"$f":"IF(AX$6=0,0,(1+$D112)^(AX$6-'Data Input - General'!$F$22))","v":0},{"$f":"IF(AY$6=0,0,(1+$D112)^(AY$6-'Data Input - General'!$F$22))","v":0},{"$f":"IF(AZ$6=0,0,(1+$D112)^(AZ$6-'Data Input - General'!$F$22))","v":0},{"$f":"IF(BA$6=0,0,(1+$D112)^(BA$6-'Data Input - General'!$F$22))","v":0},{"$f":"IF(BB$6=0,0,(1+$D112)^(BB$6-'Data Input - General'!$F$22))","v":0},{"$f":"IF(BC$6=0,0,(1+$D112)^(BC$6-'Data Input - General'!$F$22))","v":0},{"$f":"IF(BD$6=0,0,(1+$D112)^(BD$6-'Data Input - General'!$F$22))","v":0},{"$f":"IF(BE$6=0,0,(1+$D112)^(BE$6-'Data Input - General'!$F$22))","v":0},{"$f":"IF(BF$6=0,0,(1+$D112)^(BF$6-'Data Input - General'!$F$22))","v":0},{"$f":"IF(BG$6=0,0,(1+$D112)^(BG$6-'Data Input - General'!$F$22))","v":0},{"$f":"IF(BH$6=0,0,(1+$D112)^(BH$6-'Data Input - General'!$F$22))","v":0},{"$f":"IF(BI$6=0,0,(1+$D112)^(BI$6-'Data Input - General'!$F$22))","v":0},{"$f":"IF(BJ$6=0,0,(1+$D112)^(BJ$6-'Data Input - General'!$F$22))","v":0},{"$f":"IF(BK$6=0,0,(1+$D112)^(BK$6-'Data Input - General'!$F$22))","v":0},{"$f":"IF(BL$6=0,0,(1+$D112)^(BL$6-'Data Input - General'!$F$22))","v":0},{"$f":"IF(BM$6=0,0,(1+$D112)^(BM$6-'Data Input - General'!$F$22))","v":0},{"$f":"IF(BN$6=0,0,(1+$D112)^(BN$6-'Data Input - General'!$F$22))","v":0},{"$f":"IF(BO$6=0,0,(1+$D112)^(BO$6-'Data Input - General'!$F$22))","v":0},{"$f":"IF(BP$6=0,0,(1+$D112)^(BP$6-'Data Input - General'!$F$22))","v":0},{"$f":"IF(BQ$6=0,0,(1+$D112)^(BQ$6-'Data Input - General'!$F$22))","v":0},{"$f":"IF(BR$6=0,0,(1+$D112)^(BR$6-'Data Input - General'!$F$22))","v":0},{"$f":"IF(BS$6=0,0,(1+$D112)^(BS$6-'Data Input - General'!$F$22))","v":0},{"$f":"IF(BT$6=0,0,(1+$D112)^(BT$6-'Data Input - General'!$F$22))","v":0},{"$f":"IF(BU$6=0,0,(1+$D112)^(BU$6-'Data Input - General'!$F$22))","v":0},{"$f":"IF(BV$6=0,0,(1+$D112)^(BV$6-'Data Input - General'!$F$22))","v":0},{"$f":"IF(BW$6=0,0,(1+$D112)^(BW$6-'Data Input - General'!$F$22))","v":0},{"$f":"IF(BX$6=0,0,(1+$D112)^(BX$6-'Data Input - General'!$F$22))","v":0},{"$f":"IF(BY$6=0,0,(1+$D112)^(BY$6-'Data Input - General'!$F$22))","v":0},{"$f":"IF(BZ$6=0,0,(1+$D112)^(BZ$6-'Data Input - General'!$F$22))","v":0},{"$f":"IF(CA$6=0,0,(1+$D112)^(CA$6-'Data Input - General'!$F$22))","v":0},{"$f":"IF(CB$6=0,0,(1+$D112)^(CB$6-'Data Input - General'!$F$22))","v":0},{"$f":"IF(CC$6=0,0,(1+$D112)^(CC$6-'Data Input - General'!$F$22))","v":0},{"$f":"IF(CD$6=0,0,(1+$D112)^(CD$6-'Data Input - General'!$F$22))","v":0},{"$f":"IF(CE$6=0,0,(1+$D112)^(CE$6-'Data Input - General'!$F$22))","v":0},{"$f":"IF(CF$6=0,0,(1+$D112)^(CF$6-'Data Input - General'!$F$22))","v":0},{"$f":"IF(CG$6=0,0,(1+$D112)^(CG$6-'Data Input - General'!$F$22))","v":0},{"$f":"IF(CH$6=0,0,(1+$D112)^(CH$6-'Data Input - General'!$F$22))","v":0},{"$f":"IF(CI$6=0,0,(1+$D112)^(CI$6-'Data Input - General'!$F$22))","v":0},{"$f":"IF(CJ$6=0,0,(1+$D112)^(CJ$6-'Data Input - General'!$F$22))","v":0},{"$f":"IF(CK$6=0,0,(1+$D112)^(CK$6-'Data Input - General'!$F$22))","v":0},{"$f":"IF(CL$6=0,0,(1+$D112)^(CL$6-'Data Input - General'!$F$22))","v":0},{"$f":"IF(CM$6=0,0,(1+$D112)^(CM$6-'Data Input - General'!$F$22))","v":0},{"$f":"IF(CN$6=0,0,(1+$D112)^(CN$6-'Data Input - General'!$F$22))","v":0},{"$f":"IF(CO$6=0,0,(1+$D112)^(CO$6-'Data Input - General'!$F$22))","v":0},{"$f":"IF(CP$6=0,0,(1+$D112)^(CP$6-'Data Input - General'!$F$22))","v":0},{"$f":"IF(CQ$6=0,0,(1+$D112)^(CQ$6-'Data Input - General'!$F$22))","v":0},{"$f":"IF(CR$6=0,0,(1+$D112)^(CR$6-'Data Input - General'!$F$22))","v":0},{"$f":"IF(CS$6=0,0,(1+$D112)^(CS$6-'Data Input - General'!$F$22))","v":0},{"$f":"IF(CT$6=0,0,(1+$D112)^(CT$6-'Data Input - General'!$F$22))","v":0},{"$f":"IF(CU$6=0,0,(1+$D112)^(CU$6-'Data Input - General'!$F$22))","v":0},{"$f":"IF(CV$6=0,0,(1+$D112)^(CV$6-'Data Input - General'!$F$22))","v":0},{"$f":"IF(CW$6=0,0,(1+$D112)^(CW$6-'Data Input - General'!$F$22))","v":0},{"$f":"IF(CX$6=0,0,(1+$D112)^(CX$6-'Data Input - General'!$F$22))","v":0},{"$f":"IF(CY$6=0,0,(1+$D112)^(CY$6-'Data Input - General'!$F$22))","v":0}]
[null,"Total value","£000's",{"$f":"SUM(D104:D109)*D113","v":0.42635869259667258},{"$f":"SUM(E104:E109)*E113","v":0.43488586644860605},{"$f":"SUM(F104:F109)*F113","v":0.44358358377757817},0.4524552554531297,0.4615043605621923,0.47073444777343615,0.48014913672890491,0.4897521194634829,0,0,0,0,0,0,0,0,0,0,0,0,0,0,0,0,0,0,0,0,0,0,0,0,{"$f":"SUM(AJ104:AJ109)*AJ113","v":0},0,0,0,0,0,0,0,0,0,0,0,0,0,0,0,0,0,0,0,0,0,0,0,0,0,0,0,{"$f":"SUM(BL104:BL109)*BL113","v":0},0,0,0,0,0,0,0,0,0,0,0,0,0,0,0,0,0,0,0,0,0,0,0,0,0,0,0,0,0,0,0,0,0,0,0,0,0,0,0]
[null,"Discounted total value","£000's",{"$f":"D114*D$7","v":0.42635869259667258},{"$f":"E114*E$7","v":0.42017958110976433},{"$f":"F114*F$7","v":0.41409002196324601},{"$f":"G114*G$7","v":0.40808871729711205},0.40217438806092204,0.39634577374119856,0.39060163209277543,0.38494073887403951,0,0,0,0,0,0,0,0,0,0,0,0,0,0,0,0,0,0,0,0,0,0,0,0,0,0,0,0,0,0,0,0,0,0,0,0,0,0,0,0,0,0,0,0,0,0,0,0,0,0,0,0,0,0,0,0,0,0,0,{"$f":"BS114*BS$7","v":0},0,0,0,0,0,0,0,0,0,0,0,0,0,0,0,0,0,0,0,0,0,0,0,0,0,0,0,0,0,0,0,0]
[]
[null,"GHG emissions"]
[null,"Traded","tCO2e",{"$f":"D80+IF('Data Input - General'!$F$10=\"Yes\",Calc_Option3!D$81,0)+IF('Data Input - General'!$F$12=\"Yes\",Calc_Option3!D$75,0)","v":96633.146796375047},{"$f":"E80+IF('Data Input - General'!$F$10=\"Yes\",Calc_Option3!E$81,0)+IF('Data Input - General'!$F$12=\"Yes\",Calc_Option3!E$75,0)","v":96498.642363144347},{"$f":"F80+IF('Data Input - General'!$F$10=\"Yes\",Calc_Option3!F$81,0)+IF('Data Input - General'!$F$12=\"Yes\",Calc_Option3!F$75,0)","v":96376.596689503611},{"$f":"G80+IF('Data Input - General'!$F$10=\"Yes\",Calc_Option3!G$81,0)+IF('Data Input - General'!$F$12=\"Yes\",Calc_Option3!G$75,0)","v":96305.403172857536},{"$f":"H80+IF('Data Input - General'!$F$10=\"Yes\",Calc_Option3!H$81,0)+IF('Data Input - General'!$F$12=\"Yes\",Calc_Option3!H$75,0)","v":96182.183852599657},{"$f":"I80+IF('Data Input - General'!$F$10=\"Yes\",Calc_Option3!I$81,0)+IF('Data Input - General'!$F$12=\"Yes\",Calc_Option3!I$75,0)","v":96217.574047116417},{"$f":"J80+IF('Data Input - General'!$F$10=\"Yes\",Calc_Option3!J$81,0)+IF('Data Input - General'!$F$12=\"Yes\",Calc_Option3!J$75,0)","v":96170.995027944969},{"$f":"K80+IF('Data Input - General'!$F$10=\"Yes\",Calc_Option3!K$81,0)+IF('Data Input - General'!$F$12=\"Yes\",Calc_Option3!K$75,0)","v":96093.79707317354},{"$f":"L80+IF('Data Input - General'!$F$10=\"Yes\",Calc_Option3!L$81,0)+IF('Data Input - General'!$F$12=\"Yes\",Calc_Option3!L$75,0)","v":0},{"$f":"M80+IF('Data Input - General'!$F$10=\"Yes\",Calc_Option3!M$81,0)+IF('Data Input - General'!$F$12=\"Yes\",Calc_Option3!M$75,0)","v":0},{"$f":"N80+IF('Data Input - General'!$F$10=\"Yes\",Calc_Option3!N$81,0)+IF('Data Input - General'!$F$12=\"Yes\",Calc_Option3!N$75,0)","v":0},{"$f":"O80+IF('Data Input - General'!$F$10=\"Yes\",Calc_Option3!O$81,0)+IF('Data Input - General'!$F$12=\"Yes\",Calc_Option3!O$75,0)","v":0},{"$f":"P80+IF('Data Input - General'!$F$10=\"Yes\",Calc_Option3!P$81,0)+IF('Data Input - General'!$F$12=\"Yes\",Calc_Option3!P$75,0)","v":0},{"$f":"Q80+IF('Data Input - General'!$F$10=\"Yes\",Calc_Option3!Q$81,0)+IF('Data Input - General'!$F$12=\"Yes\",Calc_Option3!Q$75,0)","v":0},{"$f":"R80+IF('Data Input - General'!$F$10=\"Yes\",Calc_Option3!R$81,0)+IF('Data Input - General'!$F$12=\"Yes\",Calc_Option3!R$75,0)","v":0},{"$f":"S80+IF('Data Input - General'!$F$10=\"Yes\",Calc_Option3!S$81,0)+IF('Data Input - General'!$F$12=\"Yes\",Calc_Option3!S$75,0)","v":0},{"$f":"T80+IF('Data Input - General'!$F$10=\"Yes\",Calc_Option3!T$81,0)+IF('Data Input - General'!$F$12=\"Yes\",Calc_Option3!T$75,0)","v":0},{"$f":"U80+IF('Data Input - General'!$F$10=\"Yes\",Calc_Option3!U$81,0)+IF('Data Input - General'!$F$12=\"Yes\",Calc_Option3!U$75,0)","v":0},{"$f":"V80+IF('Data Input - General'!$F$10=\"Yes\",Calc_Option3!V$81,0)+IF('Data Input - General'!$F$12=\"Yes\",Calc_Option3!V$75,0)","v":0},{"$f":"W80+IF('Data Input - General'!$F$10=\"Yes\",Calc_Option3!W$81,0)+IF('Data Input - General'!$F$12=\"Yes\",Calc_Option3!W$75,0)","v":0},{"$f":"X80+IF('Data Input - General'!$F$10=\"Yes\",Calc_Option3!X$81,0)+IF('Data Input - General'!$F$12=\"Yes\",Calc_Option3!X$75,0)","v":0},{"$f":"Y80+IF('Data Input - General'!$F$10=\"Yes\",Calc_Option3!Y$81,0)+IF('Data Input - General'!$F$12=\"Yes\",Calc_Option3!Y$75,0)","v":0},{"$f":"Z80+IF('Data Input - General'!$F$10=\"Yes\",Calc_Option3!Z$81,0)+IF('Data Input - General'!$F$12=\"Yes\",Calc_Option3!Z$75,0)","v":0},{"$f":"AA80+IF('Data Input - General'!$F$10=\"Yes\",Calc_Option3!AA$81,0)+IF('Data Input - General'!$F$12=\"Yes\",Calc_Option3!AA$75,0)","v":0},{"$f":"AB80+IF('Data Input - General'!$F$10=\"Yes\",Calc_Option3!AB$81,0)+IF('Data Input - General'!$F$12=\"Yes\",Calc_Option3!AB$75,0)","v":0},{"$f":"AC80+IF('Data Input - General'!$F$10=\"Yes\",Calc_Option3!AC$81,0)+IF('Data Input - General'!$F$12=\"Yes\",Calc_Option3!AC$75,0)","v":0},{"$f":"AD80+IF('Data Input - General'!$F$10=\"Yes\",Calc_Option3!AD$81,0)+IF('Data Input - General'!$F$12=\"Yes\",Calc_Option3!AD$75,0)","v":0},{"$f":"AE80+IF('Data Input - General'!$F$10=\"Yes\",Calc_Option3!AE$81,0)+IF('Data Input - General'!$F$12=\"Yes\",Calc_Option3!AE$75,0)","v":0},{"$f":"AF80+IF('Data Input - General'!$F$10=\"Yes\",Calc_Option3!AF$81,0)+IF('Data Input - General'!$F$12=\"Yes\",Calc_Option3!AF$75,0)","v":0},{"$f":"AG80+IF('Data Input - General'!$F$10=\"Yes\",Calc_Option3!AG$81,0)+IF('Data Input - General'!$F$12=\"Yes\",Calc_Option3!AG$75,0)","v":0},{"$f":"AH80+IF('Data Input - General'!$F$10=\"Yes\",Calc_Option3!AH$81,0)+IF('Data Input - General'!$F$12=\"Yes\",Calc_Option3!AH$75,0)","v":0},{"$f":"AI80+IF('Data Input - General'!$F$10=\"Yes\",Calc_Option3!AI$81,0)+IF('Data Input - General'!$F$12=\"Yes\",Calc_Option3!AI$75,0)","v":0},{"$f":"AJ80+IF('Data Input - General'!$F$10=\"Yes\",Calc_Option3!AJ$81,0)+IF('Data Input - General'!$F$12=\"Yes\",Calc_Option3!AJ$75,0)","v":0},{"$f":"AK80+IF('Data Input - General'!$F$10=\"Yes\",Calc_Option3!AK$81,0)+IF('Data Input - General'!$F$12=\"Yes\",Calc_Option3!AK$75,0)","v":0},{"$f":"AL80+IF('Data Input - General'!$F$10=\"Yes\",Calc_Option3!AL$81,0)+IF('Data Input - General'!$F$12=\"Yes\",Calc_Option3!AL$75,0)","v":0},{"$f":"AM80+IF('Data Input - General'!$F$10=\"Yes\",Calc_Option3!AM$81,0)+IF('Data Input - General'!$F$12=\"Yes\",Calc_Option3!AM$75,0)","v":0},{"$f":"AN80+IF('Data Input - General'!$F$10=\"Yes\",Calc_Option3!AN$81,0)+IF('Data Input - General'!$F$12=\"Yes\",Calc_Option3!AN$75,0)","v":0},{"$f":"AO80+IF('Data Input - General'!$F$10=\"Yes\",Calc_Option3!AO$81,0)+IF('Data Input - General'!$F$12=\"Yes\",Calc_Option3!AO$75,0)","v":0},{"$f":"AP80+IF('Data Input - General'!$F$10=\"Yes\",Calc_Option3!AP$81,0)+IF('Data Input - General'!$F$12=\"Yes\",Calc_Option3!AP$75,0)","v":0},{"$f":"AQ80+IF('Data Input - General'!$F$10=\"Yes\",Calc_Option3!AQ$81,0)+IF('Data Input - General'!$F$12=\"Yes\",Calc_Option3!AQ$75,0)","v":0},{"$f":"AR80+IF('Data Input - General'!$F$10=\"Yes\",Calc_Option3!AR$81,0)+IF('Data Input - General'!$F$12=\"Yes\",Calc_Option3!AR$75,0)","v":0},{"$f":"AS80+IF('Data Input - General'!$F$10=\"Yes\",Calc_Option3!AS$81,0)+IF('Data Input - General'!$F$12=\"Yes\",Calc_Option3!AS$75,0)","v":0},{"$f":"AT80+IF('Data Input - General'!$F$10=\"Yes\",Calc_Option3!AT$81,0)+IF('Data Input - General'!$F$12=\"Yes\",Calc_Option3!AT$75,0)","v":0},{"$f":"AU80+IF('Data Input - General'!$F$10=\"Yes\",Calc_Option3!AU$81,0)+IF('Data Input - General'!$F$12=\"Yes\",Calc_Option3!AU$75,0)","v":0},{"$f":"AV80+IF('Data Input - General'!$F$10=\"Yes\",Calc_Option3!AV$81,0)+IF('Data Input - General'!$F$12=\"Yes\",Calc_Option3!AV$75,0)","v":0},{"$f":"AW80+IF('Data Input - General'!$F$10=\"Yes\",Calc_Option3!AW$81,0)+IF('Data Input - General'!$F$12=\"Yes\",Calc_Option3!AW$75,0)","v":0},{"$f":"AX80+IF('Data Input - General'!$F$10=\"Yes\",Calc_Option3!AX$81,0)+IF('Data Input - General'!$F$12=\"Yes\",Calc_Option3!AX$75,0)","v":0},{"$f":"AY80+IF('Data Input - General'!$F$10=\"Yes\",Calc_Option3!AY$81,0)+IF('Data Input - General'!$F$12=\"Yes\",Calc_Option3!AY$75,0)","v":0},{"$f":"AZ80+IF('Data Input - General'!$F$10=\"Yes\",Calc_Option3!AZ$81,0)+IF('Data Input - General'!$F$12=\"Yes\",Calc_Option3!AZ$75,0)","v":0},{"$f":"BA80+IF('Data Input - General'!$F$10=\"Yes\",Calc_Option3!BA$81,0)+IF('Data Input - General'!$F$12=\"Yes\",Calc_Option3!BA$75,0)","v":0},{"$f":"BB80+IF('Data Input - General'!$F$10=\"Yes\",Calc_Option3!BB$81,0)+IF('Data Input - General'!$F$12=\"Yes\",Calc_Option3!BB$75,0)","v":0},{"$f":"BC80+IF('Data Input - General'!$F$10=\"Yes\",Calc_Option3!BC$81,0)+IF('Data Input - General'!$F$12=\"Yes\",Calc_Option3!BC$75,0)","v":0},{"$f":"BD80+IF('Data Input - General'!$F$10=\"Yes\",Calc_Option3!BD$81,0)+IF('Data Input - General'!$F$12=\"Yes\",Calc_Option3!BD$75,0)","v":0},{"$f":"BE80+IF('Data Input - General'!$F$10=\"Yes\",Calc_Option3!BE$81,0)+IF('Data Input - General'!$F$12=\"Yes\",Calc_Option3!BE$75,0)","v":0},{"$f":"BF80+IF('Data Input - General'!$F$10=\"Yes\",Calc_Option3!BF$81,0)+IF('Data Input - General'!$F$12=\"Yes\",Calc_Option3!BF$75,0)","v":0},{"$f":"BG80+IF('Data Input - General'!$F$10=\"Yes\",Calc_Option3!BG$81,0)+IF('Data Input - General'!$F$12=\"Yes\",Calc_Option3!BG$75,0)","v":0},{"$f":"BH80+IF('Data Input - General'!$F$10=\"Yes\",Calc_Option3!BH$81,0)+IF('Data Input - General'!$F$12=\"Yes\",Calc_Option3!BH$75,0)","v":0},{"$f":"BI80+IF('Data Input - General'!$F$10=\"Yes\",Calc_Option3!BI$81,0)+IF('Data Input - General'!$F$12=\"Yes\",Calc_Option3!BI$75,0)","v":0},{"$f":"BJ80+IF('Data Input - General'!$F$10=\"Yes\",Calc_Option3!BJ$81,0)+IF('Data Input - General'!$F$12=\"Yes\",Calc_Option3!BJ$75,0)","v":0},{"$f":"BK80+IF('Data Input - General'!$F$10=\"Yes\",Calc_Option3!BK$81,0)+IF('Data Input - General'!$F$12=\"Yes\",Calc_Option3!BK$75,0)","v":0},{"$f":"BL80+IF('Data Input - General'!$F$10=\"Yes\",Calc_Option3!BL$81,0)+IF('Data Input - General'!$F$12=\"Yes\",Calc_Option3!BL$75,0)","v":0},{"$f":"BM80+IF('Data Input - General'!$F$10=\"Yes\",Calc_Option3!BM$81,0)+IF('Data Input - General'!$F$12=\"Yes\",Calc_Option3!BM$75,0)","v":0},{"$f":"BN80+IF('Data Input - General'!$F$10=\"Yes\",Calc_Option3!BN$81,0)+IF('Data Input - General'!$F$12=\"Yes\",Calc_Option3!BN$75,0)","v":0},{"$f":"BO80+IF('Data Input - General'!$F$10=\"Yes\",Calc_Option3!BO$81,0)+IF('Data Input - General'!$F$12=\"Yes\",Calc_Option3!BO$75,0)","v":0},{"$f":"BP80+IF('Data Input - General'!$F$10=\"Yes\",Calc_Option3!BP$81,0)+IF('Data Input - General'!$F$12=\"Yes\",Calc_Option3!BP$75,0)","v":0},{"$f":"BQ80+IF('Data Input - General'!$F$10=\"Yes\",Calc_Option3!BQ$81,0)+IF('Data Input - General'!$F$12=\"Yes\",Calc_Option3!BQ$75,0)","v":0},{"$f":"BR80+IF('Data Input - General'!$F$10=\"Yes\",Calc_Option3!BR$81,0)+IF('Data Input - General'!$F$12=\"Yes\",Calc_Option3!BR$75,0)","v":0},{"$f":"BS80+IF('Data Input - General'!$F$10=\"Yes\",Calc_Option3!BS$81,0)+IF('Data Input - General'!$F$12=\"Yes\",Calc_Option3!BS$75,0)","v":0},{"$f":"BT80+IF('Data Input - General'!$F$10=\"Yes\",Calc_Option3!BT$81,0)+IF('Data Input - General'!$F$12=\"Yes\",Calc_Option3!BT$75,0)","v":0},{"$f":"BU80+IF('Data Input - General'!$F$10=\"Yes\",Calc_Option3!BU$81,0)+IF('Data Input - General'!$F$12=\"Yes\",Calc_Option3!BU$75,0)","v":0},{"$f":"BV80+IF('Data Input - General'!$F$10=\"Yes\",Calc_Option3!BV$81,0)+IF('Data Input - General'!$F$12=\"Yes\",Calc_Option3!BV$75,0)","v":0},{"$f":"BW80+IF('Data Input - General'!$F$10=\"Yes\",Calc_Option3!BW$81,0)+IF('Data Input - General'!$F$12=\"Yes\",Calc_Option3!BW$75,0)","v":0},{"$f":"BX80+IF('Data Input - General'!$F$10=\"Yes\",Calc_Option3!BX$81,0)+IF('Data Input - General'!$F$12=\"Yes\",Calc_Option3!BX$75,0)","v":0},{"$f":"BY80+IF('Data Input - General'!$F$10=\"Yes\",Calc_Option3!BY$81,0)+IF('Data Input - General'!$F$12=\"Yes\",Calc_Option3!BY$75,0)","v":0},{"$f":"BZ80+IF('Data Input - General'!$F$10=\"Yes\",Calc_Option3!BZ$81,0)+IF('Data Input - General'!$F$12=\"Yes\",Calc_Option3!BZ$75,0)","v":0},{"$f":"CA80+IF('Data Input - General'!$F$10=\"Yes\",Calc_Option3!CA$81,0)+IF('Data Input - General'!$F$12=\"Yes\",Calc_Option3!CA$75,0)","v":0},{"$f":"CB80+IF('Data Input - General'!$F$10=\"Yes\",Calc_Option3!CB$81,0)+IF('Data Input - General'!$F$12=\"Yes\",Calc_Option3!CB$75,0)","v":0},{"$f":"CC80+IF('Data Input - General'!$F$10=\"Yes\",Calc_Option3!CC$81,0)+IF('Data Input - General'!$F$12=\"Yes\",Calc_Option3!CC$75,0)","v":0},{"$f":"CD80+IF('Data Input - General'!$F$10=\"Yes\",Calc_Option3!CD$81,0)+IF('Data Input - General'!$F$12=\"Yes\",Calc_Option3!CD$75,0)","v":0},{"$f":"CE80+IF('Data Input - General'!$F$10=\"Yes\",Calc_Option3!CE$81,0)+IF('Data Input - General'!$F$12=\"Yes\",Calc_Option3!CE$75,0)","v":0},{"$f":"CF80+IF('Data Input - General'!$F$10=\"Yes\",Calc_Option3!CF$81,0)+IF('Data Input - General'!$F$12=\"Yes\",Calc_Option3!CF$75,0)","v":0},{"$f":"CG80+IF('Data Input - General'!$F$10=\"Yes\",Calc_Option3!CG$81,0)+IF('Data Input - General'!$F$12=\"Yes\",Calc_Option3!CG$75,0)","v":0},{"$f":"CH80+IF('Data Input - General'!$F$10=\"Yes\",Calc_Option3!CH$81,0)+IF('Data Input - General'!$F$12=\"Yes\",Calc_Option3!CH$75,0)","v":0},{"$f":"CI80+IF('Data Input - General'!$F$10=\"Yes\",Calc_Option3!CI$81,0)+IF('Data Input - General'!$F$12=\"Yes\",Calc_Option3!CI$75,0)","v":0},{"$f":"CJ80+IF('Data Input - General'!$F$10=\"Yes\",Calc_Option3!CJ$81,0)+IF('Data Input - General'!$F$12=\"Yes\",Calc_Option3!CJ$75,0)","v":0},{"$f":"CK80+IF('Data Input - General'!$F$10=\"Yes\",Calc_Option3!CK$81,0)+IF('Data Input - General'!$F$12=\"Yes\",Calc_Option3!CK$75,0)","v":0},{"$f":"CL80+IF('Data Input - General'!$F$10=\"Yes\",Calc_Option3!CL$81,0)+IF('Data Input - General'!$F$12=\"Yes\",Calc_Option3!CL$75,0)","v":0},{"$f":"CM80+IF('Data Input - General'!$F$10=\"Yes\",Calc_Option3!CM$81,0)+IF('Data Input - General'!$F$12=\"Yes\",Calc_Option3!CM$75,0)","v":0},{"$f":"CN80+IF('Data Input - General'!$F$10=\"Yes\",Calc_Option3!CN$81,0)+IF('Data Input - General'!$F$12=\"Yes\",Calc_Option3!CN$75,0)","v":0},{"$f":"CO80+IF('Data Input - General'!$F$10=\"Yes\",Calc_Option3!CO$81,0)+IF('Data Input - General'!$F$12=\"Yes\",Calc_Option3!CO$75,0)","v":0},{"$f":"CP80+IF('Data Input - General'!$F$10=\"Yes\",Calc_Option3!CP$81,0)+IF('Data Input - General'!$F$12=\"Yes\",Calc_Option3!CP$75,0)","v":0},{"$f":"CQ80+IF('Data Input - General'!$F$10=\"Yes\",Calc_Option3!CQ$81,0)+IF('Data Input - General'!$F$12=\"Yes\",Calc_Option3!CQ$75,0)","v":0},{"$f":"CR80+IF('Data Input - General'!$F$10=\"Yes\",Calc_Option3!CR$81,0)+IF('Data Input - General'!$F$12=\"Yes\",Calc_Option3!CR$75,0)","v":0},{"$f":"CS80+IF('Data Input - General'!$F$10=\"Yes\",Calc_Option3!CS$81,0)+IF('Data Input - General'!$F$12=\"Yes\",Calc_Option3!CS$75,0)","v":0},{"$f":"CT80+IF('Data Input - General'!$F$10=\"Yes\",Calc_Option3!CT$81,0)+IF('Data Input - General'!$F$12=\"Yes\",Calc_Option3!CT$75,0)","v":0},{"$f":"CU80+IF('Data Input - General'!$F$10=\"Yes\",Calc_Option3!CU$81,0)+IF('Data Input - General'!$F$12=\"Yes\",Calc_Option3!CU$75,0)","v":0},{"$f":"CV80+IF('Data Input - General'!$F$10=\"Yes\",Calc_Option3!CV$81,0)+IF('Data Input - General'!$F$12=\"Yes\",Calc_Option3!CV$75,0)","v":0},{"$f":"CW80+IF('Data Input - General'!$F$10=\"Yes\",Calc_Option3!CW$81,0)+IF('Data Input - General'!$F$12=\"Yes\",Calc_Option3!CW$75,0)","v":0},{"$f":"CX80+IF('Data Input - General'!$F$10=\"Yes\",Calc_Option3!CX$81,0)+IF('Data Input - General'!$F$12=\"Yes\",Calc_Option3!CX$75,0)","v":0},{"$f":"CY80+IF('Data Input - General'!$F$10=\"Yes\",Calc_Option3!CY$81,0)+IF('Data Input - General'!$F$12=\"Yes\",Calc_Option3!CY$75,0)","v":0}]
[null,"Non-traded","tCO2e",{"$f":"IF('Data Input - General'!$F$10=\"Yes\",0,Calc_Option3!D$81)+IF('Data Input - General'!$F$12=\"Yes\",0,Calc_Option3!D$75)","v":0},{"$f":"IF('Data Input - General'!$F$10=\"Yes\",0,Calc_Option3!E$81)+IF('Data Input - General'!$F$12=\"Yes\",0,Calc_Option3!E$75)","v":0},{"$f":"IF('Data Input - General'!$F$10=\"Yes\",0,Calc_Option3!F$81)+IF('Data Input - General'!$F$12=\"Yes\",0,Calc_Option3!F$75)","v":0},{"$f":"IF('Data Input - General'!$F$10=\"Yes\",0,Calc_Option3!G$81)+IF('Data Input - General'!$F$12=\"Yes\",0,Calc_Option3!G$75)","v":0},{"$f":"IF('Data Input - General'!$F$10=\"Yes\",0,Calc_Option3!H$81)+IF('Data Input - General'!$F$12=\"Yes\",0,Calc_Option3!H$75)","v":0},{"$f":"IF('Data Input - General'!$F$10=\"Yes\",0,Calc_Option3!I$81)+IF('Data Input - General'!$F$12=\"Yes\",0,Calc_Option3!I$75)","v":0},{"$f":"IF('Data Input - General'!$F$10=\"Yes\",0,Calc_Option3!J$81)+IF('Data Input - General'!$F$12=\"Yes\",0,Calc_Option3!J$75)","v":0},{"$f":"IF('Data Input - General'!$F$10=\"Yes\",0,Calc_Option3!K$81)+IF('Data Input - General'!$F$12=\"Yes\",0,Calc_Option3!K$75)","v":0},{"$f":"IF('Data Input - General'!$F$10=\"Yes\",0,Calc_Option3!L$81)+IF('Data Input - General'!$F$12=\"Yes\",0,Calc_Option3!L$75)","v":0},{"$f":"IF('Data Input - General'!$F$10=\"Yes\",0,Calc_Option3!M$81)+IF('Data Input - General'!$F$12=\"Yes\",0,Calc_Option3!M$75)","v":0},{"$f":"IF('Data Input - General'!$F$10=\"Yes\",0,Calc_Option3!N$81)+IF('Data Input - General'!$F$12=\"Yes\",0,Calc_Option3!N$75)","v":0},{"$f":"IF('Data Input - General'!$F$10=\"Yes\",0,Calc_Option3!O$81)+IF('Data Input - General'!$F$12=\"Yes\",0,Calc_Option3!O$75)","v":0},{"$f":"IF('Data Input - General'!$F$10=\"Yes\",0,Calc_Option3!P$81)+IF('Data Input - General'!$F$12=\"Yes\",0,Calc_Option3!P$75)","v":0},{"$f":"IF('Data Input - General'!$F$10=\"Yes\",0,Calc_Option3!Q$81)+IF('Data Input - General'!$F$12=\"Yes\",0,Calc_Option3!Q$75)","v":0},{"$f":"IF('Data Input - General'!$F$10=\"Yes\",0,Calc_Option3!R$81)+IF('Data Input - General'!$F$12=\"Yes\",0,Calc_Option3!R$75)","v":0},{"$f":"IF('Data Input - General'!$F$10=\"Yes\",0,Calc_Option3!S$81)+IF('Data Input - General'!$F$12=\"Yes\",0,Calc_Option3!S$75)","v":0},{"$f":"IF('Data Input - General'!$F$10=\"Yes\",0,Calc_Option3!T$81)+IF('Data Input - General'!$F$12=\"Yes\",0,Calc_Option3!T$75)","v":0},{"$f":"IF('Data Input - General'!$F$10=\"Yes\",0,Calc_Option3!U$81)+IF('Data Input - General'!$F$12=\"Yes\",0,Calc_Option3!U$75)","v":0},{"$f":"IF('Data Input - General'!$F$10=\"Yes\",0,Calc_Option3!V$81)+IF('Data Input - General'!$F$12=\"Yes\",0,Calc_Option3!V$75)","v":0},{"$f":"IF('Data Input - General'!$F$10=\"Yes\",0,Calc_Option3!W$81)+IF('Data Input - General'!$F$12=\"Yes\",0,Calc_Option3!W$75)","v":0},{"$f":"IF('Data Input - General'!$F$10=\"Yes\",0,Calc_Option3!X$81)+IF('Data Input - General'!$F$12=\"Yes\",0,Calc_Option3!X$75)","v":0},{"$f":"IF('Data Input - General'!$F$10=\"Yes\",0,Calc_Option3!Y$81)+IF('Data Input - General'!$F$12=\"Yes\",0,Calc_Option3!Y$75)","v":0},{"$f":"IF('Data Input - General'!$F$10=\"Yes\",0,Calc_Option3!Z$81)+IF('Data Input - General'!$F$12=\"Yes\",0,Calc_Option3!Z$75)","v":0},{"$f":"IF('Data Input - General'!$F$10=\"Yes\",0,Calc_Option3!AA$81)+IF('Data Input - General'!$F$12=\"Yes\",0,Calc_Option3!AA$75)","v":0},{"$f":"IF('Data Input - General'!$F$10=\"Yes\",0,Calc_Option3!AB$81)+IF('Data Input - General'!$F$12=\"Yes\",0,Calc_Option3!AB$75)","v":0},{"$f":"IF('Data Input - General'!$F$10=\"Yes\",0,Calc_Option3!AC$81)+IF('Data Input - General'!$F$12=\"Yes\",0,Calc_Option3!AC$75)","v":0},{"$f":"IF('Data Input - General'!$F$10=\"Yes\",0,Calc_Option3!AD$81)+IF('Data Input - General'!$F$12=\"Yes\",0,Calc_Option3!AD$75)","v":0},{"$f":"IF('Data Input - General'!$F$10=\"Yes\",0,Calc_Option3!AE$81)+IF('Data Input - General'!$F$12=\"Yes\",0,Calc_Option3!AE$75)","v":0},{"$f":"IF('Data Input - General'!$F$10=\"Yes\",0,Calc_Option3!AF$81)+IF('Data Input - General'!$F$12=\"Yes\",0,Calc_Option3!AF$75)","v":0},{"$f":"IF('Data Input - General'!$F$10=\"Yes\",0,Calc_Option3!AG$81)+IF('Data Input - General'!$F$12=\"Yes\",0,Calc_Option3!AG$75)","v":0},{"$f":"IF('Data Input - General'!$F$10=\"Yes\",0,Calc_Option3!AH$81)+IF('Data Input - General'!$F$12=\"Yes\",0,Calc_Option3!AH$75)","v":0},{"$f":"IF('Data Input - General'!$F$10=\"Yes\",0,Calc_Option3!AI$81)+IF('Data Input - General'!$F$12=\"Yes\",0,Calc_Option3!AI$75)","v":0},{"$f":"IF('Data Input - General'!$F$10=\"Yes\",0,Calc_Option3!AJ$81)+IF('Data Input - General'!$F$12=\"Yes\",0,Calc_Option3!AJ$75)","v":0},{"$f":"IF('Data Input - General'!$F$10=\"Yes\",0,Calc_Option3!AK$81)+IF('Data Input - General'!$F$12=\"Yes\",0,Calc_Option3!AK$75)","v":0},{"$f":"IF('Data Input - General'!$F$10=\"Yes\",0,Calc_Option3!AL$81)+IF('Data Input - General'!$F$12=\"Yes\",0,Calc_Option3!AL$75)","v":0},{"$f":"IF('Data Input - General'!$F$10=\"Yes\",0,Calc_Option3!AM$81)+IF('Data Input - General'!$F$12=\"Yes\",0,Calc_Option3!AM$75)","v":0},{"$f":"IF('Data Input - General'!$F$10=\"Yes\",0,Calc_Option3!AN$81)+IF('Data Input - General'!$F$12=\"Yes\",0,Calc_Option3!AN$75)","v":0},{"$f":"IF('Data Input - General'!$F$10=\"Yes\",0,Calc_Option3!AO$81)+IF('Data Input - General'!$F$12=\"Yes\",0,Calc_Option3!AO$75)","v":0},{"$f":"IF('Data Input - General'!$F$10=\"Yes\",0,Calc_Option3!AP$81)+IF('Data Input - General'!$F$12=\"Yes\",0,Calc_Option3!AP$75)","v":0},{"$f":"IF('Data Input - General'!$F$10=\"Yes\",0,Calc_Option3!AQ$81)+IF('Data Input - General'!$F$12=\"Yes\",0,Calc_Option3!AQ$75)","v":0},{"$f":"IF('Data Input - General'!$F$10=\"Yes\",0,Calc_Option3!AR$81)+IF('Data Input - General'!$F$12=\"Yes\",0,Calc_Option3!AR$75)","v":0},{"$f":"IF('Data Input - General'!$F$10=\"Yes\",0,Calc_Option3!AS$81)+IF('Data Input - General'!$F$12=\"Yes\",0,Calc_Option3!AS$75)","v":0},{"$f":"IF('Data Input - General'!$F$10=\"Yes\",0,Calc_Option3!AT$81)+IF('Data Input - General'!$F$12=\"Yes\",0,Calc_Option3!AT$75)","v":0},{"$f":"IF('Data Input - General'!$F$10=\"Yes\",0,Calc_Option3!AU$81)+IF('Data Input - General'!$F$12=\"Yes\",0,Calc_Option3!AU$75)","v":0},{"$f":"IF('Data Input - General'!$F$10=\"Yes\",0,Calc_Option3!AV$81)+IF('Data Input - General'!$F$12=\"Yes\",0,Calc_Option3!AV$75)","v":0},{"$f":"IF('Data Input - General'!$F$10=\"Yes\",0,Calc_Option3!AW$81)+IF('Data Input - General'!$F$12=\"Yes\",0,Calc_Option3!AW$75)","v":0},{"$f":"IF('Data Input - General'!$F$10=\"Yes\",0,Calc_Option3!AX$81)+IF('Data Input - General'!$F$12=\"Yes\",0,Calc_Option3!AX$75)","v":0},{"$f":"IF('Data Input - General'!$F$10=\"Yes\",0,Calc_Option3!AY$81)+IF('Data Input - General'!$F$12=\"Yes\",0,Calc_Option3!AY$75)","v":0},{"$f":"IF('Data Input - General'!$F$10=\"Yes\",0,Calc_Option3!AZ$81)+IF('Data Input - General'!$F$12=\"Yes\",0,Calc_Option3!AZ$75)","v":0},{"$f":"IF('Data Input - General'!$F$10=\"Yes\",0,Calc_Option3!BA$81)+IF('Data Input - General'!$F$12=\"Yes\",0,Calc_Option3!BA$75)","v":0},{"$f":"IF('Data Input - General'!$F$10=\"Yes\",0,Calc_Option3!BB$81)+IF('Data Input - General'!$F$12=\"Yes\",0,Calc_Option3!BB$75)","v":0},{"$f":"IF('Data Input - General'!$F$10=\"Yes\",0,Calc_Option3!BC$81)+IF('Data Input - General'!$F$12=\"Yes\",0,Calc_Option3!BC$75)","v":0},{"$f":"IF('Data Input - General'!$F$10=\"Yes\",0,Calc_Option3!BD$81)+IF('Data Input - General'!$F$12=\"Yes\",0,Calc_Option3!BD$75)","v":0},{"$f":"IF('Data Input - General'!$F$10=\"Yes\",0,Calc_Option3!BE$81)+IF('Data Input - General'!$F$12=\"Yes\",0,Calc_Option3!BE$75)","v":0},{"$f":"IF('Data Input - General'!$F$10=\"Yes\",0,Calc_Option3!BF$81)+IF('Data Input - General'!$F$12=\"Yes\",0,Calc_Option3!BF$75)","v":0},{"$f":"IF('Data Input - General'!$F$10=\"Yes\",0,Calc_Option3!BG$81)+IF('Data Input - General'!$F$12=\"Yes\",0,Calc_Option3!BG$75)","v":0},{"$f":"IF('Data Input - General'!$F$10=\"Yes\",0,Calc_Option3!BH$81)+IF('Data Input - General'!$F$12=\"Yes\",0,Calc_Option3!BH$75)","v":0},{"$f":"IF('Data Input - General'!$F$10=\"Yes\",0,Calc_Option3!BI$81)+IF('Data Input - General'!$F$12=\"Yes\",0,Calc_Option3!BI$75)","v":0},{"$f":"IF('Data Input - General'!$F$10=\"Yes\",0,Calc_Option3!BJ$81)+IF('Data Input - General'!$F$12=\"Yes\",0,Calc_Option3!BJ$75)","v":0},{"$f":"IF('Data Input - General'!$F$10=\"Yes\",0,Calc_Option3!BK$81)+IF('Data Input - General'!$F$12=\"Yes\",0,Calc_Option3!BK$75)","v":0},{"$f":"IF('Data Input - General'!$F$10=\"Yes\",0,Calc_Option3!BL$81)+IF('Data Input - General'!$F$12=\"Yes\",0,Calc_Option3!BL$75)","v":0},{"$f":"IF('Data Input - General'!$F$10=\"Yes\",0,Calc_Option3!BM$81)+IF('Data Input - General'!$F$12=\"Yes\",0,Calc_Option3!BM$75)","v":0},{"$f":"IF('Data Input - General'!$F$10=\"Yes\",0,Calc_Option3!BN$81)+IF('Data Input - General'!$F$12=\"Yes\",0,Calc_Option3!BN$75)","v":0},{"$f":"IF('Data Input - General'!$F$10=\"Yes\",0,Calc_Option3!BO$81)+IF('Data Input - General'!$F$12=\"Yes\",0,Calc_Option3!BO$75)","v":0},{"$f":"IF('Data Input - General'!$F$10=\"Yes\",0,Calc_Option3!BP$81)+IF('Data Input - General'!$F$12=\"Yes\",0,Calc_Option3!BP$75)","v":0},{"$f":"IF('Data Input - General'!$F$10=\"Yes\",0,Calc_Option3!BQ$81)+IF('Data Input - General'!$F$12=\"Yes\",0,Calc_Option3!BQ$75)","v":0},{"$f":"IF('Data Input - General'!$F$10=\"Yes\",0,Calc_Option3!BR$81)+IF('Data Input - General'!$F$12=\"Yes\",0,Calc_Option3!BR$75)","v":0},{"$f":"IF('Data Input - General'!$F$10=\"Yes\",0,Calc_Option3!BS$81)+IF('Data Input - General'!$F$12=\"Yes\",0,Calc_Option3!BS$75)","v":0},{"$f":"IF('Data Input - General'!$F$10=\"Yes\",0,Calc_Option3!BT$81)+IF('Data Input - General'!$F$12=\"Yes\",0,Calc_Option3!BT$75)","v":0},{"$f":"IF('Data Input - General'!$F$10=\"Yes\",0,Calc_Option3!BU$81)+IF('Data Input - General'!$F$12=\"Yes\",0,Calc_Option3!BU$75)","v":0},{"$f":"IF('Data Input - General'!$F$10=\"Yes\",0,Calc_Option3!BV$81)+IF('Data Input - General'!$F$12=\"Yes\",0,Calc_Option3!BV$75)","v":0},{"$f":"IF('Data Input - General'!$F$10=\"Yes\",0,Calc_Option3!BW$81)+IF('Data Input - General'!$F$12=\"Yes\",0,Calc_Option3!BW$75)","v":0},{"$f":"IF('Data Input - General'!$F$10=\"Yes\",0,Calc_Option3!BX$81)+IF('Data Input - General'!$F$12=\"Yes\",0,Calc_Option3!BX$75)","v":0},{"$f":"IF('Data Input - General'!$F$10=\"Yes\",0,Calc_Option3!BY$81)+IF('Data Input - General'!$F$12=\"Yes\",0,Calc_Option3!BY$75)","v":0},{"$f":"IF('Data Input - General'!$F$10=\"Yes\",0,Calc_Option3!BZ$81)+IF('Data Input - General'!$F$12=\"Yes\",0,Calc_Option3!BZ$75)","v":0},{"$f":"IF('Data Input - General'!$F$10=\"Yes\",0,Calc_Option3!CA$81)+IF('Data Input - General'!$F$12=\"Yes\",0,Calc_Option3!CA$75)","v":0},{"$f":"IF('Data Input - General'!$F$10=\"Yes\",0,Calc_Option3!CB$81)+IF('Data Input - General'!$F$12=\"Yes\",0,Calc_Option3!CB$75)","v":0},{"$f":"IF('Data Input - General'!$F$10=\"Yes\",0,Calc_Option3!CC$81)+IF('Data Input - General'!$F$12=\"Yes\",0,Calc_Option3!CC$75)","v":0},{"$f":"IF('Data Input - General'!$F$10=\"Yes\",0,Calc_Option3!CD$81)+IF('Data Input - General'!$F$12=\"Yes\",0,Calc_Option3!CD$75)","v":0},{"$f":"IF('Data Input - General'!$F$10=\"Yes\",0,Calc_Option3!CE$81)+IF('Data Input - General'!$F$12=\"Yes\",0,Calc_Option3!CE$75)","v":0},{"$f":"IF('Data Input - General'!$F$10=\"Yes\",0,Calc_Option3!CF$81)+IF('Data Input - General'!$F$12=\"Yes\",0,Calc_Option3!CF$75)","v":0},{"$f":"IF('Data Input - General'!$F$10=\"Yes\",0,Calc_Option3!CG$81)+IF('Data Input - General'!$F$12=\"Yes\",0,Calc_Option3!CG$75)","v":0},{"$f":"IF('Data Input - General'!$F$10=\"Yes\",0,Calc_Option3!CH$81)+IF('Data Input - General'!$F$12=\"Yes\",0,Calc_Option3!CH$75)","v":0},{"$f":"IF('Data Input - General'!$F$10=\"Yes\",0,Calc_Option3!CI$81)+IF('Data Input - General'!$F$12=\"Yes\",0,Calc_Option3!CI$75)","v":0},{"$f":"IF('Data Input - General'!$F$10=\"Yes\",0,Calc_Option3!CJ$81)+IF('Data Input - General'!$F$12=\"Yes\",0,Calc_Option3!CJ$75)","v":0},{"$f":"IF('Data Input - General'!$F$10=\"Yes\",0,Calc_Option3!CK$81)+IF('Data Input - General'!$F$12=\"Yes\",0,Calc_Option3!CK$75)","v":0},{"$f":"IF('Data Input - General'!$F$10=\"Yes\",0,Calc_Option3!CL$81)+IF('Data Input - General'!$F$12=\"Yes\",0,Calc_Option3!CL$75)","v":0},{"$f":"IF('Data Input - General'!$F$10=\"Yes\",0,Calc_Option3!CM$81)+IF('Data Input - General'!$F$12=\"Yes\",0,Calc_Option3!CM$75)","v":0},{"$f":"IF('Data Input - General'!$F$10=\"Yes\",0,Calc_Option3!CN$81)+IF('Data Input - General'!$F$12=\"Yes\",0,Calc_Option3!CN$75)","v":0},{"$f":"IF('Data Input - General'!$F$10=\"Yes\",0,Calc_Option3!CO$81)+IF('Data Input - General'!$F$12=\"Yes\",0,Calc_Option3!CO$75)","v":0},{"$f":"IF('Data Input - General'!$F$10=\"Yes\",0,Calc_Option3!CP$81)+IF('Data Input - General'!$F$12=\"Yes\",0,Calc_Option3!CP$75)","v":0},{"$f":"IF('Data Input - General'!$F$10=\"Yes\",0,Calc_Option3!CQ$81)+IF('Data Input - General'!$F$12=\"Yes\",0,Calc_Option3!CQ$75)","v":0},{"$f":"IF('Data Input - General'!$F$10=\"Yes\",0,Calc_Option3!CR$81)+IF('Data Input - General'!$F$12=\"Yes\",0,Calc_Option3!CR$75)","v":0},{"$f":"IF('Data Input - General'!$F$10=\"Yes\",0,Calc_Option3!CS$81)+IF('Data Input - General'!$F$12=\"Yes\",0,Calc_Option3!CS$75)","v":0},{"$f":"IF('Data Input - General'!$F$10=\"Yes\",0,Calc_Option3!CT$81)+IF('Data Input - General'!$F$12=\"Yes\",0,Calc_Option3!CT$75)","v":0},{"$f":"IF('Data Input - General'!$F$10=\"Yes\",0,Calc_Option3!CU$81)+IF('Data Input - General'!$F$12=\"Yes\",0,Calc_Option3!CU$75)","v":0},{"$f":"IF('Data Input - General'!$F$10=\"Yes\",0,Calc_Option3!CV$81)+IF('Data Input - General'!$F$12=\"Yes\",0,Calc_Option3!CV$75)","v":0},{"$f":"IF('Data Input - General'!$F$10=\"Yes\",0,Calc_Option3!CW$81)+IF('Data Input - General'!$F$12=\"Yes\",0,Calc_Option3!CW$75)","v":0},{"$f":"IF('Data Input - General'!$F$10=\"Yes\",0,Calc_Option3!CX$81)+IF('Data Input - General'!$F$12=\"Yes\",0,Calc_Option3!CX$75)","v":0},{"$f":"IF('Data Input - General'!$F$10=\"Yes\",0,Calc_Option3!CY$81)+IF('Data Input - General'!$F$12=\"Yes\",0,Calc_Option3!CY$75)","v":0}]
[null,"Value TRADED","£000's",{"$f":"IFERROR(INDEX('Carbon Prices'!$D$10:$CP$15,1,MATCH(Calc_Option3!D$6,'Carbon Prices'!$D$9:$CP$9,0))/1000,0)","v":0},{"$f":"IFERROR(INDEX('Carbon Prices'!$D$10:$CP$15,1,MATCH(Calc_Option3!E$6,'Carbon Prices'!$D$9:$CP$9,0))/1000,0)","v":0},{"$f":"IFERROR(INDEX('Carbon Prices'!$D$10:$CP$15,1,MATCH(Calc_Option3!F$6,'Carbon Prices'!$D$9:$CP$9,0))/1000,0)","v":4.2168152036321628E-3},{"$f":"IFERROR(INDEX('Carbon Prices'!$D$10:$CP$15,1,MATCH(Calc_Option3!G$6,'Carbon Prices'!$D$9:$CP$9,0))/1000,0)","v":8.4336304072643257E-3},{"$f":"IFERROR(INDEX('Carbon Prices'!$D$10:$CP$15,1,MATCH(Calc_Option3!H$6,'Carbon Prices'!$D$9:$CP$9,0))/1000,0)","v":1.2650445610896488E-2},{"$f":"IFERROR(INDEX('Carbon Prices'!$D$10:$CP$15,1,MATCH(Calc_Option3!I$6,'Carbon Prices'!$D$9:$CP$9,0))/1000,0)","v":1.6867260814528651E-2},{"$f":"IFERROR(INDEX('Carbon Prices'!$D$10:$CP$15,1,MATCH(Calc_Option3!J$6,'Carbon Prices'!$D$9:$CP$9,0))/1000,0)","v":2.1084076018160813E-2},{"$f":"IFERROR(INDEX('Carbon Prices'!$D$10:$CP$15,1,MATCH(Calc_Option3!K$6,'Carbon Prices'!$D$9:$CP$9,0))/1000,0)","v":2.5300891221792975E-2},{"$f":"IFERROR(INDEX('Carbon Prices'!$D$10:$CP$15,1,MATCH(Calc_Option3!L$6,'Carbon Prices'!$D$9:$CP$9,0))/1000,0)","v":2.9517706425425144E-2},{"$f":"IFERROR(INDEX('Carbon Prices'!$D$10:$CP$15,1,MATCH(Calc_Option3!M$6,'Carbon Prices'!$D$9:$CP$9,0))/1000,0)","v":3.3734521629057303E-2},{"$f":"IFERROR(INDEX('Carbon Prices'!$D$10:$CP$15,1,MATCH(Calc_Option3!N$6,'Carbon Prices'!$D$9:$CP$9,0))/1000,0)","v":3.7951336832689468E-2},{"$f":"IFERROR(INDEX('Carbon Prices'!$D$10:$CP$15,1,MATCH(Calc_Option3!O$6,'Carbon Prices'!$D$9:$CP$9,0))/1000,0)","v":4.2168152036321627E-2},{"$f":"IFERROR(INDEX('Carbon Prices'!$D$10:$CP$15,1,MATCH(Calc_Option3!P$6,'Carbon Prices'!$D$9:$CP$9,0))/1000,0)","v":4.6083766153980084E-2},{"$f":"IFERROR(INDEX('Carbon Prices'!$D$10:$CP$15,1,MATCH(Calc_Option3!Q$6,'Carbon Prices'!$D$9:$CP$9,0))/1000,0)","v":4.999938027163852E-2},{"$f":"IFERROR(INDEX('Carbon Prices'!$D$10:$CP$15,1,MATCH(Calc_Option3!R$6,'Carbon Prices'!$D$9:$CP$9,0))/1000,0)","v":5.3914994389296957E-2},{"$f":"IFERROR(INDEX('Carbon Prices'!$D$10:$CP$15,1,MATCH(Calc_Option3!S$6,'Carbon Prices'!$D$9:$CP$9,0))/1000,0)","v":5.78306085069554E-2},{"$f":"IFERROR(INDEX('Carbon Prices'!$D$10:$CP$15,1,MATCH(Calc_Option3!T$6,'Carbon Prices'!$D$9:$CP$9,0))/1000,0)","v":6.1746222624613836E-2},{"$f":"IFERROR(INDEX('Carbon Prices'!$D$10:$CP$15,1,MATCH(Calc_Option3!U$6,'Carbon Prices'!$D$9:$CP$9,0))/1000,0)","v":6.5661836742272273E-2},{"$f":"IFERROR(INDEX('Carbon Prices'!$D$10:$CP$15,1,MATCH(Calc_Option3!V$6,'Carbon Prices'!$D$9:$CP$9,0))/1000,0)","v":6.9577450859930709E-2},{"$f":"IFERROR(INDEX('Carbon Prices'!$D$10:$CP$15,1,MATCH(Calc_Option3!W$6,'Carbon Prices'!$D$9:$CP$9,0))/1000,0)","v":7.3493064977589145E-2},{"$f":"IFERROR(INDEX('Carbon Prices'!$D$10:$CP$15,1,MATCH(Calc_Option3!X$6,'Carbon Prices'!$D$9:$CP$9,0))/1000,0)","v":7.7408679095247609E-2},{"$f":"IFERROR(INDEX('Carbon Prices'!$D$10:$CP$15,1,MATCH(Calc_Option3!Y$6,'Carbon Prices'!$D$9:$CP$9,0))/1000,0)","v":8.1324293212906046E-2},{"$f":"IFERROR(INDEX('Carbon Prices'!$D$10:$CP$15,1,MATCH(Calc_Option3!Z$6,'Carbon Prices'!$D$9:$CP$9,0))/1000,0)","v":8.5239907330564482E-2},{"$f":"IFERROR(INDEX('Carbon Prices'!$D$10:$CP$15,1,MATCH(Calc_Option3!AA$6,'Carbon Prices'!$D$9:$CP$9,0))/1000,0)","v":8.9155521448222919E-2},{"$f":"IFERROR(INDEX('Carbon Prices'!$D$10:$CP$15,1,MATCH(Calc_Option3!AB$6,'Carbon Prices'!$D$9:$CP$9,0))/1000,0)","v":9.3071135565881355E-2},{"$f":"IFERROR(INDEX('Carbon Prices'!$D$10:$CP$15,1,MATCH(Calc_Option3!AC$6,'Carbon Prices'!$D$9:$CP$9,0))/1000,0)","v":9.6986749683539791E-2},{"$f":"IFERROR(INDEX('Carbon Prices'!$D$10:$CP$15,1,MATCH(Calc_Option3!AD$6,'Carbon Prices'!$D$9:$CP$9,0))/1000,0)","v":0.10090236380119821},{"$f":"IFERROR(INDEX('Carbon Prices'!$D$10:$CP$15,1,MATCH(Calc_Option3!AE$6,'Carbon Prices'!$D$9:$CP$9,0))/1000,0)","v":0.10481797791885665},{"$f":"IFERROR(INDEX('Carbon Prices'!$D$10:$CP$15,1,MATCH(Calc_Option3!AF$6,'Carbon Prices'!$D$9:$CP$9,0))/1000,0)","v":0.1087335920365151},{"$f":"IFERROR(INDEX('Carbon Prices'!$D$10:$CP$15,1,MATCH(Calc_Option3!AG$6,'Carbon Prices'!$D$9:$CP$9,0))/1000,0)","v":0.11264920615417354},{"$f":"IFERROR(INDEX('Carbon Prices'!$D$10:$CP$15,1,MATCH(Calc_Option3!AH$6,'Carbon Prices'!$D$9:$CP$9,0))/1000,0)","v":0.11656482027183197},{"$f":"IFERROR(INDEX('Carbon Prices'!$D$10:$CP$15,1,MATCH(Calc_Option3!AI$6,'Carbon Prices'!$D$9:$CP$9,0))/1000,0)","v":0},{"$f":"IFERROR(INDEX('Carbon Prices'!$D$10:$CP$15,1,MATCH(Calc_Option3!AJ$6,'Carbon Prices'!$D$9:$CP$9,0))/1000,0)","v":0},{"$f":"IFERROR(INDEX('Carbon Prices'!$D$10:$CP$15,1,MATCH(Calc_Option3!AK$6,'Carbon Prices'!$D$9:$CP$9,0))/1000,0)","v":0},{"$f":"IFERROR(INDEX('Carbon Prices'!$D$10:$CP$15,1,MATCH(Calc_Option3!AL$6,'Carbon Prices'!$D$9:$CP$9,0))/1000,0)","v":0},{"$f":"IFERROR(INDEX('Carbon Prices'!$D$10:$CP$15,1,MATCH(Calc_Option3!AM$6,'Carbon Prices'!$D$9:$CP$9,0))/1000,0)","v":0},{"$f":"IFERROR(INDEX('Carbon Prices'!$D$10:$CP$15,1,MATCH(Calc_Option3!AN$6,'Carbon Prices'!$D$9:$CP$9,0))/1000,0)","v":0},{"$f":"IFERROR(INDEX('Carbon Prices'!$D$10:$CP$15,1,MATCH(Calc_Option3!AO$6,'Carbon Prices'!$D$9:$CP$9,0))/1000,0)","v":0},{"$f":"IFERROR(INDEX('Carbon Prices'!$D$10:$CP$15,1,MATCH(Calc_Option3!AP$6,'Carbon Prices'!$D$9:$CP$9,0))/1000,0)","v":0},{"$f":"IFERROR(INDEX('Carbon Prices'!$D$10:$CP$15,1,MATCH(Calc_Option3!AQ$6,'Carbon Prices'!$D$9:$CP$9,0))/1000,0)","v":0},{"$f":"IFERROR(INDEX('Carbon Prices'!$D$10:$CP$15,1,MATCH(Calc_Option3!AR$6,'Carbon Prices'!$D$9:$CP$9,0))/1000,0)","v":0},{"$f":"IFERROR(INDEX('Carbon Prices'!$D$10:$CP$15,1,MATCH(Calc_Option3!AS$6,'Carbon Prices'!$D$9:$CP$9,0))/1000,0)","v":0},{"$f":"IFERROR(INDEX('Carbon Prices'!$D$10:$CP$15,1,MATCH(Calc_Option3!AT$6,'Carbon Prices'!$D$9:$CP$9,0))/1000,0)","v":0},{"$f":"IFERROR(INDEX('Carbon Prices'!$D$10:$CP$15,1,MATCH(Calc_Option3!AU$6,'Carbon Prices'!$D$9:$CP$9,0))/1000,0)","v":0},{"$f":"IFERROR(INDEX('Carbon Prices'!$D$10:$CP$15,1,MATCH(Calc_Option3!AV$6,'Carbon Prices'!$D$9:$CP$9,0))/1000,0)","v":0},{"$f":"IFERROR(INDEX('Carbon Prices'!$D$10:$CP$15,1,MATCH(Calc_Option3!AW$6,'Carbon Prices'!$D$9:$CP$9,0))/1000,0)","v":0},{"$f":"IFERROR(INDEX('Carbon Prices'!$D$10:$CP$15,1,MATCH(Calc_Option3!AX$6,'Carbon Prices'!$D$9:$CP$9,0))/1000,0)","v":0},{"$f":"IFERROR(INDEX('Carbon Prices'!$D$10:$CP$15,1,MATCH(Calc_Option3!AY$6,'Carbon Prices'!$D$9:$CP$9,0))/1000,0)","v":0},{"$f":"IFERROR(INDEX('Carbon Prices'!$D$10:$CP$15,1,MATCH(Calc_Option3!AZ$6,'Carbon Prices'!$D$9:$CP$9,0))/1000,0)","v":0},{"$f":"IFERROR(INDEX('Carbon Prices'!$D$10:$CP$15,1,MATCH(Calc_Option3!BA$6,'Carbon Prices'!$D$9:$CP$9,0))/1000,0)","v":0},{"$f":"IFERROR(INDEX('Carbon Prices'!$D$10:$CP$15,1,MATCH(Calc_Option3!BB$6,'Carbon Prices'!$D$9:$CP$9,0))/1000,0)","v":0},{"$f":"IFERROR(INDEX('Carbon Prices'!$D$10:$CP$15,1,MATCH(Calc_Option3!BC$6,'Carbon Prices'!$D$9:$CP$9,0))/1000,0)","v":0},{"$f":"IFERROR(INDEX('Carbon Prices'!$D$10:$CP$15,1,MATCH(Calc_Option3!BD$6,'Carbon Prices'!$D$9:$CP$9,0))/1000,0)","v":0},{"$f":"IFERROR(INDEX('Carbon Prices'!$D$10:$CP$15,1,MATCH(Calc_Option3!BE$6,'Carbon Prices'!$D$9:$CP$9,0))/1000,0)","v":0},{"$f":"IFERROR(INDEX('Carbon Prices'!$D$10:$CP$15,1,MATCH(Calc_Option3!BF$6,'Carbon Prices'!$D$9:$CP$9,0))/1000,0)","v":0},{"$f":"IFERROR(INDEX('Carbon Prices'!$D$10:$CP$15,1,MATCH(Calc_Option3!BG$6,'Carbon Prices'!$D$9:$CP$9,0))/1000,0)","v":0},{"$f":"IFERROR(INDEX('Carbon Prices'!$D$10:$CP$15,1,MATCH(Calc_Option3!BH$6,'Carbon Prices'!$D$9:$CP$9,0))/1000,0)","v":0},{"$f":"IFERROR(INDEX('Carbon Prices'!$D$10:$CP$15,1,MATCH(Calc_Option3!BI$6,'Carbon Prices'!$D$9:$CP$9,0))/1000,0)","v":0},{"$f":"IFERROR(INDEX('Carbon Prices'!$D$10:$CP$15,1,MATCH(Calc_Option3!BJ$6,'Carbon Prices'!$D$9:$CP$9,0))/1000,0)","v":0},{"$f":"IFERROR(INDEX('Carbon Prices'!$D$10:$CP$15,1,MATCH(Calc_Option3!BK$6,'Carbon Prices'!$D$9:$CP$9,0))/1000,0)","v":0},{"$f":"IFERROR(INDEX('Carbon Prices'!$D$10:$CP$15,1,MATCH(Calc_Option3!BL$6,'Carbon Prices'!$D$9:$CP$9,0))/1000,0)","v":0},{"$f":"IFERROR(INDEX('Carbon Prices'!$D$10:$CP$15,1,MATCH(Calc_Option3!BM$6,'Carbon Prices'!$D$9:$CP$9,0))/1000,0)","v":0},{"$f":"IFERROR(INDEX('Carbon Prices'!$D$10:$CP$15,1,MATCH(Calc_Option3!BN$6,'Carbon Prices'!$D$9:$CP$9,0))/1000,0)","v":0},{"$f":"IFERROR(INDEX('Carbon Prices'!$D$10:$CP$15,1,MATCH(Calc_Option3!BO$6,'Carbon Prices'!$D$9:$CP$9,0))/1000,0)","v":0},{"$f":"IFERROR(INDEX('Carbon Prices'!$D$10:$CP$15,1,MATCH(Calc_Option3!BP$6,'Carbon Prices'!$D$9:$CP$9,0))/1000,0)","v":0},{"$f":"IFERROR(INDEX('Carbon Prices'!$D$10:$CP$15,1,MATCH(Calc_Option3!BQ$6,'Carbon Prices'!$D$9:$CP$9,0))/1000,0)","v":0},{"$f":"IFERROR(INDEX('Carbon Prices'!$D$10:$CP$15,1,MATCH(Calc_Option3!BR$6,'Carbon Prices'!$D$9:$CP$9,0))/1000,0)","v":0},{"$f":"IFERROR(INDEX('Carbon Prices'!$D$10:$CP$15,1,MATCH(Calc_Option3!BS$6,'Carbon Prices'!$D$9:$CP$9,0))/1000,0)","v":0},{"$f":"IFERROR(INDEX('Carbon Prices'!$D$10:$CP$15,1,MATCH(Calc_Option3!BT$6,'Carbon Prices'!$D$9:$CP$9,0))/1000,0)","v":0},{"$f":"IFERROR(INDEX('Carbon Prices'!$D$10:$CP$15,1,MATCH(Calc_Option3!BU$6,'Carbon Prices'!$D$9:$CP$9,0))/1000,0)","v":0},{"$f":"IFERROR(INDEX('Carbon Prices'!$D$10:$CP$15,1,MATCH(Calc_Option3!BV$6,'Carbon Prices'!$D$9:$CP$9,0))/1000,0)","v":0},{"$f":"IFERROR(INDEX('Carbon Prices'!$D$10:$CP$15,1,MATCH(Calc_Option3!BW$6,'Carbon Prices'!$D$9:$CP$9,0))/1000,0)","v":0},{"$f":"IFERROR(INDEX('Carbon Prices'!$D$10:$CP$15,1,MATCH(Calc_Option3!BX$6,'Carbon Prices'!$D$9:$CP$9,0))/1000,0)","v":0},{"$f":"IFERROR(INDEX('Carbon Prices'!$D$10:$CP$15,1,MATCH(Calc_Option3!BY$6,'Carbon Prices'!$D$9:$CP$9,0))/1000,0)","v":0},{"$f":"IFERROR(INDEX('Carbon Prices'!$D$10:$CP$15,1,MATCH(Calc_Option3!BZ$6,'Carbon Prices'!$D$9:$CP$9,0))/1000,0)","v":0},{"$f":"IFERROR(INDEX('Carbon Prices'!$D$10:$CP$15,1,MATCH(Calc_Option3!CA$6,'Carbon Prices'!$D$9:$CP$9,0))/1000,0)","v":0},{"$f":"IFERROR(INDEX('Carbon Prices'!$D$10:$CP$15,1,MATCH(Calc_Option3!CB$6,'Carbon Prices'!$D$9:$CP$9,0))/1000,0)","v":0},{"$f":"IFERROR(INDEX('Carbon Prices'!$D$10:$CP$15,1,MATCH(Calc_Option3!CC$6,'Carbon Prices'!$D$9:$CP$9,0))/1000,0)","v":0},{"$f":"IFERROR(INDEX('Carbon Prices'!$D$10:$CP$15,1,MATCH(Calc_Option3!CD$6,'Carbon Prices'!$D$9:$CP$9,0))/1000,0)","v":0},{"$f":"IFERROR(INDEX('Carbon Prices'!$D$10:$CP$15,1,MATCH(Calc_Option3!CE$6,'Carbon Prices'!$D$9:$CP$9,0))/1000,0)","v":0},{"$f":"IFERROR(INDEX('Carbon Prices'!$D$10:$CP$15,1,MATCH(Calc_Option3!CF$6,'Carbon Prices'!$D$9:$CP$9,0))/1000,0)","v":0},{"$f":"IFERROR(INDEX('Carbon Prices'!$D$10:$CP$15,1,MATCH(Calc_Option3!CG$6,'Carbon Prices'!$D$9:$CP$9,0))/1000,0)","v":0},{"$f":"IFERROR(INDEX('Carbon Prices'!$D$10:$CP$15,1,MATCH(Calc_Option3!CH$6,'Carbon Prices'!$D$9:$CP$9,0))/1000,0)","v":0},{"$f":"IFERROR(INDEX('Carbon Prices'!$D$10:$CP$15,1,MATCH(Calc_Option3!CI$6,'Carbon Prices'!$D$9:$CP$9,0))/1000,0)","v":0},{"$f":"IFERROR(INDEX('Carbon Prices'!$D$10:$CP$15,1,MATCH(Calc_Option3!CJ$6,'Carbon Prices'!$D$9:$CP$9,0))/1000,0)","v":0},{"$f":"IFERROR(INDEX('Carbon Prices'!$D$10:$CP$15,1,MATCH(Calc_Option3!CK$6,'Carbon Prices'!$D$9:$CP$9,0))/1000,0)","v":0},{"$f":"IFERROR(INDEX('Carbon Prices'!$D$10:$CP$15,1,MATCH(Calc_Option3!CL$6,'Carbon Prices'!$D$9:$CP$9,0))/1000,0)","v":0},{"$f":"IFERROR(INDEX('Carbon Prices'!$D$10:$CP$15,1,MATCH(Calc_Option3!CM$6,'Carbon Prices'!$D$9:$CP$9,0))/1000,0)","v":0},{"$f":"IFERROR(INDEX('Carbon Prices'!$D$10:$CP$15,1,MATCH(Calc_Option3!CN$6,'Carbon Prices'!$D$9:$CP$9,0))/1000,0)","v":0},{"$f":"IFERROR(INDEX('Carbon Prices'!$D$10:$CP$15,1,MATCH(Calc_Option3!CO$6,'Carbon Prices'!$D$9:$CP$9,0))/1000,0)","v":0},{"$f":"IFERROR(INDEX('Carbon Prices'!$D$10:$CP$15,1,MATCH(Calc_Option3!CP$6,'Carbon Prices'!$D$9:$CP$9,0))/1000,0)","v":0},{"$f":"IFERROR(INDEX('Carbon Prices'!$D$10:$CP$15,1,MATCH(Calc_Option3!CQ$6,'Carbon Prices'!$D$9:$CP$9,0))/1000,0)","v":0},{"$f":"IFERROR(INDEX('Carbon Prices'!$D$10:$CP$15,1,MATCH(Calc_Option3!CR$6,'Carbon Prices'!$D$9:$CP$9,0))/1000,0)","v":0},{"$f":"IFERROR(INDEX('Carbon Prices'!$D$10:$CP$15,1,MATCH(Calc_Option3!CS$6,'Carbon Prices'!$D$9:$CP$9,0))/1000,0)","v":0},{"$f":"IFERROR(INDEX('Carbon Prices'!$D$10:$CP$15,1,MATCH(Calc_Option3!CT$6,'Carbon Prices'!$D$9:$CP$9,0))/1000,0)","v":0},{"$f":"IFERROR(INDEX('Carbon Prices'!$D$10:$CP$15,1,MATCH(Calc_Option3!CU$6,'Carbon Prices'!$D$9:$CP$9,0))/1000,0)","v":0},{"$f":"IFERROR(INDEX('Carbon Prices'!$D$10:$CP$15,1,MATCH(Calc_Option3!CV$6,'Carbon Prices'!$D$9:$CP$9,0))/1000,0)","v":0},{"$f":"IFERROR(INDEX('Carbon Prices'!$D$10:$CP$15,1,MATCH(Calc_Option3!CW$6,'Carbon Prices'!$D$9:$CP$9,0))/1000,0)","v":0},{"$f":"IFERROR(INDEX('Carbon Prices'!$D$10:$CP$15,1,MATCH(Calc_Option3!CX$6,'Carbon Prices'!$D$9:$CP$9,0))/1000,0)","v":0},{"$f":"IFERROR(INDEX('Carbon Prices'!$D$10:$CP$15,1,MATCH(Calc_Option3!CY$6,'Carbon Prices'!$D$9:$CP$9,0))/1000,0)","v":0}]
[null,"Total NON-TRADED","£000's",{"$f":"IFERROR(INDEX('Carbon Prices'!$D$10:$CP$15,4,MATCH(Calc_Option3!D$6,'Carbon Prices'!$D$9:$CP$9,0))/1000,0)","v":3.560998060773117E-2},{"$f":"IFERROR(INDEX('Carbon Prices'!$D$10:$CP$15,4,MATCH(Calc_Option3!E$6,'Carbon Prices'!$D$9:$CP$9,0))/1000,0)","v":3.6144130316847128E-2},{"$f":"IFERROR(INDEX('Carbon Prices'!$D$10:$CP$15,4,MATCH(Calc_Option3!F$6,'Carbon Prices'!$D$9:$CP$9,0))/1000,0)","v":3.6746532488794573E-2},{"$f":"IFERROR(INDEX('Carbon Prices'!$D$10:$CP$15,4,MATCH(Calc_Option3!G$6,'Carbon Prices'!$D$9:$CP$9,0))/1000,0)","v":3.7348934660742031E-2},{"$f":"IFERROR(INDEX('Carbon Prices'!$D$10:$CP$15,4,MATCH(Calc_Option3!H$6,'Carbon Prices'!$D$9:$CP$9,0))/1000,0)","v":3.7951336832689482E-2},{"$f":"IFERROR(INDEX('Carbon Prices'!$D$10:$CP$15,4,MATCH(Calc_Option3!I$6,'Carbon Prices'!$D$9:$CP$9,0))/1000,0)","v":3.8553739004636933E-2},{"$f":"IFERROR(INDEX('Carbon Prices'!$D$10:$CP$15,4,MATCH(Calc_Option3!J$6,'Carbon Prices'!$D$9:$CP$9,0))/1000,0)","v":3.9156141176584384E-2},{"$f":"IFERROR(INDEX('Carbon Prices'!$D$10:$CP$15,4,MATCH(Calc_Option3!K$6,'Carbon Prices'!$D$9:$CP$9,0))/1000,0)","v":3.9758543348531836E-2},{"$f":"IFERROR(INDEX('Carbon Prices'!$D$10:$CP$15,4,MATCH(Calc_Option3!L$6,'Carbon Prices'!$D$9:$CP$9,0))/1000,0)","v":4.0360945520479294E-2},{"$f":"IFERROR(INDEX('Carbon Prices'!$D$10:$CP$15,4,MATCH(Calc_Option3!M$6,'Carbon Prices'!$D$9:$CP$9,0))/1000,0)","v":4.0963347692426738E-2},{"$f":"IFERROR(INDEX('Carbon Prices'!$D$10:$CP$15,4,MATCH(Calc_Option3!N$6,'Carbon Prices'!$D$9:$CP$9,0))/1000,0)","v":4.1565749864374189E-2},{"$f":"IFERROR(INDEX('Carbon Prices'!$D$10:$CP$15,4,MATCH(Calc_Option3!O$6,'Carbon Prices'!$D$9:$CP$9,0))/1000,0)","v":4.2168152036321647E-2},{"$f":"IFERROR(INDEX('Carbon Prices'!$D$10:$CP$15,4,MATCH(Calc_Option3!P$6,'Carbon Prices'!$D$9:$CP$9,0))/1000,0)","v":4.6083766153980084E-2},{"$f":"IFERROR(INDEX('Carbon Prices'!$D$10:$CP$15,4,MATCH(Calc_Option3!Q$6,'Carbon Prices'!$D$9:$CP$9,0))/1000,0)","v":4.999938027163852E-2},{"$f":"IFERROR(INDEX('Carbon Prices'!$D$10:$CP$15,4,MATCH(Calc_Option3!R$6,'Carbon Prices'!$D$9:$CP$9,0))/1000,0)","v":5.3914994389296957E-2},{"$f":"IFERROR(INDEX('Carbon Prices'!$D$10:$CP$15,4,MATCH(Calc_Option3!S$6,'Carbon Prices'!$D$9:$CP$9,0))/1000,0)","v":5.78306085069554E-2},{"$f":"IFERROR(INDEX('Carbon Prices'!$D$10:$CP$15,4,MATCH(Calc_Option3!T$6,'Carbon Prices'!$D$9:$CP$9,0))/1000,0)","v":6.1746222624613836E-2},{"$f":"IFERROR(INDEX('Carbon Prices'!$D$10:$CP$15,4,MATCH(Calc_Option3!U$6,'Carbon Prices'!$D$9:$CP$9,0))/1000,0)","v":6.5661836742272273E-2},{"$f":"IFERROR(INDEX('Carbon Prices'!$D$10:$CP$15,4,MATCH(Calc_Option3!V$6,'Carbon Prices'!$D$9:$CP$9,0))/1000,0)","v":6.9577450859930709E-2},{"$f":"IFERROR(INDEX('Carbon Prices'!$D$10:$CP$15,4,MATCH(Calc_Option3!W$6,'Carbon Prices'!$D$9:$CP$9,0))/1000,0)","v":7.3493064977589145E-2},{"$f":"IFERROR(INDEX('Carbon Prices'!$D$10:$CP$15,4,MATCH(Calc_Option3!X$6,'Carbon Prices'!$D$9:$CP$9,0))/1000,0)","v":7.7408679095247609E-2},{"$f":"IFERROR(INDEX('Carbon Prices'!$D$10:$CP$15,4,MATCH(Calc_Option3!Y$6,'Carbon Prices'!$D$9:$CP$9,0))/1000,0)","v":8.1324293212906046E-2},{"$f":"IFERROR(INDEX('Carbon Prices'!$D$10:$CP$15,4,MATCH(Calc_Option3!Z$6,'Carbon Prices'!$D$9:$CP$9,0))/1000,0)","v":8.5239907330564482E-2},{"$f":"IFERROR(INDEX('Carbon Prices'!$D$10:$CP$15,4,MATCH(Calc_Option3!AA$6,'Carbon Prices'!$D$9:$CP$9,0))/1000,0)","v":8.9155521448222919E-2},{"$f":"IFERROR(INDEX('Carbon Prices'!$D$10:$CP$15,4,MATCH(Calc_Option3!AB$6,'Carbon Prices'!$D$9:$CP$9,0))/1000,0)","v":9.3071135565881355E-2},{"$f":"IFERROR(INDEX('Carbon Prices'!$D$10:$CP$15,4,MATCH(Calc_Option3!AC$6,'Carbon Prices'!$D$9:$CP$9,0))/1000,0)","v":9.6986749683539791E-2},{"$f":"IFERROR(INDEX('Carbon Prices'!$D$10:$CP$15,4,MATCH(Calc_Option3!AD$6,'Carbon Prices'!$D$9:$CP$9,0))/1000,0)","v":0.10090236380119821},{"$f":"IFERROR(INDEX('Carbon Prices'!$D$10:$CP$15,4,MATCH(Calc_Option3!AE$6,'Carbon Prices'!$D$9:$CP$9,0))/1000,0)","v":0.10481797791885665},{"$f":"IFERROR(INDEX('Carbon Prices'!$D$10:$CP$15,4,MATCH(Calc_Option3!AF$6,'Carbon Prices'!$D$9:$CP$9,0))/1000,0)","v":0.1087335920365151},{"$f":"IFERROR(INDEX('Carbon Prices'!$D$10:$CP$15,4,MATCH(Calc_Option3!AG$6,'Carbon Prices'!$D$9:$CP$9,0))/1000,0)","v":0.11264920615417354},{"$f":"IFERROR(INDEX('Carbon Prices'!$D$10:$CP$15,4,MATCH(Calc_Option3!AH$6,'Carbon Prices'!$D$9:$CP$9,0))/1000,0)","v":0.11656482027183197},{"$f":"IFERROR(INDEX('Carbon Prices'!$D$10:$CP$15,4,MATCH(Calc_Option3!AI$6,'Carbon Prices'!$D$9:$CP$9,0))/1000,0)","v":0},{"$f":"IFERROR(INDEX('Carbon Prices'!$D$10:$CP$15,4,MATCH(Calc_Option3!AJ$6,'Carbon Prices'!$D$9:$CP$9,0))/1000,0)","v":0},{"$f":"IFERROR(INDEX('Carbon Prices'!$D$10:$CP$15,4,MATCH(Calc_Option3!AK$6,'Carbon Prices'!$D$9:$CP$9,0))/1000,0)","v":0},{"$f":"IFERROR(INDEX('Carbon Prices'!$D$10:$CP$15,4,MATCH(Calc_Option3!AL$6,'Carbon Prices'!$D$9:$CP$9,0))/1000,0)","v":0},{"$f":"IFERROR(INDEX('Carbon Prices'!$D$10:$CP$15,4,MATCH(Calc_Option3!AM$6,'Carbon Prices'!$D$9:$CP$9,0))/1000,0)","v":0},{"$f":"IFERROR(INDEX('Carbon Prices'!$D$10:$CP$15,4,MATCH(Calc_Option3!AN$6,'Carbon Prices'!$D$9:$CP$9,0))/1000,0)","v":0},{"$f":"IFERROR(INDEX('Carbon Prices'!$D$10:$CP$15,4,MATCH(Calc_Option3!AO$6,'Carbon Prices'!$D$9:$CP$9,0))/1000,0)","v":0},{"$f":"IFERROR(INDEX('Carbon Prices'!$D$10:$CP$15,4,MATCH(Calc_Option3!AP$6,'Carbon Prices'!$D$9:$CP$9,0))/1000,0)","v":0},{"$f":"IFERROR(INDEX('Carbon Prices'!$D$10:$CP$15,4,MATCH(Calc_Option3!AQ$6,'Carbon Prices'!$D$9:$CP$9,0))/1000,0)","v":0},{"$f":"IFERROR(INDEX('Carbon Prices'!$D$10:$CP$15,4,MATCH(Calc_Option3!AR$6,'Carbon Prices'!$D$9:$CP$9,0))/1000,0)","v":0},{"$f":"IFERROR(INDEX('Carbon Prices'!$D$10:$CP$15,4,MATCH(Calc_Option3!AS$6,'Carbon Prices'!$D$9:$CP$9,0))/1000,0)","v":0},{"$f":"IFERROR(INDEX('Carbon Prices'!$D$10:$CP$15,4,MATCH(Calc_Option3!AT$6,'Carbon Prices'!$D$9:$CP$9,0))/1000,0)","v":0},{"$f":"IFERROR(INDEX('Carbon Prices'!$D$10:$CP$15,4,MATCH(Calc_Option3!AU$6,'Carbon Prices'!$D$9:$CP$9,0))/1000,0)","v":0},{"$f":"IFERROR(INDEX('Carbon Prices'!$D$10:$CP$15,4,MATCH(Calc_Option3!AV$6,'Carbon Prices'!$D$9:$CP$9,0))/1000,0)","v":0},{"$f":"IFERROR(INDEX('Carbon Prices'!$D$10:$CP$15,4,MATCH(Calc_Option3!AW$6,'Carbon Prices'!$D$9:$CP$9,0))/1000,0)","v":0},{"$f":"IFERROR(INDEX('Carbon Prices'!$D$10:$CP$15,4,MATCH(Calc_Option3!AX$6,'Carbon Prices'!$D$9:$CP$9,0))/1000,0)","v":0},{"$f":"IFERROR(INDEX('Carbon Prices'!$D$10:$CP$15,4,MATCH(Calc_Option3!AY$6,'Carbon Prices'!$D$9:$CP$9,0))/1000,0)","v":0},{"$f":"IFERROR(INDEX('Carbon Prices'!$D$10:$CP$15,4,MATCH(Calc_Option3!AZ$6,'Carbon Prices'!$D$9:$CP$9,0))/1000,0)","v":0},{"$f":"IFERROR(INDEX('Carbon Prices'!$D$10:$CP$15,4,MATCH(Calc_Option3!BA$6,'Carbon Prices'!$D$9:$CP$9,0))/1000,0)","v":0},{"$f":"IFERROR(INDEX('Carbon Prices'!$D$10:$CP$15,4,MATCH(Calc_Option3!BB$6,'Carbon Prices'!$D$9:$CP$9,0))/1000,0)","v":0},{"$f":"IFERROR(INDEX('Carbon Prices'!$D$10:$CP$15,4,MATCH(Calc_Option3!BC$6,'Carbon Prices'!$D$9:$CP$9,0))/1000,0)","v":0},{"$f":"IFERROR(INDEX('Carbon Prices'!$D$10:$CP$15,4,MATCH(Calc_Option3!BD$6,'Carbon Prices'!$D$9:$CP$9,0))/1000,0)","v":0},{"$f":"IFERROR(INDEX('Carbon Prices'!$D$10:$CP$15,4,MATCH(Calc_Option3!BE$6,'Carbon Prices'!$D$9:$CP$9,0))/1000,0)","v":0},{"$f":"IFERROR(INDEX('Carbon Prices'!$D$10:$CP$15,4,MATCH(Calc_Option3!BF$6,'Carbon Prices'!$D$9:$CP$9,0))/1000,0)","v":0},{"$f":"IFERROR(INDEX('Carbon Prices'!$D$10:$CP$15,4,MATCH(Calc_Option3!BG$6,'Carbon Prices'!$D$9:$CP$9,0))/1000,0)","v":0},{"$f":"IFERROR(INDEX('Carbon Prices'!$D$10:$CP$15,4,MATCH(Calc_Option3!BH$6,'Carbon Prices'!$D$9:$CP$9,0))/1000,0)","v":0},{"$f":"IFERROR(INDEX('Carbon Prices'!$D$10:$CP$15,4,MATCH(Calc_Option3!BI$6,'Carbon Prices'!$D$9:$CP$9,0))/1000,0)","v":0},{"$f":"IFERROR(INDEX('Carbon Prices'!$D$10:$CP$15,4,MATCH(Calc_Option3!BJ$6,'Carbon Prices'!$D$9:$CP$9,0))/1000,0)","v":0},{"$f":"IFERROR(INDEX('Carbon Prices'!$D$10:$CP$15,4,MATCH(Calc_Option3!BK$6,'Carbon Prices'!$D$9:$CP$9,0))/1000,0)","v":0},{"$f":"IFERROR(INDEX('Carbon Prices'!$D$10:$CP$15,4,MATCH(Calc_Option3!BL$6,'Carbon Prices'!$D$9:$CP$9,0))/1000,0)","v":0},{"$f":"IFERROR(INDEX('Carbon Prices'!$D$10:$CP$15,4,MATCH(Calc_Option3!BM$6,'Carbon Prices'!$D$9:$CP$9,0))/1000,0)","v":0},{"$f":"IFERROR(INDEX('Carbon Prices'!$D$10:$CP$15,4,MATCH(Calc_Option3!BN$6,'Carbon Prices'!$D$9:$CP$9,0))/1000,0)","v":0},{"$f":"IFERROR(INDEX('Carbon Prices'!$D$10:$CP$15,4,MATCH(Calc_Option3!BO$6,'Carbon Prices'!$D$9:$CP$9,0))/1000,0)","v":0},{"$f":"IFERROR(INDEX('Carbon Prices'!$D$10:$CP$15,4,MATCH(Calc_Option3!BP$6,'Carbon Prices'!$D$9:$CP$9,0))/1000,0)","v":0},{"$f":"IFERROR(INDEX('Carbon Prices'!$D$10:$CP$15,4,MATCH(Calc_Option3!BQ$6,'Carbon Prices'!$D$9:$CP$9,0))/1000,0)","v":0},{"$f":"IFERROR(INDEX('Carbon Prices'!$D$10:$CP$15,4,MATCH(Calc_Option3!BR$6,'Carbon Prices'!$D$9:$CP$9,0))/1000,0)","v":0},{"$f":"IFERROR(INDEX('Carbon Prices'!$D$10:$CP$15,4,MATCH(Calc_Option3!BS$6,'Carbon Prices'!$D$9:$CP$9,0))/1000,0)","v":0},{"$f":"IFERROR(INDEX('Carbon Prices'!$D$10:$CP$15,4,MATCH(Calc_Option3!BT$6,'Carbon Prices'!$D$9:$CP$9,0))/1000,0)","v":0},{"$f":"IFERROR(INDEX('Carbon Prices'!$D$10:$CP$15,4,MATCH(Calc_Option3!BU$6,'Carbon Prices'!$D$9:$CP$9,0))/1000,0)","v":0},{"$f":"IFERROR(INDEX('Carbon Prices'!$D$10:$CP$15,4,MATCH(Calc_Option3!BV$6,'Carbon Prices'!$D$9:$CP$9,0))/1000,0)","v":0},{"$f":"IFERROR(INDEX('Carbon Prices'!$D$10:$CP$15,4,MATCH(Calc_Option3!BW$6,'Carbon Prices'!$D$9:$CP$9,0))/1000,0)","v":0},{"$f":"IFERROR(INDEX('Carbon Prices'!$D$10:$CP$15,4,MATCH(Calc_Option3!BX$6,'Carbon Prices'!$D$9:$CP$9,0))/1000,0)","v":0},{"$f":"IFERROR(INDEX('Carbon Prices'!$D$10:$CP$15,4,MATCH(Calc_Option3!BY$6,'Carbon Prices'!$D$9:$CP$9,0))/1000,0)","v":0},{"$f":"IFERROR(INDEX('Carbon Prices'!$D$10:$CP$15,4,MATCH(Calc_Option3!BZ$6,'Carbon Prices'!$D$9:$CP$9,0))/1000,0)","v":0},{"$f":"IFERROR(INDEX('Carbon Prices'!$D$10:$CP$15,4,MATCH(Calc_Option3!CA$6,'Carbon Prices'!$D$9:$CP$9,0))/1000,0)","v":0},{"$f":"IFERROR(INDEX('Carbon Prices'!$D$10:$CP$15,4,MATCH(Calc_Option3!CB$6,'Carbon Prices'!$D$9:$CP$9,0))/1000,0)","v":0},{"$f":"IFERROR(INDEX('Carbon Prices'!$D$10:$CP$15,4,MATCH(Calc_Option3!CC$6,'Carbon Prices'!$D$9:$CP$9,0))/1000,0)","v":0},{"$f":"IFERROR(INDEX('Carbon Prices'!$D$10:$CP$15,4,MATCH(Calc_Option3!CD$6,'Carbon Prices'!$D$9:$CP$9,0))/1000,0)","v":0},{"$f":"IFERROR(INDEX('Carbon Prices'!$D$10:$CP$15,4,MATCH(Calc_Option3!CE$6,'Carbon Prices'!$D$9:$CP$9,0))/1000,0)","v":0},{"$f":"IFERROR(INDEX('Carbon Prices'!$D$10:$CP$15,4,MATCH(Calc_Option3!CF$6,'Carbon Prices'!$D$9:$CP$9,0))/1000,0)","v":0},{"$f":"IFERROR(INDEX('Carbon Prices'!$D$10:$CP$15,4,MATCH(Calc_Option3!CG$6,'Carbon Prices'!$D$9:$CP$9,0))/1000,0)","v":0},{"$f":"IFERROR(INDEX('Carbon Prices'!$D$10:$CP$15,4,MATCH(Calc_Option3!CH$6,'Carbon Prices'!$D$9:$CP$9,0))/1000,0)","v":0},{"$f":"IFERROR(INDEX('Carbon Prices'!$D$10:$CP$15,4,MATCH(Calc_Option3!CI$6,'Carbon Prices'!$D$9:$CP$9,0))/1000,0)","v":0},{"$f":"IFERROR(INDEX('Carbon Prices'!$D$10:$CP$15,4,MATCH(Calc_Option3!CJ$6,'Carbon Prices'!$D$9:$CP$9,0))/1000,0)","v":0},{"$f":"IFERROR(INDEX('Carbon Prices'!$D$10:$CP$15,4,MATCH(Calc_Option3!CK$6,'Carbon Prices'!$D$9:$CP$9,0))/1000,0)","v":0},{"$f":"IFERROR(INDEX('Carbon Prices'!$D$10:$CP$15,4,MATCH(Calc_Option3!CL$6,'Carbon Prices'!$D$9:$CP$9,0))/1000,0)","v":0},{"$f":"IFERROR(INDEX('Carbon Prices'!$D$10:$CP$15,4,MATCH(Calc_Option3!CM$6,'Carbon Prices'!$D$9:$CP$9,0))/1000,0)","v":0},{"$f":"IFERROR(INDEX('Carbon Prices'!$D$10:$CP$15,4,MATCH(Calc_Option3!CN$6,'Carbon Prices'!$D$9:$CP$9,0))/1000,0)","v":0},{"$f":"IFERROR(INDEX('Carbon Prices'!$D$10:$CP$15,4,MATCH(Calc_Option3!CO$6,'Carbon Prices'!$D$9:$CP$9,0))/1000,0)","v":0},{"$f":"IFERROR(INDEX('Carbon Prices'!$D$10:$CP$15,4,MATCH(Calc_Option3!CP$6,'Carbon Prices'!$D$9:$CP$9,0))/1000,0)","v":0},{"$f":"IFERROR(INDEX('Carbon Prices'!$D$10:$CP$15,4,MATCH(Calc_Option3!CQ$6,'Carbon Prices'!$D$9:$CP$9,0))/1000,0)","v":0},{"$f":"IFERROR(INDEX('Carbon Prices'!$D$10:$CP$15,4,MATCH(Calc_Option3!CR$6,'Carbon Prices'!$D$9:$CP$9,0))/1000,0)","v":0},{"$f":"IFERROR(INDEX('Carbon Prices'!$D$10:$CP$15,4,MATCH(Calc_Option3!CS$6,'Carbon Prices'!$D$9:$CP$9,0))/1000,0)","v":0},{"$f":"IFERROR(INDEX('Carbon Prices'!$D$10:$CP$15,4,MATCH(Calc_Option3!CT$6,'Carbon Prices'!$D$9:$CP$9,0))/1000,0)","v":0},{"$f":"IFERROR(INDEX('Carbon Prices'!$D$10:$CP$15,4,MATCH(Calc_Option3!CU$6,'Carbon Prices'!$D$9:$CP$9,0))/1000,0)","v":0},{"$f":"IFERROR(INDEX('Carbon Prices'!$D$10:$CP$15,4,MATCH(Calc_Option3!CV$6,'Carbon Prices'!$D$9:$CP$9,0))/1000,0)","v":0},{"$f":"IFERROR(INDEX('Carbon Prices'!$D$10:$CP$15,4,MATCH(Calc_Option3!CW$6,'Carbon Prices'!$D$9:$CP$9,0))/1000,0)","v":0},{"$f":"IFERROR(INDEX('Carbon Prices'!$D$10:$CP$15,4,MATCH(Calc_Option3!CX$6,'Carbon Prices'!$D$9:$CP$9,0))/1000,0)","v":0},{"$f":"IFERROR(INDEX('Carbon Prices'!$D$10:$CP$15,4,MATCH(Calc_Option3!CY$6,'Carbon Prices'!$D$9:$CP$9,0))/1000,0)","v":0}]
[null,"Discounted total","£000's",{"$f":"(D118*D120)+(D119*D121)*D$7","v":0},{"$f":"(E118*E120)+(E119*E121)*E$7","v":0},406.402298194624,812.20417658246163,1216.7474855645585,1622.9269163939357,2027.6765699113573,2431.2587068374119,0,0,0,0,0,0,0,0,0,0,0,0,0,0,0,0,0,0,0,0,0,0,0,0,0,0,0,0,0,0,0,0,0,0,0,0,0,0,0,0,0,0,0,0,0,0,0,0,0,0,0,0,0,0,0,0,0,{"$f":"(BQ118*BQ120)+(BQ119*BQ121)*BQ$7","v":0},0,0,0,0,0,0,0,0,0,0,0,0,0,0,0,0,0,0,0,0,0,0,0,0,0,0,0,0,0,0,0,0,0,0]
[]
[]
[null,"High values"]
[]
[null,"Energy Consumption"]
[null,"Electricity","£000's",{"$f":"IFERROR('Data Input - Option 3'!H84*INDEX('Energy Prices'!$F$26:$CR$31,MATCH($B128,'Energy Prices'!$C$26:$C$31,0),MATCH(Calc_Option3!D$6,'Energy Prices'!$F$11:$CR$11,0))/100000,0)","v":510.4472426746147},{"$f":"IFERROR('Data Input - Option 3'!I84*INDEX('Energy Prices'!$F$26:$CR$31,MATCH($B128,'Energy Prices'!$C$26:$C$31,0),MATCH(Calc_Option3!E$6,'Energy Prices'!$F$11:$CR$11,0))/100000,0)","v":521.90154191402712},{"$f":"IFERROR('Data Input - Option 3'!J84*INDEX('Energy Prices'!$F$26:$CR$31,MATCH($B128,'Energy Prices'!$C$26:$C$31,0),MATCH(Calc_Option3!F$6,'Energy Prices'!$F$11:$CR$11,0))/100000,0)","v":567.55914390054477},{"$f":"IFERROR('Data Input - Option 3'!K84*INDEX('Energy Prices'!$F$26:$CR$31,MATCH($B128,'Energy Prices'!$C$26:$C$31,0),MATCH(Calc_Option3!G$6,'Energy Prices'!$F$11:$CR$11,0))/100000,0)","v":566.26766982012589},{"$f":"IFERROR('Data Input - Option 3'!L84*INDEX('Energy Prices'!$F$26:$CR$31,MATCH($B128,'Energy Prices'!$C$26:$C$31,0),MATCH(Calc_Option3!H$6,'Energy Prices'!$F$11:$CR$11,0))/100000,0)","v":588.7100968226282},{"$f":"IFERROR('Data Input - Option 3'!M84*INDEX('Energy Prices'!$F$26:$CR$31,MATCH($B128,'Energy Prices'!$C$26:$C$31,0),MATCH(Calc_Option3!I$6,'Energy Prices'!$F$11:$CR$11,0))/100000,0)","v":618.69761981242652},{"$f":"IFERROR('Data Input - Option 3'!N84*INDEX('Energy Prices'!$F$26:$CR$31,MATCH($B128,'Energy Prices'!$C$26:$C$31,0),MATCH(Calc_Option3!J$6,'Energy Prices'!$F$11:$CR$11,0))/100000,0)","v":642.5681104029253},{"$f":"IFERROR('Data Input - Option 3'!O84*INDEX('Energy Prices'!$F$26:$CR$31,MATCH($B128,'Energy Prices'!$C$26:$C$31,0),MATCH(Calc_Option3!K$6,'Energy Prices'!$F$11:$CR$11,0))/100000,0)","v":628.25817918514724},{"$f":"IFERROR('Data Input - Option 3'!P84*INDEX('Energy Prices'!$F$26:$CR$31,MATCH($B128,'Energy Prices'!$C$26:$C$31,0),MATCH(Calc_Option3!L$6,'Energy Prices'!$F$11:$CR$11,0))/100000,0)","v":0},{"$f":"IFERROR('Data Input - Option 3'!Q84*INDEX('Energy Prices'!$F$26:$CR$31,MATCH($B128,'Energy Prices'!$C$26:$C$31,0),MATCH(Calc_Option3!M$6,'Energy Prices'!$F$11:$CR$11,0))/100000,0)","v":0},{"$f":"IFERROR('Data Input - Option 3'!R84*INDEX('Energy Prices'!$F$26:$CR$31,MATCH($B128,'Energy Prices'!$C$26:$C$31,0),MATCH(Calc_Option3!N$6,'Energy Prices'!$F$11:$CR$11,0))/100000,0)","v":0},{"$f":"IFERROR('Data Input - Option 3'!S84*INDEX('Energy Prices'!$F$26:$CR$31,MATCH($B128,'Energy Prices'!$C$26:$C$31,0),MATCH(Calc_Option3!O$6,'Energy Prices'!$F$11:$CR$11,0))/100000,0)","v":0},{"$f":"IFERROR('Data Input - Option 3'!T84*INDEX('Energy Prices'!$F$26:$CR$31,MATCH($B128,'Energy Prices'!$C$26:$C$31,0),MATCH(Calc_Option3!P$6,'Energy Prices'!$F$11:$CR$11,0))/100000,0)","v":0},{"$f":"IFERROR('Data Input - Option 3'!U84*INDEX('Energy Prices'!$F$26:$CR$31,MATCH($B128,'Energy Prices'!$C$26:$C$31,0),MATCH(Calc_Option3!Q$6,'Energy Prices'!$F$11:$CR$11,0))/100000,0)","v":0},{"$f":"IFERROR('Data Input - Option 3'!V84*INDEX('Energy Prices'!$F$26:$CR$31,MATCH($B128,'Energy Prices'!$C$26:$C$31,0),MATCH(Calc_Option3!R$6,'Energy Prices'!$F$11:$CR$11,0))/100000,0)","v":0},{"$f":"IFERROR('Data Input - Option 3'!W84*INDEX('Energy Prices'!$F$26:$CR$31,MATCH($B128,'Energy Prices'!$C$26:$C$31,0),MATCH(Calc_Option3!S$6,'Energy Prices'!$F$11:$CR$11,0))/100000,0)","v":0},{"$f":"IFERROR('Data Input - Option 3'!X84*INDEX('Energy Prices'!$F$26:$CR$31,MATCH($B128,'Energy Prices'!$C$26:$C$31,0),MATCH(Calc_Option3!T$6,'Energy Prices'!$F$11:$CR$11,0))/100000,0)","v":0},{"$f":"IFERROR('Data Input - Option 3'!Y84*INDEX('Energy Prices'!$F$26:$CR$31,MATCH($B128,'Energy Prices'!$C$26:$C$31,0),MATCH(Calc_Option3!U$6,'Energy Prices'!$F$11:$CR$11,0))/100000,0)","v":0},{"$f":"IFERROR('Data Input - Option 3'!Z84*INDEX('Energy Prices'!$F$26:$CR$31,MATCH($B128,'Energy Prices'!$C$26:$C$31,0),MATCH(Calc_Option3!V$6,'Energy Prices'!$F$11:$CR$11,0))/100000,0)","v":0},{"$f":"IFERROR('Data Input - Option 3'!AA84*INDEX('Energy Prices'!$F$26:$CR$31,MATCH($B128,'Energy Prices'!$C$26:$C$31,0),MATCH(Calc_Option3!W$6,'Energy Prices'!$F$11:$CR$11,0))/100000,0)","v":0},{"$f":"IFERROR('Data Input - Option 3'!AB84*INDEX('Energy Prices'!$F$26:$CR$31,MATCH($B128,'Energy Prices'!$C$26:$C$31,0),MATCH(Calc_Option3!X$6,'Energy Prices'!$F$11:$CR$11,0))/100000,0)","v":0},{"$f":"IFERROR('Data Input - Option 3'!AC84*INDEX('Energy Prices'!$F$26:$CR$31,MATCH($B128,'Energy Prices'!$C$26:$C$31,0),MATCH(Calc_Option3!Y$6,'Energy Prices'!$F$11:$CR$11,0))/100000,0)","v":0},{"$f":"IFERROR('Data Input - Option 3'!AD84*INDEX('Energy Prices'!$F$26:$CR$31,MATCH($B128,'Energy Prices'!$C$26:$C$31,0),MATCH(Calc_Option3!Z$6,'Energy Prices'!$F$11:$CR$11,0))/100000,0)","v":0},{"$f":"IFERROR('Data Input - Option 3'!AE84*INDEX('Energy Prices'!$F$26:$CR$31,MATCH($B128,'Energy Prices'!$C$26:$C$31,0),MATCH(Calc_Option3!AA$6,'Energy Prices'!$F$11:$CR$11,0))/100000,0)","v":0},{"$f":"IFERROR('Data Input - Option 3'!AF84*INDEX('Energy Prices'!$F$26:$CR$31,MATCH($B128,'Energy Prices'!$C$26:$C$31,0),MATCH(Calc_Option3!AB$6,'Energy Prices'!$F$11:$CR$11,0))/100000,0)","v":0},{"$f":"IFERROR('Data Input - Option 3'!AG84*INDEX('Energy Prices'!$F$26:$CR$31,MATCH($B128,'Energy Prices'!$C$26:$C$31,0),MATCH(Calc_Option3!AC$6,'Energy Prices'!$F$11:$CR$11,0))/100000,0)","v":0},{"$f":"IFERROR('Data Input - Option 3'!AH84*INDEX('Energy Prices'!$F$26:$CR$31,MATCH($B128,'Energy Prices'!$C$26:$C$31,0),MATCH(Calc_Option3!AD$6,'Energy Prices'!$F$11:$CR$11,0))/100000,0)","v":0},{"$f":"IFERROR('Data Input - Option 3'!AI84*INDEX('Energy Prices'!$F$26:$CR$31,MATCH($B128,'Energy Prices'!$C$26:$C$31,0),MATCH(Calc_Option3!AE$6,'Energy Prices'!$F$11:$CR$11,0))/100000,0)","v":0},{"$f":"IFERROR('Data Input - Option 3'!AJ84*INDEX('Energy Prices'!$F$26:$CR$31,MATCH($B128,'Energy Prices'!$C$26:$C$31,0),MATCH(Calc_Option3!AF$6,'Energy Prices'!$F$11:$CR$11,0))/100000,0)","v":0},{"$f":"IFERROR('Data Input - Option 3'!AK84*INDEX('Energy Prices'!$F$26:$CR$31,MATCH($B128,'Energy Prices'!$C$26:$C$31,0),MATCH(Calc_Option3!AG$6,'Energy Prices'!$F$11:$CR$11,0))/100000,0)","v":0},{"$f":"IFERROR('Data Input - Option 3'!AL84*INDEX('Energy Prices'!$F$26:$CR$31,MATCH($B128,'Energy Prices'!$C$26:$C$31,0),MATCH(Calc_Option3!AH$6,'Energy Prices'!$F$11:$CR$11,0))/100000,0)","v":0},{"$f":"IFERROR('Data Input - Option 3'!AM84*INDEX('Energy Prices'!$F$26:$CR$31,MATCH($B128,'Energy Prices'!$C$26:$C$31,0),MATCH(Calc_Option3!AI$6,'Energy Prices'!$F$11:$CR$11,0))/100000,0)","v":0},{"$f":"IFERROR('Data Input - Option 3'!AN84*INDEX('Energy Prices'!$F$26:$CR$31,MATCH($B128,'Energy Prices'!$C$26:$C$31,0),MATCH(Calc_Option3!AJ$6,'Energy Prices'!$F$11:$CR$11,0))/100000,0)","v":0},{"$f":"IFERROR('Data Input - Option 3'!AO84*INDEX('Energy Prices'!$F$26:$CR$31,MATCH($B128,'Energy Prices'!$C$26:$C$31,0),MATCH(Calc_Option3!AK$6,'Energy Prices'!$F$11:$CR$11,0))/100000,0)","v":0},{"$f":"IFERROR('Data Input - Option 3'!AP84*INDEX('Energy Prices'!$F$26:$CR$31,MATCH($B128,'Energy Prices'!$C$26:$C$31,0),MATCH(Calc_Option3!AL$6,'Energy Prices'!$F$11:$CR$11,0))/100000,0)","v":0},{"$f":"IFERROR('Data Input - Option 3'!AQ84*INDEX('Energy Prices'!$F$26:$CR$31,MATCH($B128,'Energy Prices'!$C$26:$C$31,0),MATCH(Calc_Option3!AM$6,'Energy Prices'!$F$11:$CR$11,0))/100000,0)","v":0},{"$f":"IFERROR('Data Input - Option 3'!AR84*INDEX('Energy Prices'!$F$26:$CR$31,MATCH($B128,'Energy Prices'!$C$26:$C$31,0),MATCH(Calc_Option3!AN$6,'Energy Prices'!$F$11:$CR$11,0))/100000,0)","v":0},{"$f":"IFERROR('Data Input - Option 3'!AS84*INDEX('Energy Prices'!$F$26:$CR$31,MATCH($B128,'Energy Prices'!$C$26:$C$31,0),MATCH(Calc_Option3!AO$6,'Energy Prices'!$F$11:$CR$11,0))/100000,0)","v":0},{"$f":"IFERROR('Data Input - Option 3'!AT84*INDEX('Energy Prices'!$F$26:$CR$31,MATCH($B128,'Energy Prices'!$C$26:$C$31,0),MATCH(Calc_Option3!AP$6,'Energy Prices'!$F$11:$CR$11,0))/100000,0)","v":0},{"$f":"IFERROR('Data Input - Option 3'!AU84*INDEX('Energy Prices'!$F$26:$CR$31,MATCH($B128,'Energy Prices'!$C$26:$C$31,0),MATCH(Calc_Option3!AQ$6,'Energy Prices'!$F$11:$CR$11,0))/100000,0)","v":0},{"$f":"IFERROR('Data Input - Option 3'!AV84*INDEX('Energy Prices'!$F$26:$CR$31,MATCH($B128,'Energy Prices'!$C$26:$C$31,0),MATCH(Calc_Option3!AR$6,'Energy Prices'!$F$11:$CR$11,0))/100000,0)","v":0},{"$f":"IFERROR('Data Input - Option 3'!AW84*INDEX('Energy Prices'!$F$26:$CR$31,MATCH($B128,'Energy Prices'!$C$26:$C$31,0),MATCH(Calc_Option3!AS$6,'Energy Prices'!$F$11:$CR$11,0))/100000,0)","v":0},{"$f":"IFERROR('Data Input - Option 3'!AX84*INDEX('Energy Prices'!$F$26:$CR$31,MATCH($B128,'Energy Prices'!$C$26:$C$31,0),MATCH(Calc_Option3!AT$6,'Energy Prices'!$F$11:$CR$11,0))/100000,0)","v":0},{"$f":"IFERROR('Data Input - Option 3'!AY84*INDEX('Energy Prices'!$F$26:$CR$31,MATCH($B128,'Energy Prices'!$C$26:$C$31,0),MATCH(Calc_Option3!AU$6,'Energy Prices'!$F$11:$CR$11,0))/100000,0)","v":0},{"$f":"IFERROR('Data Input - Option 3'!AZ84*INDEX('Energy Prices'!$F$26:$CR$31,MATCH($B128,'Energy Prices'!$C$26:$C$31,0),MATCH(Calc_Option3!AV$6,'Energy Prices'!$F$11:$CR$11,0))/100000,0)","v":0},{"$f":"IFERROR('Data Input - Option 3'!BA84*INDEX('Energy Prices'!$F$26:$CR$31,MATCH($B128,'Energy Prices'!$C$26:$C$31,0),MATCH(Calc_Option3!AW$6,'Energy Prices'!$F$11:$CR$11,0))/100000,0)","v":0},{"$f":"IFERROR('Data Input - Option 3'!BB84*INDEX('Energy Prices'!$F$26:$CR$31,MATCH($B128,'Energy Prices'!$C$26:$C$31,0),MATCH(Calc_Option3!AX$6,'Energy Prices'!$F$11:$CR$11,0))/100000,0)","v":0},{"$f":"IFERROR('Data Input - Option 3'!BC84*INDEX('Energy Prices'!$F$26:$CR$31,MATCH($B128,'Energy Prices'!$C$26:$C$31,0),MATCH(Calc_Option3!AY$6,'Energy Prices'!$F$11:$CR$11,0))/100000,0)","v":0},{"$f":"IFERROR('Data Input - Option 3'!BD84*INDEX('Energy Prices'!$F$26:$CR$31,MATCH($B128,'Energy Prices'!$C$26:$C$31,0),MATCH(Calc_Option3!AZ$6,'Energy Prices'!$F$11:$CR$11,0))/100000,0)","v":0},{"$f":"IFERROR('Data Input - Option 3'!BE84*INDEX('Energy Prices'!$F$26:$CR$31,MATCH($B128,'Energy Prices'!$C$26:$C$31,0),MATCH(Calc_Option3!BA$6,'Energy Prices'!$F$11:$CR$11,0))/100000,0)","v":0},{"$f":"IFERROR('Data Input - Option 3'!BF84*INDEX('Energy Prices'!$F$26:$CR$31,MATCH($B128,'Energy Prices'!$C$26:$C$31,0),MATCH(Calc_Option3!BB$6,'Energy Prices'!$F$11:$CR$11,0))/100000,0)","v":0},{"$f":"IFERROR('Data Input - Option 3'!BG84*INDEX('Energy Prices'!$F$26:$CR$31,MATCH($B128,'Energy Prices'!$C$26:$C$31,0),MATCH(Calc_Option3!BC$6,'Energy Prices'!$F$11:$CR$11,0))/100000,0)","v":0},{"$f":"IFERROR('Data Input - Option 3'!BH84*INDEX('Energy Prices'!$F$26:$CR$31,MATCH($B128,'Energy Prices'!$C$26:$C$31,0),MATCH(Calc_Option3!BD$6,'Energy Prices'!$F$11:$CR$11,0))/100000,0)","v":0},{"$f":"IFERROR('Data Input - Option 3'!BI84*INDEX('Energy Prices'!$F$26:$CR$31,MATCH($B128,'Energy Prices'!$C$26:$C$31,0),MATCH(Calc_Option3!BE$6,'Energy Prices'!$F$11:$CR$11,0))/100000,0)","v":0},{"$f":"IFERROR('Data Input - Option 3'!BJ84*INDEX('Energy Prices'!$F$26:$CR$31,MATCH($B128,'Energy Prices'!$C$26:$C$31,0),MATCH(Calc_Option3!BF$6,'Energy Prices'!$F$11:$CR$11,0))/100000,0)","v":0},{"$f":"IFERROR('Data Input - Option 3'!BK84*INDEX('Energy Prices'!$F$26:$CR$31,MATCH($B128,'Energy Prices'!$C$26:$C$31,0),MATCH(Calc_Option3!BG$6,'Energy Prices'!$F$11:$CR$11,0))/100000,0)","v":0},{"$f":"IFERROR('Data Input - Option 3'!BL84*INDEX('Energy Prices'!$F$26:$CR$31,MATCH($B128,'Energy Prices'!$C$26:$C$31,0),MATCH(Calc_Option3!BH$6,'Energy Prices'!$F$11:$CR$11,0))/100000,0)","v":0},{"$f":"IFERROR('Data Input - Option 3'!BM84*INDEX('Energy Prices'!$F$26:$CR$31,MATCH($B128,'Energy Prices'!$C$26:$C$31,0),MATCH(Calc_Option3!BI$6,'Energy Prices'!$F$11:$CR$11,0))/100000,0)","v":0},{"$f":"IFERROR('Data Input - Option 3'!BN84*INDEX('Energy Prices'!$F$26:$CR$31,MATCH($B128,'Energy Prices'!$C$26:$C$31,0),MATCH(Calc_Option3!BJ$6,'Energy Prices'!$F$11:$CR$11,0))/100000,0)","v":0},{"$f":"IFERROR('Data Input - Option 3'!BO84*INDEX('Energy Prices'!$F$26:$CR$31,MATCH($B128,'Energy Prices'!$C$26:$C$31,0),MATCH(Calc_Option3!BK$6,'Energy Prices'!$F$11:$CR$11,0))/100000,0)","v":0},{"$f":"IFERROR('Data Input - Option 3'!BP84*INDEX('Energy Prices'!$F$26:$CR$31,MATCH($B128,'Energy Prices'!$C$26:$C$31,0),MATCH(Calc_Option3!BL$6,'Energy Prices'!$F$11:$CR$11,0))/100000,0)","v":0},{"$f":"IFERROR('Data Input - Option 3'!BQ84*INDEX('Energy Prices'!$F$26:$CR$31,MATCH($B128,'Energy Prices'!$C$26:$C$31,0),MATCH(Calc_Option3!BM$6,'Energy Prices'!$F$11:$CR$11,0))/100000,0)","v":0},{"$f":"IFERROR('Data Input - Option 3'!BR84*INDEX('Energy Prices'!$F$26:$CR$31,MATCH($B128,'Energy Prices'!$C$26:$C$31,0),MATCH(Calc_Option3!BN$6,'Energy Prices'!$F$11:$CR$11,0))/100000,0)","v":0},{"$f":"IFERROR('Data Input - Option 3'!BS84*INDEX('Energy Prices'!$F$26:$CR$31,MATCH($B128,'Energy Prices'!$C$26:$C$31,0),MATCH(Calc_Option3!BO$6,'Energy Prices'!$F$11:$CR$11,0))/100000,0)","v":0},{"$f":"IFERROR('Data Input - Option 3'!BT84*INDEX('Energy Prices'!$F$26:$CR$31,MATCH($B128,'Energy Prices'!$C$26:$C$31,0),MATCH(Calc_Option3!BP$6,'Energy Prices'!$F$11:$CR$11,0))/100000,0)","v":0},{"$f":"IFERROR('Data Input - Option 3'!BU84*INDEX('Energy Prices'!$F$26:$CR$31,MATCH($B128,'Energy Prices'!$C$26:$C$31,0),MATCH(Calc_Option3!BQ$6,'Energy Prices'!$F$11:$CR$11,0))/100000,0)","v":0},{"$f":"IFERROR('Data Input - Option 3'!BV84*INDEX('Energy Prices'!$F$26:$CR$31,MATCH($B128,'Energy Prices'!$C$26:$C$31,0),MATCH(Calc_Option3!BR$6,'Energy Prices'!$F$11:$CR$11,0))/100000,0)","v":0},{"$f":"IFERROR('Data Input - Option 3'!BW84*INDEX('Energy Prices'!$F$26:$CR$31,MATCH($B128,'Energy Prices'!$C$26:$C$31,0),MATCH(Calc_Option3!BS$6,'Energy Prices'!$F$11:$CR$11,0))/100000,0)","v":0},{"$f":"IFERROR('Data Input - Option 3'!BX84*INDEX('Energy Prices'!$F$26:$CR$31,MATCH($B128,'Energy Prices'!$C$26:$C$31,0),MATCH(Calc_Option3!BT$6,'Energy Prices'!$F$11:$CR$11,0))/100000,0)","v":0},{"$f":"IFERROR('Data Input - Option 3'!BY84*INDEX('Energy Prices'!$F$26:$CR$31,MATCH($B128,'Energy Prices'!$C$26:$C$31,0),MATCH(Calc_Option3!BU$6,'Energy Prices'!$F$11:$CR$11,0))/100000,0)","v":0},{"$f":"IFERROR('Data Input - Option 3'!BZ84*INDEX('Energy Prices'!$F$26:$CR$31,MATCH($B128,'Energy Prices'!$C$26:$C$31,0),MATCH(Calc_Option3!BV$6,'Energy Prices'!$F$11:$CR$11,0))/100000,0)","v":0},{"$f":"IFERROR('Data Input - Option 3'!CA84*INDEX('Energy Prices'!$F$26:$CR$31,MATCH($B128,'Energy Prices'!$C$26:$C$31,0),MATCH(Calc_Option3!BW$6,'Energy Prices'!$F$11:$CR$11,0))/100000,0)","v":0},{"$f":"IFERROR('Data Input - Option 3'!CB84*INDEX('Energy Prices'!$F$26:$CR$31,MATCH($B128,'Energy Prices'!$C$26:$C$31,0),MATCH(Calc_Option3!BX$6,'Energy Prices'!$F$11:$CR$11,0))/100000,0)","v":0},{"$f":"IFERROR('Data Input - Option 3'!CC84*INDEX('Energy Prices'!$F$26:$CR$31,MATCH($B128,'Energy Prices'!$C$26:$C$31,0),MATCH(Calc_Option3!BY$6,'Energy Prices'!$F$11:$CR$11,0))/100000,0)","v":0},{"$f":"IFERROR('Data Input - Option 3'!CD84*INDEX('Energy Prices'!$F$26:$CR$31,MATCH($B128,'Energy Prices'!$C$26:$C$31,0),MATCH(Calc_Option3!BZ$6,'Energy Prices'!$F$11:$CR$11,0))/100000,0)","v":0},{"$f":"IFERROR('Data Input - Option 3'!CE84*INDEX('Energy Prices'!$F$26:$CR$31,MATCH($B128,'Energy Prices'!$C$26:$C$31,0),MATCH(Calc_Option3!CA$6,'Energy Prices'!$F$11:$CR$11,0))/100000,0)","v":0},{"$f":"IFERROR('Data Input - Option 3'!CF84*INDEX('Energy Prices'!$F$26:$CR$31,MATCH($B128,'Energy Prices'!$C$26:$C$31,0),MATCH(Calc_Option3!CB$6,'Energy Prices'!$F$11:$CR$11,0))/100000,0)","v":0},{"$f":"IFERROR('Data Input - Option 3'!CG84*INDEX('Energy Prices'!$F$26:$CR$31,MATCH($B128,'Energy Prices'!$C$26:$C$31,0),MATCH(Calc_Option3!CC$6,'Energy Prices'!$F$11:$CR$11,0))/100000,0)","v":0},{"$f":"IFERROR('Data Input - Option 3'!CH84*INDEX('Energy Prices'!$F$26:$CR$31,MATCH($B128,'Energy Prices'!$C$26:$C$31,0),MATCH(Calc_Option3!CD$6,'Energy Prices'!$F$11:$CR$11,0))/100000,0)","v":0},{"$f":"IFERROR('Data Input - Option 3'!CI84*INDEX('Energy Prices'!$F$26:$CR$31,MATCH($B128,'Energy Prices'!$C$26:$C$31,0),MATCH(Calc_Option3!CE$6,'Energy Prices'!$F$11:$CR$11,0))/100000,0)","v":0},{"$f":"IFERROR('Data Input - Option 3'!CJ84*INDEX('Energy Prices'!$F$26:$CR$31,MATCH($B128,'Energy Prices'!$C$26:$C$31,0),MATCH(Calc_Option3!CF$6,'Energy Prices'!$F$11:$CR$11,0))/100000,0)","v":0},{"$f":"IFERROR('Data Input - Option 3'!CK84*INDEX('Energy Prices'!$F$26:$CR$31,MATCH($B128,'Energy Prices'!$C$26:$C$31,0),MATCH(Calc_Option3!CG$6,'Energy Prices'!$F$11:$CR$11,0))/100000,0)","v":0},{"$f":"IFERROR('Data Input - Option 3'!CL84*INDEX('Energy Prices'!$F$26:$CR$31,MATCH($B128,'Energy Prices'!$C$26:$C$31,0),MATCH(Calc_Option3!CH$6,'Energy Prices'!$F$11:$CR$11,0))/100000,0)","v":0},{"$f":"IFERROR('Data Input - Option 3'!CM84*INDEX('Energy Prices'!$F$26:$CR$31,MATCH($B128,'Energy Prices'!$C$26:$C$31,0),MATCH(Calc_Option3!CI$6,'Energy Prices'!$F$11:$CR$11,0))/100000,0)","v":0},{"$f":"IFERROR('Data Input - Option 3'!CN84*INDEX('Energy Prices'!$F$26:$CR$31,MATCH($B128,'Energy Prices'!$C$26:$C$31,0),MATCH(Calc_Option3!CJ$6,'Energy Prices'!$F$11:$CR$11,0))/100000,0)","v":0},{"$f":"IFERROR('Data Input - Option 3'!CO84*INDEX('Energy Prices'!$F$26:$CR$31,MATCH($B128,'Energy Prices'!$C$26:$C$31,0),MATCH(Calc_Option3!CK$6,'Energy Prices'!$F$11:$CR$11,0))/100000,0)","v":0},{"$f":"IFERROR('Data Input - Option 3'!CP84*INDEX('Energy Prices'!$F$26:$CR$31,MATCH($B128,'Energy Prices'!$C$26:$C$31,0),MATCH(Calc_Option3!CL$6,'Energy Prices'!$F$11:$CR$11,0))/100000,0)","v":0},{"$f":"IFERROR('Data Input - Option 3'!CQ84*INDEX('Energy Prices'!$F$26:$CR$31,MATCH($B128,'Energy Prices'!$C$26:$C$31,0),MATCH(Calc_Option3!CM$6,'Energy Prices'!$F$11:$CR$11,0))/100000,0)","v":0},{"$f":"IFERROR('Data Input - Option 3'!CR84*INDEX('Energy Prices'!$F$26:$CR$31,MATCH($B128,'Energy Prices'!$C$26:$C$31,0),MATCH(Calc_Option3!CN$6,'Energy Prices'!$F$11:$CR$11,0))/100000,0)","v":0},{"$f":"IFERROR('Data Input - Option 3'!CS84*INDEX('Energy Prices'!$F$26:$CR$31,MATCH($B128,'Energy Prices'!$C$26:$C$31,0),MATCH(Calc_Option3!CO$6,'Energy Prices'!$F$11:$CR$11,0))/100000,0)","v":0},{"$f":"IFERROR('Data Input - Option 3'!CT84*INDEX('Energy Prices'!$F$26:$CR$31,MATCH($B128,'Energy Prices'!$C$26:$C$31,0),MATCH(Calc_Option3!CP$6,'Energy Prices'!$F$11:$CR$11,0))/100000,0)","v":0},{"$f":"IFERROR('Data Input - Option 3'!CU84*INDEX('Energy Prices'!$F$26:$CR$31,MATCH($B128,'Energy Prices'!$C$26:$C$31,0),MATCH(Calc_Option3!CQ$6,'Energy Prices'!$F$11:$CR$11,0))/100000,0)","v":0},{"$f":"IFERROR('Data Input - Option 3'!CV84*INDEX('Energy Prices'!$F$26:$CR$31,MATCH($B128,'Energy Prices'!$C$26:$C$31,0),MATCH(Calc_Option3!CR$6,'Energy Prices'!$F$11:$CR$11,0))/100000,0)","v":0},{"$f":"IFERROR('Data Input - Option 3'!CW84*INDEX('Energy Prices'!$F$26:$CR$31,MATCH($B128,'Energy Prices'!$C$26:$C$31,0),MATCH(Calc_Option3!CS$6,'Energy Prices'!$F$11:$CR$11,0))/100000,0)","v":0},{"$f":"IFERROR('Data Input - Option 3'!CX84*INDEX('Energy Prices'!$F$26:$CR$31,MATCH($B128,'Energy Prices'!$C$26:$C$31,0),MATCH(Calc_Option3!CT$6,'Energy Prices'!$F$11:$CR$11,0))/100000,0)","v":0},{"$f":"IFERROR('Data Input - Option 3'!CY84*INDEX('Energy Prices'!$F$26:$CR$31,MATCH($B128,'Energy Prices'!$C$26:$C$31,0),MATCH(Calc_Option3!CU$6,'Energy Prices'!$F$11:$CR$11,0))/100000,0)","v":0},{"$f":"IFERROR('Data Input - Option 3'!CZ84*INDEX('Energy Prices'!$F$26:$CR$31,MATCH($B128,'Energy Prices'!$C$26:$C$31,0),MATCH(Calc_Option3!CV$6,'Energy Prices'!$F$11:$CR$11,0))/100000,0)","v":0},{"$f":"IFERROR('Data Input - Option 3'!DA84*INDEX('Energy Prices'!$F$26:$CR$31,MATCH($B128,'Energy Prices'!$C$26:$C$31,0),MATCH(Calc_Option3!CW$6,'Energy Prices'!$F$11:$CR$11,0))/100000,0)","v":0},{"$f":"IFERROR('Data Input - Option 3'!DB84*INDEX('Energy Prices'!$F$26:$CR$31,MATCH($B128,'Energy Prices'!$C$26:$C$31,0),MATCH(Calc_Option3!CX$6,'Energy Prices'!$F$11:$CR$11,0))/100000,0)","v":0},{"$f":"IFERROR('Data Input - Option 3'!DC84*INDEX('Energy Prices'!$F$26:$CR$31,MATCH($B128,'Energy Prices'!$C$26:$C$31,0),MATCH(Calc_Option3!CY$6,'Energy Prices'!$F$11:$CR$11,0))/100000,0)","v":0}]
[null,"Natural Gas","£000's",{"$f":"IFERROR('Data Input - Option 3'!H85*INDEX('Energy Prices'!$F$26:$CR$31,MATCH($B129,'Energy Prices'!$C$26:$C$31,0),MATCH(Calc_Option3!D$6,'Energy Prices'!$F$11:$CR$11,0))/100000,0)","v":0},{"$f":"IFERROR('Data Input - Option 3'!I85*INDEX('Energy Prices'!$F$26:$CR$31,MATCH($B129,'Energy Prices'!$C$26:$C$31,0),MATCH(Calc_Option3!E$6,'Energy Prices'!$F$11:$CR$11,0))/100000,0)","v":0},{"$f":"IFERROR('Data Input - Option 3'!J85*INDEX('Energy Prices'!$F$26:$CR$31,MATCH($B129,'Energy Prices'!$C$26:$C$31,0),MATCH(Calc_Option3!F$6,'Energy Prices'!$F$11:$CR$11,0))/100000,0)","v":0},{"$f":"IFERROR('Data Input - Option 3'!K85*INDEX('Energy Prices'!$F$26:$CR$31,MATCH($B129,'Energy Prices'!$C$26:$C$31,0),MATCH(Calc_Option3!G$6,'Energy Prices'!$F$11:$CR$11,0))/100000,0)","v":0},{"$f":"IFERROR('Data Input - Option 3'!L85*INDEX('Energy Prices'!$F$26:$CR$31,MATCH($B129,'Energy Prices'!$C$26:$C$31,0),MATCH(Calc_Option3!H$6,'Energy Prices'!$F$11:$CR$11,0))/100000,0)","v":0},{"$f":"IFERROR('Data Input - Option 3'!M85*INDEX('Energy Prices'!$F$26:$CR$31,MATCH($B129,'Energy Prices'!$C$26:$C$31,0),MATCH(Calc_Option3!I$6,'Energy Prices'!$F$11:$CR$11,0))/100000,0)","v":0},{"$f":"IFERROR('Data Input - Option 3'!N85*INDEX('Energy Prices'!$F$26:$CR$31,MATCH($B129,'Energy Prices'!$C$26:$C$31,0),MATCH(Calc_Option3!J$6,'Energy Prices'!$F$11:$CR$11,0))/100000,0)","v":0},{"$f":"IFERROR('Data Input - Option 3'!O85*INDEX('Energy Prices'!$F$26:$CR$31,MATCH($B129,'Energy Prices'!$C$26:$C$31,0),MATCH(Calc_Option3!K$6,'Energy Prices'!$F$11:$CR$11,0))/100000,0)","v":0},{"$f":"IFERROR('Data Input - Option 3'!P85*INDEX('Energy Prices'!$F$26:$CR$31,MATCH($B129,'Energy Prices'!$C$26:$C$31,0),MATCH(Calc_Option3!L$6,'Energy Prices'!$F$11:$CR$11,0))/100000,0)","v":0},{"$f":"IFERROR('Data Input - Option 3'!Q85*INDEX('Energy Prices'!$F$26:$CR$31,MATCH($B129,'Energy Prices'!$C$26:$C$31,0),MATCH(Calc_Option3!M$6,'Energy Prices'!$F$11:$CR$11,0))/100000,0)","v":0},{"$f":"IFERROR('Data Input - Option 3'!R85*INDEX('Energy Prices'!$F$26:$CR$31,MATCH($B129,'Energy Prices'!$C$26:$C$31,0),MATCH(Calc_Option3!N$6,'Energy Prices'!$F$11:$CR$11,0))/100000,0)","v":0},{"$f":"IFERROR('Data Input - Option 3'!S85*INDEX('Energy Prices'!$F$26:$CR$31,MATCH($B129,'Energy Prices'!$C$26:$C$31,0),MATCH(Calc_Option3!O$6,'Energy Prices'!$F$11:$CR$11,0))/100000,0)","v":0},{"$f":"IFERROR('Data Input - Option 3'!T85*INDEX('Energy Prices'!$F$26:$CR$31,MATCH($B129,'Energy Prices'!$C$26:$C$31,0),MATCH(Calc_Option3!P$6,'Energy Prices'!$F$11:$CR$11,0))/100000,0)","v":0},{"$f":"IFERROR('Data Input - Option 3'!U85*INDEX('Energy Prices'!$F$26:$CR$31,MATCH($B129,'Energy Prices'!$C$26:$C$31,0),MATCH(Calc_Option3!Q$6,'Energy Prices'!$F$11:$CR$11,0))/100000,0)","v":0},{"$f":"IFERROR('Data Input - Option 3'!V85*INDEX('Energy Prices'!$F$26:$CR$31,MATCH($B129,'Energy Prices'!$C$26:$C$31,0),MATCH(Calc_Option3!R$6,'Energy Prices'!$F$11:$CR$11,0))/100000,0)","v":0},{"$f":"IFERROR('Data Input - Option 3'!W85*INDEX('Energy Prices'!$F$26:$CR$31,MATCH($B129,'Energy Prices'!$C$26:$C$31,0),MATCH(Calc_Option3!S$6,'Energy Prices'!$F$11:$CR$11,0))/100000,0)","v":0},{"$f":"IFERROR('Data Input - Option 3'!X85*INDEX('Energy Prices'!$F$26:$CR$31,MATCH($B129,'Energy Prices'!$C$26:$C$31,0),MATCH(Calc_Option3!T$6,'Energy Prices'!$F$11:$CR$11,0))/100000,0)","v":0},{"$f":"IFERROR('Data Input - Option 3'!Y85*INDEX('Energy Prices'!$F$26:$CR$31,MATCH($B129,'Energy Prices'!$C$26:$C$31,0),MATCH(Calc_Option3!U$6,'Energy Prices'!$F$11:$CR$11,0))/100000,0)","v":0},{"$f":"IFERROR('Data Input - Option 3'!Z85*INDEX('Energy Prices'!$F$26:$CR$31,MATCH($B129,'Energy Prices'!$C$26:$C$31,0),MATCH(Calc_Option3!V$6,'Energy Prices'!$F$11:$CR$11,0))/100000,0)","v":0},{"$f":"IFERROR('Data Input - Option 3'!AA85*INDEX('Energy Prices'!$F$26:$CR$31,MATCH($B129,'Energy Prices'!$C$26:$C$31,0),MATCH(Calc_Option3!W$6,'Energy Prices'!$F$11:$CR$11,0))/100000,0)","v":0},{"$f":"IFERROR('Data Input - Option 3'!AB85*INDEX('Energy Prices'!$F$26:$CR$31,MATCH($B129,'Energy Prices'!$C$26:$C$31,0),MATCH(Calc_Option3!X$6,'Energy Prices'!$F$11:$CR$11,0))/100000,0)","v":0},{"$f":"IFERROR('Data Input - Option 3'!AC85*INDEX('Energy Prices'!$F$26:$CR$31,MATCH($B129,'Energy Prices'!$C$26:$C$31,0),MATCH(Calc_Option3!Y$6,'Energy Prices'!$F$11:$CR$11,0))/100000,0)","v":0},{"$f":"IFERROR('Data Input - Option 3'!AD85*INDEX('Energy Prices'!$F$26:$CR$31,MATCH($B129,'Energy Prices'!$C$26:$C$31,0),MATCH(Calc_Option3!Z$6,'Energy Prices'!$F$11:$CR$11,0))/100000,0)","v":0},{"$f":"IFERROR('Data Input - Option 3'!AE85*INDEX('Energy Prices'!$F$26:$CR$31,MATCH($B129,'Energy Prices'!$C$26:$C$31,0),MATCH(Calc_Option3!AA$6,'Energy Prices'!$F$11:$CR$11,0))/100000,0)","v":0},{"$f":"IFERROR('Data Input - Option 3'!AF85*INDEX('Energy Prices'!$F$26:$CR$31,MATCH($B129,'Energy Prices'!$C$26:$C$31,0),MATCH(Calc_Option3!AB$6,'Energy Prices'!$F$11:$CR$11,0))/100000,0)","v":0},{"$f":"IFERROR('Data Input - Option 3'!AG85*INDEX('Energy Prices'!$F$26:$CR$31,MATCH($B129,'Energy Prices'!$C$26:$C$31,0),MATCH(Calc_Option3!AC$6,'Energy Prices'!$F$11:$CR$11,0))/100000,0)","v":0},{"$f":"IFERROR('Data Input - Option 3'!AH85*INDEX('Energy Prices'!$F$26:$CR$31,MATCH($B129,'Energy Prices'!$C$26:$C$31,0),MATCH(Calc_Option3!AD$6,'Energy Prices'!$F$11:$CR$11,0))/100000,0)","v":0},{"$f":"IFERROR('Data Input - Option 3'!AI85*INDEX('Energy Prices'!$F$26:$CR$31,MATCH($B129,'Energy Prices'!$C$26:$C$31,0),MATCH(Calc_Option3!AE$6,'Energy Prices'!$F$11:$CR$11,0))/100000,0)","v":0},{"$f":"IFERROR('Data Input - Option 3'!AJ85*INDEX('Energy Prices'!$F$26:$CR$31,MATCH($B129,'Energy Prices'!$C$26:$C$31,0),MATCH(Calc_Option3!AF$6,'Energy Prices'!$F$11:$CR$11,0))/100000,0)","v":0},{"$f":"IFERROR('Data Input - Option 3'!AK85*INDEX('Energy Prices'!$F$26:$CR$31,MATCH($B129,'Energy Prices'!$C$26:$C$31,0),MATCH(Calc_Option3!AG$6,'Energy Prices'!$F$11:$CR$11,0))/100000,0)","v":0},{"$f":"IFERROR('Data Input - Option 3'!AL85*INDEX('Energy Prices'!$F$26:$CR$31,MATCH($B129,'Energy Prices'!$C$26:$C$31,0),MATCH(Calc_Option3!AH$6,'Energy Prices'!$F$11:$CR$11,0))/100000,0)","v":0},{"$f":"IFERROR('Data Input - Option 3'!AM85*INDEX('Energy Prices'!$F$26:$CR$31,MATCH($B129,'Energy Prices'!$C$26:$C$31,0),MATCH(Calc_Option3!AI$6,'Energy Prices'!$F$11:$CR$11,0))/100000,0)","v":0},{"$f":"IFERROR('Data Input - Option 3'!AN85*INDEX('Energy Prices'!$F$26:$CR$31,MATCH($B129,'Energy Prices'!$C$26:$C$31,0),MATCH(Calc_Option3!AJ$6,'Energy Prices'!$F$11:$CR$11,0))/100000,0)","v":0},{"$f":"IFERROR('Data Input - Option 3'!AO85*INDEX('Energy Prices'!$F$26:$CR$31,MATCH($B129,'Energy Prices'!$C$26:$C$31,0),MATCH(Calc_Option3!AK$6,'Energy Prices'!$F$11:$CR$11,0))/100000,0)","v":0},{"$f":"IFERROR('Data Input - Option 3'!AP85*INDEX('Energy Prices'!$F$26:$CR$31,MATCH($B129,'Energy Prices'!$C$26:$C$31,0),MATCH(Calc_Option3!AL$6,'Energy Prices'!$F$11:$CR$11,0))/100000,0)","v":0},{"$f":"IFERROR('Data Input - Option 3'!AQ85*INDEX('Energy Prices'!$F$26:$CR$31,MATCH($B129,'Energy Prices'!$C$26:$C$31,0),MATCH(Calc_Option3!AM$6,'Energy Prices'!$F$11:$CR$11,0))/100000,0)","v":0},{"$f":"IFERROR('Data Input - Option 3'!AR85*INDEX('Energy Prices'!$F$26:$CR$31,MATCH($B129,'Energy Prices'!$C$26:$C$31,0),MATCH(Calc_Option3!AN$6,'Energy Prices'!$F$11:$CR$11,0))/100000,0)","v":0},{"$f":"IFERROR('Data Input - Option 3'!AS85*INDEX('Energy Prices'!$F$26:$CR$31,MATCH($B129,'Energy Prices'!$C$26:$C$31,0),MATCH(Calc_Option3!AO$6,'Energy Prices'!$F$11:$CR$11,0))/100000,0)","v":0},{"$f":"IFERROR('Data Input - Option 3'!AT85*INDEX('Energy Prices'!$F$26:$CR$31,MATCH($B129,'Energy Prices'!$C$26:$C$31,0),MATCH(Calc_Option3!AP$6,'Energy Prices'!$F$11:$CR$11,0))/100000,0)","v":0},{"$f":"IFERROR('Data Input - Option 3'!AU85*INDEX('Energy Prices'!$F$26:$CR$31,MATCH($B129,'Energy Prices'!$C$26:$C$31,0),MATCH(Calc_Option3!AQ$6,'Energy Prices'!$F$11:$CR$11,0))/100000,0)","v":0},{"$f":"IFERROR('Data Input - Option 3'!AV85*INDEX('Energy Prices'!$F$26:$CR$31,MATCH($B129,'Energy Prices'!$C$26:$C$31,0),MATCH(Calc_Option3!AR$6,'Energy Prices'!$F$11:$CR$11,0))/100000,0)","v":0},{"$f":"IFERROR('Data Input - Option 3'!AW85*INDEX('Energy Prices'!$F$26:$CR$31,MATCH($B129,'Energy Prices'!$C$26:$C$31,0),MATCH(Calc_Option3!AS$6,'Energy Prices'!$F$11:$CR$11,0))/100000,0)","v":0},{"$f":"IFERROR('Data Input - Option 3'!AX85*INDEX('Energy Prices'!$F$26:$CR$31,MATCH($B129,'Energy Prices'!$C$26:$C$31,0),MATCH(Calc_Option3!AT$6,'Energy Prices'!$F$11:$CR$11,0))/100000,0)","v":0},{"$f":"IFERROR('Data Input - Option 3'!AY85*INDEX('Energy Prices'!$F$26:$CR$31,MATCH($B129,'Energy Prices'!$C$26:$C$31,0),MATCH(Calc_Option3!AU$6,'Energy Prices'!$F$11:$CR$11,0))/100000,0)","v":0},{"$f":"IFERROR('Data Input - Option 3'!AZ85*INDEX('Energy Prices'!$F$26:$CR$31,MATCH($B129,'Energy Prices'!$C$26:$C$31,0),MATCH(Calc_Option3!AV$6,'Energy Prices'!$F$11:$CR$11,0))/100000,0)","v":0},{"$f":"IFERROR('Data Input - Option 3'!BA85*INDEX('Energy Prices'!$F$26:$CR$31,MATCH($B129,'Energy Prices'!$C$26:$C$31,0),MATCH(Calc_Option3!AW$6,'Energy Prices'!$F$11:$CR$11,0))/100000,0)","v":0},{"$f":"IFERROR('Data Input - Option 3'!BB85*INDEX('Energy Prices'!$F$26:$CR$31,MATCH($B129,'Energy Prices'!$C$26:$C$31,0),MATCH(Calc_Option3!AX$6,'Energy Prices'!$F$11:$CR$11,0))/100000,0)","v":0},{"$f":"IFERROR('Data Input - Option 3'!BC85*INDEX('Energy Prices'!$F$26:$CR$31,MATCH($B129,'Energy Prices'!$C$26:$C$31,0),MATCH(Calc_Option3!AY$6,'Energy Prices'!$F$11:$CR$11,0))/100000,0)","v":0},{"$f":"IFERROR('Data Input - Option 3'!BD85*INDEX('Energy Prices'!$F$26:$CR$31,MATCH($B129,'Energy Prices'!$C$26:$C$31,0),MATCH(Calc_Option3!AZ$6,'Energy Prices'!$F$11:$CR$11,0))/100000,0)","v":0},{"$f":"IFERROR('Data Input - Option 3'!BE85*INDEX('Energy Prices'!$F$26:$CR$31,MATCH($B129,'Energy Prices'!$C$26:$C$31,0),MATCH(Calc_Option3!BA$6,'Energy Prices'!$F$11:$CR$11,0))/100000,0)","v":0},{"$f":"IFERROR('Data Input - Option 3'!BF85*INDEX('Energy Prices'!$F$26:$CR$31,MATCH($B129,'Energy Prices'!$C$26:$C$31,0),MATCH(Calc_Option3!BB$6,'Energy Prices'!$F$11:$CR$11,0))/100000,0)","v":0},{"$f":"IFERROR('Data Input - Option 3'!BG85*INDEX('Energy Prices'!$F$26:$CR$31,MATCH($B129,'Energy Prices'!$C$26:$C$31,0),MATCH(Calc_Option3!BC$6,'Energy Prices'!$F$11:$CR$11,0))/100000,0)","v":0},{"$f":"IFERROR('Data Input - Option 3'!BH85*INDEX('Energy Prices'!$F$26:$CR$31,MATCH($B129,'Energy Prices'!$C$26:$C$31,0),MATCH(Calc_Option3!BD$6,'Energy Prices'!$F$11:$CR$11,0))/100000,0)","v":0},{"$f":"IFERROR('Data Input - Option 3'!BI85*INDEX('Energy Prices'!$F$26:$CR$31,MATCH($B129,'Energy Prices'!$C$26:$C$31,0),MATCH(Calc_Option3!BE$6,'Energy Prices'!$F$11:$CR$11,0))/100000,0)","v":0},{"$f":"IFERROR('Data Input - Option 3'!BJ85*INDEX('Energy Prices'!$F$26:$CR$31,MATCH($B129,'Energy Prices'!$C$26:$C$31,0),MATCH(Calc_Option3!BF$6,'Energy Prices'!$F$11:$CR$11,0))/100000,0)","v":0},{"$f":"IFERROR('Data Input - Option 3'!BK85*INDEX('Energy Prices'!$F$26:$CR$31,MATCH($B129,'Energy Prices'!$C$26:$C$31,0),MATCH(Calc_Option3!BG$6,'Energy Prices'!$F$11:$CR$11,0))/100000,0)","v":0},{"$f":"IFERROR('Data Input - Option 3'!BL85*INDEX('Energy Prices'!$F$26:$CR$31,MATCH($B129,'Energy Prices'!$C$26:$C$31,0),MATCH(Calc_Option3!BH$6,'Energy Prices'!$F$11:$CR$11,0))/100000,0)","v":0},{"$f":"IFERROR('Data Input - Option 3'!BM85*INDEX('Energy Prices'!$F$26:$CR$31,MATCH($B129,'Energy Prices'!$C$26:$C$31,0),MATCH(Calc_Option3!BI$6,'Energy Prices'!$F$11:$CR$11,0))/100000,0)","v":0},{"$f":"IFERROR('Data Input - Option 3'!BN85*INDEX('Energy Prices'!$F$26:$CR$31,MATCH($B129,'Energy Prices'!$C$26:$C$31,0),MATCH(Calc_Option3!BJ$6,'Energy Prices'!$F$11:$CR$11,0))/100000,0)","v":0},{"$f":"IFERROR('Data Input - Option 3'!BO85*INDEX('Energy Prices'!$F$26:$CR$31,MATCH($B129,'Energy Prices'!$C$26:$C$31,0),MATCH(Calc_Option3!BK$6,'Energy Prices'!$F$11:$CR$11,0))/100000,0)","v":0},{"$f":"IFERROR('Data Input - Option 3'!BP85*INDEX('Energy Prices'!$F$26:$CR$31,MATCH($B129,'Energy Prices'!$C$26:$C$31,0),MATCH(Calc_Option3!BL$6,'Energy Prices'!$F$11:$CR$11,0))/100000,0)","v":0},{"$f":"IFERROR('Data Input - Option 3'!BQ85*INDEX('Energy Prices'!$F$26:$CR$31,MATCH($B129,'Energy Prices'!$C$26:$C$31,0),MATCH(Calc_Option3!BM$6,'Energy Prices'!$F$11:$CR$11,0))/100000,0)","v":0},{"$f":"IFERROR('Data Input - Option 3'!BR85*INDEX('Energy Prices'!$F$26:$CR$31,MATCH($B129,'Energy Prices'!$C$26:$C$31,0),MATCH(Calc_Option3!BN$6,'Energy Prices'!$F$11:$CR$11,0))/100000,0)","v":0},{"$f":"IFERROR('Data Input - Option 3'!BS85*INDEX('Energy Prices'!$F$26:$CR$31,MATCH($B129,'Energy Prices'!$C$26:$C$31,0),MATCH(Calc_Option3!BO$6,'Energy Prices'!$F$11:$CR$11,0))/100000,0)","v":0},{"$f":"IFERROR('Data Input - Option 3'!BT85*INDEX('Energy Prices'!$F$26:$CR$31,MATCH($B129,'Energy Prices'!$C$26:$C$31,0),MATCH(Calc_Option3!BP$6,'Energy Prices'!$F$11:$CR$11,0))/100000,0)","v":0},{"$f":"IFERROR('Data Input - Option 3'!BU85*INDEX('Energy Prices'!$F$26:$CR$31,MATCH($B129,'Energy Prices'!$C$26:$C$31,0),MATCH(Calc_Option3!BQ$6,'Energy Prices'!$F$11:$CR$11,0))/100000,0)","v":0},{"$f":"IFERROR('Data Input - Option 3'!BV85*INDEX('Energy Prices'!$F$26:$CR$31,MATCH($B129,'Energy Prices'!$C$26:$C$31,0),MATCH(Calc_Option3!BR$6,'Energy Prices'!$F$11:$CR$11,0))/100000,0)","v":0},{"$f":"IFERROR('Data Input - Option 3'!BW85*INDEX('Energy Prices'!$F$26:$CR$31,MATCH($B129,'Energy Prices'!$C$26:$C$31,0),MATCH(Calc_Option3!BS$6,'Energy Prices'!$F$11:$CR$11,0))/100000,0)","v":0},{"$f":"IFERROR('Data Input - Option 3'!BX85*INDEX('Energy Prices'!$F$26:$CR$31,MATCH($B129,'Energy Prices'!$C$26:$C$31,0),MATCH(Calc_Option3!BT$6,'Energy Prices'!$F$11:$CR$11,0))/100000,0)","v":0},{"$f":"IFERROR('Data Input - Option 3'!BY85*INDEX('Energy Prices'!$F$26:$CR$31,MATCH($B129,'Energy Prices'!$C$26:$C$31,0),MATCH(Calc_Option3!BU$6,'Energy Prices'!$F$11:$CR$11,0))/100000,0)","v":0},{"$f":"IFERROR('Data Input - Option 3'!BZ85*INDEX('Energy Prices'!$F$26:$CR$31,MATCH($B129,'Energy Prices'!$C$26:$C$31,0),MATCH(Calc_Option3!BV$6,'Energy Prices'!$F$11:$CR$11,0))/100000,0)","v":0},{"$f":"IFERROR('Data Input - Option 3'!CA85*INDEX('Energy Prices'!$F$26:$CR$31,MATCH($B129,'Energy Prices'!$C$26:$C$31,0),MATCH(Calc_Option3!BW$6,'Energy Prices'!$F$11:$CR$11,0))/100000,0)","v":0},{"$f":"IFERROR('Data Input - Option 3'!CB85*INDEX('Energy Prices'!$F$26:$CR$31,MATCH($B129,'Energy Prices'!$C$26:$C$31,0),MATCH(Calc_Option3!BX$6,'Energy Prices'!$F$11:$CR$11,0))/100000,0)","v":0},{"$f":"IFERROR('Data Input - Option 3'!CC85*INDEX('Energy Prices'!$F$26:$CR$31,MATCH($B129,'Energy Prices'!$C$26:$C$31,0),MATCH(Calc_Option3!BY$6,'Energy Prices'!$F$11:$CR$11,0))/100000,0)","v":0},{"$f":"IFERROR('Data Input - Option 3'!CD85*INDEX('Energy Prices'!$F$26:$CR$31,MATCH($B129,'Energy Prices'!$C$26:$C$31,0),MATCH(Calc_Option3!BZ$6,'Energy Prices'!$F$11:$CR$11,0))/100000,0)","v":0},{"$f":"IFERROR('Data Input - Option 3'!CE85*INDEX('Energy Prices'!$F$26:$CR$31,MATCH($B129,'Energy Prices'!$C$26:$C$31,0),MATCH(Calc_Option3!CA$6,'Energy Prices'!$F$11:$CR$11,0))/100000,0)","v":0},{"$f":"IFERROR('Data Input - Option 3'!CF85*INDEX('Energy Prices'!$F$26:$CR$31,MATCH($B129,'Energy Prices'!$C$26:$C$31,0),MATCH(Calc_Option3!CB$6,'Energy Prices'!$F$11:$CR$11,0))/100000,0)","v":0},{"$f":"IFERROR('Data Input - Option 3'!CG85*INDEX('Energy Prices'!$F$26:$CR$31,MATCH($B129,'Energy Prices'!$C$26:$C$31,0),MATCH(Calc_Option3!CC$6,'Energy Prices'!$F$11:$CR$11,0))/100000,0)","v":0},{"$f":"IFERROR('Data Input - Option 3'!CH85*INDEX('Energy Prices'!$F$26:$CR$31,MATCH($B129,'Energy Prices'!$C$26:$C$31,0),MATCH(Calc_Option3!CD$6,'Energy Prices'!$F$11:$CR$11,0))/100000,0)","v":0},{"$f":"IFERROR('Data Input - Option 3'!CI85*INDEX('Energy Prices'!$F$26:$CR$31,MATCH($B129,'Energy Prices'!$C$26:$C$31,0),MATCH(Calc_Option3!CE$6,'Energy Prices'!$F$11:$CR$11,0))/100000,0)","v":0},{"$f":"IFERROR('Data Input - Option 3'!CJ85*INDEX('Energy Prices'!$F$26:$CR$31,MATCH($B129,'Energy Prices'!$C$26:$C$31,0),MATCH(Calc_Option3!CF$6,'Energy Prices'!$F$11:$CR$11,0))/100000,0)","v":0},{"$f":"IFERROR('Data Input - Option 3'!CK85*INDEX('Energy Prices'!$F$26:$CR$31,MATCH($B129,'Energy Prices'!$C$26:$C$31,0),MATCH(Calc_Option3!CG$6,'Energy Prices'!$F$11:$CR$11,0))/100000,0)","v":0},{"$f":"IFERROR('Data Input - Option 3'!CL85*INDEX('Energy Prices'!$F$26:$CR$31,MATCH($B129,'Energy Prices'!$C$26:$C$31,0),MATCH(Calc_Option3!CH$6,'Energy Prices'!$F$11:$CR$11,0))/100000,0)","v":0},{"$f":"IFERROR('Data Input - Option 3'!CM85*INDEX('Energy Prices'!$F$26:$CR$31,MATCH($B129,'Energy Prices'!$C$26:$C$31,0),MATCH(Calc_Option3!CI$6,'Energy Prices'!$F$11:$CR$11,0))/100000,0)","v":0},{"$f":"IFERROR('Data Input - Option 3'!CN85*INDEX('Energy Prices'!$F$26:$CR$31,MATCH($B129,'Energy Prices'!$C$26:$C$31,0),MATCH(Calc_Option3!CJ$6,'Energy Prices'!$F$11:$CR$11,0))/100000,0)","v":0},{"$f":"IFERROR('Data Input - Option 3'!CO85*INDEX('Energy Prices'!$F$26:$CR$31,MATCH($B129,'Energy Prices'!$C$26:$C$31,0),MATCH(Calc_Option3!CK$6,'Energy Prices'!$F$11:$CR$11,0))/100000,0)","v":0},{"$f":"IFERROR('Data Input - Option 3'!CP85*INDEX('Energy Prices'!$F$26:$CR$31,MATCH($B129,'Energy Prices'!$C$26:$C$31,0),MATCH(Calc_Option3!CL$6,'Energy Prices'!$F$11:$CR$11,0))/100000,0)","v":0},{"$f":"IFERROR('Data Input - Option 3'!CQ85*INDEX('Energy Prices'!$F$26:$CR$31,MATCH($B129,'Energy Prices'!$C$26:$C$31,0),MATCH(Calc_Option3!CM$6,'Energy Prices'!$F$11:$CR$11,0))/100000,0)","v":0},{"$f":"IFERROR('Data Input - Option 3'!CR85*INDEX('Energy Prices'!$F$26:$CR$31,MATCH($B129,'Energy Prices'!$C$26:$C$31,0),MATCH(Calc_Option3!CN$6,'Energy Prices'!$F$11:$CR$11,0))/100000,0)","v":0},{"$f":"IFERROR('Data Input - Option 3'!CS85*INDEX('Energy Prices'!$F$26:$CR$31,MATCH($B129,'Energy Prices'!$C$26:$C$31,0),MATCH(Calc_Option3!CO$6,'Energy Prices'!$F$11:$CR$11,0))/100000,0)","v":0},{"$f":"IFERROR('Data Input - Option 3'!CT85*INDEX('Energy Prices'!$F$26:$CR$31,MATCH($B129,'Energy Prices'!$C$26:$C$31,0),MATCH(Calc_Option3!CP$6,'Energy Prices'!$F$11:$CR$11,0))/100000,0)","v":0},{"$f":"IFERROR('Data Input - Option 3'!CU85*INDEX('Energy Prices'!$F$26:$CR$31,MATCH($B129,'Energy Prices'!$C$26:$C$31,0),MATCH(Calc_Option3!CQ$6,'Energy Prices'!$F$11:$CR$11,0))/100000,0)","v":0},{"$f":"IFERROR('Data Input - Option 3'!CV85*INDEX('Energy Prices'!$F$26:$CR$31,MATCH($B129,'Energy Prices'!$C$26:$C$31,0),MATCH(Calc_Option3!CR$6,'Energy Prices'!$F$11:$CR$11,0))/100000,0)","v":0},{"$f":"IFERROR('Data Input - Option 3'!CW85*INDEX('Energy Prices'!$F$26:$CR$31,MATCH($B129,'Energy Prices'!$C$26:$C$31,0),MATCH(Calc_Option3!CS$6,'Energy Prices'!$F$11:$CR$11,0))/100000,0)","v":0},{"$f":"IFERROR('Data Input - Option 3'!CX85*INDEX('Energy Prices'!$F$26:$CR$31,MATCH($B129,'Energy Prices'!$C$26:$C$31,0),MATCH(Calc_Option3!CT$6,'Energy Prices'!$F$11:$CR$11,0))/100000,0)","v":0},{"$f":"IFERROR('Data Input - Option 3'!CY85*INDEX('Energy Prices'!$F$26:$CR$31,MATCH($B129,'Energy Prices'!$C$26:$C$31,0),MATCH(Calc_Option3!CU$6,'Energy Prices'!$F$11:$CR$11,0))/100000,0)","v":0},{"$f":"IFERROR('Data Input - Option 3'!CZ85*INDEX('Energy Prices'!$F$26:$CR$31,MATCH($B129,'Energy Prices'!$C$26:$C$31,0),MATCH(Calc_Option3!CV$6,'Energy Prices'!$F$11:$CR$11,0))/100000,0)","v":0},{"$f":"IFERROR('Data Input - Option 3'!DA85*INDEX('Energy Prices'!$F$26:$CR$31,MATCH($B129,'Energy Prices'!$C$26:$C$31,0),MATCH(Calc_Option3!CW$6,'Energy Prices'!$F$11:$CR$11,0))/100000,0)","v":0},{"$f":"IFERROR('Data Input - Option 3'!DB85*INDEX('Energy Prices'!$F$26:$CR$31,MATCH($B129,'Energy Prices'!$C$26:$C$31,0),MATCH(Calc_Option3!CX$6,'Energy Prices'!$F$11:$CR$11,0))/100000,0)","v":0},{"$f":"IFERROR('Data Input - Option 3'!DC85*INDEX('Energy Prices'!$F$26:$CR$31,MATCH($B129,'Energy Prices'!$C$26:$C$31,0),MATCH(Calc_Option3!CY$6,'Energy Prices'!$F$11:$CR$11,0))/100000,0)","v":0}]
[null,"Coal","£000's",{"$f":"IFERROR('Data Input - Option 3'!H86*INDEX('Energy Prices'!$F$26:$CR$31,MATCH($B130,'Energy Prices'!$C$26:$C$31,0),MATCH(Calc_Option3!D$6,'Energy Prices'!$F$11:$CR$11,0))/100000,0)","v":1394.9279072314669},{"$f":"IFERROR('Data Input - Option 3'!I86*INDEX('Energy Prices'!$F$26:$CR$31,MATCH($B130,'Energy Prices'!$C$26:$C$31,0),MATCH(Calc_Option3!E$6,'Energy Prices'!$F$11:$CR$11,0))/100000,0)","v":1431.7241710741957},{"$f":"IFERROR('Data Input - Option 3'!J86*INDEX('Energy Prices'!$F$26:$CR$31,MATCH($B130,'Energy Prices'!$C$26:$C$31,0),MATCH(Calc_Option3!F$6,'Energy Prices'!$F$11:$CR$11,0))/100000,0)","v":1468.5255691781056},{"$f":"IFERROR('Data Input - Option 3'!K86*INDEX('Energy Prices'!$F$26:$CR$31,MATCH($B130,'Energy Prices'!$C$26:$C$31,0),MATCH(Calc_Option3!G$6,'Energy Prices'!$F$11:$CR$11,0))/100000,0)","v":1505.322364102424},{"$f":"IFERROR('Data Input - Option 3'!L86*INDEX('Energy Prices'!$F$26:$CR$31,MATCH($B130,'Energy Prices'!$C$26:$C$31,0),MATCH(Calc_Option3!H$6,'Energy Prices'!$F$11:$CR$11,0))/100000,0)","v":1542.119394103968},{"$f":"IFERROR('Data Input - Option 3'!M86*INDEX('Energy Prices'!$F$26:$CR$31,MATCH($B130,'Energy Prices'!$C$26:$C$31,0),MATCH(Calc_Option3!I$6,'Energy Prices'!$F$11:$CR$11,0))/100000,0)","v":1578.9166607912819},{"$f":"IFERROR('Data Input - Option 3'!N86*INDEX('Energy Prices'!$F$26:$CR$31,MATCH($B130,'Energy Prices'!$C$26:$C$31,0),MATCH(Calc_Option3!J$6,'Energy Prices'!$F$11:$CR$11,0))/100000,0)","v":1615.7141657839156},{"$f":"IFERROR('Data Input - Option 3'!O86*INDEX('Energy Prices'!$F$26:$CR$31,MATCH($B130,'Energy Prices'!$C$26:$C$31,0),MATCH(Calc_Option3!K$6,'Energy Prices'!$F$11:$CR$11,0))/100000,0)","v":1652.5119107125026},{"$f":"IFERROR('Data Input - Option 3'!P86*INDEX('Energy Prices'!$F$26:$CR$31,MATCH($B130,'Energy Prices'!$C$26:$C$31,0),MATCH(Calc_Option3!L$6,'Energy Prices'!$F$11:$CR$11,0))/100000,0)","v":0},{"$f":"IFERROR('Data Input - Option 3'!Q86*INDEX('Energy Prices'!$F$26:$CR$31,MATCH($B130,'Energy Prices'!$C$26:$C$31,0),MATCH(Calc_Option3!M$6,'Energy Prices'!$F$11:$CR$11,0))/100000,0)","v":0},{"$f":"IFERROR('Data Input - Option 3'!R86*INDEX('Energy Prices'!$F$26:$CR$31,MATCH($B130,'Energy Prices'!$C$26:$C$31,0),MATCH(Calc_Option3!N$6,'Energy Prices'!$F$11:$CR$11,0))/100000,0)","v":0},{"$f":"IFERROR('Data Input - Option 3'!S86*INDEX('Energy Prices'!$F$26:$CR$31,MATCH($B130,'Energy Prices'!$C$26:$C$31,0),MATCH(Calc_Option3!O$6,'Energy Prices'!$F$11:$CR$11,0))/100000,0)","v":0},{"$f":"IFERROR('Data Input - Option 3'!T86*INDEX('Energy Prices'!$F$26:$CR$31,MATCH($B130,'Energy Prices'!$C$26:$C$31,0),MATCH(Calc_Option3!P$6,'Energy Prices'!$F$11:$CR$11,0))/100000,0)","v":0},{"$f":"IFERROR('Data Input - Option 3'!U86*INDEX('Energy Prices'!$F$26:$CR$31,MATCH($B130,'Energy Prices'!$C$26:$C$31,0),MATCH(Calc_Option3!Q$6,'Energy Prices'!$F$11:$CR$11,0))/100000,0)","v":0},{"$f":"IFERROR('Data Input - Option 3'!V86*INDEX('Energy Prices'!$F$26:$CR$31,MATCH($B130,'Energy Prices'!$C$26:$C$31,0),MATCH(Calc_Option3!R$6,'Energy Prices'!$F$11:$CR$11,0))/100000,0)","v":0},{"$f":"IFERROR('Data Input - Option 3'!W86*INDEX('Energy Prices'!$F$26:$CR$31,MATCH($B130,'Energy Prices'!$C$26:$C$31,0),MATCH(Calc_Option3!S$6,'Energy Prices'!$F$11:$CR$11,0))/100000,0)","v":0},{"$f":"IFERROR('Data Input - Option 3'!X86*INDEX('Energy Prices'!$F$26:$CR$31,MATCH($B130,'Energy Prices'!$C$26:$C$31,0),MATCH(Calc_Option3!T$6,'Energy Prices'!$F$11:$CR$11,0))/100000,0)","v":0},{"$f":"IFERROR('Data Input - Option 3'!Y86*INDEX('Energy Prices'!$F$26:$CR$31,MATCH($B130,'Energy Prices'!$C$26:$C$31,0),MATCH(Calc_Option3!U$6,'Energy Prices'!$F$11:$CR$11,0))/100000,0)","v":0},{"$f":"IFERROR('Data Input - Option 3'!Z86*INDEX('Energy Prices'!$F$26:$CR$31,MATCH($B130,'Energy Prices'!$C$26:$C$31,0),MATCH(Calc_Option3!V$6,'Energy Prices'!$F$11:$CR$11,0))/100000,0)","v":0},{"$f":"IFERROR('Data Input - Option 3'!AA86*INDEX('Energy Prices'!$F$26:$CR$31,MATCH($B130,'Energy Prices'!$C$26:$C$31,0),MATCH(Calc_Option3!W$6,'Energy Prices'!$F$11:$CR$11,0))/100000,0)","v":0},{"$f":"IFERROR('Data Input - Option 3'!AB86*INDEX('Energy Prices'!$F$26:$CR$31,MATCH($B130,'Energy Prices'!$C$26:$C$31,0),MATCH(Calc_Option3!X$6,'Energy Prices'!$F$11:$CR$11,0))/100000,0)","v":0},{"$f":"IFERROR('Data Input - Option 3'!AC86*INDEX('Energy Prices'!$F$26:$CR$31,MATCH($B130,'Energy Prices'!$C$26:$C$31,0),MATCH(Calc_Option3!Y$6,'Energy Prices'!$F$11:$CR$11,0))/100000,0)","v":0},{"$f":"IFERROR('Data Input - Option 3'!AD86*INDEX('Energy Prices'!$F$26:$CR$31,MATCH($B130,'Energy Prices'!$C$26:$C$31,0),MATCH(Calc_Option3!Z$6,'Energy Prices'!$F$11:$CR$11,0))/100000,0)","v":0},{"$f":"IFERROR('Data Input - Option 3'!AE86*INDEX('Energy Prices'!$F$26:$CR$31,MATCH($B130,'Energy Prices'!$C$26:$C$31,0),MATCH(Calc_Option3!AA$6,'Energy Prices'!$F$11:$CR$11,0))/100000,0)","v":0},{"$f":"IFERROR('Data Input - Option 3'!AF86*INDEX('Energy Prices'!$F$26:$CR$31,MATCH($B130,'Energy Prices'!$C$26:$C$31,0),MATCH(Calc_Option3!AB$6,'Energy Prices'!$F$11:$CR$11,0))/100000,0)","v":0},{"$f":"IFERROR('Data Input - Option 3'!AG86*INDEX('Energy Prices'!$F$26:$CR$31,MATCH($B130,'Energy Prices'!$C$26:$C$31,0),MATCH(Calc_Option3!AC$6,'Energy Prices'!$F$11:$CR$11,0))/100000,0)","v":0},{"$f":"IFERROR('Data Input - Option 3'!AH86*INDEX('Energy Prices'!$F$26:$CR$31,MATCH($B130,'Energy Prices'!$C$26:$C$31,0),MATCH(Calc_Option3!AD$6,'Energy Prices'!$F$11:$CR$11,0))/100000,0)","v":0},{"$f":"IFERROR('Data Input - Option 3'!AI86*INDEX('Energy Prices'!$F$26:$CR$31,MATCH($B130,'Energy Prices'!$C$26:$C$31,0),MATCH(Calc_Option3!AE$6,'Energy Prices'!$F$11:$CR$11,0))/100000,0)","v":0},{"$f":"IFERROR('Data Input - Option 3'!AJ86*INDEX('Energy Prices'!$F$26:$CR$31,MATCH($B130,'Energy Prices'!$C$26:$C$31,0),MATCH(Calc_Option3!AF$6,'Energy Prices'!$F$11:$CR$11,0))/100000,0)","v":0},{"$f":"IFERROR('Data Input - Option 3'!AK86*INDEX('Energy Prices'!$F$26:$CR$31,MATCH($B130,'Energy Prices'!$C$26:$C$31,0),MATCH(Calc_Option3!AG$6,'Energy Prices'!$F$11:$CR$11,0))/100000,0)","v":0},{"$f":"IFERROR('Data Input - Option 3'!AL86*INDEX('Energy Prices'!$F$26:$CR$31,MATCH($B130,'Energy Prices'!$C$26:$C$31,0),MATCH(Calc_Option3!AH$6,'Energy Prices'!$F$11:$CR$11,0))/100000,0)","v":0},{"$f":"IFERROR('Data Input - Option 3'!AM86*INDEX('Energy Prices'!$F$26:$CR$31,MATCH($B130,'Energy Prices'!$C$26:$C$31,0),MATCH(Calc_Option3!AI$6,'Energy Prices'!$F$11:$CR$11,0))/100000,0)","v":0},{"$f":"IFERROR('Data Input - Option 3'!AN86*INDEX('Energy Prices'!$F$26:$CR$31,MATCH($B130,'Energy Prices'!$C$26:$C$31,0),MATCH(Calc_Option3!AJ$6,'Energy Prices'!$F$11:$CR$11,0))/100000,0)","v":0},{"$f":"IFERROR('Data Input - Option 3'!AO86*INDEX('Energy Prices'!$F$26:$CR$31,MATCH($B130,'Energy Prices'!$C$26:$C$31,0),MATCH(Calc_Option3!AK$6,'Energy Prices'!$F$11:$CR$11,0))/100000,0)","v":0},{"$f":"IFERROR('Data Input - Option 3'!AP86*INDEX('Energy Prices'!$F$26:$CR$31,MATCH($B130,'Energy Prices'!$C$26:$C$31,0),MATCH(Calc_Option3!AL$6,'Energy Prices'!$F$11:$CR$11,0))/100000,0)","v":0},{"$f":"IFERROR('Data Input - Option 3'!AQ86*INDEX('Energy Prices'!$F$26:$CR$31,MATCH($B130,'Energy Prices'!$C$26:$C$31,0),MATCH(Calc_Option3!AM$6,'Energy Prices'!$F$11:$CR$11,0))/100000,0)","v":0},{"$f":"IFERROR('Data Input - Option 3'!AR86*INDEX('Energy Prices'!$F$26:$CR$31,MATCH($B130,'Energy Prices'!$C$26:$C$31,0),MATCH(Calc_Option3!AN$6,'Energy Prices'!$F$11:$CR$11,0))/100000,0)","v":0},{"$f":"IFERROR('Data Input - Option 3'!AS86*INDEX('Energy Prices'!$F$26:$CR$31,MATCH($B130,'Energy Prices'!$C$26:$C$31,0),MATCH(Calc_Option3!AO$6,'Energy Prices'!$F$11:$CR$11,0))/100000,0)","v":0},{"$f":"IFERROR('Data Input - Option 3'!AT86*INDEX('Energy Prices'!$F$26:$CR$31,MATCH($B130,'Energy Prices'!$C$26:$C$31,0),MATCH(Calc_Option3!AP$6,'Energy Prices'!$F$11:$CR$11,0))/100000,0)","v":0},{"$f":"IFERROR('Data Input - Option 3'!AU86*INDEX('Energy Prices'!$F$26:$CR$31,MATCH($B130,'Energy Prices'!$C$26:$C$31,0),MATCH(Calc_Option3!AQ$6,'Energy Prices'!$F$11:$CR$11,0))/100000,0)","v":0},{"$f":"IFERROR('Data Input - Option 3'!AV86*INDEX('Energy Prices'!$F$26:$CR$31,MATCH($B130,'Energy Prices'!$C$26:$C$31,0),MATCH(Calc_Option3!AR$6,'Energy Prices'!$F$11:$CR$11,0))/100000,0)","v":0},{"$f":"IFERROR('Data Input - Option 3'!AW86*INDEX('Energy Prices'!$F$26:$CR$31,MATCH($B130,'Energy Prices'!$C$26:$C$31,0),MATCH(Calc_Option3!AS$6,'Energy Prices'!$F$11:$CR$11,0))/100000,0)","v":0},{"$f":"IFERROR('Data Input - Option 3'!AX86*INDEX('Energy Prices'!$F$26:$CR$31,MATCH($B130,'Energy Prices'!$C$26:$C$31,0),MATCH(Calc_Option3!AT$6,'Energy Prices'!$F$11:$CR$11,0))/100000,0)","v":0},{"$f":"IFERROR('Data Input - Option 3'!AY86*INDEX('Energy Prices'!$F$26:$CR$31,MATCH($B130,'Energy Prices'!$C$26:$C$31,0),MATCH(Calc_Option3!AU$6,'Energy Prices'!$F$11:$CR$11,0))/100000,0)","v":0},{"$f":"IFERROR('Data Input - Option 3'!AZ86*INDEX('Energy Prices'!$F$26:$CR$31,MATCH($B130,'Energy Prices'!$C$26:$C$31,0),MATCH(Calc_Option3!AV$6,'Energy Prices'!$F$11:$CR$11,0))/100000,0)","v":0},{"$f":"IFERROR('Data Input - Option 3'!BA86*INDEX('Energy Prices'!$F$26:$CR$31,MATCH($B130,'Energy Prices'!$C$26:$C$31,0),MATCH(Calc_Option3!AW$6,'Energy Prices'!$F$11:$CR$11,0))/100000,0)","v":0},{"$f":"IFERROR('Data Input - Option 3'!BB86*INDEX('Energy Prices'!$F$26:$CR$31,MATCH($B130,'Energy Prices'!$C$26:$C$31,0),MATCH(Calc_Option3!AX$6,'Energy Prices'!$F$11:$CR$11,0))/100000,0)","v":0},{"$f":"IFERROR('Data Input - Option 3'!BC86*INDEX('Energy Prices'!$F$26:$CR$31,MATCH($B130,'Energy Prices'!$C$26:$C$31,0),MATCH(Calc_Option3!AY$6,'Energy Prices'!$F$11:$CR$11,0))/100000,0)","v":0},{"$f":"IFERROR('Data Input - Option 3'!BD86*INDEX('Energy Prices'!$F$26:$CR$31,MATCH($B130,'Energy Prices'!$C$26:$C$31,0),MATCH(Calc_Option3!AZ$6,'Energy Prices'!$F$11:$CR$11,0))/100000,0)","v":0},{"$f":"IFERROR('Data Input - Option 3'!BE86*INDEX('Energy Prices'!$F$26:$CR$31,MATCH($B130,'Energy Prices'!$C$26:$C$31,0),MATCH(Calc_Option3!BA$6,'Energy Prices'!$F$11:$CR$11,0))/100000,0)","v":0},{"$f":"IFERROR('Data Input - Option 3'!BF86*INDEX('Energy Prices'!$F$26:$CR$31,MATCH($B130,'Energy Prices'!$C$26:$C$31,0),MATCH(Calc_Option3!BB$6,'Energy Prices'!$F$11:$CR$11,0))/100000,0)","v":0},{"$f":"IFERROR('Data Input - Option 3'!BG86*INDEX('Energy Prices'!$F$26:$CR$31,MATCH($B130,'Energy Prices'!$C$26:$C$31,0),MATCH(Calc_Option3!BC$6,'Energy Prices'!$F$11:$CR$11,0))/100000,0)","v":0},{"$f":"IFERROR('Data Input - Option 3'!BH86*INDEX('Energy Prices'!$F$26:$CR$31,MATCH($B130,'Energy Prices'!$C$26:$C$31,0),MATCH(Calc_Option3!BD$6,'Energy Prices'!$F$11:$CR$11,0))/100000,0)","v":0},{"$f":"IFERROR('Data Input - Option 3'!BI86*INDEX('Energy Prices'!$F$26:$CR$31,MATCH($B130,'Energy Prices'!$C$26:$C$31,0),MATCH(Calc_Option3!BE$6,'Energy Prices'!$F$11:$CR$11,0))/100000,0)","v":0},{"$f":"IFERROR('Data Input - Option 3'!BJ86*INDEX('Energy Prices'!$F$26:$CR$31,MATCH($B130,'Energy Prices'!$C$26:$C$31,0),MATCH(Calc_Option3!BF$6,'Energy Prices'!$F$11:$CR$11,0))/100000,0)","v":0},{"$f":"IFERROR('Data Input - Option 3'!BK86*INDEX('Energy Prices'!$F$26:$CR$31,MATCH($B130,'Energy Prices'!$C$26:$C$31,0),MATCH(Calc_Option3!BG$6,'Energy Prices'!$F$11:$CR$11,0))/100000,0)","v":0},{"$f":"IFERROR('Data Input - Option 3'!BL86*INDEX('Energy Prices'!$F$26:$CR$31,MATCH($B130,'Energy Prices'!$C$26:$C$31,0),MATCH(Calc_Option3!BH$6,'Energy Prices'!$F$11:$CR$11,0))/100000,0)","v":0},{"$f":"IFERROR('Data Input - Option 3'!BM86*INDEX('Energy Prices'!$F$26:$CR$31,MATCH($B130,'Energy Prices'!$C$26:$C$31,0),MATCH(Calc_Option3!BI$6,'Energy Prices'!$F$11:$CR$11,0))/100000,0)","v":0},{"$f":"IFERROR('Data Input - Option 3'!BN86*INDEX('Energy Prices'!$F$26:$CR$31,MATCH($B130,'Energy Prices'!$C$26:$C$31,0),MATCH(Calc_Option3!BJ$6,'Energy Prices'!$F$11:$CR$11,0))/100000,0)","v":0},{"$f":"IFERROR('Data Input - Option 3'!BO86*INDEX('Energy Prices'!$F$26:$CR$31,MATCH($B130,'Energy Prices'!$C$26:$C$31,0),MATCH(Calc_Option3!BK$6,'Energy Prices'!$F$11:$CR$11,0))/100000,0)","v":0},{"$f":"IFERROR('Data Input - Option 3'!BP86*INDEX('Energy Prices'!$F$26:$CR$31,MATCH($B130,'Energy Prices'!$C$26:$C$31,0),MATCH(Calc_Option3!BL$6,'Energy Prices'!$F$11:$CR$11,0))/100000,0)","v":0},{"$f":"IFERROR('Data Input - Option 3'!BQ86*INDEX('Energy Prices'!$F$26:$CR$31,MATCH($B130,'Energy Prices'!$C$26:$C$31,0),MATCH(Calc_Option3!BM$6,'Energy Prices'!$F$11:$CR$11,0))/100000,0)","v":0},{"$f":"IFERROR('Data Input - Option 3'!BR86*INDEX('Energy Prices'!$F$26:$CR$31,MATCH($B130,'Energy Prices'!$C$26:$C$31,0),MATCH(Calc_Option3!BN$6,'Energy Prices'!$F$11:$CR$11,0))/100000,0)","v":0},{"$f":"IFERROR('Data Input - Option 3'!BS86*INDEX('Energy Prices'!$F$26:$CR$31,MATCH($B130,'Energy Prices'!$C$26:$C$31,0),MATCH(Calc_Option3!BO$6,'Energy Prices'!$F$11:$CR$11,0))/100000,0)","v":0},{"$f":"IFERROR('Data Input - Option 3'!BT86*INDEX('Energy Prices'!$F$26:$CR$31,MATCH($B130,'Energy Prices'!$C$26:$C$31,0),MATCH(Calc_Option3!BP$6,'Energy Prices'!$F$11:$CR$11,0))/100000,0)","v":0},{"$f":"IFERROR('Data Input - Option 3'!BU86*INDEX('Energy Prices'!$F$26:$CR$31,MATCH($B130,'Energy Prices'!$C$26:$C$31,0),MATCH(Calc_Option3!BQ$6,'Energy Prices'!$F$11:$CR$11,0))/100000,0)","v":0},{"$f":"IFERROR('Data Input - Option 3'!BV86*INDEX('Energy Prices'!$F$26:$CR$31,MATCH($B130,'Energy Prices'!$C$26:$C$31,0),MATCH(Calc_Option3!BR$6,'Energy Prices'!$F$11:$CR$11,0))/100000,0)","v":0},{"$f":"IFERROR('Data Input - Option 3'!BW86*INDEX('Energy Prices'!$F$26:$CR$31,MATCH($B130,'Energy Prices'!$C$26:$C$31,0),MATCH(Calc_Option3!BS$6,'Energy Prices'!$F$11:$CR$11,0))/100000,0)","v":0},{"$f":"IFERROR('Data Input - Option 3'!BX86*INDEX('Energy Prices'!$F$26:$CR$31,MATCH($B130,'Energy Prices'!$C$26:$C$31,0),MATCH(Calc_Option3!BT$6,'Energy Prices'!$F$11:$CR$11,0))/100000,0)","v":0},{"$f":"IFERROR('Data Input - Option 3'!BY86*INDEX('Energy Prices'!$F$26:$CR$31,MATCH($B130,'Energy Prices'!$C$26:$C$31,0),MATCH(Calc_Option3!BU$6,'Energy Prices'!$F$11:$CR$11,0))/100000,0)","v":0},{"$f":"IFERROR('Data Input - Option 3'!BZ86*INDEX('Energy Prices'!$F$26:$CR$31,MATCH($B130,'Energy Prices'!$C$26:$C$31,0),MATCH(Calc_Option3!BV$6,'Energy Prices'!$F$11:$CR$11,0))/100000,0)","v":0},{"$f":"IFERROR('Data Input - Option 3'!CA86*INDEX('Energy Prices'!$F$26:$CR$31,MATCH($B130,'Energy Prices'!$C$26:$C$31,0),MATCH(Calc_Option3!BW$6,'Energy Prices'!$F$11:$CR$11,0))/100000,0)","v":0},{"$f":"IFERROR('Data Input - Option 3'!CB86*INDEX('Energy Prices'!$F$26:$CR$31,MATCH($B130,'Energy Prices'!$C$26:$C$31,0),MATCH(Calc_Option3!BX$6,'Energy Prices'!$F$11:$CR$11,0))/100000,0)","v":0},{"$f":"IFERROR('Data Input - Option 3'!CC86*INDEX('Energy Prices'!$F$26:$CR$31,MATCH($B130,'Energy Prices'!$C$26:$C$31,0),MATCH(Calc_Option3!BY$6,'Energy Prices'!$F$11:$CR$11,0))/100000,0)","v":0},{"$f":"IFERROR('Data Input - Option 3'!CD86*INDEX('Energy Prices'!$F$26:$CR$31,MATCH($B130,'Energy Prices'!$C$26:$C$31,0),MATCH(Calc_Option3!BZ$6,'Energy Prices'!$F$11:$CR$11,0))/100000,0)","v":0},{"$f":"IFERROR('Data Input - Option 3'!CE86*INDEX('Energy Prices'!$F$26:$CR$31,MATCH($B130,'Energy Prices'!$C$26:$C$31,0),MATCH(Calc_Option3!CA$6,'Energy Prices'!$F$11:$CR$11,0))/100000,0)","v":0},{"$f":"IFERROR('Data Input - Option 3'!CF86*INDEX('Energy Prices'!$F$26:$CR$31,MATCH($B130,'Energy Prices'!$C$26:$C$31,0),MATCH(Calc_Option3!CB$6,'Energy Prices'!$F$11:$CR$11,0))/100000,0)","v":0},{"$f":"IFERROR('Data Input - Option 3'!CG86*INDEX('Energy Prices'!$F$26:$CR$31,MATCH($B130,'Energy Prices'!$C$26:$C$31,0),MATCH(Calc_Option3!CC$6,'Energy Prices'!$F$11:$CR$11,0))/100000,0)","v":0},{"$f":"IFERROR('Data Input - Option 3'!CH86*INDEX('Energy Prices'!$F$26:$CR$31,MATCH($B130,'Energy Prices'!$C$26:$C$31,0),MATCH(Calc_Option3!CD$6,'Energy Prices'!$F$11:$CR$11,0))/100000,0)","v":0},{"$f":"IFERROR('Data Input - Option 3'!CI86*INDEX('Energy Prices'!$F$26:$CR$31,MATCH($B130,'Energy Prices'!$C$26:$C$31,0),MATCH(Calc_Option3!CE$6,'Energy Prices'!$F$11:$CR$11,0))/100000,0)","v":0},{"$f":"IFERROR('Data Input - Option 3'!CJ86*INDEX('Energy Prices'!$F$26:$CR$31,MATCH($B130,'Energy Prices'!$C$26:$C$31,0),MATCH(Calc_Option3!CF$6,'Energy Prices'!$F$11:$CR$11,0))/100000,0)","v":0},{"$f":"IFERROR('Data Input - Option 3'!CK86*INDEX('Energy Prices'!$F$26:$CR$31,MATCH($B130,'Energy Prices'!$C$26:$C$31,0),MATCH(Calc_Option3!CG$6,'Energy Prices'!$F$11:$CR$11,0))/100000,0)","v":0},{"$f":"IFERROR('Data Input - Option 3'!CL86*INDEX('Energy Prices'!$F$26:$CR$31,MATCH($B130,'Energy Prices'!$C$26:$C$31,0),MATCH(Calc_Option3!CH$6,'Energy Prices'!$F$11:$CR$11,0))/100000,0)","v":0},{"$f":"IFERROR('Data Input - Option 3'!CM86*INDEX('Energy Prices'!$F$26:$CR$31,MATCH($B130,'Energy Prices'!$C$26:$C$31,0),MATCH(Calc_Option3!CI$6,'Energy Prices'!$F$11:$CR$11,0))/100000,0)","v":0},{"$f":"IFERROR('Data Input - Option 3'!CN86*INDEX('Energy Prices'!$F$26:$CR$31,MATCH($B130,'Energy Prices'!$C$26:$C$31,0),MATCH(Calc_Option3!CJ$6,'Energy Prices'!$F$11:$CR$11,0))/100000,0)","v":0},{"$f":"IFERROR('Data Input - Option 3'!CO86*INDEX('Energy Prices'!$F$26:$CR$31,MATCH($B130,'Energy Prices'!$C$26:$C$31,0),MATCH(Calc_Option3!CK$6,'Energy Prices'!$F$11:$CR$11,0))/100000,0)","v":0},{"$f":"IFERROR('Data Input - Option 3'!CP86*INDEX('Energy Prices'!$F$26:$CR$31,MATCH($B130,'Energy Prices'!$C$26:$C$31,0),MATCH(Calc_Option3!CL$6,'Energy Prices'!$F$11:$CR$11,0))/100000,0)","v":0},{"$f":"IFERROR('Data Input - Option 3'!CQ86*INDEX('Energy Prices'!$F$26:$CR$31,MATCH($B130,'Energy Prices'!$C$26:$C$31,0),MATCH(Calc_Option3!CM$6,'Energy Prices'!$F$11:$CR$11,0))/100000,0)","v":0},{"$f":"IFERROR('Data Input - Option 3'!CR86*INDEX('Energy Prices'!$F$26:$CR$31,MATCH($B130,'Energy Prices'!$C$26:$C$31,0),MATCH(Calc_Option3!CN$6,'Energy Prices'!$F$11:$CR$11,0))/100000,0)","v":0},{"$f":"IFERROR('Data Input - Option 3'!CS86*INDEX('Energy Prices'!$F$26:$CR$31,MATCH($B130,'Energy Prices'!$C$26:$C$31,0),MATCH(Calc_Option3!CO$6,'Energy Prices'!$F$11:$CR$11,0))/100000,0)","v":0},{"$f":"IFERROR('Data Input - Option 3'!CT86*INDEX('Energy Prices'!$F$26:$CR$31,MATCH($B130,'Energy Prices'!$C$26:$C$31,0),MATCH(Calc_Option3!CP$6,'Energy Prices'!$F$11:$CR$11,0))/100000,0)","v":0},{"$f":"IFERROR('Data Input - Option 3'!CU86*INDEX('Energy Prices'!$F$26:$CR$31,MATCH($B130,'Energy Prices'!$C$26:$C$31,0),MATCH(Calc_Option3!CQ$6,'Energy Prices'!$F$11:$CR$11,0))/100000,0)","v":0},{"$f":"IFERROR('Data Input - Option 3'!CV86*INDEX('Energy Prices'!$F$26:$CR$31,MATCH($B130,'Energy Prices'!$C$26:$C$31,0),MATCH(Calc_Option3!CR$6,'Energy Prices'!$F$11:$CR$11,0))/100000,0)","v":0},{"$f":"IFERROR('Data Input - Option 3'!CW86*INDEX('Energy Prices'!$F$26:$CR$31,MATCH($B130,'Energy Prices'!$C$26:$C$31,0),MATCH(Calc_Option3!CS$6,'Energy Prices'!$F$11:$CR$11,0))/100000,0)","v":0},{"$f":"IFERROR('Data Input - Option 3'!CX86*INDEX('Energy Prices'!$F$26:$CR$31,MATCH($B130,'Energy Prices'!$C$26:$C$31,0),MATCH(Calc_Option3!CT$6,'Energy Prices'!$F$11:$CR$11,0))/100000,0)","v":0},{"$f":"IFERROR('Data Input - Option 3'!CY86*INDEX('Energy Prices'!$F$26:$CR$31,MATCH($B130,'Energy Prices'!$C$26:$C$31,0),MATCH(Calc_Option3!CU$6,'Energy Prices'!$F$11:$CR$11,0))/100000,0)","v":0},{"$f":"IFERROR('Data Input - Option 3'!CZ86*INDEX('Energy Prices'!$F$26:$CR$31,MATCH($B130,'Energy Prices'!$C$26:$C$31,0),MATCH(Calc_Option3!CV$6,'Energy Prices'!$F$11:$CR$11,0))/100000,0)","v":0},{"$f":"IFERROR('Data Input - Option 3'!DA86*INDEX('Energy Prices'!$F$26:$CR$31,MATCH($B130,'Energy Prices'!$C$26:$C$31,0),MATCH(Calc_Option3!CW$6,'Energy Prices'!$F$11:$CR$11,0))/100000,0)","v":0},{"$f":"IFERROR('Data Input - Option 3'!DB86*INDEX('Energy Prices'!$F$26:$CR$31,MATCH($B130,'Energy Prices'!$C$26:$C$31,0),MATCH(Calc_Option3!CX$6,'Energy Prices'!$F$11:$CR$11,0))/100000,0)","v":0},{"$f":"IFERROR('Data Input - Option 3'!DC86*INDEX('Energy Prices'!$F$26:$CR$31,MATCH($B130,'Energy Prices'!$C$26:$C$31,0),MATCH(Calc_Option3!CY$6,'Energy Prices'!$F$11:$CR$11,0))/100000,0)","v":0}]
[null,"Gas Oil","£000's",{"$f":"IFERROR('Data Input - Option 3'!H87*INDEX('Energy Prices'!$F$26:$CR$31,MATCH($B131,'Energy Prices'!$C$26:$C$31,0),MATCH(Calc_Option3!D$6,'Energy Prices'!$F$11:$CR$11,0))/100000,0)","v":159.58768760508622},{"$f":"IFERROR('Data Input - Option 3'!I87*INDEX('Energy Prices'!$F$26:$CR$31,MATCH($B131,'Energy Prices'!$C$26:$C$31,0),MATCH(Calc_Option3!E$6,'Energy Prices'!$F$11:$CR$11,0))/100000,0)","v":163.88916071794324},{"$f":"IFERROR('Data Input - Option 3'!J87*INDEX('Energy Prices'!$F$26:$CR$31,MATCH($B131,'Energy Prices'!$C$26:$C$31,0),MATCH(Calc_Option3!F$6,'Energy Prices'!$F$11:$CR$11,0))/100000,0)","v":168.20994897459815},{"$f":"IFERROR('Data Input - Option 3'!K87*INDEX('Energy Prices'!$F$26:$CR$31,MATCH($B131,'Energy Prices'!$C$26:$C$31,0),MATCH(Calc_Option3!G$6,'Energy Prices'!$F$11:$CR$11,0))/100000,0)","v":172.51610138744758},{"$f":"IFERROR('Data Input - Option 3'!L87*INDEX('Energy Prices'!$F$26:$CR$31,MATCH($B131,'Energy Prices'!$C$26:$C$31,0),MATCH(Calc_Option3!H$6,'Energy Prices'!$F$11:$CR$11,0))/100000,0)","v":176.81563540542891},{"$f":"IFERROR('Data Input - Option 3'!M87*INDEX('Energy Prices'!$F$26:$CR$31,MATCH($B131,'Energy Prices'!$C$26:$C$31,0),MATCH(Calc_Option3!I$6,'Energy Prices'!$F$11:$CR$11,0))/100000,0)","v":181.11632434999379},{"$f":"IFERROR('Data Input - Option 3'!N87*INDEX('Energy Prices'!$F$26:$CR$31,MATCH($B131,'Energy Prices'!$C$26:$C$31,0),MATCH(Calc_Option3!J$6,'Energy Prices'!$F$11:$CR$11,0))/100000,0)","v":185.41817612386572},{"$f":"IFERROR('Data Input - Option 3'!O87*INDEX('Energy Prices'!$F$26:$CR$31,MATCH($B131,'Energy Prices'!$C$26:$C$31,0),MATCH(Calc_Option3!K$6,'Energy Prices'!$F$11:$CR$11,0))/100000,0)","v":189.7211986838434},{"$f":"IFERROR('Data Input - Option 3'!P87*INDEX('Energy Prices'!$F$26:$CR$31,MATCH($B131,'Energy Prices'!$C$26:$C$31,0),MATCH(Calc_Option3!L$6,'Energy Prices'!$F$11:$CR$11,0))/100000,0)","v":0},{"$f":"IFERROR('Data Input - Option 3'!Q87*INDEX('Energy Prices'!$F$26:$CR$31,MATCH($B131,'Energy Prices'!$C$26:$C$31,0),MATCH(Calc_Option3!M$6,'Energy Prices'!$F$11:$CR$11,0))/100000,0)","v":0},{"$f":"IFERROR('Data Input - Option 3'!R87*INDEX('Energy Prices'!$F$26:$CR$31,MATCH($B131,'Energy Prices'!$C$26:$C$31,0),MATCH(Calc_Option3!N$6,'Energy Prices'!$F$11:$CR$11,0))/100000,0)","v":0},{"$f":"IFERROR('Data Input - Option 3'!S87*INDEX('Energy Prices'!$F$26:$CR$31,MATCH($B131,'Energy Prices'!$C$26:$C$31,0),MATCH(Calc_Option3!O$6,'Energy Prices'!$F$11:$CR$11,0))/100000,0)","v":0},{"$f":"IFERROR('Data Input - Option 3'!T87*INDEX('Energy Prices'!$F$26:$CR$31,MATCH($B131,'Energy Prices'!$C$26:$C$31,0),MATCH(Calc_Option3!P$6,'Energy Prices'!$F$11:$CR$11,0))/100000,0)","v":0},{"$f":"IFERROR('Data Input - Option 3'!U87*INDEX('Energy Prices'!$F$26:$CR$31,MATCH($B131,'Energy Prices'!$C$26:$C$31,0),MATCH(Calc_Option3!Q$6,'Energy Prices'!$F$11:$CR$11,0))/100000,0)","v":0},{"$f":"IFERROR('Data Input - Option 3'!V87*INDEX('Energy Prices'!$F$26:$CR$31,MATCH($B131,'Energy Prices'!$C$26:$C$31,0),MATCH(Calc_Option3!R$6,'Energy Prices'!$F$11:$CR$11,0))/100000,0)","v":0},{"$f":"IFERROR('Data Input - Option 3'!W87*INDEX('Energy Prices'!$F$26:$CR$31,MATCH($B131,'Energy Prices'!$C$26:$C$31,0),MATCH(Calc_Option3!S$6,'Energy Prices'!$F$11:$CR$11,0))/100000,0)","v":0},{"$f":"IFERROR('Data Input - Option 3'!X87*INDEX('Energy Prices'!$F$26:$CR$31,MATCH($B131,'Energy Prices'!$C$26:$C$31,0),MATCH(Calc_Option3!T$6,'Energy Prices'!$F$11:$CR$11,0))/100000,0)","v":0},{"$f":"IFERROR('Data Input - Option 3'!Y87*INDEX('Energy Prices'!$F$26:$CR$31,MATCH($B131,'Energy Prices'!$C$26:$C$31,0),MATCH(Calc_Option3!U$6,'Energy Prices'!$F$11:$CR$11,0))/100000,0)","v":0},{"$f":"IFERROR('Data Input - Option 3'!Z87*INDEX('Energy Prices'!$F$26:$CR$31,MATCH($B131,'Energy Prices'!$C$26:$C$31,0),MATCH(Calc_Option3!V$6,'Energy Prices'!$F$11:$CR$11,0))/100000,0)","v":0},{"$f":"IFERROR('Data Input - Option 3'!AA87*INDEX('Energy Prices'!$F$26:$CR$31,MATCH($B131,'Energy Prices'!$C$26:$C$31,0),MATCH(Calc_Option3!W$6,'Energy Prices'!$F$11:$CR$11,0))/100000,0)","v":0},{"$f":"IFERROR('Data Input - Option 3'!AB87*INDEX('Energy Prices'!$F$26:$CR$31,MATCH($B131,'Energy Prices'!$C$26:$C$31,0),MATCH(Calc_Option3!X$6,'Energy Prices'!$F$11:$CR$11,0))/100000,0)","v":0},{"$f":"IFERROR('Data Input - Option 3'!AC87*INDEX('Energy Prices'!$F$26:$CR$31,MATCH($B131,'Energy Prices'!$C$26:$C$31,0),MATCH(Calc_Option3!Y$6,'Energy Prices'!$F$11:$CR$11,0))/100000,0)","v":0},{"$f":"IFERROR('Data Input - Option 3'!AD87*INDEX('Energy Prices'!$F$26:$CR$31,MATCH($B131,'Energy Prices'!$C$26:$C$31,0),MATCH(Calc_Option3!Z$6,'Energy Prices'!$F$11:$CR$11,0))/100000,0)","v":0},{"$f":"IFERROR('Data Input - Option 3'!AE87*INDEX('Energy Prices'!$F$26:$CR$31,MATCH($B131,'Energy Prices'!$C$26:$C$31,0),MATCH(Calc_Option3!AA$6,'Energy Prices'!$F$11:$CR$11,0))/100000,0)","v":0},{"$f":"IFERROR('Data Input - Option 3'!AF87*INDEX('Energy Prices'!$F$26:$CR$31,MATCH($B131,'Energy Prices'!$C$26:$C$31,0),MATCH(Calc_Option3!AB$6,'Energy Prices'!$F$11:$CR$11,0))/100000,0)","v":0},{"$f":"IFERROR('Data Input - Option 3'!AG87*INDEX('Energy Prices'!$F$26:$CR$31,MATCH($B131,'Energy Prices'!$C$26:$C$31,0),MATCH(Calc_Option3!AC$6,'Energy Prices'!$F$11:$CR$11,0))/100000,0)","v":0},{"$f":"IFERROR('Data Input - Option 3'!AH87*INDEX('Energy Prices'!$F$26:$CR$31,MATCH($B131,'Energy Prices'!$C$26:$C$31,0),MATCH(Calc_Option3!AD$6,'Energy Prices'!$F$11:$CR$11,0))/100000,0)","v":0},{"$f":"IFERROR('Data Input - Option 3'!AI87*INDEX('Energy Prices'!$F$26:$CR$31,MATCH($B131,'Energy Prices'!$C$26:$C$31,0),MATCH(Calc_Option3!AE$6,'Energy Prices'!$F$11:$CR$11,0))/100000,0)","v":0},{"$f":"IFERROR('Data Input - Option 3'!AJ87*INDEX('Energy Prices'!$F$26:$CR$31,MATCH($B131,'Energy Prices'!$C$26:$C$31,0),MATCH(Calc_Option3!AF$6,'Energy Prices'!$F$11:$CR$11,0))/100000,0)","v":0},{"$f":"IFERROR('Data Input - Option 3'!AK87*INDEX('Energy Prices'!$F$26:$CR$31,MATCH($B131,'Energy Prices'!$C$26:$C$31,0),MATCH(Calc_Option3!AG$6,'Energy Prices'!$F$11:$CR$11,0))/100000,0)","v":0},{"$f":"IFERROR('Data Input - Option 3'!AL87*INDEX('Energy Prices'!$F$26:$CR$31,MATCH($B131,'Energy Prices'!$C$26:$C$31,0),MATCH(Calc_Option3!AH$6,'Energy Prices'!$F$11:$CR$11,0))/100000,0)","v":0},{"$f":"IFERROR('Data Input - Option 3'!AM87*INDEX('Energy Prices'!$F$26:$CR$31,MATCH($B131,'Energy Prices'!$C$26:$C$31,0),MATCH(Calc_Option3!AI$6,'Energy Prices'!$F$11:$CR$11,0))/100000,0)","v":0},{"$f":"IFERROR('Data Input - Option 3'!AN87*INDEX('Energy Prices'!$F$26:$CR$31,MATCH($B131,'Energy Prices'!$C$26:$C$31,0),MATCH(Calc_Option3!AJ$6,'Energy Prices'!$F$11:$CR$11,0))/100000,0)","v":0},{"$f":"IFERROR('Data Input - Option 3'!AO87*INDEX('Energy Prices'!$F$26:$CR$31,MATCH($B131,'Energy Prices'!$C$26:$C$31,0),MATCH(Calc_Option3!AK$6,'Energy Prices'!$F$11:$CR$11,0))/100000,0)","v":0},{"$f":"IFERROR('Data Input - Option 3'!AP87*INDEX('Energy Prices'!$F$26:$CR$31,MATCH($B131,'Energy Prices'!$C$26:$C$31,0),MATCH(Calc_Option3!AL$6,'Energy Prices'!$F$11:$CR$11,0))/100000,0)","v":0},{"$f":"IFERROR('Data Input - Option 3'!AQ87*INDEX('Energy Prices'!$F$26:$CR$31,MATCH($B131,'Energy Prices'!$C$26:$C$31,0),MATCH(Calc_Option3!AM$6,'Energy Prices'!$F$11:$CR$11,0))/100000,0)","v":0},{"$f":"IFERROR('Data Input - Option 3'!AR87*INDEX('Energy Prices'!$F$26:$CR$31,MATCH($B131,'Energy Prices'!$C$26:$C$31,0),MATCH(Calc_Option3!AN$6,'Energy Prices'!$F$11:$CR$11,0))/100000,0)","v":0},{"$f":"IFERROR('Data Input - Option 3'!AS87*INDEX('Energy Prices'!$F$26:$CR$31,MATCH($B131,'Energy Prices'!$C$26:$C$31,0),MATCH(Calc_Option3!AO$6,'Energy Prices'!$F$11:$CR$11,0))/100000,0)","v":0},{"$f":"IFERROR('Data Input - Option 3'!AT87*INDEX('Energy Prices'!$F$26:$CR$31,MATCH($B131,'Energy Prices'!$C$26:$C$31,0),MATCH(Calc_Option3!AP$6,'Energy Prices'!$F$11:$CR$11,0))/100000,0)","v":0},{"$f":"IFERROR('Data Input - Option 3'!AU87*INDEX('Energy Prices'!$F$26:$CR$31,MATCH($B131,'Energy Prices'!$C$26:$C$31,0),MATCH(Calc_Option3!AQ$6,'Energy Prices'!$F$11:$CR$11,0))/100000,0)","v":0},{"$f":"IFERROR('Data Input - Option 3'!AV87*INDEX('Energy Prices'!$F$26:$CR$31,MATCH($B131,'Energy Prices'!$C$26:$C$31,0),MATCH(Calc_Option3!AR$6,'Energy Prices'!$F$11:$CR$11,0))/100000,0)","v":0},{"$f":"IFERROR('Data Input - Option 3'!AW87*INDEX('Energy Prices'!$F$26:$CR$31,MATCH($B131,'Energy Prices'!$C$26:$C$31,0),MATCH(Calc_Option3!AS$6,'Energy Prices'!$F$11:$CR$11,0))/100000,0)","v":0},{"$f":"IFERROR('Data Input - Option 3'!AX87*INDEX('Energy Prices'!$F$26:$CR$31,MATCH($B131,'Energy Prices'!$C$26:$C$31,0),MATCH(Calc_Option3!AT$6,'Energy Prices'!$F$11:$CR$11,0))/100000,0)","v":0},{"$f":"IFERROR('Data Input - Option 3'!AY87*INDEX('Energy Prices'!$F$26:$CR$31,MATCH($B131,'Energy Prices'!$C$26:$C$31,0),MATCH(Calc_Option3!AU$6,'Energy Prices'!$F$11:$CR$11,0))/100000,0)","v":0},{"$f":"IFERROR('Data Input - Option 3'!AZ87*INDEX('Energy Prices'!$F$26:$CR$31,MATCH($B131,'Energy Prices'!$C$26:$C$31,0),MATCH(Calc_Option3!AV$6,'Energy Prices'!$F$11:$CR$11,0))/100000,0)","v":0},{"$f":"IFERROR('Data Input - Option 3'!BA87*INDEX('Energy Prices'!$F$26:$CR$31,MATCH($B131,'Energy Prices'!$C$26:$C$31,0),MATCH(Calc_Option3!AW$6,'Energy Prices'!$F$11:$CR$11,0))/100000,0)","v":0},{"$f":"IFERROR('Data Input - Option 3'!BB87*INDEX('Energy Prices'!$F$26:$CR$31,MATCH($B131,'Energy Prices'!$C$26:$C$31,0),MATCH(Calc_Option3!AX$6,'Energy Prices'!$F$11:$CR$11,0))/100000,0)","v":0},{"$f":"IFERROR('Data Input - Option 3'!BC87*INDEX('Energy Prices'!$F$26:$CR$31,MATCH($B131,'Energy Prices'!$C$26:$C$31,0),MATCH(Calc_Option3!AY$6,'Energy Prices'!$F$11:$CR$11,0))/100000,0)","v":0},{"$f":"IFERROR('Data Input - Option 3'!BD87*INDEX('Energy Prices'!$F$26:$CR$31,MATCH($B131,'Energy Prices'!$C$26:$C$31,0),MATCH(Calc_Option3!AZ$6,'Energy Prices'!$F$11:$CR$11,0))/100000,0)","v":0},{"$f":"IFERROR('Data Input - Option 3'!BE87*INDEX('Energy Prices'!$F$26:$CR$31,MATCH($B131,'Energy Prices'!$C$26:$C$31,0),MATCH(Calc_Option3!BA$6,'Energy Prices'!$F$11:$CR$11,0))/100000,0)","v":0},{"$f":"IFERROR('Data Input - Option 3'!BF87*INDEX('Energy Prices'!$F$26:$CR$31,MATCH($B131,'Energy Prices'!$C$26:$C$31,0),MATCH(Calc_Option3!BB$6,'Energy Prices'!$F$11:$CR$11,0))/100000,0)","v":0},{"$f":"IFERROR('Data Input - Option 3'!BG87*INDEX('Energy Prices'!$F$26:$CR$31,MATCH($B131,'Energy Prices'!$C$26:$C$31,0),MATCH(Calc_Option3!BC$6,'Energy Prices'!$F$11:$CR$11,0))/100000,0)","v":0},{"$f":"IFERROR('Data Input - Option 3'!BH87*INDEX('Energy Prices'!$F$26:$CR$31,MATCH($B131,'Energy Prices'!$C$26:$C$31,0),MATCH(Calc_Option3!BD$6,'Energy Prices'!$F$11:$CR$11,0))/100000,0)","v":0},{"$f":"IFERROR('Data Input - Option 3'!BI87*INDEX('Energy Prices'!$F$26:$CR$31,MATCH($B131,'Energy Prices'!$C$26:$C$31,0),MATCH(Calc_Option3!BE$6,'Energy Prices'!$F$11:$CR$11,0))/100000,0)","v":0},{"$f":"IFERROR('Data Input - Option 3'!BJ87*INDEX('Energy Prices'!$F$26:$CR$31,MATCH($B131,'Energy Prices'!$C$26:$C$31,0),MATCH(Calc_Option3!BF$6,'Energy Prices'!$F$11:$CR$11,0))/100000,0)","v":0},{"$f":"IFERROR('Data Input - Option 3'!BK87*INDEX('Energy Prices'!$F$26:$CR$31,MATCH($B131,'Energy Prices'!$C$26:$C$31,0),MATCH(Calc_Option3!BG$6,'Energy Prices'!$F$11:$CR$11,0))/100000,0)","v":0},{"$f":"IFERROR('Data Input - Option 3'!BL87*INDEX('Energy Prices'!$F$26:$CR$31,MATCH($B131,'Energy Prices'!$C$26:$C$31,0),MATCH(Calc_Option3!BH$6,'Energy Prices'!$F$11:$CR$11,0))/100000,0)","v":0},{"$f":"IFERROR('Data Input - Option 3'!BM87*INDEX('Energy Prices'!$F$26:$CR$31,MATCH($B131,'Energy Prices'!$C$26:$C$31,0),MATCH(Calc_Option3!BI$6,'Energy Prices'!$F$11:$CR$11,0))/100000,0)","v":0},{"$f":"IFERROR('Data Input - Option 3'!BN87*INDEX('Energy Prices'!$F$26:$CR$31,MATCH($B131,'Energy Prices'!$C$26:$C$31,0),MATCH(Calc_Option3!BJ$6,'Energy Prices'!$F$11:$CR$11,0))/100000,0)","v":0},{"$f":"IFERROR('Data Input - Option 3'!BO87*INDEX('Energy Prices'!$F$26:$CR$31,MATCH($B131,'Energy Prices'!$C$26:$C$31,0),MATCH(Calc_Option3!BK$6,'Energy Prices'!$F$11:$CR$11,0))/100000,0)","v":0},{"$f":"IFERROR('Data Input - Option 3'!BP87*INDEX('Energy Prices'!$F$26:$CR$31,MATCH($B131,'Energy Prices'!$C$26:$C$31,0),MATCH(Calc_Option3!BL$6,'Energy Prices'!$F$11:$CR$11,0))/100000,0)","v":0},{"$f":"IFERROR('Data Input - Option 3'!BQ87*INDEX('Energy Prices'!$F$26:$CR$31,MATCH($B131,'Energy Prices'!$C$26:$C$31,0),MATCH(Calc_Option3!BM$6,'Energy Prices'!$F$11:$CR$11,0))/100000,0)","v":0},{"$f":"IFERROR('Data Input - Option 3'!BR87*INDEX('Energy Prices'!$F$26:$CR$31,MATCH($B131,'Energy Prices'!$C$26:$C$31,0),MATCH(Calc_Option3!BN$6,'Energy Prices'!$F$11:$CR$11,0))/100000,0)","v":0},{"$f":"IFERROR('Data Input - Option 3'!BS87*INDEX('Energy Prices'!$F$26:$CR$31,MATCH($B131,'Energy Prices'!$C$26:$C$31,0),MATCH(Calc_Option3!BO$6,'Energy Prices'!$F$11:$CR$11,0))/100000,0)","v":0},{"$f":"IFERROR('Data Input - Option 3'!BT87*INDEX('Energy Prices'!$F$26:$CR$31,MATCH($B131,'Energy Prices'!$C$26:$C$31,0),MATCH(Calc_Option3!BP$6,'Energy Prices'!$F$11:$CR$11,0))/100000,0)","v":0},{"$f":"IFERROR('Data Input - Option 3'!BU87*INDEX('Energy Prices'!$F$26:$CR$31,MATCH($B131,'Energy Prices'!$C$26:$C$31,0),MATCH(Calc_Option3!BQ$6,'Energy Prices'!$F$11:$CR$11,0))/100000,0)","v":0},{"$f":"IFERROR('Data Input - Option 3'!BV87*INDEX('Energy Prices'!$F$26:$CR$31,MATCH($B131,'Energy Prices'!$C$26:$C$31,0),MATCH(Calc_Option3!BR$6,'Energy Prices'!$F$11:$CR$11,0))/100000,0)","v":0},{"$f":"IFERROR('Data Input - Option 3'!BW87*INDEX('Energy Prices'!$F$26:$CR$31,MATCH($B131,'Energy Prices'!$C$26:$C$31,0),MATCH(Calc_Option3!BS$6,'Energy Prices'!$F$11:$CR$11,0))/100000,0)","v":0},{"$f":"IFERROR('Data Input - Option 3'!BX87*INDEX('Energy Prices'!$F$26:$CR$31,MATCH($B131,'Energy Prices'!$C$26:$C$31,0),MATCH(Calc_Option3!BT$6,'Energy Prices'!$F$11:$CR$11,0))/100000,0)","v":0},{"$f":"IFERROR('Data Input - Option 3'!BY87*INDEX('Energy Prices'!$F$26:$CR$31,MATCH($B131,'Energy Prices'!$C$26:$C$31,0),MATCH(Calc_Option3!BU$6,'Energy Prices'!$F$11:$CR$11,0))/100000,0)","v":0},{"$f":"IFERROR('Data Input - Option 3'!BZ87*INDEX('Energy Prices'!$F$26:$CR$31,MATCH($B131,'Energy Prices'!$C$26:$C$31,0),MATCH(Calc_Option3!BV$6,'Energy Prices'!$F$11:$CR$11,0))/100000,0)","v":0},{"$f":"IFERROR('Data Input - Option 3'!CA87*INDEX('Energy Prices'!$F$26:$CR$31,MATCH($B131,'Energy Prices'!$C$26:$C$31,0),MATCH(Calc_Option3!BW$6,'Energy Prices'!$F$11:$CR$11,0))/100000,0)","v":0},{"$f":"IFERROR('Data Input - Option 3'!CB87*INDEX('Energy Prices'!$F$26:$CR$31,MATCH($B131,'Energy Prices'!$C$26:$C$31,0),MATCH(Calc_Option3!BX$6,'Energy Prices'!$F$11:$CR$11,0))/100000,0)","v":0},{"$f":"IFERROR('Data Input - Option 3'!CC87*INDEX('Energy Prices'!$F$26:$CR$31,MATCH($B131,'Energy Prices'!$C$26:$C$31,0),MATCH(Calc_Option3!BY$6,'Energy Prices'!$F$11:$CR$11,0))/100000,0)","v":0},{"$f":"IFERROR('Data Input - Option 3'!CD87*INDEX('Energy Prices'!$F$26:$CR$31,MATCH($B131,'Energy Prices'!$C$26:$C$31,0),MATCH(Calc_Option3!BZ$6,'Energy Prices'!$F$11:$CR$11,0))/100000,0)","v":0},{"$f":"IFERROR('Data Input - Option 3'!CE87*INDEX('Energy Prices'!$F$26:$CR$31,MATCH($B131,'Energy Prices'!$C$26:$C$31,0),MATCH(Calc_Option3!CA$6,'Energy Prices'!$F$11:$CR$11,0))/100000,0)","v":0},{"$f":"IFERROR('Data Input - Option 3'!CF87*INDEX('Energy Prices'!$F$26:$CR$31,MATCH($B131,'Energy Prices'!$C$26:$C$31,0),MATCH(Calc_Option3!CB$6,'Energy Prices'!$F$11:$CR$11,0))/100000,0)","v":0},{"$f":"IFERROR('Data Input - Option 3'!CG87*INDEX('Energy Prices'!$F$26:$CR$31,MATCH($B131,'Energy Prices'!$C$26:$C$31,0),MATCH(Calc_Option3!CC$6,'Energy Prices'!$F$11:$CR$11,0))/100000,0)","v":0},{"$f":"IFERROR('Data Input - Option 3'!CH87*INDEX('Energy Prices'!$F$26:$CR$31,MATCH($B131,'Energy Prices'!$C$26:$C$31,0),MATCH(Calc_Option3!CD$6,'Energy Prices'!$F$11:$CR$11,0))/100000,0)","v":0},{"$f":"IFERROR('Data Input - Option 3'!CI87*INDEX('Energy Prices'!$F$26:$CR$31,MATCH($B131,'Energy Prices'!$C$26:$C$31,0),MATCH(Calc_Option3!CE$6,'Energy Prices'!$F$11:$CR$11,0))/100000,0)","v":0},{"$f":"IFERROR('Data Input - Option 3'!CJ87*INDEX('Energy Prices'!$F$26:$CR$31,MATCH($B131,'Energy Prices'!$C$26:$C$31,0),MATCH(Calc_Option3!CF$6,'Energy Prices'!$F$11:$CR$11,0))/100000,0)","v":0},{"$f":"IFERROR('Data Input - Option 3'!CK87*INDEX('Energy Prices'!$F$26:$CR$31,MATCH($B131,'Energy Prices'!$C$26:$C$31,0),MATCH(Calc_Option3!CG$6,'Energy Prices'!$F$11:$CR$11,0))/100000,0)","v":0},{"$f":"IFERROR('Data Input - Option 3'!CL87*INDEX('Energy Prices'!$F$26:$CR$31,MATCH($B131,'Energy Prices'!$C$26:$C$31,0),MATCH(Calc_Option3!CH$6,'Energy Prices'!$F$11:$CR$11,0))/100000,0)","v":0},{"$f":"IFERROR('Data Input - Option 3'!CM87*INDEX('Energy Prices'!$F$26:$CR$31,MATCH($B131,'Energy Prices'!$C$26:$C$31,0),MATCH(Calc_Option3!CI$6,'Energy Prices'!$F$11:$CR$11,0))/100000,0)","v":0},{"$f":"IFERROR('Data Input - Option 3'!CN87*INDEX('Energy Prices'!$F$26:$CR$31,MATCH($B131,'Energy Prices'!$C$26:$C$31,0),MATCH(Calc_Option3!CJ$6,'Energy Prices'!$F$11:$CR$11,0))/100000,0)","v":0},{"$f":"IFERROR('Data Input - Option 3'!CO87*INDEX('Energy Prices'!$F$26:$CR$31,MATCH($B131,'Energy Prices'!$C$26:$C$31,0),MATCH(Calc_Option3!CK$6,'Energy Prices'!$F$11:$CR$11,0))/100000,0)","v":0},{"$f":"IFERROR('Data Input - Option 3'!CP87*INDEX('Energy Prices'!$F$26:$CR$31,MATCH($B131,'Energy Prices'!$C$26:$C$31,0),MATCH(Calc_Option3!CL$6,'Energy Prices'!$F$11:$CR$11,0))/100000,0)","v":0},{"$f":"IFERROR('Data Input - Option 3'!CQ87*INDEX('Energy Prices'!$F$26:$CR$31,MATCH($B131,'Energy Prices'!$C$26:$C$31,0),MATCH(Calc_Option3!CM$6,'Energy Prices'!$F$11:$CR$11,0))/100000,0)","v":0},{"$f":"IFERROR('Data Input - Option 3'!CR87*INDEX('Energy Prices'!$F$26:$CR$31,MATCH($B131,'Energy Prices'!$C$26:$C$31,0),MATCH(Calc_Option3!CN$6,'Energy Prices'!$F$11:$CR$11,0))/100000,0)","v":0},{"$f":"IFERROR('Data Input - Option 3'!CS87*INDEX('Energy Prices'!$F$26:$CR$31,MATCH($B131,'Energy Prices'!$C$26:$C$31,0),MATCH(Calc_Option3!CO$6,'Energy Prices'!$F$11:$CR$11,0))/100000,0)","v":0},{"$f":"IFERROR('Data Input - Option 3'!CT87*INDEX('Energy Prices'!$F$26:$CR$31,MATCH($B131,'Energy Prices'!$C$26:$C$31,0),MATCH(Calc_Option3!CP$6,'Energy Prices'!$F$11:$CR$11,0))/100000,0)","v":0},{"$f":"IFERROR('Data Input - Option 3'!CU87*INDEX('Energy Prices'!$F$26:$CR$31,MATCH($B131,'Energy Prices'!$C$26:$C$31,0),MATCH(Calc_Option3!CQ$6,'Energy Prices'!$F$11:$CR$11,0))/100000,0)","v":0},{"$f":"IFERROR('Data Input - Option 3'!CV87*INDEX('Energy Prices'!$F$26:$CR$31,MATCH($B131,'Energy Prices'!$C$26:$C$31,0),MATCH(Calc_Option3!CR$6,'Energy Prices'!$F$11:$CR$11,0))/100000,0)","v":0},{"$f":"IFERROR('Data Input - Option 3'!CW87*INDEX('Energy Prices'!$F$26:$CR$31,MATCH($B131,'Energy Prices'!$C$26:$C$31,0),MATCH(Calc_Option3!CS$6,'Energy Prices'!$F$11:$CR$11,0))/100000,0)","v":0},{"$f":"IFERROR('Data Input - Option 3'!CX87*INDEX('Energy Prices'!$F$26:$CR$31,MATCH($B131,'Energy Prices'!$C$26:$C$31,0),MATCH(Calc_Option3!CT$6,'Energy Prices'!$F$11:$CR$11,0))/100000,0)","v":0},{"$f":"IFERROR('Data Input - Option 3'!CY87*INDEX('Energy Prices'!$F$26:$CR$31,MATCH($B131,'Energy Prices'!$C$26:$C$31,0),MATCH(Calc_Option3!CU$6,'Energy Prices'!$F$11:$CR$11,0))/100000,0)","v":0},{"$f":"IFERROR('Data Input - Option 3'!CZ87*INDEX('Energy Prices'!$F$26:$CR$31,MATCH($B131,'Energy Prices'!$C$26:$C$31,0),MATCH(Calc_Option3!CV$6,'Energy Prices'!$F$11:$CR$11,0))/100000,0)","v":0},{"$f":"IFERROR('Data Input - Option 3'!DA87*INDEX('Energy Prices'!$F$26:$CR$31,MATCH($B131,'Energy Prices'!$C$26:$C$31,0),MATCH(Calc_Option3!CW$6,'Energy Prices'!$F$11:$CR$11,0))/100000,0)","v":0},{"$f":"IFERROR('Data Input - Option 3'!DB87*INDEX('Energy Prices'!$F$26:$CR$31,MATCH($B131,'Energy Prices'!$C$26:$C$31,0),MATCH(Calc_Option3!CX$6,'Energy Prices'!$F$11:$CR$11,0))/100000,0)","v":0},{"$f":"IFERROR('Data Input - Option 3'!DC87*INDEX('Energy Prices'!$F$26:$CR$31,MATCH($B131,'Energy Prices'!$C$26:$C$31,0),MATCH(Calc_Option3!CY$6,'Energy Prices'!$F$11:$CR$11,0))/100000,0)","v":0}]
[null,"Road - Petrol","£000's",{"$f":"IFERROR('Data Input - Option 3'!H88*INDEX('Energy Prices'!$F$26:$CR$31,MATCH($B132,'Energy Prices'!$C$26:$C$31,0),MATCH(Calc_Option3!D$6,'Energy Prices'!$F$11:$CR$11,0))/100000,0)","v":0},{"$f":"IFERROR('Data Input - Option 3'!I88*INDEX('Energy Prices'!$F$26:$CR$31,MATCH($B132,'Energy Prices'!$C$26:$C$31,0),MATCH(Calc_Option3!E$6,'Energy Prices'!$F$11:$CR$11,0))/100000,0)","v":0},{"$f":"IFERROR('Data Input - Option 3'!J88*INDEX('Energy Prices'!$F$26:$CR$31,MATCH($B132,'Energy Prices'!$C$26:$C$31,0),MATCH(Calc_Option3!F$6,'Energy Prices'!$F$11:$CR$11,0))/100000,0)","v":0},{"$f":"IFERROR('Data Input - Option 3'!K88*INDEX('Energy Prices'!$F$26:$CR$31,MATCH($B132,'Energy Prices'!$C$26:$C$31,0),MATCH(Calc_Option3!G$6,'Energy Prices'!$F$11:$CR$11,0))/100000,0)","v":0},{"$f":"IFERROR('Data Input - Option 3'!L88*INDEX('Energy Prices'!$F$26:$CR$31,MATCH($B132,'Energy Prices'!$C$26:$C$31,0),MATCH(Calc_Option3!H$6,'Energy Prices'!$F$11:$CR$11,0))/100000,0)","v":0},{"$f":"IFERROR('Data Input - Option 3'!M88*INDEX('Energy Prices'!$F$26:$CR$31,MATCH($B132,'Energy Prices'!$C$26:$C$31,0),MATCH(Calc_Option3!I$6,'Energy Prices'!$F$11:$CR$11,0))/100000,0)","v":0},{"$f":"IFERROR('Data Input - Option 3'!N88*INDEX('Energy Prices'!$F$26:$CR$31,MATCH($B132,'Energy Prices'!$C$26:$C$31,0),MATCH(Calc_Option3!J$6,'Energy Prices'!$F$11:$CR$11,0))/100000,0)","v":0},{"$f":"IFERROR('Data Input - Option 3'!O88*INDEX('Energy Prices'!$F$26:$CR$31,MATCH($B132,'Energy Prices'!$C$26:$C$31,0),MATCH(Calc_Option3!K$6,'Energy Prices'!$F$11:$CR$11,0))/100000,0)","v":0},{"$f":"IFERROR('Data Input - Option 3'!P88*INDEX('Energy Prices'!$F$26:$CR$31,MATCH($B132,'Energy Prices'!$C$26:$C$31,0),MATCH(Calc_Option3!L$6,'Energy Prices'!$F$11:$CR$11,0))/100000,0)","v":0},{"$f":"IFERROR('Data Input - Option 3'!Q88*INDEX('Energy Prices'!$F$26:$CR$31,MATCH($B132,'Energy Prices'!$C$26:$C$31,0),MATCH(Calc_Option3!M$6,'Energy Prices'!$F$11:$CR$11,0))/100000,0)","v":0},{"$f":"IFERROR('Data Input - Option 3'!R88*INDEX('Energy Prices'!$F$26:$CR$31,MATCH($B132,'Energy Prices'!$C$26:$C$31,0),MATCH(Calc_Option3!N$6,'Energy Prices'!$F$11:$CR$11,0))/100000,0)","v":0},{"$f":"IFERROR('Data Input - Option 3'!S88*INDEX('Energy Prices'!$F$26:$CR$31,MATCH($B132,'Energy Prices'!$C$26:$C$31,0),MATCH(Calc_Option3!O$6,'Energy Prices'!$F$11:$CR$11,0))/100000,0)","v":0},{"$f":"IFERROR('Data Input - Option 3'!T88*INDEX('Energy Prices'!$F$26:$CR$31,MATCH($B132,'Energy Prices'!$C$26:$C$31,0),MATCH(Calc_Option3!P$6,'Energy Prices'!$F$11:$CR$11,0))/100000,0)","v":0},{"$f":"IFERROR('Data Input - Option 3'!U88*INDEX('Energy Prices'!$F$26:$CR$31,MATCH($B132,'Energy Prices'!$C$26:$C$31,0),MATCH(Calc_Option3!Q$6,'Energy Prices'!$F$11:$CR$11,0))/100000,0)","v":0},{"$f":"IFERROR('Data Input - Option 3'!V88*INDEX('Energy Prices'!$F$26:$CR$31,MATCH($B132,'Energy Prices'!$C$26:$C$31,0),MATCH(Calc_Option3!R$6,'Energy Prices'!$F$11:$CR$11,0))/100000,0)","v":0},{"$f":"IFERROR('Data Input - Option 3'!W88*INDEX('Energy Prices'!$F$26:$CR$31,MATCH($B132,'Energy Prices'!$C$26:$C$31,0),MATCH(Calc_Option3!S$6,'Energy Prices'!$F$11:$CR$11,0))/100000,0)","v":0},{"$f":"IFERROR('Data Input - Option 3'!X88*INDEX('Energy Prices'!$F$26:$CR$31,MATCH($B132,'Energy Prices'!$C$26:$C$31,0),MATCH(Calc_Option3!T$6,'Energy Prices'!$F$11:$CR$11,0))/100000,0)","v":0},{"$f":"IFERROR('Data Input - Option 3'!Y88*INDEX('Energy Prices'!$F$26:$CR$31,MATCH($B132,'Energy Prices'!$C$26:$C$31,0),MATCH(Calc_Option3!U$6,'Energy Prices'!$F$11:$CR$11,0))/100000,0)","v":0},{"$f":"IFERROR('Data Input - Option 3'!Z88*INDEX('Energy Prices'!$F$26:$CR$31,MATCH($B132,'Energy Prices'!$C$26:$C$31,0),MATCH(Calc_Option3!V$6,'Energy Prices'!$F$11:$CR$11,0))/100000,0)","v":0},{"$f":"IFERROR('Data Input - Option 3'!AA88*INDEX('Energy Prices'!$F$26:$CR$31,MATCH($B132,'Energy Prices'!$C$26:$C$31,0),MATCH(Calc_Option3!W$6,'Energy Prices'!$F$11:$CR$11,0))/100000,0)","v":0},{"$f":"IFERROR('Data Input - Option 3'!AB88*INDEX('Energy Prices'!$F$26:$CR$31,MATCH($B132,'Energy Prices'!$C$26:$C$31,0),MATCH(Calc_Option3!X$6,'Energy Prices'!$F$11:$CR$11,0))/100000,0)","v":0},{"$f":"IFERROR('Data Input - Option 3'!AC88*INDEX('Energy Prices'!$F$26:$CR$31,MATCH($B132,'Energy Prices'!$C$26:$C$31,0),MATCH(Calc_Option3!Y$6,'Energy Prices'!$F$11:$CR$11,0))/100000,0)","v":0},{"$f":"IFERROR('Data Input - Option 3'!AD88*INDEX('Energy Prices'!$F$26:$CR$31,MATCH($B132,'Energy Prices'!$C$26:$C$31,0),MATCH(Calc_Option3!Z$6,'Energy Prices'!$F$11:$CR$11,0))/100000,0)","v":0},{"$f":"IFERROR('Data Input - Option 3'!AE88*INDEX('Energy Prices'!$F$26:$CR$31,MATCH($B132,'Energy Prices'!$C$26:$C$31,0),MATCH(Calc_Option3!AA$6,'Energy Prices'!$F$11:$CR$11,0))/100000,0)","v":0},{"$f":"IFERROR('Data Input - Option 3'!AF88*INDEX('Energy Prices'!$F$26:$CR$31,MATCH($B132,'Energy Prices'!$C$26:$C$31,0),MATCH(Calc_Option3!AB$6,'Energy Prices'!$F$11:$CR$11,0))/100000,0)","v":0},{"$f":"IFERROR('Data Input - Option 3'!AG88*INDEX('Energy Prices'!$F$26:$CR$31,MATCH($B132,'Energy Prices'!$C$26:$C$31,0),MATCH(Calc_Option3!AC$6,'Energy Prices'!$F$11:$CR$11,0))/100000,0)","v":0},{"$f":"IFERROR('Data Input - Option 3'!AH88*INDEX('Energy Prices'!$F$26:$CR$31,MATCH($B132,'Energy Prices'!$C$26:$C$31,0),MATCH(Calc_Option3!AD$6,'Energy Prices'!$F$11:$CR$11,0))/100000,0)","v":0},{"$f":"IFERROR('Data Input - Option 3'!AI88*INDEX('Energy Prices'!$F$26:$CR$31,MATCH($B132,'Energy Prices'!$C$26:$C$31,0),MATCH(Calc_Option3!AE$6,'Energy Prices'!$F$11:$CR$11,0))/100000,0)","v":0},{"$f":"IFERROR('Data Input - Option 3'!AJ88*INDEX('Energy Prices'!$F$26:$CR$31,MATCH($B132,'Energy Prices'!$C$26:$C$31,0),MATCH(Calc_Option3!AF$6,'Energy Prices'!$F$11:$CR$11,0))/100000,0)","v":0},{"$f":"IFERROR('Data Input - Option 3'!AK88*INDEX('Energy Prices'!$F$26:$CR$31,MATCH($B132,'Energy Prices'!$C$26:$C$31,0),MATCH(Calc_Option3!AG$6,'Energy Prices'!$F$11:$CR$11,0))/100000,0)","v":0},{"$f":"IFERROR('Data Input - Option 3'!AL88*INDEX('Energy Prices'!$F$26:$CR$31,MATCH($B132,'Energy Prices'!$C$26:$C$31,0),MATCH(Calc_Option3!AH$6,'Energy Prices'!$F$11:$CR$11,0))/100000,0)","v":0},{"$f":"IFERROR('Data Input - Option 3'!AM88*INDEX('Energy Prices'!$F$26:$CR$31,MATCH($B132,'Energy Prices'!$C$26:$C$31,0),MATCH(Calc_Option3!AI$6,'Energy Prices'!$F$11:$CR$11,0))/100000,0)","v":0},{"$f":"IFERROR('Data Input - Option 3'!AN88*INDEX('Energy Prices'!$F$26:$CR$31,MATCH($B132,'Energy Prices'!$C$26:$C$31,0),MATCH(Calc_Option3!AJ$6,'Energy Prices'!$F$11:$CR$11,0))/100000,0)","v":0},{"$f":"IFERROR('Data Input - Option 3'!AO88*INDEX('Energy Prices'!$F$26:$CR$31,MATCH($B132,'Energy Prices'!$C$26:$C$31,0),MATCH(Calc_Option3!AK$6,'Energy Prices'!$F$11:$CR$11,0))/100000,0)","v":0},{"$f":"IFERROR('Data Input - Option 3'!AP88*INDEX('Energy Prices'!$F$26:$CR$31,MATCH($B132,'Energy Prices'!$C$26:$C$31,0),MATCH(Calc_Option3!AL$6,'Energy Prices'!$F$11:$CR$11,0))/100000,0)","v":0},{"$f":"IFERROR('Data Input - Option 3'!AQ88*INDEX('Energy Prices'!$F$26:$CR$31,MATCH($B132,'Energy Prices'!$C$26:$C$31,0),MATCH(Calc_Option3!AM$6,'Energy Prices'!$F$11:$CR$11,0))/100000,0)","v":0},{"$f":"IFERROR('Data Input - Option 3'!AR88*INDEX('Energy Prices'!$F$26:$CR$31,MATCH($B132,'Energy Prices'!$C$26:$C$31,0),MATCH(Calc_Option3!AN$6,'Energy Prices'!$F$11:$CR$11,0))/100000,0)","v":0},{"$f":"IFERROR('Data Input - Option 3'!AS88*INDEX('Energy Prices'!$F$26:$CR$31,MATCH($B132,'Energy Prices'!$C$26:$C$31,0),MATCH(Calc_Option3!AO$6,'Energy Prices'!$F$11:$CR$11,0))/100000,0)","v":0},{"$f":"IFERROR('Data Input - Option 3'!AT88*INDEX('Energy Prices'!$F$26:$CR$31,MATCH($B132,'Energy Prices'!$C$26:$C$31,0),MATCH(Calc_Option3!AP$6,'Energy Prices'!$F$11:$CR$11,0))/100000,0)","v":0},{"$f":"IFERROR('Data Input - Option 3'!AU88*INDEX('Energy Prices'!$F$26:$CR$31,MATCH($B132,'Energy Prices'!$C$26:$C$31,0),MATCH(Calc_Option3!AQ$6,'Energy Prices'!$F$11:$CR$11,0))/100000,0)","v":0},{"$f":"IFERROR('Data Input - Option 3'!AV88*INDEX('Energy Prices'!$F$26:$CR$31,MATCH($B132,'Energy Prices'!$C$26:$C$31,0),MATCH(Calc_Option3!AR$6,'Energy Prices'!$F$11:$CR$11,0))/100000,0)","v":0},{"$f":"IFERROR('Data Input - Option 3'!AW88*INDEX('Energy Prices'!$F$26:$CR$31,MATCH($B132,'Energy Prices'!$C$26:$C$31,0),MATCH(Calc_Option3!AS$6,'Energy Prices'!$F$11:$CR$11,0))/100000,0)","v":0},{"$f":"IFERROR('Data Input - Option 3'!AX88*INDEX('Energy Prices'!$F$26:$CR$31,MATCH($B132,'Energy Prices'!$C$26:$C$31,0),MATCH(Calc_Option3!AT$6,'Energy Prices'!$F$11:$CR$11,0))/100000,0)","v":0},{"$f":"IFERROR('Data Input - Option 3'!AY88*INDEX('Energy Prices'!$F$26:$CR$31,MATCH($B132,'Energy Prices'!$C$26:$C$31,0),MATCH(Calc_Option3!AU$6,'Energy Prices'!$F$11:$CR$11,0))/100000,0)","v":0},{"$f":"IFERROR('Data Input - Option 3'!AZ88*INDEX('Energy Prices'!$F$26:$CR$31,MATCH($B132,'Energy Prices'!$C$26:$C$31,0),MATCH(Calc_Option3!AV$6,'Energy Prices'!$F$11:$CR$11,0))/100000,0)","v":0},{"$f":"IFERROR('Data Input - Option 3'!BA88*INDEX('Energy Prices'!$F$26:$CR$31,MATCH($B132,'Energy Prices'!$C$26:$C$31,0),MATCH(Calc_Option3!AW$6,'Energy Prices'!$F$11:$CR$11,0))/100000,0)","v":0},{"$f":"IFERROR('Data Input - Option 3'!BB88*INDEX('Energy Prices'!$F$26:$CR$31,MATCH($B132,'Energy Prices'!$C$26:$C$31,0),MATCH(Calc_Option3!AX$6,'Energy Prices'!$F$11:$CR$11,0))/100000,0)","v":0},{"$f":"IFERROR('Data Input - Option 3'!BC88*INDEX('Energy Prices'!$F$26:$CR$31,MATCH($B132,'Energy Prices'!$C$26:$C$31,0),MATCH(Calc_Option3!AY$6,'Energy Prices'!$F$11:$CR$11,0))/100000,0)","v":0},{"$f":"IFERROR('Data Input - Option 3'!BD88*INDEX('Energy Prices'!$F$26:$CR$31,MATCH($B132,'Energy Prices'!$C$26:$C$31,0),MATCH(Calc_Option3!AZ$6,'Energy Prices'!$F$11:$CR$11,0))/100000,0)","v":0},{"$f":"IFERROR('Data Input - Option 3'!BE88*INDEX('Energy Prices'!$F$26:$CR$31,MATCH($B132,'Energy Prices'!$C$26:$C$31,0),MATCH(Calc_Option3!BA$6,'Energy Prices'!$F$11:$CR$11,0))/100000,0)","v":0},{"$f":"IFERROR('Data Input - Option 3'!BF88*INDEX('Energy Prices'!$F$26:$CR$31,MATCH($B132,'Energy Prices'!$C$26:$C$31,0),MATCH(Calc_Option3!BB$6,'Energy Prices'!$F$11:$CR$11,0))/100000,0)","v":0},{"$f":"IFERROR('Data Input - Option 3'!BG88*INDEX('Energy Prices'!$F$26:$CR$31,MATCH($B132,'Energy Prices'!$C$26:$C$31,0),MATCH(Calc_Option3!BC$6,'Energy Prices'!$F$11:$CR$11,0))/100000,0)","v":0},{"$f":"IFERROR('Data Input - Option 3'!BH88*INDEX('Energy Prices'!$F$26:$CR$31,MATCH($B132,'Energy Prices'!$C$26:$C$31,0),MATCH(Calc_Option3!BD$6,'Energy Prices'!$F$11:$CR$11,0))/100000,0)","v":0},{"$f":"IFERROR('Data Input - Option 3'!BI88*INDEX('Energy Prices'!$F$26:$CR$31,MATCH($B132,'Energy Prices'!$C$26:$C$31,0),MATCH(Calc_Option3!BE$6,'Energy Prices'!$F$11:$CR$11,0))/100000,0)","v":0},{"$f":"IFERROR('Data Input - Option 3'!BJ88*INDEX('Energy Prices'!$F$26:$CR$31,MATCH($B132,'Energy Prices'!$C$26:$C$31,0),MATCH(Calc_Option3!BF$6,'Energy Prices'!$F$11:$CR$11,0))/100000,0)","v":0},{"$f":"IFERROR('Data Input - Option 3'!BK88*INDEX('Energy Prices'!$F$26:$CR$31,MATCH($B132,'Energy Prices'!$C$26:$C$31,0),MATCH(Calc_Option3!BG$6,'Energy Prices'!$F$11:$CR$11,0))/100000,0)","v":0},{"$f":"IFERROR('Data Input - Option 3'!BL88*INDEX('Energy Prices'!$F$26:$CR$31,MATCH($B132,'Energy Prices'!$C$26:$C$31,0),MATCH(Calc_Option3!BH$6,'Energy Prices'!$F$11:$CR$11,0))/100000,0)","v":0},{"$f":"IFERROR('Data Input - Option 3'!BM88*INDEX('Energy Prices'!$F$26:$CR$31,MATCH($B132,'Energy Prices'!$C$26:$C$31,0),MATCH(Calc_Option3!BI$6,'Energy Prices'!$F$11:$CR$11,0))/100000,0)","v":0},{"$f":"IFERROR('Data Input - Option 3'!BN88*INDEX('Energy Prices'!$F$26:$CR$31,MATCH($B132,'Energy Prices'!$C$26:$C$31,0),MATCH(Calc_Option3!BJ$6,'Energy Prices'!$F$11:$CR$11,0))/100000,0)","v":0},{"$f":"IFERROR('Data Input - Option 3'!BO88*INDEX('Energy Prices'!$F$26:$CR$31,MATCH($B132,'Energy Prices'!$C$26:$C$31,0),MATCH(Calc_Option3!BK$6,'Energy Prices'!$F$11:$CR$11,0))/100000,0)","v":0},{"$f":"IFERROR('Data Input - Option 3'!BP88*INDEX('Energy Prices'!$F$26:$CR$31,MATCH($B132,'Energy Prices'!$C$26:$C$31,0),MATCH(Calc_Option3!BL$6,'Energy Prices'!$F$11:$CR$11,0))/100000,0)","v":0},{"$f":"IFERROR('Data Input - Option 3'!BQ88*INDEX('Energy Prices'!$F$26:$CR$31,MATCH($B132,'Energy Prices'!$C$26:$C$31,0),MATCH(Calc_Option3!BM$6,'Energy Prices'!$F$11:$CR$11,0))/100000,0)","v":0},{"$f":"IFERROR('Data Input - Option 3'!BR88*INDEX('Energy Prices'!$F$26:$CR$31,MATCH($B132,'Energy Prices'!$C$26:$C$31,0),MATCH(Calc_Option3!BN$6,'Energy Prices'!$F$11:$CR$11,0))/100000,0)","v":0},{"$f":"IFERROR('Data Input - Option 3'!BS88*INDEX('Energy Prices'!$F$26:$CR$31,MATCH($B132,'Energy Prices'!$C$26:$C$31,0),MATCH(Calc_Option3!BO$6,'Energy Prices'!$F$11:$CR$11,0))/100000,0)","v":0},{"$f":"IFERROR('Data Input - Option 3'!BT88*INDEX('Energy Prices'!$F$26:$CR$31,MATCH($B132,'Energy Prices'!$C$26:$C$31,0),MATCH(Calc_Option3!BP$6,'Energy Prices'!$F$11:$CR$11,0))/100000,0)","v":0},{"$f":"IFERROR('Data Input - Option 3'!BU88*INDEX('Energy Prices'!$F$26:$CR$31,MATCH($B132,'Energy Prices'!$C$26:$C$31,0),MATCH(Calc_Option3!BQ$6,'Energy Prices'!$F$11:$CR$11,0))/100000,0)","v":0},{"$f":"IFERROR('Data Input - Option 3'!BV88*INDEX('Energy Prices'!$F$26:$CR$31,MATCH($B132,'Energy Prices'!$C$26:$C$31,0),MATCH(Calc_Option3!BR$6,'Energy Prices'!$F$11:$CR$11,0))/100000,0)","v":0},{"$f":"IFERROR('Data Input - Option 3'!BW88*INDEX('Energy Prices'!$F$26:$CR$31,MATCH($B132,'Energy Prices'!$C$26:$C$31,0),MATCH(Calc_Option3!BS$6,'Energy Prices'!$F$11:$CR$11,0))/100000,0)","v":0},{"$f":"IFERROR('Data Input - Option 3'!BX88*INDEX('Energy Prices'!$F$26:$CR$31,MATCH($B132,'Energy Prices'!$C$26:$C$31,0),MATCH(Calc_Option3!BT$6,'Energy Prices'!$F$11:$CR$11,0))/100000,0)","v":0},{"$f":"IFERROR('Data Input - Option 3'!BY88*INDEX('Energy Prices'!$F$26:$CR$31,MATCH($B132,'Energy Prices'!$C$26:$C$31,0),MATCH(Calc_Option3!BU$6,'Energy Prices'!$F$11:$CR$11,0))/100000,0)","v":0},{"$f":"IFERROR('Data Input - Option 3'!BZ88*INDEX('Energy Prices'!$F$26:$CR$31,MATCH($B132,'Energy Prices'!$C$26:$C$31,0),MATCH(Calc_Option3!BV$6,'Energy Prices'!$F$11:$CR$11,0))/100000,0)","v":0},{"$f":"IFERROR('Data Input - Option 3'!CA88*INDEX('Energy Prices'!$F$26:$CR$31,MATCH($B132,'Energy Prices'!$C$26:$C$31,0),MATCH(Calc_Option3!BW$6,'Energy Prices'!$F$11:$CR$11,0))/100000,0)","v":0},{"$f":"IFERROR('Data Input - Option 3'!CB88*INDEX('Energy Prices'!$F$26:$CR$31,MATCH($B132,'Energy Prices'!$C$26:$C$31,0),MATCH(Calc_Option3!BX$6,'Energy Prices'!$F$11:$CR$11,0))/100000,0)","v":0},{"$f":"IFERROR('Data Input - Option 3'!CC88*INDEX('Energy Prices'!$F$26:$CR$31,MATCH($B132,'Energy Prices'!$C$26:$C$31,0),MATCH(Calc_Option3!BY$6,'Energy Prices'!$F$11:$CR$11,0))/100000,0)","v":0},{"$f":"IFERROR('Data Input - Option 3'!CD88*INDEX('Energy Prices'!$F$26:$CR$31,MATCH($B132,'Energy Prices'!$C$26:$C$31,0),MATCH(Calc_Option3!BZ$6,'Energy Prices'!$F$11:$CR$11,0))/100000,0)","v":0},{"$f":"IFERROR('Data Input - Option 3'!CE88*INDEX('Energy Prices'!$F$26:$CR$31,MATCH($B132,'Energy Prices'!$C$26:$C$31,0),MATCH(Calc_Option3!CA$6,'Energy Prices'!$F$11:$CR$11,0))/100000,0)","v":0},{"$f":"IFERROR('Data Input - Option 3'!CF88*INDEX('Energy Prices'!$F$26:$CR$31,MATCH($B132,'Energy Prices'!$C$26:$C$31,0),MATCH(Calc_Option3!CB$6,'Energy Prices'!$F$11:$CR$11,0))/100000,0)","v":0},{"$f":"IFERROR('Data Input - Option 3'!CG88*INDEX('Energy Prices'!$F$26:$CR$31,MATCH($B132,'Energy Prices'!$C$26:$C$31,0),MATCH(Calc_Option3!CC$6,'Energy Prices'!$F$11:$CR$11,0))/100000,0)","v":0},{"$f":"IFERROR('Data Input - Option 3'!CH88*INDEX('Energy Prices'!$F$26:$CR$31,MATCH($B132,'Energy Prices'!$C$26:$C$31,0),MATCH(Calc_Option3!CD$6,'Energy Prices'!$F$11:$CR$11,0))/100000,0)","v":0},{"$f":"IFERROR('Data Input - Option 3'!CI88*INDEX('Energy Prices'!$F$26:$CR$31,MATCH($B132,'Energy Prices'!$C$26:$C$31,0),MATCH(Calc_Option3!CE$6,'Energy Prices'!$F$11:$CR$11,0))/100000,0)","v":0},{"$f":"IFERROR('Data Input - Option 3'!CJ88*INDEX('Energy Prices'!$F$26:$CR$31,MATCH($B132,'Energy Prices'!$C$26:$C$31,0),MATCH(Calc_Option3!CF$6,'Energy Prices'!$F$11:$CR$11,0))/100000,0)","v":0},{"$f":"IFERROR('Data Input - Option 3'!CK88*INDEX('Energy Prices'!$F$26:$CR$31,MATCH($B132,'Energy Prices'!$C$26:$C$31,0),MATCH(Calc_Option3!CG$6,'Energy Prices'!$F$11:$CR$11,0))/100000,0)","v":0},{"$f":"IFERROR('Data Input - Option 3'!CL88*INDEX('Energy Prices'!$F$26:$CR$31,MATCH($B132,'Energy Prices'!$C$26:$C$31,0),MATCH(Calc_Option3!CH$6,'Energy Prices'!$F$11:$CR$11,0))/100000,0)","v":0},{"$f":"IFERROR('Data Input - Option 3'!CM88*INDEX('Energy Prices'!$F$26:$CR$31,MATCH($B132,'Energy Prices'!$C$26:$C$31,0),MATCH(Calc_Option3!CI$6,'Energy Prices'!$F$11:$CR$11,0))/100000,0)","v":0},{"$f":"IFERROR('Data Input - Option 3'!CN88*INDEX('Energy Prices'!$F$26:$CR$31,MATCH($B132,'Energy Prices'!$C$26:$C$31,0),MATCH(Calc_Option3!CJ$6,'Energy Prices'!$F$11:$CR$11,0))/100000,0)","v":0},{"$f":"IFERROR('Data Input - Option 3'!CO88*INDEX('Energy Prices'!$F$26:$CR$31,MATCH($B132,'Energy Prices'!$C$26:$C$31,0),MATCH(Calc_Option3!CK$6,'Energy Prices'!$F$11:$CR$11,0))/100000,0)","v":0},{"$f":"IFERROR('Data Input - Option 3'!CP88*INDEX('Energy Prices'!$F$26:$CR$31,MATCH($B132,'Energy Prices'!$C$26:$C$31,0),MATCH(Calc_Option3!CL$6,'Energy Prices'!$F$11:$CR$11,0))/100000,0)","v":0},{"$f":"IFERROR('Data Input - Option 3'!CQ88*INDEX('Energy Prices'!$F$26:$CR$31,MATCH($B132,'Energy Prices'!$C$26:$C$31,0),MATCH(Calc_Option3!CM$6,'Energy Prices'!$F$11:$CR$11,0))/100000,0)","v":0},{"$f":"IFERROR('Data Input - Option 3'!CR88*INDEX('Energy Prices'!$F$26:$CR$31,MATCH($B132,'Energy Prices'!$C$26:$C$31,0),MATCH(Calc_Option3!CN$6,'Energy Prices'!$F$11:$CR$11,0))/100000,0)","v":0},{"$f":"IFERROR('Data Input - Option 3'!CS88*INDEX('Energy Prices'!$F$26:$CR$31,MATCH($B132,'Energy Prices'!$C$26:$C$31,0),MATCH(Calc_Option3!CO$6,'Energy Prices'!$F$11:$CR$11,0))/100000,0)","v":0},{"$f":"IFERROR('Data Input - Option 3'!CT88*INDEX('Energy Prices'!$F$26:$CR$31,MATCH($B132,'Energy Prices'!$C$26:$C$31,0),MATCH(Calc_Option3!CP$6,'Energy Prices'!$F$11:$CR$11,0))/100000,0)","v":0},{"$f":"IFERROR('Data Input - Option 3'!CU88*INDEX('Energy Prices'!$F$26:$CR$31,MATCH($B132,'Energy Prices'!$C$26:$C$31,0),MATCH(Calc_Option3!CQ$6,'Energy Prices'!$F$11:$CR$11,0))/100000,0)","v":0},{"$f":"IFERROR('Data Input - Option 3'!CV88*INDEX('Energy Prices'!$F$26:$CR$31,MATCH($B132,'Energy Prices'!$C$26:$C$31,0),MATCH(Calc_Option3!CR$6,'Energy Prices'!$F$11:$CR$11,0))/100000,0)","v":0},{"$f":"IFERROR('Data Input - Option 3'!CW88*INDEX('Energy Prices'!$F$26:$CR$31,MATCH($B132,'Energy Prices'!$C$26:$C$31,0),MATCH(Calc_Option3!CS$6,'Energy Prices'!$F$11:$CR$11,0))/100000,0)","v":0},{"$f":"IFERROR('Data Input - Option 3'!CX88*INDEX('Energy Prices'!$F$26:$CR$31,MATCH($B132,'Energy Prices'!$C$26:$C$31,0),MATCH(Calc_Option3!CT$6,'Energy Prices'!$F$11:$CR$11,0))/100000,0)","v":0},{"$f":"IFERROR('Data Input - Option 3'!CY88*INDEX('Energy Prices'!$F$26:$CR$31,MATCH($B132,'Energy Prices'!$C$26:$C$31,0),MATCH(Calc_Option3!CU$6,'Energy Prices'!$F$11:$CR$11,0))/100000,0)","v":0},{"$f":"IFERROR('Data Input - Option 3'!CZ88*INDEX('Energy Prices'!$F$26:$CR$31,MATCH($B132,'Energy Prices'!$C$26:$C$31,0),MATCH(Calc_Option3!CV$6,'Energy Prices'!$F$11:$CR$11,0))/100000,0)","v":0},{"$f":"IFERROR('Data Input - Option 3'!DA88*INDEX('Energy Prices'!$F$26:$CR$31,MATCH($B132,'Energy Prices'!$C$26:$C$31,0),MATCH(Calc_Option3!CW$6,'Energy Prices'!$F$11:$CR$11,0))/100000,0)","v":0},{"$f":"IFERROR('Data Input - Option 3'!DB88*INDEX('Energy Prices'!$F$26:$CR$31,MATCH($B132,'Energy Prices'!$C$26:$C$31,0),MATCH(Calc_Option3!CX$6,'Energy Prices'!$F$11:$CR$11,0))/100000,0)","v":0},{"$f":"IFERROR('Data Input - Option 3'!DC88*INDEX('Energy Prices'!$F$26:$CR$31,MATCH($B132,'Energy Prices'!$C$26:$C$31,0),MATCH(Calc_Option3!CY$6,'Energy Prices'!$F$11:$CR$11,0))/100000,0)","v":0}]
[null,"Road - Diesel","£000's",{"$f":"IFERROR('Data Input - Option 3'!H89*INDEX('Energy Prices'!$F$26:$CR$31,MATCH($B133,'Energy Prices'!$C$26:$C$31,0),MATCH(Calc_Option3!D$6,'Energy Prices'!$F$11:$CR$11,0))/100000,0)","v":0},{"$f":"IFERROR('Data Input - Option 3'!I89*INDEX('Energy Prices'!$F$26:$CR$31,MATCH($B133,'Energy Prices'!$C$26:$C$31,0),MATCH(Calc_Option3!E$6,'Energy Prices'!$F$11:$CR$11,0))/100000,0)","v":0},{"$f":"IFERROR('Data Input - Option 3'!J89*INDEX('Energy Prices'!$F$26:$CR$31,MATCH($B133,'Energy Prices'!$C$26:$C$31,0),MATCH(Calc_Option3!F$6,'Energy Prices'!$F$11:$CR$11,0))/100000,0)","v":0},{"$f":"IFERROR('Data Input - Option 3'!K89*INDEX('Energy Prices'!$F$26:$CR$31,MATCH($B133,'Energy Prices'!$C$26:$C$31,0),MATCH(Calc_Option3!G$6,'Energy Prices'!$F$11:$CR$11,0))/100000,0)","v":0},{"$f":"IFERROR('Data Input - Option 3'!L89*INDEX('Energy Prices'!$F$26:$CR$31,MATCH($B133,'Energy Prices'!$C$26:$C$31,0),MATCH(Calc_Option3!H$6,'Energy Prices'!$F$11:$CR$11,0))/100000,0)","v":0},{"$f":"IFERROR('Data Input - Option 3'!M89*INDEX('Energy Prices'!$F$26:$CR$31,MATCH($B133,'Energy Prices'!$C$26:$C$31,0),MATCH(Calc_Option3!I$6,'Energy Prices'!$F$11:$CR$11,0))/100000,0)","v":0},{"$f":"IFERROR('Data Input - Option 3'!N89*INDEX('Energy Prices'!$F$26:$CR$31,MATCH($B133,'Energy Prices'!$C$26:$C$31,0),MATCH(Calc_Option3!J$6,'Energy Prices'!$F$11:$CR$11,0))/100000,0)","v":0},{"$f":"IFERROR('Data Input - Option 3'!O89*INDEX('Energy Prices'!$F$26:$CR$31,MATCH($B133,'Energy Prices'!$C$26:$C$31,0),MATCH(Calc_Option3!K$6,'Energy Prices'!$F$11:$CR$11,0))/100000,0)","v":0},{"$f":"IFERROR('Data Input - Option 3'!P89*INDEX('Energy Prices'!$F$26:$CR$31,MATCH($B133,'Energy Prices'!$C$26:$C$31,0),MATCH(Calc_Option3!L$6,'Energy Prices'!$F$11:$CR$11,0))/100000,0)","v":0},{"$f":"IFERROR('Data Input - Option 3'!Q89*INDEX('Energy Prices'!$F$26:$CR$31,MATCH($B133,'Energy Prices'!$C$26:$C$31,0),MATCH(Calc_Option3!M$6,'Energy Prices'!$F$11:$CR$11,0))/100000,0)","v":0},{"$f":"IFERROR('Data Input - Option 3'!R89*INDEX('Energy Prices'!$F$26:$CR$31,MATCH($B133,'Energy Prices'!$C$26:$C$31,0),MATCH(Calc_Option3!N$6,'Energy Prices'!$F$11:$CR$11,0))/100000,0)","v":0},{"$f":"IFERROR('Data Input - Option 3'!S89*INDEX('Energy Prices'!$F$26:$CR$31,MATCH($B133,'Energy Prices'!$C$26:$C$31,0),MATCH(Calc_Option3!O$6,'Energy Prices'!$F$11:$CR$11,0))/100000,0)","v":0},{"$f":"IFERROR('Data Input - Option 3'!T89*INDEX('Energy Prices'!$F$26:$CR$31,MATCH($B133,'Energy Prices'!$C$26:$C$31,0),MATCH(Calc_Option3!P$6,'Energy Prices'!$F$11:$CR$11,0))/100000,0)","v":0},{"$f":"IFERROR('Data Input - Option 3'!U89*INDEX('Energy Prices'!$F$26:$CR$31,MATCH($B133,'Energy Prices'!$C$26:$C$31,0),MATCH(Calc_Option3!Q$6,'Energy Prices'!$F$11:$CR$11,0))/100000,0)","v":0},{"$f":"IFERROR('Data Input - Option 3'!V89*INDEX('Energy Prices'!$F$26:$CR$31,MATCH($B133,'Energy Prices'!$C$26:$C$31,0),MATCH(Calc_Option3!R$6,'Energy Prices'!$F$11:$CR$11,0))/100000,0)","v":0},{"$f":"IFERROR('Data Input - Option 3'!W89*INDEX('Energy Prices'!$F$26:$CR$31,MATCH($B133,'Energy Prices'!$C$26:$C$31,0),MATCH(Calc_Option3!S$6,'Energy Prices'!$F$11:$CR$11,0))/100000,0)","v":0},{"$f":"IFERROR('Data Input - Option 3'!X89*INDEX('Energy Prices'!$F$26:$CR$31,MATCH($B133,'Energy Prices'!$C$26:$C$31,0),MATCH(Calc_Option3!T$6,'Energy Prices'!$F$11:$CR$11,0))/100000,0)","v":0},{"$f":"IFERROR('Data Input - Option 3'!Y89*INDEX('Energy Prices'!$F$26:$CR$31,MATCH($B133,'Energy Prices'!$C$26:$C$31,0),MATCH(Calc_Option3!U$6,'Energy Prices'!$F$11:$CR$11,0))/100000,0)","v":0},{"$f":"IFERROR('Data Input - Option 3'!Z89*INDEX('Energy Prices'!$F$26:$CR$31,MATCH($B133,'Energy Prices'!$C$26:$C$31,0),MATCH(Calc_Option3!V$6,'Energy Prices'!$F$11:$CR$11,0))/100000,0)","v":0},{"$f":"IFERROR('Data Input - Option 3'!AA89*INDEX('Energy Prices'!$F$26:$CR$31,MATCH($B133,'Energy Prices'!$C$26:$C$31,0),MATCH(Calc_Option3!W$6,'Energy Prices'!$F$11:$CR$11,0))/100000,0)","v":0},{"$f":"IFERROR('Data Input - Option 3'!AB89*INDEX('Energy Prices'!$F$26:$CR$31,MATCH($B133,'Energy Prices'!$C$26:$C$31,0),MATCH(Calc_Option3!X$6,'Energy Prices'!$F$11:$CR$11,0))/100000,0)","v":0},{"$f":"IFERROR('Data Input - Option 3'!AC89*INDEX('Energy Prices'!$F$26:$CR$31,MATCH($B133,'Energy Prices'!$C$26:$C$31,0),MATCH(Calc_Option3!Y$6,'Energy Prices'!$F$11:$CR$11,0))/100000,0)","v":0},{"$f":"IFERROR('Data Input - Option 3'!AD89*INDEX('Energy Prices'!$F$26:$CR$31,MATCH($B133,'Energy Prices'!$C$26:$C$31,0),MATCH(Calc_Option3!Z$6,'Energy Prices'!$F$11:$CR$11,0))/100000,0)","v":0},{"$f":"IFERROR('Data Input - Option 3'!AE89*INDEX('Energy Prices'!$F$26:$CR$31,MATCH($B133,'Energy Prices'!$C$26:$C$31,0),MATCH(Calc_Option3!AA$6,'Energy Prices'!$F$11:$CR$11,0))/100000,0)","v":0},{"$f":"IFERROR('Data Input - Option 3'!AF89*INDEX('Energy Prices'!$F$26:$CR$31,MATCH($B133,'Energy Prices'!$C$26:$C$31,0),MATCH(Calc_Option3!AB$6,'Energy Prices'!$F$11:$CR$11,0))/100000,0)","v":0},{"$f":"IFERROR('Data Input - Option 3'!AG89*INDEX('Energy Prices'!$F$26:$CR$31,MATCH($B133,'Energy Prices'!$C$26:$C$31,0),MATCH(Calc_Option3!AC$6,'Energy Prices'!$F$11:$CR$11,0))/100000,0)","v":0},{"$f":"IFERROR('Data Input - Option 3'!AH89*INDEX('Energy Prices'!$F$26:$CR$31,MATCH($B133,'Energy Prices'!$C$26:$C$31,0),MATCH(Calc_Option3!AD$6,'Energy Prices'!$F$11:$CR$11,0))/100000,0)","v":0},{"$f":"IFERROR('Data Input - Option 3'!AI89*INDEX('Energy Prices'!$F$26:$CR$31,MATCH($B133,'Energy Prices'!$C$26:$C$31,0),MATCH(Calc_Option3!AE$6,'Energy Prices'!$F$11:$CR$11,0))/100000,0)","v":0},{"$f":"IFERROR('Data Input - Option 3'!AJ89*INDEX('Energy Prices'!$F$26:$CR$31,MATCH($B133,'Energy Prices'!$C$26:$C$31,0),MATCH(Calc_Option3!AF$6,'Energy Prices'!$F$11:$CR$11,0))/100000,0)","v":0},{"$f":"IFERROR('Data Input - Option 3'!AK89*INDEX('Energy Prices'!$F$26:$CR$31,MATCH($B133,'Energy Prices'!$C$26:$C$31,0),MATCH(Calc_Option3!AG$6,'Energy Prices'!$F$11:$CR$11,0))/100000,0)","v":0},{"$f":"IFERROR('Data Input - Option 3'!AL89*INDEX('Energy Prices'!$F$26:$CR$31,MATCH($B133,'Energy Prices'!$C$26:$C$31,0),MATCH(Calc_Option3!AH$6,'Energy Prices'!$F$11:$CR$11,0))/100000,0)","v":0},{"$f":"IFERROR('Data Input - Option 3'!AM89*INDEX('Energy Prices'!$F$26:$CR$31,MATCH($B133,'Energy Prices'!$C$26:$C$31,0),MATCH(Calc_Option3!AI$6,'Energy Prices'!$F$11:$CR$11,0))/100000,0)","v":0},{"$f":"IFERROR('Data Input - Option 3'!AN89*INDEX('Energy Prices'!$F$26:$CR$31,MATCH($B133,'Energy Prices'!$C$26:$C$31,0),MATCH(Calc_Option3!AJ$6,'Energy Prices'!$F$11:$CR$11,0))/100000,0)","v":0},{"$f":"IFERROR('Data Input - Option 3'!AO89*INDEX('Energy Prices'!$F$26:$CR$31,MATCH($B133,'Energy Prices'!$C$26:$C$31,0),MATCH(Calc_Option3!AK$6,'Energy Prices'!$F$11:$CR$11,0))/100000,0)","v":0},{"$f":"IFERROR('Data Input - Option 3'!AP89*INDEX('Energy Prices'!$F$26:$CR$31,MATCH($B133,'Energy Prices'!$C$26:$C$31,0),MATCH(Calc_Option3!AL$6,'Energy Prices'!$F$11:$CR$11,0))/100000,0)","v":0},{"$f":"IFERROR('Data Input - Option 3'!AQ89*INDEX('Energy Prices'!$F$26:$CR$31,MATCH($B133,'Energy Prices'!$C$26:$C$31,0),MATCH(Calc_Option3!AM$6,'Energy Prices'!$F$11:$CR$11,0))/100000,0)","v":0},{"$f":"IFERROR('Data Input - Option 3'!AR89*INDEX('Energy Prices'!$F$26:$CR$31,MATCH($B133,'Energy Prices'!$C$26:$C$31,0),MATCH(Calc_Option3!AN$6,'Energy Prices'!$F$11:$CR$11,0))/100000,0)","v":0},{"$f":"IFERROR('Data Input - Option 3'!AS89*INDEX('Energy Prices'!$F$26:$CR$31,MATCH($B133,'Energy Prices'!$C$26:$C$31,0),MATCH(Calc_Option3!AO$6,'Energy Prices'!$F$11:$CR$11,0))/100000,0)","v":0},{"$f":"IFERROR('Data Input - Option 3'!AT89*INDEX('Energy Prices'!$F$26:$CR$31,MATCH($B133,'Energy Prices'!$C$26:$C$31,0),MATCH(Calc_Option3!AP$6,'Energy Prices'!$F$11:$CR$11,0))/100000,0)","v":0},{"$f":"IFERROR('Data Input - Option 3'!AU89*INDEX('Energy Prices'!$F$26:$CR$31,MATCH($B133,'Energy Prices'!$C$26:$C$31,0),MATCH(Calc_Option3!AQ$6,'Energy Prices'!$F$11:$CR$11,0))/100000,0)","v":0},{"$f":"IFERROR('Data Input - Option 3'!AV89*INDEX('Energy Prices'!$F$26:$CR$31,MATCH($B133,'Energy Prices'!$C$26:$C$31,0),MATCH(Calc_Option3!AR$6,'Energy Prices'!$F$11:$CR$11,0))/100000,0)","v":0},{"$f":"IFERROR('Data Input - Option 3'!AW89*INDEX('Energy Prices'!$F$26:$CR$31,MATCH($B133,'Energy Prices'!$C$26:$C$31,0),MATCH(Calc_Option3!AS$6,'Energy Prices'!$F$11:$CR$11,0))/100000,0)","v":0},{"$f":"IFERROR('Data Input - Option 3'!AX89*INDEX('Energy Prices'!$F$26:$CR$31,MATCH($B133,'Energy Prices'!$C$26:$C$31,0),MATCH(Calc_Option3!AT$6,'Energy Prices'!$F$11:$CR$11,0))/100000,0)","v":0},{"$f":"IFERROR('Data Input - Option 3'!AY89*INDEX('Energy Prices'!$F$26:$CR$31,MATCH($B133,'Energy Prices'!$C$26:$C$31,0),MATCH(Calc_Option3!AU$6,'Energy Prices'!$F$11:$CR$11,0))/100000,0)","v":0},{"$f":"IFERROR('Data Input - Option 3'!AZ89*INDEX('Energy Prices'!$F$26:$CR$31,MATCH($B133,'Energy Prices'!$C$26:$C$31,0),MATCH(Calc_Option3!AV$6,'Energy Prices'!$F$11:$CR$11,0))/100000,0)","v":0},{"$f":"IFERROR('Data Input - Option 3'!BA89*INDEX('Energy Prices'!$F$26:$CR$31,MATCH($B133,'Energy Prices'!$C$26:$C$31,0),MATCH(Calc_Option3!AW$6,'Energy Prices'!$F$11:$CR$11,0))/100000,0)","v":0},{"$f":"IFERROR('Data Input - Option 3'!BB89*INDEX('Energy Prices'!$F$26:$CR$31,MATCH($B133,'Energy Prices'!$C$26:$C$31,0),MATCH(Calc_Option3!AX$6,'Energy Prices'!$F$11:$CR$11,0))/100000,0)","v":0},{"$f":"IFERROR('Data Input - Option 3'!BC89*INDEX('Energy Prices'!$F$26:$CR$31,MATCH($B133,'Energy Prices'!$C$26:$C$31,0),MATCH(Calc_Option3!AY$6,'Energy Prices'!$F$11:$CR$11,0))/100000,0)","v":0},{"$f":"IFERROR('Data Input - Option 3'!BD89*INDEX('Energy Prices'!$F$26:$CR$31,MATCH($B133,'Energy Prices'!$C$26:$C$31,0),MATCH(Calc_Option3!AZ$6,'Energy Prices'!$F$11:$CR$11,0))/100000,0)","v":0},{"$f":"IFERROR('Data Input - Option 3'!BE89*INDEX('Energy Prices'!$F$26:$CR$31,MATCH($B133,'Energy Prices'!$C$26:$C$31,0),MATCH(Calc_Option3!BA$6,'Energy Prices'!$F$11:$CR$11,0))/100000,0)","v":0},{"$f":"IFERROR('Data Input - Option 3'!BF89*INDEX('Energy Prices'!$F$26:$CR$31,MATCH($B133,'Energy Prices'!$C$26:$C$31,0),MATCH(Calc_Option3!BB$6,'Energy Prices'!$F$11:$CR$11,0))/100000,0)","v":0},{"$f":"IFERROR('Data Input - Option 3'!BG89*INDEX('Energy Prices'!$F$26:$CR$31,MATCH($B133,'Energy Prices'!$C$26:$C$31,0),MATCH(Calc_Option3!BC$6,'Energy Prices'!$F$11:$CR$11,0))/100000,0)","v":0},{"$f":"IFERROR('Data Input - Option 3'!BH89*INDEX('Energy Prices'!$F$26:$CR$31,MATCH($B133,'Energy Prices'!$C$26:$C$31,0),MATCH(Calc_Option3!BD$6,'Energy Prices'!$F$11:$CR$11,0))/100000,0)","v":0},{"$f":"IFERROR('Data Input - Option 3'!BI89*INDEX('Energy Prices'!$F$26:$CR$31,MATCH($B133,'Energy Prices'!$C$26:$C$31,0),MATCH(Calc_Option3!BE$6,'Energy Prices'!$F$11:$CR$11,0))/100000,0)","v":0},{"$f":"IFERROR('Data Input - Option 3'!BJ89*INDEX('Energy Prices'!$F$26:$CR$31,MATCH($B133,'Energy Prices'!$C$26:$C$31,0),MATCH(Calc_Option3!BF$6,'Energy Prices'!$F$11:$CR$11,0))/100000,0)","v":0},{"$f":"IFERROR('Data Input - Option 3'!BK89*INDEX('Energy Prices'!$F$26:$CR$31,MATCH($B133,'Energy Prices'!$C$26:$C$31,0),MATCH(Calc_Option3!BG$6,'Energy Prices'!$F$11:$CR$11,0))/100000,0)","v":0},{"$f":"IFERROR('Data Input - Option 3'!BL89*INDEX('Energy Prices'!$F$26:$CR$31,MATCH($B133,'Energy Prices'!$C$26:$C$31,0),MATCH(Calc_Option3!BH$6,'Energy Prices'!$F$11:$CR$11,0))/100000,0)","v":0},{"$f":"IFERROR('Data Input - Option 3'!BM89*INDEX('Energy Prices'!$F$26:$CR$31,MATCH($B133,'Energy Prices'!$C$26:$C$31,0),MATCH(Calc_Option3!BI$6,'Energy Prices'!$F$11:$CR$11,0))/100000,0)","v":0},{"$f":"IFERROR('Data Input - Option 3'!BN89*INDEX('Energy Prices'!$F$26:$CR$31,MATCH($B133,'Energy Prices'!$C$26:$C$31,0),MATCH(Calc_Option3!BJ$6,'Energy Prices'!$F$11:$CR$11,0))/100000,0)","v":0},{"$f":"IFERROR('Data Input - Option 3'!BO89*INDEX('Energy Prices'!$F$26:$CR$31,MATCH($B133,'Energy Prices'!$C$26:$C$31,0),MATCH(Calc_Option3!BK$6,'Energy Prices'!$F$11:$CR$11,0))/100000,0)","v":0},{"$f":"IFERROR('Data Input - Option 3'!BP89*INDEX('Energy Prices'!$F$26:$CR$31,MATCH($B133,'Energy Prices'!$C$26:$C$31,0),MATCH(Calc_Option3!BL$6,'Energy Prices'!$F$11:$CR$11,0))/100000,0)","v":0},{"$f":"IFERROR('Data Input - Option 3'!BQ89*INDEX('Energy Prices'!$F$26:$CR$31,MATCH($B133,'Energy Prices'!$C$26:$C$31,0),MATCH(Calc_Option3!BM$6,'Energy Prices'!$F$11:$CR$11,0))/100000,0)","v":0},{"$f":"IFERROR('Data Input - Option 3'!BR89*INDEX('Energy Prices'!$F$26:$CR$31,MATCH($B133,'Energy Prices'!$C$26:$C$31,0),MATCH(Calc_Option3!BN$6,'Energy Prices'!$F$11:$CR$11,0))/100000,0)","v":0},{"$f":"IFERROR('Data Input - Option 3'!BS89*INDEX('Energy Prices'!$F$26:$CR$31,MATCH($B133,'Energy Prices'!$C$26:$C$31,0),MATCH(Calc_Option3!BO$6,'Energy Prices'!$F$11:$CR$11,0))/100000,0)","v":0},{"$f":"IFERROR('Data Input - Option 3'!BT89*INDEX('Energy Prices'!$F$26:$CR$31,MATCH($B133,'Energy Prices'!$C$26:$C$31,0),MATCH(Calc_Option3!BP$6,'Energy Prices'!$F$11:$CR$11,0))/100000,0)","v":0},{"$f":"IFERROR('Data Input - Option 3'!BU89*INDEX('Energy Prices'!$F$26:$CR$31,MATCH($B133,'Energy Prices'!$C$26:$C$31,0),MATCH(Calc_Option3!BQ$6,'Energy Prices'!$F$11:$CR$11,0))/100000,0)","v":0},{"$f":"IFERROR('Data Input - Option 3'!BV89*INDEX('Energy Prices'!$F$26:$CR$31,MATCH($B133,'Energy Prices'!$C$26:$C$31,0),MATCH(Calc_Option3!BR$6,'Energy Prices'!$F$11:$CR$11,0))/100000,0)","v":0},{"$f":"IFERROR('Data Input - Option 3'!BW89*INDEX('Energy Prices'!$F$26:$CR$31,MATCH($B133,'Energy Prices'!$C$26:$C$31,0),MATCH(Calc_Option3!BS$6,'Energy Prices'!$F$11:$CR$11,0))/100000,0)","v":0},{"$f":"IFERROR('Data Input - Option 3'!BX89*INDEX('Energy Prices'!$F$26:$CR$31,MATCH($B133,'Energy Prices'!$C$26:$C$31,0),MATCH(Calc_Option3!BT$6,'Energy Prices'!$F$11:$CR$11,0))/100000,0)","v":0},{"$f":"IFERROR('Data Input - Option 3'!BY89*INDEX('Energy Prices'!$F$26:$CR$31,MATCH($B133,'Energy Prices'!$C$26:$C$31,0),MATCH(Calc_Option3!BU$6,'Energy Prices'!$F$11:$CR$11,0))/100000,0)","v":0},{"$f":"IFERROR('Data Input - Option 3'!BZ89*INDEX('Energy Prices'!$F$26:$CR$31,MATCH($B133,'Energy Prices'!$C$26:$C$31,0),MATCH(Calc_Option3!BV$6,'Energy Prices'!$F$11:$CR$11,0))/100000,0)","v":0},{"$f":"IFERROR('Data Input - Option 3'!CA89*INDEX('Energy Prices'!$F$26:$CR$31,MATCH($B133,'Energy Prices'!$C$26:$C$31,0),MATCH(Calc_Option3!BW$6,'Energy Prices'!$F$11:$CR$11,0))/100000,0)","v":0},{"$f":"IFERROR('Data Input - Option 3'!CB89*INDEX('Energy Prices'!$F$26:$CR$31,MATCH($B133,'Energy Prices'!$C$26:$C$31,0),MATCH(Calc_Option3!BX$6,'Energy Prices'!$F$11:$CR$11,0))/100000,0)","v":0},{"$f":"IFERROR('Data Input - Option 3'!CC89*INDEX('Energy Prices'!$F$26:$CR$31,MATCH($B133,'Energy Prices'!$C$26:$C$31,0),MATCH(Calc_Option3!BY$6,'Energy Prices'!$F$11:$CR$11,0))/100000,0)","v":0},{"$f":"IFERROR('Data Input - Option 3'!CD89*INDEX('Energy Prices'!$F$26:$CR$31,MATCH($B133,'Energy Prices'!$C$26:$C$31,0),MATCH(Calc_Option3!BZ$6,'Energy Prices'!$F$11:$CR$11,0))/100000,0)","v":0},{"$f":"IFERROR('Data Input - Option 3'!CE89*INDEX('Energy Prices'!$F$26:$CR$31,MATCH($B133,'Energy Prices'!$C$26:$C$31,0),MATCH(Calc_Option3!CA$6,'Energy Prices'!$F$11:$CR$11,0))/100000,0)","v":0},{"$f":"IFERROR('Data Input - Option 3'!CF89*INDEX('Energy Prices'!$F$26:$CR$31,MATCH($B133,'Energy Prices'!$C$26:$C$31,0),MATCH(Calc_Option3!CB$6,'Energy Prices'!$F$11:$CR$11,0))/100000,0)","v":0},{"$f":"IFERROR('Data Input - Option 3'!CG89*INDEX('Energy Prices'!$F$26:$CR$31,MATCH($B133,'Energy Prices'!$C$26:$C$31,0),MATCH(Calc_Option3!CC$6,'Energy Prices'!$F$11:$CR$11,0))/100000,0)","v":0},{"$f":"IFERROR('Data Input - Option 3'!CH89*INDEX('Energy Prices'!$F$26:$CR$31,MATCH($B133,'Energy Prices'!$C$26:$C$31,0),MATCH(Calc_Option3!CD$6,'Energy Prices'!$F$11:$CR$11,0))/100000,0)","v":0},{"$f":"IFERROR('Data Input - Option 3'!CI89*INDEX('Energy Prices'!$F$26:$CR$31,MATCH($B133,'Energy Prices'!$C$26:$C$31,0),MATCH(Calc_Option3!CE$6,'Energy Prices'!$F$11:$CR$11,0))/100000,0)","v":0},{"$f":"IFERROR('Data Input - Option 3'!CJ89*INDEX('Energy Prices'!$F$26:$CR$31,MATCH($B133,'Energy Prices'!$C$26:$C$31,0),MATCH(Calc_Option3!CF$6,'Energy Prices'!$F$11:$CR$11,0))/100000,0)","v":0},{"$f":"IFERROR('Data Input - Option 3'!CK89*INDEX('Energy Prices'!$F$26:$CR$31,MATCH($B133,'Energy Prices'!$C$26:$C$31,0),MATCH(Calc_Option3!CG$6,'Energy Prices'!$F$11:$CR$11,0))/100000,0)","v":0},{"$f":"IFERROR('Data Input - Option 3'!CL89*INDEX('Energy Prices'!$F$26:$CR$31,MATCH($B133,'Energy Prices'!$C$26:$C$31,0),MATCH(Calc_Option3!CH$6,'Energy Prices'!$F$11:$CR$11,0))/100000,0)","v":0},{"$f":"IFERROR('Data Input - Option 3'!CM89*INDEX('Energy Prices'!$F$26:$CR$31,MATCH($B133,'Energy Prices'!$C$26:$C$31,0),MATCH(Calc_Option3!CI$6,'Energy Prices'!$F$11:$CR$11,0))/100000,0)","v":0},{"$f":"IFERROR('Data Input - Option 3'!CN89*INDEX('Energy Prices'!$F$26:$CR$31,MATCH($B133,'Energy Prices'!$C$26:$C$31,0),MATCH(Calc_Option3!CJ$6,'Energy Prices'!$F$11:$CR$11,0))/100000,0)","v":0},{"$f":"IFERROR('Data Input - Option 3'!CO89*INDEX('Energy Prices'!$F$26:$CR$31,MATCH($B133,'Energy Prices'!$C$26:$C$31,0),MATCH(Calc_Option3!CK$6,'Energy Prices'!$F$11:$CR$11,0))/100000,0)","v":0},{"$f":"IFERROR('Data Input - Option 3'!CP89*INDEX('Energy Prices'!$F$26:$CR$31,MATCH($B133,'Energy Prices'!$C$26:$C$31,0),MATCH(Calc_Option3!CL$6,'Energy Prices'!$F$11:$CR$11,0))/100000,0)","v":0},{"$f":"IFERROR('Data Input - Option 3'!CQ89*INDEX('Energy Prices'!$F$26:$CR$31,MATCH($B133,'Energy Prices'!$C$26:$C$31,0),MATCH(Calc_Option3!CM$6,'Energy Prices'!$F$11:$CR$11,0))/100000,0)","v":0},{"$f":"IFERROR('Data Input - Option 3'!CR89*INDEX('Energy Prices'!$F$26:$CR$31,MATCH($B133,'Energy Prices'!$C$26:$C$31,0),MATCH(Calc_Option3!CN$6,'Energy Prices'!$F$11:$CR$11,0))/100000,0)","v":0},{"$f":"IFERROR('Data Input - Option 3'!CS89*INDEX('Energy Prices'!$F$26:$CR$31,MATCH($B133,'Energy Prices'!$C$26:$C$31,0),MATCH(Calc_Option3!CO$6,'Energy Prices'!$F$11:$CR$11,0))/100000,0)","v":0},{"$f":"IFERROR('Data Input - Option 3'!CT89*INDEX('Energy Prices'!$F$26:$CR$31,MATCH($B133,'Energy Prices'!$C$26:$C$31,0),MATCH(Calc_Option3!CP$6,'Energy Prices'!$F$11:$CR$11,0))/100000,0)","v":0},{"$f":"IFERROR('Data Input - Option 3'!CU89*INDEX('Energy Prices'!$F$26:$CR$31,MATCH($B133,'Energy Prices'!$C$26:$C$31,0),MATCH(Calc_Option3!CQ$6,'Energy Prices'!$F$11:$CR$11,0))/100000,0)","v":0},{"$f":"IFERROR('Data Input - Option 3'!CV89*INDEX('Energy Prices'!$F$26:$CR$31,MATCH($B133,'Energy Prices'!$C$26:$C$31,0),MATCH(Calc_Option3!CR$6,'Energy Prices'!$F$11:$CR$11,0))/100000,0)","v":0},{"$f":"IFERROR('Data Input - Option 3'!CW89*INDEX('Energy Prices'!$F$26:$CR$31,MATCH($B133,'Energy Prices'!$C$26:$C$31,0),MATCH(Calc_Option3!CS$6,'Energy Prices'!$F$11:$CR$11,0))/100000,0)","v":0},{"$f":"IFERROR('Data Input - Option 3'!CX89*INDEX('Energy Prices'!$F$26:$CR$31,MATCH($B133,'Energy Prices'!$C$26:$C$31,0),MATCH(Calc_Option3!CT$6,'Energy Prices'!$F$11:$CR$11,0))/100000,0)","v":0},{"$f":"IFERROR('Data Input - Option 3'!CY89*INDEX('Energy Prices'!$F$26:$CR$31,MATCH($B133,'Energy Prices'!$C$26:$C$31,0),MATCH(Calc_Option3!CU$6,'Energy Prices'!$F$11:$CR$11,0))/100000,0)","v":0},{"$f":"IFERROR('Data Input - Option 3'!CZ89*INDEX('Energy Prices'!$F$26:$CR$31,MATCH($B133,'Energy Prices'!$C$26:$C$31,0),MATCH(Calc_Option3!CV$6,'Energy Prices'!$F$11:$CR$11,0))/100000,0)","v":0},{"$f":"IFERROR('Data Input - Option 3'!DA89*INDEX('Energy Prices'!$F$26:$CR$31,MATCH($B133,'Energy Prices'!$C$26:$C$31,0),MATCH(Calc_Option3!CW$6,'Energy Prices'!$F$11:$CR$11,0))/100000,0)","v":0},{"$f":"IFERROR('Data Input - Option 3'!DB89*INDEX('Energy Prices'!$F$26:$CR$31,MATCH($B133,'Energy Prices'!$C$26:$C$31,0),MATCH(Calc_Option3!CX$6,'Energy Prices'!$F$11:$CR$11,0))/100000,0)","v":0},{"$f":"IFERROR('Data Input - Option 3'!DC89*INDEX('Energy Prices'!$F$26:$CR$31,MATCH($B133,'Energy Prices'!$C$26:$C$31,0),MATCH(Calc_Option3!CY$6,'Energy Prices'!$F$11:$CR$11,0))/100000,0)","v":0}]
[]
[null,"Discounted energy","£000's",{"$f":"SUM(D128:D133)*D$7","v":2064.9628375111679},{"$f":"SUM(E128:E133)*E$7","v":2045.9080905373589},2057.7326537872518,2024.0551594877084,2010.9794096285334,2002.8273405561613,1987.9518924499068,1941.7838212731745,0,0,0,0,0,0,0,0,0,0,0,0,0,0,0,0,0,0,0,0,0,0,0,0,0,0,0,0,0,0,0,0,0,0,0,0,0,0,0,0,0,0,0,0,0,0,0,0,0,0,0,0,{"$f":"SUM(BL128:BL133)*BL$7","v":0},0,0,0,0,0,0,0,0,0,0,0,0,0,0,0,0,0,0,0,0,0,0,0,0,0,0,0,0,0,0,0,0,0,0,0,0,0,0,0]
[]
[null,"Air pollutant emissions- value"]
[null,{"$f":"B53","v":"Sox 2019"},"£000's",{"$f":"IFERROR(IF(OR($C$144=FALSE,LEFT($B138,3)<>\"NOX\"),D53*INDEX('Damage costs'!$U$16:$U$43,MATCH($B138,'Damage costs'!$C$16:$C$43,0))/1000,D53*INDEX('Damage costs'!$Y$16:$Y$43,MATCH($B138,'Damage costs'!$C$16:$C$43,0))/1000),\"\")","v":5.1074397105762372},{"$f":"IFERROR(IF(OR($C$144=FALSE,LEFT($B138,3)<>\"NOX\"),E53*INDEX('Damage costs'!$U$16:$U$43,MATCH($B138,'Damage costs'!$C$16:$C$43,0))/1000,E53*INDEX('Damage costs'!$Y$16:$Y$43,MATCH($B138,'Damage costs'!$C$16:$C$43,0))/1000),\"\")","v":5.1074397105762372},{"$f":"IFERROR(IF(OR($C$144=FALSE,LEFT($B138,3)<>\"NOX\"),F53*INDEX('Damage costs'!$U$16:$U$43,MATCH($B138,'Damage costs'!$C$16:$C$43,0))/1000,F53*INDEX('Damage costs'!$Y$16:$Y$43,MATCH($B138,'Damage costs'!$C$16:$C$43,0))/1000),\"\")","v":5.1074397105762372},{"$f":"IFERROR(IF(OR($C$144=FALSE,LEFT($B138,3)<>\"NOX\"),G53*INDEX('Damage costs'!$U$16:$U$43,MATCH($B138,'Damage costs'!$C$16:$C$43,0))/1000,G53*INDEX('Damage costs'!$Y$16:$Y$43,MATCH($B138,'Damage costs'!$C$16:$C$43,0))/1000),\"\")","v":5.1074397105762372},{"$f":"IFERROR(IF(OR($C$144=FALSE,LEFT($B138,3)<>\"NOX\"),H53*INDEX('Damage costs'!$U$16:$U$43,MATCH($B138,'Damage costs'!$C$16:$C$43,0))/1000,H53*INDEX('Damage costs'!$Y$16:$Y$43,MATCH($B138,'Damage costs'!$C$16:$C$43,0))/1000),\"\")","v":5.1074397105762372},{"$f":"IFERROR(IF(OR($C$144=FALSE,LEFT($B138,3)<>\"NOX\"),I53*INDEX('Damage costs'!$U$16:$U$43,MATCH($B138,'Damage costs'!$C$16:$C$43,0))/1000,I53*INDEX('Damage costs'!$Y$16:$Y$43,MATCH($B138,'Damage costs'!$C$16:$C$43,0))/1000),\"\")","v":5.1074397105762372},{"$f":"IFERROR(IF(OR($C$144=FALSE,LEFT($B138,3)<>\"NOX\"),J53*INDEX('Damage costs'!$U$16:$U$43,MATCH($B138,'Damage costs'!$C$16:$C$43,0))/1000,J53*INDEX('Damage costs'!$Y$16:$Y$43,MATCH($B138,'Damage costs'!$C$16:$C$43,0))/1000),\"\")","v":5.1074397105762372},{"$f":"IFERROR(IF(OR($C$144=FALSE,LEFT($B138,3)<>\"NOX\"),K53*INDEX('Damage costs'!$U$16:$U$43,MATCH($B138,'Damage costs'!$C$16:$C$43,0))/1000,K53*INDEX('Damage costs'!$Y$16:$Y$43,MATCH($B138,'Damage costs'!$C$16:$C$43,0))/1000),\"\")","v":5.1074397105762372},{"$f":"IFERROR(IF(OR($C$144=FALSE,LEFT($B138,3)<>\"NOX\"),L53*INDEX('Damage costs'!$U$16:$U$43,MATCH($B138,'Damage costs'!$C$16:$C$43,0))/1000,L53*INDEX('Damage costs'!$Y$16:$Y$43,MATCH($B138,'Damage costs'!$C$16:$C$43,0))/1000),\"\")","v":0},{"$f":"IFERROR(IF(OR($C$144=FALSE,LEFT($B138,3)<>\"NOX\"),M53*INDEX('Damage costs'!$U$16:$U$43,MATCH($B138,'Damage costs'!$C$16:$C$43,0))/1000,M53*INDEX('Damage costs'!$Y$16:$Y$43,MATCH($B138,'Damage costs'!$C$16:$C$43,0))/1000),\"\")","v":0},{"$f":"IFERROR(IF(OR($C$144=FALSE,LEFT($B138,3)<>\"NOX\"),N53*INDEX('Damage costs'!$U$16:$U$43,MATCH($B138,'Damage costs'!$C$16:$C$43,0))/1000,N53*INDEX('Damage costs'!$Y$16:$Y$43,MATCH($B138,'Damage costs'!$C$16:$C$43,0))/1000),\"\")","v":0},{"$f":"IFERROR(IF(OR($C$144=FALSE,LEFT($B138,3)<>\"NOX\"),O53*INDEX('Damage costs'!$U$16:$U$43,MATCH($B138,'Damage costs'!$C$16:$C$43,0))/1000,O53*INDEX('Damage costs'!$Y$16:$Y$43,MATCH($B138,'Damage costs'!$C$16:$C$43,0))/1000),\"\")","v":0},{"$f":"IFERROR(IF(OR($C$144=FALSE,LEFT($B138,3)<>\"NOX\"),P53*INDEX('Damage costs'!$U$16:$U$43,MATCH($B138,'Damage costs'!$C$16:$C$43,0))/1000,P53*INDEX('Damage costs'!$Y$16:$Y$43,MATCH($B138,'Damage costs'!$C$16:$C$43,0))/1000),\"\")","v":0},{"$f":"IFERROR(IF(OR($C$144=FALSE,LEFT($B138,3)<>\"NOX\"),Q53*INDEX('Damage costs'!$U$16:$U$43,MATCH($B138,'Damage costs'!$C$16:$C$43,0))/1000,Q53*INDEX('Damage costs'!$Y$16:$Y$43,MATCH($B138,'Damage costs'!$C$16:$C$43,0))/1000),\"\")","v":0},{"$f":"IFERROR(IF(OR($C$144=FALSE,LEFT($B138,3)<>\"NOX\"),R53*INDEX('Damage costs'!$U$16:$U$43,MATCH($B138,'Damage costs'!$C$16:$C$43,0))/1000,R53*INDEX('Damage costs'!$Y$16:$Y$43,MATCH($B138,'Damage costs'!$C$16:$C$43,0))/1000),\"\")","v":0},{"$f":"IFERROR(IF(OR($C$144=FALSE,LEFT($B138,3)<>\"NOX\"),S53*INDEX('Damage costs'!$U$16:$U$43,MATCH($B138,'Damage costs'!$C$16:$C$43,0))/1000,S53*INDEX('Damage costs'!$Y$16:$Y$43,MATCH($B138,'Damage costs'!$C$16:$C$43,0))/1000),\"\")","v":0},{"$f":"IFERROR(IF(OR($C$144=FALSE,LEFT($B138,3)<>\"NOX\"),T53*INDEX('Damage costs'!$U$16:$U$43,MATCH($B138,'Damage costs'!$C$16:$C$43,0))/1000,T53*INDEX('Damage costs'!$Y$16:$Y$43,MATCH($B138,'Damage costs'!$C$16:$C$43,0))/1000),\"\")","v":0},{"$f":"IFERROR(IF(OR($C$144=FALSE,LEFT($B138,3)<>\"NOX\"),U53*INDEX('Damage costs'!$U$16:$U$43,MATCH($B138,'Damage costs'!$C$16:$C$43,0))/1000,U53*INDEX('Damage costs'!$Y$16:$Y$43,MATCH($B138,'Damage costs'!$C$16:$C$43,0))/1000),\"\")","v":0},{"$f":"IFERROR(IF(OR($C$144=FALSE,LEFT($B138,3)<>\"NOX\"),V53*INDEX('Damage costs'!$U$16:$U$43,MATCH($B138,'Damage costs'!$C$16:$C$43,0))/1000,V53*INDEX('Damage costs'!$Y$16:$Y$43,MATCH($B138,'Damage costs'!$C$16:$C$43,0))/1000),\"\")","v":0},{"$f":"IFERROR(IF(OR($C$144=FALSE,LEFT($B138,3)<>\"NOX\"),W53*INDEX('Damage costs'!$U$16:$U$43,MATCH($B138,'Damage costs'!$C$16:$C$43,0))/1000,W53*INDEX('Damage costs'!$Y$16:$Y$43,MATCH($B138,'Damage costs'!$C$16:$C$43,0))/1000),\"\")","v":0},{"$f":"IFERROR(IF(OR($C$144=FALSE,LEFT($B138,3)<>\"NOX\"),X53*INDEX('Damage costs'!$U$16:$U$43,MATCH($B138,'Damage costs'!$C$16:$C$43,0))/1000,X53*INDEX('Damage costs'!$Y$16:$Y$43,MATCH($B138,'Damage costs'!$C$16:$C$43,0))/1000),\"\")","v":0},{"$f":"IFERROR(IF(OR($C$144=FALSE,LEFT($B138,3)<>\"NOX\"),Y53*INDEX('Damage costs'!$U$16:$U$43,MATCH($B138,'Damage costs'!$C$16:$C$43,0))/1000,Y53*INDEX('Damage costs'!$Y$16:$Y$43,MATCH($B138,'Damage costs'!$C$16:$C$43,0))/1000),\"\")","v":0},{"$f":"IFERROR(IF(OR($C$144=FALSE,LEFT($B138,3)<>\"NOX\"),Z53*INDEX('Damage costs'!$U$16:$U$43,MATCH($B138,'Damage costs'!$C$16:$C$43,0))/1000,Z53*INDEX('Damage costs'!$Y$16:$Y$43,MATCH($B138,'Damage costs'!$C$16:$C$43,0))/1000),\"\")","v":0},{"$f":"IFERROR(IF(OR($C$144=FALSE,LEFT($B138,3)<>\"NOX\"),AA53*INDEX('Damage costs'!$U$16:$U$43,MATCH($B138,'Damage costs'!$C$16:$C$43,0))/1000,AA53*INDEX('Damage costs'!$Y$16:$Y$43,MATCH($B138,'Damage costs'!$C$16:$C$43,0))/1000),\"\")","v":0},{"$f":"IFERROR(IF(OR($C$144=FALSE,LEFT($B138,3)<>\"NOX\"),AB53*INDEX('Damage costs'!$U$16:$U$43,MATCH($B138,'Damage costs'!$C$16:$C$43,0))/1000,AB53*INDEX('Damage costs'!$Y$16:$Y$43,MATCH($B138,'Damage costs'!$C$16:$C$43,0))/1000),\"\")","v":0},{"$f":"IFERROR(IF(OR($C$144=FALSE,LEFT($B138,3)<>\"NOX\"),AC53*INDEX('Damage costs'!$U$16:$U$43,MATCH($B138,'Damage costs'!$C$16:$C$43,0))/1000,AC53*INDEX('Damage costs'!$Y$16:$Y$43,MATCH($B138,'Damage costs'!$C$16:$C$43,0))/1000),\"\")","v":0},{"$f":"IFERROR(IF(OR($C$144=FALSE,LEFT($B138,3)<>\"NOX\"),AD53*INDEX('Damage costs'!$U$16:$U$43,MATCH($B138,'Damage costs'!$C$16:$C$43,0))/1000,AD53*INDEX('Damage costs'!$Y$16:$Y$43,MATCH($B138,'Damage costs'!$C$16:$C$43,0))/1000),\"\")","v":0},{"$f":"IFERROR(IF(OR($C$144=FALSE,LEFT($B138,3)<>\"NOX\"),AE53*INDEX('Damage costs'!$U$16:$U$43,MATCH($B138,'Damage costs'!$C$16:$C$43,0))/1000,AE53*INDEX('Damage costs'!$Y$16:$Y$43,MATCH($B138,'Damage costs'!$C$16:$C$43,0))/1000),\"\")","v":0},{"$f":"IFERROR(IF(OR($C$144=FALSE,LEFT($B138,3)<>\"NOX\"),AF53*INDEX('Damage costs'!$U$16:$U$43,MATCH($B138,'Damage costs'!$C$16:$C$43,0))/1000,AF53*INDEX('Damage costs'!$Y$16:$Y$43,MATCH($B138,'Damage costs'!$C$16:$C$43,0))/1000),\"\")","v":0},{"$f":"IFERROR(IF(OR($C$144=FALSE,LEFT($B138,3)<>\"NOX\"),AG53*INDEX('Damage costs'!$U$16:$U$43,MATCH($B138,'Damage costs'!$C$16:$C$43,0))/1000,AG53*INDEX('Damage costs'!$Y$16:$Y$43,MATCH($B138,'Damage costs'!$C$16:$C$43,0))/1000),\"\")","v":0},{"$f":"IFERROR(IF(OR($C$144=FALSE,LEFT($B138,3)<>\"NOX\"),AH53*INDEX('Damage costs'!$U$16:$U$43,MATCH($B138,'Damage costs'!$C$16:$C$43,0))/1000,AH53*INDEX('Damage costs'!$Y$16:$Y$43,MATCH($B138,'Damage costs'!$C$16:$C$43,0))/1000),\"\")","v":0},{"$f":"IFERROR(IF(OR($C$144=FALSE,LEFT($B138,3)<>\"NOX\"),AI53*INDEX('Damage costs'!$U$16:$U$43,MATCH($B138,'Damage costs'!$C$16:$C$43,0))/1000,AI53*INDEX('Damage costs'!$Y$16:$Y$43,MATCH($B138,'Damage costs'!$C$16:$C$43,0))/1000),\"\")","v":0},{"$f":"IFERROR(IF(OR($C$144=FALSE,LEFT($B138,3)<>\"NOX\"),AJ53*INDEX('Damage costs'!$U$16:$U$43,MATCH($B138,'Damage costs'!$C$16:$C$43,0))/1000,AJ53*INDEX('Damage costs'!$Y$16:$Y$43,MATCH($B138,'Damage costs'!$C$16:$C$43,0))/1000),\"\")","v":0},{"$f":"IFERROR(IF(OR($C$144=FALSE,LEFT($B138,3)<>\"NOX\"),AK53*INDEX('Damage costs'!$U$16:$U$43,MATCH($B138,'Damage costs'!$C$16:$C$43,0))/1000,AK53*INDEX('Damage costs'!$Y$16:$Y$43,MATCH($B138,'Damage costs'!$C$16:$C$43,0))/1000),\"\")","v":0},{"$f":"IFERROR(IF(OR($C$144=FALSE,LEFT($B138,3)<>\"NOX\"),AL53*INDEX('Damage costs'!$U$16:$U$43,MATCH($B138,'Damage costs'!$C$16:$C$43,0))/1000,AL53*INDEX('Damage costs'!$Y$16:$Y$43,MATCH($B138,'Damage costs'!$C$16:$C$43,0))/1000),\"\")","v":0},{"$f":"IFERROR(IF(OR($C$144=FALSE,LEFT($B138,3)<>\"NOX\"),AM53*INDEX('Damage costs'!$U$16:$U$43,MATCH($B138,'Damage costs'!$C$16:$C$43,0))/1000,AM53*INDEX('Damage costs'!$Y$16:$Y$43,MATCH($B138,'Damage costs'!$C$16:$C$43,0))/1000),\"\")","v":0},{"$f":"IFERROR(IF(OR($C$144=FALSE,LEFT($B138,3)<>\"NOX\"),AN53*INDEX('Damage costs'!$U$16:$U$43,MATCH($B138,'Damage costs'!$C$16:$C$43,0))/1000,AN53*INDEX('Damage costs'!$Y$16:$Y$43,MATCH($B138,'Damage costs'!$C$16:$C$43,0))/1000),\"\")","v":0},{"$f":"IFERROR(IF(OR($C$144=FALSE,LEFT($B138,3)<>\"NOX\"),AO53*INDEX('Damage costs'!$U$16:$U$43,MATCH($B138,'Damage costs'!$C$16:$C$43,0))/1000,AO53*INDEX('Damage costs'!$Y$16:$Y$43,MATCH($B138,'Damage costs'!$C$16:$C$43,0))/1000),\"\")","v":0},{"$f":"IFERROR(IF(OR($C$144=FALSE,LEFT($B138,3)<>\"NOX\"),AP53*INDEX('Damage costs'!$U$16:$U$43,MATCH($B138,'Damage costs'!$C$16:$C$43,0))/1000,AP53*INDEX('Damage costs'!$Y$16:$Y$43,MATCH($B138,'Damage costs'!$C$16:$C$43,0))/1000),\"\")","v":0},{"$f":"IFERROR(IF(OR($C$144=FALSE,LEFT($B138,3)<>\"NOX\"),AQ53*INDEX('Damage costs'!$U$16:$U$43,MATCH($B138,'Damage costs'!$C$16:$C$43,0))/1000,AQ53*INDEX('Damage costs'!$Y$16:$Y$43,MATCH($B138,'Damage costs'!$C$16:$C$43,0))/1000),\"\")","v":0},{"$f":"IFERROR(IF(OR($C$144=FALSE,LEFT($B138,3)<>\"NOX\"),AR53*INDEX('Damage costs'!$U$16:$U$43,MATCH($B138,'Damage costs'!$C$16:$C$43,0))/1000,AR53*INDEX('Damage costs'!$Y$16:$Y$43,MATCH($B138,'Damage costs'!$C$16:$C$43,0))/1000),\"\")","v":0},{"$f":"IFERROR(IF(OR($C$144=FALSE,LEFT($B138,3)<>\"NOX\"),AS53*INDEX('Damage costs'!$U$16:$U$43,MATCH($B138,'Damage costs'!$C$16:$C$43,0))/1000,AS53*INDEX('Damage costs'!$Y$16:$Y$43,MATCH($B138,'Damage costs'!$C$16:$C$43,0))/1000),\"\")","v":0},{"$f":"IFERROR(IF(OR($C$144=FALSE,LEFT($B138,3)<>\"NOX\"),AT53*INDEX('Damage costs'!$U$16:$U$43,MATCH($B138,'Damage costs'!$C$16:$C$43,0))/1000,AT53*INDEX('Damage costs'!$Y$16:$Y$43,MATCH($B138,'Damage costs'!$C$16:$C$43,0))/1000),\"\")","v":0},{"$f":"IFERROR(IF(OR($C$144=FALSE,LEFT($B138,3)<>\"NOX\"),AU53*INDEX('Damage costs'!$U$16:$U$43,MATCH($B138,'Damage costs'!$C$16:$C$43,0))/1000,AU53*INDEX('Damage costs'!$Y$16:$Y$43,MATCH($B138,'Damage costs'!$C$16:$C$43,0))/1000),\"\")","v":0},{"$f":"IFERROR(IF(OR($C$144=FALSE,LEFT($B138,3)<>\"NOX\"),AV53*INDEX('Damage costs'!$U$16:$U$43,MATCH($B138,'Damage costs'!$C$16:$C$43,0))/1000,AV53*INDEX('Damage costs'!$Y$16:$Y$43,MATCH($B138,'Damage costs'!$C$16:$C$43,0))/1000),\"\")","v":0},{"$f":"IFERROR(IF(OR($C$144=FALSE,LEFT($B138,3)<>\"NOX\"),AW53*INDEX('Damage costs'!$U$16:$U$43,MATCH($B138,'Damage costs'!$C$16:$C$43,0))/1000,AW53*INDEX('Damage costs'!$Y$16:$Y$43,MATCH($B138,'Damage costs'!$C$16:$C$43,0))/1000),\"\")","v":0},{"$f":"IFERROR(IF(OR($C$144=FALSE,LEFT($B138,3)<>\"NOX\"),AX53*INDEX('Damage costs'!$U$16:$U$43,MATCH($B138,'Damage costs'!$C$16:$C$43,0))/1000,AX53*INDEX('Damage costs'!$Y$16:$Y$43,MATCH($B138,'Damage costs'!$C$16:$C$43,0))/1000),\"\")","v":0},{"$f":"IFERROR(IF(OR($C$144=FALSE,LEFT($B138,3)<>\"NOX\"),AY53*INDEX('Damage costs'!$U$16:$U$43,MATCH($B138,'Damage costs'!$C$16:$C$43,0))/1000,AY53*INDEX('Damage costs'!$Y$16:$Y$43,MATCH($B138,'Damage costs'!$C$16:$C$43,0))/1000),\"\")","v":0},{"$f":"IFERROR(IF(OR($C$144=FALSE,LEFT($B138,3)<>\"NOX\"),AZ53*INDEX('Damage costs'!$U$16:$U$43,MATCH($B138,'Damage costs'!$C$16:$C$43,0))/1000,AZ53*INDEX('Damage costs'!$Y$16:$Y$43,MATCH($B138,'Damage costs'!$C$16:$C$43,0))/1000),\"\")","v":0},{"$f":"IFERROR(IF(OR($C$144=FALSE,LEFT($B138,3)<>\"NOX\"),BA53*INDEX('Damage costs'!$U$16:$U$43,MATCH($B138,'Damage costs'!$C$16:$C$43,0))/1000,BA53*INDEX('Damage costs'!$Y$16:$Y$43,MATCH($B138,'Damage costs'!$C$16:$C$43,0))/1000),\"\")","v":0},{"$f":"IFERROR(IF(OR($C$144=FALSE,LEFT($B138,3)<>\"NOX\"),BB53*INDEX('Damage costs'!$U$16:$U$43,MATCH($B138,'Damage costs'!$C$16:$C$43,0))/1000,BB53*INDEX('Damage costs'!$Y$16:$Y$43,MATCH($B138,'Damage costs'!$C$16:$C$43,0))/1000),\"\")","v":0},{"$f":"IFERROR(IF(OR($C$144=FALSE,LEFT($B138,3)<>\"NOX\"),BC53*INDEX('Damage costs'!$U$16:$U$43,MATCH($B138,'Damage costs'!$C$16:$C$43,0))/1000,BC53*INDEX('Damage costs'!$Y$16:$Y$43,MATCH($B138,'Damage costs'!$C$16:$C$43,0))/1000),\"\")","v":0},{"$f":"IFERROR(IF(OR($C$144=FALSE,LEFT($B138,3)<>\"NOX\"),BD53*INDEX('Damage costs'!$U$16:$U$43,MATCH($B138,'Damage costs'!$C$16:$C$43,0))/1000,BD53*INDEX('Damage costs'!$Y$16:$Y$43,MATCH($B138,'Damage costs'!$C$16:$C$43,0))/1000),\"\")","v":0},{"$f":"IFERROR(IF(OR($C$144=FALSE,LEFT($B138,3)<>\"NOX\"),BE53*INDEX('Damage costs'!$U$16:$U$43,MATCH($B138,'Damage costs'!$C$16:$C$43,0))/1000,BE53*INDEX('Damage costs'!$Y$16:$Y$43,MATCH($B138,'Damage costs'!$C$16:$C$43,0))/1000),\"\")","v":0},{"$f":"IFERROR(IF(OR($C$144=FALSE,LEFT($B138,3)<>\"NOX\"),BF53*INDEX('Damage costs'!$U$16:$U$43,MATCH($B138,'Damage costs'!$C$16:$C$43,0))/1000,BF53*INDEX('Damage costs'!$Y$16:$Y$43,MATCH($B138,'Damage costs'!$C$16:$C$43,0))/1000),\"\")","v":0},{"$f":"IFERROR(IF(OR($C$144=FALSE,LEFT($B138,3)<>\"NOX\"),BG53*INDEX('Damage costs'!$U$16:$U$43,MATCH($B138,'Damage costs'!$C$16:$C$43,0))/1000,BG53*INDEX('Damage costs'!$Y$16:$Y$43,MATCH($B138,'Damage costs'!$C$16:$C$43,0))/1000),\"\")","v":0},{"$f":"IFERROR(IF(OR($C$144=FALSE,LEFT($B138,3)<>\"NOX\"),BH53*INDEX('Damage costs'!$U$16:$U$43,MATCH($B138,'Damage costs'!$C$16:$C$43,0))/1000,BH53*INDEX('Damage costs'!$Y$16:$Y$43,MATCH($B138,'Damage costs'!$C$16:$C$43,0))/1000),\"\")","v":0},{"$f":"IFERROR(IF(OR($C$144=FALSE,LEFT($B138,3)<>\"NOX\"),BI53*INDEX('Damage costs'!$U$16:$U$43,MATCH($B138,'Damage costs'!$C$16:$C$43,0))/1000,BI53*INDEX('Damage costs'!$Y$16:$Y$43,MATCH($B138,'Damage costs'!$C$16:$C$43,0))/1000),\"\")","v":0},{"$f":"IFERROR(IF(OR($C$144=FALSE,LEFT($B138,3)<>\"NOX\"),BJ53*INDEX('Damage costs'!$U$16:$U$43,MATCH($B138,'Damage costs'!$C$16:$C$43,0))/1000,BJ53*INDEX('Damage costs'!$Y$16:$Y$43,MATCH($B138,'Damage costs'!$C$16:$C$43,0))/1000),\"\")","v":0},{"$f":"IFERROR(IF(OR($C$144=FALSE,LEFT($B138,3)<>\"NOX\"),BK53*INDEX('Damage costs'!$U$16:$U$43,MATCH($B138,'Damage costs'!$C$16:$C$43,0))/1000,BK53*INDEX('Damage costs'!$Y$16:$Y$43,MATCH($B138,'Damage costs'!$C$16:$C$43,0))/1000),\"\")","v":0},{"$f":"IFERROR(IF(OR($C$144=FALSE,LEFT($B138,3)<>\"NOX\"),BL53*INDEX('Damage costs'!$U$16:$U$43,MATCH($B138,'Damage costs'!$C$16:$C$43,0))/1000,BL53*INDEX('Damage costs'!$Y$16:$Y$43,MATCH($B138,'Damage costs'!$C$16:$C$43,0))/1000),\"\")","v":0},{"$f":"IFERROR(IF(OR($C$144=FALSE,LEFT($B138,3)<>\"NOX\"),BM53*INDEX('Damage costs'!$U$16:$U$43,MATCH($B138,'Damage costs'!$C$16:$C$43,0))/1000,BM53*INDEX('Damage costs'!$Y$16:$Y$43,MATCH($B138,'Damage costs'!$C$16:$C$43,0))/1000),\"\")","v":0},{"$f":"IFERROR(IF(OR($C$144=FALSE,LEFT($B138,3)<>\"NOX\"),BN53*INDEX('Damage costs'!$U$16:$U$43,MATCH($B138,'Damage costs'!$C$16:$C$43,0))/1000,BN53*INDEX('Damage costs'!$Y$16:$Y$43,MATCH($B138,'Damage costs'!$C$16:$C$43,0))/1000),\"\")","v":0},{"$f":"IFERROR(IF(OR($C$144=FALSE,LEFT($B138,3)<>\"NOX\"),BO53*INDEX('Damage costs'!$U$16:$U$43,MATCH($B138,'Damage costs'!$C$16:$C$43,0))/1000,BO53*INDEX('Damage costs'!$Y$16:$Y$43,MATCH($B138,'Damage costs'!$C$16:$C$43,0))/1000),\"\")","v":0},{"$f":"IFERROR(IF(OR($C$144=FALSE,LEFT($B138,3)<>\"NOX\"),BP53*INDEX('Damage costs'!$U$16:$U$43,MATCH($B138,'Damage costs'!$C$16:$C$43,0))/1000,BP53*INDEX('Damage costs'!$Y$16:$Y$43,MATCH($B138,'Damage costs'!$C$16:$C$43,0))/1000),\"\")","v":0},{"$f":"IFERROR(IF(OR($C$144=FALSE,LEFT($B138,3)<>\"NOX\"),BQ53*INDEX('Damage costs'!$U$16:$U$43,MATCH($B138,'Damage costs'!$C$16:$C$43,0))/1000,BQ53*INDEX('Damage costs'!$Y$16:$Y$43,MATCH($B138,'Damage costs'!$C$16:$C$43,0))/1000),\"\")","v":0},{"$f":"IFERROR(IF(OR($C$144=FALSE,LEFT($B138,3)<>\"NOX\"),BR53*INDEX('Damage costs'!$U$16:$U$43,MATCH($B138,'Damage costs'!$C$16:$C$43,0))/1000,BR53*INDEX('Damage costs'!$Y$16:$Y$43,MATCH($B138,'Damage costs'!$C$16:$C$43,0))/1000),\"\")","v":0},{"$f":"IFERROR(IF(OR($C$144=FALSE,LEFT($B138,3)<>\"NOX\"),BS53*INDEX('Damage costs'!$U$16:$U$43,MATCH($B138,'Damage costs'!$C$16:$C$43,0))/1000,BS53*INDEX('Damage costs'!$Y$16:$Y$43,MATCH($B138,'Damage costs'!$C$16:$C$43,0))/1000),\"\")","v":0},{"$f":"IFERROR(IF(OR($C$144=FALSE,LEFT($B138,3)<>\"NOX\"),BT53*INDEX('Damage costs'!$U$16:$U$43,MATCH($B138,'Damage costs'!$C$16:$C$43,0))/1000,BT53*INDEX('Damage costs'!$Y$16:$Y$43,MATCH($B138,'Damage costs'!$C$16:$C$43,0))/1000),\"\")","v":0},{"$f":"IFERROR(IF(OR($C$144=FALSE,LEFT($B138,3)<>\"NOX\"),BU53*INDEX('Damage costs'!$U$16:$U$43,MATCH($B138,'Damage costs'!$C$16:$C$43,0))/1000,BU53*INDEX('Damage costs'!$Y$16:$Y$43,MATCH($B138,'Damage costs'!$C$16:$C$43,0))/1000),\"\")","v":0},{"$f":"IFERROR(IF(OR($C$144=FALSE,LEFT($B138,3)<>\"NOX\"),BV53*INDEX('Damage costs'!$U$16:$U$43,MATCH($B138,'Damage costs'!$C$16:$C$43,0))/1000,BV53*INDEX('Damage costs'!$Y$16:$Y$43,MATCH($B138,'Damage costs'!$C$16:$C$43,0))/1000),\"\")","v":0},{"$f":"IFERROR(IF(OR($C$144=FALSE,LEFT($B138,3)<>\"NOX\"),BW53*INDEX('Damage costs'!$U$16:$U$43,MATCH($B138,'Damage costs'!$C$16:$C$43,0))/1000,BW53*INDEX('Damage costs'!$Y$16:$Y$43,MATCH($B138,'Damage costs'!$C$16:$C$43,0))/1000),\"\")","v":0},{"$f":"IFERROR(IF(OR($C$144=FALSE,LEFT($B138,3)<>\"NOX\"),BX53*INDEX('Damage costs'!$U$16:$U$43,MATCH($B138,'Damage costs'!$C$16:$C$43,0))/1000,BX53*INDEX('Damage costs'!$Y$16:$Y$43,MATCH($B138,'Damage costs'!$C$16:$C$43,0))/1000),\"\")","v":0},{"$f":"IFERROR(IF(OR($C$144=FALSE,LEFT($B138,3)<>\"NOX\"),BY53*INDEX('Damage costs'!$U$16:$U$43,MATCH($B138,'Damage costs'!$C$16:$C$43,0))/1000,BY53*INDEX('Damage costs'!$Y$16:$Y$43,MATCH($B138,'Damage costs'!$C$16:$C$43,0))/1000),\"\")","v":0},{"$f":"IFERROR(IF(OR($C$144=FALSE,LEFT($B138,3)<>\"NOX\"),BZ53*INDEX('Damage costs'!$U$16:$U$43,MATCH($B138,'Damage costs'!$C$16:$C$43,0))/1000,BZ53*INDEX('Damage costs'!$Y$16:$Y$43,MATCH($B138,'Damage costs'!$C$16:$C$43,0))/1000),\"\")","v":0},{"$f":"IFERROR(IF(OR($C$144=FALSE,LEFT($B138,3)<>\"NOX\"),CA53*INDEX('Damage costs'!$U$16:$U$43,MATCH($B138,'Damage costs'!$C$16:$C$43,0))/1000,CA53*INDEX('Damage costs'!$Y$16:$Y$43,MATCH($B138,'Damage costs'!$C$16:$C$43,0))/1000),\"\")","v":0},{"$f":"IFERROR(IF(OR($C$144=FALSE,LEFT($B138,3)<>\"NOX\"),CB53*INDEX('Damage costs'!$U$16:$U$43,MATCH($B138,'Damage costs'!$C$16:$C$43,0))/1000,CB53*INDEX('Damage costs'!$Y$16:$Y$43,MATCH($B138,'Damage costs'!$C$16:$C$43,0))/1000),\"\")","v":0},{"$f":"IFERROR(IF(OR($C$144=FALSE,LEFT($B138,3)<>\"NOX\"),CC53*INDEX('Damage costs'!$U$16:$U$43,MATCH($B138,'Damage costs'!$C$16:$C$43,0))/1000,CC53*INDEX('Damage costs'!$Y$16:$Y$43,MATCH($B138,'Damage costs'!$C$16:$C$43,0))/1000),\"\")","v":0},{"$f":"IFERROR(IF(OR($C$144=FALSE,LEFT($B138,3)<>\"NOX\"),CD53*INDEX('Damage costs'!$U$16:$U$43,MATCH($B138,'Damage costs'!$C$16:$C$43,0))/1000,CD53*INDEX('Damage costs'!$Y$16:$Y$43,MATCH($B138,'Damage costs'!$C$16:$C$43,0))/1000),\"\")","v":0},{"$f":"IFERROR(IF(OR($C$144=FALSE,LEFT($B138,3)<>\"NOX\"),CE53*INDEX('Damage costs'!$U$16:$U$43,MATCH($B138,'Damage costs'!$C$16:$C$43,0))/1000,CE53*INDEX('Damage costs'!$Y$16:$Y$43,MATCH($B138,'Damage costs'!$C$16:$C$43,0))/1000),\"\")","v":0},{"$f":"IFERROR(IF(OR($C$144=FALSE,LEFT($B138,3)<>\"NOX\"),CF53*INDEX('Damage costs'!$U$16:$U$43,MATCH($B138,'Damage costs'!$C$16:$C$43,0))/1000,CF53*INDEX('Damage costs'!$Y$16:$Y$43,MATCH($B138,'Damage costs'!$C$16:$C$43,0))/1000),\"\")","v":0},{"$f":"IFERROR(IF(OR($C$144=FALSE,LEFT($B138,3)<>\"NOX\"),CG53*INDEX('Damage costs'!$U$16:$U$43,MATCH($B138,'Damage costs'!$C$16:$C$43,0))/1000,CG53*INDEX('Damage costs'!$Y$16:$Y$43,MATCH($B138,'Damage costs'!$C$16:$C$43,0))/1000),\"\")","v":0},{"$f":"IFERROR(IF(OR($C$144=FALSE,LEFT($B138,3)<>\"NOX\"),CH53*INDEX('Damage costs'!$U$16:$U$43,MATCH($B138,'Damage costs'!$C$16:$C$43,0))/1000,CH53*INDEX('Damage costs'!$Y$16:$Y$43,MATCH($B138,'Damage costs'!$C$16:$C$43,0))/1000),\"\")","v":0},{"$f":"IFERROR(IF(OR($C$144=FALSE,LEFT($B138,3)<>\"NOX\"),CI53*INDEX('Damage costs'!$U$16:$U$43,MATCH($B138,'Damage costs'!$C$16:$C$43,0))/1000,CI53*INDEX('Damage costs'!$Y$16:$Y$43,MATCH($B138,'Damage costs'!$C$16:$C$43,0))/1000),\"\")","v":0},{"$f":"IFERROR(IF(OR($C$144=FALSE,LEFT($B138,3)<>\"NOX\"),CJ53*INDEX('Damage costs'!$U$16:$U$43,MATCH($B138,'Damage costs'!$C$16:$C$43,0))/1000,CJ53*INDEX('Damage costs'!$Y$16:$Y$43,MATCH($B138,'Damage costs'!$C$16:$C$43,0))/1000),\"\")","v":0},{"$f":"IFERROR(IF(OR($C$144=FALSE,LEFT($B138,3)<>\"NOX\"),CK53*INDEX('Damage costs'!$U$16:$U$43,MATCH($B138,'Damage costs'!$C$16:$C$43,0))/1000,CK53*INDEX('Damage costs'!$Y$16:$Y$43,MATCH($B138,'Damage costs'!$C$16:$C$43,0))/1000),\"\")","v":0},{"$f":"IFERROR(IF(OR($C$144=FALSE,LEFT($B138,3)<>\"NOX\"),CL53*INDEX('Damage costs'!$U$16:$U$43,MATCH($B138,'Damage costs'!$C$16:$C$43,0))/1000,CL53*INDEX('Damage costs'!$Y$16:$Y$43,MATCH($B138,'Damage costs'!$C$16:$C$43,0))/1000),\"\")","v":0},{"$f":"IFERROR(IF(OR($C$144=FALSE,LEFT($B138,3)<>\"NOX\"),CM53*INDEX('Damage costs'!$U$16:$U$43,MATCH($B138,'Damage costs'!$C$16:$C$43,0))/1000,CM53*INDEX('Damage costs'!$Y$16:$Y$43,MATCH($B138,'Damage costs'!$C$16:$C$43,0))/1000),\"\")","v":0},{"$f":"IFERROR(IF(OR($C$144=FALSE,LEFT($B138,3)<>\"NOX\"),CN53*INDEX('Damage costs'!$U$16:$U$43,MATCH($B138,'Damage costs'!$C$16:$C$43,0))/1000,CN53*INDEX('Damage costs'!$Y$16:$Y$43,MATCH($B138,'Damage costs'!$C$16:$C$43,0))/1000),\"\")","v":0},{"$f":"IFERROR(IF(OR($C$144=FALSE,LEFT($B138,3)<>\"NOX\"),CO53*INDEX('Damage costs'!$U$16:$U$43,MATCH($B138,'Damage costs'!$C$16:$C$43,0))/1000,CO53*INDEX('Damage costs'!$Y$16:$Y$43,MATCH($B138,'Damage costs'!$C$16:$C$43,0))/1000),\"\")","v":0},{"$f":"IFERROR(IF(OR($C$144=FALSE,LEFT($B138,3)<>\"NOX\"),CP53*INDEX('Damage costs'!$U$16:$U$43,MATCH($B138,'Damage costs'!$C$16:$C$43,0))/1000,CP53*INDEX('Damage costs'!$Y$16:$Y$43,MATCH($B138,'Damage costs'!$C$16:$C$43,0))/1000),\"\")","v":0},{"$f":"IFERROR(IF(OR($C$144=FALSE,LEFT($B138,3)<>\"NOX\"),CQ53*INDEX('Damage costs'!$U$16:$U$43,MATCH($B138,'Damage costs'!$C$16:$C$43,0))/1000,CQ53*INDEX('Damage costs'!$Y$16:$Y$43,MATCH($B138,'Damage costs'!$C$16:$C$43,0))/1000),\"\")","v":0},{"$f":"IFERROR(IF(OR($C$144=FALSE,LEFT($B138,3)<>\"NOX\"),CR53*INDEX('Damage costs'!$U$16:$U$43,MATCH($B138,'Damage costs'!$C$16:$C$43,0))/1000,CR53*INDEX('Damage costs'!$Y$16:$Y$43,MATCH($B138,'Damage costs'!$C$16:$C$43,0))/1000),\"\")","v":0},{"$f":"IFERROR(IF(OR($C$144=FALSE,LEFT($B138,3)<>\"NOX\"),CS53*INDEX('Damage costs'!$U$16:$U$43,MATCH($B138,'Damage costs'!$C$16:$C$43,0))/1000,CS53*INDEX('Damage costs'!$Y$16:$Y$43,MATCH($B138,'Damage costs'!$C$16:$C$43,0))/1000),\"\")","v":0},{"$f":"IFERROR(IF(OR($C$144=FALSE,LEFT($B138,3)<>\"NOX\"),CT53*INDEX('Damage costs'!$U$16:$U$43,MATCH($B138,'Damage costs'!$C$16:$C$43,0))/1000,CT53*INDEX('Damage costs'!$Y$16:$Y$43,MATCH($B138,'Damage costs'!$C$16:$C$43,0))/1000),\"\")","v":0},{"$f":"IFERROR(IF(OR($C$144=FALSE,LEFT($B138,3)<>\"NOX\"),CU53*INDEX('Damage costs'!$U$16:$U$43,MATCH($B138,'Damage costs'!$C$16:$C$43,0))/1000,CU53*INDEX('Damage costs'!$Y$16:$Y$43,MATCH($B138,'Damage costs'!$C$16:$C$43,0))/1000),\"\")","v":0},{"$f":"IFERROR(IF(OR($C$144=FALSE,LEFT($B138,3)<>\"NOX\"),CV53*INDEX('Damage costs'!$U$16:$U$43,MATCH($B138,'Damage costs'!$C$16:$C$43,0))/1000,CV53*INDEX('Damage costs'!$Y$16:$Y$43,MATCH($B138,'Damage costs'!$C$16:$C$43,0))/1000),\"\")","v":0},{"$f":"IFERROR(IF(OR($C$144=FALSE,LEFT($B138,3)<>\"NOX\"),CW53*INDEX('Damage costs'!$U$16:$U$43,MATCH($B138,'Damage costs'!$C$16:$C$43,0))/1000,CW53*INDEX('Damage costs'!$Y$16:$Y$43,MATCH($B138,'Damage costs'!$C$16:$C$43,0))/1000),\"\")","v":0},{"$f":"IFERROR(IF(OR($C$144=FALSE,LEFT($B138,3)<>\"NOX\"),CX53*INDEX('Damage costs'!$U$16:$U$43,MATCH($B138,'Damage costs'!$C$16:$C$43,0))/1000,CX53*INDEX('Damage costs'!$Y$16:$Y$43,MATCH($B138,'Damage costs'!$C$16:$C$43,0))/1000),\"\")","v":0},{"$f":"IFERROR(IF(OR($C$144=FALSE,LEFT($B138,3)<>\"NOX\"),CY53*INDEX('Damage costs'!$U$16:$U$43,MATCH($B138,'Damage costs'!$C$16:$C$43,0))/1000,CY53*INDEX('Damage costs'!$Y$16:$Y$43,MATCH($B138,'Damage costs'!$C$16:$C$43,0))/1000),\"\")","v":0}]
[null,0,"£000's",{"$f":"IFERROR(IF(OR($C$144=FALSE,LEFT($B139,3)<>\"NOX\"),D54*INDEX('Damage costs'!$U$16:$U$43,MATCH($B139,'Damage costs'!$C$16:$C$43,0))/1000,D54*INDEX('Damage costs'!$Y$16:$Y$43,MATCH($B139,'Damage costs'!$C$16:$C$43,0))/1000),\"\")","v":""},{"$f":"IFERROR(IF(OR($C$144=FALSE,LEFT($B139,3)<>\"NOX\"),E54*INDEX('Damage costs'!$U$16:$U$43,MATCH($B139,'Damage costs'!$C$16:$C$43,0))/1000,E54*INDEX('Damage costs'!$Y$16:$Y$43,MATCH($B139,'Damage costs'!$C$16:$C$43,0))/1000),\"\")","v":""},{"$f":"IFERROR(IF(OR($C$144=FALSE,LEFT($B139,3)<>\"NOX\"),F54*INDEX('Damage costs'!$U$16:$U$43,MATCH($B139,'Damage costs'!$C$16:$C$43,0))/1000,F54*INDEX('Damage costs'!$Y$16:$Y$43,MATCH($B139,'Damage costs'!$C$16:$C$43,0))/1000),\"\")","v":""},{"$f":"IFERROR(IF(OR($C$144=FALSE,LEFT($B139,3)<>\"NOX\"),G54*INDEX('Damage costs'!$U$16:$U$43,MATCH($B139,'Damage costs'!$C$16:$C$43,0))/1000,G54*INDEX('Damage costs'!$Y$16:$Y$43,MATCH($B139,'Damage costs'!$C$16:$C$43,0))/1000),\"\")","v":""},{"$f":"IFERROR(IF(OR($C$144=FALSE,LEFT($B139,3)<>\"NOX\"),H54*INDEX('Damage costs'!$U$16:$U$43,MATCH($B139,'Damage costs'!$C$16:$C$43,0))/1000,H54*INDEX('Damage costs'!$Y$16:$Y$43,MATCH($B139,'Damage costs'!$C$16:$C$43,0))/1000),\"\")","v":""},{"$f":"IFERROR(IF(OR($C$144=FALSE,LEFT($B139,3)<>\"NOX\"),I54*INDEX('Damage costs'!$U$16:$U$43,MATCH($B139,'Damage costs'!$C$16:$C$43,0))/1000,I54*INDEX('Damage costs'!$Y$16:$Y$43,MATCH($B139,'Damage costs'!$C$16:$C$43,0))/1000),\"\")","v":""},{"$f":"IFERROR(IF(OR($C$144=FALSE,LEFT($B139,3)<>\"NOX\"),J54*INDEX('Damage costs'!$U$16:$U$43,MATCH($B139,'Damage costs'!$C$16:$C$43,0))/1000,J54*INDEX('Damage costs'!$Y$16:$Y$43,MATCH($B139,'Damage costs'!$C$16:$C$43,0))/1000),\"\")","v":""},{"$f":"IFERROR(IF(OR($C$144=FALSE,LEFT($B139,3)<>\"NOX\"),K54*INDEX('Damage costs'!$U$16:$U$43,MATCH($B139,'Damage costs'!$C$16:$C$43,0))/1000,K54*INDEX('Damage costs'!$Y$16:$Y$43,MATCH($B139,'Damage costs'!$C$16:$C$43,0))/1000),\"\")","v":""},{"$f":"IFERROR(IF(OR($C$144=FALSE,LEFT($B139,3)<>\"NOX\"),L54*INDEX('Damage costs'!$U$16:$U$43,MATCH($B139,'Damage costs'!$C$16:$C$43,0))/1000,L54*INDEX('Damage costs'!$Y$16:$Y$43,MATCH($B139,'Damage costs'!$C$16:$C$43,0))/1000),\"\")","v":""},{"$f":"IFERROR(IF(OR($C$144=FALSE,LEFT($B139,3)<>\"NOX\"),M54*INDEX('Damage costs'!$U$16:$U$43,MATCH($B139,'Damage costs'!$C$16:$C$43,0))/1000,M54*INDEX('Damage costs'!$Y$16:$Y$43,MATCH($B139,'Damage costs'!$C$16:$C$43,0))/1000),\"\")","v":""},{"$f":"IFERROR(IF(OR($C$144=FALSE,LEFT($B139,3)<>\"NOX\"),N54*INDEX('Damage costs'!$U$16:$U$43,MATCH($B139,'Damage costs'!$C$16:$C$43,0))/1000,N54*INDEX('Damage costs'!$Y$16:$Y$43,MATCH($B139,'Damage costs'!$C$16:$C$43,0))/1000),\"\")","v":""},{"$f":"IFERROR(IF(OR($C$144=FALSE,LEFT($B139,3)<>\"NOX\"),O54*INDEX('Damage costs'!$U$16:$U$43,MATCH($B139,'Damage costs'!$C$16:$C$43,0))/1000,O54*INDEX('Damage costs'!$Y$16:$Y$43,MATCH($B139,'Damage costs'!$C$16:$C$43,0))/1000),\"\")","v":""},{"$f":"IFERROR(IF(OR($C$144=FALSE,LEFT($B139,3)<>\"NOX\"),P54*INDEX('Damage costs'!$U$16:$U$43,MATCH($B139,'Damage costs'!$C$16:$C$43,0))/1000,P54*INDEX('Damage costs'!$Y$16:$Y$43,MATCH($B139,'Damage costs'!$C$16:$C$43,0))/1000),\"\")","v":""},{"$f":"IFERROR(IF(OR($C$144=FALSE,LEFT($B139,3)<>\"NOX\"),Q54*INDEX('Damage costs'!$U$16:$U$43,MATCH($B139,'Damage costs'!$C$16:$C$43,0))/1000,Q54*INDEX('Damage costs'!$Y$16:$Y$43,MATCH($B139,'Damage costs'!$C$16:$C$43,0))/1000),\"\")","v":""},{"$f":"IFERROR(IF(OR($C$144=FALSE,LEFT($B139,3)<>\"NOX\"),R54*INDEX('Damage costs'!$U$16:$U$43,MATCH($B139,'Damage costs'!$C$16:$C$43,0))/1000,R54*INDEX('Damage costs'!$Y$16:$Y$43,MATCH($B139,'Damage costs'!$C$16:$C$43,0))/1000),\"\")","v":""},{"$f":"IFERROR(IF(OR($C$144=FALSE,LEFT($B139,3)<>\"NOX\"),S54*INDEX('Damage costs'!$U$16:$U$43,MATCH($B139,'Damage costs'!$C$16:$C$43,0))/1000,S54*INDEX('Damage costs'!$Y$16:$Y$43,MATCH($B139,'Damage costs'!$C$16:$C$43,0))/1000),\"\")","v":""},{"$f":"IFERROR(IF(OR($C$144=FALSE,LEFT($B139,3)<>\"NOX\"),T54*INDEX('Damage costs'!$U$16:$U$43,MATCH($B139,'Damage costs'!$C$16:$C$43,0))/1000,T54*INDEX('Damage costs'!$Y$16:$Y$43,MATCH($B139,'Damage costs'!$C$16:$C$43,0))/1000),\"\")","v":""},{"$f":"IFERROR(IF(OR($C$144=FALSE,LEFT($B139,3)<>\"NOX\"),U54*INDEX('Damage costs'!$U$16:$U$43,MATCH($B139,'Damage costs'!$C$16:$C$43,0))/1000,U54*INDEX('Damage costs'!$Y$16:$Y$43,MATCH($B139,'Damage costs'!$C$16:$C$43,0))/1000),\"\")","v":""},{"$f":"IFERROR(IF(OR($C$144=FALSE,LEFT($B139,3)<>\"NOX\"),V54*INDEX('Damage costs'!$U$16:$U$43,MATCH($B139,'Damage costs'!$C$16:$C$43,0))/1000,V54*INDEX('Damage costs'!$Y$16:$Y$43,MATCH($B139,'Damage costs'!$C$16:$C$43,0))/1000),\"\")","v":""},{"$f":"IFERROR(IF(OR($C$144=FALSE,LEFT($B139,3)<>\"NOX\"),W54*INDEX('Damage costs'!$U$16:$U$43,MATCH($B139,'Damage costs'!$C$16:$C$43,0))/1000,W54*INDEX('Damage costs'!$Y$16:$Y$43,MATCH($B139,'Damage costs'!$C$16:$C$43,0))/1000),\"\")","v":""},{"$f":"IFERROR(IF(OR($C$144=FALSE,LEFT($B139,3)<>\"NOX\"),X54*INDEX('Damage costs'!$U$16:$U$43,MATCH($B139,'Damage costs'!$C$16:$C$43,0))/1000,X54*INDEX('Damage costs'!$Y$16:$Y$43,MATCH($B139,'Damage costs'!$C$16:$C$43,0))/1000),\"\")","v":""},{"$f":"IFERROR(IF(OR($C$144=FALSE,LEFT($B139,3)<>\"NOX\"),Y54*INDEX('Damage costs'!$U$16:$U$43,MATCH($B139,'Damage costs'!$C$16:$C$43,0))/1000,Y54*INDEX('Damage costs'!$Y$16:$Y$43,MATCH($B139,'Damage costs'!$C$16:$C$43,0))/1000),\"\")","v":""},{"$f":"IFERROR(IF(OR($C$144=FALSE,LEFT($B139,3)<>\"NOX\"),Z54*INDEX('Damage costs'!$U$16:$U$43,MATCH($B139,'Damage costs'!$C$16:$C$43,0))/1000,Z54*INDEX('Damage costs'!$Y$16:$Y$43,MATCH($B139,'Damage costs'!$C$16:$C$43,0))/1000),\"\")","v":""},{"$f":"IFERROR(IF(OR($C$144=FALSE,LEFT($B139,3)<>\"NOX\"),AA54*INDEX('Damage costs'!$U$16:$U$43,MATCH($B139,'Damage costs'!$C$16:$C$43,0))/1000,AA54*INDEX('Damage costs'!$Y$16:$Y$43,MATCH($B139,'Damage costs'!$C$16:$C$43,0))/1000),\"\")","v":""},{"$f":"IFERROR(IF(OR($C$144=FALSE,LEFT($B139,3)<>\"NOX\"),AB54*INDEX('Damage costs'!$U$16:$U$43,MATCH($B139,'Damage costs'!$C$16:$C$43,0))/1000,AB54*INDEX('Damage costs'!$Y$16:$Y$43,MATCH($B139,'Damage costs'!$C$16:$C$43,0))/1000),\"\")","v":""},{"$f":"IFERROR(IF(OR($C$144=FALSE,LEFT($B139,3)<>\"NOX\"),AC54*INDEX('Damage costs'!$U$16:$U$43,MATCH($B139,'Damage costs'!$C$16:$C$43,0))/1000,AC54*INDEX('Damage costs'!$Y$16:$Y$43,MATCH($B139,'Damage costs'!$C$16:$C$43,0))/1000),\"\")","v":""},{"$f":"IFERROR(IF(OR($C$144=FALSE,LEFT($B139,3)<>\"NOX\"),AD54*INDEX('Damage costs'!$U$16:$U$43,MATCH($B139,'Damage costs'!$C$16:$C$43,0))/1000,AD54*INDEX('Damage costs'!$Y$16:$Y$43,MATCH($B139,'Damage costs'!$C$16:$C$43,0))/1000),\"\")","v":""},{"$f":"IFERROR(IF(OR($C$144=FALSE,LEFT($B139,3)<>\"NOX\"),AE54*INDEX('Damage costs'!$U$16:$U$43,MATCH($B139,'Damage costs'!$C$16:$C$43,0))/1000,AE54*INDEX('Damage costs'!$Y$16:$Y$43,MATCH($B139,'Damage costs'!$C$16:$C$43,0))/1000),\"\")","v":""},{"$f":"IFERROR(IF(OR($C$144=FALSE,LEFT($B139,3)<>\"NOX\"),AF54*INDEX('Damage costs'!$U$16:$U$43,MATCH($B139,'Damage costs'!$C$16:$C$43,0))/1000,AF54*INDEX('Damage costs'!$Y$16:$Y$43,MATCH($B139,'Damage costs'!$C$16:$C$43,0))/1000),\"\")","v":""},{"$f":"IFERROR(IF(OR($C$144=FALSE,LEFT($B139,3)<>\"NOX\"),AG54*INDEX('Damage costs'!$U$16:$U$43,MATCH($B139,'Damage costs'!$C$16:$C$43,0))/1000,AG54*INDEX('Damage costs'!$Y$16:$Y$43,MATCH($B139,'Damage costs'!$C$16:$C$43,0))/1000),\"\")","v":""},{"$f":"IFERROR(IF(OR($C$144=FALSE,LEFT($B139,3)<>\"NOX\"),AH54*INDEX('Damage costs'!$U$16:$U$43,MATCH($B139,'Damage costs'!$C$16:$C$43,0))/1000,AH54*INDEX('Damage costs'!$Y$16:$Y$43,MATCH($B139,'Damage costs'!$C$16:$C$43,0))/1000),\"\")","v":""},{"$f":"IFERROR(IF(OR($C$144=FALSE,LEFT($B139,3)<>\"NOX\"),AI54*INDEX('Damage costs'!$U$16:$U$43,MATCH($B139,'Damage costs'!$C$16:$C$43,0))/1000,AI54*INDEX('Damage costs'!$Y$16:$Y$43,MATCH($B139,'Damage costs'!$C$16:$C$43,0))/1000),\"\")","v":""},{"$f":"IFERROR(IF(OR($C$144=FALSE,LEFT($B139,3)<>\"NOX\"),AJ54*INDEX('Damage costs'!$U$16:$U$43,MATCH($B139,'Damage costs'!$C$16:$C$43,0))/1000,AJ54*INDEX('Damage costs'!$Y$16:$Y$43,MATCH($B139,'Damage costs'!$C$16:$C$43,0))/1000),\"\")","v":""},{"$f":"IFERROR(IF(OR($C$144=FALSE,LEFT($B139,3)<>\"NOX\"),AK54*INDEX('Damage costs'!$U$16:$U$43,MATCH($B139,'Damage costs'!$C$16:$C$43,0))/1000,AK54*INDEX('Damage costs'!$Y$16:$Y$43,MATCH($B139,'Damage costs'!$C$16:$C$43,0))/1000),\"\")","v":""},{"$f":"IFERROR(IF(OR($C$144=FALSE,LEFT($B139,3)<>\"NOX\"),AL54*INDEX('Damage costs'!$U$16:$U$43,MATCH($B139,'Damage costs'!$C$16:$C$43,0))/1000,AL54*INDEX('Damage costs'!$Y$16:$Y$43,MATCH($B139,'Damage costs'!$C$16:$C$43,0))/1000),\"\")","v":""},{"$f":"IFERROR(IF(OR($C$144=FALSE,LEFT($B139,3)<>\"NOX\"),AM54*INDEX('Damage costs'!$U$16:$U$43,MATCH($B139,'Damage costs'!$C$16:$C$43,0))/1000,AM54*INDEX('Damage costs'!$Y$16:$Y$43,MATCH($B139,'Damage costs'!$C$16:$C$43,0))/1000),\"\")","v":""},{"$f":"IFERROR(IF(OR($C$144=FALSE,LEFT($B139,3)<>\"NOX\"),AN54*INDEX('Damage costs'!$U$16:$U$43,MATCH($B139,'Damage costs'!$C$16:$C$43,0))/1000,AN54*INDEX('Damage costs'!$Y$16:$Y$43,MATCH($B139,'Damage costs'!$C$16:$C$43,0))/1000),\"\")","v":""},{"$f":"IFERROR(IF(OR($C$144=FALSE,LEFT($B139,3)<>\"NOX\"),AO54*INDEX('Damage costs'!$U$16:$U$43,MATCH($B139,'Damage costs'!$C$16:$C$43,0))/1000,AO54*INDEX('Damage costs'!$Y$16:$Y$43,MATCH($B139,'Damage costs'!$C$16:$C$43,0))/1000),\"\")","v":""},{"$f":"IFERROR(IF(OR($C$144=FALSE,LEFT($B139,3)<>\"NOX\"),AP54*INDEX('Damage costs'!$U$16:$U$43,MATCH($B139,'Damage costs'!$C$16:$C$43,0))/1000,AP54*INDEX('Damage costs'!$Y$16:$Y$43,MATCH($B139,'Damage costs'!$C$16:$C$43,0))/1000),\"\")","v":""},{"$f":"IFERROR(IF(OR($C$144=FALSE,LEFT($B139,3)<>\"NOX\"),AQ54*INDEX('Damage costs'!$U$16:$U$43,MATCH($B139,'Damage costs'!$C$16:$C$43,0))/1000,AQ54*INDEX('Damage costs'!$Y$16:$Y$43,MATCH($B139,'Damage costs'!$C$16:$C$43,0))/1000),\"\")","v":""},{"$f":"IFERROR(IF(OR($C$144=FALSE,LEFT($B139,3)<>\"NOX\"),AR54*INDEX('Damage costs'!$U$16:$U$43,MATCH($B139,'Damage costs'!$C$16:$C$43,0))/1000,AR54*INDEX('Damage costs'!$Y$16:$Y$43,MATCH($B139,'Damage costs'!$C$16:$C$43,0))/1000),\"\")","v":""},{"$f":"IFERROR(IF(OR($C$144=FALSE,LEFT($B139,3)<>\"NOX\"),AS54*INDEX('Damage costs'!$U$16:$U$43,MATCH($B139,'Damage costs'!$C$16:$C$43,0))/1000,AS54*INDEX('Damage costs'!$Y$16:$Y$43,MATCH($B139,'Damage costs'!$C$16:$C$43,0))/1000),\"\")","v":""},{"$f":"IFERROR(IF(OR($C$144=FALSE,LEFT($B139,3)<>\"NOX\"),AT54*INDEX('Damage costs'!$U$16:$U$43,MATCH($B139,'Damage costs'!$C$16:$C$43,0))/1000,AT54*INDEX('Damage costs'!$Y$16:$Y$43,MATCH($B139,'Damage costs'!$C$16:$C$43,0))/1000),\"\")","v":""},{"$f":"IFERROR(IF(OR($C$144=FALSE,LEFT($B139,3)<>\"NOX\"),AU54*INDEX('Damage costs'!$U$16:$U$43,MATCH($B139,'Damage costs'!$C$16:$C$43,0))/1000,AU54*INDEX('Damage costs'!$Y$16:$Y$43,MATCH($B139,'Damage costs'!$C$16:$C$43,0))/1000),\"\")","v":""},{"$f":"IFERROR(IF(OR($C$144=FALSE,LEFT($B139,3)<>\"NOX\"),AV54*INDEX('Damage costs'!$U$16:$U$43,MATCH($B139,'Damage costs'!$C$16:$C$43,0))/1000,AV54*INDEX('Damage costs'!$Y$16:$Y$43,MATCH($B139,'Damage costs'!$C$16:$C$43,0))/1000),\"\")","v":""},{"$f":"IFERROR(IF(OR($C$144=FALSE,LEFT($B139,3)<>\"NOX\"),AW54*INDEX('Damage costs'!$U$16:$U$43,MATCH($B139,'Damage costs'!$C$16:$C$43,0))/1000,AW54*INDEX('Damage costs'!$Y$16:$Y$43,MATCH($B139,'Damage costs'!$C$16:$C$43,0))/1000),\"\")","v":""},{"$f":"IFERROR(IF(OR($C$144=FALSE,LEFT($B139,3)<>\"NOX\"),AX54*INDEX('Damage costs'!$U$16:$U$43,MATCH($B139,'Damage costs'!$C$16:$C$43,0))/1000,AX54*INDEX('Damage costs'!$Y$16:$Y$43,MATCH($B139,'Damage costs'!$C$16:$C$43,0))/1000),\"\")","v":""},{"$f":"IFERROR(IF(OR($C$144=FALSE,LEFT($B139,3)<>\"NOX\"),AY54*INDEX('Damage costs'!$U$16:$U$43,MATCH($B139,'Damage costs'!$C$16:$C$43,0))/1000,AY54*INDEX('Damage costs'!$Y$16:$Y$43,MATCH($B139,'Damage costs'!$C$16:$C$43,0))/1000),\"\")","v":""},{"$f":"IFERROR(IF(OR($C$144=FALSE,LEFT($B139,3)<>\"NOX\"),AZ54*INDEX('Damage costs'!$U$16:$U$43,MATCH($B139,'Damage costs'!$C$16:$C$43,0))/1000,AZ54*INDEX('Damage costs'!$Y$16:$Y$43,MATCH($B139,'Damage costs'!$C$16:$C$43,0))/1000),\"\")","v":""},{"$f":"IFERROR(IF(OR($C$144=FALSE,LEFT($B139,3)<>\"NOX\"),BA54*INDEX('Damage costs'!$U$16:$U$43,MATCH($B139,'Damage costs'!$C$16:$C$43,0))/1000,BA54*INDEX('Damage costs'!$Y$16:$Y$43,MATCH($B139,'Damage costs'!$C$16:$C$43,0))/1000),\"\")","v":""},{"$f":"IFERROR(IF(OR($C$144=FALSE,LEFT($B139,3)<>\"NOX\"),BB54*INDEX('Damage costs'!$U$16:$U$43,MATCH($B139,'Damage costs'!$C$16:$C$43,0))/1000,BB54*INDEX('Damage costs'!$Y$16:$Y$43,MATCH($B139,'Damage costs'!$C$16:$C$43,0))/1000),\"\")","v":""},{"$f":"IFERROR(IF(OR($C$144=FALSE,LEFT($B139,3)<>\"NOX\"),BC54*INDEX('Damage costs'!$U$16:$U$43,MATCH($B139,'Damage costs'!$C$16:$C$43,0))/1000,BC54*INDEX('Damage costs'!$Y$16:$Y$43,MATCH($B139,'Damage costs'!$C$16:$C$43,0))/1000),\"\")","v":""},{"$f":"IFERROR(IF(OR($C$144=FALSE,LEFT($B139,3)<>\"NOX\"),BD54*INDEX('Damage costs'!$U$16:$U$43,MATCH($B139,'Damage costs'!$C$16:$C$43,0))/1000,BD54*INDEX('Damage costs'!$Y$16:$Y$43,MATCH($B139,'Damage costs'!$C$16:$C$43,0))/1000),\"\")","v":""},{"$f":"IFERROR(IF(OR($C$144=FALSE,LEFT($B139,3)<>\"NOX\"),BE54*INDEX('Damage costs'!$U$16:$U$43,MATCH($B139,'Damage costs'!$C$16:$C$43,0))/1000,BE54*INDEX('Damage costs'!$Y$16:$Y$43,MATCH($B139,'Damage costs'!$C$16:$C$43,0))/1000),\"\")","v":""},{"$f":"IFERROR(IF(OR($C$144=FALSE,LEFT($B139,3)<>\"NOX\"),BF54*INDEX('Damage costs'!$U$16:$U$43,MATCH($B139,'Damage costs'!$C$16:$C$43,0))/1000,BF54*INDEX('Damage costs'!$Y$16:$Y$43,MATCH($B139,'Damage costs'!$C$16:$C$43,0))/1000),\"\")","v":""},{"$f":"IFERROR(IF(OR($C$144=FALSE,LEFT($B139,3)<>\"NOX\"),BG54*INDEX('Damage costs'!$U$16:$U$43,MATCH($B139,'Damage costs'!$C$16:$C$43,0))/1000,BG54*INDEX('Damage costs'!$Y$16:$Y$43,MATCH($B139,'Damage costs'!$C$16:$C$43,0))/1000),\"\")","v":""},{"$f":"IFERROR(IF(OR($C$144=FALSE,LEFT($B139,3)<>\"NOX\"),BH54*INDEX('Damage costs'!$U$16:$U$43,MATCH($B139,'Damage costs'!$C$16:$C$43,0))/1000,BH54*INDEX('Damage costs'!$Y$16:$Y$43,MATCH($B139,'Damage costs'!$C$16:$C$43,0))/1000),\"\")","v":""},{"$f":"IFERROR(IF(OR($C$144=FALSE,LEFT($B139,3)<>\"NOX\"),BI54*INDEX('Damage costs'!$U$16:$U$43,MATCH($B139,'Damage costs'!$C$16:$C$43,0))/1000,BI54*INDEX('Damage costs'!$Y$16:$Y$43,MATCH($B139,'Damage costs'!$C$16:$C$43,0))/1000),\"\")","v":""},{"$f":"IFERROR(IF(OR($C$144=FALSE,LEFT($B139,3)<>\"NOX\"),BJ54*INDEX('Damage costs'!$U$16:$U$43,MATCH($B139,'Damage costs'!$C$16:$C$43,0))/1000,BJ54*INDEX('Damage costs'!$Y$16:$Y$43,MATCH($B139,'Damage costs'!$C$16:$C$43,0))/1000),\"\")","v":""},{"$f":"IFERROR(IF(OR($C$144=FALSE,LEFT($B139,3)<>\"NOX\"),BK54*INDEX('Damage costs'!$U$16:$U$43,MATCH($B139,'Damage costs'!$C$16:$C$43,0))/1000,BK54*INDEX('Damage costs'!$Y$16:$Y$43,MATCH($B139,'Damage costs'!$C$16:$C$43,0))/1000),\"\")","v":""},{"$f":"IFERROR(IF(OR($C$144=FALSE,LEFT($B139,3)<>\"NOX\"),BL54*INDEX('Damage costs'!$U$16:$U$43,MATCH($B139,'Damage costs'!$C$16:$C$43,0))/1000,BL54*INDEX('Damage costs'!$Y$16:$Y$43,MATCH($B139,'Damage costs'!$C$16:$C$43,0))/1000),\"\")","v":""},{"$f":"IFERROR(IF(OR($C$144=FALSE,LEFT($B139,3)<>\"NOX\"),BM54*INDEX('Damage costs'!$U$16:$U$43,MATCH($B139,'Damage costs'!$C$16:$C$43,0))/1000,BM54*INDEX('Damage costs'!$Y$16:$Y$43,MATCH($B139,'Damage costs'!$C$16:$C$43,0))/1000),\"\")","v":""},{"$f":"IFERROR(IF(OR($C$144=FALSE,LEFT($B139,3)<>\"NOX\"),BN54*INDEX('Damage costs'!$U$16:$U$43,MATCH($B139,'Damage costs'!$C$16:$C$43,0))/1000,BN54*INDEX('Damage costs'!$Y$16:$Y$43,MATCH($B139,'Damage costs'!$C$16:$C$43,0))/1000),\"\")","v":""},{"$f":"IFERROR(IF(OR($C$144=FALSE,LEFT($B139,3)<>\"NOX\"),BO54*INDEX('Damage costs'!$U$16:$U$43,MATCH($B139,'Damage costs'!$C$16:$C$43,0))/1000,BO54*INDEX('Damage costs'!$Y$16:$Y$43,MATCH($B139,'Damage costs'!$C$16:$C$43,0))/1000),\"\")","v":""},{"$f":"IFERROR(IF(OR($C$144=FALSE,LEFT($B139,3)<>\"NOX\"),BP54*INDEX('Damage costs'!$U$16:$U$43,MATCH($B139,'Damage costs'!$C$16:$C$43,0))/1000,BP54*INDEX('Damage costs'!$Y$16:$Y$43,MATCH($B139,'Damage costs'!$C$16:$C$43,0))/1000),\"\")","v":""},{"$f":"IFERROR(IF(OR($C$144=FALSE,LEFT($B139,3)<>\"NOX\"),BQ54*INDEX('Damage costs'!$U$16:$U$43,MATCH($B139,'Damage costs'!$C$16:$C$43,0))/1000,BQ54*INDEX('Damage costs'!$Y$16:$Y$43,MATCH($B139,'Damage costs'!$C$16:$C$43,0))/1000),\"\")","v":""},{"$f":"IFERROR(IF(OR($C$144=FALSE,LEFT($B139,3)<>\"NOX\"),BR54*INDEX('Damage costs'!$U$16:$U$43,MATCH($B139,'Damage costs'!$C$16:$C$43,0))/1000,BR54*INDEX('Damage costs'!$Y$16:$Y$43,MATCH($B139,'Damage costs'!$C$16:$C$43,0))/1000),\"\")","v":""},{"$f":"IFERROR(IF(OR($C$144=FALSE,LEFT($B139,3)<>\"NOX\"),BS54*INDEX('Damage costs'!$U$16:$U$43,MATCH($B139,'Damage costs'!$C$16:$C$43,0))/1000,BS54*INDEX('Damage costs'!$Y$16:$Y$43,MATCH($B139,'Damage costs'!$C$16:$C$43,0))/1000),\"\")","v":""},{"$f":"IFERROR(IF(OR($C$144=FALSE,LEFT($B139,3)<>\"NOX\"),BT54*INDEX('Damage costs'!$U$16:$U$43,MATCH($B139,'Damage costs'!$C$16:$C$43,0))/1000,BT54*INDEX('Damage costs'!$Y$16:$Y$43,MATCH($B139,'Damage costs'!$C$16:$C$43,0))/1000),\"\")","v":""},{"$f":"IFERROR(IF(OR($C$144=FALSE,LEFT($B139,3)<>\"NOX\"),BU54*INDEX('Damage costs'!$U$16:$U$43,MATCH($B139,'Damage costs'!$C$16:$C$43,0))/1000,BU54*INDEX('Damage costs'!$Y$16:$Y$43,MATCH($B139,'Damage costs'!$C$16:$C$43,0))/1000),\"\")","v":""},{"$f":"IFERROR(IF(OR($C$144=FALSE,LEFT($B139,3)<>\"NOX\"),BV54*INDEX('Damage costs'!$U$16:$U$43,MATCH($B139,'Damage costs'!$C$16:$C$43,0))/1000,BV54*INDEX('Damage costs'!$Y$16:$Y$43,MATCH($B139,'Damage costs'!$C$16:$C$43,0))/1000),\"\")","v":""},{"$f":"IFERROR(IF(OR($C$144=FALSE,LEFT($B139,3)<>\"NOX\"),BW54*INDEX('Damage costs'!$U$16:$U$43,MATCH($B139,'Damage costs'!$C$16:$C$43,0))/1000,BW54*INDEX('Damage costs'!$Y$16:$Y$43,MATCH($B139,'Damage costs'!$C$16:$C$43,0))/1000),\"\")","v":""},{"$f":"IFERROR(IF(OR($C$144=FALSE,LEFT($B139,3)<>\"NOX\"),BX54*INDEX('Damage costs'!$U$16:$U$43,MATCH($B139,'Damage costs'!$C$16:$C$43,0))/1000,BX54*INDEX('Damage costs'!$Y$16:$Y$43,MATCH($B139,'Damage costs'!$C$16:$C$43,0))/1000),\"\")","v":""},{"$f":"IFERROR(IF(OR($C$144=FALSE,LEFT($B139,3)<>\"NOX\"),BY54*INDEX('Damage costs'!$U$16:$U$43,MATCH($B139,'Damage costs'!$C$16:$C$43,0))/1000,BY54*INDEX('Damage costs'!$Y$16:$Y$43,MATCH($B139,'Damage costs'!$C$16:$C$43,0))/1000),\"\")","v":""},{"$f":"IFERROR(IF(OR($C$144=FALSE,LEFT($B139,3)<>\"NOX\"),BZ54*INDEX('Damage costs'!$U$16:$U$43,MATCH($B139,'Damage costs'!$C$16:$C$43,0))/1000,BZ54*INDEX('Damage costs'!$Y$16:$Y$43,MATCH($B139,'Damage costs'!$C$16:$C$43,0))/1000),\"\")","v":""},{"$f":"IFERROR(IF(OR($C$144=FALSE,LEFT($B139,3)<>\"NOX\"),CA54*INDEX('Damage costs'!$U$16:$U$43,MATCH($B139,'Damage costs'!$C$16:$C$43,0))/1000,CA54*INDEX('Damage costs'!$Y$16:$Y$43,MATCH($B139,'Damage costs'!$C$16:$C$43,0))/1000),\"\")","v":""},{"$f":"IFERROR(IF(OR($C$144=FALSE,LEFT($B139,3)<>\"NOX\"),CB54*INDEX('Damage costs'!$U$16:$U$43,MATCH($B139,'Damage costs'!$C$16:$C$43,0))/1000,CB54*INDEX('Damage costs'!$Y$16:$Y$43,MATCH($B139,'Damage costs'!$C$16:$C$43,0))/1000),\"\")","v":""},{"$f":"IFERROR(IF(OR($C$144=FALSE,LEFT($B139,3)<>\"NOX\"),CC54*INDEX('Damage costs'!$U$16:$U$43,MATCH($B139,'Damage costs'!$C$16:$C$43,0))/1000,CC54*INDEX('Damage costs'!$Y$16:$Y$43,MATCH($B139,'Damage costs'!$C$16:$C$43,0))/1000),\"\")","v":""},{"$f":"IFERROR(IF(OR($C$144=FALSE,LEFT($B139,3)<>\"NOX\"),CD54*INDEX('Damage costs'!$U$16:$U$43,MATCH($B139,'Damage costs'!$C$16:$C$43,0))/1000,CD54*INDEX('Damage costs'!$Y$16:$Y$43,MATCH($B139,'Damage costs'!$C$16:$C$43,0))/1000),\"\")","v":""},{"$f":"IFERROR(IF(OR($C$144=FALSE,LEFT($B139,3)<>\"NOX\"),CE54*INDEX('Damage costs'!$U$16:$U$43,MATCH($B139,'Damage costs'!$C$16:$C$43,0))/1000,CE54*INDEX('Damage costs'!$Y$16:$Y$43,MATCH($B139,'Damage costs'!$C$16:$C$43,0))/1000),\"\")","v":""},{"$f":"IFERROR(IF(OR($C$144=FALSE,LEFT($B139,3)<>\"NOX\"),CF54*INDEX('Damage costs'!$U$16:$U$43,MATCH($B139,'Damage costs'!$C$16:$C$43,0))/1000,CF54*INDEX('Damage costs'!$Y$16:$Y$43,MATCH($B139,'Damage costs'!$C$16:$C$43,0))/1000),\"\")","v":""},{"$f":"IFERROR(IF(OR($C$144=FALSE,LEFT($B139,3)<>\"NOX\"),CG54*INDEX('Damage costs'!$U$16:$U$43,MATCH($B139,'Damage costs'!$C$16:$C$43,0))/1000,CG54*INDEX('Damage costs'!$Y$16:$Y$43,MATCH($B139,'Damage costs'!$C$16:$C$43,0))/1000),\"\")","v":""},{"$f":"IFERROR(IF(OR($C$144=FALSE,LEFT($B139,3)<>\"NOX\"),CH54*INDEX('Damage costs'!$U$16:$U$43,MATCH($B139,'Damage costs'!$C$16:$C$43,0))/1000,CH54*INDEX('Damage costs'!$Y$16:$Y$43,MATCH($B139,'Damage costs'!$C$16:$C$43,0))/1000),\"\")","v":""},{"$f":"IFERROR(IF(OR($C$144=FALSE,LEFT($B139,3)<>\"NOX\"),CI54*INDEX('Damage costs'!$U$16:$U$43,MATCH($B139,'Damage costs'!$C$16:$C$43,0))/1000,CI54*INDEX('Damage costs'!$Y$16:$Y$43,MATCH($B139,'Damage costs'!$C$16:$C$43,0))/1000),\"\")","v":""},{"$f":"IFERROR(IF(OR($C$144=FALSE,LEFT($B139,3)<>\"NOX\"),CJ54*INDEX('Damage costs'!$U$16:$U$43,MATCH($B139,'Damage costs'!$C$16:$C$43,0))/1000,CJ54*INDEX('Damage costs'!$Y$16:$Y$43,MATCH($B139,'Damage costs'!$C$16:$C$43,0))/1000),\"\")","v":""},{"$f":"IFERROR(IF(OR($C$144=FALSE,LEFT($B139,3)<>\"NOX\"),CK54*INDEX('Damage costs'!$U$16:$U$43,MATCH($B139,'Damage costs'!$C$16:$C$43,0))/1000,CK54*INDEX('Damage costs'!$Y$16:$Y$43,MATCH($B139,'Damage costs'!$C$16:$C$43,0))/1000),\"\")","v":""},{"$f":"IFERROR(IF(OR($C$144=FALSE,LEFT($B139,3)<>\"NOX\"),CL54*INDEX('Damage costs'!$U$16:$U$43,MATCH($B139,'Damage costs'!$C$16:$C$43,0))/1000,CL54*INDEX('Damage costs'!$Y$16:$Y$43,MATCH($B139,'Damage costs'!$C$16:$C$43,0))/1000),\"\")","v":""},{"$f":"IFERROR(IF(OR($C$144=FALSE,LEFT($B139,3)<>\"NOX\"),CM54*INDEX('Damage costs'!$U$16:$U$43,MATCH($B139,'Damage costs'!$C$16:$C$43,0))/1000,CM54*INDEX('Damage costs'!$Y$16:$Y$43,MATCH($B139,'Damage costs'!$C$16:$C$43,0))/1000),\"\")","v":""},{"$f":"IFERROR(IF(OR($C$144=FALSE,LEFT($B139,3)<>\"NOX\"),CN54*INDEX('Damage costs'!$U$16:$U$43,MATCH($B139,'Damage costs'!$C$16:$C$43,0))/1000,CN54*INDEX('Damage costs'!$Y$16:$Y$43,MATCH($B139,'Damage costs'!$C$16:$C$43,0))/1000),\"\")","v":""},{"$f":"IFERROR(IF(OR($C$144=FALSE,LEFT($B139,3)<>\"NOX\"),CO54*INDEX('Damage costs'!$U$16:$U$43,MATCH($B139,'Damage costs'!$C$16:$C$43,0))/1000,CO54*INDEX('Damage costs'!$Y$16:$Y$43,MATCH($B139,'Damage costs'!$C$16:$C$43,0))/1000),\"\")","v":""},{"$f":"IFERROR(IF(OR($C$144=FALSE,LEFT($B139,3)<>\"NOX\"),CP54*INDEX('Damage costs'!$U$16:$U$43,MATCH($B139,'Damage costs'!$C$16:$C$43,0))/1000,CP54*INDEX('Damage costs'!$Y$16:$Y$43,MATCH($B139,'Damage costs'!$C$16:$C$43,0))/1000),\"\")","v":""},{"$f":"IFERROR(IF(OR($C$144=FALSE,LEFT($B139,3)<>\"NOX\"),CQ54*INDEX('Damage costs'!$U$16:$U$43,MATCH($B139,'Damage costs'!$C$16:$C$43,0))/1000,CQ54*INDEX('Damage costs'!$Y$16:$Y$43,MATCH($B139,'Damage costs'!$C$16:$C$43,0))/1000),\"\")","v":""},{"$f":"IFERROR(IF(OR($C$144=FALSE,LEFT($B139,3)<>\"NOX\"),CR54*INDEX('Damage costs'!$U$16:$U$43,MATCH($B139,'Damage costs'!$C$16:$C$43,0))/1000,CR54*INDEX('Damage costs'!$Y$16:$Y$43,MATCH($B139,'Damage costs'!$C$16:$C$43,0))/1000),\"\")","v":""},{"$f":"IFERROR(IF(OR($C$144=FALSE,LEFT($B139,3)<>\"NOX\"),CS54*INDEX('Damage costs'!$U$16:$U$43,MATCH($B139,'Damage costs'!$C$16:$C$43,0))/1000,CS54*INDEX('Damage costs'!$Y$16:$Y$43,MATCH($B139,'Damage costs'!$C$16:$C$43,0))/1000),\"\")","v":""},{"$f":"IFERROR(IF(OR($C$144=FALSE,LEFT($B139,3)<>\"NOX\"),CT54*INDEX('Damage costs'!$U$16:$U$43,MATCH($B139,'Damage costs'!$C$16:$C$43,0))/1000,CT54*INDEX('Damage costs'!$Y$16:$Y$43,MATCH($B139,'Damage costs'!$C$16:$C$43,0))/1000),\"\")","v":""},{"$f":"IFERROR(IF(OR($C$144=FALSE,LEFT($B139,3)<>\"NOX\"),CU54*INDEX('Damage costs'!$U$16:$U$43,MATCH($B139,'Damage costs'!$C$16:$C$43,0))/1000,CU54*INDEX('Damage costs'!$Y$16:$Y$43,MATCH($B139,'Damage costs'!$C$16:$C$43,0))/1000),\"\")","v":""},{"$f":"IFERROR(IF(OR($C$144=FALSE,LEFT($B139,3)<>\"NOX\"),CV54*INDEX('Damage costs'!$U$16:$U$43,MATCH($B139,'Damage costs'!$C$16:$C$43,0))/1000,CV54*INDEX('Damage costs'!$Y$16:$Y$43,MATCH($B139,'Damage costs'!$C$16:$C$43,0))/1000),\"\")","v":""},{"$f":"IFERROR(IF(OR($C$144=FALSE,LEFT($B139,3)<>\"NOX\"),CW54*INDEX('Damage costs'!$U$16:$U$43,MATCH($B139,'Damage costs'!$C$16:$C$43,0))/1000,CW54*INDEX('Damage costs'!$Y$16:$Y$43,MATCH($B139,'Damage costs'!$C$16:$C$43,0))/1000),\"\")","v":""},{"$f":"IFERROR(IF(OR($C$144=FALSE,LEFT($B139,3)<>\"NOX\"),CX54*INDEX('Damage costs'!$U$16:$U$43,MATCH($B139,'Damage costs'!$C$16:$C$43,0))/1000,CX54*INDEX('Damage costs'!$Y$16:$Y$43,MATCH($B139,'Damage costs'!$C$16:$C$43,0))/1000),\"\")","v":""},{"$f":"IFERROR(IF(OR($C$144=FALSE,LEFT($B139,3)<>\"NOX\"),CY54*INDEX('Damage costs'!$U$16:$U$43,MATCH($B139,'Damage costs'!$C$16:$C$43,0))/1000,CY54*INDEX('Damage costs'!$Y$16:$Y$43,MATCH($B139,'Damage costs'!$C$16:$C$43,0))/1000),\"\")","v":""}]
[null,0,"£000's",{"$f":"IFERROR(IF(OR($C$144=FALSE,LEFT($B140,3)<>\"NOX\"),D55*INDEX('Damage costs'!$U$16:$U$43,MATCH($B140,'Damage costs'!$C$16:$C$43,0))/1000,D55*INDEX('Damage costs'!$Y$16:$Y$43,MATCH($B140,'Damage costs'!$C$16:$C$43,0))/1000),\"\")","v":""},{"$f":"IFERROR(IF(OR($C$144=FALSE,LEFT($B140,3)<>\"NOX\"),E55*INDEX('Damage costs'!$U$16:$U$43,MATCH($B140,'Damage costs'!$C$16:$C$43,0))/1000,E55*INDEX('Damage costs'!$Y$16:$Y$43,MATCH($B140,'Damage costs'!$C$16:$C$43,0))/1000),\"\")","v":""},{"$f":"IFERROR(IF(OR($C$144=FALSE,LEFT($B140,3)<>\"NOX\"),F55*INDEX('Damage costs'!$U$16:$U$43,MATCH($B140,'Damage costs'!$C$16:$C$43,0))/1000,F55*INDEX('Damage costs'!$Y$16:$Y$43,MATCH($B140,'Damage costs'!$C$16:$C$43,0))/1000),\"\")","v":""},{"$f":"IFERROR(IF(OR($C$144=FALSE,LEFT($B140,3)<>\"NOX\"),G55*INDEX('Damage costs'!$U$16:$U$43,MATCH($B140,'Damage costs'!$C$16:$C$43,0))/1000,G55*INDEX('Damage costs'!$Y$16:$Y$43,MATCH($B140,'Damage costs'!$C$16:$C$43,0))/1000),\"\")","v":""},{"$f":"IFERROR(IF(OR($C$144=FALSE,LEFT($B140,3)<>\"NOX\"),H55*INDEX('Damage costs'!$U$16:$U$43,MATCH($B140,'Damage costs'!$C$16:$C$43,0))/1000,H55*INDEX('Damage costs'!$Y$16:$Y$43,MATCH($B140,'Damage costs'!$C$16:$C$43,0))/1000),\"\")","v":""},{"$f":"IFERROR(IF(OR($C$144=FALSE,LEFT($B140,3)<>\"NOX\"),I55*INDEX('Damage costs'!$U$16:$U$43,MATCH($B140,'Damage costs'!$C$16:$C$43,0))/1000,I55*INDEX('Damage costs'!$Y$16:$Y$43,MATCH($B140,'Damage costs'!$C$16:$C$43,0))/1000),\"\")","v":""},{"$f":"IFERROR(IF(OR($C$144=FALSE,LEFT($B140,3)<>\"NOX\"),J55*INDEX('Damage costs'!$U$16:$U$43,MATCH($B140,'Damage costs'!$C$16:$C$43,0))/1000,J55*INDEX('Damage costs'!$Y$16:$Y$43,MATCH($B140,'Damage costs'!$C$16:$C$43,0))/1000),\"\")","v":""},{"$f":"IFERROR(IF(OR($C$144=FALSE,LEFT($B140,3)<>\"NOX\"),K55*INDEX('Damage costs'!$U$16:$U$43,MATCH($B140,'Damage costs'!$C$16:$C$43,0))/1000,K55*INDEX('Damage costs'!$Y$16:$Y$43,MATCH($B140,'Damage costs'!$C$16:$C$43,0))/1000),\"\")","v":""},{"$f":"IFERROR(IF(OR($C$144=FALSE,LEFT($B140,3)<>\"NOX\"),L55*INDEX('Damage costs'!$U$16:$U$43,MATCH($B140,'Damage costs'!$C$16:$C$43,0))/1000,L55*INDEX('Damage costs'!$Y$16:$Y$43,MATCH($B140,'Damage costs'!$C$16:$C$43,0))/1000),\"\")","v":""},{"$f":"IFERROR(IF(OR($C$144=FALSE,LEFT($B140,3)<>\"NOX\"),M55*INDEX('Damage costs'!$U$16:$U$43,MATCH($B140,'Damage costs'!$C$16:$C$43,0))/1000,M55*INDEX('Damage costs'!$Y$16:$Y$43,MATCH($B140,'Damage costs'!$C$16:$C$43,0))/1000),\"\")","v":""},{"$f":"IFERROR(IF(OR($C$144=FALSE,LEFT($B140,3)<>\"NOX\"),N55*INDEX('Damage costs'!$U$16:$U$43,MATCH($B140,'Damage costs'!$C$16:$C$43,0))/1000,N55*INDEX('Damage costs'!$Y$16:$Y$43,MATCH($B140,'Damage costs'!$C$16:$C$43,0))/1000),\"\")","v":""},{"$f":"IFERROR(IF(OR($C$144=FALSE,LEFT($B140,3)<>\"NOX\"),O55*INDEX('Damage costs'!$U$16:$U$43,MATCH($B140,'Damage costs'!$C$16:$C$43,0))/1000,O55*INDEX('Damage costs'!$Y$16:$Y$43,MATCH($B140,'Damage costs'!$C$16:$C$43,0))/1000),\"\")","v":""},{"$f":"IFERROR(IF(OR($C$144=FALSE,LEFT($B140,3)<>\"NOX\"),P55*INDEX('Damage costs'!$U$16:$U$43,MATCH($B140,'Damage costs'!$C$16:$C$43,0))/1000,P55*INDEX('Damage costs'!$Y$16:$Y$43,MATCH($B140,'Damage costs'!$C$16:$C$43,0))/1000),\"\")","v":""},{"$f":"IFERROR(IF(OR($C$144=FALSE,LEFT($B140,3)<>\"NOX\"),Q55*INDEX('Damage costs'!$U$16:$U$43,MATCH($B140,'Damage costs'!$C$16:$C$43,0))/1000,Q55*INDEX('Damage costs'!$Y$16:$Y$43,MATCH($B140,'Damage costs'!$C$16:$C$43,0))/1000),\"\")","v":""},{"$f":"IFERROR(IF(OR($C$144=FALSE,LEFT($B140,3)<>\"NOX\"),R55*INDEX('Damage costs'!$U$16:$U$43,MATCH($B140,'Damage costs'!$C$16:$C$43,0))/1000,R55*INDEX('Damage costs'!$Y$16:$Y$43,MATCH($B140,'Damage costs'!$C$16:$C$43,0))/1000),\"\")","v":""},{"$f":"IFERROR(IF(OR($C$144=FALSE,LEFT($B140,3)<>\"NOX\"),S55*INDEX('Damage costs'!$U$16:$U$43,MATCH($B140,'Damage costs'!$C$16:$C$43,0))/1000,S55*INDEX('Damage costs'!$Y$16:$Y$43,MATCH($B140,'Damage costs'!$C$16:$C$43,0))/1000),\"\")","v":""},{"$f":"IFERROR(IF(OR($C$144=FALSE,LEFT($B140,3)<>\"NOX\"),T55*INDEX('Damage costs'!$U$16:$U$43,MATCH($B140,'Damage costs'!$C$16:$C$43,0))/1000,T55*INDEX('Damage costs'!$Y$16:$Y$43,MATCH($B140,'Damage costs'!$C$16:$C$43,0))/1000),\"\")","v":""},{"$f":"IFERROR(IF(OR($C$144=FALSE,LEFT($B140,3)<>\"NOX\"),U55*INDEX('Damage costs'!$U$16:$U$43,MATCH($B140,'Damage costs'!$C$16:$C$43,0))/1000,U55*INDEX('Damage costs'!$Y$16:$Y$43,MATCH($B140,'Damage costs'!$C$16:$C$43,0))/1000),\"\")","v":""},{"$f":"IFERROR(IF(OR($C$144=FALSE,LEFT($B140,3)<>\"NOX\"),V55*INDEX('Damage costs'!$U$16:$U$43,MATCH($B140,'Damage costs'!$C$16:$C$43,0))/1000,V55*INDEX('Damage costs'!$Y$16:$Y$43,MATCH($B140,'Damage costs'!$C$16:$C$43,0))/1000),\"\")","v":""},{"$f":"IFERROR(IF(OR($C$144=FALSE,LEFT($B140,3)<>\"NOX\"),W55*INDEX('Damage costs'!$U$16:$U$43,MATCH($B140,'Damage costs'!$C$16:$C$43,0))/1000,W55*INDEX('Damage costs'!$Y$16:$Y$43,MATCH($B140,'Damage costs'!$C$16:$C$43,0))/1000),\"\")","v":""},{"$f":"IFERROR(IF(OR($C$144=FALSE,LEFT($B140,3)<>\"NOX\"),X55*INDEX('Damage costs'!$U$16:$U$43,MATCH($B140,'Damage costs'!$C$16:$C$43,0))/1000,X55*INDEX('Damage costs'!$Y$16:$Y$43,MATCH($B140,'Damage costs'!$C$16:$C$43,0))/1000),\"\")","v":""},{"$f":"IFERROR(IF(OR($C$144=FALSE,LEFT($B140,3)<>\"NOX\"),Y55*INDEX('Damage costs'!$U$16:$U$43,MATCH($B140,'Damage costs'!$C$16:$C$43,0))/1000,Y55*INDEX('Damage costs'!$Y$16:$Y$43,MATCH($B140,'Damage costs'!$C$16:$C$43,0))/1000),\"\")","v":""},{"$f":"IFERROR(IF(OR($C$144=FALSE,LEFT($B140,3)<>\"NOX\"),Z55*INDEX('Damage costs'!$U$16:$U$43,MATCH($B140,'Damage costs'!$C$16:$C$43,0))/1000,Z55*INDEX('Damage costs'!$Y$16:$Y$43,MATCH($B140,'Damage costs'!$C$16:$C$43,0))/1000),\"\")","v":""},{"$f":"IFERROR(IF(OR($C$144=FALSE,LEFT($B140,3)<>\"NOX\"),AA55*INDEX('Damage costs'!$U$16:$U$43,MATCH($B140,'Damage costs'!$C$16:$C$43,0))/1000,AA55*INDEX('Damage costs'!$Y$16:$Y$43,MATCH($B140,'Damage costs'!$C$16:$C$43,0))/1000),\"\")","v":""},{"$f":"IFERROR(IF(OR($C$144=FALSE,LEFT($B140,3)<>\"NOX\"),AB55*INDEX('Damage costs'!$U$16:$U$43,MATCH($B140,'Damage costs'!$C$16:$C$43,0))/1000,AB55*INDEX('Damage costs'!$Y$16:$Y$43,MATCH($B140,'Damage costs'!$C$16:$C$43,0))/1000),\"\")","v":""},{"$f":"IFERROR(IF(OR($C$144=FALSE,LEFT($B140,3)<>\"NOX\"),AC55*INDEX('Damage costs'!$U$16:$U$43,MATCH($B140,'Damage costs'!$C$16:$C$43,0))/1000,AC55*INDEX('Damage costs'!$Y$16:$Y$43,MATCH($B140,'Damage costs'!$C$16:$C$43,0))/1000),\"\")","v":""},{"$f":"IFERROR(IF(OR($C$144=FALSE,LEFT($B140,3)<>\"NOX\"),AD55*INDEX('Damage costs'!$U$16:$U$43,MATCH($B140,'Damage costs'!$C$16:$C$43,0))/1000,AD55*INDEX('Damage costs'!$Y$16:$Y$43,MATCH($B140,'Damage costs'!$C$16:$C$43,0))/1000),\"\")","v":""},{"$f":"IFERROR(IF(OR($C$144=FALSE,LEFT($B140,3)<>\"NOX\"),AE55*INDEX('Damage costs'!$U$16:$U$43,MATCH($B140,'Damage costs'!$C$16:$C$43,0))/1000,AE55*INDEX('Damage costs'!$Y$16:$Y$43,MATCH($B140,'Damage costs'!$C$16:$C$43,0))/1000),\"\")","v":""},{"$f":"IFERROR(IF(OR($C$144=FALSE,LEFT($B140,3)<>\"NOX\"),AF55*INDEX('Damage costs'!$U$16:$U$43,MATCH($B140,'Damage costs'!$C$16:$C$43,0))/1000,AF55*INDEX('Damage costs'!$Y$16:$Y$43,MATCH($B140,'Damage costs'!$C$16:$C$43,0))/1000),\"\")","v":""},{"$f":"IFERROR(IF(OR($C$144=FALSE,LEFT($B140,3)<>\"NOX\"),AG55*INDEX('Damage costs'!$U$16:$U$43,MATCH($B140,'Damage costs'!$C$16:$C$43,0))/1000,AG55*INDEX('Damage costs'!$Y$16:$Y$43,MATCH($B140,'Damage costs'!$C$16:$C$43,0))/1000),\"\")","v":""},{"$f":"IFERROR(IF(OR($C$144=FALSE,LEFT($B140,3)<>\"NOX\"),AH55*INDEX('Damage costs'!$U$16:$U$43,MATCH($B140,'Damage costs'!$C$16:$C$43,0))/1000,AH55*INDEX('Damage costs'!$Y$16:$Y$43,MATCH($B140,'Damage costs'!$C$16:$C$43,0))/1000),\"\")","v":""},{"$f":"IFERROR(IF(OR($C$144=FALSE,LEFT($B140,3)<>\"NOX\"),AI55*INDEX('Damage costs'!$U$16:$U$43,MATCH($B140,'Damage costs'!$C$16:$C$43,0))/1000,AI55*INDEX('Damage costs'!$Y$16:$Y$43,MATCH($B140,'Damage costs'!$C$16:$C$43,0))/1000),\"\")","v":""},{"$f":"IFERROR(IF(OR($C$144=FALSE,LEFT($B140,3)<>\"NOX\"),AJ55*INDEX('Damage costs'!$U$16:$U$43,MATCH($B140,'Damage costs'!$C$16:$C$43,0))/1000,AJ55*INDEX('Damage costs'!$Y$16:$Y$43,MATCH($B140,'Damage costs'!$C$16:$C$43,0))/1000),\"\")","v":""},{"$f":"IFERROR(IF(OR($C$144=FALSE,LEFT($B140,3)<>\"NOX\"),AK55*INDEX('Damage costs'!$U$16:$U$43,MATCH($B140,'Damage costs'!$C$16:$C$43,0))/1000,AK55*INDEX('Damage costs'!$Y$16:$Y$43,MATCH($B140,'Damage costs'!$C$16:$C$43,0))/1000),\"\")","v":""},{"$f":"IFERROR(IF(OR($C$144=FALSE,LEFT($B140,3)<>\"NOX\"),AL55*INDEX('Damage costs'!$U$16:$U$43,MATCH($B140,'Damage costs'!$C$16:$C$43,0))/1000,AL55*INDEX('Damage costs'!$Y$16:$Y$43,MATCH($B140,'Damage costs'!$C$16:$C$43,0))/1000),\"\")","v":""},{"$f":"IFERROR(IF(OR($C$144=FALSE,LEFT($B140,3)<>\"NOX\"),AM55*INDEX('Damage costs'!$U$16:$U$43,MATCH($B140,'Damage costs'!$C$16:$C$43,0))/1000,AM55*INDEX('Damage costs'!$Y$16:$Y$43,MATCH($B140,'Damage costs'!$C$16:$C$43,0))/1000),\"\")","v":""},{"$f":"IFERROR(IF(OR($C$144=FALSE,LEFT($B140,3)<>\"NOX\"),AN55*INDEX('Damage costs'!$U$16:$U$43,MATCH($B140,'Damage costs'!$C$16:$C$43,0))/1000,AN55*INDEX('Damage costs'!$Y$16:$Y$43,MATCH($B140,'Damage costs'!$C$16:$C$43,0))/1000),\"\")","v":""},{"$f":"IFERROR(IF(OR($C$144=FALSE,LEFT($B140,3)<>\"NOX\"),AO55*INDEX('Damage costs'!$U$16:$U$43,MATCH($B140,'Damage costs'!$C$16:$C$43,0))/1000,AO55*INDEX('Damage costs'!$Y$16:$Y$43,MATCH($B140,'Damage costs'!$C$16:$C$43,0))/1000),\"\")","v":""},{"$f":"IFERROR(IF(OR($C$144=FALSE,LEFT($B140,3)<>\"NOX\"),AP55*INDEX('Damage costs'!$U$16:$U$43,MATCH($B140,'Damage costs'!$C$16:$C$43,0))/1000,AP55*INDEX('Damage costs'!$Y$16:$Y$43,MATCH($B140,'Damage costs'!$C$16:$C$43,0))/1000),\"\")","v":""},{"$f":"IFERROR(IF(OR($C$144=FALSE,LEFT($B140,3)<>\"NOX\"),AQ55*INDEX('Damage costs'!$U$16:$U$43,MATCH($B140,'Damage costs'!$C$16:$C$43,0))/1000,AQ55*INDEX('Damage costs'!$Y$16:$Y$43,MATCH($B140,'Damage costs'!$C$16:$C$43,0))/1000),\"\")","v":""},{"$f":"IFERROR(IF(OR($C$144=FALSE,LEFT($B140,3)<>\"NOX\"),AR55*INDEX('Damage costs'!$U$16:$U$43,MATCH($B140,'Damage costs'!$C$16:$C$43,0))/1000,AR55*INDEX('Damage costs'!$Y$16:$Y$43,MATCH($B140,'Damage costs'!$C$16:$C$43,0))/1000),\"\")","v":""},{"$f":"IFERROR(IF(OR($C$144=FALSE,LEFT($B140,3)<>\"NOX\"),AS55*INDEX('Damage costs'!$U$16:$U$43,MATCH($B140,'Damage costs'!$C$16:$C$43,0))/1000,AS55*INDEX('Damage costs'!$Y$16:$Y$43,MATCH($B140,'Damage costs'!$C$16:$C$43,0))/1000),\"\")","v":""},{"$f":"IFERROR(IF(OR($C$144=FALSE,LEFT($B140,3)<>\"NOX\"),AT55*INDEX('Damage costs'!$U$16:$U$43,MATCH($B140,'Damage costs'!$C$16:$C$43,0))/1000,AT55*INDEX('Damage costs'!$Y$16:$Y$43,MATCH($B140,'Damage costs'!$C$16:$C$43,0))/1000),\"\")","v":""},{"$f":"IFERROR(IF(OR($C$144=FALSE,LEFT($B140,3)<>\"NOX\"),AU55*INDEX('Damage costs'!$U$16:$U$43,MATCH($B140,'Damage costs'!$C$16:$C$43,0))/1000,AU55*INDEX('Damage costs'!$Y$16:$Y$43,MATCH($B140,'Damage costs'!$C$16:$C$43,0))/1000),\"\")","v":""},{"$f":"IFERROR(IF(OR($C$144=FALSE,LEFT($B140,3)<>\"NOX\"),AV55*INDEX('Damage costs'!$U$16:$U$43,MATCH($B140,'Damage costs'!$C$16:$C$43,0))/1000,AV55*INDEX('Damage costs'!$Y$16:$Y$43,MATCH($B140,'Damage costs'!$C$16:$C$43,0))/1000),\"\")","v":""},{"$f":"IFERROR(IF(OR($C$144=FALSE,LEFT($B140,3)<>\"NOX\"),AW55*INDEX('Damage costs'!$U$16:$U$43,MATCH($B140,'Damage costs'!$C$16:$C$43,0))/1000,AW55*INDEX('Damage costs'!$Y$16:$Y$43,MATCH($B140,'Damage costs'!$C$16:$C$43,0))/1000),\"\")","v":""},{"$f":"IFERROR(IF(OR($C$144=FALSE,LEFT($B140,3)<>\"NOX\"),AX55*INDEX('Damage costs'!$U$16:$U$43,MATCH($B140,'Damage costs'!$C$16:$C$43,0))/1000,AX55*INDEX('Damage costs'!$Y$16:$Y$43,MATCH($B140,'Damage costs'!$C$16:$C$43,0))/1000),\"\")","v":""},{"$f":"IFERROR(IF(OR($C$144=FALSE,LEFT($B140,3)<>\"NOX\"),AY55*INDEX('Damage costs'!$U$16:$U$43,MATCH($B140,'Damage costs'!$C$16:$C$43,0))/1000,AY55*INDEX('Damage costs'!$Y$16:$Y$43,MATCH($B140,'Damage costs'!$C$16:$C$43,0))/1000),\"\")","v":""},{"$f":"IFERROR(IF(OR($C$144=FALSE,LEFT($B140,3)<>\"NOX\"),AZ55*INDEX('Damage costs'!$U$16:$U$43,MATCH($B140,'Damage costs'!$C$16:$C$43,0))/1000,AZ55*INDEX('Damage costs'!$Y$16:$Y$43,MATCH($B140,'Damage costs'!$C$16:$C$43,0))/1000),\"\")","v":""},{"$f":"IFERROR(IF(OR($C$144=FALSE,LEFT($B140,3)<>\"NOX\"),BA55*INDEX('Damage costs'!$U$16:$U$43,MATCH($B140,'Damage costs'!$C$16:$C$43,0))/1000,BA55*INDEX('Damage costs'!$Y$16:$Y$43,MATCH($B140,'Damage costs'!$C$16:$C$43,0))/1000),\"\")","v":""},{"$f":"IFERROR(IF(OR($C$144=FALSE,LEFT($B140,3)<>\"NOX\"),BB55*INDEX('Damage costs'!$U$16:$U$43,MATCH($B140,'Damage costs'!$C$16:$C$43,0))/1000,BB55*INDEX('Damage costs'!$Y$16:$Y$43,MATCH($B140,'Damage costs'!$C$16:$C$43,0))/1000),\"\")","v":""},{"$f":"IFERROR(IF(OR($C$144=FALSE,LEFT($B140,3)<>\"NOX\"),BC55*INDEX('Damage costs'!$U$16:$U$43,MATCH($B140,'Damage costs'!$C$16:$C$43,0))/1000,BC55*INDEX('Damage costs'!$Y$16:$Y$43,MATCH($B140,'Damage costs'!$C$16:$C$43,0))/1000),\"\")","v":""},{"$f":"IFERROR(IF(OR($C$144=FALSE,LEFT($B140,3)<>\"NOX\"),BD55*INDEX('Damage costs'!$U$16:$U$43,MATCH($B140,'Damage costs'!$C$16:$C$43,0))/1000,BD55*INDEX('Damage costs'!$Y$16:$Y$43,MATCH($B140,'Damage costs'!$C$16:$C$43,0))/1000),\"\")","v":""},{"$f":"IFERROR(IF(OR($C$144=FALSE,LEFT($B140,3)<>\"NOX\"),BE55*INDEX('Damage costs'!$U$16:$U$43,MATCH($B140,'Damage costs'!$C$16:$C$43,0))/1000,BE55*INDEX('Damage costs'!$Y$16:$Y$43,MATCH($B140,'Damage costs'!$C$16:$C$43,0))/1000),\"\")","v":""},{"$f":"IFERROR(IF(OR($C$144=FALSE,LEFT($B140,3)<>\"NOX\"),BF55*INDEX('Damage costs'!$U$16:$U$43,MATCH($B140,'Damage costs'!$C$16:$C$43,0))/1000,BF55*INDEX('Damage costs'!$Y$16:$Y$43,MATCH($B140,'Damage costs'!$C$16:$C$43,0))/1000),\"\")","v":""},{"$f":"IFERROR(IF(OR($C$144=FALSE,LEFT($B140,3)<>\"NOX\"),BG55*INDEX('Damage costs'!$U$16:$U$43,MATCH($B140,'Damage costs'!$C$16:$C$43,0))/1000,BG55*INDEX('Damage costs'!$Y$16:$Y$43,MATCH($B140,'Damage costs'!$C$16:$C$43,0))/1000),\"\")","v":""},{"$f":"IFERROR(IF(OR($C$144=FALSE,LEFT($B140,3)<>\"NOX\"),BH55*INDEX('Damage costs'!$U$16:$U$43,MATCH($B140,'Damage costs'!$C$16:$C$43,0))/1000,BH55*INDEX('Damage costs'!$Y$16:$Y$43,MATCH($B140,'Damage costs'!$C$16:$C$43,0))/1000),\"\")","v":""},{"$f":"IFERROR(IF(OR($C$144=FALSE,LEFT($B140,3)<>\"NOX\"),BI55*INDEX('Damage costs'!$U$16:$U$43,MATCH($B140,'Damage costs'!$C$16:$C$43,0))/1000,BI55*INDEX('Damage costs'!$Y$16:$Y$43,MATCH($B140,'Damage costs'!$C$16:$C$43,0))/1000),\"\")","v":""},{"$f":"IFERROR(IF(OR($C$144=FALSE,LEFT($B140,3)<>\"NOX\"),BJ55*INDEX('Damage costs'!$U$16:$U$43,MATCH($B140,'Damage costs'!$C$16:$C$43,0))/1000,BJ55*INDEX('Damage costs'!$Y$16:$Y$43,MATCH($B140,'Damage costs'!$C$16:$C$43,0))/1000),\"\")","v":""},{"$f":"IFERROR(IF(OR($C$144=FALSE,LEFT($B140,3)<>\"NOX\"),BK55*INDEX('Damage costs'!$U$16:$U$43,MATCH($B140,'Damage costs'!$C$16:$C$43,0))/1000,BK55*INDEX('Damage costs'!$Y$16:$Y$43,MATCH($B140,'Damage costs'!$C$16:$C$43,0))/1000),\"\")","v":""},{"$f":"IFERROR(IF(OR($C$144=FALSE,LEFT($B140,3)<>\"NOX\"),BL55*INDEX('Damage costs'!$U$16:$U$43,MATCH($B140,'Damage costs'!$C$16:$C$43,0))/1000,BL55*INDEX('Damage costs'!$Y$16:$Y$43,MATCH($B140,'Damage costs'!$C$16:$C$43,0))/1000),\"\")","v":""},{"$f":"IFERROR(IF(OR($C$144=FALSE,LEFT($B140,3)<>\"NOX\"),BM55*INDEX('Damage costs'!$U$16:$U$43,MATCH($B140,'Damage costs'!$C$16:$C$43,0))/1000,BM55*INDEX('Damage costs'!$Y$16:$Y$43,MATCH($B140,'Damage costs'!$C$16:$C$43,0))/1000),\"\")","v":""},{"$f":"IFERROR(IF(OR($C$144=FALSE,LEFT($B140,3)<>\"NOX\"),BN55*INDEX('Damage costs'!$U$16:$U$43,MATCH($B140,'Damage costs'!$C$16:$C$43,0))/1000,BN55*INDEX('Damage costs'!$Y$16:$Y$43,MATCH($B140,'Damage costs'!$C$16:$C$43,0))/1000),\"\")","v":""},{"$f":"IFERROR(IF(OR($C$144=FALSE,LEFT($B140,3)<>\"NOX\"),BO55*INDEX('Damage costs'!$U$16:$U$43,MATCH($B140,'Damage costs'!$C$16:$C$43,0))/1000,BO55*INDEX('Damage costs'!$Y$16:$Y$43,MATCH($B140,'Damage costs'!$C$16:$C$43,0))/1000),\"\")","v":""},{"$f":"IFERROR(IF(OR($C$144=FALSE,LEFT($B140,3)<>\"NOX\"),BP55*INDEX('Damage costs'!$U$16:$U$43,MATCH($B140,'Damage costs'!$C$16:$C$43,0))/1000,BP55*INDEX('Damage costs'!$Y$16:$Y$43,MATCH($B140,'Damage costs'!$C$16:$C$43,0))/1000),\"\")","v":""},{"$f":"IFERROR(IF(OR($C$144=FALSE,LEFT($B140,3)<>\"NOX\"),BQ55*INDEX('Damage costs'!$U$16:$U$43,MATCH($B140,'Damage costs'!$C$16:$C$43,0))/1000,BQ55*INDEX('Damage costs'!$Y$16:$Y$43,MATCH($B140,'Damage costs'!$C$16:$C$43,0))/1000),\"\")","v":""},{"$f":"IFERROR(IF(OR($C$144=FALSE,LEFT($B140,3)<>\"NOX\"),BR55*INDEX('Damage costs'!$U$16:$U$43,MATCH($B140,'Damage costs'!$C$16:$C$43,0))/1000,BR55*INDEX('Damage costs'!$Y$16:$Y$43,MATCH($B140,'Damage costs'!$C$16:$C$43,0))/1000),\"\")","v":""},{"$f":"IFERROR(IF(OR($C$144=FALSE,LEFT($B140,3)<>\"NOX\"),BS55*INDEX('Damage costs'!$U$16:$U$43,MATCH($B140,'Damage costs'!$C$16:$C$43,0))/1000,BS55*INDEX('Damage costs'!$Y$16:$Y$43,MATCH($B140,'Damage costs'!$C$16:$C$43,0))/1000),\"\")","v":""},{"$f":"IFERROR(IF(OR($C$144=FALSE,LEFT($B140,3)<>\"NOX\"),BT55*INDEX('Damage costs'!$U$16:$U$43,MATCH($B140,'Damage costs'!$C$16:$C$43,0))/1000,BT55*INDEX('Damage costs'!$Y$16:$Y$43,MATCH($B140,'Damage costs'!$C$16:$C$43,0))/1000),\"\")","v":""},{"$f":"IFERROR(IF(OR($C$144=FALSE,LEFT($B140,3)<>\"NOX\"),BU55*INDEX('Damage costs'!$U$16:$U$43,MATCH($B140,'Damage costs'!$C$16:$C$43,0))/1000,BU55*INDEX('Damage costs'!$Y$16:$Y$43,MATCH($B140,'Damage costs'!$C$16:$C$43,0))/1000),\"\")","v":""},{"$f":"IFERROR(IF(OR($C$144=FALSE,LEFT($B140,3)<>\"NOX\"),BV55*INDEX('Damage costs'!$U$16:$U$43,MATCH($B140,'Damage costs'!$C$16:$C$43,0))/1000,BV55*INDEX('Damage costs'!$Y$16:$Y$43,MATCH($B140,'Damage costs'!$C$16:$C$43,0))/1000),\"\")","v":""},{"$f":"IFERROR(IF(OR($C$144=FALSE,LEFT($B140,3)<>\"NOX\"),BW55*INDEX('Damage costs'!$U$16:$U$43,MATCH($B140,'Damage costs'!$C$16:$C$43,0))/1000,BW55*INDEX('Damage costs'!$Y$16:$Y$43,MATCH($B140,'Damage costs'!$C$16:$C$43,0))/1000),\"\")","v":""},{"$f":"IFERROR(IF(OR($C$144=FALSE,LEFT($B140,3)<>\"NOX\"),BX55*INDEX('Damage costs'!$U$16:$U$43,MATCH($B140,'Damage costs'!$C$16:$C$43,0))/1000,BX55*INDEX('Damage costs'!$Y$16:$Y$43,MATCH($B140,'Damage costs'!$C$16:$C$43,0))/1000),\"\")","v":""},{"$f":"IFERROR(IF(OR($C$144=FALSE,LEFT($B140,3)<>\"NOX\"),BY55*INDEX('Damage costs'!$U$16:$U$43,MATCH($B140,'Damage costs'!$C$16:$C$43,0))/1000,BY55*INDEX('Damage costs'!$Y$16:$Y$43,MATCH($B140,'Damage costs'!$C$16:$C$43,0))/1000),\"\")","v":""},{"$f":"IFERROR(IF(OR($C$144=FALSE,LEFT($B140,3)<>\"NOX\"),BZ55*INDEX('Damage costs'!$U$16:$U$43,MATCH($B140,'Damage costs'!$C$16:$C$43,0))/1000,BZ55*INDEX('Damage costs'!$Y$16:$Y$43,MATCH($B140,'Damage costs'!$C$16:$C$43,0))/1000),\"\")","v":""},{"$f":"IFERROR(IF(OR($C$144=FALSE,LEFT($B140,3)<>\"NOX\"),CA55*INDEX('Damage costs'!$U$16:$U$43,MATCH($B140,'Damage costs'!$C$16:$C$43,0))/1000,CA55*INDEX('Damage costs'!$Y$16:$Y$43,MATCH($B140,'Damage costs'!$C$16:$C$43,0))/1000),\"\")","v":""},{"$f":"IFERROR(IF(OR($C$144=FALSE,LEFT($B140,3)<>\"NOX\"),CB55*INDEX('Damage costs'!$U$16:$U$43,MATCH($B140,'Damage costs'!$C$16:$C$43,0))/1000,CB55*INDEX('Damage costs'!$Y$16:$Y$43,MATCH($B140,'Damage costs'!$C$16:$C$43,0))/1000),\"\")","v":""},{"$f":"IFERROR(IF(OR($C$144=FALSE,LEFT($B140,3)<>\"NOX\"),CC55*INDEX('Damage costs'!$U$16:$U$43,MATCH($B140,'Damage costs'!$C$16:$C$43,0))/1000,CC55*INDEX('Damage costs'!$Y$16:$Y$43,MATCH($B140,'Damage costs'!$C$16:$C$43,0))/1000),\"\")","v":""},{"$f":"IFERROR(IF(OR($C$144=FALSE,LEFT($B140,3)<>\"NOX\"),CD55*INDEX('Damage costs'!$U$16:$U$43,MATCH($B140,'Damage costs'!$C$16:$C$43,0))/1000,CD55*INDEX('Damage costs'!$Y$16:$Y$43,MATCH($B140,'Damage costs'!$C$16:$C$43,0))/1000),\"\")","v":""},{"$f":"IFERROR(IF(OR($C$144=FALSE,LEFT($B140,3)<>\"NOX\"),CE55*INDEX('Damage costs'!$U$16:$U$43,MATCH($B140,'Damage costs'!$C$16:$C$43,0))/1000,CE55*INDEX('Damage costs'!$Y$16:$Y$43,MATCH($B140,'Damage costs'!$C$16:$C$43,0))/1000),\"\")","v":""},{"$f":"IFERROR(IF(OR($C$144=FALSE,LEFT($B140,3)<>\"NOX\"),CF55*INDEX('Damage costs'!$U$16:$U$43,MATCH($B140,'Damage costs'!$C$16:$C$43,0))/1000,CF55*INDEX('Damage costs'!$Y$16:$Y$43,MATCH($B140,'Damage costs'!$C$16:$C$43,0))/1000),\"\")","v":""},{"$f":"IFERROR(IF(OR($C$144=FALSE,LEFT($B140,3)<>\"NOX\"),CG55*INDEX('Damage costs'!$U$16:$U$43,MATCH($B140,'Damage costs'!$C$16:$C$43,0))/1000,CG55*INDEX('Damage costs'!$Y$16:$Y$43,MATCH($B140,'Damage costs'!$C$16:$C$43,0))/1000),\"\")","v":""},{"$f":"IFERROR(IF(OR($C$144=FALSE,LEFT($B140,3)<>\"NOX\"),CH55*INDEX('Damage costs'!$U$16:$U$43,MATCH($B140,'Damage costs'!$C$16:$C$43,0))/1000,CH55*INDEX('Damage costs'!$Y$16:$Y$43,MATCH($B140,'Damage costs'!$C$16:$C$43,0))/1000),\"\")","v":""},{"$f":"IFERROR(IF(OR($C$144=FALSE,LEFT($B140,3)<>\"NOX\"),CI55*INDEX('Damage costs'!$U$16:$U$43,MATCH($B140,'Damage costs'!$C$16:$C$43,0))/1000,CI55*INDEX('Damage costs'!$Y$16:$Y$43,MATCH($B140,'Damage costs'!$C$16:$C$43,0))/1000),\"\")","v":""},{"$f":"IFERROR(IF(OR($C$144=FALSE,LEFT($B140,3)<>\"NOX\"),CJ55*INDEX('Damage costs'!$U$16:$U$43,MATCH($B140,'Damage costs'!$C$16:$C$43,0))/1000,CJ55*INDEX('Damage costs'!$Y$16:$Y$43,MATCH($B140,'Damage costs'!$C$16:$C$43,0))/1000),\"\")","v":""},{"$f":"IFERROR(IF(OR($C$144=FALSE,LEFT($B140,3)<>\"NOX\"),CK55*INDEX('Damage costs'!$U$16:$U$43,MATCH($B140,'Damage costs'!$C$16:$C$43,0))/1000,CK55*INDEX('Damage costs'!$Y$16:$Y$43,MATCH($B140,'Damage costs'!$C$16:$C$43,0))/1000),\"\")","v":""},{"$f":"IFERROR(IF(OR($C$144=FALSE,LEFT($B140,3)<>\"NOX\"),CL55*INDEX('Damage costs'!$U$16:$U$43,MATCH($B140,'Damage costs'!$C$16:$C$43,0))/1000,CL55*INDEX('Damage costs'!$Y$16:$Y$43,MATCH($B140,'Damage costs'!$C$16:$C$43,0))/1000),\"\")","v":""},{"$f":"IFERROR(IF(OR($C$144=FALSE,LEFT($B140,3)<>\"NOX\"),CM55*INDEX('Damage costs'!$U$16:$U$43,MATCH($B140,'Damage costs'!$C$16:$C$43,0))/1000,CM55*INDEX('Damage costs'!$Y$16:$Y$43,MATCH($B140,'Damage costs'!$C$16:$C$43,0))/1000),\"\")","v":""},{"$f":"IFERROR(IF(OR($C$144=FALSE,LEFT($B140,3)<>\"NOX\"),CN55*INDEX('Damage costs'!$U$16:$U$43,MATCH($B140,'Damage costs'!$C$16:$C$43,0))/1000,CN55*INDEX('Damage costs'!$Y$16:$Y$43,MATCH($B140,'Damage costs'!$C$16:$C$43,0))/1000),\"\")","v":""},{"$f":"IFERROR(IF(OR($C$144=FALSE,LEFT($B140,3)<>\"NOX\"),CO55*INDEX('Damage costs'!$U$16:$U$43,MATCH($B140,'Damage costs'!$C$16:$C$43,0))/1000,CO55*INDEX('Damage costs'!$Y$16:$Y$43,MATCH($B140,'Damage costs'!$C$16:$C$43,0))/1000),\"\")","v":""},{"$f":"IFERROR(IF(OR($C$144=FALSE,LEFT($B140,3)<>\"NOX\"),CP55*INDEX('Damage costs'!$U$16:$U$43,MATCH($B140,'Damage costs'!$C$16:$C$43,0))/1000,CP55*INDEX('Damage costs'!$Y$16:$Y$43,MATCH($B140,'Damage costs'!$C$16:$C$43,0))/1000),\"\")","v":""},{"$f":"IFERROR(IF(OR($C$144=FALSE,LEFT($B140,3)<>\"NOX\"),CQ55*INDEX('Damage costs'!$U$16:$U$43,MATCH($B140,'Damage costs'!$C$16:$C$43,0))/1000,CQ55*INDEX('Damage costs'!$Y$16:$Y$43,MATCH($B140,'Damage costs'!$C$16:$C$43,0))/1000),\"\")","v":""},{"$f":"IFERROR(IF(OR($C$144=FALSE,LEFT($B140,3)<>\"NOX\"),CR55*INDEX('Damage costs'!$U$16:$U$43,MATCH($B140,'Damage costs'!$C$16:$C$43,0))/1000,CR55*INDEX('Damage costs'!$Y$16:$Y$43,MATCH($B140,'Damage costs'!$C$16:$C$43,0))/1000),\"\")","v":""},{"$f":"IFERROR(IF(OR($C$144=FALSE,LEFT($B140,3)<>\"NOX\"),CS55*INDEX('Damage costs'!$U$16:$U$43,MATCH($B140,'Damage costs'!$C$16:$C$43,0))/1000,CS55*INDEX('Damage costs'!$Y$16:$Y$43,MATCH($B140,'Damage costs'!$C$16:$C$43,0))/1000),\"\")","v":""},{"$f":"IFERROR(IF(OR($C$144=FALSE,LEFT($B140,3)<>\"NOX\"),CT55*INDEX('Damage costs'!$U$16:$U$43,MATCH($B140,'Damage costs'!$C$16:$C$43,0))/1000,CT55*INDEX('Damage costs'!$Y$16:$Y$43,MATCH($B140,'Damage costs'!$C$16:$C$43,0))/1000),\"\")","v":""},{"$f":"IFERROR(IF(OR($C$144=FALSE,LEFT($B140,3)<>\"NOX\"),CU55*INDEX('Damage costs'!$U$16:$U$43,MATCH($B140,'Damage costs'!$C$16:$C$43,0))/1000,CU55*INDEX('Damage costs'!$Y$16:$Y$43,MATCH($B140,'Damage costs'!$C$16:$C$43,0))/1000),\"\")","v":""},{"$f":"IFERROR(IF(OR($C$144=FALSE,LEFT($B140,3)<>\"NOX\"),CV55*INDEX('Damage costs'!$U$16:$U$43,MATCH($B140,'Damage costs'!$C$16:$C$43,0))/1000,CV55*INDEX('Damage costs'!$Y$16:$Y$43,MATCH($B140,'Damage costs'!$C$16:$C$43,0))/1000),\"\")","v":""},{"$f":"IFERROR(IF(OR($C$144=FALSE,LEFT($B140,3)<>\"NOX\"),CW55*INDEX('Damage costs'!$U$16:$U$43,MATCH($B140,'Damage costs'!$C$16:$C$43,0))/1000,CW55*INDEX('Damage costs'!$Y$16:$Y$43,MATCH($B140,'Damage costs'!$C$16:$C$43,0))/1000),\"\")","v":""},{"$f":"IFERROR(IF(OR($C$144=FALSE,LEFT($B140,3)<>\"NOX\"),CX55*INDEX('Damage costs'!$U$16:$U$43,MATCH($B140,'Damage costs'!$C$16:$C$43,0))/1000,CX55*INDEX('Damage costs'!$Y$16:$Y$43,MATCH($B140,'Damage costs'!$C$16:$C$43,0))/1000),\"\")","v":""},{"$f":"IFERROR(IF(OR($C$144=FALSE,LEFT($B140,3)<>\"NOX\"),CY55*INDEX('Damage costs'!$U$16:$U$43,MATCH($B140,'Damage costs'!$C$16:$C$43,0))/1000,CY55*INDEX('Damage costs'!$Y$16:$Y$43,MATCH($B140,'Damage costs'!$C$16:$C$43,0))/1000),\"\")","v":""}]
[null,0,"£000's",{"$f":"IFERROR(IF(OR($C$144=FALSE,LEFT($B141,3)<>\"NOX\"),D56*INDEX('Damage costs'!$U$16:$U$43,MATCH($B141,'Damage costs'!$C$16:$C$43,0))/1000,D56*INDEX('Damage costs'!$Y$16:$Y$43,MATCH($B141,'Damage costs'!$C$16:$C$43,0))/1000),\"\")","v":""},{"$f":"IFERROR(IF(OR($C$144=FALSE,LEFT($B141,3)<>\"NOX\"),E56*INDEX('Damage costs'!$U$16:$U$43,MATCH($B141,'Damage costs'!$C$16:$C$43,0))/1000,E56*INDEX('Damage costs'!$Y$16:$Y$43,MATCH($B141,'Damage costs'!$C$16:$C$43,0))/1000),\"\")","v":""},{"$f":"IFERROR(IF(OR($C$144=FALSE,LEFT($B141,3)<>\"NOX\"),F56*INDEX('Damage costs'!$U$16:$U$43,MATCH($B141,'Damage costs'!$C$16:$C$43,0))/1000,F56*INDEX('Damage costs'!$Y$16:$Y$43,MATCH($B141,'Damage costs'!$C$16:$C$43,0))/1000),\"\")","v":""},{"$f":"IFERROR(IF(OR($C$144=FALSE,LEFT($B141,3)<>\"NOX\"),G56*INDEX('Damage costs'!$U$16:$U$43,MATCH($B141,'Damage costs'!$C$16:$C$43,0))/1000,G56*INDEX('Damage costs'!$Y$16:$Y$43,MATCH($B141,'Damage costs'!$C$16:$C$43,0))/1000),\"\")","v":""},{"$f":"IFERROR(IF(OR($C$144=FALSE,LEFT($B141,3)<>\"NOX\"),H56*INDEX('Damage costs'!$U$16:$U$43,MATCH($B141,'Damage costs'!$C$16:$C$43,0))/1000,H56*INDEX('Damage costs'!$Y$16:$Y$43,MATCH($B141,'Damage costs'!$C$16:$C$43,0))/1000),\"\")","v":""},{"$f":"IFERROR(IF(OR($C$144=FALSE,LEFT($B141,3)<>\"NOX\"),I56*INDEX('Damage costs'!$U$16:$U$43,MATCH($B141,'Damage costs'!$C$16:$C$43,0))/1000,I56*INDEX('Damage costs'!$Y$16:$Y$43,MATCH($B141,'Damage costs'!$C$16:$C$43,0))/1000),\"\")","v":""},{"$f":"IFERROR(IF(OR($C$144=FALSE,LEFT($B141,3)<>\"NOX\"),J56*INDEX('Damage costs'!$U$16:$U$43,MATCH($B141,'Damage costs'!$C$16:$C$43,0))/1000,J56*INDEX('Damage costs'!$Y$16:$Y$43,MATCH($B141,'Damage costs'!$C$16:$C$43,0))/1000),\"\")","v":""},{"$f":"IFERROR(IF(OR($C$144=FALSE,LEFT($B141,3)<>\"NOX\"),K56*INDEX('Damage costs'!$U$16:$U$43,MATCH($B141,'Damage costs'!$C$16:$C$43,0))/1000,K56*INDEX('Damage costs'!$Y$16:$Y$43,MATCH($B141,'Damage costs'!$C$16:$C$43,0))/1000),\"\")","v":""},{"$f":"IFERROR(IF(OR($C$144=FALSE,LEFT($B141,3)<>\"NOX\"),L56*INDEX('Damage costs'!$U$16:$U$43,MATCH($B141,'Damage costs'!$C$16:$C$43,0))/1000,L56*INDEX('Damage costs'!$Y$16:$Y$43,MATCH($B141,'Damage costs'!$C$16:$C$43,0))/1000),\"\")","v":""},{"$f":"IFERROR(IF(OR($C$144=FALSE,LEFT($B141,3)<>\"NOX\"),M56*INDEX('Damage costs'!$U$16:$U$43,MATCH($B141,'Damage costs'!$C$16:$C$43,0))/1000,M56*INDEX('Damage costs'!$Y$16:$Y$43,MATCH($B141,'Damage costs'!$C$16:$C$43,0))/1000),\"\")","v":""},{"$f":"IFERROR(IF(OR($C$144=FALSE,LEFT($B141,3)<>\"NOX\"),N56*INDEX('Damage costs'!$U$16:$U$43,MATCH($B141,'Damage costs'!$C$16:$C$43,0))/1000,N56*INDEX('Damage costs'!$Y$16:$Y$43,MATCH($B141,'Damage costs'!$C$16:$C$43,0))/1000),\"\")","v":""},{"$f":"IFERROR(IF(OR($C$144=FALSE,LEFT($B141,3)<>\"NOX\"),O56*INDEX('Damage costs'!$U$16:$U$43,MATCH($B141,'Damage costs'!$C$16:$C$43,0))/1000,O56*INDEX('Damage costs'!$Y$16:$Y$43,MATCH($B141,'Damage costs'!$C$16:$C$43,0))/1000),\"\")","v":""},{"$f":"IFERROR(IF(OR($C$144=FALSE,LEFT($B141,3)<>\"NOX\"),P56*INDEX('Damage costs'!$U$16:$U$43,MATCH($B141,'Damage costs'!$C$16:$C$43,0))/1000,P56*INDEX('Damage costs'!$Y$16:$Y$43,MATCH($B141,'Damage costs'!$C$16:$C$43,0))/1000),\"\")","v":""},{"$f":"IFERROR(IF(OR($C$144=FALSE,LEFT($B141,3)<>\"NOX\"),Q56*INDEX('Damage costs'!$U$16:$U$43,MATCH($B141,'Damage costs'!$C$16:$C$43,0))/1000,Q56*INDEX('Damage costs'!$Y$16:$Y$43,MATCH($B141,'Damage costs'!$C$16:$C$43,0))/1000),\"\")","v":""},{"$f":"IFERROR(IF(OR($C$144=FALSE,LEFT($B141,3)<>\"NOX\"),R56*INDEX('Damage costs'!$U$16:$U$43,MATCH($B141,'Damage costs'!$C$16:$C$43,0))/1000,R56*INDEX('Damage costs'!$Y$16:$Y$43,MATCH($B141,'Damage costs'!$C$16:$C$43,0))/1000),\"\")","v":""},{"$f":"IFERROR(IF(OR($C$144=FALSE,LEFT($B141,3)<>\"NOX\"),S56*INDEX('Damage costs'!$U$16:$U$43,MATCH($B141,'Damage costs'!$C$16:$C$43,0))/1000,S56*INDEX('Damage costs'!$Y$16:$Y$43,MATCH($B141,'Damage costs'!$C$16:$C$43,0))/1000),\"\")","v":""},{"$f":"IFERROR(IF(OR($C$144=FALSE,LEFT($B141,3)<>\"NOX\"),T56*INDEX('Damage costs'!$U$16:$U$43,MATCH($B141,'Damage costs'!$C$16:$C$43,0))/1000,T56*INDEX('Damage costs'!$Y$16:$Y$43,MATCH($B141,'Damage costs'!$C$16:$C$43,0))/1000),\"\")","v":""},{"$f":"IFERROR(IF(OR($C$144=FALSE,LEFT($B141,3)<>\"NOX\"),U56*INDEX('Damage costs'!$U$16:$U$43,MATCH($B141,'Damage costs'!$C$16:$C$43,0))/1000,U56*INDEX('Damage costs'!$Y$16:$Y$43,MATCH($B141,'Damage costs'!$C$16:$C$43,0))/1000),\"\")","v":""},{"$f":"IFERROR(IF(OR($C$144=FALSE,LEFT($B141,3)<>\"NOX\"),V56*INDEX('Damage costs'!$U$16:$U$43,MATCH($B141,'Damage costs'!$C$16:$C$43,0))/1000,V56*INDEX('Damage costs'!$Y$16:$Y$43,MATCH($B141,'Damage costs'!$C$16:$C$43,0))/1000),\"\")","v":""},{"$f":"IFERROR(IF(OR($C$144=FALSE,LEFT($B141,3)<>\"NOX\"),W56*INDEX('Damage costs'!$U$16:$U$43,MATCH($B141,'Damage costs'!$C$16:$C$43,0))/1000,W56*INDEX('Damage costs'!$Y$16:$Y$43,MATCH($B141,'Damage costs'!$C$16:$C$43,0))/1000),\"\")","v":""},{"$f":"IFERROR(IF(OR($C$144=FALSE,LEFT($B141,3)<>\"NOX\"),X56*INDEX('Damage costs'!$U$16:$U$43,MATCH($B141,'Damage costs'!$C$16:$C$43,0))/1000,X56*INDEX('Damage costs'!$Y$16:$Y$43,MATCH($B141,'Damage costs'!$C$16:$C$43,0))/1000),\"\")","v":""},{"$f":"IFERROR(IF(OR($C$144=FALSE,LEFT($B141,3)<>\"NOX\"),Y56*INDEX('Damage costs'!$U$16:$U$43,MATCH($B141,'Damage costs'!$C$16:$C$43,0))/1000,Y56*INDEX('Damage costs'!$Y$16:$Y$43,MATCH($B141,'Damage costs'!$C$16:$C$43,0))/1000),\"\")","v":""},{"$f":"IFERROR(IF(OR($C$144=FALSE,LEFT($B141,3)<>\"NOX\"),Z56*INDEX('Damage costs'!$U$16:$U$43,MATCH($B141,'Damage costs'!$C$16:$C$43,0))/1000,Z56*INDEX('Damage costs'!$Y$16:$Y$43,MATCH($B141,'Damage costs'!$C$16:$C$43,0))/1000),\"\")","v":""},{"$f":"IFERROR(IF(OR($C$144=FALSE,LEFT($B141,3)<>\"NOX\"),AA56*INDEX('Damage costs'!$U$16:$U$43,MATCH($B141,'Damage costs'!$C$16:$C$43,0))/1000,AA56*INDEX('Damage costs'!$Y$16:$Y$43,MATCH($B141,'Damage costs'!$C$16:$C$43,0))/1000),\"\")","v":""},{"$f":"IFERROR(IF(OR($C$144=FALSE,LEFT($B141,3)<>\"NOX\"),AB56*INDEX('Damage costs'!$U$16:$U$43,MATCH($B141,'Damage costs'!$C$16:$C$43,0))/1000,AB56*INDEX('Damage costs'!$Y$16:$Y$43,MATCH($B141,'Damage costs'!$C$16:$C$43,0))/1000),\"\")","v":""},{"$f":"IFERROR(IF(OR($C$144=FALSE,LEFT($B141,3)<>\"NOX\"),AC56*INDEX('Damage costs'!$U$16:$U$43,MATCH($B141,'Damage costs'!$C$16:$C$43,0))/1000,AC56*INDEX('Damage costs'!$Y$16:$Y$43,MATCH($B141,'Damage costs'!$C$16:$C$43,0))/1000),\"\")","v":""},{"$f":"IFERROR(IF(OR($C$144=FALSE,LEFT($B141,3)<>\"NOX\"),AD56*INDEX('Damage costs'!$U$16:$U$43,MATCH($B141,'Damage costs'!$C$16:$C$43,0))/1000,AD56*INDEX('Damage costs'!$Y$16:$Y$43,MATCH($B141,'Damage costs'!$C$16:$C$43,0))/1000),\"\")","v":""},{"$f":"IFERROR(IF(OR($C$144=FALSE,LEFT($B141,3)<>\"NOX\"),AE56*INDEX('Damage costs'!$U$16:$U$43,MATCH($B141,'Damage costs'!$C$16:$C$43,0))/1000,AE56*INDEX('Damage costs'!$Y$16:$Y$43,MATCH($B141,'Damage costs'!$C$16:$C$43,0))/1000),\"\")","v":""},{"$f":"IFERROR(IF(OR($C$144=FALSE,LEFT($B141,3)<>\"NOX\"),AF56*INDEX('Damage costs'!$U$16:$U$43,MATCH($B141,'Damage costs'!$C$16:$C$43,0))/1000,AF56*INDEX('Damage costs'!$Y$16:$Y$43,MATCH($B141,'Damage costs'!$C$16:$C$43,0))/1000),\"\")","v":""},{"$f":"IFERROR(IF(OR($C$144=FALSE,LEFT($B141,3)<>\"NOX\"),AG56*INDEX('Damage costs'!$U$16:$U$43,MATCH($B141,'Damage costs'!$C$16:$C$43,0))/1000,AG56*INDEX('Damage costs'!$Y$16:$Y$43,MATCH($B141,'Damage costs'!$C$16:$C$43,0))/1000),\"\")","v":""},{"$f":"IFERROR(IF(OR($C$144=FALSE,LEFT($B141,3)<>\"NOX\"),AH56*INDEX('Damage costs'!$U$16:$U$43,MATCH($B141,'Damage costs'!$C$16:$C$43,0))/1000,AH56*INDEX('Damage costs'!$Y$16:$Y$43,MATCH($B141,'Damage costs'!$C$16:$C$43,0))/1000),\"\")","v":""},{"$f":"IFERROR(IF(OR($C$144=FALSE,LEFT($B141,3)<>\"NOX\"),AI56*INDEX('Damage costs'!$U$16:$U$43,MATCH($B141,'Damage costs'!$C$16:$C$43,0))/1000,AI56*INDEX('Damage costs'!$Y$16:$Y$43,MATCH($B141,'Damage costs'!$C$16:$C$43,0))/1000),\"\")","v":""},{"$f":"IFERROR(IF(OR($C$144=FALSE,LEFT($B141,3)<>\"NOX\"),AJ56*INDEX('Damage costs'!$U$16:$U$43,MATCH($B141,'Damage costs'!$C$16:$C$43,0))/1000,AJ56*INDEX('Damage costs'!$Y$16:$Y$43,MATCH($B141,'Damage costs'!$C$16:$C$43,0))/1000),\"\")","v":""},{"$f":"IFERROR(IF(OR($C$144=FALSE,LEFT($B141,3)<>\"NOX\"),AK56*INDEX('Damage costs'!$U$16:$U$43,MATCH($B141,'Damage costs'!$C$16:$C$43,0))/1000,AK56*INDEX('Damage costs'!$Y$16:$Y$43,MATCH($B141,'Damage costs'!$C$16:$C$43,0))/1000),\"\")","v":""},{"$f":"IFERROR(IF(OR($C$144=FALSE,LEFT($B141,3)<>\"NOX\"),AL56*INDEX('Damage costs'!$U$16:$U$43,MATCH($B141,'Damage costs'!$C$16:$C$43,0))/1000,AL56*INDEX('Damage costs'!$Y$16:$Y$43,MATCH($B141,'Damage costs'!$C$16:$C$43,0))/1000),\"\")","v":""},{"$f":"IFERROR(IF(OR($C$144=FALSE,LEFT($B141,3)<>\"NOX\"),AM56*INDEX('Damage costs'!$U$16:$U$43,MATCH($B141,'Damage costs'!$C$16:$C$43,0))/1000,AM56*INDEX('Damage costs'!$Y$16:$Y$43,MATCH($B141,'Damage costs'!$C$16:$C$43,0))/1000),\"\")","v":""},{"$f":"IFERROR(IF(OR($C$144=FALSE,LEFT($B141,3)<>\"NOX\"),AN56*INDEX('Damage costs'!$U$16:$U$43,MATCH($B141,'Damage costs'!$C$16:$C$43,0))/1000,AN56*INDEX('Damage costs'!$Y$16:$Y$43,MATCH($B141,'Damage costs'!$C$16:$C$43,0))/1000),\"\")","v":""},{"$f":"IFERROR(IF(OR($C$144=FALSE,LEFT($B141,3)<>\"NOX\"),AO56*INDEX('Damage costs'!$U$16:$U$43,MATCH($B141,'Damage costs'!$C$16:$C$43,0))/1000,AO56*INDEX('Damage costs'!$Y$16:$Y$43,MATCH($B141,'Damage costs'!$C$16:$C$43,0))/1000),\"\")","v":""},{"$f":"IFERROR(IF(OR($C$144=FALSE,LEFT($B141,3)<>\"NOX\"),AP56*INDEX('Damage costs'!$U$16:$U$43,MATCH($B141,'Damage costs'!$C$16:$C$43,0))/1000,AP56*INDEX('Damage costs'!$Y$16:$Y$43,MATCH($B141,'Damage costs'!$C$16:$C$43,0))/1000),\"\")","v":""},{"$f":"IFERROR(IF(OR($C$144=FALSE,LEFT($B141,3)<>\"NOX\"),AQ56*INDEX('Damage costs'!$U$16:$U$43,MATCH($B141,'Damage costs'!$C$16:$C$43,0))/1000,AQ56*INDEX('Damage costs'!$Y$16:$Y$43,MATCH($B141,'Damage costs'!$C$16:$C$43,0))/1000),\"\")","v":""},{"$f":"IFERROR(IF(OR($C$144=FALSE,LEFT($B141,3)<>\"NOX\"),AR56*INDEX('Damage costs'!$U$16:$U$43,MATCH($B141,'Damage costs'!$C$16:$C$43,0))/1000,AR56*INDEX('Damage costs'!$Y$16:$Y$43,MATCH($B141,'Damage costs'!$C$16:$C$43,0))/1000),\"\")","v":""},{"$f":"IFERROR(IF(OR($C$144=FALSE,LEFT($B141,3)<>\"NOX\"),AS56*INDEX('Damage costs'!$U$16:$U$43,MATCH($B141,'Damage costs'!$C$16:$C$43,0))/1000,AS56*INDEX('Damage costs'!$Y$16:$Y$43,MATCH($B141,'Damage costs'!$C$16:$C$43,0))/1000),\"\")","v":""},{"$f":"IFERROR(IF(OR($C$144=FALSE,LEFT($B141,3)<>\"NOX\"),AT56*INDEX('Damage costs'!$U$16:$U$43,MATCH($B141,'Damage costs'!$C$16:$C$43,0))/1000,AT56*INDEX('Damage costs'!$Y$16:$Y$43,MATCH($B141,'Damage costs'!$C$16:$C$43,0))/1000),\"\")","v":""},{"$f":"IFERROR(IF(OR($C$144=FALSE,LEFT($B141,3)<>\"NOX\"),AU56*INDEX('Damage costs'!$U$16:$U$43,MATCH($B141,'Damage costs'!$C$16:$C$43,0))/1000,AU56*INDEX('Damage costs'!$Y$16:$Y$43,MATCH($B141,'Damage costs'!$C$16:$C$43,0))/1000),\"\")","v":""},{"$f":"IFERROR(IF(OR($C$144=FALSE,LEFT($B141,3)<>\"NOX\"),AV56*INDEX('Damage costs'!$U$16:$U$43,MATCH($B141,'Damage costs'!$C$16:$C$43,0))/1000,AV56*INDEX('Damage costs'!$Y$16:$Y$43,MATCH($B141,'Damage costs'!$C$16:$C$43,0))/1000),\"\")","v":""},{"$f":"IFERROR(IF(OR($C$144=FALSE,LEFT($B141,3)<>\"NOX\"),AW56*INDEX('Damage costs'!$U$16:$U$43,MATCH($B141,'Damage costs'!$C$16:$C$43,0))/1000,AW56*INDEX('Damage costs'!$Y$16:$Y$43,MATCH($B141,'Damage costs'!$C$16:$C$43,0))/1000),\"\")","v":""},{"$f":"IFERROR(IF(OR($C$144=FALSE,LEFT($B141,3)<>\"NOX\"),AX56*INDEX('Damage costs'!$U$16:$U$43,MATCH($B141,'Damage costs'!$C$16:$C$43,0))/1000,AX56*INDEX('Damage costs'!$Y$16:$Y$43,MATCH($B141,'Damage costs'!$C$16:$C$43,0))/1000),\"\")","v":""},{"$f":"IFERROR(IF(OR($C$144=FALSE,LEFT($B141,3)<>\"NOX\"),AY56*INDEX('Damage costs'!$U$16:$U$43,MATCH($B141,'Damage costs'!$C$16:$C$43,0))/1000,AY56*INDEX('Damage costs'!$Y$16:$Y$43,MATCH($B141,'Damage costs'!$C$16:$C$43,0))/1000),\"\")","v":""},{"$f":"IFERROR(IF(OR($C$144=FALSE,LEFT($B141,3)<>\"NOX\"),AZ56*INDEX('Damage costs'!$U$16:$U$43,MATCH($B141,'Damage costs'!$C$16:$C$43,0))/1000,AZ56*INDEX('Damage costs'!$Y$16:$Y$43,MATCH($B141,'Damage costs'!$C$16:$C$43,0))/1000),\"\")","v":""},{"$f":"IFERROR(IF(OR($C$144=FALSE,LEFT($B141,3)<>\"NOX\"),BA56*INDEX('Damage costs'!$U$16:$U$43,MATCH($B141,'Damage costs'!$C$16:$C$43,0))/1000,BA56*INDEX('Damage costs'!$Y$16:$Y$43,MATCH($B141,'Damage costs'!$C$16:$C$43,0))/1000),\"\")","v":""},{"$f":"IFERROR(IF(OR($C$144=FALSE,LEFT($B141,3)<>\"NOX\"),BB56*INDEX('Damage costs'!$U$16:$U$43,MATCH($B141,'Damage costs'!$C$16:$C$43,0))/1000,BB56*INDEX('Damage costs'!$Y$16:$Y$43,MATCH($B141,'Damage costs'!$C$16:$C$43,0))/1000),\"\")","v":""},{"$f":"IFERROR(IF(OR($C$144=FALSE,LEFT($B141,3)<>\"NOX\"),BC56*INDEX('Damage costs'!$U$16:$U$43,MATCH($B141,'Damage costs'!$C$16:$C$43,0))/1000,BC56*INDEX('Damage costs'!$Y$16:$Y$43,MATCH($B141,'Damage costs'!$C$16:$C$43,0))/1000),\"\")","v":""},{"$f":"IFERROR(IF(OR($C$144=FALSE,LEFT($B141,3)<>\"NOX\"),BD56*INDEX('Damage costs'!$U$16:$U$43,MATCH($B141,'Damage costs'!$C$16:$C$43,0))/1000,BD56*INDEX('Damage costs'!$Y$16:$Y$43,MATCH($B141,'Damage costs'!$C$16:$C$43,0))/1000),\"\")","v":""},{"$f":"IFERROR(IF(OR($C$144=FALSE,LEFT($B141,3)<>\"NOX\"),BE56*INDEX('Damage costs'!$U$16:$U$43,MATCH($B141,'Damage costs'!$C$16:$C$43,0))/1000,BE56*INDEX('Damage costs'!$Y$16:$Y$43,MATCH($B141,'Damage costs'!$C$16:$C$43,0))/1000),\"\")","v":""},{"$f":"IFERROR(IF(OR($C$144=FALSE,LEFT($B141,3)<>\"NOX\"),BF56*INDEX('Damage costs'!$U$16:$U$43,MATCH($B141,'Damage costs'!$C$16:$C$43,0))/1000,BF56*INDEX('Damage costs'!$Y$16:$Y$43,MATCH($B141,'Damage costs'!$C$16:$C$43,0))/1000),\"\")","v":""},{"$f":"IFERROR(IF(OR($C$144=FALSE,LEFT($B141,3)<>\"NOX\"),BG56*INDEX('Damage costs'!$U$16:$U$43,MATCH($B141,'Damage costs'!$C$16:$C$43,0))/1000,BG56*INDEX('Damage costs'!$Y$16:$Y$43,MATCH($B141,'Damage costs'!$C$16:$C$43,0))/1000),\"\")","v":""},{"$f":"IFERROR(IF(OR($C$144=FALSE,LEFT($B141,3)<>\"NOX\"),BH56*INDEX('Damage costs'!$U$16:$U$43,MATCH($B141,'Damage costs'!$C$16:$C$43,0))/1000,BH56*INDEX('Damage costs'!$Y$16:$Y$43,MATCH($B141,'Damage costs'!$C$16:$C$43,0))/1000),\"\")","v":""},{"$f":"IFERROR(IF(OR($C$144=FALSE,LEFT($B141,3)<>\"NOX\"),BI56*INDEX('Damage costs'!$U$16:$U$43,MATCH($B141,'Damage costs'!$C$16:$C$43,0))/1000,BI56*INDEX('Damage costs'!$Y$16:$Y$43,MATCH($B141,'Damage costs'!$C$16:$C$43,0))/1000),\"\")","v":""},{"$f":"IFERROR(IF(OR($C$144=FALSE,LEFT($B141,3)<>\"NOX\"),BJ56*INDEX('Damage costs'!$U$16:$U$43,MATCH($B141,'Damage costs'!$C$16:$C$43,0))/1000,BJ56*INDEX('Damage costs'!$Y$16:$Y$43,MATCH($B141,'Damage costs'!$C$16:$C$43,0))/1000),\"\")","v":""},{"$f":"IFERROR(IF(OR($C$144=FALSE,LEFT($B141,3)<>\"NOX\"),BK56*INDEX('Damage costs'!$U$16:$U$43,MATCH($B141,'Damage costs'!$C$16:$C$43,0))/1000,BK56*INDEX('Damage costs'!$Y$16:$Y$43,MATCH($B141,'Damage costs'!$C$16:$C$43,0))/1000),\"\")","v":""},{"$f":"IFERROR(IF(OR($C$144=FALSE,LEFT($B141,3)<>\"NOX\"),BL56*INDEX('Damage costs'!$U$16:$U$43,MATCH($B141,'Damage costs'!$C$16:$C$43,0))/1000,BL56*INDEX('Damage costs'!$Y$16:$Y$43,MATCH($B141,'Damage costs'!$C$16:$C$43,0))/1000),\"\")","v":""},{"$f":"IFERROR(IF(OR($C$144=FALSE,LEFT($B141,3)<>\"NOX\"),BM56*INDEX('Damage costs'!$U$16:$U$43,MATCH($B141,'Damage costs'!$C$16:$C$43,0))/1000,BM56*INDEX('Damage costs'!$Y$16:$Y$43,MATCH($B141,'Damage costs'!$C$16:$C$43,0))/1000),\"\")","v":""},{"$f":"IFERROR(IF(OR($C$144=FALSE,LEFT($B141,3)<>\"NOX\"),BN56*INDEX('Damage costs'!$U$16:$U$43,MATCH($B141,'Damage costs'!$C$16:$C$43,0))/1000,BN56*INDEX('Damage costs'!$Y$16:$Y$43,MATCH($B141,'Damage costs'!$C$16:$C$43,0))/1000),\"\")","v":""},{"$f":"IFERROR(IF(OR($C$144=FALSE,LEFT($B141,3)<>\"NOX\"),BO56*INDEX('Damage costs'!$U$16:$U$43,MATCH($B141,'Damage costs'!$C$16:$C$43,0))/1000,BO56*INDEX('Damage costs'!$Y$16:$Y$43,MATCH($B141,'Damage costs'!$C$16:$C$43,0))/1000),\"\")","v":""},{"$f":"IFERROR(IF(OR($C$144=FALSE,LEFT($B141,3)<>\"NOX\"),BP56*INDEX('Damage costs'!$U$16:$U$43,MATCH($B141,'Damage costs'!$C$16:$C$43,0))/1000,BP56*INDEX('Damage costs'!$Y$16:$Y$43,MATCH($B141,'Damage costs'!$C$16:$C$43,0))/1000),\"\")","v":""},{"$f":"IFERROR(IF(OR($C$144=FALSE,LEFT($B141,3)<>\"NOX\"),BQ56*INDEX('Damage costs'!$U$16:$U$43,MATCH($B141,'Damage costs'!$C$16:$C$43,0))/1000,BQ56*INDEX('Damage costs'!$Y$16:$Y$43,MATCH($B141,'Damage costs'!$C$16:$C$43,0))/1000),\"\")","v":""},{"$f":"IFERROR(IF(OR($C$144=FALSE,LEFT($B141,3)<>\"NOX\"),BR56*INDEX('Damage costs'!$U$16:$U$43,MATCH($B141,'Damage costs'!$C$16:$C$43,0))/1000,BR56*INDEX('Damage costs'!$Y$16:$Y$43,MATCH($B141,'Damage costs'!$C$16:$C$43,0))/1000),\"\")","v":""},{"$f":"IFERROR(IF(OR($C$144=FALSE,LEFT($B141,3)<>\"NOX\"),BS56*INDEX('Damage costs'!$U$16:$U$43,MATCH($B141,'Damage costs'!$C$16:$C$43,0))/1000,BS56*INDEX('Damage costs'!$Y$16:$Y$43,MATCH($B141,'Damage costs'!$C$16:$C$43,0))/1000),\"\")","v":""},{"$f":"IFERROR(IF(OR($C$144=FALSE,LEFT($B141,3)<>\"NOX\"),BT56*INDEX('Damage costs'!$U$16:$U$43,MATCH($B141,'Damage costs'!$C$16:$C$43,0))/1000,BT56*INDEX('Damage costs'!$Y$16:$Y$43,MATCH($B141,'Damage costs'!$C$16:$C$43,0))/1000),\"\")","v":""},{"$f":"IFERROR(IF(OR($C$144=FALSE,LEFT($B141,3)<>\"NOX\"),BU56*INDEX('Damage costs'!$U$16:$U$43,MATCH($B141,'Damage costs'!$C$16:$C$43,0))/1000,BU56*INDEX('Damage costs'!$Y$16:$Y$43,MATCH($B141,'Damage costs'!$C$16:$C$43,0))/1000),\"\")","v":""},{"$f":"IFERROR(IF(OR($C$144=FALSE,LEFT($B141,3)<>\"NOX\"),BV56*INDEX('Damage costs'!$U$16:$U$43,MATCH($B141,'Damage costs'!$C$16:$C$43,0))/1000,BV56*INDEX('Damage costs'!$Y$16:$Y$43,MATCH($B141,'Damage costs'!$C$16:$C$43,0))/1000),\"\")","v":""},{"$f":"IFERROR(IF(OR($C$144=FALSE,LEFT($B141,3)<>\"NOX\"),BW56*INDEX('Damage costs'!$U$16:$U$43,MATCH($B141,'Damage costs'!$C$16:$C$43,0))/1000,BW56*INDEX('Damage costs'!$Y$16:$Y$43,MATCH($B141,'Damage costs'!$C$16:$C$43,0))/1000),\"\")","v":""},{"$f":"IFERROR(IF(OR($C$144=FALSE,LEFT($B141,3)<>\"NOX\"),BX56*INDEX('Damage costs'!$U$16:$U$43,MATCH($B141,'Damage costs'!$C$16:$C$43,0))/1000,BX56*INDEX('Damage costs'!$Y$16:$Y$43,MATCH($B141,'Damage costs'!$C$16:$C$43,0))/1000),\"\")","v":""},{"$f":"IFERROR(IF(OR($C$144=FALSE,LEFT($B141,3)<>\"NOX\"),BY56*INDEX('Damage costs'!$U$16:$U$43,MATCH($B141,'Damage costs'!$C$16:$C$43,0))/1000,BY56*INDEX('Damage costs'!$Y$16:$Y$43,MATCH($B141,'Damage costs'!$C$16:$C$43,0))/1000),\"\")","v":""},{"$f":"IFERROR(IF(OR($C$144=FALSE,LEFT($B141,3)<>\"NOX\"),BZ56*INDEX('Damage costs'!$U$16:$U$43,MATCH($B141,'Damage costs'!$C$16:$C$43,0))/1000,BZ56*INDEX('Damage costs'!$Y$16:$Y$43,MATCH($B141,'Damage costs'!$C$16:$C$43,0))/1000),\"\")","v":""},{"$f":"IFERROR(IF(OR($C$144=FALSE,LEFT($B141,3)<>\"NOX\"),CA56*INDEX('Damage costs'!$U$16:$U$43,MATCH($B141,'Damage costs'!$C$16:$C$43,0))/1000,CA56*INDEX('Damage costs'!$Y$16:$Y$43,MATCH($B141,'Damage costs'!$C$16:$C$43,0))/1000),\"\")","v":""},{"$f":"IFERROR(IF(OR($C$144=FALSE,LEFT($B141,3)<>\"NOX\"),CB56*INDEX('Damage costs'!$U$16:$U$43,MATCH($B141,'Damage costs'!$C$16:$C$43,0))/1000,CB56*INDEX('Damage costs'!$Y$16:$Y$43,MATCH($B141,'Damage costs'!$C$16:$C$43,0))/1000),\"\")","v":""},{"$f":"IFERROR(IF(OR($C$144=FALSE,LEFT($B141,3)<>\"NOX\"),CC56*INDEX('Damage costs'!$U$16:$U$43,MATCH($B141,'Damage costs'!$C$16:$C$43,0))/1000,CC56*INDEX('Damage costs'!$Y$16:$Y$43,MATCH($B141,'Damage costs'!$C$16:$C$43,0))/1000),\"\")","v":""},{"$f":"IFERROR(IF(OR($C$144=FALSE,LEFT($B141,3)<>\"NOX\"),CD56*INDEX('Damage costs'!$U$16:$U$43,MATCH($B141,'Damage costs'!$C$16:$C$43,0))/1000,CD56*INDEX('Damage costs'!$Y$16:$Y$43,MATCH($B141,'Damage costs'!$C$16:$C$43,0))/1000),\"\")","v":""},{"$f":"IFERROR(IF(OR($C$144=FALSE,LEFT($B141,3)<>\"NOX\"),CE56*INDEX('Damage costs'!$U$16:$U$43,MATCH($B141,'Damage costs'!$C$16:$C$43,0))/1000,CE56*INDEX('Damage costs'!$Y$16:$Y$43,MATCH($B141,'Damage costs'!$C$16:$C$43,0))/1000),\"\")","v":""},{"$f":"IFERROR(IF(OR($C$144=FALSE,LEFT($B141,3)<>\"NOX\"),CF56*INDEX('Damage costs'!$U$16:$U$43,MATCH($B141,'Damage costs'!$C$16:$C$43,0))/1000,CF56*INDEX('Damage costs'!$Y$16:$Y$43,MATCH($B141,'Damage costs'!$C$16:$C$43,0))/1000),\"\")","v":""},{"$f":"IFERROR(IF(OR($C$144=FALSE,LEFT($B141,3)<>\"NOX\"),CG56*INDEX('Damage costs'!$U$16:$U$43,MATCH($B141,'Damage costs'!$C$16:$C$43,0))/1000,CG56*INDEX('Damage costs'!$Y$16:$Y$43,MATCH($B141,'Damage costs'!$C$16:$C$43,0))/1000),\"\")","v":""},{"$f":"IFERROR(IF(OR($C$144=FALSE,LEFT($B141,3)<>\"NOX\"),CH56*INDEX('Damage costs'!$U$16:$U$43,MATCH($B141,'Damage costs'!$C$16:$C$43,0))/1000,CH56*INDEX('Damage costs'!$Y$16:$Y$43,MATCH($B141,'Damage costs'!$C$16:$C$43,0))/1000),\"\")","v":""},{"$f":"IFERROR(IF(OR($C$144=FALSE,LEFT($B141,3)<>\"NOX\"),CI56*INDEX('Damage costs'!$U$16:$U$43,MATCH($B141,'Damage costs'!$C$16:$C$43,0))/1000,CI56*INDEX('Damage costs'!$Y$16:$Y$43,MATCH($B141,'Damage costs'!$C$16:$C$43,0))/1000),\"\")","v":""},{"$f":"IFERROR(IF(OR($C$144=FALSE,LEFT($B141,3)<>\"NOX\"),CJ56*INDEX('Damage costs'!$U$16:$U$43,MATCH($B141,'Damage costs'!$C$16:$C$43,0))/1000,CJ56*INDEX('Damage costs'!$Y$16:$Y$43,MATCH($B141,'Damage costs'!$C$16:$C$43,0))/1000),\"\")","v":""},{"$f":"IFERROR(IF(OR($C$144=FALSE,LEFT($B141,3)<>\"NOX\"),CK56*INDEX('Damage costs'!$U$16:$U$43,MATCH($B141,'Damage costs'!$C$16:$C$43,0))/1000,CK56*INDEX('Damage costs'!$Y$16:$Y$43,MATCH($B141,'Damage costs'!$C$16:$C$43,0))/1000),\"\")","v":""},{"$f":"IFERROR(IF(OR($C$144=FALSE,LEFT($B141,3)<>\"NOX\"),CL56*INDEX('Damage costs'!$U$16:$U$43,MATCH($B141,'Damage costs'!$C$16:$C$43,0))/1000,CL56*INDEX('Damage costs'!$Y$16:$Y$43,MATCH($B141,'Damage costs'!$C$16:$C$43,0))/1000),\"\")","v":""},{"$f":"IFERROR(IF(OR($C$144=FALSE,LEFT($B141,3)<>\"NOX\"),CM56*INDEX('Damage costs'!$U$16:$U$43,MATCH($B141,'Damage costs'!$C$16:$C$43,0))/1000,CM56*INDEX('Damage costs'!$Y$16:$Y$43,MATCH($B141,'Damage costs'!$C$16:$C$43,0))/1000),\"\")","v":""},{"$f":"IFERROR(IF(OR($C$144=FALSE,LEFT($B141,3)<>\"NOX\"),CN56*INDEX('Damage costs'!$U$16:$U$43,MATCH($B141,'Damage costs'!$C$16:$C$43,0))/1000,CN56*INDEX('Damage costs'!$Y$16:$Y$43,MATCH($B141,'Damage costs'!$C$16:$C$43,0))/1000),\"\")","v":""},{"$f":"IFERROR(IF(OR($C$144=FALSE,LEFT($B141,3)<>\"NOX\"),CO56*INDEX('Damage costs'!$U$16:$U$43,MATCH($B141,'Damage costs'!$C$16:$C$43,0))/1000,CO56*INDEX('Damage costs'!$Y$16:$Y$43,MATCH($B141,'Damage costs'!$C$16:$C$43,0))/1000),\"\")","v":""},{"$f":"IFERROR(IF(OR($C$144=FALSE,LEFT($B141,3)<>\"NOX\"),CP56*INDEX('Damage costs'!$U$16:$U$43,MATCH($B141,'Damage costs'!$C$16:$C$43,0))/1000,CP56*INDEX('Damage costs'!$Y$16:$Y$43,MATCH($B141,'Damage costs'!$C$16:$C$43,0))/1000),\"\")","v":""},{"$f":"IFERROR(IF(OR($C$144=FALSE,LEFT($B141,3)<>\"NOX\"),CQ56*INDEX('Damage costs'!$U$16:$U$43,MATCH($B141,'Damage costs'!$C$16:$C$43,0))/1000,CQ56*INDEX('Damage costs'!$Y$16:$Y$43,MATCH($B141,'Damage costs'!$C$16:$C$43,0))/1000),\"\")","v":""},{"$f":"IFERROR(IF(OR($C$144=FALSE,LEFT($B141,3)<>\"NOX\"),CR56*INDEX('Damage costs'!$U$16:$U$43,MATCH($B141,'Damage costs'!$C$16:$C$43,0))/1000,CR56*INDEX('Damage costs'!$Y$16:$Y$43,MATCH($B141,'Damage costs'!$C$16:$C$43,0))/1000),\"\")","v":""},{"$f":"IFERROR(IF(OR($C$144=FALSE,LEFT($B141,3)<>\"NOX\"),CS56*INDEX('Damage costs'!$U$16:$U$43,MATCH($B141,'Damage costs'!$C$16:$C$43,0))/1000,CS56*INDEX('Damage costs'!$Y$16:$Y$43,MATCH($B141,'Damage costs'!$C$16:$C$43,0))/1000),\"\")","v":""},{"$f":"IFERROR(IF(OR($C$144=FALSE,LEFT($B141,3)<>\"NOX\"),CT56*INDEX('Damage costs'!$U$16:$U$43,MATCH($B141,'Damage costs'!$C$16:$C$43,0))/1000,CT56*INDEX('Damage costs'!$Y$16:$Y$43,MATCH($B141,'Damage costs'!$C$16:$C$43,0))/1000),\"\")","v":""},{"$f":"IFERROR(IF(OR($C$144=FALSE,LEFT($B141,3)<>\"NOX\"),CU56*INDEX('Damage costs'!$U$16:$U$43,MATCH($B141,'Damage costs'!$C$16:$C$43,0))/1000,CU56*INDEX('Damage costs'!$Y$16:$Y$43,MATCH($B141,'Damage costs'!$C$16:$C$43,0))/1000),\"\")","v":""},{"$f":"IFERROR(IF(OR($C$144=FALSE,LEFT($B141,3)<>\"NOX\"),CV56*INDEX('Damage costs'!$U$16:$U$43,MATCH($B141,'Damage costs'!$C$16:$C$43,0))/1000,CV56*INDEX('Damage costs'!$Y$16:$Y$43,MATCH($B141,'Damage costs'!$C$16:$C$43,0))/1000),\"\")","v":""},{"$f":"IFERROR(IF(OR($C$144=FALSE,LEFT($B141,3)<>\"NOX\"),CW56*INDEX('Damage costs'!$U$16:$U$43,MATCH($B141,'Damage costs'!$C$16:$C$43,0))/1000,CW56*INDEX('Damage costs'!$Y$16:$Y$43,MATCH($B141,'Damage costs'!$C$16:$C$43,0))/1000),\"\")","v":""},{"$f":"IFERROR(IF(OR($C$144=FALSE,LEFT($B141,3)<>\"NOX\"),CX56*INDEX('Damage costs'!$U$16:$U$43,MATCH($B141,'Damage costs'!$C$16:$C$43,0))/1000,CX56*INDEX('Damage costs'!$Y$16:$Y$43,MATCH($B141,'Damage costs'!$C$16:$C$43,0))/1000),\"\")","v":""},{"$f":"IFERROR(IF(OR($C$144=FALSE,LEFT($B141,3)<>\"NOX\"),CY56*INDEX('Damage costs'!$U$16:$U$43,MATCH($B141,'Damage costs'!$C$16:$C$43,0))/1000,CY56*INDEX('Damage costs'!$Y$16:$Y$43,MATCH($B141,'Damage costs'!$C$16:$C$43,0))/1000),\"\")","v":""}]
[null,0,"£000's",{"$f":"IFERROR(IF(OR($C$144=FALSE,LEFT($B142,3)<>\"NOX\"),D57*INDEX('Damage costs'!$U$16:$U$43,MATCH($B142,'Damage costs'!$C$16:$C$43,0))/1000,D57*INDEX('Damage costs'!$Y$16:$Y$43,MATCH($B142,'Damage costs'!$C$16:$C$43,0))/1000),\"\")","v":""},{"$f":"IFERROR(IF(OR($C$144=FALSE,LEFT($B142,3)<>\"NOX\"),E57*INDEX('Damage costs'!$U$16:$U$43,MATCH($B142,'Damage costs'!$C$16:$C$43,0))/1000,E57*INDEX('Damage costs'!$Y$16:$Y$43,MATCH($B142,'Damage costs'!$C$16:$C$43,0))/1000),\"\")","v":""},{"$f":"IFERROR(IF(OR($C$144=FALSE,LEFT($B142,3)<>\"NOX\"),F57*INDEX('Damage costs'!$U$16:$U$43,MATCH($B142,'Damage costs'!$C$16:$C$43,0))/1000,F57*INDEX('Damage costs'!$Y$16:$Y$43,MATCH($B142,'Damage costs'!$C$16:$C$43,0))/1000),\"\")","v":""},{"$f":"IFERROR(IF(OR($C$144=FALSE,LEFT($B142,3)<>\"NOX\"),G57*INDEX('Damage costs'!$U$16:$U$43,MATCH($B142,'Damage costs'!$C$16:$C$43,0))/1000,G57*INDEX('Damage costs'!$Y$16:$Y$43,MATCH($B142,'Damage costs'!$C$16:$C$43,0))/1000),\"\")","v":""},{"$f":"IFERROR(IF(OR($C$144=FALSE,LEFT($B142,3)<>\"NOX\"),H57*INDEX('Damage costs'!$U$16:$U$43,MATCH($B142,'Damage costs'!$C$16:$C$43,0))/1000,H57*INDEX('Damage costs'!$Y$16:$Y$43,MATCH($B142,'Damage costs'!$C$16:$C$43,0))/1000),\"\")","v":""},{"$f":"IFERROR(IF(OR($C$144=FALSE,LEFT($B142,3)<>\"NOX\"),I57*INDEX('Damage costs'!$U$16:$U$43,MATCH($B142,'Damage costs'!$C$16:$C$43,0))/1000,I57*INDEX('Damage costs'!$Y$16:$Y$43,MATCH($B142,'Damage costs'!$C$16:$C$43,0))/1000),\"\")","v":""},{"$f":"IFERROR(IF(OR($C$144=FALSE,LEFT($B142,3)<>\"NOX\"),J57*INDEX('Damage costs'!$U$16:$U$43,MATCH($B142,'Damage costs'!$C$16:$C$43,0))/1000,J57*INDEX('Damage costs'!$Y$16:$Y$43,MATCH($B142,'Damage costs'!$C$16:$C$43,0))/1000),\"\")","v":""},{"$f":"IFERROR(IF(OR($C$144=FALSE,LEFT($B142,3)<>\"NOX\"),K57*INDEX('Damage costs'!$U$16:$U$43,MATCH($B142,'Damage costs'!$C$16:$C$43,0))/1000,K57*INDEX('Damage costs'!$Y$16:$Y$43,MATCH($B142,'Damage costs'!$C$16:$C$43,0))/1000),\"\")","v":""},{"$f":"IFERROR(IF(OR($C$144=FALSE,LEFT($B142,3)<>\"NOX\"),L57*INDEX('Damage costs'!$U$16:$U$43,MATCH($B142,'Damage costs'!$C$16:$C$43,0))/1000,L57*INDEX('Damage costs'!$Y$16:$Y$43,MATCH($B142,'Damage costs'!$C$16:$C$43,0))/1000),\"\")","v":""},{"$f":"IFERROR(IF(OR($C$144=FALSE,LEFT($B142,3)<>\"NOX\"),M57*INDEX('Damage costs'!$U$16:$U$43,MATCH($B142,'Damage costs'!$C$16:$C$43,0))/1000,M57*INDEX('Damage costs'!$Y$16:$Y$43,MATCH($B142,'Damage costs'!$C$16:$C$43,0))/1000),\"\")","v":""},{"$f":"IFERROR(IF(OR($C$144=FALSE,LEFT($B142,3)<>\"NOX\"),N57*INDEX('Damage costs'!$U$16:$U$43,MATCH($B142,'Damage costs'!$C$16:$C$43,0))/1000,N57*INDEX('Damage costs'!$Y$16:$Y$43,MATCH($B142,'Damage costs'!$C$16:$C$43,0))/1000),\"\")","v":""},{"$f":"IFERROR(IF(OR($C$144=FALSE,LEFT($B142,3)<>\"NOX\"),O57*INDEX('Damage costs'!$U$16:$U$43,MATCH($B142,'Damage costs'!$C$16:$C$43,0))/1000,O57*INDEX('Damage costs'!$Y$16:$Y$43,MATCH($B142,'Damage costs'!$C$16:$C$43,0))/1000),\"\")","v":""},{"$f":"IFERROR(IF(OR($C$144=FALSE,LEFT($B142,3)<>\"NOX\"),P57*INDEX('Damage costs'!$U$16:$U$43,MATCH($B142,'Damage costs'!$C$16:$C$43,0))/1000,P57*INDEX('Damage costs'!$Y$16:$Y$43,MATCH($B142,'Damage costs'!$C$16:$C$43,0))/1000),\"\")","v":""},{"$f":"IFERROR(IF(OR($C$144=FALSE,LEFT($B142,3)<>\"NOX\"),Q57*INDEX('Damage costs'!$U$16:$U$43,MATCH($B142,'Damage costs'!$C$16:$C$43,0))/1000,Q57*INDEX('Damage costs'!$Y$16:$Y$43,MATCH($B142,'Damage costs'!$C$16:$C$43,0))/1000),\"\")","v":""},{"$f":"IFERROR(IF(OR($C$144=FALSE,LEFT($B142,3)<>\"NOX\"),R57*INDEX('Damage costs'!$U$16:$U$43,MATCH($B142,'Damage costs'!$C$16:$C$43,0))/1000,R57*INDEX('Damage costs'!$Y$16:$Y$43,MATCH($B142,'Damage costs'!$C$16:$C$43,0))/1000),\"\")","v":""},{"$f":"IFERROR(IF(OR($C$144=FALSE,LEFT($B142,3)<>\"NOX\"),S57*INDEX('Damage costs'!$U$16:$U$43,MATCH($B142,'Damage costs'!$C$16:$C$43,0))/1000,S57*INDEX('Damage costs'!$Y$16:$Y$43,MATCH($B142,'Damage costs'!$C$16:$C$43,0))/1000),\"\")","v":""},{"$f":"IFERROR(IF(OR($C$144=FALSE,LEFT($B142,3)<>\"NOX\"),T57*INDEX('Damage costs'!$U$16:$U$43,MATCH($B142,'Damage costs'!$C$16:$C$43,0))/1000,T57*INDEX('Damage costs'!$Y$16:$Y$43,MATCH($B142,'Damage costs'!$C$16:$C$43,0))/1000),\"\")","v":""},{"$f":"IFERROR(IF(OR($C$144=FALSE,LEFT($B142,3)<>\"NOX\"),U57*INDEX('Damage costs'!$U$16:$U$43,MATCH($B142,'Damage costs'!$C$16:$C$43,0))/1000,U57*INDEX('Damage costs'!$Y$16:$Y$43,MATCH($B142,'Damage costs'!$C$16:$C$43,0))/1000),\"\")","v":""},{"$f":"IFERROR(IF(OR($C$144=FALSE,LEFT($B142,3)<>\"NOX\"),V57*INDEX('Damage costs'!$U$16:$U$43,MATCH($B142,'Damage costs'!$C$16:$C$43,0))/1000,V57*INDEX('Damage costs'!$Y$16:$Y$43,MATCH($B142,'Damage costs'!$C$16:$C$43,0))/1000),\"\")","v":""},{"$f":"IFERROR(IF(OR($C$144=FALSE,LEFT($B142,3)<>\"NOX\"),W57*INDEX('Damage costs'!$U$16:$U$43,MATCH($B142,'Damage costs'!$C$16:$C$43,0))/1000,W57*INDEX('Damage costs'!$Y$16:$Y$43,MATCH($B142,'Damage costs'!$C$16:$C$43,0))/1000),\"\")","v":""},{"$f":"IFERROR(IF(OR($C$144=FALSE,LEFT($B142,3)<>\"NOX\"),X57*INDEX('Damage costs'!$U$16:$U$43,MATCH($B142,'Damage costs'!$C$16:$C$43,0))/1000,X57*INDEX('Damage costs'!$Y$16:$Y$43,MATCH($B142,'Damage costs'!$C$16:$C$43,0))/1000),\"\")","v":""},{"$f":"IFERROR(IF(OR($C$144=FALSE,LEFT($B142,3)<>\"NOX\"),Y57*INDEX('Damage costs'!$U$16:$U$43,MATCH($B142,'Damage costs'!$C$16:$C$43,0))/1000,Y57*INDEX('Damage costs'!$Y$16:$Y$43,MATCH($B142,'Damage costs'!$C$16:$C$43,0))/1000),\"\")","v":""},{"$f":"IFERROR(IF(OR($C$144=FALSE,LEFT($B142,3)<>\"NOX\"),Z57*INDEX('Damage costs'!$U$16:$U$43,MATCH($B142,'Damage costs'!$C$16:$C$43,0))/1000,Z57*INDEX('Damage costs'!$Y$16:$Y$43,MATCH($B142,'Damage costs'!$C$16:$C$43,0))/1000),\"\")","v":""},{"$f":"IFERROR(IF(OR($C$144=FALSE,LEFT($B142,3)<>\"NOX\"),AA57*INDEX('Damage costs'!$U$16:$U$43,MATCH($B142,'Damage costs'!$C$16:$C$43,0))/1000,AA57*INDEX('Damage costs'!$Y$16:$Y$43,MATCH($B142,'Damage costs'!$C$16:$C$43,0))/1000),\"\")","v":""},{"$f":"IFERROR(IF(OR($C$144=FALSE,LEFT($B142,3)<>\"NOX\"),AB57*INDEX('Damage costs'!$U$16:$U$43,MATCH($B142,'Damage costs'!$C$16:$C$43,0))/1000,AB57*INDEX('Damage costs'!$Y$16:$Y$43,MATCH($B142,'Damage costs'!$C$16:$C$43,0))/1000),\"\")","v":""},{"$f":"IFERROR(IF(OR($C$144=FALSE,LEFT($B142,3)<>\"NOX\"),AC57*INDEX('Damage costs'!$U$16:$U$43,MATCH($B142,'Damage costs'!$C$16:$C$43,0))/1000,AC57*INDEX('Damage costs'!$Y$16:$Y$43,MATCH($B142,'Damage costs'!$C$16:$C$43,0))/1000),\"\")","v":""},{"$f":"IFERROR(IF(OR($C$144=FALSE,LEFT($B142,3)<>\"NOX\"),AD57*INDEX('Damage costs'!$U$16:$U$43,MATCH($B142,'Damage costs'!$C$16:$C$43,0))/1000,AD57*INDEX('Damage costs'!$Y$16:$Y$43,MATCH($B142,'Damage costs'!$C$16:$C$43,0))/1000),\"\")","v":""},{"$f":"IFERROR(IF(OR($C$144=FALSE,LEFT($B142,3)<>\"NOX\"),AE57*INDEX('Damage costs'!$U$16:$U$43,MATCH($B142,'Damage costs'!$C$16:$C$43,0))/1000,AE57*INDEX('Damage costs'!$Y$16:$Y$43,MATCH($B142,'Damage costs'!$C$16:$C$43,0))/1000),\"\")","v":""},{"$f":"IFERROR(IF(OR($C$144=FALSE,LEFT($B142,3)<>\"NOX\"),AF57*INDEX('Damage costs'!$U$16:$U$43,MATCH($B142,'Damage costs'!$C$16:$C$43,0))/1000,AF57*INDEX('Damage costs'!$Y$16:$Y$43,MATCH($B142,'Damage costs'!$C$16:$C$43,0))/1000),\"\")","v":""},{"$f":"IFERROR(IF(OR($C$144=FALSE,LEFT($B142,3)<>\"NOX\"),AG57*INDEX('Damage costs'!$U$16:$U$43,MATCH($B142,'Damage costs'!$C$16:$C$43,0))/1000,AG57*INDEX('Damage costs'!$Y$16:$Y$43,MATCH($B142,'Damage costs'!$C$16:$C$43,0))/1000),\"\")","v":""},{"$f":"IFERROR(IF(OR($C$144=FALSE,LEFT($B142,3)<>\"NOX\"),AH57*INDEX('Damage costs'!$U$16:$U$43,MATCH($B142,'Damage costs'!$C$16:$C$43,0))/1000,AH57*INDEX('Damage costs'!$Y$16:$Y$43,MATCH($B142,'Damage costs'!$C$16:$C$43,0))/1000),\"\")","v":""},{"$f":"IFERROR(IF(OR($C$144=FALSE,LEFT($B142,3)<>\"NOX\"),AI57*INDEX('Damage costs'!$U$16:$U$43,MATCH($B142,'Damage costs'!$C$16:$C$43,0))/1000,AI57*INDEX('Damage costs'!$Y$16:$Y$43,MATCH($B142,'Damage costs'!$C$16:$C$43,0))/1000),\"\")","v":""},{"$f":"IFERROR(IF(OR($C$144=FALSE,LEFT($B142,3)<>\"NOX\"),AJ57*INDEX('Damage costs'!$U$16:$U$43,MATCH($B142,'Damage costs'!$C$16:$C$43,0))/1000,AJ57*INDEX('Damage costs'!$Y$16:$Y$43,MATCH($B142,'Damage costs'!$C$16:$C$43,0))/1000),\"\")","v":""},{"$f":"IFERROR(IF(OR($C$144=FALSE,LEFT($B142,3)<>\"NOX\"),AK57*INDEX('Damage costs'!$U$16:$U$43,MATCH($B142,'Damage costs'!$C$16:$C$43,0))/1000,AK57*INDEX('Damage costs'!$Y$16:$Y$43,MATCH($B142,'Damage costs'!$C$16:$C$43,0))/1000),\"\")","v":""},{"$f":"IFERROR(IF(OR($C$144=FALSE,LEFT($B142,3)<>\"NOX\"),AL57*INDEX('Damage costs'!$U$16:$U$43,MATCH($B142,'Damage costs'!$C$16:$C$43,0))/1000,AL57*INDEX('Damage costs'!$Y$16:$Y$43,MATCH($B142,'Damage costs'!$C$16:$C$43,0))/1000),\"\")","v":""},{"$f":"IFERROR(IF(OR($C$144=FALSE,LEFT($B142,3)<>\"NOX\"),AM57*INDEX('Damage costs'!$U$16:$U$43,MATCH($B142,'Damage costs'!$C$16:$C$43,0))/1000,AM57*INDEX('Damage costs'!$Y$16:$Y$43,MATCH($B142,'Damage costs'!$C$16:$C$43,0))/1000),\"\")","v":""},{"$f":"IFERROR(IF(OR($C$144=FALSE,LEFT($B142,3)<>\"NOX\"),AN57*INDEX('Damage costs'!$U$16:$U$43,MATCH($B142,'Damage costs'!$C$16:$C$43,0))/1000,AN57*INDEX('Damage costs'!$Y$16:$Y$43,MATCH($B142,'Damage costs'!$C$16:$C$43,0))/1000),\"\")","v":""},{"$f":"IFERROR(IF(OR($C$144=FALSE,LEFT($B142,3)<>\"NOX\"),AO57*INDEX('Damage costs'!$U$16:$U$43,MATCH($B142,'Damage costs'!$C$16:$C$43,0))/1000,AO57*INDEX('Damage costs'!$Y$16:$Y$43,MATCH($B142,'Damage costs'!$C$16:$C$43,0))/1000),\"\")","v":""},{"$f":"IFERROR(IF(OR($C$144=FALSE,LEFT($B142,3)<>\"NOX\"),AP57*INDEX('Damage costs'!$U$16:$U$43,MATCH($B142,'Damage costs'!$C$16:$C$43,0))/1000,AP57*INDEX('Damage costs'!$Y$16:$Y$43,MATCH($B142,'Damage costs'!$C$16:$C$43,0))/1000),\"\")","v":""},{"$f":"IFERROR(IF(OR($C$144=FALSE,LEFT($B142,3)<>\"NOX\"),AQ57*INDEX('Damage costs'!$U$16:$U$43,MATCH($B142,'Damage costs'!$C$16:$C$43,0))/1000,AQ57*INDEX('Damage costs'!$Y$16:$Y$43,MATCH($B142,'Damage costs'!$C$16:$C$43,0))/1000),\"\")","v":""},{"$f":"IFERROR(IF(OR($C$144=FALSE,LEFT($B142,3)<>\"NOX\"),AR57*INDEX('Damage costs'!$U$16:$U$43,MATCH($B142,'Damage costs'!$C$16:$C$43,0))/1000,AR57*INDEX('Damage costs'!$Y$16:$Y$43,MATCH($B142,'Damage costs'!$C$16:$C$43,0))/1000),\"\")","v":""},{"$f":"IFERROR(IF(OR($C$144=FALSE,LEFT($B142,3)<>\"NOX\"),AS57*INDEX('Damage costs'!$U$16:$U$43,MATCH($B142,'Damage costs'!$C$16:$C$43,0))/1000,AS57*INDEX('Damage costs'!$Y$16:$Y$43,MATCH($B142,'Damage costs'!$C$16:$C$43,0))/1000),\"\")","v":""},{"$f":"IFERROR(IF(OR($C$144=FALSE,LEFT($B142,3)<>\"NOX\"),AT57*INDEX('Damage costs'!$U$16:$U$43,MATCH($B142,'Damage costs'!$C$16:$C$43,0))/1000,AT57*INDEX('Damage costs'!$Y$16:$Y$43,MATCH($B142,'Damage costs'!$C$16:$C$43,0))/1000),\"\")","v":""},{"$f":"IFERROR(IF(OR($C$144=FALSE,LEFT($B142,3)<>\"NOX\"),AU57*INDEX('Damage costs'!$U$16:$U$43,MATCH($B142,'Damage costs'!$C$16:$C$43,0))/1000,AU57*INDEX('Damage costs'!$Y$16:$Y$43,MATCH($B142,'Damage costs'!$C$16:$C$43,0))/1000),\"\")","v":""},{"$f":"IFERROR(IF(OR($C$144=FALSE,LEFT($B142,3)<>\"NOX\"),AV57*INDEX('Damage costs'!$U$16:$U$43,MATCH($B142,'Damage costs'!$C$16:$C$43,0))/1000,AV57*INDEX('Damage costs'!$Y$16:$Y$43,MATCH($B142,'Damage costs'!$C$16:$C$43,0))/1000),\"\")","v":""},{"$f":"IFERROR(IF(OR($C$144=FALSE,LEFT($B142,3)<>\"NOX\"),AW57*INDEX('Damage costs'!$U$16:$U$43,MATCH($B142,'Damage costs'!$C$16:$C$43,0))/1000,AW57*INDEX('Damage costs'!$Y$16:$Y$43,MATCH($B142,'Damage costs'!$C$16:$C$43,0))/1000),\"\")","v":""},{"$f":"IFERROR(IF(OR($C$144=FALSE,LEFT($B142,3)<>\"NOX\"),AX57*INDEX('Damage costs'!$U$16:$U$43,MATCH($B142,'Damage costs'!$C$16:$C$43,0))/1000,AX57*INDEX('Damage costs'!$Y$16:$Y$43,MATCH($B142,'Damage costs'!$C$16:$C$43,0))/1000),\"\")","v":""},{"$f":"IFERROR(IF(OR($C$144=FALSE,LEFT($B142,3)<>\"NOX\"),AY57*INDEX('Damage costs'!$U$16:$U$43,MATCH($B142,'Damage costs'!$C$16:$C$43,0))/1000,AY57*INDEX('Damage costs'!$Y$16:$Y$43,MATCH($B142,'Damage costs'!$C$16:$C$43,0))/1000),\"\")","v":""},{"$f":"IFERROR(IF(OR($C$144=FALSE,LEFT($B142,3)<>\"NOX\"),AZ57*INDEX('Damage costs'!$U$16:$U$43,MATCH($B142,'Damage costs'!$C$16:$C$43,0))/1000,AZ57*INDEX('Damage costs'!$Y$16:$Y$43,MATCH($B142,'Damage costs'!$C$16:$C$43,0))/1000),\"\")","v":""},{"$f":"IFERROR(IF(OR($C$144=FALSE,LEFT($B142,3)<>\"NOX\"),BA57*INDEX('Damage costs'!$U$16:$U$43,MATCH($B142,'Damage costs'!$C$16:$C$43,0))/1000,BA57*INDEX('Damage costs'!$Y$16:$Y$43,MATCH($B142,'Damage costs'!$C$16:$C$43,0))/1000),\"\")","v":""},{"$f":"IFERROR(IF(OR($C$144=FALSE,LEFT($B142,3)<>\"NOX\"),BB57*INDEX('Damage costs'!$U$16:$U$43,MATCH($B142,'Damage costs'!$C$16:$C$43,0))/1000,BB57*INDEX('Damage costs'!$Y$16:$Y$43,MATCH($B142,'Damage costs'!$C$16:$C$43,0))/1000),\"\")","v":""},{"$f":"IFERROR(IF(OR($C$144=FALSE,LEFT($B142,3)<>\"NOX\"),BC57*INDEX('Damage costs'!$U$16:$U$43,MATCH($B142,'Damage costs'!$C$16:$C$43,0))/1000,BC57*INDEX('Damage costs'!$Y$16:$Y$43,MATCH($B142,'Damage costs'!$C$16:$C$43,0))/1000),\"\")","v":""},{"$f":"IFERROR(IF(OR($C$144=FALSE,LEFT($B142,3)<>\"NOX\"),BD57*INDEX('Damage costs'!$U$16:$U$43,MATCH($B142,'Damage costs'!$C$16:$C$43,0))/1000,BD57*INDEX('Damage costs'!$Y$16:$Y$43,MATCH($B142,'Damage costs'!$C$16:$C$43,0))/1000),\"\")","v":""},{"$f":"IFERROR(IF(OR($C$144=FALSE,LEFT($B142,3)<>\"NOX\"),BE57*INDEX('Damage costs'!$U$16:$U$43,MATCH($B142,'Damage costs'!$C$16:$C$43,0))/1000,BE57*INDEX('Damage costs'!$Y$16:$Y$43,MATCH($B142,'Damage costs'!$C$16:$C$43,0))/1000),\"\")","v":""},{"$f":"IFERROR(IF(OR($C$144=FALSE,LEFT($B142,3)<>\"NOX\"),BF57*INDEX('Damage costs'!$U$16:$U$43,MATCH($B142,'Damage costs'!$C$16:$C$43,0))/1000,BF57*INDEX('Damage costs'!$Y$16:$Y$43,MATCH($B142,'Damage costs'!$C$16:$C$43,0))/1000),\"\")","v":""},{"$f":"IFERROR(IF(OR($C$144=FALSE,LEFT($B142,3)<>\"NOX\"),BG57*INDEX('Damage costs'!$U$16:$U$43,MATCH($B142,'Damage costs'!$C$16:$C$43,0))/1000,BG57*INDEX('Damage costs'!$Y$16:$Y$43,MATCH($B142,'Damage costs'!$C$16:$C$43,0))/1000),\"\")","v":""},{"$f":"IFERROR(IF(OR($C$144=FALSE,LEFT($B142,3)<>\"NOX\"),BH57*INDEX('Damage costs'!$U$16:$U$43,MATCH($B142,'Damage costs'!$C$16:$C$43,0))/1000,BH57*INDEX('Damage costs'!$Y$16:$Y$43,MATCH($B142,'Damage costs'!$C$16:$C$43,0))/1000),\"\")","v":""},{"$f":"IFERROR(IF(OR($C$144=FALSE,LEFT($B142,3)<>\"NOX\"),BI57*INDEX('Damage costs'!$U$16:$U$43,MATCH($B142,'Damage costs'!$C$16:$C$43,0))/1000,BI57*INDEX('Damage costs'!$Y$16:$Y$43,MATCH($B142,'Damage costs'!$C$16:$C$43,0))/1000),\"\")","v":""},{"$f":"IFERROR(IF(OR($C$144=FALSE,LEFT($B142,3)<>\"NOX\"),BJ57*INDEX('Damage costs'!$U$16:$U$43,MATCH($B142,'Damage costs'!$C$16:$C$43,0))/1000,BJ57*INDEX('Damage costs'!$Y$16:$Y$43,MATCH($B142,'Damage costs'!$C$16:$C$43,0))/1000),\"\")","v":""},{"$f":"IFERROR(IF(OR($C$144=FALSE,LEFT($B142,3)<>\"NOX\"),BK57*INDEX('Damage costs'!$U$16:$U$43,MATCH($B142,'Damage costs'!$C$16:$C$43,0))/1000,BK57*INDEX('Damage costs'!$Y$16:$Y$43,MATCH($B142,'Damage costs'!$C$16:$C$43,0))/1000),\"\")","v":""},{"$f":"IFERROR(IF(OR($C$144=FALSE,LEFT($B142,3)<>\"NOX\"),BL57*INDEX('Damage costs'!$U$16:$U$43,MATCH($B142,'Damage costs'!$C$16:$C$43,0))/1000,BL57*INDEX('Damage costs'!$Y$16:$Y$43,MATCH($B142,'Damage costs'!$C$16:$C$43,0))/1000),\"\")","v":""},{"$f":"IFERROR(IF(OR($C$144=FALSE,LEFT($B142,3)<>\"NOX\"),BM57*INDEX('Damage costs'!$U$16:$U$43,MATCH($B142,'Damage costs'!$C$16:$C$43,0))/1000,BM57*INDEX('Damage costs'!$Y$16:$Y$43,MATCH($B142,'Damage costs'!$C$16:$C$43,0))/1000),\"\")","v":""},{"$f":"IFERROR(IF(OR($C$144=FALSE,LEFT($B142,3)<>\"NOX\"),BN57*INDEX('Damage costs'!$U$16:$U$43,MATCH($B142,'Damage costs'!$C$16:$C$43,0))/1000,BN57*INDEX('Damage costs'!$Y$16:$Y$43,MATCH($B142,'Damage costs'!$C$16:$C$43,0))/1000),\"\")","v":""},{"$f":"IFERROR(IF(OR($C$144=FALSE,LEFT($B142,3)<>\"NOX\"),BO57*INDEX('Damage costs'!$U$16:$U$43,MATCH($B142,'Damage costs'!$C$16:$C$43,0))/1000,BO57*INDEX('Damage costs'!$Y$16:$Y$43,MATCH($B142,'Damage costs'!$C$16:$C$43,0))/1000),\"\")","v":""},{"$f":"IFERROR(IF(OR($C$144=FALSE,LEFT($B142,3)<>\"NOX\"),BP57*INDEX('Damage costs'!$U$16:$U$43,MATCH($B142,'Damage costs'!$C$16:$C$43,0))/1000,BP57*INDEX('Damage costs'!$Y$16:$Y$43,MATCH($B142,'Damage costs'!$C$16:$C$43,0))/1000),\"\")","v":""},{"$f":"IFERROR(IF(OR($C$144=FALSE,LEFT($B142,3)<>\"NOX\"),BQ57*INDEX('Damage costs'!$U$16:$U$43,MATCH($B142,'Damage costs'!$C$16:$C$43,0))/1000,BQ57*INDEX('Damage costs'!$Y$16:$Y$43,MATCH($B142,'Damage costs'!$C$16:$C$43,0))/1000),\"\")","v":""},{"$f":"IFERROR(IF(OR($C$144=FALSE,LEFT($B142,3)<>\"NOX\"),BR57*INDEX('Damage costs'!$U$16:$U$43,MATCH($B142,'Damage costs'!$C$16:$C$43,0))/1000,BR57*INDEX('Damage costs'!$Y$16:$Y$43,MATCH($B142,'Damage costs'!$C$16:$C$43,0))/1000),\"\")","v":""},{"$f":"IFERROR(IF(OR($C$144=FALSE,LEFT($B142,3)<>\"NOX\"),BS57*INDEX('Damage costs'!$U$16:$U$43,MATCH($B142,'Damage costs'!$C$16:$C$43,0))/1000,BS57*INDEX('Damage costs'!$Y$16:$Y$43,MATCH($B142,'Damage costs'!$C$16:$C$43,0))/1000),\"\")","v":""},{"$f":"IFERROR(IF(OR($C$144=FALSE,LEFT($B142,3)<>\"NOX\"),BT57*INDEX('Damage costs'!$U$16:$U$43,MATCH($B142,'Damage costs'!$C$16:$C$43,0))/1000,BT57*INDEX('Damage costs'!$Y$16:$Y$43,MATCH($B142,'Damage costs'!$C$16:$C$43,0))/1000),\"\")","v":""},{"$f":"IFERROR(IF(OR($C$144=FALSE,LEFT($B142,3)<>\"NOX\"),BU57*INDEX('Damage costs'!$U$16:$U$43,MATCH($B142,'Damage costs'!$C$16:$C$43,0))/1000,BU57*INDEX('Damage costs'!$Y$16:$Y$43,MATCH($B142,'Damage costs'!$C$16:$C$43,0))/1000),\"\")","v":""},{"$f":"IFERROR(IF(OR($C$144=FALSE,LEFT($B142,3)<>\"NOX\"),BV57*INDEX('Damage costs'!$U$16:$U$43,MATCH($B142,'Damage costs'!$C$16:$C$43,0))/1000,BV57*INDEX('Damage costs'!$Y$16:$Y$43,MATCH($B142,'Damage costs'!$C$16:$C$43,0))/1000),\"\")","v":""},{"$f":"IFERROR(IF(OR($C$144=FALSE,LEFT($B142,3)<>\"NOX\"),BW57*INDEX('Damage costs'!$U$16:$U$43,MATCH($B142,'Damage costs'!$C$16:$C$43,0))/1000,BW57*INDEX('Damage costs'!$Y$16:$Y$43,MATCH($B142,'Damage costs'!$C$16:$C$43,0))/1000),\"\")","v":""},{"$f":"IFERROR(IF(OR($C$144=FALSE,LEFT($B142,3)<>\"NOX\"),BX57*INDEX('Damage costs'!$U$16:$U$43,MATCH($B142,'Damage costs'!$C$16:$C$43,0))/1000,BX57*INDEX('Damage costs'!$Y$16:$Y$43,MATCH($B142,'Damage costs'!$C$16:$C$43,0))/1000),\"\")","v":""},{"$f":"IFERROR(IF(OR($C$144=FALSE,LEFT($B142,3)<>\"NOX\"),BY57*INDEX('Damage costs'!$U$16:$U$43,MATCH($B142,'Damage costs'!$C$16:$C$43,0))/1000,BY57*INDEX('Damage costs'!$Y$16:$Y$43,MATCH($B142,'Damage costs'!$C$16:$C$43,0))/1000),\"\")","v":""},{"$f":"IFERROR(IF(OR($C$144=FALSE,LEFT($B142,3)<>\"NOX\"),BZ57*INDEX('Damage costs'!$U$16:$U$43,MATCH($B142,'Damage costs'!$C$16:$C$43,0))/1000,BZ57*INDEX('Damage costs'!$Y$16:$Y$43,MATCH($B142,'Damage costs'!$C$16:$C$43,0))/1000),\"\")","v":""},{"$f":"IFERROR(IF(OR($C$144=FALSE,LEFT($B142,3)<>\"NOX\"),CA57*INDEX('Damage costs'!$U$16:$U$43,MATCH($B142,'Damage costs'!$C$16:$C$43,0))/1000,CA57*INDEX('Damage costs'!$Y$16:$Y$43,MATCH($B142,'Damage costs'!$C$16:$C$43,0))/1000),\"\")","v":""},{"$f":"IFERROR(IF(OR($C$144=FALSE,LEFT($B142,3)<>\"NOX\"),CB57*INDEX('Damage costs'!$U$16:$U$43,MATCH($B142,'Damage costs'!$C$16:$C$43,0))/1000,CB57*INDEX('Damage costs'!$Y$16:$Y$43,MATCH($B142,'Damage costs'!$C$16:$C$43,0))/1000),\"\")","v":""},{"$f":"IFERROR(IF(OR($C$144=FALSE,LEFT($B142,3)<>\"NOX\"),CC57*INDEX('Damage costs'!$U$16:$U$43,MATCH($B142,'Damage costs'!$C$16:$C$43,0))/1000,CC57*INDEX('Damage costs'!$Y$16:$Y$43,MATCH($B142,'Damage costs'!$C$16:$C$43,0))/1000),\"\")","v":""},{"$f":"IFERROR(IF(OR($C$144=FALSE,LEFT($B142,3)<>\"NOX\"),CD57*INDEX('Damage costs'!$U$16:$U$43,MATCH($B142,'Damage costs'!$C$16:$C$43,0))/1000,CD57*INDEX('Damage costs'!$Y$16:$Y$43,MATCH($B142,'Damage costs'!$C$16:$C$43,0))/1000),\"\")","v":""},{"$f":"IFERROR(IF(OR($C$144=FALSE,LEFT($B142,3)<>\"NOX\"),CE57*INDEX('Damage costs'!$U$16:$U$43,MATCH($B142,'Damage costs'!$C$16:$C$43,0))/1000,CE57*INDEX('Damage costs'!$Y$16:$Y$43,MATCH($B142,'Damage costs'!$C$16:$C$43,0))/1000),\"\")","v":""},{"$f":"IFERROR(IF(OR($C$144=FALSE,LEFT($B142,3)<>\"NOX\"),CF57*INDEX('Damage costs'!$U$16:$U$43,MATCH($B142,'Damage costs'!$C$16:$C$43,0))/1000,CF57*INDEX('Damage costs'!$Y$16:$Y$43,MATCH($B142,'Damage costs'!$C$16:$C$43,0))/1000),\"\")","v":""},{"$f":"IFERROR(IF(OR($C$144=FALSE,LEFT($B142,3)<>\"NOX\"),CG57*INDEX('Damage costs'!$U$16:$U$43,MATCH($B142,'Damage costs'!$C$16:$C$43,0))/1000,CG57*INDEX('Damage costs'!$Y$16:$Y$43,MATCH($B142,'Damage costs'!$C$16:$C$43,0))/1000),\"\")","v":""},{"$f":"IFERROR(IF(OR($C$144=FALSE,LEFT($B142,3)<>\"NOX\"),CH57*INDEX('Damage costs'!$U$16:$U$43,MATCH($B142,'Damage costs'!$C$16:$C$43,0))/1000,CH57*INDEX('Damage costs'!$Y$16:$Y$43,MATCH($B142,'Damage costs'!$C$16:$C$43,0))/1000),\"\")","v":""},{"$f":"IFERROR(IF(OR($C$144=FALSE,LEFT($B142,3)<>\"NOX\"),CI57*INDEX('Damage costs'!$U$16:$U$43,MATCH($B142,'Damage costs'!$C$16:$C$43,0))/1000,CI57*INDEX('Damage costs'!$Y$16:$Y$43,MATCH($B142,'Damage costs'!$C$16:$C$43,0))/1000),\"\")","v":""},{"$f":"IFERROR(IF(OR($C$144=FALSE,LEFT($B142,3)<>\"NOX\"),CJ57*INDEX('Damage costs'!$U$16:$U$43,MATCH($B142,'Damage costs'!$C$16:$C$43,0))/1000,CJ57*INDEX('Damage costs'!$Y$16:$Y$43,MATCH($B142,'Damage costs'!$C$16:$C$43,0))/1000),\"\")","v":""},{"$f":"IFERROR(IF(OR($C$144=FALSE,LEFT($B142,3)<>\"NOX\"),CK57*INDEX('Damage costs'!$U$16:$U$43,MATCH($B142,'Damage costs'!$C$16:$C$43,0))/1000,CK57*INDEX('Damage costs'!$Y$16:$Y$43,MATCH($B142,'Damage costs'!$C$16:$C$43,0))/1000),\"\")","v":""},{"$f":"IFERROR(IF(OR($C$144=FALSE,LEFT($B142,3)<>\"NOX\"),CL57*INDEX('Damage costs'!$U$16:$U$43,MATCH($B142,'Damage costs'!$C$16:$C$43,0))/1000,CL57*INDEX('Damage costs'!$Y$16:$Y$43,MATCH($B142,'Damage costs'!$C$16:$C$43,0))/1000),\"\")","v":""},{"$f":"IFERROR(IF(OR($C$144=FALSE,LEFT($B142,3)<>\"NOX\"),CM57*INDEX('Damage costs'!$U$16:$U$43,MATCH($B142,'Damage costs'!$C$16:$C$43,0))/1000,CM57*INDEX('Damage costs'!$Y$16:$Y$43,MATCH($B142,'Damage costs'!$C$16:$C$43,0))/1000),\"\")","v":""},{"$f":"IFERROR(IF(OR($C$144=FALSE,LEFT($B142,3)<>\"NOX\"),CN57*INDEX('Damage costs'!$U$16:$U$43,MATCH($B142,'Damage costs'!$C$16:$C$43,0))/1000,CN57*INDEX('Damage costs'!$Y$16:$Y$43,MATCH($B142,'Damage costs'!$C$16:$C$43,0))/1000),\"\")","v":""},{"$f":"IFERROR(IF(OR($C$144=FALSE,LEFT($B142,3)<>\"NOX\"),CO57*INDEX('Damage costs'!$U$16:$U$43,MATCH($B142,'Damage costs'!$C$16:$C$43,0))/1000,CO57*INDEX('Damage costs'!$Y$16:$Y$43,MATCH($B142,'Damage costs'!$C$16:$C$43,0))/1000),\"\")","v":""},{"$f":"IFERROR(IF(OR($C$144=FALSE,LEFT($B142,3)<>\"NOX\"),CP57*INDEX('Damage costs'!$U$16:$U$43,MATCH($B142,'Damage costs'!$C$16:$C$43,0))/1000,CP57*INDEX('Damage costs'!$Y$16:$Y$43,MATCH($B142,'Damage costs'!$C$16:$C$43,0))/1000),\"\")","v":""},{"$f":"IFERROR(IF(OR($C$144=FALSE,LEFT($B142,3)<>\"NOX\"),CQ57*INDEX('Damage costs'!$U$16:$U$43,MATCH($B142,'Damage costs'!$C$16:$C$43,0))/1000,CQ57*INDEX('Damage costs'!$Y$16:$Y$43,MATCH($B142,'Damage costs'!$C$16:$C$43,0))/1000),\"\")","v":""},{"$f":"IFERROR(IF(OR($C$144=FALSE,LEFT($B142,3)<>\"NOX\"),CR57*INDEX('Damage costs'!$U$16:$U$43,MATCH($B142,'Damage costs'!$C$16:$C$43,0))/1000,CR57*INDEX('Damage costs'!$Y$16:$Y$43,MATCH($B142,'Damage costs'!$C$16:$C$43,0))/1000),\"\")","v":""},{"$f":"IFERROR(IF(OR($C$144=FALSE,LEFT($B142,3)<>\"NOX\"),CS57*INDEX('Damage costs'!$U$16:$U$43,MATCH($B142,'Damage costs'!$C$16:$C$43,0))/1000,CS57*INDEX('Damage costs'!$Y$16:$Y$43,MATCH($B142,'Damage costs'!$C$16:$C$43,0))/1000),\"\")","v":""},{"$f":"IFERROR(IF(OR($C$144=FALSE,LEFT($B142,3)<>\"NOX\"),CT57*INDEX('Damage costs'!$U$16:$U$43,MATCH($B142,'Damage costs'!$C$16:$C$43,0))/1000,CT57*INDEX('Damage costs'!$Y$16:$Y$43,MATCH($B142,'Damage costs'!$C$16:$C$43,0))/1000),\"\")","v":""},{"$f":"IFERROR(IF(OR($C$144=FALSE,LEFT($B142,3)<>\"NOX\"),CU57*INDEX('Damage costs'!$U$16:$U$43,MATCH($B142,'Damage costs'!$C$16:$C$43,0))/1000,CU57*INDEX('Damage costs'!$Y$16:$Y$43,MATCH($B142,'Damage costs'!$C$16:$C$43,0))/1000),\"\")","v":""},{"$f":"IFERROR(IF(OR($C$144=FALSE,LEFT($B142,3)<>\"NOX\"),CV57*INDEX('Damage costs'!$U$16:$U$43,MATCH($B142,'Damage costs'!$C$16:$C$43,0))/1000,CV57*INDEX('Damage costs'!$Y$16:$Y$43,MATCH($B142,'Damage costs'!$C$16:$C$43,0))/1000),\"\")","v":""},{"$f":"IFERROR(IF(OR($C$144=FALSE,LEFT($B142,3)<>\"NOX\"),CW57*INDEX('Damage costs'!$U$16:$U$43,MATCH($B142,'Damage costs'!$C$16:$C$43,0))/1000,CW57*INDEX('Damage costs'!$Y$16:$Y$43,MATCH($B142,'Damage costs'!$C$16:$C$43,0))/1000),\"\")","v":""},{"$f":"IFERROR(IF(OR($C$144=FALSE,LEFT($B142,3)<>\"NOX\"),CX57*INDEX('Damage costs'!$U$16:$U$43,MATCH($B142,'Damage costs'!$C$16:$C$43,0))/1000,CX57*INDEX('Damage costs'!$Y$16:$Y$43,MATCH($B142,'Damage costs'!$C$16:$C$43,0))/1000),\"\")","v":""},{"$f":"IFERROR(IF(OR($C$144=FALSE,LEFT($B142,3)<>\"NOX\"),CY57*INDEX('Damage costs'!$U$16:$U$43,MATCH($B142,'Damage costs'!$C$16:$C$43,0))/1000,CY57*INDEX('Damage costs'!$Y$16:$Y$43,MATCH($B142,'Damage costs'!$C$16:$C$43,0))/1000),\"\")","v":""}]
[null,0,"£000's",{"$f":"IFERROR(IF(OR($C$144=FALSE,LEFT($B143,3)<>\"NOX\"),D58*INDEX('Damage costs'!$U$16:$U$43,MATCH($B143,'Damage costs'!$C$16:$C$43,0))/1000,D58*INDEX('Damage costs'!$Y$16:$Y$43,MATCH($B143,'Damage costs'!$C$16:$C$43,0))/1000),\"\")","v":""},{"$f":"IFERROR(IF(OR($C$144=FALSE,LEFT($B143,3)<>\"NOX\"),E58*INDEX('Damage costs'!$U$16:$U$43,MATCH($B143,'Damage costs'!$C$16:$C$43,0))/1000,E58*INDEX('Damage costs'!$Y$16:$Y$43,MATCH($B143,'Damage costs'!$C$16:$C$43,0))/1000),\"\")","v":""},{"$f":"IFERROR(IF(OR($C$144=FALSE,LEFT($B143,3)<>\"NOX\"),F58*INDEX('Damage costs'!$U$16:$U$43,MATCH($B143,'Damage costs'!$C$16:$C$43,0))/1000,F58*INDEX('Damage costs'!$Y$16:$Y$43,MATCH($B143,'Damage costs'!$C$16:$C$43,0))/1000),\"\")","v":""},{"$f":"IFERROR(IF(OR($C$144=FALSE,LEFT($B143,3)<>\"NOX\"),G58*INDEX('Damage costs'!$U$16:$U$43,MATCH($B143,'Damage costs'!$C$16:$C$43,0))/1000,G58*INDEX('Damage costs'!$Y$16:$Y$43,MATCH($B143,'Damage costs'!$C$16:$C$43,0))/1000),\"\")","v":""},{"$f":"IFERROR(IF(OR($C$144=FALSE,LEFT($B143,3)<>\"NOX\"),H58*INDEX('Damage costs'!$U$16:$U$43,MATCH($B143,'Damage costs'!$C$16:$C$43,0))/1000,H58*INDEX('Damage costs'!$Y$16:$Y$43,MATCH($B143,'Damage costs'!$C$16:$C$43,0))/1000),\"\")","v":""},{"$f":"IFERROR(IF(OR($C$144=FALSE,LEFT($B143,3)<>\"NOX\"),I58*INDEX('Damage costs'!$U$16:$U$43,MATCH($B143,'Damage costs'!$C$16:$C$43,0))/1000,I58*INDEX('Damage costs'!$Y$16:$Y$43,MATCH($B143,'Damage costs'!$C$16:$C$43,0))/1000),\"\")","v":""},{"$f":"IFERROR(IF(OR($C$144=FALSE,LEFT($B143,3)<>\"NOX\"),J58*INDEX('Damage costs'!$U$16:$U$43,MATCH($B143,'Damage costs'!$C$16:$C$43,0))/1000,J58*INDEX('Damage costs'!$Y$16:$Y$43,MATCH($B143,'Damage costs'!$C$16:$C$43,0))/1000),\"\")","v":""},{"$f":"IFERROR(IF(OR($C$144=FALSE,LEFT($B143,3)<>\"NOX\"),K58*INDEX('Damage costs'!$U$16:$U$43,MATCH($B143,'Damage costs'!$C$16:$C$43,0))/1000,K58*INDEX('Damage costs'!$Y$16:$Y$43,MATCH($B143,'Damage costs'!$C$16:$C$43,0))/1000),\"\")","v":""},{"$f":"IFERROR(IF(OR($C$144=FALSE,LEFT($B143,3)<>\"NOX\"),L58*INDEX('Damage costs'!$U$16:$U$43,MATCH($B143,'Damage costs'!$C$16:$C$43,0))/1000,L58*INDEX('Damage costs'!$Y$16:$Y$43,MATCH($B143,'Damage costs'!$C$16:$C$43,0))/1000),\"\")","v":""},{"$f":"IFERROR(IF(OR($C$144=FALSE,LEFT($B143,3)<>\"NOX\"),M58*INDEX('Damage costs'!$U$16:$U$43,MATCH($B143,'Damage costs'!$C$16:$C$43,0))/1000,M58*INDEX('Damage costs'!$Y$16:$Y$43,MATCH($B143,'Damage costs'!$C$16:$C$43,0))/1000),\"\")","v":""},{"$f":"IFERROR(IF(OR($C$144=FALSE,LEFT($B143,3)<>\"NOX\"),N58*INDEX('Damage costs'!$U$16:$U$43,MATCH($B143,'Damage costs'!$C$16:$C$43,0))/1000,N58*INDEX('Damage costs'!$Y$16:$Y$43,MATCH($B143,'Damage costs'!$C$16:$C$43,0))/1000),\"\")","v":""},{"$f":"IFERROR(IF(OR($C$144=FALSE,LEFT($B143,3)<>\"NOX\"),O58*INDEX('Damage costs'!$U$16:$U$43,MATCH($B143,'Damage costs'!$C$16:$C$43,0))/1000,O58*INDEX('Damage costs'!$Y$16:$Y$43,MATCH($B143,'Damage costs'!$C$16:$C$43,0))/1000),\"\")","v":""},{"$f":"IFERROR(IF(OR($C$144=FALSE,LEFT($B143,3)<>\"NOX\"),P58*INDEX('Damage costs'!$U$16:$U$43,MATCH($B143,'Damage costs'!$C$16:$C$43,0))/1000,P58*INDEX('Damage costs'!$Y$16:$Y$43,MATCH($B143,'Damage costs'!$C$16:$C$43,0))/1000),\"\")","v":""},{"$f":"IFERROR(IF(OR($C$144=FALSE,LEFT($B143,3)<>\"NOX\"),Q58*INDEX('Damage costs'!$U$16:$U$43,MATCH($B143,'Damage costs'!$C$16:$C$43,0))/1000,Q58*INDEX('Damage costs'!$Y$16:$Y$43,MATCH($B143,'Damage costs'!$C$16:$C$43,0))/1000),\"\")","v":""},{"$f":"IFERROR(IF(OR($C$144=FALSE,LEFT($B143,3)<>\"NOX\"),R58*INDEX('Damage costs'!$U$16:$U$43,MATCH($B143,'Damage costs'!$C$16:$C$43,0))/1000,R58*INDEX('Damage costs'!$Y$16:$Y$43,MATCH($B143,'Damage costs'!$C$16:$C$43,0))/1000),\"\")","v":""},{"$f":"IFERROR(IF(OR($C$144=FALSE,LEFT($B143,3)<>\"NOX\"),S58*INDEX('Damage costs'!$U$16:$U$43,MATCH($B143,'Damage costs'!$C$16:$C$43,0))/1000,S58*INDEX('Damage costs'!$Y$16:$Y$43,MATCH($B143,'Damage costs'!$C$16:$C$43,0))/1000),\"\")","v":""},{"$f":"IFERROR(IF(OR($C$144=FALSE,LEFT($B143,3)<>\"NOX\"),T58*INDEX('Damage costs'!$U$16:$U$43,MATCH($B143,'Damage costs'!$C$16:$C$43,0))/1000,T58*INDEX('Damage costs'!$Y$16:$Y$43,MATCH($B143,'Damage costs'!$C$16:$C$43,0))/1000),\"\")","v":""},{"$f":"IFERROR(IF(OR($C$144=FALSE,LEFT($B143,3)<>\"NOX\"),U58*INDEX('Damage costs'!$U$16:$U$43,MATCH($B143,'Damage costs'!$C$16:$C$43,0))/1000,U58*INDEX('Damage costs'!$Y$16:$Y$43,MATCH($B143,'Damage costs'!$C$16:$C$43,0))/1000),\"\")","v":""},{"$f":"IFERROR(IF(OR($C$144=FALSE,LEFT($B143,3)<>\"NOX\"),V58*INDEX('Damage costs'!$U$16:$U$43,MATCH($B143,'Damage costs'!$C$16:$C$43,0))/1000,V58*INDEX('Damage costs'!$Y$16:$Y$43,MATCH($B143,'Damage costs'!$C$16:$C$43,0))/1000),\"\")","v":""},{"$f":"IFERROR(IF(OR($C$144=FALSE,LEFT($B143,3)<>\"NOX\"),W58*INDEX('Damage costs'!$U$16:$U$43,MATCH($B143,'Damage costs'!$C$16:$C$43,0))/1000,W58*INDEX('Damage costs'!$Y$16:$Y$43,MATCH($B143,'Damage costs'!$C$16:$C$43,0))/1000),\"\")","v":""},{"$f":"IFERROR(IF(OR($C$144=FALSE,LEFT($B143,3)<>\"NOX\"),X58*INDEX('Damage costs'!$U$16:$U$43,MATCH($B143,'Damage costs'!$C$16:$C$43,0))/1000,X58*INDEX('Damage costs'!$Y$16:$Y$43,MATCH($B143,'Damage costs'!$C$16:$C$43,0))/1000),\"\")","v":""},{"$f":"IFERROR(IF(OR($C$144=FALSE,LEFT($B143,3)<>\"NOX\"),Y58*INDEX('Damage costs'!$U$16:$U$43,MATCH($B143,'Damage costs'!$C$16:$C$43,0))/1000,Y58*INDEX('Damage costs'!$Y$16:$Y$43,MATCH($B143,'Damage costs'!$C$16:$C$43,0))/1000),\"\")","v":""},{"$f":"IFERROR(IF(OR($C$144=FALSE,LEFT($B143,3)<>\"NOX\"),Z58*INDEX('Damage costs'!$U$16:$U$43,MATCH($B143,'Damage costs'!$C$16:$C$43,0))/1000,Z58*INDEX('Damage costs'!$Y$16:$Y$43,MATCH($B143,'Damage costs'!$C$16:$C$43,0))/1000),\"\")","v":""},{"$f":"IFERROR(IF(OR($C$144=FALSE,LEFT($B143,3)<>\"NOX\"),AA58*INDEX('Damage costs'!$U$16:$U$43,MATCH($B143,'Damage costs'!$C$16:$C$43,0))/1000,AA58*INDEX('Damage costs'!$Y$16:$Y$43,MATCH($B143,'Damage costs'!$C$16:$C$43,0))/1000),\"\")","v":""},{"$f":"IFERROR(IF(OR($C$144=FALSE,LEFT($B143,3)<>\"NOX\"),AB58*INDEX('Damage costs'!$U$16:$U$43,MATCH($B143,'Damage costs'!$C$16:$C$43,0))/1000,AB58*INDEX('Damage costs'!$Y$16:$Y$43,MATCH($B143,'Damage costs'!$C$16:$C$43,0))/1000),\"\")","v":""},{"$f":"IFERROR(IF(OR($C$144=FALSE,LEFT($B143,3)<>\"NOX\"),AC58*INDEX('Damage costs'!$U$16:$U$43,MATCH($B143,'Damage costs'!$C$16:$C$43,0))/1000,AC58*INDEX('Damage costs'!$Y$16:$Y$43,MATCH($B143,'Damage costs'!$C$16:$C$43,0))/1000),\"\")","v":""},{"$f":"IFERROR(IF(OR($C$144=FALSE,LEFT($B143,3)<>\"NOX\"),AD58*INDEX('Damage costs'!$U$16:$U$43,MATCH($B143,'Damage costs'!$C$16:$C$43,0))/1000,AD58*INDEX('Damage costs'!$Y$16:$Y$43,MATCH($B143,'Damage costs'!$C$16:$C$43,0))/1000),\"\")","v":""},{"$f":"IFERROR(IF(OR($C$144=FALSE,LEFT($B143,3)<>\"NOX\"),AE58*INDEX('Damage costs'!$U$16:$U$43,MATCH($B143,'Damage costs'!$C$16:$C$43,0))/1000,AE58*INDEX('Damage costs'!$Y$16:$Y$43,MATCH($B143,'Damage costs'!$C$16:$C$43,0))/1000),\"\")","v":""},{"$f":"IFERROR(IF(OR($C$144=FALSE,LEFT($B143,3)<>\"NOX\"),AF58*INDEX('Damage costs'!$U$16:$U$43,MATCH($B143,'Damage costs'!$C$16:$C$43,0))/1000,AF58*INDEX('Damage costs'!$Y$16:$Y$43,MATCH($B143,'Damage costs'!$C$16:$C$43,0))/1000),\"\")","v":""},{"$f":"IFERROR(IF(OR($C$144=FALSE,LEFT($B143,3)<>\"NOX\"),AG58*INDEX('Damage costs'!$U$16:$U$43,MATCH($B143,'Damage costs'!$C$16:$C$43,0))/1000,AG58*INDEX('Damage costs'!$Y$16:$Y$43,MATCH($B143,'Damage costs'!$C$16:$C$43,0))/1000),\"\")","v":""},{"$f":"IFERROR(IF(OR($C$144=FALSE,LEFT($B143,3)<>\"NOX\"),AH58*INDEX('Damage costs'!$U$16:$U$43,MATCH($B143,'Damage costs'!$C$16:$C$43,0))/1000,AH58*INDEX('Damage costs'!$Y$16:$Y$43,MATCH($B143,'Damage costs'!$C$16:$C$43,0))/1000),\"\")","v":""},{"$f":"IFERROR(IF(OR($C$144=FALSE,LEFT($B143,3)<>\"NOX\"),AI58*INDEX('Damage costs'!$U$16:$U$43,MATCH($B143,'Damage costs'!$C$16:$C$43,0))/1000,AI58*INDEX('Damage costs'!$Y$16:$Y$43,MATCH($B143,'Damage costs'!$C$16:$C$43,0))/1000),\"\")","v":""},{"$f":"IFERROR(IF(OR($C$144=FALSE,LEFT($B143,3)<>\"NOX\"),AJ58*INDEX('Damage costs'!$U$16:$U$43,MATCH($B143,'Damage costs'!$C$16:$C$43,0))/1000,AJ58*INDEX('Damage costs'!$Y$16:$Y$43,MATCH($B143,'Damage costs'!$C$16:$C$43,0))/1000),\"\")","v":""},{"$f":"IFERROR(IF(OR($C$144=FALSE,LEFT($B143,3)<>\"NOX\"),AK58*INDEX('Damage costs'!$U$16:$U$43,MATCH($B143,'Damage costs'!$C$16:$C$43,0))/1000,AK58*INDEX('Damage costs'!$Y$16:$Y$43,MATCH($B143,'Damage costs'!$C$16:$C$43,0))/1000),\"\")","v":""},{"$f":"IFERROR(IF(OR($C$144=FALSE,LEFT($B143,3)<>\"NOX\"),AL58*INDEX('Damage costs'!$U$16:$U$43,MATCH($B143,'Damage costs'!$C$16:$C$43,0))/1000,AL58*INDEX('Damage costs'!$Y$16:$Y$43,MATCH($B143,'Damage costs'!$C$16:$C$43,0))/1000),\"\")","v":""},{"$f":"IFERROR(IF(OR($C$144=FALSE,LEFT($B143,3)<>\"NOX\"),AM58*INDEX('Damage costs'!$U$16:$U$43,MATCH($B143,'Damage costs'!$C$16:$C$43,0))/1000,AM58*INDEX('Damage costs'!$Y$16:$Y$43,MATCH($B143,'Damage costs'!$C$16:$C$43,0))/1000),\"\")","v":""},{"$f":"IFERROR(IF(OR($C$144=FALSE,LEFT($B143,3)<>\"NOX\"),AN58*INDEX('Damage costs'!$U$16:$U$43,MATCH($B143,'Damage costs'!$C$16:$C$43,0))/1000,AN58*INDEX('Damage costs'!$Y$16:$Y$43,MATCH($B143,'Damage costs'!$C$16:$C$43,0))/1000),\"\")","v":""},{"$f":"IFERROR(IF(OR($C$144=FALSE,LEFT($B143,3)<>\"NOX\"),AO58*INDEX('Damage costs'!$U$16:$U$43,MATCH($B143,'Damage costs'!$C$16:$C$43,0))/1000,AO58*INDEX('Damage costs'!$Y$16:$Y$43,MATCH($B143,'Damage costs'!$C$16:$C$43,0))/1000),\"\")","v":""},{"$f":"IFERROR(IF(OR($C$144=FALSE,LEFT($B143,3)<>\"NOX\"),AP58*INDEX('Damage costs'!$U$16:$U$43,MATCH($B143,'Damage costs'!$C$16:$C$43,0))/1000,AP58*INDEX('Damage costs'!$Y$16:$Y$43,MATCH($B143,'Damage costs'!$C$16:$C$43,0))/1000),\"\")","v":""},{"$f":"IFERROR(IF(OR($C$144=FALSE,LEFT($B143,3)<>\"NOX\"),AQ58*INDEX('Damage costs'!$U$16:$U$43,MATCH($B143,'Damage costs'!$C$16:$C$43,0))/1000,AQ58*INDEX('Damage costs'!$Y$16:$Y$43,MATCH($B143,'Damage costs'!$C$16:$C$43,0))/1000),\"\")","v":""},{"$f":"IFERROR(IF(OR($C$144=FALSE,LEFT($B143,3)<>\"NOX\"),AR58*INDEX('Damage costs'!$U$16:$U$43,MATCH($B143,'Damage costs'!$C$16:$C$43,0))/1000,AR58*INDEX('Damage costs'!$Y$16:$Y$43,MATCH($B143,'Damage costs'!$C$16:$C$43,0))/1000),\"\")","v":""},{"$f":"IFERROR(IF(OR($C$144=FALSE,LEFT($B143,3)<>\"NOX\"),AS58*INDEX('Damage costs'!$U$16:$U$43,MATCH($B143,'Damage costs'!$C$16:$C$43,0))/1000,AS58*INDEX('Damage costs'!$Y$16:$Y$43,MATCH($B143,'Damage costs'!$C$16:$C$43,0))/1000),\"\")","v":""},{"$f":"IFERROR(IF(OR($C$144=FALSE,LEFT($B143,3)<>\"NOX\"),AT58*INDEX('Damage costs'!$U$16:$U$43,MATCH($B143,'Damage costs'!$C$16:$C$43,0))/1000,AT58*INDEX('Damage costs'!$Y$16:$Y$43,MATCH($B143,'Damage costs'!$C$16:$C$43,0))/1000),\"\")","v":""},{"$f":"IFERROR(IF(OR($C$144=FALSE,LEFT($B143,3)<>\"NOX\"),AU58*INDEX('Damage costs'!$U$16:$U$43,MATCH($B143,'Damage costs'!$C$16:$C$43,0))/1000,AU58*INDEX('Damage costs'!$Y$16:$Y$43,MATCH($B143,'Damage costs'!$C$16:$C$43,0))/1000),\"\")","v":""},{"$f":"IFERROR(IF(OR($C$144=FALSE,LEFT($B143,3)<>\"NOX\"),AV58*INDEX('Damage costs'!$U$16:$U$43,MATCH($B143,'Damage costs'!$C$16:$C$43,0))/1000,AV58*INDEX('Damage costs'!$Y$16:$Y$43,MATCH($B143,'Damage costs'!$C$16:$C$43,0))/1000),\"\")","v":""},{"$f":"IFERROR(IF(OR($C$144=FALSE,LEFT($B143,3)<>\"NOX\"),AW58*INDEX('Damage costs'!$U$16:$U$43,MATCH($B143,'Damage costs'!$C$16:$C$43,0))/1000,AW58*INDEX('Damage costs'!$Y$16:$Y$43,MATCH($B143,'Damage costs'!$C$16:$C$43,0))/1000),\"\")","v":""},{"$f":"IFERROR(IF(OR($C$144=FALSE,LEFT($B143,3)<>\"NOX\"),AX58*INDEX('Damage costs'!$U$16:$U$43,MATCH($B143,'Damage costs'!$C$16:$C$43,0))/1000,AX58*INDEX('Damage costs'!$Y$16:$Y$43,MATCH($B143,'Damage costs'!$C$16:$C$43,0))/1000),\"\")","v":""},{"$f":"IFERROR(IF(OR($C$144=FALSE,LEFT($B143,3)<>\"NOX\"),AY58*INDEX('Damage costs'!$U$16:$U$43,MATCH($B143,'Damage costs'!$C$16:$C$43,0))/1000,AY58*INDEX('Damage costs'!$Y$16:$Y$43,MATCH($B143,'Damage costs'!$C$16:$C$43,0))/1000),\"\")","v":""},{"$f":"IFERROR(IF(OR($C$144=FALSE,LEFT($B143,3)<>\"NOX\"),AZ58*INDEX('Damage costs'!$U$16:$U$43,MATCH($B143,'Damage costs'!$C$16:$C$43,0))/1000,AZ58*INDEX('Damage costs'!$Y$16:$Y$43,MATCH($B143,'Damage costs'!$C$16:$C$43,0))/1000),\"\")","v":""},{"$f":"IFERROR(IF(OR($C$144=FALSE,LEFT($B143,3)<>\"NOX\"),BA58*INDEX('Damage costs'!$U$16:$U$43,MATCH($B143,'Damage costs'!$C$16:$C$43,0))/1000,BA58*INDEX('Damage costs'!$Y$16:$Y$43,MATCH($B143,'Damage costs'!$C$16:$C$43,0))/1000),\"\")","v":""},{"$f":"IFERROR(IF(OR($C$144=FALSE,LEFT($B143,3)<>\"NOX\"),BB58*INDEX('Damage costs'!$U$16:$U$43,MATCH($B143,'Damage costs'!$C$16:$C$43,0))/1000,BB58*INDEX('Damage costs'!$Y$16:$Y$43,MATCH($B143,'Damage costs'!$C$16:$C$43,0))/1000),\"\")","v":""},{"$f":"IFERROR(IF(OR($C$144=FALSE,LEFT($B143,3)<>\"NOX\"),BC58*INDEX('Damage costs'!$U$16:$U$43,MATCH($B143,'Damage costs'!$C$16:$C$43,0))/1000,BC58*INDEX('Damage costs'!$Y$16:$Y$43,MATCH($B143,'Damage costs'!$C$16:$C$43,0))/1000),\"\")","v":""},{"$f":"IFERROR(IF(OR($C$144=FALSE,LEFT($B143,3)<>\"NOX\"),BD58*INDEX('Damage costs'!$U$16:$U$43,MATCH($B143,'Damage costs'!$C$16:$C$43,0))/1000,BD58*INDEX('Damage costs'!$Y$16:$Y$43,MATCH($B143,'Damage costs'!$C$16:$C$43,0))/1000),\"\")","v":""},{"$f":"IFERROR(IF(OR($C$144=FALSE,LEFT($B143,3)<>\"NOX\"),BE58*INDEX('Damage costs'!$U$16:$U$43,MATCH($B143,'Damage costs'!$C$16:$C$43,0))/1000,BE58*INDEX('Damage costs'!$Y$16:$Y$43,MATCH($B143,'Damage costs'!$C$16:$C$43,0))/1000),\"\")","v":""},{"$f":"IFERROR(IF(OR($C$144=FALSE,LEFT($B143,3)<>\"NOX\"),BF58*INDEX('Damage costs'!$U$16:$U$43,MATCH($B143,'Damage costs'!$C$16:$C$43,0))/1000,BF58*INDEX('Damage costs'!$Y$16:$Y$43,MATCH($B143,'Damage costs'!$C$16:$C$43,0))/1000),\"\")","v":""},{"$f":"IFERROR(IF(OR($C$144=FALSE,LEFT($B143,3)<>\"NOX\"),BG58*INDEX('Damage costs'!$U$16:$U$43,MATCH($B143,'Damage costs'!$C$16:$C$43,0))/1000,BG58*INDEX('Damage costs'!$Y$16:$Y$43,MATCH($B143,'Damage costs'!$C$16:$C$43,0))/1000),\"\")","v":""},{"$f":"IFERROR(IF(OR($C$144=FALSE,LEFT($B143,3)<>\"NOX\"),BH58*INDEX('Damage costs'!$U$16:$U$43,MATCH($B143,'Damage costs'!$C$16:$C$43,0))/1000,BH58*INDEX('Damage costs'!$Y$16:$Y$43,MATCH($B143,'Damage costs'!$C$16:$C$43,0))/1000),\"\")","v":""},{"$f":"IFERROR(IF(OR($C$144=FALSE,LEFT($B143,3)<>\"NOX\"),BI58*INDEX('Damage costs'!$U$16:$U$43,MATCH($B143,'Damage costs'!$C$16:$C$43,0))/1000,BI58*INDEX('Damage costs'!$Y$16:$Y$43,MATCH($B143,'Damage costs'!$C$16:$C$43,0))/1000),\"\")","v":""},{"$f":"IFERROR(IF(OR($C$144=FALSE,LEFT($B143,3)<>\"NOX\"),BJ58*INDEX('Damage costs'!$U$16:$U$43,MATCH($B143,'Damage costs'!$C$16:$C$43,0))/1000,BJ58*INDEX('Damage costs'!$Y$16:$Y$43,MATCH($B143,'Damage costs'!$C$16:$C$43,0))/1000),\"\")","v":""},{"$f":"IFERROR(IF(OR($C$144=FALSE,LEFT($B143,3)<>\"NOX\"),BK58*INDEX('Damage costs'!$U$16:$U$43,MATCH($B143,'Damage costs'!$C$16:$C$43,0))/1000,BK58*INDEX('Damage costs'!$Y$16:$Y$43,MATCH($B143,'Damage costs'!$C$16:$C$43,0))/1000),\"\")","v":""},{"$f":"IFERROR(IF(OR($C$144=FALSE,LEFT($B143,3)<>\"NOX\"),BL58*INDEX('Damage costs'!$U$16:$U$43,MATCH($B143,'Damage costs'!$C$16:$C$43,0))/1000,BL58*INDEX('Damage costs'!$Y$16:$Y$43,MATCH($B143,'Damage costs'!$C$16:$C$43,0))/1000),\"\")","v":""},{"$f":"IFERROR(IF(OR($C$144=FALSE,LEFT($B143,3)<>\"NOX\"),BM58*INDEX('Damage costs'!$U$16:$U$43,MATCH($B143,'Damage costs'!$C$16:$C$43,0))/1000,BM58*INDEX('Damage costs'!$Y$16:$Y$43,MATCH($B143,'Damage costs'!$C$16:$C$43,0))/1000),\"\")","v":""},{"$f":"IFERROR(IF(OR($C$144=FALSE,LEFT($B143,3)<>\"NOX\"),BN58*INDEX('Damage costs'!$U$16:$U$43,MATCH($B143,'Damage costs'!$C$16:$C$43,0))/1000,BN58*INDEX('Damage costs'!$Y$16:$Y$43,MATCH($B143,'Damage costs'!$C$16:$C$43,0))/1000),\"\")","v":""},{"$f":"IFERROR(IF(OR($C$144=FALSE,LEFT($B143,3)<>\"NOX\"),BO58*INDEX('Damage costs'!$U$16:$U$43,MATCH($B143,'Damage costs'!$C$16:$C$43,0))/1000,BO58*INDEX('Damage costs'!$Y$16:$Y$43,MATCH($B143,'Damage costs'!$C$16:$C$43,0))/1000),\"\")","v":""},{"$f":"IFERROR(IF(OR($C$144=FALSE,LEFT($B143,3)<>\"NOX\"),BP58*INDEX('Damage costs'!$U$16:$U$43,MATCH($B143,'Damage costs'!$C$16:$C$43,0))/1000,BP58*INDEX('Damage costs'!$Y$16:$Y$43,MATCH($B143,'Damage costs'!$C$16:$C$43,0))/1000),\"\")","v":""},{"$f":"IFERROR(IF(OR($C$144=FALSE,LEFT($B143,3)<>\"NOX\"),BQ58*INDEX('Damage costs'!$U$16:$U$43,MATCH($B143,'Damage costs'!$C$16:$C$43,0))/1000,BQ58*INDEX('Damage costs'!$Y$16:$Y$43,MATCH($B143,'Damage costs'!$C$16:$C$43,0))/1000),\"\")","v":""},{"$f":"IFERROR(IF(OR($C$144=FALSE,LEFT($B143,3)<>\"NOX\"),BR58*INDEX('Damage costs'!$U$16:$U$43,MATCH($B143,'Damage costs'!$C$16:$C$43,0))/1000,BR58*INDEX('Damage costs'!$Y$16:$Y$43,MATCH($B143,'Damage costs'!$C$16:$C$43,0))/1000),\"\")","v":""},{"$f":"IFERROR(IF(OR($C$144=FALSE,LEFT($B143,3)<>\"NOX\"),BS58*INDEX('Damage costs'!$U$16:$U$43,MATCH($B143,'Damage costs'!$C$16:$C$43,0))/1000,BS58*INDEX('Damage costs'!$Y$16:$Y$43,MATCH($B143,'Damage costs'!$C$16:$C$43,0))/1000),\"\")","v":""},{"$f":"IFERROR(IF(OR($C$144=FALSE,LEFT($B143,3)<>\"NOX\"),BT58*INDEX('Damage costs'!$U$16:$U$43,MATCH($B143,'Damage costs'!$C$16:$C$43,0))/1000,BT58*INDEX('Damage costs'!$Y$16:$Y$43,MATCH($B143,'Damage costs'!$C$16:$C$43,0))/1000),\"\")","v":""},{"$f":"IFERROR(IF(OR($C$144=FALSE,LEFT($B143,3)<>\"NOX\"),BU58*INDEX('Damage costs'!$U$16:$U$43,MATCH($B143,'Damage costs'!$C$16:$C$43,0))/1000,BU58*INDEX('Damage costs'!$Y$16:$Y$43,MATCH($B143,'Damage costs'!$C$16:$C$43,0))/1000),\"\")","v":""},{"$f":"IFERROR(IF(OR($C$144=FALSE,LEFT($B143,3)<>\"NOX\"),BV58*INDEX('Damage costs'!$U$16:$U$43,MATCH($B143,'Damage costs'!$C$16:$C$43,0))/1000,BV58*INDEX('Damage costs'!$Y$16:$Y$43,MATCH($B143,'Damage costs'!$C$16:$C$43,0))/1000),\"\")","v":""},{"$f":"IFERROR(IF(OR($C$144=FALSE,LEFT($B143,3)<>\"NOX\"),BW58*INDEX('Damage costs'!$U$16:$U$43,MATCH($B143,'Damage costs'!$C$16:$C$43,0))/1000,BW58*INDEX('Damage costs'!$Y$16:$Y$43,MATCH($B143,'Damage costs'!$C$16:$C$43,0))/1000),\"\")","v":""},{"$f":"IFERROR(IF(OR($C$144=FALSE,LEFT($B143,3)<>\"NOX\"),BX58*INDEX('Damage costs'!$U$16:$U$43,MATCH($B143,'Damage costs'!$C$16:$C$43,0))/1000,BX58*INDEX('Damage costs'!$Y$16:$Y$43,MATCH($B143,'Damage costs'!$C$16:$C$43,0))/1000),\"\")","v":""},{"$f":"IFERROR(IF(OR($C$144=FALSE,LEFT($B143,3)<>\"NOX\"),BY58*INDEX('Damage costs'!$U$16:$U$43,MATCH($B143,'Damage costs'!$C$16:$C$43,0))/1000,BY58*INDEX('Damage costs'!$Y$16:$Y$43,MATCH($B143,'Damage costs'!$C$16:$C$43,0))/1000),\"\")","v":""},{"$f":"IFERROR(IF(OR($C$144=FALSE,LEFT($B143,3)<>\"NOX\"),BZ58*INDEX('Damage costs'!$U$16:$U$43,MATCH($B143,'Damage costs'!$C$16:$C$43,0))/1000,BZ58*INDEX('Damage costs'!$Y$16:$Y$43,MATCH($B143,'Damage costs'!$C$16:$C$43,0))/1000),\"\")","v":""},{"$f":"IFERROR(IF(OR($C$144=FALSE,LEFT($B143,3)<>\"NOX\"),CA58*INDEX('Damage costs'!$U$16:$U$43,MATCH($B143,'Damage costs'!$C$16:$C$43,0))/1000,CA58*INDEX('Damage costs'!$Y$16:$Y$43,MATCH($B143,'Damage costs'!$C$16:$C$43,0))/1000),\"\")","v":""},{"$f":"IFERROR(IF(OR($C$144=FALSE,LEFT($B143,3)<>\"NOX\"),CB58*INDEX('Damage costs'!$U$16:$U$43,MATCH($B143,'Damage costs'!$C$16:$C$43,0))/1000,CB58*INDEX('Damage costs'!$Y$16:$Y$43,MATCH($B143,'Damage costs'!$C$16:$C$43,0))/1000),\"\")","v":""},{"$f":"IFERROR(IF(OR($C$144=FALSE,LEFT($B143,3)<>\"NOX\"),CC58*INDEX('Damage costs'!$U$16:$U$43,MATCH($B143,'Damage costs'!$C$16:$C$43,0))/1000,CC58*INDEX('Damage costs'!$Y$16:$Y$43,MATCH($B143,'Damage costs'!$C$16:$C$43,0))/1000),\"\")","v":""},{"$f":"IFERROR(IF(OR($C$144=FALSE,LEFT($B143,3)<>\"NOX\"),CD58*INDEX('Damage costs'!$U$16:$U$43,MATCH($B143,'Damage costs'!$C$16:$C$43,0))/1000,CD58*INDEX('Damage costs'!$Y$16:$Y$43,MATCH($B143,'Damage costs'!$C$16:$C$43,0))/1000),\"\")","v":""},{"$f":"IFERROR(IF(OR($C$144=FALSE,LEFT($B143,3)<>\"NOX\"),CE58*INDEX('Damage costs'!$U$16:$U$43,MATCH($B143,'Damage costs'!$C$16:$C$43,0))/1000,CE58*INDEX('Damage costs'!$Y$16:$Y$43,MATCH($B143,'Damage costs'!$C$16:$C$43,0))/1000),\"\")","v":""},{"$f":"IFERROR(IF(OR($C$144=FALSE,LEFT($B143,3)<>\"NOX\"),CF58*INDEX('Damage costs'!$U$16:$U$43,MATCH($B143,'Damage costs'!$C$16:$C$43,0))/1000,CF58*INDEX('Damage costs'!$Y$16:$Y$43,MATCH($B143,'Damage costs'!$C$16:$C$43,0))/1000),\"\")","v":""},{"$f":"IFERROR(IF(OR($C$144=FALSE,LEFT($B143,3)<>\"NOX\"),CG58*INDEX('Damage costs'!$U$16:$U$43,MATCH($B143,'Damage costs'!$C$16:$C$43,0))/1000,CG58*INDEX('Damage costs'!$Y$16:$Y$43,MATCH($B143,'Damage costs'!$C$16:$C$43,0))/1000),\"\")","v":""},{"$f":"IFERROR(IF(OR($C$144=FALSE,LEFT($B143,3)<>\"NOX\"),CH58*INDEX('Damage costs'!$U$16:$U$43,MATCH($B143,'Damage costs'!$C$16:$C$43,0))/1000,CH58*INDEX('Damage costs'!$Y$16:$Y$43,MATCH($B143,'Damage costs'!$C$16:$C$43,0))/1000),\"\")","v":""},{"$f":"IFERROR(IF(OR($C$144=FALSE,LEFT($B143,3)<>\"NOX\"),CI58*INDEX('Damage costs'!$U$16:$U$43,MATCH($B143,'Damage costs'!$C$16:$C$43,0))/1000,CI58*INDEX('Damage costs'!$Y$16:$Y$43,MATCH($B143,'Damage costs'!$C$16:$C$43,0))/1000),\"\")","v":""},{"$f":"IFERROR(IF(OR($C$144=FALSE,LEFT($B143,3)<>\"NOX\"),CJ58*INDEX('Damage costs'!$U$16:$U$43,MATCH($B143,'Damage costs'!$C$16:$C$43,0))/1000,CJ58*INDEX('Damage costs'!$Y$16:$Y$43,MATCH($B143,'Damage costs'!$C$16:$C$43,0))/1000),\"\")","v":""},{"$f":"IFERROR(IF(OR($C$144=FALSE,LEFT($B143,3)<>\"NOX\"),CK58*INDEX('Damage costs'!$U$16:$U$43,MATCH($B143,'Damage costs'!$C$16:$C$43,0))/1000,CK58*INDEX('Damage costs'!$Y$16:$Y$43,MATCH($B143,'Damage costs'!$C$16:$C$43,0))/1000),\"\")","v":""},{"$f":"IFERROR(IF(OR($C$144=FALSE,LEFT($B143,3)<>\"NOX\"),CL58*INDEX('Damage costs'!$U$16:$U$43,MATCH($B143,'Damage costs'!$C$16:$C$43,0))/1000,CL58*INDEX('Damage costs'!$Y$16:$Y$43,MATCH($B143,'Damage costs'!$C$16:$C$43,0))/1000),\"\")","v":""},{"$f":"IFERROR(IF(OR($C$144=FALSE,LEFT($B143,3)<>\"NOX\"),CM58*INDEX('Damage costs'!$U$16:$U$43,MATCH($B143,'Damage costs'!$C$16:$C$43,0))/1000,CM58*INDEX('Damage costs'!$Y$16:$Y$43,MATCH($B143,'Damage costs'!$C$16:$C$43,0))/1000),\"\")","v":""},{"$f":"IFERROR(IF(OR($C$144=FALSE,LEFT($B143,3)<>\"NOX\"),CN58*INDEX('Damage costs'!$U$16:$U$43,MATCH($B143,'Damage costs'!$C$16:$C$43,0))/1000,CN58*INDEX('Damage costs'!$Y$16:$Y$43,MATCH($B143,'Damage costs'!$C$16:$C$43,0))/1000),\"\")","v":""},{"$f":"IFERROR(IF(OR($C$144=FALSE,LEFT($B143,3)<>\"NOX\"),CO58*INDEX('Damage costs'!$U$16:$U$43,MATCH($B143,'Damage costs'!$C$16:$C$43,0))/1000,CO58*INDEX('Damage costs'!$Y$16:$Y$43,MATCH($B143,'Damage costs'!$C$16:$C$43,0))/1000),\"\")","v":""},{"$f":"IFERROR(IF(OR($C$144=FALSE,LEFT($B143,3)<>\"NOX\"),CP58*INDEX('Damage costs'!$U$16:$U$43,MATCH($B143,'Damage costs'!$C$16:$C$43,0))/1000,CP58*INDEX('Damage costs'!$Y$16:$Y$43,MATCH($B143,'Damage costs'!$C$16:$C$43,0))/1000),\"\")","v":""},{"$f":"IFERROR(IF(OR($C$144=FALSE,LEFT($B143,3)<>\"NOX\"),CQ58*INDEX('Damage costs'!$U$16:$U$43,MATCH($B143,'Damage costs'!$C$16:$C$43,0))/1000,CQ58*INDEX('Damage costs'!$Y$16:$Y$43,MATCH($B143,'Damage costs'!$C$16:$C$43,0))/1000),\"\")","v":""},{"$f":"IFERROR(IF(OR($C$144=FALSE,LEFT($B143,3)<>\"NOX\"),CR58*INDEX('Damage costs'!$U$16:$U$43,MATCH($B143,'Damage costs'!$C$16:$C$43,0))/1000,CR58*INDEX('Damage costs'!$Y$16:$Y$43,MATCH($B143,'Damage costs'!$C$16:$C$43,0))/1000),\"\")","v":""},{"$f":"IFERROR(IF(OR($C$144=FALSE,LEFT($B143,3)<>\"NOX\"),CS58*INDEX('Damage costs'!$U$16:$U$43,MATCH($B143,'Damage costs'!$C$16:$C$43,0))/1000,CS58*INDEX('Damage costs'!$Y$16:$Y$43,MATCH($B143,'Damage costs'!$C$16:$C$43,0))/1000),\"\")","v":""},{"$f":"IFERROR(IF(OR($C$144=FALSE,LEFT($B143,3)<>\"NOX\"),CT58*INDEX('Damage costs'!$U$16:$U$43,MATCH($B143,'Damage costs'!$C$16:$C$43,0))/1000,CT58*INDEX('Damage costs'!$Y$16:$Y$43,MATCH($B143,'Damage costs'!$C$16:$C$43,0))/1000),\"\")","v":""},{"$f":"IFERROR(IF(OR($C$144=FALSE,LEFT($B143,3)<>\"NOX\"),CU58*INDEX('Damage costs'!$U$16:$U$43,MATCH($B143,'Damage costs'!$C$16:$C$43,0))/1000,CU58*INDEX('Damage costs'!$Y$16:$Y$43,MATCH($B143,'Damage costs'!$C$16:$C$43,0))/1000),\"\")","v":""},{"$f":"IFERROR(IF(OR($C$144=FALSE,LEFT($B143,3)<>\"NOX\"),CV58*INDEX('Damage costs'!$U$16:$U$43,MATCH($B143,'Damage costs'!$C$16:$C$43,0))/1000,CV58*INDEX('Damage costs'!$Y$16:$Y$43,MATCH($B143,'Damage costs'!$C$16:$C$43,0))/1000),\"\")","v":""},{"$f":"IFERROR(IF(OR($C$144=FALSE,LEFT($B143,3)<>\"NOX\"),CW58*INDEX('Damage costs'!$U$16:$U$43,MATCH($B143,'Damage costs'!$C$16:$C$43,0))/1000,CW58*INDEX('Damage costs'!$Y$16:$Y$43,MATCH($B143,'Damage costs'!$C$16:$C$43,0))/1000),\"\")","v":""},{"$f":"IFERROR(IF(OR($C$144=FALSE,LEFT($B143,3)<>\"NOX\"),CX58*INDEX('Damage costs'!$U$16:$U$43,MATCH($B143,'Damage costs'!$C$16:$C$43,0))/1000,CX58*INDEX('Damage costs'!$Y$16:$Y$43,MATCH($B143,'Damage costs'!$C$16:$C$43,0))/1000),\"\")","v":""},{"$f":"IFERROR(IF(OR($C$144=FALSE,LEFT($B143,3)<>\"NOX\"),CY58*INDEX('Damage costs'!$U$16:$U$43,MATCH($B143,'Damage costs'!$C$16:$C$43,0))/1000,CY58*INDEX('Damage costs'!$Y$16:$Y$43,MATCH($B143,'Damage costs'!$C$16:$C$43,0))/1000),\"\")","v":""}]
[null,"PM10 Used",{"$f":"IF(OR(LEFT(B138,4)=\"PM10\",LEFT(B139,4)=\"PM10\",LEFT(B140,4)=\"PM10\",LEFT(B141,4)=\"PM10\",LEFT(B142,4)=\"PM10\",LEFT(B143,4)=\"PM10\"),TRUE,FALSE)","v":false}]
[]
[null,"Uplift pa","%",{"$f":"'Discount and deflators'!$H$5","v":0.02}]
[null,"Uplift factor",null,{"$f":"IF(D$6=0,0,(1+$D146)^(D$6-'Data Input - General'!$F$22))","v":1},{"$f":"IF(E$6=0,0,(1+$D146)^(E$6-'Data Input - General'!$F$22))","v":1.02},{"$f":"IF(F$6=0,0,(1+$D146)^(F$6-'Data Input - General'!$F$22))","v":1.0404},{"$f":"IF(G$6=0,0,(1+$D146)^(G$6-'Data Input - General'!$F$22))","v":1.0612079999999999},{"$f":"IF(H$6=0,0,(1+$D146)^(H$6-'Data Input - General'!$F$22))","v":1.08243216},{"$f":"IF(I$6=0,0,(1+$D146)^(I$6-'Data Input - General'!$F$22))","v":1.1040808032},{"$f":"IF(J$6=0,0,(1+$D146)^(J$6-'Data Input - General'!$F$22))","v":1.1261624192640001},{"$f":"IF(K$6=0,0,(1+$D146)^(K$6-'Data Input - General'!$F$22))","v":1.1486856676492798},{"$f":"IF(L$6=0,0,(1+$D146)^(L$6-'Data Input - General'!$F$22))","v":1.1716593810022655},{"$f":"IF(M$6=0,0,(1+$D146)^(M$6-'Data Input - General'!$F$22))","v":1.1950925686223108},{"$f":"IF(N$6=0,0,(1+$D146)^(N$6-'Data Input - General'!$F$22))","v":1.2189944199947571},{"$f":"IF(O$6=0,0,(1+$D146)^(O$6-'Data Input - General'!$F$22))","v":1.243374308394652},{"$f":"IF(P$6=0,0,(1+$D146)^(P$6-'Data Input - General'!$F$22))","v":1.2682417945625453},{"$f":"IF(Q$6=0,0,(1+$D146)^(Q$6-'Data Input - General'!$F$22))","v":1.2936066304537961},{"$f":"IF(R$6=0,0,(1+$D146)^(R$6-'Data Input - General'!$F$22))","v":1.3194787630628722},{"$f":"IF(S$6=0,0,(1+$D146)^(S$6-'Data Input - General'!$F$22))","v":1.3458683383241292},{"$f":"IF(T$6=0,0,(1+$D146)^(T$6-'Data Input - General'!$F$22))","v":1.372785705090612},{"$f":"IF(U$6=0,0,(1+$D146)^(U$6-'Data Input - General'!$F$22))","v":1.4002414191924244},{"$f":"IF(V$6=0,0,(1+$D146)^(V$6-'Data Input - General'!$F$22))","v":1.4282462475762727},{"$f":"IF(W$6=0,0,(1+$D146)^(W$6-'Data Input - General'!$F$22))","v":1.4568111725277981},{"$f":"IF(X$6=0,0,(1+$D146)^(X$6-'Data Input - General'!$F$22))","v":1.4859473959783542},{"$f":"IF(Y$6=0,0,(1+$D146)^(Y$6-'Data Input - General'!$F$22))","v":1.5156663438979212},{"$f":"IF(Z$6=0,0,(1+$D146)^(Z$6-'Data Input - General'!$F$22))","v":1.5459796707758797},{"$f":"IF(AA$6=0,0,(1+$D146)^(AA$6-'Data Input - General'!$F$22))","v":1.576899264191397},{"$f":"IF(AB$6=0,0,(1+$D146)^(AB$6-'Data Input - General'!$F$22))","v":1.608437249475225},{"$f":"IF(AC$6=0,0,(1+$D146)^(AC$6-'Data Input - General'!$F$22))","v":1.6406059944647295},{"$f":"IF(AD$6=0,0,(1+$D146)^(AD$6-'Data Input - General'!$F$22))","v":1.6734181143540243},{"$f":"IF(AE$6=0,0,(1+$D146)^(AE$6-'Data Input - General'!$F$22))","v":1.7068864766411045},{"$f":"IF(AF$6=0,0,(1+$D146)^(AF$6-'Data Input - General'!$F$22))","v":1.7410242061739269},{"$f":"IF(AG$6=0,0,(1+$D146)^(AG$6-'Data Input - General'!$F$22))","v":1.7758446902974052},{"$f":"IF(AH$6=0,0,(1+$D146)^(AH$6-'Data Input - General'!$F$22))","v":1.8113615841033535},{"$f":"IF(AI$6=0,0,(1+$D146)^(AI$6-'Data Input - General'!$F$22))","v":0},{"$f":"IF(AJ$6=0,0,(1+$D146)^(AJ$6-'Data Input - General'!$F$22))","v":0},{"$f":"IF(AK$6=0,0,(1+$D146)^(AK$6-'Data Input - General'!$F$22))","v":0},{"$f":"IF(AL$6=0,0,(1+$D146)^(AL$6-'Data Input - General'!$F$22))","v":0},{"$f":"IF(AM$6=0,0,(1+$D146)^(AM$6-'Data Input - General'!$F$22))","v":0},{"$f":"IF(AN$6=0,0,(1+$D146)^(AN$6-'Data Input - General'!$F$22))","v":0},{"$f":"IF(AO$6=0,0,(1+$D146)^(AO$6-'Data Input - General'!$F$22))","v":0},{"$f":"IF(AP$6=0,0,(1+$D146)^(AP$6-'Data Input - General'!$F$22))","v":0},{"$f":"IF(AQ$6=0,0,(1+$D146)^(AQ$6-'Data Input - General'!$F$22))","v":0},{"$f":"IF(AR$6=0,0,(1+$D146)^(AR$6-'Data Input - General'!$F$22))","v":0},{"$f":"IF(AS$6=0,0,(1+$D146)^(AS$6-'Data Input - General'!$F$22))","v":0},{"$f":"IF(AT$6=0,0,(1+$D146)^(AT$6-'Data Input - General'!$F$22))","v":0},{"$f":"IF(AU$6=0,0,(1+$D146)^(AU$6-'Data Input - General'!$F$22))","v":0},{"$f":"IF(AV$6=0,0,(1+$D146)^(AV$6-'Data Input - General'!$F$22))","v":0},{"$f":"IF(AW$6=0,0,(1+$D146)^(AW$6-'Data Input - General'!$F$22))","v":0},{"$f":"IF(AX$6=0,0,(1+$D146)^(AX$6-'Data Input - General'!$F$22))","v":0},{"$f":"IF(AY$6=0,0,(1+$D146)^(AY$6-'Data Input - General'!$F$22))","v":0},{"$f":"IF(AZ$6=0,0,(1+$D146)^(AZ$6-'Data Input - General'!$F$22))","v":0},{"$f":"IF(BA$6=0,0,(1+$D146)^(BA$6-'Data Input - General'!$F$22))","v":0},{"$f":"IF(BB$6=0,0,(1+$D146)^(BB$6-'Data Input - General'!$F$22))","v":0},{"$f":"IF(BC$6=0,0,(1+$D146)^(BC$6-'Data Input - General'!$F$22))","v":0},{"$f":"IF(BD$6=0,0,(1+$D146)^(BD$6-'Data Input - General'!$F$22))","v":0},{"$f":"IF(BE$6=0,0,(1+$D146)^(BE$6-'Data Input - General'!$F$22))","v":0},{"$f":"IF(BF$6=0,0,(1+$D146)^(BF$6-'Data Input - General'!$F$22))","v":0},{"$f":"IF(BG$6=0,0,(1+$D146)^(BG$6-'Data Input - General'!$F$22))","v":0},{"$f":"IF(BH$6=0,0,(1+$D146)^(BH$6-'Data Input - General'!$F$22))","v":0},{"$f":"IF(BI$6=0,0,(1+$D146)^(BI$6-'Data Input - General'!$F$22))","v":0},{"$f":"IF(BJ$6=0,0,(1+$D146)^(BJ$6-'Data Input - General'!$F$22))","v":0},{"$f":"IF(BK$6=0,0,(1+$D146)^(BK$6-'Data Input - General'!$F$22))","v":0},{"$f":"IF(BL$6=0,0,(1+$D146)^(BL$6-'Data Input - General'!$F$22))","v":0},{"$f":"IF(BM$6=0,0,(1+$D146)^(BM$6-'Data Input - General'!$F$22))","v":0},{"$f":"IF(BN$6=0,0,(1+$D146)^(BN$6-'Data Input - General'!$F$22))","v":0},{"$f":"IF(BO$6=0,0,(1+$D146)^(BO$6-'Data Input - General'!$F$22))","v":0},{"$f":"IF(BP$6=0,0,(1+$D146)^(BP$6-'Data Input - General'!$F$22))","v":0},{"$f":"IF(BQ$6=0,0,(1+$D146)^(BQ$6-'Data Input - General'!$F$22))","v":0},{"$f":"IF(BR$6=0,0,(1+$D146)^(BR$6-'Data Input - General'!$F$22))","v":0},{"$f":"IF(BS$6=0,0,(1+$D146)^(BS$6-'Data Input - General'!$F$22))","v":0},{"$f":"IF(BT$6=0,0,(1+$D146)^(BT$6-'Data Input - General'!$F$22))","v":0},{"$f":"IF(BU$6=0,0,(1+$D146)^(BU$6-'Data Input - General'!$F$22))","v":0},{"$f":"IF(BV$6=0,0,(1+$D146)^(BV$6-'Data Input - General'!$F$22))","v":0},{"$f":"IF(BW$6=0,0,(1+$D146)^(BW$6-'Data Input - General'!$F$22))","v":0},{"$f":"IF(BX$6=0,0,(1+$D146)^(BX$6-'Data Input - General'!$F$22))","v":0},{"$f":"IF(BY$6=0,0,(1+$D146)^(BY$6-'Data Input - General'!$F$22))","v":0},{"$f":"IF(BZ$6=0,0,(1+$D146)^(BZ$6-'Data Input - General'!$F$22))","v":0},{"$f":"IF(CA$6=0,0,(1+$D146)^(CA$6-'Data Input - General'!$F$22))","v":0},{"$f":"IF(CB$6=0,0,(1+$D146)^(CB$6-'Data Input - General'!$F$22))","v":0},{"$f":"IF(CC$6=0,0,(1+$D146)^(CC$6-'Data Input - General'!$F$22))","v":0},{"$f":"IF(CD$6=0,0,(1+$D146)^(CD$6-'Data Input - General'!$F$22))","v":0},{"$f":"IF(CE$6=0,0,(1+$D146)^(CE$6-'Data Input - General'!$F$22))","v":0},{"$f":"IF(CF$6=0,0,(1+$D146)^(CF$6-'Data Input - General'!$F$22))","v":0},{"$f":"IF(CG$6=0,0,(1+$D146)^(CG$6-'Data Input - General'!$F$22))","v":0},{"$f":"IF(CH$6=0,0,(1+$D146)^(CH$6-'Data Input - General'!$F$22))","v":0},{"$f":"IF(CI$6=0,0,(1+$D146)^(CI$6-'Data Input - General'!$F$22))","v":0},{"$f":"IF(CJ$6=0,0,(1+$D146)^(CJ$6-'Data Input - General'!$F$22))","v":0},{"$f":"IF(CK$6=0,0,(1+$D146)^(CK$6-'Data Input - General'!$F$22))","v":0},{"$f":"IF(CL$6=0,0,(1+$D146)^(CL$6-'Data Input - General'!$F$22))","v":0},{"$f":"IF(CM$6=0,0,(1+$D146)^(CM$6-'Data Input - General'!$F$22))","v":0},{"$f":"IF(CN$6=0,0,(1+$D146)^(CN$6-'Data Input - General'!$F$22))","v":0},{"$f":"IF(CO$6=0,0,(1+$D146)^(CO$6-'Data Input - General'!$F$22))","v":0},{"$f":"IF(CP$6=0,0,(1+$D146)^(CP$6-'Data Input - General'!$F$22))","v":0},{"$f":"IF(CQ$6=0,0,(1+$D146)^(CQ$6-'Data Input - General'!$F$22))","v":0},{"$f":"IF(CR$6=0,0,(1+$D146)^(CR$6-'Data Input - General'!$F$22))","v":0},{"$f":"IF(CS$6=0,0,(1+$D146)^(CS$6-'Data Input - General'!$F$22))","v":0},{"$f":"IF(CT$6=0,0,(1+$D146)^(CT$6-'Data Input - General'!$F$22))","v":0},{"$f":"IF(CU$6=0,0,(1+$D146)^(CU$6-'Data Input - General'!$F$22))","v":0},{"$f":"IF(CV$6=0,0,(1+$D146)^(CV$6-'Data Input - General'!$F$22))","v":0},{"$f":"IF(CW$6=0,0,(1+$D146)^(CW$6-'Data Input - General'!$F$22))","v":0},{"$f":"IF(CX$6=0,0,(1+$D146)^(CX$6-'Data Input - General'!$F$22))","v":0},{"$f":"IF(CY$6=0,0,(1+$D146)^(CY$6-'Data Input - General'!$F$22))","v":0}]
[null,"Total value","£000's",{"$f":"SUM(D138:D143)*D147","v":5.1074397105762372},{"$f":"SUM(E138:E143)*E147","v":5.2095885047877619},{"$f":"SUM(F138:F143)*F147","v":5.3137802748835172},5.4200558803811871,5.528456997988811,5.639026137948588,5.75180666070756,5.8668427939217098,0,0,0,0,0,0,0,0,0,0,0,0,0,0,0,0,0,0,0,0,0,0,0,0,{"$f":"SUM(AJ138:AJ143)*AJ147","v":0},0,0,0,0,0,0,0,0,0,0,0,0,0,0,0,0,0,0,0,0,0,0,0,0,0,0,0,{"$f":"SUM(BL138:BL143)*BL147","v":0},0,0,0,0,0,0,0,0,0,0,0,0,0,0,0,0,0,0,0,0,0,0,0,0,0,0,0,0,0,0,0,0,0,0,0,0,0,0,0]
[null,"Discounted total value","£000's",{"$f":"D148*D$7","v":5.1074397105762372},5.033418845205567,4.9604707459996895,4.8885798656228827,4.817730882063131,4.747908695366565,4.679098424419224,4.6112854037754669,0,0,0,0,0,0,0,0,0,0,0,0,0,0,0,0,0,0,0,0,0,0,0,0,0,0,0,0,0,0,0,0,0,0,0,0,0,0,0,0,0,0,0,0,0,0,0,0,0,0,0,0,0,0,0,0,{"$f":"BP148*BP$7","v":0},0,0,0,0,0,0,0,0,0,0,0,0,0,0,0,0,0,0,0,0,0,0,0,0,0,0,0,0,0,0,0,0,0,0,0]
[]
[null,"GHG emissions"]
[null,"Traded","tCO2e",{"$f":"D$80+IF('Data Input - General'!$F$10=\"Yes\",Calc_Option3!D$81,0)+IF('Data Input - General'!$F$12=\"Yes\",Calc_Option3!D$75,0)","v":96633.146796375047},{"$f":"E$80+IF('Data Input - General'!$F$10=\"Yes\",Calc_Option3!E$81,0)+IF('Data Input - General'!$F$12=\"Yes\",Calc_Option3!E$75,0)","v":96498.642363144347},{"$f":"F$80+IF('Data Input - General'!$F$10=\"Yes\",Calc_Option3!F$81,0)+IF('Data Input - General'!$F$12=\"Yes\",Calc_Option3!F$75,0)","v":96376.596689503611},{"$f":"G$80+IF('Data Input - General'!$F$10=\"Yes\",Calc_Option3!G$81,0)+IF('Data Input - General'!$F$12=\"Yes\",Calc_Option3!G$75,0)","v":96305.403172857536},{"$f":"H$80+IF('Data Input - General'!$F$10=\"Yes\",Calc_Option3!H$81,0)+IF('Data Input - General'!$F$12=\"Yes\",Calc_Option3!H$75,0)","v":96182.183852599657},{"$f":"I$80+IF('Data Input - General'!$F$10=\"Yes\",Calc_Option3!I$81,0)+IF('Data Input - General'!$F$12=\"Yes\",Calc_Option3!I$75,0)","v":96217.574047116417},{"$f":"J$80+IF('Data Input - General'!$F$10=\"Yes\",Calc_Option3!J$81,0)+IF('Data Input - General'!$F$12=\"Yes\",Calc_Option3!J$75,0)","v":96170.995027944969},{"$f":"K$80+IF('Data Input - General'!$F$10=\"Yes\",Calc_Option3!K$81,0)+IF('Data Input - General'!$F$12=\"Yes\",Calc_Option3!K$75,0)","v":96093.79707317354},{"$f":"L$80+IF('Data Input - General'!$F$10=\"Yes\",Calc_Option3!L$81,0)+IF('Data Input - General'!$F$12=\"Yes\",Calc_Option3!L$75,0)","v":0},{"$f":"M$80+IF('Data Input - General'!$F$10=\"Yes\",Calc_Option3!M$81,0)+IF('Data Input - General'!$F$12=\"Yes\",Calc_Option3!M$75,0)","v":0},{"$f":"N$80+IF('Data Input - General'!$F$10=\"Yes\",Calc_Option3!N$81,0)+IF('Data Input - General'!$F$12=\"Yes\",Calc_Option3!N$75,0)","v":0},{"$f":"O$80+IF('Data Input - General'!$F$10=\"Yes\",Calc_Option3!O$81,0)+IF('Data Input - General'!$F$12=\"Yes\",Calc_Option3!O$75,0)","v":0},{"$f":"P$80+IF('Data Input - General'!$F$10=\"Yes\",Calc_Option3!P$81,0)+IF('Data Input - General'!$F$12=\"Yes\",Calc_Option3!P$75,0)","v":0},{"$f":"Q$80+IF('Data Input - General'!$F$10=\"Yes\",Calc_Option3!Q$81,0)+IF('Data Input - General'!$F$12=\"Yes\",Calc_Option3!Q$75,0)","v":0},{"$f":"R$80+IF('Data Input - General'!$F$10=\"Yes\",Calc_Option3!R$81,0)+IF('Data Input - General'!$F$12=\"Yes\",Calc_Option3!R$75,0)","v":0},{"$f":"S$80+IF('Data Input - General'!$F$10=\"Yes\",Calc_Option3!S$81,0)+IF('Data Input - General'!$F$12=\"Yes\",Calc_Option3!S$75,0)","v":0},{"$f":"T$80+IF('Data Input - General'!$F$10=\"Yes\",Calc_Option3!T$81,0)+IF('Data Input - General'!$F$12=\"Yes\",Calc_Option3!T$75,0)","v":0},{"$f":"U$80+IF('Data Input - General'!$F$10=\"Yes\",Calc_Option3!U$81,0)+IF('Data Input - General'!$F$12=\"Yes\",Calc_Option3!U$75,0)","v":0},{"$f":"V$80+IF('Data Input - General'!$F$10=\"Yes\",Calc_Option3!V$81,0)+IF('Data Input - General'!$F$12=\"Yes\",Calc_Option3!V$75,0)","v":0},{"$f":"W$80+IF('Data Input - General'!$F$10=\"Yes\",Calc_Option3!W$81,0)+IF('Data Input - General'!$F$12=\"Yes\",Calc_Option3!W$75,0)","v":0},{"$f":"X$80+IF('Data Input - General'!$F$10=\"Yes\",Calc_Option3!X$81,0)+IF('Data Input - General'!$F$12=\"Yes\",Calc_Option3!X$75,0)","v":0},{"$f":"Y$80+IF('Data Input - General'!$F$10=\"Yes\",Calc_Option3!Y$81,0)+IF('Data Input - General'!$F$12=\"Yes\",Calc_Option3!Y$75,0)","v":0},{"$f":"Z$80+IF('Data Input - General'!$F$10=\"Yes\",Calc_Option3!Z$81,0)+IF('Data Input - General'!$F$12=\"Yes\",Calc_Option3!Z$75,0)","v":0},{"$f":"AA$80+IF('Data Input - General'!$F$10=\"Yes\",Calc_Option3!AA$81,0)+IF('Data Input - General'!$F$12=\"Yes\",Calc_Option3!AA$75,0)","v":0},{"$f":"AB$80+IF('Data Input - General'!$F$10=\"Yes\",Calc_Option3!AB$81,0)+IF('Data Input - General'!$F$12=\"Yes\",Calc_Option3!AB$75,0)","v":0},{"$f":"AC$80+IF('Data Input - General'!$F$10=\"Yes\",Calc_Option3!AC$81,0)+IF('Data Input - General'!$F$12=\"Yes\",Calc_Option3!AC$75,0)","v":0},{"$f":"AD$80+IF('Data Input - General'!$F$10=\"Yes\",Calc_Option3!AD$81,0)+IF('Data Input - General'!$F$12=\"Yes\",Calc_Option3!AD$75,0)","v":0},{"$f":"AE$80+IF('Data Input - General'!$F$10=\"Yes\",Calc_Option3!AE$81,0)+IF('Data Input - General'!$F$12=\"Yes\",Calc_Option3!AE$75,0)","v":0},{"$f":"AF$80+IF('Data Input - General'!$F$10=\"Yes\",Calc_Option3!AF$81,0)+IF('Data Input - General'!$F$12=\"Yes\",Calc_Option3!AF$75,0)","v":0},{"$f":"AG$80+IF('Data Input - General'!$F$10=\"Yes\",Calc_Option3!AG$81,0)+IF('Data Input - General'!$F$12=\"Yes\",Calc_Option3!AG$75,0)","v":0},{"$f":"AH$80+IF('Data Input - General'!$F$10=\"Yes\",Calc_Option3!AH$81,0)+IF('Data Input - General'!$F$12=\"Yes\",Calc_Option3!AH$75,0)","v":0},{"$f":"AI$80+IF('Data Input - General'!$F$10=\"Yes\",Calc_Option3!AI$81,0)+IF('Data Input - General'!$F$12=\"Yes\",Calc_Option3!AI$75,0)","v":0},{"$f":"AJ$80+IF('Data Input - General'!$F$10=\"Yes\",Calc_Option3!AJ$81,0)+IF('Data Input - General'!$F$12=\"Yes\",Calc_Option3!AJ$75,0)","v":0},{"$f":"AK$80+IF('Data Input - General'!$F$10=\"Yes\",Calc_Option3!AK$81,0)+IF('Data Input - General'!$F$12=\"Yes\",Calc_Option3!AK$75,0)","v":0},{"$f":"AL$80+IF('Data Input - General'!$F$10=\"Yes\",Calc_Option3!AL$81,0)+IF('Data Input - General'!$F$12=\"Yes\",Calc_Option3!AL$75,0)","v":0},{"$f":"AM$80+IF('Data Input - General'!$F$10=\"Yes\",Calc_Option3!AM$81,0)+IF('Data Input - General'!$F$12=\"Yes\",Calc_Option3!AM$75,0)","v":0},{"$f":"AN$80+IF('Data Input - General'!$F$10=\"Yes\",Calc_Option3!AN$81,0)+IF('Data Input - General'!$F$12=\"Yes\",Calc_Option3!AN$75,0)","v":0},{"$f":"AO$80+IF('Data Input - General'!$F$10=\"Yes\",Calc_Option3!AO$81,0)+IF('Data Input - General'!$F$12=\"Yes\",Calc_Option3!AO$75,0)","v":0},{"$f":"AP$80+IF('Data Input - General'!$F$10=\"Yes\",Calc_Option3!AP$81,0)+IF('Data Input - General'!$F$12=\"Yes\",Calc_Option3!AP$75,0)","v":0},{"$f":"AQ$80+IF('Data Input - General'!$F$10=\"Yes\",Calc_Option3!AQ$81,0)+IF('Data Input - General'!$F$12=\"Yes\",Calc_Option3!AQ$75,0)","v":0},{"$f":"AR$80+IF('Data Input - General'!$F$10=\"Yes\",Calc_Option3!AR$81,0)+IF('Data Input - General'!$F$12=\"Yes\",Calc_Option3!AR$75,0)","v":0},{"$f":"AS$80+IF('Data Input - General'!$F$10=\"Yes\",Calc_Option3!AS$81,0)+IF('Data Input - General'!$F$12=\"Yes\",Calc_Option3!AS$75,0)","v":0},{"$f":"AT$80+IF('Data Input - General'!$F$10=\"Yes\",Calc_Option3!AT$81,0)+IF('Data Input - General'!$F$12=\"Yes\",Calc_Option3!AT$75,0)","v":0},{"$f":"AU$80+IF('Data Input - General'!$F$10=\"Yes\",Calc_Option3!AU$81,0)+IF('Data Input - General'!$F$12=\"Yes\",Calc_Option3!AU$75,0)","v":0},{"$f":"AV$80+IF('Data Input - General'!$F$10=\"Yes\",Calc_Option3!AV$81,0)+IF('Data Input - General'!$F$12=\"Yes\",Calc_Option3!AV$75,0)","v":0},{"$f":"AW$80+IF('Data Input - General'!$F$10=\"Yes\",Calc_Option3!AW$81,0)+IF('Data Input - General'!$F$12=\"Yes\",Calc_Option3!AW$75,0)","v":0},{"$f":"AX$80+IF('Data Input - General'!$F$10=\"Yes\",Calc_Option3!AX$81,0)+IF('Data Input - General'!$F$12=\"Yes\",Calc_Option3!AX$75,0)","v":0},{"$f":"AY$80+IF('Data Input - General'!$F$10=\"Yes\",Calc_Option3!AY$81,0)+IF('Data Input - General'!$F$12=\"Yes\",Calc_Option3!AY$75,0)","v":0},{"$f":"AZ$80+IF('Data Input - General'!$F$10=\"Yes\",Calc_Option3!AZ$81,0)+IF('Data Input - General'!$F$12=\"Yes\",Calc_Option3!AZ$75,0)","v":0},{"$f":"BA$80+IF('Data Input - General'!$F$10=\"Yes\",Calc_Option3!BA$81,0)+IF('Data Input - General'!$F$12=\"Yes\",Calc_Option3!BA$75,0)","v":0},{"$f":"BB$80+IF('Data Input - General'!$F$10=\"Yes\",Calc_Option3!BB$81,0)+IF('Data Input - General'!$F$12=\"Yes\",Calc_Option3!BB$75,0)","v":0},{"$f":"BC$80+IF('Data Input - General'!$F$10=\"Yes\",Calc_Option3!BC$81,0)+IF('Data Input - General'!$F$12=\"Yes\",Calc_Option3!BC$75,0)","v":0},{"$f":"BD$80+IF('Data Input - General'!$F$10=\"Yes\",Calc_Option3!BD$81,0)+IF('Data Input - General'!$F$12=\"Yes\",Calc_Option3!BD$75,0)","v":0},{"$f":"BE$80+IF('Data Input - General'!$F$10=\"Yes\",Calc_Option3!BE$81,0)+IF('Data Input - General'!$F$12=\"Yes\",Calc_Option3!BE$75,0)","v":0},{"$f":"BF$80+IF('Data Input - General'!$F$10=\"Yes\",Calc_Option3!BF$81,0)+IF('Data Input - General'!$F$12=\"Yes\",Calc_Option3!BF$75,0)","v":0},{"$f":"BG$80+IF('Data Input - General'!$F$10=\"Yes\",Calc_Option3!BG$81,0)+IF('Data Input - General'!$F$12=\"Yes\",Calc_Option3!BG$75,0)","v":0},{"$f":"BH$80+IF('Data Input - General'!$F$10=\"Yes\",Calc_Option3!BH$81,0)+IF('Data Input - General'!$F$12=\"Yes\",Calc_Option3!BH$75,0)","v":0},{"$f":"BI$80+IF('Data Input - General'!$F$10=\"Yes\",Calc_Option3!BI$81,0)+IF('Data Input - General'!$F$12=\"Yes\",Calc_Option3!BI$75,0)","v":0},{"$f":"BJ$80+IF('Data Input - General'!$F$10=\"Yes\",Calc_Option3!BJ$81,0)+IF('Data Input - General'!$F$12=\"Yes\",Calc_Option3!BJ$75,0)","v":0},{"$f":"BK$80+IF('Data Input - General'!$F$10=\"Yes\",Calc_Option3!BK$81,0)+IF('Data Input - General'!$F$12=\"Yes\",Calc_Option3!BK$75,0)","v":0},{"$f":"BL$80+IF('Data Input - General'!$F$10=\"Yes\",Calc_Option3!BL$81,0)+IF('Data Input - General'!$F$12=\"Yes\",Calc_Option3!BL$75,0)","v":0},{"$f":"BM$80+IF('Data Input - General'!$F$10=\"Yes\",Calc_Option3!BM$81,0)+IF('Data Input - General'!$F$12=\"Yes\",Calc_Option3!BM$75,0)","v":0},{"$f":"BN$80+IF('Data Input - General'!$F$10=\"Yes\",Calc_Option3!BN$81,0)+IF('Data Input - General'!$F$12=\"Yes\",Calc_Option3!BN$75,0)","v":0},{"$f":"BO$80+IF('Data Input - General'!$F$10=\"Yes\",Calc_Option3!BO$81,0)+IF('Data Input - General'!$F$12=\"Yes\",Calc_Option3!BO$75,0)","v":0},{"$f":"BP$80+IF('Data Input - General'!$F$10=\"Yes\",Calc_Option3!BP$81,0)+IF('Data Input - General'!$F$12=\"Yes\",Calc_Option3!BP$75,0)","v":0},{"$f":"BQ$80+IF('Data Input - General'!$F$10=\"Yes\",Calc_Option3!BQ$81,0)+IF('Data Input - General'!$F$12=\"Yes\",Calc_Option3!BQ$75,0)","v":0},{"$f":"BR$80+IF('Data Input - General'!$F$10=\"Yes\",Calc_Option3!BR$81,0)+IF('Data Input - General'!$F$12=\"Yes\",Calc_Option3!BR$75,0)","v":0},{"$f":"BS$80+IF('Data Input - General'!$F$10=\"Yes\",Calc_Option3!BS$81,0)+IF('Data Input - General'!$F$12=\"Yes\",Calc_Option3!BS$75,0)","v":0},{"$f":"BT$80+IF('Data Input - General'!$F$10=\"Yes\",Calc_Option3!BT$81,0)+IF('Data Input - General'!$F$12=\"Yes\",Calc_Option3!BT$75,0)","v":0},{"$f":"BU$80+IF('Data Input - General'!$F$10=\"Yes\",Calc_Option3!BU$81,0)+IF('Data Input - General'!$F$12=\"Yes\",Calc_Option3!BU$75,0)","v":0},{"$f":"BV$80+IF('Data Input - General'!$F$10=\"Yes\",Calc_Option3!BV$81,0)+IF('Data Input - General'!$F$12=\"Yes\",Calc_Option3!BV$75,0)","v":0},{"$f":"BW$80+IF('Data Input - General'!$F$10=\"Yes\",Calc_Option3!BW$81,0)+IF('Data Input - General'!$F$12=\"Yes\",Calc_Option3!BW$75,0)","v":0},{"$f":"BX$80+IF('Data Input - General'!$F$10=\"Yes\",Calc_Option3!BX$81,0)+IF('Data Input - General'!$F$12=\"Yes\",Calc_Option3!BX$75,0)","v":0},{"$f":"BY$80+IF('Data Input - General'!$F$10=\"Yes\",Calc_Option3!BY$81,0)+IF('Data Input - General'!$F$12=\"Yes\",Calc_Option3!BY$75,0)","v":0},{"$f":"BZ$80+IF('Data Input - General'!$F$10=\"Yes\",Calc_Option3!BZ$81,0)+IF('Data Input - General'!$F$12=\"Yes\",Calc_Option3!BZ$75,0)","v":0},{"$f":"CA$80+IF('Data Input - General'!$F$10=\"Yes\",Calc_Option3!CA$81,0)+IF('Data Input - General'!$F$12=\"Yes\",Calc_Option3!CA$75,0)","v":0},{"$f":"CB$80+IF('Data Input - General'!$F$10=\"Yes\",Calc_Option3!CB$81,0)+IF('Data Input - General'!$F$12=\"Yes\",Calc_Option3!CB$75,0)","v":0},{"$f":"CC$80+IF('Data Input - General'!$F$10=\"Yes\",Calc_Option3!CC$81,0)+IF('Data Input - General'!$F$12=\"Yes\",Calc_Option3!CC$75,0)","v":0},{"$f":"CD$80+IF('Data Input - General'!$F$10=\"Yes\",Calc_Option3!CD$81,0)+IF('Data Input - General'!$F$12=\"Yes\",Calc_Option3!CD$75,0)","v":0},{"$f":"CE$80+IF('Data Input - General'!$F$10=\"Yes\",Calc_Option3!CE$81,0)+IF('Data Input - General'!$F$12=\"Yes\",Calc_Option3!CE$75,0)","v":0},{"$f":"CF$80+IF('Data Input - General'!$F$10=\"Yes\",Calc_Option3!CF$81,0)+IF('Data Input - General'!$F$12=\"Yes\",Calc_Option3!CF$75,0)","v":0},{"$f":"CG$80+IF('Data Input - General'!$F$10=\"Yes\",Calc_Option3!CG$81,0)+IF('Data Input - General'!$F$12=\"Yes\",Calc_Option3!CG$75,0)","v":0},{"$f":"CH$80+IF('Data Input - General'!$F$10=\"Yes\",Calc_Option3!CH$81,0)+IF('Data Input - General'!$F$12=\"Yes\",Calc_Option3!CH$75,0)","v":0},{"$f":"CI$80+IF('Data Input - General'!$F$10=\"Yes\",Calc_Option3!CI$81,0)+IF('Data Input - General'!$F$12=\"Yes\",Calc_Option3!CI$75,0)","v":0},{"$f":"CJ$80+IF('Data Input - General'!$F$10=\"Yes\",Calc_Option3!CJ$81,0)+IF('Data Input - General'!$F$12=\"Yes\",Calc_Option3!CJ$75,0)","v":0},{"$f":"CK$80+IF('Data Input - General'!$F$10=\"Yes\",Calc_Option3!CK$81,0)+IF('Data Input - General'!$F$12=\"Yes\",Calc_Option3!CK$75,0)","v":0},{"$f":"CL$80+IF('Data Input - General'!$F$10=\"Yes\",Calc_Option3!CL$81,0)+IF('Data Input - General'!$F$12=\"Yes\",Calc_Option3!CL$75,0)","v":0},{"$f":"CM$80+IF('Data Input - General'!$F$10=\"Yes\",Calc_Option3!CM$81,0)+IF('Data Input - General'!$F$12=\"Yes\",Calc_Option3!CM$75,0)","v":0},{"$f":"CN$80+IF('Data Input - General'!$F$10=\"Yes\",Calc_Option3!CN$81,0)+IF('Data Input - General'!$F$12=\"Yes\",Calc_Option3!CN$75,0)","v":0},{"$f":"CO$80+IF('Data Input - General'!$F$10=\"Yes\",Calc_Option3!CO$81,0)+IF('Data Input - General'!$F$12=\"Yes\",Calc_Option3!CO$75,0)","v":0},{"$f":"CP$80+IF('Data Input - General'!$F$10=\"Yes\",Calc_Option3!CP$81,0)+IF('Data Input - General'!$F$12=\"Yes\",Calc_Option3!CP$75,0)","v":0},{"$f":"CQ$80+IF('Data Input - General'!$F$10=\"Yes\",Calc_Option3!CQ$81,0)+IF('Data Input - General'!$F$12=\"Yes\",Calc_Option3!CQ$75,0)","v":0},{"$f":"CR$80+IF('Data Input - General'!$F$10=\"Yes\",Calc_Option3!CR$81,0)+IF('Data Input - General'!$F$12=\"Yes\",Calc_Option3!CR$75,0)","v":0},{"$f":"CS$80+IF('Data Input - General'!$F$10=\"Yes\",Calc_Option3!CS$81,0)+IF('Data Input - General'!$F$12=\"Yes\",Calc_Option3!CS$75,0)","v":0},{"$f":"CT$80+IF('Data Input - General'!$F$10=\"Yes\",Calc_Option3!CT$81,0)+IF('Data Input - General'!$F$12=\"Yes\",Calc_Option3!CT$75,0)","v":0},{"$f":"CU$80+IF('Data Input - General'!$F$10=\"Yes\",Calc_Option3!CU$81,0)+IF('Data Input - General'!$F$12=\"Yes\",Calc_Option3!CU$75,0)","v":0},{"$f":"CV$80+IF('Data Input - General'!$F$10=\"Yes\",Calc_Option3!CV$81,0)+IF('Data Input - General'!$F$12=\"Yes\",Calc_Option3!CV$75,0)","v":0},{"$f":"CW$80+IF('Data Input - General'!$F$10=\"Yes\",Calc_Option3!CW$81,0)+IF('Data Input - General'!$F$12=\"Yes\",Calc_Option3!CW$75,0)","v":0},{"$f":"CX$80+IF('Data Input - General'!$F$10=\"Yes\",Calc_Option3!CX$81,0)+IF('Data Input - General'!$F$12=\"Yes\",Calc_Option3!CX$75,0)","v":0},{"$f":"CY$80+IF('Data Input - General'!$F$10=\"Yes\",Calc_Option3!CY$81,0)+IF('Data Input - General'!$F$12=\"Yes\",Calc_Option3!CY$75,0)","v":0}]
[null,"Non-traded","tCO2e",{"$f":"IF('Data Input - General'!$F$10=\"Yes\",0,Calc_Option3!D$81)+IF('Data Input - General'!$F$12=\"Yes\",0,Calc_Option3!D$75)","v":0},{"$f":"IF('Data Input - General'!$F$10=\"Yes\",0,Calc_Option3!E$81)+IF('Data Input - General'!$F$12=\"Yes\",0,Calc_Option3!E$75)","v":0},{"$f":"IF('Data Input - General'!$F$10=\"Yes\",0,Calc_Option3!F$81)+IF('Data Input - General'!$F$12=\"Yes\",0,Calc_Option3!F$75)","v":0},{"$f":"IF('Data Input - General'!$F$10=\"Yes\",0,Calc_Option3!G$81)+IF('Data Input - General'!$F$12=\"Yes\",0,Calc_Option3!G$75)","v":0},{"$f":"IF('Data Input - General'!$F$10=\"Yes\",0,Calc_Option3!H$81)+IF('Data Input - General'!$F$12=\"Yes\",0,Calc_Option3!H$75)","v":0},{"$f":"IF('Data Input - General'!$F$10=\"Yes\",0,Calc_Option3!I$81)+IF('Data Input - General'!$F$12=\"Yes\",0,Calc_Option3!I$75)","v":0},{"$f":"IF('Data Input - General'!$F$10=\"Yes\",0,Calc_Option3!J$81)+IF('Data Input - General'!$F$12=\"Yes\",0,Calc_Option3!J$75)","v":0},{"$f":"IF('Data Input - General'!$F$10=\"Yes\",0,Calc_Option3!K$81)+IF('Data Input - General'!$F$12=\"Yes\",0,Calc_Option3!K$75)","v":0},{"$f":"IF('Data Input - General'!$F$10=\"Yes\",0,Calc_Option3!L$81)+IF('Data Input - General'!$F$12=\"Yes\",0,Calc_Option3!L$75)","v":0},{"$f":"IF('Data Input - General'!$F$10=\"Yes\",0,Calc_Option3!M$81)+IF('Data Input - General'!$F$12=\"Yes\",0,Calc_Option3!M$75)","v":0},{"$f":"IF('Data Input - General'!$F$10=\"Yes\",0,Calc_Option3!N$81)+IF('Data Input - General'!$F$12=\"Yes\",0,Calc_Option3!N$75)","v":0},{"$f":"IF('Data Input - General'!$F$10=\"Yes\",0,Calc_Option3!O$81)+IF('Data Input - General'!$F$12=\"Yes\",0,Calc_Option3!O$75)","v":0},{"$f":"IF('Data Input - General'!$F$10=\"Yes\",0,Calc_Option3!P$81)+IF('Data Input - General'!$F$12=\"Yes\",0,Calc_Option3!P$75)","v":0},{"$f":"IF('Data Input - General'!$F$10=\"Yes\",0,Calc_Option3!Q$81)+IF('Data Input - General'!$F$12=\"Yes\",0,Calc_Option3!Q$75)","v":0},{"$f":"IF('Data Input - General'!$F$10=\"Yes\",0,Calc_Option3!R$81)+IF('Data Input - General'!$F$12=\"Yes\",0,Calc_Option3!R$75)","v":0},{"$f":"IF('Data Input - General'!$F$10=\"Yes\",0,Calc_Option3!S$81)+IF('Data Input - General'!$F$12=\"Yes\",0,Calc_Option3!S$75)","v":0},{"$f":"IF('Data Input - General'!$F$10=\"Yes\",0,Calc_Option3!T$81)+IF('Data Input - General'!$F$12=\"Yes\",0,Calc_Option3!T$75)","v":0},{"$f":"IF('Data Input - General'!$F$10=\"Yes\",0,Calc_Option3!U$81)+IF('Data Input - General'!$F$12=\"Yes\",0,Calc_Option3!U$75)","v":0},{"$f":"IF('Data Input - General'!$F$10=\"Yes\",0,Calc_Option3!V$81)+IF('Data Input - General'!$F$12=\"Yes\",0,Calc_Option3!V$75)","v":0},{"$f":"IF('Data Input - General'!$F$10=\"Yes\",0,Calc_Option3!W$81)+IF('Data Input - General'!$F$12=\"Yes\",0,Calc_Option3!W$75)","v":0},{"$f":"IF('Data Input - General'!$F$10=\"Yes\",0,Calc_Option3!X$81)+IF('Data Input - General'!$F$12=\"Yes\",0,Calc_Option3!X$75)","v":0},{"$f":"IF('Data Input - General'!$F$10=\"Yes\",0,Calc_Option3!Y$81)+IF('Data Input - General'!$F$12=\"Yes\",0,Calc_Option3!Y$75)","v":0},{"$f":"IF('Data Input - General'!$F$10=\"Yes\",0,Calc_Option3!Z$81)+IF('Data Input - General'!$F$12=\"Yes\",0,Calc_Option3!Z$75)","v":0},{"$f":"IF('Data Input - General'!$F$10=\"Yes\",0,Calc_Option3!AA$81)+IF('Data Input - General'!$F$12=\"Yes\",0,Calc_Option3!AA$75)","v":0},{"$f":"IF('Data Input - General'!$F$10=\"Yes\",0,Calc_Option3!AB$81)+IF('Data Input - General'!$F$12=\"Yes\",0,Calc_Option3!AB$75)","v":0},{"$f":"IF('Data Input - General'!$F$10=\"Yes\",0,Calc_Option3!AC$81)+IF('Data Input - General'!$F$12=\"Yes\",0,Calc_Option3!AC$75)","v":0},{"$f":"IF('Data Input - General'!$F$10=\"Yes\",0,Calc_Option3!AD$81)+IF('Data Input - General'!$F$12=\"Yes\",0,Calc_Option3!AD$75)","v":0},{"$f":"IF('Data Input - General'!$F$10=\"Yes\",0,Calc_Option3!AE$81)+IF('Data Input - General'!$F$12=\"Yes\",0,Calc_Option3!AE$75)","v":0},{"$f":"IF('Data Input - General'!$F$10=\"Yes\",0,Calc_Option3!AF$81)+IF('Data Input - General'!$F$12=\"Yes\",0,Calc_Option3!AF$75)","v":0},{"$f":"IF('Data Input - General'!$F$10=\"Yes\",0,Calc_Option3!AG$81)+IF('Data Input - General'!$F$12=\"Yes\",0,Calc_Option3!AG$75)","v":0},{"$f":"IF('Data Input - General'!$F$10=\"Yes\",0,Calc_Option3!AH$81)+IF('Data Input - General'!$F$12=\"Yes\",0,Calc_Option3!AH$75)","v":0},{"$f":"IF('Data Input - General'!$F$10=\"Yes\",0,Calc_Option3!AI$81)+IF('Data Input - General'!$F$12=\"Yes\",0,Calc_Option3!AI$75)","v":0},{"$f":"IF('Data Input - General'!$F$10=\"Yes\",0,Calc_Option3!AJ$81)+IF('Data Input - General'!$F$12=\"Yes\",0,Calc_Option3!AJ$75)","v":0},{"$f":"IF('Data Input - General'!$F$10=\"Yes\",0,Calc_Option3!AK$81)+IF('Data Input - General'!$F$12=\"Yes\",0,Calc_Option3!AK$75)","v":0},{"$f":"IF('Data Input - General'!$F$10=\"Yes\",0,Calc_Option3!AL$81)+IF('Data Input - General'!$F$12=\"Yes\",0,Calc_Option3!AL$75)","v":0},{"$f":"IF('Data Input - General'!$F$10=\"Yes\",0,Calc_Option3!AM$81)+IF('Data Input - General'!$F$12=\"Yes\",0,Calc_Option3!AM$75)","v":0},{"$f":"IF('Data Input - General'!$F$10=\"Yes\",0,Calc_Option3!AN$81)+IF('Data Input - General'!$F$12=\"Yes\",0,Calc_Option3!AN$75)","v":0},{"$f":"IF('Data Input - General'!$F$10=\"Yes\",0,Calc_Option3!AO$81)+IF('Data Input - General'!$F$12=\"Yes\",0,Calc_Option3!AO$75)","v":0},{"$f":"IF('Data Input - General'!$F$10=\"Yes\",0,Calc_Option3!AP$81)+IF('Data Input - General'!$F$12=\"Yes\",0,Calc_Option3!AP$75)","v":0},{"$f":"IF('Data Input - General'!$F$10=\"Yes\",0,Calc_Option3!AQ$81)+IF('Data Input - General'!$F$12=\"Yes\",0,Calc_Option3!AQ$75)","v":0},{"$f":"IF('Data Input - General'!$F$10=\"Yes\",0,Calc_Option3!AR$81)+IF('Data Input - General'!$F$12=\"Yes\",0,Calc_Option3!AR$75)","v":0},{"$f":"IF('Data Input - General'!$F$10=\"Yes\",0,Calc_Option3!AS$81)+IF('Data Input - General'!$F$12=\"Yes\",0,Calc_Option3!AS$75)","v":0},{"$f":"IF('Data Input - General'!$F$10=\"Yes\",0,Calc_Option3!AT$81)+IF('Data Input - General'!$F$12=\"Yes\",0,Calc_Option3!AT$75)","v":0},{"$f":"IF('Data Input - General'!$F$10=\"Yes\",0,Calc_Option3!AU$81)+IF('Data Input - General'!$F$12=\"Yes\",0,Calc_Option3!AU$75)","v":0},{"$f":"IF('Data Input - General'!$F$10=\"Yes\",0,Calc_Option3!AV$81)+IF('Data Input - General'!$F$12=\"Yes\",0,Calc_Option3!AV$75)","v":0},{"$f":"IF('Data Input - General'!$F$10=\"Yes\",0,Calc_Option3!AW$81)+IF('Data Input - General'!$F$12=\"Yes\",0,Calc_Option3!AW$75)","v":0},{"$f":"IF('Data Input - General'!$F$10=\"Yes\",0,Calc_Option3!AX$81)+IF('Data Input - General'!$F$12=\"Yes\",0,Calc_Option3!AX$75)","v":0},{"$f":"IF('Data Input - General'!$F$10=\"Yes\",0,Calc_Option3!AY$81)+IF('Data Input - General'!$F$12=\"Yes\",0,Calc_Option3!AY$75)","v":0},{"$f":"IF('Data Input - General'!$F$10=\"Yes\",0,Calc_Option3!AZ$81)+IF('Data Input - General'!$F$12=\"Yes\",0,Calc_Option3!AZ$75)","v":0},{"$f":"IF('Data Input - General'!$F$10=\"Yes\",0,Calc_Option3!BA$81)+IF('Data Input - General'!$F$12=\"Yes\",0,Calc_Option3!BA$75)","v":0},{"$f":"IF('Data Input - General'!$F$10=\"Yes\",0,Calc_Option3!BB$81)+IF('Data Input - General'!$F$12=\"Yes\",0,Calc_Option3!BB$75)","v":0},{"$f":"IF('Data Input - General'!$F$10=\"Yes\",0,Calc_Option3!BC$81)+IF('Data Input - General'!$F$12=\"Yes\",0,Calc_Option3!BC$75)","v":0},{"$f":"IF('Data Input - General'!$F$10=\"Yes\",0,Calc_Option3!BD$81)+IF('Data Input - General'!$F$12=\"Yes\",0,Calc_Option3!BD$75)","v":0},{"$f":"IF('Data Input - General'!$F$10=\"Yes\",0,Calc_Option3!BE$81)+IF('Data Input - General'!$F$12=\"Yes\",0,Calc_Option3!BE$75)","v":0},{"$f":"IF('Data Input - General'!$F$10=\"Yes\",0,Calc_Option3!BF$81)+IF('Data Input - General'!$F$12=\"Yes\",0,Calc_Option3!BF$75)","v":0},{"$f":"IF('Data Input - General'!$F$10=\"Yes\",0,Calc_Option3!BG$81)+IF('Data Input - General'!$F$12=\"Yes\",0,Calc_Option3!BG$75)","v":0},{"$f":"IF('Data Input - General'!$F$10=\"Yes\",0,Calc_Option3!BH$81)+IF('Data Input - General'!$F$12=\"Yes\",0,Calc_Option3!BH$75)","v":0},{"$f":"IF('Data Input - General'!$F$10=\"Yes\",0,Calc_Option3!BI$81)+IF('Data Input - General'!$F$12=\"Yes\",0,Calc_Option3!BI$75)","v":0},{"$f":"IF('Data Input - General'!$F$10=\"Yes\",0,Calc_Option3!BJ$81)+IF('Data Input - General'!$F$12=\"Yes\",0,Calc_Option3!BJ$75)","v":0},{"$f":"IF('Data Input - General'!$F$10=\"Yes\",0,Calc_Option3!BK$81)+IF('Data Input - General'!$F$12=\"Yes\",0,Calc_Option3!BK$75)","v":0},{"$f":"IF('Data Input - General'!$F$10=\"Yes\",0,Calc_Option3!BL$81)+IF('Data Input - General'!$F$12=\"Yes\",0,Calc_Option3!BL$75)","v":0},{"$f":"IF('Data Input - General'!$F$10=\"Yes\",0,Calc_Option3!BM$81)+IF('Data Input - General'!$F$12=\"Yes\",0,Calc_Option3!BM$75)","v":0},{"$f":"IF('Data Input - General'!$F$10=\"Yes\",0,Calc_Option3!BN$81)+IF('Data Input - General'!$F$12=\"Yes\",0,Calc_Option3!BN$75)","v":0},{"$f":"IF('Data Input - General'!$F$10=\"Yes\",0,Calc_Option3!BO$81)+IF('Data Input - General'!$F$12=\"Yes\",0,Calc_Option3!BO$75)","v":0},{"$f":"IF('Data Input - General'!$F$10=\"Yes\",0,Calc_Option3!BP$81)+IF('Data Input - General'!$F$12=\"Yes\",0,Calc_Option3!BP$75)","v":0},{"$f":"IF('Data Input - General'!$F$10=\"Yes\",0,Calc_Option3!BQ$81)+IF('Data Input - General'!$F$12=\"Yes\",0,Calc_Option3!BQ$75)","v":0},{"$f":"IF('Data Input - General'!$F$10=\"Yes\",0,Calc_Option3!BR$81)+IF('Data Input - General'!$F$12=\"Yes\",0,Calc_Option3!BR$75)","v":0},{"$f":"IF('Data Input - General'!$F$10=\"Yes\",0,Calc_Option3!BS$81)+IF('Data Input - General'!$F$12=\"Yes\",0,Calc_Option3!BS$75)","v":0},{"$f":"IF('Data Input - General'!$F$10=\"Yes\",0,Calc_Option3!BT$81)+IF('Data Input - General'!$F$12=\"Yes\",0,Calc_Option3!BT$75)","v":0},{"$f":"IF('Data Input - General'!$F$10=\"Yes\",0,Calc_Option3!BU$81)+IF('Data Input - General'!$F$12=\"Yes\",0,Calc_Option3!BU$75)","v":0},{"$f":"IF('Data Input - General'!$F$10=\"Yes\",0,Calc_Option3!BV$81)+IF('Data Input - General'!$F$12=\"Yes\",0,Calc_Option3!BV$75)","v":0},{"$f":"IF('Data Input - General'!$F$10=\"Yes\",0,Calc_Option3!BW$81)+IF('Data Input - General'!$F$12=\"Yes\",0,Calc_Option3!BW$75)","v":0},{"$f":"IF('Data Input - General'!$F$10=\"Yes\",0,Calc_Option3!BX$81)+IF('Data Input - General'!$F$12=\"Yes\",0,Calc_Option3!BX$75)","v":0},{"$f":"IF('Data Input - General'!$F$10=\"Yes\",0,Calc_Option3!BY$81)+IF('Data Input - General'!$F$12=\"Yes\",0,Calc_Option3!BY$75)","v":0},{"$f":"IF('Data Input - General'!$F$10=\"Yes\",0,Calc_Option3!BZ$81)+IF('Data Input - General'!$F$12=\"Yes\",0,Calc_Option3!BZ$75)","v":0},{"$f":"IF('Data Input - General'!$F$10=\"Yes\",0,Calc_Option3!CA$81)+IF('Data Input - General'!$F$12=\"Yes\",0,Calc_Option3!CA$75)","v":0},{"$f":"IF('Data Input - General'!$F$10=\"Yes\",0,Calc_Option3!CB$81)+IF('Data Input - General'!$F$12=\"Yes\",0,Calc_Option3!CB$75)","v":0},{"$f":"IF('Data Input - General'!$F$10=\"Yes\",0,Calc_Option3!CC$81)+IF('Data Input - General'!$F$12=\"Yes\",0,Calc_Option3!CC$75)","v":0},{"$f":"IF('Data Input - General'!$F$10=\"Yes\",0,Calc_Option3!CD$81)+IF('Data Input - General'!$F$12=\"Yes\",0,Calc_Option3!CD$75)","v":0},{"$f":"IF('Data Input - General'!$F$10=\"Yes\",0,Calc_Option3!CE$81)+IF('Data Input - General'!$F$12=\"Yes\",0,Calc_Option3!CE$75)","v":0},{"$f":"IF('Data Input - General'!$F$10=\"Yes\",0,Calc_Option3!CF$81)+IF('Data Input - General'!$F$12=\"Yes\",0,Calc_Option3!CF$75)","v":0},{"$f":"IF('Data Input - General'!$F$10=\"Yes\",0,Calc_Option3!CG$81)+IF('Data Input - General'!$F$12=\"Yes\",0,Calc_Option3!CG$75)","v":0},{"$f":"IF('Data Input - General'!$F$10=\"Yes\",0,Calc_Option3!CH$81)+IF('Data Input - General'!$F$12=\"Yes\",0,Calc_Option3!CH$75)","v":0},{"$f":"IF('Data Input - General'!$F$10=\"Yes\",0,Calc_Option3!CI$81)+IF('Data Input - General'!$F$12=\"Yes\",0,Calc_Option3!CI$75)","v":0},{"$f":"IF('Data Input - General'!$F$10=\"Yes\",0,Calc_Option3!CJ$81)+IF('Data Input - General'!$F$12=\"Yes\",0,Calc_Option3!CJ$75)","v":0},{"$f":"IF('Data Input - General'!$F$10=\"Yes\",0,Calc_Option3!CK$81)+IF('Data Input - General'!$F$12=\"Yes\",0,Calc_Option3!CK$75)","v":0},{"$f":"IF('Data Input - General'!$F$10=\"Yes\",0,Calc_Option3!CL$81)+IF('Data Input - General'!$F$12=\"Yes\",0,Calc_Option3!CL$75)","v":0},{"$f":"IF('Data Input - General'!$F$10=\"Yes\",0,Calc_Option3!CM$81)+IF('Data Input - General'!$F$12=\"Yes\",0,Calc_Option3!CM$75)","v":0},{"$f":"IF('Data Input - General'!$F$10=\"Yes\",0,Calc_Option3!CN$81)+IF('Data Input - General'!$F$12=\"Yes\",0,Calc_Option3!CN$75)","v":0},{"$f":"IF('Data Input - General'!$F$10=\"Yes\",0,Calc_Option3!CO$81)+IF('Data Input - General'!$F$12=\"Yes\",0,Calc_Option3!CO$75)","v":0},{"$f":"IF('Data Input - General'!$F$10=\"Yes\",0,Calc_Option3!CP$81)+IF('Data Input - General'!$F$12=\"Yes\",0,Calc_Option3!CP$75)","v":0},{"$f":"IF('Data Input - General'!$F$10=\"Yes\",0,Calc_Option3!CQ$81)+IF('Data Input - General'!$F$12=\"Yes\",0,Calc_Option3!CQ$75)","v":0},{"$f":"IF('Data Input - General'!$F$10=\"Yes\",0,Calc_Option3!CR$81)+IF('Data Input - General'!$F$12=\"Yes\",0,Calc_Option3!CR$75)","v":0},{"$f":"IF('Data Input - General'!$F$10=\"Yes\",0,Calc_Option3!CS$81)+IF('Data Input - General'!$F$12=\"Yes\",0,Calc_Option3!CS$75)","v":0},{"$f":"IF('Data Input - General'!$F$10=\"Yes\",0,Calc_Option3!CT$81)+IF('Data Input - General'!$F$12=\"Yes\",0,Calc_Option3!CT$75)","v":0},{"$f":"IF('Data Input - General'!$F$10=\"Yes\",0,Calc_Option3!CU$81)+IF('Data Input - General'!$F$12=\"Yes\",0,Calc_Option3!CU$75)","v":0},{"$f":"IF('Data Input - General'!$F$10=\"Yes\",0,Calc_Option3!CV$81)+IF('Data Input - General'!$F$12=\"Yes\",0,Calc_Option3!CV$75)","v":0},{"$f":"IF('Data Input - General'!$F$10=\"Yes\",0,Calc_Option3!CW$81)+IF('Data Input - General'!$F$12=\"Yes\",0,Calc_Option3!CW$75)","v":0},{"$f":"IF('Data Input - General'!$F$10=\"Yes\",0,Calc_Option3!CX$81)+IF('Data Input - General'!$F$12=\"Yes\",0,Calc_Option3!CX$75)","v":0},{"$f":"IF('Data Input - General'!$F$10=\"Yes\",0,Calc_Option3!CY$81)+IF('Data Input - General'!$F$12=\"Yes\",0,Calc_Option3!CY$75)","v":0}]
[null,"Value non-elec","£000's",{"$f":"IFERROR(INDEX('Carbon Prices'!$D$10:$CP$15,3,MATCH(Calc_Option3!D$6,'Carbon Prices'!$D$9:$CP$9,0))/1000,0)","v":3.6595483614396386E-2},{"$f":"IFERROR(INDEX('Carbon Prices'!$D$10:$CP$15,3,MATCH(Calc_Option3!E$6,'Carbon Prices'!$D$9:$CP$9,0))/1000,0)","v":4.1954810259537539E-2},{"$f":"IFERROR(INDEX('Carbon Prices'!$D$10:$CP$15,3,MATCH(Calc_Option3!F$6,'Carbon Prices'!$D$9:$CP$9,0))/1000,0)","v":5.0409774844480275E-2},{"$f":"IFERROR(INDEX('Carbon Prices'!$D$10:$CP$15,3,MATCH(Calc_Option3!G$6,'Carbon Prices'!$D$9:$CP$9,0))/1000,0)","v":5.886473942942301E-2},{"$f":"IFERROR(INDEX('Carbon Prices'!$D$10:$CP$15,3,MATCH(Calc_Option3!H$6,'Carbon Prices'!$D$9:$CP$9,0))/1000,0)","v":6.7319704014365739E-2},{"$f":"IFERROR(INDEX('Carbon Prices'!$D$10:$CP$15,3,MATCH(Calc_Option3!I$6,'Carbon Prices'!$D$9:$CP$9,0))/1000,0)","v":7.5774668599308467E-2},{"$f":"IFERROR(INDEX('Carbon Prices'!$D$10:$CP$15,3,MATCH(Calc_Option3!J$6,'Carbon Prices'!$D$9:$CP$9,0))/1000,0)","v":8.422963318425121E-2},{"$f":"IFERROR(INDEX('Carbon Prices'!$D$10:$CP$15,3,MATCH(Calc_Option3!K$6,'Carbon Prices'!$D$9:$CP$9,0))/1000,0)","v":9.2684597769193938E-2},{"$f":"IFERROR(INDEX('Carbon Prices'!$D$10:$CP$15,3,MATCH(Calc_Option3!L$6,'Carbon Prices'!$D$9:$CP$9,0))/1000,0)","v":0.10113956235413668},{"$f":"IFERROR(INDEX('Carbon Prices'!$D$10:$CP$15,3,MATCH(Calc_Option3!M$6,'Carbon Prices'!$D$9:$CP$9,0))/1000,0)","v":0.10959452693907941},{"$f":"IFERROR(INDEX('Carbon Prices'!$D$10:$CP$15,3,MATCH(Calc_Option3!N$6,'Carbon Prices'!$D$9:$CP$9,0))/1000,0)","v":0.11804949152402217},{"$f":"IFERROR(INDEX('Carbon Prices'!$D$10:$CP$15,3,MATCH(Calc_Option3!O$6,'Carbon Prices'!$D$9:$CP$9,0))/1000,0)","v":0.12650445610896488},{"$f":"IFERROR(INDEX('Carbon Prices'!$D$10:$CP$15,3,MATCH(Calc_Option3!P$6,'Carbon Prices'!$D$9:$CP$9,0))/1000,0)","v":0.13825129846194026},{"$f":"IFERROR(INDEX('Carbon Prices'!$D$10:$CP$15,3,MATCH(Calc_Option3!Q$6,'Carbon Prices'!$D$9:$CP$9,0))/1000,0)","v":0.14999814081491555},{"$f":"IFERROR(INDEX('Carbon Prices'!$D$10:$CP$15,3,MATCH(Calc_Option3!R$6,'Carbon Prices'!$D$9:$CP$9,0))/1000,0)","v":0.1617449831678909},{"$f":"IFERROR(INDEX('Carbon Prices'!$D$10:$CP$15,3,MATCH(Calc_Option3!S$6,'Carbon Prices'!$D$9:$CP$9,0))/1000,0)","v":0.1734918255208662},{"$f":"IFERROR(INDEX('Carbon Prices'!$D$10:$CP$15,3,MATCH(Calc_Option3!T$6,'Carbon Prices'!$D$9:$CP$9,0))/1000,0)","v":0.18523866787384149},{"$f":"IFERROR(INDEX('Carbon Prices'!$D$10:$CP$15,3,MATCH(Calc_Option3!U$6,'Carbon Prices'!$D$9:$CP$9,0))/1000,0)","v":0.19698551022681682},{"$f":"IFERROR(INDEX('Carbon Prices'!$D$10:$CP$15,3,MATCH(Calc_Option3!V$6,'Carbon Prices'!$D$9:$CP$9,0))/1000,0)","v":0.20873235257979214},{"$f":"IFERROR(INDEX('Carbon Prices'!$D$10:$CP$15,3,MATCH(Calc_Option3!W$6,'Carbon Prices'!$D$9:$CP$9,0))/1000,0)","v":0.22047919493276749},{"$f":"IFERROR(INDEX('Carbon Prices'!$D$10:$CP$15,3,MATCH(Calc_Option3!X$6,'Carbon Prices'!$D$9:$CP$9,0))/1000,0)","v":0.23222603728574279},{"$f":"IFERROR(INDEX('Carbon Prices'!$D$10:$CP$15,3,MATCH(Calc_Option3!Y$6,'Carbon Prices'!$D$9:$CP$9,0))/1000,0)","v":0.24397287963871811},{"$f":"IFERROR(INDEX('Carbon Prices'!$D$10:$CP$15,3,MATCH(Calc_Option3!Z$6,'Carbon Prices'!$D$9:$CP$9,0))/1000,0)","v":0.25571972199169341},{"$f":"IFERROR(INDEX('Carbon Prices'!$D$10:$CP$15,3,MATCH(Calc_Option3!AA$6,'Carbon Prices'!$D$9:$CP$9,0))/1000,0)","v":0.2674665643446687},{"$f":"IFERROR(INDEX('Carbon Prices'!$D$10:$CP$15,3,MATCH(Calc_Option3!AB$6,'Carbon Prices'!$D$9:$CP$9,0))/1000,0)","v":0.27921340669764405},{"$f":"IFERROR(INDEX('Carbon Prices'!$D$10:$CP$15,3,MATCH(Calc_Option3!AC$6,'Carbon Prices'!$D$9:$CP$9,0))/1000,0)","v":0.2909602490506194},{"$f":"IFERROR(INDEX('Carbon Prices'!$D$10:$CP$15,3,MATCH(Calc_Option3!AD$6,'Carbon Prices'!$D$9:$CP$9,0))/1000,0)","v":0.3027070914035947},{"$f":"IFERROR(INDEX('Carbon Prices'!$D$10:$CP$15,3,MATCH(Calc_Option3!AE$6,'Carbon Prices'!$D$9:$CP$9,0))/1000,0)","v":0.31445393375656999},{"$f":"IFERROR(INDEX('Carbon Prices'!$D$10:$CP$15,3,MATCH(Calc_Option3!AF$6,'Carbon Prices'!$D$9:$CP$9,0))/1000,0)","v":0.32620077610954529},{"$f":"IFERROR(INDEX('Carbon Prices'!$D$10:$CP$15,3,MATCH(Calc_Option3!AG$6,'Carbon Prices'!$D$9:$CP$9,0))/1000,0)","v":0.33794761846252058},{"$f":"IFERROR(INDEX('Carbon Prices'!$D$10:$CP$15,3,MATCH(Calc_Option3!AH$6,'Carbon Prices'!$D$9:$CP$9,0))/1000,0)","v":0.34969446081549593},{"$f":"IFERROR(INDEX('Carbon Prices'!$D$10:$CP$15,3,MATCH(Calc_Option3!AI$6,'Carbon Prices'!$D$9:$CP$9,0))/1000,0)","v":0},{"$f":"IFERROR(INDEX('Carbon Prices'!$D$10:$CP$15,3,MATCH(Calc_Option3!AJ$6,'Carbon Prices'!$D$9:$CP$9,0))/1000,0)","v":0},{"$f":"IFERROR(INDEX('Carbon Prices'!$D$10:$CP$15,3,MATCH(Calc_Option3!AK$6,'Carbon Prices'!$D$9:$CP$9,0))/1000,0)","v":0},{"$f":"IFERROR(INDEX('Carbon Prices'!$D$10:$CP$15,3,MATCH(Calc_Option3!AL$6,'Carbon Prices'!$D$9:$CP$9,0))/1000,0)","v":0},{"$f":"IFERROR(INDEX('Carbon Prices'!$D$10:$CP$15,3,MATCH(Calc_Option3!AM$6,'Carbon Prices'!$D$9:$CP$9,0))/1000,0)","v":0},{"$f":"IFERROR(INDEX('Carbon Prices'!$D$10:$CP$15,3,MATCH(Calc_Option3!AN$6,'Carbon Prices'!$D$9:$CP$9,0))/1000,0)","v":0},{"$f":"IFERROR(INDEX('Carbon Prices'!$D$10:$CP$15,3,MATCH(Calc_Option3!AO$6,'Carbon Prices'!$D$9:$CP$9,0))/1000,0)","v":0},{"$f":"IFERROR(INDEX('Carbon Prices'!$D$10:$CP$15,3,MATCH(Calc_Option3!AP$6,'Carbon Prices'!$D$9:$CP$9,0))/1000,0)","v":0},{"$f":"IFERROR(INDEX('Carbon Prices'!$D$10:$CP$15,3,MATCH(Calc_Option3!AQ$6,'Carbon Prices'!$D$9:$CP$9,0))/1000,0)","v":0},{"$f":"IFERROR(INDEX('Carbon Prices'!$D$10:$CP$15,3,MATCH(Calc_Option3!AR$6,'Carbon Prices'!$D$9:$CP$9,0))/1000,0)","v":0},{"$f":"IFERROR(INDEX('Carbon Prices'!$D$10:$CP$15,3,MATCH(Calc_Option3!AS$6,'Carbon Prices'!$D$9:$CP$9,0))/1000,0)","v":0},{"$f":"IFERROR(INDEX('Carbon Prices'!$D$10:$CP$15,3,MATCH(Calc_Option3!AT$6,'Carbon Prices'!$D$9:$CP$9,0))/1000,0)","v":0},{"$f":"IFERROR(INDEX('Carbon Prices'!$D$10:$CP$15,3,MATCH(Calc_Option3!AU$6,'Carbon Prices'!$D$9:$CP$9,0))/1000,0)","v":0},{"$f":"IFERROR(INDEX('Carbon Prices'!$D$10:$CP$15,3,MATCH(Calc_Option3!AV$6,'Carbon Prices'!$D$9:$CP$9,0))/1000,0)","v":0},{"$f":"IFERROR(INDEX('Carbon Prices'!$D$10:$CP$15,3,MATCH(Calc_Option3!AW$6,'Carbon Prices'!$D$9:$CP$9,0))/1000,0)","v":0},{"$f":"IFERROR(INDEX('Carbon Prices'!$D$10:$CP$15,3,MATCH(Calc_Option3!AX$6,'Carbon Prices'!$D$9:$CP$9,0))/1000,0)","v":0},{"$f":"IFERROR(INDEX('Carbon Prices'!$D$10:$CP$15,3,MATCH(Calc_Option3!AY$6,'Carbon Prices'!$D$9:$CP$9,0))/1000,0)","v":0},{"$f":"IFERROR(INDEX('Carbon Prices'!$D$10:$CP$15,3,MATCH(Calc_Option3!AZ$6,'Carbon Prices'!$D$9:$CP$9,0))/1000,0)","v":0},{"$f":"IFERROR(INDEX('Carbon Prices'!$D$10:$CP$15,3,MATCH(Calc_Option3!BA$6,'Carbon Prices'!$D$9:$CP$9,0))/1000,0)","v":0},{"$f":"IFERROR(INDEX('Carbon Prices'!$D$10:$CP$15,3,MATCH(Calc_Option3!BB$6,'Carbon Prices'!$D$9:$CP$9,0))/1000,0)","v":0},{"$f":"IFERROR(INDEX('Carbon Prices'!$D$10:$CP$15,3,MATCH(Calc_Option3!BC$6,'Carbon Prices'!$D$9:$CP$9,0))/1000,0)","v":0},{"$f":"IFERROR(INDEX('Carbon Prices'!$D$10:$CP$15,3,MATCH(Calc_Option3!BD$6,'Carbon Prices'!$D$9:$CP$9,0))/1000,0)","v":0},{"$f":"IFERROR(INDEX('Carbon Prices'!$D$10:$CP$15,3,MATCH(Calc_Option3!BE$6,'Carbon Prices'!$D$9:$CP$9,0))/1000,0)","v":0},{"$f":"IFERROR(INDEX('Carbon Prices'!$D$10:$CP$15,3,MATCH(Calc_Option3!BF$6,'Carbon Prices'!$D$9:$CP$9,0))/1000,0)","v":0},{"$f":"IFERROR(INDEX('Carbon Prices'!$D$10:$CP$15,3,MATCH(Calc_Option3!BG$6,'Carbon Prices'!$D$9:$CP$9,0))/1000,0)","v":0},{"$f":"IFERROR(INDEX('Carbon Prices'!$D$10:$CP$15,3,MATCH(Calc_Option3!BH$6,'Carbon Prices'!$D$9:$CP$9,0))/1000,0)","v":0},{"$f":"IFERROR(INDEX('Carbon Prices'!$D$10:$CP$15,3,MATCH(Calc_Option3!BI$6,'Carbon Prices'!$D$9:$CP$9,0))/1000,0)","v":0},{"$f":"IFERROR(INDEX('Carbon Prices'!$D$10:$CP$15,3,MATCH(Calc_Option3!BJ$6,'Carbon Prices'!$D$9:$CP$9,0))/1000,0)","v":0},{"$f":"IFERROR(INDEX('Carbon Prices'!$D$10:$CP$15,3,MATCH(Calc_Option3!BK$6,'Carbon Prices'!$D$9:$CP$9,0))/1000,0)","v":0},{"$f":"IFERROR(INDEX('Carbon Prices'!$D$10:$CP$15,3,MATCH(Calc_Option3!BL$6,'Carbon Prices'!$D$9:$CP$9,0))/1000,0)","v":0},{"$f":"IFERROR(INDEX('Carbon Prices'!$D$10:$CP$15,3,MATCH(Calc_Option3!BM$6,'Carbon Prices'!$D$9:$CP$9,0))/1000,0)","v":0},{"$f":"IFERROR(INDEX('Carbon Prices'!$D$10:$CP$15,3,MATCH(Calc_Option3!BN$6,'Carbon Prices'!$D$9:$CP$9,0))/1000,0)","v":0},{"$f":"IFERROR(INDEX('Carbon Prices'!$D$10:$CP$15,3,MATCH(Calc_Option3!BO$6,'Carbon Prices'!$D$9:$CP$9,0))/1000,0)","v":0},{"$f":"IFERROR(INDEX('Carbon Prices'!$D$10:$CP$15,3,MATCH(Calc_Option3!BP$6,'Carbon Prices'!$D$9:$CP$9,0))/1000,0)","v":0},{"$f":"IFERROR(INDEX('Carbon Prices'!$D$10:$CP$15,3,MATCH(Calc_Option3!BQ$6,'Carbon Prices'!$D$9:$CP$9,0))/1000,0)","v":0},{"$f":"IFERROR(INDEX('Carbon Prices'!$D$10:$CP$15,3,MATCH(Calc_Option3!BR$6,'Carbon Prices'!$D$9:$CP$9,0))/1000,0)","v":0},{"$f":"IFERROR(INDEX('Carbon Prices'!$D$10:$CP$15,3,MATCH(Calc_Option3!BS$6,'Carbon Prices'!$D$9:$CP$9,0))/1000,0)","v":0},{"$f":"IFERROR(INDEX('Carbon Prices'!$D$10:$CP$15,3,MATCH(Calc_Option3!BT$6,'Carbon Prices'!$D$9:$CP$9,0))/1000,0)","v":0},{"$f":"IFERROR(INDEX('Carbon Prices'!$D$10:$CP$15,3,MATCH(Calc_Option3!BU$6,'Carbon Prices'!$D$9:$CP$9,0))/1000,0)","v":0},{"$f":"IFERROR(INDEX('Carbon Prices'!$D$10:$CP$15,3,MATCH(Calc_Option3!BV$6,'Carbon Prices'!$D$9:$CP$9,0))/1000,0)","v":0},{"$f":"IFERROR(INDEX('Carbon Prices'!$D$10:$CP$15,3,MATCH(Calc_Option3!BW$6,'Carbon Prices'!$D$9:$CP$9,0))/1000,0)","v":0},{"$f":"IFERROR(INDEX('Carbon Prices'!$D$10:$CP$15,3,MATCH(Calc_Option3!BX$6,'Carbon Prices'!$D$9:$CP$9,0))/1000,0)","v":0},{"$f":"IFERROR(INDEX('Carbon Prices'!$D$10:$CP$15,3,MATCH(Calc_Option3!BY$6,'Carbon Prices'!$D$9:$CP$9,0))/1000,0)","v":0},{"$f":"IFERROR(INDEX('Carbon Prices'!$D$10:$CP$15,3,MATCH(Calc_Option3!BZ$6,'Carbon Prices'!$D$9:$CP$9,0))/1000,0)","v":0},{"$f":"IFERROR(INDEX('Carbon Prices'!$D$10:$CP$15,3,MATCH(Calc_Option3!CA$6,'Carbon Prices'!$D$9:$CP$9,0))/1000,0)","v":0},{"$f":"IFERROR(INDEX('Carbon Prices'!$D$10:$CP$15,3,MATCH(Calc_Option3!CB$6,'Carbon Prices'!$D$9:$CP$9,0))/1000,0)","v":0},{"$f":"IFERROR(INDEX('Carbon Prices'!$D$10:$CP$15,3,MATCH(Calc_Option3!CC$6,'Carbon Prices'!$D$9:$CP$9,0))/1000,0)","v":0},{"$f":"IFERROR(INDEX('Carbon Prices'!$D$10:$CP$15,3,MATCH(Calc_Option3!CD$6,'Carbon Prices'!$D$9:$CP$9,0))/1000,0)","v":0},{"$f":"IFERROR(INDEX('Carbon Prices'!$D$10:$CP$15,3,MATCH(Calc_Option3!CE$6,'Carbon Prices'!$D$9:$CP$9,0))/1000,0)","v":0},{"$f":"IFERROR(INDEX('Carbon Prices'!$D$10:$CP$15,3,MATCH(Calc_Option3!CF$6,'Carbon Prices'!$D$9:$CP$9,0))/1000,0)","v":0},{"$f":"IFERROR(INDEX('Carbon Prices'!$D$10:$CP$15,3,MATCH(Calc_Option3!CG$6,'Carbon Prices'!$D$9:$CP$9,0))/1000,0)","v":0},{"$f":"IFERROR(INDEX('Carbon Prices'!$D$10:$CP$15,3,MATCH(Calc_Option3!CH$6,'Carbon Prices'!$D$9:$CP$9,0))/1000,0)","v":0},{"$f":"IFERROR(INDEX('Carbon Prices'!$D$10:$CP$15,3,MATCH(Calc_Option3!CI$6,'Carbon Prices'!$D$9:$CP$9,0))/1000,0)","v":0},{"$f":"IFERROR(INDEX('Carbon Prices'!$D$10:$CP$15,3,MATCH(Calc_Option3!CJ$6,'Carbon Prices'!$D$9:$CP$9,0))/1000,0)","v":0},{"$f":"IFERROR(INDEX('Carbon Prices'!$D$10:$CP$15,3,MATCH(Calc_Option3!CK$6,'Carbon Prices'!$D$9:$CP$9,0))/1000,0)","v":0},{"$f":"IFERROR(INDEX('Carbon Prices'!$D$10:$CP$15,3,MATCH(Calc_Option3!CL$6,'Carbon Prices'!$D$9:$CP$9,0))/1000,0)","v":0},{"$f":"IFERROR(INDEX('Carbon Prices'!$D$10:$CP$15,3,MATCH(Calc_Option3!CM$6,'Carbon Prices'!$D$9:$CP$9,0))/1000,0)","v":0},{"$f":"IFERROR(INDEX('Carbon Prices'!$D$10:$CP$15,3,MATCH(Calc_Option3!CN$6,'Carbon Prices'!$D$9:$CP$9,0))/1000,0)","v":0},{"$f":"IFERROR(INDEX('Carbon Prices'!$D$10:$CP$15,3,MATCH(Calc_Option3!CO$6,'Carbon Prices'!$D$9:$CP$9,0))/1000,0)","v":0},{"$f":"IFERROR(INDEX('Carbon Prices'!$D$10:$CP$15,3,MATCH(Calc_Option3!CP$6,'Carbon Prices'!$D$9:$CP$9,0))/1000,0)","v":0},{"$f":"IFERROR(INDEX('Carbon Prices'!$D$10:$CP$15,3,MATCH(Calc_Option3!CQ$6,'Carbon Prices'!$D$9:$CP$9,0))/1000,0)","v":0},{"$f":"IFERROR(INDEX('Carbon Prices'!$D$10:$CP$15,3,MATCH(Calc_Option3!CR$6,'Carbon Prices'!$D$9:$CP$9,0))/1000,0)","v":0},{"$f":"IFERROR(INDEX('Carbon Prices'!$D$10:$CP$15,3,MATCH(Calc_Option3!CS$6,'Carbon Prices'!$D$9:$CP$9,0))/1000,0)","v":0},{"$f":"IFERROR(INDEX('Carbon Prices'!$D$10:$CP$15,3,MATCH(Calc_Option3!CT$6,'Carbon Prices'!$D$9:$CP$9,0))/1000,0)","v":0},{"$f":"IFERROR(INDEX('Carbon Prices'!$D$10:$CP$15,3,MATCH(Calc_Option3!CU$6,'Carbon Prices'!$D$9:$CP$9,0))/1000,0)","v":0},{"$f":"IFERROR(INDEX('Carbon Prices'!$D$10:$CP$15,3,MATCH(Calc_Option3!CV$6,'Carbon Prices'!$D$9:$CP$9,0))/1000,0)","v":0},{"$f":"IFERROR(INDEX('Carbon Prices'!$D$10:$CP$15,3,MATCH(Calc_Option3!CW$6,'Carbon Prices'!$D$9:$CP$9,0))/1000,0)","v":0},{"$f":"IFERROR(INDEX('Carbon Prices'!$D$10:$CP$15,3,MATCH(Calc_Option3!CX$6,'Carbon Prices'!$D$9:$CP$9,0))/1000,0)","v":0},{"$f":"IFERROR(INDEX('Carbon Prices'!$D$10:$CP$15,3,MATCH(Calc_Option3!CY$6,'Carbon Prices'!$D$9:$CP$9,0))/1000,0)","v":0}]
[null,"Total value elec","£000's",{"$f":"IFERROR(INDEX('Carbon Prices'!$D$10:$CP$15,6,MATCH(Calc_Option3!D$6,'Carbon Prices'!$D$9:$CP$9,0))/1000,0)","v":0.10682994182319348},{"$f":"IFERROR(INDEX('Carbon Prices'!$D$10:$CP$15,6,MATCH(Calc_Option3!E$6,'Carbon Prices'!$D$9:$CP$9,0))/1000,0)","v":0.10843239095054137},{"$f":"IFERROR(INDEX('Carbon Prices'!$D$10:$CP$15,6,MATCH(Calc_Option3!F$6,'Carbon Prices'!$D$9:$CP$9,0))/1000,0)","v":0.11023959746638375},{"$f":"IFERROR(INDEX('Carbon Prices'!$D$10:$CP$15,6,MATCH(Calc_Option3!G$6,'Carbon Prices'!$D$9:$CP$9,0))/1000,0)","v":0.11204680398222609},{"$f":"IFERROR(INDEX('Carbon Prices'!$D$10:$CP$15,6,MATCH(Calc_Option3!H$6,'Carbon Prices'!$D$9:$CP$9,0))/1000,0)","v":0.11385401049806844},{"$f":"IFERROR(INDEX('Carbon Prices'!$D$10:$CP$15,6,MATCH(Calc_Option3!I$6,'Carbon Prices'!$D$9:$CP$9,0))/1000,0)","v":0.1156612170139108},{"$f":"IFERROR(INDEX('Carbon Prices'!$D$10:$CP$15,6,MATCH(Calc_Option3!J$6,'Carbon Prices'!$D$9:$CP$9,0))/1000,0)","v":0.11746842352975315},{"$f":"IFERROR(INDEX('Carbon Prices'!$D$10:$CP$15,6,MATCH(Calc_Option3!K$6,'Carbon Prices'!$D$9:$CP$9,0))/1000,0)","v":0.11927563004559551},{"$f":"IFERROR(INDEX('Carbon Prices'!$D$10:$CP$15,6,MATCH(Calc_Option3!L$6,'Carbon Prices'!$D$9:$CP$9,0))/1000,0)","v":0.12108283656143787},{"$f":"IFERROR(INDEX('Carbon Prices'!$D$10:$CP$15,6,MATCH(Calc_Option3!M$6,'Carbon Prices'!$D$9:$CP$9,0))/1000,0)","v":0.12289004307728023},{"$f":"IFERROR(INDEX('Carbon Prices'!$D$10:$CP$15,6,MATCH(Calc_Option3!N$6,'Carbon Prices'!$D$9:$CP$9,0))/1000,0)","v":0.12469724959312259},{"$f":"IFERROR(INDEX('Carbon Prices'!$D$10:$CP$15,6,MATCH(Calc_Option3!O$6,'Carbon Prices'!$D$9:$CP$9,0))/1000,0)","v":0.12650445610896494},{"$f":"IFERROR(INDEX('Carbon Prices'!$D$10:$CP$15,6,MATCH(Calc_Option3!P$6,'Carbon Prices'!$D$9:$CP$9,0))/1000,0)","v":0.13825129846194026},{"$f":"IFERROR(INDEX('Carbon Prices'!$D$10:$CP$15,6,MATCH(Calc_Option3!Q$6,'Carbon Prices'!$D$9:$CP$9,0))/1000,0)","v":0.14999814081491555},{"$f":"IFERROR(INDEX('Carbon Prices'!$D$10:$CP$15,6,MATCH(Calc_Option3!R$6,'Carbon Prices'!$D$9:$CP$9,0))/1000,0)","v":0.1617449831678909},{"$f":"IFERROR(INDEX('Carbon Prices'!$D$10:$CP$15,6,MATCH(Calc_Option3!S$6,'Carbon Prices'!$D$9:$CP$9,0))/1000,0)","v":0.1734918255208662},{"$f":"IFERROR(INDEX('Carbon Prices'!$D$10:$CP$15,6,MATCH(Calc_Option3!T$6,'Carbon Prices'!$D$9:$CP$9,0))/1000,0)","v":0.18523866787384149},{"$f":"IFERROR(INDEX('Carbon Prices'!$D$10:$CP$15,6,MATCH(Calc_Option3!U$6,'Carbon Prices'!$D$9:$CP$9,0))/1000,0)","v":0.19698551022681682},{"$f":"IFERROR(INDEX('Carbon Prices'!$D$10:$CP$15,6,MATCH(Calc_Option3!V$6,'Carbon Prices'!$D$9:$CP$9,0))/1000,0)","v":0.20873235257979214},{"$f":"IFERROR(INDEX('Carbon Prices'!$D$10:$CP$15,6,MATCH(Calc_Option3!W$6,'Carbon Prices'!$D$9:$CP$9,0))/1000,0)","v":0.22047919493276749},{"$f":"IFERROR(INDEX('Carbon Prices'!$D$10:$CP$15,6,MATCH(Calc_Option3!X$6,'Carbon Prices'!$D$9:$CP$9,0))/1000,0)","v":0.23222603728574279},{"$f":"IFERROR(INDEX('Carbon Prices'!$D$10:$CP$15,6,MATCH(Calc_Option3!Y$6,'Carbon Prices'!$D$9:$CP$9,0))/1000,0)","v":0.24397287963871811},{"$f":"IFERROR(INDEX('Carbon Prices'!$D$10:$CP$15,6,MATCH(Calc_Option3!Z$6,'Carbon Prices'!$D$9:$CP$9,0))/1000,0)","v":0.25571972199169341},{"$f":"IFERROR(INDEX('Carbon Prices'!$D$10:$CP$15,6,MATCH(Calc_Option3!AA$6,'Carbon Prices'!$D$9:$CP$9,0))/1000,0)","v":0.2674665643446687},{"$f":"IFERROR(INDEX('Carbon Prices'!$D$10:$CP$15,6,MATCH(Calc_Option3!AB$6,'Carbon Prices'!$D$9:$CP$9,0))/1000,0)","v":0.27921340669764405},{"$f":"IFERROR(INDEX('Carbon Prices'!$D$10:$CP$15,6,MATCH(Calc_Option3!AC$6,'Carbon Prices'!$D$9:$CP$9,0))/1000,0)","v":0.2909602490506194},{"$f":"IFERROR(INDEX('Carbon Prices'!$D$10:$CP$15,6,MATCH(Calc_Option3!AD$6,'Carbon Prices'!$D$9:$CP$9,0))/1000,0)","v":0.3027070914035947},{"$f":"IFERROR(INDEX('Carbon Prices'!$D$10:$CP$15,6,MATCH(Calc_Option3!AE$6,'Carbon Prices'!$D$9:$CP$9,0))/1000,0)","v":0.31445393375656999},{"$f":"IFERROR(INDEX('Carbon Prices'!$D$10:$CP$15,6,MATCH(Calc_Option3!AF$6,'Carbon Prices'!$D$9:$CP$9,0))/1000,0)","v":0.32620077610954529},{"$f":"IFERROR(INDEX('Carbon Prices'!$D$10:$CP$15,6,MATCH(Calc_Option3!AG$6,'Carbon Prices'!$D$9:$CP$9,0))/1000,0)","v":0.33794761846252058},{"$f":"IFERROR(INDEX('Carbon Prices'!$D$10:$CP$15,6,MATCH(Calc_Option3!AH$6,'Carbon Prices'!$D$9:$CP$9,0))/1000,0)","v":0.34969446081549593},{"$f":"IFERROR(INDEX('Carbon Prices'!$D$10:$CP$15,6,MATCH(Calc_Option3!AI$6,'Carbon Prices'!$D$9:$CP$9,0))/1000,0)","v":0},{"$f":"IFERROR(INDEX('Carbon Prices'!$D$10:$CP$15,6,MATCH(Calc_Option3!AJ$6,'Carbon Prices'!$D$9:$CP$9,0))/1000,0)","v":0},{"$f":"IFERROR(INDEX('Carbon Prices'!$D$10:$CP$15,6,MATCH(Calc_Option3!AK$6,'Carbon Prices'!$D$9:$CP$9,0))/1000,0)","v":0},{"$f":"IFERROR(INDEX('Carbon Prices'!$D$10:$CP$15,6,MATCH(Calc_Option3!AL$6,'Carbon Prices'!$D$9:$CP$9,0))/1000,0)","v":0},{"$f":"IFERROR(INDEX('Carbon Prices'!$D$10:$CP$15,6,MATCH(Calc_Option3!AM$6,'Carbon Prices'!$D$9:$CP$9,0))/1000,0)","v":0},{"$f":"IFERROR(INDEX('Carbon Prices'!$D$10:$CP$15,6,MATCH(Calc_Option3!AN$6,'Carbon Prices'!$D$9:$CP$9,0))/1000,0)","v":0},{"$f":"IFERROR(INDEX('Carbon Prices'!$D$10:$CP$15,6,MATCH(Calc_Option3!AO$6,'Carbon Prices'!$D$9:$CP$9,0))/1000,0)","v":0},{"$f":"IFERROR(INDEX('Carbon Prices'!$D$10:$CP$15,6,MATCH(Calc_Option3!AP$6,'Carbon Prices'!$D$9:$CP$9,0))/1000,0)","v":0},{"$f":"IFERROR(INDEX('Carbon Prices'!$D$10:$CP$15,6,MATCH(Calc_Option3!AQ$6,'Carbon Prices'!$D$9:$CP$9,0))/1000,0)","v":0},{"$f":"IFERROR(INDEX('Carbon Prices'!$D$10:$CP$15,6,MATCH(Calc_Option3!AR$6,'Carbon Prices'!$D$9:$CP$9,0))/1000,0)","v":0},{"$f":"IFERROR(INDEX('Carbon Prices'!$D$10:$CP$15,6,MATCH(Calc_Option3!AS$6,'Carbon Prices'!$D$9:$CP$9,0))/1000,0)","v":0},{"$f":"IFERROR(INDEX('Carbon Prices'!$D$10:$CP$15,6,MATCH(Calc_Option3!AT$6,'Carbon Prices'!$D$9:$CP$9,0))/1000,0)","v":0},{"$f":"IFERROR(INDEX('Carbon Prices'!$D$10:$CP$15,6,MATCH(Calc_Option3!AU$6,'Carbon Prices'!$D$9:$CP$9,0))/1000,0)","v":0},{"$f":"IFERROR(INDEX('Carbon Prices'!$D$10:$CP$15,6,MATCH(Calc_Option3!AV$6,'Carbon Prices'!$D$9:$CP$9,0))/1000,0)","v":0},{"$f":"IFERROR(INDEX('Carbon Prices'!$D$10:$CP$15,6,MATCH(Calc_Option3!AW$6,'Carbon Prices'!$D$9:$CP$9,0))/1000,0)","v":0},{"$f":"IFERROR(INDEX('Carbon Prices'!$D$10:$CP$15,6,MATCH(Calc_Option3!AX$6,'Carbon Prices'!$D$9:$CP$9,0))/1000,0)","v":0},{"$f":"IFERROR(INDEX('Carbon Prices'!$D$10:$CP$15,6,MATCH(Calc_Option3!AY$6,'Carbon Prices'!$D$9:$CP$9,0))/1000,0)","v":0},{"$f":"IFERROR(INDEX('Carbon Prices'!$D$10:$CP$15,6,MATCH(Calc_Option3!AZ$6,'Carbon Prices'!$D$9:$CP$9,0))/1000,0)","v":0},{"$f":"IFERROR(INDEX('Carbon Prices'!$D$10:$CP$15,6,MATCH(Calc_Option3!BA$6,'Carbon Prices'!$D$9:$CP$9,0))/1000,0)","v":0},{"$f":"IFERROR(INDEX('Carbon Prices'!$D$10:$CP$15,6,MATCH(Calc_Option3!BB$6,'Carbon Prices'!$D$9:$CP$9,0))/1000,0)","v":0},{"$f":"IFERROR(INDEX('Carbon Prices'!$D$10:$CP$15,6,MATCH(Calc_Option3!BC$6,'Carbon Prices'!$D$9:$CP$9,0))/1000,0)","v":0},{"$f":"IFERROR(INDEX('Carbon Prices'!$D$10:$CP$15,6,MATCH(Calc_Option3!BD$6,'Carbon Prices'!$D$9:$CP$9,0))/1000,0)","v":0},{"$f":"IFERROR(INDEX('Carbon Prices'!$D$10:$CP$15,6,MATCH(Calc_Option3!BE$6,'Carbon Prices'!$D$9:$CP$9,0))/1000,0)","v":0},{"$f":"IFERROR(INDEX('Carbon Prices'!$D$10:$CP$15,6,MATCH(Calc_Option3!BF$6,'Carbon Prices'!$D$9:$CP$9,0))/1000,0)","v":0},{"$f":"IFERROR(INDEX('Carbon Prices'!$D$10:$CP$15,6,MATCH(Calc_Option3!BG$6,'Carbon Prices'!$D$9:$CP$9,0))/1000,0)","v":0},{"$f":"IFERROR(INDEX('Carbon Prices'!$D$10:$CP$15,6,MATCH(Calc_Option3!BH$6,'Carbon Prices'!$D$9:$CP$9,0))/1000,0)","v":0},{"$f":"IFERROR(INDEX('Carbon Prices'!$D$10:$CP$15,6,MATCH(Calc_Option3!BI$6,'Carbon Prices'!$D$9:$CP$9,0))/1000,0)","v":0},{"$f":"IFERROR(INDEX('Carbon Prices'!$D$10:$CP$15,6,MATCH(Calc_Option3!BJ$6,'Carbon Prices'!$D$9:$CP$9,0))/1000,0)","v":0},{"$f":"IFERROR(INDEX('Carbon Prices'!$D$10:$CP$15,6,MATCH(Calc_Option3!BK$6,'Carbon Prices'!$D$9:$CP$9,0))/1000,0)","v":0},{"$f":"IFERROR(INDEX('Carbon Prices'!$D$10:$CP$15,6,MATCH(Calc_Option3!BL$6,'Carbon Prices'!$D$9:$CP$9,0))/1000,0)","v":0},{"$f":"IFERROR(INDEX('Carbon Prices'!$D$10:$CP$15,6,MATCH(Calc_Option3!BM$6,'Carbon Prices'!$D$9:$CP$9,0))/1000,0)","v":0},{"$f":"IFERROR(INDEX('Carbon Prices'!$D$10:$CP$15,6,MATCH(Calc_Option3!BN$6,'Carbon Prices'!$D$9:$CP$9,0))/1000,0)","v":0},{"$f":"IFERROR(INDEX('Carbon Prices'!$D$10:$CP$15,6,MATCH(Calc_Option3!BO$6,'Carbon Prices'!$D$9:$CP$9,0))/1000,0)","v":0},{"$f":"IFERROR(INDEX('Carbon Prices'!$D$10:$CP$15,6,MATCH(Calc_Option3!BP$6,'Carbon Prices'!$D$9:$CP$9,0))/1000,0)","v":0},{"$f":"IFERROR(INDEX('Carbon Prices'!$D$10:$CP$15,6,MATCH(Calc_Option3!BQ$6,'Carbon Prices'!$D$9:$CP$9,0))/1000,0)","v":0},{"$f":"IFERROR(INDEX('Carbon Prices'!$D$10:$CP$15,6,MATCH(Calc_Option3!BR$6,'Carbon Prices'!$D$9:$CP$9,0))/1000,0)","v":0},{"$f":"IFERROR(INDEX('Carbon Prices'!$D$10:$CP$15,6,MATCH(Calc_Option3!BS$6,'Carbon Prices'!$D$9:$CP$9,0))/1000,0)","v":0},{"$f":"IFERROR(INDEX('Carbon Prices'!$D$10:$CP$15,6,MATCH(Calc_Option3!BT$6,'Carbon Prices'!$D$9:$CP$9,0))/1000,0)","v":0},{"$f":"IFERROR(INDEX('Carbon Prices'!$D$10:$CP$15,6,MATCH(Calc_Option3!BU$6,'Carbon Prices'!$D$9:$CP$9,0))/1000,0)","v":0},{"$f":"IFERROR(INDEX('Carbon Prices'!$D$10:$CP$15,6,MATCH(Calc_Option3!BV$6,'Carbon Prices'!$D$9:$CP$9,0))/1000,0)","v":0},{"$f":"IFERROR(INDEX('Carbon Prices'!$D$10:$CP$15,6,MATCH(Calc_Option3!BW$6,'Carbon Prices'!$D$9:$CP$9,0))/1000,0)","v":0},{"$f":"IFERROR(INDEX('Carbon Prices'!$D$10:$CP$15,6,MATCH(Calc_Option3!BX$6,'Carbon Prices'!$D$9:$CP$9,0))/1000,0)","v":0},{"$f":"IFERROR(INDEX('Carbon Prices'!$D$10:$CP$15,6,MATCH(Calc_Option3!BY$6,'Carbon Prices'!$D$9:$CP$9,0))/1000,0)","v":0},{"$f":"IFERROR(INDEX('Carbon Prices'!$D$10:$CP$15,6,MATCH(Calc_Option3!BZ$6,'Carbon Prices'!$D$9:$CP$9,0))/1000,0)","v":0},{"$f":"IFERROR(INDEX('Carbon Prices'!$D$10:$CP$15,6,MATCH(Calc_Option3!CA$6,'Carbon Prices'!$D$9:$CP$9,0))/1000,0)","v":0},{"$f":"IFERROR(INDEX('Carbon Prices'!$D$10:$CP$15,6,MATCH(Calc_Option3!CB$6,'Carbon Prices'!$D$9:$CP$9,0))/1000,0)","v":0},{"$f":"IFERROR(INDEX('Carbon Prices'!$D$10:$CP$15,6,MATCH(Calc_Option3!CC$6,'Carbon Prices'!$D$9:$CP$9,0))/1000,0)","v":0},{"$f":"IFERROR(INDEX('Carbon Prices'!$D$10:$CP$15,6,MATCH(Calc_Option3!CD$6,'Carbon Prices'!$D$9:$CP$9,0))/1000,0)","v":0},{"$f":"IFERROR(INDEX('Carbon Prices'!$D$10:$CP$15,6,MATCH(Calc_Option3!CE$6,'Carbon Prices'!$D$9:$CP$9,0))/1000,0)","v":0},{"$f":"IFERROR(INDEX('Carbon Prices'!$D$10:$CP$15,6,MATCH(Calc_Option3!CF$6,'Carbon Prices'!$D$9:$CP$9,0))/1000,0)","v":0},{"$f":"IFERROR(INDEX('Carbon Prices'!$D$10:$CP$15,6,MATCH(Calc_Option3!CG$6,'Carbon Prices'!$D$9:$CP$9,0))/1000,0)","v":0},{"$f":"IFERROR(INDEX('Carbon Prices'!$D$10:$CP$15,6,MATCH(Calc_Option3!CH$6,'Carbon Prices'!$D$9:$CP$9,0))/1000,0)","v":0},{"$f":"IFERROR(INDEX('Carbon Prices'!$D$10:$CP$15,6,MATCH(Calc_Option3!CI$6,'Carbon Prices'!$D$9:$CP$9,0))/1000,0)","v":0},{"$f":"IFERROR(INDEX('Carbon Prices'!$D$10:$CP$15,6,MATCH(Calc_Option3!CJ$6,'Carbon Prices'!$D$9:$CP$9,0))/1000,0)","v":0},{"$f":"IFERROR(INDEX('Carbon Prices'!$D$10:$CP$15,6,MATCH(Calc_Option3!CK$6,'Carbon Prices'!$D$9:$CP$9,0))/1000,0)","v":0},{"$f":"IFERROR(INDEX('Carbon Prices'!$D$10:$CP$15,6,MATCH(Calc_Option3!CL$6,'Carbon Prices'!$D$9:$CP$9,0))/1000,0)","v":0},{"$f":"IFERROR(INDEX('Carbon Prices'!$D$10:$CP$15,6,MATCH(Calc_Option3!CM$6,'Carbon Prices'!$D$9:$CP$9,0))/1000,0)","v":0},{"$f":"IFERROR(INDEX('Carbon Prices'!$D$10:$CP$15,6,MATCH(Calc_Option3!CN$6,'Carbon Prices'!$D$9:$CP$9,0))/1000,0)","v":0},{"$f":"IFERROR(INDEX('Carbon Prices'!$D$10:$CP$15,6,MATCH(Calc_Option3!CO$6,'Carbon Prices'!$D$9:$CP$9,0))/1000,0)","v":0},{"$f":"IFERROR(INDEX('Carbon Prices'!$D$10:$CP$15,6,MATCH(Calc_Option3!CP$6,'Carbon Prices'!$D$9:$CP$9,0))/1000,0)","v":0},{"$f":"IFERROR(INDEX('Carbon Prices'!$D$10:$CP$15,6,MATCH(Calc_Option3!CQ$6,'Carbon Prices'!$D$9:$CP$9,0))/1000,0)","v":0},{"$f":"IFERROR(INDEX('Carbon Prices'!$D$10:$CP$15,6,MATCH(Calc_Option3!CR$6,'Carbon Prices'!$D$9:$CP$9,0))/1000,0)","v":0},{"$f":"IFERROR(INDEX('Carbon Prices'!$D$10:$CP$15,6,MATCH(Calc_Option3!CS$6,'Carbon Prices'!$D$9:$CP$9,0))/1000,0)","v":0},{"$f":"IFERROR(INDEX('Carbon Prices'!$D$10:$CP$15,6,MATCH(Calc_Option3!CT$6,'Carbon Prices'!$D$9:$CP$9,0))/1000,0)","v":0},{"$f":"IFERROR(INDEX('Carbon Prices'!$D$10:$CP$15,6,MATCH(Calc_Option3!CU$6,'Carbon Prices'!$D$9:$CP$9,0))/1000,0)","v":0},{"$f":"IFERROR(INDEX('Carbon Prices'!$D$10:$CP$15,6,MATCH(Calc_Option3!CV$6,'Carbon Prices'!$D$9:$CP$9,0))/1000,0)","v":0},{"$f":"IFERROR(INDEX('Carbon Prices'!$D$10:$CP$15,6,MATCH(Calc_Option3!CW$6,'Carbon Prices'!$D$9:$CP$9,0))/1000,0)","v":0},{"$f":"IFERROR(INDEX('Carbon Prices'!$D$10:$CP$15,6,MATCH(Calc_Option3!CX$6,'Carbon Prices'!$D$9:$CP$9,0))/1000,0)","v":0},{"$f":"IFERROR(INDEX('Carbon Prices'!$D$10:$CP$15,6,MATCH(Calc_Option3!CY$6,'Carbon Prices'!$D$9:$CP$9,0))/1000,0)","v":0}]
[null,"Discounted total","£000's",{"$f":"(D152*D154)+(D153*D155)*D$7","v":3536.3367401943037},{"$f":"(E152*E154)+(E153*E155)*E$7","v":4048.5822306486921},4858.3225393951598,5668.9924634157869,6474.9561484123169,7290.8547868496698,8100.4476341682521,8906.414929841636,0,0,0,0,0,0,0,0,0,0,0,0,0,0,0,0,0,0,0,0,0,0,0,0,0,0,0,0,0,0,0,0,0,0,0,0,0,0,0,0,0,0,0,0,0,0,0,0,0,0,0,0,0,0,0,0,0,{"$f":"(BQ152*BQ154)+(BQ153*BQ155)*BQ$7","v":0},0,0,0,0,0,0,0,0,0,0,0,0,0,0,0,0,0,0,0,0,0,0,0,0,0,0,0,0,0,0,0,0,0,0]
[]
[]
[null,"EEA Damage costs"]
[]
[null,"Air pollutant emissions- value"]
[null,{"$f":"B138","v":"Sox 2019"},"£000's",{"$f":"IFERROR(IF(OR($C$168=FALSE,LEFT($B162,3)<>\"NOX\"),D53*INDEX('Damage costs'!$P$16:$P$43,MATCH($B162,'Damage costs'!$C$16:$C$43,0))/1000,D53*INDEX('Damage costs'!$T$16:$T$43,MATCH($B162,'Damage costs'!$C$16:$C$43,0))/1000),\"\")","v":2.8196724451830959},{"$f":"IFERROR(IF(OR($C$168=FALSE,LEFT($B162,3)<>\"NOX\"),E53*INDEX('Damage costs'!$P$16:$P$43,MATCH($B162,'Damage costs'!$C$16:$C$43,0))/1000,E53*INDEX('Damage costs'!$T$16:$T$43,MATCH($B162,'Damage costs'!$C$16:$C$43,0))/1000),\"\")","v":2.8196724451830959},{"$f":"IFERROR(IF(OR($C$168=FALSE,LEFT($B162,3)<>\"NOX\"),F53*INDEX('Damage costs'!$P$16:$P$43,MATCH($B162,'Damage costs'!$C$16:$C$43,0))/1000,F53*INDEX('Damage costs'!$T$16:$T$43,MATCH($B162,'Damage costs'!$C$16:$C$43,0))/1000),\"\")","v":2.8196724451830959},{"$f":"IFERROR(IF(OR($C$168=FALSE,LEFT($B162,3)<>\"NOX\"),G53*INDEX('Damage costs'!$P$16:$P$43,MATCH($B162,'Damage costs'!$C$16:$C$43,0))/1000,G53*INDEX('Damage costs'!$T$16:$T$43,MATCH($B162,'Damage costs'!$C$16:$C$43,0))/1000),\"\")","v":2.8196724451830959},{"$f":"IFERROR(IF(OR($C$168=FALSE,LEFT($B162,3)<>\"NOX\"),H53*INDEX('Damage costs'!$P$16:$P$43,MATCH($B162,'Damage costs'!$C$16:$C$43,0))/1000,H53*INDEX('Damage costs'!$T$16:$T$43,MATCH($B162,'Damage costs'!$C$16:$C$43,0))/1000),\"\")","v":2.8196724451830959},{"$f":"IFERROR(IF(OR($C$168=FALSE,LEFT($B162,3)<>\"NOX\"),I53*INDEX('Damage costs'!$P$16:$P$43,MATCH($B162,'Damage costs'!$C$16:$C$43,0))/1000,I53*INDEX('Damage costs'!$T$16:$T$43,MATCH($B162,'Damage costs'!$C$16:$C$43,0))/1000),\"\")","v":2.8196724451830959},{"$f":"IFERROR(IF(OR($C$168=FALSE,LEFT($B162,3)<>\"NOX\"),J53*INDEX('Damage costs'!$P$16:$P$43,MATCH($B162,'Damage costs'!$C$16:$C$43,0))/1000,J53*INDEX('Damage costs'!$T$16:$T$43,MATCH($B162,'Damage costs'!$C$16:$C$43,0))/1000),\"\")","v":2.8196724451830959},{"$f":"IFERROR(IF(OR($C$168=FALSE,LEFT($B162,3)<>\"NOX\"),K53*INDEX('Damage costs'!$P$16:$P$43,MATCH($B162,'Damage costs'!$C$16:$C$43,0))/1000,K53*INDEX('Damage costs'!$T$16:$T$43,MATCH($B162,'Damage costs'!$C$16:$C$43,0))/1000),\"\")","v":2.8196724451830959},{"$f":"IFERROR(IF(OR($C$168=FALSE,LEFT($B162,3)<>\"NOX\"),L53*INDEX('Damage costs'!$P$16:$P$43,MATCH($B162,'Damage costs'!$C$16:$C$43,0))/1000,L53*INDEX('Damage costs'!$T$16:$T$43,MATCH($B162,'Damage costs'!$C$16:$C$43,0))/1000),\"\")","v":0},{"$f":"IFERROR(IF(OR($C$168=FALSE,LEFT($B162,3)<>\"NOX\"),M53*INDEX('Damage costs'!$P$16:$P$43,MATCH($B162,'Damage costs'!$C$16:$C$43,0))/1000,M53*INDEX('Damage costs'!$T$16:$T$43,MATCH($B162,'Damage costs'!$C$16:$C$43,0))/1000),\"\")","v":0},{"$f":"IFERROR(IF(OR($C$168=FALSE,LEFT($B162,3)<>\"NOX\"),N53*INDEX('Damage costs'!$P$16:$P$43,MATCH($B162,'Damage costs'!$C$16:$C$43,0))/1000,N53*INDEX('Damage costs'!$T$16:$T$43,MATCH($B162,'Damage costs'!$C$16:$C$43,0))/1000),\"\")","v":0},{"$f":"IFERROR(IF(OR($C$168=FALSE,LEFT($B162,3)<>\"NOX\"),O53*INDEX('Damage costs'!$P$16:$P$43,MATCH($B162,'Damage costs'!$C$16:$C$43,0))/1000,O53*INDEX('Damage costs'!$T$16:$T$43,MATCH($B162,'Damage costs'!$C$16:$C$43,0))/1000),\"\")","v":0},{"$f":"IFERROR(IF(OR($C$168=FALSE,LEFT($B162,3)<>\"NOX\"),P53*INDEX('Damage costs'!$P$16:$P$43,MATCH($B162,'Damage costs'!$C$16:$C$43,0))/1000,P53*INDEX('Damage costs'!$T$16:$T$43,MATCH($B162,'Damage costs'!$C$16:$C$43,0))/1000),\"\")","v":0},{"$f":"IFERROR(IF(OR($C$168=FALSE,LEFT($B162,3)<>\"NOX\"),Q53*INDEX('Damage costs'!$P$16:$P$43,MATCH($B162,'Damage costs'!$C$16:$C$43,0))/1000,Q53*INDEX('Damage costs'!$T$16:$T$43,MATCH($B162,'Damage costs'!$C$16:$C$43,0))/1000),\"\")","v":0},{"$f":"IFERROR(IF(OR($C$168=FALSE,LEFT($B162,3)<>\"NOX\"),R53*INDEX('Damage costs'!$P$16:$P$43,MATCH($B162,'Damage costs'!$C$16:$C$43,0))/1000,R53*INDEX('Damage costs'!$T$16:$T$43,MATCH($B162,'Damage costs'!$C$16:$C$43,0))/1000),\"\")","v":0},{"$f":"IFERROR(IF(OR($C$168=FALSE,LEFT($B162,3)<>\"NOX\"),S53*INDEX('Damage costs'!$P$16:$P$43,MATCH($B162,'Damage costs'!$C$16:$C$43,0))/1000,S53*INDEX('Damage costs'!$T$16:$T$43,MATCH($B162,'Damage costs'!$C$16:$C$43,0))/1000),\"\")","v":0},{"$f":"IFERROR(IF(OR($C$168=FALSE,LEFT($B162,3)<>\"NOX\"),T53*INDEX('Damage costs'!$P$16:$P$43,MATCH($B162,'Damage costs'!$C$16:$C$43,0))/1000,T53*INDEX('Damage costs'!$T$16:$T$43,MATCH($B162,'Damage costs'!$C$16:$C$43,0))/1000),\"\")","v":0},{"$f":"IFERROR(IF(OR($C$168=FALSE,LEFT($B162,3)<>\"NOX\"),U53*INDEX('Damage costs'!$P$16:$P$43,MATCH($B162,'Damage costs'!$C$16:$C$43,0))/1000,U53*INDEX('Damage costs'!$T$16:$T$43,MATCH($B162,'Damage costs'!$C$16:$C$43,0))/1000),\"\")","v":0},{"$f":"IFERROR(IF(OR($C$168=FALSE,LEFT($B162,3)<>\"NOX\"),V53*INDEX('Damage costs'!$P$16:$P$43,MATCH($B162,'Damage costs'!$C$16:$C$43,0))/1000,V53*INDEX('Damage costs'!$T$16:$T$43,MATCH($B162,'Damage costs'!$C$16:$C$43,0))/1000),\"\")","v":0},{"$f":"IFERROR(IF(OR($C$168=FALSE,LEFT($B162,3)<>\"NOX\"),W53*INDEX('Damage costs'!$P$16:$P$43,MATCH($B162,'Damage costs'!$C$16:$C$43,0))/1000,W53*INDEX('Damage costs'!$T$16:$T$43,MATCH($B162,'Damage costs'!$C$16:$C$43,0))/1000),\"\")","v":0},{"$f":"IFERROR(IF(OR($C$168=FALSE,LEFT($B162,3)<>\"NOX\"),X53*INDEX('Damage costs'!$P$16:$P$43,MATCH($B162,'Damage costs'!$C$16:$C$43,0))/1000,X53*INDEX('Damage costs'!$T$16:$T$43,MATCH($B162,'Damage costs'!$C$16:$C$43,0))/1000),\"\")","v":0},{"$f":"IFERROR(IF(OR($C$168=FALSE,LEFT($B162,3)<>\"NOX\"),Y53*INDEX('Damage costs'!$P$16:$P$43,MATCH($B162,'Damage costs'!$C$16:$C$43,0))/1000,Y53*INDEX('Damage costs'!$T$16:$T$43,MATCH($B162,'Damage costs'!$C$16:$C$43,0))/1000),\"\")","v":0},{"$f":"IFERROR(IF(OR($C$168=FALSE,LEFT($B162,3)<>\"NOX\"),Z53*INDEX('Damage costs'!$P$16:$P$43,MATCH($B162,'Damage costs'!$C$16:$C$43,0))/1000,Z53*INDEX('Damage costs'!$T$16:$T$43,MATCH($B162,'Damage costs'!$C$16:$C$43,0))/1000),\"\")","v":0},{"$f":"IFERROR(IF(OR($C$168=FALSE,LEFT($B162,3)<>\"NOX\"),AA53*INDEX('Damage costs'!$P$16:$P$43,MATCH($B162,'Damage costs'!$C$16:$C$43,0))/1000,AA53*INDEX('Damage costs'!$T$16:$T$43,MATCH($B162,'Damage costs'!$C$16:$C$43,0))/1000),\"\")","v":0},{"$f":"IFERROR(IF(OR($C$168=FALSE,LEFT($B162,3)<>\"NOX\"),AB53*INDEX('Damage costs'!$P$16:$P$43,MATCH($B162,'Damage costs'!$C$16:$C$43,0))/1000,AB53*INDEX('Damage costs'!$T$16:$T$43,MATCH($B162,'Damage costs'!$C$16:$C$43,0))/1000),\"\")","v":0},{"$f":"IFERROR(IF(OR($C$168=FALSE,LEFT($B162,3)<>\"NOX\"),AC53*INDEX('Damage costs'!$P$16:$P$43,MATCH($B162,'Damage costs'!$C$16:$C$43,0))/1000,AC53*INDEX('Damage costs'!$T$16:$T$43,MATCH($B162,'Damage costs'!$C$16:$C$43,0))/1000),\"\")","v":0},{"$f":"IFERROR(IF(OR($C$168=FALSE,LEFT($B162,3)<>\"NOX\"),AD53*INDEX('Damage costs'!$P$16:$P$43,MATCH($B162,'Damage costs'!$C$16:$C$43,0))/1000,AD53*INDEX('Damage costs'!$T$16:$T$43,MATCH($B162,'Damage costs'!$C$16:$C$43,0))/1000),\"\")","v":0},{"$f":"IFERROR(IF(OR($C$168=FALSE,LEFT($B162,3)<>\"NOX\"),AE53*INDEX('Damage costs'!$P$16:$P$43,MATCH($B162,'Damage costs'!$C$16:$C$43,0))/1000,AE53*INDEX('Damage costs'!$T$16:$T$43,MATCH($B162,'Damage costs'!$C$16:$C$43,0))/1000),\"\")","v":0},{"$f":"IFERROR(IF(OR($C$168=FALSE,LEFT($B162,3)<>\"NOX\"),AF53*INDEX('Damage costs'!$P$16:$P$43,MATCH($B162,'Damage costs'!$C$16:$C$43,0))/1000,AF53*INDEX('Damage costs'!$T$16:$T$43,MATCH($B162,'Damage costs'!$C$16:$C$43,0))/1000),\"\")","v":0},{"$f":"IFERROR(IF(OR($C$168=FALSE,LEFT($B162,3)<>\"NOX\"),AG53*INDEX('Damage costs'!$P$16:$P$43,MATCH($B162,'Damage costs'!$C$16:$C$43,0))/1000,AG53*INDEX('Damage costs'!$T$16:$T$43,MATCH($B162,'Damage costs'!$C$16:$C$43,0))/1000),\"\")","v":0},{"$f":"IFERROR(IF(OR($C$168=FALSE,LEFT($B162,3)<>\"NOX\"),AH53*INDEX('Damage costs'!$P$16:$P$43,MATCH($B162,'Damage costs'!$C$16:$C$43,0))/1000,AH53*INDEX('Damage costs'!$T$16:$T$43,MATCH($B162,'Damage costs'!$C$16:$C$43,0))/1000),\"\")","v":0},{"$f":"IFERROR(IF(OR($C$168=FALSE,LEFT($B162,3)<>\"NOX\"),AI53*INDEX('Damage costs'!$P$16:$P$43,MATCH($B162,'Damage costs'!$C$16:$C$43,0))/1000,AI53*INDEX('Damage costs'!$T$16:$T$43,MATCH($B162,'Damage costs'!$C$16:$C$43,0))/1000),\"\")","v":0},{"$f":"IFERROR(IF(OR($C$168=FALSE,LEFT($B162,3)<>\"NOX\"),AJ53*INDEX('Damage costs'!$P$16:$P$43,MATCH($B162,'Damage costs'!$C$16:$C$43,0))/1000,AJ53*INDEX('Damage costs'!$T$16:$T$43,MATCH($B162,'Damage costs'!$C$16:$C$43,0))/1000),\"\")","v":0},{"$f":"IFERROR(IF(OR($C$168=FALSE,LEFT($B162,3)<>\"NOX\"),AK53*INDEX('Damage costs'!$P$16:$P$43,MATCH($B162,'Damage costs'!$C$16:$C$43,0))/1000,AK53*INDEX('Damage costs'!$T$16:$T$43,MATCH($B162,'Damage costs'!$C$16:$C$43,0))/1000),\"\")","v":0},{"$f":"IFERROR(IF(OR($C$168=FALSE,LEFT($B162,3)<>\"NOX\"),AL53*INDEX('Damage costs'!$P$16:$P$43,MATCH($B162,'Damage costs'!$C$16:$C$43,0))/1000,AL53*INDEX('Damage costs'!$T$16:$T$43,MATCH($B162,'Damage costs'!$C$16:$C$43,0))/1000),\"\")","v":0},{"$f":"IFERROR(IF(OR($C$168=FALSE,LEFT($B162,3)<>\"NOX\"),AM53*INDEX('Damage costs'!$P$16:$P$43,MATCH($B162,'Damage costs'!$C$16:$C$43,0))/1000,AM53*INDEX('Damage costs'!$T$16:$T$43,MATCH($B162,'Damage costs'!$C$16:$C$43,0))/1000),\"\")","v":0},{"$f":"IFERROR(IF(OR($C$168=FALSE,LEFT($B162,3)<>\"NOX\"),AN53*INDEX('Damage costs'!$P$16:$P$43,MATCH($B162,'Damage costs'!$C$16:$C$43,0))/1000,AN53*INDEX('Damage costs'!$T$16:$T$43,MATCH($B162,'Damage costs'!$C$16:$C$43,0))/1000),\"\")","v":0},{"$f":"IFERROR(IF(OR($C$168=FALSE,LEFT($B162,3)<>\"NOX\"),AO53*INDEX('Damage costs'!$P$16:$P$43,MATCH($B162,'Damage costs'!$C$16:$C$43,0))/1000,AO53*INDEX('Damage costs'!$T$16:$T$43,MATCH($B162,'Damage costs'!$C$16:$C$43,0))/1000),\"\")","v":0},{"$f":"IFERROR(IF(OR($C$168=FALSE,LEFT($B162,3)<>\"NOX\"),AP53*INDEX('Damage costs'!$P$16:$P$43,MATCH($B162,'Damage costs'!$C$16:$C$43,0))/1000,AP53*INDEX('Damage costs'!$T$16:$T$43,MATCH($B162,'Damage costs'!$C$16:$C$43,0))/1000),\"\")","v":0},{"$f":"IFERROR(IF(OR($C$168=FALSE,LEFT($B162,3)<>\"NOX\"),AQ53*INDEX('Damage costs'!$P$16:$P$43,MATCH($B162,'Damage costs'!$C$16:$C$43,0))/1000,AQ53*INDEX('Damage costs'!$T$16:$T$43,MATCH($B162,'Damage costs'!$C$16:$C$43,0))/1000),\"\")","v":0},{"$f":"IFERROR(IF(OR($C$168=FALSE,LEFT($B162,3)<>\"NOX\"),AR53*INDEX('Damage costs'!$P$16:$P$43,MATCH($B162,'Damage costs'!$C$16:$C$43,0))/1000,AR53*INDEX('Damage costs'!$T$16:$T$43,MATCH($B162,'Damage costs'!$C$16:$C$43,0))/1000),\"\")","v":0},{"$f":"IFERROR(IF(OR($C$168=FALSE,LEFT($B162,3)<>\"NOX\"),AS53*INDEX('Damage costs'!$P$16:$P$43,MATCH($B162,'Damage costs'!$C$16:$C$43,0))/1000,AS53*INDEX('Damage costs'!$T$16:$T$43,MATCH($B162,'Damage costs'!$C$16:$C$43,0))/1000),\"\")","v":0},{"$f":"IFERROR(IF(OR($C$168=FALSE,LEFT($B162,3)<>\"NOX\"),AT53*INDEX('Damage costs'!$P$16:$P$43,MATCH($B162,'Damage costs'!$C$16:$C$43,0))/1000,AT53*INDEX('Damage costs'!$T$16:$T$43,MATCH($B162,'Damage costs'!$C$16:$C$43,0))/1000),\"\")","v":0},{"$f":"IFERROR(IF(OR($C$168=FALSE,LEFT($B162,3)<>\"NOX\"),AU53*INDEX('Damage costs'!$P$16:$P$43,MATCH($B162,'Damage costs'!$C$16:$C$43,0))/1000,AU53*INDEX('Damage costs'!$T$16:$T$43,MATCH($B162,'Damage costs'!$C$16:$C$43,0))/1000),\"\")","v":0},{"$f":"IFERROR(IF(OR($C$168=FALSE,LEFT($B162,3)<>\"NOX\"),AV53*INDEX('Damage costs'!$P$16:$P$43,MATCH($B162,'Damage costs'!$C$16:$C$43,0))/1000,AV53*INDEX('Damage costs'!$T$16:$T$43,MATCH($B162,'Damage costs'!$C$16:$C$43,0))/1000),\"\")","v":0},{"$f":"IFERROR(IF(OR($C$168=FALSE,LEFT($B162,3)<>\"NOX\"),AW53*INDEX('Damage costs'!$P$16:$P$43,MATCH($B162,'Damage costs'!$C$16:$C$43,0))/1000,AW53*INDEX('Damage costs'!$T$16:$T$43,MATCH($B162,'Damage costs'!$C$16:$C$43,0))/1000),\"\")","v":0},{"$f":"IFERROR(IF(OR($C$168=FALSE,LEFT($B162,3)<>\"NOX\"),AX53*INDEX('Damage costs'!$P$16:$P$43,MATCH($B162,'Damage costs'!$C$16:$C$43,0))/1000,AX53*INDEX('Damage costs'!$T$16:$T$43,MATCH($B162,'Damage costs'!$C$16:$C$43,0))/1000),\"\")","v":0},{"$f":"IFERROR(IF(OR($C$168=FALSE,LEFT($B162,3)<>\"NOX\"),AY53*INDEX('Damage costs'!$P$16:$P$43,MATCH($B162,'Damage costs'!$C$16:$C$43,0))/1000,AY53*INDEX('Damage costs'!$T$16:$T$43,MATCH($B162,'Damage costs'!$C$16:$C$43,0))/1000),\"\")","v":0},{"$f":"IFERROR(IF(OR($C$168=FALSE,LEFT($B162,3)<>\"NOX\"),AZ53*INDEX('Damage costs'!$P$16:$P$43,MATCH($B162,'Damage costs'!$C$16:$C$43,0))/1000,AZ53*INDEX('Damage costs'!$T$16:$T$43,MATCH($B162,'Damage costs'!$C$16:$C$43,0))/1000),\"\")","v":0},{"$f":"IFERROR(IF(OR($C$168=FALSE,LEFT($B162,3)<>\"NOX\"),BA53*INDEX('Damage costs'!$P$16:$P$43,MATCH($B162,'Damage costs'!$C$16:$C$43,0))/1000,BA53*INDEX('Damage costs'!$T$16:$T$43,MATCH($B162,'Damage costs'!$C$16:$C$43,0))/1000),\"\")","v":0},{"$f":"IFERROR(IF(OR($C$168=FALSE,LEFT($B162,3)<>\"NOX\"),BB53*INDEX('Damage costs'!$P$16:$P$43,MATCH($B162,'Damage costs'!$C$16:$C$43,0))/1000,BB53*INDEX('Damage costs'!$T$16:$T$43,MATCH($B162,'Damage costs'!$C$16:$C$43,0))/1000),\"\")","v":0},{"$f":"IFERROR(IF(OR($C$168=FALSE,LEFT($B162,3)<>\"NOX\"),BC53*INDEX('Damage costs'!$P$16:$P$43,MATCH($B162,'Damage costs'!$C$16:$C$43,0))/1000,BC53*INDEX('Damage costs'!$T$16:$T$43,MATCH($B162,'Damage costs'!$C$16:$C$43,0))/1000),\"\")","v":0},{"$f":"IFERROR(IF(OR($C$168=FALSE,LEFT($B162,3)<>\"NOX\"),BD53*INDEX('Damage costs'!$P$16:$P$43,MATCH($B162,'Damage costs'!$C$16:$C$43,0))/1000,BD53*INDEX('Damage costs'!$T$16:$T$43,MATCH($B162,'Damage costs'!$C$16:$C$43,0))/1000),\"\")","v":0},{"$f":"IFERROR(IF(OR($C$168=FALSE,LEFT($B162,3)<>\"NOX\"),BE53*INDEX('Damage costs'!$P$16:$P$43,MATCH($B162,'Damage costs'!$C$16:$C$43,0))/1000,BE53*INDEX('Damage costs'!$T$16:$T$43,MATCH($B162,'Damage costs'!$C$16:$C$43,0))/1000),\"\")","v":0},{"$f":"IFERROR(IF(OR($C$168=FALSE,LEFT($B162,3)<>\"NOX\"),BF53*INDEX('Damage costs'!$P$16:$P$43,MATCH($B162,'Damage costs'!$C$16:$C$43,0))/1000,BF53*INDEX('Damage costs'!$T$16:$T$43,MATCH($B162,'Damage costs'!$C$16:$C$43,0))/1000),\"\")","v":0},{"$f":"IFERROR(IF(OR($C$168=FALSE,LEFT($B162,3)<>\"NOX\"),BG53*INDEX('Damage costs'!$P$16:$P$43,MATCH($B162,'Damage costs'!$C$16:$C$43,0))/1000,BG53*INDEX('Damage costs'!$T$16:$T$43,MATCH($B162,'Damage costs'!$C$16:$C$43,0))/1000),\"\")","v":0},{"$f":"IFERROR(IF(OR($C$168=FALSE,LEFT($B162,3)<>\"NOX\"),BH53*INDEX('Damage costs'!$P$16:$P$43,MATCH($B162,'Damage costs'!$C$16:$C$43,0))/1000,BH53*INDEX('Damage costs'!$T$16:$T$43,MATCH($B162,'Damage costs'!$C$16:$C$43,0))/1000),\"\")","v":0},{"$f":"IFERROR(IF(OR($C$168=FALSE,LEFT($B162,3)<>\"NOX\"),BI53*INDEX('Damage costs'!$P$16:$P$43,MATCH($B162,'Damage costs'!$C$16:$C$43,0))/1000,BI53*INDEX('Damage costs'!$T$16:$T$43,MATCH($B162,'Damage costs'!$C$16:$C$43,0))/1000),\"\")","v":0},{"$f":"IFERROR(IF(OR($C$168=FALSE,LEFT($B162,3)<>\"NOX\"),BJ53*INDEX('Damage costs'!$P$16:$P$43,MATCH($B162,'Damage costs'!$C$16:$C$43,0))/1000,BJ53*INDEX('Damage costs'!$T$16:$T$43,MATCH($B162,'Damage costs'!$C$16:$C$43,0))/1000),\"\")","v":0},{"$f":"IFERROR(IF(OR($C$168=FALSE,LEFT($B162,3)<>\"NOX\"),BK53*INDEX('Damage costs'!$P$16:$P$43,MATCH($B162,'Damage costs'!$C$16:$C$43,0))/1000,BK53*INDEX('Damage costs'!$T$16:$T$43,MATCH($B162,'Damage costs'!$C$16:$C$43,0))/1000),\"\")","v":0},{"$f":"IFERROR(IF(OR($C$168=FALSE,LEFT($B162,3)<>\"NOX\"),BL53*INDEX('Damage costs'!$P$16:$P$43,MATCH($B162,'Damage costs'!$C$16:$C$43,0))/1000,BL53*INDEX('Damage costs'!$T$16:$T$43,MATCH($B162,'Damage costs'!$C$16:$C$43,0))/1000),\"\")","v":0},{"$f":"IFERROR(IF(OR($C$168=FALSE,LEFT($B162,3)<>\"NOX\"),BM53*INDEX('Damage costs'!$P$16:$P$43,MATCH($B162,'Damage costs'!$C$16:$C$43,0))/1000,BM53*INDEX('Damage costs'!$T$16:$T$43,MATCH($B162,'Damage costs'!$C$16:$C$43,0))/1000),\"\")","v":0},{"$f":"IFERROR(IF(OR($C$168=FALSE,LEFT($B162,3)<>\"NOX\"),BN53*INDEX('Damage costs'!$P$16:$P$43,MATCH($B162,'Damage costs'!$C$16:$C$43,0))/1000,BN53*INDEX('Damage costs'!$T$16:$T$43,MATCH($B162,'Damage costs'!$C$16:$C$43,0))/1000),\"\")","v":0},{"$f":"IFERROR(IF(OR($C$168=FALSE,LEFT($B162,3)<>\"NOX\"),BO53*INDEX('Damage costs'!$P$16:$P$43,MATCH($B162,'Damage costs'!$C$16:$C$43,0))/1000,BO53*INDEX('Damage costs'!$T$16:$T$43,MATCH($B162,'Damage costs'!$C$16:$C$43,0))/1000),\"\")","v":0},{"$f":"IFERROR(IF(OR($C$168=FALSE,LEFT($B162,3)<>\"NOX\"),BP53*INDEX('Damage costs'!$P$16:$P$43,MATCH($B162,'Damage costs'!$C$16:$C$43,0))/1000,BP53*INDEX('Damage costs'!$T$16:$T$43,MATCH($B162,'Damage costs'!$C$16:$C$43,0))/1000),\"\")","v":0},{"$f":"IFERROR(IF(OR($C$168=FALSE,LEFT($B162,3)<>\"NOX\"),BQ53*INDEX('Damage costs'!$P$16:$P$43,MATCH($B162,'Damage costs'!$C$16:$C$43,0))/1000,BQ53*INDEX('Damage costs'!$T$16:$T$43,MATCH($B162,'Damage costs'!$C$16:$C$43,0))/1000),\"\")","v":0},{"$f":"IFERROR(IF(OR($C$168=FALSE,LEFT($B162,3)<>\"NOX\"),BR53*INDEX('Damage costs'!$P$16:$P$43,MATCH($B162,'Damage costs'!$C$16:$C$43,0))/1000,BR53*INDEX('Damage costs'!$T$16:$T$43,MATCH($B162,'Damage costs'!$C$16:$C$43,0))/1000),\"\")","v":0},{"$f":"IFERROR(IF(OR($C$168=FALSE,LEFT($B162,3)<>\"NOX\"),BS53*INDEX('Damage costs'!$P$16:$P$43,MATCH($B162,'Damage costs'!$C$16:$C$43,0))/1000,BS53*INDEX('Damage costs'!$T$16:$T$43,MATCH($B162,'Damage costs'!$C$16:$C$43,0))/1000),\"\")","v":0},{"$f":"IFERROR(IF(OR($C$168=FALSE,LEFT($B162,3)<>\"NOX\"),BT53*INDEX('Damage costs'!$P$16:$P$43,MATCH($B162,'Damage costs'!$C$16:$C$43,0))/1000,BT53*INDEX('Damage costs'!$T$16:$T$43,MATCH($B162,'Damage costs'!$C$16:$C$43,0))/1000),\"\")","v":0},{"$f":"IFERROR(IF(OR($C$168=FALSE,LEFT($B162,3)<>\"NOX\"),BU53*INDEX('Damage costs'!$P$16:$P$43,MATCH($B162,'Damage costs'!$C$16:$C$43,0))/1000,BU53*INDEX('Damage costs'!$T$16:$T$43,MATCH($B162,'Damage costs'!$C$16:$C$43,0))/1000),\"\")","v":0},{"$f":"IFERROR(IF(OR($C$168=FALSE,LEFT($B162,3)<>\"NOX\"),BV53*INDEX('Damage costs'!$P$16:$P$43,MATCH($B162,'Damage costs'!$C$16:$C$43,0))/1000,BV53*INDEX('Damage costs'!$T$16:$T$43,MATCH($B162,'Damage costs'!$C$16:$C$43,0))/1000),\"\")","v":0},{"$f":"IFERROR(IF(OR($C$168=FALSE,LEFT($B162,3)<>\"NOX\"),BW53*INDEX('Damage costs'!$P$16:$P$43,MATCH($B162,'Damage costs'!$C$16:$C$43,0))/1000,BW53*INDEX('Damage costs'!$T$16:$T$43,MATCH($B162,'Damage costs'!$C$16:$C$43,0))/1000),\"\")","v":0},{"$f":"IFERROR(IF(OR($C$168=FALSE,LEFT($B162,3)<>\"NOX\"),BX53*INDEX('Damage costs'!$P$16:$P$43,MATCH($B162,'Damage costs'!$C$16:$C$43,0))/1000,BX53*INDEX('Damage costs'!$T$16:$T$43,MATCH($B162,'Damage costs'!$C$16:$C$43,0))/1000),\"\")","v":0},{"$f":"IFERROR(IF(OR($C$168=FALSE,LEFT($B162,3)<>\"NOX\"),BY53*INDEX('Damage costs'!$P$16:$P$43,MATCH($B162,'Damage costs'!$C$16:$C$43,0))/1000,BY53*INDEX('Damage costs'!$T$16:$T$43,MATCH($B162,'Damage costs'!$C$16:$C$43,0))/1000),\"\")","v":0},{"$f":"IFERROR(IF(OR($C$168=FALSE,LEFT($B162,3)<>\"NOX\"),BZ53*INDEX('Damage costs'!$P$16:$P$43,MATCH($B162,'Damage costs'!$C$16:$C$43,0))/1000,BZ53*INDEX('Damage costs'!$T$16:$T$43,MATCH($B162,'Damage costs'!$C$16:$C$43,0))/1000),\"\")","v":0},{"$f":"IFERROR(IF(OR($C$168=FALSE,LEFT($B162,3)<>\"NOX\"),CA53*INDEX('Damage costs'!$P$16:$P$43,MATCH($B162,'Damage costs'!$C$16:$C$43,0))/1000,CA53*INDEX('Damage costs'!$T$16:$T$43,MATCH($B162,'Damage costs'!$C$16:$C$43,0))/1000),\"\")","v":0},{"$f":"IFERROR(IF(OR($C$168=FALSE,LEFT($B162,3)<>\"NOX\"),CB53*INDEX('Damage costs'!$P$16:$P$43,MATCH($B162,'Damage costs'!$C$16:$C$43,0))/1000,CB53*INDEX('Damage costs'!$T$16:$T$43,MATCH($B162,'Damage costs'!$C$16:$C$43,0))/1000),\"\")","v":0},{"$f":"IFERROR(IF(OR($C$168=FALSE,LEFT($B162,3)<>\"NOX\"),CC53*INDEX('Damage costs'!$P$16:$P$43,MATCH($B162,'Damage costs'!$C$16:$C$43,0))/1000,CC53*INDEX('Damage costs'!$T$16:$T$43,MATCH($B162,'Damage costs'!$C$16:$C$43,0))/1000),\"\")","v":0},{"$f":"IFERROR(IF(OR($C$168=FALSE,LEFT($B162,3)<>\"NOX\"),CD53*INDEX('Damage costs'!$P$16:$P$43,MATCH($B162,'Damage costs'!$C$16:$C$43,0))/1000,CD53*INDEX('Damage costs'!$T$16:$T$43,MATCH($B162,'Damage costs'!$C$16:$C$43,0))/1000),\"\")","v":0},{"$f":"IFERROR(IF(OR($C$168=FALSE,LEFT($B162,3)<>\"NOX\"),CE53*INDEX('Damage costs'!$P$16:$P$43,MATCH($B162,'Damage costs'!$C$16:$C$43,0))/1000,CE53*INDEX('Damage costs'!$T$16:$T$43,MATCH($B162,'Damage costs'!$C$16:$C$43,0))/1000),\"\")","v":0},{"$f":"IFERROR(IF(OR($C$168=FALSE,LEFT($B162,3)<>\"NOX\"),CF53*INDEX('Damage costs'!$P$16:$P$43,MATCH($B162,'Damage costs'!$C$16:$C$43,0))/1000,CF53*INDEX('Damage costs'!$T$16:$T$43,MATCH($B162,'Damage costs'!$C$16:$C$43,0))/1000),\"\")","v":0},{"$f":"IFERROR(IF(OR($C$168=FALSE,LEFT($B162,3)<>\"NOX\"),CG53*INDEX('Damage costs'!$P$16:$P$43,MATCH($B162,'Damage costs'!$C$16:$C$43,0))/1000,CG53*INDEX('Damage costs'!$T$16:$T$43,MATCH($B162,'Damage costs'!$C$16:$C$43,0))/1000),\"\")","v":0},{"$f":"IFERROR(IF(OR($C$168=FALSE,LEFT($B162,3)<>\"NOX\"),CH53*INDEX('Damage costs'!$P$16:$P$43,MATCH($B162,'Damage costs'!$C$16:$C$43,0))/1000,CH53*INDEX('Damage costs'!$T$16:$T$43,MATCH($B162,'Damage costs'!$C$16:$C$43,0))/1000),\"\")","v":0},{"$f":"IFERROR(IF(OR($C$168=FALSE,LEFT($B162,3)<>\"NOX\"),CI53*INDEX('Damage costs'!$P$16:$P$43,MATCH($B162,'Damage costs'!$C$16:$C$43,0))/1000,CI53*INDEX('Damage costs'!$T$16:$T$43,MATCH($B162,'Damage costs'!$C$16:$C$43,0))/1000),\"\")","v":0},{"$f":"IFERROR(IF(OR($C$168=FALSE,LEFT($B162,3)<>\"NOX\"),CJ53*INDEX('Damage costs'!$P$16:$P$43,MATCH($B162,'Damage costs'!$C$16:$C$43,0))/1000,CJ53*INDEX('Damage costs'!$T$16:$T$43,MATCH($B162,'Damage costs'!$C$16:$C$43,0))/1000),\"\")","v":0},{"$f":"IFERROR(IF(OR($C$168=FALSE,LEFT($B162,3)<>\"NOX\"),CK53*INDEX('Damage costs'!$P$16:$P$43,MATCH($B162,'Damage costs'!$C$16:$C$43,0))/1000,CK53*INDEX('Damage costs'!$T$16:$T$43,MATCH($B162,'Damage costs'!$C$16:$C$43,0))/1000),\"\")","v":0},{"$f":"IFERROR(IF(OR($C$168=FALSE,LEFT($B162,3)<>\"NOX\"),CL53*INDEX('Damage costs'!$P$16:$P$43,MATCH($B162,'Damage costs'!$C$16:$C$43,0))/1000,CL53*INDEX('Damage costs'!$T$16:$T$43,MATCH($B162,'Damage costs'!$C$16:$C$43,0))/1000),\"\")","v":0},{"$f":"IFERROR(IF(OR($C$168=FALSE,LEFT($B162,3)<>\"NOX\"),CM53*INDEX('Damage costs'!$P$16:$P$43,MATCH($B162,'Damage costs'!$C$16:$C$43,0))/1000,CM53*INDEX('Damage costs'!$T$16:$T$43,MATCH($B162,'Damage costs'!$C$16:$C$43,0))/1000),\"\")","v":0},{"$f":"IFERROR(IF(OR($C$168=FALSE,LEFT($B162,3)<>\"NOX\"),CN53*INDEX('Damage costs'!$P$16:$P$43,MATCH($B162,'Damage costs'!$C$16:$C$43,0))/1000,CN53*INDEX('Damage costs'!$T$16:$T$43,MATCH($B162,'Damage costs'!$C$16:$C$43,0))/1000),\"\")","v":0},{"$f":"IFERROR(IF(OR($C$168=FALSE,LEFT($B162,3)<>\"NOX\"),CO53*INDEX('Damage costs'!$P$16:$P$43,MATCH($B162,'Damage costs'!$C$16:$C$43,0))/1000,CO53*INDEX('Damage costs'!$T$16:$T$43,MATCH($B162,'Damage costs'!$C$16:$C$43,0))/1000),\"\")","v":0},{"$f":"IFERROR(IF(OR($C$168=FALSE,LEFT($B162,3)<>\"NOX\"),CP53*INDEX('Damage costs'!$P$16:$P$43,MATCH($B162,'Damage costs'!$C$16:$C$43,0))/1000,CP53*INDEX('Damage costs'!$T$16:$T$43,MATCH($B162,'Damage costs'!$C$16:$C$43,0))/1000),\"\")","v":0},{"$f":"IFERROR(IF(OR($C$168=FALSE,LEFT($B162,3)<>\"NOX\"),CQ53*INDEX('Damage costs'!$P$16:$P$43,MATCH($B162,'Damage costs'!$C$16:$C$43,0))/1000,CQ53*INDEX('Damage costs'!$T$16:$T$43,MATCH($B162,'Damage costs'!$C$16:$C$43,0))/1000),\"\")","v":0},{"$f":"IFERROR(IF(OR($C$168=FALSE,LEFT($B162,3)<>\"NOX\"),CR53*INDEX('Damage costs'!$P$16:$P$43,MATCH($B162,'Damage costs'!$C$16:$C$43,0))/1000,CR53*INDEX('Damage costs'!$T$16:$T$43,MATCH($B162,'Damage costs'!$C$16:$C$43,0))/1000),\"\")","v":0},{"$f":"IFERROR(IF(OR($C$168=FALSE,LEFT($B162,3)<>\"NOX\"),CS53*INDEX('Damage costs'!$P$16:$P$43,MATCH($B162,'Damage costs'!$C$16:$C$43,0))/1000,CS53*INDEX('Damage costs'!$T$16:$T$43,MATCH($B162,'Damage costs'!$C$16:$C$43,0))/1000),\"\")","v":0},{"$f":"IFERROR(IF(OR($C$168=FALSE,LEFT($B162,3)<>\"NOX\"),CT53*INDEX('Damage costs'!$P$16:$P$43,MATCH($B162,'Damage costs'!$C$16:$C$43,0))/1000,CT53*INDEX('Damage costs'!$T$16:$T$43,MATCH($B162,'Damage costs'!$C$16:$C$43,0))/1000),\"\")","v":0},{"$f":"IFERROR(IF(OR($C$168=FALSE,LEFT($B162,3)<>\"NOX\"),CU53*INDEX('Damage costs'!$P$16:$P$43,MATCH($B162,'Damage costs'!$C$16:$C$43,0))/1000,CU53*INDEX('Damage costs'!$T$16:$T$43,MATCH($B162,'Damage costs'!$C$16:$C$43,0))/1000),\"\")","v":0},{"$f":"IFERROR(IF(OR($C$168=FALSE,LEFT($B162,3)<>\"NOX\"),CV53*INDEX('Damage costs'!$P$16:$P$43,MATCH($B162,'Damage costs'!$C$16:$C$43,0))/1000,CV53*INDEX('Damage costs'!$T$16:$T$43,MATCH($B162,'Damage costs'!$C$16:$C$43,0))/1000),\"\")","v":0},{"$f":"IFERROR(IF(OR($C$168=FALSE,LEFT($B162,3)<>\"NOX\"),CW53*INDEX('Damage costs'!$P$16:$P$43,MATCH($B162,'Damage costs'!$C$16:$C$43,0))/1000,CW53*INDEX('Damage costs'!$T$16:$T$43,MATCH($B162,'Damage costs'!$C$16:$C$43,0))/1000),\"\")","v":0},{"$f":"IFERROR(IF(OR($C$168=FALSE,LEFT($B162,3)<>\"NOX\"),CX53*INDEX('Damage costs'!$P$16:$P$43,MATCH($B162,'Damage costs'!$C$16:$C$43,0))/1000,CX53*INDEX('Damage costs'!$T$16:$T$43,MATCH($B162,'Damage costs'!$C$16:$C$43,0))/1000),\"\")","v":0},{"$f":"IFERROR(IF(OR($C$168=FALSE,LEFT($B162,3)<>\"NOX\"),CY53*INDEX('Damage costs'!$P$16:$P$43,MATCH($B162,'Damage costs'!$C$16:$C$43,0))/1000,CY53*INDEX('Damage costs'!$T$16:$T$43,MATCH($B162,'Damage costs'!$C$16:$C$43,0))/1000),\"\")","v":0}]
[null,0,"£000's",{"$f":"IFERROR(IF(OR($C$168=FALSE,LEFT($B163,3)<>\"NOX\"),D54*INDEX('Damage costs'!$P$16:$P$43,MATCH($B163,'Damage costs'!$C$16:$C$43,0))/1000,D54*INDEX('Damage costs'!$T$16:$T$43,MATCH($B163,'Damage costs'!$C$16:$C$43,0))/1000),\"\")","v":""},{"$f":"IFERROR(IF(OR($C$168=FALSE,LEFT($B163,3)<>\"NOX\"),E54*INDEX('Damage costs'!$P$16:$P$43,MATCH($B163,'Damage costs'!$C$16:$C$43,0))/1000,E54*INDEX('Damage costs'!$T$16:$T$43,MATCH($B163,'Damage costs'!$C$16:$C$43,0))/1000),\"\")","v":""},{"$f":"IFERROR(IF(OR($C$168=FALSE,LEFT($B163,3)<>\"NOX\"),F54*INDEX('Damage costs'!$P$16:$P$43,MATCH($B163,'Damage costs'!$C$16:$C$43,0))/1000,F54*INDEX('Damage costs'!$T$16:$T$43,MATCH($B163,'Damage costs'!$C$16:$C$43,0))/1000),\"\")","v":""},{"$f":"IFERROR(IF(OR($C$168=FALSE,LEFT($B163,3)<>\"NOX\"),G54*INDEX('Damage costs'!$P$16:$P$43,MATCH($B163,'Damage costs'!$C$16:$C$43,0))/1000,G54*INDEX('Damage costs'!$T$16:$T$43,MATCH($B163,'Damage costs'!$C$16:$C$43,0))/1000),\"\")","v":""},{"$f":"IFERROR(IF(OR($C$168=FALSE,LEFT($B163,3)<>\"NOX\"),H54*INDEX('Damage costs'!$P$16:$P$43,MATCH($B163,'Damage costs'!$C$16:$C$43,0))/1000,H54*INDEX('Damage costs'!$T$16:$T$43,MATCH($B163,'Damage costs'!$C$16:$C$43,0))/1000),\"\")","v":""},{"$f":"IFERROR(IF(OR($C$168=FALSE,LEFT($B163,3)<>\"NOX\"),I54*INDEX('Damage costs'!$P$16:$P$43,MATCH($B163,'Damage costs'!$C$16:$C$43,0))/1000,I54*INDEX('Damage costs'!$T$16:$T$43,MATCH($B163,'Damage costs'!$C$16:$C$43,0))/1000),\"\")","v":""},{"$f":"IFERROR(IF(OR($C$168=FALSE,LEFT($B163,3)<>\"NOX\"),J54*INDEX('Damage costs'!$P$16:$P$43,MATCH($B163,'Damage costs'!$C$16:$C$43,0))/1000,J54*INDEX('Damage costs'!$T$16:$T$43,MATCH($B163,'Damage costs'!$C$16:$C$43,0))/1000),\"\")","v":""},{"$f":"IFERROR(IF(OR($C$168=FALSE,LEFT($B163,3)<>\"NOX\"),K54*INDEX('Damage costs'!$P$16:$P$43,MATCH($B163,'Damage costs'!$C$16:$C$43,0))/1000,K54*INDEX('Damage costs'!$T$16:$T$43,MATCH($B163,'Damage costs'!$C$16:$C$43,0))/1000),\"\")","v":""},{"$f":"IFERROR(IF(OR($C$168=FALSE,LEFT($B163,3)<>\"NOX\"),L54*INDEX('Damage costs'!$P$16:$P$43,MATCH($B163,'Damage costs'!$C$16:$C$43,0))/1000,L54*INDEX('Damage costs'!$T$16:$T$43,MATCH($B163,'Damage costs'!$C$16:$C$43,0))/1000),\"\")","v":""},{"$f":"IFERROR(IF(OR($C$168=FALSE,LEFT($B163,3)<>\"NOX\"),M54*INDEX('Damage costs'!$P$16:$P$43,MATCH($B163,'Damage costs'!$C$16:$C$43,0))/1000,M54*INDEX('Damage costs'!$T$16:$T$43,MATCH($B163,'Damage costs'!$C$16:$C$43,0))/1000),\"\")","v":""},{"$f":"IFERROR(IF(OR($C$168=FALSE,LEFT($B163,3)<>\"NOX\"),N54*INDEX('Damage costs'!$P$16:$P$43,MATCH($B163,'Damage costs'!$C$16:$C$43,0))/1000,N54*INDEX('Damage costs'!$T$16:$T$43,MATCH($B163,'Damage costs'!$C$16:$C$43,0))/1000),\"\")","v":""},{"$f":"IFERROR(IF(OR($C$168=FALSE,LEFT($B163,3)<>\"NOX\"),O54*INDEX('Damage costs'!$P$16:$P$43,MATCH($B163,'Damage costs'!$C$16:$C$43,0))/1000,O54*INDEX('Damage costs'!$T$16:$T$43,MATCH($B163,'Damage costs'!$C$16:$C$43,0))/1000),\"\")","v":""},{"$f":"IFERROR(IF(OR($C$168=FALSE,LEFT($B163,3)<>\"NOX\"),P54*INDEX('Damage costs'!$P$16:$P$43,MATCH($B163,'Damage costs'!$C$16:$C$43,0))/1000,P54*INDEX('Damage costs'!$T$16:$T$43,MATCH($B163,'Damage costs'!$C$16:$C$43,0))/1000),\"\")","v":""},{"$f":"IFERROR(IF(OR($C$168=FALSE,LEFT($B163,3)<>\"NOX\"),Q54*INDEX('Damage costs'!$P$16:$P$43,MATCH($B163,'Damage costs'!$C$16:$C$43,0))/1000,Q54*INDEX('Damage costs'!$T$16:$T$43,MATCH($B163,'Damage costs'!$C$16:$C$43,0))/1000),\"\")","v":""},{"$f":"IFERROR(IF(OR($C$168=FALSE,LEFT($B163,3)<>\"NOX\"),R54*INDEX('Damage costs'!$P$16:$P$43,MATCH($B163,'Damage costs'!$C$16:$C$43,0))/1000,R54*INDEX('Damage costs'!$T$16:$T$43,MATCH($B163,'Damage costs'!$C$16:$C$43,0))/1000),\"\")","v":""},{"$f":"IFERROR(IF(OR($C$168=FALSE,LEFT($B163,3)<>\"NOX\"),S54*INDEX('Damage costs'!$P$16:$P$43,MATCH($B163,'Damage costs'!$C$16:$C$43,0))/1000,S54*INDEX('Damage costs'!$T$16:$T$43,MATCH($B163,'Damage costs'!$C$16:$C$43,0))/1000),\"\")","v":""},{"$f":"IFERROR(IF(OR($C$168=FALSE,LEFT($B163,3)<>\"NOX\"),T54*INDEX('Damage costs'!$P$16:$P$43,MATCH($B163,'Damage costs'!$C$16:$C$43,0))/1000,T54*INDEX('Damage costs'!$T$16:$T$43,MATCH($B163,'Damage costs'!$C$16:$C$43,0))/1000),\"\")","v":""},{"$f":"IFERROR(IF(OR($C$168=FALSE,LEFT($B163,3)<>\"NOX\"),U54*INDEX('Damage costs'!$P$16:$P$43,MATCH($B163,'Damage costs'!$C$16:$C$43,0))/1000,U54*INDEX('Damage costs'!$T$16:$T$43,MATCH($B163,'Damage costs'!$C$16:$C$43,0))/1000),\"\")","v":""},{"$f":"IFERROR(IF(OR($C$168=FALSE,LEFT($B163,3)<>\"NOX\"),V54*INDEX('Damage costs'!$P$16:$P$43,MATCH($B163,'Damage costs'!$C$16:$C$43,0))/1000,V54*INDEX('Damage costs'!$T$16:$T$43,MATCH($B163,'Damage costs'!$C$16:$C$43,0))/1000),\"\")","v":""},{"$f":"IFERROR(IF(OR($C$168=FALSE,LEFT($B163,3)<>\"NOX\"),W54*INDEX('Damage costs'!$P$16:$P$43,MATCH($B163,'Damage costs'!$C$16:$C$43,0))/1000,W54*INDEX('Damage costs'!$T$16:$T$43,MATCH($B163,'Damage costs'!$C$16:$C$43,0))/1000),\"\")","v":""},{"$f":"IFERROR(IF(OR($C$168=FALSE,LEFT($B163,3)<>\"NOX\"),X54*INDEX('Damage costs'!$P$16:$P$43,MATCH($B163,'Damage costs'!$C$16:$C$43,0))/1000,X54*INDEX('Damage costs'!$T$16:$T$43,MATCH($B163,'Damage costs'!$C$16:$C$43,0))/1000),\"\")","v":""},{"$f":"IFERROR(IF(OR($C$168=FALSE,LEFT($B163,3)<>\"NOX\"),Y54*INDEX('Damage costs'!$P$16:$P$43,MATCH($B163,'Damage costs'!$C$16:$C$43,0))/1000,Y54*INDEX('Damage costs'!$T$16:$T$43,MATCH($B163,'Damage costs'!$C$16:$C$43,0))/1000),\"\")","v":""},{"$f":"IFERROR(IF(OR($C$168=FALSE,LEFT($B163,3)<>\"NOX\"),Z54*INDEX('Damage costs'!$P$16:$P$43,MATCH($B163,'Damage costs'!$C$16:$C$43,0))/1000,Z54*INDEX('Damage costs'!$T$16:$T$43,MATCH($B163,'Damage costs'!$C$16:$C$43,0))/1000),\"\")","v":""},{"$f":"IFERROR(IF(OR($C$168=FALSE,LEFT($B163,3)<>\"NOX\"),AA54*INDEX('Damage costs'!$P$16:$P$43,MATCH($B163,'Damage costs'!$C$16:$C$43,0))/1000,AA54*INDEX('Damage costs'!$T$16:$T$43,MATCH($B163,'Damage costs'!$C$16:$C$43,0))/1000),\"\")","v":""},{"$f":"IFERROR(IF(OR($C$168=FALSE,LEFT($B163,3)<>\"NOX\"),AB54*INDEX('Damage costs'!$P$16:$P$43,MATCH($B163,'Damage costs'!$C$16:$C$43,0))/1000,AB54*INDEX('Damage costs'!$T$16:$T$43,MATCH($B163,'Damage costs'!$C$16:$C$43,0))/1000),\"\")","v":""},{"$f":"IFERROR(IF(OR($C$168=FALSE,LEFT($B163,3)<>\"NOX\"),AC54*INDEX('Damage costs'!$P$16:$P$43,MATCH($B163,'Damage costs'!$C$16:$C$43,0))/1000,AC54*INDEX('Damage costs'!$T$16:$T$43,MATCH($B163,'Damage costs'!$C$16:$C$43,0))/1000),\"\")","v":""},{"$f":"IFERROR(IF(OR($C$168=FALSE,LEFT($B163,3)<>\"NOX\"),AD54*INDEX('Damage costs'!$P$16:$P$43,MATCH($B163,'Damage costs'!$C$16:$C$43,0))/1000,AD54*INDEX('Damage costs'!$T$16:$T$43,MATCH($B163,'Damage costs'!$C$16:$C$43,0))/1000),\"\")","v":""},{"$f":"IFERROR(IF(OR($C$168=FALSE,LEFT($B163,3)<>\"NOX\"),AE54*INDEX('Damage costs'!$P$16:$P$43,MATCH($B163,'Damage costs'!$C$16:$C$43,0))/1000,AE54*INDEX('Damage costs'!$T$16:$T$43,MATCH($B163,'Damage costs'!$C$16:$C$43,0))/1000),\"\")","v":""},{"$f":"IFERROR(IF(OR($C$168=FALSE,LEFT($B163,3)<>\"NOX\"),AF54*INDEX('Damage costs'!$P$16:$P$43,MATCH($B163,'Damage costs'!$C$16:$C$43,0))/1000,AF54*INDEX('Damage costs'!$T$16:$T$43,MATCH($B163,'Damage costs'!$C$16:$C$43,0))/1000),\"\")","v":""},{"$f":"IFERROR(IF(OR($C$168=FALSE,LEFT($B163,3)<>\"NOX\"),AG54*INDEX('Damage costs'!$P$16:$P$43,MATCH($B163,'Damage costs'!$C$16:$C$43,0))/1000,AG54*INDEX('Damage costs'!$T$16:$T$43,MATCH($B163,'Damage costs'!$C$16:$C$43,0))/1000),\"\")","v":""},{"$f":"IFERROR(IF(OR($C$168=FALSE,LEFT($B163,3)<>\"NOX\"),AH54*INDEX('Damage costs'!$P$16:$P$43,MATCH($B163,'Damage costs'!$C$16:$C$43,0))/1000,AH54*INDEX('Damage costs'!$T$16:$T$43,MATCH($B163,'Damage costs'!$C$16:$C$43,0))/1000),\"\")","v":""},{"$f":"IFERROR(IF(OR($C$168=FALSE,LEFT($B163,3)<>\"NOX\"),AI54*INDEX('Damage costs'!$P$16:$P$43,MATCH($B163,'Damage costs'!$C$16:$C$43,0))/1000,AI54*INDEX('Damage costs'!$T$16:$T$43,MATCH($B163,'Damage costs'!$C$16:$C$43,0))/1000),\"\")","v":""},{"$f":"IFERROR(IF(OR($C$168=FALSE,LEFT($B163,3)<>\"NOX\"),AJ54*INDEX('Damage costs'!$P$16:$P$43,MATCH($B163,'Damage costs'!$C$16:$C$43,0))/1000,AJ54*INDEX('Damage costs'!$T$16:$T$43,MATCH($B163,'Damage costs'!$C$16:$C$43,0))/1000),\"\")","v":""},{"$f":"IFERROR(IF(OR($C$168=FALSE,LEFT($B163,3)<>\"NOX\"),AK54*INDEX('Damage costs'!$P$16:$P$43,MATCH($B163,'Damage costs'!$C$16:$C$43,0))/1000,AK54*INDEX('Damage costs'!$T$16:$T$43,MATCH($B163,'Damage costs'!$C$16:$C$43,0))/1000),\"\")","v":""},{"$f":"IFERROR(IF(OR($C$168=FALSE,LEFT($B163,3)<>\"NOX\"),AL54*INDEX('Damage costs'!$P$16:$P$43,MATCH($B163,'Damage costs'!$C$16:$C$43,0))/1000,AL54*INDEX('Damage costs'!$T$16:$T$43,MATCH($B163,'Damage costs'!$C$16:$C$43,0))/1000),\"\")","v":""},{"$f":"IFERROR(IF(OR($C$168=FALSE,LEFT($B163,3)<>\"NOX\"),AM54*INDEX('Damage costs'!$P$16:$P$43,MATCH($B163,'Damage costs'!$C$16:$C$43,0))/1000,AM54*INDEX('Damage costs'!$T$16:$T$43,MATCH($B163,'Damage costs'!$C$16:$C$43,0))/1000),\"\")","v":""},{"$f":"IFERROR(IF(OR($C$168=FALSE,LEFT($B163,3)<>\"NOX\"),AN54*INDEX('Damage costs'!$P$16:$P$43,MATCH($B163,'Damage costs'!$C$16:$C$43,0))/1000,AN54*INDEX('Damage costs'!$T$16:$T$43,MATCH($B163,'Damage costs'!$C$16:$C$43,0))/1000),\"\")","v":""},{"$f":"IFERROR(IF(OR($C$168=FALSE,LEFT($B163,3)<>\"NOX\"),AO54*INDEX('Damage costs'!$P$16:$P$43,MATCH($B163,'Damage costs'!$C$16:$C$43,0))/1000,AO54*INDEX('Damage costs'!$T$16:$T$43,MATCH($B163,'Damage costs'!$C$16:$C$43,0))/1000),\"\")","v":""},{"$f":"IFERROR(IF(OR($C$168=FALSE,LEFT($B163,3)<>\"NOX\"),AP54*INDEX('Damage costs'!$P$16:$P$43,MATCH($B163,'Damage costs'!$C$16:$C$43,0))/1000,AP54*INDEX('Damage costs'!$T$16:$T$43,MATCH($B163,'Damage costs'!$C$16:$C$43,0))/1000),\"\")","v":""},{"$f":"IFERROR(IF(OR($C$168=FALSE,LEFT($B163,3)<>\"NOX\"),AQ54*INDEX('Damage costs'!$P$16:$P$43,MATCH($B163,'Damage costs'!$C$16:$C$43,0))/1000,AQ54*INDEX('Damage costs'!$T$16:$T$43,MATCH($B163,'Damage costs'!$C$16:$C$43,0))/1000),\"\")","v":""},{"$f":"IFERROR(IF(OR($C$168=FALSE,LEFT($B163,3)<>\"NOX\"),AR54*INDEX('Damage costs'!$P$16:$P$43,MATCH($B163,'Damage costs'!$C$16:$C$43,0))/1000,AR54*INDEX('Damage costs'!$T$16:$T$43,MATCH($B163,'Damage costs'!$C$16:$C$43,0))/1000),\"\")","v":""},{"$f":"IFERROR(IF(OR($C$168=FALSE,LEFT($B163,3)<>\"NOX\"),AS54*INDEX('Damage costs'!$P$16:$P$43,MATCH($B163,'Damage costs'!$C$16:$C$43,0))/1000,AS54*INDEX('Damage costs'!$T$16:$T$43,MATCH($B163,'Damage costs'!$C$16:$C$43,0))/1000),\"\")","v":""},{"$f":"IFERROR(IF(OR($C$168=FALSE,LEFT($B163,3)<>\"NOX\"),AT54*INDEX('Damage costs'!$P$16:$P$43,MATCH($B163,'Damage costs'!$C$16:$C$43,0))/1000,AT54*INDEX('Damage costs'!$T$16:$T$43,MATCH($B163,'Damage costs'!$C$16:$C$43,0))/1000),\"\")","v":""},{"$f":"IFERROR(IF(OR($C$168=FALSE,LEFT($B163,3)<>\"NOX\"),AU54*INDEX('Damage costs'!$P$16:$P$43,MATCH($B163,'Damage costs'!$C$16:$C$43,0))/1000,AU54*INDEX('Damage costs'!$T$16:$T$43,MATCH($B163,'Damage costs'!$C$16:$C$43,0))/1000),\"\")","v":""},{"$f":"IFERROR(IF(OR($C$168=FALSE,LEFT($B163,3)<>\"NOX\"),AV54*INDEX('Damage costs'!$P$16:$P$43,MATCH($B163,'Damage costs'!$C$16:$C$43,0))/1000,AV54*INDEX('Damage costs'!$T$16:$T$43,MATCH($B163,'Damage costs'!$C$16:$C$43,0))/1000),\"\")","v":""},{"$f":"IFERROR(IF(OR($C$168=FALSE,LEFT($B163,3)<>\"NOX\"),AW54*INDEX('Damage costs'!$P$16:$P$43,MATCH($B163,'Damage costs'!$C$16:$C$43,0))/1000,AW54*INDEX('Damage costs'!$T$16:$T$43,MATCH($B163,'Damage costs'!$C$16:$C$43,0))/1000),\"\")","v":""},{"$f":"IFERROR(IF(OR($C$168=FALSE,LEFT($B163,3)<>\"NOX\"),AX54*INDEX('Damage costs'!$P$16:$P$43,MATCH($B163,'Damage costs'!$C$16:$C$43,0))/1000,AX54*INDEX('Damage costs'!$T$16:$T$43,MATCH($B163,'Damage costs'!$C$16:$C$43,0))/1000),\"\")","v":""},{"$f":"IFERROR(IF(OR($C$168=FALSE,LEFT($B163,3)<>\"NOX\"),AY54*INDEX('Damage costs'!$P$16:$P$43,MATCH($B163,'Damage costs'!$C$16:$C$43,0))/1000,AY54*INDEX('Damage costs'!$T$16:$T$43,MATCH($B163,'Damage costs'!$C$16:$C$43,0))/1000),\"\")","v":""},{"$f":"IFERROR(IF(OR($C$168=FALSE,LEFT($B163,3)<>\"NOX\"),AZ54*INDEX('Damage costs'!$P$16:$P$43,MATCH($B163,'Damage costs'!$C$16:$C$43,0))/1000,AZ54*INDEX('Damage costs'!$T$16:$T$43,MATCH($B163,'Damage costs'!$C$16:$C$43,0))/1000),\"\")","v":""},{"$f":"IFERROR(IF(OR($C$168=FALSE,LEFT($B163,3)<>\"NOX\"),BA54*INDEX('Damage costs'!$P$16:$P$43,MATCH($B163,'Damage costs'!$C$16:$C$43,0))/1000,BA54*INDEX('Damage costs'!$T$16:$T$43,MATCH($B163,'Damage costs'!$C$16:$C$43,0))/1000),\"\")","v":""},{"$f":"IFERROR(IF(OR($C$168=FALSE,LEFT($B163,3)<>\"NOX\"),BB54*INDEX('Damage costs'!$P$16:$P$43,MATCH($B163,'Damage costs'!$C$16:$C$43,0))/1000,BB54*INDEX('Damage costs'!$T$16:$T$43,MATCH($B163,'Damage costs'!$C$16:$C$43,0))/1000),\"\")","v":""},{"$f":"IFERROR(IF(OR($C$168=FALSE,LEFT($B163,3)<>\"NOX\"),BC54*INDEX('Damage costs'!$P$16:$P$43,MATCH($B163,'Damage costs'!$C$16:$C$43,0))/1000,BC54*INDEX('Damage costs'!$T$16:$T$43,MATCH($B163,'Damage costs'!$C$16:$C$43,0))/1000),\"\")","v":""},{"$f":"IFERROR(IF(OR($C$168=FALSE,LEFT($B163,3)<>\"NOX\"),BD54*INDEX('Damage costs'!$P$16:$P$43,MATCH($B163,'Damage costs'!$C$16:$C$43,0))/1000,BD54*INDEX('Damage costs'!$T$16:$T$43,MATCH($B163,'Damage costs'!$C$16:$C$43,0))/1000),\"\")","v":""},{"$f":"IFERROR(IF(OR($C$168=FALSE,LEFT($B163,3)<>\"NOX\"),BE54*INDEX('Damage costs'!$P$16:$P$43,MATCH($B163,'Damage costs'!$C$16:$C$43,0))/1000,BE54*INDEX('Damage costs'!$T$16:$T$43,MATCH($B163,'Damage costs'!$C$16:$C$43,0))/1000),\"\")","v":""},{"$f":"IFERROR(IF(OR($C$168=FALSE,LEFT($B163,3)<>\"NOX\"),BF54*INDEX('Damage costs'!$P$16:$P$43,MATCH($B163,'Damage costs'!$C$16:$C$43,0))/1000,BF54*INDEX('Damage costs'!$T$16:$T$43,MATCH($B163,'Damage costs'!$C$16:$C$43,0))/1000),\"\")","v":""},{"$f":"IFERROR(IF(OR($C$168=FALSE,LEFT($B163,3)<>\"NOX\"),BG54*INDEX('Damage costs'!$P$16:$P$43,MATCH($B163,'Damage costs'!$C$16:$C$43,0))/1000,BG54*INDEX('Damage costs'!$T$16:$T$43,MATCH($B163,'Damage costs'!$C$16:$C$43,0))/1000),\"\")","v":""},{"$f":"IFERROR(IF(OR($C$168=FALSE,LEFT($B163,3)<>\"NOX\"),BH54*INDEX('Damage costs'!$P$16:$P$43,MATCH($B163,'Damage costs'!$C$16:$C$43,0))/1000,BH54*INDEX('Damage costs'!$T$16:$T$43,MATCH($B163,'Damage costs'!$C$16:$C$43,0))/1000),\"\")","v":""},{"$f":"IFERROR(IF(OR($C$168=FALSE,LEFT($B163,3)<>\"NOX\"),BI54*INDEX('Damage costs'!$P$16:$P$43,MATCH($B163,'Damage costs'!$C$16:$C$43,0))/1000,BI54*INDEX('Damage costs'!$T$16:$T$43,MATCH($B163,'Damage costs'!$C$16:$C$43,0))/1000),\"\")","v":""},{"$f":"IFERROR(IF(OR($C$168=FALSE,LEFT($B163,3)<>\"NOX\"),BJ54*INDEX('Damage costs'!$P$16:$P$43,MATCH($B163,'Damage costs'!$C$16:$C$43,0))/1000,BJ54*INDEX('Damage costs'!$T$16:$T$43,MATCH($B163,'Damage costs'!$C$16:$C$43,0))/1000),\"\")","v":""},{"$f":"IFERROR(IF(OR($C$168=FALSE,LEFT($B163,3)<>\"NOX\"),BK54*INDEX('Damage costs'!$P$16:$P$43,MATCH($B163,'Damage costs'!$C$16:$C$43,0))/1000,BK54*INDEX('Damage costs'!$T$16:$T$43,MATCH($B163,'Damage costs'!$C$16:$C$43,0))/1000),\"\")","v":""},{"$f":"IFERROR(IF(OR($C$168=FALSE,LEFT($B163,3)<>\"NOX\"),BL54*INDEX('Damage costs'!$P$16:$P$43,MATCH($B163,'Damage costs'!$C$16:$C$43,0))/1000,BL54*INDEX('Damage costs'!$T$16:$T$43,MATCH($B163,'Damage costs'!$C$16:$C$43,0))/1000),\"\")","v":""},{"$f":"IFERROR(IF(OR($C$168=FALSE,LEFT($B163,3)<>\"NOX\"),BM54*INDEX('Damage costs'!$P$16:$P$43,MATCH($B163,'Damage costs'!$C$16:$C$43,0))/1000,BM54*INDEX('Damage costs'!$T$16:$T$43,MATCH($B163,'Damage costs'!$C$16:$C$43,0))/1000),\"\")","v":""},{"$f":"IFERROR(IF(OR($C$168=FALSE,LEFT($B163,3)<>\"NOX\"),BN54*INDEX('Damage costs'!$P$16:$P$43,MATCH($B163,'Damage costs'!$C$16:$C$43,0))/1000,BN54*INDEX('Damage costs'!$T$16:$T$43,MATCH($B163,'Damage costs'!$C$16:$C$43,0))/1000),\"\")","v":""},{"$f":"IFERROR(IF(OR($C$168=FALSE,LEFT($B163,3)<>\"NOX\"),BO54*INDEX('Damage costs'!$P$16:$P$43,MATCH($B163,'Damage costs'!$C$16:$C$43,0))/1000,BO54*INDEX('Damage costs'!$T$16:$T$43,MATCH($B163,'Damage costs'!$C$16:$C$43,0))/1000),\"\")","v":""},{"$f":"IFERROR(IF(OR($C$168=FALSE,LEFT($B163,3)<>\"NOX\"),BP54*INDEX('Damage costs'!$P$16:$P$43,MATCH($B163,'Damage costs'!$C$16:$C$43,0))/1000,BP54*INDEX('Damage costs'!$T$16:$T$43,MATCH($B163,'Damage costs'!$C$16:$C$43,0))/1000),\"\")","v":""},{"$f":"IFERROR(IF(OR($C$168=FALSE,LEFT($B163,3)<>\"NOX\"),BQ54*INDEX('Damage costs'!$P$16:$P$43,MATCH($B163,'Damage costs'!$C$16:$C$43,0))/1000,BQ54*INDEX('Damage costs'!$T$16:$T$43,MATCH($B163,'Damage costs'!$C$16:$C$43,0))/1000),\"\")","v":""},{"$f":"IFERROR(IF(OR($C$168=FALSE,LEFT($B163,3)<>\"NOX\"),BR54*INDEX('Damage costs'!$P$16:$P$43,MATCH($B163,'Damage costs'!$C$16:$C$43,0))/1000,BR54*INDEX('Damage costs'!$T$16:$T$43,MATCH($B163,'Damage costs'!$C$16:$C$43,0))/1000),\"\")","v":""},{"$f":"IFERROR(IF(OR($C$168=FALSE,LEFT($B163,3)<>\"NOX\"),BS54*INDEX('Damage costs'!$P$16:$P$43,MATCH($B163,'Damage costs'!$C$16:$C$43,0))/1000,BS54*INDEX('Damage costs'!$T$16:$T$43,MATCH($B163,'Damage costs'!$C$16:$C$43,0))/1000),\"\")","v":""},{"$f":"IFERROR(IF(OR($C$168=FALSE,LEFT($B163,3)<>\"NOX\"),BT54*INDEX('Damage costs'!$P$16:$P$43,MATCH($B163,'Damage costs'!$C$16:$C$43,0))/1000,BT54*INDEX('Damage costs'!$T$16:$T$43,MATCH($B163,'Damage costs'!$C$16:$C$43,0))/1000),\"\")","v":""},{"$f":"IFERROR(IF(OR($C$168=FALSE,LEFT($B163,3)<>\"NOX\"),BU54*INDEX('Damage costs'!$P$16:$P$43,MATCH($B163,'Damage costs'!$C$16:$C$43,0))/1000,BU54*INDEX('Damage costs'!$T$16:$T$43,MATCH($B163,'Damage costs'!$C$16:$C$43,0))/1000),\"\")","v":""},{"$f":"IFERROR(IF(OR($C$168=FALSE,LEFT($B163,3)<>\"NOX\"),BV54*INDEX('Damage costs'!$P$16:$P$43,MATCH($B163,'Damage costs'!$C$16:$C$43,0))/1000,BV54*INDEX('Damage costs'!$T$16:$T$43,MATCH($B163,'Damage costs'!$C$16:$C$43,0))/1000),\"\")","v":""},{"$f":"IFERROR(IF(OR($C$168=FALSE,LEFT($B163,3)<>\"NOX\"),BW54*INDEX('Damage costs'!$P$16:$P$43,MATCH($B163,'Damage costs'!$C$16:$C$43,0))/1000,BW54*INDEX('Damage costs'!$T$16:$T$43,MATCH($B163,'Damage costs'!$C$16:$C$43,0))/1000),\"\")","v":""},{"$f":"IFERROR(IF(OR($C$168=FALSE,LEFT($B163,3)<>\"NOX\"),BX54*INDEX('Damage costs'!$P$16:$P$43,MATCH($B163,'Damage costs'!$C$16:$C$43,0))/1000,BX54*INDEX('Damage costs'!$T$16:$T$43,MATCH($B163,'Damage costs'!$C$16:$C$43,0))/1000),\"\")","v":""},{"$f":"IFERROR(IF(OR($C$168=FALSE,LEFT($B163,3)<>\"NOX\"),BY54*INDEX('Damage costs'!$P$16:$P$43,MATCH($B163,'Damage costs'!$C$16:$C$43,0))/1000,BY54*INDEX('Damage costs'!$T$16:$T$43,MATCH($B163,'Damage costs'!$C$16:$C$43,0))/1000),\"\")","v":""},{"$f":"IFERROR(IF(OR($C$168=FALSE,LEFT($B163,3)<>\"NOX\"),BZ54*INDEX('Damage costs'!$P$16:$P$43,MATCH($B163,'Damage costs'!$C$16:$C$43,0))/1000,BZ54*INDEX('Damage costs'!$T$16:$T$43,MATCH($B163,'Damage costs'!$C$16:$C$43,0))/1000),\"\")","v":""},{"$f":"IFERROR(IF(OR($C$168=FALSE,LEFT($B163,3)<>\"NOX\"),CA54*INDEX('Damage costs'!$P$16:$P$43,MATCH($B163,'Damage costs'!$C$16:$C$43,0))/1000,CA54*INDEX('Damage costs'!$T$16:$T$43,MATCH($B163,'Damage costs'!$C$16:$C$43,0))/1000),\"\")","v":""},{"$f":"IFERROR(IF(OR($C$168=FALSE,LEFT($B163,3)<>\"NOX\"),CB54*INDEX('Damage costs'!$P$16:$P$43,MATCH($B163,'Damage costs'!$C$16:$C$43,0))/1000,CB54*INDEX('Damage costs'!$T$16:$T$43,MATCH($B163,'Damage costs'!$C$16:$C$43,0))/1000),\"\")","v":""},{"$f":"IFERROR(IF(OR($C$168=FALSE,LEFT($B163,3)<>\"NOX\"),CC54*INDEX('Damage costs'!$P$16:$P$43,MATCH($B163,'Damage costs'!$C$16:$C$43,0))/1000,CC54*INDEX('Damage costs'!$T$16:$T$43,MATCH($B163,'Damage costs'!$C$16:$C$43,0))/1000),\"\")","v":""},{"$f":"IFERROR(IF(OR($C$168=FALSE,LEFT($B163,3)<>\"NOX\"),CD54*INDEX('Damage costs'!$P$16:$P$43,MATCH($B163,'Damage costs'!$C$16:$C$43,0))/1000,CD54*INDEX('Damage costs'!$T$16:$T$43,MATCH($B163,'Damage costs'!$C$16:$C$43,0))/1000),\"\")","v":""},{"$f":"IFERROR(IF(OR($C$168=FALSE,LEFT($B163,3)<>\"NOX\"),CE54*INDEX('Damage costs'!$P$16:$P$43,MATCH($B163,'Damage costs'!$C$16:$C$43,0))/1000,CE54*INDEX('Damage costs'!$T$16:$T$43,MATCH($B163,'Damage costs'!$C$16:$C$43,0))/1000),\"\")","v":""},{"$f":"IFERROR(IF(OR($C$168=FALSE,LEFT($B163,3)<>\"NOX\"),CF54*INDEX('Damage costs'!$P$16:$P$43,MATCH($B163,'Damage costs'!$C$16:$C$43,0))/1000,CF54*INDEX('Damage costs'!$T$16:$T$43,MATCH($B163,'Damage costs'!$C$16:$C$43,0))/1000),\"\")","v":""},{"$f":"IFERROR(IF(OR($C$168=FALSE,LEFT($B163,3)<>\"NOX\"),CG54*INDEX('Damage costs'!$P$16:$P$43,MATCH($B163,'Damage costs'!$C$16:$C$43,0))/1000,CG54*INDEX('Damage costs'!$T$16:$T$43,MATCH($B163,'Damage costs'!$C$16:$C$43,0))/1000),\"\")","v":""},{"$f":"IFERROR(IF(OR($C$168=FALSE,LEFT($B163,3)<>\"NOX\"),CH54*INDEX('Damage costs'!$P$16:$P$43,MATCH($B163,'Damage costs'!$C$16:$C$43,0))/1000,CH54*INDEX('Damage costs'!$T$16:$T$43,MATCH($B163,'Damage costs'!$C$16:$C$43,0))/1000),\"\")","v":""},{"$f":"IFERROR(IF(OR($C$168=FALSE,LEFT($B163,3)<>\"NOX\"),CI54*INDEX('Damage costs'!$P$16:$P$43,MATCH($B163,'Damage costs'!$C$16:$C$43,0))/1000,CI54*INDEX('Damage costs'!$T$16:$T$43,MATCH($B163,'Damage costs'!$C$16:$C$43,0))/1000),\"\")","v":""},{"$f":"IFERROR(IF(OR($C$168=FALSE,LEFT($B163,3)<>\"NOX\"),CJ54*INDEX('Damage costs'!$P$16:$P$43,MATCH($B163,'Damage costs'!$C$16:$C$43,0))/1000,CJ54*INDEX('Damage costs'!$T$16:$T$43,MATCH($B163,'Damage costs'!$C$16:$C$43,0))/1000),\"\")","v":""},{"$f":"IFERROR(IF(OR($C$168=FALSE,LEFT($B163,3)<>\"NOX\"),CK54*INDEX('Damage costs'!$P$16:$P$43,MATCH($B163,'Damage costs'!$C$16:$C$43,0))/1000,CK54*INDEX('Damage costs'!$T$16:$T$43,MATCH($B163,'Damage costs'!$C$16:$C$43,0))/1000),\"\")","v":""},{"$f":"IFERROR(IF(OR($C$168=FALSE,LEFT($B163,3)<>\"NOX\"),CL54*INDEX('Damage costs'!$P$16:$P$43,MATCH($B163,'Damage costs'!$C$16:$C$43,0))/1000,CL54*INDEX('Damage costs'!$T$16:$T$43,MATCH($B163,'Damage costs'!$C$16:$C$43,0))/1000),\"\")","v":""},{"$f":"IFERROR(IF(OR($C$168=FALSE,LEFT($B163,3)<>\"NOX\"),CM54*INDEX('Damage costs'!$P$16:$P$43,MATCH($B163,'Damage costs'!$C$16:$C$43,0))/1000,CM54*INDEX('Damage costs'!$T$16:$T$43,MATCH($B163,'Damage costs'!$C$16:$C$43,0))/1000),\"\")","v":""},{"$f":"IFERROR(IF(OR($C$168=FALSE,LEFT($B163,3)<>\"NOX\"),CN54*INDEX('Damage costs'!$P$16:$P$43,MATCH($B163,'Damage costs'!$C$16:$C$43,0))/1000,CN54*INDEX('Damage costs'!$T$16:$T$43,MATCH($B163,'Damage costs'!$C$16:$C$43,0))/1000),\"\")","v":""},{"$f":"IFERROR(IF(OR($C$168=FALSE,LEFT($B163,3)<>\"NOX\"),CO54*INDEX('Damage costs'!$P$16:$P$43,MATCH($B163,'Damage costs'!$C$16:$C$43,0))/1000,CO54*INDEX('Damage costs'!$T$16:$T$43,MATCH($B163,'Damage costs'!$C$16:$C$43,0))/1000),\"\")","v":""},{"$f":"IFERROR(IF(OR($C$168=FALSE,LEFT($B163,3)<>\"NOX\"),CP54*INDEX('Damage costs'!$P$16:$P$43,MATCH($B163,'Damage costs'!$C$16:$C$43,0))/1000,CP54*INDEX('Damage costs'!$T$16:$T$43,MATCH($B163,'Damage costs'!$C$16:$C$43,0))/1000),\"\")","v":""},{"$f":"IFERROR(IF(OR($C$168=FALSE,LEFT($B163,3)<>\"NOX\"),CQ54*INDEX('Damage costs'!$P$16:$P$43,MATCH($B163,'Damage costs'!$C$16:$C$43,0))/1000,CQ54*INDEX('Damage costs'!$T$16:$T$43,MATCH($B163,'Damage costs'!$C$16:$C$43,0))/1000),\"\")","v":""},{"$f":"IFERROR(IF(OR($C$168=FALSE,LEFT($B163,3)<>\"NOX\"),CR54*INDEX('Damage costs'!$P$16:$P$43,MATCH($B163,'Damage costs'!$C$16:$C$43,0))/1000,CR54*INDEX('Damage costs'!$T$16:$T$43,MATCH($B163,'Damage costs'!$C$16:$C$43,0))/1000),\"\")","v":""},{"$f":"IFERROR(IF(OR($C$168=FALSE,LEFT($B163,3)<>\"NOX\"),CS54*INDEX('Damage costs'!$P$16:$P$43,MATCH($B163,'Damage costs'!$C$16:$C$43,0))/1000,CS54*INDEX('Damage costs'!$T$16:$T$43,MATCH($B163,'Damage costs'!$C$16:$C$43,0))/1000),\"\")","v":""},{"$f":"IFERROR(IF(OR($C$168=FALSE,LEFT($B163,3)<>\"NOX\"),CT54*INDEX('Damage costs'!$P$16:$P$43,MATCH($B163,'Damage costs'!$C$16:$C$43,0))/1000,CT54*INDEX('Damage costs'!$T$16:$T$43,MATCH($B163,'Damage costs'!$C$16:$C$43,0))/1000),\"\")","v":""},{"$f":"IFERROR(IF(OR($C$168=FALSE,LEFT($B163,3)<>\"NOX\"),CU54*INDEX('Damage costs'!$P$16:$P$43,MATCH($B163,'Damage costs'!$C$16:$C$43,0))/1000,CU54*INDEX('Damage costs'!$T$16:$T$43,MATCH($B163,'Damage costs'!$C$16:$C$43,0))/1000),\"\")","v":""},{"$f":"IFERROR(IF(OR($C$168=FALSE,LEFT($B163,3)<>\"NOX\"),CV54*INDEX('Damage costs'!$P$16:$P$43,MATCH($B163,'Damage costs'!$C$16:$C$43,0))/1000,CV54*INDEX('Damage costs'!$T$16:$T$43,MATCH($B163,'Damage costs'!$C$16:$C$43,0))/1000),\"\")","v":""},{"$f":"IFERROR(IF(OR($C$168=FALSE,LEFT($B163,3)<>\"NOX\"),CW54*INDEX('Damage costs'!$P$16:$P$43,MATCH($B163,'Damage costs'!$C$16:$C$43,0))/1000,CW54*INDEX('Damage costs'!$T$16:$T$43,MATCH($B163,'Damage costs'!$C$16:$C$43,0))/1000),\"\")","v":""},{"$f":"IFERROR(IF(OR($C$168=FALSE,LEFT($B163,3)<>\"NOX\"),CX54*INDEX('Damage costs'!$P$16:$P$43,MATCH($B163,'Damage costs'!$C$16:$C$43,0))/1000,CX54*INDEX('Damage costs'!$T$16:$T$43,MATCH($B163,'Damage costs'!$C$16:$C$43,0))/1000),\"\")","v":""},{"$f":"IFERROR(IF(OR($C$168=FALSE,LEFT($B163,3)<>\"NOX\"),CY54*INDEX('Damage costs'!$P$16:$P$43,MATCH($B163,'Damage costs'!$C$16:$C$43,0))/1000,CY54*INDEX('Damage costs'!$T$16:$T$43,MATCH($B163,'Damage costs'!$C$16:$C$43,0))/1000),\"\")","v":""}]
[null,0,"£000's",{"$f":"IFERROR(IF(OR($C$168=FALSE,LEFT($B164,3)<>\"NOX\"),D55*INDEX('Damage costs'!$P$16:$P$43,MATCH($B164,'Damage costs'!$C$16:$C$43,0))/1000,D55*INDEX('Damage costs'!$T$16:$T$43,MATCH($B164,'Damage costs'!$C$16:$C$43,0))/1000),\"\")","v":""},{"$f":"IFERROR(IF(OR($C$168=FALSE,LEFT($B164,3)<>\"NOX\"),E55*INDEX('Damage costs'!$P$16:$P$43,MATCH($B164,'Damage costs'!$C$16:$C$43,0))/1000,E55*INDEX('Damage costs'!$T$16:$T$43,MATCH($B164,'Damage costs'!$C$16:$C$43,0))/1000),\"\")","v":""},{"$f":"IFERROR(IF(OR($C$168=FALSE,LEFT($B164,3)<>\"NOX\"),F55*INDEX('Damage costs'!$P$16:$P$43,MATCH($B164,'Damage costs'!$C$16:$C$43,0))/1000,F55*INDEX('Damage costs'!$T$16:$T$43,MATCH($B164,'Damage costs'!$C$16:$C$43,0))/1000),\"\")","v":""},{"$f":"IFERROR(IF(OR($C$168=FALSE,LEFT($B164,3)<>\"NOX\"),G55*INDEX('Damage costs'!$P$16:$P$43,MATCH($B164,'Damage costs'!$C$16:$C$43,0))/1000,G55*INDEX('Damage costs'!$T$16:$T$43,MATCH($B164,'Damage costs'!$C$16:$C$43,0))/1000),\"\")","v":""},{"$f":"IFERROR(IF(OR($C$168=FALSE,LEFT($B164,3)<>\"NOX\"),H55*INDEX('Damage costs'!$P$16:$P$43,MATCH($B164,'Damage costs'!$C$16:$C$43,0))/1000,H55*INDEX('Damage costs'!$T$16:$T$43,MATCH($B164,'Damage costs'!$C$16:$C$43,0))/1000),\"\")","v":""},{"$f":"IFERROR(IF(OR($C$168=FALSE,LEFT($B164,3)<>\"NOX\"),I55*INDEX('Damage costs'!$P$16:$P$43,MATCH($B164,'Damage costs'!$C$16:$C$43,0))/1000,I55*INDEX('Damage costs'!$T$16:$T$43,MATCH($B164,'Damage costs'!$C$16:$C$43,0))/1000),\"\")","v":""},{"$f":"IFERROR(IF(OR($C$168=FALSE,LEFT($B164,3)<>\"NOX\"),J55*INDEX('Damage costs'!$P$16:$P$43,MATCH($B164,'Damage costs'!$C$16:$C$43,0))/1000,J55*INDEX('Damage costs'!$T$16:$T$43,MATCH($B164,'Damage costs'!$C$16:$C$43,0))/1000),\"\")","v":""},{"$f":"IFERROR(IF(OR($C$168=FALSE,LEFT($B164,3)<>\"NOX\"),K55*INDEX('Damage costs'!$P$16:$P$43,MATCH($B164,'Damage costs'!$C$16:$C$43,0))/1000,K55*INDEX('Damage costs'!$T$16:$T$43,MATCH($B164,'Damage costs'!$C$16:$C$43,0))/1000),\"\")","v":""},{"$f":"IFERROR(IF(OR($C$168=FALSE,LEFT($B164,3)<>\"NOX\"),L55*INDEX('Damage costs'!$P$16:$P$43,MATCH($B164,'Damage costs'!$C$16:$C$43,0))/1000,L55*INDEX('Damage costs'!$T$16:$T$43,MATCH($B164,'Damage costs'!$C$16:$C$43,0))/1000),\"\")","v":""},{"$f":"IFERROR(IF(OR($C$168=FALSE,LEFT($B164,3)<>\"NOX\"),M55*INDEX('Damage costs'!$P$16:$P$43,MATCH($B164,'Damage costs'!$C$16:$C$43,0))/1000,M55*INDEX('Damage costs'!$T$16:$T$43,MATCH($B164,'Damage costs'!$C$16:$C$43,0))/1000),\"\")","v":""},{"$f":"IFERROR(IF(OR($C$168=FALSE,LEFT($B164,3)<>\"NOX\"),N55*INDEX('Damage costs'!$P$16:$P$43,MATCH($B164,'Damage costs'!$C$16:$C$43,0))/1000,N55*INDEX('Damage costs'!$T$16:$T$43,MATCH($B164,'Damage costs'!$C$16:$C$43,0))/1000),\"\")","v":""},{"$f":"IFERROR(IF(OR($C$168=FALSE,LEFT($B164,3)<>\"NOX\"),O55*INDEX('Damage costs'!$P$16:$P$43,MATCH($B164,'Damage costs'!$C$16:$C$43,0))/1000,O55*INDEX('Damage costs'!$T$16:$T$43,MATCH($B164,'Damage costs'!$C$16:$C$43,0))/1000),\"\")","v":""},{"$f":"IFERROR(IF(OR($C$168=FALSE,LEFT($B164,3)<>\"NOX\"),P55*INDEX('Damage costs'!$P$16:$P$43,MATCH($B164,'Damage costs'!$C$16:$C$43,0))/1000,P55*INDEX('Damage costs'!$T$16:$T$43,MATCH($B164,'Damage costs'!$C$16:$C$43,0))/1000),\"\")","v":""},{"$f":"IFERROR(IF(OR($C$168=FALSE,LEFT($B164,3)<>\"NOX\"),Q55*INDEX('Damage costs'!$P$16:$P$43,MATCH($B164,'Damage costs'!$C$16:$C$43,0))/1000,Q55*INDEX('Damage costs'!$T$16:$T$43,MATCH($B164,'Damage costs'!$C$16:$C$43,0))/1000),\"\")","v":""},{"$f":"IFERROR(IF(OR($C$168=FALSE,LEFT($B164,3)<>\"NOX\"),R55*INDEX('Damage costs'!$P$16:$P$43,MATCH($B164,'Damage costs'!$C$16:$C$43,0))/1000,R55*INDEX('Damage costs'!$T$16:$T$43,MATCH($B164,'Damage costs'!$C$16:$C$43,0))/1000),\"\")","v":""},{"$f":"IFERROR(IF(OR($C$168=FALSE,LEFT($B164,3)<>\"NOX\"),S55*INDEX('Damage costs'!$P$16:$P$43,MATCH($B164,'Damage costs'!$C$16:$C$43,0))/1000,S55*INDEX('Damage costs'!$T$16:$T$43,MATCH($B164,'Damage costs'!$C$16:$C$43,0))/1000),\"\")","v":""},{"$f":"IFERROR(IF(OR($C$168=FALSE,LEFT($B164,3)<>\"NOX\"),T55*INDEX('Damage costs'!$P$16:$P$43,MATCH($B164,'Damage costs'!$C$16:$C$43,0))/1000,T55*INDEX('Damage costs'!$T$16:$T$43,MATCH($B164,'Damage costs'!$C$16:$C$43,0))/1000),\"\")","v":""},{"$f":"IFERROR(IF(OR($C$168=FALSE,LEFT($B164,3)<>\"NOX\"),U55*INDEX('Damage costs'!$P$16:$P$43,MATCH($B164,'Damage costs'!$C$16:$C$43,0))/1000,U55*INDEX('Damage costs'!$T$16:$T$43,MATCH($B164,'Damage costs'!$C$16:$C$43,0))/1000),\"\")","v":""},{"$f":"IFERROR(IF(OR($C$168=FALSE,LEFT($B164,3)<>\"NOX\"),V55*INDEX('Damage costs'!$P$16:$P$43,MATCH($B164,'Damage costs'!$C$16:$C$43,0))/1000,V55*INDEX('Damage costs'!$T$16:$T$43,MATCH($B164,'Damage costs'!$C$16:$C$43,0))/1000),\"\")","v":""},{"$f":"IFERROR(IF(OR($C$168=FALSE,LEFT($B164,3)<>\"NOX\"),W55*INDEX('Damage costs'!$P$16:$P$43,MATCH($B164,'Damage costs'!$C$16:$C$43,0))/1000,W55*INDEX('Damage costs'!$T$16:$T$43,MATCH($B164,'Damage costs'!$C$16:$C$43,0))/1000),\"\")","v":""},{"$f":"IFERROR(IF(OR($C$168=FALSE,LEFT($B164,3)<>\"NOX\"),X55*INDEX('Damage costs'!$P$16:$P$43,MATCH($B164,'Damage costs'!$C$16:$C$43,0))/1000,X55*INDEX('Damage costs'!$T$16:$T$43,MATCH($B164,'Damage costs'!$C$16:$C$43,0))/1000),\"\")","v":""},{"$f":"IFERROR(IF(OR($C$168=FALSE,LEFT($B164,3)<>\"NOX\"),Y55*INDEX('Damage costs'!$P$16:$P$43,MATCH($B164,'Damage costs'!$C$16:$C$43,0))/1000,Y55*INDEX('Damage costs'!$T$16:$T$43,MATCH($B164,'Damage costs'!$C$16:$C$43,0))/1000),\"\")","v":""},{"$f":"IFERROR(IF(OR($C$168=FALSE,LEFT($B164,3)<>\"NOX\"),Z55*INDEX('Damage costs'!$P$16:$P$43,MATCH($B164,'Damage costs'!$C$16:$C$43,0))/1000,Z55*INDEX('Damage costs'!$T$16:$T$43,MATCH($B164,'Damage costs'!$C$16:$C$43,0))/1000),\"\")","v":""},{"$f":"IFERROR(IF(OR($C$168=FALSE,LEFT($B164,3)<>\"NOX\"),AA55*INDEX('Damage costs'!$P$16:$P$43,MATCH($B164,'Damage costs'!$C$16:$C$43,0))/1000,AA55*INDEX('Damage costs'!$T$16:$T$43,MATCH($B164,'Damage costs'!$C$16:$C$43,0))/1000),\"\")","v":""},{"$f":"IFERROR(IF(OR($C$168=FALSE,LEFT($B164,3)<>\"NOX\"),AB55*INDEX('Damage costs'!$P$16:$P$43,MATCH($B164,'Damage costs'!$C$16:$C$43,0))/1000,AB55*INDEX('Damage costs'!$T$16:$T$43,MATCH($B164,'Damage costs'!$C$16:$C$43,0))/1000),\"\")","v":""},{"$f":"IFERROR(IF(OR($C$168=FALSE,LEFT($B164,3)<>\"NOX\"),AC55*INDEX('Damage costs'!$P$16:$P$43,MATCH($B164,'Damage costs'!$C$16:$C$43,0))/1000,AC55*INDEX('Damage costs'!$T$16:$T$43,MATCH($B164,'Damage costs'!$C$16:$C$43,0))/1000),\"\")","v":""},{"$f":"IFERROR(IF(OR($C$168=FALSE,LEFT($B164,3)<>\"NOX\"),AD55*INDEX('Damage costs'!$P$16:$P$43,MATCH($B164,'Damage costs'!$C$16:$C$43,0))/1000,AD55*INDEX('Damage costs'!$T$16:$T$43,MATCH($B164,'Damage costs'!$C$16:$C$43,0))/1000),\"\")","v":""},{"$f":"IFERROR(IF(OR($C$168=FALSE,LEFT($B164,3)<>\"NOX\"),AE55*INDEX('Damage costs'!$P$16:$P$43,MATCH($B164,'Damage costs'!$C$16:$C$43,0))/1000,AE55*INDEX('Damage costs'!$T$16:$T$43,MATCH($B164,'Damage costs'!$C$16:$C$43,0))/1000),\"\")","v":""},{"$f":"IFERROR(IF(OR($C$168=FALSE,LEFT($B164,3)<>\"NOX\"),AF55*INDEX('Damage costs'!$P$16:$P$43,MATCH($B164,'Damage costs'!$C$16:$C$43,0))/1000,AF55*INDEX('Damage costs'!$T$16:$T$43,MATCH($B164,'Damage costs'!$C$16:$C$43,0))/1000),\"\")","v":""},{"$f":"IFERROR(IF(OR($C$168=FALSE,LEFT($B164,3)<>\"NOX\"),AG55*INDEX('Damage costs'!$P$16:$P$43,MATCH($B164,'Damage costs'!$C$16:$C$43,0))/1000,AG55*INDEX('Damage costs'!$T$16:$T$43,MATCH($B164,'Damage costs'!$C$16:$C$43,0))/1000),\"\")","v":""},{"$f":"IFERROR(IF(OR($C$168=FALSE,LEFT($B164,3)<>\"NOX\"),AH55*INDEX('Damage costs'!$P$16:$P$43,MATCH($B164,'Damage costs'!$C$16:$C$43,0))/1000,AH55*INDEX('Damage costs'!$T$16:$T$43,MATCH($B164,'Damage costs'!$C$16:$C$43,0))/1000),\"\")","v":""},{"$f":"IFERROR(IF(OR($C$168=FALSE,LEFT($B164,3)<>\"NOX\"),AI55*INDEX('Damage costs'!$P$16:$P$43,MATCH($B164,'Damage costs'!$C$16:$C$43,0))/1000,AI55*INDEX('Damage costs'!$T$16:$T$43,MATCH($B164,'Damage costs'!$C$16:$C$43,0))/1000),\"\")","v":""},{"$f":"IFERROR(IF(OR($C$168=FALSE,LEFT($B164,3)<>\"NOX\"),AJ55*INDEX('Damage costs'!$P$16:$P$43,MATCH($B164,'Damage costs'!$C$16:$C$43,0))/1000,AJ55*INDEX('Damage costs'!$T$16:$T$43,MATCH($B164,'Damage costs'!$C$16:$C$43,0))/1000),\"\")","v":""},{"$f":"IFERROR(IF(OR($C$168=FALSE,LEFT($B164,3)<>\"NOX\"),AK55*INDEX('Damage costs'!$P$16:$P$43,MATCH($B164,'Damage costs'!$C$16:$C$43,0))/1000,AK55*INDEX('Damage costs'!$T$16:$T$43,MATCH($B164,'Damage costs'!$C$16:$C$43,0))/1000),\"\")","v":""},{"$f":"IFERROR(IF(OR($C$168=FALSE,LEFT($B164,3)<>\"NOX\"),AL55*INDEX('Damage costs'!$P$16:$P$43,MATCH($B164,'Damage costs'!$C$16:$C$43,0))/1000,AL55*INDEX('Damage costs'!$T$16:$T$43,MATCH($B164,'Damage costs'!$C$16:$C$43,0))/1000),\"\")","v":""},{"$f":"IFERROR(IF(OR($C$168=FALSE,LEFT($B164,3)<>\"NOX\"),AM55*INDEX('Damage costs'!$P$16:$P$43,MATCH($B164,'Damage costs'!$C$16:$C$43,0))/1000,AM55*INDEX('Damage costs'!$T$16:$T$43,MATCH($B164,'Damage costs'!$C$16:$C$43,0))/1000),\"\")","v":""},{"$f":"IFERROR(IF(OR($C$168=FALSE,LEFT($B164,3)<>\"NOX\"),AN55*INDEX('Damage costs'!$P$16:$P$43,MATCH($B164,'Damage costs'!$C$16:$C$43,0))/1000,AN55*INDEX('Damage costs'!$T$16:$T$43,MATCH($B164,'Damage costs'!$C$16:$C$43,0))/1000),\"\")","v":""},{"$f":"IFERROR(IF(OR($C$168=FALSE,LEFT($B164,3)<>\"NOX\"),AO55*INDEX('Damage costs'!$P$16:$P$43,MATCH($B164,'Damage costs'!$C$16:$C$43,0))/1000,AO55*INDEX('Damage costs'!$T$16:$T$43,MATCH($B164,'Damage costs'!$C$16:$C$43,0))/1000),\"\")","v":""},{"$f":"IFERROR(IF(OR($C$168=FALSE,LEFT($B164,3)<>\"NOX\"),AP55*INDEX('Damage costs'!$P$16:$P$43,MATCH($B164,'Damage costs'!$C$16:$C$43,0))/1000,AP55*INDEX('Damage costs'!$T$16:$T$43,MATCH($B164,'Damage costs'!$C$16:$C$43,0))/1000),\"\")","v":""},{"$f":"IFERROR(IF(OR($C$168=FALSE,LEFT($B164,3)<>\"NOX\"),AQ55*INDEX('Damage costs'!$P$16:$P$43,MATCH($B164,'Damage costs'!$C$16:$C$43,0))/1000,AQ55*INDEX('Damage costs'!$T$16:$T$43,MATCH($B164,'Damage costs'!$C$16:$C$43,0))/1000),\"\")","v":""},{"$f":"IFERROR(IF(OR($C$168=FALSE,LEFT($B164,3)<>\"NOX\"),AR55*INDEX('Damage costs'!$P$16:$P$43,MATCH($B164,'Damage costs'!$C$16:$C$43,0))/1000,AR55*INDEX('Damage costs'!$T$16:$T$43,MATCH($B164,'Damage costs'!$C$16:$C$43,0))/1000),\"\")","v":""},{"$f":"IFERROR(IF(OR($C$168=FALSE,LEFT($B164,3)<>\"NOX\"),AS55*INDEX('Damage costs'!$P$16:$P$43,MATCH($B164,'Damage costs'!$C$16:$C$43,0))/1000,AS55*INDEX('Damage costs'!$T$16:$T$43,MATCH($B164,'Damage costs'!$C$16:$C$43,0))/1000),\"\")","v":""},{"$f":"IFERROR(IF(OR($C$168=FALSE,LEFT($B164,3)<>\"NOX\"),AT55*INDEX('Damage costs'!$P$16:$P$43,MATCH($B164,'Damage costs'!$C$16:$C$43,0))/1000,AT55*INDEX('Damage costs'!$T$16:$T$43,MATCH($B164,'Damage costs'!$C$16:$C$43,0))/1000),\"\")","v":""},{"$f":"IFERROR(IF(OR($C$168=FALSE,LEFT($B164,3)<>\"NOX\"),AU55*INDEX('Damage costs'!$P$16:$P$43,MATCH($B164,'Damage costs'!$C$16:$C$43,0))/1000,AU55*INDEX('Damage costs'!$T$16:$T$43,MATCH($B164,'Damage costs'!$C$16:$C$43,0))/1000),\"\")","v":""},{"$f":"IFERROR(IF(OR($C$168=FALSE,LEFT($B164,3)<>\"NOX\"),AV55*INDEX('Damage costs'!$P$16:$P$43,MATCH($B164,'Damage costs'!$C$16:$C$43,0))/1000,AV55*INDEX('Damage costs'!$T$16:$T$43,MATCH($B164,'Damage costs'!$C$16:$C$43,0))/1000),\"\")","v":""},{"$f":"IFERROR(IF(OR($C$168=FALSE,LEFT($B164,3)<>\"NOX\"),AW55*INDEX('Damage costs'!$P$16:$P$43,MATCH($B164,'Damage costs'!$C$16:$C$43,0))/1000,AW55*INDEX('Damage costs'!$T$16:$T$43,MATCH($B164,'Damage costs'!$C$16:$C$43,0))/1000),\"\")","v":""},{"$f":"IFERROR(IF(OR($C$168=FALSE,LEFT($B164,3)<>\"NOX\"),AX55*INDEX('Damage costs'!$P$16:$P$43,MATCH($B164,'Damage costs'!$C$16:$C$43,0))/1000,AX55*INDEX('Damage costs'!$T$16:$T$43,MATCH($B164,'Damage costs'!$C$16:$C$43,0))/1000),\"\")","v":""},{"$f":"IFERROR(IF(OR($C$168=FALSE,LEFT($B164,3)<>\"NOX\"),AY55*INDEX('Damage costs'!$P$16:$P$43,MATCH($B164,'Damage costs'!$C$16:$C$43,0))/1000,AY55*INDEX('Damage costs'!$T$16:$T$43,MATCH($B164,'Damage costs'!$C$16:$C$43,0))/1000),\"\")","v":""},{"$f":"IFERROR(IF(OR($C$168=FALSE,LEFT($B164,3)<>\"NOX\"),AZ55*INDEX('Damage costs'!$P$16:$P$43,MATCH($B164,'Damage costs'!$C$16:$C$43,0))/1000,AZ55*INDEX('Damage costs'!$T$16:$T$43,MATCH($B164,'Damage costs'!$C$16:$C$43,0))/1000),\"\")","v":""},{"$f":"IFERROR(IF(OR($C$168=FALSE,LEFT($B164,3)<>\"NOX\"),BA55*INDEX('Damage costs'!$P$16:$P$43,MATCH($B164,'Damage costs'!$C$16:$C$43,0))/1000,BA55*INDEX('Damage costs'!$T$16:$T$43,MATCH($B164,'Damage costs'!$C$16:$C$43,0))/1000),\"\")","v":""},{"$f":"IFERROR(IF(OR($C$168=FALSE,LEFT($B164,3)<>\"NOX\"),BB55*INDEX('Damage costs'!$P$16:$P$43,MATCH($B164,'Damage costs'!$C$16:$C$43,0))/1000,BB55*INDEX('Damage costs'!$T$16:$T$43,MATCH($B164,'Damage costs'!$C$16:$C$43,0))/1000),\"\")","v":""},{"$f":"IFERROR(IF(OR($C$168=FALSE,LEFT($B164,3)<>\"NOX\"),BC55*INDEX('Damage costs'!$P$16:$P$43,MATCH($B164,'Damage costs'!$C$16:$C$43,0))/1000,BC55*INDEX('Damage costs'!$T$16:$T$43,MATCH($B164,'Damage costs'!$C$16:$C$43,0))/1000),\"\")","v":""},{"$f":"IFERROR(IF(OR($C$168=FALSE,LEFT($B164,3)<>\"NOX\"),BD55*INDEX('Damage costs'!$P$16:$P$43,MATCH($B164,'Damage costs'!$C$16:$C$43,0))/1000,BD55*INDEX('Damage costs'!$T$16:$T$43,MATCH($B164,'Damage costs'!$C$16:$C$43,0))/1000),\"\")","v":""},{"$f":"IFERROR(IF(OR($C$168=FALSE,LEFT($B164,3)<>\"NOX\"),BE55*INDEX('Damage costs'!$P$16:$P$43,MATCH($B164,'Damage costs'!$C$16:$C$43,0))/1000,BE55*INDEX('Damage costs'!$T$16:$T$43,MATCH($B164,'Damage costs'!$C$16:$C$43,0))/1000),\"\")","v":""},{"$f":"IFERROR(IF(OR($C$168=FALSE,LEFT($B164,3)<>\"NOX\"),BF55*INDEX('Damage costs'!$P$16:$P$43,MATCH($B164,'Damage costs'!$C$16:$C$43,0))/1000,BF55*INDEX('Damage costs'!$T$16:$T$43,MATCH($B164,'Damage costs'!$C$16:$C$43,0))/1000),\"\")","v":""},{"$f":"IFERROR(IF(OR($C$168=FALSE,LEFT($B164,3)<>\"NOX\"),BG55*INDEX('Damage costs'!$P$16:$P$43,MATCH($B164,'Damage costs'!$C$16:$C$43,0))/1000,BG55*INDEX('Damage costs'!$T$16:$T$43,MATCH($B164,'Damage costs'!$C$16:$C$43,0))/1000),\"\")","v":""},{"$f":"IFERROR(IF(OR($C$168=FALSE,LEFT($B164,3)<>\"NOX\"),BH55*INDEX('Damage costs'!$P$16:$P$43,MATCH($B164,'Damage costs'!$C$16:$C$43,0))/1000,BH55*INDEX('Damage costs'!$T$16:$T$43,MATCH($B164,'Damage costs'!$C$16:$C$43,0))/1000),\"\")","v":""},{"$f":"IFERROR(IF(OR($C$168=FALSE,LEFT($B164,3)<>\"NOX\"),BI55*INDEX('Damage costs'!$P$16:$P$43,MATCH($B164,'Damage costs'!$C$16:$C$43,0))/1000,BI55*INDEX('Damage costs'!$T$16:$T$43,MATCH($B164,'Damage costs'!$C$16:$C$43,0))/1000),\"\")","v":""},{"$f":"IFERROR(IF(OR($C$168=FALSE,LEFT($B164,3)<>\"NOX\"),BJ55*INDEX('Damage costs'!$P$16:$P$43,MATCH($B164,'Damage costs'!$C$16:$C$43,0))/1000,BJ55*INDEX('Damage costs'!$T$16:$T$43,MATCH($B164,'Damage costs'!$C$16:$C$43,0))/1000),\"\")","v":""},{"$f":"IFERROR(IF(OR($C$168=FALSE,LEFT($B164,3)<>\"NOX\"),BK55*INDEX('Damage costs'!$P$16:$P$43,MATCH($B164,'Damage costs'!$C$16:$C$43,0))/1000,BK55*INDEX('Damage costs'!$T$16:$T$43,MATCH($B164,'Damage costs'!$C$16:$C$43,0))/1000),\"\")","v":""},{"$f":"IFERROR(IF(OR($C$168=FALSE,LEFT($B164,3)<>\"NOX\"),BL55*INDEX('Damage costs'!$P$16:$P$43,MATCH($B164,'Damage costs'!$C$16:$C$43,0))/1000,BL55*INDEX('Damage costs'!$T$16:$T$43,MATCH($B164,'Damage costs'!$C$16:$C$43,0))/1000),\"\")","v":""},{"$f":"IFERROR(IF(OR($C$168=FALSE,LEFT($B164,3)<>\"NOX\"),BM55*INDEX('Damage costs'!$P$16:$P$43,MATCH($B164,'Damage costs'!$C$16:$C$43,0))/1000,BM55*INDEX('Damage costs'!$T$16:$T$43,MATCH($B164,'Damage costs'!$C$16:$C$43,0))/1000),\"\")","v":""},{"$f":"IFERROR(IF(OR($C$168=FALSE,LEFT($B164,3)<>\"NOX\"),BN55*INDEX('Damage costs'!$P$16:$P$43,MATCH($B164,'Damage costs'!$C$16:$C$43,0))/1000,BN55*INDEX('Damage costs'!$T$16:$T$43,MATCH($B164,'Damage costs'!$C$16:$C$43,0))/1000),\"\")","v":""},{"$f":"IFERROR(IF(OR($C$168=FALSE,LEFT($B164,3)<>\"NOX\"),BO55*INDEX('Damage costs'!$P$16:$P$43,MATCH($B164,'Damage costs'!$C$16:$C$43,0))/1000,BO55*INDEX('Damage costs'!$T$16:$T$43,MATCH($B164,'Damage costs'!$C$16:$C$43,0))/1000),\"\")","v":""},{"$f":"IFERROR(IF(OR($C$168=FALSE,LEFT($B164,3)<>\"NOX\"),BP55*INDEX('Damage costs'!$P$16:$P$43,MATCH($B164,'Damage costs'!$C$16:$C$43,0))/1000,BP55*INDEX('Damage costs'!$T$16:$T$43,MATCH($B164,'Damage costs'!$C$16:$C$43,0))/1000),\"\")","v":""},{"$f":"IFERROR(IF(OR($C$168=FALSE,LEFT($B164,3)<>\"NOX\"),BQ55*INDEX('Damage costs'!$P$16:$P$43,MATCH($B164,'Damage costs'!$C$16:$C$43,0))/1000,BQ55*INDEX('Damage costs'!$T$16:$T$43,MATCH($B164,'Damage costs'!$C$16:$C$43,0))/1000),\"\")","v":""},{"$f":"IFERROR(IF(OR($C$168=FALSE,LEFT($B164,3)<>\"NOX\"),BR55*INDEX('Damage costs'!$P$16:$P$43,MATCH($B164,'Damage costs'!$C$16:$C$43,0))/1000,BR55*INDEX('Damage costs'!$T$16:$T$43,MATCH($B164,'Damage costs'!$C$16:$C$43,0))/1000),\"\")","v":""},{"$f":"IFERROR(IF(OR($C$168=FALSE,LEFT($B164,3)<>\"NOX\"),BS55*INDEX('Damage costs'!$P$16:$P$43,MATCH($B164,'Damage costs'!$C$16:$C$43,0))/1000,BS55*INDEX('Damage costs'!$T$16:$T$43,MATCH($B164,'Damage costs'!$C$16:$C$43,0))/1000),\"\")","v":""},{"$f":"IFERROR(IF(OR($C$168=FALSE,LEFT($B164,3)<>\"NOX\"),BT55*INDEX('Damage costs'!$P$16:$P$43,MATCH($B164,'Damage costs'!$C$16:$C$43,0))/1000,BT55*INDEX('Damage costs'!$T$16:$T$43,MATCH($B164,'Damage costs'!$C$16:$C$43,0))/1000),\"\")","v":""},{"$f":"IFERROR(IF(OR($C$168=FALSE,LEFT($B164,3)<>\"NOX\"),BU55*INDEX('Damage costs'!$P$16:$P$43,MATCH($B164,'Damage costs'!$C$16:$C$43,0))/1000,BU55*INDEX('Damage costs'!$T$16:$T$43,MATCH($B164,'Damage costs'!$C$16:$C$43,0))/1000),\"\")","v":""},{"$f":"IFERROR(IF(OR($C$168=FALSE,LEFT($B164,3)<>\"NOX\"),BV55*INDEX('Damage costs'!$P$16:$P$43,MATCH($B164,'Damage costs'!$C$16:$C$43,0))/1000,BV55*INDEX('Damage costs'!$T$16:$T$43,MATCH($B164,'Damage costs'!$C$16:$C$43,0))/1000),\"\")","v":""},{"$f":"IFERROR(IF(OR($C$168=FALSE,LEFT($B164,3)<>\"NOX\"),BW55*INDEX('Damage costs'!$P$16:$P$43,MATCH($B164,'Damage costs'!$C$16:$C$43,0))/1000,BW55*INDEX('Damage costs'!$T$16:$T$43,MATCH($B164,'Damage costs'!$C$16:$C$43,0))/1000),\"\")","v":""},{"$f":"IFERROR(IF(OR($C$168=FALSE,LEFT($B164,3)<>\"NOX\"),BX55*INDEX('Damage costs'!$P$16:$P$43,MATCH($B164,'Damage costs'!$C$16:$C$43,0))/1000,BX55*INDEX('Damage costs'!$T$16:$T$43,MATCH($B164,'Damage costs'!$C$16:$C$43,0))/1000),\"\")","v":""},{"$f":"IFERROR(IF(OR($C$168=FALSE,LEFT($B164,3)<>\"NOX\"),BY55*INDEX('Damage costs'!$P$16:$P$43,MATCH($B164,'Damage costs'!$C$16:$C$43,0))/1000,BY55*INDEX('Damage costs'!$T$16:$T$43,MATCH($B164,'Damage costs'!$C$16:$C$43,0))/1000),\"\")","v":""},{"$f":"IFERROR(IF(OR($C$168=FALSE,LEFT($B164,3)<>\"NOX\"),BZ55*INDEX('Damage costs'!$P$16:$P$43,MATCH($B164,'Damage costs'!$C$16:$C$43,0))/1000,BZ55*INDEX('Damage costs'!$T$16:$T$43,MATCH($B164,'Damage costs'!$C$16:$C$43,0))/1000),\"\")","v":""},{"$f":"IFERROR(IF(OR($C$168=FALSE,LEFT($B164,3)<>\"NOX\"),CA55*INDEX('Damage costs'!$P$16:$P$43,MATCH($B164,'Damage costs'!$C$16:$C$43,0))/1000,CA55*INDEX('Damage costs'!$T$16:$T$43,MATCH($B164,'Damage costs'!$C$16:$C$43,0))/1000),\"\")","v":""},{"$f":"IFERROR(IF(OR($C$168=FALSE,LEFT($B164,3)<>\"NOX\"),CB55*INDEX('Damage costs'!$P$16:$P$43,MATCH($B164,'Damage costs'!$C$16:$C$43,0))/1000,CB55*INDEX('Damage costs'!$T$16:$T$43,MATCH($B164,'Damage costs'!$C$16:$C$43,0))/1000),\"\")","v":""},{"$f":"IFERROR(IF(OR($C$168=FALSE,LEFT($B164,3)<>\"NOX\"),CC55*INDEX('Damage costs'!$P$16:$P$43,MATCH($B164,'Damage costs'!$C$16:$C$43,0))/1000,CC55*INDEX('Damage costs'!$T$16:$T$43,MATCH($B164,'Damage costs'!$C$16:$C$43,0))/1000),\"\")","v":""},{"$f":"IFERROR(IF(OR($C$168=FALSE,LEFT($B164,3)<>\"NOX\"),CD55*INDEX('Damage costs'!$P$16:$P$43,MATCH($B164,'Damage costs'!$C$16:$C$43,0))/1000,CD55*INDEX('Damage costs'!$T$16:$T$43,MATCH($B164,'Damage costs'!$C$16:$C$43,0))/1000),\"\")","v":""},{"$f":"IFERROR(IF(OR($C$168=FALSE,LEFT($B164,3)<>\"NOX\"),CE55*INDEX('Damage costs'!$P$16:$P$43,MATCH($B164,'Damage costs'!$C$16:$C$43,0))/1000,CE55*INDEX('Damage costs'!$T$16:$T$43,MATCH($B164,'Damage costs'!$C$16:$C$43,0))/1000),\"\")","v":""},{"$f":"IFERROR(IF(OR($C$168=FALSE,LEFT($B164,3)<>\"NOX\"),CF55*INDEX('Damage costs'!$P$16:$P$43,MATCH($B164,'Damage costs'!$C$16:$C$43,0))/1000,CF55*INDEX('Damage costs'!$T$16:$T$43,MATCH($B164,'Damage costs'!$C$16:$C$43,0))/1000),\"\")","v":""},{"$f":"IFERROR(IF(OR($C$168=FALSE,LEFT($B164,3)<>\"NOX\"),CG55*INDEX('Damage costs'!$P$16:$P$43,MATCH($B164,'Damage costs'!$C$16:$C$43,0))/1000,CG55*INDEX('Damage costs'!$T$16:$T$43,MATCH($B164,'Damage costs'!$C$16:$C$43,0))/1000),\"\")","v":""},{"$f":"IFERROR(IF(OR($C$168=FALSE,LEFT($B164,3)<>\"NOX\"),CH55*INDEX('Damage costs'!$P$16:$P$43,MATCH($B164,'Damage costs'!$C$16:$C$43,0))/1000,CH55*INDEX('Damage costs'!$T$16:$T$43,MATCH($B164,'Damage costs'!$C$16:$C$43,0))/1000),\"\")","v":""},{"$f":"IFERROR(IF(OR($C$168=FALSE,LEFT($B164,3)<>\"NOX\"),CI55*INDEX('Damage costs'!$P$16:$P$43,MATCH($B164,'Damage costs'!$C$16:$C$43,0))/1000,CI55*INDEX('Damage costs'!$T$16:$T$43,MATCH($B164,'Damage costs'!$C$16:$C$43,0))/1000),\"\")","v":""},{"$f":"IFERROR(IF(OR($C$168=FALSE,LEFT($B164,3)<>\"NOX\"),CJ55*INDEX('Damage costs'!$P$16:$P$43,MATCH($B164,'Damage costs'!$C$16:$C$43,0))/1000,CJ55*INDEX('Damage costs'!$T$16:$T$43,MATCH($B164,'Damage costs'!$C$16:$C$43,0))/1000),\"\")","v":""},{"$f":"IFERROR(IF(OR($C$168=FALSE,LEFT($B164,3)<>\"NOX\"),CK55*INDEX('Damage costs'!$P$16:$P$43,MATCH($B164,'Damage costs'!$C$16:$C$43,0))/1000,CK55*INDEX('Damage costs'!$T$16:$T$43,MATCH($B164,'Damage costs'!$C$16:$C$43,0))/1000),\"\")","v":""},{"$f":"IFERROR(IF(OR($C$168=FALSE,LEFT($B164,3)<>\"NOX\"),CL55*INDEX('Damage costs'!$P$16:$P$43,MATCH($B164,'Damage costs'!$C$16:$C$43,0))/1000,CL55*INDEX('Damage costs'!$T$16:$T$43,MATCH($B164,'Damage costs'!$C$16:$C$43,0))/1000),\"\")","v":""},{"$f":"IFERROR(IF(OR($C$168=FALSE,LEFT($B164,3)<>\"NOX\"),CM55*INDEX('Damage costs'!$P$16:$P$43,MATCH($B164,'Damage costs'!$C$16:$C$43,0))/1000,CM55*INDEX('Damage costs'!$T$16:$T$43,MATCH($B164,'Damage costs'!$C$16:$C$43,0))/1000),\"\")","v":""},{"$f":"IFERROR(IF(OR($C$168=FALSE,LEFT($B164,3)<>\"NOX\"),CN55*INDEX('Damage costs'!$P$16:$P$43,MATCH($B164,'Damage costs'!$C$16:$C$43,0))/1000,CN55*INDEX('Damage costs'!$T$16:$T$43,MATCH($B164,'Damage costs'!$C$16:$C$43,0))/1000),\"\")","v":""},{"$f":"IFERROR(IF(OR($C$168=FALSE,LEFT($B164,3)<>\"NOX\"),CO55*INDEX('Damage costs'!$P$16:$P$43,MATCH($B164,'Damage costs'!$C$16:$C$43,0))/1000,CO55*INDEX('Damage costs'!$T$16:$T$43,MATCH($B164,'Damage costs'!$C$16:$C$43,0))/1000),\"\")","v":""},{"$f":"IFERROR(IF(OR($C$168=FALSE,LEFT($B164,3)<>\"NOX\"),CP55*INDEX('Damage costs'!$P$16:$P$43,MATCH($B164,'Damage costs'!$C$16:$C$43,0))/1000,CP55*INDEX('Damage costs'!$T$16:$T$43,MATCH($B164,'Damage costs'!$C$16:$C$43,0))/1000),\"\")","v":""},{"$f":"IFERROR(IF(OR($C$168=FALSE,LEFT($B164,3)<>\"NOX\"),CQ55*INDEX('Damage costs'!$P$16:$P$43,MATCH($B164,'Damage costs'!$C$16:$C$43,0))/1000,CQ55*INDEX('Damage costs'!$T$16:$T$43,MATCH($B164,'Damage costs'!$C$16:$C$43,0))/1000),\"\")","v":""},{"$f":"IFERROR(IF(OR($C$168=FALSE,LEFT($B164,3)<>\"NOX\"),CR55*INDEX('Damage costs'!$P$16:$P$43,MATCH($B164,'Damage costs'!$C$16:$C$43,0))/1000,CR55*INDEX('Damage costs'!$T$16:$T$43,MATCH($B164,'Damage costs'!$C$16:$C$43,0))/1000),\"\")","v":""},{"$f":"IFERROR(IF(OR($C$168=FALSE,LEFT($B164,3)<>\"NOX\"),CS55*INDEX('Damage costs'!$P$16:$P$43,MATCH($B164,'Damage costs'!$C$16:$C$43,0))/1000,CS55*INDEX('Damage costs'!$T$16:$T$43,MATCH($B164,'Damage costs'!$C$16:$C$43,0))/1000),\"\")","v":""},{"$f":"IFERROR(IF(OR($C$168=FALSE,LEFT($B164,3)<>\"NOX\"),CT55*INDEX('Damage costs'!$P$16:$P$43,MATCH($B164,'Damage costs'!$C$16:$C$43,0))/1000,CT55*INDEX('Damage costs'!$T$16:$T$43,MATCH($B164,'Damage costs'!$C$16:$C$43,0))/1000),\"\")","v":""},{"$f":"IFERROR(IF(OR($C$168=FALSE,LEFT($B164,3)<>\"NOX\"),CU55*INDEX('Damage costs'!$P$16:$P$43,MATCH($B164,'Damage costs'!$C$16:$C$43,0))/1000,CU55*INDEX('Damage costs'!$T$16:$T$43,MATCH($B164,'Damage costs'!$C$16:$C$43,0))/1000),\"\")","v":""},{"$f":"IFERROR(IF(OR($C$168=FALSE,LEFT($B164,3)<>\"NOX\"),CV55*INDEX('Damage costs'!$P$16:$P$43,MATCH($B164,'Damage costs'!$C$16:$C$43,0))/1000,CV55*INDEX('Damage costs'!$T$16:$T$43,MATCH($B164,'Damage costs'!$C$16:$C$43,0))/1000),\"\")","v":""},{"$f":"IFERROR(IF(OR($C$168=FALSE,LEFT($B164,3)<>\"NOX\"),CW55*INDEX('Damage costs'!$P$16:$P$43,MATCH($B164,'Damage costs'!$C$16:$C$43,0))/1000,CW55*INDEX('Damage costs'!$T$16:$T$43,MATCH($B164,'Damage costs'!$C$16:$C$43,0))/1000),\"\")","v":""},{"$f":"IFERROR(IF(OR($C$168=FALSE,LEFT($B164,3)<>\"NOX\"),CX55*INDEX('Damage costs'!$P$16:$P$43,MATCH($B164,'Damage costs'!$C$16:$C$43,0))/1000,CX55*INDEX('Damage costs'!$T$16:$T$43,MATCH($B164,'Damage costs'!$C$16:$C$43,0))/1000),\"\")","v":""},{"$f":"IFERROR(IF(OR($C$168=FALSE,LEFT($B164,3)<>\"NOX\"),CY55*INDEX('Damage costs'!$P$16:$P$43,MATCH($B164,'Damage costs'!$C$16:$C$43,0))/1000,CY55*INDEX('Damage costs'!$T$16:$T$43,MATCH($B164,'Damage costs'!$C$16:$C$43,0))/1000),\"\")","v":""}]
[null,0,"£000's",{"$f":"IFERROR(IF(OR($C$168=FALSE,LEFT($B165,3)<>\"NOX\"),D56*INDEX('Damage costs'!$P$16:$P$43,MATCH($B165,'Damage costs'!$C$16:$C$43,0))/1000,D56*INDEX('Damage costs'!$T$16:$T$43,MATCH($B165,'Damage costs'!$C$16:$C$43,0))/1000),\"\")","v":""},{"$f":"IFERROR(IF(OR($C$168=FALSE,LEFT($B165,3)<>\"NOX\"),E56*INDEX('Damage costs'!$P$16:$P$43,MATCH($B165,'Damage costs'!$C$16:$C$43,0))/1000,E56*INDEX('Damage costs'!$T$16:$T$43,MATCH($B165,'Damage costs'!$C$16:$C$43,0))/1000),\"\")","v":""},{"$f":"IFERROR(IF(OR($C$168=FALSE,LEFT($B165,3)<>\"NOX\"),F56*INDEX('Damage costs'!$P$16:$P$43,MATCH($B165,'Damage costs'!$C$16:$C$43,0))/1000,F56*INDEX('Damage costs'!$T$16:$T$43,MATCH($B165,'Damage costs'!$C$16:$C$43,0))/1000),\"\")","v":""},{"$f":"IFERROR(IF(OR($C$168=FALSE,LEFT($B165,3)<>\"NOX\"),G56*INDEX('Damage costs'!$P$16:$P$43,MATCH($B165,'Damage costs'!$C$16:$C$43,0))/1000,G56*INDEX('Damage costs'!$T$16:$T$43,MATCH($B165,'Damage costs'!$C$16:$C$43,0))/1000),\"\")","v":""},{"$f":"IFERROR(IF(OR($C$168=FALSE,LEFT($B165,3)<>\"NOX\"),H56*INDEX('Damage costs'!$P$16:$P$43,MATCH($B165,'Damage costs'!$C$16:$C$43,0))/1000,H56*INDEX('Damage costs'!$T$16:$T$43,MATCH($B165,'Damage costs'!$C$16:$C$43,0))/1000),\"\")","v":""},{"$f":"IFERROR(IF(OR($C$168=FALSE,LEFT($B165,3)<>\"NOX\"),I56*INDEX('Damage costs'!$P$16:$P$43,MATCH($B165,'Damage costs'!$C$16:$C$43,0))/1000,I56*INDEX('Damage costs'!$T$16:$T$43,MATCH($B165,'Damage costs'!$C$16:$C$43,0))/1000),\"\")","v":""},{"$f":"IFERROR(IF(OR($C$168=FALSE,LEFT($B165,3)<>\"NOX\"),J56*INDEX('Damage costs'!$P$16:$P$43,MATCH($B165,'Damage costs'!$C$16:$C$43,0))/1000,J56*INDEX('Damage costs'!$T$16:$T$43,MATCH($B165,'Damage costs'!$C$16:$C$43,0))/1000),\"\")","v":""},{"$f":"IFERROR(IF(OR($C$168=FALSE,LEFT($B165,3)<>\"NOX\"),K56*INDEX('Damage costs'!$P$16:$P$43,MATCH($B165,'Damage costs'!$C$16:$C$43,0))/1000,K56*INDEX('Damage costs'!$T$16:$T$43,MATCH($B165,'Damage costs'!$C$16:$C$43,0))/1000),\"\")","v":""},{"$f":"IFERROR(IF(OR($C$168=FALSE,LEFT($B165,3)<>\"NOX\"),L56*INDEX('Damage costs'!$P$16:$P$43,MATCH($B165,'Damage costs'!$C$16:$C$43,0))/1000,L56*INDEX('Damage costs'!$T$16:$T$43,MATCH($B165,'Damage costs'!$C$16:$C$43,0))/1000),\"\")","v":""},{"$f":"IFERROR(IF(OR($C$168=FALSE,LEFT($B165,3)<>\"NOX\"),M56*INDEX('Damage costs'!$P$16:$P$43,MATCH($B165,'Damage costs'!$C$16:$C$43,0))/1000,M56*INDEX('Damage costs'!$T$16:$T$43,MATCH($B165,'Damage costs'!$C$16:$C$43,0))/1000),\"\")","v":""},{"$f":"IFERROR(IF(OR($C$168=FALSE,LEFT($B165,3)<>\"NOX\"),N56*INDEX('Damage costs'!$P$16:$P$43,MATCH($B165,'Damage costs'!$C$16:$C$43,0))/1000,N56*INDEX('Damage costs'!$T$16:$T$43,MATCH($B165,'Damage costs'!$C$16:$C$43,0))/1000),\"\")","v":""},{"$f":"IFERROR(IF(OR($C$168=FALSE,LEFT($B165,3)<>\"NOX\"),O56*INDEX('Damage costs'!$P$16:$P$43,MATCH($B165,'Damage costs'!$C$16:$C$43,0))/1000,O56*INDEX('Damage costs'!$T$16:$T$43,MATCH($B165,'Damage costs'!$C$16:$C$43,0))/1000),\"\")","v":""},{"$f":"IFERROR(IF(OR($C$168=FALSE,LEFT($B165,3)<>\"NOX\"),P56*INDEX('Damage costs'!$P$16:$P$43,MATCH($B165,'Damage costs'!$C$16:$C$43,0))/1000,P56*INDEX('Damage costs'!$T$16:$T$43,MATCH($B165,'Damage costs'!$C$16:$C$43,0))/1000),\"\")","v":""},{"$f":"IFERROR(IF(OR($C$168=FALSE,LEFT($B165,3)<>\"NOX\"),Q56*INDEX('Damage costs'!$P$16:$P$43,MATCH($B165,'Damage costs'!$C$16:$C$43,0))/1000,Q56*INDEX('Damage costs'!$T$16:$T$43,MATCH($B165,'Damage costs'!$C$16:$C$43,0))/1000),\"\")","v":""},{"$f":"IFERROR(IF(OR($C$168=FALSE,LEFT($B165,3)<>\"NOX\"),R56*INDEX('Damage costs'!$P$16:$P$43,MATCH($B165,'Damage costs'!$C$16:$C$43,0))/1000,R56*INDEX('Damage costs'!$T$16:$T$43,MATCH($B165,'Damage costs'!$C$16:$C$43,0))/1000),\"\")","v":""},{"$f":"IFERROR(IF(OR($C$168=FALSE,LEFT($B165,3)<>\"NOX\"),S56*INDEX('Damage costs'!$P$16:$P$43,MATCH($B165,'Damage costs'!$C$16:$C$43,0))/1000,S56*INDEX('Damage costs'!$T$16:$T$43,MATCH($B165,'Damage costs'!$C$16:$C$43,0))/1000),\"\")","v":""},{"$f":"IFERROR(IF(OR($C$168=FALSE,LEFT($B165,3)<>\"NOX\"),T56*INDEX('Damage costs'!$P$16:$P$43,MATCH($B165,'Damage costs'!$C$16:$C$43,0))/1000,T56*INDEX('Damage costs'!$T$16:$T$43,MATCH($B165,'Damage costs'!$C$16:$C$43,0))/1000),\"\")","v":""},{"$f":"IFERROR(IF(OR($C$168=FALSE,LEFT($B165,3)<>\"NOX\"),U56*INDEX('Damage costs'!$P$16:$P$43,MATCH($B165,'Damage costs'!$C$16:$C$43,0))/1000,U56*INDEX('Damage costs'!$T$16:$T$43,MATCH($B165,'Damage costs'!$C$16:$C$43,0))/1000),\"\")","v":""},{"$f":"IFERROR(IF(OR($C$168=FALSE,LEFT($B165,3)<>\"NOX\"),V56*INDEX('Damage costs'!$P$16:$P$43,MATCH($B165,'Damage costs'!$C$16:$C$43,0))/1000,V56*INDEX('Damage costs'!$T$16:$T$43,MATCH($B165,'Damage costs'!$C$16:$C$43,0))/1000),\"\")","v":""},{"$f":"IFERROR(IF(OR($C$168=FALSE,LEFT($B165,3)<>\"NOX\"),W56*INDEX('Damage costs'!$P$16:$P$43,MATCH($B165,'Damage costs'!$C$16:$C$43,0))/1000,W56*INDEX('Damage costs'!$T$16:$T$43,MATCH($B165,'Damage costs'!$C$16:$C$43,0))/1000),\"\")","v":""},{"$f":"IFERROR(IF(OR($C$168=FALSE,LEFT($B165,3)<>\"NOX\"),X56*INDEX('Damage costs'!$P$16:$P$43,MATCH($B165,'Damage costs'!$C$16:$C$43,0))/1000,X56*INDEX('Damage costs'!$T$16:$T$43,MATCH($B165,'Damage costs'!$C$16:$C$43,0))/1000),\"\")","v":""},{"$f":"IFERROR(IF(OR($C$168=FALSE,LEFT($B165,3)<>\"NOX\"),Y56*INDEX('Damage costs'!$P$16:$P$43,MATCH($B165,'Damage costs'!$C$16:$C$43,0))/1000,Y56*INDEX('Damage costs'!$T$16:$T$43,MATCH($B165,'Damage costs'!$C$16:$C$43,0))/1000),\"\")","v":""},{"$f":"IFERROR(IF(OR($C$168=FALSE,LEFT($B165,3)<>\"NOX\"),Z56*INDEX('Damage costs'!$P$16:$P$43,MATCH($B165,'Damage costs'!$C$16:$C$43,0))/1000,Z56*INDEX('Damage costs'!$T$16:$T$43,MATCH($B165,'Damage costs'!$C$16:$C$43,0))/1000),\"\")","v":""},{"$f":"IFERROR(IF(OR($C$168=FALSE,LEFT($B165,3)<>\"NOX\"),AA56*INDEX('Damage costs'!$P$16:$P$43,MATCH($B165,'Damage costs'!$C$16:$C$43,0))/1000,AA56*INDEX('Damage costs'!$T$16:$T$43,MATCH($B165,'Damage costs'!$C$16:$C$43,0))/1000),\"\")","v":""},{"$f":"IFERROR(IF(OR($C$168=FALSE,LEFT($B165,3)<>\"NOX\"),AB56*INDEX('Damage costs'!$P$16:$P$43,MATCH($B165,'Damage costs'!$C$16:$C$43,0))/1000,AB56*INDEX('Damage costs'!$T$16:$T$43,MATCH($B165,'Damage costs'!$C$16:$C$43,0))/1000),\"\")","v":""},{"$f":"IFERROR(IF(OR($C$168=FALSE,LEFT($B165,3)<>\"NOX\"),AC56*INDEX('Damage costs'!$P$16:$P$43,MATCH($B165,'Damage costs'!$C$16:$C$43,0))/1000,AC56*INDEX('Damage costs'!$T$16:$T$43,MATCH($B165,'Damage costs'!$C$16:$C$43,0))/1000),\"\")","v":""},{"$f":"IFERROR(IF(OR($C$168=FALSE,LEFT($B165,3)<>\"NOX\"),AD56*INDEX('Damage costs'!$P$16:$P$43,MATCH($B165,'Damage costs'!$C$16:$C$43,0))/1000,AD56*INDEX('Damage costs'!$T$16:$T$43,MATCH($B165,'Damage costs'!$C$16:$C$43,0))/1000),\"\")","v":""},{"$f":"IFERROR(IF(OR($C$168=FALSE,LEFT($B165,3)<>\"NOX\"),AE56*INDEX('Damage costs'!$P$16:$P$43,MATCH($B165,'Damage costs'!$C$16:$C$43,0))/1000,AE56*INDEX('Damage costs'!$T$16:$T$43,MATCH($B165,'Damage costs'!$C$16:$C$43,0))/1000),\"\")","v":""},{"$f":"IFERROR(IF(OR($C$168=FALSE,LEFT($B165,3)<>\"NOX\"),AF56*INDEX('Damage costs'!$P$16:$P$43,MATCH($B165,'Damage costs'!$C$16:$C$43,0))/1000,AF56*INDEX('Damage costs'!$T$16:$T$43,MATCH($B165,'Damage costs'!$C$16:$C$43,0))/1000),\"\")","v":""},{"$f":"IFERROR(IF(OR($C$168=FALSE,LEFT($B165,3)<>\"NOX\"),AG56*INDEX('Damage costs'!$P$16:$P$43,MATCH($B165,'Damage costs'!$C$16:$C$43,0))/1000,AG56*INDEX('Damage costs'!$T$16:$T$43,MATCH($B165,'Damage costs'!$C$16:$C$43,0))/1000),\"\")","v":""},{"$f":"IFERROR(IF(OR($C$168=FALSE,LEFT($B165,3)<>\"NOX\"),AH56*INDEX('Damage costs'!$P$16:$P$43,MATCH($B165,'Damage costs'!$C$16:$C$43,0))/1000,AH56*INDEX('Damage costs'!$T$16:$T$43,MATCH($B165,'Damage costs'!$C$16:$C$43,0))/1000),\"\")","v":""},{"$f":"IFERROR(IF(OR($C$168=FALSE,LEFT($B165,3)<>\"NOX\"),AI56*INDEX('Damage costs'!$P$16:$P$43,MATCH($B165,'Damage costs'!$C$16:$C$43,0))/1000,AI56*INDEX('Damage costs'!$T$16:$T$43,MATCH($B165,'Damage costs'!$C$16:$C$43,0))/1000),\"\")","v":""},{"$f":"IFERROR(IF(OR($C$168=FALSE,LEFT($B165,3)<>\"NOX\"),AJ56*INDEX('Damage costs'!$P$16:$P$43,MATCH($B165,'Damage costs'!$C$16:$C$43,0))/1000,AJ56*INDEX('Damage costs'!$T$16:$T$43,MATCH($B165,'Damage costs'!$C$16:$C$43,0))/1000),\"\")","v":""},{"$f":"IFERROR(IF(OR($C$168=FALSE,LEFT($B165,3)<>\"NOX\"),AK56*INDEX('Damage costs'!$P$16:$P$43,MATCH($B165,'Damage costs'!$C$16:$C$43,0))/1000,AK56*INDEX('Damage costs'!$T$16:$T$43,MATCH($B165,'Damage costs'!$C$16:$C$43,0))/1000),\"\")","v":""},{"$f":"IFERROR(IF(OR($C$168=FALSE,LEFT($B165,3)<>\"NOX\"),AL56*INDEX('Damage costs'!$P$16:$P$43,MATCH($B165,'Damage costs'!$C$16:$C$43,0))/1000,AL56*INDEX('Damage costs'!$T$16:$T$43,MATCH($B165,'Damage costs'!$C$16:$C$43,0))/1000),\"\")","v":""},{"$f":"IFERROR(IF(OR($C$168=FALSE,LEFT($B165,3)<>\"NOX\"),AM56*INDEX('Damage costs'!$P$16:$P$43,MATCH($B165,'Damage costs'!$C$16:$C$43,0))/1000,AM56*INDEX('Damage costs'!$T$16:$T$43,MATCH($B165,'Damage costs'!$C$16:$C$43,0))/1000),\"\")","v":""},{"$f":"IFERROR(IF(OR($C$168=FALSE,LEFT($B165,3)<>\"NOX\"),AN56*INDEX('Damage costs'!$P$16:$P$43,MATCH($B165,'Damage costs'!$C$16:$C$43,0))/1000,AN56*INDEX('Damage costs'!$T$16:$T$43,MATCH($B165,'Damage costs'!$C$16:$C$43,0))/1000),\"\")","v":""},{"$f":"IFERROR(IF(OR($C$168=FALSE,LEFT($B165,3)<>\"NOX\"),AO56*INDEX('Damage costs'!$P$16:$P$43,MATCH($B165,'Damage costs'!$C$16:$C$43,0))/1000,AO56*INDEX('Damage costs'!$T$16:$T$43,MATCH($B165,'Damage costs'!$C$16:$C$43,0))/1000),\"\")","v":""},{"$f":"IFERROR(IF(OR($C$168=FALSE,LEFT($B165,3)<>\"NOX\"),AP56*INDEX('Damage costs'!$P$16:$P$43,MATCH($B165,'Damage costs'!$C$16:$C$43,0))/1000,AP56*INDEX('Damage costs'!$T$16:$T$43,MATCH($B165,'Damage costs'!$C$16:$C$43,0))/1000),\"\")","v":""},{"$f":"IFERROR(IF(OR($C$168=FALSE,LEFT($B165,3)<>\"NOX\"),AQ56*INDEX('Damage costs'!$P$16:$P$43,MATCH($B165,'Damage costs'!$C$16:$C$43,0))/1000,AQ56*INDEX('Damage costs'!$T$16:$T$43,MATCH($B165,'Damage costs'!$C$16:$C$43,0))/1000),\"\")","v":""},{"$f":"IFERROR(IF(OR($C$168=FALSE,LEFT($B165,3)<>\"NOX\"),AR56*INDEX('Damage costs'!$P$16:$P$43,MATCH($B165,'Damage costs'!$C$16:$C$43,0))/1000,AR56*INDEX('Damage costs'!$T$16:$T$43,MATCH($B165,'Damage costs'!$C$16:$C$43,0))/1000),\"\")","v":""},{"$f":"IFERROR(IF(OR($C$168=FALSE,LEFT($B165,3)<>\"NOX\"),AS56*INDEX('Damage costs'!$P$16:$P$43,MATCH($B165,'Damage costs'!$C$16:$C$43,0))/1000,AS56*INDEX('Damage costs'!$T$16:$T$43,MATCH($B165,'Damage costs'!$C$16:$C$43,0))/1000),\"\")","v":""},{"$f":"IFERROR(IF(OR($C$168=FALSE,LEFT($B165,3)<>\"NOX\"),AT56*INDEX('Damage costs'!$P$16:$P$43,MATCH($B165,'Damage costs'!$C$16:$C$43,0))/1000,AT56*INDEX('Damage costs'!$T$16:$T$43,MATCH($B165,'Damage costs'!$C$16:$C$43,0))/1000),\"\")","v":""},{"$f":"IFERROR(IF(OR($C$168=FALSE,LEFT($B165,3)<>\"NOX\"),AU56*INDEX('Damage costs'!$P$16:$P$43,MATCH($B165,'Damage costs'!$C$16:$C$43,0))/1000,AU56*INDEX('Damage costs'!$T$16:$T$43,MATCH($B165,'Damage costs'!$C$16:$C$43,0))/1000),\"\")","v":""},{"$f":"IFERROR(IF(OR($C$168=FALSE,LEFT($B165,3)<>\"NOX\"),AV56*INDEX('Damage costs'!$P$16:$P$43,MATCH($B165,'Damage costs'!$C$16:$C$43,0))/1000,AV56*INDEX('Damage costs'!$T$16:$T$43,MATCH($B165,'Damage costs'!$C$16:$C$43,0))/1000),\"\")","v":""},{"$f":"IFERROR(IF(OR($C$168=FALSE,LEFT($B165,3)<>\"NOX\"),AW56*INDEX('Damage costs'!$P$16:$P$43,MATCH($B165,'Damage costs'!$C$16:$C$43,0))/1000,AW56*INDEX('Damage costs'!$T$16:$T$43,MATCH($B165,'Damage costs'!$C$16:$C$43,0))/1000),\"\")","v":""},{"$f":"IFERROR(IF(OR($C$168=FALSE,LEFT($B165,3)<>\"NOX\"),AX56*INDEX('Damage costs'!$P$16:$P$43,MATCH($B165,'Damage costs'!$C$16:$C$43,0))/1000,AX56*INDEX('Damage costs'!$T$16:$T$43,MATCH($B165,'Damage costs'!$C$16:$C$43,0))/1000),\"\")","v":""},{"$f":"IFERROR(IF(OR($C$168=FALSE,LEFT($B165,3)<>\"NOX\"),AY56*INDEX('Damage costs'!$P$16:$P$43,MATCH($B165,'Damage costs'!$C$16:$C$43,0))/1000,AY56*INDEX('Damage costs'!$T$16:$T$43,MATCH($B165,'Damage costs'!$C$16:$C$43,0))/1000),\"\")","v":""},{"$f":"IFERROR(IF(OR($C$168=FALSE,LEFT($B165,3)<>\"NOX\"),AZ56*INDEX('Damage costs'!$P$16:$P$43,MATCH($B165,'Damage costs'!$C$16:$C$43,0))/1000,AZ56*INDEX('Damage costs'!$T$16:$T$43,MATCH($B165,'Damage costs'!$C$16:$C$43,0))/1000),\"\")","v":""},{"$f":"IFERROR(IF(OR($C$168=FALSE,LEFT($B165,3)<>\"NOX\"),BA56*INDEX('Damage costs'!$P$16:$P$43,MATCH($B165,'Damage costs'!$C$16:$C$43,0))/1000,BA56*INDEX('Damage costs'!$T$16:$T$43,MATCH($B165,'Damage costs'!$C$16:$C$43,0))/1000),\"\")","v":""},{"$f":"IFERROR(IF(OR($C$168=FALSE,LEFT($B165,3)<>\"NOX\"),BB56*INDEX('Damage costs'!$P$16:$P$43,MATCH($B165,'Damage costs'!$C$16:$C$43,0))/1000,BB56*INDEX('Damage costs'!$T$16:$T$43,MATCH($B165,'Damage costs'!$C$16:$C$43,0))/1000),\"\")","v":""},{"$f":"IFERROR(IF(OR($C$168=FALSE,LEFT($B165,3)<>\"NOX\"),BC56*INDEX('Damage costs'!$P$16:$P$43,MATCH($B165,'Damage costs'!$C$16:$C$43,0))/1000,BC56*INDEX('Damage costs'!$T$16:$T$43,MATCH($B165,'Damage costs'!$C$16:$C$43,0))/1000),\"\")","v":""},{"$f":"IFERROR(IF(OR($C$168=FALSE,LEFT($B165,3)<>\"NOX\"),BD56*INDEX('Damage costs'!$P$16:$P$43,MATCH($B165,'Damage costs'!$C$16:$C$43,0))/1000,BD56*INDEX('Damage costs'!$T$16:$T$43,MATCH($B165,'Damage costs'!$C$16:$C$43,0))/1000),\"\")","v":""},{"$f":"IFERROR(IF(OR($C$168=FALSE,LEFT($B165,3)<>\"NOX\"),BE56*INDEX('Damage costs'!$P$16:$P$43,MATCH($B165,'Damage costs'!$C$16:$C$43,0))/1000,BE56*INDEX('Damage costs'!$T$16:$T$43,MATCH($B165,'Damage costs'!$C$16:$C$43,0))/1000),\"\")","v":""},{"$f":"IFERROR(IF(OR($C$168=FALSE,LEFT($B165,3)<>\"NOX\"),BF56*INDEX('Damage costs'!$P$16:$P$43,MATCH($B165,'Damage costs'!$C$16:$C$43,0))/1000,BF56*INDEX('Damage costs'!$T$16:$T$43,MATCH($B165,'Damage costs'!$C$16:$C$43,0))/1000),\"\")","v":""},{"$f":"IFERROR(IF(OR($C$168=FALSE,LEFT($B165,3)<>\"NOX\"),BG56*INDEX('Damage costs'!$P$16:$P$43,MATCH($B165,'Damage costs'!$C$16:$C$43,0))/1000,BG56*INDEX('Damage costs'!$T$16:$T$43,MATCH($B165,'Damage costs'!$C$16:$C$43,0))/1000),\"\")","v":""},{"$f":"IFERROR(IF(OR($C$168=FALSE,LEFT($B165,3)<>\"NOX\"),BH56*INDEX('Damage costs'!$P$16:$P$43,MATCH($B165,'Damage costs'!$C$16:$C$43,0))/1000,BH56*INDEX('Damage costs'!$T$16:$T$43,MATCH($B165,'Damage costs'!$C$16:$C$43,0))/1000),\"\")","v":""},{"$f":"IFERROR(IF(OR($C$168=FALSE,LEFT($B165,3)<>\"NOX\"),BI56*INDEX('Damage costs'!$P$16:$P$43,MATCH($B165,'Damage costs'!$C$16:$C$43,0))/1000,BI56*INDEX('Damage costs'!$T$16:$T$43,MATCH($B165,'Damage costs'!$C$16:$C$43,0))/1000),\"\")","v":""},{"$f":"IFERROR(IF(OR($C$168=FALSE,LEFT($B165,3)<>\"NOX\"),BJ56*INDEX('Damage costs'!$P$16:$P$43,MATCH($B165,'Damage costs'!$C$16:$C$43,0))/1000,BJ56*INDEX('Damage costs'!$T$16:$T$43,MATCH($B165,'Damage costs'!$C$16:$C$43,0))/1000),\"\")","v":""},{"$f":"IFERROR(IF(OR($C$168=FALSE,LEFT($B165,3)<>\"NOX\"),BK56*INDEX('Damage costs'!$P$16:$P$43,MATCH($B165,'Damage costs'!$C$16:$C$43,0))/1000,BK56*INDEX('Damage costs'!$T$16:$T$43,MATCH($B165,'Damage costs'!$C$16:$C$43,0))/1000),\"\")","v":""},{"$f":"IFERROR(IF(OR($C$168=FALSE,LEFT($B165,3)<>\"NOX\"),BL56*INDEX('Damage costs'!$P$16:$P$43,MATCH($B165,'Damage costs'!$C$16:$C$43,0))/1000,BL56*INDEX('Damage costs'!$T$16:$T$43,MATCH($B165,'Damage costs'!$C$16:$C$43,0))/1000),\"\")","v":""},{"$f":"IFERROR(IF(OR($C$168=FALSE,LEFT($B165,3)<>\"NOX\"),BM56*INDEX('Damage costs'!$P$16:$P$43,MATCH($B165,'Damage costs'!$C$16:$C$43,0))/1000,BM56*INDEX('Damage costs'!$T$16:$T$43,MATCH($B165,'Damage costs'!$C$16:$C$43,0))/1000),\"\")","v":""},{"$f":"IFERROR(IF(OR($C$168=FALSE,LEFT($B165,3)<>\"NOX\"),BN56*INDEX('Damage costs'!$P$16:$P$43,MATCH($B165,'Damage costs'!$C$16:$C$43,0))/1000,BN56*INDEX('Damage costs'!$T$16:$T$43,MATCH($B165,'Damage costs'!$C$16:$C$43,0))/1000),\"\")","v":""},{"$f":"IFERROR(IF(OR($C$168=FALSE,LEFT($B165,3)<>\"NOX\"),BO56*INDEX('Damage costs'!$P$16:$P$43,MATCH($B165,'Damage costs'!$C$16:$C$43,0))/1000,BO56*INDEX('Damage costs'!$T$16:$T$43,MATCH($B165,'Damage costs'!$C$16:$C$43,0))/1000),\"\")","v":""},{"$f":"IFERROR(IF(OR($C$168=FALSE,LEFT($B165,3)<>\"NOX\"),BP56*INDEX('Damage costs'!$P$16:$P$43,MATCH($B165,'Damage costs'!$C$16:$C$43,0))/1000,BP56*INDEX('Damage costs'!$T$16:$T$43,MATCH($B165,'Damage costs'!$C$16:$C$43,0))/1000),\"\")","v":""},{"$f":"IFERROR(IF(OR($C$168=FALSE,LEFT($B165,3)<>\"NOX\"),BQ56*INDEX('Damage costs'!$P$16:$P$43,MATCH($B165,'Damage costs'!$C$16:$C$43,0))/1000,BQ56*INDEX('Damage costs'!$T$16:$T$43,MATCH($B165,'Damage costs'!$C$16:$C$43,0))/1000),\"\")","v":""},{"$f":"IFERROR(IF(OR($C$168=FALSE,LEFT($B165,3)<>\"NOX\"),BR56*INDEX('Damage costs'!$P$16:$P$43,MATCH($B165,'Damage costs'!$C$16:$C$43,0))/1000,BR56*INDEX('Damage costs'!$T$16:$T$43,MATCH($B165,'Damage costs'!$C$16:$C$43,0))/1000),\"\")","v":""},{"$f":"IFERROR(IF(OR($C$168=FALSE,LEFT($B165,3)<>\"NOX\"),BS56*INDEX('Damage costs'!$P$16:$P$43,MATCH($B165,'Damage costs'!$C$16:$C$43,0))/1000,BS56*INDEX('Damage costs'!$T$16:$T$43,MATCH($B165,'Damage costs'!$C$16:$C$43,0))/1000),\"\")","v":""},{"$f":"IFERROR(IF(OR($C$168=FALSE,LEFT($B165,3)<>\"NOX\"),BT56*INDEX('Damage costs'!$P$16:$P$43,MATCH($B165,'Damage costs'!$C$16:$C$43,0))/1000,BT56*INDEX('Damage costs'!$T$16:$T$43,MATCH($B165,'Damage costs'!$C$16:$C$43,0))/1000),\"\")","v":""},{"$f":"IFERROR(IF(OR($C$168=FALSE,LEFT($B165,3)<>\"NOX\"),BU56*INDEX('Damage costs'!$P$16:$P$43,MATCH($B165,'Damage costs'!$C$16:$C$43,0))/1000,BU56*INDEX('Damage costs'!$T$16:$T$43,MATCH($B165,'Damage costs'!$C$16:$C$43,0))/1000),\"\")","v":""},{"$f":"IFERROR(IF(OR($C$168=FALSE,LEFT($B165,3)<>\"NOX\"),BV56*INDEX('Damage costs'!$P$16:$P$43,MATCH($B165,'Damage costs'!$C$16:$C$43,0))/1000,BV56*INDEX('Damage costs'!$T$16:$T$43,MATCH($B165,'Damage costs'!$C$16:$C$43,0))/1000),\"\")","v":""},{"$f":"IFERROR(IF(OR($C$168=FALSE,LEFT($B165,3)<>\"NOX\"),BW56*INDEX('Damage costs'!$P$16:$P$43,MATCH($B165,'Damage costs'!$C$16:$C$43,0))/1000,BW56*INDEX('Damage costs'!$T$16:$T$43,MATCH($B165,'Damage costs'!$C$16:$C$43,0))/1000),\"\")","v":""},{"$f":"IFERROR(IF(OR($C$168=FALSE,LEFT($B165,3)<>\"NOX\"),BX56*INDEX('Damage costs'!$P$16:$P$43,MATCH($B165,'Damage costs'!$C$16:$C$43,0))/1000,BX56*INDEX('Damage costs'!$T$16:$T$43,MATCH($B165,'Damage costs'!$C$16:$C$43,0))/1000),\"\")","v":""},{"$f":"IFERROR(IF(OR($C$168=FALSE,LEFT($B165,3)<>\"NOX\"),BY56*INDEX('Damage costs'!$P$16:$P$43,MATCH($B165,'Damage costs'!$C$16:$C$43,0))/1000,BY56*INDEX('Damage costs'!$T$16:$T$43,MATCH($B165,'Damage costs'!$C$16:$C$43,0))/1000),\"\")","v":""},{"$f":"IFERROR(IF(OR($C$168=FALSE,LEFT($B165,3)<>\"NOX\"),BZ56*INDEX('Damage costs'!$P$16:$P$43,MATCH($B165,'Damage costs'!$C$16:$C$43,0))/1000,BZ56*INDEX('Damage costs'!$T$16:$T$43,MATCH($B165,'Damage costs'!$C$16:$C$43,0))/1000),\"\")","v":""},{"$f":"IFERROR(IF(OR($C$168=FALSE,LEFT($B165,3)<>\"NOX\"),CA56*INDEX('Damage costs'!$P$16:$P$43,MATCH($B165,'Damage costs'!$C$16:$C$43,0))/1000,CA56*INDEX('Damage costs'!$T$16:$T$43,MATCH($B165,'Damage costs'!$C$16:$C$43,0))/1000),\"\")","v":""},{"$f":"IFERROR(IF(OR($C$168=FALSE,LEFT($B165,3)<>\"NOX\"),CB56*INDEX('Damage costs'!$P$16:$P$43,MATCH($B165,'Damage costs'!$C$16:$C$43,0))/1000,CB56*INDEX('Damage costs'!$T$16:$T$43,MATCH($B165,'Damage costs'!$C$16:$C$43,0))/1000),\"\")","v":""},{"$f":"IFERROR(IF(OR($C$168=FALSE,LEFT($B165,3)<>\"NOX\"),CC56*INDEX('Damage costs'!$P$16:$P$43,MATCH($B165,'Damage costs'!$C$16:$C$43,0))/1000,CC56*INDEX('Damage costs'!$T$16:$T$43,MATCH($B165,'Damage costs'!$C$16:$C$43,0))/1000),\"\")","v":""},{"$f":"IFERROR(IF(OR($C$168=FALSE,LEFT($B165,3)<>\"NOX\"),CD56*INDEX('Damage costs'!$P$16:$P$43,MATCH($B165,'Damage costs'!$C$16:$C$43,0))/1000,CD56*INDEX('Damage costs'!$T$16:$T$43,MATCH($B165,'Damage costs'!$C$16:$C$43,0))/1000),\"\")","v":""},{"$f":"IFERROR(IF(OR($C$168=FALSE,LEFT($B165,3)<>\"NOX\"),CE56*INDEX('Damage costs'!$P$16:$P$43,MATCH($B165,'Damage costs'!$C$16:$C$43,0))/1000,CE56*INDEX('Damage costs'!$T$16:$T$43,MATCH($B165,'Damage costs'!$C$16:$C$43,0))/1000),\"\")","v":""},{"$f":"IFERROR(IF(OR($C$168=FALSE,LEFT($B165,3)<>\"NOX\"),CF56*INDEX('Damage costs'!$P$16:$P$43,MATCH($B165,'Damage costs'!$C$16:$C$43,0))/1000,CF56*INDEX('Damage costs'!$T$16:$T$43,MATCH($B165,'Damage costs'!$C$16:$C$43,0))/1000),\"\")","v":""},{"$f":"IFERROR(IF(OR($C$168=FALSE,LEFT($B165,3)<>\"NOX\"),CG56*INDEX('Damage costs'!$P$16:$P$43,MATCH($B165,'Damage costs'!$C$16:$C$43,0))/1000,CG56*INDEX('Damage costs'!$T$16:$T$43,MATCH($B165,'Damage costs'!$C$16:$C$43,0))/1000),\"\")","v":""},{"$f":"IFERROR(IF(OR($C$168=FALSE,LEFT($B165,3)<>\"NOX\"),CH56*INDEX('Damage costs'!$P$16:$P$43,MATCH($B165,'Damage costs'!$C$16:$C$43,0))/1000,CH56*INDEX('Damage costs'!$T$16:$T$43,MATCH($B165,'Damage costs'!$C$16:$C$43,0))/1000),\"\")","v":""},{"$f":"IFERROR(IF(OR($C$168=FALSE,LEFT($B165,3)<>\"NOX\"),CI56*INDEX('Damage costs'!$P$16:$P$43,MATCH($B165,'Damage costs'!$C$16:$C$43,0))/1000,CI56*INDEX('Damage costs'!$T$16:$T$43,MATCH($B165,'Damage costs'!$C$16:$C$43,0))/1000),\"\")","v":""},{"$f":"IFERROR(IF(OR($C$168=FALSE,LEFT($B165,3)<>\"NOX\"),CJ56*INDEX('Damage costs'!$P$16:$P$43,MATCH($B165,'Damage costs'!$C$16:$C$43,0))/1000,CJ56*INDEX('Damage costs'!$T$16:$T$43,MATCH($B165,'Damage costs'!$C$16:$C$43,0))/1000),\"\")","v":""},{"$f":"IFERROR(IF(OR($C$168=FALSE,LEFT($B165,3)<>\"NOX\"),CK56*INDEX('Damage costs'!$P$16:$P$43,MATCH($B165,'Damage costs'!$C$16:$C$43,0))/1000,CK56*INDEX('Damage costs'!$T$16:$T$43,MATCH($B165,'Damage costs'!$C$16:$C$43,0))/1000),\"\")","v":""},{"$f":"IFERROR(IF(OR($C$168=FALSE,LEFT($B165,3)<>\"NOX\"),CL56*INDEX('Damage costs'!$P$16:$P$43,MATCH($B165,'Damage costs'!$C$16:$C$43,0))/1000,CL56*INDEX('Damage costs'!$T$16:$T$43,MATCH($B165,'Damage costs'!$C$16:$C$43,0))/1000),\"\")","v":""},{"$f":"IFERROR(IF(OR($C$168=FALSE,LEFT($B165,3)<>\"NOX\"),CM56*INDEX('Damage costs'!$P$16:$P$43,MATCH($B165,'Damage costs'!$C$16:$C$43,0))/1000,CM56*INDEX('Damage costs'!$T$16:$T$43,MATCH($B165,'Damage costs'!$C$16:$C$43,0))/1000),\"\")","v":""},{"$f":"IFERROR(IF(OR($C$168=FALSE,LEFT($B165,3)<>\"NOX\"),CN56*INDEX('Damage costs'!$P$16:$P$43,MATCH($B165,'Damage costs'!$C$16:$C$43,0))/1000,CN56*INDEX('Damage costs'!$T$16:$T$43,MATCH($B165,'Damage costs'!$C$16:$C$43,0))/1000),\"\")","v":""},{"$f":"IFERROR(IF(OR($C$168=FALSE,LEFT($B165,3)<>\"NOX\"),CO56*INDEX('Damage costs'!$P$16:$P$43,MATCH($B165,'Damage costs'!$C$16:$C$43,0))/1000,CO56*INDEX('Damage costs'!$T$16:$T$43,MATCH($B165,'Damage costs'!$C$16:$C$43,0))/1000),\"\")","v":""},{"$f":"IFERROR(IF(OR($C$168=FALSE,LEFT($B165,3)<>\"NOX\"),CP56*INDEX('Damage costs'!$P$16:$P$43,MATCH($B165,'Damage costs'!$C$16:$C$43,0))/1000,CP56*INDEX('Damage costs'!$T$16:$T$43,MATCH($B165,'Damage costs'!$C$16:$C$43,0))/1000),\"\")","v":""},{"$f":"IFERROR(IF(OR($C$168=FALSE,LEFT($B165,3)<>\"NOX\"),CQ56*INDEX('Damage costs'!$P$16:$P$43,MATCH($B165,'Damage costs'!$C$16:$C$43,0))/1000,CQ56*INDEX('Damage costs'!$T$16:$T$43,MATCH($B165,'Damage costs'!$C$16:$C$43,0))/1000),\"\")","v":""},{"$f":"IFERROR(IF(OR($C$168=FALSE,LEFT($B165,3)<>\"NOX\"),CR56*INDEX('Damage costs'!$P$16:$P$43,MATCH($B165,'Damage costs'!$C$16:$C$43,0))/1000,CR56*INDEX('Damage costs'!$T$16:$T$43,MATCH($B165,'Damage costs'!$C$16:$C$43,0))/1000),\"\")","v":""},{"$f":"IFERROR(IF(OR($C$168=FALSE,LEFT($B165,3)<>\"NOX\"),CS56*INDEX('Damage costs'!$P$16:$P$43,MATCH($B165,'Damage costs'!$C$16:$C$43,0))/1000,CS56*INDEX('Damage costs'!$T$16:$T$43,MATCH($B165,'Damage costs'!$C$16:$C$43,0))/1000),\"\")","v":""},{"$f":"IFERROR(IF(OR($C$168=FALSE,LEFT($B165,3)<>\"NOX\"),CT56*INDEX('Damage costs'!$P$16:$P$43,MATCH($B165,'Damage costs'!$C$16:$C$43,0))/1000,CT56*INDEX('Damage costs'!$T$16:$T$43,MATCH($B165,'Damage costs'!$C$16:$C$43,0))/1000),\"\")","v":""},{"$f":"IFERROR(IF(OR($C$168=FALSE,LEFT($B165,3)<>\"NOX\"),CU56*INDEX('Damage costs'!$P$16:$P$43,MATCH($B165,'Damage costs'!$C$16:$C$43,0))/1000,CU56*INDEX('Damage costs'!$T$16:$T$43,MATCH($B165,'Damage costs'!$C$16:$C$43,0))/1000),\"\")","v":""},{"$f":"IFERROR(IF(OR($C$168=FALSE,LEFT($B165,3)<>\"NOX\"),CV56*INDEX('Damage costs'!$P$16:$P$43,MATCH($B165,'Damage costs'!$C$16:$C$43,0))/1000,CV56*INDEX('Damage costs'!$T$16:$T$43,MATCH($B165,'Damage costs'!$C$16:$C$43,0))/1000),\"\")","v":""},{"$f":"IFERROR(IF(OR($C$168=FALSE,LEFT($B165,3)<>\"NOX\"),CW56*INDEX('Damage costs'!$P$16:$P$43,MATCH($B165,'Damage costs'!$C$16:$C$43,0))/1000,CW56*INDEX('Damage costs'!$T$16:$T$43,MATCH($B165,'Damage costs'!$C$16:$C$43,0))/1000),\"\")","v":""},{"$f":"IFERROR(IF(OR($C$168=FALSE,LEFT($B165,3)<>\"NOX\"),CX56*INDEX('Damage costs'!$P$16:$P$43,MATCH($B165,'Damage costs'!$C$16:$C$43,0))/1000,CX56*INDEX('Damage costs'!$T$16:$T$43,MATCH($B165,'Damage costs'!$C$16:$C$43,0))/1000),\"\")","v":""},{"$f":"IFERROR(IF(OR($C$168=FALSE,LEFT($B165,3)<>\"NOX\"),CY56*INDEX('Damage costs'!$P$16:$P$43,MATCH($B165,'Damage costs'!$C$16:$C$43,0))/1000,CY56*INDEX('Damage costs'!$T$16:$T$43,MATCH($B165,'Damage costs'!$C$16:$C$43,0))/1000),\"\")","v":""}]
[null,0,"£000's",{"$f":"IFERROR(IF(OR($C$168=FALSE,LEFT($B166,3)<>\"NOX\"),D57*INDEX('Damage costs'!$P$16:$P$43,MATCH($B166,'Damage costs'!$C$16:$C$43,0))/1000,D57*INDEX('Damage costs'!$T$16:$T$43,MATCH($B166,'Damage costs'!$C$16:$C$43,0))/1000),\"\")","v":""},{"$f":"IFERROR(IF(OR($C$168=FALSE,LEFT($B166,3)<>\"NOX\"),E57*INDEX('Damage costs'!$P$16:$P$43,MATCH($B166,'Damage costs'!$C$16:$C$43,0))/1000,E57*INDEX('Damage costs'!$T$16:$T$43,MATCH($B166,'Damage costs'!$C$16:$C$43,0))/1000),\"\")","v":""},{"$f":"IFERROR(IF(OR($C$168=FALSE,LEFT($B166,3)<>\"NOX\"),F57*INDEX('Damage costs'!$P$16:$P$43,MATCH($B166,'Damage costs'!$C$16:$C$43,0))/1000,F57*INDEX('Damage costs'!$T$16:$T$43,MATCH($B166,'Damage costs'!$C$16:$C$43,0))/1000),\"\")","v":""},{"$f":"IFERROR(IF(OR($C$168=FALSE,LEFT($B166,3)<>\"NOX\"),G57*INDEX('Damage costs'!$P$16:$P$43,MATCH($B166,'Damage costs'!$C$16:$C$43,0))/1000,G57*INDEX('Damage costs'!$T$16:$T$43,MATCH($B166,'Damage costs'!$C$16:$C$43,0))/1000),\"\")","v":""},{"$f":"IFERROR(IF(OR($C$168=FALSE,LEFT($B166,3)<>\"NOX\"),H57*INDEX('Damage costs'!$P$16:$P$43,MATCH($B166,'Damage costs'!$C$16:$C$43,0))/1000,H57*INDEX('Damage costs'!$T$16:$T$43,MATCH($B166,'Damage costs'!$C$16:$C$43,0))/1000),\"\")","v":""},{"$f":"IFERROR(IF(OR($C$168=FALSE,LEFT($B166,3)<>\"NOX\"),I57*INDEX('Damage costs'!$P$16:$P$43,MATCH($B166,'Damage costs'!$C$16:$C$43,0))/1000,I57*INDEX('Damage costs'!$T$16:$T$43,MATCH($B166,'Damage costs'!$C$16:$C$43,0))/1000),\"\")","v":""},{"$f":"IFERROR(IF(OR($C$168=FALSE,LEFT($B166,3)<>\"NOX\"),J57*INDEX('Damage costs'!$P$16:$P$43,MATCH($B166,'Damage costs'!$C$16:$C$43,0))/1000,J57*INDEX('Damage costs'!$T$16:$T$43,MATCH($B166,'Damage costs'!$C$16:$C$43,0))/1000),\"\")","v":""},{"$f":"IFERROR(IF(OR($C$168=FALSE,LEFT($B166,3)<>\"NOX\"),K57*INDEX('Damage costs'!$P$16:$P$43,MATCH($B166,'Damage costs'!$C$16:$C$43,0))/1000,K57*INDEX('Damage costs'!$T$16:$T$43,MATCH($B166,'Damage costs'!$C$16:$C$43,0))/1000),\"\")","v":""},{"$f":"IFERROR(IF(OR($C$168=FALSE,LEFT($B166,3)<>\"NOX\"),L57*INDEX('Damage costs'!$P$16:$P$43,MATCH($B166,'Damage costs'!$C$16:$C$43,0))/1000,L57*INDEX('Damage costs'!$T$16:$T$43,MATCH($B166,'Damage costs'!$C$16:$C$43,0))/1000),\"\")","v":""},{"$f":"IFERROR(IF(OR($C$168=FALSE,LEFT($B166,3)<>\"NOX\"),M57*INDEX('Damage costs'!$P$16:$P$43,MATCH($B166,'Damage costs'!$C$16:$C$43,0))/1000,M57*INDEX('Damage costs'!$T$16:$T$43,MATCH($B166,'Damage costs'!$C$16:$C$43,0))/1000),\"\")","v":""},{"$f":"IFERROR(IF(OR($C$168=FALSE,LEFT($B166,3)<>\"NOX\"),N57*INDEX('Damage costs'!$P$16:$P$43,MATCH($B166,'Damage costs'!$C$16:$C$43,0))/1000,N57*INDEX('Damage costs'!$T$16:$T$43,MATCH($B166,'Damage costs'!$C$16:$C$43,0))/1000),\"\")","v":""},{"$f":"IFERROR(IF(OR($C$168=FALSE,LEFT($B166,3)<>\"NOX\"),O57*INDEX('Damage costs'!$P$16:$P$43,MATCH($B166,'Damage costs'!$C$16:$C$43,0))/1000,O57*INDEX('Damage costs'!$T$16:$T$43,MATCH($B166,'Damage costs'!$C$16:$C$43,0))/1000),\"\")","v":""},{"$f":"IFERROR(IF(OR($C$168=FALSE,LEFT($B166,3)<>\"NOX\"),P57*INDEX('Damage costs'!$P$16:$P$43,MATCH($B166,'Damage costs'!$C$16:$C$43,0))/1000,P57*INDEX('Damage costs'!$T$16:$T$43,MATCH($B166,'Damage costs'!$C$16:$C$43,0))/1000),\"\")","v":""},{"$f":"IFERROR(IF(OR($C$168=FALSE,LEFT($B166,3)<>\"NOX\"),Q57*INDEX('Damage costs'!$P$16:$P$43,MATCH($B166,'Damage costs'!$C$16:$C$43,0))/1000,Q57*INDEX('Damage costs'!$T$16:$T$43,MATCH($B166,'Damage costs'!$C$16:$C$43,0))/1000),\"\")","v":""},{"$f":"IFERROR(IF(OR($C$168=FALSE,LEFT($B166,3)<>\"NOX\"),R57*INDEX('Damage costs'!$P$16:$P$43,MATCH($B166,'Damage costs'!$C$16:$C$43,0))/1000,R57*INDEX('Damage costs'!$T$16:$T$43,MATCH($B166,'Damage costs'!$C$16:$C$43,0))/1000),\"\")","v":""},{"$f":"IFERROR(IF(OR($C$168=FALSE,LEFT($B166,3)<>\"NOX\"),S57*INDEX('Damage costs'!$P$16:$P$43,MATCH($B166,'Damage costs'!$C$16:$C$43,0))/1000,S57*INDEX('Damage costs'!$T$16:$T$43,MATCH($B166,'Damage costs'!$C$16:$C$43,0))/1000),\"\")","v":""},{"$f":"IFERROR(IF(OR($C$168=FALSE,LEFT($B166,3)<>\"NOX\"),T57*INDEX('Damage costs'!$P$16:$P$43,MATCH($B166,'Damage costs'!$C$16:$C$43,0))/1000,T57*INDEX('Damage costs'!$T$16:$T$43,MATCH($B166,'Damage costs'!$C$16:$C$43,0))/1000),\"\")","v":""},{"$f":"IFERROR(IF(OR($C$168=FALSE,LEFT($B166,3)<>\"NOX\"),U57*INDEX('Damage costs'!$P$16:$P$43,MATCH($B166,'Damage costs'!$C$16:$C$43,0))/1000,U57*INDEX('Damage costs'!$T$16:$T$43,MATCH($B166,'Damage costs'!$C$16:$C$43,0))/1000),\"\")","v":""},{"$f":"IFERROR(IF(OR($C$168=FALSE,LEFT($B166,3)<>\"NOX\"),V57*INDEX('Damage costs'!$P$16:$P$43,MATCH($B166,'Damage costs'!$C$16:$C$43,0))/1000,V57*INDEX('Damage costs'!$T$16:$T$43,MATCH($B166,'Damage costs'!$C$16:$C$43,0))/1000),\"\")","v":""},{"$f":"IFERROR(IF(OR($C$168=FALSE,LEFT($B166,3)<>\"NOX\"),W57*INDEX('Damage costs'!$P$16:$P$43,MATCH($B166,'Damage costs'!$C$16:$C$43,0))/1000,W57*INDEX('Damage costs'!$T$16:$T$43,MATCH($B166,'Damage costs'!$C$16:$C$43,0))/1000),\"\")","v":""},{"$f":"IFERROR(IF(OR($C$168=FALSE,LEFT($B166,3)<>\"NOX\"),X57*INDEX('Damage costs'!$P$16:$P$43,MATCH($B166,'Damage costs'!$C$16:$C$43,0))/1000,X57*INDEX('Damage costs'!$T$16:$T$43,MATCH($B166,'Damage costs'!$C$16:$C$43,0))/1000),\"\")","v":""},{"$f":"IFERROR(IF(OR($C$168=FALSE,LEFT($B166,3)<>\"NOX\"),Y57*INDEX('Damage costs'!$P$16:$P$43,MATCH($B166,'Damage costs'!$C$16:$C$43,0))/1000,Y57*INDEX('Damage costs'!$T$16:$T$43,MATCH($B166,'Damage costs'!$C$16:$C$43,0))/1000),\"\")","v":""},{"$f":"IFERROR(IF(OR($C$168=FALSE,LEFT($B166,3)<>\"NOX\"),Z57*INDEX('Damage costs'!$P$16:$P$43,MATCH($B166,'Damage costs'!$C$16:$C$43,0))/1000,Z57*INDEX('Damage costs'!$T$16:$T$43,MATCH($B166,'Damage costs'!$C$16:$C$43,0))/1000),\"\")","v":""},{"$f":"IFERROR(IF(OR($C$168=FALSE,LEFT($B166,3)<>\"NOX\"),AA57*INDEX('Damage costs'!$P$16:$P$43,MATCH($B166,'Damage costs'!$C$16:$C$43,0))/1000,AA57*INDEX('Damage costs'!$T$16:$T$43,MATCH($B166,'Damage costs'!$C$16:$C$43,0))/1000),\"\")","v":""},{"$f":"IFERROR(IF(OR($C$168=FALSE,LEFT($B166,3)<>\"NOX\"),AB57*INDEX('Damage costs'!$P$16:$P$43,MATCH($B166,'Damage costs'!$C$16:$C$43,0))/1000,AB57*INDEX('Damage costs'!$T$16:$T$43,MATCH($B166,'Damage costs'!$C$16:$C$43,0))/1000),\"\")","v":""},{"$f":"IFERROR(IF(OR($C$168=FALSE,LEFT($B166,3)<>\"NOX\"),AC57*INDEX('Damage costs'!$P$16:$P$43,MATCH($B166,'Damage costs'!$C$16:$C$43,0))/1000,AC57*INDEX('Damage costs'!$T$16:$T$43,MATCH($B166,'Damage costs'!$C$16:$C$43,0))/1000),\"\")","v":""},{"$f":"IFERROR(IF(OR($C$168=FALSE,LEFT($B166,3)<>\"NOX\"),AD57*INDEX('Damage costs'!$P$16:$P$43,MATCH($B166,'Damage costs'!$C$16:$C$43,0))/1000,AD57*INDEX('Damage costs'!$T$16:$T$43,MATCH($B166,'Damage costs'!$C$16:$C$43,0))/1000),\"\")","v":""},{"$f":"IFERROR(IF(OR($C$168=FALSE,LEFT($B166,3)<>\"NOX\"),AE57*INDEX('Damage costs'!$P$16:$P$43,MATCH($B166,'Damage costs'!$C$16:$C$43,0))/1000,AE57*INDEX('Damage costs'!$T$16:$T$43,MATCH($B166,'Damage costs'!$C$16:$C$43,0))/1000),\"\")","v":""},{"$f":"IFERROR(IF(OR($C$168=FALSE,LEFT($B166,3)<>\"NOX\"),AF57*INDEX('Damage costs'!$P$16:$P$43,MATCH($B166,'Damage costs'!$C$16:$C$43,0))/1000,AF57*INDEX('Damage costs'!$T$16:$T$43,MATCH($B166,'Damage costs'!$C$16:$C$43,0))/1000),\"\")","v":""},{"$f":"IFERROR(IF(OR($C$168=FALSE,LEFT($B166,3)<>\"NOX\"),AG57*INDEX('Damage costs'!$P$16:$P$43,MATCH($B166,'Damage costs'!$C$16:$C$43,0))/1000,AG57*INDEX('Damage costs'!$T$16:$T$43,MATCH($B166,'Damage costs'!$C$16:$C$43,0))/1000),\"\")","v":""},{"$f":"IFERROR(IF(OR($C$168=FALSE,LEFT($B166,3)<>\"NOX\"),AH57*INDEX('Damage costs'!$P$16:$P$43,MATCH($B166,'Damage costs'!$C$16:$C$43,0))/1000,AH57*INDEX('Damage costs'!$T$16:$T$43,MATCH($B166,'Damage costs'!$C$16:$C$43,0))/1000),\"\")","v":""},{"$f":"IFERROR(IF(OR($C$168=FALSE,LEFT($B166,3)<>\"NOX\"),AI57*INDEX('Damage costs'!$P$16:$P$43,MATCH($B166,'Damage costs'!$C$16:$C$43,0))/1000,AI57*INDEX('Damage costs'!$T$16:$T$43,MATCH($B166,'Damage costs'!$C$16:$C$43,0))/1000),\"\")","v":""},{"$f":"IFERROR(IF(OR($C$168=FALSE,LEFT($B166,3)<>\"NOX\"),AJ57*INDEX('Damage costs'!$P$16:$P$43,MATCH($B166,'Damage costs'!$C$16:$C$43,0))/1000,AJ57*INDEX('Damage costs'!$T$16:$T$43,MATCH($B166,'Damage costs'!$C$16:$C$43,0))/1000),\"\")","v":""},{"$f":"IFERROR(IF(OR($C$168=FALSE,LEFT($B166,3)<>\"NOX\"),AK57*INDEX('Damage costs'!$P$16:$P$43,MATCH($B166,'Damage costs'!$C$16:$C$43,0))/1000,AK57*INDEX('Damage costs'!$T$16:$T$43,MATCH($B166,'Damage costs'!$C$16:$C$43,0))/1000),\"\")","v":""},{"$f":"IFERROR(IF(OR($C$168=FALSE,LEFT($B166,3)<>\"NOX\"),AL57*INDEX('Damage costs'!$P$16:$P$43,MATCH($B166,'Damage costs'!$C$16:$C$43,0))/1000,AL57*INDEX('Damage costs'!$T$16:$T$43,MATCH($B166,'Damage costs'!$C$16:$C$43,0))/1000),\"\")","v":""},{"$f":"IFERROR(IF(OR($C$168=FALSE,LEFT($B166,3)<>\"NOX\"),AM57*INDEX('Damage costs'!$P$16:$P$43,MATCH($B166,'Damage costs'!$C$16:$C$43,0))/1000,AM57*INDEX('Damage costs'!$T$16:$T$43,MATCH($B166,'Damage costs'!$C$16:$C$43,0))/1000),\"\")","v":""},{"$f":"IFERROR(IF(OR($C$168=FALSE,LEFT($B166,3)<>\"NOX\"),AN57*INDEX('Damage costs'!$P$16:$P$43,MATCH($B166,'Damage costs'!$C$16:$C$43,0))/1000,AN57*INDEX('Damage costs'!$T$16:$T$43,MATCH($B166,'Damage costs'!$C$16:$C$43,0))/1000),\"\")","v":""},{"$f":"IFERROR(IF(OR($C$168=FALSE,LEFT($B166,3)<>\"NOX\"),AO57*INDEX('Damage costs'!$P$16:$P$43,MATCH($B166,'Damage costs'!$C$16:$C$43,0))/1000,AO57*INDEX('Damage costs'!$T$16:$T$43,MATCH($B166,'Damage costs'!$C$16:$C$43,0))/1000),\"\")","v":""},{"$f":"IFERROR(IF(OR($C$168=FALSE,LEFT($B166,3)<>\"NOX\"),AP57*INDEX('Damage costs'!$P$16:$P$43,MATCH($B166,'Damage costs'!$C$16:$C$43,0))/1000,AP57*INDEX('Damage costs'!$T$16:$T$43,MATCH($B166,'Damage costs'!$C$16:$C$43,0))/1000),\"\")","v":""},{"$f":"IFERROR(IF(OR($C$168=FALSE,LEFT($B166,3)<>\"NOX\"),AQ57*INDEX('Damage costs'!$P$16:$P$43,MATCH($B166,'Damage costs'!$C$16:$C$43,0))/1000,AQ57*INDEX('Damage costs'!$T$16:$T$43,MATCH($B166,'Damage costs'!$C$16:$C$43,0))/1000),\"\")","v":""},{"$f":"IFERROR(IF(OR($C$168=FALSE,LEFT($B166,3)<>\"NOX\"),AR57*INDEX('Damage costs'!$P$16:$P$43,MATCH($B166,'Damage costs'!$C$16:$C$43,0))/1000,AR57*INDEX('Damage costs'!$T$16:$T$43,MATCH($B166,'Damage costs'!$C$16:$C$43,0))/1000),\"\")","v":""},{"$f":"IFERROR(IF(OR($C$168=FALSE,LEFT($B166,3)<>\"NOX\"),AS57*INDEX('Damage costs'!$P$16:$P$43,MATCH($B166,'Damage costs'!$C$16:$C$43,0))/1000,AS57*INDEX('Damage costs'!$T$16:$T$43,MATCH($B166,'Damage costs'!$C$16:$C$43,0))/1000),\"\")","v":""},{"$f":"IFERROR(IF(OR($C$168=FALSE,LEFT($B166,3)<>\"NOX\"),AT57*INDEX('Damage costs'!$P$16:$P$43,MATCH($B166,'Damage costs'!$C$16:$C$43,0))/1000,AT57*INDEX('Damage costs'!$T$16:$T$43,MATCH($B166,'Damage costs'!$C$16:$C$43,0))/1000),\"\")","v":""},{"$f":"IFERROR(IF(OR($C$168=FALSE,LEFT($B166,3)<>\"NOX\"),AU57*INDEX('Damage costs'!$P$16:$P$43,MATCH($B166,'Damage costs'!$C$16:$C$43,0))/1000,AU57*INDEX('Damage costs'!$T$16:$T$43,MATCH($B166,'Damage costs'!$C$16:$C$43,0))/1000),\"\")","v":""},{"$f":"IFERROR(IF(OR($C$168=FALSE,LEFT($B166,3)<>\"NOX\"),AV57*INDEX('Damage costs'!$P$16:$P$43,MATCH($B166,'Damage costs'!$C$16:$C$43,0))/1000,AV57*INDEX('Damage costs'!$T$16:$T$43,MATCH($B166,'Damage costs'!$C$16:$C$43,0))/1000),\"\")","v":""},{"$f":"IFERROR(IF(OR($C$168=FALSE,LEFT($B166,3)<>\"NOX\"),AW57*INDEX('Damage costs'!$P$16:$P$43,MATCH($B166,'Damage costs'!$C$16:$C$43,0))/1000,AW57*INDEX('Damage costs'!$T$16:$T$43,MATCH($B166,'Damage costs'!$C$16:$C$43,0))/1000),\"\")","v":""},{"$f":"IFERROR(IF(OR($C$168=FALSE,LEFT($B166,3)<>\"NOX\"),AX57*INDEX('Damage costs'!$P$16:$P$43,MATCH($B166,'Damage costs'!$C$16:$C$43,0))/1000,AX57*INDEX('Damage costs'!$T$16:$T$43,MATCH($B166,'Damage costs'!$C$16:$C$43,0))/1000),\"\")","v":""},{"$f":"IFERROR(IF(OR($C$168=FALSE,LEFT($B166,3)<>\"NOX\"),AY57*INDEX('Damage costs'!$P$16:$P$43,MATCH($B166,'Damage costs'!$C$16:$C$43,0))/1000,AY57*INDEX('Damage costs'!$T$16:$T$43,MATCH($B166,'Damage costs'!$C$16:$C$43,0))/1000),\"\")","v":""},{"$f":"IFERROR(IF(OR($C$168=FALSE,LEFT($B166,3)<>\"NOX\"),AZ57*INDEX('Damage costs'!$P$16:$P$43,MATCH($B166,'Damage costs'!$C$16:$C$43,0))/1000,AZ57*INDEX('Damage costs'!$T$16:$T$43,MATCH($B166,'Damage costs'!$C$16:$C$43,0))/1000),\"\")","v":""},{"$f":"IFERROR(IF(OR($C$168=FALSE,LEFT($B166,3)<>\"NOX\"),BA57*INDEX('Damage costs'!$P$16:$P$43,MATCH($B166,'Damage costs'!$C$16:$C$43,0))/1000,BA57*INDEX('Damage costs'!$T$16:$T$43,MATCH($B166,'Damage costs'!$C$16:$C$43,0))/1000),\"\")","v":""},{"$f":"IFERROR(IF(OR($C$168=FALSE,LEFT($B166,3)<>\"NOX\"),BB57*INDEX('Damage costs'!$P$16:$P$43,MATCH($B166,'Damage costs'!$C$16:$C$43,0))/1000,BB57*INDEX('Damage costs'!$T$16:$T$43,MATCH($B166,'Damage costs'!$C$16:$C$43,0))/1000),\"\")","v":""},{"$f":"IFERROR(IF(OR($C$168=FALSE,LEFT($B166,3)<>\"NOX\"),BC57*INDEX('Damage costs'!$P$16:$P$43,MATCH($B166,'Damage costs'!$C$16:$C$43,0))/1000,BC57*INDEX('Damage costs'!$T$16:$T$43,MATCH($B166,'Damage costs'!$C$16:$C$43,0))/1000),\"\")","v":""},{"$f":"IFERROR(IF(OR($C$168=FALSE,LEFT($B166,3)<>\"NOX\"),BD57*INDEX('Damage costs'!$P$16:$P$43,MATCH($B166,'Damage costs'!$C$16:$C$43,0))/1000,BD57*INDEX('Damage costs'!$T$16:$T$43,MATCH($B166,'Damage costs'!$C$16:$C$43,0))/1000),\"\")","v":""},{"$f":"IFERROR(IF(OR($C$168=FALSE,LEFT($B166,3)<>\"NOX\"),BE57*INDEX('Damage costs'!$P$16:$P$43,MATCH($B166,'Damage costs'!$C$16:$C$43,0))/1000,BE57*INDEX('Damage costs'!$T$16:$T$43,MATCH($B166,'Damage costs'!$C$16:$C$43,0))/1000),\"\")","v":""},{"$f":"IFERROR(IF(OR($C$168=FALSE,LEFT($B166,3)<>\"NOX\"),BF57*INDEX('Damage costs'!$P$16:$P$43,MATCH($B166,'Damage costs'!$C$16:$C$43,0))/1000,BF57*INDEX('Damage costs'!$T$16:$T$43,MATCH($B166,'Damage costs'!$C$16:$C$43,0))/1000),\"\")","v":""},{"$f":"IFERROR(IF(OR($C$168=FALSE,LEFT($B166,3)<>\"NOX\"),BG57*INDEX('Damage costs'!$P$16:$P$43,MATCH($B166,'Damage costs'!$C$16:$C$43,0))/1000,BG57*INDEX('Damage costs'!$T$16:$T$43,MATCH($B166,'Damage costs'!$C$16:$C$43,0))/1000),\"\")","v":""},{"$f":"IFERROR(IF(OR($C$168=FALSE,LEFT($B166,3)<>\"NOX\"),BH57*INDEX('Damage costs'!$P$16:$P$43,MATCH($B166,'Damage costs'!$C$16:$C$43,0))/1000,BH57*INDEX('Damage costs'!$T$16:$T$43,MATCH($B166,'Damage costs'!$C$16:$C$43,0))/1000),\"\")","v":""},{"$f":"IFERROR(IF(OR($C$168=FALSE,LEFT($B166,3)<>\"NOX\"),BI57*INDEX('Damage costs'!$P$16:$P$43,MATCH($B166,'Damage costs'!$C$16:$C$43,0))/1000,BI57*INDEX('Damage costs'!$T$16:$T$43,MATCH($B166,'Damage costs'!$C$16:$C$43,0))/1000),\"\")","v":""},{"$f":"IFERROR(IF(OR($C$168=FALSE,LEFT($B166,3)<>\"NOX\"),BJ57*INDEX('Damage costs'!$P$16:$P$43,MATCH($B166,'Damage costs'!$C$16:$C$43,0))/1000,BJ57*INDEX('Damage costs'!$T$16:$T$43,MATCH($B166,'Damage costs'!$C$16:$C$43,0))/1000),\"\")","v":""},{"$f":"IFERROR(IF(OR($C$168=FALSE,LEFT($B166,3)<>\"NOX\"),BK57*INDEX('Damage costs'!$P$16:$P$43,MATCH($B166,'Damage costs'!$C$16:$C$43,0))/1000,BK57*INDEX('Damage costs'!$T$16:$T$43,MATCH($B166,'Damage costs'!$C$16:$C$43,0))/1000),\"\")","v":""},{"$f":"IFERROR(IF(OR($C$168=FALSE,LEFT($B166,3)<>\"NOX\"),BL57*INDEX('Damage costs'!$P$16:$P$43,MATCH($B166,'Damage costs'!$C$16:$C$43,0))/1000,BL57*INDEX('Damage costs'!$T$16:$T$43,MATCH($B166,'Damage costs'!$C$16:$C$43,0))/1000),\"\")","v":""},{"$f":"IFERROR(IF(OR($C$168=FALSE,LEFT($B166,3)<>\"NOX\"),BM57*INDEX('Damage costs'!$P$16:$P$43,MATCH($B166,'Damage costs'!$C$16:$C$43,0))/1000,BM57*INDEX('Damage costs'!$T$16:$T$43,MATCH($B166,'Damage costs'!$C$16:$C$43,0))/1000),\"\")","v":""},{"$f":"IFERROR(IF(OR($C$168=FALSE,LEFT($B166,3)<>\"NOX\"),BN57*INDEX('Damage costs'!$P$16:$P$43,MATCH($B166,'Damage costs'!$C$16:$C$43,0))/1000,BN57*INDEX('Damage costs'!$T$16:$T$43,MATCH($B166,'Damage costs'!$C$16:$C$43,0))/1000),\"\")","v":""},{"$f":"IFERROR(IF(OR($C$168=FALSE,LEFT($B166,3)<>\"NOX\"),BO57*INDEX('Damage costs'!$P$16:$P$43,MATCH($B166,'Damage costs'!$C$16:$C$43,0))/1000,BO57*INDEX('Damage costs'!$T$16:$T$43,MATCH($B166,'Damage costs'!$C$16:$C$43,0))/1000),\"\")","v":""},{"$f":"IFERROR(IF(OR($C$168=FALSE,LEFT($B166,3)<>\"NOX\"),BP57*INDEX('Damage costs'!$P$16:$P$43,MATCH($B166,'Damage costs'!$C$16:$C$43,0))/1000,BP57*INDEX('Damage costs'!$T$16:$T$43,MATCH($B166,'Damage costs'!$C$16:$C$43,0))/1000),\"\")","v":""},{"$f":"IFERROR(IF(OR($C$168=FALSE,LEFT($B166,3)<>\"NOX\"),BQ57*INDEX('Damage costs'!$P$16:$P$43,MATCH($B166,'Damage costs'!$C$16:$C$43,0))/1000,BQ57*INDEX('Damage costs'!$T$16:$T$43,MATCH($B166,'Damage costs'!$C$16:$C$43,0))/1000),\"\")","v":""},{"$f":"IFERROR(IF(OR($C$168=FALSE,LEFT($B166,3)<>\"NOX\"),BR57*INDEX('Damage costs'!$P$16:$P$43,MATCH($B166,'Damage costs'!$C$16:$C$43,0))/1000,BR57*INDEX('Damage costs'!$T$16:$T$43,MATCH($B166,'Damage costs'!$C$16:$C$43,0))/1000),\"\")","v":""},{"$f":"IFERROR(IF(OR($C$168=FALSE,LEFT($B166,3)<>\"NOX\"),BS57*INDEX('Damage costs'!$P$16:$P$43,MATCH($B166,'Damage costs'!$C$16:$C$43,0))/1000,BS57*INDEX('Damage costs'!$T$16:$T$43,MATCH($B166,'Damage costs'!$C$16:$C$43,0))/1000),\"\")","v":""},{"$f":"IFERROR(IF(OR($C$168=FALSE,LEFT($B166,3)<>\"NOX\"),BT57*INDEX('Damage costs'!$P$16:$P$43,MATCH($B166,'Damage costs'!$C$16:$C$43,0))/1000,BT57*INDEX('Damage costs'!$T$16:$T$43,MATCH($B166,'Damage costs'!$C$16:$C$43,0))/1000),\"\")","v":""},{"$f":"IFERROR(IF(OR($C$168=FALSE,LEFT($B166,3)<>\"NOX\"),BU57*INDEX('Damage costs'!$P$16:$P$43,MATCH($B166,'Damage costs'!$C$16:$C$43,0))/1000,BU57*INDEX('Damage costs'!$T$16:$T$43,MATCH($B166,'Damage costs'!$C$16:$C$43,0))/1000),\"\")","v":""},{"$f":"IFERROR(IF(OR($C$168=FALSE,LEFT($B166,3)<>\"NOX\"),BV57*INDEX('Damage costs'!$P$16:$P$43,MATCH($B166,'Damage costs'!$C$16:$C$43,0))/1000,BV57*INDEX('Damage costs'!$T$16:$T$43,MATCH($B166,'Damage costs'!$C$16:$C$43,0))/1000),\"\")","v":""},{"$f":"IFERROR(IF(OR($C$168=FALSE,LEFT($B166,3)<>\"NOX\"),BW57*INDEX('Damage costs'!$P$16:$P$43,MATCH($B166,'Damage costs'!$C$16:$C$43,0))/1000,BW57*INDEX('Damage costs'!$T$16:$T$43,MATCH($B166,'Damage costs'!$C$16:$C$43,0))/1000),\"\")","v":""},{"$f":"IFERROR(IF(OR($C$168=FALSE,LEFT($B166,3)<>\"NOX\"),BX57*INDEX('Damage costs'!$P$16:$P$43,MATCH($B166,'Damage costs'!$C$16:$C$43,0))/1000,BX57*INDEX('Damage costs'!$T$16:$T$43,MATCH($B166,'Damage costs'!$C$16:$C$43,0))/1000),\"\")","v":""},{"$f":"IFERROR(IF(OR($C$168=FALSE,LEFT($B166,3)<>\"NOX\"),BY57*INDEX('Damage costs'!$P$16:$P$43,MATCH($B166,'Damage costs'!$C$16:$C$43,0))/1000,BY57*INDEX('Damage costs'!$T$16:$T$43,MATCH($B166,'Damage costs'!$C$16:$C$43,0))/1000),\"\")","v":""},{"$f":"IFERROR(IF(OR($C$168=FALSE,LEFT($B166,3)<>\"NOX\"),BZ57*INDEX('Damage costs'!$P$16:$P$43,MATCH($B166,'Damage costs'!$C$16:$C$43,0))/1000,BZ57*INDEX('Damage costs'!$T$16:$T$43,MATCH($B166,'Damage costs'!$C$16:$C$43,0))/1000),\"\")","v":""},{"$f":"IFERROR(IF(OR($C$168=FALSE,LEFT($B166,3)<>\"NOX\"),CA57*INDEX('Damage costs'!$P$16:$P$43,MATCH($B166,'Damage costs'!$C$16:$C$43,0))/1000,CA57*INDEX('Damage costs'!$T$16:$T$43,MATCH($B166,'Damage costs'!$C$16:$C$43,0))/1000),\"\")","v":""},{"$f":"IFERROR(IF(OR($C$168=FALSE,LEFT($B166,3)<>\"NOX\"),CB57*INDEX('Damage costs'!$P$16:$P$43,MATCH($B166,'Damage costs'!$C$16:$C$43,0))/1000,CB57*INDEX('Damage costs'!$T$16:$T$43,MATCH($B166,'Damage costs'!$C$16:$C$43,0))/1000),\"\")","v":""},{"$f":"IFERROR(IF(OR($C$168=FALSE,LEFT($B166,3)<>\"NOX\"),CC57*INDEX('Damage costs'!$P$16:$P$43,MATCH($B166,'Damage costs'!$C$16:$C$43,0))/1000,CC57*INDEX('Damage costs'!$T$16:$T$43,MATCH($B166,'Damage costs'!$C$16:$C$43,0))/1000),\"\")","v":""},{"$f":"IFERROR(IF(OR($C$168=FALSE,LEFT($B166,3)<>\"NOX\"),CD57*INDEX('Damage costs'!$P$16:$P$43,MATCH($B166,'Damage costs'!$C$16:$C$43,0))/1000,CD57*INDEX('Damage costs'!$T$16:$T$43,MATCH($B166,'Damage costs'!$C$16:$C$43,0))/1000),\"\")","v":""},{"$f":"IFERROR(IF(OR($C$168=FALSE,LEFT($B166,3)<>\"NOX\"),CE57*INDEX('Damage costs'!$P$16:$P$43,MATCH($B166,'Damage costs'!$C$16:$C$43,0))/1000,CE57*INDEX('Damage costs'!$T$16:$T$43,MATCH($B166,'Damage costs'!$C$16:$C$43,0))/1000),\"\")","v":""},{"$f":"IFERROR(IF(OR($C$168=FALSE,LEFT($B166,3)<>\"NOX\"),CF57*INDEX('Damage costs'!$P$16:$P$43,MATCH($B166,'Damage costs'!$C$16:$C$43,0))/1000,CF57*INDEX('Damage costs'!$T$16:$T$43,MATCH($B166,'Damage costs'!$C$16:$C$43,0))/1000),\"\")","v":""},{"$f":"IFERROR(IF(OR($C$168=FALSE,LEFT($B166,3)<>\"NOX\"),CG57*INDEX('Damage costs'!$P$16:$P$43,MATCH($B166,'Damage costs'!$C$16:$C$43,0))/1000,CG57*INDEX('Damage costs'!$T$16:$T$43,MATCH($B166,'Damage costs'!$C$16:$C$43,0))/1000),\"\")","v":""},{"$f":"IFERROR(IF(OR($C$168=FALSE,LEFT($B166,3)<>\"NOX\"),CH57*INDEX('Damage costs'!$P$16:$P$43,MATCH($B166,'Damage costs'!$C$16:$C$43,0))/1000,CH57*INDEX('Damage costs'!$T$16:$T$43,MATCH($B166,'Damage costs'!$C$16:$C$43,0))/1000),\"\")","v":""},{"$f":"IFERROR(IF(OR($C$168=FALSE,LEFT($B166,3)<>\"NOX\"),CI57*INDEX('Damage costs'!$P$16:$P$43,MATCH($B166,'Damage costs'!$C$16:$C$43,0))/1000,CI57*INDEX('Damage costs'!$T$16:$T$43,MATCH($B166,'Damage costs'!$C$16:$C$43,0))/1000),\"\")","v":""},{"$f":"IFERROR(IF(OR($C$168=FALSE,LEFT($B166,3)<>\"NOX\"),CJ57*INDEX('Damage costs'!$P$16:$P$43,MATCH($B166,'Damage costs'!$C$16:$C$43,0))/1000,CJ57*INDEX('Damage costs'!$T$16:$T$43,MATCH($B166,'Damage costs'!$C$16:$C$43,0))/1000),\"\")","v":""},{"$f":"IFERROR(IF(OR($C$168=FALSE,LEFT($B166,3)<>\"NOX\"),CK57*INDEX('Damage costs'!$P$16:$P$43,MATCH($B166,'Damage costs'!$C$16:$C$43,0))/1000,CK57*INDEX('Damage costs'!$T$16:$T$43,MATCH($B166,'Damage costs'!$C$16:$C$43,0))/1000),\"\")","v":""},{"$f":"IFERROR(IF(OR($C$168=FALSE,LEFT($B166,3)<>\"NOX\"),CL57*INDEX('Damage costs'!$P$16:$P$43,MATCH($B166,'Damage costs'!$C$16:$C$43,0))/1000,CL57*INDEX('Damage costs'!$T$16:$T$43,MATCH($B166,'Damage costs'!$C$16:$C$43,0))/1000),\"\")","v":""},{"$f":"IFERROR(IF(OR($C$168=FALSE,LEFT($B166,3)<>\"NOX\"),CM57*INDEX('Damage costs'!$P$16:$P$43,MATCH($B166,'Damage costs'!$C$16:$C$43,0))/1000,CM57*INDEX('Damage costs'!$T$16:$T$43,MATCH($B166,'Damage costs'!$C$16:$C$43,0))/1000),\"\")","v":""},{"$f":"IFERROR(IF(OR($C$168=FALSE,LEFT($B166,3)<>\"NOX\"),CN57*INDEX('Damage costs'!$P$16:$P$43,MATCH($B166,'Damage costs'!$C$16:$C$43,0))/1000,CN57*INDEX('Damage costs'!$T$16:$T$43,MATCH($B166,'Damage costs'!$C$16:$C$43,0))/1000),\"\")","v":""},{"$f":"IFERROR(IF(OR($C$168=FALSE,LEFT($B166,3)<>\"NOX\"),CO57*INDEX('Damage costs'!$P$16:$P$43,MATCH($B166,'Damage costs'!$C$16:$C$43,0))/1000,CO57*INDEX('Damage costs'!$T$16:$T$43,MATCH($B166,'Damage costs'!$C$16:$C$43,0))/1000),\"\")","v":""},{"$f":"IFERROR(IF(OR($C$168=FALSE,LEFT($B166,3)<>\"NOX\"),CP57*INDEX('Damage costs'!$P$16:$P$43,MATCH($B166,'Damage costs'!$C$16:$C$43,0))/1000,CP57*INDEX('Damage costs'!$T$16:$T$43,MATCH($B166,'Damage costs'!$C$16:$C$43,0))/1000),\"\")","v":""},{"$f":"IFERROR(IF(OR($C$168=FALSE,LEFT($B166,3)<>\"NOX\"),CQ57*INDEX('Damage costs'!$P$16:$P$43,MATCH($B166,'Damage costs'!$C$16:$C$43,0))/1000,CQ57*INDEX('Damage costs'!$T$16:$T$43,MATCH($B166,'Damage costs'!$C$16:$C$43,0))/1000),\"\")","v":""},{"$f":"IFERROR(IF(OR($C$168=FALSE,LEFT($B166,3)<>\"NOX\"),CR57*INDEX('Damage costs'!$P$16:$P$43,MATCH($B166,'Damage costs'!$C$16:$C$43,0))/1000,CR57*INDEX('Damage costs'!$T$16:$T$43,MATCH($B166,'Damage costs'!$C$16:$C$43,0))/1000),\"\")","v":""},{"$f":"IFERROR(IF(OR($C$168=FALSE,LEFT($B166,3)<>\"NOX\"),CS57*INDEX('Damage costs'!$P$16:$P$43,MATCH($B166,'Damage costs'!$C$16:$C$43,0))/1000,CS57*INDEX('Damage costs'!$T$16:$T$43,MATCH($B166,'Damage costs'!$C$16:$C$43,0))/1000),\"\")","v":""},{"$f":"IFERROR(IF(OR($C$168=FALSE,LEFT($B166,3)<>\"NOX\"),CT57*INDEX('Damage costs'!$P$16:$P$43,MATCH($B166,'Damage costs'!$C$16:$C$43,0))/1000,CT57*INDEX('Damage costs'!$T$16:$T$43,MATCH($B166,'Damage costs'!$C$16:$C$43,0))/1000),\"\")","v":""},{"$f":"IFERROR(IF(OR($C$168=FALSE,LEFT($B166,3)<>\"NOX\"),CU57*INDEX('Damage costs'!$P$16:$P$43,MATCH($B166,'Damage costs'!$C$16:$C$43,0))/1000,CU57*INDEX('Damage costs'!$T$16:$T$43,MATCH($B166,'Damage costs'!$C$16:$C$43,0))/1000),\"\")","v":""},{"$f":"IFERROR(IF(OR($C$168=FALSE,LEFT($B166,3)<>\"NOX\"),CV57*INDEX('Damage costs'!$P$16:$P$43,MATCH($B166,'Damage costs'!$C$16:$C$43,0))/1000,CV57*INDEX('Damage costs'!$T$16:$T$43,MATCH($B166,'Damage costs'!$C$16:$C$43,0))/1000),\"\")","v":""},{"$f":"IFERROR(IF(OR($C$168=FALSE,LEFT($B166,3)<>\"NOX\"),CW57*INDEX('Damage costs'!$P$16:$P$43,MATCH($B166,'Damage costs'!$C$16:$C$43,0))/1000,CW57*INDEX('Damage costs'!$T$16:$T$43,MATCH($B166,'Damage costs'!$C$16:$C$43,0))/1000),\"\")","v":""},{"$f":"IFERROR(IF(OR($C$168=FALSE,LEFT($B166,3)<>\"NOX\"),CX57*INDEX('Damage costs'!$P$16:$P$43,MATCH($B166,'Damage costs'!$C$16:$C$43,0))/1000,CX57*INDEX('Damage costs'!$T$16:$T$43,MATCH($B166,'Damage costs'!$C$16:$C$43,0))/1000),\"\")","v":""},{"$f":"IFERROR(IF(OR($C$168=FALSE,LEFT($B166,3)<>\"NOX\"),CY57*INDEX('Damage costs'!$P$16:$P$43,MATCH($B166,'Damage costs'!$C$16:$C$43,0))/1000,CY57*INDEX('Damage costs'!$T$16:$T$43,MATCH($B166,'Damage costs'!$C$16:$C$43,0))/1000),\"\")","v":""}]
[null,0,"£000's",{"$f":"IFERROR(IF(OR($C$168=FALSE,LEFT($B167,3)<>\"NOX\"),D58*INDEX('Damage costs'!$P$16:$P$43,MATCH($B167,'Damage costs'!$C$16:$C$43,0))/1000,D58*INDEX('Damage costs'!$T$16:$T$43,MATCH($B167,'Damage costs'!$C$16:$C$43,0))/1000),\"\")","v":""},{"$f":"IFERROR(IF(OR($C$168=FALSE,LEFT($B167,3)<>\"NOX\"),E58*INDEX('Damage costs'!$P$16:$P$43,MATCH($B167,'Damage costs'!$C$16:$C$43,0))/1000,E58*INDEX('Damage costs'!$T$16:$T$43,MATCH($B167,'Damage costs'!$C$16:$C$43,0))/1000),\"\")","v":""},{"$f":"IFERROR(IF(OR($C$168=FALSE,LEFT($B167,3)<>\"NOX\"),F58*INDEX('Damage costs'!$P$16:$P$43,MATCH($B167,'Damage costs'!$C$16:$C$43,0))/1000,F58*INDEX('Damage costs'!$T$16:$T$43,MATCH($B167,'Damage costs'!$C$16:$C$43,0))/1000),\"\")","v":""},{"$f":"IFERROR(IF(OR($C$168=FALSE,LEFT($B167,3)<>\"NOX\"),G58*INDEX('Damage costs'!$P$16:$P$43,MATCH($B167,'Damage costs'!$C$16:$C$43,0))/1000,G58*INDEX('Damage costs'!$T$16:$T$43,MATCH($B167,'Damage costs'!$C$16:$C$43,0))/1000),\"\")","v":""},{"$f":"IFERROR(IF(OR($C$168=FALSE,LEFT($B167,3)<>\"NOX\"),H58*INDEX('Damage costs'!$P$16:$P$43,MATCH($B167,'Damage costs'!$C$16:$C$43,0))/1000,H58*INDEX('Damage costs'!$T$16:$T$43,MATCH($B167,'Damage costs'!$C$16:$C$43,0))/1000),\"\")","v":""},{"$f":"IFERROR(IF(OR($C$168=FALSE,LEFT($B167,3)<>\"NOX\"),I58*INDEX('Damage costs'!$P$16:$P$43,MATCH($B167,'Damage costs'!$C$16:$C$43,0))/1000,I58*INDEX('Damage costs'!$T$16:$T$43,MATCH($B167,'Damage costs'!$C$16:$C$43,0))/1000),\"\")","v":""},{"$f":"IFERROR(IF(OR($C$168=FALSE,LEFT($B167,3)<>\"NOX\"),J58*INDEX('Damage costs'!$P$16:$P$43,MATCH($B167,'Damage costs'!$C$16:$C$43,0))/1000,J58*INDEX('Damage costs'!$T$16:$T$43,MATCH($B167,'Damage costs'!$C$16:$C$43,0))/1000),\"\")","v":""},{"$f":"IFERROR(IF(OR($C$168=FALSE,LEFT($B167,3)<>\"NOX\"),K58*INDEX('Damage costs'!$P$16:$P$43,MATCH($B167,'Damage costs'!$C$16:$C$43,0))/1000,K58*INDEX('Damage costs'!$T$16:$T$43,MATCH($B167,'Damage costs'!$C$16:$C$43,0))/1000),\"\")","v":""},{"$f":"IFERROR(IF(OR($C$168=FALSE,LEFT($B167,3)<>\"NOX\"),L58*INDEX('Damage costs'!$P$16:$P$43,MATCH($B167,'Damage costs'!$C$16:$C$43,0))/1000,L58*INDEX('Damage costs'!$T$16:$T$43,MATCH($B167,'Damage costs'!$C$16:$C$43,0))/1000),\"\")","v":""},{"$f":"IFERROR(IF(OR($C$168=FALSE,LEFT($B167,3)<>\"NOX\"),M58*INDEX('Damage costs'!$P$16:$P$43,MATCH($B167,'Damage costs'!$C$16:$C$43,0))/1000,M58*INDEX('Damage costs'!$T$16:$T$43,MATCH($B167,'Damage costs'!$C$16:$C$43,0))/1000),\"\")","v":""},{"$f":"IFERROR(IF(OR($C$168=FALSE,LEFT($B167,3)<>\"NOX\"),N58*INDEX('Damage costs'!$P$16:$P$43,MATCH($B167,'Damage costs'!$C$16:$C$43,0))/1000,N58*INDEX('Damage costs'!$T$16:$T$43,MATCH($B167,'Damage costs'!$C$16:$C$43,0))/1000),\"\")","v":""},{"$f":"IFERROR(IF(OR($C$168=FALSE,LEFT($B167,3)<>\"NOX\"),O58*INDEX('Damage costs'!$P$16:$P$43,MATCH($B167,'Damage costs'!$C$16:$C$43,0))/1000,O58*INDEX('Damage costs'!$T$16:$T$43,MATCH($B167,'Damage costs'!$C$16:$C$43,0))/1000),\"\")","v":""},{"$f":"IFERROR(IF(OR($C$168=FALSE,LEFT($B167,3)<>\"NOX\"),P58*INDEX('Damage costs'!$P$16:$P$43,MATCH($B167,'Damage costs'!$C$16:$C$43,0))/1000,P58*INDEX('Damage costs'!$T$16:$T$43,MATCH($B167,'Damage costs'!$C$16:$C$43,0))/1000),\"\")","v":""},{"$f":"IFERROR(IF(OR($C$168=FALSE,LEFT($B167,3)<>\"NOX\"),Q58*INDEX('Damage costs'!$P$16:$P$43,MATCH($B167,'Damage costs'!$C$16:$C$43,0))/1000,Q58*INDEX('Damage costs'!$T$16:$T$43,MATCH($B167,'Damage costs'!$C$16:$C$43,0))/1000),\"\")","v":""},{"$f":"IFERROR(IF(OR($C$168=FALSE,LEFT($B167,3)<>\"NOX\"),R58*INDEX('Damage costs'!$P$16:$P$43,MATCH($B167,'Damage costs'!$C$16:$C$43,0))/1000,R58*INDEX('Damage costs'!$T$16:$T$43,MATCH($B167,'Damage costs'!$C$16:$C$43,0))/1000),\"\")","v":""},{"$f":"IFERROR(IF(OR($C$168=FALSE,LEFT($B167,3)<>\"NOX\"),S58*INDEX('Damage costs'!$P$16:$P$43,MATCH($B167,'Damage costs'!$C$16:$C$43,0))/1000,S58*INDEX('Damage costs'!$T$16:$T$43,MATCH($B167,'Damage costs'!$C$16:$C$43,0))/1000),\"\")","v":""},{"$f":"IFERROR(IF(OR($C$168=FALSE,LEFT($B167,3)<>\"NOX\"),T58*INDEX('Damage costs'!$P$16:$P$43,MATCH($B167,'Damage costs'!$C$16:$C$43,0))/1000,T58*INDEX('Damage costs'!$T$16:$T$43,MATCH($B167,'Damage costs'!$C$16:$C$43,0))/1000),\"\")","v":""},{"$f":"IFERROR(IF(OR($C$168=FALSE,LEFT($B167,3)<>\"NOX\"),U58*INDEX('Damage costs'!$P$16:$P$43,MATCH($B167,'Damage costs'!$C$16:$C$43,0))/1000,U58*INDEX('Damage costs'!$T$16:$T$43,MATCH($B167,'Damage costs'!$C$16:$C$43,0))/1000),\"\")","v":""},{"$f":"IFERROR(IF(OR($C$168=FALSE,LEFT($B167,3)<>\"NOX\"),V58*INDEX('Damage costs'!$P$16:$P$43,MATCH($B167,'Damage costs'!$C$16:$C$43,0))/1000,V58*INDEX('Damage costs'!$T$16:$T$43,MATCH($B167,'Damage costs'!$C$16:$C$43,0))/1000),\"\")","v":""},{"$f":"IFERROR(IF(OR($C$168=FALSE,LEFT($B167,3)<>\"NOX\"),W58*INDEX('Damage costs'!$P$16:$P$43,MATCH($B167,'Damage costs'!$C$16:$C$43,0))/1000,W58*INDEX('Damage costs'!$T$16:$T$43,MATCH($B167,'Damage costs'!$C$16:$C$43,0))/1000),\"\")","v":""},{"$f":"IFERROR(IF(OR($C$168=FALSE,LEFT($B167,3)<>\"NOX\"),X58*INDEX('Damage costs'!$P$16:$P$43,MATCH($B167,'Damage costs'!$C$16:$C$43,0))/1000,X58*INDEX('Damage costs'!$T$16:$T$43,MATCH($B167,'Damage costs'!$C$16:$C$43,0))/1000),\"\")","v":""},{"$f":"IFERROR(IF(OR($C$168=FALSE,LEFT($B167,3)<>\"NOX\"),Y58*INDEX('Damage costs'!$P$16:$P$43,MATCH($B167,'Damage costs'!$C$16:$C$43,0))/1000,Y58*INDEX('Damage costs'!$T$16:$T$43,MATCH($B167,'Damage costs'!$C$16:$C$43,0))/1000),\"\")","v":""},{"$f":"IFERROR(IF(OR($C$168=FALSE,LEFT($B167,3)<>\"NOX\"),Z58*INDEX('Damage costs'!$P$16:$P$43,MATCH($B167,'Damage costs'!$C$16:$C$43,0))/1000,Z58*INDEX('Damage costs'!$T$16:$T$43,MATCH($B167,'Damage costs'!$C$16:$C$43,0))/1000),\"\")","v":""},{"$f":"IFERROR(IF(OR($C$168=FALSE,LEFT($B167,3)<>\"NOX\"),AA58*INDEX('Damage costs'!$P$16:$P$43,MATCH($B167,'Damage costs'!$C$16:$C$43,0))/1000,AA58*INDEX('Damage costs'!$T$16:$T$43,MATCH($B167,'Damage costs'!$C$16:$C$43,0))/1000),\"\")","v":""},{"$f":"IFERROR(IF(OR($C$168=FALSE,LEFT($B167,3)<>\"NOX\"),AB58*INDEX('Damage costs'!$P$16:$P$43,MATCH($B167,'Damage costs'!$C$16:$C$43,0))/1000,AB58*INDEX('Damage costs'!$T$16:$T$43,MATCH($B167,'Damage costs'!$C$16:$C$43,0))/1000),\"\")","v":""},{"$f":"IFERROR(IF(OR($C$168=FALSE,LEFT($B167,3)<>\"NOX\"),AC58*INDEX('Damage costs'!$P$16:$P$43,MATCH($B167,'Damage costs'!$C$16:$C$43,0))/1000,AC58*INDEX('Damage costs'!$T$16:$T$43,MATCH($B167,'Damage costs'!$C$16:$C$43,0))/1000),\"\")","v":""},{"$f":"IFERROR(IF(OR($C$168=FALSE,LEFT($B167,3)<>\"NOX\"),AD58*INDEX('Damage costs'!$P$16:$P$43,MATCH($B167,'Damage costs'!$C$16:$C$43,0))/1000,AD58*INDEX('Damage costs'!$T$16:$T$43,MATCH($B167,'Damage costs'!$C$16:$C$43,0))/1000),\"\")","v":""},{"$f":"IFERROR(IF(OR($C$168=FALSE,LEFT($B167,3)<>\"NOX\"),AE58*INDEX('Damage costs'!$P$16:$P$43,MATCH($B167,'Damage costs'!$C$16:$C$43,0))/1000,AE58*INDEX('Damage costs'!$T$16:$T$43,MATCH($B167,'Damage costs'!$C$16:$C$43,0))/1000),\"\")","v":""},{"$f":"IFERROR(IF(OR($C$168=FALSE,LEFT($B167,3)<>\"NOX\"),AF58*INDEX('Damage costs'!$P$16:$P$43,MATCH($B167,'Damage costs'!$C$16:$C$43,0))/1000,AF58*INDEX('Damage costs'!$T$16:$T$43,MATCH($B167,'Damage costs'!$C$16:$C$43,0))/1000),\"\")","v":""},{"$f":"IFERROR(IF(OR($C$168=FALSE,LEFT($B167,3)<>\"NOX\"),AG58*INDEX('Damage costs'!$P$16:$P$43,MATCH($B167,'Damage costs'!$C$16:$C$43,0))/1000,AG58*INDEX('Damage costs'!$T$16:$T$43,MATCH($B167,'Damage costs'!$C$16:$C$43,0))/1000),\"\")","v":""},{"$f":"IFERROR(IF(OR($C$168=FALSE,LEFT($B167,3)<>\"NOX\"),AH58*INDEX('Damage costs'!$P$16:$P$43,MATCH($B167,'Damage costs'!$C$16:$C$43,0))/1000,AH58*INDEX('Damage costs'!$T$16:$T$43,MATCH($B167,'Damage costs'!$C$16:$C$43,0))/1000),\"\")","v":""},{"$f":"IFERROR(IF(OR($C$168=FALSE,LEFT($B167,3)<>\"NOX\"),AI58*INDEX('Damage costs'!$P$16:$P$43,MATCH($B167,'Damage costs'!$C$16:$C$43,0))/1000,AI58*INDEX('Damage costs'!$T$16:$T$43,MATCH($B167,'Damage costs'!$C$16:$C$43,0))/1000),\"\")","v":""},{"$f":"IFERROR(IF(OR($C$168=FALSE,LEFT($B167,3)<>\"NOX\"),AJ58*INDEX('Damage costs'!$P$16:$P$43,MATCH($B167,'Damage costs'!$C$16:$C$43,0))/1000,AJ58*INDEX('Damage costs'!$T$16:$T$43,MATCH($B167,'Damage costs'!$C$16:$C$43,0))/1000),\"\")","v":""},{"$f":"IFERROR(IF(OR($C$168=FALSE,LEFT($B167,3)<>\"NOX\"),AK58*INDEX('Damage costs'!$P$16:$P$43,MATCH($B167,'Damage costs'!$C$16:$C$43,0))/1000,AK58*INDEX('Damage costs'!$T$16:$T$43,MATCH($B167,'Damage costs'!$C$16:$C$43,0))/1000),\"\")","v":""},{"$f":"IFERROR(IF(OR($C$168=FALSE,LEFT($B167,3)<>\"NOX\"),AL58*INDEX('Damage costs'!$P$16:$P$43,MATCH($B167,'Damage costs'!$C$16:$C$43,0))/1000,AL58*INDEX('Damage costs'!$T$16:$T$43,MATCH($B167,'Damage costs'!$C$16:$C$43,0))/1000),\"\")","v":""},{"$f":"IFERROR(IF(OR($C$168=FALSE,LEFT($B167,3)<>\"NOX\"),AM58*INDEX('Damage costs'!$P$16:$P$43,MATCH($B167,'Damage costs'!$C$16:$C$43,0))/1000,AM58*INDEX('Damage costs'!$T$16:$T$43,MATCH($B167,'Damage costs'!$C$16:$C$43,0))/1000),\"\")","v":""},{"$f":"IFERROR(IF(OR($C$168=FALSE,LEFT($B167,3)<>\"NOX\"),AN58*INDEX('Damage costs'!$P$16:$P$43,MATCH($B167,'Damage costs'!$C$16:$C$43,0))/1000,AN58*INDEX('Damage costs'!$T$16:$T$43,MATCH($B167,'Damage costs'!$C$16:$C$43,0))/1000),\"\")","v":""},{"$f":"IFERROR(IF(OR($C$168=FALSE,LEFT($B167,3)<>\"NOX\"),AO58*INDEX('Damage costs'!$P$16:$P$43,MATCH($B167,'Damage costs'!$C$16:$C$43,0))/1000,AO58*INDEX('Damage costs'!$T$16:$T$43,MATCH($B167,'Damage costs'!$C$16:$C$43,0))/1000),\"\")","v":""},{"$f":"IFERROR(IF(OR($C$168=FALSE,LEFT($B167,3)<>\"NOX\"),AP58*INDEX('Damage costs'!$P$16:$P$43,MATCH($B167,'Damage costs'!$C$16:$C$43,0))/1000,AP58*INDEX('Damage costs'!$T$16:$T$43,MATCH($B167,'Damage costs'!$C$16:$C$43,0))/1000),\"\")","v":""},{"$f":"IFERROR(IF(OR($C$168=FALSE,LEFT($B167,3)<>\"NOX\"),AQ58*INDEX('Damage costs'!$P$16:$P$43,MATCH($B167,'Damage costs'!$C$16:$C$43,0))/1000,AQ58*INDEX('Damage costs'!$T$16:$T$43,MATCH($B167,'Damage costs'!$C$16:$C$43,0))/1000),\"\")","v":""},{"$f":"IFERROR(IF(OR($C$168=FALSE,LEFT($B167,3)<>\"NOX\"),AR58*INDEX('Damage costs'!$P$16:$P$43,MATCH($B167,'Damage costs'!$C$16:$C$43,0))/1000,AR58*INDEX('Damage costs'!$T$16:$T$43,MATCH($B167,'Damage costs'!$C$16:$C$43,0))/1000),\"\")","v":""},{"$f":"IFERROR(IF(OR($C$168=FALSE,LEFT($B167,3)<>\"NOX\"),AS58*INDEX('Damage costs'!$P$16:$P$43,MATCH($B167,'Damage costs'!$C$16:$C$43,0))/1000,AS58*INDEX('Damage costs'!$T$16:$T$43,MATCH($B167,'Damage costs'!$C$16:$C$43,0))/1000),\"\")","v":""},{"$f":"IFERROR(IF(OR($C$168=FALSE,LEFT($B167,3)<>\"NOX\"),AT58*INDEX('Damage costs'!$P$16:$P$43,MATCH($B167,'Damage costs'!$C$16:$C$43,0))/1000,AT58*INDEX('Damage costs'!$T$16:$T$43,MATCH($B167,'Damage costs'!$C$16:$C$43,0))/1000),\"\")","v":""},{"$f":"IFERROR(IF(OR($C$168=FALSE,LEFT($B167,3)<>\"NOX\"),AU58*INDEX('Damage costs'!$P$16:$P$43,MATCH($B167,'Damage costs'!$C$16:$C$43,0))/1000,AU58*INDEX('Damage costs'!$T$16:$T$43,MATCH($B167,'Damage costs'!$C$16:$C$43,0))/1000),\"\")","v":""},{"$f":"IFERROR(IF(OR($C$168=FALSE,LEFT($B167,3)<>\"NOX\"),AV58*INDEX('Damage costs'!$P$16:$P$43,MATCH($B167,'Damage costs'!$C$16:$C$43,0))/1000,AV58*INDEX('Damage costs'!$T$16:$T$43,MATCH($B167,'Damage costs'!$C$16:$C$43,0))/1000),\"\")","v":""},{"$f":"IFERROR(IF(OR($C$168=FALSE,LEFT($B167,3)<>\"NOX\"),AW58*INDEX('Damage costs'!$P$16:$P$43,MATCH($B167,'Damage costs'!$C$16:$C$43,0))/1000,AW58*INDEX('Damage costs'!$T$16:$T$43,MATCH($B167,'Damage costs'!$C$16:$C$43,0))/1000),\"\")","v":""},{"$f":"IFERROR(IF(OR($C$168=FALSE,LEFT($B167,3)<>\"NOX\"),AX58*INDEX('Damage costs'!$P$16:$P$43,MATCH($B167,'Damage costs'!$C$16:$C$43,0))/1000,AX58*INDEX('Damage costs'!$T$16:$T$43,MATCH($B167,'Damage costs'!$C$16:$C$43,0))/1000),\"\")","v":""},{"$f":"IFERROR(IF(OR($C$168=FALSE,LEFT($B167,3)<>\"NOX\"),AY58*INDEX('Damage costs'!$P$16:$P$43,MATCH($B167,'Damage costs'!$C$16:$C$43,0))/1000,AY58*INDEX('Damage costs'!$T$16:$T$43,MATCH($B167,'Damage costs'!$C$16:$C$43,0))/1000),\"\")","v":""},{"$f":"IFERROR(IF(OR($C$168=FALSE,LEFT($B167,3)<>\"NOX\"),AZ58*INDEX('Damage costs'!$P$16:$P$43,MATCH($B167,'Damage costs'!$C$16:$C$43,0))/1000,AZ58*INDEX('Damage costs'!$T$16:$T$43,MATCH($B167,'Damage costs'!$C$16:$C$43,0))/1000),\"\")","v":""},{"$f":"IFERROR(IF(OR($C$168=FALSE,LEFT($B167,3)<>\"NOX\"),BA58*INDEX('Damage costs'!$P$16:$P$43,MATCH($B167,'Damage costs'!$C$16:$C$43,0))/1000,BA58*INDEX('Damage costs'!$T$16:$T$43,MATCH($B167,'Damage costs'!$C$16:$C$43,0))/1000),\"\")","v":""},{"$f":"IFERROR(IF(OR($C$168=FALSE,LEFT($B167,3)<>\"NOX\"),BB58*INDEX('Damage costs'!$P$16:$P$43,MATCH($B167,'Damage costs'!$C$16:$C$43,0))/1000,BB58*INDEX('Damage costs'!$T$16:$T$43,MATCH($B167,'Damage costs'!$C$16:$C$43,0))/1000),\"\")","v":""},{"$f":"IFERROR(IF(OR($C$168=FALSE,LEFT($B167,3)<>\"NOX\"),BC58*INDEX('Damage costs'!$P$16:$P$43,MATCH($B167,'Damage costs'!$C$16:$C$43,0))/1000,BC58*INDEX('Damage costs'!$T$16:$T$43,MATCH($B167,'Damage costs'!$C$16:$C$43,0))/1000),\"\")","v":""},{"$f":"IFERROR(IF(OR($C$168=FALSE,LEFT($B167,3)<>\"NOX\"),BD58*INDEX('Damage costs'!$P$16:$P$43,MATCH($B167,'Damage costs'!$C$16:$C$43,0))/1000,BD58*INDEX('Damage costs'!$T$16:$T$43,MATCH($B167,'Damage costs'!$C$16:$C$43,0))/1000),\"\")","v":""},{"$f":"IFERROR(IF(OR($C$168=FALSE,LEFT($B167,3)<>\"NOX\"),BE58*INDEX('Damage costs'!$P$16:$P$43,MATCH($B167,'Damage costs'!$C$16:$C$43,0))/1000,BE58*INDEX('Damage costs'!$T$16:$T$43,MATCH($B167,'Damage costs'!$C$16:$C$43,0))/1000),\"\")","v":""},{"$f":"IFERROR(IF(OR($C$168=FALSE,LEFT($B167,3)<>\"NOX\"),BF58*INDEX('Damage costs'!$P$16:$P$43,MATCH($B167,'Damage costs'!$C$16:$C$43,0))/1000,BF58*INDEX('Damage costs'!$T$16:$T$43,MATCH($B167,'Damage costs'!$C$16:$C$43,0))/1000),\"\")","v":""},{"$f":"IFERROR(IF(OR($C$168=FALSE,LEFT($B167,3)<>\"NOX\"),BG58*INDEX('Damage costs'!$P$16:$P$43,MATCH($B167,'Damage costs'!$C$16:$C$43,0))/1000,BG58*INDEX('Damage costs'!$T$16:$T$43,MATCH($B167,'Damage costs'!$C$16:$C$43,0))/1000),\"\")","v":""},{"$f":"IFERROR(IF(OR($C$168=FALSE,LEFT($B167,3)<>\"NOX\"),BH58*INDEX('Damage costs'!$P$16:$P$43,MATCH($B167,'Damage costs'!$C$16:$C$43,0))/1000,BH58*INDEX('Damage costs'!$T$16:$T$43,MATCH($B167,'Damage costs'!$C$16:$C$43,0))/1000),\"\")","v":""},{"$f":"IFERROR(IF(OR($C$168=FALSE,LEFT($B167,3)<>\"NOX\"),BI58*INDEX('Damage costs'!$P$16:$P$43,MATCH($B167,'Damage costs'!$C$16:$C$43,0))/1000,BI58*INDEX('Damage costs'!$T$16:$T$43,MATCH($B167,'Damage costs'!$C$16:$C$43,0))/1000),\"\")","v":""},{"$f":"IFERROR(IF(OR($C$168=FALSE,LEFT($B167,3)<>\"NOX\"),BJ58*INDEX('Damage costs'!$P$16:$P$43,MATCH($B167,'Damage costs'!$C$16:$C$43,0))/1000,BJ58*INDEX('Damage costs'!$T$16:$T$43,MATCH($B167,'Damage costs'!$C$16:$C$43,0))/1000),\"\")","v":""},{"$f":"IFERROR(IF(OR($C$168=FALSE,LEFT($B167,3)<>\"NOX\"),BK58*INDEX('Damage costs'!$P$16:$P$43,MATCH($B167,'Damage costs'!$C$16:$C$43,0))/1000,BK58*INDEX('Damage costs'!$T$16:$T$43,MATCH($B167,'Damage costs'!$C$16:$C$43,0))/1000),\"\")","v":""},{"$f":"IFERROR(IF(OR($C$168=FALSE,LEFT($B167,3)<>\"NOX\"),BL58*INDEX('Damage costs'!$P$16:$P$43,MATCH($B167,'Damage costs'!$C$16:$C$43,0))/1000,BL58*INDEX('Damage costs'!$T$16:$T$43,MATCH($B167,'Damage costs'!$C$16:$C$43,0))/1000),\"\")","v":""},{"$f":"IFERROR(IF(OR($C$168=FALSE,LEFT($B167,3)<>\"NOX\"),BM58*INDEX('Damage costs'!$P$16:$P$43,MATCH($B167,'Damage costs'!$C$16:$C$43,0))/1000,BM58*INDEX('Damage costs'!$T$16:$T$43,MATCH($B167,'Damage costs'!$C$16:$C$43,0))/1000),\"\")","v":""},{"$f":"IFERROR(IF(OR($C$168=FALSE,LEFT($B167,3)<>\"NOX\"),BN58*INDEX('Damage costs'!$P$16:$P$43,MATCH($B167,'Damage costs'!$C$16:$C$43,0))/1000,BN58*INDEX('Damage costs'!$T$16:$T$43,MATCH($B167,'Damage costs'!$C$16:$C$43,0))/1000),\"\")","v":""},{"$f":"IFERROR(IF(OR($C$168=FALSE,LEFT($B167,3)<>\"NOX\"),BO58*INDEX('Damage costs'!$P$16:$P$43,MATCH($B167,'Damage costs'!$C$16:$C$43,0))/1000,BO58*INDEX('Damage costs'!$T$16:$T$43,MATCH($B167,'Damage costs'!$C$16:$C$43,0))/1000),\"\")","v":""},{"$f":"IFERROR(IF(OR($C$168=FALSE,LEFT($B167,3)<>\"NOX\"),BP58*INDEX('Damage costs'!$P$16:$P$43,MATCH($B167,'Damage costs'!$C$16:$C$43,0))/1000,BP58*INDEX('Damage costs'!$T$16:$T$43,MATCH($B167,'Damage costs'!$C$16:$C$43,0))/1000),\"\")","v":""},{"$f":"IFERROR(IF(OR($C$168=FALSE,LEFT($B167,3)<>\"NOX\"),BQ58*INDEX('Damage costs'!$P$16:$P$43,MATCH($B167,'Damage costs'!$C$16:$C$43,0))/1000,BQ58*INDEX('Damage costs'!$T$16:$T$43,MATCH($B167,'Damage costs'!$C$16:$C$43,0))/1000),\"\")","v":""},{"$f":"IFERROR(IF(OR($C$168=FALSE,LEFT($B167,3)<>\"NOX\"),BR58*INDEX('Damage costs'!$P$16:$P$43,MATCH($B167,'Damage costs'!$C$16:$C$43,0))/1000,BR58*INDEX('Damage costs'!$T$16:$T$43,MATCH($B167,'Damage costs'!$C$16:$C$43,0))/1000),\"\")","v":""},{"$f":"IFERROR(IF(OR($C$168=FALSE,LEFT($B167,3)<>\"NOX\"),BS58*INDEX('Damage costs'!$P$16:$P$43,MATCH($B167,'Damage costs'!$C$16:$C$43,0))/1000,BS58*INDEX('Damage costs'!$T$16:$T$43,MATCH($B167,'Damage costs'!$C$16:$C$43,0))/1000),\"\")","v":""},{"$f":"IFERROR(IF(OR($C$168=FALSE,LEFT($B167,3)<>\"NOX\"),BT58*INDEX('Damage costs'!$P$16:$P$43,MATCH($B167,'Damage costs'!$C$16:$C$43,0))/1000,BT58*INDEX('Damage costs'!$T$16:$T$43,MATCH($B167,'Damage costs'!$C$16:$C$43,0))/1000),\"\")","v":""},{"$f":"IFERROR(IF(OR($C$168=FALSE,LEFT($B167,3)<>\"NOX\"),BU58*INDEX('Damage costs'!$P$16:$P$43,MATCH($B167,'Damage costs'!$C$16:$C$43,0))/1000,BU58*INDEX('Damage costs'!$T$16:$T$43,MATCH($B167,'Damage costs'!$C$16:$C$43,0))/1000),\"\")","v":""},{"$f":"IFERROR(IF(OR($C$168=FALSE,LEFT($B167,3)<>\"NOX\"),BV58*INDEX('Damage costs'!$P$16:$P$43,MATCH($B167,'Damage costs'!$C$16:$C$43,0))/1000,BV58*INDEX('Damage costs'!$T$16:$T$43,MATCH($B167,'Damage costs'!$C$16:$C$43,0))/1000),\"\")","v":""},{"$f":"IFERROR(IF(OR($C$168=FALSE,LEFT($B167,3)<>\"NOX\"),BW58*INDEX('Damage costs'!$P$16:$P$43,MATCH($B167,'Damage costs'!$C$16:$C$43,0))/1000,BW58*INDEX('Damage costs'!$T$16:$T$43,MATCH($B167,'Damage costs'!$C$16:$C$43,0))/1000),\"\")","v":""},{"$f":"IFERROR(IF(OR($C$168=FALSE,LEFT($B167,3)<>\"NOX\"),BX58*INDEX('Damage costs'!$P$16:$P$43,MATCH($B167,'Damage costs'!$C$16:$C$43,0))/1000,BX58*INDEX('Damage costs'!$T$16:$T$43,MATCH($B167,'Damage costs'!$C$16:$C$43,0))/1000),\"\")","v":""},{"$f":"IFERROR(IF(OR($C$168=FALSE,LEFT($B167,3)<>\"NOX\"),BY58*INDEX('Damage costs'!$P$16:$P$43,MATCH($B167,'Damage costs'!$C$16:$C$43,0))/1000,BY58*INDEX('Damage costs'!$T$16:$T$43,MATCH($B167,'Damage costs'!$C$16:$C$43,0))/1000),\"\")","v":""},{"$f":"IFERROR(IF(OR($C$168=FALSE,LEFT($B167,3)<>\"NOX\"),BZ58*INDEX('Damage costs'!$P$16:$P$43,MATCH($B167,'Damage costs'!$C$16:$C$43,0))/1000,BZ58*INDEX('Damage costs'!$T$16:$T$43,MATCH($B167,'Damage costs'!$C$16:$C$43,0))/1000),\"\")","v":""},{"$f":"IFERROR(IF(OR($C$168=FALSE,LEFT($B167,3)<>\"NOX\"),CA58*INDEX('Damage costs'!$P$16:$P$43,MATCH($B167,'Damage costs'!$C$16:$C$43,0))/1000,CA58*INDEX('Damage costs'!$T$16:$T$43,MATCH($B167,'Damage costs'!$C$16:$C$43,0))/1000),\"\")","v":""},{"$f":"IFERROR(IF(OR($C$168=FALSE,LEFT($B167,3)<>\"NOX\"),CB58*INDEX('Damage costs'!$P$16:$P$43,MATCH($B167,'Damage costs'!$C$16:$C$43,0))/1000,CB58*INDEX('Damage costs'!$T$16:$T$43,MATCH($B167,'Damage costs'!$C$16:$C$43,0))/1000),\"\")","v":""},{"$f":"IFERROR(IF(OR($C$168=FALSE,LEFT($B167,3)<>\"NOX\"),CC58*INDEX('Damage costs'!$P$16:$P$43,MATCH($B167,'Damage costs'!$C$16:$C$43,0))/1000,CC58*INDEX('Damage costs'!$T$16:$T$43,MATCH($B167,'Damage costs'!$C$16:$C$43,0))/1000),\"\")","v":""},{"$f":"IFERROR(IF(OR($C$168=FALSE,LEFT($B167,3)<>\"NOX\"),CD58*INDEX('Damage costs'!$P$16:$P$43,MATCH($B167,'Damage costs'!$C$16:$C$43,0))/1000,CD58*INDEX('Damage costs'!$T$16:$T$43,MATCH($B167,'Damage costs'!$C$16:$C$43,0))/1000),\"\")","v":""},{"$f":"IFERROR(IF(OR($C$168=FALSE,LEFT($B167,3)<>\"NOX\"),CE58*INDEX('Damage costs'!$P$16:$P$43,MATCH($B167,'Damage costs'!$C$16:$C$43,0))/1000,CE58*INDEX('Damage costs'!$T$16:$T$43,MATCH($B167,'Damage costs'!$C$16:$C$43,0))/1000),\"\")","v":""},{"$f":"IFERROR(IF(OR($C$168=FALSE,LEFT($B167,3)<>\"NOX\"),CF58*INDEX('Damage costs'!$P$16:$P$43,MATCH($B167,'Damage costs'!$C$16:$C$43,0))/1000,CF58*INDEX('Damage costs'!$T$16:$T$43,MATCH($B167,'Damage costs'!$C$16:$C$43,0))/1000),\"\")","v":""},{"$f":"IFERROR(IF(OR($C$168=FALSE,LEFT($B167,3)<>\"NOX\"),CG58*INDEX('Damage costs'!$P$16:$P$43,MATCH($B167,'Damage costs'!$C$16:$C$43,0))/1000,CG58*INDEX('Damage costs'!$T$16:$T$43,MATCH($B167,'Damage costs'!$C$16:$C$43,0))/1000),\"\")","v":""},{"$f":"IFERROR(IF(OR($C$168=FALSE,LEFT($B167,3)<>\"NOX\"),CH58*INDEX('Damage costs'!$P$16:$P$43,MATCH($B167,'Damage costs'!$C$16:$C$43,0))/1000,CH58*INDEX('Damage costs'!$T$16:$T$43,MATCH($B167,'Damage costs'!$C$16:$C$43,0))/1000),\"\")","v":""},{"$f":"IFERROR(IF(OR($C$168=FALSE,LEFT($B167,3)<>\"NOX\"),CI58*INDEX('Damage costs'!$P$16:$P$43,MATCH($B167,'Damage costs'!$C$16:$C$43,0))/1000,CI58*INDEX('Damage costs'!$T$16:$T$43,MATCH($B167,'Damage costs'!$C$16:$C$43,0))/1000),\"\")","v":""},{"$f":"IFERROR(IF(OR($C$168=FALSE,LEFT($B167,3)<>\"NOX\"),CJ58*INDEX('Damage costs'!$P$16:$P$43,MATCH($B167,'Damage costs'!$C$16:$C$43,0))/1000,CJ58*INDEX('Damage costs'!$T$16:$T$43,MATCH($B167,'Damage costs'!$C$16:$C$43,0))/1000),\"\")","v":""},{"$f":"IFERROR(IF(OR($C$168=FALSE,LEFT($B167,3)<>\"NOX\"),CK58*INDEX('Damage costs'!$P$16:$P$43,MATCH($B167,'Damage costs'!$C$16:$C$43,0))/1000,CK58*INDEX('Damage costs'!$T$16:$T$43,MATCH($B167,'Damage costs'!$C$16:$C$43,0))/1000),\"\")","v":""},{"$f":"IFERROR(IF(OR($C$168=FALSE,LEFT($B167,3)<>\"NOX\"),CL58*INDEX('Damage costs'!$P$16:$P$43,MATCH($B167,'Damage costs'!$C$16:$C$43,0))/1000,CL58*INDEX('Damage costs'!$T$16:$T$43,MATCH($B167,'Damage costs'!$C$16:$C$43,0))/1000),\"\")","v":""},{"$f":"IFERROR(IF(OR($C$168=FALSE,LEFT($B167,3)<>\"NOX\"),CM58*INDEX('Damage costs'!$P$16:$P$43,MATCH($B167,'Damage costs'!$C$16:$C$43,0))/1000,CM58*INDEX('Damage costs'!$T$16:$T$43,MATCH($B167,'Damage costs'!$C$16:$C$43,0))/1000),\"\")","v":""},{"$f":"IFERROR(IF(OR($C$168=FALSE,LEFT($B167,3)<>\"NOX\"),CN58*INDEX('Damage costs'!$P$16:$P$43,MATCH($B167,'Damage costs'!$C$16:$C$43,0))/1000,CN58*INDEX('Damage costs'!$T$16:$T$43,MATCH($B167,'Damage costs'!$C$16:$C$43,0))/1000),\"\")","v":""},{"$f":"IFERROR(IF(OR($C$168=FALSE,LEFT($B167,3)<>\"NOX\"),CO58*INDEX('Damage costs'!$P$16:$P$43,MATCH($B167,'Damage costs'!$C$16:$C$43,0))/1000,CO58*INDEX('Damage costs'!$T$16:$T$43,MATCH($B167,'Damage costs'!$C$16:$C$43,0))/1000),\"\")","v":""},{"$f":"IFERROR(IF(OR($C$168=FALSE,LEFT($B167,3)<>\"NOX\"),CP58*INDEX('Damage costs'!$P$16:$P$43,MATCH($B167,'Damage costs'!$C$16:$C$43,0))/1000,CP58*INDEX('Damage costs'!$T$16:$T$43,MATCH($B167,'Damage costs'!$C$16:$C$43,0))/1000),\"\")","v":""},{"$f":"IFERROR(IF(OR($C$168=FALSE,LEFT($B167,3)<>\"NOX\"),CQ58*INDEX('Damage costs'!$P$16:$P$43,MATCH($B167,'Damage costs'!$C$16:$C$43,0))/1000,CQ58*INDEX('Damage costs'!$T$16:$T$43,MATCH($B167,'Damage costs'!$C$16:$C$43,0))/1000),\"\")","v":""},{"$f":"IFERROR(IF(OR($C$168=FALSE,LEFT($B167,3)<>\"NOX\"),CR58*INDEX('Damage costs'!$P$16:$P$43,MATCH($B167,'Damage costs'!$C$16:$C$43,0))/1000,CR58*INDEX('Damage costs'!$T$16:$T$43,MATCH($B167,'Damage costs'!$C$16:$C$43,0))/1000),\"\")","v":""},{"$f":"IFERROR(IF(OR($C$168=FALSE,LEFT($B167,3)<>\"NOX\"),CS58*INDEX('Damage costs'!$P$16:$P$43,MATCH($B167,'Damage costs'!$C$16:$C$43,0))/1000,CS58*INDEX('Damage costs'!$T$16:$T$43,MATCH($B167,'Damage costs'!$C$16:$C$43,0))/1000),\"\")","v":""},{"$f":"IFERROR(IF(OR($C$168=FALSE,LEFT($B167,3)<>\"NOX\"),CT58*INDEX('Damage costs'!$P$16:$P$43,MATCH($B167,'Damage costs'!$C$16:$C$43,0))/1000,CT58*INDEX('Damage costs'!$T$16:$T$43,MATCH($B167,'Damage costs'!$C$16:$C$43,0))/1000),\"\")","v":""},{"$f":"IFERROR(IF(OR($C$168=FALSE,LEFT($B167,3)<>\"NOX\"),CU58*INDEX('Damage costs'!$P$16:$P$43,MATCH($B167,'Damage costs'!$C$16:$C$43,0))/1000,CU58*INDEX('Damage costs'!$T$16:$T$43,MATCH($B167,'Damage costs'!$C$16:$C$43,0))/1000),\"\")","v":""},{"$f":"IFERROR(IF(OR($C$168=FALSE,LEFT($B167,3)<>\"NOX\"),CV58*INDEX('Damage costs'!$P$16:$P$43,MATCH($B167,'Damage costs'!$C$16:$C$43,0))/1000,CV58*INDEX('Damage costs'!$T$16:$T$43,MATCH($B167,'Damage costs'!$C$16:$C$43,0))/1000),\"\")","v":""},{"$f":"IFERROR(IF(OR($C$168=FALSE,LEFT($B167,3)<>\"NOX\"),CW58*INDEX('Damage costs'!$P$16:$P$43,MATCH($B167,'Damage costs'!$C$16:$C$43,0))/1000,CW58*INDEX('Damage costs'!$T$16:$T$43,MATCH($B167,'Damage costs'!$C$16:$C$43,0))/1000),\"\")","v":""},{"$f":"IFERROR(IF(OR($C$168=FALSE,LEFT($B167,3)<>\"NOX\"),CX58*INDEX('Damage costs'!$P$16:$P$43,MATCH($B167,'Damage costs'!$C$16:$C$43,0))/1000,CX58*INDEX('Damage costs'!$T$16:$T$43,MATCH($B167,'Damage costs'!$C$16:$C$43,0))/1000),\"\")","v":""},{"$f":"IFERROR(IF(OR($C$168=FALSE,LEFT($B167,3)<>\"NOX\"),CY58*INDEX('Damage costs'!$P$16:$P$43,MATCH($B167,'Damage costs'!$C$16:$C$43,0))/1000,CY58*INDEX('Damage costs'!$T$16:$T$43,MATCH($B167,'Damage costs'!$C$16:$C$43,0))/1000),\"\")","v":""}]
[null,"PM10 Used",{"$f":"IF(OR(LEFT(B162,4)=\"PM10\",LEFT(B163,4)=\"PM10\",LEFT(B164,4)=\"PM10\",LEFT(B165,4)=\"PM10\",LEFT(B166,4)=\"PM10\",LEFT(B167,4)=\"PM10\"),TRUE,FALSE)","v":false}]
[]
[null,"Uplift pa","%",{"$f":"'Discount and deflators'!$H$5","v":0.02}]
[null,"Uplift factor",null,{"$f":"IF(D$6=0,0,(1+$D170)^(D$6-'Data Input - General'!$F$22))","v":1},{"$f":"IF(E$6=0,0,(1+$D170)^(E$6-'Data Input - General'!$F$22))","v":1.02},{"$f":"IF(F$6=0,0,(1+$D170)^(F$6-'Data Input - General'!$F$22))","v":1.0404},{"$f":"IF(G$6=0,0,(1+$D170)^(G$6-'Data Input - General'!$F$22))","v":1.0612079999999999},{"$f":"IF(H$6=0,0,(1+$D170)^(H$6-'Data Input - General'!$F$22))","v":1.08243216},{"$f":"IF(I$6=0,0,(1+$D170)^(I$6-'Data Input - General'!$F$22))","v":1.1040808032},{"$f":"IF(J$6=0,0,(1+$D170)^(J$6-'Data Input - General'!$F$22))","v":1.1261624192640001},{"$f":"IF(K$6=0,0,(1+$D170)^(K$6-'Data Input - General'!$F$22))","v":1.1486856676492798},{"$f":"IF(L$6=0,0,(1+$D170)^(L$6-'Data Input - General'!$F$22))","v":1.1716593810022655},{"$f":"IF(M$6=0,0,(1+$D170)^(M$6-'Data Input - General'!$F$22))","v":1.1950925686223108},{"$f":"IF(N$6=0,0,(1+$D170)^(N$6-'Data Input - General'!$F$22))","v":1.2189944199947571},{"$f":"IF(O$6=0,0,(1+$D170)^(O$6-'Data Input - General'!$F$22))","v":1.243374308394652},{"$f":"IF(P$6=0,0,(1+$D170)^(P$6-'Data Input - General'!$F$22))","v":1.2682417945625453},{"$f":"IF(Q$6=0,0,(1+$D170)^(Q$6-'Data Input - General'!$F$22))","v":1.2936066304537961},{"$f":"IF(R$6=0,0,(1+$D170)^(R$6-'Data Input - General'!$F$22))","v":1.3194787630628722},{"$f":"IF(S$6=0,0,(1+$D170)^(S$6-'Data Input - General'!$F$22))","v":1.3458683383241292},{"$f":"IF(T$6=0,0,(1+$D170)^(T$6-'Data Input - General'!$F$22))","v":1.372785705090612},{"$f":"IF(U$6=0,0,(1+$D170)^(U$6-'Data Input - General'!$F$22))","v":1.4002414191924244},{"$f":"IF(V$6=0,0,(1+$D170)^(V$6-'Data Input - General'!$F$22))","v":1.4282462475762727},{"$f":"IF(W$6=0,0,(1+$D170)^(W$6-'Data Input - General'!$F$22))","v":1.4568111725277981},{"$f":"IF(X$6=0,0,(1+$D170)^(X$6-'Data Input - General'!$F$22))","v":1.4859473959783542},{"$f":"IF(Y$6=0,0,(1+$D170)^(Y$6-'Data Input - General'!$F$22))","v":1.5156663438979212},{"$f":"IF(Z$6=0,0,(1+$D170)^(Z$6-'Data Input - General'!$F$22))","v":1.5459796707758797},{"$f":"IF(AA$6=0,0,(1+$D170)^(AA$6-'Data Input - General'!$F$22))","v":1.576899264191397},{"$f":"IF(AB$6=0,0,(1+$D170)^(AB$6-'Data Input - General'!$F$22))","v":1.608437249475225},{"$f":"IF(AC$6=0,0,(1+$D170)^(AC$6-'Data Input - General'!$F$22))","v":1.6406059944647295},{"$f":"IF(AD$6=0,0,(1+$D170)^(AD$6-'Data Input - General'!$F$22))","v":1.6734181143540243},{"$f":"IF(AE$6=0,0,(1+$D170)^(AE$6-'Data Input - General'!$F$22))","v":1.7068864766411045},{"$f":"IF(AF$6=0,0,(1+$D170)^(AF$6-'Data Input - General'!$F$22))","v":1.7410242061739269},{"$f":"IF(AG$6=0,0,(1+$D170)^(AG$6-'Data Input - General'!$F$22))","v":1.7758446902974052},{"$f":"IF(AH$6=0,0,(1+$D170)^(AH$6-'Data Input - General'!$F$22))","v":1.8113615841033535},{"$f":"IF(AI$6=0,0,(1+$D170)^(AI$6-'Data Input - General'!$F$22))","v":0},{"$f":"IF(AJ$6=0,0,(1+$D170)^(AJ$6-'Data Input - General'!$F$22))","v":0},{"$f":"IF(AK$6=0,0,(1+$D170)^(AK$6-'Data Input - General'!$F$22))","v":0},{"$f":"IF(AL$6=0,0,(1+$D170)^(AL$6-'Data Input - General'!$F$22))","v":0},{"$f":"IF(AM$6=0,0,(1+$D170)^(AM$6-'Data Input - General'!$F$22))","v":0},{"$f":"IF(AN$6=0,0,(1+$D170)^(AN$6-'Data Input - General'!$F$22))","v":0},{"$f":"IF(AO$6=0,0,(1+$D170)^(AO$6-'Data Input - General'!$F$22))","v":0},{"$f":"IF(AP$6=0,0,(1+$D170)^(AP$6-'Data Input - General'!$F$22))","v":0},{"$f":"IF(AQ$6=0,0,(1+$D170)^(AQ$6-'Data Input - General'!$F$22))","v":0},{"$f":"IF(AR$6=0,0,(1+$D170)^(AR$6-'Data Input - General'!$F$22))","v":0},{"$f":"IF(AS$6=0,0,(1+$D170)^(AS$6-'Data Input - General'!$F$22))","v":0},{"$f":"IF(AT$6=0,0,(1+$D170)^(AT$6-'Data Input - General'!$F$22))","v":0},{"$f":"IF(AU$6=0,0,(1+$D170)^(AU$6-'Data Input - General'!$F$22))","v":0},{"$f":"IF(AV$6=0,0,(1+$D170)^(AV$6-'Data Input - General'!$F$22))","v":0},{"$f":"IF(AW$6=0,0,(1+$D170)^(AW$6-'Data Input - General'!$F$22))","v":0},{"$f":"IF(AX$6=0,0,(1+$D170)^(AX$6-'Data Input - General'!$F$22))","v":0},{"$f":"IF(AY$6=0,0,(1+$D170)^(AY$6-'Data Input - General'!$F$22))","v":0},{"$f":"IF(AZ$6=0,0,(1+$D170)^(AZ$6-'Data Input - General'!$F$22))","v":0},{"$f":"IF(BA$6=0,0,(1+$D170)^(BA$6-'Data Input - General'!$F$22))","v":0},{"$f":"IF(BB$6=0,0,(1+$D170)^(BB$6-'Data Input - General'!$F$22))","v":0},{"$f":"IF(BC$6=0,0,(1+$D170)^(BC$6-'Data Input - General'!$F$22))","v":0},{"$f":"IF(BD$6=0,0,(1+$D170)^(BD$6-'Data Input - General'!$F$22))","v":0},{"$f":"IF(BE$6=0,0,(1+$D170)^(BE$6-'Data Input - General'!$F$22))","v":0},{"$f":"IF(BF$6=0,0,(1+$D170)^(BF$6-'Data Input - General'!$F$22))","v":0},{"$f":"IF(BG$6=0,0,(1+$D170)^(BG$6-'Data Input - General'!$F$22))","v":0},{"$f":"IF(BH$6=0,0,(1+$D170)^(BH$6-'Data Input - General'!$F$22))","v":0},{"$f":"IF(BI$6=0,0,(1+$D170)^(BI$6-'Data Input - General'!$F$22))","v":0},{"$f":"IF(BJ$6=0,0,(1+$D170)^(BJ$6-'Data Input - General'!$F$22))","v":0},{"$f":"IF(BK$6=0,0,(1+$D170)^(BK$6-'Data Input - General'!$F$22))","v":0},{"$f":"IF(BL$6=0,0,(1+$D170)^(BL$6-'Data Input - General'!$F$22))","v":0},{"$f":"IF(BM$6=0,0,(1+$D170)^(BM$6-'Data Input - General'!$F$22))","v":0},{"$f":"IF(BN$6=0,0,(1+$D170)^(BN$6-'Data Input - General'!$F$22))","v":0},{"$f":"IF(BO$6=0,0,(1+$D170)^(BO$6-'Data Input - General'!$F$22))","v":0},{"$f":"IF(BP$6=0,0,(1+$D170)^(BP$6-'Data Input - General'!$F$22))","v":0},{"$f":"IF(BQ$6=0,0,(1+$D170)^(BQ$6-'Data Input - General'!$F$22))","v":0},{"$f":"IF(BR$6=0,0,(1+$D170)^(BR$6-'Data Input - General'!$F$22))","v":0},{"$f":"IF(BS$6=0,0,(1+$D170)^(BS$6-'Data Input - General'!$F$22))","v":0},{"$f":"IF(BT$6=0,0,(1+$D170)^(BT$6-'Data Input - General'!$F$22))","v":0},{"$f":"IF(BU$6=0,0,(1+$D170)^(BU$6-'Data Input - General'!$F$22))","v":0},{"$f":"IF(BV$6=0,0,(1+$D170)^(BV$6-'Data Input - General'!$F$22))","v":0},{"$f":"IF(BW$6=0,0,(1+$D170)^(BW$6-'Data Input - General'!$F$22))","v":0},{"$f":"IF(BX$6=0,0,(1+$D170)^(BX$6-'Data Input - General'!$F$22))","v":0},{"$f":"IF(BY$6=0,0,(1+$D170)^(BY$6-'Data Input - General'!$F$22))","v":0},{"$f":"IF(BZ$6=0,0,(1+$D170)^(BZ$6-'Data Input - General'!$F$22))","v":0},{"$f":"IF(CA$6=0,0,(1+$D170)^(CA$6-'Data Input - General'!$F$22))","v":0},{"$f":"IF(CB$6=0,0,(1+$D170)^(CB$6-'Data Input - General'!$F$22))","v":0},{"$f":"IF(CC$6=0,0,(1+$D170)^(CC$6-'Data Input - General'!$F$22))","v":0},{"$f":"IF(CD$6=0,0,(1+$D170)^(CD$6-'Data Input - General'!$F$22))","v":0},{"$f":"IF(CE$6=0,0,(1+$D170)^(CE$6-'Data Input - General'!$F$22))","v":0},{"$f":"IF(CF$6=0,0,(1+$D170)^(CF$6-'Data Input - General'!$F$22))","v":0},{"$f":"IF(CG$6=0,0,(1+$D170)^(CG$6-'Data Input - General'!$F$22))","v":0},{"$f":"IF(CH$6=0,0,(1+$D170)^(CH$6-'Data Input - General'!$F$22))","v":0},{"$f":"IF(CI$6=0,0,(1+$D170)^(CI$6-'Data Input - General'!$F$22))","v":0},{"$f":"IF(CJ$6=0,0,(1+$D170)^(CJ$6-'Data Input - General'!$F$22))","v":0},{"$f":"IF(CK$6=0,0,(1+$D170)^(CK$6-'Data Input - General'!$F$22))","v":0},{"$f":"IF(CL$6=0,0,(1+$D170)^(CL$6-'Data Input - General'!$F$22))","v":0},{"$f":"IF(CM$6=0,0,(1+$D170)^(CM$6-'Data Input - General'!$F$22))","v":0},{"$f":"IF(CN$6=0,0,(1+$D170)^(CN$6-'Data Input - General'!$F$22))","v":0},{"$f":"IF(CO$6=0,0,(1+$D170)^(CO$6-'Data Input - General'!$F$22))","v":0},{"$f":"IF(CP$6=0,0,(1+$D170)^(CP$6-'Data Input - General'!$F$22))","v":0},{"$f":"IF(CQ$6=0,0,(1+$D170)^(CQ$6-'Data Input - General'!$F$22))","v":0},{"$f":"IF(CR$6=0,0,(1+$D170)^(CR$6-'Data Input - General'!$F$22))","v":0},{"$f":"IF(CS$6=0,0,(1+$D170)^(CS$6-'Data Input - General'!$F$22))","v":0},{"$f":"IF(CT$6=0,0,(1+$D170)^(CT$6-'Data Input - General'!$F$22))","v":0},{"$f":"IF(CU$6=0,0,(1+$D170)^(CU$6-'Data Input - General'!$F$22))","v":0},{"$f":"IF(CV$6=0,0,(1+$D170)^(CV$6-'Data Input - General'!$F$22))","v":0},{"$f":"IF(CW$6=0,0,(1+$D170)^(CW$6-'Data Input - General'!$F$22))","v":0},{"$f":"IF(CX$6=0,0,(1+$D170)^(CX$6-'Data Input - General'!$F$22))","v":0},{"$f":"IF(CY$6=0,0,(1+$D170)^(CY$6-'Data Input - General'!$F$22))","v":0}]
[null,"Total value","£000's",{"$f":"SUM(D162:D167)*D171","v":2.8196724451830959},{"$f":"SUM(E162:E167)*E171","v":2.8760658940867581},{"$f":"SUM(F162:F167)*F171","v":2.9335872119684931},2.9922589562078628,3.0521041353320202,3.1131462180386604,3.1754091423994337,3.2389173252474217,0,0,0,0,0,0,0,0,0,0,0,0,0,0,0,0,0,0,0,0,0,0,0,0,{"$f":"SUM(AJ162:AJ167)*AJ171","v":0},0,0,0,0,0,0,0,0,0,0,0,0,0,0,0,0,0,0,0,0,0,0,0,0,0,0,0,{"$f":"SUM(BL162:BL167)*BL171","v":0},0,0,0,0,0,0,0,0,0,0,0,0,0,0,0,0,0,0,0,0,0,0,0,0,0,0,0,0,0,0,0,0,0,0,0,0,0,0,0]
[null,"Discounted total value","£000's",{"$f":"D172*D$7","v":2.8196724451830959},2.7788076271369646,2.7385350528306316,2.6988461390214922,2.6597324268617606,2.6211855800956481,2.583197383282668,2.5457597400466874,0,0,0,0,0,0,0,0,0,0,0,0,0,0,0,0,0,0,0,0,0,0,0,0,0,0,0,0,0,0,0,0,0,0,0,0,0,0,0,0,0,0,0,0,0,0,0,0,0,0,0,0,0,0,0,0,{"$f":"BP172*BP$7","v":0},0,0,0,0,0,0,0,0,0,0,0,0,0,0,0,0,0,0,0,0,0,0,0,0,0,0,0,0,0,0,0,0,0,0,0]
[]
[null,"Low high capex"]
[]
[null,"Low high range","%",{"$f":"'Data Input - Option 3'!F34","v":0}]
[]
[null,"Low high opex"]
[]
[null,"Low high range","%",{"$f":"'Data Input - Option 3'!F54","v":0.2}]
[]
[null,"Low high WACC"]
[]
[null,"Low WACC","%",{"$f":"'Data Input - General'!F16","v":0.06}]
[null,"Annualised payment","£000's",{"$f":"IFERROR(-PMT($D$185,SUM('Data Input - General'!$I$26:$I$28),D20*1000)/1000,0)","v":0}]
[null,"Annual value","£000's",{"$f":"IF(SUM($D$12:D$12)=0,0,$D$186)","v":0},{"$f":"IF(SUM($D$12:E$12)=0,0,$D$186)","v":0},{"$f":"IF(SUM($D$12:F$12)=0,0,$D$186)","v":0},{"$f":"IF(SUM($D$12:G$12)=0,0,$D$186)","v":0},{"$f":"IF(SUM($D$12:H$12)=0,0,$D$186)","v":0},{"$f":"IF(SUM($D$12:I$12)=0,0,$D$186)","v":0},{"$f":"IF(SUM($D$12:J$12)=0,0,$D$186)","v":0},{"$f":"IF(SUM($D$12:K$12)=0,0,$D$186)","v":0},{"$f":"IF(SUM($D$12:L$12)=0,0,$D$186)","v":0},{"$f":"IF(SUM($D$12:M$12)=0,0,$D$186)","v":0},{"$f":"IF(SUM($D$12:N$12)=0,0,$D$186)","v":0},{"$f":"IF(SUM($D$12:O$12)=0,0,$D$186)","v":0},{"$f":"IF(SUM($D$12:P$12)=0,0,$D$186)","v":0},{"$f":"IF(SUM($D$12:Q$12)=0,0,$D$186)","v":0},{"$f":"IF(SUM($D$12:R$12)=0,0,$D$186)","v":0},{"$f":"IF(SUM($D$12:S$12)=0,0,$D$186)","v":0},{"$f":"IF(SUM($D$12:T$12)=0,0,$D$186)","v":0},{"$f":"IF(SUM($D$12:U$12)=0,0,$D$186)","v":0},{"$f":"IF(SUM($D$12:V$12)=0,0,$D$186)","v":0},{"$f":"IF(SUM($D$12:W$12)=0,0,$D$186)","v":0},{"$f":"IF(SUM($D$12:X$12)=0,0,$D$186)","v":0},{"$f":"IF(SUM($D$12:Y$12)=0,0,$D$186)","v":0},{"$f":"IF(SUM($D$12:Z$12)=0,0,$D$186)","v":0},{"$f":"IF(SUM($D$12:AA$12)=0,0,$D$186)","v":0},{"$f":"IF(SUM($D$12:AB$12)=0,0,$D$186)","v":0},{"$f":"IF(SUM($D$12:AC$12)=0,0,$D$186)","v":0},{"$f":"IF(SUM($D$12:AD$12)=0,0,$D$186)","v":0},{"$f":"IF(SUM($D$12:AE$12)=0,0,$D$186)","v":0},{"$f":"IF(SUM($D$12:AF$12)=0,0,$D$186)","v":0},{"$f":"IF(SUM($D$12:AG$12)=0,0,$D$186)","v":0},{"$f":"IF(SUM($D$12:AH$12)=0,0,$D$186)","v":0},{"$f":"IF(SUM($D$12:AI$12)=0,0,$D$186)","v":0},{"$f":"IF(SUM($D$12:AJ$12)=0,0,$D$186)","v":0},{"$f":"IF(SUM($D$12:AK$12)=0,0,$D$186)","v":0},{"$f":"IF(SUM($D$12:AL$12)=0,0,$D$186)","v":0},{"$f":"IF(SUM($D$12:AM$12)=0,0,$D$186)","v":0},{"$f":"IF(SUM($D$12:AN$12)=0,0,$D$186)","v":0},{"$f":"IF(SUM($D$12:AO$12)=0,0,$D$186)","v":0},{"$f":"IF(SUM($D$12:AP$12)=0,0,$D$186)","v":0},{"$f":"IF(SUM($D$12:AQ$12)=0,0,$D$186)","v":0},{"$f":"IF(SUM($D$12:AR$12)=0,0,$D$186)","v":0},{"$f":"IF(SUM($D$12:AS$12)=0,0,$D$186)","v":0},{"$f":"IF(SUM($D$12:AT$12)=0,0,$D$186)","v":0},{"$f":"IF(SUM($D$12:AU$12)=0,0,$D$186)","v":0},{"$f":"IF(SUM($D$12:AV$12)=0,0,$D$186)","v":0},{"$f":"IF(SUM($D$12:AW$12)=0,0,$D$186)","v":0},{"$f":"IF(SUM($D$12:AX$12)=0,0,$D$186)","v":0},{"$f":"IF(SUM($D$12:AY$12)=0,0,$D$186)","v":0},{"$f":"IF(SUM($D$12:AZ$12)=0,0,$D$186)","v":0},{"$f":"IF(SUM($D$12:BA$12)=0,0,$D$186)","v":0},{"$f":"IF(SUM($D$12:BB$12)=0,0,$D$186)","v":0},{"$f":"IF(SUM($D$12:BC$12)=0,0,$D$186)","v":0},{"$f":"IF(SUM($D$12:BD$12)=0,0,$D$186)","v":0},{"$f":"IF(SUM($D$12:BE$12)=0,0,$D$186)","v":0},{"$f":"IF(SUM($D$12:BF$12)=0,0,$D$186)","v":0},{"$f":"IF(SUM($D$12:BG$12)=0,0,$D$186)","v":0},{"$f":"IF(SUM($D$12:BH$12)=0,0,$D$186)","v":0},{"$f":"IF(SUM($D$12:BI$12)=0,0,$D$186)","v":0},{"$f":"IF(SUM($D$12:BJ$12)=0,0,$D$186)","v":0},{"$f":"IF(SUM($D$12:BK$12)=0,0,$D$186)","v":0},{"$f":"IF(SUM($D$12:BL$12)=0,0,$D$186)","v":0},{"$f":"IF(SUM($D$12:BM$12)=0,0,$D$186)","v":0},{"$f":"IF(SUM($D$12:BN$12)=0,0,$D$186)","v":0},{"$f":"IF(SUM($D$12:BO$12)=0,0,$D$186)","v":0},{"$f":"IF(SUM($D$12:BP$12)=0,0,$D$186)","v":0},{"$f":"IF(SUM($D$12:BQ$12)=0,0,$D$186)","v":0},{"$f":"IF(SUM($D$12:BR$12)=0,0,$D$186)","v":0},{"$f":"IF(SUM($D$12:BS$12)=0,0,$D$186)","v":0},{"$f":"IF(SUM($D$12:BT$12)=0,0,$D$186)","v":0},{"$f":"IF(SUM($D$12:BU$12)=0,0,$D$186)","v":0},{"$f":"IF(SUM($D$12:BV$12)=0,0,$D$186)","v":0},{"$f":"IF(SUM($D$12:BW$12)=0,0,$D$186)","v":0},{"$f":"IF(SUM($D$12:BX$12)=0,0,$D$186)","v":0},{"$f":"IF(SUM($D$12:BY$12)=0,0,$D$186)","v":0},{"$f":"IF(SUM($D$12:BZ$12)=0,0,$D$186)","v":0},{"$f":"IF(SUM($D$12:CA$12)=0,0,$D$186)","v":0},{"$f":"IF(SUM($D$12:CB$12)=0,0,$D$186)","v":0},{"$f":"IF(SUM($D$12:CC$12)=0,0,$D$186)","v":0},{"$f":"IF(SUM($D$12:CD$12)=0,0,$D$186)","v":0},{"$f":"IF(SUM($D$12:CE$12)=0,0,$D$186)","v":0},{"$f":"IF(SUM($D$12:CF$12)=0,0,$D$186)","v":0},{"$f":"IF(SUM($D$12:CG$12)=0,0,$D$186)","v":0},{"$f":"IF(SUM($D$12:CH$12)=0,0,$D$186)","v":0},{"$f":"IF(SUM($D$12:CI$12)=0,0,$D$186)","v":0},{"$f":"IF(SUM($D$12:CJ$12)=0,0,$D$186)","v":0},{"$f":"IF(SUM($D$12:CK$12)=0,0,$D$186)","v":0},{"$f":"IF(SUM($D$12:CL$12)=0,0,$D$186)","v":0},{"$f":"IF(SUM($D$12:CM$12)=0,0,$D$186)","v":0},{"$f":"IF(SUM($D$12:CN$12)=0,0,$D$186)","v":0},{"$f":"IF(SUM($D$12:CO$12)=0,0,$D$186)","v":0},{"$f":"IF(SUM($D$12:CP$12)=0,0,$D$186)","v":0},{"$f":"IF(SUM($D$12:CQ$12)=0,0,$D$186)","v":0},{"$f":"IF(SUM($D$12:CR$12)=0,0,$D$186)","v":0},{"$f":"IF(SUM($D$12:CS$12)=0,0,$D$186)","v":0},{"$f":"IF(SUM($D$12:CT$12)=0,0,$D$186)","v":0},{"$f":"IF(SUM($D$12:CU$12)=0,0,$D$186)","v":0},{"$f":"IF(SUM($D$12:CV$12)=0,0,$D$186)","v":0},{"$f":"IF(SUM($D$12:CW$12)=0,0,$D$186)","v":0},{"$f":"IF(SUM($D$12:CX$12)=0,0,$D$186)","v":0},{"$f":"IF(SUM($D$12:CY$12)=0,0,$D$186)","v":0}]
[null,"Discounted WACC","£000's",{"$f":"D187*D$7","v":0},0,0,0,0,0,0,0,0,0,0,0,0,0,0,0,0,0,0,0,0,0,0,0,0,0,0,0,0,0,0,0,0,0,0,0,0,0,0,0,0,0,0,0,0,0,0,0,0,0,0,0,0,0,0,0,0,0,0,0,0,0,0,0,{"$f":"BP187*BP$7","v":0},0,0,0,0,0,0,0,0,0,0,0,0,0,0,0,0,0,0,0,0,0,0,0,0,0,0,0,0,0,0,0,0,0,0,0]
[]
[null,"Financing costs"]
[null,"Financing costs (if entered manually)","£000's",{"$f":"'Data Input - Option 3'!H41","v":0},{"$f":"'Data Input - Option 3'!I41","v":0},{"$f":"'Data Input - Option 3'!J41","v":0},{"$f":"'Data Input - Option 3'!K41","v":0},{"$f":"'Data Input - Option 3'!L41","v":0},{"$f":"'Data Input - Option 3'!M41","v":0},{"$f":"'Data Input - Option 3'!N41","v":0},{"$f":"'Data Input - Option 3'!O41","v":0},{"$f":"'Data Input - Option 3'!P41","v":0},{"$f":"'Data Input - Option 3'!Q41","v":0},{"$f":"'Data Input - Option 3'!R41","v":0},{"$f":"'Data Input - Option 3'!S41","v":0},{"$f":"'Data Input - Option 3'!T41","v":0},{"$f":"'Data Input - Option 3'!U41","v":0},{"$f":"'Data Input - Option 3'!V41","v":0},{"$f":"'Data Input - Option 3'!W41","v":0},{"$f":"'Data Input - Option 3'!X41","v":0},{"$f":"'Data Input - Option 3'!Y41","v":0},{"$f":"'Data Input - Option 3'!Z41","v":0},{"$f":"'Data Input - Option 3'!AA41","v":0},{"$f":"'Data Input - Option 3'!AB41","v":0},{"$f":"'Data Input - Option 3'!AC41","v":0},{"$f":"'Data Input - Option 3'!AD41","v":0},{"$f":"'Data Input - Option 3'!AE41","v":0},{"$f":"'Data Input - Option 3'!AF41","v":0},{"$f":"'Data Input - Option 3'!AG41","v":0},{"$f":"'Data Input - Option 3'!AH41","v":0},{"$f":"'Data Input - Option 3'!AI41","v":0},{"$f":"'Data Input - Option 3'!AJ41","v":0},{"$f":"'Data Input - Option 3'!AK41","v":0},{"$f":"'Data Input - Option 3'!AL41","v":0},{"$f":"'Data Input - Option 3'!AM41","v":0},{"$f":"'Data Input - Option 3'!AN41","v":0},{"$f":"'Data Input - Option 3'!AO41","v":0},{"$f":"'Data Input - Option 3'!AP41","v":0},{"$f":"'Data Input - Option 3'!AQ41","v":0},{"$f":"'Data Input - Option 3'!AR41","v":0},{"$f":"'Data Input - Option 3'!AS41","v":0},{"$f":"'Data Input - Option 3'!AT41","v":0},{"$f":"'Data Input - Option 3'!AU41","v":0},{"$f":"'Data Input - Option 3'!AV41","v":0},{"$f":"'Data Input - Option 3'!AW41","v":0},{"$f":"'Data Input - Option 3'!AX41","v":0},{"$f":"'Data Input - Option 3'!AY41","v":0},{"$f":"'Data Input - Option 3'!AZ41","v":0},{"$f":"'Data Input - Option 3'!BA41","v":0},{"$f":"'Data Input - Option 3'!BB41","v":0},{"$f":"'Data Input - Option 3'!BC41","v":0},{"$f":"'Data Input - Option 3'!BD41","v":0},{"$f":"'Data Input - Option 3'!BE41","v":0},{"$f":"'Data Input - Option 3'!BF41","v":0},{"$f":"'Data Input - Option 3'!BG41","v":0},{"$f":"'Data Input - Option 3'!BH41","v":0},{"$f":"'Data Input - Option 3'!BI41","v":0},{"$f":"'Data Input - Option 3'!BJ41","v":0},{"$f":"'Data Input - Option 3'!BK41","v":0},{"$f":"'Data Input - Option 3'!BL41","v":0},{"$f":"'Data Input - Option 3'!BM41","v":0},{"$f":"'Data Input - Option 3'!BN41","v":0},{"$f":"'Data Input - Option 3'!BO41","v":0},{"$f":"'Data Input - Option 3'!BP41","v":0},{"$f":"'Data Input - Option 3'!BQ41","v":0},{"$f":"'Data Input - Option 3'!BR41","v":0},{"$f":"'Data Input - Option 3'!BS41","v":0},{"$f":"'Data Input - Option 3'!BT41","v":0},{"$f":"'Data Input - Option 3'!BU41","v":0},{"$f":"'Data Input - Option 3'!BV41","v":0},{"$f":"'Data Input - Option 3'!BW41","v":0},{"$f":"'Data Input - Option 3'!BX41","v":0},{"$f":"'Data Input - Option 3'!BY41","v":0},{"$f":"'Data Input - Option 3'!BZ41","v":0},{"$f":"'Data Input - Option 3'!CA41","v":0},{"$f":"'Data Input - Option 3'!CB41","v":0},{"$f":"'Data Input - Option 3'!CC41","v":0},{"$f":"'Data Input - Option 3'!CD41","v":0},{"$f":"'Data Input - Option 3'!CE41","v":0},{"$f":"'Data Input - Option 3'!CF41","v":0},{"$f":"'Data Input - Option 3'!CG41","v":0},{"$f":"'Data Input - Option 3'!CH41","v":0},{"$f":"'Data Input - Option 3'!CI41","v":0},{"$f":"'Data Input - Option 3'!CJ41","v":0},{"$f":"'Data Input - Option 3'!CK41","v":0},{"$f":"'Data Input - Option 3'!CL41","v":0},{"$f":"'Data Input - Option 3'!CM41","v":0},{"$f":"'Data Input - Option 3'!CN41","v":0},{"$f":"'Data Input - Option 3'!CO41","v":0},{"$f":"'Data Input - Option 3'!CP41","v":0},{"$f":"'Data Input - Option 3'!CQ41","v":0},{"$f":"'Data Input - Option 3'!CR41","v":0},{"$f":"'Data Input - Option 3'!CS41","v":0},{"$f":"'Data Input - Option 3'!CT41","v":0},{"$f":"'Data Input - Option 3'!CU41","v":0},{"$f":"'Data Input - Option 3'!CV41","v":0},{"$f":"'Data Input - Option 3'!CW41","v":0},{"$f":"'Data Input - Option 3'!CX41","v":0},{"$f":"'Data Input - Option 3'!CY41","v":0},{"$f":"'Data Input - Option 3'!CZ41","v":0},{"$f":"'Data Input - Option 3'!DA41","v":0},{"$f":"'Data Input - Option 3'!DB41","v":0},{"$f":"'Data Input - Option 3'!DC41","v":0}]
[null,"Discounted finacning","£000's",{"$f":"D191*D$7","v":0},0,0,0,0,0,0,0,0,0,0,0,0,0,0,0,0,0,0,0,0,0,0,0,0,0,0,0,0,0,0,0,0,0,0,0,0,0,0,0,0,0,0,0,0,0,0,0,0,0,0,0,0,0,0,0,0,0,0,0,0,0,0,0,{"$f":"BP191*BP$7","v":0},0,0,0,0,0,0,0,0,0,0,0,0,0,0,0,0,0,0,0,0,0,0,0,0,0,0,0,0,0,0,0,0,0,0,0]
[]
[null,"Total capex","£000's",{"$f":"IF('Data Input - Option 3'!$F$37=\"Yes\",D192+D13,D188)","v":0},{"$f":"IF('Data Input - Option 3'!$F$37=\"Yes\",E192+E13,E188)","v":0},{"$f":"IF('Data Input - Option 3'!$F$37=\"Yes\",F192+F13,F188)","v":0},{"$f":"IF('Data Input - Option 3'!$F$37=\"Yes\",G192+G13,G188)","v":0},{"$f":"IF('Data Input - Option 3'!$F$37=\"Yes\",H192+H13,H188)","v":0},{"$f":"IF('Data Input - Option 3'!$F$37=\"Yes\",I192+I13,I188)","v":0},{"$f":"IF('Data Input - Option 3'!$F$37=\"Yes\",J192+J13,J188)","v":0},{"$f":"IF('Data Input - Option 3'!$F$37=\"Yes\",K192+K13,K188)","v":0},{"$f":"IF('Data Input - Option 3'!$F$37=\"Yes\",L192+L13,L188)","v":0},{"$f":"IF('Data Input - Option 3'!$F$37=\"Yes\",M192+M13,M188)","v":0},{"$f":"IF('Data Input - Option 3'!$F$37=\"Yes\",N192+N13,N188)","v":0},{"$f":"IF('Data Input - Option 3'!$F$37=\"Yes\",O192+O13,O188)","v":0},{"$f":"IF('Data Input - Option 3'!$F$37=\"Yes\",P192+P13,P188)","v":0},{"$f":"IF('Data Input - Option 3'!$F$37=\"Yes\",Q192+Q13,Q188)","v":0},{"$f":"IF('Data Input - Option 3'!$F$37=\"Yes\",R192+R13,R188)","v":0},{"$f":"IF('Data Input - Option 3'!$F$37=\"Yes\",S192+S13,S188)","v":0},{"$f":"IF('Data Input - Option 3'!$F$37=\"Yes\",T192+T13,T188)","v":0},{"$f":"IF('Data Input - Option 3'!$F$37=\"Yes\",U192+U13,U188)","v":0},{"$f":"IF('Data Input - Option 3'!$F$37=\"Yes\",V192+V13,V188)","v":0},{"$f":"IF('Data Input - Option 3'!$F$37=\"Yes\",W192+W13,W188)","v":0},{"$f":"IF('Data Input - Option 3'!$F$37=\"Yes\",X192+X13,X188)","v":0},{"$f":"IF('Data Input - Option 3'!$F$37=\"Yes\",Y192+Y13,Y188)","v":0},{"$f":"IF('Data Input - Option 3'!$F$37=\"Yes\",Z192+Z13,Z188)","v":0},{"$f":"IF('Data Input - Option 3'!$F$37=\"Yes\",AA192+AA13,AA188)","v":0},{"$f":"IF('Data Input - Option 3'!$F$37=\"Yes\",AB192+AB13,AB188)","v":0},{"$f":"IF('Data Input - Option 3'!$F$37=\"Yes\",AC192+AC13,AC188)","v":0},{"$f":"IF('Data Input - Option 3'!$F$37=\"Yes\",AD192+AD13,AD188)","v":0},{"$f":"IF('Data Input - Option 3'!$F$37=\"Yes\",AE192+AE13,AE188)","v":0},{"$f":"IF('Data Input - Option 3'!$F$37=\"Yes\",AF192+AF13,AF188)","v":0},{"$f":"IF('Data Input - Option 3'!$F$37=\"Yes\",AG192+AG13,AG188)","v":0},{"$f":"IF('Data Input - Option 3'!$F$37=\"Yes\",AH192+AH13,AH188)","v":0},{"$f":"IF('Data Input - Option 3'!$F$37=\"Yes\",AI192+AI13,AI188)","v":0},{"$f":"IF('Data Input - Option 3'!$F$37=\"Yes\",AJ192+AJ13,AJ188)","v":0},{"$f":"IF('Data Input - Option 3'!$F$37=\"Yes\",AK192+AK13,AK188)","v":0},{"$f":"IF('Data Input - Option 3'!$F$37=\"Yes\",AL192+AL13,AL188)","v":0},{"$f":"IF('Data Input - Option 3'!$F$37=\"Yes\",AM192+AM13,AM188)","v":0},{"$f":"IF('Data Input - Option 3'!$F$37=\"Yes\",AN192+AN13,AN188)","v":0},{"$f":"IF('Data Input - Option 3'!$F$37=\"Yes\",AO192+AO13,AO188)","v":0},{"$f":"IF('Data Input - Option 3'!$F$37=\"Yes\",AP192+AP13,AP188)","v":0},{"$f":"IF('Data Input - Option 3'!$F$37=\"Yes\",AQ192+AQ13,AQ188)","v":0},{"$f":"IF('Data Input - Option 3'!$F$37=\"Yes\",AR192+AR13,AR188)","v":0},{"$f":"IF('Data Input - Option 3'!$F$37=\"Yes\",AS192+AS13,AS188)","v":0},{"$f":"IF('Data Input - Option 3'!$F$37=\"Yes\",AT192+AT13,AT188)","v":0},{"$f":"IF('Data Input - Option 3'!$F$37=\"Yes\",AU192+AU13,AU188)","v":0},{"$f":"IF('Data Input - Option 3'!$F$37=\"Yes\",AV192+AV13,AV188)","v":0},{"$f":"IF('Data Input - Option 3'!$F$37=\"Yes\",AW192+AW13,AW188)","v":0},{"$f":"IF('Data Input - Option 3'!$F$37=\"Yes\",AX192+AX13,AX188)","v":0},{"$f":"IF('Data Input - Option 3'!$F$37=\"Yes\",AY192+AY13,AY188)","v":0},{"$f":"IF('Data Input - Option 3'!$F$37=\"Yes\",AZ192+AZ13,AZ188)","v":0},{"$f":"IF('Data Input - Option 3'!$F$37=\"Yes\",BA192+BA13,BA188)","v":0},{"$f":"IF('Data Input - Option 3'!$F$37=\"Yes\",BB192+BB13,BB188)","v":0},{"$f":"IF('Data Input - Option 3'!$F$37=\"Yes\",BC192+BC13,BC188)","v":0},{"$f":"IF('Data Input - Option 3'!$F$37=\"Yes\",BD192+BD13,BD188)","v":0},{"$f":"IF('Data Input - Option 3'!$F$37=\"Yes\",BE192+BE13,BE188)","v":0},{"$f":"IF('Data Input - Option 3'!$F$37=\"Yes\",BF192+BF13,BF188)","v":0},{"$f":"IF('Data Input - Option 3'!$F$37=\"Yes\",BG192+BG13,BG188)","v":0},{"$f":"IF('Data Input - Option 3'!$F$37=\"Yes\",BH192+BH13,BH188)","v":0},{"$f":"IF('Data Input - Option 3'!$F$37=\"Yes\",BI192+BI13,BI188)","v":0},{"$f":"IF('Data Input - Option 3'!$F$37=\"Yes\",BJ192+BJ13,BJ188)","v":0},{"$f":"IF('Data Input - Option 3'!$F$37=\"Yes\",BK192+BK13,BK188)","v":0},{"$f":"IF('Data Input - Option 3'!$F$37=\"Yes\",BL192+BL13,BL188)","v":0},{"$f":"IF('Data Input - Option 3'!$F$37=\"Yes\",BM192+BM13,BM188)","v":0},{"$f":"IF('Data Input - Option 3'!$F$37=\"Yes\",BN192+BN13,BN188)","v":0},{"$f":"IF('Data Input - Option 3'!$F$37=\"Yes\",BO192+BO13,BO188)","v":0},{"$f":"IF('Data Input - Option 3'!$F$37=\"Yes\",BP192+BP13,BP188)","v":0},{"$f":"IF('Data Input - Option 3'!$F$37=\"Yes\",BQ192+BQ13,BQ188)","v":0},{"$f":"IF('Data Input - Option 3'!$F$37=\"Yes\",BR192+BR13,BR188)","v":0},{"$f":"IF('Data Input - Option 3'!$F$37=\"Yes\",BS192+BS13,BS188)","v":0},{"$f":"IF('Data Input - Option 3'!$F$37=\"Yes\",BT192+BT13,BT188)","v":0},{"$f":"IF('Data Input - Option 3'!$F$37=\"Yes\",BU192+BU13,BU188)","v":0},{"$f":"IF('Data Input - Option 3'!$F$37=\"Yes\",BV192+BV13,BV188)","v":0},{"$f":"IF('Data Input - Option 3'!$F$37=\"Yes\",BW192+BW13,BW188)","v":0},{"$f":"IF('Data Input - Option 3'!$F$37=\"Yes\",BX192+BX13,BX188)","v":0},{"$f":"IF('Data Input - Option 3'!$F$37=\"Yes\",BY192+BY13,BY188)","v":0},{"$f":"IF('Data Input - Option 3'!$F$37=\"Yes\",BZ192+BZ13,BZ188)","v":0},{"$f":"IF('Data Input - Option 3'!$F$37=\"Yes\",CA192+CA13,CA188)","v":0},{"$f":"IF('Data Input - Option 3'!$F$37=\"Yes\",CB192+CB13,CB188)","v":0},{"$f":"IF('Data Input - Option 3'!$F$37=\"Yes\",CC192+CC13,CC188)","v":0},{"$f":"IF('Data Input - Option 3'!$F$37=\"Yes\",CD192+CD13,CD188)","v":0},{"$f":"IF('Data Input - Option 3'!$F$37=\"Yes\",CE192+CE13,CE188)","v":0},{"$f":"IF('Data Input - Option 3'!$F$37=\"Yes\",CF192+CF13,CF188)","v":0},{"$f":"IF('Data Input - Option 3'!$F$37=\"Yes\",CG192+CG13,CG188)","v":0},{"$f":"IF('Data Input - Option 3'!$F$37=\"Yes\",CH192+CH13,CH188)","v":0},{"$f":"IF('Data Input - Option 3'!$F$37=\"Yes\",CI192+CI13,CI188)","v":0},{"$f":"IF('Data Input - Option 3'!$F$37=\"Yes\",CJ192+CJ13,CJ188)","v":0},{"$f":"IF('Data Input - Option 3'!$F$37=\"Yes\",CK192+CK13,CK188)","v":0},{"$f":"IF('Data Input - Option 3'!$F$37=\"Yes\",CL192+CL13,CL188)","v":0},{"$f":"IF('Data Input - Option 3'!$F$37=\"Yes\",CM192+CM13,CM188)","v":0},{"$f":"IF('Data Input - Option 3'!$F$37=\"Yes\",CN192+CN13,CN188)","v":0},{"$f":"IF('Data Input - Option 3'!$F$37=\"Yes\",CO192+CO13,CO188)","v":0},{"$f":"IF('Data Input - Option 3'!$F$37=\"Yes\",CP192+CP13,CP188)","v":0},{"$f":"IF('Data Input - Option 3'!$F$37=\"Yes\",CQ192+CQ13,CQ188)","v":0},{"$f":"IF('Data Input - Option 3'!$F$37=\"Yes\",CR192+CR13,CR188)","v":0},{"$f":"IF('Data Input - Option 3'!$F$37=\"Yes\",CS192+CS13,CS188)","v":0},{"$f":"IF('Data Input - Option 3'!$F$37=\"Yes\",CT192+CT13,CT188)","v":0},{"$f":"IF('Data Input - Option 3'!$F$37=\"Yes\",CU192+CU13,CU188)","v":0},{"$f":"IF('Data Input - Option 3'!$F$37=\"Yes\",CV192+CV13,CV188)","v":0},{"$f":"IF('Data Input - Option 3'!$F$37=\"Yes\",CW192+CW13,CW188)","v":0},{"$f":"IF('Data Input - Option 3'!$F$37=\"Yes\",CX192+CX13,CX188)","v":0},{"$f":"IF('Data Input - Option 3'!$F$37=\"Yes\",CY192+CY13,CY188)","v":0}]
[]
[null,"High WACC","%",{"$f":"'Data Input - General'!H16","v":7.0000000000000007E-2}]
[null,"Annualised payment","£000's",{"$f":"IFERROR(-PMT($D$196,SUM('Data Input - General'!$I$26:$I$28),D20*1000)/1000,0)","v":0}]
[null,"Annual value","£000's",{"$f":"IF(SUM($D$12:D$12)=0,0,$D$197)","v":0},{"$f":"IF(SUM($D$12:E$12)=0,0,$D$197)","v":0},{"$f":"IF(SUM($D$12:F$12)=0,0,$D$197)","v":0},{"$f":"IF(SUM($D$12:G$12)=0,0,$D$197)","v":0},{"$f":"IF(SUM($D$12:H$12)=0,0,$D$197)","v":0},{"$f":"IF(SUM($D$12:I$12)=0,0,$D$197)","v":0},{"$f":"IF(SUM($D$12:J$12)=0,0,$D$197)","v":0},{"$f":"IF(SUM($D$12:K$12)=0,0,$D$197)","v":0},{"$f":"IF(SUM($D$12:L$12)=0,0,$D$197)","v":0},{"$f":"IF(SUM($D$12:M$12)=0,0,$D$197)","v":0},{"$f":"IF(SUM($D$12:N$12)=0,0,$D$197)","v":0},{"$f":"IF(SUM($D$12:O$12)=0,0,$D$197)","v":0},{"$f":"IF(SUM($D$12:P$12)=0,0,$D$197)","v":0},{"$f":"IF(SUM($D$12:Q$12)=0,0,$D$197)","v":0},{"$f":"IF(SUM($D$12:R$12)=0,0,$D$197)","v":0},{"$f":"IF(SUM($D$12:S$12)=0,0,$D$197)","v":0},{"$f":"IF(SUM($D$12:T$12)=0,0,$D$197)","v":0},{"$f":"IF(SUM($D$12:U$12)=0,0,$D$197)","v":0},{"$f":"IF(SUM($D$12:V$12)=0,0,$D$197)","v":0},{"$f":"IF(SUM($D$12:W$12)=0,0,$D$197)","v":0},{"$f":"IF(SUM($D$12:X$12)=0,0,$D$197)","v":0},{"$f":"IF(SUM($D$12:Y$12)=0,0,$D$197)","v":0},{"$f":"IF(SUM($D$12:Z$12)=0,0,$D$197)","v":0},{"$f":"IF(SUM($D$12:AA$12)=0,0,$D$197)","v":0},{"$f":"IF(SUM($D$12:AB$12)=0,0,$D$197)","v":0},{"$f":"IF(SUM($D$12:AC$12)=0,0,$D$197)","v":0},{"$f":"IF(SUM($D$12:AD$12)=0,0,$D$197)","v":0},{"$f":"IF(SUM($D$12:AE$12)=0,0,$D$197)","v":0},{"$f":"IF(SUM($D$12:AF$12)=0,0,$D$197)","v":0},{"$f":"IF(SUM($D$12:AG$12)=0,0,$D$197)","v":0},{"$f":"IF(SUM($D$12:AH$12)=0,0,$D$197)","v":0},{"$f":"IF(SUM($D$12:AI$12)=0,0,$D$197)","v":0},{"$f":"IF(SUM($D$12:AJ$12)=0,0,$D$197)","v":0},{"$f":"IF(SUM($D$12:AK$12)=0,0,$D$197)","v":0},{"$f":"IF(SUM($D$12:AL$12)=0,0,$D$197)","v":0},{"$f":"IF(SUM($D$12:AM$12)=0,0,$D$197)","v":0},{"$f":"IF(SUM($D$12:AN$12)=0,0,$D$197)","v":0},{"$f":"IF(SUM($D$12:AO$12)=0,0,$D$197)","v":0},{"$f":"IF(SUM($D$12:AP$12)=0,0,$D$197)","v":0},{"$f":"IF(SUM($D$12:AQ$12)=0,0,$D$197)","v":0},{"$f":"IF(SUM($D$12:AR$12)=0,0,$D$197)","v":0},{"$f":"IF(SUM($D$12:AS$12)=0,0,$D$197)","v":0},{"$f":"IF(SUM($D$12:AT$12)=0,0,$D$197)","v":0},{"$f":"IF(SUM($D$12:AU$12)=0,0,$D$197)","v":0},{"$f":"IF(SUM($D$12:AV$12)=0,0,$D$197)","v":0},{"$f":"IF(SUM($D$12:AW$12)=0,0,$D$197)","v":0},{"$f":"IF(SUM($D$12:AX$12)=0,0,$D$197)","v":0},{"$f":"IF(SUM($D$12:AY$12)=0,0,$D$197)","v":0},{"$f":"IF(SUM($D$12:AZ$12)=0,0,$D$197)","v":0},{"$f":"IF(SUM($D$12:BA$12)=0,0,$D$197)","v":0},{"$f":"IF(SUM($D$12:BB$12)=0,0,$D$197)","v":0},{"$f":"IF(SUM($D$12:BC$12)=0,0,$D$197)","v":0},{"$f":"IF(SUM($D$12:BD$12)=0,0,$D$197)","v":0},{"$f":"IF(SUM($D$12:BE$12)=0,0,$D$197)","v":0},{"$f":"IF(SUM($D$12:BF$12)=0,0,$D$197)","v":0},{"$f":"IF(SUM($D$12:BG$12)=0,0,$D$197)","v":0},{"$f":"IF(SUM($D$12:BH$12)=0,0,$D$197)","v":0},{"$f":"IF(SUM($D$12:BI$12)=0,0,$D$197)","v":0},{"$f":"IF(SUM($D$12:BJ$12)=0,0,$D$197)","v":0},{"$f":"IF(SUM($D$12:BK$12)=0,0,$D$197)","v":0},{"$f":"IF(SUM($D$12:BL$12)=0,0,$D$197)","v":0},{"$f":"IF(SUM($D$12:BM$12)=0,0,$D$197)","v":0},{"$f":"IF(SUM($D$12:BN$12)=0,0,$D$197)","v":0},{"$f":"IF(SUM($D$12:BO$12)=0,0,$D$197)","v":0},{"$f":"IF(SUM($D$12:BP$12)=0,0,$D$197)","v":0},{"$f":"IF(SUM($D$12:BQ$12)=0,0,$D$197)","v":0},{"$f":"IF(SUM($D$12:BR$12)=0,0,$D$197)","v":0},{"$f":"IF(SUM($D$12:BS$12)=0,0,$D$197)","v":0},{"$f":"IF(SUM($D$12:BT$12)=0,0,$D$197)","v":0},{"$f":"IF(SUM($D$12:BU$12)=0,0,$D$197)","v":0},{"$f":"IF(SUM($D$12:BV$12)=0,0,$D$197)","v":0},{"$f":"IF(SUM($D$12:BW$12)=0,0,$D$197)","v":0},{"$f":"IF(SUM($D$12:BX$12)=0,0,$D$197)","v":0},{"$f":"IF(SUM($D$12:BY$12)=0,0,$D$197)","v":0},{"$f":"IF(SUM($D$12:BZ$12)=0,0,$D$197)","v":0},{"$f":"IF(SUM($D$12:CA$12)=0,0,$D$197)","v":0},{"$f":"IF(SUM($D$12:CB$12)=0,0,$D$197)","v":0},{"$f":"IF(SUM($D$12:CC$12)=0,0,$D$197)","v":0},{"$f":"IF(SUM($D$12:CD$12)=0,0,$D$197)","v":0},{"$f":"IF(SUM($D$12:CE$12)=0,0,$D$197)","v":0},{"$f":"IF(SUM($D$12:CF$12)=0,0,$D$197)","v":0},{"$f":"IF(SUM($D$12:CG$12)=0,0,$D$197)","v":0},{"$f":"IF(SUM($D$12:CH$12)=0,0,$D$197)","v":0},{"$f":"IF(SUM($D$12:CI$12)=0,0,$D$197)","v":0},{"$f":"IF(SUM($D$12:CJ$12)=0,0,$D$197)","v":0},{"$f":"IF(SUM($D$12:CK$12)=0,0,$D$197)","v":0},{"$f":"IF(SUM($D$12:CL$12)=0,0,$D$197)","v":0},{"$f":"IF(SUM($D$12:CM$12)=0,0,$D$197)","v":0},{"$f":"IF(SUM($D$12:CN$12)=0,0,$D$197)","v":0},{"$f":"IF(SUM($D$12:CO$12)=0,0,$D$197)","v":0},{"$f":"IF(SUM($D$12:CP$12)=0,0,$D$197)","v":0},{"$f":"IF(SUM($D$12:CQ$12)=0,0,$D$197)","v":0},{"$f":"IF(SUM($D$12:CR$12)=0,0,$D$197)","v":0},{"$f":"IF(SUM($D$12:CS$12)=0,0,$D$197)","v":0},{"$f":"IF(SUM($D$12:CT$12)=0,0,$D$197)","v":0},{"$f":"IF(SUM($D$12:CU$12)=0,0,$D$197)","v":0},{"$f":"IF(SUM($D$12:CV$12)=0,0,$D$197)","v":0},{"$f":"IF(SUM($D$12:CW$12)=0,0,$D$197)","v":0},{"$f":"IF(SUM($D$12:CX$12)=0,0,$D$197)","v":0},{"$f":"IF(SUM($D$12:CY$12)=0,0,$D$197)","v":0}]
[null,"Discounted WACC","£000's",{"$f":"D198*D$7","v":0},0,0,0,0,0,0,0,0,0,0,0,0,0,0,0,0,0,0,0,0,0,0,0,0,0,0,0,0,0,0,0,0,0,0,0,0,0,0,0,0,0,0,0,0,0,0,0,0,0,0,0,0,0,0,0,0,0,0,0,0,0,0,0,{"$f":"BP198*BP$7","v":0},0,0,0,0,0,0,0,0,0,0,0,0,0,0,0,0,0,0,0,0,0,0,0,0,0,0,0,0,0,0,0,0,0,0,0]
[]
[null,"Financing costs"]
[null,"Financing costs (if entered manually)","£000's",{"$f":"'Data Input - Option 3'!H42","v":0},{"$f":"'Data Input - Option 3'!I42","v":0},{"$f":"'Data Input - Option 3'!J42","v":0},{"$f":"'Data Input - Option 3'!K42","v":0},{"$f":"'Data Input - Option 3'!L42","v":0},{"$f":"'Data Input - Option 3'!M42","v":0},{"$f":"'Data Input - Option 3'!N42","v":0},{"$f":"'Data Input - Option 3'!O42","v":0},{"$f":"'Data Input - Option 3'!P42","v":0},{"$f":"'Data Input - Option 3'!Q42","v":0},{"$f":"'Data Input - Option 3'!R42","v":0},{"$f":"'Data Input - Option 3'!S42","v":0},{"$f":"'Data Input - Option 3'!T42","v":0},{"$f":"'Data Input - Option 3'!U42","v":0},{"$f":"'Data Input - Option 3'!V42","v":0},{"$f":"'Data Input - Option 3'!W42","v":0},{"$f":"'Data Input - Option 3'!X42","v":0},{"$f":"'Data Input - Option 3'!Y42","v":0},{"$f":"'Data Input - Option 3'!Z42","v":0},{"$f":"'Data Input - Option 3'!AA42","v":0},{"$f":"'Data Input - Option 3'!AB42","v":0},{"$f":"'Data Input - Option 3'!AC42","v":0},{"$f":"'Data Input - Option 3'!AD42","v":0},{"$f":"'Data Input - Option 3'!AE42","v":0},{"$f":"'Data Input - Option 3'!AF42","v":0},{"$f":"'Data Input - Option 3'!AG42","v":0},{"$f":"'Data Input - Option 3'!AH42","v":0},{"$f":"'Data Input - Option 3'!AI42","v":0},{"$f":"'Data Input - Option 3'!AJ42","v":0},{"$f":"'Data Input - Option 3'!AK42","v":0},{"$f":"'Data Input - Option 3'!AL42","v":0},{"$f":"'Data Input - Option 3'!AM42","v":0},{"$f":"'Data Input - Option 3'!AN42","v":0},{"$f":"'Data Input - Option 3'!AO42","v":0},{"$f":"'Data Input - Option 3'!AP42","v":0},{"$f":"'Data Input - Option 3'!AQ42","v":0},{"$f":"'Data Input - Option 3'!AR42","v":0},{"$f":"'Data Input - Option 3'!AS42","v":0},{"$f":"'Data Input - Option 3'!AT42","v":0},{"$f":"'Data Input - Option 3'!AU42","v":0},{"$f":"'Data Input - Option 3'!AV42","v":0},{"$f":"'Data Input - Option 3'!AW42","v":0},{"$f":"'Data Input - Option 3'!AX42","v":0},{"$f":"'Data Input - Option 3'!AY42","v":0},{"$f":"'Data Input - Option 3'!AZ42","v":0},{"$f":"'Data Input - Option 3'!BA42","v":0},{"$f":"'Data Input - Option 3'!BB42","v":0},{"$f":"'Data Input - Option 3'!BC42","v":0},{"$f":"'Data Input - Option 3'!BD42","v":0},{"$f":"'Data Input - Option 3'!BE42","v":0},{"$f":"'Data Input - Option 3'!BF42","v":0},{"$f":"'Data Input - Option 3'!BG42","v":0},{"$f":"'Data Input - Option 3'!BH42","v":0},{"$f":"'Data Input - Option 3'!BI42","v":0},{"$f":"'Data Input - Option 3'!BJ42","v":0},{"$f":"'Data Input - Option 3'!BK42","v":0},{"$f":"'Data Input - Option 3'!BL42","v":0},{"$f":"'Data Input - Option 3'!BM42","v":0},{"$f":"'Data Input - Option 3'!BN42","v":0},{"$f":"'Data Input - Option 3'!BO42","v":0},{"$f":"'Data Input - Option 3'!BP42","v":0},{"$f":"'Data Input - Option 3'!BQ42","v":0},{"$f":"'Data Input - Option 3'!BR42","v":0},{"$f":"'Data Input - Option 3'!BS42","v":0},{"$f":"'Data Input - Option 3'!BT42","v":0},{"$f":"'Data Input - Option 3'!BU42","v":0},{"$f":"'Data Input - Option 3'!BV42","v":0},{"$f":"'Data Input - Option 3'!BW42","v":0},{"$f":"'Data Input - Option 3'!BX42","v":0},{"$f":"'Data Input - Option 3'!BY42","v":0},{"$f":"'Data Input - Option 3'!BZ42","v":0},{"$f":"'Data Input - Option 3'!CA42","v":0},{"$f":"'Data Input - Option 3'!CB42","v":0},{"$f":"'Data Input - Option 3'!CC42","v":0},{"$f":"'Data Input - Option 3'!CD42","v":0},{"$f":"'Data Input - Option 3'!CE42","v":0},{"$f":"'Data Input - Option 3'!CF42","v":0},{"$f":"'Data Input - Option 3'!CG42","v":0},{"$f":"'Data Input - Option 3'!CH42","v":0},{"$f":"'Data Input - Option 3'!CI42","v":0},{"$f":"'Data Input - Option 3'!CJ42","v":0},{"$f":"'Data Input - Option 3'!CK42","v":0},{"$f":"'Data Input - Option 3'!CL42","v":0},{"$f":"'Data Input - Option 3'!CM42","v":0},{"$f":"'Data Input - Option 3'!CN42","v":0},{"$f":"'Data Input - Option 3'!CO42","v":0},{"$f":"'Data Input - Option 3'!CP42","v":0},{"$f":"'Data Input - Option 3'!CQ42","v":0},{"$f":"'Data Input - Option 3'!CR42","v":0},{"$f":"'Data Input - Option 3'!CS42","v":0},{"$f":"'Data Input - Option 3'!CT42","v":0},{"$f":"'Data Input - Option 3'!CU42","v":0},{"$f":"'Data Input - Option 3'!CV42","v":0},{"$f":"'Data Input - Option 3'!CW42","v":0},{"$f":"'Data Input - Option 3'!CX42","v":0},{"$f":"'Data Input - Option 3'!CY42","v":0},{"$f":"'Data Input - Option 3'!CZ42","v":0},{"$f":"'Data Input - Option 3'!DA42","v":0},{"$f":"'Data Input - Option 3'!DB42","v":0},{"$f":"'Data Input - Option 3'!DC42","v":0}]
[null,"Discounted finacning","£000's",{"$f":"D202*D$7","v":0},0,0,0,0,0,0,0,0,0,0,0,0,0,0,0,0,0,0,0,0,0,0,0,0,0,0,0,0,0,0,0,0,0,0,0,0,0,0,0,0,0,0,0,0,0,0,0,0,0,0,0,0,0,0,0,0,0,0,0,0,0,0,0,{"$f":"BP202*BP$7","v":0},0,0,0,0,0,0,0,0,0,0,0,0,0,0,0,0,0,0,0,0,0,0,0,0,0,0,0,0,0,0,0,0,0,0,0]
[]
[null,"Total capex","£000's",{"$f":"IF('Data Input - Option 3'!$F$37=\"Yes\",D203+D13,D199)","v":0},{"$f":"IF('Data Input - Option 3'!$F$37=\"Yes\",E203+E13,E199)","v":0},{"$f":"IF('Data Input - Option 3'!$F$37=\"Yes\",F203+F13,F199)","v":0},{"$f":"IF('Data Input - Option 3'!$F$37=\"Yes\",G203+G13,G199)","v":0},{"$f":"IF('Data Input - Option 3'!$F$37=\"Yes\",H203+H13,H199)","v":0},{"$f":"IF('Data Input - Option 3'!$F$37=\"Yes\",I203+I13,I199)","v":0},{"$f":"IF('Data Input - Option 3'!$F$37=\"Yes\",J203+J13,J199)","v":0},{"$f":"IF('Data Input - Option 3'!$F$37=\"Yes\",K203+K13,K199)","v":0},{"$f":"IF('Data Input - Option 3'!$F$37=\"Yes\",L203+L13,L199)","v":0},{"$f":"IF('Data Input - Option 3'!$F$37=\"Yes\",M203+M13,M199)","v":0},{"$f":"IF('Data Input - Option 3'!$F$37=\"Yes\",N203+N13,N199)","v":0},{"$f":"IF('Data Input - Option 3'!$F$37=\"Yes\",O203+O13,O199)","v":0},{"$f":"IF('Data Input - Option 3'!$F$37=\"Yes\",P203+P13,P199)","v":0},{"$f":"IF('Data Input - Option 3'!$F$37=\"Yes\",Q203+Q13,Q199)","v":0},{"$f":"IF('Data Input - Option 3'!$F$37=\"Yes\",R203+R13,R199)","v":0},{"$f":"IF('Data Input - Option 3'!$F$37=\"Yes\",S203+S13,S199)","v":0},{"$f":"IF('Data Input - Option 3'!$F$37=\"Yes\",T203+T13,T199)","v":0},{"$f":"IF('Data Input - Option 3'!$F$37=\"Yes\",U203+U13,U199)","v":0},{"$f":"IF('Data Input - Option 3'!$F$37=\"Yes\",V203+V13,V199)","v":0},{"$f":"IF('Data Input - Option 3'!$F$37=\"Yes\",W203+W13,W199)","v":0},{"$f":"IF('Data Input - Option 3'!$F$37=\"Yes\",X203+X13,X199)","v":0},{"$f":"IF('Data Input - Option 3'!$F$37=\"Yes\",Y203+Y13,Y199)","v":0},{"$f":"IF('Data Input - Option 3'!$F$37=\"Yes\",Z203+Z13,Z199)","v":0},{"$f":"IF('Data Input - Option 3'!$F$37=\"Yes\",AA203+AA13,AA199)","v":0},{"$f":"IF('Data Input - Option 3'!$F$37=\"Yes\",AB203+AB13,AB199)","v":0},{"$f":"IF('Data Input - Option 3'!$F$37=\"Yes\",AC203+AC13,AC199)","v":0},{"$f":"IF('Data Input - Option 3'!$F$37=\"Yes\",AD203+AD13,AD199)","v":0},{"$f":"IF('Data Input - Option 3'!$F$37=\"Yes\",AE203+AE13,AE199)","v":0},{"$f":"IF('Data Input - Option 3'!$F$37=\"Yes\",AF203+AF13,AF199)","v":0},{"$f":"IF('Data Input - Option 3'!$F$37=\"Yes\",AG203+AG13,AG199)","v":0},{"$f":"IF('Data Input - Option 3'!$F$37=\"Yes\",AH203+AH13,AH199)","v":0},{"$f":"IF('Data Input - Option 3'!$F$37=\"Yes\",AI203+AI13,AI199)","v":0},{"$f":"IF('Data Input - Option 3'!$F$37=\"Yes\",AJ203+AJ13,AJ199)","v":0},{"$f":"IF('Data Input - Option 3'!$F$37=\"Yes\",AK203+AK13,AK199)","v":0},{"$f":"IF('Data Input - Option 3'!$F$37=\"Yes\",AL203+AL13,AL199)","v":0},{"$f":"IF('Data Input - Option 3'!$F$37=\"Yes\",AM203+AM13,AM199)","v":0},{"$f":"IF('Data Input - Option 3'!$F$37=\"Yes\",AN203+AN13,AN199)","v":0},{"$f":"IF('Data Input - Option 3'!$F$37=\"Yes\",AO203+AO13,AO199)","v":0},{"$f":"IF('Data Input - Option 3'!$F$37=\"Yes\",AP203+AP13,AP199)","v":0},{"$f":"IF('Data Input - Option 3'!$F$37=\"Yes\",AQ203+AQ13,AQ199)","v":0},{"$f":"IF('Data Input - Option 3'!$F$37=\"Yes\",AR203+AR13,AR199)","v":0},{"$f":"IF('Data Input - Option 3'!$F$37=\"Yes\",AS203+AS13,AS199)","v":0},{"$f":"IF('Data Input - Option 3'!$F$37=\"Yes\",AT203+AT13,AT199)","v":0},{"$f":"IF('Data Input - Option 3'!$F$37=\"Yes\",AU203+AU13,AU199)","v":0},{"$f":"IF('Data Input - Option 3'!$F$37=\"Yes\",AV203+AV13,AV199)","v":0},{"$f":"IF('Data Input - Option 3'!$F$37=\"Yes\",AW203+AW13,AW199)","v":0},{"$f":"IF('Data Input - Option 3'!$F$37=\"Yes\",AX203+AX13,AX199)","v":0},{"$f":"IF('Data Input - Option 3'!$F$37=\"Yes\",AY203+AY13,AY199)","v":0},{"$f":"IF('Data Input - Option 3'!$F$37=\"Yes\",AZ203+AZ13,AZ199)","v":0},{"$f":"IF('Data Input - Option 3'!$F$37=\"Yes\",BA203+BA13,BA199)","v":0},{"$f":"IF('Data Input - Option 3'!$F$37=\"Yes\",BB203+BB13,BB199)","v":0},{"$f":"IF('Data Input - Option 3'!$F$37=\"Yes\",BC203+BC13,BC199)","v":0},{"$f":"IF('Data Input - Option 3'!$F$37=\"Yes\",BD203+BD13,BD199)","v":0},{"$f":"IF('Data Input - Option 3'!$F$37=\"Yes\",BE203+BE13,BE199)","v":0},{"$f":"IF('Data Input - Option 3'!$F$37=\"Yes\",BF203+BF13,BF199)","v":0},{"$f":"IF('Data Input - Option 3'!$F$37=\"Yes\",BG203+BG13,BG199)","v":0},{"$f":"IF('Data Input - Option 3'!$F$37=\"Yes\",BH203+BH13,BH199)","v":0},{"$f":"IF('Data Input - Option 3'!$F$37=\"Yes\",BI203+BI13,BI199)","v":0},{"$f":"IF('Data Input - Option 3'!$F$37=\"Yes\",BJ203+BJ13,BJ199)","v":0},{"$f":"IF('Data Input - Option 3'!$F$37=\"Yes\",BK203+BK13,BK199)","v":0},{"$f":"IF('Data Input - Option 3'!$F$37=\"Yes\",BL203+BL13,BL199)","v":0},{"$f":"IF('Data Input - Option 3'!$F$37=\"Yes\",BM203+BM13,BM199)","v":0},{"$f":"IF('Data Input - Option 3'!$F$37=\"Yes\",BN203+BN13,BN199)","v":0},{"$f":"IF('Data Input - Option 3'!$F$37=\"Yes\",BO203+BO13,BO199)","v":0},{"$f":"IF('Data Input - Option 3'!$F$37=\"Yes\",BP203+BP13,BP199)","v":0},{"$f":"IF('Data Input - Option 3'!$F$37=\"Yes\",BQ203+BQ13,BQ199)","v":0},{"$f":"IF('Data Input - Option 3'!$F$37=\"Yes\",BR203+BR13,BR199)","v":0},{"$f":"IF('Data Input - Option 3'!$F$37=\"Yes\",BS203+BS13,BS199)","v":0},{"$f":"IF('Data Input - Option 3'!$F$37=\"Yes\",BT203+BT13,BT199)","v":0},{"$f":"IF('Data Input - Option 3'!$F$37=\"Yes\",BU203+BU13,BU199)","v":0},{"$f":"IF('Data Input - Option 3'!$F$37=\"Yes\",BV203+BV13,BV199)","v":0},{"$f":"IF('Data Input - Option 3'!$F$37=\"Yes\",BW203+BW13,BW199)","v":0},{"$f":"IF('Data Input - Option 3'!$F$37=\"Yes\",BX203+BX13,BX199)","v":0},{"$f":"IF('Data Input - Option 3'!$F$37=\"Yes\",BY203+BY13,BY199)","v":0},{"$f":"IF('Data Input - Option 3'!$F$37=\"Yes\",BZ203+BZ13,BZ199)","v":0},{"$f":"IF('Data Input - Option 3'!$F$37=\"Yes\",CA203+CA13,CA199)","v":0},{"$f":"IF('Data Input - Option 3'!$F$37=\"Yes\",CB203+CB13,CB199)","v":0},{"$f":"IF('Data Input - Option 3'!$F$37=\"Yes\",CC203+CC13,CC199)","v":0},{"$f":"IF('Data Input - Option 3'!$F$37=\"Yes\",CD203+CD13,CD199)","v":0},{"$f":"IF('Data Input - Option 3'!$F$37=\"Yes\",CE203+CE13,CE199)","v":0},{"$f":"IF('Data Input - Option 3'!$F$37=\"Yes\",CF203+CF13,CF199)","v":0},{"$f":"IF('Data Input - Option 3'!$F$37=\"Yes\",CG203+CG13,CG199)","v":0},{"$f":"IF('Data Input - Option 3'!$F$37=\"Yes\",CH203+CH13,CH199)","v":0},{"$f":"IF('Data Input - Option 3'!$F$37=\"Yes\",CI203+CI13,CI199)","v":0},{"$f":"IF('Data Input - Option 3'!$F$37=\"Yes\",CJ203+CJ13,CJ199)","v":0},{"$f":"IF('Data Input - Option 3'!$F$37=\"Yes\",CK203+CK13,CK199)","v":0},{"$f":"IF('Data Input - Option 3'!$F$37=\"Yes\",CL203+CL13,CL199)","v":0},{"$f":"IF('Data Input - Option 3'!$F$37=\"Yes\",CM203+CM13,CM199)","v":0},{"$f":"IF('Data Input - Option 3'!$F$37=\"Yes\",CN203+CN13,CN199)","v":0},{"$f":"IF('Data Input - Option 3'!$F$37=\"Yes\",CO203+CO13,CO199)","v":0},{"$f":"IF('Data Input - Option 3'!$F$37=\"Yes\",CP203+CP13,CP199)","v":0},{"$f":"IF('Data Input - Option 3'!$F$37=\"Yes\",CQ203+CQ13,CQ199)","v":0},{"$f":"IF('Data Input - Option 3'!$F$37=\"Yes\",CR203+CR13,CR199)","v":0},{"$f":"IF('Data Input - Option 3'!$F$37=\"Yes\",CS203+CS13,CS199)","v":0},{"$f":"IF('Data Input - Option 3'!$F$37=\"Yes\",CT203+CT13,CT199)","v":0},{"$f":"IF('Data Input - Option 3'!$F$37=\"Yes\",CU203+CU13,CU199)","v":0},{"$f":"IF('Data Input - Option 3'!$F$37=\"Yes\",CV203+CV13,CV199)","v":0},{"$f":"IF('Data Input - Option 3'!$F$37=\"Yes\",CW203+CW13,CW199)","v":0},{"$f":"IF('Data Input - Option 3'!$F$37=\"Yes\",CX203+CX13,CX199)","v":0},{"$f":"IF('Data Input - Option 3'!$F$37=\"Yes\",CY203+CY13,CY199)","v":0}]
[]
[null,"Low high WACC combined with low high capex"]
[]
[null,"Low WACC","%",{"$f":"'Data Input - General'!F16","v":0.06}]
[null,"Annualised payment","£000's",{"$f":"IFERROR(-PMT($D$185,SUM('Data Input - General'!$H$26:$H$28),D20*(1-D177)*1000)/1000,0)","v":283.23514945240129}]
[null,"Annual value","£000's",{"$f":"IF(SUM($D$12:D$12)=0,0,$D$210)","v":283.23514945240129},{"$f":"IF(SUM($D$12:E$12)=0,0,$D$210)","v":283.23514945240129},{"$f":"IF(SUM($D$12:F$12)=0,0,$D$210)","v":283.23514945240129},{"$f":"IF(SUM($D$12:G$12)=0,0,$D$210)","v":283.23514945240129},{"$f":"IF(SUM($D$12:H$12)=0,0,$D$210)","v":283.23514945240129},{"$f":"IF(SUM($D$12:I$12)=0,0,$D$210)","v":283.23514945240129},{"$f":"IF(SUM($D$12:J$12)=0,0,$D$210)","v":283.23514945240129},{"$f":"IF(SUM($D$12:K$12)=0,0,$D$210)","v":283.23514945240129},{"$f":"IF(SUM($D$12:L$12)=0,0,$D$210)","v":283.23514945240129},{"$f":"IF(SUM($D$12:M$12)=0,0,$D$210)","v":283.23514945240129},{"$f":"IF(SUM($D$12:N$12)=0,0,$D$210)","v":283.23514945240129},{"$f":"IF(SUM($D$12:O$12)=0,0,$D$210)","v":283.23514945240129},{"$f":"IF(SUM($D$12:P$12)=0,0,$D$210)","v":283.23514945240129},{"$f":"IF(SUM($D$12:Q$12)=0,0,$D$210)","v":283.23514945240129},{"$f":"IF(SUM($D$12:R$12)=0,0,$D$210)","v":283.23514945240129},{"$f":"IF(SUM($D$12:S$12)=0,0,$D$210)","v":283.23514945240129},{"$f":"IF(SUM($D$12:T$12)=0,0,$D$210)","v":283.23514945240129},{"$f":"IF(SUM($D$12:U$12)=0,0,$D$210)","v":283.23514945240129},{"$f":"IF(SUM($D$12:V$12)=0,0,$D$210)","v":283.23514945240129},{"$f":"IF(SUM($D$12:W$12)=0,0,$D$210)","v":283.23514945240129},{"$f":"IF(SUM($D$12:X$12)=0,0,$D$210)","v":283.23514945240129},{"$f":"IF(SUM($D$12:Y$12)=0,0,$D$210)","v":283.23514945240129},{"$f":"IF(SUM($D$12:Z$12)=0,0,$D$210)","v":283.23514945240129},{"$f":"IF(SUM($D$12:AA$12)=0,0,$D$210)","v":283.23514945240129},{"$f":"IF(SUM($D$12:AB$12)=0,0,$D$210)","v":283.23514945240129},{"$f":"IF(SUM($D$12:AC$12)=0,0,$D$210)","v":283.23514945240129},{"$f":"IF(SUM($D$12:AD$12)=0,0,$D$210)","v":283.23514945240129},{"$f":"IF(SUM($D$12:AE$12)=0,0,$D$210)","v":283.23514945240129},{"$f":"IF(SUM($D$12:AF$12)=0,0,$D$210)","v":283.23514945240129},{"$f":"IF(SUM($D$12:AG$12)=0,0,$D$210)","v":283.23514945240129},{"$f":"IF(SUM($D$12:AH$12)=0,0,$D$210)","v":283.23514945240129},{"$f":"IF(SUM($D$12:AI$12)=0,0,$D$210)","v":283.23514945240129},{"$f":"IF(SUM($D$12:AJ$12)=0,0,$D$210)","v":283.23514945240129},{"$f":"IF(SUM($D$12:AK$12)=0,0,$D$210)","v":283.23514945240129},{"$f":"IF(SUM($D$12:AL$12)=0,0,$D$210)","v":283.23514945240129},{"$f":"IF(SUM($D$12:AM$12)=0,0,$D$210)","v":283.23514945240129},{"$f":"IF(SUM($D$12:AN$12)=0,0,$D$210)","v":283.23514945240129},{"$f":"IF(SUM($D$12:AO$12)=0,0,$D$210)","v":283.23514945240129},{"$f":"IF(SUM($D$12:AP$12)=0,0,$D$210)","v":283.23514945240129},{"$f":"IF(SUM($D$12:AQ$12)=0,0,$D$210)","v":283.23514945240129},{"$f":"IF(SUM($D$12:AR$12)=0,0,$D$210)","v":283.23514945240129},{"$f":"IF(SUM($D$12:AS$12)=0,0,$D$210)","v":283.23514945240129},{"$f":"IF(SUM($D$12:AT$12)=0,0,$D$210)","v":283.23514945240129},{"$f":"IF(SUM($D$12:AU$12)=0,0,$D$210)","v":283.23514945240129},{"$f":"IF(SUM($D$12:AV$12)=0,0,$D$210)","v":283.23514945240129},{"$f":"IF(SUM($D$12:AW$12)=0,0,$D$210)","v":283.23514945240129},{"$f":"IF(SUM($D$12:AX$12)=0,0,$D$210)","v":283.23514945240129},{"$f":"IF(SUM($D$12:AY$12)=0,0,$D$210)","v":283.23514945240129},{"$f":"IF(SUM($D$12:AZ$12)=0,0,$D$210)","v":283.23514945240129},{"$f":"IF(SUM($D$12:BA$12)=0,0,$D$210)","v":283.23514945240129},{"$f":"IF(SUM($D$12:BB$12)=0,0,$D$210)","v":283.23514945240129},{"$f":"IF(SUM($D$12:BC$12)=0,0,$D$210)","v":283.23514945240129},{"$f":"IF(SUM($D$12:BD$12)=0,0,$D$210)","v":283.23514945240129},{"$f":"IF(SUM($D$12:BE$12)=0,0,$D$210)","v":283.23514945240129},{"$f":"IF(SUM($D$12:BF$12)=0,0,$D$210)","v":283.23514945240129},{"$f":"IF(SUM($D$12:BG$12)=0,0,$D$210)","v":283.23514945240129},{"$f":"IF(SUM($D$12:BH$12)=0,0,$D$210)","v":283.23514945240129},{"$f":"IF(SUM($D$12:BI$12)=0,0,$D$210)","v":283.23514945240129},{"$f":"IF(SUM($D$12:BJ$12)=0,0,$D$210)","v":283.23514945240129},{"$f":"IF(SUM($D$12:BK$12)=0,0,$D$210)","v":283.23514945240129},{"$f":"IF(SUM($D$12:BL$12)=0,0,$D$210)","v":283.23514945240129},{"$f":"IF(SUM($D$12:BM$12)=0,0,$D$210)","v":283.23514945240129},{"$f":"IF(SUM($D$12:BN$12)=0,0,$D$210)","v":283.23514945240129},{"$f":"IF(SUM($D$12:BO$12)=0,0,$D$210)","v":283.23514945240129},{"$f":"IF(SUM($D$12:BP$12)=0,0,$D$210)","v":283.23514945240129},{"$f":"IF(SUM($D$12:BQ$12)=0,0,$D$210)","v":283.23514945240129},{"$f":"IF(SUM($D$12:BR$12)=0,0,$D$210)","v":283.23514945240129},{"$f":"IF(SUM($D$12:BS$12)=0,0,$D$210)","v":283.23514945240129},{"$f":"IF(SUM($D$12:BT$12)=0,0,$D$210)","v":283.23514945240129},{"$f":"IF(SUM($D$12:BU$12)=0,0,$D$210)","v":283.23514945240129},{"$f":"IF(SUM($D$12:BV$12)=0,0,$D$210)","v":283.23514945240129},{"$f":"IF(SUM($D$12:BW$12)=0,0,$D$210)","v":283.23514945240129},{"$f":"IF(SUM($D$12:BX$12)=0,0,$D$210)","v":283.23514945240129},{"$f":"IF(SUM($D$12:BY$12)=0,0,$D$210)","v":283.23514945240129},{"$f":"IF(SUM($D$12:BZ$12)=0,0,$D$210)","v":283.23514945240129},{"$f":"IF(SUM($D$12:CA$12)=0,0,$D$210)","v":283.23514945240129},{"$f":"IF(SUM($D$12:CB$12)=0,0,$D$210)","v":283.23514945240129},{"$f":"IF(SUM($D$12:CC$12)=0,0,$D$210)","v":283.23514945240129},{"$f":"IF(SUM($D$12:CD$12)=0,0,$D$210)","v":283.23514945240129},{"$f":"IF(SUM($D$12:CE$12)=0,0,$D$210)","v":283.23514945240129},{"$f":"IF(SUM($D$12:CF$12)=0,0,$D$210)","v":283.23514945240129},{"$f":"IF(SUM($D$12:CG$12)=0,0,$D$210)","v":283.23514945240129},{"$f":"IF(SUM($D$12:CH$12)=0,0,$D$210)","v":283.23514945240129},{"$f":"IF(SUM($D$12:CI$12)=0,0,$D$210)","v":283.23514945240129},{"$f":"IF(SUM($D$12:CJ$12)=0,0,$D$210)","v":283.23514945240129},{"$f":"IF(SUM($D$12:CK$12)=0,0,$D$210)","v":283.23514945240129},{"$f":"IF(SUM($D$12:CL$12)=0,0,$D$210)","v":283.23514945240129},{"$f":"IF(SUM($D$12:CM$12)=0,0,$D$210)","v":283.23514945240129},{"$f":"IF(SUM($D$12:CN$12)=0,0,$D$210)","v":283.23514945240129},{"$f":"IF(SUM($D$12:CO$12)=0,0,$D$210)","v":283.23514945240129},{"$f":"IF(SUM($D$12:CP$12)=0,0,$D$210)","v":283.23514945240129},{"$f":"IF(SUM($D$12:CQ$12)=0,0,$D$210)","v":283.23514945240129},{"$f":"IF(SUM($D$12:CR$12)=0,0,$D$210)","v":283.23514945240129},{"$f":"IF(SUM($D$12:CS$12)=0,0,$D$210)","v":283.23514945240129},{"$f":"IF(SUM($D$12:CT$12)=0,0,$D$210)","v":283.23514945240129},{"$f":"IF(SUM($D$12:CU$12)=0,0,$D$210)","v":283.23514945240129},{"$f":"IF(SUM($D$12:CV$12)=0,0,$D$210)","v":283.23514945240129},{"$f":"IF(SUM($D$12:CW$12)=0,0,$D$210)","v":283.23514945240129},{"$f":"IF(SUM($D$12:CX$12)=0,0,$D$210)","v":283.23514945240129},{"$f":"IF(SUM($D$12:CY$12)=0,0,$D$210)","v":283.23514945240129}]
[null,"Discounted WACC","£000's",{"$f":"D211*D$7","v":283.23514945240129},273.65714922937326,264.40304273369395,255.46187703738551,246.82306960133866,238.47639575008569,230.41197657013112,222.62026721751801,215.09204562079037,207.81840156598105,200.79072615070635,194.00070159488536,187.44029139602455,181.10173081741502,174.97751769798555,169.0604035729329,163.34338509462117,157.81969574359536,152.48279781989891,147.32637470521632,142.34432338668245,137.53074723350963,132.87994901788372,128.38642417186833,124.04485427233656,119.85010074621891,115.79719878861732,111.88135148658679,108.09792414162976,104.44243878418337,101.4004260040615,0,0,0,0,0,0,0,0,0,0,0,0,0,0,0,0,0,0,0,0,0,0,0,0,0,0,0,0,0,0,0,0,0,{"$f":"BP211*BP$7","v":0},0,0,0,0,0,0,0,0,0,0,0,0,0,0,0,0,0,0,0,0,0,0,0,0,0,0,0,0,0,0,0,0,0,0,0]
[]
[null,"Financing costs"]
[null,"Financing costs (if entered manually)","£000's",{"$f":"'Data Input - Option 3'!H41","v":0},{"$f":"'Data Input - Option 3'!I41","v":0},{"$f":"'Data Input - Option 3'!J41","v":0},{"$f":"'Data Input - Option 3'!K41","v":0},{"$f":"'Data Input - Option 3'!L41","v":0},{"$f":"'Data Input - Option 3'!M41","v":0},{"$f":"'Data Input - Option 3'!N41","v":0},{"$f":"'Data Input - Option 3'!O41","v":0},{"$f":"'Data Input - Option 3'!P41","v":0},{"$f":"'Data Input - Option 3'!Q41","v":0},{"$f":"'Data Input - Option 3'!R41","v":0},{"$f":"'Data Input - Option 3'!S41","v":0},{"$f":"'Data Input - Option 3'!T41","v":0},{"$f":"'Data Input - Option 3'!U41","v":0},{"$f":"'Data Input - Option 3'!V41","v":0},{"$f":"'Data Input - Option 3'!W41","v":0},{"$f":"'Data Input - Option 3'!X41","v":0},{"$f":"'Data Input - Option 3'!Y41","v":0},{"$f":"'Data Input - Option 3'!Z41","v":0},{"$f":"'Data Input - Option 3'!AA41","v":0},{"$f":"'Data Input - Option 3'!AB41","v":0},{"$f":"'Data Input - Option 3'!AC41","v":0},{"$f":"'Data Input - Option 3'!AD41","v":0},{"$f":"'Data Input - Option 3'!AE41","v":0},{"$f":"'Data Input - Option 3'!AF41","v":0},{"$f":"'Data Input - Option 3'!AG41","v":0},{"$f":"'Data Input - Option 3'!AH41","v":0},{"$f":"'Data Input - Option 3'!AI41","v":0},{"$f":"'Data Input - Option 3'!AJ41","v":0},{"$f":"'Data Input - Option 3'!AK41","v":0},{"$f":"'Data Input - Option 3'!AL41","v":0},{"$f":"'Data Input - Option 3'!AM41","v":0},{"$f":"'Data Input - Option 3'!AN41","v":0},{"$f":"'Data Input - Option 3'!AO41","v":0},{"$f":"'Data Input - Option 3'!AP41","v":0},{"$f":"'Data Input - Option 3'!AQ41","v":0},{"$f":"'Data Input - Option 3'!AR41","v":0},{"$f":"'Data Input - Option 3'!AS41","v":0},{"$f":"'Data Input - Option 3'!AT41","v":0},{"$f":"'Data Input - Option 3'!AU41","v":0},{"$f":"'Data Input - Option 3'!AV41","v":0},{"$f":"'Data Input - Option 3'!AW41","v":0},{"$f":"'Data Input - Option 3'!AX41","v":0},{"$f":"'Data Input - Option 3'!AY41","v":0},{"$f":"'Data Input - Option 3'!AZ41","v":0},{"$f":"'Data Input - Option 3'!BA41","v":0},{"$f":"'Data Input - Option 3'!BB41","v":0},{"$f":"'Data Input - Option 3'!BC41","v":0},{"$f":"'Data Input - Option 3'!BD41","v":0},{"$f":"'Data Input - Option 3'!BE41","v":0},{"$f":"'Data Input - Option 3'!BF41","v":0},{"$f":"'Data Input - Option 3'!BG41","v":0},{"$f":"'Data Input - Option 3'!BH41","v":0},{"$f":"'Data Input - Option 3'!BI41","v":0},{"$f":"'Data Input - Option 3'!BJ41","v":0},{"$f":"'Data Input - Option 3'!BK41","v":0},{"$f":"'Data Input - Option 3'!BL41","v":0},{"$f":"'Data Input - Option 3'!BM41","v":0},{"$f":"'Data Input - Option 3'!BN41","v":0},{"$f":"'Data Input - Option 3'!BO41","v":0},{"$f":"'Data Input - Option 3'!BP41","v":0},{"$f":"'Data Input - Option 3'!BQ41","v":0},{"$f":"'Data Input - Option 3'!BR41","v":0},{"$f":"'Data Input - Option 3'!BS41","v":0},{"$f":"'Data Input - Option 3'!BT41","v":0},{"$f":"'Data Input - Option 3'!BU41","v":0},{"$f":"'Data Input - Option 3'!BV41","v":0},{"$f":"'Data Input - Option 3'!BW41","v":0},{"$f":"'Data Input - Option 3'!BX41","v":0},{"$f":"'Data Input - Option 3'!BY41","v":0},{"$f":"'Data Input - Option 3'!BZ41","v":0},{"$f":"'Data Input - Option 3'!CA41","v":0},{"$f":"'Data Input - Option 3'!CB41","v":0},{"$f":"'Data Input - Option 3'!CC41","v":0},{"$f":"'Data Input - Option 3'!CD41","v":0},{"$f":"'Data Input - Option 3'!CE41","v":0},{"$f":"'Data Input - Option 3'!CF41","v":0},{"$f":"'Data Input - Option 3'!CG41","v":0},{"$f":"'Data Input - Option 3'!CH41","v":0},{"$f":"'Data Input - Option 3'!CI41","v":0},{"$f":"'Data Input - Option 3'!CJ41","v":0},{"$f":"'Data Input - Option 3'!CK41","v":0},{"$f":"'Data Input - Option 3'!CL41","v":0},{"$f":"'Data Input - Option 3'!CM41","v":0},{"$f":"'Data Input - Option 3'!CN41","v":0},{"$f":"'Data Input - Option 3'!CO41","v":0},{"$f":"'Data Input - Option 3'!CP41","v":0},{"$f":"'Data Input - Option 3'!CQ41","v":0},{"$f":"'Data Input - Option 3'!CR41","v":0},{"$f":"'Data Input - Option 3'!CS41","v":0},{"$f":"'Data Input - Option 3'!CT41","v":0},{"$f":"'Data Input - Option 3'!CU41","v":0},{"$f":"'Data Input - Option 3'!CV41","v":0},{"$f":"'Data Input - Option 3'!CW41","v":0},{"$f":"'Data Input - Option 3'!CX41","v":0},{"$f":"'Data Input - Option 3'!CY41","v":0},{"$f":"'Data Input - Option 3'!CZ41","v":0},{"$f":"'Data Input - Option 3'!DA41","v":0},{"$f":"'Data Input - Option 3'!DB41","v":0},{"$f":"'Data Input - Option 3'!DC41","v":0}]
[null,"Discounted finacning","£000's",{"$f":"D215*D$7","v":0},0,0,0,0,0,0,0,0,0,0,0,0,0,0,0,0,0,0,0,0,0,0,0,0,0,0,0,0,0,0,0,0,0,0,0,0,0,0,0,0,0,0,0,0,0,0,0,0,0,0,0,0,0,0,0,0,0,0,0,0,0,0,0,{"$f":"BP215*BP$7","v":0},0,0,0,0,0,0,0,0,0,0,0,0,0,0,0,0,0,0,0,0,0,0,0,0,0,0,0,0,0,0,0,0,0,0,0]
[]
[null,"Total capex","£000's",{"$f":"IF('Data Input - Option 3'!$F$37=\"Yes\",D216+D13*(1-$D$177),D212)","v":283.23514945240129},{"$f":"IF('Data Input - Option 3'!$F$37=\"Yes\",E216+E13*(1-$D$177),E212)","v":273.65714922937326},{"$f":"IF('Data Input - Option 3'!$F$37=\"Yes\",F216+F13*(1-$D$177),F212)","v":264.40304273369395},{"$f":"IF('Data Input - Option 3'!$F$37=\"Yes\",G216+G13*(1-$D$177),G212)","v":255.46187703738551},{"$f":"IF('Data Input - Option 3'!$F$37=\"Yes\",H216+H13*(1-$D$177),H212)","v":246.82306960133866},{"$f":"IF('Data Input - Option 3'!$F$37=\"Yes\",I216+I13*(1-$D$177),I212)","v":238.47639575008569},{"$f":"IF('Data Input - Option 3'!$F$37=\"Yes\",J216+J13*(1-$D$177),J212)","v":230.41197657013112},{"$f":"IF('Data Input - Option 3'!$F$37=\"Yes\",K216+K13*(1-$D$177),K212)","v":222.62026721751801},{"$f":"IF('Data Input - Option 3'!$F$37=\"Yes\",L216+L13*(1-$D$177),L212)","v":215.09204562079037},{"$f":"IF('Data Input - Option 3'!$F$37=\"Yes\",M216+M13*(1-$D$177),M212)","v":207.81840156598105},{"$f":"IF('Data Input - Option 3'!$F$37=\"Yes\",N216+N13*(1-$D$177),N212)","v":200.79072615070635},{"$f":"IF('Data Input - Option 3'!$F$37=\"Yes\",O216+O13*(1-$D$177),O212)","v":194.00070159488536},{"$f":"IF('Data Input - Option 3'!$F$37=\"Yes\",P216+P13*(1-$D$177),P212)","v":187.44029139602455},{"$f":"IF('Data Input - Option 3'!$F$37=\"Yes\",Q216+Q13*(1-$D$177),Q212)","v":181.10173081741502},{"$f":"IF('Data Input - Option 3'!$F$37=\"Yes\",R216+R13*(1-$D$177),R212)","v":174.97751769798555},{"$f":"IF('Data Input - Option 3'!$F$37=\"Yes\",S216+S13*(1-$D$177),S212)","v":169.0604035729329},{"$f":"IF('Data Input - Option 3'!$F$37=\"Yes\",T216+T13*(1-$D$177),T212)","v":163.34338509462117},{"$f":"IF('Data Input - Option 3'!$F$37=\"Yes\",U216+U13*(1-$D$177),U212)","v":157.81969574359536},{"$f":"IF('Data Input - Option 3'!$F$37=\"Yes\",V216+V13*(1-$D$177),V212)","v":152.48279781989891},{"$f":"IF('Data Input - Option 3'!$F$37=\"Yes\",W216+W13*(1-$D$177),W212)","v":147.32637470521632},{"$f":"IF('Data Input - Option 3'!$F$37=\"Yes\",X216+X13*(1-$D$177),X212)","v":142.34432338668245},{"$f":"IF('Data Input - Option 3'!$F$37=\"Yes\",Y216+Y13*(1-$D$177),Y212)","v":137.53074723350963},{"$f":"IF('Data Input - Option 3'!$F$37=\"Yes\",Z216+Z13*(1-$D$177),Z212)","v":132.87994901788372},{"$f":"IF('Data Input - Option 3'!$F$37=\"Yes\",AA216+AA13*(1-$D$177),AA212)","v":128.38642417186833},{"$f":"IF('Data Input - Option 3'!$F$37=\"Yes\",AB216+AB13*(1-$D$177),AB212)","v":124.04485427233656},{"$f":"IF('Data Input - Option 3'!$F$37=\"Yes\",AC216+AC13*(1-$D$177),AC212)","v":119.85010074621891},{"$f":"IF('Data Input - Option 3'!$F$37=\"Yes\",AD216+AD13*(1-$D$177),AD212)","v":115.79719878861732},{"$f":"IF('Data Input - Option 3'!$F$37=\"Yes\",AE216+AE13*(1-$D$177),AE212)","v":111.88135148658679},{"$f":"IF('Data Input - Option 3'!$F$37=\"Yes\",AF216+AF13*(1-$D$177),AF212)","v":108.09792414162976},{"$f":"IF('Data Input - Option 3'!$F$37=\"Yes\",AG216+AG13*(1-$D$177),AG212)","v":104.44243878418337},{"$f":"IF('Data Input - Option 3'!$F$37=\"Yes\",AH216+AH13*(1-$D$177),AH212)","v":101.4004260040615},{"$f":"IF('Data Input - Option 3'!$F$37=\"Yes\",AI216+AI13*(1-$D$177),AI212)","v":0},{"$f":"IF('Data Input - Option 3'!$F$37=\"Yes\",AJ216+AJ13*(1-$D$177),AJ212)","v":0},{"$f":"IF('Data Input - Option 3'!$F$37=\"Yes\",AK216+AK13*(1-$D$177),AK212)","v":0},{"$f":"IF('Data Input - Option 3'!$F$37=\"Yes\",AL216+AL13*(1-$D$177),AL212)","v":0},{"$f":"IF('Data Input - Option 3'!$F$37=\"Yes\",AM216+AM13*(1-$D$177),AM212)","v":0},{"$f":"IF('Data Input - Option 3'!$F$37=\"Yes\",AN216+AN13*(1-$D$177),AN212)","v":0},{"$f":"IF('Data Input - Option 3'!$F$37=\"Yes\",AO216+AO13*(1-$D$177),AO212)","v":0},{"$f":"IF('Data Input - Option 3'!$F$37=\"Yes\",AP216+AP13*(1-$D$177),AP212)","v":0},{"$f":"IF('Data Input - Option 3'!$F$37=\"Yes\",AQ216+AQ13*(1-$D$177),AQ212)","v":0},{"$f":"IF('Data Input - Option 3'!$F$37=\"Yes\",AR216+AR13*(1-$D$177),AR212)","v":0},{"$f":"IF('Data Input - Option 3'!$F$37=\"Yes\",AS216+AS13*(1-$D$177),AS212)","v":0},{"$f":"IF('Data Input - Option 3'!$F$37=\"Yes\",AT216+AT13*(1-$D$177),AT212)","v":0},{"$f":"IF('Data Input - Option 3'!$F$37=\"Yes\",AU216+AU13*(1-$D$177),AU212)","v":0},{"$f":"IF('Data Input - Option 3'!$F$37=\"Yes\",AV216+AV13*(1-$D$177),AV212)","v":0},{"$f":"IF('Data Input - Option 3'!$F$37=\"Yes\",AW216+AW13*(1-$D$177),AW212)","v":0},{"$f":"IF('Data Input - Option 3'!$F$37=\"Yes\",AX216+AX13*(1-$D$177),AX212)","v":0},{"$f":"IF('Data Input - Option 3'!$F$37=\"Yes\",AY216+AY13*(1-$D$177),AY212)","v":0},{"$f":"IF('Data Input - Option 3'!$F$37=\"Yes\",AZ216+AZ13*(1-$D$177),AZ212)","v":0},{"$f":"IF('Data Input - Option 3'!$F$37=\"Yes\",BA216+BA13*(1-$D$177),BA212)","v":0},{"$f":"IF('Data Input - Option 3'!$F$37=\"Yes\",BB216+BB13*(1-$D$177),BB212)","v":0},{"$f":"IF('Data Input - Option 3'!$F$37=\"Yes\",BC216+BC13*(1-$D$177),BC212)","v":0},{"$f":"IF('Data Input - Option 3'!$F$37=\"Yes\",BD216+BD13*(1-$D$177),BD212)","v":0},{"$f":"IF('Data Input - Option 3'!$F$37=\"Yes\",BE216+BE13*(1-$D$177),BE212)","v":0},{"$f":"IF('Data Input - Option 3'!$F$37=\"Yes\",BF216+BF13*(1-$D$177),BF212)","v":0},{"$f":"IF('Data Input - Option 3'!$F$37=\"Yes\",BG216+BG13*(1-$D$177),BG212)","v":0},{"$f":"IF('Data Input - Option 3'!$F$37=\"Yes\",BH216+BH13*(1-$D$177),BH212)","v":0},{"$f":"IF('Data Input - Option 3'!$F$37=\"Yes\",BI216+BI13*(1-$D$177),BI212)","v":0},{"$f":"IF('Data Input - Option 3'!$F$37=\"Yes\",BJ216+BJ13*(1-$D$177),BJ212)","v":0},{"$f":"IF('Data Input - Option 3'!$F$37=\"Yes\",BK216+BK13*(1-$D$177),BK212)","v":0},{"$f":"IF('Data Input - Option 3'!$F$37=\"Yes\",BL216+BL13*(1-$D$177),BL212)","v":0},{"$f":"IF('Data Input - Option 3'!$F$37=\"Yes\",BM216+BM13*(1-$D$177),BM212)","v":0},{"$f":"IF('Data Input - Option 3'!$F$37=\"Yes\",BN216+BN13*(1-$D$177),BN212)","v":0},{"$f":"IF('Data Input - Option 3'!$F$37=\"Yes\",BO216+BO13*(1-$D$177),BO212)","v":0},{"$f":"IF('Data Input - Option 3'!$F$37=\"Yes\",BP216+BP13*(1-$D$177),BP212)","v":0},{"$f":"IF('Data Input - Option 3'!$F$37=\"Yes\",BQ216+BQ13*(1-$D$177),BQ212)","v":0},{"$f":"IF('Data Input - Option 3'!$F$37=\"Yes\",BR216+BR13*(1-$D$177),BR212)","v":0},{"$f":"IF('Data Input - Option 3'!$F$37=\"Yes\",BS216+BS13*(1-$D$177),BS212)","v":0},{"$f":"IF('Data Input - Option 3'!$F$37=\"Yes\",BT216+BT13*(1-$D$177),BT212)","v":0},{"$f":"IF('Data Input - Option 3'!$F$37=\"Yes\",BU216+BU13*(1-$D$177),BU212)","v":0},{"$f":"IF('Data Input - Option 3'!$F$37=\"Yes\",BV216+BV13*(1-$D$177),BV212)","v":0},{"$f":"IF('Data Input - Option 3'!$F$37=\"Yes\",BW216+BW13*(1-$D$177),BW212)","v":0},{"$f":"IF('Data Input - Option 3'!$F$37=\"Yes\",BX216+BX13*(1-$D$177),BX212)","v":0},{"$f":"IF('Data Input - Option 3'!$F$37=\"Yes\",BY216+BY13*(1-$D$177),BY212)","v":0},{"$f":"IF('Data Input - Option 3'!$F$37=\"Yes\",BZ216+BZ13*(1-$D$177),BZ212)","v":0},{"$f":"IF('Data Input - Option 3'!$F$37=\"Yes\",CA216+CA13*(1-$D$177),CA212)","v":0},{"$f":"IF('Data Input - Option 3'!$F$37=\"Yes\",CB216+CB13*(1-$D$177),CB212)","v":0},{"$f":"IF('Data Input - Option 3'!$F$37=\"Yes\",CC216+CC13*(1-$D$177),CC212)","v":0},{"$f":"IF('Data Input - Option 3'!$F$37=\"Yes\",CD216+CD13*(1-$D$177),CD212)","v":0},{"$f":"IF('Data Input - Option 3'!$F$37=\"Yes\",CE216+CE13*(1-$D$177),CE212)","v":0},{"$f":"IF('Data Input - Option 3'!$F$37=\"Yes\",CF216+CF13*(1-$D$177),CF212)","v":0},{"$f":"IF('Data Input - Option 3'!$F$37=\"Yes\",CG216+CG13*(1-$D$177),CG212)","v":0},{"$f":"IF('Data Input - Option 3'!$F$37=\"Yes\",CH216+CH13*(1-$D$177),CH212)","v":0},{"$f":"IF('Data Input - Option 3'!$F$37=\"Yes\",CI216+CI13*(1-$D$177),CI212)","v":0},{"$f":"IF('Data Input - Option 3'!$F$37=\"Yes\",CJ216+CJ13*(1-$D$177),CJ212)","v":0},{"$f":"IF('Data Input - Option 3'!$F$37=\"Yes\",CK216+CK13*(1-$D$177),CK212)","v":0},{"$f":"IF('Data Input - Option 3'!$F$37=\"Yes\",CL216+CL13*(1-$D$177),CL212)","v":0},{"$f":"IF('Data Input - Option 3'!$F$37=\"Yes\",CM216+CM13*(1-$D$177),CM212)","v":0},{"$f":"IF('Data Input - Option 3'!$F$37=\"Yes\",CN216+CN13*(1-$D$177),CN212)","v":0},{"$f":"IF('Data Input - Option 3'!$F$37=\"Yes\",CO216+CO13*(1-$D$177),CO212)","v":0},{"$f":"IF('Data Input - Option 3'!$F$37=\"Yes\",CP216+CP13*(1-$D$177),CP212)","v":0},{"$f":"IF('Data Input - Option 3'!$F$37=\"Yes\",CQ216+CQ13*(1-$D$177),CQ212)","v":0},{"$f":"IF('Data Input - Option 3'!$F$37=\"Yes\",CR216+CR13*(1-$D$177),CR212)","v":0},{"$f":"IF('Data Input - Option 3'!$F$37=\"Yes\",CS216+CS13*(1-$D$177),CS212)","v":0},{"$f":"IF('Data Input - Option 3'!$F$37=\"Yes\",CT216+CT13*(1-$D$177),CT212)","v":0},{"$f":"IF('Data Input - Option 3'!$F$37=\"Yes\",CU216+CU13*(1-$D$177),CU212)","v":0},{"$f":"IF('Data Input - Option 3'!$F$37=\"Yes\",CV216+CV13*(1-$D$177),CV212)","v":0},{"$f":"IF('Data Input - Option 3'!$F$37=\"Yes\",CW216+CW13*(1-$D$177),CW212)","v":0},{"$f":"IF('Data Input - Option 3'!$F$37=\"Yes\",CX216+CX13*(1-$D$177),CX212)","v":0},{"$f":"IF('Data Input - Option 3'!$F$37=\"Yes\",CY216+CY13*(1-$D$177),CY212)","v":0}]
[]
[null,"High WACC","%",{"$f":"'Data Input - General'!H16","v":7.0000000000000007E-2}]
[null,"Annualised payment","£000's",{"$f":"IFERROR(-PMT($D$196,SUM('Data Input - General'!$H$26:$H$28),D20*(1+D177)*1000)/1000,0)","v":307.50695354534446}]
[null,"Annual value","£000's",{"$f":"IF(SUM($D$12:D$12)=0,0,$D$221)","v":307.50695354534446},{"$f":"IF(SUM($D$12:E$12)=0,0,$D$221)","v":307.50695354534446},{"$f":"IF(SUM($D$12:F$12)=0,0,$D$221)","v":307.50695354534446},{"$f":"IF(SUM($D$12:G$12)=0,0,$D$221)","v":307.50695354534446},{"$f":"IF(SUM($D$12:H$12)=0,0,$D$221)","v":307.50695354534446},{"$f":"IF(SUM($D$12:I$12)=0,0,$D$221)","v":307.50695354534446},{"$f":"IF(SUM($D$12:J$12)=0,0,$D$221)","v":307.50695354534446},{"$f":"IF(SUM($D$12:K$12)=0,0,$D$221)","v":307.50695354534446},{"$f":"IF(SUM($D$12:L$12)=0,0,$D$221)","v":307.50695354534446},{"$f":"IF(SUM($D$12:M$12)=0,0,$D$221)","v":307.50695354534446},{"$f":"IF(SUM($D$12:N$12)=0,0,$D$221)","v":307.50695354534446},{"$f":"IF(SUM($D$12:O$12)=0,0,$D$221)","v":307.50695354534446},{"$f":"IF(SUM($D$12:P$12)=0,0,$D$221)","v":307.50695354534446},{"$f":"IF(SUM($D$12:Q$12)=0,0,$D$221)","v":307.50695354534446},{"$f":"IF(SUM($D$12:R$12)=0,0,$D$221)","v":307.50695354534446},{"$f":"IF(SUM($D$12:S$12)=0,0,$D$221)","v":307.50695354534446},{"$f":"IF(SUM($D$12:T$12)=0,0,$D$221)","v":307.50695354534446},{"$f":"IF(SUM($D$12:U$12)=0,0,$D$221)","v":307.50695354534446},{"$f":"IF(SUM($D$12:V$12)=0,0,$D$221)","v":307.50695354534446},{"$f":"IF(SUM($D$12:W$12)=0,0,$D$221)","v":307.50695354534446},{"$f":"IF(SUM($D$12:X$12)=0,0,$D$221)","v":307.50695354534446},{"$f":"IF(SUM($D$12:Y$12)=0,0,$D$221)","v":307.50695354534446},{"$f":"IF(SUM($D$12:Z$12)=0,0,$D$221)","v":307.50695354534446},{"$f":"IF(SUM($D$12:AA$12)=0,0,$D$221)","v":307.50695354534446},{"$f":"IF(SUM($D$12:AB$12)=0,0,$D$221)","v":307.50695354534446},{"$f":"IF(SUM($D$12:AC$12)=0,0,$D$221)","v":307.50695354534446},{"$f":"IF(SUM($D$12:AD$12)=0,0,$D$221)","v":307.50695354534446},{"$f":"IF(SUM($D$12:AE$12)=0,0,$D$221)","v":307.50695354534446},{"$f":"IF(SUM($D$12:AF$12)=0,0,$D$221)","v":307.50695354534446},{"$f":"IF(SUM($D$12:AG$12)=0,0,$D$221)","v":307.50695354534446},{"$f":"IF(SUM($D$12:AH$12)=0,0,$D$221)","v":307.50695354534446},{"$f":"IF(SUM($D$12:AI$12)=0,0,$D$221)","v":307.50695354534446},{"$f":"IF(SUM($D$12:AJ$12)=0,0,$D$221)","v":307.50695354534446},{"$f":"IF(SUM($D$12:AK$12)=0,0,$D$221)","v":307.50695354534446},{"$f":"IF(SUM($D$12:AL$12)=0,0,$D$221)","v":307.50695354534446},{"$f":"IF(SUM($D$12:AM$12)=0,0,$D$221)","v":307.50695354534446},{"$f":"IF(SUM($D$12:AN$12)=0,0,$D$221)","v":307.50695354534446},{"$f":"IF(SUM($D$12:AO$12)=0,0,$D$221)","v":307.50695354534446},{"$f":"IF(SUM($D$12:AP$12)=0,0,$D$221)","v":307.50695354534446},{"$f":"IF(SUM($D$12:AQ$12)=0,0,$D$221)","v":307.50695354534446},{"$f":"IF(SUM($D$12:AR$12)=0,0,$D$221)","v":307.50695354534446},{"$f":"IF(SUM($D$12:AS$12)=0,0,$D$221)","v":307.50695354534446},{"$f":"IF(SUM($D$12:AT$12)=0,0,$D$221)","v":307.50695354534446},{"$f":"IF(SUM($D$12:AU$12)=0,0,$D$221)","v":307.50695354534446},{"$f":"IF(SUM($D$12:AV$12)=0,0,$D$221)","v":307.50695354534446},{"$f":"IF(SUM($D$12:AW$12)=0,0,$D$221)","v":307.50695354534446},{"$f":"IF(SUM($D$12:AX$12)=0,0,$D$221)","v":307.50695354534446},{"$f":"IF(SUM($D$12:AY$12)=0,0,$D$221)","v":307.50695354534446},{"$f":"IF(SUM($D$12:AZ$12)=0,0,$D$221)","v":307.50695354534446},{"$f":"IF(SUM($D$12:BA$12)=0,0,$D$221)","v":307.50695354534446},{"$f":"IF(SUM($D$12:BB$12)=0,0,$D$221)","v":307.50695354534446},{"$f":"IF(SUM($D$12:BC$12)=0,0,$D$221)","v":307.50695354534446},{"$f":"IF(SUM($D$12:BD$12)=0,0,$D$221)","v":307.50695354534446},{"$f":"IF(SUM($D$12:BE$12)=0,0,$D$221)","v":307.50695354534446},{"$f":"IF(SUM($D$12:BF$12)=0,0,$D$221)","v":307.50695354534446},{"$f":"IF(SUM($D$12:BG$12)=0,0,$D$221)","v":307.50695354534446},{"$f":"IF(SUM($D$12:BH$12)=0,0,$D$221)","v":307.50695354534446},{"$f":"IF(SUM($D$12:BI$12)=0,0,$D$221)","v":307.50695354534446},{"$f":"IF(SUM($D$12:BJ$12)=0,0,$D$221)","v":307.50695354534446},{"$f":"IF(SUM($D$12:BK$12)=0,0,$D$221)","v":307.50695354534446},{"$f":"IF(SUM($D$12:BL$12)=0,0,$D$221)","v":307.50695354534446},{"$f":"IF(SUM($D$12:BM$12)=0,0,$D$221)","v":307.50695354534446},{"$f":"IF(SUM($D$12:BN$12)=0,0,$D$221)","v":307.50695354534446},{"$f":"IF(SUM($D$12:BO$12)=0,0,$D$221)","v":307.50695354534446},{"$f":"IF(SUM($D$12:BP$12)=0,0,$D$221)","v":307.50695354534446},{"$f":"IF(SUM($D$12:BQ$12)=0,0,$D$221)","v":307.50695354534446},{"$f":"IF(SUM($D$12:BR$12)=0,0,$D$221)","v":307.50695354534446},{"$f":"IF(SUM($D$12:BS$12)=0,0,$D$221)","v":307.50695354534446},{"$f":"IF(SUM($D$12:BT$12)=0,0,$D$221)","v":307.50695354534446},{"$f":"IF(SUM($D$12:BU$12)=0,0,$D$221)","v":307.50695354534446},{"$f":"IF(SUM($D$12:BV$12)=0,0,$D$221)","v":307.50695354534446},{"$f":"IF(SUM($D$12:BW$12)=0,0,$D$221)","v":307.50695354534446},{"$f":"IF(SUM($D$12:BX$12)=0,0,$D$221)","v":307.50695354534446},{"$f":"IF(SUM($D$12:BY$12)=0,0,$D$221)","v":307.50695354534446},{"$f":"IF(SUM($D$12:BZ$12)=0,0,$D$221)","v":307.50695354534446},{"$f":"IF(SUM($D$12:CA$12)=0,0,$D$221)","v":307.50695354534446},{"$f":"IF(SUM($D$12:CB$12)=0,0,$D$221)","v":307.50695354534446},{"$f":"IF(SUM($D$12:CC$12)=0,0,$D$221)","v":307.50695354534446},{"$f":"IF(SUM($D$12:CD$12)=0,0,$D$221)","v":307.50695354534446},{"$f":"IF(SUM($D$12:CE$12)=0,0,$D$221)","v":307.50695354534446},{"$f":"IF(SUM($D$12:CF$12)=0,0,$D$221)","v":307.50695354534446},{"$f":"IF(SUM($D$12:CG$12)=0,0,$D$221)","v":307.50695354534446},{"$f":"IF(SUM($D$12:CH$12)=0,0,$D$221)","v":307.50695354534446},{"$f":"IF(SUM($D$12:CI$12)=0,0,$D$221)","v":307.50695354534446},{"$f":"IF(SUM($D$12:CJ$12)=0,0,$D$221)","v":307.50695354534446},{"$f":"IF(SUM($D$12:CK$12)=0,0,$D$221)","v":307.50695354534446},{"$f":"IF(SUM($D$12:CL$12)=0,0,$D$221)","v":307.50695354534446},{"$f":"IF(SUM($D$12:CM$12)=0,0,$D$221)","v":307.50695354534446},{"$f":"IF(SUM($D$12:CN$12)=0,0,$D$221)","v":307.50695354534446},{"$f":"IF(SUM($D$12:CO$12)=0,0,$D$221)","v":307.50695354534446},{"$f":"IF(SUM($D$12:CP$12)=0,0,$D$221)","v":307.50695354534446},{"$f":"IF(SUM($D$12:CQ$12)=0,0,$D$221)","v":307.50695354534446},{"$f":"IF(SUM($D$12:CR$12)=0,0,$D$221)","v":307.50695354534446},{"$f":"IF(SUM($D$12:CS$12)=0,0,$D$221)","v":307.50695354534446},{"$f":"IF(SUM($D$12:CT$12)=0,0,$D$221)","v":307.50695354534446},{"$f":"IF(SUM($D$12:CU$12)=0,0,$D$221)","v":307.50695354534446},{"$f":"IF(SUM($D$12:CV$12)=0,0,$D$221)","v":307.50695354534446},{"$f":"IF(SUM($D$12:CW$12)=0,0,$D$221)","v":307.50695354534446},{"$f":"IF(SUM($D$12:CX$12)=0,0,$D$221)","v":307.50695354534446},{"$f":"IF(SUM($D$12:CY$12)=0,0,$D$221)","v":307.50695354534446}]
[null,"Discounted WACC","£000's",{"$f":"D222*D$7","v":307.50695354534446},{"$f":"E222*E$7","v":297.10816767666131},287.06103157165347,277.35365369241885,267.97454463035638,258.91260350759075,250.15710483825194,241.69768583405985,233.52433413918831,225.62737597989209,217.99746471487163,210.62556977282281,203.50296596408006,196.62122315370056,189.97219628376865,183.54801573310982,177.34107800300467,171.34403671787894,165.5497939303178,159.95149172011384,154.54250407740469,149.31642906029438,144.26708121767575,139.38848426828577,134.67486402732925,130.12064157229881,125.72042663990224,121.46901124628238,117.36136352297815,113.39262176133155,110.08992404012771,0,0,0,0,0,0,0,0,0,0,0,0,0,0,0,0,0,0,0,0,0,0,0,0,0,0,0,0,0,0,0,0,0,0,{"$f":"BQ222*BQ$7","v":0},0,0,0,0,0,0,0,0,0,0,0,0,0,0,0,0,0,0,0,0,0,0,0,0,0,0,0,0,0,0,0,0,0,0]
[]
[null,"Financing costs"]
[null,"Financing costs (if entered manually)","£000's",{"$f":"'Data Input - Option 3'!H42","v":0},{"$f":"'Data Input - Option 3'!I42","v":0},{"$f":"'Data Input - Option 3'!J42","v":0},{"$f":"'Data Input - Option 3'!K42","v":0},{"$f":"'Data Input - Option 3'!L42","v":0},{"$f":"'Data Input - Option 3'!M42","v":0},{"$f":"'Data Input - Option 3'!N42","v":0},{"$f":"'Data Input - Option 3'!O42","v":0},{"$f":"'Data Input - Option 3'!P42","v":0},{"$f":"'Data Input - Option 3'!Q42","v":0},{"$f":"'Data Input - Option 3'!R42","v":0},{"$f":"'Data Input - Option 3'!S42","v":0},{"$f":"'Data Input - Option 3'!T42","v":0},{"$f":"'Data Input - Option 3'!U42","v":0},{"$f":"'Data Input - Option 3'!V42","v":0},{"$f":"'Data Input - Option 3'!W42","v":0},{"$f":"'Data Input - Option 3'!X42","v":0},{"$f":"'Data Input - Option 3'!Y42","v":0},{"$f":"'Data Input - Option 3'!Z42","v":0},{"$f":"'Data Input - Option 3'!AA42","v":0},{"$f":"'Data Input - Option 3'!AB42","v":0},{"$f":"'Data Input - Option 3'!AC42","v":0},{"$f":"'Data Input - Option 3'!AD42","v":0},{"$f":"'Data Input - Option 3'!AE42","v":0},{"$f":"'Data Input - Option 3'!AF42","v":0},{"$f":"'Data Input - Option 3'!AG42","v":0},{"$f":"'Data Input - Option 3'!AH42","v":0},{"$f":"'Data Input - Option 3'!AI42","v":0},{"$f":"'Data Input - Option 3'!AJ42","v":0},{"$f":"'Data Input - Option 3'!AK42","v":0},{"$f":"'Data Input - Option 3'!AL42","v":0},{"$f":"'Data Input - Option 3'!AM42","v":0},{"$f":"'Data Input - Option 3'!AN42","v":0},{"$f":"'Data Input - Option 3'!AO42","v":0},{"$f":"'Data Input - Option 3'!AP42","v":0},{"$f":"'Data Input - Option 3'!AQ42","v":0},{"$f":"'Data Input - Option 3'!AR42","v":0},{"$f":"'Data Input - Option 3'!AS42","v":0},{"$f":"'Data Input - Option 3'!AT42","v":0},{"$f":"'Data Input - Option 3'!AU42","v":0},{"$f":"'Data Input - Option 3'!AV42","v":0},{"$f":"'Data Input - Option 3'!AW42","v":0},{"$f":"'Data Input - Option 3'!AX42","v":0},{"$f":"'Data Input - Option 3'!AY42","v":0},{"$f":"'Data Input - Option 3'!AZ42","v":0},{"$f":"'Data Input - Option 3'!BA42","v":0},{"$f":"'Data Input - Option 3'!BB42","v":0},{"$f":"'Data Input - Option 3'!BC42","v":0},{"$f":"'Data Input - Option 3'!BD42","v":0},{"$f":"'Data Input - Option 3'!BE42","v":0},{"$f":"'Data Input - Option 3'!BF42","v":0},{"$f":"'Data Input - Option 3'!BG42","v":0},{"$f":"'Data Input - Option 3'!BH42","v":0},{"$f":"'Data Input - Option 3'!BI42","v":0},{"$f":"'Data Input - Option 3'!BJ42","v":0},{"$f":"'Data Input - Option 3'!BK42","v":0},{"$f":"'Data Input - Option 3'!BL42","v":0},{"$f":"'Data Input - Option 3'!BM42","v":0},{"$f":"'Data Input - Option 3'!BN42","v":0},{"$f":"'Data Input - Option 3'!BO42","v":0},{"$f":"'Data Input - Option 3'!BP42","v":0},{"$f":"'Data Input - Option 3'!BQ42","v":0},{"$f":"'Data Input - Option 3'!BR42","v":0},{"$f":"'Data Input - Option 3'!BS42","v":0},{"$f":"'Data Input - Option 3'!BT42","v":0},{"$f":"'Data Input - Option 3'!BU42","v":0},{"$f":"'Data Input - Option 3'!BV42","v":0},{"$f":"'Data Input - Option 3'!BW42","v":0},{"$f":"'Data Input - Option 3'!BX42","v":0},{"$f":"'Data Input - Option 3'!BY42","v":0},{"$f":"'Data Input - Option 3'!BZ42","v":0},{"$f":"'Data Input - Option 3'!CA42","v":0},{"$f":"'Data Input - Option 3'!CB42","v":0},{"$f":"'Data Input - Option 3'!CC42","v":0},{"$f":"'Data Input - Option 3'!CD42","v":0},{"$f":"'Data Input - Option 3'!CE42","v":0},{"$f":"'Data Input - Option 3'!CF42","v":0},{"$f":"'Data Input - Option 3'!CG42","v":0},{"$f":"'Data Input - Option 3'!CH42","v":0},{"$f":"'Data Input - Option 3'!CI42","v":0},{"$f":"'Data Input - Option 3'!CJ42","v":0},{"$f":"'Data Input - Option 3'!CK42","v":0},{"$f":"'Data Input - Option 3'!CL42","v":0},{"$f":"'Data Input - Option 3'!CM42","v":0},{"$f":"'Data Input - Option 3'!CN42","v":0},{"$f":"'Data Input - Option 3'!CO42","v":0},{"$f":"'Data Input - Option 3'!CP42","v":0},{"$f":"'Data Input - Option 3'!CQ42","v":0},{"$f":"'Data Input - Option 3'!CR42","v":0},{"$f":"'Data Input - Option 3'!CS42","v":0},{"$f":"'Data Input - Option 3'!CT42","v":0},{"$f":"'Data Input - Option 3'!CU42","v":0},{"$f":"'Data Input - Option 3'!CV42","v":0},{"$f":"'Data Input - Option 3'!CW42","v":0},{"$f":"'Data Input - Option 3'!CX42","v":0},{"$f":"'Data Input - Option 3'!CY42","v":0},{"$f":"'Data Input - Option 3'!CZ42","v":0},{"$f":"'Data Input - Option 3'!DA42","v":0},{"$f":"'Data Input - Option 3'!DB42","v":0},{"$f":"'Data Input - Option 3'!DC42","v":0}]
[null,"Discounted finacning","£000's",{"$f":"D226*D$7","v":0},{"$f":"E226*E$7","v":0},0,0,0,0,0,0,0,0,0,0,0,0,0,0,0,0,0,0,0,0,0,0,0,0,0,0,0,0,0,0,0,0,0,0,0,0,0,0,0,0,0,0,0,0,0,0,0,0,0,0,0,0,0,0,0,0,0,0,0,0,0,0,0,{"$f":"BQ226*BQ$7","v":0},0,0,0,0,0,0,0,0,0,0,0,0,0,0,0,0,0,0,0,0,0,0,0,0,0,0,0,0,0,0,0,0,0,0]
[]
[null,"Total capex","£000's",{"$f":"IF('Data Input - Option 3'!$F$37=\"Yes\",D227+D13*(1+$D$177),D223)","v":307.50695354534446},{"$f":"IF('Data Input - Option 3'!$F$37=\"Yes\",E227+E13*(1+$D$177),E223)","v":297.10816767666131},{"$f":"IF('Data Input - Option 3'!$F$37=\"Yes\",F227+F13*(1+$D$177),F223)","v":287.06103157165347},{"$f":"IF('Data Input - Option 3'!$F$37=\"Yes\",G227+G13*(1+$D$177),G223)","v":277.35365369241885},{"$f":"IF('Data Input - Option 3'!$F$37=\"Yes\",H227+H13*(1+$D$177),H223)","v":267.97454463035638},{"$f":"IF('Data Input - Option 3'!$F$37=\"Yes\",I227+I13*(1+$D$177),I223)","v":258.91260350759075},{"$f":"IF('Data Input - Option 3'!$F$37=\"Yes\",J227+J13*(1+$D$177),J223)","v":250.15710483825194},{"$f":"IF('Data Input - Option 3'!$F$37=\"Yes\",K227+K13*(1+$D$177),K223)","v":241.69768583405985},{"$f":"IF('Data Input - Option 3'!$F$37=\"Yes\",L227+L13*(1+$D$177),L223)","v":233.52433413918831},{"$f":"IF('Data Input - Option 3'!$F$37=\"Yes\",M227+M13*(1+$D$177),M223)","v":225.62737597989209},{"$f":"IF('Data Input - Option 3'!$F$37=\"Yes\",N227+N13*(1+$D$177),N223)","v":217.99746471487163},{"$f":"IF('Data Input - Option 3'!$F$37=\"Yes\",O227+O13*(1+$D$177),O223)","v":210.62556977282281},{"$f":"IF('Data Input - Option 3'!$F$37=\"Yes\",P227+P13*(1+$D$177),P223)","v":203.50296596408006},{"$f":"IF('Data Input - Option 3'!$F$37=\"Yes\",Q227+Q13*(1+$D$177),Q223)","v":196.62122315370056},{"$f":"IF('Data Input - Option 3'!$F$37=\"Yes\",R227+R13*(1+$D$177),R223)","v":189.97219628376865},{"$f":"IF('Data Input - Option 3'!$F$37=\"Yes\",S227+S13*(1+$D$177),S223)","v":183.54801573310982},{"$f":"IF('Data Input - Option 3'!$F$37=\"Yes\",T227+T13*(1+$D$177),T223)","v":177.34107800300467},{"$f":"IF('Data Input - Option 3'!$F$37=\"Yes\",U227+U13*(1+$D$177),U223)","v":171.34403671787894},{"$f":"IF('Data Input - Option 3'!$F$37=\"Yes\",V227+V13*(1+$D$177),V223)","v":165.5497939303178},{"$f":"IF('Data Input - Option 3'!$F$37=\"Yes\",W227+W13*(1+$D$177),W223)","v":159.95149172011384},{"$f":"IF('Data Input - Option 3'!$F$37=\"Yes\",X227+X13*(1+$D$177),X223)","v":154.54250407740469},{"$f":"IF('Data Input - Option 3'!$F$37=\"Yes\",Y227+Y13*(1+$D$177),Y223)","v":149.31642906029438},{"$f":"IF('Data Input - Option 3'!$F$37=\"Yes\",Z227+Z13*(1+$D$177),Z223)","v":144.26708121767575},{"$f":"IF('Data Input - Option 3'!$F$37=\"Yes\",AA227+AA13*(1+$D$177),AA223)","v":139.38848426828577},{"$f":"IF('Data Input - Option 3'!$F$37=\"Yes\",AB227+AB13*(1+$D$177),AB223)","v":134.67486402732925},{"$f":"IF('Data Input - Option 3'!$F$37=\"Yes\",AC227+AC13*(1+$D$177),AC223)","v":130.12064157229881},{"$f":"IF('Data Input - Option 3'!$F$37=\"Yes\",AD227+AD13*(1+$D$177),AD223)","v":125.72042663990224},{"$f":"IF('Data Input - Option 3'!$F$37=\"Yes\",AE227+AE13*(1+$D$177),AE223)","v":121.46901124628238},{"$f":"IF('Data Input - Option 3'!$F$37=\"Yes\",AF227+AF13*(1+$D$177),AF223)","v":117.36136352297815},{"$f":"IF('Data Input - Option 3'!$F$37=\"Yes\",AG227+AG13*(1+$D$177),AG223)","v":113.39262176133155},{"$f":"IF('Data Input - Option 3'!$F$37=\"Yes\",AH227+AH13*(1+$D$177),AH223)","v":110.08992404012771},{"$f":"IF('Data Input - Option 3'!$F$37=\"Yes\",AI227+AI13*(1+$D$177),AI223)","v":0},{"$f":"IF('Data Input - Option 3'!$F$37=\"Yes\",AJ227+AJ13*(1+$D$177),AJ223)","v":0},{"$f":"IF('Data Input - Option 3'!$F$37=\"Yes\",AK227+AK13*(1+$D$177),AK223)","v":0},{"$f":"IF('Data Input - Option 3'!$F$37=\"Yes\",AL227+AL13*(1+$D$177),AL223)","v":0},{"$f":"IF('Data Input - Option 3'!$F$37=\"Yes\",AM227+AM13*(1+$D$177),AM223)","v":0},{"$f":"IF('Data Input - Option 3'!$F$37=\"Yes\",AN227+AN13*(1+$D$177),AN223)","v":0},{"$f":"IF('Data Input - Option 3'!$F$37=\"Yes\",AO227+AO13*(1+$D$177),AO223)","v":0},{"$f":"IF('Data Input - Option 3'!$F$37=\"Yes\",AP227+AP13*(1+$D$177),AP223)","v":0},{"$f":"IF('Data Input - Option 3'!$F$37=\"Yes\",AQ227+AQ13*(1+$D$177),AQ223)","v":0},{"$f":"IF('Data Input - Option 3'!$F$37=\"Yes\",AR227+AR13*(1+$D$177),AR223)","v":0},{"$f":"IF('Data Input - Option 3'!$F$37=\"Yes\",AS227+AS13*(1+$D$177),AS223)","v":0},{"$f":"IF('Data Input - Option 3'!$F$37=\"Yes\",AT227+AT13*(1+$D$177),AT223)","v":0},{"$f":"IF('Data Input - Option 3'!$F$37=\"Yes\",AU227+AU13*(1+$D$177),AU223)","v":0},{"$f":"IF('Data Input - Option 3'!$F$37=\"Yes\",AV227+AV13*(1+$D$177),AV223)","v":0},{"$f":"IF('Data Input - Option 3'!$F$37=\"Yes\",AW227+AW13*(1+$D$177),AW223)","v":0},{"$f":"IF('Data Input - Option 3'!$F$37=\"Yes\",AX227+AX13*(1+$D$177),AX223)","v":0},{"$f":"IF('Data Input - Option 3'!$F$37=\"Yes\",AY227+AY13*(1+$D$177),AY223)","v":0},{"$f":"IF('Data Input - Option 3'!$F$37=\"Yes\",AZ227+AZ13*(1+$D$177),AZ223)","v":0},{"$f":"IF('Data Input - Option 3'!$F$37=\"Yes\",BA227+BA13*(1+$D$177),BA223)","v":0},{"$f":"IF('Data Input - Option 3'!$F$37=\"Yes\",BB227+BB13*(1+$D$177),BB223)","v":0},{"$f":"IF('Data Input - Option 3'!$F$37=\"Yes\",BC227+BC13*(1+$D$177),BC223)","v":0},{"$f":"IF('Data Input - Option 3'!$F$37=\"Yes\",BD227+BD13*(1+$D$177),BD223)","v":0},{"$f":"IF('Data Input - Option 3'!$F$37=\"Yes\",BE227+BE13*(1+$D$177),BE223)","v":0},{"$f":"IF('Data Input - Option 3'!$F$37=\"Yes\",BF227+BF13*(1+$D$177),BF223)","v":0},{"$f":"IF('Data Input - Option 3'!$F$37=\"Yes\",BG227+BG13*(1+$D$177),BG223)","v":0},{"$f":"IF('Data Input - Option 3'!$F$37=\"Yes\",BH227+BH13*(1+$D$177),BH223)","v":0},{"$f":"IF('Data Input - Option 3'!$F$37=\"Yes\",BI227+BI13*(1+$D$177),BI223)","v":0},{"$f":"IF('Data Input - Option 3'!$F$37=\"Yes\",BJ227+BJ13*(1+$D$177),BJ223)","v":0},{"$f":"IF('Data Input - Option 3'!$F$37=\"Yes\",BK227+BK13*(1+$D$177),BK223)","v":0},{"$f":"IF('Data Input - Option 3'!$F$37=\"Yes\",BL227+BL13*(1+$D$177),BL223)","v":0},{"$f":"IF('Data Input - Option 3'!$F$37=\"Yes\",BM227+BM13*(1+$D$177),BM223)","v":0},{"$f":"IF('Data Input - Option 3'!$F$37=\"Yes\",BN227+BN13*(1+$D$177),BN223)","v":0},{"$f":"IF('Data Input - Option 3'!$F$37=\"Yes\",BO227+BO13*(1+$D$177),BO223)","v":0},{"$f":"IF('Data Input - Option 3'!$F$37=\"Yes\",BP227+BP13*(1+$D$177),BP223)","v":0},{"$f":"IF('Data Input - Option 3'!$F$37=\"Yes\",BQ227+BQ13*(1+$D$177),BQ223)","v":0},{"$f":"IF('Data Input - Option 3'!$F$37=\"Yes\",BR227+BR13*(1+$D$177),BR223)","v":0},{"$f":"IF('Data Input - Option 3'!$F$37=\"Yes\",BS227+BS13*(1+$D$177),BS223)","v":0},{"$f":"IF('Data Input - Option 3'!$F$37=\"Yes\",BT227+BT13*(1+$D$177),BT223)","v":0},{"$f":"IF('Data Input - Option 3'!$F$37=\"Yes\",BU227+BU13*(1+$D$177),BU223)","v":0},{"$f":"IF('Data Input - Option 3'!$F$37=\"Yes\",BV227+BV13*(1+$D$177),BV223)","v":0},{"$f":"IF('Data Input - Option 3'!$F$37=\"Yes\",BW227+BW13*(1+$D$177),BW223)","v":0},{"$f":"IF('Data Input - Option 3'!$F$37=\"Yes\",BX227+BX13*(1+$D$177),BX223)","v":0},{"$f":"IF('Data Input - Option 3'!$F$37=\"Yes\",BY227+BY13*(1+$D$177),BY223)","v":0},{"$f":"IF('Data Input - Option 3'!$F$37=\"Yes\",BZ227+BZ13*(1+$D$177),BZ223)","v":0},{"$f":"IF('Data Input - Option 3'!$F$37=\"Yes\",CA227+CA13*(1+$D$177),CA223)","v":0},{"$f":"IF('Data Input - Option 3'!$F$37=\"Yes\",CB227+CB13*(1+$D$177),CB223)","v":0},{"$f":"IF('Data Input - Option 3'!$F$37=\"Yes\",CC227+CC13*(1+$D$177),CC223)","v":0},{"$f":"IF('Data Input - Option 3'!$F$37=\"Yes\",CD227+CD13*(1+$D$177),CD223)","v":0},{"$f":"IF('Data Input - Option 3'!$F$37=\"Yes\",CE227+CE13*(1+$D$177),CE223)","v":0},{"$f":"IF('Data Input - Option 3'!$F$37=\"Yes\",CF227+CF13*(1+$D$177),CF223)","v":0},{"$f":"IF('Data Input - Option 3'!$F$37=\"Yes\",CG227+CG13*(1+$D$177),CG223)","v":0},{"$f":"IF('Data Input - Option 3'!$F$37=\"Yes\",CH227+CH13*(1+$D$177),CH223)","v":0},{"$f":"IF('Data Input - Option 3'!$F$37=\"Yes\",CI227+CI13*(1+$D$177),CI223)","v":0},{"$f":"IF('Data Input - Option 3'!$F$37=\"Yes\",CJ227+CJ13*(1+$D$177),CJ223)","v":0},{"$f":"IF('Data Input - Option 3'!$F$37=\"Yes\",CK227+CK13*(1+$D$177),CK223)","v":0},{"$f":"IF('Data Input - Option 3'!$F$37=\"Yes\",CL227+CL13*(1+$D$177),CL223)","v":0},{"$f":"IF('Data Input - Option 3'!$F$37=\"Yes\",CM227+CM13*(1+$D$177),CM223)","v":0},{"$f":"IF('Data Input - Option 3'!$F$37=\"Yes\",CN227+CN13*(1+$D$177),CN223)","v":0},{"$f":"IF('Data Input - Option 3'!$F$37=\"Yes\",CO227+CO13*(1+$D$177),CO223)","v":0},{"$f":"IF('Data Input - Option 3'!$F$37=\"Yes\",CP227+CP13*(1+$D$177),CP223)","v":0},{"$f":"IF('Data Input - Option 3'!$F$37=\"Yes\",CQ227+CQ13*(1+$D$177),CQ223)","v":0},{"$f":"IF('Data Input - Option 3'!$F$37=\"Yes\",CR227+CR13*(1+$D$177),CR223)","v":0},{"$f":"IF('Data Input - Option 3'!$F$37=\"Yes\",CS227+CS13*(1+$D$177),CS223)","v":0},{"$f":"IF('Data Input - Option 3'!$F$37=\"Yes\",CT227+CT13*(1+$D$177),CT223)","v":0},{"$f":"IF('Data Input - Option 3'!$F$37=\"Yes\",CU227+CU13*(1+$D$177),CU223)","v":0},{"$f":"IF('Data Input - Option 3'!$F$37=\"Yes\",CV227+CV13*(1+$D$177),CV223)","v":0},{"$f":"IF('Data Input - Option 3'!$F$37=\"Yes\",CW227+CW13*(1+$D$177),CW223)","v":0},{"$f":"IF('Data Input - Option 3'!$F$37=\"Yes\",CX227+CX13*(1+$D$177),CX223)","v":0},{"$f":"IF('Data Input - Option 3'!$F$37=\"Yes\",CY227+CY13*(1+$D$177),CY223)","v":0}]
[]
[null,"TOTALS"]
[]
[null,"Scenario Name",null,"Central","Low values","High values","EEA",null,"Low cost (Capex / opex)","High Cost (capex / opex)","Low WACC","High WACC","Low cost (Capex / WACC)","High cost (Capex / WACC)"]
[null,"Capex","£000's",{"$f":"SUM(D36:CY36)","v":0},null,null,null,null,{"$f":"D234*(1-$D$177)","v":0},{"$f":"D234*(1+$D$177)","v":0},{"$f":"SUM(D194:CY194)","v":0},{"$f":"SUM(D205:CY205)","v":0},{"$f":"SUM(D218:CY218)","v":5492.9987374055581},{"$f":"SUM(D229:CY229)","v":5963.7206428429972}]
[null,"Opex","£000's",{"$f":"SUM(D40:CY40)","v":1778.6359951155805},null,null,null,null,{"$f":"$D$235*(1-$D$181)","v":1422.9087960924644},{"$f":"$D$235*(1+$D$181)","v":2134.3631941386966}]
[null,"Waste","£000's",{"$f":"SUM(D44:CY44)","v":0}]
[null,"Energy consumption","£000's",{"$f":"SUM(D48:CY48)","v":13760.554840926725},{"$f":"SUM(D101:CY101)+SUM(D49:CY49)","v":11599.698494982224},{"$f":"SUM(D135:CY135)+SUM(D49:CY49)","v":16136.201205231264}]
[null,"Air pollutant emissions","£000's",{"$f":"SUM(D72:CY72)","v":13.643163038497816},{"$f":"SUM(D115:CY115)","v":3.24277954573573},{"$f":"SUM(D149:CY149)","v":38.845932573028769},{"$f":"SUM(D173:CY173)","v":21.445736394458951}]
[null,"GHG emissions","£000's",{"$f":"SUM(D87:CY87)","v":17835.394406139319},{"$f":"SUM(D122:CY122)","v":8517.216153484349},{"$f":"SUM(D156:CY156)","v":48884.907472925821}]
[null,"Wider impacts","£000's"]
[]
[null,"Sensitivity analysis",null,"Low capex","High capex","Low opex","High opex","Low energy price","High energy price","Low AQ Values","High AQ Values","EEA Values","Location adjusted AQ","Low WACC","High WACC"]
[null,"Capex","£000's",{"$f":"I234","v":0},{"$f":"J234","v":0},{"$f":"$D234","v":0},0,0,0,0,0,0,0,{"$f":"K234","v":0},{"$f":"L234","v":0}]
[null,"Opex","£000's",{"$f":"$D235","v":1778.6359951155805},1778.6359951155805,{"$f":"I235","v":1422.9087960924644},{"$f":"J235","v":2134.3631941386966},{"$f":"$D235","v":1778.6359951155805},1778.6359951155805,1778.6359951155805,1778.6359951155805,1778.6359951155805,1778.6359951155805,1778.6359951155805,1778.6359951155805]
[null,"Waste","£000's",0,0,{"$f":"$D236","v":0},0,0,0,0,0,0,0,0,0]
[null,"Energy consumption","£000's",13760.554840926725,13760.554840926725,13760.554840926725,13760.554840926725,{"$f":"E237","v":11599.698494982224},{"$f":"F237","v":16136.201205231264},{"$f":"$D237","v":13760.554840926725},13760.554840926725,13760.554840926725,13760.554840926725,13760.554840926725,13760.554840926725]
[null,"Air pollutant emissions","£000's",13.643163038497816,13.643163038497816,13.643163038497816,13.643163038497816,{"$f":"$D238","v":13.643163038497816},{"$f":"$D238","v":13.643163038497816},{"$f":"E238","v":3.24277954573573},{"$f":"F238","v":38.845932573028769},{"$f":"G238","v":21.445736394458951},{"$f":"H238","v":0},{"$f":"$D238","v":13.643163038497816},{"$f":"$D238","v":13.643163038497816}]
[null,"GHG emissions","£000's",17835.394406139319,17835.394406139319,17835.394406139319,17835.394406139319,{"$f":"$D239","v":17835.394406139319},{"$f":"$D239","v":17835.394406139319},{"$f":"$D239","v":17835.394406139319},{"$f":"$D239","v":17835.394406139319},{"$f":"$D239","v":17835.394406139319},{"$f":"$D239","v":17835.394406139319},{"$f":"$D239","v":17835.394406139319},{"$f":"$D239","v":17835.394406139319}]
[]
[null,"Scenario analysis",null,"H Cost/L Benefit","L Cost/H benefit"]
[null,"Capex","£000's",{"$f":"N234","v":5963.7206428429972},{"$f":"M234","v":5492.9987374055581}]
[null,"Opex","£000's",{"$f":"J235","v":2134.3631941386966},{"$f":"I235","v":1422.9087960924644}]
[null,"Waste","£000's",{"$f":"$D$236","v":0},{"$f":"$D$236","v":0}]
[null,"Energy consumption","£000's",{"$f":"E237","v":11599.698494982224},16136.201205231264]
[null,"Air pollutant emissions","£000's",3.24277954573573,38.845932573028769]
[null,"GHG emissions","£000's",8517.216153484349,48884.907472925821]
[]
[null,"Totals £m"]
[]
[null,"Scenario Name",null,"Central","Low values","High values","EEA","Location adjusted","Low cost (Capex / opex)","High Cost (capex / opex)","Low WACC","High WACC","Low cost (Capex / WACC)","High cost (Capex / WACC)"]
[null,"Capex","£m",{"$f":"D234/1000","v":0},0,0,0,0,0,0,0,0,5.492998737405558,5.963720642842997]
[null,"Opex","£m",{"$f":"D235/1000","v":1.7786359951155806},0,0,0,0,1.4229087960924645,2.1343631941386967,0,0,0,0]
[null,"Waste","£m",{"$f":"D236/1000","v":0},0,0,0,0,0,0,0,0,0,0]
[null,"Energy consumption","£m",{"$f":"D237/1000","v":13.760554840926725},11.599698494982224,16.136201205231263,0,0,0,0,0,0,0,0]
[null,"Air pollutant emissions","£m",{"$f":"D238/1000","v":1.3643163038497816E-2},3.2427795457357299E-3,3.884593257302877E-2,2.1445736394458952E-2,0,0,0,0,0,0,0]
[null,"GHG emissions","£m",{"$f":"D239/1000","v":17.835394406139319},8.5172161534843482,48.884907472925818,0,0,0,0,0,0,0,0]
[null,"Wider impacts","£m",{"$f":"D240/1000","v":0},0,0,0,0,0,0,0,0,0,0]
[]
[null,"Sensitivity analysis",null,"Low capex","High capex","Low opex","High opex","Low energy price","High energy price","Low AQ Values","High AQ Values","EEA Values","Location adjusted AQ","Low WACC","High WACC"]
[null,"Capex","£m",{"$f":"D243/1000","v":0},0,0,0,0,0,0,0,0,0,0,0]
[null,"Opex","£m",{"$f":"D244/1000","v":1.7786359951155806},1.7786359951155806,1.4229087960924645,2.1343631941386967,1.7786359951155806,1.7786359951155806,1.7786359951155806,1.7786359951155806,1.7786359951155806,1.7786359951155806,1.7786359951155806,1.7786359951155806]
[null,"Waste","£m",{"$f":"D245/1000","v":0},0,0,0,0,0,0,0,0,0,0,0]
[null,"Energy consumption","£m",{"$f":"D246/1000","v":13.760554840926725},13.760554840926725,13.760554840926725,13.760554840926725,11.599698494982224,16.136201205231263,13.760554840926725,13.760554840926725,13.760554840926725,13.760554840926725,13.760554840926725,13.760554840926725]
[null,"Air pollutant emissions","£m",{"$f":"D247/1000","v":1.3643163038497816E-2},1.3643163038497816E-2,1.3643163038497816E-2,1.3643163038497816E-2,1.3643163038497816E-2,1.3643163038497816E-2,3.2427795457357299E-3,3.884593257302877E-2,2.1445736394458952E-2,0,1.3643163038497816E-2,1.3643163038497816E-2]
[null,"GHG emissions","£m",{"$f":"D248/1000","v":17.835394406139319},17.835394406139319,17.835394406139319,17.835394406139319,17.835394406139319,17.835394406139319,17.835394406139319,17.835394406139319,17.835394406139319,17.835394406139319,17.835394406139319,17.835394406139319]
[]
[null,"Scenario analysis",null,{"$f":"D250","v":"H Cost/L Benefit"},"L Cost/H benefit"]
[null,"Capex","£m",{"$f":"D251/1000","v":5.963720642842997},5.492998737405558]
[null,"Opex","£m",2.1343631941386967,1.4229087960924645]
[null,"Waste","£m",0,0]
[null,"Energy consumption","£m",11.599698494982224,16.136201205231263]
[null,"Air pollutant emissions","£m",3.2427795457357299E-3,3.884593257302877E-2]
[null,"GHG emissions","£m",8.5172161534843482,48.884907472925818]

{"sheet":"Calc_Option4","index":23,"n_rows":283,"n_cols":103,"rows_kept":283,"cut":false,"hidden":false,"merged":[]}
[]
[null,"Calculations - Option 4","<< BACK to Data Input"]
[null,{"$f":"IF(ISBLANK('Data Input - Case description'!G21),\"Option not selected\",'Data Input - Case description'!G21)","v":"Option not selected"}]
[null,"First year",{"$f":"IF('Data Input - General'!F25=0,'Data Input - General'!F22,'Data Input - General'!F25)","v":2019}]
[null,"Year number",null,0,1,2,3,4,5,6,7,8,9,10,11,12,13,14,15,16,17,18,19,20,21,22,23,24,25,26,27,28,29,30,31,32,33,34,35,36,37,38,39,40,41,42,43,44,45,46,47,48,49,50,51,52,53,54,55,56,57,58,59]
[null,"Year",null,{"$f":"'Data Input - Option 4'!H7","v":2019},{"$f":"'Data Input - Option 4'!I7","v":2020},{"$f":"'Data Input - Option 4'!J7","v":2021},{"$f":"'Data Input - Option 4'!K7","v":2022},{"$f":"'Data Input - Option 4'!L7","v":2023},{"$f":"'Data Input - Option 4'!M7","v":2024},{"$f":"'Data Input - Option 4'!N7","v":2025},{"$f":"'Data Input - Option 4'!O7","v":2026},{"$f":"'Data Input - Option 4'!P7","v":2027},{"$f":"'Data Input - Option 4'!Q7","v":2028},{"$f":"'Data Input - Option 4'!R7","v":2029},{"$f":"'Data Input - Option 4'!S7","v":2030},{"$f":"'Data Input - Option 4'!T7","v":2031},{"$f":"'Data Input - Option 4'!U7","v":2032},{"$f":"'Data Input - Option 4'!V7","v":2033},{"$f":"'Data Input - Option 4'!W7","v":2034},{"$f":"'Data Input - Option 4'!X7","v":2035},{"$f":"'Data Input - Option 4'!Y7","v":2036},{"$f":"'Data Input - Option 4'!Z7","v":2037},{"$f":"'Data Input - Option 4'!AA7","v":2038},{"$f":"'Data Input - Option 4'!AB7","v":2039},{"$f":"'Data Input - Option 4'!AC7","v":2040},{"$f":"'Data Input - Option 4'!AD7","v":2041},{"$f":"'Data Input - Option 4'!AE7","v":2042},{"$f":"'Data Input - Option 4'!AF7","v":2043},{"$f":"'Data Input - Option 4'!AG7","v":2044},{"$f":"'Data Input - Option 4'!AH7","v":2045},{"$f":"'Data Input - Option 4'!AI7","v":2046},{"$f":"'Data Input - Option 4'!AJ7","v":2047},{"$f":"'Data Input - Option 4'!AK7","v":2048},{"$f":"'Data Input - Option 4'!AL7","v":2049},{"$f":"'Data Input - Option 4'!AM7","v":0},{"$f":"'Data Input - Option 4'!AN7","v":0},{"$f":"'Data Input - Option 4'!AO7","v":0},{"$f":"'Data Input - Option 4'!AP7","v":0},{"$f":"'Data Input - Option 4'!AQ7","v":0},{"$f":"'Data Input - Option 4'!AR7","v":0},{"$f":"'Data Input - Option 4'!AS7","v":0},{"$f":"'Data Input - Option 4'!AT7","v":0},{"$f":"'Data Input - Option 4'!AU7","v":0},{"$f":"'Data Input - Option 4'!AV7","v":0},{"$f":"'Data Input - Option 4'!AW7","v":0},{"$f":"'Data Input - Option 4'!AX7","v":0},{"$f":"'Data Input - Option 4'!AY7","v":0},{"$f":"'Data Input - Option 4'!AZ7","v":0},{"$f":"'Data Input - Option 4'!BA7","v":0},{"$f":"'Data Input - Option 4'!BB7","v":0},{"$f":"'Data Input - Option 4'!BC7","v":0},{"$f":"'Data Input - Option 4'!BD7","v":0},{"$f":"'Data Input - Option 4'!BE7","v":0},{"$f":"'Data Input - Option 4'!BF7","v":0},{"$f":"'Data Input - Option 4'!BG7","v":0},{"$f":"'Data Input - Option 4'!BH7","v":0},{"$f":"'Data Input - Option 4'!BI7","v":0},{"$f":"'Data Input - Option 4'!BJ7","v":0},{"$f":"'Data Input - Option 4'!BK7","v":0},{"$f":"'Data Input - Option 4'!BL7","v":0},{"$f":"'Data Input - Option 4'!BM7","v":0},{"$f":"'Data Input - Option 4'!BN7","v":0},{"$f":"'Data Input - Option 4'!BO7","v":0},{"$f":"'Data Input - Option 4'!BP7","v":0},{"$f":"'Data Input - Option 4'!BQ7","v":0},{"$f":"'Data Input - Option 4'!BR7","v":0},{"$f":"'Data Input - Option 4'!BS7","v":0},{"$f":"'Data Input - Option 4'!BT7","v":0},{"$f":"'Data Input - Option 4'!BU7","v":0},{"$f":"'Data Input - Option 4'!BV7","v":0},{"$f":"'Data Input - Option 4'!BW7","v":0},{"$f":"'Data Input - Option 4'!BX7","v":0},{"$f":"'Data Input - Option 4'!BY7","v":0},{"$f":"'Data Input - Option 4'!BZ7","v":0},{"$f":"'Data Input - Option 4'!CA7","v":0},{"$f":"'Data Input - Option 4'!CB7","v":0},{"$f":"'Data Input - Option 4'!CC7","v":0},{"$f":"'Data Input - Option 4'!CD7","v":0},{"$f":"'Data Input - Option 4'!CE7","v":0},{"$f":"'Data Input - Option 4'!CF7","v":0},{"$f":"'Data Input - Option 4'!CG7","v":0},{"$f":"'Data Input - Option 4'!CH7","v":0},{"$f":"'Data Input - Option 4'!CI7","v":0},{"$f":"'Data Input - Option 4'!CJ7","v":0},{"$f":"'Data Input - Option 4'!CK7","v":0},{"$f":"'Data Input - Option 4'!CL7","v":0},{"$f":"'Data Input - Option 4'!CM7","v":0},{"$f":"'Data Input - Option 4'!CN7","v":0},{"$f":"'Data Input - Option 4'!CO7","v":0},{"$f":"'Data Input - Option 4'!CP7","v":0},{"$f":"'Data Input - Option 4'!CQ7","v":0},{"$f":"'Data Input - Option 4'!CR7","v":0},{"$f":"'Data Input - Option 4'!CS7","v":0},{"$f":"'Data Input - Option 4'!CT7","v":0},{"$f":"'Data Input - Option 4'!CU7","v":0},{"$f":"'Data Input - Option 4'!CV7","v":0},{"$f":"'Data Input - Option 4'!CW7","v":0},{"$f":"'Data Input - Option 4'!CX7","v":0},{"$f":"'Data Input - Option 4'!CY7","v":0},{"$f":"'Data Input - Option 4'!CZ7","v":0},{"$f":"'Data Input - Option 4'!DA7","v":0},{"$f":"'Data Input - Option 4'!DB7","v":0},{"$f":"'Data Input - Option 4'!DC7","v":0}]
[null,"Discount factor",null,{"$f":"IF(D6=0,0,'Discount and deflators'!F12)","v":1},{"$f":"IF(E6=0,0,'Discount and deflators'!G12)","v":0.96618357487922713},{"$f":"IF(F6=0,0,'Discount and deflators'!H12)","v":0.93351070036640305},{"$f":"IF(G6=0,0,'Discount and deflators'!I12)","v":0.90194270566802237},{"$f":"IF(H6=0,0,'Discount and deflators'!J12)","v":0.87144222769857238},{"$f":"IF(I6=0,0,'Discount and deflators'!K12)","v":0.84197316685852408},{"$f":"IF(J6=0,0,'Discount and deflators'!L12)","v":0.81350064430775282},{"$f":"IF(K6=0,0,'Discount and deflators'!M12)","v":0.78599096068381924},{"$f":"IF(L6=0,0,'Discount and deflators'!N12)","v":0.75941155621625056},{"$f":"IF(M6=0,0,'Discount and deflators'!O12)","v":0.73373097218961414},{"$f":"IF(N6=0,0,'Discount and deflators'!P12)","v":0.70891881370977217},{"$f":"IF(O6=0,0,'Discount and deflators'!Q12)","v":0.68494571372924851},{"$f":"IF(P6=0,0,'Discount and deflators'!R12)","v":0.66178329828912907},{"$f":"IF(Q6=0,0,'Discount and deflators'!S12)","v":0.63940415293635666},{"$f":"IF(R6=0,0,'Discount and deflators'!T12)","v":0.61778179027667313},{"$f":"IF(S6=0,0,'Discount and deflators'!U12)","v":0.59689061862480497},{"$f":"IF(T6=0,0,'Discount and deflators'!V12)","v":0.57670591171478747},{"$f":"IF(U6=0,0,'Discount and deflators'!W12)","v":0.55720377943457733},{"$f":"IF(V6=0,0,'Discount and deflators'!X12)","v":0.53836113955031628},{"$f":"IF(W6=0,0,'Discount and deflators'!Y12)","v":0.520155690386779},{"$f":"IF(X6=0,0,'Discount and deflators'!Z12)","v":0.50256588443167061},{"$f":"IF(Y6=0,0,'Discount and deflators'!AA12)","v":0.48557090283253201},{"$f":"IF(Z6=0,0,'Discount and deflators'!AB12)","v":0.46915063075606961},{"$f":"IF(AA6=0,0,'Discount and deflators'!AC12)","v":0.45328563358074364},{"$f":"IF(AB6=0,0,'Discount and deflators'!AD12)","v":0.43795713389443836},{"$f":"IF(AC6=0,0,'Discount and deflators'!AE12)","v":0.42314698926998878},{"$f":"IF(AD6=0,0,'Discount and deflators'!AF12)","v":0.40883767079225974},{"$f":"IF(AE6=0,0,'Discount and deflators'!AG12)","v":0.39501224231136212},{"$f":"IF(AF6=0,0,'Discount and deflators'!AH12)","v":0.38165434039745133},{"$f":"IF(AG6=0,0,'Discount and deflators'!AI12)","v":0.36874815497338298},{"$f":"IF(AH6=0,0,'Discount and deflators'!AJ12)","v":0.35800791744988636},{"$f":"IF(AI6=0,0,'Discount and deflators'!AK12)","v":0},{"$f":"IF(AJ6=0,0,'Discount and deflators'!AL12)","v":0},{"$f":"IF(AK6=0,0,'Discount and deflators'!AM12)","v":0},{"$f":"IF(AL6=0,0,'Discount and deflators'!AN12)","v":0},{"$f":"IF(AM6=0,0,'Discount and deflators'!AO12)","v":0},{"$f":"IF(AN6=0,0,'Discount and deflators'!AP12)","v":0},{"$f":"IF(AO6=0,0,'Discount and deflators'!AQ12)","v":0},{"$f":"IF(AP6=0,0,'Discount and deflators'!AR12)","v":0},{"$f":"IF(AQ6=0,0,'Discount and deflators'!AS12)","v":0},{"$f":"IF(AR6=0,0,'Discount and deflators'!AT12)","v":0},{"$f":"IF(AS6=0,0,'Discount and deflators'!AU12)","v":0},{"$f":"IF(AT6=0,0,'Discount and deflators'!AV12)","v":0},{"$f":"IF(AU6=0,0,'Discount and deflators'!AW12)","v":0},{"$f":"IF(AV6=0,0,'Discount and deflators'!AX12)","v":0},{"$f":"IF(AW6=0,0,'Discount and deflators'!AY12)","v":0},{"$f":"IF(AX6=0,0,'Discount and deflators'!AZ12)","v":0},{"$f":"IF(AY6=0,0,'Discount and deflators'!BA12)","v":0},{"$f":"IF(AZ6=0,0,'Discount and deflators'!BB12)","v":0},{"$f":"IF(BA6=0,0,'Discount and deflators'!BC12)","v":0},{"$f":"IF(BB6=0,0,'Discount and deflators'!BD12)","v":0},{"$f":"IF(BC6=0,0,'Discount and deflators'!BE12)","v":0},{"$f":"IF(BD6=0,0,'Discount and deflators'!BF12)","v":0},{"$f":"IF(BE6=0,0,'Discount and deflators'!BG12)","v":0},{"$f":"IF(BF6=0,0,'Discount and deflators'!BH12)","v":0},{"$f":"IF(BG6=0,0,'Discount and deflators'!BI12)","v":0},{"$f":"IF(BH6=0,0,'Discount and deflators'!BJ12)","v":0},{"$f":"IF(BI6=0,0,'Discount and deflators'!BK12)","v":0},{"$f":"IF(BJ6=0,0,'Discount and deflators'!BL12)","v":0},{"$f":"IF(BK6=0,0,'Discount and deflators'!BM12)","v":0},{"$f":"IF(BL6=0,0,'Discount and deflators'!BN12)","v":0},{"$f":"IF(BM6=0,0,'Discount and deflators'!BO12)","v":0},{"$f":"IF(BN6=0,0,'Discount and deflators'!BP12)","v":0},{"$f":"IF(BO6=0,0,'Discount and deflators'!BQ12)","v":0},{"$f":"IF(BP6=0,0,'Discount and deflators'!BR12)","v":0},{"$f":"IF(BQ6=0,0,'Discount and deflators'!BS12)","v":0},{"$f":"IF(BR6=0,0,'Discount and deflators'!BT12)","v":0},{"$f":"IF(BS6=0,0,'Discount and deflators'!BU12)","v":0},{"$f":"IF(BT6=0,0,'Discount and deflators'!BV12)","v":0},{"$f":"IF(BU6=0,0,'Discount and deflators'!BW12)","v":0},{"$f":"IF(BV6=0,0,'Discount and deflators'!BX12)","v":0},{"$f":"IF(BW6=0,0,'Discount and deflators'!BY12)","v":0},{"$f":"IF(BX6=0,0,'Discount and deflators'!BZ12)","v":0},{"$f":"IF(BY6=0,0,'Discount and deflators'!CA12)","v":0},{"$f":"IF(BZ6=0,0,'Discount and deflators'!CB12)","v":0},{"$f":"IF(CA6=0,0,'Discount and deflators'!CC12)","v":0},{"$f":"IF(CB6=0,0,'Discount and deflators'!CD12)","v":0},{"$f":"IF(CC6=0,0,'Discount and deflators'!CE12)","v":0},{"$f":"IF(CD6=0,0,'Discount and deflators'!CF12)","v":0},{"$f":"IF(CE6=0,0,'Discount and deflators'!CG12)","v":0},{"$f":"IF(CF6=0,0,'Discount and deflators'!CH12)","v":0},{"$f":"IF(CG6=0,0,'Discount and deflators'!CI12)","v":0},{"$f":"IF(CH6=0,0,'Discount and deflators'!CJ12)","v":0},{"$f":"IF(CI6=0,0,'Discount and deflators'!CK12)","v":0},{"$f":"IF(CJ6=0,0,'Discount and deflators'!CL12)","v":0},{"$f":"IF(CK6=0,0,'Discount and deflators'!CM12)","v":0},{"$f":"IF(CL6=0,0,'Discount and deflators'!CN12)","v":0},{"$f":"IF(CM6=0,0,'Discount and deflators'!CO12)","v":0},{"$f":"IF(CN6=0,0,'Discount and deflators'!CP12)","v":0},{"$f":"IF(CO6=0,0,'Discount and deflators'!CQ12)","v":0},{"$f":"IF(CP6=0,0,'Discount and deflators'!CR12)","v":0},{"$f":"IF(CQ6=0,0,'Discount and deflators'!CS12)","v":0},{"$f":"IF(CR6=0,0,'Discount and deflators'!CT12)","v":0},{"$f":"IF(CS6=0,0,'Discount and deflators'!CU12)","v":0},{"$f":"IF(CT6=0,0,'Discount and deflators'!CV12)","v":0},{"$f":"IF(CU6=0,0,'Discount and deflators'!CW12)","v":0},{"$f":"IF(CV6=0,0,'Discount and deflators'!CX12)","v":0},{"$f":"IF(CW6=0,0,'Discount and deflators'!CY12)","v":0},{"$f":"IF(CX6=0,0,'Discount and deflators'!CZ12)","v":0},{"$f":"IF(CY6=0,0,'Discount and deflators'!DA12)","v":0}]
[]
[null,"CENTRAL CALCULATIONS"]
[]
[null,"Capital Costs (total)"]
[null,"Total Capex","£000's",{"$f":"'Data Input - Option 4'!H30","v":0},{"$f":"'Data Input - Option 4'!I30","v":0},{"$f":"'Data Input - Option 4'!J30","v":0},{"$f":"'Data Input - Option 4'!K30","v":0},{"$f":"'Data Input - Option 4'!L30","v":0},{"$f":"'Data Input - Option 4'!M30","v":0},{"$f":"'Data Input - Option 4'!N30","v":0},{"$f":"'Data Input - Option 4'!O30","v":0},{"$f":"'Data Input - Option 4'!P30","v":0},{"$f":"'Data Input - Option 4'!Q30","v":0},{"$f":"'Data Input - Option 4'!R30","v":0},{"$f":"'Data Input - Option 4'!S30","v":0},{"$f":"'Data Input - Option 4'!T30","v":0},{"$f":"'Data Input - Option 4'!U30","v":0},{"$f":"'Data Input - Option 4'!V30","v":0},{"$f":"'Data Input - Option 4'!W30","v":0},{"$f":"'Data Input - Option 4'!X30","v":0},{"$f":"'Data Input - Option 4'!Y30","v":0},{"$f":"'Data Input - Option 4'!Z30","v":0},{"$f":"'Data Input - Option 4'!AA30","v":0},{"$f":"'Data Input - Option 4'!AB30","v":0},{"$f":"'Data Input - Option 4'!AC30","v":0},{"$f":"'Data Input - Option 4'!AD30","v":0},{"$f":"'Data Input - Option 4'!AE30","v":0},{"$f":"'Data Input - Option 4'!AF30","v":0},{"$f":"'Data Input - Option 4'!AG30","v":0},{"$f":"'Data Input - Option 4'!AH30","v":0},{"$f":"'Data Input - Option 4'!AI30","v":0},{"$f":"'Data Input - Option 4'!AJ30","v":0},{"$f":"'Data Input - Option 4'!AK30","v":0},{"$f":"'Data Input - Option 4'!AL30","v":0},{"$f":"'Data Input - Option 4'!AM30","v":0},{"$f":"'Data Input - Option 4'!AN30","v":0},{"$f":"'Data Input - Option 4'!AO30","v":0},{"$f":"'Data Input - Option 4'!AP30","v":0},{"$f":"'Data Input - Option 4'!AQ30","v":0},{"$f":"'Data Input - Option 4'!AR30","v":0},{"$f":"'Data Input - Option 4'!AS30","v":0},{"$f":"'Data Input - Option 4'!AT30","v":0},{"$f":"'Data Input - Option 4'!AU30","v":0},{"$f":"'Data Input - Option 4'!AV30","v":0},{"$f":"'Data Input - Option 4'!AW30","v":0},{"$f":"'Data Input - Option 4'!AX30","v":0},{"$f":"'Data Input - Option 4'!AY30","v":0},{"$f":"'Data Input - Option 4'!AZ30","v":0},{"$f":"'Data Input - Option 4'!BA30","v":0},{"$f":"'Data Input - Option 4'!BB30","v":0},{"$f":"'Data Input - Option 4'!BC30","v":0},{"$f":"'Data Input - Option 4'!BD30","v":0},{"$f":"'Data Input - Option 4'!BE30","v":0},{"$f":"'Data Input - Option 4'!BF30","v":0},{"$f":"'Data Input - Option 4'!BG30","v":0},{"$f":"'Data Input - Option 4'!BH30","v":0},{"$f":"'Data Input - Option 4'!BI30","v":0},{"$f":"'Data Input - Option 4'!BJ30","v":0},{"$f":"'Data Input - Option 4'!BK30","v":0},{"$f":"'Data Input - Option 4'!BL30","v":0},{"$f":"'Data Input - Option 4'!BM30","v":0},{"$f":"'Data Input - Option 4'!BN30","v":0},{"$f":"'Data Input - Option 4'!BO30","v":0},{"$f":"'Data Input - Option 4'!BP30","v":0},{"$f":"'Data Input - Option 4'!BQ30","v":0},{"$f":"'Data Input - Option 4'!BR30","v":0},{"$f":"'Data Input - Option 4'!BS30","v":0},{"$f":"'Data Input - Option 4'!BT30","v":0},{"$f":"'Data Input - Option 4'!BU30","v":0},{"$f":"'Data Input - Option 4'!BV30","v":0},{"$f":"'Data Input - Option 4'!BW30","v":0},{"$f":"'Data Input - Option 4'!BX30","v":0},{"$f":"'Data Input - Option 4'!BY30","v":0},{"$f":"'Data Input - Option 4'!BZ30","v":0},{"$f":"'Data Input - Option 4'!CA30","v":0},{"$f":"'Data Input - Option 4'!CB30","v":0},{"$f":"'Data Input - Option 4'!CC30","v":0},{"$f":"'Data Input - Option 4'!CD30","v":0},{"$f":"'Data Input - Option 4'!CE30","v":0},{"$f":"'Data Input - Option 4'!CF30","v":0},{"$f":"'Data Input - Option 4'!CG30","v":0},{"$f":"'Data Input - Option 4'!CH30","v":0},{"$f":"'Data Input - Option 4'!CI30","v":0},{"$f":"'Data Input - Option 4'!CJ30","v":0},{"$f":"'Data Input - Option 4'!CK30","v":0},{"$f":"'Data Input - Option 4'!CL30","v":0},{"$f":"'Data Input - Option 4'!CM30","v":0},{"$f":"'Data Input - Option 4'!CN30","v":0},{"$f":"'Data Input - Option 4'!CO30","v":0},{"$f":"'Data Input - Option 4'!CP30","v":0},{"$f":"'Data Input - Option 4'!CQ30","v":0},{"$f":"'Data Input - Option 4'!CR30","v":0},{"$f":"'Data Input - Option 4'!CS30","v":0},{"$f":"'Data Input - Option 4'!CT30","v":0},{"$f":"'Data Input - Option 4'!CU30","v":0},{"$f":"'Data Input - Option 4'!CV30","v":0},{"$f":"'Data Input - Option 4'!CW30","v":0},{"$f":"'Data Input - Option 4'!CX30","v":0},{"$f":"'Data Input - Option 4'!CY30","v":0},{"$f":"'Data Input - Option 4'!CZ30","v":0},{"$f":"'Data Input - Option 4'!DA30","v":0},{"$f":"'Data Input - Option 4'!DB30","v":0},{"$f":"'Data Input - Option 4'!DC30","v":0}]
[null,"Total capex discounted","£000's",{"$f":"D12*D$7","v":0},{"$f":"E12*E$7","v":0},0,0,0,0,0,0,0,0,0,0,0,0,0,0,0,0,0,0,0,0,0,0,0,0,0,0,0,0,0,0,0,0,0,0,0,0,0,0,0,0,0,0,0,0,0,0,0,0,0,0,0,0,0,0,0,0,0,0,0,0,0,0,0,{"$f":"BQ12*BQ$7","v":0},0,0,0,0,0,0,0,0,0,0,0,0,0,0,0,0,0,0,0,0,0,0,0,0,0,0,0,0,0,0,0,0,0,0]
[]
[null,"First Year of upfront costs? - Array",null,{"$f":"IF(D12<>0,TRUE,FALSE)","v":false},{"$f":"IF(D15=TRUE,\"ALREADY FOUND\",IF(E12<>0,TRUE,FALSE))","v":false},{"$f":"IF(E15=\"ALREADY FOUND\",\"ALREADY FOUND\",IF(E15=TRUE,\"ALREADY FOUND\",IF(F12<>0,TRUE,FALSE)))","v":false},{"$f":"IF(F15=\"ALREADY FOUND\",\"ALREADY FOUND\",IF(F15=TRUE,\"ALREADY FOUND\",IF(G12<>0,TRUE,FALSE)))","v":false},false,false,false,false,false,false,false,false,false,false,false,false,false,false,false,false,false,false,false,false,false,false,false,false,false,false,false,false,false,false,false,false,false,false,false,false,false,false,false,false,false,false,false,false,false,false,false,false,false,false,false,false,false,false,false,false,false,false,false,false,false,false,false,{"$f":"IF(BR15=\"ALREADY FOUND\",\"ALREADY FOUND\",IF(BR15=TRUE,\"ALREADY FOUND\",IF(BS12<>0,TRUE,FALSE)))","v":false},false,false,false,false,false,false,false,false,false,false,false,false,false,false,false,false,false,false,false,false,false,false,false,false,false,false,false,false,false,false,false]
[null,"First Year of upfront costs",null,{"$f":"INDEX($D$6:$CX$6,MATCH(TRUE,$D$15:$CX$15,0))","v":{"$error":"#N/A"}}]
[null,"Final Year of upfront costs? - Array",null,{"$f":"IF(D6<$D$16,FALSE,IF(D12+E12=0,TRUE,FALSE))","v":{"$error":"#N/A"}},{"$f":"IF(D17=TRUE,\"N/A\",IF(D17=\"N/A\",\"N/A\",IF(E6<$D$16,FALSE,IF(E12+F12=0,TRUE,FALSE))))","v":{"$error":"#N/A"}},{"$f":"IF(E17=TRUE,\"N/A\",IF(E17=\"N/A\",\"N/A\",IF(F6<$D$16,FALSE,IF(F12+G12=0,TRUE,FALSE))))","v":{"$error":"#N/A"}},{"$f":"IF(F17=TRUE,\"N/A\",IF(F17=\"N/A\",\"N/A\",IF(G6<$D$16,FALSE,IF(G12+H12=0,TRUE,FALSE))))","v":{"$error":"#N/A"}},{"$f":"IF(G17=TRUE,\"N/A\",IF(G17=\"N/A\",\"N/A\",IF(H6<$D$16,FALSE,IF(H12+I12=0,TRUE,FALSE))))","v":{"$error":"#N/A"}},{"$f":"IF(H17=TRUE,\"N/A\",IF(H17=\"N/A\",\"N/A\",IF(I6<$D$16,FALSE,IF(I12+J12=0,TRUE,FALSE))))","v":{"$error":"#N/A"}},{"$f":"IF(I17=TRUE,\"N/A\",IF(I17=\"N/A\",\"N/A\",IF(J6<$D$16,FALSE,IF(J12+K12=0,TRUE,FALSE))))","v":{"$error":"#N/A"}},{"$error":"#N/A"},{"$error":"#N/A"},{"$error":"#N/A"},{"$error":"#N/A"},{"$error":"#N/A"},{"$error":"#N/A"},{"$error":"#N/A"},{"$error":"#N/A"},{"$error":"#N/A"},{"$error":"#N/A"},{"$error":"#N/A"},{"$error":"#N/A"},{"$error":"#N/A"},{"$error":"#N/A"},{"$error":"#N/A"},{"$error":"#N/A"},{"$error":"#N/A"},{"$error":"#N/A"},{"$error":"#N/A"},{"$error":"#N/A"},{"$error":"#N/A"},{"$error":"#N/A"},{"$error":"#N/A"},{"$error":"#N/A"},{"$error":"#N/A"},{"$error":"#N/A"},{"$error":"#N/A"},{"$error":"#N/A"},{"$error":"#N/A"},{"$error":"#N/A"},{"$error":"#N/A"},{"$error":"#N/A"},{"$error":"#N/A"},{"$error":"#N/A"},{"$error":"#N/A"},{"$error":"#N/A"},{"$error":"#N/A"},{"$error":"#N/A"},{"$error":"#N/A"},{"$error":"#N/A"},{"$error":"#N/A"},{"$error":"#N/A"},{"$error":"#N/A"},{"$error":"#N/A"},{"$error":"#N/A"},{"$error":"#N/A"},{"$error":"#N/A"},{"$error":"#N/A"},{"$error":"#N/A"},{"$error":"#N/A"},{"$error":"#N/A"},{"$error":"#N/A"},{"$error":"#N/A"},{"$error":"#N/A"},{"$error":"#N/A"},{"$error":"#N/A"},{"$error":"#N/A"},{"$error":"#N/A"},{"$error":"#N/A"},{"$error":"#N/A"},{"$error":"#N/A"},{"$error":"#N/A"},{"$error":"#N/A"},{"$f":"IF(BU17=TRUE,\"N/A\",IF(BU17=\"N/A\",\"N/A\",IF(BV6<$D$16,FALSE,IF(BV12+BW12=0,TRUE,FALSE))))","v":{"$error":"#N/A"}},{"$error":"#N/A"},{"$error":"#N/A"},{"$error":"#N/A"},{"$error":"#N/A"},{"$error":"#N/A"},{"$error":"#N/A"},{"$error":"#N/A"},{"$error":"#N/A"},{"$error":"#N/A"},{"$error":"#N/A"},{"$error":"#N/A"},{"$error":"#N/A"},{"$error":"#N/A"},{"$error":"#N/A"},{"$error":"#N/A"},{"$error":"#N/A"},{"$error":"#N/A"},{"$error":"#N/A"},{"$error":"#N/A"},{"$error":"#N/A"},{"$error":"#N/A"},{"$error":"#N/A"},{"$error":"#N/A"},{"$error":"#N/A"},{"$error":"#N/A"},{"$error":"#N/A"},{"$error":"#N/A"},{"$error":"#N/A"}]
[null,"Final Year of upfront costs",null,{"$f":"INDEX($D$6:$CX$6,MATCH(TRUE,$D$17:$CX$17,0))","v":{"$error":"#N/A"}}]
[null,"Include undiscounted total capex in SUM?",null,{"$f":"IF(AND(OR(D6=$D$16,D6>$D$16),OR(D6=$D$18,D6<$D$18)),D12,0)","v":{"$error":"#N/A"}},{"$f":"IF(AND(OR(E6=$D$16,E6>$D$16),OR(E6=$D$18,E6<$D$18)),E12,0)","v":{"$error":"#N/A"}},{"$error":"#N/A"},{"$error":"#N/A"},{"$f":"IF(AND(OR(H6=$D$16,H6>$D$16),OR(H6=$D$18,H6<$D$18)),H12,0)","v":{"$error":"#N/A"}},{"$f":"IF(AND(OR(I6=$D$16,I6>$D$16),OR(I6=$D$18,I6<$D$18)),I12,0)","v":{"$error":"#N/A"}},{"$error":"#N/A"},{"$error":"#N/A"},{"$error":"#N/A"},{"$error":"#N/A"},{"$error":"#N/A"},{"$error":"#N/A"},{"$error":"#N/A"},{"$error":"#N/A"},{"$error":"#N/A"},{"$error":"#N/A"},{"$error":"#N/A"},{"$error":"#N/A"},{"$error":"#N/A"},{"$error":"#N/A"},{"$error":"#N/A"},{"$error":"#N/A"},{"$error":"#N/A"},{"$error":"#N/A"},{"$error":"#N/A"},{"$error":"#N/A"},{"$error":"#N/A"},{"$error":"#N/A"},{"$error":"#N/A"},{"$error":"#N/A"},{"$error":"#N/A"},{"$error":"#N/A"},{"$error":"#N/A"},{"$error":"#N/A"},{"$error":"#N/A"},{"$error":"#N/A"},{"$error":"#N/A"},{"$error":"#N/A"},{"$error":"#N/A"},{"$error":"#N/A"},{"$error":"#N/A"},{"$error":"#N/A"},{"$error":"#N/A"},{"$error":"#N/A"},{"$error":"#N/A"},{"$error":"#N/A"},{"$error":"#N/A"},{"$error":"#N/A"},{"$error":"#N/A"},{"$error":"#N/A"},{"$error":"#N/A"},{"$error":"#N/A"},{"$error":"#N/A"},{"$error":"#N/A"},{"$error":"#N/A"},{"$error":"#N/A"},{"$error":"#N/A"},{"$error":"#N/A"},{"$error":"#N/A"},{"$error":"#N/A"},{"$error":"#N/A"},{"$error":"#N/A"},{"$error":"#N/A"},{"$error":"#N/A"},{"$error":"#N/A"},{"$error":"#N/A"},{"$error":"#N/A"},{"$error":"#N/A"},{"$error":"#N/A"},{"$f":"IF(AND(OR(BU6=$D$16,BU6>$D$16),OR(BU6=$D$18,BU6<$D$18)),BU12,0)","v":{"$error":"#N/A"}},{"$error":"#N/A"},{"$error":"#N/A"},{"$error":"#N/A"},{"$error":"#N/A"},{"$error":"#N/A"},{"$error":"#N/A"},{"$error":"#N/A"},{"$error":"#N/A"},{"$error":"#N/A"},{"$error":"#N/A"},{"$error":"#N/A"},{"$error":"#N/A"},{"$error":"#N/A"},{"$error":"#N/A"},{"$error":"#N/A"},{"$error":"#N/A"},{"$error":"#N/A"},{"$error":"#N/A"},{"$error":"#N/A"},{"$error":"#N/A"},{"$error":"#N/A"},{"$error":"#N/A"},{"$error":"#N/A"},{"$error":"#N/A"},{"$error":"#N/A"},{"$error":"#N/A"},{"$error":"#N/A"},{"$error":"#N/A"},{"$error":"#N/A"}]
[null,"Total upfront investment cost for first installation only",null,{"$f":"SUM(D19:CX19)","v":{"$error":"#N/A"}}]
[null,"New invesment/refurbishment cost?",null,null,null,null,{"$f":"IF(OR(AND(SUM(D12:F12)=0,G12>0,G15=\"ALREADY FOUND\"),AND(F21=TRUE,G12>0),AND(F21=TRUE,SUM(H12:I12)>0)),TRUE,FALSE)","v":false},{"$f":"IF(OR(AND(SUM(E12:G12)=0,H12>0,H15=\"ALREADY FOUND\"),AND(G21=TRUE,H12>0),AND(G21=TRUE,SUM(I12:J12)>0)),TRUE,FALSE)","v":false},false,false,false,false,false,false,false,false,false,false,false,false,false,false,false,false,false,false,false,false,false,false,false,false,false,false,false,false,false,false,false,false,false,false,false,false,false,false,false,false,false,false,false,false,false,false,false,false,false,false,false,false,false,false,false,false,false,false,false,false,false,false,false,{"$f":"IF(OR(AND(SUM(BQ12:BS12)=0,BT12>0,BT15=\"ALREADY FOUND\"),AND(BS21=TRUE,BT12>0),AND(BS21=TRUE,SUM(BU12:BV12)>0)),TRUE,FALSE)","v":false},false,false,false,false,false,false,false,false,false,false,false,false,false,false,false,false,false,false,false,false,false,false,false,false,false,false,false,false,false,false]
[null,"New invesment/refurbishment counter",null,null,null,null,{"$f":"IF(G21=FALSE,0,IF(F22<>0,F22,MAX($D$22:F22)+1))","v":0},{"$f":"IF(H21=FALSE,0,IF(G22<>0,G22,MAX($D$22:G22)+1))","v":0},{"$f":"IF(I21=FALSE,0,IF(H22<>0,H22,MAX($D$22:H22)+1))","v":0},{"$f":"IF(J21=FALSE,0,IF(I22<>0,I22,MAX($D$22:I22)+1))","v":0},{"$f":"IF(K21=FALSE,0,IF(J22<>0,J22,MAX($D$22:J22)+1))","v":0},{"$f":"IF(L21=FALSE,0,IF(K22<>0,K22,MAX($D$22:K22)+1))","v":0},{"$f":"IF(M21=FALSE,0,IF(L22<>0,L22,MAX($D$22:L22)+1))","v":0},{"$f":"IF(N21=FALSE,0,IF(M22<>0,M22,MAX($D$22:M22)+1))","v":0},{"$f":"IF(O21=FALSE,0,IF(N22<>0,N22,MAX($D$22:N22)+1))","v":0},{"$f":"IF(P21=FALSE,0,IF(O22<>0,O22,MAX($D$22:O22)+1))","v":0},{"$f":"IF(Q21=FALSE,0,IF(P22<>0,P22,MAX($D$22:P22)+1))","v":0},{"$f":"IF(R21=FALSE,0,IF(Q22<>0,Q22,MAX($D$22:Q22)+1))","v":0},{"$f":"IF(S21=FALSE,0,IF(R22<>0,R22,MAX($D$22:R22)+1))","v":0},{"$f":"IF(T21=FALSE,0,IF(S22<>0,S22,MAX($D$22:S22)+1))","v":0},{"$f":"IF(U21=FALSE,0,IF(T22<>0,T22,MAX($D$22:T22)+1))","v":0},{"$f":"IF(V21=FALSE,0,IF(U22<>0,U22,MAX($D$22:U22)+1))","v":0},{"$f":"IF(W21=FALSE,0,IF(V22<>0,V22,MAX($D$22:V22)+1))","v":0},{"$f":"IF(X21=FALSE,0,IF(W22<>0,W22,MAX($D$22:W22)+1))","v":0},{"$f":"IF(Y21=FALSE,0,IF(X22<>0,X22,MAX($D$22:X22)+1))","v":0},{"$f":"IF(Z21=FALSE,0,IF(Y22<>0,Y22,MAX($D$22:Y22)+1))","v":0},{"$f":"IF(AA21=FALSE,0,IF(Z22<>0,Z22,MAX($D$22:Z22)+1))","v":0},{"$f":"IF(AB21=FALSE,0,IF(AA22<>0,AA22,MAX($D$22:AA22)+1))","v":0},{"$f":"IF(AC21=FALSE,0,IF(AB22<>0,AB22,MAX($D$22:AB22)+1))","v":0},{"$f":"IF(AD21=FALSE,0,IF(AC22<>0,AC22,MAX($D$22:AC22)+1))","v":0},{"$f":"IF(AE21=FALSE,0,IF(AD22<>0,AD22,MAX($D$22:AD22)+1))","v":0},{"$f":"IF(AF21=FALSE,0,IF(AE22<>0,AE22,MAX($D$22:AE22)+1))","v":0},{"$f":"IF(AG21=FALSE,0,IF(AF22<>0,AF22,MAX($D$22:AF22)+1))","v":0},{"$f":"IF(AH21=FALSE,0,IF(AG22<>0,AG22,MAX($D$22:AG22)+1))","v":0},{"$f":"IF(AI21=FALSE,0,IF(AH22<>0,AH22,MAX($D$22:AH22)+1))","v":0},{"$f":"IF(AJ21=FALSE,0,IF(AI22<>0,AI22,MAX($D$22:AI22)+1))","v":0},{"$f":"IF(AK21=FALSE,0,IF(AJ22<>0,AJ22,MAX($D$22:AJ22)+1))","v":0},{"$f":"IF(AL21=FALSE,0,IF(AK22<>0,AK22,MAX($D$22:AK22)+1))","v":0},{"$f":"IF(AM21=FALSE,0,IF(AL22<>0,AL22,MAX($D$22:AL22)+1))","v":0},{"$f":"IF(AN21=FALSE,0,IF(AM22<>0,AM22,MAX($D$22:AM22)+1))","v":0},{"$f":"IF(AO21=FALSE,0,IF(AN22<>0,AN22,MAX($D$22:AN22)+1))","v":0},{"$f":"IF(AP21=FALSE,0,IF(AO22<>0,AO22,MAX($D$22:AO22)+1))","v":0},{"$f":"IF(AQ21=FALSE,0,IF(AP22<>0,AP22,MAX($D$22:AP22)+1))","v":0},{"$f":"IF(AR21=FALSE,0,IF(AQ22<>0,AQ22,MAX($D$22:AQ22)+1))","v":0},{"$f":"IF(AS21=FALSE,0,IF(AR22<>0,AR22,MAX($D$22:AR22)+1))","v":0},{"$f":"IF(AT21=FALSE,0,IF(AS22<>0,AS22,MAX($D$22:AS22)+1))","v":0},{"$f":"IF(AU21=FALSE,0,IF(AT22<>0,AT22,MAX($D$22:AT22)+1))","v":0},{"$f":"IF(AV21=FALSE,0,IF(AU22<>0,AU22,MAX($D$22:AU22)+1))","v":0},{"$f":"IF(AW21=FALSE,0,IF(AV22<>0,AV22,MAX($D$22:AV22)+1))","v":0},{"$f":"IF(AX21=FALSE,0,IF(AW22<>0,AW22,MAX($D$22:AW22)+1))","v":0},{"$f":"IF(AY21=FALSE,0,IF(AX22<>0,AX22,MAX($D$22:AX22)+1))","v":0},{"$f":"IF(AZ21=FALSE,0,IF(AY22<>0,AY22,MAX($D$22:AY22)+1))","v":0},{"$f":"IF(BA21=FALSE,0,IF(AZ22<>0,AZ22,MAX($D$22:AZ22)+1))","v":0},{"$f":"IF(BB21=FALSE,0,IF(BA22<>0,BA22,MAX($D$22:BA22)+1))","v":0},{"$f":"IF(BC21=FALSE,0,IF(BB22<>0,BB22,MAX($D$22:BB22)+1))","v":0},{"$f":"IF(BD21=FALSE,0,IF(BC22<>0,BC22,MAX($D$22:BC22)+1))","v":0},{"$f":"IF(BE21=FALSE,0,IF(BD22<>0,BD22,MAX($D$22:BD22)+1))","v":0},{"$f":"IF(BF21=FALSE,0,IF(BE22<>0,BE22,MAX($D$22:BE22)+1))","v":0},{"$f":"IF(BG21=FALSE,0,IF(BF22<>0,BF22,MAX($D$22:BF22)+1))","v":0},{"$f":"IF(BH21=FALSE,0,IF(BG22<>0,BG22,MAX($D$22:BG22)+1))","v":0},{"$f":"IF(BI21=FALSE,0,IF(BH22<>0,BH22,MAX($D$22:BH22)+1))","v":0},{"$f":"IF(BJ21=FALSE,0,IF(BI22<>0,BI22,MAX($D$22:BI22)+1))","v":0},{"$f":"IF(BK21=FALSE,0,IF(BJ22<>0,BJ22,MAX($D$22:BJ22)+1))","v":0},{"$f":"IF(BL21=FALSE,0,IF(BK22<>0,BK22,MAX($D$22:BK22)+1))","v":0},{"$f":"IF(BM21=FALSE,0,IF(BL22<>0,BL22,MAX($D$22:BL22)+1))","v":0},{"$f":"IF(BN21=FALSE,0,IF(BM22<>0,BM22,MAX($D$22:BM22)+1))","v":0},{"$f":"IF(BO21=FALSE,0,IF(BN22<>0,BN22,MAX($D$22:BN22)+1))","v":0},{"$f":"IF(BP21=FALSE,0,IF(BO22<>0,BO22,MAX($D$22:BO22)+1))","v":0},{"$f":"IF(BQ21=FALSE,0,IF(BP22<>0,BP22,MAX($D$22:BP22)+1))","v":0},{"$f":"IF(BR21=FALSE,0,IF(BQ22<>0,BQ22,MAX($D$22:BQ22)+1))","v":0},{"$f":"IF(BS21=FALSE,0,IF(BR22<>0,BR22,MAX($D$22:BR22)+1))","v":0},{"$f":"IF(BT21=FALSE,0,IF(BS22<>0,BS22,MAX($D$22:BS22)+1))","v":0},{"$f":"IF(BU21=FALSE,0,IF(BT22<>0,BT22,MAX($D$22:BT22)+1))","v":0},{"$f":"IF(BV21=FALSE,0,IF(BU22<>0,BU22,MAX($D$22:BU22)+1))","v":0},{"$f":"IF(BW21=FALSE,0,IF(BV22<>0,BV22,MAX($D$22:BV22)+1))","v":0},{"$f":"IF(BX21=FALSE,0,IF(BW22<>0,BW22,MAX($D$22:BW22)+1))","v":0},{"$f":"IF(BY21=FALSE,0,IF(BX22<>0,BX22,MAX($D$22:BX22)+1))","v":0},{"$f":"IF(BZ21=FALSE,0,IF(BY22<>0,BY22,MAX($D$22:BY22)+1))","v":0},{"$f":"IF(CA21=FALSE,0,IF(BZ22<>0,BZ22,MAX($D$22:BZ22)+1))","v":0},{"$f":"IF(CB21=FALSE,0,IF(CA22<>0,CA22,MAX($D$22:CA22)+1))","v":0},{"$f":"IF(CC21=FALSE,0,IF(CB22<>0,CB22,MAX($D$22:CB22)+1))","v":0},{"$f":"IF(CD21=FALSE,0,IF(CC22<>0,CC22,MAX($D$22:CC22)+1))","v":0},{"$f":"IF(CE21=FALSE,0,IF(CD22<>0,CD22,MAX($D$22:CD22)+1))","v":0},{"$f":"IF(CF21=FALSE,0,IF(CE22<>0,CE22,MAX($D$22:CE22)+1))","v":0},{"$f":"IF(CG21=FALSE,0,IF(CF22<>0,CF22,MAX($D$22:CF22)+1))","v":0},{"$f":"IF(CH21=FALSE,0,IF(CG22<>0,CG22,MAX($D$22:CG22)+1))","v":0},{"$f":"IF(CI21=FALSE,0,IF(CH22<>0,CH22,MAX($D$22:CH22)+1))","v":0},{"$f":"IF(CJ21=FALSE,0,IF(CI22<>0,CI22,MAX($D$22:CI22)+1))","v":0},{"$f":"IF(CK21=FALSE,0,IF(CJ22<>0,CJ22,MAX($D$22:CJ22)+1))","v":0},{"$f":"IF(CL21=FALSE,0,IF(CK22<>0,CK22,MAX($D$22:CK22)+1))","v":0},{"$f":"IF(CM21=FALSE,0,IF(CL22<>0,CL22,MAX($D$22:CL22)+1))","v":0},{"$f":"IF(CN21=FALSE,0,IF(CM22<>0,CM22,MAX($D$22:CM22)+1))","v":0},{"$f":"IF(CO21=FALSE,0,IF(CN22<>0,CN22,MAX($D$22:CN22)+1))","v":0},{"$f":"IF(CP21=FALSE,0,IF(CO22<>0,CO22,MAX($D$22:CO22)+1))","v":0},{"$f":"IF(CQ21=FALSE,0,IF(CP22<>0,CP22,MAX($D$22:CP22)+1))","v":0},{"$f":"IF(CR21=FALSE,0,IF(CQ22<>0,CQ22,MAX($D$22:CQ22)+1))","v":0},{"$f":"IF(CS21=FALSE,0,IF(CR22<>0,CR22,MAX($D$22:CR22)+1))","v":0},{"$f":"IF(CT21=FALSE,0,IF(CS22<>0,CS22,MAX($D$22:CS22)+1))","v":0},{"$f":"IF(CU21=FALSE,0,IF(CT22<>0,CT22,MAX($D$22:CT22)+1))","v":0},{"$f":"IF(CV21=FALSE,0,IF(CU22<>0,CU22,MAX($D$22:CU22)+1))","v":0},{"$f":"IF(CW21=FALSE,0,IF(CV22<>0,CV22,MAX($D$22:CV22)+1))","v":0},{"$f":"IF(CX21=FALSE,0,IF(CW22<>0,CW22,MAX($D$22:CW22)+1))","v":0}]
[null,"Total upfront investment cost for given invesment/refurb",null,null,null,null,{"$f":"IF(G21=TRUE,SUMIF($G$22:$CX$22,G22,$G$13:$CY$13),0)","v":0},{"$f":"IF(H21=TRUE,SUMIF($G$22:$CX$22,H22,$G$13:$CY$13),0)","v":0},0,0,0,0,0,0,0,0,0,0,0,0,0,0,{"$f":"IF(W21=TRUE,SUMIF($G$22:$CX$22,W22,$G$13:$CY$13),0)","v":0},{"$f":"IF(X21=TRUE,SUMIF($G$22:$CX$22,X22,$G$13:$CY$13),0)","v":0},0,0,0,0,0,0,0,0,0,0,0,0,0,0,0,0,0,0,0,0,0,0,0,0,0,0,0,0,0,0,0,0,0,0,0,0,0,0,0,0,0,0,0,0,0,0,0,0,0,0,0,0,0,0,0,0,0,0,0,0,0,0,0,{"$f":"IF(CJ21=TRUE,SUMIF($G$22:$CX$22,CJ22,$G$13:$CY$13),0)","v":0},0,0,0,0,0,0,0,0,0,0,0,0,0,0]
[]
[null,"WACC"]
[null,"Annualised payment","£000's",{"$f":"IFERROR(-PMT('Data Input - General'!$G$16,SUM('Data Input - General'!$J$26:$J$28),D20*1000)/1000,0)","v":0}]
[null,"Annualised payment - additional invesment or refurbishments","£000's",0,0,0,{"$f":"IFERROR(IF(G15=FALSE,0,IF(G21=TRUE,-PMT('Data Input - General'!$G$16,SUM('Data Input - General'!$J$26:$J$28),G23*1000)/1000,0)),0)","v":0},{"$f":"IFERROR(IF(H15=FALSE,0,IF(H21=TRUE,-PMT('Data Input - General'!$G$16,SUM('Data Input - General'!$J$26:$J$28),H23*1000)/1000,0)),0)","v":0},{"$f":"IFERROR(IF(I15=FALSE,0,IF(I21=TRUE,-PMT('Data Input - General'!$G$16,SUM('Data Input - General'!$J$26:$J$28),I23*1000)/1000,0)),0)","v":0},{"$f":"IFERROR(IF(J15=FALSE,0,IF(J21=TRUE,-PMT('Data Input - General'!$G$16,SUM('Data Input - General'!$J$26:$J$28),J23*1000)/1000,0)),0)","v":0},{"$f":"IFERROR(IF(K15=FALSE,0,IF(K21=TRUE,-PMT('Data Input - General'!$G$16,SUM('Data Input - General'!$J$26:$J$28),K23*1000)/1000,0)),0)","v":0},{"$f":"IFERROR(IF(L15=FALSE,0,IF(L21=TRUE,-PMT('Data Input - General'!$G$16,SUM('Data Input - General'!$J$26:$J$28),L23*1000)/1000,0)),0)","v":0},{"$f":"IFERROR(IF(M15=FALSE,0,IF(M21=TRUE,-PMT('Data Input - General'!$G$16,SUM('Data Input - General'!$J$26:$J$28),M23*1000)/1000,0)),0)","v":0},{"$f":"IFERROR(IF(N15=FALSE,0,IF(N21=TRUE,-PMT('Data Input - General'!$G$16,SUM('Data Input - General'!$J$26:$J$28),N23*1000)/1000,0)),0)","v":0},{"$f":"IFERROR(IF(O15=FALSE,0,IF(O21=TRUE,-PMT('Data Input - General'!$G$16,SUM('Data Input - General'!$J$26:$J$28),O23*1000)/1000,0)),0)","v":0},{"$f":"IFERROR(IF(P15=FALSE,0,IF(P21=TRUE,-PMT('Data Input - General'!$G$16,SUM('Data Input - General'!$J$26:$J$28),P23*1000)/1000,0)),0)","v":0},{"$f":"IFERROR(IF(Q15=FALSE,0,IF(Q21=TRUE,-PMT('Data Input - General'!$G$16,SUM('Data Input - General'!$J$26:$J$28),Q23*1000)/1000,0)),0)","v":0},{"$f":"IFERROR(IF(R15=FALSE,0,IF(R21=TRUE,-PMT('Data Input - General'!$G$16,SUM('Data Input - General'!$J$26:$J$28),R23*1000)/1000,0)),0)","v":0},{"$f":"IFERROR(IF(S15=FALSE,0,IF(S21=TRUE,-PMT('Data Input - General'!$G$16,SUM('Data Input - General'!$J$26:$J$28),S23*1000)/1000,0)),0)","v":0},{"$f":"IFERROR(IF(T15=FALSE,0,IF(T21=TRUE,-PMT('Data Input - General'!$G$16,SUM('Data Input - General'!$J$26:$J$28),T23*1000)/1000,0)),0)","v":0},{"$f":"IFERROR(IF(U15=FALSE,0,IF(U21=TRUE,-PMT('Data Input - General'!$G$16,SUM('Data Input - General'!$J$26:$J$28),U23*1000)/1000,0)),0)","v":0},{"$f":"IFERROR(IF(V15=FALSE,0,IF(V21=TRUE,-PMT('Data Input - General'!$G$16,SUM('Data Input - General'!$J$26:$J$28),V23*1000)/1000,0)),0)","v":0},{"$f":"IFERROR(IF(W15=FALSE,0,IF(W21=TRUE,-PMT('Data Input - General'!$G$16,SUM('Data Input - General'!$J$26:$J$28),W23*1000)/1000,0)),0)","v":0},{"$f":"IFERROR(IF(X15=FALSE,0,IF(X21=TRUE,-PMT('Data Input - General'!$G$16,SUM('Data Input - General'!$J$26:$J$28),X23*1000)/1000,0)),0)","v":0},{"$f":"IFERROR(IF(Y15=FALSE,0,IF(Y21=TRUE,-PMT('Data Input - General'!$G$16,SUM('Data Input - General'!$J$26:$J$28),Y23*1000)/1000,0)),0)","v":0},{"$f":"IFERROR(IF(Z15=FALSE,0,IF(Z21=TRUE,-PMT('Data Input - General'!$G$16,SUM('Data Input - General'!$J$26:$J$28),Z23*1000)/1000,0)),0)","v":0},{"$f":"IFERROR(IF(AA15=FALSE,0,IF(AA21=TRUE,-PMT('Data Input - General'!$G$16,SUM('Data Input - General'!$J$26:$J$28),AA23*1000)/1000,0)),0)","v":0},{"$f":"IFERROR(IF(AB15=FALSE,0,IF(AB21=TRUE,-PMT('Data Input - General'!$G$16,SUM('Data Input - General'!$J$26:$J$28),AB23*1000)/1000,0)),0)","v":0},{"$f":"IFERROR(IF(AC15=FALSE,0,IF(AC21=TRUE,-PMT('Data Input - General'!$G$16,SUM('Data Input - General'!$J$26:$J$28),AC23*1000)/1000,0)),0)","v":0},{"$f":"IFERROR(IF(AD15=FALSE,0,IF(AD21=TRUE,-PMT('Data Input - General'!$G$16,SUM('Data Input - General'!$J$26:$J$28),AD23*1000)/1000,0)),0)","v":0},{"$f":"IFERROR(IF(AE15=FALSE,0,IF(AE21=TRUE,-PMT('Data Input - General'!$G$16,SUM('Data Input - General'!$J$26:$J$28),AE23*1000)/1000,0)),0)","v":0},{"$f":"IFERROR(IF(AF15=FALSE,0,IF(AF21=TRUE,-PMT('Data Input - General'!$G$16,SUM('Data Input - General'!$J$26:$J$28),AF23*1000)/1000,0)),0)","v":0},{"$f":"IFERROR(IF(AG15=FALSE,0,IF(AG21=TRUE,-PMT('Data Input - General'!$G$16,SUM('Data Input - General'!$J$26:$J$28),AG23*1000)/1000,0)),0)","v":0},{"$f":"IFERROR(IF(AH15=FALSE,0,IF(AH21=TRUE,-PMT('Data Input - General'!$G$16,SUM('Data Input - General'!$J$26:$J$28),AH23*1000)/1000,0)),0)","v":0},{"$f":"IFERROR(IF(AI15=FALSE,0,IF(AI21=TRUE,-PMT('Data Input - General'!$G$16,SUM('Data Input - General'!$J$26:$J$28),AI23*1000)/1000,0)),0)","v":0},{"$f":"IFERROR(IF(AJ15=FALSE,0,IF(AJ21=TRUE,-PMT('Data Input - General'!$G$16,SUM('Data Input - General'!$J$26:$J$28),AJ23*1000)/1000,0)),0)","v":0},{"$f":"IFERROR(IF(AK15=FALSE,0,IF(AK21=TRUE,-PMT('Data Input - General'!$G$16,SUM('Data Input - General'!$J$26:$J$28),AK23*1000)/1000,0)),0)","v":0},{"$f":"IFERROR(IF(AL15=FALSE,0,IF(AL21=TRUE,-PMT('Data Input - General'!$G$16,SUM('Data Input - General'!$J$26:$J$28),AL23*1000)/1000,0)),0)","v":0},{"$f":"IFERROR(IF(AM15=FALSE,0,IF(AM21=TRUE,-PMT('Data Input - General'!$G$16,SUM('Data Input - General'!$J$26:$J$28),AM23*1000)/1000,0)),0)","v":0},{"$f":"IFERROR(IF(AN15=FALSE,0,IF(AN21=TRUE,-PMT('Data Input - General'!$G$16,SUM('Data Input - General'!$J$26:$J$28),AN23*1000)/1000,0)),0)","v":0},{"$f":"IFERROR(IF(AO15=FALSE,0,IF(AO21=TRUE,-PMT('Data Input - General'!$G$16,SUM('Data Input - General'!$J$26:$J$28),AO23*1000)/1000,0)),0)","v":0},{"$f":"IFERROR(IF(AP15=FALSE,0,IF(AP21=TRUE,-PMT('Data Input - General'!$G$16,SUM('Data Input - General'!$J$26:$J$28),AP23*1000)/1000,0)),0)","v":0},{"$f":"IFERROR(IF(AQ15=FALSE,0,IF(AQ21=TRUE,-PMT('Data Input - General'!$G$16,SUM('Data Input - General'!$J$26:$J$28),AQ23*1000)/1000,0)),0)","v":0},{"$f":"IFERROR(IF(AR15=FALSE,0,IF(AR21=TRUE,-PMT('Data Input - General'!$G$16,SUM('Data Input - General'!$J$26:$J$28),AR23*1000)/1000,0)),0)","v":0},{"$f":"IFERROR(IF(AS15=FALSE,0,IF(AS21=TRUE,-PMT('Data Input - General'!$G$16,SUM('Data Input - General'!$J$26:$J$28),AS23*1000)/1000,0)),0)","v":0},{"$f":"IFERROR(IF(AT15=FALSE,0,IF(AT21=TRUE,-PMT('Data Input - General'!$G$16,SUM('Data Input - General'!$J$26:$J$28),AT23*1000)/1000,0)),0)","v":0},{"$f":"IFERROR(IF(AU15=FALSE,0,IF(AU21=TRUE,-PMT('Data Input - General'!$G$16,SUM('Data Input - General'!$J$26:$J$28),AU23*1000)/1000,0)),0)","v":0},{"$f":"IFERROR(IF(AV15=FALSE,0,IF(AV21=TRUE,-PMT('Data Input - General'!$G$16,SUM('Data Input - General'!$J$26:$J$28),AV23*1000)/1000,0)),0)","v":0},{"$f":"IFERROR(IF(AW15=FALSE,0,IF(AW21=TRUE,-PMT('Data Input - General'!$G$16,SUM('Data Input - General'!$J$26:$J$28),AW23*1000)/1000,0)),0)","v":0},{"$f":"IFERROR(IF(AX15=FALSE,0,IF(AX21=TRUE,-PMT('Data Input - General'!$G$16,SUM('Data Input - General'!$J$26:$J$28),AX23*1000)/1000,0)),0)","v":0},{"$f":"IFERROR(IF(AY15=FALSE,0,IF(AY21=TRUE,-PMT('Data Input - General'!$G$16,SUM('Data Input - General'!$J$26:$J$28),AY23*1000)/1000,0)),0)","v":0},{"$f":"IFERROR(IF(AZ15=FALSE,0,IF(AZ21=TRUE,-PMT('Data Input - General'!$G$16,SUM('Data Input - General'!$J$26:$J$28),AZ23*1000)/1000,0)),0)","v":0},{"$f":"IFERROR(IF(BA15=FALSE,0,IF(BA21=TRUE,-PMT('Data Input - General'!$G$16,SUM('Data Input - General'!$J$26:$J$28),BA23*1000)/1000,0)),0)","v":0},{"$f":"IFERROR(IF(BB15=FALSE,0,IF(BB21=TRUE,-PMT('Data Input - General'!$G$16,SUM('Data Input - General'!$J$26:$J$28),BB23*1000)/1000,0)),0)","v":0},{"$f":"IFERROR(IF(BC15=FALSE,0,IF(BC21=TRUE,-PMT('Data Input - General'!$G$16,SUM('Data Input - General'!$J$26:$J$28),BC23*1000)/1000,0)),0)","v":0},{"$f":"IFERROR(IF(BD15=FALSE,0,IF(BD21=TRUE,-PMT('Data Input - General'!$G$16,SUM('Data Input - General'!$J$26:$J$28),BD23*1000)/1000,0)),0)","v":0},{"$f":"IFERROR(IF(BE15=FALSE,0,IF(BE21=TRUE,-PMT('Data Input - General'!$G$16,SUM('Data Input - General'!$J$26:$J$28),BE23*1000)/1000,0)),0)","v":0},{"$f":"IFERROR(IF(BF15=FALSE,0,IF(BF21=TRUE,-PMT('Data Input - General'!$G$16,SUM('Data Input - General'!$J$26:$J$28),BF23*1000)/1000,0)),0)","v":0},{"$f":"IFERROR(IF(BG15=FALSE,0,IF(BG21=TRUE,-PMT('Data Input - General'!$G$16,SUM('Data Input - General'!$J$26:$J$28),BG23*1000)/1000,0)),0)","v":0},{"$f":"IFERROR(IF(BH15=FALSE,0,IF(BH21=TRUE,-PMT('Data Input - General'!$G$16,SUM('Data Input - General'!$J$26:$J$28),BH23*1000)/1000,0)),0)","v":0},{"$f":"IFERROR(IF(BI15=FALSE,0,IF(BI21=TRUE,-PMT('Data Input - General'!$G$16,SUM('Data Input - General'!$J$26:$J$28),BI23*1000)/1000,0)),0)","v":0},{"$f":"IFERROR(IF(BJ15=FALSE,0,IF(BJ21=TRUE,-PMT('Data Input - General'!$G$16,SUM('Data Input - General'!$J$26:$J$28),BJ23*1000)/1000,0)),0)","v":0},{"$f":"IFERROR(IF(BK15=FALSE,0,IF(BK21=TRUE,-PMT('Data Input - General'!$G$16,SUM('Data Input - General'!$J$26:$J$28),BK23*1000)/1000,0)),0)","v":0},{"$f":"IFERROR(IF(BL15=FALSE,0,IF(BL21=TRUE,-PMT('Data Input - General'!$G$16,SUM('Data Input - General'!$J$26:$J$28),BL23*1000)/1000,0)),0)","v":0},{"$f":"IFERROR(IF(BM15=FALSE,0,IF(BM21=TRUE,-PMT('Data Input - General'!$G$16,SUM('Data Input - General'!$J$26:$J$28),BM23*1000)/1000,0)),0)","v":0},{"$f":"IFERROR(IF(BN15=FALSE,0,IF(BN21=TRUE,-PMT('Data Input - General'!$G$16,SUM('Data Input - General'!$J$26:$J$28),BN23*1000)/1000,0)),0)","v":0},{"$f":"IFERROR(IF(BO15=FALSE,0,IF(BO21=TRUE,-PMT('Data Input - General'!$G$16,SUM('Data Input - General'!$J$26:$J$28),BO23*1000)/1000,0)),0)","v":0},{"$f":"IFERROR(IF(BP15=FALSE,0,IF(BP21=TRUE,-PMT('Data Input - General'!$G$16,SUM('Data Input - General'!$J$26:$J$28),BP23*1000)/1000,0)),0)","v":0},{"$f":"IFERROR(IF(BQ15=FALSE,0,IF(BQ21=TRUE,-PMT('Data Input - General'!$G$16,SUM('Data Input - General'!$J$26:$J$28),BQ23*1000)/1000,0)),0)","v":0},{"$f":"IFERROR(IF(BR15=FALSE,0,IF(BR21=TRUE,-PMT('Data Input - General'!$G$16,SUM('Data Input - General'!$J$26:$J$28),BR23*1000)/1000,0)),0)","v":0},{"$f":"IFERROR(IF(BS15=FALSE,0,IF(BS21=TRUE,-PMT('Data Input - General'!$G$16,SUM('Data Input - General'!$J$26:$J$28),BS23*1000)/1000,0)),0)","v":0},{"$f":"IFERROR(IF(BT15=FALSE,0,IF(BT21=TRUE,-PMT('Data Input - General'!$G$16,SUM('Data Input - General'!$J$26:$J$28),BT23*1000)/1000,0)),0)","v":0},{"$f":"IFERROR(IF(BU15=FALSE,0,IF(BU21=TRUE,-PMT('Data Input - General'!$G$16,SUM('Data Input - General'!$J$26:$J$28),BU23*1000)/1000,0)),0)","v":0},{"$f":"IFERROR(IF(BV15=FALSE,0,IF(BV21=TRUE,-PMT('Data Input - General'!$G$16,SUM('Data Input - General'!$J$26:$J$28),BV23*1000)/1000,0)),0)","v":0},{"$f":"IFERROR(IF(BW15=FALSE,0,IF(BW21=TRUE,-PMT('Data Input - General'!$G$16,SUM('Data Input - General'!$J$26:$J$28),BW23*1000)/1000,0)),0)","v":0},{"$f":"IFERROR(IF(BX15=FALSE,0,IF(BX21=TRUE,-PMT('Data Input - General'!$G$16,SUM('Data Input - General'!$J$26:$J$28),BX23*1000)/1000,0)),0)","v":0},{"$f":"IFERROR(IF(BY15=FALSE,0,IF(BY21=TRUE,-PMT('Data Input - General'!$G$16,SUM('Data Input - General'!$J$26:$J$28),BY23*1000)/1000,0)),0)","v":0},{"$f":"IFERROR(IF(BZ15=FALSE,0,IF(BZ21=TRUE,-PMT('Data Input - General'!$G$16,SUM('Data Input - General'!$J$26:$J$28),BZ23*1000)/1000,0)),0)","v":0},{"$f":"IFERROR(IF(CA15=FALSE,0,IF(CA21=TRUE,-PMT('Data Input - General'!$G$16,SUM('Data Input - General'!$J$26:$J$28),CA23*1000)/1000,0)),0)","v":0},{"$f":"IFERROR(IF(CB15=FALSE,0,IF(CB21=TRUE,-PMT('Data Input - General'!$G$16,SUM('Data Input - General'!$J$26:$J$28),CB23*1000)/1000,0)),0)","v":0},{"$f":"IFERROR(IF(CC15=FALSE,0,IF(CC21=TRUE,-PMT('Data Input - General'!$G$16,SUM('Data Input - General'!$J$26:$J$28),CC23*1000)/1000,0)),0)","v":0},{"$f":"IFERROR(IF(CD15=FALSE,0,IF(CD21=TRUE,-PMT('Data Input - General'!$G$16,SUM('Data Input - General'!$J$26:$J$28),CD23*1000)/1000,0)),0)","v":0},{"$f":"IFERROR(IF(CE15=FALSE,0,IF(CE21=TRUE,-PMT('Data Input - General'!$G$16,SUM('Data Input - General'!$J$26:$J$28),CE23*1000)/1000,0)),0)","v":0},{"$f":"IFERROR(IF(CF15=FALSE,0,IF(CF21=TRUE,-PMT('Data Input - General'!$G$16,SUM('Data Input - General'!$J$26:$J$28),CF23*1000)/1000,0)),0)","v":0},{"$f":"IFERROR(IF(CG15=FALSE,0,IF(CG21=TRUE,-PMT('Data Input - General'!$G$16,SUM('Data Input - General'!$J$26:$J$28),CG23*1000)/1000,0)),0)","v":0},{"$f":"IFERROR(IF(CH15=FALSE,0,IF(CH21=TRUE,-PMT('Data Input - General'!$G$16,SUM('Data Input - General'!$J$26:$J$28),CH23*1000)/1000,0)),0)","v":0},{"$f":"IFERROR(IF(CI15=FALSE,0,IF(CI21=TRUE,-PMT('Data Input - General'!$G$16,SUM('Data Input - General'!$J$26:$J$28),CI23*1000)/1000,0)),0)","v":0},{"$f":"IFERROR(IF(CJ15=FALSE,0,IF(CJ21=TRUE,-PMT('Data Input - General'!$G$16,SUM('Data Input - General'!$J$26:$J$28),CJ23*1000)/1000,0)),0)","v":0},{"$f":"IFERROR(IF(CK15=FALSE,0,IF(CK21=TRUE,-PMT('Data Input - General'!$G$16,SUM('Data Input - General'!$J$26:$J$28),CK23*1000)/1000,0)),0)","v":0},{"$f":"IFERROR(IF(CL15=FALSE,0,IF(CL21=TRUE,-PMT('Data Input - General'!$G$16,SUM('Data Input - General'!$J$26:$J$28),CL23*1000)/1000,0)),0)","v":0},{"$f":"IFERROR(IF(CM15=FALSE,0,IF(CM21=TRUE,-PMT('Data Input - General'!$G$16,SUM('Data Input - General'!$J$26:$J$28),CM23*1000)/1000,0)),0)","v":0},{"$f":"IFERROR(IF(CN15=FALSE,0,IF(CN21=TRUE,-PMT('Data Input - General'!$G$16,SUM('Data Input - General'!$J$26:$J$28),CN23*1000)/1000,0)),0)","v":0},{"$f":"IFERROR(IF(CO15=FALSE,0,IF(CO21=TRUE,-PMT('Data Input - General'!$G$16,SUM('Data Input - General'!$J$26:$J$28),CO23*1000)/1000,0)),0)","v":0},{"$f":"IFERROR(IF(CP15=FALSE,0,IF(CP21=TRUE,-PMT('Data Input - General'!$G$16,SUM('Data Input - General'!$J$26:$J$28),CP23*1000)/1000,0)),0)","v":0},{"$f":"IFERROR(IF(CQ15=FALSE,0,IF(CQ21=TRUE,-PMT('Data Input - General'!$G$16,SUM('Data Input - General'!$J$26:$J$28),CQ23*1000)/1000,0)),0)","v":0},{"$f":"IFERROR(IF(CR15=FALSE,0,IF(CR21=TRUE,-PMT('Data Input - General'!$G$16,SUM('Data Input - General'!$J$26:$J$28),CR23*1000)/1000,0)),0)","v":0},{"$f":"IFERROR(IF(CS15=FALSE,0,IF(CS21=TRUE,-PMT('Data Input - General'!$G$16,SUM('Data Input - General'!$J$26:$J$28),CS23*1000)/1000,0)),0)","v":0},{"$f":"IFERROR(IF(CT15=FALSE,0,IF(CT21=TRUE,-PMT('Data Input - General'!$G$16,SUM('Data Input - General'!$J$26:$J$28),CT23*1000)/1000,0)),0)","v":0},{"$f":"IFERROR(IF(CU15=FALSE,0,IF(CU21=TRUE,-PMT('Data Input - General'!$G$16,SUM('Data Input - General'!$J$26:$J$28),CU23*1000)/1000,0)),0)","v":0},{"$f":"IFERROR(IF(CV15=FALSE,0,IF(CV21=TRUE,-PMT('Data Input - General'!$G$16,SUM('Data Input - General'!$J$26:$J$28),CV23*1000)/1000,0)),0)","v":0},{"$f":"IFERROR(IF(CW15=FALSE,0,IF(CW21=TRUE,-PMT('Data Input - General'!$G$16,SUM('Data Input - General'!$J$26:$J$28),CW23*1000)/1000,0)),0)","v":0},{"$f":"IFERROR(IF(CX15=FALSE,0,IF(CX21=TRUE,-PMT('Data Input - General'!$G$16,SUM('Data Input - General'!$J$26:$J$28),CX23*1000)/1000,0)),0)","v":0},{"$f":"IFERROR(IF(CY15=FALSE,0,IF(CY21=TRUE,-PMT('Data Input - General'!$G$16,SUM('Data Input - General'!$J$26:$J$28),CY23*1000)/1000,0)),0)","v":0}]
[null,"Cummulative annualised payment","£000's",0,0,0,{"$f":"IF(G27=0,F28,IF(F27=G27,F28,F28+G27))","v":0},{"$f":"IF(H27=0,G28,IF(G27=H27,G28,G28+H27))","v":0},0,0,0,0,0,0,0,0,0,0,0,0,0,0,0,0,0,0,0,0,0,0,0,0,0,0,0,0,0,0,0,0,0,0,0,0,0,0,0,0,0,0,0,0,0,0,0,0,0,0,0,0,0,0,0,0,0,0,0,0,0,0,0,{"$f":"IF(BT27=0,BS28,IF(BS27=BT27,BS28,BS28+BT27))","v":0},0,0,0,0,0,0,0,0,0,0,0,0,0,0,0,0,0,0,0,0,0,0,0,0,0,0,0,0,0,0,0]
[null,"Annual value (taking into account installation year)","£000's",{"$f":"IF(D15=FALSE,0,IF(D28=0,$D$26,D28))","v":0},{"$f":"IF(E15=FALSE,0,IF(E28=0,$D$26,E28))","v":0},0,0,0,0,0,0,0,0,0,0,0,0,0,0,0,0,0,0,0,0,0,0,0,0,0,0,0,0,0,0,0,0,0,0,0,0,0,0,0,0,0,0,0,0,0,0,0,0,0,0,0,0,0,0,0,0,0,0,0,0,0,0,0,{"$f":"IF(BQ15=FALSE,0,IF(BQ28=0,$D$26,BQ28))","v":0},0,0,0,0,0,0,0,0,0,0,0,0,0,0,0,0,0,0,0,0,0,0,0,0,0,0,0,0,0,0,0,0,0,0]
[null,"Discounted annual value","£000's",{"$f":"D29*D$7","v":0},{"$f":"E29*E$7","v":0},0,0,0,0,0,0,0,0,0,0,0,0,0,0,0,0,0,0,0,0,0,0,0,0,0,0,0,0,0,0,0,0,0,0,0,0,0,0,0,0,0,0,0,0,0,0,0,0,0,0,0,0,0,0,0,0,0,0,0,0,0,0,0,{"$f":"BQ29*BQ$7","v":0},0,0,0,0,0,0,0,0,0,0,0,0,0,0,0,0,0,0,0,0,0,0,0,0,0,0,0,0,0,0,0,0,0,0]
[]
[null,"Cost of Capital (finance)"]
[null,"Financing costs (when entered manually)","£000's",{"$f":"'Data Input - Option 4'!H39","v":0},{"$f":"'Data Input - Option 4'!I39","v":0},{"$f":"'Data Input - Option 4'!J39","v":0},{"$f":"'Data Input - Option 4'!K39","v":0},{"$f":"'Data Input - Option 4'!L39","v":0},{"$f":"'Data Input - Option 4'!M39","v":0},{"$f":"'Data Input - Option 4'!N39","v":0},{"$f":"'Data Input - Option 4'!O39","v":0},{"$f":"'Data Input - Option 4'!P39","v":0},{"$f":"'Data Input - Option 4'!Q39","v":0},{"$f":"'Data Input - Option 4'!R39","v":0},{"$f":"'Data Input - Option 4'!S39","v":0},{"$f":"'Data Input - Option 4'!T39","v":0},{"$f":"'Data Input - Option 4'!U39","v":0},{"$f":"'Data Input - Option 4'!V39","v":0},{"$f":"'Data Input - Option 4'!W39","v":0},{"$f":"'Data Input - Option 4'!X39","v":0},{"$f":"'Data Input - Option 4'!Y39","v":0},{"$f":"'Data Input - Option 4'!Z39","v":0},{"$f":"'Data Input - Option 4'!AA39","v":0},{"$f":"'Data Input - Option 4'!AB39","v":0},{"$f":"'Data Input - Option 4'!AC39","v":0},{"$f":"'Data Input - Option 4'!AD39","v":0},{"$f":"'Data Input - Option 4'!AE39","v":0},{"$f":"'Data Input - Option 4'!AF39","v":0},{"$f":"'Data Input - Option 4'!AG39","v":0},{"$f":"'Data Input - Option 4'!AH39","v":0},{"$f":"'Data Input - Option 4'!AI39","v":0},{"$f":"'Data Input - Option 4'!AJ39","v":0},{"$f":"'Data Input - Option 4'!AK39","v":0},{"$f":"'Data Input - Option 4'!AL39","v":0},{"$f":"'Data Input - Option 4'!AM39","v":0},{"$f":"'Data Input - Option 4'!AN39","v":0},{"$f":"'Data Input - Option 4'!AO39","v":0},{"$f":"'Data Input - Option 4'!AP39","v":0},{"$f":"'Data Input - Option 4'!AQ39","v":0},{"$f":"'Data Input - Option 4'!AR39","v":0},{"$f":"'Data Input - Option 4'!AS39","v":0},{"$f":"'Data Input - Option 4'!AT39","v":0},{"$f":"'Data Input - Option 4'!AU39","v":0},{"$f":"'Data Input - Option 4'!AV39","v":0},{"$f":"'Data Input - Option 4'!AW39","v":0},{"$f":"'Data Input - Option 4'!AX39","v":0},{"$f":"'Data Input - Option 4'!AY39","v":0},{"$f":"'Data Input - Option 4'!AZ39","v":0},{"$f":"'Data Input - Option 4'!BA39","v":0},{"$f":"'Data Input - Option 4'!BB39","v":0},{"$f":"'Data Input - Option 4'!BC39","v":0},{"$f":"'Data Input - Option 4'!BD39","v":0},{"$f":"'Data Input - Option 4'!BE39","v":0},{"$f":"'Data Input - Option 4'!BF39","v":0},{"$f":"'Data Input - Option 4'!BG39","v":0},{"$f":"'Data Input - Option 4'!BH39","v":0},{"$f":"'Data Input - Option 4'!BI39","v":0},{"$f":"'Data Input - Option 4'!BJ39","v":0},{"$f":"'Data Input - Option 4'!BK39","v":0},{"$f":"'Data Input - Option 4'!BL39","v":0},{"$f":"'Data Input - Option 4'!BM39","v":0},{"$f":"'Data Input - Option 4'!BN39","v":0},{"$f":"'Data Input - Option 4'!BO39","v":0},{"$f":"'Data Input - Option 4'!BP39","v":0},{"$f":"'Data Input - Option 4'!BQ39","v":0},{"$f":"'Data Input - Option 4'!BR39","v":0},{"$f":"'Data Input - Option 4'!BS39","v":0},{"$f":"'Data Input - Option 4'!BT39","v":0},{"$f":"'Data Input - Option 4'!BU39","v":0},{"$f":"'Data Input - Option 4'!BV39","v":0},{"$f":"'Data Input - Option 4'!BW39","v":0},{"$f":"'Data Input - Option 4'!BX39","v":0},{"$f":"'Data Input - Option 4'!BY39","v":0},{"$f":"'Data Input - Option 4'!BZ39","v":0},{"$f":"'Data Input - Option 4'!CA39","v":0},{"$f":"'Data Input - Option 4'!CB39","v":0},{"$f":"'Data Input - Option 4'!CC39","v":0},{"$f":"'Data Input - Option 4'!CD39","v":0},{"$f":"'Data Input - Option 4'!CE39","v":0},{"$f":"'Data Input - Option 4'!CF39","v":0},{"$f":"'Data Input - Option 4'!CG39","v":0},{"$f":"'Data Input - Option 4'!CH39","v":0},{"$f":"'Data Input - Option 4'!CI39","v":0},{"$f":"'Data Input - Option 4'!CJ39","v":0},{"$f":"'Data Input - Option 4'!CK39","v":0},{"$f":"'Data Input - Option 4'!CL39","v":0},{"$f":"'Data Input - Option 4'!CM39","v":0},{"$f":"'Data Input - Option 4'!CN39","v":0},{"$f":"'Data Input - Option 4'!CO39","v":0},{"$f":"'Data Input - Option 4'!CP39","v":0},{"$f":"'Data Input - Option 4'!CQ39","v":0},{"$f":"'Data Input - Option 4'!CR39","v":0},{"$f":"'Data Input - Option 4'!CS39","v":0},{"$f":"'Data Input - Option 4'!CT39","v":0},{"$f":"'Data Input - Option 4'!CU39","v":0},{"$f":"'Data Input - Option 4'!CV39","v":0},{"$f":"'Data Input - Option 4'!CW39","v":0},{"$f":"'Data Input - Option 4'!CX39","v":0},{"$f":"'Data Input - Option 4'!CY39","v":0},{"$f":"'Data Input - Option 4'!CZ39","v":0},{"$f":"'Data Input - Option 4'!DA39","v":0},{"$f":"'Data Input - Option 4'!DB39","v":0},{"$f":"'Data Input - Option 4'!DC39","v":0}]
[null,"Discounted finacning","£000's",{"$f":"D33*D$7","v":0},{"$f":"E33*E$7","v":0},{"$f":"F33*F$7","v":0},0,0,0,0,0,0,0,0,0,0,0,0,0,0,0,0,0,0,0,0,0,0,0,0,0,0,0,0,0,0,0,0,0,0,0,0,0,0,0,0,0,0,0,0,0,0,0,0,0,0,0,0,0,0,0,0,0,0,0,0,0,0,{"$f":"BQ33*BQ$7","v":0},0,0,0,0,0,0,0,0,0,0,0,0,0,0,0,0,0,0,0,0,0,0,0,0,0,0,0,0,0,0,0,0,0,0]
[]
[null,"Total capex","£000's",{"$f":"IF('Data Input - Option 4'!$F$37=\"Yes\",D34+D13,D30)","v":0},{"$f":"IF('Data Input - Option 4'!$F$37=\"Yes\",E34+E13,E30)","v":0},{"$f":"IF('Data Input - Option 4'!$F$37=\"Yes\",F34+F13,F30)","v":0},{"$f":"IF('Data Input - Option 4'!$F$37=\"Yes\",G34+G13,G30)","v":0},{"$f":"IF('Data Input - Option 4'!$F$37=\"Yes\",H34+H13,H30)","v":0},{"$f":"IF('Data Input - Option 4'!$F$37=\"Yes\",I34+I13,I30)","v":0},{"$f":"IF('Data Input - Option 4'!$F$37=\"Yes\",J34+J13,J30)","v":0},{"$f":"IF('Data Input - Option 4'!$F$37=\"Yes\",K34+K13,K30)","v":0},{"$f":"IF('Data Input - Option 4'!$F$37=\"Yes\",L34+L13,L30)","v":0},{"$f":"IF('Data Input - Option 4'!$F$37=\"Yes\",M34+M13,M30)","v":0},{"$f":"IF('Data Input - Option 4'!$F$37=\"Yes\",N34+N13,N30)","v":0},{"$f":"IF('Data Input - Option 4'!$F$37=\"Yes\",O34+O13,O30)","v":0},{"$f":"IF('Data Input - Option 4'!$F$37=\"Yes\",P34+P13,P30)","v":0},{"$f":"IF('Data Input - Option 4'!$F$37=\"Yes\",Q34+Q13,Q30)","v":0},{"$f":"IF('Data Input - Option 4'!$F$37=\"Yes\",R34+R13,R30)","v":0},{"$f":"IF('Data Input - Option 4'!$F$37=\"Yes\",S34+S13,S30)","v":0},{"$f":"IF('Data Input - Option 4'!$F$37=\"Yes\",T34+T13,T30)","v":0},{"$f":"IF('Data Input - Option 4'!$F$37=\"Yes\",U34+U13,U30)","v":0},{"$f":"IF('Data Input - Option 4'!$F$37=\"Yes\",V34+V13,V30)","v":0},{"$f":"IF('Data Input - Option 4'!$F$37=\"Yes\",W34+W13,W30)","v":0},{"$f":"IF('Data Input - Option 4'!$F$37=\"Yes\",X34+X13,X30)","v":0},{"$f":"IF('Data Input - Option 4'!$F$37=\"Yes\",Y34+Y13,Y30)","v":0},{"$f":"IF('Data Input - Option 4'!$F$37=\"Yes\",Z34+Z13,Z30)","v":0},{"$f":"IF('Data Input - Option 4'!$F$37=\"Yes\",AA34+AA13,AA30)","v":0},{"$f":"IF('Data Input - Option 4'!$F$37=\"Yes\",AB34+AB13,AB30)","v":0},{"$f":"IF('Data Input - Option 4'!$F$37=\"Yes\",AC34+AC13,AC30)","v":0},{"$f":"IF('Data Input - Option 4'!$F$37=\"Yes\",AD34+AD13,AD30)","v":0},{"$f":"IF('Data Input - Option 4'!$F$37=\"Yes\",AE34+AE13,AE30)","v":0},{"$f":"IF('Data Input - Option 4'!$F$37=\"Yes\",AF34+AF13,AF30)","v":0},{"$f":"IF('Data Input - Option 4'!$F$37=\"Yes\",AG34+AG13,AG30)","v":0},{"$f":"IF('Data Input - Option 4'!$F$37=\"Yes\",AH34+AH13,AH30)","v":0},{"$f":"IF('Data Input - Option 4'!$F$37=\"Yes\",AI34+AI13,AI30)","v":0},{"$f":"IF('Data Input - Option 4'!$F$37=\"Yes\",AJ34+AJ13,AJ30)","v":0},{"$f":"IF('Data Input - Option 4'!$F$37=\"Yes\",AK34+AK13,AK30)","v":0},{"$f":"IF('Data Input - Option 4'!$F$37=\"Yes\",AL34+AL13,AL30)","v":0},{"$f":"IF('Data Input - Option 4'!$F$37=\"Yes\",AM34+AM13,AM30)","v":0},{"$f":"IF('Data Input - Option 4'!$F$37=\"Yes\",AN34+AN13,AN30)","v":0},{"$f":"IF('Data Input - Option 4'!$F$37=\"Yes\",AO34+AO13,AO30)","v":0},{"$f":"IF('Data Input - Option 4'!$F$37=\"Yes\",AP34+AP13,AP30)","v":0},{"$f":"IF('Data Input - Option 4'!$F$37=\"Yes\",AQ34+AQ13,AQ30)","v":0},{"$f":"IF('Data Input - Option 4'!$F$37=\"Yes\",AR34+AR13,AR30)","v":0},{"$f":"IF('Data Input - Option 4'!$F$37=\"Yes\",AS34+AS13,AS30)","v":0},{"$f":"IF('Data Input - Option 4'!$F$37=\"Yes\",AT34+AT13,AT30)","v":0},{"$f":"IF('Data Input - Option 4'!$F$37=\"Yes\",AU34+AU13,AU30)","v":0},{"$f":"IF('Data Input - Option 4'!$F$37=\"Yes\",AV34+AV13,AV30)","v":0},{"$f":"IF('Data Input - Option 4'!$F$37=\"Yes\",AW34+AW13,AW30)","v":0},{"$f":"IF('Data Input - Option 4'!$F$37=\"Yes\",AX34+AX13,AX30)","v":0},{"$f":"IF('Data Input - Option 4'!$F$37=\"Yes\",AY34+AY13,AY30)","v":0},{"$f":"IF('Data Input - Option 4'!$F$37=\"Yes\",AZ34+AZ13,AZ30)","v":0},{"$f":"IF('Data Input - Option 4'!$F$37=\"Yes\",BA34+BA13,BA30)","v":0},{"$f":"IF('Data Input - Option 4'!$F$37=\"Yes\",BB34+BB13,BB30)","v":0},{"$f":"IF('Data Input - Option 4'!$F$37=\"Yes\",BC34+BC13,BC30)","v":0},{"$f":"IF('Data Input - Option 4'!$F$37=\"Yes\",BD34+BD13,BD30)","v":0},{"$f":"IF('Data Input - Option 4'!$F$37=\"Yes\",BE34+BE13,BE30)","v":0},{"$f":"IF('Data Input - Option 4'!$F$37=\"Yes\",BF34+BF13,BF30)","v":0},{"$f":"IF('Data Input - Option 4'!$F$37=\"Yes\",BG34+BG13,BG30)","v":0},{"$f":"IF('Data Input - Option 4'!$F$37=\"Yes\",BH34+BH13,BH30)","v":0},{"$f":"IF('Data Input - Option 4'!$F$37=\"Yes\",BI34+BI13,BI30)","v":0},{"$f":"IF('Data Input - Option 4'!$F$37=\"Yes\",BJ34+BJ13,BJ30)","v":0},{"$f":"IF('Data Input - Option 4'!$F$37=\"Yes\",BK34+BK13,BK30)","v":0},{"$f":"IF('Data Input - Option 4'!$F$37=\"Yes\",BL34+BL13,BL30)","v":0},{"$f":"IF('Data Input - Option 4'!$F$37=\"Yes\",BM34+BM13,BM30)","v":0},{"$f":"IF('Data Input - Option 4'!$F$37=\"Yes\",BN34+BN13,BN30)","v":0},{"$f":"IF('Data Input - Option 4'!$F$37=\"Yes\",BO34+BO13,BO30)","v":0},{"$f":"IF('Data Input - Option 4'!$F$37=\"Yes\",BP34+BP13,BP30)","v":0},{"$f":"IF('Data Input - Option 4'!$F$37=\"Yes\",BQ34+BQ13,BQ30)","v":0},{"$f":"IF('Data Input - Option 4'!$F$37=\"Yes\",BR34+BR13,BR30)","v":0},{"$f":"IF('Data Input - Option 4'!$F$37=\"Yes\",BS34+BS13,BS30)","v":0},{"$f":"IF('Data Input - Option 4'!$F$37=\"Yes\",BT34+BT13,BT30)","v":0},{"$f":"IF('Data Input - Option 4'!$F$37=\"Yes\",BU34+BU13,BU30)","v":0},{"$f":"IF('Data Input - Option 4'!$F$37=\"Yes\",BV34+BV13,BV30)","v":0},{"$f":"IF('Data Input - Option 4'!$F$37=\"Yes\",BW34+BW13,BW30)","v":0},{"$f":"IF('Data Input - Option 4'!$F$37=\"Yes\",BX34+BX13,BX30)","v":0},{"$f":"IF('Data Input - Option 4'!$F$37=\"Yes\",BY34+BY13,BY30)","v":0},{"$f":"IF('Data Input - Option 4'!$F$37=\"Yes\",BZ34+BZ13,BZ30)","v":0},{"$f":"IF('Data Input - Option 4'!$F$37=\"Yes\",CA34+CA13,CA30)","v":0},{"$f":"IF('Data Input - Option 4'!$F$37=\"Yes\",CB34+CB13,CB30)","v":0},{"$f":"IF('Data Input - Option 4'!$F$37=\"Yes\",CC34+CC13,CC30)","v":0},{"$f":"IF('Data Input - Option 4'!$F$37=\"Yes\",CD34+CD13,CD30)","v":0},{"$f":"IF('Data Input - Option 4'!$F$37=\"Yes\",CE34+CE13,CE30)","v":0},{"$f":"IF('Data Input - Option 4'!$F$37=\"Yes\",CF34+CF13,CF30)","v":0},{"$f":"IF('Data Input - Option 4'!$F$37=\"Yes\",CG34+CG13,CG30)","v":0},{"$f":"IF('Data Input - Option 4'!$F$37=\"Yes\",CH34+CH13,CH30)","v":0},{"$f":"IF('Data Input - Option 4'!$F$37=\"Yes\",CI34+CI13,CI30)","v":0},{"$f":"IF('Data Input - Option 4'!$F$37=\"Yes\",CJ34+CJ13,CJ30)","v":0},{"$f":"IF('Data Input - Option 4'!$F$37=\"Yes\",CK34+CK13,CK30)","v":0},{"$f":"IF('Data Input - Option 4'!$F$37=\"Yes\",CL34+CL13,CL30)","v":0},{"$f":"IF('Data Input - Option 4'!$F$37=\"Yes\",CM34+CM13,CM30)","v":0},{"$f":"IF('Data Input - Option 4'!$F$37=\"Yes\",CN34+CN13,CN30)","v":0},{"$f":"IF('Data Input - Option 4'!$F$37=\"Yes\",CO34+CO13,CO30)","v":0},{"$f":"IF('Data Input - Option 4'!$F$37=\"Yes\",CP34+CP13,CP30)","v":0},{"$f":"IF('Data Input - Option 4'!$F$37=\"Yes\",CQ34+CQ13,CQ30)","v":0},{"$f":"IF('Data Input - Option 4'!$F$37=\"Yes\",CR34+CR13,CR30)","v":0},{"$f":"IF('Data Input - Option 4'!$F$37=\"Yes\",CS34+CS13,CS30)","v":0},{"$f":"IF('Data Input - Option 4'!$F$37=\"Yes\",CT34+CT13,CT30)","v":0},{"$f":"IF('Data Input - Option 4'!$F$37=\"Yes\",CU34+CU13,CU30)","v":0},{"$f":"IF('Data Input - Option 4'!$F$37=\"Yes\",CV34+CV13,CV30)","v":0},{"$f":"IF('Data Input - Option 4'!$F$37=\"Yes\",CW34+CW13,CW30)","v":0},{"$f":"IF('Data Input - Option 4'!$F$37=\"Yes\",CX34+CX13,CX30)","v":0},{"$f":"IF('Data Input - Option 4'!$F$37=\"Yes\",CY34+CY13,CY30)","v":0}]
[]
[null,"Operating costs (non-energy, per annum)"]
[null,"Total Opex","£000's",{"$f":"'Data Input - Option 4'!H50","v":1},{"$f":"'Data Input - Option 4'!I50","v":0},{"$f":"'Data Input - Option 4'!J50","v":0},{"$f":"'Data Input - Option 4'!K50","v":0},{"$f":"'Data Input - Option 4'!L50","v":0},{"$f":"'Data Input - Option 4'!M50","v":0},{"$f":"'Data Input - Option 4'!N50","v":0},{"$f":"'Data Input - Option 4'!O50","v":0},{"$f":"'Data Input - Option 4'!P50","v":0},{"$f":"'Data Input - Option 4'!Q50","v":0},{"$f":"'Data Input - Option 4'!R50","v":0},{"$f":"'Data Input - Option 4'!S50","v":0},{"$f":"'Data Input - Option 4'!T50","v":0},{"$f":"'Data Input - Option 4'!U50","v":0},{"$f":"'Data Input - Option 4'!V50","v":0},{"$f":"'Data Input - Option 4'!W50","v":0},{"$f":"'Data Input - Option 4'!X50","v":0},{"$f":"'Data Input - Option 4'!Y50","v":0},{"$f":"'Data Input - Option 4'!Z50","v":0},{"$f":"'Data Input - Option 4'!AA50","v":0},{"$f":"'Data Input - Option 4'!AB50","v":0},{"$f":"'Data Input - Option 4'!AC50","v":0},{"$f":"'Data Input - Option 4'!AD50","v":0},{"$f":"'Data Input - Option 4'!AE50","v":0},{"$f":"'Data Input - Option 4'!AF50","v":0},{"$f":"'Data Input - Option 4'!AG50","v":0},{"$f":"'Data Input - Option 4'!AH50","v":0},{"$f":"'Data Input - Option 4'!AI50","v":0},{"$f":"'Data Input - Option 4'!AJ50","v":0},{"$f":"'Data Input - Option 4'!AK50","v":0},{"$f":"'Data Input - Option 4'!AL50","v":0},{"$f":"'Data Input - Option 4'!AM50","v":0},{"$f":"'Data Input - Option 4'!AN50","v":0},{"$f":"'Data Input - Option 4'!AO50","v":0},{"$f":"'Data Input - Option 4'!AP50","v":0},{"$f":"'Data Input - Option 4'!AQ50","v":0},{"$f":"'Data Input - Option 4'!AR50","v":0},{"$f":"'Data Input - Option 4'!AS50","v":0},{"$f":"'Data Input - Option 4'!AT50","v":0},{"$f":"'Data Input - Option 4'!AU50","v":0},{"$f":"'Data Input - Option 4'!AV50","v":0},{"$f":"'Data Input - Option 4'!AW50","v":0},{"$f":"'Data Input - Option 4'!AX50","v":0},{"$f":"'Data Input - Option 4'!AY50","v":0},{"$f":"'Data Input - Option 4'!AZ50","v":0},{"$f":"'Data Input - Option 4'!BA50","v":0},{"$f":"'Data Input - Option 4'!BB50","v":0},{"$f":"'Data Input - Option 4'!BC50","v":0},{"$f":"'Data Input - Option 4'!BD50","v":0},{"$f":"'Data Input - Option 4'!BE50","v":0},{"$f":"'Data Input - Option 4'!BF50","v":0},{"$f":"'Data Input - Option 4'!BG50","v":0},{"$f":"'Data Input - Option 4'!BH50","v":0},{"$f":"'Data Input - Option 4'!BI50","v":0},{"$f":"'Data Input - Option 4'!BJ50","v":0},{"$f":"'Data Input - Option 4'!BK50","v":0},{"$f":"'Data Input - Option 4'!BL50","v":0},{"$f":"'Data Input - Option 4'!BM50","v":0},{"$f":"'Data Input - Option 4'!BN50","v":0},{"$f":"'Data Input - Option 4'!BO50","v":0},{"$f":"'Data Input - Option 4'!BP50","v":0},{"$f":"'Data Input - Option 4'!BQ50","v":0},{"$f":"'Data Input - Option 4'!BR50","v":0},{"$f":"'Data Input - Option 4'!BS50","v":0},{"$f":"'Data Input - Option 4'!BT50","v":0},{"$f":"'Data Input - Option 4'!BU50","v":0},{"$f":"'Data Input - Option 4'!BV50","v":0},{"$f":"'Data Input - Option 4'!BW50","v":0},{"$f":"'Data Input - Option 4'!BX50","v":0},{"$f":"'Data Input - Option 4'!BY50","v":0},{"$f":"'Data Input - Option 4'!BZ50","v":0},{"$f":"'Data Input - Option 4'!CA50","v":0},{"$f":"'Data Input - Option 4'!CB50","v":0},{"$f":"'Data Input - Option 4'!CC50","v":0},{"$f":"'Data Input - Option 4'!CD50","v":0},{"$f":"'Data Input - Option 4'!CE50","v":0},{"$f":"'Data Input - Option 4'!CF50","v":0},{"$f":"'Data Input - Option 4'!CG50","v":0},{"$f":"'Data Input - Option 4'!CH50","v":0},{"$f":"'Data Input - Option 4'!CI50","v":0},{"$f":"'Data Input - Option 4'!CJ50","v":0},{"$f":"'Data Input - Option 4'!CK50","v":0},{"$f":"'Data Input - Option 4'!CL50","v":0},{"$f":"'Data Input - Option 4'!CM50","v":0},{"$f":"'Data Input - Option 4'!CN50","v":0},{"$f":"'Data Input - Option 4'!CO50","v":0},{"$f":"'Data Input - Option 4'!CP50","v":0},{"$f":"'Data Input - Option 4'!CQ50","v":0},{"$f":"'Data Input - Option 4'!CR50","v":0},{"$f":"'Data Input - Option 4'!CS50","v":0},{"$f":"'Data Input - Option 4'!CT50","v":0},{"$f":"'Data Input - Option 4'!CU50","v":0},{"$f":"'Data Input - Option 4'!CV50","v":0},{"$f":"'Data Input - Option 4'!CW50","v":0},{"$f":"'Data Input - Option 4'!CX50","v":0},{"$f":"'Data Input - Option 4'!CY50","v":0},{"$f":"'Data Input - Option 4'!CZ50","v":0},{"$f":"'Data Input - Option 4'!DA50","v":0},{"$f":"'Data Input - Option 4'!DB50","v":0},{"$f":"'Data Input - Option 4'!DC50","v":0}]
[null,"Discounted total opex","£000's",{"$f":"D39*D$7","v":1},{"$f":"E39*E$7","v":0},0,0,0,0,0,0,0,0,0,0,0,0,0,0,0,0,0,0,0,0,0,0,0,0,0,0,0,0,0,0,0,0,0,0,0,0,0,0,0,0,0,0,0,0,0,0,0,0,0,0,0,0,0,0,0,0,0,0,0,0,0,0,0,{"$f":"BQ39*BQ$7","v":0},0,0,0,0,0,0,0,0,0,0,0,0,0,0,0,0,0,0,0,0,0,0,0,0,0,0,0,0,0,0,0,0,0,0]
[]
[null,"Waste output (annual amount generated"]
[null,"Total","£000's",{"$f":"'Data Input - Option 4'!H79","v":0},{"$f":"'Data Input - Option 4'!I79","v":0},{"$f":"'Data Input - Option 4'!J79","v":0},{"$f":"'Data Input - Option 4'!K79","v":0},{"$f":"'Data Input - Option 4'!L79","v":0},{"$f":"'Data Input - Option 4'!M79","v":0},{"$f":"'Data Input - Option 4'!N79","v":0},{"$f":"'Data Input - Option 4'!O79","v":0},{"$f":"'Data Input - Option 4'!P79","v":0},{"$f":"'Data Input - Option 4'!Q79","v":0},{"$f":"'Data Input - Option 4'!R79","v":0},{"$f":"'Data Input - Option 4'!S79","v":0},{"$f":"'Data Input - Option 4'!T79","v":0},{"$f":"'Data Input - Option 4'!U79","v":0},{"$f":"'Data Input - Option 4'!V79","v":0},{"$f":"'Data Input - Option 4'!W79","v":0},{"$f":"'Data Input - Option 4'!X79","v":0},{"$f":"'Data Input - Option 4'!Y79","v":0},{"$f":"'Data Input - Option 4'!Z79","v":0},{"$f":"'Data Input - Option 4'!AA79","v":0},{"$f":"'Data Input - Option 4'!AB79","v":0},{"$f":"'Data Input - Option 4'!AC79","v":0},{"$f":"'Data Input - Option 4'!AD79","v":0},{"$f":"'Data Input - Option 4'!AE79","v":0},{"$f":"'Data Input - Option 4'!AF79","v":0},{"$f":"'Data Input - Option 4'!AG79","v":0},{"$f":"'Data Input - Option 4'!AH79","v":0},{"$f":"'Data Input - Option 4'!AI79","v":0},{"$f":"'Data Input - Option 4'!AJ79","v":0},{"$f":"'Data Input - Option 4'!AK79","v":0},{"$f":"'Data Input - Option 4'!AL79","v":0},{"$f":"'Data Input - Option 4'!AM79","v":0},{"$f":"'Data Input - Option 4'!AN79","v":0},{"$f":"'Data Input - Option 4'!AO79","v":0},{"$f":"'Data Input - Option 4'!AP79","v":0},{"$f":"'Data Input - Option 4'!AQ79","v":0},{"$f":"'Data Input - Option 4'!AR79","v":0},{"$f":"'Data Input - Option 4'!AS79","v":0},{"$f":"'Data Input - Option 4'!AT79","v":0},{"$f":"'Data Input - Option 4'!AU79","v":0},{"$f":"'Data Input - Option 4'!AV79","v":0},{"$f":"'Data Input - Option 4'!AW79","v":0},{"$f":"'Data Input - Option 4'!AX79","v":0},{"$f":"'Data Input - Option 4'!AY79","v":0},{"$f":"'Data Input - Option 4'!AZ79","v":0},{"$f":"'Data Input - Option 4'!BA79","v":0},{"$f":"'Data Input - Option 4'!BB79","v":0},{"$f":"'Data Input - Option 4'!BC79","v":0},{"$f":"'Data Input - Option 4'!BD79","v":0},{"$f":"'Data Input - Option 4'!BE79","v":0},{"$f":"'Data Input - Option 4'!BF79","v":0},{"$f":"'Data Input - Option 4'!BG79","v":0},{"$f":"'Data Input - Option 4'!BH79","v":0},{"$f":"'Data Input - Option 4'!BI79","v":0},{"$f":"'Data Input - Option 4'!BJ79","v":0},{"$f":"'Data Input - Option 4'!BK79","v":0},{"$f":"'Data Input - Option 4'!BL79","v":0},{"$f":"'Data Input - Option 4'!BM79","v":0},{"$f":"'Data Input - Option 4'!BN79","v":0},{"$f":"'Data Input - Option 4'!BO79","v":0},{"$f":"'Data Input - Option 4'!BP79","v":0},{"$f":"'Data Input - Option 4'!BQ79","v":0},{"$f":"'Data Input - Option 4'!BR79","v":0},{"$f":"'Data Input - Option 4'!BS79","v":0},{"$f":"'Data Input - Option 4'!BT79","v":0},{"$f":"'Data Input - Option 4'!BU79","v":0},{"$f":"'Data Input - Option 4'!BV79","v":0},{"$f":"'Data Input - Option 4'!BW79","v":0},{"$f":"'Data Input - Option 4'!BX79","v":0},{"$f":"'Data Input - Option 4'!BY79","v":0},{"$f":"'Data Input - Option 4'!BZ79","v":0},{"$f":"'Data Input - Option 4'!CA79","v":0},{"$f":"'Data Input - Option 4'!CB79","v":0},{"$f":"'Data Input - Option 4'!CC79","v":0},{"$f":"'Data Input - Option 4'!CD79","v":0},{"$f":"'Data Input - Option 4'!CE79","v":0},{"$f":"'Data Input - Option 4'!CF79","v":0},{"$f":"'Data Input - Option 4'!CG79","v":0},{"$f":"'Data Input - Option 4'!CH79","v":0},{"$f":"'Data Input - Option 4'!CI79","v":0},{"$f":"'Data Input - Option 4'!CJ79","v":0},{"$f":"'Data Input - Option 4'!CK79","v":0},{"$f":"'Data Input - Option 4'!CL79","v":0},{"$f":"'Data Input - Option 4'!CM79","v":0},{"$f":"'Data Input - Option 4'!CN79","v":0},{"$f":"'Data Input - Option 4'!CO79","v":0},{"$f":"'Data Input - Option 4'!CP79","v":0},{"$f":"'Data Input - Option 4'!CQ79","v":0},{"$f":"'Data Input - Option 4'!CR79","v":0},{"$f":"'Data Input - Option 4'!CS79","v":0},{"$f":"'Data Input - Option 4'!CT79","v":0},{"$f":"'Data Input - Option 4'!CU79","v":0},{"$f":"'Data Input - Option 4'!CV79","v":0},{"$f":"'Data Input - Option 4'!CW79","v":0},{"$f":"'Data Input - Option 4'!CX79","v":0},{"$f":"'Data Input - Option 4'!CY79","v":0},{"$f":"'Data Input - Option 4'!CZ79","v":0},{"$f":"'Data Input - Option 4'!DA79","v":0},{"$f":"'Data Input - Option 4'!DB79","v":0},{"$f":"'Data Input - Option 4'!DC79","v":0}]
[null,"Discounted total waste cost","£000's",{"$f":"D43*D$7","v":0},{"$f":"E43*E$7","v":0},0,0,0,0,0,0,0,0,0,0,0,0,0,0,0,0,0,0,0,0,0,0,0,0,0,0,0,0,0,0,0,0,0,0,0,0,0,0,0,0,0,0,0,0,0,0,0,0,0,0,0,0,0,0,0,0,0,0,0,0,0,0,0,{"$f":"BQ43*BQ$7","v":0},0,0,0,0,0,0,0,0,0,0,0,0,0,0,0,0,0,0,0,0,0,0,0,0,0,0,0,0,0,0,0,0,0,0]
[]
[null,"Energy Consumption"]
[null,"Total","£000's",{"$f":"'Data Input - Option 4'!H100","v":5.0932081704451121E-4},{"$f":"'Data Input - Option 4'!I100","v":0},{"$f":"'Data Input - Option 4'!J100","v":0},{"$f":"'Data Input - Option 4'!K100","v":0},{"$f":"'Data Input - Option 4'!L100","v":0},{"$f":"'Data Input - Option 4'!M100","v":0},{"$f":"'Data Input - Option 4'!N100","v":0},{"$f":"'Data Input - Option 4'!O100","v":0},{"$f":"'Data Input - Option 4'!P100","v":0},{"$f":"'Data Input - Option 4'!Q100","v":0},{"$f":"'Data Input - Option 4'!R100","v":0},{"$f":"'Data Input - Option 4'!S100","v":0},{"$f":"'Data Input - Option 4'!T100","v":0},{"$f":"'Data Input - Option 4'!U100","v":0},{"$f":"'Data Input - Option 4'!V100","v":0},{"$f":"'Data Input - Option 4'!W100","v":0},{"$f":"'Data Input - Option 4'!X100","v":0},{"$f":"'Data Input - Option 4'!Y100","v":0},{"$f":"'Data Input - Option 4'!Z100","v":0},{"$f":"'Data Input - Option 4'!AA100","v":0},{"$f":"'Data Input - Option 4'!AB100","v":0},{"$f":"'Data Input - Option 4'!AC100","v":0},{"$f":"'Data Input - Option 4'!AD100","v":0},{"$f":"'Data Input - Option 4'!AE100","v":0},{"$f":"'Data Input - Option 4'!AF100","v":0},{"$f":"'Data Input - Option 4'!AG100","v":0},{"$f":"'Data Input - Option 4'!AH100","v":0},{"$f":"'Data Input - Option 4'!AI100","v":0},{"$f":"'Data Input - Option 4'!AJ100","v":0},{"$f":"'Data Input - Option 4'!AK100","v":0},{"$f":"'Data Input - Option 4'!AL100","v":0},{"$f":"'Data Input - Option 4'!AM100","v":0},{"$f":"'Data Input - Option 4'!AN100","v":0},{"$f":"'Data Input - Option 4'!AO100","v":0},{"$f":"'Data Input - Option 4'!AP100","v":0},{"$f":"'Data Input - Option 4'!AQ100","v":0},{"$f":"'Data Input - Option 4'!AR100","v":0},{"$f":"'Data Input - Option 4'!AS100","v":0},{"$f":"'Data Input - Option 4'!AT100","v":0},{"$f":"'Data Input - Option 4'!AU100","v":0},{"$f":"'Data Input - Option 4'!AV100","v":0},{"$f":"'Data Input - Option 4'!AW100","v":0},{"$f":"'Data Input - Option 4'!AX100","v":0},{"$f":"'Data Input - Option 4'!AY100","v":0},{"$f":"'Data Input - Option 4'!AZ100","v":0},{"$f":"'Data Input - Option 4'!BA100","v":0},{"$f":"'Data Input - Option 4'!BB100","v":0},{"$f":"'Data Input - Option 4'!BC100","v":0},{"$f":"'Data Input - Option 4'!BD100","v":0},{"$f":"'Data Input - Option 4'!BE100","v":0},{"$f":"'Data Input - Option 4'!BF100","v":0},{"$f":"'Data Input - Option 4'!BG100","v":0},{"$f":"'Data Input - Option 4'!BH100","v":0},{"$f":"'Data Input - Option 4'!BI100","v":0},{"$f":"'Data Input - Option 4'!BJ100","v":0},{"$f":"'Data Input - Option 4'!BK100","v":0},{"$f":"'Data Input - Option 4'!BL100","v":0},{"$f":"'Data Input - Option 4'!BM100","v":0},{"$f":"'Data Input - Option 4'!BN100","v":0},{"$f":"'Data Input - Option 4'!BO100","v":0},{"$f":"'Data Input - Option 4'!BP100","v":0},{"$f":"'Data Input - Option 4'!BQ100","v":0},{"$f":"'Data Input - Option 4'!BR100","v":0},{"$f":"'Data Input - Option 4'!BS100","v":0},{"$f":"'Data Input - Option 4'!BT100","v":0},{"$f":"'Data Input - Option 4'!BU100","v":0},{"$f":"'Data Input - Option 4'!BV100","v":0},{"$f":"'Data Input - Option 4'!BW100","v":0},{"$f":"'Data Input - Option 4'!BX100","v":0},{"$f":"'Data Input - Option 4'!BY100","v":0},{"$f":"'Data Input - Option 4'!BZ100","v":0},{"$f":"'Data Input - Option 4'!CA100","v":0},{"$f":"'Data Input - Option 4'!CB100","v":0},{"$f":"'Data Input - Option 4'!CC100","v":0},{"$f":"'Data Input - Option 4'!CD100","v":0},{"$f":"'Data Input - Option 4'!CE100","v":0},{"$f":"'Data Input - Option 4'!CF100","v":0},{"$f":"'Data Input - Option 4'!CG100","v":0},{"$f":"'Data Input - Option 4'!CH100","v":0},{"$f":"'Data Input - Option 4'!CI100","v":0},{"$f":"'Data Input - Option 4'!CJ100","v":0},{"$f":"'Data Input - Option 4'!CK100","v":0},{"$f":"'Data Input - Option 4'!CL100","v":0},{"$f":"'Data Input - Option 4'!CM100","v":0},{"$f":"'Data Input - Option 4'!CN100","v":0},{"$f":"'Data Input - Option 4'!CO100","v":0},{"$f":"'Data Input - Option 4'!CP100","v":0},{"$f":"'Data Input - Option 4'!CQ100","v":0},{"$f":"'Data Input - Option 4'!CR100","v":0},{"$f":"'Data Input - Option 4'!CS100","v":0},{"$f":"'Data Input - Option 4'!CT100","v":0},{"$f":"'Data Input - Option 4'!CU100","v":0},{"$f":"'Data Input - Option 4'!CV100","v":0},{"$f":"'Data Input - Option 4'!CW100","v":0},{"$f":"'Data Input - Option 4'!CX100","v":0},{"$f":"'Data Input - Option 4'!CY100","v":0},{"$f":"'Data Input - Option 4'!CZ100","v":0},{"$f":"'Data Input - Option 4'!DA100","v":0},{"$f":"'Data Input - Option 4'!DB100","v":0},{"$f":"'Data Input - Option 4'!DC100","v":0}]
[null,"Discounted energy consumption","£000's",{"$f":"D47*D$7","v":5.0932081704451121E-4},{"$f":"E47*E$7","v":0},0,0,0,0,0,0,0,0,0,0,0,0,0,0,0,0,0,0,0,0,0,0,0,0,0,0,0,0,0,0,0,0,0,0,0,0,0,0,0,0,0,0,0,0,0,0,0,0,0,0,0,0,0,0,0,0,0,0,0,0,0,0,0,{"$f":"BQ47*BQ$7","v":0},0,0,0,0,0,0,0,0,0,0,0,0,0,0,0,0,0,0,0,0,0,0,0,0,0,0,0,0,0,0,0,0,0,0]
[null,"Excluding those for which DECC prices used","£000's",{"$f":"('Data Input - Option 4'!H100-SUM('Data Input - Option 4'!H92:H97))*Calc_Option4!D$7","v":0},{"$f":"('Data Input - Option 4'!I100-SUM('Data Input - Option 4'!I92:I97))*Calc_Option4!E$7","v":0},{"$f":"('Data Input - Option 4'!J100-SUM('Data Input - Option 4'!J92:J97))*Calc_Option4!F$7","v":0},{"$f":"('Data Input - Option 4'!K100-SUM('Data Input - Option 4'!K92:K97))*Calc_Option4!G$7","v":0},{"$f":"('Data Input - Option 4'!L100-SUM('Data Input - Option 4'!L92:L97))*Calc_Option4!H$7","v":0},{"$f":"('Data Input - Option 4'!M100-SUM('Data Input - Option 4'!M92:M97))*Calc_Option4!I$7","v":0},{"$f":"('Data Input - Option 4'!N100-SUM('Data Input - Option 4'!N92:N97))*Calc_Option4!J$7","v":0},{"$f":"('Data Input - Option 4'!O100-SUM('Data Input - Option 4'!O92:O97))*Calc_Option4!K$7","v":0},{"$f":"('Data Input - Option 4'!P100-SUM('Data Input - Option 4'!P92:P97))*Calc_Option4!L$7","v":0},{"$f":"('Data Input - Option 4'!Q100-SUM('Data Input - Option 4'!Q92:Q97))*Calc_Option4!M$7","v":0},{"$f":"('Data Input - Option 4'!R100-SUM('Data Input - Option 4'!R92:R97))*Calc_Option4!N$7","v":0},{"$f":"('Data Input - Option 4'!S100-SUM('Data Input - Option 4'!S92:S97))*Calc_Option4!O$7","v":0},{"$f":"('Data Input - Option 4'!T100-SUM('Data Input - Option 4'!T92:T97))*Calc_Option4!P$7","v":0},{"$f":"('Data Input - Option 4'!U100-SUM('Data Input - Option 4'!U92:U97))*Calc_Option4!Q$7","v":0},{"$f":"('Data Input - Option 4'!V100-SUM('Data Input - Option 4'!V92:V97))*Calc_Option4!R$7","v":0},{"$f":"('Data Input - Option 4'!W100-SUM('Data Input - Option 4'!W92:W97))*Calc_Option4!S$7","v":0},{"$f":"('Data Input - Option 4'!X100-SUM('Data Input - Option 4'!X92:X97))*Calc_Option4!T$7","v":0},{"$f":"('Data Input - Option 4'!Y100-SUM('Data Input - Option 4'!Y92:Y97))*Calc_Option4!U$7","v":0},{"$f":"('Data Input - Option 4'!Z100-SUM('Data Input - Option 4'!Z92:Z97))*Calc_Option4!V$7","v":0},{"$f":"('Data Input - Option 4'!AA100-SUM('Data Input - Option 4'!AA92:AA97))*Calc_Option4!W$7","v":0},{"$f":"('Data Input - Option 4'!AB100-SUM('Data Input - Option 4'!AB92:AB97))*Calc_Option4!X$7","v":0},{"$f":"('Data Input - Option 4'!AC100-SUM('Data Input - Option 4'!AC92:AC97))*Calc_Option4!Y$7","v":0},{"$f":"('Data Input - Option 4'!AD100-SUM('Data Input - Option 4'!AD92:AD97))*Calc_Option4!Z$7","v":0},{"$f":"('Data Input - Option 4'!AE100-SUM('Data Input - Option 4'!AE92:AE97))*Calc_Option4!AA$7","v":0},{"$f":"('Data Input - Option 4'!AF100-SUM('Data Input - Option 4'!AF92:AF97))*Calc_Option4!AB$7","v":0},{"$f":"('Data Input - Option 4'!AG100-SUM('Data Input - Option 4'!AG92:AG97))*Calc_Option4!AC$7","v":0},{"$f":"('Data Input - Option 4'!AH100-SUM('Data Input - Option 4'!AH92:AH97))*Calc_Option4!AD$7","v":0},{"$f":"('Data Input - Option 4'!AI100-SUM('Data Input - Option 4'!AI92:AI97))*Calc_Option4!AE$7","v":0},{"$f":"('Data Input - Option 4'!AJ100-SUM('Data Input - Option 4'!AJ92:AJ97))*Calc_Option4!AF$7","v":0},{"$f":"('Data Input - Option 4'!AK100-SUM('Data Input - Option 4'!AK92:AK97))*Calc_Option4!AG$7","v":0},{"$f":"('Data Input - Option 4'!AL100-SUM('Data Input - Option 4'!AL92:AL97))*Calc_Option4!AH$7","v":0},{"$f":"('Data Input - Option 4'!AM100-SUM('Data Input - Option 4'!AM92:AM97))*Calc_Option4!AI$7","v":0},{"$f":"('Data Input - Option 4'!AN100-SUM('Data Input - Option 4'!AN92:AN97))*Calc_Option4!AJ$7","v":0},{"$f":"('Data Input - Option 4'!AO100-SUM('Data Input - Option 4'!AO92:AO97))*Calc_Option4!AK$7","v":0},{"$f":"('Data Input - Option 4'!AP100-SUM('Data Input - Option 4'!AP92:AP97))*Calc_Option4!AL$7","v":0},{"$f":"('Data Input - Option 4'!AQ100-SUM('Data Input - Option 4'!AQ92:AQ97))*Calc_Option4!AM$7","v":0},{"$f":"('Data Input - Option 4'!AR100-SUM('Data Input - Option 4'!AR92:AR97))*Calc_Option4!AN$7","v":0},{"$f":"('Data Input - Option 4'!AS100-SUM('Data Input - Option 4'!AS92:AS97))*Calc_Option4!AO$7","v":0},{"$f":"('Data Input - Option 4'!AT100-SUM('Data Input - Option 4'!AT92:AT97))*Calc_Option4!AP$7","v":0},{"$f":"('Data Input - Option 4'!AU100-SUM('Data Input - Option 4'!AU92:AU97))*Calc_Option4!AQ$7","v":0},{"$f":"('Data Input - Option 4'!AV100-SUM('Data Input - Option 4'!AV92:AV97))*Calc_Option4!AR$7","v":0},{"$f":"('Data Input - Option 4'!AW100-SUM('Data Input - Option 4'!AW92:AW97))*Calc_Option4!AS$7","v":0},{"$f":"('Data Input - Option 4'!AX100-SUM('Data Input - Option 4'!AX92:AX97))*Calc_Option4!AT$7","v":0},{"$f":"('Data Input - Option 4'!AY100-SUM('Data Input - Option 4'!AY92:AY97))*Calc_Option4!AU$7","v":0},{"$f":"('Data Input - Option 4'!AZ100-SUM('Data Input - Option 4'!AZ92:AZ97))*Calc_Option4!AV$7","v":0},{"$f":"('Data Input - Option 4'!BA100-SUM('Data Input - Option 4'!BA92:BA97))*Calc_Option4!AW$7","v":0},{"$f":"('Data Input - Option 4'!BB100-SUM('Data Input - Option 4'!BB92:BB97))*Calc_Option4!AX$7","v":0},{"$f":"('Data Input - Option 4'!BC100-SUM('Data Input - Option 4'!BC92:BC97))*Calc_Option4!AY$7","v":0},{"$f":"('Data Input - Option 4'!BD100-SUM('Data Input - Option 4'!BD92:BD97))*Calc_Option4!AZ$7","v":0},{"$f":"('Data Input - Option 4'!BE100-SUM('Data Input - Option 4'!BE92:BE97))*Calc_Option4!BA$7","v":0},{"$f":"('Data Input - Option 4'!BF100-SUM('Data Input - Option 4'!BF92:BF97))*Calc_Option4!BB$7","v":0},{"$f":"('Data Input - Option 4'!BG100-SUM('Data Input - Option 4'!BG92:BG97))*Calc_Option4!BC$7","v":0},{"$f":"('Data Input - Option 4'!BH100-SUM('Data Input - Option 4'!BH92:BH97))*Calc_Option4!BD$7","v":0},{"$f":"('Data Input - Option 4'!BI100-SUM('Data Input - Option 4'!BI92:BI97))*Calc_Option4!BE$7","v":0},{"$f":"('Data Input - Option 4'!BJ100-SUM('Data Input - Option 4'!BJ92:BJ97))*Calc_Option4!BF$7","v":0},{"$f":"('Data Input - Option 4'!BK100-SUM('Data Input - Option 4'!BK92:BK97))*Calc_Option4!BG$7","v":0},{"$f":"('Data Input - Option 4'!BL100-SUM('Data Input - Option 4'!BL92:BL97))*Calc_Option4!BH$7","v":0},{"$f":"('Data Input - Option 4'!BM100-SUM('Data Input - Option 4'!BM92:BM97))*Calc_Option4!BI$7","v":0},{"$f":"('Data Input - Option 4'!BN100-SUM('Data Input - Option 4'!BN92:BN97))*Calc_Option4!BJ$7","v":0},{"$f":"('Data Input - Option 4'!BO100-SUM('Data Input - Option 4'!BO92:BO97))*Calc_Option4!BK$7","v":0},{"$f":"('Data Input - Option 4'!BP100-SUM('Data Input - Option 4'!BP92:BP97))*Calc_Option4!BL$7","v":0},{"$f":"('Data Input - Option 4'!BQ100-SUM('Data Input - Option 4'!BQ92:BQ97))*Calc_Option4!BM$7","v":0},{"$f":"('Data Input - Option 4'!BR100-SUM('Data Input - Option 4'!BR92:BR97))*Calc_Option4!BN$7","v":0},{"$f":"('Data Input - Option 4'!BS100-SUM('Data Input - Option 4'!BS92:BS97))*Calc_Option4!BO$7","v":0},{"$f":"('Data Input - Option 4'!BT100-SUM('Data Input - Option 4'!BT92:BT97))*Calc_Option4!BP$7","v":0},{"$f":"('Data Input - Option 4'!BU100-SUM('Data Input - Option 4'!BU92:BU97))*Calc_Option4!BQ$7","v":0},{"$f":"('Data Input - Option 4'!BV100-SUM('Data Input - Option 4'!BV92:BV97))*Calc_Option4!BR$7","v":0},{"$f":"('Data Input - Option 4'!BW100-SUM('Data Input - Option 4'!BW92:BW97))*Calc_Option4!BS$7","v":0},{"$f":"('Data Input - Option 4'!BX100-SUM('Data Input - Option 4'!BX92:BX97))*Calc_Option4!BT$7","v":0},{"$f":"('Data Input - Option 4'!BY100-SUM('Data Input - Option 4'!BY92:BY97))*Calc_Option4!BU$7","v":0},{"$f":"('Data Input - Option 4'!BZ100-SUM('Data Input - Option 4'!BZ92:BZ97))*Calc_Option4!BV$7","v":0},{"$f":"('Data Input - Option 4'!CA100-SUM('Data Input - Option 4'!CA92:CA97))*Calc_Option4!BW$7","v":0},{"$f":"('Data Input - Option 4'!CB100-SUM('Data Input - Option 4'!CB92:CB97))*Calc_Option4!BX$7","v":0},{"$f":"('Data Input - Option 4'!CC100-SUM('Data Input - Option 4'!CC92:CC97))*Calc_Option4!BY$7","v":0},{"$f":"('Data Input - Option 4'!CD100-SUM('Data Input - Option 4'!CD92:CD97))*Calc_Option4!BZ$7","v":0},{"$f":"('Data Input - Option 4'!CE100-SUM('Data Input - Option 4'!CE92:CE97))*Calc_Option4!CA$7","v":0},{"$f":"('Data Input - Option 4'!CF100-SUM('Data Input - Option 4'!CF92:CF97))*Calc_Option4!CB$7","v":0},{"$f":"('Data Input - Option 4'!CG100-SUM('Data Input - Option 4'!CG92:CG97))*Calc_Option4!CC$7","v":0},{"$f":"('Data Input - Option 4'!CH100-SUM('Data Input - Option 4'!CH92:CH97))*Calc_Option4!CD$7","v":0},{"$f":"('Data Input - Option 4'!CI100-SUM('Data Input - Option 4'!CI92:CI97))*Calc_Option4!CE$7","v":0},{"$f":"('Data Input - Option 4'!CJ100-SUM('Data Input - Option 4'!CJ92:CJ97))*Calc_Option4!CF$7","v":0},{"$f":"('Data Input - Option 4'!CK100-SUM('Data Input - Option 4'!CK92:CK97))*Calc_Option4!CG$7","v":0},{"$f":"('Data Input - Option 4'!CL100-SUM('Data Input - Option 4'!CL92:CL97))*Calc_Option4!CH$7","v":0},{"$f":"('Data Input - Option 4'!CM100-SUM('Data Input - Option 4'!CM92:CM97))*Calc_Option4!CI$7","v":0},{"$f":"('Data Input - Option 4'!CN100-SUM('Data Input - Option 4'!CN92:CN97))*Calc_Option4!CJ$7","v":0},{"$f":"('Data Input - Option 4'!CO100-SUM('Data Input - Option 4'!CO92:CO97))*Calc_Option4!CK$7","v":0},{"$f":"('Data Input - Option 4'!CP100-SUM('Data Input - Option 4'!CP92:CP97))*Calc_Option4!CL$7","v":0},{"$f":"('Data Input - Option 4'!CQ100-SUM('Data Input - Option 4'!CQ92:CQ97))*Calc_Option4!CM$7","v":0},{"$f":"('Data Input - Option 4'!CR100-SUM('Data Input - Option 4'!CR92:CR97))*Calc_Option4!CN$7","v":0},{"$f":"('Data Input - Option 4'!CS100-SUM('Data Input - Option 4'!CS92:CS97))*Calc_Option4!CO$7","v":0},{"$f":"('Data Input - Option 4'!CT100-SUM('Data Input - Option 4'!CT92:CT97))*Calc_Option4!CP$7","v":0},{"$f":"('Data Input - Option 4'!CU100-SUM('Data Input - Option 4'!CU92:CU97))*Calc_Option4!CQ$7","v":0},{"$f":"('Data Input - Option 4'!CV100-SUM('Data Input - Option 4'!CV92:CV97))*Calc_Option4!CR$7","v":0},{"$f":"('Data Input - Option 4'!CW100-SUM('Data Input - Option 4'!CW92:CW97))*Calc_Option4!CS$7","v":0},{"$f":"('Data Input - Option 4'!CX100-SUM('Data Input - Option 4'!CX92:CX97))*Calc_Option4!CT$7","v":0},{"$f":"('Data Input - Option 4'!CY100-SUM('Data Input - Option 4'!CY92:CY97))*Calc_Option4!CU$7","v":0},{"$f":"('Data Input - Option 4'!CZ100-SUM('Data Input - Option 4'!CZ92:CZ97))*Calc_Option4!CV$7","v":0},{"$f":"('Data Input - Option 4'!DA100-SUM('Data Input - Option 4'!DA92:DA97))*Calc_Option4!CW$7","v":0},{"$f":"('Data Input - Option 4'!DB100-SUM('Data Input - Option 4'!DB92:DB97))*Calc_Option4!CX$7","v":0},{"$f":"('Data Input - Option 4'!DC100-SUM('Data Input - Option 4'!DC92:DC97))*Calc_Option4!CY$7","v":0}]
[]
[null,"Environmental impacts"]
[null,"Air pollutant emissions"]
[null,{"$f":"'Data Input - Option 4'!D105","v":0},"Tonnes pa",{"$f":"'Data Input - Option 4'!H105","v":0},{"$f":"'Data Input - Option 4'!I105","v":0},{"$f":"'Data Input - Option 4'!J105","v":0},{"$f":"'Data Input - Option 4'!K105","v":0},{"$f":"'Data Input - Option 4'!L105","v":0},{"$f":"'Data Input - Option 4'!M105","v":0},{"$f":"'Data Input - Option 4'!N105","v":0},{"$f":"'Data Input - Option 4'!O105","v":0},{"$f":"'Data Input - Option 4'!P105","v":0},{"$f":"'Data Input - Option 4'!Q105","v":0},{"$f":"'Data Input - Option 4'!R105","v":0},{"$f":"'Data Input - Option 4'!S105","v":0},{"$f":"'Data Input - Option 4'!T105","v":0},{"$f":"'Data Input - Option 4'!U105","v":0},{"$f":"'Data Input - Option 4'!V105","v":0},{"$f":"'Data Input - Option 4'!W105","v":0},{"$f":"'Data Input - Option 4'!X105","v":0},{"$f":"'Data Input - Option 4'!Y105","v":0},{"$f":"'Data Input - Option 4'!Z105","v":0},{"$f":"'Data Input - Option 4'!AA105","v":0},{"$f":"'Data Input - Option 4'!AB105","v":0},{"$f":"'Data Input - Option 4'!AC105","v":0},{"$f":"'Data Input - Option 4'!AD105","v":0},{"$f":"'Data Input - Option 4'!AE105","v":0},{"$f":"'Data Input - Option 4'!AF105","v":0},{"$f":"'Data Input - Option 4'!AG105","v":0},{"$f":"'Data Input - Option 4'!AH105","v":0},{"$f":"'Data Input - Option 4'!AI105","v":0},{"$f":"'Data Input - Option 4'!AJ105","v":0},{"$f":"'Data Input - Option 4'!AK105","v":0},{"$f":"'Data Input - Option 4'!AL105","v":0},{"$f":"'Data Input - Option 4'!AM105","v":0},{"$f":"'Data Input - Option 4'!AN105","v":0},{"$f":"'Data Input - Option 4'!AO105","v":0},{"$f":"'Data Input - Option 4'!AP105","v":0},{"$f":"'Data Input - Option 4'!AQ105","v":0},{"$f":"'Data Input - Option 4'!AR105","v":0},{"$f":"'Data Input - Option 4'!AS105","v":0},{"$f":"'Data Input - Option 4'!AT105","v":0},{"$f":"'Data Input - Option 4'!AU105","v":0},{"$f":"'Data Input - Option 4'!AV105","v":0},{"$f":"'Data Input - Option 4'!AW105","v":0},{"$f":"'Data Input - Option 4'!AX105","v":0},{"$f":"'Data Input - Option 4'!AY105","v":0},{"$f":"'Data Input - Option 4'!AZ105","v":0},{"$f":"'Data Input - Option 4'!BA105","v":0},{"$f":"'Data Input - Option 4'!BB105","v":0},{"$f":"'Data Input - Option 4'!BC105","v":0},{"$f":"'Data Input - Option 4'!BD105","v":0},{"$f":"'Data Input - Option 4'!BE105","v":0},{"$f":"'Data Input - Option 4'!BF105","v":0},{"$f":"'Data Input - Option 4'!BG105","v":0},{"$f":"'Data Input - Option 4'!BH105","v":0},{"$f":"'Data Input - Option 4'!BI105","v":0},{"$f":"'Data Input - Option 4'!BJ105","v":0},{"$f":"'Data Input - Option 4'!BK105","v":0},{"$f":"'Data Input - Option 4'!BL105","v":0},{"$f":"'Data Input - Option 4'!BM105","v":0},{"$f":"'Data Input - Option 4'!BN105","v":0},{"$f":"'Data Input - Option 4'!BO105","v":0},{"$f":"'Data Input - Option 4'!BP105","v":0},{"$f":"'Data Input - Option 4'!BQ105","v":0},{"$f":"'Data Input - Option 4'!BR105","v":0},{"$f":"'Data Input - Option 4'!BS105","v":0},{"$f":"'Data Input - Option 4'!BT105","v":0},{"$f":"'Data Input - Option 4'!BU105","v":0},{"$f":"'Data Input - Option 4'!BV105","v":0},{"$f":"'Data Input - Option 4'!BW105","v":0},{"$f":"'Data Input - Option 4'!BX105","v":0},{"$f":"'Data Input - Option 4'!BY105","v":0},{"$f":"'Data Input - Option 4'!BZ105","v":0},{"$f":"'Data Input - Option 4'!CA105","v":0},{"$f":"'Data Input - Option 4'!CB105","v":0},{"$f":"'Data Input - Option 4'!CC105","v":0},{"$f":"'Data Input - Option 4'!CD105","v":0},{"$f":"'Data Input - Option 4'!CE105","v":0},{"$f":"'Data Input - Option 4'!CF105","v":0},{"$f":"'Data Input - Option 4'!CG105","v":0},{"$f":"'Data Input - Option 4'!CH105","v":0},{"$f":"'Data Input - Option 4'!CI105","v":0},{"$f":"'Data Input - Option 4'!CJ105","v":0},{"$f":"'Data Input - Option 4'!CK105","v":0},{"$f":"'Data Input - Option 4'!CL105","v":0},{"$f":"'Data Input - Option 4'!CM105","v":0},{"$f":"'Data Input - Option 4'!CN105","v":0},{"$f":"'Data Input - Option 4'!CO105","v":0},{"$f":"'Data Input - Option 4'!CP105","v":0},{"$f":"'Data Input - Option 4'!CQ105","v":0},{"$f":"'Data Input - Option 4'!CR105","v":0},{"$f":"'Data Input - Option 4'!CS105","v":0},{"$f":"'Data Input - Option 4'!CT105","v":0},{"$f":"'Data Input - Option 4'!CU105","v":0},{"$f":"'Data Input - Option 4'!CV105","v":0},{"$f":"'Data Input - Option 4'!CW105","v":0},{"$f":"'Data Input - Option 4'!CX105","v":0},{"$f":"'Data Input - Option 4'!CY105","v":0},{"$f":"'Data Input - Option 4'!CZ105","v":0},{"$f":"'Data Input - Option 4'!DA105","v":0},{"$f":"'Data Input - Option 4'!DB105","v":0},{"$f":"'Data Input - Option 4'!DC105","v":0}]
[null,{"$f":"'Data Input - Option 4'!D106","v":0},"Tonnes pa",{"$f":"'Data Input - Option 4'!H106","v":0},{"$f":"'Data Input - Option 4'!I106","v":0},{"$f":"'Data Input - Option 4'!J106","v":0},{"$f":"'Data Input - Option 4'!K106","v":0},{"$f":"'Data Input - Option 4'!L106","v":0},{"$f":"'Data Input - Option 4'!M106","v":0},{"$f":"'Data Input - Option 4'!N106","v":0},{"$f":"'Data Input - Option 4'!O106","v":0},{"$f":"'Data Input - Option 4'!P106","v":0},{"$f":"'Data Input - Option 4'!Q106","v":0},{"$f":"'Data Input - Option 4'!R106","v":0},{"$f":"'Data Input - Option 4'!S106","v":0},{"$f":"'Data Input - Option 4'!T106","v":0},{"$f":"'Data Input - Option 4'!U106","v":0},{"$f":"'Data Input - Option 4'!V106","v":0},{"$f":"'Data Input - Option 4'!W106","v":0},{"$f":"'Data Input - Option 4'!X106","v":0},{"$f":"'Data Input - Option 4'!Y106","v":0},{"$f":"'Data Input - Option 4'!Z106","v":0},{"$f":"'Data Input - Option 4'!AA106","v":0},{"$f":"'Data Input - Option 4'!AB106","v":0},{"$f":"'Data Input - Option 4'!AC106","v":0},{"$f":"'Data Input - Option 4'!AD106","v":0},{"$f":"'Data Input - Option 4'!AE106","v":0},{"$f":"'Data Input - Option 4'!AF106","v":0},{"$f":"'Data Input - Option 4'!AG106","v":0},{"$f":"'Data Input - Option 4'!AH106","v":0},{"$f":"'Data Input - Option 4'!AI106","v":0},{"$f":"'Data Input - Option 4'!AJ106","v":0},{"$f":"'Data Input - Option 4'!AK106","v":0},{"$f":"'Data Input - Option 4'!AL106","v":0},{"$f":"'Data Input - Option 4'!AM106","v":0},{"$f":"'Data Input - Option 4'!AN106","v":0},{"$f":"'Data Input - Option 4'!AO106","v":0},{"$f":"'Data Input - Option 4'!AP106","v":0},{"$f":"'Data Input - Option 4'!AQ106","v":0},{"$f":"'Data Input - Option 4'!AR106","v":0},{"$f":"'Data Input - Option 4'!AS106","v":0},{"$f":"'Data Input - Option 4'!AT106","v":0},{"$f":"'Data Input - Option 4'!AU106","v":0},{"$f":"'Data Input - Option 4'!AV106","v":0},{"$f":"'Data Input - Option 4'!AW106","v":0},{"$f":"'Data Input - Option 4'!AX106","v":0},{"$f":"'Data Input - Option 4'!AY106","v":0},{"$f":"'Data Input - Option 4'!AZ106","v":0},{"$f":"'Data Input - Option 4'!BA106","v":0},{"$f":"'Data Input - Option 4'!BB106","v":0},{"$f":"'Data Input - Option 4'!BC106","v":0},{"$f":"'Data Input - Option 4'!BD106","v":0},{"$f":"'Data Input - Option 4'!BE106","v":0},{"$f":"'Data Input - Option 4'!BF106","v":0},{"$f":"'Data Input - Option 4'!BG106","v":0},{"$f":"'Data Input - Option 4'!BH106","v":0},{"$f":"'Data Input - Option 4'!BI106","v":0},{"$f":"'Data Input - Option 4'!BJ106","v":0},{"$f":"'Data Input - Option 4'!BK106","v":0},{"$f":"'Data Input - Option 4'!BL106","v":0},{"$f":"'Data Input - Option 4'!BM106","v":0},{"$f":"'Data Input - Option 4'!BN106","v":0},{"$f":"'Data Input - Option 4'!BO106","v":0},{"$f":"'Data Input - Option 4'!BP106","v":0},{"$f":"'Data Input - Option 4'!BQ106","v":0},{"$f":"'Data Input - Option 4'!BR106","v":0},{"$f":"'Data Input - Option 4'!BS106","v":0},{"$f":"'Data Input - Option 4'!BT106","v":0},{"$f":"'Data Input - Option 4'!BU106","v":0},{"$f":"'Data Input - Option 4'!BV106","v":0},{"$f":"'Data Input - Option 4'!BW106","v":0},{"$f":"'Data Input - Option 4'!BX106","v":0},{"$f":"'Data Input - Option 4'!BY106","v":0},{"$f":"'Data Input - Option 4'!BZ106","v":0},{"$f":"'Data Input - Option 4'!CA106","v":0},{"$f":"'Data Input - Option 4'!CB106","v":0},{"$f":"'Data Input - Option 4'!CC106","v":0},{"$f":"'Data Input - Option 4'!CD106","v":0},{"$f":"'Data Input - Option 4'!CE106","v":0},{"$f":"'Data Input - Option 4'!CF106","v":0},{"$f":"'Data Input - Option 4'!CG106","v":0},{"$f":"'Data Input - Option 4'!CH106","v":0},{"$f":"'Data Input - Option 4'!CI106","v":0},{"$f":"'Data Input - Option 4'!CJ106","v":0},{"$f":"'Data Input - Option 4'!CK106","v":0},{"$f":"'Data Input - Option 4'!CL106","v":0},{"$f":"'Data Input - Option 4'!CM106","v":0},{"$f":"'Data Input - Option 4'!CN106","v":0},{"$f":"'Data Input - Option 4'!CO106","v":0},{"$f":"'Data Input - Option 4'!CP106","v":0},{"$f":"'Data Input - Option 4'!CQ106","v":0},{"$f":"'Data Input - Option 4'!CR106","v":0},{"$f":"'Data Input - Option 4'!CS106","v":0},{"$f":"'Data Input - Option 4'!CT106","v":0},{"$f":"'Data Input - Option 4'!CU106","v":0},{"$f":"'Data Input - Option 4'!CV106","v":0},{"$f":"'Data Input - Option 4'!CW106","v":0},{"$f":"'Data Input - Option 4'!CX106","v":0},{"$f":"'Data Input - Option 4'!CY106","v":0},{"$f":"'Data Input - Option 4'!CZ106","v":0},{"$f":"'Data Input - Option 4'!DA106","v":0},{"$f":"'Data Input - Option 4'!DB106","v":0},{"$f":"'Data Input - Option 4'!DC106","v":0}]
[null,{"$f":"'Data Input - Option 4'!D107","v":0},"Tonnes pa",{"$f":"'Data Input - Option 4'!H107","v":0},{"$f":"'Data Input - Option 4'!I107","v":0},{"$f":"'Data Input - Option 4'!J107","v":0},{"$f":"'Data Input - Option 4'!K107","v":0},{"$f":"'Data Input - Option 4'!L107","v":0},{"$f":"'Data Input - Option 4'!M107","v":0},{"$f":"'Data Input - Option 4'!N107","v":0},{"$f":"'Data Input - Option 4'!O107","v":0},{"$f":"'Data Input - Option 4'!P107","v":0},{"$f":"'Data Input - Option 4'!Q107","v":0},{"$f":"'Data Input - Option 4'!R107","v":0},{"$f":"'Data Input - Option 4'!S107","v":0},{"$f":"'Data Input - Option 4'!T107","v":0},{"$f":"'Data Input - Option 4'!U107","v":0},{"$f":"'Data Input - Option 4'!V107","v":0},{"$f":"'Data Input - Option 4'!W107","v":0},{"$f":"'Data Input - Option 4'!X107","v":0},{"$f":"'Data Input - Option 4'!Y107","v":0},{"$f":"'Data Input - Option 4'!Z107","v":0},{"$f":"'Data Input - Option 4'!AA107","v":0},{"$f":"'Data Input - Option 4'!AB107","v":0},{"$f":"'Data Input - Option 4'!AC107","v":0},{"$f":"'Data Input - Option 4'!AD107","v":0},{"$f":"'Data Input - Option 4'!AE107","v":0},{"$f":"'Data Input - Option 4'!AF107","v":0},{"$f":"'Data Input - Option 4'!AG107","v":0},{"$f":"'Data Input - Option 4'!AH107","v":0},{"$f":"'Data Input - Option 4'!AI107","v":0},{"$f":"'Data Input - Option 4'!AJ107","v":0},{"$f":"'Data Input - Option 4'!AK107","v":0},{"$f":"'Data Input - Option 4'!AL107","v":0},{"$f":"'Data Input - Option 4'!AM107","v":0},{"$f":"'Data Input - Option 4'!AN107","v":0},{"$f":"'Data Input - Option 4'!AO107","v":0},{"$f":"'Data Input - Option 4'!AP107","v":0},{"$f":"'Data Input - Option 4'!AQ107","v":0},{"$f":"'Data Input - Option 4'!AR107","v":0},{"$f":"'Data Input - Option 4'!AS107","v":0},{"$f":"'Data Input - Option 4'!AT107","v":0},{"$f":"'Data Input - Option 4'!AU107","v":0},{"$f":"'Data Input - Option 4'!AV107","v":0},{"$f":"'Data Input - Option 4'!AW107","v":0},{"$f":"'Data Input - Option 4'!AX107","v":0},{"$f":"'Data Input - Option 4'!AY107","v":0},{"$f":"'Data Input - Option 4'!AZ107","v":0},{"$f":"'Data Input - Option 4'!BA107","v":0},{"$f":"'Data Input - Option 4'!BB107","v":0},{"$f":"'Data Input - Option 4'!BC107","v":0},{"$f":"'Data Input - Option 4'!BD107","v":0},{"$f":"'Data Input - Option 4'!BE107","v":0},{"$f":"'Data Input - Option 4'!BF107","v":0},{"$f":"'Data Input - Option 4'!BG107","v":0},{"$f":"'Data Input - Option 4'!BH107","v":0},{"$f":"'Data Input - Option 4'!BI107","v":0},{"$f":"'Data Input - Option 4'!BJ107","v":0},{"$f":"'Data Input - Option 4'!BK107","v":0},{"$f":"'Data Input - Option 4'!BL107","v":0},{"$f":"'Data Input - Option 4'!BM107","v":0},{"$f":"'Data Input - Option 4'!BN107","v":0},{"$f":"'Data Input - Option 4'!BO107","v":0},{"$f":"'Data Input - Option 4'!BP107","v":0},{"$f":"'Data Input - Option 4'!BQ107","v":0},{"$f":"'Data Input - Option 4'!BR107","v":0},{"$f":"'Data Input - Option 4'!BS107","v":0},{"$f":"'Data Input - Option 4'!BT107","v":0},{"$f":"'Data Input - Option 4'!BU107","v":0},{"$f":"'Data Input - Option 4'!BV107","v":0},{"$f":"'Data Input - Option 4'!BW107","v":0},{"$f":"'Data Input - Option 4'!BX107","v":0},{"$f":"'Data Input - Option 4'!BY107","v":0},{"$f":"'Data Input - Option 4'!BZ107","v":0},{"$f":"'Data Input - Option 4'!CA107","v":0},{"$f":"'Data Input - Option 4'!CB107","v":0},{"$f":"'Data Input - Option 4'!CC107","v":0},{"$f":"'Data Input - Option 4'!CD107","v":0},{"$f":"'Data Input - Option 4'!CE107","v":0},{"$f":"'Data Input - Option 4'!CF107","v":0},{"$f":"'Data Input - Option 4'!CG107","v":0},{"$f":"'Data Input - Option 4'!CH107","v":0},{"$f":"'Data Input - Option 4'!CI107","v":0},{"$f":"'Data Input - Option 4'!CJ107","v":0},{"$f":"'Data Input - Option 4'!CK107","v":0},{"$f":"'Data Input - Option 4'!CL107","v":0},{"$f":"'Data Input - Option 4'!CM107","v":0},{"$f":"'Data Input - Option 4'!CN107","v":0},{"$f":"'Data Input - Option 4'!CO107","v":0},{"$f":"'Data Input - Option 4'!CP107","v":0},{"$f":"'Data Input - Option 4'!CQ107","v":0},{"$f":"'Data Input - Option 4'!CR107","v":0},{"$f":"'Data Input - Option 4'!CS107","v":0},{"$f":"'Data Input - Option 4'!CT107","v":0},{"$f":"'Data Input - Option 4'!CU107","v":0},{"$f":"'Data Input - Option 4'!CV107","v":0},{"$f":"'Data Input - Option 4'!CW107","v":0},{"$f":"'Data Input - Option 4'!CX107","v":0},{"$f":"'Data Input - Option 4'!CY107","v":0},{"$f":"'Data Input - Option 4'!CZ107","v":0},{"$f":"'Data Input - Option 4'!DA107","v":0},{"$f":"'Data Input - Option 4'!DB107","v":0},{"$f":"'Data Input - Option 4'!DC107","v":0}]
[null,{"$f":"'Data Input - Option 4'!D108","v":0},"Tonnes pa",{"$f":"'Data Input - Option 4'!H108","v":0},{"$f":"'Data Input - Option 4'!I108","v":0},{"$f":"'Data Input - Option 4'!J108","v":0},{"$f":"'Data Input - Option 4'!K108","v":0},{"$f":"'Data Input - Option 4'!L108","v":0},{"$f":"'Data Input - Option 4'!M108","v":0},{"$f":"'Data Input - Option 4'!N108","v":0},{"$f":"'Data Input - Option 4'!O108","v":0},{"$f":"'Data Input - Option 4'!P108","v":0},{"$f":"'Data Input - Option 4'!Q108","v":0},{"$f":"'Data Input - Option 4'!R108","v":0},{"$f":"'Data Input - Option 4'!S108","v":0},{"$f":"'Data Input - Option 4'!T108","v":0},{"$f":"'Data Input - Option 4'!U108","v":0},{"$f":"'Data Input - Option 4'!V108","v":0},{"$f":"'Data Input - Option 4'!W108","v":0},{"$f":"'Data Input - Option 4'!X108","v":0},{"$f":"'Data Input - Option 4'!Y108","v":0},{"$f":"'Data Input - Option 4'!Z108","v":0},{"$f":"'Data Input - Option 4'!AA108","v":0},{"$f":"'Data Input - Option 4'!AB108","v":0},{"$f":"'Data Input - Option 4'!AC108","v":0},{"$f":"'Data Input - Option 4'!AD108","v":0},{"$f":"'Data Input - Option 4'!AE108","v":0},{"$f":"'Data Input - Option 4'!AF108","v":0},{"$f":"'Data Input - Option 4'!AG108","v":0},{"$f":"'Data Input - Option 4'!AH108","v":0},{"$f":"'Data Input - Option 4'!AI108","v":0},{"$f":"'Data Input - Option 4'!AJ108","v":0},{"$f":"'Data Input - Option 4'!AK108","v":0},{"$f":"'Data Input - Option 4'!AL108","v":0},{"$f":"'Data Input - Option 4'!AM108","v":0},{"$f":"'Data Input - Option 4'!AN108","v":0},{"$f":"'Data Input - Option 4'!AO108","v":0},{"$f":"'Data Input - Option 4'!AP108","v":0},{"$f":"'Data Input - Option 4'!AQ108","v":0},{"$f":"'Data Input - Option 4'!AR108","v":0},{"$f":"'Data Input - Option 4'!AS108","v":0},{"$f":"'Data Input - Option 4'!AT108","v":0},{"$f":"'Data Input - Option 4'!AU108","v":0},{"$f":"'Data Input - Option 4'!AV108","v":0},{"$f":"'Data Input - Option 4'!AW108","v":0},{"$f":"'Data Input - Option 4'!AX108","v":0},{"$f":"'Data Input - Option 4'!AY108","v":0},{"$f":"'Data Input - Option 4'!AZ108","v":0},{"$f":"'Data Input - Option 4'!BA108","v":0},{"$f":"'Data Input - Option 4'!BB108","v":0},{"$f":"'Data Input - Option 4'!BC108","v":0},{"$f":"'Data Input - Option 4'!BD108","v":0},{"$f":"'Data Input - Option 4'!BE108","v":0},{"$f":"'Data Input - Option 4'!BF108","v":0},{"$f":"'Data Input - Option 4'!BG108","v":0},{"$f":"'Data Input - Option 4'!BH108","v":0},{"$f":"'Data Input - Option 4'!BI108","v":0},{"$f":"'Data Input - Option 4'!BJ108","v":0},{"$f":"'Data Input - Option 4'!BK108","v":0},{"$f":"'Data Input - Option 4'!BL108","v":0},{"$f":"'Data Input - Option 4'!BM108","v":0},{"$f":"'Data Input - Option 4'!BN108","v":0},{"$f":"'Data Input - Option 4'!BO108","v":0},{"$f":"'Data Input - Option 4'!BP108","v":0},{"$f":"'Data Input - Option 4'!BQ108","v":0},{"$f":"'Data Input - Option 4'!BR108","v":0},{"$f":"'Data Input - Option 4'!BS108","v":0},{"$f":"'Data Input - Option 4'!BT108","v":0},{"$f":"'Data Input - Option 4'!BU108","v":0},{"$f":"'Data Input - Option 4'!BV108","v":0},{"$f":"'Data Input - Option 4'!BW108","v":0},{"$f":"'Data Input - Option 4'!BX108","v":0},{"$f":"'Data Input - Option 4'!BY108","v":0},{"$f":"'Data Input - Option 4'!BZ108","v":0},{"$f":"'Data Input - Option 4'!CA108","v":0},{"$f":"'Data Input - Option 4'!CB108","v":0},{"$f":"'Data Input - Option 4'!CC108","v":0},{"$f":"'Data Input - Option 4'!CD108","v":0},{"$f":"'Data Input - Option 4'!CE108","v":0},{"$f":"'Data Input - Option 4'!CF108","v":0},{"$f":"'Data Input - Option 4'!CG108","v":0},{"$f":"'Data Input - Option 4'!CH108","v":0},{"$f":"'Data Input - Option 4'!CI108","v":0},{"$f":"'Data Input - Option 4'!CJ108","v":0},{"$f":"'Data Input - Option 4'!CK108","v":0},{"$f":"'Data Input - Option 4'!CL108","v":0},{"$f":"'Data Input - Option 4'!CM108","v":0},{"$f":"'Data Input - Option 4'!CN108","v":0},{"$f":"'Data Input - Option 4'!CO108","v":0},{"$f":"'Data Input - Option 4'!CP108","v":0},{"$f":"'Data Input - Option 4'!CQ108","v":0},{"$f":"'Data Input - Option 4'!CR108","v":0},{"$f":"'Data Input - Option 4'!CS108","v":0},{"$f":"'Data Input - Option 4'!CT108","v":0},{"$f":"'Data Input - Option 4'!CU108","v":0},{"$f":"'Data Input - Option 4'!CV108","v":0},{"$f":"'Data Input - Option 4'!CW108","v":0},{"$f":"'Data Input - Option 4'!CX108","v":0},{"$f":"'Data Input - Option 4'!CY108","v":0},{"$f":"'Data Input - Option 4'!CZ108","v":0},{"$f":"'Data Input - Option 4'!DA108","v":0},{"$f":"'Data Input - Option 4'!DB108","v":0},{"$f":"'Data Input - Option 4'!DC108","v":0}]
[null,{"$f":"'Data Input - Option 4'!D109","v":0},"Tonnes pa",{"$f":"'Data Input - Option 4'!H109","v":0},{"$f":"'Data Input - Option 4'!I109","v":0},{"$f":"'Data Input - Option 4'!J109","v":0},{"$f":"'Data Input - Option 4'!K109","v":0},{"$f":"'Data Input - Option 4'!L109","v":0},{"$f":"'Data Input - Option 4'!M109","v":0},{"$f":"'Data Input - Option 4'!N109","v":0},{"$f":"'Data Input - Option 4'!O109","v":0},{"$f":"'Data Input - Option 4'!P109","v":0},{"$f":"'Data Input - Option 4'!Q109","v":0},{"$f":"'Data Input - Option 4'!R109","v":0},{"$f":"'Data Input - Option 4'!S109","v":0},{"$f":"'Data Input - Option 4'!T109","v":0},{"$f":"'Data Input - Option 4'!U109","v":0},{"$f":"'Data Input - Option 4'!V109","v":0},{"$f":"'Data Input - Option 4'!W109","v":0},{"$f":"'Data Input - Option 4'!X109","v":0},{"$f":"'Data Input - Option 4'!Y109","v":0},{"$f":"'Data Input - Option 4'!Z109","v":0},{"$f":"'Data Input - Option 4'!AA109","v":0},{"$f":"'Data Input - Option 4'!AB109","v":0},{"$f":"'Data Input - Option 4'!AC109","v":0},{"$f":"'Data Input - Option 4'!AD109","v":0},{"$f":"'Data Input - Option 4'!AE109","v":0},{"$f":"'Data Input - Option 4'!AF109","v":0},{"$f":"'Data Input - Option 4'!AG109","v":0},{"$f":"'Data Input - Option 4'!AH109","v":0},{"$f":"'Data Input - Option 4'!AI109","v":0},{"$f":"'Data Input - Option 4'!AJ109","v":0},{"$f":"'Data Input - Option 4'!AK109","v":0},{"$f":"'Data Input - Option 4'!AL109","v":0},{"$f":"'Data Input - Option 4'!AM109","v":0},{"$f":"'Data Input - Option 4'!AN109","v":0},{"$f":"'Data Input - Option 4'!AO109","v":0},{"$f":"'Data Input - Option 4'!AP109","v":0},{"$f":"'Data Input - Option 4'!AQ109","v":0},{"$f":"'Data Input - Option 4'!AR109","v":0},{"$f":"'Data Input - Option 4'!AS109","v":0},{"$f":"'Data Input - Option 4'!AT109","v":0},{"$f":"'Data Input - Option 4'!AU109","v":0},{"$f":"'Data Input - Option 4'!AV109","v":0},{"$f":"'Data Input - Option 4'!AW109","v":0},{"$f":"'Data Input - Option 4'!AX109","v":0},{"$f":"'Data Input - Option 4'!AY109","v":0},{"$f":"'Data Input - Option 4'!AZ109","v":0},{"$f":"'Data Input - Option 4'!BA109","v":0},{"$f":"'Data Input - Option 4'!BB109","v":0},{"$f":"'Data Input - Option 4'!BC109","v":0},{"$f":"'Data Input - Option 4'!BD109","v":0},{"$f":"'Data Input - Option 4'!BE109","v":0},{"$f":"'Data Input - Option 4'!BF109","v":0},{"$f":"'Data Input - Option 4'!BG109","v":0},{"$f":"'Data Input - Option 4'!BH109","v":0},{"$f":"'Data Input - Option 4'!BI109","v":0},{"$f":"'Data Input - Option 4'!BJ109","v":0},{"$f":"'Data Input - Option 4'!BK109","v":0},{"$f":"'Data Input - Option 4'!BL109","v":0},{"$f":"'Data Input - Option 4'!BM109","v":0},{"$f":"'Data Input - Option 4'!BN109","v":0},{"$f":"'Data Input - Option 4'!BO109","v":0},{"$f":"'Data Input - Option 4'!BP109","v":0},{"$f":"'Data Input - Option 4'!BQ109","v":0},{"$f":"'Data Input - Option 4'!BR109","v":0},{"$f":"'Data Input - Option 4'!BS109","v":0},{"$f":"'Data Input - Option 4'!BT109","v":0},{"$f":"'Data Input - Option 4'!BU109","v":0},{"$f":"'Data Input - Option 4'!BV109","v":0},{"$f":"'Data Input - Option 4'!BW109","v":0},{"$f":"'Data Input - Option 4'!BX109","v":0},{"$f":"'Data Input - Option 4'!BY109","v":0},{"$f":"'Data Input - Option 4'!BZ109","v":0},{"$f":"'Data Input - Option 4'!CA109","v":0},{"$f":"'Data Input - Option 4'!CB109","v":0},{"$f":"'Data Input - Option 4'!CC109","v":0},{"$f":"'Data Input - Option 4'!CD109","v":0},{"$f":"'Data Input - Option 4'!CE109","v":0},{"$f":"'Data Input - Option 4'!CF109","v":0},{"$f":"'Data Input - Option 4'!CG109","v":0},{"$f":"'Data Input - Option 4'!CH109","v":0},{"$f":"'Data Input - Option 4'!CI109","v":0},{"$f":"'Data Input - Option 4'!CJ109","v":0},{"$f":"'Data Input - Option 4'!CK109","v":0},{"$f":"'Data Input - Option 4'!CL109","v":0},{"$f":"'Data Input - Option 4'!CM109","v":0},{"$f":"'Data Input - Option 4'!CN109","v":0},{"$f":"'Data Input - Option 4'!CO109","v":0},{"$f":"'Data Input - Option 4'!CP109","v":0},{"$f":"'Data Input - Option 4'!CQ109","v":0},{"$f":"'Data Input - Option 4'!CR109","v":0},{"$f":"'Data Input - Option 4'!CS109","v":0},{"$f":"'Data Input - Option 4'!CT109","v":0},{"$f":"'Data Input - Option 4'!CU109","v":0},{"$f":"'Data Input - Option 4'!CV109","v":0},{"$f":"'Data Input - Option 4'!CW109","v":0},{"$f":"'Data Input - Option 4'!CX109","v":0},{"$f":"'Data Input - Option 4'!CY109","v":0},{"$f":"'Data Input - Option 4'!CZ109","v":0},{"$f":"'Data Input - Option 4'!DA109","v":0},{"$f":"'Data Input - Option 4'!DB109","v":0},{"$f":"'Data Input - Option 4'!DC109","v":0}]
[null,{"$f":"'Data Input - Option 4'!D110","v":0},"Tonnes pa",{"$f":"'Data Input - Option 4'!H110","v":0},{"$f":"'Data Input - Option 4'!I110","v":0},{"$f":"'Data Input - Option 4'!J110","v":0},{"$f":"'Data Input - Option 4'!K110","v":0},{"$f":"'Data Input - Option 4'!L110","v":0},{"$f":"'Data Input - Option 4'!M110","v":0},{"$f":"'Data Input - Option 4'!N110","v":0},{"$f":"'Data Input - Option 4'!O110","v":0},{"$f":"'Data Input - Option 4'!P110","v":0},{"$f":"'Data Input - Option 4'!Q110","v":0},{"$f":"'Data Input - Option 4'!R110","v":0},{"$f":"'Data Input - Option 4'!S110","v":0},{"$f":"'Data Input - Option 4'!T110","v":0},{"$f":"'Data Input - Option 4'!U110","v":0},{"$f":"'Data Input - Option 4'!V110","v":0},{"$f":"'Data Input - Option 4'!W110","v":0},{"$f":"'Data Input - Option 4'!X110","v":0},{"$f":"'Data Input - Option 4'!Y110","v":0},{"$f":"'Data Input - Option 4'!Z110","v":0},{"$f":"'Data Input - Option 4'!AA110","v":0},{"$f":"'Data Input - Option 4'!AB110","v":0},{"$f":"'Data Input - Option 4'!AC110","v":0},{"$f":"'Data Input - Option 4'!AD110","v":0},{"$f":"'Data Input - Option 4'!AE110","v":0},{"$f":"'Data Input - Option 4'!AF110","v":0},{"$f":"'Data Input - Option 4'!AG110","v":0},{"$f":"'Data Input - Option 4'!AH110","v":0},{"$f":"'Data Input - Option 4'!AI110","v":0},{"$f":"'Data Input - Option 4'!AJ110","v":0},{"$f":"'Data Input - Option 4'!AK110","v":0},{"$f":"'Data Input - Option 4'!AL110","v":0},{"$f":"'Data Input - Option 4'!AM110","v":0},{"$f":"'Data Input - Option 4'!AN110","v":0},{"$f":"'Data Input - Option 4'!AO110","v":0},{"$f":"'Data Input - Option 4'!AP110","v":0},{"$f":"'Data Input - Option 4'!AQ110","v":0},{"$f":"'Data Input - Option 4'!AR110","v":0},{"$f":"'Data Input - Option 4'!AS110","v":0},{"$f":"'Data Input - Option 4'!AT110","v":0},{"$f":"'Data Input - Option 4'!AU110","v":0},{"$f":"'Data Input - Option 4'!AV110","v":0},{"$f":"'Data Input - Option 4'!AW110","v":0},{"$f":"'Data Input - Option 4'!AX110","v":0},{"$f":"'Data Input - Option 4'!AY110","v":0},{"$f":"'Data Input - Option 4'!AZ110","v":0},{"$f":"'Data Input - Option 4'!BA110","v":0},{"$f":"'Data Input - Option 4'!BB110","v":0},{"$f":"'Data Input - Option 4'!BC110","v":0},{"$f":"'Data Input - Option 4'!BD110","v":0},{"$f":"'Data Input - Option 4'!BE110","v":0},{"$f":"'Data Input - Option 4'!BF110","v":0},{"$f":"'Data Input - Option 4'!BG110","v":0},{"$f":"'Data Input - Option 4'!BH110","v":0},{"$f":"'Data Input - Option 4'!BI110","v":0},{"$f":"'Data Input - Option 4'!BJ110","v":0},{"$f":"'Data Input - Option 4'!BK110","v":0},{"$f":"'Data Input - Option 4'!BL110","v":0},{"$f":"'Data Input - Option 4'!BM110","v":0},{"$f":"'Data Input - Option 4'!BN110","v":0},{"$f":"'Data Input - Option 4'!BO110","v":0},{"$f":"'Data Input - Option 4'!BP110","v":0},{"$f":"'Data Input - Option 4'!BQ110","v":0},{"$f":"'Data Input - Option 4'!BR110","v":0},{"$f":"'Data Input - Option 4'!BS110","v":0},{"$f":"'Data Input - Option 4'!BT110","v":0},{"$f":"'Data Input - Option 4'!BU110","v":0},{"$f":"'Data Input - Option 4'!BV110","v":0},{"$f":"'Data Input - Option 4'!BW110","v":0},{"$f":"'Data Input - Option 4'!BX110","v":0},{"$f":"'Data Input - Option 4'!BY110","v":0},{"$f":"'Data Input - Option 4'!BZ110","v":0},{"$f":"'Data Input - Option 4'!CA110","v":0},{"$f":"'Data Input - Option 4'!CB110","v":0},{"$f":"'Data Input - Option 4'!CC110","v":0},{"$f":"'Data Input - Option 4'!CD110","v":0},{"$f":"'Data Input - Option 4'!CE110","v":0},{"$f":"'Data Input - Option 4'!CF110","v":0},{"$f":"'Data Input - Option 4'!CG110","v":0},{"$f":"'Data Input - Option 4'!CH110","v":0},{"$f":"'Data Input - Option 4'!CI110","v":0},{"$f":"'Data Input - Option 4'!CJ110","v":0},{"$f":"'Data Input - Option 4'!CK110","v":0},{"$f":"'Data Input - Option 4'!CL110","v":0},{"$f":"'Data Input - Option 4'!CM110","v":0},{"$f":"'Data Input - Option 4'!CN110","v":0},{"$f":"'Data Input - Option 4'!CO110","v":0},{"$f":"'Data Input - Option 4'!CP110","v":0},{"$f":"'Data Input - Option 4'!CQ110","v":0},{"$f":"'Data Input - Option 4'!CR110","v":0},{"$f":"'Data Input - Option 4'!CS110","v":0},{"$f":"'Data Input - Option 4'!CT110","v":0},{"$f":"'Data Input - Option 4'!CU110","v":0},{"$f":"'Data Input - Option 4'!CV110","v":0},{"$f":"'Data Input - Option 4'!CW110","v":0},{"$f":"'Data Input - Option 4'!CX110","v":0},{"$f":"'Data Input - Option 4'!CY110","v":0},{"$f":"'Data Input - Option 4'!CZ110","v":0},{"$f":"'Data Input - Option 4'!DA110","v":0},{"$f":"'Data Input - Option 4'!DB110","v":0},{"$f":"'Data Input - Option 4'!DC110","v":0}]
[]
[null,"Air pollutant emissions- value"]
[null,{"$f":"B53","v":0},"£000's",{"$f":"IFERROR(IF(OR($C$67=FALSE,LEFT($B61,3)<>\"NOX\"),D53*INDEX('Damage costs'!$O$16:$O$43,MATCH($B61,'Damage costs'!$C$16:$C$43,0))/1000,D53*INDEX('Damage costs'!$S$16:$S$43,MATCH($B61,'Damage costs'!$C$16:$C$43,0))/1000),\"\")","v":""},{"$f":"IFERROR(IF(OR($C$67=FALSE,LEFT($B61,3)<>\"NOX\"),E53*INDEX('Damage costs'!$O$16:$O$43,MATCH($B61,'Damage costs'!$C$16:$C$43,0))/1000,E53*INDEX('Damage costs'!$S$16:$S$43,MATCH($B61,'Damage costs'!$C$16:$C$43,0))/1000),\"\")","v":""},{"$f":"IFERROR(IF(OR($C$67=FALSE,LEFT($B61,3)<>\"NOX\"),F53*INDEX('Damage costs'!$O$16:$O$43,MATCH($B61,'Damage costs'!$C$16:$C$43,0))/1000,F53*INDEX('Damage costs'!$S$16:$S$43,MATCH($B61,'Damage costs'!$C$16:$C$43,0))/1000),\"\")","v":""},{"$f":"IFERROR(IF(OR($C$67=FALSE,LEFT($B61,3)<>\"NOX\"),G53*INDEX('Damage costs'!$O$16:$O$43,MATCH($B61,'Damage costs'!$C$16:$C$43,0))/1000,G53*INDEX('Damage costs'!$S$16:$S$43,MATCH($B61,'Damage costs'!$C$16:$C$43,0))/1000),\"\")","v":""},{"$f":"IFERROR(IF(OR($C$67=FALSE,LEFT($B61,3)<>\"NOX\"),H53*INDEX('Damage costs'!$O$16:$O$43,MATCH($B61,'Damage costs'!$C$16:$C$43,0))/1000,H53*INDEX('Damage costs'!$S$16:$S$43,MATCH($B61,'Damage costs'!$C$16:$C$43,0))/1000),\"\")","v":""},{"$f":"IFERROR(IF(OR($C$67=FALSE,LEFT($B61,3)<>\"NOX\"),I53*INDEX('Damage costs'!$O$16:$O$43,MATCH($B61,'Damage costs'!$C$16:$C$43,0))/1000,I53*INDEX('Damage costs'!$S$16:$S$43,MATCH($B61,'Damage costs'!$C$16:$C$43,0))/1000),\"\")","v":""},{"$f":"IFERROR(IF(OR($C$67=FALSE,LEFT($B61,3)<>\"NOX\"),J53*INDEX('Damage costs'!$O$16:$O$43,MATCH($B61,'Damage costs'!$C$16:$C$43,0))/1000,J53*INDEX('Damage costs'!$S$16:$S$43,MATCH($B61,'Damage costs'!$C$16:$C$43,0))/1000),\"\")","v":""},{"$f":"IFERROR(IF(OR($C$67=FALSE,LEFT($B61,3)<>\"NOX\"),K53*INDEX('Damage costs'!$O$16:$O$43,MATCH($B61,'Damage costs'!$C$16:$C$43,0))/1000,K53*INDEX('Damage costs'!$S$16:$S$43,MATCH($B61,'Damage costs'!$C$16:$C$43,0))/1000),\"\")","v":""},{"$f":"IFERROR(IF(OR($C$67=FALSE,LEFT($B61,3)<>\"NOX\"),L53*INDEX('Damage costs'!$O$16:$O$43,MATCH($B61,'Damage costs'!$C$16:$C$43,0))/1000,L53*INDEX('Damage costs'!$S$16:$S$43,MATCH($B61,'Damage costs'!$C$16:$C$43,0))/1000),\"\")","v":""},{"$f":"IFERROR(IF(OR($C$67=FALSE,LEFT($B61,3)<>\"NOX\"),M53*INDEX('Damage costs'!$O$16:$O$43,MATCH($B61,'Damage costs'!$C$16:$C$43,0))/1000,M53*INDEX('Damage costs'!$S$16:$S$43,MATCH($B61,'Damage costs'!$C$16:$C$43,0))/1000),\"\")","v":""},{"$f":"IFERROR(IF(OR($C$67=FALSE,LEFT($B61,3)<>\"NOX\"),N53*INDEX('Damage costs'!$O$16:$O$43,MATCH($B61,'Damage costs'!$C$16:$C$43,0))/1000,N53*INDEX('Damage costs'!$S$16:$S$43,MATCH($B61,'Damage costs'!$C$16:$C$43,0))/1000),\"\")","v":""},{"$f":"IFERROR(IF(OR($C$67=FALSE,LEFT($B61,3)<>\"NOX\"),O53*INDEX('Damage costs'!$O$16:$O$43,MATCH($B61,'Damage costs'!$C$16:$C$43,0))/1000,O53*INDEX('Damage costs'!$S$16:$S$43,MATCH($B61,'Damage costs'!$C$16:$C$43,0))/1000),\"\")","v":""},{"$f":"IFERROR(IF(OR($C$67=FALSE,LEFT($B61,3)<>\"NOX\"),P53*INDEX('Damage costs'!$O$16:$O$43,MATCH($B61,'Damage costs'!$C$16:$C$43,0))/1000,P53*INDEX('Damage costs'!$S$16:$S$43,MATCH($B61,'Damage costs'!$C$16:$C$43,0))/1000),\"\")","v":""},{"$f":"IFERROR(IF(OR($C$67=FALSE,LEFT($B61,3)<>\"NOX\"),Q53*INDEX('Damage costs'!$O$16:$O$43,MATCH($B61,'Damage costs'!$C$16:$C$43,0))/1000,Q53*INDEX('Damage costs'!$S$16:$S$43,MATCH($B61,'Damage costs'!$C$16:$C$43,0))/1000),\"\")","v":""},{"$f":"IFERROR(IF(OR($C$67=FALSE,LEFT($B61,3)<>\"NOX\"),R53*INDEX('Damage costs'!$O$16:$O$43,MATCH($B61,'Damage costs'!$C$16:$C$43,0))/1000,R53*INDEX('Damage costs'!$S$16:$S$43,MATCH($B61,'Damage costs'!$C$16:$C$43,0))/1000),\"\")","v":""},{"$f":"IFERROR(IF(OR($C$67=FALSE,LEFT($B61,3)<>\"NOX\"),S53*INDEX('Damage costs'!$O$16:$O$43,MATCH($B61,'Damage costs'!$C$16:$C$43,0))/1000,S53*INDEX('Damage costs'!$S$16:$S$43,MATCH($B61,'Damage costs'!$C$16:$C$43,0))/1000),\"\")","v":""},{"$f":"IFERROR(IF(OR($C$67=FALSE,LEFT($B61,3)<>\"NOX\"),T53*INDEX('Damage costs'!$O$16:$O$43,MATCH($B61,'Damage costs'!$C$16:$C$43,0))/1000,T53*INDEX('Damage costs'!$S$16:$S$43,MATCH($B61,'Damage costs'!$C$16:$C$43,0))/1000),\"\")","v":""},{"$f":"IFERROR(IF(OR($C$67=FALSE,LEFT($B61,3)<>\"NOX\"),U53*INDEX('Damage costs'!$O$16:$O$43,MATCH($B61,'Damage costs'!$C$16:$C$43,0))/1000,U53*INDEX('Damage costs'!$S$16:$S$43,MATCH($B61,'Damage costs'!$C$16:$C$43,0))/1000),\"\")","v":""},{"$f":"IFERROR(IF(OR($C$67=FALSE,LEFT($B61,3)<>\"NOX\"),V53*INDEX('Damage costs'!$O$16:$O$43,MATCH($B61,'Damage costs'!$C$16:$C$43,0))/1000,V53*INDEX('Damage costs'!$S$16:$S$43,MATCH($B61,'Damage costs'!$C$16:$C$43,0))/1000),\"\")","v":""},{"$f":"IFERROR(IF(OR($C$67=FALSE,LEFT($B61,3)<>\"NOX\"),W53*INDEX('Damage costs'!$O$16:$O$43,MATCH($B61,'Damage costs'!$C$16:$C$43,0))/1000,W53*INDEX('Damage costs'!$S$16:$S$43,MATCH($B61,'Damage costs'!$C$16:$C$43,0))/1000),\"\")","v":""},{"$f":"IFERROR(IF(OR($C$67=FALSE,LEFT($B61,3)<>\"NOX\"),X53*INDEX('Damage costs'!$O$16:$O$43,MATCH($B61,'Damage costs'!$C$16:$C$43,0))/1000,X53*INDEX('Damage costs'!$S$16:$S$43,MATCH($B61,'Damage costs'!$C$16:$C$43,0))/1000),\"\")","v":""},{"$f":"IFERROR(IF(OR($C$67=FALSE,LEFT($B61,3)<>\"NOX\"),Y53*INDEX('Damage costs'!$O$16:$O$43,MATCH($B61,'Damage costs'!$C$16:$C$43,0))/1000,Y53*INDEX('Damage costs'!$S$16:$S$43,MATCH($B61,'Damage costs'!$C$16:$C$43,0))/1000),\"\")","v":""},{"$f":"IFERROR(IF(OR($C$67=FALSE,LEFT($B61,3)<>\"NOX\"),Z53*INDEX('Damage costs'!$O$16:$O$43,MATCH($B61,'Damage costs'!$C$16:$C$43,0))/1000,Z53*INDEX('Damage costs'!$S$16:$S$43,MATCH($B61,'Damage costs'!$C$16:$C$43,0))/1000),\"\")","v":""},{"$f":"IFERROR(IF(OR($C$67=FALSE,LEFT($B61,3)<>\"NOX\"),AA53*INDEX('Damage costs'!$O$16:$O$43,MATCH($B61,'Damage costs'!$C$16:$C$43,0))/1000,AA53*INDEX('Damage costs'!$S$16:$S$43,MATCH($B61,'Damage costs'!$C$16:$C$43,0))/1000),\"\")","v":""},{"$f":"IFERROR(IF(OR($C$67=FALSE,LEFT($B61,3)<>\"NOX\"),AB53*INDEX('Damage costs'!$O$16:$O$43,MATCH($B61,'Damage costs'!$C$16:$C$43,0))/1000,AB53*INDEX('Damage costs'!$S$16:$S$43,MATCH($B61,'Damage costs'!$C$16:$C$43,0))/1000),\"\")","v":""},{"$f":"IFERROR(IF(OR($C$67=FALSE,LEFT($B61,3)<>\"NOX\"),AC53*INDEX('Damage costs'!$O$16:$O$43,MATCH($B61,'Damage costs'!$C$16:$C$43,0))/1000,AC53*INDEX('Damage costs'!$S$16:$S$43,MATCH($B61,'Damage costs'!$C$16:$C$43,0))/1000),\"\")","v":""},{"$f":"IFERROR(IF(OR($C$67=FALSE,LEFT($B61,3)<>\"NOX\"),AD53*INDEX('Damage costs'!$O$16:$O$43,MATCH($B61,'Damage costs'!$C$16:$C$43,0))/1000,AD53*INDEX('Damage costs'!$S$16:$S$43,MATCH($B61,'Damage costs'!$C$16:$C$43,0))/1000),\"\")","v":""},{"$f":"IFERROR(IF(OR($C$67=FALSE,LEFT($B61,3)<>\"NOX\"),AE53*INDEX('Damage costs'!$O$16:$O$43,MATCH($B61,'Damage costs'!$C$16:$C$43,0))/1000,AE53*INDEX('Damage costs'!$S$16:$S$43,MATCH($B61,'Damage costs'!$C$16:$C$43,0))/1000),\"\")","v":""},{"$f":"IFERROR(IF(OR($C$67=FALSE,LEFT($B61,3)<>\"NOX\"),AF53*INDEX('Damage costs'!$O$16:$O$43,MATCH($B61,'Damage costs'!$C$16:$C$43,0))/1000,AF53*INDEX('Damage costs'!$S$16:$S$43,MATCH($B61,'Damage costs'!$C$16:$C$43,0))/1000),\"\")","v":""},{"$f":"IFERROR(IF(OR($C$67=FALSE,LEFT($B61,3)<>\"NOX\"),AG53*INDEX('Damage costs'!$O$16:$O$43,MATCH($B61,'Damage costs'!$C$16:$C$43,0))/1000,AG53*INDEX('Damage costs'!$S$16:$S$43,MATCH($B61,'Damage costs'!$C$16:$C$43,0))/1000),\"\")","v":""},{"$f":"IFERROR(IF(OR($C$67=FALSE,LEFT($B61,3)<>\"NOX\"),AH53*INDEX('Damage costs'!$O$16:$O$43,MATCH($B61,'Damage costs'!$C$16:$C$43,0))/1000,AH53*INDEX('Damage costs'!$S$16:$S$43,MATCH($B61,'Damage costs'!$C$16:$C$43,0))/1000),\"\")","v":""},{"$f":"IFERROR(IF(OR($C$67=FALSE,LEFT($B61,3)<>\"NOX\"),AI53*INDEX('Damage costs'!$O$16:$O$43,MATCH($B61,'Damage costs'!$C$16:$C$43,0))/1000,AI53*INDEX('Damage costs'!$S$16:$S$43,MATCH($B61,'Damage costs'!$C$16:$C$43,0))/1000),\"\")","v":""},{"$f":"IFERROR(IF(OR($C$67=FALSE,LEFT($B61,3)<>\"NOX\"),AJ53*INDEX('Damage costs'!$O$16:$O$43,MATCH($B61,'Damage costs'!$C$16:$C$43,0))/1000,AJ53*INDEX('Damage costs'!$S$16:$S$43,MATCH($B61,'Damage costs'!$C$16:$C$43,0))/1000),\"\")","v":""},{"$f":"IFERROR(IF(OR($C$67=FALSE,LEFT($B61,3)<>\"NOX\"),AK53*INDEX('Damage costs'!$O$16:$O$43,MATCH($B61,'Damage costs'!$C$16:$C$43,0))/1000,AK53*INDEX('Damage costs'!$S$16:$S$43,MATCH($B61,'Damage costs'!$C$16:$C$43,0))/1000),\"\")","v":""},{"$f":"IFERROR(IF(OR($C$67=FALSE,LEFT($B61,3)<>\"NOX\"),AL53*INDEX('Damage costs'!$O$16:$O$43,MATCH($B61,'Damage costs'!$C$16:$C$43,0))/1000,AL53*INDEX('Damage costs'!$S$16:$S$43,MATCH($B61,'Damage costs'!$C$16:$C$43,0))/1000),\"\")","v":""},{"$f":"IFERROR(IF(OR($C$67=FALSE,LEFT($B61,3)<>\"NOX\"),AM53*INDEX('Damage costs'!$O$16:$O$43,MATCH($B61,'Damage costs'!$C$16:$C$43,0))/1000,AM53*INDEX('Damage costs'!$S$16:$S$43,MATCH($B61,'Damage costs'!$C$16:$C$43,0))/1000),\"\")","v":""},{"$f":"IFERROR(IF(OR($C$67=FALSE,LEFT($B61,3)<>\"NOX\"),AN53*INDEX('Damage costs'!$O$16:$O$43,MATCH($B61,'Damage costs'!$C$16:$C$43,0))/1000,AN53*INDEX('Damage costs'!$S$16:$S$43,MATCH($B61,'Damage costs'!$C$16:$C$43,0))/1000),\"\")","v":""},{"$f":"IFERROR(IF(OR($C$67=FALSE,LEFT($B61,3)<>\"NOX\"),AO53*INDEX('Damage costs'!$O$16:$O$43,MATCH($B61,'Damage costs'!$C$16:$C$43,0))/1000,AO53*INDEX('Damage costs'!$S$16:$S$43,MATCH($B61,'Damage costs'!$C$16:$C$43,0))/1000),\"\")","v":""},{"$f":"IFERROR(IF(OR($C$67=FALSE,LEFT($B61,3)<>\"NOX\"),AP53*INDEX('Damage costs'!$O$16:$O$43,MATCH($B61,'Damage costs'!$C$16:$C$43,0))/1000,AP53*INDEX('Damage costs'!$S$16:$S$43,MATCH($B61,'Damage costs'!$C$16:$C$43,0))/1000),\"\")","v":""},{"$f":"IFERROR(IF(OR($C$67=FALSE,LEFT($B61,3)<>\"NOX\"),AQ53*INDEX('Damage costs'!$O$16:$O$43,MATCH($B61,'Damage costs'!$C$16:$C$43,0))/1000,AQ53*INDEX('Damage costs'!$S$16:$S$43,MATCH($B61,'Damage costs'!$C$16:$C$43,0))/1000),\"\")","v":""},{"$f":"IFERROR(IF(OR($C$67=FALSE,LEFT($B61,3)<>\"NOX\"),AR53*INDEX('Damage costs'!$O$16:$O$43,MATCH($B61,'Damage costs'!$C$16:$C$43,0))/1000,AR53*INDEX('Damage costs'!$S$16:$S$43,MATCH($B61,'Damage costs'!$C$16:$C$43,0))/1000),\"\")","v":""},{"$f":"IFERROR(IF(OR($C$67=FALSE,LEFT($B61,3)<>\"NOX\"),AS53*INDEX('Damage costs'!$O$16:$O$43,MATCH($B61,'Damage costs'!$C$16:$C$43,0))/1000,AS53*INDEX('Damage costs'!$S$16:$S$43,MATCH($B61,'Damage costs'!$C$16:$C$43,0))/1000),\"\")","v":""},{"$f":"IFERROR(IF(OR($C$67=FALSE,LEFT($B61,3)<>\"NOX\"),AT53*INDEX('Damage costs'!$O$16:$O$43,MATCH($B61,'Damage costs'!$C$16:$C$43,0))/1000,AT53*INDEX('Damage costs'!$S$16:$S$43,MATCH($B61,'Damage costs'!$C$16:$C$43,0))/1000),\"\")","v":""},{"$f":"IFERROR(IF(OR($C$67=FALSE,LEFT($B61,3)<>\"NOX\"),AU53*INDEX('Damage costs'!$O$16:$O$43,MATCH($B61,'Damage costs'!$C$16:$C$43,0))/1000,AU53*INDEX('Damage costs'!$S$16:$S$43,MATCH($B61,'Damage costs'!$C$16:$C$43,0))/1000),\"\")","v":""},{"$f":"IFERROR(IF(OR($C$67=FALSE,LEFT($B61,3)<>\"NOX\"),AV53*INDEX('Damage costs'!$O$16:$O$43,MATCH($B61,'Damage costs'!$C$16:$C$43,0))/1000,AV53*INDEX('Damage costs'!$S$16:$S$43,MATCH($B61,'Damage costs'!$C$16:$C$43,0))/1000),\"\")","v":""},{"$f":"IFERROR(IF(OR($C$67=FALSE,LEFT($B61,3)<>\"NOX\"),AW53*INDEX('Damage costs'!$O$16:$O$43,MATCH($B61,'Damage costs'!$C$16:$C$43,0))/1000,AW53*INDEX('Damage costs'!$S$16:$S$43,MATCH($B61,'Damage costs'!$C$16:$C$43,0))/1000),\"\")","v":""},{"$f":"IFERROR(IF(OR($C$67=FALSE,LEFT($B61,3)<>\"NOX\"),AX53*INDEX('Damage costs'!$O$16:$O$43,MATCH($B61,'Damage costs'!$C$16:$C$43,0))/1000,AX53*INDEX('Damage costs'!$S$16:$S$43,MATCH($B61,'Damage costs'!$C$16:$C$43,0))/1000),\"\")","v":""},{"$f":"IFERROR(IF(OR($C$67=FALSE,LEFT($B61,3)<>\"NOX\"),AY53*INDEX('Damage costs'!$O$16:$O$43,MATCH($B61,'Damage costs'!$C$16:$C$43,0))/1000,AY53*INDEX('Damage costs'!$S$16:$S$43,MATCH($B61,'Damage costs'!$C$16:$C$43,0))/1000),\"\")","v":""},{"$f":"IFERROR(IF(OR($C$67=FALSE,LEFT($B61,3)<>\"NOX\"),AZ53*INDEX('Damage costs'!$O$16:$O$43,MATCH($B61,'Damage costs'!$C$16:$C$43,0))/1000,AZ53*INDEX('Damage costs'!$S$16:$S$43,MATCH($B61,'Damage costs'!$C$16:$C$43,0))/1000),\"\")","v":""},{"$f":"IFERROR(IF(OR($C$67=FALSE,LEFT($B61,3)<>\"NOX\"),BA53*INDEX('Damage costs'!$O$16:$O$43,MATCH($B61,'Damage costs'!$C$16:$C$43,0))/1000,BA53*INDEX('Damage costs'!$S$16:$S$43,MATCH($B61,'Damage costs'!$C$16:$C$43,0))/1000),\"\")","v":""},{"$f":"IFERROR(IF(OR($C$67=FALSE,LEFT($B61,3)<>\"NOX\"),BB53*INDEX('Damage costs'!$O$16:$O$43,MATCH($B61,'Damage costs'!$C$16:$C$43,0))/1000,BB53*INDEX('Damage costs'!$S$16:$S$43,MATCH($B61,'Damage costs'!$C$16:$C$43,0))/1000),\"\")","v":""},{"$f":"IFERROR(IF(OR($C$67=FALSE,LEFT($B61,3)<>\"NOX\"),BC53*INDEX('Damage costs'!$O$16:$O$43,MATCH($B61,'Damage costs'!$C$16:$C$43,0))/1000,BC53*INDEX('Damage costs'!$S$16:$S$43,MATCH($B61,'Damage costs'!$C$16:$C$43,0))/1000),\"\")","v":""},{"$f":"IFERROR(IF(OR($C$67=FALSE,LEFT($B61,3)<>\"NOX\"),BD53*INDEX('Damage costs'!$O$16:$O$43,MATCH($B61,'Damage costs'!$C$16:$C$43,0))/1000,BD53*INDEX('Damage costs'!$S$16:$S$43,MATCH($B61,'Damage costs'!$C$16:$C$43,0))/1000),\"\")","v":""},{"$f":"IFERROR(IF(OR($C$67=FALSE,LEFT($B61,3)<>\"NOX\"),BE53*INDEX('Damage costs'!$O$16:$O$43,MATCH($B61,'Damage costs'!$C$16:$C$43,0))/1000,BE53*INDEX('Damage costs'!$S$16:$S$43,MATCH($B61,'Damage costs'!$C$16:$C$43,0))/1000),\"\")","v":""},{"$f":"IFERROR(IF(OR($C$67=FALSE,LEFT($B61,3)<>\"NOX\"),BF53*INDEX('Damage costs'!$O$16:$O$43,MATCH($B61,'Damage costs'!$C$16:$C$43,0))/1000,BF53*INDEX('Damage costs'!$S$16:$S$43,MATCH($B61,'Damage costs'!$C$16:$C$43,0))/1000),\"\")","v":""},{"$f":"IFERROR(IF(OR($C$67=FALSE,LEFT($B61,3)<>\"NOX\"),BG53*INDEX('Damage costs'!$O$16:$O$43,MATCH($B61,'Damage costs'!$C$16:$C$43,0))/1000,BG53*INDEX('Damage costs'!$S$16:$S$43,MATCH($B61,'Damage costs'!$C$16:$C$43,0))/1000),\"\")","v":""},{"$f":"IFERROR(IF(OR($C$67=FALSE,LEFT($B61,3)<>\"NOX\"),BH53*INDEX('Damage costs'!$O$16:$O$43,MATCH($B61,'Damage costs'!$C$16:$C$43,0))/1000,BH53*INDEX('Damage costs'!$S$16:$S$43,MATCH($B61,'Damage costs'!$C$16:$C$43,0))/1000),\"\")","v":""},{"$f":"IFERROR(IF(OR($C$67=FALSE,LEFT($B61,3)<>\"NOX\"),BI53*INDEX('Damage costs'!$O$16:$O$43,MATCH($B61,'Damage costs'!$C$16:$C$43,0))/1000,BI53*INDEX('Damage costs'!$S$16:$S$43,MATCH($B61,'Damage costs'!$C$16:$C$43,0))/1000),\"\")","v":""},{"$f":"IFERROR(IF(OR($C$67=FALSE,LEFT($B61,3)<>\"NOX\"),BJ53*INDEX('Damage costs'!$O$16:$O$43,MATCH($B61,'Damage costs'!$C$16:$C$43,0))/1000,BJ53*INDEX('Damage costs'!$S$16:$S$43,MATCH($B61,'Damage costs'!$C$16:$C$43,0))/1000),\"\")","v":""},{"$f":"IFERROR(IF(OR($C$67=FALSE,LEFT($B61,3)<>\"NOX\"),BK53*INDEX('Damage costs'!$O$16:$O$43,MATCH($B61,'Damage costs'!$C$16:$C$43,0))/1000,BK53*INDEX('Damage costs'!$S$16:$S$43,MATCH($B61,'Damage costs'!$C$16:$C$43,0))/1000),\"\")","v":""},{"$f":"IFERROR(IF(OR($C$67=FALSE,LEFT($B61,3)<>\"NOX\"),BL53*INDEX('Damage costs'!$O$16:$O$43,MATCH($B61,'Damage costs'!$C$16:$C$43,0))/1000,BL53*INDEX('Damage costs'!$S$16:$S$43,MATCH($B61,'Damage costs'!$C$16:$C$43,0))/1000),\"\")","v":""},{"$f":"IFERROR(IF(OR($C$67=FALSE,LEFT($B61,3)<>\"NOX\"),BM53*INDEX('Damage costs'!$O$16:$O$43,MATCH($B61,'Damage costs'!$C$16:$C$43,0))/1000,BM53*INDEX('Damage costs'!$S$16:$S$43,MATCH($B61,'Damage costs'!$C$16:$C$43,0))/1000),\"\")","v":""},{"$f":"IFERROR(IF(OR($C$67=FALSE,LEFT($B61,3)<>\"NOX\"),BN53*INDEX('Damage costs'!$O$16:$O$43,MATCH($B61,'Damage costs'!$C$16:$C$43,0))/1000,BN53*INDEX('Damage costs'!$S$16:$S$43,MATCH($B61,'Damage costs'!$C$16:$C$43,0))/1000),\"\")","v":""},{"$f":"IFERROR(IF(OR($C$67=FALSE,LEFT($B61,3)<>\"NOX\"),BO53*INDEX('Damage costs'!$O$16:$O$43,MATCH($B61,'Damage costs'!$C$16:$C$43,0))/1000,BO53*INDEX('Damage costs'!$S$16:$S$43,MATCH($B61,'Damage costs'!$C$16:$C$43,0))/1000),\"\")","v":""},{"$f":"IFERROR(IF(OR($C$67=FALSE,LEFT($B61,3)<>\"NOX\"),BP53*INDEX('Damage costs'!$O$16:$O$43,MATCH($B61,'Damage costs'!$C$16:$C$43,0))/1000,BP53*INDEX('Damage costs'!$S$16:$S$43,MATCH($B61,'Damage costs'!$C$16:$C$43,0))/1000),\"\")","v":""},{"$f":"IFERROR(IF(OR($C$67=FALSE,LEFT($B61,3)<>\"NOX\"),BQ53*INDEX('Damage costs'!$O$16:$O$43,MATCH($B61,'Damage costs'!$C$16:$C$43,0))/1000,BQ53*INDEX('Damage costs'!$S$16:$S$43,MATCH($B61,'Damage costs'!$C$16:$C$43,0))/1000),\"\")","v":""},{"$f":"IFERROR(IF(OR($C$67=FALSE,LEFT($B61,3)<>\"NOX\"),BR53*INDEX('Damage costs'!$O$16:$O$43,MATCH($B61,'Damage costs'!$C$16:$C$43,0))/1000,BR53*INDEX('Damage costs'!$S$16:$S$43,MATCH($B61,'Damage costs'!$C$16:$C$43,0))/1000),\"\")","v":""},{"$f":"IFERROR(IF(OR($C$67=FALSE,LEFT($B61,3)<>\"NOX\"),BS53*INDEX('Damage costs'!$O$16:$O$43,MATCH($B61,'Damage costs'!$C$16:$C$43,0))/1000,BS53*INDEX('Damage costs'!$S$16:$S$43,MATCH($B61,'Damage costs'!$C$16:$C$43,0))/1000),\"\")","v":""},{"$f":"IFERROR(IF(OR($C$67=FALSE,LEFT($B61,3)<>\"NOX\"),BT53*INDEX('Damage costs'!$O$16:$O$43,MATCH($B61,'Damage costs'!$C$16:$C$43,0))/1000,BT53*INDEX('Damage costs'!$S$16:$S$43,MATCH($B61,'Damage costs'!$C$16:$C$43,0))/1000),\"\")","v":""},{"$f":"IFERROR(IF(OR($C$67=FALSE,LEFT($B61,3)<>\"NOX\"),BU53*INDEX('Damage costs'!$O$16:$O$43,MATCH($B61,'Damage costs'!$C$16:$C$43,0))/1000,BU53*INDEX('Damage costs'!$S$16:$S$43,MATCH($B61,'Damage costs'!$C$16:$C$43,0))/1000),\"\")","v":""},{"$f":"IFERROR(IF(OR($C$67=FALSE,LEFT($B61,3)<>\"NOX\"),BV53*INDEX('Damage costs'!$O$16:$O$43,MATCH($B61,'Damage costs'!$C$16:$C$43,0))/1000,BV53*INDEX('Damage costs'!$S$16:$S$43,MATCH($B61,'Damage costs'!$C$16:$C$43,0))/1000),\"\")","v":""},{"$f":"IFERROR(IF(OR($C$67=FALSE,LEFT($B61,3)<>\"NOX\"),BW53*INDEX('Damage costs'!$O$16:$O$43,MATCH($B61,'Damage costs'!$C$16:$C$43,0))/1000,BW53*INDEX('Damage costs'!$S$16:$S$43,MATCH($B61,'Damage costs'!$C$16:$C$43,0))/1000),\"\")","v":""},{"$f":"IFERROR(IF(OR($C$67=FALSE,LEFT($B61,3)<>\"NOX\"),BX53*INDEX('Damage costs'!$O$16:$O$43,MATCH($B61,'Damage costs'!$C$16:$C$43,0))/1000,BX53*INDEX('Damage costs'!$S$16:$S$43,MATCH($B61,'Damage costs'!$C$16:$C$43,0))/1000),\"\")","v":""},{"$f":"IFERROR(IF(OR($C$67=FALSE,LEFT($B61,3)<>\"NOX\"),BY53*INDEX('Damage costs'!$O$16:$O$43,MATCH($B61,'Damage costs'!$C$16:$C$43,0))/1000,BY53*INDEX('Damage costs'!$S$16:$S$43,MATCH($B61,'Damage costs'!$C$16:$C$43,0))/1000),\"\")","v":""},{"$f":"IFERROR(IF(OR($C$67=FALSE,LEFT($B61,3)<>\"NOX\"),BZ53*INDEX('Damage costs'!$O$16:$O$43,MATCH($B61,'Damage costs'!$C$16:$C$43,0))/1000,BZ53*INDEX('Damage costs'!$S$16:$S$43,MATCH($B61,'Damage costs'!$C$16:$C$43,0))/1000),\"\")","v":""},{"$f":"IFERROR(IF(OR($C$67=FALSE,LEFT($B61,3)<>\"NOX\"),CA53*INDEX('Damage costs'!$O$16:$O$43,MATCH($B61,'Damage costs'!$C$16:$C$43,0))/1000,CA53*INDEX('Damage costs'!$S$16:$S$43,MATCH($B61,'Damage costs'!$C$16:$C$43,0))/1000),\"\")","v":""},{"$f":"IFERROR(IF(OR($C$67=FALSE,LEFT($B61,3)<>\"NOX\"),CB53*INDEX('Damage costs'!$O$16:$O$43,MATCH($B61,'Damage costs'!$C$16:$C$43,0))/1000,CB53*INDEX('Damage costs'!$S$16:$S$43,MATCH($B61,'Damage costs'!$C$16:$C$43,0))/1000),\"\")","v":""},{"$f":"IFERROR(IF(OR($C$67=FALSE,LEFT($B61,3)<>\"NOX\"),CC53*INDEX('Damage costs'!$O$16:$O$43,MATCH($B61,'Damage costs'!$C$16:$C$43,0))/1000,CC53*INDEX('Damage costs'!$S$16:$S$43,MATCH($B61,'Damage costs'!$C$16:$C$43,0))/1000),\"\")","v":""},{"$f":"IFERROR(IF(OR($C$67=FALSE,LEFT($B61,3)<>\"NOX\"),CD53*INDEX('Damage costs'!$O$16:$O$43,MATCH($B61,'Damage costs'!$C$16:$C$43,0))/1000,CD53*INDEX('Damage costs'!$S$16:$S$43,MATCH($B61,'Damage costs'!$C$16:$C$43,0))/1000),\"\")","v":""},{"$f":"IFERROR(IF(OR($C$67=FALSE,LEFT($B61,3)<>\"NOX\"),CE53*INDEX('Damage costs'!$O$16:$O$43,MATCH($B61,'Damage costs'!$C$16:$C$43,0))/1000,CE53*INDEX('Damage costs'!$S$16:$S$43,MATCH($B61,'Damage costs'!$C$16:$C$43,0))/1000),\"\")","v":""},{"$f":"IFERROR(IF(OR($C$67=FALSE,LEFT($B61,3)<>\"NOX\"),CF53*INDEX('Damage costs'!$O$16:$O$43,MATCH($B61,'Damage costs'!$C$16:$C$43,0))/1000,CF53*INDEX('Damage costs'!$S$16:$S$43,MATCH($B61,'Damage costs'!$C$16:$C$43,0))/1000),\"\")","v":""},{"$f":"IFERROR(IF(OR($C$67=FALSE,LEFT($B61,3)<>\"NOX\"),CG53*INDEX('Damage costs'!$O$16:$O$43,MATCH($B61,'Damage costs'!$C$16:$C$43,0))/1000,CG53*INDEX('Damage costs'!$S$16:$S$43,MATCH($B61,'Damage costs'!$C$16:$C$43,0))/1000),\"\")","v":""},{"$f":"IFERROR(IF(OR($C$67=FALSE,LEFT($B61,3)<>\"NOX\"),CH53*INDEX('Damage costs'!$O$16:$O$43,MATCH($B61,'Damage costs'!$C$16:$C$43,0))/1000,CH53*INDEX('Damage costs'!$S$16:$S$43,MATCH($B61,'Damage costs'!$C$16:$C$43,0))/1000),\"\")","v":""},{"$f":"IFERROR(IF(OR($C$67=FALSE,LEFT($B61,3)<>\"NOX\"),CI53*INDEX('Damage costs'!$O$16:$O$43,MATCH($B61,'Damage costs'!$C$16:$C$43,0))/1000,CI53*INDEX('Damage costs'!$S$16:$S$43,MATCH($B61,'Damage costs'!$C$16:$C$43,0))/1000),\"\")","v":""},{"$f":"IFERROR(IF(OR($C$67=FALSE,LEFT($B61,3)<>\"NOX\"),CJ53*INDEX('Damage costs'!$O$16:$O$43,MATCH($B61,'Damage costs'!$C$16:$C$43,0))/1000,CJ53*INDEX('Damage costs'!$S$16:$S$43,MATCH($B61,'Damage costs'!$C$16:$C$43,0))/1000),\"\")","v":""},{"$f":"IFERROR(IF(OR($C$67=FALSE,LEFT($B61,3)<>\"NOX\"),CK53*INDEX('Damage costs'!$O$16:$O$43,MATCH($B61,'Damage costs'!$C$16:$C$43,0))/1000,CK53*INDEX('Damage costs'!$S$16:$S$43,MATCH($B61,'Damage costs'!$C$16:$C$43,0))/1000),\"\")","v":""},{"$f":"IFERROR(IF(OR($C$67=FALSE,LEFT($B61,3)<>\"NOX\"),CL53*INDEX('Damage costs'!$O$16:$O$43,MATCH($B61,'Damage costs'!$C$16:$C$43,0))/1000,CL53*INDEX('Damage costs'!$S$16:$S$43,MATCH($B61,'Damage costs'!$C$16:$C$43,0))/1000),\"\")","v":""},{"$f":"IFERROR(IF(OR($C$67=FALSE,LEFT($B61,3)<>\"NOX\"),CM53*INDEX('Damage costs'!$O$16:$O$43,MATCH($B61,'Damage costs'!$C$16:$C$43,0))/1000,CM53*INDEX('Damage costs'!$S$16:$S$43,MATCH($B61,'Damage costs'!$C$16:$C$43,0))/1000),\"\")","v":""},{"$f":"IFERROR(IF(OR($C$67=FALSE,LEFT($B61,3)<>\"NOX\"),CN53*INDEX('Damage costs'!$O$16:$O$43,MATCH($B61,'Damage costs'!$C$16:$C$43,0))/1000,CN53*INDEX('Damage costs'!$S$16:$S$43,MATCH($B61,'Damage costs'!$C$16:$C$43,0))/1000),\"\")","v":""},{"$f":"IFERROR(IF(OR($C$67=FALSE,LEFT($B61,3)<>\"NOX\"),CO53*INDEX('Damage costs'!$O$16:$O$43,MATCH($B61,'Damage costs'!$C$16:$C$43,0))/1000,CO53*INDEX('Damage costs'!$S$16:$S$43,MATCH($B61,'Damage costs'!$C$16:$C$43,0))/1000),\"\")","v":""},{"$f":"IFERROR(IF(OR($C$67=FALSE,LEFT($B61,3)<>\"NOX\"),CP53*INDEX('Damage costs'!$O$16:$O$43,MATCH($B61,'Damage costs'!$C$16:$C$43,0))/1000,CP53*INDEX('Damage costs'!$S$16:$S$43,MATCH($B61,'Damage costs'!$C$16:$C$43,0))/1000),\"\")","v":""},{"$f":"IFERROR(IF(OR($C$67=FALSE,LEFT($B61,3)<>\"NOX\"),CQ53*INDEX('Damage costs'!$O$16:$O$43,MATCH($B61,'Damage costs'!$C$16:$C$43,0))/1000,CQ53*INDEX('Damage costs'!$S$16:$S$43,MATCH($B61,'Damage costs'!$C$16:$C$43,0))/1000),\"\")","v":""},{"$f":"IFERROR(IF(OR($C$67=FALSE,LEFT($B61,3)<>\"NOX\"),CR53*INDEX('Damage costs'!$O$16:$O$43,MATCH($B61,'Damage costs'!$C$16:$C$43,0))/1000,CR53*INDEX('Damage costs'!$S$16:$S$43,MATCH($B61,'Damage costs'!$C$16:$C$43,0))/1000),\"\")","v":""},{"$f":"IFERROR(IF(OR($C$67=FALSE,LEFT($B61,3)<>\"NOX\"),CS53*INDEX('Damage costs'!$O$16:$O$43,MATCH($B61,'Damage costs'!$C$16:$C$43,0))/1000,CS53*INDEX('Damage costs'!$S$16:$S$43,MATCH($B61,'Damage costs'!$C$16:$C$43,0))/1000),\"\")","v":""},{"$f":"IFERROR(IF(OR($C$67=FALSE,LEFT($B61,3)<>\"NOX\"),CT53*INDEX('Damage costs'!$O$16:$O$43,MATCH($B61,'Damage costs'!$C$16:$C$43,0))/1000,CT53*INDEX('Damage costs'!$S$16:$S$43,MATCH($B61,'Damage costs'!$C$16:$C$43,0))/1000),\"\")","v":""},{"$f":"IFERROR(IF(OR($C$67=FALSE,LEFT($B61,3)<>\"NOX\"),CU53*INDEX('Damage costs'!$O$16:$O$43,MATCH($B61,'Damage costs'!$C$16:$C$43,0))/1000,CU53*INDEX('Damage costs'!$S$16:$S$43,MATCH($B61,'Damage costs'!$C$16:$C$43,0))/1000),\"\")","v":""},{"$f":"IFERROR(IF(OR($C$67=FALSE,LEFT($B61,3)<>\"NOX\"),CV53*INDEX('Damage costs'!$O$16:$O$43,MATCH($B61,'Damage costs'!$C$16:$C$43,0))/1000,CV53*INDEX('Damage costs'!$S$16:$S$43,MATCH($B61,'Damage costs'!$C$16:$C$43,0))/1000),\"\")","v":""},{"$f":"IFERROR(IF(OR($C$67=FALSE,LEFT($B61,3)<>\"NOX\"),CW53*INDEX('Damage costs'!$O$16:$O$43,MATCH($B61,'Damage costs'!$C$16:$C$43,0))/1000,CW53*INDEX('Damage costs'!$S$16:$S$43,MATCH($B61,'Damage costs'!$C$16:$C$43,0))/1000),\"\")","v":""},{"$f":"IFERROR(IF(OR($C$67=FALSE,LEFT($B61,3)<>\"NOX\"),CX53*INDEX('Damage costs'!$O$16:$O$43,MATCH($B61,'Damage costs'!$C$16:$C$43,0))/1000,CX53*INDEX('Damage costs'!$S$16:$S$43,MATCH($B61,'Damage costs'!$C$16:$C$43,0))/1000),\"\")","v":""},{"$f":"IFERROR(IF(OR($C$67=FALSE,LEFT($B61,3)<>\"NOX\"),CY53*INDEX('Damage costs'!$O$16:$O$43,MATCH($B61,'Damage costs'!$C$16:$C$43,0))/1000,CY53*INDEX('Damage costs'!$S$16:$S$43,MATCH($B61,'Damage costs'!$C$16:$C$43,0))/1000),\"\")","v":""}]
[null,0,"£000's",{"$f":"IFERROR(IF(OR($C$67=FALSE,LEFT($B62,3)<>\"NOX\"),D54*INDEX('Damage costs'!$O$16:$O$43,MATCH($B62,'Damage costs'!$C$16:$C$43,0))/1000,D54*INDEX('Damage costs'!$S$16:$S$43,MATCH($B62,'Damage costs'!$C$16:$C$43,0))/1000),\"\")","v":""},{"$f":"IFERROR(IF(OR($C$67=FALSE,LEFT($B62,3)<>\"NOX\"),E54*INDEX('Damage costs'!$O$16:$O$43,MATCH($B62,'Damage costs'!$C$16:$C$43,0))/1000,E54*INDEX('Damage costs'!$S$16:$S$43,MATCH($B62,'Damage costs'!$C$16:$C$43,0))/1000),\"\")","v":""},{"$f":"IFERROR(IF(OR($C$67=FALSE,LEFT($B62,3)<>\"NOX\"),F54*INDEX('Damage costs'!$O$16:$O$43,MATCH($B62,'Damage costs'!$C$16:$C$43,0))/1000,F54*INDEX('Damage costs'!$S$16:$S$43,MATCH($B62,'Damage costs'!$C$16:$C$43,0))/1000),\"\")","v":""},{"$f":"IFERROR(IF(OR($C$67=FALSE,LEFT($B62,3)<>\"NOX\"),G54*INDEX('Damage costs'!$O$16:$O$43,MATCH($B62,'Damage costs'!$C$16:$C$43,0))/1000,G54*INDEX('Damage costs'!$S$16:$S$43,MATCH($B62,'Damage costs'!$C$16:$C$43,0))/1000),\"\")","v":""},{"$f":"IFERROR(IF(OR($C$67=FALSE,LEFT($B62,3)<>\"NOX\"),H54*INDEX('Damage costs'!$O$16:$O$43,MATCH($B62,'Damage costs'!$C$16:$C$43,0))/1000,H54*INDEX('Damage costs'!$S$16:$S$43,MATCH($B62,'Damage costs'!$C$16:$C$43,0))/1000),\"\")","v":""},{"$f":"IFERROR(IF(OR($C$67=FALSE,LEFT($B62,3)<>\"NOX\"),I54*INDEX('Damage costs'!$O$16:$O$43,MATCH($B62,'Damage costs'!$C$16:$C$43,0))/1000,I54*INDEX('Damage costs'!$S$16:$S$43,MATCH($B62,'Damage costs'!$C$16:$C$43,0))/1000),\"\")","v":""},{"$f":"IFERROR(IF(OR($C$67=FALSE,LEFT($B62,3)<>\"NOX\"),J54*INDEX('Damage costs'!$O$16:$O$43,MATCH($B62,'Damage costs'!$C$16:$C$43,0))/1000,J54*INDEX('Damage costs'!$S$16:$S$43,MATCH($B62,'Damage costs'!$C$16:$C$43,0))/1000),\"\")","v":""},{"$f":"IFERROR(IF(OR($C$67=FALSE,LEFT($B62,3)<>\"NOX\"),K54*INDEX('Damage costs'!$O$16:$O$43,MATCH($B62,'Damage costs'!$C$16:$C$43,0))/1000,K54*INDEX('Damage costs'!$S$16:$S$43,MATCH($B62,'Damage costs'!$C$16:$C$43,0))/1000),\"\")","v":""},{"$f":"IFERROR(IF(OR($C$67=FALSE,LEFT($B62,3)<>\"NOX\"),L54*INDEX('Damage costs'!$O$16:$O$43,MATCH($B62,'Damage costs'!$C$16:$C$43,0))/1000,L54*INDEX('Damage costs'!$S$16:$S$43,MATCH($B62,'Damage costs'!$C$16:$C$43,0))/1000),\"\")","v":""},{"$f":"IFERROR(IF(OR($C$67=FALSE,LEFT($B62,3)<>\"NOX\"),M54*INDEX('Damage costs'!$O$16:$O$43,MATCH($B62,'Damage costs'!$C$16:$C$43,0))/1000,M54*INDEX('Damage costs'!$S$16:$S$43,MATCH($B62,'Damage costs'!$C$16:$C$43,0))/1000),\"\")","v":""},{"$f":"IFERROR(IF(OR($C$67=FALSE,LEFT($B62,3)<>\"NOX\"),N54*INDEX('Damage costs'!$O$16:$O$43,MATCH($B62,'Damage costs'!$C$16:$C$43,0))/1000,N54*INDEX('Damage costs'!$S$16:$S$43,MATCH($B62,'Damage costs'!$C$16:$C$43,0))/1000),\"\")","v":""},{"$f":"IFERROR(IF(OR($C$67=FALSE,LEFT($B62,3)<>\"NOX\"),O54*INDEX('Damage costs'!$O$16:$O$43,MATCH($B62,'Damage costs'!$C$16:$C$43,0))/1000,O54*INDEX('Damage costs'!$S$16:$S$43,MATCH($B62,'Damage costs'!$C$16:$C$43,0))/1000),\"\")","v":""},{"$f":"IFERROR(IF(OR($C$67=FALSE,LEFT($B62,3)<>\"NOX\"),P54*INDEX('Damage costs'!$O$16:$O$43,MATCH($B62,'Damage costs'!$C$16:$C$43,0))/1000,P54*INDEX('Damage costs'!$S$16:$S$43,MATCH($B62,'Damage costs'!$C$16:$C$43,0))/1000),\"\")","v":""},{"$f":"IFERROR(IF(OR($C$67=FALSE,LEFT($B62,3)<>\"NOX\"),Q54*INDEX('Damage costs'!$O$16:$O$43,MATCH($B62,'Damage costs'!$C$16:$C$43,0))/1000,Q54*INDEX('Damage costs'!$S$16:$S$43,MATCH($B62,'Damage costs'!$C$16:$C$43,0))/1000),\"\")","v":""},{"$f":"IFERROR(IF(OR($C$67=FALSE,LEFT($B62,3)<>\"NOX\"),R54*INDEX('Damage costs'!$O$16:$O$43,MATCH($B62,'Damage costs'!$C$16:$C$43,0))/1000,R54*INDEX('Damage costs'!$S$16:$S$43,MATCH($B62,'Damage costs'!$C$16:$C$43,0))/1000),\"\")","v":""},{"$f":"IFERROR(IF(OR($C$67=FALSE,LEFT($B62,3)<>\"NOX\"),S54*INDEX('Damage costs'!$O$16:$O$43,MATCH($B62,'Damage costs'!$C$16:$C$43,0))/1000,S54*INDEX('Damage costs'!$S$16:$S$43,MATCH($B62,'Damage costs'!$C$16:$C$43,0))/1000),\"\")","v":""},{"$f":"IFERROR(IF(OR($C$67=FALSE,LEFT($B62,3)<>\"NOX\"),T54*INDEX('Damage costs'!$O$16:$O$43,MATCH($B62,'Damage costs'!$C$16:$C$43,0))/1000,T54*INDEX('Damage costs'!$S$16:$S$43,MATCH($B62,'Damage costs'!$C$16:$C$43,0))/1000),\"\")","v":""},{"$f":"IFERROR(IF(OR($C$67=FALSE,LEFT($B62,3)<>\"NOX\"),U54*INDEX('Damage costs'!$O$16:$O$43,MATCH($B62,'Damage costs'!$C$16:$C$43,0))/1000,U54*INDEX('Damage costs'!$S$16:$S$43,MATCH($B62,'Damage costs'!$C$16:$C$43,0))/1000),\"\")","v":""},{"$f":"IFERROR(IF(OR($C$67=FALSE,LEFT($B62,3)<>\"NOX\"),V54*INDEX('Damage costs'!$O$16:$O$43,MATCH($B62,'Damage costs'!$C$16:$C$43,0))/1000,V54*INDEX('Damage costs'!$S$16:$S$43,MATCH($B62,'Damage costs'!$C$16:$C$43,0))/1000),\"\")","v":""},{"$f":"IFERROR(IF(OR($C$67=FALSE,LEFT($B62,3)<>\"NOX\"),W54*INDEX('Damage costs'!$O$16:$O$43,MATCH($B62,'Damage costs'!$C$16:$C$43,0))/1000,W54*INDEX('Damage costs'!$S$16:$S$43,MATCH($B62,'Damage costs'!$C$16:$C$43,0))/1000),\"\")","v":""},{"$f":"IFERROR(IF(OR($C$67=FALSE,LEFT($B62,3)<>\"NOX\"),X54*INDEX('Damage costs'!$O$16:$O$43,MATCH($B62,'Damage costs'!$C$16:$C$43,0))/1000,X54*INDEX('Damage costs'!$S$16:$S$43,MATCH($B62,'Damage costs'!$C$16:$C$43,0))/1000),\"\")","v":""},{"$f":"IFERROR(IF(OR($C$67=FALSE,LEFT($B62,3)<>\"NOX\"),Y54*INDEX('Damage costs'!$O$16:$O$43,MATCH($B62,'Damage costs'!$C$16:$C$43,0))/1000,Y54*INDEX('Damage costs'!$S$16:$S$43,MATCH($B62,'Damage costs'!$C$16:$C$43,0))/1000),\"\")","v":""},{"$f":"IFERROR(IF(OR($C$67=FALSE,LEFT($B62,3)<>\"NOX\"),Z54*INDEX('Damage costs'!$O$16:$O$43,MATCH($B62,'Damage costs'!$C$16:$C$43,0))/1000,Z54*INDEX('Damage costs'!$S$16:$S$43,MATCH($B62,'Damage costs'!$C$16:$C$43,0))/1000),\"\")","v":""},{"$f":"IFERROR(IF(OR($C$67=FALSE,LEFT($B62,3)<>\"NOX\"),AA54*INDEX('Damage costs'!$O$16:$O$43,MATCH($B62,'Damage costs'!$C$16:$C$43,0))/1000,AA54*INDEX('Damage costs'!$S$16:$S$43,MATCH($B62,'Damage costs'!$C$16:$C$43,0))/1000),\"\")","v":""},{"$f":"IFERROR(IF(OR($C$67=FALSE,LEFT($B62,3)<>\"NOX\"),AB54*INDEX('Damage costs'!$O$16:$O$43,MATCH($B62,'Damage costs'!$C$16:$C$43,0))/1000,AB54*INDEX('Damage costs'!$S$16:$S$43,MATCH($B62,'Damage costs'!$C$16:$C$43,0))/1000),\"\")","v":""},{"$f":"IFERROR(IF(OR($C$67=FALSE,LEFT($B62,3)<>\"NOX\"),AC54*INDEX('Damage costs'!$O$16:$O$43,MATCH($B62,'Damage costs'!$C$16:$C$43,0))/1000,AC54*INDEX('Damage costs'!$S$16:$S$43,MATCH($B62,'Damage costs'!$C$16:$C$43,0))/1000),\"\")","v":""},{"$f":"IFERROR(IF(OR($C$67=FALSE,LEFT($B62,3)<>\"NOX\"),AD54*INDEX('Damage costs'!$O$16:$O$43,MATCH($B62,'Damage costs'!$C$16:$C$43,0))/1000,AD54*INDEX('Damage costs'!$S$16:$S$43,MATCH($B62,'Damage costs'!$C$16:$C$43,0))/1000),\"\")","v":""},{"$f":"IFERROR(IF(OR($C$67=FALSE,LEFT($B62,3)<>\"NOX\"),AE54*INDEX('Damage costs'!$O$16:$O$43,MATCH($B62,'Damage costs'!$C$16:$C$43,0))/1000,AE54*INDEX('Damage costs'!$S$16:$S$43,MATCH($B62,'Damage costs'!$C$16:$C$43,0))/1000),\"\")","v":""},{"$f":"IFERROR(IF(OR($C$67=FALSE,LEFT($B62,3)<>\"NOX\"),AF54*INDEX('Damage costs'!$O$16:$O$43,MATCH($B62,'Damage costs'!$C$16:$C$43,0))/1000,AF54*INDEX('Damage costs'!$S$16:$S$43,MATCH($B62,'Damage costs'!$C$16:$C$43,0))/1000),\"\")","v":""},{"$f":"IFERROR(IF(OR($C$67=FALSE,LEFT($B62,3)<>\"NOX\"),AG54*INDEX('Damage costs'!$O$16:$O$43,MATCH($B62,'Damage costs'!$C$16:$C$43,0))/1000,AG54*INDEX('Damage costs'!$S$16:$S$43,MATCH($B62,'Damage costs'!$C$16:$C$43,0))/1000),\"\")","v":""},{"$f":"IFERROR(IF(OR($C$67=FALSE,LEFT($B62,3)<>\"NOX\"),AH54*INDEX('Damage costs'!$O$16:$O$43,MATCH($B62,'Damage costs'!$C$16:$C$43,0))/1000,AH54*INDEX('Damage costs'!$S$16:$S$43,MATCH($B62,'Damage costs'!$C$16:$C$43,0))/1000),\"\")","v":""},{"$f":"IFERROR(IF(OR($C$67=FALSE,LEFT($B62,3)<>\"NOX\"),AI54*INDEX('Damage costs'!$O$16:$O$43,MATCH($B62,'Damage costs'!$C$16:$C$43,0))/1000,AI54*INDEX('Damage costs'!$S$16:$S$43,MATCH($B62,'Damage costs'!$C$16:$C$43,0))/1000),\"\")","v":""},{"$f":"IFERROR(IF(OR($C$67=FALSE,LEFT($B62,3)<>\"NOX\"),AJ54*INDEX('Damage costs'!$O$16:$O$43,MATCH($B62,'Damage costs'!$C$16:$C$43,0))/1000,AJ54*INDEX('Damage costs'!$S$16:$S$43,MATCH($B62,'Damage costs'!$C$16:$C$43,0))/1000),\"\")","v":""},{"$f":"IFERROR(IF(OR($C$67=FALSE,LEFT($B62,3)<>\"NOX\"),AK54*INDEX('Damage costs'!$O$16:$O$43,MATCH($B62,'Damage costs'!$C$16:$C$43,0))/1000,AK54*INDEX('Damage costs'!$S$16:$S$43,MATCH($B62,'Damage costs'!$C$16:$C$43,0))/1000),\"\")","v":""},{"$f":"IFERROR(IF(OR($C$67=FALSE,LEFT($B62,3)<>\"NOX\"),AL54*INDEX('Damage costs'!$O$16:$O$43,MATCH($B62,'Damage costs'!$C$16:$C$43,0))/1000,AL54*INDEX('Damage costs'!$S$16:$S$43,MATCH($B62,'Damage costs'!$C$16:$C$43,0))/1000),\"\")","v":""},{"$f":"IFERROR(IF(OR($C$67=FALSE,LEFT($B62,3)<>\"NOX\"),AM54*INDEX('Damage costs'!$O$16:$O$43,MATCH($B62,'Damage costs'!$C$16:$C$43,0))/1000,AM54*INDEX('Damage costs'!$S$16:$S$43,MATCH($B62,'Damage costs'!$C$16:$C$43,0))/1000),\"\")","v":""},{"$f":"IFERROR(IF(OR($C$67=FALSE,LEFT($B62,3)<>\"NOX\"),AN54*INDEX('Damage costs'!$O$16:$O$43,MATCH($B62,'Damage costs'!$C$16:$C$43,0))/1000,AN54*INDEX('Damage costs'!$S$16:$S$43,MATCH($B62,'Damage costs'!$C$16:$C$43,0))/1000),\"\")","v":""},{"$f":"IFERROR(IF(OR($C$67=FALSE,LEFT($B62,3)<>\"NOX\"),AO54*INDEX('Damage costs'!$O$16:$O$43,MATCH($B62,'Damage costs'!$C$16:$C$43,0))/1000,AO54*INDEX('Damage costs'!$S$16:$S$43,MATCH($B62,'Damage costs'!$C$16:$C$43,0))/1000),\"\")","v":""},{"$f":"IFERROR(IF(OR($C$67=FALSE,LEFT($B62,3)<>\"NOX\"),AP54*INDEX('Damage costs'!$O$16:$O$43,MATCH($B62,'Damage costs'!$C$16:$C$43,0))/1000,AP54*INDEX('Damage costs'!$S$16:$S$43,MATCH($B62,'Damage costs'!$C$16:$C$43,0))/1000),\"\")","v":""},{"$f":"IFERROR(IF(OR($C$67=FALSE,LEFT($B62,3)<>\"NOX\"),AQ54*INDEX('Damage costs'!$O$16:$O$43,MATCH($B62,'Damage costs'!$C$16:$C$43,0))/1000,AQ54*INDEX('Damage costs'!$S$16:$S$43,MATCH($B62,'Damage costs'!$C$16:$C$43,0))/1000),\"\")","v":""},{"$f":"IFERROR(IF(OR($C$67=FALSE,LEFT($B62,3)<>\"NOX\"),AR54*INDEX('Damage costs'!$O$16:$O$43,MATCH($B62,'Damage costs'!$C$16:$C$43,0))/1000,AR54*INDEX('Damage costs'!$S$16:$S$43,MATCH($B62,'Damage costs'!$C$16:$C$43,0))/1000),\"\")","v":""},{"$f":"IFERROR(IF(OR($C$67=FALSE,LEFT($B62,3)<>\"NOX\"),AS54*INDEX('Damage costs'!$O$16:$O$43,MATCH($B62,'Damage costs'!$C$16:$C$43,0))/1000,AS54*INDEX('Damage costs'!$S$16:$S$43,MATCH($B62,'Damage costs'!$C$16:$C$43,0))/1000),\"\")","v":""},{"$f":"IFERROR(IF(OR($C$67=FALSE,LEFT($B62,3)<>\"NOX\"),AT54*INDEX('Damage costs'!$O$16:$O$43,MATCH($B62,'Damage costs'!$C$16:$C$43,0))/1000,AT54*INDEX('Damage costs'!$S$16:$S$43,MATCH($B62,'Damage costs'!$C$16:$C$43,0))/1000),\"\")","v":""},{"$f":"IFERROR(IF(OR($C$67=FALSE,LEFT($B62,3)<>\"NOX\"),AU54*INDEX('Damage costs'!$O$16:$O$43,MATCH($B62,'Damage costs'!$C$16:$C$43,0))/1000,AU54*INDEX('Damage costs'!$S$16:$S$43,MATCH($B62,'Damage costs'!$C$16:$C$43,0))/1000),\"\")","v":""},{"$f":"IFERROR(IF(OR($C$67=FALSE,LEFT($B62,3)<>\"NOX\"),AV54*INDEX('Damage costs'!$O$16:$O$43,MATCH($B62,'Damage costs'!$C$16:$C$43,0))/1000,AV54*INDEX('Damage costs'!$S$16:$S$43,MATCH($B62,'Damage costs'!$C$16:$C$43,0))/1000),\"\")","v":""},{"$f":"IFERROR(IF(OR($C$67=FALSE,LEFT($B62,3)<>\"NOX\"),AW54*INDEX('Damage costs'!$O$16:$O$43,MATCH($B62,'Damage costs'!$C$16:$C$43,0))/1000,AW54*INDEX('Damage costs'!$S$16:$S$43,MATCH($B62,'Damage costs'!$C$16:$C$43,0))/1000),\"\")","v":""},{"$f":"IFERROR(IF(OR($C$67=FALSE,LEFT($B62,3)<>\"NOX\"),AX54*INDEX('Damage costs'!$O$16:$O$43,MATCH($B62,'Damage costs'!$C$16:$C$43,0))/1000,AX54*INDEX('Damage costs'!$S$16:$S$43,MATCH($B62,'Damage costs'!$C$16:$C$43,0))/1000),\"\")","v":""},{"$f":"IFERROR(IF(OR($C$67=FALSE,LEFT($B62,3)<>\"NOX\"),AY54*INDEX('Damage costs'!$O$16:$O$43,MATCH($B62,'Damage costs'!$C$16:$C$43,0))/1000,AY54*INDEX('Damage costs'!$S$16:$S$43,MATCH($B62,'Damage costs'!$C$16:$C$43,0))/1000),\"\")","v":""},{"$f":"IFERROR(IF(OR($C$67=FALSE,LEFT($B62,3)<>\"NOX\"),AZ54*INDEX('Damage costs'!$O$16:$O$43,MATCH($B62,'Damage costs'!$C$16:$C$43,0))/1000,AZ54*INDEX('Damage costs'!$S$16:$S$43,MATCH($B62,'Damage costs'!$C$16:$C$43,0))/1000),\"\")","v":""},{"$f":"IFERROR(IF(OR($C$67=FALSE,LEFT($B62,3)<>\"NOX\"),BA54*INDEX('Damage costs'!$O$16:$O$43,MATCH($B62,'Damage costs'!$C$16:$C$43,0))/1000,BA54*INDEX('Damage costs'!$S$16:$S$43,MATCH($B62,'Damage costs'!$C$16:$C$43,0))/1000),\"\")","v":""},{"$f":"IFERROR(IF(OR($C$67=FALSE,LEFT($B62,3)<>\"NOX\"),BB54*INDEX('Damage costs'!$O$16:$O$43,MATCH($B62,'Damage costs'!$C$16:$C$43,0))/1000,BB54*INDEX('Damage costs'!$S$16:$S$43,MATCH($B62,'Damage costs'!$C$16:$C$43,0))/1000),\"\")","v":""},{"$f":"IFERROR(IF(OR($C$67=FALSE,LEFT($B62,3)<>\"NOX\"),BC54*INDEX('Damage costs'!$O$16:$O$43,MATCH($B62,'Damage costs'!$C$16:$C$43,0))/1000,BC54*INDEX('Damage costs'!$S$16:$S$43,MATCH($B62,'Damage costs'!$C$16:$C$43,0))/1000),\"\")","v":""},{"$f":"IFERROR(IF(OR($C$67=FALSE,LEFT($B62,3)<>\"NOX\"),BD54*INDEX('Damage costs'!$O$16:$O$43,MATCH($B62,'Damage costs'!$C$16:$C$43,0))/1000,BD54*INDEX('Damage costs'!$S$16:$S$43,MATCH($B62,'Damage costs'!$C$16:$C$43,0))/1000),\"\")","v":""},{"$f":"IFERROR(IF(OR($C$67=FALSE,LEFT($B62,3)<>\"NOX\"),BE54*INDEX('Damage costs'!$O$16:$O$43,MATCH($B62,'Damage costs'!$C$16:$C$43,0))/1000,BE54*INDEX('Damage costs'!$S$16:$S$43,MATCH($B62,'Damage costs'!$C$16:$C$43,0))/1000),\"\")","v":""},{"$f":"IFERROR(IF(OR($C$67=FALSE,LEFT($B62,3)<>\"NOX\"),BF54*INDEX('Damage costs'!$O$16:$O$43,MATCH($B62,'Damage costs'!$C$16:$C$43,0))/1000,BF54*INDEX('Damage costs'!$S$16:$S$43,MATCH($B62,'Damage costs'!$C$16:$C$43,0))/1000),\"\")","v":""},{"$f":"IFERROR(IF(OR($C$67=FALSE,LEFT($B62,3)<>\"NOX\"),BG54*INDEX('Damage costs'!$O$16:$O$43,MATCH($B62,'Damage costs'!$C$16:$C$43,0))/1000,BG54*INDEX('Damage costs'!$S$16:$S$43,MATCH($B62,'Damage costs'!$C$16:$C$43,0))/1000),\"\")","v":""},{"$f":"IFERROR(IF(OR($C$67=FALSE,LEFT($B62,3)<>\"NOX\"),BH54*INDEX('Damage costs'!$O$16:$O$43,MATCH($B62,'Damage costs'!$C$16:$C$43,0))/1000,BH54*INDEX('Damage costs'!$S$16:$S$43,MATCH($B62,'Damage costs'!$C$16:$C$43,0))/1000),\"\")","v":""},{"$f":"IFERROR(IF(OR($C$67=FALSE,LEFT($B62,3)<>\"NOX\"),BI54*INDEX('Damage costs'!$O$16:$O$43,MATCH($B62,'Damage costs'!$C$16:$C$43,0))/1000,BI54*INDEX('Damage costs'!$S$16:$S$43,MATCH($B62,'Damage costs'!$C$16:$C$43,0))/1000),\"\")","v":""},{"$f":"IFERROR(IF(OR($C$67=FALSE,LEFT($B62,3)<>\"NOX\"),BJ54*INDEX('Damage costs'!$O$16:$O$43,MATCH($B62,'Damage costs'!$C$16:$C$43,0))/1000,BJ54*INDEX('Damage costs'!$S$16:$S$43,MATCH($B62,'Damage costs'!$C$16:$C$43,0))/1000),\"\")","v":""},{"$f":"IFERROR(IF(OR($C$67=FALSE,LEFT($B62,3)<>\"NOX\"),BK54*INDEX('Damage costs'!$O$16:$O$43,MATCH($B62,'Damage costs'!$C$16:$C$43,0))/1000,BK54*INDEX('Damage costs'!$S$16:$S$43,MATCH($B62,'Damage costs'!$C$16:$C$43,0))/1000),\"\")","v":""},{"$f":"IFERROR(IF(OR($C$67=FALSE,LEFT($B62,3)<>\"NOX\"),BL54*INDEX('Damage costs'!$O$16:$O$43,MATCH($B62,'Damage costs'!$C$16:$C$43,0))/1000,BL54*INDEX('Damage costs'!$S$16:$S$43,MATCH($B62,'Damage costs'!$C$16:$C$43,0))/1000),\"\")","v":""},{"$f":"IFERROR(IF(OR($C$67=FALSE,LEFT($B62,3)<>\"NOX\"),BM54*INDEX('Damage costs'!$O$16:$O$43,MATCH($B62,'Damage costs'!$C$16:$C$43,0))/1000,BM54*INDEX('Damage costs'!$S$16:$S$43,MATCH($B62,'Damage costs'!$C$16:$C$43,0))/1000),\"\")","v":""},{"$f":"IFERROR(IF(OR($C$67=FALSE,LEFT($B62,3)<>\"NOX\"),BN54*INDEX('Damage costs'!$O$16:$O$43,MATCH($B62,'Damage costs'!$C$16:$C$43,0))/1000,BN54*INDEX('Damage costs'!$S$16:$S$43,MATCH($B62,'Damage costs'!$C$16:$C$43,0))/1000),\"\")","v":""},{"$f":"IFERROR(IF(OR($C$67=FALSE,LEFT($B62,3)<>\"NOX\"),BO54*INDEX('Damage costs'!$O$16:$O$43,MATCH($B62,'Damage costs'!$C$16:$C$43,0))/1000,BO54*INDEX('Damage costs'!$S$16:$S$43,MATCH($B62,'Damage costs'!$C$16:$C$43,0))/1000),\"\")","v":""},{"$f":"IFERROR(IF(OR($C$67=FALSE,LEFT($B62,3)<>\"NOX\"),BP54*INDEX('Damage costs'!$O$16:$O$43,MATCH($B62,'Damage costs'!$C$16:$C$43,0))/1000,BP54*INDEX('Damage costs'!$S$16:$S$43,MATCH($B62,'Damage costs'!$C$16:$C$43,0))/1000),\"\")","v":""},{"$f":"IFERROR(IF(OR($C$67=FALSE,LEFT($B62,3)<>\"NOX\"),BQ54*INDEX('Damage costs'!$O$16:$O$43,MATCH($B62,'Damage costs'!$C$16:$C$43,0))/1000,BQ54*INDEX('Damage costs'!$S$16:$S$43,MATCH($B62,'Damage costs'!$C$16:$C$43,0))/1000),\"\")","v":""},{"$f":"IFERROR(IF(OR($C$67=FALSE,LEFT($B62,3)<>\"NOX\"),BR54*INDEX('Damage costs'!$O$16:$O$43,MATCH($B62,'Damage costs'!$C$16:$C$43,0))/1000,BR54*INDEX('Damage costs'!$S$16:$S$43,MATCH($B62,'Damage costs'!$C$16:$C$43,0))/1000),\"\")","v":""},{"$f":"IFERROR(IF(OR($C$67=FALSE,LEFT($B62,3)<>\"NOX\"),BS54*INDEX('Damage costs'!$O$16:$O$43,MATCH($B62,'Damage costs'!$C$16:$C$43,0))/1000,BS54*INDEX('Damage costs'!$S$16:$S$43,MATCH($B62,'Damage costs'!$C$16:$C$43,0))/1000),\"\")","v":""},{"$f":"IFERROR(IF(OR($C$67=FALSE,LEFT($B62,3)<>\"NOX\"),BT54*INDEX('Damage costs'!$O$16:$O$43,MATCH($B62,'Damage costs'!$C$16:$C$43,0))/1000,BT54*INDEX('Damage costs'!$S$16:$S$43,MATCH($B62,'Damage costs'!$C$16:$C$43,0))/1000),\"\")","v":""},{"$f":"IFERROR(IF(OR($C$67=FALSE,LEFT($B62,3)<>\"NOX\"),BU54*INDEX('Damage costs'!$O$16:$O$43,MATCH($B62,'Damage costs'!$C$16:$C$43,0))/1000,BU54*INDEX('Damage costs'!$S$16:$S$43,MATCH($B62,'Damage costs'!$C$16:$C$43,0))/1000),\"\")","v":""},{"$f":"IFERROR(IF(OR($C$67=FALSE,LEFT($B62,3)<>\"NOX\"),BV54*INDEX('Damage costs'!$O$16:$O$43,MATCH($B62,'Damage costs'!$C$16:$C$43,0))/1000,BV54*INDEX('Damage costs'!$S$16:$S$43,MATCH($B62,'Damage costs'!$C$16:$C$43,0))/1000),\"\")","v":""},{"$f":"IFERROR(IF(OR($C$67=FALSE,LEFT($B62,3)<>\"NOX\"),BW54*INDEX('Damage costs'!$O$16:$O$43,MATCH($B62,'Damage costs'!$C$16:$C$43,0))/1000,BW54*INDEX('Damage costs'!$S$16:$S$43,MATCH($B62,'Damage costs'!$C$16:$C$43,0))/1000),\"\")","v":""},{"$f":"IFERROR(IF(OR($C$67=FALSE,LEFT($B62,3)<>\"NOX\"),BX54*INDEX('Damage costs'!$O$16:$O$43,MATCH($B62,'Damage costs'!$C$16:$C$43,0))/1000,BX54*INDEX('Damage costs'!$S$16:$S$43,MATCH($B62,'Damage costs'!$C$16:$C$43,0))/1000),\"\")","v":""},{"$f":"IFERROR(IF(OR($C$67=FALSE,LEFT($B62,3)<>\"NOX\"),BY54*INDEX('Damage costs'!$O$16:$O$43,MATCH($B62,'Damage costs'!$C$16:$C$43,0))/1000,BY54*INDEX('Damage costs'!$S$16:$S$43,MATCH($B62,'Damage costs'!$C$16:$C$43,0))/1000),\"\")","v":""},{"$f":"IFERROR(IF(OR($C$67=FALSE,LEFT($B62,3)<>\"NOX\"),BZ54*INDEX('Damage costs'!$O$16:$O$43,MATCH($B62,'Damage costs'!$C$16:$C$43,0))/1000,BZ54*INDEX('Damage costs'!$S$16:$S$43,MATCH($B62,'Damage costs'!$C$16:$C$43,0))/1000),\"\")","v":""},{"$f":"IFERROR(IF(OR($C$67=FALSE,LEFT($B62,3)<>\"NOX\"),CA54*INDEX('Damage costs'!$O$16:$O$43,MATCH($B62,'Damage costs'!$C$16:$C$43,0))/1000,CA54*INDEX('Damage costs'!$S$16:$S$43,MATCH($B62,'Damage costs'!$C$16:$C$43,0))/1000),\"\")","v":""},{"$f":"IFERROR(IF(OR($C$67=FALSE,LEFT($B62,3)<>\"NOX\"),CB54*INDEX('Damage costs'!$O$16:$O$43,MATCH($B62,'Damage costs'!$C$16:$C$43,0))/1000,CB54*INDEX('Damage costs'!$S$16:$S$43,MATCH($B62,'Damage costs'!$C$16:$C$43,0))/1000),\"\")","v":""},{"$f":"IFERROR(IF(OR($C$67=FALSE,LEFT($B62,3)<>\"NOX\"),CC54*INDEX('Damage costs'!$O$16:$O$43,MATCH($B62,'Damage costs'!$C$16:$C$43,0))/1000,CC54*INDEX('Damage costs'!$S$16:$S$43,MATCH($B62,'Damage costs'!$C$16:$C$43,0))/1000),\"\")","v":""},{"$f":"IFERROR(IF(OR($C$67=FALSE,LEFT($B62,3)<>\"NOX\"),CD54*INDEX('Damage costs'!$O$16:$O$43,MATCH($B62,'Damage costs'!$C$16:$C$43,0))/1000,CD54*INDEX('Damage costs'!$S$16:$S$43,MATCH($B62,'Damage costs'!$C$16:$C$43,0))/1000),\"\")","v":""},{"$f":"IFERROR(IF(OR($C$67=FALSE,LEFT($B62,3)<>\"NOX\"),CE54*INDEX('Damage costs'!$O$16:$O$43,MATCH($B62,'Damage costs'!$C$16:$C$43,0))/1000,CE54*INDEX('Damage costs'!$S$16:$S$43,MATCH($B62,'Damage costs'!$C$16:$C$43,0))/1000),\"\")","v":""},{"$f":"IFERROR(IF(OR($C$67=FALSE,LEFT($B62,3)<>\"NOX\"),CF54*INDEX('Damage costs'!$O$16:$O$43,MATCH($B62,'Damage costs'!$C$16:$C$43,0))/1000,CF54*INDEX('Damage costs'!$S$16:$S$43,MATCH($B62,'Damage costs'!$C$16:$C$43,0))/1000),\"\")","v":""},{"$f":"IFERROR(IF(OR($C$67=FALSE,LEFT($B62,3)<>\"NOX\"),CG54*INDEX('Damage costs'!$O$16:$O$43,MATCH($B62,'Damage costs'!$C$16:$C$43,0))/1000,CG54*INDEX('Damage costs'!$S$16:$S$43,MATCH($B62,'Damage costs'!$C$16:$C$43,0))/1000),\"\")","v":""},{"$f":"IFERROR(IF(OR($C$67=FALSE,LEFT($B62,3)<>\"NOX\"),CH54*INDEX('Damage costs'!$O$16:$O$43,MATCH($B62,'Damage costs'!$C$16:$C$43,0))/1000,CH54*INDEX('Damage costs'!$S$16:$S$43,MATCH($B62,'Damage costs'!$C$16:$C$43,0))/1000),\"\")","v":""},{"$f":"IFERROR(IF(OR($C$67=FALSE,LEFT($B62,3)<>\"NOX\"),CI54*INDEX('Damage costs'!$O$16:$O$43,MATCH($B62,'Damage costs'!$C$16:$C$43,0))/1000,CI54*INDEX('Damage costs'!$S$16:$S$43,MATCH($B62,'Damage costs'!$C$16:$C$43,0))/1000),\"\")","v":""},{"$f":"IFERROR(IF(OR($C$67=FALSE,LEFT($B62,3)<>\"NOX\"),CJ54*INDEX('Damage costs'!$O$16:$O$43,MATCH($B62,'Damage costs'!$C$16:$C$43,0))/1000,CJ54*INDEX('Damage costs'!$S$16:$S$43,MATCH($B62,'Damage costs'!$C$16:$C$43,0))/1000),\"\")","v":""},{"$f":"IFERROR(IF(OR($C$67=FALSE,LEFT($B62,3)<>\"NOX\"),CK54*INDEX('Damage costs'!$O$16:$O$43,MATCH($B62,'Damage costs'!$C$16:$C$43,0))/1000,CK54*INDEX('Damage costs'!$S$16:$S$43,MATCH($B62,'Damage costs'!$C$16:$C$43,0))/1000),\"\")","v":""},{"$f":"IFERROR(IF(OR($C$67=FALSE,LEFT($B62,3)<>\"NOX\"),CL54*INDEX('Damage costs'!$O$16:$O$43,MATCH($B62,'Damage costs'!$C$16:$C$43,0))/1000,CL54*INDEX('Damage costs'!$S$16:$S$43,MATCH($B62,'Damage costs'!$C$16:$C$43,0))/1000),\"\")","v":""},{"$f":"IFERROR(IF(OR($C$67=FALSE,LEFT($B62,3)<>\"NOX\"),CM54*INDEX('Damage costs'!$O$16:$O$43,MATCH($B62,'Damage costs'!$C$16:$C$43,0))/1000,CM54*INDEX('Damage costs'!$S$16:$S$43,MATCH($B62,'Damage costs'!$C$16:$C$43,0))/1000),\"\")","v":""},{"$f":"IFERROR(IF(OR($C$67=FALSE,LEFT($B62,3)<>\"NOX\"),CN54*INDEX('Damage costs'!$O$16:$O$43,MATCH($B62,'Damage costs'!$C$16:$C$43,0))/1000,CN54*INDEX('Damage costs'!$S$16:$S$43,MATCH($B62,'Damage costs'!$C$16:$C$43,0))/1000),\"\")","v":""},{"$f":"IFERROR(IF(OR($C$67=FALSE,LEFT($B62,3)<>\"NOX\"),CO54*INDEX('Damage costs'!$O$16:$O$43,MATCH($B62,'Damage costs'!$C$16:$C$43,0))/1000,CO54*INDEX('Damage costs'!$S$16:$S$43,MATCH($B62,'Damage costs'!$C$16:$C$43,0))/1000),\"\")","v":""},{"$f":"IFERROR(IF(OR($C$67=FALSE,LEFT($B62,3)<>\"NOX\"),CP54*INDEX('Damage costs'!$O$16:$O$43,MATCH($B62,'Damage costs'!$C$16:$C$43,0))/1000,CP54*INDEX('Damage costs'!$S$16:$S$43,MATCH($B62,'Damage costs'!$C$16:$C$43,0))/1000),\"\")","v":""},{"$f":"IFERROR(IF(OR($C$67=FALSE,LEFT($B62,3)<>\"NOX\"),CQ54*INDEX('Damage costs'!$O$16:$O$43,MATCH($B62,'Damage costs'!$C$16:$C$43,0))/1000,CQ54*INDEX('Damage costs'!$S$16:$S$43,MATCH($B62,'Damage costs'!$C$16:$C$43,0))/1000),\"\")","v":""},{"$f":"IFERROR(IF(OR($C$67=FALSE,LEFT($B62,3)<>\"NOX\"),CR54*INDEX('Damage costs'!$O$16:$O$43,MATCH($B62,'Damage costs'!$C$16:$C$43,0))/1000,CR54*INDEX('Damage costs'!$S$16:$S$43,MATCH($B62,'Damage costs'!$C$16:$C$43,0))/1000),\"\")","v":""},{"$f":"IFERROR(IF(OR($C$67=FALSE,LEFT($B62,3)<>\"NOX\"),CS54*INDEX('Damage costs'!$O$16:$O$43,MATCH($B62,'Damage costs'!$C$16:$C$43,0))/1000,CS54*INDEX('Damage costs'!$S$16:$S$43,MATCH($B62,'Damage costs'!$C$16:$C$43,0))/1000),\"\")","v":""},{"$f":"IFERROR(IF(OR($C$67=FALSE,LEFT($B62,3)<>\"NOX\"),CT54*INDEX('Damage costs'!$O$16:$O$43,MATCH($B62,'Damage costs'!$C$16:$C$43,0))/1000,CT54*INDEX('Damage costs'!$S$16:$S$43,MATCH($B62,'Damage costs'!$C$16:$C$43,0))/1000),\"\")","v":""},{"$f":"IFERROR(IF(OR($C$67=FALSE,LEFT($B62,3)<>\"NOX\"),CU54*INDEX('Damage costs'!$O$16:$O$43,MATCH($B62,'Damage costs'!$C$16:$C$43,0))/1000,CU54*INDEX('Damage costs'!$S$16:$S$43,MATCH($B62,'Damage costs'!$C$16:$C$43,0))/1000),\"\")","v":""},{"$f":"IFERROR(IF(OR($C$67=FALSE,LEFT($B62,3)<>\"NOX\"),CV54*INDEX('Damage costs'!$O$16:$O$43,MATCH($B62,'Damage costs'!$C$16:$C$43,0))/1000,CV54*INDEX('Damage costs'!$S$16:$S$43,MATCH($B62,'Damage costs'!$C$16:$C$43,0))/1000),\"\")","v":""},{"$f":"IFERROR(IF(OR($C$67=FALSE,LEFT($B62,3)<>\"NOX\"),CW54*INDEX('Damage costs'!$O$16:$O$43,MATCH($B62,'Damage costs'!$C$16:$C$43,0))/1000,CW54*INDEX('Damage costs'!$S$16:$S$43,MATCH($B62,'Damage costs'!$C$16:$C$43,0))/1000),\"\")","v":""},{"$f":"IFERROR(IF(OR($C$67=FALSE,LEFT($B62,3)<>\"NOX\"),CX54*INDEX('Damage costs'!$O$16:$O$43,MATCH($B62,'Damage costs'!$C$16:$C$43,0))/1000,CX54*INDEX('Damage costs'!$S$16:$S$43,MATCH($B62,'Damage costs'!$C$16:$C$43,0))/1000),\"\")","v":""},{"$f":"IFERROR(IF(OR($C$67=FALSE,LEFT($B62,3)<>\"NOX\"),CY54*INDEX('Damage costs'!$O$16:$O$43,MATCH($B62,'Damage costs'!$C$16:$C$43,0))/1000,CY54*INDEX('Damage costs'!$S$16:$S$43,MATCH($B62,'Damage costs'!$C$16:$C$43,0))/1000),\"\")","v":""}]
[null,0,"£000's",{"$f":"IFERROR(IF(OR($C$67=FALSE,LEFT($B63,3)<>\"NOX\"),D55*INDEX('Damage costs'!$O$16:$O$43,MATCH($B63,'Damage costs'!$C$16:$C$43,0))/1000,D55*INDEX('Damage costs'!$S$16:$S$43,MATCH($B63,'Damage costs'!$C$16:$C$43,0))/1000),\"\")","v":""},{"$f":"IFERROR(IF(OR($C$67=FALSE,LEFT($B63,3)<>\"NOX\"),E55*INDEX('Damage costs'!$O$16:$O$43,MATCH($B63,'Damage costs'!$C$16:$C$43,0))/1000,E55*INDEX('Damage costs'!$S$16:$S$43,MATCH($B63,'Damage costs'!$C$16:$C$43,0))/1000),\"\")","v":""},{"$f":"IFERROR(IF(OR($C$67=FALSE,LEFT($B63,3)<>\"NOX\"),F55*INDEX('Damage costs'!$O$16:$O$43,MATCH($B63,'Damage costs'!$C$16:$C$43,0))/1000,F55*INDEX('Damage costs'!$S$16:$S$43,MATCH($B63,'Damage costs'!$C$16:$C$43,0))/1000),\"\")","v":""},{"$f":"IFERROR(IF(OR($C$67=FALSE,LEFT($B63,3)<>\"NOX\"),G55*INDEX('Damage costs'!$O$16:$O$43,MATCH($B63,'Damage costs'!$C$16:$C$43,0))/1000,G55*INDEX('Damage costs'!$S$16:$S$43,MATCH($B63,'Damage costs'!$C$16:$C$43,0))/1000),\"\")","v":""},{"$f":"IFERROR(IF(OR($C$67=FALSE,LEFT($B63,3)<>\"NOX\"),H55*INDEX('Damage costs'!$O$16:$O$43,MATCH($B63,'Damage costs'!$C$16:$C$43,0))/1000,H55*INDEX('Damage costs'!$S$16:$S$43,MATCH($B63,'Damage costs'!$C$16:$C$43,0))/1000),\"\")","v":""},{"$f":"IFERROR(IF(OR($C$67=FALSE,LEFT($B63,3)<>\"NOX\"),I55*INDEX('Damage costs'!$O$16:$O$43,MATCH($B63,'Damage costs'!$C$16:$C$43,0))/1000,I55*INDEX('Damage costs'!$S$16:$S$43,MATCH($B63,'Damage costs'!$C$16:$C$43,0))/1000),\"\")","v":""},{"$f":"IFERROR(IF(OR($C$67=FALSE,LEFT($B63,3)<>\"NOX\"),J55*INDEX('Damage costs'!$O$16:$O$43,MATCH($B63,'Damage costs'!$C$16:$C$43,0))/1000,J55*INDEX('Damage costs'!$S$16:$S$43,MATCH($B63,'Damage costs'!$C$16:$C$43,0))/1000),\"\")","v":""},{"$f":"IFERROR(IF(OR($C$67=FALSE,LEFT($B63,3)<>\"NOX\"),K55*INDEX('Damage costs'!$O$16:$O$43,MATCH($B63,'Damage costs'!$C$16:$C$43,0))/1000,K55*INDEX('Damage costs'!$S$16:$S$43,MATCH($B63,'Damage costs'!$C$16:$C$43,0))/1000),\"\")","v":""},{"$f":"IFERROR(IF(OR($C$67=FALSE,LEFT($B63,3)<>\"NOX\"),L55*INDEX('Damage costs'!$O$16:$O$43,MATCH($B63,'Damage costs'!$C$16:$C$43,0))/1000,L55*INDEX('Damage costs'!$S$16:$S$43,MATCH($B63,'Damage costs'!$C$16:$C$43,0))/1000),\"\")","v":""},{"$f":"IFERROR(IF(OR($C$67=FALSE,LEFT($B63,3)<>\"NOX\"),M55*INDEX('Damage costs'!$O$16:$O$43,MATCH($B63,'Damage costs'!$C$16:$C$43,0))/1000,M55*INDEX('Damage costs'!$S$16:$S$43,MATCH($B63,'Damage costs'!$C$16:$C$43,0))/1000),\"\")","v":""},{"$f":"IFERROR(IF(OR($C$67=FALSE,LEFT($B63,3)<>\"NOX\"),N55*INDEX('Damage costs'!$O$16:$O$43,MATCH($B63,'Damage costs'!$C$16:$C$43,0))/1000,N55*INDEX('Damage costs'!$S$16:$S$43,MATCH($B63,'Damage costs'!$C$16:$C$43,0))/1000),\"\")","v":""},{"$f":"IFERROR(IF(OR($C$67=FALSE,LEFT($B63,3)<>\"NOX\"),O55*INDEX('Damage costs'!$O$16:$O$43,MATCH($B63,'Damage costs'!$C$16:$C$43,0))/1000,O55*INDEX('Damage costs'!$S$16:$S$43,MATCH($B63,'Damage costs'!$C$16:$C$43,0))/1000),\"\")","v":""},{"$f":"IFERROR(IF(OR($C$67=FALSE,LEFT($B63,3)<>\"NOX\"),P55*INDEX('Damage costs'!$O$16:$O$43,MATCH($B63,'Damage costs'!$C$16:$C$43,0))/1000,P55*INDEX('Damage costs'!$S$16:$S$43,MATCH($B63,'Damage costs'!$C$16:$C$43,0))/1000),\"\")","v":""},{"$f":"IFERROR(IF(OR($C$67=FALSE,LEFT($B63,3)<>\"NOX\"),Q55*INDEX('Damage costs'!$O$16:$O$43,MATCH($B63,'Damage costs'!$C$16:$C$43,0))/1000,Q55*INDEX('Damage costs'!$S$16:$S$43,MATCH($B63,'Damage costs'!$C$16:$C$43,0))/1000),\"\")","v":""},{"$f":"IFERROR(IF(OR($C$67=FALSE,LEFT($B63,3)<>\"NOX\"),R55*INDEX('Damage costs'!$O$16:$O$43,MATCH($B63,'Damage costs'!$C$16:$C$43,0))/1000,R55*INDEX('Damage costs'!$S$16:$S$43,MATCH($B63,'Damage costs'!$C$16:$C$43,0))/1000),\"\")","v":""},{"$f":"IFERROR(IF(OR($C$67=FALSE,LEFT($B63,3)<>\"NOX\"),S55*INDEX('Damage costs'!$O$16:$O$43,MATCH($B63,'Damage costs'!$C$16:$C$43,0))/1000,S55*INDEX('Damage costs'!$S$16:$S$43,MATCH($B63,'Damage costs'!$C$16:$C$43,0))/1000),\"\")","v":""},{"$f":"IFERROR(IF(OR($C$67=FALSE,LEFT($B63,3)<>\"NOX\"),T55*INDEX('Damage costs'!$O$16:$O$43,MATCH($B63,'Damage costs'!$C$16:$C$43,0))/1000,T55*INDEX('Damage costs'!$S$16:$S$43,MATCH($B63,'Damage costs'!$C$16:$C$43,0))/1000),\"\")","v":""},{"$f":"IFERROR(IF(OR($C$67=FALSE,LEFT($B63,3)<>\"NOX\"),U55*INDEX('Damage costs'!$O$16:$O$43,MATCH($B63,'Damage costs'!$C$16:$C$43,0))/1000,U55*INDEX('Damage costs'!$S$16:$S$43,MATCH($B63,'Damage costs'!$C$16:$C$43,0))/1000),\"\")","v":""},{"$f":"IFERROR(IF(OR($C$67=FALSE,LEFT($B63,3)<>\"NOX\"),V55*INDEX('Damage costs'!$O$16:$O$43,MATCH($B63,'Damage costs'!$C$16:$C$43,0))/1000,V55*INDEX('Damage costs'!$S$16:$S$43,MATCH($B63,'Damage costs'!$C$16:$C$43,0))/1000),\"\")","v":""},{"$f":"IFERROR(IF(OR($C$67=FALSE,LEFT($B63,3)<>\"NOX\"),W55*INDEX('Damage costs'!$O$16:$O$43,MATCH($B63,'Damage costs'!$C$16:$C$43,0))/1000,W55*INDEX('Damage costs'!$S$16:$S$43,MATCH($B63,'Damage costs'!$C$16:$C$43,0))/1000),\"\")","v":""},{"$f":"IFERROR(IF(OR($C$67=FALSE,LEFT($B63,3)<>\"NOX\"),X55*INDEX('Damage costs'!$O$16:$O$43,MATCH($B63,'Damage costs'!$C$16:$C$43,0))/1000,X55*INDEX('Damage costs'!$S$16:$S$43,MATCH($B63,'Damage costs'!$C$16:$C$43,0))/1000),\"\")","v":""},{"$f":"IFERROR(IF(OR($C$67=FALSE,LEFT($B63,3)<>\"NOX\"),Y55*INDEX('Damage costs'!$O$16:$O$43,MATCH($B63,'Damage costs'!$C$16:$C$43,0))/1000,Y55*INDEX('Damage costs'!$S$16:$S$43,MATCH($B63,'Damage costs'!$C$16:$C$43,0))/1000),\"\")","v":""},{"$f":"IFERROR(IF(OR($C$67=FALSE,LEFT($B63,3)<>\"NOX\"),Z55*INDEX('Damage costs'!$O$16:$O$43,MATCH($B63,'Damage costs'!$C$16:$C$43,0))/1000,Z55*INDEX('Damage costs'!$S$16:$S$43,MATCH($B63,'Damage costs'!$C$16:$C$43,0))/1000),\"\")","v":""},{"$f":"IFERROR(IF(OR($C$67=FALSE,LEFT($B63,3)<>\"NOX\"),AA55*INDEX('Damage costs'!$O$16:$O$43,MATCH($B63,'Damage costs'!$C$16:$C$43,0))/1000,AA55*INDEX('Damage costs'!$S$16:$S$43,MATCH($B63,'Damage costs'!$C$16:$C$43,0))/1000),\"\")","v":""},{"$f":"IFERROR(IF(OR($C$67=FALSE,LEFT($B63,3)<>\"NOX\"),AB55*INDEX('Damage costs'!$O$16:$O$43,MATCH($B63,'Damage costs'!$C$16:$C$43,0))/1000,AB55*INDEX('Damage costs'!$S$16:$S$43,MATCH($B63,'Damage costs'!$C$16:$C$43,0))/1000),\"\")","v":""},{"$f":"IFERROR(IF(OR($C$67=FALSE,LEFT($B63,3)<>\"NOX\"),AC55*INDEX('Damage costs'!$O$16:$O$43,MATCH($B63,'Damage costs'!$C$16:$C$43,0))/1000,AC55*INDEX('Damage costs'!$S$16:$S$43,MATCH($B63,'Damage costs'!$C$16:$C$43,0))/1000),\"\")","v":""},{"$f":"IFERROR(IF(OR($C$67=FALSE,LEFT($B63,3)<>\"NOX\"),AD55*INDEX('Damage costs'!$O$16:$O$43,MATCH($B63,'Damage costs'!$C$16:$C$43,0))/1000,AD55*INDEX('Damage costs'!$S$16:$S$43,MATCH($B63,'Damage costs'!$C$16:$C$43,0))/1000),\"\")","v":""},{"$f":"IFERROR(IF(OR($C$67=FALSE,LEFT($B63,3)<>\"NOX\"),AE55*INDEX('Damage costs'!$O$16:$O$43,MATCH($B63,'Damage costs'!$C$16:$C$43,0))/1000,AE55*INDEX('Damage costs'!$S$16:$S$43,MATCH($B63,'Damage costs'!$C$16:$C$43,0))/1000),\"\")","v":""},{"$f":"IFERROR(IF(OR($C$67=FALSE,LEFT($B63,3)<>\"NOX\"),AF55*INDEX('Damage costs'!$O$16:$O$43,MATCH($B63,'Damage costs'!$C$16:$C$43,0))/1000,AF55*INDEX('Damage costs'!$S$16:$S$43,MATCH($B63,'Damage costs'!$C$16:$C$43,0))/1000),\"\")","v":""},{"$f":"IFERROR(IF(OR($C$67=FALSE,LEFT($B63,3)<>\"NOX\"),AG55*INDEX('Damage costs'!$O$16:$O$43,MATCH($B63,'Damage costs'!$C$16:$C$43,0))/1000,AG55*INDEX('Damage costs'!$S$16:$S$43,MATCH($B63,'Damage costs'!$C$16:$C$43,0))/1000),\"\")","v":""},{"$f":"IFERROR(IF(OR($C$67=FALSE,LEFT($B63,3)<>\"NOX\"),AH55*INDEX('Damage costs'!$O$16:$O$43,MATCH($B63,'Damage costs'!$C$16:$C$43,0))/1000,AH55*INDEX('Damage costs'!$S$16:$S$43,MATCH($B63,'Damage costs'!$C$16:$C$43,0))/1000),\"\")","v":""},{"$f":"IFERROR(IF(OR($C$67=FALSE,LEFT($B63,3)<>\"NOX\"),AI55*INDEX('Damage costs'!$O$16:$O$43,MATCH($B63,'Damage costs'!$C$16:$C$43,0))/1000,AI55*INDEX('Damage costs'!$S$16:$S$43,MATCH($B63,'Damage costs'!$C$16:$C$43,0))/1000),\"\")","v":""},{"$f":"IFERROR(IF(OR($C$67=FALSE,LEFT($B63,3)<>\"NOX\"),AJ55*INDEX('Damage costs'!$O$16:$O$43,MATCH($B63,'Damage costs'!$C$16:$C$43,0))/1000,AJ55*INDEX('Damage costs'!$S$16:$S$43,MATCH($B63,'Damage costs'!$C$16:$C$43,0))/1000),\"\")","v":""},{"$f":"IFERROR(IF(OR($C$67=FALSE,LEFT($B63,3)<>\"NOX\"),AK55*INDEX('Damage costs'!$O$16:$O$43,MATCH($B63,'Damage costs'!$C$16:$C$43,0))/1000,AK55*INDEX('Damage costs'!$S$16:$S$43,MATCH($B63,'Damage costs'!$C$16:$C$43,0))/1000),\"\")","v":""},{"$f":"IFERROR(IF(OR($C$67=FALSE,LEFT($B63,3)<>\"NOX\"),AL55*INDEX('Damage costs'!$O$16:$O$43,MATCH($B63,'Damage costs'!$C$16:$C$43,0))/1000,AL55*INDEX('Damage costs'!$S$16:$S$43,MATCH($B63,'Damage costs'!$C$16:$C$43,0))/1000),\"\")","v":""},{"$f":"IFERROR(IF(OR($C$67=FALSE,LEFT($B63,3)<>\"NOX\"),AM55*INDEX('Damage costs'!$O$16:$O$43,MATCH($B63,'Damage costs'!$C$16:$C$43,0))/1000,AM55*INDEX('Damage costs'!$S$16:$S$43,MATCH($B63,'Damage costs'!$C$16:$C$43,0))/1000),\"\")","v":""},{"$f":"IFERROR(IF(OR($C$67=FALSE,LEFT($B63,3)<>\"NOX\"),AN55*INDEX('Damage costs'!$O$16:$O$43,MATCH($B63,'Damage costs'!$C$16:$C$43,0))/1000,AN55*INDEX('Damage costs'!$S$16:$S$43,MATCH($B63,'Damage costs'!$C$16:$C$43,0))/1000),\"\")","v":""},{"$f":"IFERROR(IF(OR($C$67=FALSE,LEFT($B63,3)<>\"NOX\"),AO55*INDEX('Damage costs'!$O$16:$O$43,MATCH($B63,'Damage costs'!$C$16:$C$43,0))/1000,AO55*INDEX('Damage costs'!$S$16:$S$43,MATCH($B63,'Damage costs'!$C$16:$C$43,0))/1000),\"\")","v":""},{"$f":"IFERROR(IF(OR($C$67=FALSE,LEFT($B63,3)<>\"NOX\"),AP55*INDEX('Damage costs'!$O$16:$O$43,MATCH($B63,'Damage costs'!$C$16:$C$43,0))/1000,AP55*INDEX('Damage costs'!$S$16:$S$43,MATCH($B63,'Damage costs'!$C$16:$C$43,0))/1000),\"\")","v":""},{"$f":"IFERROR(IF(OR($C$67=FALSE,LEFT($B63,3)<>\"NOX\"),AQ55*INDEX('Damage costs'!$O$16:$O$43,MATCH($B63,'Damage costs'!$C$16:$C$43,0))/1000,AQ55*INDEX('Damage costs'!$S$16:$S$43,MATCH($B63,'Damage costs'!$C$16:$C$43,0))/1000),\"\")","v":""},{"$f":"IFERROR(IF(OR($C$67=FALSE,LEFT($B63,3)<>\"NOX\"),AR55*INDEX('Damage costs'!$O$16:$O$43,MATCH($B63,'Damage costs'!$C$16:$C$43,0))/1000,AR55*INDEX('Damage costs'!$S$16:$S$43,MATCH($B63,'Damage costs'!$C$16:$C$43,0))/1000),\"\")","v":""},{"$f":"IFERROR(IF(OR($C$67=FALSE,LEFT($B63,3)<>\"NOX\"),AS55*INDEX('Damage costs'!$O$16:$O$43,MATCH($B63,'Damage costs'!$C$16:$C$43,0))/1000,AS55*INDEX('Damage costs'!$S$16:$S$43,MATCH($B63,'Damage costs'!$C$16:$C$43,0))/1000),\"\")","v":""},{"$f":"IFERROR(IF(OR($C$67=FALSE,LEFT($B63,3)<>\"NOX\"),AT55*INDEX('Damage costs'!$O$16:$O$43,MATCH($B63,'Damage costs'!$C$16:$C$43,0))/1000,AT55*INDEX('Damage costs'!$S$16:$S$43,MATCH($B63,'Damage costs'!$C$16:$C$43,0))/1000),\"\")","v":""},{"$f":"IFERROR(IF(OR($C$67=FALSE,LEFT($B63,3)<>\"NOX\"),AU55*INDEX('Damage costs'!$O$16:$O$43,MATCH($B63,'Damage costs'!$C$16:$C$43,0))/1000,AU55*INDEX('Damage costs'!$S$16:$S$43,MATCH($B63,'Damage costs'!$C$16:$C$43,0))/1000),\"\")","v":""},{"$f":"IFERROR(IF(OR($C$67=FALSE,LEFT($B63,3)<>\"NOX\"),AV55*INDEX('Damage costs'!$O$16:$O$43,MATCH($B63,'Damage costs'!$C$16:$C$43,0))/1000,AV55*INDEX('Damage costs'!$S$16:$S$43,MATCH($B63,'Damage costs'!$C$16:$C$43,0))/1000),\"\")","v":""},{"$f":"IFERROR(IF(OR($C$67=FALSE,LEFT($B63,3)<>\"NOX\"),AW55*INDEX('Damage costs'!$O$16:$O$43,MATCH($B63,'Damage costs'!$C$16:$C$43,0))/1000,AW55*INDEX('Damage costs'!$S$16:$S$43,MATCH($B63,'Damage costs'!$C$16:$C$43,0))/1000),\"\")","v":""},{"$f":"IFERROR(IF(OR($C$67=FALSE,LEFT($B63,3)<>\"NOX\"),AX55*INDEX('Damage costs'!$O$16:$O$43,MATCH($B63,'Damage costs'!$C$16:$C$43,0))/1000,AX55*INDEX('Damage costs'!$S$16:$S$43,MATCH($B63,'Damage costs'!$C$16:$C$43,0))/1000),\"\")","v":""},{"$f":"IFERROR(IF(OR($C$67=FALSE,LEFT($B63,3)<>\"NOX\"),AY55*INDEX('Damage costs'!$O$16:$O$43,MATCH($B63,'Damage costs'!$C$16:$C$43,0))/1000,AY55*INDEX('Damage costs'!$S$16:$S$43,MATCH($B63,'Damage costs'!$C$16:$C$43,0))/1000),\"\")","v":""},{"$f":"IFERROR(IF(OR($C$67=FALSE,LEFT($B63,3)<>\"NOX\"),AZ55*INDEX('Damage costs'!$O$16:$O$43,MATCH($B63,'Damage costs'!$C$16:$C$43,0))/1000,AZ55*INDEX('Damage costs'!$S$16:$S$43,MATCH($B63,'Damage costs'!$C$16:$C$43,0))/1000),\"\")","v":""},{"$f":"IFERROR(IF(OR($C$67=FALSE,LEFT($B63,3)<>\"NOX\"),BA55*INDEX('Damage costs'!$O$16:$O$43,MATCH($B63,'Damage costs'!$C$16:$C$43,0))/1000,BA55*INDEX('Damage costs'!$S$16:$S$43,MATCH($B63,'Damage costs'!$C$16:$C$43,0))/1000),\"\")","v":""},{"$f":"IFERROR(IF(OR($C$67=FALSE,LEFT($B63,3)<>\"NOX\"),BB55*INDEX('Damage costs'!$O$16:$O$43,MATCH($B63,'Damage costs'!$C$16:$C$43,0))/1000,BB55*INDEX('Damage costs'!$S$16:$S$43,MATCH($B63,'Damage costs'!$C$16:$C$43,0))/1000),\"\")","v":""},{"$f":"IFERROR(IF(OR($C$67=FALSE,LEFT($B63,3)<>\"NOX\"),BC55*INDEX('Damage costs'!$O$16:$O$43,MATCH($B63,'Damage costs'!$C$16:$C$43,0))/1000,BC55*INDEX('Damage costs'!$S$16:$S$43,MATCH($B63,'Damage costs'!$C$16:$C$43,0))/1000),\"\")","v":""},{"$f":"IFERROR(IF(OR($C$67=FALSE,LEFT($B63,3)<>\"NOX\"),BD55*INDEX('Damage costs'!$O$16:$O$43,MATCH($B63,'Damage costs'!$C$16:$C$43,0))/1000,BD55*INDEX('Damage costs'!$S$16:$S$43,MATCH($B63,'Damage costs'!$C$16:$C$43,0))/1000),\"\")","v":""},{"$f":"IFERROR(IF(OR($C$67=FALSE,LEFT($B63,3)<>\"NOX\"),BE55*INDEX('Damage costs'!$O$16:$O$43,MATCH($B63,'Damage costs'!$C$16:$C$43,0))/1000,BE55*INDEX('Damage costs'!$S$16:$S$43,MATCH($B63,'Damage costs'!$C$16:$C$43,0))/1000),\"\")","v":""},{"$f":"IFERROR(IF(OR($C$67=FALSE,LEFT($B63,3)<>\"NOX\"),BF55*INDEX('Damage costs'!$O$16:$O$43,MATCH($B63,'Damage costs'!$C$16:$C$43,0))/1000,BF55*INDEX('Damage costs'!$S$16:$S$43,MATCH($B63,'Damage costs'!$C$16:$C$43,0))/1000),\"\")","v":""},{"$f":"IFERROR(IF(OR($C$67=FALSE,LEFT($B63,3)<>\"NOX\"),BG55*INDEX('Damage costs'!$O$16:$O$43,MATCH($B63,'Damage costs'!$C$16:$C$43,0))/1000,BG55*INDEX('Damage costs'!$S$16:$S$43,MATCH($B63,'Damage costs'!$C$16:$C$43,0))/1000),\"\")","v":""},{"$f":"IFERROR(IF(OR($C$67=FALSE,LEFT($B63,3)<>\"NOX\"),BH55*INDEX('Damage costs'!$O$16:$O$43,MATCH($B63,'Damage costs'!$C$16:$C$43,0))/1000,BH55*INDEX('Damage costs'!$S$16:$S$43,MATCH($B63,'Damage costs'!$C$16:$C$43,0))/1000),\"\")","v":""},{"$f":"IFERROR(IF(OR($C$67=FALSE,LEFT($B63,3)<>\"NOX\"),BI55*INDEX('Damage costs'!$O$16:$O$43,MATCH($B63,'Damage costs'!$C$16:$C$43,0))/1000,BI55*INDEX('Damage costs'!$S$16:$S$43,MATCH($B63,'Damage costs'!$C$16:$C$43,0))/1000),\"\")","v":""},{"$f":"IFERROR(IF(OR($C$67=FALSE,LEFT($B63,3)<>\"NOX\"),BJ55*INDEX('Damage costs'!$O$16:$O$43,MATCH($B63,'Damage costs'!$C$16:$C$43,0))/1000,BJ55*INDEX('Damage costs'!$S$16:$S$43,MATCH($B63,'Damage costs'!$C$16:$C$43,0))/1000),\"\")","v":""},{"$f":"IFERROR(IF(OR($C$67=FALSE,LEFT($B63,3)<>\"NOX\"),BK55*INDEX('Damage costs'!$O$16:$O$43,MATCH($B63,'Damage costs'!$C$16:$C$43,0))/1000,BK55*INDEX('Damage costs'!$S$16:$S$43,MATCH($B63,'Damage costs'!$C$16:$C$43,0))/1000),\"\")","v":""},{"$f":"IFERROR(IF(OR($C$67=FALSE,LEFT($B63,3)<>\"NOX\"),BL55*INDEX('Damage costs'!$O$16:$O$43,MATCH($B63,'Damage costs'!$C$16:$C$43,0))/1000,BL55*INDEX('Damage costs'!$S$16:$S$43,MATCH($B63,'Damage costs'!$C$16:$C$43,0))/1000),\"\")","v":""},{"$f":"IFERROR(IF(OR($C$67=FALSE,LEFT($B63,3)<>\"NOX\"),BM55*INDEX('Damage costs'!$O$16:$O$43,MATCH($B63,'Damage costs'!$C$16:$C$43,0))/1000,BM55*INDEX('Damage costs'!$S$16:$S$43,MATCH($B63,'Damage costs'!$C$16:$C$43,0))/1000),\"\")","v":""},{"$f":"IFERROR(IF(OR($C$67=FALSE,LEFT($B63,3)<>\"NOX\"),BN55*INDEX('Damage costs'!$O$16:$O$43,MATCH($B63,'Damage costs'!$C$16:$C$43,0))/1000,BN55*INDEX('Damage costs'!$S$16:$S$43,MATCH($B63,'Damage costs'!$C$16:$C$43,0))/1000),\"\")","v":""},{"$f":"IFERROR(IF(OR($C$67=FALSE,LEFT($B63,3)<>\"NOX\"),BO55*INDEX('Damage costs'!$O$16:$O$43,MATCH($B63,'Damage costs'!$C$16:$C$43,0))/1000,BO55*INDEX('Damage costs'!$S$16:$S$43,MATCH($B63,'Damage costs'!$C$16:$C$43,0))/1000),\"\")","v":""},{"$f":"IFERROR(IF(OR($C$67=FALSE,LEFT($B63,3)<>\"NOX\"),BP55*INDEX('Damage costs'!$O$16:$O$43,MATCH($B63,'Damage costs'!$C$16:$C$43,0))/1000,BP55*INDEX('Damage costs'!$S$16:$S$43,MATCH($B63,'Damage costs'!$C$16:$C$43,0))/1000),\"\")","v":""},{"$f":"IFERROR(IF(OR($C$67=FALSE,LEFT($B63,3)<>\"NOX\"),BQ55*INDEX('Damage costs'!$O$16:$O$43,MATCH($B63,'Damage costs'!$C$16:$C$43,0))/1000,BQ55*INDEX('Damage costs'!$S$16:$S$43,MATCH($B63,'Damage costs'!$C$16:$C$43,0))/1000),\"\")","v":""},{"$f":"IFERROR(IF(OR($C$67=FALSE,LEFT($B63,3)<>\"NOX\"),BR55*INDEX('Damage costs'!$O$16:$O$43,MATCH($B63,'Damage costs'!$C$16:$C$43,0))/1000,BR55*INDEX('Damage costs'!$S$16:$S$43,MATCH($B63,'Damage costs'!$C$16:$C$43,0))/1000),\"\")","v":""},{"$f":"IFERROR(IF(OR($C$67=FALSE,LEFT($B63,3)<>\"NOX\"),BS55*INDEX('Damage costs'!$O$16:$O$43,MATCH($B63,'Damage costs'!$C$16:$C$43,0))/1000,BS55*INDEX('Damage costs'!$S$16:$S$43,MATCH($B63,'Damage costs'!$C$16:$C$43,0))/1000),\"\")","v":""},{"$f":"IFERROR(IF(OR($C$67=FALSE,LEFT($B63,3)<>\"NOX\"),BT55*INDEX('Damage costs'!$O$16:$O$43,MATCH($B63,'Damage costs'!$C$16:$C$43,0))/1000,BT55*INDEX('Damage costs'!$S$16:$S$43,MATCH($B63,'Damage costs'!$C$16:$C$43,0))/1000),\"\")","v":""},{"$f":"IFERROR(IF(OR($C$67=FALSE,LEFT($B63,3)<>\"NOX\"),BU55*INDEX('Damage costs'!$O$16:$O$43,MATCH($B63,'Damage costs'!$C$16:$C$43,0))/1000,BU55*INDEX('Damage costs'!$S$16:$S$43,MATCH($B63,'Damage costs'!$C$16:$C$43,0))/1000),\"\")","v":""},{"$f":"IFERROR(IF(OR($C$67=FALSE,LEFT($B63,3)<>\"NOX\"),BV55*INDEX('Damage costs'!$O$16:$O$43,MATCH($B63,'Damage costs'!$C$16:$C$43,0))/1000,BV55*INDEX('Damage costs'!$S$16:$S$43,MATCH($B63,'Damage costs'!$C$16:$C$43,0))/1000),\"\")","v":""},{"$f":"IFERROR(IF(OR($C$67=FALSE,LEFT($B63,3)<>\"NOX\"),BW55*INDEX('Damage costs'!$O$16:$O$43,MATCH($B63,'Damage costs'!$C$16:$C$43,0))/1000,BW55*INDEX('Damage costs'!$S$16:$S$43,MATCH($B63,'Damage costs'!$C$16:$C$43,0))/1000),\"\")","v":""},{"$f":"IFERROR(IF(OR($C$67=FALSE,LEFT($B63,3)<>\"NOX\"),BX55*INDEX('Damage costs'!$O$16:$O$43,MATCH($B63,'Damage costs'!$C$16:$C$43,0))/1000,BX55*INDEX('Damage costs'!$S$16:$S$43,MATCH($B63,'Damage costs'!$C$16:$C$43,0))/1000),\"\")","v":""},{"$f":"IFERROR(IF(OR($C$67=FALSE,LEFT($B63,3)<>\"NOX\"),BY55*INDEX('Damage costs'!$O$16:$O$43,MATCH($B63,'Damage costs'!$C$16:$C$43,0))/1000,BY55*INDEX('Damage costs'!$S$16:$S$43,MATCH($B63,'Damage costs'!$C$16:$C$43,0))/1000),\"\")","v":""},{"$f":"IFERROR(IF(OR($C$67=FALSE,LEFT($B63,3)<>\"NOX\"),BZ55*INDEX('Damage costs'!$O$16:$O$43,MATCH($B63,'Damage costs'!$C$16:$C$43,0))/1000,BZ55*INDEX('Damage costs'!$S$16:$S$43,MATCH($B63,'Damage costs'!$C$16:$C$43,0))/1000),\"\")","v":""},{"$f":"IFERROR(IF(OR($C$67=FALSE,LEFT($B63,3)<>\"NOX\"),CA55*INDEX('Damage costs'!$O$16:$O$43,MATCH($B63,'Damage costs'!$C$16:$C$43,0))/1000,CA55*INDEX('Damage costs'!$S$16:$S$43,MATCH($B63,'Damage costs'!$C$16:$C$43,0))/1000),\"\")","v":""},{"$f":"IFERROR(IF(OR($C$67=FALSE,LEFT($B63,3)<>\"NOX\"),CB55*INDEX('Damage costs'!$O$16:$O$43,MATCH($B63,'Damage costs'!$C$16:$C$43,0))/1000,CB55*INDEX('Damage costs'!$S$16:$S$43,MATCH($B63,'Damage costs'!$C$16:$C$43,0))/1000),\"\")","v":""},{"$f":"IFERROR(IF(OR($C$67=FALSE,LEFT($B63,3)<>\"NOX\"),CC55*INDEX('Damage costs'!$O$16:$O$43,MATCH($B63,'Damage costs'!$C$16:$C$43,0))/1000,CC55*INDEX('Damage costs'!$S$16:$S$43,MATCH($B63,'Damage costs'!$C$16:$C$43,0))/1000),\"\")","v":""},{"$f":"IFERROR(IF(OR($C$67=FALSE,LEFT($B63,3)<>\"NOX\"),CD55*INDEX('Damage costs'!$O$16:$O$43,MATCH($B63,'Damage costs'!$C$16:$C$43,0))/1000,CD55*INDEX('Damage costs'!$S$16:$S$43,MATCH($B63,'Damage costs'!$C$16:$C$43,0))/1000),\"\")","v":""},{"$f":"IFERROR(IF(OR($C$67=FALSE,LEFT($B63,3)<>\"NOX\"),CE55*INDEX('Damage costs'!$O$16:$O$43,MATCH($B63,'Damage costs'!$C$16:$C$43,0))/1000,CE55*INDEX('Damage costs'!$S$16:$S$43,MATCH($B63,'Damage costs'!$C$16:$C$43,0))/1000),\"\")","v":""},{"$f":"IFERROR(IF(OR($C$67=FALSE,LEFT($B63,3)<>\"NOX\"),CF55*INDEX('Damage costs'!$O$16:$O$43,MATCH($B63,'Damage costs'!$C$16:$C$43,0))/1000,CF55*INDEX('Damage costs'!$S$16:$S$43,MATCH($B63,'Damage costs'!$C$16:$C$43,0))/1000),\"\")","v":""},{"$f":"IFERROR(IF(OR($C$67=FALSE,LEFT($B63,3)<>\"NOX\"),CG55*INDEX('Damage costs'!$O$16:$O$43,MATCH($B63,'Damage costs'!$C$16:$C$43,0))/1000,CG55*INDEX('Damage costs'!$S$16:$S$43,MATCH($B63,'Damage costs'!$C$16:$C$43,0))/1000),\"\")","v":""},{"$f":"IFERROR(IF(OR($C$67=FALSE,LEFT($B63,3)<>\"NOX\"),CH55*INDEX('Damage costs'!$O$16:$O$43,MATCH($B63,'Damage costs'!$C$16:$C$43,0))/1000,CH55*INDEX('Damage costs'!$S$16:$S$43,MATCH($B63,'Damage costs'!$C$16:$C$43,0))/1000),\"\")","v":""},{"$f":"IFERROR(IF(OR($C$67=FALSE,LEFT($B63,3)<>\"NOX\"),CI55*INDEX('Damage costs'!$O$16:$O$43,MATCH($B63,'Damage costs'!$C$16:$C$43,0))/1000,CI55*INDEX('Damage costs'!$S$16:$S$43,MATCH($B63,'Damage costs'!$C$16:$C$43,0))/1000),\"\")","v":""},{"$f":"IFERROR(IF(OR($C$67=FALSE,LEFT($B63,3)<>\"NOX\"),CJ55*INDEX('Damage costs'!$O$16:$O$43,MATCH($B63,'Damage costs'!$C$16:$C$43,0))/1000,CJ55*INDEX('Damage costs'!$S$16:$S$43,MATCH($B63,'Damage costs'!$C$16:$C$43,0))/1000),\"\")","v":""},{"$f":"IFERROR(IF(OR($C$67=FALSE,LEFT($B63,3)<>\"NOX\"),CK55*INDEX('Damage costs'!$O$16:$O$43,MATCH($B63,'Damage costs'!$C$16:$C$43,0))/1000,CK55*INDEX('Damage costs'!$S$16:$S$43,MATCH($B63,'Damage costs'!$C$16:$C$43,0))/1000),\"\")","v":""},{"$f":"IFERROR(IF(OR($C$67=FALSE,LEFT($B63,3)<>\"NOX\"),CL55*INDEX('Damage costs'!$O$16:$O$43,MATCH($B63,'Damage costs'!$C$16:$C$43,0))/1000,CL55*INDEX('Damage costs'!$S$16:$S$43,MATCH($B63,'Damage costs'!$C$16:$C$43,0))/1000),\"\")","v":""},{"$f":"IFERROR(IF(OR($C$67=FALSE,LEFT($B63,3)<>\"NOX\"),CM55*INDEX('Damage costs'!$O$16:$O$43,MATCH($B63,'Damage costs'!$C$16:$C$43,0))/1000,CM55*INDEX('Damage costs'!$S$16:$S$43,MATCH($B63,'Damage costs'!$C$16:$C$43,0))/1000),\"\")","v":""},{"$f":"IFERROR(IF(OR($C$67=FALSE,LEFT($B63,3)<>\"NOX\"),CN55*INDEX('Damage costs'!$O$16:$O$43,MATCH($B63,'Damage costs'!$C$16:$C$43,0))/1000,CN55*INDEX('Damage costs'!$S$16:$S$43,MATCH($B63,'Damage costs'!$C$16:$C$43,0))/1000),\"\")","v":""},{"$f":"IFERROR(IF(OR($C$67=FALSE,LEFT($B63,3)<>\"NOX\"),CO55*INDEX('Damage costs'!$O$16:$O$43,MATCH($B63,'Damage costs'!$C$16:$C$43,0))/1000,CO55*INDEX('Damage costs'!$S$16:$S$43,MATCH($B63,'Damage costs'!$C$16:$C$43,0))/1000),\"\")","v":""},{"$f":"IFERROR(IF(OR($C$67=FALSE,LEFT($B63,3)<>\"NOX\"),CP55*INDEX('Damage costs'!$O$16:$O$43,MATCH($B63,'Damage costs'!$C$16:$C$43,0))/1000,CP55*INDEX('Damage costs'!$S$16:$S$43,MATCH($B63,'Damage costs'!$C$16:$C$43,0))/1000),\"\")","v":""},{"$f":"IFERROR(IF(OR($C$67=FALSE,LEFT($B63,3)<>\"NOX\"),CQ55*INDEX('Damage costs'!$O$16:$O$43,MATCH($B63,'Damage costs'!$C$16:$C$43,0))/1000,CQ55*INDEX('Damage costs'!$S$16:$S$43,MATCH($B63,'Damage costs'!$C$16:$C$43,0))/1000),\"\")","v":""},{"$f":"IFERROR(IF(OR($C$67=FALSE,LEFT($B63,3)<>\"NOX\"),CR55*INDEX('Damage costs'!$O$16:$O$43,MATCH($B63,'Damage costs'!$C$16:$C$43,0))/1000,CR55*INDEX('Damage costs'!$S$16:$S$43,MATCH($B63,'Damage costs'!$C$16:$C$43,0))/1000),\"\")","v":""},{"$f":"IFERROR(IF(OR($C$67=FALSE,LEFT($B63,3)<>\"NOX\"),CS55*INDEX('Damage costs'!$O$16:$O$43,MATCH($B63,'Damage costs'!$C$16:$C$43,0))/1000,CS55*INDEX('Damage costs'!$S$16:$S$43,MATCH($B63,'Damage costs'!$C$16:$C$43,0))/1000),\"\")","v":""},{"$f":"IFERROR(IF(OR($C$67=FALSE,LEFT($B63,3)<>\"NOX\"),CT55*INDEX('Damage costs'!$O$16:$O$43,MATCH($B63,'Damage costs'!$C$16:$C$43,0))/1000,CT55*INDEX('Damage costs'!$S$16:$S$43,MATCH($B63,'Damage costs'!$C$16:$C$43,0))/1000),\"\")","v":""},{"$f":"IFERROR(IF(OR($C$67=FALSE,LEFT($B63,3)<>\"NOX\"),CU55*INDEX('Damage costs'!$O$16:$O$43,MATCH($B63,'Damage costs'!$C$16:$C$43,0))/1000,CU55*INDEX('Damage costs'!$S$16:$S$43,MATCH($B63,'Damage costs'!$C$16:$C$43,0))/1000),\"\")","v":""},{"$f":"IFERROR(IF(OR($C$67=FALSE,LEFT($B63,3)<>\"NOX\"),CV55*INDEX('Damage costs'!$O$16:$O$43,MATCH($B63,'Damage costs'!$C$16:$C$43,0))/1000,CV55*INDEX('Damage costs'!$S$16:$S$43,MATCH($B63,'Damage costs'!$C$16:$C$43,0))/1000),\"\")","v":""},{"$f":"IFERROR(IF(OR($C$67=FALSE,LEFT($B63,3)<>\"NOX\"),CW55*INDEX('Damage costs'!$O$16:$O$43,MATCH($B63,'Damage costs'!$C$16:$C$43,0))/1000,CW55*INDEX('Damage costs'!$S$16:$S$43,MATCH($B63,'Damage costs'!$C$16:$C$43,0))/1000),\"\")","v":""},{"$f":"IFERROR(IF(OR($C$67=FALSE,LEFT($B63,3)<>\"NOX\"),CX55*INDEX('Damage costs'!$O$16:$O$43,MATCH($B63,'Damage costs'!$C$16:$C$43,0))/1000,CX55*INDEX('Damage costs'!$S$16:$S$43,MATCH($B63,'Damage costs'!$C$16:$C$43,0))/1000),\"\")","v":""},{"$f":"IFERROR(IF(OR($C$67=FALSE,LEFT($B63,3)<>\"NOX\"),CY55*INDEX('Damage costs'!$O$16:$O$43,MATCH($B63,'Damage costs'!$C$16:$C$43,0))/1000,CY55*INDEX('Damage costs'!$S$16:$S$43,MATCH($B63,'Damage costs'!$C$16:$C$43,0))/1000),\"\")","v":""}]
[null,0,"£000's",{"$f":"IFERROR(IF(OR($C$67=FALSE,LEFT($B64,3)<>\"NOX\"),D56*INDEX('Damage costs'!$O$16:$O$43,MATCH($B64,'Damage costs'!$C$16:$C$43,0))/1000,D56*INDEX('Damage costs'!$S$16:$S$43,MATCH($B64,'Damage costs'!$C$16:$C$43,0))/1000),\"\")","v":""},{"$f":"IFERROR(IF(OR($C$67=FALSE,LEFT($B64,3)<>\"NOX\"),E56*INDEX('Damage costs'!$O$16:$O$43,MATCH($B64,'Damage costs'!$C$16:$C$43,0))/1000,E56*INDEX('Damage costs'!$S$16:$S$43,MATCH($B64,'Damage costs'!$C$16:$C$43,0))/1000),\"\")","v":""},{"$f":"IFERROR(IF(OR($C$67=FALSE,LEFT($B64,3)<>\"NOX\"),F56*INDEX('Damage costs'!$O$16:$O$43,MATCH($B64,'Damage costs'!$C$16:$C$43,0))/1000,F56*INDEX('Damage costs'!$S$16:$S$43,MATCH($B64,'Damage costs'!$C$16:$C$43,0))/1000),\"\")","v":""},{"$f":"IFERROR(IF(OR($C$67=FALSE,LEFT($B64,3)<>\"NOX\"),G56*INDEX('Damage costs'!$O$16:$O$43,MATCH($B64,'Damage costs'!$C$16:$C$43,0))/1000,G56*INDEX('Damage costs'!$S$16:$S$43,MATCH($B64,'Damage costs'!$C$16:$C$43,0))/1000),\"\")","v":""},{"$f":"IFERROR(IF(OR($C$67=FALSE,LEFT($B64,3)<>\"NOX\"),H56*INDEX('Damage costs'!$O$16:$O$43,MATCH($B64,'Damage costs'!$C$16:$C$43,0))/1000,H56*INDEX('Damage costs'!$S$16:$S$43,MATCH($B64,'Damage costs'!$C$16:$C$43,0))/1000),\"\")","v":""},{"$f":"IFERROR(IF(OR($C$67=FALSE,LEFT($B64,3)<>\"NOX\"),I56*INDEX('Damage costs'!$O$16:$O$43,MATCH($B64,'Damage costs'!$C$16:$C$43,0))/1000,I56*INDEX('Damage costs'!$S$16:$S$43,MATCH($B64,'Damage costs'!$C$16:$C$43,0))/1000),\"\")","v":""},{"$f":"IFERROR(IF(OR($C$67=FALSE,LEFT($B64,3)<>\"NOX\"),J56*INDEX('Damage costs'!$O$16:$O$43,MATCH($B64,'Damage costs'!$C$16:$C$43,0))/1000,J56*INDEX('Damage costs'!$S$16:$S$43,MATCH($B64,'Damage costs'!$C$16:$C$43,0))/1000),\"\")","v":""},{"$f":"IFERROR(IF(OR($C$67=FALSE,LEFT($B64,3)<>\"NOX\"),K56*INDEX('Damage costs'!$O$16:$O$43,MATCH($B64,'Damage costs'!$C$16:$C$43,0))/1000,K56*INDEX('Damage costs'!$S$16:$S$43,MATCH($B64,'Damage costs'!$C$16:$C$43,0))/1000),\"\")","v":""},{"$f":"IFERROR(IF(OR($C$67=FALSE,LEFT($B64,3)<>\"NOX\"),L56*INDEX('Damage costs'!$O$16:$O$43,MATCH($B64,'Damage costs'!$C$16:$C$43,0))/1000,L56*INDEX('Damage costs'!$S$16:$S$43,MATCH($B64,'Damage costs'!$C$16:$C$43,0))/1000),\"\")","v":""},{"$f":"IFERROR(IF(OR($C$67=FALSE,LEFT($B64,3)<>\"NOX\"),M56*INDEX('Damage costs'!$O$16:$O$43,MATCH($B64,'Damage costs'!$C$16:$C$43,0))/1000,M56*INDEX('Damage costs'!$S$16:$S$43,MATCH($B64,'Damage costs'!$C$16:$C$43,0))/1000),\"\")","v":""},{"$f":"IFERROR(IF(OR($C$67=FALSE,LEFT($B64,3)<>\"NOX\"),N56*INDEX('Damage costs'!$O$16:$O$43,MATCH($B64,'Damage costs'!$C$16:$C$43,0))/1000,N56*INDEX('Damage costs'!$S$16:$S$43,MATCH($B64,'Damage costs'!$C$16:$C$43,0))/1000),\"\")","v":""},{"$f":"IFERROR(IF(OR($C$67=FALSE,LEFT($B64,3)<>\"NOX\"),O56*INDEX('Damage costs'!$O$16:$O$43,MATCH($B64,'Damage costs'!$C$16:$C$43,0))/1000,O56*INDEX('Damage costs'!$S$16:$S$43,MATCH($B64,'Damage costs'!$C$16:$C$43,0))/1000),\"\")","v":""},{"$f":"IFERROR(IF(OR($C$67=FALSE,LEFT($B64,3)<>\"NOX\"),P56*INDEX('Damage costs'!$O$16:$O$43,MATCH($B64,'Damage costs'!$C$16:$C$43,0))/1000,P56*INDEX('Damage costs'!$S$16:$S$43,MATCH($B64,'Damage costs'!$C$16:$C$43,0))/1000),\"\")","v":""},{"$f":"IFERROR(IF(OR($C$67=FALSE,LEFT($B64,3)<>\"NOX\"),Q56*INDEX('Damage costs'!$O$16:$O$43,MATCH($B64,'Damage costs'!$C$16:$C$43,0))/1000,Q56*INDEX('Damage costs'!$S$16:$S$43,MATCH($B64,'Damage costs'!$C$16:$C$43,0))/1000),\"\")","v":""},{"$f":"IFERROR(IF(OR($C$67=FALSE,LEFT($B64,3)<>\"NOX\"),R56*INDEX('Damage costs'!$O$16:$O$43,MATCH($B64,'Damage costs'!$C$16:$C$43,0))/1000,R56*INDEX('Damage costs'!$S$16:$S$43,MATCH($B64,'Damage costs'!$C$16:$C$43,0))/1000),\"\")","v":""},{"$f":"IFERROR(IF(OR($C$67=FALSE,LEFT($B64,3)<>\"NOX\"),S56*INDEX('Damage costs'!$O$16:$O$43,MATCH($B64,'Damage costs'!$C$16:$C$43,0))/1000,S56*INDEX('Damage costs'!$S$16:$S$43,MATCH($B64,'Damage costs'!$C$16:$C$43,0))/1000),\"\")","v":""},{"$f":"IFERROR(IF(OR($C$67=FALSE,LEFT($B64,3)<>\"NOX\"),T56*INDEX('Damage costs'!$O$16:$O$43,MATCH($B64,'Damage costs'!$C$16:$C$43,0))/1000,T56*INDEX('Damage costs'!$S$16:$S$43,MATCH($B64,'Damage costs'!$C$16:$C$43,0))/1000),\"\")","v":""},{"$f":"IFERROR(IF(OR($C$67=FALSE,LEFT($B64,3)<>\"NOX\"),U56*INDEX('Damage costs'!$O$16:$O$43,MATCH($B64,'Damage costs'!$C$16:$C$43,0))/1000,U56*INDEX('Damage costs'!$S$16:$S$43,MATCH($B64,'Damage costs'!$C$16:$C$43,0))/1000),\"\")","v":""},{"$f":"IFERROR(IF(OR($C$67=FALSE,LEFT($B64,3)<>\"NOX\"),V56*INDEX('Damage costs'!$O$16:$O$43,MATCH($B64,'Damage costs'!$C$16:$C$43,0))/1000,V56*INDEX('Damage costs'!$S$16:$S$43,MATCH($B64,'Damage costs'!$C$16:$C$43,0))/1000),\"\")","v":""},{"$f":"IFERROR(IF(OR($C$67=FALSE,LEFT($B64,3)<>\"NOX\"),W56*INDEX('Damage costs'!$O$16:$O$43,MATCH($B64,'Damage costs'!$C$16:$C$43,0))/1000,W56*INDEX('Damage costs'!$S$16:$S$43,MATCH($B64,'Damage costs'!$C$16:$C$43,0))/1000),\"\")","v":""},{"$f":"IFERROR(IF(OR($C$67=FALSE,LEFT($B64,3)<>\"NOX\"),X56*INDEX('Damage costs'!$O$16:$O$43,MATCH($B64,'Damage costs'!$C$16:$C$43,0))/1000,X56*INDEX('Damage costs'!$S$16:$S$43,MATCH($B64,'Damage costs'!$C$16:$C$43,0))/1000),\"\")","v":""},{"$f":"IFERROR(IF(OR($C$67=FALSE,LEFT($B64,3)<>\"NOX\"),Y56*INDEX('Damage costs'!$O$16:$O$43,MATCH($B64,'Damage costs'!$C$16:$C$43,0))/1000,Y56*INDEX('Damage costs'!$S$16:$S$43,MATCH($B64,'Damage costs'!$C$16:$C$43,0))/1000),\"\")","v":""},{"$f":"IFERROR(IF(OR($C$67=FALSE,LEFT($B64,3)<>\"NOX\"),Z56*INDEX('Damage costs'!$O$16:$O$43,MATCH($B64,'Damage costs'!$C$16:$C$43,0))/1000,Z56*INDEX('Damage costs'!$S$16:$S$43,MATCH($B64,'Damage costs'!$C$16:$C$43,0))/1000),\"\")","v":""},{"$f":"IFERROR(IF(OR($C$67=FALSE,LEFT($B64,3)<>\"NOX\"),AA56*INDEX('Damage costs'!$O$16:$O$43,MATCH($B64,'Damage costs'!$C$16:$C$43,0))/1000,AA56*INDEX('Damage costs'!$S$16:$S$43,MATCH($B64,'Damage costs'!$C$16:$C$43,0))/1000),\"\")","v":""},{"$f":"IFERROR(IF(OR($C$67=FALSE,LEFT($B64,3)<>\"NOX\"),AB56*INDEX('Damage costs'!$O$16:$O$43,MATCH($B64,'Damage costs'!$C$16:$C$43,0))/1000,AB56*INDEX('Damage costs'!$S$16:$S$43,MATCH($B64,'Damage costs'!$C$16:$C$43,0))/1000),\"\")","v":""},{"$f":"IFERROR(IF(OR($C$67=FALSE,LEFT($B64,3)<>\"NOX\"),AC56*INDEX('Damage costs'!$O$16:$O$43,MATCH($B64,'Damage costs'!$C$16:$C$43,0))/1000,AC56*INDEX('Damage costs'!$S$16:$S$43,MATCH($B64,'Damage costs'!$C$16:$C$43,0))/1000),\"\")","v":""},{"$f":"IFERROR(IF(OR($C$67=FALSE,LEFT($B64,3)<>\"NOX\"),AD56*INDEX('Damage costs'!$O$16:$O$43,MATCH($B64,'Damage costs'!$C$16:$C$43,0))/1000,AD56*INDEX('Damage costs'!$S$16:$S$43,MATCH($B64,'Damage costs'!$C$16:$C$43,0))/1000),\"\")","v":""},{"$f":"IFERROR(IF(OR($C$67=FALSE,LEFT($B64,3)<>\"NOX\"),AE56*INDEX('Damage costs'!$O$16:$O$43,MATCH($B64,'Damage costs'!$C$16:$C$43,0))/1000,AE56*INDEX('Damage costs'!$S$16:$S$43,MATCH($B64,'Damage costs'!$C$16:$C$43,0))/1000),\"\")","v":""},{"$f":"IFERROR(IF(OR($C$67=FALSE,LEFT($B64,3)<>\"NOX\"),AF56*INDEX('Damage costs'!$O$16:$O$43,MATCH($B64,'Damage costs'!$C$16:$C$43,0))/1000,AF56*INDEX('Damage costs'!$S$16:$S$43,MATCH($B64,'Damage costs'!$C$16:$C$43,0))/1000),\"\")","v":""},{"$f":"IFERROR(IF(OR($C$67=FALSE,LEFT($B64,3)<>\"NOX\"),AG56*INDEX('Damage costs'!$O$16:$O$43,MATCH($B64,'Damage costs'!$C$16:$C$43,0))/1000,AG56*INDEX('Damage costs'!$S$16:$S$43,MATCH($B64,'Damage costs'!$C$16:$C$43,0))/1000),\"\")","v":""},{"$f":"IFERROR(IF(OR($C$67=FALSE,LEFT($B64,3)<>\"NOX\"),AH56*INDEX('Damage costs'!$O$16:$O$43,MATCH($B64,'Damage costs'!$C$16:$C$43,0))/1000,AH56*INDEX('Damage costs'!$S$16:$S$43,MATCH($B64,'Damage costs'!$C$16:$C$43,0))/1000),\"\")","v":""},{"$f":"IFERROR(IF(OR($C$67=FALSE,LEFT($B64,3)<>\"NOX\"),AI56*INDEX('Damage costs'!$O$16:$O$43,MATCH($B64,'Damage costs'!$C$16:$C$43,0))/1000,AI56*INDEX('Damage costs'!$S$16:$S$43,MATCH($B64,'Damage costs'!$C$16:$C$43,0))/1000),\"\")","v":""},{"$f":"IFERROR(IF(OR($C$67=FALSE,LEFT($B64,3)<>\"NOX\"),AJ56*INDEX('Damage costs'!$O$16:$O$43,MATCH($B64,'Damage costs'!$C$16:$C$43,0))/1000,AJ56*INDEX('Damage costs'!$S$16:$S$43,MATCH($B64,'Damage costs'!$C$16:$C$43,0))/1000),\"\")","v":""},{"$f":"IFERROR(IF(OR($C$67=FALSE,LEFT($B64,3)<>\"NOX\"),AK56*INDEX('Damage costs'!$O$16:$O$43,MATCH($B64,'Damage costs'!$C$16:$C$43,0))/1000,AK56*INDEX('Damage costs'!$S$16:$S$43,MATCH($B64,'Damage costs'!$C$16:$C$43,0))/1000),\"\")","v":""},{"$f":"IFERROR(IF(OR($C$67=FALSE,LEFT($B64,3)<>\"NOX\"),AL56*INDEX('Damage costs'!$O$16:$O$43,MATCH($B64,'Damage costs'!$C$16:$C$43,0))/1000,AL56*INDEX('Damage costs'!$S$16:$S$43,MATCH($B64,'Damage costs'!$C$16:$C$43,0))/1000),\"\")","v":""},{"$f":"IFERROR(IF(OR($C$67=FALSE,LEFT($B64,3)<>\"NOX\"),AM56*INDEX('Damage costs'!$O$16:$O$43,MATCH($B64,'Damage costs'!$C$16:$C$43,0))/1000,AM56*INDEX('Damage costs'!$S$16:$S$43,MATCH($B64,'Damage costs'!$C$16:$C$43,0))/1000),\"\")","v":""},{"$f":"IFERROR(IF(OR($C$67=FALSE,LEFT($B64,3)<>\"NOX\"),AN56*INDEX('Damage costs'!$O$16:$O$43,MATCH($B64,'Damage costs'!$C$16:$C$43,0))/1000,AN56*INDEX('Damage costs'!$S$16:$S$43,MATCH($B64,'Damage costs'!$C$16:$C$43,0))/1000),\"\")","v":""},{"$f":"IFERROR(IF(OR($C$67=FALSE,LEFT($B64,3)<>\"NOX\"),AO56*INDEX('Damage costs'!$O$16:$O$43,MATCH($B64,'Damage costs'!$C$16:$C$43,0))/1000,AO56*INDEX('Damage costs'!$S$16:$S$43,MATCH($B64,'Damage costs'!$C$16:$C$43,0))/1000),\"\")","v":""},{"$f":"IFERROR(IF(OR($C$67=FALSE,LEFT($B64,3)<>\"NOX\"),AP56*INDEX('Damage costs'!$O$16:$O$43,MATCH($B64,'Damage costs'!$C$16:$C$43,0))/1000,AP56*INDEX('Damage costs'!$S$16:$S$43,MATCH($B64,'Damage costs'!$C$16:$C$43,0))/1000),\"\")","v":""},{"$f":"IFERROR(IF(OR($C$67=FALSE,LEFT($B64,3)<>\"NOX\"),AQ56*INDEX('Damage costs'!$O$16:$O$43,MATCH($B64,'Damage costs'!$C$16:$C$43,0))/1000,AQ56*INDEX('Damage costs'!$S$16:$S$43,MATCH($B64,'Damage costs'!$C$16:$C$43,0))/1000),\"\")","v":""},{"$f":"IFERROR(IF(OR($C$67=FALSE,LEFT($B64,3)<>\"NOX\"),AR56*INDEX('Damage costs'!$O$16:$O$43,MATCH($B64,'Damage costs'!$C$16:$C$43,0))/1000,AR56*INDEX('Damage costs'!$S$16:$S$43,MATCH($B64,'Damage costs'!$C$16:$C$43,0))/1000),\"\")","v":""},{"$f":"IFERROR(IF(OR($C$67=FALSE,LEFT($B64,3)<>\"NOX\"),AS56*INDEX('Damage costs'!$O$16:$O$43,MATCH($B64,'Damage costs'!$C$16:$C$43,0))/1000,AS56*INDEX('Damage costs'!$S$16:$S$43,MATCH($B64,'Damage costs'!$C$16:$C$43,0))/1000),\"\")","v":""},{"$f":"IFERROR(IF(OR($C$67=FALSE,LEFT($B64,3)<>\"NOX\"),AT56*INDEX('Damage costs'!$O$16:$O$43,MATCH($B64,'Damage costs'!$C$16:$C$43,0))/1000,AT56*INDEX('Damage costs'!$S$16:$S$43,MATCH($B64,'Damage costs'!$C$16:$C$43,0))/1000),\"\")","v":""},{"$f":"IFERROR(IF(OR($C$67=FALSE,LEFT($B64,3)<>\"NOX\"),AU56*INDEX('Damage costs'!$O$16:$O$43,MATCH($B64,'Damage costs'!$C$16:$C$43,0))/1000,AU56*INDEX('Damage costs'!$S$16:$S$43,MATCH($B64,'Damage costs'!$C$16:$C$43,0))/1000),\"\")","v":""},{"$f":"IFERROR(IF(OR($C$67=FALSE,LEFT($B64,3)<>\"NOX\"),AV56*INDEX('Damage costs'!$O$16:$O$43,MATCH($B64,'Damage costs'!$C$16:$C$43,0))/1000,AV56*INDEX('Damage costs'!$S$16:$S$43,MATCH($B64,'Damage costs'!$C$16:$C$43,0))/1000),\"\")","v":""},{"$f":"IFERROR(IF(OR($C$67=FALSE,LEFT($B64,3)<>\"NOX\"),AW56*INDEX('Damage costs'!$O$16:$O$43,MATCH($B64,'Damage costs'!$C$16:$C$43,0))/1000,AW56*INDEX('Damage costs'!$S$16:$S$43,MATCH($B64,'Damage costs'!$C$16:$C$43,0))/1000),\"\")","v":""},{"$f":"IFERROR(IF(OR($C$67=FALSE,LEFT($B64,3)<>\"NOX\"),AX56*INDEX('Damage costs'!$O$16:$O$43,MATCH($B64,'Damage costs'!$C$16:$C$43,0))/1000,AX56*INDEX('Damage costs'!$S$16:$S$43,MATCH($B64,'Damage costs'!$C$16:$C$43,0))/1000),\"\")","v":""},{"$f":"IFERROR(IF(OR($C$67=FALSE,LEFT($B64,3)<>\"NOX\"),AY56*INDEX('Damage costs'!$O$16:$O$43,MATCH($B64,'Damage costs'!$C$16:$C$43,0))/1000,AY56*INDEX('Damage costs'!$S$16:$S$43,MATCH($B64,'Damage costs'!$C$16:$C$43,0))/1000),\"\")","v":""},{"$f":"IFERROR(IF(OR($C$67=FALSE,LEFT($B64,3)<>\"NOX\"),AZ56*INDEX('Damage costs'!$O$16:$O$43,MATCH($B64,'Damage costs'!$C$16:$C$43,0))/1000,AZ56*INDEX('Damage costs'!$S$16:$S$43,MATCH($B64,'Damage costs'!$C$16:$C$43,0))/1000),\"\")","v":""},{"$f":"IFERROR(IF(OR($C$67=FALSE,LEFT($B64,3)<>\"NOX\"),BA56*INDEX('Damage costs'!$O$16:$O$43,MATCH($B64,'Damage costs'!$C$16:$C$43,0))/1000,BA56*INDEX('Damage costs'!$S$16:$S$43,MATCH($B64,'Damage costs'!$C$16:$C$43,0))/1000),\"\")","v":""},{"$f":"IFERROR(IF(OR($C$67=FALSE,LEFT($B64,3)<>\"NOX\"),BB56*INDEX('Damage costs'!$O$16:$O$43,MATCH($B64,'Damage costs'!$C$16:$C$43,0))/1000,BB56*INDEX('Damage costs'!$S$16:$S$43,MATCH($B64,'Damage costs'!$C$16:$C$43,0))/1000),\"\")","v":""},{"$f":"IFERROR(IF(OR($C$67=FALSE,LEFT($B64,3)<>\"NOX\"),BC56*INDEX('Damage costs'!$O$16:$O$43,MATCH($B64,'Damage costs'!$C$16:$C$43,0))/1000,BC56*INDEX('Damage costs'!$S$16:$S$43,MATCH($B64,'Damage costs'!$C$16:$C$43,0))/1000),\"\")","v":""},{"$f":"IFERROR(IF(OR($C$67=FALSE,LEFT($B64,3)<>\"NOX\"),BD56*INDEX('Damage costs'!$O$16:$O$43,MATCH($B64,'Damage costs'!$C$16:$C$43,0))/1000,BD56*INDEX('Damage costs'!$S$16:$S$43,MATCH($B64,'Damage costs'!$C$16:$C$43,0))/1000),\"\")","v":""},{"$f":"IFERROR(IF(OR($C$67=FALSE,LEFT($B64,3)<>\"NOX\"),BE56*INDEX('Damage costs'!$O$16:$O$43,MATCH($B64,'Damage costs'!$C$16:$C$43,0))/1000,BE56*INDEX('Damage costs'!$S$16:$S$43,MATCH($B64,'Damage costs'!$C$16:$C$43,0))/1000),\"\")","v":""},{"$f":"IFERROR(IF(OR($C$67=FALSE,LEFT($B64,3)<>\"NOX\"),BF56*INDEX('Damage costs'!$O$16:$O$43,MATCH($B64,'Damage costs'!$C$16:$C$43,0))/1000,BF56*INDEX('Damage costs'!$S$16:$S$43,MATCH($B64,'Damage costs'!$C$16:$C$43,0))/1000),\"\")","v":""},{"$f":"IFERROR(IF(OR($C$67=FALSE,LEFT($B64,3)<>\"NOX\"),BG56*INDEX('Damage costs'!$O$16:$O$43,MATCH($B64,'Damage costs'!$C$16:$C$43,0))/1000,BG56*INDEX('Damage costs'!$S$16:$S$43,MATCH($B64,'Damage costs'!$C$16:$C$43,0))/1000),\"\")","v":""},{"$f":"IFERROR(IF(OR($C$67=FALSE,LEFT($B64,3)<>\"NOX\"),BH56*INDEX('Damage costs'!$O$16:$O$43,MATCH($B64,'Damage costs'!$C$16:$C$43,0))/1000,BH56*INDEX('Damage costs'!$S$16:$S$43,MATCH($B64,'Damage costs'!$C$16:$C$43,0))/1000),\"\")","v":""},{"$f":"IFERROR(IF(OR($C$67=FALSE,LEFT($B64,3)<>\"NOX\"),BI56*INDEX('Damage costs'!$O$16:$O$43,MATCH($B64,'Damage costs'!$C$16:$C$43,0))/1000,BI56*INDEX('Damage costs'!$S$16:$S$43,MATCH($B64,'Damage costs'!$C$16:$C$43,0))/1000),\"\")","v":""},{"$f":"IFERROR(IF(OR($C$67=FALSE,LEFT($B64,3)<>\"NOX\"),BJ56*INDEX('Damage costs'!$O$16:$O$43,MATCH($B64,'Damage costs'!$C$16:$C$43,0))/1000,BJ56*INDEX('Damage costs'!$S$16:$S$43,MATCH($B64,'Damage costs'!$C$16:$C$43,0))/1000),\"\")","v":""},{"$f":"IFERROR(IF(OR($C$67=FALSE,LEFT($B64,3)<>\"NOX\"),BK56*INDEX('Damage costs'!$O$16:$O$43,MATCH($B64,'Damage costs'!$C$16:$C$43,0))/1000,BK56*INDEX('Damage costs'!$S$16:$S$43,MATCH($B64,'Damage costs'!$C$16:$C$43,0))/1000),\"\")","v":""},{"$f":"IFERROR(IF(OR($C$67=FALSE,LEFT($B64,3)<>\"NOX\"),BL56*INDEX('Damage costs'!$O$16:$O$43,MATCH($B64,'Damage costs'!$C$16:$C$43,0))/1000,BL56*INDEX('Damage costs'!$S$16:$S$43,MATCH($B64,'Damage costs'!$C$16:$C$43,0))/1000),\"\")","v":""},{"$f":"IFERROR(IF(OR($C$67=FALSE,LEFT($B64,3)<>\"NOX\"),BM56*INDEX('Damage costs'!$O$16:$O$43,MATCH($B64,'Damage costs'!$C$16:$C$43,0))/1000,BM56*INDEX('Damage costs'!$S$16:$S$43,MATCH($B64,'Damage costs'!$C$16:$C$43,0))/1000),\"\")","v":""},{"$f":"IFERROR(IF(OR($C$67=FALSE,LEFT($B64,3)<>\"NOX\"),BN56*INDEX('Damage costs'!$O$16:$O$43,MATCH($B64,'Damage costs'!$C$16:$C$43,0))/1000,BN56*INDEX('Damage costs'!$S$16:$S$43,MATCH($B64,'Damage costs'!$C$16:$C$43,0))/1000),\"\")","v":""},{"$f":"IFERROR(IF(OR($C$67=FALSE,LEFT($B64,3)<>\"NOX\"),BO56*INDEX('Damage costs'!$O$16:$O$43,MATCH($B64,'Damage costs'!$C$16:$C$43,0))/1000,BO56*INDEX('Damage costs'!$S$16:$S$43,MATCH($B64,'Damage costs'!$C$16:$C$43,0))/1000),\"\")","v":""},{"$f":"IFERROR(IF(OR($C$67=FALSE,LEFT($B64,3)<>\"NOX\"),BP56*INDEX('Damage costs'!$O$16:$O$43,MATCH($B64,'Damage costs'!$C$16:$C$43,0))/1000,BP56*INDEX('Damage costs'!$S$16:$S$43,MATCH($B64,'Damage costs'!$C$16:$C$43,0))/1000),\"\")","v":""},{"$f":"IFERROR(IF(OR($C$67=FALSE,LEFT($B64,3)<>\"NOX\"),BQ56*INDEX('Damage costs'!$O$16:$O$43,MATCH($B64,'Damage costs'!$C$16:$C$43,0))/1000,BQ56*INDEX('Damage costs'!$S$16:$S$43,MATCH($B64,'Damage costs'!$C$16:$C$43,0))/1000),\"\")","v":""},{"$f":"IFERROR(IF(OR($C$67=FALSE,LEFT($B64,3)<>\"NOX\"),BR56*INDEX('Damage costs'!$O$16:$O$43,MATCH($B64,'Damage costs'!$C$16:$C$43,0))/1000,BR56*INDEX('Damage costs'!$S$16:$S$43,MATCH($B64,'Damage costs'!$C$16:$C$43,0))/1000),\"\")","v":""},{"$f":"IFERROR(IF(OR($C$67=FALSE,LEFT($B64,3)<>\"NOX\"),BS56*INDEX('Damage costs'!$O$16:$O$43,MATCH($B64,'Damage costs'!$C$16:$C$43,0))/1000,BS56*INDEX('Damage costs'!$S$16:$S$43,MATCH($B64,'Damage costs'!$C$16:$C$43,0))/1000),\"\")","v":""},{"$f":"IFERROR(IF(OR($C$67=FALSE,LEFT($B64,3)<>\"NOX\"),BT56*INDEX('Damage costs'!$O$16:$O$43,MATCH($B64,'Damage costs'!$C$16:$C$43,0))/1000,BT56*INDEX('Damage costs'!$S$16:$S$43,MATCH($B64,'Damage costs'!$C$16:$C$43,0))/1000),\"\")","v":""},{"$f":"IFERROR(IF(OR($C$67=FALSE,LEFT($B64,3)<>\"NOX\"),BU56*INDEX('Damage costs'!$O$16:$O$43,MATCH($B64,'Damage costs'!$C$16:$C$43,0))/1000,BU56*INDEX('Damage costs'!$S$16:$S$43,MATCH($B64,'Damage costs'!$C$16:$C$43,0))/1000),\"\")","v":""},{"$f":"IFERROR(IF(OR($C$67=FALSE,LEFT($B64,3)<>\"NOX\"),BV56*INDEX('Damage costs'!$O$16:$O$43,MATCH($B64,'Damage costs'!$C$16:$C$43,0))/1000,BV56*INDEX('Damage costs'!$S$16:$S$43,MATCH($B64,'Damage costs'!$C$16:$C$43,0))/1000),\"\")","v":""},{"$f":"IFERROR(IF(OR($C$67=FALSE,LEFT($B64,3)<>\"NOX\"),BW56*INDEX('Damage costs'!$O$16:$O$43,MATCH($B64,'Damage costs'!$C$16:$C$43,0))/1000,BW56*INDEX('Damage costs'!$S$16:$S$43,MATCH($B64,'Damage costs'!$C$16:$C$43,0))/1000),\"\")","v":""},{"$f":"IFERROR(IF(OR($C$67=FALSE,LEFT($B64,3)<>\"NOX\"),BX56*INDEX('Damage costs'!$O$16:$O$43,MATCH($B64,'Damage costs'!$C$16:$C$43,0))/1000,BX56*INDEX('Damage costs'!$S$16:$S$43,MATCH($B64,'Damage costs'!$C$16:$C$43,0))/1000),\"\")","v":""},{"$f":"IFERROR(IF(OR($C$67=FALSE,LEFT($B64,3)<>\"NOX\"),BY56*INDEX('Damage costs'!$O$16:$O$43,MATCH($B64,'Damage costs'!$C$16:$C$43,0))/1000,BY56*INDEX('Damage costs'!$S$16:$S$43,MATCH($B64,'Damage costs'!$C$16:$C$43,0))/1000),\"\")","v":""},{"$f":"IFERROR(IF(OR($C$67=FALSE,LEFT($B64,3)<>\"NOX\"),BZ56*INDEX('Damage costs'!$O$16:$O$43,MATCH($B64,'Damage costs'!$C$16:$C$43,0))/1000,BZ56*INDEX('Damage costs'!$S$16:$S$43,MATCH($B64,'Damage costs'!$C$16:$C$43,0))/1000),\"\")","v":""},{"$f":"IFERROR(IF(OR($C$67=FALSE,LEFT($B64,3)<>\"NOX\"),CA56*INDEX('Damage costs'!$O$16:$O$43,MATCH($B64,'Damage costs'!$C$16:$C$43,0))/1000,CA56*INDEX('Damage costs'!$S$16:$S$43,MATCH($B64,'Damage costs'!$C$16:$C$43,0))/1000),\"\")","v":""},{"$f":"IFERROR(IF(OR($C$67=FALSE,LEFT($B64,3)<>\"NOX\"),CB56*INDEX('Damage costs'!$O$16:$O$43,MATCH($B64,'Damage costs'!$C$16:$C$43,0))/1000,CB56*INDEX('Damage costs'!$S$16:$S$43,MATCH($B64,'Damage costs'!$C$16:$C$43,0))/1000),\"\")","v":""},{"$f":"IFERROR(IF(OR($C$67=FALSE,LEFT($B64,3)<>\"NOX\"),CC56*INDEX('Damage costs'!$O$16:$O$43,MATCH($B64,'Damage costs'!$C$16:$C$43,0))/1000,CC56*INDEX('Damage costs'!$S$16:$S$43,MATCH($B64,'Damage costs'!$C$16:$C$43,0))/1000),\"\")","v":""},{"$f":"IFERROR(IF(OR($C$67=FALSE,LEFT($B64,3)<>\"NOX\"),CD56*INDEX('Damage costs'!$O$16:$O$43,MATCH($B64,'Damage costs'!$C$16:$C$43,0))/1000,CD56*INDEX('Damage costs'!$S$16:$S$43,MATCH($B64,'Damage costs'!$C$16:$C$43,0))/1000),\"\")","v":""},{"$f":"IFERROR(IF(OR($C$67=FALSE,LEFT($B64,3)<>\"NOX\"),CE56*INDEX('Damage costs'!$O$16:$O$43,MATCH($B64,'Damage costs'!$C$16:$C$43,0))/1000,CE56*INDEX('Damage costs'!$S$16:$S$43,MATCH($B64,'Damage costs'!$C$16:$C$43,0))/1000),\"\")","v":""},{"$f":"IFERROR(IF(OR($C$67=FALSE,LEFT($B64,3)<>\"NOX\"),CF56*INDEX('Damage costs'!$O$16:$O$43,MATCH($B64,'Damage costs'!$C$16:$C$43,0))/1000,CF56*INDEX('Damage costs'!$S$16:$S$43,MATCH($B64,'Damage costs'!$C$16:$C$43,0))/1000),\"\")","v":""},{"$f":"IFERROR(IF(OR($C$67=FALSE,LEFT($B64,3)<>\"NOX\"),CG56*INDEX('Damage costs'!$O$16:$O$43,MATCH($B64,'Damage costs'!$C$16:$C$43,0))/1000,CG56*INDEX('Damage costs'!$S$16:$S$43,MATCH($B64,'Damage costs'!$C$16:$C$43,0))/1000),\"\")","v":""},{"$f":"IFERROR(IF(OR($C$67=FALSE,LEFT($B64,3)<>\"NOX\"),CH56*INDEX('Damage costs'!$O$16:$O$43,MATCH($B64,'Damage costs'!$C$16:$C$43,0))/1000,CH56*INDEX('Damage costs'!$S$16:$S$43,MATCH($B64,'Damage costs'!$C$16:$C$43,0))/1000),\"\")","v":""},{"$f":"IFERROR(IF(OR($C$67=FALSE,LEFT($B64,3)<>\"NOX\"),CI56*INDEX('Damage costs'!$O$16:$O$43,MATCH($B64,'Damage costs'!$C$16:$C$43,0))/1000,CI56*INDEX('Damage costs'!$S$16:$S$43,MATCH($B64,'Damage costs'!$C$16:$C$43,0))/1000),\"\")","v":""},{"$f":"IFERROR(IF(OR($C$67=FALSE,LEFT($B64,3)<>\"NOX\"),CJ56*INDEX('Damage costs'!$O$16:$O$43,MATCH($B64,'Damage costs'!$C$16:$C$43,0))/1000,CJ56*INDEX('Damage costs'!$S$16:$S$43,MATCH($B64,'Damage costs'!$C$16:$C$43,0))/1000),\"\")","v":""},{"$f":"IFERROR(IF(OR($C$67=FALSE,LEFT($B64,3)<>\"NOX\"),CK56*INDEX('Damage costs'!$O$16:$O$43,MATCH($B64,'Damage costs'!$C$16:$C$43,0))/1000,CK56*INDEX('Damage costs'!$S$16:$S$43,MATCH($B64,'Damage costs'!$C$16:$C$43,0))/1000),\"\")","v":""},{"$f":"IFERROR(IF(OR($C$67=FALSE,LEFT($B64,3)<>\"NOX\"),CL56*INDEX('Damage costs'!$O$16:$O$43,MATCH($B64,'Damage costs'!$C$16:$C$43,0))/1000,CL56*INDEX('Damage costs'!$S$16:$S$43,MATCH($B64,'Damage costs'!$C$16:$C$43,0))/1000),\"\")","v":""},{"$f":"IFERROR(IF(OR($C$67=FALSE,LEFT($B64,3)<>\"NOX\"),CM56*INDEX('Damage costs'!$O$16:$O$43,MATCH($B64,'Damage costs'!$C$16:$C$43,0))/1000,CM56*INDEX('Damage costs'!$S$16:$S$43,MATCH($B64,'Damage costs'!$C$16:$C$43,0))/1000),\"\")","v":""},{"$f":"IFERROR(IF(OR($C$67=FALSE,LEFT($B64,3)<>\"NOX\"),CN56*INDEX('Damage costs'!$O$16:$O$43,MATCH($B64,'Damage costs'!$C$16:$C$43,0))/1000,CN56*INDEX('Damage costs'!$S$16:$S$43,MATCH($B64,'Damage costs'!$C$16:$C$43,0))/1000),\"\")","v":""},{"$f":"IFERROR(IF(OR($C$67=FALSE,LEFT($B64,3)<>\"NOX\"),CO56*INDEX('Damage costs'!$O$16:$O$43,MATCH($B64,'Damage costs'!$C$16:$C$43,0))/1000,CO56*INDEX('Damage costs'!$S$16:$S$43,MATCH($B64,'Damage costs'!$C$16:$C$43,0))/1000),\"\")","v":""},{"$f":"IFERROR(IF(OR($C$67=FALSE,LEFT($B64,3)<>\"NOX\"),CP56*INDEX('Damage costs'!$O$16:$O$43,MATCH($B64,'Damage costs'!$C$16:$C$43,0))/1000,CP56*INDEX('Damage costs'!$S$16:$S$43,MATCH($B64,'Damage costs'!$C$16:$C$43,0))/1000),\"\")","v":""},{"$f":"IFERROR(IF(OR($C$67=FALSE,LEFT($B64,3)<>\"NOX\"),CQ56*INDEX('Damage costs'!$O$16:$O$43,MATCH($B64,'Damage costs'!$C$16:$C$43,0))/1000,CQ56*INDEX('Damage costs'!$S$16:$S$43,MATCH($B64,'Damage costs'!$C$16:$C$43,0))/1000),\"\")","v":""},{"$f":"IFERROR(IF(OR($C$67=FALSE,LEFT($B64,3)<>\"NOX\"),CR56*INDEX('Damage costs'!$O$16:$O$43,MATCH($B64,'Damage costs'!$C$16:$C$43,0))/1000,CR56*INDEX('Damage costs'!$S$16:$S$43,MATCH($B64,'Damage costs'!$C$16:$C$43,0))/1000),\"\")","v":""},{"$f":"IFERROR(IF(OR($C$67=FALSE,LEFT($B64,3)<>\"NOX\"),CS56*INDEX('Damage costs'!$O$16:$O$43,MATCH($B64,'Damage costs'!$C$16:$C$43,0))/1000,CS56*INDEX('Damage costs'!$S$16:$S$43,MATCH($B64,'Damage costs'!$C$16:$C$43,0))/1000),\"\")","v":""},{"$f":"IFERROR(IF(OR($C$67=FALSE,LEFT($B64,3)<>\"NOX\"),CT56*INDEX('Damage costs'!$O$16:$O$43,MATCH($B64,'Damage costs'!$C$16:$C$43,0))/1000,CT56*INDEX('Damage costs'!$S$16:$S$43,MATCH($B64,'Damage costs'!$C$16:$C$43,0))/1000),\"\")","v":""},{"$f":"IFERROR(IF(OR($C$67=FALSE,LEFT($B64,3)<>\"NOX\"),CU56*INDEX('Damage costs'!$O$16:$O$43,MATCH($B64,'Damage costs'!$C$16:$C$43,0))/1000,CU56*INDEX('Damage costs'!$S$16:$S$43,MATCH($B64,'Damage costs'!$C$16:$C$43,0))/1000),\"\")","v":""},{"$f":"IFERROR(IF(OR($C$67=FALSE,LEFT($B64,3)<>\"NOX\"),CV56*INDEX('Damage costs'!$O$16:$O$43,MATCH($B64,'Damage costs'!$C$16:$C$43,0))/1000,CV56*INDEX('Damage costs'!$S$16:$S$43,MATCH($B64,'Damage costs'!$C$16:$C$43,0))/1000),\"\")","v":""},{"$f":"IFERROR(IF(OR($C$67=FALSE,LEFT($B64,3)<>\"NOX\"),CW56*INDEX('Damage costs'!$O$16:$O$43,MATCH($B64,'Damage costs'!$C$16:$C$43,0))/1000,CW56*INDEX('Damage costs'!$S$16:$S$43,MATCH($B64,'Damage costs'!$C$16:$C$43,0))/1000),\"\")","v":""},{"$f":"IFERROR(IF(OR($C$67=FALSE,LEFT($B64,3)<>\"NOX\"),CX56*INDEX('Damage costs'!$O$16:$O$43,MATCH($B64,'Damage costs'!$C$16:$C$43,0))/1000,CX56*INDEX('Damage costs'!$S$16:$S$43,MATCH($B64,'Damage costs'!$C$16:$C$43,0))/1000),\"\")","v":""},{"$f":"IFERROR(IF(OR($C$67=FALSE,LEFT($B64,3)<>\"NOX\"),CY56*INDEX('Damage costs'!$O$16:$O$43,MATCH($B64,'Damage costs'!$C$16:$C$43,0))/1000,CY56*INDEX('Damage costs'!$S$16:$S$43,MATCH($B64,'Damage costs'!$C$16:$C$43,0))/1000),\"\")","v":""}]
[null,0,"£000's",{"$f":"IFERROR(IF(OR($C$67=FALSE,LEFT($B65,3)<>\"NOX\"),D57*INDEX('Damage costs'!$O$16:$O$43,MATCH($B65,'Damage costs'!$C$16:$C$43,0))/1000,D57*INDEX('Damage costs'!$S$16:$S$43,MATCH($B65,'Damage costs'!$C$16:$C$43,0))/1000),\"\")","v":""},{"$f":"IFERROR(IF(OR($C$67=FALSE,LEFT($B65,3)<>\"NOX\"),E57*INDEX('Damage costs'!$O$16:$O$43,MATCH($B65,'Damage costs'!$C$16:$C$43,0))/1000,E57*INDEX('Damage costs'!$S$16:$S$43,MATCH($B65,'Damage costs'!$C$16:$C$43,0))/1000),\"\")","v":""},{"$f":"IFERROR(IF(OR($C$67=FALSE,LEFT($B65,3)<>\"NOX\"),F57*INDEX('Damage costs'!$O$16:$O$43,MATCH($B65,'Damage costs'!$C$16:$C$43,0))/1000,F57*INDEX('Damage costs'!$S$16:$S$43,MATCH($B65,'Damage costs'!$C$16:$C$43,0))/1000),\"\")","v":""},{"$f":"IFERROR(IF(OR($C$67=FALSE,LEFT($B65,3)<>\"NOX\"),G57*INDEX('Damage costs'!$O$16:$O$43,MATCH($B65,'Damage costs'!$C$16:$C$43,0))/1000,G57*INDEX('Damage costs'!$S$16:$S$43,MATCH($B65,'Damage costs'!$C$16:$C$43,0))/1000),\"\")","v":""},{"$f":"IFERROR(IF(OR($C$67=FALSE,LEFT($B65,3)<>\"NOX\"),H57*INDEX('Damage costs'!$O$16:$O$43,MATCH($B65,'Damage costs'!$C$16:$C$43,0))/1000,H57*INDEX('Damage costs'!$S$16:$S$43,MATCH($B65,'Damage costs'!$C$16:$C$43,0))/1000),\"\")","v":""},{"$f":"IFERROR(IF(OR($C$67=FALSE,LEFT($B65,3)<>\"NOX\"),I57*INDEX('Damage costs'!$O$16:$O$43,MATCH($B65,'Damage costs'!$C$16:$C$43,0))/1000,I57*INDEX('Damage costs'!$S$16:$S$43,MATCH($B65,'Damage costs'!$C$16:$C$43,0))/1000),\"\")","v":""},{"$f":"IFERROR(IF(OR($C$67=FALSE,LEFT($B65,3)<>\"NOX\"),J57*INDEX('Damage costs'!$O$16:$O$43,MATCH($B65,'Damage costs'!$C$16:$C$43,0))/1000,J57*INDEX('Damage costs'!$S$16:$S$43,MATCH($B65,'Damage costs'!$C$16:$C$43,0))/1000),\"\")","v":""},{"$f":"IFERROR(IF(OR($C$67=FALSE,LEFT($B65,3)<>\"NOX\"),K57*INDEX('Damage costs'!$O$16:$O$43,MATCH($B65,'Damage costs'!$C$16:$C$43,0))/1000,K57*INDEX('Damage costs'!$S$16:$S$43,MATCH($B65,'Damage costs'!$C$16:$C$43,0))/1000),\"\")","v":""},{"$f":"IFERROR(IF(OR($C$67=FALSE,LEFT($B65,3)<>\"NOX\"),L57*INDEX('Damage costs'!$O$16:$O$43,MATCH($B65,'Damage costs'!$C$16:$C$43,0))/1000,L57*INDEX('Damage costs'!$S$16:$S$43,MATCH($B65,'Damage costs'!$C$16:$C$43,0))/1000),\"\")","v":""},{"$f":"IFERROR(IF(OR($C$67=FALSE,LEFT($B65,3)<>\"NOX\"),M57*INDEX('Damage costs'!$O$16:$O$43,MATCH($B65,'Damage costs'!$C$16:$C$43,0))/1000,M57*INDEX('Damage costs'!$S$16:$S$43,MATCH($B65,'Damage costs'!$C$16:$C$43,0))/1000),\"\")","v":""},{"$f":"IFERROR(IF(OR($C$67=FALSE,LEFT($B65,3)<>\"NOX\"),N57*INDEX('Damage costs'!$O$16:$O$43,MATCH($B65,'Damage costs'!$C$16:$C$43,0))/1000,N57*INDEX('Damage costs'!$S$16:$S$43,MATCH($B65,'Damage costs'!$C$16:$C$43,0))/1000),\"\")","v":""},{"$f":"IFERROR(IF(OR($C$67=FALSE,LEFT($B65,3)<>\"NOX\"),O57*INDEX('Damage costs'!$O$16:$O$43,MATCH($B65,'Damage costs'!$C$16:$C$43,0))/1000,O57*INDEX('Damage costs'!$S$16:$S$43,MATCH($B65,'Damage costs'!$C$16:$C$43,0))/1000),\"\")","v":""},{"$f":"IFERROR(IF(OR($C$67=FALSE,LEFT($B65,3)<>\"NOX\"),P57*INDEX('Damage costs'!$O$16:$O$43,MATCH($B65,'Damage costs'!$C$16:$C$43,0))/1000,P57*INDEX('Damage costs'!$S$16:$S$43,MATCH($B65,'Damage costs'!$C$16:$C$43,0))/1000),\"\")","v":""},{"$f":"IFERROR(IF(OR($C$67=FALSE,LEFT($B65,3)<>\"NOX\"),Q57*INDEX('Damage costs'!$O$16:$O$43,MATCH($B65,'Damage costs'!$C$16:$C$43,0))/1000,Q57*INDEX('Damage costs'!$S$16:$S$43,MATCH($B65,'Damage costs'!$C$16:$C$43,0))/1000),\"\")","v":""},{"$f":"IFERROR(IF(OR($C$67=FALSE,LEFT($B65,3)<>\"NOX\"),R57*INDEX('Damage costs'!$O$16:$O$43,MATCH($B65,'Damage costs'!$C$16:$C$43,0))/1000,R57*INDEX('Damage costs'!$S$16:$S$43,MATCH($B65,'Damage costs'!$C$16:$C$43,0))/1000),\"\")","v":""},{"$f":"IFERROR(IF(OR($C$67=FALSE,LEFT($B65,3)<>\"NOX\"),S57*INDEX('Damage costs'!$O$16:$O$43,MATCH($B65,'Damage costs'!$C$16:$C$43,0))/1000,S57*INDEX('Damage costs'!$S$16:$S$43,MATCH($B65,'Damage costs'!$C$16:$C$43,0))/1000),\"\")","v":""},{"$f":"IFERROR(IF(OR($C$67=FALSE,LEFT($B65,3)<>\"NOX\"),T57*INDEX('Damage costs'!$O$16:$O$43,MATCH($B65,'Damage costs'!$C$16:$C$43,0))/1000,T57*INDEX('Damage costs'!$S$16:$S$43,MATCH($B65,'Damage costs'!$C$16:$C$43,0))/1000),\"\")","v":""},{"$f":"IFERROR(IF(OR($C$67=FALSE,LEFT($B65,3)<>\"NOX\"),U57*INDEX('Damage costs'!$O$16:$O$43,MATCH($B65,'Damage costs'!$C$16:$C$43,0))/1000,U57*INDEX('Damage costs'!$S$16:$S$43,MATCH($B65,'Damage costs'!$C$16:$C$43,0))/1000),\"\")","v":""},{"$f":"IFERROR(IF(OR($C$67=FALSE,LEFT($B65,3)<>\"NOX\"),V57*INDEX('Damage costs'!$O$16:$O$43,MATCH($B65,'Damage costs'!$C$16:$C$43,0))/1000,V57*INDEX('Damage costs'!$S$16:$S$43,MATCH($B65,'Damage costs'!$C$16:$C$43,0))/1000),\"\")","v":""},{"$f":"IFERROR(IF(OR($C$67=FALSE,LEFT($B65,3)<>\"NOX\"),W57*INDEX('Damage costs'!$O$16:$O$43,MATCH($B65,'Damage costs'!$C$16:$C$43,0))/1000,W57*INDEX('Damage costs'!$S$16:$S$43,MATCH($B65,'Damage costs'!$C$16:$C$43,0))/1000),\"\")","v":""},{"$f":"IFERROR(IF(OR($C$67=FALSE,LEFT($B65,3)<>\"NOX\"),X57*INDEX('Damage costs'!$O$16:$O$43,MATCH($B65,'Damage costs'!$C$16:$C$43,0))/1000,X57*INDEX('Damage costs'!$S$16:$S$43,MATCH($B65,'Damage costs'!$C$16:$C$43,0))/1000),\"\")","v":""},{"$f":"IFERROR(IF(OR($C$67=FALSE,LEFT($B65,3)<>\"NOX\"),Y57*INDEX('Damage costs'!$O$16:$O$43,MATCH($B65,'Damage costs'!$C$16:$C$43,0))/1000,Y57*INDEX('Damage costs'!$S$16:$S$43,MATCH($B65,'Damage costs'!$C$16:$C$43,0))/1000),\"\")","v":""},{"$f":"IFERROR(IF(OR($C$67=FALSE,LEFT($B65,3)<>\"NOX\"),Z57*INDEX('Damage costs'!$O$16:$O$43,MATCH($B65,'Damage costs'!$C$16:$C$43,0))/1000,Z57*INDEX('Damage costs'!$S$16:$S$43,MATCH($B65,'Damage costs'!$C$16:$C$43,0))/1000),\"\")","v":""},{"$f":"IFERROR(IF(OR($C$67=FALSE,LEFT($B65,3)<>\"NOX\"),AA57*INDEX('Damage costs'!$O$16:$O$43,MATCH($B65,'Damage costs'!$C$16:$C$43,0))/1000,AA57*INDEX('Damage costs'!$S$16:$S$43,MATCH($B65,'Damage costs'!$C$16:$C$43,0))/1000),\"\")","v":""},{"$f":"IFERROR(IF(OR($C$67=FALSE,LEFT($B65,3)<>\"NOX\"),AB57*INDEX('Damage costs'!$O$16:$O$43,MATCH($B65,'Damage costs'!$C$16:$C$43,0))/1000,AB57*INDEX('Damage costs'!$S$16:$S$43,MATCH($B65,'Damage costs'!$C$16:$C$43,0))/1000),\"\")","v":""},{"$f":"IFERROR(IF(OR($C$67=FALSE,LEFT($B65,3)<>\"NOX\"),AC57*INDEX('Damage costs'!$O$16:$O$43,MATCH($B65,'Damage costs'!$C$16:$C$43,0))/1000,AC57*INDEX('Damage costs'!$S$16:$S$43,MATCH($B65,'Damage costs'!$C$16:$C$43,0))/1000),\"\")","v":""},{"$f":"IFERROR(IF(OR($C$67=FALSE,LEFT($B65,3)<>\"NOX\"),AD57*INDEX('Damage costs'!$O$16:$O$43,MATCH($B65,'Damage costs'!$C$16:$C$43,0))/1000,AD57*INDEX('Damage costs'!$S$16:$S$43,MATCH($B65,'Damage costs'!$C$16:$C$43,0))/1000),\"\")","v":""},{"$f":"IFERROR(IF(OR($C$67=FALSE,LEFT($B65,3)<>\"NOX\"),AE57*INDEX('Damage costs'!$O$16:$O$43,MATCH($B65,'Damage costs'!$C$16:$C$43,0))/1000,AE57*INDEX('Damage costs'!$S$16:$S$43,MATCH($B65,'Damage costs'!$C$16:$C$43,0))/1000),\"\")","v":""},{"$f":"IFERROR(IF(OR($C$67=FALSE,LEFT($B65,3)<>\"NOX\"),AF57*INDEX('Damage costs'!$O$16:$O$43,MATCH($B65,'Damage costs'!$C$16:$C$43,0))/1000,AF57*INDEX('Damage costs'!$S$16:$S$43,MATCH($B65,'Damage costs'!$C$16:$C$43,0))/1000),\"\")","v":""},{"$f":"IFERROR(IF(OR($C$67=FALSE,LEFT($B65,3)<>\"NOX\"),AG57*INDEX('Damage costs'!$O$16:$O$43,MATCH($B65,'Damage costs'!$C$16:$C$43,0))/1000,AG57*INDEX('Damage costs'!$S$16:$S$43,MATCH($B65,'Damage costs'!$C$16:$C$43,0))/1000),\"\")","v":""},{"$f":"IFERROR(IF(OR($C$67=FALSE,LEFT($B65,3)<>\"NOX\"),AH57*INDEX('Damage costs'!$O$16:$O$43,MATCH($B65,'Damage costs'!$C$16:$C$43,0))/1000,AH57*INDEX('Damage costs'!$S$16:$S$43,MATCH($B65,'Damage costs'!$C$16:$C$43,0))/1000),\"\")","v":""},{"$f":"IFERROR(IF(OR($C$67=FALSE,LEFT($B65,3)<>\"NOX\"),AI57*INDEX('Damage costs'!$O$16:$O$43,MATCH($B65,'Damage costs'!$C$16:$C$43,0))/1000,AI57*INDEX('Damage costs'!$S$16:$S$43,MATCH($B65,'Damage costs'!$C$16:$C$43,0))/1000),\"\")","v":""},{"$f":"IFERROR(IF(OR($C$67=FALSE,LEFT($B65,3)<>\"NOX\"),AJ57*INDEX('Damage costs'!$O$16:$O$43,MATCH($B65,'Damage costs'!$C$16:$C$43,0))/1000,AJ57*INDEX('Damage costs'!$S$16:$S$43,MATCH($B65,'Damage costs'!$C$16:$C$43,0))/1000),\"\")","v":""},{"$f":"IFERROR(IF(OR($C$67=FALSE,LEFT($B65,3)<>\"NOX\"),AK57*INDEX('Damage costs'!$O$16:$O$43,MATCH($B65,'Damage costs'!$C$16:$C$43,0))/1000,AK57*INDEX('Damage costs'!$S$16:$S$43,MATCH($B65,'Damage costs'!$C$16:$C$43,0))/1000),\"\")","v":""},{"$f":"IFERROR(IF(OR($C$67=FALSE,LEFT($B65,3)<>\"NOX\"),AL57*INDEX('Damage costs'!$O$16:$O$43,MATCH($B65,'Damage costs'!$C$16:$C$43,0))/1000,AL57*INDEX('Damage costs'!$S$16:$S$43,MATCH($B65,'Damage costs'!$C$16:$C$43,0))/1000),\"\")","v":""},{"$f":"IFERROR(IF(OR($C$67=FALSE,LEFT($B65,3)<>\"NOX\"),AM57*INDEX('Damage costs'!$O$16:$O$43,MATCH($B65,'Damage costs'!$C$16:$C$43,0))/1000,AM57*INDEX('Damage costs'!$S$16:$S$43,MATCH($B65,'Damage costs'!$C$16:$C$43,0))/1000),\"\")","v":""},{"$f":"IFERROR(IF(OR($C$67=FALSE,LEFT($B65,3)<>\"NOX\"),AN57*INDEX('Damage costs'!$O$16:$O$43,MATCH($B65,'Damage costs'!$C$16:$C$43,0))/1000,AN57*INDEX('Damage costs'!$S$16:$S$43,MATCH($B65,'Damage costs'!$C$16:$C$43,0))/1000),\"\")","v":""},{"$f":"IFERROR(IF(OR($C$67=FALSE,LEFT($B65,3)<>\"NOX\"),AO57*INDEX('Damage costs'!$O$16:$O$43,MATCH($B65,'Damage costs'!$C$16:$C$43,0))/1000,AO57*INDEX('Damage costs'!$S$16:$S$43,MATCH($B65,'Damage costs'!$C$16:$C$43,0))/1000),\"\")","v":""},{"$f":"IFERROR(IF(OR($C$67=FALSE,LEFT($B65,3)<>\"NOX\"),AP57*INDEX('Damage costs'!$O$16:$O$43,MATCH($B65,'Damage costs'!$C$16:$C$43,0))/1000,AP57*INDEX('Damage costs'!$S$16:$S$43,MATCH($B65,'Damage costs'!$C$16:$C$43,0))/1000),\"\")","v":""},{"$f":"IFERROR(IF(OR($C$67=FALSE,LEFT($B65,3)<>\"NOX\"),AQ57*INDEX('Damage costs'!$O$16:$O$43,MATCH($B65,'Damage costs'!$C$16:$C$43,0))/1000,AQ57*INDEX('Damage costs'!$S$16:$S$43,MATCH($B65,'Damage costs'!$C$16:$C$43,0))/1000),\"\")","v":""},{"$f":"IFERROR(IF(OR($C$67=FALSE,LEFT($B65,3)<>\"NOX\"),AR57*INDEX('Damage costs'!$O$16:$O$43,MATCH($B65,'Damage costs'!$C$16:$C$43,0))/1000,AR57*INDEX('Damage costs'!$S$16:$S$43,MATCH($B65,'Damage costs'!$C$16:$C$43,0))/1000),\"\")","v":""},{"$f":"IFERROR(IF(OR($C$67=FALSE,LEFT($B65,3)<>\"NOX\"),AS57*INDEX('Damage costs'!$O$16:$O$43,MATCH($B65,'Damage costs'!$C$16:$C$43,0))/1000,AS57*INDEX('Damage costs'!$S$16:$S$43,MATCH($B65,'Damage costs'!$C$16:$C$43,0))/1000),\"\")","v":""},{"$f":"IFERROR(IF(OR($C$67=FALSE,LEFT($B65,3)<>\"NOX\"),AT57*INDEX('Damage costs'!$O$16:$O$43,MATCH($B65,'Damage costs'!$C$16:$C$43,0))/1000,AT57*INDEX('Damage costs'!$S$16:$S$43,MATCH($B65,'Damage costs'!$C$16:$C$43,0))/1000),\"\")","v":""},{"$f":"IFERROR(IF(OR($C$67=FALSE,LEFT($B65,3)<>\"NOX\"),AU57*INDEX('Damage costs'!$O$16:$O$43,MATCH($B65,'Damage costs'!$C$16:$C$43,0))/1000,AU57*INDEX('Damage costs'!$S$16:$S$43,MATCH($B65,'Damage costs'!$C$16:$C$43,0))/1000),\"\")","v":""},{"$f":"IFERROR(IF(OR($C$67=FALSE,LEFT($B65,3)<>\"NOX\"),AV57*INDEX('Damage costs'!$O$16:$O$43,MATCH($B65,'Damage costs'!$C$16:$C$43,0))/1000,AV57*INDEX('Damage costs'!$S$16:$S$43,MATCH($B65,'Damage costs'!$C$16:$C$43,0))/1000),\"\")","v":""},{"$f":"IFERROR(IF(OR($C$67=FALSE,LEFT($B65,3)<>\"NOX\"),AW57*INDEX('Damage costs'!$O$16:$O$43,MATCH($B65,'Damage costs'!$C$16:$C$43,0))/1000,AW57*INDEX('Damage costs'!$S$16:$S$43,MATCH($B65,'Damage costs'!$C$16:$C$43,0))/1000),\"\")","v":""},{"$f":"IFERROR(IF(OR($C$67=FALSE,LEFT($B65,3)<>\"NOX\"),AX57*INDEX('Damage costs'!$O$16:$O$43,MATCH($B65,'Damage costs'!$C$16:$C$43,0))/1000,AX57*INDEX('Damage costs'!$S$16:$S$43,MATCH($B65,'Damage costs'!$C$16:$C$43,0))/1000),\"\")","v":""},{"$f":"IFERROR(IF(OR($C$67=FALSE,LEFT($B65,3)<>\"NOX\"),AY57*INDEX('Damage costs'!$O$16:$O$43,MATCH($B65,'Damage costs'!$C$16:$C$43,0))/1000,AY57*INDEX('Damage costs'!$S$16:$S$43,MATCH($B65,'Damage costs'!$C$16:$C$43,0))/1000),\"\")","v":""},{"$f":"IFERROR(IF(OR($C$67=FALSE,LEFT($B65,3)<>\"NOX\"),AZ57*INDEX('Damage costs'!$O$16:$O$43,MATCH($B65,'Damage costs'!$C$16:$C$43,0))/1000,AZ57*INDEX('Damage costs'!$S$16:$S$43,MATCH($B65,'Damage costs'!$C$16:$C$43,0))/1000),\"\")","v":""},{"$f":"IFERROR(IF(OR($C$67=FALSE,LEFT($B65,3)<>\"NOX\"),BA57*INDEX('Damage costs'!$O$16:$O$43,MATCH($B65,'Damage costs'!$C$16:$C$43,0))/1000,BA57*INDEX('Damage costs'!$S$16:$S$43,MATCH($B65,'Damage costs'!$C$16:$C$43,0))/1000),\"\")","v":""},{"$f":"IFERROR(IF(OR($C$67=FALSE,LEFT($B65,3)<>\"NOX\"),BB57*INDEX('Damage costs'!$O$16:$O$43,MATCH($B65,'Damage costs'!$C$16:$C$43,0))/1000,BB57*INDEX('Damage costs'!$S$16:$S$43,MATCH($B65,'Damage costs'!$C$16:$C$43,0))/1000),\"\")","v":""},{"$f":"IFERROR(IF(OR($C$67=FALSE,LEFT($B65,3)<>\"NOX\"),BC57*INDEX('Damage costs'!$O$16:$O$43,MATCH($B65,'Damage costs'!$C$16:$C$43,0))/1000,BC57*INDEX('Damage costs'!$S$16:$S$43,MATCH($B65,'Damage costs'!$C$16:$C$43,0))/1000),\"\")","v":""},{"$f":"IFERROR(IF(OR($C$67=FALSE,LEFT($B65,3)<>\"NOX\"),BD57*INDEX('Damage costs'!$O$16:$O$43,MATCH($B65,'Damage costs'!$C$16:$C$43,0))/1000,BD57*INDEX('Damage costs'!$S$16:$S$43,MATCH($B65,'Damage costs'!$C$16:$C$43,0))/1000),\"\")","v":""},{"$f":"IFERROR(IF(OR($C$67=FALSE,LEFT($B65,3)<>\"NOX\"),BE57*INDEX('Damage costs'!$O$16:$O$43,MATCH($B65,'Damage costs'!$C$16:$C$43,0))/1000,BE57*INDEX('Damage costs'!$S$16:$S$43,MATCH($B65,'Damage costs'!$C$16:$C$43,0))/1000),\"\")","v":""},{"$f":"IFERROR(IF(OR($C$67=FALSE,LEFT($B65,3)<>\"NOX\"),BF57*INDEX('Damage costs'!$O$16:$O$43,MATCH($B65,'Damage costs'!$C$16:$C$43,0))/1000,BF57*INDEX('Damage costs'!$S$16:$S$43,MATCH($B65,'Damage costs'!$C$16:$C$43,0))/1000),\"\")","v":""},{"$f":"IFERROR(IF(OR($C$67=FALSE,LEFT($B65,3)<>\"NOX\"),BG57*INDEX('Damage costs'!$O$16:$O$43,MATCH($B65,'Damage costs'!$C$16:$C$43,0))/1000,BG57*INDEX('Damage costs'!$S$16:$S$43,MATCH($B65,'Damage costs'!$C$16:$C$43,0))/1000),\"\")","v":""},{"$f":"IFERROR(IF(OR($C$67=FALSE,LEFT($B65,3)<>\"NOX\"),BH57*INDEX('Damage costs'!$O$16:$O$43,MATCH($B65,'Damage costs'!$C$16:$C$43,0))/1000,BH57*INDEX('Damage costs'!$S$16:$S$43,MATCH($B65,'Damage costs'!$C$16:$C$43,0))/1000),\"\")","v":""},{"$f":"IFERROR(IF(OR($C$67=FALSE,LEFT($B65,3)<>\"NOX\"),BI57*INDEX('Damage costs'!$O$16:$O$43,MATCH($B65,'Damage costs'!$C$16:$C$43,0))/1000,BI57*INDEX('Damage costs'!$S$16:$S$43,MATCH($B65,'Damage costs'!$C$16:$C$43,0))/1000),\"\")","v":""},{"$f":"IFERROR(IF(OR($C$67=FALSE,LEFT($B65,3)<>\"NOX\"),BJ57*INDEX('Damage costs'!$O$16:$O$43,MATCH($B65,'Damage costs'!$C$16:$C$43,0))/1000,BJ57*INDEX('Damage costs'!$S$16:$S$43,MATCH($B65,'Damage costs'!$C$16:$C$43,0))/1000),\"\")","v":""},{"$f":"IFERROR(IF(OR($C$67=FALSE,LEFT($B65,3)<>\"NOX\"),BK57*INDEX('Damage costs'!$O$16:$O$43,MATCH($B65,'Damage costs'!$C$16:$C$43,0))/1000,BK57*INDEX('Damage costs'!$S$16:$S$43,MATCH($B65,'Damage costs'!$C$16:$C$43,0))/1000),\"\")","v":""},{"$f":"IFERROR(IF(OR($C$67=FALSE,LEFT($B65,3)<>\"NOX\"),BL57*INDEX('Damage costs'!$O$16:$O$43,MATCH($B65,'Damage costs'!$C$16:$C$43,0))/1000,BL57*INDEX('Damage costs'!$S$16:$S$43,MATCH($B65,'Damage costs'!$C$16:$C$43,0))/1000),\"\")","v":""},{"$f":"IFERROR(IF(OR($C$67=FALSE,LEFT($B65,3)<>\"NOX\"),BM57*INDEX('Damage costs'!$O$16:$O$43,MATCH($B65,'Damage costs'!$C$16:$C$43,0))/1000,BM57*INDEX('Damage costs'!$S$16:$S$43,MATCH($B65,'Damage costs'!$C$16:$C$43,0))/1000),\"\")","v":""},{"$f":"IFERROR(IF(OR($C$67=FALSE,LEFT($B65,3)<>\"NOX\"),BN57*INDEX('Damage costs'!$O$16:$O$43,MATCH($B65,'Damage costs'!$C$16:$C$43,0))/1000,BN57*INDEX('Damage costs'!$S$16:$S$43,MATCH($B65,'Damage costs'!$C$16:$C$43,0))/1000),\"\")","v":""},{"$f":"IFERROR(IF(OR($C$67=FALSE,LEFT($B65,3)<>\"NOX\"),BO57*INDEX('Damage costs'!$O$16:$O$43,MATCH($B65,'Damage costs'!$C$16:$C$43,0))/1000,BO57*INDEX('Damage costs'!$S$16:$S$43,MATCH($B65,'Damage costs'!$C$16:$C$43,0))/1000),\"\")","v":""},{"$f":"IFERROR(IF(OR($C$67=FALSE,LEFT($B65,3)<>\"NOX\"),BP57*INDEX('Damage costs'!$O$16:$O$43,MATCH($B65,'Damage costs'!$C$16:$C$43,0))/1000,BP57*INDEX('Damage costs'!$S$16:$S$43,MATCH($B65,'Damage costs'!$C$16:$C$43,0))/1000),\"\")","v":""},{"$f":"IFERROR(IF(OR($C$67=FALSE,LEFT($B65,3)<>\"NOX\"),BQ57*INDEX('Damage costs'!$O$16:$O$43,MATCH($B65,'Damage costs'!$C$16:$C$43,0))/1000,BQ57*INDEX('Damage costs'!$S$16:$S$43,MATCH($B65,'Damage costs'!$C$16:$C$43,0))/1000),\"\")","v":""},{"$f":"IFERROR(IF(OR($C$67=FALSE,LEFT($B65,3)<>\"NOX\"),BR57*INDEX('Damage costs'!$O$16:$O$43,MATCH($B65,'Damage costs'!$C$16:$C$43,0))/1000,BR57*INDEX('Damage costs'!$S$16:$S$43,MATCH($B65,'Damage costs'!$C$16:$C$43,0))/1000),\"\")","v":""},{"$f":"IFERROR(IF(OR($C$67=FALSE,LEFT($B65,3)<>\"NOX\"),BS57*INDEX('Damage costs'!$O$16:$O$43,MATCH($B65,'Damage costs'!$C$16:$C$43,0))/1000,BS57*INDEX('Damage costs'!$S$16:$S$43,MATCH($B65,'Damage costs'!$C$16:$C$43,0))/1000),\"\")","v":""},{"$f":"IFERROR(IF(OR($C$67=FALSE,LEFT($B65,3)<>\"NOX\"),BT57*INDEX('Damage costs'!$O$16:$O$43,MATCH($B65,'Damage costs'!$C$16:$C$43,0))/1000,BT57*INDEX('Damage costs'!$S$16:$S$43,MATCH($B65,'Damage costs'!$C$16:$C$43,0))/1000),\"\")","v":""},{"$f":"IFERROR(IF(OR($C$67=FALSE,LEFT($B65,3)<>\"NOX\"),BU57*INDEX('Damage costs'!$O$16:$O$43,MATCH($B65,'Damage costs'!$C$16:$C$43,0))/1000,BU57*INDEX('Damage costs'!$S$16:$S$43,MATCH($B65,'Damage costs'!$C$16:$C$43,0))/1000),\"\")","v":""},{"$f":"IFERROR(IF(OR($C$67=FALSE,LEFT($B65,3)<>\"NOX\"),BV57*INDEX('Damage costs'!$O$16:$O$43,MATCH($B65,'Damage costs'!$C$16:$C$43,0))/1000,BV57*INDEX('Damage costs'!$S$16:$S$43,MATCH($B65,'Damage costs'!$C$16:$C$43,0))/1000),\"\")","v":""},{"$f":"IFERROR(IF(OR($C$67=FALSE,LEFT($B65,3)<>\"NOX\"),BW57*INDEX('Damage costs'!$O$16:$O$43,MATCH($B65,'Damage costs'!$C$16:$C$43,0))/1000,BW57*INDEX('Damage costs'!$S$16:$S$43,MATCH($B65,'Damage costs'!$C$16:$C$43,0))/1000),\"\")","v":""},{"$f":"IFERROR(IF(OR($C$67=FALSE,LEFT($B65,3)<>\"NOX\"),BX57*INDEX('Damage costs'!$O$16:$O$43,MATCH($B65,'Damage costs'!$C$16:$C$43,0))/1000,BX57*INDEX('Damage costs'!$S$16:$S$43,MATCH($B65,'Damage costs'!$C$16:$C$43,0))/1000),\"\")","v":""},{"$f":"IFERROR(IF(OR($C$67=FALSE,LEFT($B65,3)<>\"NOX\"),BY57*INDEX('Damage costs'!$O$16:$O$43,MATCH($B65,'Damage costs'!$C$16:$C$43,0))/1000,BY57*INDEX('Damage costs'!$S$16:$S$43,MATCH($B65,'Damage costs'!$C$16:$C$43,0))/1000),\"\")","v":""},{"$f":"IFERROR(IF(OR($C$67=FALSE,LEFT($B65,3)<>\"NOX\"),BZ57*INDEX('Damage costs'!$O$16:$O$43,MATCH($B65,'Damage costs'!$C$16:$C$43,0))/1000,BZ57*INDEX('Damage costs'!$S$16:$S$43,MATCH($B65,'Damage costs'!$C$16:$C$43,0))/1000),\"\")","v":""},{"$f":"IFERROR(IF(OR($C$67=FALSE,LEFT($B65,3)<>\"NOX\"),CA57*INDEX('Damage costs'!$O$16:$O$43,MATCH($B65,'Damage costs'!$C$16:$C$43,0))/1000,CA57*INDEX('Damage costs'!$S$16:$S$43,MATCH($B65,'Damage costs'!$C$16:$C$43,0))/1000),\"\")","v":""},{"$f":"IFERROR(IF(OR($C$67=FALSE,LEFT($B65,3)<>\"NOX\"),CB57*INDEX('Damage costs'!$O$16:$O$43,MATCH($B65,'Damage costs'!$C$16:$C$43,0))/1000,CB57*INDEX('Damage costs'!$S$16:$S$43,MATCH($B65,'Damage costs'!$C$16:$C$43,0))/1000),\"\")","v":""},{"$f":"IFERROR(IF(OR($C$67=FALSE,LEFT($B65,3)<>\"NOX\"),CC57*INDEX('Damage costs'!$O$16:$O$43,MATCH($B65,'Damage costs'!$C$16:$C$43,0))/1000,CC57*INDEX('Damage costs'!$S$16:$S$43,MATCH($B65,'Damage costs'!$C$16:$C$43,0))/1000),\"\")","v":""},{"$f":"IFERROR(IF(OR($C$67=FALSE,LEFT($B65,3)<>\"NOX\"),CD57*INDEX('Damage costs'!$O$16:$O$43,MATCH($B65,'Damage costs'!$C$16:$C$43,0))/1000,CD57*INDEX('Damage costs'!$S$16:$S$43,MATCH($B65,'Damage costs'!$C$16:$C$43,0))/1000),\"\")","v":""},{"$f":"IFERROR(IF(OR($C$67=FALSE,LEFT($B65,3)<>\"NOX\"),CE57*INDEX('Damage costs'!$O$16:$O$43,MATCH($B65,'Damage costs'!$C$16:$C$43,0))/1000,CE57*INDEX('Damage costs'!$S$16:$S$43,MATCH($B65,'Damage costs'!$C$16:$C$43,0))/1000),\"\")","v":""},{"$f":"IFERROR(IF(OR($C$67=FALSE,LEFT($B65,3)<>\"NOX\"),CF57*INDEX('Damage costs'!$O$16:$O$43,MATCH($B65,'Damage costs'!$C$16:$C$43,0))/1000,CF57*INDEX('Damage costs'!$S$16:$S$43,MATCH($B65,'Damage costs'!$C$16:$C$43,0))/1000),\"\")","v":""},{"$f":"IFERROR(IF(OR($C$67=FALSE,LEFT($B65,3)<>\"NOX\"),CG57*INDEX('Damage costs'!$O$16:$O$43,MATCH($B65,'Damage costs'!$C$16:$C$43,0))/1000,CG57*INDEX('Damage costs'!$S$16:$S$43,MATCH($B65,'Damage costs'!$C$16:$C$43,0))/1000),\"\")","v":""},{"$f":"IFERROR(IF(OR($C$67=FALSE,LEFT($B65,3)<>\"NOX\"),CH57*INDEX('Damage costs'!$O$16:$O$43,MATCH($B65,'Damage costs'!$C$16:$C$43,0))/1000,CH57*INDEX('Damage costs'!$S$16:$S$43,MATCH($B65,'Damage costs'!$C$16:$C$43,0))/1000),\"\")","v":""},{"$f":"IFERROR(IF(OR($C$67=FALSE,LEFT($B65,3)<>\"NOX\"),CI57*INDEX('Damage costs'!$O$16:$O$43,MATCH($B65,'Damage costs'!$C$16:$C$43,0))/1000,CI57*INDEX('Damage costs'!$S$16:$S$43,MATCH($B65,'Damage costs'!$C$16:$C$43,0))/1000),\"\")","v":""},{"$f":"IFERROR(IF(OR($C$67=FALSE,LEFT($B65,3)<>\"NOX\"),CJ57*INDEX('Damage costs'!$O$16:$O$43,MATCH($B65,'Damage costs'!$C$16:$C$43,0))/1000,CJ57*INDEX('Damage costs'!$S$16:$S$43,MATCH($B65,'Damage costs'!$C$16:$C$43,0))/1000),\"\")","v":""},{"$f":"IFERROR(IF(OR($C$67=FALSE,LEFT($B65,3)<>\"NOX\"),CK57*INDEX('Damage costs'!$O$16:$O$43,MATCH($B65,'Damage costs'!$C$16:$C$43,0))/1000,CK57*INDEX('Damage costs'!$S$16:$S$43,MATCH($B65,'Damage costs'!$C$16:$C$43,0))/1000),\"\")","v":""},{"$f":"IFERROR(IF(OR($C$67=FALSE,LEFT($B65,3)<>\"NOX\"),CL57*INDEX('Damage costs'!$O$16:$O$43,MATCH($B65,'Damage costs'!$C$16:$C$43,0))/1000,CL57*INDEX('Damage costs'!$S$16:$S$43,MATCH($B65,'Damage costs'!$C$16:$C$43,0))/1000),\"\")","v":""},{"$f":"IFERROR(IF(OR($C$67=FALSE,LEFT($B65,3)<>\"NOX\"),CM57*INDEX('Damage costs'!$O$16:$O$43,MATCH($B65,'Damage costs'!$C$16:$C$43,0))/1000,CM57*INDEX('Damage costs'!$S$16:$S$43,MATCH($B65,'Damage costs'!$C$16:$C$43,0))/1000),\"\")","v":""},{"$f":"IFERROR(IF(OR($C$67=FALSE,LEFT($B65,3)<>\"NOX\"),CN57*INDEX('Damage costs'!$O$16:$O$43,MATCH($B65,'Damage costs'!$C$16:$C$43,0))/1000,CN57*INDEX('Damage costs'!$S$16:$S$43,MATCH($B65,'Damage costs'!$C$16:$C$43,0))/1000),\"\")","v":""},{"$f":"IFERROR(IF(OR($C$67=FALSE,LEFT($B65,3)<>\"NOX\"),CO57*INDEX('Damage costs'!$O$16:$O$43,MATCH($B65,'Damage costs'!$C$16:$C$43,0))/1000,CO57*INDEX('Damage costs'!$S$16:$S$43,MATCH($B65,'Damage costs'!$C$16:$C$43,0))/1000),\"\")","v":""},{"$f":"IFERROR(IF(OR($C$67=FALSE,LEFT($B65,3)<>\"NOX\"),CP57*INDEX('Damage costs'!$O$16:$O$43,MATCH($B65,'Damage costs'!$C$16:$C$43,0))/1000,CP57*INDEX('Damage costs'!$S$16:$S$43,MATCH($B65,'Damage costs'!$C$16:$C$43,0))/1000),\"\")","v":""},{"$f":"IFERROR(IF(OR($C$67=FALSE,LEFT($B65,3)<>\"NOX\"),CQ57*INDEX('Damage costs'!$O$16:$O$43,MATCH($B65,'Damage costs'!$C$16:$C$43,0))/1000,CQ57*INDEX('Damage costs'!$S$16:$S$43,MATCH($B65,'Damage costs'!$C$16:$C$43,0))/1000),\"\")","v":""},{"$f":"IFERROR(IF(OR($C$67=FALSE,LEFT($B65,3)<>\"NOX\"),CR57*INDEX('Damage costs'!$O$16:$O$43,MATCH($B65,'Damage costs'!$C$16:$C$43,0))/1000,CR57*INDEX('Damage costs'!$S$16:$S$43,MATCH($B65,'Damage costs'!$C$16:$C$43,0))/1000),\"\")","v":""},{"$f":"IFERROR(IF(OR($C$67=FALSE,LEFT($B65,3)<>\"NOX\"),CS57*INDEX('Damage costs'!$O$16:$O$43,MATCH($B65,'Damage costs'!$C$16:$C$43,0))/1000,CS57*INDEX('Damage costs'!$S$16:$S$43,MATCH($B65,'Damage costs'!$C$16:$C$43,0))/1000),\"\")","v":""},{"$f":"IFERROR(IF(OR($C$67=FALSE,LEFT($B65,3)<>\"NOX\"),CT57*INDEX('Damage costs'!$O$16:$O$43,MATCH($B65,'Damage costs'!$C$16:$C$43,0))/1000,CT57*INDEX('Damage costs'!$S$16:$S$43,MATCH($B65,'Damage costs'!$C$16:$C$43,0))/1000),\"\")","v":""},{"$f":"IFERROR(IF(OR($C$67=FALSE,LEFT($B65,3)<>\"NOX\"),CU57*INDEX('Damage costs'!$O$16:$O$43,MATCH($B65,'Damage costs'!$C$16:$C$43,0))/1000,CU57*INDEX('Damage costs'!$S$16:$S$43,MATCH($B65,'Damage costs'!$C$16:$C$43,0))/1000),\"\")","v":""},{"$f":"IFERROR(IF(OR($C$67=FALSE,LEFT($B65,3)<>\"NOX\"),CV57*INDEX('Damage costs'!$O$16:$O$43,MATCH($B65,'Damage costs'!$C$16:$C$43,0))/1000,CV57*INDEX('Damage costs'!$S$16:$S$43,MATCH($B65,'Damage costs'!$C$16:$C$43,0))/1000),\"\")","v":""},{"$f":"IFERROR(IF(OR($C$67=FALSE,LEFT($B65,3)<>\"NOX\"),CW57*INDEX('Damage costs'!$O$16:$O$43,MATCH($B65,'Damage costs'!$C$16:$C$43,0))/1000,CW57*INDEX('Damage costs'!$S$16:$S$43,MATCH($B65,'Damage costs'!$C$16:$C$43,0))/1000),\"\")","v":""},{"$f":"IFERROR(IF(OR($C$67=FALSE,LEFT($B65,3)<>\"NOX\"),CX57*INDEX('Damage costs'!$O$16:$O$43,MATCH($B65,'Damage costs'!$C$16:$C$43,0))/1000,CX57*INDEX('Damage costs'!$S$16:$S$43,MATCH($B65,'Damage costs'!$C$16:$C$43,0))/1000),\"\")","v":""},{"$f":"IFERROR(IF(OR($C$67=FALSE,LEFT($B65,3)<>\"NOX\"),CY57*INDEX('Damage costs'!$O$16:$O$43,MATCH($B65,'Damage costs'!$C$16:$C$43,0))/1000,CY57*INDEX('Damage costs'!$S$16:$S$43,MATCH($B65,'Damage costs'!$C$16:$C$43,0))/1000),\"\")","v":""}]
[null,0,"£000's",{"$f":"IFERROR(IF(OR($C$67=FALSE,LEFT($B66,3)<>\"NOX\"),D58*INDEX('Damage costs'!$O$16:$O$43,MATCH($B66,'Damage costs'!$C$16:$C$43,0))/1000,D58*INDEX('Damage costs'!$S$16:$S$43,MATCH($B66,'Damage costs'!$C$16:$C$43,0))/1000),\"\")","v":""},{"$f":"IFERROR(IF(OR($C$67=FALSE,LEFT($B66,3)<>\"NOX\"),E58*INDEX('Damage costs'!$O$16:$O$43,MATCH($B66,'Damage costs'!$C$16:$C$43,0))/1000,E58*INDEX('Damage costs'!$S$16:$S$43,MATCH($B66,'Damage costs'!$C$16:$C$43,0))/1000),\"\")","v":""},{"$f":"IFERROR(IF(OR($C$67=FALSE,LEFT($B66,3)<>\"NOX\"),F58*INDEX('Damage costs'!$O$16:$O$43,MATCH($B66,'Damage costs'!$C$16:$C$43,0))/1000,F58*INDEX('Damage costs'!$S$16:$S$43,MATCH($B66,'Damage costs'!$C$16:$C$43,0))/1000),\"\")","v":""},{"$f":"IFERROR(IF(OR($C$67=FALSE,LEFT($B66,3)<>\"NOX\"),G58*INDEX('Damage costs'!$O$16:$O$43,MATCH($B66,'Damage costs'!$C$16:$C$43,0))/1000,G58*INDEX('Damage costs'!$S$16:$S$43,MATCH($B66,'Damage costs'!$C$16:$C$43,0))/1000),\"\")","v":""},{"$f":"IFERROR(IF(OR($C$67=FALSE,LEFT($B66,3)<>\"NOX\"),H58*INDEX('Damage costs'!$O$16:$O$43,MATCH($B66,'Damage costs'!$C$16:$C$43,0))/1000,H58*INDEX('Damage costs'!$S$16:$S$43,MATCH($B66,'Damage costs'!$C$16:$C$43,0))/1000),\"\")","v":""},{"$f":"IFERROR(IF(OR($C$67=FALSE,LEFT($B66,3)<>\"NOX\"),I58*INDEX('Damage costs'!$O$16:$O$43,MATCH($B66,'Damage costs'!$C$16:$C$43,0))/1000,I58*INDEX('Damage costs'!$S$16:$S$43,MATCH($B66,'Damage costs'!$C$16:$C$43,0))/1000),\"\")","v":""},{"$f":"IFERROR(IF(OR($C$67=FALSE,LEFT($B66,3)<>\"NOX\"),J58*INDEX('Damage costs'!$O$16:$O$43,MATCH($B66,'Damage costs'!$C$16:$C$43,0))/1000,J58*INDEX('Damage costs'!$S$16:$S$43,MATCH($B66,'Damage costs'!$C$16:$C$43,0))/1000),\"\")","v":""},{"$f":"IFERROR(IF(OR($C$67=FALSE,LEFT($B66,3)<>\"NOX\"),K58*INDEX('Damage costs'!$O$16:$O$43,MATCH($B66,'Damage costs'!$C$16:$C$43,0))/1000,K58*INDEX('Damage costs'!$S$16:$S$43,MATCH($B66,'Damage costs'!$C$16:$C$43,0))/1000),\"\")","v":""},{"$f":"IFERROR(IF(OR($C$67=FALSE,LEFT($B66,3)<>\"NOX\"),L58*INDEX('Damage costs'!$O$16:$O$43,MATCH($B66,'Damage costs'!$C$16:$C$43,0))/1000,L58*INDEX('Damage costs'!$S$16:$S$43,MATCH($B66,'Damage costs'!$C$16:$C$43,0))/1000),\"\")","v":""},{"$f":"IFERROR(IF(OR($C$67=FALSE,LEFT($B66,3)<>\"NOX\"),M58*INDEX('Damage costs'!$O$16:$O$43,MATCH($B66,'Damage costs'!$C$16:$C$43,0))/1000,M58*INDEX('Damage costs'!$S$16:$S$43,MATCH($B66,'Damage costs'!$C$16:$C$43,0))/1000),\"\")","v":""},{"$f":"IFERROR(IF(OR($C$67=FALSE,LEFT($B66,3)<>\"NOX\"),N58*INDEX('Damage costs'!$O$16:$O$43,MATCH($B66,'Damage costs'!$C$16:$C$43,0))/1000,N58*INDEX('Damage costs'!$S$16:$S$43,MATCH($B66,'Damage costs'!$C$16:$C$43,0))/1000),\"\")","v":""},{"$f":"IFERROR(IF(OR($C$67=FALSE,LEFT($B66,3)<>\"NOX\"),O58*INDEX('Damage costs'!$O$16:$O$43,MATCH($B66,'Damage costs'!$C$16:$C$43,0))/1000,O58*INDEX('Damage costs'!$S$16:$S$43,MATCH($B66,'Damage costs'!$C$16:$C$43,0))/1000),\"\")","v":""},{"$f":"IFERROR(IF(OR($C$67=FALSE,LEFT($B66,3)<>\"NOX\"),P58*INDEX('Damage costs'!$O$16:$O$43,MATCH($B66,'Damage costs'!$C$16:$C$43,0))/1000,P58*INDEX('Damage costs'!$S$16:$S$43,MATCH($B66,'Damage costs'!$C$16:$C$43,0))/1000),\"\")","v":""},{"$f":"IFERROR(IF(OR($C$67=FALSE,LEFT($B66,3)<>\"NOX\"),Q58*INDEX('Damage costs'!$O$16:$O$43,MATCH($B66,'Damage costs'!$C$16:$C$43,0))/1000,Q58*INDEX('Damage costs'!$S$16:$S$43,MATCH($B66,'Damage costs'!$C$16:$C$43,0))/1000),\"\")","v":""},{"$f":"IFERROR(IF(OR($C$67=FALSE,LEFT($B66,3)<>\"NOX\"),R58*INDEX('Damage costs'!$O$16:$O$43,MATCH($B66,'Damage costs'!$C$16:$C$43,0))/1000,R58*INDEX('Damage costs'!$S$16:$S$43,MATCH($B66,'Damage costs'!$C$16:$C$43,0))/1000),\"\")","v":""},{"$f":"IFERROR(IF(OR($C$67=FALSE,LEFT($B66,3)<>\"NOX\"),S58*INDEX('Damage costs'!$O$16:$O$43,MATCH($B66,'Damage costs'!$C$16:$C$43,0))/1000,S58*INDEX('Damage costs'!$S$16:$S$43,MATCH($B66,'Damage costs'!$C$16:$C$43,0))/1000),\"\")","v":""},{"$f":"IFERROR(IF(OR($C$67=FALSE,LEFT($B66,3)<>\"NOX\"),T58*INDEX('Damage costs'!$O$16:$O$43,MATCH($B66,'Damage costs'!$C$16:$C$43,0))/1000,T58*INDEX('Damage costs'!$S$16:$S$43,MATCH($B66,'Damage costs'!$C$16:$C$43,0))/1000),\"\")","v":""},{"$f":"IFERROR(IF(OR($C$67=FALSE,LEFT($B66,3)<>\"NOX\"),U58*INDEX('Damage costs'!$O$16:$O$43,MATCH($B66,'Damage costs'!$C$16:$C$43,0))/1000,U58*INDEX('Damage costs'!$S$16:$S$43,MATCH($B66,'Damage costs'!$C$16:$C$43,0))/1000),\"\")","v":""},{"$f":"IFERROR(IF(OR($C$67=FALSE,LEFT($B66,3)<>\"NOX\"),V58*INDEX('Damage costs'!$O$16:$O$43,MATCH($B66,'Damage costs'!$C$16:$C$43,0))/1000,V58*INDEX('Damage costs'!$S$16:$S$43,MATCH($B66,'Damage costs'!$C$16:$C$43,0))/1000),\"\")","v":""},{"$f":"IFERROR(IF(OR($C$67=FALSE,LEFT($B66,3)<>\"NOX\"),W58*INDEX('Damage costs'!$O$16:$O$43,MATCH($B66,'Damage costs'!$C$16:$C$43,0))/1000,W58*INDEX('Damage costs'!$S$16:$S$43,MATCH($B66,'Damage costs'!$C$16:$C$43,0))/1000),\"\")","v":""},{"$f":"IFERROR(IF(OR($C$67=FALSE,LEFT($B66,3)<>\"NOX\"),X58*INDEX('Damage costs'!$O$16:$O$43,MATCH($B66,'Damage costs'!$C$16:$C$43,0))/1000,X58*INDEX('Damage costs'!$S$16:$S$43,MATCH($B66,'Damage costs'!$C$16:$C$43,0))/1000),\"\")","v":""},{"$f":"IFERROR(IF(OR($C$67=FALSE,LEFT($B66,3)<>\"NOX\"),Y58*INDEX('Damage costs'!$O$16:$O$43,MATCH($B66,'Damage costs'!$C$16:$C$43,0))/1000,Y58*INDEX('Damage costs'!$S$16:$S$43,MATCH($B66,'Damage costs'!$C$16:$C$43,0))/1000),\"\")","v":""},{"$f":"IFERROR(IF(OR($C$67=FALSE,LEFT($B66,3)<>\"NOX\"),Z58*INDEX('Damage costs'!$O$16:$O$43,MATCH($B66,'Damage costs'!$C$16:$C$43,0))/1000,Z58*INDEX('Damage costs'!$S$16:$S$43,MATCH($B66,'Damage costs'!$C$16:$C$43,0))/1000),\"\")","v":""},{"$f":"IFERROR(IF(OR($C$67=FALSE,LEFT($B66,3)<>\"NOX\"),AA58*INDEX('Damage costs'!$O$16:$O$43,MATCH($B66,'Damage costs'!$C$16:$C$43,0))/1000,AA58*INDEX('Damage costs'!$S$16:$S$43,MATCH($B66,'Damage costs'!$C$16:$C$43,0))/1000),\"\")","v":""},{"$f":"IFERROR(IF(OR($C$67=FALSE,LEFT($B66,3)<>\"NOX\"),AB58*INDEX('Damage costs'!$O$16:$O$43,MATCH($B66,'Damage costs'!$C$16:$C$43,0))/1000,AB58*INDEX('Damage costs'!$S$16:$S$43,MATCH($B66,'Damage costs'!$C$16:$C$43,0))/1000),\"\")","v":""},{"$f":"IFERROR(IF(OR($C$67=FALSE,LEFT($B66,3)<>\"NOX\"),AC58*INDEX('Damage costs'!$O$16:$O$43,MATCH($B66,'Damage costs'!$C$16:$C$43,0))/1000,AC58*INDEX('Damage costs'!$S$16:$S$43,MATCH($B66,'Damage costs'!$C$16:$C$43,0))/1000),\"\")","v":""},{"$f":"IFERROR(IF(OR($C$67=FALSE,LEFT($B66,3)<>\"NOX\"),AD58*INDEX('Damage costs'!$O$16:$O$43,MATCH($B66,'Damage costs'!$C$16:$C$43,0))/1000,AD58*INDEX('Damage costs'!$S$16:$S$43,MATCH($B66,'Damage costs'!$C$16:$C$43,0))/1000),\"\")","v":""},{"$f":"IFERROR(IF(OR($C$67=FALSE,LEFT($B66,3)<>\"NOX\"),AE58*INDEX('Damage costs'!$O$16:$O$43,MATCH($B66,'Damage costs'!$C$16:$C$43,0))/1000,AE58*INDEX('Damage costs'!$S$16:$S$43,MATCH($B66,'Damage costs'!$C$16:$C$43,0))/1000),\"\")","v":""},{"$f":"IFERROR(IF(OR($C$67=FALSE,LEFT($B66,3)<>\"NOX\"),AF58*INDEX('Damage costs'!$O$16:$O$43,MATCH($B66,'Damage costs'!$C$16:$C$43,0))/1000,AF58*INDEX('Damage costs'!$S$16:$S$43,MATCH($B66,'Damage costs'!$C$16:$C$43,0))/1000),\"\")","v":""},{"$f":"IFERROR(IF(OR($C$67=FALSE,LEFT($B66,3)<>\"NOX\"),AG58*INDEX('Damage costs'!$O$16:$O$43,MATCH($B66,'Damage costs'!$C$16:$C$43,0))/1000,AG58*INDEX('Damage costs'!$S$16:$S$43,MATCH($B66,'Damage costs'!$C$16:$C$43,0))/1000),\"\")","v":""},{"$f":"IFERROR(IF(OR($C$67=FALSE,LEFT($B66,3)<>\"NOX\"),AH58*INDEX('Damage costs'!$O$16:$O$43,MATCH($B66,'Damage costs'!$C$16:$C$43,0))/1000,AH58*INDEX('Damage costs'!$S$16:$S$43,MATCH($B66,'Damage costs'!$C$16:$C$43,0))/1000),\"\")","v":""},{"$f":"IFERROR(IF(OR($C$67=FALSE,LEFT($B66,3)<>\"NOX\"),AI58*INDEX('Damage costs'!$O$16:$O$43,MATCH($B66,'Damage costs'!$C$16:$C$43,0))/1000,AI58*INDEX('Damage costs'!$S$16:$S$43,MATCH($B66,'Damage costs'!$C$16:$C$43,0))/1000),\"\")","v":""},{"$f":"IFERROR(IF(OR($C$67=FALSE,LEFT($B66,3)<>\"NOX\"),AJ58*INDEX('Damage costs'!$O$16:$O$43,MATCH($B66,'Damage costs'!$C$16:$C$43,0))/1000,AJ58*INDEX('Damage costs'!$S$16:$S$43,MATCH($B66,'Damage costs'!$C$16:$C$43,0))/1000),\"\")","v":""},{"$f":"IFERROR(IF(OR($C$67=FALSE,LEFT($B66,3)<>\"NOX\"),AK58*INDEX('Damage costs'!$O$16:$O$43,MATCH($B66,'Damage costs'!$C$16:$C$43,0))/1000,AK58*INDEX('Damage costs'!$S$16:$S$43,MATCH($B66,'Damage costs'!$C$16:$C$43,0))/1000),\"\")","v":""},{"$f":"IFERROR(IF(OR($C$67=FALSE,LEFT($B66,3)<>\"NOX\"),AL58*INDEX('Damage costs'!$O$16:$O$43,MATCH($B66,'Damage costs'!$C$16:$C$43,0))/1000,AL58*INDEX('Damage costs'!$S$16:$S$43,MATCH($B66,'Damage costs'!$C$16:$C$43,0))/1000),\"\")","v":""},{"$f":"IFERROR(IF(OR($C$67=FALSE,LEFT($B66,3)<>\"NOX\"),AM58*INDEX('Damage costs'!$O$16:$O$43,MATCH($B66,'Damage costs'!$C$16:$C$43,0))/1000,AM58*INDEX('Damage costs'!$S$16:$S$43,MATCH($B66,'Damage costs'!$C$16:$C$43,0))/1000),\"\")","v":""},{"$f":"IFERROR(IF(OR($C$67=FALSE,LEFT($B66,3)<>\"NOX\"),AN58*INDEX('Damage costs'!$O$16:$O$43,MATCH($B66,'Damage costs'!$C$16:$C$43,0))/1000,AN58*INDEX('Damage costs'!$S$16:$S$43,MATCH($B66,'Damage costs'!$C$16:$C$43,0))/1000),\"\")","v":""},{"$f":"IFERROR(IF(OR($C$67=FALSE,LEFT($B66,3)<>\"NOX\"),AO58*INDEX('Damage costs'!$O$16:$O$43,MATCH($B66,'Damage costs'!$C$16:$C$43,0))/1000,AO58*INDEX('Damage costs'!$S$16:$S$43,MATCH($B66,'Damage costs'!$C$16:$C$43,0))/1000),\"\")","v":""},{"$f":"IFERROR(IF(OR($C$67=FALSE,LEFT($B66,3)<>\"NOX\"),AP58*INDEX('Damage costs'!$O$16:$O$43,MATCH($B66,'Damage costs'!$C$16:$C$43,0))/1000,AP58*INDEX('Damage costs'!$S$16:$S$43,MATCH($B66,'Damage costs'!$C$16:$C$43,0))/1000),\"\")","v":""},{"$f":"IFERROR(IF(OR($C$67=FALSE,LEFT($B66,3)<>\"NOX\"),AQ58*INDEX('Damage costs'!$O$16:$O$43,MATCH($B66,'Damage costs'!$C$16:$C$43,0))/1000,AQ58*INDEX('Damage costs'!$S$16:$S$43,MATCH($B66,'Damage costs'!$C$16:$C$43,0))/1000),\"\")","v":""},{"$f":"IFERROR(IF(OR($C$67=FALSE,LEFT($B66,3)<>\"NOX\"),AR58*INDEX('Damage costs'!$O$16:$O$43,MATCH($B66,'Damage costs'!$C$16:$C$43,0))/1000,AR58*INDEX('Damage costs'!$S$16:$S$43,MATCH($B66,'Damage costs'!$C$16:$C$43,0))/1000),\"\")","v":""},{"$f":"IFERROR(IF(OR($C$67=FALSE,LEFT($B66,3)<>\"NOX\"),AS58*INDEX('Damage costs'!$O$16:$O$43,MATCH($B66,'Damage costs'!$C$16:$C$43,0))/1000,AS58*INDEX('Damage costs'!$S$16:$S$43,MATCH($B66,'Damage costs'!$C$16:$C$43,0))/1000),\"\")","v":""},{"$f":"IFERROR(IF(OR($C$67=FALSE,LEFT($B66,3)<>\"NOX\"),AT58*INDEX('Damage costs'!$O$16:$O$43,MATCH($B66,'Damage costs'!$C$16:$C$43,0))/1000,AT58*INDEX('Damage costs'!$S$16:$S$43,MATCH($B66,'Damage costs'!$C$16:$C$43,0))/1000),\"\")","v":""},{"$f":"IFERROR(IF(OR($C$67=FALSE,LEFT($B66,3)<>\"NOX\"),AU58*INDEX('Damage costs'!$O$16:$O$43,MATCH($B66,'Damage costs'!$C$16:$C$43,0))/1000,AU58*INDEX('Damage costs'!$S$16:$S$43,MATCH($B66,'Damage costs'!$C$16:$C$43,0))/1000),\"\")","v":""},{"$f":"IFERROR(IF(OR($C$67=FALSE,LEFT($B66,3)<>\"NOX\"),AV58*INDEX('Damage costs'!$O$16:$O$43,MATCH($B66,'Damage costs'!$C$16:$C$43,0))/1000,AV58*INDEX('Damage costs'!$S$16:$S$43,MATCH($B66,'Damage costs'!$C$16:$C$43,0))/1000),\"\")","v":""},{"$f":"IFERROR(IF(OR($C$67=FALSE,LEFT($B66,3)<>\"NOX\"),AW58*INDEX('Damage costs'!$O$16:$O$43,MATCH($B66,'Damage costs'!$C$16:$C$43,0))/1000,AW58*INDEX('Damage costs'!$S$16:$S$43,MATCH($B66,'Damage costs'!$C$16:$C$43,0))/1000),\"\")","v":""},{"$f":"IFERROR(IF(OR($C$67=FALSE,LEFT($B66,3)<>\"NOX\"),AX58*INDEX('Damage costs'!$O$16:$O$43,MATCH($B66,'Damage costs'!$C$16:$C$43,0))/1000,AX58*INDEX('Damage costs'!$S$16:$S$43,MATCH($B66,'Damage costs'!$C$16:$C$43,0))/1000),\"\")","v":""},{"$f":"IFERROR(IF(OR($C$67=FALSE,LEFT($B66,3)<>\"NOX\"),AY58*INDEX('Damage costs'!$O$16:$O$43,MATCH($B66,'Damage costs'!$C$16:$C$43,0))/1000,AY58*INDEX('Damage costs'!$S$16:$S$43,MATCH($B66,'Damage costs'!$C$16:$C$43,0))/1000),\"\")","v":""},{"$f":"IFERROR(IF(OR($C$67=FALSE,LEFT($B66,3)<>\"NOX\"),AZ58*INDEX('Damage costs'!$O$16:$O$43,MATCH($B66,'Damage costs'!$C$16:$C$43,0))/1000,AZ58*INDEX('Damage costs'!$S$16:$S$43,MATCH($B66,'Damage costs'!$C$16:$C$43,0))/1000),\"\")","v":""},{"$f":"IFERROR(IF(OR($C$67=FALSE,LEFT($B66,3)<>\"NOX\"),BA58*INDEX('Damage costs'!$O$16:$O$43,MATCH($B66,'Damage costs'!$C$16:$C$43,0))/1000,BA58*INDEX('Damage costs'!$S$16:$S$43,MATCH($B66,'Damage costs'!$C$16:$C$43,0))/1000),\"\")","v":""},{"$f":"IFERROR(IF(OR($C$67=FALSE,LEFT($B66,3)<>\"NOX\"),BB58*INDEX('Damage costs'!$O$16:$O$43,MATCH($B66,'Damage costs'!$C$16:$C$43,0))/1000,BB58*INDEX('Damage costs'!$S$16:$S$43,MATCH($B66,'Damage costs'!$C$16:$C$43,0))/1000),\"\")","v":""},{"$f":"IFERROR(IF(OR($C$67=FALSE,LEFT($B66,3)<>\"NOX\"),BC58*INDEX('Damage costs'!$O$16:$O$43,MATCH($B66,'Damage costs'!$C$16:$C$43,0))/1000,BC58*INDEX('Damage costs'!$S$16:$S$43,MATCH($B66,'Damage costs'!$C$16:$C$43,0))/1000),\"\")","v":""},{"$f":"IFERROR(IF(OR($C$67=FALSE,LEFT($B66,3)<>\"NOX\"),BD58*INDEX('Damage costs'!$O$16:$O$43,MATCH($B66,'Damage costs'!$C$16:$C$43,0))/1000,BD58*INDEX('Damage costs'!$S$16:$S$43,MATCH($B66,'Damage costs'!$C$16:$C$43,0))/1000),\"\")","v":""},{"$f":"IFERROR(IF(OR($C$67=FALSE,LEFT($B66,3)<>\"NOX\"),BE58*INDEX('Damage costs'!$O$16:$O$43,MATCH($B66,'Damage costs'!$C$16:$C$43,0))/1000,BE58*INDEX('Damage costs'!$S$16:$S$43,MATCH($B66,'Damage costs'!$C$16:$C$43,0))/1000),\"\")","v":""},{"$f":"IFERROR(IF(OR($C$67=FALSE,LEFT($B66,3)<>\"NOX\"),BF58*INDEX('Damage costs'!$O$16:$O$43,MATCH($B66,'Damage costs'!$C$16:$C$43,0))/1000,BF58*INDEX('Damage costs'!$S$16:$S$43,MATCH($B66,'Damage costs'!$C$16:$C$43,0))/1000),\"\")","v":""},{"$f":"IFERROR(IF(OR($C$67=FALSE,LEFT($B66,3)<>\"NOX\"),BG58*INDEX('Damage costs'!$O$16:$O$43,MATCH($B66,'Damage costs'!$C$16:$C$43,0))/1000,BG58*INDEX('Damage costs'!$S$16:$S$43,MATCH($B66,'Damage costs'!$C$16:$C$43,0))/1000),\"\")","v":""},{"$f":"IFERROR(IF(OR($C$67=FALSE,LEFT($B66,3)<>\"NOX\"),BH58*INDEX('Damage costs'!$O$16:$O$43,MATCH($B66,'Damage costs'!$C$16:$C$43,0))/1000,BH58*INDEX('Damage costs'!$S$16:$S$43,MATCH($B66,'Damage costs'!$C$16:$C$43,0))/1000),\"\")","v":""},{"$f":"IFERROR(IF(OR($C$67=FALSE,LEFT($B66,3)<>\"NOX\"),BI58*INDEX('Damage costs'!$O$16:$O$43,MATCH($B66,'Damage costs'!$C$16:$C$43,0))/1000,BI58*INDEX('Damage costs'!$S$16:$S$43,MATCH($B66,'Damage costs'!$C$16:$C$43,0))/1000),\"\")","v":""},{"$f":"IFERROR(IF(OR($C$67=FALSE,LEFT($B66,3)<>\"NOX\"),BJ58*INDEX('Damage costs'!$O$16:$O$43,MATCH($B66,'Damage costs'!$C$16:$C$43,0))/1000,BJ58*INDEX('Damage costs'!$S$16:$S$43,MATCH($B66,'Damage costs'!$C$16:$C$43,0))/1000),\"\")","v":""},{"$f":"IFERROR(IF(OR($C$67=FALSE,LEFT($B66,3)<>\"NOX\"),BK58*INDEX('Damage costs'!$O$16:$O$43,MATCH($B66,'Damage costs'!$C$16:$C$43,0))/1000,BK58*INDEX('Damage costs'!$S$16:$S$43,MATCH($B66,'Damage costs'!$C$16:$C$43,0))/1000),\"\")","v":""},{"$f":"IFERROR(IF(OR($C$67=FALSE,LEFT($B66,3)<>\"NOX\"),BL58*INDEX('Damage costs'!$O$16:$O$43,MATCH($B66,'Damage costs'!$C$16:$C$43,0))/1000,BL58*INDEX('Damage costs'!$S$16:$S$43,MATCH($B66,'Damage costs'!$C$16:$C$43,0))/1000),\"\")","v":""},{"$f":"IFERROR(IF(OR($C$67=FALSE,LEFT($B66,3)<>\"NOX\"),BM58*INDEX('Damage costs'!$O$16:$O$43,MATCH($B66,'Damage costs'!$C$16:$C$43,0))/1000,BM58*INDEX('Damage costs'!$S$16:$S$43,MATCH($B66,'Damage costs'!$C$16:$C$43,0))/1000),\"\")","v":""},{"$f":"IFERROR(IF(OR($C$67=FALSE,LEFT($B66,3)<>\"NOX\"),BN58*INDEX('Damage costs'!$O$16:$O$43,MATCH($B66,'Damage costs'!$C$16:$C$43,0))/1000,BN58*INDEX('Damage costs'!$S$16:$S$43,MATCH($B66,'Damage costs'!$C$16:$C$43,0))/1000),\"\")","v":""},{"$f":"IFERROR(IF(OR($C$67=FALSE,LEFT($B66,3)<>\"NOX\"),BO58*INDEX('Damage costs'!$O$16:$O$43,MATCH($B66,'Damage costs'!$C$16:$C$43,0))/1000,BO58*INDEX('Damage costs'!$S$16:$S$43,MATCH($B66,'Damage costs'!$C$16:$C$43,0))/1000),\"\")","v":""},{"$f":"IFERROR(IF(OR($C$67=FALSE,LEFT($B66,3)<>\"NOX\"),BP58*INDEX('Damage costs'!$O$16:$O$43,MATCH($B66,'Damage costs'!$C$16:$C$43,0))/1000,BP58*INDEX('Damage costs'!$S$16:$S$43,MATCH($B66,'Damage costs'!$C$16:$C$43,0))/1000),\"\")","v":""},{"$f":"IFERROR(IF(OR($C$67=FALSE,LEFT($B66,3)<>\"NOX\"),BQ58*INDEX('Damage costs'!$O$16:$O$43,MATCH($B66,'Damage costs'!$C$16:$C$43,0))/1000,BQ58*INDEX('Damage costs'!$S$16:$S$43,MATCH($B66,'Damage costs'!$C$16:$C$43,0))/1000),\"\")","v":""},{"$f":"IFERROR(IF(OR($C$67=FALSE,LEFT($B66,3)<>\"NOX\"),BR58*INDEX('Damage costs'!$O$16:$O$43,MATCH($B66,'Damage costs'!$C$16:$C$43,0))/1000,BR58*INDEX('Damage costs'!$S$16:$S$43,MATCH($B66,'Damage costs'!$C$16:$C$43,0))/1000),\"\")","v":""},{"$f":"IFERROR(IF(OR($C$67=FALSE,LEFT($B66,3)<>\"NOX\"),BS58*INDEX('Damage costs'!$O$16:$O$43,MATCH($B66,'Damage costs'!$C$16:$C$43,0))/1000,BS58*INDEX('Damage costs'!$S$16:$S$43,MATCH($B66,'Damage costs'!$C$16:$C$43,0))/1000),\"\")","v":""},{"$f":"IFERROR(IF(OR($C$67=FALSE,LEFT($B66,3)<>\"NOX\"),BT58*INDEX('Damage costs'!$O$16:$O$43,MATCH($B66,'Damage costs'!$C$16:$C$43,0))/1000,BT58*INDEX('Damage costs'!$S$16:$S$43,MATCH($B66,'Damage costs'!$C$16:$C$43,0))/1000),\"\")","v":""},{"$f":"IFERROR(IF(OR($C$67=FALSE,LEFT($B66,3)<>\"NOX\"),BU58*INDEX('Damage costs'!$O$16:$O$43,MATCH($B66,'Damage costs'!$C$16:$C$43,0))/1000,BU58*INDEX('Damage costs'!$S$16:$S$43,MATCH($B66,'Damage costs'!$C$16:$C$43,0))/1000),\"\")","v":""},{"$f":"IFERROR(IF(OR($C$67=FALSE,LEFT($B66,3)<>\"NOX\"),BV58*INDEX('Damage costs'!$O$16:$O$43,MATCH($B66,'Damage costs'!$C$16:$C$43,0))/1000,BV58*INDEX('Damage costs'!$S$16:$S$43,MATCH($B66,'Damage costs'!$C$16:$C$43,0))/1000),\"\")","v":""},{"$f":"IFERROR(IF(OR($C$67=FALSE,LEFT($B66,3)<>\"NOX\"),BW58*INDEX('Damage costs'!$O$16:$O$43,MATCH($B66,'Damage costs'!$C$16:$C$43,0))/1000,BW58*INDEX('Damage costs'!$S$16:$S$43,MATCH($B66,'Damage costs'!$C$16:$C$43,0))/1000),\"\")","v":""},{"$f":"IFERROR(IF(OR($C$67=FALSE,LEFT($B66,3)<>\"NOX\"),BX58*INDEX('Damage costs'!$O$16:$O$43,MATCH($B66,'Damage costs'!$C$16:$C$43,0))/1000,BX58*INDEX('Damage costs'!$S$16:$S$43,MATCH($B66,'Damage costs'!$C$16:$C$43,0))/1000),\"\")","v":""},{"$f":"IFERROR(IF(OR($C$67=FALSE,LEFT($B66,3)<>\"NOX\"),BY58*INDEX('Damage costs'!$O$16:$O$43,MATCH($B66,'Damage costs'!$C$16:$C$43,0))/1000,BY58*INDEX('Damage costs'!$S$16:$S$43,MATCH($B66,'Damage costs'!$C$16:$C$43,0))/1000),\"\")","v":""},{"$f":"IFERROR(IF(OR($C$67=FALSE,LEFT($B66,3)<>\"NOX\"),BZ58*INDEX('Damage costs'!$O$16:$O$43,MATCH($B66,'Damage costs'!$C$16:$C$43,0))/1000,BZ58*INDEX('Damage costs'!$S$16:$S$43,MATCH($B66,'Damage costs'!$C$16:$C$43,0))/1000),\"\")","v":""},{"$f":"IFERROR(IF(OR($C$67=FALSE,LEFT($B66,3)<>\"NOX\"),CA58*INDEX('Damage costs'!$O$16:$O$43,MATCH($B66,'Damage costs'!$C$16:$C$43,0))/1000,CA58*INDEX('Damage costs'!$S$16:$S$43,MATCH($B66,'Damage costs'!$C$16:$C$43,0))/1000),\"\")","v":""},{"$f":"IFERROR(IF(OR($C$67=FALSE,LEFT($B66,3)<>\"NOX\"),CB58*INDEX('Damage costs'!$O$16:$O$43,MATCH($B66,'Damage costs'!$C$16:$C$43,0))/1000,CB58*INDEX('Damage costs'!$S$16:$S$43,MATCH($B66,'Damage costs'!$C$16:$C$43,0))/1000),\"\")","v":""},{"$f":"IFERROR(IF(OR($C$67=FALSE,LEFT($B66,3)<>\"NOX\"),CC58*INDEX('Damage costs'!$O$16:$O$43,MATCH($B66,'Damage costs'!$C$16:$C$43,0))/1000,CC58*INDEX('Damage costs'!$S$16:$S$43,MATCH($B66,'Damage costs'!$C$16:$C$43,0))/1000),\"\")","v":""},{"$f":"IFERROR(IF(OR($C$67=FALSE,LEFT($B66,3)<>\"NOX\"),CD58*INDEX('Damage costs'!$O$16:$O$43,MATCH($B66,'Damage costs'!$C$16:$C$43,0))/1000,CD58*INDEX('Damage costs'!$S$16:$S$43,MATCH($B66,'Damage costs'!$C$16:$C$43,0))/1000),\"\")","v":""},{"$f":"IFERROR(IF(OR($C$67=FALSE,LEFT($B66,3)<>\"NOX\"),CE58*INDEX('Damage costs'!$O$16:$O$43,MATCH($B66,'Damage costs'!$C$16:$C$43,0))/1000,CE58*INDEX('Damage costs'!$S$16:$S$43,MATCH($B66,'Damage costs'!$C$16:$C$43,0))/1000),\"\")","v":""},{"$f":"IFERROR(IF(OR($C$67=FALSE,LEFT($B66,3)<>\"NOX\"),CF58*INDEX('Damage costs'!$O$16:$O$43,MATCH($B66,'Damage costs'!$C$16:$C$43,0))/1000,CF58*INDEX('Damage costs'!$S$16:$S$43,MATCH($B66,'Damage costs'!$C$16:$C$43,0))/1000),\"\")","v":""},{"$f":"IFERROR(IF(OR($C$67=FALSE,LEFT($B66,3)<>\"NOX\"),CG58*INDEX('Damage costs'!$O$16:$O$43,MATCH($B66,'Damage costs'!$C$16:$C$43,0))/1000,CG58*INDEX('Damage costs'!$S$16:$S$43,MATCH($B66,'Damage costs'!$C$16:$C$43,0))/1000),\"\")","v":""},{"$f":"IFERROR(IF(OR($C$67=FALSE,LEFT($B66,3)<>\"NOX\"),CH58*INDEX('Damage costs'!$O$16:$O$43,MATCH($B66,'Damage costs'!$C$16:$C$43,0))/1000,CH58*INDEX('Damage costs'!$S$16:$S$43,MATCH($B66,'Damage costs'!$C$16:$C$43,0))/1000),\"\")","v":""},{"$f":"IFERROR(IF(OR($C$67=FALSE,LEFT($B66,3)<>\"NOX\"),CI58*INDEX('Damage costs'!$O$16:$O$43,MATCH($B66,'Damage costs'!$C$16:$C$43,0))/1000,CI58*INDEX('Damage costs'!$S$16:$S$43,MATCH($B66,'Damage costs'!$C$16:$C$43,0))/1000),\"\")","v":""},{"$f":"IFERROR(IF(OR($C$67=FALSE,LEFT($B66,3)<>\"NOX\"),CJ58*INDEX('Damage costs'!$O$16:$O$43,MATCH($B66,'Damage costs'!$C$16:$C$43,0))/1000,CJ58*INDEX('Damage costs'!$S$16:$S$43,MATCH($B66,'Damage costs'!$C$16:$C$43,0))/1000),\"\")","v":""},{"$f":"IFERROR(IF(OR($C$67=FALSE,LEFT($B66,3)<>\"NOX\"),CK58*INDEX('Damage costs'!$O$16:$O$43,MATCH($B66,'Damage costs'!$C$16:$C$43,0))/1000,CK58*INDEX('Damage costs'!$S$16:$S$43,MATCH($B66,'Damage costs'!$C$16:$C$43,0))/1000),\"\")","v":""},{"$f":"IFERROR(IF(OR($C$67=FALSE,LEFT($B66,3)<>\"NOX\"),CL58*INDEX('Damage costs'!$O$16:$O$43,MATCH($B66,'Damage costs'!$C$16:$C$43,0))/1000,CL58*INDEX('Damage costs'!$S$16:$S$43,MATCH($B66,'Damage costs'!$C$16:$C$43,0))/1000),\"\")","v":""},{"$f":"IFERROR(IF(OR($C$67=FALSE,LEFT($B66,3)<>\"NOX\"),CM58*INDEX('Damage costs'!$O$16:$O$43,MATCH($B66,'Damage costs'!$C$16:$C$43,0))/1000,CM58*INDEX('Damage costs'!$S$16:$S$43,MATCH($B66,'Damage costs'!$C$16:$C$43,0))/1000),\"\")","v":""},{"$f":"IFERROR(IF(OR($C$67=FALSE,LEFT($B66,3)<>\"NOX\"),CN58*INDEX('Damage costs'!$O$16:$O$43,MATCH($B66,'Damage costs'!$C$16:$C$43,0))/1000,CN58*INDEX('Damage costs'!$S$16:$S$43,MATCH($B66,'Damage costs'!$C$16:$C$43,0))/1000),\"\")","v":""},{"$f":"IFERROR(IF(OR($C$67=FALSE,LEFT($B66,3)<>\"NOX\"),CO58*INDEX('Damage costs'!$O$16:$O$43,MATCH($B66,'Damage costs'!$C$16:$C$43,0))/1000,CO58*INDEX('Damage costs'!$S$16:$S$43,MATCH($B66,'Damage costs'!$C$16:$C$43,0))/1000),\"\")","v":""},{"$f":"IFERROR(IF(OR($C$67=FALSE,LEFT($B66,3)<>\"NOX\"),CP58*INDEX('Damage costs'!$O$16:$O$43,MATCH($B66,'Damage costs'!$C$16:$C$43,0))/1000,CP58*INDEX('Damage costs'!$S$16:$S$43,MATCH($B66,'Damage costs'!$C$16:$C$43,0))/1000),\"\")","v":""},{"$f":"IFERROR(IF(OR($C$67=FALSE,LEFT($B66,3)<>\"NOX\"),CQ58*INDEX('Damage costs'!$O$16:$O$43,MATCH($B66,'Damage costs'!$C$16:$C$43,0))/1000,CQ58*INDEX('Damage costs'!$S$16:$S$43,MATCH($B66,'Damage costs'!$C$16:$C$43,0))/1000),\"\")","v":""},{"$f":"IFERROR(IF(OR($C$67=FALSE,LEFT($B66,3)<>\"NOX\"),CR58*INDEX('Damage costs'!$O$16:$O$43,MATCH($B66,'Damage costs'!$C$16:$C$43,0))/1000,CR58*INDEX('Damage costs'!$S$16:$S$43,MATCH($B66,'Damage costs'!$C$16:$C$43,0))/1000),\"\")","v":""},{"$f":"IFERROR(IF(OR($C$67=FALSE,LEFT($B66,3)<>\"NOX\"),CS58*INDEX('Damage costs'!$O$16:$O$43,MATCH($B66,'Damage costs'!$C$16:$C$43,0))/1000,CS58*INDEX('Damage costs'!$S$16:$S$43,MATCH($B66,'Damage costs'!$C$16:$C$43,0))/1000),\"\")","v":""},{"$f":"IFERROR(IF(OR($C$67=FALSE,LEFT($B66,3)<>\"NOX\"),CT58*INDEX('Damage costs'!$O$16:$O$43,MATCH($B66,'Damage costs'!$C$16:$C$43,0))/1000,CT58*INDEX('Damage costs'!$S$16:$S$43,MATCH($B66,'Damage costs'!$C$16:$C$43,0))/1000),\"\")","v":""},{"$f":"IFERROR(IF(OR($C$67=FALSE,LEFT($B66,3)<>\"NOX\"),CU58*INDEX('Damage costs'!$O$16:$O$43,MATCH($B66,'Damage costs'!$C$16:$C$43,0))/1000,CU58*INDEX('Damage costs'!$S$16:$S$43,MATCH($B66,'Damage costs'!$C$16:$C$43,0))/1000),\"\")","v":""},{"$f":"IFERROR(IF(OR($C$67=FALSE,LEFT($B66,3)<>\"NOX\"),CV58*INDEX('Damage costs'!$O$16:$O$43,MATCH($B66,'Damage costs'!$C$16:$C$43,0))/1000,CV58*INDEX('Damage costs'!$S$16:$S$43,MATCH($B66,'Damage costs'!$C$16:$C$43,0))/1000),\"\")","v":""},{"$f":"IFERROR(IF(OR($C$67=FALSE,LEFT($B66,3)<>\"NOX\"),CW58*INDEX('Damage costs'!$O$16:$O$43,MATCH($B66,'Damage costs'!$C$16:$C$43,0))/1000,CW58*INDEX('Damage costs'!$S$16:$S$43,MATCH($B66,'Damage costs'!$C$16:$C$43,0))/1000),\"\")","v":""},{"$f":"IFERROR(IF(OR($C$67=FALSE,LEFT($B66,3)<>\"NOX\"),CX58*INDEX('Damage costs'!$O$16:$O$43,MATCH($B66,'Damage costs'!$C$16:$C$43,0))/1000,CX58*INDEX('Damage costs'!$S$16:$S$43,MATCH($B66,'Damage costs'!$C$16:$C$43,0))/1000),\"\")","v":""},{"$f":"IFERROR(IF(OR($C$67=FALSE,LEFT($B66,3)<>\"NOX\"),CY58*INDEX('Damage costs'!$O$16:$O$43,MATCH($B66,'Damage costs'!$C$16:$C$43,0))/1000,CY58*INDEX('Damage costs'!$S$16:$S$43,MATCH($B66,'Damage costs'!$C$16:$C$43,0))/1000),\"\")","v":""}]
[null,"PM10 Used",{"$f":"IF(OR(LEFT(B61,4)=\"PM10\",LEFT(B62,4)=\"PM10\",LEFT(B63,4)=\"PM10\",LEFT(B64,4)=\"PM10\",LEFT(B65,4)=\"PM10\",LEFT(B66,4)=\"PM10\"),TRUE,FALSE)","v":false}]
[]
[null,"Uplift pa","%",{"$f":"'Discount and deflators'!$H$5","v":0.02}]
[null,"Uplift factor",null,{"$f":"IF(D$6=0,0,(1+$D69)^(D$6-'Data Input - General'!$F$22))","v":1},{"$f":"IF(E$6=0,0,(1+$D69)^(E$6-'Data Input - General'!$F$22))","v":1.02},{"$f":"IF(F$6=0,0,(1+$D69)^(F$6-'Data Input - General'!$F$22))","v":1.0404},{"$f":"IF(G$6=0,0,(1+$D69)^(G$6-'Data Input - General'!$F$22))","v":1.0612079999999999},{"$f":"IF(H$6=0,0,(1+$D69)^(H$6-'Data Input - General'!$F$22))","v":1.08243216},{"$f":"IF(I$6=0,0,(1+$D69)^(I$6-'Data Input - General'!$F$22))","v":1.1040808032},{"$f":"IF(J$6=0,0,(1+$D69)^(J$6-'Data Input - General'!$F$22))","v":1.1261624192640001},{"$f":"IF(K$6=0,0,(1+$D69)^(K$6-'Data Input - General'!$F$22))","v":1.1486856676492798},{"$f":"IF(L$6=0,0,(1+$D69)^(L$6-'Data Input - General'!$F$22))","v":1.1716593810022655},{"$f":"IF(M$6=0,0,(1+$D69)^(M$6-'Data Input - General'!$F$22))","v":1.1950925686223108},{"$f":"IF(N$6=0,0,(1+$D69)^(N$6-'Data Input - General'!$F$22))","v":1.2189944199947571},{"$f":"IF(O$6=0,0,(1+$D69)^(O$6-'Data Input - General'!$F$22))","v":1.243374308394652},{"$f":"IF(P$6=0,0,(1+$D69)^(P$6-'Data Input - General'!$F$22))","v":1.2682417945625453},{"$f":"IF(Q$6=0,0,(1+$D69)^(Q$6-'Data Input - General'!$F$22))","v":1.2936066304537961},{"$f":"IF(R$6=0,0,(1+$D69)^(R$6-'Data Input - General'!$F$22))","v":1.3194787630628722},{"$f":"IF(S$6=0,0,(1+$D69)^(S$6-'Data Input - General'!$F$22))","v":1.3458683383241292},{"$f":"IF(T$6=0,0,(1+$D69)^(T$6-'Data Input - General'!$F$22))","v":1.372785705090612},{"$f":"IF(U$6=0,0,(1+$D69)^(U$6-'Data Input - General'!$F$22))","v":1.4002414191924244},{"$f":"IF(V$6=0,0,(1+$D69)^(V$6-'Data Input - General'!$F$22))","v":1.4282462475762727},{"$f":"IF(W$6=0,0,(1+$D69)^(W$6-'Data Input - General'!$F$22))","v":1.4568111725277981},{"$f":"IF(X$6=0,0,(1+$D69)^(X$6-'Data Input - General'!$F$22))","v":1.4859473959783542},{"$f":"IF(Y$6=0,0,(1+$D69)^(Y$6-'Data Input - General'!$F$22))","v":1.5156663438979212},{"$f":"IF(Z$6=0,0,(1+$D69)^(Z$6-'Data Input - General'!$F$22))","v":1.5459796707758797},{"$f":"IF(AA$6=0,0,(1+$D69)^(AA$6-'Data Input - General'!$F$22))","v":1.576899264191397},{"$f":"IF(AB$6=0,0,(1+$D69)^(AB$6-'Data Input - General'!$F$22))","v":1.608437249475225},{"$f":"IF(AC$6=0,0,(1+$D69)^(AC$6-'Data Input - General'!$F$22))","v":1.6406059944647295},{"$f":"IF(AD$6=0,0,(1+$D69)^(AD$6-'Data Input - General'!$F$22))","v":1.6734181143540243},{"$f":"IF(AE$6=0,0,(1+$D69)^(AE$6-'Data Input - General'!$F$22))","v":1.7068864766411045},{"$f":"IF(AF$6=0,0,(1+$D69)^(AF$6-'Data Input - General'!$F$22))","v":1.7410242061739269},{"$f":"IF(AG$6=0,0,(1+$D69)^(AG$6-'Data Input - General'!$F$22))","v":1.7758446902974052},{"$f":"IF(AH$6=0,0,(1+$D69)^(AH$6-'Data Input - General'!$F$22))","v":1.8113615841033535},{"$f":"IF(AI$6=0,0,(1+$D69)^(AI$6-'Data Input - General'!$F$22))","v":0},{"$f":"IF(AJ$6=0,0,(1+$D69)^(AJ$6-'Data Input - General'!$F$22))","v":0},{"$f":"IF(AK$6=0,0,(1+$D69)^(AK$6-'Data Input - General'!$F$22))","v":0},{"$f":"IF(AL$6=0,0,(1+$D69)^(AL$6-'Data Input - General'!$F$22))","v":0},{"$f":"IF(AM$6=0,0,(1+$D69)^(AM$6-'Data Input - General'!$F$22))","v":0},{"$f":"IF(AN$6=0,0,(1+$D69)^(AN$6-'Data Input - General'!$F$22))","v":0},{"$f":"IF(AO$6=0,0,(1+$D69)^(AO$6-'Data Input - General'!$F$22))","v":0},{"$f":"IF(AP$6=0,0,(1+$D69)^(AP$6-'Data Input - General'!$F$22))","v":0},{"$f":"IF(AQ$6=0,0,(1+$D69)^(AQ$6-'Data Input - General'!$F$22))","v":0},{"$f":"IF(AR$6=0,0,(1+$D69)^(AR$6-'Data Input - General'!$F$22))","v":0},{"$f":"IF(AS$6=0,0,(1+$D69)^(AS$6-'Data Input - General'!$F$22))","v":0},{"$f":"IF(AT$6=0,0,(1+$D69)^(AT$6-'Data Input - General'!$F$22))","v":0},{"$f":"IF(AU$6=0,0,(1+$D69)^(AU$6-'Data Input - General'!$F$22))","v":0},{"$f":"IF(AV$6=0,0,(1+$D69)^(AV$6-'Data Input - General'!$F$22))","v":0},{"$f":"IF(AW$6=0,0,(1+$D69)^(AW$6-'Data Input - General'!$F$22))","v":0},{"$f":"IF(AX$6=0,0,(1+$D69)^(AX$6-'Data Input - General'!$F$22))","v":0},{"$f":"IF(AY$6=0,0,(1+$D69)^(AY$6-'Data Input - General'!$F$22))","v":0},{"$f":"IF(AZ$6=0,0,(1+$D69)^(AZ$6-'Data Input - General'!$F$22))","v":0},{"$f":"IF(BA$6=0,0,(1+$D69)^(BA$6-'Data Input - General'!$F$22))","v":0},{"$f":"IF(BB$6=0,0,(1+$D69)^(BB$6-'Data Input - General'!$F$22))","v":0},{"$f":"IF(BC$6=0,0,(1+$D69)^(BC$6-'Data Input - General'!$F$22))","v":0},{"$f":"IF(BD$6=0,0,(1+$D69)^(BD$6-'Data Input - General'!$F$22))","v":0},{"$f":"IF(BE$6=0,0,(1+$D69)^(BE$6-'Data Input - General'!$F$22))","v":0},{"$f":"IF(BF$6=0,0,(1+$D69)^(BF$6-'Data Input - General'!$F$22))","v":0},{"$f":"IF(BG$6=0,0,(1+$D69)^(BG$6-'Data Input - General'!$F$22))","v":0},{"$f":"IF(BH$6=0,0,(1+$D69)^(BH$6-'Data Input - General'!$F$22))","v":0},{"$f":"IF(BI$6=0,0,(1+$D69)^(BI$6-'Data Input - General'!$F$22))","v":0},{"$f":"IF(BJ$6=0,0,(1+$D69)^(BJ$6-'Data Input - General'!$F$22))","v":0},{"$f":"IF(BK$6=0,0,(1+$D69)^(BK$6-'Data Input - General'!$F$22))","v":0},{"$f":"IF(BL$6=0,0,(1+$D69)^(BL$6-'Data Input - General'!$F$22))","v":0},{"$f":"IF(BM$6=0,0,(1+$D69)^(BM$6-'Data Input - General'!$F$22))","v":0},{"$f":"IF(BN$6=0,0,(1+$D69)^(BN$6-'Data Input - General'!$F$22))","v":0},{"$f":"IF(BO$6=0,0,(1+$D69)^(BO$6-'Data Input - General'!$F$22))","v":0},{"$f":"IF(BP$6=0,0,(1+$D69)^(BP$6-'Data Input - General'!$F$22))","v":0},{"$f":"IF(BQ$6=0,0,(1+$D69)^(BQ$6-'Data Input - General'!$F$22))","v":0},{"$f":"IF(BR$6=0,0,(1+$D69)^(BR$6-'Data Input - General'!$F$22))","v":0},{"$f":"IF(BS$6=0,0,(1+$D69)^(BS$6-'Data Input - General'!$F$22))","v":0},{"$f":"IF(BT$6=0,0,(1+$D69)^(BT$6-'Data Input - General'!$F$22))","v":0},{"$f":"IF(BU$6=0,0,(1+$D69)^(BU$6-'Data Input - General'!$F$22))","v":0},{"$f":"IF(BV$6=0,0,(1+$D69)^(BV$6-'Data Input - General'!$F$22))","v":0},{"$f":"IF(BW$6=0,0,(1+$D69)^(BW$6-'Data Input - General'!$F$22))","v":0},{"$f":"IF(BX$6=0,0,(1+$D69)^(BX$6-'Data Input - General'!$F$22))","v":0},{"$f":"IF(BY$6=0,0,(1+$D69)^(BY$6-'Data Input - General'!$F$22))","v":0},{"$f":"IF(BZ$6=0,0,(1+$D69)^(BZ$6-'Data Input - General'!$F$22))","v":0},{"$f":"IF(CA$6=0,0,(1+$D69)^(CA$6-'Data Input - General'!$F$22))","v":0},{"$f":"IF(CB$6=0,0,(1+$D69)^(CB$6-'Data Input - General'!$F$22))","v":0},{"$f":"IF(CC$6=0,0,(1+$D69)^(CC$6-'Data Input - General'!$F$22))","v":0},{"$f":"IF(CD$6=0,0,(1+$D69)^(CD$6-'Data Input - General'!$F$22))","v":0},{"$f":"IF(CE$6=0,0,(1+$D69)^(CE$6-'Data Input - General'!$F$22))","v":0},{"$f":"IF(CF$6=0,0,(1+$D69)^(CF$6-'Data Input - General'!$F$22))","v":0},{"$f":"IF(CG$6=0,0,(1+$D69)^(CG$6-'Data Input - General'!$F$22))","v":0},{"$f":"IF(CH$6=0,0,(1+$D69)^(CH$6-'Data Input - General'!$F$22))","v":0},{"$f":"IF(CI$6=0,0,(1+$D69)^(CI$6-'Data Input - General'!$F$22))","v":0},{"$f":"IF(CJ$6=0,0,(1+$D69)^(CJ$6-'Data Input - General'!$F$22))","v":0},{"$f":"IF(CK$6=0,0,(1+$D69)^(CK$6-'Data Input - General'!$F$22))","v":0},{"$f":"IF(CL$6=0,0,(1+$D69)^(CL$6-'Data Input - General'!$F$22))","v":0},{"$f":"IF(CM$6=0,0,(1+$D69)^(CM$6-'Data Input - General'!$F$22))","v":0},{"$f":"IF(CN$6=0,0,(1+$D69)^(CN$6-'Data Input - General'!$F$22))","v":0},{"$f":"IF(CO$6=0,0,(1+$D69)^(CO$6-'Data Input - General'!$F$22))","v":0},{"$f":"IF(CP$6=0,0,(1+$D69)^(CP$6-'Data Input - General'!$F$22))","v":0},{"$f":"IF(CQ$6=0,0,(1+$D69)^(CQ$6-'Data Input - General'!$F$22))","v":0},{"$f":"IF(CR$6=0,0,(1+$D69)^(CR$6-'Data Input - General'!$F$22))","v":0},{"$f":"IF(CS$6=0,0,(1+$D69)^(CS$6-'Data Input - General'!$F$22))","v":0},{"$f":"IF(CT$6=0,0,(1+$D69)^(CT$6-'Data Input - General'!$F$22))","v":0},{"$f":"IF(CU$6=0,0,(1+$D69)^(CU$6-'Data Input - General'!$F$22))","v":0},{"$f":"IF(CV$6=0,0,(1+$D69)^(CV$6-'Data Input - General'!$F$22))","v":0},{"$f":"IF(CW$6=0,0,(1+$D69)^(CW$6-'Data Input - General'!$F$22))","v":0},{"$f":"IF(CX$6=0,0,(1+$D69)^(CX$6-'Data Input - General'!$F$22))","v":0},{"$f":"IF(CY$6=0,0,(1+$D69)^(CY$6-'Data Input - General'!$F$22))","v":0}]
[null,"Total value","£000's",{"$f":"SUM(D61:D66)*D70","v":0},{"$f":"SUM(E61:E66)*E70","v":0},{"$f":"SUM(F61:F66)*F70","v":0},{"$f":"SUM(G61:G66)*G70","v":0},0,0,0,0,0,0,0,0,0,0,0,0,0,0,0,0,0,0,0,0,0,0,0,0,0,0,0,0,{"$f":"SUM(AJ61:AJ66)*AJ70","v":0},0,0,0,0,0,0,0,0,0,0,0,0,0,0,0,0,0,0,0,0,0,0,0,0,0,0,0,{"$f":"SUM(BL61:BL66)*BL70","v":0},0,0,0,0,0,0,0,0,0,0,0,0,0,0,0,0,0,0,0,0,0,0,0,0,0,0,0,0,0,0,0,0,0,0,0,0,0,0,0]
[null,"Discounted total value","£000's",{"$f":"D71*D$7","v":0},{"$f":"E71*E$7","v":0},{"$f":"F71*F$7","v":0},0,0,0,0,0,0,0,0,0,0,0,0,0,0,0,0,0,0,0,0,0,0,0,0,0,0,0,0,0,0,0,0,0,0,0,0,0,0,0,0,0,0,0,0,0,0,0,0,0,0,0,0,0,0,0,0,0,0,0,0,0,0,0,{"$f":"BR71*BR$7","v":0},0,0,0,0,0,0,0,0,0,0,0,0,0,0,0,0,0,0,0,0,0,0,0,0,0,0,0,0,0,0,0,0,0]
[]
[null,"Greenhouse gas emissions (not associated with fuel use)"]
[null,"Emissions","tCO2e",{"$f":"'Data Input - Option 4'!H117","v":0},{"$f":"'Data Input - Option 4'!I117","v":0},{"$f":"'Data Input - Option 4'!J117","v":0},{"$f":"'Data Input - Option 4'!K117","v":0},{"$f":"'Data Input - Option 4'!L117","v":0},{"$f":"'Data Input - Option 4'!M117","v":0},{"$f":"'Data Input - Option 4'!N117","v":0},{"$f":"'Data Input - Option 4'!O117","v":0},{"$f":"'Data Input - Option 4'!P117","v":0},{"$f":"'Data Input - Option 4'!Q117","v":0},{"$f":"'Data Input - Option 4'!R117","v":0},{"$f":"'Data Input - Option 4'!S117","v":0},{"$f":"'Data Input - Option 4'!T117","v":0},{"$f":"'Data Input - Option 4'!U117","v":0},{"$f":"'Data Input - Option 4'!V117","v":0},{"$f":"'Data Input - Option 4'!W117","v":0},{"$f":"'Data Input - Option 4'!X117","v":0},{"$f":"'Data Input - Option 4'!Y117","v":0},{"$f":"'Data Input - Option 4'!Z117","v":0},{"$f":"'Data Input - Option 4'!AA117","v":0},{"$f":"'Data Input - Option 4'!AB117","v":0},{"$f":"'Data Input - Option 4'!AC117","v":0},{"$f":"'Data Input - Option 4'!AD117","v":0},{"$f":"'Data Input - Option 4'!AE117","v":0},{"$f":"'Data Input - Option 4'!AF117","v":0},{"$f":"'Data Input - Option 4'!AG117","v":0},{"$f":"'Data Input - Option 4'!AH117","v":0},{"$f":"'Data Input - Option 4'!AI117","v":0},{"$f":"'Data Input - Option 4'!AJ117","v":0},{"$f":"'Data Input - Option 4'!AK117","v":0},{"$f":"'Data Input - Option 4'!AL117","v":0},{"$f":"'Data Input - Option 4'!AM117","v":0},{"$f":"'Data Input - Option 4'!AN117","v":0},{"$f":"'Data Input - Option 4'!AO117","v":0},{"$f":"'Data Input - Option 4'!AP117","v":0},{"$f":"'Data Input - Option 4'!AQ117","v":0},{"$f":"'Data Input - Option 4'!AR117","v":0},{"$f":"'Data Input - Option 4'!AS117","v":0},{"$f":"'Data Input - Option 4'!AT117","v":0},{"$f":"'Data Input - Option 4'!AU117","v":0},{"$f":"'Data Input - Option 4'!AV117","v":0},{"$f":"'Data Input - Option 4'!AW117","v":0},{"$f":"'Data Input - Option 4'!AX117","v":0},{"$f":"'Data Input - Option 4'!AY117","v":0},{"$f":"'Data Input - Option 4'!AZ117","v":0},{"$f":"'Data Input - Option 4'!BA117","v":0},{"$f":"'Data Input - Option 4'!BB117","v":0},{"$f":"'Data Input - Option 4'!BC117","v":0},{"$f":"'Data Input - Option 4'!BD117","v":0},{"$f":"'Data Input - Option 4'!BE117","v":0},{"$f":"'Data Input - Option 4'!BF117","v":0},{"$f":"'Data Input - Option 4'!BG117","v":0},{"$f":"'Data Input - Option 4'!BH117","v":0},{"$f":"'Data Input - Option 4'!BI117","v":0},{"$f":"'Data Input - Option 4'!BJ117","v":0},{"$f":"'Data Input - Option 4'!BK117","v":0},{"$f":"'Data Input - Option 4'!BL117","v":0},{"$f":"'Data Input - Option 4'!BM117","v":0},{"$f":"'Data Input - Option 4'!BN117","v":0},{"$f":"'Data Input - Option 4'!BO117","v":0},{"$f":"'Data Input - Option 4'!BP117","v":0},{"$f":"'Data Input - Option 4'!BQ117","v":0},{"$f":"'Data Input - Option 4'!BR117","v":0},{"$f":"'Data Input - Option 4'!BS117","v":0},{"$f":"'Data Input - Option 4'!BT117","v":0},{"$f":"'Data Input - Option 4'!BU117","v":0},{"$f":"'Data Input - Option 4'!BV117","v":0},{"$f":"'Data Input - Option 4'!BW117","v":0},{"$f":"'Data Input - Option 4'!BX117","v":0},{"$f":"'Data Input - Option 4'!BY117","v":0},{"$f":"'Data Input - Option 4'!BZ117","v":0},{"$f":"'Data Input - Option 4'!CA117","v":0},{"$f":"'Data Input - Option 4'!CB117","v":0},{"$f":"'Data Input - Option 4'!CC117","v":0},{"$f":"'Data Input - Option 4'!CD117","v":0},{"$f":"'Data Input - Option 4'!CE117","v":0},{"$f":"'Data Input - Option 4'!CF117","v":0},{"$f":"'Data Input - Option 4'!CG117","v":0},{"$f":"'Data Input - Option 4'!CH117","v":0},{"$f":"'Data Input - Option 4'!CI117","v":0},{"$f":"'Data Input - Option 4'!CJ117","v":0},{"$f":"'Data Input - Option 4'!CK117","v":0},{"$f":"'Data Input - Option 4'!CL117","v":0},{"$f":"'Data Input - Option 4'!CM117","v":0},{"$f":"'Data Input - Option 4'!CN117","v":0},{"$f":"'Data Input - Option 4'!CO117","v":0},{"$f":"'Data Input - Option 4'!CP117","v":0},{"$f":"'Data Input - Option 4'!CQ117","v":0},{"$f":"'Data Input - Option 4'!CR117","v":0},{"$f":"'Data Input - Option 4'!CS117","v":0},{"$f":"'Data Input - Option 4'!CT117","v":0},{"$f":"'Data Input - Option 4'!CU117","v":0},{"$f":"'Data Input - Option 4'!CV117","v":0},{"$f":"'Data Input - Option 4'!CW117","v":0},{"$f":"'Data Input - Option 4'!CX117","v":0},{"$f":"'Data Input - Option 4'!CY117","v":0},{"$f":"'Data Input - Option 4'!CZ117","v":0},{"$f":"'Data Input - Option 4'!DA117","v":0},{"$f":"'Data Input - Option 4'!DB117","v":0},{"$f":"'Data Input - Option 4'!DC117","v":0}]
[null,"Unit value","£000's",{"$f":"IFERROR(IF('Data Input - General'!$F$12=\"Yes\",HLOOKUP(Calc_Option4!D$6,'Carbon Prices'!$D$9:$CP$15,3,FALSE),HLOOKUP(Calc_Option4!D$6,'Carbon Prices'!$D$9:$CP$15,6,FALSE)),0)","v":6.8248086829049139},{"$f":"IFERROR(IF('Data Input - General'!$F$12=\"Yes\",HLOOKUP(Calc_Option4!E$6,'Carbon Prices'!$D$9:$CP$15,3,FALSE),HLOOKUP(Calc_Option4!E$6,'Carbon Prices'!$D$9:$CP$15,6,FALSE)),0)","v":7.0841514128553005},{"$f":"IFERROR(IF('Data Input - General'!$F$12=\"Yes\",HLOOKUP(Calc_Option4!F$6,'Carbon Prices'!$D$9:$CP$15,3,FALSE),HLOOKUP(Calc_Option4!F$6,'Carbon Prices'!$D$9:$CP$15,6,FALSE)),0)","v":14.809366678834097},{"$f":"IFERROR(IF('Data Input - General'!$F$12=\"Yes\",HLOOKUP(Calc_Option4!G$6,'Carbon Prices'!$D$9:$CP$15,3,FALSE),HLOOKUP(Calc_Option4!G$6,'Carbon Prices'!$D$9:$CP$15,6,FALSE)),0)","v":22.534581944812892},{"$f":"IFERROR(IF('Data Input - General'!$F$12=\"Yes\",HLOOKUP(Calc_Option4!H$6,'Carbon Prices'!$D$9:$CP$15,3,FALSE),HLOOKUP(Calc_Option4!H$6,'Carbon Prices'!$D$9:$CP$15,6,FALSE)),0)","v":30.259797210791689},{"$f":"IFERROR(IF('Data Input - General'!$F$12=\"Yes\",HLOOKUP(Calc_Option4!I$6,'Carbon Prices'!$D$9:$CP$15,3,FALSE),HLOOKUP(Calc_Option4!I$6,'Carbon Prices'!$D$9:$CP$15,6,FALSE)),0)","v":37.985012476770486},{"$f":"IFERROR(IF('Data Input - General'!$F$12=\"Yes\",HLOOKUP(Calc_Option4!J$6,'Carbon Prices'!$D$9:$CP$15,3,FALSE),HLOOKUP(Calc_Option4!J$6,'Carbon Prices'!$D$9:$CP$15,6,FALSE)),0)","v":45.710227742749282},{"$f":"IFERROR(IF('Data Input - General'!$F$12=\"Yes\",HLOOKUP(Calc_Option4!K$6,'Carbon Prices'!$D$9:$CP$15,3,FALSE),HLOOKUP(Calc_Option4!K$6,'Carbon Prices'!$D$9:$CP$15,6,FALSE)),0)","v":53.435443008728079},{"$f":"IFERROR(IF('Data Input - General'!$F$12=\"Yes\",HLOOKUP(Calc_Option4!L$6,'Carbon Prices'!$D$9:$CP$15,3,FALSE),HLOOKUP(Calc_Option4!L$6,'Carbon Prices'!$D$9:$CP$15,6,FALSE)),0)","v":61.160658274706876},{"$f":"IFERROR(IF('Data Input - General'!$F$12=\"Yes\",HLOOKUP(Calc_Option4!M$6,'Carbon Prices'!$D$9:$CP$15,3,FALSE),HLOOKUP(Calc_Option4!M$6,'Carbon Prices'!$D$9:$CP$15,6,FALSE)),0)","v":68.885873540685665},{"$f":"IFERROR(IF('Data Input - General'!$F$12=\"Yes\",HLOOKUP(Calc_Option4!N$6,'Carbon Prices'!$D$9:$CP$15,3,FALSE),HLOOKUP(Calc_Option4!N$6,'Carbon Prices'!$D$9:$CP$15,6,FALSE)),0)","v":76.611088806664469},{"$f":"IFERROR(IF('Data Input - General'!$F$12=\"Yes\",HLOOKUP(Calc_Option4!O$6,'Carbon Prices'!$D$9:$CP$15,3,FALSE),HLOOKUP(Calc_Option4!O$6,'Carbon Prices'!$D$9:$CP$15,6,FALSE)),0)","v":84.336304072643259},{"$f":"IFERROR(IF('Data Input - General'!$F$12=\"Yes\",HLOOKUP(Calc_Option4!P$6,'Carbon Prices'!$D$9:$CP$15,3,FALSE),HLOOKUP(Calc_Option4!P$6,'Carbon Prices'!$D$9:$CP$15,6,FALSE)),0)","v":92.167532307960172},{"$f":"IFERROR(IF('Data Input - General'!$F$12=\"Yes\",HLOOKUP(Calc_Option4!Q$6,'Carbon Prices'!$D$9:$CP$15,3,FALSE),HLOOKUP(Calc_Option4!Q$6,'Carbon Prices'!$D$9:$CP$15,6,FALSE)),0)","v":99.998760543277044},{"$f":"IFERROR(IF('Data Input - General'!$F$12=\"Yes\",HLOOKUP(Calc_Option4!R$6,'Carbon Prices'!$D$9:$CP$15,3,FALSE),HLOOKUP(Calc_Option4!R$6,'Carbon Prices'!$D$9:$CP$15,6,FALSE)),0)","v":107.82998877859391},{"$f":"IFERROR(IF('Data Input - General'!$F$12=\"Yes\",HLOOKUP(Calc_Option4!S$6,'Carbon Prices'!$D$9:$CP$15,3,FALSE),HLOOKUP(Calc_Option4!S$6,'Carbon Prices'!$D$9:$CP$15,6,FALSE)),0)","v":115.6612170139108},{"$f":"IFERROR(IF('Data Input - General'!$F$12=\"Yes\",HLOOKUP(Calc_Option4!T$6,'Carbon Prices'!$D$9:$CP$15,3,FALSE),HLOOKUP(Calc_Option4!T$6,'Carbon Prices'!$D$9:$CP$15,6,FALSE)),0)","v":123.49244524922767},{"$f":"IFERROR(IF('Data Input - General'!$F$12=\"Yes\",HLOOKUP(Calc_Option4!U$6,'Carbon Prices'!$D$9:$CP$15,3,FALSE),HLOOKUP(Calc_Option4!U$6,'Carbon Prices'!$D$9:$CP$15,6,FALSE)),0)","v":131.32367348454454},{"$f":"IFERROR(IF('Data Input - General'!$F$12=\"Yes\",HLOOKUP(Calc_Option4!V$6,'Carbon Prices'!$D$9:$CP$15,3,FALSE),HLOOKUP(Calc_Option4!V$6,'Carbon Prices'!$D$9:$CP$15,6,FALSE)),0)","v":139.15490171986141},{"$f":"IFERROR(IF('Data Input - General'!$F$12=\"Yes\",HLOOKUP(Calc_Option4!W$6,'Carbon Prices'!$D$9:$CP$15,3,FALSE),HLOOKUP(Calc_Option4!W$6,'Carbon Prices'!$D$9:$CP$15,6,FALSE)),0)","v":146.98612995517828},{"$f":"IFERROR(IF('Data Input - General'!$F$12=\"Yes\",HLOOKUP(Calc_Option4!X$6,'Carbon Prices'!$D$9:$CP$15,3,FALSE),HLOOKUP(Calc_Option4!X$6,'Carbon Prices'!$D$9:$CP$15,6,FALSE)),0)","v":154.81735819049521},{"$f":"IFERROR(IF('Data Input - General'!$F$12=\"Yes\",HLOOKUP(Calc_Option4!Y$6,'Carbon Prices'!$D$9:$CP$15,3,FALSE),HLOOKUP(Calc_Option4!Y$6,'Carbon Prices'!$D$9:$CP$15,6,FALSE)),0)","v":162.64858642581208},{"$f":"IFERROR(IF('Data Input - General'!$F$12=\"Yes\",HLOOKUP(Calc_Option4!Z$6,'Carbon Prices'!$D$9:$CP$15,3,FALSE),HLOOKUP(Calc_Option4!Z$6,'Carbon Prices'!$D$9:$CP$15,6,FALSE)),0)","v":170.47981466112896},{"$f":"IFERROR(IF('Data Input - General'!$F$12=\"Yes\",HLOOKUP(Calc_Option4!AA$6,'Carbon Prices'!$D$9:$CP$15,3,FALSE),HLOOKUP(Calc_Option4!AA$6,'Carbon Prices'!$D$9:$CP$15,6,FALSE)),0)","v":178.31104289644583},{"$f":"IFERROR(IF('Data Input - General'!$F$12=\"Yes\",HLOOKUP(Calc_Option4!AB$6,'Carbon Prices'!$D$9:$CP$15,3,FALSE),HLOOKUP(Calc_Option4!AB$6,'Carbon Prices'!$D$9:$CP$15,6,FALSE)),0)","v":186.1422711317627},{"$f":"IFERROR(IF('Data Input - General'!$F$12=\"Yes\",HLOOKUP(Calc_Option4!AC$6,'Carbon Prices'!$D$9:$CP$15,3,FALSE),HLOOKUP(Calc_Option4!AC$6,'Carbon Prices'!$D$9:$CP$15,6,FALSE)),0)","v":193.97349936707957},{"$f":"IFERROR(IF('Data Input - General'!$F$12=\"Yes\",HLOOKUP(Calc_Option4!AD$6,'Carbon Prices'!$D$9:$CP$15,3,FALSE),HLOOKUP(Calc_Option4!AD$6,'Carbon Prices'!$D$9:$CP$15,6,FALSE)),0)","v":201.80472760239644},{"$f":"IFERROR(IF('Data Input - General'!$F$12=\"Yes\",HLOOKUP(Calc_Option4!AE$6,'Carbon Prices'!$D$9:$CP$15,3,FALSE),HLOOKUP(Calc_Option4!AE$6,'Carbon Prices'!$D$9:$CP$15,6,FALSE)),0)","v":209.63595583771331},{"$f":"IFERROR(IF('Data Input - General'!$F$12=\"Yes\",HLOOKUP(Calc_Option4!AF$6,'Carbon Prices'!$D$9:$CP$15,3,FALSE),HLOOKUP(Calc_Option4!AF$6,'Carbon Prices'!$D$9:$CP$15,6,FALSE)),0)","v":217.46718407303021},{"$f":"IFERROR(IF('Data Input - General'!$F$12=\"Yes\",HLOOKUP(Calc_Option4!AG$6,'Carbon Prices'!$D$9:$CP$15,3,FALSE),HLOOKUP(Calc_Option4!AG$6,'Carbon Prices'!$D$9:$CP$15,6,FALSE)),0)","v":225.29841230834708},{"$f":"IFERROR(IF('Data Input - General'!$F$12=\"Yes\",HLOOKUP(Calc_Option4!AH$6,'Carbon Prices'!$D$9:$CP$15,3,FALSE),HLOOKUP(Calc_Option4!AH$6,'Carbon Prices'!$D$9:$CP$15,6,FALSE)),0)","v":233.12964054366395},{"$f":"IFERROR(IF('Data Input - General'!$F$12=\"Yes\",HLOOKUP(Calc_Option4!AI$6,'Carbon Prices'!$D$9:$CP$15,3,FALSE),HLOOKUP(Calc_Option4!AI$6,'Carbon Prices'!$D$9:$CP$15,6,FALSE)),0)","v":0},{"$f":"IFERROR(IF('Data Input - General'!$F$12=\"Yes\",HLOOKUP(Calc_Option4!AJ$6,'Carbon Prices'!$D$9:$CP$15,3,FALSE),HLOOKUP(Calc_Option4!AJ$6,'Carbon Prices'!$D$9:$CP$15,6,FALSE)),0)","v":0},{"$f":"IFERROR(IF('Data Input - General'!$F$12=\"Yes\",HLOOKUP(Calc_Option4!AK$6,'Carbon Prices'!$D$9:$CP$15,3,FALSE),HLOOKUP(Calc_Option4!AK$6,'Carbon Prices'!$D$9:$CP$15,6,FALSE)),0)","v":0},{"$f":"IFERROR(IF('Data Input - General'!$F$12=\"Yes\",HLOOKUP(Calc_Option4!AL$6,'Carbon Prices'!$D$9:$CP$15,3,FALSE),HLOOKUP(Calc_Option4!AL$6,'Carbon Prices'!$D$9:$CP$15,6,FALSE)),0)","v":0},{"$f":"IFERROR(IF('Data Input - General'!$F$12=\"Yes\",HLOOKUP(Calc_Option4!AM$6,'Carbon Prices'!$D$9:$CP$15,3,FALSE),HLOOKUP(Calc_Option4!AM$6,'Carbon Prices'!$D$9:$CP$15,6,FALSE)),0)","v":0},{"$f":"IFERROR(IF('Data Input - General'!$F$12=\"Yes\",HLOOKUP(Calc_Option4!AN$6,'Carbon Prices'!$D$9:$CP$15,3,FALSE),HLOOKUP(Calc_Option4!AN$6,'Carbon Prices'!$D$9:$CP$15,6,FALSE)),0)","v":0},{"$f":"IFERROR(IF('Data Input - General'!$F$12=\"Yes\",HLOOKUP(Calc_Option4!AO$6,'Carbon Prices'!$D$9:$CP$15,3,FALSE),HLOOKUP(Calc_Option4!AO$6,'Carbon Prices'!$D$9:$CP$15,6,FALSE)),0)","v":0},{"$f":"IFERROR(IF('Data Input - General'!$F$12=\"Yes\",HLOOKUP(Calc_Option4!AP$6,'Carbon Prices'!$D$9:$CP$15,3,FALSE),HLOOKUP(Calc_Option4!AP$6,'Carbon Prices'!$D$9:$CP$15,6,FALSE)),0)","v":0},{"$f":"IFERROR(IF('Data Input - General'!$F$12=\"Yes\",HLOOKUP(Calc_Option4!AQ$6,'Carbon Prices'!$D$9:$CP$15,3,FALSE),HLOOKUP(Calc_Option4!AQ$6,'Carbon Prices'!$D$9:$CP$15,6,FALSE)),0)","v":0},{"$f":"IFERROR(IF('Data Input - General'!$F$12=\"Yes\",HLOOKUP(Calc_Option4!AR$6,'Carbon Prices'!$D$9:$CP$15,3,FALSE),HLOOKUP(Calc_Option4!AR$6,'Carbon Prices'!$D$9:$CP$15,6,FALSE)),0)","v":0},{"$f":"IFERROR(IF('Data Input - General'!$F$12=\"Yes\",HLOOKUP(Calc_Option4!AS$6,'Carbon Prices'!$D$9:$CP$15,3,FALSE),HLOOKUP(Calc_Option4!AS$6,'Carbon Prices'!$D$9:$CP$15,6,FALSE)),0)","v":0},{"$f":"IFERROR(IF('Data Input - General'!$F$12=\"Yes\",HLOOKUP(Calc_Option4!AT$6,'Carbon Prices'!$D$9:$CP$15,3,FALSE),HLOOKUP(Calc_Option4!AT$6,'Carbon Prices'!$D$9:$CP$15,6,FALSE)),0)","v":0},{"$f":"IFERROR(IF('Data Input - General'!$F$12=\"Yes\",HLOOKUP(Calc_Option4!AU$6,'Carbon Prices'!$D$9:$CP$15,3,FALSE),HLOOKUP(Calc_Option4!AU$6,'Carbon Prices'!$D$9:$CP$15,6,FALSE)),0)","v":0},{"$f":"IFERROR(IF('Data Input - General'!$F$12=\"Yes\",HLOOKUP(Calc_Option4!AV$6,'Carbon Prices'!$D$9:$CP$15,3,FALSE),HLOOKUP(Calc_Option4!AV$6,'Carbon Prices'!$D$9:$CP$15,6,FALSE)),0)","v":0},{"$f":"IFERROR(IF('Data Input - General'!$F$12=\"Yes\",HLOOKUP(Calc_Option4!AW$6,'Carbon Prices'!$D$9:$CP$15,3,FALSE),HLOOKUP(Calc_Option4!AW$6,'Carbon Prices'!$D$9:$CP$15,6,FALSE)),0)","v":0},{"$f":"IFERROR(IF('Data Input - General'!$F$12=\"Yes\",HLOOKUP(Calc_Option4!AX$6,'Carbon Prices'!$D$9:$CP$15,3,FALSE),HLOOKUP(Calc_Option4!AX$6,'Carbon Prices'!$D$9:$CP$15,6,FALSE)),0)","v":0},{"$f":"IFERROR(IF('Data Input - General'!$F$12=\"Yes\",HLOOKUP(Calc_Option4!AY$6,'Carbon Prices'!$D$9:$CP$15,3,FALSE),HLOOKUP(Calc_Option4!AY$6,'Carbon Prices'!$D$9:$CP$15,6,FALSE)),0)","v":0},{"$f":"IFERROR(IF('Data Input - General'!$F$12=\"Yes\",HLOOKUP(Calc_Option4!AZ$6,'Carbon Prices'!$D$9:$CP$15,3,FALSE),HLOOKUP(Calc_Option4!AZ$6,'Carbon Prices'!$D$9:$CP$15,6,FALSE)),0)","v":0},{"$f":"IFERROR(IF('Data Input - General'!$F$12=\"Yes\",HLOOKUP(Calc_Option4!BA$6,'Carbon Prices'!$D$9:$CP$15,3,FALSE),HLOOKUP(Calc_Option4!BA$6,'Carbon Prices'!$D$9:$CP$15,6,FALSE)),0)","v":0},{"$f":"IFERROR(IF('Data Input - General'!$F$12=\"Yes\",HLOOKUP(Calc_Option4!BB$6,'Carbon Prices'!$D$9:$CP$15,3,FALSE),HLOOKUP(Calc_Option4!BB$6,'Carbon Prices'!$D$9:$CP$15,6,FALSE)),0)","v":0},{"$f":"IFERROR(IF('Data Input - General'!$F$12=\"Yes\",HLOOKUP(Calc_Option4!BC$6,'Carbon Prices'!$D$9:$CP$15,3,FALSE),HLOOKUP(Calc_Option4!BC$6,'Carbon Prices'!$D$9:$CP$15,6,FALSE)),0)","v":0},{"$f":"IFERROR(IF('Data Input - General'!$F$12=\"Yes\",HLOOKUP(Calc_Option4!BD$6,'Carbon Prices'!$D$9:$CP$15,3,FALSE),HLOOKUP(Calc_Option4!BD$6,'Carbon Prices'!$D$9:$CP$15,6,FALSE)),0)","v":0},{"$f":"IFERROR(IF('Data Input - General'!$F$12=\"Yes\",HLOOKUP(Calc_Option4!BE$6,'Carbon Prices'!$D$9:$CP$15,3,FALSE),HLOOKUP(Calc_Option4!BE$6,'Carbon Prices'!$D$9:$CP$15,6,FALSE)),0)","v":0},{"$f":"IFERROR(IF('Data Input - General'!$F$12=\"Yes\",HLOOKUP(Calc_Option4!BF$6,'Carbon Prices'!$D$9:$CP$15,3,FALSE),HLOOKUP(Calc_Option4!BF$6,'Carbon Prices'!$D$9:$CP$15,6,FALSE)),0)","v":0},{"$f":"IFERROR(IF('Data Input - General'!$F$12=\"Yes\",HLOOKUP(Calc_Option4!BG$6,'Carbon Prices'!$D$9:$CP$15,3,FALSE),HLOOKUP(Calc_Option4!BG$6,'Carbon Prices'!$D$9:$CP$15,6,FALSE)),0)","v":0},{"$f":"IFERROR(IF('Data Input - General'!$F$12=\"Yes\",HLOOKUP(Calc_Option4!BH$6,'Carbon Prices'!$D$9:$CP$15,3,FALSE),HLOOKUP(Calc_Option4!BH$6,'Carbon Prices'!$D$9:$CP$15,6,FALSE)),0)","v":0},{"$f":"IFERROR(IF('Data Input - General'!$F$12=\"Yes\",HLOOKUP(Calc_Option4!BI$6,'Carbon Prices'!$D$9:$CP$15,3,FALSE),HLOOKUP(Calc_Option4!BI$6,'Carbon Prices'!$D$9:$CP$15,6,FALSE)),0)","v":0},{"$f":"IFERROR(IF('Data Input - General'!$F$12=\"Yes\",HLOOKUP(Calc_Option4!BJ$6,'Carbon Prices'!$D$9:$CP$15,3,FALSE),HLOOKUP(Calc_Option4!BJ$6,'Carbon Prices'!$D$9:$CP$15,6,FALSE)),0)","v":0},{"$f":"IFERROR(IF('Data Input - General'!$F$12=\"Yes\",HLOOKUP(Calc_Option4!BK$6,'Carbon Prices'!$D$9:$CP$15,3,FALSE),HLOOKUP(Calc_Option4!BK$6,'Carbon Prices'!$D$9:$CP$15,6,FALSE)),0)","v":0},{"$f":"IFERROR(IF('Data Input - General'!$F$12=\"Yes\",HLOOKUP(Calc_Option4!BL$6,'Carbon Prices'!$D$9:$CP$15,3,FALSE),HLOOKUP(Calc_Option4!BL$6,'Carbon Prices'!$D$9:$CP$15,6,FALSE)),0)","v":0},{"$f":"IFERROR(IF('Data Input - General'!$F$12=\"Yes\",HLOOKUP(Calc_Option4!BM$6,'Carbon Prices'!$D$9:$CP$15,3,FALSE),HLOOKUP(Calc_Option4!BM$6,'Carbon Prices'!$D$9:$CP$15,6,FALSE)),0)","v":0},{"$f":"IFERROR(IF('Data Input - General'!$F$12=\"Yes\",HLOOKUP(Calc_Option4!BN$6,'Carbon Prices'!$D$9:$CP$15,3,FALSE),HLOOKUP(Calc_Option4!BN$6,'Carbon Prices'!$D$9:$CP$15,6,FALSE)),0)","v":0},{"$f":"IFERROR(IF('Data Input - General'!$F$12=\"Yes\",HLOOKUP(Calc_Option4!BO$6,'Carbon Prices'!$D$9:$CP$15,3,FALSE),HLOOKUP(Calc_Option4!BO$6,'Carbon Prices'!$D$9:$CP$15,6,FALSE)),0)","v":0},{"$f":"IFERROR(IF('Data Input - General'!$F$12=\"Yes\",HLOOKUP(Calc_Option4!BP$6,'Carbon Prices'!$D$9:$CP$15,3,FALSE),HLOOKUP(Calc_Option4!BP$6,'Carbon Prices'!$D$9:$CP$15,6,FALSE)),0)","v":0},{"$f":"IFERROR(IF('Data Input - General'!$F$12=\"Yes\",HLOOKUP(Calc_Option4!BQ$6,'Carbon Prices'!$D$9:$CP$15,3,FALSE),HLOOKUP(Calc_Option4!BQ$6,'Carbon Prices'!$D$9:$CP$15,6,FALSE)),0)","v":0},{"$f":"IFERROR(IF('Data Input - General'!$F$12=\"Yes\",HLOOKUP(Calc_Option4!BR$6,'Carbon Prices'!$D$9:$CP$15,3,FALSE),HLOOKUP(Calc_Option4!BR$6,'Carbon Prices'!$D$9:$CP$15,6,FALSE)),0)","v":0},{"$f":"IFERROR(IF('Data Input - General'!$F$12=\"Yes\",HLOOKUP(Calc_Option4!BS$6,'Carbon Prices'!$D$9:$CP$15,3,FALSE),HLOOKUP(Calc_Option4!BS$6,'Carbon Prices'!$D$9:$CP$15,6,FALSE)),0)","v":0},{"$f":"IFERROR(IF('Data Input - General'!$F$12=\"Yes\",HLOOKUP(Calc_Option4!BT$6,'Carbon Prices'!$D$9:$CP$15,3,FALSE),HLOOKUP(Calc_Option4!BT$6,'Carbon Prices'!$D$9:$CP$15,6,FALSE)),0)","v":0},{"$f":"IFERROR(IF('Data Input - General'!$F$12=\"Yes\",HLOOKUP(Calc_Option4!BU$6,'Carbon Prices'!$D$9:$CP$15,3,FALSE),HLOOKUP(Calc_Option4!BU$6,'Carbon Prices'!$D$9:$CP$15,6,FALSE)),0)","v":0},{"$f":"IFERROR(IF('Data Input - General'!$F$12=\"Yes\",HLOOKUP(Calc_Option4!BV$6,'Carbon Prices'!$D$9:$CP$15,3,FALSE),HLOOKUP(Calc_Option4!BV$6,'Carbon Prices'!$D$9:$CP$15,6,FALSE)),0)","v":0},{"$f":"IFERROR(IF('Data Input - General'!$F$12=\"Yes\",HLOOKUP(Calc_Option4!BW$6,'Carbon Prices'!$D$9:$CP$15,3,FALSE),HLOOKUP(Calc_Option4!BW$6,'Carbon Prices'!$D$9:$CP$15,6,FALSE)),0)","v":0},{"$f":"IFERROR(IF('Data Input - General'!$F$12=\"Yes\",HLOOKUP(Calc_Option4!BX$6,'Carbon Prices'!$D$9:$CP$15,3,FALSE),HLOOKUP(Calc_Option4!BX$6,'Carbon Prices'!$D$9:$CP$15,6,FALSE)),0)","v":0},{"$f":"IFERROR(IF('Data Input - General'!$F$12=\"Yes\",HLOOKUP(Calc_Option4!BY$6,'Carbon Prices'!$D$9:$CP$15,3,FALSE),HLOOKUP(Calc_Option4!BY$6,'Carbon Prices'!$D$9:$CP$15,6,FALSE)),0)","v":0},{"$f":"IFERROR(IF('Data Input - General'!$F$12=\"Yes\",HLOOKUP(Calc_Option4!BZ$6,'Carbon Prices'!$D$9:$CP$15,3,FALSE),HLOOKUP(Calc_Option4!BZ$6,'Carbon Prices'!$D$9:$CP$15,6,FALSE)),0)","v":0},{"$f":"IFERROR(IF('Data Input - General'!$F$12=\"Yes\",HLOOKUP(Calc_Option4!CA$6,'Carbon Prices'!$D$9:$CP$15,3,FALSE),HLOOKUP(Calc_Option4!CA$6,'Carbon Prices'!$D$9:$CP$15,6,FALSE)),0)","v":0},{"$f":"IFERROR(IF('Data Input - General'!$F$12=\"Yes\",HLOOKUP(Calc_Option4!CB$6,'Carbon Prices'!$D$9:$CP$15,3,FALSE),HLOOKUP(Calc_Option4!CB$6,'Carbon Prices'!$D$9:$CP$15,6,FALSE)),0)","v":0},{"$f":"IFERROR(IF('Data Input - General'!$F$12=\"Yes\",HLOOKUP(Calc_Option4!CC$6,'Carbon Prices'!$D$9:$CP$15,3,FALSE),HLOOKUP(Calc_Option4!CC$6,'Carbon Prices'!$D$9:$CP$15,6,FALSE)),0)","v":0},{"$f":"IFERROR(IF('Data Input - General'!$F$12=\"Yes\",HLOOKUP(Calc_Option4!CD$6,'Carbon Prices'!$D$9:$CP$15,3,FALSE),HLOOKUP(Calc_Option4!CD$6,'Carbon Prices'!$D$9:$CP$15,6,FALSE)),0)","v":0},{"$f":"IFERROR(IF('Data Input - General'!$F$12=\"Yes\",HLOOKUP(Calc_Option4!CE$6,'Carbon Prices'!$D$9:$CP$15,3,FALSE),HLOOKUP(Calc_Option4!CE$6,'Carbon Prices'!$D$9:$CP$15,6,FALSE)),0)","v":0},{"$f":"IFERROR(IF('Data Input - General'!$F$12=\"Yes\",HLOOKUP(Calc_Option4!CF$6,'Carbon Prices'!$D$9:$CP$15,3,FALSE),HLOOKUP(Calc_Option4!CF$6,'Carbon Prices'!$D$9:$CP$15,6,FALSE)),0)","v":0},{"$f":"IFERROR(IF('Data Input - General'!$F$12=\"Yes\",HLOOKUP(Calc_Option4!CG$6,'Carbon Prices'!$D$9:$CP$15,3,FALSE),HLOOKUP(Calc_Option4!CG$6,'Carbon Prices'!$D$9:$CP$15,6,FALSE)),0)","v":0},{"$f":"IFERROR(IF('Data Input - General'!$F$12=\"Yes\",HLOOKUP(Calc_Option4!CH$6,'Carbon Prices'!$D$9:$CP$15,3,FALSE),HLOOKUP(Calc_Option4!CH$6,'Carbon Prices'!$D$9:$CP$15,6,FALSE)),0)","v":0},{"$f":"IFERROR(IF('Data Input - General'!$F$12=\"Yes\",HLOOKUP(Calc_Option4!CI$6,'Carbon Prices'!$D$9:$CP$15,3,FALSE),HLOOKUP(Calc_Option4!CI$6,'Carbon Prices'!$D$9:$CP$15,6,FALSE)),0)","v":0},{"$f":"IFERROR(IF('Data Input - General'!$F$12=\"Yes\",HLOOKUP(Calc_Option4!CJ$6,'Carbon Prices'!$D$9:$CP$15,3,FALSE),HLOOKUP(Calc_Option4!CJ$6,'Carbon Prices'!$D$9:$CP$15,6,FALSE)),0)","v":0},{"$f":"IFERROR(IF('Data Input - General'!$F$12=\"Yes\",HLOOKUP(Calc_Option4!CK$6,'Carbon Prices'!$D$9:$CP$15,3,FALSE),HLOOKUP(Calc_Option4!CK$6,'Carbon Prices'!$D$9:$CP$15,6,FALSE)),0)","v":0},{"$f":"IFERROR(IF('Data Input - General'!$F$12=\"Yes\",HLOOKUP(Calc_Option4!CL$6,'Carbon Prices'!$D$9:$CP$15,3,FALSE),HLOOKUP(Calc_Option4!CL$6,'Carbon Prices'!$D$9:$CP$15,6,FALSE)),0)","v":0},{"$f":"IFERROR(IF('Data Input - General'!$F$12=\"Yes\",HLOOKUP(Calc_Option4!CM$6,'Carbon Prices'!$D$9:$CP$15,3,FALSE),HLOOKUP(Calc_Option4!CM$6,'Carbon Prices'!$D$9:$CP$15,6,FALSE)),0)","v":0},{"$f":"IFERROR(IF('Data Input - General'!$F$12=\"Yes\",HLOOKUP(Calc_Option4!CN$6,'Carbon Prices'!$D$9:$CP$15,3,FALSE),HLOOKUP(Calc_Option4!CN$6,'Carbon Prices'!$D$9:$CP$15,6,FALSE)),0)","v":0},{"$f":"IFERROR(IF('Data Input - General'!$F$12=\"Yes\",HLOOKUP(Calc_Option4!CO$6,'Carbon Prices'!$D$9:$CP$15,3,FALSE),HLOOKUP(Calc_Option4!CO$6,'Carbon Prices'!$D$9:$CP$15,6,FALSE)),0)","v":0},{"$f":"IFERROR(IF('Data Input - General'!$F$12=\"Yes\",HLOOKUP(Calc_Option4!CP$6,'Carbon Prices'!$D$9:$CP$15,3,FALSE),HLOOKUP(Calc_Option4!CP$6,'Carbon Prices'!$D$9:$CP$15,6,FALSE)),0)","v":0},{"$f":"IFERROR(IF('Data Input - General'!$F$12=\"Yes\",HLOOKUP(Calc_Option4!CQ$6,'Carbon Prices'!$D$9:$CP$15,3,FALSE),HLOOKUP(Calc_Option4!CQ$6,'Carbon Prices'!$D$9:$CP$15,6,FALSE)),0)","v":0},{"$f":"IFERROR(IF('Data Input - General'!$F$12=\"Yes\",HLOOKUP(Calc_Option4!CR$6,'Carbon Prices'!$D$9:$CP$15,3,FALSE),HLOOKUP(Calc_Option4!CR$6,'Carbon Prices'!$D$9:$CP$15,6,FALSE)),0)","v":0},{"$f":"IFERROR(IF('Data Input - General'!$F$12=\"Yes\",HLOOKUP(Calc_Option4!CS$6,'Carbon Prices'!$D$9:$CP$15,3,FALSE),HLOOKUP(Calc_Option4!CS$6,'Carbon Prices'!$D$9:$CP$15,6,FALSE)),0)","v":0},{"$f":"IFERROR(IF('Data Input - General'!$F$12=\"Yes\",HLOOKUP(Calc_Option4!CT$6,'Carbon Prices'!$D$9:$CP$15,3,FALSE),HLOOKUP(Calc_Option4!CT$6,'Carbon Prices'!$D$9:$CP$15,6,FALSE)),0)","v":0},{"$f":"IFERROR(IF('Data Input - General'!$F$12=\"Yes\",HLOOKUP(Calc_Option4!CU$6,'Carbon Prices'!$D$9:$CP$15,3,FALSE),HLOOKUP(Calc_Option4!CU$6,'Carbon Prices'!$D$9:$CP$15,6,FALSE)),0)","v":0},{"$f":"IFERROR(IF('Data Input - General'!$F$12=\"Yes\",HLOOKUP(Calc_Option4!CV$6,'Carbon Prices'!$D$9:$CP$15,3,FALSE),HLOOKUP(Calc_Option4!CV$6,'Carbon Prices'!$D$9:$CP$15,6,FALSE)),0)","v":0},{"$f":"IFERROR(IF('Data Input - General'!$F$12=\"Yes\",HLOOKUP(Calc_Option4!CW$6,'Carbon Prices'!$D$9:$CP$15,3,FALSE),HLOOKUP(Calc_Option4!CW$6,'Carbon Prices'!$D$9:$CP$15,6,FALSE)),0)","v":0},{"$f":"IFERROR(IF('Data Input - General'!$F$12=\"Yes\",HLOOKUP(Calc_Option4!CX$6,'Carbon Prices'!$D$9:$CP$15,3,FALSE),HLOOKUP(Calc_Option4!CX$6,'Carbon Prices'!$D$9:$CP$15,6,FALSE)),0)","v":0},{"$f":"IFERROR(IF('Data Input - General'!$F$12=\"Yes\",HLOOKUP(Calc_Option4!CY$6,'Carbon Prices'!$D$9:$CP$15,3,FALSE),HLOOKUP(Calc_Option4!CY$6,'Carbon Prices'!$D$9:$CP$15,6,FALSE)),0)","v":0}]
[null,"Total value","£000's",{"$f":"IFERROR(D75*D76,0)","v":0},{"$f":"IFERROR(E75*E76,0)","v":0},{"$f":"IFERROR(F75*F76,0)","v":0},{"$f":"IFERROR(G75*G76,0)","v":0},0,0,0,0,0,0,0,0,0,0,0,0,0,0,0,0,0,0,0,0,0,0,0,0,0,0,0,0,0,0,0,0,0,0,0,0,0,0,0,0,0,0,0,0,0,0,0,0,0,0,0,0,0,0,0,0,0,0,0,0,0,0,0,{"$f":"IFERROR(BS75*BS76,0)","v":0},0,0,0,0,0,0,0,0,0,0,0,0,0,0,0,0,0,0,0,0,0,0,0,0,0,0,0,0,0,0,0,0]
[]
[null,"Greenhouse gas emissions (associated with fuel use)"]
[null,"Elec","tCO2e",{"$f":"'Data Input - Option 4'!H120","v":0},{"$f":"'Data Input - Option 4'!I120","v":0},{"$f":"'Data Input - Option 4'!J120","v":0},{"$f":"'Data Input - Option 4'!K120","v":0},{"$f":"'Data Input - Option 4'!L120","v":0},{"$f":"'Data Input - Option 4'!M120","v":0},{"$f":"'Data Input - Option 4'!N120","v":0},{"$f":"'Data Input - Option 4'!O120","v":0},{"$f":"'Data Input - Option 4'!P120","v":0},{"$f":"'Data Input - Option 4'!Q120","v":0},{"$f":"'Data Input - Option 4'!R120","v":0},{"$f":"'Data Input - Option 4'!S120","v":0},{"$f":"'Data Input - Option 4'!T120","v":0},{"$f":"'Data Input - Option 4'!U120","v":0},{"$f":"'Data Input - Option 4'!V120","v":0},{"$f":"'Data Input - Option 4'!W120","v":0},{"$f":"'Data Input - Option 4'!X120","v":0},{"$f":"'Data Input - Option 4'!Y120","v":0},{"$f":"'Data Input - Option 4'!Z120","v":0},{"$f":"'Data Input - Option 4'!AA120","v":0},{"$f":"'Data Input - Option 4'!AB120","v":0},{"$f":"'Data Input - Option 4'!AC120","v":0},{"$f":"'Data Input - Option 4'!AD120","v":0},{"$f":"'Data Input - Option 4'!AE120","v":0},{"$f":"'Data Input - Option 4'!AF120","v":0},{"$f":"'Data Input - Option 4'!AG120","v":0},{"$f":"'Data Input - Option 4'!AH120","v":0},{"$f":"'Data Input - Option 4'!AI120","v":0},{"$f":"'Data Input - Option 4'!AJ120","v":0},{"$f":"'Data Input - Option 4'!AK120","v":0},{"$f":"'Data Input - Option 4'!AL120","v":0},{"$f":"'Data Input - Option 4'!AM120","v":0},{"$f":"'Data Input - Option 4'!AN120","v":0},{"$f":"'Data Input - Option 4'!AO120","v":0},{"$f":"'Data Input - Option 4'!AP120","v":0},{"$f":"'Data Input - Option 4'!AQ120","v":0},{"$f":"'Data Input - Option 4'!AR120","v":0},{"$f":"'Data Input - Option 4'!AS120","v":0},{"$f":"'Data Input - Option 4'!AT120","v":0},{"$f":"'Data Input - Option 4'!AU120","v":0},{"$f":"'Data Input - Option 4'!AV120","v":0},{"$f":"'Data Input - Option 4'!AW120","v":0},{"$f":"'Data Input - Option 4'!AX120","v":0},{"$f":"'Data Input - Option 4'!AY120","v":0},{"$f":"'Data Input - Option 4'!AZ120","v":0},{"$f":"'Data Input - Option 4'!BA120","v":0},{"$f":"'Data Input - Option 4'!BB120","v":0},{"$f":"'Data Input - Option 4'!BC120","v":0},{"$f":"'Data Input - Option 4'!BD120","v":0},{"$f":"'Data Input - Option 4'!BE120","v":0},{"$f":"'Data Input - Option 4'!BF120","v":0},{"$f":"'Data Input - Option 4'!BG120","v":0},{"$f":"'Data Input - Option 4'!BH120","v":0},{"$f":"'Data Input - Option 4'!BI120","v":0},{"$f":"'Data Input - Option 4'!BJ120","v":0},{"$f":"'Data Input - Option 4'!BK120","v":0},{"$f":"'Data Input - Option 4'!BL120","v":0},{"$f":"'Data Input - Option 4'!BM120","v":0},{"$f":"'Data Input - Option 4'!BN120","v":0},{"$f":"'Data Input - Option 4'!BO120","v":0},{"$f":"'Data Input - Option 4'!BP120","v":0},{"$f":"'Data Input - Option 4'!BQ120","v":0},{"$f":"'Data Input - Option 4'!BR120","v":0},{"$f":"'Data Input - Option 4'!BS120","v":0},{"$f":"'Data Input - Option 4'!BT120","v":0},{"$f":"'Data Input - Option 4'!BU120","v":0},{"$f":"'Data Input - Option 4'!BV120","v":0},{"$f":"'Data Input - Option 4'!BW120","v":0},{"$f":"'Data Input - Option 4'!BX120","v":0},{"$f":"'Data Input - Option 4'!BY120","v":0},{"$f":"'Data Input - Option 4'!BZ120","v":0},{"$f":"'Data Input - Option 4'!CA120","v":0},{"$f":"'Data Input - Option 4'!CB120","v":0},{"$f":"'Data Input - Option 4'!CC120","v":0},{"$f":"'Data Input - Option 4'!CD120","v":0},{"$f":"'Data Input - Option 4'!CE120","v":0},{"$f":"'Data Input - Option 4'!CF120","v":0},{"$f":"'Data Input - Option 4'!CG120","v":0},{"$f":"'Data Input - Option 4'!CH120","v":0},{"$f":"'Data Input - Option 4'!CI120","v":0},{"$f":"'Data Input - Option 4'!CJ120","v":0},{"$f":"'Data Input - Option 4'!CK120","v":0},{"$f":"'Data Input - Option 4'!CL120","v":0},{"$f":"'Data Input - Option 4'!CM120","v":0},{"$f":"'Data Input - Option 4'!CN120","v":0},{"$f":"'Data Input - Option 4'!CO120","v":0},{"$f":"'Data Input - Option 4'!CP120","v":0},{"$f":"'Data Input - Option 4'!CQ120","v":0},{"$f":"'Data Input - Option 4'!CR120","v":0},{"$f":"'Data Input - Option 4'!CS120","v":0},{"$f":"'Data Input - Option 4'!CT120","v":0},{"$f":"'Data Input - Option 4'!CU120","v":0},{"$f":"'Data Input - Option 4'!CV120","v":0},{"$f":"'Data Input - Option 4'!CW120","v":0},{"$f":"'Data Input - Option 4'!CX120","v":0},{"$f":"'Data Input - Option 4'!CY120","v":0},{"$f":"'Data Input - Option 4'!CZ120","v":0},{"$f":"'Data Input - Option 4'!DA120","v":0},{"$f":"'Data Input - Option 4'!DB120","v":0},{"$f":"'Data Input - Option 4'!DC120","v":0}]
[null,"Non-elec","tCO2e",{"$f":"'Data Input - Option 4'!H128-'Data Input - Option 4'!H120","v":2.7159532468959326E-3},{"$f":"'Data Input - Option 4'!I128-'Data Input - Option 4'!I120","v":0},{"$f":"'Data Input - Option 4'!J128-'Data Input - Option 4'!J120","v":0},{"$f":"'Data Input - Option 4'!K128-'Data Input - Option 4'!K120","v":0},{"$f":"'Data Input - Option 4'!L128-'Data Input - Option 4'!L120","v":0},{"$f":"'Data Input - Option 4'!M128-'Data Input - Option 4'!M120","v":0},{"$f":"'Data Input - Option 4'!N128-'Data Input - Option 4'!N120","v":0},{"$f":"'Data Input - Option 4'!O128-'Data Input - Option 4'!O120","v":0},{"$f":"'Data Input - Option 4'!P128-'Data Input - Option 4'!P120","v":0},{"$f":"'Data Input - Option 4'!Q128-'Data Input - Option 4'!Q120","v":0},{"$f":"'Data Input - Option 4'!R128-'Data Input - Option 4'!R120","v":0},{"$f":"'Data Input - Option 4'!S128-'Data Input - Option 4'!S120","v":0},{"$f":"'Data Input - Option 4'!T128-'Data Input - Option 4'!T120","v":0},{"$f":"'Data Input - Option 4'!U128-'Data Input - Option 4'!U120","v":0},{"$f":"'Data Input - Option 4'!V128-'Data Input - Option 4'!V120","v":0},{"$f":"'Data Input - Option 4'!W128-'Data Input - Option 4'!W120","v":0},{"$f":"'Data Input - Option 4'!X128-'Data Input - Option 4'!X120","v":0},{"$f":"'Data Input - Option 4'!Y128-'Data Input - Option 4'!Y120","v":0},{"$f":"'Data Input - Option 4'!Z128-'Data Input - Option 4'!Z120","v":0},{"$f":"'Data Input - Option 4'!AA128-'Data Input - Option 4'!AA120","v":0},{"$f":"'Data Input - Option 4'!AB128-'Data Input - Option 4'!AB120","v":0},{"$f":"'Data Input - Option 4'!AC128-'Data Input - Option 4'!AC120","v":0},{"$f":"'Data Input - Option 4'!AD128-'Data Input - Option 4'!AD120","v":0},{"$f":"'Data Input - Option 4'!AE128-'Data Input - Option 4'!AE120","v":0},{"$f":"'Data Input - Option 4'!AF128-'Data Input - Option 4'!AF120","v":0},{"$f":"'Data Input - Option 4'!AG128-'Data Input - Option 4'!AG120","v":0},{"$f":"'Data Input - Option 4'!AH128-'Data Input - Option 4'!AH120","v":0},{"$f":"'Data Input - Option 4'!AI128-'Data Input - Option 4'!AI120","v":0},{"$f":"'Data Input - Option 4'!AJ128-'Data Input - Option 4'!AJ120","v":0},{"$f":"'Data Input - Option 4'!AK128-'Data Input - Option 4'!AK120","v":0},{"$f":"'Data Input - Option 4'!AL128-'Data Input - Option 4'!AL120","v":0},{"$f":"'Data Input - Option 4'!AM128-'Data Input - Option 4'!AM120","v":0},{"$f":"'Data Input - Option 4'!AN128-'Data Input - Option 4'!AN120","v":0},{"$f":"'Data Input - Option 4'!AO128-'Data Input - Option 4'!AO120","v":0},{"$f":"'Data Input - Option 4'!AP128-'Data Input - Option 4'!AP120","v":0},{"$f":"'Data Input - Option 4'!AQ128-'Data Input - Option 4'!AQ120","v":0},{"$f":"'Data Input - Option 4'!AR128-'Data Input - Option 4'!AR120","v":0},{"$f":"'Data Input - Option 4'!AS128-'Data Input - Option 4'!AS120","v":0},{"$f":"'Data Input - Option 4'!AT128-'Data Input - Option 4'!AT120","v":0},{"$f":"'Data Input - Option 4'!AU128-'Data Input - Option 4'!AU120","v":0},{"$f":"'Data Input - Option 4'!AV128-'Data Input - Option 4'!AV120","v":0},{"$f":"'Data Input - Option 4'!AW128-'Data Input - Option 4'!AW120","v":0},{"$f":"'Data Input - Option 4'!AX128-'Data Input - Option 4'!AX120","v":0},{"$f":"'Data Input - Option 4'!AY128-'Data Input - Option 4'!AY120","v":0},{"$f":"'Data Input - Option 4'!AZ128-'Data Input - Option 4'!AZ120","v":0},{"$f":"'Data Input - Option 4'!BA128-'Data Input - Option 4'!BA120","v":0},{"$f":"'Data Input - Option 4'!BB128-'Data Input - Option 4'!BB120","v":0},{"$f":"'Data Input - Option 4'!BC128-'Data Input - Option 4'!BC120","v":0},{"$f":"'Data Input - Option 4'!BD128-'Data Input - Option 4'!BD120","v":0},{"$f":"'Data Input - Option 4'!BE128-'Data Input - Option 4'!BE120","v":0},{"$f":"'Data Input - Option 4'!BF128-'Data Input - Option 4'!BF120","v":0},{"$f":"'Data Input - Option 4'!BG128-'Data Input - Option 4'!BG120","v":0},{"$f":"'Data Input - Option 4'!BH128-'Data Input - Option 4'!BH120","v":0},{"$f":"'Data Input - Option 4'!BI128-'Data Input - Option 4'!BI120","v":0},{"$f":"'Data Input - Option 4'!BJ128-'Data Input - Option 4'!BJ120","v":0},{"$f":"'Data Input - Option 4'!BK128-'Data Input - Option 4'!BK120","v":0},{"$f":"'Data Input - Option 4'!BL128-'Data Input - Option 4'!BL120","v":0},{"$f":"'Data Input - Option 4'!BM128-'Data Input - Option 4'!BM120","v":0},{"$f":"'Data Input - Option 4'!BN128-'Data Input - Option 4'!BN120","v":0},{"$f":"'Data Input - Option 4'!BO128-'Data Input - Option 4'!BO120","v":0},{"$f":"'Data Input - Option 4'!BP128-'Data Input - Option 4'!BP120","v":0},{"$f":"'Data Input - Option 4'!BQ128-'Data Input - Option 4'!BQ120","v":0},{"$f":"'Data Input - Option 4'!BR128-'Data Input - Option 4'!BR120","v":0},{"$f":"'Data Input - Option 4'!BS128-'Data Input - Option 4'!BS120","v":0},{"$f":"'Data Input - Option 4'!BT128-'Data Input - Option 4'!BT120","v":0},{"$f":"'Data Input - Option 4'!BU128-'Data Input - Option 4'!BU120","v":0},{"$f":"'Data Input - Option 4'!BV128-'Data Input - Option 4'!BV120","v":0},{"$f":"'Data Input - Option 4'!BW128-'Data Input - Option 4'!BW120","v":0},{"$f":"'Data Input - Option 4'!BX128-'Data Input - Option 4'!BX120","v":0},{"$f":"'Data Input - Option 4'!BY128-'Data Input - Option 4'!BY120","v":0},{"$f":"'Data Input - Option 4'!BZ128-'Data Input - Option 4'!BZ120","v":0},{"$f":"'Data Input - Option 4'!CA128-'Data Input - Option 4'!CA120","v":0},{"$f":"'Data Input - Option 4'!CB128-'Data Input - Option 4'!CB120","v":0},{"$f":"'Data Input - Option 4'!CC128-'Data Input - Option 4'!CC120","v":0},{"$f":"'Data Input - Option 4'!CD128-'Data Input - Option 4'!CD120","v":0},{"$f":"'Data Input - Option 4'!CE128-'Data Input - Option 4'!CE120","v":0},{"$f":"'Data Input - Option 4'!CF128-'Data Input - Option 4'!CF120","v":0},{"$f":"'Data Input - Option 4'!CG128-'Data Input - Option 4'!CG120","v":0},{"$f":"'Data Input - Option 4'!CH128-'Data Input - Option 4'!CH120","v":0},{"$f":"'Data Input - Option 4'!CI128-'Data Input - Option 4'!CI120","v":0},{"$f":"'Data Input - Option 4'!CJ128-'Data Input - Option 4'!CJ120","v":0},{"$f":"'Data Input - Option 4'!CK128-'Data Input - Option 4'!CK120","v":0},{"$f":"'Data Input - Option 4'!CL128-'Data Input - Option 4'!CL120","v":0},{"$f":"'Data Input - Option 4'!CM128-'Data Input - Option 4'!CM120","v":0},{"$f":"'Data Input - Option 4'!CN128-'Data Input - Option 4'!CN120","v":0},{"$f":"'Data Input - Option 4'!CO128-'Data Input - Option 4'!CO120","v":0},{"$f":"'Data Input - Option 4'!CP128-'Data Input - Option 4'!CP120","v":0},{"$f":"'Data Input - Option 4'!CQ128-'Data Input - Option 4'!CQ120","v":0},{"$f":"'Data Input - Option 4'!CR128-'Data Input - Option 4'!CR120","v":0},{"$f":"'Data Input - Option 4'!CS128-'Data Input - Option 4'!CS120","v":0},{"$f":"'Data Input - Option 4'!CT128-'Data Input - Option 4'!CT120","v":0},{"$f":"'Data Input - Option 4'!CU128-'Data Input - Option 4'!CU120","v":0},{"$f":"'Data Input - Option 4'!CV128-'Data Input - Option 4'!CV120","v":0},{"$f":"'Data Input - Option 4'!CW128-'Data Input - Option 4'!CW120","v":0},{"$f":"'Data Input - Option 4'!CX128-'Data Input - Option 4'!CX120","v":0},{"$f":"'Data Input - Option 4'!CY128-'Data Input - Option 4'!CY120","v":0},{"$f":"'Data Input - Option 4'!CZ128-'Data Input - Option 4'!CZ120","v":0},{"$f":"'Data Input - Option 4'!DA128-'Data Input - Option 4'!DA120","v":0},{"$f":"'Data Input - Option 4'!DB128-'Data Input - Option 4'!DB120","v":0},{"$f":"'Data Input - Option 4'!DC128-'Data Input - Option 4'!DC120","v":0}]
[null,"Value elec","£000's",{"$f":"HLOOKUP(Calc_Option4!D$6,'Carbon Prices'!$D$9:$CP$15,3,FALSE)","v":6.8248086829049139},{"$f":"HLOOKUP(Calc_Option4!E$6,'Carbon Prices'!$D$9:$CP$15,3,FALSE)","v":7.0841514128553005},{"$f":"HLOOKUP(Calc_Option4!F$6,'Carbon Prices'!$D$9:$CP$15,3,FALSE)","v":14.809366678834097},{"$f":"HLOOKUP(Calc_Option4!G$6,'Carbon Prices'!$D$9:$CP$15,3,FALSE)","v":22.534581944812892},{"$f":"HLOOKUP(Calc_Option4!H$6,'Carbon Prices'!$D$9:$CP$15,3,FALSE)","v":30.259797210791689},{"$f":"HLOOKUP(Calc_Option4!I$6,'Carbon Prices'!$D$9:$CP$15,3,FALSE)","v":37.985012476770486},{"$f":"HLOOKUP(Calc_Option4!J$6,'Carbon Prices'!$D$9:$CP$15,3,FALSE)","v":45.710227742749282},{"$f":"HLOOKUP(Calc_Option4!K$6,'Carbon Prices'!$D$9:$CP$15,3,FALSE)","v":53.435443008728079},{"$f":"HLOOKUP(Calc_Option4!L$6,'Carbon Prices'!$D$9:$CP$15,3,FALSE)","v":61.160658274706876},{"$f":"HLOOKUP(Calc_Option4!M$6,'Carbon Prices'!$D$9:$CP$15,3,FALSE)","v":68.885873540685665},{"$f":"HLOOKUP(Calc_Option4!N$6,'Carbon Prices'!$D$9:$CP$15,3,FALSE)","v":76.611088806664469},{"$f":"HLOOKUP(Calc_Option4!O$6,'Carbon Prices'!$D$9:$CP$15,3,FALSE)","v":84.336304072643259},{"$f":"HLOOKUP(Calc_Option4!P$6,'Carbon Prices'!$D$9:$CP$15,3,FALSE)","v":92.167532307960172},{"$f":"HLOOKUP(Calc_Option4!Q$6,'Carbon Prices'!$D$9:$CP$15,3,FALSE)","v":99.998760543277044},{"$f":"HLOOKUP(Calc_Option4!R$6,'Carbon Prices'!$D$9:$CP$15,3,FALSE)","v":107.82998877859391},{"$f":"HLOOKUP(Calc_Option4!S$6,'Carbon Prices'!$D$9:$CP$15,3,FALSE)","v":115.6612170139108},{"$f":"HLOOKUP(Calc_Option4!T$6,'Carbon Prices'!$D$9:$CP$15,3,FALSE)","v":123.49244524922767},{"$f":"HLOOKUP(Calc_Option4!U$6,'Carbon Prices'!$D$9:$CP$15,3,FALSE)","v":131.32367348454454},{"$f":"HLOOKUP(Calc_Option4!V$6,'Carbon Prices'!$D$9:$CP$15,3,FALSE)","v":139.15490171986141},{"$f":"HLOOKUP(Calc_Option4!W$6,'Carbon Prices'!$D$9:$CP$15,3,FALSE)","v":146.98612995517828},{"$f":"HLOOKUP(Calc_Option4!X$6,'Carbon Prices'!$D$9:$CP$15,3,FALSE)","v":154.81735819049521},{"$f":"HLOOKUP(Calc_Option4!Y$6,'Carbon Prices'!$D$9:$CP$15,3,FALSE)","v":162.64858642581208},{"$f":"HLOOKUP(Calc_Option4!Z$6,'Carbon Prices'!$D$9:$CP$15,3,FALSE)","v":170.47981466112896},{"$f":"HLOOKUP(Calc_Option4!AA$6,'Carbon Prices'!$D$9:$CP$15,3,FALSE)","v":178.31104289644583},{"$f":"HLOOKUP(Calc_Option4!AB$6,'Carbon Prices'!$D$9:$CP$15,3,FALSE)","v":186.1422711317627},{"$f":"HLOOKUP(Calc_Option4!AC$6,'Carbon Prices'!$D$9:$CP$15,3,FALSE)","v":193.97349936707957},{"$f":"HLOOKUP(Calc_Option4!AD$6,'Carbon Prices'!$D$9:$CP$15,3,FALSE)","v":201.80472760239644},{"$f":"HLOOKUP(Calc_Option4!AE$6,'Carbon Prices'!$D$9:$CP$15,3,FALSE)","v":209.63595583771331},{"$f":"HLOOKUP(Calc_Option4!AF$6,'Carbon Prices'!$D$9:$CP$15,3,FALSE)","v":217.46718407303021},{"$f":"HLOOKUP(Calc_Option4!AG$6,'Carbon Prices'!$D$9:$CP$15,3,FALSE)","v":225.29841230834708},{"$f":"HLOOKUP(Calc_Option4!AH$6,'Carbon Prices'!$D$9:$CP$15,3,FALSE)","v":233.12964054366395},{"$f":"HLOOKUP(Calc_Option4!AI$6,'Carbon Prices'!$D$9:$CP$15,3,FALSE)","v":{"$error":"#N/A"}},{"$f":"HLOOKUP(Calc_Option4!AJ$6,'Carbon Prices'!$D$9:$CP$15,3,FALSE)","v":{"$error":"#N/A"}},{"$f":"HLOOKUP(Calc_Option4!AK$6,'Carbon Prices'!$D$9:$CP$15,3,FALSE)","v":{"$error":"#N/A"}},{"$f":"HLOOKUP(Calc_Option4!AL$6,'Carbon Prices'!$D$9:$CP$15,3,FALSE)","v":{"$error":"#N/A"}},{"$f":"HLOOKUP(Calc_Option4!AM$6,'Carbon Prices'!$D$9:$CP$15,3,FALSE)","v":{"$error":"#N/A"}},{"$f":"HLOOKUP(Calc_Option4!AN$6,'Carbon Prices'!$D$9:$CP$15,3,FALSE)","v":{"$error":"#N/A"}},{"$f":"HLOOKUP(Calc_Option4!AO$6,'Carbon Prices'!$D$9:$CP$15,3,FALSE)","v":{"$error":"#N/A"}},{"$f":"HLOOKUP(Calc_Option4!AP$6,'Carbon Prices'!$D$9:$CP$15,3,FALSE)","v":{"$error":"#N/A"}},{"$f":"HLOOKUP(Calc_Option4!AQ$6,'Carbon Prices'!$D$9:$CP$15,3,FALSE)","v":{"$error":"#N/A"}},{"$f":"HLOOKUP(Calc_Option4!AR$6,'Carbon Prices'!$D$9:$CP$15,3,FALSE)","v":{"$error":"#N/A"}},{"$f":"HLOOKUP(Calc_Option4!AS$6,'Carbon Prices'!$D$9:$CP$15,3,FALSE)","v":{"$error":"#N/A"}},{"$f":"HLOOKUP(Calc_Option4!AT$6,'Carbon Prices'!$D$9:$CP$15,3,FALSE)","v":{"$error":"#N/A"}},{"$f":"HLOOKUP(Calc_Option4!AU$6,'Carbon Prices'!$D$9:$CP$15,3,FALSE)","v":{"$error":"#N/A"}},{"$f":"HLOOKUP(Calc_Option4!AV$6,'Carbon Prices'!$D$9:$CP$15,3,FALSE)","v":{"$error":"#N/A"}},{"$f":"HLOOKUP(Calc_Option4!AW$6,'Carbon Prices'!$D$9:$CP$15,3,FALSE)","v":{"$error":"#N/A"}},{"$f":"HLOOKUP(Calc_Option4!AX$6,'Carbon Prices'!$D$9:$CP$15,3,FALSE)","v":{"$error":"#N/A"}},{"$f":"HLOOKUP(Calc_Option4!AY$6,'Carbon Prices'!$D$9:$CP$15,3,FALSE)","v":{"$error":"#N/A"}},{"$f":"HLOOKUP(Calc_Option4!AZ$6,'Carbon Prices'!$D$9:$CP$15,3,FALSE)","v":{"$error":"#N/A"}},{"$f":"HLOOKUP(Calc_Option4!BA$6,'Carbon Prices'!$D$9:$CP$15,3,FALSE)","v":{"$error":"#N/A"}},{"$f":"HLOOKUP(Calc_Option4!BB$6,'Carbon Prices'!$D$9:$CP$15,3,FALSE)","v":{"$error":"#N/A"}},{"$f":"HLOOKUP(Calc_Option4!BC$6,'Carbon Prices'!$D$9:$CP$15,3,FALSE)","v":{"$error":"#N/A"}},{"$f":"HLOOKUP(Calc_Option4!BD$6,'Carbon Prices'!$D$9:$CP$15,3,FALSE)","v":{"$error":"#N/A"}},{"$f":"HLOOKUP(Calc_Option4!BE$6,'Carbon Prices'!$D$9:$CP$15,3,FALSE)","v":{"$error":"#N/A"}},{"$f":"HLOOKUP(Calc_Option4!BF$6,'Carbon Prices'!$D$9:$CP$15,3,FALSE)","v":{"$error":"#N/A"}},{"$f":"HLOOKUP(Calc_Option4!BG$6,'Carbon Prices'!$D$9:$CP$15,3,FALSE)","v":{"$error":"#N/A"}},{"$f":"HLOOKUP(Calc_Option4!BH$6,'Carbon Prices'!$D$9:$CP$15,3,FALSE)","v":{"$error":"#N/A"}},{"$f":"HLOOKUP(Calc_Option4!BI$6,'Carbon Prices'!$D$9:$CP$15,3,FALSE)","v":{"$error":"#N/A"}},{"$f":"HLOOKUP(Calc_Option4!BJ$6,'Carbon Prices'!$D$9:$CP$15,3,FALSE)","v":{"$error":"#N/A"}},{"$f":"HLOOKUP(Calc_Option4!BK$6,'Carbon Prices'!$D$9:$CP$15,3,FALSE)","v":{"$error":"#N/A"}},{"$f":"HLOOKUP(Calc_Option4!BL$6,'Carbon Prices'!$D$9:$CP$15,3,FALSE)","v":{"$error":"#N/A"}},{"$f":"HLOOKUP(Calc_Option4!BM$6,'Carbon Prices'!$D$9:$CP$15,3,FALSE)","v":{"$error":"#N/A"}},{"$f":"HLOOKUP(Calc_Option4!BN$6,'Carbon Prices'!$D$9:$CP$15,3,FALSE)","v":{"$error":"#N/A"}},{"$f":"HLOOKUP(Calc_Option4!BO$6,'Carbon Prices'!$D$9:$CP$15,3,FALSE)","v":{"$error":"#N/A"}},{"$f":"HLOOKUP(Calc_Option4!BP$6,'Carbon Prices'!$D$9:$CP$15,3,FALSE)","v":{"$error":"#N/A"}},{"$f":"HLOOKUP(Calc_Option4!BQ$6,'Carbon Prices'!$D$9:$CP$15,3,FALSE)","v":{"$error":"#N/A"}},{"$f":"HLOOKUP(Calc_Option4!BR$6,'Carbon Prices'!$D$9:$CP$15,3,FALSE)","v":{"$error":"#N/A"}},{"$f":"HLOOKUP(Calc_Option4!BS$6,'Carbon Prices'!$D$9:$CP$15,3,FALSE)","v":{"$error":"#N/A"}},{"$f":"HLOOKUP(Calc_Option4!BT$6,'Carbon Prices'!$D$9:$CP$15,3,FALSE)","v":{"$error":"#N/A"}},{"$f":"HLOOKUP(Calc_Option4!BU$6,'Carbon Prices'!$D$9:$CP$15,3,FALSE)","v":{"$error":"#N/A"}},{"$f":"HLOOKUP(Calc_Option4!BV$6,'Carbon Prices'!$D$9:$CP$15,3,FALSE)","v":{"$error":"#N/A"}},{"$f":"HLOOKUP(Calc_Option4!BW$6,'Carbon Prices'!$D$9:$CP$15,3,FALSE)","v":{"$error":"#N/A"}},{"$f":"HLOOKUP(Calc_Option4!BX$6,'Carbon Prices'!$D$9:$CP$15,3,FALSE)","v":{"$error":"#N/A"}},{"$f":"HLOOKUP(Calc_Option4!BY$6,'Carbon Prices'!$D$9:$CP$15,3,FALSE)","v":{"$error":"#N/A"}},{"$f":"HLOOKUP(Calc_Option4!BZ$6,'Carbon Prices'!$D$9:$CP$15,3,FALSE)","v":{"$error":"#N/A"}},{"$f":"HLOOKUP(Calc_Option4!CA$6,'Carbon Prices'!$D$9:$CP$15,3,FALSE)","v":{"$error":"#N/A"}},{"$f":"HLOOKUP(Calc_Option4!CB$6,'Carbon Prices'!$D$9:$CP$15,3,FALSE)","v":{"$error":"#N/A"}},{"$f":"HLOOKUP(Calc_Option4!CC$6,'Carbon Prices'!$D$9:$CP$15,3,FALSE)","v":{"$error":"#N/A"}},{"$f":"HLOOKUP(Calc_Option4!CD$6,'Carbon Prices'!$D$9:$CP$15,3,FALSE)","v":{"$error":"#N/A"}},{"$f":"HLOOKUP(Calc_Option4!CE$6,'Carbon Prices'!$D$9:$CP$15,3,FALSE)","v":{"$error":"#N/A"}},{"$f":"HLOOKUP(Calc_Option4!CF$6,'Carbon Prices'!$D$9:$CP$15,3,FALSE)","v":{"$error":"#N/A"}},{"$f":"HLOOKUP(Calc_Option4!CG$6,'Carbon Prices'!$D$9:$CP$15,3,FALSE)","v":{"$error":"#N/A"}},{"$f":"HLOOKUP(Calc_Option4!CH$6,'Carbon Prices'!$D$9:$CP$15,3,FALSE)","v":{"$error":"#N/A"}},{"$f":"HLOOKUP(Calc_Option4!CI$6,'Carbon Prices'!$D$9:$CP$15,3,FALSE)","v":{"$error":"#N/A"}},{"$f":"HLOOKUP(Calc_Option4!CJ$6,'Carbon Prices'!$D$9:$CP$15,3,FALSE)","v":{"$error":"#N/A"}},{"$f":"HLOOKUP(Calc_Option4!CK$6,'Carbon Prices'!$D$9:$CP$15,3,FALSE)","v":{"$error":"#N/A"}},{"$f":"HLOOKUP(Calc_Option4!CL$6,'Carbon Prices'!$D$9:$CP$15,3,FALSE)","v":{"$error":"#N/A"}},{"$f":"HLOOKUP(Calc_Option4!CM$6,'Carbon Prices'!$D$9:$CP$15,3,FALSE)","v":{"$error":"#N/A"}},{"$f":"HLOOKUP(Calc_Option4!CN$6,'Carbon Prices'!$D$9:$CP$15,3,FALSE)","v":{"$error":"#N/A"}},{"$f":"HLOOKUP(Calc_Option4!CO$6,'Carbon Prices'!$D$9:$CP$15,3,FALSE)","v":{"$error":"#N/A"}},{"$f":"HLOOKUP(Calc_Option4!CP$6,'Carbon Prices'!$D$9:$CP$15,3,FALSE)","v":{"$error":"#N/A"}},{"$f":"HLOOKUP(Calc_Option4!CQ$6,'Carbon Prices'!$D$9:$CP$15,3,FALSE)","v":{"$error":"#N/A"}},{"$f":"HLOOKUP(Calc_Option4!CR$6,'Carbon Prices'!$D$9:$CP$15,3,FALSE)","v":{"$error":"#N/A"}},{"$f":"HLOOKUP(Calc_Option4!CS$6,'Carbon Prices'!$D$9:$CP$15,3,FALSE)","v":{"$error":"#N/A"}},{"$f":"HLOOKUP(Calc_Option4!CT$6,'Carbon Prices'!$D$9:$CP$15,3,FALSE)","v":{"$error":"#N/A"}},{"$f":"HLOOKUP(Calc_Option4!CU$6,'Carbon Prices'!$D$9:$CP$15,3,FALSE)","v":{"$error":"#N/A"}},{"$f":"HLOOKUP(Calc_Option4!CV$6,'Carbon Prices'!$D$9:$CP$15,3,FALSE)","v":{"$error":"#N/A"}},{"$f":"HLOOKUP(Calc_Option4!CW$6,'Carbon Prices'!$D$9:$CP$15,3,FALSE)","v":{"$error":"#N/A"}},{"$f":"HLOOKUP(Calc_Option4!CX$6,'Carbon Prices'!$D$9:$CP$15,3,FALSE)","v":{"$error":"#N/A"}},{"$f":"HLOOKUP(Calc_Option4!CY$6,'Carbon Prices'!$D$9:$CP$15,3,FALSE)","v":{"$error":"#N/A"}}]
[null,"Value non-elec","£000's",{"$f":"IF('Data Input - General'!$F$10=\"Yes\",HLOOKUP(Calc_Option4!D$6,'Carbon Prices'!$D$9:$CP$15,3,FALSE),HLOOKUP(Calc_Option4!D$6,'Carbon Prices'!$D$9:$CP$15,6,FALSE))","v":6.8248086829049139},{"$f":"IF('Data Input - General'!$F$10=\"Yes\",HLOOKUP(Calc_Option4!E$6,'Carbon Prices'!$D$9:$CP$15,3,FALSE),HLOOKUP(Calc_Option4!E$6,'Carbon Prices'!$D$9:$CP$15,6,FALSE))","v":7.0841514128553005},{"$f":"IF('Data Input - General'!$F$10=\"Yes\",HLOOKUP(Calc_Option4!F$6,'Carbon Prices'!$D$9:$CP$15,3,FALSE),HLOOKUP(Calc_Option4!F$6,'Carbon Prices'!$D$9:$CP$15,6,FALSE))","v":14.809366678834097},{"$f":"IF('Data Input - General'!$F$10=\"Yes\",HLOOKUP(Calc_Option4!G$6,'Carbon Prices'!$D$9:$CP$15,3,FALSE),HLOOKUP(Calc_Option4!G$6,'Carbon Prices'!$D$9:$CP$15,6,FALSE))","v":22.534581944812892},{"$f":"IF('Data Input - General'!$F$10=\"Yes\",HLOOKUP(Calc_Option4!H$6,'Carbon Prices'!$D$9:$CP$15,3,FALSE),HLOOKUP(Calc_Option4!H$6,'Carbon Prices'!$D$9:$CP$15,6,FALSE))","v":30.259797210791689},{"$f":"IF('Data Input - General'!$F$10=\"Yes\",HLOOKUP(Calc_Option4!I$6,'Carbon Prices'!$D$9:$CP$15,3,FALSE),HLOOKUP(Calc_Option4!I$6,'Carbon Prices'!$D$9:$CP$15,6,FALSE))","v":37.985012476770486},{"$f":"IF('Data Input - General'!$F$10=\"Yes\",HLOOKUP(Calc_Option4!J$6,'Carbon Prices'!$D$9:$CP$15,3,FALSE),HLOOKUP(Calc_Option4!J$6,'Carbon Prices'!$D$9:$CP$15,6,FALSE))","v":45.710227742749282},{"$f":"IF('Data Input - General'!$F$10=\"Yes\",HLOOKUP(Calc_Option4!K$6,'Carbon Prices'!$D$9:$CP$15,3,FALSE),HLOOKUP(Calc_Option4!K$6,'Carbon Prices'!$D$9:$CP$15,6,FALSE))","v":53.435443008728079},{"$f":"IF('Data Input - General'!$F$10=\"Yes\",HLOOKUP(Calc_Option4!L$6,'Carbon Prices'!$D$9:$CP$15,3,FALSE),HLOOKUP(Calc_Option4!L$6,'Carbon Prices'!$D$9:$CP$15,6,FALSE))","v":61.160658274706876},{"$f":"IF('Data Input - General'!$F$10=\"Yes\",HLOOKUP(Calc_Option4!M$6,'Carbon Prices'!$D$9:$CP$15,3,FALSE),HLOOKUP(Calc_Option4!M$6,'Carbon Prices'!$D$9:$CP$15,6,FALSE))","v":68.885873540685665},{"$f":"IF('Data Input - General'!$F$10=\"Yes\",HLOOKUP(Calc_Option4!N$6,'Carbon Prices'!$D$9:$CP$15,3,FALSE),HLOOKUP(Calc_Option4!N$6,'Carbon Prices'!$D$9:$CP$15,6,FALSE))","v":76.611088806664469},{"$f":"IF('Data Input - General'!$F$10=\"Yes\",HLOOKUP(Calc_Option4!O$6,'Carbon Prices'!$D$9:$CP$15,3,FALSE),HLOOKUP(Calc_Option4!O$6,'Carbon Prices'!$D$9:$CP$15,6,FALSE))","v":84.336304072643259},{"$f":"IF('Data Input - General'!$F$10=\"Yes\",HLOOKUP(Calc_Option4!P$6,'Carbon Prices'!$D$9:$CP$15,3,FALSE),HLOOKUP(Calc_Option4!P$6,'Carbon Prices'!$D$9:$CP$15,6,FALSE))","v":92.167532307960172},{"$f":"IF('Data Input - General'!$F$10=\"Yes\",HLOOKUP(Calc_Option4!Q$6,'Carbon Prices'!$D$9:$CP$15,3,FALSE),HLOOKUP(Calc_Option4!Q$6,'Carbon Prices'!$D$9:$CP$15,6,FALSE))","v":99.998760543277044},{"$f":"IF('Data Input - General'!$F$10=\"Yes\",HLOOKUP(Calc_Option4!R$6,'Carbon Prices'!$D$9:$CP$15,3,FALSE),HLOOKUP(Calc_Option4!R$6,'Carbon Prices'!$D$9:$CP$15,6,FALSE))","v":107.82998877859391},{"$f":"IF('Data Input - General'!$F$10=\"Yes\",HLOOKUP(Calc_Option4!S$6,'Carbon Prices'!$D$9:$CP$15,3,FALSE),HLOOKUP(Calc_Option4!S$6,'Carbon Prices'!$D$9:$CP$15,6,FALSE))","v":115.6612170139108},{"$f":"IF('Data Input - General'!$F$10=\"Yes\",HLOOKUP(Calc_Option4!T$6,'Carbon Prices'!$D$9:$CP$15,3,FALSE),HLOOKUP(Calc_Option4!T$6,'Carbon Prices'!$D$9:$CP$15,6,FALSE))","v":123.49244524922767},{"$f":"IF('Data Input - General'!$F$10=\"Yes\",HLOOKUP(Calc_Option4!U$6,'Carbon Prices'!$D$9:$CP$15,3,FALSE),HLOOKUP(Calc_Option4!U$6,'Carbon Prices'!$D$9:$CP$15,6,FALSE))","v":131.32367348454454},{"$f":"IF('Data Input - General'!$F$10=\"Yes\",HLOOKUP(Calc_Option4!V$6,'Carbon Prices'!$D$9:$CP$15,3,FALSE),HLOOKUP(Calc_Option4!V$6,'Carbon Prices'!$D$9:$CP$15,6,FALSE))","v":139.15490171986141},{"$f":"IF('Data Input - General'!$F$10=\"Yes\",HLOOKUP(Calc_Option4!W$6,'Carbon Prices'!$D$9:$CP$15,3,FALSE),HLOOKUP(Calc_Option4!W$6,'Carbon Prices'!$D$9:$CP$15,6,FALSE))","v":146.98612995517828},{"$f":"IF('Data Input - General'!$F$10=\"Yes\",HLOOKUP(Calc_Option4!X$6,'Carbon Prices'!$D$9:$CP$15,3,FALSE),HLOOKUP(Calc_Option4!X$6,'Carbon Prices'!$D$9:$CP$15,6,FALSE))","v":154.81735819049521},{"$f":"IF('Data Input - General'!$F$10=\"Yes\",HLOOKUP(Calc_Option4!Y$6,'Carbon Prices'!$D$9:$CP$15,3,FALSE),HLOOKUP(Calc_Option4!Y$6,'Carbon Prices'!$D$9:$CP$15,6,FALSE))","v":162.64858642581208},{"$f":"IF('Data Input - General'!$F$10=\"Yes\",HLOOKUP(Calc_Option4!Z$6,'Carbon Prices'!$D$9:$CP$15,3,FALSE),HLOOKUP(Calc_Option4!Z$6,'Carbon Prices'!$D$9:$CP$15,6,FALSE))","v":170.47981466112896},{"$f":"IF('Data Input - General'!$F$10=\"Yes\",HLOOKUP(Calc_Option4!AA$6,'Carbon Prices'!$D$9:$CP$15,3,FALSE),HLOOKUP(Calc_Option4!AA$6,'Carbon Prices'!$D$9:$CP$15,6,FALSE))","v":178.31104289644583},{"$f":"IF('Data Input - General'!$F$10=\"Yes\",HLOOKUP(Calc_Option4!AB$6,'Carbon Prices'!$D$9:$CP$15,3,FALSE),HLOOKUP(Calc_Option4!AB$6,'Carbon Prices'!$D$9:$CP$15,6,FALSE))","v":186.1422711317627},{"$f":"IF('Data Input - General'!$F$10=\"Yes\",HLOOKUP(Calc_Option4!AC$6,'Carbon Prices'!$D$9:$CP$15,3,FALSE),HLOOKUP(Calc_Option4!AC$6,'Carbon Prices'!$D$9:$CP$15,6,FALSE))","v":193.97349936707957},{"$f":"IF('Data Input - General'!$F$10=\"Yes\",HLOOKUP(Calc_Option4!AD$6,'Carbon Prices'!$D$9:$CP$15,3,FALSE),HLOOKUP(Calc_Option4!AD$6,'Carbon Prices'!$D$9:$CP$15,6,FALSE))","v":201.80472760239644},{"$f":"IF('Data Input - General'!$F$10=\"Yes\",HLOOKUP(Calc_Option4!AE$6,'Carbon Prices'!$D$9:$CP$15,3,FALSE),HLOOKUP(Calc_Option4!AE$6,'Carbon Prices'!$D$9:$CP$15,6,FALSE))","v":209.63595583771331},{"$f":"IF('Data Input - General'!$F$10=\"Yes\",HLOOKUP(Calc_Option4!AF$6,'Carbon Prices'!$D$9:$CP$15,3,FALSE),HLOOKUP(Calc_Option4!AF$6,'Carbon Prices'!$D$9:$CP$15,6,FALSE))","v":217.46718407303021},{"$f":"IF('Data Input - General'!$F$10=\"Yes\",HLOOKUP(Calc_Option4!AG$6,'Carbon Prices'!$D$9:$CP$15,3,FALSE),HLOOKUP(Calc_Option4!AG$6,'Carbon Prices'!$D$9:$CP$15,6,FALSE))","v":225.29841230834708},{"$f":"IF('Data Input - General'!$F$10=\"Yes\",HLOOKUP(Calc_Option4!AH$6,'Carbon Prices'!$D$9:$CP$15,3,FALSE),HLOOKUP(Calc_Option4!AH$6,'Carbon Prices'!$D$9:$CP$15,6,FALSE))","v":233.12964054366395},{"$f":"IF('Data Input - General'!$F$10=\"Yes\",HLOOKUP(Calc_Option4!AI$6,'Carbon Prices'!$D$9:$CP$15,3,FALSE),HLOOKUP(Calc_Option4!AI$6,'Carbon Prices'!$D$9:$CP$15,6,FALSE))","v":{"$error":"#N/A"}},{"$f":"IF('Data Input - General'!$F$10=\"Yes\",HLOOKUP(Calc_Option4!AJ$6,'Carbon Prices'!$D$9:$CP$15,3,FALSE),HLOOKUP(Calc_Option4!AJ$6,'Carbon Prices'!$D$9:$CP$15,6,FALSE))","v":{"$error":"#N/A"}},{"$f":"IF('Data Input - General'!$F$10=\"Yes\",HLOOKUP(Calc_Option4!AK$6,'Carbon Prices'!$D$9:$CP$15,3,FALSE),HLOOKUP(Calc_Option4!AK$6,'Carbon Prices'!$D$9:$CP$15,6,FALSE))","v":{"$error":"#N/A"}},{"$f":"IF('Data Input - General'!$F$10=\"Yes\",HLOOKUP(Calc_Option4!AL$6,'Carbon Prices'!$D$9:$CP$15,3,FALSE),HLOOKUP(Calc_Option4!AL$6,'Carbon Prices'!$D$9:$CP$15,6,FALSE))","v":{"$error":"#N/A"}},{"$f":"IF('Data Input - General'!$F$10=\"Yes\",HLOOKUP(Calc_Option4!AM$6,'Carbon Prices'!$D$9:$CP$15,3,FALSE),HLOOKUP(Calc_Option4!AM$6,'Carbon Prices'!$D$9:$CP$15,6,FALSE))","v":{"$error":"#N/A"}},{"$f":"IF('Data Input - General'!$F$10=\"Yes\",HLOOKUP(Calc_Option4!AN$6,'Carbon Prices'!$D$9:$CP$15,3,FALSE),HLOOKUP(Calc_Option4!AN$6,'Carbon Prices'!$D$9:$CP$15,6,FALSE))","v":{"$error":"#N/A"}},{"$f":"IF('Data Input - General'!$F$10=\"Yes\",HLOOKUP(Calc_Option4!AO$6,'Carbon Prices'!$D$9:$CP$15,3,FALSE),HLOOKUP(Calc_Option4!AO$6,'Carbon Prices'!$D$9:$CP$15,6,FALSE))","v":{"$error":"#N/A"}},{"$f":"IF('Data Input - General'!$F$10=\"Yes\",HLOOKUP(Calc_Option4!AP$6,'Carbon Prices'!$D$9:$CP$15,3,FALSE),HLOOKUP(Calc_Option4!AP$6,'Carbon Prices'!$D$9:$CP$15,6,FALSE))","v":{"$error":"#N/A"}},{"$f":"IF('Data Input - General'!$F$10=\"Yes\",HLOOKUP(Calc_Option4!AQ$6,'Carbon Prices'!$D$9:$CP$15,3,FALSE),HLOOKUP(Calc_Option4!AQ$6,'Carbon Prices'!$D$9:$CP$15,6,FALSE))","v":{"$error":"#N/A"}},{"$f":"IF('Data Input - General'!$F$10=\"Yes\",HLOOKUP(Calc_Option4!AR$6,'Carbon Prices'!$D$9:$CP$15,3,FALSE),HLOOKUP(Calc_Option4!AR$6,'Carbon Prices'!$D$9:$CP$15,6,FALSE))","v":{"$error":"#N/A"}},{"$f":"IF('Data Input - General'!$F$10=\"Yes\",HLOOKUP(Calc_Option4!AS$6,'Carbon Prices'!$D$9:$CP$15,3,FALSE),HLOOKUP(Calc_Option4!AS$6,'Carbon Prices'!$D$9:$CP$15,6,FALSE))","v":{"$error":"#N/A"}},{"$f":"IF('Data Input - General'!$F$10=\"Yes\",HLOOKUP(Calc_Option4!AT$6,'Carbon Prices'!$D$9:$CP$15,3,FALSE),HLOOKUP(Calc_Option4!AT$6,'Carbon Prices'!$D$9:$CP$15,6,FALSE))","v":{"$error":"#N/A"}},{"$f":"IF('Data Input - General'!$F$10=\"Yes\",HLOOKUP(Calc_Option4!AU$6,'Carbon Prices'!$D$9:$CP$15,3,FALSE),HLOOKUP(Calc_Option4!AU$6,'Carbon Prices'!$D$9:$CP$15,6,FALSE))","v":{"$error":"#N/A"}},{"$f":"IF('Data Input - General'!$F$10=\"Yes\",HLOOKUP(Calc_Option4!AV$6,'Carbon Prices'!$D$9:$CP$15,3,FALSE),HLOOKUP(Calc_Option4!AV$6,'Carbon Prices'!$D$9:$CP$15,6,FALSE))","v":{"$error":"#N/A"}},{"$f":"IF('Data Input - General'!$F$10=\"Yes\",HLOOKUP(Calc_Option4!AW$6,'Carbon Prices'!$D$9:$CP$15,3,FALSE),HLOOKUP(Calc_Option4!AW$6,'Carbon Prices'!$D$9:$CP$15,6,FALSE))","v":{"$error":"#N/A"}},{"$f":"IF('Data Input - General'!$F$10=\"Yes\",HLOOKUP(Calc_Option4!AX$6,'Carbon Prices'!$D$9:$CP$15,3,FALSE),HLOOKUP(Calc_Option4!AX$6,'Carbon Prices'!$D$9:$CP$15,6,FALSE))","v":{"$error":"#N/A"}},{"$f":"IF('Data Input - General'!$F$10=\"Yes\",HLOOKUP(Calc_Option4!AY$6,'Carbon Prices'!$D$9:$CP$15,3,FALSE),HLOOKUP(Calc_Option4!AY$6,'Carbon Prices'!$D$9:$CP$15,6,FALSE))","v":{"$error":"#N/A"}},{"$f":"IF('Data Input - General'!$F$10=\"Yes\",HLOOKUP(Calc_Option4!AZ$6,'Carbon Prices'!$D$9:$CP$15,3,FALSE),HLOOKUP(Calc_Option4!AZ$6,'Carbon Prices'!$D$9:$CP$15,6,FALSE))","v":{"$error":"#N/A"}},{"$f":"IF('Data Input - General'!$F$10=\"Yes\",HLOOKUP(Calc_Option4!BA$6,'Carbon Prices'!$D$9:$CP$15,3,FALSE),HLOOKUP(Calc_Option4!BA$6,'Carbon Prices'!$D$9:$CP$15,6,FALSE))","v":{"$error":"#N/A"}},{"$f":"IF('Data Input - General'!$F$10=\"Yes\",HLOOKUP(Calc_Option4!BB$6,'Carbon Prices'!$D$9:$CP$15,3,FALSE),HLOOKUP(Calc_Option4!BB$6,'Carbon Prices'!$D$9:$CP$15,6,FALSE))","v":{"$error":"#N/A"}},{"$f":"IF('Data Input - General'!$F$10=\"Yes\",HLOOKUP(Calc_Option4!BC$6,'Carbon Prices'!$D$9:$CP$15,3,FALSE),HLOOKUP(Calc_Option4!BC$6,'Carbon Prices'!$D$9:$CP$15,6,FALSE))","v":{"$error":"#N/A"}},{"$f":"IF('Data Input - General'!$F$10=\"Yes\",HLOOKUP(Calc_Option4!BD$6,'Carbon Prices'!$D$9:$CP$15,3,FALSE),HLOOKUP(Calc_Option4!BD$6,'Carbon Prices'!$D$9:$CP$15,6,FALSE))","v":{"$error":"#N/A"}},{"$f":"IF('Data Input - General'!$F$10=\"Yes\",HLOOKUP(Calc_Option4!BE$6,'Carbon Prices'!$D$9:$CP$15,3,FALSE),HLOOKUP(Calc_Option4!BE$6,'Carbon Prices'!$D$9:$CP$15,6,FALSE))","v":{"$error":"#N/A"}},{"$f":"IF('Data Input - General'!$F$10=\"Yes\",HLOOKUP(Calc_Option4!BF$6,'Carbon Prices'!$D$9:$CP$15,3,FALSE),HLOOKUP(Calc_Option4!BF$6,'Carbon Prices'!$D$9:$CP$15,6,FALSE))","v":{"$error":"#N/A"}},{"$f":"IF('Data Input - General'!$F$10=\"Yes\",HLOOKUP(Calc_Option4!BG$6,'Carbon Prices'!$D$9:$CP$15,3,FALSE),HLOOKUP(Calc_Option4!BG$6,'Carbon Prices'!$D$9:$CP$15,6,FALSE))","v":{"$error":"#N/A"}},{"$f":"IF('Data Input - General'!$F$10=\"Yes\",HLOOKUP(Calc_Option4!BH$6,'Carbon Prices'!$D$9:$CP$15,3,FALSE),HLOOKUP(Calc_Option4!BH$6,'Carbon Prices'!$D$9:$CP$15,6,FALSE))","v":{"$error":"#N/A"}},{"$f":"IF('Data Input - General'!$F$10=\"Yes\",HLOOKUP(Calc_Option4!BI$6,'Carbon Prices'!$D$9:$CP$15,3,FALSE),HLOOKUP(Calc_Option4!BI$6,'Carbon Prices'!$D$9:$CP$15,6,FALSE))","v":{"$error":"#N/A"}},{"$f":"IF('Data Input - General'!$F$10=\"Yes\",HLOOKUP(Calc_Option4!BJ$6,'Carbon Prices'!$D$9:$CP$15,3,FALSE),HLOOKUP(Calc_Option4!BJ$6,'Carbon Prices'!$D$9:$CP$15,6,FALSE))","v":{"$error":"#N/A"}},{"$f":"IF('Data Input - General'!$F$10=\"Yes\",HLOOKUP(Calc_Option4!BK$6,'Carbon Prices'!$D$9:$CP$15,3,FALSE),HLOOKUP(Calc_Option4!BK$6,'Carbon Prices'!$D$9:$CP$15,6,FALSE))","v":{"$error":"#N/A"}},{"$f":"IF('Data Input - General'!$F$10=\"Yes\",HLOOKUP(Calc_Option4!BL$6,'Carbon Prices'!$D$9:$CP$15,3,FALSE),HLOOKUP(Calc_Option4!BL$6,'Carbon Prices'!$D$9:$CP$15,6,FALSE))","v":{"$error":"#N/A"}},{"$f":"IF('Data Input - General'!$F$10=\"Yes\",HLOOKUP(Calc_Option4!BM$6,'Carbon Prices'!$D$9:$CP$15,3,FALSE),HLOOKUP(Calc_Option4!BM$6,'Carbon Prices'!$D$9:$CP$15,6,FALSE))","v":{"$error":"#N/A"}},{"$f":"IF('Data Input - General'!$F$10=\"Yes\",HLOOKUP(Calc_Option4!BN$6,'Carbon Prices'!$D$9:$CP$15,3,FALSE),HLOOKUP(Calc_Option4!BN$6,'Carbon Prices'!$D$9:$CP$15,6,FALSE))","v":{"$error":"#N/A"}},{"$f":"IF('Data Input - General'!$F$10=\"Yes\",HLOOKUP(Calc_Option4!BO$6,'Carbon Prices'!$D$9:$CP$15,3,FALSE),HLOOKUP(Calc_Option4!BO$6,'Carbon Prices'!$D$9:$CP$15,6,FALSE))","v":{"$error":"#N/A"}},{"$f":"IF('Data Input - General'!$F$10=\"Yes\",HLOOKUP(Calc_Option4!BP$6,'Carbon Prices'!$D$9:$CP$15,3,FALSE),HLOOKUP(Calc_Option4!BP$6,'Carbon Prices'!$D$9:$CP$15,6,FALSE))","v":{"$error":"#N/A"}},{"$f":"IF('Data Input - General'!$F$10=\"Yes\",HLOOKUP(Calc_Option4!BQ$6,'Carbon Prices'!$D$9:$CP$15,3,FALSE),HLOOKUP(Calc_Option4!BQ$6,'Carbon Prices'!$D$9:$CP$15,6,FALSE))","v":{"$error":"#N/A"}},{"$f":"IF('Data Input - General'!$F$10=\"Yes\",HLOOKUP(Calc_Option4!BR$6,'Carbon Prices'!$D$9:$CP$15,3,FALSE),HLOOKUP(Calc_Option4!BR$6,'Carbon Prices'!$D$9:$CP$15,6,FALSE))","v":{"$error":"#N/A"}},{"$f":"IF('Data Input - General'!$F$10=\"Yes\",HLOOKUP(Calc_Option4!BS$6,'Carbon Prices'!$D$9:$CP$15,3,FALSE),HLOOKUP(Calc_Option4!BS$6,'Carbon Prices'!$D$9:$CP$15,6,FALSE))","v":{"$error":"#N/A"}},{"$f":"IF('Data Input - General'!$F$10=\"Yes\",HLOOKUP(Calc_Option4!BT$6,'Carbon Prices'!$D$9:$CP$15,3,FALSE),HLOOKUP(Calc_Option4!BT$6,'Carbon Prices'!$D$9:$CP$15,6,FALSE))","v":{"$error":"#N/A"}},{"$f":"IF('Data Input - General'!$F$10=\"Yes\",HLOOKUP(Calc_Option4!BU$6,'Carbon Prices'!$D$9:$CP$15,3,FALSE),HLOOKUP(Calc_Option4!BU$6,'Carbon Prices'!$D$9:$CP$15,6,FALSE))","v":{"$error":"#N/A"}},{"$f":"IF('Data Input - General'!$F$10=\"Yes\",HLOOKUP(Calc_Option4!BV$6,'Carbon Prices'!$D$9:$CP$15,3,FALSE),HLOOKUP(Calc_Option4!BV$6,'Carbon Prices'!$D$9:$CP$15,6,FALSE))","v":{"$error":"#N/A"}},{"$f":"IF('Data Input - General'!$F$10=\"Yes\",HLOOKUP(Calc_Option4!BW$6,'Carbon Prices'!$D$9:$CP$15,3,FALSE),HLOOKUP(Calc_Option4!BW$6,'Carbon Prices'!$D$9:$CP$15,6,FALSE))","v":{"$error":"#N/A"}},{"$f":"IF('Data Input - General'!$F$10=\"Yes\",HLOOKUP(Calc_Option4!BX$6,'Carbon Prices'!$D$9:$CP$15,3,FALSE),HLOOKUP(Calc_Option4!BX$6,'Carbon Prices'!$D$9:$CP$15,6,FALSE))","v":{"$error":"#N/A"}},{"$f":"IF('Data Input - General'!$F$10=\"Yes\",HLOOKUP(Calc_Option4!BY$6,'Carbon Prices'!$D$9:$CP$15,3,FALSE),HLOOKUP(Calc_Option4!BY$6,'Carbon Prices'!$D$9:$CP$15,6,FALSE))","v":{"$error":"#N/A"}},{"$f":"IF('Data Input - General'!$F$10=\"Yes\",HLOOKUP(Calc_Option4!BZ$6,'Carbon Prices'!$D$9:$CP$15,3,FALSE),HLOOKUP(Calc_Option4!BZ$6,'Carbon Prices'!$D$9:$CP$15,6,FALSE))","v":{"$error":"#N/A"}},{"$f":"IF('Data Input - General'!$F$10=\"Yes\",HLOOKUP(Calc_Option4!CA$6,'Carbon Prices'!$D$9:$CP$15,3,FALSE),HLOOKUP(Calc_Option4!CA$6,'Carbon Prices'!$D$9:$CP$15,6,FALSE))","v":{"$error":"#N/A"}},{"$f":"IF('Data Input - General'!$F$10=\"Yes\",HLOOKUP(Calc_Option4!CB$6,'Carbon Prices'!$D$9:$CP$15,3,FALSE),HLOOKUP(Calc_Option4!CB$6,'Carbon Prices'!$D$9:$CP$15,6,FALSE))","v":{"$error":"#N/A"}},{"$f":"IF('Data Input - General'!$F$10=\"Yes\",HLOOKUP(Calc_Option4!CC$6,'Carbon Prices'!$D$9:$CP$15,3,FALSE),HLOOKUP(Calc_Option4!CC$6,'Carbon Prices'!$D$9:$CP$15,6,FALSE))","v":{"$error":"#N/A"}},{"$f":"IF('Data Input - General'!$F$10=\"Yes\",HLOOKUP(Calc_Option4!CD$6,'Carbon Prices'!$D$9:$CP$15,3,FALSE),HLOOKUP(Calc_Option4!CD$6,'Carbon Prices'!$D$9:$CP$15,6,FALSE))","v":{"$error":"#N/A"}},{"$f":"IF('Data Input - General'!$F$10=\"Yes\",HLOOKUP(Calc_Option4!CE$6,'Carbon Prices'!$D$9:$CP$15,3,FALSE),HLOOKUP(Calc_Option4!CE$6,'Carbon Prices'!$D$9:$CP$15,6,FALSE))","v":{"$error":"#N/A"}},{"$f":"IF('Data Input - General'!$F$10=\"Yes\",HLOOKUP(Calc_Option4!CF$6,'Carbon Prices'!$D$9:$CP$15,3,FALSE),HLOOKUP(Calc_Option4!CF$6,'Carbon Prices'!$D$9:$CP$15,6,FALSE))","v":{"$error":"#N/A"}},{"$f":"IF('Data Input - General'!$F$10=\"Yes\",HLOOKUP(Calc_Option4!CG$6,'Carbon Prices'!$D$9:$CP$15,3,FALSE),HLOOKUP(Calc_Option4!CG$6,'Carbon Prices'!$D$9:$CP$15,6,FALSE))","v":{"$error":"#N/A"}},{"$f":"IF('Data Input - General'!$F$10=\"Yes\",HLOOKUP(Calc_Option4!CH$6,'Carbon Prices'!$D$9:$CP$15,3,FALSE),HLOOKUP(Calc_Option4!CH$6,'Carbon Prices'!$D$9:$CP$15,6,FALSE))","v":{"$error":"#N/A"}},{"$f":"IF('Data Input - General'!$F$10=\"Yes\",HLOOKUP(Calc_Option4!CI$6,'Carbon Prices'!$D$9:$CP$15,3,FALSE),HLOOKUP(Calc_Option4!CI$6,'Carbon Prices'!$D$9:$CP$15,6,FALSE))","v":{"$error":"#N/A"}},{"$f":"IF('Data Input - General'!$F$10=\"Yes\",HLOOKUP(Calc_Option4!CJ$6,'Carbon Prices'!$D$9:$CP$15,3,FALSE),HLOOKUP(Calc_Option4!CJ$6,'Carbon Prices'!$D$9:$CP$15,6,FALSE))","v":{"$error":"#N/A"}},{"$f":"IF('Data Input - General'!$F$10=\"Yes\",HLOOKUP(Calc_Option4!CK$6,'Carbon Prices'!$D$9:$CP$15,3,FALSE),HLOOKUP(Calc_Option4!CK$6,'Carbon Prices'!$D$9:$CP$15,6,FALSE))","v":{"$error":"#N/A"}},{"$f":"IF('Data Input - General'!$F$10=\"Yes\",HLOOKUP(Calc_Option4!CL$6,'Carbon Prices'!$D$9:$CP$15,3,FALSE),HLOOKUP(Calc_Option4!CL$6,'Carbon Prices'!$D$9:$CP$15,6,FALSE))","v":{"$error":"#N/A"}},{"$f":"IF('Data Input - General'!$F$10=\"Yes\",HLOOKUP(Calc_Option4!CM$6,'Carbon Prices'!$D$9:$CP$15,3,FALSE),HLOOKUP(Calc_Option4!CM$6,'Carbon Prices'!$D$9:$CP$15,6,FALSE))","v":{"$error":"#N/A"}},{"$f":"IF('Data Input - General'!$F$10=\"Yes\",HLOOKUP(Calc_Option4!CN$6,'Carbon Prices'!$D$9:$CP$15,3,FALSE),HLOOKUP(Calc_Option4!CN$6,'Carbon Prices'!$D$9:$CP$15,6,FALSE))","v":{"$error":"#N/A"}},{"$f":"IF('Data Input - General'!$F$10=\"Yes\",HLOOKUP(Calc_Option4!CO$6,'Carbon Prices'!$D$9:$CP$15,3,FALSE),HLOOKUP(Calc_Option4!CO$6,'Carbon Prices'!$D$9:$CP$15,6,FALSE))","v":{"$error":"#N/A"}},{"$f":"IF('Data Input - General'!$F$10=\"Yes\",HLOOKUP(Calc_Option4!CP$6,'Carbon Prices'!$D$9:$CP$15,3,FALSE),HLOOKUP(Calc_Option4!CP$6,'Carbon Prices'!$D$9:$CP$15,6,FALSE))","v":{"$error":"#N/A"}},{"$f":"IF('Data Input - General'!$F$10=\"Yes\",HLOOKUP(Calc_Option4!CQ$6,'Carbon Prices'!$D$9:$CP$15,3,FALSE),HLOOKUP(Calc_Option4!CQ$6,'Carbon Prices'!$D$9:$CP$15,6,FALSE))","v":{"$error":"#N/A"}},{"$f":"IF('Data Input - General'!$F$10=\"Yes\",HLOOKUP(Calc_Option4!CR$6,'Carbon Prices'!$D$9:$CP$15,3,FALSE),HLOOKUP(Calc_Option4!CR$6,'Carbon Prices'!$D$9:$CP$15,6,FALSE))","v":{"$error":"#N/A"}},{"$f":"IF('Data Input - General'!$F$10=\"Yes\",HLOOKUP(Calc_Option4!CS$6,'Carbon Prices'!$D$9:$CP$15,3,FALSE),HLOOKUP(Calc_Option4!CS$6,'Carbon Prices'!$D$9:$CP$15,6,FALSE))","v":{"$error":"#N/A"}},{"$f":"IF('Data Input - General'!$F$10=\"Yes\",HLOOKUP(Calc_Option4!CT$6,'Carbon Prices'!$D$9:$CP$15,3,FALSE),HLOOKUP(Calc_Option4!CT$6,'Carbon Prices'!$D$9:$CP$15,6,FALSE))","v":{"$error":"#N/A"}},{"$f":"IF('Data Input - General'!$F$10=\"Yes\",HLOOKUP(Calc_Option4!CU$6,'Carbon Prices'!$D$9:$CP$15,3,FALSE),HLOOKUP(Calc_Option4!CU$6,'Carbon Prices'!$D$9:$CP$15,6,FALSE))","v":{"$error":"#N/A"}},{"$f":"IF('Data Input - General'!$F$10=\"Yes\",HLOOKUP(Calc_Option4!CV$6,'Carbon Prices'!$D$9:$CP$15,3,FALSE),HLOOKUP(Calc_Option4!CV$6,'Carbon Prices'!$D$9:$CP$15,6,FALSE))","v":{"$error":"#N/A"}},{"$f":"IF('Data Input - General'!$F$10=\"Yes\",HLOOKUP(Calc_Option4!CW$6,'Carbon Prices'!$D$9:$CP$15,3,FALSE),HLOOKUP(Calc_Option4!CW$6,'Carbon Prices'!$D$9:$CP$15,6,FALSE))","v":{"$error":"#N/A"}},{"$f":"IF('Data Input - General'!$F$10=\"Yes\",HLOOKUP(Calc_Option4!CX$6,'Carbon Prices'!$D$9:$CP$15,3,FALSE),HLOOKUP(Calc_Option4!CX$6,'Carbon Prices'!$D$9:$CP$15,6,FALSE))","v":{"$error":"#N/A"}},{"$f":"IF('Data Input - General'!$F$10=\"Yes\",HLOOKUP(Calc_Option4!CY$6,'Carbon Prices'!$D$9:$CP$15,3,FALSE),HLOOKUP(Calc_Option4!CY$6,'Carbon Prices'!$D$9:$CP$15,6,FALSE))","v":{"$error":"#N/A"}}]
[null,"Total value elec","£000's",{"$f":"IFERROR(D80*D82,0)","v":0},{"$f":"IFERROR(E80*E82,0)","v":0},{"$f":"IFERROR(F80*F82,0)","v":0},0,0,0,0,0,0,0,0,0,0,0,0,0,0,0,0,0,0,0,0,0,0,0,0,0,0,0,0,0,0,0,0,0,0,0,0,0,0,0,0,0,0,0,0,0,0,0,0,0,0,0,0,0,0,0,0,0,0,0,0,0,0,0,{"$f":"IFERROR(BR80*BR82,0)","v":0},0,0,0,0,0,0,0,0,0,0,0,0,0,0,0,0,0,0,0,0,0,0,0,0,0,0,0,0,0,0,0,0,0]
[null,"Total value non-elec","£000's",{"$f":"IFERROR(D81*D83,0)","v":1.8535861301779154E-2},{"$f":"IFERROR(E81*E83,0)","v":0},0,0,0,0,0,0,0,0,0,0,0,0,0,0,0,0,0,0,0,0,0,0,0,0,0,0,0,0,0,0,0,0,0,0,0,0,0,0,0,0,0,0,0,0,0,0,0,0,0,0,0,0,0,0,0,0,0,0,0,0,0,0,0,0,0,0,0,0,0,0,0,0,0,0,0,0,0,0,0,0,0,0,0,0,0,0,0,0,0,0,0,0,0,0,0,0,0,0]
[]
[null,"Discounted total GHG","£000's",{"$f":"SUM(D84:D85,D77)*D$7/1000","v":1.8535861301779153E-5},{"$f":"SUM(E84:E85,E77)*E$7/1000","v":0},0,0,0,0,0,0,0,0,0,0,0,0,0,0,0,0,0,0,0,0,0,0,0,0,0,0,0,0,0,0,0,0,0,0,0,0,0,0,0,0,0,0,0,0,0,0,0,0,0,0,0,0,0,0,0,0,0,0,0,0,0,0,0,{"$f":"SUM(BQ84:BQ85,BQ77)*BQ$7/1000","v":0},0,0,0,0,0,0,0,0,0,0,0,0,0,0,0,0,0,0,0,0,0,0,0,0,0,0,0,0,0,0,0,0,0,0]
[]
[null,"SENSITIVITY ANALYSIS"]
[]
[null,"Low values"]
[]
[null,"Energy Consumption"]
[null,"Electricity","£000's",{"$f":"IFERROR('Data Input - Option 4'!H84*INDEX('Energy Prices'!$F$19:$CR$24,MATCH($B94,'Energy Prices'!$C$19:$C$24,0),MATCH(Calc_Option4!D$6,'Energy Prices'!$F$11:$CR$11,0))/100000,\"\")","v":0},{"$f":"IFERROR('Data Input - Option 4'!I84*INDEX('Energy Prices'!$F$19:$CR$24,MATCH($B94,'Energy Prices'!$C$19:$C$24,0),MATCH(Calc_Option4!E$6,'Energy Prices'!$F$11:$CR$11,0))/100000,\"\")","v":0},{"$f":"IFERROR('Data Input - Option 4'!J84*INDEX('Energy Prices'!$F$19:$CR$24,MATCH($B94,'Energy Prices'!$C$19:$C$24,0),MATCH(Calc_Option4!F$6,'Energy Prices'!$F$11:$CR$11,0))/100000,\"\")","v":0},{"$f":"IFERROR('Data Input - Option 4'!K84*INDEX('Energy Prices'!$F$19:$CR$24,MATCH($B94,'Energy Prices'!$C$19:$C$24,0),MATCH(Calc_Option4!G$6,'Energy Prices'!$F$11:$CR$11,0))/100000,\"\")","v":0},{"$f":"IFERROR('Data Input - Option 4'!L84*INDEX('Energy Prices'!$F$19:$CR$24,MATCH($B94,'Energy Prices'!$C$19:$C$24,0),MATCH(Calc_Option4!H$6,'Energy Prices'!$F$11:$CR$11,0))/100000,\"\")","v":0},{"$f":"IFERROR('Data Input - Option 4'!M84*INDEX('Energy Prices'!$F$19:$CR$24,MATCH($B94,'Energy Prices'!$C$19:$C$24,0),MATCH(Calc_Option4!I$6,'Energy Prices'!$F$11:$CR$11,0))/100000,\"\")","v":0},{"$f":"IFERROR('Data Input - Option 4'!N84*INDEX('Energy Prices'!$F$19:$CR$24,MATCH($B94,'Energy Prices'!$C$19:$C$24,0),MATCH(Calc_Option4!J$6,'Energy Prices'!$F$11:$CR$11,0))/100000,\"\")","v":0},{"$f":"IFERROR('Data Input - Option 4'!O84*INDEX('Energy Prices'!$F$19:$CR$24,MATCH($B94,'Energy Prices'!$C$19:$C$24,0),MATCH(Calc_Option4!K$6,'Energy Prices'!$F$11:$CR$11,0))/100000,\"\")","v":0},{"$f":"IFERROR('Data Input - Option 4'!P84*INDEX('Energy Prices'!$F$19:$CR$24,MATCH($B94,'Energy Prices'!$C$19:$C$24,0),MATCH(Calc_Option4!L$6,'Energy Prices'!$F$11:$CR$11,0))/100000,\"\")","v":0},{"$f":"IFERROR('Data Input - Option 4'!Q84*INDEX('Energy Prices'!$F$19:$CR$24,MATCH($B94,'Energy Prices'!$C$19:$C$24,0),MATCH(Calc_Option4!M$6,'Energy Prices'!$F$11:$CR$11,0))/100000,\"\")","v":0},{"$f":"IFERROR('Data Input - Option 4'!R84*INDEX('Energy Prices'!$F$19:$CR$24,MATCH($B94,'Energy Prices'!$C$19:$C$24,0),MATCH(Calc_Option4!N$6,'Energy Prices'!$F$11:$CR$11,0))/100000,\"\")","v":0},{"$f":"IFERROR('Data Input - Option 4'!S84*INDEX('Energy Prices'!$F$19:$CR$24,MATCH($B94,'Energy Prices'!$C$19:$C$24,0),MATCH(Calc_Option4!O$6,'Energy Prices'!$F$11:$CR$11,0))/100000,\"\")","v":0},{"$f":"IFERROR('Data Input - Option 4'!T84*INDEX('Energy Prices'!$F$19:$CR$24,MATCH($B94,'Energy Prices'!$C$19:$C$24,0),MATCH(Calc_Option4!P$6,'Energy Prices'!$F$11:$CR$11,0))/100000,\"\")","v":0},{"$f":"IFERROR('Data Input - Option 4'!U84*INDEX('Energy Prices'!$F$19:$CR$24,MATCH($B94,'Energy Prices'!$C$19:$C$24,0),MATCH(Calc_Option4!Q$6,'Energy Prices'!$F$11:$CR$11,0))/100000,\"\")","v":0},{"$f":"IFERROR('Data Input - Option 4'!V84*INDEX('Energy Prices'!$F$19:$CR$24,MATCH($B94,'Energy Prices'!$C$19:$C$24,0),MATCH(Calc_Option4!R$6,'Energy Prices'!$F$11:$CR$11,0))/100000,\"\")","v":0},{"$f":"IFERROR('Data Input - Option 4'!W84*INDEX('Energy Prices'!$F$19:$CR$24,MATCH($B94,'Energy Prices'!$C$19:$C$24,0),MATCH(Calc_Option4!S$6,'Energy Prices'!$F$11:$CR$11,0))/100000,\"\")","v":0},{"$f":"IFERROR('Data Input - Option 4'!X84*INDEX('Energy Prices'!$F$19:$CR$24,MATCH($B94,'Energy Prices'!$C$19:$C$24,0),MATCH(Calc_Option4!T$6,'Energy Prices'!$F$11:$CR$11,0))/100000,\"\")","v":0},{"$f":"IFERROR('Data Input - Option 4'!Y84*INDEX('Energy Prices'!$F$19:$CR$24,MATCH($B94,'Energy Prices'!$C$19:$C$24,0),MATCH(Calc_Option4!U$6,'Energy Prices'!$F$11:$CR$11,0))/100000,\"\")","v":0},{"$f":"IFERROR('Data Input - Option 4'!Z84*INDEX('Energy Prices'!$F$19:$CR$24,MATCH($B94,'Energy Prices'!$C$19:$C$24,0),MATCH(Calc_Option4!V$6,'Energy Prices'!$F$11:$CR$11,0))/100000,\"\")","v":0},{"$f":"IFERROR('Data Input - Option 4'!AA84*INDEX('Energy Prices'!$F$19:$CR$24,MATCH($B94,'Energy Prices'!$C$19:$C$24,0),MATCH(Calc_Option4!W$6,'Energy Prices'!$F$11:$CR$11,0))/100000,\"\")","v":0},{"$f":"IFERROR('Data Input - Option 4'!AB84*INDEX('Energy Prices'!$F$19:$CR$24,MATCH($B94,'Energy Prices'!$C$19:$C$24,0),MATCH(Calc_Option4!X$6,'Energy Prices'!$F$11:$CR$11,0))/100000,\"\")","v":0},{"$f":"IFERROR('Data Input - Option 4'!AC84*INDEX('Energy Prices'!$F$19:$CR$24,MATCH($B94,'Energy Prices'!$C$19:$C$24,0),MATCH(Calc_Option4!Y$6,'Energy Prices'!$F$11:$CR$11,0))/100000,\"\")","v":0},{"$f":"IFERROR('Data Input - Option 4'!AD84*INDEX('Energy Prices'!$F$19:$CR$24,MATCH($B94,'Energy Prices'!$C$19:$C$24,0),MATCH(Calc_Option4!Z$6,'Energy Prices'!$F$11:$CR$11,0))/100000,\"\")","v":0},{"$f":"IFERROR('Data Input - Option 4'!AE84*INDEX('Energy Prices'!$F$19:$CR$24,MATCH($B94,'Energy Prices'!$C$19:$C$24,0),MATCH(Calc_Option4!AA$6,'Energy Prices'!$F$11:$CR$11,0))/100000,\"\")","v":0},{"$f":"IFERROR('Data Input - Option 4'!AF84*INDEX('Energy Prices'!$F$19:$CR$24,MATCH($B94,'Energy Prices'!$C$19:$C$24,0),MATCH(Calc_Option4!AB$6,'Energy Prices'!$F$11:$CR$11,0))/100000,\"\")","v":0},{"$f":"IFERROR('Data Input - Option 4'!AG84*INDEX('Energy Prices'!$F$19:$CR$24,MATCH($B94,'Energy Prices'!$C$19:$C$24,0),MATCH(Calc_Option4!AC$6,'Energy Prices'!$F$11:$CR$11,0))/100000,\"\")","v":0},{"$f":"IFERROR('Data Input - Option 4'!AH84*INDEX('Energy Prices'!$F$19:$CR$24,MATCH($B94,'Energy Prices'!$C$19:$C$24,0),MATCH(Calc_Option4!AD$6,'Energy Prices'!$F$11:$CR$11,0))/100000,\"\")","v":0},{"$f":"IFERROR('Data Input - Option 4'!AI84*INDEX('Energy Prices'!$F$19:$CR$24,MATCH($B94,'Energy Prices'!$C$19:$C$24,0),MATCH(Calc_Option4!AE$6,'Energy Prices'!$F$11:$CR$11,0))/100000,\"\")","v":0},{"$f":"IFERROR('Data Input - Option 4'!AJ84*INDEX('Energy Prices'!$F$19:$CR$24,MATCH($B94,'Energy Prices'!$C$19:$C$24,0),MATCH(Calc_Option4!AF$6,'Energy Prices'!$F$11:$CR$11,0))/100000,\"\")","v":0},{"$f":"IFERROR('Data Input - Option 4'!AK84*INDEX('Energy Prices'!$F$19:$CR$24,MATCH($B94,'Energy Prices'!$C$19:$C$24,0),MATCH(Calc_Option4!AG$6,'Energy Prices'!$F$11:$CR$11,0))/100000,\"\")","v":0},{"$f":"IFERROR('Data Input - Option 4'!AL84*INDEX('Energy Prices'!$F$19:$CR$24,MATCH($B94,'Energy Prices'!$C$19:$C$24,0),MATCH(Calc_Option4!AH$6,'Energy Prices'!$F$11:$CR$11,0))/100000,\"\")","v":0},{"$f":"IFERROR('Data Input - Option 4'!AM84*INDEX('Energy Prices'!$F$19:$CR$24,MATCH($B94,'Energy Prices'!$C$19:$C$24,0),MATCH(Calc_Option4!AI$6,'Energy Prices'!$F$11:$CR$11,0))/100000,\"\")","v":""},{"$f":"IFERROR('Data Input - Option 4'!AN84*INDEX('Energy Prices'!$F$19:$CR$24,MATCH($B94,'Energy Prices'!$C$19:$C$24,0),MATCH(Calc_Option4!AJ$6,'Energy Prices'!$F$11:$CR$11,0))/100000,\"\")","v":""},{"$f":"IFERROR('Data Input - Option 4'!AO84*INDEX('Energy Prices'!$F$19:$CR$24,MATCH($B94,'Energy Prices'!$C$19:$C$24,0),MATCH(Calc_Option4!AK$6,'Energy Prices'!$F$11:$CR$11,0))/100000,\"\")","v":""},{"$f":"IFERROR('Data Input - Option 4'!AP84*INDEX('Energy Prices'!$F$19:$CR$24,MATCH($B94,'Energy Prices'!$C$19:$C$24,0),MATCH(Calc_Option4!AL$6,'Energy Prices'!$F$11:$CR$11,0))/100000,\"\")","v":""},{"$f":"IFERROR('Data Input - Option 4'!AQ84*INDEX('Energy Prices'!$F$19:$CR$24,MATCH($B94,'Energy Prices'!$C$19:$C$24,0),MATCH(Calc_Option4!AM$6,'Energy Prices'!$F$11:$CR$11,0))/100000,\"\")","v":""},{"$f":"IFERROR('Data Input - Option 4'!AR84*INDEX('Energy Prices'!$F$19:$CR$24,MATCH($B94,'Energy Prices'!$C$19:$C$24,0),MATCH(Calc_Option4!AN$6,'Energy Prices'!$F$11:$CR$11,0))/100000,\"\")","v":""},{"$f":"IFERROR('Data Input - Option 4'!AS84*INDEX('Energy Prices'!$F$19:$CR$24,MATCH($B94,'Energy Prices'!$C$19:$C$24,0),MATCH(Calc_Option4!AO$6,'Energy Prices'!$F$11:$CR$11,0))/100000,\"\")","v":""},{"$f":"IFERROR('Data Input - Option 4'!AT84*INDEX('Energy Prices'!$F$19:$CR$24,MATCH($B94,'Energy Prices'!$C$19:$C$24,0),MATCH(Calc_Option4!AP$6,'Energy Prices'!$F$11:$CR$11,0))/100000,\"\")","v":""},{"$f":"IFERROR('Data Input - Option 4'!AU84*INDEX('Energy Prices'!$F$19:$CR$24,MATCH($B94,'Energy Prices'!$C$19:$C$24,0),MATCH(Calc_Option4!AQ$6,'Energy Prices'!$F$11:$CR$11,0))/100000,\"\")","v":""},{"$f":"IFERROR('Data Input - Option 4'!AV84*INDEX('Energy Prices'!$F$19:$CR$24,MATCH($B94,'Energy Prices'!$C$19:$C$24,0),MATCH(Calc_Option4!AR$6,'Energy Prices'!$F$11:$CR$11,0))/100000,\"\")","v":""},{"$f":"IFERROR('Data Input - Option 4'!AW84*INDEX('Energy Prices'!$F$19:$CR$24,MATCH($B94,'Energy Prices'!$C$19:$C$24,0),MATCH(Calc_Option4!AS$6,'Energy Prices'!$F$11:$CR$11,0))/100000,\"\")","v":""},{"$f":"IFERROR('Data Input - Option 4'!AX84*INDEX('Energy Prices'!$F$19:$CR$24,MATCH($B94,'Energy Prices'!$C$19:$C$24,0),MATCH(Calc_Option4!AT$6,'Energy Prices'!$F$11:$CR$11,0))/100000,\"\")","v":""},{"$f":"IFERROR('Data Input - Option 4'!AY84*INDEX('Energy Prices'!$F$19:$CR$24,MATCH($B94,'Energy Prices'!$C$19:$C$24,0),MATCH(Calc_Option4!AU$6,'Energy Prices'!$F$11:$CR$11,0))/100000,\"\")","v":""},{"$f":"IFERROR('Data Input - Option 4'!AZ84*INDEX('Energy Prices'!$F$19:$CR$24,MATCH($B94,'Energy Prices'!$C$19:$C$24,0),MATCH(Calc_Option4!AV$6,'Energy Prices'!$F$11:$CR$11,0))/100000,\"\")","v":""},{"$f":"IFERROR('Data Input - Option 4'!BA84*INDEX('Energy Prices'!$F$19:$CR$24,MATCH($B94,'Energy Prices'!$C$19:$C$24,0),MATCH(Calc_Option4!AW$6,'Energy Prices'!$F$11:$CR$11,0))/100000,\"\")","v":""},{"$f":"IFERROR('Data Input - Option 4'!BB84*INDEX('Energy Prices'!$F$19:$CR$24,MATCH($B94,'Energy Prices'!$C$19:$C$24,0),MATCH(Calc_Option4!AX$6,'Energy Prices'!$F$11:$CR$11,0))/100000,\"\")","v":""},{"$f":"IFERROR('Data Input - Option 4'!BC84*INDEX('Energy Prices'!$F$19:$CR$24,MATCH($B94,'Energy Prices'!$C$19:$C$24,0),MATCH(Calc_Option4!AY$6,'Energy Prices'!$F$11:$CR$11,0))/100000,\"\")","v":""},{"$f":"IFERROR('Data Input - Option 4'!BD84*INDEX('Energy Prices'!$F$19:$CR$24,MATCH($B94,'Energy Prices'!$C$19:$C$24,0),MATCH(Calc_Option4!AZ$6,'Energy Prices'!$F$11:$CR$11,0))/100000,\"\")","v":""},{"$f":"IFERROR('Data Input - Option 4'!BE84*INDEX('Energy Prices'!$F$19:$CR$24,MATCH($B94,'Energy Prices'!$C$19:$C$24,0),MATCH(Calc_Option4!BA$6,'Energy Prices'!$F$11:$CR$11,0))/100000,\"\")","v":""},{"$f":"IFERROR('Data Input - Option 4'!BF84*INDEX('Energy Prices'!$F$19:$CR$24,MATCH($B94,'Energy Prices'!$C$19:$C$24,0),MATCH(Calc_Option4!BB$6,'Energy Prices'!$F$11:$CR$11,0))/100000,\"\")","v":""},{"$f":"IFERROR('Data Input - Option 4'!BG84*INDEX('Energy Prices'!$F$19:$CR$24,MATCH($B94,'Energy Prices'!$C$19:$C$24,0),MATCH(Calc_Option4!BC$6,'Energy Prices'!$F$11:$CR$11,0))/100000,\"\")","v":""},{"$f":"IFERROR('Data Input - Option 4'!BH84*INDEX('Energy Prices'!$F$19:$CR$24,MATCH($B94,'Energy Prices'!$C$19:$C$24,0),MATCH(Calc_Option4!BD$6,'Energy Prices'!$F$11:$CR$11,0))/100000,\"\")","v":""},{"$f":"IFERROR('Data Input - Option 4'!BI84*INDEX('Energy Prices'!$F$19:$CR$24,MATCH($B94,'Energy Prices'!$C$19:$C$24,0),MATCH(Calc_Option4!BE$6,'Energy Prices'!$F$11:$CR$11,0))/100000,\"\")","v":""},{"$f":"IFERROR('Data Input - Option 4'!BJ84*INDEX('Energy Prices'!$F$19:$CR$24,MATCH($B94,'Energy Prices'!$C$19:$C$24,0),MATCH(Calc_Option4!BF$6,'Energy Prices'!$F$11:$CR$11,0))/100000,\"\")","v":""},{"$f":"IFERROR('Data Input - Option 4'!BK84*INDEX('Energy Prices'!$F$19:$CR$24,MATCH($B94,'Energy Prices'!$C$19:$C$24,0),MATCH(Calc_Option4!BG$6,'Energy Prices'!$F$11:$CR$11,0))/100000,\"\")","v":""},{"$f":"IFERROR('Data Input - Option 4'!BL84*INDEX('Energy Prices'!$F$19:$CR$24,MATCH($B94,'Energy Prices'!$C$19:$C$24,0),MATCH(Calc_Option4!BH$6,'Energy Prices'!$F$11:$CR$11,0))/100000,\"\")","v":""},{"$f":"IFERROR('Data Input - Option 4'!BM84*INDEX('Energy Prices'!$F$19:$CR$24,MATCH($B94,'Energy Prices'!$C$19:$C$24,0),MATCH(Calc_Option4!BI$6,'Energy Prices'!$F$11:$CR$11,0))/100000,\"\")","v":""},{"$f":"IFERROR('Data Input - Option 4'!BN84*INDEX('Energy Prices'!$F$19:$CR$24,MATCH($B94,'Energy Prices'!$C$19:$C$24,0),MATCH(Calc_Option4!BJ$6,'Energy Prices'!$F$11:$CR$11,0))/100000,\"\")","v":""},{"$f":"IFERROR('Data Input - Option 4'!BO84*INDEX('Energy Prices'!$F$19:$CR$24,MATCH($B94,'Energy Prices'!$C$19:$C$24,0),MATCH(Calc_Option4!BK$6,'Energy Prices'!$F$11:$CR$11,0))/100000,\"\")","v":""},{"$f":"IFERROR('Data Input - Option 4'!BP84*INDEX('Energy Prices'!$F$19:$CR$24,MATCH($B94,'Energy Prices'!$C$19:$C$24,0),MATCH(Calc_Option4!BL$6,'Energy Prices'!$F$11:$CR$11,0))/100000,\"\")","v":""},{"$f":"IFERROR('Data Input - Option 4'!BQ84*INDEX('Energy Prices'!$F$19:$CR$24,MATCH($B94,'Energy Prices'!$C$19:$C$24,0),MATCH(Calc_Option4!BM$6,'Energy Prices'!$F$11:$CR$11,0))/100000,\"\")","v":""},{"$f":"IFERROR('Data Input - Option 4'!BR84*INDEX('Energy Prices'!$F$19:$CR$24,MATCH($B94,'Energy Prices'!$C$19:$C$24,0),MATCH(Calc_Option4!BN$6,'Energy Prices'!$F$11:$CR$11,0))/100000,\"\")","v":""},{"$f":"IFERROR('Data Input - Option 4'!BS84*INDEX('Energy Prices'!$F$19:$CR$24,MATCH($B94,'Energy Prices'!$C$19:$C$24,0),MATCH(Calc_Option4!BO$6,'Energy Prices'!$F$11:$CR$11,0))/100000,\"\")","v":""},{"$f":"IFERROR('Data Input - Option 4'!BT84*INDEX('Energy Prices'!$F$19:$CR$24,MATCH($B94,'Energy Prices'!$C$19:$C$24,0),MATCH(Calc_Option4!BP$6,'Energy Prices'!$F$11:$CR$11,0))/100000,\"\")","v":""},{"$f":"IFERROR('Data Input - Option 4'!BU84*INDEX('Energy Prices'!$F$19:$CR$24,MATCH($B94,'Energy Prices'!$C$19:$C$24,0),MATCH(Calc_Option4!BQ$6,'Energy Prices'!$F$11:$CR$11,0))/100000,\"\")","v":""},{"$f":"IFERROR('Data Input - Option 4'!BV84*INDEX('Energy Prices'!$F$19:$CR$24,MATCH($B94,'Energy Prices'!$C$19:$C$24,0),MATCH(Calc_Option4!BR$6,'Energy Prices'!$F$11:$CR$11,0))/100000,\"\")","v":""},{"$f":"IFERROR('Data Input - Option 4'!BW84*INDEX('Energy Prices'!$F$19:$CR$24,MATCH($B94,'Energy Prices'!$C$19:$C$24,0),MATCH(Calc_Option4!BS$6,'Energy Prices'!$F$11:$CR$11,0))/100000,\"\")","v":""},{"$f":"IFERROR('Data Input - Option 4'!BX84*INDEX('Energy Prices'!$F$19:$CR$24,MATCH($B94,'Energy Prices'!$C$19:$C$24,0),MATCH(Calc_Option4!BT$6,'Energy Prices'!$F$11:$CR$11,0))/100000,\"\")","v":""},{"$f":"IFERROR('Data Input - Option 4'!BY84*INDEX('Energy Prices'!$F$19:$CR$24,MATCH($B94,'Energy Prices'!$C$19:$C$24,0),MATCH(Calc_Option4!BU$6,'Energy Prices'!$F$11:$CR$11,0))/100000,\"\")","v":""},{"$f":"IFERROR('Data Input - Option 4'!BZ84*INDEX('Energy Prices'!$F$19:$CR$24,MATCH($B94,'Energy Prices'!$C$19:$C$24,0),MATCH(Calc_Option4!BV$6,'Energy Prices'!$F$11:$CR$11,0))/100000,\"\")","v":""},{"$f":"IFERROR('Data Input - Option 4'!CA84*INDEX('Energy Prices'!$F$19:$CR$24,MATCH($B94,'Energy Prices'!$C$19:$C$24,0),MATCH(Calc_Option4!BW$6,'Energy Prices'!$F$11:$CR$11,0))/100000,\"\")","v":""},{"$f":"IFERROR('Data Input - Option 4'!CB84*INDEX('Energy Prices'!$F$19:$CR$24,MATCH($B94,'Energy Prices'!$C$19:$C$24,0),MATCH(Calc_Option4!BX$6,'Energy Prices'!$F$11:$CR$11,0))/100000,\"\")","v":""},{"$f":"IFERROR('Data Input - Option 4'!CC84*INDEX('Energy Prices'!$F$19:$CR$24,MATCH($B94,'Energy Prices'!$C$19:$C$24,0),MATCH(Calc_Option4!BY$6,'Energy Prices'!$F$11:$CR$11,0))/100000,\"\")","v":""},{"$f":"IFERROR('Data Input - Option 4'!CD84*INDEX('Energy Prices'!$F$19:$CR$24,MATCH($B94,'Energy Prices'!$C$19:$C$24,0),MATCH(Calc_Option4!BZ$6,'Energy Prices'!$F$11:$CR$11,0))/100000,\"\")","v":""},{"$f":"IFERROR('Data Input - Option 4'!CE84*INDEX('Energy Prices'!$F$19:$CR$24,MATCH($B94,'Energy Prices'!$C$19:$C$24,0),MATCH(Calc_Option4!CA$6,'Energy Prices'!$F$11:$CR$11,0))/100000,\"\")","v":""},{"$f":"IFERROR('Data Input - Option 4'!CF84*INDEX('Energy Prices'!$F$19:$CR$24,MATCH($B94,'Energy Prices'!$C$19:$C$24,0),MATCH(Calc_Option4!CB$6,'Energy Prices'!$F$11:$CR$11,0))/100000,\"\")","v":""},{"$f":"IFERROR('Data Input - Option 4'!CG84*INDEX('Energy Prices'!$F$19:$CR$24,MATCH($B94,'Energy Prices'!$C$19:$C$24,0),MATCH(Calc_Option4!CC$6,'Energy Prices'!$F$11:$CR$11,0))/100000,\"\")","v":""},{"$f":"IFERROR('Data Input - Option 4'!CH84*INDEX('Energy Prices'!$F$19:$CR$24,MATCH($B94,'Energy Prices'!$C$19:$C$24,0),MATCH(Calc_Option4!CD$6,'Energy Prices'!$F$11:$CR$11,0))/100000,\"\")","v":""},{"$f":"IFERROR('Data Input - Option 4'!CI84*INDEX('Energy Prices'!$F$19:$CR$24,MATCH($B94,'Energy Prices'!$C$19:$C$24,0),MATCH(Calc_Option4!CE$6,'Energy Prices'!$F$11:$CR$11,0))/100000,\"\")","v":""},{"$f":"IFERROR('Data Input - Option 4'!CJ84*INDEX('Energy Prices'!$F$19:$CR$24,MATCH($B94,'Energy Prices'!$C$19:$C$24,0),MATCH(Calc_Option4!CF$6,'Energy Prices'!$F$11:$CR$11,0))/100000,\"\")","v":""},{"$f":"IFERROR('Data Input - Option 4'!CK84*INDEX('Energy Prices'!$F$19:$CR$24,MATCH($B94,'Energy Prices'!$C$19:$C$24,0),MATCH(Calc_Option4!CG$6,'Energy Prices'!$F$11:$CR$11,0))/100000,\"\")","v":""},{"$f":"IFERROR('Data Input - Option 4'!CL84*INDEX('Energy Prices'!$F$19:$CR$24,MATCH($B94,'Energy Prices'!$C$19:$C$24,0),MATCH(Calc_Option4!CH$6,'Energy Prices'!$F$11:$CR$11,0))/100000,\"\")","v":""},{"$f":"IFERROR('Data Input - Option 4'!CM84*INDEX('Energy Prices'!$F$19:$CR$24,MATCH($B94,'Energy Prices'!$C$19:$C$24,0),MATCH(Calc_Option4!CI$6,'Energy Prices'!$F$11:$CR$11,0))/100000,\"\")","v":""},{"$f":"IFERROR('Data Input - Option 4'!CN84*INDEX('Energy Prices'!$F$19:$CR$24,MATCH($B94,'Energy Prices'!$C$19:$C$24,0),MATCH(Calc_Option4!CJ$6,'Energy Prices'!$F$11:$CR$11,0))/100000,\"\")","v":""},{"$f":"IFERROR('Data Input - Option 4'!CO84*INDEX('Energy Prices'!$F$19:$CR$24,MATCH($B94,'Energy Prices'!$C$19:$C$24,0),MATCH(Calc_Option4!CK$6,'Energy Prices'!$F$11:$CR$11,0))/100000,\"\")","v":""},{"$f":"IFERROR('Data Input - Option 4'!CP84*INDEX('Energy Prices'!$F$19:$CR$24,MATCH($B94,'Energy Prices'!$C$19:$C$24,0),MATCH(Calc_Option4!CL$6,'Energy Prices'!$F$11:$CR$11,0))/100000,\"\")","v":""},{"$f":"IFERROR('Data Input - Option 4'!CQ84*INDEX('Energy Prices'!$F$19:$CR$24,MATCH($B94,'Energy Prices'!$C$19:$C$24,0),MATCH(Calc_Option4!CM$6,'Energy Prices'!$F$11:$CR$11,0))/100000,\"\")","v":""},{"$f":"IFERROR('Data Input - Option 4'!CR84*INDEX('Energy Prices'!$F$19:$CR$24,MATCH($B94,'Energy Prices'!$C$19:$C$24,0),MATCH(Calc_Option4!CN$6,'Energy Prices'!$F$11:$CR$11,0))/100000,\"\")","v":""},{"$f":"IFERROR('Data Input - Option 4'!CS84*INDEX('Energy Prices'!$F$19:$CR$24,MATCH($B94,'Energy Prices'!$C$19:$C$24,0),MATCH(Calc_Option4!CO$6,'Energy Prices'!$F$11:$CR$11,0))/100000,\"\")","v":""},{"$f":"IFERROR('Data Input - Option 4'!CT84*INDEX('Energy Prices'!$F$19:$CR$24,MATCH($B94,'Energy Prices'!$C$19:$C$24,0),MATCH(Calc_Option4!CP$6,'Energy Prices'!$F$11:$CR$11,0))/100000,\"\")","v":""},{"$f":"IFERROR('Data Input - Option 4'!CU84*INDEX('Energy Prices'!$F$19:$CR$24,MATCH($B94,'Energy Prices'!$C$19:$C$24,0),MATCH(Calc_Option4!CQ$6,'Energy Prices'!$F$11:$CR$11,0))/100000,\"\")","v":""},{"$f":"IFERROR('Data Input - Option 4'!CV84*INDEX('Energy Prices'!$F$19:$CR$24,MATCH($B94,'Energy Prices'!$C$19:$C$24,0),MATCH(Calc_Option4!CR$6,'Energy Prices'!$F$11:$CR$11,0))/100000,\"\")","v":""},{"$f":"IFERROR('Data Input - Option 4'!CW84*INDEX('Energy Prices'!$F$19:$CR$24,MATCH($B94,'Energy Prices'!$C$19:$C$24,0),MATCH(Calc_Option4!CS$6,'Energy Prices'!$F$11:$CR$11,0))/100000,\"\")","v":""},{"$f":"IFERROR('Data Input - Option 4'!CX84*INDEX('Energy Prices'!$F$19:$CR$24,MATCH($B94,'Energy Prices'!$C$19:$C$24,0),MATCH(Calc_Option4!CT$6,'Energy Prices'!$F$11:$CR$11,0))/100000,\"\")","v":""},{"$f":"IFERROR('Data Input - Option 4'!CY84*INDEX('Energy Prices'!$F$19:$CR$24,MATCH($B94,'Energy Prices'!$C$19:$C$24,0),MATCH(Calc_Option4!CU$6,'Energy Prices'!$F$11:$CR$11,0))/100000,\"\")","v":""},{"$f":"IFERROR('Data Input - Option 4'!CZ84*INDEX('Energy Prices'!$F$19:$CR$24,MATCH($B94,'Energy Prices'!$C$19:$C$24,0),MATCH(Calc_Option4!CV$6,'Energy Prices'!$F$11:$CR$11,0))/100000,\"\")","v":""},{"$f":"IFERROR('Data Input - Option 4'!DA84*INDEX('Energy Prices'!$F$19:$CR$24,MATCH($B94,'Energy Prices'!$C$19:$C$24,0),MATCH(Calc_Option4!CW$6,'Energy Prices'!$F$11:$CR$11,0))/100000,\"\")","v":""},{"$f":"IFERROR('Data Input - Option 4'!DB84*INDEX('Energy Prices'!$F$19:$CR$24,MATCH($B94,'Energy Prices'!$C$19:$C$24,0),MATCH(Calc_Option4!CX$6,'Energy Prices'!$F$11:$CR$11,0))/100000,\"\")","v":""},{"$f":"IFERROR('Data Input - Option 4'!DC84*INDEX('Energy Prices'!$F$19:$CR$24,MATCH($B94,'Energy Prices'!$C$19:$C$24,0),MATCH(Calc_Option4!CY$6,'Energy Prices'!$F$11:$CR$11,0))/100000,\"\")","v":""}]
[null,"Natural Gas","£000's",{"$f":"IFERROR('Data Input - Option 4'!H85*INDEX('Energy Prices'!$F$19:$CR$24,MATCH($B95,'Energy Prices'!$C$19:$C$24,0),MATCH(Calc_Option4!D$6,'Energy Prices'!$F$11:$CR$11,0))/100000,\"\")","v":0},{"$f":"IFERROR('Data Input - Option 4'!I85*INDEX('Energy Prices'!$F$19:$CR$24,MATCH($B95,'Energy Prices'!$C$19:$C$24,0),MATCH(Calc_Option4!E$6,'Energy Prices'!$F$11:$CR$11,0))/100000,\"\")","v":0},{"$f":"IFERROR('Data Input - Option 4'!J85*INDEX('Energy Prices'!$F$19:$CR$24,MATCH($B95,'Energy Prices'!$C$19:$C$24,0),MATCH(Calc_Option4!F$6,'Energy Prices'!$F$11:$CR$11,0))/100000,\"\")","v":0},{"$f":"IFERROR('Data Input - Option 4'!K85*INDEX('Energy Prices'!$F$19:$CR$24,MATCH($B95,'Energy Prices'!$C$19:$C$24,0),MATCH(Calc_Option4!G$6,'Energy Prices'!$F$11:$CR$11,0))/100000,\"\")","v":0},{"$f":"IFERROR('Data Input - Option 4'!L85*INDEX('Energy Prices'!$F$19:$CR$24,MATCH($B95,'Energy Prices'!$C$19:$C$24,0),MATCH(Calc_Option4!H$6,'Energy Prices'!$F$11:$CR$11,0))/100000,\"\")","v":0},{"$f":"IFERROR('Data Input - Option 4'!M85*INDEX('Energy Prices'!$F$19:$CR$24,MATCH($B95,'Energy Prices'!$C$19:$C$24,0),MATCH(Calc_Option4!I$6,'Energy Prices'!$F$11:$CR$11,0))/100000,\"\")","v":0},{"$f":"IFERROR('Data Input - Option 4'!N85*INDEX('Energy Prices'!$F$19:$CR$24,MATCH($B95,'Energy Prices'!$C$19:$C$24,0),MATCH(Calc_Option4!J$6,'Energy Prices'!$F$11:$CR$11,0))/100000,\"\")","v":0},{"$f":"IFERROR('Data Input - Option 4'!O85*INDEX('Energy Prices'!$F$19:$CR$24,MATCH($B95,'Energy Prices'!$C$19:$C$24,0),MATCH(Calc_Option4!K$6,'Energy Prices'!$F$11:$CR$11,0))/100000,\"\")","v":0},{"$f":"IFERROR('Data Input - Option 4'!P85*INDEX('Energy Prices'!$F$19:$CR$24,MATCH($B95,'Energy Prices'!$C$19:$C$24,0),MATCH(Calc_Option4!L$6,'Energy Prices'!$F$11:$CR$11,0))/100000,\"\")","v":0},{"$f":"IFERROR('Data Input - Option 4'!Q85*INDEX('Energy Prices'!$F$19:$CR$24,MATCH($B95,'Energy Prices'!$C$19:$C$24,0),MATCH(Calc_Option4!M$6,'Energy Prices'!$F$11:$CR$11,0))/100000,\"\")","v":0},{"$f":"IFERROR('Data Input - Option 4'!R85*INDEX('Energy Prices'!$F$19:$CR$24,MATCH($B95,'Energy Prices'!$C$19:$C$24,0),MATCH(Calc_Option4!N$6,'Energy Prices'!$F$11:$CR$11,0))/100000,\"\")","v":0},{"$f":"IFERROR('Data Input - Option 4'!S85*INDEX('Energy Prices'!$F$19:$CR$24,MATCH($B95,'Energy Prices'!$C$19:$C$24,0),MATCH(Calc_Option4!O$6,'Energy Prices'!$F$11:$CR$11,0))/100000,\"\")","v":0},{"$f":"IFERROR('Data Input - Option 4'!T85*INDEX('Energy Prices'!$F$19:$CR$24,MATCH($B95,'Energy Prices'!$C$19:$C$24,0),MATCH(Calc_Option4!P$6,'Energy Prices'!$F$11:$CR$11,0))/100000,\"\")","v":0},{"$f":"IFERROR('Data Input - Option 4'!U85*INDEX('Energy Prices'!$F$19:$CR$24,MATCH($B95,'Energy Prices'!$C$19:$C$24,0),MATCH(Calc_Option4!Q$6,'Energy Prices'!$F$11:$CR$11,0))/100000,\"\")","v":0},{"$f":"IFERROR('Data Input - Option 4'!V85*INDEX('Energy Prices'!$F$19:$CR$24,MATCH($B95,'Energy Prices'!$C$19:$C$24,0),MATCH(Calc_Option4!R$6,'Energy Prices'!$F$11:$CR$11,0))/100000,\"\")","v":0},{"$f":"IFERROR('Data Input - Option 4'!W85*INDEX('Energy Prices'!$F$19:$CR$24,MATCH($B95,'Energy Prices'!$C$19:$C$24,0),MATCH(Calc_Option4!S$6,'Energy Prices'!$F$11:$CR$11,0))/100000,\"\")","v":0},{"$f":"IFERROR('Data Input - Option 4'!X85*INDEX('Energy Prices'!$F$19:$CR$24,MATCH($B95,'Energy Prices'!$C$19:$C$24,0),MATCH(Calc_Option4!T$6,'Energy Prices'!$F$11:$CR$11,0))/100000,\"\")","v":0},{"$f":"IFERROR('Data Input - Option 4'!Y85*INDEX('Energy Prices'!$F$19:$CR$24,MATCH($B95,'Energy Prices'!$C$19:$C$24,0),MATCH(Calc_Option4!U$6,'Energy Prices'!$F$11:$CR$11,0))/100000,\"\")","v":0},{"$f":"IFERROR('Data Input - Option 4'!Z85*INDEX('Energy Prices'!$F$19:$CR$24,MATCH($B95,'Energy Prices'!$C$19:$C$24,0),MATCH(Calc_Option4!V$6,'Energy Prices'!$F$11:$CR$11,0))/100000,\"\")","v":0},{"$f":"IFERROR('Data Input - Option 4'!AA85*INDEX('Energy Prices'!$F$19:$CR$24,MATCH($B95,'Energy Prices'!$C$19:$C$24,0),MATCH(Calc_Option4!W$6,'Energy Prices'!$F$11:$CR$11,0))/100000,\"\")","v":0},{"$f":"IFERROR('Data Input - Option 4'!AB85*INDEX('Energy Prices'!$F$19:$CR$24,MATCH($B95,'Energy Prices'!$C$19:$C$24,0),MATCH(Calc_Option4!X$6,'Energy Prices'!$F$11:$CR$11,0))/100000,\"\")","v":0},{"$f":"IFERROR('Data Input - Option 4'!AC85*INDEX('Energy Prices'!$F$19:$CR$24,MATCH($B95,'Energy Prices'!$C$19:$C$24,0),MATCH(Calc_Option4!Y$6,'Energy Prices'!$F$11:$CR$11,0))/100000,\"\")","v":0},{"$f":"IFERROR('Data Input - Option 4'!AD85*INDEX('Energy Prices'!$F$19:$CR$24,MATCH($B95,'Energy Prices'!$C$19:$C$24,0),MATCH(Calc_Option4!Z$6,'Energy Prices'!$F$11:$CR$11,0))/100000,\"\")","v":0},{"$f":"IFERROR('Data Input - Option 4'!AE85*INDEX('Energy Prices'!$F$19:$CR$24,MATCH($B95,'Energy Prices'!$C$19:$C$24,0),MATCH(Calc_Option4!AA$6,'Energy Prices'!$F$11:$CR$11,0))/100000,\"\")","v":0},{"$f":"IFERROR('Data Input - Option 4'!AF85*INDEX('Energy Prices'!$F$19:$CR$24,MATCH($B95,'Energy Prices'!$C$19:$C$24,0),MATCH(Calc_Option4!AB$6,'Energy Prices'!$F$11:$CR$11,0))/100000,\"\")","v":0},{"$f":"IFERROR('Data Input - Option 4'!AG85*INDEX('Energy Prices'!$F$19:$CR$24,MATCH($B95,'Energy Prices'!$C$19:$C$24,0),MATCH(Calc_Option4!AC$6,'Energy Prices'!$F$11:$CR$11,0))/100000,\"\")","v":0},{"$f":"IFERROR('Data Input - Option 4'!AH85*INDEX('Energy Prices'!$F$19:$CR$24,MATCH($B95,'Energy Prices'!$C$19:$C$24,0),MATCH(Calc_Option4!AD$6,'Energy Prices'!$F$11:$CR$11,0))/100000,\"\")","v":0},{"$f":"IFERROR('Data Input - Option 4'!AI85*INDEX('Energy Prices'!$F$19:$CR$24,MATCH($B95,'Energy Prices'!$C$19:$C$24,0),MATCH(Calc_Option4!AE$6,'Energy Prices'!$F$11:$CR$11,0))/100000,\"\")","v":0},{"$f":"IFERROR('Data Input - Option 4'!AJ85*INDEX('Energy Prices'!$F$19:$CR$24,MATCH($B95,'Energy Prices'!$C$19:$C$24,0),MATCH(Calc_Option4!AF$6,'Energy Prices'!$F$11:$CR$11,0))/100000,\"\")","v":0},{"$f":"IFERROR('Data Input - Option 4'!AK85*INDEX('Energy Prices'!$F$19:$CR$24,MATCH($B95,'Energy Prices'!$C$19:$C$24,0),MATCH(Calc_Option4!AG$6,'Energy Prices'!$F$11:$CR$11,0))/100000,\"\")","v":0},{"$f":"IFERROR('Data Input - Option 4'!AL85*INDEX('Energy Prices'!$F$19:$CR$24,MATCH($B95,'Energy Prices'!$C$19:$C$24,0),MATCH(Calc_Option4!AH$6,'Energy Prices'!$F$11:$CR$11,0))/100000,\"\")","v":0},{"$f":"IFERROR('Data Input - Option 4'!AM85*INDEX('Energy Prices'!$F$19:$CR$24,MATCH($B95,'Energy Prices'!$C$19:$C$24,0),MATCH(Calc_Option4!AI$6,'Energy Prices'!$F$11:$CR$11,0))/100000,\"\")","v":""},{"$f":"IFERROR('Data Input - Option 4'!AN85*INDEX('Energy Prices'!$F$19:$CR$24,MATCH($B95,'Energy Prices'!$C$19:$C$24,0),MATCH(Calc_Option4!AJ$6,'Energy Prices'!$F$11:$CR$11,0))/100000,\"\")","v":""},{"$f":"IFERROR('Data Input - Option 4'!AO85*INDEX('Energy Prices'!$F$19:$CR$24,MATCH($B95,'Energy Prices'!$C$19:$C$24,0),MATCH(Calc_Option4!AK$6,'Energy Prices'!$F$11:$CR$11,0))/100000,\"\")","v":""},{"$f":"IFERROR('Data Input - Option 4'!AP85*INDEX('Energy Prices'!$F$19:$CR$24,MATCH($B95,'Energy Prices'!$C$19:$C$24,0),MATCH(Calc_Option4!AL$6,'Energy Prices'!$F$11:$CR$11,0))/100000,\"\")","v":""},{"$f":"IFERROR('Data Input - Option 4'!AQ85*INDEX('Energy Prices'!$F$19:$CR$24,MATCH($B95,'Energy Prices'!$C$19:$C$24,0),MATCH(Calc_Option4!AM$6,'Energy Prices'!$F$11:$CR$11,0))/100000,\"\")","v":""},{"$f":"IFERROR('Data Input - Option 4'!AR85*INDEX('Energy Prices'!$F$19:$CR$24,MATCH($B95,'Energy Prices'!$C$19:$C$24,0),MATCH(Calc_Option4!AN$6,'Energy Prices'!$F$11:$CR$11,0))/100000,\"\")","v":""},{"$f":"IFERROR('Data Input - Option 4'!AS85*INDEX('Energy Prices'!$F$19:$CR$24,MATCH($B95,'Energy Prices'!$C$19:$C$24,0),MATCH(Calc_Option4!AO$6,'Energy Prices'!$F$11:$CR$11,0))/100000,\"\")","v":""},{"$f":"IFERROR('Data Input - Option 4'!AT85*INDEX('Energy Prices'!$F$19:$CR$24,MATCH($B95,'Energy Prices'!$C$19:$C$24,0),MATCH(Calc_Option4!AP$6,'Energy Prices'!$F$11:$CR$11,0))/100000,\"\")","v":""},{"$f":"IFERROR('Data Input - Option 4'!AU85*INDEX('Energy Prices'!$F$19:$CR$24,MATCH($B95,'Energy Prices'!$C$19:$C$24,0),MATCH(Calc_Option4!AQ$6,'Energy Prices'!$F$11:$CR$11,0))/100000,\"\")","v":""},{"$f":"IFERROR('Data Input - Option 4'!AV85*INDEX('Energy Prices'!$F$19:$CR$24,MATCH($B95,'Energy Prices'!$C$19:$C$24,0),MATCH(Calc_Option4!AR$6,'Energy Prices'!$F$11:$CR$11,0))/100000,\"\")","v":""},{"$f":"IFERROR('Data Input - Option 4'!AW85*INDEX('Energy Prices'!$F$19:$CR$24,MATCH($B95,'Energy Prices'!$C$19:$C$24,0),MATCH(Calc_Option4!AS$6,'Energy Prices'!$F$11:$CR$11,0))/100000,\"\")","v":""},{"$f":"IFERROR('Data Input - Option 4'!AX85*INDEX('Energy Prices'!$F$19:$CR$24,MATCH($B95,'Energy Prices'!$C$19:$C$24,0),MATCH(Calc_Option4!AT$6,'Energy Prices'!$F$11:$CR$11,0))/100000,\"\")","v":""},{"$f":"IFERROR('Data Input - Option 4'!AY85*INDEX('Energy Prices'!$F$19:$CR$24,MATCH($B95,'Energy Prices'!$C$19:$C$24,0),MATCH(Calc_Option4!AU$6,'Energy Prices'!$F$11:$CR$11,0))/100000,\"\")","v":""},{"$f":"IFERROR('Data Input - Option 4'!AZ85*INDEX('Energy Prices'!$F$19:$CR$24,MATCH($B95,'Energy Prices'!$C$19:$C$24,0),MATCH(Calc_Option4!AV$6,'Energy Prices'!$F$11:$CR$11,0))/100000,\"\")","v":""},{"$f":"IFERROR('Data Input - Option 4'!BA85*INDEX('Energy Prices'!$F$19:$CR$24,MATCH($B95,'Energy Prices'!$C$19:$C$24,0),MATCH(Calc_Option4!AW$6,'Energy Prices'!$F$11:$CR$11,0))/100000,\"\")","v":""},{"$f":"IFERROR('Data Input - Option 4'!BB85*INDEX('Energy Prices'!$F$19:$CR$24,MATCH($B95,'Energy Prices'!$C$19:$C$24,0),MATCH(Calc_Option4!AX$6,'Energy Prices'!$F$11:$CR$11,0))/100000,\"\")","v":""},{"$f":"IFERROR('Data Input - Option 4'!BC85*INDEX('Energy Prices'!$F$19:$CR$24,MATCH($B95,'Energy Prices'!$C$19:$C$24,0),MATCH(Calc_Option4!AY$6,'Energy Prices'!$F$11:$CR$11,0))/100000,\"\")","v":""},{"$f":"IFERROR('Data Input - Option 4'!BD85*INDEX('Energy Prices'!$F$19:$CR$24,MATCH($B95,'Energy Prices'!$C$19:$C$24,0),MATCH(Calc_Option4!AZ$6,'Energy Prices'!$F$11:$CR$11,0))/100000,\"\")","v":""},{"$f":"IFERROR('Data Input - Option 4'!BE85*INDEX('Energy Prices'!$F$19:$CR$24,MATCH($B95,'Energy Prices'!$C$19:$C$24,0),MATCH(Calc_Option4!BA$6,'Energy Prices'!$F$11:$CR$11,0))/100000,\"\")","v":""},{"$f":"IFERROR('Data Input - Option 4'!BF85*INDEX('Energy Prices'!$F$19:$CR$24,MATCH($B95,'Energy Prices'!$C$19:$C$24,0),MATCH(Calc_Option4!BB$6,'Energy Prices'!$F$11:$CR$11,0))/100000,\"\")","v":""},{"$f":"IFERROR('Data Input - Option 4'!BG85*INDEX('Energy Prices'!$F$19:$CR$24,MATCH($B95,'Energy Prices'!$C$19:$C$24,0),MATCH(Calc_Option4!BC$6,'Energy Prices'!$F$11:$CR$11,0))/100000,\"\")","v":""},{"$f":"IFERROR('Data Input - Option 4'!BH85*INDEX('Energy Prices'!$F$19:$CR$24,MATCH($B95,'Energy Prices'!$C$19:$C$24,0),MATCH(Calc_Option4!BD$6,'Energy Prices'!$F$11:$CR$11,0))/100000,\"\")","v":""},{"$f":"IFERROR('Data Input - Option 4'!BI85*INDEX('Energy Prices'!$F$19:$CR$24,MATCH($B95,'Energy Prices'!$C$19:$C$24,0),MATCH(Calc_Option4!BE$6,'Energy Prices'!$F$11:$CR$11,0))/100000,\"\")","v":""},{"$f":"IFERROR('Data Input - Option 4'!BJ85*INDEX('Energy Prices'!$F$19:$CR$24,MATCH($B95,'Energy Prices'!$C$19:$C$24,0),MATCH(Calc_Option4!BF$6,'Energy Prices'!$F$11:$CR$11,0))/100000,\"\")","v":""},{"$f":"IFERROR('Data Input - Option 4'!BK85*INDEX('Energy Prices'!$F$19:$CR$24,MATCH($B95,'Energy Prices'!$C$19:$C$24,0),MATCH(Calc_Option4!BG$6,'Energy Prices'!$F$11:$CR$11,0))/100000,\"\")","v":""},{"$f":"IFERROR('Data Input - Option 4'!BL85*INDEX('Energy Prices'!$F$19:$CR$24,MATCH($B95,'Energy Prices'!$C$19:$C$24,0),MATCH(Calc_Option4!BH$6,'Energy Prices'!$F$11:$CR$11,0))/100000,\"\")","v":""},{"$f":"IFERROR('Data Input - Option 4'!BM85*INDEX('Energy Prices'!$F$19:$CR$24,MATCH($B95,'Energy Prices'!$C$19:$C$24,0),MATCH(Calc_Option4!BI$6,'Energy Prices'!$F$11:$CR$11,0))/100000,\"\")","v":""},{"$f":"IFERROR('Data Input - Option 4'!BN85*INDEX('Energy Prices'!$F$19:$CR$24,MATCH($B95,'Energy Prices'!$C$19:$C$24,0),MATCH(Calc_Option4!BJ$6,'Energy Prices'!$F$11:$CR$11,0))/100000,\"\")","v":""},{"$f":"IFERROR('Data Input - Option 4'!BO85*INDEX('Energy Prices'!$F$19:$CR$24,MATCH($B95,'Energy Prices'!$C$19:$C$24,0),MATCH(Calc_Option4!BK$6,'Energy Prices'!$F$11:$CR$11,0))/100000,\"\")","v":""},{"$f":"IFERROR('Data Input - Option 4'!BP85*INDEX('Energy Prices'!$F$19:$CR$24,MATCH($B95,'Energy Prices'!$C$19:$C$24,0),MATCH(Calc_Option4!BL$6,'Energy Prices'!$F$11:$CR$11,0))/100000,\"\")","v":""},{"$f":"IFERROR('Data Input - Option 4'!BQ85*INDEX('Energy Prices'!$F$19:$CR$24,MATCH($B95,'Energy Prices'!$C$19:$C$24,0),MATCH(Calc_Option4!BM$6,'Energy Prices'!$F$11:$CR$11,0))/100000,\"\")","v":""},{"$f":"IFERROR('Data Input - Option 4'!BR85*INDEX('Energy Prices'!$F$19:$CR$24,MATCH($B95,'Energy Prices'!$C$19:$C$24,0),MATCH(Calc_Option4!BN$6,'Energy Prices'!$F$11:$CR$11,0))/100000,\"\")","v":""},{"$f":"IFERROR('Data Input - Option 4'!BS85*INDEX('Energy Prices'!$F$19:$CR$24,MATCH($B95,'Energy Prices'!$C$19:$C$24,0),MATCH(Calc_Option4!BO$6,'Energy Prices'!$F$11:$CR$11,0))/100000,\"\")","v":""},{"$f":"IFERROR('Data Input - Option 4'!BT85*INDEX('Energy Prices'!$F$19:$CR$24,MATCH($B95,'Energy Prices'!$C$19:$C$24,0),MATCH(Calc_Option4!BP$6,'Energy Prices'!$F$11:$CR$11,0))/100000,\"\")","v":""},{"$f":"IFERROR('Data Input - Option 4'!BU85*INDEX('Energy Prices'!$F$19:$CR$24,MATCH($B95,'Energy Prices'!$C$19:$C$24,0),MATCH(Calc_Option4!BQ$6,'Energy Prices'!$F$11:$CR$11,0))/100000,\"\")","v":""},{"$f":"IFERROR('Data Input - Option 4'!BV85*INDEX('Energy Prices'!$F$19:$CR$24,MATCH($B95,'Energy Prices'!$C$19:$C$24,0),MATCH(Calc_Option4!BR$6,'Energy Prices'!$F$11:$CR$11,0))/100000,\"\")","v":""},{"$f":"IFERROR('Data Input - Option 4'!BW85*INDEX('Energy Prices'!$F$19:$CR$24,MATCH($B95,'Energy Prices'!$C$19:$C$24,0),MATCH(Calc_Option4!BS$6,'Energy Prices'!$F$11:$CR$11,0))/100000,\"\")","v":""},{"$f":"IFERROR('Data Input - Option 4'!BX85*INDEX('Energy Prices'!$F$19:$CR$24,MATCH($B95,'Energy Prices'!$C$19:$C$24,0),MATCH(Calc_Option4!BT$6,'Energy Prices'!$F$11:$CR$11,0))/100000,\"\")","v":""},{"$f":"IFERROR('Data Input - Option 4'!BY85*INDEX('Energy Prices'!$F$19:$CR$24,MATCH($B95,'Energy Prices'!$C$19:$C$24,0),MATCH(Calc_Option4!BU$6,'Energy Prices'!$F$11:$CR$11,0))/100000,\"\")","v":""},{"$f":"IFERROR('Data Input - Option 4'!BZ85*INDEX('Energy Prices'!$F$19:$CR$24,MATCH($B95,'Energy Prices'!$C$19:$C$24,0),MATCH(Calc_Option4!BV$6,'Energy Prices'!$F$11:$CR$11,0))/100000,\"\")","v":""},{"$f":"IFERROR('Data Input - Option 4'!CA85*INDEX('Energy Prices'!$F$19:$CR$24,MATCH($B95,'Energy Prices'!$C$19:$C$24,0),MATCH(Calc_Option4!BW$6,'Energy Prices'!$F$11:$CR$11,0))/100000,\"\")","v":""},{"$f":"IFERROR('Data Input - Option 4'!CB85*INDEX('Energy Prices'!$F$19:$CR$24,MATCH($B95,'Energy Prices'!$C$19:$C$24,0),MATCH(Calc_Option4!BX$6,'Energy Prices'!$F$11:$CR$11,0))/100000,\"\")","v":""},{"$f":"IFERROR('Data Input - Option 4'!CC85*INDEX('Energy Prices'!$F$19:$CR$24,MATCH($B95,'Energy Prices'!$C$19:$C$24,0),MATCH(Calc_Option4!BY$6,'Energy Prices'!$F$11:$CR$11,0))/100000,\"\")","v":""},{"$f":"IFERROR('Data Input - Option 4'!CD85*INDEX('Energy Prices'!$F$19:$CR$24,MATCH($B95,'Energy Prices'!$C$19:$C$24,0),MATCH(Calc_Option4!BZ$6,'Energy Prices'!$F$11:$CR$11,0))/100000,\"\")","v":""},{"$f":"IFERROR('Data Input - Option 4'!CE85*INDEX('Energy Prices'!$F$19:$CR$24,MATCH($B95,'Energy Prices'!$C$19:$C$24,0),MATCH(Calc_Option4!CA$6,'Energy Prices'!$F$11:$CR$11,0))/100000,\"\")","v":""},{"$f":"IFERROR('Data Input - Option 4'!CF85*INDEX('Energy Prices'!$F$19:$CR$24,MATCH($B95,'Energy Prices'!$C$19:$C$24,0),MATCH(Calc_Option4!CB$6,'Energy Prices'!$F$11:$CR$11,0))/100000,\"\")","v":""},{"$f":"IFERROR('Data Input - Option 4'!CG85*INDEX('Energy Prices'!$F$19:$CR$24,MATCH($B95,'Energy Prices'!$C$19:$C$24,0),MATCH(Calc_Option4!CC$6,'Energy Prices'!$F$11:$CR$11,0))/100000,\"\")","v":""},{"$f":"IFERROR('Data Input - Option 4'!CH85*INDEX('Energy Prices'!$F$19:$CR$24,MATCH($B95,'Energy Prices'!$C$19:$C$24,0),MATCH(Calc_Option4!CD$6,'Energy Prices'!$F$11:$CR$11,0))/100000,\"\")","v":""},{"$f":"IFERROR('Data Input - Option 4'!CI85*INDEX('Energy Prices'!$F$19:$CR$24,MATCH($B95,'Energy Prices'!$C$19:$C$24,0),MATCH(Calc_Option4!CE$6,'Energy Prices'!$F$11:$CR$11,0))/100000,\"\")","v":""},{"$f":"IFERROR('Data Input - Option 4'!CJ85*INDEX('Energy Prices'!$F$19:$CR$24,MATCH($B95,'Energy Prices'!$C$19:$C$24,0),MATCH(Calc_Option4!CF$6,'Energy Prices'!$F$11:$CR$11,0))/100000,\"\")","v":""},{"$f":"IFERROR('Data Input - Option 4'!CK85*INDEX('Energy Prices'!$F$19:$CR$24,MATCH($B95,'Energy Prices'!$C$19:$C$24,0),MATCH(Calc_Option4!CG$6,'Energy Prices'!$F$11:$CR$11,0))/100000,\"\")","v":""},{"$f":"IFERROR('Data Input - Option 4'!CL85*INDEX('Energy Prices'!$F$19:$CR$24,MATCH($B95,'Energy Prices'!$C$19:$C$24,0),MATCH(Calc_Option4!CH$6,'Energy Prices'!$F$11:$CR$11,0))/100000,\"\")","v":""},{"$f":"IFERROR('Data Input - Option 4'!CM85*INDEX('Energy Prices'!$F$19:$CR$24,MATCH($B95,'Energy Prices'!$C$19:$C$24,0),MATCH(Calc_Option4!CI$6,'Energy Prices'!$F$11:$CR$11,0))/100000,\"\")","v":""},{"$f":"IFERROR('Data Input - Option 4'!CN85*INDEX('Energy Prices'!$F$19:$CR$24,MATCH($B95,'Energy Prices'!$C$19:$C$24,0),MATCH(Calc_Option4!CJ$6,'Energy Prices'!$F$11:$CR$11,0))/100000,\"\")","v":""},{"$f":"IFERROR('Data Input - Option 4'!CO85*INDEX('Energy Prices'!$F$19:$CR$24,MATCH($B95,'Energy Prices'!$C$19:$C$24,0),MATCH(Calc_Option4!CK$6,'Energy Prices'!$F$11:$CR$11,0))/100000,\"\")","v":""},{"$f":"IFERROR('Data Input - Option 4'!CP85*INDEX('Energy Prices'!$F$19:$CR$24,MATCH($B95,'Energy Prices'!$C$19:$C$24,0),MATCH(Calc_Option4!CL$6,'Energy Prices'!$F$11:$CR$11,0))/100000,\"\")","v":""},{"$f":"IFERROR('Data Input - Option 4'!CQ85*INDEX('Energy Prices'!$F$19:$CR$24,MATCH($B95,'Energy Prices'!$C$19:$C$24,0),MATCH(Calc_Option4!CM$6,'Energy Prices'!$F$11:$CR$11,0))/100000,\"\")","v":""},{"$f":"IFERROR('Data Input - Option 4'!CR85*INDEX('Energy Prices'!$F$19:$CR$24,MATCH($B95,'Energy Prices'!$C$19:$C$24,0),MATCH(Calc_Option4!CN$6,'Energy Prices'!$F$11:$CR$11,0))/100000,\"\")","v":""},{"$f":"IFERROR('Data Input - Option 4'!CS85*INDEX('Energy Prices'!$F$19:$CR$24,MATCH($B95,'Energy Prices'!$C$19:$C$24,0),MATCH(Calc_Option4!CO$6,'Energy Prices'!$F$11:$CR$11,0))/100000,\"\")","v":""},{"$f":"IFERROR('Data Input - Option 4'!CT85*INDEX('Energy Prices'!$F$19:$CR$24,MATCH($B95,'Energy Prices'!$C$19:$C$24,0),MATCH(Calc_Option4!CP$6,'Energy Prices'!$F$11:$CR$11,0))/100000,\"\")","v":""},{"$f":"IFERROR('Data Input - Option 4'!CU85*INDEX('Energy Prices'!$F$19:$CR$24,MATCH($B95,'Energy Prices'!$C$19:$C$24,0),MATCH(Calc_Option4!CQ$6,'Energy Prices'!$F$11:$CR$11,0))/100000,\"\")","v":""},{"$f":"IFERROR('Data Input - Option 4'!CV85*INDEX('Energy Prices'!$F$19:$CR$24,MATCH($B95,'Energy Prices'!$C$19:$C$24,0),MATCH(Calc_Option4!CR$6,'Energy Prices'!$F$11:$CR$11,0))/100000,\"\")","v":""},{"$f":"IFERROR('Data Input - Option 4'!CW85*INDEX('Energy Prices'!$F$19:$CR$24,MATCH($B95,'Energy Prices'!$C$19:$C$24,0),MATCH(Calc_Option4!CS$6,'Energy Prices'!$F$11:$CR$11,0))/100000,\"\")","v":""},{"$f":"IFERROR('Data Input - Option 4'!CX85*INDEX('Energy Prices'!$F$19:$CR$24,MATCH($B95,'Energy Prices'!$C$19:$C$24,0),MATCH(Calc_Option4!CT$6,'Energy Prices'!$F$11:$CR$11,0))/100000,\"\")","v":""},{"$f":"IFERROR('Data Input - Option 4'!CY85*INDEX('Energy Prices'!$F$19:$CR$24,MATCH($B95,'Energy Prices'!$C$19:$C$24,0),MATCH(Calc_Option4!CU$6,'Energy Prices'!$F$11:$CR$11,0))/100000,\"\")","v":""},{"$f":"IFERROR('Data Input - Option 4'!CZ85*INDEX('Energy Prices'!$F$19:$CR$24,MATCH($B95,'Energy Prices'!$C$19:$C$24,0),MATCH(Calc_Option4!CV$6,'Energy Prices'!$F$11:$CR$11,0))/100000,\"\")","v":""},{"$f":"IFERROR('Data Input - Option 4'!DA85*INDEX('Energy Prices'!$F$19:$CR$24,MATCH($B95,'Energy Prices'!$C$19:$C$24,0),MATCH(Calc_Option4!CW$6,'Energy Prices'!$F$11:$CR$11,0))/100000,\"\")","v":""},{"$f":"IFERROR('Data Input - Option 4'!DB85*INDEX('Energy Prices'!$F$19:$CR$24,MATCH($B95,'Energy Prices'!$C$19:$C$24,0),MATCH(Calc_Option4!CX$6,'Energy Prices'!$F$11:$CR$11,0))/100000,\"\")","v":""},{"$f":"IFERROR('Data Input - Option 4'!DC85*INDEX('Energy Prices'!$F$19:$CR$24,MATCH($B95,'Energy Prices'!$C$19:$C$24,0),MATCH(Calc_Option4!CY$6,'Energy Prices'!$F$11:$CR$11,0))/100000,\"\")","v":""}]
[null,"Coal","£000's",{"$f":"IFERROR('Data Input - Option 4'!H86*INDEX('Energy Prices'!$F$19:$CR$24,MATCH($B96,'Energy Prices'!$C$19:$C$24,0),MATCH(Calc_Option4!D$6,'Energy Prices'!$F$11:$CR$11,0))/100000,\"\")","v":0},{"$f":"IFERROR('Data Input - Option 4'!I86*INDEX('Energy Prices'!$F$19:$CR$24,MATCH($B96,'Energy Prices'!$C$19:$C$24,0),MATCH(Calc_Option4!E$6,'Energy Prices'!$F$11:$CR$11,0))/100000,\"\")","v":0},{"$f":"IFERROR('Data Input - Option 4'!J86*INDEX('Energy Prices'!$F$19:$CR$24,MATCH($B96,'Energy Prices'!$C$19:$C$24,0),MATCH(Calc_Option4!F$6,'Energy Prices'!$F$11:$CR$11,0))/100000,\"\")","v":0},{"$f":"IFERROR('Data Input - Option 4'!K86*INDEX('Energy Prices'!$F$19:$CR$24,MATCH($B96,'Energy Prices'!$C$19:$C$24,0),MATCH(Calc_Option4!G$6,'Energy Prices'!$F$11:$CR$11,0))/100000,\"\")","v":0},{"$f":"IFERROR('Data Input - Option 4'!L86*INDEX('Energy Prices'!$F$19:$CR$24,MATCH($B96,'Energy Prices'!$C$19:$C$24,0),MATCH(Calc_Option4!H$6,'Energy Prices'!$F$11:$CR$11,0))/100000,\"\")","v":0},{"$f":"IFERROR('Data Input - Option 4'!M86*INDEX('Energy Prices'!$F$19:$CR$24,MATCH($B96,'Energy Prices'!$C$19:$C$24,0),MATCH(Calc_Option4!I$6,'Energy Prices'!$F$11:$CR$11,0))/100000,\"\")","v":0},{"$f":"IFERROR('Data Input - Option 4'!N86*INDEX('Energy Prices'!$F$19:$CR$24,MATCH($B96,'Energy Prices'!$C$19:$C$24,0),MATCH(Calc_Option4!J$6,'Energy Prices'!$F$11:$CR$11,0))/100000,\"\")","v":0},{"$f":"IFERROR('Data Input - Option 4'!O86*INDEX('Energy Prices'!$F$19:$CR$24,MATCH($B96,'Energy Prices'!$C$19:$C$24,0),MATCH(Calc_Option4!K$6,'Energy Prices'!$F$11:$CR$11,0))/100000,\"\")","v":0},{"$f":"IFERROR('Data Input - Option 4'!P86*INDEX('Energy Prices'!$F$19:$CR$24,MATCH($B96,'Energy Prices'!$C$19:$C$24,0),MATCH(Calc_Option4!L$6,'Energy Prices'!$F$11:$CR$11,0))/100000,\"\")","v":0},{"$f":"IFERROR('Data Input - Option 4'!Q86*INDEX('Energy Prices'!$F$19:$CR$24,MATCH($B96,'Energy Prices'!$C$19:$C$24,0),MATCH(Calc_Option4!M$6,'Energy Prices'!$F$11:$CR$11,0))/100000,\"\")","v":0},{"$f":"IFERROR('Data Input - Option 4'!R86*INDEX('Energy Prices'!$F$19:$CR$24,MATCH($B96,'Energy Prices'!$C$19:$C$24,0),MATCH(Calc_Option4!N$6,'Energy Prices'!$F$11:$CR$11,0))/100000,\"\")","v":0},{"$f":"IFERROR('Data Input - Option 4'!S86*INDEX('Energy Prices'!$F$19:$CR$24,MATCH($B96,'Energy Prices'!$C$19:$C$24,0),MATCH(Calc_Option4!O$6,'Energy Prices'!$F$11:$CR$11,0))/100000,\"\")","v":0},{"$f":"IFERROR('Data Input - Option 4'!T86*INDEX('Energy Prices'!$F$19:$CR$24,MATCH($B96,'Energy Prices'!$C$19:$C$24,0),MATCH(Calc_Option4!P$6,'Energy Prices'!$F$11:$CR$11,0))/100000,\"\")","v":0},{"$f":"IFERROR('Data Input - Option 4'!U86*INDEX('Energy Prices'!$F$19:$CR$24,MATCH($B96,'Energy Prices'!$C$19:$C$24,0),MATCH(Calc_Option4!Q$6,'Energy Prices'!$F$11:$CR$11,0))/100000,\"\")","v":0},{"$f":"IFERROR('Data Input - Option 4'!V86*INDEX('Energy Prices'!$F$19:$CR$24,MATCH($B96,'Energy Prices'!$C$19:$C$24,0),MATCH(Calc_Option4!R$6,'Energy Prices'!$F$11:$CR$11,0))/100000,\"\")","v":0},{"$f":"IFERROR('Data Input - Option 4'!W86*INDEX('Energy Prices'!$F$19:$CR$24,MATCH($B96,'Energy Prices'!$C$19:$C$24,0),MATCH(Calc_Option4!S$6,'Energy Prices'!$F$11:$CR$11,0))/100000,\"\")","v":0},{"$f":"IFERROR('Data Input - Option 4'!X86*INDEX('Energy Prices'!$F$19:$CR$24,MATCH($B96,'Energy Prices'!$C$19:$C$24,0),MATCH(Calc_Option4!T$6,'Energy Prices'!$F$11:$CR$11,0))/100000,\"\")","v":0},{"$f":"IFERROR('Data Input - Option 4'!Y86*INDEX('Energy Prices'!$F$19:$CR$24,MATCH($B96,'Energy Prices'!$C$19:$C$24,0),MATCH(Calc_Option4!U$6,'Energy Prices'!$F$11:$CR$11,0))/100000,\"\")","v":0},{"$f":"IFERROR('Data Input - Option 4'!Z86*INDEX('Energy Prices'!$F$19:$CR$24,MATCH($B96,'Energy Prices'!$C$19:$C$24,0),MATCH(Calc_Option4!V$6,'Energy Prices'!$F$11:$CR$11,0))/100000,\"\")","v":0},{"$f":"IFERROR('Data Input - Option 4'!AA86*INDEX('Energy Prices'!$F$19:$CR$24,MATCH($B96,'Energy Prices'!$C$19:$C$24,0),MATCH(Calc_Option4!W$6,'Energy Prices'!$F$11:$CR$11,0))/100000,\"\")","v":0},{"$f":"IFERROR('Data Input - Option 4'!AB86*INDEX('Energy Prices'!$F$19:$CR$24,MATCH($B96,'Energy Prices'!$C$19:$C$24,0),MATCH(Calc_Option4!X$6,'Energy Prices'!$F$11:$CR$11,0))/100000,\"\")","v":0},{"$f":"IFERROR('Data Input - Option 4'!AC86*INDEX('Energy Prices'!$F$19:$CR$24,MATCH($B96,'Energy Prices'!$C$19:$C$24,0),MATCH(Calc_Option4!Y$6,'Energy Prices'!$F$11:$CR$11,0))/100000,\"\")","v":0},{"$f":"IFERROR('Data Input - Option 4'!AD86*INDEX('Energy Prices'!$F$19:$CR$24,MATCH($B96,'Energy Prices'!$C$19:$C$24,0),MATCH(Calc_Option4!Z$6,'Energy Prices'!$F$11:$CR$11,0))/100000,\"\")","v":0},{"$f":"IFERROR('Data Input - Option 4'!AE86*INDEX('Energy Prices'!$F$19:$CR$24,MATCH($B96,'Energy Prices'!$C$19:$C$24,0),MATCH(Calc_Option4!AA$6,'Energy Prices'!$F$11:$CR$11,0))/100000,\"\")","v":0},{"$f":"IFERROR('Data Input - Option 4'!AF86*INDEX('Energy Prices'!$F$19:$CR$24,MATCH($B96,'Energy Prices'!$C$19:$C$24,0),MATCH(Calc_Option4!AB$6,'Energy Prices'!$F$11:$CR$11,0))/100000,\"\")","v":0},{"$f":"IFERROR('Data Input - Option 4'!AG86*INDEX('Energy Prices'!$F$19:$CR$24,MATCH($B96,'Energy Prices'!$C$19:$C$24,0),MATCH(Calc_Option4!AC$6,'Energy Prices'!$F$11:$CR$11,0))/100000,\"\")","v":0},{"$f":"IFERROR('Data Input - Option 4'!AH86*INDEX('Energy Prices'!$F$19:$CR$24,MATCH($B96,'Energy Prices'!$C$19:$C$24,0),MATCH(Calc_Option4!AD$6,'Energy Prices'!$F$11:$CR$11,0))/100000,\"\")","v":0},{"$f":"IFERROR('Data Input - Option 4'!AI86*INDEX('Energy Prices'!$F$19:$CR$24,MATCH($B96,'Energy Prices'!$C$19:$C$24,0),MATCH(Calc_Option4!AE$6,'Energy Prices'!$F$11:$CR$11,0))/100000,\"\")","v":0},{"$f":"IFERROR('Data Input - Option 4'!AJ86*INDEX('Energy Prices'!$F$19:$CR$24,MATCH($B96,'Energy Prices'!$C$19:$C$24,0),MATCH(Calc_Option4!AF$6,'Energy Prices'!$F$11:$CR$11,0))/100000,\"\")","v":0},{"$f":"IFERROR('Data Input - Option 4'!AK86*INDEX('Energy Prices'!$F$19:$CR$24,MATCH($B96,'Energy Prices'!$C$19:$C$24,0),MATCH(Calc_Option4!AG$6,'Energy Prices'!$F$11:$CR$11,0))/100000,\"\")","v":0},{"$f":"IFERROR('Data Input - Option 4'!AL86*INDEX('Energy Prices'!$F$19:$CR$24,MATCH($B96,'Energy Prices'!$C$19:$C$24,0),MATCH(Calc_Option4!AH$6,'Energy Prices'!$F$11:$CR$11,0))/100000,\"\")","v":0},{"$f":"IFERROR('Data Input - Option 4'!AM86*INDEX('Energy Prices'!$F$19:$CR$24,MATCH($B96,'Energy Prices'!$C$19:$C$24,0),MATCH(Calc_Option4!AI$6,'Energy Prices'!$F$11:$CR$11,0))/100000,\"\")","v":""},{"$f":"IFERROR('Data Input - Option 4'!AN86*INDEX('Energy Prices'!$F$19:$CR$24,MATCH($B96,'Energy Prices'!$C$19:$C$24,0),MATCH(Calc_Option4!AJ$6,'Energy Prices'!$F$11:$CR$11,0))/100000,\"\")","v":""},{"$f":"IFERROR('Data Input - Option 4'!AO86*INDEX('Energy Prices'!$F$19:$CR$24,MATCH($B96,'Energy Prices'!$C$19:$C$24,0),MATCH(Calc_Option4!AK$6,'Energy Prices'!$F$11:$CR$11,0))/100000,\"\")","v":""},{"$f":"IFERROR('Data Input - Option 4'!AP86*INDEX('Energy Prices'!$F$19:$CR$24,MATCH($B96,'Energy Prices'!$C$19:$C$24,0),MATCH(Calc_Option4!AL$6,'Energy Prices'!$F$11:$CR$11,0))/100000,\"\")","v":""},{"$f":"IFERROR('Data Input - Option 4'!AQ86*INDEX('Energy Prices'!$F$19:$CR$24,MATCH($B96,'Energy Prices'!$C$19:$C$24,0),MATCH(Calc_Option4!AM$6,'Energy Prices'!$F$11:$CR$11,0))/100000,\"\")","v":""},{"$f":"IFERROR('Data Input - Option 4'!AR86*INDEX('Energy Prices'!$F$19:$CR$24,MATCH($B96,'Energy Prices'!$C$19:$C$24,0),MATCH(Calc_Option4!AN$6,'Energy Prices'!$F$11:$CR$11,0))/100000,\"\")","v":""},{"$f":"IFERROR('Data Input - Option 4'!AS86*INDEX('Energy Prices'!$F$19:$CR$24,MATCH($B96,'Energy Prices'!$C$19:$C$24,0),MATCH(Calc_Option4!AO$6,'Energy Prices'!$F$11:$CR$11,0))/100000,\"\")","v":""},{"$f":"IFERROR('Data Input - Option 4'!AT86*INDEX('Energy Prices'!$F$19:$CR$24,MATCH($B96,'Energy Prices'!$C$19:$C$24,0),MATCH(Calc_Option4!AP$6,'Energy Prices'!$F$11:$CR$11,0))/100000,\"\")","v":""},{"$f":"IFERROR('Data Input - Option 4'!AU86*INDEX('Energy Prices'!$F$19:$CR$24,MATCH($B96,'Energy Prices'!$C$19:$C$24,0),MATCH(Calc_Option4!AQ$6,'Energy Prices'!$F$11:$CR$11,0))/100000,\"\")","v":""},{"$f":"IFERROR('Data Input - Option 4'!AV86*INDEX('Energy Prices'!$F$19:$CR$24,MATCH($B96,'Energy Prices'!$C$19:$C$24,0),MATCH(Calc_Option4!AR$6,'Energy Prices'!$F$11:$CR$11,0))/100000,\"\")","v":""},{"$f":"IFERROR('Data Input - Option 4'!AW86*INDEX('Energy Prices'!$F$19:$CR$24,MATCH($B96,'Energy Prices'!$C$19:$C$24,0),MATCH(Calc_Option4!AS$6,'Energy Prices'!$F$11:$CR$11,0))/100000,\"\")","v":""},{"$f":"IFERROR('Data Input - Option 4'!AX86*INDEX('Energy Prices'!$F$19:$CR$24,MATCH($B96,'Energy Prices'!$C$19:$C$24,0),MATCH(Calc_Option4!AT$6,'Energy Prices'!$F$11:$CR$11,0))/100000,\"\")","v":""},{"$f":"IFERROR('Data Input - Option 4'!AY86*INDEX('Energy Prices'!$F$19:$CR$24,MATCH($B96,'Energy Prices'!$C$19:$C$24,0),MATCH(Calc_Option4!AU$6,'Energy Prices'!$F$11:$CR$11,0))/100000,\"\")","v":""},{"$f":"IFERROR('Data Input - Option 4'!AZ86*INDEX('Energy Prices'!$F$19:$CR$24,MATCH($B96,'Energy Prices'!$C$19:$C$24,0),MATCH(Calc_Option4!AV$6,'Energy Prices'!$F$11:$CR$11,0))/100000,\"\")","v":""},{"$f":"IFERROR('Data Input - Option 4'!BA86*INDEX('Energy Prices'!$F$19:$CR$24,MATCH($B96,'Energy Prices'!$C$19:$C$24,0),MATCH(Calc_Option4!AW$6,'Energy Prices'!$F$11:$CR$11,0))/100000,\"\")","v":""},{"$f":"IFERROR('Data Input - Option 4'!BB86*INDEX('Energy Prices'!$F$19:$CR$24,MATCH($B96,'Energy Prices'!$C$19:$C$24,0),MATCH(Calc_Option4!AX$6,'Energy Prices'!$F$11:$CR$11,0))/100000,\"\")","v":""},{"$f":"IFERROR('Data Input - Option 4'!BC86*INDEX('Energy Prices'!$F$19:$CR$24,MATCH($B96,'Energy Prices'!$C$19:$C$24,0),MATCH(Calc_Option4!AY$6,'Energy Prices'!$F$11:$CR$11,0))/100000,\"\")","v":""},{"$f":"IFERROR('Data Input - Option 4'!BD86*INDEX('Energy Prices'!$F$19:$CR$24,MATCH($B96,'Energy Prices'!$C$19:$C$24,0),MATCH(Calc_Option4!AZ$6,'Energy Prices'!$F$11:$CR$11,0))/100000,\"\")","v":""},{"$f":"IFERROR('Data Input - Option 4'!BE86*INDEX('Energy Prices'!$F$19:$CR$24,MATCH($B96,'Energy Prices'!$C$19:$C$24,0),MATCH(Calc_Option4!BA$6,'Energy Prices'!$F$11:$CR$11,0))/100000,\"\")","v":""},{"$f":"IFERROR('Data Input - Option 4'!BF86*INDEX('Energy Prices'!$F$19:$CR$24,MATCH($B96,'Energy Prices'!$C$19:$C$24,0),MATCH(Calc_Option4!BB$6,'Energy Prices'!$F$11:$CR$11,0))/100000,\"\")","v":""},{"$f":"IFERROR('Data Input - Option 4'!BG86*INDEX('Energy Prices'!$F$19:$CR$24,MATCH($B96,'Energy Prices'!$C$19:$C$24,0),MATCH(Calc_Option4!BC$6,'Energy Prices'!$F$11:$CR$11,0))/100000,\"\")","v":""},{"$f":"IFERROR('Data Input - Option 4'!BH86*INDEX('Energy Prices'!$F$19:$CR$24,MATCH($B96,'Energy Prices'!$C$19:$C$24,0),MATCH(Calc_Option4!BD$6,'Energy Prices'!$F$11:$CR$11,0))/100000,\"\")","v":""},{"$f":"IFERROR('Data Input - Option 4'!BI86*INDEX('Energy Prices'!$F$19:$CR$24,MATCH($B96,'Energy Prices'!$C$19:$C$24,0),MATCH(Calc_Option4!BE$6,'Energy Prices'!$F$11:$CR$11,0))/100000,\"\")","v":""},{"$f":"IFERROR('Data Input - Option 4'!BJ86*INDEX('Energy Prices'!$F$19:$CR$24,MATCH($B96,'Energy Prices'!$C$19:$C$24,0),MATCH(Calc_Option4!BF$6,'Energy Prices'!$F$11:$CR$11,0))/100000,\"\")","v":""},{"$f":"IFERROR('Data Input - Option 4'!BK86*INDEX('Energy Prices'!$F$19:$CR$24,MATCH($B96,'Energy Prices'!$C$19:$C$24,0),MATCH(Calc_Option4!BG$6,'Energy Prices'!$F$11:$CR$11,0))/100000,\"\")","v":""},{"$f":"IFERROR('Data Input - Option 4'!BL86*INDEX('Energy Prices'!$F$19:$CR$24,MATCH($B96,'Energy Prices'!$C$19:$C$24,0),MATCH(Calc_Option4!BH$6,'Energy Prices'!$F$11:$CR$11,0))/100000,\"\")","v":""},{"$f":"IFERROR('Data Input - Option 4'!BM86*INDEX('Energy Prices'!$F$19:$CR$24,MATCH($B96,'Energy Prices'!$C$19:$C$24,0),MATCH(Calc_Option4!BI$6,'Energy Prices'!$F$11:$CR$11,0))/100000,\"\")","v":""},{"$f":"IFERROR('Data Input - Option 4'!BN86*INDEX('Energy Prices'!$F$19:$CR$24,MATCH($B96,'Energy Prices'!$C$19:$C$24,0),MATCH(Calc_Option4!BJ$6,'Energy Prices'!$F$11:$CR$11,0))/100000,\"\")","v":""},{"$f":"IFERROR('Data Input - Option 4'!BO86*INDEX('Energy Prices'!$F$19:$CR$24,MATCH($B96,'Energy Prices'!$C$19:$C$24,0),MATCH(Calc_Option4!BK$6,'Energy Prices'!$F$11:$CR$11,0))/100000,\"\")","v":""},{"$f":"IFERROR('Data Input - Option 4'!BP86*INDEX('Energy Prices'!$F$19:$CR$24,MATCH($B96,'Energy Prices'!$C$19:$C$24,0),MATCH(Calc_Option4!BL$6,'Energy Prices'!$F$11:$CR$11,0))/100000,\"\")","v":""},{"$f":"IFERROR('Data Input - Option 4'!BQ86*INDEX('Energy Prices'!$F$19:$CR$24,MATCH($B96,'Energy Prices'!$C$19:$C$24,0),MATCH(Calc_Option4!BM$6,'Energy Prices'!$F$11:$CR$11,0))/100000,\"\")","v":""},{"$f":"IFERROR('Data Input - Option 4'!BR86*INDEX('Energy Prices'!$F$19:$CR$24,MATCH($B96,'Energy Prices'!$C$19:$C$24,0),MATCH(Calc_Option4!BN$6,'Energy Prices'!$F$11:$CR$11,0))/100000,\"\")","v":""},{"$f":"IFERROR('Data Input - Option 4'!BS86*INDEX('Energy Prices'!$F$19:$CR$24,MATCH($B96,'Energy Prices'!$C$19:$C$24,0),MATCH(Calc_Option4!BO$6,'Energy Prices'!$F$11:$CR$11,0))/100000,\"\")","v":""},{"$f":"IFERROR('Data Input - Option 4'!BT86*INDEX('Energy Prices'!$F$19:$CR$24,MATCH($B96,'Energy Prices'!$C$19:$C$24,0),MATCH(Calc_Option4!BP$6,'Energy Prices'!$F$11:$CR$11,0))/100000,\"\")","v":""},{"$f":"IFERROR('Data Input - Option 4'!BU86*INDEX('Energy Prices'!$F$19:$CR$24,MATCH($B96,'Energy Prices'!$C$19:$C$24,0),MATCH(Calc_Option4!BQ$6,'Energy Prices'!$F$11:$CR$11,0))/100000,\"\")","v":""},{"$f":"IFERROR('Data Input - Option 4'!BV86*INDEX('Energy Prices'!$F$19:$CR$24,MATCH($B96,'Energy Prices'!$C$19:$C$24,0),MATCH(Calc_Option4!BR$6,'Energy Prices'!$F$11:$CR$11,0))/100000,\"\")","v":""},{"$f":"IFERROR('Data Input - Option 4'!BW86*INDEX('Energy Prices'!$F$19:$CR$24,MATCH($B96,'Energy Prices'!$C$19:$C$24,0),MATCH(Calc_Option4!BS$6,'Energy Prices'!$F$11:$CR$11,0))/100000,\"\")","v":""},{"$f":"IFERROR('Data Input - Option 4'!BX86*INDEX('Energy Prices'!$F$19:$CR$24,MATCH($B96,'Energy Prices'!$C$19:$C$24,0),MATCH(Calc_Option4!BT$6,'Energy Prices'!$F$11:$CR$11,0))/100000,\"\")","v":""},{"$f":"IFERROR('Data Input - Option 4'!BY86*INDEX('Energy Prices'!$F$19:$CR$24,MATCH($B96,'Energy Prices'!$C$19:$C$24,0),MATCH(Calc_Option4!BU$6,'Energy Prices'!$F$11:$CR$11,0))/100000,\"\")","v":""},{"$f":"IFERROR('Data Input - Option 4'!BZ86*INDEX('Energy Prices'!$F$19:$CR$24,MATCH($B96,'Energy Prices'!$C$19:$C$24,0),MATCH(Calc_Option4!BV$6,'Energy Prices'!$F$11:$CR$11,0))/100000,\"\")","v":""},{"$f":"IFERROR('Data Input - Option 4'!CA86*INDEX('Energy Prices'!$F$19:$CR$24,MATCH($B96,'Energy Prices'!$C$19:$C$24,0),MATCH(Calc_Option4!BW$6,'Energy Prices'!$F$11:$CR$11,0))/100000,\"\")","v":""},{"$f":"IFERROR('Data Input - Option 4'!CB86*INDEX('Energy Prices'!$F$19:$CR$24,MATCH($B96,'Energy Prices'!$C$19:$C$24,0),MATCH(Calc_Option4!BX$6,'Energy Prices'!$F$11:$CR$11,0))/100000,\"\")","v":""},{"$f":"IFERROR('Data Input - Option 4'!CC86*INDEX('Energy Prices'!$F$19:$CR$24,MATCH($B96,'Energy Prices'!$C$19:$C$24,0),MATCH(Calc_Option4!BY$6,'Energy Prices'!$F$11:$CR$11,0))/100000,\"\")","v":""},{"$f":"IFERROR('Data Input - Option 4'!CD86*INDEX('Energy Prices'!$F$19:$CR$24,MATCH($B96,'Energy Prices'!$C$19:$C$24,0),MATCH(Calc_Option4!BZ$6,'Energy Prices'!$F$11:$CR$11,0))/100000,\"\")","v":""},{"$f":"IFERROR('Data Input - Option 4'!CE86*INDEX('Energy Prices'!$F$19:$CR$24,MATCH($B96,'Energy Prices'!$C$19:$C$24,0),MATCH(Calc_Option4!CA$6,'Energy Prices'!$F$11:$CR$11,0))/100000,\"\")","v":""},{"$f":"IFERROR('Data Input - Option 4'!CF86*INDEX('Energy Prices'!$F$19:$CR$24,MATCH($B96,'Energy Prices'!$C$19:$C$24,0),MATCH(Calc_Option4!CB$6,'Energy Prices'!$F$11:$CR$11,0))/100000,\"\")","v":""},{"$f":"IFERROR('Data Input - Option 4'!CG86*INDEX('Energy Prices'!$F$19:$CR$24,MATCH($B96,'Energy Prices'!$C$19:$C$24,0),MATCH(Calc_Option4!CC$6,'Energy Prices'!$F$11:$CR$11,0))/100000,\"\")","v":""},{"$f":"IFERROR('Data Input - Option 4'!CH86*INDEX('Energy Prices'!$F$19:$CR$24,MATCH($B96,'Energy Prices'!$C$19:$C$24,0),MATCH(Calc_Option4!CD$6,'Energy Prices'!$F$11:$CR$11,0))/100000,\"\")","v":""},{"$f":"IFERROR('Data Input - Option 4'!CI86*INDEX('Energy Prices'!$F$19:$CR$24,MATCH($B96,'Energy Prices'!$C$19:$C$24,0),MATCH(Calc_Option4!CE$6,'Energy Prices'!$F$11:$CR$11,0))/100000,\"\")","v":""},{"$f":"IFERROR('Data Input - Option 4'!CJ86*INDEX('Energy Prices'!$F$19:$CR$24,MATCH($B96,'Energy Prices'!$C$19:$C$24,0),MATCH(Calc_Option4!CF$6,'Energy Prices'!$F$11:$CR$11,0))/100000,\"\")","v":""},{"$f":"IFERROR('Data Input - Option 4'!CK86*INDEX('Energy Prices'!$F$19:$CR$24,MATCH($B96,'Energy Prices'!$C$19:$C$24,0),MATCH(Calc_Option4!CG$6,'Energy Prices'!$F$11:$CR$11,0))/100000,\"\")","v":""},{"$f":"IFERROR('Data Input - Option 4'!CL86*INDEX('Energy Prices'!$F$19:$CR$24,MATCH($B96,'Energy Prices'!$C$19:$C$24,0),MATCH(Calc_Option4!CH$6,'Energy Prices'!$F$11:$CR$11,0))/100000,\"\")","v":""},{"$f":"IFERROR('Data Input - Option 4'!CM86*INDEX('Energy Prices'!$F$19:$CR$24,MATCH($B96,'Energy Prices'!$C$19:$C$24,0),MATCH(Calc_Option4!CI$6,'Energy Prices'!$F$11:$CR$11,0))/100000,\"\")","v":""},{"$f":"IFERROR('Data Input - Option 4'!CN86*INDEX('Energy Prices'!$F$19:$CR$24,MATCH($B96,'Energy Prices'!$C$19:$C$24,0),MATCH(Calc_Option4!CJ$6,'Energy Prices'!$F$11:$CR$11,0))/100000,\"\")","v":""},{"$f":"IFERROR('Data Input - Option 4'!CO86*INDEX('Energy Prices'!$F$19:$CR$24,MATCH($B96,'Energy Prices'!$C$19:$C$24,0),MATCH(Calc_Option4!CK$6,'Energy Prices'!$F$11:$CR$11,0))/100000,\"\")","v":""},{"$f":"IFERROR('Data Input - Option 4'!CP86*INDEX('Energy Prices'!$F$19:$CR$24,MATCH($B96,'Energy Prices'!$C$19:$C$24,0),MATCH(Calc_Option4!CL$6,'Energy Prices'!$F$11:$CR$11,0))/100000,\"\")","v":""},{"$f":"IFERROR('Data Input - Option 4'!CQ86*INDEX('Energy Prices'!$F$19:$CR$24,MATCH($B96,'Energy Prices'!$C$19:$C$24,0),MATCH(Calc_Option4!CM$6,'Energy Prices'!$F$11:$CR$11,0))/100000,\"\")","v":""},{"$f":"IFERROR('Data Input - Option 4'!CR86*INDEX('Energy Prices'!$F$19:$CR$24,MATCH($B96,'Energy Prices'!$C$19:$C$24,0),MATCH(Calc_Option4!CN$6,'Energy Prices'!$F$11:$CR$11,0))/100000,\"\")","v":""},{"$f":"IFERROR('Data Input - Option 4'!CS86*INDEX('Energy Prices'!$F$19:$CR$24,MATCH($B96,'Energy Prices'!$C$19:$C$24,0),MATCH(Calc_Option4!CO$6,'Energy Prices'!$F$11:$CR$11,0))/100000,\"\")","v":""},{"$f":"IFERROR('Data Input - Option 4'!CT86*INDEX('Energy Prices'!$F$19:$CR$24,MATCH($B96,'Energy Prices'!$C$19:$C$24,0),MATCH(Calc_Option4!CP$6,'Energy Prices'!$F$11:$CR$11,0))/100000,\"\")","v":""},{"$f":"IFERROR('Data Input - Option 4'!CU86*INDEX('Energy Prices'!$F$19:$CR$24,MATCH($B96,'Energy Prices'!$C$19:$C$24,0),MATCH(Calc_Option4!CQ$6,'Energy Prices'!$F$11:$CR$11,0))/100000,\"\")","v":""},{"$f":"IFERROR('Data Input - Option 4'!CV86*INDEX('Energy Prices'!$F$19:$CR$24,MATCH($B96,'Energy Prices'!$C$19:$C$24,0),MATCH(Calc_Option4!CR$6,'Energy Prices'!$F$11:$CR$11,0))/100000,\"\")","v":""},{"$f":"IFERROR('Data Input - Option 4'!CW86*INDEX('Energy Prices'!$F$19:$CR$24,MATCH($B96,'Energy Prices'!$C$19:$C$24,0),MATCH(Calc_Option4!CS$6,'Energy Prices'!$F$11:$CR$11,0))/100000,\"\")","v":""},{"$f":"IFERROR('Data Input - Option 4'!CX86*INDEX('Energy Prices'!$F$19:$CR$24,MATCH($B96,'Energy Prices'!$C$19:$C$24,0),MATCH(Calc_Option4!CT$6,'Energy Prices'!$F$11:$CR$11,0))/100000,\"\")","v":""},{"$f":"IFERROR('Data Input - Option 4'!CY86*INDEX('Energy Prices'!$F$19:$CR$24,MATCH($B96,'Energy Prices'!$C$19:$C$24,0),MATCH(Calc_Option4!CU$6,'Energy Prices'!$F$11:$CR$11,0))/100000,\"\")","v":""},{"$f":"IFERROR('Data Input - Option 4'!CZ86*INDEX('Energy Prices'!$F$19:$CR$24,MATCH($B96,'Energy Prices'!$C$19:$C$24,0),MATCH(Calc_Option4!CV$6,'Energy Prices'!$F$11:$CR$11,0))/100000,\"\")","v":""},{"$f":"IFERROR('Data Input - Option 4'!DA86*INDEX('Energy Prices'!$F$19:$CR$24,MATCH($B96,'Energy Prices'!$C$19:$C$24,0),MATCH(Calc_Option4!CW$6,'Energy Prices'!$F$11:$CR$11,0))/100000,\"\")","v":""},{"$f":"IFERROR('Data Input - Option 4'!DB86*INDEX('Energy Prices'!$F$19:$CR$24,MATCH($B96,'Energy Prices'!$C$19:$C$24,0),MATCH(Calc_Option4!CX$6,'Energy Prices'!$F$11:$CR$11,0))/100000,\"\")","v":""},{"$f":"IFERROR('Data Input - Option 4'!DC86*INDEX('Energy Prices'!$F$19:$CR$24,MATCH($B96,'Energy Prices'!$C$19:$C$24,0),MATCH(Calc_Option4!CY$6,'Energy Prices'!$F$11:$CR$11,0))/100000,\"\")","v":""}]
[null,"Gas Oil","£000's",{"$f":"IFERROR('Data Input - Option 4'!H87*INDEX('Energy Prices'!$F$19:$CR$24,MATCH($B97,'Energy Prices'!$C$19:$C$24,0),MATCH(Calc_Option4!D$6,'Energy Prices'!$F$11:$CR$11,0))/100000,\"\")","v":2.7833124479980059E-4},{"$f":"IFERROR('Data Input - Option 4'!I87*INDEX('Energy Prices'!$F$19:$CR$24,MATCH($B97,'Energy Prices'!$C$19:$C$24,0),MATCH(Calc_Option4!E$6,'Energy Prices'!$F$11:$CR$11,0))/100000,\"\")","v":0},{"$f":"IFERROR('Data Input - Option 4'!J87*INDEX('Energy Prices'!$F$19:$CR$24,MATCH($B97,'Energy Prices'!$C$19:$C$24,0),MATCH(Calc_Option4!F$6,'Energy Prices'!$F$11:$CR$11,0))/100000,\"\")","v":0},{"$f":"IFERROR('Data Input - Option 4'!K87*INDEX('Energy Prices'!$F$19:$CR$24,MATCH($B97,'Energy Prices'!$C$19:$C$24,0),MATCH(Calc_Option4!G$6,'Energy Prices'!$F$11:$CR$11,0))/100000,\"\")","v":0},{"$f":"IFERROR('Data Input - Option 4'!L87*INDEX('Energy Prices'!$F$19:$CR$24,MATCH($B97,'Energy Prices'!$C$19:$C$24,0),MATCH(Calc_Option4!H$6,'Energy Prices'!$F$11:$CR$11,0))/100000,\"\")","v":0},{"$f":"IFERROR('Data Input - Option 4'!M87*INDEX('Energy Prices'!$F$19:$CR$24,MATCH($B97,'Energy Prices'!$C$19:$C$24,0),MATCH(Calc_Option4!I$6,'Energy Prices'!$F$11:$CR$11,0))/100000,\"\")","v":0},{"$f":"IFERROR('Data Input - Option 4'!N87*INDEX('Energy Prices'!$F$19:$CR$24,MATCH($B97,'Energy Prices'!$C$19:$C$24,0),MATCH(Calc_Option4!J$6,'Energy Prices'!$F$11:$CR$11,0))/100000,\"\")","v":0},{"$f":"IFERROR('Data Input - Option 4'!O87*INDEX('Energy Prices'!$F$19:$CR$24,MATCH($B97,'Energy Prices'!$C$19:$C$24,0),MATCH(Calc_Option4!K$6,'Energy Prices'!$F$11:$CR$11,0))/100000,\"\")","v":0},{"$f":"IFERROR('Data Input - Option 4'!P87*INDEX('Energy Prices'!$F$19:$CR$24,MATCH($B97,'Energy Prices'!$C$19:$C$24,0),MATCH(Calc_Option4!L$6,'Energy Prices'!$F$11:$CR$11,0))/100000,\"\")","v":0},{"$f":"IFERROR('Data Input - Option 4'!Q87*INDEX('Energy Prices'!$F$19:$CR$24,MATCH($B97,'Energy Prices'!$C$19:$C$24,0),MATCH(Calc_Option4!M$6,'Energy Prices'!$F$11:$CR$11,0))/100000,\"\")","v":0},{"$f":"IFERROR('Data Input - Option 4'!R87*INDEX('Energy Prices'!$F$19:$CR$24,MATCH($B97,'Energy Prices'!$C$19:$C$24,0),MATCH(Calc_Option4!N$6,'Energy Prices'!$F$11:$CR$11,0))/100000,\"\")","v":0},{"$f":"IFERROR('Data Input - Option 4'!S87*INDEX('Energy Prices'!$F$19:$CR$24,MATCH($B97,'Energy Prices'!$C$19:$C$24,0),MATCH(Calc_Option4!O$6,'Energy Prices'!$F$11:$CR$11,0))/100000,\"\")","v":0},{"$f":"IFERROR('Data Input - Option 4'!T87*INDEX('Energy Prices'!$F$19:$CR$24,MATCH($B97,'Energy Prices'!$C$19:$C$24,0),MATCH(Calc_Option4!P$6,'Energy Prices'!$F$11:$CR$11,0))/100000,\"\")","v":0},{"$f":"IFERROR('Data Input - Option 4'!U87*INDEX('Energy Prices'!$F$19:$CR$24,MATCH($B97,'Energy Prices'!$C$19:$C$24,0),MATCH(Calc_Option4!Q$6,'Energy Prices'!$F$11:$CR$11,0))/100000,\"\")","v":0},{"$f":"IFERROR('Data Input - Option 4'!V87*INDEX('Energy Prices'!$F$19:$CR$24,MATCH($B97,'Energy Prices'!$C$19:$C$24,0),MATCH(Calc_Option4!R$6,'Energy Prices'!$F$11:$CR$11,0))/100000,\"\")","v":0},{"$f":"IFERROR('Data Input - Option 4'!W87*INDEX('Energy Prices'!$F$19:$CR$24,MATCH($B97,'Energy Prices'!$C$19:$C$24,0),MATCH(Calc_Option4!S$6,'Energy Prices'!$F$11:$CR$11,0))/100000,\"\")","v":0},{"$f":"IFERROR('Data Input - Option 4'!X87*INDEX('Energy Prices'!$F$19:$CR$24,MATCH($B97,'Energy Prices'!$C$19:$C$24,0),MATCH(Calc_Option4!T$6,'Energy Prices'!$F$11:$CR$11,0))/100000,\"\")","v":0},{"$f":"IFERROR('Data Input - Option 4'!Y87*INDEX('Energy Prices'!$F$19:$CR$24,MATCH($B97,'Energy Prices'!$C$19:$C$24,0),MATCH(Calc_Option4!U$6,'Energy Prices'!$F$11:$CR$11,0))/100000,\"\")","v":0},{"$f":"IFERROR('Data Input - Option 4'!Z87*INDEX('Energy Prices'!$F$19:$CR$24,MATCH($B97,'Energy Prices'!$C$19:$C$24,0),MATCH(Calc_Option4!V$6,'Energy Prices'!$F$11:$CR$11,0))/100000,\"\")","v":0},{"$f":"IFERROR('Data Input - Option 4'!AA87*INDEX('Energy Prices'!$F$19:$CR$24,MATCH($B97,'Energy Prices'!$C$19:$C$24,0),MATCH(Calc_Option4!W$6,'Energy Prices'!$F$11:$CR$11,0))/100000,\"\")","v":0},{"$f":"IFERROR('Data Input - Option 4'!AB87*INDEX('Energy Prices'!$F$19:$CR$24,MATCH($B97,'Energy Prices'!$C$19:$C$24,0),MATCH(Calc_Option4!X$6,'Energy Prices'!$F$11:$CR$11,0))/100000,\"\")","v":0},{"$f":"IFERROR('Data Input - Option 4'!AC87*INDEX('Energy Prices'!$F$19:$CR$24,MATCH($B97,'Energy Prices'!$C$19:$C$24,0),MATCH(Calc_Option4!Y$6,'Energy Prices'!$F$11:$CR$11,0))/100000,\"\")","v":0},{"$f":"IFERROR('Data Input - Option 4'!AD87*INDEX('Energy Prices'!$F$19:$CR$24,MATCH($B97,'Energy Prices'!$C$19:$C$24,0),MATCH(Calc_Option4!Z$6,'Energy Prices'!$F$11:$CR$11,0))/100000,\"\")","v":0},{"$f":"IFERROR('Data Input - Option 4'!AE87*INDEX('Energy Prices'!$F$19:$CR$24,MATCH($B97,'Energy Prices'!$C$19:$C$24,0),MATCH(Calc_Option4!AA$6,'Energy Prices'!$F$11:$CR$11,0))/100000,\"\")","v":0},{"$f":"IFERROR('Data Input - Option 4'!AF87*INDEX('Energy Prices'!$F$19:$CR$24,MATCH($B97,'Energy Prices'!$C$19:$C$24,0),MATCH(Calc_Option4!AB$6,'Energy Prices'!$F$11:$CR$11,0))/100000,\"\")","v":0},{"$f":"IFERROR('Data Input - Option 4'!AG87*INDEX('Energy Prices'!$F$19:$CR$24,MATCH($B97,'Energy Prices'!$C$19:$C$24,0),MATCH(Calc_Option4!AC$6,'Energy Prices'!$F$11:$CR$11,0))/100000,\"\")","v":0},{"$f":"IFERROR('Data Input - Option 4'!AH87*INDEX('Energy Prices'!$F$19:$CR$24,MATCH($B97,'Energy Prices'!$C$19:$C$24,0),MATCH(Calc_Option4!AD$6,'Energy Prices'!$F$11:$CR$11,0))/100000,\"\")","v":0},{"$f":"IFERROR('Data Input - Option 4'!AI87*INDEX('Energy Prices'!$F$19:$CR$24,MATCH($B97,'Energy Prices'!$C$19:$C$24,0),MATCH(Calc_Option4!AE$6,'Energy Prices'!$F$11:$CR$11,0))/100000,\"\")","v":0},{"$f":"IFERROR('Data Input - Option 4'!AJ87*INDEX('Energy Prices'!$F$19:$CR$24,MATCH($B97,'Energy Prices'!$C$19:$C$24,0),MATCH(Calc_Option4!AF$6,'Energy Prices'!$F$11:$CR$11,0))/100000,\"\")","v":0},{"$f":"IFERROR('Data Input - Option 4'!AK87*INDEX('Energy Prices'!$F$19:$CR$24,MATCH($B97,'Energy Prices'!$C$19:$C$24,0),MATCH(Calc_Option4!AG$6,'Energy Prices'!$F$11:$CR$11,0))/100000,\"\")","v":0},{"$f":"IFERROR('Data Input - Option 4'!AL87*INDEX('Energy Prices'!$F$19:$CR$24,MATCH($B97,'Energy Prices'!$C$19:$C$24,0),MATCH(Calc_Option4!AH$6,'Energy Prices'!$F$11:$CR$11,0))/100000,\"\")","v":0},{"$f":"IFERROR('Data Input - Option 4'!AM87*INDEX('Energy Prices'!$F$19:$CR$24,MATCH($B97,'Energy Prices'!$C$19:$C$24,0),MATCH(Calc_Option4!AI$6,'Energy Prices'!$F$11:$CR$11,0))/100000,\"\")","v":""},{"$f":"IFERROR('Data Input - Option 4'!AN87*INDEX('Energy Prices'!$F$19:$CR$24,MATCH($B97,'Energy Prices'!$C$19:$C$24,0),MATCH(Calc_Option4!AJ$6,'Energy Prices'!$F$11:$CR$11,0))/100000,\"\")","v":""},{"$f":"IFERROR('Data Input - Option 4'!AO87*INDEX('Energy Prices'!$F$19:$CR$24,MATCH($B97,'Energy Prices'!$C$19:$C$24,0),MATCH(Calc_Option4!AK$6,'Energy Prices'!$F$11:$CR$11,0))/100000,\"\")","v":""},{"$f":"IFERROR('Data Input - Option 4'!AP87*INDEX('Energy Prices'!$F$19:$CR$24,MATCH($B97,'Energy Prices'!$C$19:$C$24,0),MATCH(Calc_Option4!AL$6,'Energy Prices'!$F$11:$CR$11,0))/100000,\"\")","v":""},{"$f":"IFERROR('Data Input - Option 4'!AQ87*INDEX('Energy Prices'!$F$19:$CR$24,MATCH($B97,'Energy Prices'!$C$19:$C$24,0),MATCH(Calc_Option4!AM$6,'Energy Prices'!$F$11:$CR$11,0))/100000,\"\")","v":""},{"$f":"IFERROR('Data Input - Option 4'!AR87*INDEX('Energy Prices'!$F$19:$CR$24,MATCH($B97,'Energy Prices'!$C$19:$C$24,0),MATCH(Calc_Option4!AN$6,'Energy Prices'!$F$11:$CR$11,0))/100000,\"\")","v":""},{"$f":"IFERROR('Data Input - Option 4'!AS87*INDEX('Energy Prices'!$F$19:$CR$24,MATCH($B97,'Energy Prices'!$C$19:$C$24,0),MATCH(Calc_Option4!AO$6,'Energy Prices'!$F$11:$CR$11,0))/100000,\"\")","v":""},{"$f":"IFERROR('Data Input - Option 4'!AT87*INDEX('Energy Prices'!$F$19:$CR$24,MATCH($B97,'Energy Prices'!$C$19:$C$24,0),MATCH(Calc_Option4!AP$6,'Energy Prices'!$F$11:$CR$11,0))/100000,\"\")","v":""},{"$f":"IFERROR('Data Input - Option 4'!AU87*INDEX('Energy Prices'!$F$19:$CR$24,MATCH($B97,'Energy Prices'!$C$19:$C$24,0),MATCH(Calc_Option4!AQ$6,'Energy Prices'!$F$11:$CR$11,0))/100000,\"\")","v":""},{"$f":"IFERROR('Data Input - Option 4'!AV87*INDEX('Energy Prices'!$F$19:$CR$24,MATCH($B97,'Energy Prices'!$C$19:$C$24,0),MATCH(Calc_Option4!AR$6,'Energy Prices'!$F$11:$CR$11,0))/100000,\"\")","v":""},{"$f":"IFERROR('Data Input - Option 4'!AW87*INDEX('Energy Prices'!$F$19:$CR$24,MATCH($B97,'Energy Prices'!$C$19:$C$24,0),MATCH(Calc_Option4!AS$6,'Energy Prices'!$F$11:$CR$11,0))/100000,\"\")","v":""},{"$f":"IFERROR('Data Input - Option 4'!AX87*INDEX('Energy Prices'!$F$19:$CR$24,MATCH($B97,'Energy Prices'!$C$19:$C$24,0),MATCH(Calc_Option4!AT$6,'Energy Prices'!$F$11:$CR$11,0))/100000,\"\")","v":""},{"$f":"IFERROR('Data Input - Option 4'!AY87*INDEX('Energy Prices'!$F$19:$CR$24,MATCH($B97,'Energy Prices'!$C$19:$C$24,0),MATCH(Calc_Option4!AU$6,'Energy Prices'!$F$11:$CR$11,0))/100000,\"\")","v":""},{"$f":"IFERROR('Data Input - Option 4'!AZ87*INDEX('Energy Prices'!$F$19:$CR$24,MATCH($B97,'Energy Prices'!$C$19:$C$24,0),MATCH(Calc_Option4!AV$6,'Energy Prices'!$F$11:$CR$11,0))/100000,\"\")","v":""},{"$f":"IFERROR('Data Input - Option 4'!BA87*INDEX('Energy Prices'!$F$19:$CR$24,MATCH($B97,'Energy Prices'!$C$19:$C$24,0),MATCH(Calc_Option4!AW$6,'Energy Prices'!$F$11:$CR$11,0))/100000,\"\")","v":""},{"$f":"IFERROR('Data Input - Option 4'!BB87*INDEX('Energy Prices'!$F$19:$CR$24,MATCH($B97,'Energy Prices'!$C$19:$C$24,0),MATCH(Calc_Option4!AX$6,'Energy Prices'!$F$11:$CR$11,0))/100000,\"\")","v":""},{"$f":"IFERROR('Data Input - Option 4'!BC87*INDEX('Energy Prices'!$F$19:$CR$24,MATCH($B97,'Energy Prices'!$C$19:$C$24,0),MATCH(Calc_Option4!AY$6,'Energy Prices'!$F$11:$CR$11,0))/100000,\"\")","v":""},{"$f":"IFERROR('Data Input - Option 4'!BD87*INDEX('Energy Prices'!$F$19:$CR$24,MATCH($B97,'Energy Prices'!$C$19:$C$24,0),MATCH(Calc_Option4!AZ$6,'Energy Prices'!$F$11:$CR$11,0))/100000,\"\")","v":""},{"$f":"IFERROR('Data Input - Option 4'!BE87*INDEX('Energy Prices'!$F$19:$CR$24,MATCH($B97,'Energy Prices'!$C$19:$C$24,0),MATCH(Calc_Option4!BA$6,'Energy Prices'!$F$11:$CR$11,0))/100000,\"\")","v":""},{"$f":"IFERROR('Data Input - Option 4'!BF87*INDEX('Energy Prices'!$F$19:$CR$24,MATCH($B97,'Energy Prices'!$C$19:$C$24,0),MATCH(Calc_Option4!BB$6,'Energy Prices'!$F$11:$CR$11,0))/100000,\"\")","v":""},{"$f":"IFERROR('Data Input - Option 4'!BG87*INDEX('Energy Prices'!$F$19:$CR$24,MATCH($B97,'Energy Prices'!$C$19:$C$24,0),MATCH(Calc_Option4!BC$6,'Energy Prices'!$F$11:$CR$11,0))/100000,\"\")","v":""},{"$f":"IFERROR('Data Input - Option 4'!BH87*INDEX('Energy Prices'!$F$19:$CR$24,MATCH($B97,'Energy Prices'!$C$19:$C$24,0),MATCH(Calc_Option4!BD$6,'Energy Prices'!$F$11:$CR$11,0))/100000,\"\")","v":""},{"$f":"IFERROR('Data Input - Option 4'!BI87*INDEX('Energy Prices'!$F$19:$CR$24,MATCH($B97,'Energy Prices'!$C$19:$C$24,0),MATCH(Calc_Option4!BE$6,'Energy Prices'!$F$11:$CR$11,0))/100000,\"\")","v":""},{"$f":"IFERROR('Data Input - Option 4'!BJ87*INDEX('Energy Prices'!$F$19:$CR$24,MATCH($B97,'Energy Prices'!$C$19:$C$24,0),MATCH(Calc_Option4!BF$6,'Energy Prices'!$F$11:$CR$11,0))/100000,\"\")","v":""},{"$f":"IFERROR('Data Input - Option 4'!BK87*INDEX('Energy Prices'!$F$19:$CR$24,MATCH($B97,'Energy Prices'!$C$19:$C$24,0),MATCH(Calc_Option4!BG$6,'Energy Prices'!$F$11:$CR$11,0))/100000,\"\")","v":""},{"$f":"IFERROR('Data Input - Option 4'!BL87*INDEX('Energy Prices'!$F$19:$CR$24,MATCH($B97,'Energy Prices'!$C$19:$C$24,0),MATCH(Calc_Option4!BH$6,'Energy Prices'!$F$11:$CR$11,0))/100000,\"\")","v":""},{"$f":"IFERROR('Data Input - Option 4'!BM87*INDEX('Energy Prices'!$F$19:$CR$24,MATCH($B97,'Energy Prices'!$C$19:$C$24,0),MATCH(Calc_Option4!BI$6,'Energy Prices'!$F$11:$CR$11,0))/100000,\"\")","v":""},{"$f":"IFERROR('Data Input - Option 4'!BN87*INDEX('Energy Prices'!$F$19:$CR$24,MATCH($B97,'Energy Prices'!$C$19:$C$24,0),MATCH(Calc_Option4!BJ$6,'Energy Prices'!$F$11:$CR$11,0))/100000,\"\")","v":""},{"$f":"IFERROR('Data Input - Option 4'!BO87*INDEX('Energy Prices'!$F$19:$CR$24,MATCH($B97,'Energy Prices'!$C$19:$C$24,0),MATCH(Calc_Option4!BK$6,'Energy Prices'!$F$11:$CR$11,0))/100000,\"\")","v":""},{"$f":"IFERROR('Data Input - Option 4'!BP87*INDEX('Energy Prices'!$F$19:$CR$24,MATCH($B97,'Energy Prices'!$C$19:$C$24,0),MATCH(Calc_Option4!BL$6,'Energy Prices'!$F$11:$CR$11,0))/100000,\"\")","v":""},{"$f":"IFERROR('Data Input - Option 4'!BQ87*INDEX('Energy Prices'!$F$19:$CR$24,MATCH($B97,'Energy Prices'!$C$19:$C$24,0),MATCH(Calc_Option4!BM$6,'Energy Prices'!$F$11:$CR$11,0))/100000,\"\")","v":""},{"$f":"IFERROR('Data Input - Option 4'!BR87*INDEX('Energy Prices'!$F$19:$CR$24,MATCH($B97,'Energy Prices'!$C$19:$C$24,0),MATCH(Calc_Option4!BN$6,'Energy Prices'!$F$11:$CR$11,0))/100000,\"\")","v":""},{"$f":"IFERROR('Data Input - Option 4'!BS87*INDEX('Energy Prices'!$F$19:$CR$24,MATCH($B97,'Energy Prices'!$C$19:$C$24,0),MATCH(Calc_Option4!BO$6,'Energy Prices'!$F$11:$CR$11,0))/100000,\"\")","v":""},{"$f":"IFERROR('Data Input - Option 4'!BT87*INDEX('Energy Prices'!$F$19:$CR$24,MATCH($B97,'Energy Prices'!$C$19:$C$24,0),MATCH(Calc_Option4!BP$6,'Energy Prices'!$F$11:$CR$11,0))/100000,\"\")","v":""},{"$f":"IFERROR('Data Input - Option 4'!BU87*INDEX('Energy Prices'!$F$19:$CR$24,MATCH($B97,'Energy Prices'!$C$19:$C$24,0),MATCH(Calc_Option4!BQ$6,'Energy Prices'!$F$11:$CR$11,0))/100000,\"\")","v":""},{"$f":"IFERROR('Data Input - Option 4'!BV87*INDEX('Energy Prices'!$F$19:$CR$24,MATCH($B97,'Energy Prices'!$C$19:$C$24,0),MATCH(Calc_Option4!BR$6,'Energy Prices'!$F$11:$CR$11,0))/100000,\"\")","v":""},{"$f":"IFERROR('Data Input - Option 4'!BW87*INDEX('Energy Prices'!$F$19:$CR$24,MATCH($B97,'Energy Prices'!$C$19:$C$24,0),MATCH(Calc_Option4!BS$6,'Energy Prices'!$F$11:$CR$11,0))/100000,\"\")","v":""},{"$f":"IFERROR('Data Input - Option 4'!BX87*INDEX('Energy Prices'!$F$19:$CR$24,MATCH($B97,'Energy Prices'!$C$19:$C$24,0),MATCH(Calc_Option4!BT$6,'Energy Prices'!$F$11:$CR$11,0))/100000,\"\")","v":""},{"$f":"IFERROR('Data Input - Option 4'!BY87*INDEX('Energy Prices'!$F$19:$CR$24,MATCH($B97,'Energy Prices'!$C$19:$C$24,0),MATCH(Calc_Option4!BU$6,'Energy Prices'!$F$11:$CR$11,0))/100000,\"\")","v":""},{"$f":"IFERROR('Data Input - Option 4'!BZ87*INDEX('Energy Prices'!$F$19:$CR$24,MATCH($B97,'Energy Prices'!$C$19:$C$24,0),MATCH(Calc_Option4!BV$6,'Energy Prices'!$F$11:$CR$11,0))/100000,\"\")","v":""},{"$f":"IFERROR('Data Input - Option 4'!CA87*INDEX('Energy Prices'!$F$19:$CR$24,MATCH($B97,'Energy Prices'!$C$19:$C$24,0),MATCH(Calc_Option4!BW$6,'Energy Prices'!$F$11:$CR$11,0))/100000,\"\")","v":""},{"$f":"IFERROR('Data Input - Option 4'!CB87*INDEX('Energy Prices'!$F$19:$CR$24,MATCH($B97,'Energy Prices'!$C$19:$C$24,0),MATCH(Calc_Option4!BX$6,'Energy Prices'!$F$11:$CR$11,0))/100000,\"\")","v":""},{"$f":"IFERROR('Data Input - Option 4'!CC87*INDEX('Energy Prices'!$F$19:$CR$24,MATCH($B97,'Energy Prices'!$C$19:$C$24,0),MATCH(Calc_Option4!BY$6,'Energy Prices'!$F$11:$CR$11,0))/100000,\"\")","v":""},{"$f":"IFERROR('Data Input - Option 4'!CD87*INDEX('Energy Prices'!$F$19:$CR$24,MATCH($B97,'Energy Prices'!$C$19:$C$24,0),MATCH(Calc_Option4!BZ$6,'Energy Prices'!$F$11:$CR$11,0))/100000,\"\")","v":""},{"$f":"IFERROR('Data Input - Option 4'!CE87*INDEX('Energy Prices'!$F$19:$CR$24,MATCH($B97,'Energy Prices'!$C$19:$C$24,0),MATCH(Calc_Option4!CA$6,'Energy Prices'!$F$11:$CR$11,0))/100000,\"\")","v":""},{"$f":"IFERROR('Data Input - Option 4'!CF87*INDEX('Energy Prices'!$F$19:$CR$24,MATCH($B97,'Energy Prices'!$C$19:$C$24,0),MATCH(Calc_Option4!CB$6,'Energy Prices'!$F$11:$CR$11,0))/100000,\"\")","v":""},{"$f":"IFERROR('Data Input - Option 4'!CG87*INDEX('Energy Prices'!$F$19:$CR$24,MATCH($B97,'Energy Prices'!$C$19:$C$24,0),MATCH(Calc_Option4!CC$6,'Energy Prices'!$F$11:$CR$11,0))/100000,\"\")","v":""},{"$f":"IFERROR('Data Input - Option 4'!CH87*INDEX('Energy Prices'!$F$19:$CR$24,MATCH($B97,'Energy Prices'!$C$19:$C$24,0),MATCH(Calc_Option4!CD$6,'Energy Prices'!$F$11:$CR$11,0))/100000,\"\")","v":""},{"$f":"IFERROR('Data Input - Option 4'!CI87*INDEX('Energy Prices'!$F$19:$CR$24,MATCH($B97,'Energy Prices'!$C$19:$C$24,0),MATCH(Calc_Option4!CE$6,'Energy Prices'!$F$11:$CR$11,0))/100000,\"\")","v":""},{"$f":"IFERROR('Data Input - Option 4'!CJ87*INDEX('Energy Prices'!$F$19:$CR$24,MATCH($B97,'Energy Prices'!$C$19:$C$24,0),MATCH(Calc_Option4!CF$6,'Energy Prices'!$F$11:$CR$11,0))/100000,\"\")","v":""},{"$f":"IFERROR('Data Input - Option 4'!CK87*INDEX('Energy Prices'!$F$19:$CR$24,MATCH($B97,'Energy Prices'!$C$19:$C$24,0),MATCH(Calc_Option4!CG$6,'Energy Prices'!$F$11:$CR$11,0))/100000,\"\")","v":""},{"$f":"IFERROR('Data Input - Option 4'!CL87*INDEX('Energy Prices'!$F$19:$CR$24,MATCH($B97,'Energy Prices'!$C$19:$C$24,0),MATCH(Calc_Option4!CH$6,'Energy Prices'!$F$11:$CR$11,0))/100000,\"\")","v":""},{"$f":"IFERROR('Data Input - Option 4'!CM87*INDEX('Energy Prices'!$F$19:$CR$24,MATCH($B97,'Energy Prices'!$C$19:$C$24,0),MATCH(Calc_Option4!CI$6,'Energy Prices'!$F$11:$CR$11,0))/100000,\"\")","v":""},{"$f":"IFERROR('Data Input - Option 4'!CN87*INDEX('Energy Prices'!$F$19:$CR$24,MATCH($B97,'Energy Prices'!$C$19:$C$24,0),MATCH(Calc_Option4!CJ$6,'Energy Prices'!$F$11:$CR$11,0))/100000,\"\")","v":""},{"$f":"IFERROR('Data Input - Option 4'!CO87*INDEX('Energy Prices'!$F$19:$CR$24,MATCH($B97,'Energy Prices'!$C$19:$C$24,0),MATCH(Calc_Option4!CK$6,'Energy Prices'!$F$11:$CR$11,0))/100000,\"\")","v":""},{"$f":"IFERROR('Data Input - Option 4'!CP87*INDEX('Energy Prices'!$F$19:$CR$24,MATCH($B97,'Energy Prices'!$C$19:$C$24,0),MATCH(Calc_Option4!CL$6,'Energy Prices'!$F$11:$CR$11,0))/100000,\"\")","v":""},{"$f":"IFERROR('Data Input - Option 4'!CQ87*INDEX('Energy Prices'!$F$19:$CR$24,MATCH($B97,'Energy Prices'!$C$19:$C$24,0),MATCH(Calc_Option4!CM$6,'Energy Prices'!$F$11:$CR$11,0))/100000,\"\")","v":""},{"$f":"IFERROR('Data Input - Option 4'!CR87*INDEX('Energy Prices'!$F$19:$CR$24,MATCH($B97,'Energy Prices'!$C$19:$C$24,0),MATCH(Calc_Option4!CN$6,'Energy Prices'!$F$11:$CR$11,0))/100000,\"\")","v":""},{"$f":"IFERROR('Data Input - Option 4'!CS87*INDEX('Energy Prices'!$F$19:$CR$24,MATCH($B97,'Energy Prices'!$C$19:$C$24,0),MATCH(Calc_Option4!CO$6,'Energy Prices'!$F$11:$CR$11,0))/100000,\"\")","v":""},{"$f":"IFERROR('Data Input - Option 4'!CT87*INDEX('Energy Prices'!$F$19:$CR$24,MATCH($B97,'Energy Prices'!$C$19:$C$24,0),MATCH(Calc_Option4!CP$6,'Energy Prices'!$F$11:$CR$11,0))/100000,\"\")","v":""},{"$f":"IFERROR('Data Input - Option 4'!CU87*INDEX('Energy Prices'!$F$19:$CR$24,MATCH($B97,'Energy Prices'!$C$19:$C$24,0),MATCH(Calc_Option4!CQ$6,'Energy Prices'!$F$11:$CR$11,0))/100000,\"\")","v":""},{"$f":"IFERROR('Data Input - Option 4'!CV87*INDEX('Energy Prices'!$F$19:$CR$24,MATCH($B97,'Energy Prices'!$C$19:$C$24,0),MATCH(Calc_Option4!CR$6,'Energy Prices'!$F$11:$CR$11,0))/100000,\"\")","v":""},{"$f":"IFERROR('Data Input - Option 4'!CW87*INDEX('Energy Prices'!$F$19:$CR$24,MATCH($B97,'Energy Prices'!$C$19:$C$24,0),MATCH(Calc_Option4!CS$6,'Energy Prices'!$F$11:$CR$11,0))/100000,\"\")","v":""},{"$f":"IFERROR('Data Input - Option 4'!CX87*INDEX('Energy Prices'!$F$19:$CR$24,MATCH($B97,'Energy Prices'!$C$19:$C$24,0),MATCH(Calc_Option4!CT$6,'Energy Prices'!$F$11:$CR$11,0))/100000,\"\")","v":""},{"$f":"IFERROR('Data Input - Option 4'!CY87*INDEX('Energy Prices'!$F$19:$CR$24,MATCH($B97,'Energy Prices'!$C$19:$C$24,0),MATCH(Calc_Option4!CU$6,'Energy Prices'!$F$11:$CR$11,0))/100000,\"\")","v":""},{"$f":"IFERROR('Data Input - Option 4'!CZ87*INDEX('Energy Prices'!$F$19:$CR$24,MATCH($B97,'Energy Prices'!$C$19:$C$24,0),MATCH(Calc_Option4!CV$6,'Energy Prices'!$F$11:$CR$11,0))/100000,\"\")","v":""},{"$f":"IFERROR('Data Input - Option 4'!DA87*INDEX('Energy Prices'!$F$19:$CR$24,MATCH($B97,'Energy Prices'!$C$19:$C$24,0),MATCH(Calc_Option4!CW$6,'Energy Prices'!$F$11:$CR$11,0))/100000,\"\")","v":""},{"$f":"IFERROR('Data Input - Option 4'!DB87*INDEX('Energy Prices'!$F$19:$CR$24,MATCH($B97,'Energy Prices'!$C$19:$C$24,0),MATCH(Calc_Option4!CX$6,'Energy Prices'!$F$11:$CR$11,0))/100000,\"\")","v":""},{"$f":"IFERROR('Data Input - Option 4'!DC87*INDEX('Energy Prices'!$F$19:$CR$24,MATCH($B97,'Energy Prices'!$C$19:$C$24,0),MATCH(Calc_Option4!CY$6,'Energy Prices'!$F$11:$CR$11,0))/100000,\"\")","v":""}]
[null,"Road - Petrol","£000's",{"$f":"IFERROR('Data Input - Option 4'!H88*INDEX('Energy Prices'!$F$19:$CR$24,MATCH($B98,'Energy Prices'!$C$19:$C$24,0),MATCH(Calc_Option4!D$6,'Energy Prices'!$F$11:$CR$11,0))/100000,\"\")","v":0},{"$f":"IFERROR('Data Input - Option 4'!I88*INDEX('Energy Prices'!$F$19:$CR$24,MATCH($B98,'Energy Prices'!$C$19:$C$24,0),MATCH(Calc_Option4!E$6,'Energy Prices'!$F$11:$CR$11,0))/100000,\"\")","v":0},{"$f":"IFERROR('Data Input - Option 4'!J88*INDEX('Energy Prices'!$F$19:$CR$24,MATCH($B98,'Energy Prices'!$C$19:$C$24,0),MATCH(Calc_Option4!F$6,'Energy Prices'!$F$11:$CR$11,0))/100000,\"\")","v":0},{"$f":"IFERROR('Data Input - Option 4'!K88*INDEX('Energy Prices'!$F$19:$CR$24,MATCH($B98,'Energy Prices'!$C$19:$C$24,0),MATCH(Calc_Option4!G$6,'Energy Prices'!$F$11:$CR$11,0))/100000,\"\")","v":0},{"$f":"IFERROR('Data Input - Option 4'!L88*INDEX('Energy Prices'!$F$19:$CR$24,MATCH($B98,'Energy Prices'!$C$19:$C$24,0),MATCH(Calc_Option4!H$6,'Energy Prices'!$F$11:$CR$11,0))/100000,\"\")","v":0},{"$f":"IFERROR('Data Input - Option 4'!M88*INDEX('Energy Prices'!$F$19:$CR$24,MATCH($B98,'Energy Prices'!$C$19:$C$24,0),MATCH(Calc_Option4!I$6,'Energy Prices'!$F$11:$CR$11,0))/100000,\"\")","v":0},{"$f":"IFERROR('Data Input - Option 4'!N88*INDEX('Energy Prices'!$F$19:$CR$24,MATCH($B98,'Energy Prices'!$C$19:$C$24,0),MATCH(Calc_Option4!J$6,'Energy Prices'!$F$11:$CR$11,0))/100000,\"\")","v":0},{"$f":"IFERROR('Data Input - Option 4'!O88*INDEX('Energy Prices'!$F$19:$CR$24,MATCH($B98,'Energy Prices'!$C$19:$C$24,0),MATCH(Calc_Option4!K$6,'Energy Prices'!$F$11:$CR$11,0))/100000,\"\")","v":0},{"$f":"IFERROR('Data Input - Option 4'!P88*INDEX('Energy Prices'!$F$19:$CR$24,MATCH($B98,'Energy Prices'!$C$19:$C$24,0),MATCH(Calc_Option4!L$6,'Energy Prices'!$F$11:$CR$11,0))/100000,\"\")","v":0},{"$f":"IFERROR('Data Input - Option 4'!Q88*INDEX('Energy Prices'!$F$19:$CR$24,MATCH($B98,'Energy Prices'!$C$19:$C$24,0),MATCH(Calc_Option4!M$6,'Energy Prices'!$F$11:$CR$11,0))/100000,\"\")","v":0},{"$f":"IFERROR('Data Input - Option 4'!R88*INDEX('Energy Prices'!$F$19:$CR$24,MATCH($B98,'Energy Prices'!$C$19:$C$24,0),MATCH(Calc_Option4!N$6,'Energy Prices'!$F$11:$CR$11,0))/100000,\"\")","v":0},{"$f":"IFERROR('Data Input - Option 4'!S88*INDEX('Energy Prices'!$F$19:$CR$24,MATCH($B98,'Energy Prices'!$C$19:$C$24,0),MATCH(Calc_Option4!O$6,'Energy Prices'!$F$11:$CR$11,0))/100000,\"\")","v":0},{"$f":"IFERROR('Data Input - Option 4'!T88*INDEX('Energy Prices'!$F$19:$CR$24,MATCH($B98,'Energy Prices'!$C$19:$C$24,0),MATCH(Calc_Option4!P$6,'Energy Prices'!$F$11:$CR$11,0))/100000,\"\")","v":0},{"$f":"IFERROR('Data Input - Option 4'!U88*INDEX('Energy Prices'!$F$19:$CR$24,MATCH($B98,'Energy Prices'!$C$19:$C$24,0),MATCH(Calc_Option4!Q$6,'Energy Prices'!$F$11:$CR$11,0))/100000,\"\")","v":0},{"$f":"IFERROR('Data Input - Option 4'!V88*INDEX('Energy Prices'!$F$19:$CR$24,MATCH($B98,'Energy Prices'!$C$19:$C$24,0),MATCH(Calc_Option4!R$6,'Energy Prices'!$F$11:$CR$11,0))/100000,\"\")","v":0},{"$f":"IFERROR('Data Input - Option 4'!W88*INDEX('Energy Prices'!$F$19:$CR$24,MATCH($B98,'Energy Prices'!$C$19:$C$24,0),MATCH(Calc_Option4!S$6,'Energy Prices'!$F$11:$CR$11,0))/100000,\"\")","v":0},{"$f":"IFERROR('Data Input - Option 4'!X88*INDEX('Energy Prices'!$F$19:$CR$24,MATCH($B98,'Energy Prices'!$C$19:$C$24,0),MATCH(Calc_Option4!T$6,'Energy Prices'!$F$11:$CR$11,0))/100000,\"\")","v":0},{"$f":"IFERROR('Data Input - Option 4'!Y88*INDEX('Energy Prices'!$F$19:$CR$24,MATCH($B98,'Energy Prices'!$C$19:$C$24,0),MATCH(Calc_Option4!U$6,'Energy Prices'!$F$11:$CR$11,0))/100000,\"\")","v":0},{"$f":"IFERROR('Data Input - Option 4'!Z88*INDEX('Energy Prices'!$F$19:$CR$24,MATCH($B98,'Energy Prices'!$C$19:$C$24,0),MATCH(Calc_Option4!V$6,'Energy Prices'!$F$11:$CR$11,0))/100000,\"\")","v":0},{"$f":"IFERROR('Data Input - Option 4'!AA88*INDEX('Energy Prices'!$F$19:$CR$24,MATCH($B98,'Energy Prices'!$C$19:$C$24,0),MATCH(Calc_Option4!W$6,'Energy Prices'!$F$11:$CR$11,0))/100000,\"\")","v":0},{"$f":"IFERROR('Data Input - Option 4'!AB88*INDEX('Energy Prices'!$F$19:$CR$24,MATCH($B98,'Energy Prices'!$C$19:$C$24,0),MATCH(Calc_Option4!X$6,'Energy Prices'!$F$11:$CR$11,0))/100000,\"\")","v":0},{"$f":"IFERROR('Data Input - Option 4'!AC88*INDEX('Energy Prices'!$F$19:$CR$24,MATCH($B98,'Energy Prices'!$C$19:$C$24,0),MATCH(Calc_Option4!Y$6,'Energy Prices'!$F$11:$CR$11,0))/100000,\"\")","v":0},{"$f":"IFERROR('Data Input - Option 4'!AD88*INDEX('Energy Prices'!$F$19:$CR$24,MATCH($B98,'Energy Prices'!$C$19:$C$24,0),MATCH(Calc_Option4!Z$6,'Energy Prices'!$F$11:$CR$11,0))/100000,\"\")","v":0},{"$f":"IFERROR('Data Input - Option 4'!AE88*INDEX('Energy Prices'!$F$19:$CR$24,MATCH($B98,'Energy Prices'!$C$19:$C$24,0),MATCH(Calc_Option4!AA$6,'Energy Prices'!$F$11:$CR$11,0))/100000,\"\")","v":0},{"$f":"IFERROR('Data Input - Option 4'!AF88*INDEX('Energy Prices'!$F$19:$CR$24,MATCH($B98,'Energy Prices'!$C$19:$C$24,0),MATCH(Calc_Option4!AB$6,'Energy Prices'!$F$11:$CR$11,0))/100000,\"\")","v":0},{"$f":"IFERROR('Data Input - Option 4'!AG88*INDEX('Energy Prices'!$F$19:$CR$24,MATCH($B98,'Energy Prices'!$C$19:$C$24,0),MATCH(Calc_Option4!AC$6,'Energy Prices'!$F$11:$CR$11,0))/100000,\"\")","v":0},{"$f":"IFERROR('Data Input - Option 4'!AH88*INDEX('Energy Prices'!$F$19:$CR$24,MATCH($B98,'Energy Prices'!$C$19:$C$24,0),MATCH(Calc_Option4!AD$6,'Energy Prices'!$F$11:$CR$11,0))/100000,\"\")","v":0},{"$f":"IFERROR('Data Input - Option 4'!AI88*INDEX('Energy Prices'!$F$19:$CR$24,MATCH($B98,'Energy Prices'!$C$19:$C$24,0),MATCH(Calc_Option4!AE$6,'Energy Prices'!$F$11:$CR$11,0))/100000,\"\")","v":0},{"$f":"IFERROR('Data Input - Option 4'!AJ88*INDEX('Energy Prices'!$F$19:$CR$24,MATCH($B98,'Energy Prices'!$C$19:$C$24,0),MATCH(Calc_Option4!AF$6,'Energy Prices'!$F$11:$CR$11,0))/100000,\"\")","v":0},{"$f":"IFERROR('Data Input - Option 4'!AK88*INDEX('Energy Prices'!$F$19:$CR$24,MATCH($B98,'Energy Prices'!$C$19:$C$24,0),MATCH(Calc_Option4!AG$6,'Energy Prices'!$F$11:$CR$11,0))/100000,\"\")","v":0},{"$f":"IFERROR('Data Input - Option 4'!AL88*INDEX('Energy Prices'!$F$19:$CR$24,MATCH($B98,'Energy Prices'!$C$19:$C$24,0),MATCH(Calc_Option4!AH$6,'Energy Prices'!$F$11:$CR$11,0))/100000,\"\")","v":0},{"$f":"IFERROR('Data Input - Option 4'!AM88*INDEX('Energy Prices'!$F$19:$CR$24,MATCH($B98,'Energy Prices'!$C$19:$C$24,0),MATCH(Calc_Option4!AI$6,'Energy Prices'!$F$11:$CR$11,0))/100000,\"\")","v":""},{"$f":"IFERROR('Data Input - Option 4'!AN88*INDEX('Energy Prices'!$F$19:$CR$24,MATCH($B98,'Energy Prices'!$C$19:$C$24,0),MATCH(Calc_Option4!AJ$6,'Energy Prices'!$F$11:$CR$11,0))/100000,\"\")","v":""},{"$f":"IFERROR('Data Input - Option 4'!AO88*INDEX('Energy Prices'!$F$19:$CR$24,MATCH($B98,'Energy Prices'!$C$19:$C$24,0),MATCH(Calc_Option4!AK$6,'Energy Prices'!$F$11:$CR$11,0))/100000,\"\")","v":""},{"$f":"IFERROR('Data Input - Option 4'!AP88*INDEX('Energy Prices'!$F$19:$CR$24,MATCH($B98,'Energy Prices'!$C$19:$C$24,0),MATCH(Calc_Option4!AL$6,'Energy Prices'!$F$11:$CR$11,0))/100000,\"\")","v":""},{"$f":"IFERROR('Data Input - Option 4'!AQ88*INDEX('Energy Prices'!$F$19:$CR$24,MATCH($B98,'Energy Prices'!$C$19:$C$24,0),MATCH(Calc_Option4!AM$6,'Energy Prices'!$F$11:$CR$11,0))/100000,\"\")","v":""},{"$f":"IFERROR('Data Input - Option 4'!AR88*INDEX('Energy Prices'!$F$19:$CR$24,MATCH($B98,'Energy Prices'!$C$19:$C$24,0),MATCH(Calc_Option4!AN$6,'Energy Prices'!$F$11:$CR$11,0))/100000,\"\")","v":""},{"$f":"IFERROR('Data Input - Option 4'!AS88*INDEX('Energy Prices'!$F$19:$CR$24,MATCH($B98,'Energy Prices'!$C$19:$C$24,0),MATCH(Calc_Option4!AO$6,'Energy Prices'!$F$11:$CR$11,0))/100000,\"\")","v":""},{"$f":"IFERROR('Data Input - Option 4'!AT88*INDEX('Energy Prices'!$F$19:$CR$24,MATCH($B98,'Energy Prices'!$C$19:$C$24,0),MATCH(Calc_Option4!AP$6,'Energy Prices'!$F$11:$CR$11,0))/100000,\"\")","v":""},{"$f":"IFERROR('Data Input - Option 4'!AU88*INDEX('Energy Prices'!$F$19:$CR$24,MATCH($B98,'Energy Prices'!$C$19:$C$24,0),MATCH(Calc_Option4!AQ$6,'Energy Prices'!$F$11:$CR$11,0))/100000,\"\")","v":""},{"$f":"IFERROR('Data Input - Option 4'!AV88*INDEX('Energy Prices'!$F$19:$CR$24,MATCH($B98,'Energy Prices'!$C$19:$C$24,0),MATCH(Calc_Option4!AR$6,'Energy Prices'!$F$11:$CR$11,0))/100000,\"\")","v":""},{"$f":"IFERROR('Data Input - Option 4'!AW88*INDEX('Energy Prices'!$F$19:$CR$24,MATCH($B98,'Energy Prices'!$C$19:$C$24,0),MATCH(Calc_Option4!AS$6,'Energy Prices'!$F$11:$CR$11,0))/100000,\"\")","v":""},{"$f":"IFERROR('Data Input - Option 4'!AX88*INDEX('Energy Prices'!$F$19:$CR$24,MATCH($B98,'Energy Prices'!$C$19:$C$24,0),MATCH(Calc_Option4!AT$6,'Energy Prices'!$F$11:$CR$11,0))/100000,\"\")","v":""},{"$f":"IFERROR('Data Input - Option 4'!AY88*INDEX('Energy Prices'!$F$19:$CR$24,MATCH($B98,'Energy Prices'!$C$19:$C$24,0),MATCH(Calc_Option4!AU$6,'Energy Prices'!$F$11:$CR$11,0))/100000,\"\")","v":""},{"$f":"IFERROR('Data Input - Option 4'!AZ88*INDEX('Energy Prices'!$F$19:$CR$24,MATCH($B98,'Energy Prices'!$C$19:$C$24,0),MATCH(Calc_Option4!AV$6,'Energy Prices'!$F$11:$CR$11,0))/100000,\"\")","v":""},{"$f":"IFERROR('Data Input - Option 4'!BA88*INDEX('Energy Prices'!$F$19:$CR$24,MATCH($B98,'Energy Prices'!$C$19:$C$24,0),MATCH(Calc_Option4!AW$6,'Energy Prices'!$F$11:$CR$11,0))/100000,\"\")","v":""},{"$f":"IFERROR('Data Input - Option 4'!BB88*INDEX('Energy Prices'!$F$19:$CR$24,MATCH($B98,'Energy Prices'!$C$19:$C$24,0),MATCH(Calc_Option4!AX$6,'Energy Prices'!$F$11:$CR$11,0))/100000,\"\")","v":""},{"$f":"IFERROR('Data Input - Option 4'!BC88*INDEX('Energy Prices'!$F$19:$CR$24,MATCH($B98,'Energy Prices'!$C$19:$C$24,0),MATCH(Calc_Option4!AY$6,'Energy Prices'!$F$11:$CR$11,0))/100000,\"\")","v":""},{"$f":"IFERROR('Data Input - Option 4'!BD88*INDEX('Energy Prices'!$F$19:$CR$24,MATCH($B98,'Energy Prices'!$C$19:$C$24,0),MATCH(Calc_Option4!AZ$6,'Energy Prices'!$F$11:$CR$11,0))/100000,\"\")","v":""},{"$f":"IFERROR('Data Input - Option 4'!BE88*INDEX('Energy Prices'!$F$19:$CR$24,MATCH($B98,'Energy Prices'!$C$19:$C$24,0),MATCH(Calc_Option4!BA$6,'Energy Prices'!$F$11:$CR$11,0))/100000,\"\")","v":""},{"$f":"IFERROR('Data Input - Option 4'!BF88*INDEX('Energy Prices'!$F$19:$CR$24,MATCH($B98,'Energy Prices'!$C$19:$C$24,0),MATCH(Calc_Option4!BB$6,'Energy Prices'!$F$11:$CR$11,0))/100000,\"\")","v":""},{"$f":"IFERROR('Data Input - Option 4'!BG88*INDEX('Energy Prices'!$F$19:$CR$24,MATCH($B98,'Energy Prices'!$C$19:$C$24,0),MATCH(Calc_Option4!BC$6,'Energy Prices'!$F$11:$CR$11,0))/100000,\"\")","v":""},{"$f":"IFERROR('Data Input - Option 4'!BH88*INDEX('Energy Prices'!$F$19:$CR$24,MATCH($B98,'Energy Prices'!$C$19:$C$24,0),MATCH(Calc_Option4!BD$6,'Energy Prices'!$F$11:$CR$11,0))/100000,\"\")","v":""},{"$f":"IFERROR('Data Input - Option 4'!BI88*INDEX('Energy Prices'!$F$19:$CR$24,MATCH($B98,'Energy Prices'!$C$19:$C$24,0),MATCH(Calc_Option4!BE$6,'Energy Prices'!$F$11:$CR$11,0))/100000,\"\")","v":""},{"$f":"IFERROR('Data Input - Option 4'!BJ88*INDEX('Energy Prices'!$F$19:$CR$24,MATCH($B98,'Energy Prices'!$C$19:$C$24,0),MATCH(Calc_Option4!BF$6,'Energy Prices'!$F$11:$CR$11,0))/100000,\"\")","v":""},{"$f":"IFERROR('Data Input - Option 4'!BK88*INDEX('Energy Prices'!$F$19:$CR$24,MATCH($B98,'Energy Prices'!$C$19:$C$24,0),MATCH(Calc_Option4!BG$6,'Energy Prices'!$F$11:$CR$11,0))/100000,\"\")","v":""},{"$f":"IFERROR('Data Input - Option 4'!BL88*INDEX('Energy Prices'!$F$19:$CR$24,MATCH($B98,'Energy Prices'!$C$19:$C$24,0),MATCH(Calc_Option4!BH$6,'Energy Prices'!$F$11:$CR$11,0))/100000,\"\")","v":""},{"$f":"IFERROR('Data Input - Option 4'!BM88*INDEX('Energy Prices'!$F$19:$CR$24,MATCH($B98,'Energy Prices'!$C$19:$C$24,0),MATCH(Calc_Option4!BI$6,'Energy Prices'!$F$11:$CR$11,0))/100000,\"\")","v":""},{"$f":"IFERROR('Data Input - Option 4'!BN88*INDEX('Energy Prices'!$F$19:$CR$24,MATCH($B98,'Energy Prices'!$C$19:$C$24,0),MATCH(Calc_Option4!BJ$6,'Energy Prices'!$F$11:$CR$11,0))/100000,\"\")","v":""},{"$f":"IFERROR('Data Input - Option 4'!BO88*INDEX('Energy Prices'!$F$19:$CR$24,MATCH($B98,'Energy Prices'!$C$19:$C$24,0),MATCH(Calc_Option4!BK$6,'Energy Prices'!$F$11:$CR$11,0))/100000,\"\")","v":""},{"$f":"IFERROR('Data Input - Option 4'!BP88*INDEX('Energy Prices'!$F$19:$CR$24,MATCH($B98,'Energy Prices'!$C$19:$C$24,0),MATCH(Calc_Option4!BL$6,'Energy Prices'!$F$11:$CR$11,0))/100000,\"\")","v":""},{"$f":"IFERROR('Data Input - Option 4'!BQ88*INDEX('Energy Prices'!$F$19:$CR$24,MATCH($B98,'Energy Prices'!$C$19:$C$24,0),MATCH(Calc_Option4!BM$6,'Energy Prices'!$F$11:$CR$11,0))/100000,\"\")","v":""},{"$f":"IFERROR('Data Input - Option 4'!BR88*INDEX('Energy Prices'!$F$19:$CR$24,MATCH($B98,'Energy Prices'!$C$19:$C$24,0),MATCH(Calc_Option4!BN$6,'Energy Prices'!$F$11:$CR$11,0))/100000,\"\")","v":""},{"$f":"IFERROR('Data Input - Option 4'!BS88*INDEX('Energy Prices'!$F$19:$CR$24,MATCH($B98,'Energy Prices'!$C$19:$C$24,0),MATCH(Calc_Option4!BO$6,'Energy Prices'!$F$11:$CR$11,0))/100000,\"\")","v":""},{"$f":"IFERROR('Data Input - Option 4'!BT88*INDEX('Energy Prices'!$F$19:$CR$24,MATCH($B98,'Energy Prices'!$C$19:$C$24,0),MATCH(Calc_Option4!BP$6,'Energy Prices'!$F$11:$CR$11,0))/100000,\"\")","v":""},{"$f":"IFERROR('Data Input - Option 4'!BU88*INDEX('Energy Prices'!$F$19:$CR$24,MATCH($B98,'Energy Prices'!$C$19:$C$24,0),MATCH(Calc_Option4!BQ$6,'Energy Prices'!$F$11:$CR$11,0))/100000,\"\")","v":""},{"$f":"IFERROR('Data Input - Option 4'!BV88*INDEX('Energy Prices'!$F$19:$CR$24,MATCH($B98,'Energy Prices'!$C$19:$C$24,0),MATCH(Calc_Option4!BR$6,'Energy Prices'!$F$11:$CR$11,0))/100000,\"\")","v":""},{"$f":"IFERROR('Data Input - Option 4'!BW88*INDEX('Energy Prices'!$F$19:$CR$24,MATCH($B98,'Energy Prices'!$C$19:$C$24,0),MATCH(Calc_Option4!BS$6,'Energy Prices'!$F$11:$CR$11,0))/100000,\"\")","v":""},{"$f":"IFERROR('Data Input - Option 4'!BX88*INDEX('Energy Prices'!$F$19:$CR$24,MATCH($B98,'Energy Prices'!$C$19:$C$24,0),MATCH(Calc_Option4!BT$6,'Energy Prices'!$F$11:$CR$11,0))/100000,\"\")","v":""},{"$f":"IFERROR('Data Input - Option 4'!BY88*INDEX('Energy Prices'!$F$19:$CR$24,MATCH($B98,'Energy Prices'!$C$19:$C$24,0),MATCH(Calc_Option4!BU$6,'Energy Prices'!$F$11:$CR$11,0))/100000,\"\")","v":""},{"$f":"IFERROR('Data Input - Option 4'!BZ88*INDEX('Energy Prices'!$F$19:$CR$24,MATCH($B98,'Energy Prices'!$C$19:$C$24,0),MATCH(Calc_Option4!BV$6,'Energy Prices'!$F$11:$CR$11,0))/100000,\"\")","v":""},{"$f":"IFERROR('Data Input - Option 4'!CA88*INDEX('Energy Prices'!$F$19:$CR$24,MATCH($B98,'Energy Prices'!$C$19:$C$24,0),MATCH(Calc_Option4!BW$6,'Energy Prices'!$F$11:$CR$11,0))/100000,\"\")","v":""},{"$f":"IFERROR('Data Input - Option 4'!CB88*INDEX('Energy Prices'!$F$19:$CR$24,MATCH($B98,'Energy Prices'!$C$19:$C$24,0),MATCH(Calc_Option4!BX$6,'Energy Prices'!$F$11:$CR$11,0))/100000,\"\")","v":""},{"$f":"IFERROR('Data Input - Option 4'!CC88*INDEX('Energy Prices'!$F$19:$CR$24,MATCH($B98,'Energy Prices'!$C$19:$C$24,0),MATCH(Calc_Option4!BY$6,'Energy Prices'!$F$11:$CR$11,0))/100000,\"\")","v":""},{"$f":"IFERROR('Data Input - Option 4'!CD88*INDEX('Energy Prices'!$F$19:$CR$24,MATCH($B98,'Energy Prices'!$C$19:$C$24,0),MATCH(Calc_Option4!BZ$6,'Energy Prices'!$F$11:$CR$11,0))/100000,\"\")","v":""},{"$f":"IFERROR('Data Input - Option 4'!CE88*INDEX('Energy Prices'!$F$19:$CR$24,MATCH($B98,'Energy Prices'!$C$19:$C$24,0),MATCH(Calc_Option4!CA$6,'Energy Prices'!$F$11:$CR$11,0))/100000,\"\")","v":""},{"$f":"IFERROR('Data Input - Option 4'!CF88*INDEX('Energy Prices'!$F$19:$CR$24,MATCH($B98,'Energy Prices'!$C$19:$C$24,0),MATCH(Calc_Option4!CB$6,'Energy Prices'!$F$11:$CR$11,0))/100000,\"\")","v":""},{"$f":"IFERROR('Data Input - Option 4'!CG88*INDEX('Energy Prices'!$F$19:$CR$24,MATCH($B98,'Energy Prices'!$C$19:$C$24,0),MATCH(Calc_Option4!CC$6,'Energy Prices'!$F$11:$CR$11,0))/100000,\"\")","v":""},{"$f":"IFERROR('Data Input - Option 4'!CH88*INDEX('Energy Prices'!$F$19:$CR$24,MATCH($B98,'Energy Prices'!$C$19:$C$24,0),MATCH(Calc_Option4!CD$6,'Energy Prices'!$F$11:$CR$11,0))/100000,\"\")","v":""},{"$f":"IFERROR('Data Input - Option 4'!CI88*INDEX('Energy Prices'!$F$19:$CR$24,MATCH($B98,'Energy Prices'!$C$19:$C$24,0),MATCH(Calc_Option4!CE$6,'Energy Prices'!$F$11:$CR$11,0))/100000,\"\")","v":""},{"$f":"IFERROR('Data Input - Option 4'!CJ88*INDEX('Energy Prices'!$F$19:$CR$24,MATCH($B98,'Energy Prices'!$C$19:$C$24,0),MATCH(Calc_Option4!CF$6,'Energy Prices'!$F$11:$CR$11,0))/100000,\"\")","v":""},{"$f":"IFERROR('Data Input - Option 4'!CK88*INDEX('Energy Prices'!$F$19:$CR$24,MATCH($B98,'Energy Prices'!$C$19:$C$24,0),MATCH(Calc_Option4!CG$6,'Energy Prices'!$F$11:$CR$11,0))/100000,\"\")","v":""},{"$f":"IFERROR('Data Input - Option 4'!CL88*INDEX('Energy Prices'!$F$19:$CR$24,MATCH($B98,'Energy Prices'!$C$19:$C$24,0),MATCH(Calc_Option4!CH$6,'Energy Prices'!$F$11:$CR$11,0))/100000,\"\")","v":""},{"$f":"IFERROR('Data Input - Option 4'!CM88*INDEX('Energy Prices'!$F$19:$CR$24,MATCH($B98,'Energy Prices'!$C$19:$C$24,0),MATCH(Calc_Option4!CI$6,'Energy Prices'!$F$11:$CR$11,0))/100000,\"\")","v":""},{"$f":"IFERROR('Data Input - Option 4'!CN88*INDEX('Energy Prices'!$F$19:$CR$24,MATCH($B98,'Energy Prices'!$C$19:$C$24,0),MATCH(Calc_Option4!CJ$6,'Energy Prices'!$F$11:$CR$11,0))/100000,\"\")","v":""},{"$f":"IFERROR('Data Input - Option 4'!CO88*INDEX('Energy Prices'!$F$19:$CR$24,MATCH($B98,'Energy Prices'!$C$19:$C$24,0),MATCH(Calc_Option4!CK$6,'Energy Prices'!$F$11:$CR$11,0))/100000,\"\")","v":""},{"$f":"IFERROR('Data Input - Option 4'!CP88*INDEX('Energy Prices'!$F$19:$CR$24,MATCH($B98,'Energy Prices'!$C$19:$C$24,0),MATCH(Calc_Option4!CL$6,'Energy Prices'!$F$11:$CR$11,0))/100000,\"\")","v":""},{"$f":"IFERROR('Data Input - Option 4'!CQ88*INDEX('Energy Prices'!$F$19:$CR$24,MATCH($B98,'Energy Prices'!$C$19:$C$24,0),MATCH(Calc_Option4!CM$6,'Energy Prices'!$F$11:$CR$11,0))/100000,\"\")","v":""},{"$f":"IFERROR('Data Input - Option 4'!CR88*INDEX('Energy Prices'!$F$19:$CR$24,MATCH($B98,'Energy Prices'!$C$19:$C$24,0),MATCH(Calc_Option4!CN$6,'Energy Prices'!$F$11:$CR$11,0))/100000,\"\")","v":""},{"$f":"IFERROR('Data Input - Option 4'!CS88*INDEX('Energy Prices'!$F$19:$CR$24,MATCH($B98,'Energy Prices'!$C$19:$C$24,0),MATCH(Calc_Option4!CO$6,'Energy Prices'!$F$11:$CR$11,0))/100000,\"\")","v":""},{"$f":"IFERROR('Data Input - Option 4'!CT88*INDEX('Energy Prices'!$F$19:$CR$24,MATCH($B98,'Energy Prices'!$C$19:$C$24,0),MATCH(Calc_Option4!CP$6,'Energy Prices'!$F$11:$CR$11,0))/100000,\"\")","v":""},{"$f":"IFERROR('Data Input - Option 4'!CU88*INDEX('Energy Prices'!$F$19:$CR$24,MATCH($B98,'Energy Prices'!$C$19:$C$24,0),MATCH(Calc_Option4!CQ$6,'Energy Prices'!$F$11:$CR$11,0))/100000,\"\")","v":""},{"$f":"IFERROR('Data Input - Option 4'!CV88*INDEX('Energy Prices'!$F$19:$CR$24,MATCH($B98,'Energy Prices'!$C$19:$C$24,0),MATCH(Calc_Option4!CR$6,'Energy Prices'!$F$11:$CR$11,0))/100000,\"\")","v":""},{"$f":"IFERROR('Data Input - Option 4'!CW88*INDEX('Energy Prices'!$F$19:$CR$24,MATCH($B98,'Energy Prices'!$C$19:$C$24,0),MATCH(Calc_Option4!CS$6,'Energy Prices'!$F$11:$CR$11,0))/100000,\"\")","v":""},{"$f":"IFERROR('Data Input - Option 4'!CX88*INDEX('Energy Prices'!$F$19:$CR$24,MATCH($B98,'Energy Prices'!$C$19:$C$24,0),MATCH(Calc_Option4!CT$6,'Energy Prices'!$F$11:$CR$11,0))/100000,\"\")","v":""},{"$f":"IFERROR('Data Input - Option 4'!CY88*INDEX('Energy Prices'!$F$19:$CR$24,MATCH($B98,'Energy Prices'!$C$19:$C$24,0),MATCH(Calc_Option4!CU$6,'Energy Prices'!$F$11:$CR$11,0))/100000,\"\")","v":""},{"$f":"IFERROR('Data Input - Option 4'!CZ88*INDEX('Energy Prices'!$F$19:$CR$24,MATCH($B98,'Energy Prices'!$C$19:$C$24,0),MATCH(Calc_Option4!CV$6,'Energy Prices'!$F$11:$CR$11,0))/100000,\"\")","v":""},{"$f":"IFERROR('Data Input - Option 4'!DA88*INDEX('Energy Prices'!$F$19:$CR$24,MATCH($B98,'Energy Prices'!$C$19:$C$24,0),MATCH(Calc_Option4!CW$6,'Energy Prices'!$F$11:$CR$11,0))/100000,\"\")","v":""},{"$f":"IFERROR('Data Input - Option 4'!DB88*INDEX('Energy Prices'!$F$19:$CR$24,MATCH($B98,'Energy Prices'!$C$19:$C$24,0),MATCH(Calc_Option4!CX$6,'Energy Prices'!$F$11:$CR$11,0))/100000,\"\")","v":""},{"$f":"IFERROR('Data Input - Option 4'!DC88*INDEX('Energy Prices'!$F$19:$CR$24,MATCH($B98,'Energy Prices'!$C$19:$C$24,0),MATCH(Calc_Option4!CY$6,'Energy Prices'!$F$11:$CR$11,0))/100000,\"\")","v":""}]
[null,"Road - Diesel","£000's",{"$f":"IFERROR('Data Input - Option 4'!H89*INDEX('Energy Prices'!$F$19:$CR$24,MATCH($B99,'Energy Prices'!$C$19:$C$24,0),MATCH(Calc_Option4!D$6,'Energy Prices'!$F$11:$CR$11,0))/100000,\"\")","v":0},{"$f":"IFERROR('Data Input - Option 4'!I89*INDEX('Energy Prices'!$F$19:$CR$24,MATCH($B99,'Energy Prices'!$C$19:$C$24,0),MATCH(Calc_Option4!E$6,'Energy Prices'!$F$11:$CR$11,0))/100000,\"\")","v":0},{"$f":"IFERROR('Data Input - Option 4'!J89*INDEX('Energy Prices'!$F$19:$CR$24,MATCH($B99,'Energy Prices'!$C$19:$C$24,0),MATCH(Calc_Option4!F$6,'Energy Prices'!$F$11:$CR$11,0))/100000,\"\")","v":0},{"$f":"IFERROR('Data Input - Option 4'!K89*INDEX('Energy Prices'!$F$19:$CR$24,MATCH($B99,'Energy Prices'!$C$19:$C$24,0),MATCH(Calc_Option4!G$6,'Energy Prices'!$F$11:$CR$11,0))/100000,\"\")","v":0},{"$f":"IFERROR('Data Input - Option 4'!L89*INDEX('Energy Prices'!$F$19:$CR$24,MATCH($B99,'Energy Prices'!$C$19:$C$24,0),MATCH(Calc_Option4!H$6,'Energy Prices'!$F$11:$CR$11,0))/100000,\"\")","v":0},{"$f":"IFERROR('Data Input - Option 4'!M89*INDEX('Energy Prices'!$F$19:$CR$24,MATCH($B99,'Energy Prices'!$C$19:$C$24,0),MATCH(Calc_Option4!I$6,'Energy Prices'!$F$11:$CR$11,0))/100000,\"\")","v":0},{"$f":"IFERROR('Data Input - Option 4'!N89*INDEX('Energy Prices'!$F$19:$CR$24,MATCH($B99,'Energy Prices'!$C$19:$C$24,0),MATCH(Calc_Option4!J$6,'Energy Prices'!$F$11:$CR$11,0))/100000,\"\")","v":0},{"$f":"IFERROR('Data Input - Option 4'!O89*INDEX('Energy Prices'!$F$19:$CR$24,MATCH($B99,'Energy Prices'!$C$19:$C$24,0),MATCH(Calc_Option4!K$6,'Energy Prices'!$F$11:$CR$11,0))/100000,\"\")","v":0},{"$f":"IFERROR('Data Input - Option 4'!P89*INDEX('Energy Prices'!$F$19:$CR$24,MATCH($B99,'Energy Prices'!$C$19:$C$24,0),MATCH(Calc_Option4!L$6,'Energy Prices'!$F$11:$CR$11,0))/100000,\"\")","v":0},{"$f":"IFERROR('Data Input - Option 4'!Q89*INDEX('Energy Prices'!$F$19:$CR$24,MATCH($B99,'Energy Prices'!$C$19:$C$24,0),MATCH(Calc_Option4!M$6,'Energy Prices'!$F$11:$CR$11,0))/100000,\"\")","v":0},{"$f":"IFERROR('Data Input - Option 4'!R89*INDEX('Energy Prices'!$F$19:$CR$24,MATCH($B99,'Energy Prices'!$C$19:$C$24,0),MATCH(Calc_Option4!N$6,'Energy Prices'!$F$11:$CR$11,0))/100000,\"\")","v":0},{"$f":"IFERROR('Data Input - Option 4'!S89*INDEX('Energy Prices'!$F$19:$CR$24,MATCH($B99,'Energy Prices'!$C$19:$C$24,0),MATCH(Calc_Option4!O$6,'Energy Prices'!$F$11:$CR$11,0))/100000,\"\")","v":0},{"$f":"IFERROR('Data Input - Option 4'!T89*INDEX('Energy Prices'!$F$19:$CR$24,MATCH($B99,'Energy Prices'!$C$19:$C$24,0),MATCH(Calc_Option4!P$6,'Energy Prices'!$F$11:$CR$11,0))/100000,\"\")","v":0},{"$f":"IFERROR('Data Input - Option 4'!U89*INDEX('Energy Prices'!$F$19:$CR$24,MATCH($B99,'Energy Prices'!$C$19:$C$24,0),MATCH(Calc_Option4!Q$6,'Energy Prices'!$F$11:$CR$11,0))/100000,\"\")","v":0},{"$f":"IFERROR('Data Input - Option 4'!V89*INDEX('Energy Prices'!$F$19:$CR$24,MATCH($B99,'Energy Prices'!$C$19:$C$24,0),MATCH(Calc_Option4!R$6,'Energy Prices'!$F$11:$CR$11,0))/100000,\"\")","v":0},{"$f":"IFERROR('Data Input - Option 4'!W89*INDEX('Energy Prices'!$F$19:$CR$24,MATCH($B99,'Energy Prices'!$C$19:$C$24,0),MATCH(Calc_Option4!S$6,'Energy Prices'!$F$11:$CR$11,0))/100000,\"\")","v":0},{"$f":"IFERROR('Data Input - Option 4'!X89*INDEX('Energy Prices'!$F$19:$CR$24,MATCH($B99,'Energy Prices'!$C$19:$C$24,0),MATCH(Calc_Option4!T$6,'Energy Prices'!$F$11:$CR$11,0))/100000,\"\")","v":0},{"$f":"IFERROR('Data Input - Option 4'!Y89*INDEX('Energy Prices'!$F$19:$CR$24,MATCH($B99,'Energy Prices'!$C$19:$C$24,0),MATCH(Calc_Option4!U$6,'Energy Prices'!$F$11:$CR$11,0))/100000,\"\")","v":0},{"$f":"IFERROR('Data Input - Option 4'!Z89*INDEX('Energy Prices'!$F$19:$CR$24,MATCH($B99,'Energy Prices'!$C$19:$C$24,0),MATCH(Calc_Option4!V$6,'Energy Prices'!$F$11:$CR$11,0))/100000,\"\")","v":0},{"$f":"IFERROR('Data Input - Option 4'!AA89*INDEX('Energy Prices'!$F$19:$CR$24,MATCH($B99,'Energy Prices'!$C$19:$C$24,0),MATCH(Calc_Option4!W$6,'Energy Prices'!$F$11:$CR$11,0))/100000,\"\")","v":0},{"$f":"IFERROR('Data Input - Option 4'!AB89*INDEX('Energy Prices'!$F$19:$CR$24,MATCH($B99,'Energy Prices'!$C$19:$C$24,0),MATCH(Calc_Option4!X$6,'Energy Prices'!$F$11:$CR$11,0))/100000,\"\")","v":0},{"$f":"IFERROR('Data Input - Option 4'!AC89*INDEX('Energy Prices'!$F$19:$CR$24,MATCH($B99,'Energy Prices'!$C$19:$C$24,0),MATCH(Calc_Option4!Y$6,'Energy Prices'!$F$11:$CR$11,0))/100000,\"\")","v":0},{"$f":"IFERROR('Data Input - Option 4'!AD89*INDEX('Energy Prices'!$F$19:$CR$24,MATCH($B99,'Energy Prices'!$C$19:$C$24,0),MATCH(Calc_Option4!Z$6,'Energy Prices'!$F$11:$CR$11,0))/100000,\"\")","v":0},{"$f":"IFERROR('Data Input - Option 4'!AE89*INDEX('Energy Prices'!$F$19:$CR$24,MATCH($B99,'Energy Prices'!$C$19:$C$24,0),MATCH(Calc_Option4!AA$6,'Energy Prices'!$F$11:$CR$11,0))/100000,\"\")","v":0},{"$f":"IFERROR('Data Input - Option 4'!AF89*INDEX('Energy Prices'!$F$19:$CR$24,MATCH($B99,'Energy Prices'!$C$19:$C$24,0),MATCH(Calc_Option4!AB$6,'Energy Prices'!$F$11:$CR$11,0))/100000,\"\")","v":0},{"$f":"IFERROR('Data Input - Option 4'!AG89*INDEX('Energy Prices'!$F$19:$CR$24,MATCH($B99,'Energy Prices'!$C$19:$C$24,0),MATCH(Calc_Option4!AC$6,'Energy Prices'!$F$11:$CR$11,0))/100000,\"\")","v":0},{"$f":"IFERROR('Data Input - Option 4'!AH89*INDEX('Energy Prices'!$F$19:$CR$24,MATCH($B99,'Energy Prices'!$C$19:$C$24,0),MATCH(Calc_Option4!AD$6,'Energy Prices'!$F$11:$CR$11,0))/100000,\"\")","v":0},{"$f":"IFERROR('Data Input - Option 4'!AI89*INDEX('Energy Prices'!$F$19:$CR$24,MATCH($B99,'Energy Prices'!$C$19:$C$24,0),MATCH(Calc_Option4!AE$6,'Energy Prices'!$F$11:$CR$11,0))/100000,\"\")","v":0},{"$f":"IFERROR('Data Input - Option 4'!AJ89*INDEX('Energy Prices'!$F$19:$CR$24,MATCH($B99,'Energy Prices'!$C$19:$C$24,0),MATCH(Calc_Option4!AF$6,'Energy Prices'!$F$11:$CR$11,0))/100000,\"\")","v":0},{"$f":"IFERROR('Data Input - Option 4'!AK89*INDEX('Energy Prices'!$F$19:$CR$24,MATCH($B99,'Energy Prices'!$C$19:$C$24,0),MATCH(Calc_Option4!AG$6,'Energy Prices'!$F$11:$CR$11,0))/100000,\"\")","v":0},{"$f":"IFERROR('Data Input - Option 4'!AL89*INDEX('Energy Prices'!$F$19:$CR$24,MATCH($B99,'Energy Prices'!$C$19:$C$24,0),MATCH(Calc_Option4!AH$6,'Energy Prices'!$F$11:$CR$11,0))/100000,\"\")","v":0},{"$f":"IFERROR('Data Input - Option 4'!AM89*INDEX('Energy Prices'!$F$19:$CR$24,MATCH($B99,'Energy Prices'!$C$19:$C$24,0),MATCH(Calc_Option4!AI$6,'Energy Prices'!$F$11:$CR$11,0))/100000,\"\")","v":""},{"$f":"IFERROR('Data Input - Option 4'!AN89*INDEX('Energy Prices'!$F$19:$CR$24,MATCH($B99,'Energy Prices'!$C$19:$C$24,0),MATCH(Calc_Option4!AJ$6,'Energy Prices'!$F$11:$CR$11,0))/100000,\"\")","v":""},{"$f":"IFERROR('Data Input - Option 4'!AO89*INDEX('Energy Prices'!$F$19:$CR$24,MATCH($B99,'Energy Prices'!$C$19:$C$24,0),MATCH(Calc_Option4!AK$6,'Energy Prices'!$F$11:$CR$11,0))/100000,\"\")","v":""},{"$f":"IFERROR('Data Input - Option 4'!AP89*INDEX('Energy Prices'!$F$19:$CR$24,MATCH($B99,'Energy Prices'!$C$19:$C$24,0),MATCH(Calc_Option4!AL$6,'Energy Prices'!$F$11:$CR$11,0))/100000,\"\")","v":""},{"$f":"IFERROR('Data Input - Option 4'!AQ89*INDEX('Energy Prices'!$F$19:$CR$24,MATCH($B99,'Energy Prices'!$C$19:$C$24,0),MATCH(Calc_Option4!AM$6,'Energy Prices'!$F$11:$CR$11,0))/100000,\"\")","v":""},{"$f":"IFERROR('Data Input - Option 4'!AR89*INDEX('Energy Prices'!$F$19:$CR$24,MATCH($B99,'Energy Prices'!$C$19:$C$24,0),MATCH(Calc_Option4!AN$6,'Energy Prices'!$F$11:$CR$11,0))/100000,\"\")","v":""},{"$f":"IFERROR('Data Input - Option 4'!AS89*INDEX('Energy Prices'!$F$19:$CR$24,MATCH($B99,'Energy Prices'!$C$19:$C$24,0),MATCH(Calc_Option4!AO$6,'Energy Prices'!$F$11:$CR$11,0))/100000,\"\")","v":""},{"$f":"IFERROR('Data Input - Option 4'!AT89*INDEX('Energy Prices'!$F$19:$CR$24,MATCH($B99,'Energy Prices'!$C$19:$C$24,0),MATCH(Calc_Option4!AP$6,'Energy Prices'!$F$11:$CR$11,0))/100000,\"\")","v":""},{"$f":"IFERROR('Data Input - Option 4'!AU89*INDEX('Energy Prices'!$F$19:$CR$24,MATCH($B99,'Energy Prices'!$C$19:$C$24,0),MATCH(Calc_Option4!AQ$6,'Energy Prices'!$F$11:$CR$11,0))/100000,\"\")","v":""},{"$f":"IFERROR('Data Input - Option 4'!AV89*INDEX('Energy Prices'!$F$19:$CR$24,MATCH($B99,'Energy Prices'!$C$19:$C$24,0),MATCH(Calc_Option4!AR$6,'Energy Prices'!$F$11:$CR$11,0))/100000,\"\")","v":""},{"$f":"IFERROR('Data Input - Option 4'!AW89*INDEX('Energy Prices'!$F$19:$CR$24,MATCH($B99,'Energy Prices'!$C$19:$C$24,0),MATCH(Calc_Option4!AS$6,'Energy Prices'!$F$11:$CR$11,0))/100000,\"\")","v":""},{"$f":"IFERROR('Data Input - Option 4'!AX89*INDEX('Energy Prices'!$F$19:$CR$24,MATCH($B99,'Energy Prices'!$C$19:$C$24,0),MATCH(Calc_Option4!AT$6,'Energy Prices'!$F$11:$CR$11,0))/100000,\"\")","v":""},{"$f":"IFERROR('Data Input - Option 4'!AY89*INDEX('Energy Prices'!$F$19:$CR$24,MATCH($B99,'Energy Prices'!$C$19:$C$24,0),MATCH(Calc_Option4!AU$6,'Energy Prices'!$F$11:$CR$11,0))/100000,\"\")","v":""},{"$f":"IFERROR('Data Input - Option 4'!AZ89*INDEX('Energy Prices'!$F$19:$CR$24,MATCH($B99,'Energy Prices'!$C$19:$C$24,0),MATCH(Calc_Option4!AV$6,'Energy Prices'!$F$11:$CR$11,0))/100000,\"\")","v":""},{"$f":"IFERROR('Data Input - Option 4'!BA89*INDEX('Energy Prices'!$F$19:$CR$24,MATCH($B99,'Energy Prices'!$C$19:$C$24,0),MATCH(Calc_Option4!AW$6,'Energy Prices'!$F$11:$CR$11,0))/100000,\"\")","v":""},{"$f":"IFERROR('Data Input - Option 4'!BB89*INDEX('Energy Prices'!$F$19:$CR$24,MATCH($B99,'Energy Prices'!$C$19:$C$24,0),MATCH(Calc_Option4!AX$6,'Energy Prices'!$F$11:$CR$11,0))/100000,\"\")","v":""},{"$f":"IFERROR('Data Input - Option 4'!BC89*INDEX('Energy Prices'!$F$19:$CR$24,MATCH($B99,'Energy Prices'!$C$19:$C$24,0),MATCH(Calc_Option4!AY$6,'Energy Prices'!$F$11:$CR$11,0))/100000,\"\")","v":""},{"$f":"IFERROR('Data Input - Option 4'!BD89*INDEX('Energy Prices'!$F$19:$CR$24,MATCH($B99,'Energy Prices'!$C$19:$C$24,0),MATCH(Calc_Option4!AZ$6,'Energy Prices'!$F$11:$CR$11,0))/100000,\"\")","v":""},{"$f":"IFERROR('Data Input - Option 4'!BE89*INDEX('Energy Prices'!$F$19:$CR$24,MATCH($B99,'Energy Prices'!$C$19:$C$24,0),MATCH(Calc_Option4!BA$6,'Energy Prices'!$F$11:$CR$11,0))/100000,\"\")","v":""},{"$f":"IFERROR('Data Input - Option 4'!BF89*INDEX('Energy Prices'!$F$19:$CR$24,MATCH($B99,'Energy Prices'!$C$19:$C$24,0),MATCH(Calc_Option4!BB$6,'Energy Prices'!$F$11:$CR$11,0))/100000,\"\")","v":""},{"$f":"IFERROR('Data Input - Option 4'!BG89*INDEX('Energy Prices'!$F$19:$CR$24,MATCH($B99,'Energy Prices'!$C$19:$C$24,0),MATCH(Calc_Option4!BC$6,'Energy Prices'!$F$11:$CR$11,0))/100000,\"\")","v":""},{"$f":"IFERROR('Data Input - Option 4'!BH89*INDEX('Energy Prices'!$F$19:$CR$24,MATCH($B99,'Energy Prices'!$C$19:$C$24,0),MATCH(Calc_Option4!BD$6,'Energy Prices'!$F$11:$CR$11,0))/100000,\"\")","v":""},{"$f":"IFERROR('Data Input - Option 4'!BI89*INDEX('Energy Prices'!$F$19:$CR$24,MATCH($B99,'Energy Prices'!$C$19:$C$24,0),MATCH(Calc_Option4!BE$6,'Energy Prices'!$F$11:$CR$11,0))/100000,\"\")","v":""},{"$f":"IFERROR('Data Input - Option 4'!BJ89*INDEX('Energy Prices'!$F$19:$CR$24,MATCH($B99,'Energy Prices'!$C$19:$C$24,0),MATCH(Calc_Option4!BF$6,'Energy Prices'!$F$11:$CR$11,0))/100000,\"\")","v":""},{"$f":"IFERROR('Data Input - Option 4'!BK89*INDEX('Energy Prices'!$F$19:$CR$24,MATCH($B99,'Energy Prices'!$C$19:$C$24,0),MATCH(Calc_Option4!BG$6,'Energy Prices'!$F$11:$CR$11,0))/100000,\"\")","v":""},{"$f":"IFERROR('Data Input - Option 4'!BL89*INDEX('Energy Prices'!$F$19:$CR$24,MATCH($B99,'Energy Prices'!$C$19:$C$24,0),MATCH(Calc_Option4!BH$6,'Energy Prices'!$F$11:$CR$11,0))/100000,\"\")","v":""},{"$f":"IFERROR('Data Input - Option 4'!BM89*INDEX('Energy Prices'!$F$19:$CR$24,MATCH($B99,'Energy Prices'!$C$19:$C$24,0),MATCH(Calc_Option4!BI$6,'Energy Prices'!$F$11:$CR$11,0))/100000,\"\")","v":""},{"$f":"IFERROR('Data Input - Option 4'!BN89*INDEX('Energy Prices'!$F$19:$CR$24,MATCH($B99,'Energy Prices'!$C$19:$C$24,0),MATCH(Calc_Option4!BJ$6,'Energy Prices'!$F$11:$CR$11,0))/100000,\"\")","v":""},{"$f":"IFERROR('Data Input - Option 4'!BO89*INDEX('Energy Prices'!$F$19:$CR$24,MATCH($B99,'Energy Prices'!$C$19:$C$24,0),MATCH(Calc_Option4!BK$6,'Energy Prices'!$F$11:$CR$11,0))/100000,\"\")","v":""},{"$f":"IFERROR('Data Input - Option 4'!BP89*INDEX('Energy Prices'!$F$19:$CR$24,MATCH($B99,'Energy Prices'!$C$19:$C$24,0),MATCH(Calc_Option4!BL$6,'Energy Prices'!$F$11:$CR$11,0))/100000,\"\")","v":""},{"$f":"IFERROR('Data Input - Option 4'!BQ89*INDEX('Energy Prices'!$F$19:$CR$24,MATCH($B99,'Energy Prices'!$C$19:$C$24,0),MATCH(Calc_Option4!BM$6,'Energy Prices'!$F$11:$CR$11,0))/100000,\"\")","v":""},{"$f":"IFERROR('Data Input - Option 4'!BR89*INDEX('Energy Prices'!$F$19:$CR$24,MATCH($B99,'Energy Prices'!$C$19:$C$24,0),MATCH(Calc_Option4!BN$6,'Energy Prices'!$F$11:$CR$11,0))/100000,\"\")","v":""},{"$f":"IFERROR('Data Input - Option 4'!BS89*INDEX('Energy Prices'!$F$19:$CR$24,MATCH($B99,'Energy Prices'!$C$19:$C$24,0),MATCH(Calc_Option4!BO$6,'Energy Prices'!$F$11:$CR$11,0))/100000,\"\")","v":""},{"$f":"IFERROR('Data Input - Option 4'!BT89*INDEX('Energy Prices'!$F$19:$CR$24,MATCH($B99,'Energy Prices'!$C$19:$C$24,0),MATCH(Calc_Option4!BP$6,'Energy Prices'!$F$11:$CR$11,0))/100000,\"\")","v":""},{"$f":"IFERROR('Data Input - Option 4'!BU89*INDEX('Energy Prices'!$F$19:$CR$24,MATCH($B99,'Energy Prices'!$C$19:$C$24,0),MATCH(Calc_Option4!BQ$6,'Energy Prices'!$F$11:$CR$11,0))/100000,\"\")","v":""},{"$f":"IFERROR('Data Input - Option 4'!BV89*INDEX('Energy Prices'!$F$19:$CR$24,MATCH($B99,'Energy Prices'!$C$19:$C$24,0),MATCH(Calc_Option4!BR$6,'Energy Prices'!$F$11:$CR$11,0))/100000,\"\")","v":""},{"$f":"IFERROR('Data Input - Option 4'!BW89*INDEX('Energy Prices'!$F$19:$CR$24,MATCH($B99,'Energy Prices'!$C$19:$C$24,0),MATCH(Calc_Option4!BS$6,'Energy Prices'!$F$11:$CR$11,0))/100000,\"\")","v":""},{"$f":"IFERROR('Data Input - Option 4'!BX89*INDEX('Energy Prices'!$F$19:$CR$24,MATCH($B99,'Energy Prices'!$C$19:$C$24,0),MATCH(Calc_Option4!BT$6,'Energy Prices'!$F$11:$CR$11,0))/100000,\"\")","v":""},{"$f":"IFERROR('Data Input - Option 4'!BY89*INDEX('Energy Prices'!$F$19:$CR$24,MATCH($B99,'Energy Prices'!$C$19:$C$24,0),MATCH(Calc_Option4!BU$6,'Energy Prices'!$F$11:$CR$11,0))/100000,\"\")","v":""},{"$f":"IFERROR('Data Input - Option 4'!BZ89*INDEX('Energy Prices'!$F$19:$CR$24,MATCH($B99,'Energy Prices'!$C$19:$C$24,0),MATCH(Calc_Option4!BV$6,'Energy Prices'!$F$11:$CR$11,0))/100000,\"\")","v":""},{"$f":"IFERROR('Data Input - Option 4'!CA89*INDEX('Energy Prices'!$F$19:$CR$24,MATCH($B99,'Energy Prices'!$C$19:$C$24,0),MATCH(Calc_Option4!BW$6,'Energy Prices'!$F$11:$CR$11,0))/100000,\"\")","v":""},{"$f":"IFERROR('Data Input - Option 4'!CB89*INDEX('Energy Prices'!$F$19:$CR$24,MATCH($B99,'Energy Prices'!$C$19:$C$24,0),MATCH(Calc_Option4!BX$6,'Energy Prices'!$F$11:$CR$11,0))/100000,\"\")","v":""},{"$f":"IFERROR('Data Input - Option 4'!CC89*INDEX('Energy Prices'!$F$19:$CR$24,MATCH($B99,'Energy Prices'!$C$19:$C$24,0),MATCH(Calc_Option4!BY$6,'Energy Prices'!$F$11:$CR$11,0))/100000,\"\")","v":""},{"$f":"IFERROR('Data Input - Option 4'!CD89*INDEX('Energy Prices'!$F$19:$CR$24,MATCH($B99,'Energy Prices'!$C$19:$C$24,0),MATCH(Calc_Option4!BZ$6,'Energy Prices'!$F$11:$CR$11,0))/100000,\"\")","v":""},{"$f":"IFERROR('Data Input - Option 4'!CE89*INDEX('Energy Prices'!$F$19:$CR$24,MATCH($B99,'Energy Prices'!$C$19:$C$24,0),MATCH(Calc_Option4!CA$6,'Energy Prices'!$F$11:$CR$11,0))/100000,\"\")","v":""},{"$f":"IFERROR('Data Input - Option 4'!CF89*INDEX('Energy Prices'!$F$19:$CR$24,MATCH($B99,'Energy Prices'!$C$19:$C$24,0),MATCH(Calc_Option4!CB$6,'Energy Prices'!$F$11:$CR$11,0))/100000,\"\")","v":""},{"$f":"IFERROR('Data Input - Option 4'!CG89*INDEX('Energy Prices'!$F$19:$CR$24,MATCH($B99,'Energy Prices'!$C$19:$C$24,0),MATCH(Calc_Option4!CC$6,'Energy Prices'!$F$11:$CR$11,0))/100000,\"\")","v":""},{"$f":"IFERROR('Data Input - Option 4'!CH89*INDEX('Energy Prices'!$F$19:$CR$24,MATCH($B99,'Energy Prices'!$C$19:$C$24,0),MATCH(Calc_Option4!CD$6,'Energy Prices'!$F$11:$CR$11,0))/100000,\"\")","v":""},{"$f":"IFERROR('Data Input - Option 4'!CI89*INDEX('Energy Prices'!$F$19:$CR$24,MATCH($B99,'Energy Prices'!$C$19:$C$24,0),MATCH(Calc_Option4!CE$6,'Energy Prices'!$F$11:$CR$11,0))/100000,\"\")","v":""},{"$f":"IFERROR('Data Input - Option 4'!CJ89*INDEX('Energy Prices'!$F$19:$CR$24,MATCH($B99,'Energy Prices'!$C$19:$C$24,0),MATCH(Calc_Option4!CF$6,'Energy Prices'!$F$11:$CR$11,0))/100000,\"\")","v":""},{"$f":"IFERROR('Data Input - Option 4'!CK89*INDEX('Energy Prices'!$F$19:$CR$24,MATCH($B99,'Energy Prices'!$C$19:$C$24,0),MATCH(Calc_Option4!CG$6,'Energy Prices'!$F$11:$CR$11,0))/100000,\"\")","v":""},{"$f":"IFERROR('Data Input - Option 4'!CL89*INDEX('Energy Prices'!$F$19:$CR$24,MATCH($B99,'Energy Prices'!$C$19:$C$24,0),MATCH(Calc_Option4!CH$6,'Energy Prices'!$F$11:$CR$11,0))/100000,\"\")","v":""},{"$f":"IFERROR('Data Input - Option 4'!CM89*INDEX('Energy Prices'!$F$19:$CR$24,MATCH($B99,'Energy Prices'!$C$19:$C$24,0),MATCH(Calc_Option4!CI$6,'Energy Prices'!$F$11:$CR$11,0))/100000,\"\")","v":""},{"$f":"IFERROR('Data Input - Option 4'!CN89*INDEX('Energy Prices'!$F$19:$CR$24,MATCH($B99,'Energy Prices'!$C$19:$C$24,0),MATCH(Calc_Option4!CJ$6,'Energy Prices'!$F$11:$CR$11,0))/100000,\"\")","v":""},{"$f":"IFERROR('Data Input - Option 4'!CO89*INDEX('Energy Prices'!$F$19:$CR$24,MATCH($B99,'Energy Prices'!$C$19:$C$24,0),MATCH(Calc_Option4!CK$6,'Energy Prices'!$F$11:$CR$11,0))/100000,\"\")","v":""},{"$f":"IFERROR('Data Input - Option 4'!CP89*INDEX('Energy Prices'!$F$19:$CR$24,MATCH($B99,'Energy Prices'!$C$19:$C$24,0),MATCH(Calc_Option4!CL$6,'Energy Prices'!$F$11:$CR$11,0))/100000,\"\")","v":""},{"$f":"IFERROR('Data Input - Option 4'!CQ89*INDEX('Energy Prices'!$F$19:$CR$24,MATCH($B99,'Energy Prices'!$C$19:$C$24,0),MATCH(Calc_Option4!CM$6,'Energy Prices'!$F$11:$CR$11,0))/100000,\"\")","v":""},{"$f":"IFERROR('Data Input - Option 4'!CR89*INDEX('Energy Prices'!$F$19:$CR$24,MATCH($B99,'Energy Prices'!$C$19:$C$24,0),MATCH(Calc_Option4!CN$6,'Energy Prices'!$F$11:$CR$11,0))/100000,\"\")","v":""},{"$f":"IFERROR('Data Input - Option 4'!CS89*INDEX('Energy Prices'!$F$19:$CR$24,MATCH($B99,'Energy Prices'!$C$19:$C$24,0),MATCH(Calc_Option4!CO$6,'Energy Prices'!$F$11:$CR$11,0))/100000,\"\")","v":""},{"$f":"IFERROR('Data Input - Option 4'!CT89*INDEX('Energy Prices'!$F$19:$CR$24,MATCH($B99,'Energy Prices'!$C$19:$C$24,0),MATCH(Calc_Option4!CP$6,'Energy Prices'!$F$11:$CR$11,0))/100000,\"\")","v":""},{"$f":"IFERROR('Data Input - Option 4'!CU89*INDEX('Energy Prices'!$F$19:$CR$24,MATCH($B99,'Energy Prices'!$C$19:$C$24,0),MATCH(Calc_Option4!CQ$6,'Energy Prices'!$F$11:$CR$11,0))/100000,\"\")","v":""},{"$f":"IFERROR('Data Input - Option 4'!CV89*INDEX('Energy Prices'!$F$19:$CR$24,MATCH($B99,'Energy Prices'!$C$19:$C$24,0),MATCH(Calc_Option4!CR$6,'Energy Prices'!$F$11:$CR$11,0))/100000,\"\")","v":""},{"$f":"IFERROR('Data Input - Option 4'!CW89*INDEX('Energy Prices'!$F$19:$CR$24,MATCH($B99,'Energy Prices'!$C$19:$C$24,0),MATCH(Calc_Option4!CS$6,'Energy Prices'!$F$11:$CR$11,0))/100000,\"\")","v":""},{"$f":"IFERROR('Data Input - Option 4'!CX89*INDEX('Energy Prices'!$F$19:$CR$24,MATCH($B99,'Energy Prices'!$C$19:$C$24,0),MATCH(Calc_Option4!CT$6,'Energy Prices'!$F$11:$CR$11,0))/100000,\"\")","v":""},{"$f":"IFERROR('Data Input - Option 4'!CY89*INDEX('Energy Prices'!$F$19:$CR$24,MATCH($B99,'Energy Prices'!$C$19:$C$24,0),MATCH(Calc_Option4!CU$6,'Energy Prices'!$F$11:$CR$11,0))/100000,\"\")","v":""},{"$f":"IFERROR('Data Input - Option 4'!CZ89*INDEX('Energy Prices'!$F$19:$CR$24,MATCH($B99,'Energy Prices'!$C$19:$C$24,0),MATCH(Calc_Option4!CV$6,'Energy Prices'!$F$11:$CR$11,0))/100000,\"\")","v":""},{"$f":"IFERROR('Data Input - Option 4'!DA89*INDEX('Energy Prices'!$F$19:$CR$24,MATCH($B99,'Energy Prices'!$C$19:$C$24,0),MATCH(Calc_Option4!CW$6,'Energy Prices'!$F$11:$CR$11,0))/100000,\"\")","v":""},{"$f":"IFERROR('Data Input - Option 4'!DB89*INDEX('Energy Prices'!$F$19:$CR$24,MATCH($B99,'Energy Prices'!$C$19:$C$24,0),MATCH(Calc_Option4!CX$6,'Energy Prices'!$F$11:$CR$11,0))/100000,\"\")","v":""},{"$f":"IFERROR('Data Input - Option 4'!DC89*INDEX('Energy Prices'!$F$19:$CR$24,MATCH($B99,'Energy Prices'!$C$19:$C$24,0),MATCH(Calc_Option4!CY$6,'Energy Prices'!$F$11:$CR$11,0))/100000,\"\")","v":""}]
[]
[null,"Discounted energy","£000's",{"$f":"SUM(D94:D99)*D$7","v":2.7833124479980059E-4},{"$f":"SUM(E94:E99)*E$7","v":0},0,0,0,0,0,0,0,0,0,0,0,0,0,0,0,0,0,0,0,0,0,0,0,0,0,0,0,0,0,0,0,0,0,0,0,0,0,0,0,0,0,0,0,0,0,0,0,0,0,0,0,0,0,0,0,0,0,0,{"$f":"SUM(BL94:BL99)*BL$7","v":0},0,0,0,0,0,0,0,0,0,0,0,0,0,0,0,0,0,0,0,0,0,0,0,0,0,0,0,0,0,0,0,0,0,0,0,0,0,0,0]
[]
[null,"Air pollutant emissions- value"]
[null,{"$f":"B61","v":0},"£000's",{"$f":"IFERROR(IF(OR($C$110=FALSE,LEFT($B104,3)<>\"NOX\"),D53*INDEX('Damage costs'!$W$16:$W$43,MATCH($B104,'Damage costs'!$C$16:$C$43,0))/1000,D53*INDEX('Damage costs'!$AA$16:$AA$43,MATCH($B104,'Damage costs'!$C$16:$C$43,0))/1000),\"\")","v":""},{"$f":"IFERROR(IF(OR($C$110=FALSE,LEFT($B104,3)<>\"NOX\"),E53*INDEX('Damage costs'!$W$16:$W$43,MATCH($B104,'Damage costs'!$C$16:$C$43,0))/1000,E53*INDEX('Damage costs'!$AA$16:$AA$43,MATCH($B104,'Damage costs'!$C$16:$C$43,0))/1000),\"\")","v":""},{"$f":"IFERROR(IF(OR($C$110=FALSE,LEFT($B104,3)<>\"NOX\"),F53*INDEX('Damage costs'!$W$16:$W$43,MATCH($B104,'Damage costs'!$C$16:$C$43,0))/1000,F53*INDEX('Damage costs'!$AA$16:$AA$43,MATCH($B104,'Damage costs'!$C$16:$C$43,0))/1000),\"\")","v":""},{"$f":"IFERROR(IF(OR($C$110=FALSE,LEFT($B104,3)<>\"NOX\"),G53*INDEX('Damage costs'!$W$16:$W$43,MATCH($B104,'Damage costs'!$C$16:$C$43,0))/1000,G53*INDEX('Damage costs'!$AA$16:$AA$43,MATCH($B104,'Damage costs'!$C$16:$C$43,0))/1000),\"\")","v":""},{"$f":"IFERROR(IF(OR($C$110=FALSE,LEFT($B104,3)<>\"NOX\"),H53*INDEX('Damage costs'!$W$16:$W$43,MATCH($B104,'Damage costs'!$C$16:$C$43,0))/1000,H53*INDEX('Damage costs'!$AA$16:$AA$43,MATCH($B104,'Damage costs'!$C$16:$C$43,0))/1000),\"\")","v":""},{"$f":"IFERROR(IF(OR($C$110=FALSE,LEFT($B104,3)<>\"NOX\"),I53*INDEX('Damage costs'!$W$16:$W$43,MATCH($B104,'Damage costs'!$C$16:$C$43,0))/1000,I53*INDEX('Damage costs'!$AA$16:$AA$43,MATCH($B104,'Damage costs'!$C$16:$C$43,0))/1000),\"\")","v":""},{"$f":"IFERROR(IF(OR($C$110=FALSE,LEFT($B104,3)<>\"NOX\"),J53*INDEX('Damage costs'!$W$16:$W$43,MATCH($B104,'Damage costs'!$C$16:$C$43,0))/1000,J53*INDEX('Damage costs'!$AA$16:$AA$43,MATCH($B104,'Damage costs'!$C$16:$C$43,0))/1000),\"\")","v":""},{"$f":"IFERROR(IF(OR($C$110=FALSE,LEFT($B104,3)<>\"NOX\"),K53*INDEX('Damage costs'!$W$16:$W$43,MATCH($B104,'Damage costs'!$C$16:$C$43,0))/1000,K53*INDEX('Damage costs'!$AA$16:$AA$43,MATCH($B104,'Damage costs'!$C$16:$C$43,0))/1000),\"\")","v":""},{"$f":"IFERROR(IF(OR($C$110=FALSE,LEFT($B104,3)<>\"NOX\"),L53*INDEX('Damage costs'!$W$16:$W$43,MATCH($B104,'Damage costs'!$C$16:$C$43,0))/1000,L53*INDEX('Damage costs'!$AA$16:$AA$43,MATCH($B104,'Damage costs'!$C$16:$C$43,0))/1000),\"\")","v":""},{"$f":"IFERROR(IF(OR($C$110=FALSE,LEFT($B104,3)<>\"NOX\"),M53*INDEX('Damage costs'!$W$16:$W$43,MATCH($B104,'Damage costs'!$C$16:$C$43,0))/1000,M53*INDEX('Damage costs'!$AA$16:$AA$43,MATCH($B104,'Damage costs'!$C$16:$C$43,0))/1000),\"\")","v":""},{"$f":"IFERROR(IF(OR($C$110=FALSE,LEFT($B104,3)<>\"NOX\"),N53*INDEX('Damage costs'!$W$16:$W$43,MATCH($B104,'Damage costs'!$C$16:$C$43,0))/1000,N53*INDEX('Damage costs'!$AA$16:$AA$43,MATCH($B104,'Damage costs'!$C$16:$C$43,0))/1000),\"\")","v":""},{"$f":"IFERROR(IF(OR($C$110=FALSE,LEFT($B104,3)<>\"NOX\"),O53*INDEX('Damage costs'!$W$16:$W$43,MATCH($B104,'Damage costs'!$C$16:$C$43,0))/1000,O53*INDEX('Damage costs'!$AA$16:$AA$43,MATCH($B104,'Damage costs'!$C$16:$C$43,0))/1000),\"\")","v":""},{"$f":"IFERROR(IF(OR($C$110=FALSE,LEFT($B104,3)<>\"NOX\"),P53*INDEX('Damage costs'!$W$16:$W$43,MATCH($B104,'Damage costs'!$C$16:$C$43,0))/1000,P53*INDEX('Damage costs'!$AA$16:$AA$43,MATCH($B104,'Damage costs'!$C$16:$C$43,0))/1000),\"\")","v":""},{"$f":"IFERROR(IF(OR($C$110=FALSE,LEFT($B104,3)<>\"NOX\"),Q53*INDEX('Damage costs'!$W$16:$W$43,MATCH($B104,'Damage costs'!$C$16:$C$43,0))/1000,Q53*INDEX('Damage costs'!$AA$16:$AA$43,MATCH($B104,'Damage costs'!$C$16:$C$43,0))/1000),\"\")","v":""},{"$f":"IFERROR(IF(OR($C$110=FALSE,LEFT($B104,3)<>\"NOX\"),R53*INDEX('Damage costs'!$W$16:$W$43,MATCH($B104,'Damage costs'!$C$16:$C$43,0))/1000,R53*INDEX('Damage costs'!$AA$16:$AA$43,MATCH($B104,'Damage costs'!$C$16:$C$43,0))/1000),\"\")","v":""},{"$f":"IFERROR(IF(OR($C$110=FALSE,LEFT($B104,3)<>\"NOX\"),S53*INDEX('Damage costs'!$W$16:$W$43,MATCH($B104,'Damage costs'!$C$16:$C$43,0))/1000,S53*INDEX('Damage costs'!$AA$16:$AA$43,MATCH($B104,'Damage costs'!$C$16:$C$43,0))/1000),\"\")","v":""},{"$f":"IFERROR(IF(OR($C$110=FALSE,LEFT($B104,3)<>\"NOX\"),T53*INDEX('Damage costs'!$W$16:$W$43,MATCH($B104,'Damage costs'!$C$16:$C$43,0))/1000,T53*INDEX('Damage costs'!$AA$16:$AA$43,MATCH($B104,'Damage costs'!$C$16:$C$43,0))/1000),\"\")","v":""},{"$f":"IFERROR(IF(OR($C$110=FALSE,LEFT($B104,3)<>\"NOX\"),U53*INDEX('Damage costs'!$W$16:$W$43,MATCH($B104,'Damage costs'!$C$16:$C$43,0))/1000,U53*INDEX('Damage costs'!$AA$16:$AA$43,MATCH($B104,'Damage costs'!$C$16:$C$43,0))/1000),\"\")","v":""},{"$f":"IFERROR(IF(OR($C$110=FALSE,LEFT($B104,3)<>\"NOX\"),V53*INDEX('Damage costs'!$W$16:$W$43,MATCH($B104,'Damage costs'!$C$16:$C$43,0))/1000,V53*INDEX('Damage costs'!$AA$16:$AA$43,MATCH($B104,'Damage costs'!$C$16:$C$43,0))/1000),\"\")","v":""},{"$f":"IFERROR(IF(OR($C$110=FALSE,LEFT($B104,3)<>\"NOX\"),W53*INDEX('Damage costs'!$W$16:$W$43,MATCH($B104,'Damage costs'!$C$16:$C$43,0))/1000,W53*INDEX('Damage costs'!$AA$16:$AA$43,MATCH($B104,'Damage costs'!$C$16:$C$43,0))/1000),\"\")","v":""},{"$f":"IFERROR(IF(OR($C$110=FALSE,LEFT($B104,3)<>\"NOX\"),X53*INDEX('Damage costs'!$W$16:$W$43,MATCH($B104,'Damage costs'!$C$16:$C$43,0))/1000,X53*INDEX('Damage costs'!$AA$16:$AA$43,MATCH($B104,'Damage costs'!$C$16:$C$43,0))/1000),\"\")","v":""},{"$f":"IFERROR(IF(OR($C$110=FALSE,LEFT($B104,3)<>\"NOX\"),Y53*INDEX('Damage costs'!$W$16:$W$43,MATCH($B104,'Damage costs'!$C$16:$C$43,0))/1000,Y53*INDEX('Damage costs'!$AA$16:$AA$43,MATCH($B104,'Damage costs'!$C$16:$C$43,0))/1000),\"\")","v":""},{"$f":"IFERROR(IF(OR($C$110=FALSE,LEFT($B104,3)<>\"NOX\"),Z53*INDEX('Damage costs'!$W$16:$W$43,MATCH($B104,'Damage costs'!$C$16:$C$43,0))/1000,Z53*INDEX('Damage costs'!$AA$16:$AA$43,MATCH($B104,'Damage costs'!$C$16:$C$43,0))/1000),\"\")","v":""},{"$f":"IFERROR(IF(OR($C$110=FALSE,LEFT($B104,3)<>\"NOX\"),AA53*INDEX('Damage costs'!$W$16:$W$43,MATCH($B104,'Damage costs'!$C$16:$C$43,0))/1000,AA53*INDEX('Damage costs'!$AA$16:$AA$43,MATCH($B104,'Damage costs'!$C$16:$C$43,0))/1000),\"\")","v":""},{"$f":"IFERROR(IF(OR($C$110=FALSE,LEFT($B104,3)<>\"NOX\"),AB53*INDEX('Damage costs'!$W$16:$W$43,MATCH($B104,'Damage costs'!$C$16:$C$43,0))/1000,AB53*INDEX('Damage costs'!$AA$16:$AA$43,MATCH($B104,'Damage costs'!$C$16:$C$43,0))/1000),\"\")","v":""},{"$f":"IFERROR(IF(OR($C$110=FALSE,LEFT($B104,3)<>\"NOX\"),AC53*INDEX('Damage costs'!$W$16:$W$43,MATCH($B104,'Damage costs'!$C$16:$C$43,0))/1000,AC53*INDEX('Damage costs'!$AA$16:$AA$43,MATCH($B104,'Damage costs'!$C$16:$C$43,0))/1000),\"\")","v":""},{"$f":"IFERROR(IF(OR($C$110=FALSE,LEFT($B104,3)<>\"NOX\"),AD53*INDEX('Damage costs'!$W$16:$W$43,MATCH($B104,'Damage costs'!$C$16:$C$43,0))/1000,AD53*INDEX('Damage costs'!$AA$16:$AA$43,MATCH($B104,'Damage costs'!$C$16:$C$43,0))/1000),\"\")","v":""},{"$f":"IFERROR(IF(OR($C$110=FALSE,LEFT($B104,3)<>\"NOX\"),AE53*INDEX('Damage costs'!$W$16:$W$43,MATCH($B104,'Damage costs'!$C$16:$C$43,0))/1000,AE53*INDEX('Damage costs'!$AA$16:$AA$43,MATCH($B104,'Damage costs'!$C$16:$C$43,0))/1000),\"\")","v":""},{"$f":"IFERROR(IF(OR($C$110=FALSE,LEFT($B104,3)<>\"NOX\"),AF53*INDEX('Damage costs'!$W$16:$W$43,MATCH($B104,'Damage costs'!$C$16:$C$43,0))/1000,AF53*INDEX('Damage costs'!$AA$16:$AA$43,MATCH($B104,'Damage costs'!$C$16:$C$43,0))/1000),\"\")","v":""},{"$f":"IFERROR(IF(OR($C$110=FALSE,LEFT($B104,3)<>\"NOX\"),AG53*INDEX('Damage costs'!$W$16:$W$43,MATCH($B104,'Damage costs'!$C$16:$C$43,0))/1000,AG53*INDEX('Damage costs'!$AA$16:$AA$43,MATCH($B104,'Damage costs'!$C$16:$C$43,0))/1000),\"\")","v":""},{"$f":"IFERROR(IF(OR($C$110=FALSE,LEFT($B104,3)<>\"NOX\"),AH53*INDEX('Damage costs'!$W$16:$W$43,MATCH($B104,'Damage costs'!$C$16:$C$43,0))/1000,AH53*INDEX('Damage costs'!$AA$16:$AA$43,MATCH($B104,'Damage costs'!$C$16:$C$43,0))/1000),\"\")","v":""},{"$f":"IFERROR(IF(OR($C$110=FALSE,LEFT($B104,3)<>\"NOX\"),AI53*INDEX('Damage costs'!$W$16:$W$43,MATCH($B104,'Damage costs'!$C$16:$C$43,0))/1000,AI53*INDEX('Damage costs'!$AA$16:$AA$43,MATCH($B104,'Damage costs'!$C$16:$C$43,0))/1000),\"\")","v":""},{"$f":"IFERROR(IF(OR($C$110=FALSE,LEFT($B104,3)<>\"NOX\"),AJ53*INDEX('Damage costs'!$W$16:$W$43,MATCH($B104,'Damage costs'!$C$16:$C$43,0))/1000,AJ53*INDEX('Damage costs'!$AA$16:$AA$43,MATCH($B104,'Damage costs'!$C$16:$C$43,0))/1000),\"\")","v":""},{"$f":"IFERROR(IF(OR($C$110=FALSE,LEFT($B104,3)<>\"NOX\"),AK53*INDEX('Damage costs'!$W$16:$W$43,MATCH($B104,'Damage costs'!$C$16:$C$43,0))/1000,AK53*INDEX('Damage costs'!$AA$16:$AA$43,MATCH($B104,'Damage costs'!$C$16:$C$43,0))/1000),\"\")","v":""},{"$f":"IFERROR(IF(OR($C$110=FALSE,LEFT($B104,3)<>\"NOX\"),AL53*INDEX('Damage costs'!$W$16:$W$43,MATCH($B104,'Damage costs'!$C$16:$C$43,0))/1000,AL53*INDEX('Damage costs'!$AA$16:$AA$43,MATCH($B104,'Damage costs'!$C$16:$C$43,0))/1000),\"\")","v":""},{"$f":"IFERROR(IF(OR($C$110=FALSE,LEFT($B104,3)<>\"NOX\"),AM53*INDEX('Damage costs'!$W$16:$W$43,MATCH($B104,'Damage costs'!$C$16:$C$43,0))/1000,AM53*INDEX('Damage costs'!$AA$16:$AA$43,MATCH($B104,'Damage costs'!$C$16:$C$43,0))/1000),\"\")","v":""},{"$f":"IFERROR(IF(OR($C$110=FALSE,LEFT($B104,3)<>\"NOX\"),AN53*INDEX('Damage costs'!$W$16:$W$43,MATCH($B104,'Damage costs'!$C$16:$C$43,0))/1000,AN53*INDEX('Damage costs'!$AA$16:$AA$43,MATCH($B104,'Damage costs'!$C$16:$C$43,0))/1000),\"\")","v":""},{"$f":"IFERROR(IF(OR($C$110=FALSE,LEFT($B104,3)<>\"NOX\"),AO53*INDEX('Damage costs'!$W$16:$W$43,MATCH($B104,'Damage costs'!$C$16:$C$43,0))/1000,AO53*INDEX('Damage costs'!$AA$16:$AA$43,MATCH($B104,'Damage costs'!$C$16:$C$43,0))/1000),\"\")","v":""},{"$f":"IFERROR(IF(OR($C$110=FALSE,LEFT($B104,3)<>\"NOX\"),AP53*INDEX('Damage costs'!$W$16:$W$43,MATCH($B104,'Damage costs'!$C$16:$C$43,0))/1000,AP53*INDEX('Damage costs'!$AA$16:$AA$43,MATCH($B104,'Damage costs'!$C$16:$C$43,0))/1000),\"\")","v":""},{"$f":"IFERROR(IF(OR($C$110=FALSE,LEFT($B104,3)<>\"NOX\"),AQ53*INDEX('Damage costs'!$W$16:$W$43,MATCH($B104,'Damage costs'!$C$16:$C$43,0))/1000,AQ53*INDEX('Damage costs'!$AA$16:$AA$43,MATCH($B104,'Damage costs'!$C$16:$C$43,0))/1000),\"\")","v":""},{"$f":"IFERROR(IF(OR($C$110=FALSE,LEFT($B104,3)<>\"NOX\"),AR53*INDEX('Damage costs'!$W$16:$W$43,MATCH($B104,'Damage costs'!$C$16:$C$43,0))/1000,AR53*INDEX('Damage costs'!$AA$16:$AA$43,MATCH($B104,'Damage costs'!$C$16:$C$43,0))/1000),\"\")","v":""},{"$f":"IFERROR(IF(OR($C$110=FALSE,LEFT($B104,3)<>\"NOX\"),AS53*INDEX('Damage costs'!$W$16:$W$43,MATCH($B104,'Damage costs'!$C$16:$C$43,0))/1000,AS53*INDEX('Damage costs'!$AA$16:$AA$43,MATCH($B104,'Damage costs'!$C$16:$C$43,0))/1000),\"\")","v":""},{"$f":"IFERROR(IF(OR($C$110=FALSE,LEFT($B104,3)<>\"NOX\"),AT53*INDEX('Damage costs'!$W$16:$W$43,MATCH($B104,'Damage costs'!$C$16:$C$43,0))/1000,AT53*INDEX('Damage costs'!$AA$16:$AA$43,MATCH($B104,'Damage costs'!$C$16:$C$43,0))/1000),\"\")","v":""},{"$f":"IFERROR(IF(OR($C$110=FALSE,LEFT($B104,3)<>\"NOX\"),AU53*INDEX('Damage costs'!$W$16:$W$43,MATCH($B104,'Damage costs'!$C$16:$C$43,0))/1000,AU53*INDEX('Damage costs'!$AA$16:$AA$43,MATCH($B104,'Damage costs'!$C$16:$C$43,0))/1000),\"\")","v":""},{"$f":"IFERROR(IF(OR($C$110=FALSE,LEFT($B104,3)<>\"NOX\"),AV53*INDEX('Damage costs'!$W$16:$W$43,MATCH($B104,'Damage costs'!$C$16:$C$43,0))/1000,AV53*INDEX('Damage costs'!$AA$16:$AA$43,MATCH($B104,'Damage costs'!$C$16:$C$43,0))/1000),\"\")","v":""},{"$f":"IFERROR(IF(OR($C$110=FALSE,LEFT($B104,3)<>\"NOX\"),AW53*INDEX('Damage costs'!$W$16:$W$43,MATCH($B104,'Damage costs'!$C$16:$C$43,0))/1000,AW53*INDEX('Damage costs'!$AA$16:$AA$43,MATCH($B104,'Damage costs'!$C$16:$C$43,0))/1000),\"\")","v":""},{"$f":"IFERROR(IF(OR($C$110=FALSE,LEFT($B104,3)<>\"NOX\"),AX53*INDEX('Damage costs'!$W$16:$W$43,MATCH($B104,'Damage costs'!$C$16:$C$43,0))/1000,AX53*INDEX('Damage costs'!$AA$16:$AA$43,MATCH($B104,'Damage costs'!$C$16:$C$43,0))/1000),\"\")","v":""},{"$f":"IFERROR(IF(OR($C$110=FALSE,LEFT($B104,3)<>\"NOX\"),AY53*INDEX('Damage costs'!$W$16:$W$43,MATCH($B104,'Damage costs'!$C$16:$C$43,0))/1000,AY53*INDEX('Damage costs'!$AA$16:$AA$43,MATCH($B104,'Damage costs'!$C$16:$C$43,0))/1000),\"\")","v":""},{"$f":"IFERROR(IF(OR($C$110=FALSE,LEFT($B104,3)<>\"NOX\"),AZ53*INDEX('Damage costs'!$W$16:$W$43,MATCH($B104,'Damage costs'!$C$16:$C$43,0))/1000,AZ53*INDEX('Damage costs'!$AA$16:$AA$43,MATCH($B104,'Damage costs'!$C$16:$C$43,0))/1000),\"\")","v":""},{"$f":"IFERROR(IF(OR($C$110=FALSE,LEFT($B104,3)<>\"NOX\"),BA53*INDEX('Damage costs'!$W$16:$W$43,MATCH($B104,'Damage costs'!$C$16:$C$43,0))/1000,BA53*INDEX('Damage costs'!$AA$16:$AA$43,MATCH($B104,'Damage costs'!$C$16:$C$43,0))/1000),\"\")","v":""},{"$f":"IFERROR(IF(OR($C$110=FALSE,LEFT($B104,3)<>\"NOX\"),BB53*INDEX('Damage costs'!$W$16:$W$43,MATCH($B104,'Damage costs'!$C$16:$C$43,0))/1000,BB53*INDEX('Damage costs'!$AA$16:$AA$43,MATCH($B104,'Damage costs'!$C$16:$C$43,0))/1000),\"\")","v":""},{"$f":"IFERROR(IF(OR($C$110=FALSE,LEFT($B104,3)<>\"NOX\"),BC53*INDEX('Damage costs'!$W$16:$W$43,MATCH($B104,'Damage costs'!$C$16:$C$43,0))/1000,BC53*INDEX('Damage costs'!$AA$16:$AA$43,MATCH($B104,'Damage costs'!$C$16:$C$43,0))/1000),\"\")","v":""},{"$f":"IFERROR(IF(OR($C$110=FALSE,LEFT($B104,3)<>\"NOX\"),BD53*INDEX('Damage costs'!$W$16:$W$43,MATCH($B104,'Damage costs'!$C$16:$C$43,0))/1000,BD53*INDEX('Damage costs'!$AA$16:$AA$43,MATCH($B104,'Damage costs'!$C$16:$C$43,0))/1000),\"\")","v":""},{"$f":"IFERROR(IF(OR($C$110=FALSE,LEFT($B104,3)<>\"NOX\"),BE53*INDEX('Damage costs'!$W$16:$W$43,MATCH($B104,'Damage costs'!$C$16:$C$43,0))/1000,BE53*INDEX('Damage costs'!$AA$16:$AA$43,MATCH($B104,'Damage costs'!$C$16:$C$43,0))/1000),\"\")","v":""},{"$f":"IFERROR(IF(OR($C$110=FALSE,LEFT($B104,3)<>\"NOX\"),BF53*INDEX('Damage costs'!$W$16:$W$43,MATCH($B104,'Damage costs'!$C$16:$C$43,0))/1000,BF53*INDEX('Damage costs'!$AA$16:$AA$43,MATCH($B104,'Damage costs'!$C$16:$C$43,0))/1000),\"\")","v":""},{"$f":"IFERROR(IF(OR($C$110=FALSE,LEFT($B104,3)<>\"NOX\"),BG53*INDEX('Damage costs'!$W$16:$W$43,MATCH($B104,'Damage costs'!$C$16:$C$43,0))/1000,BG53*INDEX('Damage costs'!$AA$16:$AA$43,MATCH($B104,'Damage costs'!$C$16:$C$43,0))/1000),\"\")","v":""},{"$f":"IFERROR(IF(OR($C$110=FALSE,LEFT($B104,3)<>\"NOX\"),BH53*INDEX('Damage costs'!$W$16:$W$43,MATCH($B104,'Damage costs'!$C$16:$C$43,0))/1000,BH53*INDEX('Damage costs'!$AA$16:$AA$43,MATCH($B104,'Damage costs'!$C$16:$C$43,0))/1000),\"\")","v":""},{"$f":"IFERROR(IF(OR($C$110=FALSE,LEFT($B104,3)<>\"NOX\"),BI53*INDEX('Damage costs'!$W$16:$W$43,MATCH($B104,'Damage costs'!$C$16:$C$43,0))/1000,BI53*INDEX('Damage costs'!$AA$16:$AA$43,MATCH($B104,'Damage costs'!$C$16:$C$43,0))/1000),\"\")","v":""},{"$f":"IFERROR(IF(OR($C$110=FALSE,LEFT($B104,3)<>\"NOX\"),BJ53*INDEX('Damage costs'!$W$16:$W$43,MATCH($B104,'Damage costs'!$C$16:$C$43,0))/1000,BJ53*INDEX('Damage costs'!$AA$16:$AA$43,MATCH($B104,'Damage costs'!$C$16:$C$43,0))/1000),\"\")","v":""},{"$f":"IFERROR(IF(OR($C$110=FALSE,LEFT($B104,3)<>\"NOX\"),BK53*INDEX('Damage costs'!$W$16:$W$43,MATCH($B104,'Damage costs'!$C$16:$C$43,0))/1000,BK53*INDEX('Damage costs'!$AA$16:$AA$43,MATCH($B104,'Damage costs'!$C$16:$C$43,0))/1000),\"\")","v":""},{"$f":"IFERROR(IF(OR($C$110=FALSE,LEFT($B104,3)<>\"NOX\"),BL53*INDEX('Damage costs'!$W$16:$W$43,MATCH($B104,'Damage costs'!$C$16:$C$43,0))/1000,BL53*INDEX('Damage costs'!$AA$16:$AA$43,MATCH($B104,'Damage costs'!$C$16:$C$43,0))/1000),\"\")","v":""},{"$f":"IFERROR(IF(OR($C$110=FALSE,LEFT($B104,3)<>\"NOX\"),BM53*INDEX('Damage costs'!$W$16:$W$43,MATCH($B104,'Damage costs'!$C$16:$C$43,0))/1000,BM53*INDEX('Damage costs'!$AA$16:$AA$43,MATCH($B104,'Damage costs'!$C$16:$C$43,0))/1000),\"\")","v":""},{"$f":"IFERROR(IF(OR($C$110=FALSE,LEFT($B104,3)<>\"NOX\"),BN53*INDEX('Damage costs'!$W$16:$W$43,MATCH($B104,'Damage costs'!$C$16:$C$43,0))/1000,BN53*INDEX('Damage costs'!$AA$16:$AA$43,MATCH($B104,'Damage costs'!$C$16:$C$43,0))/1000),\"\")","v":""},{"$f":"IFERROR(IF(OR($C$110=FALSE,LEFT($B104,3)<>\"NOX\"),BO53*INDEX('Damage costs'!$W$16:$W$43,MATCH($B104,'Damage costs'!$C$16:$C$43,0))/1000,BO53*INDEX('Damage costs'!$AA$16:$AA$43,MATCH($B104,'Damage costs'!$C$16:$C$43,0))/1000),\"\")","v":""},{"$f":"IFERROR(IF(OR($C$110=FALSE,LEFT($B104,3)<>\"NOX\"),BP53*INDEX('Damage costs'!$W$16:$W$43,MATCH($B104,'Damage costs'!$C$16:$C$43,0))/1000,BP53*INDEX('Damage costs'!$AA$16:$AA$43,MATCH($B104,'Damage costs'!$C$16:$C$43,0))/1000),\"\")","v":""},{"$f":"IFERROR(IF(OR($C$110=FALSE,LEFT($B104,3)<>\"NOX\"),BQ53*INDEX('Damage costs'!$W$16:$W$43,MATCH($B104,'Damage costs'!$C$16:$C$43,0))/1000,BQ53*INDEX('Damage costs'!$AA$16:$AA$43,MATCH($B104,'Damage costs'!$C$16:$C$43,0))/1000),\"\")","v":""},{"$f":"IFERROR(IF(OR($C$110=FALSE,LEFT($B104,3)<>\"NOX\"),BR53*INDEX('Damage costs'!$W$16:$W$43,MATCH($B104,'Damage costs'!$C$16:$C$43,0))/1000,BR53*INDEX('Damage costs'!$AA$16:$AA$43,MATCH($B104,'Damage costs'!$C$16:$C$43,0))/1000),\"\")","v":""},{"$f":"IFERROR(IF(OR($C$110=FALSE,LEFT($B104,3)<>\"NOX\"),BS53*INDEX('Damage costs'!$W$16:$W$43,MATCH($B104,'Damage costs'!$C$16:$C$43,0))/1000,BS53*INDEX('Damage costs'!$AA$16:$AA$43,MATCH($B104,'Damage costs'!$C$16:$C$43,0))/1000),\"\")","v":""},{"$f":"IFERROR(IF(OR($C$110=FALSE,LEFT($B104,3)<>\"NOX\"),BT53*INDEX('Damage costs'!$W$16:$W$43,MATCH($B104,'Damage costs'!$C$16:$C$43,0))/1000,BT53*INDEX('Damage costs'!$AA$16:$AA$43,MATCH($B104,'Damage costs'!$C$16:$C$43,0))/1000),\"\")","v":""},{"$f":"IFERROR(IF(OR($C$110=FALSE,LEFT($B104,3)<>\"NOX\"),BU53*INDEX('Damage costs'!$W$16:$W$43,MATCH($B104,'Damage costs'!$C$16:$C$43,0))/1000,BU53*INDEX('Damage costs'!$AA$16:$AA$43,MATCH($B104,'Damage costs'!$C$16:$C$43,0))/1000),\"\")","v":""},{"$f":"IFERROR(IF(OR($C$110=FALSE,LEFT($B104,3)<>\"NOX\"),BV53*INDEX('Damage costs'!$W$16:$W$43,MATCH($B104,'Damage costs'!$C$16:$C$43,0))/1000,BV53*INDEX('Damage costs'!$AA$16:$AA$43,MATCH($B104,'Damage costs'!$C$16:$C$43,0))/1000),\"\")","v":""},{"$f":"IFERROR(IF(OR($C$110=FALSE,LEFT($B104,3)<>\"NOX\"),BW53*INDEX('Damage costs'!$W$16:$W$43,MATCH($B104,'Damage costs'!$C$16:$C$43,0))/1000,BW53*INDEX('Damage costs'!$AA$16:$AA$43,MATCH($B104,'Damage costs'!$C$16:$C$43,0))/1000),\"\")","v":""},{"$f":"IFERROR(IF(OR($C$110=FALSE,LEFT($B104,3)<>\"NOX\"),BX53*INDEX('Damage costs'!$W$16:$W$43,MATCH($B104,'Damage costs'!$C$16:$C$43,0))/1000,BX53*INDEX('Damage costs'!$AA$16:$AA$43,MATCH($B104,'Damage costs'!$C$16:$C$43,0))/1000),\"\")","v":""},{"$f":"IFERROR(IF(OR($C$110=FALSE,LEFT($B104,3)<>\"NOX\"),BY53*INDEX('Damage costs'!$W$16:$W$43,MATCH($B104,'Damage costs'!$C$16:$C$43,0))/1000,BY53*INDEX('Damage costs'!$AA$16:$AA$43,MATCH($B104,'Damage costs'!$C$16:$C$43,0))/1000),\"\")","v":""},{"$f":"IFERROR(IF(OR($C$110=FALSE,LEFT($B104,3)<>\"NOX\"),BZ53*INDEX('Damage costs'!$W$16:$W$43,MATCH($B104,'Damage costs'!$C$16:$C$43,0))/1000,BZ53*INDEX('Damage costs'!$AA$16:$AA$43,MATCH($B104,'Damage costs'!$C$16:$C$43,0))/1000),\"\")","v":""},{"$f":"IFERROR(IF(OR($C$110=FALSE,LEFT($B104,3)<>\"NOX\"),CA53*INDEX('Damage costs'!$W$16:$W$43,MATCH($B104,'Damage costs'!$C$16:$C$43,0))/1000,CA53*INDEX('Damage costs'!$AA$16:$AA$43,MATCH($B104,'Damage costs'!$C$16:$C$43,0))/1000),\"\")","v":""},{"$f":"IFERROR(IF(OR($C$110=FALSE,LEFT($B104,3)<>\"NOX\"),CB53*INDEX('Damage costs'!$W$16:$W$43,MATCH($B104,'Damage costs'!$C$16:$C$43,0))/1000,CB53*INDEX('Damage costs'!$AA$16:$AA$43,MATCH($B104,'Damage costs'!$C$16:$C$43,0))/1000),\"\")","v":""},{"$f":"IFERROR(IF(OR($C$110=FALSE,LEFT($B104,3)<>\"NOX\"),CC53*INDEX('Damage costs'!$W$16:$W$43,MATCH($B104,'Damage costs'!$C$16:$C$43,0))/1000,CC53*INDEX('Damage costs'!$AA$16:$AA$43,MATCH($B104,'Damage costs'!$C$16:$C$43,0))/1000),\"\")","v":""},{"$f":"IFERROR(IF(OR($C$110=FALSE,LEFT($B104,3)<>\"NOX\"),CD53*INDEX('Damage costs'!$W$16:$W$43,MATCH($B104,'Damage costs'!$C$16:$C$43,0))/1000,CD53*INDEX('Damage costs'!$AA$16:$AA$43,MATCH($B104,'Damage costs'!$C$16:$C$43,0))/1000),\"\")","v":""},{"$f":"IFERROR(IF(OR($C$110=FALSE,LEFT($B104,3)<>\"NOX\"),CE53*INDEX('Damage costs'!$W$16:$W$43,MATCH($B104,'Damage costs'!$C$16:$C$43,0))/1000,CE53*INDEX('Damage costs'!$AA$16:$AA$43,MATCH($B104,'Damage costs'!$C$16:$C$43,0))/1000),\"\")","v":""},{"$f":"IFERROR(IF(OR($C$110=FALSE,LEFT($B104,3)<>\"NOX\"),CF53*INDEX('Damage costs'!$W$16:$W$43,MATCH($B104,'Damage costs'!$C$16:$C$43,0))/1000,CF53*INDEX('Damage costs'!$AA$16:$AA$43,MATCH($B104,'Damage costs'!$C$16:$C$43,0))/1000),\"\")","v":""},{"$f":"IFERROR(IF(OR($C$110=FALSE,LEFT($B104,3)<>\"NOX\"),CG53*INDEX('Damage costs'!$W$16:$W$43,MATCH($B104,'Damage costs'!$C$16:$C$43,0))/1000,CG53*INDEX('Damage costs'!$AA$16:$AA$43,MATCH($B104,'Damage costs'!$C$16:$C$43,0))/1000),\"\")","v":""},{"$f":"IFERROR(IF(OR($C$110=FALSE,LEFT($B104,3)<>\"NOX\"),CH53*INDEX('Damage costs'!$W$16:$W$43,MATCH($B104,'Damage costs'!$C$16:$C$43,0))/1000,CH53*INDEX('Damage costs'!$AA$16:$AA$43,MATCH($B104,'Damage costs'!$C$16:$C$43,0))/1000),\"\")","v":""},{"$f":"IFERROR(IF(OR($C$110=FALSE,LEFT($B104,3)<>\"NOX\"),CI53*INDEX('Damage costs'!$W$16:$W$43,MATCH($B104,'Damage costs'!$C$16:$C$43,0))/1000,CI53*INDEX('Damage costs'!$AA$16:$AA$43,MATCH($B104,'Damage costs'!$C$16:$C$43,0))/1000),\"\")","v":""},{"$f":"IFERROR(IF(OR($C$110=FALSE,LEFT($B104,3)<>\"NOX\"),CJ53*INDEX('Damage costs'!$W$16:$W$43,MATCH($B104,'Damage costs'!$C$16:$C$43,0))/1000,CJ53*INDEX('Damage costs'!$AA$16:$AA$43,MATCH($B104,'Damage costs'!$C$16:$C$43,0))/1000),\"\")","v":""},{"$f":"IFERROR(IF(OR($C$110=FALSE,LEFT($B104,3)<>\"NOX\"),CK53*INDEX('Damage costs'!$W$16:$W$43,MATCH($B104,'Damage costs'!$C$16:$C$43,0))/1000,CK53*INDEX('Damage costs'!$AA$16:$AA$43,MATCH($B104,'Damage costs'!$C$16:$C$43,0))/1000),\"\")","v":""},{"$f":"IFERROR(IF(OR($C$110=FALSE,LEFT($B104,3)<>\"NOX\"),CL53*INDEX('Damage costs'!$W$16:$W$43,MATCH($B104,'Damage costs'!$C$16:$C$43,0))/1000,CL53*INDEX('Damage costs'!$AA$16:$AA$43,MATCH($B104,'Damage costs'!$C$16:$C$43,0))/1000),\"\")","v":""},{"$f":"IFERROR(IF(OR($C$110=FALSE,LEFT($B104,3)<>\"NOX\"),CM53*INDEX('Damage costs'!$W$16:$W$43,MATCH($B104,'Damage costs'!$C$16:$C$43,0))/1000,CM53*INDEX('Damage costs'!$AA$16:$AA$43,MATCH($B104,'Damage costs'!$C$16:$C$43,0))/1000),\"\")","v":""},{"$f":"IFERROR(IF(OR($C$110=FALSE,LEFT($B104,3)<>\"NOX\"),CN53*INDEX('Damage costs'!$W$16:$W$43,MATCH($B104,'Damage costs'!$C$16:$C$43,0))/1000,CN53*INDEX('Damage costs'!$AA$16:$AA$43,MATCH($B104,'Damage costs'!$C$16:$C$43,0))/1000),\"\")","v":""},{"$f":"IFERROR(IF(OR($C$110=FALSE,LEFT($B104,3)<>\"NOX\"),CO53*INDEX('Damage costs'!$W$16:$W$43,MATCH($B104,'Damage costs'!$C$16:$C$43,0))/1000,CO53*INDEX('Damage costs'!$AA$16:$AA$43,MATCH($B104,'Damage costs'!$C$16:$C$43,0))/1000),\"\")","v":""},{"$f":"IFERROR(IF(OR($C$110=FALSE,LEFT($B104,3)<>\"NOX\"),CP53*INDEX('Damage costs'!$W$16:$W$43,MATCH($B104,'Damage costs'!$C$16:$C$43,0))/1000,CP53*INDEX('Damage costs'!$AA$16:$AA$43,MATCH($B104,'Damage costs'!$C$16:$C$43,0))/1000),\"\")","v":""},{"$f":"IFERROR(IF(OR($C$110=FALSE,LEFT($B104,3)<>\"NOX\"),CQ53*INDEX('Damage costs'!$W$16:$W$43,MATCH($B104,'Damage costs'!$C$16:$C$43,0))/1000,CQ53*INDEX('Damage costs'!$AA$16:$AA$43,MATCH($B104,'Damage costs'!$C$16:$C$43,0))/1000),\"\")","v":""},{"$f":"IFERROR(IF(OR($C$110=FALSE,LEFT($B104,3)<>\"NOX\"),CR53*INDEX('Damage costs'!$W$16:$W$43,MATCH($B104,'Damage costs'!$C$16:$C$43,0))/1000,CR53*INDEX('Damage costs'!$AA$16:$AA$43,MATCH($B104,'Damage costs'!$C$16:$C$43,0))/1000),\"\")","v":""},{"$f":"IFERROR(IF(OR($C$110=FALSE,LEFT($B104,3)<>\"NOX\"),CS53*INDEX('Damage costs'!$W$16:$W$43,MATCH($B104,'Damage costs'!$C$16:$C$43,0))/1000,CS53*INDEX('Damage costs'!$AA$16:$AA$43,MATCH($B104,'Damage costs'!$C$16:$C$43,0))/1000),\"\")","v":""},{"$f":"IFERROR(IF(OR($C$110=FALSE,LEFT($B104,3)<>\"NOX\"),CT53*INDEX('Damage costs'!$W$16:$W$43,MATCH($B104,'Damage costs'!$C$16:$C$43,0))/1000,CT53*INDEX('Damage costs'!$AA$16:$AA$43,MATCH($B104,'Damage costs'!$C$16:$C$43,0))/1000),\"\")","v":""},{"$f":"IFERROR(IF(OR($C$110=FALSE,LEFT($B104,3)<>\"NOX\"),CU53*INDEX('Damage costs'!$W$16:$W$43,MATCH($B104,'Damage costs'!$C$16:$C$43,0))/1000,CU53*INDEX('Damage costs'!$AA$16:$AA$43,MATCH($B104,'Damage costs'!$C$16:$C$43,0))/1000),\"\")","v":""},{"$f":"IFERROR(IF(OR($C$110=FALSE,LEFT($B104,3)<>\"NOX\"),CV53*INDEX('Damage costs'!$W$16:$W$43,MATCH($B104,'Damage costs'!$C$16:$C$43,0))/1000,CV53*INDEX('Damage costs'!$AA$16:$AA$43,MATCH($B104,'Damage costs'!$C$16:$C$43,0))/1000),\"\")","v":""},{"$f":"IFERROR(IF(OR($C$110=FALSE,LEFT($B104,3)<>\"NOX\"),CW53*INDEX('Damage costs'!$W$16:$W$43,MATCH($B104,'Damage costs'!$C$16:$C$43,0))/1000,CW53*INDEX('Damage costs'!$AA$16:$AA$43,MATCH($B104,'Damage costs'!$C$16:$C$43,0))/1000),\"\")","v":""},{"$f":"IFERROR(IF(OR($C$110=FALSE,LEFT($B104,3)<>\"NOX\"),CX53*INDEX('Damage costs'!$W$16:$W$43,MATCH($B104,'Damage costs'!$C$16:$C$43,0))/1000,CX53*INDEX('Damage costs'!$AA$16:$AA$43,MATCH($B104,'Damage costs'!$C$16:$C$43,0))/1000),\"\")","v":""},{"$f":"IFERROR(IF(OR($C$110=FALSE,LEFT($B104,3)<>\"NOX\"),CY53*INDEX('Damage costs'!$W$16:$W$43,MATCH($B104,'Damage costs'!$C$16:$C$43,0))/1000,CY53*INDEX('Damage costs'!$AA$16:$AA$43,MATCH($B104,'Damage costs'!$C$16:$C$43,0))/1000),\"\")","v":""}]
[null,0,"£000's",{"$f":"IFERROR(IF(OR($C$110=FALSE,LEFT($B105,3)<>\"NOX\"),D54*INDEX('Damage costs'!$W$16:$W$43,MATCH($B105,'Damage costs'!$C$16:$C$43,0))/1000,D54*INDEX('Damage costs'!$AA$16:$AA$43,MATCH($B105,'Damage costs'!$C$16:$C$43,0))/1000),\"\")","v":""},{"$f":"IFERROR(IF(OR($C$110=FALSE,LEFT($B105,3)<>\"NOX\"),E54*INDEX('Damage costs'!$W$16:$W$43,MATCH($B105,'Damage costs'!$C$16:$C$43,0))/1000,E54*INDEX('Damage costs'!$AA$16:$AA$43,MATCH($B105,'Damage costs'!$C$16:$C$43,0))/1000),\"\")","v":""},{"$f":"IFERROR(IF(OR($C$110=FALSE,LEFT($B105,3)<>\"NOX\"),F54*INDEX('Damage costs'!$W$16:$W$43,MATCH($B105,'Damage costs'!$C$16:$C$43,0))/1000,F54*INDEX('Damage costs'!$AA$16:$AA$43,MATCH($B105,'Damage costs'!$C$16:$C$43,0))/1000),\"\")","v":""},{"$f":"IFERROR(IF(OR($C$110=FALSE,LEFT($B105,3)<>\"NOX\"),G54*INDEX('Damage costs'!$W$16:$W$43,MATCH($B105,'Damage costs'!$C$16:$C$43,0))/1000,G54*INDEX('Damage costs'!$AA$16:$AA$43,MATCH($B105,'Damage costs'!$C$16:$C$43,0))/1000),\"\")","v":""},{"$f":"IFERROR(IF(OR($C$110=FALSE,LEFT($B105,3)<>\"NOX\"),H54*INDEX('Damage costs'!$W$16:$W$43,MATCH($B105,'Damage costs'!$C$16:$C$43,0))/1000,H54*INDEX('Damage costs'!$AA$16:$AA$43,MATCH($B105,'Damage costs'!$C$16:$C$43,0))/1000),\"\")","v":""},{"$f":"IFERROR(IF(OR($C$110=FALSE,LEFT($B105,3)<>\"NOX\"),I54*INDEX('Damage costs'!$W$16:$W$43,MATCH($B105,'Damage costs'!$C$16:$C$43,0))/1000,I54*INDEX('Damage costs'!$AA$16:$AA$43,MATCH($B105,'Damage costs'!$C$16:$C$43,0))/1000),\"\")","v":""},{"$f":"IFERROR(IF(OR($C$110=FALSE,LEFT($B105,3)<>\"NOX\"),J54*INDEX('Damage costs'!$W$16:$W$43,MATCH($B105,'Damage costs'!$C$16:$C$43,0))/1000,J54*INDEX('Damage costs'!$AA$16:$AA$43,MATCH($B105,'Damage costs'!$C$16:$C$43,0))/1000),\"\")","v":""},{"$f":"IFERROR(IF(OR($C$110=FALSE,LEFT($B105,3)<>\"NOX\"),K54*INDEX('Damage costs'!$W$16:$W$43,MATCH($B105,'Damage costs'!$C$16:$C$43,0))/1000,K54*INDEX('Damage costs'!$AA$16:$AA$43,MATCH($B105,'Damage costs'!$C$16:$C$43,0))/1000),\"\")","v":""},{"$f":"IFERROR(IF(OR($C$110=FALSE,LEFT($B105,3)<>\"NOX\"),L54*INDEX('Damage costs'!$W$16:$W$43,MATCH($B105,'Damage costs'!$C$16:$C$43,0))/1000,L54*INDEX('Damage costs'!$AA$16:$AA$43,MATCH($B105,'Damage costs'!$C$16:$C$43,0))/1000),\"\")","v":""},{"$f":"IFERROR(IF(OR($C$110=FALSE,LEFT($B105,3)<>\"NOX\"),M54*INDEX('Damage costs'!$W$16:$W$43,MATCH($B105,'Damage costs'!$C$16:$C$43,0))/1000,M54*INDEX('Damage costs'!$AA$16:$AA$43,MATCH($B105,'Damage costs'!$C$16:$C$43,0))/1000),\"\")","v":""},{"$f":"IFERROR(IF(OR($C$110=FALSE,LEFT($B105,3)<>\"NOX\"),N54*INDEX('Damage costs'!$W$16:$W$43,MATCH($B105,'Damage costs'!$C$16:$C$43,0))/1000,N54*INDEX('Damage costs'!$AA$16:$AA$43,MATCH($B105,'Damage costs'!$C$16:$C$43,0))/1000),\"\")","v":""},{"$f":"IFERROR(IF(OR($C$110=FALSE,LEFT($B105,3)<>\"NOX\"),O54*INDEX('Damage costs'!$W$16:$W$43,MATCH($B105,'Damage costs'!$C$16:$C$43,0))/1000,O54*INDEX('Damage costs'!$AA$16:$AA$43,MATCH($B105,'Damage costs'!$C$16:$C$43,0))/1000),\"\")","v":""},{"$f":"IFERROR(IF(OR($C$110=FALSE,LEFT($B105,3)<>\"NOX\"),P54*INDEX('Damage costs'!$W$16:$W$43,MATCH($B105,'Damage costs'!$C$16:$C$43,0))/1000,P54*INDEX('Damage costs'!$AA$16:$AA$43,MATCH($B105,'Damage costs'!$C$16:$C$43,0))/1000),\"\")","v":""},{"$f":"IFERROR(IF(OR($C$110=FALSE,LEFT($B105,3)<>\"NOX\"),Q54*INDEX('Damage costs'!$W$16:$W$43,MATCH($B105,'Damage costs'!$C$16:$C$43,0))/1000,Q54*INDEX('Damage costs'!$AA$16:$AA$43,MATCH($B105,'Damage costs'!$C$16:$C$43,0))/1000),\"\")","v":""},{"$f":"IFERROR(IF(OR($C$110=FALSE,LEFT($B105,3)<>\"NOX\"),R54*INDEX('Damage costs'!$W$16:$W$43,MATCH($B105,'Damage costs'!$C$16:$C$43,0))/1000,R54*INDEX('Damage costs'!$AA$16:$AA$43,MATCH($B105,'Damage costs'!$C$16:$C$43,0))/1000),\"\")","v":""},{"$f":"IFERROR(IF(OR($C$110=FALSE,LEFT($B105,3)<>\"NOX\"),S54*INDEX('Damage costs'!$W$16:$W$43,MATCH($B105,'Damage costs'!$C$16:$C$43,0))/1000,S54*INDEX('Damage costs'!$AA$16:$AA$43,MATCH($B105,'Damage costs'!$C$16:$C$43,0))/1000),\"\")","v":""},{"$f":"IFERROR(IF(OR($C$110=FALSE,LEFT($B105,3)<>\"NOX\"),T54*INDEX('Damage costs'!$W$16:$W$43,MATCH($B105,'Damage costs'!$C$16:$C$43,0))/1000,T54*INDEX('Damage costs'!$AA$16:$AA$43,MATCH($B105,'Damage costs'!$C$16:$C$43,0))/1000),\"\")","v":""},{"$f":"IFERROR(IF(OR($C$110=FALSE,LEFT($B105,3)<>\"NOX\"),U54*INDEX('Damage costs'!$W$16:$W$43,MATCH($B105,'Damage costs'!$C$16:$C$43,0))/1000,U54*INDEX('Damage costs'!$AA$16:$AA$43,MATCH($B105,'Damage costs'!$C$16:$C$43,0))/1000),\"\")","v":""},{"$f":"IFERROR(IF(OR($C$110=FALSE,LEFT($B105,3)<>\"NOX\"),V54*INDEX('Damage costs'!$W$16:$W$43,MATCH($B105,'Damage costs'!$C$16:$C$43,0))/1000,V54*INDEX('Damage costs'!$AA$16:$AA$43,MATCH($B105,'Damage costs'!$C$16:$C$43,0))/1000),\"\")","v":""},{"$f":"IFERROR(IF(OR($C$110=FALSE,LEFT($B105,3)<>\"NOX\"),W54*INDEX('Damage costs'!$W$16:$W$43,MATCH($B105,'Damage costs'!$C$16:$C$43,0))/1000,W54*INDEX('Damage costs'!$AA$16:$AA$43,MATCH($B105,'Damage costs'!$C$16:$C$43,0))/1000),\"\")","v":""},{"$f":"IFERROR(IF(OR($C$110=FALSE,LEFT($B105,3)<>\"NOX\"),X54*INDEX('Damage costs'!$W$16:$W$43,MATCH($B105,'Damage costs'!$C$16:$C$43,0))/1000,X54*INDEX('Damage costs'!$AA$16:$AA$43,MATCH($B105,'Damage costs'!$C$16:$C$43,0))/1000),\"\")","v":""},{"$f":"IFERROR(IF(OR($C$110=FALSE,LEFT($B105,3)<>\"NOX\"),Y54*INDEX('Damage costs'!$W$16:$W$43,MATCH($B105,'Damage costs'!$C$16:$C$43,0))/1000,Y54*INDEX('Damage costs'!$AA$16:$AA$43,MATCH($B105,'Damage costs'!$C$16:$C$43,0))/1000),\"\")","v":""},{"$f":"IFERROR(IF(OR($C$110=FALSE,LEFT($B105,3)<>\"NOX\"),Z54*INDEX('Damage costs'!$W$16:$W$43,MATCH($B105,'Damage costs'!$C$16:$C$43,0))/1000,Z54*INDEX('Damage costs'!$AA$16:$AA$43,MATCH($B105,'Damage costs'!$C$16:$C$43,0))/1000),\"\")","v":""},{"$f":"IFERROR(IF(OR($C$110=FALSE,LEFT($B105,3)<>\"NOX\"),AA54*INDEX('Damage costs'!$W$16:$W$43,MATCH($B105,'Damage costs'!$C$16:$C$43,0))/1000,AA54*INDEX('Damage costs'!$AA$16:$AA$43,MATCH($B105,'Damage costs'!$C$16:$C$43,0))/1000),\"\")","v":""},{"$f":"IFERROR(IF(OR($C$110=FALSE,LEFT($B105,3)<>\"NOX\"),AB54*INDEX('Damage costs'!$W$16:$W$43,MATCH($B105,'Damage costs'!$C$16:$C$43,0))/1000,AB54*INDEX('Damage costs'!$AA$16:$AA$43,MATCH($B105,'Damage costs'!$C$16:$C$43,0))/1000),\"\")","v":""},{"$f":"IFERROR(IF(OR($C$110=FALSE,LEFT($B105,3)<>\"NOX\"),AC54*INDEX('Damage costs'!$W$16:$W$43,MATCH($B105,'Damage costs'!$C$16:$C$43,0))/1000,AC54*INDEX('Damage costs'!$AA$16:$AA$43,MATCH($B105,'Damage costs'!$C$16:$C$43,0))/1000),\"\")","v":""},{"$f":"IFERROR(IF(OR($C$110=FALSE,LEFT($B105,3)<>\"NOX\"),AD54*INDEX('Damage costs'!$W$16:$W$43,MATCH($B105,'Damage costs'!$C$16:$C$43,0))/1000,AD54*INDEX('Damage costs'!$AA$16:$AA$43,MATCH($B105,'Damage costs'!$C$16:$C$43,0))/1000),\"\")","v":""},{"$f":"IFERROR(IF(OR($C$110=FALSE,LEFT($B105,3)<>\"NOX\"),AE54*INDEX('Damage costs'!$W$16:$W$43,MATCH($B105,'Damage costs'!$C$16:$C$43,0))/1000,AE54*INDEX('Damage costs'!$AA$16:$AA$43,MATCH($B105,'Damage costs'!$C$16:$C$43,0))/1000),\"\")","v":""},{"$f":"IFERROR(IF(OR($C$110=FALSE,LEFT($B105,3)<>\"NOX\"),AF54*INDEX('Damage costs'!$W$16:$W$43,MATCH($B105,'Damage costs'!$C$16:$C$43,0))/1000,AF54*INDEX('Damage costs'!$AA$16:$AA$43,MATCH($B105,'Damage costs'!$C$16:$C$43,0))/1000),\"\")","v":""},{"$f":"IFERROR(IF(OR($C$110=FALSE,LEFT($B105,3)<>\"NOX\"),AG54*INDEX('Damage costs'!$W$16:$W$43,MATCH($B105,'Damage costs'!$C$16:$C$43,0))/1000,AG54*INDEX('Damage costs'!$AA$16:$AA$43,MATCH($B105,'Damage costs'!$C$16:$C$43,0))/1000),\"\")","v":""},{"$f":"IFERROR(IF(OR($C$110=FALSE,LEFT($B105,3)<>\"NOX\"),AH54*INDEX('Damage costs'!$W$16:$W$43,MATCH($B105,'Damage costs'!$C$16:$C$43,0))/1000,AH54*INDEX('Damage costs'!$AA$16:$AA$43,MATCH($B105,'Damage costs'!$C$16:$C$43,0))/1000),\"\")","v":""},{"$f":"IFERROR(IF(OR($C$110=FALSE,LEFT($B105,3)<>\"NOX\"),AI54*INDEX('Damage costs'!$W$16:$W$43,MATCH($B105,'Damage costs'!$C$16:$C$43,0))/1000,AI54*INDEX('Damage costs'!$AA$16:$AA$43,MATCH($B105,'Damage costs'!$C$16:$C$43,0))/1000),\"\")","v":""},{"$f":"IFERROR(IF(OR($C$110=FALSE,LEFT($B105,3)<>\"NOX\"),AJ54*INDEX('Damage costs'!$W$16:$W$43,MATCH($B105,'Damage costs'!$C$16:$C$43,0))/1000,AJ54*INDEX('Damage costs'!$AA$16:$AA$43,MATCH($B105,'Damage costs'!$C$16:$C$43,0))/1000),\"\")","v":""},{"$f":"IFERROR(IF(OR($C$110=FALSE,LEFT($B105,3)<>\"NOX\"),AK54*INDEX('Damage costs'!$W$16:$W$43,MATCH($B105,'Damage costs'!$C$16:$C$43,0))/1000,AK54*INDEX('Damage costs'!$AA$16:$AA$43,MATCH($B105,'Damage costs'!$C$16:$C$43,0))/1000),\"\")","v":""},{"$f":"IFERROR(IF(OR($C$110=FALSE,LEFT($B105,3)<>\"NOX\"),AL54*INDEX('Damage costs'!$W$16:$W$43,MATCH($B105,'Damage costs'!$C$16:$C$43,0))/1000,AL54*INDEX('Damage costs'!$AA$16:$AA$43,MATCH($B105,'Damage costs'!$C$16:$C$43,0))/1000),\"\")","v":""},{"$f":"IFERROR(IF(OR($C$110=FALSE,LEFT($B105,3)<>\"NOX\"),AM54*INDEX('Damage costs'!$W$16:$W$43,MATCH($B105,'Damage costs'!$C$16:$C$43,0))/1000,AM54*INDEX('Damage costs'!$AA$16:$AA$43,MATCH($B105,'Damage costs'!$C$16:$C$43,0))/1000),\"\")","v":""},{"$f":"IFERROR(IF(OR($C$110=FALSE,LEFT($B105,3)<>\"NOX\"),AN54*INDEX('Damage costs'!$W$16:$W$43,MATCH($B105,'Damage costs'!$C$16:$C$43,0))/1000,AN54*INDEX('Damage costs'!$AA$16:$AA$43,MATCH($B105,'Damage costs'!$C$16:$C$43,0))/1000),\"\")","v":""},{"$f":"IFERROR(IF(OR($C$110=FALSE,LEFT($B105,3)<>\"NOX\"),AO54*INDEX('Damage costs'!$W$16:$W$43,MATCH($B105,'Damage costs'!$C$16:$C$43,0))/1000,AO54*INDEX('Damage costs'!$AA$16:$AA$43,MATCH($B105,'Damage costs'!$C$16:$C$43,0))/1000),\"\")","v":""},{"$f":"IFERROR(IF(OR($C$110=FALSE,LEFT($B105,3)<>\"NOX\"),AP54*INDEX('Damage costs'!$W$16:$W$43,MATCH($B105,'Damage costs'!$C$16:$C$43,0))/1000,AP54*INDEX('Damage costs'!$AA$16:$AA$43,MATCH($B105,'Damage costs'!$C$16:$C$43,0))/1000),\"\")","v":""},{"$f":"IFERROR(IF(OR($C$110=FALSE,LEFT($B105,3)<>\"NOX\"),AQ54*INDEX('Damage costs'!$W$16:$W$43,MATCH($B105,'Damage costs'!$C$16:$C$43,0))/1000,AQ54*INDEX('Damage costs'!$AA$16:$AA$43,MATCH($B105,'Damage costs'!$C$16:$C$43,0))/1000),\"\")","v":""},{"$f":"IFERROR(IF(OR($C$110=FALSE,LEFT($B105,3)<>\"NOX\"),AR54*INDEX('Damage costs'!$W$16:$W$43,MATCH($B105,'Damage costs'!$C$16:$C$43,0))/1000,AR54*INDEX('Damage costs'!$AA$16:$AA$43,MATCH($B105,'Damage costs'!$C$16:$C$43,0))/1000),\"\")","v":""},{"$f":"IFERROR(IF(OR($C$110=FALSE,LEFT($B105,3)<>\"NOX\"),AS54*INDEX('Damage costs'!$W$16:$W$43,MATCH($B105,'Damage costs'!$C$16:$C$43,0))/1000,AS54*INDEX('Damage costs'!$AA$16:$AA$43,MATCH($B105,'Damage costs'!$C$16:$C$43,0))/1000),\"\")","v":""},{"$f":"IFERROR(IF(OR($C$110=FALSE,LEFT($B105,3)<>\"NOX\"),AT54*INDEX('Damage costs'!$W$16:$W$43,MATCH($B105,'Damage costs'!$C$16:$C$43,0))/1000,AT54*INDEX('Damage costs'!$AA$16:$AA$43,MATCH($B105,'Damage costs'!$C$16:$C$43,0))/1000),\"\")","v":""},{"$f":"IFERROR(IF(OR($C$110=FALSE,LEFT($B105,3)<>\"NOX\"),AU54*INDEX('Damage costs'!$W$16:$W$43,MATCH($B105,'Damage costs'!$C$16:$C$43,0))/1000,AU54*INDEX('Damage costs'!$AA$16:$AA$43,MATCH($B105,'Damage costs'!$C$16:$C$43,0))/1000),\"\")","v":""},{"$f":"IFERROR(IF(OR($C$110=FALSE,LEFT($B105,3)<>\"NOX\"),AV54*INDEX('Damage costs'!$W$16:$W$43,MATCH($B105,'Damage costs'!$C$16:$C$43,0))/1000,AV54*INDEX('Damage costs'!$AA$16:$AA$43,MATCH($B105,'Damage costs'!$C$16:$C$43,0))/1000),\"\")","v":""},{"$f":"IFERROR(IF(OR($C$110=FALSE,LEFT($B105,3)<>\"NOX\"),AW54*INDEX('Damage costs'!$W$16:$W$43,MATCH($B105,'Damage costs'!$C$16:$C$43,0))/1000,AW54*INDEX('Damage costs'!$AA$16:$AA$43,MATCH($B105,'Damage costs'!$C$16:$C$43,0))/1000),\"\")","v":""},{"$f":"IFERROR(IF(OR($C$110=FALSE,LEFT($B105,3)<>\"NOX\"),AX54*INDEX('Damage costs'!$W$16:$W$43,MATCH($B105,'Damage costs'!$C$16:$C$43,0))/1000,AX54*INDEX('Damage costs'!$AA$16:$AA$43,MATCH($B105,'Damage costs'!$C$16:$C$43,0))/1000),\"\")","v":""},{"$f":"IFERROR(IF(OR($C$110=FALSE,LEFT($B105,3)<>\"NOX\"),AY54*INDEX('Damage costs'!$W$16:$W$43,MATCH($B105,'Damage costs'!$C$16:$C$43,0))/1000,AY54*INDEX('Damage costs'!$AA$16:$AA$43,MATCH($B105,'Damage costs'!$C$16:$C$43,0))/1000),\"\")","v":""},{"$f":"IFERROR(IF(OR($C$110=FALSE,LEFT($B105,3)<>\"NOX\"),AZ54*INDEX('Damage costs'!$W$16:$W$43,MATCH($B105,'Damage costs'!$C$16:$C$43,0))/1000,AZ54*INDEX('Damage costs'!$AA$16:$AA$43,MATCH($B105,'Damage costs'!$C$16:$C$43,0))/1000),\"\")","v":""},{"$f":"IFERROR(IF(OR($C$110=FALSE,LEFT($B105,3)<>\"NOX\"),BA54*INDEX('Damage costs'!$W$16:$W$43,MATCH($B105,'Damage costs'!$C$16:$C$43,0))/1000,BA54*INDEX('Damage costs'!$AA$16:$AA$43,MATCH($B105,'Damage costs'!$C$16:$C$43,0))/1000),\"\")","v":""},{"$f":"IFERROR(IF(OR($C$110=FALSE,LEFT($B105,3)<>\"NOX\"),BB54*INDEX('Damage costs'!$W$16:$W$43,MATCH($B105,'Damage costs'!$C$16:$C$43,0))/1000,BB54*INDEX('Damage costs'!$AA$16:$AA$43,MATCH($B105,'Damage costs'!$C$16:$C$43,0))/1000),\"\")","v":""},{"$f":"IFERROR(IF(OR($C$110=FALSE,LEFT($B105,3)<>\"NOX\"),BC54*INDEX('Damage costs'!$W$16:$W$43,MATCH($B105,'Damage costs'!$C$16:$C$43,0))/1000,BC54*INDEX('Damage costs'!$AA$16:$AA$43,MATCH($B105,'Damage costs'!$C$16:$C$43,0))/1000),\"\")","v":""},{"$f":"IFERROR(IF(OR($C$110=FALSE,LEFT($B105,3)<>\"NOX\"),BD54*INDEX('Damage costs'!$W$16:$W$43,MATCH($B105,'Damage costs'!$C$16:$C$43,0))/1000,BD54*INDEX('Damage costs'!$AA$16:$AA$43,MATCH($B105,'Damage costs'!$C$16:$C$43,0))/1000),\"\")","v":""},{"$f":"IFERROR(IF(OR($C$110=FALSE,LEFT($B105,3)<>\"NOX\"),BE54*INDEX('Damage costs'!$W$16:$W$43,MATCH($B105,'Damage costs'!$C$16:$C$43,0))/1000,BE54*INDEX('Damage costs'!$AA$16:$AA$43,MATCH($B105,'Damage costs'!$C$16:$C$43,0))/1000),\"\")","v":""},{"$f":"IFERROR(IF(OR($C$110=FALSE,LEFT($B105,3)<>\"NOX\"),BF54*INDEX('Damage costs'!$W$16:$W$43,MATCH($B105,'Damage costs'!$C$16:$C$43,0))/1000,BF54*INDEX('Damage costs'!$AA$16:$AA$43,MATCH($B105,'Damage costs'!$C$16:$C$43,0))/1000),\"\")","v":""},{"$f":"IFERROR(IF(OR($C$110=FALSE,LEFT($B105,3)<>\"NOX\"),BG54*INDEX('Damage costs'!$W$16:$W$43,MATCH($B105,'Damage costs'!$C$16:$C$43,0))/1000,BG54*INDEX('Damage costs'!$AA$16:$AA$43,MATCH($B105,'Damage costs'!$C$16:$C$43,0))/1000),\"\")","v":""},{"$f":"IFERROR(IF(OR($C$110=FALSE,LEFT($B105,3)<>\"NOX\"),BH54*INDEX('Damage costs'!$W$16:$W$43,MATCH($B105,'Damage costs'!$C$16:$C$43,0))/1000,BH54*INDEX('Damage costs'!$AA$16:$AA$43,MATCH($B105,'Damage costs'!$C$16:$C$43,0))/1000),\"\")","v":""},{"$f":"IFERROR(IF(OR($C$110=FALSE,LEFT($B105,3)<>\"NOX\"),BI54*INDEX('Damage costs'!$W$16:$W$43,MATCH($B105,'Damage costs'!$C$16:$C$43,0))/1000,BI54*INDEX('Damage costs'!$AA$16:$AA$43,MATCH($B105,'Damage costs'!$C$16:$C$43,0))/1000),\"\")","v":""},{"$f":"IFERROR(IF(OR($C$110=FALSE,LEFT($B105,3)<>\"NOX\"),BJ54*INDEX('Damage costs'!$W$16:$W$43,MATCH($B105,'Damage costs'!$C$16:$C$43,0))/1000,BJ54*INDEX('Damage costs'!$AA$16:$AA$43,MATCH($B105,'Damage costs'!$C$16:$C$43,0))/1000),\"\")","v":""},{"$f":"IFERROR(IF(OR($C$110=FALSE,LEFT($B105,3)<>\"NOX\"),BK54*INDEX('Damage costs'!$W$16:$W$43,MATCH($B105,'Damage costs'!$C$16:$C$43,0))/1000,BK54*INDEX('Damage costs'!$AA$16:$AA$43,MATCH($B105,'Damage costs'!$C$16:$C$43,0))/1000),\"\")","v":""},{"$f":"IFERROR(IF(OR($C$110=FALSE,LEFT($B105,3)<>\"NOX\"),BL54*INDEX('Damage costs'!$W$16:$W$43,MATCH($B105,'Damage costs'!$C$16:$C$43,0))/1000,BL54*INDEX('Damage costs'!$AA$16:$AA$43,MATCH($B105,'Damage costs'!$C$16:$C$43,0))/1000),\"\")","v":""},{"$f":"IFERROR(IF(OR($C$110=FALSE,LEFT($B105,3)<>\"NOX\"),BM54*INDEX('Damage costs'!$W$16:$W$43,MATCH($B105,'Damage costs'!$C$16:$C$43,0))/1000,BM54*INDEX('Damage costs'!$AA$16:$AA$43,MATCH($B105,'Damage costs'!$C$16:$C$43,0))/1000),\"\")","v":""},{"$f":"IFERROR(IF(OR($C$110=FALSE,LEFT($B105,3)<>\"NOX\"),BN54*INDEX('Damage costs'!$W$16:$W$43,MATCH($B105,'Damage costs'!$C$16:$C$43,0))/1000,BN54*INDEX('Damage costs'!$AA$16:$AA$43,MATCH($B105,'Damage costs'!$C$16:$C$43,0))/1000),\"\")","v":""},{"$f":"IFERROR(IF(OR($C$110=FALSE,LEFT($B105,3)<>\"NOX\"),BO54*INDEX('Damage costs'!$W$16:$W$43,MATCH($B105,'Damage costs'!$C$16:$C$43,0))/1000,BO54*INDEX('Damage costs'!$AA$16:$AA$43,MATCH($B105,'Damage costs'!$C$16:$C$43,0))/1000),\"\")","v":""},{"$f":"IFERROR(IF(OR($C$110=FALSE,LEFT($B105,3)<>\"NOX\"),BP54*INDEX('Damage costs'!$W$16:$W$43,MATCH($B105,'Damage costs'!$C$16:$C$43,0))/1000,BP54*INDEX('Damage costs'!$AA$16:$AA$43,MATCH($B105,'Damage costs'!$C$16:$C$43,0))/1000),\"\")","v":""},{"$f":"IFERROR(IF(OR($C$110=FALSE,LEFT($B105,3)<>\"NOX\"),BQ54*INDEX('Damage costs'!$W$16:$W$43,MATCH($B105,'Damage costs'!$C$16:$C$43,0))/1000,BQ54*INDEX('Damage costs'!$AA$16:$AA$43,MATCH($B105,'Damage costs'!$C$16:$C$43,0))/1000),\"\")","v":""},{"$f":"IFERROR(IF(OR($C$110=FALSE,LEFT($B105,3)<>\"NOX\"),BR54*INDEX('Damage costs'!$W$16:$W$43,MATCH($B105,'Damage costs'!$C$16:$C$43,0))/1000,BR54*INDEX('Damage costs'!$AA$16:$AA$43,MATCH($B105,'Damage costs'!$C$16:$C$43,0))/1000),\"\")","v":""},{"$f":"IFERROR(IF(OR($C$110=FALSE,LEFT($B105,3)<>\"NOX\"),BS54*INDEX('Damage costs'!$W$16:$W$43,MATCH($B105,'Damage costs'!$C$16:$C$43,0))/1000,BS54*INDEX('Damage costs'!$AA$16:$AA$43,MATCH($B105,'Damage costs'!$C$16:$C$43,0))/1000),\"\")","v":""},{"$f":"IFERROR(IF(OR($C$110=FALSE,LEFT($B105,3)<>\"NOX\"),BT54*INDEX('Damage costs'!$W$16:$W$43,MATCH($B105,'Damage costs'!$C$16:$C$43,0))/1000,BT54*INDEX('Damage costs'!$AA$16:$AA$43,MATCH($B105,'Damage costs'!$C$16:$C$43,0))/1000),\"\")","v":""},{"$f":"IFERROR(IF(OR($C$110=FALSE,LEFT($B105,3)<>\"NOX\"),BU54*INDEX('Damage costs'!$W$16:$W$43,MATCH($B105,'Damage costs'!$C$16:$C$43,0))/1000,BU54*INDEX('Damage costs'!$AA$16:$AA$43,MATCH($B105,'Damage costs'!$C$16:$C$43,0))/1000),\"\")","v":""},{"$f":"IFERROR(IF(OR($C$110=FALSE,LEFT($B105,3)<>\"NOX\"),BV54*INDEX('Damage costs'!$W$16:$W$43,MATCH($B105,'Damage costs'!$C$16:$C$43,0))/1000,BV54*INDEX('Damage costs'!$AA$16:$AA$43,MATCH($B105,'Damage costs'!$C$16:$C$43,0))/1000),\"\")","v":""},{"$f":"IFERROR(IF(OR($C$110=FALSE,LEFT($B105,3)<>\"NOX\"),BW54*INDEX('Damage costs'!$W$16:$W$43,MATCH($B105,'Damage costs'!$C$16:$C$43,0))/1000,BW54*INDEX('Damage costs'!$AA$16:$AA$43,MATCH($B105,'Damage costs'!$C$16:$C$43,0))/1000),\"\")","v":""},{"$f":"IFERROR(IF(OR($C$110=FALSE,LEFT($B105,3)<>\"NOX\"),BX54*INDEX('Damage costs'!$W$16:$W$43,MATCH($B105,'Damage costs'!$C$16:$C$43,0))/1000,BX54*INDEX('Damage costs'!$AA$16:$AA$43,MATCH($B105,'Damage costs'!$C$16:$C$43,0))/1000),\"\")","v":""},{"$f":"IFERROR(IF(OR($C$110=FALSE,LEFT($B105,3)<>\"NOX\"),BY54*INDEX('Damage costs'!$W$16:$W$43,MATCH($B105,'Damage costs'!$C$16:$C$43,0))/1000,BY54*INDEX('Damage costs'!$AA$16:$AA$43,MATCH($B105,'Damage costs'!$C$16:$C$43,0))/1000),\"\")","v":""},{"$f":"IFERROR(IF(OR($C$110=FALSE,LEFT($B105,3)<>\"NOX\"),BZ54*INDEX('Damage costs'!$W$16:$W$43,MATCH($B105,'Damage costs'!$C$16:$C$43,0))/1000,BZ54*INDEX('Damage costs'!$AA$16:$AA$43,MATCH($B105,'Damage costs'!$C$16:$C$43,0))/1000),\"\")","v":""},{"$f":"IFERROR(IF(OR($C$110=FALSE,LEFT($B105,3)<>\"NOX\"),CA54*INDEX('Damage costs'!$W$16:$W$43,MATCH($B105,'Damage costs'!$C$16:$C$43,0))/1000,CA54*INDEX('Damage costs'!$AA$16:$AA$43,MATCH($B105,'Damage costs'!$C$16:$C$43,0))/1000),\"\")","v":""},{"$f":"IFERROR(IF(OR($C$110=FALSE,LEFT($B105,3)<>\"NOX\"),CB54*INDEX('Damage costs'!$W$16:$W$43,MATCH($B105,'Damage costs'!$C$16:$C$43,0))/1000,CB54*INDEX('Damage costs'!$AA$16:$AA$43,MATCH($B105,'Damage costs'!$C$16:$C$43,0))/1000),\"\")","v":""},{"$f":"IFERROR(IF(OR($C$110=FALSE,LEFT($B105,3)<>\"NOX\"),CC54*INDEX('Damage costs'!$W$16:$W$43,MATCH($B105,'Damage costs'!$C$16:$C$43,0))/1000,CC54*INDEX('Damage costs'!$AA$16:$AA$43,MATCH($B105,'Damage costs'!$C$16:$C$43,0))/1000),\"\")","v":""},{"$f":"IFERROR(IF(OR($C$110=FALSE,LEFT($B105,3)<>\"NOX\"),CD54*INDEX('Damage costs'!$W$16:$W$43,MATCH($B105,'Damage costs'!$C$16:$C$43,0))/1000,CD54*INDEX('Damage costs'!$AA$16:$AA$43,MATCH($B105,'Damage costs'!$C$16:$C$43,0))/1000),\"\")","v":""},{"$f":"IFERROR(IF(OR($C$110=FALSE,LEFT($B105,3)<>\"NOX\"),CE54*INDEX('Damage costs'!$W$16:$W$43,MATCH($B105,'Damage costs'!$C$16:$C$43,0))/1000,CE54*INDEX('Damage costs'!$AA$16:$AA$43,MATCH($B105,'Damage costs'!$C$16:$C$43,0))/1000),\"\")","v":""},{"$f":"IFERROR(IF(OR($C$110=FALSE,LEFT($B105,3)<>\"NOX\"),CF54*INDEX('Damage costs'!$W$16:$W$43,MATCH($B105,'Damage costs'!$C$16:$C$43,0))/1000,CF54*INDEX('Damage costs'!$AA$16:$AA$43,MATCH($B105,'Damage costs'!$C$16:$C$43,0))/1000),\"\")","v":""},{"$f":"IFERROR(IF(OR($C$110=FALSE,LEFT($B105,3)<>\"NOX\"),CG54*INDEX('Damage costs'!$W$16:$W$43,MATCH($B105,'Damage costs'!$C$16:$C$43,0))/1000,CG54*INDEX('Damage costs'!$AA$16:$AA$43,MATCH($B105,'Damage costs'!$C$16:$C$43,0))/1000),\"\")","v":""},{"$f":"IFERROR(IF(OR($C$110=FALSE,LEFT($B105,3)<>\"NOX\"),CH54*INDEX('Damage costs'!$W$16:$W$43,MATCH($B105,'Damage costs'!$C$16:$C$43,0))/1000,CH54*INDEX('Damage costs'!$AA$16:$AA$43,MATCH($B105,'Damage costs'!$C$16:$C$43,0))/1000),\"\")","v":""},{"$f":"IFERROR(IF(OR($C$110=FALSE,LEFT($B105,3)<>\"NOX\"),CI54*INDEX('Damage costs'!$W$16:$W$43,MATCH($B105,'Damage costs'!$C$16:$C$43,0))/1000,CI54*INDEX('Damage costs'!$AA$16:$AA$43,MATCH($B105,'Damage costs'!$C$16:$C$43,0))/1000),\"\")","v":""},{"$f":"IFERROR(IF(OR($C$110=FALSE,LEFT($B105,3)<>\"NOX\"),CJ54*INDEX('Damage costs'!$W$16:$W$43,MATCH($B105,'Damage costs'!$C$16:$C$43,0))/1000,CJ54*INDEX('Damage costs'!$AA$16:$AA$43,MATCH($B105,'Damage costs'!$C$16:$C$43,0))/1000),\"\")","v":""},{"$f":"IFERROR(IF(OR($C$110=FALSE,LEFT($B105,3)<>\"NOX\"),CK54*INDEX('Damage costs'!$W$16:$W$43,MATCH($B105,'Damage costs'!$C$16:$C$43,0))/1000,CK54*INDEX('Damage costs'!$AA$16:$AA$43,MATCH($B105,'Damage costs'!$C$16:$C$43,0))/1000),\"\")","v":""},{"$f":"IFERROR(IF(OR($C$110=FALSE,LEFT($B105,3)<>\"NOX\"),CL54*INDEX('Damage costs'!$W$16:$W$43,MATCH($B105,'Damage costs'!$C$16:$C$43,0))/1000,CL54*INDEX('Damage costs'!$AA$16:$AA$43,MATCH($B105,'Damage costs'!$C$16:$C$43,0))/1000),\"\")","v":""},{"$f":"IFERROR(IF(OR($C$110=FALSE,LEFT($B105,3)<>\"NOX\"),CM54*INDEX('Damage costs'!$W$16:$W$43,MATCH($B105,'Damage costs'!$C$16:$C$43,0))/1000,CM54*INDEX('Damage costs'!$AA$16:$AA$43,MATCH($B105,'Damage costs'!$C$16:$C$43,0))/1000),\"\")","v":""},{"$f":"IFERROR(IF(OR($C$110=FALSE,LEFT($B105,3)<>\"NOX\"),CN54*INDEX('Damage costs'!$W$16:$W$43,MATCH($B105,'Damage costs'!$C$16:$C$43,0))/1000,CN54*INDEX('Damage costs'!$AA$16:$AA$43,MATCH($B105,'Damage costs'!$C$16:$C$43,0))/1000),\"\")","v":""},{"$f":"IFERROR(IF(OR($C$110=FALSE,LEFT($B105,3)<>\"NOX\"),CO54*INDEX('Damage costs'!$W$16:$W$43,MATCH($B105,'Damage costs'!$C$16:$C$43,0))/1000,CO54*INDEX('Damage costs'!$AA$16:$AA$43,MATCH($B105,'Damage costs'!$C$16:$C$43,0))/1000),\"\")","v":""},{"$f":"IFERROR(IF(OR($C$110=FALSE,LEFT($B105,3)<>\"NOX\"),CP54*INDEX('Damage costs'!$W$16:$W$43,MATCH($B105,'Damage costs'!$C$16:$C$43,0))/1000,CP54*INDEX('Damage costs'!$AA$16:$AA$43,MATCH($B105,'Damage costs'!$C$16:$C$43,0))/1000),\"\")","v":""},{"$f":"IFERROR(IF(OR($C$110=FALSE,LEFT($B105,3)<>\"NOX\"),CQ54*INDEX('Damage costs'!$W$16:$W$43,MATCH($B105,'Damage costs'!$C$16:$C$43,0))/1000,CQ54*INDEX('Damage costs'!$AA$16:$AA$43,MATCH($B105,'Damage costs'!$C$16:$C$43,0))/1000),\"\")","v":""},{"$f":"IFERROR(IF(OR($C$110=FALSE,LEFT($B105,3)<>\"NOX\"),CR54*INDEX('Damage costs'!$W$16:$W$43,MATCH($B105,'Damage costs'!$C$16:$C$43,0))/1000,CR54*INDEX('Damage costs'!$AA$16:$AA$43,MATCH($B105,'Damage costs'!$C$16:$C$43,0))/1000),\"\")","v":""},{"$f":"IFERROR(IF(OR($C$110=FALSE,LEFT($B105,3)<>\"NOX\"),CS54*INDEX('Damage costs'!$W$16:$W$43,MATCH($B105,'Damage costs'!$C$16:$C$43,0))/1000,CS54*INDEX('Damage costs'!$AA$16:$AA$43,MATCH($B105,'Damage costs'!$C$16:$C$43,0))/1000),\"\")","v":""},{"$f":"IFERROR(IF(OR($C$110=FALSE,LEFT($B105,3)<>\"NOX\"),CT54*INDEX('Damage costs'!$W$16:$W$43,MATCH($B105,'Damage costs'!$C$16:$C$43,0))/1000,CT54*INDEX('Damage costs'!$AA$16:$AA$43,MATCH($B105,'Damage costs'!$C$16:$C$43,0))/1000),\"\")","v":""},{"$f":"IFERROR(IF(OR($C$110=FALSE,LEFT($B105,3)<>\"NOX\"),CU54*INDEX('Damage costs'!$W$16:$W$43,MATCH($B105,'Damage costs'!$C$16:$C$43,0))/1000,CU54*INDEX('Damage costs'!$AA$16:$AA$43,MATCH($B105,'Damage costs'!$C$16:$C$43,0))/1000),\"\")","v":""},{"$f":"IFERROR(IF(OR($C$110=FALSE,LEFT($B105,3)<>\"NOX\"),CV54*INDEX('Damage costs'!$W$16:$W$43,MATCH($B105,'Damage costs'!$C$16:$C$43,0))/1000,CV54*INDEX('Damage costs'!$AA$16:$AA$43,MATCH($B105,'Damage costs'!$C$16:$C$43,0))/1000),\"\")","v":""},{"$f":"IFERROR(IF(OR($C$110=FALSE,LEFT($B105,3)<>\"NOX\"),CW54*INDEX('Damage costs'!$W$16:$W$43,MATCH($B105,'Damage costs'!$C$16:$C$43,0))/1000,CW54*INDEX('Damage costs'!$AA$16:$AA$43,MATCH($B105,'Damage costs'!$C$16:$C$43,0))/1000),\"\")","v":""},{"$f":"IFERROR(IF(OR($C$110=FALSE,LEFT($B105,3)<>\"NOX\"),CX54*INDEX('Damage costs'!$W$16:$W$43,MATCH($B105,'Damage costs'!$C$16:$C$43,0))/1000,CX54*INDEX('Damage costs'!$AA$16:$AA$43,MATCH($B105,'Damage costs'!$C$16:$C$43,0))/1000),\"\")","v":""},{"$f":"IFERROR(IF(OR($C$110=FALSE,LEFT($B105,3)<>\"NOX\"),CY54*INDEX('Damage costs'!$W$16:$W$43,MATCH($B105,'Damage costs'!$C$16:$C$43,0))/1000,CY54*INDEX('Damage costs'!$AA$16:$AA$43,MATCH($B105,'Damage costs'!$C$16:$C$43,0))/1000),\"\")","v":""}]
[null,0,"£000's",{"$f":"IFERROR(IF(OR($C$110=FALSE,LEFT($B106,3)<>\"NOX\"),D55*INDEX('Damage costs'!$W$16:$W$43,MATCH($B106,'Damage costs'!$C$16:$C$43,0))/1000,D55*INDEX('Damage costs'!$AA$16:$AA$43,MATCH($B106,'Damage costs'!$C$16:$C$43,0))/1000),\"\")","v":""},{"$f":"IFERROR(IF(OR($C$110=FALSE,LEFT($B106,3)<>\"NOX\"),E55*INDEX('Damage costs'!$W$16:$W$43,MATCH($B106,'Damage costs'!$C$16:$C$43,0))/1000,E55*INDEX('Damage costs'!$AA$16:$AA$43,MATCH($B106,'Damage costs'!$C$16:$C$43,0))/1000),\"\")","v":""},{"$f":"IFERROR(IF(OR($C$110=FALSE,LEFT($B106,3)<>\"NOX\"),F55*INDEX('Damage costs'!$W$16:$W$43,MATCH($B106,'Damage costs'!$C$16:$C$43,0))/1000,F55*INDEX('Damage costs'!$AA$16:$AA$43,MATCH($B106,'Damage costs'!$C$16:$C$43,0))/1000),\"\")","v":""},{"$f":"IFERROR(IF(OR($C$110=FALSE,LEFT($B106,3)<>\"NOX\"),G55*INDEX('Damage costs'!$W$16:$W$43,MATCH($B106,'Damage costs'!$C$16:$C$43,0))/1000,G55*INDEX('Damage costs'!$AA$16:$AA$43,MATCH($B106,'Damage costs'!$C$16:$C$43,0))/1000),\"\")","v":""},{"$f":"IFERROR(IF(OR($C$110=FALSE,LEFT($B106,3)<>\"NOX\"),H55*INDEX('Damage costs'!$W$16:$W$43,MATCH($B106,'Damage costs'!$C$16:$C$43,0))/1000,H55*INDEX('Damage costs'!$AA$16:$AA$43,MATCH($B106,'Damage costs'!$C$16:$C$43,0))/1000),\"\")","v":""},{"$f":"IFERROR(IF(OR($C$110=FALSE,LEFT($B106,3)<>\"NOX\"),I55*INDEX('Damage costs'!$W$16:$W$43,MATCH($B106,'Damage costs'!$C$16:$C$43,0))/1000,I55*INDEX('Damage costs'!$AA$16:$AA$43,MATCH($B106,'Damage costs'!$C$16:$C$43,0))/1000),\"\")","v":""},{"$f":"IFERROR(IF(OR($C$110=FALSE,LEFT($B106,3)<>\"NOX\"),J55*INDEX('Damage costs'!$W$16:$W$43,MATCH($B106,'Damage costs'!$C$16:$C$43,0))/1000,J55*INDEX('Damage costs'!$AA$16:$AA$43,MATCH($B106,'Damage costs'!$C$16:$C$43,0))/1000),\"\")","v":""},{"$f":"IFERROR(IF(OR($C$110=FALSE,LEFT($B106,3)<>\"NOX\"),K55*INDEX('Damage costs'!$W$16:$W$43,MATCH($B106,'Damage costs'!$C$16:$C$43,0))/1000,K55*INDEX('Damage costs'!$AA$16:$AA$43,MATCH($B106,'Damage costs'!$C$16:$C$43,0))/1000),\"\")","v":""},{"$f":"IFERROR(IF(OR($C$110=FALSE,LEFT($B106,3)<>\"NOX\"),L55*INDEX('Damage costs'!$W$16:$W$43,MATCH($B106,'Damage costs'!$C$16:$C$43,0))/1000,L55*INDEX('Damage costs'!$AA$16:$AA$43,MATCH($B106,'Damage costs'!$C$16:$C$43,0))/1000),\"\")","v":""},{"$f":"IFERROR(IF(OR($C$110=FALSE,LEFT($B106,3)<>\"NOX\"),M55*INDEX('Damage costs'!$W$16:$W$43,MATCH($B106,'Damage costs'!$C$16:$C$43,0))/1000,M55*INDEX('Damage costs'!$AA$16:$AA$43,MATCH($B106,'Damage costs'!$C$16:$C$43,0))/1000),\"\")","v":""},{"$f":"IFERROR(IF(OR($C$110=FALSE,LEFT($B106,3)<>\"NOX\"),N55*INDEX('Damage costs'!$W$16:$W$43,MATCH($B106,'Damage costs'!$C$16:$C$43,0))/1000,N55*INDEX('Damage costs'!$AA$16:$AA$43,MATCH($B106,'Damage costs'!$C$16:$C$43,0))/1000),\"\")","v":""},{"$f":"IFERROR(IF(OR($C$110=FALSE,LEFT($B106,3)<>\"NOX\"),O55*INDEX('Damage costs'!$W$16:$W$43,MATCH($B106,'Damage costs'!$C$16:$C$43,0))/1000,O55*INDEX('Damage costs'!$AA$16:$AA$43,MATCH($B106,'Damage costs'!$C$16:$C$43,0))/1000),\"\")","v":""},{"$f":"IFERROR(IF(OR($C$110=FALSE,LEFT($B106,3)<>\"NOX\"),P55*INDEX('Damage costs'!$W$16:$W$43,MATCH($B106,'Damage costs'!$C$16:$C$43,0))/1000,P55*INDEX('Damage costs'!$AA$16:$AA$43,MATCH($B106,'Damage costs'!$C$16:$C$43,0))/1000),\"\")","v":""},{"$f":"IFERROR(IF(OR($C$110=FALSE,LEFT($B106,3)<>\"NOX\"),Q55*INDEX('Damage costs'!$W$16:$W$43,MATCH($B106,'Damage costs'!$C$16:$C$43,0))/1000,Q55*INDEX('Damage costs'!$AA$16:$AA$43,MATCH($B106,'Damage costs'!$C$16:$C$43,0))/1000),\"\")","v":""},{"$f":"IFERROR(IF(OR($C$110=FALSE,LEFT($B106,3)<>\"NOX\"),R55*INDEX('Damage costs'!$W$16:$W$43,MATCH($B106,'Damage costs'!$C$16:$C$43,0))/1000,R55*INDEX('Damage costs'!$AA$16:$AA$43,MATCH($B106,'Damage costs'!$C$16:$C$43,0))/1000),\"\")","v":""},{"$f":"IFERROR(IF(OR($C$110=FALSE,LEFT($B106,3)<>\"NOX\"),S55*INDEX('Damage costs'!$W$16:$W$43,MATCH($B106,'Damage costs'!$C$16:$C$43,0))/1000,S55*INDEX('Damage costs'!$AA$16:$AA$43,MATCH($B106,'Damage costs'!$C$16:$C$43,0))/1000),\"\")","v":""},{"$f":"IFERROR(IF(OR($C$110=FALSE,LEFT($B106,3)<>\"NOX\"),T55*INDEX('Damage costs'!$W$16:$W$43,MATCH($B106,'Damage costs'!$C$16:$C$43,0))/1000,T55*INDEX('Damage costs'!$AA$16:$AA$43,MATCH($B106,'Damage costs'!$C$16:$C$43,0))/1000),\"\")","v":""},{"$f":"IFERROR(IF(OR($C$110=FALSE,LEFT($B106,3)<>\"NOX\"),U55*INDEX('Damage costs'!$W$16:$W$43,MATCH($B106,'Damage costs'!$C$16:$C$43,0))/1000,U55*INDEX('Damage costs'!$AA$16:$AA$43,MATCH($B106,'Damage costs'!$C$16:$C$43,0))/1000),\"\")","v":""},{"$f":"IFERROR(IF(OR($C$110=FALSE,LEFT($B106,3)<>\"NOX\"),V55*INDEX('Damage costs'!$W$16:$W$43,MATCH($B106,'Damage costs'!$C$16:$C$43,0))/1000,V55*INDEX('Damage costs'!$AA$16:$AA$43,MATCH($B106,'Damage costs'!$C$16:$C$43,0))/1000),\"\")","v":""},{"$f":"IFERROR(IF(OR($C$110=FALSE,LEFT($B106,3)<>\"NOX\"),W55*INDEX('Damage costs'!$W$16:$W$43,MATCH($B106,'Damage costs'!$C$16:$C$43,0))/1000,W55*INDEX('Damage costs'!$AA$16:$AA$43,MATCH($B106,'Damage costs'!$C$16:$C$43,0))/1000),\"\")","v":""},{"$f":"IFERROR(IF(OR($C$110=FALSE,LEFT($B106,3)<>\"NOX\"),X55*INDEX('Damage costs'!$W$16:$W$43,MATCH($B106,'Damage costs'!$C$16:$C$43,0))/1000,X55*INDEX('Damage costs'!$AA$16:$AA$43,MATCH($B106,'Damage costs'!$C$16:$C$43,0))/1000),\"\")","v":""},{"$f":"IFERROR(IF(OR($C$110=FALSE,LEFT($B106,3)<>\"NOX\"),Y55*INDEX('Damage costs'!$W$16:$W$43,MATCH($B106,'Damage costs'!$C$16:$C$43,0))/1000,Y55*INDEX('Damage costs'!$AA$16:$AA$43,MATCH($B106,'Damage costs'!$C$16:$C$43,0))/1000),\"\")","v":""},{"$f":"IFERROR(IF(OR($C$110=FALSE,LEFT($B106,3)<>\"NOX\"),Z55*INDEX('Damage costs'!$W$16:$W$43,MATCH($B106,'Damage costs'!$C$16:$C$43,0))/1000,Z55*INDEX('Damage costs'!$AA$16:$AA$43,MATCH($B106,'Damage costs'!$C$16:$C$43,0))/1000),\"\")","v":""},{"$f":"IFERROR(IF(OR($C$110=FALSE,LEFT($B106,3)<>\"NOX\"),AA55*INDEX('Damage costs'!$W$16:$W$43,MATCH($B106,'Damage costs'!$C$16:$C$43,0))/1000,AA55*INDEX('Damage costs'!$AA$16:$AA$43,MATCH($B106,'Damage costs'!$C$16:$C$43,0))/1000),\"\")","v":""},{"$f":"IFERROR(IF(OR($C$110=FALSE,LEFT($B106,3)<>\"NOX\"),AB55*INDEX('Damage costs'!$W$16:$W$43,MATCH($B106,'Damage costs'!$C$16:$C$43,0))/1000,AB55*INDEX('Damage costs'!$AA$16:$AA$43,MATCH($B106,'Damage costs'!$C$16:$C$43,0))/1000),\"\")","v":""},{"$f":"IFERROR(IF(OR($C$110=FALSE,LEFT($B106,3)<>\"NOX\"),AC55*INDEX('Damage costs'!$W$16:$W$43,MATCH($B106,'Damage costs'!$C$16:$C$43,0))/1000,AC55*INDEX('Damage costs'!$AA$16:$AA$43,MATCH($B106,'Damage costs'!$C$16:$C$43,0))/1000),\"\")","v":""},{"$f":"IFERROR(IF(OR($C$110=FALSE,LEFT($B106,3)<>\"NOX\"),AD55*INDEX('Damage costs'!$W$16:$W$43,MATCH($B106,'Damage costs'!$C$16:$C$43,0))/1000,AD55*INDEX('Damage costs'!$AA$16:$AA$43,MATCH($B106,'Damage costs'!$C$16:$C$43,0))/1000),\"\")","v":""},{"$f":"IFERROR(IF(OR($C$110=FALSE,LEFT($B106,3)<>\"NOX\"),AE55*INDEX('Damage costs'!$W$16:$W$43,MATCH($B106,'Damage costs'!$C$16:$C$43,0))/1000,AE55*INDEX('Damage costs'!$AA$16:$AA$43,MATCH($B106,'Damage costs'!$C$16:$C$43,0))/1000),\"\")","v":""},{"$f":"IFERROR(IF(OR($C$110=FALSE,LEFT($B106,3)<>\"NOX\"),AF55*INDEX('Damage costs'!$W$16:$W$43,MATCH($B106,'Damage costs'!$C$16:$C$43,0))/1000,AF55*INDEX('Damage costs'!$AA$16:$AA$43,MATCH($B106,'Damage costs'!$C$16:$C$43,0))/1000),\"\")","v":""},{"$f":"IFERROR(IF(OR($C$110=FALSE,LEFT($B106,3)<>\"NOX\"),AG55*INDEX('Damage costs'!$W$16:$W$43,MATCH($B106,'Damage costs'!$C$16:$C$43,0))/1000,AG55*INDEX('Damage costs'!$AA$16:$AA$43,MATCH($B106,'Damage costs'!$C$16:$C$43,0))/1000),\"\")","v":""},{"$f":"IFERROR(IF(OR($C$110=FALSE,LEFT($B106,3)<>\"NOX\"),AH55*INDEX('Damage costs'!$W$16:$W$43,MATCH($B106,'Damage costs'!$C$16:$C$43,0))/1000,AH55*INDEX('Damage costs'!$AA$16:$AA$43,MATCH($B106,'Damage costs'!$C$16:$C$43,0))/1000),\"\")","v":""},{"$f":"IFERROR(IF(OR($C$110=FALSE,LEFT($B106,3)<>\"NOX\"),AI55*INDEX('Damage costs'!$W$16:$W$43,MATCH($B106,'Damage costs'!$C$16:$C$43,0))/1000,AI55*INDEX('Damage costs'!$AA$16:$AA$43,MATCH($B106,'Damage costs'!$C$16:$C$43,0))/1000),\"\")","v":""},{"$f":"IFERROR(IF(OR($C$110=FALSE,LEFT($B106,3)<>\"NOX\"),AJ55*INDEX('Damage costs'!$W$16:$W$43,MATCH($B106,'Damage costs'!$C$16:$C$43,0))/1000,AJ55*INDEX('Damage costs'!$AA$16:$AA$43,MATCH($B106,'Damage costs'!$C$16:$C$43,0))/1000),\"\")","v":""},{"$f":"IFERROR(IF(OR($C$110=FALSE,LEFT($B106,3)<>\"NOX\"),AK55*INDEX('Damage costs'!$W$16:$W$43,MATCH($B106,'Damage costs'!$C$16:$C$43,0))/1000,AK55*INDEX('Damage costs'!$AA$16:$AA$43,MATCH($B106,'Damage costs'!$C$16:$C$43,0))/1000),\"\")","v":""},{"$f":"IFERROR(IF(OR($C$110=FALSE,LEFT($B106,3)<>\"NOX\"),AL55*INDEX('Damage costs'!$W$16:$W$43,MATCH($B106,'Damage costs'!$C$16:$C$43,0))/1000,AL55*INDEX('Damage costs'!$AA$16:$AA$43,MATCH($B106,'Damage costs'!$C$16:$C$43,0))/1000),\"\")","v":""},{"$f":"IFERROR(IF(OR($C$110=FALSE,LEFT($B106,3)<>\"NOX\"),AM55*INDEX('Damage costs'!$W$16:$W$43,MATCH($B106,'Damage costs'!$C$16:$C$43,0))/1000,AM55*INDEX('Damage costs'!$AA$16:$AA$43,MATCH($B106,'Damage costs'!$C$16:$C$43,0))/1000),\"\")","v":""},{"$f":"IFERROR(IF(OR($C$110=FALSE,LEFT($B106,3)<>\"NOX\"),AN55*INDEX('Damage costs'!$W$16:$W$43,MATCH($B106,'Damage costs'!$C$16:$C$43,0))/1000,AN55*INDEX('Damage costs'!$AA$16:$AA$43,MATCH($B106,'Damage costs'!$C$16:$C$43,0))/1000),\"\")","v":""},{"$f":"IFERROR(IF(OR($C$110=FALSE,LEFT($B106,3)<>\"NOX\"),AO55*INDEX('Damage costs'!$W$16:$W$43,MATCH($B106,'Damage costs'!$C$16:$C$43,0))/1000,AO55*INDEX('Damage costs'!$AA$16:$AA$43,MATCH($B106,'Damage costs'!$C$16:$C$43,0))/1000),\"\")","v":""},{"$f":"IFERROR(IF(OR($C$110=FALSE,LEFT($B106,3)<>\"NOX\"),AP55*INDEX('Damage costs'!$W$16:$W$43,MATCH($B106,'Damage costs'!$C$16:$C$43,0))/1000,AP55*INDEX('Damage costs'!$AA$16:$AA$43,MATCH($B106,'Damage costs'!$C$16:$C$43,0))/1000),\"\")","v":""},{"$f":"IFERROR(IF(OR($C$110=FALSE,LEFT($B106,3)<>\"NOX\"),AQ55*INDEX('Damage costs'!$W$16:$W$43,MATCH($B106,'Damage costs'!$C$16:$C$43,0))/1000,AQ55*INDEX('Damage costs'!$AA$16:$AA$43,MATCH($B106,'Damage costs'!$C$16:$C$43,0))/1000),\"\")","v":""},{"$f":"IFERROR(IF(OR($C$110=FALSE,LEFT($B106,3)<>\"NOX\"),AR55*INDEX('Damage costs'!$W$16:$W$43,MATCH($B106,'Damage costs'!$C$16:$C$43,0))/1000,AR55*INDEX('Damage costs'!$AA$16:$AA$43,MATCH($B106,'Damage costs'!$C$16:$C$43,0))/1000),\"\")","v":""},{"$f":"IFERROR(IF(OR($C$110=FALSE,LEFT($B106,3)<>\"NOX\"),AS55*INDEX('Damage costs'!$W$16:$W$43,MATCH($B106,'Damage costs'!$C$16:$C$43,0))/1000,AS55*INDEX('Damage costs'!$AA$16:$AA$43,MATCH($B106,'Damage costs'!$C$16:$C$43,0))/1000),\"\")","v":""},{"$f":"IFERROR(IF(OR($C$110=FALSE,LEFT($B106,3)<>\"NOX\"),AT55*INDEX('Damage costs'!$W$16:$W$43,MATCH($B106,'Damage costs'!$C$16:$C$43,0))/1000,AT55*INDEX('Damage costs'!$AA$16:$AA$43,MATCH($B106,'Damage costs'!$C$16:$C$43,0))/1000),\"\")","v":""},{"$f":"IFERROR(IF(OR($C$110=FALSE,LEFT($B106,3)<>\"NOX\"),AU55*INDEX('Damage costs'!$W$16:$W$43,MATCH($B106,'Damage costs'!$C$16:$C$43,0))/1000,AU55*INDEX('Damage costs'!$AA$16:$AA$43,MATCH($B106,'Damage costs'!$C$16:$C$43,0))/1000),\"\")","v":""},{"$f":"IFERROR(IF(OR($C$110=FALSE,LEFT($B106,3)<>\"NOX\"),AV55*INDEX('Damage costs'!$W$16:$W$43,MATCH($B106,'Damage costs'!$C$16:$C$43,0))/1000,AV55*INDEX('Damage costs'!$AA$16:$AA$43,MATCH($B106,'Damage costs'!$C$16:$C$43,0))/1000),\"\")","v":""},{"$f":"IFERROR(IF(OR($C$110=FALSE,LEFT($B106,3)<>\"NOX\"),AW55*INDEX('Damage costs'!$W$16:$W$43,MATCH($B106,'Damage costs'!$C$16:$C$43,0))/1000,AW55*INDEX('Damage costs'!$AA$16:$AA$43,MATCH($B106,'Damage costs'!$C$16:$C$43,0))/1000),\"\")","v":""},{"$f":"IFERROR(IF(OR($C$110=FALSE,LEFT($B106,3)<>\"NOX\"),AX55*INDEX('Damage costs'!$W$16:$W$43,MATCH($B106,'Damage costs'!$C$16:$C$43,0))/1000,AX55*INDEX('Damage costs'!$AA$16:$AA$43,MATCH($B106,'Damage costs'!$C$16:$C$43,0))/1000),\"\")","v":""},{"$f":"IFERROR(IF(OR($C$110=FALSE,LEFT($B106,3)<>\"NOX\"),AY55*INDEX('Damage costs'!$W$16:$W$43,MATCH($B106,'Damage costs'!$C$16:$C$43,0))/1000,AY55*INDEX('Damage costs'!$AA$16:$AA$43,MATCH($B106,'Damage costs'!$C$16:$C$43,0))/1000),\"\")","v":""},{"$f":"IFERROR(IF(OR($C$110=FALSE,LEFT($B106,3)<>\"NOX\"),AZ55*INDEX('Damage costs'!$W$16:$W$43,MATCH($B106,'Damage costs'!$C$16:$C$43,0))/1000,AZ55*INDEX('Damage costs'!$AA$16:$AA$43,MATCH($B106,'Damage costs'!$C$16:$C$43,0))/1000),\"\")","v":""},{"$f":"IFERROR(IF(OR($C$110=FALSE,LEFT($B106,3)<>\"NOX\"),BA55*INDEX('Damage costs'!$W$16:$W$43,MATCH($B106,'Damage costs'!$C$16:$C$43,0))/1000,BA55*INDEX('Damage costs'!$AA$16:$AA$43,MATCH($B106,'Damage costs'!$C$16:$C$43,0))/1000),\"\")","v":""},{"$f":"IFERROR(IF(OR($C$110=FALSE,LEFT($B106,3)<>\"NOX\"),BB55*INDEX('Damage costs'!$W$16:$W$43,MATCH($B106,'Damage costs'!$C$16:$C$43,0))/1000,BB55*INDEX('Damage costs'!$AA$16:$AA$43,MATCH($B106,'Damage costs'!$C$16:$C$43,0))/1000),\"\")","v":""},{"$f":"IFERROR(IF(OR($C$110=FALSE,LEFT($B106,3)<>\"NOX\"),BC55*INDEX('Damage costs'!$W$16:$W$43,MATCH($B106,'Damage costs'!$C$16:$C$43,0))/1000,BC55*INDEX('Damage costs'!$AA$16:$AA$43,MATCH($B106,'Damage costs'!$C$16:$C$43,0))/1000),\"\")","v":""},{"$f":"IFERROR(IF(OR($C$110=FALSE,LEFT($B106,3)<>\"NOX\"),BD55*INDEX('Damage costs'!$W$16:$W$43,MATCH($B106,'Damage costs'!$C$16:$C$43,0))/1000,BD55*INDEX('Damage costs'!$AA$16:$AA$43,MATCH($B106,'Damage costs'!$C$16:$C$43,0))/1000),\"\")","v":""},{"$f":"IFERROR(IF(OR($C$110=FALSE,LEFT($B106,3)<>\"NOX\"),BE55*INDEX('Damage costs'!$W$16:$W$43,MATCH($B106,'Damage costs'!$C$16:$C$43,0))/1000,BE55*INDEX('Damage costs'!$AA$16:$AA$43,MATCH($B106,'Damage costs'!$C$16:$C$43,0))/1000),\"\")","v":""},{"$f":"IFERROR(IF(OR($C$110=FALSE,LEFT($B106,3)<>\"NOX\"),BF55*INDEX('Damage costs'!$W$16:$W$43,MATCH($B106,'Damage costs'!$C$16:$C$43,0))/1000,BF55*INDEX('Damage costs'!$AA$16:$AA$43,MATCH($B106,'Damage costs'!$C$16:$C$43,0))/1000),\"\")","v":""},{"$f":"IFERROR(IF(OR($C$110=FALSE,LEFT($B106,3)<>\"NOX\"),BG55*INDEX('Damage costs'!$W$16:$W$43,MATCH($B106,'Damage costs'!$C$16:$C$43,0))/1000,BG55*INDEX('Damage costs'!$AA$16:$AA$43,MATCH($B106,'Damage costs'!$C$16:$C$43,0))/1000),\"\")","v":""},{"$f":"IFERROR(IF(OR($C$110=FALSE,LEFT($B106,3)<>\"NOX\"),BH55*INDEX('Damage costs'!$W$16:$W$43,MATCH($B106,'Damage costs'!$C$16:$C$43,0))/1000,BH55*INDEX('Damage costs'!$AA$16:$AA$43,MATCH($B106,'Damage costs'!$C$16:$C$43,0))/1000),\"\")","v":""},{"$f":"IFERROR(IF(OR($C$110=FALSE,LEFT($B106,3)<>\"NOX\"),BI55*INDEX('Damage costs'!$W$16:$W$43,MATCH($B106,'Damage costs'!$C$16:$C$43,0))/1000,BI55*INDEX('Damage costs'!$AA$16:$AA$43,MATCH($B106,'Damage costs'!$C$16:$C$43,0))/1000),\"\")","v":""},{"$f":"IFERROR(IF(OR($C$110=FALSE,LEFT($B106,3)<>\"NOX\"),BJ55*INDEX('Damage costs'!$W$16:$W$43,MATCH($B106,'Damage costs'!$C$16:$C$43,0))/1000,BJ55*INDEX('Damage costs'!$AA$16:$AA$43,MATCH($B106,'Damage costs'!$C$16:$C$43,0))/1000),\"\")","v":""},{"$f":"IFERROR(IF(OR($C$110=FALSE,LEFT($B106,3)<>\"NOX\"),BK55*INDEX('Damage costs'!$W$16:$W$43,MATCH($B106,'Damage costs'!$C$16:$C$43,0))/1000,BK55*INDEX('Damage costs'!$AA$16:$AA$43,MATCH($B106,'Damage costs'!$C$16:$C$43,0))/1000),\"\")","v":""},{"$f":"IFERROR(IF(OR($C$110=FALSE,LEFT($B106,3)<>\"NOX\"),BL55*INDEX('Damage costs'!$W$16:$W$43,MATCH($B106,'Damage costs'!$C$16:$C$43,0))/1000,BL55*INDEX('Damage costs'!$AA$16:$AA$43,MATCH($B106,'Damage costs'!$C$16:$C$43,0))/1000),\"\")","v":""},{"$f":"IFERROR(IF(OR($C$110=FALSE,LEFT($B106,3)<>\"NOX\"),BM55*INDEX('Damage costs'!$W$16:$W$43,MATCH($B106,'Damage costs'!$C$16:$C$43,0))/1000,BM55*INDEX('Damage costs'!$AA$16:$AA$43,MATCH($B106,'Damage costs'!$C$16:$C$43,0))/1000),\"\")","v":""},{"$f":"IFERROR(IF(OR($C$110=FALSE,LEFT($B106,3)<>\"NOX\"),BN55*INDEX('Damage costs'!$W$16:$W$43,MATCH($B106,'Damage costs'!$C$16:$C$43,0))/1000,BN55*INDEX('Damage costs'!$AA$16:$AA$43,MATCH($B106,'Damage costs'!$C$16:$C$43,0))/1000),\"\")","v":""},{"$f":"IFERROR(IF(OR($C$110=FALSE,LEFT($B106,3)<>\"NOX\"),BO55*INDEX('Damage costs'!$W$16:$W$43,MATCH($B106,'Damage costs'!$C$16:$C$43,0))/1000,BO55*INDEX('Damage costs'!$AA$16:$AA$43,MATCH($B106,'Damage costs'!$C$16:$C$43,0))/1000),\"\")","v":""},{"$f":"IFERROR(IF(OR($C$110=FALSE,LEFT($B106,3)<>\"NOX\"),BP55*INDEX('Damage costs'!$W$16:$W$43,MATCH($B106,'Damage costs'!$C$16:$C$43,0))/1000,BP55*INDEX('Damage costs'!$AA$16:$AA$43,MATCH($B106,'Damage costs'!$C$16:$C$43,0))/1000),\"\")","v":""},{"$f":"IFERROR(IF(OR($C$110=FALSE,LEFT($B106,3)<>\"NOX\"),BQ55*INDEX('Damage costs'!$W$16:$W$43,MATCH($B106,'Damage costs'!$C$16:$C$43,0))/1000,BQ55*INDEX('Damage costs'!$AA$16:$AA$43,MATCH($B106,'Damage costs'!$C$16:$C$43,0))/1000),\"\")","v":""},{"$f":"IFERROR(IF(OR($C$110=FALSE,LEFT($B106,3)<>\"NOX\"),BR55*INDEX('Damage costs'!$W$16:$W$43,MATCH($B106,'Damage costs'!$C$16:$C$43,0))/1000,BR55*INDEX('Damage costs'!$AA$16:$AA$43,MATCH($B106,'Damage costs'!$C$16:$C$43,0))/1000),\"\")","v":""},{"$f":"IFERROR(IF(OR($C$110=FALSE,LEFT($B106,3)<>\"NOX\"),BS55*INDEX('Damage costs'!$W$16:$W$43,MATCH($B106,'Damage costs'!$C$16:$C$43,0))/1000,BS55*INDEX('Damage costs'!$AA$16:$AA$43,MATCH($B106,'Damage costs'!$C$16:$C$43,0))/1000),\"\")","v":""},{"$f":"IFERROR(IF(OR($C$110=FALSE,LEFT($B106,3)<>\"NOX\"),BT55*INDEX('Damage costs'!$W$16:$W$43,MATCH($B106,'Damage costs'!$C$16:$C$43,0))/1000,BT55*INDEX('Damage costs'!$AA$16:$AA$43,MATCH($B106,'Damage costs'!$C$16:$C$43,0))/1000),\"\")","v":""},{"$f":"IFERROR(IF(OR($C$110=FALSE,LEFT($B106,3)<>\"NOX\"),BU55*INDEX('Damage costs'!$W$16:$W$43,MATCH($B106,'Damage costs'!$C$16:$C$43,0))/1000,BU55*INDEX('Damage costs'!$AA$16:$AA$43,MATCH($B106,'Damage costs'!$C$16:$C$43,0))/1000),\"\")","v":""},{"$f":"IFERROR(IF(OR($C$110=FALSE,LEFT($B106,3)<>\"NOX\"),BV55*INDEX('Damage costs'!$W$16:$W$43,MATCH($B106,'Damage costs'!$C$16:$C$43,0))/1000,BV55*INDEX('Damage costs'!$AA$16:$AA$43,MATCH($B106,'Damage costs'!$C$16:$C$43,0))/1000),\"\")","v":""},{"$f":"IFERROR(IF(OR($C$110=FALSE,LEFT($B106,3)<>\"NOX\"),BW55*INDEX('Damage costs'!$W$16:$W$43,MATCH($B106,'Damage costs'!$C$16:$C$43,0))/1000,BW55*INDEX('Damage costs'!$AA$16:$AA$43,MATCH($B106,'Damage costs'!$C$16:$C$43,0))/1000),\"\")","v":""},{"$f":"IFERROR(IF(OR($C$110=FALSE,LEFT($B106,3)<>\"NOX\"),BX55*INDEX('Damage costs'!$W$16:$W$43,MATCH($B106,'Damage costs'!$C$16:$C$43,0))/1000,BX55*INDEX('Damage costs'!$AA$16:$AA$43,MATCH($B106,'Damage costs'!$C$16:$C$43,0))/1000),\"\")","v":""},{"$f":"IFERROR(IF(OR($C$110=FALSE,LEFT($B106,3)<>\"NOX\"),BY55*INDEX('Damage costs'!$W$16:$W$43,MATCH($B106,'Damage costs'!$C$16:$C$43,0))/1000,BY55*INDEX('Damage costs'!$AA$16:$AA$43,MATCH($B106,'Damage costs'!$C$16:$C$43,0))/1000),\"\")","v":""},{"$f":"IFERROR(IF(OR($C$110=FALSE,LEFT($B106,3)<>\"NOX\"),BZ55*INDEX('Damage costs'!$W$16:$W$43,MATCH($B106,'Damage costs'!$C$16:$C$43,0))/1000,BZ55*INDEX('Damage costs'!$AA$16:$AA$43,MATCH($B106,'Damage costs'!$C$16:$C$43,0))/1000),\"\")","v":""},{"$f":"IFERROR(IF(OR($C$110=FALSE,LEFT($B106,3)<>\"NOX\"),CA55*INDEX('Damage costs'!$W$16:$W$43,MATCH($B106,'Damage costs'!$C$16:$C$43,0))/1000,CA55*INDEX('Damage costs'!$AA$16:$AA$43,MATCH($B106,'Damage costs'!$C$16:$C$43,0))/1000),\"\")","v":""},{"$f":"IFERROR(IF(OR($C$110=FALSE,LEFT($B106,3)<>\"NOX\"),CB55*INDEX('Damage costs'!$W$16:$W$43,MATCH($B106,'Damage costs'!$C$16:$C$43,0))/1000,CB55*INDEX('Damage costs'!$AA$16:$AA$43,MATCH($B106,'Damage costs'!$C$16:$C$43,0))/1000),\"\")","v":""},{"$f":"IFERROR(IF(OR($C$110=FALSE,LEFT($B106,3)<>\"NOX\"),CC55*INDEX('Damage costs'!$W$16:$W$43,MATCH($B106,'Damage costs'!$C$16:$C$43,0))/1000,CC55*INDEX('Damage costs'!$AA$16:$AA$43,MATCH($B106,'Damage costs'!$C$16:$C$43,0))/1000),\"\")","v":""},{"$f":"IFERROR(IF(OR($C$110=FALSE,LEFT($B106,3)<>\"NOX\"),CD55*INDEX('Damage costs'!$W$16:$W$43,MATCH($B106,'Damage costs'!$C$16:$C$43,0))/1000,CD55*INDEX('Damage costs'!$AA$16:$AA$43,MATCH($B106,'Damage costs'!$C$16:$C$43,0))/1000),\"\")","v":""},{"$f":"IFERROR(IF(OR($C$110=FALSE,LEFT($B106,3)<>\"NOX\"),CE55*INDEX('Damage costs'!$W$16:$W$43,MATCH($B106,'Damage costs'!$C$16:$C$43,0))/1000,CE55*INDEX('Damage costs'!$AA$16:$AA$43,MATCH($B106,'Damage costs'!$C$16:$C$43,0))/1000),\"\")","v":""},{"$f":"IFERROR(IF(OR($C$110=FALSE,LEFT($B106,3)<>\"NOX\"),CF55*INDEX('Damage costs'!$W$16:$W$43,MATCH($B106,'Damage costs'!$C$16:$C$43,0))/1000,CF55*INDEX('Damage costs'!$AA$16:$AA$43,MATCH($B106,'Damage costs'!$C$16:$C$43,0))/1000),\"\")","v":""},{"$f":"IFERROR(IF(OR($C$110=FALSE,LEFT($B106,3)<>\"NOX\"),CG55*INDEX('Damage costs'!$W$16:$W$43,MATCH($B106,'Damage costs'!$C$16:$C$43,0))/1000,CG55*INDEX('Damage costs'!$AA$16:$AA$43,MATCH($B106,'Damage costs'!$C$16:$C$43,0))/1000),\"\")","v":""},{"$f":"IFERROR(IF(OR($C$110=FALSE,LEFT($B106,3)<>\"NOX\"),CH55*INDEX('Damage costs'!$W$16:$W$43,MATCH($B106,'Damage costs'!$C$16:$C$43,0))/1000,CH55*INDEX('Damage costs'!$AA$16:$AA$43,MATCH($B106,'Damage costs'!$C$16:$C$43,0))/1000),\"\")","v":""},{"$f":"IFERROR(IF(OR($C$110=FALSE,LEFT($B106,3)<>\"NOX\"),CI55*INDEX('Damage costs'!$W$16:$W$43,MATCH($B106,'Damage costs'!$C$16:$C$43,0))/1000,CI55*INDEX('Damage costs'!$AA$16:$AA$43,MATCH($B106,'Damage costs'!$C$16:$C$43,0))/1000),\"\")","v":""},{"$f":"IFERROR(IF(OR($C$110=FALSE,LEFT($B106,3)<>\"NOX\"),CJ55*INDEX('Damage costs'!$W$16:$W$43,MATCH($B106,'Damage costs'!$C$16:$C$43,0))/1000,CJ55*INDEX('Damage costs'!$AA$16:$AA$43,MATCH($B106,'Damage costs'!$C$16:$C$43,0))/1000),\"\")","v":""},{"$f":"IFERROR(IF(OR($C$110=FALSE,LEFT($B106,3)<>\"NOX\"),CK55*INDEX('Damage costs'!$W$16:$W$43,MATCH($B106,'Damage costs'!$C$16:$C$43,0))/1000,CK55*INDEX('Damage costs'!$AA$16:$AA$43,MATCH($B106,'Damage costs'!$C$16:$C$43,0))/1000),\"\")","v":""},{"$f":"IFERROR(IF(OR($C$110=FALSE,LEFT($B106,3)<>\"NOX\"),CL55*INDEX('Damage costs'!$W$16:$W$43,MATCH($B106,'Damage costs'!$C$16:$C$43,0))/1000,CL55*INDEX('Damage costs'!$AA$16:$AA$43,MATCH($B106,'Damage costs'!$C$16:$C$43,0))/1000),\"\")","v":""},{"$f":"IFERROR(IF(OR($C$110=FALSE,LEFT($B106,3)<>\"NOX\"),CM55*INDEX('Damage costs'!$W$16:$W$43,MATCH($B106,'Damage costs'!$C$16:$C$43,0))/1000,CM55*INDEX('Damage costs'!$AA$16:$AA$43,MATCH($B106,'Damage costs'!$C$16:$C$43,0))/1000),\"\")","v":""},{"$f":"IFERROR(IF(OR($C$110=FALSE,LEFT($B106,3)<>\"NOX\"),CN55*INDEX('Damage costs'!$W$16:$W$43,MATCH($B106,'Damage costs'!$C$16:$C$43,0))/1000,CN55*INDEX('Damage costs'!$AA$16:$AA$43,MATCH($B106,'Damage costs'!$C$16:$C$43,0))/1000),\"\")","v":""},{"$f":"IFERROR(IF(OR($C$110=FALSE,LEFT($B106,3)<>\"NOX\"),CO55*INDEX('Damage costs'!$W$16:$W$43,MATCH($B106,'Damage costs'!$C$16:$C$43,0))/1000,CO55*INDEX('Damage costs'!$AA$16:$AA$43,MATCH($B106,'Damage costs'!$C$16:$C$43,0))/1000),\"\")","v":""},{"$f":"IFERROR(IF(OR($C$110=FALSE,LEFT($B106,3)<>\"NOX\"),CP55*INDEX('Damage costs'!$W$16:$W$43,MATCH($B106,'Damage costs'!$C$16:$C$43,0))/1000,CP55*INDEX('Damage costs'!$AA$16:$AA$43,MATCH($B106,'Damage costs'!$C$16:$C$43,0))/1000),\"\")","v":""},{"$f":"IFERROR(IF(OR($C$110=FALSE,LEFT($B106,3)<>\"NOX\"),CQ55*INDEX('Damage costs'!$W$16:$W$43,MATCH($B106,'Damage costs'!$C$16:$C$43,0))/1000,CQ55*INDEX('Damage costs'!$AA$16:$AA$43,MATCH($B106,'Damage costs'!$C$16:$C$43,0))/1000),\"\")","v":""},{"$f":"IFERROR(IF(OR($C$110=FALSE,LEFT($B106,3)<>\"NOX\"),CR55*INDEX('Damage costs'!$W$16:$W$43,MATCH($B106,'Damage costs'!$C$16:$C$43,0))/1000,CR55*INDEX('Damage costs'!$AA$16:$AA$43,MATCH($B106,'Damage costs'!$C$16:$C$43,0))/1000),\"\")","v":""},{"$f":"IFERROR(IF(OR($C$110=FALSE,LEFT($B106,3)<>\"NOX\"),CS55*INDEX('Damage costs'!$W$16:$W$43,MATCH($B106,'Damage costs'!$C$16:$C$43,0))/1000,CS55*INDEX('Damage costs'!$AA$16:$AA$43,MATCH($B106,'Damage costs'!$C$16:$C$43,0))/1000),\"\")","v":""},{"$f":"IFERROR(IF(OR($C$110=FALSE,LEFT($B106,3)<>\"NOX\"),CT55*INDEX('Damage costs'!$W$16:$W$43,MATCH($B106,'Damage costs'!$C$16:$C$43,0))/1000,CT55*INDEX('Damage costs'!$AA$16:$AA$43,MATCH($B106,'Damage costs'!$C$16:$C$43,0))/1000),\"\")","v":""},{"$f":"IFERROR(IF(OR($C$110=FALSE,LEFT($B106,3)<>\"NOX\"),CU55*INDEX('Damage costs'!$W$16:$W$43,MATCH($B106,'Damage costs'!$C$16:$C$43,0))/1000,CU55*INDEX('Damage costs'!$AA$16:$AA$43,MATCH($B106,'Damage costs'!$C$16:$C$43,0))/1000),\"\")","v":""},{"$f":"IFERROR(IF(OR($C$110=FALSE,LEFT($B106,3)<>\"NOX\"),CV55*INDEX('Damage costs'!$W$16:$W$43,MATCH($B106,'Damage costs'!$C$16:$C$43,0))/1000,CV55*INDEX('Damage costs'!$AA$16:$AA$43,MATCH($B106,'Damage costs'!$C$16:$C$43,0))/1000),\"\")","v":""},{"$f":"IFERROR(IF(OR($C$110=FALSE,LEFT($B106,3)<>\"NOX\"),CW55*INDEX('Damage costs'!$W$16:$W$43,MATCH($B106,'Damage costs'!$C$16:$C$43,0))/1000,CW55*INDEX('Damage costs'!$AA$16:$AA$43,MATCH($B106,'Damage costs'!$C$16:$C$43,0))/1000),\"\")","v":""},{"$f":"IFERROR(IF(OR($C$110=FALSE,LEFT($B106,3)<>\"NOX\"),CX55*INDEX('Damage costs'!$W$16:$W$43,MATCH($B106,'Damage costs'!$C$16:$C$43,0))/1000,CX55*INDEX('Damage costs'!$AA$16:$AA$43,MATCH($B106,'Damage costs'!$C$16:$C$43,0))/1000),\"\")","v":""},{"$f":"IFERROR(IF(OR($C$110=FALSE,LEFT($B106,3)<>\"NOX\"),CY55*INDEX('Damage costs'!$W$16:$W$43,MATCH($B106,'Damage costs'!$C$16:$C$43,0))/1000,CY55*INDEX('Damage costs'!$AA$16:$AA$43,MATCH($B106,'Damage costs'!$C$16:$C$43,0))/1000),\"\")","v":""}]
[null,0,"£000's",{"$f":"IFERROR(IF(OR($C$110=FALSE,LEFT($B107,3)<>\"NOX\"),D56*INDEX('Damage costs'!$W$16:$W$43,MATCH($B107,'Damage costs'!$C$16:$C$43,0))/1000,D56*INDEX('Damage costs'!$AA$16:$AA$43,MATCH($B107,'Damage costs'!$C$16:$C$43,0))/1000),\"\")","v":""},{"$f":"IFERROR(IF(OR($C$110=FALSE,LEFT($B107,3)<>\"NOX\"),E56*INDEX('Damage costs'!$W$16:$W$43,MATCH($B107,'Damage costs'!$C$16:$C$43,0))/1000,E56*INDEX('Damage costs'!$AA$16:$AA$43,MATCH($B107,'Damage costs'!$C$16:$C$43,0))/1000),\"\")","v":""},{"$f":"IFERROR(IF(OR($C$110=FALSE,LEFT($B107,3)<>\"NOX\"),F56*INDEX('Damage costs'!$W$16:$W$43,MATCH($B107,'Damage costs'!$C$16:$C$43,0))/1000,F56*INDEX('Damage costs'!$AA$16:$AA$43,MATCH($B107,'Damage costs'!$C$16:$C$43,0))/1000),\"\")","v":""},{"$f":"IFERROR(IF(OR($C$110=FALSE,LEFT($B107,3)<>\"NOX\"),G56*INDEX('Damage costs'!$W$16:$W$43,MATCH($B107,'Damage costs'!$C$16:$C$43,0))/1000,G56*INDEX('Damage costs'!$AA$16:$AA$43,MATCH($B107,'Damage costs'!$C$16:$C$43,0))/1000),\"\")","v":""},{"$f":"IFERROR(IF(OR($C$110=FALSE,LEFT($B107,3)<>\"NOX\"),H56*INDEX('Damage costs'!$W$16:$W$43,MATCH($B107,'Damage costs'!$C$16:$C$43,0))/1000,H56*INDEX('Damage costs'!$AA$16:$AA$43,MATCH($B107,'Damage costs'!$C$16:$C$43,0))/1000),\"\")","v":""},{"$f":"IFERROR(IF(OR($C$110=FALSE,LEFT($B107,3)<>\"NOX\"),I56*INDEX('Damage costs'!$W$16:$W$43,MATCH($B107,'Damage costs'!$C$16:$C$43,0))/1000,I56*INDEX('Damage costs'!$AA$16:$AA$43,MATCH($B107,'Damage costs'!$C$16:$C$43,0))/1000),\"\")","v":""},{"$f":"IFERROR(IF(OR($C$110=FALSE,LEFT($B107,3)<>\"NOX\"),J56*INDEX('Damage costs'!$W$16:$W$43,MATCH($B107,'Damage costs'!$C$16:$C$43,0))/1000,J56*INDEX('Damage costs'!$AA$16:$AA$43,MATCH($B107,'Damage costs'!$C$16:$C$43,0))/1000),\"\")","v":""},{"$f":"IFERROR(IF(OR($C$110=FALSE,LEFT($B107,3)<>\"NOX\"),K56*INDEX('Damage costs'!$W$16:$W$43,MATCH($B107,'Damage costs'!$C$16:$C$43,0))/1000,K56*INDEX('Damage costs'!$AA$16:$AA$43,MATCH($B107,'Damage costs'!$C$16:$C$43,0))/1000),\"\")","v":""},{"$f":"IFERROR(IF(OR($C$110=FALSE,LEFT($B107,3)<>\"NOX\"),L56*INDEX('Damage costs'!$W$16:$W$43,MATCH($B107,'Damage costs'!$C$16:$C$43,0))/1000,L56*INDEX('Damage costs'!$AA$16:$AA$43,MATCH($B107,'Damage costs'!$C$16:$C$43,0))/1000),\"\")","v":""},{"$f":"IFERROR(IF(OR($C$110=FALSE,LEFT($B107,3)<>\"NOX\"),M56*INDEX('Damage costs'!$W$16:$W$43,MATCH($B107,'Damage costs'!$C$16:$C$43,0))/1000,M56*INDEX('Damage costs'!$AA$16:$AA$43,MATCH($B107,'Damage costs'!$C$16:$C$43,0))/1000),\"\")","v":""},{"$f":"IFERROR(IF(OR($C$110=FALSE,LEFT($B107,3)<>\"NOX\"),N56*INDEX('Damage costs'!$W$16:$W$43,MATCH($B107,'Damage costs'!$C$16:$C$43,0))/1000,N56*INDEX('Damage costs'!$AA$16:$AA$43,MATCH($B107,'Damage costs'!$C$16:$C$43,0))/1000),\"\")","v":""},{"$f":"IFERROR(IF(OR($C$110=FALSE,LEFT($B107,3)<>\"NOX\"),O56*INDEX('Damage costs'!$W$16:$W$43,MATCH($B107,'Damage costs'!$C$16:$C$43,0))/1000,O56*INDEX('Damage costs'!$AA$16:$AA$43,MATCH($B107,'Damage costs'!$C$16:$C$43,0))/1000),\"\")","v":""},{"$f":"IFERROR(IF(OR($C$110=FALSE,LEFT($B107,3)<>\"NOX\"),P56*INDEX('Damage costs'!$W$16:$W$43,MATCH($B107,'Damage costs'!$C$16:$C$43,0))/1000,P56*INDEX('Damage costs'!$AA$16:$AA$43,MATCH($B107,'Damage costs'!$C$16:$C$43,0))/1000),\"\")","v":""},{"$f":"IFERROR(IF(OR($C$110=FALSE,LEFT($B107,3)<>\"NOX\"),Q56*INDEX('Damage costs'!$W$16:$W$43,MATCH($B107,'Damage costs'!$C$16:$C$43,0))/1000,Q56*INDEX('Damage costs'!$AA$16:$AA$43,MATCH($B107,'Damage costs'!$C$16:$C$43,0))/1000),\"\")","v":""},{"$f":"IFERROR(IF(OR($C$110=FALSE,LEFT($B107,3)<>\"NOX\"),R56*INDEX('Damage costs'!$W$16:$W$43,MATCH($B107,'Damage costs'!$C$16:$C$43,0))/1000,R56*INDEX('Damage costs'!$AA$16:$AA$43,MATCH($B107,'Damage costs'!$C$16:$C$43,0))/1000),\"\")","v":""},{"$f":"IFERROR(IF(OR($C$110=FALSE,LEFT($B107,3)<>\"NOX\"),S56*INDEX('Damage costs'!$W$16:$W$43,MATCH($B107,'Damage costs'!$C$16:$C$43,0))/1000,S56*INDEX('Damage costs'!$AA$16:$AA$43,MATCH($B107,'Damage costs'!$C$16:$C$43,0))/1000),\"\")","v":""},{"$f":"IFERROR(IF(OR($C$110=FALSE,LEFT($B107,3)<>\"NOX\"),T56*INDEX('Damage costs'!$W$16:$W$43,MATCH($B107,'Damage costs'!$C$16:$C$43,0))/1000,T56*INDEX('Damage costs'!$AA$16:$AA$43,MATCH($B107,'Damage costs'!$C$16:$C$43,0))/1000),\"\")","v":""},{"$f":"IFERROR(IF(OR($C$110=FALSE,LEFT($B107,3)<>\"NOX\"),U56*INDEX('Damage costs'!$W$16:$W$43,MATCH($B107,'Damage costs'!$C$16:$C$43,0))/1000,U56*INDEX('Damage costs'!$AA$16:$AA$43,MATCH($B107,'Damage costs'!$C$16:$C$43,0))/1000),\"\")","v":""},{"$f":"IFERROR(IF(OR($C$110=FALSE,LEFT($B107,3)<>\"NOX\"),V56*INDEX('Damage costs'!$W$16:$W$43,MATCH($B107,'Damage costs'!$C$16:$C$43,0))/1000,V56*INDEX('Damage costs'!$AA$16:$AA$43,MATCH($B107,'Damage costs'!$C$16:$C$43,0))/1000),\"\")","v":""},{"$f":"IFERROR(IF(OR($C$110=FALSE,LEFT($B107,3)<>\"NOX\"),W56*INDEX('Damage costs'!$W$16:$W$43,MATCH($B107,'Damage costs'!$C$16:$C$43,0))/1000,W56*INDEX('Damage costs'!$AA$16:$AA$43,MATCH($B107,'Damage costs'!$C$16:$C$43,0))/1000),\"\")","v":""},{"$f":"IFERROR(IF(OR($C$110=FALSE,LEFT($B107,3)<>\"NOX\"),X56*INDEX('Damage costs'!$W$16:$W$43,MATCH($B107,'Damage costs'!$C$16:$C$43,0))/1000,X56*INDEX('Damage costs'!$AA$16:$AA$43,MATCH($B107,'Damage costs'!$C$16:$C$43,0))/1000),\"\")","v":""},{"$f":"IFERROR(IF(OR($C$110=FALSE,LEFT($B107,3)<>\"NOX\"),Y56*INDEX('Damage costs'!$W$16:$W$43,MATCH($B107,'Damage costs'!$C$16:$C$43,0))/1000,Y56*INDEX('Damage costs'!$AA$16:$AA$43,MATCH($B107,'Damage costs'!$C$16:$C$43,0))/1000),\"\")","v":""},{"$f":"IFERROR(IF(OR($C$110=FALSE,LEFT($B107,3)<>\"NOX\"),Z56*INDEX('Damage costs'!$W$16:$W$43,MATCH($B107,'Damage costs'!$C$16:$C$43,0))/1000,Z56*INDEX('Damage costs'!$AA$16:$AA$43,MATCH($B107,'Damage costs'!$C$16:$C$43,0))/1000),\"\")","v":""},{"$f":"IFERROR(IF(OR($C$110=FALSE,LEFT($B107,3)<>\"NOX\"),AA56*INDEX('Damage costs'!$W$16:$W$43,MATCH($B107,'Damage costs'!$C$16:$C$43,0))/1000,AA56*INDEX('Damage costs'!$AA$16:$AA$43,MATCH($B107,'Damage costs'!$C$16:$C$43,0))/1000),\"\")","v":""},{"$f":"IFERROR(IF(OR($C$110=FALSE,LEFT($B107,3)<>\"NOX\"),AB56*INDEX('Damage costs'!$W$16:$W$43,MATCH($B107,'Damage costs'!$C$16:$C$43,0))/1000,AB56*INDEX('Damage costs'!$AA$16:$AA$43,MATCH($B107,'Damage costs'!$C$16:$C$43,0))/1000),\"\")","v":""},{"$f":"IFERROR(IF(OR($C$110=FALSE,LEFT($B107,3)<>\"NOX\"),AC56*INDEX('Damage costs'!$W$16:$W$43,MATCH($B107,'Damage costs'!$C$16:$C$43,0))/1000,AC56*INDEX('Damage costs'!$AA$16:$AA$43,MATCH($B107,'Damage costs'!$C$16:$C$43,0))/1000),\"\")","v":""},{"$f":"IFERROR(IF(OR($C$110=FALSE,LEFT($B107,3)<>\"NOX\"),AD56*INDEX('Damage costs'!$W$16:$W$43,MATCH($B107,'Damage costs'!$C$16:$C$43,0))/1000,AD56*INDEX('Damage costs'!$AA$16:$AA$43,MATCH($B107,'Damage costs'!$C$16:$C$43,0))/1000),\"\")","v":""},{"$f":"IFERROR(IF(OR($C$110=FALSE,LEFT($B107,3)<>\"NOX\"),AE56*INDEX('Damage costs'!$W$16:$W$43,MATCH($B107,'Damage costs'!$C$16:$C$43,0))/1000,AE56*INDEX('Damage costs'!$AA$16:$AA$43,MATCH($B107,'Damage costs'!$C$16:$C$43,0))/1000),\"\")","v":""},{"$f":"IFERROR(IF(OR($C$110=FALSE,LEFT($B107,3)<>\"NOX\"),AF56*INDEX('Damage costs'!$W$16:$W$43,MATCH($B107,'Damage costs'!$C$16:$C$43,0))/1000,AF56*INDEX('Damage costs'!$AA$16:$AA$43,MATCH($B107,'Damage costs'!$C$16:$C$43,0))/1000),\"\")","v":""},{"$f":"IFERROR(IF(OR($C$110=FALSE,LEFT($B107,3)<>\"NOX\"),AG56*INDEX('Damage costs'!$W$16:$W$43,MATCH($B107,'Damage costs'!$C$16:$C$43,0))/1000,AG56*INDEX('Damage costs'!$AA$16:$AA$43,MATCH($B107,'Damage costs'!$C$16:$C$43,0))/1000),\"\")","v":""},{"$f":"IFERROR(IF(OR($C$110=FALSE,LEFT($B107,3)<>\"NOX\"),AH56*INDEX('Damage costs'!$W$16:$W$43,MATCH($B107,'Damage costs'!$C$16:$C$43,0))/1000,AH56*INDEX('Damage costs'!$AA$16:$AA$43,MATCH($B107,'Damage costs'!$C$16:$C$43,0))/1000),\"\")","v":""},{"$f":"IFERROR(IF(OR($C$110=FALSE,LEFT($B107,3)<>\"NOX\"),AI56*INDEX('Damage costs'!$W$16:$W$43,MATCH($B107,'Damage costs'!$C$16:$C$43,0))/1000,AI56*INDEX('Damage costs'!$AA$16:$AA$43,MATCH($B107,'Damage costs'!$C$16:$C$43,0))/1000),\"\")","v":""},{"$f":"IFERROR(IF(OR($C$110=FALSE,LEFT($B107,3)<>\"NOX\"),AJ56*INDEX('Damage costs'!$W$16:$W$43,MATCH($B107,'Damage costs'!$C$16:$C$43,0))/1000,AJ56*INDEX('Damage costs'!$AA$16:$AA$43,MATCH($B107,'Damage costs'!$C$16:$C$43,0))/1000),\"\")","v":""},{"$f":"IFERROR(IF(OR($C$110=FALSE,LEFT($B107,3)<>\"NOX\"),AK56*INDEX('Damage costs'!$W$16:$W$43,MATCH($B107,'Damage costs'!$C$16:$C$43,0))/1000,AK56*INDEX('Damage costs'!$AA$16:$AA$43,MATCH($B107,'Damage costs'!$C$16:$C$43,0))/1000),\"\")","v":""},{"$f":"IFERROR(IF(OR($C$110=FALSE,LEFT($B107,3)<>\"NOX\"),AL56*INDEX('Damage costs'!$W$16:$W$43,MATCH($B107,'Damage costs'!$C$16:$C$43,0))/1000,AL56*INDEX('Damage costs'!$AA$16:$AA$43,MATCH($B107,'Damage costs'!$C$16:$C$43,0))/1000),\"\")","v":""},{"$f":"IFERROR(IF(OR($C$110=FALSE,LEFT($B107,3)<>\"NOX\"),AM56*INDEX('Damage costs'!$W$16:$W$43,MATCH($B107,'Damage costs'!$C$16:$C$43,0))/1000,AM56*INDEX('Damage costs'!$AA$16:$AA$43,MATCH($B107,'Damage costs'!$C$16:$C$43,0))/1000),\"\")","v":""},{"$f":"IFERROR(IF(OR($C$110=FALSE,LEFT($B107,3)<>\"NOX\"),AN56*INDEX('Damage costs'!$W$16:$W$43,MATCH($B107,'Damage costs'!$C$16:$C$43,0))/1000,AN56*INDEX('Damage costs'!$AA$16:$AA$43,MATCH($B107,'Damage costs'!$C$16:$C$43,0))/1000),\"\")","v":""},{"$f":"IFERROR(IF(OR($C$110=FALSE,LEFT($B107,3)<>\"NOX\"),AO56*INDEX('Damage costs'!$W$16:$W$43,MATCH($B107,'Damage costs'!$C$16:$C$43,0))/1000,AO56*INDEX('Damage costs'!$AA$16:$AA$43,MATCH($B107,'Damage costs'!$C$16:$C$43,0))/1000),\"\")","v":""},{"$f":"IFERROR(IF(OR($C$110=FALSE,LEFT($B107,3)<>\"NOX\"),AP56*INDEX('Damage costs'!$W$16:$W$43,MATCH($B107,'Damage costs'!$C$16:$C$43,0))/1000,AP56*INDEX('Damage costs'!$AA$16:$AA$43,MATCH($B107,'Damage costs'!$C$16:$C$43,0))/1000),\"\")","v":""},{"$f":"IFERROR(IF(OR($C$110=FALSE,LEFT($B107,3)<>\"NOX\"),AQ56*INDEX('Damage costs'!$W$16:$W$43,MATCH($B107,'Damage costs'!$C$16:$C$43,0))/1000,AQ56*INDEX('Damage costs'!$AA$16:$AA$43,MATCH($B107,'Damage costs'!$C$16:$C$43,0))/1000),\"\")","v":""},{"$f":"IFERROR(IF(OR($C$110=FALSE,LEFT($B107,3)<>\"NOX\"),AR56*INDEX('Damage costs'!$W$16:$W$43,MATCH($B107,'Damage costs'!$C$16:$C$43,0))/1000,AR56*INDEX('Damage costs'!$AA$16:$AA$43,MATCH($B107,'Damage costs'!$C$16:$C$43,0))/1000),\"\")","v":""},{"$f":"IFERROR(IF(OR($C$110=FALSE,LEFT($B107,3)<>\"NOX\"),AS56*INDEX('Damage costs'!$W$16:$W$43,MATCH($B107,'Damage costs'!$C$16:$C$43,0))/1000,AS56*INDEX('Damage costs'!$AA$16:$AA$43,MATCH($B107,'Damage costs'!$C$16:$C$43,0))/1000),\"\")","v":""},{"$f":"IFERROR(IF(OR($C$110=FALSE,LEFT($B107,3)<>\"NOX\"),AT56*INDEX('Damage costs'!$W$16:$W$43,MATCH($B107,'Damage costs'!$C$16:$C$43,0))/1000,AT56*INDEX('Damage costs'!$AA$16:$AA$43,MATCH($B107,'Damage costs'!$C$16:$C$43,0))/1000),\"\")","v":""},{"$f":"IFERROR(IF(OR($C$110=FALSE,LEFT($B107,3)<>\"NOX\"),AU56*INDEX('Damage costs'!$W$16:$W$43,MATCH($B107,'Damage costs'!$C$16:$C$43,0))/1000,AU56*INDEX('Damage costs'!$AA$16:$AA$43,MATCH($B107,'Damage costs'!$C$16:$C$43,0))/1000),\"\")","v":""},{"$f":"IFERROR(IF(OR($C$110=FALSE,LEFT($B107,3)<>\"NOX\"),AV56*INDEX('Damage costs'!$W$16:$W$43,MATCH($B107,'Damage costs'!$C$16:$C$43,0))/1000,AV56*INDEX('Damage costs'!$AA$16:$AA$43,MATCH($B107,'Damage costs'!$C$16:$C$43,0))/1000),\"\")","v":""},{"$f":"IFERROR(IF(OR($C$110=FALSE,LEFT($B107,3)<>\"NOX\"),AW56*INDEX('Damage costs'!$W$16:$W$43,MATCH($B107,'Damage costs'!$C$16:$C$43,0))/1000,AW56*INDEX('Damage costs'!$AA$16:$AA$43,MATCH($B107,'Damage costs'!$C$16:$C$43,0))/1000),\"\")","v":""},{"$f":"IFERROR(IF(OR($C$110=FALSE,LEFT($B107,3)<>\"NOX\"),AX56*INDEX('Damage costs'!$W$16:$W$43,MATCH($B107,'Damage costs'!$C$16:$C$43,0))/1000,AX56*INDEX('Damage costs'!$AA$16:$AA$43,MATCH($B107,'Damage costs'!$C$16:$C$43,0))/1000),\"\")","v":""},{"$f":"IFERROR(IF(OR($C$110=FALSE,LEFT($B107,3)<>\"NOX\"),AY56*INDEX('Damage costs'!$W$16:$W$43,MATCH($B107,'Damage costs'!$C$16:$C$43,0))/1000,AY56*INDEX('Damage costs'!$AA$16:$AA$43,MATCH($B107,'Damage costs'!$C$16:$C$43,0))/1000),\"\")","v":""},{"$f":"IFERROR(IF(OR($C$110=FALSE,LEFT($B107,3)<>\"NOX\"),AZ56*INDEX('Damage costs'!$W$16:$W$43,MATCH($B107,'Damage costs'!$C$16:$C$43,0))/1000,AZ56*INDEX('Damage costs'!$AA$16:$AA$43,MATCH($B107,'Damage costs'!$C$16:$C$43,0))/1000),\"\")","v":""},{"$f":"IFERROR(IF(OR($C$110=FALSE,LEFT($B107,3)<>\"NOX\"),BA56*INDEX('Damage costs'!$W$16:$W$43,MATCH($B107,'Damage costs'!$C$16:$C$43,0))/1000,BA56*INDEX('Damage costs'!$AA$16:$AA$43,MATCH($B107,'Damage costs'!$C$16:$C$43,0))/1000),\"\")","v":""},{"$f":"IFERROR(IF(OR($C$110=FALSE,LEFT($B107,3)<>\"NOX\"),BB56*INDEX('Damage costs'!$W$16:$W$43,MATCH($B107,'Damage costs'!$C$16:$C$43,0))/1000,BB56*INDEX('Damage costs'!$AA$16:$AA$43,MATCH($B107,'Damage costs'!$C$16:$C$43,0))/1000),\"\")","v":""},{"$f":"IFERROR(IF(OR($C$110=FALSE,LEFT($B107,3)<>\"NOX\"),BC56*INDEX('Damage costs'!$W$16:$W$43,MATCH($B107,'Damage costs'!$C$16:$C$43,0))/1000,BC56*INDEX('Damage costs'!$AA$16:$AA$43,MATCH($B107,'Damage costs'!$C$16:$C$43,0))/1000),\"\")","v":""},{"$f":"IFERROR(IF(OR($C$110=FALSE,LEFT($B107,3)<>\"NOX\"),BD56*INDEX('Damage costs'!$W$16:$W$43,MATCH($B107,'Damage costs'!$C$16:$C$43,0))/1000,BD56*INDEX('Damage costs'!$AA$16:$AA$43,MATCH($B107,'Damage costs'!$C$16:$C$43,0))/1000),\"\")","v":""},{"$f":"IFERROR(IF(OR($C$110=FALSE,LEFT($B107,3)<>\"NOX\"),BE56*INDEX('Damage costs'!$W$16:$W$43,MATCH($B107,'Damage costs'!$C$16:$C$43,0))/1000,BE56*INDEX('Damage costs'!$AA$16:$AA$43,MATCH($B107,'Damage costs'!$C$16:$C$43,0))/1000),\"\")","v":""},{"$f":"IFERROR(IF(OR($C$110=FALSE,LEFT($B107,3)<>\"NOX\"),BF56*INDEX('Damage costs'!$W$16:$W$43,MATCH($B107,'Damage costs'!$C$16:$C$43,0))/1000,BF56*INDEX('Damage costs'!$AA$16:$AA$43,MATCH($B107,'Damage costs'!$C$16:$C$43,0))/1000),\"\")","v":""},{"$f":"IFERROR(IF(OR($C$110=FALSE,LEFT($B107,3)<>\"NOX\"),BG56*INDEX('Damage costs'!$W$16:$W$43,MATCH($B107,'Damage costs'!$C$16:$C$43,0))/1000,BG56*INDEX('Damage costs'!$AA$16:$AA$43,MATCH($B107,'Damage costs'!$C$16:$C$43,0))/1000),\"\")","v":""},{"$f":"IFERROR(IF(OR($C$110=FALSE,LEFT($B107,3)<>\"NOX\"),BH56*INDEX('Damage costs'!$W$16:$W$43,MATCH($B107,'Damage costs'!$C$16:$C$43,0))/1000,BH56*INDEX('Damage costs'!$AA$16:$AA$43,MATCH($B107,'Damage costs'!$C$16:$C$43,0))/1000),\"\")","v":""},{"$f":"IFERROR(IF(OR($C$110=FALSE,LEFT($B107,3)<>\"NOX\"),BI56*INDEX('Damage costs'!$W$16:$W$43,MATCH($B107,'Damage costs'!$C$16:$C$43,0))/1000,BI56*INDEX('Damage costs'!$AA$16:$AA$43,MATCH($B107,'Damage costs'!$C$16:$C$43,0))/1000),\"\")","v":""},{"$f":"IFERROR(IF(OR($C$110=FALSE,LEFT($B107,3)<>\"NOX\"),BJ56*INDEX('Damage costs'!$W$16:$W$43,MATCH($B107,'Damage costs'!$C$16:$C$43,0))/1000,BJ56*INDEX('Damage costs'!$AA$16:$AA$43,MATCH($B107,'Damage costs'!$C$16:$C$43,0))/1000),\"\")","v":""},{"$f":"IFERROR(IF(OR($C$110=FALSE,LEFT($B107,3)<>\"NOX\"),BK56*INDEX('Damage costs'!$W$16:$W$43,MATCH($B107,'Damage costs'!$C$16:$C$43,0))/1000,BK56*INDEX('Damage costs'!$AA$16:$AA$43,MATCH($B107,'Damage costs'!$C$16:$C$43,0))/1000),\"\")","v":""},{"$f":"IFERROR(IF(OR($C$110=FALSE,LEFT($B107,3)<>\"NOX\"),BL56*INDEX('Damage costs'!$W$16:$W$43,MATCH($B107,'Damage costs'!$C$16:$C$43,0))/1000,BL56*INDEX('Damage costs'!$AA$16:$AA$43,MATCH($B107,'Damage costs'!$C$16:$C$43,0))/1000),\"\")","v":""},{"$f":"IFERROR(IF(OR($C$110=FALSE,LEFT($B107,3)<>\"NOX\"),BM56*INDEX('Damage costs'!$W$16:$W$43,MATCH($B107,'Damage costs'!$C$16:$C$43,0))/1000,BM56*INDEX('Damage costs'!$AA$16:$AA$43,MATCH($B107,'Damage costs'!$C$16:$C$43,0))/1000),\"\")","v":""},{"$f":"IFERROR(IF(OR($C$110=FALSE,LEFT($B107,3)<>\"NOX\"),BN56*INDEX('Damage costs'!$W$16:$W$43,MATCH($B107,'Damage costs'!$C$16:$C$43,0))/1000,BN56*INDEX('Damage costs'!$AA$16:$AA$43,MATCH($B107,'Damage costs'!$C$16:$C$43,0))/1000),\"\")","v":""},{"$f":"IFERROR(IF(OR($C$110=FALSE,LEFT($B107,3)<>\"NOX\"),BO56*INDEX('Damage costs'!$W$16:$W$43,MATCH($B107,'Damage costs'!$C$16:$C$43,0))/1000,BO56*INDEX('Damage costs'!$AA$16:$AA$43,MATCH($B107,'Damage costs'!$C$16:$C$43,0))/1000),\"\")","v":""},{"$f":"IFERROR(IF(OR($C$110=FALSE,LEFT($B107,3)<>\"NOX\"),BP56*INDEX('Damage costs'!$W$16:$W$43,MATCH($B107,'Damage costs'!$C$16:$C$43,0))/1000,BP56*INDEX('Damage costs'!$AA$16:$AA$43,MATCH($B107,'Damage costs'!$C$16:$C$43,0))/1000),\"\")","v":""},{"$f":"IFERROR(IF(OR($C$110=FALSE,LEFT($B107,3)<>\"NOX\"),BQ56*INDEX('Damage costs'!$W$16:$W$43,MATCH($B107,'Damage costs'!$C$16:$C$43,0))/1000,BQ56*INDEX('Damage costs'!$AA$16:$AA$43,MATCH($B107,'Damage costs'!$C$16:$C$43,0))/1000),\"\")","v":""},{"$f":"IFERROR(IF(OR($C$110=FALSE,LEFT($B107,3)<>\"NOX\"),BR56*INDEX('Damage costs'!$W$16:$W$43,MATCH($B107,'Damage costs'!$C$16:$C$43,0))/1000,BR56*INDEX('Damage costs'!$AA$16:$AA$43,MATCH($B107,'Damage costs'!$C$16:$C$43,0))/1000),\"\")","v":""},{"$f":"IFERROR(IF(OR($C$110=FALSE,LEFT($B107,3)<>\"NOX\"),BS56*INDEX('Damage costs'!$W$16:$W$43,MATCH($B107,'Damage costs'!$C$16:$C$43,0))/1000,BS56*INDEX('Damage costs'!$AA$16:$AA$43,MATCH($B107,'Damage costs'!$C$16:$C$43,0))/1000),\"\")","v":""},{"$f":"IFERROR(IF(OR($C$110=FALSE,LEFT($B107,3)<>\"NOX\"),BT56*INDEX('Damage costs'!$W$16:$W$43,MATCH($B107,'Damage costs'!$C$16:$C$43,0))/1000,BT56*INDEX('Damage costs'!$AA$16:$AA$43,MATCH($B107,'Damage costs'!$C$16:$C$43,0))/1000),\"\")","v":""},{"$f":"IFERROR(IF(OR($C$110=FALSE,LEFT($B107,3)<>\"NOX\"),BU56*INDEX('Damage costs'!$W$16:$W$43,MATCH($B107,'Damage costs'!$C$16:$C$43,0))/1000,BU56*INDEX('Damage costs'!$AA$16:$AA$43,MATCH($B107,'Damage costs'!$C$16:$C$43,0))/1000),\"\")","v":""},{"$f":"IFERROR(IF(OR($C$110=FALSE,LEFT($B107,3)<>\"NOX\"),BV56*INDEX('Damage costs'!$W$16:$W$43,MATCH($B107,'Damage costs'!$C$16:$C$43,0))/1000,BV56*INDEX('Damage costs'!$AA$16:$AA$43,MATCH($B107,'Damage costs'!$C$16:$C$43,0))/1000),\"\")","v":""},{"$f":"IFERROR(IF(OR($C$110=FALSE,LEFT($B107,3)<>\"NOX\"),BW56*INDEX('Damage costs'!$W$16:$W$43,MATCH($B107,'Damage costs'!$C$16:$C$43,0))/1000,BW56*INDEX('Damage costs'!$AA$16:$AA$43,MATCH($B107,'Damage costs'!$C$16:$C$43,0))/1000),\"\")","v":""},{"$f":"IFERROR(IF(OR($C$110=FALSE,LEFT($B107,3)<>\"NOX\"),BX56*INDEX('Damage costs'!$W$16:$W$43,MATCH($B107,'Damage costs'!$C$16:$C$43,0))/1000,BX56*INDEX('Damage costs'!$AA$16:$AA$43,MATCH($B107,'Damage costs'!$C$16:$C$43,0))/1000),\"\")","v":""},{"$f":"IFERROR(IF(OR($C$110=FALSE,LEFT($B107,3)<>\"NOX\"),BY56*INDEX('Damage costs'!$W$16:$W$43,MATCH($B107,'Damage costs'!$C$16:$C$43,0))/1000,BY56*INDEX('Damage costs'!$AA$16:$AA$43,MATCH($B107,'Damage costs'!$C$16:$C$43,0))/1000),\"\")","v":""},{"$f":"IFERROR(IF(OR($C$110=FALSE,LEFT($B107,3)<>\"NOX\"),BZ56*INDEX('Damage costs'!$W$16:$W$43,MATCH($B107,'Damage costs'!$C$16:$C$43,0))/1000,BZ56*INDEX('Damage costs'!$AA$16:$AA$43,MATCH($B107,'Damage costs'!$C$16:$C$43,0))/1000),\"\")","v":""},{"$f":"IFERROR(IF(OR($C$110=FALSE,LEFT($B107,3)<>\"NOX\"),CA56*INDEX('Damage costs'!$W$16:$W$43,MATCH($B107,'Damage costs'!$C$16:$C$43,0))/1000,CA56*INDEX('Damage costs'!$AA$16:$AA$43,MATCH($B107,'Damage costs'!$C$16:$C$43,0))/1000),\"\")","v":""},{"$f":"IFERROR(IF(OR($C$110=FALSE,LEFT($B107,3)<>\"NOX\"),CB56*INDEX('Damage costs'!$W$16:$W$43,MATCH($B107,'Damage costs'!$C$16:$C$43,0))/1000,CB56*INDEX('Damage costs'!$AA$16:$AA$43,MATCH($B107,'Damage costs'!$C$16:$C$43,0))/1000),\"\")","v":""},{"$f":"IFERROR(IF(OR($C$110=FALSE,LEFT($B107,3)<>\"NOX\"),CC56*INDEX('Damage costs'!$W$16:$W$43,MATCH($B107,'Damage costs'!$C$16:$C$43,0))/1000,CC56*INDEX('Damage costs'!$AA$16:$AA$43,MATCH($B107,'Damage costs'!$C$16:$C$43,0))/1000),\"\")","v":""},{"$f":"IFERROR(IF(OR($C$110=FALSE,LEFT($B107,3)<>\"NOX\"),CD56*INDEX('Damage costs'!$W$16:$W$43,MATCH($B107,'Damage costs'!$C$16:$C$43,0))/1000,CD56*INDEX('Damage costs'!$AA$16:$AA$43,MATCH($B107,'Damage costs'!$C$16:$C$43,0))/1000),\"\")","v":""},{"$f":"IFERROR(IF(OR($C$110=FALSE,LEFT($B107,3)<>\"NOX\"),CE56*INDEX('Damage costs'!$W$16:$W$43,MATCH($B107,'Damage costs'!$C$16:$C$43,0))/1000,CE56*INDEX('Damage costs'!$AA$16:$AA$43,MATCH($B107,'Damage costs'!$C$16:$C$43,0))/1000),\"\")","v":""},{"$f":"IFERROR(IF(OR($C$110=FALSE,LEFT($B107,3)<>\"NOX\"),CF56*INDEX('Damage costs'!$W$16:$W$43,MATCH($B107,'Damage costs'!$C$16:$C$43,0))/1000,CF56*INDEX('Damage costs'!$AA$16:$AA$43,MATCH($B107,'Damage costs'!$C$16:$C$43,0))/1000),\"\")","v":""},{"$f":"IFERROR(IF(OR($C$110=FALSE,LEFT($B107,3)<>\"NOX\"),CG56*INDEX('Damage costs'!$W$16:$W$43,MATCH($B107,'Damage costs'!$C$16:$C$43,0))/1000,CG56*INDEX('Damage costs'!$AA$16:$AA$43,MATCH($B107,'Damage costs'!$C$16:$C$43,0))/1000),\"\")","v":""},{"$f":"IFERROR(IF(OR($C$110=FALSE,LEFT($B107,3)<>\"NOX\"),CH56*INDEX('Damage costs'!$W$16:$W$43,MATCH($B107,'Damage costs'!$C$16:$C$43,0))/1000,CH56*INDEX('Damage costs'!$AA$16:$AA$43,MATCH($B107,'Damage costs'!$C$16:$C$43,0))/1000),\"\")","v":""},{"$f":"IFERROR(IF(OR($C$110=FALSE,LEFT($B107,3)<>\"NOX\"),CI56*INDEX('Damage costs'!$W$16:$W$43,MATCH($B107,'Damage costs'!$C$16:$C$43,0))/1000,CI56*INDEX('Damage costs'!$AA$16:$AA$43,MATCH($B107,'Damage costs'!$C$16:$C$43,0))/1000),\"\")","v":""},{"$f":"IFERROR(IF(OR($C$110=FALSE,LEFT($B107,3)<>\"NOX\"),CJ56*INDEX('Damage costs'!$W$16:$W$43,MATCH($B107,'Damage costs'!$C$16:$C$43,0))/1000,CJ56*INDEX('Damage costs'!$AA$16:$AA$43,MATCH($B107,'Damage costs'!$C$16:$C$43,0))/1000),\"\")","v":""},{"$f":"IFERROR(IF(OR($C$110=FALSE,LEFT($B107,3)<>\"NOX\"),CK56*INDEX('Damage costs'!$W$16:$W$43,MATCH($B107,'Damage costs'!$C$16:$C$43,0))/1000,CK56*INDEX('Damage costs'!$AA$16:$AA$43,MATCH($B107,'Damage costs'!$C$16:$C$43,0))/1000),\"\")","v":""},{"$f":"IFERROR(IF(OR($C$110=FALSE,LEFT($B107,3)<>\"NOX\"),CL56*INDEX('Damage costs'!$W$16:$W$43,MATCH($B107,'Damage costs'!$C$16:$C$43,0))/1000,CL56*INDEX('Damage costs'!$AA$16:$AA$43,MATCH($B107,'Damage costs'!$C$16:$C$43,0))/1000),\"\")","v":""},{"$f":"IFERROR(IF(OR($C$110=FALSE,LEFT($B107,3)<>\"NOX\"),CM56*INDEX('Damage costs'!$W$16:$W$43,MATCH($B107,'Damage costs'!$C$16:$C$43,0))/1000,CM56*INDEX('Damage costs'!$AA$16:$AA$43,MATCH($B107,'Damage costs'!$C$16:$C$43,0))/1000),\"\")","v":""},{"$f":"IFERROR(IF(OR($C$110=FALSE,LEFT($B107,3)<>\"NOX\"),CN56*INDEX('Damage costs'!$W$16:$W$43,MATCH($B107,'Damage costs'!$C$16:$C$43,0))/1000,CN56*INDEX('Damage costs'!$AA$16:$AA$43,MATCH($B107,'Damage costs'!$C$16:$C$43,0))/1000),\"\")","v":""},{"$f":"IFERROR(IF(OR($C$110=FALSE,LEFT($B107,3)<>\"NOX\"),CO56*INDEX('Damage costs'!$W$16:$W$43,MATCH($B107,'Damage costs'!$C$16:$C$43,0))/1000,CO56*INDEX('Damage costs'!$AA$16:$AA$43,MATCH($B107,'Damage costs'!$C$16:$C$43,0))/1000),\"\")","v":""},{"$f":"IFERROR(IF(OR($C$110=FALSE,LEFT($B107,3)<>\"NOX\"),CP56*INDEX('Damage costs'!$W$16:$W$43,MATCH($B107,'Damage costs'!$C$16:$C$43,0))/1000,CP56*INDEX('Damage costs'!$AA$16:$AA$43,MATCH($B107,'Damage costs'!$C$16:$C$43,0))/1000),\"\")","v":""},{"$f":"IFERROR(IF(OR($C$110=FALSE,LEFT($B107,3)<>\"NOX\"),CQ56*INDEX('Damage costs'!$W$16:$W$43,MATCH($B107,'Damage costs'!$C$16:$C$43,0))/1000,CQ56*INDEX('Damage costs'!$AA$16:$AA$43,MATCH($B107,'Damage costs'!$C$16:$C$43,0))/1000),\"\")","v":""},{"$f":"IFERROR(IF(OR($C$110=FALSE,LEFT($B107,3)<>\"NOX\"),CR56*INDEX('Damage costs'!$W$16:$W$43,MATCH($B107,'Damage costs'!$C$16:$C$43,0))/1000,CR56*INDEX('Damage costs'!$AA$16:$AA$43,MATCH($B107,'Damage costs'!$C$16:$C$43,0))/1000),\"\")","v":""},{"$f":"IFERROR(IF(OR($C$110=FALSE,LEFT($B107,3)<>\"NOX\"),CS56*INDEX('Damage costs'!$W$16:$W$43,MATCH($B107,'Damage costs'!$C$16:$C$43,0))/1000,CS56*INDEX('Damage costs'!$AA$16:$AA$43,MATCH($B107,'Damage costs'!$C$16:$C$43,0))/1000),\"\")","v":""},{"$f":"IFERROR(IF(OR($C$110=FALSE,LEFT($B107,3)<>\"NOX\"),CT56*INDEX('Damage costs'!$W$16:$W$43,MATCH($B107,'Damage costs'!$C$16:$C$43,0))/1000,CT56*INDEX('Damage costs'!$AA$16:$AA$43,MATCH($B107,'Damage costs'!$C$16:$C$43,0))/1000),\"\")","v":""},{"$f":"IFERROR(IF(OR($C$110=FALSE,LEFT($B107,3)<>\"NOX\"),CU56*INDEX('Damage costs'!$W$16:$W$43,MATCH($B107,'Damage costs'!$C$16:$C$43,0))/1000,CU56*INDEX('Damage costs'!$AA$16:$AA$43,MATCH($B107,'Damage costs'!$C$16:$C$43,0))/1000),\"\")","v":""},{"$f":"IFERROR(IF(OR($C$110=FALSE,LEFT($B107,3)<>\"NOX\"),CV56*INDEX('Damage costs'!$W$16:$W$43,MATCH($B107,'Damage costs'!$C$16:$C$43,0))/1000,CV56*INDEX('Damage costs'!$AA$16:$AA$43,MATCH($B107,'Damage costs'!$C$16:$C$43,0))/1000),\"\")","v":""},{"$f":"IFERROR(IF(OR($C$110=FALSE,LEFT($B107,3)<>\"NOX\"),CW56*INDEX('Damage costs'!$W$16:$W$43,MATCH($B107,'Damage costs'!$C$16:$C$43,0))/1000,CW56*INDEX('Damage costs'!$AA$16:$AA$43,MATCH($B107,'Damage costs'!$C$16:$C$43,0))/1000),\"\")","v":""},{"$f":"IFERROR(IF(OR($C$110=FALSE,LEFT($B107,3)<>\"NOX\"),CX56*INDEX('Damage costs'!$W$16:$W$43,MATCH($B107,'Damage costs'!$C$16:$C$43,0))/1000,CX56*INDEX('Damage costs'!$AA$16:$AA$43,MATCH($B107,'Damage costs'!$C$16:$C$43,0))/1000),\"\")","v":""},{"$f":"IFERROR(IF(OR($C$110=FALSE,LEFT($B107,3)<>\"NOX\"),CY56*INDEX('Damage costs'!$W$16:$W$43,MATCH($B107,'Damage costs'!$C$16:$C$43,0))/1000,CY56*INDEX('Damage costs'!$AA$16:$AA$43,MATCH($B107,'Damage costs'!$C$16:$C$43,0))/1000),\"\")","v":""}]
[null,0,"£000's",{"$f":"IFERROR(IF(OR($C$110=FALSE,LEFT($B108,3)<>\"NOX\"),D57*INDEX('Damage costs'!$W$16:$W$43,MATCH($B108,'Damage costs'!$C$16:$C$43,0))/1000,D57*INDEX('Damage costs'!$AA$16:$AA$43,MATCH($B108,'Damage costs'!$C$16:$C$43,0))/1000),\"\")","v":""},{"$f":"IFERROR(IF(OR($C$110=FALSE,LEFT($B108,3)<>\"NOX\"),E57*INDEX('Damage costs'!$W$16:$W$43,MATCH($B108,'Damage costs'!$C$16:$C$43,0))/1000,E57*INDEX('Damage costs'!$AA$16:$AA$43,MATCH($B108,'Damage costs'!$C$16:$C$43,0))/1000),\"\")","v":""},{"$f":"IFERROR(IF(OR($C$110=FALSE,LEFT($B108,3)<>\"NOX\"),F57*INDEX('Damage costs'!$W$16:$W$43,MATCH($B108,'Damage costs'!$C$16:$C$43,0))/1000,F57*INDEX('Damage costs'!$AA$16:$AA$43,MATCH($B108,'Damage costs'!$C$16:$C$43,0))/1000),\"\")","v":""},{"$f":"IFERROR(IF(OR($C$110=FALSE,LEFT($B108,3)<>\"NOX\"),G57*INDEX('Damage costs'!$W$16:$W$43,MATCH($B108,'Damage costs'!$C$16:$C$43,0))/1000,G57*INDEX('Damage costs'!$AA$16:$AA$43,MATCH($B108,'Damage costs'!$C$16:$C$43,0))/1000),\"\")","v":""},{"$f":"IFERROR(IF(OR($C$110=FALSE,LEFT($B108,3)<>\"NOX\"),H57*INDEX('Damage costs'!$W$16:$W$43,MATCH($B108,'Damage costs'!$C$16:$C$43,0))/1000,H57*INDEX('Damage costs'!$AA$16:$AA$43,MATCH($B108,'Damage costs'!$C$16:$C$43,0))/1000),\"\")","v":""},{"$f":"IFERROR(IF(OR($C$110=FALSE,LEFT($B108,3)<>\"NOX\"),I57*INDEX('Damage costs'!$W$16:$W$43,MATCH($B108,'Damage costs'!$C$16:$C$43,0))/1000,I57*INDEX('Damage costs'!$AA$16:$AA$43,MATCH($B108,'Damage costs'!$C$16:$C$43,0))/1000),\"\")","v":""},{"$f":"IFERROR(IF(OR($C$110=FALSE,LEFT($B108,3)<>\"NOX\"),J57*INDEX('Damage costs'!$W$16:$W$43,MATCH($B108,'Damage costs'!$C$16:$C$43,0))/1000,J57*INDEX('Damage costs'!$AA$16:$AA$43,MATCH($B108,'Damage costs'!$C$16:$C$43,0))/1000),\"\")","v":""},{"$f":"IFERROR(IF(OR($C$110=FALSE,LEFT($B108,3)<>\"NOX\"),K57*INDEX('Damage costs'!$W$16:$W$43,MATCH($B108,'Damage costs'!$C$16:$C$43,0))/1000,K57*INDEX('Damage costs'!$AA$16:$AA$43,MATCH($B108,'Damage costs'!$C$16:$C$43,0))/1000),\"\")","v":""},{"$f":"IFERROR(IF(OR($C$110=FALSE,LEFT($B108,3)<>\"NOX\"),L57*INDEX('Damage costs'!$W$16:$W$43,MATCH($B108,'Damage costs'!$C$16:$C$43,0))/1000,L57*INDEX('Damage costs'!$AA$16:$AA$43,MATCH($B108,'Damage costs'!$C$16:$C$43,0))/1000),\"\")","v":""},{"$f":"IFERROR(IF(OR($C$110=FALSE,LEFT($B108,3)<>\"NOX\"),M57*INDEX('Damage costs'!$W$16:$W$43,MATCH($B108,'Damage costs'!$C$16:$C$43,0))/1000,M57*INDEX('Damage costs'!$AA$16:$AA$43,MATCH($B108,'Damage costs'!$C$16:$C$43,0))/1000),\"\")","v":""},{"$f":"IFERROR(IF(OR($C$110=FALSE,LEFT($B108,3)<>\"NOX\"),N57*INDEX('Damage costs'!$W$16:$W$43,MATCH($B108,'Damage costs'!$C$16:$C$43,0))/1000,N57*INDEX('Damage costs'!$AA$16:$AA$43,MATCH($B108,'Damage costs'!$C$16:$C$43,0))/1000),\"\")","v":""},{"$f":"IFERROR(IF(OR($C$110=FALSE,LEFT($B108,3)<>\"NOX\"),O57*INDEX('Damage costs'!$W$16:$W$43,MATCH($B108,'Damage costs'!$C$16:$C$43,0))/1000,O57*INDEX('Damage costs'!$AA$16:$AA$43,MATCH($B108,'Damage costs'!$C$16:$C$43,0))/1000),\"\")","v":""},{"$f":"IFERROR(IF(OR($C$110=FALSE,LEFT($B108,3)<>\"NOX\"),P57*INDEX('Damage costs'!$W$16:$W$43,MATCH($B108,'Damage costs'!$C$16:$C$43,0))/1000,P57*INDEX('Damage costs'!$AA$16:$AA$43,MATCH($B108,'Damage costs'!$C$16:$C$43,0))/1000),\"\")","v":""},{"$f":"IFERROR(IF(OR($C$110=FALSE,LEFT($B108,3)<>\"NOX\"),Q57*INDEX('Damage costs'!$W$16:$W$43,MATCH($B108,'Damage costs'!$C$16:$C$43,0))/1000,Q57*INDEX('Damage costs'!$AA$16:$AA$43,MATCH($B108,'Damage costs'!$C$16:$C$43,0))/1000),\"\")","v":""},{"$f":"IFERROR(IF(OR($C$110=FALSE,LEFT($B108,3)<>\"NOX\"),R57*INDEX('Damage costs'!$W$16:$W$43,MATCH($B108,'Damage costs'!$C$16:$C$43,0))/1000,R57*INDEX('Damage costs'!$AA$16:$AA$43,MATCH($B108,'Damage costs'!$C$16:$C$43,0))/1000),\"\")","v":""},{"$f":"IFERROR(IF(OR($C$110=FALSE,LEFT($B108,3)<>\"NOX\"),S57*INDEX('Damage costs'!$W$16:$W$43,MATCH($B108,'Damage costs'!$C$16:$C$43,0))/1000,S57*INDEX('Damage costs'!$AA$16:$AA$43,MATCH($B108,'Damage costs'!$C$16:$C$43,0))/1000),\"\")","v":""},{"$f":"IFERROR(IF(OR($C$110=FALSE,LEFT($B108,3)<>\"NOX\"),T57*INDEX('Damage costs'!$W$16:$W$43,MATCH($B108,'Damage costs'!$C$16:$C$43,0))/1000,T57*INDEX('Damage costs'!$AA$16:$AA$43,MATCH($B108,'Damage costs'!$C$16:$C$43,0))/1000),\"\")","v":""},{"$f":"IFERROR(IF(OR($C$110=FALSE,LEFT($B108,3)<>\"NOX\"),U57*INDEX('Damage costs'!$W$16:$W$43,MATCH($B108,'Damage costs'!$C$16:$C$43,0))/1000,U57*INDEX('Damage costs'!$AA$16:$AA$43,MATCH($B108,'Damage costs'!$C$16:$C$43,0))/1000),\"\")","v":""},{"$f":"IFERROR(IF(OR($C$110=FALSE,LEFT($B108,3)<>\"NOX\"),V57*INDEX('Damage costs'!$W$16:$W$43,MATCH($B108,'Damage costs'!$C$16:$C$43,0))/1000,V57*INDEX('Damage costs'!$AA$16:$AA$43,MATCH($B108,'Damage costs'!$C$16:$C$43,0))/1000),\"\")","v":""},{"$f":"IFERROR(IF(OR($C$110=FALSE,LEFT($B108,3)<>\"NOX\"),W57*INDEX('Damage costs'!$W$16:$W$43,MATCH($B108,'Damage costs'!$C$16:$C$43,0))/1000,W57*INDEX('Damage costs'!$AA$16:$AA$43,MATCH($B108,'Damage costs'!$C$16:$C$43,0))/1000),\"\")","v":""},{"$f":"IFERROR(IF(OR($C$110=FALSE,LEFT($B108,3)<>\"NOX\"),X57*INDEX('Damage costs'!$W$16:$W$43,MATCH($B108,'Damage costs'!$C$16:$C$43,0))/1000,X57*INDEX('Damage costs'!$AA$16:$AA$43,MATCH($B108,'Damage costs'!$C$16:$C$43,0))/1000),\"\")","v":""},{"$f":"IFERROR(IF(OR($C$110=FALSE,LEFT($B108,3)<>\"NOX\"),Y57*INDEX('Damage costs'!$W$16:$W$43,MATCH($B108,'Damage costs'!$C$16:$C$43,0))/1000,Y57*INDEX('Damage costs'!$AA$16:$AA$43,MATCH($B108,'Damage costs'!$C$16:$C$43,0))/1000),\"\")","v":""},{"$f":"IFERROR(IF(OR($C$110=FALSE,LEFT($B108,3)<>\"NOX\"),Z57*INDEX('Damage costs'!$W$16:$W$43,MATCH($B108,'Damage costs'!$C$16:$C$43,0))/1000,Z57*INDEX('Damage costs'!$AA$16:$AA$43,MATCH($B108,'Damage costs'!$C$16:$C$43,0))/1000),\"\")","v":""},{"$f":"IFERROR(IF(OR($C$110=FALSE,LEFT($B108,3)<>\"NOX\"),AA57*INDEX('Damage costs'!$W$16:$W$43,MATCH($B108,'Damage costs'!$C$16:$C$43,0))/1000,AA57*INDEX('Damage costs'!$AA$16:$AA$43,MATCH($B108,'Damage costs'!$C$16:$C$43,0))/1000),\"\")","v":""},{"$f":"IFERROR(IF(OR($C$110=FALSE,LEFT($B108,3)<>\"NOX\"),AB57*INDEX('Damage costs'!$W$16:$W$43,MATCH($B108,'Damage costs'!$C$16:$C$43,0))/1000,AB57*INDEX('Damage costs'!$AA$16:$AA$43,MATCH($B108,'Damage costs'!$C$16:$C$43,0))/1000),\"\")","v":""},{"$f":"IFERROR(IF(OR($C$110=FALSE,LEFT($B108,3)<>\"NOX\"),AC57*INDEX('Damage costs'!$W$16:$W$43,MATCH($B108,'Damage costs'!$C$16:$C$43,0))/1000,AC57*INDEX('Damage costs'!$AA$16:$AA$43,MATCH($B108,'Damage costs'!$C$16:$C$43,0))/1000),\"\")","v":""},{"$f":"IFERROR(IF(OR($C$110=FALSE,LEFT($B108,3)<>\"NOX\"),AD57*INDEX('Damage costs'!$W$16:$W$43,MATCH($B108,'Damage costs'!$C$16:$C$43,0))/1000,AD57*INDEX('Damage costs'!$AA$16:$AA$43,MATCH($B108,'Damage costs'!$C$16:$C$43,0))/1000),\"\")","v":""},{"$f":"IFERROR(IF(OR($C$110=FALSE,LEFT($B108,3)<>\"NOX\"),AE57*INDEX('Damage costs'!$W$16:$W$43,MATCH($B108,'Damage costs'!$C$16:$C$43,0))/1000,AE57*INDEX('Damage costs'!$AA$16:$AA$43,MATCH($B108,'Damage costs'!$C$16:$C$43,0))/1000),\"\")","v":""},{"$f":"IFERROR(IF(OR($C$110=FALSE,LEFT($B108,3)<>\"NOX\"),AF57*INDEX('Damage costs'!$W$16:$W$43,MATCH($B108,'Damage costs'!$C$16:$C$43,0))/1000,AF57*INDEX('Damage costs'!$AA$16:$AA$43,MATCH($B108,'Damage costs'!$C$16:$C$43,0))/1000),\"\")","v":""},{"$f":"IFERROR(IF(OR($C$110=FALSE,LEFT($B108,3)<>\"NOX\"),AG57*INDEX('Damage costs'!$W$16:$W$43,MATCH($B108,'Damage costs'!$C$16:$C$43,0))/1000,AG57*INDEX('Damage costs'!$AA$16:$AA$43,MATCH($B108,'Damage costs'!$C$16:$C$43,0))/1000),\"\")","v":""},{"$f":"IFERROR(IF(OR($C$110=FALSE,LEFT($B108,3)<>\"NOX\"),AH57*INDEX('Damage costs'!$W$16:$W$43,MATCH($B108,'Damage costs'!$C$16:$C$43,0))/1000,AH57*INDEX('Damage costs'!$AA$16:$AA$43,MATCH($B108,'Damage costs'!$C$16:$C$43,0))/1000),\"\")","v":""},{"$f":"IFERROR(IF(OR($C$110=FALSE,LEFT($B108,3)<>\"NOX\"),AI57*INDEX('Damage costs'!$W$16:$W$43,MATCH($B108,'Damage costs'!$C$16:$C$43,0))/1000,AI57*INDEX('Damage costs'!$AA$16:$AA$43,MATCH($B108,'Damage costs'!$C$16:$C$43,0))/1000),\"\")","v":""},{"$f":"IFERROR(IF(OR($C$110=FALSE,LEFT($B108,3)<>\"NOX\"),AJ57*INDEX('Damage costs'!$W$16:$W$43,MATCH($B108,'Damage costs'!$C$16:$C$43,0))/1000,AJ57*INDEX('Damage costs'!$AA$16:$AA$43,MATCH($B108,'Damage costs'!$C$16:$C$43,0))/1000),\"\")","v":""},{"$f":"IFERROR(IF(OR($C$110=FALSE,LEFT($B108,3)<>\"NOX\"),AK57*INDEX('Damage costs'!$W$16:$W$43,MATCH($B108,'Damage costs'!$C$16:$C$43,0))/1000,AK57*INDEX('Damage costs'!$AA$16:$AA$43,MATCH($B108,'Damage costs'!$C$16:$C$43,0))/1000),\"\")","v":""},{"$f":"IFERROR(IF(OR($C$110=FALSE,LEFT($B108,3)<>\"NOX\"),AL57*INDEX('Damage costs'!$W$16:$W$43,MATCH($B108,'Damage costs'!$C$16:$C$43,0))/1000,AL57*INDEX('Damage costs'!$AA$16:$AA$43,MATCH($B108,'Damage costs'!$C$16:$C$43,0))/1000),\"\")","v":""},{"$f":"IFERROR(IF(OR($C$110=FALSE,LEFT($B108,3)<>\"NOX\"),AM57*INDEX('Damage costs'!$W$16:$W$43,MATCH($B108,'Damage costs'!$C$16:$C$43,0))/1000,AM57*INDEX('Damage costs'!$AA$16:$AA$43,MATCH($B108,'Damage costs'!$C$16:$C$43,0))/1000),\"\")","v":""},{"$f":"IFERROR(IF(OR($C$110=FALSE,LEFT($B108,3)<>\"NOX\"),AN57*INDEX('Damage costs'!$W$16:$W$43,MATCH($B108,'Damage costs'!$C$16:$C$43,0))/1000,AN57*INDEX('Damage costs'!$AA$16:$AA$43,MATCH($B108,'Damage costs'!$C$16:$C$43,0))/1000),\"\")","v":""},{"$f":"IFERROR(IF(OR($C$110=FALSE,LEFT($B108,3)<>\"NOX\"),AO57*INDEX('Damage costs'!$W$16:$W$43,MATCH($B108,'Damage costs'!$C$16:$C$43,0))/1000,AO57*INDEX('Damage costs'!$AA$16:$AA$43,MATCH($B108,'Damage costs'!$C$16:$C$43,0))/1000),\"\")","v":""},{"$f":"IFERROR(IF(OR($C$110=FALSE,LEFT($B108,3)<>\"NOX\"),AP57*INDEX('Damage costs'!$W$16:$W$43,MATCH($B108,'Damage costs'!$C$16:$C$43,0))/1000,AP57*INDEX('Damage costs'!$AA$16:$AA$43,MATCH($B108,'Damage costs'!$C$16:$C$43,0))/1000),\"\")","v":""},{"$f":"IFERROR(IF(OR($C$110=FALSE,LEFT($B108,3)<>\"NOX\"),AQ57*INDEX('Damage costs'!$W$16:$W$43,MATCH($B108,'Damage costs'!$C$16:$C$43,0))/1000,AQ57*INDEX('Damage costs'!$AA$16:$AA$43,MATCH($B108,'Damage costs'!$C$16:$C$43,0))/1000),\"\")","v":""},{"$f":"IFERROR(IF(OR($C$110=FALSE,LEFT($B108,3)<>\"NOX\"),AR57*INDEX('Damage costs'!$W$16:$W$43,MATCH($B108,'Damage costs'!$C$16:$C$43,0))/1000,AR57*INDEX('Damage costs'!$AA$16:$AA$43,MATCH($B108,'Damage costs'!$C$16:$C$43,0))/1000),\"\")","v":""},{"$f":"IFERROR(IF(OR($C$110=FALSE,LEFT($B108,3)<>\"NOX\"),AS57*INDEX('Damage costs'!$W$16:$W$43,MATCH($B108,'Damage costs'!$C$16:$C$43,0))/1000,AS57*INDEX('Damage costs'!$AA$16:$AA$43,MATCH($B108,'Damage costs'!$C$16:$C$43,0))/1000),\"\")","v":""},{"$f":"IFERROR(IF(OR($C$110=FALSE,LEFT($B108,3)<>\"NOX\"),AT57*INDEX('Damage costs'!$W$16:$W$43,MATCH($B108,'Damage costs'!$C$16:$C$43,0))/1000,AT57*INDEX('Damage costs'!$AA$16:$AA$43,MATCH($B108,'Damage costs'!$C$16:$C$43,0))/1000),\"\")","v":""},{"$f":"IFERROR(IF(OR($C$110=FALSE,LEFT($B108,3)<>\"NOX\"),AU57*INDEX('Damage costs'!$W$16:$W$43,MATCH($B108,'Damage costs'!$C$16:$C$43,0))/1000,AU57*INDEX('Damage costs'!$AA$16:$AA$43,MATCH($B108,'Damage costs'!$C$16:$C$43,0))/1000),\"\")","v":""},{"$f":"IFERROR(IF(OR($C$110=FALSE,LEFT($B108,3)<>\"NOX\"),AV57*INDEX('Damage costs'!$W$16:$W$43,MATCH($B108,'Damage costs'!$C$16:$C$43,0))/1000,AV57*INDEX('Damage costs'!$AA$16:$AA$43,MATCH($B108,'Damage costs'!$C$16:$C$43,0))/1000),\"\")","v":""},{"$f":"IFERROR(IF(OR($C$110=FALSE,LEFT($B108,3)<>\"NOX\"),AW57*INDEX('Damage costs'!$W$16:$W$43,MATCH($B108,'Damage costs'!$C$16:$C$43,0))/1000,AW57*INDEX('Damage costs'!$AA$16:$AA$43,MATCH($B108,'Damage costs'!$C$16:$C$43,0))/1000),\"\")","v":""},{"$f":"IFERROR(IF(OR($C$110=FALSE,LEFT($B108,3)<>\"NOX\"),AX57*INDEX('Damage costs'!$W$16:$W$43,MATCH($B108,'Damage costs'!$C$16:$C$43,0))/1000,AX57*INDEX('Damage costs'!$AA$16:$AA$43,MATCH($B108,'Damage costs'!$C$16:$C$43,0))/1000),\"\")","v":""},{"$f":"IFERROR(IF(OR($C$110=FALSE,LEFT($B108,3)<>\"NOX\"),AY57*INDEX('Damage costs'!$W$16:$W$43,MATCH($B108,'Damage costs'!$C$16:$C$43,0))/1000,AY57*INDEX('Damage costs'!$AA$16:$AA$43,MATCH($B108,'Damage costs'!$C$16:$C$43,0))/1000),\"\")","v":""},{"$f":"IFERROR(IF(OR($C$110=FALSE,LEFT($B108,3)<>\"NOX\"),AZ57*INDEX('Damage costs'!$W$16:$W$43,MATCH($B108,'Damage costs'!$C$16:$C$43,0))/1000,AZ57*INDEX('Damage costs'!$AA$16:$AA$43,MATCH($B108,'Damage costs'!$C$16:$C$43,0))/1000),\"\")","v":""},{"$f":"IFERROR(IF(OR($C$110=FALSE,LEFT($B108,3)<>\"NOX\"),BA57*INDEX('Damage costs'!$W$16:$W$43,MATCH($B108,'Damage costs'!$C$16:$C$43,0))/1000,BA57*INDEX('Damage costs'!$AA$16:$AA$43,MATCH($B108,'Damage costs'!$C$16:$C$43,0))/1000),\"\")","v":""},{"$f":"IFERROR(IF(OR($C$110=FALSE,LEFT($B108,3)<>\"NOX\"),BB57*INDEX('Damage costs'!$W$16:$W$43,MATCH($B108,'Damage costs'!$C$16:$C$43,0))/1000,BB57*INDEX('Damage costs'!$AA$16:$AA$43,MATCH($B108,'Damage costs'!$C$16:$C$43,0))/1000),\"\")","v":""},{"$f":"IFERROR(IF(OR($C$110=FALSE,LEFT($B108,3)<>\"NOX\"),BC57*INDEX('Damage costs'!$W$16:$W$43,MATCH($B108,'Damage costs'!$C$16:$C$43,0))/1000,BC57*INDEX('Damage costs'!$AA$16:$AA$43,MATCH($B108,'Damage costs'!$C$16:$C$43,0))/1000),\"\")","v":""},{"$f":"IFERROR(IF(OR($C$110=FALSE,LEFT($B108,3)<>\"NOX\"),BD57*INDEX('Damage costs'!$W$16:$W$43,MATCH($B108,'Damage costs'!$C$16:$C$43,0))/1000,BD57*INDEX('Damage costs'!$AA$16:$AA$43,MATCH($B108,'Damage costs'!$C$16:$C$43,0))/1000),\"\")","v":""},{"$f":"IFERROR(IF(OR($C$110=FALSE,LEFT($B108,3)<>\"NOX\"),BE57*INDEX('Damage costs'!$W$16:$W$43,MATCH($B108,'Damage costs'!$C$16:$C$43,0))/1000,BE57*INDEX('Damage costs'!$AA$16:$AA$43,MATCH($B108,'Damage costs'!$C$16:$C$43,0))/1000),\"\")","v":""},{"$f":"IFERROR(IF(OR($C$110=FALSE,LEFT($B108,3)<>\"NOX\"),BF57*INDEX('Damage costs'!$W$16:$W$43,MATCH($B108,'Damage costs'!$C$16:$C$43,0))/1000,BF57*INDEX('Damage costs'!$AA$16:$AA$43,MATCH($B108,'Damage costs'!$C$16:$C$43,0))/1000),\"\")","v":""},{"$f":"IFERROR(IF(OR($C$110=FALSE,LEFT($B108,3)<>\"NOX\"),BG57*INDEX('Damage costs'!$W$16:$W$43,MATCH($B108,'Damage costs'!$C$16:$C$43,0))/1000,BG57*INDEX('Damage costs'!$AA$16:$AA$43,MATCH($B108,'Damage costs'!$C$16:$C$43,0))/1000),\"\")","v":""},{"$f":"IFERROR(IF(OR($C$110=FALSE,LEFT($B108,3)<>\"NOX\"),BH57*INDEX('Damage costs'!$W$16:$W$43,MATCH($B108,'Damage costs'!$C$16:$C$43,0))/1000,BH57*INDEX('Damage costs'!$AA$16:$AA$43,MATCH($B108,'Damage costs'!$C$16:$C$43,0))/1000),\"\")","v":""},{"$f":"IFERROR(IF(OR($C$110=FALSE,LEFT($B108,3)<>\"NOX\"),BI57*INDEX('Damage costs'!$W$16:$W$43,MATCH($B108,'Damage costs'!$C$16:$C$43,0))/1000,BI57*INDEX('Damage costs'!$AA$16:$AA$43,MATCH($B108,'Damage costs'!$C$16:$C$43,0))/1000),\"\")","v":""},{"$f":"IFERROR(IF(OR($C$110=FALSE,LEFT($B108,3)<>\"NOX\"),BJ57*INDEX('Damage costs'!$W$16:$W$43,MATCH($B108,'Damage costs'!$C$16:$C$43,0))/1000,BJ57*INDEX('Damage costs'!$AA$16:$AA$43,MATCH($B108,'Damage costs'!$C$16:$C$43,0))/1000),\"\")","v":""},{"$f":"IFERROR(IF(OR($C$110=FALSE,LEFT($B108,3)<>\"NOX\"),BK57*INDEX('Damage costs'!$W$16:$W$43,MATCH($B108,'Damage costs'!$C$16:$C$43,0))/1000,BK57*INDEX('Damage costs'!$AA$16:$AA$43,MATCH($B108,'Damage costs'!$C$16:$C$43,0))/1000),\"\")","v":""},{"$f":"IFERROR(IF(OR($C$110=FALSE,LEFT($B108,3)<>\"NOX\"),BL57*INDEX('Damage costs'!$W$16:$W$43,MATCH($B108,'Damage costs'!$C$16:$C$43,0))/1000,BL57*INDEX('Damage costs'!$AA$16:$AA$43,MATCH($B108,'Damage costs'!$C$16:$C$43,0))/1000),\"\")","v":""},{"$f":"IFERROR(IF(OR($C$110=FALSE,LEFT($B108,3)<>\"NOX\"),BM57*INDEX('Damage costs'!$W$16:$W$43,MATCH($B108,'Damage costs'!$C$16:$C$43,0))/1000,BM57*INDEX('Damage costs'!$AA$16:$AA$43,MATCH($B108,'Damage costs'!$C$16:$C$43,0))/1000),\"\")","v":""},{"$f":"IFERROR(IF(OR($C$110=FALSE,LEFT($B108,3)<>\"NOX\"),BN57*INDEX('Damage costs'!$W$16:$W$43,MATCH($B108,'Damage costs'!$C$16:$C$43,0))/1000,BN57*INDEX('Damage costs'!$AA$16:$AA$43,MATCH($B108,'Damage costs'!$C$16:$C$43,0))/1000),\"\")","v":""},{"$f":"IFERROR(IF(OR($C$110=FALSE,LEFT($B108,3)<>\"NOX\"),BO57*INDEX('Damage costs'!$W$16:$W$43,MATCH($B108,'Damage costs'!$C$16:$C$43,0))/1000,BO57*INDEX('Damage costs'!$AA$16:$AA$43,MATCH($B108,'Damage costs'!$C$16:$C$43,0))/1000),\"\")","v":""},{"$f":"IFERROR(IF(OR($C$110=FALSE,LEFT($B108,3)<>\"NOX\"),BP57*INDEX('Damage costs'!$W$16:$W$43,MATCH($B108,'Damage costs'!$C$16:$C$43,0))/1000,BP57*INDEX('Damage costs'!$AA$16:$AA$43,MATCH($B108,'Damage costs'!$C$16:$C$43,0))/1000),\"\")","v":""},{"$f":"IFERROR(IF(OR($C$110=FALSE,LEFT($B108,3)<>\"NOX\"),BQ57*INDEX('Damage costs'!$W$16:$W$43,MATCH($B108,'Damage costs'!$C$16:$C$43,0))/1000,BQ57*INDEX('Damage costs'!$AA$16:$AA$43,MATCH($B108,'Damage costs'!$C$16:$C$43,0))/1000),\"\")","v":""},{"$f":"IFERROR(IF(OR($C$110=FALSE,LEFT($B108,3)<>\"NOX\"),BR57*INDEX('Damage costs'!$W$16:$W$43,MATCH($B108,'Damage costs'!$C$16:$C$43,0))/1000,BR57*INDEX('Damage costs'!$AA$16:$AA$43,MATCH($B108,'Damage costs'!$C$16:$C$43,0))/1000),\"\")","v":""},{"$f":"IFERROR(IF(OR($C$110=FALSE,LEFT($B108,3)<>\"NOX\"),BS57*INDEX('Damage costs'!$W$16:$W$43,MATCH($B108,'Damage costs'!$C$16:$C$43,0))/1000,BS57*INDEX('Damage costs'!$AA$16:$AA$43,MATCH($B108,'Damage costs'!$C$16:$C$43,0))/1000),\"\")","v":""},{"$f":"IFERROR(IF(OR($C$110=FALSE,LEFT($B108,3)<>\"NOX\"),BT57*INDEX('Damage costs'!$W$16:$W$43,MATCH($B108,'Damage costs'!$C$16:$C$43,0))/1000,BT57*INDEX('Damage costs'!$AA$16:$AA$43,MATCH($B108,'Damage costs'!$C$16:$C$43,0))/1000),\"\")","v":""},{"$f":"IFERROR(IF(OR($C$110=FALSE,LEFT($B108,3)<>\"NOX\"),BU57*INDEX('Damage costs'!$W$16:$W$43,MATCH($B108,'Damage costs'!$C$16:$C$43,0))/1000,BU57*INDEX('Damage costs'!$AA$16:$AA$43,MATCH($B108,'Damage costs'!$C$16:$C$43,0))/1000),\"\")","v":""},{"$f":"IFERROR(IF(OR($C$110=FALSE,LEFT($B108,3)<>\"NOX\"),BV57*INDEX('Damage costs'!$W$16:$W$43,MATCH($B108,'Damage costs'!$C$16:$C$43,0))/1000,BV57*INDEX('Damage costs'!$AA$16:$AA$43,MATCH($B108,'Damage costs'!$C$16:$C$43,0))/1000),\"\")","v":""},{"$f":"IFERROR(IF(OR($C$110=FALSE,LEFT($B108,3)<>\"NOX\"),BW57*INDEX('Damage costs'!$W$16:$W$43,MATCH($B108,'Damage costs'!$C$16:$C$43,0))/1000,BW57*INDEX('Damage costs'!$AA$16:$AA$43,MATCH($B108,'Damage costs'!$C$16:$C$43,0))/1000),\"\")","v":""},{"$f":"IFERROR(IF(OR($C$110=FALSE,LEFT($B108,3)<>\"NOX\"),BX57*INDEX('Damage costs'!$W$16:$W$43,MATCH($B108,'Damage costs'!$C$16:$C$43,0))/1000,BX57*INDEX('Damage costs'!$AA$16:$AA$43,MATCH($B108,'Damage costs'!$C$16:$C$43,0))/1000),\"\")","v":""},{"$f":"IFERROR(IF(OR($C$110=FALSE,LEFT($B108,3)<>\"NOX\"),BY57*INDEX('Damage costs'!$W$16:$W$43,MATCH($B108,'Damage costs'!$C$16:$C$43,0))/1000,BY57*INDEX('Damage costs'!$AA$16:$AA$43,MATCH($B108,'Damage costs'!$C$16:$C$43,0))/1000),\"\")","v":""},{"$f":"IFERROR(IF(OR($C$110=FALSE,LEFT($B108,3)<>\"NOX\"),BZ57*INDEX('Damage costs'!$W$16:$W$43,MATCH($B108,'Damage costs'!$C$16:$C$43,0))/1000,BZ57*INDEX('Damage costs'!$AA$16:$AA$43,MATCH($B108,'Damage costs'!$C$16:$C$43,0))/1000),\"\")","v":""},{"$f":"IFERROR(IF(OR($C$110=FALSE,LEFT($B108,3)<>\"NOX\"),CA57*INDEX('Damage costs'!$W$16:$W$43,MATCH($B108,'Damage costs'!$C$16:$C$43,0))/1000,CA57*INDEX('Damage costs'!$AA$16:$AA$43,MATCH($B108,'Damage costs'!$C$16:$C$43,0))/1000),\"\")","v":""},{"$f":"IFERROR(IF(OR($C$110=FALSE,LEFT($B108,3)<>\"NOX\"),CB57*INDEX('Damage costs'!$W$16:$W$43,MATCH($B108,'Damage costs'!$C$16:$C$43,0))/1000,CB57*INDEX('Damage costs'!$AA$16:$AA$43,MATCH($B108,'Damage costs'!$C$16:$C$43,0))/1000),\"\")","v":""},{"$f":"IFERROR(IF(OR($C$110=FALSE,LEFT($B108,3)<>\"NOX\"),CC57*INDEX('Damage costs'!$W$16:$W$43,MATCH($B108,'Damage costs'!$C$16:$C$43,0))/1000,CC57*INDEX('Damage costs'!$AA$16:$AA$43,MATCH($B108,'Damage costs'!$C$16:$C$43,0))/1000),\"\")","v":""},{"$f":"IFERROR(IF(OR($C$110=FALSE,LEFT($B108,3)<>\"NOX\"),CD57*INDEX('Damage costs'!$W$16:$W$43,MATCH($B108,'Damage costs'!$C$16:$C$43,0))/1000,CD57*INDEX('Damage costs'!$AA$16:$AA$43,MATCH($B108,'Damage costs'!$C$16:$C$43,0))/1000),\"\")","v":""},{"$f":"IFERROR(IF(OR($C$110=FALSE,LEFT($B108,3)<>\"NOX\"),CE57*INDEX('Damage costs'!$W$16:$W$43,MATCH($B108,'Damage costs'!$C$16:$C$43,0))/1000,CE57*INDEX('Damage costs'!$AA$16:$AA$43,MATCH($B108,'Damage costs'!$C$16:$C$43,0))/1000),\"\")","v":""},{"$f":"IFERROR(IF(OR($C$110=FALSE,LEFT($B108,3)<>\"NOX\"),CF57*INDEX('Damage costs'!$W$16:$W$43,MATCH($B108,'Damage costs'!$C$16:$C$43,0))/1000,CF57*INDEX('Damage costs'!$AA$16:$AA$43,MATCH($B108,'Damage costs'!$C$16:$C$43,0))/1000),\"\")","v":""},{"$f":"IFERROR(IF(OR($C$110=FALSE,LEFT($B108,3)<>\"NOX\"),CG57*INDEX('Damage costs'!$W$16:$W$43,MATCH($B108,'Damage costs'!$C$16:$C$43,0))/1000,CG57*INDEX('Damage costs'!$AA$16:$AA$43,MATCH($B108,'Damage costs'!$C$16:$C$43,0))/1000),\"\")","v":""},{"$f":"IFERROR(IF(OR($C$110=FALSE,LEFT($B108,3)<>\"NOX\"),CH57*INDEX('Damage costs'!$W$16:$W$43,MATCH($B108,'Damage costs'!$C$16:$C$43,0))/1000,CH57*INDEX('Damage costs'!$AA$16:$AA$43,MATCH($B108,'Damage costs'!$C$16:$C$43,0))/1000),\"\")","v":""},{"$f":"IFERROR(IF(OR($C$110=FALSE,LEFT($B108,3)<>\"NOX\"),CI57*INDEX('Damage costs'!$W$16:$W$43,MATCH($B108,'Damage costs'!$C$16:$C$43,0))/1000,CI57*INDEX('Damage costs'!$AA$16:$AA$43,MATCH($B108,'Damage costs'!$C$16:$C$43,0))/1000),\"\")","v":""},{"$f":"IFERROR(IF(OR($C$110=FALSE,LEFT($B108,3)<>\"NOX\"),CJ57*INDEX('Damage costs'!$W$16:$W$43,MATCH($B108,'Damage costs'!$C$16:$C$43,0))/1000,CJ57*INDEX('Damage costs'!$AA$16:$AA$43,MATCH($B108,'Damage costs'!$C$16:$C$43,0))/1000),\"\")","v":""},{"$f":"IFERROR(IF(OR($C$110=FALSE,LEFT($B108,3)<>\"NOX\"),CK57*INDEX('Damage costs'!$W$16:$W$43,MATCH($B108,'Damage costs'!$C$16:$C$43,0))/1000,CK57*INDEX('Damage costs'!$AA$16:$AA$43,MATCH($B108,'Damage costs'!$C$16:$C$43,0))/1000),\"\")","v":""},{"$f":"IFERROR(IF(OR($C$110=FALSE,LEFT($B108,3)<>\"NOX\"),CL57*INDEX('Damage costs'!$W$16:$W$43,MATCH($B108,'Damage costs'!$C$16:$C$43,0))/1000,CL57*INDEX('Damage costs'!$AA$16:$AA$43,MATCH($B108,'Damage costs'!$C$16:$C$43,0))/1000),\"\")","v":""},{"$f":"IFERROR(IF(OR($C$110=FALSE,LEFT($B108,3)<>\"NOX\"),CM57*INDEX('Damage costs'!$W$16:$W$43,MATCH($B108,'Damage costs'!$C$16:$C$43,0))/1000,CM57*INDEX('Damage costs'!$AA$16:$AA$43,MATCH($B108,'Damage costs'!$C$16:$C$43,0))/1000),\"\")","v":""},{"$f":"IFERROR(IF(OR($C$110=FALSE,LEFT($B108,3)<>\"NOX\"),CN57*INDEX('Damage costs'!$W$16:$W$43,MATCH($B108,'Damage costs'!$C$16:$C$43,0))/1000,CN57*INDEX('Damage costs'!$AA$16:$AA$43,MATCH($B108,'Damage costs'!$C$16:$C$43,0))/1000),\"\")","v":""},{"$f":"IFERROR(IF(OR($C$110=FALSE,LEFT($B108,3)<>\"NOX\"),CO57*INDEX('Damage costs'!$W$16:$W$43,MATCH($B108,'Damage costs'!$C$16:$C$43,0))/1000,CO57*INDEX('Damage costs'!$AA$16:$AA$43,MATCH($B108,'Damage costs'!$C$16:$C$43,0))/1000),\"\")","v":""},{"$f":"IFERROR(IF(OR($C$110=FALSE,LEFT($B108,3)<>\"NOX\"),CP57*INDEX('Damage costs'!$W$16:$W$43,MATCH($B108,'Damage costs'!$C$16:$C$43,0))/1000,CP57*INDEX('Damage costs'!$AA$16:$AA$43,MATCH($B108,'Damage costs'!$C$16:$C$43,0))/1000),\"\")","v":""},{"$f":"IFERROR(IF(OR($C$110=FALSE,LEFT($B108,3)<>\"NOX\"),CQ57*INDEX('Damage costs'!$W$16:$W$43,MATCH($B108,'Damage costs'!$C$16:$C$43,0))/1000,CQ57*INDEX('Damage costs'!$AA$16:$AA$43,MATCH($B108,'Damage costs'!$C$16:$C$43,0))/1000),\"\")","v":""},{"$f":"IFERROR(IF(OR($C$110=FALSE,LEFT($B108,3)<>\"NOX\"),CR57*INDEX('Damage costs'!$W$16:$W$43,MATCH($B108,'Damage costs'!$C$16:$C$43,0))/1000,CR57*INDEX('Damage costs'!$AA$16:$AA$43,MATCH($B108,'Damage costs'!$C$16:$C$43,0))/1000),\"\")","v":""},{"$f":"IFERROR(IF(OR($C$110=FALSE,LEFT($B108,3)<>\"NOX\"),CS57*INDEX('Damage costs'!$W$16:$W$43,MATCH($B108,'Damage costs'!$C$16:$C$43,0))/1000,CS57*INDEX('Damage costs'!$AA$16:$AA$43,MATCH($B108,'Damage costs'!$C$16:$C$43,0))/1000),\"\")","v":""},{"$f":"IFERROR(IF(OR($C$110=FALSE,LEFT($B108,3)<>\"NOX\"),CT57*INDEX('Damage costs'!$W$16:$W$43,MATCH($B108,'Damage costs'!$C$16:$C$43,0))/1000,CT57*INDEX('Damage costs'!$AA$16:$AA$43,MATCH($B108,'Damage costs'!$C$16:$C$43,0))/1000),\"\")","v":""},{"$f":"IFERROR(IF(OR($C$110=FALSE,LEFT($B108,3)<>\"NOX\"),CU57*INDEX('Damage costs'!$W$16:$W$43,MATCH($B108,'Damage costs'!$C$16:$C$43,0))/1000,CU57*INDEX('Damage costs'!$AA$16:$AA$43,MATCH($B108,'Damage costs'!$C$16:$C$43,0))/1000),\"\")","v":""},{"$f":"IFERROR(IF(OR($C$110=FALSE,LEFT($B108,3)<>\"NOX\"),CV57*INDEX('Damage costs'!$W$16:$W$43,MATCH($B108,'Damage costs'!$C$16:$C$43,0))/1000,CV57*INDEX('Damage costs'!$AA$16:$AA$43,MATCH($B108,'Damage costs'!$C$16:$C$43,0))/1000),\"\")","v":""},{"$f":"IFERROR(IF(OR($C$110=FALSE,LEFT($B108,3)<>\"NOX\"),CW57*INDEX('Damage costs'!$W$16:$W$43,MATCH($B108,'Damage costs'!$C$16:$C$43,0))/1000,CW57*INDEX('Damage costs'!$AA$16:$AA$43,MATCH($B108,'Damage costs'!$C$16:$C$43,0))/1000),\"\")","v":""},{"$f":"IFERROR(IF(OR($C$110=FALSE,LEFT($B108,3)<>\"NOX\"),CX57*INDEX('Damage costs'!$W$16:$W$43,MATCH($B108,'Damage costs'!$C$16:$C$43,0))/1000,CX57*INDEX('Damage costs'!$AA$16:$AA$43,MATCH($B108,'Damage costs'!$C$16:$C$43,0))/1000),\"\")","v":""},{"$f":"IFERROR(IF(OR($C$110=FALSE,LEFT($B108,3)<>\"NOX\"),CY57*INDEX('Damage costs'!$W$16:$W$43,MATCH($B108,'Damage costs'!$C$16:$C$43,0))/1000,CY57*INDEX('Damage costs'!$AA$16:$AA$43,MATCH($B108,'Damage costs'!$C$16:$C$43,0))/1000),\"\")","v":""}]
[null,0,"£000's",{"$f":"IFERROR(IF(OR($C$110=FALSE,LEFT($B109,3)<>\"NOX\"),D58*INDEX('Damage costs'!$W$16:$W$43,MATCH($B109,'Damage costs'!$C$16:$C$43,0))/1000,D58*INDEX('Damage costs'!$AA$16:$AA$43,MATCH($B109,'Damage costs'!$C$16:$C$43,0))/1000),\"\")","v":""},{"$f":"IFERROR(IF(OR($C$110=FALSE,LEFT($B109,3)<>\"NOX\"),E58*INDEX('Damage costs'!$W$16:$W$43,MATCH($B109,'Damage costs'!$C$16:$C$43,0))/1000,E58*INDEX('Damage costs'!$AA$16:$AA$43,MATCH($B109,'Damage costs'!$C$16:$C$43,0))/1000),\"\")","v":""},{"$f":"IFERROR(IF(OR($C$110=FALSE,LEFT($B109,3)<>\"NOX\"),F58*INDEX('Damage costs'!$W$16:$W$43,MATCH($B109,'Damage costs'!$C$16:$C$43,0))/1000,F58*INDEX('Damage costs'!$AA$16:$AA$43,MATCH($B109,'Damage costs'!$C$16:$C$43,0))/1000),\"\")","v":""},{"$f":"IFERROR(IF(OR($C$110=FALSE,LEFT($B109,3)<>\"NOX\"),G58*INDEX('Damage costs'!$W$16:$W$43,MATCH($B109,'Damage costs'!$C$16:$C$43,0))/1000,G58*INDEX('Damage costs'!$AA$16:$AA$43,MATCH($B109,'Damage costs'!$C$16:$C$43,0))/1000),\"\")","v":""},{"$f":"IFERROR(IF(OR($C$110=FALSE,LEFT($B109,3)<>\"NOX\"),H58*INDEX('Damage costs'!$W$16:$W$43,MATCH($B109,'Damage costs'!$C$16:$C$43,0))/1000,H58*INDEX('Damage costs'!$AA$16:$AA$43,MATCH($B109,'Damage costs'!$C$16:$C$43,0))/1000),\"\")","v":""},{"$f":"IFERROR(IF(OR($C$110=FALSE,LEFT($B109,3)<>\"NOX\"),I58*INDEX('Damage costs'!$W$16:$W$43,MATCH($B109,'Damage costs'!$C$16:$C$43,0))/1000,I58*INDEX('Damage costs'!$AA$16:$AA$43,MATCH($B109,'Damage costs'!$C$16:$C$43,0))/1000),\"\")","v":""},{"$f":"IFERROR(IF(OR($C$110=FALSE,LEFT($B109,3)<>\"NOX\"),J58*INDEX('Damage costs'!$W$16:$W$43,MATCH($B109,'Damage costs'!$C$16:$C$43,0))/1000,J58*INDEX('Damage costs'!$AA$16:$AA$43,MATCH($B109,'Damage costs'!$C$16:$C$43,0))/1000),\"\")","v":""},{"$f":"IFERROR(IF(OR($C$110=FALSE,LEFT($B109,3)<>\"NOX\"),K58*INDEX('Damage costs'!$W$16:$W$43,MATCH($B109,'Damage costs'!$C$16:$C$43,0))/1000,K58*INDEX('Damage costs'!$AA$16:$AA$43,MATCH($B109,'Damage costs'!$C$16:$C$43,0))/1000),\"\")","v":""},{"$f":"IFERROR(IF(OR($C$110=FALSE,LEFT($B109,3)<>\"NOX\"),L58*INDEX('Damage costs'!$W$16:$W$43,MATCH($B109,'Damage costs'!$C$16:$C$43,0))/1000,L58*INDEX('Damage costs'!$AA$16:$AA$43,MATCH($B109,'Damage costs'!$C$16:$C$43,0))/1000),\"\")","v":""},{"$f":"IFERROR(IF(OR($C$110=FALSE,LEFT($B109,3)<>\"NOX\"),M58*INDEX('Damage costs'!$W$16:$W$43,MATCH($B109,'Damage costs'!$C$16:$C$43,0))/1000,M58*INDEX('Damage costs'!$AA$16:$AA$43,MATCH($B109,'Damage costs'!$C$16:$C$43,0))/1000),\"\")","v":""},{"$f":"IFERROR(IF(OR($C$110=FALSE,LEFT($B109,3)<>\"NOX\"),N58*INDEX('Damage costs'!$W$16:$W$43,MATCH($B109,'Damage costs'!$C$16:$C$43,0))/1000,N58*INDEX('Damage costs'!$AA$16:$AA$43,MATCH($B109,'Damage costs'!$C$16:$C$43,0))/1000),\"\")","v":""},{"$f":"IFERROR(IF(OR($C$110=FALSE,LEFT($B109,3)<>\"NOX\"),O58*INDEX('Damage costs'!$W$16:$W$43,MATCH($B109,'Damage costs'!$C$16:$C$43,0))/1000,O58*INDEX('Damage costs'!$AA$16:$AA$43,MATCH($B109,'Damage costs'!$C$16:$C$43,0))/1000),\"\")","v":""},{"$f":"IFERROR(IF(OR($C$110=FALSE,LEFT($B109,3)<>\"NOX\"),P58*INDEX('Damage costs'!$W$16:$W$43,MATCH($B109,'Damage costs'!$C$16:$C$43,0))/1000,P58*INDEX('Damage costs'!$AA$16:$AA$43,MATCH($B109,'Damage costs'!$C$16:$C$43,0))/1000),\"\")","v":""},{"$f":"IFERROR(IF(OR($C$110=FALSE,LEFT($B109,3)<>\"NOX\"),Q58*INDEX('Damage costs'!$W$16:$W$43,MATCH($B109,'Damage costs'!$C$16:$C$43,0))/1000,Q58*INDEX('Damage costs'!$AA$16:$AA$43,MATCH($B109,'Damage costs'!$C$16:$C$43,0))/1000),\"\")","v":""},{"$f":"IFERROR(IF(OR($C$110=FALSE,LEFT($B109,3)<>\"NOX\"),R58*INDEX('Damage costs'!$W$16:$W$43,MATCH($B109,'Damage costs'!$C$16:$C$43,0))/1000,R58*INDEX('Damage costs'!$AA$16:$AA$43,MATCH($B109,'Damage costs'!$C$16:$C$43,0))/1000),\"\")","v":""},{"$f":"IFERROR(IF(OR($C$110=FALSE,LEFT($B109,3)<>\"NOX\"),S58*INDEX('Damage costs'!$W$16:$W$43,MATCH($B109,'Damage costs'!$C$16:$C$43,0))/1000,S58*INDEX('Damage costs'!$AA$16:$AA$43,MATCH($B109,'Damage costs'!$C$16:$C$43,0))/1000),\"\")","v":""},{"$f":"IFERROR(IF(OR($C$110=FALSE,LEFT($B109,3)<>\"NOX\"),T58*INDEX('Damage costs'!$W$16:$W$43,MATCH($B109,'Damage costs'!$C$16:$C$43,0))/1000,T58*INDEX('Damage costs'!$AA$16:$AA$43,MATCH($B109,'Damage costs'!$C$16:$C$43,0))/1000),\"\")","v":""},{"$f":"IFERROR(IF(OR($C$110=FALSE,LEFT($B109,3)<>\"NOX\"),U58*INDEX('Damage costs'!$W$16:$W$43,MATCH($B109,'Damage costs'!$C$16:$C$43,0))/1000,U58*INDEX('Damage costs'!$AA$16:$AA$43,MATCH($B109,'Damage costs'!$C$16:$C$43,0))/1000),\"\")","v":""},{"$f":"IFERROR(IF(OR($C$110=FALSE,LEFT($B109,3)<>\"NOX\"),V58*INDEX('Damage costs'!$W$16:$W$43,MATCH($B109,'Damage costs'!$C$16:$C$43,0))/1000,V58*INDEX('Damage costs'!$AA$16:$AA$43,MATCH($B109,'Damage costs'!$C$16:$C$43,0))/1000),\"\")","v":""},{"$f":"IFERROR(IF(OR($C$110=FALSE,LEFT($B109,3)<>\"NOX\"),W58*INDEX('Damage costs'!$W$16:$W$43,MATCH($B109,'Damage costs'!$C$16:$C$43,0))/1000,W58*INDEX('Damage costs'!$AA$16:$AA$43,MATCH($B109,'Damage costs'!$C$16:$C$43,0))/1000),\"\")","v":""},{"$f":"IFERROR(IF(OR($C$110=FALSE,LEFT($B109,3)<>\"NOX\"),X58*INDEX('Damage costs'!$W$16:$W$43,MATCH($B109,'Damage costs'!$C$16:$C$43,0))/1000,X58*INDEX('Damage costs'!$AA$16:$AA$43,MATCH($B109,'Damage costs'!$C$16:$C$43,0))/1000),\"\")","v":""},{"$f":"IFERROR(IF(OR($C$110=FALSE,LEFT($B109,3)<>\"NOX\"),Y58*INDEX('Damage costs'!$W$16:$W$43,MATCH($B109,'Damage costs'!$C$16:$C$43,0))/1000,Y58*INDEX('Damage costs'!$AA$16:$AA$43,MATCH($B109,'Damage costs'!$C$16:$C$43,0))/1000),\"\")","v":""},{"$f":"IFERROR(IF(OR($C$110=FALSE,LEFT($B109,3)<>\"NOX\"),Z58*INDEX('Damage costs'!$W$16:$W$43,MATCH($B109,'Damage costs'!$C$16:$C$43,0))/1000,Z58*INDEX('Damage costs'!$AA$16:$AA$43,MATCH($B109,'Damage costs'!$C$16:$C$43,0))/1000),\"\")","v":""},{"$f":"IFERROR(IF(OR($C$110=FALSE,LEFT($B109,3)<>\"NOX\"),AA58*INDEX('Damage costs'!$W$16:$W$43,MATCH($B109,'Damage costs'!$C$16:$C$43,0))/1000,AA58*INDEX('Damage costs'!$AA$16:$AA$43,MATCH($B109,'Damage costs'!$C$16:$C$43,0))/1000),\"\")","v":""},{"$f":"IFERROR(IF(OR($C$110=FALSE,LEFT($B109,3)<>\"NOX\"),AB58*INDEX('Damage costs'!$W$16:$W$43,MATCH($B109,'Damage costs'!$C$16:$C$43,0))/1000,AB58*INDEX('Damage costs'!$AA$16:$AA$43,MATCH($B109,'Damage costs'!$C$16:$C$43,0))/1000),\"\")","v":""},{"$f":"IFERROR(IF(OR($C$110=FALSE,LEFT($B109,3)<>\"NOX\"),AC58*INDEX('Damage costs'!$W$16:$W$43,MATCH($B109,'Damage costs'!$C$16:$C$43,0))/1000,AC58*INDEX('Damage costs'!$AA$16:$AA$43,MATCH($B109,'Damage costs'!$C$16:$C$43,0))/1000),\"\")","v":""},{"$f":"IFERROR(IF(OR($C$110=FALSE,LEFT($B109,3)<>\"NOX\"),AD58*INDEX('Damage costs'!$W$16:$W$43,MATCH($B109,'Damage costs'!$C$16:$C$43,0))/1000,AD58*INDEX('Damage costs'!$AA$16:$AA$43,MATCH($B109,'Damage costs'!$C$16:$C$43,0))/1000),\"\")","v":""},{"$f":"IFERROR(IF(OR($C$110=FALSE,LEFT($B109,3)<>\"NOX\"),AE58*INDEX('Damage costs'!$W$16:$W$43,MATCH($B109,'Damage costs'!$C$16:$C$43,0))/1000,AE58*INDEX('Damage costs'!$AA$16:$AA$43,MATCH($B109,'Damage costs'!$C$16:$C$43,0))/1000),\"\")","v":""},{"$f":"IFERROR(IF(OR($C$110=FALSE,LEFT($B109,3)<>\"NOX\"),AF58*INDEX('Damage costs'!$W$16:$W$43,MATCH($B109,'Damage costs'!$C$16:$C$43,0))/1000,AF58*INDEX('Damage costs'!$AA$16:$AA$43,MATCH($B109,'Damage costs'!$C$16:$C$43,0))/1000),\"\")","v":""},{"$f":"IFERROR(IF(OR($C$110=FALSE,LEFT($B109,3)<>\"NOX\"),AG58*INDEX('Damage costs'!$W$16:$W$43,MATCH($B109,'Damage costs'!$C$16:$C$43,0))/1000,AG58*INDEX('Damage costs'!$AA$16:$AA$43,MATCH($B109,'Damage costs'!$C$16:$C$43,0))/1000),\"\")","v":""},{"$f":"IFERROR(IF(OR($C$110=FALSE,LEFT($B109,3)<>\"NOX\"),AH58*INDEX('Damage costs'!$W$16:$W$43,MATCH($B109,'Damage costs'!$C$16:$C$43,0))/1000,AH58*INDEX('Damage costs'!$AA$16:$AA$43,MATCH($B109,'Damage costs'!$C$16:$C$43,0))/1000),\"\")","v":""},{"$f":"IFERROR(IF(OR($C$110=FALSE,LEFT($B109,3)<>\"NOX\"),AI58*INDEX('Damage costs'!$W$16:$W$43,MATCH($B109,'Damage costs'!$C$16:$C$43,0))/1000,AI58*INDEX('Damage costs'!$AA$16:$AA$43,MATCH($B109,'Damage costs'!$C$16:$C$43,0))/1000),\"\")","v":""},{"$f":"IFERROR(IF(OR($C$110=FALSE,LEFT($B109,3)<>\"NOX\"),AJ58*INDEX('Damage costs'!$W$16:$W$43,MATCH($B109,'Damage costs'!$C$16:$C$43,0))/1000,AJ58*INDEX('Damage costs'!$AA$16:$AA$43,MATCH($B109,'Damage costs'!$C$16:$C$43,0))/1000),\"\")","v":""},{"$f":"IFERROR(IF(OR($C$110=FALSE,LEFT($B109,3)<>\"NOX\"),AK58*INDEX('Damage costs'!$W$16:$W$43,MATCH($B109,'Damage costs'!$C$16:$C$43,0))/1000,AK58*INDEX('Damage costs'!$AA$16:$AA$43,MATCH($B109,'Damage costs'!$C$16:$C$43,0))/1000),\"\")","v":""},{"$f":"IFERROR(IF(OR($C$110=FALSE,LEFT($B109,3)<>\"NOX\"),AL58*INDEX('Damage costs'!$W$16:$W$43,MATCH($B109,'Damage costs'!$C$16:$C$43,0))/1000,AL58*INDEX('Damage costs'!$AA$16:$AA$43,MATCH($B109,'Damage costs'!$C$16:$C$43,0))/1000),\"\")","v":""},{"$f":"IFERROR(IF(OR($C$110=FALSE,LEFT($B109,3)<>\"NOX\"),AM58*INDEX('Damage costs'!$W$16:$W$43,MATCH($B109,'Damage costs'!$C$16:$C$43,0))/1000,AM58*INDEX('Damage costs'!$AA$16:$AA$43,MATCH($B109,'Damage costs'!$C$16:$C$43,0))/1000),\"\")","v":""},{"$f":"IFERROR(IF(OR($C$110=FALSE,LEFT($B109,3)<>\"NOX\"),AN58*INDEX('Damage costs'!$W$16:$W$43,MATCH($B109,'Damage costs'!$C$16:$C$43,0))/1000,AN58*INDEX('Damage costs'!$AA$16:$AA$43,MATCH($B109,'Damage costs'!$C$16:$C$43,0))/1000),\"\")","v":""},{"$f":"IFERROR(IF(OR($C$110=FALSE,LEFT($B109,3)<>\"NOX\"),AO58*INDEX('Damage costs'!$W$16:$W$43,MATCH($B109,'Damage costs'!$C$16:$C$43,0))/1000,AO58*INDEX('Damage costs'!$AA$16:$AA$43,MATCH($B109,'Damage costs'!$C$16:$C$43,0))/1000),\"\")","v":""},{"$f":"IFERROR(IF(OR($C$110=FALSE,LEFT($B109,3)<>\"NOX\"),AP58*INDEX('Damage costs'!$W$16:$W$43,MATCH($B109,'Damage costs'!$C$16:$C$43,0))/1000,AP58*INDEX('Damage costs'!$AA$16:$AA$43,MATCH($B109,'Damage costs'!$C$16:$C$43,0))/1000),\"\")","v":""},{"$f":"IFERROR(IF(OR($C$110=FALSE,LEFT($B109,3)<>\"NOX\"),AQ58*INDEX('Damage costs'!$W$16:$W$43,MATCH($B109,'Damage costs'!$C$16:$C$43,0))/1000,AQ58*INDEX('Damage costs'!$AA$16:$AA$43,MATCH($B109,'Damage costs'!$C$16:$C$43,0))/1000),\"\")","v":""},{"$f":"IFERROR(IF(OR($C$110=FALSE,LEFT($B109,3)<>\"NOX\"),AR58*INDEX('Damage costs'!$W$16:$W$43,MATCH($B109,'Damage costs'!$C$16:$C$43,0))/1000,AR58*INDEX('Damage costs'!$AA$16:$AA$43,MATCH($B109,'Damage costs'!$C$16:$C$43,0))/1000),\"\")","v":""},{"$f":"IFERROR(IF(OR($C$110=FALSE,LEFT($B109,3)<>\"NOX\"),AS58*INDEX('Damage costs'!$W$16:$W$43,MATCH($B109,'Damage costs'!$C$16:$C$43,0))/1000,AS58*INDEX('Damage costs'!$AA$16:$AA$43,MATCH($B109,'Damage costs'!$C$16:$C$43,0))/1000),\"\")","v":""},{"$f":"IFERROR(IF(OR($C$110=FALSE,LEFT($B109,3)<>\"NOX\"),AT58*INDEX('Damage costs'!$W$16:$W$43,MATCH($B109,'Damage costs'!$C$16:$C$43,0))/1000,AT58*INDEX('Damage costs'!$AA$16:$AA$43,MATCH($B109,'Damage costs'!$C$16:$C$43,0))/1000),\"\")","v":""},{"$f":"IFERROR(IF(OR($C$110=FALSE,LEFT($B109,3)<>\"NOX\"),AU58*INDEX('Damage costs'!$W$16:$W$43,MATCH($B109,'Damage costs'!$C$16:$C$43,0))/1000,AU58*INDEX('Damage costs'!$AA$16:$AA$43,MATCH($B109,'Damage costs'!$C$16:$C$43,0))/1000),\"\")","v":""},{"$f":"IFERROR(IF(OR($C$110=FALSE,LEFT($B109,3)<>\"NOX\"),AV58*INDEX('Damage costs'!$W$16:$W$43,MATCH($B109,'Damage costs'!$C$16:$C$43,0))/1000,AV58*INDEX('Damage costs'!$AA$16:$AA$43,MATCH($B109,'Damage costs'!$C$16:$C$43,0))/1000),\"\")","v":""},{"$f":"IFERROR(IF(OR($C$110=FALSE,LEFT($B109,3)<>\"NOX\"),AW58*INDEX('Damage costs'!$W$16:$W$43,MATCH($B109,'Damage costs'!$C$16:$C$43,0))/1000,AW58*INDEX('Damage costs'!$AA$16:$AA$43,MATCH($B109,'Damage costs'!$C$16:$C$43,0))/1000),\"\")","v":""},{"$f":"IFERROR(IF(OR($C$110=FALSE,LEFT($B109,3)<>\"NOX\"),AX58*INDEX('Damage costs'!$W$16:$W$43,MATCH($B109,'Damage costs'!$C$16:$C$43,0))/1000,AX58*INDEX('Damage costs'!$AA$16:$AA$43,MATCH($B109,'Damage costs'!$C$16:$C$43,0))/1000),\"\")","v":""},{"$f":"IFERROR(IF(OR($C$110=FALSE,LEFT($B109,3)<>\"NOX\"),AY58*INDEX('Damage costs'!$W$16:$W$43,MATCH($B109,'Damage costs'!$C$16:$C$43,0))/1000,AY58*INDEX('Damage costs'!$AA$16:$AA$43,MATCH($B109,'Damage costs'!$C$16:$C$43,0))/1000),\"\")","v":""},{"$f":"IFERROR(IF(OR($C$110=FALSE,LEFT($B109,3)<>\"NOX\"),AZ58*INDEX('Damage costs'!$W$16:$W$43,MATCH($B109,'Damage costs'!$C$16:$C$43,0))/1000,AZ58*INDEX('Damage costs'!$AA$16:$AA$43,MATCH($B109,'Damage costs'!$C$16:$C$43,0))/1000),\"\")","v":""},{"$f":"IFERROR(IF(OR($C$110=FALSE,LEFT($B109,3)<>\"NOX\"),BA58*INDEX('Damage costs'!$W$16:$W$43,MATCH($B109,'Damage costs'!$C$16:$C$43,0))/1000,BA58*INDEX('Damage costs'!$AA$16:$AA$43,MATCH($B109,'Damage costs'!$C$16:$C$43,0))/1000),\"\")","v":""},{"$f":"IFERROR(IF(OR($C$110=FALSE,LEFT($B109,3)<>\"NOX\"),BB58*INDEX('Damage costs'!$W$16:$W$43,MATCH($B109,'Damage costs'!$C$16:$C$43,0))/1000,BB58*INDEX('Damage costs'!$AA$16:$AA$43,MATCH($B109,'Damage costs'!$C$16:$C$43,0))/1000),\"\")","v":""},{"$f":"IFERROR(IF(OR($C$110=FALSE,LEFT($B109,3)<>\"NOX\"),BC58*INDEX('Damage costs'!$W$16:$W$43,MATCH($B109,'Damage costs'!$C$16:$C$43,0))/1000,BC58*INDEX('Damage costs'!$AA$16:$AA$43,MATCH($B109,'Damage costs'!$C$16:$C$43,0))/1000),\"\")","v":""},{"$f":"IFERROR(IF(OR($C$110=FALSE,LEFT($B109,3)<>\"NOX\"),BD58*INDEX('Damage costs'!$W$16:$W$43,MATCH($B109,'Damage costs'!$C$16:$C$43,0))/1000,BD58*INDEX('Damage costs'!$AA$16:$AA$43,MATCH($B109,'Damage costs'!$C$16:$C$43,0))/1000),\"\")","v":""},{"$f":"IFERROR(IF(OR($C$110=FALSE,LEFT($B109,3)<>\"NOX\"),BE58*INDEX('Damage costs'!$W$16:$W$43,MATCH($B109,'Damage costs'!$C$16:$C$43,0))/1000,BE58*INDEX('Damage costs'!$AA$16:$AA$43,MATCH($B109,'Damage costs'!$C$16:$C$43,0))/1000),\"\")","v":""},{"$f":"IFERROR(IF(OR($C$110=FALSE,LEFT($B109,3)<>\"NOX\"),BF58*INDEX('Damage costs'!$W$16:$W$43,MATCH($B109,'Damage costs'!$C$16:$C$43,0))/1000,BF58*INDEX('Damage costs'!$AA$16:$AA$43,MATCH($B109,'Damage costs'!$C$16:$C$43,0))/1000),\"\")","v":""},{"$f":"IFERROR(IF(OR($C$110=FALSE,LEFT($B109,3)<>\"NOX\"),BG58*INDEX('Damage costs'!$W$16:$W$43,MATCH($B109,'Damage costs'!$C$16:$C$43,0))/1000,BG58*INDEX('Damage costs'!$AA$16:$AA$43,MATCH($B109,'Damage costs'!$C$16:$C$43,0))/1000),\"\")","v":""},{"$f":"IFERROR(IF(OR($C$110=FALSE,LEFT($B109,3)<>\"NOX\"),BH58*INDEX('Damage costs'!$W$16:$W$43,MATCH($B109,'Damage costs'!$C$16:$C$43,0))/1000,BH58*INDEX('Damage costs'!$AA$16:$AA$43,MATCH($B109,'Damage costs'!$C$16:$C$43,0))/1000),\"\")","v":""},{"$f":"IFERROR(IF(OR($C$110=FALSE,LEFT($B109,3)<>\"NOX\"),BI58*INDEX('Damage costs'!$W$16:$W$43,MATCH($B109,'Damage costs'!$C$16:$C$43,0))/1000,BI58*INDEX('Damage costs'!$AA$16:$AA$43,MATCH($B109,'Damage costs'!$C$16:$C$43,0))/1000),\"\")","v":""},{"$f":"IFERROR(IF(OR($C$110=FALSE,LEFT($B109,3)<>\"NOX\"),BJ58*INDEX('Damage costs'!$W$16:$W$43,MATCH($B109,'Damage costs'!$C$16:$C$43,0))/1000,BJ58*INDEX('Damage costs'!$AA$16:$AA$43,MATCH($B109,'Damage costs'!$C$16:$C$43,0))/1000),\"\")","v":""},{"$f":"IFERROR(IF(OR($C$110=FALSE,LEFT($B109,3)<>\"NOX\"),BK58*INDEX('Damage costs'!$W$16:$W$43,MATCH($B109,'Damage costs'!$C$16:$C$43,0))/1000,BK58*INDEX('Damage costs'!$AA$16:$AA$43,MATCH($B109,'Damage costs'!$C$16:$C$43,0))/1000),\"\")","v":""},{"$f":"IFERROR(IF(OR($C$110=FALSE,LEFT($B109,3)<>\"NOX\"),BL58*INDEX('Damage costs'!$W$16:$W$43,MATCH($B109,'Damage costs'!$C$16:$C$43,0))/1000,BL58*INDEX('Damage costs'!$AA$16:$AA$43,MATCH($B109,'Damage costs'!$C$16:$C$43,0))/1000),\"\")","v":""},{"$f":"IFERROR(IF(OR($C$110=FALSE,LEFT($B109,3)<>\"NOX\"),BM58*INDEX('Damage costs'!$W$16:$W$43,MATCH($B109,'Damage costs'!$C$16:$C$43,0))/1000,BM58*INDEX('Damage costs'!$AA$16:$AA$43,MATCH($B109,'Damage costs'!$C$16:$C$43,0))/1000),\"\")","v":""},{"$f":"IFERROR(IF(OR($C$110=FALSE,LEFT($B109,3)<>\"NOX\"),BN58*INDEX('Damage costs'!$W$16:$W$43,MATCH($B109,'Damage costs'!$C$16:$C$43,0))/1000,BN58*INDEX('Damage costs'!$AA$16:$AA$43,MATCH($B109,'Damage costs'!$C$16:$C$43,0))/1000),\"\")","v":""},{"$f":"IFERROR(IF(OR($C$110=FALSE,LEFT($B109,3)<>\"NOX\"),BO58*INDEX('Damage costs'!$W$16:$W$43,MATCH($B109,'Damage costs'!$C$16:$C$43,0))/1000,BO58*INDEX('Damage costs'!$AA$16:$AA$43,MATCH($B109,'Damage costs'!$C$16:$C$43,0))/1000),\"\")","v":""},{"$f":"IFERROR(IF(OR($C$110=FALSE,LEFT($B109,3)<>\"NOX\"),BP58*INDEX('Damage costs'!$W$16:$W$43,MATCH($B109,'Damage costs'!$C$16:$C$43,0))/1000,BP58*INDEX('Damage costs'!$AA$16:$AA$43,MATCH($B109,'Damage costs'!$C$16:$C$43,0))/1000),\"\")","v":""},{"$f":"IFERROR(IF(OR($C$110=FALSE,LEFT($B109,3)<>\"NOX\"),BQ58*INDEX('Damage costs'!$W$16:$W$43,MATCH($B109,'Damage costs'!$C$16:$C$43,0))/1000,BQ58*INDEX('Damage costs'!$AA$16:$AA$43,MATCH($B109,'Damage costs'!$C$16:$C$43,0))/1000),\"\")","v":""},{"$f":"IFERROR(IF(OR($C$110=FALSE,LEFT($B109,3)<>\"NOX\"),BR58*INDEX('Damage costs'!$W$16:$W$43,MATCH($B109,'Damage costs'!$C$16:$C$43,0))/1000,BR58*INDEX('Damage costs'!$AA$16:$AA$43,MATCH($B109,'Damage costs'!$C$16:$C$43,0))/1000),\"\")","v":""},{"$f":"IFERROR(IF(OR($C$110=FALSE,LEFT($B109,3)<>\"NOX\"),BS58*INDEX('Damage costs'!$W$16:$W$43,MATCH($B109,'Damage costs'!$C$16:$C$43,0))/1000,BS58*INDEX('Damage costs'!$AA$16:$AA$43,MATCH($B109,'Damage costs'!$C$16:$C$43,0))/1000),\"\")","v":""},{"$f":"IFERROR(IF(OR($C$110=FALSE,LEFT($B109,3)<>\"NOX\"),BT58*INDEX('Damage costs'!$W$16:$W$43,MATCH($B109,'Damage costs'!$C$16:$C$43,0))/1000,BT58*INDEX('Damage costs'!$AA$16:$AA$43,MATCH($B109,'Damage costs'!$C$16:$C$43,0))/1000),\"\")","v":""},{"$f":"IFERROR(IF(OR($C$110=FALSE,LEFT($B109,3)<>\"NOX\"),BU58*INDEX('Damage costs'!$W$16:$W$43,MATCH($B109,'Damage costs'!$C$16:$C$43,0))/1000,BU58*INDEX('Damage costs'!$AA$16:$AA$43,MATCH($B109,'Damage costs'!$C$16:$C$43,0))/1000),\"\")","v":""},{"$f":"IFERROR(IF(OR($C$110=FALSE,LEFT($B109,3)<>\"NOX\"),BV58*INDEX('Damage costs'!$W$16:$W$43,MATCH($B109,'Damage costs'!$C$16:$C$43,0))/1000,BV58*INDEX('Damage costs'!$AA$16:$AA$43,MATCH($B109,'Damage costs'!$C$16:$C$43,0))/1000),\"\")","v":""},{"$f":"IFERROR(IF(OR($C$110=FALSE,LEFT($B109,3)<>\"NOX\"),BW58*INDEX('Damage costs'!$W$16:$W$43,MATCH($B109,'Damage costs'!$C$16:$C$43,0))/1000,BW58*INDEX('Damage costs'!$AA$16:$AA$43,MATCH($B109,'Damage costs'!$C$16:$C$43,0))/1000),\"\")","v":""},{"$f":"IFERROR(IF(OR($C$110=FALSE,LEFT($B109,3)<>\"NOX\"),BX58*INDEX('Damage costs'!$W$16:$W$43,MATCH($B109,'Damage costs'!$C$16:$C$43,0))/1000,BX58*INDEX('Damage costs'!$AA$16:$AA$43,MATCH($B109,'Damage costs'!$C$16:$C$43,0))/1000),\"\")","v":""},{"$f":"IFERROR(IF(OR($C$110=FALSE,LEFT($B109,3)<>\"NOX\"),BY58*INDEX('Damage costs'!$W$16:$W$43,MATCH($B109,'Damage costs'!$C$16:$C$43,0))/1000,BY58*INDEX('Damage costs'!$AA$16:$AA$43,MATCH($B109,'Damage costs'!$C$16:$C$43,0))/1000),\"\")","v":""},{"$f":"IFERROR(IF(OR($C$110=FALSE,LEFT($B109,3)<>\"NOX\"),BZ58*INDEX('Damage costs'!$W$16:$W$43,MATCH($B109,'Damage costs'!$C$16:$C$43,0))/1000,BZ58*INDEX('Damage costs'!$AA$16:$AA$43,MATCH($B109,'Damage costs'!$C$16:$C$43,0))/1000),\"\")","v":""},{"$f":"IFERROR(IF(OR($C$110=FALSE,LEFT($B109,3)<>\"NOX\"),CA58*INDEX('Damage costs'!$W$16:$W$43,MATCH($B109,'Damage costs'!$C$16:$C$43,0))/1000,CA58*INDEX('Damage costs'!$AA$16:$AA$43,MATCH($B109,'Damage costs'!$C$16:$C$43,0))/1000),\"\")","v":""},{"$f":"IFERROR(IF(OR($C$110=FALSE,LEFT($B109,3)<>\"NOX\"),CB58*INDEX('Damage costs'!$W$16:$W$43,MATCH($B109,'Damage costs'!$C$16:$C$43,0))/1000,CB58*INDEX('Damage costs'!$AA$16:$AA$43,MATCH($B109,'Damage costs'!$C$16:$C$43,0))/1000),\"\")","v":""},{"$f":"IFERROR(IF(OR($C$110=FALSE,LEFT($B109,3)<>\"NOX\"),CC58*INDEX('Damage costs'!$W$16:$W$43,MATCH($B109,'Damage costs'!$C$16:$C$43,0))/1000,CC58*INDEX('Damage costs'!$AA$16:$AA$43,MATCH($B109,'Damage costs'!$C$16:$C$43,0))/1000),\"\")","v":""},{"$f":"IFERROR(IF(OR($C$110=FALSE,LEFT($B109,3)<>\"NOX\"),CD58*INDEX('Damage costs'!$W$16:$W$43,MATCH($B109,'Damage costs'!$C$16:$C$43,0))/1000,CD58*INDEX('Damage costs'!$AA$16:$AA$43,MATCH($B109,'Damage costs'!$C$16:$C$43,0))/1000),\"\")","v":""},{"$f":"IFERROR(IF(OR($C$110=FALSE,LEFT($B109,3)<>\"NOX\"),CE58*INDEX('Damage costs'!$W$16:$W$43,MATCH($B109,'Damage costs'!$C$16:$C$43,0))/1000,CE58*INDEX('Damage costs'!$AA$16:$AA$43,MATCH($B109,'Damage costs'!$C$16:$C$43,0))/1000),\"\")","v":""},{"$f":"IFERROR(IF(OR($C$110=FALSE,LEFT($B109,3)<>\"NOX\"),CF58*INDEX('Damage costs'!$W$16:$W$43,MATCH($B109,'Damage costs'!$C$16:$C$43,0))/1000,CF58*INDEX('Damage costs'!$AA$16:$AA$43,MATCH($B109,'Damage costs'!$C$16:$C$43,0))/1000),\"\")","v":""},{"$f":"IFERROR(IF(OR($C$110=FALSE,LEFT($B109,3)<>\"NOX\"),CG58*INDEX('Damage costs'!$W$16:$W$43,MATCH($B109,'Damage costs'!$C$16:$C$43,0))/1000,CG58*INDEX('Damage costs'!$AA$16:$AA$43,MATCH($B109,'Damage costs'!$C$16:$C$43,0))/1000),\"\")","v":""},{"$f":"IFERROR(IF(OR($C$110=FALSE,LEFT($B109,3)<>\"NOX\"),CH58*INDEX('Damage costs'!$W$16:$W$43,MATCH($B109,'Damage costs'!$C$16:$C$43,0))/1000,CH58*INDEX('Damage costs'!$AA$16:$AA$43,MATCH($B109,'Damage costs'!$C$16:$C$43,0))/1000),\"\")","v":""},{"$f":"IFERROR(IF(OR($C$110=FALSE,LEFT($B109,3)<>\"NOX\"),CI58*INDEX('Damage costs'!$W$16:$W$43,MATCH($B109,'Damage costs'!$C$16:$C$43,0))/1000,CI58*INDEX('Damage costs'!$AA$16:$AA$43,MATCH($B109,'Damage costs'!$C$16:$C$43,0))/1000),\"\")","v":""},{"$f":"IFERROR(IF(OR($C$110=FALSE,LEFT($B109,3)<>\"NOX\"),CJ58*INDEX('Damage costs'!$W$16:$W$43,MATCH($B109,'Damage costs'!$C$16:$C$43,0))/1000,CJ58*INDEX('Damage costs'!$AA$16:$AA$43,MATCH($B109,'Damage costs'!$C$16:$C$43,0))/1000),\"\")","v":""},{"$f":"IFERROR(IF(OR($C$110=FALSE,LEFT($B109,3)<>\"NOX\"),CK58*INDEX('Damage costs'!$W$16:$W$43,MATCH($B109,'Damage costs'!$C$16:$C$43,0))/1000,CK58*INDEX('Damage costs'!$AA$16:$AA$43,MATCH($B109,'Damage costs'!$C$16:$C$43,0))/1000),\"\")","v":""},{"$f":"IFERROR(IF(OR($C$110=FALSE,LEFT($B109,3)<>\"NOX\"),CL58*INDEX('Damage costs'!$W$16:$W$43,MATCH($B109,'Damage costs'!$C$16:$C$43,0))/1000,CL58*INDEX('Damage costs'!$AA$16:$AA$43,MATCH($B109,'Damage costs'!$C$16:$C$43,0))/1000),\"\")","v":""},{"$f":"IFERROR(IF(OR($C$110=FALSE,LEFT($B109,3)<>\"NOX\"),CM58*INDEX('Damage costs'!$W$16:$W$43,MATCH($B109,'Damage costs'!$C$16:$C$43,0))/1000,CM58*INDEX('Damage costs'!$AA$16:$AA$43,MATCH($B109,'Damage costs'!$C$16:$C$43,0))/1000),\"\")","v":""},{"$f":"IFERROR(IF(OR($C$110=FALSE,LEFT($B109,3)<>\"NOX\"),CN58*INDEX('Damage costs'!$W$16:$W$43,MATCH($B109,'Damage costs'!$C$16:$C$43,0))/1000,CN58*INDEX('Damage costs'!$AA$16:$AA$43,MATCH($B109,'Damage costs'!$C$16:$C$43,0))/1000),\"\")","v":""},{"$f":"IFERROR(IF(OR($C$110=FALSE,LEFT($B109,3)<>\"NOX\"),CO58*INDEX('Damage costs'!$W$16:$W$43,MATCH($B109,'Damage costs'!$C$16:$C$43,0))/1000,CO58*INDEX('Damage costs'!$AA$16:$AA$43,MATCH($B109,'Damage costs'!$C$16:$C$43,0))/1000),\"\")","v":""},{"$f":"IFERROR(IF(OR($C$110=FALSE,LEFT($B109,3)<>\"NOX\"),CP58*INDEX('Damage costs'!$W$16:$W$43,MATCH($B109,'Damage costs'!$C$16:$C$43,0))/1000,CP58*INDEX('Damage costs'!$AA$16:$AA$43,MATCH($B109,'Damage costs'!$C$16:$C$43,0))/1000),\"\")","v":""},{"$f":"IFERROR(IF(OR($C$110=FALSE,LEFT($B109,3)<>\"NOX\"),CQ58*INDEX('Damage costs'!$W$16:$W$43,MATCH($B109,'Damage costs'!$C$16:$C$43,0))/1000,CQ58*INDEX('Damage costs'!$AA$16:$AA$43,MATCH($B109,'Damage costs'!$C$16:$C$43,0))/1000),\"\")","v":""},{"$f":"IFERROR(IF(OR($C$110=FALSE,LEFT($B109,3)<>\"NOX\"),CR58*INDEX('Damage costs'!$W$16:$W$43,MATCH($B109,'Damage costs'!$C$16:$C$43,0))/1000,CR58*INDEX('Damage costs'!$AA$16:$AA$43,MATCH($B109,'Damage costs'!$C$16:$C$43,0))/1000),\"\")","v":""},{"$f":"IFERROR(IF(OR($C$110=FALSE,LEFT($B109,3)<>\"NOX\"),CS58*INDEX('Damage costs'!$W$16:$W$43,MATCH($B109,'Damage costs'!$C$16:$C$43,0))/1000,CS58*INDEX('Damage costs'!$AA$16:$AA$43,MATCH($B109,'Damage costs'!$C$16:$C$43,0))/1000),\"\")","v":""},{"$f":"IFERROR(IF(OR($C$110=FALSE,LEFT($B109,3)<>\"NOX\"),CT58*INDEX('Damage costs'!$W$16:$W$43,MATCH($B109,'Damage costs'!$C$16:$C$43,0))/1000,CT58*INDEX('Damage costs'!$AA$16:$AA$43,MATCH($B109,'Damage costs'!$C$16:$C$43,0))/1000),\"\")","v":""},{"$f":"IFERROR(IF(OR($C$110=FALSE,LEFT($B109,3)<>\"NOX\"),CU58*INDEX('Damage costs'!$W$16:$W$43,MATCH($B109,'Damage costs'!$C$16:$C$43,0))/1000,CU58*INDEX('Damage costs'!$AA$16:$AA$43,MATCH($B109,'Damage costs'!$C$16:$C$43,0))/1000),\"\")","v":""},{"$f":"IFERROR(IF(OR($C$110=FALSE,LEFT($B109,3)<>\"NOX\"),CV58*INDEX('Damage costs'!$W$16:$W$43,MATCH($B109,'Damage costs'!$C$16:$C$43,0))/1000,CV58*INDEX('Damage costs'!$AA$16:$AA$43,MATCH($B109,'Damage costs'!$C$16:$C$43,0))/1000),\"\")","v":""},{"$f":"IFERROR(IF(OR($C$110=FALSE,LEFT($B109,3)<>\"NOX\"),CW58*INDEX('Damage costs'!$W$16:$W$43,MATCH($B109,'Damage costs'!$C$16:$C$43,0))/1000,CW58*INDEX('Damage costs'!$AA$16:$AA$43,MATCH($B109,'Damage costs'!$C$16:$C$43,0))/1000),\"\")","v":""},{"$f":"IFERROR(IF(OR($C$110=FALSE,LEFT($B109,3)<>\"NOX\"),CX58*INDEX('Damage costs'!$W$16:$W$43,MATCH($B109,'Damage costs'!$C$16:$C$43,0))/1000,CX58*INDEX('Damage costs'!$AA$16:$AA$43,MATCH($B109,'Damage costs'!$C$16:$C$43,0))/1000),\"\")","v":""},{"$f":"IFERROR(IF(OR($C$110=FALSE,LEFT($B109,3)<>\"NOX\"),CY58*INDEX('Damage costs'!$W$16:$W$43,MATCH($B109,'Damage costs'!$C$16:$C$43,0))/1000,CY58*INDEX('Damage costs'!$AA$16:$AA$43,MATCH($B109,'Damage costs'!$C$16:$C$43,0))/1000),\"\")","v":""}]
[null,"PM10 Used",{"$f":"IF(OR(LEFT(B104,4)=\"PM10\",LEFT(B105,4)=\"PM10\",LEFT(B106,4)=\"PM10\",LEFT(B107,4)=\"PM10\",LEFT(B108,4)=\"PM10\",LEFT(B109,4)=\"PM10\"),TRUE,FALSE)","v":false}]
[]
[null,"Uplift pa","%",{"$f":"'Discount and deflators'!$H$5","v":0.02}]
[null,"Uplift factor",null,{"$f":"IF(D$6=0,0,(1+$D112)^(D$6-'Data Input - General'!$F$22))","v":1},{"$f":"IF(E$6=0,0,(1+$D112)^(E$6-'Data Input - General'!$F$22))","v":1.02},{"$f":"IF(F$6=0,0,(1+$D112)^(F$6-'Data Input - General'!$F$22))","v":1.0404},{"$f":"IF(G$6=0,0,(1+$D112)^(G$6-'Data Input - General'!$F$22))","v":1.0612079999999999},{"$f":"IF(H$6=0,0,(1+$D112)^(H$6-'Data Input - General'!$F$22))","v":1.08243216},{"$f":"IF(I$6=0,0,(1+$D112)^(I$6-'Data Input - General'!$F$22))","v":1.1040808032},{"$f":"IF(J$6=0,0,(1+$D112)^(J$6-'Data Input - General'!$F$22))","v":1.1261624192640001},{"$f":"IF(K$6=0,0,(1+$D112)^(K$6-'Data Input - General'!$F$22))","v":1.1486856676492798},{"$f":"IF(L$6=0,0,(1+$D112)^(L$6-'Data Input - General'!$F$22))","v":1.1716593810022655},{"$f":"IF(M$6=0,0,(1+$D112)^(M$6-'Data Input - General'!$F$22))","v":1.1950925686223108},{"$f":"IF(N$6=0,0,(1+$D112)^(N$6-'Data Input - General'!$F$22))","v":1.2189944199947571},{"$f":"IF(O$6=0,0,(1+$D112)^(O$6-'Data Input - General'!$F$22))","v":1.243374308394652},{"$f":"IF(P$6=0,0,(1+$D112)^(P$6-'Data Input - General'!$F$22))","v":1.2682417945625453},{"$f":"IF(Q$6=0,0,(1+$D112)^(Q$6-'Data Input - General'!$F$22))","v":1.2936066304537961},{"$f":"IF(R$6=0,0,(1+$D112)^(R$6-'Data Input - General'!$F$22))","v":1.3194787630628722},{"$f":"IF(S$6=0,0,(1+$D112)^(S$6-'Data Input - General'!$F$22))","v":1.3458683383241292},{"$f":"IF(T$6=0,0,(1+$D112)^(T$6-'Data Input - General'!$F$22))","v":1.372785705090612},{"$f":"IF(U$6=0,0,(1+$D112)^(U$6-'Data Input - General'!$F$22))","v":1.4002414191924244},{"$f":"IF(V$6=0,0,(1+$D112)^(V$6-'Data Input - General'!$F$22))","v":1.4282462475762727},{"$f":"IF(W$6=0,0,(1+$D112)^(W$6-'Data Input - General'!$F$22))","v":1.4568111725277981},{"$f":"IF(X$6=0,0,(1+$D112)^(X$6-'Data Input - General'!$F$22))","v":1.4859473959783542},{"$f":"IF(Y$6=0,0,(1+$D112)^(Y$6-'Data Input - General'!$F$22))","v":1.5156663438979212},{"$f":"IF(Z$6=0,0,(1+$D112)^(Z$6-'Data Input - General'!$F$22))","v":1.5459796707758797},{"$f":"IF(AA$6=0,0,(1+$D112)^(AA$6-'Data Input - General'!$F$22))","v":1.576899264191397},{"$f":"IF(AB$6=0,0,(1+$D112)^(AB$6-'Data Input - General'!$F$22))","v":1.608437249475225},{"$f":"IF(AC$6=0,0,(1+$D112)^(AC$6-'Data Input - General'!$F$22))","v":1.6406059944647295},{"$f":"IF(AD$6=0,0,(1+$D112)^(AD$6-'Data Input - General'!$F$22))","v":1.6734181143540243},{"$f":"IF(AE$6=0,0,(1+$D112)^(AE$6-'Data Input - General'!$F$22))","v":1.7068864766411045},{"$f":"IF(AF$6=0,0,(1+$D112)^(AF$6-'Data Input - General'!$F$22))","v":1.7410242061739269},{"$f":"IF(AG$6=0,0,(1+$D112)^(AG$6-'Data Input - General'!$F$22))","v":1.7758446902974052},{"$f":"IF(AH$6=0,0,(1+$D112)^(AH$6-'Data Input - General'!$F$22))","v":1.8113615841033535},{"$f":"IF(AI$6=0,0,(1+$D112)^(AI$6-'Data Input - General'!$F$22))","v":0},{"$f":"IF(AJ$6=0,0,(1+$D112)^(AJ$6-'Data Input - General'!$F$22))","v":0},{"$f":"IF(AK$6=0,0,(1+$D112)^(AK$6-'Data Input - General'!$F$22))","v":0},{"$f":"IF(AL$6=0,0,(1+$D112)^(AL$6-'Data Input - General'!$F$22))","v":0},{"$f":"IF(AM$6=0,0,(1+$D112)^(AM$6-'Data Input - General'!$F$22))","v":0},{"$f":"IF(AN$6=0,0,(1+$D112)^(AN$6-'Data Input - General'!$F$22))","v":0},{"$f":"IF(AO$6=0,0,(1+$D112)^(AO$6-'Data Input - General'!$F$22))","v":0},{"$f":"IF(AP$6=0,0,(1+$D112)^(AP$6-'Data Input - General'!$F$22))","v":0},{"$f":"IF(AQ$6=0,0,(1+$D112)^(AQ$6-'Data Input - General'!$F$22))","v":0},{"$f":"IF(AR$6=0,0,(1+$D112)^(AR$6-'Data Input - General'!$F$22))","v":0},{"$f":"IF(AS$6=0,0,(1+$D112)^(AS$6-'Data Input - General'!$F$22))","v":0},{"$f":"IF(AT$6=0,0,(1+$D112)^(AT$6-'Data Input - General'!$F$22))","v":0},{"$f":"IF(AU$6=0,0,(1+$D112)^(AU$6-'Data Input - General'!$F$22))","v":0},{"$f":"IF(AV$6=0,0,(1+$D112)^(AV$6-'Data Input - General'!$F$22))","v":0},{"$f":"IF(AW$6=0,0,(1+$D112)^(AW$6-'Data Input - General'!$F$22))","v":0},{"$f":"IF(AX$6=0,0,(1+$D112)^(AX$6-'Data Input - General'!$F$22))","v":0},{"$f":"IF(AY$6=0,0,(1+$D112)^(AY$6-'Data Input - General'!$F$22))","v":0},{"$f":"IF(AZ$6=0,0,(1+$D112)^(AZ$6-'Data Input - General'!$F$22))","v":0},{"$f":"IF(BA$6=0,0,(1+$D112)^(BA$6-'Data Input - General'!$F$22))","v":0},{"$f":"IF(BB$6=0,0,(1+$D112)^(BB$6-'Data Input - General'!$F$22))","v":0},{"$f":"IF(BC$6=0,0,(1+$D112)^(BC$6-'Data Input - General'!$F$22))","v":0},{"$f":"IF(BD$6=0,0,(1+$D112)^(BD$6-'Data Input - General'!$F$22))","v":0},{"$f":"IF(BE$6=0,0,(1+$D112)^(BE$6-'Data Input - General'!$F$22))","v":0},{"$f":"IF(BF$6=0,0,(1+$D112)^(BF$6-'Data Input - General'!$F$22))","v":0},{"$f":"IF(BG$6=0,0,(1+$D112)^(BG$6-'Data Input - General'!$F$22))","v":0},{"$f":"IF(BH$6=0,0,(1+$D112)^(BH$6-'Data Input - General'!$F$22))","v":0},{"$f":"IF(BI$6=0,0,(1+$D112)^(BI$6-'Data Input - General'!$F$22))","v":0},{"$f":"IF(BJ$6=0,0,(1+$D112)^(BJ$6-'Data Input - General'!$F$22))","v":0},{"$f":"IF(BK$6=0,0,(1+$D112)^(BK$6-'Data Input - General'!$F$22))","v":0},{"$f":"IF(BL$6=0,0,(1+$D112)^(BL$6-'Data Input - General'!$F$22))","v":0},{"$f":"IF(BM$6=0,0,(1+$D112)^(BM$6-'Data Input - General'!$F$22))","v":0},{"$f":"IF(BN$6=0,0,(1+$D112)^(BN$6-'Data Input - General'!$F$22))","v":0},{"$f":"IF(BO$6=0,0,(1+$D112)^(BO$6-'Data Input - General'!$F$22))","v":0},{"$f":"IF(BP$6=0,0,(1+$D112)^(BP$6-'Data Input - General'!$F$22))","v":0},{"$f":"IF(BQ$6=0,0,(1+$D112)^(BQ$6-'Data Input - General'!$F$22))","v":0},{"$f":"IF(BR$6=0,0,(1+$D112)^(BR$6-'Data Input - General'!$F$22))","v":0},{"$f":"IF(BS$6=0,0,(1+$D112)^(BS$6-'Data Input - General'!$F$22))","v":0},{"$f":"IF(BT$6=0,0,(1+$D112)^(BT$6-'Data Input - General'!$F$22))","v":0},{"$f":"IF(BU$6=0,0,(1+$D112)^(BU$6-'Data Input - General'!$F$22))","v":0},{"$f":"IF(BV$6=0,0,(1+$D112)^(BV$6-'Data Input - General'!$F$22))","v":0},{"$f":"IF(BW$6=0,0,(1+$D112)^(BW$6-'Data Input - General'!$F$22))","v":0},{"$f":"IF(BX$6=0,0,(1+$D112)^(BX$6-'Data Input - General'!$F$22))","v":0},{"$f":"IF(BY$6=0,0,(1+$D112)^(BY$6-'Data Input - General'!$F$22))","v":0},{"$f":"IF(BZ$6=0,0,(1+$D112)^(BZ$6-'Data Input - General'!$F$22))","v":0},{"$f":"IF(CA$6=0,0,(1+$D112)^(CA$6-'Data Input - General'!$F$22))","v":0},{"$f":"IF(CB$6=0,0,(1+$D112)^(CB$6-'Data Input - General'!$F$22))","v":0},{"$f":"IF(CC$6=0,0,(1+$D112)^(CC$6-'Data Input - General'!$F$22))","v":0},{"$f":"IF(CD$6=0,0,(1+$D112)^(CD$6-'Data Input - General'!$F$22))","v":0},{"$f":"IF(CE$6=0,0,(1+$D112)^(CE$6-'Data Input - General'!$F$22))","v":0},{"$f":"IF(CF$6=0,0,(1+$D112)^(CF$6-'Data Input - General'!$F$22))","v":0},{"$f":"IF(CG$6=0,0,(1+$D112)^(CG$6-'Data Input - General'!$F$22))","v":0},{"$f":"IF(CH$6=0,0,(1+$D112)^(CH$6-'Data Input - General'!$F$22))","v":0},{"$f":"IF(CI$6=0,0,(1+$D112)^(CI$6-'Data Input - General'!$F$22))","v":0},{"$f":"IF(CJ$6=0,0,(1+$D112)^(CJ$6-'Data Input - General'!$F$22))","v":0},{"$f":"IF(CK$6=0,0,(1+$D112)^(CK$6-'Data Input - General'!$F$22))","v":0},{"$f":"IF(CL$6=0,0,(1+$D112)^(CL$6-'Data Input - General'!$F$22))","v":0},{"$f":"IF(CM$6=0,0,(1+$D112)^(CM$6-'Data Input - General'!$F$22))","v":0},{"$f":"IF(CN$6=0,0,(1+$D112)^(CN$6-'Data Input - General'!$F$22))","v":0},{"$f":"IF(CO$6=0,0,(1+$D112)^(CO$6-'Data Input - General'!$F$22))","v":0},{"$f":"IF(CP$6=0,0,(1+$D112)^(CP$6-'Data Input - General'!$F$22))","v":0},{"$f":"IF(CQ$6=0,0,(1+$D112)^(CQ$6-'Data Input - General'!$F$22))","v":0},{"$f":"IF(CR$6=0,0,(1+$D112)^(CR$6-'Data Input - General'!$F$22))","v":0},{"$f":"IF(CS$6=0,0,(1+$D112)^(CS$6-'Data Input - General'!$F$22))","v":0},{"$f":"IF(CT$6=0,0,(1+$D112)^(CT$6-'Data Input - General'!$F$22))","v":0},{"$f":"IF(CU$6=0,0,(1+$D112)^(CU$6-'Data Input - General'!$F$22))","v":0},{"$f":"IF(CV$6=0,0,(1+$D112)^(CV$6-'Data Input - General'!$F$22))","v":0},{"$f":"IF(CW$6=0,0,(1+$D112)^(CW$6-'Data Input - General'!$F$22))","v":0},{"$f":"IF(CX$6=0,0,(1+$D112)^(CX$6-'Data Input - General'!$F$22))","v":0},{"$f":"IF(CY$6=0,0,(1+$D112)^(CY$6-'Data Input - General'!$F$22))","v":0}]
[null,"Total value","£000's",{"$f":"SUM(D104:D109)*D113","v":0},{"$f":"SUM(E104:E109)*E113","v":0},{"$f":"SUM(F104:F109)*F113","v":0},0,0,0,0,0,0,0,0,0,0,0,0,0,0,0,0,0,0,0,0,0,0,0,0,0,0,0,0,0,{"$f":"SUM(AJ104:AJ109)*AJ113","v":0},0,0,0,0,0,0,0,0,0,0,0,0,0,0,0,0,0,0,0,0,0,0,0,0,0,0,0,{"$f":"SUM(BL104:BL109)*BL113","v":0},0,0,0,0,0,0,0,0,0,0,0,0,0,0,0,0,0,0,0,0,0,0,0,0,0,0,0,0,0,0,0,0,0,0,0,0,0,0,0]
[null,"Discounted total value","£000's",{"$f":"D114*D$7","v":0},{"$f":"E114*E$7","v":0},{"$f":"F114*F$7","v":0},{"$f":"G114*G$7","v":0},0,0,0,0,0,0,0,0,0,0,0,0,0,0,0,0,0,0,0,0,0,0,0,0,0,0,0,0,0,0,0,0,0,0,0,0,0,0,0,0,0,0,0,0,0,0,0,0,0,0,0,0,0,0,0,0,0,0,0,0,0,0,0,{"$f":"BS114*BS$7","v":0},0,0,0,0,0,0,0,0,0,0,0,0,0,0,0,0,0,0,0,0,0,0,0,0,0,0,0,0,0,0,0,0]
[]
[null,"GHG emissions"]
[null,"Traded","tCO2e",{"$f":"D80+IF('Data Input - General'!$F$10=\"Yes\",Calc_Option4!D$81,0)+IF('Data Input - General'!$F$12=\"Yes\",Calc_Option4!D$75,0)","v":2.7159532468959326E-3},{"$f":"E80+IF('Data Input - General'!$F$10=\"Yes\",Calc_Option4!E$81,0)+IF('Data Input - General'!$F$12=\"Yes\",Calc_Option4!E$75,0)","v":0},{"$f":"F80+IF('Data Input - General'!$F$10=\"Yes\",Calc_Option4!F$81,0)+IF('Data Input - General'!$F$12=\"Yes\",Calc_Option4!F$75,0)","v":0},{"$f":"G80+IF('Data Input - General'!$F$10=\"Yes\",Calc_Option4!G$81,0)+IF('Data Input - General'!$F$12=\"Yes\",Calc_Option4!G$75,0)","v":0},{"$f":"H80+IF('Data Input - General'!$F$10=\"Yes\",Calc_Option4!H$81,0)+IF('Data Input - General'!$F$12=\"Yes\",Calc_Option4!H$75,0)","v":0},{"$f":"I80+IF('Data Input - General'!$F$10=\"Yes\",Calc_Option4!I$81,0)+IF('Data Input - General'!$F$12=\"Yes\",Calc_Option4!I$75,0)","v":0},{"$f":"J80+IF('Data Input - General'!$F$10=\"Yes\",Calc_Option4!J$81,0)+IF('Data Input - General'!$F$12=\"Yes\",Calc_Option4!J$75,0)","v":0},{"$f":"K80+IF('Data Input - General'!$F$10=\"Yes\",Calc_Option4!K$81,0)+IF('Data Input - General'!$F$12=\"Yes\",Calc_Option4!K$75,0)","v":0},{"$f":"L80+IF('Data Input - General'!$F$10=\"Yes\",Calc_Option4!L$81,0)+IF('Data Input - General'!$F$12=\"Yes\",Calc_Option4!L$75,0)","v":0},{"$f":"M80+IF('Data Input - General'!$F$10=\"Yes\",Calc_Option4!M$81,0)+IF('Data Input - General'!$F$12=\"Yes\",Calc_Option4!M$75,0)","v":0},{"$f":"N80+IF('Data Input - General'!$F$10=\"Yes\",Calc_Option4!N$81,0)+IF('Data Input - General'!$F$12=\"Yes\",Calc_Option4!N$75,0)","v":0},{"$f":"O80+IF('Data Input - General'!$F$10=\"Yes\",Calc_Option4!O$81,0)+IF('Data Input - General'!$F$12=\"Yes\",Calc_Option4!O$75,0)","v":0},{"$f":"P80+IF('Data Input - General'!$F$10=\"Yes\",Calc_Option4!P$81,0)+IF('Data Input - General'!$F$12=\"Yes\",Calc_Option4!P$75,0)","v":0},{"$f":"Q80+IF('Data Input - General'!$F$10=\"Yes\",Calc_Option4!Q$81,0)+IF('Data Input - General'!$F$12=\"Yes\",Calc_Option4!Q$75,0)","v":0},{"$f":"R80+IF('Data Input - General'!$F$10=\"Yes\",Calc_Option4!R$81,0)+IF('Data Input - General'!$F$12=\"Yes\",Calc_Option4!R$75,0)","v":0},{"$f":"S80+IF('Data Input - General'!$F$10=\"Yes\",Calc_Option4!S$81,0)+IF('Data Input - General'!$F$12=\"Yes\",Calc_Option4!S$75,0)","v":0},{"$f":"T80+IF('Data Input - General'!$F$10=\"Yes\",Calc_Option4!T$81,0)+IF('Data Input - General'!$F$12=\"Yes\",Calc_Option4!T$75,0)","v":0},{"$f":"U80+IF('Data Input - General'!$F$10=\"Yes\",Calc_Option4!U$81,0)+IF('Data Input - General'!$F$12=\"Yes\",Calc_Option4!U$75,0)","v":0},{"$f":"V80+IF('Data Input - General'!$F$10=\"Yes\",Calc_Option4!V$81,0)+IF('Data Input - General'!$F$12=\"Yes\",Calc_Option4!V$75,0)","v":0},{"$f":"W80+IF('Data Input - General'!$F$10=\"Yes\",Calc_Option4!W$81,0)+IF('Data Input - General'!$F$12=\"Yes\",Calc_Option4!W$75,0)","v":0},{"$f":"X80+IF('Data Input - General'!$F$10=\"Yes\",Calc_Option4!X$81,0)+IF('Data Input - General'!$F$12=\"Yes\",Calc_Option4!X$75,0)","v":0},{"$f":"Y80+IF('Data Input - General'!$F$10=\"Yes\",Calc_Option4!Y$81,0)+IF('Data Input - General'!$F$12=\"Yes\",Calc_Option4!Y$75,0)","v":0},{"$f":"Z80+IF('Data Input - General'!$F$10=\"Yes\",Calc_Option4!Z$81,0)+IF('Data Input - General'!$F$12=\"Yes\",Calc_Option4!Z$75,0)","v":0},{"$f":"AA80+IF('Data Input - General'!$F$10=\"Yes\",Calc_Option4!AA$81,0)+IF('Data Input - General'!$F$12=\"Yes\",Calc_Option4!AA$75,0)","v":0},{"$f":"AB80+IF('Data Input - General'!$F$10=\"Yes\",Calc_Option4!AB$81,0)+IF('Data Input - General'!$F$12=\"Yes\",Calc_Option4!AB$75,0)","v":0},{"$f":"AC80+IF('Data Input - General'!$F$10=\"Yes\",Calc_Option4!AC$81,0)+IF('Data Input - General'!$F$12=\"Yes\",Calc_Option4!AC$75,0)","v":0},{"$f":"AD80+IF('Data Input - General'!$F$10=\"Yes\",Calc_Option4!AD$81,0)+IF('Data Input - General'!$F$12=\"Yes\",Calc_Option4!AD$75,0)","v":0},{"$f":"AE80+IF('Data Input - General'!$F$10=\"Yes\",Calc_Option4!AE$81,0)+IF('Data Input - General'!$F$12=\"Yes\",Calc_Option4!AE$75,0)","v":0},{"$f":"AF80+IF('Data Input - General'!$F$10=\"Yes\",Calc_Option4!AF$81,0)+IF('Data Input - General'!$F$12=\"Yes\",Calc_Option4!AF$75,0)","v":0},{"$f":"AG80+IF('Data Input - General'!$F$10=\"Yes\",Calc_Option4!AG$81,0)+IF('Data Input - General'!$F$12=\"Yes\",Calc_Option4!AG$75,0)","v":0},{"$f":"AH80+IF('Data Input - General'!$F$10=\"Yes\",Calc_Option4!AH$81,0)+IF('Data Input - General'!$F$12=\"Yes\",Calc_Option4!AH$75,0)","v":0},{"$f":"AI80+IF('Data Input - General'!$F$10=\"Yes\",Calc_Option4!AI$81,0)+IF('Data Input - General'!$F$12=\"Yes\",Calc_Option4!AI$75,0)","v":0},{"$f":"AJ80+IF('Data Input - General'!$F$10=\"Yes\",Calc_Option4!AJ$81,0)+IF('Data Input - General'!$F$12=\"Yes\",Calc_Option4!AJ$75,0)","v":0},{"$f":"AK80+IF('Data Input - General'!$F$10=\"Yes\",Calc_Option4!AK$81,0)+IF('Data Input - General'!$F$12=\"Yes\",Calc_Option4!AK$75,0)","v":0},{"$f":"AL80+IF('Data Input - General'!$F$10=\"Yes\",Calc_Option4!AL$81,0)+IF('Data Input - General'!$F$12=\"Yes\",Calc_Option4!AL$75,0)","v":0},{"$f":"AM80+IF('Data Input - General'!$F$10=\"Yes\",Calc_Option4!AM$81,0)+IF('Data Input - General'!$F$12=\"Yes\",Calc_Option4!AM$75,0)","v":0},{"$f":"AN80+IF('Data Input - General'!$F$10=\"Yes\",Calc_Option4!AN$81,0)+IF('Data Input - General'!$F$12=\"Yes\",Calc_Option4!AN$75,0)","v":0},{"$f":"AO80+IF('Data Input - General'!$F$10=\"Yes\",Calc_Option4!AO$81,0)+IF('Data Input - General'!$F$12=\"Yes\",Calc_Option4!AO$75,0)","v":0},{"$f":"AP80+IF('Data Input - General'!$F$10=\"Yes\",Calc_Option4!AP$81,0)+IF('Data Input - General'!$F$12=\"Yes\",Calc_Option4!AP$75,0)","v":0},{"$f":"AQ80+IF('Data Input - General'!$F$10=\"Yes\",Calc_Option4!AQ$81,0)+IF('Data Input - General'!$F$12=\"Yes\",Calc_Option4!AQ$75,0)","v":0},{"$f":"AR80+IF('Data Input - General'!$F$10=\"Yes\",Calc_Option4!AR$81,0)+IF('Data Input - General'!$F$12=\"Yes\",Calc_Option4!AR$75,0)","v":0},{"$f":"AS80+IF('Data Input - General'!$F$10=\"Yes\",Calc_Option4!AS$81,0)+IF('Data Input - General'!$F$12=\"Yes\",Calc_Option4!AS$75,0)","v":0},{"$f":"AT80+IF('Data Input - General'!$F$10=\"Yes\",Calc_Option4!AT$81,0)+IF('Data Input - General'!$F$12=\"Yes\",Calc_Option4!AT$75,0)","v":0},{"$f":"AU80+IF('Data Input - General'!$F$10=\"Yes\",Calc_Option4!AU$81,0)+IF('Data Input - General'!$F$12=\"Yes\",Calc_Option4!AU$75,0)","v":0},{"$f":"AV80+IF('Data Input - General'!$F$10=\"Yes\",Calc_Option4!AV$81,0)+IF('Data Input - General'!$F$12=\"Yes\",Calc_Option4!AV$75,0)","v":0},{"$f":"AW80+IF('Data Input - General'!$F$10=\"Yes\",Calc_Option4!AW$81,0)+IF('Data Input - General'!$F$12=\"Yes\",Calc_Option4!AW$75,0)","v":0},{"$f":"AX80+IF('Data Input - General'!$F$10=\"Yes\",Calc_Option4!AX$81,0)+IF('Data Input - General'!$F$12=\"Yes\",Calc_Option4!AX$75,0)","v":0},{"$f":"AY80+IF('Data Input - General'!$F$10=\"Yes\",Calc_Option4!AY$81,0)+IF('Data Input - General'!$F$12=\"Yes\",Calc_Option4!AY$75,0)","v":0},{"$f":"AZ80+IF('Data Input - General'!$F$10=\"Yes\",Calc_Option4!AZ$81,0)+IF('Data Input - General'!$F$12=\"Yes\",Calc_Option4!AZ$75,0)","v":0},{"$f":"BA80+IF('Data Input - General'!$F$10=\"Yes\",Calc_Option4!BA$81,0)+IF('Data Input - General'!$F$12=\"Yes\",Calc_Option4!BA$75,0)","v":0},{"$f":"BB80+IF('Data Input - General'!$F$10=\"Yes\",Calc_Option4!BB$81,0)+IF('Data Input - General'!$F$12=\"Yes\",Calc_Option4!BB$75,0)","v":0},{"$f":"BC80+IF('Data Input - General'!$F$10=\"Yes\",Calc_Option4!BC$81,0)+IF('Data Input - General'!$F$12=\"Yes\",Calc_Option4!BC$75,0)","v":0},{"$f":"BD80+IF('Data Input - General'!$F$10=\"Yes\",Calc_Option4!BD$81,0)+IF('Data Input - General'!$F$12=\"Yes\",Calc_Option4!BD$75,0)","v":0},{"$f":"BE80+IF('Data Input - General'!$F$10=\"Yes\",Calc_Option4!BE$81,0)+IF('Data Input - General'!$F$12=\"Yes\",Calc_Option4!BE$75,0)","v":0},{"$f":"BF80+IF('Data Input - General'!$F$10=\"Yes\",Calc_Option4!BF$81,0)+IF('Data Input - General'!$F$12=\"Yes\",Calc_Option4!BF$75,0)","v":0},{"$f":"BG80+IF('Data Input - General'!$F$10=\"Yes\",Calc_Option4!BG$81,0)+IF('Data Input - General'!$F$12=\"Yes\",Calc_Option4!BG$75,0)","v":0},{"$f":"BH80+IF('Data Input - General'!$F$10=\"Yes\",Calc_Option4!BH$81,0)+IF('Data Input - General'!$F$12=\"Yes\",Calc_Option4!BH$75,0)","v":0},{"$f":"BI80+IF('Data Input - General'!$F$10=\"Yes\",Calc_Option4!BI$81,0)+IF('Data Input - General'!$F$12=\"Yes\",Calc_Option4!BI$75,0)","v":0},{"$f":"BJ80+IF('Data Input - General'!$F$10=\"Yes\",Calc_Option4!BJ$81,0)+IF('Data Input - General'!$F$12=\"Yes\",Calc_Option4!BJ$75,0)","v":0},{"$f":"BK80+IF('Data Input - General'!$F$10=\"Yes\",Calc_Option4!BK$81,0)+IF('Data Input - General'!$F$12=\"Yes\",Calc_Option4!BK$75,0)","v":0},{"$f":"BL80+IF('Data Input - General'!$F$10=\"Yes\",Calc_Option4!BL$81,0)+IF('Data Input - General'!$F$12=\"Yes\",Calc_Option4!BL$75,0)","v":0},{"$f":"BM80+IF('Data Input - General'!$F$10=\"Yes\",Calc_Option4!BM$81,0)+IF('Data Input - General'!$F$12=\"Yes\",Calc_Option4!BM$75,0)","v":0},{"$f":"BN80+IF('Data Input - General'!$F$10=\"Yes\",Calc_Option4!BN$81,0)+IF('Data Input - General'!$F$12=\"Yes\",Calc_Option4!BN$75,0)","v":0},{"$f":"BO80+IF('Data Input - General'!$F$10=\"Yes\",Calc_Option4!BO$81,0)+IF('Data Input - General'!$F$12=\"Yes\",Calc_Option4!BO$75,0)","v":0},{"$f":"BP80+IF('Data Input - General'!$F$10=\"Yes\",Calc_Option4!BP$81,0)+IF('Data Input - General'!$F$12=\"Yes\",Calc_Option4!BP$75,0)","v":0},{"$f":"BQ80+IF('Data Input - General'!$F$10=\"Yes\",Calc_Option4!BQ$81,0)+IF('Data Input - General'!$F$12=\"Yes\",Calc_Option4!BQ$75,0)","v":0},{"$f":"BR80+IF('Data Input - General'!$F$10=\"Yes\",Calc_Option4!BR$81,0)+IF('Data Input - General'!$F$12=\"Yes\",Calc_Option4!BR$75,0)","v":0},{"$f":"BS80+IF('Data Input - General'!$F$10=\"Yes\",Calc_Option4!BS$81,0)+IF('Data Input - General'!$F$12=\"Yes\",Calc_Option4!BS$75,0)","v":0},{"$f":"BT80+IF('Data Input - General'!$F$10=\"Yes\",Calc_Option4!BT$81,0)+IF('Data Input - General'!$F$12=\"Yes\",Calc_Option4!BT$75,0)","v":0},{"$f":"BU80+IF('Data Input - General'!$F$10=\"Yes\",Calc_Option4!BU$81,0)+IF('Data Input - General'!$F$12=\"Yes\",Calc_Option4!BU$75,0)","v":0},{"$f":"BV80+IF('Data Input - General'!$F$10=\"Yes\",Calc_Option4!BV$81,0)+IF('Data Input - General'!$F$12=\"Yes\",Calc_Option4!BV$75,0)","v":0},{"$f":"BW80+IF('Data Input - General'!$F$10=\"Yes\",Calc_Option4!BW$81,0)+IF('Data Input - General'!$F$12=\"Yes\",Calc_Option4!BW$75,0)","v":0},{"$f":"BX80+IF('Data Input - General'!$F$10=\"Yes\",Calc_Option4!BX$81,0)+IF('Data Input - General'!$F$12=\"Yes\",Calc_Option4!BX$75,0)","v":0},{"$f":"BY80+IF('Data Input - General'!$F$10=\"Yes\",Calc_Option4!BY$81,0)+IF('Data Input - General'!$F$12=\"Yes\",Calc_Option4!BY$75,0)","v":0},{"$f":"BZ80+IF('Data Input - General'!$F$10=\"Yes\",Calc_Option4!BZ$81,0)+IF('Data Input - General'!$F$12=\"Yes\",Calc_Option4!BZ$75,0)","v":0},{"$f":"CA80+IF('Data Input - General'!$F$10=\"Yes\",Calc_Option4!CA$81,0)+IF('Data Input - General'!$F$12=\"Yes\",Calc_Option4!CA$75,0)","v":0},{"$f":"CB80+IF('Data Input - General'!$F$10=\"Yes\",Calc_Option4!CB$81,0)+IF('Data Input - General'!$F$12=\"Yes\",Calc_Option4!CB$75,0)","v":0},{"$f":"CC80+IF('Data Input - General'!$F$10=\"Yes\",Calc_Option4!CC$81,0)+IF('Data Input - General'!$F$12=\"Yes\",Calc_Option4!CC$75,0)","v":0},{"$f":"CD80+IF('Data Input - General'!$F$10=\"Yes\",Calc_Option4!CD$81,0)+IF('Data Input - General'!$F$12=\"Yes\",Calc_Option4!CD$75,0)","v":0},{"$f":"CE80+IF('Data Input - General'!$F$10=\"Yes\",Calc_Option4!CE$81,0)+IF('Data Input - General'!$F$12=\"Yes\",Calc_Option4!CE$75,0)","v":0},{"$f":"CF80+IF('Data Input - General'!$F$10=\"Yes\",Calc_Option4!CF$81,0)+IF('Data Input - General'!$F$12=\"Yes\",Calc_Option4!CF$75,0)","v":0},{"$f":"CG80+IF('Data Input - General'!$F$10=\"Yes\",Calc_Option4!CG$81,0)+IF('Data Input - General'!$F$12=\"Yes\",Calc_Option4!CG$75,0)","v":0},{"$f":"CH80+IF('Data Input - General'!$F$10=\"Yes\",Calc_Option4!CH$81,0)+IF('Data Input - General'!$F$12=\"Yes\",Calc_Option4!CH$75,0)","v":0},{"$f":"CI80+IF('Data Input - General'!$F$10=\"Yes\",Calc_Option4!CI$81,0)+IF('Data Input - General'!$F$12=\"Yes\",Calc_Option4!CI$75,0)","v":0},{"$f":"CJ80+IF('Data Input - General'!$F$10=\"Yes\",Calc_Option4!CJ$81,0)+IF('Data Input - General'!$F$12=\"Yes\",Calc_Option4!CJ$75,0)","v":0},{"$f":"CK80+IF('Data Input - General'!$F$10=\"Yes\",Calc_Option4!CK$81,0)+IF('Data Input - General'!$F$12=\"Yes\",Calc_Option4!CK$75,0)","v":0},{"$f":"CL80+IF('Data Input - General'!$F$10=\"Yes\",Calc_Option4!CL$81,0)+IF('Data Input - General'!$F$12=\"Yes\",Calc_Option4!CL$75,0)","v":0},{"$f":"CM80+IF('Data Input - General'!$F$10=\"Yes\",Calc_Option4!CM$81,0)+IF('Data Input - General'!$F$12=\"Yes\",Calc_Option4!CM$75,0)","v":0},{"$f":"CN80+IF('Data Input - General'!$F$10=\"Yes\",Calc_Option4!CN$81,0)+IF('Data Input - General'!$F$12=\"Yes\",Calc_Option4!CN$75,0)","v":0},{"$f":"CO80+IF('Data Input - General'!$F$10=\"Yes\",Calc_Option4!CO$81,0)+IF('Data Input - General'!$F$12=\"Yes\",Calc_Option4!CO$75,0)","v":0},{"$f":"CP80+IF('Data Input - General'!$F$10=\"Yes\",Calc_Option4!CP$81,0)+IF('Data Input - General'!$F$12=\"Yes\",Calc_Option4!CP$75,0)","v":0},{"$f":"CQ80+IF('Data Input - General'!$F$10=\"Yes\",Calc_Option4!CQ$81,0)+IF('Data Input - General'!$F$12=\"Yes\",Calc_Option4!CQ$75,0)","v":0},{"$f":"CR80+IF('Data Input - General'!$F$10=\"Yes\",Calc_Option4!CR$81,0)+IF('Data Input - General'!$F$12=\"Yes\",Calc_Option4!CR$75,0)","v":0},{"$f":"CS80+IF('Data Input - General'!$F$10=\"Yes\",Calc_Option4!CS$81,0)+IF('Data Input - General'!$F$12=\"Yes\",Calc_Option4!CS$75,0)","v":0},{"$f":"CT80+IF('Data Input - General'!$F$10=\"Yes\",Calc_Option4!CT$81,0)+IF('Data Input - General'!$F$12=\"Yes\",Calc_Option4!CT$75,0)","v":0},{"$f":"CU80+IF('Data Input - General'!$F$10=\"Yes\",Calc_Option4!CU$81,0)+IF('Data Input - General'!$F$12=\"Yes\",Calc_Option4!CU$75,0)","v":0},{"$f":"CV80+IF('Data Input - General'!$F$10=\"Yes\",Calc_Option4!CV$81,0)+IF('Data Input - General'!$F$12=\"Yes\",Calc_Option4!CV$75,0)","v":0},{"$f":"CW80+IF('Data Input - General'!$F$10=\"Yes\",Calc_Option4!CW$81,0)+IF('Data Input - General'!$F$12=\"Yes\",Calc_Option4!CW$75,0)","v":0},{"$f":"CX80+IF('Data Input - General'!$F$10=\"Yes\",Calc_Option4!CX$81,0)+IF('Data Input - General'!$F$12=\"Yes\",Calc_Option4!CX$75,0)","v":0},{"$f":"CY80+IF('Data Input - General'!$F$10=\"Yes\",Calc_Option4!CY$81,0)+IF('Data Input - General'!$F$12=\"Yes\",Calc_Option4!CY$75,0)","v":0}]
[null,"Non-traded","tCO2e",{"$f":"IF('Data Input - General'!$F$10=\"Yes\",0,Calc_Option4!D$81)+IF('Data Input - General'!$F$12=\"Yes\",0,Calc_Option4!D$75)","v":0},{"$f":"IF('Data Input - General'!$F$10=\"Yes\",0,Calc_Option4!E$81)+IF('Data Input - General'!$F$12=\"Yes\",0,Calc_Option4!E$75)","v":0},{"$f":"IF('Data Input - General'!$F$10=\"Yes\",0,Calc_Option4!F$81)+IF('Data Input - General'!$F$12=\"Yes\",0,Calc_Option4!F$75)","v":0},{"$f":"IF('Data Input - General'!$F$10=\"Yes\",0,Calc_Option4!G$81)+IF('Data Input - General'!$F$12=\"Yes\",0,Calc_Option4!G$75)","v":0},{"$f":"IF('Data Input - General'!$F$10=\"Yes\",0,Calc_Option4!H$81)+IF('Data Input - General'!$F$12=\"Yes\",0,Calc_Option4!H$75)","v":0},{"$f":"IF('Data Input - General'!$F$10=\"Yes\",0,Calc_Option4!I$81)+IF('Data Input - General'!$F$12=\"Yes\",0,Calc_Option4!I$75)","v":0},{"$f":"IF('Data Input - General'!$F$10=\"Yes\",0,Calc_Option4!J$81)+IF('Data Input - General'!$F$12=\"Yes\",0,Calc_Option4!J$75)","v":0},{"$f":"IF('Data Input - General'!$F$10=\"Yes\",0,Calc_Option4!K$81)+IF('Data Input - General'!$F$12=\"Yes\",0,Calc_Option4!K$75)","v":0},{"$f":"IF('Data Input - General'!$F$10=\"Yes\",0,Calc_Option4!L$81)+IF('Data Input - General'!$F$12=\"Yes\",0,Calc_Option4!L$75)","v":0},{"$f":"IF('Data Input - General'!$F$10=\"Yes\",0,Calc_Option4!M$81)+IF('Data Input - General'!$F$12=\"Yes\",0,Calc_Option4!M$75)","v":0},{"$f":"IF('Data Input - General'!$F$10=\"Yes\",0,Calc_Option4!N$81)+IF('Data Input - General'!$F$12=\"Yes\",0,Calc_Option4!N$75)","v":0},{"$f":"IF('Data Input - General'!$F$10=\"Yes\",0,Calc_Option4!O$81)+IF('Data Input - General'!$F$12=\"Yes\",0,Calc_Option4!O$75)","v":0},{"$f":"IF('Data Input - General'!$F$10=\"Yes\",0,Calc_Option4!P$81)+IF('Data Input - General'!$F$12=\"Yes\",0,Calc_Option4!P$75)","v":0},{"$f":"IF('Data Input - General'!$F$10=\"Yes\",0,Calc_Option4!Q$81)+IF('Data Input - General'!$F$12=\"Yes\",0,Calc_Option4!Q$75)","v":0},{"$f":"IF('Data Input - General'!$F$10=\"Yes\",0,Calc_Option4!R$81)+IF('Data Input - General'!$F$12=\"Yes\",0,Calc_Option4!R$75)","v":0},{"$f":"IF('Data Input - General'!$F$10=\"Yes\",0,Calc_Option4!S$81)+IF('Data Input - General'!$F$12=\"Yes\",0,Calc_Option4!S$75)","v":0},{"$f":"IF('Data Input - General'!$F$10=\"Yes\",0,Calc_Option4!T$81)+IF('Data Input - General'!$F$12=\"Yes\",0,Calc_Option4!T$75)","v":0},{"$f":"IF('Data Input - General'!$F$10=\"Yes\",0,Calc_Option4!U$81)+IF('Data Input - General'!$F$12=\"Yes\",0,Calc_Option4!U$75)","v":0},{"$f":"IF('Data Input - General'!$F$10=\"Yes\",0,Calc_Option4!V$81)+IF('Data Input - General'!$F$12=\"Yes\",0,Calc_Option4!V$75)","v":0},{"$f":"IF('Data Input - General'!$F$10=\"Yes\",0,Calc_Option4!W$81)+IF('Data Input - General'!$F$12=\"Yes\",0,Calc_Option4!W$75)","v":0},{"$f":"IF('Data Input - General'!$F$10=\"Yes\",0,Calc_Option4!X$81)+IF('Data Input - General'!$F$12=\"Yes\",0,Calc_Option4!X$75)","v":0},{"$f":"IF('Data Input - General'!$F$10=\"Yes\",0,Calc_Option4!Y$81)+IF('Data Input - General'!$F$12=\"Yes\",0,Calc_Option4!Y$75)","v":0},{"$f":"IF('Data Input - General'!$F$10=\"Yes\",0,Calc_Option4!Z$81)+IF('Data Input - General'!$F$12=\"Yes\",0,Calc_Option4!Z$75)","v":0},{"$f":"IF('Data Input - General'!$F$10=\"Yes\",0,Calc_Option4!AA$81)+IF('Data Input - General'!$F$12=\"Yes\",0,Calc_Option4!AA$75)","v":0},{"$f":"IF('Data Input - General'!$F$10=\"Yes\",0,Calc_Option4!AB$81)+IF('Data Input - General'!$F$12=\"Yes\",0,Calc_Option4!AB$75)","v":0},{"$f":"IF('Data Input - General'!$F$10=\"Yes\",0,Calc_Option4!AC$81)+IF('Data Input - General'!$F$12=\"Yes\",0,Calc_Option4!AC$75)","v":0},{"$f":"IF('Data Input - General'!$F$10=\"Yes\",0,Calc_Option4!AD$81)+IF('Data Input - General'!$F$12=\"Yes\",0,Calc_Option4!AD$75)","v":0},{"$f":"IF('Data Input - General'!$F$10=\"Yes\",0,Calc_Option4!AE$81)+IF('Data Input - General'!$F$12=\"Yes\",0,Calc_Option4!AE$75)","v":0},{"$f":"IF('Data Input - General'!$F$10=\"Yes\",0,Calc_Option4!AF$81)+IF('Data Input - General'!$F$12=\"Yes\",0,Calc_Option4!AF$75)","v":0},{"$f":"IF('Data Input - General'!$F$10=\"Yes\",0,Calc_Option4!AG$81)+IF('Data Input - General'!$F$12=\"Yes\",0,Calc_Option4!AG$75)","v":0},{"$f":"IF('Data Input - General'!$F$10=\"Yes\",0,Calc_Option4!AH$81)+IF('Data Input - General'!$F$12=\"Yes\",0,Calc_Option4!AH$75)","v":0},{"$f":"IF('Data Input - General'!$F$10=\"Yes\",0,Calc_Option4!AI$81)+IF('Data Input - General'!$F$12=\"Yes\",0,Calc_Option4!AI$75)","v":0},{"$f":"IF('Data Input - General'!$F$10=\"Yes\",0,Calc_Option4!AJ$81)+IF('Data Input - General'!$F$12=\"Yes\",0,Calc_Option4!AJ$75)","v":0},{"$f":"IF('Data Input - General'!$F$10=\"Yes\",0,Calc_Option4!AK$81)+IF('Data Input - General'!$F$12=\"Yes\",0,Calc_Option4!AK$75)","v":0},{"$f":"IF('Data Input - General'!$F$10=\"Yes\",0,Calc_Option4!AL$81)+IF('Data Input - General'!$F$12=\"Yes\",0,Calc_Option4!AL$75)","v":0},{"$f":"IF('Data Input - General'!$F$10=\"Yes\",0,Calc_Option4!AM$81)+IF('Data Input - General'!$F$12=\"Yes\",0,Calc_Option4!AM$75)","v":0},{"$f":"IF('Data Input - General'!$F$10=\"Yes\",0,Calc_Option4!AN$81)+IF('Data Input - General'!$F$12=\"Yes\",0,Calc_Option4!AN$75)","v":0},{"$f":"IF('Data Input - General'!$F$10=\"Yes\",0,Calc_Option4!AO$81)+IF('Data Input - General'!$F$12=\"Yes\",0,Calc_Option4!AO$75)","v":0},{"$f":"IF('Data Input - General'!$F$10=\"Yes\",0,Calc_Option4!AP$81)+IF('Data Input - General'!$F$12=\"Yes\",0,Calc_Option4!AP$75)","v":0},{"$f":"IF('Data Input - General'!$F$10=\"Yes\",0,Calc_Option4!AQ$81)+IF('Data Input - General'!$F$12=\"Yes\",0,Calc_Option4!AQ$75)","v":0},{"$f":"IF('Data Input - General'!$F$10=\"Yes\",0,Calc_Option4!AR$81)+IF('Data Input - General'!$F$12=\"Yes\",0,Calc_Option4!AR$75)","v":0},{"$f":"IF('Data Input - General'!$F$10=\"Yes\",0,Calc_Option4!AS$81)+IF('Data Input - General'!$F$12=\"Yes\",0,Calc_Option4!AS$75)","v":0},{"$f":"IF('Data Input - General'!$F$10=\"Yes\",0,Calc_Option4!AT$81)+IF('Data Input - General'!$F$12=\"Yes\",0,Calc_Option4!AT$75)","v":0},{"$f":"IF('Data Input - General'!$F$10=\"Yes\",0,Calc_Option4!AU$81)+IF('Data Input - General'!$F$12=\"Yes\",0,Calc_Option4!AU$75)","v":0},{"$f":"IF('Data Input - General'!$F$10=\"Yes\",0,Calc_Option4!AV$81)+IF('Data Input - General'!$F$12=\"Yes\",0,Calc_Option4!AV$75)","v":0},{"$f":"IF('Data Input - General'!$F$10=\"Yes\",0,Calc_Option4!AW$81)+IF('Data Input - General'!$F$12=\"Yes\",0,Calc_Option4!AW$75)","v":0},{"$f":"IF('Data Input - General'!$F$10=\"Yes\",0,Calc_Option4!AX$81)+IF('Data Input - General'!$F$12=\"Yes\",0,Calc_Option4!AX$75)","v":0},{"$f":"IF('Data Input - General'!$F$10=\"Yes\",0,Calc_Option4!AY$81)+IF('Data Input - General'!$F$12=\"Yes\",0,Calc_Option4!AY$75)","v":0},{"$f":"IF('Data Input - General'!$F$10=\"Yes\",0,Calc_Option4!AZ$81)+IF('Data Input - General'!$F$12=\"Yes\",0,Calc_Option4!AZ$75)","v":0},{"$f":"IF('Data Input - General'!$F$10=\"Yes\",0,Calc_Option4!BA$81)+IF('Data Input - General'!$F$12=\"Yes\",0,Calc_Option4!BA$75)","v":0},{"$f":"IF('Data Input - General'!$F$10=\"Yes\",0,Calc_Option4!BB$81)+IF('Data Input - General'!$F$12=\"Yes\",0,Calc_Option4!BB$75)","v":0},{"$f":"IF('Data Input - General'!$F$10=\"Yes\",0,Calc_Option4!BC$81)+IF('Data Input - General'!$F$12=\"Yes\",0,Calc_Option4!BC$75)","v":0},{"$f":"IF('Data Input - General'!$F$10=\"Yes\",0,Calc_Option4!BD$81)+IF('Data Input - General'!$F$12=\"Yes\",0,Calc_Option4!BD$75)","v":0},{"$f":"IF('Data Input - General'!$F$10=\"Yes\",0,Calc_Option4!BE$81)+IF('Data Input - General'!$F$12=\"Yes\",0,Calc_Option4!BE$75)","v":0},{"$f":"IF('Data Input - General'!$F$10=\"Yes\",0,Calc_Option4!BF$81)+IF('Data Input - General'!$F$12=\"Yes\",0,Calc_Option4!BF$75)","v":0},{"$f":"IF('Data Input - General'!$F$10=\"Yes\",0,Calc_Option4!BG$81)+IF('Data Input - General'!$F$12=\"Yes\",0,Calc_Option4!BG$75)","v":0},{"$f":"IF('Data Input - General'!$F$10=\"Yes\",0,Calc_Option4!BH$81)+IF('Data Input - General'!$F$12=\"Yes\",0,Calc_Option4!BH$75)","v":0},{"$f":"IF('Data Input - General'!$F$10=\"Yes\",0,Calc_Option4!BI$81)+IF('Data Input - General'!$F$12=\"Yes\",0,Calc_Option4!BI$75)","v":0},{"$f":"IF('Data Input - General'!$F$10=\"Yes\",0,Calc_Option4!BJ$81)+IF('Data Input - General'!$F$12=\"Yes\",0,Calc_Option4!BJ$75)","v":0},{"$f":"IF('Data Input - General'!$F$10=\"Yes\",0,Calc_Option4!BK$81)+IF('Data Input - General'!$F$12=\"Yes\",0,Calc_Option4!BK$75)","v":0},{"$f":"IF('Data Input - General'!$F$10=\"Yes\",0,Calc_Option4!BL$81)+IF('Data Input - General'!$F$12=\"Yes\",0,Calc_Option4!BL$75)","v":0},{"$f":"IF('Data Input - General'!$F$10=\"Yes\",0,Calc_Option4!BM$81)+IF('Data Input - General'!$F$12=\"Yes\",0,Calc_Option4!BM$75)","v":0},{"$f":"IF('Data Input - General'!$F$10=\"Yes\",0,Calc_Option4!BN$81)+IF('Data Input - General'!$F$12=\"Yes\",0,Calc_Option4!BN$75)","v":0},{"$f":"IF('Data Input - General'!$F$10=\"Yes\",0,Calc_Option4!BO$81)+IF('Data Input - General'!$F$12=\"Yes\",0,Calc_Option4!BO$75)","v":0},{"$f":"IF('Data Input - General'!$F$10=\"Yes\",0,Calc_Option4!BP$81)+IF('Data Input - General'!$F$12=\"Yes\",0,Calc_Option4!BP$75)","v":0},{"$f":"IF('Data Input - General'!$F$10=\"Yes\",0,Calc_Option4!BQ$81)+IF('Data Input - General'!$F$12=\"Yes\",0,Calc_Option4!BQ$75)","v":0},{"$f":"IF('Data Input - General'!$F$10=\"Yes\",0,Calc_Option4!BR$81)+IF('Data Input - General'!$F$12=\"Yes\",0,Calc_Option4!BR$75)","v":0},{"$f":"IF('Data Input - General'!$F$10=\"Yes\",0,Calc_Option4!BS$81)+IF('Data Input - General'!$F$12=\"Yes\",0,Calc_Option4!BS$75)","v":0},{"$f":"IF('Data Input - General'!$F$10=\"Yes\",0,Calc_Option4!BT$81)+IF('Data Input - General'!$F$12=\"Yes\",0,Calc_Option4!BT$75)","v":0},{"$f":"IF('Data Input - General'!$F$10=\"Yes\",0,Calc_Option4!BU$81)+IF('Data Input - General'!$F$12=\"Yes\",0,Calc_Option4!BU$75)","v":0},{"$f":"IF('Data Input - General'!$F$10=\"Yes\",0,Calc_Option4!BV$81)+IF('Data Input - General'!$F$12=\"Yes\",0,Calc_Option4!BV$75)","v":0},{"$f":"IF('Data Input - General'!$F$10=\"Yes\",0,Calc_Option4!BW$81)+IF('Data Input - General'!$F$12=\"Yes\",0,Calc_Option4!BW$75)","v":0},{"$f":"IF('Data Input - General'!$F$10=\"Yes\",0,Calc_Option4!BX$81)+IF('Data Input - General'!$F$12=\"Yes\",0,Calc_Option4!BX$75)","v":0},{"$f":"IF('Data Input - General'!$F$10=\"Yes\",0,Calc_Option4!BY$81)+IF('Data Input - General'!$F$12=\"Yes\",0,Calc_Option4!BY$75)","v":0},{"$f":"IF('Data Input - General'!$F$10=\"Yes\",0,Calc_Option4!BZ$81)+IF('Data Input - General'!$F$12=\"Yes\",0,Calc_Option4!BZ$75)","v":0},{"$f":"IF('Data Input - General'!$F$10=\"Yes\",0,Calc_Option4!CA$81)+IF('Data Input - General'!$F$12=\"Yes\",0,Calc_Option4!CA$75)","v":0},{"$f":"IF('Data Input - General'!$F$10=\"Yes\",0,Calc_Option4!CB$81)+IF('Data Input - General'!$F$12=\"Yes\",0,Calc_Option4!CB$75)","v":0},{"$f":"IF('Data Input - General'!$F$10=\"Yes\",0,Calc_Option4!CC$81)+IF('Data Input - General'!$F$12=\"Yes\",0,Calc_Option4!CC$75)","v":0},{"$f":"IF('Data Input - General'!$F$10=\"Yes\",0,Calc_Option4!CD$81)+IF('Data Input - General'!$F$12=\"Yes\",0,Calc_Option4!CD$75)","v":0},{"$f":"IF('Data Input - General'!$F$10=\"Yes\",0,Calc_Option4!CE$81)+IF('Data Input - General'!$F$12=\"Yes\",0,Calc_Option4!CE$75)","v":0},{"$f":"IF('Data Input - General'!$F$10=\"Yes\",0,Calc_Option4!CF$81)+IF('Data Input - General'!$F$12=\"Yes\",0,Calc_Option4!CF$75)","v":0},{"$f":"IF('Data Input - General'!$F$10=\"Yes\",0,Calc_Option4!CG$81)+IF('Data Input - General'!$F$12=\"Yes\",0,Calc_Option4!CG$75)","v":0},{"$f":"IF('Data Input - General'!$F$10=\"Yes\",0,Calc_Option4!CH$81)+IF('Data Input - General'!$F$12=\"Yes\",0,Calc_Option4!CH$75)","v":0},{"$f":"IF('Data Input - General'!$F$10=\"Yes\",0,Calc_Option4!CI$81)+IF('Data Input - General'!$F$12=\"Yes\",0,Calc_Option4!CI$75)","v":0},{"$f":"IF('Data Input - General'!$F$10=\"Yes\",0,Calc_Option4!CJ$81)+IF('Data Input - General'!$F$12=\"Yes\",0,Calc_Option4!CJ$75)","v":0},{"$f":"IF('Data Input - General'!$F$10=\"Yes\",0,Calc_Option4!CK$81)+IF('Data Input - General'!$F$12=\"Yes\",0,Calc_Option4!CK$75)","v":0},{"$f":"IF('Data Input - General'!$F$10=\"Yes\",0,Calc_Option4!CL$81)+IF('Data Input - General'!$F$12=\"Yes\",0,Calc_Option4!CL$75)","v":0},{"$f":"IF('Data Input - General'!$F$10=\"Yes\",0,Calc_Option4!CM$81)+IF('Data Input - General'!$F$12=\"Yes\",0,Calc_Option4!CM$75)","v":0},{"$f":"IF('Data Input - General'!$F$10=\"Yes\",0,Calc_Option4!CN$81)+IF('Data Input - General'!$F$12=\"Yes\",0,Calc_Option4!CN$75)","v":0},{"$f":"IF('Data Input - General'!$F$10=\"Yes\",0,Calc_Option4!CO$81)+IF('Data Input - General'!$F$12=\"Yes\",0,Calc_Option4!CO$75)","v":0},{"$f":"IF('Data Input - General'!$F$10=\"Yes\",0,Calc_Option4!CP$81)+IF('Data Input - General'!$F$12=\"Yes\",0,Calc_Option4!CP$75)","v":0},{"$f":"IF('Data Input - General'!$F$10=\"Yes\",0,Calc_Option4!CQ$81)+IF('Data Input - General'!$F$12=\"Yes\",0,Calc_Option4!CQ$75)","v":0},{"$f":"IF('Data Input - General'!$F$10=\"Yes\",0,Calc_Option4!CR$81)+IF('Data Input - General'!$F$12=\"Yes\",0,Calc_Option4!CR$75)","v":0},{"$f":"IF('Data Input - General'!$F$10=\"Yes\",0,Calc_Option4!CS$81)+IF('Data Input - General'!$F$12=\"Yes\",0,Calc_Option4!CS$75)","v":0},{"$f":"IF('Data Input - General'!$F$10=\"Yes\",0,Calc_Option4!CT$81)+IF('Data Input - General'!$F$12=\"Yes\",0,Calc_Option4!CT$75)","v":0},{"$f":"IF('Data Input - General'!$F$10=\"Yes\",0,Calc_Option4!CU$81)+IF('Data Input - General'!$F$12=\"Yes\",0,Calc_Option4!CU$75)","v":0},{"$f":"IF('Data Input - General'!$F$10=\"Yes\",0,Calc_Option4!CV$81)+IF('Data Input - General'!$F$12=\"Yes\",0,Calc_Option4!CV$75)","v":0},{"$f":"IF('Data Input - General'!$F$10=\"Yes\",0,Calc_Option4!CW$81)+IF('Data Input - General'!$F$12=\"Yes\",0,Calc_Option4!CW$75)","v":0},{"$f":"IF('Data Input - General'!$F$10=\"Yes\",0,Calc_Option4!CX$81)+IF('Data Input - General'!$F$12=\"Yes\",0,Calc_Option4!CX$75)","v":0},{"$f":"IF('Data Input - General'!$F$10=\"Yes\",0,Calc_Option4!CY$81)+IF('Data Input - General'!$F$12=\"Yes\",0,Calc_Option4!CY$75)","v":0}]
[null,"Value TRADED","£000's",{"$f":"IFERROR(INDEX('Carbon Prices'!$D$10:$CP$15,1,MATCH(Calc_Option4!D$6,'Carbon Prices'!$D$9:$CP$9,0))/1000,0)","v":0},{"$f":"IFERROR(INDEX('Carbon Prices'!$D$10:$CP$15,1,MATCH(Calc_Option4!E$6,'Carbon Prices'!$D$9:$CP$9,0))/1000,0)","v":0},{"$f":"IFERROR(INDEX('Carbon Prices'!$D$10:$CP$15,1,MATCH(Calc_Option4!F$6,'Carbon Prices'!$D$9:$CP$9,0))/1000,0)","v":4.2168152036321628E-3},{"$f":"IFERROR(INDEX('Carbon Prices'!$D$10:$CP$15,1,MATCH(Calc_Option4!G$6,'Carbon Prices'!$D$9:$CP$9,0))/1000,0)","v":8.4336304072643257E-3},{"$f":"IFERROR(INDEX('Carbon Prices'!$D$10:$CP$15,1,MATCH(Calc_Option4!H$6,'Carbon Prices'!$D$9:$CP$9,0))/1000,0)","v":1.2650445610896488E-2},{"$f":"IFERROR(INDEX('Carbon Prices'!$D$10:$CP$15,1,MATCH(Calc_Option4!I$6,'Carbon Prices'!$D$9:$CP$9,0))/1000,0)","v":1.6867260814528651E-2},{"$f":"IFERROR(INDEX('Carbon Prices'!$D$10:$CP$15,1,MATCH(Calc_Option4!J$6,'Carbon Prices'!$D$9:$CP$9,0))/1000,0)","v":2.1084076018160813E-2},{"$f":"IFERROR(INDEX('Carbon Prices'!$D$10:$CP$15,1,MATCH(Calc_Option4!K$6,'Carbon Prices'!$D$9:$CP$9,0))/1000,0)","v":2.5300891221792975E-2},{"$f":"IFERROR(INDEX('Carbon Prices'!$D$10:$CP$15,1,MATCH(Calc_Option4!L$6,'Carbon Prices'!$D$9:$CP$9,0))/1000,0)","v":2.9517706425425144E-2},{"$f":"IFERROR(INDEX('Carbon Prices'!$D$10:$CP$15,1,MATCH(Calc_Option4!M$6,'Carbon Prices'!$D$9:$CP$9,0))/1000,0)","v":3.3734521629057303E-2},{"$f":"IFERROR(INDEX('Carbon Prices'!$D$10:$CP$15,1,MATCH(Calc_Option4!N$6,'Carbon Prices'!$D$9:$CP$9,0))/1000,0)","v":3.7951336832689468E-2},{"$f":"IFERROR(INDEX('Carbon Prices'!$D$10:$CP$15,1,MATCH(Calc_Option4!O$6,'Carbon Prices'!$D$9:$CP$9,0))/1000,0)","v":4.2168152036321627E-2},{"$f":"IFERROR(INDEX('Carbon Prices'!$D$10:$CP$15,1,MATCH(Calc_Option4!P$6,'Carbon Prices'!$D$9:$CP$9,0))/1000,0)","v":4.6083766153980084E-2},{"$f":"IFERROR(INDEX('Carbon Prices'!$D$10:$CP$15,1,MATCH(Calc_Option4!Q$6,'Carbon Prices'!$D$9:$CP$9,0))/1000,0)","v":4.999938027163852E-2},{"$f":"IFERROR(INDEX('Carbon Prices'!$D$10:$CP$15,1,MATCH(Calc_Option4!R$6,'Carbon Prices'!$D$9:$CP$9,0))/1000,0)","v":5.3914994389296957E-2},{"$f":"IFERROR(INDEX('Carbon Prices'!$D$10:$CP$15,1,MATCH(Calc_Option4!S$6,'Carbon Prices'!$D$9:$CP$9,0))/1000,0)","v":5.78306085069554E-2},{"$f":"IFERROR(INDEX('Carbon Prices'!$D$10:$CP$15,1,MATCH(Calc_Option4!T$6,'Carbon Prices'!$D$9:$CP$9,0))/1000,0)","v":6.1746222624613836E-2},{"$f":"IFERROR(INDEX('Carbon Prices'!$D$10:$CP$15,1,MATCH(Calc_Option4!U$6,'Carbon Prices'!$D$9:$CP$9,0))/1000,0)","v":6.5661836742272273E-2},{"$f":"IFERROR(INDEX('Carbon Prices'!$D$10:$CP$15,1,MATCH(Calc_Option4!V$6,'Carbon Prices'!$D$9:$CP$9,0))/1000,0)","v":6.9577450859930709E-2},{"$f":"IFERROR(INDEX('Carbon Prices'!$D$10:$CP$15,1,MATCH(Calc_Option4!W$6,'Carbon Prices'!$D$9:$CP$9,0))/1000,0)","v":7.3493064977589145E-2},{"$f":"IFERROR(INDEX('Carbon Prices'!$D$10:$CP$15,1,MATCH(Calc_Option4!X$6,'Carbon Prices'!$D$9:$CP$9,0))/1000,0)","v":7.7408679095247609E-2},{"$f":"IFERROR(INDEX('Carbon Prices'!$D$10:$CP$15,1,MATCH(Calc_Option4!Y$6,'Carbon Prices'!$D$9:$CP$9,0))/1000,0)","v":8.1324293212906046E-2},{"$f":"IFERROR(INDEX('Carbon Prices'!$D$10:$CP$15,1,MATCH(Calc_Option4!Z$6,'Carbon Prices'!$D$9:$CP$9,0))/1000,0)","v":8.5239907330564482E-2},{"$f":"IFERROR(INDEX('Carbon Prices'!$D$10:$CP$15,1,MATCH(Calc_Option4!AA$6,'Carbon Prices'!$D$9:$CP$9,0))/1000,0)","v":8.9155521448222919E-2},{"$f":"IFERROR(INDEX('Carbon Prices'!$D$10:$CP$15,1,MATCH(Calc_Option4!AB$6,'Carbon Prices'!$D$9:$CP$9,0))/1000,0)","v":9.3071135565881355E-2},{"$f":"IFERROR(INDEX('Carbon Prices'!$D$10:$CP$15,1,MATCH(Calc_Option4!AC$6,'Carbon Prices'!$D$9:$CP$9,0))/1000,0)","v":9.6986749683539791E-2},{"$f":"IFERROR(INDEX('Carbon Prices'!$D$10:$CP$15,1,MATCH(Calc_Option4!AD$6,'Carbon Prices'!$D$9:$CP$9,0))/1000,0)","v":0.10090236380119821},{"$f":"IFERROR(INDEX('Carbon Prices'!$D$10:$CP$15,1,MATCH(Calc_Option4!AE$6,'Carbon Prices'!$D$9:$CP$9,0))/1000,0)","v":0.10481797791885665},{"$f":"IFERROR(INDEX('Carbon Prices'!$D$10:$CP$15,1,MATCH(Calc_Option4!AF$6,'Carbon Prices'!$D$9:$CP$9,0))/1000,0)","v":0.1087335920365151},{"$f":"IFERROR(INDEX('Carbon Prices'!$D$10:$CP$15,1,MATCH(Calc_Option4!AG$6,'Carbon Prices'!$D$9:$CP$9,0))/1000,0)","v":0.11264920615417354},{"$f":"IFERROR(INDEX('Carbon Prices'!$D$10:$CP$15,1,MATCH(Calc_Option4!AH$6,'Carbon Prices'!$D$9:$CP$9,0))/1000,0)","v":0.11656482027183197},{"$f":"IFERROR(INDEX('Carbon Prices'!$D$10:$CP$15,1,MATCH(Calc_Option4!AI$6,'Carbon Prices'!$D$9:$CP$9,0))/1000,0)","v":0},{"$f":"IFERROR(INDEX('Carbon Prices'!$D$10:$CP$15,1,MATCH(Calc_Option4!AJ$6,'Carbon Prices'!$D$9:$CP$9,0))/1000,0)","v":0},{"$f":"IFERROR(INDEX('Carbon Prices'!$D$10:$CP$15,1,MATCH(Calc_Option4!AK$6,'Carbon Prices'!$D$9:$CP$9,0))/1000,0)","v":0},{"$f":"IFERROR(INDEX('Carbon Prices'!$D$10:$CP$15,1,MATCH(Calc_Option4!AL$6,'Carbon Prices'!$D$9:$CP$9,0))/1000,0)","v":0},{"$f":"IFERROR(INDEX('Carbon Prices'!$D$10:$CP$15,1,MATCH(Calc_Option4!AM$6,'Carbon Prices'!$D$9:$CP$9,0))/1000,0)","v":0},{"$f":"IFERROR(INDEX('Carbon Prices'!$D$10:$CP$15,1,MATCH(Calc_Option4!AN$6,'Carbon Prices'!$D$9:$CP$9,0))/1000,0)","v":0},{"$f":"IFERROR(INDEX('Carbon Prices'!$D$10:$CP$15,1,MATCH(Calc_Option4!AO$6,'Carbon Prices'!$D$9:$CP$9,0))/1000,0)","v":0},{"$f":"IFERROR(INDEX('Carbon Prices'!$D$10:$CP$15,1,MATCH(Calc_Option4!AP$6,'Carbon Prices'!$D$9:$CP$9,0))/1000,0)","v":0},{"$f":"IFERROR(INDEX('Carbon Prices'!$D$10:$CP$15,1,MATCH(Calc_Option4!AQ$6,'Carbon Prices'!$D$9:$CP$9,0))/1000,0)","v":0},{"$f":"IFERROR(INDEX('Carbon Prices'!$D$10:$CP$15,1,MATCH(Calc_Option4!AR$6,'Carbon Prices'!$D$9:$CP$9,0))/1000,0)","v":0},{"$f":"IFERROR(INDEX('Carbon Prices'!$D$10:$CP$15,1,MATCH(Calc_Option4!AS$6,'Carbon Prices'!$D$9:$CP$9,0))/1000,0)","v":0},{"$f":"IFERROR(INDEX('Carbon Prices'!$D$10:$CP$15,1,MATCH(Calc_Option4!AT$6,'Carbon Prices'!$D$9:$CP$9,0))/1000,0)","v":0},{"$f":"IFERROR(INDEX('Carbon Prices'!$D$10:$CP$15,1,MATCH(Calc_Option4!AU$6,'Carbon Prices'!$D$9:$CP$9,0))/1000,0)","v":0},{"$f":"IFERROR(INDEX('Carbon Prices'!$D$10:$CP$15,1,MATCH(Calc_Option4!AV$6,'Carbon Prices'!$D$9:$CP$9,0))/1000,0)","v":0},{"$f":"IFERROR(INDEX('Carbon Prices'!$D$10:$CP$15,1,MATCH(Calc_Option4!AW$6,'Carbon Prices'!$D$9:$CP$9,0))/1000,0)","v":0},{"$f":"IFERROR(INDEX('Carbon Prices'!$D$10:$CP$15,1,MATCH(Calc_Option4!AX$6,'Carbon Prices'!$D$9:$CP$9,0))/1000,0)","v":0},{"$f":"IFERROR(INDEX('Carbon Prices'!$D$10:$CP$15,1,MATCH(Calc_Option4!AY$6,'Carbon Prices'!$D$9:$CP$9,0))/1000,0)","v":0},{"$f":"IFERROR(INDEX('Carbon Prices'!$D$10:$CP$15,1,MATCH(Calc_Option4!AZ$6,'Carbon Prices'!$D$9:$CP$9,0))/1000,0)","v":0},{"$f":"IFERROR(INDEX('Carbon Prices'!$D$10:$CP$15,1,MATCH(Calc_Option4!BA$6,'Carbon Prices'!$D$9:$CP$9,0))/1000,0)","v":0},{"$f":"IFERROR(INDEX('Carbon Prices'!$D$10:$CP$15,1,MATCH(Calc_Option4!BB$6,'Carbon Prices'!$D$9:$CP$9,0))/1000,0)","v":0},{"$f":"IFERROR(INDEX('Carbon Prices'!$D$10:$CP$15,1,MATCH(Calc_Option4!BC$6,'Carbon Prices'!$D$9:$CP$9,0))/1000,0)","v":0},{"$f":"IFERROR(INDEX('Carbon Prices'!$D$10:$CP$15,1,MATCH(Calc_Option4!BD$6,'Carbon Prices'!$D$9:$CP$9,0))/1000,0)","v":0},{"$f":"IFERROR(INDEX('Carbon Prices'!$D$10:$CP$15,1,MATCH(Calc_Option4!BE$6,'Carbon Prices'!$D$9:$CP$9,0))/1000,0)","v":0},{"$f":"IFERROR(INDEX('Carbon Prices'!$D$10:$CP$15,1,MATCH(Calc_Option4!BF$6,'Carbon Prices'!$D$9:$CP$9,0))/1000,0)","v":0},{"$f":"IFERROR(INDEX('Carbon Prices'!$D$10:$CP$15,1,MATCH(Calc_Option4!BG$6,'Carbon Prices'!$D$9:$CP$9,0))/1000,0)","v":0},{"$f":"IFERROR(INDEX('Carbon Prices'!$D$10:$CP$15,1,MATCH(Calc_Option4!BH$6,'Carbon Prices'!$D$9:$CP$9,0))/1000,0)","v":0},{"$f":"IFERROR(INDEX('Carbon Prices'!$D$10:$CP$15,1,MATCH(Calc_Option4!BI$6,'Carbon Prices'!$D$9:$CP$9,0))/1000,0)","v":0},{"$f":"IFERROR(INDEX('Carbon Prices'!$D$10:$CP$15,1,MATCH(Calc_Option4!BJ$6,'Carbon Prices'!$D$9:$CP$9,0))/1000,0)","v":0},{"$f":"IFERROR(INDEX('Carbon Prices'!$D$10:$CP$15,1,MATCH(Calc_Option4!BK$6,'Carbon Prices'!$D$9:$CP$9,0))/1000,0)","v":0},{"$f":"IFERROR(INDEX('Carbon Prices'!$D$10:$CP$15,1,MATCH(Calc_Option4!BL$6,'Carbon Prices'!$D$9:$CP$9,0))/1000,0)","v":0},{"$f":"IFERROR(INDEX('Carbon Prices'!$D$10:$CP$15,1,MATCH(Calc_Option4!BM$6,'Carbon Prices'!$D$9:$CP$9,0))/1000,0)","v":0},{"$f":"IFERROR(INDEX('Carbon Prices'!$D$10:$CP$15,1,MATCH(Calc_Option4!BN$6,'Carbon Prices'!$D$9:$CP$9,0))/1000,0)","v":0},{"$f":"IFERROR(INDEX('Carbon Prices'!$D$10:$CP$15,1,MATCH(Calc_Option4!BO$6,'Carbon Prices'!$D$9:$CP$9,0))/1000,0)","v":0},{"$f":"IFERROR(INDEX('Carbon Prices'!$D$10:$CP$15,1,MATCH(Calc_Option4!BP$6,'Carbon Prices'!$D$9:$CP$9,0))/1000,0)","v":0},{"$f":"IFERROR(INDEX('Carbon Prices'!$D$10:$CP$15,1,MATCH(Calc_Option4!BQ$6,'Carbon Prices'!$D$9:$CP$9,0))/1000,0)","v":0},{"$f":"IFERROR(INDEX('Carbon Prices'!$D$10:$CP$15,1,MATCH(Calc_Option4!BR$6,'Carbon Prices'!$D$9:$CP$9,0))/1000,0)","v":0},{"$f":"IFERROR(INDEX('Carbon Prices'!$D$10:$CP$15,1,MATCH(Calc_Option4!BS$6,'Carbon Prices'!$D$9:$CP$9,0))/1000,0)","v":0},{"$f":"IFERROR(INDEX('Carbon Prices'!$D$10:$CP$15,1,MATCH(Calc_Option4!BT$6,'Carbon Prices'!$D$9:$CP$9,0))/1000,0)","v":0},{"$f":"IFERROR(INDEX('Carbon Prices'!$D$10:$CP$15,1,MATCH(Calc_Option4!BU$6,'Carbon Prices'!$D$9:$CP$9,0))/1000,0)","v":0},{"$f":"IFERROR(INDEX('Carbon Prices'!$D$10:$CP$15,1,MATCH(Calc_Option4!BV$6,'Carbon Prices'!$D$9:$CP$9,0))/1000,0)","v":0},{"$f":"IFERROR(INDEX('Carbon Prices'!$D$10:$CP$15,1,MATCH(Calc_Option4!BW$6,'Carbon Prices'!$D$9:$CP$9,0))/1000,0)","v":0},{"$f":"IFERROR(INDEX('Carbon Prices'!$D$10:$CP$15,1,MATCH(Calc_Option4!BX$6,'Carbon Prices'!$D$9:$CP$9,0))/1000,0)","v":0},{"$f":"IFERROR(INDEX('Carbon Prices'!$D$10:$CP$15,1,MATCH(Calc_Option4!BY$6,'Carbon Prices'!$D$9:$CP$9,0))/1000,0)","v":0},{"$f":"IFERROR(INDEX('Carbon Prices'!$D$10:$CP$15,1,MATCH(Calc_Option4!BZ$6,'Carbon Prices'!$D$9:$CP$9,0))/1000,0)","v":0},{"$f":"IFERROR(INDEX('Carbon Prices'!$D$10:$CP$15,1,MATCH(Calc_Option4!CA$6,'Carbon Prices'!$D$9:$CP$9,0))/1000,0)","v":0},{"$f":"IFERROR(INDEX('Carbon Prices'!$D$10:$CP$15,1,MATCH(Calc_Option4!CB$6,'Carbon Prices'!$D$9:$CP$9,0))/1000,0)","v":0},{"$f":"IFERROR(INDEX('Carbon Prices'!$D$10:$CP$15,1,MATCH(Calc_Option4!CC$6,'Carbon Prices'!$D$9:$CP$9,0))/1000,0)","v":0},{"$f":"IFERROR(INDEX('Carbon Prices'!$D$10:$CP$15,1,MATCH(Calc_Option4!CD$6,'Carbon Prices'!$D$9:$CP$9,0))/1000,0)","v":0},{"$f":"IFERROR(INDEX('Carbon Prices'!$D$10:$CP$15,1,MATCH(Calc_Option4!CE$6,'Carbon Prices'!$D$9:$CP$9,0))/1000,0)","v":0},{"$f":"IFERROR(INDEX('Carbon Prices'!$D$10:$CP$15,1,MATCH(Calc_Option4!CF$6,'Carbon Prices'!$D$9:$CP$9,0))/1000,0)","v":0},{"$f":"IFERROR(INDEX('Carbon Prices'!$D$10:$CP$15,1,MATCH(Calc_Option4!CG$6,'Carbon Prices'!$D$9:$CP$9,0))/1000,0)","v":0},{"$f":"IFERROR(INDEX('Carbon Prices'!$D$10:$CP$15,1,MATCH(Calc_Option4!CH$6,'Carbon Prices'!$D$9:$CP$9,0))/1000,0)","v":0},{"$f":"IFERROR(INDEX('Carbon Prices'!$D$10:$CP$15,1,MATCH(Calc_Option4!CI$6,'Carbon Prices'!$D$9:$CP$9,0))/1000,0)","v":0},{"$f":"IFERROR(INDEX('Carbon Prices'!$D$10:$CP$15,1,MATCH(Calc_Option4!CJ$6,'Carbon Prices'!$D$9:$CP$9,0))/1000,0)","v":0},{"$f":"IFERROR(INDEX('Carbon Prices'!$D$10:$CP$15,1,MATCH(Calc_Option4!CK$6,'Carbon Prices'!$D$9:$CP$9,0))/1000,0)","v":0},{"$f":"IFERROR(INDEX('Carbon Prices'!$D$10:$CP$15,1,MATCH(Calc_Option4!CL$6,'Carbon Prices'!$D$9:$CP$9,0))/1000,0)","v":0},{"$f":"IFERROR(INDEX('Carbon Prices'!$D$10:$CP$15,1,MATCH(Calc_Option4!CM$6,'Carbon Prices'!$D$9:$CP$9,0))/1000,0)","v":0},{"$f":"IFERROR(INDEX('Carbon Prices'!$D$10:$CP$15,1,MATCH(Calc_Option4!CN$6,'Carbon Prices'!$D$9:$CP$9,0))/1000,0)","v":0},{"$f":"IFERROR(INDEX('Carbon Prices'!$D$10:$CP$15,1,MATCH(Calc_Option4!CO$6,'Carbon Prices'!$D$9:$CP$9,0))/1000,0)","v":0},{"$f":"IFERROR(INDEX('Carbon Prices'!$D$10:$CP$15,1,MATCH(Calc_Option4!CP$6,'Carbon Prices'!$D$9:$CP$9,0))/1000,0)","v":0},{"$f":"IFERROR(INDEX('Carbon Prices'!$D$10:$CP$15,1,MATCH(Calc_Option4!CQ$6,'Carbon Prices'!$D$9:$CP$9,0))/1000,0)","v":0},{"$f":"IFERROR(INDEX('Carbon Prices'!$D$10:$CP$15,1,MATCH(Calc_Option4!CR$6,'Carbon Prices'!$D$9:$CP$9,0))/1000,0)","v":0},{"$f":"IFERROR(INDEX('Carbon Prices'!$D$10:$CP$15,1,MATCH(Calc_Option4!CS$6,'Carbon Prices'!$D$9:$CP$9,0))/1000,0)","v":0},{"$f":"IFERROR(INDEX('Carbon Prices'!$D$10:$CP$15,1,MATCH(Calc_Option4!CT$6,'Carbon Prices'!$D$9:$CP$9,0))/1000,0)","v":0},{"$f":"IFERROR(INDEX('Carbon Prices'!$D$10:$CP$15,1,MATCH(Calc_Option4!CU$6,'Carbon Prices'!$D$9:$CP$9,0))/1000,0)","v":0},{"$f":"IFERROR(INDEX('Carbon Prices'!$D$10:$CP$15,1,MATCH(Calc_Option4!CV$6,'Carbon Prices'!$D$9:$CP$9,0))/1000,0)","v":0},{"$f":"IFERROR(INDEX('Carbon Prices'!$D$10:$CP$15,1,MATCH(Calc_Option4!CW$6,'Carbon Prices'!$D$9:$CP$9,0))/1000,0)","v":0},{"$f":"IFERROR(INDEX('Carbon Prices'!$D$10:$CP$15,1,MATCH(Calc_Option4!CX$6,'Carbon Prices'!$D$9:$CP$9,0))/1000,0)","v":0},{"$f":"IFERROR(INDEX('Carbon Prices'!$D$10:$CP$15,1,MATCH(Calc_Option4!CY$6,'Carbon Prices'!$D$9:$CP$9,0))/1000,0)","v":0}]
[null,"Total NON-TRADED","£000's",{"$f":"IFERROR(INDEX('Carbon Prices'!$D$10:$CP$15,4,MATCH(Calc_Option4!D$6,'Carbon Prices'!$D$9:$CP$9,0))/1000,0)","v":3.560998060773117E-2},{"$f":"IFERROR(INDEX('Carbon Prices'!$D$10:$CP$15,4,MATCH(Calc_Option4!E$6,'Carbon Prices'!$D$9:$CP$9,0))/1000,0)","v":3.6144130316847128E-2},{"$f":"IFERROR(INDEX('Carbon Prices'!$D$10:$CP$15,4,MATCH(Calc_Option4!F$6,'Carbon Prices'!$D$9:$CP$9,0))/1000,0)","v":3.6746532488794573E-2},{"$f":"IFERROR(INDEX('Carbon Prices'!$D$10:$CP$15,4,MATCH(Calc_Option4!G$6,'Carbon Prices'!$D$9:$CP$9,0))/1000,0)","v":3.7348934660742031E-2},{"$f":"IFERROR(INDEX('Carbon Prices'!$D$10:$CP$15,4,MATCH(Calc_Option4!H$6,'Carbon Prices'!$D$9:$CP$9,0))/1000,0)","v":3.7951336832689482E-2},{"$f":"IFERROR(INDEX('Carbon Prices'!$D$10:$CP$15,4,MATCH(Calc_Option4!I$6,'Carbon Prices'!$D$9:$CP$9,0))/1000,0)","v":3.8553739004636933E-2},{"$f":"IFERROR(INDEX('Carbon Prices'!$D$10:$CP$15,4,MATCH(Calc_Option4!J$6,'Carbon Prices'!$D$9:$CP$9,0))/1000,0)","v":3.9156141176584384E-2},{"$f":"IFERROR(INDEX('Carbon Prices'!$D$10:$CP$15,4,MATCH(Calc_Option4!K$6,'Carbon Prices'!$D$9:$CP$9,0))/1000,0)","v":3.9758543348531836E-2},{"$f":"IFERROR(INDEX('Carbon Prices'!$D$10:$CP$15,4,MATCH(Calc_Option4!L$6,'Carbon Prices'!$D$9:$CP$9,0))/1000,0)","v":4.0360945520479294E-2},{"$f":"IFERROR(INDEX('Carbon Prices'!$D$10:$CP$15,4,MATCH(Calc_Option4!M$6,'Carbon Prices'!$D$9:$CP$9,0))/1000,0)","v":4.0963347692426738E-2},{"$f":"IFERROR(INDEX('Carbon Prices'!$D$10:$CP$15,4,MATCH(Calc_Option4!N$6,'Carbon Prices'!$D$9:$CP$9,0))/1000,0)","v":4.1565749864374189E-2},{"$f":"IFERROR(INDEX('Carbon Prices'!$D$10:$CP$15,4,MATCH(Calc_Option4!O$6,'Carbon Prices'!$D$9:$CP$9,0))/1000,0)","v":4.2168152036321647E-2},{"$f":"IFERROR(INDEX('Carbon Prices'!$D$10:$CP$15,4,MATCH(Calc_Option4!P$6,'Carbon Prices'!$D$9:$CP$9,0))/1000,0)","v":4.6083766153980084E-2},{"$f":"IFERROR(INDEX('Carbon Prices'!$D$10:$CP$15,4,MATCH(Calc_Option4!Q$6,'Carbon Prices'!$D$9:$CP$9,0))/1000,0)","v":4.999938027163852E-2},{"$f":"IFERROR(INDEX('Carbon Prices'!$D$10:$CP$15,4,MATCH(Calc_Option4!R$6,'Carbon Prices'!$D$9:$CP$9,0))/1000,0)","v":5.3914994389296957E-2},{"$f":"IFERROR(INDEX('Carbon Prices'!$D$10:$CP$15,4,MATCH(Calc_Option4!S$6,'Carbon Prices'!$D$9:$CP$9,0))/1000,0)","v":5.78306085069554E-2},{"$f":"IFERROR(INDEX('Carbon Prices'!$D$10:$CP$15,4,MATCH(Calc_Option4!T$6,'Carbon Prices'!$D$9:$CP$9,0))/1000,0)","v":6.1746222624613836E-2},{"$f":"IFERROR(INDEX('Carbon Prices'!$D$10:$CP$15,4,MATCH(Calc_Option4!U$6,'Carbon Prices'!$D$9:$CP$9,0))/1000,0)","v":6.5661836742272273E-2},{"$f":"IFERROR(INDEX('Carbon Prices'!$D$10:$CP$15,4,MATCH(Calc_Option4!V$6,'Carbon Prices'!$D$9:$CP$9,0))/1000,0)","v":6.9577450859930709E-2},{"$f":"IFERROR(INDEX('Carbon Prices'!$D$10:$CP$15,4,MATCH(Calc_Option4!W$6,'Carbon Prices'!$D$9:$CP$9,0))/1000,0)","v":7.3493064977589145E-2},{"$f":"IFERROR(INDEX('Carbon Prices'!$D$10:$CP$15,4,MATCH(Calc_Option4!X$6,'Carbon Prices'!$D$9:$CP$9,0))/1000,0)","v":7.7408679095247609E-2},{"$f":"IFERROR(INDEX('Carbon Prices'!$D$10:$CP$15,4,MATCH(Calc_Option4!Y$6,'Carbon Prices'!$D$9:$CP$9,0))/1000,0)","v":8.1324293212906046E-2},{"$f":"IFERROR(INDEX('Carbon Prices'!$D$10:$CP$15,4,MATCH(Calc_Option4!Z$6,'Carbon Prices'!$D$9:$CP$9,0))/1000,0)","v":8.5239907330564482E-2},{"$f":"IFERROR(INDEX('Carbon Prices'!$D$10:$CP$15,4,MATCH(Calc_Option4!AA$6,'Carbon Prices'!$D$9:$CP$9,0))/1000,0)","v":8.9155521448222919E-2},{"$f":"IFERROR(INDEX('Carbon Prices'!$D$10:$CP$15,4,MATCH(Calc_Option4!AB$6,'Carbon Prices'!$D$9:$CP$9,0))/1000,0)","v":9.3071135565881355E-2},{"$f":"IFERROR(INDEX('Carbon Prices'!$D$10:$CP$15,4,MATCH(Calc_Option4!AC$6,'Carbon Prices'!$D$9:$CP$9,0))/1000,0)","v":9.6986749683539791E-2},{"$f":"IFERROR(INDEX('Carbon Prices'!$D$10:$CP$15,4,MATCH(Calc_Option4!AD$6,'Carbon Prices'!$D$9:$CP$9,0))/1000,0)","v":0.10090236380119821},{"$f":"IFERROR(INDEX('Carbon Prices'!$D$10:$CP$15,4,MATCH(Calc_Option4!AE$6,'Carbon Prices'!$D$9:$CP$9,0))/1000,0)","v":0.10481797791885665},{"$f":"IFERROR(INDEX('Carbon Prices'!$D$10:$CP$15,4,MATCH(Calc_Option4!AF$6,'Carbon Prices'!$D$9:$CP$9,0))/1000,0)","v":0.1087335920365151},{"$f":"IFERROR(INDEX('Carbon Prices'!$D$10:$CP$15,4,MATCH(Calc_Option4!AG$6,'Carbon Prices'!$D$9:$CP$9,0))/1000,0)","v":0.11264920615417354},{"$f":"IFERROR(INDEX('Carbon Prices'!$D$10:$CP$15,4,MATCH(Calc_Option4!AH$6,'Carbon Prices'!$D$9:$CP$9,0))/1000,0)","v":0.11656482027183197},{"$f":"IFERROR(INDEX('Carbon Prices'!$D$10:$CP$15,4,MATCH(Calc_Option4!AI$6,'Carbon Prices'!$D$9:$CP$9,0))/1000,0)","v":0},{"$f":"IFERROR(INDEX('Carbon Prices'!$D$10:$CP$15,4,MATCH(Calc_Option4!AJ$6,'Carbon Prices'!$D$9:$CP$9,0))/1000,0)","v":0},{"$f":"IFERROR(INDEX('Carbon Prices'!$D$10:$CP$15,4,MATCH(Calc_Option4!AK$6,'Carbon Prices'!$D$9:$CP$9,0))/1000,0)","v":0},{"$f":"IFERROR(INDEX('Carbon Prices'!$D$10:$CP$15,4,MATCH(Calc_Option4!AL$6,'Carbon Prices'!$D$9:$CP$9,0))/1000,0)","v":0},{"$f":"IFERROR(INDEX('Carbon Prices'!$D$10:$CP$15,4,MATCH(Calc_Option4!AM$6,'Carbon Prices'!$D$9:$CP$9,0))/1000,0)","v":0},{"$f":"IFERROR(INDEX('Carbon Prices'!$D$10:$CP$15,4,MATCH(Calc_Option4!AN$6,'Carbon Prices'!$D$9:$CP$9,0))/1000,0)","v":0},{"$f":"IFERROR(INDEX('Carbon Prices'!$D$10:$CP$15,4,MATCH(Calc_Option4!AO$6,'Carbon Prices'!$D$9:$CP$9,0))/1000,0)","v":0},{"$f":"IFERROR(INDEX('Carbon Prices'!$D$10:$CP$15,4,MATCH(Calc_Option4!AP$6,'Carbon Prices'!$D$9:$CP$9,0))/1000,0)","v":0},{"$f":"IFERROR(INDEX('Carbon Prices'!$D$10:$CP$15,4,MATCH(Calc_Option4!AQ$6,'Carbon Prices'!$D$9:$CP$9,0))/1000,0)","v":0},{"$f":"IFERROR(INDEX('Carbon Prices'!$D$10:$CP$15,4,MATCH(Calc_Option4!AR$6,'Carbon Prices'!$D$9:$CP$9,0))/1000,0)","v":0},{"$f":"IFERROR(INDEX('Carbon Prices'!$D$10:$CP$15,4,MATCH(Calc_Option4!AS$6,'Carbon Prices'!$D$9:$CP$9,0))/1000,0)","v":0},{"$f":"IFERROR(INDEX('Carbon Prices'!$D$10:$CP$15,4,MATCH(Calc_Option4!AT$6,'Carbon Prices'!$D$9:$CP$9,0))/1000,0)","v":0},{"$f":"IFERROR(INDEX('Carbon Prices'!$D$10:$CP$15,4,MATCH(Calc_Option4!AU$6,'Carbon Prices'!$D$9:$CP$9,0))/1000,0)","v":0},{"$f":"IFERROR(INDEX('Carbon Prices'!$D$10:$CP$15,4,MATCH(Calc_Option4!AV$6,'Carbon Prices'!$D$9:$CP$9,0))/1000,0)","v":0},{"$f":"IFERROR(INDEX('Carbon Prices'!$D$10:$CP$15,4,MATCH(Calc_Option4!AW$6,'Carbon Prices'!$D$9:$CP$9,0))/1000,0)","v":0},{"$f":"IFERROR(INDEX('Carbon Prices'!$D$10:$CP$15,4,MATCH(Calc_Option4!AX$6,'Carbon Prices'!$D$9:$CP$9,0))/1000,0)","v":0},{"$f":"IFERROR(INDEX('Carbon Prices'!$D$10:$CP$15,4,MATCH(Calc_Option4!AY$6,'Carbon Prices'!$D$9:$CP$9,0))/1000,0)","v":0},{"$f":"IFERROR(INDEX('Carbon Prices'!$D$10:$CP$15,4,MATCH(Calc_Option4!AZ$6,'Carbon Prices'!$D$9:$CP$9,0))/1000,0)","v":0},{"$f":"IFERROR(INDEX('Carbon Prices'!$D$10:$CP$15,4,MATCH(Calc_Option4!BA$6,'Carbon Prices'!$D$9:$CP$9,0))/1000,0)","v":0},{"$f":"IFERROR(INDEX('Carbon Prices'!$D$10:$CP$15,4,MATCH(Calc_Option4!BB$6,'Carbon Prices'!$D$9:$CP$9,0))/1000,0)","v":0},{"$f":"IFERROR(INDEX('Carbon Prices'!$D$10:$CP$15,4,MATCH(Calc_Option4!BC$6,'Carbon Prices'!$D$9:$CP$9,0))/1000,0)","v":0},{"$f":"IFERROR(INDEX('Carbon Prices'!$D$10:$CP$15,4,MATCH(Calc_Option4!BD$6,'Carbon Prices'!$D$9:$CP$9,0))/1000,0)","v":0},{"$f":"IFERROR(INDEX('Carbon Prices'!$D$10:$CP$15,4,MATCH(Calc_Option4!BE$6,'Carbon Prices'!$D$9:$CP$9,0))/1000,0)","v":0},{"$f":"IFERROR(INDEX('Carbon Prices'!$D$10:$CP$15,4,MATCH(Calc_Option4!BF$6,'Carbon Prices'!$D$9:$CP$9,0))/1000,0)","v":0},{"$f":"IFERROR(INDEX('Carbon Prices'!$D$10:$CP$15,4,MATCH(Calc_Option4!BG$6,'Carbon Prices'!$D$9:$CP$9,0))/1000,0)","v":0},{"$f":"IFERROR(INDEX('Carbon Prices'!$D$10:$CP$15,4,MATCH(Calc_Option4!BH$6,'Carbon Prices'!$D$9:$CP$9,0))/1000,0)","v":0},{"$f":"IFERROR(INDEX('Carbon Prices'!$D$10:$CP$15,4,MATCH(Calc_Option4!BI$6,'Carbon Prices'!$D$9:$CP$9,0))/1000,0)","v":0},{"$f":"IFERROR(INDEX('Carbon Prices'!$D$10:$CP$15,4,MATCH(Calc_Option4!BJ$6,'Carbon Prices'!$D$9:$CP$9,0))/1000,0)","v":0},{"$f":"IFERROR(INDEX('Carbon Prices'!$D$10:$CP$15,4,MATCH(Calc_Option4!BK$6,'Carbon Prices'!$D$9:$CP$9,0))/1000,0)","v":0},{"$f":"IFERROR(INDEX('Carbon Prices'!$D$10:$CP$15,4,MATCH(Calc_Option4!BL$6,'Carbon Prices'!$D$9:$CP$9,0))/1000,0)","v":0},{"$f":"IFERROR(INDEX('Carbon Prices'!$D$10:$CP$15,4,MATCH(Calc_Option4!BM$6,'Carbon Prices'!$D$9:$CP$9,0))/1000,0)","v":0},{"$f":"IFERROR(INDEX('Carbon Prices'!$D$10:$CP$15,4,MATCH(Calc_Option4!BN$6,'Carbon Prices'!$D$9:$CP$9,0))/1000,0)","v":0},{"$f":"IFERROR(INDEX('Carbon Prices'!$D$10:$CP$15,4,MATCH(Calc_Option4!BO$6,'Carbon Prices'!$D$9:$CP$9,0))/1000,0)","v":0},{"$f":"IFERROR(INDEX('Carbon Prices'!$D$10:$CP$15,4,MATCH(Calc_Option4!BP$6,'Carbon Prices'!$D$9:$CP$9,0))/1000,0)","v":0},{"$f":"IFERROR(INDEX('Carbon Prices'!$D$10:$CP$15,4,MATCH(Calc_Option4!BQ$6,'Carbon Prices'!$D$9:$CP$9,0))/1000,0)","v":0},{"$f":"IFERROR(INDEX('Carbon Prices'!$D$10:$CP$15,4,MATCH(Calc_Option4!BR$6,'Carbon Prices'!$D$9:$CP$9,0))/1000,0)","v":0},{"$f":"IFERROR(INDEX('Carbon Prices'!$D$10:$CP$15,4,MATCH(Calc_Option4!BS$6,'Carbon Prices'!$D$9:$CP$9,0))/1000,0)","v":0},{"$f":"IFERROR(INDEX('Carbon Prices'!$D$10:$CP$15,4,MATCH(Calc_Option4!BT$6,'Carbon Prices'!$D$9:$CP$9,0))/1000,0)","v":0},{"$f":"IFERROR(INDEX('Carbon Prices'!$D$10:$CP$15,4,MATCH(Calc_Option4!BU$6,'Carbon Prices'!$D$9:$CP$9,0))/1000,0)","v":0},{"$f":"IFERROR(INDEX('Carbon Prices'!$D$10:$CP$15,4,MATCH(Calc_Option4!BV$6,'Carbon Prices'!$D$9:$CP$9,0))/1000,0)","v":0},{"$f":"IFERROR(INDEX('Carbon Prices'!$D$10:$CP$15,4,MATCH(Calc_Option4!BW$6,'Carbon Prices'!$D$9:$CP$9,0))/1000,0)","v":0},{"$f":"IFERROR(INDEX('Carbon Prices'!$D$10:$CP$15,4,MATCH(Calc_Option4!BX$6,'Carbon Prices'!$D$9:$CP$9,0))/1000,0)","v":0},{"$f":"IFERROR(INDEX('Carbon Prices'!$D$10:$CP$15,4,MATCH(Calc_Option4!BY$6,'Carbon Prices'!$D$9:$CP$9,0))/1000,0)","v":0},{"$f":"IFERROR(INDEX('Carbon Prices'!$D$10:$CP$15,4,MATCH(Calc_Option4!BZ$6,'Carbon Prices'!$D$9:$CP$9,0))/1000,0)","v":0},{"$f":"IFERROR(INDEX('Carbon Prices'!$D$10:$CP$15,4,MATCH(Calc_Option4!CA$6,'Carbon Prices'!$D$9:$CP$9,0))/1000,0)","v":0},{"$f":"IFERROR(INDEX('Carbon Prices'!$D$10:$CP$15,4,MATCH(Calc_Option4!CB$6,'Carbon Prices'!$D$9:$CP$9,0))/1000,0)","v":0},{"$f":"IFERROR(INDEX('Carbon Prices'!$D$10:$CP$15,4,MATCH(Calc_Option4!CC$6,'Carbon Prices'!$D$9:$CP$9,0))/1000,0)","v":0},{"$f":"IFERROR(INDEX('Carbon Prices'!$D$10:$CP$15,4,MATCH(Calc_Option4!CD$6,'Carbon Prices'!$D$9:$CP$9,0))/1000,0)","v":0},{"$f":"IFERROR(INDEX('Carbon Prices'!$D$10:$CP$15,4,MATCH(Calc_Option4!CE$6,'Carbon Prices'!$D$9:$CP$9,0))/1000,0)","v":0},{"$f":"IFERROR(INDEX('Carbon Prices'!$D$10:$CP$15,4,MATCH(Calc_Option4!CF$6,'Carbon Prices'!$D$9:$CP$9,0))/1000,0)","v":0},{"$f":"IFERROR(INDEX('Carbon Prices'!$D$10:$CP$15,4,MATCH(Calc_Option4!CG$6,'Carbon Prices'!$D$9:$CP$9,0))/1000,0)","v":0},{"$f":"IFERROR(INDEX('Carbon Prices'!$D$10:$CP$15,4,MATCH(Calc_Option4!CH$6,'Carbon Prices'!$D$9:$CP$9,0))/1000,0)","v":0},{"$f":"IFERROR(INDEX('Carbon Prices'!$D$10:$CP$15,4,MATCH(Calc_Option4!CI$6,'Carbon Prices'!$D$9:$CP$9,0))/1000,0)","v":0},{"$f":"IFERROR(INDEX('Carbon Prices'!$D$10:$CP$15,4,MATCH(Calc_Option4!CJ$6,'Carbon Prices'!$D$9:$CP$9,0))/1000,0)","v":0},{"$f":"IFERROR(INDEX('Carbon Prices'!$D$10:$CP$15,4,MATCH(Calc_Option4!CK$6,'Carbon Prices'!$D$9:$CP$9,0))/1000,0)","v":0},{"$f":"IFERROR(INDEX('Carbon Prices'!$D$10:$CP$15,4,MATCH(Calc_Option4!CL$6,'Carbon Prices'!$D$9:$CP$9,0))/1000,0)","v":0},{"$f":"IFERROR(INDEX('Carbon Prices'!$D$10:$CP$15,4,MATCH(Calc_Option4!CM$6,'Carbon Prices'!$D$9:$CP$9,0))/1000,0)","v":0},{"$f":"IFERROR(INDEX('Carbon Prices'!$D$10:$CP$15,4,MATCH(Calc_Option4!CN$6,'Carbon Prices'!$D$9:$CP$9,0))/1000,0)","v":0},{"$f":"IFERROR(INDEX('Carbon Prices'!$D$10:$CP$15,4,MATCH(Calc_Option4!CO$6,'Carbon Prices'!$D$9:$CP$9,0))/1000,0)","v":0},{"$f":"IFERROR(INDEX('Carbon Prices'!$D$10:$CP$15,4,MATCH(Calc_Option4!CP$6,'Carbon Prices'!$D$9:$CP$9,0))/1000,0)","v":0},{"$f":"IFERROR(INDEX('Carbon Prices'!$D$10:$CP$15,4,MATCH(Calc_Option4!CQ$6,'Carbon Prices'!$D$9:$CP$9,0))/1000,0)","v":0},{"$f":"IFERROR(INDEX('Carbon Prices'!$D$10:$CP$15,4,MATCH(Calc_Option4!CR$6,'Carbon Prices'!$D$9:$CP$9,0))/1000,0)","v":0},{"$f":"IFERROR(INDEX('Carbon Prices'!$D$10:$CP$15,4,MATCH(Calc_Option4!CS$6,'Carbon Prices'!$D$9:$CP$9,0))/1000,0)","v":0},{"$f":"IFERROR(INDEX('Carbon Prices'!$D$10:$CP$15,4,MATCH(Calc_Option4!CT$6,'Carbon Prices'!$D$9:$CP$9,0))/1000,0)","v":0},{"$f":"IFERROR(INDEX('Carbon Prices'!$D$10:$CP$15,4,MATCH(Calc_Option4!CU$6,'Carbon Prices'!$D$9:$CP$9,0))/1000,0)","v":0},{"$f":"IFERROR(INDEX('Carbon Prices'!$D$10:$CP$15,4,MATCH(Calc_Option4!CV$6,'Carbon Prices'!$D$9:$CP$9,0))/1000,0)","v":0},{"$f":"IFERROR(INDEX('Carbon Prices'!$D$10:$CP$15,4,MATCH(Calc_Option4!CW$6,'Carbon Prices'!$D$9:$CP$9,0))/1000,0)","v":0},{"$f":"IFERROR(INDEX('Carbon Prices'!$D$10:$CP$15,4,MATCH(Calc_Option4!CX$6,'Carbon Prices'!$D$9:$CP$9,0))/1000,0)","v":0},{"$f":"IFERROR(INDEX('Carbon Prices'!$D$10:$CP$15,4,MATCH(Calc_Option4!CY$6,'Carbon Prices'!$D$9:$CP$9,0))/1000,0)","v":0}]
[null,"Discounted total","£000's",{"$f":"(D118*D120)+(D119*D121)*D$7","v":0},{"$f":"(E118*E120)+(E119*E121)*E$7","v":0},0,0,0,0,0,0,0,0,0,0,0,0,0,0,0,0,0,0,0,0,0,0,0,0,0,0,0,0,0,0,0,0,0,0,0,0,0,0,0,0,0,0,0,0,0,0,0,0,0,0,0,0,0,0,0,0,0,0,0,0,0,0,0,{"$f":"(BQ118*BQ120)+(BQ119*BQ121)*BQ$7","v":0},0,0,0,0,0,0,0,0,0,0,0,0,0,0,0,0,0,0,0,0,0,0,0,0,0,0,0,0,0,0,0,0,0,0]
[]
[]
[null,"High values"]
[]
[null,"Energy Consumption"]
[null,"Electricity","£000's",{"$f":"IFERROR('Data Input - Option 4'!H84*INDEX('Energy Prices'!$F$26:$CR$31,MATCH($B128,'Energy Prices'!$C$26:$C$31,0),MATCH(Calc_Option4!D$6,'Energy Prices'!$F$11:$CR$11,0))/100000,0)","v":0},{"$f":"IFERROR('Data Input - Option 4'!I84*INDEX('Energy Prices'!$F$26:$CR$31,MATCH($B128,'Energy Prices'!$C$26:$C$31,0),MATCH(Calc_Option4!E$6,'Energy Prices'!$F$11:$CR$11,0))/100000,0)","v":0},{"$f":"IFERROR('Data Input - Option 4'!J84*INDEX('Energy Prices'!$F$26:$CR$31,MATCH($B128,'Energy Prices'!$C$26:$C$31,0),MATCH(Calc_Option4!F$6,'Energy Prices'!$F$11:$CR$11,0))/100000,0)","v":0},{"$f":"IFERROR('Data Input - Option 4'!K84*INDEX('Energy Prices'!$F$26:$CR$31,MATCH($B128,'Energy Prices'!$C$26:$C$31,0),MATCH(Calc_Option4!G$6,'Energy Prices'!$F$11:$CR$11,0))/100000,0)","v":0},{"$f":"IFERROR('Data Input - Option 4'!L84*INDEX('Energy Prices'!$F$26:$CR$31,MATCH($B128,'Energy Prices'!$C$26:$C$31,0),MATCH(Calc_Option4!H$6,'Energy Prices'!$F$11:$CR$11,0))/100000,0)","v":0},{"$f":"IFERROR('Data Input - Option 4'!M84*INDEX('Energy Prices'!$F$26:$CR$31,MATCH($B128,'Energy Prices'!$C$26:$C$31,0),MATCH(Calc_Option4!I$6,'Energy Prices'!$F$11:$CR$11,0))/100000,0)","v":0},{"$f":"IFERROR('Data Input - Option 4'!N84*INDEX('Energy Prices'!$F$26:$CR$31,MATCH($B128,'Energy Prices'!$C$26:$C$31,0),MATCH(Calc_Option4!J$6,'Energy Prices'!$F$11:$CR$11,0))/100000,0)","v":0},{"$f":"IFERROR('Data Input - Option 4'!O84*INDEX('Energy Prices'!$F$26:$CR$31,MATCH($B128,'Energy Prices'!$C$26:$C$31,0),MATCH(Calc_Option4!K$6,'Energy Prices'!$F$11:$CR$11,0))/100000,0)","v":0},{"$f":"IFERROR('Data Input - Option 4'!P84*INDEX('Energy Prices'!$F$26:$CR$31,MATCH($B128,'Energy Prices'!$C$26:$C$31,0),MATCH(Calc_Option4!L$6,'Energy Prices'!$F$11:$CR$11,0))/100000,0)","v":0},{"$f":"IFERROR('Data Input - Option 4'!Q84*INDEX('Energy Prices'!$F$26:$CR$31,MATCH($B128,'Energy Prices'!$C$26:$C$31,0),MATCH(Calc_Option4!M$6,'Energy Prices'!$F$11:$CR$11,0))/100000,0)","v":0},{"$f":"IFERROR('Data Input - Option 4'!R84*INDEX('Energy Prices'!$F$26:$CR$31,MATCH($B128,'Energy Prices'!$C$26:$C$31,0),MATCH(Calc_Option4!N$6,'Energy Prices'!$F$11:$CR$11,0))/100000,0)","v":0},{"$f":"IFERROR('Data Input - Option 4'!S84*INDEX('Energy Prices'!$F$26:$CR$31,MATCH($B128,'Energy Prices'!$C$26:$C$31,0),MATCH(Calc_Option4!O$6,'Energy Prices'!$F$11:$CR$11,0))/100000,0)","v":0},{"$f":"IFERROR('Data Input - Option 4'!T84*INDEX('Energy Prices'!$F$26:$CR$31,MATCH($B128,'Energy Prices'!$C$26:$C$31,0),MATCH(Calc_Option4!P$6,'Energy Prices'!$F$11:$CR$11,0))/100000,0)","v":0},{"$f":"IFERROR('Data Input - Option 4'!U84*INDEX('Energy Prices'!$F$26:$CR$31,MATCH($B128,'Energy Prices'!$C$26:$C$31,0),MATCH(Calc_Option4!Q$6,'Energy Prices'!$F$11:$CR$11,0))/100000,0)","v":0},{"$f":"IFERROR('Data Input - Option 4'!V84*INDEX('Energy Prices'!$F$26:$CR$31,MATCH($B128,'Energy Prices'!$C$26:$C$31,0),MATCH(Calc_Option4!R$6,'Energy Prices'!$F$11:$CR$11,0))/100000,0)","v":0},{"$f":"IFERROR('Data Input - Option 4'!W84*INDEX('Energy Prices'!$F$26:$CR$31,MATCH($B128,'Energy Prices'!$C$26:$C$31,0),MATCH(Calc_Option4!S$6,'Energy Prices'!$F$11:$CR$11,0))/100000,0)","v":0},{"$f":"IFERROR('Data Input - Option 4'!X84*INDEX('Energy Prices'!$F$26:$CR$31,MATCH($B128,'Energy Prices'!$C$26:$C$31,0),MATCH(Calc_Option4!T$6,'Energy Prices'!$F$11:$CR$11,0))/100000,0)","v":0},{"$f":"IFERROR('Data Input - Option 4'!Y84*INDEX('Energy Prices'!$F$26:$CR$31,MATCH($B128,'Energy Prices'!$C$26:$C$31,0),MATCH(Calc_Option4!U$6,'Energy Prices'!$F$11:$CR$11,0))/100000,0)","v":0},{"$f":"IFERROR('Data Input - Option 4'!Z84*INDEX('Energy Prices'!$F$26:$CR$31,MATCH($B128,'Energy Prices'!$C$26:$C$31,0),MATCH(Calc_Option4!V$6,'Energy Prices'!$F$11:$CR$11,0))/100000,0)","v":0},{"$f":"IFERROR('Data Input - Option 4'!AA84*INDEX('Energy Prices'!$F$26:$CR$31,MATCH($B128,'Energy Prices'!$C$26:$C$31,0),MATCH(Calc_Option4!W$6,'Energy Prices'!$F$11:$CR$11,0))/100000,0)","v":0},{"$f":"IFERROR('Data Input - Option 4'!AB84*INDEX('Energy Prices'!$F$26:$CR$31,MATCH($B128,'Energy Prices'!$C$26:$C$31,0),MATCH(Calc_Option4!X$6,'Energy Prices'!$F$11:$CR$11,0))/100000,0)","v":0},{"$f":"IFERROR('Data Input - Option 4'!AC84*INDEX('Energy Prices'!$F$26:$CR$31,MATCH($B128,'Energy Prices'!$C$26:$C$31,0),MATCH(Calc_Option4!Y$6,'Energy Prices'!$F$11:$CR$11,0))/100000,0)","v":0},{"$f":"IFERROR('Data Input - Option 4'!AD84*INDEX('Energy Prices'!$F$26:$CR$31,MATCH($B128,'Energy Prices'!$C$26:$C$31,0),MATCH(Calc_Option4!Z$6,'Energy Prices'!$F$11:$CR$11,0))/100000,0)","v":0},{"$f":"IFERROR('Data Input - Option 4'!AE84*INDEX('Energy Prices'!$F$26:$CR$31,MATCH($B128,'Energy Prices'!$C$26:$C$31,0),MATCH(Calc_Option4!AA$6,'Energy Prices'!$F$11:$CR$11,0))/100000,0)","v":0},{"$f":"IFERROR('Data Input - Option 4'!AF84*INDEX('Energy Prices'!$F$26:$CR$31,MATCH($B128,'Energy Prices'!$C$26:$C$31,0),MATCH(Calc_Option4!AB$6,'Energy Prices'!$F$11:$CR$11,0))/100000,0)","v":0},{"$f":"IFERROR('Data Input - Option 4'!AG84*INDEX('Energy Prices'!$F$26:$CR$31,MATCH($B128,'Energy Prices'!$C$26:$C$31,0),MATCH(Calc_Option4!AC$6,'Energy Prices'!$F$11:$CR$11,0))/100000,0)","v":0},{"$f":"IFERROR('Data Input - Option 4'!AH84*INDEX('Energy Prices'!$F$26:$CR$31,MATCH($B128,'Energy Prices'!$C$26:$C$31,0),MATCH(Calc_Option4!AD$6,'Energy Prices'!$F$11:$CR$11,0))/100000,0)","v":0},{"$f":"IFERROR('Data Input - Option 4'!AI84*INDEX('Energy Prices'!$F$26:$CR$31,MATCH($B128,'Energy Prices'!$C$26:$C$31,0),MATCH(Calc_Option4!AE$6,'Energy Prices'!$F$11:$CR$11,0))/100000,0)","v":0},{"$f":"IFERROR('Data Input - Option 4'!AJ84*INDEX('Energy Prices'!$F$26:$CR$31,MATCH($B128,'Energy Prices'!$C$26:$C$31,0),MATCH(Calc_Option4!AF$6,'Energy Prices'!$F$11:$CR$11,0))/100000,0)","v":0},{"$f":"IFERROR('Data Input - Option 4'!AK84*INDEX('Energy Prices'!$F$26:$CR$31,MATCH($B128,'Energy Prices'!$C$26:$C$31,0),MATCH(Calc_Option4!AG$6,'Energy Prices'!$F$11:$CR$11,0))/100000,0)","v":0},{"$f":"IFERROR('Data Input - Option 4'!AL84*INDEX('Energy Prices'!$F$26:$CR$31,MATCH($B128,'Energy Prices'!$C$26:$C$31,0),MATCH(Calc_Option4!AH$6,'Energy Prices'!$F$11:$CR$11,0))/100000,0)","v":0},{"$f":"IFERROR('Data Input - Option 4'!AM84*INDEX('Energy Prices'!$F$26:$CR$31,MATCH($B128,'Energy Prices'!$C$26:$C$31,0),MATCH(Calc_Option4!AI$6,'Energy Prices'!$F$11:$CR$11,0))/100000,0)","v":0},{"$f":"IFERROR('Data Input - Option 4'!AN84*INDEX('Energy Prices'!$F$26:$CR$31,MATCH($B128,'Energy Prices'!$C$26:$C$31,0),MATCH(Calc_Option4!AJ$6,'Energy Prices'!$F$11:$CR$11,0))/100000,0)","v":0},{"$f":"IFERROR('Data Input - Option 4'!AO84*INDEX('Energy Prices'!$F$26:$CR$31,MATCH($B128,'Energy Prices'!$C$26:$C$31,0),MATCH(Calc_Option4!AK$6,'Energy Prices'!$F$11:$CR$11,0))/100000,0)","v":0},{"$f":"IFERROR('Data Input - Option 4'!AP84*INDEX('Energy Prices'!$F$26:$CR$31,MATCH($B128,'Energy Prices'!$C$26:$C$31,0),MATCH(Calc_Option4!AL$6,'Energy Prices'!$F$11:$CR$11,0))/100000,0)","v":0},{"$f":"IFERROR('Data Input - Option 4'!AQ84*INDEX('Energy Prices'!$F$26:$CR$31,MATCH($B128,'Energy Prices'!$C$26:$C$31,0),MATCH(Calc_Option4!AM$6,'Energy Prices'!$F$11:$CR$11,0))/100000,0)","v":0},{"$f":"IFERROR('Data Input - Option 4'!AR84*INDEX('Energy Prices'!$F$26:$CR$31,MATCH($B128,'Energy Prices'!$C$26:$C$31,0),MATCH(Calc_Option4!AN$6,'Energy Prices'!$F$11:$CR$11,0))/100000,0)","v":0},{"$f":"IFERROR('Data Input - Option 4'!AS84*INDEX('Energy Prices'!$F$26:$CR$31,MATCH($B128,'Energy Prices'!$C$26:$C$31,0),MATCH(Calc_Option4!AO$6,'Energy Prices'!$F$11:$CR$11,0))/100000,0)","v":0},{"$f":"IFERROR('Data Input - Option 4'!AT84*INDEX('Energy Prices'!$F$26:$CR$31,MATCH($B128,'Energy Prices'!$C$26:$C$31,0),MATCH(Calc_Option4!AP$6,'Energy Prices'!$F$11:$CR$11,0))/100000,0)","v":0},{"$f":"IFERROR('Data Input - Option 4'!AU84*INDEX('Energy Prices'!$F$26:$CR$31,MATCH($B128,'Energy Prices'!$C$26:$C$31,0),MATCH(Calc_Option4!AQ$6,'Energy Prices'!$F$11:$CR$11,0))/100000,0)","v":0},{"$f":"IFERROR('Data Input - Option 4'!AV84*INDEX('Energy Prices'!$F$26:$CR$31,MATCH($B128,'Energy Prices'!$C$26:$C$31,0),MATCH(Calc_Option4!AR$6,'Energy Prices'!$F$11:$CR$11,0))/100000,0)","v":0},{"$f":"IFERROR('Data Input - Option 4'!AW84*INDEX('Energy Prices'!$F$26:$CR$31,MATCH($B128,'Energy Prices'!$C$26:$C$31,0),MATCH(Calc_Option4!AS$6,'Energy Prices'!$F$11:$CR$11,0))/100000,0)","v":0},{"$f":"IFERROR('Data Input - Option 4'!AX84*INDEX('Energy Prices'!$F$26:$CR$31,MATCH($B128,'Energy Prices'!$C$26:$C$31,0),MATCH(Calc_Option4!AT$6,'Energy Prices'!$F$11:$CR$11,0))/100000,0)","v":0},{"$f":"IFERROR('Data Input - Option 4'!AY84*INDEX('Energy Prices'!$F$26:$CR$31,MATCH($B128,'Energy Prices'!$C$26:$C$31,0),MATCH(Calc_Option4!AU$6,'Energy Prices'!$F$11:$CR$11,0))/100000,0)","v":0},{"$f":"IFERROR('Data Input - Option 4'!AZ84*INDEX('Energy Prices'!$F$26:$CR$31,MATCH($B128,'Energy Prices'!$C$26:$C$31,0),MATCH(Calc_Option4!AV$6,'Energy Prices'!$F$11:$CR$11,0))/100000,0)","v":0},{"$f":"IFERROR('Data Input - Option 4'!BA84*INDEX('Energy Prices'!$F$26:$CR$31,MATCH($B128,'Energy Prices'!$C$26:$C$31,0),MATCH(Calc_Option4!AW$6,'Energy Prices'!$F$11:$CR$11,0))/100000,0)","v":0},{"$f":"IFERROR('Data Input - Option 4'!BB84*INDEX('Energy Prices'!$F$26:$CR$31,MATCH($B128,'Energy Prices'!$C$26:$C$31,0),MATCH(Calc_Option4!AX$6,'Energy Prices'!$F$11:$CR$11,0))/100000,0)","v":0},{"$f":"IFERROR('Data Input - Option 4'!BC84*INDEX('Energy Prices'!$F$26:$CR$31,MATCH($B128,'Energy Prices'!$C$26:$C$31,0),MATCH(Calc_Option4!AY$6,'Energy Prices'!$F$11:$CR$11,0))/100000,0)","v":0},{"$f":"IFERROR('Data Input - Option 4'!BD84*INDEX('Energy Prices'!$F$26:$CR$31,MATCH($B128,'Energy Prices'!$C$26:$C$31,0),MATCH(Calc_Option4!AZ$6,'Energy Prices'!$F$11:$CR$11,0))/100000,0)","v":0},{"$f":"IFERROR('Data Input - Option 4'!BE84*INDEX('Energy Prices'!$F$26:$CR$31,MATCH($B128,'Energy Prices'!$C$26:$C$31,0),MATCH(Calc_Option4!BA$6,'Energy Prices'!$F$11:$CR$11,0))/100000,0)","v":0},{"$f":"IFERROR('Data Input - Option 4'!BF84*INDEX('Energy Prices'!$F$26:$CR$31,MATCH($B128,'Energy Prices'!$C$26:$C$31,0),MATCH(Calc_Option4!BB$6,'Energy Prices'!$F$11:$CR$11,0))/100000,0)","v":0},{"$f":"IFERROR('Data Input - Option 4'!BG84*INDEX('Energy Prices'!$F$26:$CR$31,MATCH($B128,'Energy Prices'!$C$26:$C$31,0),MATCH(Calc_Option4!BC$6,'Energy Prices'!$F$11:$CR$11,0))/100000,0)","v":0},{"$f":"IFERROR('Data Input - Option 4'!BH84*INDEX('Energy Prices'!$F$26:$CR$31,MATCH($B128,'Energy Prices'!$C$26:$C$31,0),MATCH(Calc_Option4!BD$6,'Energy Prices'!$F$11:$CR$11,0))/100000,0)","v":0},{"$f":"IFERROR('Data Input - Option 4'!BI84*INDEX('Energy Prices'!$F$26:$CR$31,MATCH($B128,'Energy Prices'!$C$26:$C$31,0),MATCH(Calc_Option4!BE$6,'Energy Prices'!$F$11:$CR$11,0))/100000,0)","v":0},{"$f":"IFERROR('Data Input - Option 4'!BJ84*INDEX('Energy Prices'!$F$26:$CR$31,MATCH($B128,'Energy Prices'!$C$26:$C$31,0),MATCH(Calc_Option4!BF$6,'Energy Prices'!$F$11:$CR$11,0))/100000,0)","v":0},{"$f":"IFERROR('Data Input - Option 4'!BK84*INDEX('Energy Prices'!$F$26:$CR$31,MATCH($B128,'Energy Prices'!$C$26:$C$31,0),MATCH(Calc_Option4!BG$6,'Energy Prices'!$F$11:$CR$11,0))/100000,0)","v":0},{"$f":"IFERROR('Data Input - Option 4'!BL84*INDEX('Energy Prices'!$F$26:$CR$31,MATCH($B128,'Energy Prices'!$C$26:$C$31,0),MATCH(Calc_Option4!BH$6,'Energy Prices'!$F$11:$CR$11,0))/100000,0)","v":0},{"$f":"IFERROR('Data Input - Option 4'!BM84*INDEX('Energy Prices'!$F$26:$CR$31,MATCH($B128,'Energy Prices'!$C$26:$C$31,0),MATCH(Calc_Option4!BI$6,'Energy Prices'!$F$11:$CR$11,0))/100000,0)","v":0},{"$f":"IFERROR('Data Input - Option 4'!BN84*INDEX('Energy Prices'!$F$26:$CR$31,MATCH($B128,'Energy Prices'!$C$26:$C$31,0),MATCH(Calc_Option4!BJ$6,'Energy Prices'!$F$11:$CR$11,0))/100000,0)","v":0},{"$f":"IFERROR('Data Input - Option 4'!BO84*INDEX('Energy Prices'!$F$26:$CR$31,MATCH($B128,'Energy Prices'!$C$26:$C$31,0),MATCH(Calc_Option4!BK$6,'Energy Prices'!$F$11:$CR$11,0))/100000,0)","v":0},{"$f":"IFERROR('Data Input - Option 4'!BP84*INDEX('Energy Prices'!$F$26:$CR$31,MATCH($B128,'Energy Prices'!$C$26:$C$31,0),MATCH(Calc_Option4!BL$6,'Energy Prices'!$F$11:$CR$11,0))/100000,0)","v":0},{"$f":"IFERROR('Data Input - Option 4'!BQ84*INDEX('Energy Prices'!$F$26:$CR$31,MATCH($B128,'Energy Prices'!$C$26:$C$31,0),MATCH(Calc_Option4!BM$6,'Energy Prices'!$F$11:$CR$11,0))/100000,0)","v":0},{"$f":"IFERROR('Data Input - Option 4'!BR84*INDEX('Energy Prices'!$F$26:$CR$31,MATCH($B128,'Energy Prices'!$C$26:$C$31,0),MATCH(Calc_Option4!BN$6,'Energy Prices'!$F$11:$CR$11,0))/100000,0)","v":0},{"$f":"IFERROR('Data Input - Option 4'!BS84*INDEX('Energy Prices'!$F$26:$CR$31,MATCH($B128,'Energy Prices'!$C$26:$C$31,0),MATCH(Calc_Option4!BO$6,'Energy Prices'!$F$11:$CR$11,0))/100000,0)","v":0},{"$f":"IFERROR('Data Input - Option 4'!BT84*INDEX('Energy Prices'!$F$26:$CR$31,MATCH($B128,'Energy Prices'!$C$26:$C$31,0),MATCH(Calc_Option4!BP$6,'Energy Prices'!$F$11:$CR$11,0))/100000,0)","v":0},{"$f":"IFERROR('Data Input - Option 4'!BU84*INDEX('Energy Prices'!$F$26:$CR$31,MATCH($B128,'Energy Prices'!$C$26:$C$31,0),MATCH(Calc_Option4!BQ$6,'Energy Prices'!$F$11:$CR$11,0))/100000,0)","v":0},{"$f":"IFERROR('Data Input - Option 4'!BV84*INDEX('Energy Prices'!$F$26:$CR$31,MATCH($B128,'Energy Prices'!$C$26:$C$31,0),MATCH(Calc_Option4!BR$6,'Energy Prices'!$F$11:$CR$11,0))/100000,0)","v":0},{"$f":"IFERROR('Data Input - Option 4'!BW84*INDEX('Energy Prices'!$F$26:$CR$31,MATCH($B128,'Energy Prices'!$C$26:$C$31,0),MATCH(Calc_Option4!BS$6,'Energy Prices'!$F$11:$CR$11,0))/100000,0)","v":0},{"$f":"IFERROR('Data Input - Option 4'!BX84*INDEX('Energy Prices'!$F$26:$CR$31,MATCH($B128,'Energy Prices'!$C$26:$C$31,0),MATCH(Calc_Option4!BT$6,'Energy Prices'!$F$11:$CR$11,0))/100000,0)","v":0},{"$f":"IFERROR('Data Input - Option 4'!BY84*INDEX('Energy Prices'!$F$26:$CR$31,MATCH($B128,'Energy Prices'!$C$26:$C$31,0),MATCH(Calc_Option4!BU$6,'Energy Prices'!$F$11:$CR$11,0))/100000,0)","v":0},{"$f":"IFERROR('Data Input - Option 4'!BZ84*INDEX('Energy Prices'!$F$26:$CR$31,MATCH($B128,'Energy Prices'!$C$26:$C$31,0),MATCH(Calc_Option4!BV$6,'Energy Prices'!$F$11:$CR$11,0))/100000,0)","v":0},{"$f":"IFERROR('Data Input - Option 4'!CA84*INDEX('Energy Prices'!$F$26:$CR$31,MATCH($B128,'Energy Prices'!$C$26:$C$31,0),MATCH(Calc_Option4!BW$6,'Energy Prices'!$F$11:$CR$11,0))/100000,0)","v":0},{"$f":"IFERROR('Data Input - Option 4'!CB84*INDEX('Energy Prices'!$F$26:$CR$31,MATCH($B128,'Energy Prices'!$C$26:$C$31,0),MATCH(Calc_Option4!BX$6,'Energy Prices'!$F$11:$CR$11,0))/100000,0)","v":0},{"$f":"IFERROR('Data Input - Option 4'!CC84*INDEX('Energy Prices'!$F$26:$CR$31,MATCH($B128,'Energy Prices'!$C$26:$C$31,0),MATCH(Calc_Option4!BY$6,'Energy Prices'!$F$11:$CR$11,0))/100000,0)","v":0},{"$f":"IFERROR('Data Input - Option 4'!CD84*INDEX('Energy Prices'!$F$26:$CR$31,MATCH($B128,'Energy Prices'!$C$26:$C$31,0),MATCH(Calc_Option4!BZ$6,'Energy Prices'!$F$11:$CR$11,0))/100000,0)","v":0},{"$f":"IFERROR('Data Input - Option 4'!CE84*INDEX('Energy Prices'!$F$26:$CR$31,MATCH($B128,'Energy Prices'!$C$26:$C$31,0),MATCH(Calc_Option4!CA$6,'Energy Prices'!$F$11:$CR$11,0))/100000,0)","v":0},{"$f":"IFERROR('Data Input - Option 4'!CF84*INDEX('Energy Prices'!$F$26:$CR$31,MATCH($B128,'Energy Prices'!$C$26:$C$31,0),MATCH(Calc_Option4!CB$6,'Energy Prices'!$F$11:$CR$11,0))/100000,0)","v":0},{"$f":"IFERROR('Data Input - Option 4'!CG84*INDEX('Energy Prices'!$F$26:$CR$31,MATCH($B128,'Energy Prices'!$C$26:$C$31,0),MATCH(Calc_Option4!CC$6,'Energy Prices'!$F$11:$CR$11,0))/100000,0)","v":0},{"$f":"IFERROR('Data Input - Option 4'!CH84*INDEX('Energy Prices'!$F$26:$CR$31,MATCH($B128,'Energy Prices'!$C$26:$C$31,0),MATCH(Calc_Option4!CD$6,'Energy Prices'!$F$11:$CR$11,0))/100000,0)","v":0},{"$f":"IFERROR('Data Input - Option 4'!CI84*INDEX('Energy Prices'!$F$26:$CR$31,MATCH($B128,'Energy Prices'!$C$26:$C$31,0),MATCH(Calc_Option4!CE$6,'Energy Prices'!$F$11:$CR$11,0))/100000,0)","v":0},{"$f":"IFERROR('Data Input - Option 4'!CJ84*INDEX('Energy Prices'!$F$26:$CR$31,MATCH($B128,'Energy Prices'!$C$26:$C$31,0),MATCH(Calc_Option4!CF$6,'Energy Prices'!$F$11:$CR$11,0))/100000,0)","v":0},{"$f":"IFERROR('Data Input - Option 4'!CK84*INDEX('Energy Prices'!$F$26:$CR$31,MATCH($B128,'Energy Prices'!$C$26:$C$31,0),MATCH(Calc_Option4!CG$6,'Energy Prices'!$F$11:$CR$11,0))/100000,0)","v":0},{"$f":"IFERROR('Data Input - Option 4'!CL84*INDEX('Energy Prices'!$F$26:$CR$31,MATCH($B128,'Energy Prices'!$C$26:$C$31,0),MATCH(Calc_Option4!CH$6,'Energy Prices'!$F$11:$CR$11,0))/100000,0)","v":0},{"$f":"IFERROR('Data Input - Option 4'!CM84*INDEX('Energy Prices'!$F$26:$CR$31,MATCH($B128,'Energy Prices'!$C$26:$C$31,0),MATCH(Calc_Option4!CI$6,'Energy Prices'!$F$11:$CR$11,0))/100000,0)","v":0},{"$f":"IFERROR('Data Input - Option 4'!CN84*INDEX('Energy Prices'!$F$26:$CR$31,MATCH($B128,'Energy Prices'!$C$26:$C$31,0),MATCH(Calc_Option4!CJ$6,'Energy Prices'!$F$11:$CR$11,0))/100000,0)","v":0},{"$f":"IFERROR('Data Input - Option 4'!CO84*INDEX('Energy Prices'!$F$26:$CR$31,MATCH($B128,'Energy Prices'!$C$26:$C$31,0),MATCH(Calc_Option4!CK$6,'Energy Prices'!$F$11:$CR$11,0))/100000,0)","v":0},{"$f":"IFERROR('Data Input - Option 4'!CP84*INDEX('Energy Prices'!$F$26:$CR$31,MATCH($B128,'Energy Prices'!$C$26:$C$31,0),MATCH(Calc_Option4!CL$6,'Energy Prices'!$F$11:$CR$11,0))/100000,0)","v":0},{"$f":"IFERROR('Data Input - Option 4'!CQ84*INDEX('Energy Prices'!$F$26:$CR$31,MATCH($B128,'Energy Prices'!$C$26:$C$31,0),MATCH(Calc_Option4!CM$6,'Energy Prices'!$F$11:$CR$11,0))/100000,0)","v":0},{"$f":"IFERROR('Data Input - Option 4'!CR84*INDEX('Energy Prices'!$F$26:$CR$31,MATCH($B128,'Energy Prices'!$C$26:$C$31,0),MATCH(Calc_Option4!CN$6,'Energy Prices'!$F$11:$CR$11,0))/100000,0)","v":0},{"$f":"IFERROR('Data Input - Option 4'!CS84*INDEX('Energy Prices'!$F$26:$CR$31,MATCH($B128,'Energy Prices'!$C$26:$C$31,0),MATCH(Calc_Option4!CO$6,'Energy Prices'!$F$11:$CR$11,0))/100000,0)","v":0},{"$f":"IFERROR('Data Input - Option 4'!CT84*INDEX('Energy Prices'!$F$26:$CR$31,MATCH($B128,'Energy Prices'!$C$26:$C$31,0),MATCH(Calc_Option4!CP$6,'Energy Prices'!$F$11:$CR$11,0))/100000,0)","v":0},{"$f":"IFERROR('Data Input - Option 4'!CU84*INDEX('Energy Prices'!$F$26:$CR$31,MATCH($B128,'Energy Prices'!$C$26:$C$31,0),MATCH(Calc_Option4!CQ$6,'Energy Prices'!$F$11:$CR$11,0))/100000,0)","v":0},{"$f":"IFERROR('Data Input - Option 4'!CV84*INDEX('Energy Prices'!$F$26:$CR$31,MATCH($B128,'Energy Prices'!$C$26:$C$31,0),MATCH(Calc_Option4!CR$6,'Energy Prices'!$F$11:$CR$11,0))/100000,0)","v":0},{"$f":"IFERROR('Data Input - Option 4'!CW84*INDEX('Energy Prices'!$F$26:$CR$31,MATCH($B128,'Energy Prices'!$C$26:$C$31,0),MATCH(Calc_Option4!CS$6,'Energy Prices'!$F$11:$CR$11,0))/100000,0)","v":0},{"$f":"IFERROR('Data Input - Option 4'!CX84*INDEX('Energy Prices'!$F$26:$CR$31,MATCH($B128,'Energy Prices'!$C$26:$C$31,0),MATCH(Calc_Option4!CT$6,'Energy Prices'!$F$11:$CR$11,0))/100000,0)","v":0},{"$f":"IFERROR('Data Input - Option 4'!CY84*INDEX('Energy Prices'!$F$26:$CR$31,MATCH($B128,'Energy Prices'!$C$26:$C$31,0),MATCH(Calc_Option4!CU$6,'Energy Prices'!$F$11:$CR$11,0))/100000,0)","v":0},{"$f":"IFERROR('Data Input - Option 4'!CZ84*INDEX('Energy Prices'!$F$26:$CR$31,MATCH($B128,'Energy Prices'!$C$26:$C$31,0),MATCH(Calc_Option4!CV$6,'Energy Prices'!$F$11:$CR$11,0))/100000,0)","v":0},{"$f":"IFERROR('Data Input - Option 4'!DA84*INDEX('Energy Prices'!$F$26:$CR$31,MATCH($B128,'Energy Prices'!$C$26:$C$31,0),MATCH(Calc_Option4!CW$6,'Energy Prices'!$F$11:$CR$11,0))/100000,0)","v":0},{"$f":"IFERROR('Data Input - Option 4'!DB84*INDEX('Energy Prices'!$F$26:$CR$31,MATCH($B128,'Energy Prices'!$C$26:$C$31,0),MATCH(Calc_Option4!CX$6,'Energy Prices'!$F$11:$CR$11,0))/100000,0)","v":0},{"$f":"IFERROR('Data Input - Option 4'!DC84*INDEX('Energy Prices'!$F$26:$CR$31,MATCH($B128,'Energy Prices'!$C$26:$C$31,0),MATCH(Calc_Option4!CY$6,'Energy Prices'!$F$11:$CR$11,0))/100000,0)","v":0}]
[null,"Natural Gas","£000's",{"$f":"IFERROR('Data Input - Option 4'!H85*INDEX('Energy Prices'!$F$26:$CR$31,MATCH($B129,'Energy Prices'!$C$26:$C$31,0),MATCH(Calc_Option4!D$6,'Energy Prices'!$F$11:$CR$11,0))/100000,0)","v":0},{"$f":"IFERROR('Data Input - Option 4'!I85*INDEX('Energy Prices'!$F$26:$CR$31,MATCH($B129,'Energy Prices'!$C$26:$C$31,0),MATCH(Calc_Option4!E$6,'Energy Prices'!$F$11:$CR$11,0))/100000,0)","v":0},{"$f":"IFERROR('Data Input - Option 4'!J85*INDEX('Energy Prices'!$F$26:$CR$31,MATCH($B129,'Energy Prices'!$C$26:$C$31,0),MATCH(Calc_Option4!F$6,'Energy Prices'!$F$11:$CR$11,0))/100000,0)","v":0},{"$f":"IFERROR('Data Input - Option 4'!K85*INDEX('Energy Prices'!$F$26:$CR$31,MATCH($B129,'Energy Prices'!$C$26:$C$31,0),MATCH(Calc_Option4!G$6,'Energy Prices'!$F$11:$CR$11,0))/100000,0)","v":0},{"$f":"IFERROR('Data Input - Option 4'!L85*INDEX('Energy Prices'!$F$26:$CR$31,MATCH($B129,'Energy Prices'!$C$26:$C$31,0),MATCH(Calc_Option4!H$6,'Energy Prices'!$F$11:$CR$11,0))/100000,0)","v":0},{"$f":"IFERROR('Data Input - Option 4'!M85*INDEX('Energy Prices'!$F$26:$CR$31,MATCH($B129,'Energy Prices'!$C$26:$C$31,0),MATCH(Calc_Option4!I$6,'Energy Prices'!$F$11:$CR$11,0))/100000,0)","v":0},{"$f":"IFERROR('Data Input - Option 4'!N85*INDEX('Energy Prices'!$F$26:$CR$31,MATCH($B129,'Energy Prices'!$C$26:$C$31,0),MATCH(Calc_Option4!J$6,'Energy Prices'!$F$11:$CR$11,0))/100000,0)","v":0},{"$f":"IFERROR('Data Input - Option 4'!O85*INDEX('Energy Prices'!$F$26:$CR$31,MATCH($B129,'Energy Prices'!$C$26:$C$31,0),MATCH(Calc_Option4!K$6,'Energy Prices'!$F$11:$CR$11,0))/100000,0)","v":0},{"$f":"IFERROR('Data Input - Option 4'!P85*INDEX('Energy Prices'!$F$26:$CR$31,MATCH($B129,'Energy Prices'!$C$26:$C$31,0),MATCH(Calc_Option4!L$6,'Energy Prices'!$F$11:$CR$11,0))/100000,0)","v":0},{"$f":"IFERROR('Data Input - Option 4'!Q85*INDEX('Energy Prices'!$F$26:$CR$31,MATCH($B129,'Energy Prices'!$C$26:$C$31,0),MATCH(Calc_Option4!M$6,'Energy Prices'!$F$11:$CR$11,0))/100000,0)","v":0},{"$f":"IFERROR('Data Input - Option 4'!R85*INDEX('Energy Prices'!$F$26:$CR$31,MATCH($B129,'Energy Prices'!$C$26:$C$31,0),MATCH(Calc_Option4!N$6,'Energy Prices'!$F$11:$CR$11,0))/100000,0)","v":0},{"$f":"IFERROR('Data Input - Option 4'!S85*INDEX('Energy Prices'!$F$26:$CR$31,MATCH($B129,'Energy Prices'!$C$26:$C$31,0),MATCH(Calc_Option4!O$6,'Energy Prices'!$F$11:$CR$11,0))/100000,0)","v":0},{"$f":"IFERROR('Data Input - Option 4'!T85*INDEX('Energy Prices'!$F$26:$CR$31,MATCH($B129,'Energy Prices'!$C$26:$C$31,0),MATCH(Calc_Option4!P$6,'Energy Prices'!$F$11:$CR$11,0))/100000,0)","v":0},{"$f":"IFERROR('Data Input - Option 4'!U85*INDEX('Energy Prices'!$F$26:$CR$31,MATCH($B129,'Energy Prices'!$C$26:$C$31,0),MATCH(Calc_Option4!Q$6,'Energy Prices'!$F$11:$CR$11,0))/100000,0)","v":0},{"$f":"IFERROR('Data Input - Option 4'!V85*INDEX('Energy Prices'!$F$26:$CR$31,MATCH($B129,'Energy Prices'!$C$26:$C$31,0),MATCH(Calc_Option4!R$6,'Energy Prices'!$F$11:$CR$11,0))/100000,0)","v":0},{"$f":"IFERROR('Data Input - Option 4'!W85*INDEX('Energy Prices'!$F$26:$CR$31,MATCH($B129,'Energy Prices'!$C$26:$C$31,0),MATCH(Calc_Option4!S$6,'Energy Prices'!$F$11:$CR$11,0))/100000,0)","v":0},{"$f":"IFERROR('Data Input - Option 4'!X85*INDEX('Energy Prices'!$F$26:$CR$31,MATCH($B129,'Energy Prices'!$C$26:$C$31,0),MATCH(Calc_Option4!T$6,'Energy Prices'!$F$11:$CR$11,0))/100000,0)","v":0},{"$f":"IFERROR('Data Input - Option 4'!Y85*INDEX('Energy Prices'!$F$26:$CR$31,MATCH($B129,'Energy Prices'!$C$26:$C$31,0),MATCH(Calc_Option4!U$6,'Energy Prices'!$F$11:$CR$11,0))/100000,0)","v":0},{"$f":"IFERROR('Data Input - Option 4'!Z85*INDEX('Energy Prices'!$F$26:$CR$31,MATCH($B129,'Energy Prices'!$C$26:$C$31,0),MATCH(Calc_Option4!V$6,'Energy Prices'!$F$11:$CR$11,0))/100000,0)","v":0},{"$f":"IFERROR('Data Input - Option 4'!AA85*INDEX('Energy Prices'!$F$26:$CR$31,MATCH($B129,'Energy Prices'!$C$26:$C$31,0),MATCH(Calc_Option4!W$6,'Energy Prices'!$F$11:$CR$11,0))/100000,0)","v":0},{"$f":"IFERROR('Data Input - Option 4'!AB85*INDEX('Energy Prices'!$F$26:$CR$31,MATCH($B129,'Energy Prices'!$C$26:$C$31,0),MATCH(Calc_Option4!X$6,'Energy Prices'!$F$11:$CR$11,0))/100000,0)","v":0},{"$f":"IFERROR('Data Input - Option 4'!AC85*INDEX('Energy Prices'!$F$26:$CR$31,MATCH($B129,'Energy Prices'!$C$26:$C$31,0),MATCH(Calc_Option4!Y$6,'Energy Prices'!$F$11:$CR$11,0))/100000,0)","v":0},{"$f":"IFERROR('Data Input - Option 4'!AD85*INDEX('Energy Prices'!$F$26:$CR$31,MATCH($B129,'Energy Prices'!$C$26:$C$31,0),MATCH(Calc_Option4!Z$6,'Energy Prices'!$F$11:$CR$11,0))/100000,0)","v":0},{"$f":"IFERROR('Data Input - Option 4'!AE85*INDEX('Energy Prices'!$F$26:$CR$31,MATCH($B129,'Energy Prices'!$C$26:$C$31,0),MATCH(Calc_Option4!AA$6,'Energy Prices'!$F$11:$CR$11,0))/100000,0)","v":0},{"$f":"IFERROR('Data Input - Option 4'!AF85*INDEX('Energy Prices'!$F$26:$CR$31,MATCH($B129,'Energy Prices'!$C$26:$C$31,0),MATCH(Calc_Option4!AB$6,'Energy Prices'!$F$11:$CR$11,0))/100000,0)","v":0},{"$f":"IFERROR('Data Input - Option 4'!AG85*INDEX('Energy Prices'!$F$26:$CR$31,MATCH($B129,'Energy Prices'!$C$26:$C$31,0),MATCH(Calc_Option4!AC$6,'Energy Prices'!$F$11:$CR$11,0))/100000,0)","v":0},{"$f":"IFERROR('Data Input - Option 4'!AH85*INDEX('Energy Prices'!$F$26:$CR$31,MATCH($B129,'Energy Prices'!$C$26:$C$31,0),MATCH(Calc_Option4!AD$6,'Energy Prices'!$F$11:$CR$11,0))/100000,0)","v":0},{"$f":"IFERROR('Data Input - Option 4'!AI85*INDEX('Energy Prices'!$F$26:$CR$31,MATCH($B129,'Energy Prices'!$C$26:$C$31,0),MATCH(Calc_Option4!AE$6,'Energy Prices'!$F$11:$CR$11,0))/100000,0)","v":0},{"$f":"IFERROR('Data Input - Option 4'!AJ85*INDEX('Energy Prices'!$F$26:$CR$31,MATCH($B129,'Energy Prices'!$C$26:$C$31,0),MATCH(Calc_Option4!AF$6,'Energy Prices'!$F$11:$CR$11,0))/100000,0)","v":0},{"$f":"IFERROR('Data Input - Option 4'!AK85*INDEX('Energy Prices'!$F$26:$CR$31,MATCH($B129,'Energy Prices'!$C$26:$C$31,0),MATCH(Calc_Option4!AG$6,'Energy Prices'!$F$11:$CR$11,0))/100000,0)","v":0},{"$f":"IFERROR('Data Input - Option 4'!AL85*INDEX('Energy Prices'!$F$26:$CR$31,MATCH($B129,'Energy Prices'!$C$26:$C$31,0),MATCH(Calc_Option4!AH$6,'Energy Prices'!$F$11:$CR$11,0))/100000,0)","v":0},{"$f":"IFERROR('Data Input - Option 4'!AM85*INDEX('Energy Prices'!$F$26:$CR$31,MATCH($B129,'Energy Prices'!$C$26:$C$31,0),MATCH(Calc_Option4!AI$6,'Energy Prices'!$F$11:$CR$11,0))/100000,0)","v":0},{"$f":"IFERROR('Data Input - Option 4'!AN85*INDEX('Energy Prices'!$F$26:$CR$31,MATCH($B129,'Energy Prices'!$C$26:$C$31,0),MATCH(Calc_Option4!AJ$6,'Energy Prices'!$F$11:$CR$11,0))/100000,0)","v":0},{"$f":"IFERROR('Data Input - Option 4'!AO85*INDEX('Energy Prices'!$F$26:$CR$31,MATCH($B129,'Energy Prices'!$C$26:$C$31,0),MATCH(Calc_Option4!AK$6,'Energy Prices'!$F$11:$CR$11,0))/100000,0)","v":0},{"$f":"IFERROR('Data Input - Option 4'!AP85*INDEX('Energy Prices'!$F$26:$CR$31,MATCH($B129,'Energy Prices'!$C$26:$C$31,0),MATCH(Calc_Option4!AL$6,'Energy Prices'!$F$11:$CR$11,0))/100000,0)","v":0},{"$f":"IFERROR('Data Input - Option 4'!AQ85*INDEX('Energy Prices'!$F$26:$CR$31,MATCH($B129,'Energy Prices'!$C$26:$C$31,0),MATCH(Calc_Option4!AM$6,'Energy Prices'!$F$11:$CR$11,0))/100000,0)","v":0},{"$f":"IFERROR('Data Input - Option 4'!AR85*INDEX('Energy Prices'!$F$26:$CR$31,MATCH($B129,'Energy Prices'!$C$26:$C$31,0),MATCH(Calc_Option4!AN$6,'Energy Prices'!$F$11:$CR$11,0))/100000,0)","v":0},{"$f":"IFERROR('Data Input - Option 4'!AS85*INDEX('Energy Prices'!$F$26:$CR$31,MATCH($B129,'Energy Prices'!$C$26:$C$31,0),MATCH(Calc_Option4!AO$6,'Energy Prices'!$F$11:$CR$11,0))/100000,0)","v":0},{"$f":"IFERROR('Data Input - Option 4'!AT85*INDEX('Energy Prices'!$F$26:$CR$31,MATCH($B129,'Energy Prices'!$C$26:$C$31,0),MATCH(Calc_Option4!AP$6,'Energy Prices'!$F$11:$CR$11,0))/100000,0)","v":0},{"$f":"IFERROR('Data Input - Option 4'!AU85*INDEX('Energy Prices'!$F$26:$CR$31,MATCH($B129,'Energy Prices'!$C$26:$C$31,0),MATCH(Calc_Option4!AQ$6,'Energy Prices'!$F$11:$CR$11,0))/100000,0)","v":0},{"$f":"IFERROR('Data Input - Option 4'!AV85*INDEX('Energy Prices'!$F$26:$CR$31,MATCH($B129,'Energy Prices'!$C$26:$C$31,0),MATCH(Calc_Option4!AR$6,'Energy Prices'!$F$11:$CR$11,0))/100000,0)","v":0},{"$f":"IFERROR('Data Input - Option 4'!AW85*INDEX('Energy Prices'!$F$26:$CR$31,MATCH($B129,'Energy Prices'!$C$26:$C$31,0),MATCH(Calc_Option4!AS$6,'Energy Prices'!$F$11:$CR$11,0))/100000,0)","v":0},{"$f":"IFERROR('Data Input - Option 4'!AX85*INDEX('Energy Prices'!$F$26:$CR$31,MATCH($B129,'Energy Prices'!$C$26:$C$31,0),MATCH(Calc_Option4!AT$6,'Energy Prices'!$F$11:$CR$11,0))/100000,0)","v":0},{"$f":"IFERROR('Data Input - Option 4'!AY85*INDEX('Energy Prices'!$F$26:$CR$31,MATCH($B129,'Energy Prices'!$C$26:$C$31,0),MATCH(Calc_Option4!AU$6,'Energy Prices'!$F$11:$CR$11,0))/100000,0)","v":0},{"$f":"IFERROR('Data Input - Option 4'!AZ85*INDEX('Energy Prices'!$F$26:$CR$31,MATCH($B129,'Energy Prices'!$C$26:$C$31,0),MATCH(Calc_Option4!AV$6,'Energy Prices'!$F$11:$CR$11,0))/100000,0)","v":0},{"$f":"IFERROR('Data Input - Option 4'!BA85*INDEX('Energy Prices'!$F$26:$CR$31,MATCH($B129,'Energy Prices'!$C$26:$C$31,0),MATCH(Calc_Option4!AW$6,'Energy Prices'!$F$11:$CR$11,0))/100000,0)","v":0},{"$f":"IFERROR('Data Input - Option 4'!BB85*INDEX('Energy Prices'!$F$26:$CR$31,MATCH($B129,'Energy Prices'!$C$26:$C$31,0),MATCH(Calc_Option4!AX$6,'Energy Prices'!$F$11:$CR$11,0))/100000,0)","v":0},{"$f":"IFERROR('Data Input - Option 4'!BC85*INDEX('Energy Prices'!$F$26:$CR$31,MATCH($B129,'Energy Prices'!$C$26:$C$31,0),MATCH(Calc_Option4!AY$6,'Energy Prices'!$F$11:$CR$11,0))/100000,0)","v":0},{"$f":"IFERROR('Data Input - Option 4'!BD85*INDEX('Energy Prices'!$F$26:$CR$31,MATCH($B129,'Energy Prices'!$C$26:$C$31,0),MATCH(Calc_Option4!AZ$6,'Energy Prices'!$F$11:$CR$11,0))/100000,0)","v":0},{"$f":"IFERROR('Data Input - Option 4'!BE85*INDEX('Energy Prices'!$F$26:$CR$31,MATCH($B129,'Energy Prices'!$C$26:$C$31,0),MATCH(Calc_Option4!BA$6,'Energy Prices'!$F$11:$CR$11,0))/100000,0)","v":0},{"$f":"IFERROR('Data Input - Option 4'!BF85*INDEX('Energy Prices'!$F$26:$CR$31,MATCH($B129,'Energy Prices'!$C$26:$C$31,0),MATCH(Calc_Option4!BB$6,'Energy Prices'!$F$11:$CR$11,0))/100000,0)","v":0},{"$f":"IFERROR('Data Input - Option 4'!BG85*INDEX('Energy Prices'!$F$26:$CR$31,MATCH($B129,'Energy Prices'!$C$26:$C$31,0),MATCH(Calc_Option4!BC$6,'Energy Prices'!$F$11:$CR$11,0))/100000,0)","v":0},{"$f":"IFERROR('Data Input - Option 4'!BH85*INDEX('Energy Prices'!$F$26:$CR$31,MATCH($B129,'Energy Prices'!$C$26:$C$31,0),MATCH(Calc_Option4!BD$6,'Energy Prices'!$F$11:$CR$11,0))/100000,0)","v":0},{"$f":"IFERROR('Data Input - Option 4'!BI85*INDEX('Energy Prices'!$F$26:$CR$31,MATCH($B129,'Energy Prices'!$C$26:$C$31,0),MATCH(Calc_Option4!BE$6,'Energy Prices'!$F$11:$CR$11,0))/100000,0)","v":0},{"$f":"IFERROR('Data Input - Option 4'!BJ85*INDEX('Energy Prices'!$F$26:$CR$31,MATCH($B129,'Energy Prices'!$C$26:$C$31,0),MATCH(Calc_Option4!BF$6,'Energy Prices'!$F$11:$CR$11,0))/100000,0)","v":0},{"$f":"IFERROR('Data Input - Option 4'!BK85*INDEX('Energy Prices'!$F$26:$CR$31,MATCH($B129,'Energy Prices'!$C$26:$C$31,0),MATCH(Calc_Option4!BG$6,'Energy Prices'!$F$11:$CR$11,0))/100000,0)","v":0},{"$f":"IFERROR('Data Input - Option 4'!BL85*INDEX('Energy Prices'!$F$26:$CR$31,MATCH($B129,'Energy Prices'!$C$26:$C$31,0),MATCH(Calc_Option4!BH$6,'Energy Prices'!$F$11:$CR$11,0))/100000,0)","v":0},{"$f":"IFERROR('Data Input - Option 4'!BM85*INDEX('Energy Prices'!$F$26:$CR$31,MATCH($B129,'Energy Prices'!$C$26:$C$31,0),MATCH(Calc_Option4!BI$6,'Energy Prices'!$F$11:$CR$11,0))/100000,0)","v":0},{"$f":"IFERROR('Data Input - Option 4'!BN85*INDEX('Energy Prices'!$F$26:$CR$31,MATCH($B129,'Energy Prices'!$C$26:$C$31,0),MATCH(Calc_Option4!BJ$6,'Energy Prices'!$F$11:$CR$11,0))/100000,0)","v":0},{"$f":"IFERROR('Data Input - Option 4'!BO85*INDEX('Energy Prices'!$F$26:$CR$31,MATCH($B129,'Energy Prices'!$C$26:$C$31,0),MATCH(Calc_Option4!BK$6,'Energy Prices'!$F$11:$CR$11,0))/100000,0)","v":0},{"$f":"IFERROR('Data Input - Option 4'!BP85*INDEX('Energy Prices'!$F$26:$CR$31,MATCH($B129,'Energy Prices'!$C$26:$C$31,0),MATCH(Calc_Option4!BL$6,'Energy Prices'!$F$11:$CR$11,0))/100000,0)","v":0},{"$f":"IFERROR('Data Input - Option 4'!BQ85*INDEX('Energy Prices'!$F$26:$CR$31,MATCH($B129,'Energy Prices'!$C$26:$C$31,0),MATCH(Calc_Option4!BM$6,'Energy Prices'!$F$11:$CR$11,0))/100000,0)","v":0},{"$f":"IFERROR('Data Input - Option 4'!BR85*INDEX('Energy Prices'!$F$26:$CR$31,MATCH($B129,'Energy Prices'!$C$26:$C$31,0),MATCH(Calc_Option4!BN$6,'Energy Prices'!$F$11:$CR$11,0))/100000,0)","v":0},{"$f":"IFERROR('Data Input - Option 4'!BS85*INDEX('Energy Prices'!$F$26:$CR$31,MATCH($B129,'Energy Prices'!$C$26:$C$31,0),MATCH(Calc_Option4!BO$6,'Energy Prices'!$F$11:$CR$11,0))/100000,0)","v":0},{"$f":"IFERROR('Data Input - Option 4'!BT85*INDEX('Energy Prices'!$F$26:$CR$31,MATCH($B129,'Energy Prices'!$C$26:$C$31,0),MATCH(Calc_Option4!BP$6,'Energy Prices'!$F$11:$CR$11,0))/100000,0)","v":0},{"$f":"IFERROR('Data Input - Option 4'!BU85*INDEX('Energy Prices'!$F$26:$CR$31,MATCH($B129,'Energy Prices'!$C$26:$C$31,0),MATCH(Calc_Option4!BQ$6,'Energy Prices'!$F$11:$CR$11,0))/100000,0)","v":0},{"$f":"IFERROR('Data Input - Option 4'!BV85*INDEX('Energy Prices'!$F$26:$CR$31,MATCH($B129,'Energy Prices'!$C$26:$C$31,0),MATCH(Calc_Option4!BR$6,'Energy Prices'!$F$11:$CR$11,0))/100000,0)","v":0},{"$f":"IFERROR('Data Input - Option 4'!BW85*INDEX('Energy Prices'!$F$26:$CR$31,MATCH($B129,'Energy Prices'!$C$26:$C$31,0),MATCH(Calc_Option4!BS$6,'Energy Prices'!$F$11:$CR$11,0))/100000,0)","v":0},{"$f":"IFERROR('Data Input - Option 4'!BX85*INDEX('Energy Prices'!$F$26:$CR$31,MATCH($B129,'Energy Prices'!$C$26:$C$31,0),MATCH(Calc_Option4!BT$6,'Energy Prices'!$F$11:$CR$11,0))/100000,0)","v":0},{"$f":"IFERROR('Data Input - Option 4'!BY85*INDEX('Energy Prices'!$F$26:$CR$31,MATCH($B129,'Energy Prices'!$C$26:$C$31,0),MATCH(Calc_Option4!BU$6,'Energy Prices'!$F$11:$CR$11,0))/100000,0)","v":0},{"$f":"IFERROR('Data Input - Option 4'!BZ85*INDEX('Energy Prices'!$F$26:$CR$31,MATCH($B129,'Energy Prices'!$C$26:$C$31,0),MATCH(Calc_Option4!BV$6,'Energy Prices'!$F$11:$CR$11,0))/100000,0)","v":0},{"$f":"IFERROR('Data Input - Option 4'!CA85*INDEX('Energy Prices'!$F$26:$CR$31,MATCH($B129,'Energy Prices'!$C$26:$C$31,0),MATCH(Calc_Option4!BW$6,'Energy Prices'!$F$11:$CR$11,0))/100000,0)","v":0},{"$f":"IFERROR('Data Input - Option 4'!CB85*INDEX('Energy Prices'!$F$26:$CR$31,MATCH($B129,'Energy Prices'!$C$26:$C$31,0),MATCH(Calc_Option4!BX$6,'Energy Prices'!$F$11:$CR$11,0))/100000,0)","v":0},{"$f":"IFERROR('Data Input - Option 4'!CC85*INDEX('Energy Prices'!$F$26:$CR$31,MATCH($B129,'Energy Prices'!$C$26:$C$31,0),MATCH(Calc_Option4!BY$6,'Energy Prices'!$F$11:$CR$11,0))/100000,0)","v":0},{"$f":"IFERROR('Data Input - Option 4'!CD85*INDEX('Energy Prices'!$F$26:$CR$31,MATCH($B129,'Energy Prices'!$C$26:$C$31,0),MATCH(Calc_Option4!BZ$6,'Energy Prices'!$F$11:$CR$11,0))/100000,0)","v":0},{"$f":"IFERROR('Data Input - Option 4'!CE85*INDEX('Energy Prices'!$F$26:$CR$31,MATCH($B129,'Energy Prices'!$C$26:$C$31,0),MATCH(Calc_Option4!CA$6,'Energy Prices'!$F$11:$CR$11,0))/100000,0)","v":0},{"$f":"IFERROR('Data Input - Option 4'!CF85*INDEX('Energy Prices'!$F$26:$CR$31,MATCH($B129,'Energy Prices'!$C$26:$C$31,0),MATCH(Calc_Option4!CB$6,'Energy Prices'!$F$11:$CR$11,0))/100000,0)","v":0},{"$f":"IFERROR('Data Input - Option 4'!CG85*INDEX('Energy Prices'!$F$26:$CR$31,MATCH($B129,'Energy Prices'!$C$26:$C$31,0),MATCH(Calc_Option4!CC$6,'Energy Prices'!$F$11:$CR$11,0))/100000,0)","v":0},{"$f":"IFERROR('Data Input - Option 4'!CH85*INDEX('Energy Prices'!$F$26:$CR$31,MATCH($B129,'Energy Prices'!$C$26:$C$31,0),MATCH(Calc_Option4!CD$6,'Energy Prices'!$F$11:$CR$11,0))/100000,0)","v":0},{"$f":"IFERROR('Data Input - Option 4'!CI85*INDEX('Energy Prices'!$F$26:$CR$31,MATCH($B129,'Energy Prices'!$C$26:$C$31,0),MATCH(Calc_Option4!CE$6,'Energy Prices'!$F$11:$CR$11,0))/100000,0)","v":0},{"$f":"IFERROR('Data Input - Option 4'!CJ85*INDEX('Energy Prices'!$F$26:$CR$31,MATCH($B129,'Energy Prices'!$C$26:$C$31,0),MATCH(Calc_Option4!CF$6,'Energy Prices'!$F$11:$CR$11,0))/100000,0)","v":0},{"$f":"IFERROR('Data Input - Option 4'!CK85*INDEX('Energy Prices'!$F$26:$CR$31,MATCH($B129,'Energy Prices'!$C$26:$C$31,0),MATCH(Calc_Option4!CG$6,'Energy Prices'!$F$11:$CR$11,0))/100000,0)","v":0},{"$f":"IFERROR('Data Input - Option 4'!CL85*INDEX('Energy Prices'!$F$26:$CR$31,MATCH($B129,'Energy Prices'!$C$26:$C$31,0),MATCH(Calc_Option4!CH$6,'Energy Prices'!$F$11:$CR$11,0))/100000,0)","v":0},{"$f":"IFERROR('Data Input - Option 4'!CM85*INDEX('Energy Prices'!$F$26:$CR$31,MATCH($B129,'Energy Prices'!$C$26:$C$31,0),MATCH(Calc_Option4!CI$6,'Energy Prices'!$F$11:$CR$11,0))/100000,0)","v":0},{"$f":"IFERROR('Data Input - Option 4'!CN85*INDEX('Energy Prices'!$F$26:$CR$31,MATCH($B129,'Energy Prices'!$C$26:$C$31,0),MATCH(Calc_Option4!CJ$6,'Energy Prices'!$F$11:$CR$11,0))/100000,0)","v":0},{"$f":"IFERROR('Data Input - Option 4'!CO85*INDEX('Energy Prices'!$F$26:$CR$31,MATCH($B129,'Energy Prices'!$C$26:$C$31,0),MATCH(Calc_Option4!CK$6,'Energy Prices'!$F$11:$CR$11,0))/100000,0)","v":0},{"$f":"IFERROR('Data Input - Option 4'!CP85*INDEX('Energy Prices'!$F$26:$CR$31,MATCH($B129,'Energy Prices'!$C$26:$C$31,0),MATCH(Calc_Option4!CL$6,'Energy Prices'!$F$11:$CR$11,0))/100000,0)","v":0},{"$f":"IFERROR('Data Input - Option 4'!CQ85*INDEX('Energy Prices'!$F$26:$CR$31,MATCH($B129,'Energy Prices'!$C$26:$C$31,0),MATCH(Calc_Option4!CM$6,'Energy Prices'!$F$11:$CR$11,0))/100000,0)","v":0},{"$f":"IFERROR('Data Input - Option 4'!CR85*INDEX('Energy Prices'!$F$26:$CR$31,MATCH($B129,'Energy Prices'!$C$26:$C$31,0),MATCH(Calc_Option4!CN$6,'Energy Prices'!$F$11:$CR$11,0))/100000,0)","v":0},{"$f":"IFERROR('Data Input - Option 4'!CS85*INDEX('Energy Prices'!$F$26:$CR$31,MATCH($B129,'Energy Prices'!$C$26:$C$31,0),MATCH(Calc_Option4!CO$6,'Energy Prices'!$F$11:$CR$11,0))/100000,0)","v":0},{"$f":"IFERROR('Data Input - Option 4'!CT85*INDEX('Energy Prices'!$F$26:$CR$31,MATCH($B129,'Energy Prices'!$C$26:$C$31,0),MATCH(Calc_Option4!CP$6,'Energy Prices'!$F$11:$CR$11,0))/100000,0)","v":0},{"$f":"IFERROR('Data Input - Option 4'!CU85*INDEX('Energy Prices'!$F$26:$CR$31,MATCH($B129,'Energy Prices'!$C$26:$C$31,0),MATCH(Calc_Option4!CQ$6,'Energy Prices'!$F$11:$CR$11,0))/100000,0)","v":0},{"$f":"IFERROR('Data Input - Option 4'!CV85*INDEX('Energy Prices'!$F$26:$CR$31,MATCH($B129,'Energy Prices'!$C$26:$C$31,0),MATCH(Calc_Option4!CR$6,'Energy Prices'!$F$11:$CR$11,0))/100000,0)","v":0},{"$f":"IFERROR('Data Input - Option 4'!CW85*INDEX('Energy Prices'!$F$26:$CR$31,MATCH($B129,'Energy Prices'!$C$26:$C$31,0),MATCH(Calc_Option4!CS$6,'Energy Prices'!$F$11:$CR$11,0))/100000,0)","v":0},{"$f":"IFERROR('Data Input - Option 4'!CX85*INDEX('Energy Prices'!$F$26:$CR$31,MATCH($B129,'Energy Prices'!$C$26:$C$31,0),MATCH(Calc_Option4!CT$6,'Energy Prices'!$F$11:$CR$11,0))/100000,0)","v":0},{"$f":"IFERROR('Data Input - Option 4'!CY85*INDEX('Energy Prices'!$F$26:$CR$31,MATCH($B129,'Energy Prices'!$C$26:$C$31,0),MATCH(Calc_Option4!CU$6,'Energy Prices'!$F$11:$CR$11,0))/100000,0)","v":0},{"$f":"IFERROR('Data Input - Option 4'!CZ85*INDEX('Energy Prices'!$F$26:$CR$31,MATCH($B129,'Energy Prices'!$C$26:$C$31,0),MATCH(Calc_Option4!CV$6,'Energy Prices'!$F$11:$CR$11,0))/100000,0)","v":0},{"$f":"IFERROR('Data Input - Option 4'!DA85*INDEX('Energy Prices'!$F$26:$CR$31,MATCH($B129,'Energy Prices'!$C$26:$C$31,0),MATCH(Calc_Option4!CW$6,'Energy Prices'!$F$11:$CR$11,0))/100000,0)","v":0},{"$f":"IFERROR('Data Input - Option 4'!DB85*INDEX('Energy Prices'!$F$26:$CR$31,MATCH($B129,'Energy Prices'!$C$26:$C$31,0),MATCH(Calc_Option4!CX$6,'Energy Prices'!$F$11:$CR$11,0))/100000,0)","v":0},{"$f":"IFERROR('Data Input - Option 4'!DC85*INDEX('Energy Prices'!$F$26:$CR$31,MATCH($B129,'Energy Prices'!$C$26:$C$31,0),MATCH(Calc_Option4!CY$6,'Energy Prices'!$F$11:$CR$11,0))/100000,0)","v":0}]
[null,"Coal","£000's",{"$f":"IFERROR('Data Input - Option 4'!H86*INDEX('Energy Prices'!$F$26:$CR$31,MATCH($B130,'Energy Prices'!$C$26:$C$31,0),MATCH(Calc_Option4!D$6,'Energy Prices'!$F$11:$CR$11,0))/100000,0)","v":0},{"$f":"IFERROR('Data Input - Option 4'!I86*INDEX('Energy Prices'!$F$26:$CR$31,MATCH($B130,'Energy Prices'!$C$26:$C$31,0),MATCH(Calc_Option4!E$6,'Energy Prices'!$F$11:$CR$11,0))/100000,0)","v":0},{"$f":"IFERROR('Data Input - Option 4'!J86*INDEX('Energy Prices'!$F$26:$CR$31,MATCH($B130,'Energy Prices'!$C$26:$C$31,0),MATCH(Calc_Option4!F$6,'Energy Prices'!$F$11:$CR$11,0))/100000,0)","v":0},{"$f":"IFERROR('Data Input - Option 4'!K86*INDEX('Energy Prices'!$F$26:$CR$31,MATCH($B130,'Energy Prices'!$C$26:$C$31,0),MATCH(Calc_Option4!G$6,'Energy Prices'!$F$11:$CR$11,0))/100000,0)","v":0},{"$f":"IFERROR('Data Input - Option 4'!L86*INDEX('Energy Prices'!$F$26:$CR$31,MATCH($B130,'Energy Prices'!$C$26:$C$31,0),MATCH(Calc_Option4!H$6,'Energy Prices'!$F$11:$CR$11,0))/100000,0)","v":0},{"$f":"IFERROR('Data Input - Option 4'!M86*INDEX('Energy Prices'!$F$26:$CR$31,MATCH($B130,'Energy Prices'!$C$26:$C$31,0),MATCH(Calc_Option4!I$6,'Energy Prices'!$F$11:$CR$11,0))/100000,0)","v":0},{"$f":"IFERROR('Data Input - Option 4'!N86*INDEX('Energy Prices'!$F$26:$CR$31,MATCH($B130,'Energy Prices'!$C$26:$C$31,0),MATCH(Calc_Option4!J$6,'Energy Prices'!$F$11:$CR$11,0))/100000,0)","v":0},{"$f":"IFERROR('Data Input - Option 4'!O86*INDEX('Energy Prices'!$F$26:$CR$31,MATCH($B130,'Energy Prices'!$C$26:$C$31,0),MATCH(Calc_Option4!K$6,'Energy Prices'!$F$11:$CR$11,0))/100000,0)","v":0},{"$f":"IFERROR('Data Input - Option 4'!P86*INDEX('Energy Prices'!$F$26:$CR$31,MATCH($B130,'Energy Prices'!$C$26:$C$31,0),MATCH(Calc_Option4!L$6,'Energy Prices'!$F$11:$CR$11,0))/100000,0)","v":0},{"$f":"IFERROR('Data Input - Option 4'!Q86*INDEX('Energy Prices'!$F$26:$CR$31,MATCH($B130,'Energy Prices'!$C$26:$C$31,0),MATCH(Calc_Option4!M$6,'Energy Prices'!$F$11:$CR$11,0))/100000,0)","v":0},{"$f":"IFERROR('Data Input - Option 4'!R86*INDEX('Energy Prices'!$F$26:$CR$31,MATCH($B130,'Energy Prices'!$C$26:$C$31,0),MATCH(Calc_Option4!N$6,'Energy Prices'!$F$11:$CR$11,0))/100000,0)","v":0},{"$f":"IFERROR('Data Input - Option 4'!S86*INDEX('Energy Prices'!$F$26:$CR$31,MATCH($B130,'Energy Prices'!$C$26:$C$31,0),MATCH(Calc_Option4!O$6,'Energy Prices'!$F$11:$CR$11,0))/100000,0)","v":0},{"$f":"IFERROR('Data Input - Option 4'!T86*INDEX('Energy Prices'!$F$26:$CR$31,MATCH($B130,'Energy Prices'!$C$26:$C$31,0),MATCH(Calc_Option4!P$6,'Energy Prices'!$F$11:$CR$11,0))/100000,0)","v":0},{"$f":"IFERROR('Data Input - Option 4'!U86*INDEX('Energy Prices'!$F$26:$CR$31,MATCH($B130,'Energy Prices'!$C$26:$C$31,0),MATCH(Calc_Option4!Q$6,'Energy Prices'!$F$11:$CR$11,0))/100000,0)","v":0},{"$f":"IFERROR('Data Input - Option 4'!V86*INDEX('Energy Prices'!$F$26:$CR$31,MATCH($B130,'Energy Prices'!$C$26:$C$31,0),MATCH(Calc_Option4!R$6,'Energy Prices'!$F$11:$CR$11,0))/100000,0)","v":0},{"$f":"IFERROR('Data Input - Option 4'!W86*INDEX('Energy Prices'!$F$26:$CR$31,MATCH($B130,'Energy Prices'!$C$26:$C$31,0),MATCH(Calc_Option4!S$6,'Energy Prices'!$F$11:$CR$11,0))/100000,0)","v":0},{"$f":"IFERROR('Data Input - Option 4'!X86*INDEX('Energy Prices'!$F$26:$CR$31,MATCH($B130,'Energy Prices'!$C$26:$C$31,0),MATCH(Calc_Option4!T$6,'Energy Prices'!$F$11:$CR$11,0))/100000,0)","v":0},{"$f":"IFERROR('Data Input - Option 4'!Y86*INDEX('Energy Prices'!$F$26:$CR$31,MATCH($B130,'Energy Prices'!$C$26:$C$31,0),MATCH(Calc_Option4!U$6,'Energy Prices'!$F$11:$CR$11,0))/100000,0)","v":0},{"$f":"IFERROR('Data Input - Option 4'!Z86*INDEX('Energy Prices'!$F$26:$CR$31,MATCH($B130,'Energy Prices'!$C$26:$C$31,0),MATCH(Calc_Option4!V$6,'Energy Prices'!$F$11:$CR$11,0))/100000,0)","v":0},{"$f":"IFERROR('Data Input - Option 4'!AA86*INDEX('Energy Prices'!$F$26:$CR$31,MATCH($B130,'Energy Prices'!$C$26:$C$31,0),MATCH(Calc_Option4!W$6,'Energy Prices'!$F$11:$CR$11,0))/100000,0)","v":0},{"$f":"IFERROR('Data Input - Option 4'!AB86*INDEX('Energy Prices'!$F$26:$CR$31,MATCH($B130,'Energy Prices'!$C$26:$C$31,0),MATCH(Calc_Option4!X$6,'Energy Prices'!$F$11:$CR$11,0))/100000,0)","v":0},{"$f":"IFERROR('Data Input - Option 4'!AC86*INDEX('Energy Prices'!$F$26:$CR$31,MATCH($B130,'Energy Prices'!$C$26:$C$31,0),MATCH(Calc_Option4!Y$6,'Energy Prices'!$F$11:$CR$11,0))/100000,0)","v":0},{"$f":"IFERROR('Data Input - Option 4'!AD86*INDEX('Energy Prices'!$F$26:$CR$31,MATCH($B130,'Energy Prices'!$C$26:$C$31,0),MATCH(Calc_Option4!Z$6,'Energy Prices'!$F$11:$CR$11,0))/100000,0)","v":0},{"$f":"IFERROR('Data Input - Option 4'!AE86*INDEX('Energy Prices'!$F$26:$CR$31,MATCH($B130,'Energy Prices'!$C$26:$C$31,0),MATCH(Calc_Option4!AA$6,'Energy Prices'!$F$11:$CR$11,0))/100000,0)","v":0},{"$f":"IFERROR('Data Input - Option 4'!AF86*INDEX('Energy Prices'!$F$26:$CR$31,MATCH($B130,'Energy Prices'!$C$26:$C$31,0),MATCH(Calc_Option4!AB$6,'Energy Prices'!$F$11:$CR$11,0))/100000,0)","v":0},{"$f":"IFERROR('Data Input - Option 4'!AG86*INDEX('Energy Prices'!$F$26:$CR$31,MATCH($B130,'Energy Prices'!$C$26:$C$31,0),MATCH(Calc_Option4!AC$6,'Energy Prices'!$F$11:$CR$11,0))/100000,0)","v":0},{"$f":"IFERROR('Data Input - Option 4'!AH86*INDEX('Energy Prices'!$F$26:$CR$31,MATCH($B130,'Energy Prices'!$C$26:$C$31,0),MATCH(Calc_Option4!AD$6,'Energy Prices'!$F$11:$CR$11,0))/100000,0)","v":0},{"$f":"IFERROR('Data Input - Option 4'!AI86*INDEX('Energy Prices'!$F$26:$CR$31,MATCH($B130,'Energy Prices'!$C$26:$C$31,0),MATCH(Calc_Option4!AE$6,'Energy Prices'!$F$11:$CR$11,0))/100000,0)","v":0},{"$f":"IFERROR('Data Input - Option 4'!AJ86*INDEX('Energy Prices'!$F$26:$CR$31,MATCH($B130,'Energy Prices'!$C$26:$C$31,0),MATCH(Calc_Option4!AF$6,'Energy Prices'!$F$11:$CR$11,0))/100000,0)","v":0},{"$f":"IFERROR('Data Input - Option 4'!AK86*INDEX('Energy Prices'!$F$26:$CR$31,MATCH($B130,'Energy Prices'!$C$26:$C$31,0),MATCH(Calc_Option4!AG$6,'Energy Prices'!$F$11:$CR$11,0))/100000,0)","v":0},{"$f":"IFERROR('Data Input - Option 4'!AL86*INDEX('Energy Prices'!$F$26:$CR$31,MATCH($B130,'Energy Prices'!$C$26:$C$31,0),MATCH(Calc_Option4!AH$6,'Energy Prices'!$F$11:$CR$11,0))/100000,0)","v":0},{"$f":"IFERROR('Data Input - Option 4'!AM86*INDEX('Energy Prices'!$F$26:$CR$31,MATCH($B130,'Energy Prices'!$C$26:$C$31,0),MATCH(Calc_Option4!AI$6,'Energy Prices'!$F$11:$CR$11,0))/100000,0)","v":0},{"$f":"IFERROR('Data Input - Option 4'!AN86*INDEX('Energy Prices'!$F$26:$CR$31,MATCH($B130,'Energy Prices'!$C$26:$C$31,0),MATCH(Calc_Option4!AJ$6,'Energy Prices'!$F$11:$CR$11,0))/100000,0)","v":0},{"$f":"IFERROR('Data Input - Option 4'!AO86*INDEX('Energy Prices'!$F$26:$CR$31,MATCH($B130,'Energy Prices'!$C$26:$C$31,0),MATCH(Calc_Option4!AK$6,'Energy Prices'!$F$11:$CR$11,0))/100000,0)","v":0},{"$f":"IFERROR('Data Input - Option 4'!AP86*INDEX('Energy Prices'!$F$26:$CR$31,MATCH($B130,'Energy Prices'!$C$26:$C$31,0),MATCH(Calc_Option4!AL$6,'Energy Prices'!$F$11:$CR$11,0))/100000,0)","v":0},{"$f":"IFERROR('Data Input - Option 4'!AQ86*INDEX('Energy Prices'!$F$26:$CR$31,MATCH($B130,'Energy Prices'!$C$26:$C$31,0),MATCH(Calc_Option4!AM$6,'Energy Prices'!$F$11:$CR$11,0))/100000,0)","v":0},{"$f":"IFERROR('Data Input - Option 4'!AR86*INDEX('Energy Prices'!$F$26:$CR$31,MATCH($B130,'Energy Prices'!$C$26:$C$31,0),MATCH(Calc_Option4!AN$6,'Energy Prices'!$F$11:$CR$11,0))/100000,0)","v":0},{"$f":"IFERROR('Data Input - Option 4'!AS86*INDEX('Energy Prices'!$F$26:$CR$31,MATCH($B130,'Energy Prices'!$C$26:$C$31,0),MATCH(Calc_Option4!AO$6,'Energy Prices'!$F$11:$CR$11,0))/100000,0)","v":0},{"$f":"IFERROR('Data Input - Option 4'!AT86*INDEX('Energy Prices'!$F$26:$CR$31,MATCH($B130,'Energy Prices'!$C$26:$C$31,0),MATCH(Calc_Option4!AP$6,'Energy Prices'!$F$11:$CR$11,0))/100000,0)","v":0},{"$f":"IFERROR('Data Input - Option 4'!AU86*INDEX('Energy Prices'!$F$26:$CR$31,MATCH($B130,'Energy Prices'!$C$26:$C$31,0),MATCH(Calc_Option4!AQ$6,'Energy Prices'!$F$11:$CR$11,0))/100000,0)","v":0},{"$f":"IFERROR('Data Input - Option 4'!AV86*INDEX('Energy Prices'!$F$26:$CR$31,MATCH($B130,'Energy Prices'!$C$26:$C$31,0),MATCH(Calc_Option4!AR$6,'Energy Prices'!$F$11:$CR$11,0))/100000,0)","v":0},{"$f":"IFERROR('Data Input - Option 4'!AW86*INDEX('Energy Prices'!$F$26:$CR$31,MATCH($B130,'Energy Prices'!$C$26:$C$31,0),MATCH(Calc_Option4!AS$6,'Energy Prices'!$F$11:$CR$11,0))/100000,0)","v":0},{"$f":"IFERROR('Data Input - Option 4'!AX86*INDEX('Energy Prices'!$F$26:$CR$31,MATCH($B130,'Energy Prices'!$C$26:$C$31,0),MATCH(Calc_Option4!AT$6,'Energy Prices'!$F$11:$CR$11,0))/100000,0)","v":0},{"$f":"IFERROR('Data Input - Option 4'!AY86*INDEX('Energy Prices'!$F$26:$CR$31,MATCH($B130,'Energy Prices'!$C$26:$C$31,0),MATCH(Calc_Option4!AU$6,'Energy Prices'!$F$11:$CR$11,0))/100000,0)","v":0},{"$f":"IFERROR('Data Input - Option 4'!AZ86*INDEX('Energy Prices'!$F$26:$CR$31,MATCH($B130,'Energy Prices'!$C$26:$C$31,0),MATCH(Calc_Option4!AV$6,'Energy Prices'!$F$11:$CR$11,0))/100000,0)","v":0},{"$f":"IFERROR('Data Input - Option 4'!BA86*INDEX('Energy Prices'!$F$26:$CR$31,MATCH($B130,'Energy Prices'!$C$26:$C$31,0),MATCH(Calc_Option4!AW$6,'Energy Prices'!$F$11:$CR$11,0))/100000,0)","v":0},{"$f":"IFERROR('Data Input - Option 4'!BB86*INDEX('Energy Prices'!$F$26:$CR$31,MATCH($B130,'Energy Prices'!$C$26:$C$31,0),MATCH(Calc_Option4!AX$6,'Energy Prices'!$F$11:$CR$11,0))/100000,0)","v":0},{"$f":"IFERROR('Data Input - Option 4'!BC86*INDEX('Energy Prices'!$F$26:$CR$31,MATCH($B130,'Energy Prices'!$C$26:$C$31,0),MATCH(Calc_Option4!AY$6,'Energy Prices'!$F$11:$CR$11,0))/100000,0)","v":0},{"$f":"IFERROR('Data Input - Option 4'!BD86*INDEX('Energy Prices'!$F$26:$CR$31,MATCH($B130,'Energy Prices'!$C$26:$C$31,0),MATCH(Calc_Option4!AZ$6,'Energy Prices'!$F$11:$CR$11,0))/100000,0)","v":0},{"$f":"IFERROR('Data Input - Option 4'!BE86*INDEX('Energy Prices'!$F$26:$CR$31,MATCH($B130,'Energy Prices'!$C$26:$C$31,0),MATCH(Calc_Option4!BA$6,'Energy Prices'!$F$11:$CR$11,0))/100000,0)","v":0},{"$f":"IFERROR('Data Input - Option 4'!BF86*INDEX('Energy Prices'!$F$26:$CR$31,MATCH($B130,'Energy Prices'!$C$26:$C$31,0),MATCH(Calc_Option4!BB$6,'Energy Prices'!$F$11:$CR$11,0))/100000,0)","v":0},{"$f":"IFERROR('Data Input - Option 4'!BG86*INDEX('Energy Prices'!$F$26:$CR$31,MATCH($B130,'Energy Prices'!$C$26:$C$31,0),MATCH(Calc_Option4!BC$6,'Energy Prices'!$F$11:$CR$11,0))/100000,0)","v":0},{"$f":"IFERROR('Data Input - Option 4'!BH86*INDEX('Energy Prices'!$F$26:$CR$31,MATCH($B130,'Energy Prices'!$C$26:$C$31,0),MATCH(Calc_Option4!BD$6,'Energy Prices'!$F$11:$CR$11,0))/100000,0)","v":0},{"$f":"IFERROR('Data Input - Option 4'!BI86*INDEX('Energy Prices'!$F$26:$CR$31,MATCH($B130,'Energy Prices'!$C$26:$C$31,0),MATCH(Calc_Option4!BE$6,'Energy Prices'!$F$11:$CR$11,0))/100000,0)","v":0},{"$f":"IFERROR('Data Input - Option 4'!BJ86*INDEX('Energy Prices'!$F$26:$CR$31,MATCH($B130,'Energy Prices'!$C$26:$C$31,0),MATCH(Calc_Option4!BF$6,'Energy Prices'!$F$11:$CR$11,0))/100000,0)","v":0},{"$f":"IFERROR('Data Input - Option 4'!BK86*INDEX('Energy Prices'!$F$26:$CR$31,MATCH($B130,'Energy Prices'!$C$26:$C$31,0),MATCH(Calc_Option4!BG$6,'Energy Prices'!$F$11:$CR$11,0))/100000,0)","v":0},{"$f":"IFERROR('Data Input - Option 4'!BL86*INDEX('Energy Prices'!$F$26:$CR$31,MATCH($B130,'Energy Prices'!$C$26:$C$31,0),MATCH(Calc_Option4!BH$6,'Energy Prices'!$F$11:$CR$11,0))/100000,0)","v":0},{"$f":"IFERROR('Data Input - Option 4'!BM86*INDEX('Energy Prices'!$F$26:$CR$31,MATCH($B130,'Energy Prices'!$C$26:$C$31,0),MATCH(Calc_Option4!BI$6,'Energy Prices'!$F$11:$CR$11,0))/100000,0)","v":0},{"$f":"IFERROR('Data Input - Option 4'!BN86*INDEX('Energy Prices'!$F$26:$CR$31,MATCH($B130,'Energy Prices'!$C$26:$C$31,0),MATCH(Calc_Option4!BJ$6,'Energy Prices'!$F$11:$CR$11,0))/100000,0)","v":0},{"$f":"IFERROR('Data Input - Option 4'!BO86*INDEX('Energy Prices'!$F$26:$CR$31,MATCH($B130,'Energy Prices'!$C$26:$C$31,0),MATCH(Calc_Option4!BK$6,'Energy Prices'!$F$11:$CR$11,0))/100000,0)","v":0},{"$f":"IFERROR('Data Input - Option 4'!BP86*INDEX('Energy Prices'!$F$26:$CR$31,MATCH($B130,'Energy Prices'!$C$26:$C$31,0),MATCH(Calc_Option4!BL$6,'Energy Prices'!$F$11:$CR$11,0))/100000,0)","v":0},{"$f":"IFERROR('Data Input - Option 4'!BQ86*INDEX('Energy Prices'!$F$26:$CR$31,MATCH($B130,'Energy Prices'!$C$26:$C$31,0),MATCH(Calc_Option4!BM$6,'Energy Prices'!$F$11:$CR$11,0))/100000,0)","v":0},{"$f":"IFERROR('Data Input - Option 4'!BR86*INDEX('Energy Prices'!$F$26:$CR$31,MATCH($B130,'Energy Prices'!$C$26:$C$31,0),MATCH(Calc_Option4!BN$6,'Energy Prices'!$F$11:$CR$11,0))/100000,0)","v":0},{"$f":"IFERROR('Data Input - Option 4'!BS86*INDEX('Energy Prices'!$F$26:$CR$31,MATCH($B130,'Energy Prices'!$C$26:$C$31,0),MATCH(Calc_Option4!BO$6,'Energy Prices'!$F$11:$CR$11,0))/100000,0)","v":0},{"$f":"IFERROR('Data Input - Option 4'!BT86*INDEX('Energy Prices'!$F$26:$CR$31,MATCH($B130,'Energy Prices'!$C$26:$C$31,0),MATCH(Calc_Option4!BP$6,'Energy Prices'!$F$11:$CR$11,0))/100000,0)","v":0},{"$f":"IFERROR('Data Input - Option 4'!BU86*INDEX('Energy Prices'!$F$26:$CR$31,MATCH($B130,'Energy Prices'!$C$26:$C$31,0),MATCH(Calc_Option4!BQ$6,'Energy Prices'!$F$11:$CR$11,0))/100000,0)","v":0},{"$f":"IFERROR('Data Input - Option 4'!BV86*INDEX('Energy Prices'!$F$26:$CR$31,MATCH($B130,'Energy Prices'!$C$26:$C$31,0),MATCH(Calc_Option4!BR$6,'Energy Prices'!$F$11:$CR$11,0))/100000,0)","v":0},{"$f":"IFERROR('Data Input - Option 4'!BW86*INDEX('Energy Prices'!$F$26:$CR$31,MATCH($B130,'Energy Prices'!$C$26:$C$31,0),MATCH(Calc_Option4!BS$6,'Energy Prices'!$F$11:$CR$11,0))/100000,0)","v":0},{"$f":"IFERROR('Data Input - Option 4'!BX86*INDEX('Energy Prices'!$F$26:$CR$31,MATCH($B130,'Energy Prices'!$C$26:$C$31,0),MATCH(Calc_Option4!BT$6,'Energy Prices'!$F$11:$CR$11,0))/100000,0)","v":0},{"$f":"IFERROR('Data Input - Option 4'!BY86*INDEX('Energy Prices'!$F$26:$CR$31,MATCH($B130,'Energy Prices'!$C$26:$C$31,0),MATCH(Calc_Option4!BU$6,'Energy Prices'!$F$11:$CR$11,0))/100000,0)","v":0},{"$f":"IFERROR('Data Input - Option 4'!BZ86*INDEX('Energy Prices'!$F$26:$CR$31,MATCH($B130,'Energy Prices'!$C$26:$C$31,0),MATCH(Calc_Option4!BV$6,'Energy Prices'!$F$11:$CR$11,0))/100000,0)","v":0},{"$f":"IFERROR('Data Input - Option 4'!CA86*INDEX('Energy Prices'!$F$26:$CR$31,MATCH($B130,'Energy Prices'!$C$26:$C$31,0),MATCH(Calc_Option4!BW$6,'Energy Prices'!$F$11:$CR$11,0))/100000,0)","v":0},{"$f":"IFERROR('Data Input - Option 4'!CB86*INDEX('Energy Prices'!$F$26:$CR$31,MATCH($B130,'Energy Prices'!$C$26:$C$31,0),MATCH(Calc_Option4!BX$6,'Energy Prices'!$F$11:$CR$11,0))/100000,0)","v":0},{"$f":"IFERROR('Data Input - Option 4'!CC86*INDEX('Energy Prices'!$F$26:$CR$31,MATCH($B130,'Energy Prices'!$C$26:$C$31,0),MATCH(Calc_Option4!BY$6,'Energy Prices'!$F$11:$CR$11,0))/100000,0)","v":0},{"$f":"IFERROR('Data Input - Option 4'!CD86*INDEX('Energy Prices'!$F$26:$CR$31,MATCH($B130,'Energy Prices'!$C$26:$C$31,0),MATCH(Calc_Option4!BZ$6,'Energy Prices'!$F$11:$CR$11,0))/100000,0)","v":0},{"$f":"IFERROR('Data Input - Option 4'!CE86*INDEX('Energy Prices'!$F$26:$CR$31,MATCH($B130,'Energy Prices'!$C$26:$C$31,0),MATCH(Calc_Option4!CA$6,'Energy Prices'!$F$11:$CR$11,0))/100000,0)","v":0},{"$f":"IFERROR('Data Input - Option 4'!CF86*INDEX('Energy Prices'!$F$26:$CR$31,MATCH($B130,'Energy Prices'!$C$26:$C$31,0),MATCH(Calc_Option4!CB$6,'Energy Prices'!$F$11:$CR$11,0))/100000,0)","v":0},{"$f":"IFERROR('Data Input - Option 4'!CG86*INDEX('Energy Prices'!$F$26:$CR$31,MATCH($B130,'Energy Prices'!$C$26:$C$31,0),MATCH(Calc_Option4!CC$6,'Energy Prices'!$F$11:$CR$11,0))/100000,0)","v":0},{"$f":"IFERROR('Data Input - Option 4'!CH86*INDEX('Energy Prices'!$F$26:$CR$31,MATCH($B130,'Energy Prices'!$C$26:$C$31,0),MATCH(Calc_Option4!CD$6,'Energy Prices'!$F$11:$CR$11,0))/100000,0)","v":0},{"$f":"IFERROR('Data Input - Option 4'!CI86*INDEX('Energy Prices'!$F$26:$CR$31,MATCH($B130,'Energy Prices'!$C$26:$C$31,0),MATCH(Calc_Option4!CE$6,'Energy Prices'!$F$11:$CR$11,0))/100000,0)","v":0},{"$f":"IFERROR('Data Input - Option 4'!CJ86*INDEX('Energy Prices'!$F$26:$CR$31,MATCH($B130,'Energy Prices'!$C$26:$C$31,0),MATCH(Calc_Option4!CF$6,'Energy Prices'!$F$11:$CR$11,0))/100000,0)","v":0},{"$f":"IFERROR('Data Input - Option 4'!CK86*INDEX('Energy Prices'!$F$26:$CR$31,MATCH($B130,'Energy Prices'!$C$26:$C$31,0),MATCH(Calc_Option4!CG$6,'Energy Prices'!$F$11:$CR$11,0))/100000,0)","v":0},{"$f":"IFERROR('Data Input - Option 4'!CL86*INDEX('Energy Prices'!$F$26:$CR$31,MATCH($B130,'Energy Prices'!$C$26:$C$31,0),MATCH(Calc_Option4!CH$6,'Energy Prices'!$F$11:$CR$11,0))/100000,0)","v":0},{"$f":"IFERROR('Data Input - Option 4'!CM86*INDEX('Energy Prices'!$F$26:$CR$31,MATCH($B130,'Energy Prices'!$C$26:$C$31,0),MATCH(Calc_Option4!CI$6,'Energy Prices'!$F$11:$CR$11,0))/100000,0)","v":0},{"$f":"IFERROR('Data Input - Option 4'!CN86*INDEX('Energy Prices'!$F$26:$CR$31,MATCH($B130,'Energy Prices'!$C$26:$C$31,0),MATCH(Calc_Option4!CJ$6,'Energy Prices'!$F$11:$CR$11,0))/100000,0)","v":0},{"$f":"IFERROR('Data Input - Option 4'!CO86*INDEX('Energy Prices'!$F$26:$CR$31,MATCH($B130,'Energy Prices'!$C$26:$C$31,0),MATCH(Calc_Option4!CK$6,'Energy Prices'!$F$11:$CR$11,0))/100000,0)","v":0},{"$f":"IFERROR('Data Input - Option 4'!CP86*INDEX('Energy Prices'!$F$26:$CR$31,MATCH($B130,'Energy Prices'!$C$26:$C$31,0),MATCH(Calc_Option4!CL$6,'Energy Prices'!$F$11:$CR$11,0))/100000,0)","v":0},{"$f":"IFERROR('Data Input - Option 4'!CQ86*INDEX('Energy Prices'!$F$26:$CR$31,MATCH($B130,'Energy Prices'!$C$26:$C$31,0),MATCH(Calc_Option4!CM$6,'Energy Prices'!$F$11:$CR$11,0))/100000,0)","v":0},{"$f":"IFERROR('Data Input - Option 4'!CR86*INDEX('Energy Prices'!$F$26:$CR$31,MATCH($B130,'Energy Prices'!$C$26:$C$31,0),MATCH(Calc_Option4!CN$6,'Energy Prices'!$F$11:$CR$11,0))/100000,0)","v":0},{"$f":"IFERROR('Data Input - Option 4'!CS86*INDEX('Energy Prices'!$F$26:$CR$31,MATCH($B130,'Energy Prices'!$C$26:$C$31,0),MATCH(Calc_Option4!CO$6,'Energy Prices'!$F$11:$CR$11,0))/100000,0)","v":0},{"$f":"IFERROR('Data Input - Option 4'!CT86*INDEX('Energy Prices'!$F$26:$CR$31,MATCH($B130,'Energy Prices'!$C$26:$C$31,0),MATCH(Calc_Option4!CP$6,'Energy Prices'!$F$11:$CR$11,0))/100000,0)","v":0},{"$f":"IFERROR('Data Input - Option 4'!CU86*INDEX('Energy Prices'!$F$26:$CR$31,MATCH($B130,'Energy Prices'!$C$26:$C$31,0),MATCH(Calc_Option4!CQ$6,'Energy Prices'!$F$11:$CR$11,0))/100000,0)","v":0},{"$f":"IFERROR('Data Input - Option 4'!CV86*INDEX('Energy Prices'!$F$26:$CR$31,MATCH($B130,'Energy Prices'!$C$26:$C$31,0),MATCH(Calc_Option4!CR$6,'Energy Prices'!$F$11:$CR$11,0))/100000,0)","v":0},{"$f":"IFERROR('Data Input - Option 4'!CW86*INDEX('Energy Prices'!$F$26:$CR$31,MATCH($B130,'Energy Prices'!$C$26:$C$31,0),MATCH(Calc_Option4!CS$6,'Energy Prices'!$F$11:$CR$11,0))/100000,0)","v":0},{"$f":"IFERROR('Data Input - Option 4'!CX86*INDEX('Energy Prices'!$F$26:$CR$31,MATCH($B130,'Energy Prices'!$C$26:$C$31,0),MATCH(Calc_Option4!CT$6,'Energy Prices'!$F$11:$CR$11,0))/100000,0)","v":0},{"$f":"IFERROR('Data Input - Option 4'!CY86*INDEX('Energy Prices'!$F$26:$CR$31,MATCH($B130,'Energy Prices'!$C$26:$C$31,0),MATCH(Calc_Option4!CU$6,'Energy Prices'!$F$11:$CR$11,0))/100000,0)","v":0},{"$f":"IFERROR('Data Input - Option 4'!CZ86*INDEX('Energy Prices'!$F$26:$CR$31,MATCH($B130,'Energy Prices'!$C$26:$C$31,0),MATCH(Calc_Option4!CV$6,'Energy Prices'!$F$11:$CR$11,0))/100000,0)","v":0},{"$f":"IFERROR('Data Input - Option 4'!DA86*INDEX('Energy Prices'!$F$26:$CR$31,MATCH($B130,'Energy Prices'!$C$26:$C$31,0),MATCH(Calc_Option4!CW$6,'Energy Prices'!$F$11:$CR$11,0))/100000,0)","v":0},{"$f":"IFERROR('Data Input - Option 4'!DB86*INDEX('Energy Prices'!$F$26:$CR$31,MATCH($B130,'Energy Prices'!$C$26:$C$31,0),MATCH(Calc_Option4!CX$6,'Energy Prices'!$F$11:$CR$11,0))/100000,0)","v":0},{"$f":"IFERROR('Data Input - Option 4'!DC86*INDEX('Energy Prices'!$F$26:$CR$31,MATCH($B130,'Energy Prices'!$C$26:$C$31,0),MATCH(Calc_Option4!CY$6,'Energy Prices'!$F$11:$CR$11,0))/100000,0)","v":0}]
[null,"Gas Oil","£000's",{"$f":"IFERROR('Data Input - Option 4'!H87*INDEX('Energy Prices'!$F$26:$CR$31,MATCH($B131,'Energy Prices'!$C$26:$C$31,0),MATCH(Calc_Option4!D$6,'Energy Prices'!$F$11:$CR$11,0))/100000,0)","v":7.9793843802543113E-4},{"$f":"IFERROR('Data Input - Option 4'!I87*INDEX('Energy Prices'!$F$26:$CR$31,MATCH($B131,'Energy Prices'!$C$26:$C$31,0),MATCH(Calc_Option4!E$6,'Energy Prices'!$F$11:$CR$11,0))/100000,0)","v":0},{"$f":"IFERROR('Data Input - Option 4'!J87*INDEX('Energy Prices'!$F$26:$CR$31,MATCH($B131,'Energy Prices'!$C$26:$C$31,0),MATCH(Calc_Option4!F$6,'Energy Prices'!$F$11:$CR$11,0))/100000,0)","v":0},{"$f":"IFERROR('Data Input - Option 4'!K87*INDEX('Energy Prices'!$F$26:$CR$31,MATCH($B131,'Energy Prices'!$C$26:$C$31,0),MATCH(Calc_Option4!G$6,'Energy Prices'!$F$11:$CR$11,0))/100000,0)","v":0},{"$f":"IFERROR('Data Input - Option 4'!L87*INDEX('Energy Prices'!$F$26:$CR$31,MATCH($B131,'Energy Prices'!$C$26:$C$31,0),MATCH(Calc_Option4!H$6,'Energy Prices'!$F$11:$CR$11,0))/100000,0)","v":0},{"$f":"IFERROR('Data Input - Option 4'!M87*INDEX('Energy Prices'!$F$26:$CR$31,MATCH($B131,'Energy Prices'!$C$26:$C$31,0),MATCH(Calc_Option4!I$6,'Energy Prices'!$F$11:$CR$11,0))/100000,0)","v":0},{"$f":"IFERROR('Data Input - Option 4'!N87*INDEX('Energy Prices'!$F$26:$CR$31,MATCH($B131,'Energy Prices'!$C$26:$C$31,0),MATCH(Calc_Option4!J$6,'Energy Prices'!$F$11:$CR$11,0))/100000,0)","v":0},{"$f":"IFERROR('Data Input - Option 4'!O87*INDEX('Energy Prices'!$F$26:$CR$31,MATCH($B131,'Energy Prices'!$C$26:$C$31,0),MATCH(Calc_Option4!K$6,'Energy Prices'!$F$11:$CR$11,0))/100000,0)","v":0},{"$f":"IFERROR('Data Input - Option 4'!P87*INDEX('Energy Prices'!$F$26:$CR$31,MATCH($B131,'Energy Prices'!$C$26:$C$31,0),MATCH(Calc_Option4!L$6,'Energy Prices'!$F$11:$CR$11,0))/100000,0)","v":0},{"$f":"IFERROR('Data Input - Option 4'!Q87*INDEX('Energy Prices'!$F$26:$CR$31,MATCH($B131,'Energy Prices'!$C$26:$C$31,0),MATCH(Calc_Option4!M$6,'Energy Prices'!$F$11:$CR$11,0))/100000,0)","v":0},{"$f":"IFERROR('Data Input - Option 4'!R87*INDEX('Energy Prices'!$F$26:$CR$31,MATCH($B131,'Energy Prices'!$C$26:$C$31,0),MATCH(Calc_Option4!N$6,'Energy Prices'!$F$11:$CR$11,0))/100000,0)","v":0},{"$f":"IFERROR('Data Input - Option 4'!S87*INDEX('Energy Prices'!$F$26:$CR$31,MATCH($B131,'Energy Prices'!$C$26:$C$31,0),MATCH(Calc_Option4!O$6,'Energy Prices'!$F$11:$CR$11,0))/100000,0)","v":0},{"$f":"IFERROR('Data Input - Option 4'!T87*INDEX('Energy Prices'!$F$26:$CR$31,MATCH($B131,'Energy Prices'!$C$26:$C$31,0),MATCH(Calc_Option4!P$6,'Energy Prices'!$F$11:$CR$11,0))/100000,0)","v":0},{"$f":"IFERROR('Data Input - Option 4'!U87*INDEX('Energy Prices'!$F$26:$CR$31,MATCH($B131,'Energy Prices'!$C$26:$C$31,0),MATCH(Calc_Option4!Q$6,'Energy Prices'!$F$11:$CR$11,0))/100000,0)","v":0},{"$f":"IFERROR('Data Input - Option 4'!V87*INDEX('Energy Prices'!$F$26:$CR$31,MATCH($B131,'Energy Prices'!$C$26:$C$31,0),MATCH(Calc_Option4!R$6,'Energy Prices'!$F$11:$CR$11,0))/100000,0)","v":0},{"$f":"IFERROR('Data Input - Option 4'!W87*INDEX('Energy Prices'!$F$26:$CR$31,MATCH($B131,'Energy Prices'!$C$26:$C$31,0),MATCH(Calc_Option4!S$6,'Energy Prices'!$F$11:$CR$11,0))/100000,0)","v":0},{"$f":"IFERROR('Data Input - Option 4'!X87*INDEX('Energy Prices'!$F$26:$CR$31,MATCH($B131,'Energy Prices'!$C$26:$C$31,0),MATCH(Calc_Option4!T$6,'Energy Prices'!$F$11:$CR$11,0))/100000,0)","v":0},{"$f":"IFERROR('Data Input - Option 4'!Y87*INDEX('Energy Prices'!$F$26:$CR$31,MATCH($B131,'Energy Prices'!$C$26:$C$31,0),MATCH(Calc_Option4!U$6,'Energy Prices'!$F$11:$CR$11,0))/100000,0)","v":0},{"$f":"IFERROR('Data Input - Option 4'!Z87*INDEX('Energy Prices'!$F$26:$CR$31,MATCH($B131,'Energy Prices'!$C$26:$C$31,0),MATCH(Calc_Option4!V$6,'Energy Prices'!$F$11:$CR$11,0))/100000,0)","v":0},{"$f":"IFERROR('Data Input - Option 4'!AA87*INDEX('Energy Prices'!$F$26:$CR$31,MATCH($B131,'Energy Prices'!$C$26:$C$31,0),MATCH(Calc_Option4!W$6,'Energy Prices'!$F$11:$CR$11,0))/100000,0)","v":0},{"$f":"IFERROR('Data Input - Option 4'!AB87*INDEX('Energy Prices'!$F$26:$CR$31,MATCH($B131,'Energy Prices'!$C$26:$C$31,0),MATCH(Calc_Option4!X$6,'Energy Prices'!$F$11:$CR$11,0))/100000,0)","v":0},{"$f":"IFERROR('Data Input - Option 4'!AC87*INDEX('Energy Prices'!$F$26:$CR$31,MATCH($B131,'Energy Prices'!$C$26:$C$31,0),MATCH(Calc_Option4!Y$6,'Energy Prices'!$F$11:$CR$11,0))/100000,0)","v":0},{"$f":"IFERROR('Data Input - Option 4'!AD87*INDEX('Energy Prices'!$F$26:$CR$31,MATCH($B131,'Energy Prices'!$C$26:$C$31,0),MATCH(Calc_Option4!Z$6,'Energy Prices'!$F$11:$CR$11,0))/100000,0)","v":0},{"$f":"IFERROR('Data Input - Option 4'!AE87*INDEX('Energy Prices'!$F$26:$CR$31,MATCH($B131,'Energy Prices'!$C$26:$C$31,0),MATCH(Calc_Option4!AA$6,'Energy Prices'!$F$11:$CR$11,0))/100000,0)","v":0},{"$f":"IFERROR('Data Input - Option 4'!AF87*INDEX('Energy Prices'!$F$26:$CR$31,MATCH($B131,'Energy Prices'!$C$26:$C$31,0),MATCH(Calc_Option4!AB$6,'Energy Prices'!$F$11:$CR$11,0))/100000,0)","v":0},{"$f":"IFERROR('Data Input - Option 4'!AG87*INDEX('Energy Prices'!$F$26:$CR$31,MATCH($B131,'Energy Prices'!$C$26:$C$31,0),MATCH(Calc_Option4!AC$6,'Energy Prices'!$F$11:$CR$11,0))/100000,0)","v":0},{"$f":"IFERROR('Data Input - Option 4'!AH87*INDEX('Energy Prices'!$F$26:$CR$31,MATCH($B131,'Energy Prices'!$C$26:$C$31,0),MATCH(Calc_Option4!AD$6,'Energy Prices'!$F$11:$CR$11,0))/100000,0)","v":0},{"$f":"IFERROR('Data Input - Option 4'!AI87*INDEX('Energy Prices'!$F$26:$CR$31,MATCH($B131,'Energy Prices'!$C$26:$C$31,0),MATCH(Calc_Option4!AE$6,'Energy Prices'!$F$11:$CR$11,0))/100000,0)","v":0},{"$f":"IFERROR('Data Input - Option 4'!AJ87*INDEX('Energy Prices'!$F$26:$CR$31,MATCH($B131,'Energy Prices'!$C$26:$C$31,0),MATCH(Calc_Option4!AF$6,'Energy Prices'!$F$11:$CR$11,0))/100000,0)","v":0},{"$f":"IFERROR('Data Input - Option 4'!AK87*INDEX('Energy Prices'!$F$26:$CR$31,MATCH($B131,'Energy Prices'!$C$26:$C$31,0),MATCH(Calc_Option4!AG$6,'Energy Prices'!$F$11:$CR$11,0))/100000,0)","v":0},{"$f":"IFERROR('Data Input - Option 4'!AL87*INDEX('Energy Prices'!$F$26:$CR$31,MATCH($B131,'Energy Prices'!$C$26:$C$31,0),MATCH(Calc_Option4!AH$6,'Energy Prices'!$F$11:$CR$11,0))/100000,0)","v":0},{"$f":"IFERROR('Data Input - Option 4'!AM87*INDEX('Energy Prices'!$F$26:$CR$31,MATCH($B131,'Energy Prices'!$C$26:$C$31,0),MATCH(Calc_Option4!AI$6,'Energy Prices'!$F$11:$CR$11,0))/100000,0)","v":0},{"$f":"IFERROR('Data Input - Option 4'!AN87*INDEX('Energy Prices'!$F$26:$CR$31,MATCH($B131,'Energy Prices'!$C$26:$C$31,0),MATCH(Calc_Option4!AJ$6,'Energy Prices'!$F$11:$CR$11,0))/100000,0)","v":0},{"$f":"IFERROR('Data Input - Option 4'!AO87*INDEX('Energy Prices'!$F$26:$CR$31,MATCH($B131,'Energy Prices'!$C$26:$C$31,0),MATCH(Calc_Option4!AK$6,'Energy Prices'!$F$11:$CR$11,0))/100000,0)","v":0},{"$f":"IFERROR('Data Input - Option 4'!AP87*INDEX('Energy Prices'!$F$26:$CR$31,MATCH($B131,'Energy Prices'!$C$26:$C$31,0),MATCH(Calc_Option4!AL$6,'Energy Prices'!$F$11:$CR$11,0))/100000,0)","v":0},{"$f":"IFERROR('Data Input - Option 4'!AQ87*INDEX('Energy Prices'!$F$26:$CR$31,MATCH($B131,'Energy Prices'!$C$26:$C$31,0),MATCH(Calc_Option4!AM$6,'Energy Prices'!$F$11:$CR$11,0))/100000,0)","v":0},{"$f":"IFERROR('Data Input - Option 4'!AR87*INDEX('Energy Prices'!$F$26:$CR$31,MATCH($B131,'Energy Prices'!$C$26:$C$31,0),MATCH(Calc_Option4!AN$6,'Energy Prices'!$F$11:$CR$11,0))/100000,0)","v":0},{"$f":"IFERROR('Data Input - Option 4'!AS87*INDEX('Energy Prices'!$F$26:$CR$31,MATCH($B131,'Energy Prices'!$C$26:$C$31,0),MATCH(Calc_Option4!AO$6,'Energy Prices'!$F$11:$CR$11,0))/100000,0)","v":0},{"$f":"IFERROR('Data Input - Option 4'!AT87*INDEX('Energy Prices'!$F$26:$CR$31,MATCH($B131,'Energy Prices'!$C$26:$C$31,0),MATCH(Calc_Option4!AP$6,'Energy Prices'!$F$11:$CR$11,0))/100000,0)","v":0},{"$f":"IFERROR('Data Input - Option 4'!AU87*INDEX('Energy Prices'!$F$26:$CR$31,MATCH($B131,'Energy Prices'!$C$26:$C$31,0),MATCH(Calc_Option4!AQ$6,'Energy Prices'!$F$11:$CR$11,0))/100000,0)","v":0},{"$f":"IFERROR('Data Input - Option 4'!AV87*INDEX('Energy Prices'!$F$26:$CR$31,MATCH($B131,'Energy Prices'!$C$26:$C$31,0),MATCH(Calc_Option4!AR$6,'Energy Prices'!$F$11:$CR$11,0))/100000,0)","v":0},{"$f":"IFERROR('Data Input - Option 4'!AW87*INDEX('Energy Prices'!$F$26:$CR$31,MATCH($B131,'Energy Prices'!$C$26:$C$31,0),MATCH(Calc_Option4!AS$6,'Energy Prices'!$F$11:$CR$11,0))/100000,0)","v":0},{"$f":"IFERROR('Data Input - Option 4'!AX87*INDEX('Energy Prices'!$F$26:$CR$31,MATCH($B131,'Energy Prices'!$C$26:$C$31,0),MATCH(Calc_Option4!AT$6,'Energy Prices'!$F$11:$CR$11,0))/100000,0)","v":0},{"$f":"IFERROR('Data Input - Option 4'!AY87*INDEX('Energy Prices'!$F$26:$CR$31,MATCH($B131,'Energy Prices'!$C$26:$C$31,0),MATCH(Calc_Option4!AU$6,'Energy Prices'!$F$11:$CR$11,0))/100000,0)","v":0},{"$f":"IFERROR('Data Input - Option 4'!AZ87*INDEX('Energy Prices'!$F$26:$CR$31,MATCH($B131,'Energy Prices'!$C$26:$C$31,0),MATCH(Calc_Option4!AV$6,'Energy Prices'!$F$11:$CR$11,0))/100000,0)","v":0},{"$f":"IFERROR('Data Input - Option 4'!BA87*INDEX('Energy Prices'!$F$26:$CR$31,MATCH($B131,'Energy Prices'!$C$26:$C$31,0),MATCH(Calc_Option4!AW$6,'Energy Prices'!$F$11:$CR$11,0))/100000,0)","v":0},{"$f":"IFERROR('Data Input - Option 4'!BB87*INDEX('Energy Prices'!$F$26:$CR$31,MATCH($B131,'Energy Prices'!$C$26:$C$31,0),MATCH(Calc_Option4!AX$6,'Energy Prices'!$F$11:$CR$11,0))/100000,0)","v":0},{"$f":"IFERROR('Data Input - Option 4'!BC87*INDEX('Energy Prices'!$F$26:$CR$31,MATCH($B131,'Energy Prices'!$C$26:$C$31,0),MATCH(Calc_Option4!AY$6,'Energy Prices'!$F$11:$CR$11,0))/100000,0)","v":0},{"$f":"IFERROR('Data Input - Option 4'!BD87*INDEX('Energy Prices'!$F$26:$CR$31,MATCH($B131,'Energy Prices'!$C$26:$C$31,0),MATCH(Calc_Option4!AZ$6,'Energy Prices'!$F$11:$CR$11,0))/100000,0)","v":0},{"$f":"IFERROR('Data Input - Option 4'!BE87*INDEX('Energy Prices'!$F$26:$CR$31,MATCH($B131,'Energy Prices'!$C$26:$C$31,0),MATCH(Calc_Option4!BA$6,'Energy Prices'!$F$11:$CR$11,0))/100000,0)","v":0},{"$f":"IFERROR('Data Input - Option 4'!BF87*INDEX('Energy Prices'!$F$26:$CR$31,MATCH($B131,'Energy Prices'!$C$26:$C$31,0),MATCH(Calc_Option4!BB$6,'Energy Prices'!$F$11:$CR$11,0))/100000,0)","v":0},{"$f":"IFERROR('Data Input - Option 4'!BG87*INDEX('Energy Prices'!$F$26:$CR$31,MATCH($B131,'Energy Prices'!$C$26:$C$31,0),MATCH(Calc_Option4!BC$6,'Energy Prices'!$F$11:$CR$11,0))/100000,0)","v":0},{"$f":"IFERROR('Data Input - Option 4'!BH87*INDEX('Energy Prices'!$F$26:$CR$31,MATCH($B131,'Energy Prices'!$C$26:$C$31,0),MATCH(Calc_Option4!BD$6,'Energy Prices'!$F$11:$CR$11,0))/100000,0)","v":0},{"$f":"IFERROR('Data Input - Option 4'!BI87*INDEX('Energy Prices'!$F$26:$CR$31,MATCH($B131,'Energy Prices'!$C$26:$C$31,0),MATCH(Calc_Option4!BE$6,'Energy Prices'!$F$11:$CR$11,0))/100000,0)","v":0},{"$f":"IFERROR('Data Input - Option 4'!BJ87*INDEX('Energy Prices'!$F$26:$CR$31,MATCH($B131,'Energy Prices'!$C$26:$C$31,0),MATCH(Calc_Option4!BF$6,'Energy Prices'!$F$11:$CR$11,0))/100000,0)","v":0},{"$f":"IFERROR('Data Input - Option 4'!BK87*INDEX('Energy Prices'!$F$26:$CR$31,MATCH($B131,'Energy Prices'!$C$26:$C$31,0),MATCH(Calc_Option4!BG$6,'Energy Prices'!$F$11:$CR$11,0))/100000,0)","v":0},{"$f":"IFERROR('Data Input - Option 4'!BL87*INDEX('Energy Prices'!$F$26:$CR$31,MATCH($B131,'Energy Prices'!$C$26:$C$31,0),MATCH(Calc_Option4!BH$6,'Energy Prices'!$F$11:$CR$11,0))/100000,0)","v":0},{"$f":"IFERROR('Data Input - Option 4'!BM87*INDEX('Energy Prices'!$F$26:$CR$31,MATCH($B131,'Energy Prices'!$C$26:$C$31,0),MATCH(Calc_Option4!BI$6,'Energy Prices'!$F$11:$CR$11,0))/100000,0)","v":0},{"$f":"IFERROR('Data Input - Option 4'!BN87*INDEX('Energy Prices'!$F$26:$CR$31,MATCH($B131,'Energy Prices'!$C$26:$C$31,0),MATCH(Calc_Option4!BJ$6,'Energy Prices'!$F$11:$CR$11,0))/100000,0)","v":0},{"$f":"IFERROR('Data Input - Option 4'!BO87*INDEX('Energy Prices'!$F$26:$CR$31,MATCH($B131,'Energy Prices'!$C$26:$C$31,0),MATCH(Calc_Option4!BK$6,'Energy Prices'!$F$11:$CR$11,0))/100000,0)","v":0},{"$f":"IFERROR('Data Input - Option 4'!BP87*INDEX('Energy Prices'!$F$26:$CR$31,MATCH($B131,'Energy Prices'!$C$26:$C$31,0),MATCH(Calc_Option4!BL$6,'Energy Prices'!$F$11:$CR$11,0))/100000,0)","v":0},{"$f":"IFERROR('Data Input - Option 4'!BQ87*INDEX('Energy Prices'!$F$26:$CR$31,MATCH($B131,'Energy Prices'!$C$26:$C$31,0),MATCH(Calc_Option4!BM$6,'Energy Prices'!$F$11:$CR$11,0))/100000,0)","v":0},{"$f":"IFERROR('Data Input - Option 4'!BR87*INDEX('Energy Prices'!$F$26:$CR$31,MATCH($B131,'Energy Prices'!$C$26:$C$31,0),MATCH(Calc_Option4!BN$6,'Energy Prices'!$F$11:$CR$11,0))/100000,0)","v":0},{"$f":"IFERROR('Data Input - Option 4'!BS87*INDEX('Energy Prices'!$F$26:$CR$31,MATCH($B131,'Energy Prices'!$C$26:$C$31,0),MATCH(Calc_Option4!BO$6,'Energy Prices'!$F$11:$CR$11,0))/100000,0)","v":0},{"$f":"IFERROR('Data Input - Option 4'!BT87*INDEX('Energy Prices'!$F$26:$CR$31,MATCH($B131,'Energy Prices'!$C$26:$C$31,0),MATCH(Calc_Option4!BP$6,'Energy Prices'!$F$11:$CR$11,0))/100000,0)","v":0},{"$f":"IFERROR('Data Input - Option 4'!BU87*INDEX('Energy Prices'!$F$26:$CR$31,MATCH($B131,'Energy Prices'!$C$26:$C$31,0),MATCH(Calc_Option4!BQ$6,'Energy Prices'!$F$11:$CR$11,0))/100000,0)","v":0},{"$f":"IFERROR('Data Input - Option 4'!BV87*INDEX('Energy Prices'!$F$26:$CR$31,MATCH($B131,'Energy Prices'!$C$26:$C$31,0),MATCH(Calc_Option4!BR$6,'Energy Prices'!$F$11:$CR$11,0))/100000,0)","v":0},{"$f":"IFERROR('Data Input - Option 4'!BW87*INDEX('Energy Prices'!$F$26:$CR$31,MATCH($B131,'Energy Prices'!$C$26:$C$31,0),MATCH(Calc_Option4!BS$6,'Energy Prices'!$F$11:$CR$11,0))/100000,0)","v":0},{"$f":"IFERROR('Data Input - Option 4'!BX87*INDEX('Energy Prices'!$F$26:$CR$31,MATCH($B131,'Energy Prices'!$C$26:$C$31,0),MATCH(Calc_Option4!BT$6,'Energy Prices'!$F$11:$CR$11,0))/100000,0)","v":0},{"$f":"IFERROR('Data Input - Option 4'!BY87*INDEX('Energy Prices'!$F$26:$CR$31,MATCH($B131,'Energy Prices'!$C$26:$C$31,0),MATCH(Calc_Option4!BU$6,'Energy Prices'!$F$11:$CR$11,0))/100000,0)","v":0},{"$f":"IFERROR('Data Input - Option 4'!BZ87*INDEX('Energy Prices'!$F$26:$CR$31,MATCH($B131,'Energy Prices'!$C$26:$C$31,0),MATCH(Calc_Option4!BV$6,'Energy Prices'!$F$11:$CR$11,0))/100000,0)","v":0},{"$f":"IFERROR('Data Input - Option 4'!CA87*INDEX('Energy Prices'!$F$26:$CR$31,MATCH($B131,'Energy Prices'!$C$26:$C$31,0),MATCH(Calc_Option4!BW$6,'Energy Prices'!$F$11:$CR$11,0))/100000,0)","v":0},{"$f":"IFERROR('Data Input - Option 4'!CB87*INDEX('Energy Prices'!$F$26:$CR$31,MATCH($B131,'Energy Prices'!$C$26:$C$31,0),MATCH(Calc_Option4!BX$6,'Energy Prices'!$F$11:$CR$11,0))/100000,0)","v":0},{"$f":"IFERROR('Data Input - Option 4'!CC87*INDEX('Energy Prices'!$F$26:$CR$31,MATCH($B131,'Energy Prices'!$C$26:$C$31,0),MATCH(Calc_Option4!BY$6,'Energy Prices'!$F$11:$CR$11,0))/100000,0)","v":0},{"$f":"IFERROR('Data Input - Option 4'!CD87*INDEX('Energy Prices'!$F$26:$CR$31,MATCH($B131,'Energy Prices'!$C$26:$C$31,0),MATCH(Calc_Option4!BZ$6,'Energy Prices'!$F$11:$CR$11,0))/100000,0)","v":0},{"$f":"IFERROR('Data Input - Option 4'!CE87*INDEX('Energy Prices'!$F$26:$CR$31,MATCH($B131,'Energy Prices'!$C$26:$C$31,0),MATCH(Calc_Option4!CA$6,'Energy Prices'!$F$11:$CR$11,0))/100000,0)","v":0},{"$f":"IFERROR('Data Input - Option 4'!CF87*INDEX('Energy Prices'!$F$26:$CR$31,MATCH($B131,'Energy Prices'!$C$26:$C$31,0),MATCH(Calc_Option4!CB$6,'Energy Prices'!$F$11:$CR$11,0))/100000,0)","v":0},{"$f":"IFERROR('Data Input - Option 4'!CG87*INDEX('Energy Prices'!$F$26:$CR$31,MATCH($B131,'Energy Prices'!$C$26:$C$31,0),MATCH(Calc_Option4!CC$6,'Energy Prices'!$F$11:$CR$11,0))/100000,0)","v":0},{"$f":"IFERROR('Data Input - Option 4'!CH87*INDEX('Energy Prices'!$F$26:$CR$31,MATCH($B131,'Energy Prices'!$C$26:$C$31,0),MATCH(Calc_Option4!CD$6,'Energy Prices'!$F$11:$CR$11,0))/100000,0)","v":0},{"$f":"IFERROR('Data Input - Option 4'!CI87*INDEX('Energy Prices'!$F$26:$CR$31,MATCH($B131,'Energy Prices'!$C$26:$C$31,0),MATCH(Calc_Option4!CE$6,'Energy Prices'!$F$11:$CR$11,0))/100000,0)","v":0},{"$f":"IFERROR('Data Input - Option 4'!CJ87*INDEX('Energy Prices'!$F$26:$CR$31,MATCH($B131,'Energy Prices'!$C$26:$C$31,0),MATCH(Calc_Option4!CF$6,'Energy Prices'!$F$11:$CR$11,0))/100000,0)","v":0},{"$f":"IFERROR('Data Input - Option 4'!CK87*INDEX('Energy Prices'!$F$26:$CR$31,MATCH($B131,'Energy Prices'!$C$26:$C$31,0),MATCH(Calc_Option4!CG$6,'Energy Prices'!$F$11:$CR$11,0))/100000,0)","v":0},{"$f":"IFERROR('Data Input - Option 4'!CL87*INDEX('Energy Prices'!$F$26:$CR$31,MATCH($B131,'Energy Prices'!$C$26:$C$31,0),MATCH(Calc_Option4!CH$6,'Energy Prices'!$F$11:$CR$11,0))/100000,0)","v":0},{"$f":"IFERROR('Data Input - Option 4'!CM87*INDEX('Energy Prices'!$F$26:$CR$31,MATCH($B131,'Energy Prices'!$C$26:$C$31,0),MATCH(Calc_Option4!CI$6,'Energy Prices'!$F$11:$CR$11,0))/100000,0)","v":0},{"$f":"IFERROR('Data Input - Option 4'!CN87*INDEX('Energy Prices'!$F$26:$CR$31,MATCH($B131,'Energy Prices'!$C$26:$C$31,0),MATCH(Calc_Option4!CJ$6,'Energy Prices'!$F$11:$CR$11,0))/100000,0)","v":0},{"$f":"IFERROR('Data Input - Option 4'!CO87*INDEX('Energy Prices'!$F$26:$CR$31,MATCH($B131,'Energy Prices'!$C$26:$C$31,0),MATCH(Calc_Option4!CK$6,'Energy Prices'!$F$11:$CR$11,0))/100000,0)","v":0},{"$f":"IFERROR('Data Input - Option 4'!CP87*INDEX('Energy Prices'!$F$26:$CR$31,MATCH($B131,'Energy Prices'!$C$26:$C$31,0),MATCH(Calc_Option4!CL$6,'Energy Prices'!$F$11:$CR$11,0))/100000,0)","v":0},{"$f":"IFERROR('Data Input - Option 4'!CQ87*INDEX('Energy Prices'!$F$26:$CR$31,MATCH($B131,'Energy Prices'!$C$26:$C$31,0),MATCH(Calc_Option4!CM$6,'Energy Prices'!$F$11:$CR$11,0))/100000,0)","v":0},{"$f":"IFERROR('Data Input - Option 4'!CR87*INDEX('Energy Prices'!$F$26:$CR$31,MATCH($B131,'Energy Prices'!$C$26:$C$31,0),MATCH(Calc_Option4!CN$6,'Energy Prices'!$F$11:$CR$11,0))/100000,0)","v":0},{"$f":"IFERROR('Data Input - Option 4'!CS87*INDEX('Energy Prices'!$F$26:$CR$31,MATCH($B131,'Energy Prices'!$C$26:$C$31,0),MATCH(Calc_Option4!CO$6,'Energy Prices'!$F$11:$CR$11,0))/100000,0)","v":0},{"$f":"IFERROR('Data Input - Option 4'!CT87*INDEX('Energy Prices'!$F$26:$CR$31,MATCH($B131,'Energy Prices'!$C$26:$C$31,0),MATCH(Calc_Option4!CP$6,'Energy Prices'!$F$11:$CR$11,0))/100000,0)","v":0},{"$f":"IFERROR('Data Input - Option 4'!CU87*INDEX('Energy Prices'!$F$26:$CR$31,MATCH($B131,'Energy Prices'!$C$26:$C$31,0),MATCH(Calc_Option4!CQ$6,'Energy Prices'!$F$11:$CR$11,0))/100000,0)","v":0},{"$f":"IFERROR('Data Input - Option 4'!CV87*INDEX('Energy Prices'!$F$26:$CR$31,MATCH($B131,'Energy Prices'!$C$26:$C$31,0),MATCH(Calc_Option4!CR$6,'Energy Prices'!$F$11:$CR$11,0))/100000,0)","v":0},{"$f":"IFERROR('Data Input - Option 4'!CW87*INDEX('Energy Prices'!$F$26:$CR$31,MATCH($B131,'Energy Prices'!$C$26:$C$31,0),MATCH(Calc_Option4!CS$6,'Energy Prices'!$F$11:$CR$11,0))/100000,0)","v":0},{"$f":"IFERROR('Data Input - Option 4'!CX87*INDEX('Energy Prices'!$F$26:$CR$31,MATCH($B131,'Energy Prices'!$C$26:$C$31,0),MATCH(Calc_Option4!CT$6,'Energy Prices'!$F$11:$CR$11,0))/100000,0)","v":0},{"$f":"IFERROR('Data Input - Option 4'!CY87*INDEX('Energy Prices'!$F$26:$CR$31,MATCH($B131,'Energy Prices'!$C$26:$C$31,0),MATCH(Calc_Option4!CU$6,'Energy Prices'!$F$11:$CR$11,0))/100000,0)","v":0},{"$f":"IFERROR('Data Input - Option 4'!CZ87*INDEX('Energy Prices'!$F$26:$CR$31,MATCH($B131,'Energy Prices'!$C$26:$C$31,0),MATCH(Calc_Option4!CV$6,'Energy Prices'!$F$11:$CR$11,0))/100000,0)","v":0},{"$f":"IFERROR('Data Input - Option 4'!DA87*INDEX('Energy Prices'!$F$26:$CR$31,MATCH($B131,'Energy Prices'!$C$26:$C$31,0),MATCH(Calc_Option4!CW$6,'Energy Prices'!$F$11:$CR$11,0))/100000,0)","v":0},{"$f":"IFERROR('Data Input - Option 4'!DB87*INDEX('Energy Prices'!$F$26:$CR$31,MATCH($B131,'Energy Prices'!$C$26:$C$31,0),MATCH(Calc_Option4!CX$6,'Energy Prices'!$F$11:$CR$11,0))/100000,0)","v":0},{"$f":"IFERROR('Data Input - Option 4'!DC87*INDEX('Energy Prices'!$F$26:$CR$31,MATCH($B131,'Energy Prices'!$C$26:$C$31,0),MATCH(Calc_Option4!CY$6,'Energy Prices'!$F$11:$CR$11,0))/100000,0)","v":0}]
[null,"Road - Petrol","£000's",{"$f":"IFERROR('Data Input - Option 4'!H88*INDEX('Energy Prices'!$F$26:$CR$31,MATCH($B132,'Energy Prices'!$C$26:$C$31,0),MATCH(Calc_Option4!D$6,'Energy Prices'!$F$11:$CR$11,0))/100000,0)","v":0},{"$f":"IFERROR('Data Input - Option 4'!I88*INDEX('Energy Prices'!$F$26:$CR$31,MATCH($B132,'Energy Prices'!$C$26:$C$31,0),MATCH(Calc_Option4!E$6,'Energy Prices'!$F$11:$CR$11,0))/100000,0)","v":0},{"$f":"IFERROR('Data Input - Option 4'!J88*INDEX('Energy Prices'!$F$26:$CR$31,MATCH($B132,'Energy Prices'!$C$26:$C$31,0),MATCH(Calc_Option4!F$6,'Energy Prices'!$F$11:$CR$11,0))/100000,0)","v":0},{"$f":"IFERROR('Data Input - Option 4'!K88*INDEX('Energy Prices'!$F$26:$CR$31,MATCH($B132,'Energy Prices'!$C$26:$C$31,0),MATCH(Calc_Option4!G$6,'Energy Prices'!$F$11:$CR$11,0))/100000,0)","v":0},{"$f":"IFERROR('Data Input - Option 4'!L88*INDEX('Energy Prices'!$F$26:$CR$31,MATCH($B132,'Energy Prices'!$C$26:$C$31,0),MATCH(Calc_Option4!H$6,'Energy Prices'!$F$11:$CR$11,0))/100000,0)","v":0},{"$f":"IFERROR('Data Input - Option 4'!M88*INDEX('Energy Prices'!$F$26:$CR$31,MATCH($B132,'Energy Prices'!$C$26:$C$31,0),MATCH(Calc_Option4!I$6,'Energy Prices'!$F$11:$CR$11,0))/100000,0)","v":0},{"$f":"IFERROR('Data Input - Option 4'!N88*INDEX('Energy Prices'!$F$26:$CR$31,MATCH($B132,'Energy Prices'!$C$26:$C$31,0),MATCH(Calc_Option4!J$6,'Energy Prices'!$F$11:$CR$11,0))/100000,0)","v":0},{"$f":"IFERROR('Data Input - Option 4'!O88*INDEX('Energy Prices'!$F$26:$CR$31,MATCH($B132,'Energy Prices'!$C$26:$C$31,0),MATCH(Calc_Option4!K$6,'Energy Prices'!$F$11:$CR$11,0))/100000,0)","v":0},{"$f":"IFERROR('Data Input - Option 4'!P88*INDEX('Energy Prices'!$F$26:$CR$31,MATCH($B132,'Energy Prices'!$C$26:$C$31,0),MATCH(Calc_Option4!L$6,'Energy Prices'!$F$11:$CR$11,0))/100000,0)","v":0},{"$f":"IFERROR('Data Input - Option 4'!Q88*INDEX('Energy Prices'!$F$26:$CR$31,MATCH($B132,'Energy Prices'!$C$26:$C$31,0),MATCH(Calc_Option4!M$6,'Energy Prices'!$F$11:$CR$11,0))/100000,0)","v":0},{"$f":"IFERROR('Data Input - Option 4'!R88*INDEX('Energy Prices'!$F$26:$CR$31,MATCH($B132,'Energy Prices'!$C$26:$C$31,0),MATCH(Calc_Option4!N$6,'Energy Prices'!$F$11:$CR$11,0))/100000,0)","v":0},{"$f":"IFERROR('Data Input - Option 4'!S88*INDEX('Energy Prices'!$F$26:$CR$31,MATCH($B132,'Energy Prices'!$C$26:$C$31,0),MATCH(Calc_Option4!O$6,'Energy Prices'!$F$11:$CR$11,0))/100000,0)","v":0},{"$f":"IFERROR('Data Input - Option 4'!T88*INDEX('Energy Prices'!$F$26:$CR$31,MATCH($B132,'Energy Prices'!$C$26:$C$31,0),MATCH(Calc_Option4!P$6,'Energy Prices'!$F$11:$CR$11,0))/100000,0)","v":0},{"$f":"IFERROR('Data Input - Option 4'!U88*INDEX('Energy Prices'!$F$26:$CR$31,MATCH($B132,'Energy Prices'!$C$26:$C$31,0),MATCH(Calc_Option4!Q$6,'Energy Prices'!$F$11:$CR$11,0))/100000,0)","v":0},{"$f":"IFERROR('Data Input - Option 4'!V88*INDEX('Energy Prices'!$F$26:$CR$31,MATCH($B132,'Energy Prices'!$C$26:$C$31,0),MATCH(Calc_Option4!R$6,'Energy Prices'!$F$11:$CR$11,0))/100000,0)","v":0},{"$f":"IFERROR('Data Input - Option 4'!W88*INDEX('Energy Prices'!$F$26:$CR$31,MATCH($B132,'Energy Prices'!$C$26:$C$31,0),MATCH(Calc_Option4!S$6,'Energy Prices'!$F$11:$CR$11,0))/100000,0)","v":0},{"$f":"IFERROR('Data Input - Option 4'!X88*INDEX('Energy Prices'!$F$26:$CR$31,MATCH($B132,'Energy Prices'!$C$26:$C$31,0),MATCH(Calc_Option4!T$6,'Energy Prices'!$F$11:$CR$11,0))/100000,0)","v":0},{"$f":"IFERROR('Data Input - Option 4'!Y88*INDEX('Energy Prices'!$F$26:$CR$31,MATCH($B132,'Energy Prices'!$C$26:$C$31,0),MATCH(Calc_Option4!U$6,'Energy Prices'!$F$11:$CR$11,0))/100000,0)","v":0},{"$f":"IFERROR('Data Input - Option 4'!Z88*INDEX('Energy Prices'!$F$26:$CR$31,MATCH($B132,'Energy Prices'!$C$26:$C$31,0),MATCH(Calc_Option4!V$6,'Energy Prices'!$F$11:$CR$11,0))/100000,0)","v":0},{"$f":"IFERROR('Data Input - Option 4'!AA88*INDEX('Energy Prices'!$F$26:$CR$31,MATCH($B132,'Energy Prices'!$C$26:$C$31,0),MATCH(Calc_Option4!W$6,'Energy Prices'!$F$11:$CR$11,0))/100000,0)","v":0},{"$f":"IFERROR('Data Input - Option 4'!AB88*INDEX('Energy Prices'!$F$26:$CR$31,MATCH($B132,'Energy Prices'!$C$26:$C$31,0),MATCH(Calc_Option4!X$6,'Energy Prices'!$F$11:$CR$11,0))/100000,0)","v":0},{"$f":"IFERROR('Data Input - Option 4'!AC88*INDEX('Energy Prices'!$F$26:$CR$31,MATCH($B132,'Energy Prices'!$C$26:$C$31,0),MATCH(Calc_Option4!Y$6,'Energy Prices'!$F$11:$CR$11,0))/100000,0)","v":0},{"$f":"IFERROR('Data Input - Option 4'!AD88*INDEX('Energy Prices'!$F$26:$CR$31,MATCH($B132,'Energy Prices'!$C$26:$C$31,0),MATCH(Calc_Option4!Z$6,'Energy Prices'!$F$11:$CR$11,0))/100000,0)","v":0},{"$f":"IFERROR('Data Input - Option 4'!AE88*INDEX('Energy Prices'!$F$26:$CR$31,MATCH($B132,'Energy Prices'!$C$26:$C$31,0),MATCH(Calc_Option4!AA$6,'Energy Prices'!$F$11:$CR$11,0))/100000,0)","v":0},{"$f":"IFERROR('Data Input - Option 4'!AF88*INDEX('Energy Prices'!$F$26:$CR$31,MATCH($B132,'Energy Prices'!$C$26:$C$31,0),MATCH(Calc_Option4!AB$6,'Energy Prices'!$F$11:$CR$11,0))/100000,0)","v":0},{"$f":"IFERROR('Data Input - Option 4'!AG88*INDEX('Energy Prices'!$F$26:$CR$31,MATCH($B132,'Energy Prices'!$C$26:$C$31,0),MATCH(Calc_Option4!AC$6,'Energy Prices'!$F$11:$CR$11,0))/100000,0)","v":0},{"$f":"IFERROR('Data Input - Option 4'!AH88*INDEX('Energy Prices'!$F$26:$CR$31,MATCH($B132,'Energy Prices'!$C$26:$C$31,0),MATCH(Calc_Option4!AD$6,'Energy Prices'!$F$11:$CR$11,0))/100000,0)","v":0},{"$f":"IFERROR('Data Input - Option 4'!AI88*INDEX('Energy Prices'!$F$26:$CR$31,MATCH($B132,'Energy Prices'!$C$26:$C$31,0),MATCH(Calc_Option4!AE$6,'Energy Prices'!$F$11:$CR$11,0))/100000,0)","v":0},{"$f":"IFERROR('Data Input - Option 4'!AJ88*INDEX('Energy Prices'!$F$26:$CR$31,MATCH($B132,'Energy Prices'!$C$26:$C$31,0),MATCH(Calc_Option4!AF$6,'Energy Prices'!$F$11:$CR$11,0))/100000,0)","v":0},{"$f":"IFERROR('Data Input - Option 4'!AK88*INDEX('Energy Prices'!$F$26:$CR$31,MATCH($B132,'Energy Prices'!$C$26:$C$31,0),MATCH(Calc_Option4!AG$6,'Energy Prices'!$F$11:$CR$11,0))/100000,0)","v":0},{"$f":"IFERROR('Data Input - Option 4'!AL88*INDEX('Energy Prices'!$F$26:$CR$31,MATCH($B132,'Energy Prices'!$C$26:$C$31,0),MATCH(Calc_Option4!AH$6,'Energy Prices'!$F$11:$CR$11,0))/100000,0)","v":0},{"$f":"IFERROR('Data Input - Option 4'!AM88*INDEX('Energy Prices'!$F$26:$CR$31,MATCH($B132,'Energy Prices'!$C$26:$C$31,0),MATCH(Calc_Option4!AI$6,'Energy Prices'!$F$11:$CR$11,0))/100000,0)","v":0},{"$f":"IFERROR('Data Input - Option 4'!AN88*INDEX('Energy Prices'!$F$26:$CR$31,MATCH($B132,'Energy Prices'!$C$26:$C$31,0),MATCH(Calc_Option4!AJ$6,'Energy Prices'!$F$11:$CR$11,0))/100000,0)","v":0},{"$f":"IFERROR('Data Input - Option 4'!AO88*INDEX('Energy Prices'!$F$26:$CR$31,MATCH($B132,'Energy Prices'!$C$26:$C$31,0),MATCH(Calc_Option4!AK$6,'Energy Prices'!$F$11:$CR$11,0))/100000,0)","v":0},{"$f":"IFERROR('Data Input - Option 4'!AP88*INDEX('Energy Prices'!$F$26:$CR$31,MATCH($B132,'Energy Prices'!$C$26:$C$31,0),MATCH(Calc_Option4!AL$6,'Energy Prices'!$F$11:$CR$11,0))/100000,0)","v":0},{"$f":"IFERROR('Data Input - Option 4'!AQ88*INDEX('Energy Prices'!$F$26:$CR$31,MATCH($B132,'Energy Prices'!$C$26:$C$31,0),MATCH(Calc_Option4!AM$6,'Energy Prices'!$F$11:$CR$11,0))/100000,0)","v":0},{"$f":"IFERROR('Data Input - Option 4'!AR88*INDEX('Energy Prices'!$F$26:$CR$31,MATCH($B132,'Energy Prices'!$C$26:$C$31,0),MATCH(Calc_Option4!AN$6,'Energy Prices'!$F$11:$CR$11,0))/100000,0)","v":0},{"$f":"IFERROR('Data Input - Option 4'!AS88*INDEX('Energy Prices'!$F$26:$CR$31,MATCH($B132,'Energy Prices'!$C$26:$C$31,0),MATCH(Calc_Option4!AO$6,'Energy Prices'!$F$11:$CR$11,0))/100000,0)","v":0},{"$f":"IFERROR('Data Input - Option 4'!AT88*INDEX('Energy Prices'!$F$26:$CR$31,MATCH($B132,'Energy Prices'!$C$26:$C$31,0),MATCH(Calc_Option4!AP$6,'Energy Prices'!$F$11:$CR$11,0))/100000,0)","v":0},{"$f":"IFERROR('Data Input - Option 4'!AU88*INDEX('Energy Prices'!$F$26:$CR$31,MATCH($B132,'Energy Prices'!$C$26:$C$31,0),MATCH(Calc_Option4!AQ$6,'Energy Prices'!$F$11:$CR$11,0))/100000,0)","v":0},{"$f":"IFERROR('Data Input - Option 4'!AV88*INDEX('Energy Prices'!$F$26:$CR$31,MATCH($B132,'Energy Prices'!$C$26:$C$31,0),MATCH(Calc_Option4!AR$6,'Energy Prices'!$F$11:$CR$11,0))/100000,0)","v":0},{"$f":"IFERROR('Data Input - Option 4'!AW88*INDEX('Energy Prices'!$F$26:$CR$31,MATCH($B132,'Energy Prices'!$C$26:$C$31,0),MATCH(Calc_Option4!AS$6,'Energy Prices'!$F$11:$CR$11,0))/100000,0)","v":0},{"$f":"IFERROR('Data Input - Option 4'!AX88*INDEX('Energy Prices'!$F$26:$CR$31,MATCH($B132,'Energy Prices'!$C$26:$C$31,0),MATCH(Calc_Option4!AT$6,'Energy Prices'!$F$11:$CR$11,0))/100000,0)","v":0},{"$f":"IFERROR('Data Input - Option 4'!AY88*INDEX('Energy Prices'!$F$26:$CR$31,MATCH($B132,'Energy Prices'!$C$26:$C$31,0),MATCH(Calc_Option4!AU$6,'Energy Prices'!$F$11:$CR$11,0))/100000,0)","v":0},{"$f":"IFERROR('Data Input - Option 4'!AZ88*INDEX('Energy Prices'!$F$26:$CR$31,MATCH($B132,'Energy Prices'!$C$26:$C$31,0),MATCH(Calc_Option4!AV$6,'Energy Prices'!$F$11:$CR$11,0))/100000,0)","v":0},{"$f":"IFERROR('Data Input - Option 4'!BA88*INDEX('Energy Prices'!$F$26:$CR$31,MATCH($B132,'Energy Prices'!$C$26:$C$31,0),MATCH(Calc_Option4!AW$6,'Energy Prices'!$F$11:$CR$11,0))/100000,0)","v":0},{"$f":"IFERROR('Data Input - Option 4'!BB88*INDEX('Energy Prices'!$F$26:$CR$31,MATCH($B132,'Energy Prices'!$C$26:$C$31,0),MATCH(Calc_Option4!AX$6,'Energy Prices'!$F$11:$CR$11,0))/100000,0)","v":0},{"$f":"IFERROR('Data Input - Option 4'!BC88*INDEX('Energy Prices'!$F$26:$CR$31,MATCH($B132,'Energy Prices'!$C$26:$C$31,0),MATCH(Calc_Option4!AY$6,'Energy Prices'!$F$11:$CR$11,0))/100000,0)","v":0},{"$f":"IFERROR('Data Input - Option 4'!BD88*INDEX('Energy Prices'!$F$26:$CR$31,MATCH($B132,'Energy Prices'!$C$26:$C$31,0),MATCH(Calc_Option4!AZ$6,'Energy Prices'!$F$11:$CR$11,0))/100000,0)","v":0},{"$f":"IFERROR('Data Input - Option 4'!BE88*INDEX('Energy Prices'!$F$26:$CR$31,MATCH($B132,'Energy Prices'!$C$26:$C$31,0),MATCH(Calc_Option4!BA$6,'Energy Prices'!$F$11:$CR$11,0))/100000,0)","v":0},{"$f":"IFERROR('Data Input - Option 4'!BF88*INDEX('Energy Prices'!$F$26:$CR$31,MATCH($B132,'Energy Prices'!$C$26:$C$31,0),MATCH(Calc_Option4!BB$6,'Energy Prices'!$F$11:$CR$11,0))/100000,0)","v":0},{"$f":"IFERROR('Data Input - Option 4'!BG88*INDEX('Energy Prices'!$F$26:$CR$31,MATCH($B132,'Energy Prices'!$C$26:$C$31,0),MATCH(Calc_Option4!BC$6,'Energy Prices'!$F$11:$CR$11,0))/100000,0)","v":0},{"$f":"IFERROR('Data Input - Option 4'!BH88*INDEX('Energy Prices'!$F$26:$CR$31,MATCH($B132,'Energy Prices'!$C$26:$C$31,0),MATCH(Calc_Option4!BD$6,'Energy Prices'!$F$11:$CR$11,0))/100000,0)","v":0},{"$f":"IFERROR('Data Input - Option 4'!BI88*INDEX('Energy Prices'!$F$26:$CR$31,MATCH($B132,'Energy Prices'!$C$26:$C$31,0),MATCH(Calc_Option4!BE$6,'Energy Prices'!$F$11:$CR$11,0))/100000,0)","v":0},{"$f":"IFERROR('Data Input - Option 4'!BJ88*INDEX('Energy Prices'!$F$26:$CR$31,MATCH($B132,'Energy Prices'!$C$26:$C$31,0),MATCH(Calc_Option4!BF$6,'Energy Prices'!$F$11:$CR$11,0))/100000,0)","v":0},{"$f":"IFERROR('Data Input - Option 4'!BK88*INDEX('Energy Prices'!$F$26:$CR$31,MATCH($B132,'Energy Prices'!$C$26:$C$31,0),MATCH(Calc_Option4!BG$6,'Energy Prices'!$F$11:$CR$11,0))/100000,0)","v":0},{"$f":"IFERROR('Data Input - Option 4'!BL88*INDEX('Energy Prices'!$F$26:$CR$31,MATCH($B132,'Energy Prices'!$C$26:$C$31,0),MATCH(Calc_Option4!BH$6,'Energy Prices'!$F$11:$CR$11,0))/100000,0)","v":0},{"$f":"IFERROR('Data Input - Option 4'!BM88*INDEX('Energy Prices'!$F$26:$CR$31,MATCH($B132,'Energy Prices'!$C$26:$C$31,0),MATCH(Calc_Option4!BI$6,'Energy Prices'!$F$11:$CR$11,0))/100000,0)","v":0},{"$f":"IFERROR('Data Input - Option 4'!BN88*INDEX('Energy Prices'!$F$26:$CR$31,MATCH($B132,'Energy Prices'!$C$26:$C$31,0),MATCH(Calc_Option4!BJ$6,'Energy Prices'!$F$11:$CR$11,0))/100000,0)","v":0},{"$f":"IFERROR('Data Input - Option 4'!BO88*INDEX('Energy Prices'!$F$26:$CR$31,MATCH($B132,'Energy Prices'!$C$26:$C$31,0),MATCH(Calc_Option4!BK$6,'Energy Prices'!$F$11:$CR$11,0))/100000,0)","v":0},{"$f":"IFERROR('Data Input - Option 4'!BP88*INDEX('Energy Prices'!$F$26:$CR$31,MATCH($B132,'Energy Prices'!$C$26:$C$31,0),MATCH(Calc_Option4!BL$6,'Energy Prices'!$F$11:$CR$11,0))/100000,0)","v":0},{"$f":"IFERROR('Data Input - Option 4'!BQ88*INDEX('Energy Prices'!$F$26:$CR$31,MATCH($B132,'Energy Prices'!$C$26:$C$31,0),MATCH(Calc_Option4!BM$6,'Energy Prices'!$F$11:$CR$11,0))/100000,0)","v":0},{"$f":"IFERROR('Data Input - Option 4'!BR88*INDEX('Energy Prices'!$F$26:$CR$31,MATCH($B132,'Energy Prices'!$C$26:$C$31,0),MATCH(Calc_Option4!BN$6,'Energy Prices'!$F$11:$CR$11,0))/100000,0)","v":0},{"$f":"IFERROR('Data Input - Option 4'!BS88*INDEX('Energy Prices'!$F$26:$CR$31,MATCH($B132,'Energy Prices'!$C$26:$C$31,0),MATCH(Calc_Option4!BO$6,'Energy Prices'!$F$11:$CR$11,0))/100000,0)","v":0},{"$f":"IFERROR('Data Input - Option 4'!BT88*INDEX('Energy Prices'!$F$26:$CR$31,MATCH($B132,'Energy Prices'!$C$26:$C$31,0),MATCH(Calc_Option4!BP$6,'Energy Prices'!$F$11:$CR$11,0))/100000,0)","v":0},{"$f":"IFERROR('Data Input - Option 4'!BU88*INDEX('Energy Prices'!$F$26:$CR$31,MATCH($B132,'Energy Prices'!$C$26:$C$31,0),MATCH(Calc_Option4!BQ$6,'Energy Prices'!$F$11:$CR$11,0))/100000,0)","v":0},{"$f":"IFERROR('Data Input - Option 4'!BV88*INDEX('Energy Prices'!$F$26:$CR$31,MATCH($B132,'Energy Prices'!$C$26:$C$31,0),MATCH(Calc_Option4!BR$6,'Energy Prices'!$F$11:$CR$11,0))/100000,0)","v":0},{"$f":"IFERROR('Data Input - Option 4'!BW88*INDEX('Energy Prices'!$F$26:$CR$31,MATCH($B132,'Energy Prices'!$C$26:$C$31,0),MATCH(Calc_Option4!BS$6,'Energy Prices'!$F$11:$CR$11,0))/100000,0)","v":0},{"$f":"IFERROR('Data Input - Option 4'!BX88*INDEX('Energy Prices'!$F$26:$CR$31,MATCH($B132,'Energy Prices'!$C$26:$C$31,0),MATCH(Calc_Option4!BT$6,'Energy Prices'!$F$11:$CR$11,0))/100000,0)","v":0},{"$f":"IFERROR('Data Input - Option 4'!BY88*INDEX('Energy Prices'!$F$26:$CR$31,MATCH($B132,'Energy Prices'!$C$26:$C$31,0),MATCH(Calc_Option4!BU$6,'Energy Prices'!$F$11:$CR$11,0))/100000,0)","v":0},{"$f":"IFERROR('Data Input - Option 4'!BZ88*INDEX('Energy Prices'!$F$26:$CR$31,MATCH($B132,'Energy Prices'!$C$26:$C$31,0),MATCH(Calc_Option4!BV$6,'Energy Prices'!$F$11:$CR$11,0))/100000,0)","v":0},{"$f":"IFERROR('Data Input - Option 4'!CA88*INDEX('Energy Prices'!$F$26:$CR$31,MATCH($B132,'Energy Prices'!$C$26:$C$31,0),MATCH(Calc_Option4!BW$6,'Energy Prices'!$F$11:$CR$11,0))/100000,0)","v":0},{"$f":"IFERROR('Data Input - Option 4'!CB88*INDEX('Energy Prices'!$F$26:$CR$31,MATCH($B132,'Energy Prices'!$C$26:$C$31,0),MATCH(Calc_Option4!BX$6,'Energy Prices'!$F$11:$CR$11,0))/100000,0)","v":0},{"$f":"IFERROR('Data Input - Option 4'!CC88*INDEX('Energy Prices'!$F$26:$CR$31,MATCH($B132,'Energy Prices'!$C$26:$C$31,0),MATCH(Calc_Option4!BY$6,'Energy Prices'!$F$11:$CR$11,0))/100000,0)","v":0},{"$f":"IFERROR('Data Input - Option 4'!CD88*INDEX('Energy Prices'!$F$26:$CR$31,MATCH($B132,'Energy Prices'!$C$26:$C$31,0),MATCH(Calc_Option4!BZ$6,'Energy Prices'!$F$11:$CR$11,0))/100000,0)","v":0},{"$f":"IFERROR('Data Input - Option 4'!CE88*INDEX('Energy Prices'!$F$26:$CR$31,MATCH($B132,'Energy Prices'!$C$26:$C$31,0),MATCH(Calc_Option4!CA$6,'Energy Prices'!$F$11:$CR$11,0))/100000,0)","v":0},{"$f":"IFERROR('Data Input - Option 4'!CF88*INDEX('Energy Prices'!$F$26:$CR$31,MATCH($B132,'Energy Prices'!$C$26:$C$31,0),MATCH(Calc_Option4!CB$6,'Energy Prices'!$F$11:$CR$11,0))/100000,0)","v":0},{"$f":"IFERROR('Data Input - Option 4'!CG88*INDEX('Energy Prices'!$F$26:$CR$31,MATCH($B132,'Energy Prices'!$C$26:$C$31,0),MATCH(Calc_Option4!CC$6,'Energy Prices'!$F$11:$CR$11,0))/100000,0)","v":0},{"$f":"IFERROR('Data Input - Option 4'!CH88*INDEX('Energy Prices'!$F$26:$CR$31,MATCH($B132,'Energy Prices'!$C$26:$C$31,0),MATCH(Calc_Option4!CD$6,'Energy Prices'!$F$11:$CR$11,0))/100000,0)","v":0},{"$f":"IFERROR('Data Input - Option 4'!CI88*INDEX('Energy Prices'!$F$26:$CR$31,MATCH($B132,'Energy Prices'!$C$26:$C$31,0),MATCH(Calc_Option4!CE$6,'Energy Prices'!$F$11:$CR$11,0))/100000,0)","v":0},{"$f":"IFERROR('Data Input - Option 4'!CJ88*INDEX('Energy Prices'!$F$26:$CR$31,MATCH($B132,'Energy Prices'!$C$26:$C$31,0),MATCH(Calc_Option4!CF$6,'Energy Prices'!$F$11:$CR$11,0))/100000,0)","v":0},{"$f":"IFERROR('Data Input - Option 4'!CK88*INDEX('Energy Prices'!$F$26:$CR$31,MATCH($B132,'Energy Prices'!$C$26:$C$31,0),MATCH(Calc_Option4!CG$6,'Energy Prices'!$F$11:$CR$11,0))/100000,0)","v":0},{"$f":"IFERROR('Data Input - Option 4'!CL88*INDEX('Energy Prices'!$F$26:$CR$31,MATCH($B132,'Energy Prices'!$C$26:$C$31,0),MATCH(Calc_Option4!CH$6,'Energy Prices'!$F$11:$CR$11,0))/100000,0)","v":0},{"$f":"IFERROR('Data Input - Option 4'!CM88*INDEX('Energy Prices'!$F$26:$CR$31,MATCH($B132,'Energy Prices'!$C$26:$C$31,0),MATCH(Calc_Option4!CI$6,'Energy Prices'!$F$11:$CR$11,0))/100000,0)","v":0},{"$f":"IFERROR('Data Input - Option 4'!CN88*INDEX('Energy Prices'!$F$26:$CR$31,MATCH($B132,'Energy Prices'!$C$26:$C$31,0),MATCH(Calc_Option4!CJ$6,'Energy Prices'!$F$11:$CR$11,0))/100000,0)","v":0},{"$f":"IFERROR('Data Input - Option 4'!CO88*INDEX('Energy Prices'!$F$26:$CR$31,MATCH($B132,'Energy Prices'!$C$26:$C$31,0),MATCH(Calc_Option4!CK$6,'Energy Prices'!$F$11:$CR$11,0))/100000,0)","v":0},{"$f":"IFERROR('Data Input - Option 4'!CP88*INDEX('Energy Prices'!$F$26:$CR$31,MATCH($B132,'Energy Prices'!$C$26:$C$31,0),MATCH(Calc_Option4!CL$6,'Energy Prices'!$F$11:$CR$11,0))/100000,0)","v":0},{"$f":"IFERROR('Data Input - Option 4'!CQ88*INDEX('Energy Prices'!$F$26:$CR$31,MATCH($B132,'Energy Prices'!$C$26:$C$31,0),MATCH(Calc_Option4!CM$6,'Energy Prices'!$F$11:$CR$11,0))/100000,0)","v":0},{"$f":"IFERROR('Data Input - Option 4'!CR88*INDEX('Energy Prices'!$F$26:$CR$31,MATCH($B132,'Energy Prices'!$C$26:$C$31,0),MATCH(Calc_Option4!CN$6,'Energy Prices'!$F$11:$CR$11,0))/100000,0)","v":0},{"$f":"IFERROR('Data Input - Option 4'!CS88*INDEX('Energy Prices'!$F$26:$CR$31,MATCH($B132,'Energy Prices'!$C$26:$C$31,0),MATCH(Calc_Option4!CO$6,'Energy Prices'!$F$11:$CR$11,0))/100000,0)","v":0},{"$f":"IFERROR('Data Input - Option 4'!CT88*INDEX('Energy Prices'!$F$26:$CR$31,MATCH($B132,'Energy Prices'!$C$26:$C$31,0),MATCH(Calc_Option4!CP$6,'Energy Prices'!$F$11:$CR$11,0))/100000,0)","v":0},{"$f":"IFERROR('Data Input - Option 4'!CU88*INDEX('Energy Prices'!$F$26:$CR$31,MATCH($B132,'Energy Prices'!$C$26:$C$31,0),MATCH(Calc_Option4!CQ$6,'Energy Prices'!$F$11:$CR$11,0))/100000,0)","v":0},{"$f":"IFERROR('Data Input - Option 4'!CV88*INDEX('Energy Prices'!$F$26:$CR$31,MATCH($B132,'Energy Prices'!$C$26:$C$31,0),MATCH(Calc_Option4!CR$6,'Energy Prices'!$F$11:$CR$11,0))/100000,0)","v":0},{"$f":"IFERROR('Data Input - Option 4'!CW88*INDEX('Energy Prices'!$F$26:$CR$31,MATCH($B132,'Energy Prices'!$C$26:$C$31,0),MATCH(Calc_Option4!CS$6,'Energy Prices'!$F$11:$CR$11,0))/100000,0)","v":0},{"$f":"IFERROR('Data Input - Option 4'!CX88*INDEX('Energy Prices'!$F$26:$CR$31,MATCH($B132,'Energy Prices'!$C$26:$C$31,0),MATCH(Calc_Option4!CT$6,'Energy Prices'!$F$11:$CR$11,0))/100000,0)","v":0},{"$f":"IFERROR('Data Input - Option 4'!CY88*INDEX('Energy Prices'!$F$26:$CR$31,MATCH($B132,'Energy Prices'!$C$26:$C$31,0),MATCH(Calc_Option4!CU$6,'Energy Prices'!$F$11:$CR$11,0))/100000,0)","v":0},{"$f":"IFERROR('Data Input - Option 4'!CZ88*INDEX('Energy Prices'!$F$26:$CR$31,MATCH($B132,'Energy Prices'!$C$26:$C$31,0),MATCH(Calc_Option4!CV$6,'Energy Prices'!$F$11:$CR$11,0))/100000,0)","v":0},{"$f":"IFERROR('Data Input - Option 4'!DA88*INDEX('Energy Prices'!$F$26:$CR$31,MATCH($B132,'Energy Prices'!$C$26:$C$31,0),MATCH(Calc_Option4!CW$6,'Energy Prices'!$F$11:$CR$11,0))/100000,0)","v":0},{"$f":"IFERROR('Data Input - Option 4'!DB88*INDEX('Energy Prices'!$F$26:$CR$31,MATCH($B132,'Energy Prices'!$C$26:$C$31,0),MATCH(Calc_Option4!CX$6,'Energy Prices'!$F$11:$CR$11,0))/100000,0)","v":0},{"$f":"IFERROR('Data Input - Option 4'!DC88*INDEX('Energy Prices'!$F$26:$CR$31,MATCH($B132,'Energy Prices'!$C$26:$C$31,0),MATCH(Calc_Option4!CY$6,'Energy Prices'!$F$11:$CR$11,0))/100000,0)","v":0}]
[null,"Road - Diesel","£000's",{"$f":"IFERROR('Data Input - Option 4'!H89*INDEX('Energy Prices'!$F$26:$CR$31,MATCH($B133,'Energy Prices'!$C$26:$C$31,0),MATCH(Calc_Option4!D$6,'Energy Prices'!$F$11:$CR$11,0))/100000,0)","v":0},{"$f":"IFERROR('Data Input - Option 4'!I89*INDEX('Energy Prices'!$F$26:$CR$31,MATCH($B133,'Energy Prices'!$C$26:$C$31,0),MATCH(Calc_Option4!E$6,'Energy Prices'!$F$11:$CR$11,0))/100000,0)","v":0},{"$f":"IFERROR('Data Input - Option 4'!J89*INDEX('Energy Prices'!$F$26:$CR$31,MATCH($B133,'Energy Prices'!$C$26:$C$31,0),MATCH(Calc_Option4!F$6,'Energy Prices'!$F$11:$CR$11,0))/100000,0)","v":0},{"$f":"IFERROR('Data Input - Option 4'!K89*INDEX('Energy Prices'!$F$26:$CR$31,MATCH($B133,'Energy Prices'!$C$26:$C$31,0),MATCH(Calc_Option4!G$6,'Energy Prices'!$F$11:$CR$11,0))/100000,0)","v":0},{"$f":"IFERROR('Data Input - Option 4'!L89*INDEX('Energy Prices'!$F$26:$CR$31,MATCH($B133,'Energy Prices'!$C$26:$C$31,0),MATCH(Calc_Option4!H$6,'Energy Prices'!$F$11:$CR$11,0))/100000,0)","v":0},{"$f":"IFERROR('Data Input - Option 4'!M89*INDEX('Energy Prices'!$F$26:$CR$31,MATCH($B133,'Energy Prices'!$C$26:$C$31,0),MATCH(Calc_Option4!I$6,'Energy Prices'!$F$11:$CR$11,0))/100000,0)","v":0},{"$f":"IFERROR('Data Input - Option 4'!N89*INDEX('Energy Prices'!$F$26:$CR$31,MATCH($B133,'Energy Prices'!$C$26:$C$31,0),MATCH(Calc_Option4!J$6,'Energy Prices'!$F$11:$CR$11,0))/100000,0)","v":0},{"$f":"IFERROR('Data Input - Option 4'!O89*INDEX('Energy Prices'!$F$26:$CR$31,MATCH($B133,'Energy Prices'!$C$26:$C$31,0),MATCH(Calc_Option4!K$6,'Energy Prices'!$F$11:$CR$11,0))/100000,0)","v":0},{"$f":"IFERROR('Data Input - Option 4'!P89*INDEX('Energy Prices'!$F$26:$CR$31,MATCH($B133,'Energy Prices'!$C$26:$C$31,0),MATCH(Calc_Option4!L$6,'Energy Prices'!$F$11:$CR$11,0))/100000,0)","v":0},{"$f":"IFERROR('Data Input - Option 4'!Q89*INDEX('Energy Prices'!$F$26:$CR$31,MATCH($B133,'Energy Prices'!$C$26:$C$31,0),MATCH(Calc_Option4!M$6,'Energy Prices'!$F$11:$CR$11,0))/100000,0)","v":0},{"$f":"IFERROR('Data Input - Option 4'!R89*INDEX('Energy Prices'!$F$26:$CR$31,MATCH($B133,'Energy Prices'!$C$26:$C$31,0),MATCH(Calc_Option4!N$6,'Energy Prices'!$F$11:$CR$11,0))/100000,0)","v":0},{"$f":"IFERROR('Data Input - Option 4'!S89*INDEX('Energy Prices'!$F$26:$CR$31,MATCH($B133,'Energy Prices'!$C$26:$C$31,0),MATCH(Calc_Option4!O$6,'Energy Prices'!$F$11:$CR$11,0))/100000,0)","v":0},{"$f":"IFERROR('Data Input - Option 4'!T89*INDEX('Energy Prices'!$F$26:$CR$31,MATCH($B133,'Energy Prices'!$C$26:$C$31,0),MATCH(Calc_Option4!P$6,'Energy Prices'!$F$11:$CR$11,0))/100000,0)","v":0},{"$f":"IFERROR('Data Input - Option 4'!U89*INDEX('Energy Prices'!$F$26:$CR$31,MATCH($B133,'Energy Prices'!$C$26:$C$31,0),MATCH(Calc_Option4!Q$6,'Energy Prices'!$F$11:$CR$11,0))/100000,0)","v":0},{"$f":"IFERROR('Data Input - Option 4'!V89*INDEX('Energy Prices'!$F$26:$CR$31,MATCH($B133,'Energy Prices'!$C$26:$C$31,0),MATCH(Calc_Option4!R$6,'Energy Prices'!$F$11:$CR$11,0))/100000,0)","v":0},{"$f":"IFERROR('Data Input - Option 4'!W89*INDEX('Energy Prices'!$F$26:$CR$31,MATCH($B133,'Energy Prices'!$C$26:$C$31,0),MATCH(Calc_Option4!S$6,'Energy Prices'!$F$11:$CR$11,0))/100000,0)","v":0},{"$f":"IFERROR('Data Input - Option 4'!X89*INDEX('Energy Prices'!$F$26:$CR$31,MATCH($B133,'Energy Prices'!$C$26:$C$31,0),MATCH(Calc_Option4!T$6,'Energy Prices'!$F$11:$CR$11,0))/100000,0)","v":0},{"$f":"IFERROR('Data Input - Option 4'!Y89*INDEX('Energy Prices'!$F$26:$CR$31,MATCH($B133,'Energy Prices'!$C$26:$C$31,0),MATCH(Calc_Option4!U$6,'Energy Prices'!$F$11:$CR$11,0))/100000,0)","v":0},{"$f":"IFERROR('Data Input - Option 4'!Z89*INDEX('Energy Prices'!$F$26:$CR$31,MATCH($B133,'Energy Prices'!$C$26:$C$31,0),MATCH(Calc_Option4!V$6,'Energy Prices'!$F$11:$CR$11,0))/100000,0)","v":0},{"$f":"IFERROR('Data Input - Option 4'!AA89*INDEX('Energy Prices'!$F$26:$CR$31,MATCH($B133,'Energy Prices'!$C$26:$C$31,0),MATCH(Calc_Option4!W$6,'Energy Prices'!$F$11:$CR$11,0))/100000,0)","v":0},{"$f":"IFERROR('Data Input - Option 4'!AB89*INDEX('Energy Prices'!$F$26:$CR$31,MATCH($B133,'Energy Prices'!$C$26:$C$31,0),MATCH(Calc_Option4!X$6,'Energy Prices'!$F$11:$CR$11,0))/100000,0)","v":0},{"$f":"IFERROR('Data Input - Option 4'!AC89*INDEX('Energy Prices'!$F$26:$CR$31,MATCH($B133,'Energy Prices'!$C$26:$C$31,0),MATCH(Calc_Option4!Y$6,'Energy Prices'!$F$11:$CR$11,0))/100000,0)","v":0},{"$f":"IFERROR('Data Input - Option 4'!AD89*INDEX('Energy Prices'!$F$26:$CR$31,MATCH($B133,'Energy Prices'!$C$26:$C$31,0),MATCH(Calc_Option4!Z$6,'Energy Prices'!$F$11:$CR$11,0))/100000,0)","v":0},{"$f":"IFERROR('Data Input - Option 4'!AE89*INDEX('Energy Prices'!$F$26:$CR$31,MATCH($B133,'Energy Prices'!$C$26:$C$31,0),MATCH(Calc_Option4!AA$6,'Energy Prices'!$F$11:$CR$11,0))/100000,0)","v":0},{"$f":"IFERROR('Data Input - Option 4'!AF89*INDEX('Energy Prices'!$F$26:$CR$31,MATCH($B133,'Energy Prices'!$C$26:$C$31,0),MATCH(Calc_Option4!AB$6,'Energy Prices'!$F$11:$CR$11,0))/100000,0)","v":0},{"$f":"IFERROR('Data Input - Option 4'!AG89*INDEX('Energy Prices'!$F$26:$CR$31,MATCH($B133,'Energy Prices'!$C$26:$C$31,0),MATCH(Calc_Option4!AC$6,'Energy Prices'!$F$11:$CR$11,0))/100000,0)","v":0},{"$f":"IFERROR('Data Input - Option 4'!AH89*INDEX('Energy Prices'!$F$26:$CR$31,MATCH($B133,'Energy Prices'!$C$26:$C$31,0),MATCH(Calc_Option4!AD$6,'Energy Prices'!$F$11:$CR$11,0))/100000,0)","v":0},{"$f":"IFERROR('Data Input - Option 4'!AI89*INDEX('Energy Prices'!$F$26:$CR$31,MATCH($B133,'Energy Prices'!$C$26:$C$31,0),MATCH(Calc_Option4!AE$6,'Energy Prices'!$F$11:$CR$11,0))/100000,0)","v":0},{"$f":"IFERROR('Data Input - Option 4'!AJ89*INDEX('Energy Prices'!$F$26:$CR$31,MATCH($B133,'Energy Prices'!$C$26:$C$31,0),MATCH(Calc_Option4!AF$6,'Energy Prices'!$F$11:$CR$11,0))/100000,0)","v":0},{"$f":"IFERROR('Data Input - Option 4'!AK89*INDEX('Energy Prices'!$F$26:$CR$31,MATCH($B133,'Energy Prices'!$C$26:$C$31,0),MATCH(Calc_Option4!AG$6,'Energy Prices'!$F$11:$CR$11,0))/100000,0)","v":0},{"$f":"IFERROR('Data Input - Option 4'!AL89*INDEX('Energy Prices'!$F$26:$CR$31,MATCH($B133,'Energy Prices'!$C$26:$C$31,0),MATCH(Calc_Option4!AH$6,'Energy Prices'!$F$11:$CR$11,0))/100000,0)","v":0},{"$f":"IFERROR('Data Input - Option 4'!AM89*INDEX('Energy Prices'!$F$26:$CR$31,MATCH($B133,'Energy Prices'!$C$26:$C$31,0),MATCH(Calc_Option4!AI$6,'Energy Prices'!$F$11:$CR$11,0))/100000,0)","v":0},{"$f":"IFERROR('Data Input - Option 4'!AN89*INDEX('Energy Prices'!$F$26:$CR$31,MATCH($B133,'Energy Prices'!$C$26:$C$31,0),MATCH(Calc_Option4!AJ$6,'Energy Prices'!$F$11:$CR$11,0))/100000,0)","v":0},{"$f":"IFERROR('Data Input - Option 4'!AO89*INDEX('Energy Prices'!$F$26:$CR$31,MATCH($B133,'Energy Prices'!$C$26:$C$31,0),MATCH(Calc_Option4!AK$6,'Energy Prices'!$F$11:$CR$11,0))/100000,0)","v":0},{"$f":"IFERROR('Data Input - Option 4'!AP89*INDEX('Energy Prices'!$F$26:$CR$31,MATCH($B133,'Energy Prices'!$C$26:$C$31,0),MATCH(Calc_Option4!AL$6,'Energy Prices'!$F$11:$CR$11,0))/100000,0)","v":0},{"$f":"IFERROR('Data Input - Option 4'!AQ89*INDEX('Energy Prices'!$F$26:$CR$31,MATCH($B133,'Energy Prices'!$C$26:$C$31,0),MATCH(Calc_Option4!AM$6,'Energy Prices'!$F$11:$CR$11,0))/100000,0)","v":0},{"$f":"IFERROR('Data Input - Option 4'!AR89*INDEX('Energy Prices'!$F$26:$CR$31,MATCH($B133,'Energy Prices'!$C$26:$C$31,0),MATCH(Calc_Option4!AN$6,'Energy Prices'!$F$11:$CR$11,0))/100000,0)","v":0},{"$f":"IFERROR('Data Input - Option 4'!AS89*INDEX('Energy Prices'!$F$26:$CR$31,MATCH($B133,'Energy Prices'!$C$26:$C$31,0),MATCH(Calc_Option4!AO$6,'Energy Prices'!$F$11:$CR$11,0))/100000,0)","v":0},{"$f":"IFERROR('Data Input - Option 4'!AT89*INDEX('Energy Prices'!$F$26:$CR$31,MATCH($B133,'Energy Prices'!$C$26:$C$31,0),MATCH(Calc_Option4!AP$6,'Energy Prices'!$F$11:$CR$11,0))/100000,0)","v":0},{"$f":"IFERROR('Data Input - Option 4'!AU89*INDEX('Energy Prices'!$F$26:$CR$31,MATCH($B133,'Energy Prices'!$C$26:$C$31,0),MATCH(Calc_Option4!AQ$6,'Energy Prices'!$F$11:$CR$11,0))/100000,0)","v":0},{"$f":"IFERROR('Data Input - Option 4'!AV89*INDEX('Energy Prices'!$F$26:$CR$31,MATCH($B133,'Energy Prices'!$C$26:$C$31,0),MATCH(Calc_Option4!AR$6,'Energy Prices'!$F$11:$CR$11,0))/100000,0)","v":0},{"$f":"IFERROR('Data Input - Option 4'!AW89*INDEX('Energy Prices'!$F$26:$CR$31,MATCH($B133,'Energy Prices'!$C$26:$C$31,0),MATCH(Calc_Option4!AS$6,'Energy Prices'!$F$11:$CR$11,0))/100000,0)","v":0},{"$f":"IFERROR('Data Input - Option 4'!AX89*INDEX('Energy Prices'!$F$26:$CR$31,MATCH($B133,'Energy Prices'!$C$26:$C$31,0),MATCH(Calc_Option4!AT$6,'Energy Prices'!$F$11:$CR$11,0))/100000,0)","v":0},{"$f":"IFERROR('Data Input - Option 4'!AY89*INDEX('Energy Prices'!$F$26:$CR$31,MATCH($B133,'Energy Prices'!$C$26:$C$31,0),MATCH(Calc_Option4!AU$6,'Energy Prices'!$F$11:$CR$11,0))/100000,0)","v":0},{"$f":"IFERROR('Data Input - Option 4'!AZ89*INDEX('Energy Prices'!$F$26:$CR$31,MATCH($B133,'Energy Prices'!$C$26:$C$31,0),MATCH(Calc_Option4!AV$6,'Energy Prices'!$F$11:$CR$11,0))/100000,0)","v":0},{"$f":"IFERROR('Data Input - Option 4'!BA89*INDEX('Energy Prices'!$F$26:$CR$31,MATCH($B133,'Energy Prices'!$C$26:$C$31,0),MATCH(Calc_Option4!AW$6,'Energy Prices'!$F$11:$CR$11,0))/100000,0)","v":0},{"$f":"IFERROR('Data Input - Option 4'!BB89*INDEX('Energy Prices'!$F$26:$CR$31,MATCH($B133,'Energy Prices'!$C$26:$C$31,0),MATCH(Calc_Option4!AX$6,'Energy Prices'!$F$11:$CR$11,0))/100000,0)","v":0},{"$f":"IFERROR('Data Input - Option 4'!BC89*INDEX('Energy Prices'!$F$26:$CR$31,MATCH($B133,'Energy Prices'!$C$26:$C$31,0),MATCH(Calc_Option4!AY$6,'Energy Prices'!$F$11:$CR$11,0))/100000,0)","v":0},{"$f":"IFERROR('Data Input - Option 4'!BD89*INDEX('Energy Prices'!$F$26:$CR$31,MATCH($B133,'Energy Prices'!$C$26:$C$31,0),MATCH(Calc_Option4!AZ$6,'Energy Prices'!$F$11:$CR$11,0))/100000,0)","v":0},{"$f":"IFERROR('Data Input - Option 4'!BE89*INDEX('Energy Prices'!$F$26:$CR$31,MATCH($B133,'Energy Prices'!$C$26:$C$31,0),MATCH(Calc_Option4!BA$6,'Energy Prices'!$F$11:$CR$11,0))/100000,0)","v":0},{"$f":"IFERROR('Data Input - Option 4'!BF89*INDEX('Energy Prices'!$F$26:$CR$31,MATCH($B133,'Energy Prices'!$C$26:$C$31,0),MATCH(Calc_Option4!BB$6,'Energy Prices'!$F$11:$CR$11,0))/100000,0)","v":0},{"$f":"IFERROR('Data Input - Option 4'!BG89*INDEX('Energy Prices'!$F$26:$CR$31,MATCH($B133,'Energy Prices'!$C$26:$C$31,0),MATCH(Calc_Option4!BC$6,'Energy Prices'!$F$11:$CR$11,0))/100000,0)","v":0},{"$f":"IFERROR('Data Input - Option 4'!BH89*INDEX('Energy Prices'!$F$26:$CR$31,MATCH($B133,'Energy Prices'!$C$26:$C$31,0),MATCH(Calc_Option4!BD$6,'Energy Prices'!$F$11:$CR$11,0))/100000,0)","v":0},{"$f":"IFERROR('Data Input - Option 4'!BI89*INDEX('Energy Prices'!$F$26:$CR$31,MATCH($B133,'Energy Prices'!$C$26:$C$31,0),MATCH(Calc_Option4!BE$6,'Energy Prices'!$F$11:$CR$11,0))/100000,0)","v":0},{"$f":"IFERROR('Data Input - Option 4'!BJ89*INDEX('Energy Prices'!$F$26:$CR$31,MATCH($B133,'Energy Prices'!$C$26:$C$31,0),MATCH(Calc_Option4!BF$6,'Energy Prices'!$F$11:$CR$11,0))/100000,0)","v":0},{"$f":"IFERROR('Data Input - Option 4'!BK89*INDEX('Energy Prices'!$F$26:$CR$31,MATCH($B133,'Energy Prices'!$C$26:$C$31,0),MATCH(Calc_Option4!BG$6,'Energy Prices'!$F$11:$CR$11,0))/100000,0)","v":0},{"$f":"IFERROR('Data Input - Option 4'!BL89*INDEX('Energy Prices'!$F$26:$CR$31,MATCH($B133,'Energy Prices'!$C$26:$C$31,0),MATCH(Calc_Option4!BH$6,'Energy Prices'!$F$11:$CR$11,0))/100000,0)","v":0},{"$f":"IFERROR('Data Input - Option 4'!BM89*INDEX('Energy Prices'!$F$26:$CR$31,MATCH($B133,'Energy Prices'!$C$26:$C$31,0),MATCH(Calc_Option4!BI$6,'Energy Prices'!$F$11:$CR$11,0))/100000,0)","v":0},{"$f":"IFERROR('Data Input - Option 4'!BN89*INDEX('Energy Prices'!$F$26:$CR$31,MATCH($B133,'Energy Prices'!$C$26:$C$31,0),MATCH(Calc_Option4!BJ$6,'Energy Prices'!$F$11:$CR$11,0))/100000,0)","v":0},{"$f":"IFERROR('Data Input - Option 4'!BO89*INDEX('Energy Prices'!$F$26:$CR$31,MATCH($B133,'Energy Prices'!$C$26:$C$31,0),MATCH(Calc_Option4!BK$6,'Energy Prices'!$F$11:$CR$11,0))/100000,0)","v":0},{"$f":"IFERROR('Data Input - Option 4'!BP89*INDEX('Energy Prices'!$F$26:$CR$31,MATCH($B133,'Energy Prices'!$C$26:$C$31,0),MATCH(Calc_Option4!BL$6,'Energy Prices'!$F$11:$CR$11,0))/100000,0)","v":0},{"$f":"IFERROR('Data Input - Option 4'!BQ89*INDEX('Energy Prices'!$F$26:$CR$31,MATCH($B133,'Energy Prices'!$C$26:$C$31,0),MATCH(Calc_Option4!BM$6,'Energy Prices'!$F$11:$CR$11,0))/100000,0)","v":0},{"$f":"IFERROR('Data Input - Option 4'!BR89*INDEX('Energy Prices'!$F$26:$CR$31,MATCH($B133,'Energy Prices'!$C$26:$C$31,0),MATCH(Calc_Option4!BN$6,'Energy Prices'!$F$11:$CR$11,0))/100000,0)","v":0},{"$f":"IFERROR('Data Input - Option 4'!BS89*INDEX('Energy Prices'!$F$26:$CR$31,MATCH($B133,'Energy Prices'!$C$26:$C$31,0),MATCH(Calc_Option4!BO$6,'Energy Prices'!$F$11:$CR$11,0))/100000,0)","v":0},{"$f":"IFERROR('Data Input - Option 4'!BT89*INDEX('Energy Prices'!$F$26:$CR$31,MATCH($B133,'Energy Prices'!$C$26:$C$31,0),MATCH(Calc_Option4!BP$6,'Energy Prices'!$F$11:$CR$11,0))/100000,0)","v":0},{"$f":"IFERROR('Data Input - Option 4'!BU89*INDEX('Energy Prices'!$F$26:$CR$31,MATCH($B133,'Energy Prices'!$C$26:$C$31,0),MATCH(Calc_Option4!BQ$6,'Energy Prices'!$F$11:$CR$11,0))/100000,0)","v":0},{"$f":"IFERROR('Data Input - Option 4'!BV89*INDEX('Energy Prices'!$F$26:$CR$31,MATCH($B133,'Energy Prices'!$C$26:$C$31,0),MATCH(Calc_Option4!BR$6,'Energy Prices'!$F$11:$CR$11,0))/100000,0)","v":0},{"$f":"IFERROR('Data Input - Option 4'!BW89*INDEX('Energy Prices'!$F$26:$CR$31,MATCH($B133,'Energy Prices'!$C$26:$C$31,0),MATCH(Calc_Option4!BS$6,'Energy Prices'!$F$11:$CR$11,0))/100000,0)","v":0},{"$f":"IFERROR('Data Input - Option 4'!BX89*INDEX('Energy Prices'!$F$26:$CR$31,MATCH($B133,'Energy Prices'!$C$26:$C$31,0),MATCH(Calc_Option4!BT$6,'Energy Prices'!$F$11:$CR$11,0))/100000,0)","v":0},{"$f":"IFERROR('Data Input - Option 4'!BY89*INDEX('Energy Prices'!$F$26:$CR$31,MATCH($B133,'Energy Prices'!$C$26:$C$31,0),MATCH(Calc_Option4!BU$6,'Energy Prices'!$F$11:$CR$11,0))/100000,0)","v":0},{"$f":"IFERROR('Data Input - Option 4'!BZ89*INDEX('Energy Prices'!$F$26:$CR$31,MATCH($B133,'Energy Prices'!$C$26:$C$31,0),MATCH(Calc_Option4!BV$6,'Energy Prices'!$F$11:$CR$11,0))/100000,0)","v":0},{"$f":"IFERROR('Data Input - Option 4'!CA89*INDEX('Energy Prices'!$F$26:$CR$31,MATCH($B133,'Energy Prices'!$C$26:$C$31,0),MATCH(Calc_Option4!BW$6,'Energy Prices'!$F$11:$CR$11,0))/100000,0)","v":0},{"$f":"IFERROR('Data Input - Option 4'!CB89*INDEX('Energy Prices'!$F$26:$CR$31,MATCH($B133,'Energy Prices'!$C$26:$C$31,0),MATCH(Calc_Option4!BX$6,'Energy Prices'!$F$11:$CR$11,0))/100000,0)","v":0},{"$f":"IFERROR('Data Input - Option 4'!CC89*INDEX('Energy Prices'!$F$26:$CR$31,MATCH($B133,'Energy Prices'!$C$26:$C$31,0),MATCH(Calc_Option4!BY$6,'Energy Prices'!$F$11:$CR$11,0))/100000,0)","v":0},{"$f":"IFERROR('Data Input - Option 4'!CD89*INDEX('Energy Prices'!$F$26:$CR$31,MATCH($B133,'Energy Prices'!$C$26:$C$31,0),MATCH(Calc_Option4!BZ$6,'Energy Prices'!$F$11:$CR$11,0))/100000,0)","v":0},{"$f":"IFERROR('Data Input - Option 4'!CE89*INDEX('Energy Prices'!$F$26:$CR$31,MATCH($B133,'Energy Prices'!$C$26:$C$31,0),MATCH(Calc_Option4!CA$6,'Energy Prices'!$F$11:$CR$11,0))/100000,0)","v":0},{"$f":"IFERROR('Data Input - Option 4'!CF89*INDEX('Energy Prices'!$F$26:$CR$31,MATCH($B133,'Energy Prices'!$C$26:$C$31,0),MATCH(Calc_Option4!CB$6,'Energy Prices'!$F$11:$CR$11,0))/100000,0)","v":0},{"$f":"IFERROR('Data Input - Option 4'!CG89*INDEX('Energy Prices'!$F$26:$CR$31,MATCH($B133,'Energy Prices'!$C$26:$C$31,0),MATCH(Calc_Option4!CC$6,'Energy Prices'!$F$11:$CR$11,0))/100000,0)","v":0},{"$f":"IFERROR('Data Input - Option 4'!CH89*INDEX('Energy Prices'!$F$26:$CR$31,MATCH($B133,'Energy Prices'!$C$26:$C$31,0),MATCH(Calc_Option4!CD$6,'Energy Prices'!$F$11:$CR$11,0))/100000,0)","v":0},{"$f":"IFERROR('Data Input - Option 4'!CI89*INDEX('Energy Prices'!$F$26:$CR$31,MATCH($B133,'Energy Prices'!$C$26:$C$31,0),MATCH(Calc_Option4!CE$6,'Energy Prices'!$F$11:$CR$11,0))/100000,0)","v":0},{"$f":"IFERROR('Data Input - Option 4'!CJ89*INDEX('Energy Prices'!$F$26:$CR$31,MATCH($B133,'Energy Prices'!$C$26:$C$31,0),MATCH(Calc_Option4!CF$6,'Energy Prices'!$F$11:$CR$11,0))/100000,0)","v":0},{"$f":"IFERROR('Data Input - Option 4'!CK89*INDEX('Energy Prices'!$F$26:$CR$31,MATCH($B133,'Energy Prices'!$C$26:$C$31,0),MATCH(Calc_Option4!CG$6,'Energy Prices'!$F$11:$CR$11,0))/100000,0)","v":0},{"$f":"IFERROR('Data Input - Option 4'!CL89*INDEX('Energy Prices'!$F$26:$CR$31,MATCH($B133,'Energy Prices'!$C$26:$C$31,0),MATCH(Calc_Option4!CH$6,'Energy Prices'!$F$11:$CR$11,0))/100000,0)","v":0},{"$f":"IFERROR('Data Input - Option 4'!CM89*INDEX('Energy Prices'!$F$26:$CR$31,MATCH($B133,'Energy Prices'!$C$26:$C$31,0),MATCH(Calc_Option4!CI$6,'Energy Prices'!$F$11:$CR$11,0))/100000,0)","v":0},{"$f":"IFERROR('Data Input - Option 4'!CN89*INDEX('Energy Prices'!$F$26:$CR$31,MATCH($B133,'Energy Prices'!$C$26:$C$31,0),MATCH(Calc_Option4!CJ$6,'Energy Prices'!$F$11:$CR$11,0))/100000,0)","v":0},{"$f":"IFERROR('Data Input - Option 4'!CO89*INDEX('Energy Prices'!$F$26:$CR$31,MATCH($B133,'Energy Prices'!$C$26:$C$31,0),MATCH(Calc_Option4!CK$6,'Energy Prices'!$F$11:$CR$11,0))/100000,0)","v":0},{"$f":"IFERROR('Data Input - Option 4'!CP89*INDEX('Energy Prices'!$F$26:$CR$31,MATCH($B133,'Energy Prices'!$C$26:$C$31,0),MATCH(Calc_Option4!CL$6,'Energy Prices'!$F$11:$CR$11,0))/100000,0)","v":0},{"$f":"IFERROR('Data Input - Option 4'!CQ89*INDEX('Energy Prices'!$F$26:$CR$31,MATCH($B133,'Energy Prices'!$C$26:$C$31,0),MATCH(Calc_Option4!CM$6,'Energy Prices'!$F$11:$CR$11,0))/100000,0)","v":0},{"$f":"IFERROR('Data Input - Option 4'!CR89*INDEX('Energy Prices'!$F$26:$CR$31,MATCH($B133,'Energy Prices'!$C$26:$C$31,0),MATCH(Calc_Option4!CN$6,'Energy Prices'!$F$11:$CR$11,0))/100000,0)","v":0},{"$f":"IFERROR('Data Input - Option 4'!CS89*INDEX('Energy Prices'!$F$26:$CR$31,MATCH($B133,'Energy Prices'!$C$26:$C$31,0),MATCH(Calc_Option4!CO$6,'Energy Prices'!$F$11:$CR$11,0))/100000,0)","v":0},{"$f":"IFERROR('Data Input - Option 4'!CT89*INDEX('Energy Prices'!$F$26:$CR$31,MATCH($B133,'Energy Prices'!$C$26:$C$31,0),MATCH(Calc_Option4!CP$6,'Energy Prices'!$F$11:$CR$11,0))/100000,0)","v":0},{"$f":"IFERROR('Data Input - Option 4'!CU89*INDEX('Energy Prices'!$F$26:$CR$31,MATCH($B133,'Energy Prices'!$C$26:$C$31,0),MATCH(Calc_Option4!CQ$6,'Energy Prices'!$F$11:$CR$11,0))/100000,0)","v":0},{"$f":"IFERROR('Data Input - Option 4'!CV89*INDEX('Energy Prices'!$F$26:$CR$31,MATCH($B133,'Energy Prices'!$C$26:$C$31,0),MATCH(Calc_Option4!CR$6,'Energy Prices'!$F$11:$CR$11,0))/100000,0)","v":0},{"$f":"IFERROR('Data Input - Option 4'!CW89*INDEX('Energy Prices'!$F$26:$CR$31,MATCH($B133,'Energy Prices'!$C$26:$C$31,0),MATCH(Calc_Option4!CS$6,'Energy Prices'!$F$11:$CR$11,0))/100000,0)","v":0},{"$f":"IFERROR('Data Input - Option 4'!CX89*INDEX('Energy Prices'!$F$26:$CR$31,MATCH($B133,'Energy Prices'!$C$26:$C$31,0),MATCH(Calc_Option4!CT$6,'Energy Prices'!$F$11:$CR$11,0))/100000,0)","v":0},{"$f":"IFERROR('Data Input - Option 4'!CY89*INDEX('Energy Prices'!$F$26:$CR$31,MATCH($B133,'Energy Prices'!$C$26:$C$31,0),MATCH(Calc_Option4!CU$6,'Energy Prices'!$F$11:$CR$11,0))/100000,0)","v":0},{"$f":"IFERROR('Data Input - Option 4'!CZ89*INDEX('Energy Prices'!$F$26:$CR$31,MATCH($B133,'Energy Prices'!$C$26:$C$31,0),MATCH(Calc_Option4!CV$6,'Energy Prices'!$F$11:$CR$11,0))/100000,0)","v":0},{"$f":"IFERROR('Data Input - Option 4'!DA89*INDEX('Energy Prices'!$F$26:$CR$31,MATCH($B133,'Energy Prices'!$C$26:$C$31,0),MATCH(Calc_Option4!CW$6,'Energy Prices'!$F$11:$CR$11,0))/100000,0)","v":0},{"$f":"IFERROR('Data Input - Option 4'!DB89*INDEX('Energy Prices'!$F$26:$CR$31,MATCH($B133,'Energy Prices'!$C$26:$C$31,0),MATCH(Calc_Option4!CX$6,'Energy Prices'!$F$11:$CR$11,0))/100000,0)","v":0},{"$f":"IFERROR('Data Input - Option 4'!DC89*INDEX('Energy Prices'!$F$26:$CR$31,MATCH($B133,'Energy Prices'!$C$26:$C$31,0),MATCH(Calc_Option4!CY$6,'Energy Prices'!$F$11:$CR$11,0))/100000,0)","v":0}]
[]
[null,"Discounted energy","£000's",{"$f":"SUM(D128:D133)*D$7","v":7.9793843802543113E-4},{"$f":"SUM(E128:E133)*E$7","v":0},0,0,0,0,0,0,0,0,0,0,0,0,0,0,0,0,0,0,0,0,0,0,0,0,0,0,0,0,0,0,0,0,0,0,0,0,0,0,0,0,0,0,0,0,0,0,0,0,0,0,0,0,0,0,0,0,0,0,{"$f":"SUM(BL128:BL133)*BL$7","v":0},0,0,0,0,0,0,0,0,0,0,0,0,0,0,0,0,0,0,0,0,0,0,0,0,0,0,0,0,0,0,0,0,0,0,0,0,0,0,0]
[]
[null,"Air pollutant emissions- value"]
[null,{"$f":"B53","v":0},"£000's",{"$f":"IFERROR(IF(OR($C$144=FALSE,LEFT($B138,3)<>\"NOX\"),D53*INDEX('Damage costs'!$U$16:$U$43,MATCH($B138,'Damage costs'!$C$16:$C$43,0))/1000,D53*INDEX('Damage costs'!$Y$16:$Y$43,MATCH($B138,'Damage costs'!$C$16:$C$43,0))/1000),\"\")","v":""},{"$f":"IFERROR(IF(OR($C$144=FALSE,LEFT($B138,3)<>\"NOX\"),E53*INDEX('Damage costs'!$U$16:$U$43,MATCH($B138,'Damage costs'!$C$16:$C$43,0))/1000,E53*INDEX('Damage costs'!$Y$16:$Y$43,MATCH($B138,'Damage costs'!$C$16:$C$43,0))/1000),\"\")","v":""},{"$f":"IFERROR(IF(OR($C$144=FALSE,LEFT($B138,3)<>\"NOX\"),F53*INDEX('Damage costs'!$U$16:$U$43,MATCH($B138,'Damage costs'!$C$16:$C$43,0))/1000,F53*INDEX('Damage costs'!$Y$16:$Y$43,MATCH($B138,'Damage costs'!$C$16:$C$43,0))/1000),\"\")","v":""},{"$f":"IFERROR(IF(OR($C$144=FALSE,LEFT($B138,3)<>\"NOX\"),G53*INDEX('Damage costs'!$U$16:$U$43,MATCH($B138,'Damage costs'!$C$16:$C$43,0))/1000,G53*INDEX('Damage costs'!$Y$16:$Y$43,MATCH($B138,'Damage costs'!$C$16:$C$43,0))/1000),\"\")","v":""},{"$f":"IFERROR(IF(OR($C$144=FALSE,LEFT($B138,3)<>\"NOX\"),H53*INDEX('Damage costs'!$U$16:$U$43,MATCH($B138,'Damage costs'!$C$16:$C$43,0))/1000,H53*INDEX('Damage costs'!$Y$16:$Y$43,MATCH($B138,'Damage costs'!$C$16:$C$43,0))/1000),\"\")","v":""},{"$f":"IFERROR(IF(OR($C$144=FALSE,LEFT($B138,3)<>\"NOX\"),I53*INDEX('Damage costs'!$U$16:$U$43,MATCH($B138,'Damage costs'!$C$16:$C$43,0))/1000,I53*INDEX('Damage costs'!$Y$16:$Y$43,MATCH($B138,'Damage costs'!$C$16:$C$43,0))/1000),\"\")","v":""},{"$f":"IFERROR(IF(OR($C$144=FALSE,LEFT($B138,3)<>\"NOX\"),J53*INDEX('Damage costs'!$U$16:$U$43,MATCH($B138,'Damage costs'!$C$16:$C$43,0))/1000,J53*INDEX('Damage costs'!$Y$16:$Y$43,MATCH($B138,'Damage costs'!$C$16:$C$43,0))/1000),\"\")","v":""},{"$f":"IFERROR(IF(OR($C$144=FALSE,LEFT($B138,3)<>\"NOX\"),K53*INDEX('Damage costs'!$U$16:$U$43,MATCH($B138,'Damage costs'!$C$16:$C$43,0))/1000,K53*INDEX('Damage costs'!$Y$16:$Y$43,MATCH($B138,'Damage costs'!$C$16:$C$43,0))/1000),\"\")","v":""},{"$f":"IFERROR(IF(OR($C$144=FALSE,LEFT($B138,3)<>\"NOX\"),L53*INDEX('Damage costs'!$U$16:$U$43,MATCH($B138,'Damage costs'!$C$16:$C$43,0))/1000,L53*INDEX('Damage costs'!$Y$16:$Y$43,MATCH($B138,'Damage costs'!$C$16:$C$43,0))/1000),\"\")","v":""},{"$f":"IFERROR(IF(OR($C$144=FALSE,LEFT($B138,3)<>\"NOX\"),M53*INDEX('Damage costs'!$U$16:$U$43,MATCH($B138,'Damage costs'!$C$16:$C$43,0))/1000,M53*INDEX('Damage costs'!$Y$16:$Y$43,MATCH($B138,'Damage costs'!$C$16:$C$43,0))/1000),\"\")","v":""},{"$f":"IFERROR(IF(OR($C$144=FALSE,LEFT($B138,3)<>\"NOX\"),N53*INDEX('Damage costs'!$U$16:$U$43,MATCH($B138,'Damage costs'!$C$16:$C$43,0))/1000,N53*INDEX('Damage costs'!$Y$16:$Y$43,MATCH($B138,'Damage costs'!$C$16:$C$43,0))/1000),\"\")","v":""},{"$f":"IFERROR(IF(OR($C$144=FALSE,LEFT($B138,3)<>\"NOX\"),O53*INDEX('Damage costs'!$U$16:$U$43,MATCH($B138,'Damage costs'!$C$16:$C$43,0))/1000,O53*INDEX('Damage costs'!$Y$16:$Y$43,MATCH($B138,'Damage costs'!$C$16:$C$43,0))/1000),\"\")","v":""},{"$f":"IFERROR(IF(OR($C$144=FALSE,LEFT($B138,3)<>\"NOX\"),P53*INDEX('Damage costs'!$U$16:$U$43,MATCH($B138,'Damage costs'!$C$16:$C$43,0))/1000,P53*INDEX('Damage costs'!$Y$16:$Y$43,MATCH($B138,'Damage costs'!$C$16:$C$43,0))/1000),\"\")","v":""},{"$f":"IFERROR(IF(OR($C$144=FALSE,LEFT($B138,3)<>\"NOX\"),Q53*INDEX('Damage costs'!$U$16:$U$43,MATCH($B138,'Damage costs'!$C$16:$C$43,0))/1000,Q53*INDEX('Damage costs'!$Y$16:$Y$43,MATCH($B138,'Damage costs'!$C$16:$C$43,0))/1000),\"\")","v":""},{"$f":"IFERROR(IF(OR($C$144=FALSE,LEFT($B138,3)<>\"NOX\"),R53*INDEX('Damage costs'!$U$16:$U$43,MATCH($B138,'Damage costs'!$C$16:$C$43,0))/1000,R53*INDEX('Damage costs'!$Y$16:$Y$43,MATCH($B138,'Damage costs'!$C$16:$C$43,0))/1000),\"\")","v":""},{"$f":"IFERROR(IF(OR($C$144=FALSE,LEFT($B138,3)<>\"NOX\"),S53*INDEX('Damage costs'!$U$16:$U$43,MATCH($B138,'Damage costs'!$C$16:$C$43,0))/1000,S53*INDEX('Damage costs'!$Y$16:$Y$43,MATCH($B138,'Damage costs'!$C$16:$C$43,0))/1000),\"\")","v":""},{"$f":"IFERROR(IF(OR($C$144=FALSE,LEFT($B138,3)<>\"NOX\"),T53*INDEX('Damage costs'!$U$16:$U$43,MATCH($B138,'Damage costs'!$C$16:$C$43,0))/1000,T53*INDEX('Damage costs'!$Y$16:$Y$43,MATCH($B138,'Damage costs'!$C$16:$C$43,0))/1000),\"\")","v":""},{"$f":"IFERROR(IF(OR($C$144=FALSE,LEFT($B138,3)<>\"NOX\"),U53*INDEX('Damage costs'!$U$16:$U$43,MATCH($B138,'Damage costs'!$C$16:$C$43,0))/1000,U53*INDEX('Damage costs'!$Y$16:$Y$43,MATCH($B138,'Damage costs'!$C$16:$C$43,0))/1000),\"\")","v":""},{"$f":"IFERROR(IF(OR($C$144=FALSE,LEFT($B138,3)<>\"NOX\"),V53*INDEX('Damage costs'!$U$16:$U$43,MATCH($B138,'Damage costs'!$C$16:$C$43,0))/1000,V53*INDEX('Damage costs'!$Y$16:$Y$43,MATCH($B138,'Damage costs'!$C$16:$C$43,0))/1000),\"\")","v":""},{"$f":"IFERROR(IF(OR($C$144=FALSE,LEFT($B138,3)<>\"NOX\"),W53*INDEX('Damage costs'!$U$16:$U$43,MATCH($B138,'Damage costs'!$C$16:$C$43,0))/1000,W53*INDEX('Damage costs'!$Y$16:$Y$43,MATCH($B138,'Damage costs'!$C$16:$C$43,0))/1000),\"\")","v":""},{"$f":"IFERROR(IF(OR($C$144=FALSE,LEFT($B138,3)<>\"NOX\"),X53*INDEX('Damage costs'!$U$16:$U$43,MATCH($B138,'Damage costs'!$C$16:$C$43,0))/1000,X53*INDEX('Damage costs'!$Y$16:$Y$43,MATCH($B138,'Damage costs'!$C$16:$C$43,0))/1000),\"\")","v":""},{"$f":"IFERROR(IF(OR($C$144=FALSE,LEFT($B138,3)<>\"NOX\"),Y53*INDEX('Damage costs'!$U$16:$U$43,MATCH($B138,'Damage costs'!$C$16:$C$43,0))/1000,Y53*INDEX('Damage costs'!$Y$16:$Y$43,MATCH($B138,'Damage costs'!$C$16:$C$43,0))/1000),\"\")","v":""},{"$f":"IFERROR(IF(OR($C$144=FALSE,LEFT($B138,3)<>\"NOX\"),Z53*INDEX('Damage costs'!$U$16:$U$43,MATCH($B138,'Damage costs'!$C$16:$C$43,0))/1000,Z53*INDEX('Damage costs'!$Y$16:$Y$43,MATCH($B138,'Damage costs'!$C$16:$C$43,0))/1000),\"\")","v":""},{"$f":"IFERROR(IF(OR($C$144=FALSE,LEFT($B138,3)<>\"NOX\"),AA53*INDEX('Damage costs'!$U$16:$U$43,MATCH($B138,'Damage costs'!$C$16:$C$43,0))/1000,AA53*INDEX('Damage costs'!$Y$16:$Y$43,MATCH($B138,'Damage costs'!$C$16:$C$43,0))/1000),\"\")","v":""},{"$f":"IFERROR(IF(OR($C$144=FALSE,LEFT($B138,3)<>\"NOX\"),AB53*INDEX('Damage costs'!$U$16:$U$43,MATCH($B138,'Damage costs'!$C$16:$C$43,0))/1000,AB53*INDEX('Damage costs'!$Y$16:$Y$43,MATCH($B138,'Damage costs'!$C$16:$C$43,0))/1000),\"\")","v":""},{"$f":"IFERROR(IF(OR($C$144=FALSE,LEFT($B138,3)<>\"NOX\"),AC53*INDEX('Damage costs'!$U$16:$U$43,MATCH($B138,'Damage costs'!$C$16:$C$43,0))/1000,AC53*INDEX('Damage costs'!$Y$16:$Y$43,MATCH($B138,'Damage costs'!$C$16:$C$43,0))/1000),\"\")","v":""},{"$f":"IFERROR(IF(OR($C$144=FALSE,LEFT($B138,3)<>\"NOX\"),AD53*INDEX('Damage costs'!$U$16:$U$43,MATCH($B138,'Damage costs'!$C$16:$C$43,0))/1000,AD53*INDEX('Damage costs'!$Y$16:$Y$43,MATCH($B138,'Damage costs'!$C$16:$C$43,0))/1000),\"\")","v":""},{"$f":"IFERROR(IF(OR($C$144=FALSE,LEFT($B138,3)<>\"NOX\"),AE53*INDEX('Damage costs'!$U$16:$U$43,MATCH($B138,'Damage costs'!$C$16:$C$43,0))/1000,AE53*INDEX('Damage costs'!$Y$16:$Y$43,MATCH($B138,'Damage costs'!$C$16:$C$43,0))/1000),\"\")","v":""},{"$f":"IFERROR(IF(OR($C$144=FALSE,LEFT($B138,3)<>\"NOX\"),AF53*INDEX('Damage costs'!$U$16:$U$43,MATCH($B138,'Damage costs'!$C$16:$C$43,0))/1000,AF53*INDEX('Damage costs'!$Y$16:$Y$43,MATCH($B138,'Damage costs'!$C$16:$C$43,0))/1000),\"\")","v":""},{"$f":"IFERROR(IF(OR($C$144=FALSE,LEFT($B138,3)<>\"NOX\"),AG53*INDEX('Damage costs'!$U$16:$U$43,MATCH($B138,'Damage costs'!$C$16:$C$43,0))/1000,AG53*INDEX('Damage costs'!$Y$16:$Y$43,MATCH($B138,'Damage costs'!$C$16:$C$43,0))/1000),\"\")","v":""},{"$f":"IFERROR(IF(OR($C$144=FALSE,LEFT($B138,3)<>\"NOX\"),AH53*INDEX('Damage costs'!$U$16:$U$43,MATCH($B138,'Damage costs'!$C$16:$C$43,0))/1000,AH53*INDEX('Damage costs'!$Y$16:$Y$43,MATCH($B138,'Damage costs'!$C$16:$C$43,0))/1000),\"\")","v":""},{"$f":"IFERROR(IF(OR($C$144=FALSE,LEFT($B138,3)<>\"NOX\"),AI53*INDEX('Damage costs'!$U$16:$U$43,MATCH($B138,'Damage costs'!$C$16:$C$43,0))/1000,AI53*INDEX('Damage costs'!$Y$16:$Y$43,MATCH($B138,'Damage costs'!$C$16:$C$43,0))/1000),\"\")","v":""},{"$f":"IFERROR(IF(OR($C$144=FALSE,LEFT($B138,3)<>\"NOX\"),AJ53*INDEX('Damage costs'!$U$16:$U$43,MATCH($B138,'Damage costs'!$C$16:$C$43,0))/1000,AJ53*INDEX('Damage costs'!$Y$16:$Y$43,MATCH($B138,'Damage costs'!$C$16:$C$43,0))/1000),\"\")","v":""},{"$f":"IFERROR(IF(OR($C$144=FALSE,LEFT($B138,3)<>\"NOX\"),AK53*INDEX('Damage costs'!$U$16:$U$43,MATCH($B138,'Damage costs'!$C$16:$C$43,0))/1000,AK53*INDEX('Damage costs'!$Y$16:$Y$43,MATCH($B138,'Damage costs'!$C$16:$C$43,0))/1000),\"\")","v":""},{"$f":"IFERROR(IF(OR($C$144=FALSE,LEFT($B138,3)<>\"NOX\"),AL53*INDEX('Damage costs'!$U$16:$U$43,MATCH($B138,'Damage costs'!$C$16:$C$43,0))/1000,AL53*INDEX('Damage costs'!$Y$16:$Y$43,MATCH($B138,'Damage costs'!$C$16:$C$43,0))/1000),\"\")","v":""},{"$f":"IFERROR(IF(OR($C$144=FALSE,LEFT($B138,3)<>\"NOX\"),AM53*INDEX('Damage costs'!$U$16:$U$43,MATCH($B138,'Damage costs'!$C$16:$C$43,0))/1000,AM53*INDEX('Damage costs'!$Y$16:$Y$43,MATCH($B138,'Damage costs'!$C$16:$C$43,0))/1000),\"\")","v":""},{"$f":"IFERROR(IF(OR($C$144=FALSE,LEFT($B138,3)<>\"NOX\"),AN53*INDEX('Damage costs'!$U$16:$U$43,MATCH($B138,'Damage costs'!$C$16:$C$43,0))/1000,AN53*INDEX('Damage costs'!$Y$16:$Y$43,MATCH($B138,'Damage costs'!$C$16:$C$43,0))/1000),\"\")","v":""},{"$f":"IFERROR(IF(OR($C$144=FALSE,LEFT($B138,3)<>\"NOX\"),AO53*INDEX('Damage costs'!$U$16:$U$43,MATCH($B138,'Damage costs'!$C$16:$C$43,0))/1000,AO53*INDEX('Damage costs'!$Y$16:$Y$43,MATCH($B138,'Damage costs'!$C$16:$C$43,0))/1000),\"\")","v":""},{"$f":"IFERROR(IF(OR($C$144=FALSE,LEFT($B138,3)<>\"NOX\"),AP53*INDEX('Damage costs'!$U$16:$U$43,MATCH($B138,'Damage costs'!$C$16:$C$43,0))/1000,AP53*INDEX('Damage costs'!$Y$16:$Y$43,MATCH($B138,'Damage costs'!$C$16:$C$43,0))/1000),\"\")","v":""},{"$f":"IFERROR(IF(OR($C$144=FALSE,LEFT($B138,3)<>\"NOX\"),AQ53*INDEX('Damage costs'!$U$16:$U$43,MATCH($B138,'Damage costs'!$C$16:$C$43,0))/1000,AQ53*INDEX('Damage costs'!$Y$16:$Y$43,MATCH($B138,'Damage costs'!$C$16:$C$43,0))/1000),\"\")","v":""},{"$f":"IFERROR(IF(OR($C$144=FALSE,LEFT($B138,3)<>\"NOX\"),AR53*INDEX('Damage costs'!$U$16:$U$43,MATCH($B138,'Damage costs'!$C$16:$C$43,0))/1000,AR53*INDEX('Damage costs'!$Y$16:$Y$43,MATCH($B138,'Damage costs'!$C$16:$C$43,0))/1000),\"\")","v":""},{"$f":"IFERROR(IF(OR($C$144=FALSE,LEFT($B138,3)<>\"NOX\"),AS53*INDEX('Damage costs'!$U$16:$U$43,MATCH($B138,'Damage costs'!$C$16:$C$43,0))/1000,AS53*INDEX('Damage costs'!$Y$16:$Y$43,MATCH($B138,'Damage costs'!$C$16:$C$43,0))/1000),\"\")","v":""},{"$f":"IFERROR(IF(OR($C$144=FALSE,LEFT($B138,3)<>\"NOX\"),AT53*INDEX('Damage costs'!$U$16:$U$43,MATCH($B138,'Damage costs'!$C$16:$C$43,0))/1000,AT53*INDEX('Damage costs'!$Y$16:$Y$43,MATCH($B138,'Damage costs'!$C$16:$C$43,0))/1000),\"\")","v":""},{"$f":"IFERROR(IF(OR($C$144=FALSE,LEFT($B138,3)<>\"NOX\"),AU53*INDEX('Damage costs'!$U$16:$U$43,MATCH($B138,'Damage costs'!$C$16:$C$43,0))/1000,AU53*INDEX('Damage costs'!$Y$16:$Y$43,MATCH($B138,'Damage costs'!$C$16:$C$43,0))/1000),\"\")","v":""},{"$f":"IFERROR(IF(OR($C$144=FALSE,LEFT($B138,3)<>\"NOX\"),AV53*INDEX('Damage costs'!$U$16:$U$43,MATCH($B138,'Damage costs'!$C$16:$C$43,0))/1000,AV53*INDEX('Damage costs'!$Y$16:$Y$43,MATCH($B138,'Damage costs'!$C$16:$C$43,0))/1000),\"\")","v":""},{"$f":"IFERROR(IF(OR($C$144=FALSE,LEFT($B138,3)<>\"NOX\"),AW53*INDEX('Damage costs'!$U$16:$U$43,MATCH($B138,'Damage costs'!$C$16:$C$43,0))/1000,AW53*INDEX('Damage costs'!$Y$16:$Y$43,MATCH($B138,'Damage costs'!$C$16:$C$43,0))/1000),\"\")","v":""},{"$f":"IFERROR(IF(OR($C$144=FALSE,LEFT($B138,3)<>\"NOX\"),AX53*INDEX('Damage costs'!$U$16:$U$43,MATCH($B138,'Damage costs'!$C$16:$C$43,0))/1000,AX53*INDEX('Damage costs'!$Y$16:$Y$43,MATCH($B138,'Damage costs'!$C$16:$C$43,0))/1000),\"\")","v":""},{"$f":"IFERROR(IF(OR($C$144=FALSE,LEFT($B138,3)<>\"NOX\"),AY53*INDEX('Damage costs'!$U$16:$U$43,MATCH($B138,'Damage costs'!$C$16:$C$43,0))/1000,AY53*INDEX('Damage costs'!$Y$16:$Y$43,MATCH($B138,'Damage costs'!$C$16:$C$43,0))/1000),\"\")","v":""},{"$f":"IFERROR(IF(OR($C$144=FALSE,LEFT($B138,3)<>\"NOX\"),AZ53*INDEX('Damage costs'!$U$16:$U$43,MATCH($B138,'Damage costs'!$C$16:$C$43,0))/1000,AZ53*INDEX('Damage costs'!$Y$16:$Y$43,MATCH($B138,'Damage costs'!$C$16:$C$43,0))/1000),\"\")","v":""},{"$f":"IFERROR(IF(OR($C$144=FALSE,LEFT($B138,3)<>\"NOX\"),BA53*INDEX('Damage costs'!$U$16:$U$43,MATCH($B138,'Damage costs'!$C$16:$C$43,0))/1000,BA53*INDEX('Damage costs'!$Y$16:$Y$43,MATCH($B138,'Damage costs'!$C$16:$C$43,0))/1000),\"\")","v":""},{"$f":"IFERROR(IF(OR($C$144=FALSE,LEFT($B138,3)<>\"NOX\"),BB53*INDEX('Damage costs'!$U$16:$U$43,MATCH($B138,'Damage costs'!$C$16:$C$43,0))/1000,BB53*INDEX('Damage costs'!$Y$16:$Y$43,MATCH($B138,'Damage costs'!$C$16:$C$43,0))/1000),\"\")","v":""},{"$f":"IFERROR(IF(OR($C$144=FALSE,LEFT($B138,3)<>\"NOX\"),BC53*INDEX('Damage costs'!$U$16:$U$43,MATCH($B138,'Damage costs'!$C$16:$C$43,0))/1000,BC53*INDEX('Damage costs'!$Y$16:$Y$43,MATCH($B138,'Damage costs'!$C$16:$C$43,0))/1000),\"\")","v":""},{"$f":"IFERROR(IF(OR($C$144=FALSE,LEFT($B138,3)<>\"NOX\"),BD53*INDEX('Damage costs'!$U$16:$U$43,MATCH($B138,'Damage costs'!$C$16:$C$43,0))/1000,BD53*INDEX('Damage costs'!$Y$16:$Y$43,MATCH($B138,'Damage costs'!$C$16:$C$43,0))/1000),\"\")","v":""},{"$f":"IFERROR(IF(OR($C$144=FALSE,LEFT($B138,3)<>\"NOX\"),BE53*INDEX('Damage costs'!$U$16:$U$43,MATCH($B138,'Damage costs'!$C$16:$C$43,0))/1000,BE53*INDEX('Damage costs'!$Y$16:$Y$43,MATCH($B138,'Damage costs'!$C$16:$C$43,0))/1000),\"\")","v":""},{"$f":"IFERROR(IF(OR($C$144=FALSE,LEFT($B138,3)<>\"NOX\"),BF53*INDEX('Damage costs'!$U$16:$U$43,MATCH($B138,'Damage costs'!$C$16:$C$43,0))/1000,BF53*INDEX('Damage costs'!$Y$16:$Y$43,MATCH($B138,'Damage costs'!$C$16:$C$43,0))/1000),\"\")","v":""},{"$f":"IFERROR(IF(OR($C$144=FALSE,LEFT($B138,3)<>\"NOX\"),BG53*INDEX('Damage costs'!$U$16:$U$43,MATCH($B138,'Damage costs'!$C$16:$C$43,0))/1000,BG53*INDEX('Damage costs'!$Y$16:$Y$43,MATCH($B138,'Damage costs'!$C$16:$C$43,0))/1000),\"\")","v":""},{"$f":"IFERROR(IF(OR($C$144=FALSE,LEFT($B138,3)<>\"NOX\"),BH53*INDEX('Damage costs'!$U$16:$U$43,MATCH($B138,'Damage costs'!$C$16:$C$43,0))/1000,BH53*INDEX('Damage costs'!$Y$16:$Y$43,MATCH($B138,'Damage costs'!$C$16:$C$43,0))/1000),\"\")","v":""},{"$f":"IFERROR(IF(OR($C$144=FALSE,LEFT($B138,3)<>\"NOX\"),BI53*INDEX('Damage costs'!$U$16:$U$43,MATCH($B138,'Damage costs'!$C$16:$C$43,0))/1000,BI53*INDEX('Damage costs'!$Y$16:$Y$43,MATCH($B138,'Damage costs'!$C$16:$C$43,0))/1000),\"\")","v":""},{"$f":"IFERROR(IF(OR($C$144=FALSE,LEFT($B138,3)<>\"NOX\"),BJ53*INDEX('Damage costs'!$U$16:$U$43,MATCH($B138,'Damage costs'!$C$16:$C$43,0))/1000,BJ53*INDEX('Damage costs'!$Y$16:$Y$43,MATCH($B138,'Damage costs'!$C$16:$C$43,0))/1000),\"\")","v":""},{"$f":"IFERROR(IF(OR($C$144=FALSE,LEFT($B138,3)<>\"NOX\"),BK53*INDEX('Damage costs'!$U$16:$U$43,MATCH($B138,'Damage costs'!$C$16:$C$43,0))/1000,BK53*INDEX('Damage costs'!$Y$16:$Y$43,MATCH($B138,'Damage costs'!$C$16:$C$43,0))/1000),\"\")","v":""},{"$f":"IFERROR(IF(OR($C$144=FALSE,LEFT($B138,3)<>\"NOX\"),BL53*INDEX('Damage costs'!$U$16:$U$43,MATCH($B138,'Damage costs'!$C$16:$C$43,0))/1000,BL53*INDEX('Damage costs'!$Y$16:$Y$43,MATCH($B138,'Damage costs'!$C$16:$C$43,0))/1000),\"\")","v":""},{"$f":"IFERROR(IF(OR($C$144=FALSE,LEFT($B138,3)<>\"NOX\"),BM53*INDEX('Damage costs'!$U$16:$U$43,MATCH($B138,'Damage costs'!$C$16:$C$43,0))/1000,BM53*INDEX('Damage costs'!$Y$16:$Y$43,MATCH($B138,'Damage costs'!$C$16:$C$43,0))/1000),\"\")","v":""},{"$f":"IFERROR(IF(OR($C$144=FALSE,LEFT($B138,3)<>\"NOX\"),BN53*INDEX('Damage costs'!$U$16:$U$43,MATCH($B138,'Damage costs'!$C$16:$C$43,0))/1000,BN53*INDEX('Damage costs'!$Y$16:$Y$43,MATCH($B138,'Damage costs'!$C$16:$C$43,0))/1000),\"\")","v":""},{"$f":"IFERROR(IF(OR($C$144=FALSE,LEFT($B138,3)<>\"NOX\"),BO53*INDEX('Damage costs'!$U$16:$U$43,MATCH($B138,'Damage costs'!$C$16:$C$43,0))/1000,BO53*INDEX('Damage costs'!$Y$16:$Y$43,MATCH($B138,'Damage costs'!$C$16:$C$43,0))/1000),\"\")","v":""},{"$f":"IFERROR(IF(OR($C$144=FALSE,LEFT($B138,3)<>\"NOX\"),BP53*INDEX('Damage costs'!$U$16:$U$43,MATCH($B138,'Damage costs'!$C$16:$C$43,0))/1000,BP53*INDEX('Damage costs'!$Y$16:$Y$43,MATCH($B138,'Damage costs'!$C$16:$C$43,0))/1000),\"\")","v":""},{"$f":"IFERROR(IF(OR($C$144=FALSE,LEFT($B138,3)<>\"NOX\"),BQ53*INDEX('Damage costs'!$U$16:$U$43,MATCH($B138,'Damage costs'!$C$16:$C$43,0))/1000,BQ53*INDEX('Damage costs'!$Y$16:$Y$43,MATCH($B138,'Damage costs'!$C$16:$C$43,0))/1000),\"\")","v":""},{"$f":"IFERROR(IF(OR($C$144=FALSE,LEFT($B138,3)<>\"NOX\"),BR53*INDEX('Damage costs'!$U$16:$U$43,MATCH($B138,'Damage costs'!$C$16:$C$43,0))/1000,BR53*INDEX('Damage costs'!$Y$16:$Y$43,MATCH($B138,'Damage costs'!$C$16:$C$43,0))/1000),\"\")","v":""},{"$f":"IFERROR(IF(OR($C$144=FALSE,LEFT($B138,3)<>\"NOX\"),BS53*INDEX('Damage costs'!$U$16:$U$43,MATCH($B138,'Damage costs'!$C$16:$C$43,0))/1000,BS53*INDEX('Damage costs'!$Y$16:$Y$43,MATCH($B138,'Damage costs'!$C$16:$C$43,0))/1000),\"\")","v":""},{"$f":"IFERROR(IF(OR($C$144=FALSE,LEFT($B138,3)<>\"NOX\"),BT53*INDEX('Damage costs'!$U$16:$U$43,MATCH($B138,'Damage costs'!$C$16:$C$43,0))/1000,BT53*INDEX('Damage costs'!$Y$16:$Y$43,MATCH($B138,'Damage costs'!$C$16:$C$43,0))/1000),\"\")","v":""},{"$f":"IFERROR(IF(OR($C$144=FALSE,LEFT($B138,3)<>\"NOX\"),BU53*INDEX('Damage costs'!$U$16:$U$43,MATCH($B138,'Damage costs'!$C$16:$C$43,0))/1000,BU53*INDEX('Damage costs'!$Y$16:$Y$43,MATCH($B138,'Damage costs'!$C$16:$C$43,0))/1000),\"\")","v":""},{"$f":"IFERROR(IF(OR($C$144=FALSE,LEFT($B138,3)<>\"NOX\"),BV53*INDEX('Damage costs'!$U$16:$U$43,MATCH($B138,'Damage costs'!$C$16:$C$43,0))/1000,BV53*INDEX('Damage costs'!$Y$16:$Y$43,MATCH($B138,'Damage costs'!$C$16:$C$43,0))/1000),\"\")","v":""},{"$f":"IFERROR(IF(OR($C$144=FALSE,LEFT($B138,3)<>\"NOX\"),BW53*INDEX('Damage costs'!$U$16:$U$43,MATCH($B138,'Damage costs'!$C$16:$C$43,0))/1000,BW53*INDEX('Damage costs'!$Y$16:$Y$43,MATCH($B138,'Damage costs'!$C$16:$C$43,0))/1000),\"\")","v":""},{"$f":"IFERROR(IF(OR($C$144=FALSE,LEFT($B138,3)<>\"NOX\"),BX53*INDEX('Damage costs'!$U$16:$U$43,MATCH($B138,'Damage costs'!$C$16:$C$43,0))/1000,BX53*INDEX('Damage costs'!$Y$16:$Y$43,MATCH($B138,'Damage costs'!$C$16:$C$43,0))/1000),\"\")","v":""},{"$f":"IFERROR(IF(OR($C$144=FALSE,LEFT($B138,3)<>\"NOX\"),BY53*INDEX('Damage costs'!$U$16:$U$43,MATCH($B138,'Damage costs'!$C$16:$C$43,0))/1000,BY53*INDEX('Damage costs'!$Y$16:$Y$43,MATCH($B138,'Damage costs'!$C$16:$C$43,0))/1000),\"\")","v":""},{"$f":"IFERROR(IF(OR($C$144=FALSE,LEFT($B138,3)<>\"NOX\"),BZ53*INDEX('Damage costs'!$U$16:$U$43,MATCH($B138,'Damage costs'!$C$16:$C$43,0))/1000,BZ53*INDEX('Damage costs'!$Y$16:$Y$43,MATCH($B138,'Damage costs'!$C$16:$C$43,0))/1000),\"\")","v":""},{"$f":"IFERROR(IF(OR($C$144=FALSE,LEFT($B138,3)<>\"NOX\"),CA53*INDEX('Damage costs'!$U$16:$U$43,MATCH($B138,'Damage costs'!$C$16:$C$43,0))/1000,CA53*INDEX('Damage costs'!$Y$16:$Y$43,MATCH($B138,'Damage costs'!$C$16:$C$43,0))/1000),\"\")","v":""},{"$f":"IFERROR(IF(OR($C$144=FALSE,LEFT($B138,3)<>\"NOX\"),CB53*INDEX('Damage costs'!$U$16:$U$43,MATCH($B138,'Damage costs'!$C$16:$C$43,0))/1000,CB53*INDEX('Damage costs'!$Y$16:$Y$43,MATCH($B138,'Damage costs'!$C$16:$C$43,0))/1000),\"\")","v":""},{"$f":"IFERROR(IF(OR($C$144=FALSE,LEFT($B138,3)<>\"NOX\"),CC53*INDEX('Damage costs'!$U$16:$U$43,MATCH($B138,'Damage costs'!$C$16:$C$43,0))/1000,CC53*INDEX('Damage costs'!$Y$16:$Y$43,MATCH($B138,'Damage costs'!$C$16:$C$43,0))/1000),\"\")","v":""},{"$f":"IFERROR(IF(OR($C$144=FALSE,LEFT($B138,3)<>\"NOX\"),CD53*INDEX('Damage costs'!$U$16:$U$43,MATCH($B138,'Damage costs'!$C$16:$C$43,0))/1000,CD53*INDEX('Damage costs'!$Y$16:$Y$43,MATCH($B138,'Damage costs'!$C$16:$C$43,0))/1000),\"\")","v":""},{"$f":"IFERROR(IF(OR($C$144=FALSE,LEFT($B138,3)<>\"NOX\"),CE53*INDEX('Damage costs'!$U$16:$U$43,MATCH($B138,'Damage costs'!$C$16:$C$43,0))/1000,CE53*INDEX('Damage costs'!$Y$16:$Y$43,MATCH($B138,'Damage costs'!$C$16:$C$43,0))/1000),\"\")","v":""},{"$f":"IFERROR(IF(OR($C$144=FALSE,LEFT($B138,3)<>\"NOX\"),CF53*INDEX('Damage costs'!$U$16:$U$43,MATCH($B138,'Damage costs'!$C$16:$C$43,0))/1000,CF53*INDEX('Damage costs'!$Y$16:$Y$43,MATCH($B138,'Damage costs'!$C$16:$C$43,0))/1000),\"\")","v":""},{"$f":"IFERROR(IF(OR($C$144=FALSE,LEFT($B138,3)<>\"NOX\"),CG53*INDEX('Damage costs'!$U$16:$U$43,MATCH($B138,'Damage costs'!$C$16:$C$43,0))/1000,CG53*INDEX('Damage costs'!$Y$16:$Y$43,MATCH($B138,'Damage costs'!$C$16:$C$43,0))/1000),\"\")","v":""},{"$f":"IFERROR(IF(OR($C$144=FALSE,LEFT($B138,3)<>\"NOX\"),CH53*INDEX('Damage costs'!$U$16:$U$43,MATCH($B138,'Damage costs'!$C$16:$C$43,0))/1000,CH53*INDEX('Damage costs'!$Y$16:$Y$43,MATCH($B138,'Damage costs'!$C$16:$C$43,0))/1000),\"\")","v":""},{"$f":"IFERROR(IF(OR($C$144=FALSE,LEFT($B138,3)<>\"NOX\"),CI53*INDEX('Damage costs'!$U$16:$U$43,MATCH($B138,'Damage costs'!$C$16:$C$43,0))/1000,CI53*INDEX('Damage costs'!$Y$16:$Y$43,MATCH($B138,'Damage costs'!$C$16:$C$43,0))/1000),\"\")","v":""},{"$f":"IFERROR(IF(OR($C$144=FALSE,LEFT($B138,3)<>\"NOX\"),CJ53*INDEX('Damage costs'!$U$16:$U$43,MATCH($B138,'Damage costs'!$C$16:$C$43,0))/1000,CJ53*INDEX('Damage costs'!$Y$16:$Y$43,MATCH($B138,'Damage costs'!$C$16:$C$43,0))/1000),\"\")","v":""},{"$f":"IFERROR(IF(OR($C$144=FALSE,LEFT($B138,3)<>\"NOX\"),CK53*INDEX('Damage costs'!$U$16:$U$43,MATCH($B138,'Damage costs'!$C$16:$C$43,0))/1000,CK53*INDEX('Damage costs'!$Y$16:$Y$43,MATCH($B138,'Damage costs'!$C$16:$C$43,0))/1000),\"\")","v":""},{"$f":"IFERROR(IF(OR($C$144=FALSE,LEFT($B138,3)<>\"NOX\"),CL53*INDEX('Damage costs'!$U$16:$U$43,MATCH($B138,'Damage costs'!$C$16:$C$43,0))/1000,CL53*INDEX('Damage costs'!$Y$16:$Y$43,MATCH($B138,'Damage costs'!$C$16:$C$43,0))/1000),\"\")","v":""},{"$f":"IFERROR(IF(OR($C$144=FALSE,LEFT($B138,3)<>\"NOX\"),CM53*INDEX('Damage costs'!$U$16:$U$43,MATCH($B138,'Damage costs'!$C$16:$C$43,0))/1000,CM53*INDEX('Damage costs'!$Y$16:$Y$43,MATCH($B138,'Damage costs'!$C$16:$C$43,0))/1000),\"\")","v":""},{"$f":"IFERROR(IF(OR($C$144=FALSE,LEFT($B138,3)<>\"NOX\"),CN53*INDEX('Damage costs'!$U$16:$U$43,MATCH($B138,'Damage costs'!$C$16:$C$43,0))/1000,CN53*INDEX('Damage costs'!$Y$16:$Y$43,MATCH($B138,'Damage costs'!$C$16:$C$43,0))/1000),\"\")","v":""},{"$f":"IFERROR(IF(OR($C$144=FALSE,LEFT($B138,3)<>\"NOX\"),CO53*INDEX('Damage costs'!$U$16:$U$43,MATCH($B138,'Damage costs'!$C$16:$C$43,0))/1000,CO53*INDEX('Damage costs'!$Y$16:$Y$43,MATCH($B138,'Damage costs'!$C$16:$C$43,0))/1000),\"\")","v":""},{"$f":"IFERROR(IF(OR($C$144=FALSE,LEFT($B138,3)<>\"NOX\"),CP53*INDEX('Damage costs'!$U$16:$U$43,MATCH($B138,'Damage costs'!$C$16:$C$43,0))/1000,CP53*INDEX('Damage costs'!$Y$16:$Y$43,MATCH($B138,'Damage costs'!$C$16:$C$43,0))/1000),\"\")","v":""},{"$f":"IFERROR(IF(OR($C$144=FALSE,LEFT($B138,3)<>\"NOX\"),CQ53*INDEX('Damage costs'!$U$16:$U$43,MATCH($B138,'Damage costs'!$C$16:$C$43,0))/1000,CQ53*INDEX('Damage costs'!$Y$16:$Y$43,MATCH($B138,'Damage costs'!$C$16:$C$43,0))/1000),\"\")","v":""},{"$f":"IFERROR(IF(OR($C$144=FALSE,LEFT($B138,3)<>\"NOX\"),CR53*INDEX('Damage costs'!$U$16:$U$43,MATCH($B138,'Damage costs'!$C$16:$C$43,0))/1000,CR53*INDEX('Damage costs'!$Y$16:$Y$43,MATCH($B138,'Damage costs'!$C$16:$C$43,0))/1000),\"\")","v":""},{"$f":"IFERROR(IF(OR($C$144=FALSE,LEFT($B138,3)<>\"NOX\"),CS53*INDEX('Damage costs'!$U$16:$U$43,MATCH($B138,'Damage costs'!$C$16:$C$43,0))/1000,CS53*INDEX('Damage costs'!$Y$16:$Y$43,MATCH($B138,'Damage costs'!$C$16:$C$43,0))/1000),\"\")","v":""},{"$f":"IFERROR(IF(OR($C$144=FALSE,LEFT($B138,3)<>\"NOX\"),CT53*INDEX('Damage costs'!$U$16:$U$43,MATCH($B138,'Damage costs'!$C$16:$C$43,0))/1000,CT53*INDEX('Damage costs'!$Y$16:$Y$43,MATCH($B138,'Damage costs'!$C$16:$C$43,0))/1000),\"\")","v":""},{"$f":"IFERROR(IF(OR($C$144=FALSE,LEFT($B138,3)<>\"NOX\"),CU53*INDEX('Damage costs'!$U$16:$U$43,MATCH($B138,'Damage costs'!$C$16:$C$43,0))/1000,CU53*INDEX('Damage costs'!$Y$16:$Y$43,MATCH($B138,'Damage costs'!$C$16:$C$43,0))/1000),\"\")","v":""},{"$f":"IFERROR(IF(OR($C$144=FALSE,LEFT($B138,3)<>\"NOX\"),CV53*INDEX('Damage costs'!$U$16:$U$43,MATCH($B138,'Damage costs'!$C$16:$C$43,0))/1000,CV53*INDEX('Damage costs'!$Y$16:$Y$43,MATCH($B138,'Damage costs'!$C$16:$C$43,0))/1000),\"\")","v":""},{"$f":"IFERROR(IF(OR($C$144=FALSE,LEFT($B138,3)<>\"NOX\"),CW53*INDEX('Damage costs'!$U$16:$U$43,MATCH($B138,'Damage costs'!$C$16:$C$43,0))/1000,CW53*INDEX('Damage costs'!$Y$16:$Y$43,MATCH($B138,'Damage costs'!$C$16:$C$43,0))/1000),\"\")","v":""},{"$f":"IFERROR(IF(OR($C$144=FALSE,LEFT($B138,3)<>\"NOX\"),CX53*INDEX('Damage costs'!$U$16:$U$43,MATCH($B138,'Damage costs'!$C$16:$C$43,0))/1000,CX53*INDEX('Damage costs'!$Y$16:$Y$43,MATCH($B138,'Damage costs'!$C$16:$C$43,0))/1000),\"\")","v":""},{"$f":"IFERROR(IF(OR($C$144=FALSE,LEFT($B138,3)<>\"NOX\"),CY53*INDEX('Damage costs'!$U$16:$U$43,MATCH($B138,'Damage costs'!$C$16:$C$43,0))/1000,CY53*INDEX('Damage costs'!$Y$16:$Y$43,MATCH($B138,'Damage costs'!$C$16:$C$43,0))/1000),\"\")","v":""}]
[null,0,"£000's",{"$f":"IFERROR(IF(OR($C$144=FALSE,LEFT($B139,3)<>\"NOX\"),D54*INDEX('Damage costs'!$U$16:$U$43,MATCH($B139,'Damage costs'!$C$16:$C$43,0))/1000,D54*INDEX('Damage costs'!$Y$16:$Y$43,MATCH($B139,'Damage costs'!$C$16:$C$43,0))/1000),\"\")","v":""},{"$f":"IFERROR(IF(OR($C$144=FALSE,LEFT($B139,3)<>\"NOX\"),E54*INDEX('Damage costs'!$U$16:$U$43,MATCH($B139,'Damage costs'!$C$16:$C$43,0))/1000,E54*INDEX('Damage costs'!$Y$16:$Y$43,MATCH($B139,'Damage costs'!$C$16:$C$43,0))/1000),\"\")","v":""},{"$f":"IFERROR(IF(OR($C$144=FALSE,LEFT($B139,3)<>\"NOX\"),F54*INDEX('Damage costs'!$U$16:$U$43,MATCH($B139,'Damage costs'!$C$16:$C$43,0))/1000,F54*INDEX('Damage costs'!$Y$16:$Y$43,MATCH($B139,'Damage costs'!$C$16:$C$43,0))/1000),\"\")","v":""},{"$f":"IFERROR(IF(OR($C$144=FALSE,LEFT($B139,3)<>\"NOX\"),G54*INDEX('Damage costs'!$U$16:$U$43,MATCH($B139,'Damage costs'!$C$16:$C$43,0))/1000,G54*INDEX('Damage costs'!$Y$16:$Y$43,MATCH($B139,'Damage costs'!$C$16:$C$43,0))/1000),\"\")","v":""},{"$f":"IFERROR(IF(OR($C$144=FALSE,LEFT($B139,3)<>\"NOX\"),H54*INDEX('Damage costs'!$U$16:$U$43,MATCH($B139,'Damage costs'!$C$16:$C$43,0))/1000,H54*INDEX('Damage costs'!$Y$16:$Y$43,MATCH($B139,'Damage costs'!$C$16:$C$43,0))/1000),\"\")","v":""},{"$f":"IFERROR(IF(OR($C$144=FALSE,LEFT($B139,3)<>\"NOX\"),I54*INDEX('Damage costs'!$U$16:$U$43,MATCH($B139,'Damage costs'!$C$16:$C$43,0))/1000,I54*INDEX('Damage costs'!$Y$16:$Y$43,MATCH($B139,'Damage costs'!$C$16:$C$43,0))/1000),\"\")","v":""},{"$f":"IFERROR(IF(OR($C$144=FALSE,LEFT($B139,3)<>\"NOX\"),J54*INDEX('Damage costs'!$U$16:$U$43,MATCH($B139,'Damage costs'!$C$16:$C$43,0))/1000,J54*INDEX('Damage costs'!$Y$16:$Y$43,MATCH($B139,'Damage costs'!$C$16:$C$43,0))/1000),\"\")","v":""},{"$f":"IFERROR(IF(OR($C$144=FALSE,LEFT($B139,3)<>\"NOX\"),K54*INDEX('Damage costs'!$U$16:$U$43,MATCH($B139,'Damage costs'!$C$16:$C$43,0))/1000,K54*INDEX('Damage costs'!$Y$16:$Y$43,MATCH($B139,'Damage costs'!$C$16:$C$43,0))/1000),\"\")","v":""},{"$f":"IFERROR(IF(OR($C$144=FALSE,LEFT($B139,3)<>\"NOX\"),L54*INDEX('Damage costs'!$U$16:$U$43,MATCH($B139,'Damage costs'!$C$16:$C$43,0))/1000,L54*INDEX('Damage costs'!$Y$16:$Y$43,MATCH($B139,'Damage costs'!$C$16:$C$43,0))/1000),\"\")","v":""},{"$f":"IFERROR(IF(OR($C$144=FALSE,LEFT($B139,3)<>\"NOX\"),M54*INDEX('Damage costs'!$U$16:$U$43,MATCH($B139,'Damage costs'!$C$16:$C$43,0))/1000,M54*INDEX('Damage costs'!$Y$16:$Y$43,MATCH($B139,'Damage costs'!$C$16:$C$43,0))/1000),\"\")","v":""},{"$f":"IFERROR(IF(OR($C$144=FALSE,LEFT($B139,3)<>\"NOX\"),N54*INDEX('Damage costs'!$U$16:$U$43,MATCH($B139,'Damage costs'!$C$16:$C$43,0))/1000,N54*INDEX('Damage costs'!$Y$16:$Y$43,MATCH($B139,'Damage costs'!$C$16:$C$43,0))/1000),\"\")","v":""},{"$f":"IFERROR(IF(OR($C$144=FALSE,LEFT($B139,3)<>\"NOX\"),O54*INDEX('Damage costs'!$U$16:$U$43,MATCH($B139,'Damage costs'!$C$16:$C$43,0))/1000,O54*INDEX('Damage costs'!$Y$16:$Y$43,MATCH($B139,'Damage costs'!$C$16:$C$43,0))/1000),\"\")","v":""},{"$f":"IFERROR(IF(OR($C$144=FALSE,LEFT($B139,3)<>\"NOX\"),P54*INDEX('Damage costs'!$U$16:$U$43,MATCH($B139,'Damage costs'!$C$16:$C$43,0))/1000,P54*INDEX('Damage costs'!$Y$16:$Y$43,MATCH($B139,'Damage costs'!$C$16:$C$43,0))/1000),\"\")","v":""},{"$f":"IFERROR(IF(OR($C$144=FALSE,LEFT($B139,3)<>\"NOX\"),Q54*INDEX('Damage costs'!$U$16:$U$43,MATCH($B139,'Damage costs'!$C$16:$C$43,0))/1000,Q54*INDEX('Damage costs'!$Y$16:$Y$43,MATCH($B139,'Damage costs'!$C$16:$C$43,0))/1000),\"\")","v":""},{"$f":"IFERROR(IF(OR($C$144=FALSE,LEFT($B139,3)<>\"NOX\"),R54*INDEX('Damage costs'!$U$16:$U$43,MATCH($B139,'Damage costs'!$C$16:$C$43,0))/1000,R54*INDEX('Damage costs'!$Y$16:$Y$43,MATCH($B139,'Damage costs'!$C$16:$C$43,0))/1000),\"\")","v":""},{"$f":"IFERROR(IF(OR($C$144=FALSE,LEFT($B139,3)<>\"NOX\"),S54*INDEX('Damage costs'!$U$16:$U$43,MATCH($B139,'Damage costs'!$C$16:$C$43,0))/1000,S54*INDEX('Damage costs'!$Y$16:$Y$43,MATCH($B139,'Damage costs'!$C$16:$C$43,0))/1000),\"\")","v":""},{"$f":"IFERROR(IF(OR($C$144=FALSE,LEFT($B139,3)<>\"NOX\"),T54*INDEX('Damage costs'!$U$16:$U$43,MATCH($B139,'Damage costs'!$C$16:$C$43,0))/1000,T54*INDEX('Damage costs'!$Y$16:$Y$43,MATCH($B139,'Damage costs'!$C$16:$C$43,0))/1000),\"\")","v":""},{"$f":"IFERROR(IF(OR($C$144=FALSE,LEFT($B139,3)<>\"NOX\"),U54*INDEX('Damage costs'!$U$16:$U$43,MATCH($B139,'Damage costs'!$C$16:$C$43,0))/1000,U54*INDEX('Damage costs'!$Y$16:$Y$43,MATCH($B139,'Damage costs'!$C$16:$C$43,0))/1000),\"\")","v":""},{"$f":"IFERROR(IF(OR($C$144=FALSE,LEFT($B139,3)<>\"NOX\"),V54*INDEX('Damage costs'!$U$16:$U$43,MATCH($B139,'Damage costs'!$C$16:$C$43,0))/1000,V54*INDEX('Damage costs'!$Y$16:$Y$43,MATCH($B139,'Damage costs'!$C$16:$C$43,0))/1000),\"\")","v":""},{"$f":"IFERROR(IF(OR($C$144=FALSE,LEFT($B139,3)<>\"NOX\"),W54*INDEX('Damage costs'!$U$16:$U$43,MATCH($B139,'Damage costs'!$C$16:$C$43,0))/1000,W54*INDEX('Damage costs'!$Y$16:$Y$43,MATCH($B139,'Damage costs'!$C$16:$C$43,0))/1000),\"\")","v":""},{"$f":"IFERROR(IF(OR($C$144=FALSE,LEFT($B139,3)<>\"NOX\"),X54*INDEX('Damage costs'!$U$16:$U$43,MATCH($B139,'Damage costs'!$C$16:$C$43,0))/1000,X54*INDEX('Damage costs'!$Y$16:$Y$43,MATCH($B139,'Damage costs'!$C$16:$C$43,0))/1000),\"\")","v":""},{"$f":"IFERROR(IF(OR($C$144=FALSE,LEFT($B139,3)<>\"NOX\"),Y54*INDEX('Damage costs'!$U$16:$U$43,MATCH($B139,'Damage costs'!$C$16:$C$43,0))/1000,Y54*INDEX('Damage costs'!$Y$16:$Y$43,MATCH($B139,'Damage costs'!$C$16:$C$43,0))/1000),\"\")","v":""},{"$f":"IFERROR(IF(OR($C$144=FALSE,LEFT($B139,3)<>\"NOX\"),Z54*INDEX('Damage costs'!$U$16:$U$43,MATCH($B139,'Damage costs'!$C$16:$C$43,0))/1000,Z54*INDEX('Damage costs'!$Y$16:$Y$43,MATCH($B139,'Damage costs'!$C$16:$C$43,0))/1000),\"\")","v":""},{"$f":"IFERROR(IF(OR($C$144=FALSE,LEFT($B139,3)<>\"NOX\"),AA54*INDEX('Damage costs'!$U$16:$U$43,MATCH($B139,'Damage costs'!$C$16:$C$43,0))/1000,AA54*INDEX('Damage costs'!$Y$16:$Y$43,MATCH($B139,'Damage costs'!$C$16:$C$43,0))/1000),\"\")","v":""},{"$f":"IFERROR(IF(OR($C$144=FALSE,LEFT($B139,3)<>\"NOX\"),AB54*INDEX('Damage costs'!$U$16:$U$43,MATCH($B139,'Damage costs'!$C$16:$C$43,0))/1000,AB54*INDEX('Damage costs'!$Y$16:$Y$43,MATCH($B139,'Damage costs'!$C$16:$C$43,0))/1000),\"\")","v":""},{"$f":"IFERROR(IF(OR($C$144=FALSE,LEFT($B139,3)<>\"NOX\"),AC54*INDEX('Damage costs'!$U$16:$U$43,MATCH($B139,'Damage costs'!$C$16:$C$43,0))/1000,AC54*INDEX('Damage costs'!$Y$16:$Y$43,MATCH($B139,'Damage costs'!$C$16:$C$43,0))/1000),\"\")","v":""},{"$f":"IFERROR(IF(OR($C$144=FALSE,LEFT($B139,3)<>\"NOX\"),AD54*INDEX('Damage costs'!$U$16:$U$43,MATCH($B139,'Damage costs'!$C$16:$C$43,0))/1000,AD54*INDEX('Damage costs'!$Y$16:$Y$43,MATCH($B139,'Damage costs'!$C$16:$C$43,0))/1000),\"\")","v":""},{"$f":"IFERROR(IF(OR($C$144=FALSE,LEFT($B139,3)<>\"NOX\"),AE54*INDEX('Damage costs'!$U$16:$U$43,MATCH($B139,'Damage costs'!$C$16:$C$43,0))/1000,AE54*INDEX('Damage costs'!$Y$16:$Y$43,MATCH($B139,'Damage costs'!$C$16:$C$43,0))/1000),\"\")","v":""},{"$f":"IFERROR(IF(OR($C$144=FALSE,LEFT($B139,3)<>\"NOX\"),AF54*INDEX('Damage costs'!$U$16:$U$43,MATCH($B139,'Damage costs'!$C$16:$C$43,0))/1000,AF54*INDEX('Damage costs'!$Y$16:$Y$43,MATCH($B139,'Damage costs'!$C$16:$C$43,0))/1000),\"\")","v":""},{"$f":"IFERROR(IF(OR($C$144=FALSE,LEFT($B139,3)<>\"NOX\"),AG54*INDEX('Damage costs'!$U$16:$U$43,MATCH($B139,'Damage costs'!$C$16:$C$43,0))/1000,AG54*INDEX('Damage costs'!$Y$16:$Y$43,MATCH($B139,'Damage costs'!$C$16:$C$43,0))/1000),\"\")","v":""},{"$f":"IFERROR(IF(OR($C$144=FALSE,LEFT($B139,3)<>\"NOX\"),AH54*INDEX('Damage costs'!$U$16:$U$43,MATCH($B139,'Damage costs'!$C$16:$C$43,0))/1000,AH54*INDEX('Damage costs'!$Y$16:$Y$43,MATCH($B139,'Damage costs'!$C$16:$C$43,0))/1000),\"\")","v":""},{"$f":"IFERROR(IF(OR($C$144=FALSE,LEFT($B139,3)<>\"NOX\"),AI54*INDEX('Damage costs'!$U$16:$U$43,MATCH($B139,'Damage costs'!$C$16:$C$43,0))/1000,AI54*INDEX('Damage costs'!$Y$16:$Y$43,MATCH($B139,'Damage costs'!$C$16:$C$43,0))/1000),\"\")","v":""},{"$f":"IFERROR(IF(OR($C$144=FALSE,LEFT($B139,3)<>\"NOX\"),AJ54*INDEX('Damage costs'!$U$16:$U$43,MATCH($B139,'Damage costs'!$C$16:$C$43,0))/1000,AJ54*INDEX('Damage costs'!$Y$16:$Y$43,MATCH($B139,'Damage costs'!$C$16:$C$43,0))/1000),\"\")","v":""},{"$f":"IFERROR(IF(OR($C$144=FALSE,LEFT($B139,3)<>\"NOX\"),AK54*INDEX('Damage costs'!$U$16:$U$43,MATCH($B139,'Damage costs'!$C$16:$C$43,0))/1000,AK54*INDEX('Damage costs'!$Y$16:$Y$43,MATCH($B139,'Damage costs'!$C$16:$C$43,0))/1000),\"\")","v":""},{"$f":"IFERROR(IF(OR($C$144=FALSE,LEFT($B139,3)<>\"NOX\"),AL54*INDEX('Damage costs'!$U$16:$U$43,MATCH($B139,'Damage costs'!$C$16:$C$43,0))/1000,AL54*INDEX('Damage costs'!$Y$16:$Y$43,MATCH($B139,'Damage costs'!$C$16:$C$43,0))/1000),\"\")","v":""},{"$f":"IFERROR(IF(OR($C$144=FALSE,LEFT($B139,3)<>\"NOX\"),AM54*INDEX('Damage costs'!$U$16:$U$43,MATCH($B139,'Damage costs'!$C$16:$C$43,0))/1000,AM54*INDEX('Damage costs'!$Y$16:$Y$43,MATCH($B139,'Damage costs'!$C$16:$C$43,0))/1000),\"\")","v":""},{"$f":"IFERROR(IF(OR($C$144=FALSE,LEFT($B139,3)<>\"NOX\"),AN54*INDEX('Damage costs'!$U$16:$U$43,MATCH($B139,'Damage costs'!$C$16:$C$43,0))/1000,AN54*INDEX('Damage costs'!$Y$16:$Y$43,MATCH($B139,'Damage costs'!$C$16:$C$43,0))/1000),\"\")","v":""},{"$f":"IFERROR(IF(OR($C$144=FALSE,LEFT($B139,3)<>\"NOX\"),AO54*INDEX('Damage costs'!$U$16:$U$43,MATCH($B139,'Damage costs'!$C$16:$C$43,0))/1000,AO54*INDEX('Damage costs'!$Y$16:$Y$43,MATCH($B139,'Damage costs'!$C$16:$C$43,0))/1000),\"\")","v":""},{"$f":"IFERROR(IF(OR($C$144=FALSE,LEFT($B139,3)<>\"NOX\"),AP54*INDEX('Damage costs'!$U$16:$U$43,MATCH($B139,'Damage costs'!$C$16:$C$43,0))/1000,AP54*INDEX('Damage costs'!$Y$16:$Y$43,MATCH($B139,'Damage costs'!$C$16:$C$43,0))/1000),\"\")","v":""},{"$f":"IFERROR(IF(OR($C$144=FALSE,LEFT($B139,3)<>\"NOX\"),AQ54*INDEX('Damage costs'!$U$16:$U$43,MATCH($B139,'Damage costs'!$C$16:$C$43,0))/1000,AQ54*INDEX('Damage costs'!$Y$16:$Y$43,MATCH($B139,'Damage costs'!$C$16:$C$43,0))/1000),\"\")","v":""},{"$f":"IFERROR(IF(OR($C$144=FALSE,LEFT($B139,3)<>\"NOX\"),AR54*INDEX('Damage costs'!$U$16:$U$43,MATCH($B139,'Damage costs'!$C$16:$C$43,0))/1000,AR54*INDEX('Damage costs'!$Y$16:$Y$43,MATCH($B139,'Damage costs'!$C$16:$C$43,0))/1000),\"\")","v":""},{"$f":"IFERROR(IF(OR($C$144=FALSE,LEFT($B139,3)<>\"NOX\"),AS54*INDEX('Damage costs'!$U$16:$U$43,MATCH($B139,'Damage costs'!$C$16:$C$43,0))/1000,AS54*INDEX('Damage costs'!$Y$16:$Y$43,MATCH($B139,'Damage costs'!$C$16:$C$43,0))/1000),\"\")","v":""},{"$f":"IFERROR(IF(OR($C$144=FALSE,LEFT($B139,3)<>\"NOX\"),AT54*INDEX('Damage costs'!$U$16:$U$43,MATCH($B139,'Damage costs'!$C$16:$C$43,0))/1000,AT54*INDEX('Damage costs'!$Y$16:$Y$43,MATCH($B139,'Damage costs'!$C$16:$C$43,0))/1000),\"\")","v":""},{"$f":"IFERROR(IF(OR($C$144=FALSE,LEFT($B139,3)<>\"NOX\"),AU54*INDEX('Damage costs'!$U$16:$U$43,MATCH($B139,'Damage costs'!$C$16:$C$43,0))/1000,AU54*INDEX('Damage costs'!$Y$16:$Y$43,MATCH($B139,'Damage costs'!$C$16:$C$43,0))/1000),\"\")","v":""},{"$f":"IFERROR(IF(OR($C$144=FALSE,LEFT($B139,3)<>\"NOX\"),AV54*INDEX('Damage costs'!$U$16:$U$43,MATCH($B139,'Damage costs'!$C$16:$C$43,0))/1000,AV54*INDEX('Damage costs'!$Y$16:$Y$43,MATCH($B139,'Damage costs'!$C$16:$C$43,0))/1000),\"\")","v":""},{"$f":"IFERROR(IF(OR($C$144=FALSE,LEFT($B139,3)<>\"NOX\"),AW54*INDEX('Damage costs'!$U$16:$U$43,MATCH($B139,'Damage costs'!$C$16:$C$43,0))/1000,AW54*INDEX('Damage costs'!$Y$16:$Y$43,MATCH($B139,'Damage costs'!$C$16:$C$43,0))/1000),\"\")","v":""},{"$f":"IFERROR(IF(OR($C$144=FALSE,LEFT($B139,3)<>\"NOX\"),AX54*INDEX('Damage costs'!$U$16:$U$43,MATCH($B139,'Damage costs'!$C$16:$C$43,0))/1000,AX54*INDEX('Damage costs'!$Y$16:$Y$43,MATCH($B139,'Damage costs'!$C$16:$C$43,0))/1000),\"\")","v":""},{"$f":"IFERROR(IF(OR($C$144=FALSE,LEFT($B139,3)<>\"NOX\"),AY54*INDEX('Damage costs'!$U$16:$U$43,MATCH($B139,'Damage costs'!$C$16:$C$43,0))/1000,AY54*INDEX('Damage costs'!$Y$16:$Y$43,MATCH($B139,'Damage costs'!$C$16:$C$43,0))/1000),\"\")","v":""},{"$f":"IFERROR(IF(OR($C$144=FALSE,LEFT($B139,3)<>\"NOX\"),AZ54*INDEX('Damage costs'!$U$16:$U$43,MATCH($B139,'Damage costs'!$C$16:$C$43,0))/1000,AZ54*INDEX('Damage costs'!$Y$16:$Y$43,MATCH($B139,'Damage costs'!$C$16:$C$43,0))/1000),\"\")","v":""},{"$f":"IFERROR(IF(OR($C$144=FALSE,LEFT($B139,3)<>\"NOX\"),BA54*INDEX('Damage costs'!$U$16:$U$43,MATCH($B139,'Damage costs'!$C$16:$C$43,0))/1000,BA54*INDEX('Damage costs'!$Y$16:$Y$43,MATCH($B139,'Damage costs'!$C$16:$C$43,0))/1000),\"\")","v":""},{"$f":"IFERROR(IF(OR($C$144=FALSE,LEFT($B139,3)<>\"NOX\"),BB54*INDEX('Damage costs'!$U$16:$U$43,MATCH($B139,'Damage costs'!$C$16:$C$43,0))/1000,BB54*INDEX('Damage costs'!$Y$16:$Y$43,MATCH($B139,'Damage costs'!$C$16:$C$43,0))/1000),\"\")","v":""},{"$f":"IFERROR(IF(OR($C$144=FALSE,LEFT($B139,3)<>\"NOX\"),BC54*INDEX('Damage costs'!$U$16:$U$43,MATCH($B139,'Damage costs'!$C$16:$C$43,0))/1000,BC54*INDEX('Damage costs'!$Y$16:$Y$43,MATCH($B139,'Damage costs'!$C$16:$C$43,0))/1000),\"\")","v":""},{"$f":"IFERROR(IF(OR($C$144=FALSE,LEFT($B139,3)<>\"NOX\"),BD54*INDEX('Damage costs'!$U$16:$U$43,MATCH($B139,'Damage costs'!$C$16:$C$43,0))/1000,BD54*INDEX('Damage costs'!$Y$16:$Y$43,MATCH($B139,'Damage costs'!$C$16:$C$43,0))/1000),\"\")","v":""},{"$f":"IFERROR(IF(OR($C$144=FALSE,LEFT($B139,3)<>\"NOX\"),BE54*INDEX('Damage costs'!$U$16:$U$43,MATCH($B139,'Damage costs'!$C$16:$C$43,0))/1000,BE54*INDEX('Damage costs'!$Y$16:$Y$43,MATCH($B139,'Damage costs'!$C$16:$C$43,0))/1000),\"\")","v":""},{"$f":"IFERROR(IF(OR($C$144=FALSE,LEFT($B139,3)<>\"NOX\"),BF54*INDEX('Damage costs'!$U$16:$U$43,MATCH($B139,'Damage costs'!$C$16:$C$43,0))/1000,BF54*INDEX('Damage costs'!$Y$16:$Y$43,MATCH($B139,'Damage costs'!$C$16:$C$43,0))/1000),\"\")","v":""},{"$f":"IFERROR(IF(OR($C$144=FALSE,LEFT($B139,3)<>\"NOX\"),BG54*INDEX('Damage costs'!$U$16:$U$43,MATCH($B139,'Damage costs'!$C$16:$C$43,0))/1000,BG54*INDEX('Damage costs'!$Y$16:$Y$43,MATCH($B139,'Damage costs'!$C$16:$C$43,0))/1000),\"\")","v":""},{"$f":"IFERROR(IF(OR($C$144=FALSE,LEFT($B139,3)<>\"NOX\"),BH54*INDEX('Damage costs'!$U$16:$U$43,MATCH($B139,'Damage costs'!$C$16:$C$43,0))/1000,BH54*INDEX('Damage costs'!$Y$16:$Y$43,MATCH($B139,'Damage costs'!$C$16:$C$43,0))/1000),\"\")","v":""},{"$f":"IFERROR(IF(OR($C$144=FALSE,LEFT($B139,3)<>\"NOX\"),BI54*INDEX('Damage costs'!$U$16:$U$43,MATCH($B139,'Damage costs'!$C$16:$C$43,0))/1000,BI54*INDEX('Damage costs'!$Y$16:$Y$43,MATCH($B139,'Damage costs'!$C$16:$C$43,0))/1000),\"\")","v":""},{"$f":"IFERROR(IF(OR($C$144=FALSE,LEFT($B139,3)<>\"NOX\"),BJ54*INDEX('Damage costs'!$U$16:$U$43,MATCH($B139,'Damage costs'!$C$16:$C$43,0))/1000,BJ54*INDEX('Damage costs'!$Y$16:$Y$43,MATCH($B139,'Damage costs'!$C$16:$C$43,0))/1000),\"\")","v":""},{"$f":"IFERROR(IF(OR($C$144=FALSE,LEFT($B139,3)<>\"NOX\"),BK54*INDEX('Damage costs'!$U$16:$U$43,MATCH($B139,'Damage costs'!$C$16:$C$43,0))/1000,BK54*INDEX('Damage costs'!$Y$16:$Y$43,MATCH($B139,'Damage costs'!$C$16:$C$43,0))/1000),\"\")","v":""},{"$f":"IFERROR(IF(OR($C$144=FALSE,LEFT($B139,3)<>\"NOX\"),BL54*INDEX('Damage costs'!$U$16:$U$43,MATCH($B139,'Damage costs'!$C$16:$C$43,0))/1000,BL54*INDEX('Damage costs'!$Y$16:$Y$43,MATCH($B139,'Damage costs'!$C$16:$C$43,0))/1000),\"\")","v":""},{"$f":"IFERROR(IF(OR($C$144=FALSE,LEFT($B139,3)<>\"NOX\"),BM54*INDEX('Damage costs'!$U$16:$U$43,MATCH($B139,'Damage costs'!$C$16:$C$43,0))/1000,BM54*INDEX('Damage costs'!$Y$16:$Y$43,MATCH($B139,'Damage costs'!$C$16:$C$43,0))/1000),\"\")","v":""},{"$f":"IFERROR(IF(OR($C$144=FALSE,LEFT($B139,3)<>\"NOX\"),BN54*INDEX('Damage costs'!$U$16:$U$43,MATCH($B139,'Damage costs'!$C$16:$C$43,0))/1000,BN54*INDEX('Damage costs'!$Y$16:$Y$43,MATCH($B139,'Damage costs'!$C$16:$C$43,0))/1000),\"\")","v":""},{"$f":"IFERROR(IF(OR($C$144=FALSE,LEFT($B139,3)<>\"NOX\"),BO54*INDEX('Damage costs'!$U$16:$U$43,MATCH($B139,'Damage costs'!$C$16:$C$43,0))/1000,BO54*INDEX('Damage costs'!$Y$16:$Y$43,MATCH($B139,'Damage costs'!$C$16:$C$43,0))/1000),\"\")","v":""},{"$f":"IFERROR(IF(OR($C$144=FALSE,LEFT($B139,3)<>\"NOX\"),BP54*INDEX('Damage costs'!$U$16:$U$43,MATCH($B139,'Damage costs'!$C$16:$C$43,0))/1000,BP54*INDEX('Damage costs'!$Y$16:$Y$43,MATCH($B139,'Damage costs'!$C$16:$C$43,0))/1000),\"\")","v":""},{"$f":"IFERROR(IF(OR($C$144=FALSE,LEFT($B139,3)<>\"NOX\"),BQ54*INDEX('Damage costs'!$U$16:$U$43,MATCH($B139,'Damage costs'!$C$16:$C$43,0))/1000,BQ54*INDEX('Damage costs'!$Y$16:$Y$43,MATCH($B139,'Damage costs'!$C$16:$C$43,0))/1000),\"\")","v":""},{"$f":"IFERROR(IF(OR($C$144=FALSE,LEFT($B139,3)<>\"NOX\"),BR54*INDEX('Damage costs'!$U$16:$U$43,MATCH($B139,'Damage costs'!$C$16:$C$43,0))/1000,BR54*INDEX('Damage costs'!$Y$16:$Y$43,MATCH($B139,'Damage costs'!$C$16:$C$43,0))/1000),\"\")","v":""},{"$f":"IFERROR(IF(OR($C$144=FALSE,LEFT($B139,3)<>\"NOX\"),BS54*INDEX('Damage costs'!$U$16:$U$43,MATCH($B139,'Damage costs'!$C$16:$C$43,0))/1000,BS54*INDEX('Damage costs'!$Y$16:$Y$43,MATCH($B139,'Damage costs'!$C$16:$C$43,0))/1000),\"\")","v":""},{"$f":"IFERROR(IF(OR($C$144=FALSE,LEFT($B139,3)<>\"NOX\"),BT54*INDEX('Damage costs'!$U$16:$U$43,MATCH($B139,'Damage costs'!$C$16:$C$43,0))/1000,BT54*INDEX('Damage costs'!$Y$16:$Y$43,MATCH($B139,'Damage costs'!$C$16:$C$43,0))/1000),\"\")","v":""},{"$f":"IFERROR(IF(OR($C$144=FALSE,LEFT($B139,3)<>\"NOX\"),BU54*INDEX('Damage costs'!$U$16:$U$43,MATCH($B139,'Damage costs'!$C$16:$C$43,0))/1000,BU54*INDEX('Damage costs'!$Y$16:$Y$43,MATCH($B139,'Damage costs'!$C$16:$C$43,0))/1000),\"\")","v":""},{"$f":"IFERROR(IF(OR($C$144=FALSE,LEFT($B139,3)<>\"NOX\"),BV54*INDEX('Damage costs'!$U$16:$U$43,MATCH($B139,'Damage costs'!$C$16:$C$43,0))/1000,BV54*INDEX('Damage costs'!$Y$16:$Y$43,MATCH($B139,'Damage costs'!$C$16:$C$43,0))/1000),\"\")","v":""},{"$f":"IFERROR(IF(OR($C$144=FALSE,LEFT($B139,3)<>\"NOX\"),BW54*INDEX('Damage costs'!$U$16:$U$43,MATCH($B139,'Damage costs'!$C$16:$C$43,0))/1000,BW54*INDEX('Damage costs'!$Y$16:$Y$43,MATCH($B139,'Damage costs'!$C$16:$C$43,0))/1000),\"\")","v":""},{"$f":"IFERROR(IF(OR($C$144=FALSE,LEFT($B139,3)<>\"NOX\"),BX54*INDEX('Damage costs'!$U$16:$U$43,MATCH($B139,'Damage costs'!$C$16:$C$43,0))/1000,BX54*INDEX('Damage costs'!$Y$16:$Y$43,MATCH($B139,'Damage costs'!$C$16:$C$43,0))/1000),\"\")","v":""},{"$f":"IFERROR(IF(OR($C$144=FALSE,LEFT($B139,3)<>\"NOX\"),BY54*INDEX('Damage costs'!$U$16:$U$43,MATCH($B139,'Damage costs'!$C$16:$C$43,0))/1000,BY54*INDEX('Damage costs'!$Y$16:$Y$43,MATCH($B139,'Damage costs'!$C$16:$C$43,0))/1000),\"\")","v":""},{"$f":"IFERROR(IF(OR($C$144=FALSE,LEFT($B139,3)<>\"NOX\"),BZ54*INDEX('Damage costs'!$U$16:$U$43,MATCH($B139,'Damage costs'!$C$16:$C$43,0))/1000,BZ54*INDEX('Damage costs'!$Y$16:$Y$43,MATCH($B139,'Damage costs'!$C$16:$C$43,0))/1000),\"\")","v":""},{"$f":"IFERROR(IF(OR($C$144=FALSE,LEFT($B139,3)<>\"NOX\"),CA54*INDEX('Damage costs'!$U$16:$U$43,MATCH($B139,'Damage costs'!$C$16:$C$43,0))/1000,CA54*INDEX('Damage costs'!$Y$16:$Y$43,MATCH($B139,'Damage costs'!$C$16:$C$43,0))/1000),\"\")","v":""},{"$f":"IFERROR(IF(OR($C$144=FALSE,LEFT($B139,3)<>\"NOX\"),CB54*INDEX('Damage costs'!$U$16:$U$43,MATCH($B139,'Damage costs'!$C$16:$C$43,0))/1000,CB54*INDEX('Damage costs'!$Y$16:$Y$43,MATCH($B139,'Damage costs'!$C$16:$C$43,0))/1000),\"\")","v":""},{"$f":"IFERROR(IF(OR($C$144=FALSE,LEFT($B139,3)<>\"NOX\"),CC54*INDEX('Damage costs'!$U$16:$U$43,MATCH($B139,'Damage costs'!$C$16:$C$43,0))/1000,CC54*INDEX('Damage costs'!$Y$16:$Y$43,MATCH($B139,'Damage costs'!$C$16:$C$43,0))/1000),\"\")","v":""},{"$f":"IFERROR(IF(OR($C$144=FALSE,LEFT($B139,3)<>\"NOX\"),CD54*INDEX('Damage costs'!$U$16:$U$43,MATCH($B139,'Damage costs'!$C$16:$C$43,0))/1000,CD54*INDEX('Damage costs'!$Y$16:$Y$43,MATCH($B139,'Damage costs'!$C$16:$C$43,0))/1000),\"\")","v":""},{"$f":"IFERROR(IF(OR($C$144=FALSE,LEFT($B139,3)<>\"NOX\"),CE54*INDEX('Damage costs'!$U$16:$U$43,MATCH($B139,'Damage costs'!$C$16:$C$43,0))/1000,CE54*INDEX('Damage costs'!$Y$16:$Y$43,MATCH($B139,'Damage costs'!$C$16:$C$43,0))/1000),\"\")","v":""},{"$f":"IFERROR(IF(OR($C$144=FALSE,LEFT($B139,3)<>\"NOX\"),CF54*INDEX('Damage costs'!$U$16:$U$43,MATCH($B139,'Damage costs'!$C$16:$C$43,0))/1000,CF54*INDEX('Damage costs'!$Y$16:$Y$43,MATCH($B139,'Damage costs'!$C$16:$C$43,0))/1000),\"\")","v":""},{"$f":"IFERROR(IF(OR($C$144=FALSE,LEFT($B139,3)<>\"NOX\"),CG54*INDEX('Damage costs'!$U$16:$U$43,MATCH($B139,'Damage costs'!$C$16:$C$43,0))/1000,CG54*INDEX('Damage costs'!$Y$16:$Y$43,MATCH($B139,'Damage costs'!$C$16:$C$43,0))/1000),\"\")","v":""},{"$f":"IFERROR(IF(OR($C$144=FALSE,LEFT($B139,3)<>\"NOX\"),CH54*INDEX('Damage costs'!$U$16:$U$43,MATCH($B139,'Damage costs'!$C$16:$C$43,0))/1000,CH54*INDEX('Damage costs'!$Y$16:$Y$43,MATCH($B139,'Damage costs'!$C$16:$C$43,0))/1000),\"\")","v":""},{"$f":"IFERROR(IF(OR($C$144=FALSE,LEFT($B139,3)<>\"NOX\"),CI54*INDEX('Damage costs'!$U$16:$U$43,MATCH($B139,'Damage costs'!$C$16:$C$43,0))/1000,CI54*INDEX('Damage costs'!$Y$16:$Y$43,MATCH($B139,'Damage costs'!$C$16:$C$43,0))/1000),\"\")","v":""},{"$f":"IFERROR(IF(OR($C$144=FALSE,LEFT($B139,3)<>\"NOX\"),CJ54*INDEX('Damage costs'!$U$16:$U$43,MATCH($B139,'Damage costs'!$C$16:$C$43,0))/1000,CJ54*INDEX('Damage costs'!$Y$16:$Y$43,MATCH($B139,'Damage costs'!$C$16:$C$43,0))/1000),\"\")","v":""},{"$f":"IFERROR(IF(OR($C$144=FALSE,LEFT($B139,3)<>\"NOX\"),CK54*INDEX('Damage costs'!$U$16:$U$43,MATCH($B139,'Damage costs'!$C$16:$C$43,0))/1000,CK54*INDEX('Damage costs'!$Y$16:$Y$43,MATCH($B139,'Damage costs'!$C$16:$C$43,0))/1000),\"\")","v":""},{"$f":"IFERROR(IF(OR($C$144=FALSE,LEFT($B139,3)<>\"NOX\"),CL54*INDEX('Damage costs'!$U$16:$U$43,MATCH($B139,'Damage costs'!$C$16:$C$43,0))/1000,CL54*INDEX('Damage costs'!$Y$16:$Y$43,MATCH($B139,'Damage costs'!$C$16:$C$43,0))/1000),\"\")","v":""},{"$f":"IFERROR(IF(OR($C$144=FALSE,LEFT($B139,3)<>\"NOX\"),CM54*INDEX('Damage costs'!$U$16:$U$43,MATCH($B139,'Damage costs'!$C$16:$C$43,0))/1000,CM54*INDEX('Damage costs'!$Y$16:$Y$43,MATCH($B139,'Damage costs'!$C$16:$C$43,0))/1000),\"\")","v":""},{"$f":"IFERROR(IF(OR($C$144=FALSE,LEFT($B139,3)<>\"NOX\"),CN54*INDEX('Damage costs'!$U$16:$U$43,MATCH($B139,'Damage costs'!$C$16:$C$43,0))/1000,CN54*INDEX('Damage costs'!$Y$16:$Y$43,MATCH($B139,'Damage costs'!$C$16:$C$43,0))/1000),\"\")","v":""},{"$f":"IFERROR(IF(OR($C$144=FALSE,LEFT($B139,3)<>\"NOX\"),CO54*INDEX('Damage costs'!$U$16:$U$43,MATCH($B139,'Damage costs'!$C$16:$C$43,0))/1000,CO54*INDEX('Damage costs'!$Y$16:$Y$43,MATCH($B139,'Damage costs'!$C$16:$C$43,0))/1000),\"\")","v":""},{"$f":"IFERROR(IF(OR($C$144=FALSE,LEFT($B139,3)<>\"NOX\"),CP54*INDEX('Damage costs'!$U$16:$U$43,MATCH($B139,'Damage costs'!$C$16:$C$43,0))/1000,CP54*INDEX('Damage costs'!$Y$16:$Y$43,MATCH($B139,'Damage costs'!$C$16:$C$43,0))/1000),\"\")","v":""},{"$f":"IFERROR(IF(OR($C$144=FALSE,LEFT($B139,3)<>\"NOX\"),CQ54*INDEX('Damage costs'!$U$16:$U$43,MATCH($B139,'Damage costs'!$C$16:$C$43,0))/1000,CQ54*INDEX('Damage costs'!$Y$16:$Y$43,MATCH($B139,'Damage costs'!$C$16:$C$43,0))/1000),\"\")","v":""},{"$f":"IFERROR(IF(OR($C$144=FALSE,LEFT($B139,3)<>\"NOX\"),CR54*INDEX('Damage costs'!$U$16:$U$43,MATCH($B139,'Damage costs'!$C$16:$C$43,0))/1000,CR54*INDEX('Damage costs'!$Y$16:$Y$43,MATCH($B139,'Damage costs'!$C$16:$C$43,0))/1000),\"\")","v":""},{"$f":"IFERROR(IF(OR($C$144=FALSE,LEFT($B139,3)<>\"NOX\"),CS54*INDEX('Damage costs'!$U$16:$U$43,MATCH($B139,'Damage costs'!$C$16:$C$43,0))/1000,CS54*INDEX('Damage costs'!$Y$16:$Y$43,MATCH($B139,'Damage costs'!$C$16:$C$43,0))/1000),\"\")","v":""},{"$f":"IFERROR(IF(OR($C$144=FALSE,LEFT($B139,3)<>\"NOX\"),CT54*INDEX('Damage costs'!$U$16:$U$43,MATCH($B139,'Damage costs'!$C$16:$C$43,0))/1000,CT54*INDEX('Damage costs'!$Y$16:$Y$43,MATCH($B139,'Damage costs'!$C$16:$C$43,0))/1000),\"\")","v":""},{"$f":"IFERROR(IF(OR($C$144=FALSE,LEFT($B139,3)<>\"NOX\"),CU54*INDEX('Damage costs'!$U$16:$U$43,MATCH($B139,'Damage costs'!$C$16:$C$43,0))/1000,CU54*INDEX('Damage costs'!$Y$16:$Y$43,MATCH($B139,'Damage costs'!$C$16:$C$43,0))/1000),\"\")","v":""},{"$f":"IFERROR(IF(OR($C$144=FALSE,LEFT($B139,3)<>\"NOX\"),CV54*INDEX('Damage costs'!$U$16:$U$43,MATCH($B139,'Damage costs'!$C$16:$C$43,0))/1000,CV54*INDEX('Damage costs'!$Y$16:$Y$43,MATCH($B139,'Damage costs'!$C$16:$C$43,0))/1000),\"\")","v":""},{"$f":"IFERROR(IF(OR($C$144=FALSE,LEFT($B139,3)<>\"NOX\"),CW54*INDEX('Damage costs'!$U$16:$U$43,MATCH($B139,'Damage costs'!$C$16:$C$43,0))/1000,CW54*INDEX('Damage costs'!$Y$16:$Y$43,MATCH($B139,'Damage costs'!$C$16:$C$43,0))/1000),\"\")","v":""},{"$f":"IFERROR(IF(OR($C$144=FALSE,LEFT($B139,3)<>\"NOX\"),CX54*INDEX('Damage costs'!$U$16:$U$43,MATCH($B139,'Damage costs'!$C$16:$C$43,0))/1000,CX54*INDEX('Damage costs'!$Y$16:$Y$43,MATCH($B139,'Damage costs'!$C$16:$C$43,0))/1000),\"\")","v":""},{"$f":"IFERROR(IF(OR($C$144=FALSE,LEFT($B139,3)<>\"NOX\"),CY54*INDEX('Damage costs'!$U$16:$U$43,MATCH($B139,'Damage costs'!$C$16:$C$43,0))/1000,CY54*INDEX('Damage costs'!$Y$16:$Y$43,MATCH($B139,'Damage costs'!$C$16:$C$43,0))/1000),\"\")","v":""}]
[null,0,"£000's",{"$f":"IFERROR(IF(OR($C$144=FALSE,LEFT($B140,3)<>\"NOX\"),D55*INDEX('Damage costs'!$U$16:$U$43,MATCH($B140,'Damage costs'!$C$16:$C$43,0))/1000,D55*INDEX('Damage costs'!$Y$16:$Y$43,MATCH($B140,'Damage costs'!$C$16:$C$43,0))/1000),\"\")","v":""},{"$f":"IFERROR(IF(OR($C$144=FALSE,LEFT($B140,3)<>\"NOX\"),E55*INDEX('Damage costs'!$U$16:$U$43,MATCH($B140,'Damage costs'!$C$16:$C$43,0))/1000,E55*INDEX('Damage costs'!$Y$16:$Y$43,MATCH($B140,'Damage costs'!$C$16:$C$43,0))/1000),\"\")","v":""},{"$f":"IFERROR(IF(OR($C$144=FALSE,LEFT($B140,3)<>\"NOX\"),F55*INDEX('Damage costs'!$U$16:$U$43,MATCH($B140,'Damage costs'!$C$16:$C$43,0))/1000,F55*INDEX('Damage costs'!$Y$16:$Y$43,MATCH($B140,'Damage costs'!$C$16:$C$43,0))/1000),\"\")","v":""},{"$f":"IFERROR(IF(OR($C$144=FALSE,LEFT($B140,3)<>\"NOX\"),G55*INDEX('Damage costs'!$U$16:$U$43,MATCH($B140,'Damage costs'!$C$16:$C$43,0))/1000,G55*INDEX('Damage costs'!$Y$16:$Y$43,MATCH($B140,'Damage costs'!$C$16:$C$43,0))/1000),\"\")","v":""},{"$f":"IFERROR(IF(OR($C$144=FALSE,LEFT($B140,3)<>\"NOX\"),H55*INDEX('Damage costs'!$U$16:$U$43,MATCH($B140,'Damage costs'!$C$16:$C$43,0))/1000,H55*INDEX('Damage costs'!$Y$16:$Y$43,MATCH($B140,'Damage costs'!$C$16:$C$43,0))/1000),\"\")","v":""},{"$f":"IFERROR(IF(OR($C$144=FALSE,LEFT($B140,3)<>\"NOX\"),I55*INDEX('Damage costs'!$U$16:$U$43,MATCH($B140,'Damage costs'!$C$16:$C$43,0))/1000,I55*INDEX('Damage costs'!$Y$16:$Y$43,MATCH($B140,'Damage costs'!$C$16:$C$43,0))/1000),\"\")","v":""},{"$f":"IFERROR(IF(OR($C$144=FALSE,LEFT($B140,3)<>\"NOX\"),J55*INDEX('Damage costs'!$U$16:$U$43,MATCH($B140,'Damage costs'!$C$16:$C$43,0))/1000,J55*INDEX('Damage costs'!$Y$16:$Y$43,MATCH($B140,'Damage costs'!$C$16:$C$43,0))/1000),\"\")","v":""},{"$f":"IFERROR(IF(OR($C$144=FALSE,LEFT($B140,3)<>\"NOX\"),K55*INDEX('Damage costs'!$U$16:$U$43,MATCH($B140,'Damage costs'!$C$16:$C$43,0))/1000,K55*INDEX('Damage costs'!$Y$16:$Y$43,MATCH($B140,'Damage costs'!$C$16:$C$43,0))/1000),\"\")","v":""},{"$f":"IFERROR(IF(OR($C$144=FALSE,LEFT($B140,3)<>\"NOX\"),L55*INDEX('Damage costs'!$U$16:$U$43,MATCH($B140,'Damage costs'!$C$16:$C$43,0))/1000,L55*INDEX('Damage costs'!$Y$16:$Y$43,MATCH($B140,'Damage costs'!$C$16:$C$43,0))/1000),\"\")","v":""},{"$f":"IFERROR(IF(OR($C$144=FALSE,LEFT($B140,3)<>\"NOX\"),M55*INDEX('Damage costs'!$U$16:$U$43,MATCH($B140,'Damage costs'!$C$16:$C$43,0))/1000,M55*INDEX('Damage costs'!$Y$16:$Y$43,MATCH($B140,'Damage costs'!$C$16:$C$43,0))/1000),\"\")","v":""},{"$f":"IFERROR(IF(OR($C$144=FALSE,LEFT($B140,3)<>\"NOX\"),N55*INDEX('Damage costs'!$U$16:$U$43,MATCH($B140,'Damage costs'!$C$16:$C$43,0))/1000,N55*INDEX('Damage costs'!$Y$16:$Y$43,MATCH($B140,'Damage costs'!$C$16:$C$43,0))/1000),\"\")","v":""},{"$f":"IFERROR(IF(OR($C$144=FALSE,LEFT($B140,3)<>\"NOX\"),O55*INDEX('Damage costs'!$U$16:$U$43,MATCH($B140,'Damage costs'!$C$16:$C$43,0))/1000,O55*INDEX('Damage costs'!$Y$16:$Y$43,MATCH($B140,'Damage costs'!$C$16:$C$43,0))/1000),\"\")","v":""},{"$f":"IFERROR(IF(OR($C$144=FALSE,LEFT($B140,3)<>\"NOX\"),P55*INDEX('Damage costs'!$U$16:$U$43,MATCH($B140,'Damage costs'!$C$16:$C$43,0))/1000,P55*INDEX('Damage costs'!$Y$16:$Y$43,MATCH($B140,'Damage costs'!$C$16:$C$43,0))/1000),\"\")","v":""},{"$f":"IFERROR(IF(OR($C$144=FALSE,LEFT($B140,3)<>\"NOX\"),Q55*INDEX('Damage costs'!$U$16:$U$43,MATCH($B140,'Damage costs'!$C$16:$C$43,0))/1000,Q55*INDEX('Damage costs'!$Y$16:$Y$43,MATCH($B140,'Damage costs'!$C$16:$C$43,0))/1000),\"\")","v":""},{"$f":"IFERROR(IF(OR($C$144=FALSE,LEFT($B140,3)<>\"NOX\"),R55*INDEX('Damage costs'!$U$16:$U$43,MATCH($B140,'Damage costs'!$C$16:$C$43,0))/1000,R55*INDEX('Damage costs'!$Y$16:$Y$43,MATCH($B140,'Damage costs'!$C$16:$C$43,0))/1000),\"\")","v":""},{"$f":"IFERROR(IF(OR($C$144=FALSE,LEFT($B140,3)<>\"NOX\"),S55*INDEX('Damage costs'!$U$16:$U$43,MATCH($B140,'Damage costs'!$C$16:$C$43,0))/1000,S55*INDEX('Damage costs'!$Y$16:$Y$43,MATCH($B140,'Damage costs'!$C$16:$C$43,0))/1000),\"\")","v":""},{"$f":"IFERROR(IF(OR($C$144=FALSE,LEFT($B140,3)<>\"NOX\"),T55*INDEX('Damage costs'!$U$16:$U$43,MATCH($B140,'Damage costs'!$C$16:$C$43,0))/1000,T55*INDEX('Damage costs'!$Y$16:$Y$43,MATCH($B140,'Damage costs'!$C$16:$C$43,0))/1000),\"\")","v":""},{"$f":"IFERROR(IF(OR($C$144=FALSE,LEFT($B140,3)<>\"NOX\"),U55*INDEX('Damage costs'!$U$16:$U$43,MATCH($B140,'Damage costs'!$C$16:$C$43,0))/1000,U55*INDEX('Damage costs'!$Y$16:$Y$43,MATCH($B140,'Damage costs'!$C$16:$C$43,0))/1000),\"\")","v":""},{"$f":"IFERROR(IF(OR($C$144=FALSE,LEFT($B140,3)<>\"NOX\"),V55*INDEX('Damage costs'!$U$16:$U$43,MATCH($B140,'Damage costs'!$C$16:$C$43,0))/1000,V55*INDEX('Damage costs'!$Y$16:$Y$43,MATCH($B140,'Damage costs'!$C$16:$C$43,0))/1000),\"\")","v":""},{"$f":"IFERROR(IF(OR($C$144=FALSE,LEFT($B140,3)<>\"NOX\"),W55*INDEX('Damage costs'!$U$16:$U$43,MATCH($B140,'Damage costs'!$C$16:$C$43,0))/1000,W55*INDEX('Damage costs'!$Y$16:$Y$43,MATCH($B140,'Damage costs'!$C$16:$C$43,0))/1000),\"\")","v":""},{"$f":"IFERROR(IF(OR($C$144=FALSE,LEFT($B140,3)<>\"NOX\"),X55*INDEX('Damage costs'!$U$16:$U$43,MATCH($B140,'Damage costs'!$C$16:$C$43,0))/1000,X55*INDEX('Damage costs'!$Y$16:$Y$43,MATCH($B140,'Damage costs'!$C$16:$C$43,0))/1000),\"\")","v":""},{"$f":"IFERROR(IF(OR($C$144=FALSE,LEFT($B140,3)<>\"NOX\"),Y55*INDEX('Damage costs'!$U$16:$U$43,MATCH($B140,'Damage costs'!$C$16:$C$43,0))/1000,Y55*INDEX('Damage costs'!$Y$16:$Y$43,MATCH($B140,'Damage costs'!$C$16:$C$43,0))/1000),\"\")","v":""},{"$f":"IFERROR(IF(OR($C$144=FALSE,LEFT($B140,3)<>\"NOX\"),Z55*INDEX('Damage costs'!$U$16:$U$43,MATCH($B140,'Damage costs'!$C$16:$C$43,0))/1000,Z55*INDEX('Damage costs'!$Y$16:$Y$43,MATCH($B140,'Damage costs'!$C$16:$C$43,0))/1000),\"\")","v":""},{"$f":"IFERROR(IF(OR($C$144=FALSE,LEFT($B140,3)<>\"NOX\"),AA55*INDEX('Damage costs'!$U$16:$U$43,MATCH($B140,'Damage costs'!$C$16:$C$43,0))/1000,AA55*INDEX('Damage costs'!$Y$16:$Y$43,MATCH($B140,'Damage costs'!$C$16:$C$43,0))/1000),\"\")","v":""},{"$f":"IFERROR(IF(OR($C$144=FALSE,LEFT($B140,3)<>\"NOX\"),AB55*INDEX('Damage costs'!$U$16:$U$43,MATCH($B140,'Damage costs'!$C$16:$C$43,0))/1000,AB55*INDEX('Damage costs'!$Y$16:$Y$43,MATCH($B140,'Damage costs'!$C$16:$C$43,0))/1000),\"\")","v":""},{"$f":"IFERROR(IF(OR($C$144=FALSE,LEFT($B140,3)<>\"NOX\"),AC55*INDEX('Damage costs'!$U$16:$U$43,MATCH($B140,'Damage costs'!$C$16:$C$43,0))/1000,AC55*INDEX('Damage costs'!$Y$16:$Y$43,MATCH($B140,'Damage costs'!$C$16:$C$43,0))/1000),\"\")","v":""},{"$f":"IFERROR(IF(OR($C$144=FALSE,LEFT($B140,3)<>\"NOX\"),AD55*INDEX('Damage costs'!$U$16:$U$43,MATCH($B140,'Damage costs'!$C$16:$C$43,0))/1000,AD55*INDEX('Damage costs'!$Y$16:$Y$43,MATCH($B140,'Damage costs'!$C$16:$C$43,0))/1000),\"\")","v":""},{"$f":"IFERROR(IF(OR($C$144=FALSE,LEFT($B140,3)<>\"NOX\"),AE55*INDEX('Damage costs'!$U$16:$U$43,MATCH($B140,'Damage costs'!$C$16:$C$43,0))/1000,AE55*INDEX('Damage costs'!$Y$16:$Y$43,MATCH($B140,'Damage costs'!$C$16:$C$43,0))/1000),\"\")","v":""},{"$f":"IFERROR(IF(OR($C$144=FALSE,LEFT($B140,3)<>\"NOX\"),AF55*INDEX('Damage costs'!$U$16:$U$43,MATCH($B140,'Damage costs'!$C$16:$C$43,0))/1000,AF55*INDEX('Damage costs'!$Y$16:$Y$43,MATCH($B140,'Damage costs'!$C$16:$C$43,0))/1000),\"\")","v":""},{"$f":"IFERROR(IF(OR($C$144=FALSE,LEFT($B140,3)<>\"NOX\"),AG55*INDEX('Damage costs'!$U$16:$U$43,MATCH($B140,'Damage costs'!$C$16:$C$43,0))/1000,AG55*INDEX('Damage costs'!$Y$16:$Y$43,MATCH($B140,'Damage costs'!$C$16:$C$43,0))/1000),\"\")","v":""},{"$f":"IFERROR(IF(OR($C$144=FALSE,LEFT($B140,3)<>\"NOX\"),AH55*INDEX('Damage costs'!$U$16:$U$43,MATCH($B140,'Damage costs'!$C$16:$C$43,0))/1000,AH55*INDEX('Damage costs'!$Y$16:$Y$43,MATCH($B140,'Damage costs'!$C$16:$C$43,0))/1000),\"\")","v":""},{"$f":"IFERROR(IF(OR($C$144=FALSE,LEFT($B140,3)<>\"NOX\"),AI55*INDEX('Damage costs'!$U$16:$U$43,MATCH($B140,'Damage costs'!$C$16:$C$43,0))/1000,AI55*INDEX('Damage costs'!$Y$16:$Y$43,MATCH($B140,'Damage costs'!$C$16:$C$43,0))/1000),\"\")","v":""},{"$f":"IFERROR(IF(OR($C$144=FALSE,LEFT($B140,3)<>\"NOX\"),AJ55*INDEX('Damage costs'!$U$16:$U$43,MATCH($B140,'Damage costs'!$C$16:$C$43,0))/1000,AJ55*INDEX('Damage costs'!$Y$16:$Y$43,MATCH($B140,'Damage costs'!$C$16:$C$43,0))/1000),\"\")","v":""},{"$f":"IFERROR(IF(OR($C$144=FALSE,LEFT($B140,3)<>\"NOX\"),AK55*INDEX('Damage costs'!$U$16:$U$43,MATCH($B140,'Damage costs'!$C$16:$C$43,0))/1000,AK55*INDEX('Damage costs'!$Y$16:$Y$43,MATCH($B140,'Damage costs'!$C$16:$C$43,0))/1000),\"\")","v":""},{"$f":"IFERROR(IF(OR($C$144=FALSE,LEFT($B140,3)<>\"NOX\"),AL55*INDEX('Damage costs'!$U$16:$U$43,MATCH($B140,'Damage costs'!$C$16:$C$43,0))/1000,AL55*INDEX('Damage costs'!$Y$16:$Y$43,MATCH($B140,'Damage costs'!$C$16:$C$43,0))/1000),\"\")","v":""},{"$f":"IFERROR(IF(OR($C$144=FALSE,LEFT($B140,3)<>\"NOX\"),AM55*INDEX('Damage costs'!$U$16:$U$43,MATCH($B140,'Damage costs'!$C$16:$C$43,0))/1000,AM55*INDEX('Damage costs'!$Y$16:$Y$43,MATCH($B140,'Damage costs'!$C$16:$C$43,0))/1000),\"\")","v":""},{"$f":"IFERROR(IF(OR($C$144=FALSE,LEFT($B140,3)<>\"NOX\"),AN55*INDEX('Damage costs'!$U$16:$U$43,MATCH($B140,'Damage costs'!$C$16:$C$43,0))/1000,AN55*INDEX('Damage costs'!$Y$16:$Y$43,MATCH($B140,'Damage costs'!$C$16:$C$43,0))/1000),\"\")","v":""},{"$f":"IFERROR(IF(OR($C$144=FALSE,LEFT($B140,3)<>\"NOX\"),AO55*INDEX('Damage costs'!$U$16:$U$43,MATCH($B140,'Damage costs'!$C$16:$C$43,0))/1000,AO55*INDEX('Damage costs'!$Y$16:$Y$43,MATCH($B140,'Damage costs'!$C$16:$C$43,0))/1000),\"\")","v":""},{"$f":"IFERROR(IF(OR($C$144=FALSE,LEFT($B140,3)<>\"NOX\"),AP55*INDEX('Damage costs'!$U$16:$U$43,MATCH($B140,'Damage costs'!$C$16:$C$43,0))/1000,AP55*INDEX('Damage costs'!$Y$16:$Y$43,MATCH($B140,'Damage costs'!$C$16:$C$43,0))/1000),\"\")","v":""},{"$f":"IFERROR(IF(OR($C$144=FALSE,LEFT($B140,3)<>\"NOX\"),AQ55*INDEX('Damage costs'!$U$16:$U$43,MATCH($B140,'Damage costs'!$C$16:$C$43,0))/1000,AQ55*INDEX('Damage costs'!$Y$16:$Y$43,MATCH($B140,'Damage costs'!$C$16:$C$43,0))/1000),\"\")","v":""},{"$f":"IFERROR(IF(OR($C$144=FALSE,LEFT($B140,3)<>\"NOX\"),AR55*INDEX('Damage costs'!$U$16:$U$43,MATCH($B140,'Damage costs'!$C$16:$C$43,0))/1000,AR55*INDEX('Damage costs'!$Y$16:$Y$43,MATCH($B140,'Damage costs'!$C$16:$C$43,0))/1000),\"\")","v":""},{"$f":"IFERROR(IF(OR($C$144=FALSE,LEFT($B140,3)<>\"NOX\"),AS55*INDEX('Damage costs'!$U$16:$U$43,MATCH($B140,'Damage costs'!$C$16:$C$43,0))/1000,AS55*INDEX('Damage costs'!$Y$16:$Y$43,MATCH($B140,'Damage costs'!$C$16:$C$43,0))/1000),\"\")","v":""},{"$f":"IFERROR(IF(OR($C$144=FALSE,LEFT($B140,3)<>\"NOX\"),AT55*INDEX('Damage costs'!$U$16:$U$43,MATCH($B140,'Damage costs'!$C$16:$C$43,0))/1000,AT55*INDEX('Damage costs'!$Y$16:$Y$43,MATCH($B140,'Damage costs'!$C$16:$C$43,0))/1000),\"\")","v":""},{"$f":"IFERROR(IF(OR($C$144=FALSE,LEFT($B140,3)<>\"NOX\"),AU55*INDEX('Damage costs'!$U$16:$U$43,MATCH($B140,'Damage costs'!$C$16:$C$43,0))/1000,AU55*INDEX('Damage costs'!$Y$16:$Y$43,MATCH($B140,'Damage costs'!$C$16:$C$43,0))/1000),\"\")","v":""},{"$f":"IFERROR(IF(OR($C$144=FALSE,LEFT($B140,3)<>\"NOX\"),AV55*INDEX('Damage costs'!$U$16:$U$43,MATCH($B140,'Damage costs'!$C$16:$C$43,0))/1000,AV55*INDEX('Damage costs'!$Y$16:$Y$43,MATCH($B140,'Damage costs'!$C$16:$C$43,0))/1000),\"\")","v":""},{"$f":"IFERROR(IF(OR($C$144=FALSE,LEFT($B140,3)<>\"NOX\"),AW55*INDEX('Damage costs'!$U$16:$U$43,MATCH($B140,'Damage costs'!$C$16:$C$43,0))/1000,AW55*INDEX('Damage costs'!$Y$16:$Y$43,MATCH($B140,'Damage costs'!$C$16:$C$43,0))/1000),\"\")","v":""},{"$f":"IFERROR(IF(OR($C$144=FALSE,LEFT($B140,3)<>\"NOX\"),AX55*INDEX('Damage costs'!$U$16:$U$43,MATCH($B140,'Damage costs'!$C$16:$C$43,0))/1000,AX55*INDEX('Damage costs'!$Y$16:$Y$43,MATCH($B140,'Damage costs'!$C$16:$C$43,0))/1000),\"\")","v":""},{"$f":"IFERROR(IF(OR($C$144=FALSE,LEFT($B140,3)<>\"NOX\"),AY55*INDEX('Damage costs'!$U$16:$U$43,MATCH($B140,'Damage costs'!$C$16:$C$43,0))/1000,AY55*INDEX('Damage costs'!$Y$16:$Y$43,MATCH($B140,'Damage costs'!$C$16:$C$43,0))/1000),\"\")","v":""},{"$f":"IFERROR(IF(OR($C$144=FALSE,LEFT($B140,3)<>\"NOX\"),AZ55*INDEX('Damage costs'!$U$16:$U$43,MATCH($B140,'Damage costs'!$C$16:$C$43,0))/1000,AZ55*INDEX('Damage costs'!$Y$16:$Y$43,MATCH($B140,'Damage costs'!$C$16:$C$43,0))/1000),\"\")","v":""},{"$f":"IFERROR(IF(OR($C$144=FALSE,LEFT($B140,3)<>\"NOX\"),BA55*INDEX('Damage costs'!$U$16:$U$43,MATCH($B140,'Damage costs'!$C$16:$C$43,0))/1000,BA55*INDEX('Damage costs'!$Y$16:$Y$43,MATCH($B140,'Damage costs'!$C$16:$C$43,0))/1000),\"\")","v":""},{"$f":"IFERROR(IF(OR($C$144=FALSE,LEFT($B140,3)<>\"NOX\"),BB55*INDEX('Damage costs'!$U$16:$U$43,MATCH($B140,'Damage costs'!$C$16:$C$43,0))/1000,BB55*INDEX('Damage costs'!$Y$16:$Y$43,MATCH($B140,'Damage costs'!$C$16:$C$43,0))/1000),\"\")","v":""},{"$f":"IFERROR(IF(OR($C$144=FALSE,LEFT($B140,3)<>\"NOX\"),BC55*INDEX('Damage costs'!$U$16:$U$43,MATCH($B140,'Damage costs'!$C$16:$C$43,0))/1000,BC55*INDEX('Damage costs'!$Y$16:$Y$43,MATCH($B140,'Damage costs'!$C$16:$C$43,0))/1000),\"\")","v":""},{"$f":"IFERROR(IF(OR($C$144=FALSE,LEFT($B140,3)<>\"NOX\"),BD55*INDEX('Damage costs'!$U$16:$U$43,MATCH($B140,'Damage costs'!$C$16:$C$43,0))/1000,BD55*INDEX('Damage costs'!$Y$16:$Y$43,MATCH($B140,'Damage costs'!$C$16:$C$43,0))/1000),\"\")","v":""},{"$f":"IFERROR(IF(OR($C$144=FALSE,LEFT($B140,3)<>\"NOX\"),BE55*INDEX('Damage costs'!$U$16:$U$43,MATCH($B140,'Damage costs'!$C$16:$C$43,0))/1000,BE55*INDEX('Damage costs'!$Y$16:$Y$43,MATCH($B140,'Damage costs'!$C$16:$C$43,0))/1000),\"\")","v":""},{"$f":"IFERROR(IF(OR($C$144=FALSE,LEFT($B140,3)<>\"NOX\"),BF55*INDEX('Damage costs'!$U$16:$U$43,MATCH($B140,'Damage costs'!$C$16:$C$43,0))/1000,BF55*INDEX('Damage costs'!$Y$16:$Y$43,MATCH($B140,'Damage costs'!$C$16:$C$43,0))/1000),\"\")","v":""},{"$f":"IFERROR(IF(OR($C$144=FALSE,LEFT($B140,3)<>\"NOX\"),BG55*INDEX('Damage costs'!$U$16:$U$43,MATCH($B140,'Damage costs'!$C$16:$C$43,0))/1000,BG55*INDEX('Damage costs'!$Y$16:$Y$43,MATCH($B140,'Damage costs'!$C$16:$C$43,0))/1000),\"\")","v":""},{"$f":"IFERROR(IF(OR($C$144=FALSE,LEFT($B140,3)<>\"NOX\"),BH55*INDEX('Damage costs'!$U$16:$U$43,MATCH($B140,'Damage costs'!$C$16:$C$43,0))/1000,BH55*INDEX('Damage costs'!$Y$16:$Y$43,MATCH($B140,'Damage costs'!$C$16:$C$43,0))/1000),\"\")","v":""},{"$f":"IFERROR(IF(OR($C$144=FALSE,LEFT($B140,3)<>\"NOX\"),BI55*INDEX('Damage costs'!$U$16:$U$43,MATCH($B140,'Damage costs'!$C$16:$C$43,0))/1000,BI55*INDEX('Damage costs'!$Y$16:$Y$43,MATCH($B140,'Damage costs'!$C$16:$C$43,0))/1000),\"\")","v":""},{"$f":"IFERROR(IF(OR($C$144=FALSE,LEFT($B140,3)<>\"NOX\"),BJ55*INDEX('Damage costs'!$U$16:$U$43,MATCH($B140,'Damage costs'!$C$16:$C$43,0))/1000,BJ55*INDEX('Damage costs'!$Y$16:$Y$43,MATCH($B140,'Damage costs'!$C$16:$C$43,0))/1000),\"\")","v":""},{"$f":"IFERROR(IF(OR($C$144=FALSE,LEFT($B140,3)<>\"NOX\"),BK55*INDEX('Damage costs'!$U$16:$U$43,MATCH($B140,'Damage costs'!$C$16:$C$43,0))/1000,BK55*INDEX('Damage costs'!$Y$16:$Y$43,MATCH($B140,'Damage costs'!$C$16:$C$43,0))/1000),\"\")","v":""},{"$f":"IFERROR(IF(OR($C$144=FALSE,LEFT($B140,3)<>\"NOX\"),BL55*INDEX('Damage costs'!$U$16:$U$43,MATCH($B140,'Damage costs'!$C$16:$C$43,0))/1000,BL55*INDEX('Damage costs'!$Y$16:$Y$43,MATCH($B140,'Damage costs'!$C$16:$C$43,0))/1000),\"\")","v":""},{"$f":"IFERROR(IF(OR($C$144=FALSE,LEFT($B140,3)<>\"NOX\"),BM55*INDEX('Damage costs'!$U$16:$U$43,MATCH($B140,'Damage costs'!$C$16:$C$43,0))/1000,BM55*INDEX('Damage costs'!$Y$16:$Y$43,MATCH($B140,'Damage costs'!$C$16:$C$43,0))/1000),\"\")","v":""},{"$f":"IFERROR(IF(OR($C$144=FALSE,LEFT($B140,3)<>\"NOX\"),BN55*INDEX('Damage costs'!$U$16:$U$43,MATCH($B140,'Damage costs'!$C$16:$C$43,0))/1000,BN55*INDEX('Damage costs'!$Y$16:$Y$43,MATCH($B140,'Damage costs'!$C$16:$C$43,0))/1000),\"\")","v":""},{"$f":"IFERROR(IF(OR($C$144=FALSE,LEFT($B140,3)<>\"NOX\"),BO55*INDEX('Damage costs'!$U$16:$U$43,MATCH($B140,'Damage costs'!$C$16:$C$43,0))/1000,BO55*INDEX('Damage costs'!$Y$16:$Y$43,MATCH($B140,'Damage costs'!$C$16:$C$43,0))/1000),\"\")","v":""},{"$f":"IFERROR(IF(OR($C$144=FALSE,LEFT($B140,3)<>\"NOX\"),BP55*INDEX('Damage costs'!$U$16:$U$43,MATCH($B140,'Damage costs'!$C$16:$C$43,0))/1000,BP55*INDEX('Damage costs'!$Y$16:$Y$43,MATCH($B140,'Damage costs'!$C$16:$C$43,0))/1000),\"\")","v":""},{"$f":"IFERROR(IF(OR($C$144=FALSE,LEFT($B140,3)<>\"NOX\"),BQ55*INDEX('Damage costs'!$U$16:$U$43,MATCH($B140,'Damage costs'!$C$16:$C$43,0))/1000,BQ55*INDEX('Damage costs'!$Y$16:$Y$43,MATCH($B140,'Damage costs'!$C$16:$C$43,0))/1000),\"\")","v":""},{"$f":"IFERROR(IF(OR($C$144=FALSE,LEFT($B140,3)<>\"NOX\"),BR55*INDEX('Damage costs'!$U$16:$U$43,MATCH($B140,'Damage costs'!$C$16:$C$43,0))/1000,BR55*INDEX('Damage costs'!$Y$16:$Y$43,MATCH($B140,'Damage costs'!$C$16:$C$43,0))/1000),\"\")","v":""},{"$f":"IFERROR(IF(OR($C$144=FALSE,LEFT($B140,3)<>\"NOX\"),BS55*INDEX('Damage costs'!$U$16:$U$43,MATCH($B140,'Damage costs'!$C$16:$C$43,0))/1000,BS55*INDEX('Damage costs'!$Y$16:$Y$43,MATCH($B140,'Damage costs'!$C$16:$C$43,0))/1000),\"\")","v":""},{"$f":"IFERROR(IF(OR($C$144=FALSE,LEFT($B140,3)<>\"NOX\"),BT55*INDEX('Damage costs'!$U$16:$U$43,MATCH($B140,'Damage costs'!$C$16:$C$43,0))/1000,BT55*INDEX('Damage costs'!$Y$16:$Y$43,MATCH($B140,'Damage costs'!$C$16:$C$43,0))/1000),\"\")","v":""},{"$f":"IFERROR(IF(OR($C$144=FALSE,LEFT($B140,3)<>\"NOX\"),BU55*INDEX('Damage costs'!$U$16:$U$43,MATCH($B140,'Damage costs'!$C$16:$C$43,0))/1000,BU55*INDEX('Damage costs'!$Y$16:$Y$43,MATCH($B140,'Damage costs'!$C$16:$C$43,0))/1000),\"\")","v":""},{"$f":"IFERROR(IF(OR($C$144=FALSE,LEFT($B140,3)<>\"NOX\"),BV55*INDEX('Damage costs'!$U$16:$U$43,MATCH($B140,'Damage costs'!$C$16:$C$43,0))/1000,BV55*INDEX('Damage costs'!$Y$16:$Y$43,MATCH($B140,'Damage costs'!$C$16:$C$43,0))/1000),\"\")","v":""},{"$f":"IFERROR(IF(OR($C$144=FALSE,LEFT($B140,3)<>\"NOX\"),BW55*INDEX('Damage costs'!$U$16:$U$43,MATCH($B140,'Damage costs'!$C$16:$C$43,0))/1000,BW55*INDEX('Damage costs'!$Y$16:$Y$43,MATCH($B140,'Damage costs'!$C$16:$C$43,0))/1000),\"\")","v":""},{"$f":"IFERROR(IF(OR($C$144=FALSE,LEFT($B140,3)<>\"NOX\"),BX55*INDEX('Damage costs'!$U$16:$U$43,MATCH($B140,'Damage costs'!$C$16:$C$43,0))/1000,BX55*INDEX('Damage costs'!$Y$16:$Y$43,MATCH($B140,'Damage costs'!$C$16:$C$43,0))/1000),\"\")","v":""},{"$f":"IFERROR(IF(OR($C$144=FALSE,LEFT($B140,3)<>\"NOX\"),BY55*INDEX('Damage costs'!$U$16:$U$43,MATCH($B140,'Damage costs'!$C$16:$C$43,0))/1000,BY55*INDEX('Damage costs'!$Y$16:$Y$43,MATCH($B140,'Damage costs'!$C$16:$C$43,0))/1000),\"\")","v":""},{"$f":"IFERROR(IF(OR($C$144=FALSE,LEFT($B140,3)<>\"NOX\"),BZ55*INDEX('Damage costs'!$U$16:$U$43,MATCH($B140,'Damage costs'!$C$16:$C$43,0))/1000,BZ55*INDEX('Damage costs'!$Y$16:$Y$43,MATCH($B140,'Damage costs'!$C$16:$C$43,0))/1000),\"\")","v":""},{"$f":"IFERROR(IF(OR($C$144=FALSE,LEFT($B140,3)<>\"NOX\"),CA55*INDEX('Damage costs'!$U$16:$U$43,MATCH($B140,'Damage costs'!$C$16:$C$43,0))/1000,CA55*INDEX('Damage costs'!$Y$16:$Y$43,MATCH($B140,'Damage costs'!$C$16:$C$43,0))/1000),\"\")","v":""},{"$f":"IFERROR(IF(OR($C$144=FALSE,LEFT($B140,3)<>\"NOX\"),CB55*INDEX('Damage costs'!$U$16:$U$43,MATCH($B140,'Damage costs'!$C$16:$C$43,0))/1000,CB55*INDEX('Damage costs'!$Y$16:$Y$43,MATCH($B140,'Damage costs'!$C$16:$C$43,0))/1000),\"\")","v":""},{"$f":"IFERROR(IF(OR($C$144=FALSE,LEFT($B140,3)<>\"NOX\"),CC55*INDEX('Damage costs'!$U$16:$U$43,MATCH($B140,'Damage costs'!$C$16:$C$43,0))/1000,CC55*INDEX('Damage costs'!$Y$16:$Y$43,MATCH($B140,'Damage costs'!$C$16:$C$43,0))/1000),\"\")","v":""},{"$f":"IFERROR(IF(OR($C$144=FALSE,LEFT($B140,3)<>\"NOX\"),CD55*INDEX('Damage costs'!$U$16:$U$43,MATCH($B140,'Damage costs'!$C$16:$C$43,0))/1000,CD55*INDEX('Damage costs'!$Y$16:$Y$43,MATCH($B140,'Damage costs'!$C$16:$C$43,0))/1000),\"\")","v":""},{"$f":"IFERROR(IF(OR($C$144=FALSE,LEFT($B140,3)<>\"NOX\"),CE55*INDEX('Damage costs'!$U$16:$U$43,MATCH($B140,'Damage costs'!$C$16:$C$43,0))/1000,CE55*INDEX('Damage costs'!$Y$16:$Y$43,MATCH($B140,'Damage costs'!$C$16:$C$43,0))/1000),\"\")","v":""},{"$f":"IFERROR(IF(OR($C$144=FALSE,LEFT($B140,3)<>\"NOX\"),CF55*INDEX('Damage costs'!$U$16:$U$43,MATCH($B140,'Damage costs'!$C$16:$C$43,0))/1000,CF55*INDEX('Damage costs'!$Y$16:$Y$43,MATCH($B140,'Damage costs'!$C$16:$C$43,0))/1000),\"\")","v":""},{"$f":"IFERROR(IF(OR($C$144=FALSE,LEFT($B140,3)<>\"NOX\"),CG55*INDEX('Damage costs'!$U$16:$U$43,MATCH($B140,'Damage costs'!$C$16:$C$43,0))/1000,CG55*INDEX('Damage costs'!$Y$16:$Y$43,MATCH($B140,'Damage costs'!$C$16:$C$43,0))/1000),\"\")","v":""},{"$f":"IFERROR(IF(OR($C$144=FALSE,LEFT($B140,3)<>\"NOX\"),CH55*INDEX('Damage costs'!$U$16:$U$43,MATCH($B140,'Damage costs'!$C$16:$C$43,0))/1000,CH55*INDEX('Damage costs'!$Y$16:$Y$43,MATCH($B140,'Damage costs'!$C$16:$C$43,0))/1000),\"\")","v":""},{"$f":"IFERROR(IF(OR($C$144=FALSE,LEFT($B140,3)<>\"NOX\"),CI55*INDEX('Damage costs'!$U$16:$U$43,MATCH($B140,'Damage costs'!$C$16:$C$43,0))/1000,CI55*INDEX('Damage costs'!$Y$16:$Y$43,MATCH($B140,'Damage costs'!$C$16:$C$43,0))/1000),\"\")","v":""},{"$f":"IFERROR(IF(OR($C$144=FALSE,LEFT($B140,3)<>\"NOX\"),CJ55*INDEX('Damage costs'!$U$16:$U$43,MATCH($B140,'Damage costs'!$C$16:$C$43,0))/1000,CJ55*INDEX('Damage costs'!$Y$16:$Y$43,MATCH($B140,'Damage costs'!$C$16:$C$43,0))/1000),\"\")","v":""},{"$f":"IFERROR(IF(OR($C$144=FALSE,LEFT($B140,3)<>\"NOX\"),CK55*INDEX('Damage costs'!$U$16:$U$43,MATCH($B140,'Damage costs'!$C$16:$C$43,0))/1000,CK55*INDEX('Damage costs'!$Y$16:$Y$43,MATCH($B140,'Damage costs'!$C$16:$C$43,0))/1000),\"\")","v":""},{"$f":"IFERROR(IF(OR($C$144=FALSE,LEFT($B140,3)<>\"NOX\"),CL55*INDEX('Damage costs'!$U$16:$U$43,MATCH($B140,'Damage costs'!$C$16:$C$43,0))/1000,CL55*INDEX('Damage costs'!$Y$16:$Y$43,MATCH($B140,'Damage costs'!$C$16:$C$43,0))/1000),\"\")","v":""},{"$f":"IFERROR(IF(OR($C$144=FALSE,LEFT($B140,3)<>\"NOX\"),CM55*INDEX('Damage costs'!$U$16:$U$43,MATCH($B140,'Damage costs'!$C$16:$C$43,0))/1000,CM55*INDEX('Damage costs'!$Y$16:$Y$43,MATCH($B140,'Damage costs'!$C$16:$C$43,0))/1000),\"\")","v":""},{"$f":"IFERROR(IF(OR($C$144=FALSE,LEFT($B140,3)<>\"NOX\"),CN55*INDEX('Damage costs'!$U$16:$U$43,MATCH($B140,'Damage costs'!$C$16:$C$43,0))/1000,CN55*INDEX('Damage costs'!$Y$16:$Y$43,MATCH($B140,'Damage costs'!$C$16:$C$43,0))/1000),\"\")","v":""},{"$f":"IFERROR(IF(OR($C$144=FALSE,LEFT($B140,3)<>\"NOX\"),CO55*INDEX('Damage costs'!$U$16:$U$43,MATCH($B140,'Damage costs'!$C$16:$C$43,0))/1000,CO55*INDEX('Damage costs'!$Y$16:$Y$43,MATCH($B140,'Damage costs'!$C$16:$C$43,0))/1000),\"\")","v":""},{"$f":"IFERROR(IF(OR($C$144=FALSE,LEFT($B140,3)<>\"NOX\"),CP55*INDEX('Damage costs'!$U$16:$U$43,MATCH($B140,'Damage costs'!$C$16:$C$43,0))/1000,CP55*INDEX('Damage costs'!$Y$16:$Y$43,MATCH($B140,'Damage costs'!$C$16:$C$43,0))/1000),\"\")","v":""},{"$f":"IFERROR(IF(OR($C$144=FALSE,LEFT($B140,3)<>\"NOX\"),CQ55*INDEX('Damage costs'!$U$16:$U$43,MATCH($B140,'Damage costs'!$C$16:$C$43,0))/1000,CQ55*INDEX('Damage costs'!$Y$16:$Y$43,MATCH($B140,'Damage costs'!$C$16:$C$43,0))/1000),\"\")","v":""},{"$f":"IFERROR(IF(OR($C$144=FALSE,LEFT($B140,3)<>\"NOX\"),CR55*INDEX('Damage costs'!$U$16:$U$43,MATCH($B140,'Damage costs'!$C$16:$C$43,0))/1000,CR55*INDEX('Damage costs'!$Y$16:$Y$43,MATCH($B140,'Damage costs'!$C$16:$C$43,0))/1000),\"\")","v":""},{"$f":"IFERROR(IF(OR($C$144=FALSE,LEFT($B140,3)<>\"NOX\"),CS55*INDEX('Damage costs'!$U$16:$U$43,MATCH($B140,'Damage costs'!$C$16:$C$43,0))/1000,CS55*INDEX('Damage costs'!$Y$16:$Y$43,MATCH($B140,'Damage costs'!$C$16:$C$43,0))/1000),\"\")","v":""},{"$f":"IFERROR(IF(OR($C$144=FALSE,LEFT($B140,3)<>\"NOX\"),CT55*INDEX('Damage costs'!$U$16:$U$43,MATCH($B140,'Damage costs'!$C$16:$C$43,0))/1000,CT55*INDEX('Damage costs'!$Y$16:$Y$43,MATCH($B140,'Damage costs'!$C$16:$C$43,0))/1000),\"\")","v":""},{"$f":"IFERROR(IF(OR($C$144=FALSE,LEFT($B140,3)<>\"NOX\"),CU55*INDEX('Damage costs'!$U$16:$U$43,MATCH($B140,'Damage costs'!$C$16:$C$43,0))/1000,CU55*INDEX('Damage costs'!$Y$16:$Y$43,MATCH($B140,'Damage costs'!$C$16:$C$43,0))/1000),\"\")","v":""},{"$f":"IFERROR(IF(OR($C$144=FALSE,LEFT($B140,3)<>\"NOX\"),CV55*INDEX('Damage costs'!$U$16:$U$43,MATCH($B140,'Damage costs'!$C$16:$C$43,0))/1000,CV55*INDEX('Damage costs'!$Y$16:$Y$43,MATCH($B140,'Damage costs'!$C$16:$C$43,0))/1000),\"\")","v":""},{"$f":"IFERROR(IF(OR($C$144=FALSE,LEFT($B140,3)<>\"NOX\"),CW55*INDEX('Damage costs'!$U$16:$U$43,MATCH($B140,'Damage costs'!$C$16:$C$43,0))/1000,CW55*INDEX('Damage costs'!$Y$16:$Y$43,MATCH($B140,'Damage costs'!$C$16:$C$43,0))/1000),\"\")","v":""},{"$f":"IFERROR(IF(OR($C$144=FALSE,LEFT($B140,3)<>\"NOX\"),CX55*INDEX('Damage costs'!$U$16:$U$43,MATCH($B140,'Damage costs'!$C$16:$C$43,0))/1000,CX55*INDEX('Damage costs'!$Y$16:$Y$43,MATCH($B140,'Damage costs'!$C$16:$C$43,0))/1000),\"\")","v":""},{"$f":"IFERROR(IF(OR($C$144=FALSE,LEFT($B140,3)<>\"NOX\"),CY55*INDEX('Damage costs'!$U$16:$U$43,MATCH($B140,'Damage costs'!$C$16:$C$43,0))/1000,CY55*INDEX('Damage costs'!$Y$16:$Y$43,MATCH($B140,'Damage costs'!$C$16:$C$43,0))/1000),\"\")","v":""}]
[null,0,"£000's",{"$f":"IFERROR(IF(OR($C$144=FALSE,LEFT($B141,3)<>\"NOX\"),D56*INDEX('Damage costs'!$U$16:$U$43,MATCH($B141,'Damage costs'!$C$16:$C$43,0))/1000,D56*INDEX('Damage costs'!$Y$16:$Y$43,MATCH($B141,'Damage costs'!$C$16:$C$43,0))/1000),\"\")","v":""},{"$f":"IFERROR(IF(OR($C$144=FALSE,LEFT($B141,3)<>\"NOX\"),E56*INDEX('Damage costs'!$U$16:$U$43,MATCH($B141,'Damage costs'!$C$16:$C$43,0))/1000,E56*INDEX('Damage costs'!$Y$16:$Y$43,MATCH($B141,'Damage costs'!$C$16:$C$43,0))/1000),\"\")","v":""},{"$f":"IFERROR(IF(OR($C$144=FALSE,LEFT($B141,3)<>\"NOX\"),F56*INDEX('Damage costs'!$U$16:$U$43,MATCH($B141,'Damage costs'!$C$16:$C$43,0))/1000,F56*INDEX('Damage costs'!$Y$16:$Y$43,MATCH($B141,'Damage costs'!$C$16:$C$43,0))/1000),\"\")","v":""},{"$f":"IFERROR(IF(OR($C$144=FALSE,LEFT($B141,3)<>\"NOX\"),G56*INDEX('Damage costs'!$U$16:$U$43,MATCH($B141,'Damage costs'!$C$16:$C$43,0))/1000,G56*INDEX('Damage costs'!$Y$16:$Y$43,MATCH($B141,'Damage costs'!$C$16:$C$43,0))/1000),\"\")","v":""},{"$f":"IFERROR(IF(OR($C$144=FALSE,LEFT($B141,3)<>\"NOX\"),H56*INDEX('Damage costs'!$U$16:$U$43,MATCH($B141,'Damage costs'!$C$16:$C$43,0))/1000,H56*INDEX('Damage costs'!$Y$16:$Y$43,MATCH($B141,'Damage costs'!$C$16:$C$43,0))/1000),\"\")","v":""},{"$f":"IFERROR(IF(OR($C$144=FALSE,LEFT($B141,3)<>\"NOX\"),I56*INDEX('Damage costs'!$U$16:$U$43,MATCH($B141,'Damage costs'!$C$16:$C$43,0))/1000,I56*INDEX('Damage costs'!$Y$16:$Y$43,MATCH($B141,'Damage costs'!$C$16:$C$43,0))/1000),\"\")","v":""},{"$f":"IFERROR(IF(OR($C$144=FALSE,LEFT($B141,3)<>\"NOX\"),J56*INDEX('Damage costs'!$U$16:$U$43,MATCH($B141,'Damage costs'!$C$16:$C$43,0))/1000,J56*INDEX('Damage costs'!$Y$16:$Y$43,MATCH($B141,'Damage costs'!$C$16:$C$43,0))/1000),\"\")","v":""},{"$f":"IFERROR(IF(OR($C$144=FALSE,LEFT($B141,3)<>\"NOX\"),K56*INDEX('Damage costs'!$U$16:$U$43,MATCH($B141,'Damage costs'!$C$16:$C$43,0))/1000,K56*INDEX('Damage costs'!$Y$16:$Y$43,MATCH($B141,'Damage costs'!$C$16:$C$43,0))/1000),\"\")","v":""},{"$f":"IFERROR(IF(OR($C$144=FALSE,LEFT($B141,3)<>\"NOX\"),L56*INDEX('Damage costs'!$U$16:$U$43,MATCH($B141,'Damage costs'!$C$16:$C$43,0))/1000,L56*INDEX('Damage costs'!$Y$16:$Y$43,MATCH($B141,'Damage costs'!$C$16:$C$43,0))/1000),\"\")","v":""},{"$f":"IFERROR(IF(OR($C$144=FALSE,LEFT($B141,3)<>\"NOX\"),M56*INDEX('Damage costs'!$U$16:$U$43,MATCH($B141,'Damage costs'!$C$16:$C$43,0))/1000,M56*INDEX('Damage costs'!$Y$16:$Y$43,MATCH($B141,'Damage costs'!$C$16:$C$43,0))/1000),\"\")","v":""},{"$f":"IFERROR(IF(OR($C$144=FALSE,LEFT($B141,3)<>\"NOX\"),N56*INDEX('Damage costs'!$U$16:$U$43,MATCH($B141,'Damage costs'!$C$16:$C$43,0))/1000,N56*INDEX('Damage costs'!$Y$16:$Y$43,MATCH($B141,'Damage costs'!$C$16:$C$43,0))/1000),\"\")","v":""},{"$f":"IFERROR(IF(OR($C$144=FALSE,LEFT($B141,3)<>\"NOX\"),O56*INDEX('Damage costs'!$U$16:$U$43,MATCH($B141,'Damage costs'!$C$16:$C$43,0))/1000,O56*INDEX('Damage costs'!$Y$16:$Y$43,MATCH($B141,'Damage costs'!$C$16:$C$43,0))/1000),\"\")","v":""},{"$f":"IFERROR(IF(OR($C$144=FALSE,LEFT($B141,3)<>\"NOX\"),P56*INDEX('Damage costs'!$U$16:$U$43,MATCH($B141,'Damage costs'!$C$16:$C$43,0))/1000,P56*INDEX('Damage costs'!$Y$16:$Y$43,MATCH($B141,'Damage costs'!$C$16:$C$43,0))/1000),\"\")","v":""},{"$f":"IFERROR(IF(OR($C$144=FALSE,LEFT($B141,3)<>\"NOX\"),Q56*INDEX('Damage costs'!$U$16:$U$43,MATCH($B141,'Damage costs'!$C$16:$C$43,0))/1000,Q56*INDEX('Damage costs'!$Y$16:$Y$43,MATCH($B141,'Damage costs'!$C$16:$C$43,0))/1000),\"\")","v":""},{"$f":"IFERROR(IF(OR($C$144=FALSE,LEFT($B141,3)<>\"NOX\"),R56*INDEX('Damage costs'!$U$16:$U$43,MATCH($B141,'Damage costs'!$C$16:$C$43,0))/1000,R56*INDEX('Damage costs'!$Y$16:$Y$43,MATCH($B141,'Damage costs'!$C$16:$C$43,0))/1000),\"\")","v":""},{"$f":"IFERROR(IF(OR($C$144=FALSE,LEFT($B141,3)<>\"NOX\"),S56*INDEX('Damage costs'!$U$16:$U$43,MATCH($B141,'Damage costs'!$C$16:$C$43,0))/1000,S56*INDEX('Damage costs'!$Y$16:$Y$43,MATCH($B141,'Damage costs'!$C$16:$C$43,0))/1000),\"\")","v":""},{"$f":"IFERROR(IF(OR($C$144=FALSE,LEFT($B141,3)<>\"NOX\"),T56*INDEX('Damage costs'!$U$16:$U$43,MATCH($B141,'Damage costs'!$C$16:$C$43,0))/1000,T56*INDEX('Damage costs'!$Y$16:$Y$43,MATCH($B141,'Damage costs'!$C$16:$C$43,0))/1000),\"\")","v":""},{"$f":"IFERROR(IF(OR($C$144=FALSE,LEFT($B141,3)<>\"NOX\"),U56*INDEX('Damage costs'!$U$16:$U$43,MATCH($B141,'Damage costs'!$C$16:$C$43,0))/1000,U56*INDEX('Damage costs'!$Y$16:$Y$43,MATCH($B141,'Damage costs'!$C$16:$C$43,0))/1000),\"\")","v":""},{"$f":"IFERROR(IF(OR($C$144=FALSE,LEFT($B141,3)<>\"NOX\"),V56*INDEX('Damage costs'!$U$16:$U$43,MATCH($B141,'Damage costs'!$C$16:$C$43,0))/1000,V56*INDEX('Damage costs'!$Y$16:$Y$43,MATCH($B141,'Damage costs'!$C$16:$C$43,0))/1000),\"\")","v":""},{"$f":"IFERROR(IF(OR($C$144=FALSE,LEFT($B141,3)<>\"NOX\"),W56*INDEX('Damage costs'!$U$16:$U$43,MATCH($B141,'Damage costs'!$C$16:$C$43,0))/1000,W56*INDEX('Damage costs'!$Y$16:$Y$43,MATCH($B141,'Damage costs'!$C$16:$C$43,0))/1000),\"\")","v":""},{"$f":"IFERROR(IF(OR($C$144=FALSE,LEFT($B141,3)<>\"NOX\"),X56*INDEX('Damage costs'!$U$16:$U$43,MATCH($B141,'Damage costs'!$C$16:$C$43,0))/1000,X56*INDEX('Damage costs'!$Y$16:$Y$43,MATCH($B141,'Damage costs'!$C$16:$C$43,0))/1000),\"\")","v":""},{"$f":"IFERROR(IF(OR($C$144=FALSE,LEFT($B141,3)<>\"NOX\"),Y56*INDEX('Damage costs'!$U$16:$U$43,MATCH($B141,'Damage costs'!$C$16:$C$43,0))/1000,Y56*INDEX('Damage costs'!$Y$16:$Y$43,MATCH($B141,'Damage costs'!$C$16:$C$43,0))/1000),\"\")","v":""},{"$f":"IFERROR(IF(OR($C$144=FALSE,LEFT($B141,3)<>\"NOX\"),Z56*INDEX('Damage costs'!$U$16:$U$43,MATCH($B141,'Damage costs'!$C$16:$C$43,0))/1000,Z56*INDEX('Damage costs'!$Y$16:$Y$43,MATCH($B141,'Damage costs'!$C$16:$C$43,0))/1000),\"\")","v":""},{"$f":"IFERROR(IF(OR($C$144=FALSE,LEFT($B141,3)<>\"NOX\"),AA56*INDEX('Damage costs'!$U$16:$U$43,MATCH($B141,'Damage costs'!$C$16:$C$43,0))/1000,AA56*INDEX('Damage costs'!$Y$16:$Y$43,MATCH($B141,'Damage costs'!$C$16:$C$43,0))/1000),\"\")","v":""},{"$f":"IFERROR(IF(OR($C$144=FALSE,LEFT($B141,3)<>\"NOX\"),AB56*INDEX('Damage costs'!$U$16:$U$43,MATCH($B141,'Damage costs'!$C$16:$C$43,0))/1000,AB56*INDEX('Damage costs'!$Y$16:$Y$43,MATCH($B141,'Damage costs'!$C$16:$C$43,0))/1000),\"\")","v":""},{"$f":"IFERROR(IF(OR($C$144=FALSE,LEFT($B141,3)<>\"NOX\"),AC56*INDEX('Damage costs'!$U$16:$U$43,MATCH($B141,'Damage costs'!$C$16:$C$43,0))/1000,AC56*INDEX('Damage costs'!$Y$16:$Y$43,MATCH($B141,'Damage costs'!$C$16:$C$43,0))/1000),\"\")","v":""},{"$f":"IFERROR(IF(OR($C$144=FALSE,LEFT($B141,3)<>\"NOX\"),AD56*INDEX('Damage costs'!$U$16:$U$43,MATCH($B141,'Damage costs'!$C$16:$C$43,0))/1000,AD56*INDEX('Damage costs'!$Y$16:$Y$43,MATCH($B141,'Damage costs'!$C$16:$C$43,0))/1000),\"\")","v":""},{"$f":"IFERROR(IF(OR($C$144=FALSE,LEFT($B141,3)<>\"NOX\"),AE56*INDEX('Damage costs'!$U$16:$U$43,MATCH($B141,'Damage costs'!$C$16:$C$43,0))/1000,AE56*INDEX('Damage costs'!$Y$16:$Y$43,MATCH($B141,'Damage costs'!$C$16:$C$43,0))/1000),\"\")","v":""},{"$f":"IFERROR(IF(OR($C$144=FALSE,LEFT($B141,3)<>\"NOX\"),AF56*INDEX('Damage costs'!$U$16:$U$43,MATCH($B141,'Damage costs'!$C$16:$C$43,0))/1000,AF56*INDEX('Damage costs'!$Y$16:$Y$43,MATCH($B141,'Damage costs'!$C$16:$C$43,0))/1000),\"\")","v":""},{"$f":"IFERROR(IF(OR($C$144=FALSE,LEFT($B141,3)<>\"NOX\"),AG56*INDEX('Damage costs'!$U$16:$U$43,MATCH($B141,'Damage costs'!$C$16:$C$43,0))/1000,AG56*INDEX('Damage costs'!$Y$16:$Y$43,MATCH($B141,'Damage costs'!$C$16:$C$43,0))/1000),\"\")","v":""},{"$f":"IFERROR(IF(OR($C$144=FALSE,LEFT($B141,3)<>\"NOX\"),AH56*INDEX('Damage costs'!$U$16:$U$43,MATCH($B141,'Damage costs'!$C$16:$C$43,0))/1000,AH56*INDEX('Damage costs'!$Y$16:$Y$43,MATCH($B141,'Damage costs'!$C$16:$C$43,0))/1000),\"\")","v":""},{"$f":"IFERROR(IF(OR($C$144=FALSE,LEFT($B141,3)<>\"NOX\"),AI56*INDEX('Damage costs'!$U$16:$U$43,MATCH($B141,'Damage costs'!$C$16:$C$43,0))/1000,AI56*INDEX('Damage costs'!$Y$16:$Y$43,MATCH($B141,'Damage costs'!$C$16:$C$43,0))/1000),\"\")","v":""},{"$f":"IFERROR(IF(OR($C$144=FALSE,LEFT($B141,3)<>\"NOX\"),AJ56*INDEX('Damage costs'!$U$16:$U$43,MATCH($B141,'Damage costs'!$C$16:$C$43,0))/1000,AJ56*INDEX('Damage costs'!$Y$16:$Y$43,MATCH($B141,'Damage costs'!$C$16:$C$43,0))/1000),\"\")","v":""},{"$f":"IFERROR(IF(OR($C$144=FALSE,LEFT($B141,3)<>\"NOX\"),AK56*INDEX('Damage costs'!$U$16:$U$43,MATCH($B141,'Damage costs'!$C$16:$C$43,0))/1000,AK56*INDEX('Damage costs'!$Y$16:$Y$43,MATCH($B141,'Damage costs'!$C$16:$C$43,0))/1000),\"\")","v":""},{"$f":"IFERROR(IF(OR($C$144=FALSE,LEFT($B141,3)<>\"NOX\"),AL56*INDEX('Damage costs'!$U$16:$U$43,MATCH($B141,'Damage costs'!$C$16:$C$43,0))/1000,AL56*INDEX('Damage costs'!$Y$16:$Y$43,MATCH($B141,'Damage costs'!$C$16:$C$43,0))/1000),\"\")","v":""},{"$f":"IFERROR(IF(OR($C$144=FALSE,LEFT($B141,3)<>\"NOX\"),AM56*INDEX('Damage costs'!$U$16:$U$43,MATCH($B141,'Damage costs'!$C$16:$C$43,0))/1000,AM56*INDEX('Damage costs'!$Y$16:$Y$43,MATCH($B141,'Damage costs'!$C$16:$C$43,0))/1000),\"\")","v":""},{"$f":"IFERROR(IF(OR($C$144=FALSE,LEFT($B141,3)<>\"NOX\"),AN56*INDEX('Damage costs'!$U$16:$U$43,MATCH($B141,'Damage costs'!$C$16:$C$43,0))/1000,AN56*INDEX('Damage costs'!$Y$16:$Y$43,MATCH($B141,'Damage costs'!$C$16:$C$43,0))/1000),\"\")","v":""},{"$f":"IFERROR(IF(OR($C$144=FALSE,LEFT($B141,3)<>\"NOX\"),AO56*INDEX('Damage costs'!$U$16:$U$43,MATCH($B141,'Damage costs'!$C$16:$C$43,0))/1000,AO56*INDEX('Damage costs'!$Y$16:$Y$43,MATCH($B141,'Damage costs'!$C$16:$C$43,0))/1000),\"\")","v":""},{"$f":"IFERROR(IF(OR($C$144=FALSE,LEFT($B141,3)<>\"NOX\"),AP56*INDEX('Damage costs'!$U$16:$U$43,MATCH($B141,'Damage costs'!$C$16:$C$43,0))/1000,AP56*INDEX('Damage costs'!$Y$16:$Y$43,MATCH($B141,'Damage costs'!$C$16:$C$43,0))/1000),\"\")","v":""},{"$f":"IFERROR(IF(OR($C$144=FALSE,LEFT($B141,3)<>\"NOX\"),AQ56*INDEX('Damage costs'!$U$16:$U$43,MATCH($B141,'Damage costs'!$C$16:$C$43,0))/1000,AQ56*INDEX('Damage costs'!$Y$16:$Y$43,MATCH($B141,'Damage costs'!$C$16:$C$43,0))/1000),\"\")","v":""},{"$f":"IFERROR(IF(OR($C$144=FALSE,LEFT($B141,3)<>\"NOX\"),AR56*INDEX('Damage costs'!$U$16:$U$43,MATCH($B141,'Damage costs'!$C$16:$C$43,0))/1000,AR56*INDEX('Damage costs'!$Y$16:$Y$43,MATCH($B141,'Damage costs'!$C$16:$C$43,0))/1000),\"\")","v":""},{"$f":"IFERROR(IF(OR($C$144=FALSE,LEFT($B141,3)<>\"NOX\"),AS56*INDEX('Damage costs'!$U$16:$U$43,MATCH($B141,'Damage costs'!$C$16:$C$43,0))/1000,AS56*INDEX('Damage costs'!$Y$16:$Y$43,MATCH($B141,'Damage costs'!$C$16:$C$43,0))/1000),\"\")","v":""},{"$f":"IFERROR(IF(OR($C$144=FALSE,LEFT($B141,3)<>\"NOX\"),AT56*INDEX('Damage costs'!$U$16:$U$43,MATCH($B141,'Damage costs'!$C$16:$C$43,0))/1000,AT56*INDEX('Damage costs'!$Y$16:$Y$43,MATCH($B141,'Damage costs'!$C$16:$C$43,0))/1000),\"\")","v":""},{"$f":"IFERROR(IF(OR($C$144=FALSE,LEFT($B141,3)<>\"NOX\"),AU56*INDEX('Damage costs'!$U$16:$U$43,MATCH($B141,'Damage costs'!$C$16:$C$43,0))/1000,AU56*INDEX('Damage costs'!$Y$16:$Y$43,MATCH($B141,'Damage costs'!$C$16:$C$43,0))/1000),\"\")","v":""},{"$f":"IFERROR(IF(OR($C$144=FALSE,LEFT($B141,3)<>\"NOX\"),AV56*INDEX('Damage costs'!$U$16:$U$43,MATCH($B141,'Damage costs'!$C$16:$C$43,0))/1000,AV56*INDEX('Damage costs'!$Y$16:$Y$43,MATCH($B141,'Damage costs'!$C$16:$C$43,0))/1000),\"\")","v":""},{"$f":"IFERROR(IF(OR($C$144=FALSE,LEFT($B141,3)<>\"NOX\"),AW56*INDEX('Damage costs'!$U$16:$U$43,MATCH($B141,'Damage costs'!$C$16:$C$43,0))/1000,AW56*INDEX('Damage costs'!$Y$16:$Y$43,MATCH($B141,'Damage costs'!$C$16:$C$43,0))/1000),\"\")","v":""},{"$f":"IFERROR(IF(OR($C$144=FALSE,LEFT($B141,3)<>\"NOX\"),AX56*INDEX('Damage costs'!$U$16:$U$43,MATCH($B141,'Damage costs'!$C$16:$C$43,0))/1000,AX56*INDEX('Damage costs'!$Y$16:$Y$43,MATCH($B141,'Damage costs'!$C$16:$C$43,0))/1000),\"\")","v":""},{"$f":"IFERROR(IF(OR($C$144=FALSE,LEFT($B141,3)<>\"NOX\"),AY56*INDEX('Damage costs'!$U$16:$U$43,MATCH($B141,'Damage costs'!$C$16:$C$43,0))/1000,AY56*INDEX('Damage costs'!$Y$16:$Y$43,MATCH($B141,'Damage costs'!$C$16:$C$43,0))/1000),\"\")","v":""},{"$f":"IFERROR(IF(OR($C$144=FALSE,LEFT($B141,3)<>\"NOX\"),AZ56*INDEX('Damage costs'!$U$16:$U$43,MATCH($B141,'Damage costs'!$C$16:$C$43,0))/1000,AZ56*INDEX('Damage costs'!$Y$16:$Y$43,MATCH($B141,'Damage costs'!$C$16:$C$43,0))/1000),\"\")","v":""},{"$f":"IFERROR(IF(OR($C$144=FALSE,LEFT($B141,3)<>\"NOX\"),BA56*INDEX('Damage costs'!$U$16:$U$43,MATCH($B141,'Damage costs'!$C$16:$C$43,0))/1000,BA56*INDEX('Damage costs'!$Y$16:$Y$43,MATCH($B141,'Damage costs'!$C$16:$C$43,0))/1000),\"\")","v":""},{"$f":"IFERROR(IF(OR($C$144=FALSE,LEFT($B141,3)<>\"NOX\"),BB56*INDEX('Damage costs'!$U$16:$U$43,MATCH($B141,'Damage costs'!$C$16:$C$43,0))/1000,BB56*INDEX('Damage costs'!$Y$16:$Y$43,MATCH($B141,'Damage costs'!$C$16:$C$43,0))/1000),\"\")","v":""},{"$f":"IFERROR(IF(OR($C$144=FALSE,LEFT($B141,3)<>\"NOX\"),BC56*INDEX('Damage costs'!$U$16:$U$43,MATCH($B141,'Damage costs'!$C$16:$C$43,0))/1000,BC56*INDEX('Damage costs'!$Y$16:$Y$43,MATCH($B141,'Damage costs'!$C$16:$C$43,0))/1000),\"\")","v":""},{"$f":"IFERROR(IF(OR($C$144=FALSE,LEFT($B141,3)<>\"NOX\"),BD56*INDEX('Damage costs'!$U$16:$U$43,MATCH($B141,'Damage costs'!$C$16:$C$43,0))/1000,BD56*INDEX('Damage costs'!$Y$16:$Y$43,MATCH($B141,'Damage costs'!$C$16:$C$43,0))/1000),\"\")","v":""},{"$f":"IFERROR(IF(OR($C$144=FALSE,LEFT($B141,3)<>\"NOX\"),BE56*INDEX('Damage costs'!$U$16:$U$43,MATCH($B141,'Damage costs'!$C$16:$C$43,0))/1000,BE56*INDEX('Damage costs'!$Y$16:$Y$43,MATCH($B141,'Damage costs'!$C$16:$C$43,0))/1000),\"\")","v":""},{"$f":"IFERROR(IF(OR($C$144=FALSE,LEFT($B141,3)<>\"NOX\"),BF56*INDEX('Damage costs'!$U$16:$U$43,MATCH($B141,'Damage costs'!$C$16:$C$43,0))/1000,BF56*INDEX('Damage costs'!$Y$16:$Y$43,MATCH($B141,'Damage costs'!$C$16:$C$43,0))/1000),\"\")","v":""},{"$f":"IFERROR(IF(OR($C$144=FALSE,LEFT($B141,3)<>\"NOX\"),BG56*INDEX('Damage costs'!$U$16:$U$43,MATCH($B141,'Damage costs'!$C$16:$C$43,0))/1000,BG56*INDEX('Damage costs'!$Y$16:$Y$43,MATCH($B141,'Damage costs'!$C$16:$C$43,0))/1000),\"\")","v":""},{"$f":"IFERROR(IF(OR($C$144=FALSE,LEFT($B141,3)<>\"NOX\"),BH56*INDEX('Damage costs'!$U$16:$U$43,MATCH($B141,'Damage costs'!$C$16:$C$43,0))/1000,BH56*INDEX('Damage costs'!$Y$16:$Y$43,MATCH($B141,'Damage costs'!$C$16:$C$43,0))/1000),\"\")","v":""},{"$f":"IFERROR(IF(OR($C$144=FALSE,LEFT($B141,3)<>\"NOX\"),BI56*INDEX('Damage costs'!$U$16:$U$43,MATCH($B141,'Damage costs'!$C$16:$C$43,0))/1000,BI56*INDEX('Damage costs'!$Y$16:$Y$43,MATCH($B141,'Damage costs'!$C$16:$C$43,0))/1000),\"\")","v":""},{"$f":"IFERROR(IF(OR($C$144=FALSE,LEFT($B141,3)<>\"NOX\"),BJ56*INDEX('Damage costs'!$U$16:$U$43,MATCH($B141,'Damage costs'!$C$16:$C$43,0))/1000,BJ56*INDEX('Damage costs'!$Y$16:$Y$43,MATCH($B141,'Damage costs'!$C$16:$C$43,0))/1000),\"\")","v":""},{"$f":"IFERROR(IF(OR($C$144=FALSE,LEFT($B141,3)<>\"NOX\"),BK56*INDEX('Damage costs'!$U$16:$U$43,MATCH($B141,'Damage costs'!$C$16:$C$43,0))/1000,BK56*INDEX('Damage costs'!$Y$16:$Y$43,MATCH($B141,'Damage costs'!$C$16:$C$43,0))/1000),\"\")","v":""},{"$f":"IFERROR(IF(OR($C$144=FALSE,LEFT($B141,3)<>\"NOX\"),BL56*INDEX('Damage costs'!$U$16:$U$43,MATCH($B141,'Damage costs'!$C$16:$C$43,0))/1000,BL56*INDEX('Damage costs'!$Y$16:$Y$43,MATCH($B141,'Damage costs'!$C$16:$C$43,0))/1000),\"\")","v":""},{"$f":"IFERROR(IF(OR($C$144=FALSE,LEFT($B141,3)<>\"NOX\"),BM56*INDEX('Damage costs'!$U$16:$U$43,MATCH($B141,'Damage costs'!$C$16:$C$43,0))/1000,BM56*INDEX('Damage costs'!$Y$16:$Y$43,MATCH($B141,'Damage costs'!$C$16:$C$43,0))/1000),\"\")","v":""},{"$f":"IFERROR(IF(OR($C$144=FALSE,LEFT($B141,3)<>\"NOX\"),BN56*INDEX('Damage costs'!$U$16:$U$43,MATCH($B141,'Damage costs'!$C$16:$C$43,0))/1000,BN56*INDEX('Damage costs'!$Y$16:$Y$43,MATCH($B141,'Damage costs'!$C$16:$C$43,0))/1000),\"\")","v":""},{"$f":"IFERROR(IF(OR($C$144=FALSE,LEFT($B141,3)<>\"NOX\"),BO56*INDEX('Damage costs'!$U$16:$U$43,MATCH($B141,'Damage costs'!$C$16:$C$43,0))/1000,BO56*INDEX('Damage costs'!$Y$16:$Y$43,MATCH($B141,'Damage costs'!$C$16:$C$43,0))/1000),\"\")","v":""},{"$f":"IFERROR(IF(OR($C$144=FALSE,LEFT($B141,3)<>\"NOX\"),BP56*INDEX('Damage costs'!$U$16:$U$43,MATCH($B141,'Damage costs'!$C$16:$C$43,0))/1000,BP56*INDEX('Damage costs'!$Y$16:$Y$43,MATCH($B141,'Damage costs'!$C$16:$C$43,0))/1000),\"\")","v":""},{"$f":"IFERROR(IF(OR($C$144=FALSE,LEFT($B141,3)<>\"NOX\"),BQ56*INDEX('Damage costs'!$U$16:$U$43,MATCH($B141,'Damage costs'!$C$16:$C$43,0))/1000,BQ56*INDEX('Damage costs'!$Y$16:$Y$43,MATCH($B141,'Damage costs'!$C$16:$C$43,0))/1000),\"\")","v":""},{"$f":"IFERROR(IF(OR($C$144=FALSE,LEFT($B141,3)<>\"NOX\"),BR56*INDEX('Damage costs'!$U$16:$U$43,MATCH($B141,'Damage costs'!$C$16:$C$43,0))/1000,BR56*INDEX('Damage costs'!$Y$16:$Y$43,MATCH($B141,'Damage costs'!$C$16:$C$43,0))/1000),\"\")","v":""},{"$f":"IFERROR(IF(OR($C$144=FALSE,LEFT($B141,3)<>\"NOX\"),BS56*INDEX('Damage costs'!$U$16:$U$43,MATCH($B141,'Damage costs'!$C$16:$C$43,0))/1000,BS56*INDEX('Damage costs'!$Y$16:$Y$43,MATCH($B141,'Damage costs'!$C$16:$C$43,0))/1000),\"\")","v":""},{"$f":"IFERROR(IF(OR($C$144=FALSE,LEFT($B141,3)<>\"NOX\"),BT56*INDEX('Damage costs'!$U$16:$U$43,MATCH($B141,'Damage costs'!$C$16:$C$43,0))/1000,BT56*INDEX('Damage costs'!$Y$16:$Y$43,MATCH($B141,'Damage costs'!$C$16:$C$43,0))/1000),\"\")","v":""},{"$f":"IFERROR(IF(OR($C$144=FALSE,LEFT($B141,3)<>\"NOX\"),BU56*INDEX('Damage costs'!$U$16:$U$43,MATCH($B141,'Damage costs'!$C$16:$C$43,0))/1000,BU56*INDEX('Damage costs'!$Y$16:$Y$43,MATCH($B141,'Damage costs'!$C$16:$C$43,0))/1000),\"\")","v":""},{"$f":"IFERROR(IF(OR($C$144=FALSE,LEFT($B141,3)<>\"NOX\"),BV56*INDEX('Damage costs'!$U$16:$U$43,MATCH($B141,'Damage costs'!$C$16:$C$43,0))/1000,BV56*INDEX('Damage costs'!$Y$16:$Y$43,MATCH($B141,'Damage costs'!$C$16:$C$43,0))/1000),\"\")","v":""},{"$f":"IFERROR(IF(OR($C$144=FALSE,LEFT($B141,3)<>\"NOX\"),BW56*INDEX('Damage costs'!$U$16:$U$43,MATCH($B141,'Damage costs'!$C$16:$C$43,0))/1000,BW56*INDEX('Damage costs'!$Y$16:$Y$43,MATCH($B141,'Damage costs'!$C$16:$C$43,0))/1000),\"\")","v":""},{"$f":"IFERROR(IF(OR($C$144=FALSE,LEFT($B141,3)<>\"NOX\"),BX56*INDEX('Damage costs'!$U$16:$U$43,MATCH($B141,'Damage costs'!$C$16:$C$43,0))/1000,BX56*INDEX('Damage costs'!$Y$16:$Y$43,MATCH($B141,'Damage costs'!$C$16:$C$43,0))/1000),\"\")","v":""},{"$f":"IFERROR(IF(OR($C$144=FALSE,LEFT($B141,3)<>\"NOX\"),BY56*INDEX('Damage costs'!$U$16:$U$43,MATCH($B141,'Damage costs'!$C$16:$C$43,0))/1000,BY56*INDEX('Damage costs'!$Y$16:$Y$43,MATCH($B141,'Damage costs'!$C$16:$C$43,0))/1000),\"\")","v":""},{"$f":"IFERROR(IF(OR($C$144=FALSE,LEFT($B141,3)<>\"NOX\"),BZ56*INDEX('Damage costs'!$U$16:$U$43,MATCH($B141,'Damage costs'!$C$16:$C$43,0))/1000,BZ56*INDEX('Damage costs'!$Y$16:$Y$43,MATCH($B141,'Damage costs'!$C$16:$C$43,0))/1000),\"\")","v":""},{"$f":"IFERROR(IF(OR($C$144=FALSE,LEFT($B141,3)<>\"NOX\"),CA56*INDEX('Damage costs'!$U$16:$U$43,MATCH($B141,'Damage costs'!$C$16:$C$43,0))/1000,CA56*INDEX('Damage costs'!$Y$16:$Y$43,MATCH($B141,'Damage costs'!$C$16:$C$43,0))/1000),\"\")","v":""},{"$f":"IFERROR(IF(OR($C$144=FALSE,LEFT($B141,3)<>\"NOX\"),CB56*INDEX('Damage costs'!$U$16:$U$43,MATCH($B141,'Damage costs'!$C$16:$C$43,0))/1000,CB56*INDEX('Damage costs'!$Y$16:$Y$43,MATCH($B141,'Damage costs'!$C$16:$C$43,0))/1000),\"\")","v":""},{"$f":"IFERROR(IF(OR($C$144=FALSE,LEFT($B141,3)<>\"NOX\"),CC56*INDEX('Damage costs'!$U$16:$U$43,MATCH($B141,'Damage costs'!$C$16:$C$43,0))/1000,CC56*INDEX('Damage costs'!$Y$16:$Y$43,MATCH($B141,'Damage costs'!$C$16:$C$43,0))/1000),\"\")","v":""},{"$f":"IFERROR(IF(OR($C$144=FALSE,LEFT($B141,3)<>\"NOX\"),CD56*INDEX('Damage costs'!$U$16:$U$43,MATCH($B141,'Damage costs'!$C$16:$C$43,0))/1000,CD56*INDEX('Damage costs'!$Y$16:$Y$43,MATCH($B141,'Damage costs'!$C$16:$C$43,0))/1000),\"\")","v":""},{"$f":"IFERROR(IF(OR($C$144=FALSE,LEFT($B141,3)<>\"NOX\"),CE56*INDEX('Damage costs'!$U$16:$U$43,MATCH($B141,'Damage costs'!$C$16:$C$43,0))/1000,CE56*INDEX('Damage costs'!$Y$16:$Y$43,MATCH($B141,'Damage costs'!$C$16:$C$43,0))/1000),\"\")","v":""},{"$f":"IFERROR(IF(OR($C$144=FALSE,LEFT($B141,3)<>\"NOX\"),CF56*INDEX('Damage costs'!$U$16:$U$43,MATCH($B141,'Damage costs'!$C$16:$C$43,0))/1000,CF56*INDEX('Damage costs'!$Y$16:$Y$43,MATCH($B141,'Damage costs'!$C$16:$C$43,0))/1000),\"\")","v":""},{"$f":"IFERROR(IF(OR($C$144=FALSE,LEFT($B141,3)<>\"NOX\"),CG56*INDEX('Damage costs'!$U$16:$U$43,MATCH($B141,'Damage costs'!$C$16:$C$43,0))/1000,CG56*INDEX('Damage costs'!$Y$16:$Y$43,MATCH($B141,'Damage costs'!$C$16:$C$43,0))/1000),\"\")","v":""},{"$f":"IFERROR(IF(OR($C$144=FALSE,LEFT($B141,3)<>\"NOX\"),CH56*INDEX('Damage costs'!$U$16:$U$43,MATCH($B141,'Damage costs'!$C$16:$C$43,0))/1000,CH56*INDEX('Damage costs'!$Y$16:$Y$43,MATCH($B141,'Damage costs'!$C$16:$C$43,0))/1000),\"\")","v":""},{"$f":"IFERROR(IF(OR($C$144=FALSE,LEFT($B141,3)<>\"NOX\"),CI56*INDEX('Damage costs'!$U$16:$U$43,MATCH($B141,'Damage costs'!$C$16:$C$43,0))/1000,CI56*INDEX('Damage costs'!$Y$16:$Y$43,MATCH($B141,'Damage costs'!$C$16:$C$43,0))/1000),\"\")","v":""},{"$f":"IFERROR(IF(OR($C$144=FALSE,LEFT($B141,3)<>\"NOX\"),CJ56*INDEX('Damage costs'!$U$16:$U$43,MATCH($B141,'Damage costs'!$C$16:$C$43,0))/1000,CJ56*INDEX('Damage costs'!$Y$16:$Y$43,MATCH($B141,'Damage costs'!$C$16:$C$43,0))/1000),\"\")","v":""},{"$f":"IFERROR(IF(OR($C$144=FALSE,LEFT($B141,3)<>\"NOX\"),CK56*INDEX('Damage costs'!$U$16:$U$43,MATCH($B141,'Damage costs'!$C$16:$C$43,0))/1000,CK56*INDEX('Damage costs'!$Y$16:$Y$43,MATCH($B141,'Damage costs'!$C$16:$C$43,0))/1000),\"\")","v":""},{"$f":"IFERROR(IF(OR($C$144=FALSE,LEFT($B141,3)<>\"NOX\"),CL56*INDEX('Damage costs'!$U$16:$U$43,MATCH($B141,'Damage costs'!$C$16:$C$43,0))/1000,CL56*INDEX('Damage costs'!$Y$16:$Y$43,MATCH($B141,'Damage costs'!$C$16:$C$43,0))/1000),\"\")","v":""},{"$f":"IFERROR(IF(OR($C$144=FALSE,LEFT($B141,3)<>\"NOX\"),CM56*INDEX('Damage costs'!$U$16:$U$43,MATCH($B141,'Damage costs'!$C$16:$C$43,0))/1000,CM56*INDEX('Damage costs'!$Y$16:$Y$43,MATCH($B141,'Damage costs'!$C$16:$C$43,0))/1000),\"\")","v":""},{"$f":"IFERROR(IF(OR($C$144=FALSE,LEFT($B141,3)<>\"NOX\"),CN56*INDEX('Damage costs'!$U$16:$U$43,MATCH($B141,'Damage costs'!$C$16:$C$43,0))/1000,CN56*INDEX('Damage costs'!$Y$16:$Y$43,MATCH($B141,'Damage costs'!$C$16:$C$43,0))/1000),\"\")","v":""},{"$f":"IFERROR(IF(OR($C$144=FALSE,LEFT($B141,3)<>\"NOX\"),CO56*INDEX('Damage costs'!$U$16:$U$43,MATCH($B141,'Damage costs'!$C$16:$C$43,0))/1000,CO56*INDEX('Damage costs'!$Y$16:$Y$43,MATCH($B141,'Damage costs'!$C$16:$C$43,0))/1000),\"\")","v":""},{"$f":"IFERROR(IF(OR($C$144=FALSE,LEFT($B141,3)<>\"NOX\"),CP56*INDEX('Damage costs'!$U$16:$U$43,MATCH($B141,'Damage costs'!$C$16:$C$43,0))/1000,CP56*INDEX('Damage costs'!$Y$16:$Y$43,MATCH($B141,'Damage costs'!$C$16:$C$43,0))/1000),\"\")","v":""},{"$f":"IFERROR(IF(OR($C$144=FALSE,LEFT($B141,3)<>\"NOX\"),CQ56*INDEX('Damage costs'!$U$16:$U$43,MATCH($B141,'Damage costs'!$C$16:$C$43,0))/1000,CQ56*INDEX('Damage costs'!$Y$16:$Y$43,MATCH($B141,'Damage costs'!$C$16:$C$43,0))/1000),\"\")","v":""},{"$f":"IFERROR(IF(OR($C$144=FALSE,LEFT($B141,3)<>\"NOX\"),CR56*INDEX('Damage costs'!$U$16:$U$43,MATCH($B141,'Damage costs'!$C$16:$C$43,0))/1000,CR56*INDEX('Damage costs'!$Y$16:$Y$43,MATCH($B141,'Damage costs'!$C$16:$C$43,0))/1000),\"\")","v":""},{"$f":"IFERROR(IF(OR($C$144=FALSE,LEFT($B141,3)<>\"NOX\"),CS56*INDEX('Damage costs'!$U$16:$U$43,MATCH($B141,'Damage costs'!$C$16:$C$43,0))/1000,CS56*INDEX('Damage costs'!$Y$16:$Y$43,MATCH($B141,'Damage costs'!$C$16:$C$43,0))/1000),\"\")","v":""},{"$f":"IFERROR(IF(OR($C$144=FALSE,LEFT($B141,3)<>\"NOX\"),CT56*INDEX('Damage costs'!$U$16:$U$43,MATCH($B141,'Damage costs'!$C$16:$C$43,0))/1000,CT56*INDEX('Damage costs'!$Y$16:$Y$43,MATCH($B141,'Damage costs'!$C$16:$C$43,0))/1000),\"\")","v":""},{"$f":"IFERROR(IF(OR($C$144=FALSE,LEFT($B141,3)<>\"NOX\"),CU56*INDEX('Damage costs'!$U$16:$U$43,MATCH($B141,'Damage costs'!$C$16:$C$43,0))/1000,CU56*INDEX('Damage costs'!$Y$16:$Y$43,MATCH($B141,'Damage costs'!$C$16:$C$43,0))/1000),\"\")","v":""},{"$f":"IFERROR(IF(OR($C$144=FALSE,LEFT($B141,3)<>\"NOX\"),CV56*INDEX('Damage costs'!$U$16:$U$43,MATCH($B141,'Damage costs'!$C$16:$C$43,0))/1000,CV56*INDEX('Damage costs'!$Y$16:$Y$43,MATCH($B141,'Damage costs'!$C$16:$C$43,0))/1000),\"\")","v":""},{"$f":"IFERROR(IF(OR($C$144=FALSE,LEFT($B141,3)<>\"NOX\"),CW56*INDEX('Damage costs'!$U$16:$U$43,MATCH($B141,'Damage costs'!$C$16:$C$43,0))/1000,CW56*INDEX('Damage costs'!$Y$16:$Y$43,MATCH($B141,'Damage costs'!$C$16:$C$43,0))/1000),\"\")","v":""},{"$f":"IFERROR(IF(OR($C$144=FALSE,LEFT($B141,3)<>\"NOX\"),CX56*INDEX('Damage costs'!$U$16:$U$43,MATCH($B141,'Damage costs'!$C$16:$C$43,0))/1000,CX56*INDEX('Damage costs'!$Y$16:$Y$43,MATCH($B141,'Damage costs'!$C$16:$C$43,0))/1000),\"\")","v":""},{"$f":"IFERROR(IF(OR($C$144=FALSE,LEFT($B141,3)<>\"NOX\"),CY56*INDEX('Damage costs'!$U$16:$U$43,MATCH($B141,'Damage costs'!$C$16:$C$43,0))/1000,CY56*INDEX('Damage costs'!$Y$16:$Y$43,MATCH($B141,'Damage costs'!$C$16:$C$43,0))/1000),\"\")","v":""}]
[null,0,"£000's",{"$f":"IFERROR(IF(OR($C$144=FALSE,LEFT($B142,3)<>\"NOX\"),D57*INDEX('Damage costs'!$U$16:$U$43,MATCH($B142,'Damage costs'!$C$16:$C$43,0))/1000,D57*INDEX('Damage costs'!$Y$16:$Y$43,MATCH($B142,'Damage costs'!$C$16:$C$43,0))/1000),\"\")","v":""},{"$f":"IFERROR(IF(OR($C$144=FALSE,LEFT($B142,3)<>\"NOX\"),E57*INDEX('Damage costs'!$U$16:$U$43,MATCH($B142,'Damage costs'!$C$16:$C$43,0))/1000,E57*INDEX('Damage costs'!$Y$16:$Y$43,MATCH($B142,'Damage costs'!$C$16:$C$43,0))/1000),\"\")","v":""},{"$f":"IFERROR(IF(OR($C$144=FALSE,LEFT($B142,3)<>\"NOX\"),F57*INDEX('Damage costs'!$U$16:$U$43,MATCH($B142,'Damage costs'!$C$16:$C$43,0))/1000,F57*INDEX('Damage costs'!$Y$16:$Y$43,MATCH($B142,'Damage costs'!$C$16:$C$43,0))/1000),\"\")","v":""},{"$f":"IFERROR(IF(OR($C$144=FALSE,LEFT($B142,3)<>\"NOX\"),G57*INDEX('Damage costs'!$U$16:$U$43,MATCH($B142,'Damage costs'!$C$16:$C$43,0))/1000,G57*INDEX('Damage costs'!$Y$16:$Y$43,MATCH($B142,'Damage costs'!$C$16:$C$43,0))/1000),\"\")","v":""},{"$f":"IFERROR(IF(OR($C$144=FALSE,LEFT($B142,3)<>\"NOX\"),H57*INDEX('Damage costs'!$U$16:$U$43,MATCH($B142,'Damage costs'!$C$16:$C$43,0))/1000,H57*INDEX('Damage costs'!$Y$16:$Y$43,MATCH($B142,'Damage costs'!$C$16:$C$43,0))/1000),\"\")","v":""},{"$f":"IFERROR(IF(OR($C$144=FALSE,LEFT($B142,3)<>\"NOX\"),I57*INDEX('Damage costs'!$U$16:$U$43,MATCH($B142,'Damage costs'!$C$16:$C$43,0))/1000,I57*INDEX('Damage costs'!$Y$16:$Y$43,MATCH($B142,'Damage costs'!$C$16:$C$43,0))/1000),\"\")","v":""},{"$f":"IFERROR(IF(OR($C$144=FALSE,LEFT($B142,3)<>\"NOX\"),J57*INDEX('Damage costs'!$U$16:$U$43,MATCH($B142,'Damage costs'!$C$16:$C$43,0))/1000,J57*INDEX('Damage costs'!$Y$16:$Y$43,MATCH($B142,'Damage costs'!$C$16:$C$43,0))/1000),\"\")","v":""},{"$f":"IFERROR(IF(OR($C$144=FALSE,LEFT($B142,3)<>\"NOX\"),K57*INDEX('Damage costs'!$U$16:$U$43,MATCH($B142,'Damage costs'!$C$16:$C$43,0))/1000,K57*INDEX('Damage costs'!$Y$16:$Y$43,MATCH($B142,'Damage costs'!$C$16:$C$43,0))/1000),\"\")","v":""},{"$f":"IFERROR(IF(OR($C$144=FALSE,LEFT($B142,3)<>\"NOX\"),L57*INDEX('Damage costs'!$U$16:$U$43,MATCH($B142,'Damage costs'!$C$16:$C$43,0))/1000,L57*INDEX('Damage costs'!$Y$16:$Y$43,MATCH($B142,'Damage costs'!$C$16:$C$43,0))/1000),\"\")","v":""},{"$f":"IFERROR(IF(OR($C$144=FALSE,LEFT($B142,3)<>\"NOX\"),M57*INDEX('Damage costs'!$U$16:$U$43,MATCH($B142,'Damage costs'!$C$16:$C$43,0))/1000,M57*INDEX('Damage costs'!$Y$16:$Y$43,MATCH($B142,'Damage costs'!$C$16:$C$43,0))/1000),\"\")","v":""},{"$f":"IFERROR(IF(OR($C$144=FALSE,LEFT($B142,3)<>\"NOX\"),N57*INDEX('Damage costs'!$U$16:$U$43,MATCH($B142,'Damage costs'!$C$16:$C$43,0))/1000,N57*INDEX('Damage costs'!$Y$16:$Y$43,MATCH($B142,'Damage costs'!$C$16:$C$43,0))/1000),\"\")","v":""},{"$f":"IFERROR(IF(OR($C$144=FALSE,LEFT($B142,3)<>\"NOX\"),O57*INDEX('Damage costs'!$U$16:$U$43,MATCH($B142,'Damage costs'!$C$16:$C$43,0))/1000,O57*INDEX('Damage costs'!$Y$16:$Y$43,MATCH($B142,'Damage costs'!$C$16:$C$43,0))/1000),\"\")","v":""},{"$f":"IFERROR(IF(OR($C$144=FALSE,LEFT($B142,3)<>\"NOX\"),P57*INDEX('Damage costs'!$U$16:$U$43,MATCH($B142,'Damage costs'!$C$16:$C$43,0))/1000,P57*INDEX('Damage costs'!$Y$16:$Y$43,MATCH($B142,'Damage costs'!$C$16:$C$43,0))/1000),\"\")","v":""},{"$f":"IFERROR(IF(OR($C$144=FALSE,LEFT($B142,3)<>\"NOX\"),Q57*INDEX('Damage costs'!$U$16:$U$43,MATCH($B142,'Damage costs'!$C$16:$C$43,0))/1000,Q57*INDEX('Damage costs'!$Y$16:$Y$43,MATCH($B142,'Damage costs'!$C$16:$C$43,0))/1000),\"\")","v":""},{"$f":"IFERROR(IF(OR($C$144=FALSE,LEFT($B142,3)<>\"NOX\"),R57*INDEX('Damage costs'!$U$16:$U$43,MATCH($B142,'Damage costs'!$C$16:$C$43,0))/1000,R57*INDEX('Damage costs'!$Y$16:$Y$43,MATCH($B142,'Damage costs'!$C$16:$C$43,0))/1000),\"\")","v":""},{"$f":"IFERROR(IF(OR($C$144=FALSE,LEFT($B142,3)<>\"NOX\"),S57*INDEX('Damage costs'!$U$16:$U$43,MATCH($B142,'Damage costs'!$C$16:$C$43,0))/1000,S57*INDEX('Damage costs'!$Y$16:$Y$43,MATCH($B142,'Damage costs'!$C$16:$C$43,0))/1000),\"\")","v":""},{"$f":"IFERROR(IF(OR($C$144=FALSE,LEFT($B142,3)<>\"NOX\"),T57*INDEX('Damage costs'!$U$16:$U$43,MATCH($B142,'Damage costs'!$C$16:$C$43,0))/1000,T57*INDEX('Damage costs'!$Y$16:$Y$43,MATCH($B142,'Damage costs'!$C$16:$C$43,0))/1000),\"\")","v":""},{"$f":"IFERROR(IF(OR($C$144=FALSE,LEFT($B142,3)<>\"NOX\"),U57*INDEX('Damage costs'!$U$16:$U$43,MATCH($B142,'Damage costs'!$C$16:$C$43,0))/1000,U57*INDEX('Damage costs'!$Y$16:$Y$43,MATCH($B142,'Damage costs'!$C$16:$C$43,0))/1000),\"\")","v":""},{"$f":"IFERROR(IF(OR($C$144=FALSE,LEFT($B142,3)<>\"NOX\"),V57*INDEX('Damage costs'!$U$16:$U$43,MATCH($B142,'Damage costs'!$C$16:$C$43,0))/1000,V57*INDEX('Damage costs'!$Y$16:$Y$43,MATCH($B142,'Damage costs'!$C$16:$C$43,0))/1000),\"\")","v":""},{"$f":"IFERROR(IF(OR($C$144=FALSE,LEFT($B142,3)<>\"NOX\"),W57*INDEX('Damage costs'!$U$16:$U$43,MATCH($B142,'Damage costs'!$C$16:$C$43,0))/1000,W57*INDEX('Damage costs'!$Y$16:$Y$43,MATCH($B142,'Damage costs'!$C$16:$C$43,0))/1000),\"\")","v":""},{"$f":"IFERROR(IF(OR($C$144=FALSE,LEFT($B142,3)<>\"NOX\"),X57*INDEX('Damage costs'!$U$16:$U$43,MATCH($B142,'Damage costs'!$C$16:$C$43,0))/1000,X57*INDEX('Damage costs'!$Y$16:$Y$43,MATCH($B142,'Damage costs'!$C$16:$C$43,0))/1000),\"\")","v":""},{"$f":"IFERROR(IF(OR($C$144=FALSE,LEFT($B142,3)<>\"NOX\"),Y57*INDEX('Damage costs'!$U$16:$U$43,MATCH($B142,'Damage costs'!$C$16:$C$43,0))/1000,Y57*INDEX('Damage costs'!$Y$16:$Y$43,MATCH($B142,'Damage costs'!$C$16:$C$43,0))/1000),\"\")","v":""},{"$f":"IFERROR(IF(OR($C$144=FALSE,LEFT($B142,3)<>\"NOX\"),Z57*INDEX('Damage costs'!$U$16:$U$43,MATCH($B142,'Damage costs'!$C$16:$C$43,0))/1000,Z57*INDEX('Damage costs'!$Y$16:$Y$43,MATCH($B142,'Damage costs'!$C$16:$C$43,0))/1000),\"\")","v":""},{"$f":"IFERROR(IF(OR($C$144=FALSE,LEFT($B142,3)<>\"NOX\"),AA57*INDEX('Damage costs'!$U$16:$U$43,MATCH($B142,'Damage costs'!$C$16:$C$43,0))/1000,AA57*INDEX('Damage costs'!$Y$16:$Y$43,MATCH($B142,'Damage costs'!$C$16:$C$43,0))/1000),\"\")","v":""},{"$f":"IFERROR(IF(OR($C$144=FALSE,LEFT($B142,3)<>\"NOX\"),AB57*INDEX('Damage costs'!$U$16:$U$43,MATCH($B142,'Damage costs'!$C$16:$C$43,0))/1000,AB57*INDEX('Damage costs'!$Y$16:$Y$43,MATCH($B142,'Damage costs'!$C$16:$C$43,0))/1000),\"\")","v":""},{"$f":"IFERROR(IF(OR($C$144=FALSE,LEFT($B142,3)<>\"NOX\"),AC57*INDEX('Damage costs'!$U$16:$U$43,MATCH($B142,'Damage costs'!$C$16:$C$43,0))/1000,AC57*INDEX('Damage costs'!$Y$16:$Y$43,MATCH($B142,'Damage costs'!$C$16:$C$43,0))/1000),\"\")","v":""},{"$f":"IFERROR(IF(OR($C$144=FALSE,LEFT($B142,3)<>\"NOX\"),AD57*INDEX('Damage costs'!$U$16:$U$43,MATCH($B142,'Damage costs'!$C$16:$C$43,0))/1000,AD57*INDEX('Damage costs'!$Y$16:$Y$43,MATCH($B142,'Damage costs'!$C$16:$C$43,0))/1000),\"\")","v":""},{"$f":"IFERROR(IF(OR($C$144=FALSE,LEFT($B142,3)<>\"NOX\"),AE57*INDEX('Damage costs'!$U$16:$U$43,MATCH($B142,'Damage costs'!$C$16:$C$43,0))/1000,AE57*INDEX('Damage costs'!$Y$16:$Y$43,MATCH($B142,'Damage costs'!$C$16:$C$43,0))/1000),\"\")","v":""},{"$f":"IFERROR(IF(OR($C$144=FALSE,LEFT($B142,3)<>\"NOX\"),AF57*INDEX('Damage costs'!$U$16:$U$43,MATCH($B142,'Damage costs'!$C$16:$C$43,0))/1000,AF57*INDEX('Damage costs'!$Y$16:$Y$43,MATCH($B142,'Damage costs'!$C$16:$C$43,0))/1000),\"\")","v":""},{"$f":"IFERROR(IF(OR($C$144=FALSE,LEFT($B142,3)<>\"NOX\"),AG57*INDEX('Damage costs'!$U$16:$U$43,MATCH($B142,'Damage costs'!$C$16:$C$43,0))/1000,AG57*INDEX('Damage costs'!$Y$16:$Y$43,MATCH($B142,'Damage costs'!$C$16:$C$43,0))/1000),\"\")","v":""},{"$f":"IFERROR(IF(OR($C$144=FALSE,LEFT($B142,3)<>\"NOX\"),AH57*INDEX('Damage costs'!$U$16:$U$43,MATCH($B142,'Damage costs'!$C$16:$C$43,0))/1000,AH57*INDEX('Damage costs'!$Y$16:$Y$43,MATCH($B142,'Damage costs'!$C$16:$C$43,0))/1000),\"\")","v":""},{"$f":"IFERROR(IF(OR($C$144=FALSE,LEFT($B142,3)<>\"NOX\"),AI57*INDEX('Damage costs'!$U$16:$U$43,MATCH($B142,'Damage costs'!$C$16:$C$43,0))/1000,AI57*INDEX('Damage costs'!$Y$16:$Y$43,MATCH($B142,'Damage costs'!$C$16:$C$43,0))/1000),\"\")","v":""},{"$f":"IFERROR(IF(OR($C$144=FALSE,LEFT($B142,3)<>\"NOX\"),AJ57*INDEX('Damage costs'!$U$16:$U$43,MATCH($B142,'Damage costs'!$C$16:$C$43,0))/1000,AJ57*INDEX('Damage costs'!$Y$16:$Y$43,MATCH($B142,'Damage costs'!$C$16:$C$43,0))/1000),\"\")","v":""},{"$f":"IFERROR(IF(OR($C$144=FALSE,LEFT($B142,3)<>\"NOX\"),AK57*INDEX('Damage costs'!$U$16:$U$43,MATCH($B142,'Damage costs'!$C$16:$C$43,0))/1000,AK57*INDEX('Damage costs'!$Y$16:$Y$43,MATCH($B142,'Damage costs'!$C$16:$C$43,0))/1000),\"\")","v":""},{"$f":"IFERROR(IF(OR($C$144=FALSE,LEFT($B142,3)<>\"NOX\"),AL57*INDEX('Damage costs'!$U$16:$U$43,MATCH($B142,'Damage costs'!$C$16:$C$43,0))/1000,AL57*INDEX('Damage costs'!$Y$16:$Y$43,MATCH($B142,'Damage costs'!$C$16:$C$43,0))/1000),\"\")","v":""},{"$f":"IFERROR(IF(OR($C$144=FALSE,LEFT($B142,3)<>\"NOX\"),AM57*INDEX('Damage costs'!$U$16:$U$43,MATCH($B142,'Damage costs'!$C$16:$C$43,0))/1000,AM57*INDEX('Damage costs'!$Y$16:$Y$43,MATCH($B142,'Damage costs'!$C$16:$C$43,0))/1000),\"\")","v":""},{"$f":"IFERROR(IF(OR($C$144=FALSE,LEFT($B142,3)<>\"NOX\"),AN57*INDEX('Damage costs'!$U$16:$U$43,MATCH($B142,'Damage costs'!$C$16:$C$43,0))/1000,AN57*INDEX('Damage costs'!$Y$16:$Y$43,MATCH($B142,'Damage costs'!$C$16:$C$43,0))/1000),\"\")","v":""},{"$f":"IFERROR(IF(OR($C$144=FALSE,LEFT($B142,3)<>\"NOX\"),AO57*INDEX('Damage costs'!$U$16:$U$43,MATCH($B142,'Damage costs'!$C$16:$C$43,0))/1000,AO57*INDEX('Damage costs'!$Y$16:$Y$43,MATCH($B142,'Damage costs'!$C$16:$C$43,0))/1000),\"\")","v":""},{"$f":"IFERROR(IF(OR($C$144=FALSE,LEFT($B142,3)<>\"NOX\"),AP57*INDEX('Damage costs'!$U$16:$U$43,MATCH($B142,'Damage costs'!$C$16:$C$43,0))/1000,AP57*INDEX('Damage costs'!$Y$16:$Y$43,MATCH($B142,'Damage costs'!$C$16:$C$43,0))/1000),\"\")","v":""},{"$f":"IFERROR(IF(OR($C$144=FALSE,LEFT($B142,3)<>\"NOX\"),AQ57*INDEX('Damage costs'!$U$16:$U$43,MATCH($B142,'Damage costs'!$C$16:$C$43,0))/1000,AQ57*INDEX('Damage costs'!$Y$16:$Y$43,MATCH($B142,'Damage costs'!$C$16:$C$43,0))/1000),\"\")","v":""},{"$f":"IFERROR(IF(OR($C$144=FALSE,LEFT($B142,3)<>\"NOX\"),AR57*INDEX('Damage costs'!$U$16:$U$43,MATCH($B142,'Damage costs'!$C$16:$C$43,0))/1000,AR57*INDEX('Damage costs'!$Y$16:$Y$43,MATCH($B142,'Damage costs'!$C$16:$C$43,0))/1000),\"\")","v":""},{"$f":"IFERROR(IF(OR($C$144=FALSE,LEFT($B142,3)<>\"NOX\"),AS57*INDEX('Damage costs'!$U$16:$U$43,MATCH($B142,'Damage costs'!$C$16:$C$43,0))/1000,AS57*INDEX('Damage costs'!$Y$16:$Y$43,MATCH($B142,'Damage costs'!$C$16:$C$43,0))/1000),\"\")","v":""},{"$f":"IFERROR(IF(OR($C$144=FALSE,LEFT($B142,3)<>\"NOX\"),AT57*INDEX('Damage costs'!$U$16:$U$43,MATCH($B142,'Damage costs'!$C$16:$C$43,0))/1000,AT57*INDEX('Damage costs'!$Y$16:$Y$43,MATCH($B142,'Damage costs'!$C$16:$C$43,0))/1000),\"\")","v":""},{"$f":"IFERROR(IF(OR($C$144=FALSE,LEFT($B142,3)<>\"NOX\"),AU57*INDEX('Damage costs'!$U$16:$U$43,MATCH($B142,'Damage costs'!$C$16:$C$43,0))/1000,AU57*INDEX('Damage costs'!$Y$16:$Y$43,MATCH($B142,'Damage costs'!$C$16:$C$43,0))/1000),\"\")","v":""},{"$f":"IFERROR(IF(OR($C$144=FALSE,LEFT($B142,3)<>\"NOX\"),AV57*INDEX('Damage costs'!$U$16:$U$43,MATCH($B142,'Damage costs'!$C$16:$C$43,0))/1000,AV57*INDEX('Damage costs'!$Y$16:$Y$43,MATCH($B142,'Damage costs'!$C$16:$C$43,0))/1000),\"\")","v":""},{"$f":"IFERROR(IF(OR($C$144=FALSE,LEFT($B142,3)<>\"NOX\"),AW57*INDEX('Damage costs'!$U$16:$U$43,MATCH($B142,'Damage costs'!$C$16:$C$43,0))/1000,AW57*INDEX('Damage costs'!$Y$16:$Y$43,MATCH($B142,'Damage costs'!$C$16:$C$43,0))/1000),\"\")","v":""},{"$f":"IFERROR(IF(OR($C$144=FALSE,LEFT($B142,3)<>\"NOX\"),AX57*INDEX('Damage costs'!$U$16:$U$43,MATCH($B142,'Damage costs'!$C$16:$C$43,0))/1000,AX57*INDEX('Damage costs'!$Y$16:$Y$43,MATCH($B142,'Damage costs'!$C$16:$C$43,0))/1000),\"\")","v":""},{"$f":"IFERROR(IF(OR($C$144=FALSE,LEFT($B142,3)<>\"NOX\"),AY57*INDEX('Damage costs'!$U$16:$U$43,MATCH($B142,'Damage costs'!$C$16:$C$43,0))/1000,AY57*INDEX('Damage costs'!$Y$16:$Y$43,MATCH($B142,'Damage costs'!$C$16:$C$43,0))/1000),\"\")","v":""},{"$f":"IFERROR(IF(OR($C$144=FALSE,LEFT($B142,3)<>\"NOX\"),AZ57*INDEX('Damage costs'!$U$16:$U$43,MATCH($B142,'Damage costs'!$C$16:$C$43,0))/1000,AZ57*INDEX('Damage costs'!$Y$16:$Y$43,MATCH($B142,'Damage costs'!$C$16:$C$43,0))/1000),\"\")","v":""},{"$f":"IFERROR(IF(OR($C$144=FALSE,LEFT($B142,3)<>\"NOX\"),BA57*INDEX('Damage costs'!$U$16:$U$43,MATCH($B142,'Damage costs'!$C$16:$C$43,0))/1000,BA57*INDEX('Damage costs'!$Y$16:$Y$43,MATCH($B142,'Damage costs'!$C$16:$C$43,0))/1000),\"\")","v":""},{"$f":"IFERROR(IF(OR($C$144=FALSE,LEFT($B142,3)<>\"NOX\"),BB57*INDEX('Damage costs'!$U$16:$U$43,MATCH($B142,'Damage costs'!$C$16:$C$43,0))/1000,BB57*INDEX('Damage costs'!$Y$16:$Y$43,MATCH($B142,'Damage costs'!$C$16:$C$43,0))/1000),\"\")","v":""},{"$f":"IFERROR(IF(OR($C$144=FALSE,LEFT($B142,3)<>\"NOX\"),BC57*INDEX('Damage costs'!$U$16:$U$43,MATCH($B142,'Damage costs'!$C$16:$C$43,0))/1000,BC57*INDEX('Damage costs'!$Y$16:$Y$43,MATCH($B142,'Damage costs'!$C$16:$C$43,0))/1000),\"\")","v":""},{"$f":"IFERROR(IF(OR($C$144=FALSE,LEFT($B142,3)<>\"NOX\"),BD57*INDEX('Damage costs'!$U$16:$U$43,MATCH($B142,'Damage costs'!$C$16:$C$43,0))/1000,BD57*INDEX('Damage costs'!$Y$16:$Y$43,MATCH($B142,'Damage costs'!$C$16:$C$43,0))/1000),\"\")","v":""},{"$f":"IFERROR(IF(OR($C$144=FALSE,LEFT($B142,3)<>\"NOX\"),BE57*INDEX('Damage costs'!$U$16:$U$43,MATCH($B142,'Damage costs'!$C$16:$C$43,0))/1000,BE57*INDEX('Damage costs'!$Y$16:$Y$43,MATCH($B142,'Damage costs'!$C$16:$C$43,0))/1000),\"\")","v":""},{"$f":"IFERROR(IF(OR($C$144=FALSE,LEFT($B142,3)<>\"NOX\"),BF57*INDEX('Damage costs'!$U$16:$U$43,MATCH($B142,'Damage costs'!$C$16:$C$43,0))/1000,BF57*INDEX('Damage costs'!$Y$16:$Y$43,MATCH($B142,'Damage costs'!$C$16:$C$43,0))/1000),\"\")","v":""},{"$f":"IFERROR(IF(OR($C$144=FALSE,LEFT($B142,3)<>\"NOX\"),BG57*INDEX('Damage costs'!$U$16:$U$43,MATCH($B142,'Damage costs'!$C$16:$C$43,0))/1000,BG57*INDEX('Damage costs'!$Y$16:$Y$43,MATCH($B142,'Damage costs'!$C$16:$C$43,0))/1000),\"\")","v":""},{"$f":"IFERROR(IF(OR($C$144=FALSE,LEFT($B142,3)<>\"NOX\"),BH57*INDEX('Damage costs'!$U$16:$U$43,MATCH($B142,'Damage costs'!$C$16:$C$43,0))/1000,BH57*INDEX('Damage costs'!$Y$16:$Y$43,MATCH($B142,'Damage costs'!$C$16:$C$43,0))/1000),\"\")","v":""},{"$f":"IFERROR(IF(OR($C$144=FALSE,LEFT($B142,3)<>\"NOX\"),BI57*INDEX('Damage costs'!$U$16:$U$43,MATCH($B142,'Damage costs'!$C$16:$C$43,0))/1000,BI57*INDEX('Damage costs'!$Y$16:$Y$43,MATCH($B142,'Damage costs'!$C$16:$C$43,0))/1000),\"\")","v":""},{"$f":"IFERROR(IF(OR($C$144=FALSE,LEFT($B142,3)<>\"NOX\"),BJ57*INDEX('Damage costs'!$U$16:$U$43,MATCH($B142,'Damage costs'!$C$16:$C$43,0))/1000,BJ57*INDEX('Damage costs'!$Y$16:$Y$43,MATCH($B142,'Damage costs'!$C$16:$C$43,0))/1000),\"\")","v":""},{"$f":"IFERROR(IF(OR($C$144=FALSE,LEFT($B142,3)<>\"NOX\"),BK57*INDEX('Damage costs'!$U$16:$U$43,MATCH($B142,'Damage costs'!$C$16:$C$43,0))/1000,BK57*INDEX('Damage costs'!$Y$16:$Y$43,MATCH($B142,'Damage costs'!$C$16:$C$43,0))/1000),\"\")","v":""},{"$f":"IFERROR(IF(OR($C$144=FALSE,LEFT($B142,3)<>\"NOX\"),BL57*INDEX('Damage costs'!$U$16:$U$43,MATCH($B142,'Damage costs'!$C$16:$C$43,0))/1000,BL57*INDEX('Damage costs'!$Y$16:$Y$43,MATCH($B142,'Damage costs'!$C$16:$C$43,0))/1000),\"\")","v":""},{"$f":"IFERROR(IF(OR($C$144=FALSE,LEFT($B142,3)<>\"NOX\"),BM57*INDEX('Damage costs'!$U$16:$U$43,MATCH($B142,'Damage costs'!$C$16:$C$43,0))/1000,BM57*INDEX('Damage costs'!$Y$16:$Y$43,MATCH($B142,'Damage costs'!$C$16:$C$43,0))/1000),\"\")","v":""},{"$f":"IFERROR(IF(OR($C$144=FALSE,LEFT($B142,3)<>\"NOX\"),BN57*INDEX('Damage costs'!$U$16:$U$43,MATCH($B142,'Damage costs'!$C$16:$C$43,0))/1000,BN57*INDEX('Damage costs'!$Y$16:$Y$43,MATCH($B142,'Damage costs'!$C$16:$C$43,0))/1000),\"\")","v":""},{"$f":"IFERROR(IF(OR($C$144=FALSE,LEFT($B142,3)<>\"NOX\"),BO57*INDEX('Damage costs'!$U$16:$U$43,MATCH($B142,'Damage costs'!$C$16:$C$43,0))/1000,BO57*INDEX('Damage costs'!$Y$16:$Y$43,MATCH($B142,'Damage costs'!$C$16:$C$43,0))/1000),\"\")","v":""},{"$f":"IFERROR(IF(OR($C$144=FALSE,LEFT($B142,3)<>\"NOX\"),BP57*INDEX('Damage costs'!$U$16:$U$43,MATCH($B142,'Damage costs'!$C$16:$C$43,0))/1000,BP57*INDEX('Damage costs'!$Y$16:$Y$43,MATCH($B142,'Damage costs'!$C$16:$C$43,0))/1000),\"\")","v":""},{"$f":"IFERROR(IF(OR($C$144=FALSE,LEFT($B142,3)<>\"NOX\"),BQ57*INDEX('Damage costs'!$U$16:$U$43,MATCH($B142,'Damage costs'!$C$16:$C$43,0))/1000,BQ57*INDEX('Damage costs'!$Y$16:$Y$43,MATCH($B142,'Damage costs'!$C$16:$C$43,0))/1000),\"\")","v":""},{"$f":"IFERROR(IF(OR($C$144=FALSE,LEFT($B142,3)<>\"NOX\"),BR57*INDEX('Damage costs'!$U$16:$U$43,MATCH($B142,'Damage costs'!$C$16:$C$43,0))/1000,BR57*INDEX('Damage costs'!$Y$16:$Y$43,MATCH($B142,'Damage costs'!$C$16:$C$43,0))/1000),\"\")","v":""},{"$f":"IFERROR(IF(OR($C$144=FALSE,LEFT($B142,3)<>\"NOX\"),BS57*INDEX('Damage costs'!$U$16:$U$43,MATCH($B142,'Damage costs'!$C$16:$C$43,0))/1000,BS57*INDEX('Damage costs'!$Y$16:$Y$43,MATCH($B142,'Damage costs'!$C$16:$C$43,0))/1000),\"\")","v":""},{"$f":"IFERROR(IF(OR($C$144=FALSE,LEFT($B142,3)<>\"NOX\"),BT57*INDEX('Damage costs'!$U$16:$U$43,MATCH($B142,'Damage costs'!$C$16:$C$43,0))/1000,BT57*INDEX('Damage costs'!$Y$16:$Y$43,MATCH($B142,'Damage costs'!$C$16:$C$43,0))/1000),\"\")","v":""},{"$f":"IFERROR(IF(OR($C$144=FALSE,LEFT($B142,3)<>\"NOX\"),BU57*INDEX('Damage costs'!$U$16:$U$43,MATCH($B142,'Damage costs'!$C$16:$C$43,0))/1000,BU57*INDEX('Damage costs'!$Y$16:$Y$43,MATCH($B142,'Damage costs'!$C$16:$C$43,0))/1000),\"\")","v":""},{"$f":"IFERROR(IF(OR($C$144=FALSE,LEFT($B142,3)<>\"NOX\"),BV57*INDEX('Damage costs'!$U$16:$U$43,MATCH($B142,'Damage costs'!$C$16:$C$43,0))/1000,BV57*INDEX('Damage costs'!$Y$16:$Y$43,MATCH($B142,'Damage costs'!$C$16:$C$43,0))/1000),\"\")","v":""},{"$f":"IFERROR(IF(OR($C$144=FALSE,LEFT($B142,3)<>\"NOX\"),BW57*INDEX('Damage costs'!$U$16:$U$43,MATCH($B142,'Damage costs'!$C$16:$C$43,0))/1000,BW57*INDEX('Damage costs'!$Y$16:$Y$43,MATCH($B142,'Damage costs'!$C$16:$C$43,0))/1000),\"\")","v":""},{"$f":"IFERROR(IF(OR($C$144=FALSE,LEFT($B142,3)<>\"NOX\"),BX57*INDEX('Damage costs'!$U$16:$U$43,MATCH($B142,'Damage costs'!$C$16:$C$43,0))/1000,BX57*INDEX('Damage costs'!$Y$16:$Y$43,MATCH($B142,'Damage costs'!$C$16:$C$43,0))/1000),\"\")","v":""},{"$f":"IFERROR(IF(OR($C$144=FALSE,LEFT($B142,3)<>\"NOX\"),BY57*INDEX('Damage costs'!$U$16:$U$43,MATCH($B142,'Damage costs'!$C$16:$C$43,0))/1000,BY57*INDEX('Damage costs'!$Y$16:$Y$43,MATCH($B142,'Damage costs'!$C$16:$C$43,0))/1000),\"\")","v":""},{"$f":"IFERROR(IF(OR($C$144=FALSE,LEFT($B142,3)<>\"NOX\"),BZ57*INDEX('Damage costs'!$U$16:$U$43,MATCH($B142,'Damage costs'!$C$16:$C$43,0))/1000,BZ57*INDEX('Damage costs'!$Y$16:$Y$43,MATCH($B142,'Damage costs'!$C$16:$C$43,0))/1000),\"\")","v":""},{"$f":"IFERROR(IF(OR($C$144=FALSE,LEFT($B142,3)<>\"NOX\"),CA57*INDEX('Damage costs'!$U$16:$U$43,MATCH($B142,'Damage costs'!$C$16:$C$43,0))/1000,CA57*INDEX('Damage costs'!$Y$16:$Y$43,MATCH($B142,'Damage costs'!$C$16:$C$43,0))/1000),\"\")","v":""},{"$f":"IFERROR(IF(OR($C$144=FALSE,LEFT($B142,3)<>\"NOX\"),CB57*INDEX('Damage costs'!$U$16:$U$43,MATCH($B142,'Damage costs'!$C$16:$C$43,0))/1000,CB57*INDEX('Damage costs'!$Y$16:$Y$43,MATCH($B142,'Damage costs'!$C$16:$C$43,0))/1000),\"\")","v":""},{"$f":"IFERROR(IF(OR($C$144=FALSE,LEFT($B142,3)<>\"NOX\"),CC57*INDEX('Damage costs'!$U$16:$U$43,MATCH($B142,'Damage costs'!$C$16:$C$43,0))/1000,CC57*INDEX('Damage costs'!$Y$16:$Y$43,MATCH($B142,'Damage costs'!$C$16:$C$43,0))/1000),\"\")","v":""},{"$f":"IFERROR(IF(OR($C$144=FALSE,LEFT($B142,3)<>\"NOX\"),CD57*INDEX('Damage costs'!$U$16:$U$43,MATCH($B142,'Damage costs'!$C$16:$C$43,0))/1000,CD57*INDEX('Damage costs'!$Y$16:$Y$43,MATCH($B142,'Damage costs'!$C$16:$C$43,0))/1000),\"\")","v":""},{"$f":"IFERROR(IF(OR($C$144=FALSE,LEFT($B142,3)<>\"NOX\"),CE57*INDEX('Damage costs'!$U$16:$U$43,MATCH($B142,'Damage costs'!$C$16:$C$43,0))/1000,CE57*INDEX('Damage costs'!$Y$16:$Y$43,MATCH($B142,'Damage costs'!$C$16:$C$43,0))/1000),\"\")","v":""},{"$f":"IFERROR(IF(OR($C$144=FALSE,LEFT($B142,3)<>\"NOX\"),CF57*INDEX('Damage costs'!$U$16:$U$43,MATCH($B142,'Damage costs'!$C$16:$C$43,0))/1000,CF57*INDEX('Damage costs'!$Y$16:$Y$43,MATCH($B142,'Damage costs'!$C$16:$C$43,0))/1000),\"\")","v":""},{"$f":"IFERROR(IF(OR($C$144=FALSE,LEFT($B142,3)<>\"NOX\"),CG57*INDEX('Damage costs'!$U$16:$U$43,MATCH($B142,'Damage costs'!$C$16:$C$43,0))/1000,CG57*INDEX('Damage costs'!$Y$16:$Y$43,MATCH($B142,'Damage costs'!$C$16:$C$43,0))/1000),\"\")","v":""},{"$f":"IFERROR(IF(OR($C$144=FALSE,LEFT($B142,3)<>\"NOX\"),CH57*INDEX('Damage costs'!$U$16:$U$43,MATCH($B142,'Damage costs'!$C$16:$C$43,0))/1000,CH57*INDEX('Damage costs'!$Y$16:$Y$43,MATCH($B142,'Damage costs'!$C$16:$C$43,0))/1000),\"\")","v":""},{"$f":"IFERROR(IF(OR($C$144=FALSE,LEFT($B142,3)<>\"NOX\"),CI57*INDEX('Damage costs'!$U$16:$U$43,MATCH($B142,'Damage costs'!$C$16:$C$43,0))/1000,CI57*INDEX('Damage costs'!$Y$16:$Y$43,MATCH($B142,'Damage costs'!$C$16:$C$43,0))/1000),\"\")","v":""},{"$f":"IFERROR(IF(OR($C$144=FALSE,LEFT($B142,3)<>\"NOX\"),CJ57*INDEX('Damage costs'!$U$16:$U$43,MATCH($B142,'Damage costs'!$C$16:$C$43,0))/1000,CJ57*INDEX('Damage costs'!$Y$16:$Y$43,MATCH($B142,'Damage costs'!$C$16:$C$43,0))/1000),\"\")","v":""},{"$f":"IFERROR(IF(OR($C$144=FALSE,LEFT($B142,3)<>\"NOX\"),CK57*INDEX('Damage costs'!$U$16:$U$43,MATCH($B142,'Damage costs'!$C$16:$C$43,0))/1000,CK57*INDEX('Damage costs'!$Y$16:$Y$43,MATCH($B142,'Damage costs'!$C$16:$C$43,0))/1000),\"\")","v":""},{"$f":"IFERROR(IF(OR($C$144=FALSE,LEFT($B142,3)<>\"NOX\"),CL57*INDEX('Damage costs'!$U$16:$U$43,MATCH($B142,'Damage costs'!$C$16:$C$43,0))/1000,CL57*INDEX('Damage costs'!$Y$16:$Y$43,MATCH($B142,'Damage costs'!$C$16:$C$43,0))/1000),\"\")","v":""},{"$f":"IFERROR(IF(OR($C$144=FALSE,LEFT($B142,3)<>\"NOX\"),CM57*INDEX('Damage costs'!$U$16:$U$43,MATCH($B142,'Damage costs'!$C$16:$C$43,0))/1000,CM57*INDEX('Damage costs'!$Y$16:$Y$43,MATCH($B142,'Damage costs'!$C$16:$C$43,0))/1000),\"\")","v":""},{"$f":"IFERROR(IF(OR($C$144=FALSE,LEFT($B142,3)<>\"NOX\"),CN57*INDEX('Damage costs'!$U$16:$U$43,MATCH($B142,'Damage costs'!$C$16:$C$43,0))/1000,CN57*INDEX('Damage costs'!$Y$16:$Y$43,MATCH($B142,'Damage costs'!$C$16:$C$43,0))/1000),\"\")","v":""},{"$f":"IFERROR(IF(OR($C$144=FALSE,LEFT($B142,3)<>\"NOX\"),CO57*INDEX('Damage costs'!$U$16:$U$43,MATCH($B142,'Damage costs'!$C$16:$C$43,0))/1000,CO57*INDEX('Damage costs'!$Y$16:$Y$43,MATCH($B142,'Damage costs'!$C$16:$C$43,0))/1000),\"\")","v":""},{"$f":"IFERROR(IF(OR($C$144=FALSE,LEFT($B142,3)<>\"NOX\"),CP57*INDEX('Damage costs'!$U$16:$U$43,MATCH($B142,'Damage costs'!$C$16:$C$43,0))/1000,CP57*INDEX('Damage costs'!$Y$16:$Y$43,MATCH($B142,'Damage costs'!$C$16:$C$43,0))/1000),\"\")","v":""},{"$f":"IFERROR(IF(OR($C$144=FALSE,LEFT($B142,3)<>\"NOX\"),CQ57*INDEX('Damage costs'!$U$16:$U$43,MATCH($B142,'Damage costs'!$C$16:$C$43,0))/1000,CQ57*INDEX('Damage costs'!$Y$16:$Y$43,MATCH($B142,'Damage costs'!$C$16:$C$43,0))/1000),\"\")","v":""},{"$f":"IFERROR(IF(OR($C$144=FALSE,LEFT($B142,3)<>\"NOX\"),CR57*INDEX('Damage costs'!$U$16:$U$43,MATCH($B142,'Damage costs'!$C$16:$C$43,0))/1000,CR57*INDEX('Damage costs'!$Y$16:$Y$43,MATCH($B142,'Damage costs'!$C$16:$C$43,0))/1000),\"\")","v":""},{"$f":"IFERROR(IF(OR($C$144=FALSE,LEFT($B142,3)<>\"NOX\"),CS57*INDEX('Damage costs'!$U$16:$U$43,MATCH($B142,'Damage costs'!$C$16:$C$43,0))/1000,CS57*INDEX('Damage costs'!$Y$16:$Y$43,MATCH($B142,'Damage costs'!$C$16:$C$43,0))/1000),\"\")","v":""},{"$f":"IFERROR(IF(OR($C$144=FALSE,LEFT($B142,3)<>\"NOX\"),CT57*INDEX('Damage costs'!$U$16:$U$43,MATCH($B142,'Damage costs'!$C$16:$C$43,0))/1000,CT57*INDEX('Damage costs'!$Y$16:$Y$43,MATCH($B142,'Damage costs'!$C$16:$C$43,0))/1000),\"\")","v":""},{"$f":"IFERROR(IF(OR($C$144=FALSE,LEFT($B142,3)<>\"NOX\"),CU57*INDEX('Damage costs'!$U$16:$U$43,MATCH($B142,'Damage costs'!$C$16:$C$43,0))/1000,CU57*INDEX('Damage costs'!$Y$16:$Y$43,MATCH($B142,'Damage costs'!$C$16:$C$43,0))/1000),\"\")","v":""},{"$f":"IFERROR(IF(OR($C$144=FALSE,LEFT($B142,3)<>\"NOX\"),CV57*INDEX('Damage costs'!$U$16:$U$43,MATCH($B142,'Damage costs'!$C$16:$C$43,0))/1000,CV57*INDEX('Damage costs'!$Y$16:$Y$43,MATCH($B142,'Damage costs'!$C$16:$C$43,0))/1000),\"\")","v":""},{"$f":"IFERROR(IF(OR($C$144=FALSE,LEFT($B142,3)<>\"NOX\"),CW57*INDEX('Damage costs'!$U$16:$U$43,MATCH($B142,'Damage costs'!$C$16:$C$43,0))/1000,CW57*INDEX('Damage costs'!$Y$16:$Y$43,MATCH($B142,'Damage costs'!$C$16:$C$43,0))/1000),\"\")","v":""},{"$f":"IFERROR(IF(OR($C$144=FALSE,LEFT($B142,3)<>\"NOX\"),CX57*INDEX('Damage costs'!$U$16:$U$43,MATCH($B142,'Damage costs'!$C$16:$C$43,0))/1000,CX57*INDEX('Damage costs'!$Y$16:$Y$43,MATCH($B142,'Damage costs'!$C$16:$C$43,0))/1000),\"\")","v":""},{"$f":"IFERROR(IF(OR($C$144=FALSE,LEFT($B142,3)<>\"NOX\"),CY57*INDEX('Damage costs'!$U$16:$U$43,MATCH($B142,'Damage costs'!$C$16:$C$43,0))/1000,CY57*INDEX('Damage costs'!$Y$16:$Y$43,MATCH($B142,'Damage costs'!$C$16:$C$43,0))/1000),\"\")","v":""}]
[null,0,"£000's",{"$f":"IFERROR(IF(OR($C$144=FALSE,LEFT($B143,3)<>\"NOX\"),D58*INDEX('Damage costs'!$U$16:$U$43,MATCH($B143,'Damage costs'!$C$16:$C$43,0))/1000,D58*INDEX('Damage costs'!$Y$16:$Y$43,MATCH($B143,'Damage costs'!$C$16:$C$43,0))/1000),\"\")","v":""},{"$f":"IFERROR(IF(OR($C$144=FALSE,LEFT($B143,3)<>\"NOX\"),E58*INDEX('Damage costs'!$U$16:$U$43,MATCH($B143,'Damage costs'!$C$16:$C$43,0))/1000,E58*INDEX('Damage costs'!$Y$16:$Y$43,MATCH($B143,'Damage costs'!$C$16:$C$43,0))/1000),\"\")","v":""},{"$f":"IFERROR(IF(OR($C$144=FALSE,LEFT($B143,3)<>\"NOX\"),F58*INDEX('Damage costs'!$U$16:$U$43,MATCH($B143,'Damage costs'!$C$16:$C$43,0))/1000,F58*INDEX('Damage costs'!$Y$16:$Y$43,MATCH($B143,'Damage costs'!$C$16:$C$43,0))/1000),\"\")","v":""},{"$f":"IFERROR(IF(OR($C$144=FALSE,LEFT($B143,3)<>\"NOX\"),G58*INDEX('Damage costs'!$U$16:$U$43,MATCH($B143,'Damage costs'!$C$16:$C$43,0))/1000,G58*INDEX('Damage costs'!$Y$16:$Y$43,MATCH($B143,'Damage costs'!$C$16:$C$43,0))/1000),\"\")","v":""},{"$f":"IFERROR(IF(OR($C$144=FALSE,LEFT($B143,3)<>\"NOX\"),H58*INDEX('Damage costs'!$U$16:$U$43,MATCH($B143,'Damage costs'!$C$16:$C$43,0))/1000,H58*INDEX('Damage costs'!$Y$16:$Y$43,MATCH($B143,'Damage costs'!$C$16:$C$43,0))/1000),\"\")","v":""},{"$f":"IFERROR(IF(OR($C$144=FALSE,LEFT($B143,3)<>\"NOX\"),I58*INDEX('Damage costs'!$U$16:$U$43,MATCH($B143,'Damage costs'!$C$16:$C$43,0))/1000,I58*INDEX('Damage costs'!$Y$16:$Y$43,MATCH($B143,'Damage costs'!$C$16:$C$43,0))/1000),\"\")","v":""},{"$f":"IFERROR(IF(OR($C$144=FALSE,LEFT($B143,3)<>\"NOX\"),J58*INDEX('Damage costs'!$U$16:$U$43,MATCH($B143,'Damage costs'!$C$16:$C$43,0))/1000,J58*INDEX('Damage costs'!$Y$16:$Y$43,MATCH($B143,'Damage costs'!$C$16:$C$43,0))/1000),\"\")","v":""},{"$f":"IFERROR(IF(OR($C$144=FALSE,LEFT($B143,3)<>\"NOX\"),K58*INDEX('Damage costs'!$U$16:$U$43,MATCH($B143,'Damage costs'!$C$16:$C$43,0))/1000,K58*INDEX('Damage costs'!$Y$16:$Y$43,MATCH($B143,'Damage costs'!$C$16:$C$43,0))/1000),\"\")","v":""},{"$f":"IFERROR(IF(OR($C$144=FALSE,LEFT($B143,3)<>\"NOX\"),L58*INDEX('Damage costs'!$U$16:$U$43,MATCH($B143,'Damage costs'!$C$16:$C$43,0))/1000,L58*INDEX('Damage costs'!$Y$16:$Y$43,MATCH($B143,'Damage costs'!$C$16:$C$43,0))/1000),\"\")","v":""},{"$f":"IFERROR(IF(OR($C$144=FALSE,LEFT($B143,3)<>\"NOX\"),M58*INDEX('Damage costs'!$U$16:$U$43,MATCH($B143,'Damage costs'!$C$16:$C$43,0))/1000,M58*INDEX('Damage costs'!$Y$16:$Y$43,MATCH($B143,'Damage costs'!$C$16:$C$43,0))/1000),\"\")","v":""},{"$f":"IFERROR(IF(OR($C$144=FALSE,LEFT($B143,3)<>\"NOX\"),N58*INDEX('Damage costs'!$U$16:$U$43,MATCH($B143,'Damage costs'!$C$16:$C$43,0))/1000,N58*INDEX('Damage costs'!$Y$16:$Y$43,MATCH($B143,'Damage costs'!$C$16:$C$43,0))/1000),\"\")","v":""},{"$f":"IFERROR(IF(OR($C$144=FALSE,LEFT($B143,3)<>\"NOX\"),O58*INDEX('Damage costs'!$U$16:$U$43,MATCH($B143,'Damage costs'!$C$16:$C$43,0))/1000,O58*INDEX('Damage costs'!$Y$16:$Y$43,MATCH($B143,'Damage costs'!$C$16:$C$43,0))/1000),\"\")","v":""},{"$f":"IFERROR(IF(OR($C$144=FALSE,LEFT($B143,3)<>\"NOX\"),P58*INDEX('Damage costs'!$U$16:$U$43,MATCH($B143,'Damage costs'!$C$16:$C$43,0))/1000,P58*INDEX('Damage costs'!$Y$16:$Y$43,MATCH($B143,'Damage costs'!$C$16:$C$43,0))/1000),\"\")","v":""},{"$f":"IFERROR(IF(OR($C$144=FALSE,LEFT($B143,3)<>\"NOX\"),Q58*INDEX('Damage costs'!$U$16:$U$43,MATCH($B143,'Damage costs'!$C$16:$C$43,0))/1000,Q58*INDEX('Damage costs'!$Y$16:$Y$43,MATCH($B143,'Damage costs'!$C$16:$C$43,0))/1000),\"\")","v":""},{"$f":"IFERROR(IF(OR($C$144=FALSE,LEFT($B143,3)<>\"NOX\"),R58*INDEX('Damage costs'!$U$16:$U$43,MATCH($B143,'Damage costs'!$C$16:$C$43,0))/1000,R58*INDEX('Damage costs'!$Y$16:$Y$43,MATCH($B143,'Damage costs'!$C$16:$C$43,0))/1000),\"\")","v":""},{"$f":"IFERROR(IF(OR($C$144=FALSE,LEFT($B143,3)<>\"NOX\"),S58*INDEX('Damage costs'!$U$16:$U$43,MATCH($B143,'Damage costs'!$C$16:$C$43,0))/1000,S58*INDEX('Damage costs'!$Y$16:$Y$43,MATCH($B143,'Damage costs'!$C$16:$C$43,0))/1000),\"\")","v":""},{"$f":"IFERROR(IF(OR($C$144=FALSE,LEFT($B143,3)<>\"NOX\"),T58*INDEX('Damage costs'!$U$16:$U$43,MATCH($B143,'Damage costs'!$C$16:$C$43,0))/1000,T58*INDEX('Damage costs'!$Y$16:$Y$43,MATCH($B143,'Damage costs'!$C$16:$C$43,0))/1000),\"\")","v":""},{"$f":"IFERROR(IF(OR($C$144=FALSE,LEFT($B143,3)<>\"NOX\"),U58*INDEX('Damage costs'!$U$16:$U$43,MATCH($B143,'Damage costs'!$C$16:$C$43,0))/1000,U58*INDEX('Damage costs'!$Y$16:$Y$43,MATCH($B143,'Damage costs'!$C$16:$C$43,0))/1000),\"\")","v":""},{"$f":"IFERROR(IF(OR($C$144=FALSE,LEFT($B143,3)<>\"NOX\"),V58*INDEX('Damage costs'!$U$16:$U$43,MATCH($B143,'Damage costs'!$C$16:$C$43,0))/1000,V58*INDEX('Damage costs'!$Y$16:$Y$43,MATCH($B143,'Damage costs'!$C$16:$C$43,0))/1000),\"\")","v":""},{"$f":"IFERROR(IF(OR($C$144=FALSE,LEFT($B143,3)<>\"NOX\"),W58*INDEX('Damage costs'!$U$16:$U$43,MATCH($B143,'Damage costs'!$C$16:$C$43,0))/1000,W58*INDEX('Damage costs'!$Y$16:$Y$43,MATCH($B143,'Damage costs'!$C$16:$C$43,0))/1000),\"\")","v":""},{"$f":"IFERROR(IF(OR($C$144=FALSE,LEFT($B143,3)<>\"NOX\"),X58*INDEX('Damage costs'!$U$16:$U$43,MATCH($B143,'Damage costs'!$C$16:$C$43,0))/1000,X58*INDEX('Damage costs'!$Y$16:$Y$43,MATCH($B143,'Damage costs'!$C$16:$C$43,0))/1000),\"\")","v":""},{"$f":"IFERROR(IF(OR($C$144=FALSE,LEFT($B143,3)<>\"NOX\"),Y58*INDEX('Damage costs'!$U$16:$U$43,MATCH($B143,'Damage costs'!$C$16:$C$43,0))/1000,Y58*INDEX('Damage costs'!$Y$16:$Y$43,MATCH($B143,'Damage costs'!$C$16:$C$43,0))/1000),\"\")","v":""},{"$f":"IFERROR(IF(OR($C$144=FALSE,LEFT($B143,3)<>\"NOX\"),Z58*INDEX('Damage costs'!$U$16:$U$43,MATCH($B143,'Damage costs'!$C$16:$C$43,0))/1000,Z58*INDEX('Damage costs'!$Y$16:$Y$43,MATCH($B143,'Damage costs'!$C$16:$C$43,0))/1000),\"\")","v":""},{"$f":"IFERROR(IF(OR($C$144=FALSE,LEFT($B143,3)<>\"NOX\"),AA58*INDEX('Damage costs'!$U$16:$U$43,MATCH($B143,'Damage costs'!$C$16:$C$43,0))/1000,AA58*INDEX('Damage costs'!$Y$16:$Y$43,MATCH($B143,'Damage costs'!$C$16:$C$43,0))/1000),\"\")","v":""},{"$f":"IFERROR(IF(OR($C$144=FALSE,LEFT($B143,3)<>\"NOX\"),AB58*INDEX('Damage costs'!$U$16:$U$43,MATCH($B143,'Damage costs'!$C$16:$C$43,0))/1000,AB58*INDEX('Damage costs'!$Y$16:$Y$43,MATCH($B143,'Damage costs'!$C$16:$C$43,0))/1000),\"\")","v":""},{"$f":"IFERROR(IF(OR($C$144=FALSE,LEFT($B143,3)<>\"NOX\"),AC58*INDEX('Damage costs'!$U$16:$U$43,MATCH($B143,'Damage costs'!$C$16:$C$43,0))/1000,AC58*INDEX('Damage costs'!$Y$16:$Y$43,MATCH($B143,'Damage costs'!$C$16:$C$43,0))/1000),\"\")","v":""},{"$f":"IFERROR(IF(OR($C$144=FALSE,LEFT($B143,3)<>\"NOX\"),AD58*INDEX('Damage costs'!$U$16:$U$43,MATCH($B143,'Damage costs'!$C$16:$C$43,0))/1000,AD58*INDEX('Damage costs'!$Y$16:$Y$43,MATCH($B143,'Damage costs'!$C$16:$C$43,0))/1000),\"\")","v":""},{"$f":"IFERROR(IF(OR($C$144=FALSE,LEFT($B143,3)<>\"NOX\"),AE58*INDEX('Damage costs'!$U$16:$U$43,MATCH($B143,'Damage costs'!$C$16:$C$43,0))/1000,AE58*INDEX('Damage costs'!$Y$16:$Y$43,MATCH($B143,'Damage costs'!$C$16:$C$43,0))/1000),\"\")","v":""},{"$f":"IFERROR(IF(OR($C$144=FALSE,LEFT($B143,3)<>\"NOX\"),AF58*INDEX('Damage costs'!$U$16:$U$43,MATCH($B143,'Damage costs'!$C$16:$C$43,0))/1000,AF58*INDEX('Damage costs'!$Y$16:$Y$43,MATCH($B143,'Damage costs'!$C$16:$C$43,0))/1000),\"\")","v":""},{"$f":"IFERROR(IF(OR($C$144=FALSE,LEFT($B143,3)<>\"NOX\"),AG58*INDEX('Damage costs'!$U$16:$U$43,MATCH($B143,'Damage costs'!$C$16:$C$43,0))/1000,AG58*INDEX('Damage costs'!$Y$16:$Y$43,MATCH($B143,'Damage costs'!$C$16:$C$43,0))/1000),\"\")","v":""},{"$f":"IFERROR(IF(OR($C$144=FALSE,LEFT($B143,3)<>\"NOX\"),AH58*INDEX('Damage costs'!$U$16:$U$43,MATCH($B143,'Damage costs'!$C$16:$C$43,0))/1000,AH58*INDEX('Damage costs'!$Y$16:$Y$43,MATCH($B143,'Damage costs'!$C$16:$C$43,0))/1000),\"\")","v":""},{"$f":"IFERROR(IF(OR($C$144=FALSE,LEFT($B143,3)<>\"NOX\"),AI58*INDEX('Damage costs'!$U$16:$U$43,MATCH($B143,'Damage costs'!$C$16:$C$43,0))/1000,AI58*INDEX('Damage costs'!$Y$16:$Y$43,MATCH($B143,'Damage costs'!$C$16:$C$43,0))/1000),\"\")","v":""},{"$f":"IFERROR(IF(OR($C$144=FALSE,LEFT($B143,3)<>\"NOX\"),AJ58*INDEX('Damage costs'!$U$16:$U$43,MATCH($B143,'Damage costs'!$C$16:$C$43,0))/1000,AJ58*INDEX('Damage costs'!$Y$16:$Y$43,MATCH($B143,'Damage costs'!$C$16:$C$43,0))/1000),\"\")","v":""},{"$f":"IFERROR(IF(OR($C$144=FALSE,LEFT($B143,3)<>\"NOX\"),AK58*INDEX('Damage costs'!$U$16:$U$43,MATCH($B143,'Damage costs'!$C$16:$C$43,0))/1000,AK58*INDEX('Damage costs'!$Y$16:$Y$43,MATCH($B143,'Damage costs'!$C$16:$C$43,0))/1000),\"\")","v":""},{"$f":"IFERROR(IF(OR($C$144=FALSE,LEFT($B143,3)<>\"NOX\"),AL58*INDEX('Damage costs'!$U$16:$U$43,MATCH($B143,'Damage costs'!$C$16:$C$43,0))/1000,AL58*INDEX('Damage costs'!$Y$16:$Y$43,MATCH($B143,'Damage costs'!$C$16:$C$43,0))/1000),\"\")","v":""},{"$f":"IFERROR(IF(OR($C$144=FALSE,LEFT($B143,3)<>\"NOX\"),AM58*INDEX('Damage costs'!$U$16:$U$43,MATCH($B143,'Damage costs'!$C$16:$C$43,0))/1000,AM58*INDEX('Damage costs'!$Y$16:$Y$43,MATCH($B143,'Damage costs'!$C$16:$C$43,0))/1000),\"\")","v":""},{"$f":"IFERROR(IF(OR($C$144=FALSE,LEFT($B143,3)<>\"NOX\"),AN58*INDEX('Damage costs'!$U$16:$U$43,MATCH($B143,'Damage costs'!$C$16:$C$43,0))/1000,AN58*INDEX('Damage costs'!$Y$16:$Y$43,MATCH($B143,'Damage costs'!$C$16:$C$43,0))/1000),\"\")","v":""},{"$f":"IFERROR(IF(OR($C$144=FALSE,LEFT($B143,3)<>\"NOX\"),AO58*INDEX('Damage costs'!$U$16:$U$43,MATCH($B143,'Damage costs'!$C$16:$C$43,0))/1000,AO58*INDEX('Damage costs'!$Y$16:$Y$43,MATCH($B143,'Damage costs'!$C$16:$C$43,0))/1000),\"\")","v":""},{"$f":"IFERROR(IF(OR($C$144=FALSE,LEFT($B143,3)<>\"NOX\"),AP58*INDEX('Damage costs'!$U$16:$U$43,MATCH($B143,'Damage costs'!$C$16:$C$43,0))/1000,AP58*INDEX('Damage costs'!$Y$16:$Y$43,MATCH($B143,'Damage costs'!$C$16:$C$43,0))/1000),\"\")","v":""},{"$f":"IFERROR(IF(OR($C$144=FALSE,LEFT($B143,3)<>\"NOX\"),AQ58*INDEX('Damage costs'!$U$16:$U$43,MATCH($B143,'Damage costs'!$C$16:$C$43,0))/1000,AQ58*INDEX('Damage costs'!$Y$16:$Y$43,MATCH($B143,'Damage costs'!$C$16:$C$43,0))/1000),\"\")","v":""},{"$f":"IFERROR(IF(OR($C$144=FALSE,LEFT($B143,3)<>\"NOX\"),AR58*INDEX('Damage costs'!$U$16:$U$43,MATCH($B143,'Damage costs'!$C$16:$C$43,0))/1000,AR58*INDEX('Damage costs'!$Y$16:$Y$43,MATCH($B143,'Damage costs'!$C$16:$C$43,0))/1000),\"\")","v":""},{"$f":"IFERROR(IF(OR($C$144=FALSE,LEFT($B143,3)<>\"NOX\"),AS58*INDEX('Damage costs'!$U$16:$U$43,MATCH($B143,'Damage costs'!$C$16:$C$43,0))/1000,AS58*INDEX('Damage costs'!$Y$16:$Y$43,MATCH($B143,'Damage costs'!$C$16:$C$43,0))/1000),\"\")","v":""},{"$f":"IFERROR(IF(OR($C$144=FALSE,LEFT($B143,3)<>\"NOX\"),AT58*INDEX('Damage costs'!$U$16:$U$43,MATCH($B143,'Damage costs'!$C$16:$C$43,0))/1000,AT58*INDEX('Damage costs'!$Y$16:$Y$43,MATCH($B143,'Damage costs'!$C$16:$C$43,0))/1000),\"\")","v":""},{"$f":"IFERROR(IF(OR($C$144=FALSE,LEFT($B143,3)<>\"NOX\"),AU58*INDEX('Damage costs'!$U$16:$U$43,MATCH($B143,'Damage costs'!$C$16:$C$43,0))/1000,AU58*INDEX('Damage costs'!$Y$16:$Y$43,MATCH($B143,'Damage costs'!$C$16:$C$43,0))/1000),\"\")","v":""},{"$f":"IFERROR(IF(OR($C$144=FALSE,LEFT($B143,3)<>\"NOX\"),AV58*INDEX('Damage costs'!$U$16:$U$43,MATCH($B143,'Damage costs'!$C$16:$C$43,0))/1000,AV58*INDEX('Damage costs'!$Y$16:$Y$43,MATCH($B143,'Damage costs'!$C$16:$C$43,0))/1000),\"\")","v":""},{"$f":"IFERROR(IF(OR($C$144=FALSE,LEFT($B143,3)<>\"NOX\"),AW58*INDEX('Damage costs'!$U$16:$U$43,MATCH($B143,'Damage costs'!$C$16:$C$43,0))/1000,AW58*INDEX('Damage costs'!$Y$16:$Y$43,MATCH($B143,'Damage costs'!$C$16:$C$43,0))/1000),\"\")","v":""},{"$f":"IFERROR(IF(OR($C$144=FALSE,LEFT($B143,3)<>\"NOX\"),AX58*INDEX('Damage costs'!$U$16:$U$43,MATCH($B143,'Damage costs'!$C$16:$C$43,0))/1000,AX58*INDEX('Damage costs'!$Y$16:$Y$43,MATCH($B143,'Damage costs'!$C$16:$C$43,0))/1000),\"\")","v":""},{"$f":"IFERROR(IF(OR($C$144=FALSE,LEFT($B143,3)<>\"NOX\"),AY58*INDEX('Damage costs'!$U$16:$U$43,MATCH($B143,'Damage costs'!$C$16:$C$43,0))/1000,AY58*INDEX('Damage costs'!$Y$16:$Y$43,MATCH($B143,'Damage costs'!$C$16:$C$43,0))/1000),\"\")","v":""},{"$f":"IFERROR(IF(OR($C$144=FALSE,LEFT($B143,3)<>\"NOX\"),AZ58*INDEX('Damage costs'!$U$16:$U$43,MATCH($B143,'Damage costs'!$C$16:$C$43,0))/1000,AZ58*INDEX('Damage costs'!$Y$16:$Y$43,MATCH($B143,'Damage costs'!$C$16:$C$43,0))/1000),\"\")","v":""},{"$f":"IFERROR(IF(OR($C$144=FALSE,LEFT($B143,3)<>\"NOX\"),BA58*INDEX('Damage costs'!$U$16:$U$43,MATCH($B143,'Damage costs'!$C$16:$C$43,0))/1000,BA58*INDEX('Damage costs'!$Y$16:$Y$43,MATCH($B143,'Damage costs'!$C$16:$C$43,0))/1000),\"\")","v":""},{"$f":"IFERROR(IF(OR($C$144=FALSE,LEFT($B143,3)<>\"NOX\"),BB58*INDEX('Damage costs'!$U$16:$U$43,MATCH($B143,'Damage costs'!$C$16:$C$43,0))/1000,BB58*INDEX('Damage costs'!$Y$16:$Y$43,MATCH($B143,'Damage costs'!$C$16:$C$43,0))/1000),\"\")","v":""},{"$f":"IFERROR(IF(OR($C$144=FALSE,LEFT($B143,3)<>\"NOX\"),BC58*INDEX('Damage costs'!$U$16:$U$43,MATCH($B143,'Damage costs'!$C$16:$C$43,0))/1000,BC58*INDEX('Damage costs'!$Y$16:$Y$43,MATCH($B143,'Damage costs'!$C$16:$C$43,0))/1000),\"\")","v":""},{"$f":"IFERROR(IF(OR($C$144=FALSE,LEFT($B143,3)<>\"NOX\"),BD58*INDEX('Damage costs'!$U$16:$U$43,MATCH($B143,'Damage costs'!$C$16:$C$43,0))/1000,BD58*INDEX('Damage costs'!$Y$16:$Y$43,MATCH($B143,'Damage costs'!$C$16:$C$43,0))/1000),\"\")","v":""},{"$f":"IFERROR(IF(OR($C$144=FALSE,LEFT($B143,3)<>\"NOX\"),BE58*INDEX('Damage costs'!$U$16:$U$43,MATCH($B143,'Damage costs'!$C$16:$C$43,0))/1000,BE58*INDEX('Damage costs'!$Y$16:$Y$43,MATCH($B143,'Damage costs'!$C$16:$C$43,0))/1000),\"\")","v":""},{"$f":"IFERROR(IF(OR($C$144=FALSE,LEFT($B143,3)<>\"NOX\"),BF58*INDEX('Damage costs'!$U$16:$U$43,MATCH($B143,'Damage costs'!$C$16:$C$43,0))/1000,BF58*INDEX('Damage costs'!$Y$16:$Y$43,MATCH($B143,'Damage costs'!$C$16:$C$43,0))/1000),\"\")","v":""},{"$f":"IFERROR(IF(OR($C$144=FALSE,LEFT($B143,3)<>\"NOX\"),BG58*INDEX('Damage costs'!$U$16:$U$43,MATCH($B143,'Damage costs'!$C$16:$C$43,0))/1000,BG58*INDEX('Damage costs'!$Y$16:$Y$43,MATCH($B143,'Damage costs'!$C$16:$C$43,0))/1000),\"\")","v":""},{"$f":"IFERROR(IF(OR($C$144=FALSE,LEFT($B143,3)<>\"NOX\"),BH58*INDEX('Damage costs'!$U$16:$U$43,MATCH($B143,'Damage costs'!$C$16:$C$43,0))/1000,BH58*INDEX('Damage costs'!$Y$16:$Y$43,MATCH($B143,'Damage costs'!$C$16:$C$43,0))/1000),\"\")","v":""},{"$f":"IFERROR(IF(OR($C$144=FALSE,LEFT($B143,3)<>\"NOX\"),BI58*INDEX('Damage costs'!$U$16:$U$43,MATCH($B143,'Damage costs'!$C$16:$C$43,0))/1000,BI58*INDEX('Damage costs'!$Y$16:$Y$43,MATCH($B143,'Damage costs'!$C$16:$C$43,0))/1000),\"\")","v":""},{"$f":"IFERROR(IF(OR($C$144=FALSE,LEFT($B143,3)<>\"NOX\"),BJ58*INDEX('Damage costs'!$U$16:$U$43,MATCH($B143,'Damage costs'!$C$16:$C$43,0))/1000,BJ58*INDEX('Damage costs'!$Y$16:$Y$43,MATCH($B143,'Damage costs'!$C$16:$C$43,0))/1000),\"\")","v":""},{"$f":"IFERROR(IF(OR($C$144=FALSE,LEFT($B143,3)<>\"NOX\"),BK58*INDEX('Damage costs'!$U$16:$U$43,MATCH($B143,'Damage costs'!$C$16:$C$43,0))/1000,BK58*INDEX('Damage costs'!$Y$16:$Y$43,MATCH($B143,'Damage costs'!$C$16:$C$43,0))/1000),\"\")","v":""},{"$f":"IFERROR(IF(OR($C$144=FALSE,LEFT($B143,3)<>\"NOX\"),BL58*INDEX('Damage costs'!$U$16:$U$43,MATCH($B143,'Damage costs'!$C$16:$C$43,0))/1000,BL58*INDEX('Damage costs'!$Y$16:$Y$43,MATCH($B143,'Damage costs'!$C$16:$C$43,0))/1000),\"\")","v":""},{"$f":"IFERROR(IF(OR($C$144=FALSE,LEFT($B143,3)<>\"NOX\"),BM58*INDEX('Damage costs'!$U$16:$U$43,MATCH($B143,'Damage costs'!$C$16:$C$43,0))/1000,BM58*INDEX('Damage costs'!$Y$16:$Y$43,MATCH($B143,'Damage costs'!$C$16:$C$43,0))/1000),\"\")","v":""},{"$f":"IFERROR(IF(OR($C$144=FALSE,LEFT($B143,3)<>\"NOX\"),BN58*INDEX('Damage costs'!$U$16:$U$43,MATCH($B143,'Damage costs'!$C$16:$C$43,0))/1000,BN58*INDEX('Damage costs'!$Y$16:$Y$43,MATCH($B143,'Damage costs'!$C$16:$C$43,0))/1000),\"\")","v":""},{"$f":"IFERROR(IF(OR($C$144=FALSE,LEFT($B143,3)<>\"NOX\"),BO58*INDEX('Damage costs'!$U$16:$U$43,MATCH($B143,'Damage costs'!$C$16:$C$43,0))/1000,BO58*INDEX('Damage costs'!$Y$16:$Y$43,MATCH($B143,'Damage costs'!$C$16:$C$43,0))/1000),\"\")","v":""},{"$f":"IFERROR(IF(OR($C$144=FALSE,LEFT($B143,3)<>\"NOX\"),BP58*INDEX('Damage costs'!$U$16:$U$43,MATCH($B143,'Damage costs'!$C$16:$C$43,0))/1000,BP58*INDEX('Damage costs'!$Y$16:$Y$43,MATCH($B143,'Damage costs'!$C$16:$C$43,0))/1000),\"\")","v":""},{"$f":"IFERROR(IF(OR($C$144=FALSE,LEFT($B143,3)<>\"NOX\"),BQ58*INDEX('Damage costs'!$U$16:$U$43,MATCH($B143,'Damage costs'!$C$16:$C$43,0))/1000,BQ58*INDEX('Damage costs'!$Y$16:$Y$43,MATCH($B143,'Damage costs'!$C$16:$C$43,0))/1000),\"\")","v":""},{"$f":"IFERROR(IF(OR($C$144=FALSE,LEFT($B143,3)<>\"NOX\"),BR58*INDEX('Damage costs'!$U$16:$U$43,MATCH($B143,'Damage costs'!$C$16:$C$43,0))/1000,BR58*INDEX('Damage costs'!$Y$16:$Y$43,MATCH($B143,'Damage costs'!$C$16:$C$43,0))/1000),\"\")","v":""},{"$f":"IFERROR(IF(OR($C$144=FALSE,LEFT($B143,3)<>\"NOX\"),BS58*INDEX('Damage costs'!$U$16:$U$43,MATCH($B143,'Damage costs'!$C$16:$C$43,0))/1000,BS58*INDEX('Damage costs'!$Y$16:$Y$43,MATCH($B143,'Damage costs'!$C$16:$C$43,0))/1000),\"\")","v":""},{"$f":"IFERROR(IF(OR($C$144=FALSE,LEFT($B143,3)<>\"NOX\"),BT58*INDEX('Damage costs'!$U$16:$U$43,MATCH($B143,'Damage costs'!$C$16:$C$43,0))/1000,BT58*INDEX('Damage costs'!$Y$16:$Y$43,MATCH($B143,'Damage costs'!$C$16:$C$43,0))/1000),\"\")","v":""},{"$f":"IFERROR(IF(OR($C$144=FALSE,LEFT($B143,3)<>\"NOX\"),BU58*INDEX('Damage costs'!$U$16:$U$43,MATCH($B143,'Damage costs'!$C$16:$C$43,0))/1000,BU58*INDEX('Damage costs'!$Y$16:$Y$43,MATCH($B143,'Damage costs'!$C$16:$C$43,0))/1000),\"\")","v":""},{"$f":"IFERROR(IF(OR($C$144=FALSE,LEFT($B143,3)<>\"NOX\"),BV58*INDEX('Damage costs'!$U$16:$U$43,MATCH($B143,'Damage costs'!$C$16:$C$43,0))/1000,BV58*INDEX('Damage costs'!$Y$16:$Y$43,MATCH($B143,'Damage costs'!$C$16:$C$43,0))/1000),\"\")","v":""},{"$f":"IFERROR(IF(OR($C$144=FALSE,LEFT($B143,3)<>\"NOX\"),BW58*INDEX('Damage costs'!$U$16:$U$43,MATCH($B143,'Damage costs'!$C$16:$C$43,0))/1000,BW58*INDEX('Damage costs'!$Y$16:$Y$43,MATCH($B143,'Damage costs'!$C$16:$C$43,0))/1000),\"\")","v":""},{"$f":"IFERROR(IF(OR($C$144=FALSE,LEFT($B143,3)<>\"NOX\"),BX58*INDEX('Damage costs'!$U$16:$U$43,MATCH($B143,'Damage costs'!$C$16:$C$43,0))/1000,BX58*INDEX('Damage costs'!$Y$16:$Y$43,MATCH($B143,'Damage costs'!$C$16:$C$43,0))/1000),\"\")","v":""},{"$f":"IFERROR(IF(OR($C$144=FALSE,LEFT($B143,3)<>\"NOX\"),BY58*INDEX('Damage costs'!$U$16:$U$43,MATCH($B143,'Damage costs'!$C$16:$C$43,0))/1000,BY58*INDEX('Damage costs'!$Y$16:$Y$43,MATCH($B143,'Damage costs'!$C$16:$C$43,0))/1000),\"\")","v":""},{"$f":"IFERROR(IF(OR($C$144=FALSE,LEFT($B143,3)<>\"NOX\"),BZ58*INDEX('Damage costs'!$U$16:$U$43,MATCH($B143,'Damage costs'!$C$16:$C$43,0))/1000,BZ58*INDEX('Damage costs'!$Y$16:$Y$43,MATCH($B143,'Damage costs'!$C$16:$C$43,0))/1000),\"\")","v":""},{"$f":"IFERROR(IF(OR($C$144=FALSE,LEFT($B143,3)<>\"NOX\"),CA58*INDEX('Damage costs'!$U$16:$U$43,MATCH($B143,'Damage costs'!$C$16:$C$43,0))/1000,CA58*INDEX('Damage costs'!$Y$16:$Y$43,MATCH($B143,'Damage costs'!$C$16:$C$43,0))/1000),\"\")","v":""},{"$f":"IFERROR(IF(OR($C$144=FALSE,LEFT($B143,3)<>\"NOX\"),CB58*INDEX('Damage costs'!$U$16:$U$43,MATCH($B143,'Damage costs'!$C$16:$C$43,0))/1000,CB58*INDEX('Damage costs'!$Y$16:$Y$43,MATCH($B143,'Damage costs'!$C$16:$C$43,0))/1000),\"\")","v":""},{"$f":"IFERROR(IF(OR($C$144=FALSE,LEFT($B143,3)<>\"NOX\"),CC58*INDEX('Damage costs'!$U$16:$U$43,MATCH($B143,'Damage costs'!$C$16:$C$43,0))/1000,CC58*INDEX('Damage costs'!$Y$16:$Y$43,MATCH($B143,'Damage costs'!$C$16:$C$43,0))/1000),\"\")","v":""},{"$f":"IFERROR(IF(OR($C$144=FALSE,LEFT($B143,3)<>\"NOX\"),CD58*INDEX('Damage costs'!$U$16:$U$43,MATCH($B143,'Damage costs'!$C$16:$C$43,0))/1000,CD58*INDEX('Damage costs'!$Y$16:$Y$43,MATCH($B143,'Damage costs'!$C$16:$C$43,0))/1000),\"\")","v":""},{"$f":"IFERROR(IF(OR($C$144=FALSE,LEFT($B143,3)<>\"NOX\"),CE58*INDEX('Damage costs'!$U$16:$U$43,MATCH($B143,'Damage costs'!$C$16:$C$43,0))/1000,CE58*INDEX('Damage costs'!$Y$16:$Y$43,MATCH($B143,'Damage costs'!$C$16:$C$43,0))/1000),\"\")","v":""},{"$f":"IFERROR(IF(OR($C$144=FALSE,LEFT($B143,3)<>\"NOX\"),CF58*INDEX('Damage costs'!$U$16:$U$43,MATCH($B143,'Damage costs'!$C$16:$C$43,0))/1000,CF58*INDEX('Damage costs'!$Y$16:$Y$43,MATCH($B143,'Damage costs'!$C$16:$C$43,0))/1000),\"\")","v":""},{"$f":"IFERROR(IF(OR($C$144=FALSE,LEFT($B143,3)<>\"NOX\"),CG58*INDEX('Damage costs'!$U$16:$U$43,MATCH($B143,'Damage costs'!$C$16:$C$43,0))/1000,CG58*INDEX('Damage costs'!$Y$16:$Y$43,MATCH($B143,'Damage costs'!$C$16:$C$43,0))/1000),\"\")","v":""},{"$f":"IFERROR(IF(OR($C$144=FALSE,LEFT($B143,3)<>\"NOX\"),CH58*INDEX('Damage costs'!$U$16:$U$43,MATCH($B143,'Damage costs'!$C$16:$C$43,0))/1000,CH58*INDEX('Damage costs'!$Y$16:$Y$43,MATCH($B143,'Damage costs'!$C$16:$C$43,0))/1000),\"\")","v":""},{"$f":"IFERROR(IF(OR($C$144=FALSE,LEFT($B143,3)<>\"NOX\"),CI58*INDEX('Damage costs'!$U$16:$U$43,MATCH($B143,'Damage costs'!$C$16:$C$43,0))/1000,CI58*INDEX('Damage costs'!$Y$16:$Y$43,MATCH($B143,'Damage costs'!$C$16:$C$43,0))/1000),\"\")","v":""},{"$f":"IFERROR(IF(OR($C$144=FALSE,LEFT($B143,3)<>\"NOX\"),CJ58*INDEX('Damage costs'!$U$16:$U$43,MATCH($B143,'Damage costs'!$C$16:$C$43,0))/1000,CJ58*INDEX('Damage costs'!$Y$16:$Y$43,MATCH($B143,'Damage costs'!$C$16:$C$43,0))/1000),\"\")","v":""},{"$f":"IFERROR(IF(OR($C$144=FALSE,LEFT($B143,3)<>\"NOX\"),CK58*INDEX('Damage costs'!$U$16:$U$43,MATCH($B143,'Damage costs'!$C$16:$C$43,0))/1000,CK58*INDEX('Damage costs'!$Y$16:$Y$43,MATCH($B143,'Damage costs'!$C$16:$C$43,0))/1000),\"\")","v":""},{"$f":"IFERROR(IF(OR($C$144=FALSE,LEFT($B143,3)<>\"NOX\"),CL58*INDEX('Damage costs'!$U$16:$U$43,MATCH($B143,'Damage costs'!$C$16:$C$43,0))/1000,CL58*INDEX('Damage costs'!$Y$16:$Y$43,MATCH($B143,'Damage costs'!$C$16:$C$43,0))/1000),\"\")","v":""},{"$f":"IFERROR(IF(OR($C$144=FALSE,LEFT($B143,3)<>\"NOX\"),CM58*INDEX('Damage costs'!$U$16:$U$43,MATCH($B143,'Damage costs'!$C$16:$C$43,0))/1000,CM58*INDEX('Damage costs'!$Y$16:$Y$43,MATCH($B143,'Damage costs'!$C$16:$C$43,0))/1000),\"\")","v":""},{"$f":"IFERROR(IF(OR($C$144=FALSE,LEFT($B143,3)<>\"NOX\"),CN58*INDEX('Damage costs'!$U$16:$U$43,MATCH($B143,'Damage costs'!$C$16:$C$43,0))/1000,CN58*INDEX('Damage costs'!$Y$16:$Y$43,MATCH($B143,'Damage costs'!$C$16:$C$43,0))/1000),\"\")","v":""},{"$f":"IFERROR(IF(OR($C$144=FALSE,LEFT($B143,3)<>\"NOX\"),CO58*INDEX('Damage costs'!$U$16:$U$43,MATCH($B143,'Damage costs'!$C$16:$C$43,0))/1000,CO58*INDEX('Damage costs'!$Y$16:$Y$43,MATCH($B143,'Damage costs'!$C$16:$C$43,0))/1000),\"\")","v":""},{"$f":"IFERROR(IF(OR($C$144=FALSE,LEFT($B143,3)<>\"NOX\"),CP58*INDEX('Damage costs'!$U$16:$U$43,MATCH($B143,'Damage costs'!$C$16:$C$43,0))/1000,CP58*INDEX('Damage costs'!$Y$16:$Y$43,MATCH($B143,'Damage costs'!$C$16:$C$43,0))/1000),\"\")","v":""},{"$f":"IFERROR(IF(OR($C$144=FALSE,LEFT($B143,3)<>\"NOX\"),CQ58*INDEX('Damage costs'!$U$16:$U$43,MATCH($B143,'Damage costs'!$C$16:$C$43,0))/1000,CQ58*INDEX('Damage costs'!$Y$16:$Y$43,MATCH($B143,'Damage costs'!$C$16:$C$43,0))/1000),\"\")","v":""},{"$f":"IFERROR(IF(OR($C$144=FALSE,LEFT($B143,3)<>\"NOX\"),CR58*INDEX('Damage costs'!$U$16:$U$43,MATCH($B143,'Damage costs'!$C$16:$C$43,0))/1000,CR58*INDEX('Damage costs'!$Y$16:$Y$43,MATCH($B143,'Damage costs'!$C$16:$C$43,0))/1000),\"\")","v":""},{"$f":"IFERROR(IF(OR($C$144=FALSE,LEFT($B143,3)<>\"NOX\"),CS58*INDEX('Damage costs'!$U$16:$U$43,MATCH($B143,'Damage costs'!$C$16:$C$43,0))/1000,CS58*INDEX('Damage costs'!$Y$16:$Y$43,MATCH($B143,'Damage costs'!$C$16:$C$43,0))/1000),\"\")","v":""},{"$f":"IFERROR(IF(OR($C$144=FALSE,LEFT($B143,3)<>\"NOX\"),CT58*INDEX('Damage costs'!$U$16:$U$43,MATCH($B143,'Damage costs'!$C$16:$C$43,0))/1000,CT58*INDEX('Damage costs'!$Y$16:$Y$43,MATCH($B143,'Damage costs'!$C$16:$C$43,0))/1000),\"\")","v":""},{"$f":"IFERROR(IF(OR($C$144=FALSE,LEFT($B143,3)<>\"NOX\"),CU58*INDEX('Damage costs'!$U$16:$U$43,MATCH($B143,'Damage costs'!$C$16:$C$43,0))/1000,CU58*INDEX('Damage costs'!$Y$16:$Y$43,MATCH($B143,'Damage costs'!$C$16:$C$43,0))/1000),\"\")","v":""},{"$f":"IFERROR(IF(OR($C$144=FALSE,LEFT($B143,3)<>\"NOX\"),CV58*INDEX('Damage costs'!$U$16:$U$43,MATCH($B143,'Damage costs'!$C$16:$C$43,0))/1000,CV58*INDEX('Damage costs'!$Y$16:$Y$43,MATCH($B143,'Damage costs'!$C$16:$C$43,0))/1000),\"\")","v":""},{"$f":"IFERROR(IF(OR($C$144=FALSE,LEFT($B143,3)<>\"NOX\"),CW58*INDEX('Damage costs'!$U$16:$U$43,MATCH($B143,'Damage costs'!$C$16:$C$43,0))/1000,CW58*INDEX('Damage costs'!$Y$16:$Y$43,MATCH($B143,'Damage costs'!$C$16:$C$43,0))/1000),\"\")","v":""},{"$f":"IFERROR(IF(OR($C$144=FALSE,LEFT($B143,3)<>\"NOX\"),CX58*INDEX('Damage costs'!$U$16:$U$43,MATCH($B143,'Damage costs'!$C$16:$C$43,0))/1000,CX58*INDEX('Damage costs'!$Y$16:$Y$43,MATCH($B143,'Damage costs'!$C$16:$C$43,0))/1000),\"\")","v":""},{"$f":"IFERROR(IF(OR($C$144=FALSE,LEFT($B143,3)<>\"NOX\"),CY58*INDEX('Damage costs'!$U$16:$U$43,MATCH($B143,'Damage costs'!$C$16:$C$43,0))/1000,CY58*INDEX('Damage costs'!$Y$16:$Y$43,MATCH($B143,'Damage costs'!$C$16:$C$43,0))/1000),\"\")","v":""}]
[null,"PM10 Used",{"$f":"IF(OR(LEFT(B138,4)=\"PM10\",LEFT(B139,4)=\"PM10\",LEFT(B140,4)=\"PM10\",LEFT(B141,4)=\"PM10\",LEFT(B142,4)=\"PM10\",LEFT(B143,4)=\"PM10\"),TRUE,FALSE)","v":false}]
[]
[null,"Uplift pa","%",{"$f":"'Discount and deflators'!$H$5","v":0.02}]
[null,"Uplift factor",null,{"$f":"IF(D$6=0,0,(1+$D146)^(D$6-'Data Input - General'!$F$22))","v":1},{"$f":"IF(E$6=0,0,(1+$D146)^(E$6-'Data Input - General'!$F$22))","v":1.02},{"$f":"IF(F$6=0,0,(1+$D146)^(F$6-'Data Input - General'!$F$22))","v":1.0404},{"$f":"IF(G$6=0,0,(1+$D146)^(G$6-'Data Input - General'!$F$22))","v":1.0612079999999999},{"$f":"IF(H$6=0,0,(1+$D146)^(H$6-'Data Input - General'!$F$22))","v":1.08243216},{"$f":"IF(I$6=0,0,(1+$D146)^(I$6-'Data Input - General'!$F$22))","v":1.1040808032},{"$f":"IF(J$6=0,0,(1+$D146)^(J$6-'Data Input - General'!$F$22))","v":1.1261624192640001},{"$f":"IF(K$6=0,0,(1+$D146)^(K$6-'Data Input - General'!$F$22))","v":1.1486856676492798},{"$f":"IF(L$6=0,0,(1+$D146)^(L$6-'Data Input - General'!$F$22))","v":1.1716593810022655},{"$f":"IF(M$6=0,0,(1+$D146)^(M$6-'Data Input - General'!$F$22))","v":1.1950925686223108},{"$f":"IF(N$6=0,0,(1+$D146)^(N$6-'Data Input - General'!$F$22))","v":1.2189944199947571},{"$f":"IF(O$6=0,0,(1+$D146)^(O$6-'Data Input - General'!$F$22))","v":1.243374308394652},{"$f":"IF(P$6=0,0,(1+$D146)^(P$6-'Data Input - General'!$F$22))","v":1.2682417945625453},{"$f":"IF(Q$6=0,0,(1+$D146)^(Q$6-'Data Input - General'!$F$22))","v":1.2936066304537961},{"$f":"IF(R$6=0,0,(1+$D146)^(R$6-'Data Input - General'!$F$22))","v":1.3194787630628722},{"$f":"IF(S$6=0,0,(1+$D146)^(S$6-'Data Input - General'!$F$22))","v":1.3458683383241292},{"$f":"IF(T$6=0,0,(1+$D146)^(T$6-'Data Input - General'!$F$22))","v":1.372785705090612},{"$f":"IF(U$6=0,0,(1+$D146)^(U$6-'Data Input - General'!$F$22))","v":1.4002414191924244},{"$f":"IF(V$6=0,0,(1+$D146)^(V$6-'Data Input - General'!$F$22))","v":1.4282462475762727},{"$f":"IF(W$6=0,0,(1+$D146)^(W$6-'Data Input - General'!$F$22))","v":1.4568111725277981},{"$f":"IF(X$6=0,0,(1+$D146)^(X$6-'Data Input - General'!$F$22))","v":1.4859473959783542},{"$f":"IF(Y$6=0,0,(1+$D146)^(Y$6-'Data Input - General'!$F$22))","v":1.5156663438979212},{"$f":"IF(Z$6=0,0,(1+$D146)^(Z$6-'Data Input - General'!$F$22))","v":1.5459796707758797},{"$f":"IF(AA$6=0,0,(1+$D146)^(AA$6-'Data Input - General'!$F$22))","v":1.576899264191397},{"$f":"IF(AB$6=0,0,(1+$D146)^(AB$6-'Data Input - General'!$F$22))","v":1.608437249475225},{"$f":"IF(AC$6=0,0,(1+$D146)^(AC$6-'Data Input - General'!$F$22))","v":1.6406059944647295},{"$f":"IF(AD$6=0,0,(1+$D146)^(AD$6-'Data Input - General'!$F$22))","v":1.6734181143540243},{"$f":"IF(AE$6=0,0,(1+$D146)^(AE$6-'Data Input - General'!$F$22))","v":1.7068864766411045},{"$f":"IF(AF$6=0,0,(1+$D146)^(AF$6-'Data Input - General'!$F$22))","v":1.7410242061739269},{"$f":"IF(AG$6=0,0,(1+$D146)^(AG$6-'Data Input - General'!$F$22))","v":1.7758446902974052},{"$f":"IF(AH$6=0,0,(1+$D146)^(AH$6-'Data Input - General'!$F$22))","v":1.8113615841033535},{"$f":"IF(AI$6=0,0,(1+$D146)^(AI$6-'Data Input - General'!$F$22))","v":0},{"$f":"IF(AJ$6=0,0,(1+$D146)^(AJ$6-'Data Input - General'!$F$22))","v":0},{"$f":"IF(AK$6=0,0,(1+$D146)^(AK$6-'Data Input - General'!$F$22))","v":0},{"$f":"IF(AL$6=0,0,(1+$D146)^(AL$6-'Data Input - General'!$F$22))","v":0},{"$f":"IF(AM$6=0,0,(1+$D146)^(AM$6-'Data Input - General'!$F$22))","v":0},{"$f":"IF(AN$6=0,0,(1+$D146)^(AN$6-'Data Input - General'!$F$22))","v":0},{"$f":"IF(AO$6=0,0,(1+$D146)^(AO$6-'Data Input - General'!$F$22))","v":0},{"$f":"IF(AP$6=0,0,(1+$D146)^(AP$6-'Data Input - General'!$F$22))","v":0},{"$f":"IF(AQ$6=0,0,(1+$D146)^(AQ$6-'Data Input - General'!$F$22))","v":0},{"$f":"IF(AR$6=0,0,(1+$D146)^(AR$6-'Data Input - General'!$F$22))","v":0},{"$f":"IF(AS$6=0,0,(1+$D146)^(AS$6-'Data Input - General'!$F$22))","v":0},{"$f":"IF(AT$6=0,0,(1+$D146)^(AT$6-'Data Input - General'!$F$22))","v":0},{"$f":"IF(AU$6=0,0,(1+$D146)^(AU$6-'Data Input - General'!$F$22))","v":0},{"$f":"IF(AV$6=0,0,(1+$D146)^(AV$6-'Data Input - General'!$F$22))","v":0},{"$f":"IF(AW$6=0,0,(1+$D146)^(AW$6-'Data Input - General'!$F$22))","v":0},{"$f":"IF(AX$6=0,0,(1+$D146)^(AX$6-'Data Input - General'!$F$22))","v":0},{"$f":"IF(AY$6=0,0,(1+$D146)^(AY$6-'Data Input - General'!$F$22))","v":0},{"$f":"IF(AZ$6=0,0,(1+$D146)^(AZ$6-'Data Input - General'!$F$22))","v":0},{"$f":"IF(BA$6=0,0,(1+$D146)^(BA$6-'Data Input - General'!$F$22))","v":0},{"$f":"IF(BB$6=0,0,(1+$D146)^(BB$6-'Data Input - General'!$F$22))","v":0},{"$f":"IF(BC$6=0,0,(1+$D146)^(BC$6-'Data Input - General'!$F$22))","v":0},{"$f":"IF(BD$6=0,0,(1+$D146)^(BD$6-'Data Input - General'!$F$22))","v":0},{"$f":"IF(BE$6=0,0,(1+$D146)^(BE$6-'Data Input - General'!$F$22))","v":0},{"$f":"IF(BF$6=0,0,(1+$D146)^(BF$6-'Data Input - General'!$F$22))","v":0},{"$f":"IF(BG$6=0,0,(1+$D146)^(BG$6-'Data Input - General'!$F$22))","v":0},{"$f":"IF(BH$6=0,0,(1+$D146)^(BH$6-'Data Input - General'!$F$22))","v":0},{"$f":"IF(BI$6=0,0,(1+$D146)^(BI$6-'Data Input - General'!$F$22))","v":0},{"$f":"IF(BJ$6=0,0,(1+$D146)^(BJ$6-'Data Input - General'!$F$22))","v":0},{"$f":"IF(BK$6=0,0,(1+$D146)^(BK$6-'Data Input - General'!$F$22))","v":0},{"$f":"IF(BL$6=0,0,(1+$D146)^(BL$6-'Data Input - General'!$F$22))","v":0},{"$f":"IF(BM$6=0,0,(1+$D146)^(BM$6-'Data Input - General'!$F$22))","v":0},{"$f":"IF(BN$6=0,0,(1+$D146)^(BN$6-'Data Input - General'!$F$22))","v":0},{"$f":"IF(BO$6=0,0,(1+$D146)^(BO$6-'Data Input - General'!$F$22))","v":0},{"$f":"IF(BP$6=0,0,(1+$D146)^(BP$6-'Data Input - General'!$F$22))","v":0},{"$f":"IF(BQ$6=0,0,(1+$D146)^(BQ$6-'Data Input - General'!$F$22))","v":0},{"$f":"IF(BR$6=0,0,(1+$D146)^(BR$6-'Data Input - General'!$F$22))","v":0},{"$f":"IF(BS$6=0,0,(1+$D146)^(BS$6-'Data Input - General'!$F$22))","v":0},{"$f":"IF(BT$6=0,0,(1+$D146)^(BT$6-'Data Input - General'!$F$22))","v":0},{"$f":"IF(BU$6=0,0,(1+$D146)^(BU$6-'Data Input - General'!$F$22))","v":0},{"$f":"IF(BV$6=0,0,(1+$D146)^(BV$6-'Data Input - General'!$F$22))","v":0},{"$f":"IF(BW$6=0,0,(1+$D146)^(BW$6-'Data Input - General'!$F$22))","v":0},{"$f":"IF(BX$6=0,0,(1+$D146)^(BX$6-'Data Input - General'!$F$22))","v":0},{"$f":"IF(BY$6=0,0,(1+$D146)^(BY$6-'Data Input - General'!$F$22))","v":0},{"$f":"IF(BZ$6=0,0,(1+$D146)^(BZ$6-'Data Input - General'!$F$22))","v":0},{"$f":"IF(CA$6=0,0,(1+$D146)^(CA$6-'Data Input - General'!$F$22))","v":0},{"$f":"IF(CB$6=0,0,(1+$D146)^(CB$6-'Data Input - General'!$F$22))","v":0},{"$f":"IF(CC$6=0,0,(1+$D146)^(CC$6-'Data Input - General'!$F$22))","v":0},{"$f":"IF(CD$6=0,0,(1+$D146)^(CD$6-'Data Input - General'!$F$22))","v":0},{"$f":"IF(CE$6=0,0,(1+$D146)^(CE$6-'Data Input - General'!$F$22))","v":0},{"$f":"IF(CF$6=0,0,(1+$D146)^(CF$6-'Data Input - General'!$F$22))","v":0},{"$f":"IF(CG$6=0,0,(1+$D146)^(CG$6-'Data Input - General'!$F$22))","v":0},{"$f":"IF(CH$6=0,0,(1+$D146)^(CH$6-'Data Input - General'!$F$22))","v":0},{"$f":"IF(CI$6=0,0,(1+$D146)^(CI$6-'Data Input - General'!$F$22))","v":0},{"$f":"IF(CJ$6=0,0,(1+$D146)^(CJ$6-'Data Input - General'!$F$22))","v":0},{"$f":"IF(CK$6=0,0,(1+$D146)^(CK$6-'Data Input - General'!$F$22))","v":0},{"$f":"IF(CL$6=0,0,(1+$D146)^(CL$6-'Data Input - General'!$F$22))","v":0},{"$f":"IF(CM$6=0,0,(1+$D146)^(CM$6-'Data Input - General'!$F$22))","v":0},{"$f":"IF(CN$6=0,0,(1+$D146)^(CN$6-'Data Input - General'!$F$22))","v":0},{"$f":"IF(CO$6=0,0,(1+$D146)^(CO$6-'Data Input - General'!$F$22))","v":0},{"$f":"IF(CP$6=0,0,(1+$D146)^(CP$6-'Data Input - General'!$F$22))","v":0},{"$f":"IF(CQ$6=0,0,(1+$D146)^(CQ$6-'Data Input - General'!$F$22))","v":0},{"$f":"IF(CR$6=0,0,(1+$D146)^(CR$6-'Data Input - General'!$F$22))","v":0},{"$f":"IF(CS$6=0,0,(1+$D146)^(CS$6-'Data Input - General'!$F$22))","v":0},{"$f":"IF(CT$6=0,0,(1+$D146)^(CT$6-'Data Input - General'!$F$22))","v":0},{"$f":"IF(CU$6=0,0,(1+$D146)^(CU$6-'Data Input - General'!$F$22))","v":0},{"$f":"IF(CV$6=0,0,(1+$D146)^(CV$6-'Data Input - General'!$F$22))","v":0},{"$f":"IF(CW$6=0,0,(1+$D146)^(CW$6-'Data Input - General'!$F$22))","v":0},{"$f":"IF(CX$6=0,0,(1+$D146)^(CX$6-'Data Input - General'!$F$22))","v":0},{"$f":"IF(CY$6=0,0,(1+$D146)^(CY$6-'Data Input - General'!$F$22))","v":0}]
[null,"Total value","£000's",{"$f":"SUM(D138:D143)*D147","v":0},{"$f":"SUM(E138:E143)*E147","v":0},{"$f":"SUM(F138:F143)*F147","v":0},0,0,0,0,0,0,0,0,0,0,0,0,0,0,0,0,0,0,0,0,0,0,0,0,0,0,0,0,0,{"$f":"SUM(AJ138:AJ143)*AJ147","v":0},0,0,0,0,0,0,0,0,0,0,0,0,0,0,0,0,0,0,0,0,0,0,0,0,0,0,0,{"$f":"SUM(BL138:BL143)*BL147","v":0},0,0,0,0,0,0,0,0,0,0,0,0,0,0,0,0,0,0,0,0,0,0,0,0,0,0,0,0,0,0,0,0,0,0,0,0,0,0,0]
[null,"Discounted total value","£000's",{"$f":"D148*D$7","v":0},0,0,0,0,0,0,0,0,0,0,0,0,0,0,0,0,0,0,0,0,0,0,0,0,0,0,0,0,0,0,0,0,0,0,0,0,0,0,0,0,0,0,0,0,0,0,0,0,0,0,0,0,0,0,0,0,0,0,0,0,0,0,0,{"$f":"BP148*BP$7","v":0},0,0,0,0,0,0,0,0,0,0,0,0,0,0,0,0,0,0,0,0,0,0,0,0,0,0,0,0,0,0,0,0,0,0,0]
[]
[null,"GHG emissions"]
[null,"Traded","tCO2e",{"$f":"D$80+IF('Data Input - General'!$F$10=\"Yes\",Calc_Option4!D$81,0)+IF('Data Input - General'!$F$12=\"Yes\",Calc_Option4!D$75,0)","v":2.7159532468959326E-3},{"$f":"E$80+IF('Data Input - General'!$F$10=\"Yes\",Calc_Option4!E$81,0)+IF('Data Input - General'!$F$12=\"Yes\",Calc_Option4!E$75,0)","v":0},{"$f":"F$80+IF('Data Input - General'!$F$10=\"Yes\",Calc_Option4!F$81,0)+IF('Data Input - General'!$F$12=\"Yes\",Calc_Option4!F$75,0)","v":0},{"$f":"G$80+IF('Data Input - General'!$F$10=\"Yes\",Calc_Option4!G$81,0)+IF('Data Input - General'!$F$12=\"Yes\",Calc_Option4!G$75,0)","v":0},{"$f":"H$80+IF('Data Input - General'!$F$10=\"Yes\",Calc_Option4!H$81,0)+IF('Data Input - General'!$F$12=\"Yes\",Calc_Option4!H$75,0)","v":0},{"$f":"I$80+IF('Data Input - General'!$F$10=\"Yes\",Calc_Option4!I$81,0)+IF('Data Input - General'!$F$12=\"Yes\",Calc_Option4!I$75,0)","v":0},{"$f":"J$80+IF('Data Input - General'!$F$10=\"Yes\",Calc_Option4!J$81,0)+IF('Data Input - General'!$F$12=\"Yes\",Calc_Option4!J$75,0)","v":0},{"$f":"K$80+IF('Data Input - General'!$F$10=\"Yes\",Calc_Option4!K$81,0)+IF('Data Input - General'!$F$12=\"Yes\",Calc_Option4!K$75,0)","v":0},{"$f":"L$80+IF('Data Input - General'!$F$10=\"Yes\",Calc_Option4!L$81,0)+IF('Data Input - General'!$F$12=\"Yes\",Calc_Option4!L$75,0)","v":0},{"$f":"M$80+IF('Data Input - General'!$F$10=\"Yes\",Calc_Option4!M$81,0)+IF('Data Input - General'!$F$12=\"Yes\",Calc_Option4!M$75,0)","v":0},{"$f":"N$80+IF('Data Input - General'!$F$10=\"Yes\",Calc_Option4!N$81,0)+IF('Data Input - General'!$F$12=\"Yes\",Calc_Option4!N$75,0)","v":0},{"$f":"O$80+IF('Data Input - General'!$F$10=\"Yes\",Calc_Option4!O$81,0)+IF('Data Input - General'!$F$12=\"Yes\",Calc_Option4!O$75,0)","v":0},{"$f":"P$80+IF('Data Input - General'!$F$10=\"Yes\",Calc_Option4!P$81,0)+IF('Data Input - General'!$F$12=\"Yes\",Calc_Option4!P$75,0)","v":0},{"$f":"Q$80+IF('Data Input - General'!$F$10=\"Yes\",Calc_Option4!Q$81,0)+IF('Data Input - General'!$F$12=\"Yes\",Calc_Option4!Q$75,0)","v":0},{"$f":"R$80+IF('Data Input - General'!$F$10=\"Yes\",Calc_Option4!R$81,0)+IF('Data Input - General'!$F$12=\"Yes\",Calc_Option4!R$75,0)","v":0},{"$f":"S$80+IF('Data Input - General'!$F$10=\"Yes\",Calc_Option4!S$81,0)+IF('Data Input - General'!$F$12=\"Yes\",Calc_Option4!S$75,0)","v":0},{"$f":"T$80+IF('Data Input - General'!$F$10=\"Yes\",Calc_Option4!T$81,0)+IF('Data Input - General'!$F$12=\"Yes\",Calc_Option4!T$75,0)","v":0},{"$f":"U$80+IF('Data Input - General'!$F$10=\"Yes\",Calc_Option4!U$81,0)+IF('Data Input - General'!$F$12=\"Yes\",Calc_Option4!U$75,0)","v":0},{"$f":"V$80+IF('Data Input - General'!$F$10=\"Yes\",Calc_Option4!V$81,0)+IF('Data Input - General'!$F$12=\"Yes\",Calc_Option4!V$75,0)","v":0},{"$f":"W$80+IF('Data Input - General'!$F$10=\"Yes\",Calc_Option4!W$81,0)+IF('Data Input - General'!$F$12=\"Yes\",Calc_Option4!W$75,0)","v":0},{"$f":"X$80+IF('Data Input - General'!$F$10=\"Yes\",Calc_Option4!X$81,0)+IF('Data Input - General'!$F$12=\"Yes\",Calc_Option4!X$75,0)","v":0},{"$f":"Y$80+IF('Data Input - General'!$F$10=\"Yes\",Calc_Option4!Y$81,0)+IF('Data Input - General'!$F$12=\"Yes\",Calc_Option4!Y$75,0)","v":0},{"$f":"Z$80+IF('Data Input - General'!$F$10=\"Yes\",Calc_Option4!Z$81,0)+IF('Data Input - General'!$F$12=\"Yes\",Calc_Option4!Z$75,0)","v":0},{"$f":"AA$80+IF('Data Input - General'!$F$10=\"Yes\",Calc_Option4!AA$81,0)+IF('Data Input - General'!$F$12=\"Yes\",Calc_Option4!AA$75,0)","v":0},{"$f":"AB$80+IF('Data Input - General'!$F$10=\"Yes\",Calc_Option4!AB$81,0)+IF('Data Input - General'!$F$12=\"Yes\",Calc_Option4!AB$75,0)","v":0},{"$f":"AC$80+IF('Data Input - General'!$F$10=\"Yes\",Calc_Option4!AC$81,0)+IF('Data Input - General'!$F$12=\"Yes\",Calc_Option4!AC$75,0)","v":0},{"$f":"AD$80+IF('Data Input - General'!$F$10=\"Yes\",Calc_Option4!AD$81,0)+IF('Data Input - General'!$F$12=\"Yes\",Calc_Option4!AD$75,0)","v":0},{"$f":"AE$80+IF('Data Input - General'!$F$10=\"Yes\",Calc_Option4!AE$81,0)+IF('Data Input - General'!$F$12=\"Yes\",Calc_Option4!AE$75,0)","v":0},{"$f":"AF$80+IF('Data Input - General'!$F$10=\"Yes\",Calc_Option4!AF$81,0)+IF('Data Input - General'!$F$12=\"Yes\",Calc_Option4!AF$75,0)","v":0},{"$f":"AG$80+IF('Data Input - General'!$F$10=\"Yes\",Calc_Option4!AG$81,0)+IF('Data Input - General'!$F$12=\"Yes\",Calc_Option4!AG$75,0)","v":0},{"$f":"AH$80+IF('Data Input - General'!$F$10=\"Yes\",Calc_Option4!AH$81,0)+IF('Data Input - General'!$F$12=\"Yes\",Calc_Option4!AH$75,0)","v":0},{"$f":"AI$80+IF('Data Input - General'!$F$10=\"Yes\",Calc_Option4!AI$81,0)+IF('Data Input - General'!$F$12=\"Yes\",Calc_Option4!AI$75,0)","v":0},{"$f":"AJ$80+IF('Data Input - General'!$F$10=\"Yes\",Calc_Option4!AJ$81,0)+IF('Data Input - General'!$F$12=\"Yes\",Calc_Option4!AJ$75,0)","v":0},{"$f":"AK$80+IF('Data Input - General'!$F$10=\"Yes\",Calc_Option4!AK$81,0)+IF('Data Input - General'!$F$12=\"Yes\",Calc_Option4!AK$75,0)","v":0},{"$f":"AL$80+IF('Data Input - General'!$F$10=\"Yes\",Calc_Option4!AL$81,0)+IF('Data Input - General'!$F$12=\"Yes\",Calc_Option4!AL$75,0)","v":0},{"$f":"AM$80+IF('Data Input - General'!$F$10=\"Yes\",Calc_Option4!AM$81,0)+IF('Data Input - General'!$F$12=\"Yes\",Calc_Option4!AM$75,0)","v":0},{"$f":"AN$80+IF('Data Input - General'!$F$10=\"Yes\",Calc_Option4!AN$81,0)+IF('Data Input - General'!$F$12=\"Yes\",Calc_Option4!AN$75,0)","v":0},{"$f":"AO$80+IF('Data Input - General'!$F$10=\"Yes\",Calc_Option4!AO$81,0)+IF('Data Input - General'!$F$12=\"Yes\",Calc_Option4!AO$75,0)","v":0},{"$f":"AP$80+IF('Data Input - General'!$F$10=\"Yes\",Calc_Option4!AP$81,0)+IF('Data Input - General'!$F$12=\"Yes\",Calc_Option4!AP$75,0)","v":0},{"$f":"AQ$80+IF('Data Input - General'!$F$10=\"Yes\",Calc_Option4!AQ$81,0)+IF('Data Input - General'!$F$12=\"Yes\",Calc_Option4!AQ$75,0)","v":0},{"$f":"AR$80+IF('Data Input - General'!$F$10=\"Yes\",Calc_Option4!AR$81,0)+IF('Data Input - General'!$F$12=\"Yes\",Calc_Option4!AR$75,0)","v":0},{"$f":"AS$80+IF('Data Input - General'!$F$10=\"Yes\",Calc_Option4!AS$81,0)+IF('Data Input - General'!$F$12=\"Yes\",Calc_Option4!AS$75,0)","v":0},{"$f":"AT$80+IF('Data Input - General'!$F$10=\"Yes\",Calc_Option4!AT$81,0)+IF('Data Input - General'!$F$12=\"Yes\",Calc_Option4!AT$75,0)","v":0},{"$f":"AU$80+IF('Data Input - General'!$F$10=\"Yes\",Calc_Option4!AU$81,0)+IF('Data Input - General'!$F$12=\"Yes\",Calc_Option4!AU$75,0)","v":0},{"$f":"AV$80+IF('Data Input - General'!$F$10=\"Yes\",Calc_Option4!AV$81,0)+IF('Data Input - General'!$F$12=\"Yes\",Calc_Option4!AV$75,0)","v":0},{"$f":"AW$80+IF('Data Input - General'!$F$10=\"Yes\",Calc_Option4!AW$81,0)+IF('Data Input - General'!$F$12=\"Yes\",Calc_Option4!AW$75,0)","v":0},{"$f":"AX$80+IF('Data Input - General'!$F$10=\"Yes\",Calc_Option4!AX$81,0)+IF('Data Input - General'!$F$12=\"Yes\",Calc_Option4!AX$75,0)","v":0},{"$f":"AY$80+IF('Data Input - General'!$F$10=\"Yes\",Calc_Option4!AY$81,0)+IF('Data Input - General'!$F$12=\"Yes\",Calc_Option4!AY$75,0)","v":0},{"$f":"AZ$80+IF('Data Input - General'!$F$10=\"Yes\",Calc_Option4!AZ$81,0)+IF('Data Input - General'!$F$12=\"Yes\",Calc_Option4!AZ$75,0)","v":0},{"$f":"BA$80+IF('Data Input - General'!$F$10=\"Yes\",Calc_Option4!BA$81,0)+IF('Data Input - General'!$F$12=\"Yes\",Calc_Option4!BA$75,0)","v":0},{"$f":"BB$80+IF('Data Input - General'!$F$10=\"Yes\",Calc_Option4!BB$81,0)+IF('Data Input - General'!$F$12=\"Yes\",Calc_Option4!BB$75,0)","v":0},{"$f":"BC$80+IF('Data Input - General'!$F$10=\"Yes\",Calc_Option4!BC$81,0)+IF('Data Input - General'!$F$12=\"Yes\",Calc_Option4!BC$75,0)","v":0},{"$f":"BD$80+IF('Data Input - General'!$F$10=\"Yes\",Calc_Option4!BD$81,0)+IF('Data Input - General'!$F$12=\"Yes\",Calc_Option4!BD$75,0)","v":0},{"$f":"BE$80+IF('Data Input - General'!$F$10=\"Yes\",Calc_Option4!BE$81,0)+IF('Data Input - General'!$F$12=\"Yes\",Calc_Option4!BE$75,0)","v":0},{"$f":"BF$80+IF('Data Input - General'!$F$10=\"Yes\",Calc_Option4!BF$81,0)+IF('Data Input - General'!$F$12=\"Yes\",Calc_Option4!BF$75,0)","v":0},{"$f":"BG$80+IF('Data Input - General'!$F$10=\"Yes\",Calc_Option4!BG$81,0)+IF('Data Input - General'!$F$12=\"Yes\",Calc_Option4!BG$75,0)","v":0},{"$f":"BH$80+IF('Data Input - General'!$F$10=\"Yes\",Calc_Option4!BH$81,0)+IF('Data Input - General'!$F$12=\"Yes\",Calc_Option4!BH$75,0)","v":0},{"$f":"BI$80+IF('Data Input - General'!$F$10=\"Yes\",Calc_Option4!BI$81,0)+IF('Data Input - General'!$F$12=\"Yes\",Calc_Option4!BI$75,0)","v":0},{"$f":"BJ$80+IF('Data Input - General'!$F$10=\"Yes\",Calc_Option4!BJ$81,0)+IF('Data Input - General'!$F$12=\"Yes\",Calc_Option4!BJ$75,0)","v":0},{"$f":"BK$80+IF('Data Input - General'!$F$10=\"Yes\",Calc_Option4!BK$81,0)+IF('Data Input - General'!$F$12=\"Yes\",Calc_Option4!BK$75,0)","v":0},{"$f":"BL$80+IF('Data Input - General'!$F$10=\"Yes\",Calc_Option4!BL$81,0)+IF('Data Input - General'!$F$12=\"Yes\",Calc_Option4!BL$75,0)","v":0},{"$f":"BM$80+IF('Data Input - General'!$F$10=\"Yes\",Calc_Option4!BM$81,0)+IF('Data Input - General'!$F$12=\"Yes\",Calc_Option4!BM$75,0)","v":0},{"$f":"BN$80+IF('Data Input - General'!$F$10=\"Yes\",Calc_Option4!BN$81,0)+IF('Data Input - General'!$F$12=\"Yes\",Calc_Option4!BN$75,0)","v":0},{"$f":"BO$80+IF('Data Input - General'!$F$10=\"Yes\",Calc_Option4!BO$81,0)+IF('Data Input - General'!$F$12=\"Yes\",Calc_Option4!BO$75,0)","v":0},{"$f":"BP$80+IF('Data Input - General'!$F$10=\"Yes\",Calc_Option4!BP$81,0)+IF('Data Input - General'!$F$12=\"Yes\",Calc_Option4!BP$75,0)","v":0},{"$f":"BQ$80+IF('Data Input - General'!$F$10=\"Yes\",Calc_Option4!BQ$81,0)+IF('Data Input - General'!$F$12=\"Yes\",Calc_Option4!BQ$75,0)","v":0},{"$f":"BR$80+IF('Data Input - General'!$F$10=\"Yes\",Calc_Option4!BR$81,0)+IF('Data Input - General'!$F$12=\"Yes\",Calc_Option4!BR$75,0)","v":0},{"$f":"BS$80+IF('Data Input - General'!$F$10=\"Yes\",Calc_Option4!BS$81,0)+IF('Data Input - General'!$F$12=\"Yes\",Calc_Option4!BS$75,0)","v":0},{"$f":"BT$80+IF('Data Input - General'!$F$10=\"Yes\",Calc_Option4!BT$81,0)+IF('Data Input - General'!$F$12=\"Yes\",Calc_Option4!BT$75,0)","v":0},{"$f":"BU$80+IF('Data Input - General'!$F$10=\"Yes\",Calc_Option4!BU$81,0)+IF('Data Input - General'!$F$12=\"Yes\",Calc_Option4!BU$75,0)","v":0},{"$f":"BV$80+IF('Data Input - General'!$F$10=\"Yes\",Calc_Option4!BV$81,0)+IF('Data Input - General'!$F$12=\"Yes\",Calc_Option4!BV$75,0)","v":0},{"$f":"BW$80+IF('Data Input - General'!$F$10=\"Yes\",Calc_Option4!BW$81,0)+IF('Data Input - General'!$F$12=\"Yes\",Calc_Option4!BW$75,0)","v":0},{"$f":"BX$80+IF('Data Input - General'!$F$10=\"Yes\",Calc_Option4!BX$81,0)+IF('Data Input - General'!$F$12=\"Yes\",Calc_Option4!BX$75,0)","v":0},{"$f":"BY$80+IF('Data Input - General'!$F$10=\"Yes\",Calc_Option4!BY$81,0)+IF('Data Input - General'!$F$12=\"Yes\",Calc_Option4!BY$75,0)","v":0},{"$f":"BZ$80+IF('Data Input - General'!$F$10=\"Yes\",Calc_Option4!BZ$81,0)+IF('Data Input - General'!$F$12=\"Yes\",Calc_Option4!BZ$75,0)","v":0},{"$f":"CA$80+IF('Data Input - General'!$F$10=\"Yes\",Calc_Option4!CA$81,0)+IF('Data Input - General'!$F$12=\"Yes\",Calc_Option4!CA$75,0)","v":0},{"$f":"CB$80+IF('Data Input - General'!$F$10=\"Yes\",Calc_Option4!CB$81,0)+IF('Data Input - General'!$F$12=\"Yes\",Calc_Option4!CB$75,0)","v":0},{"$f":"CC$80+IF('Data Input - General'!$F$10=\"Yes\",Calc_Option4!CC$81,0)+IF('Data Input - General'!$F$12=\"Yes\",Calc_Option4!CC$75,0)","v":0},{"$f":"CD$80+IF('Data Input - General'!$F$10=\"Yes\",Calc_Option4!CD$81,0)+IF('Data Input - General'!$F$12=\"Yes\",Calc_Option4!CD$75,0)","v":0},{"$f":"CE$80+IF('Data Input - General'!$F$10=\"Yes\",Calc_Option4!CE$81,0)+IF('Data Input - General'!$F$12=\"Yes\",Calc_Option4!CE$75,0)","v":0},{"$f":"CF$80+IF('Data Input - General'!$F$10=\"Yes\",Calc_Option4!CF$81,0)+IF('Data Input - General'!$F$12=\"Yes\",Calc_Option4!CF$75,0)","v":0},{"$f":"CG$80+IF('Data Input - General'!$F$10=\"Yes\",Calc_Option4!CG$81,0)+IF('Data Input - General'!$F$12=\"Yes\",Calc_Option4!CG$75,0)","v":0},{"$f":"CH$80+IF('Data Input - General'!$F$10=\"Yes\",Calc_Option4!CH$81,0)+IF('Data Input - General'!$F$12=\"Yes\",Calc_Option4!CH$75,0)","v":0},{"$f":"CI$80+IF('Data Input - General'!$F$10=\"Yes\",Calc_Option4!CI$81,0)+IF('Data Input - General'!$F$12=\"Yes\",Calc_Option4!CI$75,0)","v":0},{"$f":"CJ$80+IF('Data Input - General'!$F$10=\"Yes\",Calc_Option4!CJ$81,0)+IF('Data Input - General'!$F$12=\"Yes\",Calc_Option4!CJ$75,0)","v":0},{"$f":"CK$80+IF('Data Input - General'!$F$10=\"Yes\",Calc_Option4!CK$81,0)+IF('Data Input - General'!$F$12=\"Yes\",Calc_Option4!CK$75,0)","v":0},{"$f":"CL$80+IF('Data Input - General'!$F$10=\"Yes\",Calc_Option4!CL$81,0)+IF('Data Input - General'!$F$12=\"Yes\",Calc_Option4!CL$75,0)","v":0},{"$f":"CM$80+IF('Data Input - General'!$F$10=\"Yes\",Calc_Option4!CM$81,0)+IF('Data Input - General'!$F$12=\"Yes\",Calc_Option4!CM$75,0)","v":0},{"$f":"CN$80+IF('Data Input - General'!$F$10=\"Yes\",Calc_Option4!CN$81,0)+IF('Data Input - General'!$F$12=\"Yes\",Calc_Option4!CN$75,0)","v":0},{"$f":"CO$80+IF('Data Input - General'!$F$10=\"Yes\",Calc_Option4!CO$81,0)+IF('Data Input - General'!$F$12=\"Yes\",Calc_Option4!CO$75,0)","v":0},{"$f":"CP$80+IF('Data Input - General'!$F$10=\"Yes\",Calc_Option4!CP$81,0)+IF('Data Input - General'!$F$12=\"Yes\",Calc_Option4!CP$75,0)","v":0},{"$f":"CQ$80+IF('Data Input - General'!$F$10=\"Yes\",Calc_Option4!CQ$81,0)+IF('Data Input - General'!$F$12=\"Yes\",Calc_Option4!CQ$75,0)","v":0},{"$f":"CR$80+IF('Data Input - General'!$F$10=\"Yes\",Calc_Option4!CR$81,0)+IF('Data Input - General'!$F$12=\"Yes\",Calc_Option4!CR$75,0)","v":0},{"$f":"CS$80+IF('Data Input - General'!$F$10=\"Yes\",Calc_Option4!CS$81,0)+IF('Data Input - General'!$F$12=\"Yes\",Calc_Option4!CS$75,0)","v":0},{"$f":"CT$80+IF('Data Input - General'!$F$10=\"Yes\",Calc_Option4!CT$81,0)+IF('Data Input - General'!$F$12=\"Yes\",Calc_Option4!CT$75,0)","v":0},{"$f":"CU$80+IF('Data Input - General'!$F$10=\"Yes\",Calc_Option4!CU$81,0)+IF('Data Input - General'!$F$12=\"Yes\",Calc_Option4!CU$75,0)","v":0},{"$f":"CV$80+IF('Data Input - General'!$F$10=\"Yes\",Calc_Option4!CV$81,0)+IF('Data Input - General'!$F$12=\"Yes\",Calc_Option4!CV$75,0)","v":0},{"$f":"CW$80+IF('Data Input - General'!$F$10=\"Yes\",Calc_Option4!CW$81,0)+IF('Data Input - General'!$F$12=\"Yes\",Calc_Option4!CW$75,0)","v":0},{"$f":"CX$80+IF('Data Input - General'!$F$10=\"Yes\",Calc_Option4!CX$81,0)+IF('Data Input - General'!$F$12=\"Yes\",Calc_Option4!CX$75,0)","v":0},{"$f":"CY$80+IF('Data Input - General'!$F$10=\"Yes\",Calc_Option4!CY$81,0)+IF('Data Input - General'!$F$12=\"Yes\",Calc_Option4!CY$75,0)","v":0}]
[null,"Non-traded","tCO2e",{"$f":"IF('Data Input - General'!$F$10=\"Yes\",0,Calc_Option4!D$81)+IF('Data Input - General'!$F$12=\"Yes\",0,Calc_Option4!D$75)","v":0},{"$f":"IF('Data Input - General'!$F$10=\"Yes\",0,Calc_Option4!E$81)+IF('Data Input - General'!$F$12=\"Yes\",0,Calc_Option4!E$75)","v":0},{"$f":"IF('Data Input - General'!$F$10=\"Yes\",0,Calc_Option4!F$81)+IF('Data Input - General'!$F$12=\"Yes\",0,Calc_Option4!F$75)","v":0},{"$f":"IF('Data Input - General'!$F$10=\"Yes\",0,Calc_Option4!G$81)+IF('Data Input - General'!$F$12=\"Yes\",0,Calc_Option4!G$75)","v":0},{"$f":"IF('Data Input - General'!$F$10=\"Yes\",0,Calc_Option4!H$81)+IF('Data Input - General'!$F$12=\"Yes\",0,Calc_Option4!H$75)","v":0},{"$f":"IF('Data Input - General'!$F$10=\"Yes\",0,Calc_Option4!I$81)+IF('Data Input - General'!$F$12=\"Yes\",0,Calc_Option4!I$75)","v":0},{"$f":"IF('Data Input - General'!$F$10=\"Yes\",0,Calc_Option4!J$81)+IF('Data Input - General'!$F$12=\"Yes\",0,Calc_Option4!J$75)","v":0},{"$f":"IF('Data Input - General'!$F$10=\"Yes\",0,Calc_Option4!K$81)+IF('Data Input - General'!$F$12=\"Yes\",0,Calc_Option4!K$75)","v":0},{"$f":"IF('Data Input - General'!$F$10=\"Yes\",0,Calc_Option4!L$81)+IF('Data Input - General'!$F$12=\"Yes\",0,Calc_Option4!L$75)","v":0},{"$f":"IF('Data Input - General'!$F$10=\"Yes\",0,Calc_Option4!M$81)+IF('Data Input - General'!$F$12=\"Yes\",0,Calc_Option4!M$75)","v":0},{"$f":"IF('Data Input - General'!$F$10=\"Yes\",0,Calc_Option4!N$81)+IF('Data Input - General'!$F$12=\"Yes\",0,Calc_Option4!N$75)","v":0},{"$f":"IF('Data Input - General'!$F$10=\"Yes\",0,Calc_Option4!O$81)+IF('Data Input - General'!$F$12=\"Yes\",0,Calc_Option4!O$75)","v":0},{"$f":"IF('Data Input - General'!$F$10=\"Yes\",0,Calc_Option4!P$81)+IF('Data Input - General'!$F$12=\"Yes\",0,Calc_Option4!P$75)","v":0},{"$f":"IF('Data Input - General'!$F$10=\"Yes\",0,Calc_Option4!Q$81)+IF('Data Input - General'!$F$12=\"Yes\",0,Calc_Option4!Q$75)","v":0},{"$f":"IF('Data Input - General'!$F$10=\"Yes\",0,Calc_Option4!R$81)+IF('Data Input - General'!$F$12=\"Yes\",0,Calc_Option4!R$75)","v":0},{"$f":"IF('Data Input - General'!$F$10=\"Yes\",0,Calc_Option4!S$81)+IF('Data Input - General'!$F$12=\"Yes\",0,Calc_Option4!S$75)","v":0},{"$f":"IF('Data Input - General'!$F$10=\"Yes\",0,Calc_Option4!T$81)+IF('Data Input - General'!$F$12=\"Yes\",0,Calc_Option4!T$75)","v":0},{"$f":"IF('Data Input - General'!$F$10=\"Yes\",0,Calc_Option4!U$81)+IF('Data Input - General'!$F$12=\"Yes\",0,Calc_Option4!U$75)","v":0},{"$f":"IF('Data Input - General'!$F$10=\"Yes\",0,Calc_Option4!V$81)+IF('Data Input - General'!$F$12=\"Yes\",0,Calc_Option4!V$75)","v":0},{"$f":"IF('Data Input - General'!$F$10=\"Yes\",0,Calc_Option4!W$81)+IF('Data Input - General'!$F$12=\"Yes\",0,Calc_Option4!W$75)","v":0},{"$f":"IF('Data Input - General'!$F$10=\"Yes\",0,Calc_Option4!X$81)+IF('Data Input - General'!$F$12=\"Yes\",0,Calc_Option4!X$75)","v":0},{"$f":"IF('Data Input - General'!$F$10=\"Yes\",0,Calc_Option4!Y$81)+IF('Data Input - General'!$F$12=\"Yes\",0,Calc_Option4!Y$75)","v":0},{"$f":"IF('Data Input - General'!$F$10=\"Yes\",0,Calc_Option4!Z$81)+IF('Data Input - General'!$F$12=\"Yes\",0,Calc_Option4!Z$75)","v":0},{"$f":"IF('Data Input - General'!$F$10=\"Yes\",0,Calc_Option4!AA$81)+IF('Data Input - General'!$F$12=\"Yes\",0,Calc_Option4!AA$75)","v":0},{"$f":"IF('Data Input - General'!$F$10=\"Yes\",0,Calc_Option4!AB$81)+IF('Data Input - General'!$F$12=\"Yes\",0,Calc_Option4!AB$75)","v":0},{"$f":"IF('Data Input - General'!$F$10=\"Yes\",0,Calc_Option4!AC$81)+IF('Data Input - General'!$F$12=\"Yes\",0,Calc_Option4!AC$75)","v":0},{"$f":"IF('Data Input - General'!$F$10=\"Yes\",0,Calc_Option4!AD$81)+IF('Data Input - General'!$F$12=\"Yes\",0,Calc_Option4!AD$75)","v":0},{"$f":"IF('Data Input - General'!$F$10=\"Yes\",0,Calc_Option4!AE$81)+IF('Data Input - General'!$F$12=\"Yes\",0,Calc_Option4!AE$75)","v":0},{"$f":"IF('Data Input - General'!$F$10=\"Yes\",0,Calc_Option4!AF$81)+IF('Data Input - General'!$F$12=\"Yes\",0,Calc_Option4!AF$75)","v":0},{"$f":"IF('Data Input - General'!$F$10=\"Yes\",0,Calc_Option4!AG$81)+IF('Data Input - General'!$F$12=\"Yes\",0,Calc_Option4!AG$75)","v":0},{"$f":"IF('Data Input - General'!$F$10=\"Yes\",0,Calc_Option4!AH$81)+IF('Data Input - General'!$F$12=\"Yes\",0,Calc_Option4!AH$75)","v":0},{"$f":"IF('Data Input - General'!$F$10=\"Yes\",0,Calc_Option4!AI$81)+IF('Data Input - General'!$F$12=\"Yes\",0,Calc_Option4!AI$75)","v":0},{"$f":"IF('Data Input - General'!$F$10=\"Yes\",0,Calc_Option4!AJ$81)+IF('Data Input - General'!$F$12=\"Yes\",0,Calc_Option4!AJ$75)","v":0},{"$f":"IF('Data Input - General'!$F$10=\"Yes\",0,Calc_Option4!AK$81)+IF('Data Input - General'!$F$12=\"Yes\",0,Calc_Option4!AK$75)","v":0},{"$f":"IF('Data Input - General'!$F$10=\"Yes\",0,Calc_Option4!AL$81)+IF('Data Input - General'!$F$12=\"Yes\",0,Calc_Option4!AL$75)","v":0},{"$f":"IF('Data Input - General'!$F$10=\"Yes\",0,Calc_Option4!AM$81)+IF('Data Input - General'!$F$12=\"Yes\",0,Calc_Option4!AM$75)","v":0},{"$f":"IF('Data Input - General'!$F$10=\"Yes\",0,Calc_Option4!AN$81)+IF('Data Input - General'!$F$12=\"Yes\",0,Calc_Option4!AN$75)","v":0},{"$f":"IF('Data Input - General'!$F$10=\"Yes\",0,Calc_Option4!AO$81)+IF('Data Input - General'!$F$12=\"Yes\",0,Calc_Option4!AO$75)","v":0},{"$f":"IF('Data Input - General'!$F$10=\"Yes\",0,Calc_Option4!AP$81)+IF('Data Input - General'!$F$12=\"Yes\",0,Calc_Option4!AP$75)","v":0},{"$f":"IF('Data Input - General'!$F$10=\"Yes\",0,Calc_Option4!AQ$81)+IF('Data Input - General'!$F$12=\"Yes\",0,Calc_Option4!AQ$75)","v":0},{"$f":"IF('Data Input - General'!$F$10=\"Yes\",0,Calc_Option4!AR$81)+IF('Data Input - General'!$F$12=\"Yes\",0,Calc_Option4!AR$75)","v":0},{"$f":"IF('Data Input - General'!$F$10=\"Yes\",0,Calc_Option4!AS$81)+IF('Data Input - General'!$F$12=\"Yes\",0,Calc_Option4!AS$75)","v":0},{"$f":"IF('Data Input - General'!$F$10=\"Yes\",0,Calc_Option4!AT$81)+IF('Data Input - General'!$F$12=\"Yes\",0,Calc_Option4!AT$75)","v":0},{"$f":"IF('Data Input - General'!$F$10=\"Yes\",0,Calc_Option4!AU$81)+IF('Data Input - General'!$F$12=\"Yes\",0,Calc_Option4!AU$75)","v":0},{"$f":"IF('Data Input - General'!$F$10=\"Yes\",0,Calc_Option4!AV$81)+IF('Data Input - General'!$F$12=\"Yes\",0,Calc_Option4!AV$75)","v":0},{"$f":"IF('Data Input - General'!$F$10=\"Yes\",0,Calc_Option4!AW$81)+IF('Data Input - General'!$F$12=\"Yes\",0,Calc_Option4!AW$75)","v":0},{"$f":"IF('Data Input - General'!$F$10=\"Yes\",0,Calc_Option4!AX$81)+IF('Data Input - General'!$F$12=\"Yes\",0,Calc_Option4!AX$75)","v":0},{"$f":"IF('Data Input - General'!$F$10=\"Yes\",0,Calc_Option4!AY$81)+IF('Data Input - General'!$F$12=\"Yes\",0,Calc_Option4!AY$75)","v":0},{"$f":"IF('Data Input - General'!$F$10=\"Yes\",0,Calc_Option4!AZ$81)+IF('Data Input - General'!$F$12=\"Yes\",0,Calc_Option4!AZ$75)","v":0},{"$f":"IF('Data Input - General'!$F$10=\"Yes\",0,Calc_Option4!BA$81)+IF('Data Input - General'!$F$12=\"Yes\",0,Calc_Option4!BA$75)","v":0},{"$f":"IF('Data Input - General'!$F$10=\"Yes\",0,Calc_Option4!BB$81)+IF('Data Input - General'!$F$12=\"Yes\",0,Calc_Option4!BB$75)","v":0},{"$f":"IF('Data Input - General'!$F$10=\"Yes\",0,Calc_Option4!BC$81)+IF('Data Input - General'!$F$12=\"Yes\",0,Calc_Option4!BC$75)","v":0},{"$f":"IF('Data Input - General'!$F$10=\"Yes\",0,Calc_Option4!BD$81)+IF('Data Input - General'!$F$12=\"Yes\",0,Calc_Option4!BD$75)","v":0},{"$f":"IF('Data Input - General'!$F$10=\"Yes\",0,Calc_Option4!BE$81)+IF('Data Input - General'!$F$12=\"Yes\",0,Calc_Option4!BE$75)","v":0},{"$f":"IF('Data Input - General'!$F$10=\"Yes\",0,Calc_Option4!BF$81)+IF('Data Input - General'!$F$12=\"Yes\",0,Calc_Option4!BF$75)","v":0},{"$f":"IF('Data Input - General'!$F$10=\"Yes\",0,Calc_Option4!BG$81)+IF('Data Input - General'!$F$12=\"Yes\",0,Calc_Option4!BG$75)","v":0},{"$f":"IF('Data Input - General'!$F$10=\"Yes\",0,Calc_Option4!BH$81)+IF('Data Input - General'!$F$12=\"Yes\",0,Calc_Option4!BH$75)","v":0},{"$f":"IF('Data Input - General'!$F$10=\"Yes\",0,Calc_Option4!BI$81)+IF('Data Input - General'!$F$12=\"Yes\",0,Calc_Option4!BI$75)","v":0},{"$f":"IF('Data Input - General'!$F$10=\"Yes\",0,Calc_Option4!BJ$81)+IF('Data Input - General'!$F$12=\"Yes\",0,Calc_Option4!BJ$75)","v":0},{"$f":"IF('Data Input - General'!$F$10=\"Yes\",0,Calc_Option4!BK$81)+IF('Data Input - General'!$F$12=\"Yes\",0,Calc_Option4!BK$75)","v":0},{"$f":"IF('Data Input - General'!$F$10=\"Yes\",0,Calc_Option4!BL$81)+IF('Data Input - General'!$F$12=\"Yes\",0,Calc_Option4!BL$75)","v":0},{"$f":"IF('Data Input - General'!$F$10=\"Yes\",0,Calc_Option4!BM$81)+IF('Data Input - General'!$F$12=\"Yes\",0,Calc_Option4!BM$75)","v":0},{"$f":"IF('Data Input - General'!$F$10=\"Yes\",0,Calc_Option4!BN$81)+IF('Data Input - General'!$F$12=\"Yes\",0,Calc_Option4!BN$75)","v":0},{"$f":"IF('Data Input - General'!$F$10=\"Yes\",0,Calc_Option4!BO$81)+IF('Data Input - General'!$F$12=\"Yes\",0,Calc_Option4!BO$75)","v":0},{"$f":"IF('Data Input - General'!$F$10=\"Yes\",0,Calc_Option4!BP$81)+IF('Data Input - General'!$F$12=\"Yes\",0,Calc_Option4!BP$75)","v":0},{"$f":"IF('Data Input - General'!$F$10=\"Yes\",0,Calc_Option4!BQ$81)+IF('Data Input - General'!$F$12=\"Yes\",0,Calc_Option4!BQ$75)","v":0},{"$f":"IF('Data Input - General'!$F$10=\"Yes\",0,Calc_Option4!BR$81)+IF('Data Input - General'!$F$12=\"Yes\",0,Calc_Option4!BR$75)","v":0},{"$f":"IF('Data Input - General'!$F$10=\"Yes\",0,Calc_Option4!BS$81)+IF('Data Input - General'!$F$12=\"Yes\",0,Calc_Option4!BS$75)","v":0},{"$f":"IF('Data Input - General'!$F$10=\"Yes\",0,Calc_Option4!BT$81)+IF('Data Input - General'!$F$12=\"Yes\",0,Calc_Option4!BT$75)","v":0},{"$f":"IF('Data Input - General'!$F$10=\"Yes\",0,Calc_Option4!BU$81)+IF('Data Input - General'!$F$12=\"Yes\",0,Calc_Option4!BU$75)","v":0},{"$f":"IF('Data Input - General'!$F$10=\"Yes\",0,Calc_Option4!BV$81)+IF('Data Input - General'!$F$12=\"Yes\",0,Calc_Option4!BV$75)","v":0},{"$f":"IF('Data Input - General'!$F$10=\"Yes\",0,Calc_Option4!BW$81)+IF('Data Input - General'!$F$12=\"Yes\",0,Calc_Option4!BW$75)","v":0},{"$f":"IF('Data Input - General'!$F$10=\"Yes\",0,Calc_Option4!BX$81)+IF('Data Input - General'!$F$12=\"Yes\",0,Calc_Option4!BX$75)","v":0},{"$f":"IF('Data Input - General'!$F$10=\"Yes\",0,Calc_Option4!BY$81)+IF('Data Input - General'!$F$12=\"Yes\",0,Calc_Option4!BY$75)","v":0},{"$f":"IF('Data Input - General'!$F$10=\"Yes\",0,Calc_Option4!BZ$81)+IF('Data Input - General'!$F$12=\"Yes\",0,Calc_Option4!BZ$75)","v":0},{"$f":"IF('Data Input - General'!$F$10=\"Yes\",0,Calc_Option4!CA$81)+IF('Data Input - General'!$F$12=\"Yes\",0,Calc_Option4!CA$75)","v":0},{"$f":"IF('Data Input - General'!$F$10=\"Yes\",0,Calc_Option4!CB$81)+IF('Data Input - General'!$F$12=\"Yes\",0,Calc_Option4!CB$75)","v":0},{"$f":"IF('Data Input - General'!$F$10=\"Yes\",0,Calc_Option4!CC$81)+IF('Data Input - General'!$F$12=\"Yes\",0,Calc_Option4!CC$75)","v":0},{"$f":"IF('Data Input - General'!$F$10=\"Yes\",0,Calc_Option4!CD$81)+IF('Data Input - General'!$F$12=\"Yes\",0,Calc_Option4!CD$75)","v":0},{"$f":"IF('Data Input - General'!$F$10=\"Yes\",0,Calc_Option4!CE$81)+IF('Data Input - General'!$F$12=\"Yes\",0,Calc_Option4!CE$75)","v":0},{"$f":"IF('Data Input - General'!$F$10=\"Yes\",0,Calc_Option4!CF$81)+IF('Data Input - General'!$F$12=\"Yes\",0,Calc_Option4!CF$75)","v":0},{"$f":"IF('Data Input - General'!$F$10=\"Yes\",0,Calc_Option4!CG$81)+IF('Data Input - General'!$F$12=\"Yes\",0,Calc_Option4!CG$75)","v":0},{"$f":"IF('Data Input - General'!$F$10=\"Yes\",0,Calc_Option4!CH$81)+IF('Data Input - General'!$F$12=\"Yes\",0,Calc_Option4!CH$75)","v":0},{"$f":"IF('Data Input - General'!$F$10=\"Yes\",0,Calc_Option4!CI$81)+IF('Data Input - General'!$F$12=\"Yes\",0,Calc_Option4!CI$75)","v":0},{"$f":"IF('Data Input - General'!$F$10=\"Yes\",0,Calc_Option4!CJ$81)+IF('Data Input - General'!$F$12=\"Yes\",0,Calc_Option4!CJ$75)","v":0},{"$f":"IF('Data Input - General'!$F$10=\"Yes\",0,Calc_Option4!CK$81)+IF('Data Input - General'!$F$12=\"Yes\",0,Calc_Option4!CK$75)","v":0},{"$f":"IF('Data Input - General'!$F$10=\"Yes\",0,Calc_Option4!CL$81)+IF('Data Input - General'!$F$12=\"Yes\",0,Calc_Option4!CL$75)","v":0},{"$f":"IF('Data Input - General'!$F$10=\"Yes\",0,Calc_Option4!CM$81)+IF('Data Input - General'!$F$12=\"Yes\",0,Calc_Option4!CM$75)","v":0},{"$f":"IF('Data Input - General'!$F$10=\"Yes\",0,Calc_Option4!CN$81)+IF('Data Input - General'!$F$12=\"Yes\",0,Calc_Option4!CN$75)","v":0},{"$f":"IF('Data Input - General'!$F$10=\"Yes\",0,Calc_Option4!CO$81)+IF('Data Input - General'!$F$12=\"Yes\",0,Calc_Option4!CO$75)","v":0},{"$f":"IF('Data Input - General'!$F$10=\"Yes\",0,Calc_Option4!CP$81)+IF('Data Input - General'!$F$12=\"Yes\",0,Calc_Option4!CP$75)","v":0},{"$f":"IF('Data Input - General'!$F$10=\"Yes\",0,Calc_Option4!CQ$81)+IF('Data Input - General'!$F$12=\"Yes\",0,Calc_Option4!CQ$75)","v":0},{"$f":"IF('Data Input - General'!$F$10=\"Yes\",0,Calc_Option4!CR$81)+IF('Data Input - General'!$F$12=\"Yes\",0,Calc_Option4!CR$75)","v":0},{"$f":"IF('Data Input - General'!$F$10=\"Yes\",0,Calc_Option4!CS$81)+IF('Data Input - General'!$F$12=\"Yes\",0,Calc_Option4!CS$75)","v":0},{"$f":"IF('Data Input - General'!$F$10=\"Yes\",0,Calc_Option4!CT$81)+IF('Data Input - General'!$F$12=\"Yes\",0,Calc_Option4!CT$75)","v":0},{"$f":"IF('Data Input - General'!$F$10=\"Yes\",0,Calc_Option4!CU$81)+IF('Data Input - General'!$F$12=\"Yes\",0,Calc_Option4!CU$75)","v":0},{"$f":"IF('Data Input - General'!$F$10=\"Yes\",0,Calc_Option4!CV$81)+IF('Data Input - General'!$F$12=\"Yes\",0,Calc_Option4!CV$75)","v":0},{"$f":"IF('Data Input - General'!$F$10=\"Yes\",0,Calc_Option4!CW$81)+IF('Data Input - General'!$F$12=\"Yes\",0,Calc_Option4!CW$75)","v":0},{"$f":"IF('Data Input - General'!$F$10=\"Yes\",0,Calc_Option4!CX$81)+IF('Data Input - General'!$F$12=\"Yes\",0,Calc_Option4!CX$75)","v":0},{"$f":"IF('Data Input - General'!$F$10=\"Yes\",0,Calc_Option4!CY$81)+IF('Data Input - General'!$F$12=\"Yes\",0,Calc_Option4!CY$75)","v":0}]
[null,"Value non-elec","£000's",{"$f":"IFERROR(INDEX('Carbon Prices'!$D$10:$CP$15,3,MATCH(Calc_Option4!D$6,'Carbon Prices'!$D$9:$CP$9,0))/1000,0)","v":3.6595483614396386E-2},{"$f":"IFERROR(INDEX('Carbon Prices'!$D$10:$CP$15,3,MATCH(Calc_Option4!E$6,'Carbon Prices'!$D$9:$CP$9,0))/1000,0)","v":4.1954810259537539E-2},{"$f":"IFERROR(INDEX('Carbon Prices'!$D$10:$CP$15,3,MATCH(Calc_Option4!F$6,'Carbon Prices'!$D$9:$CP$9,0))/1000,0)","v":5.0409774844480275E-2},{"$f":"IFERROR(INDEX('Carbon Prices'!$D$10:$CP$15,3,MATCH(Calc_Option4!G$6,'Carbon Prices'!$D$9:$CP$9,0))/1000,0)","v":5.886473942942301E-2},{"$f":"IFERROR(INDEX('Carbon Prices'!$D$10:$CP$15,3,MATCH(Calc_Option4!H$6,'Carbon Prices'!$D$9:$CP$9,0))/1000,0)","v":6.7319704014365739E-2},{"$f":"IFERROR(INDEX('Carbon Prices'!$D$10:$CP$15,3,MATCH(Calc_Option4!I$6,'Carbon Prices'!$D$9:$CP$9,0))/1000,0)","v":7.5774668599308467E-2},{"$f":"IFERROR(INDEX('Carbon Prices'!$D$10:$CP$15,3,MATCH(Calc_Option4!J$6,'Carbon Prices'!$D$9:$CP$9,0))/1000,0)","v":8.422963318425121E-2},{"$f":"IFERROR(INDEX('Carbon Prices'!$D$10:$CP$15,3,MATCH(Calc_Option4!K$6,'Carbon Prices'!$D$9:$CP$9,0))/1000,0)","v":9.2684597769193938E-2},{"$f":"IFERROR(INDEX('Carbon Prices'!$D$10:$CP$15,3,MATCH(Calc_Option4!L$6,'Carbon Prices'!$D$9:$CP$9,0))/1000,0)","v":0.10113956235413668},{"$f":"IFERROR(INDEX('Carbon Prices'!$D$10:$CP$15,3,MATCH(Calc_Option4!M$6,'Carbon Prices'!$D$9:$CP$9,0))/1000,0)","v":0.10959452693907941},{"$f":"IFERROR(INDEX('Carbon Prices'!$D$10:$CP$15,3,MATCH(Calc_Option4!N$6,'Carbon Prices'!$D$9:$CP$9,0))/1000,0)","v":0.11804949152402217},{"$f":"IFERROR(INDEX('Carbon Prices'!$D$10:$CP$15,3,MATCH(Calc_Option4!O$6,'Carbon Prices'!$D$9:$CP$9,0))/1000,0)","v":0.12650445610896488},{"$f":"IFERROR(INDEX('Carbon Prices'!$D$10:$CP$15,3,MATCH(Calc_Option4!P$6,'Carbon Prices'!$D$9:$CP$9,0))/1000,0)","v":0.13825129846194026},{"$f":"IFERROR(INDEX('Carbon Prices'!$D$10:$CP$15,3,MATCH(Calc_Option4!Q$6,'Carbon Prices'!$D$9:$CP$9,0))/1000,0)","v":0.14999814081491555},{"$f":"IFERROR(INDEX('Carbon Prices'!$D$10:$CP$15,3,MATCH(Calc_Option4!R$6,'Carbon Prices'!$D$9:$CP$9,0))/1000,0)","v":0.1617449831678909},{"$f":"IFERROR(INDEX('Carbon Prices'!$D$10:$CP$15,3,MATCH(Calc_Option4!S$6,'Carbon Prices'!$D$9:$CP$9,0))/1000,0)","v":0.1734918255208662},{"$f":"IFERROR(INDEX('Carbon Prices'!$D$10:$CP$15,3,MATCH(Calc_Option4!T$6,'Carbon Prices'!$D$9:$CP$9,0))/1000,0)","v":0.18523866787384149},{"$f":"IFERROR(INDEX('Carbon Prices'!$D$10:$CP$15,3,MATCH(Calc_Option4!U$6,'Carbon Prices'!$D$9:$CP$9,0))/1000,0)","v":0.19698551022681682},{"$f":"IFERROR(INDEX('Carbon Prices'!$D$10:$CP$15,3,MATCH(Calc_Option4!V$6,'Carbon Prices'!$D$9:$CP$9,0))/1000,0)","v":0.20873235257979214},{"$f":"IFERROR(INDEX('Carbon Prices'!$D$10:$CP$15,3,MATCH(Calc_Option4!W$6,'Carbon Prices'!$D$9:$CP$9,0))/1000,0)","v":0.22047919493276749},{"$f":"IFERROR(INDEX('Carbon Prices'!$D$10:$CP$15,3,MATCH(Calc_Option4!X$6,'Carbon Prices'!$D$9:$CP$9,0))/1000,0)","v":0.23222603728574279},{"$f":"IFERROR(INDEX('Carbon Prices'!$D$10:$CP$15,3,MATCH(Calc_Option4!Y$6,'Carbon Prices'!$D$9:$CP$9,0))/1000,0)","v":0.24397287963871811},{"$f":"IFERROR(INDEX('Carbon Prices'!$D$10:$CP$15,3,MATCH(Calc_Option4!Z$6,'Carbon Prices'!$D$9:$CP$9,0))/1000,0)","v":0.25571972199169341},{"$f":"IFERROR(INDEX('Carbon Prices'!$D$10:$CP$15,3,MATCH(Calc_Option4!AA$6,'Carbon Prices'!$D$9:$CP$9,0))/1000,0)","v":0.2674665643446687},{"$f":"IFERROR(INDEX('Carbon Prices'!$D$10:$CP$15,3,MATCH(Calc_Option4!AB$6,'Carbon Prices'!$D$9:$CP$9,0))/1000,0)","v":0.27921340669764405},{"$f":"IFERROR(INDEX('Carbon Prices'!$D$10:$CP$15,3,MATCH(Calc_Option4!AC$6,'Carbon Prices'!$D$9:$CP$9,0))/1000,0)","v":0.2909602490506194},{"$f":"IFERROR(INDEX('Carbon Prices'!$D$10:$CP$15,3,MATCH(Calc_Option4!AD$6,'Carbon Prices'!$D$9:$CP$9,0))/1000,0)","v":0.3027070914035947},{"$f":"IFERROR(INDEX('Carbon Prices'!$D$10:$CP$15,3,MATCH(Calc_Option4!AE$6,'Carbon Prices'!$D$9:$CP$9,0))/1000,0)","v":0.31445393375656999},{"$f":"IFERROR(INDEX('Carbon Prices'!$D$10:$CP$15,3,MATCH(Calc_Option4!AF$6,'Carbon Prices'!$D$9:$CP$9,0))/1000,0)","v":0.32620077610954529},{"$f":"IFERROR(INDEX('Carbon Prices'!$D$10:$CP$15,3,MATCH(Calc_Option4!AG$6,'Carbon Prices'!$D$9:$CP$9,0))/1000,0)","v":0.33794761846252058},{"$f":"IFERROR(INDEX('Carbon Prices'!$D$10:$CP$15,3,MATCH(Calc_Option4!AH$6,'Carbon Prices'!$D$9:$CP$9,0))/1000,0)","v":0.34969446081549593},{"$f":"IFERROR(INDEX('Carbon Prices'!$D$10:$CP$15,3,MATCH(Calc_Option4!AI$6,'Carbon Prices'!$D$9:$CP$9,0))/1000,0)","v":0},{"$f":"IFERROR(INDEX('Carbon Prices'!$D$10:$CP$15,3,MATCH(Calc_Option4!AJ$6,'Carbon Prices'!$D$9:$CP$9,0))/1000,0)","v":0},{"$f":"IFERROR(INDEX('Carbon Prices'!$D$10:$CP$15,3,MATCH(Calc_Option4!AK$6,'Carbon Prices'!$D$9:$CP$9,0))/1000,0)","v":0},{"$f":"IFERROR(INDEX('Carbon Prices'!$D$10:$CP$15,3,MATCH(Calc_Option4!AL$6,'Carbon Prices'!$D$9:$CP$9,0))/1000,0)","v":0},{"$f":"IFERROR(INDEX('Carbon Prices'!$D$10:$CP$15,3,MATCH(Calc_Option4!AM$6,'Carbon Prices'!$D$9:$CP$9,0))/1000,0)","v":0},{"$f":"IFERROR(INDEX('Carbon Prices'!$D$10:$CP$15,3,MATCH(Calc_Option4!AN$6,'Carbon Prices'!$D$9:$CP$9,0))/1000,0)","v":0},{"$f":"IFERROR(INDEX('Carbon Prices'!$D$10:$CP$15,3,MATCH(Calc_Option4!AO$6,'Carbon Prices'!$D$9:$CP$9,0))/1000,0)","v":0},{"$f":"IFERROR(INDEX('Carbon Prices'!$D$10:$CP$15,3,MATCH(Calc_Option4!AP$6,'Carbon Prices'!$D$9:$CP$9,0))/1000,0)","v":0},{"$f":"IFERROR(INDEX('Carbon Prices'!$D$10:$CP$15,3,MATCH(Calc_Option4!AQ$6,'Carbon Prices'!$D$9:$CP$9,0))/1000,0)","v":0},{"$f":"IFERROR(INDEX('Carbon Prices'!$D$10:$CP$15,3,MATCH(Calc_Option4!AR$6,'Carbon Prices'!$D$9:$CP$9,0))/1000,0)","v":0},{"$f":"IFERROR(INDEX('Carbon Prices'!$D$10:$CP$15,3,MATCH(Calc_Option4!AS$6,'Carbon Prices'!$D$9:$CP$9,0))/1000,0)","v":0},{"$f":"IFERROR(INDEX('Carbon Prices'!$D$10:$CP$15,3,MATCH(Calc_Option4!AT$6,'Carbon Prices'!$D$9:$CP$9,0))/1000,0)","v":0},{"$f":"IFERROR(INDEX('Carbon Prices'!$D$10:$CP$15,3,MATCH(Calc_Option4!AU$6,'Carbon Prices'!$D$9:$CP$9,0))/1000,0)","v":0},{"$f":"IFERROR(INDEX('Carbon Prices'!$D$10:$CP$15,3,MATCH(Calc_Option4!AV$6,'Carbon Prices'!$D$9:$CP$9,0))/1000,0)","v":0},{"$f":"IFERROR(INDEX('Carbon Prices'!$D$10:$CP$15,3,MATCH(Calc_Option4!AW$6,'Carbon Prices'!$D$9:$CP$9,0))/1000,0)","v":0},{"$f":"IFERROR(INDEX('Carbon Prices'!$D$10:$CP$15,3,MATCH(Calc_Option4!AX$6,'Carbon Prices'!$D$9:$CP$9,0))/1000,0)","v":0},{"$f":"IFERROR(INDEX('Carbon Prices'!$D$10:$CP$15,3,MATCH(Calc_Option4!AY$6,'Carbon Prices'!$D$9:$CP$9,0))/1000,0)","v":0},{"$f":"IFERROR(INDEX('Carbon Prices'!$D$10:$CP$15,3,MATCH(Calc_Option4!AZ$6,'Carbon Prices'!$D$9:$CP$9,0))/1000,0)","v":0},{"$f":"IFERROR(INDEX('Carbon Prices'!$D$10:$CP$15,3,MATCH(Calc_Option4!BA$6,'Carbon Prices'!$D$9:$CP$9,0))/1000,0)","v":0},{"$f":"IFERROR(INDEX('Carbon Prices'!$D$10:$CP$15,3,MATCH(Calc_Option4!BB$6,'Carbon Prices'!$D$9:$CP$9,0))/1000,0)","v":0},{"$f":"IFERROR(INDEX('Carbon Prices'!$D$10:$CP$15,3,MATCH(Calc_Option4!BC$6,'Carbon Prices'!$D$9:$CP$9,0))/1000,0)","v":0},{"$f":"IFERROR(INDEX('Carbon Prices'!$D$10:$CP$15,3,MATCH(Calc_Option4!BD$6,'Carbon Prices'!$D$9:$CP$9,0))/1000,0)","v":0},{"$f":"IFERROR(INDEX('Carbon Prices'!$D$10:$CP$15,3,MATCH(Calc_Option4!BE$6,'Carbon Prices'!$D$9:$CP$9,0))/1000,0)","v":0},{"$f":"IFERROR(INDEX('Carbon Prices'!$D$10:$CP$15,3,MATCH(Calc_Option4!BF$6,'Carbon Prices'!$D$9:$CP$9,0))/1000,0)","v":0},{"$f":"IFERROR(INDEX('Carbon Prices'!$D$10:$CP$15,3,MATCH(Calc_Option4!BG$6,'Carbon Prices'!$D$9:$CP$9,0))/1000,0)","v":0},{"$f":"IFERROR(INDEX('Carbon Prices'!$D$10:$CP$15,3,MATCH(Calc_Option4!BH$6,'Carbon Prices'!$D$9:$CP$9,0))/1000,0)","v":0},{"$f":"IFERROR(INDEX('Carbon Prices'!$D$10:$CP$15,3,MATCH(Calc_Option4!BI$6,'Carbon Prices'!$D$9:$CP$9,0))/1000,0)","v":0},{"$f":"IFERROR(INDEX('Carbon Prices'!$D$10:$CP$15,3,MATCH(Calc_Option4!BJ$6,'Carbon Prices'!$D$9:$CP$9,0))/1000,0)","v":0},{"$f":"IFERROR(INDEX('Carbon Prices'!$D$10:$CP$15,3,MATCH(Calc_Option4!BK$6,'Carbon Prices'!$D$9:$CP$9,0))/1000,0)","v":0},{"$f":"IFERROR(INDEX('Carbon Prices'!$D$10:$CP$15,3,MATCH(Calc_Option4!BL$6,'Carbon Prices'!$D$9:$CP$9,0))/1000,0)","v":0},{"$f":"IFERROR(INDEX('Carbon Prices'!$D$10:$CP$15,3,MATCH(Calc_Option4!BM$6,'Carbon Prices'!$D$9:$CP$9,0))/1000,0)","v":0},{"$f":"IFERROR(INDEX('Carbon Prices'!$D$10:$CP$15,3,MATCH(Calc_Option4!BN$6,'Carbon Prices'!$D$9:$CP$9,0))/1000,0)","v":0},{"$f":"IFERROR(INDEX('Carbon Prices'!$D$10:$CP$15,3,MATCH(Calc_Option4!BO$6,'Carbon Prices'!$D$9:$CP$9,0))/1000,0)","v":0},{"$f":"IFERROR(INDEX('Carbon Prices'!$D$10:$CP$15,3,MATCH(Calc_Option4!BP$6,'Carbon Prices'!$D$9:$CP$9,0))/1000,0)","v":0},{"$f":"IFERROR(INDEX('Carbon Prices'!$D$10:$CP$15,3,MATCH(Calc_Option4!BQ$6,'Carbon Prices'!$D$9:$CP$9,0))/1000,0)","v":0},{"$f":"IFERROR(INDEX('Carbon Prices'!$D$10:$CP$15,3,MATCH(Calc_Option4!BR$6,'Carbon Prices'!$D$9:$CP$9,0))/1000,0)","v":0},{"$f":"IFERROR(INDEX('Carbon Prices'!$D$10:$CP$15,3,MATCH(Calc_Option4!BS$6,'Carbon Prices'!$D$9:$CP$9,0))/1000,0)","v":0},{"$f":"IFERROR(INDEX('Carbon Prices'!$D$10:$CP$15,3,MATCH(Calc_Option4!BT$6,'Carbon Prices'!$D$9:$CP$9,0))/1000,0)","v":0},{"$f":"IFERROR(INDEX('Carbon Prices'!$D$10:$CP$15,3,MATCH(Calc_Option4!BU$6,'Carbon Prices'!$D$9:$CP$9,0))/1000,0)","v":0},{"$f":"IFERROR(INDEX('Carbon Prices'!$D$10:$CP$15,3,MATCH(Calc_Option4!BV$6,'Carbon Prices'!$D$9:$CP$9,0))/1000,0)","v":0},{"$f":"IFERROR(INDEX('Carbon Prices'!$D$10:$CP$15,3,MATCH(Calc_Option4!BW$6,'Carbon Prices'!$D$9:$CP$9,0))/1000,0)","v":0},{"$f":"IFERROR(INDEX('Carbon Prices'!$D$10:$CP$15,3,MATCH(Calc_Option4!BX$6,'Carbon Prices'!$D$9:$CP$9,0))/1000,0)","v":0},{"$f":"IFERROR(INDEX('Carbon Prices'!$D$10:$CP$15,3,MATCH(Calc_Option4!BY$6,'Carbon Prices'!$D$9:$CP$9,0))/1000,0)","v":0},{"$f":"IFERROR(INDEX('Carbon Prices'!$D$10:$CP$15,3,MATCH(Calc_Option4!BZ$6,'Carbon Prices'!$D$9:$CP$9,0))/1000,0)","v":0},{"$f":"IFERROR(INDEX('Carbon Prices'!$D$10:$CP$15,3,MATCH(Calc_Option4!CA$6,'Carbon Prices'!$D$9:$CP$9,0))/1000,0)","v":0},{"$f":"IFERROR(INDEX('Carbon Prices'!$D$10:$CP$15,3,MATCH(Calc_Option4!CB$6,'Carbon Prices'!$D$9:$CP$9,0))/1000,0)","v":0},{"$f":"IFERROR(INDEX('Carbon Prices'!$D$10:$CP$15,3,MATCH(Calc_Option4!CC$6,'Carbon Prices'!$D$9:$CP$9,0))/1000,0)","v":0},{"$f":"IFERROR(INDEX('Carbon Prices'!$D$10:$CP$15,3,MATCH(Calc_Option4!CD$6,'Carbon Prices'!$D$9:$CP$9,0))/1000,0)","v":0},{"$f":"IFERROR(INDEX('Carbon Prices'!$D$10:$CP$15,3,MATCH(Calc_Option4!CE$6,'Carbon Prices'!$D$9:$CP$9,0))/1000,0)","v":0},{"$f":"IFERROR(INDEX('Carbon Prices'!$D$10:$CP$15,3,MATCH(Calc_Option4!CF$6,'Carbon Prices'!$D$9:$CP$9,0))/1000,0)","v":0},{"$f":"IFERROR(INDEX('Carbon Prices'!$D$10:$CP$15,3,MATCH(Calc_Option4!CG$6,'Carbon Prices'!$D$9:$CP$9,0))/1000,0)","v":0},{"$f":"IFERROR(INDEX('Carbon Prices'!$D$10:$CP$15,3,MATCH(Calc_Option4!CH$6,'Carbon Prices'!$D$9:$CP$9,0))/1000,0)","v":0},{"$f":"IFERROR(INDEX('Carbon Prices'!$D$10:$CP$15,3,MATCH(Calc_Option4!CI$6,'Carbon Prices'!$D$9:$CP$9,0))/1000,0)","v":0},{"$f":"IFERROR(INDEX('Carbon Prices'!$D$10:$CP$15,3,MATCH(Calc_Option4!CJ$6,'Carbon Prices'!$D$9:$CP$9,0))/1000,0)","v":0},{"$f":"IFERROR(INDEX('Carbon Prices'!$D$10:$CP$15,3,MATCH(Calc_Option4!CK$6,'Carbon Prices'!$D$9:$CP$9,0))/1000,0)","v":0},{"$f":"IFERROR(INDEX('Carbon Prices'!$D$10:$CP$15,3,MATCH(Calc_Option4!CL$6,'Carbon Prices'!$D$9:$CP$9,0))/1000,0)","v":0},{"$f":"IFERROR(INDEX('Carbon Prices'!$D$10:$CP$15,3,MATCH(Calc_Option4!CM$6,'Carbon Prices'!$D$9:$CP$9,0))/1000,0)","v":0},{"$f":"IFERROR(INDEX('Carbon Prices'!$D$10:$CP$15,3,MATCH(Calc_Option4!CN$6,'Carbon Prices'!$D$9:$CP$9,0))/1000,0)","v":0},{"$f":"IFERROR(INDEX('Carbon Prices'!$D$10:$CP$15,3,MATCH(Calc_Option4!CO$6,'Carbon Prices'!$D$9:$CP$9,0))/1000,0)","v":0},{"$f":"IFERROR(INDEX('Carbon Prices'!$D$10:$CP$15,3,MATCH(Calc_Option4!CP$6,'Carbon Prices'!$D$9:$CP$9,0))/1000,0)","v":0},{"$f":"IFERROR(INDEX('Carbon Prices'!$D$10:$CP$15,3,MATCH(Calc_Option4!CQ$6,'Carbon Prices'!$D$9:$CP$9,0))/1000,0)","v":0},{"$f":"IFERROR(INDEX('Carbon Prices'!$D$10:$CP$15,3,MATCH(Calc_Option4!CR$6,'Carbon Prices'!$D$9:$CP$9,0))/1000,0)","v":0},{"$f":"IFERROR(INDEX('Carbon Prices'!$D$10:$CP$15,3,MATCH(Calc_Option4!CS$6,'Carbon Prices'!$D$9:$CP$9,0))/1000,0)","v":0},{"$f":"IFERROR(INDEX('Carbon Prices'!$D$10:$CP$15,3,MATCH(Calc_Option4!CT$6,'Carbon Prices'!$D$9:$CP$9,0))/1000,0)","v":0},{"$f":"IFERROR(INDEX('Carbon Prices'!$D$10:$CP$15,3,MATCH(Calc_Option4!CU$6,'Carbon Prices'!$D$9:$CP$9,0))/1000,0)","v":0},{"$f":"IFERROR(INDEX('Carbon Prices'!$D$10:$CP$15,3,MATCH(Calc_Option4!CV$6,'Carbon Prices'!$D$9:$CP$9,0))/1000,0)","v":0},{"$f":"IFERROR(INDEX('Carbon Prices'!$D$10:$CP$15,3,MATCH(Calc_Option4!CW$6,'Carbon Prices'!$D$9:$CP$9,0))/1000,0)","v":0},{"$f":"IFERROR(INDEX('Carbon Prices'!$D$10:$CP$15,3,MATCH(Calc_Option4!CX$6,'Carbon Prices'!$D$9:$CP$9,0))/1000,0)","v":0},{"$f":"IFERROR(INDEX('Carbon Prices'!$D$10:$CP$15,3,MATCH(Calc_Option4!CY$6,'Carbon Prices'!$D$9:$CP$9,0))/1000,0)","v":0}]
[null,"Total value elec","£000's",{"$f":"IFERROR(INDEX('Carbon Prices'!$D$10:$CP$15,6,MATCH(Calc_Option4!D$6,'Carbon Prices'!$D$9:$CP$9,0))/1000,0)","v":0.10682994182319348},{"$f":"IFERROR(INDEX('Carbon Prices'!$D$10:$CP$15,6,MATCH(Calc_Option4!E$6,'Carbon Prices'!$D$9:$CP$9,0))/1000,0)","v":0.10843239095054137},{"$f":"IFERROR(INDEX('Carbon Prices'!$D$10:$CP$15,6,MATCH(Calc_Option4!F$6,'Carbon Prices'!$D$9:$CP$9,0))/1000,0)","v":0.11023959746638375},{"$f":"IFERROR(INDEX('Carbon Prices'!$D$10:$CP$15,6,MATCH(Calc_Option4!G$6,'Carbon Prices'!$D$9:$CP$9,0))/1000,0)","v":0.11204680398222609},{"$f":"IFERROR(INDEX('Carbon Prices'!$D$10:$CP$15,6,MATCH(Calc_Option4!H$6,'Carbon Prices'!$D$9:$CP$9,0))/1000,0)","v":0.11385401049806844},{"$f":"IFERROR(INDEX('Carbon Prices'!$D$10:$CP$15,6,MATCH(Calc_Option4!I$6,'Carbon Prices'!$D$9:$CP$9,0))/1000,0)","v":0.1156612170139108},{"$f":"IFERROR(INDEX('Carbon Prices'!$D$10:$CP$15,6,MATCH(Calc_Option4!J$6,'Carbon Prices'!$D$9:$CP$9,0))/1000,0)","v":0.11746842352975315},{"$f":"IFERROR(INDEX('Carbon Prices'!$D$10:$CP$15,6,MATCH(Calc_Option4!K$6,'Carbon Prices'!$D$9:$CP$9,0))/1000,0)","v":0.11927563004559551},{"$f":"IFERROR(INDEX('Carbon Prices'!$D$10:$CP$15,6,MATCH(Calc_Option4!L$6,'Carbon Prices'!$D$9:$CP$9,0))/1000,0)","v":0.12108283656143787},{"$f":"IFERROR(INDEX('Carbon Prices'!$D$10:$CP$15,6,MATCH(Calc_Option4!M$6,'Carbon Prices'!$D$9:$CP$9,0))/1000,0)","v":0.12289004307728023},{"$f":"IFERROR(INDEX('Carbon Prices'!$D$10:$CP$15,6,MATCH(Calc_Option4!N$6,'Carbon Prices'!$D$9:$CP$9,0))/1000,0)","v":0.12469724959312259},{"$f":"IFERROR(INDEX('Carbon Prices'!$D$10:$CP$15,6,MATCH(Calc_Option4!O$6,'Carbon Prices'!$D$9:$CP$9,0))/1000,0)","v":0.12650445610896494},{"$f":"IFERROR(INDEX('Carbon Prices'!$D$10:$CP$15,6,MATCH(Calc_Option4!P$6,'Carbon Prices'!$D$9:$CP$9,0))/1000,0)","v":0.13825129846194026},{"$f":"IFERROR(INDEX('Carbon Prices'!$D$10:$CP$15,6,MATCH(Calc_Option4!Q$6,'Carbon Prices'!$D$9:$CP$9,0))/1000,0)","v":0.14999814081491555},{"$f":"IFERROR(INDEX('Carbon Prices'!$D$10:$CP$15,6,MATCH(Calc_Option4!R$6,'Carbon Prices'!$D$9:$CP$9,0))/1000,0)","v":0.1617449831678909},{"$f":"IFERROR(INDEX('Carbon Prices'!$D$10:$CP$15,6,MATCH(Calc_Option4!S$6,'Carbon Prices'!$D$9:$CP$9,0))/1000,0)","v":0.1734918255208662},{"$f":"IFERROR(INDEX('Carbon Prices'!$D$10:$CP$15,6,MATCH(Calc_Option4!T$6,'Carbon Prices'!$D$9:$CP$9,0))/1000,0)","v":0.18523866787384149},{"$f":"IFERROR(INDEX('Carbon Prices'!$D$10:$CP$15,6,MATCH(Calc_Option4!U$6,'Carbon Prices'!$D$9:$CP$9,0))/1000,0)","v":0.19698551022681682},{"$f":"IFERROR(INDEX('Carbon Prices'!$D$10:$CP$15,6,MATCH(Calc_Option4!V$6,'Carbon Prices'!$D$9:$CP$9,0))/1000,0)","v":0.20873235257979214},{"$f":"IFERROR(INDEX('Carbon Prices'!$D$10:$CP$15,6,MATCH(Calc_Option4!W$6,'Carbon Prices'!$D$9:$CP$9,0))/1000,0)","v":0.22047919493276749},{"$f":"IFERROR(INDEX('Carbon Prices'!$D$10:$CP$15,6,MATCH(Calc_Option4!X$6,'Carbon Prices'!$D$9:$CP$9,0))/1000,0)","v":0.23222603728574279},{"$f":"IFERROR(INDEX('Carbon Prices'!$D$10:$CP$15,6,MATCH(Calc_Option4!Y$6,'Carbon Prices'!$D$9:$CP$9,0))/1000,0)","v":0.24397287963871811},{"$f":"IFERROR(INDEX('Carbon Prices'!$D$10:$CP$15,6,MATCH(Calc_Option4!Z$6,'Carbon Prices'!$D$9:$CP$9,0))/1000,0)","v":0.25571972199169341},{"$f":"IFERROR(INDEX('Carbon Prices'!$D$10:$CP$15,6,MATCH(Calc_Option4!AA$6,'Carbon Prices'!$D$9:$CP$9,0))/1000,0)","v":0.2674665643446687},{"$f":"IFERROR(INDEX('Carbon Prices'!$D$10:$CP$15,6,MATCH(Calc_Option4!AB$6,'Carbon Prices'!$D$9:$CP$9,0))/1000,0)","v":0.27921340669764405},{"$f":"IFERROR(INDEX('Carbon Prices'!$D$10:$CP$15,6,MATCH(Calc_Option4!AC$6,'Carbon Prices'!$D$9:$CP$9,0))/1000,0)","v":0.2909602490506194},{"$f":"IFERROR(INDEX('Carbon Prices'!$D$10:$CP$15,6,MATCH(Calc_Option4!AD$6,'Carbon Prices'!$D$9:$CP$9,0))/1000,0)","v":0.3027070914035947},{"$f":"IFERROR(INDEX('Carbon Prices'!$D$10:$CP$15,6,MATCH(Calc_Option4!AE$6,'Carbon Prices'!$D$9:$CP$9,0))/1000,0)","v":0.31445393375656999},{"$f":"IFERROR(INDEX('Carbon Prices'!$D$10:$CP$15,6,MATCH(Calc_Option4!AF$6,'Carbon Prices'!$D$9:$CP$9,0))/1000,0)","v":0.32620077610954529},{"$f":"IFERROR(INDEX('Carbon Prices'!$D$10:$CP$15,6,MATCH(Calc_Option4!AG$6,'Carbon Prices'!$D$9:$CP$9,0))/1000,0)","v":0.33794761846252058},{"$f":"IFERROR(INDEX('Carbon Prices'!$D$10:$CP$15,6,MATCH(Calc_Option4!AH$6,'Carbon Prices'!$D$9:$CP$9,0))/1000,0)","v":0.34969446081549593},{"$f":"IFERROR(INDEX('Carbon Prices'!$D$10:$CP$15,6,MATCH(Calc_Option4!AI$6,'Carbon Prices'!$D$9:$CP$9,0))/1000,0)","v":0},{"$f":"IFERROR(INDEX('Carbon Prices'!$D$10:$CP$15,6,MATCH(Calc_Option4!AJ$6,'Carbon Prices'!$D$9:$CP$9,0))/1000,0)","v":0},{"$f":"IFERROR(INDEX('Carbon Prices'!$D$10:$CP$15,6,MATCH(Calc_Option4!AK$6,'Carbon Prices'!$D$9:$CP$9,0))/1000,0)","v":0},{"$f":"IFERROR(INDEX('Carbon Prices'!$D$10:$CP$15,6,MATCH(Calc_Option4!AL$6,'Carbon Prices'!$D$9:$CP$9,0))/1000,0)","v":0},{"$f":"IFERROR(INDEX('Carbon Prices'!$D$10:$CP$15,6,MATCH(Calc_Option4!AM$6,'Carbon Prices'!$D$9:$CP$9,0))/1000,0)","v":0},{"$f":"IFERROR(INDEX('Carbon Prices'!$D$10:$CP$15,6,MATCH(Calc_Option4!AN$6,'Carbon Prices'!$D$9:$CP$9,0))/1000,0)","v":0},{"$f":"IFERROR(INDEX('Carbon Prices'!$D$10:$CP$15,6,MATCH(Calc_Option4!AO$6,'Carbon Prices'!$D$9:$CP$9,0))/1000,0)","v":0},{"$f":"IFERROR(INDEX('Carbon Prices'!$D$10:$CP$15,6,MATCH(Calc_Option4!AP$6,'Carbon Prices'!$D$9:$CP$9,0))/1000,0)","v":0},{"$f":"IFERROR(INDEX('Carbon Prices'!$D$10:$CP$15,6,MATCH(Calc_Option4!AQ$6,'Carbon Prices'!$D$9:$CP$9,0))/1000,0)","v":0},{"$f":"IFERROR(INDEX('Carbon Prices'!$D$10:$CP$15,6,MATCH(Calc_Option4!AR$6,'Carbon Prices'!$D$9:$CP$9,0))/1000,0)","v":0},{"$f":"IFERROR(INDEX('Carbon Prices'!$D$10:$CP$15,6,MATCH(Calc_Option4!AS$6,'Carbon Prices'!$D$9:$CP$9,0))/1000,0)","v":0},{"$f":"IFERROR(INDEX('Carbon Prices'!$D$10:$CP$15,6,MATCH(Calc_Option4!AT$6,'Carbon Prices'!$D$9:$CP$9,0))/1000,0)","v":0},{"$f":"IFERROR(INDEX('Carbon Prices'!$D$10:$CP$15,6,MATCH(Calc_Option4!AU$6,'Carbon Prices'!$D$9:$CP$9,0))/1000,0)","v":0},{"$f":"IFERROR(INDEX('Carbon Prices'!$D$10:$CP$15,6,MATCH(Calc_Option4!AV$6,'Carbon Prices'!$D$9:$CP$9,0))/1000,0)","v":0},{"$f":"IFERROR(INDEX('Carbon Prices'!$D$10:$CP$15,6,MATCH(Calc_Option4!AW$6,'Carbon Prices'!$D$9:$CP$9,0))/1000,0)","v":0},{"$f":"IFERROR(INDEX('Carbon Prices'!$D$10:$CP$15,6,MATCH(Calc_Option4!AX$6,'Carbon Prices'!$D$9:$CP$9,0))/1000,0)","v":0},{"$f":"IFERROR(INDEX('Carbon Prices'!$D$10:$CP$15,6,MATCH(Calc_Option4!AY$6,'Carbon Prices'!$D$9:$CP$9,0))/1000,0)","v":0},{"$f":"IFERROR(INDEX('Carbon Prices'!$D$10:$CP$15,6,MATCH(Calc_Option4!AZ$6,'Carbon Prices'!$D$9:$CP$9,0))/1000,0)","v":0},{"$f":"IFERROR(INDEX('Carbon Prices'!$D$10:$CP$15,6,MATCH(Calc_Option4!BA$6,'Carbon Prices'!$D$9:$CP$9,0))/1000,0)","v":0},{"$f":"IFERROR(INDEX('Carbon Prices'!$D$10:$CP$15,6,MATCH(Calc_Option4!BB$6,'Carbon Prices'!$D$9:$CP$9,0))/1000,0)","v":0},{"$f":"IFERROR(INDEX('Carbon Prices'!$D$10:$CP$15,6,MATCH(Calc_Option4!BC$6,'Carbon Prices'!$D$9:$CP$9,0))/1000,0)","v":0},{"$f":"IFERROR(INDEX('Carbon Prices'!$D$10:$CP$15,6,MATCH(Calc_Option4!BD$6,'Carbon Prices'!$D$9:$CP$9,0))/1000,0)","v":0},{"$f":"IFERROR(INDEX('Carbon Prices'!$D$10:$CP$15,6,MATCH(Calc_Option4!BE$6,'Carbon Prices'!$D$9:$CP$9,0))/1000,0)","v":0},{"$f":"IFERROR(INDEX('Carbon Prices'!$D$10:$CP$15,6,MATCH(Calc_Option4!BF$6,'Carbon Prices'!$D$9:$CP$9,0))/1000,0)","v":0},{"$f":"IFERROR(INDEX('Carbon Prices'!$D$10:$CP$15,6,MATCH(Calc_Option4!BG$6,'Carbon Prices'!$D$9:$CP$9,0))/1000,0)","v":0},{"$f":"IFERROR(INDEX('Carbon Prices'!$D$10:$CP$15,6,MATCH(Calc_Option4!BH$6,'Carbon Prices'!$D$9:$CP$9,0))/1000,0)","v":0},{"$f":"IFERROR(INDEX('Carbon Prices'!$D$10:$CP$15,6,MATCH(Calc_Option4!BI$6,'Carbon Prices'!$D$9:$CP$9,0))/1000,0)","v":0},{"$f":"IFERROR(INDEX('Carbon Prices'!$D$10:$CP$15,6,MATCH(Calc_Option4!BJ$6,'Carbon Prices'!$D$9:$CP$9,0))/1000,0)","v":0},{"$f":"IFERROR(INDEX('Carbon Prices'!$D$10:$CP$15,6,MATCH(Calc_Option4!BK$6,'Carbon Prices'!$D$9:$CP$9,0))/1000,0)","v":0},{"$f":"IFERROR(INDEX('Carbon Prices'!$D$10:$CP$15,6,MATCH(Calc_Option4!BL$6,'Carbon Prices'!$D$9:$CP$9,0))/1000,0)","v":0},{"$f":"IFERROR(INDEX('Carbon Prices'!$D$10:$CP$15,6,MATCH(Calc_Option4!BM$6,'Carbon Prices'!$D$9:$CP$9,0))/1000,0)","v":0},{"$f":"IFERROR(INDEX('Carbon Prices'!$D$10:$CP$15,6,MATCH(Calc_Option4!BN$6,'Carbon Prices'!$D$9:$CP$9,0))/1000,0)","v":0},{"$f":"IFERROR(INDEX('Carbon Prices'!$D$10:$CP$15,6,MATCH(Calc_Option4!BO$6,'Carbon Prices'!$D$9:$CP$9,0))/1000,0)","v":0},{"$f":"IFERROR(INDEX('Carbon Prices'!$D$10:$CP$15,6,MATCH(Calc_Option4!BP$6,'Carbon Prices'!$D$9:$CP$9,0))/1000,0)","v":0},{"$f":"IFERROR(INDEX('Carbon Prices'!$D$10:$CP$15,6,MATCH(Calc_Option4!BQ$6,'Carbon Prices'!$D$9:$CP$9,0))/1000,0)","v":0},{"$f":"IFERROR(INDEX('Carbon Prices'!$D$10:$CP$15,6,MATCH(Calc_Option4!BR$6,'Carbon Prices'!$D$9:$CP$9,0))/1000,0)","v":0},{"$f":"IFERROR(INDEX('Carbon Prices'!$D$10:$CP$15,6,MATCH(Calc_Option4!BS$6,'Carbon Prices'!$D$9:$CP$9,0))/1000,0)","v":0},{"$f":"IFERROR(INDEX('Carbon Prices'!$D$10:$CP$15,6,MATCH(Calc_Option4!BT$6,'Carbon Prices'!$D$9:$CP$9,0))/1000,0)","v":0},{"$f":"IFERROR(INDEX('Carbon Prices'!$D$10:$CP$15,6,MATCH(Calc_Option4!BU$6,'Carbon Prices'!$D$9:$CP$9,0))/1000,0)","v":0},{"$f":"IFERROR(INDEX('Carbon Prices'!$D$10:$CP$15,6,MATCH(Calc_Option4!BV$6,'Carbon Prices'!$D$9:$CP$9,0))/1000,0)","v":0},{"$f":"IFERROR(INDEX('Carbon Prices'!$D$10:$CP$15,6,MATCH(Calc_Option4!BW$6,'Carbon Prices'!$D$9:$CP$9,0))/1000,0)","v":0},{"$f":"IFERROR(INDEX('Carbon Prices'!$D$10:$CP$15,6,MATCH(Calc_Option4!BX$6,'Carbon Prices'!$D$9:$CP$9,0))/1000,0)","v":0},{"$f":"IFERROR(INDEX('Carbon Prices'!$D$10:$CP$15,6,MATCH(Calc_Option4!BY$6,'Carbon Prices'!$D$9:$CP$9,0))/1000,0)","v":0},{"$f":"IFERROR(INDEX('Carbon Prices'!$D$10:$CP$15,6,MATCH(Calc_Option4!BZ$6,'Carbon Prices'!$D$9:$CP$9,0))/1000,0)","v":0},{"$f":"IFERROR(INDEX('Carbon Prices'!$D$10:$CP$15,6,MATCH(Calc_Option4!CA$6,'Carbon Prices'!$D$9:$CP$9,0))/1000,0)","v":0},{"$f":"IFERROR(INDEX('Carbon Prices'!$D$10:$CP$15,6,MATCH(Calc_Option4!CB$6,'Carbon Prices'!$D$9:$CP$9,0))/1000,0)","v":0},{"$f":"IFERROR(INDEX('Carbon Prices'!$D$10:$CP$15,6,MATCH(Calc_Option4!CC$6,'Carbon Prices'!$D$9:$CP$9,0))/1000,0)","v":0},{"$f":"IFERROR(INDEX('Carbon Prices'!$D$10:$CP$15,6,MATCH(Calc_Option4!CD$6,'Carbon Prices'!$D$9:$CP$9,0))/1000,0)","v":0},{"$f":"IFERROR(INDEX('Carbon Prices'!$D$10:$CP$15,6,MATCH(Calc_Option4!CE$6,'Carbon Prices'!$D$9:$CP$9,0))/1000,0)","v":0},{"$f":"IFERROR(INDEX('Carbon Prices'!$D$10:$CP$15,6,MATCH(Calc_Option4!CF$6,'Carbon Prices'!$D$9:$CP$9,0))/1000,0)","v":0},{"$f":"IFERROR(INDEX('Carbon Prices'!$D$10:$CP$15,6,MATCH(Calc_Option4!CG$6,'Carbon Prices'!$D$9:$CP$9,0))/1000,0)","v":0},{"$f":"IFERROR(INDEX('Carbon Prices'!$D$10:$CP$15,6,MATCH(Calc_Option4!CH$6,'Carbon Prices'!$D$9:$CP$9,0))/1000,0)","v":0},{"$f":"IFERROR(INDEX('Carbon Prices'!$D$10:$CP$15,6,MATCH(Calc_Option4!CI$6,'Carbon Prices'!$D$9:$CP$9,0))/1000,0)","v":0},{"$f":"IFERROR(INDEX('Carbon Prices'!$D$10:$CP$15,6,MATCH(Calc_Option4!CJ$6,'Carbon Prices'!$D$9:$CP$9,0))/1000,0)","v":0},{"$f":"IFERROR(INDEX('Carbon Prices'!$D$10:$CP$15,6,MATCH(Calc_Option4!CK$6,'Carbon Prices'!$D$9:$CP$9,0))/1000,0)","v":0},{"$f":"IFERROR(INDEX('Carbon Prices'!$D$10:$CP$15,6,MATCH(Calc_Option4!CL$6,'Carbon Prices'!$D$9:$CP$9,0))/1000,0)","v":0},{"$f":"IFERROR(INDEX('Carbon Prices'!$D$10:$CP$15,6,MATCH(Calc_Option4!CM$6,'Carbon Prices'!$D$9:$CP$9,0))/1000,0)","v":0},{"$f":"IFERROR(INDEX('Carbon Prices'!$D$10:$CP$15,6,MATCH(Calc_Option4!CN$6,'Carbon Prices'!$D$9:$CP$9,0))/1000,0)","v":0},{"$f":"IFERROR(INDEX('Carbon Prices'!$D$10:$CP$15,6,MATCH(Calc_Option4!CO$6,'Carbon Prices'!$D$9:$CP$9,0))/1000,0)","v":0},{"$f":"IFERROR(INDEX('Carbon Prices'!$D$10:$CP$15,6,MATCH(Calc_Option4!CP$6,'Carbon Prices'!$D$9:$CP$9,0))/1000,0)","v":0},{"$f":"IFERROR(INDEX('Carbon Prices'!$D$10:$CP$15,6,MATCH(Calc_Option4!CQ$6,'Carbon Prices'!$D$9:$CP$9,0))/1000,0)","v":0},{"$f":"IFERROR(INDEX('Carbon Prices'!$D$10:$CP$15,6,MATCH(Calc_Option4!CR$6,'Carbon Prices'!$D$9:$CP$9,0))/1000,0)","v":0},{"$f":"IFERROR(INDEX('Carbon Prices'!$D$10:$CP$15,6,MATCH(Calc_Option4!CS$6,'Carbon Prices'!$D$9:$CP$9,0))/1000,0)","v":0},{"$f":"IFERROR(INDEX('Carbon Prices'!$D$10:$CP$15,6,MATCH(Calc_Option4!CT$6,'Carbon Prices'!$D$9:$CP$9,0))/1000,0)","v":0},{"$f":"IFERROR(INDEX('Carbon Prices'!$D$10:$CP$15,6,MATCH(Calc_Option4!CU$6,'Carbon Prices'!$D$9:$CP$9,0))/1000,0)","v":0},{"$f":"IFERROR(INDEX('Carbon Prices'!$D$10:$CP$15,6,MATCH(Calc_Option4!CV$6,'Carbon Prices'!$D$9:$CP$9,0))/1000,0)","v":0},{"$f":"IFERROR(INDEX('Carbon Prices'!$D$10:$CP$15,6,MATCH(Calc_Option4!CW$6,'Carbon Prices'!$D$9:$CP$9,0))/1000,0)","v":0},{"$f":"IFERROR(INDEX('Carbon Prices'!$D$10:$CP$15,6,MATCH(Calc_Option4!CX$6,'Carbon Prices'!$D$9:$CP$9,0))/1000,0)","v":0},{"$f":"IFERROR(INDEX('Carbon Prices'!$D$10:$CP$15,6,MATCH(Calc_Option4!CY$6,'Carbon Prices'!$D$9:$CP$9,0))/1000,0)","v":0}]
[null,"Discounted total","£000's",{"$f":"(D152*D154)+(D153*D155)*D$7","v":9.9391622544246769E-5},{"$f":"(E152*E154)+(E153*E155)*E$7","v":0},0,0,0,0,0,0,0,0,0,0,0,0,0,0,0,0,0,0,0,0,0,0,0,0,0,0,0,0,0,0,0,0,0,0,0,0,0,0,0,0,0,0,0,0,0,0,0,0,0,0,0,0,0,0,0,0,0,0,0,0,0,0,0,{"$f":"(BQ152*BQ154)+(BQ153*BQ155)*BQ$7","v":0},0,0,0,0,0,0,0,0,0,0,0,0,0,0,0,0,0,0,0,0,0,0,0,0,0,0,0,0,0,0,0,0,0,0]
[]
[]
[null,"EEA Damage costs"]
[]
[null,"Air pollutant emissions- value"]
[null,{"$f":"B138","v":0},"£000's",{"$f":"IFERROR(IF(OR($C$168=FALSE,LEFT($B162,3)<>\"NOX\"),D53*INDEX('Damage costs'!$P$16:$P$43,MATCH($B162,'Damage costs'!$C$16:$C$43,0))/1000,D53*INDEX('Damage costs'!$T$16:$T$43,MATCH($B162,'Damage costs'!$C$16:$C$43,0))/1000),\"\")","v":""},{"$f":"IFERROR(IF(OR($C$168=FALSE,LEFT($B162,3)<>\"NOX\"),E53*INDEX('Damage costs'!$P$16:$P$43,MATCH($B162,'Damage costs'!$C$16:$C$43,0))/1000,E53*INDEX('Damage costs'!$T$16:$T$43,MATCH($B162,'Damage costs'!$C$16:$C$43,0))/1000),\"\")","v":""},{"$f":"IFERROR(IF(OR($C$168=FALSE,LEFT($B162,3)<>\"NOX\"),F53*INDEX('Damage costs'!$P$16:$P$43,MATCH($B162,'Damage costs'!$C$16:$C$43,0))/1000,F53*INDEX('Damage costs'!$T$16:$T$43,MATCH($B162,'Damage costs'!$C$16:$C$43,0))/1000),\"\")","v":""},{"$f":"IFERROR(IF(OR($C$168=FALSE,LEFT($B162,3)<>\"NOX\"),G53*INDEX('Damage costs'!$P$16:$P$43,MATCH($B162,'Damage costs'!$C$16:$C$43,0))/1000,G53*INDEX('Damage costs'!$T$16:$T$43,MATCH($B162,'Damage costs'!$C$16:$C$43,0))/1000),\"\")","v":""},{"$f":"IFERROR(IF(OR($C$168=FALSE,LEFT($B162,3)<>\"NOX\"),H53*INDEX('Damage costs'!$P$16:$P$43,MATCH($B162,'Damage costs'!$C$16:$C$43,0))/1000,H53*INDEX('Damage costs'!$T$16:$T$43,MATCH($B162,'Damage costs'!$C$16:$C$43,0))/1000),\"\")","v":""},{"$f":"IFERROR(IF(OR($C$168=FALSE,LEFT($B162,3)<>\"NOX\"),I53*INDEX('Damage costs'!$P$16:$P$43,MATCH($B162,'Damage costs'!$C$16:$C$43,0))/1000,I53*INDEX('Damage costs'!$T$16:$T$43,MATCH($B162,'Damage costs'!$C$16:$C$43,0))/1000),\"\")","v":""},{"$f":"IFERROR(IF(OR($C$168=FALSE,LEFT($B162,3)<>\"NOX\"),J53*INDEX('Damage costs'!$P$16:$P$43,MATCH($B162,'Damage costs'!$C$16:$C$43,0))/1000,J53*INDEX('Damage costs'!$T$16:$T$43,MATCH($B162,'Damage costs'!$C$16:$C$43,0))/1000),\"\")","v":""},{"$f":"IFERROR(IF(OR($C$168=FALSE,LEFT($B162,3)<>\"NOX\"),K53*INDEX('Damage costs'!$P$16:$P$43,MATCH($B162,'Damage costs'!$C$16:$C$43,0))/1000,K53*INDEX('Damage costs'!$T$16:$T$43,MATCH($B162,'Damage costs'!$C$16:$C$43,0))/1000),\"\")","v":""},{"$f":"IFERROR(IF(OR($C$168=FALSE,LEFT($B162,3)<>\"NOX\"),L53*INDEX('Damage costs'!$P$16:$P$43,MATCH($B162,'Damage costs'!$C$16:$C$43,0))/1000,L53*INDEX('Damage costs'!$T$16:$T$43,MATCH($B162,'Damage costs'!$C$16:$C$43,0))/1000),\"\")","v":""},{"$f":"IFERROR(IF(OR($C$168=FALSE,LEFT($B162,3)<>\"NOX\"),M53*INDEX('Damage costs'!$P$16:$P$43,MATCH($B162,'Damage costs'!$C$16:$C$43,0))/1000,M53*INDEX('Damage costs'!$T$16:$T$43,MATCH($B162,'Damage costs'!$C$16:$C$43,0))/1000),\"\")","v":""},{"$f":"IFERROR(IF(OR($C$168=FALSE,LEFT($B162,3)<>\"NOX\"),N53*INDEX('Damage costs'!$P$16:$P$43,MATCH($B162,'Damage costs'!$C$16:$C$43,0))/1000,N53*INDEX('Damage costs'!$T$16:$T$43,MATCH($B162,'Damage costs'!$C$16:$C$43,0))/1000),\"\")","v":""},{"$f":"IFERROR(IF(OR($C$168=FALSE,LEFT($B162,3)<>\"NOX\"),O53*INDEX('Damage costs'!$P$16:$P$43,MATCH($B162,'Damage costs'!$C$16:$C$43,0))/1000,O53*INDEX('Damage costs'!$T$16:$T$43,MATCH($B162,'Damage costs'!$C$16:$C$43,0))/1000),\"\")","v":""},{"$f":"IFERROR(IF(OR($C$168=FALSE,LEFT($B162,3)<>\"NOX\"),P53*INDEX('Damage costs'!$P$16:$P$43,MATCH($B162,'Damage costs'!$C$16:$C$43,0))/1000,P53*INDEX('Damage costs'!$T$16:$T$43,MATCH($B162,'Damage costs'!$C$16:$C$43,0))/1000),\"\")","v":""},{"$f":"IFERROR(IF(OR($C$168=FALSE,LEFT($B162,3)<>\"NOX\"),Q53*INDEX('Damage costs'!$P$16:$P$43,MATCH($B162,'Damage costs'!$C$16:$C$43,0))/1000,Q53*INDEX('Damage costs'!$T$16:$T$43,MATCH($B162,'Damage costs'!$C$16:$C$43,0))/1000),\"\")","v":""},{"$f":"IFERROR(IF(OR($C$168=FALSE,LEFT($B162,3)<>\"NOX\"),R53*INDEX('Damage costs'!$P$16:$P$43,MATCH($B162,'Damage costs'!$C$16:$C$43,0))/1000,R53*INDEX('Damage costs'!$T$16:$T$43,MATCH($B162,'Damage costs'!$C$16:$C$43,0))/1000),\"\")","v":""},{"$f":"IFERROR(IF(OR($C$168=FALSE,LEFT($B162,3)<>\"NOX\"),S53*INDEX('Damage costs'!$P$16:$P$43,MATCH($B162,'Damage costs'!$C$16:$C$43,0))/1000,S53*INDEX('Damage costs'!$T$16:$T$43,MATCH($B162,'Damage costs'!$C$16:$C$43,0))/1000),\"\")","v":""},{"$f":"IFERROR(IF(OR($C$168=FALSE,LEFT($B162,3)<>\"NOX\"),T53*INDEX('Damage costs'!$P$16:$P$43,MATCH($B162,'Damage costs'!$C$16:$C$43,0))/1000,T53*INDEX('Damage costs'!$T$16:$T$43,MATCH($B162,'Damage costs'!$C$16:$C$43,0))/1000),\"\")","v":""},{"$f":"IFERROR(IF(OR($C$168=FALSE,LEFT($B162,3)<>\"NOX\"),U53*INDEX('Damage costs'!$P$16:$P$43,MATCH($B162,'Damage costs'!$C$16:$C$43,0))/1000,U53*INDEX('Damage costs'!$T$16:$T$43,MATCH($B162,'Damage costs'!$C$16:$C$43,0))/1000),\"\")","v":""},{"$f":"IFERROR(IF(OR($C$168=FALSE,LEFT($B162,3)<>\"NOX\"),V53*INDEX('Damage costs'!$P$16:$P$43,MATCH($B162,'Damage costs'!$C$16:$C$43,0))/1000,V53*INDEX('Damage costs'!$T$16:$T$43,MATCH($B162,'Damage costs'!$C$16:$C$43,0))/1000),\"\")","v":""},{"$f":"IFERROR(IF(OR($C$168=FALSE,LEFT($B162,3)<>\"NOX\"),W53*INDEX('Damage costs'!$P$16:$P$43,MATCH($B162,'Damage costs'!$C$16:$C$43,0))/1000,W53*INDEX('Damage costs'!$T$16:$T$43,MATCH($B162,'Damage costs'!$C$16:$C$43,0))/1000),\"\")","v":""},{"$f":"IFERROR(IF(OR($C$168=FALSE,LEFT($B162,3)<>\"NOX\"),X53*INDEX('Damage costs'!$P$16:$P$43,MATCH($B162,'Damage costs'!$C$16:$C$43,0))/1000,X53*INDEX('Damage costs'!$T$16:$T$43,MATCH($B162,'Damage costs'!$C$16:$C$43,0))/1000),\"\")","v":""},{"$f":"IFERROR(IF(OR($C$168=FALSE,LEFT($B162,3)<>\"NOX\"),Y53*INDEX('Damage costs'!$P$16:$P$43,MATCH($B162,'Damage costs'!$C$16:$C$43,0))/1000,Y53*INDEX('Damage costs'!$T$16:$T$43,MATCH($B162,'Damage costs'!$C$16:$C$43,0))/1000),\"\")","v":""},{"$f":"IFERROR(IF(OR($C$168=FALSE,LEFT($B162,3)<>\"NOX\"),Z53*INDEX('Damage costs'!$P$16:$P$43,MATCH($B162,'Damage costs'!$C$16:$C$43,0))/1000,Z53*INDEX('Damage costs'!$T$16:$T$43,MATCH($B162,'Damage costs'!$C$16:$C$43,0))/1000),\"\")","v":""},{"$f":"IFERROR(IF(OR($C$168=FALSE,LEFT($B162,3)<>\"NOX\"),AA53*INDEX('Damage costs'!$P$16:$P$43,MATCH($B162,'Damage costs'!$C$16:$C$43,0))/1000,AA53*INDEX('Damage costs'!$T$16:$T$43,MATCH($B162,'Damage costs'!$C$16:$C$43,0))/1000),\"\")","v":""},{"$f":"IFERROR(IF(OR($C$168=FALSE,LEFT($B162,3)<>\"NOX\"),AB53*INDEX('Damage costs'!$P$16:$P$43,MATCH($B162,'Damage costs'!$C$16:$C$43,0))/1000,AB53*INDEX('Damage costs'!$T$16:$T$43,MATCH($B162,'Damage costs'!$C$16:$C$43,0))/1000),\"\")","v":""},{"$f":"IFERROR(IF(OR($C$168=FALSE,LEFT($B162,3)<>\"NOX\"),AC53*INDEX('Damage costs'!$P$16:$P$43,MATCH($B162,'Damage costs'!$C$16:$C$43,0))/1000,AC53*INDEX('Damage costs'!$T$16:$T$43,MATCH($B162,'Damage costs'!$C$16:$C$43,0))/1000),\"\")","v":""},{"$f":"IFERROR(IF(OR($C$168=FALSE,LEFT($B162,3)<>\"NOX\"),AD53*INDEX('Damage costs'!$P$16:$P$43,MATCH($B162,'Damage costs'!$C$16:$C$43,0))/1000,AD53*INDEX('Damage costs'!$T$16:$T$43,MATCH($B162,'Damage costs'!$C$16:$C$43,0))/1000),\"\")","v":""},{"$f":"IFERROR(IF(OR($C$168=FALSE,LEFT($B162,3)<>\"NOX\"),AE53*INDEX('Damage costs'!$P$16:$P$43,MATCH($B162,'Damage costs'!$C$16:$C$43,0))/1000,AE53*INDEX('Damage costs'!$T$16:$T$43,MATCH($B162,'Damage costs'!$C$16:$C$43,0))/1000),\"\")","v":""},{"$f":"IFERROR(IF(OR($C$168=FALSE,LEFT($B162,3)<>\"NOX\"),AF53*INDEX('Damage costs'!$P$16:$P$43,MATCH($B162,'Damage costs'!$C$16:$C$43,0))/1000,AF53*INDEX('Damage costs'!$T$16:$T$43,MATCH($B162,'Damage costs'!$C$16:$C$43,0))/1000),\"\")","v":""},{"$f":"IFERROR(IF(OR($C$168=FALSE,LEFT($B162,3)<>\"NOX\"),AG53*INDEX('Damage costs'!$P$16:$P$43,MATCH($B162,'Damage costs'!$C$16:$C$43,0))/1000,AG53*INDEX('Damage costs'!$T$16:$T$43,MATCH($B162,'Damage costs'!$C$16:$C$43,0))/1000),\"\")","v":""},{"$f":"IFERROR(IF(OR($C$168=FALSE,LEFT($B162,3)<>\"NOX\"),AH53*INDEX('Damage costs'!$P$16:$P$43,MATCH($B162,'Damage costs'!$C$16:$C$43,0))/1000,AH53*INDEX('Damage costs'!$T$16:$T$43,MATCH($B162,'Damage costs'!$C$16:$C$43,0))/1000),\"\")","v":""},{"$f":"IFERROR(IF(OR($C$168=FALSE,LEFT($B162,3)<>\"NOX\"),AI53*INDEX('Damage costs'!$P$16:$P$43,MATCH($B162,'Damage costs'!$C$16:$C$43,0))/1000,AI53*INDEX('Damage costs'!$T$16:$T$43,MATCH($B162,'Damage costs'!$C$16:$C$43,0))/1000),\"\")","v":""},{"$f":"IFERROR(IF(OR($C$168=FALSE,LEFT($B162,3)<>\"NOX\"),AJ53*INDEX('Damage costs'!$P$16:$P$43,MATCH($B162,'Damage costs'!$C$16:$C$43,0))/1000,AJ53*INDEX('Damage costs'!$T$16:$T$43,MATCH($B162,'Damage costs'!$C$16:$C$43,0))/1000),\"\")","v":""},{"$f":"IFERROR(IF(OR($C$168=FALSE,LEFT($B162,3)<>\"NOX\"),AK53*INDEX('Damage costs'!$P$16:$P$43,MATCH($B162,'Damage costs'!$C$16:$C$43,0))/1000,AK53*INDEX('Damage costs'!$T$16:$T$43,MATCH($B162,'Damage costs'!$C$16:$C$43,0))/1000),\"\")","v":""},{"$f":"IFERROR(IF(OR($C$168=FALSE,LEFT($B162,3)<>\"NOX\"),AL53*INDEX('Damage costs'!$P$16:$P$43,MATCH($B162,'Damage costs'!$C$16:$C$43,0))/1000,AL53*INDEX('Damage costs'!$T$16:$T$43,MATCH($B162,'Damage costs'!$C$16:$C$43,0))/1000),\"\")","v":""},{"$f":"IFERROR(IF(OR($C$168=FALSE,LEFT($B162,3)<>\"NOX\"),AM53*INDEX('Damage costs'!$P$16:$P$43,MATCH($B162,'Damage costs'!$C$16:$C$43,0))/1000,AM53*INDEX('Damage costs'!$T$16:$T$43,MATCH($B162,'Damage costs'!$C$16:$C$43,0))/1000),\"\")","v":""},{"$f":"IFERROR(IF(OR($C$168=FALSE,LEFT($B162,3)<>\"NOX\"),AN53*INDEX('Damage costs'!$P$16:$P$43,MATCH($B162,'Damage costs'!$C$16:$C$43,0))/1000,AN53*INDEX('Damage costs'!$T$16:$T$43,MATCH($B162,'Damage costs'!$C$16:$C$43,0))/1000),\"\")","v":""},{"$f":"IFERROR(IF(OR($C$168=FALSE,LEFT($B162,3)<>\"NOX\"),AO53*INDEX('Damage costs'!$P$16:$P$43,MATCH($B162,'Damage costs'!$C$16:$C$43,0))/1000,AO53*INDEX('Damage costs'!$T$16:$T$43,MATCH($B162,'Damage costs'!$C$16:$C$43,0))/1000),\"\")","v":""},{"$f":"IFERROR(IF(OR($C$168=FALSE,LEFT($B162,3)<>\"NOX\"),AP53*INDEX('Damage costs'!$P$16:$P$43,MATCH($B162,'Damage costs'!$C$16:$C$43,0))/1000,AP53*INDEX('Damage costs'!$T$16:$T$43,MATCH($B162,'Damage costs'!$C$16:$C$43,0))/1000),\"\")","v":""},{"$f":"IFERROR(IF(OR($C$168=FALSE,LEFT($B162,3)<>\"NOX\"),AQ53*INDEX('Damage costs'!$P$16:$P$43,MATCH($B162,'Damage costs'!$C$16:$C$43,0))/1000,AQ53*INDEX('Damage costs'!$T$16:$T$43,MATCH($B162,'Damage costs'!$C$16:$C$43,0))/1000),\"\")","v":""},{"$f":"IFERROR(IF(OR($C$168=FALSE,LEFT($B162,3)<>\"NOX\"),AR53*INDEX('Damage costs'!$P$16:$P$43,MATCH($B162,'Damage costs'!$C$16:$C$43,0))/1000,AR53*INDEX('Damage costs'!$T$16:$T$43,MATCH($B162,'Damage costs'!$C$16:$C$43,0))/1000),\"\")","v":""},{"$f":"IFERROR(IF(OR($C$168=FALSE,LEFT($B162,3)<>\"NOX\"),AS53*INDEX('Damage costs'!$P$16:$P$43,MATCH($B162,'Damage costs'!$C$16:$C$43,0))/1000,AS53*INDEX('Damage costs'!$T$16:$T$43,MATCH($B162,'Damage costs'!$C$16:$C$43,0))/1000),\"\")","v":""},{"$f":"IFERROR(IF(OR($C$168=FALSE,LEFT($B162,3)<>\"NOX\"),AT53*INDEX('Damage costs'!$P$16:$P$43,MATCH($B162,'Damage costs'!$C$16:$C$43,0))/1000,AT53*INDEX('Damage costs'!$T$16:$T$43,MATCH($B162,'Damage costs'!$C$16:$C$43,0))/1000),\"\")","v":""},{"$f":"IFERROR(IF(OR($C$168=FALSE,LEFT($B162,3)<>\"NOX\"),AU53*INDEX('Damage costs'!$P$16:$P$43,MATCH($B162,'Damage costs'!$C$16:$C$43,0))/1000,AU53*INDEX('Damage costs'!$T$16:$T$43,MATCH($B162,'Damage costs'!$C$16:$C$43,0))/1000),\"\")","v":""},{"$f":"IFERROR(IF(OR($C$168=FALSE,LEFT($B162,3)<>\"NOX\"),AV53*INDEX('Damage costs'!$P$16:$P$43,MATCH($B162,'Damage costs'!$C$16:$C$43,0))/1000,AV53*INDEX('Damage costs'!$T$16:$T$43,MATCH($B162,'Damage costs'!$C$16:$C$43,0))/1000),\"\")","v":""},{"$f":"IFERROR(IF(OR($C$168=FALSE,LEFT($B162,3)<>\"NOX\"),AW53*INDEX('Damage costs'!$P$16:$P$43,MATCH($B162,'Damage costs'!$C$16:$C$43,0))/1000,AW53*INDEX('Damage costs'!$T$16:$T$43,MATCH($B162,'Damage costs'!$C$16:$C$43,0))/1000),\"\")","v":""},{"$f":"IFERROR(IF(OR($C$168=FALSE,LEFT($B162,3)<>\"NOX\"),AX53*INDEX('Damage costs'!$P$16:$P$43,MATCH($B162,'Damage costs'!$C$16:$C$43,0))/1000,AX53*INDEX('Damage costs'!$T$16:$T$43,MATCH($B162,'Damage costs'!$C$16:$C$43,0))/1000),\"\")","v":""},{"$f":"IFERROR(IF(OR($C$168=FALSE,LEFT($B162,3)<>\"NOX\"),AY53*INDEX('Damage costs'!$P$16:$P$43,MATCH($B162,'Damage costs'!$C$16:$C$43,0))/1000,AY53*INDEX('Damage costs'!$T$16:$T$43,MATCH($B162,'Damage costs'!$C$16:$C$43,0))/1000),\"\")","v":""},{"$f":"IFERROR(IF(OR($C$168=FALSE,LEFT($B162,3)<>\"NOX\"),AZ53*INDEX('Damage costs'!$P$16:$P$43,MATCH($B162,'Damage costs'!$C$16:$C$43,0))/1000,AZ53*INDEX('Damage costs'!$T$16:$T$43,MATCH($B162,'Damage costs'!$C$16:$C$43,0))/1000),\"\")","v":""},{"$f":"IFERROR(IF(OR($C$168=FALSE,LEFT($B162,3)<>\"NOX\"),BA53*INDEX('Damage costs'!$P$16:$P$43,MATCH($B162,'Damage costs'!$C$16:$C$43,0))/1000,BA53*INDEX('Damage costs'!$T$16:$T$43,MATCH($B162,'Damage costs'!$C$16:$C$43,0))/1000),\"\")","v":""},{"$f":"IFERROR(IF(OR($C$168=FALSE,LEFT($B162,3)<>\"NOX\"),BB53*INDEX('Damage costs'!$P$16:$P$43,MATCH($B162,'Damage costs'!$C$16:$C$43,0))/1000,BB53*INDEX('Damage costs'!$T$16:$T$43,MATCH($B162,'Damage costs'!$C$16:$C$43,0))/1000),\"\")","v":""},{"$f":"IFERROR(IF(OR($C$168=FALSE,LEFT($B162,3)<>\"NOX\"),BC53*INDEX('Damage costs'!$P$16:$P$43,MATCH($B162,'Damage costs'!$C$16:$C$43,0))/1000,BC53*INDEX('Damage costs'!$T$16:$T$43,MATCH($B162,'Damage costs'!$C$16:$C$43,0))/1000),\"\")","v":""},{"$f":"IFERROR(IF(OR($C$168=FALSE,LEFT($B162,3)<>\"NOX\"),BD53*INDEX('Damage costs'!$P$16:$P$43,MATCH($B162,'Damage costs'!$C$16:$C$43,0))/1000,BD53*INDEX('Damage costs'!$T$16:$T$43,MATCH($B162,'Damage costs'!$C$16:$C$43,0))/1000),\"\")","v":""},{"$f":"IFERROR(IF(OR($C$168=FALSE,LEFT($B162,3)<>\"NOX\"),BE53*INDEX('Damage costs'!$P$16:$P$43,MATCH($B162,'Damage costs'!$C$16:$C$43,0))/1000,BE53*INDEX('Damage costs'!$T$16:$T$43,MATCH($B162,'Damage costs'!$C$16:$C$43,0))/1000),\"\")","v":""},{"$f":"IFERROR(IF(OR($C$168=FALSE,LEFT($B162,3)<>\"NOX\"),BF53*INDEX('Damage costs'!$P$16:$P$43,MATCH($B162,'Damage costs'!$C$16:$C$43,0))/1000,BF53*INDEX('Damage costs'!$T$16:$T$43,MATCH($B162,'Damage costs'!$C$16:$C$43,0))/1000),\"\")","v":""},{"$f":"IFERROR(IF(OR($C$168=FALSE,LEFT($B162,3)<>\"NOX\"),BG53*INDEX('Damage costs'!$P$16:$P$43,MATCH($B162,'Damage costs'!$C$16:$C$43,0))/1000,BG53*INDEX('Damage costs'!$T$16:$T$43,MATCH($B162,'Damage costs'!$C$16:$C$43,0))/1000),\"\")","v":""},{"$f":"IFERROR(IF(OR($C$168=FALSE,LEFT($B162,3)<>\"NOX\"),BH53*INDEX('Damage costs'!$P$16:$P$43,MATCH($B162,'Damage costs'!$C$16:$C$43,0))/1000,BH53*INDEX('Damage costs'!$T$16:$T$43,MATCH($B162,'Damage costs'!$C$16:$C$43,0))/1000),\"\")","v":""},{"$f":"IFERROR(IF(OR($C$168=FALSE,LEFT($B162,3)<>\"NOX\"),BI53*INDEX('Damage costs'!$P$16:$P$43,MATCH($B162,'Damage costs'!$C$16:$C$43,0))/1000,BI53*INDEX('Damage costs'!$T$16:$T$43,MATCH($B162,'Damage costs'!$C$16:$C$43,0))/1000),\"\")","v":""},{"$f":"IFERROR(IF(OR($C$168=FALSE,LEFT($B162,3)<>\"NOX\"),BJ53*INDEX('Damage costs'!$P$16:$P$43,MATCH($B162,'Damage costs'!$C$16:$C$43,0))/1000,BJ53*INDEX('Damage costs'!$T$16:$T$43,MATCH($B162,'Damage costs'!$C$16:$C$43,0))/1000),\"\")","v":""},{"$f":"IFERROR(IF(OR($C$168=FALSE,LEFT($B162,3)<>\"NOX\"),BK53*INDEX('Damage costs'!$P$16:$P$43,MATCH($B162,'Damage costs'!$C$16:$C$43,0))/1000,BK53*INDEX('Damage costs'!$T$16:$T$43,MATCH($B162,'Damage costs'!$C$16:$C$43,0))/1000),\"\")","v":""},{"$f":"IFERROR(IF(OR($C$168=FALSE,LEFT($B162,3)<>\"NOX\"),BL53*INDEX('Damage costs'!$P$16:$P$43,MATCH($B162,'Damage costs'!$C$16:$C$43,0))/1000,BL53*INDEX('Damage costs'!$T$16:$T$43,MATCH($B162,'Damage costs'!$C$16:$C$43,0))/1000),\"\")","v":""},{"$f":"IFERROR(IF(OR($C$168=FALSE,LEFT($B162,3)<>\"NOX\"),BM53*INDEX('Damage costs'!$P$16:$P$43,MATCH($B162,'Damage costs'!$C$16:$C$43,0))/1000,BM53*INDEX('Damage costs'!$T$16:$T$43,MATCH($B162,'Damage costs'!$C$16:$C$43,0))/1000),\"\")","v":""},{"$f":"IFERROR(IF(OR($C$168=FALSE,LEFT($B162,3)<>\"NOX\"),BN53*INDEX('Damage costs'!$P$16:$P$43,MATCH($B162,'Damage costs'!$C$16:$C$43,0))/1000,BN53*INDEX('Damage costs'!$T$16:$T$43,MATCH($B162,'Damage costs'!$C$16:$C$43,0))/1000),\"\")","v":""},{"$f":"IFERROR(IF(OR($C$168=FALSE,LEFT($B162,3)<>\"NOX\"),BO53*INDEX('Damage costs'!$P$16:$P$43,MATCH($B162,'Damage costs'!$C$16:$C$43,0))/1000,BO53*INDEX('Damage costs'!$T$16:$T$43,MATCH($B162,'Damage costs'!$C$16:$C$43,0))/1000),\"\")","v":""},{"$f":"IFERROR(IF(OR($C$168=FALSE,LEFT($B162,3)<>\"NOX\"),BP53*INDEX('Damage costs'!$P$16:$P$43,MATCH($B162,'Damage costs'!$C$16:$C$43,0))/1000,BP53*INDEX('Damage costs'!$T$16:$T$43,MATCH($B162,'Damage costs'!$C$16:$C$43,0))/1000),\"\")","v":""},{"$f":"IFERROR(IF(OR($C$168=FALSE,LEFT($B162,3)<>\"NOX\"),BQ53*INDEX('Damage costs'!$P$16:$P$43,MATCH($B162,'Damage costs'!$C$16:$C$43,0))/1000,BQ53*INDEX('Damage costs'!$T$16:$T$43,MATCH($B162,'Damage costs'!$C$16:$C$43,0))/1000),\"\")","v":""},{"$f":"IFERROR(IF(OR($C$168=FALSE,LEFT($B162,3)<>\"NOX\"),BR53*INDEX('Damage costs'!$P$16:$P$43,MATCH($B162,'Damage costs'!$C$16:$C$43,0))/1000,BR53*INDEX('Damage costs'!$T$16:$T$43,MATCH($B162,'Damage costs'!$C$16:$C$43,0))/1000),\"\")","v":""},{"$f":"IFERROR(IF(OR($C$168=FALSE,LEFT($B162,3)<>\"NOX\"),BS53*INDEX('Damage costs'!$P$16:$P$43,MATCH($B162,'Damage costs'!$C$16:$C$43,0))/1000,BS53*INDEX('Damage costs'!$T$16:$T$43,MATCH($B162,'Damage costs'!$C$16:$C$43,0))/1000),\"\")","v":""},{"$f":"IFERROR(IF(OR($C$168=FALSE,LEFT($B162,3)<>\"NOX\"),BT53*INDEX('Damage costs'!$P$16:$P$43,MATCH($B162,'Damage costs'!$C$16:$C$43,0))/1000,BT53*INDEX('Damage costs'!$T$16:$T$43,MATCH($B162,'Damage costs'!$C$16:$C$43,0))/1000),\"\")","v":""},{"$f":"IFERROR(IF(OR($C$168=FALSE,LEFT($B162,3)<>\"NOX\"),BU53*INDEX('Damage costs'!$P$16:$P$43,MATCH($B162,'Damage costs'!$C$16:$C$43,0))/1000,BU53*INDEX('Damage costs'!$T$16:$T$43,MATCH($B162,'Damage costs'!$C$16:$C$43,0))/1000),\"\")","v":""},{"$f":"IFERROR(IF(OR($C$168=FALSE,LEFT($B162,3)<>\"NOX\"),BV53*INDEX('Damage costs'!$P$16:$P$43,MATCH($B162,'Damage costs'!$C$16:$C$43,0))/1000,BV53*INDEX('Damage costs'!$T$16:$T$43,MATCH($B162,'Damage costs'!$C$16:$C$43,0))/1000),\"\")","v":""},{"$f":"IFERROR(IF(OR($C$168=FALSE,LEFT($B162,3)<>\"NOX\"),BW53*INDEX('Damage costs'!$P$16:$P$43,MATCH($B162,'Damage costs'!$C$16:$C$43,0))/1000,BW53*INDEX('Damage costs'!$T$16:$T$43,MATCH($B162,'Damage costs'!$C$16:$C$43,0))/1000),\"\")","v":""},{"$f":"IFERROR(IF(OR($C$168=FALSE,LEFT($B162,3)<>\"NOX\"),BX53*INDEX('Damage costs'!$P$16:$P$43,MATCH($B162,'Damage costs'!$C$16:$C$43,0))/1000,BX53*INDEX('Damage costs'!$T$16:$T$43,MATCH($B162,'Damage costs'!$C$16:$C$43,0))/1000),\"\")","v":""},{"$f":"IFERROR(IF(OR($C$168=FALSE,LEFT($B162,3)<>\"NOX\"),BY53*INDEX('Damage costs'!$P$16:$P$43,MATCH($B162,'Damage costs'!$C$16:$C$43,0))/1000,BY53*INDEX('Damage costs'!$T$16:$T$43,MATCH($B162,'Damage costs'!$C$16:$C$43,0))/1000),\"\")","v":""},{"$f":"IFERROR(IF(OR($C$168=FALSE,LEFT($B162,3)<>\"NOX\"),BZ53*INDEX('Damage costs'!$P$16:$P$43,MATCH($B162,'Damage costs'!$C$16:$C$43,0))/1000,BZ53*INDEX('Damage costs'!$T$16:$T$43,MATCH($B162,'Damage costs'!$C$16:$C$43,0))/1000),\"\")","v":""},{"$f":"IFERROR(IF(OR($C$168=FALSE,LEFT($B162,3)<>\"NOX\"),CA53*INDEX('Damage costs'!$P$16:$P$43,MATCH($B162,'Damage costs'!$C$16:$C$43,0))/1000,CA53*INDEX('Damage costs'!$T$16:$T$43,MATCH($B162,'Damage costs'!$C$16:$C$43,0))/1000),\"\")","v":""},{"$f":"IFERROR(IF(OR($C$168=FALSE,LEFT($B162,3)<>\"NOX\"),CB53*INDEX('Damage costs'!$P$16:$P$43,MATCH($B162,'Damage costs'!$C$16:$C$43,0))/1000,CB53*INDEX('Damage costs'!$T$16:$T$43,MATCH($B162,'Damage costs'!$C$16:$C$43,0))/1000),\"\")","v":""},{"$f":"IFERROR(IF(OR($C$168=FALSE,LEFT($B162,3)<>\"NOX\"),CC53*INDEX('Damage costs'!$P$16:$P$43,MATCH($B162,'Damage costs'!$C$16:$C$43,0))/1000,CC53*INDEX('Damage costs'!$T$16:$T$43,MATCH($B162,'Damage costs'!$C$16:$C$43,0))/1000),\"\")","v":""},{"$f":"IFERROR(IF(OR($C$168=FALSE,LEFT($B162,3)<>\"NOX\"),CD53*INDEX('Damage costs'!$P$16:$P$43,MATCH($B162,'Damage costs'!$C$16:$C$43,0))/1000,CD53*INDEX('Damage costs'!$T$16:$T$43,MATCH($B162,'Damage costs'!$C$16:$C$43,0))/1000),\"\")","v":""},{"$f":"IFERROR(IF(OR($C$168=FALSE,LEFT($B162,3)<>\"NOX\"),CE53*INDEX('Damage costs'!$P$16:$P$43,MATCH($B162,'Damage costs'!$C$16:$C$43,0))/1000,CE53*INDEX('Damage costs'!$T$16:$T$43,MATCH($B162,'Damage costs'!$C$16:$C$43,0))/1000),\"\")","v":""},{"$f":"IFERROR(IF(OR($C$168=FALSE,LEFT($B162,3)<>\"NOX\"),CF53*INDEX('Damage costs'!$P$16:$P$43,MATCH($B162,'Damage costs'!$C$16:$C$43,0))/1000,CF53*INDEX('Damage costs'!$T$16:$T$43,MATCH($B162,'Damage costs'!$C$16:$C$43,0))/1000),\"\")","v":""},{"$f":"IFERROR(IF(OR($C$168=FALSE,LEFT($B162,3)<>\"NOX\"),CG53*INDEX('Damage costs'!$P$16:$P$43,MATCH($B162,'Damage costs'!$C$16:$C$43,0))/1000,CG53*INDEX('Damage costs'!$T$16:$T$43,MATCH($B162,'Damage costs'!$C$16:$C$43,0))/1000),\"\")","v":""},{"$f":"IFERROR(IF(OR($C$168=FALSE,LEFT($B162,3)<>\"NOX\"),CH53*INDEX('Damage costs'!$P$16:$P$43,MATCH($B162,'Damage costs'!$C$16:$C$43,0))/1000,CH53*INDEX('Damage costs'!$T$16:$T$43,MATCH($B162,'Damage costs'!$C$16:$C$43,0))/1000),\"\")","v":""},{"$f":"IFERROR(IF(OR($C$168=FALSE,LEFT($B162,3)<>\"NOX\"),CI53*INDEX('Damage costs'!$P$16:$P$43,MATCH($B162,'Damage costs'!$C$16:$C$43,0))/1000,CI53*INDEX('Damage costs'!$T$16:$T$43,MATCH($B162,'Damage costs'!$C$16:$C$43,0))/1000),\"\")","v":""},{"$f":"IFERROR(IF(OR($C$168=FALSE,LEFT($B162,3)<>\"NOX\"),CJ53*INDEX('Damage costs'!$P$16:$P$43,MATCH($B162,'Damage costs'!$C$16:$C$43,0))/1000,CJ53*INDEX('Damage costs'!$T$16:$T$43,MATCH($B162,'Damage costs'!$C$16:$C$43,0))/1000),\"\")","v":""},{"$f":"IFERROR(IF(OR($C$168=FALSE,LEFT($B162,3)<>\"NOX\"),CK53*INDEX('Damage costs'!$P$16:$P$43,MATCH($B162,'Damage costs'!$C$16:$C$43,0))/1000,CK53*INDEX('Damage costs'!$T$16:$T$43,MATCH($B162,'Damage costs'!$C$16:$C$43,0))/1000),\"\")","v":""},{"$f":"IFERROR(IF(OR($C$168=FALSE,LEFT($B162,3)<>\"NOX\"),CL53*INDEX('Damage costs'!$P$16:$P$43,MATCH($B162,'Damage costs'!$C$16:$C$43,0))/1000,CL53*INDEX('Damage costs'!$T$16:$T$43,MATCH($B162,'Damage costs'!$C$16:$C$43,0))/1000),\"\")","v":""},{"$f":"IFERROR(IF(OR($C$168=FALSE,LEFT($B162,3)<>\"NOX\"),CM53*INDEX('Damage costs'!$P$16:$P$43,MATCH($B162,'Damage costs'!$C$16:$C$43,0))/1000,CM53*INDEX('Damage costs'!$T$16:$T$43,MATCH($B162,'Damage costs'!$C$16:$C$43,0))/1000),\"\")","v":""},{"$f":"IFERROR(IF(OR($C$168=FALSE,LEFT($B162,3)<>\"NOX\"),CN53*INDEX('Damage costs'!$P$16:$P$43,MATCH($B162,'Damage costs'!$C$16:$C$43,0))/1000,CN53*INDEX('Damage costs'!$T$16:$T$43,MATCH($B162,'Damage costs'!$C$16:$C$43,0))/1000),\"\")","v":""},{"$f":"IFERROR(IF(OR($C$168=FALSE,LEFT($B162,3)<>\"NOX\"),CO53*INDEX('Damage costs'!$P$16:$P$43,MATCH($B162,'Damage costs'!$C$16:$C$43,0))/1000,CO53*INDEX('Damage costs'!$T$16:$T$43,MATCH($B162,'Damage costs'!$C$16:$C$43,0))/1000),\"\")","v":""},{"$f":"IFERROR(IF(OR($C$168=FALSE,LEFT($B162,3)<>\"NOX\"),CP53*INDEX('Damage costs'!$P$16:$P$43,MATCH($B162,'Damage costs'!$C$16:$C$43,0))/1000,CP53*INDEX('Damage costs'!$T$16:$T$43,MATCH($B162,'Damage costs'!$C$16:$C$43,0))/1000),\"\")","v":""},{"$f":"IFERROR(IF(OR($C$168=FALSE,LEFT($B162,3)<>\"NOX\"),CQ53*INDEX('Damage costs'!$P$16:$P$43,MATCH($B162,'Damage costs'!$C$16:$C$43,0))/1000,CQ53*INDEX('Damage costs'!$T$16:$T$43,MATCH($B162,'Damage costs'!$C$16:$C$43,0))/1000),\"\")","v":""},{"$f":"IFERROR(IF(OR($C$168=FALSE,LEFT($B162,3)<>\"NOX\"),CR53*INDEX('Damage costs'!$P$16:$P$43,MATCH($B162,'Damage costs'!$C$16:$C$43,0))/1000,CR53*INDEX('Damage costs'!$T$16:$T$43,MATCH($B162,'Damage costs'!$C$16:$C$43,0))/1000),\"\")","v":""},{"$f":"IFERROR(IF(OR($C$168=FALSE,LEFT($B162,3)<>\"NOX\"),CS53*INDEX('Damage costs'!$P$16:$P$43,MATCH($B162,'Damage costs'!$C$16:$C$43,0))/1000,CS53*INDEX('Damage costs'!$T$16:$T$43,MATCH($B162,'Damage costs'!$C$16:$C$43,0))/1000),\"\")","v":""},{"$f":"IFERROR(IF(OR($C$168=FALSE,LEFT($B162,3)<>\"NOX\"),CT53*INDEX('Damage costs'!$P$16:$P$43,MATCH($B162,'Damage costs'!$C$16:$C$43,0))/1000,CT53*INDEX('Damage costs'!$T$16:$T$43,MATCH($B162,'Damage costs'!$C$16:$C$43,0))/1000),\"\")","v":""},{"$f":"IFERROR(IF(OR($C$168=FALSE,LEFT($B162,3)<>\"NOX\"),CU53*INDEX('Damage costs'!$P$16:$P$43,MATCH($B162,'Damage costs'!$C$16:$C$43,0))/1000,CU53*INDEX('Damage costs'!$T$16:$T$43,MATCH($B162,'Damage costs'!$C$16:$C$43,0))/1000),\"\")","v":""},{"$f":"IFERROR(IF(OR($C$168=FALSE,LEFT($B162,3)<>\"NOX\"),CV53*INDEX('Damage costs'!$P$16:$P$43,MATCH($B162,'Damage costs'!$C$16:$C$43,0))/1000,CV53*INDEX('Damage costs'!$T$16:$T$43,MATCH($B162,'Damage costs'!$C$16:$C$43,0))/1000),\"\")","v":""},{"$f":"IFERROR(IF(OR($C$168=FALSE,LEFT($B162,3)<>\"NOX\"),CW53*INDEX('Damage costs'!$P$16:$P$43,MATCH($B162,'Damage costs'!$C$16:$C$43,0))/1000,CW53*INDEX('Damage costs'!$T$16:$T$43,MATCH($B162,'Damage costs'!$C$16:$C$43,0))/1000),\"\")","v":""},{"$f":"IFERROR(IF(OR($C$168=FALSE,LEFT($B162,3)<>\"NOX\"),CX53*INDEX('Damage costs'!$P$16:$P$43,MATCH($B162,'Damage costs'!$C$16:$C$43,0))/1000,CX53*INDEX('Damage costs'!$T$16:$T$43,MATCH($B162,'Damage costs'!$C$16:$C$43,0))/1000),\"\")","v":""},{"$f":"IFERROR(IF(OR($C$168=FALSE,LEFT($B162,3)<>\"NOX\"),CY53*INDEX('Damage costs'!$P$16:$P$43,MATCH($B162,'Damage costs'!$C$16:$C$43,0))/1000,CY53*INDEX('Damage costs'!$T$16:$T$43,MATCH($B162,'Damage costs'!$C$16:$C$43,0))/1000),\"\")","v":""}]
[null,0,"£000's",{"$f":"IFERROR(IF(OR($C$168=FALSE,LEFT($B163,3)<>\"NOX\"),D54*INDEX('Damage costs'!$P$16:$P$43,MATCH($B163,'Damage costs'!$C$16:$C$43,0))/1000,D54*INDEX('Damage costs'!$T$16:$T$43,MATCH($B163,'Damage costs'!$C$16:$C$43,0))/1000),\"\")","v":""},{"$f":"IFERROR(IF(OR($C$168=FALSE,LEFT($B163,3)<>\"NOX\"),E54*INDEX('Damage costs'!$P$16:$P$43,MATCH($B163,'Damage costs'!$C$16:$C$43,0))/1000,E54*INDEX('Damage costs'!$T$16:$T$43,MATCH($B163,'Damage costs'!$C$16:$C$43,0))/1000),\"\")","v":""},{"$f":"IFERROR(IF(OR($C$168=FALSE,LEFT($B163,3)<>\"NOX\"),F54*INDEX('Damage costs'!$P$16:$P$43,MATCH($B163,'Damage costs'!$C$16:$C$43,0))/1000,F54*INDEX('Damage costs'!$T$16:$T$43,MATCH($B163,'Damage costs'!$C$16:$C$43,0))/1000),\"\")","v":""},{"$f":"IFERROR(IF(OR($C$168=FALSE,LEFT($B163,3)<>\"NOX\"),G54*INDEX('Damage costs'!$P$16:$P$43,MATCH($B163,'Damage costs'!$C$16:$C$43,0))/1000,G54*INDEX('Damage costs'!$T$16:$T$43,MATCH($B163,'Damage costs'!$C$16:$C$43,0))/1000),\"\")","v":""},{"$f":"IFERROR(IF(OR($C$168=FALSE,LEFT($B163,3)<>\"NOX\"),H54*INDEX('Damage costs'!$P$16:$P$43,MATCH($B163,'Damage costs'!$C$16:$C$43,0))/1000,H54*INDEX('Damage costs'!$T$16:$T$43,MATCH($B163,'Damage costs'!$C$16:$C$43,0))/1000),\"\")","v":""},{"$f":"IFERROR(IF(OR($C$168=FALSE,LEFT($B163,3)<>\"NOX\"),I54*INDEX('Damage costs'!$P$16:$P$43,MATCH($B163,'Damage costs'!$C$16:$C$43,0))/1000,I54*INDEX('Damage costs'!$T$16:$T$43,MATCH($B163,'Damage costs'!$C$16:$C$43,0))/1000),\"\")","v":""},{"$f":"IFERROR(IF(OR($C$168=FALSE,LEFT($B163,3)<>\"NOX\"),J54*INDEX('Damage costs'!$P$16:$P$43,MATCH($B163,'Damage costs'!$C$16:$C$43,0))/1000,J54*INDEX('Damage costs'!$T$16:$T$43,MATCH($B163,'Damage costs'!$C$16:$C$43,0))/1000),\"\")","v":""},{"$f":"IFERROR(IF(OR($C$168=FALSE,LEFT($B163,3)<>\"NOX\"),K54*INDEX('Damage costs'!$P$16:$P$43,MATCH($B163,'Damage costs'!$C$16:$C$43,0))/1000,K54*INDEX('Damage costs'!$T$16:$T$43,MATCH($B163,'Damage costs'!$C$16:$C$43,0))/1000),\"\")","v":""},{"$f":"IFERROR(IF(OR($C$168=FALSE,LEFT($B163,3)<>\"NOX\"),L54*INDEX('Damage costs'!$P$16:$P$43,MATCH($B163,'Damage costs'!$C$16:$C$43,0))/1000,L54*INDEX('Damage costs'!$T$16:$T$43,MATCH($B163,'Damage costs'!$C$16:$C$43,0))/1000),\"\")","v":""},{"$f":"IFERROR(IF(OR($C$168=FALSE,LEFT($B163,3)<>\"NOX\"),M54*INDEX('Damage costs'!$P$16:$P$43,MATCH($B163,'Damage costs'!$C$16:$C$43,0))/1000,M54*INDEX('Damage costs'!$T$16:$T$43,MATCH($B163,'Damage costs'!$C$16:$C$43,0))/1000),\"\")","v":""},{"$f":"IFERROR(IF(OR($C$168=FALSE,LEFT($B163,3)<>\"NOX\"),N54*INDEX('Damage costs'!$P$16:$P$43,MATCH($B163,'Damage costs'!$C$16:$C$43,0))/1000,N54*INDEX('Damage costs'!$T$16:$T$43,MATCH($B163,'Damage costs'!$C$16:$C$43,0))/1000),\"\")","v":""},{"$f":"IFERROR(IF(OR($C$168=FALSE,LEFT($B163,3)<>\"NOX\"),O54*INDEX('Damage costs'!$P$16:$P$43,MATCH($B163,'Damage costs'!$C$16:$C$43,0))/1000,O54*INDEX('Damage costs'!$T$16:$T$43,MATCH($B163,'Damage costs'!$C$16:$C$43,0))/1000),\"\")","v":""},{"$f":"IFERROR(IF(OR($C$168=FALSE,LEFT($B163,3)<>\"NOX\"),P54*INDEX('Damage costs'!$P$16:$P$43,MATCH($B163,'Damage costs'!$C$16:$C$43,0))/1000,P54*INDEX('Damage costs'!$T$16:$T$43,MATCH($B163,'Damage costs'!$C$16:$C$43,0))/1000),\"\")","v":""},{"$f":"IFERROR(IF(OR($C$168=FALSE,LEFT($B163,3)<>\"NOX\"),Q54*INDEX('Damage costs'!$P$16:$P$43,MATCH($B163,'Damage costs'!$C$16:$C$43,0))/1000,Q54*INDEX('Damage costs'!$T$16:$T$43,MATCH($B163,'Damage costs'!$C$16:$C$43,0))/1000),\"\")","v":""},{"$f":"IFERROR(IF(OR($C$168=FALSE,LEFT($B163,3)<>\"NOX\"),R54*INDEX('Damage costs'!$P$16:$P$43,MATCH($B163,'Damage costs'!$C$16:$C$43,0))/1000,R54*INDEX('Damage costs'!$T$16:$T$43,MATCH($B163,'Damage costs'!$C$16:$C$43,0))/1000),\"\")","v":""},{"$f":"IFERROR(IF(OR($C$168=FALSE,LEFT($B163,3)<>\"NOX\"),S54*INDEX('Damage costs'!$P$16:$P$43,MATCH($B163,'Damage costs'!$C$16:$C$43,0))/1000,S54*INDEX('Damage costs'!$T$16:$T$43,MATCH($B163,'Damage costs'!$C$16:$C$43,0))/1000),\"\")","v":""},{"$f":"IFERROR(IF(OR($C$168=FALSE,LEFT($B163,3)<>\"NOX\"),T54*INDEX('Damage costs'!$P$16:$P$43,MATCH($B163,'Damage costs'!$C$16:$C$43,0))/1000,T54*INDEX('Damage costs'!$T$16:$T$43,MATCH($B163,'Damage costs'!$C$16:$C$43,0))/1000),\"\")","v":""},{"$f":"IFERROR(IF(OR($C$168=FALSE,LEFT($B163,3)<>\"NOX\"),U54*INDEX('Damage costs'!$P$16:$P$43,MATCH($B163,'Damage costs'!$C$16:$C$43,0))/1000,U54*INDEX('Damage costs'!$T$16:$T$43,MATCH($B163,'Damage costs'!$C$16:$C$43,0))/1000),\"\")","v":""},{"$f":"IFERROR(IF(OR($C$168=FALSE,LEFT($B163,3)<>\"NOX\"),V54*INDEX('Damage costs'!$P$16:$P$43,MATCH($B163,'Damage costs'!$C$16:$C$43,0))/1000,V54*INDEX('Damage costs'!$T$16:$T$43,MATCH($B163,'Damage costs'!$C$16:$C$43,0))/1000),\"\")","v":""},{"$f":"IFERROR(IF(OR($C$168=FALSE,LEFT($B163,3)<>\"NOX\"),W54*INDEX('Damage costs'!$P$16:$P$43,MATCH($B163,'Damage costs'!$C$16:$C$43,0))/1000,W54*INDEX('Damage costs'!$T$16:$T$43,MATCH($B163,'Damage costs'!$C$16:$C$43,0))/1000),\"\")","v":""},{"$f":"IFERROR(IF(OR($C$168=FALSE,LEFT($B163,3)<>\"NOX\"),X54*INDEX('Damage costs'!$P$16:$P$43,MATCH($B163,'Damage costs'!$C$16:$C$43,0))/1000,X54*INDEX('Damage costs'!$T$16:$T$43,MATCH($B163,'Damage costs'!$C$16:$C$43,0))/1000),\"\")","v":""},{"$f":"IFERROR(IF(OR($C$168=FALSE,LEFT($B163,3)<>\"NOX\"),Y54*INDEX('Damage costs'!$P$16:$P$43,MATCH($B163,'Damage costs'!$C$16:$C$43,0))/1000,Y54*INDEX('Damage costs'!$T$16:$T$43,MATCH($B163,'Damage costs'!$C$16:$C$43,0))/1000),\"\")","v":""},{"$f":"IFERROR(IF(OR($C$168=FALSE,LEFT($B163,3)<>\"NOX\"),Z54*INDEX('Damage costs'!$P$16:$P$43,MATCH($B163,'Damage costs'!$C$16:$C$43,0))/1000,Z54*INDEX('Damage costs'!$T$16:$T$43,MATCH($B163,'Damage costs'!$C$16:$C$43,0))/1000),\"\")","v":""},{"$f":"IFERROR(IF(OR($C$168=FALSE,LEFT($B163,3)<>\"NOX\"),AA54*INDEX('Damage costs'!$P$16:$P$43,MATCH($B163,'Damage costs'!$C$16:$C$43,0))/1000,AA54*INDEX('Damage costs'!$T$16:$T$43,MATCH($B163,'Damage costs'!$C$16:$C$43,0))/1000),\"\")","v":""},{"$f":"IFERROR(IF(OR($C$168=FALSE,LEFT($B163,3)<>\"NOX\"),AB54*INDEX('Damage costs'!$P$16:$P$43,MATCH($B163,'Damage costs'!$C$16:$C$43,0))/1000,AB54*INDEX('Damage costs'!$T$16:$T$43,MATCH($B163,'Damage costs'!$C$16:$C$43,0))/1000),\"\")","v":""},{"$f":"IFERROR(IF(OR($C$168=FALSE,LEFT($B163,3)<>\"NOX\"),AC54*INDEX('Damage costs'!$P$16:$P$43,MATCH($B163,'Damage costs'!$C$16:$C$43,0))/1000,AC54*INDEX('Damage costs'!$T$16:$T$43,MATCH($B163,'Damage costs'!$C$16:$C$43,0))/1000),\"\")","v":""},{"$f":"IFERROR(IF(OR($C$168=FALSE,LEFT($B163,3)<>\"NOX\"),AD54*INDEX('Damage costs'!$P$16:$P$43,MATCH($B163,'Damage costs'!$C$16:$C$43,0))/1000,AD54*INDEX('Damage costs'!$T$16:$T$43,MATCH($B163,'Damage costs'!$C$16:$C$43,0))/1000),\"\")","v":""},{"$f":"IFERROR(IF(OR($C$168=FALSE,LEFT($B163,3)<>\"NOX\"),AE54*INDEX('Damage costs'!$P$16:$P$43,MATCH($B163,'Damage costs'!$C$16:$C$43,0))/1000,AE54*INDEX('Damage costs'!$T$16:$T$43,MATCH($B163,'Damage costs'!$C$16:$C$43,0))/1000),\"\")","v":""},{"$f":"IFERROR(IF(OR($C$168=FALSE,LEFT($B163,3)<>\"NOX\"),AF54*INDEX('Damage costs'!$P$16:$P$43,MATCH($B163,'Damage costs'!$C$16:$C$43,0))/1000,AF54*INDEX('Damage costs'!$T$16:$T$43,MATCH($B163,'Damage costs'!$C$16:$C$43,0))/1000),\"\")","v":""},{"$f":"IFERROR(IF(OR($C$168=FALSE,LEFT($B163,3)<>\"NOX\"),AG54*INDEX('Damage costs'!$P$16:$P$43,MATCH($B163,'Damage costs'!$C$16:$C$43,0))/1000,AG54*INDEX('Damage costs'!$T$16:$T$43,MATCH($B163,'Damage costs'!$C$16:$C$43,0))/1000),\"\")","v":""},{"$f":"IFERROR(IF(OR($C$168=FALSE,LEFT($B163,3)<>\"NOX\"),AH54*INDEX('Damage costs'!$P$16:$P$43,MATCH($B163,'Damage costs'!$C$16:$C$43,0))/1000,AH54*INDEX('Damage costs'!$T$16:$T$43,MATCH($B163,'Damage costs'!$C$16:$C$43,0))/1000),\"\")","v":""},{"$f":"IFERROR(IF(OR($C$168=FALSE,LEFT($B163,3)<>\"NOX\"),AI54*INDEX('Damage costs'!$P$16:$P$43,MATCH($B163,'Damage costs'!$C$16:$C$43,0))/1000,AI54*INDEX('Damage costs'!$T$16:$T$43,MATCH($B163,'Damage costs'!$C$16:$C$43,0))/1000),\"\")","v":""},{"$f":"IFERROR(IF(OR($C$168=FALSE,LEFT($B163,3)<>\"NOX\"),AJ54*INDEX('Damage costs'!$P$16:$P$43,MATCH($B163,'Damage costs'!$C$16:$C$43,0))/1000,AJ54*INDEX('Damage costs'!$T$16:$T$43,MATCH($B163,'Damage costs'!$C$16:$C$43,0))/1000),\"\")","v":""},{"$f":"IFERROR(IF(OR($C$168=FALSE,LEFT($B163,3)<>\"NOX\"),AK54*INDEX('Damage costs'!$P$16:$P$43,MATCH($B163,'Damage costs'!$C$16:$C$43,0))/1000,AK54*INDEX('Damage costs'!$T$16:$T$43,MATCH($B163,'Damage costs'!$C$16:$C$43,0))/1000),\"\")","v":""},{"$f":"IFERROR(IF(OR($C$168=FALSE,LEFT($B163,3)<>\"NOX\"),AL54*INDEX('Damage costs'!$P$16:$P$43,MATCH($B163,'Damage costs'!$C$16:$C$43,0))/1000,AL54*INDEX('Damage costs'!$T$16:$T$43,MATCH($B163,'Damage costs'!$C$16:$C$43,0))/1000),\"\")","v":""},{"$f":"IFERROR(IF(OR($C$168=FALSE,LEFT($B163,3)<>\"NOX\"),AM54*INDEX('Damage costs'!$P$16:$P$43,MATCH($B163,'Damage costs'!$C$16:$C$43,0))/1000,AM54*INDEX('Damage costs'!$T$16:$T$43,MATCH($B163,'Damage costs'!$C$16:$C$43,0))/1000),\"\")","v":""},{"$f":"IFERROR(IF(OR($C$168=FALSE,LEFT($B163,3)<>\"NOX\"),AN54*INDEX('Damage costs'!$P$16:$P$43,MATCH($B163,'Damage costs'!$C$16:$C$43,0))/1000,AN54*INDEX('Damage costs'!$T$16:$T$43,MATCH($B163,'Damage costs'!$C$16:$C$43,0))/1000),\"\")","v":""},{"$f":"IFERROR(IF(OR($C$168=FALSE,LEFT($B163,3)<>\"NOX\"),AO54*INDEX('Damage costs'!$P$16:$P$43,MATCH($B163,'Damage costs'!$C$16:$C$43,0))/1000,AO54*INDEX('Damage costs'!$T$16:$T$43,MATCH($B163,'Damage costs'!$C$16:$C$43,0))/1000),\"\")","v":""},{"$f":"IFERROR(IF(OR($C$168=FALSE,LEFT($B163,3)<>\"NOX\"),AP54*INDEX('Damage costs'!$P$16:$P$43,MATCH($B163,'Damage costs'!$C$16:$C$43,0))/1000,AP54*INDEX('Damage costs'!$T$16:$T$43,MATCH($B163,'Damage costs'!$C$16:$C$43,0))/1000),\"\")","v":""},{"$f":"IFERROR(IF(OR($C$168=FALSE,LEFT($B163,3)<>\"NOX\"),AQ54*INDEX('Damage costs'!$P$16:$P$43,MATCH($B163,'Damage costs'!$C$16:$C$43,0))/1000,AQ54*INDEX('Damage costs'!$T$16:$T$43,MATCH($B163,'Damage costs'!$C$16:$C$43,0))/1000),\"\")","v":""},{"$f":"IFERROR(IF(OR($C$168=FALSE,LEFT($B163,3)<>\"NOX\"),AR54*INDEX('Damage costs'!$P$16:$P$43,MATCH($B163,'Damage costs'!$C$16:$C$43,0))/1000,AR54*INDEX('Damage costs'!$T$16:$T$43,MATCH($B163,'Damage costs'!$C$16:$C$43,0))/1000),\"\")","v":""},{"$f":"IFERROR(IF(OR($C$168=FALSE,LEFT($B163,3)<>\"NOX\"),AS54*INDEX('Damage costs'!$P$16:$P$43,MATCH($B163,'Damage costs'!$C$16:$C$43,0))/1000,AS54*INDEX('Damage costs'!$T$16:$T$43,MATCH($B163,'Damage costs'!$C$16:$C$43,0))/1000),\"\")","v":""},{"$f":"IFERROR(IF(OR($C$168=FALSE,LEFT($B163,3)<>\"NOX\"),AT54*INDEX('Damage costs'!$P$16:$P$43,MATCH($B163,'Damage costs'!$C$16:$C$43,0))/1000,AT54*INDEX('Damage costs'!$T$16:$T$43,MATCH($B163,'Damage costs'!$C$16:$C$43,0))/1000),\"\")","v":""},{"$f":"IFERROR(IF(OR($C$168=FALSE,LEFT($B163,3)<>\"NOX\"),AU54*INDEX('Damage costs'!$P$16:$P$43,MATCH($B163,'Damage costs'!$C$16:$C$43,0))/1000,AU54*INDEX('Damage costs'!$T$16:$T$43,MATCH($B163,'Damage costs'!$C$16:$C$43,0))/1000),\"\")","v":""},{"$f":"IFERROR(IF(OR($C$168=FALSE,LEFT($B163,3)<>\"NOX\"),AV54*INDEX('Damage costs'!$P$16:$P$43,MATCH($B163,'Damage costs'!$C$16:$C$43,0))/1000,AV54*INDEX('Damage costs'!$T$16:$T$43,MATCH($B163,'Damage costs'!$C$16:$C$43,0))/1000),\"\")","v":""},{"$f":"IFERROR(IF(OR($C$168=FALSE,LEFT($B163,3)<>\"NOX\"),AW54*INDEX('Damage costs'!$P$16:$P$43,MATCH($B163,'Damage costs'!$C$16:$C$43,0))/1000,AW54*INDEX('Damage costs'!$T$16:$T$43,MATCH($B163,'Damage costs'!$C$16:$C$43,0))/1000),\"\")","v":""},{"$f":"IFERROR(IF(OR($C$168=FALSE,LEFT($B163,3)<>\"NOX\"),AX54*INDEX('Damage costs'!$P$16:$P$43,MATCH($B163,'Damage costs'!$C$16:$C$43,0))/1000,AX54*INDEX('Damage costs'!$T$16:$T$43,MATCH($B163,'Damage costs'!$C$16:$C$43,0))/1000),\"\")","v":""},{"$f":"IFERROR(IF(OR($C$168=FALSE,LEFT($B163,3)<>\"NOX\"),AY54*INDEX('Damage costs'!$P$16:$P$43,MATCH($B163,'Damage costs'!$C$16:$C$43,0))/1000,AY54*INDEX('Damage costs'!$T$16:$T$43,MATCH($B163,'Damage costs'!$C$16:$C$43,0))/1000),\"\")","v":""},{"$f":"IFERROR(IF(OR($C$168=FALSE,LEFT($B163,3)<>\"NOX\"),AZ54*INDEX('Damage costs'!$P$16:$P$43,MATCH($B163,'Damage costs'!$C$16:$C$43,0))/1000,AZ54*INDEX('Damage costs'!$T$16:$T$43,MATCH($B163,'Damage costs'!$C$16:$C$43,0))/1000),\"\")","v":""},{"$f":"IFERROR(IF(OR($C$168=FALSE,LEFT($B163,3)<>\"NOX\"),BA54*INDEX('Damage costs'!$P$16:$P$43,MATCH($B163,'Damage costs'!$C$16:$C$43,0))/1000,BA54*INDEX('Damage costs'!$T$16:$T$43,MATCH($B163,'Damage costs'!$C$16:$C$43,0))/1000),\"\")","v":""},{"$f":"IFERROR(IF(OR($C$168=FALSE,LEFT($B163,3)<>\"NOX\"),BB54*INDEX('Damage costs'!$P$16:$P$43,MATCH($B163,'Damage costs'!$C$16:$C$43,0))/1000,BB54*INDEX('Damage costs'!$T$16:$T$43,MATCH($B163,'Damage costs'!$C$16:$C$43,0))/1000),\"\")","v":""},{"$f":"IFERROR(IF(OR($C$168=FALSE,LEFT($B163,3)<>\"NOX\"),BC54*INDEX('Damage costs'!$P$16:$P$43,MATCH($B163,'Damage costs'!$C$16:$C$43,0))/1000,BC54*INDEX('Damage costs'!$T$16:$T$43,MATCH($B163,'Damage costs'!$C$16:$C$43,0))/1000),\"\")","v":""},{"$f":"IFERROR(IF(OR($C$168=FALSE,LEFT($B163,3)<>\"NOX\"),BD54*INDEX('Damage costs'!$P$16:$P$43,MATCH($B163,'Damage costs'!$C$16:$C$43,0))/1000,BD54*INDEX('Damage costs'!$T$16:$T$43,MATCH($B163,'Damage costs'!$C$16:$C$43,0))/1000),\"\")","v":""},{"$f":"IFERROR(IF(OR($C$168=FALSE,LEFT($B163,3)<>\"NOX\"),BE54*INDEX('Damage costs'!$P$16:$P$43,MATCH($B163,'Damage costs'!$C$16:$C$43,0))/1000,BE54*INDEX('Damage costs'!$T$16:$T$43,MATCH($B163,'Damage costs'!$C$16:$C$43,0))/1000),\"\")","v":""},{"$f":"IFERROR(IF(OR($C$168=FALSE,LEFT($B163,3)<>\"NOX\"),BF54*INDEX('Damage costs'!$P$16:$P$43,MATCH($B163,'Damage costs'!$C$16:$C$43,0))/1000,BF54*INDEX('Damage costs'!$T$16:$T$43,MATCH($B163,'Damage costs'!$C$16:$C$43,0))/1000),\"\")","v":""},{"$f":"IFERROR(IF(OR($C$168=FALSE,LEFT($B163,3)<>\"NOX\"),BG54*INDEX('Damage costs'!$P$16:$P$43,MATCH($B163,'Damage costs'!$C$16:$C$43,0))/1000,BG54*INDEX('Damage costs'!$T$16:$T$43,MATCH($B163,'Damage costs'!$C$16:$C$43,0))/1000),\"\")","v":""},{"$f":"IFERROR(IF(OR($C$168=FALSE,LEFT($B163,3)<>\"NOX\"),BH54*INDEX('Damage costs'!$P$16:$P$43,MATCH($B163,'Damage costs'!$C$16:$C$43,0))/1000,BH54*INDEX('Damage costs'!$T$16:$T$43,MATCH($B163,'Damage costs'!$C$16:$C$43,0))/1000),\"\")","v":""},{"$f":"IFERROR(IF(OR($C$168=FALSE,LEFT($B163,3)<>\"NOX\"),BI54*INDEX('Damage costs'!$P$16:$P$43,MATCH($B163,'Damage costs'!$C$16:$C$43,0))/1000,BI54*INDEX('Damage costs'!$T$16:$T$43,MATCH($B163,'Damage costs'!$C$16:$C$43,0))/1000),\"\")","v":""},{"$f":"IFERROR(IF(OR($C$168=FALSE,LEFT($B163,3)<>\"NOX\"),BJ54*INDEX('Damage costs'!$P$16:$P$43,MATCH($B163,'Damage costs'!$C$16:$C$43,0))/1000,BJ54*INDEX('Damage costs'!$T$16:$T$43,MATCH($B163,'Damage costs'!$C$16:$C$43,0))/1000),\"\")","v":""},{"$f":"IFERROR(IF(OR($C$168=FALSE,LEFT($B163,3)<>\"NOX\"),BK54*INDEX('Damage costs'!$P$16:$P$43,MATCH($B163,'Damage costs'!$C$16:$C$43,0))/1000,BK54*INDEX('Damage costs'!$T$16:$T$43,MATCH($B163,'Damage costs'!$C$16:$C$43,0))/1000),\"\")","v":""},{"$f":"IFERROR(IF(OR($C$168=FALSE,LEFT($B163,3)<>\"NOX\"),BL54*INDEX('Damage costs'!$P$16:$P$43,MATCH($B163,'Damage costs'!$C$16:$C$43,0))/1000,BL54*INDEX('Damage costs'!$T$16:$T$43,MATCH($B163,'Damage costs'!$C$16:$C$43,0))/1000),\"\")","v":""},{"$f":"IFERROR(IF(OR($C$168=FALSE,LEFT($B163,3)<>\"NOX\"),BM54*INDEX('Damage costs'!$P$16:$P$43,MATCH($B163,'Damage costs'!$C$16:$C$43,0))/1000,BM54*INDEX('Damage costs'!$T$16:$T$43,MATCH($B163,'Damage costs'!$C$16:$C$43,0))/1000),\"\")","v":""},{"$f":"IFERROR(IF(OR($C$168=FALSE,LEFT($B163,3)<>\"NOX\"),BN54*INDEX('Damage costs'!$P$16:$P$43,MATCH($B163,'Damage costs'!$C$16:$C$43,0))/1000,BN54*INDEX('Damage costs'!$T$16:$T$43,MATCH($B163,'Damage costs'!$C$16:$C$43,0))/1000),\"\")","v":""},{"$f":"IFERROR(IF(OR($C$168=FALSE,LEFT($B163,3)<>\"NOX\"),BO54*INDEX('Damage costs'!$P$16:$P$43,MATCH($B163,'Damage costs'!$C$16:$C$43,0))/1000,BO54*INDEX('Damage costs'!$T$16:$T$43,MATCH($B163,'Damage costs'!$C$16:$C$43,0))/1000),\"\")","v":""},{"$f":"IFERROR(IF(OR($C$168=FALSE,LEFT($B163,3)<>\"NOX\"),BP54*INDEX('Damage costs'!$P$16:$P$43,MATCH($B163,'Damage costs'!$C$16:$C$43,0))/1000,BP54*INDEX('Damage costs'!$T$16:$T$43,MATCH($B163,'Damage costs'!$C$16:$C$43,0))/1000),\"\")","v":""},{"$f":"IFERROR(IF(OR($C$168=FALSE,LEFT($B163,3)<>\"NOX\"),BQ54*INDEX('Damage costs'!$P$16:$P$43,MATCH($B163,'Damage costs'!$C$16:$C$43,0))/1000,BQ54*INDEX('Damage costs'!$T$16:$T$43,MATCH($B163,'Damage costs'!$C$16:$C$43,0))/1000),\"\")","v":""},{"$f":"IFERROR(IF(OR($C$168=FALSE,LEFT($B163,3)<>\"NOX\"),BR54*INDEX('Damage costs'!$P$16:$P$43,MATCH($B163,'Damage costs'!$C$16:$C$43,0))/1000,BR54*INDEX('Damage costs'!$T$16:$T$43,MATCH($B163,'Damage costs'!$C$16:$C$43,0))/1000),\"\")","v":""},{"$f":"IFERROR(IF(OR($C$168=FALSE,LEFT($B163,3)<>\"NOX\"),BS54*INDEX('Damage costs'!$P$16:$P$43,MATCH($B163,'Damage costs'!$C$16:$C$43,0))/1000,BS54*INDEX('Damage costs'!$T$16:$T$43,MATCH($B163,'Damage costs'!$C$16:$C$43,0))/1000),\"\")","v":""},{"$f":"IFERROR(IF(OR($C$168=FALSE,LEFT($B163,3)<>\"NOX\"),BT54*INDEX('Damage costs'!$P$16:$P$43,MATCH($B163,'Damage costs'!$C$16:$C$43,0))/1000,BT54*INDEX('Damage costs'!$T$16:$T$43,MATCH($B163,'Damage costs'!$C$16:$C$43,0))/1000),\"\")","v":""},{"$f":"IFERROR(IF(OR($C$168=FALSE,LEFT($B163,3)<>\"NOX\"),BU54*INDEX('Damage costs'!$P$16:$P$43,MATCH($B163,'Damage costs'!$C$16:$C$43,0))/1000,BU54*INDEX('Damage costs'!$T$16:$T$43,MATCH($B163,'Damage costs'!$C$16:$C$43,0))/1000),\"\")","v":""},{"$f":"IFERROR(IF(OR($C$168=FALSE,LEFT($B163,3)<>\"NOX\"),BV54*INDEX('Damage costs'!$P$16:$P$43,MATCH($B163,'Damage costs'!$C$16:$C$43,0))/1000,BV54*INDEX('Damage costs'!$T$16:$T$43,MATCH($B163,'Damage costs'!$C$16:$C$43,0))/1000),\"\")","v":""},{"$f":"IFERROR(IF(OR($C$168=FALSE,LEFT($B163,3)<>\"NOX\"),BW54*INDEX('Damage costs'!$P$16:$P$43,MATCH($B163,'Damage costs'!$C$16:$C$43,0))/1000,BW54*INDEX('Damage costs'!$T$16:$T$43,MATCH($B163,'Damage costs'!$C$16:$C$43,0))/1000),\"\")","v":""},{"$f":"IFERROR(IF(OR($C$168=FALSE,LEFT($B163,3)<>\"NOX\"),BX54*INDEX('Damage costs'!$P$16:$P$43,MATCH($B163,'Damage costs'!$C$16:$C$43,0))/1000,BX54*INDEX('Damage costs'!$T$16:$T$43,MATCH($B163,'Damage costs'!$C$16:$C$43,0))/1000),\"\")","v":""},{"$f":"IFERROR(IF(OR($C$168=FALSE,LEFT($B163,3)<>\"NOX\"),BY54*INDEX('Damage costs'!$P$16:$P$43,MATCH($B163,'Damage costs'!$C$16:$C$43,0))/1000,BY54*INDEX('Damage costs'!$T$16:$T$43,MATCH($B163,'Damage costs'!$C$16:$C$43,0))/1000),\"\")","v":""},{"$f":"IFERROR(IF(OR($C$168=FALSE,LEFT($B163,3)<>\"NOX\"),BZ54*INDEX('Damage costs'!$P$16:$P$43,MATCH($B163,'Damage costs'!$C$16:$C$43,0))/1000,BZ54*INDEX('Damage costs'!$T$16:$T$43,MATCH($B163,'Damage costs'!$C$16:$C$43,0))/1000),\"\")","v":""},{"$f":"IFERROR(IF(OR($C$168=FALSE,LEFT($B163,3)<>\"NOX\"),CA54*INDEX('Damage costs'!$P$16:$P$43,MATCH($B163,'Damage costs'!$C$16:$C$43,0))/1000,CA54*INDEX('Damage costs'!$T$16:$T$43,MATCH($B163,'Damage costs'!$C$16:$C$43,0))/1000),\"\")","v":""},{"$f":"IFERROR(IF(OR($C$168=FALSE,LEFT($B163,3)<>\"NOX\"),CB54*INDEX('Damage costs'!$P$16:$P$43,MATCH($B163,'Damage costs'!$C$16:$C$43,0))/1000,CB54*INDEX('Damage costs'!$T$16:$T$43,MATCH($B163,'Damage costs'!$C$16:$C$43,0))/1000),\"\")","v":""},{"$f":"IFERROR(IF(OR($C$168=FALSE,LEFT($B163,3)<>\"NOX\"),CC54*INDEX('Damage costs'!$P$16:$P$43,MATCH($B163,'Damage costs'!$C$16:$C$43,0))/1000,CC54*INDEX('Damage costs'!$T$16:$T$43,MATCH($B163,'Damage costs'!$C$16:$C$43,0))/1000),\"\")","v":""},{"$f":"IFERROR(IF(OR($C$168=FALSE,LEFT($B163,3)<>\"NOX\"),CD54*INDEX('Damage costs'!$P$16:$P$43,MATCH($B163,'Damage costs'!$C$16:$C$43,0))/1000,CD54*INDEX('Damage costs'!$T$16:$T$43,MATCH($B163,'Damage costs'!$C$16:$C$43,0))/1000),\"\")","v":""},{"$f":"IFERROR(IF(OR($C$168=FALSE,LEFT($B163,3)<>\"NOX\"),CE54*INDEX('Damage costs'!$P$16:$P$43,MATCH($B163,'Damage costs'!$C$16:$C$43,0))/1000,CE54*INDEX('Damage costs'!$T$16:$T$43,MATCH($B163,'Damage costs'!$C$16:$C$43,0))/1000),\"\")","v":""},{"$f":"IFERROR(IF(OR($C$168=FALSE,LEFT($B163,3)<>\"NOX\"),CF54*INDEX('Damage costs'!$P$16:$P$43,MATCH($B163,'Damage costs'!$C$16:$C$43,0))/1000,CF54*INDEX('Damage costs'!$T$16:$T$43,MATCH($B163,'Damage costs'!$C$16:$C$43,0))/1000),\"\")","v":""},{"$f":"IFERROR(IF(OR($C$168=FALSE,LEFT($B163,3)<>\"NOX\"),CG54*INDEX('Damage costs'!$P$16:$P$43,MATCH($B163,'Damage costs'!$C$16:$C$43,0))/1000,CG54*INDEX('Damage costs'!$T$16:$T$43,MATCH($B163,'Damage costs'!$C$16:$C$43,0))/1000),\"\")","v":""},{"$f":"IFERROR(IF(OR($C$168=FALSE,LEFT($B163,3)<>\"NOX\"),CH54*INDEX('Damage costs'!$P$16:$P$43,MATCH($B163,'Damage costs'!$C$16:$C$43,0))/1000,CH54*INDEX('Damage costs'!$T$16:$T$43,MATCH($B163,'Damage costs'!$C$16:$C$43,0))/1000),\"\")","v":""},{"$f":"IFERROR(IF(OR($C$168=FALSE,LEFT($B163,3)<>\"NOX\"),CI54*INDEX('Damage costs'!$P$16:$P$43,MATCH($B163,'Damage costs'!$C$16:$C$43,0))/1000,CI54*INDEX('Damage costs'!$T$16:$T$43,MATCH($B163,'Damage costs'!$C$16:$C$43,0))/1000),\"\")","v":""},{"$f":"IFERROR(IF(OR($C$168=FALSE,LEFT($B163,3)<>\"NOX\"),CJ54*INDEX('Damage costs'!$P$16:$P$43,MATCH($B163,'Damage costs'!$C$16:$C$43,0))/1000,CJ54*INDEX('Damage costs'!$T$16:$T$43,MATCH($B163,'Damage costs'!$C$16:$C$43,0))/1000),\"\")","v":""},{"$f":"IFERROR(IF(OR($C$168=FALSE,LEFT($B163,3)<>\"NOX\"),CK54*INDEX('Damage costs'!$P$16:$P$43,MATCH($B163,'Damage costs'!$C$16:$C$43,0))/1000,CK54*INDEX('Damage costs'!$T$16:$T$43,MATCH($B163,'Damage costs'!$C$16:$C$43,0))/1000),\"\")","v":""},{"$f":"IFERROR(IF(OR($C$168=FALSE,LEFT($B163,3)<>\"NOX\"),CL54*INDEX('Damage costs'!$P$16:$P$43,MATCH($B163,'Damage costs'!$C$16:$C$43,0))/1000,CL54*INDEX('Damage costs'!$T$16:$T$43,MATCH($B163,'Damage costs'!$C$16:$C$43,0))/1000),\"\")","v":""},{"$f":"IFERROR(IF(OR($C$168=FALSE,LEFT($B163,3)<>\"NOX\"),CM54*INDEX('Damage costs'!$P$16:$P$43,MATCH($B163,'Damage costs'!$C$16:$C$43,0))/1000,CM54*INDEX('Damage costs'!$T$16:$T$43,MATCH($B163,'Damage costs'!$C$16:$C$43,0))/1000),\"\")","v":""},{"$f":"IFERROR(IF(OR($C$168=FALSE,LEFT($B163,3)<>\"NOX\"),CN54*INDEX('Damage costs'!$P$16:$P$43,MATCH($B163,'Damage costs'!$C$16:$C$43,0))/1000,CN54*INDEX('Damage costs'!$T$16:$T$43,MATCH($B163,'Damage costs'!$C$16:$C$43,0))/1000),\"\")","v":""},{"$f":"IFERROR(IF(OR($C$168=FALSE,LEFT($B163,3)<>\"NOX\"),CO54*INDEX('Damage costs'!$P$16:$P$43,MATCH($B163,'Damage costs'!$C$16:$C$43,0))/1000,CO54*INDEX('Damage costs'!$T$16:$T$43,MATCH($B163,'Damage costs'!$C$16:$C$43,0))/1000),\"\")","v":""},{"$f":"IFERROR(IF(OR($C$168=FALSE,LEFT($B163,3)<>\"NOX\"),CP54*INDEX('Damage costs'!$P$16:$P$43,MATCH($B163,'Damage costs'!$C$16:$C$43,0))/1000,CP54*INDEX('Damage costs'!$T$16:$T$43,MATCH($B163,'Damage costs'!$C$16:$C$43,0))/1000),\"\")","v":""},{"$f":"IFERROR(IF(OR($C$168=FALSE,LEFT($B163,3)<>\"NOX\"),CQ54*INDEX('Damage costs'!$P$16:$P$43,MATCH($B163,'Damage costs'!$C$16:$C$43,0))/1000,CQ54*INDEX('Damage costs'!$T$16:$T$43,MATCH($B163,'Damage costs'!$C$16:$C$43,0))/1000),\"\")","v":""},{"$f":"IFERROR(IF(OR($C$168=FALSE,LEFT($B163,3)<>\"NOX\"),CR54*INDEX('Damage costs'!$P$16:$P$43,MATCH($B163,'Damage costs'!$C$16:$C$43,0))/1000,CR54*INDEX('Damage costs'!$T$16:$T$43,MATCH($B163,'Damage costs'!$C$16:$C$43,0))/1000),\"\")","v":""},{"$f":"IFERROR(IF(OR($C$168=FALSE,LEFT($B163,3)<>\"NOX\"),CS54*INDEX('Damage costs'!$P$16:$P$43,MATCH($B163,'Damage costs'!$C$16:$C$43,0))/1000,CS54*INDEX('Damage costs'!$T$16:$T$43,MATCH($B163,'Damage costs'!$C$16:$C$43,0))/1000),\"\")","v":""},{"$f":"IFERROR(IF(OR($C$168=FALSE,LEFT($B163,3)<>\"NOX\"),CT54*INDEX('Damage costs'!$P$16:$P$43,MATCH($B163,'Damage costs'!$C$16:$C$43,0))/1000,CT54*INDEX('Damage costs'!$T$16:$T$43,MATCH($B163,'Damage costs'!$C$16:$C$43,0))/1000),\"\")","v":""},{"$f":"IFERROR(IF(OR($C$168=FALSE,LEFT($B163,3)<>\"NOX\"),CU54*INDEX('Damage costs'!$P$16:$P$43,MATCH($B163,'Damage costs'!$C$16:$C$43,0))/1000,CU54*INDEX('Damage costs'!$T$16:$T$43,MATCH($B163,'Damage costs'!$C$16:$C$43,0))/1000),\"\")","v":""},{"$f":"IFERROR(IF(OR($C$168=FALSE,LEFT($B163,3)<>\"NOX\"),CV54*INDEX('Damage costs'!$P$16:$P$43,MATCH($B163,'Damage costs'!$C$16:$C$43,0))/1000,CV54*INDEX('Damage costs'!$T$16:$T$43,MATCH($B163,'Damage costs'!$C$16:$C$43,0))/1000),\"\")","v":""},{"$f":"IFERROR(IF(OR($C$168=FALSE,LEFT($B163,3)<>\"NOX\"),CW54*INDEX('Damage costs'!$P$16:$P$43,MATCH($B163,'Damage costs'!$C$16:$C$43,0))/1000,CW54*INDEX('Damage costs'!$T$16:$T$43,MATCH($B163,'Damage costs'!$C$16:$C$43,0))/1000),\"\")","v":""},{"$f":"IFERROR(IF(OR($C$168=FALSE,LEFT($B163,3)<>\"NOX\"),CX54*INDEX('Damage costs'!$P$16:$P$43,MATCH($B163,'Damage costs'!$C$16:$C$43,0))/1000,CX54*INDEX('Damage costs'!$T$16:$T$43,MATCH($B163,'Damage costs'!$C$16:$C$43,0))/1000),\"\")","v":""},{"$f":"IFERROR(IF(OR($C$168=FALSE,LEFT($B163,3)<>\"NOX\"),CY54*INDEX('Damage costs'!$P$16:$P$43,MATCH($B163,'Damage costs'!$C$16:$C$43,0))/1000,CY54*INDEX('Damage costs'!$T$16:$T$43,MATCH($B163,'Damage costs'!$C$16:$C$43,0))/1000),\"\")","v":""}]
[null,0,"£000's",{"$f":"IFERROR(IF(OR($C$168=FALSE,LEFT($B164,3)<>\"NOX\"),D55*INDEX('Damage costs'!$P$16:$P$43,MATCH($B164,'Damage costs'!$C$16:$C$43,0))/1000,D55*INDEX('Damage costs'!$T$16:$T$43,MATCH($B164,'Damage costs'!$C$16:$C$43,0))/1000),\"\")","v":""},{"$f":"IFERROR(IF(OR($C$168=FALSE,LEFT($B164,3)<>\"NOX\"),E55*INDEX('Damage costs'!$P$16:$P$43,MATCH($B164,'Damage costs'!$C$16:$C$43,0))/1000,E55*INDEX('Damage costs'!$T$16:$T$43,MATCH($B164,'Damage costs'!$C$16:$C$43,0))/1000),\"\")","v":""},{"$f":"IFERROR(IF(OR($C$168=FALSE,LEFT($B164,3)<>\"NOX\"),F55*INDEX('Damage costs'!$P$16:$P$43,MATCH($B164,'Damage costs'!$C$16:$C$43,0))/1000,F55*INDEX('Damage costs'!$T$16:$T$43,MATCH($B164,'Damage costs'!$C$16:$C$43,0))/1000),\"\")","v":""},{"$f":"IFERROR(IF(OR($C$168=FALSE,LEFT($B164,3)<>\"NOX\"),G55*INDEX('Damage costs'!$P$16:$P$43,MATCH($B164,'Damage costs'!$C$16:$C$43,0))/1000,G55*INDEX('Damage costs'!$T$16:$T$43,MATCH($B164,'Damage costs'!$C$16:$C$43,0))/1000),\"\")","v":""},{"$f":"IFERROR(IF(OR($C$168=FALSE,LEFT($B164,3)<>\"NOX\"),H55*INDEX('Damage costs'!$P$16:$P$43,MATCH($B164,'Damage costs'!$C$16:$C$43,0))/1000,H55*INDEX('Damage costs'!$T$16:$T$43,MATCH($B164,'Damage costs'!$C$16:$C$43,0))/1000),\"\")","v":""},{"$f":"IFERROR(IF(OR($C$168=FALSE,LEFT($B164,3)<>\"NOX\"),I55*INDEX('Damage costs'!$P$16:$P$43,MATCH($B164,'Damage costs'!$C$16:$C$43,0))/1000,I55*INDEX('Damage costs'!$T$16:$T$43,MATCH($B164,'Damage costs'!$C$16:$C$43,0))/1000),\"\")","v":""},{"$f":"IFERROR(IF(OR($C$168=FALSE,LEFT($B164,3)<>\"NOX\"),J55*INDEX('Damage costs'!$P$16:$P$43,MATCH($B164,'Damage costs'!$C$16:$C$43,0))/1000,J55*INDEX('Damage costs'!$T$16:$T$43,MATCH($B164,'Damage costs'!$C$16:$C$43,0))/1000),\"\")","v":""},{"$f":"IFERROR(IF(OR($C$168=FALSE,LEFT($B164,3)<>\"NOX\"),K55*INDEX('Damage costs'!$P$16:$P$43,MATCH($B164,'Damage costs'!$C$16:$C$43,0))/1000,K55*INDEX('Damage costs'!$T$16:$T$43,MATCH($B164,'Damage costs'!$C$16:$C$43,0))/1000),\"\")","v":""},{"$f":"IFERROR(IF(OR($C$168=FALSE,LEFT($B164,3)<>\"NOX\"),L55*INDEX('Damage costs'!$P$16:$P$43,MATCH($B164,'Damage costs'!$C$16:$C$43,0))/1000,L55*INDEX('Damage costs'!$T$16:$T$43,MATCH($B164,'Damage costs'!$C$16:$C$43,0))/1000),\"\")","v":""},{"$f":"IFERROR(IF(OR($C$168=FALSE,LEFT($B164,3)<>\"NOX\"),M55*INDEX('Damage costs'!$P$16:$P$43,MATCH($B164,'Damage costs'!$C$16:$C$43,0))/1000,M55*INDEX('Damage costs'!$T$16:$T$43,MATCH($B164,'Damage costs'!$C$16:$C$43,0))/1000),\"\")","v":""},{"$f":"IFERROR(IF(OR($C$168=FALSE,LEFT($B164,3)<>\"NOX\"),N55*INDEX('Damage costs'!$P$16:$P$43,MATCH($B164,'Damage costs'!$C$16:$C$43,0))/1000,N55*INDEX('Damage costs'!$T$16:$T$43,MATCH($B164,'Damage costs'!$C$16:$C$43,0))/1000),\"\")","v":""},{"$f":"IFERROR(IF(OR($C$168=FALSE,LEFT($B164,3)<>\"NOX\"),O55*INDEX('Damage costs'!$P$16:$P$43,MATCH($B164,'Damage costs'!$C$16:$C$43,0))/1000,O55*INDEX('Damage costs'!$T$16:$T$43,MATCH($B164,'Damage costs'!$C$16:$C$43,0))/1000),\"\")","v":""},{"$f":"IFERROR(IF(OR($C$168=FALSE,LEFT($B164,3)<>\"NOX\"),P55*INDEX('Damage costs'!$P$16:$P$43,MATCH($B164,'Damage costs'!$C$16:$C$43,0))/1000,P55*INDEX('Damage costs'!$T$16:$T$43,MATCH($B164,'Damage costs'!$C$16:$C$43,0))/1000),\"\")","v":""},{"$f":"IFERROR(IF(OR($C$168=FALSE,LEFT($B164,3)<>\"NOX\"),Q55*INDEX('Damage costs'!$P$16:$P$43,MATCH($B164,'Damage costs'!$C$16:$C$43,0))/1000,Q55*INDEX('Damage costs'!$T$16:$T$43,MATCH($B164,'Damage costs'!$C$16:$C$43,0))/1000),\"\")","v":""},{"$f":"IFERROR(IF(OR($C$168=FALSE,LEFT($B164,3)<>\"NOX\"),R55*INDEX('Damage costs'!$P$16:$P$43,MATCH($B164,'Damage costs'!$C$16:$C$43,0))/1000,R55*INDEX('Damage costs'!$T$16:$T$43,MATCH($B164,'Damage costs'!$C$16:$C$43,0))/1000),\"\")","v":""},{"$f":"IFERROR(IF(OR($C$168=FALSE,LEFT($B164,3)<>\"NOX\"),S55*INDEX('Damage costs'!$P$16:$P$43,MATCH($B164,'Damage costs'!$C$16:$C$43,0))/1000,S55*INDEX('Damage costs'!$T$16:$T$43,MATCH($B164,'Damage costs'!$C$16:$C$43,0))/1000),\"\")","v":""},{"$f":"IFERROR(IF(OR($C$168=FALSE,LEFT($B164,3)<>\"NOX\"),T55*INDEX('Damage costs'!$P$16:$P$43,MATCH($B164,'Damage costs'!$C$16:$C$43,0))/1000,T55*INDEX('Damage costs'!$T$16:$T$43,MATCH($B164,'Damage costs'!$C$16:$C$43,0))/1000),\"\")","v":""},{"$f":"IFERROR(IF(OR($C$168=FALSE,LEFT($B164,3)<>\"NOX\"),U55*INDEX('Damage costs'!$P$16:$P$43,MATCH($B164,'Damage costs'!$C$16:$C$43,0))/1000,U55*INDEX('Damage costs'!$T$16:$T$43,MATCH($B164,'Damage costs'!$C$16:$C$43,0))/1000),\"\")","v":""},{"$f":"IFERROR(IF(OR($C$168=FALSE,LEFT($B164,3)<>\"NOX\"),V55*INDEX('Damage costs'!$P$16:$P$43,MATCH($B164,'Damage costs'!$C$16:$C$43,0))/1000,V55*INDEX('Damage costs'!$T$16:$T$43,MATCH($B164,'Damage costs'!$C$16:$C$43,0))/1000),\"\")","v":""},{"$f":"IFERROR(IF(OR($C$168=FALSE,LEFT($B164,3)<>\"NOX\"),W55*INDEX('Damage costs'!$P$16:$P$43,MATCH($B164,'Damage costs'!$C$16:$C$43,0))/1000,W55*INDEX('Damage costs'!$T$16:$T$43,MATCH($B164,'Damage costs'!$C$16:$C$43,0))/1000),\"\")","v":""},{"$f":"IFERROR(IF(OR($C$168=FALSE,LEFT($B164,3)<>\"NOX\"),X55*INDEX('Damage costs'!$P$16:$P$43,MATCH($B164,'Damage costs'!$C$16:$C$43,0))/1000,X55*INDEX('Damage costs'!$T$16:$T$43,MATCH($B164,'Damage costs'!$C$16:$C$43,0))/1000),\"\")","v":""},{"$f":"IFERROR(IF(OR($C$168=FALSE,LEFT($B164,3)<>\"NOX\"),Y55*INDEX('Damage costs'!$P$16:$P$43,MATCH($B164,'Damage costs'!$C$16:$C$43,0))/1000,Y55*INDEX('Damage costs'!$T$16:$T$43,MATCH($B164,'Damage costs'!$C$16:$C$43,0))/1000),\"\")","v":""},{"$f":"IFERROR(IF(OR($C$168=FALSE,LEFT($B164,3)<>\"NOX\"),Z55*INDEX('Damage costs'!$P$16:$P$43,MATCH($B164,'Damage costs'!$C$16:$C$43,0))/1000,Z55*INDEX('Damage costs'!$T$16:$T$43,MATCH($B164,'Damage costs'!$C$16:$C$43,0))/1000),\"\")","v":""},{"$f":"IFERROR(IF(OR($C$168=FALSE,LEFT($B164,3)<>\"NOX\"),AA55*INDEX('Damage costs'!$P$16:$P$43,MATCH($B164,'Damage costs'!$C$16:$C$43,0))/1000,AA55*INDEX('Damage costs'!$T$16:$T$43,MATCH($B164,'Damage costs'!$C$16:$C$43,0))/1000),\"\")","v":""},{"$f":"IFERROR(IF(OR($C$168=FALSE,LEFT($B164,3)<>\"NOX\"),AB55*INDEX('Damage costs'!$P$16:$P$43,MATCH($B164,'Damage costs'!$C$16:$C$43,0))/1000,AB55*INDEX('Damage costs'!$T$16:$T$43,MATCH($B164,'Damage costs'!$C$16:$C$43,0))/1000),\"\")","v":""},{"$f":"IFERROR(IF(OR($C$168=FALSE,LEFT($B164,3)<>\"NOX\"),AC55*INDEX('Damage costs'!$P$16:$P$43,MATCH($B164,'Damage costs'!$C$16:$C$43,0))/1000,AC55*INDEX('Damage costs'!$T$16:$T$43,MATCH($B164,'Damage costs'!$C$16:$C$43,0))/1000),\"\")","v":""},{"$f":"IFERROR(IF(OR($C$168=FALSE,LEFT($B164,3)<>\"NOX\"),AD55*INDEX('Damage costs'!$P$16:$P$43,MATCH($B164,'Damage costs'!$C$16:$C$43,0))/1000,AD55*INDEX('Damage costs'!$T$16:$T$43,MATCH($B164,'Damage costs'!$C$16:$C$43,0))/1000),\"\")","v":""},{"$f":"IFERROR(IF(OR($C$168=FALSE,LEFT($B164,3)<>\"NOX\"),AE55*INDEX('Damage costs'!$P$16:$P$43,MATCH($B164,'Damage costs'!$C$16:$C$43,0))/1000,AE55*INDEX('Damage costs'!$T$16:$T$43,MATCH($B164,'Damage costs'!$C$16:$C$43,0))/1000),\"\")","v":""},{"$f":"IFERROR(IF(OR($C$168=FALSE,LEFT($B164,3)<>\"NOX\"),AF55*INDEX('Damage costs'!$P$16:$P$43,MATCH($B164,'Damage costs'!$C$16:$C$43,0))/1000,AF55*INDEX('Damage costs'!$T$16:$T$43,MATCH($B164,'Damage costs'!$C$16:$C$43,0))/1000),\"\")","v":""},{"$f":"IFERROR(IF(OR($C$168=FALSE,LEFT($B164,3)<>\"NOX\"),AG55*INDEX('Damage costs'!$P$16:$P$43,MATCH($B164,'Damage costs'!$C$16:$C$43,0))/1000,AG55*INDEX('Damage costs'!$T$16:$T$43,MATCH($B164,'Damage costs'!$C$16:$C$43,0))/1000),\"\")","v":""},{"$f":"IFERROR(IF(OR($C$168=FALSE,LEFT($B164,3)<>\"NOX\"),AH55*INDEX('Damage costs'!$P$16:$P$43,MATCH($B164,'Damage costs'!$C$16:$C$43,0))/1000,AH55*INDEX('Damage costs'!$T$16:$T$43,MATCH($B164,'Damage costs'!$C$16:$C$43,0))/1000),\"\")","v":""},{"$f":"IFERROR(IF(OR($C$168=FALSE,LEFT($B164,3)<>\"NOX\"),AI55*INDEX('Damage costs'!$P$16:$P$43,MATCH($B164,'Damage costs'!$C$16:$C$43,0))/1000,AI55*INDEX('Damage costs'!$T$16:$T$43,MATCH($B164,'Damage costs'!$C$16:$C$43,0))/1000),\"\")","v":""},{"$f":"IFERROR(IF(OR($C$168=FALSE,LEFT($B164,3)<>\"NOX\"),AJ55*INDEX('Damage costs'!$P$16:$P$43,MATCH($B164,'Damage costs'!$C$16:$C$43,0))/1000,AJ55*INDEX('Damage costs'!$T$16:$T$43,MATCH($B164,'Damage costs'!$C$16:$C$43,0))/1000),\"\")","v":""},{"$f":"IFERROR(IF(OR($C$168=FALSE,LEFT($B164,3)<>\"NOX\"),AK55*INDEX('Damage costs'!$P$16:$P$43,MATCH($B164,'Damage costs'!$C$16:$C$43,0))/1000,AK55*INDEX('Damage costs'!$T$16:$T$43,MATCH($B164,'Damage costs'!$C$16:$C$43,0))/1000),\"\")","v":""},{"$f":"IFERROR(IF(OR($C$168=FALSE,LEFT($B164,3)<>\"NOX\"),AL55*INDEX('Damage costs'!$P$16:$P$43,MATCH($B164,'Damage costs'!$C$16:$C$43,0))/1000,AL55*INDEX('Damage costs'!$T$16:$T$43,MATCH($B164,'Damage costs'!$C$16:$C$43,0))/1000),\"\")","v":""},{"$f":"IFERROR(IF(OR($C$168=FALSE,LEFT($B164,3)<>\"NOX\"),AM55*INDEX('Damage costs'!$P$16:$P$43,MATCH($B164,'Damage costs'!$C$16:$C$43,0))/1000,AM55*INDEX('Damage costs'!$T$16:$T$43,MATCH($B164,'Damage costs'!$C$16:$C$43,0))/1000),\"\")","v":""},{"$f":"IFERROR(IF(OR($C$168=FALSE,LEFT($B164,3)<>\"NOX\"),AN55*INDEX('Damage costs'!$P$16:$P$43,MATCH($B164,'Damage costs'!$C$16:$C$43,0))/1000,AN55*INDEX('Damage costs'!$T$16:$T$43,MATCH($B164,'Damage costs'!$C$16:$C$43,0))/1000),\"\")","v":""},{"$f":"IFERROR(IF(OR($C$168=FALSE,LEFT($B164,3)<>\"NOX\"),AO55*INDEX('Damage costs'!$P$16:$P$43,MATCH($B164,'Damage costs'!$C$16:$C$43,0))/1000,AO55*INDEX('Damage costs'!$T$16:$T$43,MATCH($B164,'Damage costs'!$C$16:$C$43,0))/1000),\"\")","v":""},{"$f":"IFERROR(IF(OR($C$168=FALSE,LEFT($B164,3)<>\"NOX\"),AP55*INDEX('Damage costs'!$P$16:$P$43,MATCH($B164,'Damage costs'!$C$16:$C$43,0))/1000,AP55*INDEX('Damage costs'!$T$16:$T$43,MATCH($B164,'Damage costs'!$C$16:$C$43,0))/1000),\"\")","v":""},{"$f":"IFERROR(IF(OR($C$168=FALSE,LEFT($B164,3)<>\"NOX\"),AQ55*INDEX('Damage costs'!$P$16:$P$43,MATCH($B164,'Damage costs'!$C$16:$C$43,0))/1000,AQ55*INDEX('Damage costs'!$T$16:$T$43,MATCH($B164,'Damage costs'!$C$16:$C$43,0))/1000),\"\")","v":""},{"$f":"IFERROR(IF(OR($C$168=FALSE,LEFT($B164,3)<>\"NOX\"),AR55*INDEX('Damage costs'!$P$16:$P$43,MATCH($B164,'Damage costs'!$C$16:$C$43,0))/1000,AR55*INDEX('Damage costs'!$T$16:$T$43,MATCH($B164,'Damage costs'!$C$16:$C$43,0))/1000),\"\")","v":""},{"$f":"IFERROR(IF(OR($C$168=FALSE,LEFT($B164,3)<>\"NOX\"),AS55*INDEX('Damage costs'!$P$16:$P$43,MATCH($B164,'Damage costs'!$C$16:$C$43,0))/1000,AS55*INDEX('Damage costs'!$T$16:$T$43,MATCH($B164,'Damage costs'!$C$16:$C$43,0))/1000),\"\")","v":""},{"$f":"IFERROR(IF(OR($C$168=FALSE,LEFT($B164,3)<>\"NOX\"),AT55*INDEX('Damage costs'!$P$16:$P$43,MATCH($B164,'Damage costs'!$C$16:$C$43,0))/1000,AT55*INDEX('Damage costs'!$T$16:$T$43,MATCH($B164,'Damage costs'!$C$16:$C$43,0))/1000),\"\")","v":""},{"$f":"IFERROR(IF(OR($C$168=FALSE,LEFT($B164,3)<>\"NOX\"),AU55*INDEX('Damage costs'!$P$16:$P$43,MATCH($B164,'Damage costs'!$C$16:$C$43,0))/1000,AU55*INDEX('Damage costs'!$T$16:$T$43,MATCH($B164,'Damage costs'!$C$16:$C$43,0))/1000),\"\")","v":""},{"$f":"IFERROR(IF(OR($C$168=FALSE,LEFT($B164,3)<>\"NOX\"),AV55*INDEX('Damage costs'!$P$16:$P$43,MATCH($B164,'Damage costs'!$C$16:$C$43,0))/1000,AV55*INDEX('Damage costs'!$T$16:$T$43,MATCH($B164,'Damage costs'!$C$16:$C$43,0))/1000),\"\")","v":""},{"$f":"IFERROR(IF(OR($C$168=FALSE,LEFT($B164,3)<>\"NOX\"),AW55*INDEX('Damage costs'!$P$16:$P$43,MATCH($B164,'Damage costs'!$C$16:$C$43,0))/1000,AW55*INDEX('Damage costs'!$T$16:$T$43,MATCH($B164,'Damage costs'!$C$16:$C$43,0))/1000),\"\")","v":""},{"$f":"IFERROR(IF(OR($C$168=FALSE,LEFT($B164,3)<>\"NOX\"),AX55*INDEX('Damage costs'!$P$16:$P$43,MATCH($B164,'Damage costs'!$C$16:$C$43,0))/1000,AX55*INDEX('Damage costs'!$T$16:$T$43,MATCH($B164,'Damage costs'!$C$16:$C$43,0))/1000),\"\")","v":""},{"$f":"IFERROR(IF(OR($C$168=FALSE,LEFT($B164,3)<>\"NOX\"),AY55*INDEX('Damage costs'!$P$16:$P$43,MATCH($B164,'Damage costs'!$C$16:$C$43,0))/1000,AY55*INDEX('Damage costs'!$T$16:$T$43,MATCH($B164,'Damage costs'!$C$16:$C$43,0))/1000),\"\")","v":""},{"$f":"IFERROR(IF(OR($C$168=FALSE,LEFT($B164,3)<>\"NOX\"),AZ55*INDEX('Damage costs'!$P$16:$P$43,MATCH($B164,'Damage costs'!$C$16:$C$43,0))/1000,AZ55*INDEX('Damage costs'!$T$16:$T$43,MATCH($B164,'Damage costs'!$C$16:$C$43,0))/1000),\"\")","v":""},{"$f":"IFERROR(IF(OR($C$168=FALSE,LEFT($B164,3)<>\"NOX\"),BA55*INDEX('Damage costs'!$P$16:$P$43,MATCH($B164,'Damage costs'!$C$16:$C$43,0))/1000,BA55*INDEX('Damage costs'!$T$16:$T$43,MATCH($B164,'Damage costs'!$C$16:$C$43,0))/1000),\"\")","v":""},{"$f":"IFERROR(IF(OR($C$168=FALSE,LEFT($B164,3)<>\"NOX\"),BB55*INDEX('Damage costs'!$P$16:$P$43,MATCH($B164,'Damage costs'!$C$16:$C$43,0))/1000,BB55*INDEX('Damage costs'!$T$16:$T$43,MATCH($B164,'Damage costs'!$C$16:$C$43,0))/1000),\"\")","v":""},{"$f":"IFERROR(IF(OR($C$168=FALSE,LEFT($B164,3)<>\"NOX\"),BC55*INDEX('Damage costs'!$P$16:$P$43,MATCH($B164,'Damage costs'!$C$16:$C$43,0))/1000,BC55*INDEX('Damage costs'!$T$16:$T$43,MATCH($B164,'Damage costs'!$C$16:$C$43,0))/1000),\"\")","v":""},{"$f":"IFERROR(IF(OR($C$168=FALSE,LEFT($B164,3)<>\"NOX\"),BD55*INDEX('Damage costs'!$P$16:$P$43,MATCH($B164,'Damage costs'!$C$16:$C$43,0))/1000,BD55*INDEX('Damage costs'!$T$16:$T$43,MATCH($B164,'Damage costs'!$C$16:$C$43,0))/1000),\"\")","v":""},{"$f":"IFERROR(IF(OR($C$168=FALSE,LEFT($B164,3)<>\"NOX\"),BE55*INDEX('Damage costs'!$P$16:$P$43,MATCH($B164,'Damage costs'!$C$16:$C$43,0))/1000,BE55*INDEX('Damage costs'!$T$16:$T$43,MATCH($B164,'Damage costs'!$C$16:$C$43,0))/1000),\"\")","v":""},{"$f":"IFERROR(IF(OR($C$168=FALSE,LEFT($B164,3)<>\"NOX\"),BF55*INDEX('Damage costs'!$P$16:$P$43,MATCH($B164,'Damage costs'!$C$16:$C$43,0))/1000,BF55*INDEX('Damage costs'!$T$16:$T$43,MATCH($B164,'Damage costs'!$C$16:$C$43,0))/1000),\"\")","v":""},{"$f":"IFERROR(IF(OR($C$168=FALSE,LEFT($B164,3)<>\"NOX\"),BG55*INDEX('Damage costs'!$P$16:$P$43,MATCH($B164,'Damage costs'!$C$16:$C$43,0))/1000,BG55*INDEX('Damage costs'!$T$16:$T$43,MATCH($B164,'Damage costs'!$C$16:$C$43,0))/1000),\"\")","v":""},{"$f":"IFERROR(IF(OR($C$168=FALSE,LEFT($B164,3)<>\"NOX\"),BH55*INDEX('Damage costs'!$P$16:$P$43,MATCH($B164,'Damage costs'!$C$16:$C$43,0))/1000,BH55*INDEX('Damage costs'!$T$16:$T$43,MATCH($B164,'Damage costs'!$C$16:$C$43,0))/1000),\"\")","v":""},{"$f":"IFERROR(IF(OR($C$168=FALSE,LEFT($B164,3)<>\"NOX\"),BI55*INDEX('Damage costs'!$P$16:$P$43,MATCH($B164,'Damage costs'!$C$16:$C$43,0))/1000,BI55*INDEX('Damage costs'!$T$16:$T$43,MATCH($B164,'Damage costs'!$C$16:$C$43,0))/1000),\"\")","v":""},{"$f":"IFERROR(IF(OR($C$168=FALSE,LEFT($B164,3)<>\"NOX\"),BJ55*INDEX('Damage costs'!$P$16:$P$43,MATCH($B164,'Damage costs'!$C$16:$C$43,0))/1000,BJ55*INDEX('Damage costs'!$T$16:$T$43,MATCH($B164,'Damage costs'!$C$16:$C$43,0))/1000),\"\")","v":""},{"$f":"IFERROR(IF(OR($C$168=FALSE,LEFT($B164,3)<>\"NOX\"),BK55*INDEX('Damage costs'!$P$16:$P$43,MATCH($B164,'Damage costs'!$C$16:$C$43,0))/1000,BK55*INDEX('Damage costs'!$T$16:$T$43,MATCH($B164,'Damage costs'!$C$16:$C$43,0))/1000),\"\")","v":""},{"$f":"IFERROR(IF(OR($C$168=FALSE,LEFT($B164,3)<>\"NOX\"),BL55*INDEX('Damage costs'!$P$16:$P$43,MATCH($B164,'Damage costs'!$C$16:$C$43,0))/1000,BL55*INDEX('Damage costs'!$T$16:$T$43,MATCH($B164,'Damage costs'!$C$16:$C$43,0))/1000),\"\")","v":""},{"$f":"IFERROR(IF(OR($C$168=FALSE,LEFT($B164,3)<>\"NOX\"),BM55*INDEX('Damage costs'!$P$16:$P$43,MATCH($B164,'Damage costs'!$C$16:$C$43,0))/1000,BM55*INDEX('Damage costs'!$T$16:$T$43,MATCH($B164,'Damage costs'!$C$16:$C$43,0))/1000),\"\")","v":""},{"$f":"IFERROR(IF(OR($C$168=FALSE,LEFT($B164,3)<>\"NOX\"),BN55*INDEX('Damage costs'!$P$16:$P$43,MATCH($B164,'Damage costs'!$C$16:$C$43,0))/1000,BN55*INDEX('Damage costs'!$T$16:$T$43,MATCH($B164,'Damage costs'!$C$16:$C$43,0))/1000),\"\")","v":""},{"$f":"IFERROR(IF(OR($C$168=FALSE,LEFT($B164,3)<>\"NOX\"),BO55*INDEX('Damage costs'!$P$16:$P$43,MATCH($B164,'Damage costs'!$C$16:$C$43,0))/1000,BO55*INDEX('Damage costs'!$T$16:$T$43,MATCH($B164,'Damage costs'!$C$16:$C$43,0))/1000),\"\")","v":""},{"$f":"IFERROR(IF(OR($C$168=FALSE,LEFT($B164,3)<>\"NOX\"),BP55*INDEX('Damage costs'!$P$16:$P$43,MATCH($B164,'Damage costs'!$C$16:$C$43,0))/1000,BP55*INDEX('Damage costs'!$T$16:$T$43,MATCH($B164,'Damage costs'!$C$16:$C$43,0))/1000),\"\")","v":""},{"$f":"IFERROR(IF(OR($C$168=FALSE,LEFT($B164,3)<>\"NOX\"),BQ55*INDEX('Damage costs'!$P$16:$P$43,MATCH($B164,'Damage costs'!$C$16:$C$43,0))/1000,BQ55*INDEX('Damage costs'!$T$16:$T$43,MATCH($B164,'Damage costs'!$C$16:$C$43,0))/1000),\"\")","v":""},{"$f":"IFERROR(IF(OR($C$168=FALSE,LEFT($B164,3)<>\"NOX\"),BR55*INDEX('Damage costs'!$P$16:$P$43,MATCH($B164,'Damage costs'!$C$16:$C$43,0))/1000,BR55*INDEX('Damage costs'!$T$16:$T$43,MATCH($B164,'Damage costs'!$C$16:$C$43,0))/1000),\"\")","v":""},{"$f":"IFERROR(IF(OR($C$168=FALSE,LEFT($B164,3)<>\"NOX\"),BS55*INDEX('Damage costs'!$P$16:$P$43,MATCH($B164,'Damage costs'!$C$16:$C$43,0))/1000,BS55*INDEX('Damage costs'!$T$16:$T$43,MATCH($B164,'Damage costs'!$C$16:$C$43,0))/1000),\"\")","v":""},{"$f":"IFERROR(IF(OR($C$168=FALSE,LEFT($B164,3)<>\"NOX\"),BT55*INDEX('Damage costs'!$P$16:$P$43,MATCH($B164,'Damage costs'!$C$16:$C$43,0))/1000,BT55*INDEX('Damage costs'!$T$16:$T$43,MATCH($B164,'Damage costs'!$C$16:$C$43,0))/1000),\"\")","v":""},{"$f":"IFERROR(IF(OR($C$168=FALSE,LEFT($B164,3)<>\"NOX\"),BU55*INDEX('Damage costs'!$P$16:$P$43,MATCH($B164,'Damage costs'!$C$16:$C$43,0))/1000,BU55*INDEX('Damage costs'!$T$16:$T$43,MATCH($B164,'Damage costs'!$C$16:$C$43,0))/1000),\"\")","v":""},{"$f":"IFERROR(IF(OR($C$168=FALSE,LEFT($B164,3)<>\"NOX\"),BV55*INDEX('Damage costs'!$P$16:$P$43,MATCH($B164,'Damage costs'!$C$16:$C$43,0))/1000,BV55*INDEX('Damage costs'!$T$16:$T$43,MATCH($B164,'Damage costs'!$C$16:$C$43,0))/1000),\"\")","v":""},{"$f":"IFERROR(IF(OR($C$168=FALSE,LEFT($B164,3)<>\"NOX\"),BW55*INDEX('Damage costs'!$P$16:$P$43,MATCH($B164,'Damage costs'!$C$16:$C$43,0))/1000,BW55*INDEX('Damage costs'!$T$16:$T$43,MATCH($B164,'Damage costs'!$C$16:$C$43,0))/1000),\"\")","v":""},{"$f":"IFERROR(IF(OR($C$168=FALSE,LEFT($B164,3)<>\"NOX\"),BX55*INDEX('Damage costs'!$P$16:$P$43,MATCH($B164,'Damage costs'!$C$16:$C$43,0))/1000,BX55*INDEX('Damage costs'!$T$16:$T$43,MATCH($B164,'Damage costs'!$C$16:$C$43,0))/1000),\"\")","v":""},{"$f":"IFERROR(IF(OR($C$168=FALSE,LEFT($B164,3)<>\"NOX\"),BY55*INDEX('Damage costs'!$P$16:$P$43,MATCH($B164,'Damage costs'!$C$16:$C$43,0))/1000,BY55*INDEX('Damage costs'!$T$16:$T$43,MATCH($B164,'Damage costs'!$C$16:$C$43,0))/1000),\"\")","v":""},{"$f":"IFERROR(IF(OR($C$168=FALSE,LEFT($B164,3)<>\"NOX\"),BZ55*INDEX('Damage costs'!$P$16:$P$43,MATCH($B164,'Damage costs'!$C$16:$C$43,0))/1000,BZ55*INDEX('Damage costs'!$T$16:$T$43,MATCH($B164,'Damage costs'!$C$16:$C$43,0))/1000),\"\")","v":""},{"$f":"IFERROR(IF(OR($C$168=FALSE,LEFT($B164,3)<>\"NOX\"),CA55*INDEX('Damage costs'!$P$16:$P$43,MATCH($B164,'Damage costs'!$C$16:$C$43,0))/1000,CA55*INDEX('Damage costs'!$T$16:$T$43,MATCH($B164,'Damage costs'!$C$16:$C$43,0))/1000),\"\")","v":""},{"$f":"IFERROR(IF(OR($C$168=FALSE,LEFT($B164,3)<>\"NOX\"),CB55*INDEX('Damage costs'!$P$16:$P$43,MATCH($B164,'Damage costs'!$C$16:$C$43,0))/1000,CB55*INDEX('Damage costs'!$T$16:$T$43,MATCH($B164,'Damage costs'!$C$16:$C$43,0))/1000),\"\")","v":""},{"$f":"IFERROR(IF(OR($C$168=FALSE,LEFT($B164,3)<>\"NOX\"),CC55*INDEX('Damage costs'!$P$16:$P$43,MATCH($B164,'Damage costs'!$C$16:$C$43,0))/1000,CC55*INDEX('Damage costs'!$T$16:$T$43,MATCH($B164,'Damage costs'!$C$16:$C$43,0))/1000),\"\")","v":""},{"$f":"IFERROR(IF(OR($C$168=FALSE,LEFT($B164,3)<>\"NOX\"),CD55*INDEX('Damage costs'!$P$16:$P$43,MATCH($B164,'Damage costs'!$C$16:$C$43,0))/1000,CD55*INDEX('Damage costs'!$T$16:$T$43,MATCH($B164,'Damage costs'!$C$16:$C$43,0))/1000),\"\")","v":""},{"$f":"IFERROR(IF(OR($C$168=FALSE,LEFT($B164,3)<>\"NOX\"),CE55*INDEX('Damage costs'!$P$16:$P$43,MATCH($B164,'Damage costs'!$C$16:$C$43,0))/1000,CE55*INDEX('Damage costs'!$T$16:$T$43,MATCH($B164,'Damage costs'!$C$16:$C$43,0))/1000),\"\")","v":""},{"$f":"IFERROR(IF(OR($C$168=FALSE,LEFT($B164,3)<>\"NOX\"),CF55*INDEX('Damage costs'!$P$16:$P$43,MATCH($B164,'Damage costs'!$C$16:$C$43,0))/1000,CF55*INDEX('Damage costs'!$T$16:$T$43,MATCH($B164,'Damage costs'!$C$16:$C$43,0))/1000),\"\")","v":""},{"$f":"IFERROR(IF(OR($C$168=FALSE,LEFT($B164,3)<>\"NOX\"),CG55*INDEX('Damage costs'!$P$16:$P$43,MATCH($B164,'Damage costs'!$C$16:$C$43,0))/1000,CG55*INDEX('Damage costs'!$T$16:$T$43,MATCH($B164,'Damage costs'!$C$16:$C$43,0))/1000),\"\")","v":""},{"$f":"IFERROR(IF(OR($C$168=FALSE,LEFT($B164,3)<>\"NOX\"),CH55*INDEX('Damage costs'!$P$16:$P$43,MATCH($B164,'Damage costs'!$C$16:$C$43,0))/1000,CH55*INDEX('Damage costs'!$T$16:$T$43,MATCH($B164,'Damage costs'!$C$16:$C$43,0))/1000),\"\")","v":""},{"$f":"IFERROR(IF(OR($C$168=FALSE,LEFT($B164,3)<>\"NOX\"),CI55*INDEX('Damage costs'!$P$16:$P$43,MATCH($B164,'Damage costs'!$C$16:$C$43,0))/1000,CI55*INDEX('Damage costs'!$T$16:$T$43,MATCH($B164,'Damage costs'!$C$16:$C$43,0))/1000),\"\")","v":""},{"$f":"IFERROR(IF(OR($C$168=FALSE,LEFT($B164,3)<>\"NOX\"),CJ55*INDEX('Damage costs'!$P$16:$P$43,MATCH($B164,'Damage costs'!$C$16:$C$43,0))/1000,CJ55*INDEX('Damage costs'!$T$16:$T$43,MATCH($B164,'Damage costs'!$C$16:$C$43,0))/1000),\"\")","v":""},{"$f":"IFERROR(IF(OR($C$168=FALSE,LEFT($B164,3)<>\"NOX\"),CK55*INDEX('Damage costs'!$P$16:$P$43,MATCH($B164,'Damage costs'!$C$16:$C$43,0))/1000,CK55*INDEX('Damage costs'!$T$16:$T$43,MATCH($B164,'Damage costs'!$C$16:$C$43,0))/1000),\"\")","v":""},{"$f":"IFERROR(IF(OR($C$168=FALSE,LEFT($B164,3)<>\"NOX\"),CL55*INDEX('Damage costs'!$P$16:$P$43,MATCH($B164,'Damage costs'!$C$16:$C$43,0))/1000,CL55*INDEX('Damage costs'!$T$16:$T$43,MATCH($B164,'Damage costs'!$C$16:$C$43,0))/1000),\"\")","v":""},{"$f":"IFERROR(IF(OR($C$168=FALSE,LEFT($B164,3)<>\"NOX\"),CM55*INDEX('Damage costs'!$P$16:$P$43,MATCH($B164,'Damage costs'!$C$16:$C$43,0))/1000,CM55*INDEX('Damage costs'!$T$16:$T$43,MATCH($B164,'Damage costs'!$C$16:$C$43,0))/1000),\"\")","v":""},{"$f":"IFERROR(IF(OR($C$168=FALSE,LEFT($B164,3)<>\"NOX\"),CN55*INDEX('Damage costs'!$P$16:$P$43,MATCH($B164,'Damage costs'!$C$16:$C$43,0))/1000,CN55*INDEX('Damage costs'!$T$16:$T$43,MATCH($B164,'Damage costs'!$C$16:$C$43,0))/1000),\"\")","v":""},{"$f":"IFERROR(IF(OR($C$168=FALSE,LEFT($B164,3)<>\"NOX\"),CO55*INDEX('Damage costs'!$P$16:$P$43,MATCH($B164,'Damage costs'!$C$16:$C$43,0))/1000,CO55*INDEX('Damage costs'!$T$16:$T$43,MATCH($B164,'Damage costs'!$C$16:$C$43,0))/1000),\"\")","v":""},{"$f":"IFERROR(IF(OR($C$168=FALSE,LEFT($B164,3)<>\"NOX\"),CP55*INDEX('Damage costs'!$P$16:$P$43,MATCH($B164,'Damage costs'!$C$16:$C$43,0))/1000,CP55*INDEX('Damage costs'!$T$16:$T$43,MATCH($B164,'Damage costs'!$C$16:$C$43,0))/1000),\"\")","v":""},{"$f":"IFERROR(IF(OR($C$168=FALSE,LEFT($B164,3)<>\"NOX\"),CQ55*INDEX('Damage costs'!$P$16:$P$43,MATCH($B164,'Damage costs'!$C$16:$C$43,0))/1000,CQ55*INDEX('Damage costs'!$T$16:$T$43,MATCH($B164,'Damage costs'!$C$16:$C$43,0))/1000),\"\")","v":""},{"$f":"IFERROR(IF(OR($C$168=FALSE,LEFT($B164,3)<>\"NOX\"),CR55*INDEX('Damage costs'!$P$16:$P$43,MATCH($B164,'Damage costs'!$C$16:$C$43,0))/1000,CR55*INDEX('Damage costs'!$T$16:$T$43,MATCH($B164,'Damage costs'!$C$16:$C$43,0))/1000),\"\")","v":""},{"$f":"IFERROR(IF(OR($C$168=FALSE,LEFT($B164,3)<>\"NOX\"),CS55*INDEX('Damage costs'!$P$16:$P$43,MATCH($B164,'Damage costs'!$C$16:$C$43,0))/1000,CS55*INDEX('Damage costs'!$T$16:$T$43,MATCH($B164,'Damage costs'!$C$16:$C$43,0))/1000),\"\")","v":""},{"$f":"IFERROR(IF(OR($C$168=FALSE,LEFT($B164,3)<>\"NOX\"),CT55*INDEX('Damage costs'!$P$16:$P$43,MATCH($B164,'Damage costs'!$C$16:$C$43,0))/1000,CT55*INDEX('Damage costs'!$T$16:$T$43,MATCH($B164,'Damage costs'!$C$16:$C$43,0))/1000),\"\")","v":""},{"$f":"IFERROR(IF(OR($C$168=FALSE,LEFT($B164,3)<>\"NOX\"),CU55*INDEX('Damage costs'!$P$16:$P$43,MATCH($B164,'Damage costs'!$C$16:$C$43,0))/1000,CU55*INDEX('Damage costs'!$T$16:$T$43,MATCH($B164,'Damage costs'!$C$16:$C$43,0))/1000),\"\")","v":""},{"$f":"IFERROR(IF(OR($C$168=FALSE,LEFT($B164,3)<>\"NOX\"),CV55*INDEX('Damage costs'!$P$16:$P$43,MATCH($B164,'Damage costs'!$C$16:$C$43,0))/1000,CV55*INDEX('Damage costs'!$T$16:$T$43,MATCH($B164,'Damage costs'!$C$16:$C$43,0))/1000),\"\")","v":""},{"$f":"IFERROR(IF(OR($C$168=FALSE,LEFT($B164,3)<>\"NOX\"),CW55*INDEX('Damage costs'!$P$16:$P$43,MATCH($B164,'Damage costs'!$C$16:$C$43,0))/1000,CW55*INDEX('Damage costs'!$T$16:$T$43,MATCH($B164,'Damage costs'!$C$16:$C$43,0))/1000),\"\")","v":""},{"$f":"IFERROR(IF(OR($C$168=FALSE,LEFT($B164,3)<>\"NOX\"),CX55*INDEX('Damage costs'!$P$16:$P$43,MATCH($B164,'Damage costs'!$C$16:$C$43,0))/1000,CX55*INDEX('Damage costs'!$T$16:$T$43,MATCH($B164,'Damage costs'!$C$16:$C$43,0))/1000),\"\")","v":""},{"$f":"IFERROR(IF(OR($C$168=FALSE,LEFT($B164,3)<>\"NOX\"),CY55*INDEX('Damage costs'!$P$16:$P$43,MATCH($B164,'Damage costs'!$C$16:$C$43,0))/1000,CY55*INDEX('Damage costs'!$T$16:$T$43,MATCH($B164,'Damage costs'!$C$16:$C$43,0))/1000),\"\")","v":""}]
[null,0,"£000's",{"$f":"IFERROR(IF(OR($C$168=FALSE,LEFT($B165,3)<>\"NOX\"),D56*INDEX('Damage costs'!$P$16:$P$43,MATCH($B165,'Damage costs'!$C$16:$C$43,0))/1000,D56*INDEX('Damage costs'!$T$16:$T$43,MATCH($B165,'Damage costs'!$C$16:$C$43,0))/1000),\"\")","v":""},{"$f":"IFERROR(IF(OR($C$168=FALSE,LEFT($B165,3)<>\"NOX\"),E56*INDEX('Damage costs'!$P$16:$P$43,MATCH($B165,'Damage costs'!$C$16:$C$43,0))/1000,E56*INDEX('Damage costs'!$T$16:$T$43,MATCH($B165,'Damage costs'!$C$16:$C$43,0))/1000),\"\")","v":""},{"$f":"IFERROR(IF(OR($C$168=FALSE,LEFT($B165,3)<>\"NOX\"),F56*INDEX('Damage costs'!$P$16:$P$43,MATCH($B165,'Damage costs'!$C$16:$C$43,0))/1000,F56*INDEX('Damage costs'!$T$16:$T$43,MATCH($B165,'Damage costs'!$C$16:$C$43,0))/1000),\"\")","v":""},{"$f":"IFERROR(IF(OR($C$168=FALSE,LEFT($B165,3)<>\"NOX\"),G56*INDEX('Damage costs'!$P$16:$P$43,MATCH($B165,'Damage costs'!$C$16:$C$43,0))/1000,G56*INDEX('Damage costs'!$T$16:$T$43,MATCH($B165,'Damage costs'!$C$16:$C$43,0))/1000),\"\")","v":""},{"$f":"IFERROR(IF(OR($C$168=FALSE,LEFT($B165,3)<>\"NOX\"),H56*INDEX('Damage costs'!$P$16:$P$43,MATCH($B165,'Damage costs'!$C$16:$C$43,0))/1000,H56*INDEX('Damage costs'!$T$16:$T$43,MATCH($B165,'Damage costs'!$C$16:$C$43,0))/1000),\"\")","v":""},{"$f":"IFERROR(IF(OR($C$168=FALSE,LEFT($B165,3)<>\"NOX\"),I56*INDEX('Damage costs'!$P$16:$P$43,MATCH($B165,'Damage costs'!$C$16:$C$43,0))/1000,I56*INDEX('Damage costs'!$T$16:$T$43,MATCH($B165,'Damage costs'!$C$16:$C$43,0))/1000),\"\")","v":""},{"$f":"IFERROR(IF(OR($C$168=FALSE,LEFT($B165,3)<>\"NOX\"),J56*INDEX('Damage costs'!$P$16:$P$43,MATCH($B165,'Damage costs'!$C$16:$C$43,0))/1000,J56*INDEX('Damage costs'!$T$16:$T$43,MATCH($B165,'Damage costs'!$C$16:$C$43,0))/1000),\"\")","v":""},{"$f":"IFERROR(IF(OR($C$168=FALSE,LEFT($B165,3)<>\"NOX\"),K56*INDEX('Damage costs'!$P$16:$P$43,MATCH($B165,'Damage costs'!$C$16:$C$43,0))/1000,K56*INDEX('Damage costs'!$T$16:$T$43,MATCH($B165,'Damage costs'!$C$16:$C$43,0))/1000),\"\")","v":""},{"$f":"IFERROR(IF(OR($C$168=FALSE,LEFT($B165,3)<>\"NOX\"),L56*INDEX('Damage costs'!$P$16:$P$43,MATCH($B165,'Damage costs'!$C$16:$C$43,0))/1000,L56*INDEX('Damage costs'!$T$16:$T$43,MATCH($B165,'Damage costs'!$C$16:$C$43,0))/1000),\"\")","v":""},{"$f":"IFERROR(IF(OR($C$168=FALSE,LEFT($B165,3)<>\"NOX\"),M56*INDEX('Damage costs'!$P$16:$P$43,MATCH($B165,'Damage costs'!$C$16:$C$43,0))/1000,M56*INDEX('Damage costs'!$T$16:$T$43,MATCH($B165,'Damage costs'!$C$16:$C$43,0))/1000),\"\")","v":""},{"$f":"IFERROR(IF(OR($C$168=FALSE,LEFT($B165,3)<>\"NOX\"),N56*INDEX('Damage costs'!$P$16:$P$43,MATCH($B165,'Damage costs'!$C$16:$C$43,0))/1000,N56*INDEX('Damage costs'!$T$16:$T$43,MATCH($B165,'Damage costs'!$C$16:$C$43,0))/1000),\"\")","v":""},{"$f":"IFERROR(IF(OR($C$168=FALSE,LEFT($B165,3)<>\"NOX\"),O56*INDEX('Damage costs'!$P$16:$P$43,MATCH($B165,'Damage costs'!$C$16:$C$43,0))/1000,O56*INDEX('Damage costs'!$T$16:$T$43,MATCH($B165,'Damage costs'!$C$16:$C$43,0))/1000),\"\")","v":""},{"$f":"IFERROR(IF(OR($C$168=FALSE,LEFT($B165,3)<>\"NOX\"),P56*INDEX('Damage costs'!$P$16:$P$43,MATCH($B165,'Damage costs'!$C$16:$C$43,0))/1000,P56*INDEX('Damage costs'!$T$16:$T$43,MATCH($B165,'Damage costs'!$C$16:$C$43,0))/1000),\"\")","v":""},{"$f":"IFERROR(IF(OR($C$168=FALSE,LEFT($B165,3)<>\"NOX\"),Q56*INDEX('Damage costs'!$P$16:$P$43,MATCH($B165,'Damage costs'!$C$16:$C$43,0))/1000,Q56*INDEX('Damage costs'!$T$16:$T$43,MATCH($B165,'Damage costs'!$C$16:$C$43,0))/1000),\"\")","v":""},{"$f":"IFERROR(IF(OR($C$168=FALSE,LEFT($B165,3)<>\"NOX\"),R56*INDEX('Damage costs'!$P$16:$P$43,MATCH($B165,'Damage costs'!$C$16:$C$43,0))/1000,R56*INDEX('Damage costs'!$T$16:$T$43,MATCH($B165,'Damage costs'!$C$16:$C$43,0))/1000),\"\")","v":""},{"$f":"IFERROR(IF(OR($C$168=FALSE,LEFT($B165,3)<>\"NOX\"),S56*INDEX('Damage costs'!$P$16:$P$43,MATCH($B165,'Damage costs'!$C$16:$C$43,0))/1000,S56*INDEX('Damage costs'!$T$16:$T$43,MATCH($B165,'Damage costs'!$C$16:$C$43,0))/1000),\"\")","v":""},{"$f":"IFERROR(IF(OR($C$168=FALSE,LEFT($B165,3)<>\"NOX\"),T56*INDEX('Damage costs'!$P$16:$P$43,MATCH($B165,'Damage costs'!$C$16:$C$43,0))/1000,T56*INDEX('Damage costs'!$T$16:$T$43,MATCH($B165,'Damage costs'!$C$16:$C$43,0))/1000),\"\")","v":""},{"$f":"IFERROR(IF(OR($C$168=FALSE,LEFT($B165,3)<>\"NOX\"),U56*INDEX('Damage costs'!$P$16:$P$43,MATCH($B165,'Damage costs'!$C$16:$C$43,0))/1000,U56*INDEX('Damage costs'!$T$16:$T$43,MATCH($B165,'Damage costs'!$C$16:$C$43,0))/1000),\"\")","v":""},{"$f":"IFERROR(IF(OR($C$168=FALSE,LEFT($B165,3)<>\"NOX\"),V56*INDEX('Damage costs'!$P$16:$P$43,MATCH($B165,'Damage costs'!$C$16:$C$43,0))/1000,V56*INDEX('Damage costs'!$T$16:$T$43,MATCH($B165,'Damage costs'!$C$16:$C$43,0))/1000),\"\")","v":""},{"$f":"IFERROR(IF(OR($C$168=FALSE,LEFT($B165,3)<>\"NOX\"),W56*INDEX('Damage costs'!$P$16:$P$43,MATCH($B165,'Damage costs'!$C$16:$C$43,0))/1000,W56*INDEX('Damage costs'!$T$16:$T$43,MATCH($B165,'Damage costs'!$C$16:$C$43,0))/1000),\"\")","v":""},{"$f":"IFERROR(IF(OR($C$168=FALSE,LEFT($B165,3)<>\"NOX\"),X56*INDEX('Damage costs'!$P$16:$P$43,MATCH($B165,'Damage costs'!$C$16:$C$43,0))/1000,X56*INDEX('Damage costs'!$T$16:$T$43,MATCH($B165,'Damage costs'!$C$16:$C$43,0))/1000),\"\")","v":""},{"$f":"IFERROR(IF(OR($C$168=FALSE,LEFT($B165,3)<>\"NOX\"),Y56*INDEX('Damage costs'!$P$16:$P$43,MATCH($B165,'Damage costs'!$C$16:$C$43,0))/1000,Y56*INDEX('Damage costs'!$T$16:$T$43,MATCH($B165,'Damage costs'!$C$16:$C$43,0))/1000),\"\")","v":""},{"$f":"IFERROR(IF(OR($C$168=FALSE,LEFT($B165,3)<>\"NOX\"),Z56*INDEX('Damage costs'!$P$16:$P$43,MATCH($B165,'Damage costs'!$C$16:$C$43,0))/1000,Z56*INDEX('Damage costs'!$T$16:$T$43,MATCH($B165,'Damage costs'!$C$16:$C$43,0))/1000),\"\")","v":""},{"$f":"IFERROR(IF(OR($C$168=FALSE,LEFT($B165,3)<>\"NOX\"),AA56*INDEX('Damage costs'!$P$16:$P$43,MATCH($B165,'Damage costs'!$C$16:$C$43,0))/1000,AA56*INDEX('Damage costs'!$T$16:$T$43,MATCH($B165,'Damage costs'!$C$16:$C$43,0))/1000),\"\")","v":""},{"$f":"IFERROR(IF(OR($C$168=FALSE,LEFT($B165,3)<>\"NOX\"),AB56*INDEX('Damage costs'!$P$16:$P$43,MATCH($B165,'Damage costs'!$C$16:$C$43,0))/1000,AB56*INDEX('Damage costs'!$T$16:$T$43,MATCH($B165,'Damage costs'!$C$16:$C$43,0))/1000),\"\")","v":""},{"$f":"IFERROR(IF(OR($C$168=FALSE,LEFT($B165,3)<>\"NOX\"),AC56*INDEX('Damage costs'!$P$16:$P$43,MATCH($B165,'Damage costs'!$C$16:$C$43,0))/1000,AC56*INDEX('Damage costs'!$T$16:$T$43,MATCH($B165,'Damage costs'!$C$16:$C$43,0))/1000),\"\")","v":""},{"$f":"IFERROR(IF(OR($C$168=FALSE,LEFT($B165,3)<>\"NOX\"),AD56*INDEX('Damage costs'!$P$16:$P$43,MATCH($B165,'Damage costs'!$C$16:$C$43,0))/1000,AD56*INDEX('Damage costs'!$T$16:$T$43,MATCH($B165,'Damage costs'!$C$16:$C$43,0))/1000),\"\")","v":""},{"$f":"IFERROR(IF(OR($C$168=FALSE,LEFT($B165,3)<>\"NOX\"),AE56*INDEX('Damage costs'!$P$16:$P$43,MATCH($B165,'Damage costs'!$C$16:$C$43,0))/1000,AE56*INDEX('Damage costs'!$T$16:$T$43,MATCH($B165,'Damage costs'!$C$16:$C$43,0))/1000),\"\")","v":""},{"$f":"IFERROR(IF(OR($C$168=FALSE,LEFT($B165,3)<>\"NOX\"),AF56*INDEX('Damage costs'!$P$16:$P$43,MATCH($B165,'Damage costs'!$C$16:$C$43,0))/1000,AF56*INDEX('Damage costs'!$T$16:$T$43,MATCH($B165,'Damage costs'!$C$16:$C$43,0))/1000),\"\")","v":""},{"$f":"IFERROR(IF(OR($C$168=FALSE,LEFT($B165,3)<>\"NOX\"),AG56*INDEX('Damage costs'!$P$16:$P$43,MATCH($B165,'Damage costs'!$C$16:$C$43,0))/1000,AG56*INDEX('Damage costs'!$T$16:$T$43,MATCH($B165,'Damage costs'!$C$16:$C$43,0))/1000),\"\")","v":""},{"$f":"IFERROR(IF(OR($C$168=FALSE,LEFT($B165,3)<>\"NOX\"),AH56*INDEX('Damage costs'!$P$16:$P$43,MATCH($B165,'Damage costs'!$C$16:$C$43,0))/1000,AH56*INDEX('Damage costs'!$T$16:$T$43,MATCH($B165,'Damage costs'!$C$16:$C$43,0))/1000),\"\")","v":""},{"$f":"IFERROR(IF(OR($C$168=FALSE,LEFT($B165,3)<>\"NOX\"),AI56*INDEX('Damage costs'!$P$16:$P$43,MATCH($B165,'Damage costs'!$C$16:$C$43,0))/1000,AI56*INDEX('Damage costs'!$T$16:$T$43,MATCH($B165,'Damage costs'!$C$16:$C$43,0))/1000),\"\")","v":""},{"$f":"IFERROR(IF(OR($C$168=FALSE,LEFT($B165,3)<>\"NOX\"),AJ56*INDEX('Damage costs'!$P$16:$P$43,MATCH($B165,'Damage costs'!$C$16:$C$43,0))/1000,AJ56*INDEX('Damage costs'!$T$16:$T$43,MATCH($B165,'Damage costs'!$C$16:$C$43,0))/1000),\"\")","v":""},{"$f":"IFERROR(IF(OR($C$168=FALSE,LEFT($B165,3)<>\"NOX\"),AK56*INDEX('Damage costs'!$P$16:$P$43,MATCH($B165,'Damage costs'!$C$16:$C$43,0))/1000,AK56*INDEX('Damage costs'!$T$16:$T$43,MATCH($B165,'Damage costs'!$C$16:$C$43,0))/1000),\"\")","v":""},{"$f":"IFERROR(IF(OR($C$168=FALSE,LEFT($B165,3)<>\"NOX\"),AL56*INDEX('Damage costs'!$P$16:$P$43,MATCH($B165,'Damage costs'!$C$16:$C$43,0))/1000,AL56*INDEX('Damage costs'!$T$16:$T$43,MATCH($B165,'Damage costs'!$C$16:$C$43,0))/1000),\"\")","v":""},{"$f":"IFERROR(IF(OR($C$168=FALSE,LEFT($B165,3)<>\"NOX\"),AM56*INDEX('Damage costs'!$P$16:$P$43,MATCH($B165,'Damage costs'!$C$16:$C$43,0))/1000,AM56*INDEX('Damage costs'!$T$16:$T$43,MATCH($B165,'Damage costs'!$C$16:$C$43,0))/1000),\"\")","v":""},{"$f":"IFERROR(IF(OR($C$168=FALSE,LEFT($B165,3)<>\"NOX\"),AN56*INDEX('Damage costs'!$P$16:$P$43,MATCH($B165,'Damage costs'!$C$16:$C$43,0))/1000,AN56*INDEX('Damage costs'!$T$16:$T$43,MATCH($B165,'Damage costs'!$C$16:$C$43,0))/1000),\"\")","v":""},{"$f":"IFERROR(IF(OR($C$168=FALSE,LEFT($B165,3)<>\"NOX\"),AO56*INDEX('Damage costs'!$P$16:$P$43,MATCH($B165,'Damage costs'!$C$16:$C$43,0))/1000,AO56*INDEX('Damage costs'!$T$16:$T$43,MATCH($B165,'Damage costs'!$C$16:$C$43,0))/1000),\"\")","v":""},{"$f":"IFERROR(IF(OR($C$168=FALSE,LEFT($B165,3)<>\"NOX\"),AP56*INDEX('Damage costs'!$P$16:$P$43,MATCH($B165,'Damage costs'!$C$16:$C$43,0))/1000,AP56*INDEX('Damage costs'!$T$16:$T$43,MATCH($B165,'Damage costs'!$C$16:$C$43,0))/1000),\"\")","v":""},{"$f":"IFERROR(IF(OR($C$168=FALSE,LEFT($B165,3)<>\"NOX\"),AQ56*INDEX('Damage costs'!$P$16:$P$43,MATCH($B165,'Damage costs'!$C$16:$C$43,0))/1000,AQ56*INDEX('Damage costs'!$T$16:$T$43,MATCH($B165,'Damage costs'!$C$16:$C$43,0))/1000),\"\")","v":""},{"$f":"IFERROR(IF(OR($C$168=FALSE,LEFT($B165,3)<>\"NOX\"),AR56*INDEX('Damage costs'!$P$16:$P$43,MATCH($B165,'Damage costs'!$C$16:$C$43,0))/1000,AR56*INDEX('Damage costs'!$T$16:$T$43,MATCH($B165,'Damage costs'!$C$16:$C$43,0))/1000),\"\")","v":""},{"$f":"IFERROR(IF(OR($C$168=FALSE,LEFT($B165,3)<>\"NOX\"),AS56*INDEX('Damage costs'!$P$16:$P$43,MATCH($B165,'Damage costs'!$C$16:$C$43,0))/1000,AS56*INDEX('Damage costs'!$T$16:$T$43,MATCH($B165,'Damage costs'!$C$16:$C$43,0))/1000),\"\")","v":""},{"$f":"IFERROR(IF(OR($C$168=FALSE,LEFT($B165,3)<>\"NOX\"),AT56*INDEX('Damage costs'!$P$16:$P$43,MATCH($B165,'Damage costs'!$C$16:$C$43,0))/1000,AT56*INDEX('Damage costs'!$T$16:$T$43,MATCH($B165,'Damage costs'!$C$16:$C$43,0))/1000),\"\")","v":""},{"$f":"IFERROR(IF(OR($C$168=FALSE,LEFT($B165,3)<>\"NOX\"),AU56*INDEX('Damage costs'!$P$16:$P$43,MATCH($B165,'Damage costs'!$C$16:$C$43,0))/1000,AU56*INDEX('Damage costs'!$T$16:$T$43,MATCH($B165,'Damage costs'!$C$16:$C$43,0))/1000),\"\")","v":""},{"$f":"IFERROR(IF(OR($C$168=FALSE,LEFT($B165,3)<>\"NOX\"),AV56*INDEX('Damage costs'!$P$16:$P$43,MATCH($B165,'Damage costs'!$C$16:$C$43,0))/1000,AV56*INDEX('Damage costs'!$T$16:$T$43,MATCH($B165,'Damage costs'!$C$16:$C$43,0))/1000),\"\")","v":""},{"$f":"IFERROR(IF(OR($C$168=FALSE,LEFT($B165,3)<>\"NOX\"),AW56*INDEX('Damage costs'!$P$16:$P$43,MATCH($B165,'Damage costs'!$C$16:$C$43,0))/1000,AW56*INDEX('Damage costs'!$T$16:$T$43,MATCH($B165,'Damage costs'!$C$16:$C$43,0))/1000),\"\")","v":""},{"$f":"IFERROR(IF(OR($C$168=FALSE,LEFT($B165,3)<>\"NOX\"),AX56*INDEX('Damage costs'!$P$16:$P$43,MATCH($B165,'Damage costs'!$C$16:$C$43,0))/1000,AX56*INDEX('Damage costs'!$T$16:$T$43,MATCH($B165,'Damage costs'!$C$16:$C$43,0))/1000),\"\")","v":""},{"$f":"IFERROR(IF(OR($C$168=FALSE,LEFT($B165,3)<>\"NOX\"),AY56*INDEX('Damage costs'!$P$16:$P$43,MATCH($B165,'Damage costs'!$C$16:$C$43,0))/1000,AY56*INDEX('Damage costs'!$T$16:$T$43,MATCH($B165,'Damage costs'!$C$16:$C$43,0))/1000),\"\")","v":""},{"$f":"IFERROR(IF(OR($C$168=FALSE,LEFT($B165,3)<>\"NOX\"),AZ56*INDEX('Damage costs'!$P$16:$P$43,MATCH($B165,'Damage costs'!$C$16:$C$43,0))/1000,AZ56*INDEX('Damage costs'!$T$16:$T$43,MATCH($B165,'Damage costs'!$C$16:$C$43,0))/1000),\"\")","v":""},{"$f":"IFERROR(IF(OR($C$168=FALSE,LEFT($B165,3)<>\"NOX\"),BA56*INDEX('Damage costs'!$P$16:$P$43,MATCH($B165,'Damage costs'!$C$16:$C$43,0))/1000,BA56*INDEX('Damage costs'!$T$16:$T$43,MATCH($B165,'Damage costs'!$C$16:$C$43,0))/1000),\"\")","v":""},{"$f":"IFERROR(IF(OR($C$168=FALSE,LEFT($B165,3)<>\"NOX\"),BB56*INDEX('Damage costs'!$P$16:$P$43,MATCH($B165,'Damage costs'!$C$16:$C$43,0))/1000,BB56*INDEX('Damage costs'!$T$16:$T$43,MATCH($B165,'Damage costs'!$C$16:$C$43,0))/1000),\"\")","v":""},{"$f":"IFERROR(IF(OR($C$168=FALSE,LEFT($B165,3)<>\"NOX\"),BC56*INDEX('Damage costs'!$P$16:$P$43,MATCH($B165,'Damage costs'!$C$16:$C$43,0))/1000,BC56*INDEX('Damage costs'!$T$16:$T$43,MATCH($B165,'Damage costs'!$C$16:$C$43,0))/1000),\"\")","v":""},{"$f":"IFERROR(IF(OR($C$168=FALSE,LEFT($B165,3)<>\"NOX\"),BD56*INDEX('Damage costs'!$P$16:$P$43,MATCH($B165,'Damage costs'!$C$16:$C$43,0))/1000,BD56*INDEX('Damage costs'!$T$16:$T$43,MATCH($B165,'Damage costs'!$C$16:$C$43,0))/1000),\"\")","v":""},{"$f":"IFERROR(IF(OR($C$168=FALSE,LEFT($B165,3)<>\"NOX\"),BE56*INDEX('Damage costs'!$P$16:$P$43,MATCH($B165,'Damage costs'!$C$16:$C$43,0))/1000,BE56*INDEX('Damage costs'!$T$16:$T$43,MATCH($B165,'Damage costs'!$C$16:$C$43,0))/1000),\"\")","v":""},{"$f":"IFERROR(IF(OR($C$168=FALSE,LEFT($B165,3)<>\"NOX\"),BF56*INDEX('Damage costs'!$P$16:$P$43,MATCH($B165,'Damage costs'!$C$16:$C$43,0))/1000,BF56*INDEX('Damage costs'!$T$16:$T$43,MATCH($B165,'Damage costs'!$C$16:$C$43,0))/1000),\"\")","v":""},{"$f":"IFERROR(IF(OR($C$168=FALSE,LEFT($B165,3)<>\"NOX\"),BG56*INDEX('Damage costs'!$P$16:$P$43,MATCH($B165,'Damage costs'!$C$16:$C$43,0))/1000,BG56*INDEX('Damage costs'!$T$16:$T$43,MATCH($B165,'Damage costs'!$C$16:$C$43,0))/1000),\"\")","v":""},{"$f":"IFERROR(IF(OR($C$168=FALSE,LEFT($B165,3)<>\"NOX\"),BH56*INDEX('Damage costs'!$P$16:$P$43,MATCH($B165,'Damage costs'!$C$16:$C$43,0))/1000,BH56*INDEX('Damage costs'!$T$16:$T$43,MATCH($B165,'Damage costs'!$C$16:$C$43,0))/1000),\"\")","v":""},{"$f":"IFERROR(IF(OR($C$168=FALSE,LEFT($B165,3)<>\"NOX\"),BI56*INDEX('Damage costs'!$P$16:$P$43,MATCH($B165,'Damage costs'!$C$16:$C$43,0))/1000,BI56*INDEX('Damage costs'!$T$16:$T$43,MATCH($B165,'Damage costs'!$C$16:$C$43,0))/1000),\"\")","v":""},{"$f":"IFERROR(IF(OR($C$168=FALSE,LEFT($B165,3)<>\"NOX\"),BJ56*INDEX('Damage costs'!$P$16:$P$43,MATCH($B165,'Damage costs'!$C$16:$C$43,0))/1000,BJ56*INDEX('Damage costs'!$T$16:$T$43,MATCH($B165,'Damage costs'!$C$16:$C$43,0))/1000),\"\")","v":""},{"$f":"IFERROR(IF(OR($C$168=FALSE,LEFT($B165,3)<>\"NOX\"),BK56*INDEX('Damage costs'!$P$16:$P$43,MATCH($B165,'Damage costs'!$C$16:$C$43,0))/1000,BK56*INDEX('Damage costs'!$T$16:$T$43,MATCH($B165,'Damage costs'!$C$16:$C$43,0))/1000),\"\")","v":""},{"$f":"IFERROR(IF(OR($C$168=FALSE,LEFT($B165,3)<>\"NOX\"),BL56*INDEX('Damage costs'!$P$16:$P$43,MATCH($B165,'Damage costs'!$C$16:$C$43,0))/1000,BL56*INDEX('Damage costs'!$T$16:$T$43,MATCH($B165,'Damage costs'!$C$16:$C$43,0))/1000),\"\")","v":""},{"$f":"IFERROR(IF(OR($C$168=FALSE,LEFT($B165,3)<>\"NOX\"),BM56*INDEX('Damage costs'!$P$16:$P$43,MATCH($B165,'Damage costs'!$C$16:$C$43,0))/1000,BM56*INDEX('Damage costs'!$T$16:$T$43,MATCH($B165,'Damage costs'!$C$16:$C$43,0))/1000),\"\")","v":""},{"$f":"IFERROR(IF(OR($C$168=FALSE,LEFT($B165,3)<>\"NOX\"),BN56*INDEX('Damage costs'!$P$16:$P$43,MATCH($B165,'Damage costs'!$C$16:$C$43,0))/1000,BN56*INDEX('Damage costs'!$T$16:$T$43,MATCH($B165,'Damage costs'!$C$16:$C$43,0))/1000),\"\")","v":""},{"$f":"IFERROR(IF(OR($C$168=FALSE,LEFT($B165,3)<>\"NOX\"),BO56*INDEX('Damage costs'!$P$16:$P$43,MATCH($B165,'Damage costs'!$C$16:$C$43,0))/1000,BO56*INDEX('Damage costs'!$T$16:$T$43,MATCH($B165,'Damage costs'!$C$16:$C$43,0))/1000),\"\")","v":""},{"$f":"IFERROR(IF(OR($C$168=FALSE,LEFT($B165,3)<>\"NOX\"),BP56*INDEX('Damage costs'!$P$16:$P$43,MATCH($B165,'Damage costs'!$C$16:$C$43,0))/1000,BP56*INDEX('Damage costs'!$T$16:$T$43,MATCH($B165,'Damage costs'!$C$16:$C$43,0))/1000),\"\")","v":""},{"$f":"IFERROR(IF(OR($C$168=FALSE,LEFT($B165,3)<>\"NOX\"),BQ56*INDEX('Damage costs'!$P$16:$P$43,MATCH($B165,'Damage costs'!$C$16:$C$43,0))/1000,BQ56*INDEX('Damage costs'!$T$16:$T$43,MATCH($B165,'Damage costs'!$C$16:$C$43,0))/1000),\"\")","v":""},{"$f":"IFERROR(IF(OR($C$168=FALSE,LEFT($B165,3)<>\"NOX\"),BR56*INDEX('Damage costs'!$P$16:$P$43,MATCH($B165,'Damage costs'!$C$16:$C$43,0))/1000,BR56*INDEX('Damage costs'!$T$16:$T$43,MATCH($B165,'Damage costs'!$C$16:$C$43,0))/1000),\"\")","v":""},{"$f":"IFERROR(IF(OR($C$168=FALSE,LEFT($B165,3)<>\"NOX\"),BS56*INDEX('Damage costs'!$P$16:$P$43,MATCH($B165,'Damage costs'!$C$16:$C$43,0))/1000,BS56*INDEX('Damage costs'!$T$16:$T$43,MATCH($B165,'Damage costs'!$C$16:$C$43,0))/1000),\"\")","v":""},{"$f":"IFERROR(IF(OR($C$168=FALSE,LEFT($B165,3)<>\"NOX\"),BT56*INDEX('Damage costs'!$P$16:$P$43,MATCH($B165,'Damage costs'!$C$16:$C$43,0))/1000,BT56*INDEX('Damage costs'!$T$16:$T$43,MATCH($B165,'Damage costs'!$C$16:$C$43,0))/1000),\"\")","v":""},{"$f":"IFERROR(IF(OR($C$168=FALSE,LEFT($B165,3)<>\"NOX\"),BU56*INDEX('Damage costs'!$P$16:$P$43,MATCH($B165,'Damage costs'!$C$16:$C$43,0))/1000,BU56*INDEX('Damage costs'!$T$16:$T$43,MATCH($B165,'Damage costs'!$C$16:$C$43,0))/1000),\"\")","v":""},{"$f":"IFERROR(IF(OR($C$168=FALSE,LEFT($B165,3)<>\"NOX\"),BV56*INDEX('Damage costs'!$P$16:$P$43,MATCH($B165,'Damage costs'!$C$16:$C$43,0))/1000,BV56*INDEX('Damage costs'!$T$16:$T$43,MATCH($B165,'Damage costs'!$C$16:$C$43,0))/1000),\"\")","v":""},{"$f":"IFERROR(IF(OR($C$168=FALSE,LEFT($B165,3)<>\"NOX\"),BW56*INDEX('Damage costs'!$P$16:$P$43,MATCH($B165,'Damage costs'!$C$16:$C$43,0))/1000,BW56*INDEX('Damage costs'!$T$16:$T$43,MATCH($B165,'Damage costs'!$C$16:$C$43,0))/1000),\"\")","v":""},{"$f":"IFERROR(IF(OR($C$168=FALSE,LEFT($B165,3)<>\"NOX\"),BX56*INDEX('Damage costs'!$P$16:$P$43,MATCH($B165,'Damage costs'!$C$16:$C$43,0))/1000,BX56*INDEX('Damage costs'!$T$16:$T$43,MATCH($B165,'Damage costs'!$C$16:$C$43,0))/1000),\"\")","v":""},{"$f":"IFERROR(IF(OR($C$168=FALSE,LEFT($B165,3)<>\"NOX\"),BY56*INDEX('Damage costs'!$P$16:$P$43,MATCH($B165,'Damage costs'!$C$16:$C$43,0))/1000,BY56*INDEX('Damage costs'!$T$16:$T$43,MATCH($B165,'Damage costs'!$C$16:$C$43,0))/1000),\"\")","v":""},{"$f":"IFERROR(IF(OR($C$168=FALSE,LEFT($B165,3)<>\"NOX\"),BZ56*INDEX('Damage costs'!$P$16:$P$43,MATCH($B165,'Damage costs'!$C$16:$C$43,0))/1000,BZ56*INDEX('Damage costs'!$T$16:$T$43,MATCH($B165,'Damage costs'!$C$16:$C$43,0))/1000),\"\")","v":""},{"$f":"IFERROR(IF(OR($C$168=FALSE,LEFT($B165,3)<>\"NOX\"),CA56*INDEX('Damage costs'!$P$16:$P$43,MATCH($B165,'Damage costs'!$C$16:$C$43,0))/1000,CA56*INDEX('Damage costs'!$T$16:$T$43,MATCH($B165,'Damage costs'!$C$16:$C$43,0))/1000),\"\")","v":""},{"$f":"IFERROR(IF(OR($C$168=FALSE,LEFT($B165,3)<>\"NOX\"),CB56*INDEX('Damage costs'!$P$16:$P$43,MATCH($B165,'Damage costs'!$C$16:$C$43,0))/1000,CB56*INDEX('Damage costs'!$T$16:$T$43,MATCH($B165,'Damage costs'!$C$16:$C$43,0))/1000),\"\")","v":""},{"$f":"IFERROR(IF(OR($C$168=FALSE,LEFT($B165,3)<>\"NOX\"),CC56*INDEX('Damage costs'!$P$16:$P$43,MATCH($B165,'Damage costs'!$C$16:$C$43,0))/1000,CC56*INDEX('Damage costs'!$T$16:$T$43,MATCH($B165,'Damage costs'!$C$16:$C$43,0))/1000),\"\")","v":""},{"$f":"IFERROR(IF(OR($C$168=FALSE,LEFT($B165,3)<>\"NOX\"),CD56*INDEX('Damage costs'!$P$16:$P$43,MATCH($B165,'Damage costs'!$C$16:$C$43,0))/1000,CD56*INDEX('Damage costs'!$T$16:$T$43,MATCH($B165,'Damage costs'!$C$16:$C$43,0))/1000),\"\")","v":""},{"$f":"IFERROR(IF(OR($C$168=FALSE,LEFT($B165,3)<>\"NOX\"),CE56*INDEX('Damage costs'!$P$16:$P$43,MATCH($B165,'Damage costs'!$C$16:$C$43,0))/1000,CE56*INDEX('Damage costs'!$T$16:$T$43,MATCH($B165,'Damage costs'!$C$16:$C$43,0))/1000),\"\")","v":""},{"$f":"IFERROR(IF(OR($C$168=FALSE,LEFT($B165,3)<>\"NOX\"),CF56*INDEX('Damage costs'!$P$16:$P$43,MATCH($B165,'Damage costs'!$C$16:$C$43,0))/1000,CF56*INDEX('Damage costs'!$T$16:$T$43,MATCH($B165,'Damage costs'!$C$16:$C$43,0))/1000),\"\")","v":""},{"$f":"IFERROR(IF(OR($C$168=FALSE,LEFT($B165,3)<>\"NOX\"),CG56*INDEX('Damage costs'!$P$16:$P$43,MATCH($B165,'Damage costs'!$C$16:$C$43,0))/1000,CG56*INDEX('Damage costs'!$T$16:$T$43,MATCH($B165,'Damage costs'!$C$16:$C$43,0))/1000),\"\")","v":""},{"$f":"IFERROR(IF(OR($C$168=FALSE,LEFT($B165,3)<>\"NOX\"),CH56*INDEX('Damage costs'!$P$16:$P$43,MATCH($B165,'Damage costs'!$C$16:$C$43,0))/1000,CH56*INDEX('Damage costs'!$T$16:$T$43,MATCH($B165,'Damage costs'!$C$16:$C$43,0))/1000),\"\")","v":""},{"$f":"IFERROR(IF(OR($C$168=FALSE,LEFT($B165,3)<>\"NOX\"),CI56*INDEX('Damage costs'!$P$16:$P$43,MATCH($B165,'Damage costs'!$C$16:$C$43,0))/1000,CI56*INDEX('Damage costs'!$T$16:$T$43,MATCH($B165,'Damage costs'!$C$16:$C$43,0))/1000),\"\")","v":""},{"$f":"IFERROR(IF(OR($C$168=FALSE,LEFT($B165,3)<>\"NOX\"),CJ56*INDEX('Damage costs'!$P$16:$P$43,MATCH($B165,'Damage costs'!$C$16:$C$43,0))/1000,CJ56*INDEX('Damage costs'!$T$16:$T$43,MATCH($B165,'Damage costs'!$C$16:$C$43,0))/1000),\"\")","v":""},{"$f":"IFERROR(IF(OR($C$168=FALSE,LEFT($B165,3)<>\"NOX\"),CK56*INDEX('Damage costs'!$P$16:$P$43,MATCH($B165,'Damage costs'!$C$16:$C$43,0))/1000,CK56*INDEX('Damage costs'!$T$16:$T$43,MATCH($B165,'Damage costs'!$C$16:$C$43,0))/1000),\"\")","v":""},{"$f":"IFERROR(IF(OR($C$168=FALSE,LEFT($B165,3)<>\"NOX\"),CL56*INDEX('Damage costs'!$P$16:$P$43,MATCH($B165,'Damage costs'!$C$16:$C$43,0))/1000,CL56*INDEX('Damage costs'!$T$16:$T$43,MATCH($B165,'Damage costs'!$C$16:$C$43,0))/1000),\"\")","v":""},{"$f":"IFERROR(IF(OR($C$168=FALSE,LEFT($B165,3)<>\"NOX\"),CM56*INDEX('Damage costs'!$P$16:$P$43,MATCH($B165,'Damage costs'!$C$16:$C$43,0))/1000,CM56*INDEX('Damage costs'!$T$16:$T$43,MATCH($B165,'Damage costs'!$C$16:$C$43,0))/1000),\"\")","v":""},{"$f":"IFERROR(IF(OR($C$168=FALSE,LEFT($B165,3)<>\"NOX\"),CN56*INDEX('Damage costs'!$P$16:$P$43,MATCH($B165,'Damage costs'!$C$16:$C$43,0))/1000,CN56*INDEX('Damage costs'!$T$16:$T$43,MATCH($B165,'Damage costs'!$C$16:$C$43,0))/1000),\"\")","v":""},{"$f":"IFERROR(IF(OR($C$168=FALSE,LEFT($B165,3)<>\"NOX\"),CO56*INDEX('Damage costs'!$P$16:$P$43,MATCH($B165,'Damage costs'!$C$16:$C$43,0))/1000,CO56*INDEX('Damage costs'!$T$16:$T$43,MATCH($B165,'Damage costs'!$C$16:$C$43,0))/1000),\"\")","v":""},{"$f":"IFERROR(IF(OR($C$168=FALSE,LEFT($B165,3)<>\"NOX\"),CP56*INDEX('Damage costs'!$P$16:$P$43,MATCH($B165,'Damage costs'!$C$16:$C$43,0))/1000,CP56*INDEX('Damage costs'!$T$16:$T$43,MATCH($B165,'Damage costs'!$C$16:$C$43,0))/1000),\"\")","v":""},{"$f":"IFERROR(IF(OR($C$168=FALSE,LEFT($B165,3)<>\"NOX\"),CQ56*INDEX('Damage costs'!$P$16:$P$43,MATCH($B165,'Damage costs'!$C$16:$C$43,0))/1000,CQ56*INDEX('Damage costs'!$T$16:$T$43,MATCH($B165,'Damage costs'!$C$16:$C$43,0))/1000),\"\")","v":""},{"$f":"IFERROR(IF(OR($C$168=FALSE,LEFT($B165,3)<>\"NOX\"),CR56*INDEX('Damage costs'!$P$16:$P$43,MATCH($B165,'Damage costs'!$C$16:$C$43,0))/1000,CR56*INDEX('Damage costs'!$T$16:$T$43,MATCH($B165,'Damage costs'!$C$16:$C$43,0))/1000),\"\")","v":""},{"$f":"IFERROR(IF(OR($C$168=FALSE,LEFT($B165,3)<>\"NOX\"),CS56*INDEX('Damage costs'!$P$16:$P$43,MATCH($B165,'Damage costs'!$C$16:$C$43,0))/1000,CS56*INDEX('Damage costs'!$T$16:$T$43,MATCH($B165,'Damage costs'!$C$16:$C$43,0))/1000),\"\")","v":""},{"$f":"IFERROR(IF(OR($C$168=FALSE,LEFT($B165,3)<>\"NOX\"),CT56*INDEX('Damage costs'!$P$16:$P$43,MATCH($B165,'Damage costs'!$C$16:$C$43,0))/1000,CT56*INDEX('Damage costs'!$T$16:$T$43,MATCH($B165,'Damage costs'!$C$16:$C$43,0))/1000),\"\")","v":""},{"$f":"IFERROR(IF(OR($C$168=FALSE,LEFT($B165,3)<>\"NOX\"),CU56*INDEX('Damage costs'!$P$16:$P$43,MATCH($B165,'Damage costs'!$C$16:$C$43,0))/1000,CU56*INDEX('Damage costs'!$T$16:$T$43,MATCH($B165,'Damage costs'!$C$16:$C$43,0))/1000),\"\")","v":""},{"$f":"IFERROR(IF(OR($C$168=FALSE,LEFT($B165,3)<>\"NOX\"),CV56*INDEX('Damage costs'!$P$16:$P$43,MATCH($B165,'Damage costs'!$C$16:$C$43,0))/1000,CV56*INDEX('Damage costs'!$T$16:$T$43,MATCH($B165,'Damage costs'!$C$16:$C$43,0))/1000),\"\")","v":""},{"$f":"IFERROR(IF(OR($C$168=FALSE,LEFT($B165,3)<>\"NOX\"),CW56*INDEX('Damage costs'!$P$16:$P$43,MATCH($B165,'Damage costs'!$C$16:$C$43,0))/1000,CW56*INDEX('Damage costs'!$T$16:$T$43,MATCH($B165,'Damage costs'!$C$16:$C$43,0))/1000),\"\")","v":""},{"$f":"IFERROR(IF(OR($C$168=FALSE,LEFT($B165,3)<>\"NOX\"),CX56*INDEX('Damage costs'!$P$16:$P$43,MATCH($B165,'Damage costs'!$C$16:$C$43,0))/1000,CX56*INDEX('Damage costs'!$T$16:$T$43,MATCH($B165,'Damage costs'!$C$16:$C$43,0))/1000),\"\")","v":""},{"$f":"IFERROR(IF(OR($C$168=FALSE,LEFT($B165,3)<>\"NOX\"),CY56*INDEX('Damage costs'!$P$16:$P$43,MATCH($B165,'Damage costs'!$C$16:$C$43,0))/1000,CY56*INDEX('Damage costs'!$T$16:$T$43,MATCH($B165,'Damage costs'!$C$16:$C$43,0))/1000),\"\")","v":""}]
[null,0,"£000's",{"$f":"IFERROR(IF(OR($C$168=FALSE,LEFT($B166,3)<>\"NOX\"),D57*INDEX('Damage costs'!$P$16:$P$43,MATCH($B166,'Damage costs'!$C$16:$C$43,0))/1000,D57*INDEX('Damage costs'!$T$16:$T$43,MATCH($B166,'Damage costs'!$C$16:$C$43,0))/1000),\"\")","v":""},{"$f":"IFERROR(IF(OR($C$168=FALSE,LEFT($B166,3)<>\"NOX\"),E57*INDEX('Damage costs'!$P$16:$P$43,MATCH($B166,'Damage costs'!$C$16:$C$43,0))/1000,E57*INDEX('Damage costs'!$T$16:$T$43,MATCH($B166,'Damage costs'!$C$16:$C$43,0))/1000),\"\")","v":""},{"$f":"IFERROR(IF(OR($C$168=FALSE,LEFT($B166,3)<>\"NOX\"),F57*INDEX('Damage costs'!$P$16:$P$43,MATCH($B166,'Damage costs'!$C$16:$C$43,0))/1000,F57*INDEX('Damage costs'!$T$16:$T$43,MATCH($B166,'Damage costs'!$C$16:$C$43,0))/1000),\"\")","v":""},{"$f":"IFERROR(IF(OR($C$168=FALSE,LEFT($B166,3)<>\"NOX\"),G57*INDEX('Damage costs'!$P$16:$P$43,MATCH($B166,'Damage costs'!$C$16:$C$43,0))/1000,G57*INDEX('Damage costs'!$T$16:$T$43,MATCH($B166,'Damage costs'!$C$16:$C$43,0))/1000),\"\")","v":""},{"$f":"IFERROR(IF(OR($C$168=FALSE,LEFT($B166,3)<>\"NOX\"),H57*INDEX('Damage costs'!$P$16:$P$43,MATCH($B166,'Damage costs'!$C$16:$C$43,0))/1000,H57*INDEX('Damage costs'!$T$16:$T$43,MATCH($B166,'Damage costs'!$C$16:$C$43,0))/1000),\"\")","v":""},{"$f":"IFERROR(IF(OR($C$168=FALSE,LEFT($B166,3)<>\"NOX\"),I57*INDEX('Damage costs'!$P$16:$P$43,MATCH($B166,'Damage costs'!$C$16:$C$43,0))/1000,I57*INDEX('Damage costs'!$T$16:$T$43,MATCH($B166,'Damage costs'!$C$16:$C$43,0))/1000),\"\")","v":""},{"$f":"IFERROR(IF(OR($C$168=FALSE,LEFT($B166,3)<>\"NOX\"),J57*INDEX('Damage costs'!$P$16:$P$43,MATCH($B166,'Damage costs'!$C$16:$C$43,0))/1000,J57*INDEX('Damage costs'!$T$16:$T$43,MATCH($B166,'Damage costs'!$C$16:$C$43,0))/1000),\"\")","v":""},{"$f":"IFERROR(IF(OR($C$168=FALSE,LEFT($B166,3)<>\"NOX\"),K57*INDEX('Damage costs'!$P$16:$P$43,MATCH($B166,'Damage costs'!$C$16:$C$43,0))/1000,K57*INDEX('Damage costs'!$T$16:$T$43,MATCH($B166,'Damage costs'!$C$16:$C$43,0))/1000),\"\")","v":""},{"$f":"IFERROR(IF(OR($C$168=FALSE,LEFT($B166,3)<>\"NOX\"),L57*INDEX('Damage costs'!$P$16:$P$43,MATCH($B166,'Damage costs'!$C$16:$C$43,0))/1000,L57*INDEX('Damage costs'!$T$16:$T$43,MATCH($B166,'Damage costs'!$C$16:$C$43,0))/1000),\"\")","v":""},{"$f":"IFERROR(IF(OR($C$168=FALSE,LEFT($B166,3)<>\"NOX\"),M57*INDEX('Damage costs'!$P$16:$P$43,MATCH($B166,'Damage costs'!$C$16:$C$43,0))/1000,M57*INDEX('Damage costs'!$T$16:$T$43,MATCH($B166,'Damage costs'!$C$16:$C$43,0))/1000),\"\")","v":""},{"$f":"IFERROR(IF(OR($C$168=FALSE,LEFT($B166,3)<>\"NOX\"),N57*INDEX('Damage costs'!$P$16:$P$43,MATCH($B166,'Damage costs'!$C$16:$C$43,0))/1000,N57*INDEX('Damage costs'!$T$16:$T$43,MATCH($B166,'Damage costs'!$C$16:$C$43,0))/1000),\"\")","v":""},{"$f":"IFERROR(IF(OR($C$168=FALSE,LEFT($B166,3)<>\"NOX\"),O57*INDEX('Damage costs'!$P$16:$P$43,MATCH($B166,'Damage costs'!$C$16:$C$43,0))/1000,O57*INDEX('Damage costs'!$T$16:$T$43,MATCH($B166,'Damage costs'!$C$16:$C$43,0))/1000),\"\")","v":""},{"$f":"IFERROR(IF(OR($C$168=FALSE,LEFT($B166,3)<>\"NOX\"),P57*INDEX('Damage costs'!$P$16:$P$43,MATCH($B166,'Damage costs'!$C$16:$C$43,0))/1000,P57*INDEX('Damage costs'!$T$16:$T$43,MATCH($B166,'Damage costs'!$C$16:$C$43,0))/1000),\"\")","v":""},{"$f":"IFERROR(IF(OR($C$168=FALSE,LEFT($B166,3)<>\"NOX\"),Q57*INDEX('Damage costs'!$P$16:$P$43,MATCH($B166,'Damage costs'!$C$16:$C$43,0))/1000,Q57*INDEX('Damage costs'!$T$16:$T$43,MATCH($B166,'Damage costs'!$C$16:$C$43,0))/1000),\"\")","v":""},{"$f":"IFERROR(IF(OR($C$168=FALSE,LEFT($B166,3)<>\"NOX\"),R57*INDEX('Damage costs'!$P$16:$P$43,MATCH($B166,'Damage costs'!$C$16:$C$43,0))/1000,R57*INDEX('Damage costs'!$T$16:$T$43,MATCH($B166,'Damage costs'!$C$16:$C$43,0))/1000),\"\")","v":""},{"$f":"IFERROR(IF(OR($C$168=FALSE,LEFT($B166,3)<>\"NOX\"),S57*INDEX('Damage costs'!$P$16:$P$43,MATCH($B166,'Damage costs'!$C$16:$C$43,0))/1000,S57*INDEX('Damage costs'!$T$16:$T$43,MATCH($B166,'Damage costs'!$C$16:$C$43,0))/1000),\"\")","v":""},{"$f":"IFERROR(IF(OR($C$168=FALSE,LEFT($B166,3)<>\"NOX\"),T57*INDEX('Damage costs'!$P$16:$P$43,MATCH($B166,'Damage costs'!$C$16:$C$43,0))/1000,T57*INDEX('Damage costs'!$T$16:$T$43,MATCH($B166,'Damage costs'!$C$16:$C$43,0))/1000),\"\")","v":""},{"$f":"IFERROR(IF(OR($C$168=FALSE,LEFT($B166,3)<>\"NOX\"),U57*INDEX('Damage costs'!$P$16:$P$43,MATCH($B166,'Damage costs'!$C$16:$C$43,0))/1000,U57*INDEX('Damage costs'!$T$16:$T$43,MATCH($B166,'Damage costs'!$C$16:$C$43,0))/1000),\"\")","v":""},{"$f":"IFERROR(IF(OR($C$168=FALSE,LEFT($B166,3)<>\"NOX\"),V57*INDEX('Damage costs'!$P$16:$P$43,MATCH($B166,'Damage costs'!$C$16:$C$43,0))/1000,V57*INDEX('Damage costs'!$T$16:$T$43,MATCH($B166,'Damage costs'!$C$16:$C$43,0))/1000),\"\")","v":""},{"$f":"IFERROR(IF(OR($C$168=FALSE,LEFT($B166,3)<>\"NOX\"),W57*INDEX('Damage costs'!$P$16:$P$43,MATCH($B166,'Damage costs'!$C$16:$C$43,0))/1000,W57*INDEX('Damage costs'!$T$16:$T$43,MATCH($B166,'Damage costs'!$C$16:$C$43,0))/1000),\"\")","v":""},{"$f":"IFERROR(IF(OR($C$168=FALSE,LEFT($B166,3)<>\"NOX\"),X57*INDEX('Damage costs'!$P$16:$P$43,MATCH($B166,'Damage costs'!$C$16:$C$43,0))/1000,X57*INDEX('Damage costs'!$T$16:$T$43,MATCH($B166,'Damage costs'!$C$16:$C$43,0))/1000),\"\")","v":""},{"$f":"IFERROR(IF(OR($C$168=FALSE,LEFT($B166,3)<>\"NOX\"),Y57*INDEX('Damage costs'!$P$16:$P$43,MATCH($B166,'Damage costs'!$C$16:$C$43,0))/1000,Y57*INDEX('Damage costs'!$T$16:$T$43,MATCH($B166,'Damage costs'!$C$16:$C$43,0))/1000),\"\")","v":""},{"$f":"IFERROR(IF(OR($C$168=FALSE,LEFT($B166,3)<>\"NOX\"),Z57*INDEX('Damage costs'!$P$16:$P$43,MATCH($B166,'Damage costs'!$C$16:$C$43,0))/1000,Z57*INDEX('Damage costs'!$T$16:$T$43,MATCH($B166,'Damage costs'!$C$16:$C$43,0))/1000),\"\")","v":""},{"$f":"IFERROR(IF(OR($C$168=FALSE,LEFT($B166,3)<>\"NOX\"),AA57*INDEX('Damage costs'!$P$16:$P$43,MATCH($B166,'Damage costs'!$C$16:$C$43,0))/1000,AA57*INDEX('Damage costs'!$T$16:$T$43,MATCH($B166,'Damage costs'!$C$16:$C$43,0))/1000),\"\")","v":""},{"$f":"IFERROR(IF(OR($C$168=FALSE,LEFT($B166,3)<>\"NOX\"),AB57*INDEX('Damage costs'!$P$16:$P$43,MATCH($B166,'Damage costs'!$C$16:$C$43,0))/1000,AB57*INDEX('Damage costs'!$T$16:$T$43,MATCH($B166,'Damage costs'!$C$16:$C$43,0))/1000),\"\")","v":""},{"$f":"IFERROR(IF(OR($C$168=FALSE,LEFT($B166,3)<>\"NOX\"),AC57*INDEX('Damage costs'!$P$16:$P$43,MATCH($B166,'Damage costs'!$C$16:$C$43,0))/1000,AC57*INDEX('Damage costs'!$T$16:$T$43,MATCH($B166,'Damage costs'!$C$16:$C$43,0))/1000),\"\")","v":""},{"$f":"IFERROR(IF(OR($C$168=FALSE,LEFT($B166,3)<>\"NOX\"),AD57*INDEX('Damage costs'!$P$16:$P$43,MATCH($B166,'Damage costs'!$C$16:$C$43,0))/1000,AD57*INDEX('Damage costs'!$T$16:$T$43,MATCH($B166,'Damage costs'!$C$16:$C$43,0))/1000),\"\")","v":""},{"$f":"IFERROR(IF(OR($C$168=FALSE,LEFT($B166,3)<>\"NOX\"),AE57*INDEX('Damage costs'!$P$16:$P$43,MATCH($B166,'Damage costs'!$C$16:$C$43,0))/1000,AE57*INDEX('Damage costs'!$T$16:$T$43,MATCH($B166,'Damage costs'!$C$16:$C$43,0))/1000),\"\")","v":""},{"$f":"IFERROR(IF(OR($C$168=FALSE,LEFT($B166,3)<>\"NOX\"),AF57*INDEX('Damage costs'!$P$16:$P$43,MATCH($B166,'Damage costs'!$C$16:$C$43,0))/1000,AF57*INDEX('Damage costs'!$T$16:$T$43,MATCH($B166,'Damage costs'!$C$16:$C$43,0))/1000),\"\")","v":""},{"$f":"IFERROR(IF(OR($C$168=FALSE,LEFT($B166,3)<>\"NOX\"),AG57*INDEX('Damage costs'!$P$16:$P$43,MATCH($B166,'Damage costs'!$C$16:$C$43,0))/1000,AG57*INDEX('Damage costs'!$T$16:$T$43,MATCH($B166,'Damage costs'!$C$16:$C$43,0))/1000),\"\")","v":""},{"$f":"IFERROR(IF(OR($C$168=FALSE,LEFT($B166,3)<>\"NOX\"),AH57*INDEX('Damage costs'!$P$16:$P$43,MATCH($B166,'Damage costs'!$C$16:$C$43,0))/1000,AH57*INDEX('Damage costs'!$T$16:$T$43,MATCH($B166,'Damage costs'!$C$16:$C$43,0))/1000),\"\")","v":""},{"$f":"IFERROR(IF(OR($C$168=FALSE,LEFT($B166,3)<>\"NOX\"),AI57*INDEX('Damage costs'!$P$16:$P$43,MATCH($B166,'Damage costs'!$C$16:$C$43,0))/1000,AI57*INDEX('Damage costs'!$T$16:$T$43,MATCH($B166,'Damage costs'!$C$16:$C$43,0))/1000),\"\")","v":""},{"$f":"IFERROR(IF(OR($C$168=FALSE,LEFT($B166,3)<>\"NOX\"),AJ57*INDEX('Damage costs'!$P$16:$P$43,MATCH($B166,'Damage costs'!$C$16:$C$43,0))/1000,AJ57*INDEX('Damage costs'!$T$16:$T$43,MATCH($B166,'Damage costs'!$C$16:$C$43,0))/1000),\"\")","v":""},{"$f":"IFERROR(IF(OR($C$168=FALSE,LEFT($B166,3)<>\"NOX\"),AK57*INDEX('Damage costs'!$P$16:$P$43,MATCH($B166,'Damage costs'!$C$16:$C$43,0))/1000,AK57*INDEX('Damage costs'!$T$16:$T$43,MATCH($B166,'Damage costs'!$C$16:$C$43,0))/1000),\"\")","v":""},{"$f":"IFERROR(IF(OR($C$168=FALSE,LEFT($B166,3)<>\"NOX\"),AL57*INDEX('Damage costs'!$P$16:$P$43,MATCH($B166,'Damage costs'!$C$16:$C$43,0))/1000,AL57*INDEX('Damage costs'!$T$16:$T$43,MATCH($B166,'Damage costs'!$C$16:$C$43,0))/1000),\"\")","v":""},{"$f":"IFERROR(IF(OR($C$168=FALSE,LEFT($B166,3)<>\"NOX\"),AM57*INDEX('Damage costs'!$P$16:$P$43,MATCH($B166,'Damage costs'!$C$16:$C$43,0))/1000,AM57*INDEX('Damage costs'!$T$16:$T$43,MATCH($B166,'Damage costs'!$C$16:$C$43,0))/1000),\"\")","v":""},{"$f":"IFERROR(IF(OR($C$168=FALSE,LEFT($B166,3)<>\"NOX\"),AN57*INDEX('Damage costs'!$P$16:$P$43,MATCH($B166,'Damage costs'!$C$16:$C$43,0))/1000,AN57*INDEX('Damage costs'!$T$16:$T$43,MATCH($B166,'Damage costs'!$C$16:$C$43,0))/1000),\"\")","v":""},{"$f":"IFERROR(IF(OR($C$168=FALSE,LEFT($B166,3)<>\"NOX\"),AO57*INDEX('Damage costs'!$P$16:$P$43,MATCH($B166,'Damage costs'!$C$16:$C$43,0))/1000,AO57*INDEX('Damage costs'!$T$16:$T$43,MATCH($B166,'Damage costs'!$C$16:$C$43,0))/1000),\"\")","v":""},{"$f":"IFERROR(IF(OR($C$168=FALSE,LEFT($B166,3)<>\"NOX\"),AP57*INDEX('Damage costs'!$P$16:$P$43,MATCH($B166,'Damage costs'!$C$16:$C$43,0))/1000,AP57*INDEX('Damage costs'!$T$16:$T$43,MATCH($B166,'Damage costs'!$C$16:$C$43,0))/1000),\"\")","v":""},{"$f":"IFERROR(IF(OR($C$168=FALSE,LEFT($B166,3)<>\"NOX\"),AQ57*INDEX('Damage costs'!$P$16:$P$43,MATCH($B166,'Damage costs'!$C$16:$C$43,0))/1000,AQ57*INDEX('Damage costs'!$T$16:$T$43,MATCH($B166,'Damage costs'!$C$16:$C$43,0))/1000),\"\")","v":""},{"$f":"IFERROR(IF(OR($C$168=FALSE,LEFT($B166,3)<>\"NOX\"),AR57*INDEX('Damage costs'!$P$16:$P$43,MATCH($B166,'Damage costs'!$C$16:$C$43,0))/1000,AR57*INDEX('Damage costs'!$T$16:$T$43,MATCH($B166,'Damage costs'!$C$16:$C$43,0))/1000),\"\")","v":""},{"$f":"IFERROR(IF(OR($C$168=FALSE,LEFT($B166,3)<>\"NOX\"),AS57*INDEX('Damage costs'!$P$16:$P$43,MATCH($B166,'Damage costs'!$C$16:$C$43,0))/1000,AS57*INDEX('Damage costs'!$T$16:$T$43,MATCH($B166,'Damage costs'!$C$16:$C$43,0))/1000),\"\")","v":""},{"$f":"IFERROR(IF(OR($C$168=FALSE,LEFT($B166,3)<>\"NOX\"),AT57*INDEX('Damage costs'!$P$16:$P$43,MATCH($B166,'Damage costs'!$C$16:$C$43,0))/1000,AT57*INDEX('Damage costs'!$T$16:$T$43,MATCH($B166,'Damage costs'!$C$16:$C$43,0))/1000),\"\")","v":""},{"$f":"IFERROR(IF(OR($C$168=FALSE,LEFT($B166,3)<>\"NOX\"),AU57*INDEX('Damage costs'!$P$16:$P$43,MATCH($B166,'Damage costs'!$C$16:$C$43,0))/1000,AU57*INDEX('Damage costs'!$T$16:$T$43,MATCH($B166,'Damage costs'!$C$16:$C$43,0))/1000),\"\")","v":""},{"$f":"IFERROR(IF(OR($C$168=FALSE,LEFT($B166,3)<>\"NOX\"),AV57*INDEX('Damage costs'!$P$16:$P$43,MATCH($B166,'Damage costs'!$C$16:$C$43,0))/1000,AV57*INDEX('Damage costs'!$T$16:$T$43,MATCH($B166,'Damage costs'!$C$16:$C$43,0))/1000),\"\")","v":""},{"$f":"IFERROR(IF(OR($C$168=FALSE,LEFT($B166,3)<>\"NOX\"),AW57*INDEX('Damage costs'!$P$16:$P$43,MATCH($B166,'Damage costs'!$C$16:$C$43,0))/1000,AW57*INDEX('Damage costs'!$T$16:$T$43,MATCH($B166,'Damage costs'!$C$16:$C$43,0))/1000),\"\")","v":""},{"$f":"IFERROR(IF(OR($C$168=FALSE,LEFT($B166,3)<>\"NOX\"),AX57*INDEX('Damage costs'!$P$16:$P$43,MATCH($B166,'Damage costs'!$C$16:$C$43,0))/1000,AX57*INDEX('Damage costs'!$T$16:$T$43,MATCH($B166,'Damage costs'!$C$16:$C$43,0))/1000),\"\")","v":""},{"$f":"IFERROR(IF(OR($C$168=FALSE,LEFT($B166,3)<>\"NOX\"),AY57*INDEX('Damage costs'!$P$16:$P$43,MATCH($B166,'Damage costs'!$C$16:$C$43,0))/1000,AY57*INDEX('Damage costs'!$T$16:$T$43,MATCH($B166,'Damage costs'!$C$16:$C$43,0))/1000),\"\")","v":""},{"$f":"IFERROR(IF(OR($C$168=FALSE,LEFT($B166,3)<>\"NOX\"),AZ57*INDEX('Damage costs'!$P$16:$P$43,MATCH($B166,'Damage costs'!$C$16:$C$43,0))/1000,AZ57*INDEX('Damage costs'!$T$16:$T$43,MATCH($B166,'Damage costs'!$C$16:$C$43,0))/1000),\"\")","v":""},{"$f":"IFERROR(IF(OR($C$168=FALSE,LEFT($B166,3)<>\"NOX\"),BA57*INDEX('Damage costs'!$P$16:$P$43,MATCH($B166,'Damage costs'!$C$16:$C$43,0))/1000,BA57*INDEX('Damage costs'!$T$16:$T$43,MATCH($B166,'Damage costs'!$C$16:$C$43,0))/1000),\"\")","v":""},{"$f":"IFERROR(IF(OR($C$168=FALSE,LEFT($B166,3)<>\"NOX\"),BB57*INDEX('Damage costs'!$P$16:$P$43,MATCH($B166,'Damage costs'!$C$16:$C$43,0))/1000,BB57*INDEX('Damage costs'!$T$16:$T$43,MATCH($B166,'Damage costs'!$C$16:$C$43,0))/1000),\"\")","v":""},{"$f":"IFERROR(IF(OR($C$168=FALSE,LEFT($B166,3)<>\"NOX\"),BC57*INDEX('Damage costs'!$P$16:$P$43,MATCH($B166,'Damage costs'!$C$16:$C$43,0))/1000,BC57*INDEX('Damage costs'!$T$16:$T$43,MATCH($B166,'Damage costs'!$C$16:$C$43,0))/1000),\"\")","v":""},{"$f":"IFERROR(IF(OR($C$168=FALSE,LEFT($B166,3)<>\"NOX\"),BD57*INDEX('Damage costs'!$P$16:$P$43,MATCH($B166,'Damage costs'!$C$16:$C$43,0))/1000,BD57*INDEX('Damage costs'!$T$16:$T$43,MATCH($B166,'Damage costs'!$C$16:$C$43,0))/1000),\"\")","v":""},{"$f":"IFERROR(IF(OR($C$168=FALSE,LEFT($B166,3)<>\"NOX\"),BE57*INDEX('Damage costs'!$P$16:$P$43,MATCH($B166,'Damage costs'!$C$16:$C$43,0))/1000,BE57*INDEX('Damage costs'!$T$16:$T$43,MATCH($B166,'Damage costs'!$C$16:$C$43,0))/1000),\"\")","v":""},{"$f":"IFERROR(IF(OR($C$168=FALSE,LEFT($B166,3)<>\"NOX\"),BF57*INDEX('Damage costs'!$P$16:$P$43,MATCH($B166,'Damage costs'!$C$16:$C$43,0))/1000,BF57*INDEX('Damage costs'!$T$16:$T$43,MATCH($B166,'Damage costs'!$C$16:$C$43,0))/1000),\"\")","v":""},{"$f":"IFERROR(IF(OR($C$168=FALSE,LEFT($B166,3)<>\"NOX\"),BG57*INDEX('Damage costs'!$P$16:$P$43,MATCH($B166,'Damage costs'!$C$16:$C$43,0))/1000,BG57*INDEX('Damage costs'!$T$16:$T$43,MATCH($B166,'Damage costs'!$C$16:$C$43,0))/1000),\"\")","v":""},{"$f":"IFERROR(IF(OR($C$168=FALSE,LEFT($B166,3)<>\"NOX\"),BH57*INDEX('Damage costs'!$P$16:$P$43,MATCH($B166,'Damage costs'!$C$16:$C$43,0))/1000,BH57*INDEX('Damage costs'!$T$16:$T$43,MATCH($B166,'Damage costs'!$C$16:$C$43,0))/1000),\"\")","v":""},{"$f":"IFERROR(IF(OR($C$168=FALSE,LEFT($B166,3)<>\"NOX\"),BI57*INDEX('Damage costs'!$P$16:$P$43,MATCH($B166,'Damage costs'!$C$16:$C$43,0))/1000,BI57*INDEX('Damage costs'!$T$16:$T$43,MATCH($B166,'Damage costs'!$C$16:$C$43,0))/1000),\"\")","v":""},{"$f":"IFERROR(IF(OR($C$168=FALSE,LEFT($B166,3)<>\"NOX\"),BJ57*INDEX('Damage costs'!$P$16:$P$43,MATCH($B166,'Damage costs'!$C$16:$C$43,0))/1000,BJ57*INDEX('Damage costs'!$T$16:$T$43,MATCH($B166,'Damage costs'!$C$16:$C$43,0))/1000),\"\")","v":""},{"$f":"IFERROR(IF(OR($C$168=FALSE,LEFT($B166,3)<>\"NOX\"),BK57*INDEX('Damage costs'!$P$16:$P$43,MATCH($B166,'Damage costs'!$C$16:$C$43,0))/1000,BK57*INDEX('Damage costs'!$T$16:$T$43,MATCH($B166,'Damage costs'!$C$16:$C$43,0))/1000),\"\")","v":""},{"$f":"IFERROR(IF(OR($C$168=FALSE,LEFT($B166,3)<>\"NOX\"),BL57*INDEX('Damage costs'!$P$16:$P$43,MATCH($B166,'Damage costs'!$C$16:$C$43,0))/1000,BL57*INDEX('Damage costs'!$T$16:$T$43,MATCH($B166,'Damage costs'!$C$16:$C$43,0))/1000),\"\")","v":""},{"$f":"IFERROR(IF(OR($C$168=FALSE,LEFT($B166,3)<>\"NOX\"),BM57*INDEX('Damage costs'!$P$16:$P$43,MATCH($B166,'Damage costs'!$C$16:$C$43,0))/1000,BM57*INDEX('Damage costs'!$T$16:$T$43,MATCH($B166,'Damage costs'!$C$16:$C$43,0))/1000),\"\")","v":""},{"$f":"IFERROR(IF(OR($C$168=FALSE,LEFT($B166,3)<>\"NOX\"),BN57*INDEX('Damage costs'!$P$16:$P$43,MATCH($B166,'Damage costs'!$C$16:$C$43,0))/1000,BN57*INDEX('Damage costs'!$T$16:$T$43,MATCH($B166,'Damage costs'!$C$16:$C$43,0))/1000),\"\")","v":""},{"$f":"IFERROR(IF(OR($C$168=FALSE,LEFT($B166,3)<>\"NOX\"),BO57*INDEX('Damage costs'!$P$16:$P$43,MATCH($B166,'Damage costs'!$C$16:$C$43,0))/1000,BO57*INDEX('Damage costs'!$T$16:$T$43,MATCH($B166,'Damage costs'!$C$16:$C$43,0))/1000),\"\")","v":""},{"$f":"IFERROR(IF(OR($C$168=FALSE,LEFT($B166,3)<>\"NOX\"),BP57*INDEX('Damage costs'!$P$16:$P$43,MATCH($B166,'Damage costs'!$C$16:$C$43,0))/1000,BP57*INDEX('Damage costs'!$T$16:$T$43,MATCH($B166,'Damage costs'!$C$16:$C$43,0))/1000),\"\")","v":""},{"$f":"IFERROR(IF(OR($C$168=FALSE,LEFT($B166,3)<>\"NOX\"),BQ57*INDEX('Damage costs'!$P$16:$P$43,MATCH($B166,'Damage costs'!$C$16:$C$43,0))/1000,BQ57*INDEX('Damage costs'!$T$16:$T$43,MATCH($B166,'Damage costs'!$C$16:$C$43,0))/1000),\"\")","v":""},{"$f":"IFERROR(IF(OR($C$168=FALSE,LEFT($B166,3)<>\"NOX\"),BR57*INDEX('Damage costs'!$P$16:$P$43,MATCH($B166,'Damage costs'!$C$16:$C$43,0))/1000,BR57*INDEX('Damage costs'!$T$16:$T$43,MATCH($B166,'Damage costs'!$C$16:$C$43,0))/1000),\"\")","v":""},{"$f":"IFERROR(IF(OR($C$168=FALSE,LEFT($B166,3)<>\"NOX\"),BS57*INDEX('Damage costs'!$P$16:$P$43,MATCH($B166,'Damage costs'!$C$16:$C$43,0))/1000,BS57*INDEX('Damage costs'!$T$16:$T$43,MATCH($B166,'Damage costs'!$C$16:$C$43,0))/1000),\"\")","v":""},{"$f":"IFERROR(IF(OR($C$168=FALSE,LEFT($B166,3)<>\"NOX\"),BT57*INDEX('Damage costs'!$P$16:$P$43,MATCH($B166,'Damage costs'!$C$16:$C$43,0))/1000,BT57*INDEX('Damage costs'!$T$16:$T$43,MATCH($B166,'Damage costs'!$C$16:$C$43,0))/1000),\"\")","v":""},{"$f":"IFERROR(IF(OR($C$168=FALSE,LEFT($B166,3)<>\"NOX\"),BU57*INDEX('Damage costs'!$P$16:$P$43,MATCH($B166,'Damage costs'!$C$16:$C$43,0))/1000,BU57*INDEX('Damage costs'!$T$16:$T$43,MATCH($B166,'Damage costs'!$C$16:$C$43,0))/1000),\"\")","v":""},{"$f":"IFERROR(IF(OR($C$168=FALSE,LEFT($B166,3)<>\"NOX\"),BV57*INDEX('Damage costs'!$P$16:$P$43,MATCH($B166,'Damage costs'!$C$16:$C$43,0))/1000,BV57*INDEX('Damage costs'!$T$16:$T$43,MATCH($B166,'Damage costs'!$C$16:$C$43,0))/1000),\"\")","v":""},{"$f":"IFERROR(IF(OR($C$168=FALSE,LEFT($B166,3)<>\"NOX\"),BW57*INDEX('Damage costs'!$P$16:$P$43,MATCH($B166,'Damage costs'!$C$16:$C$43,0))/1000,BW57*INDEX('Damage costs'!$T$16:$T$43,MATCH($B166,'Damage costs'!$C$16:$C$43,0))/1000),\"\")","v":""},{"$f":"IFERROR(IF(OR($C$168=FALSE,LEFT($B166,3)<>\"NOX\"),BX57*INDEX('Damage costs'!$P$16:$P$43,MATCH($B166,'Damage costs'!$C$16:$C$43,0))/1000,BX57*INDEX('Damage costs'!$T$16:$T$43,MATCH($B166,'Damage costs'!$C$16:$C$43,0))/1000),\"\")","v":""},{"$f":"IFERROR(IF(OR($C$168=FALSE,LEFT($B166,3)<>\"NOX\"),BY57*INDEX('Damage costs'!$P$16:$P$43,MATCH($B166,'Damage costs'!$C$16:$C$43,0))/1000,BY57*INDEX('Damage costs'!$T$16:$T$43,MATCH($B166,'Damage costs'!$C$16:$C$43,0))/1000),\"\")","v":""},{"$f":"IFERROR(IF(OR($C$168=FALSE,LEFT($B166,3)<>\"NOX\"),BZ57*INDEX('Damage costs'!$P$16:$P$43,MATCH($B166,'Damage costs'!$C$16:$C$43,0))/1000,BZ57*INDEX('Damage costs'!$T$16:$T$43,MATCH($B166,'Damage costs'!$C$16:$C$43,0))/1000),\"\")","v":""},{"$f":"IFERROR(IF(OR($C$168=FALSE,LEFT($B166,3)<>\"NOX\"),CA57*INDEX('Damage costs'!$P$16:$P$43,MATCH($B166,'Damage costs'!$C$16:$C$43,0))/1000,CA57*INDEX('Damage costs'!$T$16:$T$43,MATCH($B166,'Damage costs'!$C$16:$C$43,0))/1000),\"\")","v":""},{"$f":"IFERROR(IF(OR($C$168=FALSE,LEFT($B166,3)<>\"NOX\"),CB57*INDEX('Damage costs'!$P$16:$P$43,MATCH($B166,'Damage costs'!$C$16:$C$43,0))/1000,CB57*INDEX('Damage costs'!$T$16:$T$43,MATCH($B166,'Damage costs'!$C$16:$C$43,0))/1000),\"\")","v":""},{"$f":"IFERROR(IF(OR($C$168=FALSE,LEFT($B166,3)<>\"NOX\"),CC57*INDEX('Damage costs'!$P$16:$P$43,MATCH($B166,'Damage costs'!$C$16:$C$43,0))/1000,CC57*INDEX('Damage costs'!$T$16:$T$43,MATCH($B166,'Damage costs'!$C$16:$C$43,0))/1000),\"\")","v":""},{"$f":"IFERROR(IF(OR($C$168=FALSE,LEFT($B166,3)<>\"NOX\"),CD57*INDEX('Damage costs'!$P$16:$P$43,MATCH($B166,'Damage costs'!$C$16:$C$43,0))/1000,CD57*INDEX('Damage costs'!$T$16:$T$43,MATCH($B166,'Damage costs'!$C$16:$C$43,0))/1000),\"\")","v":""},{"$f":"IFERROR(IF(OR($C$168=FALSE,LEFT($B166,3)<>\"NOX\"),CE57*INDEX('Damage costs'!$P$16:$P$43,MATCH($B166,'Damage costs'!$C$16:$C$43,0))/1000,CE57*INDEX('Damage costs'!$T$16:$T$43,MATCH($B166,'Damage costs'!$C$16:$C$43,0))/1000),\"\")","v":""},{"$f":"IFERROR(IF(OR($C$168=FALSE,LEFT($B166,3)<>\"NOX\"),CF57*INDEX('Damage costs'!$P$16:$P$43,MATCH($B166,'Damage costs'!$C$16:$C$43,0))/1000,CF57*INDEX('Damage costs'!$T$16:$T$43,MATCH($B166,'Damage costs'!$C$16:$C$43,0))/1000),\"\")","v":""},{"$f":"IFERROR(IF(OR($C$168=FALSE,LEFT($B166,3)<>\"NOX\"),CG57*INDEX('Damage costs'!$P$16:$P$43,MATCH($B166,'Damage costs'!$C$16:$C$43,0))/1000,CG57*INDEX('Damage costs'!$T$16:$T$43,MATCH($B166,'Damage costs'!$C$16:$C$43,0))/1000),\"\")","v":""},{"$f":"IFERROR(IF(OR($C$168=FALSE,LEFT($B166,3)<>\"NOX\"),CH57*INDEX('Damage costs'!$P$16:$P$43,MATCH($B166,'Damage costs'!$C$16:$C$43,0))/1000,CH57*INDEX('Damage costs'!$T$16:$T$43,MATCH($B166,'Damage costs'!$C$16:$C$43,0))/1000),\"\")","v":""},{"$f":"IFERROR(IF(OR($C$168=FALSE,LEFT($B166,3)<>\"NOX\"),CI57*INDEX('Damage costs'!$P$16:$P$43,MATCH($B166,'Damage costs'!$C$16:$C$43,0))/1000,CI57*INDEX('Damage costs'!$T$16:$T$43,MATCH($B166,'Damage costs'!$C$16:$C$43,0))/1000),\"\")","v":""},{"$f":"IFERROR(IF(OR($C$168=FALSE,LEFT($B166,3)<>\"NOX\"),CJ57*INDEX('Damage costs'!$P$16:$P$43,MATCH($B166,'Damage costs'!$C$16:$C$43,0))/1000,CJ57*INDEX('Damage costs'!$T$16:$T$43,MATCH($B166,'Damage costs'!$C$16:$C$43,0))/1000),\"\")","v":""},{"$f":"IFERROR(IF(OR($C$168=FALSE,LEFT($B166,3)<>\"NOX\"),CK57*INDEX('Damage costs'!$P$16:$P$43,MATCH($B166,'Damage costs'!$C$16:$C$43,0))/1000,CK57*INDEX('Damage costs'!$T$16:$T$43,MATCH($B166,'Damage costs'!$C$16:$C$43,0))/1000),\"\")","v":""},{"$f":"IFERROR(IF(OR($C$168=FALSE,LEFT($B166,3)<>\"NOX\"),CL57*INDEX('Damage costs'!$P$16:$P$43,MATCH($B166,'Damage costs'!$C$16:$C$43,0))/1000,CL57*INDEX('Damage costs'!$T$16:$T$43,MATCH($B166,'Damage costs'!$C$16:$C$43,0))/1000),\"\")","v":""},{"$f":"IFERROR(IF(OR($C$168=FALSE,LEFT($B166,3)<>\"NOX\"),CM57*INDEX('Damage costs'!$P$16:$P$43,MATCH($B166,'Damage costs'!$C$16:$C$43,0))/1000,CM57*INDEX('Damage costs'!$T$16:$T$43,MATCH($B166,'Damage costs'!$C$16:$C$43,0))/1000),\"\")","v":""},{"$f":"IFERROR(IF(OR($C$168=FALSE,LEFT($B166,3)<>\"NOX\"),CN57*INDEX('Damage costs'!$P$16:$P$43,MATCH($B166,'Damage costs'!$C$16:$C$43,0))/1000,CN57*INDEX('Damage costs'!$T$16:$T$43,MATCH($B166,'Damage costs'!$C$16:$C$43,0))/1000),\"\")","v":""},{"$f":"IFERROR(IF(OR($C$168=FALSE,LEFT($B166,3)<>\"NOX\"),CO57*INDEX('Damage costs'!$P$16:$P$43,MATCH($B166,'Damage costs'!$C$16:$C$43,0))/1000,CO57*INDEX('Damage costs'!$T$16:$T$43,MATCH($B166,'Damage costs'!$C$16:$C$43,0))/1000),\"\")","v":""},{"$f":"IFERROR(IF(OR($C$168=FALSE,LEFT($B166,3)<>\"NOX\"),CP57*INDEX('Damage costs'!$P$16:$P$43,MATCH($B166,'Damage costs'!$C$16:$C$43,0))/1000,CP57*INDEX('Damage costs'!$T$16:$T$43,MATCH($B166,'Damage costs'!$C$16:$C$43,0))/1000),\"\")","v":""},{"$f":"IFERROR(IF(OR($C$168=FALSE,LEFT($B166,3)<>\"NOX\"),CQ57*INDEX('Damage costs'!$P$16:$P$43,MATCH($B166,'Damage costs'!$C$16:$C$43,0))/1000,CQ57*INDEX('Damage costs'!$T$16:$T$43,MATCH($B166,'Damage costs'!$C$16:$C$43,0))/1000),\"\")","v":""},{"$f":"IFERROR(IF(OR($C$168=FALSE,LEFT($B166,3)<>\"NOX\"),CR57*INDEX('Damage costs'!$P$16:$P$43,MATCH($B166,'Damage costs'!$C$16:$C$43,0))/1000,CR57*INDEX('Damage costs'!$T$16:$T$43,MATCH($B166,'Damage costs'!$C$16:$C$43,0))/1000),\"\")","v":""},{"$f":"IFERROR(IF(OR($C$168=FALSE,LEFT($B166,3)<>\"NOX\"),CS57*INDEX('Damage costs'!$P$16:$P$43,MATCH($B166,'Damage costs'!$C$16:$C$43,0))/1000,CS57*INDEX('Damage costs'!$T$16:$T$43,MATCH($B166,'Damage costs'!$C$16:$C$43,0))/1000),\"\")","v":""},{"$f":"IFERROR(IF(OR($C$168=FALSE,LEFT($B166,3)<>\"NOX\"),CT57*INDEX('Damage costs'!$P$16:$P$43,MATCH($B166,'Damage costs'!$C$16:$C$43,0))/1000,CT57*INDEX('Damage costs'!$T$16:$T$43,MATCH($B166,'Damage costs'!$C$16:$C$43,0))/1000),\"\")","v":""},{"$f":"IFERROR(IF(OR($C$168=FALSE,LEFT($B166,3)<>\"NOX\"),CU57*INDEX('Damage costs'!$P$16:$P$43,MATCH($B166,'Damage costs'!$C$16:$C$43,0))/1000,CU57*INDEX('Damage costs'!$T$16:$T$43,MATCH($B166,'Damage costs'!$C$16:$C$43,0))/1000),\"\")","v":""},{"$f":"IFERROR(IF(OR($C$168=FALSE,LEFT($B166,3)<>\"NOX\"),CV57*INDEX('Damage costs'!$P$16:$P$43,MATCH($B166,'Damage costs'!$C$16:$C$43,0))/1000,CV57*INDEX('Damage costs'!$T$16:$T$43,MATCH($B166,'Damage costs'!$C$16:$C$43,0))/1000),\"\")","v":""},{"$f":"IFERROR(IF(OR($C$168=FALSE,LEFT($B166,3)<>\"NOX\"),CW57*INDEX('Damage costs'!$P$16:$P$43,MATCH($B166,'Damage costs'!$C$16:$C$43,0))/1000,CW57*INDEX('Damage costs'!$T$16:$T$43,MATCH($B166,'Damage costs'!$C$16:$C$43,0))/1000),\"\")","v":""},{"$f":"IFERROR(IF(OR($C$168=FALSE,LEFT($B166,3)<>\"NOX\"),CX57*INDEX('Damage costs'!$P$16:$P$43,MATCH($B166,'Damage costs'!$C$16:$C$43,0))/1000,CX57*INDEX('Damage costs'!$T$16:$T$43,MATCH($B166,'Damage costs'!$C$16:$C$43,0))/1000),\"\")","v":""},{"$f":"IFERROR(IF(OR($C$168=FALSE,LEFT($B166,3)<>\"NOX\"),CY57*INDEX('Damage costs'!$P$16:$P$43,MATCH($B166,'Damage costs'!$C$16:$C$43,0))/1000,CY57*INDEX('Damage costs'!$T$16:$T$43,MATCH($B166,'Damage costs'!$C$16:$C$43,0))/1000),\"\")","v":""}]
[null,0,"£000's",{"$f":"IFERROR(IF(OR($C$168=FALSE,LEFT($B167,3)<>\"NOX\"),D58*INDEX('Damage costs'!$P$16:$P$43,MATCH($B167,'Damage costs'!$C$16:$C$43,0))/1000,D58*INDEX('Damage costs'!$T$16:$T$43,MATCH($B167,'Damage costs'!$C$16:$C$43,0))/1000),\"\")","v":""},{"$f":"IFERROR(IF(OR($C$168=FALSE,LEFT($B167,3)<>\"NOX\"),E58*INDEX('Damage costs'!$P$16:$P$43,MATCH($B167,'Damage costs'!$C$16:$C$43,0))/1000,E58*INDEX('Damage costs'!$T$16:$T$43,MATCH($B167,'Damage costs'!$C$16:$C$43,0))/1000),\"\")","v":""},{"$f":"IFERROR(IF(OR($C$168=FALSE,LEFT($B167,3)<>\"NOX\"),F58*INDEX('Damage costs'!$P$16:$P$43,MATCH($B167,'Damage costs'!$C$16:$C$43,0))/1000,F58*INDEX('Damage costs'!$T$16:$T$43,MATCH($B167,'Damage costs'!$C$16:$C$43,0))/1000),\"\")","v":""},{"$f":"IFERROR(IF(OR($C$168=FALSE,LEFT($B167,3)<>\"NOX\"),G58*INDEX('Damage costs'!$P$16:$P$43,MATCH($B167,'Damage costs'!$C$16:$C$43,0))/1000,G58*INDEX('Damage costs'!$T$16:$T$43,MATCH($B167,'Damage costs'!$C$16:$C$43,0))/1000),\"\")","v":""},{"$f":"IFERROR(IF(OR($C$168=FALSE,LEFT($B167,3)<>\"NOX\"),H58*INDEX('Damage costs'!$P$16:$P$43,MATCH($B167,'Damage costs'!$C$16:$C$43,0))/1000,H58*INDEX('Damage costs'!$T$16:$T$43,MATCH($B167,'Damage costs'!$C$16:$C$43,0))/1000),\"\")","v":""},{"$f":"IFERROR(IF(OR($C$168=FALSE,LEFT($B167,3)<>\"NOX\"),I58*INDEX('Damage costs'!$P$16:$P$43,MATCH($B167,'Damage costs'!$C$16:$C$43,0))/1000,I58*INDEX('Damage costs'!$T$16:$T$43,MATCH($B167,'Damage costs'!$C$16:$C$43,0))/1000),\"\")","v":""},{"$f":"IFERROR(IF(OR($C$168=FALSE,LEFT($B167,3)<>\"NOX\"),J58*INDEX('Damage costs'!$P$16:$P$43,MATCH($B167,'Damage costs'!$C$16:$C$43,0))/1000,J58*INDEX('Damage costs'!$T$16:$T$43,MATCH($B167,'Damage costs'!$C$16:$C$43,0))/1000),\"\")","v":""},{"$f":"IFERROR(IF(OR($C$168=FALSE,LEFT($B167,3)<>\"NOX\"),K58*INDEX('Damage costs'!$P$16:$P$43,MATCH($B167,'Damage costs'!$C$16:$C$43,0))/1000,K58*INDEX('Damage costs'!$T$16:$T$43,MATCH($B167,'Damage costs'!$C$16:$C$43,0))/1000),\"\")","v":""},{"$f":"IFERROR(IF(OR($C$168=FALSE,LEFT($B167,3)<>\"NOX\"),L58*INDEX('Damage costs'!$P$16:$P$43,MATCH($B167,'Damage costs'!$C$16:$C$43,0))/1000,L58*INDEX('Damage costs'!$T$16:$T$43,MATCH($B167,'Damage costs'!$C$16:$C$43,0))/1000),\"\")","v":""},{"$f":"IFERROR(IF(OR($C$168=FALSE,LEFT($B167,3)<>\"NOX\"),M58*INDEX('Damage costs'!$P$16:$P$43,MATCH($B167,'Damage costs'!$C$16:$C$43,0))/1000,M58*INDEX('Damage costs'!$T$16:$T$43,MATCH($B167,'Damage costs'!$C$16:$C$43,0))/1000),\"\")","v":""},{"$f":"IFERROR(IF(OR($C$168=FALSE,LEFT($B167,3)<>\"NOX\"),N58*INDEX('Damage costs'!$P$16:$P$43,MATCH($B167,'Damage costs'!$C$16:$C$43,0))/1000,N58*INDEX('Damage costs'!$T$16:$T$43,MATCH($B167,'Damage costs'!$C$16:$C$43,0))/1000),\"\")","v":""},{"$f":"IFERROR(IF(OR($C$168=FALSE,LEFT($B167,3)<>\"NOX\"),O58*INDEX('Damage costs'!$P$16:$P$43,MATCH($B167,'Damage costs'!$C$16:$C$43,0))/1000,O58*INDEX('Damage costs'!$T$16:$T$43,MATCH($B167,'Damage costs'!$C$16:$C$43,0))/1000),\"\")","v":""},{"$f":"IFERROR(IF(OR($C$168=FALSE,LEFT($B167,3)<>\"NOX\"),P58*INDEX('Damage costs'!$P$16:$P$43,MATCH($B167,'Damage costs'!$C$16:$C$43,0))/1000,P58*INDEX('Damage costs'!$T$16:$T$43,MATCH($B167,'Damage costs'!$C$16:$C$43,0))/1000),\"\")","v":""},{"$f":"IFERROR(IF(OR($C$168=FALSE,LEFT($B167,3)<>\"NOX\"),Q58*INDEX('Damage costs'!$P$16:$P$43,MATCH($B167,'Damage costs'!$C$16:$C$43,0))/1000,Q58*INDEX('Damage costs'!$T$16:$T$43,MATCH($B167,'Damage costs'!$C$16:$C$43,0))/1000),\"\")","v":""},{"$f":"IFERROR(IF(OR($C$168=FALSE,LEFT($B167,3)<>\"NOX\"),R58*INDEX('Damage costs'!$P$16:$P$43,MATCH($B167,'Damage costs'!$C$16:$C$43,0))/1000,R58*INDEX('Damage costs'!$T$16:$T$43,MATCH($B167,'Damage costs'!$C$16:$C$43,0))/1000),\"\")","v":""},{"$f":"IFERROR(IF(OR($C$168=FALSE,LEFT($B167,3)<>\"NOX\"),S58*INDEX('Damage costs'!$P$16:$P$43,MATCH($B167,'Damage costs'!$C$16:$C$43,0))/1000,S58*INDEX('Damage costs'!$T$16:$T$43,MATCH($B167,'Damage costs'!$C$16:$C$43,0))/1000),\"\")","v":""},{"$f":"IFERROR(IF(OR($C$168=FALSE,LEFT($B167,3)<>\"NOX\"),T58*INDEX('Damage costs'!$P$16:$P$43,MATCH($B167,'Damage costs'!$C$16:$C$43,0))/1000,T58*INDEX('Damage costs'!$T$16:$T$43,MATCH($B167,'Damage costs'!$C$16:$C$43,0))/1000),\"\")","v":""},{"$f":"IFERROR(IF(OR($C$168=FALSE,LEFT($B167,3)<>\"NOX\"),U58*INDEX('Damage costs'!$P$16:$P$43,MATCH($B167,'Damage costs'!$C$16:$C$43,0))/1000,U58*INDEX('Damage costs'!$T$16:$T$43,MATCH($B167,'Damage costs'!$C$16:$C$43,0))/1000),\"\")","v":""},{"$f":"IFERROR(IF(OR($C$168=FALSE,LEFT($B167,3)<>\"NOX\"),V58*INDEX('Damage costs'!$P$16:$P$43,MATCH($B167,'Damage costs'!$C$16:$C$43,0))/1000,V58*INDEX('Damage costs'!$T$16:$T$43,MATCH($B167,'Damage costs'!$C$16:$C$43,0))/1000),\"\")","v":""},{"$f":"IFERROR(IF(OR($C$168=FALSE,LEFT($B167,3)<>\"NOX\"),W58*INDEX('Damage costs'!$P$16:$P$43,MATCH($B167,'Damage costs'!$C$16:$C$43,0))/1000,W58*INDEX('Damage costs'!$T$16:$T$43,MATCH($B167,'Damage costs'!$C$16:$C$43,0))/1000),\"\")","v":""},{"$f":"IFERROR(IF(OR($C$168=FALSE,LEFT($B167,3)<>\"NOX\"),X58*INDEX('Damage costs'!$P$16:$P$43,MATCH($B167,'Damage costs'!$C$16:$C$43,0))/1000,X58*INDEX('Damage costs'!$T$16:$T$43,MATCH($B167,'Damage costs'!$C$16:$C$43,0))/1000),\"\")","v":""},{"$f":"IFERROR(IF(OR($C$168=FALSE,LEFT($B167,3)<>\"NOX\"),Y58*INDEX('Damage costs'!$P$16:$P$43,MATCH($B167,'Damage costs'!$C$16:$C$43,0))/1000,Y58*INDEX('Damage costs'!$T$16:$T$43,MATCH($B167,'Damage costs'!$C$16:$C$43,0))/1000),\"\")","v":""},{"$f":"IFERROR(IF(OR($C$168=FALSE,LEFT($B167,3)<>\"NOX\"),Z58*INDEX('Damage costs'!$P$16:$P$43,MATCH($B167,'Damage costs'!$C$16:$C$43,0))/1000,Z58*INDEX('Damage costs'!$T$16:$T$43,MATCH($B167,'Damage costs'!$C$16:$C$43,0))/1000),\"\")","v":""},{"$f":"IFERROR(IF(OR($C$168=FALSE,LEFT($B167,3)<>\"NOX\"),AA58*INDEX('Damage costs'!$P$16:$P$43,MATCH($B167,'Damage costs'!$C$16:$C$43,0))/1000,AA58*INDEX('Damage costs'!$T$16:$T$43,MATCH($B167,'Damage costs'!$C$16:$C$43,0))/1000),\"\")","v":""},{"$f":"IFERROR(IF(OR($C$168=FALSE,LEFT($B167,3)<>\"NOX\"),AB58*INDEX('Damage costs'!$P$16:$P$43,MATCH($B167,'Damage costs'!$C$16:$C$43,0))/1000,AB58*INDEX('Damage costs'!$T$16:$T$43,MATCH($B167,'Damage costs'!$C$16:$C$43,0))/1000),\"\")","v":""},{"$f":"IFERROR(IF(OR($C$168=FALSE,LEFT($B167,3)<>\"NOX\"),AC58*INDEX('Damage costs'!$P$16:$P$43,MATCH($B167,'Damage costs'!$C$16:$C$43,0))/1000,AC58*INDEX('Damage costs'!$T$16:$T$43,MATCH($B167,'Damage costs'!$C$16:$C$43,0))/1000),\"\")","v":""},{"$f":"IFERROR(IF(OR($C$168=FALSE,LEFT($B167,3)<>\"NOX\"),AD58*INDEX('Damage costs'!$P$16:$P$43,MATCH($B167,'Damage costs'!$C$16:$C$43,0))/1000,AD58*INDEX('Damage costs'!$T$16:$T$43,MATCH($B167,'Damage costs'!$C$16:$C$43,0))/1000),\"\")","v":""},{"$f":"IFERROR(IF(OR($C$168=FALSE,LEFT($B167,3)<>\"NOX\"),AE58*INDEX('Damage costs'!$P$16:$P$43,MATCH($B167,'Damage costs'!$C$16:$C$43,0))/1000,AE58*INDEX('Damage costs'!$T$16:$T$43,MATCH($B167,'Damage costs'!$C$16:$C$43,0))/1000),\"\")","v":""},{"$f":"IFERROR(IF(OR($C$168=FALSE,LEFT($B167,3)<>\"NOX\"),AF58*INDEX('Damage costs'!$P$16:$P$43,MATCH($B167,'Damage costs'!$C$16:$C$43,0))/1000,AF58*INDEX('Damage costs'!$T$16:$T$43,MATCH($B167,'Damage costs'!$C$16:$C$43,0))/1000),\"\")","v":""},{"$f":"IFERROR(IF(OR($C$168=FALSE,LEFT($B167,3)<>\"NOX\"),AG58*INDEX('Damage costs'!$P$16:$P$43,MATCH($B167,'Damage costs'!$C$16:$C$43,0))/1000,AG58*INDEX('Damage costs'!$T$16:$T$43,MATCH($B167,'Damage costs'!$C$16:$C$43,0))/1000),\"\")","v":""},{"$f":"IFERROR(IF(OR($C$168=FALSE,LEFT($B167,3)<>\"NOX\"),AH58*INDEX('Damage costs'!$P$16:$P$43,MATCH($B167,'Damage costs'!$C$16:$C$43,0))/1000,AH58*INDEX('Damage costs'!$T$16:$T$43,MATCH($B167,'Damage costs'!$C$16:$C$43,0))/1000),\"\")","v":""},{"$f":"IFERROR(IF(OR($C$168=FALSE,LEFT($B167,3)<>\"NOX\"),AI58*INDEX('Damage costs'!$P$16:$P$43,MATCH($B167,'Damage costs'!$C$16:$C$43,0))/1000,AI58*INDEX('Damage costs'!$T$16:$T$43,MATCH($B167,'Damage costs'!$C$16:$C$43,0))/1000),\"\")","v":""},{"$f":"IFERROR(IF(OR($C$168=FALSE,LEFT($B167,3)<>\"NOX\"),AJ58*INDEX('Damage costs'!$P$16:$P$43,MATCH($B167,'Damage costs'!$C$16:$C$43,0))/1000,AJ58*INDEX('Damage costs'!$T$16:$T$43,MATCH($B167,'Damage costs'!$C$16:$C$43,0))/1000),\"\")","v":""},{"$f":"IFERROR(IF(OR($C$168=FALSE,LEFT($B167,3)<>\"NOX\"),AK58*INDEX('Damage costs'!$P$16:$P$43,MATCH($B167,'Damage costs'!$C$16:$C$43,0))/1000,AK58*INDEX('Damage costs'!$T$16:$T$43,MATCH($B167,'Damage costs'!$C$16:$C$43,0))/1000),\"\")","v":""},{"$f":"IFERROR(IF(OR($C$168=FALSE,LEFT($B167,3)<>\"NOX\"),AL58*INDEX('Damage costs'!$P$16:$P$43,MATCH($B167,'Damage costs'!$C$16:$C$43,0))/1000,AL58*INDEX('Damage costs'!$T$16:$T$43,MATCH($B167,'Damage costs'!$C$16:$C$43,0))/1000),\"\")","v":""},{"$f":"IFERROR(IF(OR($C$168=FALSE,LEFT($B167,3)<>\"NOX\"),AM58*INDEX('Damage costs'!$P$16:$P$43,MATCH($B167,'Damage costs'!$C$16:$C$43,0))/1000,AM58*INDEX('Damage costs'!$T$16:$T$43,MATCH($B167,'Damage costs'!$C$16:$C$43,0))/1000),\"\")","v":""},{"$f":"IFERROR(IF(OR($C$168=FALSE,LEFT($B167,3)<>\"NOX\"),AN58*INDEX('Damage costs'!$P$16:$P$43,MATCH($B167,'Damage costs'!$C$16:$C$43,0))/1000,AN58*INDEX('Damage costs'!$T$16:$T$43,MATCH($B167,'Damage costs'!$C$16:$C$43,0))/1000),\"\")","v":""},{"$f":"IFERROR(IF(OR($C$168=FALSE,LEFT($B167,3)<>\"NOX\"),AO58*INDEX('Damage costs'!$P$16:$P$43,MATCH($B167,'Damage costs'!$C$16:$C$43,0))/1000,AO58*INDEX('Damage costs'!$T$16:$T$43,MATCH($B167,'Damage costs'!$C$16:$C$43,0))/1000),\"\")","v":""},{"$f":"IFERROR(IF(OR($C$168=FALSE,LEFT($B167,3)<>\"NOX\"),AP58*INDEX('Damage costs'!$P$16:$P$43,MATCH($B167,'Damage costs'!$C$16:$C$43,0))/1000,AP58*INDEX('Damage costs'!$T$16:$T$43,MATCH($B167,'Damage costs'!$C$16:$C$43,0))/1000),\"\")","v":""},{"$f":"IFERROR(IF(OR($C$168=FALSE,LEFT($B167,3)<>\"NOX\"),AQ58*INDEX('Damage costs'!$P$16:$P$43,MATCH($B167,'Damage costs'!$C$16:$C$43,0))/1000,AQ58*INDEX('Damage costs'!$T$16:$T$43,MATCH($B167,'Damage costs'!$C$16:$C$43,0))/1000),\"\")","v":""},{"$f":"IFERROR(IF(OR($C$168=FALSE,LEFT($B167,3)<>\"NOX\"),AR58*INDEX('Damage costs'!$P$16:$P$43,MATCH($B167,'Damage costs'!$C$16:$C$43,0))/1000,AR58*INDEX('Damage costs'!$T$16:$T$43,MATCH($B167,'Damage costs'!$C$16:$C$43,0))/1000),\"\")","v":""},{"$f":"IFERROR(IF(OR($C$168=FALSE,LEFT($B167,3)<>\"NOX\"),AS58*INDEX('Damage costs'!$P$16:$P$43,MATCH($B167,'Damage costs'!$C$16:$C$43,0))/1000,AS58*INDEX('Damage costs'!$T$16:$T$43,MATCH($B167,'Damage costs'!$C$16:$C$43,0))/1000),\"\")","v":""},{"$f":"IFERROR(IF(OR($C$168=FALSE,LEFT($B167,3)<>\"NOX\"),AT58*INDEX('Damage costs'!$P$16:$P$43,MATCH($B167,'Damage costs'!$C$16:$C$43,0))/1000,AT58*INDEX('Damage costs'!$T$16:$T$43,MATCH($B167,'Damage costs'!$C$16:$C$43,0))/1000),\"\")","v":""},{"$f":"IFERROR(IF(OR($C$168=FALSE,LEFT($B167,3)<>\"NOX\"),AU58*INDEX('Damage costs'!$P$16:$P$43,MATCH($B167,'Damage costs'!$C$16:$C$43,0))/1000,AU58*INDEX('Damage costs'!$T$16:$T$43,MATCH($B167,'Damage costs'!$C$16:$C$43,0))/1000),\"\")","v":""},{"$f":"IFERROR(IF(OR($C$168=FALSE,LEFT($B167,3)<>\"NOX\"),AV58*INDEX('Damage costs'!$P$16:$P$43,MATCH($B167,'Damage costs'!$C$16:$C$43,0))/1000,AV58*INDEX('Damage costs'!$T$16:$T$43,MATCH($B167,'Damage costs'!$C$16:$C$43,0))/1000),\"\")","v":""},{"$f":"IFERROR(IF(OR($C$168=FALSE,LEFT($B167,3)<>\"NOX\"),AW58*INDEX('Damage costs'!$P$16:$P$43,MATCH($B167,'Damage costs'!$C$16:$C$43,0))/1000,AW58*INDEX('Damage costs'!$T$16:$T$43,MATCH($B167,'Damage costs'!$C$16:$C$43,0))/1000),\"\")","v":""},{"$f":"IFERROR(IF(OR($C$168=FALSE,LEFT($B167,3)<>\"NOX\"),AX58*INDEX('Damage costs'!$P$16:$P$43,MATCH($B167,'Damage costs'!$C$16:$C$43,0))/1000,AX58*INDEX('Damage costs'!$T$16:$T$43,MATCH($B167,'Damage costs'!$C$16:$C$43,0))/1000),\"\")","v":""},{"$f":"IFERROR(IF(OR($C$168=FALSE,LEFT($B167,3)<>\"NOX\"),AY58*INDEX('Damage costs'!$P$16:$P$43,MATCH($B167,'Damage costs'!$C$16:$C$43,0))/1000,AY58*INDEX('Damage costs'!$T$16:$T$43,MATCH($B167,'Damage costs'!$C$16:$C$43,0))/1000),\"\")","v":""},{"$f":"IFERROR(IF(OR($C$168=FALSE,LEFT($B167,3)<>\"NOX\"),AZ58*INDEX('Damage costs'!$P$16:$P$43,MATCH($B167,'Damage costs'!$C$16:$C$43,0))/1000,AZ58*INDEX('Damage costs'!$T$16:$T$43,MATCH($B167,'Damage costs'!$C$16:$C$43,0))/1000),\"\")","v":""},{"$f":"IFERROR(IF(OR($C$168=FALSE,LEFT($B167,3)<>\"NOX\"),BA58*INDEX('Damage costs'!$P$16:$P$43,MATCH($B167,'Damage costs'!$C$16:$C$43,0))/1000,BA58*INDEX('Damage costs'!$T$16:$T$43,MATCH($B167,'Damage costs'!$C$16:$C$43,0))/1000),\"\")","v":""},{"$f":"IFERROR(IF(OR($C$168=FALSE,LEFT($B167,3)<>\"NOX\"),BB58*INDEX('Damage costs'!$P$16:$P$43,MATCH($B167,'Damage costs'!$C$16:$C$43,0))/1000,BB58*INDEX('Damage costs'!$T$16:$T$43,MATCH($B167,'Damage costs'!$C$16:$C$43,0))/1000),\"\")","v":""},{"$f":"IFERROR(IF(OR($C$168=FALSE,LEFT($B167,3)<>\"NOX\"),BC58*INDEX('Damage costs'!$P$16:$P$43,MATCH($B167,'Damage costs'!$C$16:$C$43,0))/1000,BC58*INDEX('Damage costs'!$T$16:$T$43,MATCH($B167,'Damage costs'!$C$16:$C$43,0))/1000),\"\")","v":""},{"$f":"IFERROR(IF(OR($C$168=FALSE,LEFT($B167,3)<>\"NOX\"),BD58*INDEX('Damage costs'!$P$16:$P$43,MATCH($B167,'Damage costs'!$C$16:$C$43,0))/1000,BD58*INDEX('Damage costs'!$T$16:$T$43,MATCH($B167,'Damage costs'!$C$16:$C$43,0))/1000),\"\")","v":""},{"$f":"IFERROR(IF(OR($C$168=FALSE,LEFT($B167,3)<>\"NOX\"),BE58*INDEX('Damage costs'!$P$16:$P$43,MATCH($B167,'Damage costs'!$C$16:$C$43,0))/1000,BE58*INDEX('Damage costs'!$T$16:$T$43,MATCH($B167,'Damage costs'!$C$16:$C$43,0))/1000),\"\")","v":""},{"$f":"IFERROR(IF(OR($C$168=FALSE,LEFT($B167,3)<>\"NOX\"),BF58*INDEX('Damage costs'!$P$16:$P$43,MATCH($B167,'Damage costs'!$C$16:$C$43,0))/1000,BF58*INDEX('Damage costs'!$T$16:$T$43,MATCH($B167,'Damage costs'!$C$16:$C$43,0))/1000),\"\")","v":""},{"$f":"IFERROR(IF(OR($C$168=FALSE,LEFT($B167,3)<>\"NOX\"),BG58*INDEX('Damage costs'!$P$16:$P$43,MATCH($B167,'Damage costs'!$C$16:$C$43,0))/1000,BG58*INDEX('Damage costs'!$T$16:$T$43,MATCH($B167,'Damage costs'!$C$16:$C$43,0))/1000),\"\")","v":""},{"$f":"IFERROR(IF(OR($C$168=FALSE,LEFT($B167,3)<>\"NOX\"),BH58*INDEX('Damage costs'!$P$16:$P$43,MATCH($B167,'Damage costs'!$C$16:$C$43,0))/1000,BH58*INDEX('Damage costs'!$T$16:$T$43,MATCH($B167,'Damage costs'!$C$16:$C$43,0))/1000),\"\")","v":""},{"$f":"IFERROR(IF(OR($C$168=FALSE,LEFT($B167,3)<>\"NOX\"),BI58*INDEX('Damage costs'!$P$16:$P$43,MATCH($B167,'Damage costs'!$C$16:$C$43,0))/1000,BI58*INDEX('Damage costs'!$T$16:$T$43,MATCH($B167,'Damage costs'!$C$16:$C$43,0))/1000),\"\")","v":""},{"$f":"IFERROR(IF(OR($C$168=FALSE,LEFT($B167,3)<>\"NOX\"),BJ58*INDEX('Damage costs'!$P$16:$P$43,MATCH($B167,'Damage costs'!$C$16:$C$43,0))/1000,BJ58*INDEX('Damage costs'!$T$16:$T$43,MATCH($B167,'Damage costs'!$C$16:$C$43,0))/1000),\"\")","v":""},{"$f":"IFERROR(IF(OR($C$168=FALSE,LEFT($B167,3)<>\"NOX\"),BK58*INDEX('Damage costs'!$P$16:$P$43,MATCH($B167,'Damage costs'!$C$16:$C$43,0))/1000,BK58*INDEX('Damage costs'!$T$16:$T$43,MATCH($B167,'Damage costs'!$C$16:$C$43,0))/1000),\"\")","v":""},{"$f":"IFERROR(IF(OR($C$168=FALSE,LEFT($B167,3)<>\"NOX\"),BL58*INDEX('Damage costs'!$P$16:$P$43,MATCH($B167,'Damage costs'!$C$16:$C$43,0))/1000,BL58*INDEX('Damage costs'!$T$16:$T$43,MATCH($B167,'Damage costs'!$C$16:$C$43,0))/1000),\"\")","v":""},{"$f":"IFERROR(IF(OR($C$168=FALSE,LEFT($B167,3)<>\"NOX\"),BM58*INDEX('Damage costs'!$P$16:$P$43,MATCH($B167,'Damage costs'!$C$16:$C$43,0))/1000,BM58*INDEX('Damage costs'!$T$16:$T$43,MATCH($B167,'Damage costs'!$C$16:$C$43,0))/1000),\"\")","v":""},{"$f":"IFERROR(IF(OR($C$168=FALSE,LEFT($B167,3)<>\"NOX\"),BN58*INDEX('Damage costs'!$P$16:$P$43,MATCH($B167,'Damage costs'!$C$16:$C$43,0))/1000,BN58*INDEX('Damage costs'!$T$16:$T$43,MATCH($B167,'Damage costs'!$C$16:$C$43,0))/1000),\"\")","v":""},{"$f":"IFERROR(IF(OR($C$168=FALSE,LEFT($B167,3)<>\"NOX\"),BO58*INDEX('Damage costs'!$P$16:$P$43,MATCH($B167,'Damage costs'!$C$16:$C$43,0))/1000,BO58*INDEX('Damage costs'!$T$16:$T$43,MATCH($B167,'Damage costs'!$C$16:$C$43,0))/1000),\"\")","v":""},{"$f":"IFERROR(IF(OR($C$168=FALSE,LEFT($B167,3)<>\"NOX\"),BP58*INDEX('Damage costs'!$P$16:$P$43,MATCH($B167,'Damage costs'!$C$16:$C$43,0))/1000,BP58*INDEX('Damage costs'!$T$16:$T$43,MATCH($B167,'Damage costs'!$C$16:$C$43,0))/1000),\"\")","v":""},{"$f":"IFERROR(IF(OR($C$168=FALSE,LEFT($B167,3)<>\"NOX\"),BQ58*INDEX('Damage costs'!$P$16:$P$43,MATCH($B167,'Damage costs'!$C$16:$C$43,0))/1000,BQ58*INDEX('Damage costs'!$T$16:$T$43,MATCH($B167,'Damage costs'!$C$16:$C$43,0))/1000),\"\")","v":""},{"$f":"IFERROR(IF(OR($C$168=FALSE,LEFT($B167,3)<>\"NOX\"),BR58*INDEX('Damage costs'!$P$16:$P$43,MATCH($B167,'Damage costs'!$C$16:$C$43,0))/1000,BR58*INDEX('Damage costs'!$T$16:$T$43,MATCH($B167,'Damage costs'!$C$16:$C$43,0))/1000),\"\")","v":""},{"$f":"IFERROR(IF(OR($C$168=FALSE,LEFT($B167,3)<>\"NOX\"),BS58*INDEX('Damage costs'!$P$16:$P$43,MATCH($B167,'Damage costs'!$C$16:$C$43,0))/1000,BS58*INDEX('Damage costs'!$T$16:$T$43,MATCH($B167,'Damage costs'!$C$16:$C$43,0))/1000),\"\")","v":""},{"$f":"IFERROR(IF(OR($C$168=FALSE,LEFT($B167,3)<>\"NOX\"),BT58*INDEX('Damage costs'!$P$16:$P$43,MATCH($B167,'Damage costs'!$C$16:$C$43,0))/1000,BT58*INDEX('Damage costs'!$T$16:$T$43,MATCH($B167,'Damage costs'!$C$16:$C$43,0))/1000),\"\")","v":""},{"$f":"IFERROR(IF(OR($C$168=FALSE,LEFT($B167,3)<>\"NOX\"),BU58*INDEX('Damage costs'!$P$16:$P$43,MATCH($B167,'Damage costs'!$C$16:$C$43,0))/1000,BU58*INDEX('Damage costs'!$T$16:$T$43,MATCH($B167,'Damage costs'!$C$16:$C$43,0))/1000),\"\")","v":""},{"$f":"IFERROR(IF(OR($C$168=FALSE,LEFT($B167,3)<>\"NOX\"),BV58*INDEX('Damage costs'!$P$16:$P$43,MATCH($B167,'Damage costs'!$C$16:$C$43,0))/1000,BV58*INDEX('Damage costs'!$T$16:$T$43,MATCH($B167,'Damage costs'!$C$16:$C$43,0))/1000),\"\")","v":""},{"$f":"IFERROR(IF(OR($C$168=FALSE,LEFT($B167,3)<>\"NOX\"),BW58*INDEX('Damage costs'!$P$16:$P$43,MATCH($B167,'Damage costs'!$C$16:$C$43,0))/1000,BW58*INDEX('Damage costs'!$T$16:$T$43,MATCH($B167,'Damage costs'!$C$16:$C$43,0))/1000),\"\")","v":""},{"$f":"IFERROR(IF(OR($C$168=FALSE,LEFT($B167,3)<>\"NOX\"),BX58*INDEX('Damage costs'!$P$16:$P$43,MATCH($B167,'Damage costs'!$C$16:$C$43,0))/1000,BX58*INDEX('Damage costs'!$T$16:$T$43,MATCH($B167,'Damage costs'!$C$16:$C$43,0))/1000),\"\")","v":""},{"$f":"IFERROR(IF(OR($C$168=FALSE,LEFT($B167,3)<>\"NOX\"),BY58*INDEX('Damage costs'!$P$16:$P$43,MATCH($B167,'Damage costs'!$C$16:$C$43,0))/1000,BY58*INDEX('Damage costs'!$T$16:$T$43,MATCH($B167,'Damage costs'!$C$16:$C$43,0))/1000),\"\")","v":""},{"$f":"IFERROR(IF(OR($C$168=FALSE,LEFT($B167,3)<>\"NOX\"),BZ58*INDEX('Damage costs'!$P$16:$P$43,MATCH($B167,'Damage costs'!$C$16:$C$43,0))/1000,BZ58*INDEX('Damage costs'!$T$16:$T$43,MATCH($B167,'Damage costs'!$C$16:$C$43,0))/1000),\"\")","v":""},{"$f":"IFERROR(IF(OR($C$168=FALSE,LEFT($B167,3)<>\"NOX\"),CA58*INDEX('Damage costs'!$P$16:$P$43,MATCH($B167,'Damage costs'!$C$16:$C$43,0))/1000,CA58*INDEX('Damage costs'!$T$16:$T$43,MATCH($B167,'Damage costs'!$C$16:$C$43,0))/1000),\"\")","v":""},{"$f":"IFERROR(IF(OR($C$168=FALSE,LEFT($B167,3)<>\"NOX\"),CB58*INDEX('Damage costs'!$P$16:$P$43,MATCH($B167,'Damage costs'!$C$16:$C$43,0))/1000,CB58*INDEX('Damage costs'!$T$16:$T$43,MATCH($B167,'Damage costs'!$C$16:$C$43,0))/1000),\"\")","v":""},{"$f":"IFERROR(IF(OR($C$168=FALSE,LEFT($B167,3)<>\"NOX\"),CC58*INDEX('Damage costs'!$P$16:$P$43,MATCH($B167,'Damage costs'!$C$16:$C$43,0))/1000,CC58*INDEX('Damage costs'!$T$16:$T$43,MATCH($B167,'Damage costs'!$C$16:$C$43,0))/1000),\"\")","v":""},{"$f":"IFERROR(IF(OR($C$168=FALSE,LEFT($B167,3)<>\"NOX\"),CD58*INDEX('Damage costs'!$P$16:$P$43,MATCH($B167,'Damage costs'!$C$16:$C$43,0))/1000,CD58*INDEX('Damage costs'!$T$16:$T$43,MATCH($B167,'Damage costs'!$C$16:$C$43,0))/1000),\"\")","v":""},{"$f":"IFERROR(IF(OR($C$168=FALSE,LEFT($B167,3)<>\"NOX\"),CE58*INDEX('Damage costs'!$P$16:$P$43,MATCH($B167,'Damage costs'!$C$16:$C$43,0))/1000,CE58*INDEX('Damage costs'!$T$16:$T$43,MATCH($B167,'Damage costs'!$C$16:$C$43,0))/1000),\"\")","v":""},{"$f":"IFERROR(IF(OR($C$168=FALSE,LEFT($B167,3)<>\"NOX\"),CF58*INDEX('Damage costs'!$P$16:$P$43,MATCH($B167,'Damage costs'!$C$16:$C$43,0))/1000,CF58*INDEX('Damage costs'!$T$16:$T$43,MATCH($B167,'Damage costs'!$C$16:$C$43,0))/1000),\"\")","v":""},{"$f":"IFERROR(IF(OR($C$168=FALSE,LEFT($B167,3)<>\"NOX\"),CG58*INDEX('Damage costs'!$P$16:$P$43,MATCH($B167,'Damage costs'!$C$16:$C$43,0))/1000,CG58*INDEX('Damage costs'!$T$16:$T$43,MATCH($B167,'Damage costs'!$C$16:$C$43,0))/1000),\"\")","v":""},{"$f":"IFERROR(IF(OR($C$168=FALSE,LEFT($B167,3)<>\"NOX\"),CH58*INDEX('Damage costs'!$P$16:$P$43,MATCH($B167,'Damage costs'!$C$16:$C$43,0))/1000,CH58*INDEX('Damage costs'!$T$16:$T$43,MATCH($B167,'Damage costs'!$C$16:$C$43,0))/1000),\"\")","v":""},{"$f":"IFERROR(IF(OR($C$168=FALSE,LEFT($B167,3)<>\"NOX\"),CI58*INDEX('Damage costs'!$P$16:$P$43,MATCH($B167,'Damage costs'!$C$16:$C$43,0))/1000,CI58*INDEX('Damage costs'!$T$16:$T$43,MATCH($B167,'Damage costs'!$C$16:$C$43,0))/1000),\"\")","v":""},{"$f":"IFERROR(IF(OR($C$168=FALSE,LEFT($B167,3)<>\"NOX\"),CJ58*INDEX('Damage costs'!$P$16:$P$43,MATCH($B167,'Damage costs'!$C$16:$C$43,0))/1000,CJ58*INDEX('Damage costs'!$T$16:$T$43,MATCH($B167,'Damage costs'!$C$16:$C$43,0))/1000),\"\")","v":""},{"$f":"IFERROR(IF(OR($C$168=FALSE,LEFT($B167,3)<>\"NOX\"),CK58*INDEX('Damage costs'!$P$16:$P$43,MATCH($B167,'Damage costs'!$C$16:$C$43,0))/1000,CK58*INDEX('Damage costs'!$T$16:$T$43,MATCH($B167,'Damage costs'!$C$16:$C$43,0))/1000),\"\")","v":""},{"$f":"IFERROR(IF(OR($C$168=FALSE,LEFT($B167,3)<>\"NOX\"),CL58*INDEX('Damage costs'!$P$16:$P$43,MATCH($B167,'Damage costs'!$C$16:$C$43,0))/1000,CL58*INDEX('Damage costs'!$T$16:$T$43,MATCH($B167,'Damage costs'!$C$16:$C$43,0))/1000),\"\")","v":""},{"$f":"IFERROR(IF(OR($C$168=FALSE,LEFT($B167,3)<>\"NOX\"),CM58*INDEX('Damage costs'!$P$16:$P$43,MATCH($B167,'Damage costs'!$C$16:$C$43,0))/1000,CM58*INDEX('Damage costs'!$T$16:$T$43,MATCH($B167,'Damage costs'!$C$16:$C$43,0))/1000),\"\")","v":""},{"$f":"IFERROR(IF(OR($C$168=FALSE,LEFT($B167,3)<>\"NOX\"),CN58*INDEX('Damage costs'!$P$16:$P$43,MATCH($B167,'Damage costs'!$C$16:$C$43,0))/1000,CN58*INDEX('Damage costs'!$T$16:$T$43,MATCH($B167,'Damage costs'!$C$16:$C$43,0))/1000),\"\")","v":""},{"$f":"IFERROR(IF(OR($C$168=FALSE,LEFT($B167,3)<>\"NOX\"),CO58*INDEX('Damage costs'!$P$16:$P$43,MATCH($B167,'Damage costs'!$C$16:$C$43,0))/1000,CO58*INDEX('Damage costs'!$T$16:$T$43,MATCH($B167,'Damage costs'!$C$16:$C$43,0))/1000),\"\")","v":""},{"$f":"IFERROR(IF(OR($C$168=FALSE,LEFT($B167,3)<>\"NOX\"),CP58*INDEX('Damage costs'!$P$16:$P$43,MATCH($B167,'Damage costs'!$C$16:$C$43,0))/1000,CP58*INDEX('Damage costs'!$T$16:$T$43,MATCH($B167,'Damage costs'!$C$16:$C$43,0))/1000),\"\")","v":""},{"$f":"IFERROR(IF(OR($C$168=FALSE,LEFT($B167,3)<>\"NOX\"),CQ58*INDEX('Damage costs'!$P$16:$P$43,MATCH($B167,'Damage costs'!$C$16:$C$43,0))/1000,CQ58*INDEX('Damage costs'!$T$16:$T$43,MATCH($B167,'Damage costs'!$C$16:$C$43,0))/1000),\"\")","v":""},{"$f":"IFERROR(IF(OR($C$168=FALSE,LEFT($B167,3)<>\"NOX\"),CR58*INDEX('Damage costs'!$P$16:$P$43,MATCH($B167,'Damage costs'!$C$16:$C$43,0))/1000,CR58*INDEX('Damage costs'!$T$16:$T$43,MATCH($B167,'Damage costs'!$C$16:$C$43,0))/1000),\"\")","v":""},{"$f":"IFERROR(IF(OR($C$168=FALSE,LEFT($B167,3)<>\"NOX\"),CS58*INDEX('Damage costs'!$P$16:$P$43,MATCH($B167,'Damage costs'!$C$16:$C$43,0))/1000,CS58*INDEX('Damage costs'!$T$16:$T$43,MATCH($B167,'Damage costs'!$C$16:$C$43,0))/1000),\"\")","v":""},{"$f":"IFERROR(IF(OR($C$168=FALSE,LEFT($B167,3)<>\"NOX\"),CT58*INDEX('Damage costs'!$P$16:$P$43,MATCH($B167,'Damage costs'!$C$16:$C$43,0))/1000,CT58*INDEX('Damage costs'!$T$16:$T$43,MATCH($B167,'Damage costs'!$C$16:$C$43,0))/1000),\"\")","v":""},{"$f":"IFERROR(IF(OR($C$168=FALSE,LEFT($B167,3)<>\"NOX\"),CU58*INDEX('Damage costs'!$P$16:$P$43,MATCH($B167,'Damage costs'!$C$16:$C$43,0))/1000,CU58*INDEX('Damage costs'!$T$16:$T$43,MATCH($B167,'Damage costs'!$C$16:$C$43,0))/1000),\"\")","v":""},{"$f":"IFERROR(IF(OR($C$168=FALSE,LEFT($B167,3)<>\"NOX\"),CV58*INDEX('Damage costs'!$P$16:$P$43,MATCH($B167,'Damage costs'!$C$16:$C$43,0))/1000,CV58*INDEX('Damage costs'!$T$16:$T$43,MATCH($B167,'Damage costs'!$C$16:$C$43,0))/1000),\"\")","v":""},{"$f":"IFERROR(IF(OR($C$168=FALSE,LEFT($B167,3)<>\"NOX\"),CW58*INDEX('Damage costs'!$P$16:$P$43,MATCH($B167,'Damage costs'!$C$16:$C$43,0))/1000,CW58*INDEX('Damage costs'!$T$16:$T$43,MATCH($B167,'Damage costs'!$C$16:$C$43,0))/1000),\"\")","v":""},{"$f":"IFERROR(IF(OR($C$168=FALSE,LEFT($B167,3)<>\"NOX\"),CX58*INDEX('Damage costs'!$P$16:$P$43,MATCH($B167,'Damage costs'!$C$16:$C$43,0))/1000,CX58*INDEX('Damage costs'!$T$16:$T$43,MATCH($B167,'Damage costs'!$C$16:$C$43,0))/1000),\"\")","v":""},{"$f":"IFERROR(IF(OR($C$168=FALSE,LEFT($B167,3)<>\"NOX\"),CY58*INDEX('Damage costs'!$P$16:$P$43,MATCH($B167,'Damage costs'!$C$16:$C$43,0))/1000,CY58*INDEX('Damage costs'!$T$16:$T$43,MATCH($B167,'Damage costs'!$C$16:$C$43,0))/1000),\"\")","v":""}]
[null,"PM10 Used",{"$f":"IF(OR(LEFT(B162,4)=\"PM10\",LEFT(B163,4)=\"PM10\",LEFT(B164,4)=\"PM10\",LEFT(B165,4)=\"PM10\",LEFT(B166,4)=\"PM10\",LEFT(B167,4)=\"PM10\"),TRUE,FALSE)","v":false}]
[]
[null,"Uplift pa","%",{"$f":"'Discount and deflators'!$H$5","v":0.02}]
[null,"Uplift factor",null,{"$f":"IF(D$6=0,0,(1+$D170)^(D$6-'Data Input - General'!$F$22))","v":1},{"$f":"IF(E$6=0,0,(1+$D170)^(E$6-'Data Input - General'!$F$22))","v":1.02},{"$f":"IF(F$6=0,0,(1+$D170)^(F$6-'Data Input - General'!$F$22))","v":1.0404},{"$f":"IF(G$6=0,0,(1+$D170)^(G$6-'Data Input - General'!$F$22))","v":1.0612079999999999},{"$f":"IF(H$6=0,0,(1+$D170)^(H$6-'Data Input - General'!$F$22))","v":1.08243216},{"$f":"IF(I$6=0,0,(1+$D170)^(I$6-'Data Input - General'!$F$22))","v":1.1040808032},{"$f":"IF(J$6=0,0,(1+$D170)^(J$6-'Data Input - General'!$F$22))","v":1.1261624192640001},{"$f":"IF(K$6=0,0,(1+$D170)^(K$6-'Data Input - General'!$F$22))","v":1.1486856676492798},{"$f":"IF(L$6=0,0,(1+$D170)^(L$6-'Data Input - General'!$F$22))","v":1.1716593810022655},{"$f":"IF(M$6=0,0,(1+$D170)^(M$6-'Data Input - General'!$F$22))","v":1.1950925686223108},{"$f":"IF(N$6=0,0,(1+$D170)^(N$6-'Data Input - General'!$F$22))","v":1.2189944199947571},{"$f":"IF(O$6=0,0,(1+$D170)^(O$6-'Data Input - General'!$F$22))","v":1.243374308394652},{"$f":"IF(P$6=0,0,(1+$D170)^(P$6-'Data Input - General'!$F$22))","v":1.2682417945625453},{"$f":"IF(Q$6=0,0,(1+$D170)^(Q$6-'Data Input - General'!$F$22))","v":1.2936066304537961},{"$f":"IF(R$6=0,0,(1+$D170)^(R$6-'Data Input - General'!$F$22))","v":1.3194787630628722},{"$f":"IF(S$6=0,0,(1+$D170)^(S$6-'Data Input - General'!$F$22))","v":1.3458683383241292},{"$f":"IF(T$6=0,0,(1+$D170)^(T$6-'Data Input - General'!$F$22))","v":1.372785705090612},{"$f":"IF(U$6=0,0,(1+$D170)^(U$6-'Data Input - General'!$F$22))","v":1.4002414191924244},{"$f":"IF(V$6=0,0,(1+$D170)^(V$6-'Data Input - General'!$F$22))","v":1.4282462475762727},{"$f":"IF(W$6=0,0,(1+$D170)^(W$6-'Data Input - General'!$F$22))","v":1.4568111725277981},{"$f":"IF(X$6=0,0,(1+$D170)^(X$6-'Data Input - General'!$F$22))","v":1.4859473959783542},{"$f":"IF(Y$6=0,0,(1+$D170)^(Y$6-'Data Input - General'!$F$22))","v":1.5156663438979212},{"$f":"IF(Z$6=0,0,(1+$D170)^(Z$6-'Data Input - General'!$F$22))","v":1.5459796707758797},{"$f":"IF(AA$6=0,0,(1+$D170)^(AA$6-'Data Input - General'!$F$22))","v":1.576899264191397},{"$f":"IF(AB$6=0,0,(1+$D170)^(AB$6-'Data Input - General'!$F$22))","v":1.608437249475225},{"$f":"IF(AC$6=0,0,(1+$D170)^(AC$6-'Data Input - General'!$F$22))","v":1.6406059944647295},{"$f":"IF(AD$6=0,0,(1+$D170)^(AD$6-'Data Input - General'!$F$22))","v":1.6734181143540243},{"$f":"IF(AE$6=0,0,(1+$D170)^(AE$6-'Data Input - General'!$F$22))","v":1.7068864766411045},{"$f":"IF(AF$6=0,0,(1+$D170)^(AF$6-'Data Input - General'!$F$22))","v":1.7410242061739269},{"$f":"IF(AG$6=0,0,(1+$D170)^(AG$6-'Data Input - General'!$F$22))","v":1.7758446902974052},{"$f":"IF(AH$6=0,0,(1+$D170)^(AH$6-'Data Input - General'!$F$22))","v":1.8113615841033535},{"$f":"IF(AI$6=0,0,(1+$D170)^(AI$6-'Data Input - General'!$F$22))","v":0},{"$f":"IF(AJ$6=0,0,(1+$D170)^(AJ$6-'Data Input - General'!$F$22))","v":0},{"$f":"IF(AK$6=0,0,(1+$D170)^(AK$6-'Data Input - General'!$F$22))","v":0},{"$f":"IF(AL$6=0,0,(1+$D170)^(AL$6-'Data Input - General'!$F$22))","v":0},{"$f":"IF(AM$6=0,0,(1+$D170)^(AM$6-'Data Input - General'!$F$22))","v":0},{"$f":"IF(AN$6=0,0,(1+$D170)^(AN$6-'Data Input - General'!$F$22))","v":0},{"$f":"IF(AO$6=0,0,(1+$D170)^(AO$6-'Data Input - General'!$F$22))","v":0},{"$f":"IF(AP$6=0,0,(1+$D170)^(AP$6-'Data Input - General'!$F$22))","v":0},{"$f":"IF(AQ$6=0,0,(1+$D170)^(AQ$6-'Data Input - General'!$F$22))","v":0},{"$f":"IF(AR$6=0,0,(1+$D170)^(AR$6-'Data Input - General'!$F$22))","v":0},{"$f":"IF(AS$6=0,0,(1+$D170)^(AS$6-'Data Input - General'!$F$22))","v":0},{"$f":"IF(AT$6=0,0,(1+$D170)^(AT$6-'Data Input - General'!$F$22))","v":0},{"$f":"IF(AU$6=0,0,(1+$D170)^(AU$6-'Data Input - General'!$F$22))","v":0},{"$f":"IF(AV$6=0,0,(1+$D170)^(AV$6-'Data Input - General'!$F$22))","v":0},{"$f":"IF(AW$6=0,0,(1+$D170)^(AW$6-'Data Input - General'!$F$22))","v":0},{"$f":"IF(AX$6=0,0,(1+$D170)^(AX$6-'Data Input - General'!$F$22))","v":0},{"$f":"IF(AY$6=0,0,(1+$D170)^(AY$6-'Data Input - General'!$F$22))","v":0},{"$f":"IF(AZ$6=0,0,(1+$D170)^(AZ$6-'Data Input - General'!$F$22))","v":0},{"$f":"IF(BA$6=0,0,(1+$D170)^(BA$6-'Data Input - General'!$F$22))","v":0},{"$f":"IF(BB$6=0,0,(1+$D170)^(BB$6-'Data Input - General'!$F$22))","v":0},{"$f":"IF(BC$6=0,0,(1+$D170)^(BC$6-'Data Input - General'!$F$22))","v":0},{"$f":"IF(BD$6=0,0,(1+$D170)^(BD$6-'Data Input - General'!$F$22))","v":0},{"$f":"IF(BE$6=0,0,(1+$D170)^(BE$6-'Data Input - General'!$F$22))","v":0},{"$f":"IF(BF$6=0,0,(1+$D170)^(BF$6-'Data Input - General'!$F$22))","v":0},{"$f":"IF(BG$6=0,0,(1+$D170)^(BG$6-'Data Input - General'!$F$22))","v":0},{"$f":"IF(BH$6=0,0,(1+$D170)^(BH$6-'Data Input - General'!$F$22))","v":0},{"$f":"IF(BI$6=0,0,(1+$D170)^(BI$6-'Data Input - General'!$F$22))","v":0},{"$f":"IF(BJ$6=0,0,(1+$D170)^(BJ$6-'Data Input - General'!$F$22))","v":0},{"$f":"IF(BK$6=0,0,(1+$D170)^(BK$6-'Data Input - General'!$F$22))","v":0},{"$f":"IF(BL$6=0,0,(1+$D170)^(BL$6-'Data Input - General'!$F$22))","v":0},{"$f":"IF(BM$6=0,0,(1+$D170)^(BM$6-'Data Input - General'!$F$22))","v":0},{"$f":"IF(BN$6=0,0,(1+$D170)^(BN$6-'Data Input - General'!$F$22))","v":0},{"$f":"IF(BO$6=0,0,(1+$D170)^(BO$6-'Data Input - General'!$F$22))","v":0},{"$f":"IF(BP$6=0,0,(1+$D170)^(BP$6-'Data Input - General'!$F$22))","v":0},{"$f":"IF(BQ$6=0,0,(1+$D170)^(BQ$6-'Data Input - General'!$F$22))","v":0},{"$f":"IF(BR$6=0,0,(1+$D170)^(BR$6-'Data Input - General'!$F$22))","v":0},{"$f":"IF(BS$6=0,0,(1+$D170)^(BS$6-'Data Input - General'!$F$22))","v":0},{"$f":"IF(BT$6=0,0,(1+$D170)^(BT$6-'Data Input - General'!$F$22))","v":0},{"$f":"IF(BU$6=0,0,(1+$D170)^(BU$6-'Data Input - General'!$F$22))","v":0},{"$f":"IF(BV$6=0,0,(1+$D170)^(BV$6-'Data Input - General'!$F$22))","v":0},{"$f":"IF(BW$6=0,0,(1+$D170)^(BW$6-'Data Input - General'!$F$22))","v":0},{"$f":"IF(BX$6=0,0,(1+$D170)^(BX$6-'Data Input - General'!$F$22))","v":0},{"$f":"IF(BY$6=0,0,(1+$D170)^(BY$6-'Data Input - General'!$F$22))","v":0},{"$f":"IF(BZ$6=0,0,(1+$D170)^(BZ$6-'Data Input - General'!$F$22))","v":0},{"$f":"IF(CA$6=0,0,(1+$D170)^(CA$6-'Data Input - General'!$F$22))","v":0},{"$f":"IF(CB$6=0,0,(1+$D170)^(CB$6-'Data Input - General'!$F$22))","v":0},{"$f":"IF(CC$6=0,0,(1+$D170)^(CC$6-'Data Input - General'!$F$22))","v":0},{"$f":"IF(CD$6=0,0,(1+$D170)^(CD$6-'Data Input - General'!$F$22))","v":0},{"$f":"IF(CE$6=0,0,(1+$D170)^(CE$6-'Data Input - General'!$F$22))","v":0},{"$f":"IF(CF$6=0,0,(1+$D170)^(CF$6-'Data Input - General'!$F$22))","v":0},{"$f":"IF(CG$6=0,0,(1+$D170)^(CG$6-'Data Input - General'!$F$22))","v":0},{"$f":"IF(CH$6=0,0,(1+$D170)^(CH$6-'Data Input - General'!$F$22))","v":0},{"$f":"IF(CI$6=0,0,(1+$D170)^(CI$6-'Data Input - General'!$F$22))","v":0},{"$f":"IF(CJ$6=0,0,(1+$D170)^(CJ$6-'Data Input - General'!$F$22))","v":0},{"$f":"IF(CK$6=0,0,(1+$D170)^(CK$6-'Data Input - General'!$F$22))","v":0},{"$f":"IF(CL$6=0,0,(1+$D170)^(CL$6-'Data Input - General'!$F$22))","v":0},{"$f":"IF(CM$6=0,0,(1+$D170)^(CM$6-'Data Input - General'!$F$22))","v":0},{"$f":"IF(CN$6=0,0,(1+$D170)^(CN$6-'Data Input - General'!$F$22))","v":0},{"$f":"IF(CO$6=0,0,(1+$D170)^(CO$6-'Data Input - General'!$F$22))","v":0},{"$f":"IF(CP$6=0,0,(1+$D170)^(CP$6-'Data Input - General'!$F$22))","v":0},{"$f":"IF(CQ$6=0,0,(1+$D170)^(CQ$6-'Data Input - General'!$F$22))","v":0},{"$f":"IF(CR$6=0,0,(1+$D170)^(CR$6-'Data Input - General'!$F$22))","v":0},{"$f":"IF(CS$6=0,0,(1+$D170)^(CS$6-'Data Input - General'!$F$22))","v":0},{"$f":"IF(CT$6=0,0,(1+$D170)^(CT$6-'Data Input - General'!$F$22))","v":0},{"$f":"IF(CU$6=0,0,(1+$D170)^(CU$6-'Data Input - General'!$F$22))","v":0},{"$f":"IF(CV$6=0,0,(1+$D170)^(CV$6-'Data Input - General'!$F$22))","v":0},{"$f":"IF(CW$6=0,0,(1+$D170)^(CW$6-'Data Input - General'!$F$22))","v":0},{"$f":"IF(CX$6=0,0,(1+$D170)^(CX$6-'Data Input - General'!$F$22))","v":0},{"$f":"IF(CY$6=0,0,(1+$D170)^(CY$6-'Data Input - General'!$F$22))","v":0}]
[null,"Total value","£000's",{"$f":"SUM(D162:D167)*D171","v":0},{"$f":"SUM(E162:E167)*E171","v":0},{"$f":"SUM(F162:F167)*F171","v":0},{"$f":"SUM(G162:G167)*G171","v":0},0,0,0,0,0,0,0,0,0,0,0,0,0,0,0,0,0,0,0,0,0,0,0,0,0,0,0,0,{"$f":"SUM(AJ162:AJ167)*AJ171","v":0},0,0,0,0,0,0,0,0,0,0,0,0,0,0,0,0,0,0,0,0,0,0,0,0,0,0,0,{"$f":"SUM(BL162:BL167)*BL171","v":0},0,0,0,0,0,0,0,0,0,0,0,0,0,0,0,0,0,0,0,0,0,0,0,0,0,0,0,0,0,0,0,0,0,0,0,0,0,0,0]
[null,"Discounted total value","£000's",{"$f":"D172*D$7","v":0},0,0,0,0,0,0,0,0,0,0,0,0,0,0,0,0,0,0,0,0,0,0,0,0,0,0,0,0,0,0,0,0,0,0,0,0,0,0,0,0,0,0,0,0,0,0,0,0,0,0,0,0,0,0,0,0,0,0,0,0,0,0,0,{"$f":"BP172*BP$7","v":0},0,0,0,0,0,0,0,0,0,0,0,0,0,0,0,0,0,0,0,0,0,0,0,0,0,0,0,0,0,0,0,0,0,0,0]
[]
[null,"Low high capex"]
[]
[null,"Low high range","%",{"$f":"'Data Input - Option 4'!F34","v":0}]
[]
[null,"Low high opex"]
[]
[null,"Low high range","%",{"$f":"'Data Input - Option 4'!F54","v":0.25}]
[]
[null,"Low high WACC"]
[]
[null,"Low WACC","%",{"$f":"'Data Input - General'!F16","v":0.06}]
[null,"Annualised payment","£000's",{"$f":"IFERROR(-PMT($D$185,SUM('Data Input - General'!$J$26:$J$28),D20*1000)/1000,0)","v":0}]
[null,"Annual value","£000's",{"$f":"IF(SUM($D$12:D$12)=0,0,$D$186)","v":0},{"$f":"IF(SUM($D$12:E$12)=0,0,$D$186)","v":0},{"$f":"IF(SUM($D$12:F$12)=0,0,$D$186)","v":0},{"$f":"IF(SUM($D$12:G$12)=0,0,$D$186)","v":0},{"$f":"IF(SUM($D$12:H$12)=0,0,$D$186)","v":0},{"$f":"IF(SUM($D$12:I$12)=0,0,$D$186)","v":0},{"$f":"IF(SUM($D$12:J$12)=0,0,$D$186)","v":0},{"$f":"IF(SUM($D$12:K$12)=0,0,$D$186)","v":0},{"$f":"IF(SUM($D$12:L$12)=0,0,$D$186)","v":0},{"$f":"IF(SUM($D$12:M$12)=0,0,$D$186)","v":0},{"$f":"IF(SUM($D$12:N$12)=0,0,$D$186)","v":0},{"$f":"IF(SUM($D$12:O$12)=0,0,$D$186)","v":0},{"$f":"IF(SUM($D$12:P$12)=0,0,$D$186)","v":0},{"$f":"IF(SUM($D$12:Q$12)=0,0,$D$186)","v":0},{"$f":"IF(SUM($D$12:R$12)=0,0,$D$186)","v":0},{"$f":"IF(SUM($D$12:S$12)=0,0,$D$186)","v":0},{"$f":"IF(SUM($D$12:T$12)=0,0,$D$186)","v":0},{"$f":"IF(SUM($D$12:U$12)=0,0,$D$186)","v":0},{"$f":"IF(SUM($D$12:V$12)=0,0,$D$186)","v":0},{"$f":"IF(SUM($D$12:W$12)=0,0,$D$186)","v":0},{"$f":"IF(SUM($D$12:X$12)=0,0,$D$186)","v":0},{"$f":"IF(SUM($D$12:Y$12)=0,0,$D$186)","v":0},{"$f":"IF(SUM($D$12:Z$12)=0,0,$D$186)","v":0},{"$f":"IF(SUM($D$12:AA$12)=0,0,$D$186)","v":0},{"$f":"IF(SUM($D$12:AB$12)=0,0,$D$186)","v":0},{"$f":"IF(SUM($D$12:AC$12)=0,0,$D$186)","v":0},{"$f":"IF(SUM($D$12:AD$12)=0,0,$D$186)","v":0},{"$f":"IF(SUM($D$12:AE$12)=0,0,$D$186)","v":0},{"$f":"IF(SUM($D$12:AF$12)=0,0,$D$186)","v":0},{"$f":"IF(SUM($D$12:AG$12)=0,0,$D$186)","v":0},{"$f":"IF(SUM($D$12:AH$12)=0,0,$D$186)","v":0},{"$f":"IF(SUM($D$12:AI$12)=0,0,$D$186)","v":0},{"$f":"IF(SUM($D$12:AJ$12)=0,0,$D$186)","v":0},{"$f":"IF(SUM($D$12:AK$12)=0,0,$D$186)","v":0},{"$f":"IF(SUM($D$12:AL$12)=0,0,$D$186)","v":0},{"$f":"IF(SUM($D$12:AM$12)=0,0,$D$186)","v":0},{"$f":"IF(SUM($D$12:AN$12)=0,0,$D$186)","v":0},{"$f":"IF(SUM($D$12:AO$12)=0,0,$D$186)","v":0},{"$f":"IF(SUM($D$12:AP$12)=0,0,$D$186)","v":0},{"$f":"IF(SUM($D$12:AQ$12)=0,0,$D$186)","v":0},{"$f":"IF(SUM($D$12:AR$12)=0,0,$D$186)","v":0},{"$f":"IF(SUM($D$12:AS$12)=0,0,$D$186)","v":0},{"$f":"IF(SUM($D$12:AT$12)=0,0,$D$186)","v":0},{"$f":"IF(SUM($D$12:AU$12)=0,0,$D$186)","v":0},{"$f":"IF(SUM($D$12:AV$12)=0,0,$D$186)","v":0},{"$f":"IF(SUM($D$12:AW$12)=0,0,$D$186)","v":0},{"$f":"IF(SUM($D$12:AX$12)=0,0,$D$186)","v":0},{"$f":"IF(SUM($D$12:AY$12)=0,0,$D$186)","v":0},{"$f":"IF(SUM($D$12:AZ$12)=0,0,$D$186)","v":0},{"$f":"IF(SUM($D$12:BA$12)=0,0,$D$186)","v":0},{"$f":"IF(SUM($D$12:BB$12)=0,0,$D$186)","v":0},{"$f":"IF(SUM($D$12:BC$12)=0,0,$D$186)","v":0},{"$f":"IF(SUM($D$12:BD$12)=0,0,$D$186)","v":0},{"$f":"IF(SUM($D$12:BE$12)=0,0,$D$186)","v":0},{"$f":"IF(SUM($D$12:BF$12)=0,0,$D$186)","v":0},{"$f":"IF(SUM($D$12:BG$12)=0,0,$D$186)","v":0},{"$f":"IF(SUM($D$12:BH$12)=0,0,$D$186)","v":0},{"$f":"IF(SUM($D$12:BI$12)=0,0,$D$186)","v":0},{"$f":"IF(SUM($D$12:BJ$12)=0,0,$D$186)","v":0},{"$f":"IF(SUM($D$12:BK$12)=0,0,$D$186)","v":0},{"$f":"IF(SUM($D$12:BL$12)=0,0,$D$186)","v":0},{"$f":"IF(SUM($D$12:BM$12)=0,0,$D$186)","v":0},{"$f":"IF(SUM($D$12:BN$12)=0,0,$D$186)","v":0},{"$f":"IF(SUM($D$12:BO$12)=0,0,$D$186)","v":0},{"$f":"IF(SUM($D$12:BP$12)=0,0,$D$186)","v":0},{"$f":"IF(SUM($D$12:BQ$12)=0,0,$D$186)","v":0},{"$f":"IF(SUM($D$12:BR$12)=0,0,$D$186)","v":0},{"$f":"IF(SUM($D$12:BS$12)=0,0,$D$186)","v":0},{"$f":"IF(SUM($D$12:BT$12)=0,0,$D$186)","v":0},{"$f":"IF(SUM($D$12:BU$12)=0,0,$D$186)","v":0},{"$f":"IF(SUM($D$12:BV$12)=0,0,$D$186)","v":0},{"$f":"IF(SUM($D$12:BW$12)=0,0,$D$186)","v":0},{"$f":"IF(SUM($D$12:BX$12)=0,0,$D$186)","v":0},{"$f":"IF(SUM($D$12:BY$12)=0,0,$D$186)","v":0},{"$f":"IF(SUM($D$12:BZ$12)=0,0,$D$186)","v":0},{"$f":"IF(SUM($D$12:CA$12)=0,0,$D$186)","v":0},{"$f":"IF(SUM($D$12:CB$12)=0,0,$D$186)","v":0},{"$f":"IF(SUM($D$12:CC$12)=0,0,$D$186)","v":0},{"$f":"IF(SUM($D$12:CD$12)=0,0,$D$186)","v":0},{"$f":"IF(SUM($D$12:CE$12)=0,0,$D$186)","v":0},{"$f":"IF(SUM($D$12:CF$12)=0,0,$D$186)","v":0},{"$f":"IF(SUM($D$12:CG$12)=0,0,$D$186)","v":0},{"$f":"IF(SUM($D$12:CH$12)=0,0,$D$186)","v":0},{"$f":"IF(SUM($D$12:CI$12)=0,0,$D$186)","v":0},{"$f":"IF(SUM($D$12:CJ$12)=0,0,$D$186)","v":0},{"$f":"IF(SUM($D$12:CK$12)=0,0,$D$186)","v":0},{"$f":"IF(SUM($D$12:CL$12)=0,0,$D$186)","v":0},{"$f":"IF(SUM($D$12:CM$12)=0,0,$D$186)","v":0},{"$f":"IF(SUM($D$12:CN$12)=0,0,$D$186)","v":0},{"$f":"IF(SUM($D$12:CO$12)=0,0,$D$186)","v":0},{"$f":"IF(SUM($D$12:CP$12)=0,0,$D$186)","v":0},{"$f":"IF(SUM($D$12:CQ$12)=0,0,$D$186)","v":0},{"$f":"IF(SUM($D$12:CR$12)=0,0,$D$186)","v":0},{"$f":"IF(SUM($D$12:CS$12)=0,0,$D$186)","v":0},{"$f":"IF(SUM($D$12:CT$12)=0,0,$D$186)","v":0},{"$f":"IF(SUM($D$12:CU$12)=0,0,$D$186)","v":0},{"$f":"IF(SUM($D$12:CV$12)=0,0,$D$186)","v":0},{"$f":"IF(SUM($D$12:CW$12)=0,0,$D$186)","v":0},{"$f":"IF(SUM($D$12:CX$12)=0,0,$D$186)","v":0},{"$f":"IF(SUM($D$12:CY$12)=0,0,$D$186)","v":0}]
[null,"Discounted WACC","£000's",{"$f":"D187*D$7","v":0},0,0,0,0,0,0,0,0,0,0,0,0,0,0,0,0,0,0,0,0,0,0,0,0,0,0,0,0,0,0,0,0,0,0,0,0,0,0,0,0,0,0,0,0,0,0,0,0,0,0,0,0,0,0,0,0,0,0,0,0,0,0,0,{"$f":"BP187*BP$7","v":0},0,0,0,0,0,0,0,0,0,0,0,0,0,0,0,0,0,0,0,0,0,0,0,0,0,0,0,0,0,0,0,0,0,0,0]
[]
[null,"Financing costs"]
[null,"Financing costs (if entered manually)","£000's",{"$f":"'Data Input - Option 4'!H41","v":0},{"$f":"'Data Input - Option 4'!I41","v":0},{"$f":"'Data Input - Option 4'!J41","v":0},{"$f":"'Data Input - Option 4'!K41","v":0},{"$f":"'Data Input - Option 4'!L41","v":0},{"$f":"'Data Input - Option 4'!M41","v":0},{"$f":"'Data Input - Option 4'!N41","v":0},{"$f":"'Data Input - Option 4'!O41","v":0},{"$f":"'Data Input - Option 4'!P41","v":0},{"$f":"'Data Input - Option 4'!Q41","v":0},{"$f":"'Data Input - Option 4'!R41","v":0},{"$f":"'Data Input - Option 4'!S41","v":0},{"$f":"'Data Input - Option 4'!T41","v":0},{"$f":"'Data Input - Option 4'!U41","v":0},{"$f":"'Data Input - Option 4'!V41","v":0},{"$f":"'Data Input - Option 4'!W41","v":0},{"$f":"'Data Input - Option 4'!X41","v":0},{"$f":"'Data Input - Option 4'!Y41","v":0},{"$f":"'Data Input - Option 4'!Z41","v":0},{"$f":"'Data Input - Option 4'!AA41","v":0},{"$f":"'Data Input - Option 4'!AB41","v":0},{"$f":"'Data Input - Option 4'!AC41","v":0},{"$f":"'Data Input - Option 4'!AD41","v":0},{"$f":"'Data Input - Option 4'!AE41","v":0},{"$f":"'Data Input - Option 4'!AF41","v":0},{"$f":"'Data Input - Option 4'!AG41","v":0},{"$f":"'Data Input - Option 4'!AH41","v":0},{"$f":"'Data Input - Option 4'!AI41","v":0},{"$f":"'Data Input - Option 4'!AJ41","v":0},{"$f":"'Data Input - Option 4'!AK41","v":0},{"$f":"'Data Input - Option 4'!AL41","v":0},{"$f":"'Data Input - Option 4'!AM41","v":0},{"$f":"'Data Input - Option 4'!AN41","v":0},{"$f":"'Data Input - Option 4'!AO41","v":0},{"$f":"'Data Input - Option 4'!AP41","v":0},{"$f":"'Data Input - Option 4'!AQ41","v":0},{"$f":"'Data Input - Option 4'!AR41","v":0},{"$f":"'Data Input - Option 4'!AS41","v":0},{"$f":"'Data Input - Option 4'!AT41","v":0},{"$f":"'Data Input - Option 4'!AU41","v":0},{"$f":"'Data Input - Option 4'!AV41","v":0},{"$f":"'Data Input - Option 4'!AW41","v":0},{"$f":"'Data Input - Option 4'!AX41","v":0},{"$f":"'Data Input - Option 4'!AY41","v":0},{"$f":"'Data Input - Option 4'!AZ41","v":0},{"$f":"'Data Input - Option 4'!BA41","v":0},{"$f":"'Data Input - Option 4'!BB41","v":0},{"$f":"'Data Input - Option 4'!BC41","v":0},{"$f":"'Data Input - Option 4'!BD41","v":0},{"$f":"'Data Input - Option 4'!BE41","v":0},{"$f":"'Data Input - Option 4'!BF41","v":0},{"$f":"'Data Input - Option 4'!BG41","v":0},{"$f":"'Data Input - Option 4'!BH41","v":0},{"$f":"'Data Input - Option 4'!BI41","v":0},{"$f":"'Data Input - Option 4'!BJ41","v":0},{"$f":"'Data Input - Option 4'!BK41","v":0},{"$f":"'Data Input - Option 4'!BL41","v":0},{"$f":"'Data Input - Option 4'!BM41","v":0},{"$f":"'Data Input - Option 4'!BN41","v":0},{"$f":"'Data Input - Option 4'!BO41","v":0},{"$f":"'Data Input - Option 4'!BP41","v":0},{"$f":"'Data Input - Option 4'!BQ41","v":0},{"$f":"'Data Input - Option 4'!BR41","v":0},{"$f":"'Data Input - Option 4'!BS41","v":0},{"$f":"'Data Input - Option 4'!BT41","v":0},{"$f":"'Data Input - Option 4'!BU41","v":0},{"$f":"'Data Input - Option 4'!BV41","v":0},{"$f":"'Data Input - Option 4'!BW41","v":0},{"$f":"'Data Input - Option 4'!BX41","v":0},{"$f":"'Data Input - Option 4'!BY41","v":0},{"$f":"'Data Input - Option 4'!BZ41","v":0},{"$f":"'Data Input - Option 4'!CA41","v":0},{"$f":"'Data Input - Option 4'!CB41","v":0},{"$f":"'Data Input - Option 4'!CC41","v":0},{"$f":"'Data Input - Option 4'!CD41","v":0},{"$f":"'Data Input - Option 4'!CE41","v":0},{"$f":"'Data Input - Option 4'!CF41","v":0},{"$f":"'Data Input - Option 4'!CG41","v":0},{"$f":"'Data Input - Option 4'!CH41","v":0},{"$f":"'Data Input - Option 4'!CI41","v":0},{"$f":"'Data Input - Option 4'!CJ41","v":0},{"$f":"'Data Input - Option 4'!CK41","v":0},{"$f":"'Data Input - Option 4'!CL41","v":0},{"$f":"'Data Input - Option 4'!CM41","v":0},{"$f":"'Data Input - Option 4'!CN41","v":0},{"$f":"'Data Input - Option 4'!CO41","v":0},{"$f":"'Data Input - Option 4'!CP41","v":0},{"$f":"'Data Input - Option 4'!CQ41","v":0},{"$f":"'Data Input - Option 4'!CR41","v":0},{"$f":"'Data Input - Option 4'!CS41","v":0},{"$f":"'Data Input - Option 4'!CT41","v":0},{"$f":"'Data Input - Option 4'!CU41","v":0},{"$f":"'Data Input - Option 4'!CV41","v":0},{"$f":"'Data Input - Option 4'!CW41","v":0},{"$f":"'Data Input - Option 4'!CX41","v":0},{"$f":"'Data Input - Option 4'!CY41","v":0},{"$f":"'Data Input - Option 4'!CZ41","v":0},{"$f":"'Data Input - Option 4'!DA41","v":0},{"$f":"'Data Input - Option 4'!DB41","v":0},{"$f":"'Data Input - Option 4'!DC41","v":0}]
[null,"Discounted finacning","£000's",{"$f":"D191*D$7","v":0},0,0,0,0,0,0,0,0,0,0,0,0,0,0,0,0,0,0,0,0,0,0,0,0,0,0,0,0,0,0,0,0,0,0,0,0,0,0,0,0,0,0,0,0,0,0,0,0,0,0,0,0,0,0,0,0,0,0,0,0,0,0,0,{"$f":"BP191*BP$7","v":0},0,0,0,0,0,0,0,0,0,0,0,0,0,0,0,0,0,0,0,0,0,0,0,0,0,0,0,0,0,0,0,0,0,0,0]
[]
[null,"Total capex","£000's",{"$f":"IF('Data Input - Option 4'!$F$37=\"Yes\",D192+D13,D188)","v":0},{"$f":"IF('Data Input - Option 4'!$F$37=\"Yes\",E192+E13,E188)","v":0},{"$f":"IF('Data Input - Option 4'!$F$37=\"Yes\",F192+F13,F188)","v":0},{"$f":"IF('Data Input - Option 4'!$F$37=\"Yes\",G192+G13,G188)","v":0},{"$f":"IF('Data Input - Option 4'!$F$37=\"Yes\",H192+H13,H188)","v":0},{"$f":"IF('Data Input - Option 4'!$F$37=\"Yes\",I192+I13,I188)","v":0},{"$f":"IF('Data Input - Option 4'!$F$37=\"Yes\",J192+J13,J188)","v":0},{"$f":"IF('Data Input - Option 4'!$F$37=\"Yes\",K192+K13,K188)","v":0},{"$f":"IF('Data Input - Option 4'!$F$37=\"Yes\",L192+L13,L188)","v":0},{"$f":"IF('Data Input - Option 4'!$F$37=\"Yes\",M192+M13,M188)","v":0},{"$f":"IF('Data Input - Option 4'!$F$37=\"Yes\",N192+N13,N188)","v":0},{"$f":"IF('Data Input - Option 4'!$F$37=\"Yes\",O192+O13,O188)","v":0},{"$f":"IF('Data Input - Option 4'!$F$37=\"Yes\",P192+P13,P188)","v":0},{"$f":"IF('Data Input - Option 4'!$F$37=\"Yes\",Q192+Q13,Q188)","v":0},{"$f":"IF('Data Input - Option 4'!$F$37=\"Yes\",R192+R13,R188)","v":0},{"$f":"IF('Data Input - Option 4'!$F$37=\"Yes\",S192+S13,S188)","v":0},{"$f":"IF('Data Input - Option 4'!$F$37=\"Yes\",T192+T13,T188)","v":0},{"$f":"IF('Data Input - Option 4'!$F$37=\"Yes\",U192+U13,U188)","v":0},{"$f":"IF('Data Input - Option 4'!$F$37=\"Yes\",V192+V13,V188)","v":0},{"$f":"IF('Data Input - Option 4'!$F$37=\"Yes\",W192+W13,W188)","v":0},{"$f":"IF('Data Input - Option 4'!$F$37=\"Yes\",X192+X13,X188)","v":0},{"$f":"IF('Data Input - Option 4'!$F$37=\"Yes\",Y192+Y13,Y188)","v":0},{"$f":"IF('Data Input - Option 4'!$F$37=\"Yes\",Z192+Z13,Z188)","v":0},{"$f":"IF('Data Input - Option 4'!$F$37=\"Yes\",AA192+AA13,AA188)","v":0},{"$f":"IF('Data Input - Option 4'!$F$37=\"Yes\",AB192+AB13,AB188)","v":0},{"$f":"IF('Data Input - Option 4'!$F$37=\"Yes\",AC192+AC13,AC188)","v":0},{"$f":"IF('Data Input - Option 4'!$F$37=\"Yes\",AD192+AD13,AD188)","v":0},{"$f":"IF('Data Input - Option 4'!$F$37=\"Yes\",AE192+AE13,AE188)","v":0},{"$f":"IF('Data Input - Option 4'!$F$37=\"Yes\",AF192+AF13,AF188)","v":0},{"$f":"IF('Data Input - Option 4'!$F$37=\"Yes\",AG192+AG13,AG188)","v":0},{"$f":"IF('Data Input - Option 4'!$F$37=\"Yes\",AH192+AH13,AH188)","v":0},{"$f":"IF('Data Input - Option 4'!$F$37=\"Yes\",AI192+AI13,AI188)","v":0},{"$f":"IF('Data Input - Option 4'!$F$37=\"Yes\",AJ192+AJ13,AJ188)","v":0},{"$f":"IF('Data Input - Option 4'!$F$37=\"Yes\",AK192+AK13,AK188)","v":0},{"$f":"IF('Data Input - Option 4'!$F$37=\"Yes\",AL192+AL13,AL188)","v":0},{"$f":"IF('Data Input - Option 4'!$F$37=\"Yes\",AM192+AM13,AM188)","v":0},{"$f":"IF('Data Input - Option 4'!$F$37=\"Yes\",AN192+AN13,AN188)","v":0},{"$f":"IF('Data Input - Option 4'!$F$37=\"Yes\",AO192+AO13,AO188)","v":0},{"$f":"IF('Data Input - Option 4'!$F$37=\"Yes\",AP192+AP13,AP188)","v":0},{"$f":"IF('Data Input - Option 4'!$F$37=\"Yes\",AQ192+AQ13,AQ188)","v":0},{"$f":"IF('Data Input - Option 4'!$F$37=\"Yes\",AR192+AR13,AR188)","v":0},{"$f":"IF('Data Input - Option 4'!$F$37=\"Yes\",AS192+AS13,AS188)","v":0},{"$f":"IF('Data Input - Option 4'!$F$37=\"Yes\",AT192+AT13,AT188)","v":0},{"$f":"IF('Data Input - Option 4'!$F$37=\"Yes\",AU192+AU13,AU188)","v":0},{"$f":"IF('Data Input - Option 4'!$F$37=\"Yes\",AV192+AV13,AV188)","v":0},{"$f":"IF('Data Input - Option 4'!$F$37=\"Yes\",AW192+AW13,AW188)","v":0},{"$f":"IF('Data Input - Option 4'!$F$37=\"Yes\",AX192+AX13,AX188)","v":0},{"$f":"IF('Data Input - Option 4'!$F$37=\"Yes\",AY192+AY13,AY188)","v":0},{"$f":"IF('Data Input - Option 4'!$F$37=\"Yes\",AZ192+AZ13,AZ188)","v":0},{"$f":"IF('Data Input - Option 4'!$F$37=\"Yes\",BA192+BA13,BA188)","v":0},{"$f":"IF('Data Input - Option 4'!$F$37=\"Yes\",BB192+BB13,BB188)","v":0},{"$f":"IF('Data Input - Option 4'!$F$37=\"Yes\",BC192+BC13,BC188)","v":0},{"$f":"IF('Data Input - Option 4'!$F$37=\"Yes\",BD192+BD13,BD188)","v":0},{"$f":"IF('Data Input - Option 4'!$F$37=\"Yes\",BE192+BE13,BE188)","v":0},{"$f":"IF('Data Input - Option 4'!$F$37=\"Yes\",BF192+BF13,BF188)","v":0},{"$f":"IF('Data Input - Option 4'!$F$37=\"Yes\",BG192+BG13,BG188)","v":0},{"$f":"IF('Data Input - Option 4'!$F$37=\"Yes\",BH192+BH13,BH188)","v":0},{"$f":"IF('Data Input - Option 4'!$F$37=\"Yes\",BI192+BI13,BI188)","v":0},{"$f":"IF('Data Input - Option 4'!$F$37=\"Yes\",BJ192+BJ13,BJ188)","v":0},{"$f":"IF('Data Input - Option 4'!$F$37=\"Yes\",BK192+BK13,BK188)","v":0},{"$f":"IF('Data Input - Option 4'!$F$37=\"Yes\",BL192+BL13,BL188)","v":0},{"$f":"IF('Data Input - Option 4'!$F$37=\"Yes\",BM192+BM13,BM188)","v":0},{"$f":"IF('Data Input - Option 4'!$F$37=\"Yes\",BN192+BN13,BN188)","v":0},{"$f":"IF('Data Input - Option 4'!$F$37=\"Yes\",BO192+BO13,BO188)","v":0},{"$f":"IF('Data Input - Option 4'!$F$37=\"Yes\",BP192+BP13,BP188)","v":0},{"$f":"IF('Data Input - Option 4'!$F$37=\"Yes\",BQ192+BQ13,BQ188)","v":0},{"$f":"IF('Data Input - Option 4'!$F$37=\"Yes\",BR192+BR13,BR188)","v":0},{"$f":"IF('Data Input - Option 4'!$F$37=\"Yes\",BS192+BS13,BS188)","v":0},{"$f":"IF('Data Input - Option 4'!$F$37=\"Yes\",BT192+BT13,BT188)","v":0},{"$f":"IF('Data Input - Option 4'!$F$37=\"Yes\",BU192+BU13,BU188)","v":0},{"$f":"IF('Data Input - Option 4'!$F$37=\"Yes\",BV192+BV13,BV188)","v":0},{"$f":"IF('Data Input - Option 4'!$F$37=\"Yes\",BW192+BW13,BW188)","v":0},{"$f":"IF('Data Input - Option 4'!$F$37=\"Yes\",BX192+BX13,BX188)","v":0},{"$f":"IF('Data Input - Option 4'!$F$37=\"Yes\",BY192+BY13,BY188)","v":0},{"$f":"IF('Data Input - Option 4'!$F$37=\"Yes\",BZ192+BZ13,BZ188)","v":0},{"$f":"IF('Data Input - Option 4'!$F$37=\"Yes\",CA192+CA13,CA188)","v":0},{"$f":"IF('Data Input - Option 4'!$F$37=\"Yes\",CB192+CB13,CB188)","v":0},{"$f":"IF('Data Input - Option 4'!$F$37=\"Yes\",CC192+CC13,CC188)","v":0},{"$f":"IF('Data Input - Option 4'!$F$37=\"Yes\",CD192+CD13,CD188)","v":0},{"$f":"IF('Data Input - Option 4'!$F$37=\"Yes\",CE192+CE13,CE188)","v":0},{"$f":"IF('Data Input - Option 4'!$F$37=\"Yes\",CF192+CF13,CF188)","v":0},{"$f":"IF('Data Input - Option 4'!$F$37=\"Yes\",CG192+CG13,CG188)","v":0},{"$f":"IF('Data Input - Option 4'!$F$37=\"Yes\",CH192+CH13,CH188)","v":0},{"$f":"IF('Data Input - Option 4'!$F$37=\"Yes\",CI192+CI13,CI188)","v":0},{"$f":"IF('Data Input - Option 4'!$F$37=\"Yes\",CJ192+CJ13,CJ188)","v":0},{"$f":"IF('Data Input - Option 4'!$F$37=\"Yes\",CK192+CK13,CK188)","v":0},{"$f":"IF('Data Input - Option 4'!$F$37=\"Yes\",CL192+CL13,CL188)","v":0},{"$f":"IF('Data Input - Option 4'!$F$37=\"Yes\",CM192+CM13,CM188)","v":0},{"$f":"IF('Data Input - Option 4'!$F$37=\"Yes\",CN192+CN13,CN188)","v":0},{"$f":"IF('Data Input - Option 4'!$F$37=\"Yes\",CO192+CO13,CO188)","v":0},{"$f":"IF('Data Input - Option 4'!$F$37=\"Yes\",CP192+CP13,CP188)","v":0},{"$f":"IF('Data Input - Option 4'!$F$37=\"Yes\",CQ192+CQ13,CQ188)","v":0},{"$f":"IF('Data Input - Option 4'!$F$37=\"Yes\",CR192+CR13,CR188)","v":0},{"$f":"IF('Data Input - Option 4'!$F$37=\"Yes\",CS192+CS13,CS188)","v":0},{"$f":"IF('Data Input - Option 4'!$F$37=\"Yes\",CT192+CT13,CT188)","v":0},{"$f":"IF('Data Input - Option 4'!$F$37=\"Yes\",CU192+CU13,CU188)","v":0},{"$f":"IF('Data Input - Option 4'!$F$37=\"Yes\",CV192+CV13,CV188)","v":0},{"$f":"IF('Data Input - Option 4'!$F$37=\"Yes\",CW192+CW13,CW188)","v":0},{"$f":"IF('Data Input - Option 4'!$F$37=\"Yes\",CX192+CX13,CX188)","v":0},{"$f":"IF('Data Input - Option 4'!$F$37=\"Yes\",CY192+CY13,CY188)","v":0}]
[]
[null,"High WACC","%",{"$f":"'Data Input - General'!H16","v":7.0000000000000007E-2}]
[null,"Annualised payment","£000's",{"$f":"IFERROR(-PMT($D$196,SUM('Data Input - General'!$J$26:$J$28),D20*1000)/1000,0)","v":0}]
[null,"Annual value","£000's",{"$f":"IF(SUM($D$12:D$12)=0,0,$D$197)","v":0},{"$f":"IF(SUM($D$12:E$12)=0,0,$D$197)","v":0},{"$f":"IF(SUM($D$12:F$12)=0,0,$D$197)","v":0},{"$f":"IF(SUM($D$12:G$12)=0,0,$D$197)","v":0},{"$f":"IF(SUM($D$12:H$12)=0,0,$D$197)","v":0},{"$f":"IF(SUM($D$12:I$12)=0,0,$D$197)","v":0},{"$f":"IF(SUM($D$12:J$12)=0,0,$D$197)","v":0},{"$f":"IF(SUM($D$12:K$12)=0,0,$D$197)","v":0},{"$f":"IF(SUM($D$12:L$12)=0,0,$D$197)","v":0},{"$f":"IF(SUM($D$12:M$12)=0,0,$D$197)","v":0},{"$f":"IF(SUM($D$12:N$12)=0,0,$D$197)","v":0},{"$f":"IF(SUM($D$12:O$12)=0,0,$D$197)","v":0},{"$f":"IF(SUM($D$12:P$12)=0,0,$D$197)","v":0},{"$f":"IF(SUM($D$12:Q$12)=0,0,$D$197)","v":0},{"$f":"IF(SUM($D$12:R$12)=0,0,$D$197)","v":0},{"$f":"IF(SUM($D$12:S$12)=0,0,$D$197)","v":0},{"$f":"IF(SUM($D$12:T$12)=0,0,$D$197)","v":0},{"$f":"IF(SUM($D$12:U$12)=0,0,$D$197)","v":0},{"$f":"IF(SUM($D$12:V$12)=0,0,$D$197)","v":0},{"$f":"IF(SUM($D$12:W$12)=0,0,$D$197)","v":0},{"$f":"IF(SUM($D$12:X$12)=0,0,$D$197)","v":0},{"$f":"IF(SUM($D$12:Y$12)=0,0,$D$197)","v":0},{"$f":"IF(SUM($D$12:Z$12)=0,0,$D$197)","v":0},{"$f":"IF(SUM($D$12:AA$12)=0,0,$D$197)","v":0},{"$f":"IF(SUM($D$12:AB$12)=0,0,$D$197)","v":0},{"$f":"IF(SUM($D$12:AC$12)=0,0,$D$197)","v":0},{"$f":"IF(SUM($D$12:AD$12)=0,0,$D$197)","v":0},{"$f":"IF(SUM($D$12:AE$12)=0,0,$D$197)","v":0},{"$f":"IF(SUM($D$12:AF$12)=0,0,$D$197)","v":0},{"$f":"IF(SUM($D$12:AG$12)=0,0,$D$197)","v":0},{"$f":"IF(SUM($D$12:AH$12)=0,0,$D$197)","v":0},{"$f":"IF(SUM($D$12:AI$12)=0,0,$D$197)","v":0},{"$f":"IF(SUM($D$12:AJ$12)=0,0,$D$197)","v":0},{"$f":"IF(SUM($D$12:AK$12)=0,0,$D$197)","v":0},{"$f":"IF(SUM($D$12:AL$12)=0,0,$D$197)","v":0},{"$f":"IF(SUM($D$12:AM$12)=0,0,$D$197)","v":0},{"$f":"IF(SUM($D$12:AN$12)=0,0,$D$197)","v":0},{"$f":"IF(SUM($D$12:AO$12)=0,0,$D$197)","v":0},{"$f":"IF(SUM($D$12:AP$12)=0,0,$D$197)","v":0},{"$f":"IF(SUM($D$12:AQ$12)=0,0,$D$197)","v":0},{"$f":"IF(SUM($D$12:AR$12)=0,0,$D$197)","v":0},{"$f":"IF(SUM($D$12:AS$12)=0,0,$D$197)","v":0},{"$f":"IF(SUM($D$12:AT$12)=0,0,$D$197)","v":0},{"$f":"IF(SUM($D$12:AU$12)=0,0,$D$197)","v":0},{"$f":"IF(SUM($D$12:AV$12)=0,0,$D$197)","v":0},{"$f":"IF(SUM($D$12:AW$12)=0,0,$D$197)","v":0},{"$f":"IF(SUM($D$12:AX$12)=0,0,$D$197)","v":0},{"$f":"IF(SUM($D$12:AY$12)=0,0,$D$197)","v":0},{"$f":"IF(SUM($D$12:AZ$12)=0,0,$D$197)","v":0},{"$f":"IF(SUM($D$12:BA$12)=0,0,$D$197)","v":0},{"$f":"IF(SUM($D$12:BB$12)=0,0,$D$197)","v":0},{"$f":"IF(SUM($D$12:BC$12)=0,0,$D$197)","v":0},{"$f":"IF(SUM($D$12:BD$12)=0,0,$D$197)","v":0},{"$f":"IF(SUM($D$12:BE$12)=0,0,$D$197)","v":0},{"$f":"IF(SUM($D$12:BF$12)=0,0,$D$197)","v":0},{"$f":"IF(SUM($D$12:BG$12)=0,0,$D$197)","v":0},{"$f":"IF(SUM($D$12:BH$12)=0,0,$D$197)","v":0},{"$f":"IF(SUM($D$12:BI$12)=0,0,$D$197)","v":0},{"$f":"IF(SUM($D$12:BJ$12)=0,0,$D$197)","v":0},{"$f":"IF(SUM($D$12:BK$12)=0,0,$D$197)","v":0},{"$f":"IF(SUM($D$12:BL$12)=0,0,$D$197)","v":0},{"$f":"IF(SUM($D$12:BM$12)=0,0,$D$197)","v":0},{"$f":"IF(SUM($D$12:BN$12)=0,0,$D$197)","v":0},{"$f":"IF(SUM($D$12:BO$12)=0,0,$D$197)","v":0},{"$f":"IF(SUM($D$12:BP$12)=0,0,$D$197)","v":0},{"$f":"IF(SUM($D$12:BQ$12)=0,0,$D$197)","v":0},{"$f":"IF(SUM($D$12:BR$12)=0,0,$D$197)","v":0},{"$f":"IF(SUM($D$12:BS$12)=0,0,$D$197)","v":0},{"$f":"IF(SUM($D$12:BT$12)=0,0,$D$197)","v":0},{"$f":"IF(SUM($D$12:BU$12)=0,0,$D$197)","v":0},{"$f":"IF(SUM($D$12:BV$12)=0,0,$D$197)","v":0},{"$f":"IF(SUM($D$12:BW$12)=0,0,$D$197)","v":0},{"$f":"IF(SUM($D$12:BX$12)=0,0,$D$197)","v":0},{"$f":"IF(SUM($D$12:BY$12)=0,0,$D$197)","v":0},{"$f":"IF(SUM($D$12:BZ$12)=0,0,$D$197)","v":0},{"$f":"IF(SUM($D$12:CA$12)=0,0,$D$197)","v":0},{"$f":"IF(SUM($D$12:CB$12)=0,0,$D$197)","v":0},{"$f":"IF(SUM($D$12:CC$12)=0,0,$D$197)","v":0},{"$f":"IF(SUM($D$12:CD$12)=0,0,$D$197)","v":0},{"$f":"IF(SUM($D$12:CE$12)=0,0,$D$197)","v":0},{"$f":"IF(SUM($D$12:CF$12)=0,0,$D$197)","v":0},{"$f":"IF(SUM($D$12:CG$12)=0,0,$D$197)","v":0},{"$f":"IF(SUM($D$12:CH$12)=0,0,$D$197)","v":0},{"$f":"IF(SUM($D$12:CI$12)=0,0,$D$197)","v":0},{"$f":"IF(SUM($D$12:CJ$12)=0,0,$D$197)","v":0},{"$f":"IF(SUM($D$12:CK$12)=0,0,$D$197)","v":0},{"$f":"IF(SUM($D$12:CL$12)=0,0,$D$197)","v":0},{"$f":"IF(SUM($D$12:CM$12)=0,0,$D$197)","v":0},{"$f":"IF(SUM($D$12:CN$12)=0,0,$D$197)","v":0},{"$f":"IF(SUM($D$12:CO$12)=0,0,$D$197)","v":0},{"$f":"IF(SUM($D$12:CP$12)=0,0,$D$197)","v":0},{"$f":"IF(SUM($D$12:CQ$12)=0,0,$D$197)","v":0},{"$f":"IF(SUM($D$12:CR$12)=0,0,$D$197)","v":0},{"$f":"IF(SUM($D$12:CS$12)=0,0,$D$197)","v":0},{"$f":"IF(SUM($D$12:CT$12)=0,0,$D$197)","v":0},{"$f":"IF(SUM($D$12:CU$12)=0,0,$D$197)","v":0},{"$f":"IF(SUM($D$12:CV$12)=0,0,$D$197)","v":0},{"$f":"IF(SUM($D$12:CW$12)=0,0,$D$197)","v":0},{"$f":"IF(SUM($D$12:CX$12)=0,0,$D$197)","v":0},{"$f":"IF(SUM($D$12:CY$12)=0,0,$D$197)","v":0}]
[null,"Discounted WACC","£000's",{"$f":"D198*D$7","v":0},0,0,0,0,0,0,0,0,0,0,0,0,0,0,0,0,0,0,0,0,0,0,0,0,0,0,0,0,0,0,0,0,0,0,0,0,0,0,0,0,0,0,0,0,0,0,0,0,0,0,0,0,0,0,0,0,0,0,0,0,0,0,0,{"$f":"BP198*BP$7","v":0},0,0,0,0,0,0,0,0,0,0,0,0,0,0,0,0,0,0,0,0,0,0,0,0,0,0,0,0,0,0,0,0,0,0,0]
[]
[null,"Financing costs"]
[null,"Financing costs (if entered manually)","£000's",{"$f":"'Data Input - Option 4'!H42","v":0},{"$f":"'Data Input - Option 4'!I42","v":0},{"$f":"'Data Input - Option 4'!J42","v":0},{"$f":"'Data Input - Option 4'!K42","v":0},{"$f":"'Data Input - Option 4'!L42","v":0},{"$f":"'Data Input - Option 4'!M42","v":0},{"$f":"'Data Input - Option 4'!N42","v":0},{"$f":"'Data Input - Option 4'!O42","v":0},{"$f":"'Data Input - Option 4'!P42","v":0},{"$f":"'Data Input - Option 4'!Q42","v":0},{"$f":"'Data Input - Option 4'!R42","v":0},{"$f":"'Data Input - Option 4'!S42","v":0},{"$f":"'Data Input - Option 4'!T42","v":0},{"$f":"'Data Input - Option 4'!U42","v":0},{"$f":"'Data Input - Option 4'!V42","v":0},{"$f":"'Data Input - Option 4'!W42","v":0},{"$f":"'Data Input - Option 4'!X42","v":0},{"$f":"'Data Input - Option 4'!Y42","v":0},{"$f":"'Data Input - Option 4'!Z42","v":0},{"$f":"'Data Input - Option 4'!AA42","v":0},{"$f":"'Data Input - Option 4'!AB42","v":0},{"$f":"'Data Input - Option 4'!AC42","v":0},{"$f":"'Data Input - Option 4'!AD42","v":0},{"$f":"'Data Input - Option 4'!AE42","v":0},{"$f":"'Data Input - Option 4'!AF42","v":0},{"$f":"'Data Input - Option 4'!AG42","v":0},{"$f":"'Data Input - Option 4'!AH42","v":0},{"$f":"'Data Input - Option 4'!AI42","v":0},{"$f":"'Data Input - Option 4'!AJ42","v":0},{"$f":"'Data Input - Option 4'!AK42","v":0},{"$f":"'Data Input - Option 4'!AL42","v":0},{"$f":"'Data Input - Option 4'!AM42","v":0},{"$f":"'Data Input - Option 4'!AN42","v":0},{"$f":"'Data Input - Option 4'!AO42","v":0},{"$f":"'Data Input - Option 4'!AP42","v":0},{"$f":"'Data Input - Option 4'!AQ42","v":0},{"$f":"'Data Input - Option 4'!AR42","v":0},{"$f":"'Data Input - Option 4'!AS42","v":0},{"$f":"'Data Input - Option 4'!AT42","v":0},{"$f":"'Data Input - Option 4'!AU42","v":0},{"$f":"'Data Input - Option 4'!AV42","v":0},{"$f":"'Data Input - Option 4'!AW42","v":0},{"$f":"'Data Input - Option 4'!AX42","v":0},{"$f":"'Data Input - Option 4'!AY42","v":0},{"$f":"'Data Input - Option 4'!AZ42","v":0},{"$f":"'Data Input - Option 4'!BA42","v":0},{"$f":"'Data Input - Option 4'!BB42","v":0},{"$f":"'Data Input - Option 4'!BC42","v":0},{"$f":"'Data Input - Option 4'!BD42","v":0},{"$f":"'Data Input - Option 4'!BE42","v":0},{"$f":"'Data Input - Option 4'!BF42","v":0},{"$f":"'Data Input - Option 4'!BG42","v":0},{"$f":"'Data Input - Option 4'!BH42","v":0},{"$f":"'Data Input - Option 4'!BI42","v":0},{"$f":"'Data Input - Option 4'!BJ42","v":0},{"$f":"'Data Input - Option 4'!BK42","v":0},{"$f":"'Data Input - Option 4'!BL42","v":0},{"$f":"'Data Input - Option 4'!BM42","v":0},{"$f":"'Data Input - Option 4'!BN42","v":0},{"$f":"'Data Input - Option 4'!BO42","v":0},{"$f":"'Data Input - Option 4'!BP42","v":0},{"$f":"'Data Input - Option 4'!BQ42","v":0},{"$f":"'Data Input - Option 4'!BR42","v":0},{"$f":"'Data Input - Option 4'!BS42","v":0},{"$f":"'Data Input - Option 4'!BT42","v":0},{"$f":"'Data Input - Option 4'!BU42","v":0},{"$f":"'Data Input - Option 4'!BV42","v":0},{"$f":"'Data Input - Option 4'!BW42","v":0},{"$f":"'Data Input - Option 4'!BX42","v":0},{"$f":"'Data Input - Option 4'!BY42","v":0},{"$f":"'Data Input - Option 4'!BZ42","v":0},{"$f":"'Data Input - Option 4'!CA42","v":0},{"$f":"'Data Input - Option 4'!CB42","v":0},{"$f":"'Data Input - Option 4'!CC42","v":0},{"$f":"'Data Input - Option 4'!CD42","v":0},{"$f":"'Data Input - Option 4'!CE42","v":0},{"$f":"'Data Input - Option 4'!CF42","v":0},{"$f":"'Data Input - Option 4'!CG42","v":0},{"$f":"'Data Input - Option 4'!CH42","v":0},{"$f":"'Data Input - Option 4'!CI42","v":0},{"$f":"'Data Input - Option 4'!CJ42","v":0},{"$f":"'Data Input - Option 4'!CK42","v":0},{"$f":"'Data Input - Option 4'!CL42","v":0},{"$f":"'Data Input - Option 4'!CM42","v":0},{"$f":"'Data Input - Option 4'!CN42","v":0},{"$f":"'Data Input - Option 4'!CO42","v":0},{"$f":"'Data Input - Option 4'!CP42","v":0},{"$f":"'Data Input - Option 4'!CQ42","v":0},{"$f":"'Data Input - Option 4'!CR42","v":0},{"$f":"'Data Input - Option 4'!CS42","v":0},{"$f":"'Data Input - Option 4'!CT42","v":0},{"$f":"'Data Input - Option 4'!CU42","v":0},{"$f":"'Data Input - Option 4'!CV42","v":0},{"$f":"'Data Input - Option 4'!CW42","v":0},{"$f":"'Data Input - Option 4'!CX42","v":0},{"$f":"'Data Input - Option 4'!CY42","v":0},{"$f":"'Data Input - Option 4'!CZ42","v":0},{"$f":"'Data Input - Option 4'!DA42","v":0},{"$f":"'Data Input - Option 4'!DB42","v":0},{"$f":"'Data Input - Option 4'!DC42","v":0}]
[null,"Discounted finacning","£000's",{"$f":"D202*D$7","v":0},0,0,0,0,0,0,0,0,0,0,0,0,0,0,0,0,0,0,0,0,0,0,0,0,0,0,0,0,0,0,0,0,0,0,0,0,0,0,0,0,0,0,0,0,0,0,0,0,0,0,0,0,0,0,0,0,0,0,0,0,0,0,0,{"$f":"BP202*BP$7","v":0},0,0,0,0,0,0,0,0,0,0,0,0,0,0,0,0,0,0,0,0,0,0,0,0,0,0,0,0,0,0,0,0,0,0,0]
[]
[null,"Total capex","£000's",{"$f":"IF('Data Input - Option 4'!$F$37=\"Yes\",D203+D13,D199)","v":0},{"$f":"IF('Data Input - Option 4'!$F$37=\"Yes\",E203+E13,E199)","v":0},{"$f":"IF('Data Input - Option 4'!$F$37=\"Yes\",F203+F13,F199)","v":0},{"$f":"IF('Data Input - Option 4'!$F$37=\"Yes\",G203+G13,G199)","v":0},{"$f":"IF('Data Input - Option 4'!$F$37=\"Yes\",H203+H13,H199)","v":0},{"$f":"IF('Data Input - Option 4'!$F$37=\"Yes\",I203+I13,I199)","v":0},{"$f":"IF('Data Input - Option 4'!$F$37=\"Yes\",J203+J13,J199)","v":0},{"$f":"IF('Data Input - Option 4'!$F$37=\"Yes\",K203+K13,K199)","v":0},{"$f":"IF('Data Input - Option 4'!$F$37=\"Yes\",L203+L13,L199)","v":0},{"$f":"IF('Data Input - Option 4'!$F$37=\"Yes\",M203+M13,M199)","v":0},{"$f":"IF('Data Input - Option 4'!$F$37=\"Yes\",N203+N13,N199)","v":0},{"$f":"IF('Data Input - Option 4'!$F$37=\"Yes\",O203+O13,O199)","v":0},{"$f":"IF('Data Input - Option 4'!$F$37=\"Yes\",P203+P13,P199)","v":0},{"$f":"IF('Data Input - Option 4'!$F$37=\"Yes\",Q203+Q13,Q199)","v":0},{"$f":"IF('Data Input - Option 4'!$F$37=\"Yes\",R203+R13,R199)","v":0},{"$f":"IF('Data Input - Option 4'!$F$37=\"Yes\",S203+S13,S199)","v":0},{"$f":"IF('Data Input - Option 4'!$F$37=\"Yes\",T203+T13,T199)","v":0},{"$f":"IF('Data Input - Option 4'!$F$37=\"Yes\",U203+U13,U199)","v":0},{"$f":"IF('Data Input - Option 4'!$F$37=\"Yes\",V203+V13,V199)","v":0},{"$f":"IF('Data Input - Option 4'!$F$37=\"Yes\",W203+W13,W199)","v":0},{"$f":"IF('Data Input - Option 4'!$F$37=\"Yes\",X203+X13,X199)","v":0},{"$f":"IF('Data Input - Option 4'!$F$37=\"Yes\",Y203+Y13,Y199)","v":0},{"$f":"IF('Data Input - Option 4'!$F$37=\"Yes\",Z203+Z13,Z199)","v":0},{"$f":"IF('Data Input - Option 4'!$F$37=\"Yes\",AA203+AA13,AA199)","v":0},{"$f":"IF('Data Input - Option 4'!$F$37=\"Yes\",AB203+AB13,AB199)","v":0},{"$f":"IF('Data Input - Option 4'!$F$37=\"Yes\",AC203+AC13,AC199)","v":0},{"$f":"IF('Data Input - Option 4'!$F$37=\"Yes\",AD203+AD13,AD199)","v":0},{"$f":"IF('Data Input - Option 4'!$F$37=\"Yes\",AE203+AE13,AE199)","v":0},{"$f":"IF('Data Input - Option 4'!$F$37=\"Yes\",AF203+AF13,AF199)","v":0},{"$f":"IF('Data Input - Option 4'!$F$37=\"Yes\",AG203+AG13,AG199)","v":0},{"$f":"IF('Data Input - Option 4'!$F$37=\"Yes\",AH203+AH13,AH199)","v":0},{"$f":"IF('Data Input - Option 4'!$F$37=\"Yes\",AI203+AI13,AI199)","v":0},{"$f":"IF('Data Input - Option 4'!$F$37=\"Yes\",AJ203+AJ13,AJ199)","v":0},{"$f":"IF('Data Input - Option 4'!$F$37=\"Yes\",AK203+AK13,AK199)","v":0},{"$f":"IF('Data Input - Option 4'!$F$37=\"Yes\",AL203+AL13,AL199)","v":0},{"$f":"IF('Data Input - Option 4'!$F$37=\"Yes\",AM203+AM13,AM199)","v":0},{"$f":"IF('Data Input - Option 4'!$F$37=\"Yes\",AN203+AN13,AN199)","v":0},{"$f":"IF('Data Input - Option 4'!$F$37=\"Yes\",AO203+AO13,AO199)","v":0},{"$f":"IF('Data Input - Option 4'!$F$37=\"Yes\",AP203+AP13,AP199)","v":0},{"$f":"IF('Data Input - Option 4'!$F$37=\"Yes\",AQ203+AQ13,AQ199)","v":0},{"$f":"IF('Data Input - Option 4'!$F$37=\"Yes\",AR203+AR13,AR199)","v":0},{"$f":"IF('Data Input - Option 4'!$F$37=\"Yes\",AS203+AS13,AS199)","v":0},{"$f":"IF('Data Input - Option 4'!$F$37=\"Yes\",AT203+AT13,AT199)","v":0},{"$f":"IF('Data Input - Option 4'!$F$37=\"Yes\",AU203+AU13,AU199)","v":0},{"$f":"IF('Data Input - Option 4'!$F$37=\"Yes\",AV203+AV13,AV199)","v":0},{"$f":"IF('Data Input - Option 4'!$F$37=\"Yes\",AW203+AW13,AW199)","v":0},{"$f":"IF('Data Input - Option 4'!$F$37=\"Yes\",AX203+AX13,AX199)","v":0},{"$f":"IF('Data Input - Option 4'!$F$37=\"Yes\",AY203+AY13,AY199)","v":0},{"$f":"IF('Data Input - Option 4'!$F$37=\"Yes\",AZ203+AZ13,AZ199)","v":0},{"$f":"IF('Data Input - Option 4'!$F$37=\"Yes\",BA203+BA13,BA199)","v":0},{"$f":"IF('Data Input - Option 4'!$F$37=\"Yes\",BB203+BB13,BB199)","v":0},{"$f":"IF('Data Input - Option 4'!$F$37=\"Yes\",BC203+BC13,BC199)","v":0},{"$f":"IF('Data Input - Option 4'!$F$37=\"Yes\",BD203+BD13,BD199)","v":0},{"$f":"IF('Data Input - Option 4'!$F$37=\"Yes\",BE203+BE13,BE199)","v":0},{"$f":"IF('Data Input - Option 4'!$F$37=\"Yes\",BF203+BF13,BF199)","v":0},{"$f":"IF('Data Input - Option 4'!$F$37=\"Yes\",BG203+BG13,BG199)","v":0},{"$f":"IF('Data Input - Option 4'!$F$37=\"Yes\",BH203+BH13,BH199)","v":0},{"$f":"IF('Data Input - Option 4'!$F$37=\"Yes\",BI203+BI13,BI199)","v":0},{"$f":"IF('Data Input - Option 4'!$F$37=\"Yes\",BJ203+BJ13,BJ199)","v":0},{"$f":"IF('Data Input - Option 4'!$F$37=\"Yes\",BK203+BK13,BK199)","v":0},{"$f":"IF('Data Input - Option 4'!$F$37=\"Yes\",BL203+BL13,BL199)","v":0},{"$f":"IF('Data Input - Option 4'!$F$37=\"Yes\",BM203+BM13,BM199)","v":0},{"$f":"IF('Data Input - Option 4'!$F$37=\"Yes\",BN203+BN13,BN199)","v":0},{"$f":"IF('Data Input - Option 4'!$F$37=\"Yes\",BO203+BO13,BO199)","v":0},{"$f":"IF('Data Input - Option 4'!$F$37=\"Yes\",BP203+BP13,BP199)","v":0},{"$f":"IF('Data Input - Option 4'!$F$37=\"Yes\",BQ203+BQ13,BQ199)","v":0},{"$f":"IF('Data Input - Option 4'!$F$37=\"Yes\",BR203+BR13,BR199)","v":0},{"$f":"IF('Data Input - Option 4'!$F$37=\"Yes\",BS203+BS13,BS199)","v":0},{"$f":"IF('Data Input - Option 4'!$F$37=\"Yes\",BT203+BT13,BT199)","v":0},{"$f":"IF('Data Input - Option 4'!$F$37=\"Yes\",BU203+BU13,BU199)","v":0},{"$f":"IF('Data Input - Option 4'!$F$37=\"Yes\",BV203+BV13,BV199)","v":0},{"$f":"IF('Data Input - Option 4'!$F$37=\"Yes\",BW203+BW13,BW199)","v":0},{"$f":"IF('Data Input - Option 4'!$F$37=\"Yes\",BX203+BX13,BX199)","v":0},{"$f":"IF('Data Input - Option 4'!$F$37=\"Yes\",BY203+BY13,BY199)","v":0},{"$f":"IF('Data Input - Option 4'!$F$37=\"Yes\",BZ203+BZ13,BZ199)","v":0},{"$f":"IF('Data Input - Option 4'!$F$37=\"Yes\",CA203+CA13,CA199)","v":0},{"$f":"IF('Data Input - Option 4'!$F$37=\"Yes\",CB203+CB13,CB199)","v":0},{"$f":"IF('Data Input - Option 4'!$F$37=\"Yes\",CC203+CC13,CC199)","v":0},{"$f":"IF('Data Input - Option 4'!$F$37=\"Yes\",CD203+CD13,CD199)","v":0},{"$f":"IF('Data Input - Option 4'!$F$37=\"Yes\",CE203+CE13,CE199)","v":0},{"$f":"IF('Data Input - Option 4'!$F$37=\"Yes\",CF203+CF13,CF199)","v":0},{"$f":"IF('Data Input - Option 4'!$F$37=\"Yes\",CG203+CG13,CG199)","v":0},{"$f":"IF('Data Input - Option 4'!$F$37=\"Yes\",CH203+CH13,CH199)","v":0},{"$f":"IF('Data Input - Option 4'!$F$37=\"Yes\",CI203+CI13,CI199)","v":0},{"$f":"IF('Data Input - Option 4'!$F$37=\"Yes\",CJ203+CJ13,CJ199)","v":0},{"$f":"IF('Data Input - Option 4'!$F$37=\"Yes\",CK203+CK13,CK199)","v":0},{"$f":"IF('Data Input - Option 4'!$F$37=\"Yes\",CL203+CL13,CL199)","v":0},{"$f":"IF('Data Input - Option 4'!$F$37=\"Yes\",CM203+CM13,CM199)","v":0},{"$f":"IF('Data Input - Option 4'!$F$37=\"Yes\",CN203+CN13,CN199)","v":0},{"$f":"IF('Data Input - Option 4'!$F$37=\"Yes\",CO203+CO13,CO199)","v":0},{"$f":"IF('Data Input - Option 4'!$F$37=\"Yes\",CP203+CP13,CP199)","v":0},{"$f":"IF('Data Input - Option 4'!$F$37=\"Yes\",CQ203+CQ13,CQ199)","v":0},{"$f":"IF('Data Input - Option 4'!$F$37=\"Yes\",CR203+CR13,CR199)","v":0},{"$f":"IF('Data Input - Option 4'!$F$37=\"Yes\",CS203+CS13,CS199)","v":0},{"$f":"IF('Data Input - Option 4'!$F$37=\"Yes\",CT203+CT13,CT199)","v":0},{"$f":"IF('Data Input - Option 4'!$F$37=\"Yes\",CU203+CU13,CU199)","v":0},{"$f":"IF('Data Input - Option 4'!$F$37=\"Yes\",CV203+CV13,CV199)","v":0},{"$f":"IF('Data Input - Option 4'!$F$37=\"Yes\",CW203+CW13,CW199)","v":0},{"$f":"IF('Data Input - Option 4'!$F$37=\"Yes\",CX203+CX13,CX199)","v":0},{"$f":"IF('Data Input - Option 4'!$F$37=\"Yes\",CY203+CY13,CY199)","v":0}]
[]
[null,"Low high WACC combined with low high capex"]
[]
[null,"Low WACC","%",{"$f":"'Data Input - General'!F16","v":0.06}]
[null,"Annualised payment","£000's",{"$f":"IFERROR(-PMT($D$185,SUM('Data Input - General'!$H$26:$H$28),D20*(1-D177)*1000)/1000,0)","v":0}]
[null,"Annual value","£000's",{"$f":"IF(SUM($D$12:D$12)=0,0,$D$210)","v":0},{"$f":"IF(SUM($D$12:E$12)=0,0,$D$210)","v":0},{"$f":"IF(SUM($D$12:F$12)=0,0,$D$210)","v":0},{"$f":"IF(SUM($D$12:G$12)=0,0,$D$210)","v":0},{"$f":"IF(SUM($D$12:H$12)=0,0,$D$210)","v":0},{"$f":"IF(SUM($D$12:I$12)=0,0,$D$210)","v":0},{"$f":"IF(SUM($D$12:J$12)=0,0,$D$210)","v":0},{"$f":"IF(SUM($D$12:K$12)=0,0,$D$210)","v":0},{"$f":"IF(SUM($D$12:L$12)=0,0,$D$210)","v":0},{"$f":"IF(SUM($D$12:M$12)=0,0,$D$210)","v":0},{"$f":"IF(SUM($D$12:N$12)=0,0,$D$210)","v":0},{"$f":"IF(SUM($D$12:O$12)=0,0,$D$210)","v":0},{"$f":"IF(SUM($D$12:P$12)=0,0,$D$210)","v":0},{"$f":"IF(SUM($D$12:Q$12)=0,0,$D$210)","v":0},{"$f":"IF(SUM($D$12:R$12)=0,0,$D$210)","v":0},{"$f":"IF(SUM($D$12:S$12)=0,0,$D$210)","v":0},{"$f":"IF(SUM($D$12:T$12)=0,0,$D$210)","v":0},{"$f":"IF(SUM($D$12:U$12)=0,0,$D$210)","v":0},{"$f":"IF(SUM($D$12:V$12)=0,0,$D$210)","v":0},{"$f":"IF(SUM($D$12:W$12)=0,0,$D$210)","v":0},{"$f":"IF(SUM($D$12:X$12)=0,0,$D$210)","v":0},{"$f":"IF(SUM($D$12:Y$12)=0,0,$D$210)","v":0},{"$f":"IF(SUM($D$12:Z$12)=0,0,$D$210)","v":0},{"$f":"IF(SUM($D$12:AA$12)=0,0,$D$210)","v":0},{"$f":"IF(SUM($D$12:AB$12)=0,0,$D$210)","v":0},{"$f":"IF(SUM($D$12:AC$12)=0,0,$D$210)","v":0},{"$f":"IF(SUM($D$12:AD$12)=0,0,$D$210)","v":0},{"$f":"IF(SUM($D$12:AE$12)=0,0,$D$210)","v":0},{"$f":"IF(SUM($D$12:AF$12)=0,0,$D$210)","v":0},{"$f":"IF(SUM($D$12:AG$12)=0,0,$D$210)","v":0},{"$f":"IF(SUM($D$12:AH$12)=0,0,$D$210)","v":0},{"$f":"IF(SUM($D$12:AI$12)=0,0,$D$210)","v":0},{"$f":"IF(SUM($D$12:AJ$12)=0,0,$D$210)","v":0},{"$f":"IF(SUM($D$12:AK$12)=0,0,$D$210)","v":0},{"$f":"IF(SUM($D$12:AL$12)=0,0,$D$210)","v":0},{"$f":"IF(SUM($D$12:AM$12)=0,0,$D$210)","v":0},{"$f":"IF(SUM($D$12:AN$12)=0,0,$D$210)","v":0},{"$f":"IF(SUM($D$12:AO$12)=0,0,$D$210)","v":0},{"$f":"IF(SUM($D$12:AP$12)=0,0,$D$210)","v":0},{"$f":"IF(SUM($D$12:AQ$12)=0,0,$D$210)","v":0},{"$f":"IF(SUM($D$12:AR$12)=0,0,$D$210)","v":0},{"$f":"IF(SUM($D$12:AS$12)=0,0,$D$210)","v":0},{"$f":"IF(SUM($D$12:AT$12)=0,0,$D$210)","v":0},{"$f":"IF(SUM($D$12:AU$12)=0,0,$D$210)","v":0},{"$f":"IF(SUM($D$12:AV$12)=0,0,$D$210)","v":0},{"$f":"IF(SUM($D$12:AW$12)=0,0,$D$210)","v":0},{"$f":"IF(SUM($D$12:AX$12)=0,0,$D$210)","v":0},{"$f":"IF(SUM($D$12:AY$12)=0,0,$D$210)","v":0},{"$f":"IF(SUM($D$12:AZ$12)=0,0,$D$210)","v":0},{"$f":"IF(SUM($D$12:BA$12)=0,0,$D$210)","v":0},{"$f":"IF(SUM($D$12:BB$12)=0,0,$D$210)","v":0},{"$f":"IF(SUM($D$12:BC$12)=0,0,$D$210)","v":0},{"$f":"IF(SUM($D$12:BD$12)=0,0,$D$210)","v":0},{"$f":"IF(SUM($D$12:BE$12)=0,0,$D$210)","v":0},{"$f":"IF(SUM($D$12:BF$12)=0,0,$D$210)","v":0},{"$f":"IF(SUM($D$12:BG$12)=0,0,$D$210)","v":0},{"$f":"IF(SUM($D$12:BH$12)=0,0,$D$210)","v":0},{"$f":"IF(SUM($D$12:BI$12)=0,0,$D$210)","v":0},{"$f":"IF(SUM($D$12:BJ$12)=0,0,$D$210)","v":0},{"$f":"IF(SUM($D$12:BK$12)=0,0,$D$210)","v":0},{"$f":"IF(SUM($D$12:BL$12)=0,0,$D$210)","v":0},{"$f":"IF(SUM($D$12:BM$12)=0,0,$D$210)","v":0},{"$f":"IF(SUM($D$12:BN$12)=0,0,$D$210)","v":0},{"$f":"IF(SUM($D$12:BO$12)=0,0,$D$210)","v":0},{"$f":"IF(SUM($D$12:BP$12)=0,0,$D$210)","v":0},{"$f":"IF(SUM($D$12:BQ$12)=0,0,$D$210)","v":0},{"$f":"IF(SUM($D$12:BR$12)=0,0,$D$210)","v":0},{"$f":"IF(SUM($D$12:BS$12)=0,0,$D$210)","v":0},{"$f":"IF(SUM($D$12:BT$12)=0,0,$D$210)","v":0},{"$f":"IF(SUM($D$12:BU$12)=0,0,$D$210)","v":0},{"$f":"IF(SUM($D$12:BV$12)=0,0,$D$210)","v":0},{"$f":"IF(SUM($D$12:BW$12)=0,0,$D$210)","v":0},{"$f":"IF(SUM($D$12:BX$12)=0,0,$D$210)","v":0},{"$f":"IF(SUM($D$12:BY$12)=0,0,$D$210)","v":0},{"$f":"IF(SUM($D$12:BZ$12)=0,0,$D$210)","v":0},{"$f":"IF(SUM($D$12:CA$12)=0,0,$D$210)","v":0},{"$f":"IF(SUM($D$12:CB$12)=0,0,$D$210)","v":0},{"$f":"IF(SUM($D$12:CC$12)=0,0,$D$210)","v":0},{"$f":"IF(SUM($D$12:CD$12)=0,0,$D$210)","v":0},{"$f":"IF(SUM($D$12:CE$12)=0,0,$D$210)","v":0},{"$f":"IF(SUM($D$12:CF$12)=0,0,$D$210)","v":0},{"$f":"IF(SUM($D$12:CG$12)=0,0,$D$210)","v":0},{"$f":"IF(SUM($D$12:CH$12)=0,0,$D$210)","v":0},{"$f":"IF(SUM($D$12:CI$12)=0,0,$D$210)","v":0},{"$f":"IF(SUM($D$12:CJ$12)=0,0,$D$210)","v":0},{"$f":"IF(SUM($D$12:CK$12)=0,0,$D$210)","v":0},{"$f":"IF(SUM($D$12:CL$12)=0,0,$D$210)","v":0},{"$f":"IF(SUM($D$12:CM$12)=0,0,$D$210)","v":0},{"$f":"IF(SUM($D$12:CN$12)=0,0,$D$210)","v":0},{"$f":"IF(SUM($D$12:CO$12)=0,0,$D$210)","v":0},{"$f":"IF(SUM($D$12:CP$12)=0,0,$D$210)","v":0},{"$f":"IF(SUM($D$12:CQ$12)=0,0,$D$210)","v":0},{"$f":"IF(SUM($D$12:CR$12)=0,0,$D$210)","v":0},{"$f":"IF(SUM($D$12:CS$12)=0,0,$D$210)","v":0},{"$f":"IF(SUM($D$12:CT$12)=0,0,$D$210)","v":0},{"$f":"IF(SUM($D$12:CU$12)=0,0,$D$210)","v":0},{"$f":"IF(SUM($D$12:CV$12)=0,0,$D$210)","v":0},{"$f":"IF(SUM($D$12:CW$12)=0,0,$D$210)","v":0},{"$f":"IF(SUM($D$12:CX$12)=0,0,$D$210)","v":0},{"$f":"IF(SUM($D$12:CY$12)=0,0,$D$210)","v":0}]
[null,"Discounted WACC","£000's",{"$f":"D211*D$7","v":0},0,0,0,0,0,0,0,0,0,0,0,0,0,0,0,0,0,0,0,0,0,0,0,0,0,0,0,0,0,0,0,0,0,0,0,0,0,0,0,0,0,0,0,0,0,0,0,0,0,0,0,0,0,0,0,0,0,0,0,0,0,0,0,{"$f":"BP211*BP$7","v":0},0,0,0,0,0,0,0,0,0,0,0,0,0,0,0,0,0,0,0,0,0,0,0,0,0,0,0,0,0,0,0,0,0,0,0]
[]
[null,"Financing costs"]
[null,"Financing costs (if entered manually)","£000's",{"$f":"'Data Input - Option 4'!H41","v":0},{"$f":"'Data Input - Option 4'!I41","v":0},{"$f":"'Data Input - Option 4'!J41","v":0},{"$f":"'Data Input - Option 4'!K41","v":0},{"$f":"'Data Input - Option 4'!L41","v":0},{"$f":"'Data Input - Option 4'!M41","v":0},{"$f":"'Data Input - Option 4'!N41","v":0},{"$f":"'Data Input - Option 4'!O41","v":0},{"$f":"'Data Input - Option 4'!P41","v":0},{"$f":"'Data Input - Option 4'!Q41","v":0},{"$f":"'Data Input - Option 4'!R41","v":0},{"$f":"'Data Input - Option 4'!S41","v":0},{"$f":"'Data Input - Option 4'!T41","v":0},{"$f":"'Data Input - Option 4'!U41","v":0},{"$f":"'Data Input - Option 4'!V41","v":0},{"$f":"'Data Input - Option 4'!W41","v":0},{"$f":"'Data Input - Option 4'!X41","v":0},{"$f":"'Data Input - Option 4'!Y41","v":0},{"$f":"'Data Input - Option 4'!Z41","v":0},{"$f":"'Data Input - Option 4'!AA41","v":0},{"$f":"'Data Input - Option 4'!AB41","v":0},{"$f":"'Data Input - Option 4'!AC41","v":0},{"$f":"'Data Input - Option 4'!AD41","v":0},{"$f":"'Data Input - Option 4'!AE41","v":0},{"$f":"'Data Input - Option 4'!AF41","v":0},{"$f":"'Data Input - Option 4'!AG41","v":0},{"$f":"'Data Input - Option 4'!AH41","v":0},{"$f":"'Data Input - Option 4'!AI41","v":0},{"$f":"'Data Input - Option 4'!AJ41","v":0},{"$f":"'Data Input - Option 4'!AK41","v":0},{"$f":"'Data Input - Option 4'!AL41","v":0},{"$f":"'Data Input - Option 4'!AM41","v":0},{"$f":"'Data Input - Option 4'!AN41","v":0},{"$f":"'Data Input - Option 4'!AO41","v":0},{"$f":"'Data Input - Option 4'!AP41","v":0},{"$f":"'Data Input - Option 4'!AQ41","v":0},{"$f":"'Data Input - Option 4'!AR41","v":0},{"$f":"'Data Input - Option 4'!AS41","v":0},{"$f":"'Data Input - Option 4'!AT41","v":0},{"$f":"'Data Input - Option 4'!AU41","v":0},{"$f":"'Data Input - Option 4'!AV41","v":0},{"$f":"'Data Input - Option 4'!AW41","v":0},{"$f":"'Data Input - Option 4'!AX41","v":0},{"$f":"'Data Input - Option 4'!AY41","v":0},{"$f":"'Data Input - Option 4'!AZ41","v":0},{"$f":"'Data Input - Option 4'!BA41","v":0},{"$f":"'Data Input - Option 4'!BB41","v":0},{"$f":"'Data Input - Option 4'!BC41","v":0},{"$f":"'Data Input - Option 4'!BD41","v":0},{"$f":"'Data Input - Option 4'!BE41","v":0},{"$f":"'Data Input - Option 4'!BF41","v":0},{"$f":"'Data Input - Option 4'!BG41","v":0},{"$f":"'Data Input - Option 4'!BH41","v":0},{"$f":"'Data Input - Option 4'!BI41","v":0},{"$f":"'Data Input - Option 4'!BJ41","v":0},{"$f":"'Data Input - Option 4'!BK41","v":0},{"$f":"'Data Input - Option 4'!BL41","v":0},{"$f":"'Data Input - Option 4'!BM41","v":0},{"$f":"'Data Input - Option 4'!BN41","v":0},{"$f":"'Data Input - Option 4'!BO41","v":0},{"$f":"'Data Input - Option 4'!BP41","v":0},{"$f":"'Data Input - Option 4'!BQ41","v":0},{"$f":"'Data Input - Option 4'!BR41","v":0},{"$f":"'Data Input - Option 4'!BS41","v":0},{"$f":"'Data Input - Option 4'!BT41","v":0},{"$f":"'Data Input - Option 4'!BU41","v":0},{"$f":"'Data Input - Option 4'!BV41","v":0},{"$f":"'Data Input - Option 4'!BW41","v":0},{"$f":"'Data Input - Option 4'!BX41","v":0},{"$f":"'Data Input - Option 4'!BY41","v":0},{"$f":"'Data Input - Option 4'!BZ41","v":0},{"$f":"'Data Input - Option 4'!CA41","v":0},{"$f":"'Data Input - Option 4'!CB41","v":0},{"$f":"'Data Input - Option 4'!CC41","v":0},{"$f":"'Data Input - Option 4'!CD41","v":0},{"$f":"'Data Input - Option 4'!CE41","v":0},{"$f":"'Data Input - Option 4'!CF41","v":0},{"$f":"'Data Input - Option 4'!CG41","v":0},{"$f":"'Data Input - Option 4'!CH41","v":0},{"$f":"'Data Input - Option 4'!CI41","v":0},{"$f":"'Data Input - Option 4'!CJ41","v":0},{"$f":"'Data Input - Option 4'!CK41","v":0},{"$f":"'Data Input - Option 4'!CL41","v":0},{"$f":"'Data Input - Option 4'!CM41","v":0},{"$f":"'Data Input - Option 4'!CN41","v":0},{"$f":"'Data Input - Option 4'!CO41","v":0},{"$f":"'Data Input - Option 4'!CP41","v":0},{"$f":"'Data Input - Option 4'!CQ41","v":0},{"$f":"'Data Input - Option 4'!CR41","v":0},{"$f":"'Data Input - Option 4'!CS41","v":0},{"$f":"'Data Input - Option 4'!CT41","v":0},{"$f":"'Data Input - Option 4'!CU41","v":0},{"$f":"'Data Input - Option 4'!CV41","v":0},{"$f":"'Data Input - Option 4'!CW41","v":0},{"$f":"'Data Input - Option 4'!CX41","v":0},{"$f":"'Data Input - Option 4'!CY41","v":0},{"$f":"'Data Input - Option 4'!CZ41","v":0},{"$f":"'Data Input - Option 4'!DA41","v":0},{"$f":"'Data Input - Option 4'!DB41","v":0},{"$f":"'Data Input - Option 4'!DC41","v":0}]
[null,"Discounted finacning","£000's",{"$f":"D215*D$7","v":0},0,0,0,0,0,0,0,0,0,0,0,0,0,0,0,0,0,0,0,0,0,0,0,0,0,0,0,0,0,0,0,0,0,0,0,0,0,0,0,0,0,0,0,0,0,0,0,0,0,0,0,0,0,0,0,0,0,0,0,0,0,0,0,{"$f":"BP215*BP$7","v":0},0,0,0,0,0,0,0,0,0,0,0,0,0,0,0,0,0,0,0,0,0,0,0,0,0,0,0,0,0,0,0,0,0,0,0]
[]
[null,"Total capex","£000's",{"$f":"IF('Data Input - Option 4'!$F$37=\"Yes\",D216+D13*(1-$D$177),D212)","v":0},{"$f":"IF('Data Input - Option 4'!$F$37=\"Yes\",E216+E13*(1-$D$177),E212)","v":0},{"$f":"IF('Data Input - Option 4'!$F$37=\"Yes\",F216+F13*(1-$D$177),F212)","v":0},{"$f":"IF('Data Input - Option 4'!$F$37=\"Yes\",G216+G13*(1-$D$177),G212)","v":0},{"$f":"IF('Data Input - Option 4'!$F$37=\"Yes\",H216+H13*(1-$D$177),H212)","v":0},{"$f":"IF('Data Input - Option 4'!$F$37=\"Yes\",I216+I13*(1-$D$177),I212)","v":0},{"$f":"IF('Data Input - Option 4'!$F$37=\"Yes\",J216+J13*(1-$D$177),J212)","v":0},{"$f":"IF('Data Input - Option 4'!$F$37=\"Yes\",K216+K13*(1-$D$177),K212)","v":0},{"$f":"IF('Data Input - Option 4'!$F$37=\"Yes\",L216+L13*(1-$D$177),L212)","v":0},{"$f":"IF('Data Input - Option 4'!$F$37=\"Yes\",M216+M13*(1-$D$177),M212)","v":0},{"$f":"IF('Data Input - Option 4'!$F$37=\"Yes\",N216+N13*(1-$D$177),N212)","v":0},{"$f":"IF('Data Input - Option 4'!$F$37=\"Yes\",O216+O13*(1-$D$177),O212)","v":0},{"$f":"IF('Data Input - Option 4'!$F$37=\"Yes\",P216+P13*(1-$D$177),P212)","v":0},{"$f":"IF('Data Input - Option 4'!$F$37=\"Yes\",Q216+Q13*(1-$D$177),Q212)","v":0},{"$f":"IF('Data Input - Option 4'!$F$37=\"Yes\",R216+R13*(1-$D$177),R212)","v":0},{"$f":"IF('Data Input - Option 4'!$F$37=\"Yes\",S216+S13*(1-$D$177),S212)","v":0},{"$f":"IF('Data Input - Option 4'!$F$37=\"Yes\",T216+T13*(1-$D$177),T212)","v":0},{"$f":"IF('Data Input - Option 4'!$F$37=\"Yes\",U216+U13*(1-$D$177),U212)","v":0},{"$f":"IF('Data Input - Option 4'!$F$37=\"Yes\",V216+V13*(1-$D$177),V212)","v":0},{"$f":"IF('Data Input - Option 4'!$F$37=\"Yes\",W216+W13*(1-$D$177),W212)","v":0},{"$f":"IF('Data Input - Option 4'!$F$37=\"Yes\",X216+X13*(1-$D$177),X212)","v":0},{"$f":"IF('Data Input - Option 4'!$F$37=\"Yes\",Y216+Y13*(1-$D$177),Y212)","v":0},{"$f":"IF('Data Input - Option 4'!$F$37=\"Yes\",Z216+Z13*(1-$D$177),Z212)","v":0},{"$f":"IF('Data Input - Option 4'!$F$37=\"Yes\",AA216+AA13*(1-$D$177),AA212)","v":0},{"$f":"IF('Data Input - Option 4'!$F$37=\"Yes\",AB216+AB13*(1-$D$177),AB212)","v":0},{"$f":"IF('Data Input - Option 4'!$F$37=\"Yes\",AC216+AC13*(1-$D$177),AC212)","v":0},{"$f":"IF('Data Input - Option 4'!$F$37=\"Yes\",AD216+AD13*(1-$D$177),AD212)","v":0},{"$f":"IF('Data Input - Option 4'!$F$37=\"Yes\",AE216+AE13*(1-$D$177),AE212)","v":0},{"$f":"IF('Data Input - Option 4'!$F$37=\"Yes\",AF216+AF13*(1-$D$177),AF212)","v":0},{"$f":"IF('Data Input - Option 4'!$F$37=\"Yes\",AG216+AG13*(1-$D$177),AG212)","v":0},{"$f":"IF('Data Input - Option 4'!$F$37=\"Yes\",AH216+AH13*(1-$D$177),AH212)","v":0},{"$f":"IF('Data Input - Option 4'!$F$37=\"Yes\",AI216+AI13*(1-$D$177),AI212)","v":0},{"$f":"IF('Data Input - Option 4'!$F$37=\"Yes\",AJ216+AJ13*(1-$D$177),AJ212)","v":0},{"$f":"IF('Data Input - Option 4'!$F$37=\"Yes\",AK216+AK13*(1-$D$177),AK212)","v":0},{"$f":"IF('Data Input - Option 4'!$F$37=\"Yes\",AL216+AL13*(1-$D$177),AL212)","v":0},{"$f":"IF('Data Input - Option 4'!$F$37=\"Yes\",AM216+AM13*(1-$D$177),AM212)","v":0},{"$f":"IF('Data Input - Option 4'!$F$37=\"Yes\",AN216+AN13*(1-$D$177),AN212)","v":0},{"$f":"IF('Data Input - Option 4'!$F$37=\"Yes\",AO216+AO13*(1-$D$177),AO212)","v":0},{"$f":"IF('Data Input - Option 4'!$F$37=\"Yes\",AP216+AP13*(1-$D$177),AP212)","v":0},{"$f":"IF('Data Input - Option 4'!$F$37=\"Yes\",AQ216+AQ13*(1-$D$177),AQ212)","v":0},{"$f":"IF('Data Input - Option 4'!$F$37=\"Yes\",AR216+AR13*(1-$D$177),AR212)","v":0},{"$f":"IF('Data Input - Option 4'!$F$37=\"Yes\",AS216+AS13*(1-$D$177),AS212)","v":0},{"$f":"IF('Data Input - Option 4'!$F$37=\"Yes\",AT216+AT13*(1-$D$177),AT212)","v":0},{"$f":"IF('Data Input - Option 4'!$F$37=\"Yes\",AU216+AU13*(1-$D$177),AU212)","v":0},{"$f":"IF('Data Input - Option 4'!$F$37=\"Yes\",AV216+AV13*(1-$D$177),AV212)","v":0},{"$f":"IF('Data Input - Option 4'!$F$37=\"Yes\",AW216+AW13*(1-$D$177),AW212)","v":0},{"$f":"IF('Data Input - Option 4'!$F$37=\"Yes\",AX216+AX13*(1-$D$177),AX212)","v":0},{"$f":"IF('Data Input - Option 4'!$F$37=\"Yes\",AY216+AY13*(1-$D$177),AY212)","v":0},{"$f":"IF('Data Input - Option 4'!$F$37=\"Yes\",AZ216+AZ13*(1-$D$177),AZ212)","v":0},{"$f":"IF('Data Input - Option 4'!$F$37=\"Yes\",BA216+BA13*(1-$D$177),BA212)","v":0},{"$f":"IF('Data Input - Option 4'!$F$37=\"Yes\",BB216+BB13*(1-$D$177),BB212)","v":0},{"$f":"IF('Data Input - Option 4'!$F$37=\"Yes\",BC216+BC13*(1-$D$177),BC212)","v":0},{"$f":"IF('Data Input - Option 4'!$F$37=\"Yes\",BD216+BD13*(1-$D$177),BD212)","v":0},{"$f":"IF('Data Input - Option 4'!$F$37=\"Yes\",BE216+BE13*(1-$D$177),BE212)","v":0},{"$f":"IF('Data Input - Option 4'!$F$37=\"Yes\",BF216+BF13*(1-$D$177),BF212)","v":0},{"$f":"IF('Data Input - Option 4'!$F$37=\"Yes\",BG216+BG13*(1-$D$177),BG212)","v":0},{"$f":"IF('Data Input - Option 4'!$F$37=\"Yes\",BH216+BH13*(1-$D$177),BH212)","v":0},{"$f":"IF('Data Input - Option 4'!$F$37=\"Yes\",BI216+BI13*(1-$D$177),BI212)","v":0},{"$f":"IF('Data Input - Option 4'!$F$37=\"Yes\",BJ216+BJ13*(1-$D$177),BJ212)","v":0},{"$f":"IF('Data Input - Option 4'!$F$37=\"Yes\",BK216+BK13*(1-$D$177),BK212)","v":0},{"$f":"IF('Data Input - Option 4'!$F$37=\"Yes\",BL216+BL13*(1-$D$177),BL212)","v":0},{"$f":"IF('Data Input - Option 4'!$F$37=\"Yes\",BM216+BM13*(1-$D$177),BM212)","v":0},{"$f":"IF('Data Input - Option 4'!$F$37=\"Yes\",BN216+BN13*(1-$D$177),BN212)","v":0},{"$f":"IF('Data Input - Option 4'!$F$37=\"Yes\",BO216+BO13*(1-$D$177),BO212)","v":0},{"$f":"IF('Data Input - Option 4'!$F$37=\"Yes\",BP216+BP13*(1-$D$177),BP212)","v":0},{"$f":"IF('Data Input - Option 4'!$F$37=\"Yes\",BQ216+BQ13*(1-$D$177),BQ212)","v":0},{"$f":"IF('Data Input - Option 4'!$F$37=\"Yes\",BR216+BR13*(1-$D$177),BR212)","v":0},{"$f":"IF('Data Input - Option 4'!$F$37=\"Yes\",BS216+BS13*(1-$D$177),BS212)","v":0},{"$f":"IF('Data Input - Option 4'!$F$37=\"Yes\",BT216+BT13*(1-$D$177),BT212)","v":0},{"$f":"IF('Data Input - Option 4'!$F$37=\"Yes\",BU216+BU13*(1-$D$177),BU212)","v":0},{"$f":"IF('Data Input - Option 4'!$F$37=\"Yes\",BV216+BV13*(1-$D$177),BV212)","v":0},{"$f":"IF('Data Input - Option 4'!$F$37=\"Yes\",BW216+BW13*(1-$D$177),BW212)","v":0},{"$f":"IF('Data Input - Option 4'!$F$37=\"Yes\",BX216+BX13*(1-$D$177),BX212)","v":0},{"$f":"IF('Data Input - Option 4'!$F$37=\"Yes\",BY216+BY13*(1-$D$177),BY212)","v":0},{"$f":"IF('Data Input - Option 4'!$F$37=\"Yes\",BZ216+BZ13*(1-$D$177),BZ212)","v":0},{"$f":"IF('Data Input - Option 4'!$F$37=\"Yes\",CA216+CA13*(1-$D$177),CA212)","v":0},{"$f":"IF('Data Input - Option 4'!$F$37=\"Yes\",CB216+CB13*(1-$D$177),CB212)","v":0},{"$f":"IF('Data Input - Option 4'!$F$37=\"Yes\",CC216+CC13*(1-$D$177),CC212)","v":0},{"$f":"IF('Data Input - Option 4'!$F$37=\"Yes\",CD216+CD13*(1-$D$177),CD212)","v":0},{"$f":"IF('Data Input - Option 4'!$F$37=\"Yes\",CE216+CE13*(1-$D$177),CE212)","v":0},{"$f":"IF('Data Input - Option 4'!$F$37=\"Yes\",CF216+CF13*(1-$D$177),CF212)","v":0},{"$f":"IF('Data Input - Option 4'!$F$37=\"Yes\",CG216+CG13*(1-$D$177),CG212)","v":0},{"$f":"IF('Data Input - Option 4'!$F$37=\"Yes\",CH216+CH13*(1-$D$177),CH212)","v":0},{"$f":"IF('Data Input - Option 4'!$F$37=\"Yes\",CI216+CI13*(1-$D$177),CI212)","v":0},{"$f":"IF('Data Input - Option 4'!$F$37=\"Yes\",CJ216+CJ13*(1-$D$177),CJ212)","v":0},{"$f":"IF('Data Input - Option 4'!$F$37=\"Yes\",CK216+CK13*(1-$D$177),CK212)","v":0},{"$f":"IF('Data Input - Option 4'!$F$37=\"Yes\",CL216+CL13*(1-$D$177),CL212)","v":0},{"$f":"IF('Data Input - Option 4'!$F$37=\"Yes\",CM216+CM13*(1-$D$177),CM212)","v":0},{"$f":"IF('Data Input - Option 4'!$F$37=\"Yes\",CN216+CN13*(1-$D$177),CN212)","v":0},{"$f":"IF('Data Input - Option 4'!$F$37=\"Yes\",CO216+CO13*(1-$D$177),CO212)","v":0},{"$f":"IF('Data Input - Option 4'!$F$37=\"Yes\",CP216+CP13*(1-$D$177),CP212)","v":0},{"$f":"IF('Data Input - Option 4'!$F$37=\"Yes\",CQ216+CQ13*(1-$D$177),CQ212)","v":0},{"$f":"IF('Data Input - Option 4'!$F$37=\"Yes\",CR216+CR13*(1-$D$177),CR212)","v":0},{"$f":"IF('Data Input - Option 4'!$F$37=\"Yes\",CS216+CS13*(1-$D$177),CS212)","v":0},{"$f":"IF('Data Input - Option 4'!$F$37=\"Yes\",CT216+CT13*(1-$D$177),CT212)","v":0},{"$f":"IF('Data Input - Option 4'!$F$37=\"Yes\",CU216+CU13*(1-$D$177),CU212)","v":0},{"$f":"IF('Data Input - Option 4'!$F$37=\"Yes\",CV216+CV13*(1-$D$177),CV212)","v":0},{"$f":"IF('Data Input - Option 4'!$F$37=\"Yes\",CW216+CW13*(1-$D$177),CW212)","v":0},{"$f":"IF('Data Input - Option 4'!$F$37=\"Yes\",CX216+CX13*(1-$D$177),CX212)","v":0},{"$f":"IF('Data Input - Option 4'!$F$37=\"Yes\",CY216+CY13*(1-$D$177),CY212)","v":0}]
[]
[null,"High WACC","%",{"$f":"'Data Input - General'!H16","v":7.0000000000000007E-2}]
[null,"Annualised payment","£000's",{"$f":"IFERROR(-PMT($D$196,SUM('Data Input - General'!$H$26:$H$28),D20*(1+D177)*1000)/1000,0)","v":0}]
[null,"Annual value","£000's",{"$f":"IF(SUM($D$12:D$12)=0,0,$D$221)","v":0},{"$f":"IF(SUM($D$12:E$12)=0,0,$D$221)","v":0},{"$f":"IF(SUM($D$12:F$12)=0,0,$D$221)","v":0},{"$f":"IF(SUM($D$12:G$12)=0,0,$D$221)","v":0},{"$f":"IF(SUM($D$12:H$12)=0,0,$D$221)","v":0},{"$f":"IF(SUM($D$12:I$12)=0,0,$D$221)","v":0},{"$f":"IF(SUM($D$12:J$12)=0,0,$D$221)","v":0},{"$f":"IF(SUM($D$12:K$12)=0,0,$D$221)","v":0},{"$f":"IF(SUM($D$12:L$12)=0,0,$D$221)","v":0},{"$f":"IF(SUM($D$12:M$12)=0,0,$D$221)","v":0},{"$f":"IF(SUM($D$12:N$12)=0,0,$D$221)","v":0},{"$f":"IF(SUM($D$12:O$12)=0,0,$D$221)","v":0},{"$f":"IF(SUM($D$12:P$12)=0,0,$D$221)","v":0},{"$f":"IF(SUM($D$12:Q$12)=0,0,$D$221)","v":0},{"$f":"IF(SUM($D$12:R$12)=0,0,$D$221)","v":0},{"$f":"IF(SUM($D$12:S$12)=0,0,$D$221)","v":0},{"$f":"IF(SUM($D$12:T$12)=0,0,$D$221)","v":0},{"$f":"IF(SUM($D$12:U$12)=0,0,$D$221)","v":0},{"$f":"IF(SUM($D$12:V$12)=0,0,$D$221)","v":0},{"$f":"IF(SUM($D$12:W$12)=0,0,$D$221)","v":0},{"$f":"IF(SUM($D$12:X$12)=0,0,$D$221)","v":0},{"$f":"IF(SUM($D$12:Y$12)=0,0,$D$221)","v":0},{"$f":"IF(SUM($D$12:Z$12)=0,0,$D$221)","v":0},{"$f":"IF(SUM($D$12:AA$12)=0,0,$D$221)","v":0},{"$f":"IF(SUM($D$12:AB$12)=0,0,$D$221)","v":0},{"$f":"IF(SUM($D$12:AC$12)=0,0,$D$221)","v":0},{"$f":"IF(SUM($D$12:AD$12)=0,0,$D$221)","v":0},{"$f":"IF(SUM($D$12:AE$12)=0,0,$D$221)","v":0},{"$f":"IF(SUM($D$12:AF$12)=0,0,$D$221)","v":0},{"$f":"IF(SUM($D$12:AG$12)=0,0,$D$221)","v":0},{"$f":"IF(SUM($D$12:AH$12)=0,0,$D$221)","v":0},{"$f":"IF(SUM($D$12:AI$12)=0,0,$D$221)","v":0},{"$f":"IF(SUM($D$12:AJ$12)=0,0,$D$221)","v":0},{"$f":"IF(SUM($D$12:AK$12)=0,0,$D$221)","v":0},{"$f":"IF(SUM($D$12:AL$12)=0,0,$D$221)","v":0},{"$f":"IF(SUM($D$12:AM$12)=0,0,$D$221)","v":0},{"$f":"IF(SUM($D$12:AN$12)=0,0,$D$221)","v":0},{"$f":"IF(SUM($D$12:AO$12)=0,0,$D$221)","v":0},{"$f":"IF(SUM($D$12:AP$12)=0,0,$D$221)","v":0},{"$f":"IF(SUM($D$12:AQ$12)=0,0,$D$221)","v":0},{"$f":"IF(SUM($D$12:AR$12)=0,0,$D$221)","v":0},{"$f":"IF(SUM($D$12:AS$12)=0,0,$D$221)","v":0},{"$f":"IF(SUM($D$12:AT$12)=0,0,$D$221)","v":0},{"$f":"IF(SUM($D$12:AU$12)=0,0,$D$221)","v":0},{"$f":"IF(SUM($D$12:AV$12)=0,0,$D$221)","v":0},{"$f":"IF(SUM($D$12:AW$12)=0,0,$D$221)","v":0},{"$f":"IF(SUM($D$12:AX$12)=0,0,$D$221)","v":0},{"$f":"IF(SUM($D$12:AY$12)=0,0,$D$221)","v":0},{"$f":"IF(SUM($D$12:AZ$12)=0,0,$D$221)","v":0},{"$f":"IF(SUM($D$12:BA$12)=0,0,$D$221)","v":0},{"$f":"IF(SUM($D$12:BB$12)=0,0,$D$221)","v":0},{"$f":"IF(SUM($D$12:BC$12)=0,0,$D$221)","v":0},{"$f":"IF(SUM($D$12:BD$12)=0,0,$D$221)","v":0},{"$f":"IF(SUM($D$12:BE$12)=0,0,$D$221)","v":0},{"$f":"IF(SUM($D$12:BF$12)=0,0,$D$221)","v":0},{"$f":"IF(SUM($D$12:BG$12)=0,0,$D$221)","v":0},{"$f":"IF(SUM($D$12:BH$12)=0,0,$D$221)","v":0},{"$f":"IF(SUM($D$12:BI$12)=0,0,$D$221)","v":0},{"$f":"IF(SUM($D$12:BJ$12)=0,0,$D$221)","v":0},{"$f":"IF(SUM($D$12:BK$12)=0,0,$D$221)","v":0},{"$f":"IF(SUM($D$12:BL$12)=0,0,$D$221)","v":0},{"$f":"IF(SUM($D$12:BM$12)=0,0,$D$221)","v":0},{"$f":"IF(SUM($D$12:BN$12)=0,0,$D$221)","v":0},{"$f":"IF(SUM($D$12:BO$12)=0,0,$D$221)","v":0},{"$f":"IF(SUM($D$12:BP$12)=0,0,$D$221)","v":0},{"$f":"IF(SUM($D$12:BQ$12)=0,0,$D$221)","v":0},{"$f":"IF(SUM($D$12:BR$12)=0,0,$D$221)","v":0},{"$f":"IF(SUM($D$12:BS$12)=0,0,$D$221)","v":0},{"$f":"IF(SUM($D$12:BT$12)=0,0,$D$221)","v":0},{"$f":"IF(SUM($D$12:BU$12)=0,0,$D$221)","v":0},{"$f":"IF(SUM($D$12:BV$12)=0,0,$D$221)","v":0},{"$f":"IF(SUM($D$12:BW$12)=0,0,$D$221)","v":0},{"$f":"IF(SUM($D$12:BX$12)=0,0,$D$221)","v":0},{"$f":"IF(SUM($D$12:BY$12)=0,0,$D$221)","v":0},{"$f":"IF(SUM($D$12:BZ$12)=0,0,$D$221)","v":0},{"$f":"IF(SUM($D$12:CA$12)=0,0,$D$221)","v":0},{"$f":"IF(SUM($D$12:CB$12)=0,0,$D$221)","v":0},{"$f":"IF(SUM($D$12:CC$12)=0,0,$D$221)","v":0},{"$f":"IF(SUM($D$12:CD$12)=0,0,$D$221)","v":0},{"$f":"IF(SUM($D$12:CE$12)=0,0,$D$221)","v":0},{"$f":"IF(SUM($D$12:CF$12)=0,0,$D$221)","v":0},{"$f":"IF(SUM($D$12:CG$12)=0,0,$D$221)","v":0},{"$f":"IF(SUM($D$12:CH$12)=0,0,$D$221)","v":0},{"$f":"IF(SUM($D$12:CI$12)=0,0,$D$221)","v":0},{"$f":"IF(SUM($D$12:CJ$12)=0,0,$D$221)","v":0},{"$f":"IF(SUM($D$12:CK$12)=0,0,$D$221)","v":0},{"$f":"IF(SUM($D$12:CL$12)=0,0,$D$221)","v":0},{"$f":"IF(SUM($D$12:CM$12)=0,0,$D$221)","v":0},{"$f":"IF(SUM($D$12:CN$12)=0,0,$D$221)","v":0},{"$f":"IF(SUM($D$12:CO$12)=0,0,$D$221)","v":0},{"$f":"IF(SUM($D$12:CP$12)=0,0,$D$221)","v":0},{"$f":"IF(SUM($D$12:CQ$12)=0,0,$D$221)","v":0},{"$f":"IF(SUM($D$12:CR$12)=0,0,$D$221)","v":0},{"$f":"IF(SUM($D$12:CS$12)=0,0,$D$221)","v":0},{"$f":"IF(SUM($D$12:CT$12)=0,0,$D$221)","v":0},{"$f":"IF(SUM($D$12:CU$12)=0,0,$D$221)","v":0},{"$f":"IF(SUM($D$12:CV$12)=0,0,$D$221)","v":0},{"$f":"IF(SUM($D$12:CW$12)=0,0,$D$221)","v":0},{"$f":"IF(SUM($D$12:CX$12)=0,0,$D$221)","v":0},{"$f":"IF(SUM($D$12:CY$12)=0,0,$D$221)","v":0}]
[null,"Discounted WACC","£000's",{"$f":"D222*D$7","v":0},{"$f":"E222*E$7","v":0},0,0,0,0,0,0,0,0,0,0,0,0,0,0,0,0,0,0,0,0,0,0,0,0,0,0,0,0,0,0,0,0,0,0,0,0,0,0,0,0,0,0,0,0,0,0,0,0,0,0,0,0,0,0,0,0,0,0,0,0,0,0,0,{"$f":"BQ222*BQ$7","v":0},0,0,0,0,0,0,0,0,0,0,0,0,0,0,0,0,0,0,0,0,0,0,0,0,0,0,0,0,0,0,0,0,0,0]
[]
[null,"Financing costs"]
[null,"Financing costs (if entered manually)","£000's",{"$f":"'Data Input - Option 4'!H42","v":0},{"$f":"'Data Input - Option 4'!I42","v":0},{"$f":"'Data Input - Option 4'!J42","v":0},{"$f":"'Data Input - Option 4'!K42","v":0},{"$f":"'Data Input - Option 4'!L42","v":0},{"$f":"'Data Input - Option 4'!M42","v":0},{"$f":"'Data Input - Option 4'!N42","v":0},{"$f":"'Data Input - Option 4'!O42","v":0},{"$f":"'Data Input - Option 4'!P42","v":0},{"$f":"'Data Input - Option 4'!Q42","v":0},{"$f":"'Data Input - Option 4'!R42","v":0},{"$f":"'Data Input - Option 4'!S42","v":0},{"$f":"'Data Input - Option 4'!T42","v":0},{"$f":"'Data Input - Option 4'!U42","v":0},{"$f":"'Data Input - Option 4'!V42","v":0},{"$f":"'Data Input - Option 4'!W42","v":0},{"$f":"'Data Input - Option 4'!X42","v":0},{"$f":"'Data Input - Option 4'!Y42","v":0},{"$f":"'Data Input - Option 4'!Z42","v":0},{"$f":"'Data Input - Option 4'!AA42","v":0},{"$f":"'Data Input - Option 4'!AB42","v":0},{"$f":"'Data Input - Option 4'!AC42","v":0},{"$f":"'Data Input - Option 4'!AD42","v":0},{"$f":"'Data Input - Option 4'!AE42","v":0},{"$f":"'Data Input - Option 4'!AF42","v":0},{"$f":"'Data Input - Option 4'!AG42","v":0},{"$f":"'Data Input - Option 4'!AH42","v":0},{"$f":"'Data Input - Option 4'!AI42","v":0},{"$f":"'Data Input - Option 4'!AJ42","v":0},{"$f":"'Data Input - Option 4'!AK42","v":0},{"$f":"'Data Input - Option 4'!AL42","v":0},{"$f":"'Data Input - Option 4'!AM42","v":0},{"$f":"'Data Input - Option 4'!AN42","v":0},{"$f":"'Data Input - Option 4'!AO42","v":0},{"$f":"'Data Input - Option 4'!AP42","v":0},{"$f":"'Data Input - Option 4'!AQ42","v":0},{"$f":"'Data Input - Option 4'!AR42","v":0},{"$f":"'Data Input - Option 4'!AS42","v":0},{"$f":"'Data Input - Option 4'!AT42","v":0},{"$f":"'Data Input - Option 4'!AU42","v":0},{"$f":"'Data Input - Option 4'!AV42","v":0},{"$f":"'Data Input - Option 4'!AW42","v":0},{"$f":"'Data Input - Option 4'!AX42","v":0},{"$f":"'Data Input - Option 4'!AY42","v":0},{"$f":"'Data Input - Option 4'!AZ42","v":0},{"$f":"'Data Input - Option 4'!BA42","v":0},{"$f":"'Data Input - Option 4'!BB42","v":0},{"$f":"'Data Input - Option 4'!BC42","v":0},{"$f":"'Data Input - Option 4'!BD42","v":0},{"$f":"'Data Input - Option 4'!BE42","v":0},{"$f":"'Data Input - Option 4'!BF42","v":0},{"$f":"'Data Input - Option 4'!BG42","v":0},{"$f":"'Data Input - Option 4'!BH42","v":0},{"$f":"'Data Input - Option 4'!BI42","v":0},{"$f":"'Data Input - Option 4'!BJ42","v":0},{"$f":"'Data Input - Option 4'!BK42","v":0},{"$f":"'Data Input - Option 4'!BL42","v":0},{"$f":"'Data Input - Option 4'!BM42","v":0},{"$f":"'Data Input - Option 4'!BN42","v":0},{"$f":"'Data Input - Option 4'!BO42","v":0},{"$f":"'Data Input - Option 4'!BP42","v":0},{"$f":"'Data Input - Option 4'!BQ42","v":0},{"$f":"'Data Input - Option 4'!BR42","v":0},{"$f":"'Data Input - Option 4'!BS42","v":0},{"$f":"'Data Input - Option 4'!BT42","v":0},{"$f":"'Data Input - Option 4'!BU42","v":0},{"$f":"'Data Input - Option 4'!BV42","v":0},{"$f":"'Data Input - Option 4'!BW42","v":0},{"$f":"'Data Input - Option 4'!BX42","v":0},{"$f":"'Data Input - Option 4'!BY42","v":0},{"$f":"'Data Input - Option 4'!BZ42","v":0},{"$f":"'Data Input - Option 4'!CA42","v":0},{"$f":"'Data Input - Option 4'!CB42","v":0},{"$f":"'Data Input - Option 4'!CC42","v":0},{"$f":"'Data Input - Option 4'!CD42","v":0},{"$f":"'Data Input - Option 4'!CE42","v":0},{"$f":"'Data Input - Option 4'!CF42","v":0},{"$f":"'Data Input - Option 4'!CG42","v":0},{"$f":"'Data Input - Option 4'!CH42","v":0},{"$f":"'Data Input - Option 4'!CI42","v":0},{"$f":"'Data Input - Option 4'!CJ42","v":0},{"$f":"'Data Input - Option 4'!CK42","v":0},{"$f":"'Data Input - Option 4'!CL42","v":0},{"$f":"'Data Input - Option 4'!CM42","v":0},{"$f":"'Data Input - Option 4'!CN42","v":0},{"$f":"'Data Input - Option 4'!CO42","v":0},{"$f":"'Data Input - Option 4'!CP42","v":0},{"$f":"'Data Input - Option 4'!CQ42","v":0},{"$f":"'Data Input - Option 4'!CR42","v":0},{"$f":"'Data Input - Option 4'!CS42","v":0},{"$f":"'Data Input - Option 4'!CT42","v":0},{"$f":"'Data Input - Option 4'!CU42","v":0},{"$f":"'Data Input - Option 4'!CV42","v":0},{"$f":"'Data Input - Option 4'!CW42","v":0},{"$f":"'Data Input - Option 4'!CX42","v":0},{"$f":"'Data Input - Option 4'!CY42","v":0},{"$f":"'Data Input - Option 4'!CZ42","v":0},{"$f":"'Data Input - Option 4'!DA42","v":0},{"$f":"'Data Input - Option 4'!DB42","v":0},{"$f":"'Data Input - Option 4'!DC42","v":0}]
[null,"Discounted finacning","£000's",{"$f":"D226*D$7","v":0},{"$f":"E226*E$7","v":0},0,0,0,0,0,0,0,0,0,0,0,0,0,0,0,0,0,0,0,0,0,0,0,0,0,0,0,0,0,0,0,0,0,0,0,0,0,0,0,0,0,0,0,0,0,0,0,0,0,0,0,0,0,0,0,0,0,0,0,0,0,0,0,{"$f":"BQ226*BQ$7","v":0},0,0,0,0,0,0,0,0,0,0,0,0,0,0,0,0,0,0,0,0,0,0,0,0,0,0,0,0,0,0,0,0,0,0]
[]
[null,"Total capex","£000's",{"$f":"IF('Data Input - Option 4'!$F$37=\"Yes\",D227+D13*(1+$D$177),D223)","v":0},{"$f":"IF('Data Input - Option 4'!$F$37=\"Yes\",E227+E13*(1+$D$177),E223)","v":0},{"$f":"IF('Data Input - Option 4'!$F$37=\"Yes\",F227+F13*(1+$D$177),F223)","v":0},{"$f":"IF('Data Input - Option 4'!$F$37=\"Yes\",G227+G13*(1+$D$177),G223)","v":0},{"$f":"IF('Data Input - Option 4'!$F$37=\"Yes\",H227+H13*(1+$D$177),H223)","v":0},{"$f":"IF('Data Input - Option 4'!$F$37=\"Yes\",I227+I13*(1+$D$177),I223)","v":0},{"$f":"IF('Data Input - Option 4'!$F$37=\"Yes\",J227+J13*(1+$D$177),J223)","v":0},{"$f":"IF('Data Input - Option 4'!$F$37=\"Yes\",K227+K13*(1+$D$177),K223)","v":0},{"$f":"IF('Data Input - Option 4'!$F$37=\"Yes\",L227+L13*(1+$D$177),L223)","v":0},{"$f":"IF('Data Input - Option 4'!$F$37=\"Yes\",M227+M13*(1+$D$177),M223)","v":0},{"$f":"IF('Data Input - Option 4'!$F$37=\"Yes\",N227+N13*(1+$D$177),N223)","v":0},{"$f":"IF('Data Input - Option 4'!$F$37=\"Yes\",O227+O13*(1+$D$177),O223)","v":0},{"$f":"IF('Data Input - Option 4'!$F$37=\"Yes\",P227+P13*(1+$D$177),P223)","v":0},{"$f":"IF('Data Input - Option 4'!$F$37=\"Yes\",Q227+Q13*(1+$D$177),Q223)","v":0},{"$f":"IF('Data Input - Option 4'!$F$37=\"Yes\",R227+R13*(1+$D$177),R223)","v":0},{"$f":"IF('Data Input - Option 4'!$F$37=\"Yes\",S227+S13*(1+$D$177),S223)","v":0},{"$f":"IF('Data Input - Option 4'!$F$37=\"Yes\",T227+T13*(1+$D$177),T223)","v":0},{"$f":"IF('Data Input - Option 4'!$F$37=\"Yes\",U227+U13*(1+$D$177),U223)","v":0},{"$f":"IF('Data Input - Option 4'!$F$37=\"Yes\",V227+V13*(1+$D$177),V223)","v":0},{"$f":"IF('Data Input - Option 4'!$F$37=\"Yes\",W227+W13*(1+$D$177),W223)","v":0},{"$f":"IF('Data Input - Option 4'!$F$37=\"Yes\",X227+X13*(1+$D$177),X223)","v":0},{"$f":"IF('Data Input - Option 4'!$F$37=\"Yes\",Y227+Y13*(1+$D$177),Y223)","v":0},{"$f":"IF('Data Input - Option 4'!$F$37=\"Yes\",Z227+Z13*(1+$D$177),Z223)","v":0},{"$f":"IF('Data Input - Option 4'!$F$37=\"Yes\",AA227+AA13*(1+$D$177),AA223)","v":0},{"$f":"IF('Data Input - Option 4'!$F$37=\"Yes\",AB227+AB13*(1+$D$177),AB223)","v":0},{"$f":"IF('Data Input - Option 4'!$F$37=\"Yes\",AC227+AC13*(1+$D$177),AC223)","v":0},{"$f":"IF('Data Input - Option 4'!$F$37=\"Yes\",AD227+AD13*(1+$D$177),AD223)","v":0},{"$f":"IF('Data Input - Option 4'!$F$37=\"Yes\",AE227+AE13*(1+$D$177),AE223)","v":0},{"$f":"IF('Data Input - Option 4'!$F$37=\"Yes\",AF227+AF13*(1+$D$177),AF223)","v":0},{"$f":"IF('Data Input - Option 4'!$F$37=\"Yes\",AG227+AG13*(1+$D$177),AG223)","v":0},{"$f":"IF('Data Input - Option 4'!$F$37=\"Yes\",AH227+AH13*(1+$D$177),AH223)","v":0},{"$f":"IF('Data Input - Option 4'!$F$37=\"Yes\",AI227+AI13*(1+$D$177),AI223)","v":0},{"$f":"IF('Data Input - Option 4'!$F$37=\"Yes\",AJ227+AJ13*(1+$D$177),AJ223)","v":0},{"$f":"IF('Data Input - Option 4'!$F$37=\"Yes\",AK227+AK13*(1+$D$177),AK223)","v":0},{"$f":"IF('Data Input - Option 4'!$F$37=\"Yes\",AL227+AL13*(1+$D$177),AL223)","v":0},{"$f":"IF('Data Input - Option 4'!$F$37=\"Yes\",AM227+AM13*(1+$D$177),AM223)","v":0},{"$f":"IF('Data Input - Option 4'!$F$37=\"Yes\",AN227+AN13*(1+$D$177),AN223)","v":0},{"$f":"IF('Data Input - Option 4'!$F$37=\"Yes\",AO227+AO13*(1+$D$177),AO223)","v":0},{"$f":"IF('Data Input - Option 4'!$F$37=\"Yes\",AP227+AP13*(1+$D$177),AP223)","v":0},{"$f":"IF('Data Input - Option 4'!$F$37=\"Yes\",AQ227+AQ13*(1+$D$177),AQ223)","v":0},{"$f":"IF('Data Input - Option 4'!$F$37=\"Yes\",AR227+AR13*(1+$D$177),AR223)","v":0},{"$f":"IF('Data Input - Option 4'!$F$37=\"Yes\",AS227+AS13*(1+$D$177),AS223)","v":0},{"$f":"IF('Data Input - Option 4'!$F$37=\"Yes\",AT227+AT13*(1+$D$177),AT223)","v":0},{"$f":"IF('Data Input - Option 4'!$F$37=\"Yes\",AU227+AU13*(1+$D$177),AU223)","v":0},{"$f":"IF('Data Input - Option 4'!$F$37=\"Yes\",AV227+AV13*(1+$D$177),AV223)","v":0},{"$f":"IF('Data Input - Option 4'!$F$37=\"Yes\",AW227+AW13*(1+$D$177),AW223)","v":0},{"$f":"IF('Data Input - Option 4'!$F$37=\"Yes\",AX227+AX13*(1+$D$177),AX223)","v":0},{"$f":"IF('Data Input - Option 4'!$F$37=\"Yes\",AY227+AY13*(1+$D$177),AY223)","v":0},{"$f":"IF('Data Input - Option 4'!$F$37=\"Yes\",AZ227+AZ13*(1+$D$177),AZ223)","v":0},{"$f":"IF('Data Input - Option 4'!$F$37=\"Yes\",BA227+BA13*(1+$D$177),BA223)","v":0},{"$f":"IF('Data Input - Option 4'!$F$37=\"Yes\",BB227+BB13*(1+$D$177),BB223)","v":0},{"$f":"IF('Data Input - Option 4'!$F$37=\"Yes\",BC227+BC13*(1+$D$177),BC223)","v":0},{"$f":"IF('Data Input - Option 4'!$F$37=\"Yes\",BD227+BD13*(1+$D$177),BD223)","v":0},{"$f":"IF('Data Input - Option 4'!$F$37=\"Yes\",BE227+BE13*(1+$D$177),BE223)","v":0},{"$f":"IF('Data Input - Option 4'!$F$37=\"Yes\",BF227+BF13*(1+$D$177),BF223)","v":0},{"$f":"IF('Data Input - Option 4'!$F$37=\"Yes\",BG227+BG13*(1+$D$177),BG223)","v":0},{"$f":"IF('Data Input - Option 4'!$F$37=\"Yes\",BH227+BH13*(1+$D$177),BH223)","v":0},{"$f":"IF('Data Input - Option 4'!$F$37=\"Yes\",BI227+BI13*(1+$D$177),BI223)","v":0},{"$f":"IF('Data Input - Option 4'!$F$37=\"Yes\",BJ227+BJ13*(1+$D$177),BJ223)","v":0},{"$f":"IF('Data Input - Option 4'!$F$37=\"Yes\",BK227+BK13*(1+$D$177),BK223)","v":0},{"$f":"IF('Data Input - Option 4'!$F$37=\"Yes\",BL227+BL13*(1+$D$177),BL223)","v":0},{"$f":"IF('Data Input - Option 4'!$F$37=\"Yes\",BM227+BM13*(1+$D$177),BM223)","v":0},{"$f":"IF('Data Input - Option 4'!$F$37=\"Yes\",BN227+BN13*(1+$D$177),BN223)","v":0},{"$f":"IF('Data Input - Option 4'!$F$37=\"Yes\",BO227+BO13*(1+$D$177),BO223)","v":0},{"$f":"IF('Data Input - Option 4'!$F$37=\"Yes\",BP227+BP13*(1+$D$177),BP223)","v":0},{"$f":"IF('Data Input - Option 4'!$F$37=\"Yes\",BQ227+BQ13*(1+$D$177),BQ223)","v":0},{"$f":"IF('Data Input - Option 4'!$F$37=\"Yes\",BR227+BR13*(1+$D$177),BR223)","v":0},{"$f":"IF('Data Input - Option 4'!$F$37=\"Yes\",BS227+BS13*(1+$D$177),BS223)","v":0},{"$f":"IF('Data Input - Option 4'!$F$37=\"Yes\",BT227+BT13*(1+$D$177),BT223)","v":0},{"$f":"IF('Data Input - Option 4'!$F$37=\"Yes\",BU227+BU13*(1+$D$177),BU223)","v":0},{"$f":"IF('Data Input - Option 4'!$F$37=\"Yes\",BV227+BV13*(1+$D$177),BV223)","v":0},{"$f":"IF('Data Input - Option 4'!$F$37=\"Yes\",BW227+BW13*(1+$D$177),BW223)","v":0},{"$f":"IF('Data Input - Option 4'!$F$37=\"Yes\",BX227+BX13*(1+$D$177),BX223)","v":0},{"$f":"IF('Data Input - Option 4'!$F$37=\"Yes\",BY227+BY13*(1+$D$177),BY223)","v":0},{"$f":"IF('Data Input - Option 4'!$F$37=\"Yes\",BZ227+BZ13*(1+$D$177),BZ223)","v":0},{"$f":"IF('Data Input - Option 4'!$F$37=\"Yes\",CA227+CA13*(1+$D$177),CA223)","v":0},{"$f":"IF('Data Input - Option 4'!$F$37=\"Yes\",CB227+CB13*(1+$D$177),CB223)","v":0},{"$f":"IF('Data Input - Option 4'!$F$37=\"Yes\",CC227+CC13*(1+$D$177),CC223)","v":0},{"$f":"IF('Data Input - Option 4'!$F$37=\"Yes\",CD227+CD13*(1+$D$177),CD223)","v":0},{"$f":"IF('Data Input - Option 4'!$F$37=\"Yes\",CE227+CE13*(1+$D$177),CE223)","v":0},{"$f":"IF('Data Input - Option 4'!$F$37=\"Yes\",CF227+CF13*(1+$D$177),CF223)","v":0},{"$f":"IF('Data Input - Option 4'!$F$37=\"Yes\",CG227+CG13*(1+$D$177),CG223)","v":0},{"$f":"IF('Data Input - Option 4'!$F$37=\"Yes\",CH227+CH13*(1+$D$177),CH223)","v":0},{"$f":"IF('Data Input - Option 4'!$F$37=\"Yes\",CI227+CI13*(1+$D$177),CI223)","v":0},{"$f":"IF('Data Input - Option 4'!$F$37=\"Yes\",CJ227+CJ13*(1+$D$177),CJ223)","v":0},{"$f":"IF('Data Input - Option 4'!$F$37=\"Yes\",CK227+CK13*(1+$D$177),CK223)","v":0},{"$f":"IF('Data Input - Option 4'!$F$37=\"Yes\",CL227+CL13*(1+$D$177),CL223)","v":0},{"$f":"IF('Data Input - Option 4'!$F$37=\"Yes\",CM227+CM13*(1+$D$177),CM223)","v":0},{"$f":"IF('Data Input - Option 4'!$F$37=\"Yes\",CN227+CN13*(1+$D$177),CN223)","v":0},{"$f":"IF('Data Input - Option 4'!$F$37=\"Yes\",CO227+CO13*(1+$D$177),CO223)","v":0},{"$f":"IF('Data Input - Option 4'!$F$37=\"Yes\",CP227+CP13*(1+$D$177),CP223)","v":0},{"$f":"IF('Data Input - Option 4'!$F$37=\"Yes\",CQ227+CQ13*(1+$D$177),CQ223)","v":0},{"$f":"IF('Data Input - Option 4'!$F$37=\"Yes\",CR227+CR13*(1+$D$177),CR223)","v":0},{"$f":"IF('Data Input - Option 4'!$F$37=\"Yes\",CS227+CS13*(1+$D$177),CS223)","v":0},{"$f":"IF('Data Input - Option 4'!$F$37=\"Yes\",CT227+CT13*(1+$D$177),CT223)","v":0},{"$f":"IF('Data Input - Option 4'!$F$37=\"Yes\",CU227+CU13*(1+$D$177),CU223)","v":0},{"$f":"IF('Data Input - Option 4'!$F$37=\"Yes\",CV227+CV13*(1+$D$177),CV223)","v":0},{"$f":"IF('Data Input - Option 4'!$F$37=\"Yes\",CW227+CW13*(1+$D$177),CW223)","v":0},{"$f":"IF('Data Input - Option 4'!$F$37=\"Yes\",CX227+CX13*(1+$D$177),CX223)","v":0},{"$f":"IF('Data Input - Option 4'!$F$37=\"Yes\",CY227+CY13*(1+$D$177),CY223)","v":0}]
[]
[null,"TOTALS"]
[]
[null,"Scenario Name",null,"Central","Low values","High values","EEA",null,"Low cost (Capex / opex)","High Cost (capex / opex)","Low WACC","High WACC","Low cost (Capex / WACC)","High cost (Capex / WACC)"]
[null,"Capex","£000's",{"$f":"SUM(D36:CY36)","v":0},null,null,null,null,{"$f":"D234*(1-$D$177)","v":0},{"$f":"D234*(1+$D$177)","v":0},{"$f":"SUM(D194:CY194)","v":0},{"$f":"SUM(D205:CY205)","v":0},{"$f":"SUM(D218:CY218)","v":0},{"$f":"SUM(D229:CY229)","v":0}]
[null,"Opex","£000's",{"$f":"SUM(D40:CY40)","v":1},null,null,null,null,{"$f":"$D$235*(1-$D$181)","v":0.75},{"$f":"$D$235*(1+$D$181)","v":1.25}]
[null,"Waste","£000's",{"$f":"SUM(D44:CY44)","v":0}]
[null,"Energy consumption","£000's",{"$f":"SUM(D48:CY48)","v":5.0932081704451121E-4},{"$f":"SUM(D101:CY101)+SUM(D49:CY49)","v":2.7833124479980059E-4},{"$f":"SUM(D135:CY135)+SUM(D49:CY49)","v":7.9793843802543113E-4}]
[null,"Air pollutant emissions","£000's",{"$f":"SUM(D72:CY72)","v":0},{"$f":"SUM(D115:CY115)","v":0},{"$f":"SUM(D149:CY149)","v":0},{"$f":"SUM(D173:CY173)","v":0}]
[null,"GHG emissions","£000's",{"$f":"SUM(D87:CY87)","v":1.8535861301779153E-5},{"$f":"SUM(D122:CY122)","v":0},{"$f":"SUM(D156:CY156)","v":9.9391622544246769E-5}]
[null,"Wider impacts","£000's"]
[]
[null,"Sensitivity analysis",null,"Low capex","High capex","Low opex","High opex","Low energy price","High energy price","Low AQ Values","High AQ Values","EEA Values","Location adjusted AQ","Low WACC","High WACC"]
[null,"Capex","£000's",{"$f":"I234","v":0},{"$f":"J234","v":0},{"$f":"$D234","v":0},0,0,0,0,0,0,0,{"$f":"K234","v":0},{"$f":"L234","v":0}]
[null,"Opex","£000's",{"$f":"$D235","v":1},1,{"$f":"I235","v":0.75},{"$f":"J235","v":1.25},{"$f":"$D235","v":1},1,1,1,1,1,1,1]
[null,"Waste","£000's",0,0,{"$f":"$D236","v":0},0,0,0,0,0,0,0,0,0]
[null,"Energy consumption","£000's",5.0932081704451121E-4,5.0932081704451121E-4,5.0932081704451121E-4,5.0932081704451121E-4,{"$f":"E237","v":2.7833124479980059E-4},{"$f":"F237","v":7.9793843802543113E-4},{"$f":"$D237","v":5.0932081704451121E-4},5.0932081704451121E-4,5.0932081704451121E-4,5.0932081704451121E-4,5.0932081704451121E-4,5.0932081704451121E-4]
[null,"Air pollutant emissions","£000's",0,0,0,0,{"$f":"$D238","v":0},{"$f":"$D238","v":0},{"$f":"E238","v":0},{"$f":"F238","v":0},{"$f":"G238","v":0},{"$f":"H238","v":0},{"$f":"$D238","v":0},{"$f":"$D238","v":0}]
[null,"GHG emissions","£000's",1.8535861301779153E-5,1.8535861301779153E-5,1.8535861301779153E-5,1.8535861301779153E-5,{"$f":"$D239","v":1.8535861301779153E-5},{"$f":"$D239","v":1.8535861301779153E-5},{"$f":"$D239","v":1.8535861301779153E-5},{"$f":"$D239","v":1.8535861301779153E-5},{"$f":"$D239","v":1.8535861301779153E-5},{"$f":"$D239","v":1.8535861301779153E-5},{"$f":"$D239","v":1.8535861301779153E-5},{"$f":"$D239","v":1.8535861301779153E-5}]
[]
[null,"Scenario analysis",null,"H Cost/L Benefit","L Cost/H benefit"]
[null,"Capex","£000's",{"$f":"N234","v":0},{"$f":"M234","v":0}]
[null,"Opex","£000's",{"$f":"J235","v":1.25},{"$f":"I235","v":0.75}]
[null,"Waste","£000's",{"$f":"$D$236","v":0},{"$f":"$D$236","v":0}]
[null,"Energy consumption","£000's",{"$f":"E237","v":2.7833124479980059E-4},7.9793843802543113E-4]
[null,"Air pollutant emissions","£000's",0,0]
[null,"GHG emissions","£000's",0,9.9391622544246769E-5]
[]
[null,"Totals £m"]
[]
[null,"Scenario Name",null,"Central","Low values","High values","EEA","Location adjusted","Low cost (Capex / opex)","High Cost (capex / opex)","Low WACC","High WACC","Low cost (Capex / WACC)","High cost (Capex / WACC)"]
[null,"Capex","£m",{"$f":"D234/1000","v":0},0,0,0,0,0,0,0,0,0,0]
[null,"Opex","£m",{"$f":"D235/1000","v":1E-3},0,0,0,0,7.5000000000000002E-4,1.25E-3,0,0,0,0]
[null,"Waste","£m",{"$f":"D236/1000","v":0},0,0,0,0,0,0,0,0,0,0]
[null,"Energy consumption","£m",{"$f":"D237/1000","v":5.0932081704451122E-7},2.7833124479980058E-7,7.9793843802543111E-7,0,0,0,0,0,0,0,0]
[null,"Air pollutant emissions","£m",{"$f":"D238/1000","v":0},0,0,0,0,0,0,0,0,0,0]
[null,"GHG emissions","£m",{"$f":"D239/1000","v":1.8535861301779155E-8},0,9.9391622544246766E-8,0,0,0,0,0,0,0,0]
[null,"Wider impacts","£m",{"$f":"D240/1000","v":0},0,0,0,0,0,0,0,0,0,0]
[]
[null,"Sensitivity analysis",null,"Low capex","High capex","Low opex","High opex","Low energy price","High energy price","Low AQ Values","High AQ Values","EEA Values","Location adjusted AQ","Low WACC","High WACC"]
[null,"Capex","£m",{"$f":"D243/1000","v":0},0,0,0,0,0,0,0,0,0,0,0]
[null,"Opex","£m",{"$f":"D244/1000","v":1E-3},1E-3,7.5000000000000002E-4,1.25E-3,1E-3,1E-3,1E-3,1E-3,1E-3,1E-3,1E-3,1E-3]
[null,"Waste","£m",{"$f":"D245/1000","v":0},0,0,0,0,0,0,0,0,0,0,0]
[null,"Energy consumption","£m",{"$f":"D246/1000","v":5.0932081704451122E-7},5.0932081704451122E-7,5.0932081704451122E-7,5.0932081704451122E-7,2.7833124479980058E-7,7.9793843802543111E-7,5.0932081704451122E-7,5.0932081704451122E-7,5.0932081704451122E-7,5.0932081704451122E-7,5.0932081704451122E-7,5.0932081704451122E-7]
[null,"Air pollutant emissions","£m",{"$f":"D247/1000","v":0},0,0,0,0,0,0,0,0,0,0,0]
[null,"GHG emissions","£m",{"$f":"D248/1000","v":1.8535861301779155E-8},1.8535861301779155E-8,1.8535861301779155E-8,1.8535861301779155E-8,1.8535861301779155E-8,1.8535861301779155E-8,1.8535861301779155E-8,1.8535861301779155E-8,1.8535861301779155E-8,1.8535861301779155E-8,1.8535861301779155E-8,1.8535861301779155E-8]
[]
[null,"Scenario analysis",null,{"$f":"D250","v":"H Cost/L Benefit"},"L Cost/H benefit"]
[null,"Capex","£m",{"$f":"D251/1000","v":0},0]
[null,"Opex","£m",1.25E-3,7.5000000000000002E-4]
[null,"Waste","£m",0,0]
[null,"Energy consumption","£m",2.7833124479980058E-7,7.9793843802543111E-7]
[null,"Air pollutant emissions","£m",0,0]
[null,"GHG emissions","£m",0,9.9391622544246766E-8]

{"sheet":"Calc_Option5","index":24,"n_rows":283,"n_cols":103,"rows_kept":283,"cut":false,"hidden":false,"merged":[]}
[]
[null,"Calculations - Option 5","<< BACK to Data Input"]
[null,{"$f":"IF(ISBLANK('Data Input - Case description'!G22),\"Option not selected\",'Data Input - Case description'!G22)","v":"Option not selected"}]
[null,"First year",{"$f":"IF('Data Input - General'!F25=0,'Data Input - General'!F22,'Data Input - General'!F25)","v":2019}]
[null,"Year number",null,0,1,2,3,4,5,6,7,8,9,10,11,12,13,14,15,16,17,18,19,20,21,22,23,24,25,26,27,28,29,30,31,32,33,34,35,36,37,38,39,40,41,42,43,44,45,46,47,48,49,50,51,52,53,54,55,56,57,58,59]
[null,"Year",null,{"$f":"'Data Input - Option 5'!H7","v":2019},{"$f":"'Data Input - Option 5'!I7","v":2020},{"$f":"'Data Input - Option 5'!J7","v":2021},{"$f":"'Data Input - Option 5'!K7","v":2022},{"$f":"'Data Input - Option 5'!L7","v":2023},{"$f":"'Data Input - Option 5'!M7","v":2024},{"$f":"'Data Input - Option 5'!N7","v":2025},{"$f":"'Data Input - Option 5'!O7","v":2026},{"$f":"'Data Input - Option 5'!P7","v":2027},{"$f":"'Data Input - Option 5'!Q7","v":2028},{"$f":"'Data Input - Option 5'!R7","v":2029},{"$f":"'Data Input - Option 5'!S7","v":2030},{"$f":"'Data Input - Option 5'!T7","v":2031},{"$f":"'Data Input - Option 5'!U7","v":2032},{"$f":"'Data Input - Option 5'!V7","v":2033},{"$f":"'Data Input - Option 5'!W7","v":2034},{"$f":"'Data Input - Option 5'!X7","v":2035},{"$f":"'Data Input - Option 5'!Y7","v":2036},{"$f":"'Data Input - Option 5'!Z7","v":2037},{"$f":"'Data Input - Option 5'!AA7","v":2038},{"$f":"'Data Input - Option 5'!AB7","v":2039},{"$f":"'Data Input - Option 5'!AC7","v":2040},{"$f":"'Data Input - Option 5'!AD7","v":2041},{"$f":"'Data Input - Option 5'!AE7","v":2042},{"$f":"'Data Input - Option 5'!AF7","v":2043},{"$f":"'Data Input - Option 5'!AG7","v":2044},{"$f":"'Data Input - Option 5'!AH7","v":2045},{"$f":"'Data Input - Option 5'!AI7","v":2046},{"$f":"'Data Input - Option 5'!AJ7","v":2047},{"$f":"'Data Input - Option 5'!AK7","v":2048},{"$f":"'Data Input - Option 5'!AL7","v":2049},{"$f":"'Data Input - Option 5'!AM7","v":0},{"$f":"'Data Input - Option 5'!AN7","v":0},{"$f":"'Data Input - Option 5'!AO7","v":0},{"$f":"'Data Input - Option 5'!AP7","v":0},{"$f":"'Data Input - Option 5'!AQ7","v":0},{"$f":"'Data Input - Option 5'!AR7","v":0},{"$f":"'Data Input - Option 5'!AS7","v":0},{"$f":"'Data Input - Option 5'!AT7","v":0},{"$f":"'Data Input - Option 5'!AU7","v":0},{"$f":"'Data Input - Option 5'!AV7","v":0},{"$f":"'Data Input - Option 5'!AW7","v":0},{"$f":"'Data Input - Option 5'!AX7","v":0},{"$f":"'Data Input - Option 5'!AY7","v":0},{"$f":"'Data Input - Option 5'!AZ7","v":0},{"$f":"'Data Input - Option 5'!BA7","v":0},{"$f":"'Data Input - Option 5'!BB7","v":0},{"$f":"'Data Input - Option 5'!BC7","v":0},{"$f":"'Data Input - Option 5'!BD7","v":0},{"$f":"'Data Input - Option 5'!BE7","v":0},{"$f":"'Data Input - Option 5'!BF7","v":0},{"$f":"'Data Input - Option 5'!BG7","v":0},{"$f":"'Data Input - Option 5'!BH7","v":0},{"$f":"'Data Input - Option 5'!BI7","v":0},{"$f":"'Data Input - Option 5'!BJ7","v":0},{"$f":"'Data Input - Option 5'!BK7","v":0},{"$f":"'Data Input - Option 5'!BL7","v":0},{"$f":"'Data Input - Option 5'!BM7","v":0},{"$f":"'Data Input - Option 5'!BN7","v":0},{"$f":"'Data Input - Option 5'!BO7","v":0},{"$f":"'Data Input - Option 5'!BP7","v":0},{"$f":"'Data Input - Option 5'!BQ7","v":0},{"$f":"'Data Input - Option 5'!BR7","v":0},{"$f":"'Data Input - Option 5'!BS7","v":0},{"$f":"'Data Input - Option 5'!BT7","v":0},{"$f":"'Data Input - Option 5'!BU7","v":0},{"$f":"'Data Input - Option 5'!BV7","v":0},{"$f":"'Data Input - Option 5'!BW7","v":0},{"$f":"'Data Input - Option 5'!BX7","v":0},{"$f":"'Data Input - Option 5'!BY7","v":0},{"$f":"'Data Input - Option 5'!BZ7","v":0},{"$f":"'Data Input - Option 5'!CA7","v":0},{"$f":"'Data Input - Option 5'!CB7","v":0},{"$f":"'Data Input - Option 5'!CC7","v":0},{"$f":"'Data Input - Option 5'!CD7","v":0},{"$f":"'Data Input - Option 5'!CE7","v":0},{"$f":"'Data Input - Option 5'!CF7","v":0},{"$f":"'Data Input - Option 5'!CG7","v":0},{"$f":"'Data Input - Option 5'!CH7","v":0},{"$f":"'Data Input - Option 5'!CI7","v":0},{"$f":"'Data Input - Option 5'!CJ7","v":0},{"$f":"'Data Input - Option 5'!CK7","v":0},{"$f":"'Data Input - Option 5'!CL7","v":0},{"$f":"'Data Input - Option 5'!CM7","v":0},{"$f":"'Data Input - Option 5'!CN7","v":0},{"$f":"'Data Input - Option 5'!CO7","v":0},{"$f":"'Data Input - Option 5'!CP7","v":0},{"$f":"'Data Input - Option 5'!CQ7","v":0},{"$f":"'Data Input - Option 5'!CR7","v":0},{"$f":"'Data Input - Option 5'!CS7","v":0},{"$f":"'Data Input - Option 5'!CT7","v":0},{"$f":"'Data Input - Option 5'!CU7","v":0},{"$f":"'Data Input - Option 5'!CV7","v":0},{"$f":"'Data Input - Option 5'!CW7","v":0},{"$f":"'Data Input - Option 5'!CX7","v":0},{"$f":"'Data Input - Option 5'!CY7","v":0},{"$f":"'Data Input - Option 5'!CZ7","v":0},{"$f":"'Data Input - Option 5'!DA7","v":0},{"$f":"'Data Input - Option 5'!DB7","v":0},{"$f":"'Data Input - Option 5'!DC7","v":0}]
[null,"Discount factor",null,{"$f":"IF(D6=0,0,'Discount and deflators'!F12)","v":1},{"$f":"IF(E6=0,0,'Discount and deflators'!G12)","v":0.96618357487922713},{"$f":"IF(F6=0,0,'Discount and deflators'!H12)","v":0.93351070036640305},{"$f":"IF(G6=0,0,'Discount and deflators'!I12)","v":0.90194270566802237},{"$f":"IF(H6=0,0,'Discount and deflators'!J12)","v":0.87144222769857238},{"$f":"IF(I6=0,0,'Discount and deflators'!K12)","v":0.84197316685852408},{"$f":"IF(J6=0,0,'Discount and deflators'!L12)","v":0.81350064430775282},{"$f":"IF(K6=0,0,'Discount and deflators'!M12)","v":0.78599096068381924},{"$f":"IF(L6=0,0,'Discount and deflators'!N12)","v":0.75941155621625056},{"$f":"IF(M6=0,0,'Discount and deflators'!O12)","v":0.73373097218961414},{"$f":"IF(N6=0,0,'Discount and deflators'!P12)","v":0.70891881370977217},{"$f":"IF(O6=0,0,'Discount and deflators'!Q12)","v":0.68494571372924851},{"$f":"IF(P6=0,0,'Discount and deflators'!R12)","v":0.66178329828912907},{"$f":"IF(Q6=0,0,'Discount and deflators'!S12)","v":0.63940415293635666},{"$f":"IF(R6=0,0,'Discount and deflators'!T12)","v":0.61778179027667313},{"$f":"IF(S6=0,0,'Discount and deflators'!U12)","v":0.59689061862480497},{"$f":"IF(T6=0,0,'Discount and deflators'!V12)","v":0.57670591171478747},{"$f":"IF(U6=0,0,'Discount and deflators'!W12)","v":0.55720377943457733},{"$f":"IF(V6=0,0,'Discount and deflators'!X12)","v":0.53836113955031628},{"$f":"IF(W6=0,0,'Discount and deflators'!Y12)","v":0.520155690386779},{"$f":"IF(X6=0,0,'Discount and deflators'!Z12)","v":0.50256588443167061},{"$f":"IF(Y6=0,0,'Discount and deflators'!AA12)","v":0.48557090283253201},{"$f":"IF(Z6=0,0,'Discount and deflators'!AB12)","v":0.46915063075606961},{"$f":"IF(AA6=0,0,'Discount and deflators'!AC12)","v":0.45328563358074364},{"$f":"IF(AB6=0,0,'Discount and deflators'!AD12)","v":0.43795713389443836},{"$f":"IF(AC6=0,0,'Discount and deflators'!AE12)","v":0.42314698926998878},{"$f":"IF(AD6=0,0,'Discount and deflators'!AF12)","v":0.40883767079225974},{"$f":"IF(AE6=0,0,'Discount and deflators'!AG12)","v":0.39501224231136212},{"$f":"IF(AF6=0,0,'Discount and deflators'!AH12)","v":0.38165434039745133},{"$f":"IF(AG6=0,0,'Discount and deflators'!AI12)","v":0.36874815497338298},{"$f":"IF(AH6=0,0,'Discount and deflators'!AJ12)","v":0.35800791744988636},{"$f":"IF(AI6=0,0,'Discount and deflators'!AK12)","v":0},{"$f":"IF(AJ6=0,0,'Discount and deflators'!AL12)","v":0},{"$f":"IF(AK6=0,0,'Discount and deflators'!AM12)","v":0},{"$f":"IF(AL6=0,0,'Discount and deflators'!AN12)","v":0},{"$f":"IF(AM6=0,0,'Discount and deflators'!AO12)","v":0},{"$f":"IF(AN6=0,0,'Discount and deflators'!AP12)","v":0},{"$f":"IF(AO6=0,0,'Discount and deflators'!AQ12)","v":0},{"$f":"IF(AP6=0,0,'Discount and deflators'!AR12)","v":0},{"$f":"IF(AQ6=0,0,'Discount and deflators'!AS12)","v":0},{"$f":"IF(AR6=0,0,'Discount and deflators'!AT12)","v":0},{"$f":"IF(AS6=0,0,'Discount and deflators'!AU12)","v":0},{"$f":"IF(AT6=0,0,'Discount and deflators'!AV12)","v":0},{"$f":"IF(AU6=0,0,'Discount and deflators'!AW12)","v":0},{"$f":"IF(AV6=0,0,'Discount and deflators'!AX12)","v":0},{"$f":"IF(AW6=0,0,'Discount and deflators'!AY12)","v":0},{"$f":"IF(AX6=0,0,'Discount and deflators'!AZ12)","v":0},{"$f":"IF(AY6=0,0,'Discount and deflators'!BA12)","v":0},{"$f":"IF(AZ6=0,0,'Discount and deflators'!BB12)","v":0},{"$f":"IF(BA6=0,0,'Discount and deflators'!BC12)","v":0},{"$f":"IF(BB6=0,0,'Discount and deflators'!BD12)","v":0},{"$f":"IF(BC6=0,0,'Discount and deflators'!BE12)","v":0},{"$f":"IF(BD6=0,0,'Discount and deflators'!BF12)","v":0},{"$f":"IF(BE6=0,0,'Discount and deflators'!BG12)","v":0},{"$f":"IF(BF6=0,0,'Discount and deflators'!BH12)","v":0},{"$f":"IF(BG6=0,0,'Discount and deflators'!BI12)","v":0},{"$f":"IF(BH6=0,0,'Discount and deflators'!BJ12)","v":0},{"$f":"IF(BI6=0,0,'Discount and deflators'!BK12)","v":0},{"$f":"IF(BJ6=0,0,'Discount and deflators'!BL12)","v":0},{"$f":"IF(BK6=0,0,'Discount and deflators'!BM12)","v":0},{"$f":"IF(BL6=0,0,'Discount and deflators'!BN12)","v":0},{"$f":"IF(BM6=0,0,'Discount and deflators'!BO12)","v":0},{"$f":"IF(BN6=0,0,'Discount and deflators'!BP12)","v":0},{"$f":"IF(BO6=0,0,'Discount and deflators'!BQ12)","v":0},{"$f":"IF(BP6=0,0,'Discount and deflators'!BR12)","v":0},{"$f":"IF(BQ6=0,0,'Discount and deflators'!BS12)","v":0},{"$f":"IF(BR6=0,0,'Discount and deflators'!BT12)","v":0},{"$f":"IF(BS6=0,0,'Discount and deflators'!BU12)","v":0},{"$f":"IF(BT6=0,0,'Discount and deflators'!BV12)","v":0},{"$f":"IF(BU6=0,0,'Discount and deflators'!BW12)","v":0},{"$f":"IF(BV6=0,0,'Discount and deflators'!BX12)","v":0},{"$f":"IF(BW6=0,0,'Discount and deflators'!BY12)","v":0},{"$f":"IF(BX6=0,0,'Discount and deflators'!BZ12)","v":0},{"$f":"IF(BY6=0,0,'Discount and deflators'!CA12)","v":0},{"$f":"IF(BZ6=0,0,'Discount and deflators'!CB12)","v":0},{"$f":"IF(CA6=0,0,'Discount and deflators'!CC12)","v":0},{"$f":"IF(CB6=0,0,'Discount and deflators'!CD12)","v":0},{"$f":"IF(CC6=0,0,'Discount and deflators'!CE12)","v":0},{"$f":"IF(CD6=0,0,'Discount and deflators'!CF12)","v":0},{"$f":"IF(CE6=0,0,'Discount and deflators'!CG12)","v":0},{"$f":"IF(CF6=0,0,'Discount and deflators'!CH12)","v":0},{"$f":"IF(CG6=0,0,'Discount and deflators'!CI12)","v":0},{"$f":"IF(CH6=0,0,'Discount and deflators'!CJ12)","v":0},{"$f":"IF(CI6=0,0,'Discount and deflators'!CK12)","v":0},{"$f":"IF(CJ6=0,0,'Discount and deflators'!CL12)","v":0},{"$f":"IF(CK6=0,0,'Discount and deflators'!CM12)","v":0},{"$f":"IF(CL6=0,0,'Discount and deflators'!CN12)","v":0},{"$f":"IF(CM6=0,0,'Discount and deflators'!CO12)","v":0},{"$f":"IF(CN6=0,0,'Discount and deflators'!CP12)","v":0},{"$f":"IF(CO6=0,0,'Discount and deflators'!CQ12)","v":0},{"$f":"IF(CP6=0,0,'Discount and deflators'!CR12)","v":0},{"$f":"IF(CQ6=0,0,'Discount and deflators'!CS12)","v":0},{"$f":"IF(CR6=0,0,'Discount and deflators'!CT12)","v":0},{"$f":"IF(CS6=0,0,'Discount and deflators'!CU12)","v":0},{"$f":"IF(CT6=0,0,'Discount and deflators'!CV12)","v":0},{"$f":"IF(CU6=0,0,'Discount and deflators'!CW12)","v":0},{"$f":"IF(CV6=0,0,'Discount and deflators'!CX12)","v":0},{"$f":"IF(CW6=0,0,'Discount and deflators'!CY12)","v":0},{"$f":"IF(CX6=0,0,'Discount and deflators'!CZ12)","v":0},{"$f":"IF(CY6=0,0,'Discount and deflators'!DA12)","v":0}]
[]
[null,"CENTRAL CALCULATIONS"]
[]
[null,"Capital Costs (total)"]
[null,"Total Capex","£000's",{"$f":"'Data Input - Option 5'!H30","v":0},{"$f":"'Data Input - Option 5'!I30","v":0},{"$f":"'Data Input - Option 5'!J30","v":0},{"$f":"'Data Input - Option 5'!K30","v":0},{"$f":"'Data Input - Option 5'!L30","v":0},{"$f":"'Data Input - Option 5'!M30","v":0},{"$f":"'Data Input - Option 5'!N30","v":0},{"$f":"'Data Input - Option 5'!O30","v":0},{"$f":"'Data Input - Option 5'!P30","v":0},{"$f":"'Data Input - Option 5'!Q30","v":0},{"$f":"'Data Input - Option 5'!R30","v":0},{"$f":"'Data Input - Option 5'!S30","v":0},{"$f":"'Data Input - Option 5'!T30","v":0},{"$f":"'Data Input - Option 5'!U30","v":0},{"$f":"'Data Input - Option 5'!V30","v":0},{"$f":"'Data Input - Option 5'!W30","v":0},{"$f":"'Data Input - Option 5'!X30","v":0},{"$f":"'Data Input - Option 5'!Y30","v":0},{"$f":"'Data Input - Option 5'!Z30","v":0},{"$f":"'Data Input - Option 5'!AA30","v":0},{"$f":"'Data Input - Option 5'!AB30","v":0},{"$f":"'Data Input - Option 5'!AC30","v":0},{"$f":"'Data Input - Option 5'!AD30","v":0},{"$f":"'Data Input - Option 5'!AE30","v":0},{"$f":"'Data Input - Option 5'!AF30","v":0},{"$f":"'Data Input - Option 5'!AG30","v":0},{"$f":"'Data Input - Option 5'!AH30","v":0},{"$f":"'Data Input - Option 5'!AI30","v":0},{"$f":"'Data Input - Option 5'!AJ30","v":0},{"$f":"'Data Input - Option 5'!AK30","v":0},{"$f":"'Data Input - Option 5'!AL30","v":0},{"$f":"'Data Input - Option 5'!AM30","v":0},{"$f":"'Data Input - Option 5'!AN30","v":0},{"$f":"'Data Input - Option 5'!AO30","v":0},{"$f":"'Data Input - Option 5'!AP30","v":0},{"$f":"'Data Input - Option 5'!AQ30","v":0},{"$f":"'Data Input - Option 5'!AR30","v":0},{"$f":"'Data Input - Option 5'!AS30","v":0},{"$f":"'Data Input - Option 5'!AT30","v":0},{"$f":"'Data Input - Option 5'!AU30","v":0},{"$f":"'Data Input - Option 5'!AV30","v":0},{"$f":"'Data Input - Option 5'!AW30","v":0},{"$f":"'Data Input - Option 5'!AX30","v":0},{"$f":"'Data Input - Option 5'!AY30","v":0},{"$f":"'Data Input - Option 5'!AZ30","v":0},{"$f":"'Data Input - Option 5'!BA30","v":0},{"$f":"'Data Input - Option 5'!BB30","v":0},{"$f":"'Data Input - Option 5'!BC30","v":0},{"$f":"'Data Input - Option 5'!BD30","v":0},{"$f":"'Data Input - Option 5'!BE30","v":0},{"$f":"'Data Input - Option 5'!BF30","v":0},{"$f":"'Data Input - Option 5'!BG30","v":0},{"$f":"'Data Input - Option 5'!BH30","v":0},{"$f":"'Data Input - Option 5'!BI30","v":0},{"$f":"'Data Input - Option 5'!BJ30","v":0},{"$f":"'Data Input - Option 5'!BK30","v":0},{"$f":"'Data Input - Option 5'!BL30","v":0},{"$f":"'Data Input - Option 5'!BM30","v":0},{"$f":"'Data Input - Option 5'!BN30","v":0},{"$f":"'Data Input - Option 5'!BO30","v":0},{"$f":"'Data Input - Option 5'!BP30","v":0},{"$f":"'Data Input - Option 5'!BQ30","v":0},{"$f":"'Data Input - Option 5'!BR30","v":0},{"$f":"'Data Input - Option 5'!BS30","v":0},{"$f":"'Data Input - Option 5'!BT30","v":0},{"$f":"'Data Input - Option 5'!BU30","v":0},{"$f":"'Data Input - Option 5'!BV30","v":0},{"$f":"'Data Input - Option 5'!BW30","v":0},{"$f":"'Data Input - Option 5'!BX30","v":0},{"$f":"'Data Input - Option 5'!BY30","v":0},{"$f":"'Data Input - Option 5'!BZ30","v":0},{"$f":"'Data Input - Option 5'!CA30","v":0},{"$f":"'Data Input - Option 5'!CB30","v":0},{"$f":"'Data Input - Option 5'!CC30","v":0},{"$f":"'Data Input - Option 5'!CD30","v":0},{"$f":"'Data Input - Option 5'!CE30","v":0},{"$f":"'Data Input - Option 5'!CF30","v":0},{"$f":"'Data Input - Option 5'!CG30","v":0},{"$f":"'Data Input - Option 5'!CH30","v":0},{"$f":"'Data Input - Option 5'!CI30","v":0},{"$f":"'Data Input - Option 5'!CJ30","v":0},{"$f":"'Data Input - Option 5'!CK30","v":0},{"$f":"'Data Input - Option 5'!CL30","v":0},{"$f":"'Data Input - Option 5'!CM30","v":0},{"$f":"'Data Input - Option 5'!CN30","v":0},{"$f":"'Data Input - Option 5'!CO30","v":0},{"$f":"'Data Input - Option 5'!CP30","v":0},{"$f":"'Data Input - Option 5'!CQ30","v":0},{"$f":"'Data Input - Option 5'!CR30","v":0},{"$f":"'Data Input - Option 5'!CS30","v":0},{"$f":"'Data Input - Option 5'!CT30","v":0},{"$f":"'Data Input - Option 5'!CU30","v":0},{"$f":"'Data Input - Option 5'!CV30","v":0},{"$f":"'Data Input - Option 5'!CW30","v":0},{"$f":"'Data Input - Option 5'!CX30","v":0},{"$f":"'Data Input - Option 5'!CY30","v":0},{"$f":"'Data Input - Option 5'!CZ30","v":0},{"$f":"'Data Input - Option 5'!DA30","v":0},{"$f":"'Data Input - Option 5'!DB30","v":0},{"$f":"'Data Input - Option 5'!DC30","v":0}]
[null,"Total capex discounted","£000's",{"$f":"D12*D$7","v":0},{"$f":"E12*E$7","v":0},0,0,0,0,0,0,0,0,0,0,0,0,0,0,0,0,0,0,0,0,0,0,0,0,0,0,0,0,0,0,0,0,0,0,0,0,0,0,0,0,0,0,0,0,0,0,0,0,0,0,0,0,0,0,0,0,0,0,0,0,0,0,0,{"$f":"BQ12*BQ$7","v":0},0,0,0,0,0,0,0,0,0,0,0,0,0,0,0,0,0,0,0,0,0,0,0,0,0,0,0,0,0,0,0,0,0,0]
[]
[null,"First Year of upfront costs? - Array",null,{"$f":"IF(D12<>0,TRUE,FALSE)","v":false},{"$f":"IF(D15=TRUE,\"ALREADY FOUND\",IF(E12<>0,TRUE,FALSE))","v":false},{"$f":"IF(E15=\"ALREADY FOUND\",\"ALREADY FOUND\",IF(E15=TRUE,\"ALREADY FOUND\",IF(F12<>0,TRUE,FALSE)))","v":false},{"$f":"IF(F15=\"ALREADY FOUND\",\"ALREADY FOUND\",IF(F15=TRUE,\"ALREADY FOUND\",IF(G12<>0,TRUE,FALSE)))","v":false},false,false,false,false,false,false,false,false,false,false,false,false,false,false,false,false,false,false,false,false,false,false,false,false,false,false,false,false,false,false,false,false,false,false,false,false,false,false,false,false,false,false,false,false,false,false,false,false,false,false,false,false,false,false,false,false,false,false,false,false,false,false,false,{"$f":"IF(BR15=\"ALREADY FOUND\",\"ALREADY FOUND\",IF(BR15=TRUE,\"ALREADY FOUND\",IF(BS12<>0,TRUE,FALSE)))","v":false},false,false,false,false,false,false,false,false,false,false,false,false,false,false,false,false,false,false,false,false,false,false,false,false,false,false,false,false,false,false,false]
[null,"First Year of upfront costs",null,{"$f":"INDEX($D$6:$CX$6,MATCH(TRUE,$D$15:$CX$15,0))","v":{"$error":"#N/A"}}]
[null,"Final Year of upfront costs? - Array",null,{"$f":"IF(D6<$D$16,FALSE,IF(D12+E12=0,TRUE,FALSE))","v":{"$error":"#N/A"}},{"$f":"IF(D17=TRUE,\"N/A\",IF(D17=\"N/A\",\"N/A\",IF(E6<$D$16,FALSE,IF(E12+F12=0,TRUE,FALSE))))","v":{"$error":"#N/A"}},{"$f":"IF(E17=TRUE,\"N/A\",IF(E17=\"N/A\",\"N/A\",IF(F6<$D$16,FALSE,IF(F12+G12=0,TRUE,FALSE))))","v":{"$error":"#N/A"}},{"$f":"IF(F17=TRUE,\"N/A\",IF(F17=\"N/A\",\"N/A\",IF(G6<$D$16,FALSE,IF(G12+H12=0,TRUE,FALSE))))","v":{"$error":"#N/A"}},{"$f":"IF(G17=TRUE,\"N/A\",IF(G17=\"N/A\",\"N/A\",IF(H6<$D$16,FALSE,IF(H12+I12=0,TRUE,FALSE))))","v":{"$error":"#N/A"}},{"$f":"IF(H17=TRUE,\"N/A\",IF(H17=\"N/A\",\"N/A\",IF(I6<$D$16,FALSE,IF(I12+J12=0,TRUE,FALSE))))","v":{"$error":"#N/A"}},{"$f":"IF(I17=TRUE,\"N/A\",IF(I17=\"N/A\",\"N/A\",IF(J6<$D$16,FALSE,IF(J12+K12=0,TRUE,FALSE))))","v":{"$error":"#N/A"}},{"$error":"#N/A"},{"$error":"#N/A"},{"$error":"#N/A"},{"$error":"#N/A"},{"$error":"#N/A"},{"$error":"#N/A"},{"$error":"#N/A"},{"$error":"#N/A"},{"$error":"#N/A"},{"$error":"#N/A"},{"$error":"#N/A"},{"$error":"#N/A"},{"$error":"#N/A"},{"$error":"#N/A"},{"$error":"#N/A"},{"$error":"#N/A"},{"$error":"#N/A"},{"$error":"#N/A"},{"$error":"#N/A"},{"$error":"#N/A"},{"$error":"#N/A"},{"$error":"#N/A"},{"$error":"#N/A"},{"$error":"#N/A"},{"$error":"#N/A"},{"$error":"#N/A"},{"$error":"#N/A"},{"$error":"#N/A"},{"$error":"#N/A"},{"$error":"#N/A"},{"$error":"#N/A"},{"$error":"#N/A"},{"$error":"#N/A"},{"$error":"#N/A"},{"$error":"#N/A"},{"$error":"#N/A"},{"$error":"#N/A"},{"$error":"#N/A"},{"$error":"#N/A"},{"$error":"#N/A"},{"$error":"#N/A"},{"$error":"#N/A"},{"$error":"#N/A"},{"$error":"#N/A"},{"$error":"#N/A"},{"$error":"#N/A"},{"$error":"#N/A"},{"$error":"#N/A"},{"$error":"#N/A"},{"$error":"#N/A"},{"$error":"#N/A"},{"$error":"#N/A"},{"$error":"#N/A"},{"$error":"#N/A"},{"$error":"#N/A"},{"$error":"#N/A"},{"$error":"#N/A"},{"$error":"#N/A"},{"$error":"#N/A"},{"$error":"#N/A"},{"$error":"#N/A"},{"$error":"#N/A"},{"$error":"#N/A"},{"$f":"IF(BU17=TRUE,\"N/A\",IF(BU17=\"N/A\",\"N/A\",IF(BV6<$D$16,FALSE,IF(BV12+BW12=0,TRUE,FALSE))))","v":{"$error":"#N/A"}},{"$error":"#N/A"},{"$error":"#N/A"},{"$error":"#N/A"},{"$error":"#N/A"},{"$error":"#N/A"},{"$error":"#N/A"},{"$error":"#N/A"},{"$error":"#N/A"},{"$error":"#N/A"},{"$error":"#N/A"},{"$error":"#N/A"},{"$error":"#N/A"},{"$error":"#N/A"},{"$error":"#N/A"},{"$error":"#N/A"},{"$error":"#N/A"},{"$error":"#N/A"},{"$error":"#N/A"},{"$error":"#N/A"},{"$error":"#N/A"},{"$error":"#N/A"},{"$error":"#N/A"},{"$error":"#N/A"},{"$error":"#N/A"},{"$error":"#N/A"},{"$error":"#N/A"},{"$error":"#N/A"},{"$error":"#N/A"}]
[null,"Final Year of upfront costs",null,{"$f":"INDEX($D$6:$CX$6,MATCH(TRUE,$D$17:$CX$17,0))","v":{"$error":"#N/A"}}]
[null,"Include undiscounted total capex in SUM?",null,{"$f":"IF(AND(OR(D6=$D$16,D6>$D$16),OR(D6=$D$18,D6<$D$18)),D12,0)","v":{"$error":"#N/A"}},{"$f":"IF(AND(OR(E6=$D$16,E6>$D$16),OR(E6=$D$18,E6<$D$18)),E12,0)","v":{"$error":"#N/A"}},{"$error":"#N/A"},{"$error":"#N/A"},{"$f":"IF(AND(OR(H6=$D$16,H6>$D$16),OR(H6=$D$18,H6<$D$18)),H12,0)","v":{"$error":"#N/A"}},{"$f":"IF(AND(OR(I6=$D$16,I6>$D$16),OR(I6=$D$18,I6<$D$18)),I12,0)","v":{"$error":"#N/A"}},{"$error":"#N/A"},{"$error":"#N/A"},{"$error":"#N/A"},{"$error":"#N/A"},{"$error":"#N/A"},{"$error":"#N/A"},{"$error":"#N/A"},{"$error":"#N/A"},{"$error":"#N/A"},{"$error":"#N/A"},{"$error":"#N/A"},{"$error":"#N/A"},{"$error":"#N/A"},{"$error":"#N/A"},{"$error":"#N/A"},{"$error":"#N/A"},{"$error":"#N/A"},{"$error":"#N/A"},{"$error":"#N/A"},{"$error":"#N/A"},{"$error":"#N/A"},{"$error":"#N/A"},{"$error":"#N/A"},{"$error":"#N/A"},{"$error":"#N/A"},{"$error":"#N/A"},{"$error":"#N/A"},{"$error":"#N/A"},{"$error":"#N/A"},{"$error":"#N/A"},{"$error":"#N/A"},{"$error":"#N/A"},{"$error":"#N/A"},{"$error":"#N/A"},{"$error":"#N/A"},{"$error":"#N/A"},{"$error":"#N/A"},{"$error":"#N/A"},{"$error":"#N/A"},{"$error":"#N/A"},{"$error":"#N/A"},{"$error":"#N/A"},{"$error":"#N/A"},{"$error":"#N/A"},{"$error":"#N/A"},{"$error":"#N/A"},{"$error":"#N/A"},{"$error":"#N/A"},{"$error":"#N/A"},{"$error":"#N/A"},{"$error":"#N/A"},{"$error":"#N/A"},{"$error":"#N/A"},{"$error":"#N/A"},{"$error":"#N/A"},{"$error":"#N/A"},{"$error":"#N/A"},{"$error":"#N/A"},{"$error":"#N/A"},{"$error":"#N/A"},{"$error":"#N/A"},{"$error":"#N/A"},{"$error":"#N/A"},{"$f":"IF(AND(OR(BU6=$D$16,BU6>$D$16),OR(BU6=$D$18,BU6<$D$18)),BU12,0)","v":{"$error":"#N/A"}},{"$error":"#N/A"},{"$error":"#N/A"},{"$error":"#N/A"},{"$error":"#N/A"},{"$error":"#N/A"},{"$error":"#N/A"},{"$error":"#N/A"},{"$error":"#N/A"},{"$error":"#N/A"},{"$error":"#N/A"},{"$error":"#N/A"},{"$error":"#N/A"},{"$error":"#N/A"},{"$error":"#N/A"},{"$error":"#N/A"},{"$error":"#N/A"},{"$error":"#N/A"},{"$error":"#N/A"},{"$error":"#N/A"},{"$error":"#N/A"},{"$error":"#N/A"},{"$error":"#N/A"},{"$error":"#N/A"},{"$error":"#N/A"},{"$error":"#N/A"},{"$error":"#N/A"},{"$error":"#N/A"},{"$error":"#N/A"},{"$error":"#N/A"}]
[null,"Total upfront investment cost for first installation only",null,{"$f":"SUM(D19:CX19)","v":{"$error":"#N/A"}}]
[null,"New invesment/refurbishment cost?",null,null,null,null,{"$f":"IF(OR(AND(SUM(D12:F12)=0,G12>0,G15=\"ALREADY FOUND\"),AND(F21=TRUE,G12>0),AND(F21=TRUE,SUM(H12:I12)>0)),TRUE,FALSE)","v":false},{"$f":"IF(OR(AND(SUM(E12:G12)=0,H12>0,H15=\"ALREADY FOUND\"),AND(G21=TRUE,H12>0),AND(G21=TRUE,SUM(I12:J12)>0)),TRUE,FALSE)","v":false},false,false,false,false,false,false,false,false,false,false,false,false,false,false,false,false,false,false,false,false,false,false,false,false,false,false,false,false,false,false,false,false,false,false,false,false,false,false,false,false,false,false,false,false,false,false,false,false,false,false,false,false,false,false,false,false,false,false,false,false,false,false,false,{"$f":"IF(OR(AND(SUM(BQ12:BS12)=0,BT12>0,BT15=\"ALREADY FOUND\"),AND(BS21=TRUE,BT12>0),AND(BS21=TRUE,SUM(BU12:BV12)>0)),TRUE,FALSE)","v":false},false,false,false,false,false,false,false,false,false,false,false,false,false,false,false,false,false,false,false,false,false,false,false,false,false,false,false,false,false,false]
[null,"New invesment/refurbishment counter",null,null,null,null,{"$f":"IF(G21=FALSE,0,IF(F22<>0,F22,MAX($D$22:F22)+1))","v":0},{"$f":"IF(H21=FALSE,0,IF(G22<>0,G22,MAX($D$22:G22)+1))","v":0},{"$f":"IF(I21=FALSE,0,IF(H22<>0,H22,MAX($D$22:H22)+1))","v":0},{"$f":"IF(J21=FALSE,0,IF(I22<>0,I22,MAX($D$22:I22)+1))","v":0},{"$f":"IF(K21=FALSE,0,IF(J22<>0,J22,MAX($D$22:J22)+1))","v":0},{"$f":"IF(L21=FALSE,0,IF(K22<>0,K22,MAX($D$22:K22)+1))","v":0},{"$f":"IF(M21=FALSE,0,IF(L22<>0,L22,MAX($D$22:L22)+1))","v":0},{"$f":"IF(N21=FALSE,0,IF(M22<>0,M22,MAX($D$22:M22)+1))","v":0},{"$f":"IF(O21=FALSE,0,IF(N22<>0,N22,MAX($D$22:N22)+1))","v":0},{"$f":"IF(P21=FALSE,0,IF(O22<>0,O22,MAX($D$22:O22)+1))","v":0},{"$f":"IF(Q21=FALSE,0,IF(P22<>0,P22,MAX($D$22:P22)+1))","v":0},{"$f":"IF(R21=FALSE,0,IF(Q22<>0,Q22,MAX($D$22:Q22)+1))","v":0},{"$f":"IF(S21=FALSE,0,IF(R22<>0,R22,MAX($D$22:R22)+1))","v":0},{"$f":"IF(T21=FALSE,0,IF(S22<>0,S22,MAX($D$22:S22)+1))","v":0},{"$f":"IF(U21=FALSE,0,IF(T22<>0,T22,MAX($D$22:T22)+1))","v":0},{"$f":"IF(V21=FALSE,0,IF(U22<>0,U22,MAX($D$22:U22)+1))","v":0},{"$f":"IF(W21=FALSE,0,IF(V22<>0,V22,MAX($D$22:V22)+1))","v":0},{"$f":"IF(X21=FALSE,0,IF(W22<>0,W22,MAX($D$22:W22)+1))","v":0},{"$f":"IF(Y21=FALSE,0,IF(X22<>0,X22,MAX($D$22:X22)+1))","v":0},{"$f":"IF(Z21=FALSE,0,IF(Y22<>0,Y22,MAX($D$22:Y22)+1))","v":0},{"$f":"IF(AA21=FALSE,0,IF(Z22<>0,Z22,MAX($D$22:Z22)+1))","v":0},{"$f":"IF(AB21=FALSE,0,IF(AA22<>0,AA22,MAX($D$22:AA22)+1))","v":0},{"$f":"IF(AC21=FALSE,0,IF(AB22<>0,AB22,MAX($D$22:AB22)+1))","v":0},{"$f":"IF(AD21=FALSE,0,IF(AC22<>0,AC22,MAX($D$22:AC22)+1))","v":0},{"$f":"IF(AE21=FALSE,0,IF(AD22<>0,AD22,MAX($D$22:AD22)+1))","v":0},{"$f":"IF(AF21=FALSE,0,IF(AE22<>0,AE22,MAX($D$22:AE22)+1))","v":0},{"$f":"IF(AG21=FALSE,0,IF(AF22<>0,AF22,MAX($D$22:AF22)+1))","v":0},{"$f":"IF(AH21=FALSE,0,IF(AG22<>0,AG22,MAX($D$22:AG22)+1))","v":0},{"$f":"IF(AI21=FALSE,0,IF(AH22<>0,AH22,MAX($D$22:AH22)+1))","v":0},{"$f":"IF(AJ21=FALSE,0,IF(AI22<>0,AI22,MAX($D$22:AI22)+1))","v":0},{"$f":"IF(AK21=FALSE,0,IF(AJ22<>0,AJ22,MAX($D$22:AJ22)+1))","v":0},{"$f":"IF(AL21=FALSE,0,IF(AK22<>0,AK22,MAX($D$22:AK22)+1))","v":0},{"$f":"IF(AM21=FALSE,0,IF(AL22<>0,AL22,MAX($D$22:AL22)+1))","v":0},{"$f":"IF(AN21=FALSE,0,IF(AM22<>0,AM22,MAX($D$22:AM22)+1))","v":0},{"$f":"IF(AO21=FALSE,0,IF(AN22<>0,AN22,MAX($D$22:AN22)+1))","v":0},{"$f":"IF(AP21=FALSE,0,IF(AO22<>0,AO22,MAX($D$22:AO22)+1))","v":0},{"$f":"IF(AQ21=FALSE,0,IF(AP22<>0,AP22,MAX($D$22:AP22)+1))","v":0},{"$f":"IF(AR21=FALSE,0,IF(AQ22<>0,AQ22,MAX($D$22:AQ22)+1))","v":0},{"$f":"IF(AS21=FALSE,0,IF(AR22<>0,AR22,MAX($D$22:AR22)+1))","v":0},{"$f":"IF(AT21=FALSE,0,IF(AS22<>0,AS22,MAX($D$22:AS22)+1))","v":0},{"$f":"IF(AU21=FALSE,0,IF(AT22<>0,AT22,MAX($D$22:AT22)+1))","v":0},{"$f":"IF(AV21=FALSE,0,IF(AU22<>0,AU22,MAX($D$22:AU22)+1))","v":0},{"$f":"IF(AW21=FALSE,0,IF(AV22<>0,AV22,MAX($D$22:AV22)+1))","v":0},{"$f":"IF(AX21=FALSE,0,IF(AW22<>0,AW22,MAX($D$22:AW22)+1))","v":0},{"$f":"IF(AY21=FALSE,0,IF(AX22<>0,AX22,MAX($D$22:AX22)+1))","v":0},{"$f":"IF(AZ21=FALSE,0,IF(AY22<>0,AY22,MAX($D$22:AY22)+1))","v":0},{"$f":"IF(BA21=FALSE,0,IF(AZ22<>0,AZ22,MAX($D$22:AZ22)+1))","v":0},{"$f":"IF(BB21=FALSE,0,IF(BA22<>0,BA22,MAX($D$22:BA22)+1))","v":0},{"$f":"IF(BC21=FALSE,0,IF(BB22<>0,BB22,MAX($D$22:BB22)+1))","v":0},{"$f":"IF(BD21=FALSE,0,IF(BC22<>0,BC22,MAX($D$22:BC22)+1))","v":0},{"$f":"IF(BE21=FALSE,0,IF(BD22<>0,BD22,MAX($D$22:BD22)+1))","v":0},{"$f":"IF(BF21=FALSE,0,IF(BE22<>0,BE22,MAX($D$22:BE22)+1))","v":0},{"$f":"IF(BG21=FALSE,0,IF(BF22<>0,BF22,MAX($D$22:BF22)+1))","v":0},{"$f":"IF(BH21=FALSE,0,IF(BG22<>0,BG22,MAX($D$22:BG22)+1))","v":0},{"$f":"IF(BI21=FALSE,0,IF(BH22<>0,BH22,MAX($D$22:BH22)+1))","v":0},{"$f":"IF(BJ21=FALSE,0,IF(BI22<>0,BI22,MAX($D$22:BI22)+1))","v":0},{"$f":"IF(BK21=FALSE,0,IF(BJ22<>0,BJ22,MAX($D$22:BJ22)+1))","v":0},{"$f":"IF(BL21=FALSE,0,IF(BK22<>0,BK22,MAX($D$22:BK22)+1))","v":0},{"$f":"IF(BM21=FALSE,0,IF(BL22<>0,BL22,MAX($D$22:BL22)+1))","v":0},{"$f":"IF(BN21=FALSE,0,IF(BM22<>0,BM22,MAX($D$22:BM22)+1))","v":0},{"$f":"IF(BO21=FALSE,0,IF(BN22<>0,BN22,MAX($D$22:BN22)+1))","v":0},{"$f":"IF(BP21=FALSE,0,IF(BO22<>0,BO22,MAX($D$22:BO22)+1))","v":0},{"$f":"IF(BQ21=FALSE,0,IF(BP22<>0,BP22,MAX($D$22:BP22)+1))","v":0},{"$f":"IF(BR21=FALSE,0,IF(BQ22<>0,BQ22,MAX($D$22:BQ22)+1))","v":0},{"$f":"IF(BS21=FALSE,0,IF(BR22<>0,BR22,MAX($D$22:BR22)+1))","v":0},{"$f":"IF(BT21=FALSE,0,IF(BS22<>0,BS22,MAX($D$22:BS22)+1))","v":0},{"$f":"IF(BU21=FALSE,0,IF(BT22<>0,BT22,MAX($D$22:BT22)+1))","v":0},{"$f":"IF(BV21=FALSE,0,IF(BU22<>0,BU22,MAX($D$22:BU22)+1))","v":0},{"$f":"IF(BW21=FALSE,0,IF(BV22<>0,BV22,MAX($D$22:BV22)+1))","v":0},{"$f":"IF(BX21=FALSE,0,IF(BW22<>0,BW22,MAX($D$22:BW22)+1))","v":0},{"$f":"IF(BY21=FALSE,0,IF(BX22<>0,BX22,MAX($D$22:BX22)+1))","v":0},{"$f":"IF(BZ21=FALSE,0,IF(BY22<>0,BY22,MAX($D$22:BY22)+1))","v":0},{"$f":"IF(CA21=FALSE,0,IF(BZ22<>0,BZ22,MAX($D$22:BZ22)+1))","v":0},{"$f":"IF(CB21=FALSE,0,IF(CA22<>0,CA22,MAX($D$22:CA22)+1))","v":0},{"$f":"IF(CC21=FALSE,0,IF(CB22<>0,CB22,MAX($D$22:CB22)+1))","v":0},{"$f":"IF(CD21=FALSE,0,IF(CC22<>0,CC22,MAX($D$22:CC22)+1))","v":0},{"$f":"IF(CE21=FALSE,0,IF(CD22<>0,CD22,MAX($D$22:CD22)+1))","v":0},{"$f":"IF(CF21=FALSE,0,IF(CE22<>0,CE22,MAX($D$22:CE22)+1))","v":0},{"$f":"IF(CG21=FALSE,0,IF(CF22<>0,CF22,MAX($D$22:CF22)+1))","v":0},{"$f":"IF(CH21=FALSE,0,IF(CG22<>0,CG22,MAX($D$22:CG22)+1))","v":0},{"$f":"IF(CI21=FALSE,0,IF(CH22<>0,CH22,MAX($D$22:CH22)+1))","v":0},{"$f":"IF(CJ21=FALSE,0,IF(CI22<>0,CI22,MAX($D$22:CI22)+1))","v":0},{"$f":"IF(CK21=FALSE,0,IF(CJ22<>0,CJ22,MAX($D$22:CJ22)+1))","v":0},{"$f":"IF(CL21=FALSE,0,IF(CK22<>0,CK22,MAX($D$22:CK22)+1))","v":0},{"$f":"IF(CM21=FALSE,0,IF(CL22<>0,CL22,MAX($D$22:CL22)+1))","v":0},{"$f":"IF(CN21=FALSE,0,IF(CM22<>0,CM22,MAX($D$22:CM22)+1))","v":0},{"$f":"IF(CO21=FALSE,0,IF(CN22<>0,CN22,MAX($D$22:CN22)+1))","v":0},{"$f":"IF(CP21=FALSE,0,IF(CO22<>0,CO22,MAX($D$22:CO22)+1))","v":0},{"$f":"IF(CQ21=FALSE,0,IF(CP22<>0,CP22,MAX($D$22:CP22)+1))","v":0},{"$f":"IF(CR21=FALSE,0,IF(CQ22<>0,CQ22,MAX($D$22:CQ22)+1))","v":0},{"$f":"IF(CS21=FALSE,0,IF(CR22<>0,CR22,MAX($D$22:CR22)+1))","v":0},{"$f":"IF(CT21=FALSE,0,IF(CS22<>0,CS22,MAX($D$22:CS22)+1))","v":0},{"$f":"IF(CU21=FALSE,0,IF(CT22<>0,CT22,MAX($D$22:CT22)+1))","v":0},{"$f":"IF(CV21=FALSE,0,IF(CU22<>0,CU22,MAX($D$22:CU22)+1))","v":0},{"$f":"IF(CW21=FALSE,0,IF(CV22<>0,CV22,MAX($D$22:CV22)+1))","v":0},{"$f":"IF(CX21=FALSE,0,IF(CW22<>0,CW22,MAX($D$22:CW22)+1))","v":0}]
[null,"Total upfront investment cost for given invesment/refurb",null,null,null,null,{"$f":"IF(G21=TRUE,SUMIF($G$22:$CX$22,G22,$G$13:$CY$13),0)","v":0},{"$f":"IF(H21=TRUE,SUMIF($G$22:$CX$22,H22,$G$13:$CY$13),0)","v":0},0,0,0,0,0,0,0,0,0,0,0,0,0,0,{"$f":"IF(W21=TRUE,SUMIF($G$22:$CX$22,W22,$G$13:$CY$13),0)","v":0},{"$f":"IF(X21=TRUE,SUMIF($G$22:$CX$22,X22,$G$13:$CY$13),0)","v":0},0,0,0,0,0,0,0,0,0,0,0,0,0,0,0,0,0,0,0,0,0,0,0,0,0,0,0,0,0,0,0,0,0,0,0,0,0,0,0,0,0,0,0,0,0,0,0,0,0,0,0,0,0,0,0,0,0,0,0,0,0,0,0,{"$f":"IF(CJ21=TRUE,SUMIF($G$22:$CX$22,CJ22,$G$13:$CY$13),0)","v":0},0,0,0,0,0,0,0,0,0,0,0,0,0,0]
[]
[null,"WACC"]
[null,"Annualised payment","£000's",{"$f":"IFERROR(-PMT('Data Input - General'!$G$16,SUM('Data Input - General'!$K$26:$K$28),D20*1000)/1000,0)","v":0}]
[null,"Annualised payment - additional invesment or refurbishments","£000's",0,0,0,{"$f":"IFERROR(IF(G15=FALSE,0,IF(G21=TRUE,-PMT('Data Input - General'!$G$16,SUM('Data Input - General'!$K$26:$K$28),G23*1000)/1000,0)),0)","v":0},{"$f":"IFERROR(IF(H15=FALSE,0,IF(H21=TRUE,-PMT('Data Input - General'!$G$16,SUM('Data Input - General'!$K$26:$K$28),H23*1000)/1000,0)),0)","v":0},{"$f":"IFERROR(IF(I15=FALSE,0,IF(I21=TRUE,-PMT('Data Input - General'!$G$16,SUM('Data Input - General'!$K$26:$K$28),I23*1000)/1000,0)),0)","v":0},{"$f":"IFERROR(IF(J15=FALSE,0,IF(J21=TRUE,-PMT('Data Input - General'!$G$16,SUM('Data Input - General'!$K$26:$K$28),J23*1000)/1000,0)),0)","v":0},{"$f":"IFERROR(IF(K15=FALSE,0,IF(K21=TRUE,-PMT('Data Input - General'!$G$16,SUM('Data Input - General'!$K$26:$K$28),K23*1000)/1000,0)),0)","v":0},{"$f":"IFERROR(IF(L15=FALSE,0,IF(L21=TRUE,-PMT('Data Input - General'!$G$16,SUM('Data Input - General'!$K$26:$K$28),L23*1000)/1000,0)),0)","v":0},{"$f":"IFERROR(IF(M15=FALSE,0,IF(M21=TRUE,-PMT('Data Input - General'!$G$16,SUM('Data Input - General'!$K$26:$K$28),M23*1000)/1000,0)),0)","v":0},{"$f":"IFERROR(IF(N15=FALSE,0,IF(N21=TRUE,-PMT('Data Input - General'!$G$16,SUM('Data Input - General'!$K$26:$K$28),N23*1000)/1000,0)),0)","v":0},{"$f":"IFERROR(IF(O15=FALSE,0,IF(O21=TRUE,-PMT('Data Input - General'!$G$16,SUM('Data Input - General'!$K$26:$K$28),O23*1000)/1000,0)),0)","v":0},{"$f":"IFERROR(IF(P15=FALSE,0,IF(P21=TRUE,-PMT('Data Input - General'!$G$16,SUM('Data Input - General'!$K$26:$K$28),P23*1000)/1000,0)),0)","v":0},{"$f":"IFERROR(IF(Q15=FALSE,0,IF(Q21=TRUE,-PMT('Data Input - General'!$G$16,SUM('Data Input - General'!$K$26:$K$28),Q23*1000)/1000,0)),0)","v":0},{"$f":"IFERROR(IF(R15=FALSE,0,IF(R21=TRUE,-PMT('Data Input - General'!$G$16,SUM('Data Input - General'!$K$26:$K$28),R23*1000)/1000,0)),0)","v":0},{"$f":"IFERROR(IF(S15=FALSE,0,IF(S21=TRUE,-PMT('Data Input - General'!$G$16,SUM('Data Input - General'!$K$26:$K$28),S23*1000)/1000,0)),0)","v":0},{"$f":"IFERROR(IF(T15=FALSE,0,IF(T21=TRUE,-PMT('Data Input - General'!$G$16,SUM('Data Input - General'!$K$26:$K$28),T23*1000)/1000,0)),0)","v":0},{"$f":"IFERROR(IF(U15=FALSE,0,IF(U21=TRUE,-PMT('Data Input - General'!$G$16,SUM('Data Input - General'!$K$26:$K$28),U23*1000)/1000,0)),0)","v":0},{"$f":"IFERROR(IF(V15=FALSE,0,IF(V21=TRUE,-PMT('Data Input - General'!$G$16,SUM('Data Input - General'!$K$26:$K$28),V23*1000)/1000,0)),0)","v":0},{"$f":"IFERROR(IF(W15=FALSE,0,IF(W21=TRUE,-PMT('Data Input - General'!$G$16,SUM('Data Input - General'!$K$26:$K$28),W23*1000)/1000,0)),0)","v":0},{"$f":"IFERROR(IF(X15=FALSE,0,IF(X21=TRUE,-PMT('Data Input - General'!$G$16,SUM('Data Input - General'!$K$26:$K$28),X23*1000)/1000,0)),0)","v":0},{"$f":"IFERROR(IF(Y15=FALSE,0,IF(Y21=TRUE,-PMT('Data Input - General'!$G$16,SUM('Data Input - General'!$K$26:$K$28),Y23*1000)/1000,0)),0)","v":0},{"$f":"IFERROR(IF(Z15=FALSE,0,IF(Z21=TRUE,-PMT('Data Input - General'!$G$16,SUM('Data Input - General'!$K$26:$K$28),Z23*1000)/1000,0)),0)","v":0},{"$f":"IFERROR(IF(AA15=FALSE,0,IF(AA21=TRUE,-PMT('Data Input - General'!$G$16,SUM('Data Input - General'!$K$26:$K$28),AA23*1000)/1000,0)),0)","v":0},{"$f":"IFERROR(IF(AB15=FALSE,0,IF(AB21=TRUE,-PMT('Data Input - General'!$G$16,SUM('Data Input - General'!$K$26:$K$28),AB23*1000)/1000,0)),0)","v":0},{"$f":"IFERROR(IF(AC15=FALSE,0,IF(AC21=TRUE,-PMT('Data Input - General'!$G$16,SUM('Data Input - General'!$K$26:$K$28),AC23*1000)/1000,0)),0)","v":0},{"$f":"IFERROR(IF(AD15=FALSE,0,IF(AD21=TRUE,-PMT('Data Input - General'!$G$16,SUM('Data Input - General'!$K$26:$K$28),AD23*1000)/1000,0)),0)","v":0},{"$f":"IFERROR(IF(AE15=FALSE,0,IF(AE21=TRUE,-PMT('Data Input - General'!$G$16,SUM('Data Input - General'!$K$26:$K$28),AE23*1000)/1000,0)),0)","v":0},{"$f":"IFERROR(IF(AF15=FALSE,0,IF(AF21=TRUE,-PMT('Data Input - General'!$G$16,SUM('Data Input - General'!$K$26:$K$28),AF23*1000)/1000,0)),0)","v":0},{"$f":"IFERROR(IF(AG15=FALSE,0,IF(AG21=TRUE,-PMT('Data Input - General'!$G$16,SUM('Data Input - General'!$K$26:$K$28),AG23*1000)/1000,0)),0)","v":0},{"$f":"IFERROR(IF(AH15=FALSE,0,IF(AH21=TRUE,-PMT('Data Input - General'!$G$16,SUM('Data Input - General'!$K$26:$K$28),AH23*1000)/1000,0)),0)","v":0},{"$f":"IFERROR(IF(AI15=FALSE,0,IF(AI21=TRUE,-PMT('Data Input - General'!$G$16,SUM('Data Input - General'!$K$26:$K$28),AI23*1000)/1000,0)),0)","v":0},{"$f":"IFERROR(IF(AJ15=FALSE,0,IF(AJ21=TRUE,-PMT('Data Input - General'!$G$16,SUM('Data Input - General'!$K$26:$K$28),AJ23*1000)/1000,0)),0)","v":0},{"$f":"IFERROR(IF(AK15=FALSE,0,IF(AK21=TRUE,-PMT('Data Input - General'!$G$16,SUM('Data Input - General'!$K$26:$K$28),AK23*1000)/1000,0)),0)","v":0},{"$f":"IFERROR(IF(AL15=FALSE,0,IF(AL21=TRUE,-PMT('Data Input - General'!$G$16,SUM('Data Input - General'!$K$26:$K$28),AL23*1000)/1000,0)),0)","v":0},{"$f":"IFERROR(IF(AM15=FALSE,0,IF(AM21=TRUE,-PMT('Data Input - General'!$G$16,SUM('Data Input - General'!$K$26:$K$28),AM23*1000)/1000,0)),0)","v":0},{"$f":"IFERROR(IF(AN15=FALSE,0,IF(AN21=TRUE,-PMT('Data Input - General'!$G$16,SUM('Data Input - General'!$K$26:$K$28),AN23*1000)/1000,0)),0)","v":0},{"$f":"IFERROR(IF(AO15=FALSE,0,IF(AO21=TRUE,-PMT('Data Input - General'!$G$16,SUM('Data Input - General'!$K$26:$K$28),AO23*1000)/1000,0)),0)","v":0},{"$f":"IFERROR(IF(AP15=FALSE,0,IF(AP21=TRUE,-PMT('Data Input - General'!$G$16,SUM('Data Input - General'!$K$26:$K$28),AP23*1000)/1000,0)),0)","v":0},{"$f":"IFERROR(IF(AQ15=FALSE,0,IF(AQ21=TRUE,-PMT('Data Input - General'!$G$16,SUM('Data Input - General'!$K$26:$K$28),AQ23*1000)/1000,0)),0)","v":0},{"$f":"IFERROR(IF(AR15=FALSE,0,IF(AR21=TRUE,-PMT('Data Input - General'!$G$16,SUM('Data Input - General'!$K$26:$K$28),AR23*1000)/1000,0)),0)","v":0},{"$f":"IFERROR(IF(AS15=FALSE,0,IF(AS21=TRUE,-PMT('Data Input - General'!$G$16,SUM('Data Input - General'!$K$26:$K$28),AS23*1000)/1000,0)),0)","v":0},{"$f":"IFERROR(IF(AT15=FALSE,0,IF(AT21=TRUE,-PMT('Data Input - General'!$G$16,SUM('Data Input - General'!$K$26:$K$28),AT23*1000)/1000,0)),0)","v":0},{"$f":"IFERROR(IF(AU15=FALSE,0,IF(AU21=TRUE,-PMT('Data Input - General'!$G$16,SUM('Data Input - General'!$K$26:$K$28),AU23*1000)/1000,0)),0)","v":0},{"$f":"IFERROR(IF(AV15=FALSE,0,IF(AV21=TRUE,-PMT('Data Input - General'!$G$16,SUM('Data Input - General'!$K$26:$K$28),AV23*1000)/1000,0)),0)","v":0},{"$f":"IFERROR(IF(AW15=FALSE,0,IF(AW21=TRUE,-PMT('Data Input - General'!$G$16,SUM('Data Input - General'!$K$26:$K$28),AW23*1000)/1000,0)),0)","v":0},{"$f":"IFERROR(IF(AX15=FALSE,0,IF(AX21=TRUE,-PMT('Data Input - General'!$G$16,SUM('Data Input - General'!$K$26:$K$28),AX23*1000)/1000,0)),0)","v":0},{"$f":"IFERROR(IF(AY15=FALSE,0,IF(AY21=TRUE,-PMT('Data Input - General'!$G$16,SUM('Data Input - General'!$K$26:$K$28),AY23*1000)/1000,0)),0)","v":0},{"$f":"IFERROR(IF(AZ15=FALSE,0,IF(AZ21=TRUE,-PMT('Data Input - General'!$G$16,SUM('Data Input - General'!$K$26:$K$28),AZ23*1000)/1000,0)),0)","v":0},{"$f":"IFERROR(IF(BA15=FALSE,0,IF(BA21=TRUE,-PMT('Data Input - General'!$G$16,SUM('Data Input - General'!$K$26:$K$28),BA23*1000)/1000,0)),0)","v":0},{"$f":"IFERROR(IF(BB15=FALSE,0,IF(BB21=TRUE,-PMT('Data Input - General'!$G$16,SUM('Data Input - General'!$K$26:$K$28),BB23*1000)/1000,0)),0)","v":0},{"$f":"IFERROR(IF(BC15=FALSE,0,IF(BC21=TRUE,-PMT('Data Input - General'!$G$16,SUM('Data Input - General'!$K$26:$K$28),BC23*1000)/1000,0)),0)","v":0},{"$f":"IFERROR(IF(BD15=FALSE,0,IF(BD21=TRUE,-PMT('Data Input - General'!$G$16,SUM('Data Input - General'!$K$26:$K$28),BD23*1000)/1000,0)),0)","v":0},{"$f":"IFERROR(IF(BE15=FALSE,0,IF(BE21=TRUE,-PMT('Data Input - General'!$G$16,SUM('Data Input - General'!$K$26:$K$28),BE23*1000)/1000,0)),0)","v":0},{"$f":"IFERROR(IF(BF15=FALSE,0,IF(BF21=TRUE,-PMT('Data Input - General'!$G$16,SUM('Data Input - General'!$K$26:$K$28),BF23*1000)/1000,0)),0)","v":0},{"$f":"IFERROR(IF(BG15=FALSE,0,IF(BG21=TRUE,-PMT('Data Input - General'!$G$16,SUM('Data Input - General'!$K$26:$K$28),BG23*1000)/1000,0)),0)","v":0},{"$f":"IFERROR(IF(BH15=FALSE,0,IF(BH21=TRUE,-PMT('Data Input - General'!$G$16,SUM('Data Input - General'!$K$26:$K$28),BH23*1000)/1000,0)),0)","v":0},{"$f":"IFERROR(IF(BI15=FALSE,0,IF(BI21=TRUE,-PMT('Data Input - General'!$G$16,SUM('Data Input - General'!$K$26:$K$28),BI23*1000)/1000,0)),0)","v":0},{"$f":"IFERROR(IF(BJ15=FALSE,0,IF(BJ21=TRUE,-PMT('Data Input - General'!$G$16,SUM('Data Input - General'!$K$26:$K$28),BJ23*1000)/1000,0)),0)","v":0},{"$f":"IFERROR(IF(BK15=FALSE,0,IF(BK21=TRUE,-PMT('Data Input - General'!$G$16,SUM('Data Input - General'!$K$26:$K$28),BK23*1000)/1000,0)),0)","v":0},{"$f":"IFERROR(IF(BL15=FALSE,0,IF(BL21=TRUE,-PMT('Data Input - General'!$G$16,SUM('Data Input - General'!$K$26:$K$28),BL23*1000)/1000,0)),0)","v":0},{"$f":"IFERROR(IF(BM15=FALSE,0,IF(BM21=TRUE,-PMT('Data Input - General'!$G$16,SUM('Data Input - General'!$K$26:$K$28),BM23*1000)/1000,0)),0)","v":0},{"$f":"IFERROR(IF(BN15=FALSE,0,IF(BN21=TRUE,-PMT('Data Input - General'!$G$16,SUM('Data Input - General'!$K$26:$K$28),BN23*1000)/1000,0)),0)","v":0},{"$f":"IFERROR(IF(BO15=FALSE,0,IF(BO21=TRUE,-PMT('Data Input - General'!$G$16,SUM('Data Input - General'!$K$26:$K$28),BO23*1000)/1000,0)),0)","v":0},{"$f":"IFERROR(IF(BP15=FALSE,0,IF(BP21=TRUE,-PMT('Data Input - General'!$G$16,SUM('Data Input - General'!$K$26:$K$28),BP23*1000)/1000,0)),0)","v":0},{"$f":"IFERROR(IF(BQ15=FALSE,0,IF(BQ21=TRUE,-PMT('Data Input - General'!$G$16,SUM('Data Input - General'!$K$26:$K$28),BQ23*1000)/1000,0)),0)","v":0},{"$f":"IFERROR(IF(BR15=FALSE,0,IF(BR21=TRUE,-PMT('Data Input - General'!$G$16,SUM('Data Input - General'!$K$26:$K$28),BR23*1000)/1000,0)),0)","v":0},{"$f":"IFERROR(IF(BS15=FALSE,0,IF(BS21=TRUE,-PMT('Data Input - General'!$G$16,SUM('Data Input - General'!$K$26:$K$28),BS23*1000)/1000,0)),0)","v":0},{"$f":"IFERROR(IF(BT15=FALSE,0,IF(BT21=TRUE,-PMT('Data Input - General'!$G$16,SUM('Data Input - General'!$K$26:$K$28),BT23*1000)/1000,0)),0)","v":0},{"$f":"IFERROR(IF(BU15=FALSE,0,IF(BU21=TRUE,-PMT('Data Input - General'!$G$16,SUM('Data Input - General'!$K$26:$K$28),BU23*1000)/1000,0)),0)","v":0},{"$f":"IFERROR(IF(BV15=FALSE,0,IF(BV21=TRUE,-PMT('Data Input - General'!$G$16,SUM('Data Input - General'!$K$26:$K$28),BV23*1000)/1000,0)),0)","v":0},{"$f":"IFERROR(IF(BW15=FALSE,0,IF(BW21=TRUE,-PMT('Data Input - General'!$G$16,SUM('Data Input - General'!$K$26:$K$28),BW23*1000)/1000,0)),0)","v":0},{"$f":"IFERROR(IF(BX15=FALSE,0,IF(BX21=TRUE,-PMT('Data Input - General'!$G$16,SUM('Data Input - General'!$K$26:$K$28),BX23*1000)/1000,0)),0)","v":0},{"$f":"IFERROR(IF(BY15=FALSE,0,IF(BY21=TRUE,-PMT('Data Input - General'!$G$16,SUM('Data Input - General'!$K$26:$K$28),BY23*1000)/1000,0)),0)","v":0},{"$f":"IFERROR(IF(BZ15=FALSE,0,IF(BZ21=TRUE,-PMT('Data Input - General'!$G$16,SUM('Data Input - General'!$K$26:$K$28),BZ23*1000)/1000,0)),0)","v":0},{"$f":"IFERROR(IF(CA15=FALSE,0,IF(CA21=TRUE,-PMT('Data Input - General'!$G$16,SUM('Data Input - General'!$K$26:$K$28),CA23*1000)/1000,0)),0)","v":0},{"$f":"IFERROR(IF(CB15=FALSE,0,IF(CB21=TRUE,-PMT('Data Input - General'!$G$16,SUM('Data Input - General'!$K$26:$K$28),CB23*1000)/1000,0)),0)","v":0},{"$f":"IFERROR(IF(CC15=FALSE,0,IF(CC21=TRUE,-PMT('Data Input - General'!$G$16,SUM('Data Input - General'!$K$26:$K$28),CC23*1000)/1000,0)),0)","v":0},{"$f":"IFERROR(IF(CD15=FALSE,0,IF(CD21=TRUE,-PMT('Data Input - General'!$G$16,SUM('Data Input - General'!$K$26:$K$28),CD23*1000)/1000,0)),0)","v":0},{"$f":"IFERROR(IF(CE15=FALSE,0,IF(CE21=TRUE,-PMT('Data Input - General'!$G$16,SUM('Data Input - General'!$K$26:$K$28),CE23*1000)/1000,0)),0)","v":0},{"$f":"IFERROR(IF(CF15=FALSE,0,IF(CF21=TRUE,-PMT('Data Input - General'!$G$16,SUM('Data Input - General'!$K$26:$K$28),CF23*1000)/1000,0)),0)","v":0},{"$f":"IFERROR(IF(CG15=FALSE,0,IF(CG21=TRUE,-PMT('Data Input - General'!$G$16,SUM('Data Input - General'!$K$26:$K$28),CG23*1000)/1000,0)),0)","v":0},{"$f":"IFERROR(IF(CH15=FALSE,0,IF(CH21=TRUE,-PMT('Data Input - General'!$G$16,SUM('Data Input - General'!$K$26:$K$28),CH23*1000)/1000,0)),0)","v":0},{"$f":"IFERROR(IF(CI15=FALSE,0,IF(CI21=TRUE,-PMT('Data Input - General'!$G$16,SUM('Data Input - General'!$K$26:$K$28),CI23*1000)/1000,0)),0)","v":0},{"$f":"IFERROR(IF(CJ15=FALSE,0,IF(CJ21=TRUE,-PMT('Data Input - General'!$G$16,SUM('Data Input - General'!$K$26:$K$28),CJ23*1000)/1000,0)),0)","v":0},{"$f":"IFERROR(IF(CK15=FALSE,0,IF(CK21=TRUE,-PMT('Data Input - General'!$G$16,SUM('Data Input - General'!$K$26:$K$28),CK23*1000)/1000,0)),0)","v":0},{"$f":"IFERROR(IF(CL15=FALSE,0,IF(CL21=TRUE,-PMT('Data Input - General'!$G$16,SUM('Data Input - General'!$K$26:$K$28),CL23*1000)/1000,0)),0)","v":0},{"$f":"IFERROR(IF(CM15=FALSE,0,IF(CM21=TRUE,-PMT('Data Input - General'!$G$16,SUM('Data Input - General'!$K$26:$K$28),CM23*1000)/1000,0)),0)","v":0},{"$f":"IFERROR(IF(CN15=FALSE,0,IF(CN21=TRUE,-PMT('Data Input - General'!$G$16,SUM('Data Input - General'!$K$26:$K$28),CN23*1000)/1000,0)),0)","v":0},{"$f":"IFERROR(IF(CO15=FALSE,0,IF(CO21=TRUE,-PMT('Data Input - General'!$G$16,SUM('Data Input - General'!$K$26:$K$28),CO23*1000)/1000,0)),0)","v":0},{"$f":"IFERROR(IF(CP15=FALSE,0,IF(CP21=TRUE,-PMT('Data Input - General'!$G$16,SUM('Data Input - General'!$K$26:$K$28),CP23*1000)/1000,0)),0)","v":0},{"$f":"IFERROR(IF(CQ15=FALSE,0,IF(CQ21=TRUE,-PMT('Data Input - General'!$G$16,SUM('Data Input - General'!$K$26:$K$28),CQ23*1000)/1000,0)),0)","v":0},{"$f":"IFERROR(IF(CR15=FALSE,0,IF(CR21=TRUE,-PMT('Data Input - General'!$G$16,SUM('Data Input - General'!$K$26:$K$28),CR23*1000)/1000,0)),0)","v":0},{"$f":"IFERROR(IF(CS15=FALSE,0,IF(CS21=TRUE,-PMT('Data Input - General'!$G$16,SUM('Data Input - General'!$K$26:$K$28),CS23*1000)/1000,0)),0)","v":0},{"$f":"IFERROR(IF(CT15=FALSE,0,IF(CT21=TRUE,-PMT('Data Input - General'!$G$16,SUM('Data Input - General'!$K$26:$K$28),CT23*1000)/1000,0)),0)","v":0},{"$f":"IFERROR(IF(CU15=FALSE,0,IF(CU21=TRUE,-PMT('Data Input - General'!$G$16,SUM('Data Input - General'!$K$26:$K$28),CU23*1000)/1000,0)),0)","v":0},{"$f":"IFERROR(IF(CV15=FALSE,0,IF(CV21=TRUE,-PMT('Data Input - General'!$G$16,SUM('Data Input - General'!$K$26:$K$28),CV23*1000)/1000,0)),0)","v":0},{"$f":"IFERROR(IF(CW15=FALSE,0,IF(CW21=TRUE,-PMT('Data Input - General'!$G$16,SUM('Data Input - General'!$K$26:$K$28),CW23*1000)/1000,0)),0)","v":0},{"$f":"IFERROR(IF(CX15=FALSE,0,IF(CX21=TRUE,-PMT('Data Input - General'!$G$16,SUM('Data Input - General'!$K$26:$K$28),CX23*1000)/1000,0)),0)","v":0},{"$f":"IFERROR(IF(CY15=FALSE,0,IF(CY21=TRUE,-PMT('Data Input - General'!$G$16,SUM('Data Input - General'!$K$26:$K$28),CY23*1000)/1000,0)),0)","v":0}]
[null,"Cummulative annualised payment","£000's",0,0,0,{"$f":"IF(G27=0,F28,IF(F27=G27,F28,F28+G27))","v":0},{"$f":"IF(H27=0,G28,IF(G27=H27,G28,G28+H27))","v":0},0,0,0,0,0,0,0,0,0,0,0,0,0,0,0,0,0,0,0,0,0,0,0,0,0,0,0,0,0,0,0,0,0,0,0,0,0,0,0,0,0,0,0,0,0,0,0,0,0,0,0,0,0,0,0,0,0,0,0,0,0,0,0,{"$f":"IF(BT27=0,BS28,IF(BS27=BT27,BS28,BS28+BT27))","v":0},0,0,0,0,0,0,0,0,0,0,0,0,0,0,0,0,0,0,0,0,0,0,0,0,0,0,0,0,0,0,0]
[null,"Annual value (taking into account installation year)","£000's",{"$f":"IF(D15=FALSE,0,IF(D28=0,$D$26,D28))","v":0},{"$f":"IF(E15=FALSE,0,IF(E28=0,$D$26,E28))","v":0},0,0,0,0,0,0,0,0,0,0,0,0,0,0,0,0,0,0,0,0,0,0,0,0,0,0,0,0,0,0,0,0,0,0,0,0,0,0,0,0,0,0,0,0,0,0,0,0,0,0,0,0,0,0,0,0,0,0,0,0,0,0,0,{"$f":"IF(BQ15=FALSE,0,IF(BQ28=0,$D$26,BQ28))","v":0},0,0,0,0,0,0,0,0,0,0,0,0,0,0,0,0,0,0,0,0,0,0,0,0,0,0,0,0,0,0,0,0,0,0]
[null,"Discounted annual value","£000's",{"$f":"D29*D$7","v":0},{"$f":"E29*E$7","v":0},0,0,0,0,0,0,0,0,0,0,0,0,0,0,0,0,0,0,0,0,0,0,0,0,0,0,0,0,0,0,0,0,0,0,0,0,0,0,0,0,0,0,0,0,0,0,0,0,0,0,0,0,0,0,0,0,0,0,0,0,0,0,0,{"$f":"BQ29*BQ$7","v":0},0,0,0,0,0,0,0,0,0,0,0,0,0,0,0,0,0,0,0,0,0,0,0,0,0,0,0,0,0,0,0,0,0,0]
[]
[null,"Cost of Capital (finance)"]
[null,"Financing costs (when entered manually)","£000's",{"$f":"'Data Input - Option 5'!H39","v":0},{"$f":"'Data Input - Option 5'!I39","v":0},{"$f":"'Data Input - Option 5'!J39","v":0},{"$f":"'Data Input - Option 5'!K39","v":0},{"$f":"'Data Input - Option 5'!L39","v":0},{"$f":"'Data Input - Option 5'!M39","v":0},{"$f":"'Data Input - Option 5'!N39","v":0},{"$f":"'Data Input - Option 5'!O39","v":0},{"$f":"'Data Input - Option 5'!P39","v":0},{"$f":"'Data Input - Option 5'!Q39","v":0},{"$f":"'Data Input - Option 5'!R39","v":0},{"$f":"'Data Input - Option 5'!S39","v":0},{"$f":"'Data Input - Option 5'!T39","v":0},{"$f":"'Data Input - Option 5'!U39","v":0},{"$f":"'Data Input - Option 5'!V39","v":0},{"$f":"'Data Input - Option 5'!W39","v":0},{"$f":"'Data Input - Option 5'!X39","v":0},{"$f":"'Data Input - Option 5'!Y39","v":0},{"$f":"'Data Input - Option 5'!Z39","v":0},{"$f":"'Data Input - Option 5'!AA39","v":0},{"$f":"'Data Input - Option 5'!AB39","v":0},{"$f":"'Data Input - Option 5'!AC39","v":0},{"$f":"'Data Input - Option 5'!AD39","v":0},{"$f":"'Data Input - Option 5'!AE39","v":0},{"$f":"'Data Input - Option 5'!AF39","v":0},{"$f":"'Data Input - Option 5'!AG39","v":0},{"$f":"'Data Input - Option 5'!AH39","v":0},{"$f":"'Data Input - Option 5'!AI39","v":0},{"$f":"'Data Input - Option 5'!AJ39","v":0},{"$f":"'Data Input - Option 5'!AK39","v":0},{"$f":"'Data Input - Option 5'!AL39","v":0},{"$f":"'Data Input - Option 5'!AM39","v":0},{"$f":"'Data Input - Option 5'!AN39","v":0},{"$f":"'Data Input - Option 5'!AO39","v":0},{"$f":"'Data Input - Option 5'!AP39","v":0},{"$f":"'Data Input - Option 5'!AQ39","v":0},{"$f":"'Data Input - Option 5'!AR39","v":0},{"$f":"'Data Input - Option 5'!AS39","v":0},{"$f":"'Data Input - Option 5'!AT39","v":0},{"$f":"'Data Input - Option 5'!AU39","v":0},{"$f":"'Data Input - Option 5'!AV39","v":0},{"$f":"'Data Input - Option 5'!AW39","v":0},{"$f":"'Data Input - Option 5'!AX39","v":0},{"$f":"'Data Input - Option 5'!AY39","v":0},{"$f":"'Data Input - Option 5'!AZ39","v":0},{"$f":"'Data Input - Option 5'!BA39","v":0},{"$f":"'Data Input - Option 5'!BB39","v":0},{"$f":"'Data Input - Option 5'!BC39","v":0},{"$f":"'Data Input - Option 5'!BD39","v":0},{"$f":"'Data Input - Option 5'!BE39","v":0},{"$f":"'Data Input - Option 5'!BF39","v":0},{"$f":"'Data Input - Option 5'!BG39","v":0},{"$f":"'Data Input - Option 5'!BH39","v":0},{"$f":"'Data Input - Option 5'!BI39","v":0},{"$f":"'Data Input - Option 5'!BJ39","v":0},{"$f":"'Data Input - Option 5'!BK39","v":0},{"$f":"'Data Input - Option 5'!BL39","v":0},{"$f":"'Data Input - Option 5'!BM39","v":0},{"$f":"'Data Input - Option 5'!BN39","v":0},{"$f":"'Data Input - Option 5'!BO39","v":0},{"$f":"'Data Input - Option 5'!BP39","v":0},{"$f":"'Data Input - Option 5'!BQ39","v":0},{"$f":"'Data Input - Option 5'!BR39","v":0},{"$f":"'Data Input - Option 5'!BS39","v":0},{"$f":"'Data Input - Option 5'!BT39","v":0},{"$f":"'Data Input - Option 5'!BU39","v":0},{"$f":"'Data Input - Option 5'!BV39","v":0},{"$f":"'Data Input - Option 5'!BW39","v":0},{"$f":"'Data Input - Option 5'!BX39","v":0},{"$f":"'Data Input - Option 5'!BY39","v":0},{"$f":"'Data Input - Option 5'!BZ39","v":0},{"$f":"'Data Input - Option 5'!CA39","v":0},{"$f":"'Data Input - Option 5'!CB39","v":0},{"$f":"'Data Input - Option 5'!CC39","v":0},{"$f":"'Data Input - Option 5'!CD39","v":0},{"$f":"'Data Input - Option 5'!CE39","v":0},{"$f":"'Data Input - Option 5'!CF39","v":0},{"$f":"'Data Input - Option 5'!CG39","v":0},{"$f":"'Data Input - Option 5'!CH39","v":0},{"$f":"'Data Input - Option 5'!CI39","v":0},{"$f":"'Data Input - Option 5'!CJ39","v":0},{"$f":"'Data Input - Option 5'!CK39","v":0},{"$f":"'Data Input - Option 5'!CL39","v":0},{"$f":"'Data Input - Option 5'!CM39","v":0},{"$f":"'Data Input - Option 5'!CN39","v":0},{"$f":"'Data Input - Option 5'!CO39","v":0},{"$f":"'Data Input - Option 5'!CP39","v":0},{"$f":"'Data Input - Option 5'!CQ39","v":0},{"$f":"'Data Input - Option 5'!CR39","v":0},{"$f":"'Data Input - Option 5'!CS39","v":0},{"$f":"'Data Input - Option 5'!CT39","v":0},{"$f":"'Data Input - Option 5'!CU39","v":0},{"$f":"'Data Input - Option 5'!CV39","v":0},{"$f":"'Data Input - Option 5'!CW39","v":0},{"$f":"'Data Input - Option 5'!CX39","v":0},{"$f":"'Data Input - Option 5'!CY39","v":0},{"$f":"'Data Input - Option 5'!CZ39","v":0},{"$f":"'Data Input - Option 5'!DA39","v":0},{"$f":"'Data Input - Option 5'!DB39","v":0},{"$f":"'Data Input - Option 5'!DC39","v":0}]
[null,"Discounted finacning","£000's",{"$f":"D33*D$7","v":0},{"$f":"E33*E$7","v":0},{"$f":"F33*F$7","v":0},0,0,0,0,0,0,0,0,0,0,0,0,0,0,0,0,0,0,0,0,0,0,0,0,0,0,0,0,0,0,0,0,0,0,0,0,0,0,0,0,0,0,0,0,0,0,0,0,0,0,0,0,0,0,0,0,0,0,0,0,0,0,{"$f":"BQ33*BQ$7","v":0},0,0,0,0,0,0,0,0,0,0,0,0,0,0,0,0,0,0,0,0,0,0,0,0,0,0,0,0,0,0,0,0,0,0]
[]
[null,"Total capex","£000's",{"$f":"IF('Data Input - Option 5'!$F$37=\"Yes\",D34+D13,D30)","v":0},{"$f":"IF('Data Input - Option 5'!$F$37=\"Yes\",E34+E13,E30)","v":0},{"$f":"IF('Data Input - Option 5'!$F$37=\"Yes\",F34+F13,F30)","v":0},{"$f":"IF('Data Input - Option 5'!$F$37=\"Yes\",G34+G13,G30)","v":0},{"$f":"IF('Data Input - Option 5'!$F$37=\"Yes\",H34+H13,H30)","v":0},{"$f":"IF('Data Input - Option 5'!$F$37=\"Yes\",I34+I13,I30)","v":0},{"$f":"IF('Data Input - Option 5'!$F$37=\"Yes\",J34+J13,J30)","v":0},{"$f":"IF('Data Input - Option 5'!$F$37=\"Yes\",K34+K13,K30)","v":0},{"$f":"IF('Data Input - Option 5'!$F$37=\"Yes\",L34+L13,L30)","v":0},{"$f":"IF('Data Input - Option 5'!$F$37=\"Yes\",M34+M13,M30)","v":0},{"$f":"IF('Data Input - Option 5'!$F$37=\"Yes\",N34+N13,N30)","v":0},{"$f":"IF('Data Input - Option 5'!$F$37=\"Yes\",O34+O13,O30)","v":0},{"$f":"IF('Data Input - Option 5'!$F$37=\"Yes\",P34+P13,P30)","v":0},{"$f":"IF('Data Input - Option 5'!$F$37=\"Yes\",Q34+Q13,Q30)","v":0},{"$f":"IF('Data Input - Option 5'!$F$37=\"Yes\",R34+R13,R30)","v":0},{"$f":"IF('Data Input - Option 5'!$F$37=\"Yes\",S34+S13,S30)","v":0},{"$f":"IF('Data Input - Option 5'!$F$37=\"Yes\",T34+T13,T30)","v":0},{"$f":"IF('Data Input - Option 5'!$F$37=\"Yes\",U34+U13,U30)","v":0},{"$f":"IF('Data Input - Option 5'!$F$37=\"Yes\",V34+V13,V30)","v":0},{"$f":"IF('Data Input - Option 5'!$F$37=\"Yes\",W34+W13,W30)","v":0},{"$f":"IF('Data Input - Option 5'!$F$37=\"Yes\",X34+X13,X30)","v":0},{"$f":"IF('Data Input - Option 5'!$F$37=\"Yes\",Y34+Y13,Y30)","v":0},{"$f":"IF('Data Input - Option 5'!$F$37=\"Yes\",Z34+Z13,Z30)","v":0},{"$f":"IF('Data Input - Option 5'!$F$37=\"Yes\",AA34+AA13,AA30)","v":0},{"$f":"IF('Data Input - Option 5'!$F$37=\"Yes\",AB34+AB13,AB30)","v":0},{"$f":"IF('Data Input - Option 5'!$F$37=\"Yes\",AC34+AC13,AC30)","v":0},{"$f":"IF('Data Input - Option 5'!$F$37=\"Yes\",AD34+AD13,AD30)","v":0},{"$f":"IF('Data Input - Option 5'!$F$37=\"Yes\",AE34+AE13,AE30)","v":0},{"$f":"IF('Data Input - Option 5'!$F$37=\"Yes\",AF34+AF13,AF30)","v":0},{"$f":"IF('Data Input - Option 5'!$F$37=\"Yes\",AG34+AG13,AG30)","v":0},{"$f":"IF('Data Input - Option 5'!$F$37=\"Yes\",AH34+AH13,AH30)","v":0},{"$f":"IF('Data Input - Option 5'!$F$37=\"Yes\",AI34+AI13,AI30)","v":0},{"$f":"IF('Data Input - Option 5'!$F$37=\"Yes\",AJ34+AJ13,AJ30)","v":0},{"$f":"IF('Data Input - Option 5'!$F$37=\"Yes\",AK34+AK13,AK30)","v":0},{"$f":"IF('Data Input - Option 5'!$F$37=\"Yes\",AL34+AL13,AL30)","v":0},{"$f":"IF('Data Input - Option 5'!$F$37=\"Yes\",AM34+AM13,AM30)","v":0},{"$f":"IF('Data Input - Option 5'!$F$37=\"Yes\",AN34+AN13,AN30)","v":0},{"$f":"IF('Data Input - Option 5'!$F$37=\"Yes\",AO34+AO13,AO30)","v":0},{"$f":"IF('Data Input - Option 5'!$F$37=\"Yes\",AP34+AP13,AP30)","v":0},{"$f":"IF('Data Input - Option 5'!$F$37=\"Yes\",AQ34+AQ13,AQ30)","v":0},{"$f":"IF('Data Input - Option 5'!$F$37=\"Yes\",AR34+AR13,AR30)","v":0},{"$f":"IF('Data Input - Option 5'!$F$37=\"Yes\",AS34+AS13,AS30)","v":0},{"$f":"IF('Data Input - Option 5'!$F$37=\"Yes\",AT34+AT13,AT30)","v":0},{"$f":"IF('Data Input - Option 5'!$F$37=\"Yes\",AU34+AU13,AU30)","v":0},{"$f":"IF('Data Input - Option 5'!$F$37=\"Yes\",AV34+AV13,AV30)","v":0},{"$f":"IF('Data Input - Option 5'!$F$37=\"Yes\",AW34+AW13,AW30)","v":0},{"$f":"IF('Data Input - Option 5'!$F$37=\"Yes\",AX34+AX13,AX30)","v":0},{"$f":"IF('Data Input - Option 5'!$F$37=\"Yes\",AY34+AY13,AY30)","v":0},{"$f":"IF('Data Input - Option 5'!$F$37=\"Yes\",AZ34+AZ13,AZ30)","v":0},{"$f":"IF('Data Input - Option 5'!$F$37=\"Yes\",BA34+BA13,BA30)","v":0},{"$f":"IF('Data Input - Option 5'!$F$37=\"Yes\",BB34+BB13,BB30)","v":0},{"$f":"IF('Data Input - Option 5'!$F$37=\"Yes\",BC34+BC13,BC30)","v":0},{"$f":"IF('Data Input - Option 5'!$F$37=\"Yes\",BD34+BD13,BD30)","v":0},{"$f":"IF('Data Input - Option 5'!$F$37=\"Yes\",BE34+BE13,BE30)","v":0},{"$f":"IF('Data Input - Option 5'!$F$37=\"Yes\",BF34+BF13,BF30)","v":0},{"$f":"IF('Data Input - Option 5'!$F$37=\"Yes\",BG34+BG13,BG30)","v":0},{"$f":"IF('Data Input - Option 5'!$F$37=\"Yes\",BH34+BH13,BH30)","v":0},{"$f":"IF('Data Input - Option 5'!$F$37=\"Yes\",BI34+BI13,BI30)","v":0},{"$f":"IF('Data Input - Option 5'!$F$37=\"Yes\",BJ34+BJ13,BJ30)","v":0},{"$f":"IF('Data Input - Option 5'!$F$37=\"Yes\",BK34+BK13,BK30)","v":0},{"$f":"IF('Data Input - Option 5'!$F$37=\"Yes\",BL34+BL13,BL30)","v":0},{"$f":"IF('Data Input - Option 5'!$F$37=\"Yes\",BM34+BM13,BM30)","v":0},{"$f":"IF('Data Input - Option 5'!$F$37=\"Yes\",BN34+BN13,BN30)","v":0},{"$f":"IF('Data Input - Option 5'!$F$37=\"Yes\",BO34+BO13,BO30)","v":0},{"$f":"IF('Data Input - Option 5'!$F$37=\"Yes\",BP34+BP13,BP30)","v":0},{"$f":"IF('Data Input - Option 5'!$F$37=\"Yes\",BQ34+BQ13,BQ30)","v":0},{"$f":"IF('Data Input - Option 5'!$F$37=\"Yes\",BR34+BR13,BR30)","v":0},{"$f":"IF('Data Input - Option 5'!$F$37=\"Yes\",BS34+BS13,BS30)","v":0},{"$f":"IF('Data Input - Option 5'!$F$37=\"Yes\",BT34+BT13,BT30)","v":0},{"$f":"IF('Data Input - Option 5'!$F$37=\"Yes\",BU34+BU13,BU30)","v":0},{"$f":"IF('Data Input - Option 5'!$F$37=\"Yes\",BV34+BV13,BV30)","v":0},{"$f":"IF('Data Input - Option 5'!$F$37=\"Yes\",BW34+BW13,BW30)","v":0},{"$f":"IF('Data Input - Option 5'!$F$37=\"Yes\",BX34+BX13,BX30)","v":0},{"$f":"IF('Data Input - Option 5'!$F$37=\"Yes\",BY34+BY13,BY30)","v":0},{"$f":"IF('Data Input - Option 5'!$F$37=\"Yes\",BZ34+BZ13,BZ30)","v":0},{"$f":"IF('Data Input - Option 5'!$F$37=\"Yes\",CA34+CA13,CA30)","v":0},{"$f":"IF('Data Input - Option 5'!$F$37=\"Yes\",CB34+CB13,CB30)","v":0},{"$f":"IF('Data Input - Option 5'!$F$37=\"Yes\",CC34+CC13,CC30)","v":0},{"$f":"IF('Data Input - Option 5'!$F$37=\"Yes\",CD34+CD13,CD30)","v":0},{"$f":"IF('Data Input - Option 5'!$F$37=\"Yes\",CE34+CE13,CE30)","v":0},{"$f":"IF('Data Input - Option 5'!$F$37=\"Yes\",CF34+CF13,CF30)","v":0},{"$f":"IF('Data Input - Option 5'!$F$37=\"Yes\",CG34+CG13,CG30)","v":0},{"$f":"IF('Data Input - Option 5'!$F$37=\"Yes\",CH34+CH13,CH30)","v":0},{"$f":"IF('Data Input - Option 5'!$F$37=\"Yes\",CI34+CI13,CI30)","v":0},{"$f":"IF('Data Input - Option 5'!$F$37=\"Yes\",CJ34+CJ13,CJ30)","v":0},{"$f":"IF('Data Input - Option 5'!$F$37=\"Yes\",CK34+CK13,CK30)","v":0},{"$f":"IF('Data Input - Option 5'!$F$37=\"Yes\",CL34+CL13,CL30)","v":0},{"$f":"IF('Data Input - Option 5'!$F$37=\"Yes\",CM34+CM13,CM30)","v":0},{"$f":"IF('Data Input - Option 5'!$F$37=\"Yes\",CN34+CN13,CN30)","v":0},{"$f":"IF('Data Input - Option 5'!$F$37=\"Yes\",CO34+CO13,CO30)","v":0},{"$f":"IF('Data Input - Option 5'!$F$37=\"Yes\",CP34+CP13,CP30)","v":0},{"$f":"IF('Data Input - Option 5'!$F$37=\"Yes\",CQ34+CQ13,CQ30)","v":0},{"$f":"IF('Data Input - Option 5'!$F$37=\"Yes\",CR34+CR13,CR30)","v":0},{"$f":"IF('Data Input - Option 5'!$F$37=\"Yes\",CS34+CS13,CS30)","v":0},{"$f":"IF('Data Input - Option 5'!$F$37=\"Yes\",CT34+CT13,CT30)","v":0},{"$f":"IF('Data Input - Option 5'!$F$37=\"Yes\",CU34+CU13,CU30)","v":0},{"$f":"IF('Data Input - Option 5'!$F$37=\"Yes\",CV34+CV13,CV30)","v":0},{"$f":"IF('Data Input - Option 5'!$F$37=\"Yes\",CW34+CW13,CW30)","v":0},{"$f":"IF('Data Input - Option 5'!$F$37=\"Yes\",CX34+CX13,CX30)","v":0},{"$f":"IF('Data Input - Option 5'!$F$37=\"Yes\",CY34+CY13,CY30)","v":0}]
[]
[null,"Operating costs (non-energy, per annum)"]
[null,"Total Opex","£000's",{"$f":"'Data Input - Option 5'!H50","v":0},{"$f":"'Data Input - Option 5'!I50","v":0},{"$f":"'Data Input - Option 5'!J50","v":0},{"$f":"'Data Input - Option 5'!K50","v":0},{"$f":"'Data Input - Option 5'!L50","v":0},{"$f":"'Data Input - Option 5'!M50","v":0},{"$f":"'Data Input - Option 5'!N50","v":0},{"$f":"'Data Input - Option 5'!O50","v":0},{"$f":"'Data Input - Option 5'!P50","v":0},{"$f":"'Data Input - Option 5'!Q50","v":0},{"$f":"'Data Input - Option 5'!R50","v":0},{"$f":"'Data Input - Option 5'!S50","v":0},{"$f":"'Data Input - Option 5'!T50","v":0},{"$f":"'Data Input - Option 5'!U50","v":0},{"$f":"'Data Input - Option 5'!V50","v":0},{"$f":"'Data Input - Option 5'!W50","v":0},{"$f":"'Data Input - Option 5'!X50","v":0},{"$f":"'Data Input - Option 5'!Y50","v":0},{"$f":"'Data Input - Option 5'!Z50","v":0},{"$f":"'Data Input - Option 5'!AA50","v":0},{"$f":"'Data Input - Option 5'!AB50","v":0},{"$f":"'Data Input - Option 5'!AC50","v":0},{"$f":"'Data Input - Option 5'!AD50","v":0},{"$f":"'Data Input - Option 5'!AE50","v":0},{"$f":"'Data Input - Option 5'!AF50","v":0},{"$f":"'Data Input - Option 5'!AG50","v":0},{"$f":"'Data Input - Option 5'!AH50","v":0},{"$f":"'Data Input - Option 5'!AI50","v":0},{"$f":"'Data Input - Option 5'!AJ50","v":0},{"$f":"'Data Input - Option 5'!AK50","v":0},{"$f":"'Data Input - Option 5'!AL50","v":0},{"$f":"'Data Input - Option 5'!AM50","v":0},{"$f":"'Data Input - Option 5'!AN50","v":0},{"$f":"'Data Input - Option 5'!AO50","v":0},{"$f":"'Data Input - Option 5'!AP50","v":0},{"$f":"'Data Input - Option 5'!AQ50","v":0},{"$f":"'Data Input - Option 5'!AR50","v":0},{"$f":"'Data Input - Option 5'!AS50","v":0},{"$f":"'Data Input - Option 5'!AT50","v":0},{"$f":"'Data Input - Option 5'!AU50","v":0},{"$f":"'Data Input - Option 5'!AV50","v":0},{"$f":"'Data Input - Option 5'!AW50","v":0},{"$f":"'Data Input - Option 5'!AX50","v":0},{"$f":"'Data Input - Option 5'!AY50","v":0},{"$f":"'Data Input - Option 5'!AZ50","v":0},{"$f":"'Data Input - Option 5'!BA50","v":0},{"$f":"'Data Input - Option 5'!BB50","v":0},{"$f":"'Data Input - Option 5'!BC50","v":0},{"$f":"'Data Input - Option 5'!BD50","v":0},{"$f":"'Data Input - Option 5'!BE50","v":0},{"$f":"'Data Input - Option 5'!BF50","v":0},{"$f":"'Data Input - Option 5'!BG50","v":0},{"$f":"'Data Input - Option 5'!BH50","v":0},{"$f":"'Data Input - Option 5'!BI50","v":0},{"$f":"'Data Input - Option 5'!BJ50","v":0},{"$f":"'Data Input - Option 5'!BK50","v":0},{"$f":"'Data Input - Option 5'!BL50","v":0},{"$f":"'Data Input - Option 5'!BM50","v":0},{"$f":"'Data Input - Option 5'!BN50","v":0},{"$f":"'Data Input - Option 5'!BO50","v":0},{"$f":"'Data Input - Option 5'!BP50","v":0},{"$f":"'Data Input - Option 5'!BQ50","v":0},{"$f":"'Data Input - Option 5'!BR50","v":0},{"$f":"'Data Input - Option 5'!BS50","v":0},{"$f":"'Data Input - Option 5'!BT50","v":0},{"$f":"'Data Input - Option 5'!BU50","v":0},{"$f":"'Data Input - Option 5'!BV50","v":0},{"$f":"'Data Input - Option 5'!BW50","v":0},{"$f":"'Data Input - Option 5'!BX50","v":0},{"$f":"'Data Input - Option 5'!BY50","v":0},{"$f":"'Data Input - Option 5'!BZ50","v":0},{"$f":"'Data Input - Option 5'!CA50","v":0},{"$f":"'Data Input - Option 5'!CB50","v":0},{"$f":"'Data Input - Option 5'!CC50","v":0},{"$f":"'Data Input - Option 5'!CD50","v":0},{"$f":"'Data Input - Option 5'!CE50","v":0},{"$f":"'Data Input - Option 5'!CF50","v":0},{"$f":"'Data Input - Option 5'!CG50","v":0},{"$f":"'Data Input - Option 5'!CH50","v":0},{"$f":"'Data Input - Option 5'!CI50","v":0},{"$f":"'Data Input - Option 5'!CJ50","v":0},{"$f":"'Data Input - Option 5'!CK50","v":0},{"$f":"'Data Input - Option 5'!CL50","v":0},{"$f":"'Data Input - Option 5'!CM50","v":0},{"$f":"'Data Input - Option 5'!CN50","v":0},{"$f":"'Data Input - Option 5'!CO50","v":0},{"$f":"'Data Input - Option 5'!CP50","v":0},{"$f":"'Data Input - Option 5'!CQ50","v":0},{"$f":"'Data Input - Option 5'!CR50","v":0},{"$f":"'Data Input - Option 5'!CS50","v":0},{"$f":"'Data Input - Option 5'!CT50","v":0},{"$f":"'Data Input - Option 5'!CU50","v":0},{"$f":"'Data Input - Option 5'!CV50","v":0},{"$f":"'Data Input - Option 5'!CW50","v":0},{"$f":"'Data Input - Option 5'!CX50","v":0},{"$f":"'Data Input - Option 5'!CY50","v":0},{"$f":"'Data Input - Option 5'!CZ50","v":0},{"$f":"'Data Input - Option 5'!DA50","v":0},{"$f":"'Data Input - Option 5'!DB50","v":0},{"$f":"'Data Input - Option 5'!DC50","v":0}]
[null,"Discounted total opex","£000's",{"$f":"D39*D$7","v":0},{"$f":"E39*E$7","v":0},0,0,0,0,0,0,0,0,0,0,0,0,0,0,0,0,0,0,0,0,0,0,0,0,0,0,0,0,0,0,0,0,0,0,0,0,0,0,0,0,0,0,0,0,0,0,0,0,0,0,0,0,0,0,0,0,0,0,0,0,0,0,0,{"$f":"BQ39*BQ$7","v":0},0,0,0,0,0,0,0,0,0,0,0,0,0,0,0,0,0,0,0,0,0,0,0,0,0,0,0,0,0,0,0,0,0,0]
[]
[null,"Waste output (annual amount generated"]
[null,"Total","£000's",{"$f":"'Data Input - Option 5'!H79","v":0},{"$f":"'Data Input - Option 5'!I79","v":0},{"$f":"'Data Input - Option 5'!J79","v":0},{"$f":"'Data Input - Option 5'!K79","v":0},{"$f":"'Data Input - Option 5'!L79","v":0},{"$f":"'Data Input - Option 5'!M79","v":0},{"$f":"'Data Input - Option 5'!N79","v":0},{"$f":"'Data Input - Option 5'!O79","v":0},{"$f":"'Data Input - Option 5'!P79","v":0},{"$f":"'Data Input - Option 5'!Q79","v":0},{"$f":"'Data Input - Option 5'!R79","v":0},{"$f":"'Data Input - Option 5'!S79","v":0},{"$f":"'Data Input - Option 5'!T79","v":0},{"$f":"'Data Input - Option 5'!U79","v":0},{"$f":"'Data Input - Option 5'!V79","v":0},{"$f":"'Data Input - Option 5'!W79","v":0},{"$f":"'Data Input - Option 5'!X79","v":0},{"$f":"'Data Input - Option 5'!Y79","v":0},{"$f":"'Data Input - Option 5'!Z79","v":0},{"$f":"'Data Input - Option 5'!AA79","v":0},{"$f":"'Data Input - Option 5'!AB79","v":0},{"$f":"'Data Input - Option 5'!AC79","v":0},{"$f":"'Data Input - Option 5'!AD79","v":0},{"$f":"'Data Input - Option 5'!AE79","v":0},{"$f":"'Data Input - Option 5'!AF79","v":0},{"$f":"'Data Input - Option 5'!AG79","v":0},{"$f":"'Data Input - Option 5'!AH79","v":0},{"$f":"'Data Input - Option 5'!AI79","v":0},{"$f":"'Data Input - Option 5'!AJ79","v":0},{"$f":"'Data Input - Option 5'!AK79","v":0},{"$f":"'Data Input - Option 5'!AL79","v":0},{"$f":"'Data Input - Option 5'!AM79","v":0},{"$f":"'Data Input - Option 5'!AN79","v":0},{"$f":"'Data Input - Option 5'!AO79","v":0},{"$f":"'Data Input - Option 5'!AP79","v":0},{"$f":"'Data Input - Option 5'!AQ79","v":0},{"$f":"'Data Input - Option 5'!AR79","v":0},{"$f":"'Data Input - Option 5'!AS79","v":0},{"$f":"'Data Input - Option 5'!AT79","v":0},{"$f":"'Data Input - Option 5'!AU79","v":0},{"$f":"'Data Input - Option 5'!AV79","v":0},{"$f":"'Data Input - Option 5'!AW79","v":0},{"$f":"'Data Input - Option 5'!AX79","v":0},{"$f":"'Data Input - Option 5'!AY79","v":0},{"$f":"'Data Input - Option 5'!AZ79","v":0},{"$f":"'Data Input - Option 5'!BA79","v":0},{"$f":"'Data Input - Option 5'!BB79","v":0},{"$f":"'Data Input - Option 5'!BC79","v":0},{"$f":"'Data Input - Option 5'!BD79","v":0},{"$f":"'Data Input - Option 5'!BE79","v":0},{"$f":"'Data Input - Option 5'!BF79","v":0},{"$f":"'Data Input - Option 5'!BG79","v":0},{"$f":"'Data Input - Option 5'!BH79","v":0},{"$f":"'Data Input - Option 5'!BI79","v":0},{"$f":"'Data Input - Option 5'!BJ79","v":0},{"$f":"'Data Input - Option 5'!BK79","v":0},{"$f":"'Data Input - Option 5'!BL79","v":0},{"$f":"'Data Input - Option 5'!BM79","v":0},{"$f":"'Data Input - Option 5'!BN79","v":0},{"$f":"'Data Input - Option 5'!BO79","v":0},{"$f":"'Data Input - Option 5'!BP79","v":0},{"$f":"'Data Input - Option 5'!BQ79","v":0},{"$f":"'Data Input - Option 5'!BR79","v":0},{"$f":"'Data Input - Option 5'!BS79","v":0},{"$f":"'Data Input - Option 5'!BT79","v":0},{"$f":"'Data Input - Option 5'!BU79","v":0},{"$f":"'Data Input - Option 5'!BV79","v":0},{"$f":"'Data Input - Option 5'!BW79","v":0},{"$f":"'Data Input - Option 5'!BX79","v":0},{"$f":"'Data Input - Option 5'!BY79","v":0},{"$f":"'Data Input - Option 5'!BZ79","v":0},{"$f":"'Data Input - Option 5'!CA79","v":0},{"$f":"'Data Input - Option 5'!CB79","v":0},{"$f":"'Data Input - Option 5'!CC79","v":0},{"$f":"'Data Input - Option 5'!CD79","v":0},{"$f":"'Data Input - Option 5'!CE79","v":0},{"$f":"'Data Input - Option 5'!CF79","v":0},{"$f":"'Data Input - Option 5'!CG79","v":0},{"$f":"'Data Input - Option 5'!CH79","v":0},{"$f":"'Data Input - Option 5'!CI79","v":0},{"$f":"'Data Input - Option 5'!CJ79","v":0},{"$f":"'Data Input - Option 5'!CK79","v":0},{"$f":"'Data Input - Option 5'!CL79","v":0},{"$f":"'Data Input - Option 5'!CM79","v":0},{"$f":"'Data Input - Option 5'!CN79","v":0},{"$f":"'Data Input - Option 5'!CO79","v":0},{"$f":"'Data Input - Option 5'!CP79","v":0},{"$f":"'Data Input - Option 5'!CQ79","v":0},{"$f":"'Data Input - Option 5'!CR79","v":0},{"$f":"'Data Input - Option 5'!CS79","v":0},{"$f":"'Data Input - Option 5'!CT79","v":0},{"$f":"'Data Input - Option 5'!CU79","v":0},{"$f":"'Data Input - Option 5'!CV79","v":0},{"$f":"'Data Input - Option 5'!CW79","v":0},{"$f":"'Data Input - Option 5'!CX79","v":0},{"$f":"'Data Input - Option 5'!CY79","v":0},{"$f":"'Data Input - Option 5'!CZ79","v":0},{"$f":"'Data Input - Option 5'!DA79","v":0},{"$f":"'Data Input - Option 5'!DB79","v":0},{"$f":"'Data Input - Option 5'!DC79","v":0}]
[null,"Discounted total waste cost","£000's",{"$f":"D43*D$7","v":0},{"$f":"E43*E$7","v":0},0,0,0,0,0,0,0,0,0,0,0,0,0,0,0,0,0,0,0,0,0,0,0,0,0,0,0,0,0,0,0,0,0,0,0,0,0,0,0,0,0,0,0,0,0,0,0,0,0,0,0,0,0,0,0,0,0,0,0,0,0,0,0,{"$f":"BQ43*BQ$7","v":0},0,0,0,0,0,0,0,0,0,0,0,0,0,0,0,0,0,0,0,0,0,0,0,0,0,0,0,0,0,0,0,0,0,0]
[]
[null,"Energy Consumption"]
[null,"Total","£000's",{"$f":"'Data Input - Option 5'!H100","v":0},{"$f":"'Data Input - Option 5'!I100","v":0},{"$f":"'Data Input - Option 5'!J100","v":0},{"$f":"'Data Input - Option 5'!K100","v":0},{"$f":"'Data Input - Option 5'!L100","v":0},{"$f":"'Data Input - Option 5'!M100","v":0},{"$f":"'Data Input - Option 5'!N100","v":0},{"$f":"'Data Input - Option 5'!O100","v":0},{"$f":"'Data Input - Option 5'!P100","v":0},{"$f":"'Data Input - Option 5'!Q100","v":0},{"$f":"'Data Input - Option 5'!R100","v":0},{"$f":"'Data Input - Option 5'!S100","v":0},{"$f":"'Data Input - Option 5'!T100","v":0},{"$f":"'Data Input - Option 5'!U100","v":0},{"$f":"'Data Input - Option 5'!V100","v":0},{"$f":"'Data Input - Option 5'!W100","v":0},{"$f":"'Data Input - Option 5'!X100","v":0},{"$f":"'Data Input - Option 5'!Y100","v":0},{"$f":"'Data Input - Option 5'!Z100","v":0},{"$f":"'Data Input - Option 5'!AA100","v":0},{"$f":"'Data Input - Option 5'!AB100","v":0},{"$f":"'Data Input - Option 5'!AC100","v":0},{"$f":"'Data Input - Option 5'!AD100","v":0},{"$f":"'Data Input - Option 5'!AE100","v":0},{"$f":"'Data Input - Option 5'!AF100","v":0},{"$f":"'Data Input - Option 5'!AG100","v":0},{"$f":"'Data Input - Option 5'!AH100","v":0},{"$f":"'Data Input - Option 5'!AI100","v":0},{"$f":"'Data Input - Option 5'!AJ100","v":0},{"$f":"'Data Input - Option 5'!AK100","v":0},{"$f":"'Data Input - Option 5'!AL100","v":0},{"$f":"'Data Input - Option 5'!AM100","v":0},{"$f":"'Data Input - Option 5'!AN100","v":0},{"$f":"'Data Input - Option 5'!AO100","v":0},{"$f":"'Data Input - Option 5'!AP100","v":0},{"$f":"'Data Input - Option 5'!AQ100","v":0},{"$f":"'Data Input - Option 5'!AR100","v":0},{"$f":"'Data Input - Option 5'!AS100","v":0},{"$f":"'Data Input - Option 5'!AT100","v":0},{"$f":"'Data Input - Option 5'!AU100","v":0},{"$f":"'Data Input - Option 5'!AV100","v":0},{"$f":"'Data Input - Option 5'!AW100","v":0},{"$f":"'Data Input - Option 5'!AX100","v":0},{"$f":"'Data Input - Option 5'!AY100","v":0},{"$f":"'Data Input - Option 5'!AZ100","v":0},{"$f":"'Data Input - Option 5'!BA100","v":0},{"$f":"'Data Input - Option 5'!BB100","v":0},{"$f":"'Data Input - Option 5'!BC100","v":0},{"$f":"'Data Input - Option 5'!BD100","v":0},{"$f":"'Data Input - Option 5'!BE100","v":0},{"$f":"'Data Input - Option 5'!BF100","v":0},{"$f":"'Data Input - Option 5'!BG100","v":0},{"$f":"'Data Input - Option 5'!BH100","v":0},{"$f":"'Data Input - Option 5'!BI100","v":0},{"$f":"'Data Input - Option 5'!BJ100","v":0},{"$f":"'Data Input - Option 5'!BK100","v":0},{"$f":"'Data Input - Option 5'!BL100","v":0},{"$f":"'Data Input - Option 5'!BM100","v":0},{"$f":"'Data Input - Option 5'!BN100","v":0},{"$f":"'Data Input - Option 5'!BO100","v":0},{"$f":"'Data Input - Option 5'!BP100","v":0},{"$f":"'Data Input - Option 5'!BQ100","v":0},{"$f":"'Data Input - Option 5'!BR100","v":0},{"$f":"'Data Input - Option 5'!BS100","v":0},{"$f":"'Data Input - Option 5'!BT100","v":0},{"$f":"'Data Input - Option 5'!BU100","v":0},{"$f":"'Data Input - Option 5'!BV100","v":0},{"$f":"'Data Input - Option 5'!BW100","v":0},{"$f":"'Data Input - Option 5'!BX100","v":0},{"$f":"'Data Input - Option 5'!BY100","v":0},{"$f":"'Data Input - Option 5'!BZ100","v":0},{"$f":"'Data Input - Option 5'!CA100","v":0},{"$f":"'Data Input - Option 5'!CB100","v":0},{"$f":"'Data Input - Option 5'!CC100","v":0},{"$f":"'Data Input - Option 5'!CD100","v":0},{"$f":"'Data Input - Option 5'!CE100","v":0},{"$f":"'Data Input - Option 5'!CF100","v":0},{"$f":"'Data Input - Option 5'!CG100","v":0},{"$f":"'Data Input - Option 5'!CH100","v":0},{"$f":"'Data Input - Option 5'!CI100","v":0},{"$f":"'Data Input - Option 5'!CJ100","v":0},{"$f":"'Data Input - Option 5'!CK100","v":0},{"$f":"'Data Input - Option 5'!CL100","v":0},{"$f":"'Data Input - Option 5'!CM100","v":0},{"$f":"'Data Input - Option 5'!CN100","v":0},{"$f":"'Data Input - Option 5'!CO100","v":0},{"$f":"'Data Input - Option 5'!CP100","v":0},{"$f":"'Data Input - Option 5'!CQ100","v":0},{"$f":"'Data Input - Option 5'!CR100","v":0},{"$f":"'Data Input - Option 5'!CS100","v":0},{"$f":"'Data Input - Option 5'!CT100","v":0},{"$f":"'Data Input - Option 5'!CU100","v":0},{"$f":"'Data Input - Option 5'!CV100","v":0},{"$f":"'Data Input - Option 5'!CW100","v":0},{"$f":"'Data Input - Option 5'!CX100","v":0},{"$f":"'Data Input - Option 5'!CY100","v":0},{"$f":"'Data Input - Option 5'!CZ100","v":0},{"$f":"'Data Input - Option 5'!DA100","v":0},{"$f":"'Data Input - Option 5'!DB100","v":0},{"$f":"'Data Input - Option 5'!DC100","v":0}]
[null,"Discounted energy consumption","£000's",{"$f":"D47*D$7","v":0},{"$f":"E47*E$7","v":0},0,0,0,0,0,0,0,0,0,0,0,0,0,0,0,0,0,0,0,0,0,0,0,0,0,0,0,0,0,0,0,0,0,0,0,0,0,0,0,0,0,0,0,0,0,0,0,0,0,0,0,0,0,0,0,0,0,0,0,0,0,0,0,{"$f":"BQ47*BQ$7","v":0},0,0,0,0,0,0,0,0,0,0,0,0,0,0,0,0,0,0,0,0,0,0,0,0,0,0,0,0,0,0,0,0,0,0]
[null,"Excluding those for which DECC prices used","£000's",{"$f":"('Data Input - Option 5'!H100-SUM('Data Input - Option 5'!H92:H97))*Calc_Option5!D$7","v":0},{"$f":"('Data Input - Option 5'!I100-SUM('Data Input - Option 5'!I92:I97))*Calc_Option5!E$7","v":0},{"$f":"('Data Input - Option 5'!J100-SUM('Data Input - Option 5'!J92:J97))*Calc_Option5!F$7","v":0},{"$f":"('Data Input - Option 5'!K100-SUM('Data Input - Option 5'!K92:K97))*Calc_Option5!G$7","v":0},{"$f":"('Data Input - Option 5'!L100-SUM('Data Input - Option 5'!L92:L97))*Calc_Option5!H$7","v":0},{"$f":"('Data Input - Option 5'!M100-SUM('Data Input - Option 5'!M92:M97))*Calc_Option5!I$7","v":0},{"$f":"('Data Input - Option 5'!N100-SUM('Data Input - Option 5'!N92:N97))*Calc_Option5!J$7","v":0},{"$f":"('Data Input - Option 5'!O100-SUM('Data Input - Option 5'!O92:O97))*Calc_Option5!K$7","v":0},{"$f":"('Data Input - Option 5'!P100-SUM('Data Input - Option 5'!P92:P97))*Calc_Option5!L$7","v":0},{"$f":"('Data Input - Option 5'!Q100-SUM('Data Input - Option 5'!Q92:Q97))*Calc_Option5!M$7","v":0},{"$f":"('Data Input - Option 5'!R100-SUM('Data Input - Option 5'!R92:R97))*Calc_Option5!N$7","v":0},{"$f":"('Data Input - Option 5'!S100-SUM('Data Input - Option 5'!S92:S97))*Calc_Option5!O$7","v":0},{"$f":"('Data Input - Option 5'!T100-SUM('Data Input - Option 5'!T92:T97))*Calc_Option5!P$7","v":0},{"$f":"('Data Input - Option 5'!U100-SUM('Data Input - Option 5'!U92:U97))*Calc_Option5!Q$7","v":0},{"$f":"('Data Input - Option 5'!V100-SUM('Data Input - Option 5'!V92:V97))*Calc_Option5!R$7","v":0},{"$f":"('Data Input - Option 5'!W100-SUM('Data Input - Option 5'!W92:W97))*Calc_Option5!S$7","v":0},{"$f":"('Data Input - Option 5'!X100-SUM('Data Input - Option 5'!X92:X97))*Calc_Option5!T$7","v":0},{"$f":"('Data Input - Option 5'!Y100-SUM('Data Input - Option 5'!Y92:Y97))*Calc_Option5!U$7","v":0},{"$f":"('Data Input - Option 5'!Z100-SUM('Data Input - Option 5'!Z92:Z97))*Calc_Option5!V$7","v":0},{"$f":"('Data Input - Option 5'!AA100-SUM('Data Input - Option 5'!AA92:AA97))*Calc_Option5!W$7","v":0},{"$f":"('Data Input - Option 5'!AB100-SUM('Data Input - Option 5'!AB92:AB97))*Calc_Option5!X$7","v":0},{"$f":"('Data Input - Option 5'!AC100-SUM('Data Input - Option 5'!AC92:AC97))*Calc_Option5!Y$7","v":0},{"$f":"('Data Input - Option 5'!AD100-SUM('Data Input - Option 5'!AD92:AD97))*Calc_Option5!Z$7","v":0},{"$f":"('Data Input - Option 5'!AE100-SUM('Data Input - Option 5'!AE92:AE97))*Calc_Option5!AA$7","v":0},{"$f":"('Data Input - Option 5'!AF100-SUM('Data Input - Option 5'!AF92:AF97))*Calc_Option5!AB$7","v":0},{"$f":"('Data Input - Option 5'!AG100-SUM('Data Input - Option 5'!AG92:AG97))*Calc_Option5!AC$7","v":0},{"$f":"('Data Input - Option 5'!AH100-SUM('Data Input - Option 5'!AH92:AH97))*Calc_Option5!AD$7","v":0},{"$f":"('Data Input - Option 5'!AI100-SUM('Data Input - Option 5'!AI92:AI97))*Calc_Option5!AE$7","v":0},{"$f":"('Data Input - Option 5'!AJ100-SUM('Data Input - Option 5'!AJ92:AJ97))*Calc_Option5!AF$7","v":0},{"$f":"('Data Input - Option 5'!AK100-SUM('Data Input - Option 5'!AK92:AK97))*Calc_Option5!AG$7","v":0},{"$f":"('Data Input - Option 5'!AL100-SUM('Data Input - Option 5'!AL92:AL97))*Calc_Option5!AH$7","v":0},{"$f":"('Data Input - Option 5'!AM100-SUM('Data Input - Option 5'!AM92:AM97))*Calc_Option5!AI$7","v":0},{"$f":"('Data Input - Option 5'!AN100-SUM('Data Input - Option 5'!AN92:AN97))*Calc_Option5!AJ$7","v":0},{"$f":"('Data Input - Option 5'!AO100-SUM('Data Input - Option 5'!AO92:AO97))*Calc_Option5!AK$7","v":0},{"$f":"('Data Input - Option 5'!AP100-SUM('Data Input - Option 5'!AP92:AP97))*Calc_Option5!AL$7","v":0},{"$f":"('Data Input - Option 5'!AQ100-SUM('Data Input - Option 5'!AQ92:AQ97))*Calc_Option5!AM$7","v":0},{"$f":"('Data Input - Option 5'!AR100-SUM('Data Input - Option 5'!AR92:AR97))*Calc_Option5!AN$7","v":0},{"$f":"('Data Input - Option 5'!AS100-SUM('Data Input - Option 5'!AS92:AS97))*Calc_Option5!AO$7","v":0},{"$f":"('Data Input - Option 5'!AT100-SUM('Data Input - Option 5'!AT92:AT97))*Calc_Option5!AP$7","v":0},{"$f":"('Data Input - Option 5'!AU100-SUM('Data Input - Option 5'!AU92:AU97))*Calc_Option5!AQ$7","v":0},{"$f":"('Data Input - Option 5'!AV100-SUM('Data Input - Option 5'!AV92:AV97))*Calc_Option5!AR$7","v":0},{"$f":"('Data Input - Option 5'!AW100-SUM('Data Input - Option 5'!AW92:AW97))*Calc_Option5!AS$7","v":0},{"$f":"('Data Input - Option 5'!AX100-SUM('Data Input - Option 5'!AX92:AX97))*Calc_Option5!AT$7","v":0},{"$f":"('Data Input - Option 5'!AY100-SUM('Data Input - Option 5'!AY92:AY97))*Calc_Option5!AU$7","v":0},{"$f":"('Data Input - Option 5'!AZ100-SUM('Data Input - Option 5'!AZ92:AZ97))*Calc_Option5!AV$7","v":0},{"$f":"('Data Input - Option 5'!BA100-SUM('Data Input - Option 5'!BA92:BA97))*Calc_Option5!AW$7","v":0},{"$f":"('Data Input - Option 5'!BB100-SUM('Data Input - Option 5'!BB92:BB97))*Calc_Option5!AX$7","v":0},{"$f":"('Data Input - Option 5'!BC100-SUM('Data Input - Option 5'!BC92:BC97))*Calc_Option5!AY$7","v":0},{"$f":"('Data Input - Option 5'!BD100-SUM('Data Input - Option 5'!BD92:BD97))*Calc_Option5!AZ$7","v":0},{"$f":"('Data Input - Option 5'!BE100-SUM('Data Input - Option 5'!BE92:BE97))*Calc_Option5!BA$7","v":0},{"$f":"('Data Input - Option 5'!BF100-SUM('Data Input - Option 5'!BF92:BF97))*Calc_Option5!BB$7","v":0},{"$f":"('Data Input - Option 5'!BG100-SUM('Data Input - Option 5'!BG92:BG97))*Calc_Option5!BC$7","v":0},{"$f":"('Data Input - Option 5'!BH100-SUM('Data Input - Option 5'!BH92:BH97))*Calc_Option5!BD$7","v":0},{"$f":"('Data Input - Option 5'!BI100-SUM('Data Input - Option 5'!BI92:BI97))*Calc_Option5!BE$7","v":0},{"$f":"('Data Input - Option 5'!BJ100-SUM('Data Input - Option 5'!BJ92:BJ97))*Calc_Option5!BF$7","v":0},{"$f":"('Data Input - Option 5'!BK100-SUM('Data Input - Option 5'!BK92:BK97))*Calc_Option5!BG$7","v":0},{"$f":"('Data Input - Option 5'!BL100-SUM('Data Input - Option 5'!BL92:BL97))*Calc_Option5!BH$7","v":0},{"$f":"('Data Input - Option 5'!BM100-SUM('Data Input - Option 5'!BM92:BM97))*Calc_Option5!BI$7","v":0},{"$f":"('Data Input - Option 5'!BN100-SUM('Data Input - Option 5'!BN92:BN97))*Calc_Option5!BJ$7","v":0},{"$f":"('Data Input - Option 5'!BO100-SUM('Data Input - Option 5'!BO92:BO97))*Calc_Option5!BK$7","v":0},{"$f":"('Data Input - Option 5'!BP100-SUM('Data Input - Option 5'!BP92:BP97))*Calc_Option5!BL$7","v":0},{"$f":"('Data Input - Option 5'!BQ100-SUM('Data Input - Option 5'!BQ92:BQ97))*Calc_Option5!BM$7","v":0},{"$f":"('Data Input - Option 5'!BR100-SUM('Data Input - Option 5'!BR92:BR97))*Calc_Option5!BN$7","v":0},{"$f":"('Data Input - Option 5'!BS100-SUM('Data Input - Option 5'!BS92:BS97))*Calc_Option5!BO$7","v":0},{"$f":"('Data Input - Option 5'!BT100-SUM('Data Input - Option 5'!BT92:BT97))*Calc_Option5!BP$7","v":0},{"$f":"('Data Input - Option 5'!BU100-SUM('Data Input - Option 5'!BU92:BU97))*Calc_Option5!BQ$7","v":0},{"$f":"('Data Input - Option 5'!BV100-SUM('Data Input - Option 5'!BV92:BV97))*Calc_Option5!BR$7","v":0},{"$f":"('Data Input - Option 5'!BW100-SUM('Data Input - Option 5'!BW92:BW97))*Calc_Option5!BS$7","v":0},{"$f":"('Data Input - Option 5'!BX100-SUM('Data Input - Option 5'!BX92:BX97))*Calc_Option5!BT$7","v":0},{"$f":"('Data Input - Option 5'!BY100-SUM('Data Input - Option 5'!BY92:BY97))*Calc_Option5!BU$7","v":0},{"$f":"('Data Input - Option 5'!BZ100-SUM('Data Input - Option 5'!BZ92:BZ97))*Calc_Option5!BV$7","v":0},{"$f":"('Data Input - Option 5'!CA100-SUM('Data Input - Option 5'!CA92:CA97))*Calc_Option5!BW$7","v":0},{"$f":"('Data Input - Option 5'!CB100-SUM('Data Input - Option 5'!CB92:CB97))*Calc_Option5!BX$7","v":0},{"$f":"('Data Input - Option 5'!CC100-SUM('Data Input - Option 5'!CC92:CC97))*Calc_Option5!BY$7","v":0},{"$f":"('Data Input - Option 5'!CD100-SUM('Data Input - Option 5'!CD92:CD97))*Calc_Option5!BZ$7","v":0},{"$f":"('Data Input - Option 5'!CE100-SUM('Data Input - Option 5'!CE92:CE97))*Calc_Option5!CA$7","v":0},{"$f":"('Data Input - Option 5'!CF100-SUM('Data Input - Option 5'!CF92:CF97))*Calc_Option5!CB$7","v":0},{"$f":"('Data Input - Option 5'!CG100-SUM('Data Input - Option 5'!CG92:CG97))*Calc_Option5!CC$7","v":0},{"$f":"('Data Input - Option 5'!CH100-SUM('Data Input - Option 5'!CH92:CH97))*Calc_Option5!CD$7","v":0},{"$f":"('Data Input - Option 5'!CI100-SUM('Data Input - Option 5'!CI92:CI97))*Calc_Option5!CE$7","v":0},{"$f":"('Data Input - Option 5'!CJ100-SUM('Data Input - Option 5'!CJ92:CJ97))*Calc_Option5!CF$7","v":0},{"$f":"('Data Input - Option 5'!CK100-SUM('Data Input - Option 5'!CK92:CK97))*Calc_Option5!CG$7","v":0},{"$f":"('Data Input - Option 5'!CL100-SUM('Data Input - Option 5'!CL92:CL97))*Calc_Option5!CH$7","v":0},{"$f":"('Data Input - Option 5'!CM100-SUM('Data Input - Option 5'!CM92:CM97))*Calc_Option5!CI$7","v":0},{"$f":"('Data Input - Option 5'!CN100-SUM('Data Input - Option 5'!CN92:CN97))*Calc_Option5!CJ$7","v":0},{"$f":"('Data Input - Option 5'!CO100-SUM('Data Input - Option 5'!CO92:CO97))*Calc_Option5!CK$7","v":0},{"$f":"('Data Input - Option 5'!CP100-SUM('Data Input - Option 5'!CP92:CP97))*Calc_Option5!CL$7","v":0},{"$f":"('Data Input - Option 5'!CQ100-SUM('Data Input - Option 5'!CQ92:CQ97))*Calc_Option5!CM$7","v":0},{"$f":"('Data Input - Option 5'!CR100-SUM('Data Input - Option 5'!CR92:CR97))*Calc_Option5!CN$7","v":0},{"$f":"('Data Input - Option 5'!CS100-SUM('Data Input - Option 5'!CS92:CS97))*Calc_Option5!CO$7","v":0},{"$f":"('Data Input - Option 5'!CT100-SUM('Data Input - Option 5'!CT92:CT97))*Calc_Option5!CP$7","v":0},{"$f":"('Data Input - Option 5'!CU100-SUM('Data Input - Option 5'!CU92:CU97))*Calc_Option5!CQ$7","v":0},{"$f":"('Data Input - Option 5'!CV100-SUM('Data Input - Option 5'!CV92:CV97))*Calc_Option5!CR$7","v":0},{"$f":"('Data Input - Option 5'!CW100-SUM('Data Input - Option 5'!CW92:CW97))*Calc_Option5!CS$7","v":0},{"$f":"('Data Input - Option 5'!CX100-SUM('Data Input - Option 5'!CX92:CX97))*Calc_Option5!CT$7","v":0},{"$f":"('Data Input - Option 5'!CY100-SUM('Data Input - Option 5'!CY92:CY97))*Calc_Option5!CU$7","v":0},{"$f":"('Data Input - Option 5'!CZ100-SUM('Data Input - Option 5'!CZ92:CZ97))*Calc_Option5!CV$7","v":0},{"$f":"('Data Input - Option 5'!DA100-SUM('Data Input - Option 5'!DA92:DA97))*Calc_Option5!CW$7","v":0},{"$f":"('Data Input - Option 5'!DB100-SUM('Data Input - Option 5'!DB92:DB97))*Calc_Option5!CX$7","v":0},{"$f":"('Data Input - Option 5'!DC100-SUM('Data Input - Option 5'!DC92:DC97))*Calc_Option5!CY$7","v":0}]
[]
[null,"Environmental impacts"]
[null,"Air pollutant emissions"]
[null,{"$f":"'Data Input - Option 5'!D105","v":0},"Tonnes pa",{"$f":"'Data Input - Option 5'!H105","v":0},{"$f":"'Data Input - Option 5'!I105","v":0},{"$f":"'Data Input - Option 5'!J105","v":0},{"$f":"'Data Input - Option 5'!K105","v":0},{"$f":"'Data Input - Option 5'!L105","v":0},{"$f":"'Data Input - Option 5'!M105","v":0},{"$f":"'Data Input - Option 5'!N105","v":0},{"$f":"'Data Input - Option 5'!O105","v":0},{"$f":"'Data Input - Option 5'!P105","v":0},{"$f":"'Data Input - Option 5'!Q105","v":0},{"$f":"'Data Input - Option 5'!R105","v":0},{"$f":"'Data Input - Option 5'!S105","v":0},{"$f":"'Data Input - Option 5'!T105","v":0},{"$f":"'Data Input - Option 5'!U105","v":0},{"$f":"'Data Input - Option 5'!V105","v":0},{"$f":"'Data Input - Option 5'!W105","v":0},{"$f":"'Data Input - Option 5'!X105","v":0},{"$f":"'Data Input - Option 5'!Y105","v":0},{"$f":"'Data Input - Option 5'!Z105","v":0},{"$f":"'Data Input - Option 5'!AA105","v":0},{"$f":"'Data Input - Option 5'!AB105","v":0},{"$f":"'Data Input - Option 5'!AC105","v":0},{"$f":"'Data Input - Option 5'!AD105","v":0},{"$f":"'Data Input - Option 5'!AE105","v":0},{"$f":"'Data Input - Option 5'!AF105","v":0},{"$f":"'Data Input - Option 5'!AG105","v":0},{"$f":"'Data Input - Option 5'!AH105","v":0},{"$f":"'Data Input - Option 5'!AI105","v":0},{"$f":"'Data Input - Option 5'!AJ105","v":0},{"$f":"'Data Input - Option 5'!AK105","v":0},{"$f":"'Data Input - Option 5'!AL105","v":0},{"$f":"'Data Input - Option 5'!AM105","v":0},{"$f":"'Data Input - Option 5'!AN105","v":0},{"$f":"'Data Input - Option 5'!AO105","v":0},{"$f":"'Data Input - Option 5'!AP105","v":0},{"$f":"'Data Input - Option 5'!AQ105","v":0},{"$f":"'Data Input - Option 5'!AR105","v":0},{"$f":"'Data Input - Option 5'!AS105","v":0},{"$f":"'Data Input - Option 5'!AT105","v":0},{"$f":"'Data Input - Option 5'!AU105","v":0},{"$f":"'Data Input - Option 5'!AV105","v":0},{"$f":"'Data Input - Option 5'!AW105","v":0},{"$f":"'Data Input - Option 5'!AX105","v":0},{"$f":"'Data Input - Option 5'!AY105","v":0},{"$f":"'Data Input - Option 5'!AZ105","v":0},{"$f":"'Data Input - Option 5'!BA105","v":0},{"$f":"'Data Input - Option 5'!BB105","v":0},{"$f":"'Data Input - Option 5'!BC105","v":0},{"$f":"'Data Input - Option 5'!BD105","v":0},{"$f":"'Data Input - Option 5'!BE105","v":0},{"$f":"'Data Input - Option 5'!BF105","v":0},{"$f":"'Data Input - Option 5'!BG105","v":0},{"$f":"'Data Input - Option 5'!BH105","v":0},{"$f":"'Data Input - Option 5'!BI105","v":0},{"$f":"'Data Input - Option 5'!BJ105","v":0},{"$f":"'Data Input - Option 5'!BK105","v":0},{"$f":"'Data Input - Option 5'!BL105","v":0},{"$f":"'Data Input - Option 5'!BM105","v":0},{"$f":"'Data Input - Option 5'!BN105","v":0},{"$f":"'Data Input - Option 5'!BO105","v":0},{"$f":"'Data Input - Option 5'!BP105","v":0},{"$f":"'Data Input - Option 5'!BQ105","v":0},{"$f":"'Data Input - Option 5'!BR105","v":0},{"$f":"'Data Input - Option 5'!BS105","v":0},{"$f":"'Data Input - Option 5'!BT105","v":0},{"$f":"'Data Input - Option 5'!BU105","v":0},{"$f":"'Data Input - Option 5'!BV105","v":0},{"$f":"'Data Input - Option 5'!BW105","v":0},{"$f":"'Data Input - Option 5'!BX105","v":0},{"$f":"'Data Input - Option 5'!BY105","v":0},{"$f":"'Data Input - Option 5'!BZ105","v":0},{"$f":"'Data Input - Option 5'!CA105","v":0},{"$f":"'Data Input - Option 5'!CB105","v":0},{"$f":"'Data Input - Option 5'!CC105","v":0},{"$f":"'Data Input - Option 5'!CD105","v":0},{"$f":"'Data Input - Option 5'!CE105","v":0},{"$f":"'Data Input - Option 5'!CF105","v":0},{"$f":"'Data Input - Option 5'!CG105","v":0},{"$f":"'Data Input - Option 5'!CH105","v":0},{"$f":"'Data Input - Option 5'!CI105","v":0},{"$f":"'Data Input - Option 5'!CJ105","v":0},{"$f":"'Data Input - Option 5'!CK105","v":0},{"$f":"'Data Input - Option 5'!CL105","v":0},{"$f":"'Data Input - Option 5'!CM105","v":0},{"$f":"'Data Input - Option 5'!CN105","v":0},{"$f":"'Data Input - Option 5'!CO105","v":0},{"$f":"'Data Input - Option 5'!CP105","v":0},{"$f":"'Data Input - Option 5'!CQ105","v":0},{"$f":"'Data Input - Option 5'!CR105","v":0},{"$f":"'Data Input - Option 5'!CS105","v":0},{"$f":"'Data Input - Option 5'!CT105","v":0},{"$f":"'Data Input - Option 5'!CU105","v":0},{"$f":"'Data Input - Option 5'!CV105","v":0},{"$f":"'Data Input - Option 5'!CW105","v":0},{"$f":"'Data Input - Option 5'!CX105","v":0},{"$f":"'Data Input - Option 5'!CY105","v":0},{"$f":"'Data Input - Option 5'!CZ105","v":0},{"$f":"'Data Input - Option 5'!DA105","v":0},{"$f":"'Data Input - Option 5'!DB105","v":0},{"$f":"'Data Input - Option 5'!DC105","v":0}]
[null,{"$f":"'Data Input - Option 5'!D106","v":0},"Tonnes pa",{"$f":"'Data Input - Option 5'!H106","v":0},{"$f":"'Data Input - Option 5'!I106","v":0},{"$f":"'Data Input - Option 5'!J106","v":0},{"$f":"'Data Input - Option 5'!K106","v":0},{"$f":"'Data Input - Option 5'!L106","v":0},{"$f":"'Data Input - Option 5'!M106","v":0},{"$f":"'Data Input - Option 5'!N106","v":0},{"$f":"'Data Input - Option 5'!O106","v":0},{"$f":"'Data Input - Option 5'!P106","v":0},{"$f":"'Data Input - Option 5'!Q106","v":0},{"$f":"'Data Input - Option 5'!R106","v":0},{"$f":"'Data Input - Option 5'!S106","v":0},{"$f":"'Data Input - Option 5'!T106","v":0},{"$f":"'Data Input - Option 5'!U106","v":0},{"$f":"'Data Input - Option 5'!V106","v":0},{"$f":"'Data Input - Option 5'!W106","v":0},{"$f":"'Data Input - Option 5'!X106","v":0},{"$f":"'Data Input - Option 5'!Y106","v":0},{"$f":"'Data Input - Option 5'!Z106","v":0},{"$f":"'Data Input - Option 5'!AA106","v":0},{"$f":"'Data Input - Option 5'!AB106","v":0},{"$f":"'Data Input - Option 5'!AC106","v":0},{"$f":"'Data Input - Option 5'!AD106","v":0},{"$f":"'Data Input - Option 5'!AE106","v":0},{"$f":"'Data Input - Option 5'!AF106","v":0},{"$f":"'Data Input - Option 5'!AG106","v":0},{"$f":"'Data Input - Option 5'!AH106","v":0},{"$f":"'Data Input - Option 5'!AI106","v":0},{"$f":"'Data Input - Option 5'!AJ106","v":0},{"$f":"'Data Input - Option 5'!AK106","v":0},{"$f":"'Data Input - Option 5'!AL106","v":0},{"$f":"'Data Input - Option 5'!AM106","v":0},{"$f":"'Data Input - Option 5'!AN106","v":0},{"$f":"'Data Input - Option 5'!AO106","v":0},{"$f":"'Data Input - Option 5'!AP106","v":0},{"$f":"'Data Input - Option 5'!AQ106","v":0},{"$f":"'Data Input - Option 5'!AR106","v":0},{"$f":"'Data Input - Option 5'!AS106","v":0},{"$f":"'Data Input - Option 5'!AT106","v":0},{"$f":"'Data Input - Option 5'!AU106","v":0},{"$f":"'Data Input - Option 5'!AV106","v":0},{"$f":"'Data Input - Option 5'!AW106","v":0},{"$f":"'Data Input - Option 5'!AX106","v":0},{"$f":"'Data Input - Option 5'!AY106","v":0},{"$f":"'Data Input - Option 5'!AZ106","v":0},{"$f":"'Data Input - Option 5'!BA106","v":0},{"$f":"'Data Input - Option 5'!BB106","v":0},{"$f":"'Data Input - Option 5'!BC106","v":0},{"$f":"'Data Input - Option 5'!BD106","v":0},{"$f":"'Data Input - Option 5'!BE106","v":0},{"$f":"'Data Input - Option 5'!BF106","v":0},{"$f":"'Data Input - Option 5'!BG106","v":0},{"$f":"'Data Input - Option 5'!BH106","v":0},{"$f":"'Data Input - Option 5'!BI106","v":0},{"$f":"'Data Input - Option 5'!BJ106","v":0},{"$f":"'Data Input - Option 5'!BK106","v":0},{"$f":"'Data Input - Option 5'!BL106","v":0},{"$f":"'Data Input - Option 5'!BM106","v":0},{"$f":"'Data Input - Option 5'!BN106","v":0},{"$f":"'Data Input - Option 5'!BO106","v":0},{"$f":"'Data Input - Option 5'!BP106","v":0},{"$f":"'Data Input - Option 5'!BQ106","v":0},{"$f":"'Data Input - Option 5'!BR106","v":0},{"$f":"'Data Input - Option 5'!BS106","v":0},{"$f":"'Data Input - Option 5'!BT106","v":0},{"$f":"'Data Input - Option 5'!BU106","v":0},{"$f":"'Data Input - Option 5'!BV106","v":0},{"$f":"'Data Input - Option 5'!BW106","v":0},{"$f":"'Data Input - Option 5'!BX106","v":0},{"$f":"'Data Input - Option 5'!BY106","v":0},{"$f":"'Data Input - Option 5'!BZ106","v":0},{"$f":"'Data Input - Option 5'!CA106","v":0},{"$f":"'Data Input - Option 5'!CB106","v":0},{"$f":"'Data Input - Option 5'!CC106","v":0},{"$f":"'Data Input - Option 5'!CD106","v":0},{"$f":"'Data Input - Option 5'!CE106","v":0},{"$f":"'Data Input - Option 5'!CF106","v":0},{"$f":"'Data Input - Option 5'!CG106","v":0},{"$f":"'Data Input - Option 5'!CH106","v":0},{"$f":"'Data Input - Option 5'!CI106","v":0},{"$f":"'Data Input - Option 5'!CJ106","v":0},{"$f":"'Data Input - Option 5'!CK106","v":0},{"$f":"'Data Input - Option 5'!CL106","v":0},{"$f":"'Data Input - Option 5'!CM106","v":0},{"$f":"'Data Input - Option 5'!CN106","v":0},{"$f":"'Data Input - Option 5'!CO106","v":0},{"$f":"'Data Input - Option 5'!CP106","v":0},{"$f":"'Data Input - Option 5'!CQ106","v":0},{"$f":"'Data Input - Option 5'!CR106","v":0},{"$f":"'Data Input - Option 5'!CS106","v":0},{"$f":"'Data Input - Option 5'!CT106","v":0},{"$f":"'Data Input - Option 5'!CU106","v":0},{"$f":"'Data Input - Option 5'!CV106","v":0},{"$f":"'Data Input - Option 5'!CW106","v":0},{"$f":"'Data Input - Option 5'!CX106","v":0},{"$f":"'Data Input - Option 5'!CY106","v":0},{"$f":"'Data Input - Option 5'!CZ106","v":0},{"$f":"'Data Input - Option 5'!DA106","v":0},{"$f":"'Data Input - Option 5'!DB106","v":0},{"$f":"'Data Input - Option 5'!DC106","v":0}]
[null,{"$f":"'Data Input - Option 5'!D107","v":0},"Tonnes pa",{"$f":"'Data Input - Option 5'!H107","v":0},{"$f":"'Data Input - Option 5'!I107","v":0},{"$f":"'Data Input - Option 5'!J107","v":0},{"$f":"'Data Input - Option 5'!K107","v":0},{"$f":"'Data Input - Option 5'!L107","v":0},{"$f":"'Data Input - Option 5'!M107","v":0},{"$f":"'Data Input - Option 5'!N107","v":0},{"$f":"'Data Input - Option 5'!O107","v":0},{"$f":"'Data Input - Option 5'!P107","v":0},{"$f":"'Data Input - Option 5'!Q107","v":0},{"$f":"'Data Input - Option 5'!R107","v":0},{"$f":"'Data Input - Option 5'!S107","v":0},{"$f":"'Data Input - Option 5'!T107","v":0},{"$f":"'Data Input - Option 5'!U107","v":0},{"$f":"'Data Input - Option 5'!V107","v":0},{"$f":"'Data Input - Option 5'!W107","v":0},{"$f":"'Data Input - Option 5'!X107","v":0},{"$f":"'Data Input - Option 5'!Y107","v":0},{"$f":"'Data Input - Option 5'!Z107","v":0},{"$f":"'Data Input - Option 5'!AA107","v":0},{"$f":"'Data Input - Option 5'!AB107","v":0},{"$f":"'Data Input - Option 5'!AC107","v":0},{"$f":"'Data Input - Option 5'!AD107","v":0},{"$f":"'Data Input - Option 5'!AE107","v":0},{"$f":"'Data Input - Option 5'!AF107","v":0},{"$f":"'Data Input - Option 5'!AG107","v":0},{"$f":"'Data Input - Option 5'!AH107","v":0},{"$f":"'Data Input - Option 5'!AI107","v":0},{"$f":"'Data Input - Option 5'!AJ107","v":0},{"$f":"'Data Input - Option 5'!AK107","v":0},{"$f":"'Data Input - Option 5'!AL107","v":0},{"$f":"'Data Input - Option 5'!AM107","v":0},{"$f":"'Data Input - Option 5'!AN107","v":0},{"$f":"'Data Input - Option 5'!AO107","v":0},{"$f":"'Data Input - Option 5'!AP107","v":0},{"$f":"'Data Input - Option 5'!AQ107","v":0},{"$f":"'Data Input - Option 5'!AR107","v":0},{"$f":"'Data Input - Option 5'!AS107","v":0},{"$f":"'Data Input - Option 5'!AT107","v":0},{"$f":"'Data Input - Option 5'!AU107","v":0},{"$f":"'Data Input - Option 5'!AV107","v":0},{"$f":"'Data Input - Option 5'!AW107","v":0},{"$f":"'Data Input - Option 5'!AX107","v":0},{"$f":"'Data Input - Option 5'!AY107","v":0},{"$f":"'Data Input - Option 5'!AZ107","v":0},{"$f":"'Data Input - Option 5'!BA107","v":0},{"$f":"'Data Input - Option 5'!BB107","v":0},{"$f":"'Data Input - Option 5'!BC107","v":0},{"$f":"'Data Input - Option 5'!BD107","v":0},{"$f":"'Data Input - Option 5'!BE107","v":0},{"$f":"'Data Input - Option 5'!BF107","v":0},{"$f":"'Data Input - Option 5'!BG107","v":0},{"$f":"'Data Input - Option 5'!BH107","v":0},{"$f":"'Data Input - Option 5'!BI107","v":0},{"$f":"'Data Input - Option 5'!BJ107","v":0},{"$f":"'Data Input - Option 5'!BK107","v":0},{"$f":"'Data Input - Option 5'!BL107","v":0},{"$f":"'Data Input - Option 5'!BM107","v":0},{"$f":"'Data Input - Option 5'!BN107","v":0},{"$f":"'Data Input - Option 5'!BO107","v":0},{"$f":"'Data Input - Option 5'!BP107","v":0},{"$f":"'Data Input - Option 5'!BQ107","v":0},{"$f":"'Data Input - Option 5'!BR107","v":0},{"$f":"'Data Input - Option 5'!BS107","v":0},{"$f":"'Data Input - Option 5'!BT107","v":0},{"$f":"'Data Input - Option 5'!BU107","v":0},{"$f":"'Data Input - Option 5'!BV107","v":0},{"$f":"'Data Input - Option 5'!BW107","v":0},{"$f":"'Data Input - Option 5'!BX107","v":0},{"$f":"'Data Input - Option 5'!BY107","v":0},{"$f":"'Data Input - Option 5'!BZ107","v":0},{"$f":"'Data Input - Option 5'!CA107","v":0},{"$f":"'Data Input - Option 5'!CB107","v":0},{"$f":"'Data Input - Option 5'!CC107","v":0},{"$f":"'Data Input - Option 5'!CD107","v":0},{"$f":"'Data Input - Option 5'!CE107","v":0},{"$f":"'Data Input - Option 5'!CF107","v":0},{"$f":"'Data Input - Option 5'!CG107","v":0},{"$f":"'Data Input - Option 5'!CH107","v":0},{"$f":"'Data Input - Option 5'!CI107","v":0},{"$f":"'Data Input - Option 5'!CJ107","v":0},{"$f":"'Data Input - Option 5'!CK107","v":0},{"$f":"'Data Input - Option 5'!CL107","v":0},{"$f":"'Data Input - Option 5'!CM107","v":0},{"$f":"'Data Input - Option 5'!CN107","v":0},{"$f":"'Data Input - Option 5'!CO107","v":0},{"$f":"'Data Input - Option 5'!CP107","v":0},{"$f":"'Data Input - Option 5'!CQ107","v":0},{"$f":"'Data Input - Option 5'!CR107","v":0},{"$f":"'Data Input - Option 5'!CS107","v":0},{"$f":"'Data Input - Option 5'!CT107","v":0},{"$f":"'Data Input - Option 5'!CU107","v":0},{"$f":"'Data Input - Option 5'!CV107","v":0},{"$f":"'Data Input - Option 5'!CW107","v":0},{"$f":"'Data Input - Option 5'!CX107","v":0},{"$f":"'Data Input - Option 5'!CY107","v":0},{"$f":"'Data Input - Option 5'!CZ107","v":0},{"$f":"'Data Input - Option 5'!DA107","v":0},{"$f":"'Data Input - Option 5'!DB107","v":0},{"$f":"'Data Input - Option 5'!DC107","v":0}]
[null,{"$f":"'Data Input - Option 5'!D108","v":0},"Tonnes pa",{"$f":"'Data Input - Option 5'!H108","v":0},{"$f":"'Data Input - Option 5'!I108","v":0},{"$f":"'Data Input - Option 5'!J108","v":0},{"$f":"'Data Input - Option 5'!K108","v":0},{"$f":"'Data Input - Option 5'!L108","v":0},{"$f":"'Data Input - Option 5'!M108","v":0},{"$f":"'Data Input - Option 5'!N108","v":0},{"$f":"'Data Input - Option 5'!O108","v":0},{"$f":"'Data Input - Option 5'!P108","v":0},{"$f":"'Data Input - Option 5'!Q108","v":0},{"$f":"'Data Input - Option 5'!R108","v":0},{"$f":"'Data Input - Option 5'!S108","v":0},{"$f":"'Data Input - Option 5'!T108","v":0},{"$f":"'Data Input - Option 5'!U108","v":0},{"$f":"'Data Input - Option 5'!V108","v":0},{"$f":"'Data Input - Option 5'!W108","v":0},{"$f":"'Data Input - Option 5'!X108","v":0},{"$f":"'Data Input - Option 5'!Y108","v":0},{"$f":"'Data Input - Option 5'!Z108","v":0},{"$f":"'Data Input - Option 5'!AA108","v":0},{"$f":"'Data Input - Option 5'!AB108","v":0},{"$f":"'Data Input - Option 5'!AC108","v":0},{"$f":"'Data Input - Option 5'!AD108","v":0},{"$f":"'Data Input - Option 5'!AE108","v":0},{"$f":"'Data Input - Option 5'!AF108","v":0},{"$f":"'Data Input - Option 5'!AG108","v":0},{"$f":"'Data Input - Option 5'!AH108","v":0},{"$f":"'Data Input - Option 5'!AI108","v":0},{"$f":"'Data Input - Option 5'!AJ108","v":0},{"$f":"'Data Input - Option 5'!AK108","v":0},{"$f":"'Data Input - Option 5'!AL108","v":0},{"$f":"'Data Input - Option 5'!AM108","v":0},{"$f":"'Data Input - Option 5'!AN108","v":0},{"$f":"'Data Input - Option 5'!AO108","v":0},{"$f":"'Data Input - Option 5'!AP108","v":0},{"$f":"'Data Input - Option 5'!AQ108","v":0},{"$f":"'Data Input - Option 5'!AR108","v":0},{"$f":"'Data Input - Option 5'!AS108","v":0},{"$f":"'Data Input - Option 5'!AT108","v":0},{"$f":"'Data Input - Option 5'!AU108","v":0},{"$f":"'Data Input - Option 5'!AV108","v":0},{"$f":"'Data Input - Option 5'!AW108","v":0},{"$f":"'Data Input - Option 5'!AX108","v":0},{"$f":"'Data Input - Option 5'!AY108","v":0},{"$f":"'Data Input - Option 5'!AZ108","v":0},{"$f":"'Data Input - Option 5'!BA108","v":0},{"$f":"'Data Input - Option 5'!BB108","v":0},{"$f":"'Data Input - Option 5'!BC108","v":0},{"$f":"'Data Input - Option 5'!BD108","v":0},{"$f":"'Data Input - Option 5'!BE108","v":0},{"$f":"'Data Input - Option 5'!BF108","v":0},{"$f":"'Data Input - Option 5'!BG108","v":0},{"$f":"'Data Input - Option 5'!BH108","v":0},{"$f":"'Data Input - Option 5'!BI108","v":0},{"$f":"'Data Input - Option 5'!BJ108","v":0},{"$f":"'Data Input - Option 5'!BK108","v":0},{"$f":"'Data Input - Option 5'!BL108","v":0},{"$f":"'Data Input - Option 5'!BM108","v":0},{"$f":"'Data Input - Option 5'!BN108","v":0},{"$f":"'Data Input - Option 5'!BO108","v":0},{"$f":"'Data Input - Option 5'!BP108","v":0},{"$f":"'Data Input - Option 5'!BQ108","v":0},{"$f":"'Data Input - Option 5'!BR108","v":0},{"$f":"'Data Input - Option 5'!BS108","v":0},{"$f":"'Data Input - Option 5'!BT108","v":0},{"$f":"'Data Input - Option 5'!BU108","v":0},{"$f":"'Data Input - Option 5'!BV108","v":0},{"$f":"'Data Input - Option 5'!BW108","v":0},{"$f":"'Data Input - Option 5'!BX108","v":0},{"$f":"'Data Input - Option 5'!BY108","v":0},{"$f":"'Data Input - Option 5'!BZ108","v":0},{"$f":"'Data Input - Option 5'!CA108","v":0},{"$f":"'Data Input - Option 5'!CB108","v":0},{"$f":"'Data Input - Option 5'!CC108","v":0},{"$f":"'Data Input - Option 5'!CD108","v":0},{"$f":"'Data Input - Option 5'!CE108","v":0},{"$f":"'Data Input - Option 5'!CF108","v":0},{"$f":"'Data Input - Option 5'!CG108","v":0},{"$f":"'Data Input - Option 5'!CH108","v":0},{"$f":"'Data Input - Option 5'!CI108","v":0},{"$f":"'Data Input - Option 5'!CJ108","v":0},{"$f":"'Data Input - Option 5'!CK108","v":0},{"$f":"'Data Input - Option 5'!CL108","v":0},{"$f":"'Data Input - Option 5'!CM108","v":0},{"$f":"'Data Input - Option 5'!CN108","v":0},{"$f":"'Data Input - Option 5'!CO108","v":0},{"$f":"'Data Input - Option 5'!CP108","v":0},{"$f":"'Data Input - Option 5'!CQ108","v":0},{"$f":"'Data Input - Option 5'!CR108","v":0},{"$f":"'Data Input - Option 5'!CS108","v":0},{"$f":"'Data Input - Option 5'!CT108","v":0},{"$f":"'Data Input - Option 5'!CU108","v":0},{"$f":"'Data Input - Option 5'!CV108","v":0},{"$f":"'Data Input - Option 5'!CW108","v":0},{"$f":"'Data Input - Option 5'!CX108","v":0},{"$f":"'Data Input - Option 5'!CY108","v":0},{"$f":"'Data Input - Option 5'!CZ108","v":0},{"$f":"'Data Input - Option 5'!DA108","v":0},{"$f":"'Data Input - Option 5'!DB108","v":0},{"$f":"'Data Input - Option 5'!DC108","v":0}]
[null,{"$f":"'Data Input - Option 5'!D109","v":0},"Tonnes pa",{"$f":"'Data Input - Option 5'!H109","v":0},{"$f":"'Data Input - Option 5'!I109","v":0},{"$f":"'Data Input - Option 5'!J109","v":0},{"$f":"'Data Input - Option 5'!K109","v":0},{"$f":"'Data Input - Option 5'!L109","v":0},{"$f":"'Data Input - Option 5'!M109","v":0},{"$f":"'Data Input - Option 5'!N109","v":0},{"$f":"'Data Input - Option 5'!O109","v":0},{"$f":"'Data Input - Option 5'!P109","v":0},{"$f":"'Data Input - Option 5'!Q109","v":0},{"$f":"'Data Input - Option 5'!R109","v":0},{"$f":"'Data Input - Option 5'!S109","v":0},{"$f":"'Data Input - Option 5'!T109","v":0},{"$f":"'Data Input - Option 5'!U109","v":0},{"$f":"'Data Input - Option 5'!V109","v":0},{"$f":"'Data Input - Option 5'!W109","v":0},{"$f":"'Data Input - Option 5'!X109","v":0},{"$f":"'Data Input - Option 5'!Y109","v":0},{"$f":"'Data Input - Option 5'!Z109","v":0},{"$f":"'Data Input - Option 5'!AA109","v":0},{"$f":"'Data Input - Option 5'!AB109","v":0},{"$f":"'Data Input - Option 5'!AC109","v":0},{"$f":"'Data Input - Option 5'!AD109","v":0},{"$f":"'Data Input - Option 5'!AE109","v":0},{"$f":"'Data Input - Option 5'!AF109","v":0},{"$f":"'Data Input - Option 5'!AG109","v":0},{"$f":"'Data Input - Option 5'!AH109","v":0},{"$f":"'Data Input - Option 5'!AI109","v":0},{"$f":"'Data Input - Option 5'!AJ109","v":0},{"$f":"'Data Input - Option 5'!AK109","v":0},{"$f":"'Data Input - Option 5'!AL109","v":0},{"$f":"'Data Input - Option 5'!AM109","v":0},{"$f":"'Data Input - Option 5'!AN109","v":0},{"$f":"'Data Input - Option 5'!AO109","v":0},{"$f":"'Data Input - Option 5'!AP109","v":0},{"$f":"'Data Input - Option 5'!AQ109","v":0},{"$f":"'Data Input - Option 5'!AR109","v":0},{"$f":"'Data Input - Option 5'!AS109","v":0},{"$f":"'Data Input - Option 5'!AT109","v":0},{"$f":"'Data Input - Option 5'!AU109","v":0},{"$f":"'Data Input - Option 5'!AV109","v":0},{"$f":"'Data Input - Option 5'!AW109","v":0},{"$f":"'Data Input - Option 5'!AX109","v":0},{"$f":"'Data Input - Option 5'!AY109","v":0},{"$f":"'Data Input - Option 5'!AZ109","v":0},{"$f":"'Data Input - Option 5'!BA109","v":0},{"$f":"'Data Input - Option 5'!BB109","v":0},{"$f":"'Data Input - Option 5'!BC109","v":0},{"$f":"'Data Input - Option 5'!BD109","v":0},{"$f":"'Data Input - Option 5'!BE109","v":0},{"$f":"'Data Input - Option 5'!BF109","v":0},{"$f":"'Data Input - Option 5'!BG109","v":0},{"$f":"'Data Input - Option 5'!BH109","v":0},{"$f":"'Data Input - Option 5'!BI109","v":0},{"$f":"'Data Input - Option 5'!BJ109","v":0},{"$f":"'Data Input - Option 5'!BK109","v":0},{"$f":"'Data Input - Option 5'!BL109","v":0},{"$f":"'Data Input - Option 5'!BM109","v":0},{"$f":"'Data Input - Option 5'!BN109","v":0},{"$f":"'Data Input - Option 5'!BO109","v":0},{"$f":"'Data Input - Option 5'!BP109","v":0},{"$f":"'Data Input - Option 5'!BQ109","v":0},{"$f":"'Data Input - Option 5'!BR109","v":0},{"$f":"'Data Input - Option 5'!BS109","v":0},{"$f":"'Data Input - Option 5'!BT109","v":0},{"$f":"'Data Input - Option 5'!BU109","v":0},{"$f":"'Data Input - Option 5'!BV109","v":0},{"$f":"'Data Input - Option 5'!BW109","v":0},{"$f":"'Data Input - Option 5'!BX109","v":0},{"$f":"'Data Input - Option 5'!BY109","v":0},{"$f":"'Data Input - Option 5'!BZ109","v":0},{"$f":"'Data Input - Option 5'!CA109","v":0},{"$f":"'Data Input - Option 5'!CB109","v":0},{"$f":"'Data Input - Option 5'!CC109","v":0},{"$f":"'Data Input - Option 5'!CD109","v":0},{"$f":"'Data Input - Option 5'!CE109","v":0},{"$f":"'Data Input - Option 5'!CF109","v":0},{"$f":"'Data Input - Option 5'!CG109","v":0},{"$f":"'Data Input - Option 5'!CH109","v":0},{"$f":"'Data Input - Option 5'!CI109","v":0},{"$f":"'Data Input - Option 5'!CJ109","v":0},{"$f":"'Data Input - Option 5'!CK109","v":0},{"$f":"'Data Input - Option 5'!CL109","v":0},{"$f":"'Data Input - Option 5'!CM109","v":0},{"$f":"'Data Input - Option 5'!CN109","v":0},{"$f":"'Data Input - Option 5'!CO109","v":0},{"$f":"'Data Input - Option 5'!CP109","v":0},{"$f":"'Data Input - Option 5'!CQ109","v":0},{"$f":"'Data Input - Option 5'!CR109","v":0},{"$f":"'Data Input - Option 5'!CS109","v":0},{"$f":"'Data Input - Option 5'!CT109","v":0},{"$f":"'Data Input - Option 5'!CU109","v":0},{"$f":"'Data Input - Option 5'!CV109","v":0},{"$f":"'Data Input - Option 5'!CW109","v":0},{"$f":"'Data Input - Option 5'!CX109","v":0},{"$f":"'Data Input - Option 5'!CY109","v":0},{"$f":"'Data Input - Option 5'!CZ109","v":0},{"$f":"'Data Input - Option 5'!DA109","v":0},{"$f":"'Data Input - Option 5'!DB109","v":0},{"$f":"'Data Input - Option 5'!DC109","v":0}]
[null,{"$f":"'Data Input - Option 5'!D110","v":0},"Tonnes pa",{"$f":"'Data Input - Option 5'!H110","v":0},{"$f":"'Data Input - Option 5'!I110","v":0},{"$f":"'Data Input - Option 5'!J110","v":0},{"$f":"'Data Input - Option 5'!K110","v":0},{"$f":"'Data Input - Option 5'!L110","v":0},{"$f":"'Data Input - Option 5'!M110","v":0},{"$f":"'Data Input - Option 5'!N110","v":0},{"$f":"'Data Input - Option 5'!O110","v":0},{"$f":"'Data Input - Option 5'!P110","v":0},{"$f":"'Data Input - Option 5'!Q110","v":0},{"$f":"'Data Input - Option 5'!R110","v":0},{"$f":"'Data Input - Option 5'!S110","v":0},{"$f":"'Data Input - Option 5'!T110","v":0},{"$f":"'Data Input - Option 5'!U110","v":0},{"$f":"'Data Input - Option 5'!V110","v":0},{"$f":"'Data Input - Option 5'!W110","v":0},{"$f":"'Data Input - Option 5'!X110","v":0},{"$f":"'Data Input - Option 5'!Y110","v":0},{"$f":"'Data Input - Option 5'!Z110","v":0},{"$f":"'Data Input - Option 5'!AA110","v":0},{"$f":"'Data Input - Option 5'!AB110","v":0},{"$f":"'Data Input - Option 5'!AC110","v":0},{"$f":"'Data Input - Option 5'!AD110","v":0},{"$f":"'Data Input - Option 5'!AE110","v":0},{"$f":"'Data Input - Option 5'!AF110","v":0},{"$f":"'Data Input - Option 5'!AG110","v":0},{"$f":"'Data Input - Option 5'!AH110","v":0},{"$f":"'Data Input - Option 5'!AI110","v":0},{"$f":"'Data Input - Option 5'!AJ110","v":0},{"$f":"'Data Input - Option 5'!AK110","v":0},{"$f":"'Data Input - Option 5'!AL110","v":0},{"$f":"'Data Input - Option 5'!AM110","v":0},{"$f":"'Data Input - Option 5'!AN110","v":0},{"$f":"'Data Input - Option 5'!AO110","v":0},{"$f":"'Data Input - Option 5'!AP110","v":0},{"$f":"'Data Input - Option 5'!AQ110","v":0},{"$f":"'Data Input - Option 5'!AR110","v":0},{"$f":"'Data Input - Option 5'!AS110","v":0},{"$f":"'Data Input - Option 5'!AT110","v":0},{"$f":"'Data Input - Option 5'!AU110","v":0},{"$f":"'Data Input - Option 5'!AV110","v":0},{"$f":"'Data Input - Option 5'!AW110","v":0},{"$f":"'Data Input - Option 5'!AX110","v":0},{"$f":"'Data Input - Option 5'!AY110","v":0},{"$f":"'Data Input - Option 5'!AZ110","v":0},{"$f":"'Data Input - Option 5'!BA110","v":0},{"$f":"'Data Input - Option 5'!BB110","v":0},{"$f":"'Data Input - Option 5'!BC110","v":0},{"$f":"'Data Input - Option 5'!BD110","v":0},{"$f":"'Data Input - Option 5'!BE110","v":0},{"$f":"'Data Input - Option 5'!BF110","v":0},{"$f":"'Data Input - Option 5'!BG110","v":0},{"$f":"'Data Input - Option 5'!BH110","v":0},{"$f":"'Data Input - Option 5'!BI110","v":0},{"$f":"'Data Input - Option 5'!BJ110","v":0},{"$f":"'Data Input - Option 5'!BK110","v":0},{"$f":"'Data Input - Option 5'!BL110","v":0},{"$f":"'Data Input - Option 5'!BM110","v":0},{"$f":"'Data Input - Option 5'!BN110","v":0},{"$f":"'Data Input - Option 5'!BO110","v":0},{"$f":"'Data Input - Option 5'!BP110","v":0},{"$f":"'Data Input - Option 5'!BQ110","v":0},{"$f":"'Data Input - Option 5'!BR110","v":0},{"$f":"'Data Input - Option 5'!BS110","v":0},{"$f":"'Data Input - Option 5'!BT110","v":0},{"$f":"'Data Input - Option 5'!BU110","v":0},{"$f":"'Data Input - Option 5'!BV110","v":0},{"$f":"'Data Input - Option 5'!BW110","v":0},{"$f":"'Data Input - Option 5'!BX110","v":0},{"$f":"'Data Input - Option 5'!BY110","v":0},{"$f":"'Data Input - Option 5'!BZ110","v":0},{"$f":"'Data Input - Option 5'!CA110","v":0},{"$f":"'Data Input - Option 5'!CB110","v":0},{"$f":"'Data Input - Option 5'!CC110","v":0},{"$f":"'Data Input - Option 5'!CD110","v":0},{"$f":"'Data Input - Option 5'!CE110","v":0},{"$f":"'Data Input - Option 5'!CF110","v":0},{"$f":"'Data Input - Option 5'!CG110","v":0},{"$f":"'Data Input - Option 5'!CH110","v":0},{"$f":"'Data Input - Option 5'!CI110","v":0},{"$f":"'Data Input - Option 5'!CJ110","v":0},{"$f":"'Data Input - Option 5'!CK110","v":0},{"$f":"'Data Input - Option 5'!CL110","v":0},{"$f":"'Data Input - Option 5'!CM110","v":0},{"$f":"'Data Input - Option 5'!CN110","v":0},{"$f":"'Data Input - Option 5'!CO110","v":0},{"$f":"'Data Input - Option 5'!CP110","v":0},{"$f":"'Data Input - Option 5'!CQ110","v":0},{"$f":"'Data Input - Option 5'!CR110","v":0},{"$f":"'Data Input - Option 5'!CS110","v":0},{"$f":"'Data Input - Option 5'!CT110","v":0},{"$f":"'Data Input - Option 5'!CU110","v":0},{"$f":"'Data Input - Option 5'!CV110","v":0},{"$f":"'Data Input - Option 5'!CW110","v":0},{"$f":"'Data Input - Option 5'!CX110","v":0},{"$f":"'Data Input - Option 5'!CY110","v":0},{"$f":"'Data Input - Option 5'!CZ110","v":0},{"$f":"'Data Input - Option 5'!DA110","v":0},{"$f":"'Data Input - Option 5'!DB110","v":0},{"$f":"'Data Input - Option 5'!DC110","v":0}]
[]
[null,"Air pollutant emissions- value"]
[null,{"$f":"B53","v":0},"£000's",{"$f":"IFERROR(IF(OR($C$67=FALSE,LEFT($B61,3)<>\"NOX\"),D53*INDEX('Damage costs'!$O$16:$O$43,MATCH($B61,'Damage costs'!$C$16:$C$43,0))/1000,D53*INDEX('Damage costs'!$S$16:$S$43,MATCH($B61,'Damage costs'!$C$16:$C$43,0))/1000),\"\")","v":""},{"$f":"IFERROR(IF(OR($C$67=FALSE,LEFT($B61,3)<>\"NOX\"),E53*INDEX('Damage costs'!$O$16:$O$43,MATCH($B61,'Damage costs'!$C$16:$C$43,0))/1000,E53*INDEX('Damage costs'!$S$16:$S$43,MATCH($B61,'Damage costs'!$C$16:$C$43,0))/1000),\"\")","v":""},{"$f":"IFERROR(IF(OR($C$67=FALSE,LEFT($B61,3)<>\"NOX\"),F53*INDEX('Damage costs'!$O$16:$O$43,MATCH($B61,'Damage costs'!$C$16:$C$43,0))/1000,F53*INDEX('Damage costs'!$S$16:$S$43,MATCH($B61,'Damage costs'!$C$16:$C$43,0))/1000),\"\")","v":""},{"$f":"IFERROR(IF(OR($C$67=FALSE,LEFT($B61,3)<>\"NOX\"),G53*INDEX('Damage costs'!$O$16:$O$43,MATCH($B61,'Damage costs'!$C$16:$C$43,0))/1000,G53*INDEX('Damage costs'!$S$16:$S$43,MATCH($B61,'Damage costs'!$C$16:$C$43,0))/1000),\"\")","v":""},{"$f":"IFERROR(IF(OR($C$67=FALSE,LEFT($B61,3)<>\"NOX\"),H53*INDEX('Damage costs'!$O$16:$O$43,MATCH($B61,'Damage costs'!$C$16:$C$43,0))/1000,H53*INDEX('Damage costs'!$S$16:$S$43,MATCH($B61,'Damage costs'!$C$16:$C$43,0))/1000),\"\")","v":""},{"$f":"IFERROR(IF(OR($C$67=FALSE,LEFT($B61,3)<>\"NOX\"),I53*INDEX('Damage costs'!$O$16:$O$43,MATCH($B61,'Damage costs'!$C$16:$C$43,0))/1000,I53*INDEX('Damage costs'!$S$16:$S$43,MATCH($B61,'Damage costs'!$C$16:$C$43,0))/1000),\"\")","v":""},{"$f":"IFERROR(IF(OR($C$67=FALSE,LEFT($B61,3)<>\"NOX\"),J53*INDEX('Damage costs'!$O$16:$O$43,MATCH($B61,'Damage costs'!$C$16:$C$43,0))/1000,J53*INDEX('Damage costs'!$S$16:$S$43,MATCH($B61,'Damage costs'!$C$16:$C$43,0))/1000),\"\")","v":""},{"$f":"IFERROR(IF(OR($C$67=FALSE,LEFT($B61,3)<>\"NOX\"),K53*INDEX('Damage costs'!$O$16:$O$43,MATCH($B61,'Damage costs'!$C$16:$C$43,0))/1000,K53*INDEX('Damage costs'!$S$16:$S$43,MATCH($B61,'Damage costs'!$C$16:$C$43,0))/1000),\"\")","v":""},{"$f":"IFERROR(IF(OR($C$67=FALSE,LEFT($B61,3)<>\"NOX\"),L53*INDEX('Damage costs'!$O$16:$O$43,MATCH($B61,'Damage costs'!$C$16:$C$43,0))/1000,L53*INDEX('Damage costs'!$S$16:$S$43,MATCH($B61,'Damage costs'!$C$16:$C$43,0))/1000),\"\")","v":""},{"$f":"IFERROR(IF(OR($C$67=FALSE,LEFT($B61,3)<>\"NOX\"),M53*INDEX('Damage costs'!$O$16:$O$43,MATCH($B61,'Damage costs'!$C$16:$C$43,0))/1000,M53*INDEX('Damage costs'!$S$16:$S$43,MATCH($B61,'Damage costs'!$C$16:$C$43,0))/1000),\"\")","v":""},{"$f":"IFERROR(IF(OR($C$67=FALSE,LEFT($B61,3)<>\"NOX\"),N53*INDEX('Damage costs'!$O$16:$O$43,MATCH($B61,'Damage costs'!$C$16:$C$43,0))/1000,N53*INDEX('Damage costs'!$S$16:$S$43,MATCH($B61,'Damage costs'!$C$16:$C$43,0))/1000),\"\")","v":""},{"$f":"IFERROR(IF(OR($C$67=FALSE,LEFT($B61,3)<>\"NOX\"),O53*INDEX('Damage costs'!$O$16:$O$43,MATCH($B61,'Damage costs'!$C$16:$C$43,0))/1000,O53*INDEX('Damage costs'!$S$16:$S$43,MATCH($B61,'Damage costs'!$C$16:$C$43,0))/1000),\"\")","v":""},{"$f":"IFERROR(IF(OR($C$67=FALSE,LEFT($B61,3)<>\"NOX\"),P53*INDEX('Damage costs'!$O$16:$O$43,MATCH($B61,'Damage costs'!$C$16:$C$43,0))/1000,P53*INDEX('Damage costs'!$S$16:$S$43,MATCH($B61,'Damage costs'!$C$16:$C$43,0))/1000),\"\")","v":""},{"$f":"IFERROR(IF(OR($C$67=FALSE,LEFT($B61,3)<>\"NOX\"),Q53*INDEX('Damage costs'!$O$16:$O$43,MATCH($B61,'Damage costs'!$C$16:$C$43,0))/1000,Q53*INDEX('Damage costs'!$S$16:$S$43,MATCH($B61,'Damage costs'!$C$16:$C$43,0))/1000),\"\")","v":""},{"$f":"IFERROR(IF(OR($C$67=FALSE,LEFT($B61,3)<>\"NOX\"),R53*INDEX('Damage costs'!$O$16:$O$43,MATCH($B61,'Damage costs'!$C$16:$C$43,0))/1000,R53*INDEX('Damage costs'!$S$16:$S$43,MATCH($B61,'Damage costs'!$C$16:$C$43,0))/1000),\"\")","v":""},{"$f":"IFERROR(IF(OR($C$67=FALSE,LEFT($B61,3)<>\"NOX\"),S53*INDEX('Damage costs'!$O$16:$O$43,MATCH($B61,'Damage costs'!$C$16:$C$43,0))/1000,S53*INDEX('Damage costs'!$S$16:$S$43,MATCH($B61,'Damage costs'!$C$16:$C$43,0))/1000),\"\")","v":""},{"$f":"IFERROR(IF(OR($C$67=FALSE,LEFT($B61,3)<>\"NOX\"),T53*INDEX('Damage costs'!$O$16:$O$43,MATCH($B61,'Damage costs'!$C$16:$C$43,0))/1000,T53*INDEX('Damage costs'!$S$16:$S$43,MATCH($B61,'Damage costs'!$C$16:$C$43,0))/1000),\"\")","v":""},{"$f":"IFERROR(IF(OR($C$67=FALSE,LEFT($B61,3)<>\"NOX\"),U53*INDEX('Damage costs'!$O$16:$O$43,MATCH($B61,'Damage costs'!$C$16:$C$43,0))/1000,U53*INDEX('Damage costs'!$S$16:$S$43,MATCH($B61,'Damage costs'!$C$16:$C$43,0))/1000),\"\")","v":""},{"$f":"IFERROR(IF(OR($C$67=FALSE,LEFT($B61,3)<>\"NOX\"),V53*INDEX('Damage costs'!$O$16:$O$43,MATCH($B61,'Damage costs'!$C$16:$C$43,0))/1000,V53*INDEX('Damage costs'!$S$16:$S$43,MATCH($B61,'Damage costs'!$C$16:$C$43,0))/1000),\"\")","v":""},{"$f":"IFERROR(IF(OR($C$67=FALSE,LEFT($B61,3)<>\"NOX\"),W53*INDEX('Damage costs'!$O$16:$O$43,MATCH($B61,'Damage costs'!$C$16:$C$43,0))/1000,W53*INDEX('Damage costs'!$S$16:$S$43,MATCH($B61,'Damage costs'!$C$16:$C$43,0))/1000),\"\")","v":""},{"$f":"IFERROR(IF(OR($C$67=FALSE,LEFT($B61,3)<>\"NOX\"),X53*INDEX('Damage costs'!$O$16:$O$43,MATCH($B61,'Damage costs'!$C$16:$C$43,0))/1000,X53*INDEX('Damage costs'!$S$16:$S$43,MATCH($B61,'Damage costs'!$C$16:$C$43,0))/1000),\"\")","v":""},{"$f":"IFERROR(IF(OR($C$67=FALSE,LEFT($B61,3)<>\"NOX\"),Y53*INDEX('Damage costs'!$O$16:$O$43,MATCH($B61,'Damage costs'!$C$16:$C$43,0))/1000,Y53*INDEX('Damage costs'!$S$16:$S$43,MATCH($B61,'Damage costs'!$C$16:$C$43,0))/1000),\"\")","v":""},{"$f":"IFERROR(IF(OR($C$67=FALSE,LEFT($B61,3)<>\"NOX\"),Z53*INDEX('Damage costs'!$O$16:$O$43,MATCH($B61,'Damage costs'!$C$16:$C$43,0))/1000,Z53*INDEX('Damage costs'!$S$16:$S$43,MATCH($B61,'Damage costs'!$C$16:$C$43,0))/1000),\"\")","v":""},{"$f":"IFERROR(IF(OR($C$67=FALSE,LEFT($B61,3)<>\"NOX\"),AA53*INDEX('Damage costs'!$O$16:$O$43,MATCH($B61,'Damage costs'!$C$16:$C$43,0))/1000,AA53*INDEX('Damage costs'!$S$16:$S$43,MATCH($B61,'Damage costs'!$C$16:$C$43,0))/1000),\"\")","v":""},{"$f":"IFERROR(IF(OR($C$67=FALSE,LEFT($B61,3)<>\"NOX\"),AB53*INDEX('Damage costs'!$O$16:$O$43,MATCH($B61,'Damage costs'!$C$16:$C$43,0))/1000,AB53*INDEX('Damage costs'!$S$16:$S$43,MATCH($B61,'Damage costs'!$C$16:$C$43,0))/1000),\"\")","v":""},{"$f":"IFERROR(IF(OR($C$67=FALSE,LEFT($B61,3)<>\"NOX\"),AC53*INDEX('Damage costs'!$O$16:$O$43,MATCH($B61,'Damage costs'!$C$16:$C$43,0))/1000,AC53*INDEX('Damage costs'!$S$16:$S$43,MATCH($B61,'Damage costs'!$C$16:$C$43,0))/1000),\"\")","v":""},{"$f":"IFERROR(IF(OR($C$67=FALSE,LEFT($B61,3)<>\"NOX\"),AD53*INDEX('Damage costs'!$O$16:$O$43,MATCH($B61,'Damage costs'!$C$16:$C$43,0))/1000,AD53*INDEX('Damage costs'!$S$16:$S$43,MATCH($B61,'Damage costs'!$C$16:$C$43,0))/1000),\"\")","v":""},{"$f":"IFERROR(IF(OR($C$67=FALSE,LEFT($B61,3)<>\"NOX\"),AE53*INDEX('Damage costs'!$O$16:$O$43,MATCH($B61,'Damage costs'!$C$16:$C$43,0))/1000,AE53*INDEX('Damage costs'!$S$16:$S$43,MATCH($B61,'Damage costs'!$C$16:$C$43,0))/1000),\"\")","v":""},{"$f":"IFERROR(IF(OR($C$67=FALSE,LEFT($B61,3)<>\"NOX\"),AF53*INDEX('Damage costs'!$O$16:$O$43,MATCH($B61,'Damage costs'!$C$16:$C$43,0))/1000,AF53*INDEX('Damage costs'!$S$16:$S$43,MATCH($B61,'Damage costs'!$C$16:$C$43,0))/1000),\"\")","v":""},{"$f":"IFERROR(IF(OR($C$67=FALSE,LEFT($B61,3)<>\"NOX\"),AG53*INDEX('Damage costs'!$O$16:$O$43,MATCH($B61,'Damage costs'!$C$16:$C$43,0))/1000,AG53*INDEX('Damage costs'!$S$16:$S$43,MATCH($B61,'Damage costs'!$C$16:$C$43,0))/1000),\"\")","v":""},{"$f":"IFERROR(IF(OR($C$67=FALSE,LEFT($B61,3)<>\"NOX\"),AH53*INDEX('Damage costs'!$O$16:$O$43,MATCH($B61,'Damage costs'!$C$16:$C$43,0))/1000,AH53*INDEX('Damage costs'!$S$16:$S$43,MATCH($B61,'Damage costs'!$C$16:$C$43,0))/1000),\"\")","v":""},{"$f":"IFERROR(IF(OR($C$67=FALSE,LEFT($B61,3)<>\"NOX\"),AI53*INDEX('Damage costs'!$O$16:$O$43,MATCH($B61,'Damage costs'!$C$16:$C$43,0))/1000,AI53*INDEX('Damage costs'!$S$16:$S$43,MATCH($B61,'Damage costs'!$C$16:$C$43,0))/1000),\"\")","v":""},{"$f":"IFERROR(IF(OR($C$67=FALSE,LEFT($B61,3)<>\"NOX\"),AJ53*INDEX('Damage costs'!$O$16:$O$43,MATCH($B61,'Damage costs'!$C$16:$C$43,0))/1000,AJ53*INDEX('Damage costs'!$S$16:$S$43,MATCH($B61,'Damage costs'!$C$16:$C$43,0))/1000),\"\")","v":""},{"$f":"IFERROR(IF(OR($C$67=FALSE,LEFT($B61,3)<>\"NOX\"),AK53*INDEX('Damage costs'!$O$16:$O$43,MATCH($B61,'Damage costs'!$C$16:$C$43,0))/1000,AK53*INDEX('Damage costs'!$S$16:$S$43,MATCH($B61,'Damage costs'!$C$16:$C$43,0))/1000),\"\")","v":""},{"$f":"IFERROR(IF(OR($C$67=FALSE,LEFT($B61,3)<>\"NOX\"),AL53*INDEX('Damage costs'!$O$16:$O$43,MATCH($B61,'Damage costs'!$C$16:$C$43,0))/1000,AL53*INDEX('Damage costs'!$S$16:$S$43,MATCH($B61,'Damage costs'!$C$16:$C$43,0))/1000),\"\")","v":""},{"$f":"IFERROR(IF(OR($C$67=FALSE,LEFT($B61,3)<>\"NOX\"),AM53*INDEX('Damage costs'!$O$16:$O$43,MATCH($B61,'Damage costs'!$C$16:$C$43,0))/1000,AM53*INDEX('Damage costs'!$S$16:$S$43,MATCH($B61,'Damage costs'!$C$16:$C$43,0))/1000),\"\")","v":""},{"$f":"IFERROR(IF(OR($C$67=FALSE,LEFT($B61,3)<>\"NOX\"),AN53*INDEX('Damage costs'!$O$16:$O$43,MATCH($B61,'Damage costs'!$C$16:$C$43,0))/1000,AN53*INDEX('Damage costs'!$S$16:$S$43,MATCH($B61,'Damage costs'!$C$16:$C$43,0))/1000),\"\")","v":""},{"$f":"IFERROR(IF(OR($C$67=FALSE,LEFT($B61,3)<>\"NOX\"),AO53*INDEX('Damage costs'!$O$16:$O$43,MATCH($B61,'Damage costs'!$C$16:$C$43,0))/1000,AO53*INDEX('Damage costs'!$S$16:$S$43,MATCH($B61,'Damage costs'!$C$16:$C$43,0))/1000),\"\")","v":""},{"$f":"IFERROR(IF(OR($C$67=FALSE,LEFT($B61,3)<>\"NOX\"),AP53*INDEX('Damage costs'!$O$16:$O$43,MATCH($B61,'Damage costs'!$C$16:$C$43,0))/1000,AP53*INDEX('Damage costs'!$S$16:$S$43,MATCH($B61,'Damage costs'!$C$16:$C$43,0))/1000),\"\")","v":""},{"$f":"IFERROR(IF(OR($C$67=FALSE,LEFT($B61,3)<>\"NOX\"),AQ53*INDEX('Damage costs'!$O$16:$O$43,MATCH($B61,'Damage costs'!$C$16:$C$43,0))/1000,AQ53*INDEX('Damage costs'!$S$16:$S$43,MATCH($B61,'Damage costs'!$C$16:$C$43,0))/1000),\"\")","v":""},{"$f":"IFERROR(IF(OR($C$67=FALSE,LEFT($B61,3)<>\"NOX\"),AR53*INDEX('Damage costs'!$O$16:$O$43,MATCH($B61,'Damage costs'!$C$16:$C$43,0))/1000,AR53*INDEX('Damage costs'!$S$16:$S$43,MATCH($B61,'Damage costs'!$C$16:$C$43,0))/1000),\"\")","v":""},{"$f":"IFERROR(IF(OR($C$67=FALSE,LEFT($B61,3)<>\"NOX\"),AS53*INDEX('Damage costs'!$O$16:$O$43,MATCH($B61,'Damage costs'!$C$16:$C$43,0))/1000,AS53*INDEX('Damage costs'!$S$16:$S$43,MATCH($B61,'Damage costs'!$C$16:$C$43,0))/1000),\"\")","v":""},{"$f":"IFERROR(IF(OR($C$67=FALSE,LEFT($B61,3)<>\"NOX\"),AT53*INDEX('Damage costs'!$O$16:$O$43,MATCH($B61,'Damage costs'!$C$16:$C$43,0))/1000,AT53*INDEX('Damage costs'!$S$16:$S$43,MATCH($B61,'Damage costs'!$C$16:$C$43,0))/1000),\"\")","v":""},{"$f":"IFERROR(IF(OR($C$67=FALSE,LEFT($B61,3)<>\"NOX\"),AU53*INDEX('Damage costs'!$O$16:$O$43,MATCH($B61,'Damage costs'!$C$16:$C$43,0))/1000,AU53*INDEX('Damage costs'!$S$16:$S$43,MATCH($B61,'Damage costs'!$C$16:$C$43,0))/1000),\"\")","v":""},{"$f":"IFERROR(IF(OR($C$67=FALSE,LEFT($B61,3)<>\"NOX\"),AV53*INDEX('Damage costs'!$O$16:$O$43,MATCH($B61,'Damage costs'!$C$16:$C$43,0))/1000,AV53*INDEX('Damage costs'!$S$16:$S$43,MATCH($B61,'Damage costs'!$C$16:$C$43,0))/1000),\"\")","v":""},{"$f":"IFERROR(IF(OR($C$67=FALSE,LEFT($B61,3)<>\"NOX\"),AW53*INDEX('Damage costs'!$O$16:$O$43,MATCH($B61,'Damage costs'!$C$16:$C$43,0))/1000,AW53*INDEX('Damage costs'!$S$16:$S$43,MATCH($B61,'Damage costs'!$C$16:$C$43,0))/1000),\"\")","v":""},{"$f":"IFERROR(IF(OR($C$67=FALSE,LEFT($B61,3)<>\"NOX\"),AX53*INDEX('Damage costs'!$O$16:$O$43,MATCH($B61,'Damage costs'!$C$16:$C$43,0))/1000,AX53*INDEX('Damage costs'!$S$16:$S$43,MATCH($B61,'Damage costs'!$C$16:$C$43,0))/1000),\"\")","v":""},{"$f":"IFERROR(IF(OR($C$67=FALSE,LEFT($B61,3)<>\"NOX\"),AY53*INDEX('Damage costs'!$O$16:$O$43,MATCH($B61,'Damage costs'!$C$16:$C$43,0))/1000,AY53*INDEX('Damage costs'!$S$16:$S$43,MATCH($B61,'Damage costs'!$C$16:$C$43,0))/1000),\"\")","v":""},{"$f":"IFERROR(IF(OR($C$67=FALSE,LEFT($B61,3)<>\"NOX\"),AZ53*INDEX('Damage costs'!$O$16:$O$43,MATCH($B61,'Damage costs'!$C$16:$C$43,0))/1000,AZ53*INDEX('Damage costs'!$S$16:$S$43,MATCH($B61,'Damage costs'!$C$16:$C$43,0))/1000),\"\")","v":""},{"$f":"IFERROR(IF(OR($C$67=FALSE,LEFT($B61,3)<>\"NOX\"),BA53*INDEX('Damage costs'!$O$16:$O$43,MATCH($B61,'Damage costs'!$C$16:$C$43,0))/1000,BA53*INDEX('Damage costs'!$S$16:$S$43,MATCH($B61,'Damage costs'!$C$16:$C$43,0))/1000),\"\")","v":""},{"$f":"IFERROR(IF(OR($C$67=FALSE,LEFT($B61,3)<>\"NOX\"),BB53*INDEX('Damage costs'!$O$16:$O$43,MATCH($B61,'Damage costs'!$C$16:$C$43,0))/1000,BB53*INDEX('Damage costs'!$S$16:$S$43,MATCH($B61,'Damage costs'!$C$16:$C$43,0))/1000),\"\")","v":""},{"$f":"IFERROR(IF(OR($C$67=FALSE,LEFT($B61,3)<>\"NOX\"),BC53*INDEX('Damage costs'!$O$16:$O$43,MATCH($B61,'Damage costs'!$C$16:$C$43,0))/1000,BC53*INDEX('Damage costs'!$S$16:$S$43,MATCH($B61,'Damage costs'!$C$16:$C$43,0))/1000),\"\")","v":""},{"$f":"IFERROR(IF(OR($C$67=FALSE,LEFT($B61,3)<>\"NOX\"),BD53*INDEX('Damage costs'!$O$16:$O$43,MATCH($B61,'Damage costs'!$C$16:$C$43,0))/1000,BD53*INDEX('Damage costs'!$S$16:$S$43,MATCH($B61,'Damage costs'!$C$16:$C$43,0))/1000),\"\")","v":""},{"$f":"IFERROR(IF(OR($C$67=FALSE,LEFT($B61,3)<>\"NOX\"),BE53*INDEX('Damage costs'!$O$16:$O$43,MATCH($B61,'Damage costs'!$C$16:$C$43,0))/1000,BE53*INDEX('Damage costs'!$S$16:$S$43,MATCH($B61,'Damage costs'!$C$16:$C$43,0))/1000),\"\")","v":""},{"$f":"IFERROR(IF(OR($C$67=FALSE,LEFT($B61,3)<>\"NOX\"),BF53*INDEX('Damage costs'!$O$16:$O$43,MATCH($B61,'Damage costs'!$C$16:$C$43,0))/1000,BF53*INDEX('Damage costs'!$S$16:$S$43,MATCH($B61,'Damage costs'!$C$16:$C$43,0))/1000),\"\")","v":""},{"$f":"IFERROR(IF(OR($C$67=FALSE,LEFT($B61,3)<>\"NOX\"),BG53*INDEX('Damage costs'!$O$16:$O$43,MATCH($B61,'Damage costs'!$C$16:$C$43,0))/1000,BG53*INDEX('Damage costs'!$S$16:$S$43,MATCH($B61,'Damage costs'!$C$16:$C$43,0))/1000),\"\")","v":""},{"$f":"IFERROR(IF(OR($C$67=FALSE,LEFT($B61,3)<>\"NOX\"),BH53*INDEX('Damage costs'!$O$16:$O$43,MATCH($B61,'Damage costs'!$C$16:$C$43,0))/1000,BH53*INDEX('Damage costs'!$S$16:$S$43,MATCH($B61,'Damage costs'!$C$16:$C$43,0))/1000),\"\")","v":""},{"$f":"IFERROR(IF(OR($C$67=FALSE,LEFT($B61,3)<>\"NOX\"),BI53*INDEX('Damage costs'!$O$16:$O$43,MATCH($B61,'Damage costs'!$C$16:$C$43,0))/1000,BI53*INDEX('Damage costs'!$S$16:$S$43,MATCH($B61,'Damage costs'!$C$16:$C$43,0))/1000),\"\")","v":""},{"$f":"IFERROR(IF(OR($C$67=FALSE,LEFT($B61,3)<>\"NOX\"),BJ53*INDEX('Damage costs'!$O$16:$O$43,MATCH($B61,'Damage costs'!$C$16:$C$43,0))/1000,BJ53*INDEX('Damage costs'!$S$16:$S$43,MATCH($B61,'Damage costs'!$C$16:$C$43,0))/1000),\"\")","v":""},{"$f":"IFERROR(IF(OR($C$67=FALSE,LEFT($B61,3)<>\"NOX\"),BK53*INDEX('Damage costs'!$O$16:$O$43,MATCH($B61,'Damage costs'!$C$16:$C$43,0))/1000,BK53*INDEX('Damage costs'!$S$16:$S$43,MATCH($B61,'Damage costs'!$C$16:$C$43,0))/1000),\"\")","v":""},{"$f":"IFERROR(IF(OR($C$67=FALSE,LEFT($B61,3)<>\"NOX\"),BL53*INDEX('Damage costs'!$O$16:$O$43,MATCH($B61,'Damage costs'!$C$16:$C$43,0))/1000,BL53*INDEX('Damage costs'!$S$16:$S$43,MATCH($B61,'Damage costs'!$C$16:$C$43,0))/1000),\"\")","v":""},{"$f":"IFERROR(IF(OR($C$67=FALSE,LEFT($B61,3)<>\"NOX\"),BM53*INDEX('Damage costs'!$O$16:$O$43,MATCH($B61,'Damage costs'!$C$16:$C$43,0))/1000,BM53*INDEX('Damage costs'!$S$16:$S$43,MATCH($B61,'Damage costs'!$C$16:$C$43,0))/1000),\"\")","v":""},{"$f":"IFERROR(IF(OR($C$67=FALSE,LEFT($B61,3)<>\"NOX\"),BN53*INDEX('Damage costs'!$O$16:$O$43,MATCH($B61,'Damage costs'!$C$16:$C$43,0))/1000,BN53*INDEX('Damage costs'!$S$16:$S$43,MATCH($B61,'Damage costs'!$C$16:$C$43,0))/1000),\"\")","v":""},{"$f":"IFERROR(IF(OR($C$67=FALSE,LEFT($B61,3)<>\"NOX\"),BO53*INDEX('Damage costs'!$O$16:$O$43,MATCH($B61,'Damage costs'!$C$16:$C$43,0))/1000,BO53*INDEX('Damage costs'!$S$16:$S$43,MATCH($B61,'Damage costs'!$C$16:$C$43,0))/1000),\"\")","v":""},{"$f":"IFERROR(IF(OR($C$67=FALSE,LEFT($B61,3)<>\"NOX\"),BP53*INDEX('Damage costs'!$O$16:$O$43,MATCH($B61,'Damage costs'!$C$16:$C$43,0))/1000,BP53*INDEX('Damage costs'!$S$16:$S$43,MATCH($B61,'Damage costs'!$C$16:$C$43,0))/1000),\"\")","v":""},{"$f":"IFERROR(IF(OR($C$67=FALSE,LEFT($B61,3)<>\"NOX\"),BQ53*INDEX('Damage costs'!$O$16:$O$43,MATCH($B61,'Damage costs'!$C$16:$C$43,0))/1000,BQ53*INDEX('Damage costs'!$S$16:$S$43,MATCH($B61,'Damage costs'!$C$16:$C$43,0))/1000),\"\")","v":""},{"$f":"IFERROR(IF(OR($C$67=FALSE,LEFT($B61,3)<>\"NOX\"),BR53*INDEX('Damage costs'!$O$16:$O$43,MATCH($B61,'Damage costs'!$C$16:$C$43,0))/1000,BR53*INDEX('Damage costs'!$S$16:$S$43,MATCH($B61,'Damage costs'!$C$16:$C$43,0))/1000),\"\")","v":""},{"$f":"IFERROR(IF(OR($C$67=FALSE,LEFT($B61,3)<>\"NOX\"),BS53*INDEX('Damage costs'!$O$16:$O$43,MATCH($B61,'Damage costs'!$C$16:$C$43,0))/1000,BS53*INDEX('Damage costs'!$S$16:$S$43,MATCH($B61,'Damage costs'!$C$16:$C$43,0))/1000),\"\")","v":""},{"$f":"IFERROR(IF(OR($C$67=FALSE,LEFT($B61,3)<>\"NOX\"),BT53*INDEX('Damage costs'!$O$16:$O$43,MATCH($B61,'Damage costs'!$C$16:$C$43,0))/1000,BT53*INDEX('Damage costs'!$S$16:$S$43,MATCH($B61,'Damage costs'!$C$16:$C$43,0))/1000),\"\")","v":""},{"$f":"IFERROR(IF(OR($C$67=FALSE,LEFT($B61,3)<>\"NOX\"),BU53*INDEX('Damage costs'!$O$16:$O$43,MATCH($B61,'Damage costs'!$C$16:$C$43,0))/1000,BU53*INDEX('Damage costs'!$S$16:$S$43,MATCH($B61,'Damage costs'!$C$16:$C$43,0))/1000),\"\")","v":""},{"$f":"IFERROR(IF(OR($C$67=FALSE,LEFT($B61,3)<>\"NOX\"),BV53*INDEX('Damage costs'!$O$16:$O$43,MATCH($B61,'Damage costs'!$C$16:$C$43,0))/1000,BV53*INDEX('Damage costs'!$S$16:$S$43,MATCH($B61,'Damage costs'!$C$16:$C$43,0))/1000),\"\")","v":""},{"$f":"IFERROR(IF(OR($C$67=FALSE,LEFT($B61,3)<>\"NOX\"),BW53*INDEX('Damage costs'!$O$16:$O$43,MATCH($B61,'Damage costs'!$C$16:$C$43,0))/1000,BW53*INDEX('Damage costs'!$S$16:$S$43,MATCH($B61,'Damage costs'!$C$16:$C$43,0))/1000),\"\")","v":""},{"$f":"IFERROR(IF(OR($C$67=FALSE,LEFT($B61,3)<>\"NOX\"),BX53*INDEX('Damage costs'!$O$16:$O$43,MATCH($B61,'Damage costs'!$C$16:$C$43,0))/1000,BX53*INDEX('Damage costs'!$S$16:$S$43,MATCH($B61,'Damage costs'!$C$16:$C$43,0))/1000),\"\")","v":""},{"$f":"IFERROR(IF(OR($C$67=FALSE,LEFT($B61,3)<>\"NOX\"),BY53*INDEX('Damage costs'!$O$16:$O$43,MATCH($B61,'Damage costs'!$C$16:$C$43,0))/1000,BY53*INDEX('Damage costs'!$S$16:$S$43,MATCH($B61,'Damage costs'!$C$16:$C$43,0))/1000),\"\")","v":""},{"$f":"IFERROR(IF(OR($C$67=FALSE,LEFT($B61,3)<>\"NOX\"),BZ53*INDEX('Damage costs'!$O$16:$O$43,MATCH($B61,'Damage costs'!$C$16:$C$43,0))/1000,BZ53*INDEX('Damage costs'!$S$16:$S$43,MATCH($B61,'Damage costs'!$C$16:$C$43,0))/1000),\"\")","v":""},{"$f":"IFERROR(IF(OR($C$67=FALSE,LEFT($B61,3)<>\"NOX\"),CA53*INDEX('Damage costs'!$O$16:$O$43,MATCH($B61,'Damage costs'!$C$16:$C$43,0))/1000,CA53*INDEX('Damage costs'!$S$16:$S$43,MATCH($B61,'Damage costs'!$C$16:$C$43,0))/1000),\"\")","v":""},{"$f":"IFERROR(IF(OR($C$67=FALSE,LEFT($B61,3)<>\"NOX\"),CB53*INDEX('Damage costs'!$O$16:$O$43,MATCH($B61,'Damage costs'!$C$16:$C$43,0))/1000,CB53*INDEX('Damage costs'!$S$16:$S$43,MATCH($B61,'Damage costs'!$C$16:$C$43,0))/1000),\"\")","v":""},{"$f":"IFERROR(IF(OR($C$67=FALSE,LEFT($B61,3)<>\"NOX\"),CC53*INDEX('Damage costs'!$O$16:$O$43,MATCH($B61,'Damage costs'!$C$16:$C$43,0))/1000,CC53*INDEX('Damage costs'!$S$16:$S$43,MATCH($B61,'Damage costs'!$C$16:$C$43,0))/1000),\"\")","v":""},{"$f":"IFERROR(IF(OR($C$67=FALSE,LEFT($B61,3)<>\"NOX\"),CD53*INDEX('Damage costs'!$O$16:$O$43,MATCH($B61,'Damage costs'!$C$16:$C$43,0))/1000,CD53*INDEX('Damage costs'!$S$16:$S$43,MATCH($B61,'Damage costs'!$C$16:$C$43,0))/1000),\"\")","v":""},{"$f":"IFERROR(IF(OR($C$67=FALSE,LEFT($B61,3)<>\"NOX\"),CE53*INDEX('Damage costs'!$O$16:$O$43,MATCH($B61,'Damage costs'!$C$16:$C$43,0))/1000,CE53*INDEX('Damage costs'!$S$16:$S$43,MATCH($B61,'Damage costs'!$C$16:$C$43,0))/1000),\"\")","v":""},{"$f":"IFERROR(IF(OR($C$67=FALSE,LEFT($B61,3)<>\"NOX\"),CF53*INDEX('Damage costs'!$O$16:$O$43,MATCH($B61,'Damage costs'!$C$16:$C$43,0))/1000,CF53*INDEX('Damage costs'!$S$16:$S$43,MATCH($B61,'Damage costs'!$C$16:$C$43,0))/1000),\"\")","v":""},{"$f":"IFERROR(IF(OR($C$67=FALSE,LEFT($B61,3)<>\"NOX\"),CG53*INDEX('Damage costs'!$O$16:$O$43,MATCH($B61,'Damage costs'!$C$16:$C$43,0))/1000,CG53*INDEX('Damage costs'!$S$16:$S$43,MATCH($B61,'Damage costs'!$C$16:$C$43,0))/1000),\"\")","v":""},{"$f":"IFERROR(IF(OR($C$67=FALSE,LEFT($B61,3)<>\"NOX\"),CH53*INDEX('Damage costs'!$O$16:$O$43,MATCH($B61,'Damage costs'!$C$16:$C$43,0))/1000,CH53*INDEX('Damage costs'!$S$16:$S$43,MATCH($B61,'Damage costs'!$C$16:$C$43,0))/1000),\"\")","v":""},{"$f":"IFERROR(IF(OR($C$67=FALSE,LEFT($B61,3)<>\"NOX\"),CI53*INDEX('Damage costs'!$O$16:$O$43,MATCH($B61,'Damage costs'!$C$16:$C$43,0))/1000,CI53*INDEX('Damage costs'!$S$16:$S$43,MATCH($B61,'Damage costs'!$C$16:$C$43,0))/1000),\"\")","v":""},{"$f":"IFERROR(IF(OR($C$67=FALSE,LEFT($B61,3)<>\"NOX\"),CJ53*INDEX('Damage costs'!$O$16:$O$43,MATCH($B61,'Damage costs'!$C$16:$C$43,0))/1000,CJ53*INDEX('Damage costs'!$S$16:$S$43,MATCH($B61,'Damage costs'!$C$16:$C$43,0))/1000),\"\")","v":""},{"$f":"IFERROR(IF(OR($C$67=FALSE,LEFT($B61,3)<>\"NOX\"),CK53*INDEX('Damage costs'!$O$16:$O$43,MATCH($B61,'Damage costs'!$C$16:$C$43,0))/1000,CK53*INDEX('Damage costs'!$S$16:$S$43,MATCH($B61,'Damage costs'!$C$16:$C$43,0))/1000),\"\")","v":""},{"$f":"IFERROR(IF(OR($C$67=FALSE,LEFT($B61,3)<>\"NOX\"),CL53*INDEX('Damage costs'!$O$16:$O$43,MATCH($B61,'Damage costs'!$C$16:$C$43,0))/1000,CL53*INDEX('Damage costs'!$S$16:$S$43,MATCH($B61,'Damage costs'!$C$16:$C$43,0))/1000),\"\")","v":""},{"$f":"IFERROR(IF(OR($C$67=FALSE,LEFT($B61,3)<>\"NOX\"),CM53*INDEX('Damage costs'!$O$16:$O$43,MATCH($B61,'Damage costs'!$C$16:$C$43,0))/1000,CM53*INDEX('Damage costs'!$S$16:$S$43,MATCH($B61,'Damage costs'!$C$16:$C$43,0))/1000),\"\")","v":""},{"$f":"IFERROR(IF(OR($C$67=FALSE,LEFT($B61,3)<>\"NOX\"),CN53*INDEX('Damage costs'!$O$16:$O$43,MATCH($B61,'Damage costs'!$C$16:$C$43,0))/1000,CN53*INDEX('Damage costs'!$S$16:$S$43,MATCH($B61,'Damage costs'!$C$16:$C$43,0))/1000),\"\")","v":""},{"$f":"IFERROR(IF(OR($C$67=FALSE,LEFT($B61,3)<>\"NOX\"),CO53*INDEX('Damage costs'!$O$16:$O$43,MATCH($B61,'Damage costs'!$C$16:$C$43,0))/1000,CO53*INDEX('Damage costs'!$S$16:$S$43,MATCH($B61,'Damage costs'!$C$16:$C$43,0))/1000),\"\")","v":""},{"$f":"IFERROR(IF(OR($C$67=FALSE,LEFT($B61,3)<>\"NOX\"),CP53*INDEX('Damage costs'!$O$16:$O$43,MATCH($B61,'Damage costs'!$C$16:$C$43,0))/1000,CP53*INDEX('Damage costs'!$S$16:$S$43,MATCH($B61,'Damage costs'!$C$16:$C$43,0))/1000),\"\")","v":""},{"$f":"IFERROR(IF(OR($C$67=FALSE,LEFT($B61,3)<>\"NOX\"),CQ53*INDEX('Damage costs'!$O$16:$O$43,MATCH($B61,'Damage costs'!$C$16:$C$43,0))/1000,CQ53*INDEX('Damage costs'!$S$16:$S$43,MATCH($B61,'Damage costs'!$C$16:$C$43,0))/1000),\"\")","v":""},{"$f":"IFERROR(IF(OR($C$67=FALSE,LEFT($B61,3)<>\"NOX\"),CR53*INDEX('Damage costs'!$O$16:$O$43,MATCH($B61,'Damage costs'!$C$16:$C$43,0))/1000,CR53*INDEX('Damage costs'!$S$16:$S$43,MATCH($B61,'Damage costs'!$C$16:$C$43,0))/1000),\"\")","v":""},{"$f":"IFERROR(IF(OR($C$67=FALSE,LEFT($B61,3)<>\"NOX\"),CS53*INDEX('Damage costs'!$O$16:$O$43,MATCH($B61,'Damage costs'!$C$16:$C$43,0))/1000,CS53*INDEX('Damage costs'!$S$16:$S$43,MATCH($B61,'Damage costs'!$C$16:$C$43,0))/1000),\"\")","v":""},{"$f":"IFERROR(IF(OR($C$67=FALSE,LEFT($B61,3)<>\"NOX\"),CT53*INDEX('Damage costs'!$O$16:$O$43,MATCH($B61,'Damage costs'!$C$16:$C$43,0))/1000,CT53*INDEX('Damage costs'!$S$16:$S$43,MATCH($B61,'Damage costs'!$C$16:$C$43,0))/1000),\"\")","v":""},{"$f":"IFERROR(IF(OR($C$67=FALSE,LEFT($B61,3)<>\"NOX\"),CU53*INDEX('Damage costs'!$O$16:$O$43,MATCH($B61,'Damage costs'!$C$16:$C$43,0))/1000,CU53*INDEX('Damage costs'!$S$16:$S$43,MATCH($B61,'Damage costs'!$C$16:$C$43,0))/1000),\"\")","v":""},{"$f":"IFERROR(IF(OR($C$67=FALSE,LEFT($B61,3)<>\"NOX\"),CV53*INDEX('Damage costs'!$O$16:$O$43,MATCH($B61,'Damage costs'!$C$16:$C$43,0))/1000,CV53*INDEX('Damage costs'!$S$16:$S$43,MATCH($B61,'Damage costs'!$C$16:$C$43,0))/1000),\"\")","v":""},{"$f":"IFERROR(IF(OR($C$67=FALSE,LEFT($B61,3)<>\"NOX\"),CW53*INDEX('Damage costs'!$O$16:$O$43,MATCH($B61,'Damage costs'!$C$16:$C$43,0))/1000,CW53*INDEX('Damage costs'!$S$16:$S$43,MATCH($B61,'Damage costs'!$C$16:$C$43,0))/1000),\"\")","v":""},{"$f":"IFERROR(IF(OR($C$67=FALSE,LEFT($B61,3)<>\"NOX\"),CX53*INDEX('Damage costs'!$O$16:$O$43,MATCH($B61,'Damage costs'!$C$16:$C$43,0))/1000,CX53*INDEX('Damage costs'!$S$16:$S$43,MATCH($B61,'Damage costs'!$C$16:$C$43,0))/1000),\"\")","v":""},{"$f":"IFERROR(IF(OR($C$67=FALSE,LEFT($B61,3)<>\"NOX\"),CY53*INDEX('Damage costs'!$O$16:$O$43,MATCH($B61,'Damage costs'!$C$16:$C$43,0))/1000,CY53*INDEX('Damage costs'!$S$16:$S$43,MATCH($B61,'Damage costs'!$C$16:$C$43,0))/1000),\"\")","v":""}]
[null,0,"£000's",{"$f":"IFERROR(IF(OR($C$67=FALSE,LEFT($B62,3)<>\"NOX\"),D54*INDEX('Damage costs'!$O$16:$O$43,MATCH($B62,'Damage costs'!$C$16:$C$43,0))/1000,D54*INDEX('Damage costs'!$S$16:$S$43,MATCH($B62,'Damage costs'!$C$16:$C$43,0))/1000),\"\")","v":""},{"$f":"IFERROR(IF(OR($C$67=FALSE,LEFT($B62,3)<>\"NOX\"),E54*INDEX('Damage costs'!$O$16:$O$43,MATCH($B62,'Damage costs'!$C$16:$C$43,0))/1000,E54*INDEX('Damage costs'!$S$16:$S$43,MATCH($B62,'Damage costs'!$C$16:$C$43,0))/1000),\"\")","v":""},{"$f":"IFERROR(IF(OR($C$67=FALSE,LEFT($B62,3)<>\"NOX\"),F54*INDEX('Damage costs'!$O$16:$O$43,MATCH($B62,'Damage costs'!$C$16:$C$43,0))/1000,F54*INDEX('Damage costs'!$S$16:$S$43,MATCH($B62,'Damage costs'!$C$16:$C$43,0))/1000),\"\")","v":""},{"$f":"IFERROR(IF(OR($C$67=FALSE,LEFT($B62,3)<>\"NOX\"),G54*INDEX('Damage costs'!$O$16:$O$43,MATCH($B62,'Damage costs'!$C$16:$C$43,0))/1000,G54*INDEX('Damage costs'!$S$16:$S$43,MATCH($B62,'Damage costs'!$C$16:$C$43,0))/1000),\"\")","v":""},{"$f":"IFERROR(IF(OR($C$67=FALSE,LEFT($B62,3)<>\"NOX\"),H54*INDEX('Damage costs'!$O$16:$O$43,MATCH($B62,'Damage costs'!$C$16:$C$43,0))/1000,H54*INDEX('Damage costs'!$S$16:$S$43,MATCH($B62,'Damage costs'!$C$16:$C$43,0))/1000),\"\")","v":""},{"$f":"IFERROR(IF(OR($C$67=FALSE,LEFT($B62,3)<>\"NOX\"),I54*INDEX('Damage costs'!$O$16:$O$43,MATCH($B62,'Damage costs'!$C$16:$C$43,0))/1000,I54*INDEX('Damage costs'!$S$16:$S$43,MATCH($B62,'Damage costs'!$C$16:$C$43,0))/1000),\"\")","v":""},{"$f":"IFERROR(IF(OR($C$67=FALSE,LEFT($B62,3)<>\"NOX\"),J54*INDEX('Damage costs'!$O$16:$O$43,MATCH($B62,'Damage costs'!$C$16:$C$43,0))/1000,J54*INDEX('Damage costs'!$S$16:$S$43,MATCH($B62,'Damage costs'!$C$16:$C$43,0))/1000),\"\")","v":""},{"$f":"IFERROR(IF(OR($C$67=FALSE,LEFT($B62,3)<>\"NOX\"),K54*INDEX('Damage costs'!$O$16:$O$43,MATCH($B62,'Damage costs'!$C$16:$C$43,0))/1000,K54*INDEX('Damage costs'!$S$16:$S$43,MATCH($B62,'Damage costs'!$C$16:$C$43,0))/1000),\"\")","v":""},{"$f":"IFERROR(IF(OR($C$67=FALSE,LEFT($B62,3)<>\"NOX\"),L54*INDEX('Damage costs'!$O$16:$O$43,MATCH($B62,'Damage costs'!$C$16:$C$43,0))/1000,L54*INDEX('Damage costs'!$S$16:$S$43,MATCH($B62,'Damage costs'!$C$16:$C$43,0))/1000),\"\")","v":""},{"$f":"IFERROR(IF(OR($C$67=FALSE,LEFT($B62,3)<>\"NOX\"),M54*INDEX('Damage costs'!$O$16:$O$43,MATCH($B62,'Damage costs'!$C$16:$C$43,0))/1000,M54*INDEX('Damage costs'!$S$16:$S$43,MATCH($B62,'Damage costs'!$C$16:$C$43,0))/1000),\"\")","v":""},{"$f":"IFERROR(IF(OR($C$67=FALSE,LEFT($B62,3)<>\"NOX\"),N54*INDEX('Damage costs'!$O$16:$O$43,MATCH($B62,'Damage costs'!$C$16:$C$43,0))/1000,N54*INDEX('Damage costs'!$S$16:$S$43,MATCH($B62,'Damage costs'!$C$16:$C$43,0))/1000),\"\")","v":""},{"$f":"IFERROR(IF(OR($C$67=FALSE,LEFT($B62,3)<>\"NOX\"),O54*INDEX('Damage costs'!$O$16:$O$43,MATCH($B62,'Damage costs'!$C$16:$C$43,0))/1000,O54*INDEX('Damage costs'!$S$16:$S$43,MATCH($B62,'Damage costs'!$C$16:$C$43,0))/1000),\"\")","v":""},{"$f":"IFERROR(IF(OR($C$67=FALSE,LEFT($B62,3)<>\"NOX\"),P54*INDEX('Damage costs'!$O$16:$O$43,MATCH($B62,'Damage costs'!$C$16:$C$43,0))/1000,P54*INDEX('Damage costs'!$S$16:$S$43,MATCH($B62,'Damage costs'!$C$16:$C$43,0))/1000),\"\")","v":""},{"$f":"IFERROR(IF(OR($C$67=FALSE,LEFT($B62,3)<>\"NOX\"),Q54*INDEX('Damage costs'!$O$16:$O$43,MATCH($B62,'Damage costs'!$C$16:$C$43,0))/1000,Q54*INDEX('Damage costs'!$S$16:$S$43,MATCH($B62,'Damage costs'!$C$16:$C$43,0))/1000),\"\")","v":""},{"$f":"IFERROR(IF(OR($C$67=FALSE,LEFT($B62,3)<>\"NOX\"),R54*INDEX('Damage costs'!$O$16:$O$43,MATCH($B62,'Damage costs'!$C$16:$C$43,0))/1000,R54*INDEX('Damage costs'!$S$16:$S$43,MATCH($B62,'Damage costs'!$C$16:$C$43,0))/1000),\"\")","v":""},{"$f":"IFERROR(IF(OR($C$67=FALSE,LEFT($B62,3)<>\"NOX\"),S54*INDEX('Damage costs'!$O$16:$O$43,MATCH($B62,'Damage costs'!$C$16:$C$43,0))/1000,S54*INDEX('Damage costs'!$S$16:$S$43,MATCH($B62,'Damage costs'!$C$16:$C$43,0))/1000),\"\")","v":""},{"$f":"IFERROR(IF(OR($C$67=FALSE,LEFT($B62,3)<>\"NOX\"),T54*INDEX('Damage costs'!$O$16:$O$43,MATCH($B62,'Damage costs'!$C$16:$C$43,0))/1000,T54*INDEX('Damage costs'!$S$16:$S$43,MATCH($B62,'Damage costs'!$C$16:$C$43,0))/1000),\"\")","v":""},{"$f":"IFERROR(IF(OR($C$67=FALSE,LEFT($B62,3)<>\"NOX\"),U54*INDEX('Damage costs'!$O$16:$O$43,MATCH($B62,'Damage costs'!$C$16:$C$43,0))/1000,U54*INDEX('Damage costs'!$S$16:$S$43,MATCH($B62,'Damage costs'!$C$16:$C$43,0))/1000),\"\")","v":""},{"$f":"IFERROR(IF(OR($C$67=FALSE,LEFT($B62,3)<>\"NOX\"),V54*INDEX('Damage costs'!$O$16:$O$43,MATCH($B62,'Damage costs'!$C$16:$C$43,0))/1000,V54*INDEX('Damage costs'!$S$16:$S$43,MATCH($B62,'Damage costs'!$C$16:$C$43,0))/1000),\"\")","v":""},{"$f":"IFERROR(IF(OR($C$67=FALSE,LEFT($B62,3)<>\"NOX\"),W54*INDEX('Damage costs'!$O$16:$O$43,MATCH($B62,'Damage costs'!$C$16:$C$43,0))/1000,W54*INDEX('Damage costs'!$S$16:$S$43,MATCH($B62,'Damage costs'!$C$16:$C$43,0))/1000),\"\")","v":""},{"$f":"IFERROR(IF(OR($C$67=FALSE,LEFT($B62,3)<>\"NOX\"),X54*INDEX('Damage costs'!$O$16:$O$43,MATCH($B62,'Damage costs'!$C$16:$C$43,0))/1000,X54*INDEX('Damage costs'!$S$16:$S$43,MATCH($B62,'Damage costs'!$C$16:$C$43,0))/1000),\"\")","v":""},{"$f":"IFERROR(IF(OR($C$67=FALSE,LEFT($B62,3)<>\"NOX\"),Y54*INDEX('Damage costs'!$O$16:$O$43,MATCH($B62,'Damage costs'!$C$16:$C$43,0))/1000,Y54*INDEX('Damage costs'!$S$16:$S$43,MATCH($B62,'Damage costs'!$C$16:$C$43,0))/1000),\"\")","v":""},{"$f":"IFERROR(IF(OR($C$67=FALSE,LEFT($B62,3)<>\"NOX\"),Z54*INDEX('Damage costs'!$O$16:$O$43,MATCH($B62,'Damage costs'!$C$16:$C$43,0))/1000,Z54*INDEX('Damage costs'!$S$16:$S$43,MATCH($B62,'Damage costs'!$C$16:$C$43,0))/1000),\"\")","v":""},{"$f":"IFERROR(IF(OR($C$67=FALSE,LEFT($B62,3)<>\"NOX\"),AA54*INDEX('Damage costs'!$O$16:$O$43,MATCH($B62,'Damage costs'!$C$16:$C$43,0))/1000,AA54*INDEX('Damage costs'!$S$16:$S$43,MATCH($B62,'Damage costs'!$C$16:$C$43,0))/1000),\"\")","v":""},{"$f":"IFERROR(IF(OR($C$67=FALSE,LEFT($B62,3)<>\"NOX\"),AB54*INDEX('Damage costs'!$O$16:$O$43,MATCH($B62,'Damage costs'!$C$16:$C$43,0))/1000,AB54*INDEX('Damage costs'!$S$16:$S$43,MATCH($B62,'Damage costs'!$C$16:$C$43,0))/1000),\"\")","v":""},{"$f":"IFERROR(IF(OR($C$67=FALSE,LEFT($B62,3)<>\"NOX\"),AC54*INDEX('Damage costs'!$O$16:$O$43,MATCH($B62,'Damage costs'!$C$16:$C$43,0))/1000,AC54*INDEX('Damage costs'!$S$16:$S$43,MATCH($B62,'Damage costs'!$C$16:$C$43,0))/1000),\"\")","v":""},{"$f":"IFERROR(IF(OR($C$67=FALSE,LEFT($B62,3)<>\"NOX\"),AD54*INDEX('Damage costs'!$O$16:$O$43,MATCH($B62,'Damage costs'!$C$16:$C$43,0))/1000,AD54*INDEX('Damage costs'!$S$16:$S$43,MATCH($B62,'Damage costs'!$C$16:$C$43,0))/1000),\"\")","v":""},{"$f":"IFERROR(IF(OR($C$67=FALSE,LEFT($B62,3)<>\"NOX\"),AE54*INDEX('Damage costs'!$O$16:$O$43,MATCH($B62,'Damage costs'!$C$16:$C$43,0))/1000,AE54*INDEX('Damage costs'!$S$16:$S$43,MATCH($B62,'Damage costs'!$C$16:$C$43,0))/1000),\"\")","v":""},{"$f":"IFERROR(IF(OR($C$67=FALSE,LEFT($B62,3)<>\"NOX\"),AF54*INDEX('Damage costs'!$O$16:$O$43,MATCH($B62,'Damage costs'!$C$16:$C$43,0))/1000,AF54*INDEX('Damage costs'!$S$16:$S$43,MATCH($B62,'Damage costs'!$C$16:$C$43,0))/1000),\"\")","v":""},{"$f":"IFERROR(IF(OR($C$67=FALSE,LEFT($B62,3)<>\"NOX\"),AG54*INDEX('Damage costs'!$O$16:$O$43,MATCH($B62,'Damage costs'!$C$16:$C$43,0))/1000,AG54*INDEX('Damage costs'!$S$16:$S$43,MATCH($B62,'Damage costs'!$C$16:$C$43,0))/1000),\"\")","v":""},{"$f":"IFERROR(IF(OR($C$67=FALSE,LEFT($B62,3)<>\"NOX\"),AH54*INDEX('Damage costs'!$O$16:$O$43,MATCH($B62,'Damage costs'!$C$16:$C$43,0))/1000,AH54*INDEX('Damage costs'!$S$16:$S$43,MATCH($B62,'Damage costs'!$C$16:$C$43,0))/1000),\"\")","v":""},{"$f":"IFERROR(IF(OR($C$67=FALSE,LEFT($B62,3)<>\"NOX\"),AI54*INDEX('Damage costs'!$O$16:$O$43,MATCH($B62,'Damage costs'!$C$16:$C$43,0))/1000,AI54*INDEX('Damage costs'!$S$16:$S$43,MATCH($B62,'Damage costs'!$C$16:$C$43,0))/1000),\"\")","v":""},{"$f":"IFERROR(IF(OR($C$67=FALSE,LEFT($B62,3)<>\"NOX\"),AJ54*INDEX('Damage costs'!$O$16:$O$43,MATCH($B62,'Damage costs'!$C$16:$C$43,0))/1000,AJ54*INDEX('Damage costs'!$S$16:$S$43,MATCH($B62,'Damage costs'!$C$16:$C$43,0))/1000),\"\")","v":""},{"$f":"IFERROR(IF(OR($C$67=FALSE,LEFT($B62,3)<>\"NOX\"),AK54*INDEX('Damage costs'!$O$16:$O$43,MATCH($B62,'Damage costs'!$C$16:$C$43,0))/1000,AK54*INDEX('Damage costs'!$S$16:$S$43,MATCH($B62,'Damage costs'!$C$16:$C$43,0))/1000),\"\")","v":""},{"$f":"IFERROR(IF(OR($C$67=FALSE,LEFT($B62,3)<>\"NOX\"),AL54*INDEX('Damage costs'!$O$16:$O$43,MATCH($B62,'Damage costs'!$C$16:$C$43,0))/1000,AL54*INDEX('Damage costs'!$S$16:$S$43,MATCH($B62,'Damage costs'!$C$16:$C$43,0))/1000),\"\")","v":""},{"$f":"IFERROR(IF(OR($C$67=FALSE,LEFT($B62,3)<>\"NOX\"),AM54*INDEX('Damage costs'!$O$16:$O$43,MATCH($B62,'Damage costs'!$C$16:$C$43,0))/1000,AM54*INDEX('Damage costs'!$S$16:$S$43,MATCH($B62,'Damage costs'!$C$16:$C$43,0))/1000),\"\")","v":""},{"$f":"IFERROR(IF(OR($C$67=FALSE,LEFT($B62,3)<>\"NOX\"),AN54*INDEX('Damage costs'!$O$16:$O$43,MATCH($B62,'Damage costs'!$C$16:$C$43,0))/1000,AN54*INDEX('Damage costs'!$S$16:$S$43,MATCH($B62,'Damage costs'!$C$16:$C$43,0))/1000),\"\")","v":""},{"$f":"IFERROR(IF(OR($C$67=FALSE,LEFT($B62,3)<>\"NOX\"),AO54*INDEX('Damage costs'!$O$16:$O$43,MATCH($B62,'Damage costs'!$C$16:$C$43,0))/1000,AO54*INDEX('Damage costs'!$S$16:$S$43,MATCH($B62,'Damage costs'!$C$16:$C$43,0))/1000),\"\")","v":""},{"$f":"IFERROR(IF(OR($C$67=FALSE,LEFT($B62,3)<>\"NOX\"),AP54*INDEX('Damage costs'!$O$16:$O$43,MATCH($B62,'Damage costs'!$C$16:$C$43,0))/1000,AP54*INDEX('Damage costs'!$S$16:$S$43,MATCH($B62,'Damage costs'!$C$16:$C$43,0))/1000),\"\")","v":""},{"$f":"IFERROR(IF(OR($C$67=FALSE,LEFT($B62,3)<>\"NOX\"),AQ54*INDEX('Damage costs'!$O$16:$O$43,MATCH($B62,'Damage costs'!$C$16:$C$43,0))/1000,AQ54*INDEX('Damage costs'!$S$16:$S$43,MATCH($B62,'Damage costs'!$C$16:$C$43,0))/1000),\"\")","v":""},{"$f":"IFERROR(IF(OR($C$67=FALSE,LEFT($B62,3)<>\"NOX\"),AR54*INDEX('Damage costs'!$O$16:$O$43,MATCH($B62,'Damage costs'!$C$16:$C$43,0))/1000,AR54*INDEX('Damage costs'!$S$16:$S$43,MATCH($B62,'Damage costs'!$C$16:$C$43,0))/1000),\"\")","v":""},{"$f":"IFERROR(IF(OR($C$67=FALSE,LEFT($B62,3)<>\"NOX\"),AS54*INDEX('Damage costs'!$O$16:$O$43,MATCH($B62,'Damage costs'!$C$16:$C$43,0))/1000,AS54*INDEX('Damage costs'!$S$16:$S$43,MATCH($B62,'Damage costs'!$C$16:$C$43,0))/1000),\"\")","v":""},{"$f":"IFERROR(IF(OR($C$67=FALSE,LEFT($B62,3)<>\"NOX\"),AT54*INDEX('Damage costs'!$O$16:$O$43,MATCH($B62,'Damage costs'!$C$16:$C$43,0))/1000,AT54*INDEX('Damage costs'!$S$16:$S$43,MATCH($B62,'Damage costs'!$C$16:$C$43,0))/1000),\"\")","v":""},{"$f":"IFERROR(IF(OR($C$67=FALSE,LEFT($B62,3)<>\"NOX\"),AU54*INDEX('Damage costs'!$O$16:$O$43,MATCH($B62,'Damage costs'!$C$16:$C$43,0))/1000,AU54*INDEX('Damage costs'!$S$16:$S$43,MATCH($B62,'Damage costs'!$C$16:$C$43,0))/1000),\"\")","v":""},{"$f":"IFERROR(IF(OR($C$67=FALSE,LEFT($B62,3)<>\"NOX\"),AV54*INDEX('Damage costs'!$O$16:$O$43,MATCH($B62,'Damage costs'!$C$16:$C$43,0))/1000,AV54*INDEX('Damage costs'!$S$16:$S$43,MATCH($B62,'Damage costs'!$C$16:$C$43,0))/1000),\"\")","v":""},{"$f":"IFERROR(IF(OR($C$67=FALSE,LEFT($B62,3)<>\"NOX\"),AW54*INDEX('Damage costs'!$O$16:$O$43,MATCH($B62,'Damage costs'!$C$16:$C$43,0))/1000,AW54*INDEX('Damage costs'!$S$16:$S$43,MATCH($B62,'Damage costs'!$C$16:$C$43,0))/1000),\"\")","v":""},{"$f":"IFERROR(IF(OR($C$67=FALSE,LEFT($B62,3)<>\"NOX\"),AX54*INDEX('Damage costs'!$O$16:$O$43,MATCH($B62,'Damage costs'!$C$16:$C$43,0))/1000,AX54*INDEX('Damage costs'!$S$16:$S$43,MATCH($B62,'Damage costs'!$C$16:$C$43,0))/1000),\"\")","v":""},{"$f":"IFERROR(IF(OR($C$67=FALSE,LEFT($B62,3)<>\"NOX\"),AY54*INDEX('Damage costs'!$O$16:$O$43,MATCH($B62,'Damage costs'!$C$16:$C$43,0))/1000,AY54*INDEX('Damage costs'!$S$16:$S$43,MATCH($B62,'Damage costs'!$C$16:$C$43,0))/1000),\"\")","v":""},{"$f":"IFERROR(IF(OR($C$67=FALSE,LEFT($B62,3)<>\"NOX\"),AZ54*INDEX('Damage costs'!$O$16:$O$43,MATCH($B62,'Damage costs'!$C$16:$C$43,0))/1000,AZ54*INDEX('Damage costs'!$S$16:$S$43,MATCH($B62,'Damage costs'!$C$16:$C$43,0))/1000),\"\")","v":""},{"$f":"IFERROR(IF(OR($C$67=FALSE,LEFT($B62,3)<>\"NOX\"),BA54*INDEX('Damage costs'!$O$16:$O$43,MATCH($B62,'Damage costs'!$C$16:$C$43,0))/1000,BA54*INDEX('Damage costs'!$S$16:$S$43,MATCH($B62,'Damage costs'!$C$16:$C$43,0))/1000),\"\")","v":""},{"$f":"IFERROR(IF(OR($C$67=FALSE,LEFT($B62,3)<>\"NOX\"),BB54*INDEX('Damage costs'!$O$16:$O$43,MATCH($B62,'Damage costs'!$C$16:$C$43,0))/1000,BB54*INDEX('Damage costs'!$S$16:$S$43,MATCH($B62,'Damage costs'!$C$16:$C$43,0))/1000),\"\")","v":""},{"$f":"IFERROR(IF(OR($C$67=FALSE,LEFT($B62,3)<>\"NOX\"),BC54*INDEX('Damage costs'!$O$16:$O$43,MATCH($B62,'Damage costs'!$C$16:$C$43,0))/1000,BC54*INDEX('Damage costs'!$S$16:$S$43,MATCH($B62,'Damage costs'!$C$16:$C$43,0))/1000),\"\")","v":""},{"$f":"IFERROR(IF(OR($C$67=FALSE,LEFT($B62,3)<>\"NOX\"),BD54*INDEX('Damage costs'!$O$16:$O$43,MATCH($B62,'Damage costs'!$C$16:$C$43,0))/1000,BD54*INDEX('Damage costs'!$S$16:$S$43,MATCH($B62,'Damage costs'!$C$16:$C$43,0))/1000),\"\")","v":""},{"$f":"IFERROR(IF(OR($C$67=FALSE,LEFT($B62,3)<>\"NOX\"),BE54*INDEX('Damage costs'!$O$16:$O$43,MATCH($B62,'Damage costs'!$C$16:$C$43,0))/1000,BE54*INDEX('Damage costs'!$S$16:$S$43,MATCH($B62,'Damage costs'!$C$16:$C$43,0))/1000),\"\")","v":""},{"$f":"IFERROR(IF(OR($C$67=FALSE,LEFT($B62,3)<>\"NOX\"),BF54*INDEX('Damage costs'!$O$16:$O$43,MATCH($B62,'Damage costs'!$C$16:$C$43,0))/1000,BF54*INDEX('Damage costs'!$S$16:$S$43,MATCH($B62,'Damage costs'!$C$16:$C$43,0))/1000),\"\")","v":""},{"$f":"IFERROR(IF(OR($C$67=FALSE,LEFT($B62,3)<>\"NOX\"),BG54*INDEX('Damage costs'!$O$16:$O$43,MATCH($B62,'Damage costs'!$C$16:$C$43,0))/1000,BG54*INDEX('Damage costs'!$S$16:$S$43,MATCH($B62,'Damage costs'!$C$16:$C$43,0))/1000),\"\")","v":""},{"$f":"IFERROR(IF(OR($C$67=FALSE,LEFT($B62,3)<>\"NOX\"),BH54*INDEX('Damage costs'!$O$16:$O$43,MATCH($B62,'Damage costs'!$C$16:$C$43,0))/1000,BH54*INDEX('Damage costs'!$S$16:$S$43,MATCH($B62,'Damage costs'!$C$16:$C$43,0))/1000),\"\")","v":""},{"$f":"IFERROR(IF(OR($C$67=FALSE,LEFT($B62,3)<>\"NOX\"),BI54*INDEX('Damage costs'!$O$16:$O$43,MATCH($B62,'Damage costs'!$C$16:$C$43,0))/1000,BI54*INDEX('Damage costs'!$S$16:$S$43,MATCH($B62,'Damage costs'!$C$16:$C$43,0))/1000),\"\")","v":""},{"$f":"IFERROR(IF(OR($C$67=FALSE,LEFT($B62,3)<>\"NOX\"),BJ54*INDEX('Damage costs'!$O$16:$O$43,MATCH($B62,'Damage costs'!$C$16:$C$43,0))/1000,BJ54*INDEX('Damage costs'!$S$16:$S$43,MATCH($B62,'Damage costs'!$C$16:$C$43,0))/1000),\"\")","v":""},{"$f":"IFERROR(IF(OR($C$67=FALSE,LEFT($B62,3)<>\"NOX\"),BK54*INDEX('Damage costs'!$O$16:$O$43,MATCH($B62,'Damage costs'!$C$16:$C$43,0))/1000,BK54*INDEX('Damage costs'!$S$16:$S$43,MATCH($B62,'Damage costs'!$C$16:$C$43,0))/1000),\"\")","v":""},{"$f":"IFERROR(IF(OR($C$67=FALSE,LEFT($B62,3)<>\"NOX\"),BL54*INDEX('Damage costs'!$O$16:$O$43,MATCH($B62,'Damage costs'!$C$16:$C$43,0))/1000,BL54*INDEX('Damage costs'!$S$16:$S$43,MATCH($B62,'Damage costs'!$C$16:$C$43,0))/1000),\"\")","v":""},{"$f":"IFERROR(IF(OR($C$67=FALSE,LEFT($B62,3)<>\"NOX\"),BM54*INDEX('Damage costs'!$O$16:$O$43,MATCH($B62,'Damage costs'!$C$16:$C$43,0))/1000,BM54*INDEX('Damage costs'!$S$16:$S$43,MATCH($B62,'Damage costs'!$C$16:$C$43,0))/1000),\"\")","v":""},{"$f":"IFERROR(IF(OR($C$67=FALSE,LEFT($B62,3)<>\"NOX\"),BN54*INDEX('Damage costs'!$O$16:$O$43,MATCH($B62,'Damage costs'!$C$16:$C$43,0))/1000,BN54*INDEX('Damage costs'!$S$16:$S$43,MATCH($B62,'Damage costs'!$C$16:$C$43,0))/1000),\"\")","v":""},{"$f":"IFERROR(IF(OR($C$67=FALSE,LEFT($B62,3)<>\"NOX\"),BO54*INDEX('Damage costs'!$O$16:$O$43,MATCH($B62,'Damage costs'!$C$16:$C$43,0))/1000,BO54*INDEX('Damage costs'!$S$16:$S$43,MATCH($B62,'Damage costs'!$C$16:$C$43,0))/1000),\"\")","v":""},{"$f":"IFERROR(IF(OR($C$67=FALSE,LEFT($B62,3)<>\"NOX\"),BP54*INDEX('Damage costs'!$O$16:$O$43,MATCH($B62,'Damage costs'!$C$16:$C$43,0))/1000,BP54*INDEX('Damage costs'!$S$16:$S$43,MATCH($B62,'Damage costs'!$C$16:$C$43,0))/1000),\"\")","v":""},{"$f":"IFERROR(IF(OR($C$67=FALSE,LEFT($B62,3)<>\"NOX\"),BQ54*INDEX('Damage costs'!$O$16:$O$43,MATCH($B62,'Damage costs'!$C$16:$C$43,0))/1000,BQ54*INDEX('Damage costs'!$S$16:$S$43,MATCH($B62,'Damage costs'!$C$16:$C$43,0))/1000),\"\")","v":""},{"$f":"IFERROR(IF(OR($C$67=FALSE,LEFT($B62,3)<>\"NOX\"),BR54*INDEX('Damage costs'!$O$16:$O$43,MATCH($B62,'Damage costs'!$C$16:$C$43,0))/1000,BR54*INDEX('Damage costs'!$S$16:$S$43,MATCH($B62,'Damage costs'!$C$16:$C$43,0))/1000),\"\")","v":""},{"$f":"IFERROR(IF(OR($C$67=FALSE,LEFT($B62,3)<>\"NOX\"),BS54*INDEX('Damage costs'!$O$16:$O$43,MATCH($B62,'Damage costs'!$C$16:$C$43,0))/1000,BS54*INDEX('Damage costs'!$S$16:$S$43,MATCH($B62,'Damage costs'!$C$16:$C$43,0))/1000),\"\")","v":""},{"$f":"IFERROR(IF(OR($C$67=FALSE,LEFT($B62,3)<>\"NOX\"),BT54*INDEX('Damage costs'!$O$16:$O$43,MATCH($B62,'Damage costs'!$C$16:$C$43,0))/1000,BT54*INDEX('Damage costs'!$S$16:$S$43,MATCH($B62,'Damage costs'!$C$16:$C$43,0))/1000),\"\")","v":""},{"$f":"IFERROR(IF(OR($C$67=FALSE,LEFT($B62,3)<>\"NOX\"),BU54*INDEX('Damage costs'!$O$16:$O$43,MATCH($B62,'Damage costs'!$C$16:$C$43,0))/1000,BU54*INDEX('Damage costs'!$S$16:$S$43,MATCH($B62,'Damage costs'!$C$16:$C$43,0))/1000),\"\")","v":""},{"$f":"IFERROR(IF(OR($C$67=FALSE,LEFT($B62,3)<>\"NOX\"),BV54*INDEX('Damage costs'!$O$16:$O$43,MATCH($B62,'Damage costs'!$C$16:$C$43,0))/1000,BV54*INDEX('Damage costs'!$S$16:$S$43,MATCH($B62,'Damage costs'!$C$16:$C$43,0))/1000),\"\")","v":""},{"$f":"IFERROR(IF(OR($C$67=FALSE,LEFT($B62,3)<>\"NOX\"),BW54*INDEX('Damage costs'!$O$16:$O$43,MATCH($B62,'Damage costs'!$C$16:$C$43,0))/1000,BW54*INDEX('Damage costs'!$S$16:$S$43,MATCH($B62,'Damage costs'!$C$16:$C$43,0))/1000),\"\")","v":""},{"$f":"IFERROR(IF(OR($C$67=FALSE,LEFT($B62,3)<>\"NOX\"),BX54*INDEX('Damage costs'!$O$16:$O$43,MATCH($B62,'Damage costs'!$C$16:$C$43,0))/1000,BX54*INDEX('Damage costs'!$S$16:$S$43,MATCH($B62,'Damage costs'!$C$16:$C$43,0))/1000),\"\")","v":""},{"$f":"IFERROR(IF(OR($C$67=FALSE,LEFT($B62,3)<>\"NOX\"),BY54*INDEX('Damage costs'!$O$16:$O$43,MATCH($B62,'Damage costs'!$C$16:$C$43,0))/1000,BY54*INDEX('Damage costs'!$S$16:$S$43,MATCH($B62,'Damage costs'!$C$16:$C$43,0))/1000),\"\")","v":""},{"$f":"IFERROR(IF(OR($C$67=FALSE,LEFT($B62,3)<>\"NOX\"),BZ54*INDEX('Damage costs'!$O$16:$O$43,MATCH($B62,'Damage costs'!$C$16:$C$43,0))/1000,BZ54*INDEX('Damage costs'!$S$16:$S$43,MATCH($B62,'Damage costs'!$C$16:$C$43,0))/1000),\"\")","v":""},{"$f":"IFERROR(IF(OR($C$67=FALSE,LEFT($B62,3)<>\"NOX\"),CA54*INDEX('Damage costs'!$O$16:$O$43,MATCH($B62,'Damage costs'!$C$16:$C$43,0))/1000,CA54*INDEX('Damage costs'!$S$16:$S$43,MATCH($B62,'Damage costs'!$C$16:$C$43,0))/1000),\"\")","v":""},{"$f":"IFERROR(IF(OR($C$67=FALSE,LEFT($B62,3)<>\"NOX\"),CB54*INDEX('Damage costs'!$O$16:$O$43,MATCH($B62,'Damage costs'!$C$16:$C$43,0))/1000,CB54*INDEX('Damage costs'!$S$16:$S$43,MATCH($B62,'Damage costs'!$C$16:$C$43,0))/1000),\"\")","v":""},{"$f":"IFERROR(IF(OR($C$67=FALSE,LEFT($B62,3)<>\"NOX\"),CC54*INDEX('Damage costs'!$O$16:$O$43,MATCH($B62,'Damage costs'!$C$16:$C$43,0))/1000,CC54*INDEX('Damage costs'!$S$16:$S$43,MATCH($B62,'Damage costs'!$C$16:$C$43,0))/1000),\"\")","v":""},{"$f":"IFERROR(IF(OR($C$67=FALSE,LEFT($B62,3)<>\"NOX\"),CD54*INDEX('Damage costs'!$O$16:$O$43,MATCH($B62,'Damage costs'!$C$16:$C$43,0))/1000,CD54*INDEX('Damage costs'!$S$16:$S$43,MATCH($B62,'Damage costs'!$C$16:$C$43,0))/1000),\"\")","v":""},{"$f":"IFERROR(IF(OR($C$67=FALSE,LEFT($B62,3)<>\"NOX\"),CE54*INDEX('Damage costs'!$O$16:$O$43,MATCH($B62,'Damage costs'!$C$16:$C$43,0))/1000,CE54*INDEX('Damage costs'!$S$16:$S$43,MATCH($B62,'Damage costs'!$C$16:$C$43,0))/1000),\"\")","v":""},{"$f":"IFERROR(IF(OR($C$67=FALSE,LEFT($B62,3)<>\"NOX\"),CF54*INDEX('Damage costs'!$O$16:$O$43,MATCH($B62,'Damage costs'!$C$16:$C$43,0))/1000,CF54*INDEX('Damage costs'!$S$16:$S$43,MATCH($B62,'Damage costs'!$C$16:$C$43,0))/1000),\"\")","v":""},{"$f":"IFERROR(IF(OR($C$67=FALSE,LEFT($B62,3)<>\"NOX\"),CG54*INDEX('Damage costs'!$O$16:$O$43,MATCH($B62,'Damage costs'!$C$16:$C$43,0))/1000,CG54*INDEX('Damage costs'!$S$16:$S$43,MATCH($B62,'Damage costs'!$C$16:$C$43,0))/1000),\"\")","v":""},{"$f":"IFERROR(IF(OR($C$67=FALSE,LEFT($B62,3)<>\"NOX\"),CH54*INDEX('Damage costs'!$O$16:$O$43,MATCH($B62,'Damage costs'!$C$16:$C$43,0))/1000,CH54*INDEX('Damage costs'!$S$16:$S$43,MATCH($B62,'Damage costs'!$C$16:$C$43,0))/1000),\"\")","v":""},{"$f":"IFERROR(IF(OR($C$67=FALSE,LEFT($B62,3)<>\"NOX\"),CI54*INDEX('Damage costs'!$O$16:$O$43,MATCH($B62,'Damage costs'!$C$16:$C$43,0))/1000,CI54*INDEX('Damage costs'!$S$16:$S$43,MATCH($B62,'Damage costs'!$C$16:$C$43,0))/1000),\"\")","v":""},{"$f":"IFERROR(IF(OR($C$67=FALSE,LEFT($B62,3)<>\"NOX\"),CJ54*INDEX('Damage costs'!$O$16:$O$43,MATCH($B62,'Damage costs'!$C$16:$C$43,0))/1000,CJ54*INDEX('Damage costs'!$S$16:$S$43,MATCH($B62,'Damage costs'!$C$16:$C$43,0))/1000),\"\")","v":""},{"$f":"IFERROR(IF(OR($C$67=FALSE,LEFT($B62,3)<>\"NOX\"),CK54*INDEX('Damage costs'!$O$16:$O$43,MATCH($B62,'Damage costs'!$C$16:$C$43,0))/1000,CK54*INDEX('Damage costs'!$S$16:$S$43,MATCH($B62,'Damage costs'!$C$16:$C$43,0))/1000),\"\")","v":""},{"$f":"IFERROR(IF(OR($C$67=FALSE,LEFT($B62,3)<>\"NOX\"),CL54*INDEX('Damage costs'!$O$16:$O$43,MATCH($B62,'Damage costs'!$C$16:$C$43,0))/1000,CL54*INDEX('Damage costs'!$S$16:$S$43,MATCH($B62,'Damage costs'!$C$16:$C$43,0))/1000),\"\")","v":""},{"$f":"IFERROR(IF(OR($C$67=FALSE,LEFT($B62,3)<>\"NOX\"),CM54*INDEX('Damage costs'!$O$16:$O$43,MATCH($B62,'Damage costs'!$C$16:$C$43,0))/1000,CM54*INDEX('Damage costs'!$S$16:$S$43,MATCH($B62,'Damage costs'!$C$16:$C$43,0))/1000),\"\")","v":""},{"$f":"IFERROR(IF(OR($C$67=FALSE,LEFT($B62,3)<>\"NOX\"),CN54*INDEX('Damage costs'!$O$16:$O$43,MATCH($B62,'Damage costs'!$C$16:$C$43,0))/1000,CN54*INDEX('Damage costs'!$S$16:$S$43,MATCH($B62,'Damage costs'!$C$16:$C$43,0))/1000),\"\")","v":""},{"$f":"IFERROR(IF(OR($C$67=FALSE,LEFT($B62,3)<>\"NOX\"),CO54*INDEX('Damage costs'!$O$16:$O$43,MATCH($B62,'Damage costs'!$C$16:$C$43,0))/1000,CO54*INDEX('Damage costs'!$S$16:$S$43,MATCH($B62,'Damage costs'!$C$16:$C$43,0))/1000),\"\")","v":""},{"$f":"IFERROR(IF(OR($C$67=FALSE,LEFT($B62,3)<>\"NOX\"),CP54*INDEX('Damage costs'!$O$16:$O$43,MATCH($B62,'Damage costs'!$C$16:$C$43,0))/1000,CP54*INDEX('Damage costs'!$S$16:$S$43,MATCH($B62,'Damage costs'!$C$16:$C$43,0))/1000),\"\")","v":""},{"$f":"IFERROR(IF(OR($C$67=FALSE,LEFT($B62,3)<>\"NOX\"),CQ54*INDEX('Damage costs'!$O$16:$O$43,MATCH($B62,'Damage costs'!$C$16:$C$43,0))/1000,CQ54*INDEX('Damage costs'!$S$16:$S$43,MATCH($B62,'Damage costs'!$C$16:$C$43,0))/1000),\"\")","v":""},{"$f":"IFERROR(IF(OR($C$67=FALSE,LEFT($B62,3)<>\"NOX\"),CR54*INDEX('Damage costs'!$O$16:$O$43,MATCH($B62,'Damage costs'!$C$16:$C$43,0))/1000,CR54*INDEX('Damage costs'!$S$16:$S$43,MATCH($B62,'Damage costs'!$C$16:$C$43,0))/1000),\"\")","v":""},{"$f":"IFERROR(IF(OR($C$67=FALSE,LEFT($B62,3)<>\"NOX\"),CS54*INDEX('Damage costs'!$O$16:$O$43,MATCH($B62,'Damage costs'!$C$16:$C$43,0))/1000,CS54*INDEX('Damage costs'!$S$16:$S$43,MATCH($B62,'Damage costs'!$C$16:$C$43,0))/1000),\"\")","v":""},{"$f":"IFERROR(IF(OR($C$67=FALSE,LEFT($B62,3)<>\"NOX\"),CT54*INDEX('Damage costs'!$O$16:$O$43,MATCH($B62,'Damage costs'!$C$16:$C$43,0))/1000,CT54*INDEX('Damage costs'!$S$16:$S$43,MATCH($B62,'Damage costs'!$C$16:$C$43,0))/1000),\"\")","v":""},{"$f":"IFERROR(IF(OR($C$67=FALSE,LEFT($B62,3)<>\"NOX\"),CU54*INDEX('Damage costs'!$O$16:$O$43,MATCH($B62,'Damage costs'!$C$16:$C$43,0))/1000,CU54*INDEX('Damage costs'!$S$16:$S$43,MATCH($B62,'Damage costs'!$C$16:$C$43,0))/1000),\"\")","v":""},{"$f":"IFERROR(IF(OR($C$67=FALSE,LEFT($B62,3)<>\"NOX\"),CV54*INDEX('Damage costs'!$O$16:$O$43,MATCH($B62,'Damage costs'!$C$16:$C$43,0))/1000,CV54*INDEX('Damage costs'!$S$16:$S$43,MATCH($B62,'Damage costs'!$C$16:$C$43,0))/1000),\"\")","v":""},{"$f":"IFERROR(IF(OR($C$67=FALSE,LEFT($B62,3)<>\"NOX\"),CW54*INDEX('Damage costs'!$O$16:$O$43,MATCH($B62,'Damage costs'!$C$16:$C$43,0))/1000,CW54*INDEX('Damage costs'!$S$16:$S$43,MATCH($B62,'Damage costs'!$C$16:$C$43,0))/1000),\"\")","v":""},{"$f":"IFERROR(IF(OR($C$67=FALSE,LEFT($B62,3)<>\"NOX\"),CX54*INDEX('Damage costs'!$O$16:$O$43,MATCH($B62,'Damage costs'!$C$16:$C$43,0))/1000,CX54*INDEX('Damage costs'!$S$16:$S$43,MATCH($B62,'Damage costs'!$C$16:$C$43,0))/1000),\"\")","v":""},{"$f":"IFERROR(IF(OR($C$67=FALSE,LEFT($B62,3)<>\"NOX\"),CY54*INDEX('Damage costs'!$O$16:$O$43,MATCH($B62,'Damage costs'!$C$16:$C$43,0))/1000,CY54*INDEX('Damage costs'!$S$16:$S$43,MATCH($B62,'Damage costs'!$C$16:$C$43,0))/1000),\"\")","v":""}]
[null,0,"£000's",{"$f":"IFERROR(IF(OR($C$67=FALSE,LEFT($B63,3)<>\"NOX\"),D55*INDEX('Damage costs'!$O$16:$O$43,MATCH($B63,'Damage costs'!$C$16:$C$43,0))/1000,D55*INDEX('Damage costs'!$S$16:$S$43,MATCH($B63,'Damage costs'!$C$16:$C$43,0))/1000),\"\")","v":""},{"$f":"IFERROR(IF(OR($C$67=FALSE,LEFT($B63,3)<>\"NOX\"),E55*INDEX('Damage costs'!$O$16:$O$43,MATCH($B63,'Damage costs'!$C$16:$C$43,0))/1000,E55*INDEX('Damage costs'!$S$16:$S$43,MATCH($B63,'Damage costs'!$C$16:$C$43,0))/1000),\"\")","v":""},{"$f":"IFERROR(IF(OR($C$67=FALSE,LEFT($B63,3)<>\"NOX\"),F55*INDEX('Damage costs'!$O$16:$O$43,MATCH($B63,'Damage costs'!$C$16:$C$43,0))/1000,F55*INDEX('Damage costs'!$S$16:$S$43,MATCH($B63,'Damage costs'!$C$16:$C$43,0))/1000),\"\")","v":""},{"$f":"IFERROR(IF(OR($C$67=FALSE,LEFT($B63,3)<>\"NOX\"),G55*INDEX('Damage costs'!$O$16:$O$43,MATCH($B63,'Damage costs'!$C$16:$C$43,0))/1000,G55*INDEX('Damage costs'!$S$16:$S$43,MATCH($B63,'Damage costs'!$C$16:$C$43,0))/1000),\"\")","v":""},{"$f":"IFERROR(IF(OR($C$67=FALSE,LEFT($B63,3)<>\"NOX\"),H55*INDEX('Damage costs'!$O$16:$O$43,MATCH($B63,'Damage costs'!$C$16:$C$43,0))/1000,H55*INDEX('Damage costs'!$S$16:$S$43,MATCH($B63,'Damage costs'!$C$16:$C$43,0))/1000),\"\")","v":""},{"$f":"IFERROR(IF(OR($C$67=FALSE,LEFT($B63,3)<>\"NOX\"),I55*INDEX('Damage costs'!$O$16:$O$43,MATCH($B63,'Damage costs'!$C$16:$C$43,0))/1000,I55*INDEX('Damage costs'!$S$16:$S$43,MATCH($B63,'Damage costs'!$C$16:$C$43,0))/1000),\"\")","v":""},{"$f":"IFERROR(IF(OR($C$67=FALSE,LEFT($B63,3)<>\"NOX\"),J55*INDEX('Damage costs'!$O$16:$O$43,MATCH($B63,'Damage costs'!$C$16:$C$43,0))/1000,J55*INDEX('Damage costs'!$S$16:$S$43,MATCH($B63,'Damage costs'!$C$16:$C$43,0))/1000),\"\")","v":""},{"$f":"IFERROR(IF(OR($C$67=FALSE,LEFT($B63,3)<>\"NOX\"),K55*INDEX('Damage costs'!$O$16:$O$43,MATCH($B63,'Damage costs'!$C$16:$C$43,0))/1000,K55*INDEX('Damage costs'!$S$16:$S$43,MATCH($B63,'Damage costs'!$C$16:$C$43,0))/1000),\"\")","v":""},{"$f":"IFERROR(IF(OR($C$67=FALSE,LEFT($B63,3)<>\"NOX\"),L55*INDEX('Damage costs'!$O$16:$O$43,MATCH($B63,'Damage costs'!$C$16:$C$43,0))/1000,L55*INDEX('Damage costs'!$S$16:$S$43,MATCH($B63,'Damage costs'!$C$16:$C$43,0))/1000),\"\")","v":""},{"$f":"IFERROR(IF(OR($C$67=FALSE,LEFT($B63,3)<>\"NOX\"),M55*INDEX('Damage costs'!$O$16:$O$43,MATCH($B63,'Damage costs'!$C$16:$C$43,0))/1000,M55*INDEX('Damage costs'!$S$16:$S$43,MATCH($B63,'Damage costs'!$C$16:$C$43,0))/1000),\"\")","v":""},{"$f":"IFERROR(IF(OR($C$67=FALSE,LEFT($B63,3)<>\"NOX\"),N55*INDEX('Damage costs'!$O$16:$O$43,MATCH($B63,'Damage costs'!$C$16:$C$43,0))/1000,N55*INDEX('Damage costs'!$S$16:$S$43,MATCH($B63,'Damage costs'!$C$16:$C$43,0))/1000),\"\")","v":""},{"$f":"IFERROR(IF(OR($C$67=FALSE,LEFT($B63,3)<>\"NOX\"),O55*INDEX('Damage costs'!$O$16:$O$43,MATCH($B63,'Damage costs'!$C$16:$C$43,0))/1000,O55*INDEX('Damage costs'!$S$16:$S$43,MATCH($B63,'Damage costs'!$C$16:$C$43,0))/1000),\"\")","v":""},{"$f":"IFERROR(IF(OR($C$67=FALSE,LEFT($B63,3)<>\"NOX\"),P55*INDEX('Damage costs'!$O$16:$O$43,MATCH($B63,'Damage costs'!$C$16:$C$43,0))/1000,P55*INDEX('Damage costs'!$S$16:$S$43,MATCH($B63,'Damage costs'!$C$16:$C$43,0))/1000),\"\")","v":""},{"$f":"IFERROR(IF(OR($C$67=FALSE,LEFT($B63,3)<>\"NOX\"),Q55*INDEX('Damage costs'!$O$16:$O$43,MATCH($B63,'Damage costs'!$C$16:$C$43,0))/1000,Q55*INDEX('Damage costs'!$S$16:$S$43,MATCH($B63,'Damage costs'!$C$16:$C$43,0))/1000),\"\")","v":""},{"$f":"IFERROR(IF(OR($C$67=FALSE,LEFT($B63,3)<>\"NOX\"),R55*INDEX('Damage costs'!$O$16:$O$43,MATCH($B63,'Damage costs'!$C$16:$C$43,0))/1000,R55*INDEX('Damage costs'!$S$16:$S$43,MATCH($B63,'Damage costs'!$C$16:$C$43,0))/1000),\"\")","v":""},{"$f":"IFERROR(IF(OR($C$67=FALSE,LEFT($B63,3)<>\"NOX\"),S55*INDEX('Damage costs'!$O$16:$O$43,MATCH($B63,'Damage costs'!$C$16:$C$43,0))/1000,S55*INDEX('Damage costs'!$S$16:$S$43,MATCH($B63,'Damage costs'!$C$16:$C$43,0))/1000),\"\")","v":""},{"$f":"IFERROR(IF(OR($C$67=FALSE,LEFT($B63,3)<>\"NOX\"),T55*INDEX('Damage costs'!$O$16:$O$43,MATCH($B63,'Damage costs'!$C$16:$C$43,0))/1000,T55*INDEX('Damage costs'!$S$16:$S$43,MATCH($B63,'Damage costs'!$C$16:$C$43,0))/1000),\"\")","v":""},{"$f":"IFERROR(IF(OR($C$67=FALSE,LEFT($B63,3)<>\"NOX\"),U55*INDEX('Damage costs'!$O$16:$O$43,MATCH($B63,'Damage costs'!$C$16:$C$43,0))/1000,U55*INDEX('Damage costs'!$S$16:$S$43,MATCH($B63,'Damage costs'!$C$16:$C$43,0))/1000),\"\")","v":""},{"$f":"IFERROR(IF(OR($C$67=FALSE,LEFT($B63,3)<>\"NOX\"),V55*INDEX('Damage costs'!$O$16:$O$43,MATCH($B63,'Damage costs'!$C$16:$C$43,0))/1000,V55*INDEX('Damage costs'!$S$16:$S$43,MATCH($B63,'Damage costs'!$C$16:$C$43,0))/1000),\"\")","v":""},{"$f":"IFERROR(IF(OR($C$67=FALSE,LEFT($B63,3)<>\"NOX\"),W55*INDEX('Damage costs'!$O$16:$O$43,MATCH($B63,'Damage costs'!$C$16:$C$43,0))/1000,W55*INDEX('Damage costs'!$S$16:$S$43,MATCH($B63,'Damage costs'!$C$16:$C$43,0))/1000),\"\")","v":""},{"$f":"IFERROR(IF(OR($C$67=FALSE,LEFT($B63,3)<>\"NOX\"),X55*INDEX('Damage costs'!$O$16:$O$43,MATCH($B63,'Damage costs'!$C$16:$C$43,0))/1000,X55*INDEX('Damage costs'!$S$16:$S$43,MATCH($B63,'Damage costs'!$C$16:$C$43,0))/1000),\"\")","v":""},{"$f":"IFERROR(IF(OR($C$67=FALSE,LEFT($B63,3)<>\"NOX\"),Y55*INDEX('Damage costs'!$O$16:$O$43,MATCH($B63,'Damage costs'!$C$16:$C$43,0))/1000,Y55*INDEX('Damage costs'!$S$16:$S$43,MATCH($B63,'Damage costs'!$C$16:$C$43,0))/1000),\"\")","v":""},{"$f":"IFERROR(IF(OR($C$67=FALSE,LEFT($B63,3)<>\"NOX\"),Z55*INDEX('Damage costs'!$O$16:$O$43,MATCH($B63,'Damage costs'!$C$16:$C$43,0))/1000,Z55*INDEX('Damage costs'!$S$16:$S$43,MATCH($B63,'Damage costs'!$C$16:$C$43,0))/1000),\"\")","v":""},{"$f":"IFERROR(IF(OR($C$67=FALSE,LEFT($B63,3)<>\"NOX\"),AA55*INDEX('Damage costs'!$O$16:$O$43,MATCH($B63,'Damage costs'!$C$16:$C$43,0))/1000,AA55*INDEX('Damage costs'!$S$16:$S$43,MATCH($B63,'Damage costs'!$C$16:$C$43,0))/1000),\"\")","v":""},{"$f":"IFERROR(IF(OR($C$67=FALSE,LEFT($B63,3)<>\"NOX\"),AB55*INDEX('Damage costs'!$O$16:$O$43,MATCH($B63,'Damage costs'!$C$16:$C$43,0))/1000,AB55*INDEX('Damage costs'!$S$16:$S$43,MATCH($B63,'Damage costs'!$C$16:$C$43,0))/1000),\"\")","v":""},{"$f":"IFERROR(IF(OR($C$67=FALSE,LEFT($B63,3)<>\"NOX\"),AC55*INDEX('Damage costs'!$O$16:$O$43,MATCH($B63,'Damage costs'!$C$16:$C$43,0))/1000,AC55*INDEX('Damage costs'!$S$16:$S$43,MATCH($B63,'Damage costs'!$C$16:$C$43,0))/1000),\"\")","v":""},{"$f":"IFERROR(IF(OR($C$67=FALSE,LEFT($B63,3)<>\"NOX\"),AD55*INDEX('Damage costs'!$O$16:$O$43,MATCH($B63,'Damage costs'!$C$16:$C$43,0))/1000,AD55*INDEX('Damage costs'!$S$16:$S$43,MATCH($B63,'Damage costs'!$C$16:$C$43,0))/1000),\"\")","v":""},{"$f":"IFERROR(IF(OR($C$67=FALSE,LEFT($B63,3)<>\"NOX\"),AE55*INDEX('Damage costs'!$O$16:$O$43,MATCH($B63,'Damage costs'!$C$16:$C$43,0))/1000,AE55*INDEX('Damage costs'!$S$16:$S$43,MATCH($B63,'Damage costs'!$C$16:$C$43,0))/1000),\"\")","v":""},{"$f":"IFERROR(IF(OR($C$67=FALSE,LEFT($B63,3)<>\"NOX\"),AF55*INDEX('Damage costs'!$O$16:$O$43,MATCH($B63,'Damage costs'!$C$16:$C$43,0))/1000,AF55*INDEX('Damage costs'!$S$16:$S$43,MATCH($B63,'Damage costs'!$C$16:$C$43,0))/1000),\"\")","v":""},{"$f":"IFERROR(IF(OR($C$67=FALSE,LEFT($B63,3)<>\"NOX\"),AG55*INDEX('Damage costs'!$O$16:$O$43,MATCH($B63,'Damage costs'!$C$16:$C$43,0))/1000,AG55*INDEX('Damage costs'!$S$16:$S$43,MATCH($B63,'Damage costs'!$C$16:$C$43,0))/1000),\"\")","v":""},{"$f":"IFERROR(IF(OR($C$67=FALSE,LEFT($B63,3)<>\"NOX\"),AH55*INDEX('Damage costs'!$O$16:$O$43,MATCH($B63,'Damage costs'!$C$16:$C$43,0))/1000,AH55*INDEX('Damage costs'!$S$16:$S$43,MATCH($B63,'Damage costs'!$C$16:$C$43,0))/1000),\"\")","v":""},{"$f":"IFERROR(IF(OR($C$67=FALSE,LEFT($B63,3)<>\"NOX\"),AI55*INDEX('Damage costs'!$O$16:$O$43,MATCH($B63,'Damage costs'!$C$16:$C$43,0))/1000,AI55*INDEX('Damage costs'!$S$16:$S$43,MATCH($B63,'Damage costs'!$C$16:$C$43,0))/1000),\"\")","v":""},{"$f":"IFERROR(IF(OR($C$67=FALSE,LEFT($B63,3)<>\"NOX\"),AJ55*INDEX('Damage costs'!$O$16:$O$43,MATCH($B63,'Damage costs'!$C$16:$C$43,0))/1000,AJ55*INDEX('Damage costs'!$S$16:$S$43,MATCH($B63,'Damage costs'!$C$16:$C$43,0))/1000),\"\")","v":""},{"$f":"IFERROR(IF(OR($C$67=FALSE,LEFT($B63,3)<>\"NOX\"),AK55*INDEX('Damage costs'!$O$16:$O$43,MATCH($B63,'Damage costs'!$C$16:$C$43,0))/1000,AK55*INDEX('Damage costs'!$S$16:$S$43,MATCH($B63,'Damage costs'!$C$16:$C$43,0))/1000),\"\")","v":""},{"$f":"IFERROR(IF(OR($C$67=FALSE,LEFT($B63,3)<>\"NOX\"),AL55*INDEX('Damage costs'!$O$16:$O$43,MATCH($B63,'Damage costs'!$C$16:$C$43,0))/1000,AL55*INDEX('Damage costs'!$S$16:$S$43,MATCH($B63,'Damage costs'!$C$16:$C$43,0))/1000),\"\")","v":""},{"$f":"IFERROR(IF(OR($C$67=FALSE,LEFT($B63,3)<>\"NOX\"),AM55*INDEX('Damage costs'!$O$16:$O$43,MATCH($B63,'Damage costs'!$C$16:$C$43,0))/1000,AM55*INDEX('Damage costs'!$S$16:$S$43,MATCH($B63,'Damage costs'!$C$16:$C$43,0))/1000),\"\")","v":""},{"$f":"IFERROR(IF(OR($C$67=FALSE,LEFT($B63,3)<>\"NOX\"),AN55*INDEX('Damage costs'!$O$16:$O$43,MATCH($B63,'Damage costs'!$C$16:$C$43,0))/1000,AN55*INDEX('Damage costs'!$S$16:$S$43,MATCH($B63,'Damage costs'!$C$16:$C$43,0))/1000),\"\")","v":""},{"$f":"IFERROR(IF(OR($C$67=FALSE,LEFT($B63,3)<>\"NOX\"),AO55*INDEX('Damage costs'!$O$16:$O$43,MATCH($B63,'Damage costs'!$C$16:$C$43,0))/1000,AO55*INDEX('Damage costs'!$S$16:$S$43,MATCH($B63,'Damage costs'!$C$16:$C$43,0))/1000),\"\")","v":""},{"$f":"IFERROR(IF(OR($C$67=FALSE,LEFT($B63,3)<>\"NOX\"),AP55*INDEX('Damage costs'!$O$16:$O$43,MATCH($B63,'Damage costs'!$C$16:$C$43,0))/1000,AP55*INDEX('Damage costs'!$S$16:$S$43,MATCH($B63,'Damage costs'!$C$16:$C$43,0))/1000),\"\")","v":""},{"$f":"IFERROR(IF(OR($C$67=FALSE,LEFT($B63,3)<>\"NOX\"),AQ55*INDEX('Damage costs'!$O$16:$O$43,MATCH($B63,'Damage costs'!$C$16:$C$43,0))/1000,AQ55*INDEX('Damage costs'!$S$16:$S$43,MATCH($B63,'Damage costs'!$C$16:$C$43,0))/1000),\"\")","v":""},{"$f":"IFERROR(IF(OR($C$67=FALSE,LEFT($B63,3)<>\"NOX\"),AR55*INDEX('Damage costs'!$O$16:$O$43,MATCH($B63,'Damage costs'!$C$16:$C$43,0))/1000,AR55*INDEX('Damage costs'!$S$16:$S$43,MATCH($B63,'Damage costs'!$C$16:$C$43,0))/1000),\"\")","v":""},{"$f":"IFERROR(IF(OR($C$67=FALSE,LEFT($B63,3)<>\"NOX\"),AS55*INDEX('Damage costs'!$O$16:$O$43,MATCH($B63,'Damage costs'!$C$16:$C$43,0))/1000,AS55*INDEX('Damage costs'!$S$16:$S$43,MATCH($B63,'Damage costs'!$C$16:$C$43,0))/1000),\"\")","v":""},{"$f":"IFERROR(IF(OR($C$67=FALSE,LEFT($B63,3)<>\"NOX\"),AT55*INDEX('Damage costs'!$O$16:$O$43,MATCH($B63,'Damage costs'!$C$16:$C$43,0))/1000,AT55*INDEX('Damage costs'!$S$16:$S$43,MATCH($B63,'Damage costs'!$C$16:$C$43,0))/1000),\"\")","v":""},{"$f":"IFERROR(IF(OR($C$67=FALSE,LEFT($B63,3)<>\"NOX\"),AU55*INDEX('Damage costs'!$O$16:$O$43,MATCH($B63,'Damage costs'!$C$16:$C$43,0))/1000,AU55*INDEX('Damage costs'!$S$16:$S$43,MATCH($B63,'Damage costs'!$C$16:$C$43,0))/1000),\"\")","v":""},{"$f":"IFERROR(IF(OR($C$67=FALSE,LEFT($B63,3)<>\"NOX\"),AV55*INDEX('Damage costs'!$O$16:$O$43,MATCH($B63,'Damage costs'!$C$16:$C$43,0))/1000,AV55*INDEX('Damage costs'!$S$16:$S$43,MATCH($B63,'Damage costs'!$C$16:$C$43,0))/1000),\"\")","v":""},{"$f":"IFERROR(IF(OR($C$67=FALSE,LEFT($B63,3)<>\"NOX\"),AW55*INDEX('Damage costs'!$O$16:$O$43,MATCH($B63,'Damage costs'!$C$16:$C$43,0))/1000,AW55*INDEX('Damage costs'!$S$16:$S$43,MATCH($B63,'Damage costs'!$C$16:$C$43,0))/1000),\"\")","v":""},{"$f":"IFERROR(IF(OR($C$67=FALSE,LEFT($B63,3)<>\"NOX\"),AX55*INDEX('Damage costs'!$O$16:$O$43,MATCH($B63,'Damage costs'!$C$16:$C$43,0))/1000,AX55*INDEX('Damage costs'!$S$16:$S$43,MATCH($B63,'Damage costs'!$C$16:$C$43,0))/1000),\"\")","v":""},{"$f":"IFERROR(IF(OR($C$67=FALSE,LEFT($B63,3)<>\"NOX\"),AY55*INDEX('Damage costs'!$O$16:$O$43,MATCH($B63,'Damage costs'!$C$16:$C$43,0))/1000,AY55*INDEX('Damage costs'!$S$16:$S$43,MATCH($B63,'Damage costs'!$C$16:$C$43,0))/1000),\"\")","v":""},{"$f":"IFERROR(IF(OR($C$67=FALSE,LEFT($B63,3)<>\"NOX\"),AZ55*INDEX('Damage costs'!$O$16:$O$43,MATCH($B63,'Damage costs'!$C$16:$C$43,0))/1000,AZ55*INDEX('Damage costs'!$S$16:$S$43,MATCH($B63,'Damage costs'!$C$16:$C$43,0))/1000),\"\")","v":""},{"$f":"IFERROR(IF(OR($C$67=FALSE,LEFT($B63,3)<>\"NOX\"),BA55*INDEX('Damage costs'!$O$16:$O$43,MATCH($B63,'Damage costs'!$C$16:$C$43,0))/1000,BA55*INDEX('Damage costs'!$S$16:$S$43,MATCH($B63,'Damage costs'!$C$16:$C$43,0))/1000),\"\")","v":""},{"$f":"IFERROR(IF(OR($C$67=FALSE,LEFT($B63,3)<>\"NOX\"),BB55*INDEX('Damage costs'!$O$16:$O$43,MATCH($B63,'Damage costs'!$C$16:$C$43,0))/1000,BB55*INDEX('Damage costs'!$S$16:$S$43,MATCH($B63,'Damage costs'!$C$16:$C$43,0))/1000),\"\")","v":""},{"$f":"IFERROR(IF(OR($C$67=FALSE,LEFT($B63,3)<>\"NOX\"),BC55*INDEX('Damage costs'!$O$16:$O$43,MATCH($B63,'Damage costs'!$C$16:$C$43,0))/1000,BC55*INDEX('Damage costs'!$S$16:$S$43,MATCH($B63,'Damage costs'!$C$16:$C$43,0))/1000),\"\")","v":""},{"$f":"IFERROR(IF(OR($C$67=FALSE,LEFT($B63,3)<>\"NOX\"),BD55*INDEX('Damage costs'!$O$16:$O$43,MATCH($B63,'Damage costs'!$C$16:$C$43,0))/1000,BD55*INDEX('Damage costs'!$S$16:$S$43,MATCH($B63,'Damage costs'!$C$16:$C$43,0))/1000),\"\")","v":""},{"$f":"IFERROR(IF(OR($C$67=FALSE,LEFT($B63,3)<>\"NOX\"),BE55*INDEX('Damage costs'!$O$16:$O$43,MATCH($B63,'Damage costs'!$C$16:$C$43,0))/1000,BE55*INDEX('Damage costs'!$S$16:$S$43,MATCH($B63,'Damage costs'!$C$16:$C$43,0))/1000),\"\")","v":""},{"$f":"IFERROR(IF(OR($C$67=FALSE,LEFT($B63,3)<>\"NOX\"),BF55*INDEX('Damage costs'!$O$16:$O$43,MATCH($B63,'Damage costs'!$C$16:$C$43,0))/1000,BF55*INDEX('Damage costs'!$S$16:$S$43,MATCH($B63,'Damage costs'!$C$16:$C$43,0))/1000),\"\")","v":""},{"$f":"IFERROR(IF(OR($C$67=FALSE,LEFT($B63,3)<>\"NOX\"),BG55*INDEX('Damage costs'!$O$16:$O$43,MATCH($B63,'Damage costs'!$C$16:$C$43,0))/1000,BG55*INDEX('Damage costs'!$S$16:$S$43,MATCH($B63,'Damage costs'!$C$16:$C$43,0))/1000),\"\")","v":""},{"$f":"IFERROR(IF(OR($C$67=FALSE,LEFT($B63,3)<>\"NOX\"),BH55*INDEX('Damage costs'!$O$16:$O$43,MATCH($B63,'Damage costs'!$C$16:$C$43,0))/1000,BH55*INDEX('Damage costs'!$S$16:$S$43,MATCH($B63,'Damage costs'!$C$16:$C$43,0))/1000),\"\")","v":""},{"$f":"IFERROR(IF(OR($C$67=FALSE,LEFT($B63,3)<>\"NOX\"),BI55*INDEX('Damage costs'!$O$16:$O$43,MATCH($B63,'Damage costs'!$C$16:$C$43,0))/1000,BI55*INDEX('Damage costs'!$S$16:$S$43,MATCH($B63,'Damage costs'!$C$16:$C$43,0))/1000),\"\")","v":""},{"$f":"IFERROR(IF(OR($C$67=FALSE,LEFT($B63,3)<>\"NOX\"),BJ55*INDEX('Damage costs'!$O$16:$O$43,MATCH($B63,'Damage costs'!$C$16:$C$43,0))/1000,BJ55*INDEX('Damage costs'!$S$16:$S$43,MATCH($B63,'Damage costs'!$C$16:$C$43,0))/1000),\"\")","v":""},{"$f":"IFERROR(IF(OR($C$67=FALSE,LEFT($B63,3)<>\"NOX\"),BK55*INDEX('Damage costs'!$O$16:$O$43,MATCH($B63,'Damage costs'!$C$16:$C$43,0))/1000,BK55*INDEX('Damage costs'!$S$16:$S$43,MATCH($B63,'Damage costs'!$C$16:$C$43,0))/1000),\"\")","v":""},{"$f":"IFERROR(IF(OR($C$67=FALSE,LEFT($B63,3)<>\"NOX\"),BL55*INDEX('Damage costs'!$O$16:$O$43,MATCH($B63,'Damage costs'!$C$16:$C$43,0))/1000,BL55*INDEX('Damage costs'!$S$16:$S$43,MATCH($B63,'Damage costs'!$C$16:$C$43,0))/1000),\"\")","v":""},{"$f":"IFERROR(IF(OR($C$67=FALSE,LEFT($B63,3)<>\"NOX\"),BM55*INDEX('Damage costs'!$O$16:$O$43,MATCH($B63,'Damage costs'!$C$16:$C$43,0))/1000,BM55*INDEX('Damage costs'!$S$16:$S$43,MATCH($B63,'Damage costs'!$C$16:$C$43,0))/1000),\"\")","v":""},{"$f":"IFERROR(IF(OR($C$67=FALSE,LEFT($B63,3)<>\"NOX\"),BN55*INDEX('Damage costs'!$O$16:$O$43,MATCH($B63,'Damage costs'!$C$16:$C$43,0))/1000,BN55*INDEX('Damage costs'!$S$16:$S$43,MATCH($B63,'Damage costs'!$C$16:$C$43,0))/1000),\"\")","v":""},{"$f":"IFERROR(IF(OR($C$67=FALSE,LEFT($B63,3)<>\"NOX\"),BO55*INDEX('Damage costs'!$O$16:$O$43,MATCH($B63,'Damage costs'!$C$16:$C$43,0))/1000,BO55*INDEX('Damage costs'!$S$16:$S$43,MATCH($B63,'Damage costs'!$C$16:$C$43,0))/1000),\"\")","v":""},{"$f":"IFERROR(IF(OR($C$67=FALSE,LEFT($B63,3)<>\"NOX\"),BP55*INDEX('Damage costs'!$O$16:$O$43,MATCH($B63,'Damage costs'!$C$16:$C$43,0))/1000,BP55*INDEX('Damage costs'!$S$16:$S$43,MATCH($B63,'Damage costs'!$C$16:$C$43,0))/1000),\"\")","v":""},{"$f":"IFERROR(IF(OR($C$67=FALSE,LEFT($B63,3)<>\"NOX\"),BQ55*INDEX('Damage costs'!$O$16:$O$43,MATCH($B63,'Damage costs'!$C$16:$C$43,0))/1000,BQ55*INDEX('Damage costs'!$S$16:$S$43,MATCH($B63,'Damage costs'!$C$16:$C$43,0))/1000),\"\")","v":""},{"$f":"IFERROR(IF(OR($C$67=FALSE,LEFT($B63,3)<>\"NOX\"),BR55*INDEX('Damage costs'!$O$16:$O$43,MATCH($B63,'Damage costs'!$C$16:$C$43,0))/1000,BR55*INDEX('Damage costs'!$S$16:$S$43,MATCH($B63,'Damage costs'!$C$16:$C$43,0))/1000),\"\")","v":""},{"$f":"IFERROR(IF(OR($C$67=FALSE,LEFT($B63,3)<>\"NOX\"),BS55*INDEX('Damage costs'!$O$16:$O$43,MATCH($B63,'Damage costs'!$C$16:$C$43,0))/1000,BS55*INDEX('Damage costs'!$S$16:$S$43,MATCH($B63,'Damage costs'!$C$16:$C$43,0))/1000),\"\")","v":""},{"$f":"IFERROR(IF(OR($C$67=FALSE,LEFT($B63,3)<>\"NOX\"),BT55*INDEX('Damage costs'!$O$16:$O$43,MATCH($B63,'Damage costs'!$C$16:$C$43,0))/1000,BT55*INDEX('Damage costs'!$S$16:$S$43,MATCH($B63,'Damage costs'!$C$16:$C$43,0))/1000),\"\")","v":""},{"$f":"IFERROR(IF(OR($C$67=FALSE,LEFT($B63,3)<>\"NOX\"),BU55*INDEX('Damage costs'!$O$16:$O$43,MATCH($B63,'Damage costs'!$C$16:$C$43,0))/1000,BU55*INDEX('Damage costs'!$S$16:$S$43,MATCH($B63,'Damage costs'!$C$16:$C$43,0))/1000),\"\")","v":""},{"$f":"IFERROR(IF(OR($C$67=FALSE,LEFT($B63,3)<>\"NOX\"),BV55*INDEX('Damage costs'!$O$16:$O$43,MATCH($B63,'Damage costs'!$C$16:$C$43,0))/1000,BV55*INDEX('Damage costs'!$S$16:$S$43,MATCH($B63,'Damage costs'!$C$16:$C$43,0))/1000),\"\")","v":""},{"$f":"IFERROR(IF(OR($C$67=FALSE,LEFT($B63,3)<>\"NOX\"),BW55*INDEX('Damage costs'!$O$16:$O$43,MATCH($B63,'Damage costs'!$C$16:$C$43,0))/1000,BW55*INDEX('Damage costs'!$S$16:$S$43,MATCH($B63,'Damage costs'!$C$16:$C$43,0))/1000),\"\")","v":""},{"$f":"IFERROR(IF(OR($C$67=FALSE,LEFT($B63,3)<>\"NOX\"),BX55*INDEX('Damage costs'!$O$16:$O$43,MATCH($B63,'Damage costs'!$C$16:$C$43,0))/1000,BX55*INDEX('Damage costs'!$S$16:$S$43,MATCH($B63,'Damage costs'!$C$16:$C$43,0))/1000),\"\")","v":""},{"$f":"IFERROR(IF(OR($C$67=FALSE,LEFT($B63,3)<>\"NOX\"),BY55*INDEX('Damage costs'!$O$16:$O$43,MATCH($B63,'Damage costs'!$C$16:$C$43,0))/1000,BY55*INDEX('Damage costs'!$S$16:$S$43,MATCH($B63,'Damage costs'!$C$16:$C$43,0))/1000),\"\")","v":""},{"$f":"IFERROR(IF(OR($C$67=FALSE,LEFT($B63,3)<>\"NOX\"),BZ55*INDEX('Damage costs'!$O$16:$O$43,MATCH($B63,'Damage costs'!$C$16:$C$43,0))/1000,BZ55*INDEX('Damage costs'!$S$16:$S$43,MATCH($B63,'Damage costs'!$C$16:$C$43,0))/1000),\"\")","v":""},{"$f":"IFERROR(IF(OR($C$67=FALSE,LEFT($B63,3)<>\"NOX\"),CA55*INDEX('Damage costs'!$O$16:$O$43,MATCH($B63,'Damage costs'!$C$16:$C$43,0))/1000,CA55*INDEX('Damage costs'!$S$16:$S$43,MATCH($B63,'Damage costs'!$C$16:$C$43,0))/1000),\"\")","v":""},{"$f":"IFERROR(IF(OR($C$67=FALSE,LEFT($B63,3)<>\"NOX\"),CB55*INDEX('Damage costs'!$O$16:$O$43,MATCH($B63,'Damage costs'!$C$16:$C$43,0))/1000,CB55*INDEX('Damage costs'!$S$16:$S$43,MATCH($B63,'Damage costs'!$C$16:$C$43,0))/1000),\"\")","v":""},{"$f":"IFERROR(IF(OR($C$67=FALSE,LEFT($B63,3)<>\"NOX\"),CC55*INDEX('Damage costs'!$O$16:$O$43,MATCH($B63,'Damage costs'!$C$16:$C$43,0))/1000,CC55*INDEX('Damage costs'!$S$16:$S$43,MATCH($B63,'Damage costs'!$C$16:$C$43,0))/1000),\"\")","v":""},{"$f":"IFERROR(IF(OR($C$67=FALSE,LEFT($B63,3)<>\"NOX\"),CD55*INDEX('Damage costs'!$O$16:$O$43,MATCH($B63,'Damage costs'!$C$16:$C$43,0))/1000,CD55*INDEX('Damage costs'!$S$16:$S$43,MATCH($B63,'Damage costs'!$C$16:$C$43,0))/1000),\"\")","v":""},{"$f":"IFERROR(IF(OR($C$67=FALSE,LEFT($B63,3)<>\"NOX\"),CE55*INDEX('Damage costs'!$O$16:$O$43,MATCH($B63,'Damage costs'!$C$16:$C$43,0))/1000,CE55*INDEX('Damage costs'!$S$16:$S$43,MATCH($B63,'Damage costs'!$C$16:$C$43,0))/1000),\"\")","v":""},{"$f":"IFERROR(IF(OR($C$67=FALSE,LEFT($B63,3)<>\"NOX\"),CF55*INDEX('Damage costs'!$O$16:$O$43,MATCH($B63,'Damage costs'!$C$16:$C$43,0))/1000,CF55*INDEX('Damage costs'!$S$16:$S$43,MATCH($B63,'Damage costs'!$C$16:$C$43,0))/1000),\"\")","v":""},{"$f":"IFERROR(IF(OR($C$67=FALSE,LEFT($B63,3)<>\"NOX\"),CG55*INDEX('Damage costs'!$O$16:$O$43,MATCH($B63,'Damage costs'!$C$16:$C$43,0))/1000,CG55*INDEX('Damage costs'!$S$16:$S$43,MATCH($B63,'Damage costs'!$C$16:$C$43,0))/1000),\"\")","v":""},{"$f":"IFERROR(IF(OR($C$67=FALSE,LEFT($B63,3)<>\"NOX\"),CH55*INDEX('Damage costs'!$O$16:$O$43,MATCH($B63,'Damage costs'!$C$16:$C$43,0))/1000,CH55*INDEX('Damage costs'!$S$16:$S$43,MATCH($B63,'Damage costs'!$C$16:$C$43,0))/1000),\"\")","v":""},{"$f":"IFERROR(IF(OR($C$67=FALSE,LEFT($B63,3)<>\"NOX\"),CI55*INDEX('Damage costs'!$O$16:$O$43,MATCH($B63,'Damage costs'!$C$16:$C$43,0))/1000,CI55*INDEX('Damage costs'!$S$16:$S$43,MATCH($B63,'Damage costs'!$C$16:$C$43,0))/1000),\"\")","v":""},{"$f":"IFERROR(IF(OR($C$67=FALSE,LEFT($B63,3)<>\"NOX\"),CJ55*INDEX('Damage costs'!$O$16:$O$43,MATCH($B63,'Damage costs'!$C$16:$C$43,0))/1000,CJ55*INDEX('Damage costs'!$S$16:$S$43,MATCH($B63,'Damage costs'!$C$16:$C$43,0))/1000),\"\")","v":""},{"$f":"IFERROR(IF(OR($C$67=FALSE,LEFT($B63,3)<>\"NOX\"),CK55*INDEX('Damage costs'!$O$16:$O$43,MATCH($B63,'Damage costs'!$C$16:$C$43,0))/1000,CK55*INDEX('Damage costs'!$S$16:$S$43,MATCH($B63,'Damage costs'!$C$16:$C$43,0))/1000),\"\")","v":""},{"$f":"IFERROR(IF(OR($C$67=FALSE,LEFT($B63,3)<>\"NOX\"),CL55*INDEX('Damage costs'!$O$16:$O$43,MATCH($B63,'Damage costs'!$C$16:$C$43,0))/1000,CL55*INDEX('Damage costs'!$S$16:$S$43,MATCH($B63,'Damage costs'!$C$16:$C$43,0))/1000),\"\")","v":""},{"$f":"IFERROR(IF(OR($C$67=FALSE,LEFT($B63,3)<>\"NOX\"),CM55*INDEX('Damage costs'!$O$16:$O$43,MATCH($B63,'Damage costs'!$C$16:$C$43,0))/1000,CM55*INDEX('Damage costs'!$S$16:$S$43,MATCH($B63,'Damage costs'!$C$16:$C$43,0))/1000),\"\")","v":""},{"$f":"IFERROR(IF(OR($C$67=FALSE,LEFT($B63,3)<>\"NOX\"),CN55*INDEX('Damage costs'!$O$16:$O$43,MATCH($B63,'Damage costs'!$C$16:$C$43,0))/1000,CN55*INDEX('Damage costs'!$S$16:$S$43,MATCH($B63,'Damage costs'!$C$16:$C$43,0))/1000),\"\")","v":""},{"$f":"IFERROR(IF(OR($C$67=FALSE,LEFT($B63,3)<>\"NOX\"),CO55*INDEX('Damage costs'!$O$16:$O$43,MATCH($B63,'Damage costs'!$C$16:$C$43,0))/1000,CO55*INDEX('Damage costs'!$S$16:$S$43,MATCH($B63,'Damage costs'!$C$16:$C$43,0))/1000),\"\")","v":""},{"$f":"IFERROR(IF(OR($C$67=FALSE,LEFT($B63,3)<>\"NOX\"),CP55*INDEX('Damage costs'!$O$16:$O$43,MATCH($B63,'Damage costs'!$C$16:$C$43,0))/1000,CP55*INDEX('Damage costs'!$S$16:$S$43,MATCH($B63,'Damage costs'!$C$16:$C$43,0))/1000),\"\")","v":""},{"$f":"IFERROR(IF(OR($C$67=FALSE,LEFT($B63,3)<>\"NOX\"),CQ55*INDEX('Damage costs'!$O$16:$O$43,MATCH($B63,'Damage costs'!$C$16:$C$43,0))/1000,CQ55*INDEX('Damage costs'!$S$16:$S$43,MATCH($B63,'Damage costs'!$C$16:$C$43,0))/1000),\"\")","v":""},{"$f":"IFERROR(IF(OR($C$67=FALSE,LEFT($B63,3)<>\"NOX\"),CR55*INDEX('Damage costs'!$O$16:$O$43,MATCH($B63,'Damage costs'!$C$16:$C$43,0))/1000,CR55*INDEX('Damage costs'!$S$16:$S$43,MATCH($B63,'Damage costs'!$C$16:$C$43,0))/1000),\"\")","v":""},{"$f":"IFERROR(IF(OR($C$67=FALSE,LEFT($B63,3)<>\"NOX\"),CS55*INDEX('Damage costs'!$O$16:$O$43,MATCH($B63,'Damage costs'!$C$16:$C$43,0))/1000,CS55*INDEX('Damage costs'!$S$16:$S$43,MATCH($B63,'Damage costs'!$C$16:$C$43,0))/1000),\"\")","v":""},{"$f":"IFERROR(IF(OR($C$67=FALSE,LEFT($B63,3)<>\"NOX\"),CT55*INDEX('Damage costs'!$O$16:$O$43,MATCH($B63,'Damage costs'!$C$16:$C$43,0))/1000,CT55*INDEX('Damage costs'!$S$16:$S$43,MATCH($B63,'Damage costs'!$C$16:$C$43,0))/1000),\"\")","v":""},{"$f":"IFERROR(IF(OR($C$67=FALSE,LEFT($B63,3)<>\"NOX\"),CU55*INDEX('Damage costs'!$O$16:$O$43,MATCH($B63,'Damage costs'!$C$16:$C$43,0))/1000,CU55*INDEX('Damage costs'!$S$16:$S$43,MATCH($B63,'Damage costs'!$C$16:$C$43,0))/1000),\"\")","v":""},{"$f":"IFERROR(IF(OR($C$67=FALSE,LEFT($B63,3)<>\"NOX\"),CV55*INDEX('Damage costs'!$O$16:$O$43,MATCH($B63,'Damage costs'!$C$16:$C$43,0))/1000,CV55*INDEX('Damage costs'!$S$16:$S$43,MATCH($B63,'Damage costs'!$C$16:$C$43,0))/1000),\"\")","v":""},{"$f":"IFERROR(IF(OR($C$67=FALSE,LEFT($B63,3)<>\"NOX\"),CW55*INDEX('Damage costs'!$O$16:$O$43,MATCH($B63,'Damage costs'!$C$16:$C$43,0))/1000,CW55*INDEX('Damage costs'!$S$16:$S$43,MATCH($B63,'Damage costs'!$C$16:$C$43,0))/1000),\"\")","v":""},{"$f":"IFERROR(IF(OR($C$67=FALSE,LEFT($B63,3)<>\"NOX\"),CX55*INDEX('Damage costs'!$O$16:$O$43,MATCH($B63,'Damage costs'!$C$16:$C$43,0))/1000,CX55*INDEX('Damage costs'!$S$16:$S$43,MATCH($B63,'Damage costs'!$C$16:$C$43,0))/1000),\"\")","v":""},{"$f":"IFERROR(IF(OR($C$67=FALSE,LEFT($B63,3)<>\"NOX\"),CY55*INDEX('Damage costs'!$O$16:$O$43,MATCH($B63,'Damage costs'!$C$16:$C$43,0))/1000,CY55*INDEX('Damage costs'!$S$16:$S$43,MATCH($B63,'Damage costs'!$C$16:$C$43,0))/1000),\"\")","v":""}]
[null,0,"£000's",{"$f":"IFERROR(IF(OR($C$67=FALSE,LEFT($B64,3)<>\"NOX\"),D56*INDEX('Damage costs'!$O$16:$O$43,MATCH($B64,'Damage costs'!$C$16:$C$43,0))/1000,D56*INDEX('Damage costs'!$S$16:$S$43,MATCH($B64,'Damage costs'!$C$16:$C$43,0))/1000),\"\")","v":""},{"$f":"IFERROR(IF(OR($C$67=FALSE,LEFT($B64,3)<>\"NOX\"),E56*INDEX('Damage costs'!$O$16:$O$43,MATCH($B64,'Damage costs'!$C$16:$C$43,0))/1000,E56*INDEX('Damage costs'!$S$16:$S$43,MATCH($B64,'Damage costs'!$C$16:$C$43,0))/1000),\"\")","v":""},{"$f":"IFERROR(IF(OR($C$67=FALSE,LEFT($B64,3)<>\"NOX\"),F56*INDEX('Damage costs'!$O$16:$O$43,MATCH($B64,'Damage costs'!$C$16:$C$43,0))/1000,F56*INDEX('Damage costs'!$S$16:$S$43,MATCH($B64,'Damage costs'!$C$16:$C$43,0))/1000),\"\")","v":""},{"$f":"IFERROR(IF(OR($C$67=FALSE,LEFT($B64,3)<>\"NOX\"),G56*INDEX('Damage costs'!$O$16:$O$43,MATCH($B64,'Damage costs'!$C$16:$C$43,0))/1000,G56*INDEX('Damage costs'!$S$16:$S$43,MATCH($B64,'Damage costs'!$C$16:$C$43,0))/1000),\"\")","v":""},{"$f":"IFERROR(IF(OR($C$67=FALSE,LEFT($B64,3)<>\"NOX\"),H56*INDEX('Damage costs'!$O$16:$O$43,MATCH($B64,'Damage costs'!$C$16:$C$43,0))/1000,H56*INDEX('Damage costs'!$S$16:$S$43,MATCH($B64,'Damage costs'!$C$16:$C$43,0))/1000),\"\")","v":""},{"$f":"IFERROR(IF(OR($C$67=FALSE,LEFT($B64,3)<>\"NOX\"),I56*INDEX('Damage costs'!$O$16:$O$43,MATCH($B64,'Damage costs'!$C$16:$C$43,0))/1000,I56*INDEX('Damage costs'!$S$16:$S$43,MATCH($B64,'Damage costs'!$C$16:$C$43,0))/1000),\"\")","v":""},{"$f":"IFERROR(IF(OR($C$67=FALSE,LEFT($B64,3)<>\"NOX\"),J56*INDEX('Damage costs'!$O$16:$O$43,MATCH($B64,'Damage costs'!$C$16:$C$43,0))/1000,J56*INDEX('Damage costs'!$S$16:$S$43,MATCH($B64,'Damage costs'!$C$16:$C$43,0))/1000),\"\")","v":""},{"$f":"IFERROR(IF(OR($C$67=FALSE,LEFT($B64,3)<>\"NOX\"),K56*INDEX('Damage costs'!$O$16:$O$43,MATCH($B64,'Damage costs'!$C$16:$C$43,0))/1000,K56*INDEX('Damage costs'!$S$16:$S$43,MATCH($B64,'Damage costs'!$C$16:$C$43,0))/1000),\"\")","v":""},{"$f":"IFERROR(IF(OR($C$67=FALSE,LEFT($B64,3)<>\"NOX\"),L56*INDEX('Damage costs'!$O$16:$O$43,MATCH($B64,'Damage costs'!$C$16:$C$43,0))/1000,L56*INDEX('Damage costs'!$S$16:$S$43,MATCH($B64,'Damage costs'!$C$16:$C$43,0))/1000),\"\")","v":""},{"$f":"IFERROR(IF(OR($C$67=FALSE,LEFT($B64,3)<>\"NOX\"),M56*INDEX('Damage costs'!$O$16:$O$43,MATCH($B64,'Damage costs'!$C$16:$C$43,0))/1000,M56*INDEX('Damage costs'!$S$16:$S$43,MATCH($B64,'Damage costs'!$C$16:$C$43,0))/1000),\"\")","v":""},{"$f":"IFERROR(IF(OR($C$67=FALSE,LEFT($B64,3)<>\"NOX\"),N56*INDEX('Damage costs'!$O$16:$O$43,MATCH($B64,'Damage costs'!$C$16:$C$43,0))/1000,N56*INDEX('Damage costs'!$S$16:$S$43,MATCH($B64,'Damage costs'!$C$16:$C$43,0))/1000),\"\")","v":""},{"$f":"IFERROR(IF(OR($C$67=FALSE,LEFT($B64,3)<>\"NOX\"),O56*INDEX('Damage costs'!$O$16:$O$43,MATCH($B64,'Damage costs'!$C$16:$C$43,0))/1000,O56*INDEX('Damage costs'!$S$16:$S$43,MATCH($B64,'Damage costs'!$C$16:$C$43,0))/1000),\"\")","v":""},{"$f":"IFERROR(IF(OR($C$67=FALSE,LEFT($B64,3)<>\"NOX\"),P56*INDEX('Damage costs'!$O$16:$O$43,MATCH($B64,'Damage costs'!$C$16:$C$43,0))/1000,P56*INDEX('Damage costs'!$S$16:$S$43,MATCH($B64,'Damage costs'!$C$16:$C$43,0))/1000),\"\")","v":""},{"$f":"IFERROR(IF(OR($C$67=FALSE,LEFT($B64,3)<>\"NOX\"),Q56*INDEX('Damage costs'!$O$16:$O$43,MATCH($B64,'Damage costs'!$C$16:$C$43,0))/1000,Q56*INDEX('Damage costs'!$S$16:$S$43,MATCH($B64,'Damage costs'!$C$16:$C$43,0))/1000),\"\")","v":""},{"$f":"IFERROR(IF(OR($C$67=FALSE,LEFT($B64,3)<>\"NOX\"),R56*INDEX('Damage costs'!$O$16:$O$43,MATCH($B64,'Damage costs'!$C$16:$C$43,0))/1000,R56*INDEX('Damage costs'!$S$16:$S$43,MATCH($B64,'Damage costs'!$C$16:$C$43,0))/1000),\"\")","v":""},{"$f":"IFERROR(IF(OR($C$67=FALSE,LEFT($B64,3)<>\"NOX\"),S56*INDEX('Damage costs'!$O$16:$O$43,MATCH($B64,'Damage costs'!$C$16:$C$43,0))/1000,S56*INDEX('Damage costs'!$S$16:$S$43,MATCH($B64,'Damage costs'!$C$16:$C$43,0))/1000),\"\")","v":""},{"$f":"IFERROR(IF(OR($C$67=FALSE,LEFT($B64,3)<>\"NOX\"),T56*INDEX('Damage costs'!$O$16:$O$43,MATCH($B64,'Damage costs'!$C$16:$C$43,0))/1000,T56*INDEX('Damage costs'!$S$16:$S$43,MATCH($B64,'Damage costs'!$C$16:$C$43,0))/1000),\"\")","v":""},{"$f":"IFERROR(IF(OR($C$67=FALSE,LEFT($B64,3)<>\"NOX\"),U56*INDEX('Damage costs'!$O$16:$O$43,MATCH($B64,'Damage costs'!$C$16:$C$43,0))/1000,U56*INDEX('Damage costs'!$S$16:$S$43,MATCH($B64,'Damage costs'!$C$16:$C$43,0))/1000),\"\")","v":""},{"$f":"IFERROR(IF(OR($C$67=FALSE,LEFT($B64,3)<>\"NOX\"),V56*INDEX('Damage costs'!$O$16:$O$43,MATCH($B64,'Damage costs'!$C$16:$C$43,0))/1000,V56*INDEX('Damage costs'!$S$16:$S$43,MATCH($B64,'Damage costs'!$C$16:$C$43,0))/1000),\"\")","v":""},{"$f":"IFERROR(IF(OR($C$67=FALSE,LEFT($B64,3)<>\"NOX\"),W56*INDEX('Damage costs'!$O$16:$O$43,MATCH($B64,'Damage costs'!$C$16:$C$43,0))/1000,W56*INDEX('Damage costs'!$S$16:$S$43,MATCH($B64,'Damage costs'!$C$16:$C$43,0))/1000),\"\")","v":""},{"$f":"IFERROR(IF(OR($C$67=FALSE,LEFT($B64,3)<>\"NOX\"),X56*INDEX('Damage costs'!$O$16:$O$43,MATCH($B64,'Damage costs'!$C$16:$C$43,0))/1000,X56*INDEX('Damage costs'!$S$16:$S$43,MATCH($B64,'Damage costs'!$C$16:$C$43,0))/1000),\"\")","v":""},{"$f":"IFERROR(IF(OR($C$67=FALSE,LEFT($B64,3)<>\"NOX\"),Y56*INDEX('Damage costs'!$O$16:$O$43,MATCH($B64,'Damage costs'!$C$16:$C$43,0))/1000,Y56*INDEX('Damage costs'!$S$16:$S$43,MATCH($B64,'Damage costs'!$C$16:$C$43,0))/1000),\"\")","v":""},{"$f":"IFERROR(IF(OR($C$67=FALSE,LEFT($B64,3)<>\"NOX\"),Z56*INDEX('Damage costs'!$O$16:$O$43,MATCH($B64,'Damage costs'!$C$16:$C$43,0))/1000,Z56*INDEX('Damage costs'!$S$16:$S$43,MATCH($B64,'Damage costs'!$C$16:$C$43,0))/1000),\"\")","v":""},{"$f":"IFERROR(IF(OR($C$67=FALSE,LEFT($B64,3)<>\"NOX\"),AA56*INDEX('Damage costs'!$O$16:$O$43,MATCH($B64,'Damage costs'!$C$16:$C$43,0))/1000,AA56*INDEX('Damage costs'!$S$16:$S$43,MATCH($B64,'Damage costs'!$C$16:$C$43,0))/1000),\"\")","v":""},{"$f":"IFERROR(IF(OR($C$67=FALSE,LEFT($B64,3)<>\"NOX\"),AB56*INDEX('Damage costs'!$O$16:$O$43,MATCH($B64,'Damage costs'!$C$16:$C$43,0))/1000,AB56*INDEX('Damage costs'!$S$16:$S$43,MATCH($B64,'Damage costs'!$C$16:$C$43,0))/1000),\"\")","v":""},{"$f":"IFERROR(IF(OR($C$67=FALSE,LEFT($B64,3)<>\"NOX\"),AC56*INDEX('Damage costs'!$O$16:$O$43,MATCH($B64,'Damage costs'!$C$16:$C$43,0))/1000,AC56*INDEX('Damage costs'!$S$16:$S$43,MATCH($B64,'Damage costs'!$C$16:$C$43,0))/1000),\"\")","v":""},{"$f":"IFERROR(IF(OR($C$67=FALSE,LEFT($B64,3)<>\"NOX\"),AD56*INDEX('Damage costs'!$O$16:$O$43,MATCH($B64,'Damage costs'!$C$16:$C$43,0))/1000,AD56*INDEX('Damage costs'!$S$16:$S$43,MATCH($B64,'Damage costs'!$C$16:$C$43,0))/1000),\"\")","v":""},{"$f":"IFERROR(IF(OR($C$67=FALSE,LEFT($B64,3)<>\"NOX\"),AE56*INDEX('Damage costs'!$O$16:$O$43,MATCH($B64,'Damage costs'!$C$16:$C$43,0))/1000,AE56*INDEX('Damage costs'!$S$16:$S$43,MATCH($B64,'Damage costs'!$C$16:$C$43,0))/1000),\"\")","v":""},{"$f":"IFERROR(IF(OR($C$67=FALSE,LEFT($B64,3)<>\"NOX\"),AF56*INDEX('Damage costs'!$O$16:$O$43,MATCH($B64,'Damage costs'!$C$16:$C$43,0))/1000,AF56*INDEX('Damage costs'!$S$16:$S$43,MATCH($B64,'Damage costs'!$C$16:$C$43,0))/1000),\"\")","v":""},{"$f":"IFERROR(IF(OR($C$67=FALSE,LEFT($B64,3)<>\"NOX\"),AG56*INDEX('Damage costs'!$O$16:$O$43,MATCH($B64,'Damage costs'!$C$16:$C$43,0))/1000,AG56*INDEX('Damage costs'!$S$16:$S$43,MATCH($B64,'Damage costs'!$C$16:$C$43,0))/1000),\"\")","v":""},{"$f":"IFERROR(IF(OR($C$67=FALSE,LEFT($B64,3)<>\"NOX\"),AH56*INDEX('Damage costs'!$O$16:$O$43,MATCH($B64,'Damage costs'!$C$16:$C$43,0))/1000,AH56*INDEX('Damage costs'!$S$16:$S$43,MATCH($B64,'Damage costs'!$C$16:$C$43,0))/1000),\"\")","v":""},{"$f":"IFERROR(IF(OR($C$67=FALSE,LEFT($B64,3)<>\"NOX\"),AI56*INDEX('Damage costs'!$O$16:$O$43,MATCH($B64,'Damage costs'!$C$16:$C$43,0))/1000,AI56*INDEX('Damage costs'!$S$16:$S$43,MATCH($B64,'Damage costs'!$C$16:$C$43,0))/1000),\"\")","v":""},{"$f":"IFERROR(IF(OR($C$67=FALSE,LEFT($B64,3)<>\"NOX\"),AJ56*INDEX('Damage costs'!$O$16:$O$43,MATCH($B64,'Damage costs'!$C$16:$C$43,0))/1000,AJ56*INDEX('Damage costs'!$S$16:$S$43,MATCH($B64,'Damage costs'!$C$16:$C$43,0))/1000),\"\")","v":""},{"$f":"IFERROR(IF(OR($C$67=FALSE,LEFT($B64,3)<>\"NOX\"),AK56*INDEX('Damage costs'!$O$16:$O$43,MATCH($B64,'Damage costs'!$C$16:$C$43,0))/1000,AK56*INDEX('Damage costs'!$S$16:$S$43,MATCH($B64,'Damage costs'!$C$16:$C$43,0))/1000),\"\")","v":""},{"$f":"IFERROR(IF(OR($C$67=FALSE,LEFT($B64,3)<>\"NOX\"),AL56*INDEX('Damage costs'!$O$16:$O$43,MATCH($B64,'Damage costs'!$C$16:$C$43,0))/1000,AL56*INDEX('Damage costs'!$S$16:$S$43,MATCH($B64,'Damage costs'!$C$16:$C$43,0))/1000),\"\")","v":""},{"$f":"IFERROR(IF(OR($C$67=FALSE,LEFT($B64,3)<>\"NOX\"),AM56*INDEX('Damage costs'!$O$16:$O$43,MATCH($B64,'Damage costs'!$C$16:$C$43,0))/1000,AM56*INDEX('Damage costs'!$S$16:$S$43,MATCH($B64,'Damage costs'!$C$16:$C$43,0))/1000),\"\")","v":""},{"$f":"IFERROR(IF(OR($C$67=FALSE,LEFT($B64,3)<>\"NOX\"),AN56*INDEX('Damage costs'!$O$16:$O$43,MATCH($B64,'Damage costs'!$C$16:$C$43,0))/1000,AN56*INDEX('Damage costs'!$S$16:$S$43,MATCH($B64,'Damage costs'!$C$16:$C$43,0))/1000),\"\")","v":""},{"$f":"IFERROR(IF(OR($C$67=FALSE,LEFT($B64,3)<>\"NOX\"),AO56*INDEX('Damage costs'!$O$16:$O$43,MATCH($B64,'Damage costs'!$C$16:$C$43,0))/1000,AO56*INDEX('Damage costs'!$S$16:$S$43,MATCH($B64,'Damage costs'!$C$16:$C$43,0))/1000),\"\")","v":""},{"$f":"IFERROR(IF(OR($C$67=FALSE,LEFT($B64,3)<>\"NOX\"),AP56*INDEX('Damage costs'!$O$16:$O$43,MATCH($B64,'Damage costs'!$C$16:$C$43,0))/1000,AP56*INDEX('Damage costs'!$S$16:$S$43,MATCH($B64,'Damage costs'!$C$16:$C$43,0))/1000),\"\")","v":""},{"$f":"IFERROR(IF(OR($C$67=FALSE,LEFT($B64,3)<>\"NOX\"),AQ56*INDEX('Damage costs'!$O$16:$O$43,MATCH($B64,'Damage costs'!$C$16:$C$43,0))/1000,AQ56*INDEX('Damage costs'!$S$16:$S$43,MATCH($B64,'Damage costs'!$C$16:$C$43,0))/1000),\"\")","v":""},{"$f":"IFERROR(IF(OR($C$67=FALSE,LEFT($B64,3)<>\"NOX\"),AR56*INDEX('Damage costs'!$O$16:$O$43,MATCH($B64,'Damage costs'!$C$16:$C$43,0))/1000,AR56*INDEX('Damage costs'!$S$16:$S$43,MATCH($B64,'Damage costs'!$C$16:$C$43,0))/1000),\"\")","v":""},{"$f":"IFERROR(IF(OR($C$67=FALSE,LEFT($B64,3)<>\"NOX\"),AS56*INDEX('Damage costs'!$O$16:$O$43,MATCH($B64,'Damage costs'!$C$16:$C$43,0))/1000,AS56*INDEX('Damage costs'!$S$16:$S$43,MATCH($B64,'Damage costs'!$C$16:$C$43,0))/1000),\"\")","v":""},{"$f":"IFERROR(IF(OR($C$67=FALSE,LEFT($B64,3)<>\"NOX\"),AT56*INDEX('Damage costs'!$O$16:$O$43,MATCH($B64,'Damage costs'!$C$16:$C$43,0))/1000,AT56*INDEX('Damage costs'!$S$16:$S$43,MATCH($B64,'Damage costs'!$C$16:$C$43,0))/1000),\"\")","v":""},{"$f":"IFERROR(IF(OR($C$67=FALSE,LEFT($B64,3)<>\"NOX\"),AU56*INDEX('Damage costs'!$O$16:$O$43,MATCH($B64,'Damage costs'!$C$16:$C$43,0))/1000,AU56*INDEX('Damage costs'!$S$16:$S$43,MATCH($B64,'Damage costs'!$C$16:$C$43,0))/1000),\"\")","v":""},{"$f":"IFERROR(IF(OR($C$67=FALSE,LEFT($B64,3)<>\"NOX\"),AV56*INDEX('Damage costs'!$O$16:$O$43,MATCH($B64,'Damage costs'!$C$16:$C$43,0))/1000,AV56*INDEX('Damage costs'!$S$16:$S$43,MATCH($B64,'Damage costs'!$C$16:$C$43,0))/1000),\"\")","v":""},{"$f":"IFERROR(IF(OR($C$67=FALSE,LEFT($B64,3)<>\"NOX\"),AW56*INDEX('Damage costs'!$O$16:$O$43,MATCH($B64,'Damage costs'!$C$16:$C$43,0))/1000,AW56*INDEX('Damage costs'!$S$16:$S$43,MATCH($B64,'Damage costs'!$C$16:$C$43,0))/1000),\"\")","v":""},{"$f":"IFERROR(IF(OR($C$67=FALSE,LEFT($B64,3)<>\"NOX\"),AX56*INDEX('Damage costs'!$O$16:$O$43,MATCH($B64,'Damage costs'!$C$16:$C$43,0))/1000,AX56*INDEX('Damage costs'!$S$16:$S$43,MATCH($B64,'Damage costs'!$C$16:$C$43,0))/1000),\"\")","v":""},{"$f":"IFERROR(IF(OR($C$67=FALSE,LEFT($B64,3)<>\"NOX\"),AY56*INDEX('Damage costs'!$O$16:$O$43,MATCH($B64,'Damage costs'!$C$16:$C$43,0))/1000,AY56*INDEX('Damage costs'!$S$16:$S$43,MATCH($B64,'Damage costs'!$C$16:$C$43,0))/1000),\"\")","v":""},{"$f":"IFERROR(IF(OR($C$67=FALSE,LEFT($B64,3)<>\"NOX\"),AZ56*INDEX('Damage costs'!$O$16:$O$43,MATCH($B64,'Damage costs'!$C$16:$C$43,0))/1000,AZ56*INDEX('Damage costs'!$S$16:$S$43,MATCH($B64,'Damage costs'!$C$16:$C$43,0))/1000),\"\")","v":""},{"$f":"IFERROR(IF(OR($C$67=FALSE,LEFT($B64,3)<>\"NOX\"),BA56*INDEX('Damage costs'!$O$16:$O$43,MATCH($B64,'Damage costs'!$C$16:$C$43,0))/1000,BA56*INDEX('Damage costs'!$S$16:$S$43,MATCH($B64,'Damage costs'!$C$16:$C$43,0))/1000),\"\")","v":""},{"$f":"IFERROR(IF(OR($C$67=FALSE,LEFT($B64,3)<>\"NOX\"),BB56*INDEX('Damage costs'!$O$16:$O$43,MATCH($B64,'Damage costs'!$C$16:$C$43,0))/1000,BB56*INDEX('Damage costs'!$S$16:$S$43,MATCH($B64,'Damage costs'!$C$16:$C$43,0))/1000),\"\")","v":""},{"$f":"IFERROR(IF(OR($C$67=FALSE,LEFT($B64,3)<>\"NOX\"),BC56*INDEX('Damage costs'!$O$16:$O$43,MATCH($B64,'Damage costs'!$C$16:$C$43,0))/1000,BC56*INDEX('Damage costs'!$S$16:$S$43,MATCH($B64,'Damage costs'!$C$16:$C$43,0))/1000),\"\")","v":""},{"$f":"IFERROR(IF(OR($C$67=FALSE,LEFT($B64,3)<>\"NOX\"),BD56*INDEX('Damage costs'!$O$16:$O$43,MATCH($B64,'Damage costs'!$C$16:$C$43,0))/1000,BD56*INDEX('Damage costs'!$S$16:$S$43,MATCH($B64,'Damage costs'!$C$16:$C$43,0))/1000),\"\")","v":""},{"$f":"IFERROR(IF(OR($C$67=FALSE,LEFT($B64,3)<>\"NOX\"),BE56*INDEX('Damage costs'!$O$16:$O$43,MATCH($B64,'Damage costs'!$C$16:$C$43,0))/1000,BE56*INDEX('Damage costs'!$S$16:$S$43,MATCH($B64,'Damage costs'!$C$16:$C$43,0))/1000),\"\")","v":""},{"$f":"IFERROR(IF(OR($C$67=FALSE,LEFT($B64,3)<>\"NOX\"),BF56*INDEX('Damage costs'!$O$16:$O$43,MATCH($B64,'Damage costs'!$C$16:$C$43,0))/1000,BF56*INDEX('Damage costs'!$S$16:$S$43,MATCH($B64,'Damage costs'!$C$16:$C$43,0))/1000),\"\")","v":""},{"$f":"IFERROR(IF(OR($C$67=FALSE,LEFT($B64,3)<>\"NOX\"),BG56*INDEX('Damage costs'!$O$16:$O$43,MATCH($B64,'Damage costs'!$C$16:$C$43,0))/1000,BG56*INDEX('Damage costs'!$S$16:$S$43,MATCH($B64,'Damage costs'!$C$16:$C$43,0))/1000),\"\")","v":""},{"$f":"IFERROR(IF(OR($C$67=FALSE,LEFT($B64,3)<>\"NOX\"),BH56*INDEX('Damage costs'!$O$16:$O$43,MATCH($B64,'Damage costs'!$C$16:$C$43,0))/1000,BH56*INDEX('Damage costs'!$S$16:$S$43,MATCH($B64,'Damage costs'!$C$16:$C$43,0))/1000),\"\")","v":""},{"$f":"IFERROR(IF(OR($C$67=FALSE,LEFT($B64,3)<>\"NOX\"),BI56*INDEX('Damage costs'!$O$16:$O$43,MATCH($B64,'Damage costs'!$C$16:$C$43,0))/1000,BI56*INDEX('Damage costs'!$S$16:$S$43,MATCH($B64,'Damage costs'!$C$16:$C$43,0))/1000),\"\")","v":""},{"$f":"IFERROR(IF(OR($C$67=FALSE,LEFT($B64,3)<>\"NOX\"),BJ56*INDEX('Damage costs'!$O$16:$O$43,MATCH($B64,'Damage costs'!$C$16:$C$43,0))/1000,BJ56*INDEX('Damage costs'!$S$16:$S$43,MATCH($B64,'Damage costs'!$C$16:$C$43,0))/1000),\"\")","v":""},{"$f":"IFERROR(IF(OR($C$67=FALSE,LEFT($B64,3)<>\"NOX\"),BK56*INDEX('Damage costs'!$O$16:$O$43,MATCH($B64,'Damage costs'!$C$16:$C$43,0))/1000,BK56*INDEX('Damage costs'!$S$16:$S$43,MATCH($B64,'Damage costs'!$C$16:$C$43,0))/1000),\"\")","v":""},{"$f":"IFERROR(IF(OR($C$67=FALSE,LEFT($B64,3)<>\"NOX\"),BL56*INDEX('Damage costs'!$O$16:$O$43,MATCH($B64,'Damage costs'!$C$16:$C$43,0))/1000,BL56*INDEX('Damage costs'!$S$16:$S$43,MATCH($B64,'Damage costs'!$C$16:$C$43,0))/1000),\"\")","v":""},{"$f":"IFERROR(IF(OR($C$67=FALSE,LEFT($B64,3)<>\"NOX\"),BM56*INDEX('Damage costs'!$O$16:$O$43,MATCH($B64,'Damage costs'!$C$16:$C$43,0))/1000,BM56*INDEX('Damage costs'!$S$16:$S$43,MATCH($B64,'Damage costs'!$C$16:$C$43,0))/1000),\"\")","v":""},{"$f":"IFERROR(IF(OR($C$67=FALSE,LEFT($B64,3)<>\"NOX\"),BN56*INDEX('Damage costs'!$O$16:$O$43,MATCH($B64,'Damage costs'!$C$16:$C$43,0))/1000,BN56*INDEX('Damage costs'!$S$16:$S$43,MATCH($B64,'Damage costs'!$C$16:$C$43,0))/1000),\"\")","v":""},{"$f":"IFERROR(IF(OR($C$67=FALSE,LEFT($B64,3)<>\"NOX\"),BO56*INDEX('Damage costs'!$O$16:$O$43,MATCH($B64,'Damage costs'!$C$16:$C$43,0))/1000,BO56*INDEX('Damage costs'!$S$16:$S$43,MATCH($B64,'Damage costs'!$C$16:$C$43,0))/1000),\"\")","v":""},{"$f":"IFERROR(IF(OR($C$67=FALSE,LEFT($B64,3)<>\"NOX\"),BP56*INDEX('Damage costs'!$O$16:$O$43,MATCH($B64,'Damage costs'!$C$16:$C$43,0))/1000,BP56*INDEX('Damage costs'!$S$16:$S$43,MATCH($B64,'Damage costs'!$C$16:$C$43,0))/1000),\"\")","v":""},{"$f":"IFERROR(IF(OR($C$67=FALSE,LEFT($B64,3)<>\"NOX\"),BQ56*INDEX('Damage costs'!$O$16:$O$43,MATCH($B64,'Damage costs'!$C$16:$C$43,0))/1000,BQ56*INDEX('Damage costs'!$S$16:$S$43,MATCH($B64,'Damage costs'!$C$16:$C$43,0))/1000),\"\")","v":""},{"$f":"IFERROR(IF(OR($C$67=FALSE,LEFT($B64,3)<>\"NOX\"),BR56*INDEX('Damage costs'!$O$16:$O$43,MATCH($B64,'Damage costs'!$C$16:$C$43,0))/1000,BR56*INDEX('Damage costs'!$S$16:$S$43,MATCH($B64,'Damage costs'!$C$16:$C$43,0))/1000),\"\")","v":""},{"$f":"IFERROR(IF(OR($C$67=FALSE,LEFT($B64,3)<>\"NOX\"),BS56*INDEX('Damage costs'!$O$16:$O$43,MATCH($B64,'Damage costs'!$C$16:$C$43,0))/1000,BS56*INDEX('Damage costs'!$S$16:$S$43,MATCH($B64,'Damage costs'!$C$16:$C$43,0))/1000),\"\")","v":""},{"$f":"IFERROR(IF(OR($C$67=FALSE,LEFT($B64,3)<>\"NOX\"),BT56*INDEX('Damage costs'!$O$16:$O$43,MATCH($B64,'Damage costs'!$C$16:$C$43,0))/1000,BT56*INDEX('Damage costs'!$S$16:$S$43,MATCH($B64,'Damage costs'!$C$16:$C$43,0))/1000),\"\")","v":""},{"$f":"IFERROR(IF(OR($C$67=FALSE,LEFT($B64,3)<>\"NOX\"),BU56*INDEX('Damage costs'!$O$16:$O$43,MATCH($B64,'Damage costs'!$C$16:$C$43,0))/1000,BU56*INDEX('Damage costs'!$S$16:$S$43,MATCH($B64,'Damage costs'!$C$16:$C$43,0))/1000),\"\")","v":""},{"$f":"IFERROR(IF(OR($C$67=FALSE,LEFT($B64,3)<>\"NOX\"),BV56*INDEX('Damage costs'!$O$16:$O$43,MATCH($B64,'Damage costs'!$C$16:$C$43,0))/1000,BV56*INDEX('Damage costs'!$S$16:$S$43,MATCH($B64,'Damage costs'!$C$16:$C$43,0))/1000),\"\")","v":""},{"$f":"IFERROR(IF(OR($C$67=FALSE,LEFT($B64,3)<>\"NOX\"),BW56*INDEX('Damage costs'!$O$16:$O$43,MATCH($B64,'Damage costs'!$C$16:$C$43,0))/1000,BW56*INDEX('Damage costs'!$S$16:$S$43,MATCH($B64,'Damage costs'!$C$16:$C$43,0))/1000),\"\")","v":""},{"$f":"IFERROR(IF(OR($C$67=FALSE,LEFT($B64,3)<>\"NOX\"),BX56*INDEX('Damage costs'!$O$16:$O$43,MATCH($B64,'Damage costs'!$C$16:$C$43,0))/1000,BX56*INDEX('Damage costs'!$S$16:$S$43,MATCH($B64,'Damage costs'!$C$16:$C$43,0))/1000),\"\")","v":""},{"$f":"IFERROR(IF(OR($C$67=FALSE,LEFT($B64,3)<>\"NOX\"),BY56*INDEX('Damage costs'!$O$16:$O$43,MATCH($B64,'Damage costs'!$C$16:$C$43,0))/1000,BY56*INDEX('Damage costs'!$S$16:$S$43,MATCH($B64,'Damage costs'!$C$16:$C$43,0))/1000),\"\")","v":""},{"$f":"IFERROR(IF(OR($C$67=FALSE,LEFT($B64,3)<>\"NOX\"),BZ56*INDEX('Damage costs'!$O$16:$O$43,MATCH($B64,'Damage costs'!$C$16:$C$43,0))/1000,BZ56*INDEX('Damage costs'!$S$16:$S$43,MATCH($B64,'Damage costs'!$C$16:$C$43,0))/1000),\"\")","v":""},{"$f":"IFERROR(IF(OR($C$67=FALSE,LEFT($B64,3)<>\"NOX\"),CA56*INDEX('Damage costs'!$O$16:$O$43,MATCH($B64,'Damage costs'!$C$16:$C$43,0))/1000,CA56*INDEX('Damage costs'!$S$16:$S$43,MATCH($B64,'Damage costs'!$C$16:$C$43,0))/1000),\"\")","v":""},{"$f":"IFERROR(IF(OR($C$67=FALSE,LEFT($B64,3)<>\"NOX\"),CB56*INDEX('Damage costs'!$O$16:$O$43,MATCH($B64,'Damage costs'!$C$16:$C$43,0))/1000,CB56*INDEX('Damage costs'!$S$16:$S$43,MATCH($B64,'Damage costs'!$C$16:$C$43,0))/1000),\"\")","v":""},{"$f":"IFERROR(IF(OR($C$67=FALSE,LEFT($B64,3)<>\"NOX\"),CC56*INDEX('Damage costs'!$O$16:$O$43,MATCH($B64,'Damage costs'!$C$16:$C$43,0))/1000,CC56*INDEX('Damage costs'!$S$16:$S$43,MATCH($B64,'Damage costs'!$C$16:$C$43,0))/1000),\"\")","v":""},{"$f":"IFERROR(IF(OR($C$67=FALSE,LEFT($B64,3)<>\"NOX\"),CD56*INDEX('Damage costs'!$O$16:$O$43,MATCH($B64,'Damage costs'!$C$16:$C$43,0))/1000,CD56*INDEX('Damage costs'!$S$16:$S$43,MATCH($B64,'Damage costs'!$C$16:$C$43,0))/1000),\"\")","v":""},{"$f":"IFERROR(IF(OR($C$67=FALSE,LEFT($B64,3)<>\"NOX\"),CE56*INDEX('Damage costs'!$O$16:$O$43,MATCH($B64,'Damage costs'!$C$16:$C$43,0))/1000,CE56*INDEX('Damage costs'!$S$16:$S$43,MATCH($B64,'Damage costs'!$C$16:$C$43,0))/1000),\"\")","v":""},{"$f":"IFERROR(IF(OR($C$67=FALSE,LEFT($B64,3)<>\"NOX\"),CF56*INDEX('Damage costs'!$O$16:$O$43,MATCH($B64,'Damage costs'!$C$16:$C$43,0))/1000,CF56*INDEX('Damage costs'!$S$16:$S$43,MATCH($B64,'Damage costs'!$C$16:$C$43,0))/1000),\"\")","v":""},{"$f":"IFERROR(IF(OR($C$67=FALSE,LEFT($B64,3)<>\"NOX\"),CG56*INDEX('Damage costs'!$O$16:$O$43,MATCH($B64,'Damage costs'!$C$16:$C$43,0))/1000,CG56*INDEX('Damage costs'!$S$16:$S$43,MATCH($B64,'Damage costs'!$C$16:$C$43,0))/1000),\"\")","v":""},{"$f":"IFERROR(IF(OR($C$67=FALSE,LEFT($B64,3)<>\"NOX\"),CH56*INDEX('Damage costs'!$O$16:$O$43,MATCH($B64,'Damage costs'!$C$16:$C$43,0))/1000,CH56*INDEX('Damage costs'!$S$16:$S$43,MATCH($B64,'Damage costs'!$C$16:$C$43,0))/1000),\"\")","v":""},{"$f":"IFERROR(IF(OR($C$67=FALSE,LEFT($B64,3)<>\"NOX\"),CI56*INDEX('Damage costs'!$O$16:$O$43,MATCH($B64,'Damage costs'!$C$16:$C$43,0))/1000,CI56*INDEX('Damage costs'!$S$16:$S$43,MATCH($B64,'Damage costs'!$C$16:$C$43,0))/1000),\"\")","v":""},{"$f":"IFERROR(IF(OR($C$67=FALSE,LEFT($B64,3)<>\"NOX\"),CJ56*INDEX('Damage costs'!$O$16:$O$43,MATCH($B64,'Damage costs'!$C$16:$C$43,0))/1000,CJ56*INDEX('Damage costs'!$S$16:$S$43,MATCH($B64,'Damage costs'!$C$16:$C$43,0))/1000),\"\")","v":""},{"$f":"IFERROR(IF(OR($C$67=FALSE,LEFT($B64,3)<>\"NOX\"),CK56*INDEX('Damage costs'!$O$16:$O$43,MATCH($B64,'Damage costs'!$C$16:$C$43,0))/1000,CK56*INDEX('Damage costs'!$S$16:$S$43,MATCH($B64,'Damage costs'!$C$16:$C$43,0))/1000),\"\")","v":""},{"$f":"IFERROR(IF(OR($C$67=FALSE,LEFT($B64,3)<>\"NOX\"),CL56*INDEX('Damage costs'!$O$16:$O$43,MATCH($B64,'Damage costs'!$C$16:$C$43,0))/1000,CL56*INDEX('Damage costs'!$S$16:$S$43,MATCH($B64,'Damage costs'!$C$16:$C$43,0))/1000),\"\")","v":""},{"$f":"IFERROR(IF(OR($C$67=FALSE,LEFT($B64,3)<>\"NOX\"),CM56*INDEX('Damage costs'!$O$16:$O$43,MATCH($B64,'Damage costs'!$C$16:$C$43,0))/1000,CM56*INDEX('Damage costs'!$S$16:$S$43,MATCH($B64,'Damage costs'!$C$16:$C$43,0))/1000),\"\")","v":""},{"$f":"IFERROR(IF(OR($C$67=FALSE,LEFT($B64,3)<>\"NOX\"),CN56*INDEX('Damage costs'!$O$16:$O$43,MATCH($B64,'Damage costs'!$C$16:$C$43,0))/1000,CN56*INDEX('Damage costs'!$S$16:$S$43,MATCH($B64,'Damage costs'!$C$16:$C$43,0))/1000),\"\")","v":""},{"$f":"IFERROR(IF(OR($C$67=FALSE,LEFT($B64,3)<>\"NOX\"),CO56*INDEX('Damage costs'!$O$16:$O$43,MATCH($B64,'Damage costs'!$C$16:$C$43,0))/1000,CO56*INDEX('Damage costs'!$S$16:$S$43,MATCH($B64,'Damage costs'!$C$16:$C$43,0))/1000),\"\")","v":""},{"$f":"IFERROR(IF(OR($C$67=FALSE,LEFT($B64,3)<>\"NOX\"),CP56*INDEX('Damage costs'!$O$16:$O$43,MATCH($B64,'Damage costs'!$C$16:$C$43,0))/1000,CP56*INDEX('Damage costs'!$S$16:$S$43,MATCH($B64,'Damage costs'!$C$16:$C$43,0))/1000),\"\")","v":""},{"$f":"IFERROR(IF(OR($C$67=FALSE,LEFT($B64,3)<>\"NOX\"),CQ56*INDEX('Damage costs'!$O$16:$O$43,MATCH($B64,'Damage costs'!$C$16:$C$43,0))/1000,CQ56*INDEX('Damage costs'!$S$16:$S$43,MATCH($B64,'Damage costs'!$C$16:$C$43,0))/1000),\"\")","v":""},{"$f":"IFERROR(IF(OR($C$67=FALSE,LEFT($B64,3)<>\"NOX\"),CR56*INDEX('Damage costs'!$O$16:$O$43,MATCH($B64,'Damage costs'!$C$16:$C$43,0))/1000,CR56*INDEX('Damage costs'!$S$16:$S$43,MATCH($B64,'Damage costs'!$C$16:$C$43,0))/1000),\"\")","v":""},{"$f":"IFERROR(IF(OR($C$67=FALSE,LEFT($B64,3)<>\"NOX\"),CS56*INDEX('Damage costs'!$O$16:$O$43,MATCH($B64,'Damage costs'!$C$16:$C$43,0))/1000,CS56*INDEX('Damage costs'!$S$16:$S$43,MATCH($B64,'Damage costs'!$C$16:$C$43,0))/1000),\"\")","v":""},{"$f":"IFERROR(IF(OR($C$67=FALSE,LEFT($B64,3)<>\"NOX\"),CT56*INDEX('Damage costs'!$O$16:$O$43,MATCH($B64,'Damage costs'!$C$16:$C$43,0))/1000,CT56*INDEX('Damage costs'!$S$16:$S$43,MATCH($B64,'Damage costs'!$C$16:$C$43,0))/1000),\"\")","v":""},{"$f":"IFERROR(IF(OR($C$67=FALSE,LEFT($B64,3)<>\"NOX\"),CU56*INDEX('Damage costs'!$O$16:$O$43,MATCH($B64,'Damage costs'!$C$16:$C$43,0))/1000,CU56*INDEX('Damage costs'!$S$16:$S$43,MATCH($B64,'Damage costs'!$C$16:$C$43,0))/1000),\"\")","v":""},{"$f":"IFERROR(IF(OR($C$67=FALSE,LEFT($B64,3)<>\"NOX\"),CV56*INDEX('Damage costs'!$O$16:$O$43,MATCH($B64,'Damage costs'!$C$16:$C$43,0))/1000,CV56*INDEX('Damage costs'!$S$16:$S$43,MATCH($B64,'Damage costs'!$C$16:$C$43,0))/1000),\"\")","v":""},{"$f":"IFERROR(IF(OR($C$67=FALSE,LEFT($B64,3)<>\"NOX\"),CW56*INDEX('Damage costs'!$O$16:$O$43,MATCH($B64,'Damage costs'!$C$16:$C$43,0))/1000,CW56*INDEX('Damage costs'!$S$16:$S$43,MATCH($B64,'Damage costs'!$C$16:$C$43,0))/1000),\"\")","v":""},{"$f":"IFERROR(IF(OR($C$67=FALSE,LEFT($B64,3)<>\"NOX\"),CX56*INDEX('Damage costs'!$O$16:$O$43,MATCH($B64,'Damage costs'!$C$16:$C$43,0))/1000,CX56*INDEX('Damage costs'!$S$16:$S$43,MATCH($B64,'Damage costs'!$C$16:$C$43,0))/1000),\"\")","v":""},{"$f":"IFERROR(IF(OR($C$67=FALSE,LEFT($B64,3)<>\"NOX\"),CY56*INDEX('Damage costs'!$O$16:$O$43,MATCH($B64,'Damage costs'!$C$16:$C$43,0))/1000,CY56*INDEX('Damage costs'!$S$16:$S$43,MATCH($B64,'Damage costs'!$C$16:$C$43,0))/1000),\"\")","v":""}]
[null,0,"£000's",{"$f":"IFERROR(IF(OR($C$67=FALSE,LEFT($B65,3)<>\"NOX\"),D57*INDEX('Damage costs'!$O$16:$O$43,MATCH($B65,'Damage costs'!$C$16:$C$43,0))/1000,D57*INDEX('Damage costs'!$S$16:$S$43,MATCH($B65,'Damage costs'!$C$16:$C$43,0))/1000),\"\")","v":""},{"$f":"IFERROR(IF(OR($C$67=FALSE,LEFT($B65,3)<>\"NOX\"),E57*INDEX('Damage costs'!$O$16:$O$43,MATCH($B65,'Damage costs'!$C$16:$C$43,0))/1000,E57*INDEX('Damage costs'!$S$16:$S$43,MATCH($B65,'Damage costs'!$C$16:$C$43,0))/1000),\"\")","v":""},{"$f":"IFERROR(IF(OR($C$67=FALSE,LEFT($B65,3)<>\"NOX\"),F57*INDEX('Damage costs'!$O$16:$O$43,MATCH($B65,'Damage costs'!$C$16:$C$43,0))/1000,F57*INDEX('Damage costs'!$S$16:$S$43,MATCH($B65,'Damage costs'!$C$16:$C$43,0))/1000),\"\")","v":""},{"$f":"IFERROR(IF(OR($C$67=FALSE,LEFT($B65,3)<>\"NOX\"),G57*INDEX('Damage costs'!$O$16:$O$43,MATCH($B65,'Damage costs'!$C$16:$C$43,0))/1000,G57*INDEX('Damage costs'!$S$16:$S$43,MATCH($B65,'Damage costs'!$C$16:$C$43,0))/1000),\"\")","v":""},{"$f":"IFERROR(IF(OR($C$67=FALSE,LEFT($B65,3)<>\"NOX\"),H57*INDEX('Damage costs'!$O$16:$O$43,MATCH($B65,'Damage costs'!$C$16:$C$43,0))/1000,H57*INDEX('Damage costs'!$S$16:$S$43,MATCH($B65,'Damage costs'!$C$16:$C$43,0))/1000),\"\")","v":""},{"$f":"IFERROR(IF(OR($C$67=FALSE,LEFT($B65,3)<>\"NOX\"),I57*INDEX('Damage costs'!$O$16:$O$43,MATCH($B65,'Damage costs'!$C$16:$C$43,0))/1000,I57*INDEX('Damage costs'!$S$16:$S$43,MATCH($B65,'Damage costs'!$C$16:$C$43,0))/1000),\"\")","v":""},{"$f":"IFERROR(IF(OR($C$67=FALSE,LEFT($B65,3)<>\"NOX\"),J57*INDEX('Damage costs'!$O$16:$O$43,MATCH($B65,'Damage costs'!$C$16:$C$43,0))/1000,J57*INDEX('Damage costs'!$S$16:$S$43,MATCH($B65,'Damage costs'!$C$16:$C$43,0))/1000),\"\")","v":""},{"$f":"IFERROR(IF(OR($C$67=FALSE,LEFT($B65,3)<>\"NOX\"),K57*INDEX('Damage costs'!$O$16:$O$43,MATCH($B65,'Damage costs'!$C$16:$C$43,0))/1000,K57*INDEX('Damage costs'!$S$16:$S$43,MATCH($B65,'Damage costs'!$C$16:$C$43,0))/1000),\"\")","v":""},{"$f":"IFERROR(IF(OR($C$67=FALSE,LEFT($B65,3)<>\"NOX\"),L57*INDEX('Damage costs'!$O$16:$O$43,MATCH($B65,'Damage costs'!$C$16:$C$43,0))/1000,L57*INDEX('Damage costs'!$S$16:$S$43,MATCH($B65,'Damage costs'!$C$16:$C$43,0))/1000),\"\")","v":""},{"$f":"IFERROR(IF(OR($C$67=FALSE,LEFT($B65,3)<>\"NOX\"),M57*INDEX('Damage costs'!$O$16:$O$43,MATCH($B65,'Damage costs'!$C$16:$C$43,0))/1000,M57*INDEX('Damage costs'!$S$16:$S$43,MATCH($B65,'Damage costs'!$C$16:$C$43,0))/1000),\"\")","v":""},{"$f":"IFERROR(IF(OR($C$67=FALSE,LEFT($B65,3)<>\"NOX\"),N57*INDEX('Damage costs'!$O$16:$O$43,MATCH($B65,'Damage costs'!$C$16:$C$43,0))/1000,N57*INDEX('Damage costs'!$S$16:$S$43,MATCH($B65,'Damage costs'!$C$16:$C$43,0))/1000),\"\")","v":""},{"$f":"IFERROR(IF(OR($C$67=FALSE,LEFT($B65,3)<>\"NOX\"),O57*INDEX('Damage costs'!$O$16:$O$43,MATCH($B65,'Damage costs'!$C$16:$C$43,0))/1000,O57*INDEX('Damage costs'!$S$16:$S$43,MATCH($B65,'Damage costs'!$C$16:$C$43,0))/1000),\"\")","v":""},{"$f":"IFERROR(IF(OR($C$67=FALSE,LEFT($B65,3)<>\"NOX\"),P57*INDEX('Damage costs'!$O$16:$O$43,MATCH($B65,'Damage costs'!$C$16:$C$43,0))/1000,P57*INDEX('Damage costs'!$S$16:$S$43,MATCH($B65,'Damage costs'!$C$16:$C$43,0))/1000),\"\")","v":""},{"$f":"IFERROR(IF(OR($C$67=FALSE,LEFT($B65,3)<>\"NOX\"),Q57*INDEX('Damage costs'!$O$16:$O$43,MATCH($B65,'Damage costs'!$C$16:$C$43,0))/1000,Q57*INDEX('Damage costs'!$S$16:$S$43,MATCH($B65,'Damage costs'!$C$16:$C$43,0))/1000),\"\")","v":""},{"$f":"IFERROR(IF(OR($C$67=FALSE,LEFT($B65,3)<>\"NOX\"),R57*INDEX('Damage costs'!$O$16:$O$43,MATCH($B65,'Damage costs'!$C$16:$C$43,0))/1000,R57*INDEX('Damage costs'!$S$16:$S$43,MATCH($B65,'Damage costs'!$C$16:$C$43,0))/1000),\"\")","v":""},{"$f":"IFERROR(IF(OR($C$67=FALSE,LEFT($B65,3)<>\"NOX\"),S57*INDEX('Damage costs'!$O$16:$O$43,MATCH($B65,'Damage costs'!$C$16:$C$43,0))/1000,S57*INDEX('Damage costs'!$S$16:$S$43,MATCH($B65,'Damage costs'!$C$16:$C$43,0))/1000),\"\")","v":""},{"$f":"IFERROR(IF(OR($C$67=FALSE,LEFT($B65,3)<>\"NOX\"),T57*INDEX('Damage costs'!$O$16:$O$43,MATCH($B65,'Damage costs'!$C$16:$C$43,0))/1000,T57*INDEX('Damage costs'!$S$16:$S$43,MATCH($B65,'Damage costs'!$C$16:$C$43,0))/1000),\"\")","v":""},{"$f":"IFERROR(IF(OR($C$67=FALSE,LEFT($B65,3)<>\"NOX\"),U57*INDEX('Damage costs'!$O$16:$O$43,MATCH($B65,'Damage costs'!$C$16:$C$43,0))/1000,U57*INDEX('Damage costs'!$S$16:$S$43,MATCH($B65,'Damage costs'!$C$16:$C$43,0))/1000),\"\")","v":""},{"$f":"IFERROR(IF(OR($C$67=FALSE,LEFT($B65,3)<>\"NOX\"),V57*INDEX('Damage costs'!$O$16:$O$43,MATCH($B65,'Damage costs'!$C$16:$C$43,0))/1000,V57*INDEX('Damage costs'!$S$16:$S$43,MATCH($B65,'Damage costs'!$C$16:$C$43,0))/1000),\"\")","v":""},{"$f":"IFERROR(IF(OR($C$67=FALSE,LEFT($B65,3)<>\"NOX\"),W57*INDEX('Damage costs'!$O$16:$O$43,MATCH($B65,'Damage costs'!$C$16:$C$43,0))/1000,W57*INDEX('Damage costs'!$S$16:$S$43,MATCH($B65,'Damage costs'!$C$16:$C$43,0))/1000),\"\")","v":""},{"$f":"IFERROR(IF(OR($C$67=FALSE,LEFT($B65,3)<>\"NOX\"),X57*INDEX('Damage costs'!$O$16:$O$43,MATCH($B65,'Damage costs'!$C$16:$C$43,0))/1000,X57*INDEX('Damage costs'!$S$16:$S$43,MATCH($B65,'Damage costs'!$C$16:$C$43,0))/1000),\"\")","v":""},{"$f":"IFERROR(IF(OR($C$67=FALSE,LEFT($B65,3)<>\"NOX\"),Y57*INDEX('Damage costs'!$O$16:$O$43,MATCH($B65,'Damage costs'!$C$16:$C$43,0))/1000,Y57*INDEX('Damage costs'!$S$16:$S$43,MATCH($B65,'Damage costs'!$C$16:$C$43,0))/1000),\"\")","v":""},{"$f":"IFERROR(IF(OR($C$67=FALSE,LEFT($B65,3)<>\"NOX\"),Z57*INDEX('Damage costs'!$O$16:$O$43,MATCH($B65,'Damage costs'!$C$16:$C$43,0))/1000,Z57*INDEX('Damage costs'!$S$16:$S$43,MATCH($B65,'Damage costs'!$C$16:$C$43,0))/1000),\"\")","v":""},{"$f":"IFERROR(IF(OR($C$67=FALSE,LEFT($B65,3)<>\"NOX\"),AA57*INDEX('Damage costs'!$O$16:$O$43,MATCH($B65,'Damage costs'!$C$16:$C$43,0))/1000,AA57*INDEX('Damage costs'!$S$16:$S$43,MATCH($B65,'Damage costs'!$C$16:$C$43,0))/1000),\"\")","v":""},{"$f":"IFERROR(IF(OR($C$67=FALSE,LEFT($B65,3)<>\"NOX\"),AB57*INDEX('Damage costs'!$O$16:$O$43,MATCH($B65,'Damage costs'!$C$16:$C$43,0))/1000,AB57*INDEX('Damage costs'!$S$16:$S$43,MATCH($B65,'Damage costs'!$C$16:$C$43,0))/1000),\"\")","v":""},{"$f":"IFERROR(IF(OR($C$67=FALSE,LEFT($B65,3)<>\"NOX\"),AC57*INDEX('Damage costs'!$O$16:$O$43,MATCH($B65,'Damage costs'!$C$16:$C$43,0))/1000,AC57*INDEX('Damage costs'!$S$16:$S$43,MATCH($B65,'Damage costs'!$C$16:$C$43,0))/1000),\"\")","v":""},{"$f":"IFERROR(IF(OR($C$67=FALSE,LEFT($B65,3)<>\"NOX\"),AD57*INDEX('Damage costs'!$O$16:$O$43,MATCH($B65,'Damage costs'!$C$16:$C$43,0))/1000,AD57*INDEX('Damage costs'!$S$16:$S$43,MATCH($B65,'Damage costs'!$C$16:$C$43,0))/1000),\"\")","v":""},{"$f":"IFERROR(IF(OR($C$67=FALSE,LEFT($B65,3)<>\"NOX\"),AE57*INDEX('Damage costs'!$O$16:$O$43,MATCH($B65,'Damage costs'!$C$16:$C$43,0))/1000,AE57*INDEX('Damage costs'!$S$16:$S$43,MATCH($B65,'Damage costs'!$C$16:$C$43,0))/1000),\"\")","v":""},{"$f":"IFERROR(IF(OR($C$67=FALSE,LEFT($B65,3)<>\"NOX\"),AF57*INDEX('Damage costs'!$O$16:$O$43,MATCH($B65,'Damage costs'!$C$16:$C$43,0))/1000,AF57*INDEX('Damage costs'!$S$16:$S$43,MATCH($B65,'Damage costs'!$C$16:$C$43,0))/1000),\"\")","v":""},{"$f":"IFERROR(IF(OR($C$67=FALSE,LEFT($B65,3)<>\"NOX\"),AG57*INDEX('Damage costs'!$O$16:$O$43,MATCH($B65,'Damage costs'!$C$16:$C$43,0))/1000,AG57*INDEX('Damage costs'!$S$16:$S$43,MATCH($B65,'Damage costs'!$C$16:$C$43,0))/1000),\"\")","v":""},{"$f":"IFERROR(IF(OR($C$67=FALSE,LEFT($B65,3)<>\"NOX\"),AH57*INDEX('Damage costs'!$O$16:$O$43,MATCH($B65,'Damage costs'!$C$16:$C$43,0))/1000,AH57*INDEX('Damage costs'!$S$16:$S$43,MATCH($B65,'Damage costs'!$C$16:$C$43,0))/1000),\"\")","v":""},{"$f":"IFERROR(IF(OR($C$67=FALSE,LEFT($B65,3)<>\"NOX\"),AI57*INDEX('Damage costs'!$O$16:$O$43,MATCH($B65,'Damage costs'!$C$16:$C$43,0))/1000,AI57*INDEX('Damage costs'!$S$16:$S$43,MATCH($B65,'Damage costs'!$C$16:$C$43,0))/1000),\"\")","v":""},{"$f":"IFERROR(IF(OR($C$67=FALSE,LEFT($B65,3)<>\"NOX\"),AJ57*INDEX('Damage costs'!$O$16:$O$43,MATCH($B65,'Damage costs'!$C$16:$C$43,0))/1000,AJ57*INDEX('Damage costs'!$S$16:$S$43,MATCH($B65,'Damage costs'!$C$16:$C$43,0))/1000),\"\")","v":""},{"$f":"IFERROR(IF(OR($C$67=FALSE,LEFT($B65,3)<>\"NOX\"),AK57*INDEX('Damage costs'!$O$16:$O$43,MATCH($B65,'Damage costs'!$C$16:$C$43,0))/1000,AK57*INDEX('Damage costs'!$S$16:$S$43,MATCH($B65,'Damage costs'!$C$16:$C$43,0))/1000),\"\")","v":""},{"$f":"IFERROR(IF(OR($C$67=FALSE,LEFT($B65,3)<>\"NOX\"),AL57*INDEX('Damage costs'!$O$16:$O$43,MATCH($B65,'Damage costs'!$C$16:$C$43,0))/1000,AL57*INDEX('Damage costs'!$S$16:$S$43,MATCH($B65,'Damage costs'!$C$16:$C$43,0))/1000),\"\")","v":""},{"$f":"IFERROR(IF(OR($C$67=FALSE,LEFT($B65,3)<>\"NOX\"),AM57*INDEX('Damage costs'!$O$16:$O$43,MATCH($B65,'Damage costs'!$C$16:$C$43,0))/1000,AM57*INDEX('Damage costs'!$S$16:$S$43,MATCH($B65,'Damage costs'!$C$16:$C$43,0))/1000),\"\")","v":""},{"$f":"IFERROR(IF(OR($C$67=FALSE,LEFT($B65,3)<>\"NOX\"),AN57*INDEX('Damage costs'!$O$16:$O$43,MATCH($B65,'Damage costs'!$C$16:$C$43,0))/1000,AN57*INDEX('Damage costs'!$S$16:$S$43,MATCH($B65,'Damage costs'!$C$16:$C$43,0))/1000),\"\")","v":""},{"$f":"IFERROR(IF(OR($C$67=FALSE,LEFT($B65,3)<>\"NOX\"),AO57*INDEX('Damage costs'!$O$16:$O$43,MATCH($B65,'Damage costs'!$C$16:$C$43,0))/1000,AO57*INDEX('Damage costs'!$S$16:$S$43,MATCH($B65,'Damage costs'!$C$16:$C$43,0))/1000),\"\")","v":""},{"$f":"IFERROR(IF(OR($C$67=FALSE,LEFT($B65,3)<>\"NOX\"),AP57*INDEX('Damage costs'!$O$16:$O$43,MATCH($B65,'Damage costs'!$C$16:$C$43,0))/1000,AP57*INDEX('Damage costs'!$S$16:$S$43,MATCH($B65,'Damage costs'!$C$16:$C$43,0))/1000),\"\")","v":""},{"$f":"IFERROR(IF(OR($C$67=FALSE,LEFT($B65,3)<>\"NOX\"),AQ57*INDEX('Damage costs'!$O$16:$O$43,MATCH($B65,'Damage costs'!$C$16:$C$43,0))/1000,AQ57*INDEX('Damage costs'!$S$16:$S$43,MATCH($B65,'Damage costs'!$C$16:$C$43,0))/1000),\"\")","v":""},{"$f":"IFERROR(IF(OR($C$67=FALSE,LEFT($B65,3)<>\"NOX\"),AR57*INDEX('Damage costs'!$O$16:$O$43,MATCH($B65,'Damage costs'!$C$16:$C$43,0))/1000,AR57*INDEX('Damage costs'!$S$16:$S$43,MATCH($B65,'Damage costs'!$C$16:$C$43,0))/1000),\"\")","v":""},{"$f":"IFERROR(IF(OR($C$67=FALSE,LEFT($B65,3)<>\"NOX\"),AS57*INDEX('Damage costs'!$O$16:$O$43,MATCH($B65,'Damage costs'!$C$16:$C$43,0))/1000,AS57*INDEX('Damage costs'!$S$16:$S$43,MATCH($B65,'Damage costs'!$C$16:$C$43,0))/1000),\"\")","v":""},{"$f":"IFERROR(IF(OR($C$67=FALSE,LEFT($B65,3)<>\"NOX\"),AT57*INDEX('Damage costs'!$O$16:$O$43,MATCH($B65,'Damage costs'!$C$16:$C$43,0))/1000,AT57*INDEX('Damage costs'!$S$16:$S$43,MATCH($B65,'Damage costs'!$C$16:$C$43,0))/1000),\"\")","v":""},{"$f":"IFERROR(IF(OR($C$67=FALSE,LEFT($B65,3)<>\"NOX\"),AU57*INDEX('Damage costs'!$O$16:$O$43,MATCH($B65,'Damage costs'!$C$16:$C$43,0))/1000,AU57*INDEX('Damage costs'!$S$16:$S$43,MATCH($B65,'Damage costs'!$C$16:$C$43,0))/1000),\"\")","v":""},{"$f":"IFERROR(IF(OR($C$67=FALSE,LEFT($B65,3)<>\"NOX\"),AV57*INDEX('Damage costs'!$O$16:$O$43,MATCH($B65,'Damage costs'!$C$16:$C$43,0))/1000,AV57*INDEX('Damage costs'!$S$16:$S$43,MATCH($B65,'Damage costs'!$C$16:$C$43,0))/1000),\"\")","v":""},{"$f":"IFERROR(IF(OR($C$67=FALSE,LEFT($B65,3)<>\"NOX\"),AW57*INDEX('Damage costs'!$O$16:$O$43,MATCH($B65,'Damage costs'!$C$16:$C$43,0))/1000,AW57*INDEX('Damage costs'!$S$16:$S$43,MATCH($B65,'Damage costs'!$C$16:$C$43,0))/1000),\"\")","v":""},{"$f":"IFERROR(IF(OR($C$67=FALSE,LEFT($B65,3)<>\"NOX\"),AX57*INDEX('Damage costs'!$O$16:$O$43,MATCH($B65,'Damage costs'!$C$16:$C$43,0))/1000,AX57*INDEX('Damage costs'!$S$16:$S$43,MATCH($B65,'Damage costs'!$C$16:$C$43,0))/1000),\"\")","v":""},{"$f":"IFERROR(IF(OR($C$67=FALSE,LEFT($B65,3)<>\"NOX\"),AY57*INDEX('Damage costs'!$O$16:$O$43,MATCH($B65,'Damage costs'!$C$16:$C$43,0))/1000,AY57*INDEX('Damage costs'!$S$16:$S$43,MATCH($B65,'Damage costs'!$C$16:$C$43,0))/1000),\"\")","v":""},{"$f":"IFERROR(IF(OR($C$67=FALSE,LEFT($B65,3)<>\"NOX\"),AZ57*INDEX('Damage costs'!$O$16:$O$43,MATCH($B65,'Damage costs'!$C$16:$C$43,0))/1000,AZ57*INDEX('Damage costs'!$S$16:$S$43,MATCH($B65,'Damage costs'!$C$16:$C$43,0))/1000),\"\")","v":""},{"$f":"IFERROR(IF(OR($C$67=FALSE,LEFT($B65,3)<>\"NOX\"),BA57*INDEX('Damage costs'!$O$16:$O$43,MATCH($B65,'Damage costs'!$C$16:$C$43,0))/1000,BA57*INDEX('Damage costs'!$S$16:$S$43,MATCH($B65,'Damage costs'!$C$16:$C$43,0))/1000),\"\")","v":""},{"$f":"IFERROR(IF(OR($C$67=FALSE,LEFT($B65,3)<>\"NOX\"),BB57*INDEX('Damage costs'!$O$16:$O$43,MATCH($B65,'Damage costs'!$C$16:$C$43,0))/1000,BB57*INDEX('Damage costs'!$S$16:$S$43,MATCH($B65,'Damage costs'!$C$16:$C$43,0))/1000),\"\")","v":""},{"$f":"IFERROR(IF(OR($C$67=FALSE,LEFT($B65,3)<>\"NOX\"),BC57*INDEX('Damage costs'!$O$16:$O$43,MATCH($B65,'Damage costs'!$C$16:$C$43,0))/1000,BC57*INDEX('Damage costs'!$S$16:$S$43,MATCH($B65,'Damage costs'!$C$16:$C$43,0))/1000),\"\")","v":""},{"$f":"IFERROR(IF(OR($C$67=FALSE,LEFT($B65,3)<>\"NOX\"),BD57*INDEX('Damage costs'!$O$16:$O$43,MATCH($B65,'Damage costs'!$C$16:$C$43,0))/1000,BD57*INDEX('Damage costs'!$S$16:$S$43,MATCH($B65,'Damage costs'!$C$16:$C$43,0))/1000),\"\")","v":""},{"$f":"IFERROR(IF(OR($C$67=FALSE,LEFT($B65,3)<>\"NOX\"),BE57*INDEX('Damage costs'!$O$16:$O$43,MATCH($B65,'Damage costs'!$C$16:$C$43,0))/1000,BE57*INDEX('Damage costs'!$S$16:$S$43,MATCH($B65,'Damage costs'!$C$16:$C$43,0))/1000),\"\")","v":""},{"$f":"IFERROR(IF(OR($C$67=FALSE,LEFT($B65,3)<>\"NOX\"),BF57*INDEX('Damage costs'!$O$16:$O$43,MATCH($B65,'Damage costs'!$C$16:$C$43,0))/1000,BF57*INDEX('Damage costs'!$S$16:$S$43,MATCH($B65,'Damage costs'!$C$16:$C$43,0))/1000),\"\")","v":""},{"$f":"IFERROR(IF(OR($C$67=FALSE,LEFT($B65,3)<>\"NOX\"),BG57*INDEX('Damage costs'!$O$16:$O$43,MATCH($B65,'Damage costs'!$C$16:$C$43,0))/1000,BG57*INDEX('Damage costs'!$S$16:$S$43,MATCH($B65,'Damage costs'!$C$16:$C$43,0))/1000),\"\")","v":""},{"$f":"IFERROR(IF(OR($C$67=FALSE,LEFT($B65,3)<>\"NOX\"),BH57*INDEX('Damage costs'!$O$16:$O$43,MATCH($B65,'Damage costs'!$C$16:$C$43,0))/1000,BH57*INDEX('Damage costs'!$S$16:$S$43,MATCH($B65,'Damage costs'!$C$16:$C$43,0))/1000),\"\")","v":""},{"$f":"IFERROR(IF(OR($C$67=FALSE,LEFT($B65,3)<>\"NOX\"),BI57*INDEX('Damage costs'!$O$16:$O$43,MATCH($B65,'Damage costs'!$C$16:$C$43,0))/1000,BI57*INDEX('Damage costs'!$S$16:$S$43,MATCH($B65,'Damage costs'!$C$16:$C$43,0))/1000),\"\")","v":""},{"$f":"IFERROR(IF(OR($C$67=FALSE,LEFT($B65,3)<>\"NOX\"),BJ57*INDEX('Damage costs'!$O$16:$O$43,MATCH($B65,'Damage costs'!$C$16:$C$43,0))/1000,BJ57*INDEX('Damage costs'!$S$16:$S$43,MATCH($B65,'Damage costs'!$C$16:$C$43,0))/1000),\"\")","v":""},{"$f":"IFERROR(IF(OR($C$67=FALSE,LEFT($B65,3)<>\"NOX\"),BK57*INDEX('Damage costs'!$O$16:$O$43,MATCH($B65,'Damage costs'!$C$16:$C$43,0))/1000,BK57*INDEX('Damage costs'!$S$16:$S$43,MATCH($B65,'Damage costs'!$C$16:$C$43,0))/1000),\"\")","v":""},{"$f":"IFERROR(IF(OR($C$67=FALSE,LEFT($B65,3)<>\"NOX\"),BL57*INDEX('Damage costs'!$O$16:$O$43,MATCH($B65,'Damage costs'!$C$16:$C$43,0))/1000,BL57*INDEX('Damage costs'!$S$16:$S$43,MATCH($B65,'Damage costs'!$C$16:$C$43,0))/1000),\"\")","v":""},{"$f":"IFERROR(IF(OR($C$67=FALSE,LEFT($B65,3)<>\"NOX\"),BM57*INDEX('Damage costs'!$O$16:$O$43,MATCH($B65,'Damage costs'!$C$16:$C$43,0))/1000,BM57*INDEX('Damage costs'!$S$16:$S$43,MATCH($B65,'Damage costs'!$C$16:$C$43,0))/1000),\"\")","v":""},{"$f":"IFERROR(IF(OR($C$67=FALSE,LEFT($B65,3)<>\"NOX\"),BN57*INDEX('Damage costs'!$O$16:$O$43,MATCH($B65,'Damage costs'!$C$16:$C$43,0))/1000,BN57*INDEX('Damage costs'!$S$16:$S$43,MATCH($B65,'Damage costs'!$C$16:$C$43,0))/1000),\"\")","v":""},{"$f":"IFERROR(IF(OR($C$67=FALSE,LEFT($B65,3)<>\"NOX\"),BO57*INDEX('Damage costs'!$O$16:$O$43,MATCH($B65,'Damage costs'!$C$16:$C$43,0))/1000,BO57*INDEX('Damage costs'!$S$16:$S$43,MATCH($B65,'Damage costs'!$C$16:$C$43,0))/1000),\"\")","v":""},{"$f":"IFERROR(IF(OR($C$67=FALSE,LEFT($B65,3)<>\"NOX\"),BP57*INDEX('Damage costs'!$O$16:$O$43,MATCH($B65,'Damage costs'!$C$16:$C$43,0))/1000,BP57*INDEX('Damage costs'!$S$16:$S$43,MATCH($B65,'Damage costs'!$C$16:$C$43,0))/1000),\"\")","v":""},{"$f":"IFERROR(IF(OR($C$67=FALSE,LEFT($B65,3)<>\"NOX\"),BQ57*INDEX('Damage costs'!$O$16:$O$43,MATCH($B65,'Damage costs'!$C$16:$C$43,0))/1000,BQ57*INDEX('Damage costs'!$S$16:$S$43,MATCH($B65,'Damage costs'!$C$16:$C$43,0))/1000),\"\")","v":""},{"$f":"IFERROR(IF(OR($C$67=FALSE,LEFT($B65,3)<>\"NOX\"),BR57*INDEX('Damage costs'!$O$16:$O$43,MATCH($B65,'Damage costs'!$C$16:$C$43,0))/1000,BR57*INDEX('Damage costs'!$S$16:$S$43,MATCH($B65,'Damage costs'!$C$16:$C$43,0))/1000),\"\")","v":""},{"$f":"IFERROR(IF(OR($C$67=FALSE,LEFT($B65,3)<>\"NOX\"),BS57*INDEX('Damage costs'!$O$16:$O$43,MATCH($B65,'Damage costs'!$C$16:$C$43,0))/1000,BS57*INDEX('Damage costs'!$S$16:$S$43,MATCH($B65,'Damage costs'!$C$16:$C$43,0))/1000),\"\")","v":""},{"$f":"IFERROR(IF(OR($C$67=FALSE,LEFT($B65,3)<>\"NOX\"),BT57*INDEX('Damage costs'!$O$16:$O$43,MATCH($B65,'Damage costs'!$C$16:$C$43,0))/1000,BT57*INDEX('Damage costs'!$S$16:$S$43,MATCH($B65,'Damage costs'!$C$16:$C$43,0))/1000),\"\")","v":""},{"$f":"IFERROR(IF(OR($C$67=FALSE,LEFT($B65,3)<>\"NOX\"),BU57*INDEX('Damage costs'!$O$16:$O$43,MATCH($B65,'Damage costs'!$C$16:$C$43,0))/1000,BU57*INDEX('Damage costs'!$S$16:$S$43,MATCH($B65,'Damage costs'!$C$16:$C$43,0))/1000),\"\")","v":""},{"$f":"IFERROR(IF(OR($C$67=FALSE,LEFT($B65,3)<>\"NOX\"),BV57*INDEX('Damage costs'!$O$16:$O$43,MATCH($B65,'Damage costs'!$C$16:$C$43,0))/1000,BV57*INDEX('Damage costs'!$S$16:$S$43,MATCH($B65,'Damage costs'!$C$16:$C$43,0))/1000),\"\")","v":""},{"$f":"IFERROR(IF(OR($C$67=FALSE,LEFT($B65,3)<>\"NOX\"),BW57*INDEX('Damage costs'!$O$16:$O$43,MATCH($B65,'Damage costs'!$C$16:$C$43,0))/1000,BW57*INDEX('Damage costs'!$S$16:$S$43,MATCH($B65,'Damage costs'!$C$16:$C$43,0))/1000),\"\")","v":""},{"$f":"IFERROR(IF(OR($C$67=FALSE,LEFT($B65,3)<>\"NOX\"),BX57*INDEX('Damage costs'!$O$16:$O$43,MATCH($B65,'Damage costs'!$C$16:$C$43,0))/1000,BX57*INDEX('Damage costs'!$S$16:$S$43,MATCH($B65,'Damage costs'!$C$16:$C$43,0))/1000),\"\")","v":""},{"$f":"IFERROR(IF(OR($C$67=FALSE,LEFT($B65,3)<>\"NOX\"),BY57*INDEX('Damage costs'!$O$16:$O$43,MATCH($B65,'Damage costs'!$C$16:$C$43,0))/1000,BY57*INDEX('Damage costs'!$S$16:$S$43,MATCH($B65,'Damage costs'!$C$16:$C$43,0))/1000),\"\")","v":""},{"$f":"IFERROR(IF(OR($C$67=FALSE,LEFT($B65,3)<>\"NOX\"),BZ57*INDEX('Damage costs'!$O$16:$O$43,MATCH($B65,'Damage costs'!$C$16:$C$43,0))/1000,BZ57*INDEX('Damage costs'!$S$16:$S$43,MATCH($B65,'Damage costs'!$C$16:$C$43,0))/1000),\"\")","v":""},{"$f":"IFERROR(IF(OR($C$67=FALSE,LEFT($B65,3)<>\"NOX\"),CA57*INDEX('Damage costs'!$O$16:$O$43,MATCH($B65,'Damage costs'!$C$16:$C$43,0))/1000,CA57*INDEX('Damage costs'!$S$16:$S$43,MATCH($B65,'Damage costs'!$C$16:$C$43,0))/1000),\"\")","v":""},{"$f":"IFERROR(IF(OR($C$67=FALSE,LEFT($B65,3)<>\"NOX\"),CB57*INDEX('Damage costs'!$O$16:$O$43,MATCH($B65,'Damage costs'!$C$16:$C$43,0))/1000,CB57*INDEX('Damage costs'!$S$16:$S$43,MATCH($B65,'Damage costs'!$C$16:$C$43,0))/1000),\"\")","v":""},{"$f":"IFERROR(IF(OR($C$67=FALSE,LEFT($B65,3)<>\"NOX\"),CC57*INDEX('Damage costs'!$O$16:$O$43,MATCH($B65,'Damage costs'!$C$16:$C$43,0))/1000,CC57*INDEX('Damage costs'!$S$16:$S$43,MATCH($B65,'Damage costs'!$C$16:$C$43,0))/1000),\"\")","v":""},{"$f":"IFERROR(IF(OR($C$67=FALSE,LEFT($B65,3)<>\"NOX\"),CD57*INDEX('Damage costs'!$O$16:$O$43,MATCH($B65,'Damage costs'!$C$16:$C$43,0))/1000,CD57*INDEX('Damage costs'!$S$16:$S$43,MATCH($B65,'Damage costs'!$C$16:$C$43,0))/1000),\"\")","v":""},{"$f":"IFERROR(IF(OR($C$67=FALSE,LEFT($B65,3)<>\"NOX\"),CE57*INDEX('Damage costs'!$O$16:$O$43,MATCH($B65,'Damage costs'!$C$16:$C$43,0))/1000,CE57*INDEX('Damage costs'!$S$16:$S$43,MATCH($B65,'Damage costs'!$C$16:$C$43,0))/1000),\"\")","v":""},{"$f":"IFERROR(IF(OR($C$67=FALSE,LEFT($B65,3)<>\"NOX\"),CF57*INDEX('Damage costs'!$O$16:$O$43,MATCH($B65,'Damage costs'!$C$16:$C$43,0))/1000,CF57*INDEX('Damage costs'!$S$16:$S$43,MATCH($B65,'Damage costs'!$C$16:$C$43,0))/1000),\"\")","v":""},{"$f":"IFERROR(IF(OR($C$67=FALSE,LEFT($B65,3)<>\"NOX\"),CG57*INDEX('Damage costs'!$O$16:$O$43,MATCH($B65,'Damage costs'!$C$16:$C$43,0))/1000,CG57*INDEX('Damage costs'!$S$16:$S$43,MATCH($B65,'Damage costs'!$C$16:$C$43,0))/1000),\"\")","v":""},{"$f":"IFERROR(IF(OR($C$67=FALSE,LEFT($B65,3)<>\"NOX\"),CH57*INDEX('Damage costs'!$O$16:$O$43,MATCH($B65,'Damage costs'!$C$16:$C$43,0))/1000,CH57*INDEX('Damage costs'!$S$16:$S$43,MATCH($B65,'Damage costs'!$C$16:$C$43,0))/1000),\"\")","v":""},{"$f":"IFERROR(IF(OR($C$67=FALSE,LEFT($B65,3)<>\"NOX\"),CI57*INDEX('Damage costs'!$O$16:$O$43,MATCH($B65,'Damage costs'!$C$16:$C$43,0))/1000,CI57*INDEX('Damage costs'!$S$16:$S$43,MATCH($B65,'Damage costs'!$C$16:$C$43,0))/1000),\"\")","v":""},{"$f":"IFERROR(IF(OR($C$67=FALSE,LEFT($B65,3)<>\"NOX\"),CJ57*INDEX('Damage costs'!$O$16:$O$43,MATCH($B65,'Damage costs'!$C$16:$C$43,0))/1000,CJ57*INDEX('Damage costs'!$S$16:$S$43,MATCH($B65,'Damage costs'!$C$16:$C$43,0))/1000),\"\")","v":""},{"$f":"IFERROR(IF(OR($C$67=FALSE,LEFT($B65,3)<>\"NOX\"),CK57*INDEX('Damage costs'!$O$16:$O$43,MATCH($B65,'Damage costs'!$C$16:$C$43,0))/1000,CK57*INDEX('Damage costs'!$S$16:$S$43,MATCH($B65,'Damage costs'!$C$16:$C$43,0))/1000),\"\")","v":""},{"$f":"IFERROR(IF(OR($C$67=FALSE,LEFT($B65,3)<>\"NOX\"),CL57*INDEX('Damage costs'!$O$16:$O$43,MATCH($B65,'Damage costs'!$C$16:$C$43,0))/1000,CL57*INDEX('Damage costs'!$S$16:$S$43,MATCH($B65,'Damage costs'!$C$16:$C$43,0))/1000),\"\")","v":""},{"$f":"IFERROR(IF(OR($C$67=FALSE,LEFT($B65,3)<>\"NOX\"),CM57*INDEX('Damage costs'!$O$16:$O$43,MATCH($B65,'Damage costs'!$C$16:$C$43,0))/1000,CM57*INDEX('Damage costs'!$S$16:$S$43,MATCH($B65,'Damage costs'!$C$16:$C$43,0))/1000),\"\")","v":""},{"$f":"IFERROR(IF(OR($C$67=FALSE,LEFT($B65,3)<>\"NOX\"),CN57*INDEX('Damage costs'!$O$16:$O$43,MATCH($B65,'Damage costs'!$C$16:$C$43,0))/1000,CN57*INDEX('Damage costs'!$S$16:$S$43,MATCH($B65,'Damage costs'!$C$16:$C$43,0))/1000),\"\")","v":""},{"$f":"IFERROR(IF(OR($C$67=FALSE,LEFT($B65,3)<>\"NOX\"),CO57*INDEX('Damage costs'!$O$16:$O$43,MATCH($B65,'Damage costs'!$C$16:$C$43,0))/1000,CO57*INDEX('Damage costs'!$S$16:$S$43,MATCH($B65,'Damage costs'!$C$16:$C$43,0))/1000),\"\")","v":""},{"$f":"IFERROR(IF(OR($C$67=FALSE,LEFT($B65,3)<>\"NOX\"),CP57*INDEX('Damage costs'!$O$16:$O$43,MATCH($B65,'Damage costs'!$C$16:$C$43,0))/1000,CP57*INDEX('Damage costs'!$S$16:$S$43,MATCH($B65,'Damage costs'!$C$16:$C$43,0))/1000),\"\")","v":""},{"$f":"IFERROR(IF(OR($C$67=FALSE,LEFT($B65,3)<>\"NOX\"),CQ57*INDEX('Damage costs'!$O$16:$O$43,MATCH($B65,'Damage costs'!$C$16:$C$43,0))/1000,CQ57*INDEX('Damage costs'!$S$16:$S$43,MATCH($B65,'Damage costs'!$C$16:$C$43,0))/1000),\"\")","v":""},{"$f":"IFERROR(IF(OR($C$67=FALSE,LEFT($B65,3)<>\"NOX\"),CR57*INDEX('Damage costs'!$O$16:$O$43,MATCH($B65,'Damage costs'!$C$16:$C$43,0))/1000,CR57*INDEX('Damage costs'!$S$16:$S$43,MATCH($B65,'Damage costs'!$C$16:$C$43,0))/1000),\"\")","v":""},{"$f":"IFERROR(IF(OR($C$67=FALSE,LEFT($B65,3)<>\"NOX\"),CS57*INDEX('Damage costs'!$O$16:$O$43,MATCH($B65,'Damage costs'!$C$16:$C$43,0))/1000,CS57*INDEX('Damage costs'!$S$16:$S$43,MATCH($B65,'Damage costs'!$C$16:$C$43,0))/1000),\"\")","v":""},{"$f":"IFERROR(IF(OR($C$67=FALSE,LEFT($B65,3)<>\"NOX\"),CT57*INDEX('Damage costs'!$O$16:$O$43,MATCH($B65,'Damage costs'!$C$16:$C$43,0))/1000,CT57*INDEX('Damage costs'!$S$16:$S$43,MATCH($B65,'Damage costs'!$C$16:$C$43,0))/1000),\"\")","v":""},{"$f":"IFERROR(IF(OR($C$67=FALSE,LEFT($B65,3)<>\"NOX\"),CU57*INDEX('Damage costs'!$O$16:$O$43,MATCH($B65,'Damage costs'!$C$16:$C$43,0))/1000,CU57*INDEX('Damage costs'!$S$16:$S$43,MATCH($B65,'Damage costs'!$C$16:$C$43,0))/1000),\"\")","v":""},{"$f":"IFERROR(IF(OR($C$67=FALSE,LEFT($B65,3)<>\"NOX\"),CV57*INDEX('Damage costs'!$O$16:$O$43,MATCH($B65,'Damage costs'!$C$16:$C$43,0))/1000,CV57*INDEX('Damage costs'!$S$16:$S$43,MATCH($B65,'Damage costs'!$C$16:$C$43,0))/1000),\"\")","v":""},{"$f":"IFERROR(IF(OR($C$67=FALSE,LEFT($B65,3)<>\"NOX\"),CW57*INDEX('Damage costs'!$O$16:$O$43,MATCH($B65,'Damage costs'!$C$16:$C$43,0))/1000,CW57*INDEX('Damage costs'!$S$16:$S$43,MATCH($B65,'Damage costs'!$C$16:$C$43,0))/1000),\"\")","v":""},{"$f":"IFERROR(IF(OR($C$67=FALSE,LEFT($B65,3)<>\"NOX\"),CX57*INDEX('Damage costs'!$O$16:$O$43,MATCH($B65,'Damage costs'!$C$16:$C$43,0))/1000,CX57*INDEX('Damage costs'!$S$16:$S$43,MATCH($B65,'Damage costs'!$C$16:$C$43,0))/1000),\"\")","v":""},{"$f":"IFERROR(IF(OR($C$67=FALSE,LEFT($B65,3)<>\"NOX\"),CY57*INDEX('Damage costs'!$O$16:$O$43,MATCH($B65,'Damage costs'!$C$16:$C$43,0))/1000,CY57*INDEX('Damage costs'!$S$16:$S$43,MATCH($B65,'Damage costs'!$C$16:$C$43,0))/1000),\"\")","v":""}]
[null,0,"£000's",{"$f":"IFERROR(IF(OR($C$67=FALSE,LEFT($B66,3)<>\"NOX\"),D58*INDEX('Damage costs'!$O$16:$O$43,MATCH($B66,'Damage costs'!$C$16:$C$43,0))/1000,D58*INDEX('Damage costs'!$S$16:$S$43,MATCH($B66,'Damage costs'!$C$16:$C$43,0))/1000),\"\")","v":""},{"$f":"IFERROR(IF(OR($C$67=FALSE,LEFT($B66,3)<>\"NOX\"),E58*INDEX('Damage costs'!$O$16:$O$43,MATCH($B66,'Damage costs'!$C$16:$C$43,0))/1000,E58*INDEX('Damage costs'!$S$16:$S$43,MATCH($B66,'Damage costs'!$C$16:$C$43,0))/1000),\"\")","v":""},{"$f":"IFERROR(IF(OR($C$67=FALSE,LEFT($B66,3)<>\"NOX\"),F58*INDEX('Damage costs'!$O$16:$O$43,MATCH($B66,'Damage costs'!$C$16:$C$43,0))/1000,F58*INDEX('Damage costs'!$S$16:$S$43,MATCH($B66,'Damage costs'!$C$16:$C$43,0))/1000),\"\")","v":""},{"$f":"IFERROR(IF(OR($C$67=FALSE,LEFT($B66,3)<>\"NOX\"),G58*INDEX('Damage costs'!$O$16:$O$43,MATCH($B66,'Damage costs'!$C$16:$C$43,0))/1000,G58*INDEX('Damage costs'!$S$16:$S$43,MATCH($B66,'Damage costs'!$C$16:$C$43,0))/1000),\"\")","v":""},{"$f":"IFERROR(IF(OR($C$67=FALSE,LEFT($B66,3)<>\"NOX\"),H58*INDEX('Damage costs'!$O$16:$O$43,MATCH($B66,'Damage costs'!$C$16:$C$43,0))/1000,H58*INDEX('Damage costs'!$S$16:$S$43,MATCH($B66,'Damage costs'!$C$16:$C$43,0))/1000),\"\")","v":""},{"$f":"IFERROR(IF(OR($C$67=FALSE,LEFT($B66,3)<>\"NOX\"),I58*INDEX('Damage costs'!$O$16:$O$43,MATCH($B66,'Damage costs'!$C$16:$C$43,0))/1000,I58*INDEX('Damage costs'!$S$16:$S$43,MATCH($B66,'Damage costs'!$C$16:$C$43,0))/1000),\"\")","v":""},{"$f":"IFERROR(IF(OR($C$67=FALSE,LEFT($B66,3)<>\"NOX\"),J58*INDEX('Damage costs'!$O$16:$O$43,MATCH($B66,'Damage costs'!$C$16:$C$43,0))/1000,J58*INDEX('Damage costs'!$S$16:$S$43,MATCH($B66,'Damage costs'!$C$16:$C$43,0))/1000),\"\")","v":""},{"$f":"IFERROR(IF(OR($C$67=FALSE,LEFT($B66,3)<>\"NOX\"),K58*INDEX('Damage costs'!$O$16:$O$43,MATCH($B66,'Damage costs'!$C$16:$C$43,0))/1000,K58*INDEX('Damage costs'!$S$16:$S$43,MATCH($B66,'Damage costs'!$C$16:$C$43,0))/1000),\"\")","v":""},{"$f":"IFERROR(IF(OR($C$67=FALSE,LEFT($B66,3)<>\"NOX\"),L58*INDEX('Damage costs'!$O$16:$O$43,MATCH($B66,'Damage costs'!$C$16:$C$43,0))/1000,L58*INDEX('Damage costs'!$S$16:$S$43,MATCH($B66,'Damage costs'!$C$16:$C$43,0))/1000),\"\")","v":""},{"$f":"IFERROR(IF(OR($C$67=FALSE,LEFT($B66,3)<>\"NOX\"),M58*INDEX('Damage costs'!$O$16:$O$43,MATCH($B66,'Damage costs'!$C$16:$C$43,0))/1000,M58*INDEX('Damage costs'!$S$16:$S$43,MATCH($B66,'Damage costs'!$C$16:$C$43,0))/1000),\"\")","v":""},{"$f":"IFERROR(IF(OR($C$67=FALSE,LEFT($B66,3)<>\"NOX\"),N58*INDEX('Damage costs'!$O$16:$O$43,MATCH($B66,'Damage costs'!$C$16:$C$43,0))/1000,N58*INDEX('Damage costs'!$S$16:$S$43,MATCH($B66,'Damage costs'!$C$16:$C$43,0))/1000),\"\")","v":""},{"$f":"IFERROR(IF(OR($C$67=FALSE,LEFT($B66,3)<>\"NOX\"),O58*INDEX('Damage costs'!$O$16:$O$43,MATCH($B66,'Damage costs'!$C$16:$C$43,0))/1000,O58*INDEX('Damage costs'!$S$16:$S$43,MATCH($B66,'Damage costs'!$C$16:$C$43,0))/1000),\"\")","v":""},{"$f":"IFERROR(IF(OR($C$67=FALSE,LEFT($B66,3)<>\"NOX\"),P58*INDEX('Damage costs'!$O$16:$O$43,MATCH($B66,'Damage costs'!$C$16:$C$43,0))/1000,P58*INDEX('Damage costs'!$S$16:$S$43,MATCH($B66,'Damage costs'!$C$16:$C$43,0))/1000),\"\")","v":""},{"$f":"IFERROR(IF(OR($C$67=FALSE,LEFT($B66,3)<>\"NOX\"),Q58*INDEX('Damage costs'!$O$16:$O$43,MATCH($B66,'Damage costs'!$C$16:$C$43,0))/1000,Q58*INDEX('Damage costs'!$S$16:$S$43,MATCH($B66,'Damage costs'!$C$16:$C$43,0))/1000),\"\")","v":""},{"$f":"IFERROR(IF(OR($C$67=FALSE,LEFT($B66,3)<>\"NOX\"),R58*INDEX('Damage costs'!$O$16:$O$43,MATCH($B66,'Damage costs'!$C$16:$C$43,0))/1000,R58*INDEX('Damage costs'!$S$16:$S$43,MATCH($B66,'Damage costs'!$C$16:$C$43,0))/1000),\"\")","v":""},{"$f":"IFERROR(IF(OR($C$67=FALSE,LEFT($B66,3)<>\"NOX\"),S58*INDEX('Damage costs'!$O$16:$O$43,MATCH($B66,'Damage costs'!$C$16:$C$43,0))/1000,S58*INDEX('Damage costs'!$S$16:$S$43,MATCH($B66,'Damage costs'!$C$16:$C$43,0))/1000),\"\")","v":""},{"$f":"IFERROR(IF(OR($C$67=FALSE,LEFT($B66,3)<>\"NOX\"),T58*INDEX('Damage costs'!$O$16:$O$43,MATCH($B66,'Damage costs'!$C$16:$C$43,0))/1000,T58*INDEX('Damage costs'!$S$16:$S$43,MATCH($B66,'Damage costs'!$C$16:$C$43,0))/1000),\"\")","v":""},{"$f":"IFERROR(IF(OR($C$67=FALSE,LEFT($B66,3)<>\"NOX\"),U58*INDEX('Damage costs'!$O$16:$O$43,MATCH($B66,'Damage costs'!$C$16:$C$43,0))/1000,U58*INDEX('Damage costs'!$S$16:$S$43,MATCH($B66,'Damage costs'!$C$16:$C$43,0))/1000),\"\")","v":""},{"$f":"IFERROR(IF(OR($C$67=FALSE,LEFT($B66,3)<>\"NOX\"),V58*INDEX('Damage costs'!$O$16:$O$43,MATCH($B66,'Damage costs'!$C$16:$C$43,0))/1000,V58*INDEX('Damage costs'!$S$16:$S$43,MATCH($B66,'Damage costs'!$C$16:$C$43,0))/1000),\"\")","v":""},{"$f":"IFERROR(IF(OR($C$67=FALSE,LEFT($B66,3)<>\"NOX\"),W58*INDEX('Damage costs'!$O$16:$O$43,MATCH($B66,'Damage costs'!$C$16:$C$43,0))/1000,W58*INDEX('Damage costs'!$S$16:$S$43,MATCH($B66,'Damage costs'!$C$16:$C$43,0))/1000),\"\")","v":""},{"$f":"IFERROR(IF(OR($C$67=FALSE,LEFT($B66,3)<>\"NOX\"),X58*INDEX('Damage costs'!$O$16:$O$43,MATCH($B66,'Damage costs'!$C$16:$C$43,0))/1000,X58*INDEX('Damage costs'!$S$16:$S$43,MATCH($B66,'Damage costs'!$C$16:$C$43,0))/1000),\"\")","v":""},{"$f":"IFERROR(IF(OR($C$67=FALSE,LEFT($B66,3)<>\"NOX\"),Y58*INDEX('Damage costs'!$O$16:$O$43,MATCH($B66,'Damage costs'!$C$16:$C$43,0))/1000,Y58*INDEX('Damage costs'!$S$16:$S$43,MATCH($B66,'Damage costs'!$C$16:$C$43,0))/1000),\"\")","v":""},{"$f":"IFERROR(IF(OR($C$67=FALSE,LEFT($B66,3)<>\"NOX\"),Z58*INDEX('Damage costs'!$O$16:$O$43,MATCH($B66,'Damage costs'!$C$16:$C$43,0))/1000,Z58*INDEX('Damage costs'!$S$16:$S$43,MATCH($B66,'Damage costs'!$C$16:$C$43,0))/1000),\"\")","v":""},{"$f":"IFERROR(IF(OR($C$67=FALSE,LEFT($B66,3)<>\"NOX\"),AA58*INDEX('Damage costs'!$O$16:$O$43,MATCH($B66,'Damage costs'!$C$16:$C$43,0))/1000,AA58*INDEX('Damage costs'!$S$16:$S$43,MATCH($B66,'Damage costs'!$C$16:$C$43,0))/1000),\"\")","v":""},{"$f":"IFERROR(IF(OR($C$67=FALSE,LEFT($B66,3)<>\"NOX\"),AB58*INDEX('Damage costs'!$O$16:$O$43,MATCH($B66,'Damage costs'!$C$16:$C$43,0))/1000,AB58*INDEX('Damage costs'!$S$16:$S$43,MATCH($B66,'Damage costs'!$C$16:$C$43,0))/1000),\"\")","v":""},{"$f":"IFERROR(IF(OR($C$67=FALSE,LEFT($B66,3)<>\"NOX\"),AC58*INDEX('Damage costs'!$O$16:$O$43,MATCH($B66,'Damage costs'!$C$16:$C$43,0))/1000,AC58*INDEX('Damage costs'!$S$16:$S$43,MATCH($B66,'Damage costs'!$C$16:$C$43,0))/1000),\"\")","v":""},{"$f":"IFERROR(IF(OR($C$67=FALSE,LEFT($B66,3)<>\"NOX\"),AD58*INDEX('Damage costs'!$O$16:$O$43,MATCH($B66,'Damage costs'!$C$16:$C$43,0))/1000,AD58*INDEX('Damage costs'!$S$16:$S$43,MATCH($B66,'Damage costs'!$C$16:$C$43,0))/1000),\"\")","v":""},{"$f":"IFERROR(IF(OR($C$67=FALSE,LEFT($B66,3)<>\"NOX\"),AE58*INDEX('Damage costs'!$O$16:$O$43,MATCH($B66,'Damage costs'!$C$16:$C$43,0))/1000,AE58*INDEX('Damage costs'!$S$16:$S$43,MATCH($B66,'Damage costs'!$C$16:$C$43,0))/1000),\"\")","v":""},{"$f":"IFERROR(IF(OR($C$67=FALSE,LEFT($B66,3)<>\"NOX\"),AF58*INDEX('Damage costs'!$O$16:$O$43,MATCH($B66,'Damage costs'!$C$16:$C$43,0))/1000,AF58*INDEX('Damage costs'!$S$16:$S$43,MATCH($B66,'Damage costs'!$C$16:$C$43,0))/1000),\"\")","v":""},{"$f":"IFERROR(IF(OR($C$67=FALSE,LEFT($B66,3)<>\"NOX\"),AG58*INDEX('Damage costs'!$O$16:$O$43,MATCH($B66,'Damage costs'!$C$16:$C$43,0))/1000,AG58*INDEX('Damage costs'!$S$16:$S$43,MATCH($B66,'Damage costs'!$C$16:$C$43,0))/1000),\"\")","v":""},{"$f":"IFERROR(IF(OR($C$67=FALSE,LEFT($B66,3)<>\"NOX\"),AH58*INDEX('Damage costs'!$O$16:$O$43,MATCH($B66,'Damage costs'!$C$16:$C$43,0))/1000,AH58*INDEX('Damage costs'!$S$16:$S$43,MATCH($B66,'Damage costs'!$C$16:$C$43,0))/1000),\"\")","v":""},{"$f":"IFERROR(IF(OR($C$67=FALSE,LEFT($B66,3)<>\"NOX\"),AI58*INDEX('Damage costs'!$O$16:$O$43,MATCH($B66,'Damage costs'!$C$16:$C$43,0))/1000,AI58*INDEX('Damage costs'!$S$16:$S$43,MATCH($B66,'Damage costs'!$C$16:$C$43,0))/1000),\"\")","v":""},{"$f":"IFERROR(IF(OR($C$67=FALSE,LEFT($B66,3)<>\"NOX\"),AJ58*INDEX('Damage costs'!$O$16:$O$43,MATCH($B66,'Damage costs'!$C$16:$C$43,0))/1000,AJ58*INDEX('Damage costs'!$S$16:$S$43,MATCH($B66,'Damage costs'!$C$16:$C$43,0))/1000),\"\")","v":""},{"$f":"IFERROR(IF(OR($C$67=FALSE,LEFT($B66,3)<>\"NOX\"),AK58*INDEX('Damage costs'!$O$16:$O$43,MATCH($B66,'Damage costs'!$C$16:$C$43,0))/1000,AK58*INDEX('Damage costs'!$S$16:$S$43,MATCH($B66,'Damage costs'!$C$16:$C$43,0))/1000),\"\")","v":""},{"$f":"IFERROR(IF(OR($C$67=FALSE,LEFT($B66,3)<>\"NOX\"),AL58*INDEX('Damage costs'!$O$16:$O$43,MATCH($B66,'Damage costs'!$C$16:$C$43,0))/1000,AL58*INDEX('Damage costs'!$S$16:$S$43,MATCH($B66,'Damage costs'!$C$16:$C$43,0))/1000),\"\")","v":""},{"$f":"IFERROR(IF(OR($C$67=FALSE,LEFT($B66,3)<>\"NOX\"),AM58*INDEX('Damage costs'!$O$16:$O$43,MATCH($B66,'Damage costs'!$C$16:$C$43,0))/1000,AM58*INDEX('Damage costs'!$S$16:$S$43,MATCH($B66,'Damage costs'!$C$16:$C$43,0))/1000),\"\")","v":""},{"$f":"IFERROR(IF(OR($C$67=FALSE,LEFT($B66,3)<>\"NOX\"),AN58*INDEX('Damage costs'!$O$16:$O$43,MATCH($B66,'Damage costs'!$C$16:$C$43,0))/1000,AN58*INDEX('Damage costs'!$S$16:$S$43,MATCH($B66,'Damage costs'!$C$16:$C$43,0))/1000),\"\")","v":""},{"$f":"IFERROR(IF(OR($C$67=FALSE,LEFT($B66,3)<>\"NOX\"),AO58*INDEX('Damage costs'!$O$16:$O$43,MATCH($B66,'Damage costs'!$C$16:$C$43,0))/1000,AO58*INDEX('Damage costs'!$S$16:$S$43,MATCH($B66,'Damage costs'!$C$16:$C$43,0))/1000),\"\")","v":""},{"$f":"IFERROR(IF(OR($C$67=FALSE,LEFT($B66,3)<>\"NOX\"),AP58*INDEX('Damage costs'!$O$16:$O$43,MATCH($B66,'Damage costs'!$C$16:$C$43,0))/1000,AP58*INDEX('Damage costs'!$S$16:$S$43,MATCH($B66,'Damage costs'!$C$16:$C$43,0))/1000),\"\")","v":""},{"$f":"IFERROR(IF(OR($C$67=FALSE,LEFT($B66,3)<>\"NOX\"),AQ58*INDEX('Damage costs'!$O$16:$O$43,MATCH($B66,'Damage costs'!$C$16:$C$43,0))/1000,AQ58*INDEX('Damage costs'!$S$16:$S$43,MATCH($B66,'Damage costs'!$C$16:$C$43,0))/1000),\"\")","v":""},{"$f":"IFERROR(IF(OR($C$67=FALSE,LEFT($B66,3)<>\"NOX\"),AR58*INDEX('Damage costs'!$O$16:$O$43,MATCH($B66,'Damage costs'!$C$16:$C$43,0))/1000,AR58*INDEX('Damage costs'!$S$16:$S$43,MATCH($B66,'Damage costs'!$C$16:$C$43,0))/1000),\"\")","v":""},{"$f":"IFERROR(IF(OR($C$67=FALSE,LEFT($B66,3)<>\"NOX\"),AS58*INDEX('Damage costs'!$O$16:$O$43,MATCH($B66,'Damage costs'!$C$16:$C$43,0))/1000,AS58*INDEX('Damage costs'!$S$16:$S$43,MATCH($B66,'Damage costs'!$C$16:$C$43,0))/1000),\"\")","v":""},{"$f":"IFERROR(IF(OR($C$67=FALSE,LEFT($B66,3)<>\"NOX\"),AT58*INDEX('Damage costs'!$O$16:$O$43,MATCH($B66,'Damage costs'!$C$16:$C$43,0))/1000,AT58*INDEX('Damage costs'!$S$16:$S$43,MATCH($B66,'Damage costs'!$C$16:$C$43,0))/1000),\"\")","v":""},{"$f":"IFERROR(IF(OR($C$67=FALSE,LEFT($B66,3)<>\"NOX\"),AU58*INDEX('Damage costs'!$O$16:$O$43,MATCH($B66,'Damage costs'!$C$16:$C$43,0))/1000,AU58*INDEX('Damage costs'!$S$16:$S$43,MATCH($B66,'Damage costs'!$C$16:$C$43,0))/1000),\"\")","v":""},{"$f":"IFERROR(IF(OR($C$67=FALSE,LEFT($B66,3)<>\"NOX\"),AV58*INDEX('Damage costs'!$O$16:$O$43,MATCH($B66,'Damage costs'!$C$16:$C$43,0))/1000,AV58*INDEX('Damage costs'!$S$16:$S$43,MATCH($B66,'Damage costs'!$C$16:$C$43,0))/1000),\"\")","v":""},{"$f":"IFERROR(IF(OR($C$67=FALSE,LEFT($B66,3)<>\"NOX\"),AW58*INDEX('Damage costs'!$O$16:$O$43,MATCH($B66,'Damage costs'!$C$16:$C$43,0))/1000,AW58*INDEX('Damage costs'!$S$16:$S$43,MATCH($B66,'Damage costs'!$C$16:$C$43,0))/1000),\"\")","v":""},{"$f":"IFERROR(IF(OR($C$67=FALSE,LEFT($B66,3)<>\"NOX\"),AX58*INDEX('Damage costs'!$O$16:$O$43,MATCH($B66,'Damage costs'!$C$16:$C$43,0))/1000,AX58*INDEX('Damage costs'!$S$16:$S$43,MATCH($B66,'Damage costs'!$C$16:$C$43,0))/1000),\"\")","v":""},{"$f":"IFERROR(IF(OR($C$67=FALSE,LEFT($B66,3)<>\"NOX\"),AY58*INDEX('Damage costs'!$O$16:$O$43,MATCH($B66,'Damage costs'!$C$16:$C$43,0))/1000,AY58*INDEX('Damage costs'!$S$16:$S$43,MATCH($B66,'Damage costs'!$C$16:$C$43,0))/1000),\"\")","v":""},{"$f":"IFERROR(IF(OR($C$67=FALSE,LEFT($B66,3)<>\"NOX\"),AZ58*INDEX('Damage costs'!$O$16:$O$43,MATCH($B66,'Damage costs'!$C$16:$C$43,0))/1000,AZ58*INDEX('Damage costs'!$S$16:$S$43,MATCH($B66,'Damage costs'!$C$16:$C$43,0))/1000),\"\")","v":""},{"$f":"IFERROR(IF(OR($C$67=FALSE,LEFT($B66,3)<>\"NOX\"),BA58*INDEX('Damage costs'!$O$16:$O$43,MATCH($B66,'Damage costs'!$C$16:$C$43,0))/1000,BA58*INDEX('Damage costs'!$S$16:$S$43,MATCH($B66,'Damage costs'!$C$16:$C$43,0))/1000),\"\")","v":""},{"$f":"IFERROR(IF(OR($C$67=FALSE,LEFT($B66,3)<>\"NOX\"),BB58*INDEX('Damage costs'!$O$16:$O$43,MATCH($B66,'Damage costs'!$C$16:$C$43,0))/1000,BB58*INDEX('Damage costs'!$S$16:$S$43,MATCH($B66,'Damage costs'!$C$16:$C$43,0))/1000),\"\")","v":""},{"$f":"IFERROR(IF(OR($C$67=FALSE,LEFT($B66,3)<>\"NOX\"),BC58*INDEX('Damage costs'!$O$16:$O$43,MATCH($B66,'Damage costs'!$C$16:$C$43,0))/1000,BC58*INDEX('Damage costs'!$S$16:$S$43,MATCH($B66,'Damage costs'!$C$16:$C$43,0))/1000),\"\")","v":""},{"$f":"IFERROR(IF(OR($C$67=FALSE,LEFT($B66,3)<>\"NOX\"),BD58*INDEX('Damage costs'!$O$16:$O$43,MATCH($B66,'Damage costs'!$C$16:$C$43,0))/1000,BD58*INDEX('Damage costs'!$S$16:$S$43,MATCH($B66,'Damage costs'!$C$16:$C$43,0))/1000),\"\")","v":""},{"$f":"IFERROR(IF(OR($C$67=FALSE,LEFT($B66,3)<>\"NOX\"),BE58*INDEX('Damage costs'!$O$16:$O$43,MATCH($B66,'Damage costs'!$C$16:$C$43,0))/1000,BE58*INDEX('Damage costs'!$S$16:$S$43,MATCH($B66,'Damage costs'!$C$16:$C$43,0))/1000),\"\")","v":""},{"$f":"IFERROR(IF(OR($C$67=FALSE,LEFT($B66,3)<>\"NOX\"),BF58*INDEX('Damage costs'!$O$16:$O$43,MATCH($B66,'Damage costs'!$C$16:$C$43,0))/1000,BF58*INDEX('Damage costs'!$S$16:$S$43,MATCH($B66,'Damage costs'!$C$16:$C$43,0))/1000),\"\")","v":""},{"$f":"IFERROR(IF(OR($C$67=FALSE,LEFT($B66,3)<>\"NOX\"),BG58*INDEX('Damage costs'!$O$16:$O$43,MATCH($B66,'Damage costs'!$C$16:$C$43,0))/1000,BG58*INDEX('Damage costs'!$S$16:$S$43,MATCH($B66,'Damage costs'!$C$16:$C$43,0))/1000),\"\")","v":""},{"$f":"IFERROR(IF(OR($C$67=FALSE,LEFT($B66,3)<>\"NOX\"),BH58*INDEX('Damage costs'!$O$16:$O$43,MATCH($B66,'Damage costs'!$C$16:$C$43,0))/1000,BH58*INDEX('Damage costs'!$S$16:$S$43,MATCH($B66,'Damage costs'!$C$16:$C$43,0))/1000),\"\")","v":""},{"$f":"IFERROR(IF(OR($C$67=FALSE,LEFT($B66,3)<>\"NOX\"),BI58*INDEX('Damage costs'!$O$16:$O$43,MATCH($B66,'Damage costs'!$C$16:$C$43,0))/1000,BI58*INDEX('Damage costs'!$S$16:$S$43,MATCH($B66,'Damage costs'!$C$16:$C$43,0))/1000),\"\")","v":""},{"$f":"IFERROR(IF(OR($C$67=FALSE,LEFT($B66,3)<>\"NOX\"),BJ58*INDEX('Damage costs'!$O$16:$O$43,MATCH($B66,'Damage costs'!$C$16:$C$43,0))/1000,BJ58*INDEX('Damage costs'!$S$16:$S$43,MATCH($B66,'Damage costs'!$C$16:$C$43,0))/1000),\"\")","v":""},{"$f":"IFERROR(IF(OR($C$67=FALSE,LEFT($B66,3)<>\"NOX\"),BK58*INDEX('Damage costs'!$O$16:$O$43,MATCH($B66,'Damage costs'!$C$16:$C$43,0))/1000,BK58*INDEX('Damage costs'!$S$16:$S$43,MATCH($B66,'Damage costs'!$C$16:$C$43,0))/1000),\"\")","v":""},{"$f":"IFERROR(IF(OR($C$67=FALSE,LEFT($B66,3)<>\"NOX\"),BL58*INDEX('Damage costs'!$O$16:$O$43,MATCH($B66,'Damage costs'!$C$16:$C$43,0))/1000,BL58*INDEX('Damage costs'!$S$16:$S$43,MATCH($B66,'Damage costs'!$C$16:$C$43,0))/1000),\"\")","v":""},{"$f":"IFERROR(IF(OR($C$67=FALSE,LEFT($B66,3)<>\"NOX\"),BM58*INDEX('Damage costs'!$O$16:$O$43,MATCH($B66,'Damage costs'!$C$16:$C$43,0))/1000,BM58*INDEX('Damage costs'!$S$16:$S$43,MATCH($B66,'Damage costs'!$C$16:$C$43,0))/1000),\"\")","v":""},{"$f":"IFERROR(IF(OR($C$67=FALSE,LEFT($B66,3)<>\"NOX\"),BN58*INDEX('Damage costs'!$O$16:$O$43,MATCH($B66,'Damage costs'!$C$16:$C$43,0))/1000,BN58*INDEX('Damage costs'!$S$16:$S$43,MATCH($B66,'Damage costs'!$C$16:$C$43,0))/1000),\"\")","v":""},{"$f":"IFERROR(IF(OR($C$67=FALSE,LEFT($B66,3)<>\"NOX\"),BO58*INDEX('Damage costs'!$O$16:$O$43,MATCH($B66,'Damage costs'!$C$16:$C$43,0))/1000,BO58*INDEX('Damage costs'!$S$16:$S$43,MATCH($B66,'Damage costs'!$C$16:$C$43,0))/1000),\"\")","v":""},{"$f":"IFERROR(IF(OR($C$67=FALSE,LEFT($B66,3)<>\"NOX\"),BP58*INDEX('Damage costs'!$O$16:$O$43,MATCH($B66,'Damage costs'!$C$16:$C$43,0))/1000,BP58*INDEX('Damage costs'!$S$16:$S$43,MATCH($B66,'Damage costs'!$C$16:$C$43,0))/1000),\"\")","v":""},{"$f":"IFERROR(IF(OR($C$67=FALSE,LEFT($B66,3)<>\"NOX\"),BQ58*INDEX('Damage costs'!$O$16:$O$43,MATCH($B66,'Damage costs'!$C$16:$C$43,0))/1000,BQ58*INDEX('Damage costs'!$S$16:$S$43,MATCH($B66,'Damage costs'!$C$16:$C$43,0))/1000),\"\")","v":""},{"$f":"IFERROR(IF(OR($C$67=FALSE,LEFT($B66,3)<>\"NOX\"),BR58*INDEX('Damage costs'!$O$16:$O$43,MATCH($B66,'Damage costs'!$C$16:$C$43,0))/1000,BR58*INDEX('Damage costs'!$S$16:$S$43,MATCH($B66,'Damage costs'!$C$16:$C$43,0))/1000),\"\")","v":""},{"$f":"IFERROR(IF(OR($C$67=FALSE,LEFT($B66,3)<>\"NOX\"),BS58*INDEX('Damage costs'!$O$16:$O$43,MATCH($B66,'Damage costs'!$C$16:$C$43,0))/1000,BS58*INDEX('Damage costs'!$S$16:$S$43,MATCH($B66,'Damage costs'!$C$16:$C$43,0))/1000),\"\")","v":""},{"$f":"IFERROR(IF(OR($C$67=FALSE,LEFT($B66,3)<>\"NOX\"),BT58*INDEX('Damage costs'!$O$16:$O$43,MATCH($B66,'Damage costs'!$C$16:$C$43,0))/1000,BT58*INDEX('Damage costs'!$S$16:$S$43,MATCH($B66,'Damage costs'!$C$16:$C$43,0))/1000),\"\")","v":""},{"$f":"IFERROR(IF(OR($C$67=FALSE,LEFT($B66,3)<>\"NOX\"),BU58*INDEX('Damage costs'!$O$16:$O$43,MATCH($B66,'Damage costs'!$C$16:$C$43,0))/1000,BU58*INDEX('Damage costs'!$S$16:$S$43,MATCH($B66,'Damage costs'!$C$16:$C$43,0))/1000),\"\")","v":""},{"$f":"IFERROR(IF(OR($C$67=FALSE,LEFT($B66,3)<>\"NOX\"),BV58*INDEX('Damage costs'!$O$16:$O$43,MATCH($B66,'Damage costs'!$C$16:$C$43,0))/1000,BV58*INDEX('Damage costs'!$S$16:$S$43,MATCH($B66,'Damage costs'!$C$16:$C$43,0))/1000),\"\")","v":""},{"$f":"IFERROR(IF(OR($C$67=FALSE,LEFT($B66,3)<>\"NOX\"),BW58*INDEX('Damage costs'!$O$16:$O$43,MATCH($B66,'Damage costs'!$C$16:$C$43,0))/1000,BW58*INDEX('Damage costs'!$S$16:$S$43,MATCH($B66,'Damage costs'!$C$16:$C$43,0))/1000),\"\")","v":""},{"$f":"IFERROR(IF(OR($C$67=FALSE,LEFT($B66,3)<>\"NOX\"),BX58*INDEX('Damage costs'!$O$16:$O$43,MATCH($B66,'Damage costs'!$C$16:$C$43,0))/1000,BX58*INDEX('Damage costs'!$S$16:$S$43,MATCH($B66,'Damage costs'!$C$16:$C$43,0))/1000),\"\")","v":""},{"$f":"IFERROR(IF(OR($C$67=FALSE,LEFT($B66,3)<>\"NOX\"),BY58*INDEX('Damage costs'!$O$16:$O$43,MATCH($B66,'Damage costs'!$C$16:$C$43,0))/1000,BY58*INDEX('Damage costs'!$S$16:$S$43,MATCH($B66,'Damage costs'!$C$16:$C$43,0))/1000),\"\")","v":""},{"$f":"IFERROR(IF(OR($C$67=FALSE,LEFT($B66,3)<>\"NOX\"),BZ58*INDEX('Damage costs'!$O$16:$O$43,MATCH($B66,'Damage costs'!$C$16:$C$43,0))/1000,BZ58*INDEX('Damage costs'!$S$16:$S$43,MATCH($B66,'Damage costs'!$C$16:$C$43,0))/1000),\"\")","v":""},{"$f":"IFERROR(IF(OR($C$67=FALSE,LEFT($B66,3)<>\"NOX\"),CA58*INDEX('Damage costs'!$O$16:$O$43,MATCH($B66,'Damage costs'!$C$16:$C$43,0))/1000,CA58*INDEX('Damage costs'!$S$16:$S$43,MATCH($B66,'Damage costs'!$C$16:$C$43,0))/1000),\"\")","v":""},{"$f":"IFERROR(IF(OR($C$67=FALSE,LEFT($B66,3)<>\"NOX\"),CB58*INDEX('Damage costs'!$O$16:$O$43,MATCH($B66,'Damage costs'!$C$16:$C$43,0))/1000,CB58*INDEX('Damage costs'!$S$16:$S$43,MATCH($B66,'Damage costs'!$C$16:$C$43,0))/1000),\"\")","v":""},{"$f":"IFERROR(IF(OR($C$67=FALSE,LEFT($B66,3)<>\"NOX\"),CC58*INDEX('Damage costs'!$O$16:$O$43,MATCH($B66,'Damage costs'!$C$16:$C$43,0))/1000,CC58*INDEX('Damage costs'!$S$16:$S$43,MATCH($B66,'Damage costs'!$C$16:$C$43,0))/1000),\"\")","v":""},{"$f":"IFERROR(IF(OR($C$67=FALSE,LEFT($B66,3)<>\"NOX\"),CD58*INDEX('Damage costs'!$O$16:$O$43,MATCH($B66,'Damage costs'!$C$16:$C$43,0))/1000,CD58*INDEX('Damage costs'!$S$16:$S$43,MATCH($B66,'Damage costs'!$C$16:$C$43,0))/1000),\"\")","v":""},{"$f":"IFERROR(IF(OR($C$67=FALSE,LEFT($B66,3)<>\"NOX\"),CE58*INDEX('Damage costs'!$O$16:$O$43,MATCH($B66,'Damage costs'!$C$16:$C$43,0))/1000,CE58*INDEX('Damage costs'!$S$16:$S$43,MATCH($B66,'Damage costs'!$C$16:$C$43,0))/1000),\"\")","v":""},{"$f":"IFERROR(IF(OR($C$67=FALSE,LEFT($B66,3)<>\"NOX\"),CF58*INDEX('Damage costs'!$O$16:$O$43,MATCH($B66,'Damage costs'!$C$16:$C$43,0))/1000,CF58*INDEX('Damage costs'!$S$16:$S$43,MATCH($B66,'Damage costs'!$C$16:$C$43,0))/1000),\"\")","v":""},{"$f":"IFERROR(IF(OR($C$67=FALSE,LEFT($B66,3)<>\"NOX\"),CG58*INDEX('Damage costs'!$O$16:$O$43,MATCH($B66,'Damage costs'!$C$16:$C$43,0))/1000,CG58*INDEX('Damage costs'!$S$16:$S$43,MATCH($B66,'Damage costs'!$C$16:$C$43,0))/1000),\"\")","v":""},{"$f":"IFERROR(IF(OR($C$67=FALSE,LEFT($B66,3)<>\"NOX\"),CH58*INDEX('Damage costs'!$O$16:$O$43,MATCH($B66,'Damage costs'!$C$16:$C$43,0))/1000,CH58*INDEX('Damage costs'!$S$16:$S$43,MATCH($B66,'Damage costs'!$C$16:$C$43,0))/1000),\"\")","v":""},{"$f":"IFERROR(IF(OR($C$67=FALSE,LEFT($B66,3)<>\"NOX\"),CI58*INDEX('Damage costs'!$O$16:$O$43,MATCH($B66,'Damage costs'!$C$16:$C$43,0))/1000,CI58*INDEX('Damage costs'!$S$16:$S$43,MATCH($B66,'Damage costs'!$C$16:$C$43,0))/1000),\"\")","v":""},{"$f":"IFERROR(IF(OR($C$67=FALSE,LEFT($B66,3)<>\"NOX\"),CJ58*INDEX('Damage costs'!$O$16:$O$43,MATCH($B66,'Damage costs'!$C$16:$C$43,0))/1000,CJ58*INDEX('Damage costs'!$S$16:$S$43,MATCH($B66,'Damage costs'!$C$16:$C$43,0))/1000),\"\")","v":""},{"$f":"IFERROR(IF(OR($C$67=FALSE,LEFT($B66,3)<>\"NOX\"),CK58*INDEX('Damage costs'!$O$16:$O$43,MATCH($B66,'Damage costs'!$C$16:$C$43,0))/1000,CK58*INDEX('Damage costs'!$S$16:$S$43,MATCH($B66,'Damage costs'!$C$16:$C$43,0))/1000),\"\")","v":""},{"$f":"IFERROR(IF(OR($C$67=FALSE,LEFT($B66,3)<>\"NOX\"),CL58*INDEX('Damage costs'!$O$16:$O$43,MATCH($B66,'Damage costs'!$C$16:$C$43,0))/1000,CL58*INDEX('Damage costs'!$S$16:$S$43,MATCH($B66,'Damage costs'!$C$16:$C$43,0))/1000),\"\")","v":""},{"$f":"IFERROR(IF(OR($C$67=FALSE,LEFT($B66,3)<>\"NOX\"),CM58*INDEX('Damage costs'!$O$16:$O$43,MATCH($B66,'Damage costs'!$C$16:$C$43,0))/1000,CM58*INDEX('Damage costs'!$S$16:$S$43,MATCH($B66,'Damage costs'!$C$16:$C$43,0))/1000),\"\")","v":""},{"$f":"IFERROR(IF(OR($C$67=FALSE,LEFT($B66,3)<>\"NOX\"),CN58*INDEX('Damage costs'!$O$16:$O$43,MATCH($B66,'Damage costs'!$C$16:$C$43,0))/1000,CN58*INDEX('Damage costs'!$S$16:$S$43,MATCH($B66,'Damage costs'!$C$16:$C$43,0))/1000),\"\")","v":""},{"$f":"IFERROR(IF(OR($C$67=FALSE,LEFT($B66,3)<>\"NOX\"),CO58*INDEX('Damage costs'!$O$16:$O$43,MATCH($B66,'Damage costs'!$C$16:$C$43,0))/1000,CO58*INDEX('Damage costs'!$S$16:$S$43,MATCH($B66,'Damage costs'!$C$16:$C$43,0))/1000),\"\")","v":""},{"$f":"IFERROR(IF(OR($C$67=FALSE,LEFT($B66,3)<>\"NOX\"),CP58*INDEX('Damage costs'!$O$16:$O$43,MATCH($B66,'Damage costs'!$C$16:$C$43,0))/1000,CP58*INDEX('Damage costs'!$S$16:$S$43,MATCH($B66,'Damage costs'!$C$16:$C$43,0))/1000),\"\")","v":""},{"$f":"IFERROR(IF(OR($C$67=FALSE,LEFT($B66,3)<>\"NOX\"),CQ58*INDEX('Damage costs'!$O$16:$O$43,MATCH($B66,'Damage costs'!$C$16:$C$43,0))/1000,CQ58*INDEX('Damage costs'!$S$16:$S$43,MATCH($B66,'Damage costs'!$C$16:$C$43,0))/1000),\"\")","v":""},{"$f":"IFERROR(IF(OR($C$67=FALSE,LEFT($B66,3)<>\"NOX\"),CR58*INDEX('Damage costs'!$O$16:$O$43,MATCH($B66,'Damage costs'!$C$16:$C$43,0))/1000,CR58*INDEX('Damage costs'!$S$16:$S$43,MATCH($B66,'Damage costs'!$C$16:$C$43,0))/1000),\"\")","v":""},{"$f":"IFERROR(IF(OR($C$67=FALSE,LEFT($B66,3)<>\"NOX\"),CS58*INDEX('Damage costs'!$O$16:$O$43,MATCH($B66,'Damage costs'!$C$16:$C$43,0))/1000,CS58*INDEX('Damage costs'!$S$16:$S$43,MATCH($B66,'Damage costs'!$C$16:$C$43,0))/1000),\"\")","v":""},{"$f":"IFERROR(IF(OR($C$67=FALSE,LEFT($B66,3)<>\"NOX\"),CT58*INDEX('Damage costs'!$O$16:$O$43,MATCH($B66,'Damage costs'!$C$16:$C$43,0))/1000,CT58*INDEX('Damage costs'!$S$16:$S$43,MATCH($B66,'Damage costs'!$C$16:$C$43,0))/1000),\"\")","v":""},{"$f":"IFERROR(IF(OR($C$67=FALSE,LEFT($B66,3)<>\"NOX\"),CU58*INDEX('Damage costs'!$O$16:$O$43,MATCH($B66,'Damage costs'!$C$16:$C$43,0))/1000,CU58*INDEX('Damage costs'!$S$16:$S$43,MATCH($B66,'Damage costs'!$C$16:$C$43,0))/1000),\"\")","v":""},{"$f":"IFERROR(IF(OR($C$67=FALSE,LEFT($B66,3)<>\"NOX\"),CV58*INDEX('Damage costs'!$O$16:$O$43,MATCH($B66,'Damage costs'!$C$16:$C$43,0))/1000,CV58*INDEX('Damage costs'!$S$16:$S$43,MATCH($B66,'Damage costs'!$C$16:$C$43,0))/1000),\"\")","v":""},{"$f":"IFERROR(IF(OR($C$67=FALSE,LEFT($B66,3)<>\"NOX\"),CW58*INDEX('Damage costs'!$O$16:$O$43,MATCH($B66,'Damage costs'!$C$16:$C$43,0))/1000,CW58*INDEX('Damage costs'!$S$16:$S$43,MATCH($B66,'Damage costs'!$C$16:$C$43,0))/1000),\"\")","v":""},{"$f":"IFERROR(IF(OR($C$67=FALSE,LEFT($B66,3)<>\"NOX\"),CX58*INDEX('Damage costs'!$O$16:$O$43,MATCH($B66,'Damage costs'!$C$16:$C$43,0))/1000,CX58*INDEX('Damage costs'!$S$16:$S$43,MATCH($B66,'Damage costs'!$C$16:$C$43,0))/1000),\"\")","v":""},{"$f":"IFERROR(IF(OR($C$67=FALSE,LEFT($B66,3)<>\"NOX\"),CY58*INDEX('Damage costs'!$O$16:$O$43,MATCH($B66,'Damage costs'!$C$16:$C$43,0))/1000,CY58*INDEX('Damage costs'!$S$16:$S$43,MATCH($B66,'Damage costs'!$C$16:$C$43,0))/1000),\"\")","v":""}]
[null,"PM10 Used",{"$f":"IF(OR(LEFT(B61,4)=\"PM10\",LEFT(B62,4)=\"PM10\",LEFT(B63,4)=\"PM10\",LEFT(B64,4)=\"PM10\",LEFT(B65,4)=\"PM10\",LEFT(B66,4)=\"PM10\"),TRUE,FALSE)","v":false}]
[]
[null,"Uplift pa","%",{"$f":"'Discount and deflators'!$H$5","v":0.02}]
[null,"Uplift factor",null,{"$f":"IF(D$6=0,0,(1+$D69)^(D$6-'Data Input - General'!$F$22))","v":1},{"$f":"IF(E$6=0,0,(1+$D69)^(E$6-'Data Input - General'!$F$22))","v":1.02},{"$f":"IF(F$6=0,0,(1+$D69)^(F$6-'Data Input - General'!$F$22))","v":1.0404},{"$f":"IF(G$6=0,0,(1+$D69)^(G$6-'Data Input - General'!$F$22))","v":1.0612079999999999},{"$f":"IF(H$6=0,0,(1+$D69)^(H$6-'Data Input - General'!$F$22))","v":1.08243216},{"$f":"IF(I$6=0,0,(1+$D69)^(I$6-'Data Input - General'!$F$22))","v":1.1040808032},{"$f":"IF(J$6=0,0,(1+$D69)^(J$6-'Data Input - General'!$F$22))","v":1.1261624192640001},{"$f":"IF(K$6=0,0,(1+$D69)^(K$6-'Data Input - General'!$F$22))","v":1.1486856676492798},{"$f":"IF(L$6=0,0,(1+$D69)^(L$6-'Data Input - General'!$F$22))","v":1.1716593810022655},{"$f":"IF(M$6=0,0,(1+$D69)^(M$6-'Data Input - General'!$F$22))","v":1.1950925686223108},{"$f":"IF(N$6=0,0,(1+$D69)^(N$6-'Data Input - General'!$F$22))","v":1.2189944199947571},{"$f":"IF(O$6=0,0,(1+$D69)^(O$6-'Data Input - General'!$F$22))","v":1.243374308394652},{"$f":"IF(P$6=0,0,(1+$D69)^(P$6-'Data Input - General'!$F$22))","v":1.2682417945625453},{"$f":"IF(Q$6=0,0,(1+$D69)^(Q$6-'Data Input - General'!$F$22))","v":1.2936066304537961},{"$f":"IF(R$6=0,0,(1+$D69)^(R$6-'Data Input - General'!$F$22))","v":1.3194787630628722},{"$f":"IF(S$6=0,0,(1+$D69)^(S$6-'Data Input - General'!$F$22))","v":1.3458683383241292},{"$f":"IF(T$6=0,0,(1+$D69)^(T$6-'Data Input - General'!$F$22))","v":1.372785705090612},{"$f":"IF(U$6=0,0,(1+$D69)^(U$6-'Data Input - General'!$F$22))","v":1.4002414191924244},{"$f":"IF(V$6=0,0,(1+$D69)^(V$6-'Data Input - General'!$F$22))","v":1.4282462475762727},{"$f":"IF(W$6=0,0,(1+$D69)^(W$6-'Data Input - General'!$F$22))","v":1.4568111725277981},{"$f":"IF(X$6=0,0,(1+$D69)^(X$6-'Data Input - General'!$F$22))","v":1.4859473959783542},{"$f":"IF(Y$6=0,0,(1+$D69)^(Y$6-'Data Input - General'!$F$22))","v":1.5156663438979212},{"$f":"IF(Z$6=0,0,(1+$D69)^(Z$6-'Data Input - General'!$F$22))","v":1.5459796707758797},{"$f":"IF(AA$6=0,0,(1+$D69)^(AA$6-'Data Input - General'!$F$22))","v":1.576899264191397},{"$f":"IF(AB$6=0,0,(1+$D69)^(AB$6-'Data Input - General'!$F$22))","v":1.608437249475225},{"$f":"IF(AC$6=0,0,(1+$D69)^(AC$6-'Data Input - General'!$F$22))","v":1.6406059944647295},{"$f":"IF(AD$6=0,0,(1+$D69)^(AD$6-'Data Input - General'!$F$22))","v":1.6734181143540243},{"$f":"IF(AE$6=0,0,(1+$D69)^(AE$6-'Data Input - General'!$F$22))","v":1.7068864766411045},{"$f":"IF(AF$6=0,0,(1+$D69)^(AF$6-'Data Input - General'!$F$22))","v":1.7410242061739269},{"$f":"IF(AG$6=0,0,(1+$D69)^(AG$6-'Data Input - General'!$F$22))","v":1.7758446902974052},{"$f":"IF(AH$6=0,0,(1+$D69)^(AH$6-'Data Input - General'!$F$22))","v":1.8113615841033535},{"$f":"IF(AI$6=0,0,(1+$D69)^(AI$6-'Data Input - General'!$F$22))","v":0},{"$f":"IF(AJ$6=0,0,(1+$D69)^(AJ$6-'Data Input - General'!$F$22))","v":0},{"$f":"IF(AK$6=0,0,(1+$D69)^(AK$6-'Data Input - General'!$F$22))","v":0},{"$f":"IF(AL$6=0,0,(1+$D69)^(AL$6-'Data Input - General'!$F$22))","v":0},{"$f":"IF(AM$6=0,0,(1+$D69)^(AM$6-'Data Input - General'!$F$22))","v":0},{"$f":"IF(AN$6=0,0,(1+$D69)^(AN$6-'Data Input - General'!$F$22))","v":0},{"$f":"IF(AO$6=0,0,(1+$D69)^(AO$6-'Data Input - General'!$F$22))","v":0},{"$f":"IF(AP$6=0,0,(1+$D69)^(AP$6-'Data Input - General'!$F$22))","v":0},{"$f":"IF(AQ$6=0,0,(1+$D69)^(AQ$6-'Data Input - General'!$F$22))","v":0},{"$f":"IF(AR$6=0,0,(1+$D69)^(AR$6-'Data Input - General'!$F$22))","v":0},{"$f":"IF(AS$6=0,0,(1+$D69)^(AS$6-'Data Input - General'!$F$22))","v":0},{"$f":"IF(AT$6=0,0,(1+$D69)^(AT$6-'Data Input - General'!$F$22))","v":0},{"$f":"IF(AU$6=0,0,(1+$D69)^(AU$6-'Data Input - General'!$F$22))","v":0},{"$f":"IF(AV$6=0,0,(1+$D69)^(AV$6-'Data Input - General'!$F$22))","v":0},{"$f":"IF(AW$6=0,0,(1+$D69)^(AW$6-'Data Input - General'!$F$22))","v":0},{"$f":"IF(AX$6=0,0,(1+$D69)^(AX$6-'Data Input - General'!$F$22))","v":0},{"$f":"IF(AY$6=0,0,(1+$D69)^(AY$6-'Data Input - General'!$F$22))","v":0},{"$f":"IF(AZ$6=0,0,(1+$D69)^(AZ$6-'Data Input - General'!$F$22))","v":0},{"$f":"IF(BA$6=0,0,(1+$D69)^(BA$6-'Data Input - General'!$F$22))","v":0},{"$f":"IF(BB$6=0,0,(1+$D69)^(BB$6-'Data Input - General'!$F$22))","v":0},{"$f":"IF(BC$6=0,0,(1+$D69)^(BC$6-'Data Input - General'!$F$22))","v":0},{"$f":"IF(BD$6=0,0,(1+$D69)^(BD$6-'Data Input - General'!$F$22))","v":0},{"$f":"IF(BE$6=0,0,(1+$D69)^(BE$6-'Data Input - General'!$F$22))","v":0},{"$f":"IF(BF$6=0,0,(1+$D69)^(BF$6-'Data Input - General'!$F$22))","v":0},{"$f":"IF(BG$6=0,0,(1+$D69)^(BG$6-'Data Input - General'!$F$22))","v":0},{"$f":"IF(BH$6=0,0,(1+$D69)^(BH$6-'Data Input - General'!$F$22))","v":0},{"$f":"IF(BI$6=0,0,(1+$D69)^(BI$6-'Data Input - General'!$F$22))","v":0},{"$f":"IF(BJ$6=0,0,(1+$D69)^(BJ$6-'Data Input - General'!$F$22))","v":0},{"$f":"IF(BK$6=0,0,(1+$D69)^(BK$6-'Data Input - General'!$F$22))","v":0},{"$f":"IF(BL$6=0,0,(1+$D69)^(BL$6-'Data Input - General'!$F$22))","v":0},{"$f":"IF(BM$6=0,0,(1+$D69)^(BM$6-'Data Input - General'!$F$22))","v":0},{"$f":"IF(BN$6=0,0,(1+$D69)^(BN$6-'Data Input - General'!$F$22))","v":0},{"$f":"IF(BO$6=0,0,(1+$D69)^(BO$6-'Data Input - General'!$F$22))","v":0},{"$f":"IF(BP$6=0,0,(1+$D69)^(BP$6-'Data Input - General'!$F$22))","v":0},{"$f":"IF(BQ$6=0,0,(1+$D69)^(BQ$6-'Data Input - General'!$F$22))","v":0},{"$f":"IF(BR$6=0,0,(1+$D69)^(BR$6-'Data Input - General'!$F$22))","v":0},{"$f":"IF(BS$6=0,0,(1+$D69)^(BS$6-'Data Input - General'!$F$22))","v":0},{"$f":"IF(BT$6=0,0,(1+$D69)^(BT$6-'Data Input - General'!$F$22))","v":0},{"$f":"IF(BU$6=0,0,(1+$D69)^(BU$6-'Data Input - General'!$F$22))","v":0},{"$f":"IF(BV$6=0,0,(1+$D69)^(BV$6-'Data Input - General'!$F$22))","v":0},{"$f":"IF(BW$6=0,0,(1+$D69)^(BW$6-'Data Input - General'!$F$22))","v":0},{"$f":"IF(BX$6=0,0,(1+$D69)^(BX$6-'Data Input - General'!$F$22))","v":0},{"$f":"IF(BY$6=0,0,(1+$D69)^(BY$6-'Data Input - General'!$F$22))","v":0},{"$f":"IF(BZ$6=0,0,(1+$D69)^(BZ$6-'Data Input - General'!$F$22))","v":0},{"$f":"IF(CA$6=0,0,(1+$D69)^(CA$6-'Data Input - General'!$F$22))","v":0},{"$f":"IF(CB$6=0,0,(1+$D69)^(CB$6-'Data Input - General'!$F$22))","v":0},{"$f":"IF(CC$6=0,0,(1+$D69)^(CC$6-'Data Input - General'!$F$22))","v":0},{"$f":"IF(CD$6=0,0,(1+$D69)^(CD$6-'Data Input - General'!$F$22))","v":0},{"$f":"IF(CE$6=0,0,(1+$D69)^(CE$6-'Data Input - General'!$F$22))","v":0},{"$f":"IF(CF$6=0,0,(1+$D69)^(CF$6-'Data Input - General'!$F$22))","v":0},{"$f":"IF(CG$6=0,0,(1+$D69)^(CG$6-'Data Input - General'!$F$22))","v":0},{"$f":"IF(CH$6=0,0,(1+$D69)^(CH$6-'Data Input - General'!$F$22))","v":0},{"$f":"IF(CI$6=0,0,(1+$D69)^(CI$6-'Data Input - General'!$F$22))","v":0},{"$f":"IF(CJ$6=0,0,(1+$D69)^(CJ$6-'Data Input - General'!$F$22))","v":0},{"$f":"IF(CK$6=0,0,(1+$D69)^(CK$6-'Data Input - General'!$F$22))","v":0},{"$f":"IF(CL$6=0,0,(1+$D69)^(CL$6-'Data Input - General'!$F$22))","v":0},{"$f":"IF(CM$6=0,0,(1+$D69)^(CM$6-'Data Input - General'!$F$22))","v":0},{"$f":"IF(CN$6=0,0,(1+$D69)^(CN$6-'Data Input - General'!$F$22))","v":0},{"$f":"IF(CO$6=0,0,(1+$D69)^(CO$6-'Data Input - General'!$F$22))","v":0},{"$f":"IF(CP$6=0,0,(1+$D69)^(CP$6-'Data Input - General'!$F$22))","v":0},{"$f":"IF(CQ$6=0,0,(1+$D69)^(CQ$6-'Data Input - General'!$F$22))","v":0},{"$f":"IF(CR$6=0,0,(1+$D69)^(CR$6-'Data Input - General'!$F$22))","v":0},{"$f":"IF(CS$6=0,0,(1+$D69)^(CS$6-'Data Input - General'!$F$22))","v":0},{"$f":"IF(CT$6=0,0,(1+$D69)^(CT$6-'Data Input - General'!$F$22))","v":0},{"$f":"IF(CU$6=0,0,(1+$D69)^(CU$6-'Data Input - General'!$F$22))","v":0},{"$f":"IF(CV$6=0,0,(1+$D69)^(CV$6-'Data Input - General'!$F$22))","v":0},{"$f":"IF(CW$6=0,0,(1+$D69)^(CW$6-'Data Input - General'!$F$22))","v":0},{"$f":"IF(CX$6=0,0,(1+$D69)^(CX$6-'Data Input - General'!$F$22))","v":0},{"$f":"IF(CY$6=0,0,(1+$D69)^(CY$6-'Data Input - General'!$F$22))","v":0}]
[null,"Total value","£000's",{"$f":"SUM(D61:D66)*D70","v":0},{"$f":"SUM(E61:E66)*E70","v":0},{"$f":"SUM(F61:F66)*F70","v":0},{"$f":"SUM(G61:G66)*G70","v":0},0,0,0,0,0,0,0,0,0,0,0,0,0,0,0,0,0,0,0,0,0,0,0,0,0,0,0,0,{"$f":"SUM(AJ61:AJ66)*AJ70","v":0},0,0,0,0,0,0,0,0,0,0,0,0,0,0,0,0,0,0,0,0,0,0,0,0,0,0,0,{"$f":"SUM(BL61:BL66)*BL70","v":0},0,0,0,0,0,0,0,0,0,0,0,0,0,0,0,0,0,0,0,0,0,0,0,0,0,0,0,0,0,0,0,0,0,0,0,0,0,0,0]
[null,"Discounted total value","£000's",{"$f":"D71*D$7","v":0},{"$f":"E71*E$7","v":0},{"$f":"F71*F$7","v":0},0,0,0,0,0,0,0,0,0,0,0,0,0,0,0,0,0,0,0,0,0,0,0,0,0,0,0,0,0,0,0,0,0,0,0,0,0,0,0,0,0,0,0,0,0,0,0,0,0,0,0,0,0,0,0,0,0,0,0,0,0,0,0,{"$f":"BR71*BR$7","v":0},0,0,0,0,0,0,0,0,0,0,0,0,0,0,0,0,0,0,0,0,0,0,0,0,0,0,0,0,0,0,0,0,0]
[]
[null,"Greenhouse gas emissions (not associated with fuel use)"]
[null,"Emissions","tCO2e",{"$f":"'Data Input - Option 5'!H117","v":0},{"$f":"'Data Input - Option 5'!I117","v":0},{"$f":"'Data Input - Option 5'!J117","v":0},{"$f":"'Data Input - Option 5'!K117","v":0},{"$f":"'Data Input - Option 5'!L117","v":0},{"$f":"'Data Input - Option 5'!M117","v":0},{"$f":"'Data Input - Option 5'!N117","v":0},{"$f":"'Data Input - Option 5'!O117","v":0},{"$f":"'Data Input - Option 5'!P117","v":0},{"$f":"'Data Input - Option 5'!Q117","v":0},{"$f":"'Data Input - Option 5'!R117","v":0},{"$f":"'Data Input - Option 5'!S117","v":0},{"$f":"'Data Input - Option 5'!T117","v":0},{"$f":"'Data Input - Option 5'!U117","v":0},{"$f":"'Data Input - Option 5'!V117","v":0},{"$f":"'Data Input - Option 5'!W117","v":0},{"$f":"'Data Input - Option 5'!X117","v":0},{"$f":"'Data Input - Option 5'!Y117","v":0},{"$f":"'Data Input - Option 5'!Z117","v":0},{"$f":"'Data Input - Option 5'!AA117","v":0},{"$f":"'Data Input - Option 5'!AB117","v":0},{"$f":"'Data Input - Option 5'!AC117","v":0},{"$f":"'Data Input - Option 5'!AD117","v":0},{"$f":"'Data Input - Option 5'!AE117","v":0},{"$f":"'Data Input - Option 5'!AF117","v":0},{"$f":"'Data Input - Option 5'!AG117","v":0},{"$f":"'Data Input - Option 5'!AH117","v":0},{"$f":"'Data Input - Option 5'!AI117","v":0},{"$f":"'Data Input - Option 5'!AJ117","v":0},{"$f":"'Data Input - Option 5'!AK117","v":0},{"$f":"'Data Input - Option 5'!AL117","v":0},{"$f":"'Data Input - Option 5'!AM117","v":0},{"$f":"'Data Input - Option 5'!AN117","v":0},{"$f":"'Data Input - Option 5'!AO117","v":0},{"$f":"'Data Input - Option 5'!AP117","v":0},{"$f":"'Data Input - Option 5'!AQ117","v":0},{"$f":"'Data Input - Option 5'!AR117","v":0},{"$f":"'Data Input - Option 5'!AS117","v":0},{"$f":"'Data Input - Option 5'!AT117","v":0},{"$f":"'Data Input - Option 5'!AU117","v":0},{"$f":"'Data Input - Option 5'!AV117","v":0},{"$f":"'Data Input - Option 5'!AW117","v":0},{"$f":"'Data Input - Option 5'!AX117","v":0},{"$f":"'Data Input - Option 5'!AY117","v":0},{"$f":"'Data Input - Option 5'!AZ117","v":0},{"$f":"'Data Input - Option 5'!BA117","v":0},{"$f":"'Data Input - Option 5'!BB117","v":0},{"$f":"'Data Input - Option 5'!BC117","v":0},{"$f":"'Data Input - Option 5'!BD117","v":0},{"$f":"'Data Input - Option 5'!BE117","v":0},{"$f":"'Data Input - Option 5'!BF117","v":0},{"$f":"'Data Input - Option 5'!BG117","v":0},{"$f":"'Data Input - Option 5'!BH117","v":0},{"$f":"'Data Input - Option 5'!BI117","v":0},{"$f":"'Data Input - Option 5'!BJ117","v":0},{"$f":"'Data Input - Option 5'!BK117","v":0},{"$f":"'Data Input - Option 5'!BL117","v":0},{"$f":"'Data Input - Option 5'!BM117","v":0},{"$f":"'Data Input - Option 5'!BN117","v":0},{"$f":"'Data Input - Option 5'!BO117","v":0},{"$f":"'Data Input - Option 5'!BP117","v":0},{"$f":"'Data Input - Option 5'!BQ117","v":0},{"$f":"'Data Input - Option 5'!BR117","v":0},{"$f":"'Data Input - Option 5'!BS117","v":0},{"$f":"'Data Input - Option 5'!BT117","v":0},{"$f":"'Data Input - Option 5'!BU117","v":0},{"$f":"'Data Input - Option 5'!BV117","v":0},{"$f":"'Data Input - Option 5'!BW117","v":0},{"$f":"'Data Input - Option 5'!BX117","v":0},{"$f":"'Data Input - Option 5'!BY117","v":0},{"$f":"'Data Input - Option 5'!BZ117","v":0},{"$f":"'Data Input - Option 5'!CA117","v":0},{"$f":"'Data Input - Option 5'!CB117","v":0},{"$f":"'Data Input - Option 5'!CC117","v":0},{"$f":"'Data Input - Option 5'!CD117","v":0},{"$f":"'Data Input - Option 5'!CE117","v":0},{"$f":"'Data Input - Option 5'!CF117","v":0},{"$f":"'Data Input - Option 5'!CG117","v":0},{"$f":"'Data Input - Option 5'!CH117","v":0},{"$f":"'Data Input - Option 5'!CI117","v":0},{"$f":"'Data Input - Option 5'!CJ117","v":0},{"$f":"'Data Input - Option 5'!CK117","v":0},{"$f":"'Data Input - Option 5'!CL117","v":0},{"$f":"'Data Input - Option 5'!CM117","v":0},{"$f":"'Data Input - Option 5'!CN117","v":0},{"$f":"'Data Input - Option 5'!CO117","v":0},{"$f":"'Data Input - Option 5'!CP117","v":0},{"$f":"'Data Input - Option 5'!CQ117","v":0},{"$f":"'Data Input - Option 5'!CR117","v":0},{"$f":"'Data Input - Option 5'!CS117","v":0},{"$f":"'Data Input - Option 5'!CT117","v":0},{"$f":"'Data Input - Option 5'!CU117","v":0},{"$f":"'Data Input - Option 5'!CV117","v":0},{"$f":"'Data Input - Option 5'!CW117","v":0},{"$f":"'Data Input - Option 5'!CX117","v":0},{"$f":"'Data Input - Option 5'!CY117","v":0},{"$f":"'Data Input - Option 5'!CZ117","v":0},{"$f":"'Data Input - Option 5'!DA117","v":0},{"$f":"'Data Input - Option 5'!DB117","v":0},{"$f":"'Data Input - Option 5'!DC117","v":0}]
[null,"Unit value","£000's",{"$f":"IFERROR(IF('Data Input - General'!$F$12=\"Yes\",HLOOKUP(Calc_Option5!D$6,'Carbon Prices'!$D$9:$CP$15,3,FALSE),HLOOKUP(Calc_Option5!D$6,'Carbon Prices'!$D$9:$CP$15,6,FALSE)),0)","v":6.8248086829049139},{"$f":"IFERROR(IF('Data Input - General'!$F$12=\"Yes\",HLOOKUP(Calc_Option5!E$6,'Carbon Prices'!$D$9:$CP$15,3,FALSE),HLOOKUP(Calc_Option5!E$6,'Carbon Prices'!$D$9:$CP$15,6,FALSE)),0)","v":7.0841514128553005},{"$f":"IFERROR(IF('Data Input - General'!$F$12=\"Yes\",HLOOKUP(Calc_Option5!F$6,'Carbon Prices'!$D$9:$CP$15,3,FALSE),HLOOKUP(Calc_Option5!F$6,'Carbon Prices'!$D$9:$CP$15,6,FALSE)),0)","v":14.809366678834097},{"$f":"IFERROR(IF('Data Input - General'!$F$12=\"Yes\",HLOOKUP(Calc_Option5!G$6,'Carbon Prices'!$D$9:$CP$15,3,FALSE),HLOOKUP(Calc_Option5!G$6,'Carbon Prices'!$D$9:$CP$15,6,FALSE)),0)","v":22.534581944812892},{"$f":"IFERROR(IF('Data Input - General'!$F$12=\"Yes\",HLOOKUP(Calc_Option5!H$6,'Carbon Prices'!$D$9:$CP$15,3,FALSE),HLOOKUP(Calc_Option5!H$6,'Carbon Prices'!$D$9:$CP$15,6,FALSE)),0)","v":30.259797210791689},{"$f":"IFERROR(IF('Data Input - General'!$F$12=\"Yes\",HLOOKUP(Calc_Option5!I$6,'Carbon Prices'!$D$9:$CP$15,3,FALSE),HLOOKUP(Calc_Option5!I$6,'Carbon Prices'!$D$9:$CP$15,6,FALSE)),0)","v":37.985012476770486},{"$f":"IFERROR(IF('Data Input - General'!$F$12=\"Yes\",HLOOKUP(Calc_Option5!J$6,'Carbon Prices'!$D$9:$CP$15,3,FALSE),HLOOKUP(Calc_Option5!J$6,'Carbon Prices'!$D$9:$CP$15,6,FALSE)),0)","v":45.710227742749282},{"$f":"IFERROR(IF('Data Input - General'!$F$12=\"Yes\",HLOOKUP(Calc_Option5!K$6,'Carbon Prices'!$D$9:$CP$15,3,FALSE),HLOOKUP(Calc_Option5!K$6,'Carbon Prices'!$D$9:$CP$15,6,FALSE)),0)","v":53.435443008728079},{"$f":"IFERROR(IF('Data Input - General'!$F$12=\"Yes\",HLOOKUP(Calc_Option5!L$6,'Carbon Prices'!$D$9:$CP$15,3,FALSE),HLOOKUP(Calc_Option5!L$6,'Carbon Prices'!$D$9:$CP$15,6,FALSE)),0)","v":61.160658274706876},{"$f":"IFERROR(IF('Data Input - General'!$F$12=\"Yes\",HLOOKUP(Calc_Option5!M$6,'Carbon Prices'!$D$9:$CP$15,3,FALSE),HLOOKUP(Calc_Option5!M$6,'Carbon Prices'!$D$9:$CP$15,6,FALSE)),0)","v":68.885873540685665},{"$f":"IFERROR(IF('Data Input - General'!$F$12=\"Yes\",HLOOKUP(Calc_Option5!N$6,'Carbon Prices'!$D$9:$CP$15,3,FALSE),HLOOKUP(Calc_Option5!N$6,'Carbon Prices'!$D$9:$CP$15,6,FALSE)),0)","v":76.611088806664469},{"$f":"IFERROR(IF('Data Input - General'!$F$12=\"Yes\",HLOOKUP(Calc_Option5!O$6,'Carbon Prices'!$D$9:$CP$15,3,FALSE),HLOOKUP(Calc_Option5!O$6,'Carbon Prices'!$D$9:$CP$15,6,FALSE)),0)","v":84.336304072643259},{"$f":"IFERROR(IF('Data Input - General'!$F$12=\"Yes\",HLOOKUP(Calc_Option5!P$6,'Carbon Prices'!$D$9:$CP$15,3,FALSE),HLOOKUP(Calc_Option5!P$6,'Carbon Prices'!$D$9:$CP$15,6,FALSE)),0)","v":92.167532307960172},{"$f":"IFERROR(IF('Data Input - General'!$F$12=\"Yes\",HLOOKUP(Calc_Option5!Q$6,'Carbon Prices'!$D$9:$CP$15,3,FALSE),HLOOKUP(Calc_Option5!Q$6,'Carbon Prices'!$D$9:$CP$15,6,FALSE)),0)","v":99.998760543277044},{"$f":"IFERROR(IF('Data Input - General'!$F$12=\"Yes\",HLOOKUP(Calc_Option5!R$6,'Carbon Prices'!$D$9:$CP$15,3,FALSE),HLOOKUP(Calc_Option5!R$6,'Carbon Prices'!$D$9:$CP$15,6,FALSE)),0)","v":107.82998877859391},{"$f":"IFERROR(IF('Data Input - General'!$F$12=\"Yes\",HLOOKUP(Calc_Option5!S$6,'Carbon Prices'!$D$9:$CP$15,3,FALSE),HLOOKUP(Calc_Option5!S$6,'Carbon Prices'!$D$9:$CP$15,6,FALSE)),0)","v":115.6612170139108},{"$f":"IFERROR(IF('Data Input - General'!$F$12=\"Yes\",HLOOKUP(Calc_Option5!T$6,'Carbon Prices'!$D$9:$CP$15,3,FALSE),HLOOKUP(Calc_Option5!T$6,'Carbon Prices'!$D$9:$CP$15,6,FALSE)),0)","v":123.49244524922767},{"$f":"IFERROR(IF('Data Input - General'!$F$12=\"Yes\",HLOOKUP(Calc_Option5!U$6,'Carbon Prices'!$D$9:$CP$15,3,FALSE),HLOOKUP(Calc_Option5!U$6,'Carbon Prices'!$D$9:$CP$15,6,FALSE)),0)","v":131.32367348454454},{"$f":"IFERROR(IF('Data Input - General'!$F$12=\"Yes\",HLOOKUP(Calc_Option5!V$6,'Carbon Prices'!$D$9:$CP$15,3,FALSE),HLOOKUP(Calc_Option5!V$6,'Carbon Prices'!$D$9:$CP$15,6,FALSE)),0)","v":139.15490171986141},{"$f":"IFERROR(IF('Data Input - General'!$F$12=\"Yes\",HLOOKUP(Calc_Option5!W$6,'Carbon Prices'!$D$9:$CP$15,3,FALSE),HLOOKUP(Calc_Option5!W$6,'Carbon Prices'!$D$9:$CP$15,6,FALSE)),0)","v":146.98612995517828},{"$f":"IFERROR(IF('Data Input - General'!$F$12=\"Yes\",HLOOKUP(Calc_Option5!X$6,'Carbon Prices'!$D$9:$CP$15,3,FALSE),HLOOKUP(Calc_Option5!X$6,'Carbon Prices'!$D$9:$CP$15,6,FALSE)),0)","v":154.81735819049521},{"$f":"IFERROR(IF('Data Input - General'!$F$12=\"Yes\",HLOOKUP(Calc_Option5!Y$6,'Carbon Prices'!$D$9:$CP$15,3,FALSE),HLOOKUP(Calc_Option5!Y$6,'Carbon Prices'!$D$9:$CP$15,6,FALSE)),0)","v":162.64858642581208},{"$f":"IFERROR(IF('Data Input - General'!$F$12=\"Yes\",HLOOKUP(Calc_Option5!Z$6,'Carbon Prices'!$D$9:$CP$15,3,FALSE),HLOOKUP(Calc_Option5!Z$6,'Carbon Prices'!$D$9:$CP$15,6,FALSE)),0)","v":170.47981466112896},{"$f":"IFERROR(IF('Data Input - General'!$F$12=\"Yes\",HLOOKUP(Calc_Option5!AA$6,'Carbon Prices'!$D$9:$CP$15,3,FALSE),HLOOKUP(Calc_Option5!AA$6,'Carbon Prices'!$D$9:$CP$15,6,FALSE)),0)","v":178.31104289644583},{"$f":"IFERROR(IF('Data Input - General'!$F$12=\"Yes\",HLOOKUP(Calc_Option5!AB$6,'Carbon Prices'!$D$9:$CP$15,3,FALSE),HLOOKUP(Calc_Option5!AB$6,'Carbon Prices'!$D$9:$CP$15,6,FALSE)),0)","v":186.1422711317627},{"$f":"IFERROR(IF('Data Input - General'!$F$12=\"Yes\",HLOOKUP(Calc_Option5!AC$6,'Carbon Prices'!$D$9:$CP$15,3,FALSE),HLOOKUP(Calc_Option5!AC$6,'Carbon Prices'!$D$9:$CP$15,6,FALSE)),0)","v":193.97349936707957},{"$f":"IFERROR(IF('Data Input - General'!$F$12=\"Yes\",HLOOKUP(Calc_Option5!AD$6,'Carbon Prices'!$D$9:$CP$15,3,FALSE),HLOOKUP(Calc_Option5!AD$6,'Carbon Prices'!$D$9:$CP$15,6,FALSE)),0)","v":201.80472760239644},{"$f":"IFERROR(IF('Data Input - General'!$F$12=\"Yes\",HLOOKUP(Calc_Option5!AE$6,'Carbon Prices'!$D$9:$CP$15,3,FALSE),HLOOKUP(Calc_Option5!AE$6,'Carbon Prices'!$D$9:$CP$15,6,FALSE)),0)","v":209.63595583771331},{"$f":"IFERROR(IF('Data Input - General'!$F$12=\"Yes\",HLOOKUP(Calc_Option5!AF$6,'Carbon Prices'!$D$9:$CP$15,3,FALSE),HLOOKUP(Calc_Option5!AF$6,'Carbon Prices'!$D$9:$CP$15,6,FALSE)),0)","v":217.46718407303021},{"$f":"IFERROR(IF('Data Input - General'!$F$12=\"Yes\",HLOOKUP(Calc_Option5!AG$6,'Carbon Prices'!$D$9:$CP$15,3,FALSE),HLOOKUP(Calc_Option5!AG$6,'Carbon Prices'!$D$9:$CP$15,6,FALSE)),0)","v":225.29841230834708},{"$f":"IFERROR(IF('Data Input - General'!$F$12=\"Yes\",HLOOKUP(Calc_Option5!AH$6,'Carbon Prices'!$D$9:$CP$15,3,FALSE),HLOOKUP(Calc_Option5!AH$6,'Carbon Prices'!$D$9:$CP$15,6,FALSE)),0)","v":233.12964054366395},{"$f":"IFERROR(IF('Data Input - General'!$F$12=\"Yes\",HLOOKUP(Calc_Option5!AI$6,'Carbon Prices'!$D$9:$CP$15,3,FALSE),HLOOKUP(Calc_Option5!AI$6,'Carbon Prices'!$D$9:$CP$15,6,FALSE)),0)","v":0},{"$f":"IFERROR(IF('Data Input - General'!$F$12=\"Yes\",HLOOKUP(Calc_Option5!AJ$6,'Carbon Prices'!$D$9:$CP$15,3,FALSE),HLOOKUP(Calc_Option5!AJ$6,'Carbon Prices'!$D$9:$CP$15,6,FALSE)),0)","v":0},{"$f":"IFERROR(IF('Data Input - General'!$F$12=\"Yes\",HLOOKUP(Calc_Option5!AK$6,'Carbon Prices'!$D$9:$CP$15,3,FALSE),HLOOKUP(Calc_Option5!AK$6,'Carbon Prices'!$D$9:$CP$15,6,FALSE)),0)","v":0},{"$f":"IFERROR(IF('Data Input - General'!$F$12=\"Yes\",HLOOKUP(Calc_Option5!AL$6,'Carbon Prices'!$D$9:$CP$15,3,FALSE),HLOOKUP(Calc_Option5!AL$6,'Carbon Prices'!$D$9:$CP$15,6,FALSE)),0)","v":0},{"$f":"IFERROR(IF('Data Input - General'!$F$12=\"Yes\",HLOOKUP(Calc_Option5!AM$6,'Carbon Prices'!$D$9:$CP$15,3,FALSE),HLOOKUP(Calc_Option5!AM$6,'Carbon Prices'!$D$9:$CP$15,6,FALSE)),0)","v":0},{"$f":"IFERROR(IF('Data Input - General'!$F$12=\"Yes\",HLOOKUP(Calc_Option5!AN$6,'Carbon Prices'!$D$9:$CP$15,3,FALSE),HLOOKUP(Calc_Option5!AN$6,'Carbon Prices'!$D$9:$CP$15,6,FALSE)),0)","v":0},{"$f":"IFERROR(IF('Data Input - General'!$F$12=\"Yes\",HLOOKUP(Calc_Option5!AO$6,'Carbon Prices'!$D$9:$CP$15,3,FALSE),HLOOKUP(Calc_Option5!AO$6,'Carbon Prices'!$D$9:$CP$15,6,FALSE)),0)","v":0},{"$f":"IFERROR(IF('Data Input - General'!$F$12=\"Yes\",HLOOKUP(Calc_Option5!AP$6,'Carbon Prices'!$D$9:$CP$15,3,FALSE),HLOOKUP(Calc_Option5!AP$6,'Carbon Prices'!$D$9:$CP$15,6,FALSE)),0)","v":0},{"$f":"IFERROR(IF('Data Input - General'!$F$12=\"Yes\",HLOOKUP(Calc_Option5!AQ$6,'Carbon Prices'!$D$9:$CP$15,3,FALSE),HLOOKUP(Calc_Option5!AQ$6,'Carbon Prices'!$D$9:$CP$15,6,FALSE)),0)","v":0},{"$f":"IFERROR(IF('Data Input - General'!$F$12=\"Yes\",HLOOKUP(Calc_Option5!AR$6,'Carbon Prices'!$D$9:$CP$15,3,FALSE),HLOOKUP(Calc_Option5!AR$6,'Carbon Prices'!$D$9:$CP$15,6,FALSE)),0)","v":0},{"$f":"IFERROR(IF('Data Input - General'!$F$12=\"Yes\",HLOOKUP(Calc_Option5!AS$6,'Carbon Prices'!$D$9:$CP$15,3,FALSE),HLOOKUP(Calc_Option5!AS$6,'Carbon Prices'!$D$9:$CP$15,6,FALSE)),0)","v":0},{"$f":"IFERROR(IF('Data Input - General'!$F$12=\"Yes\",HLOOKUP(Calc_Option5!AT$6,'Carbon Prices'!$D$9:$CP$15,3,FALSE),HLOOKUP(Calc_Option5!AT$6,'Carbon Prices'!$D$9:$CP$15,6,FALSE)),0)","v":0},{"$f":"IFERROR(IF('Data Input - General'!$F$12=\"Yes\",HLOOKUP(Calc_Option5!AU$6,'Carbon Prices'!$D$9:$CP$15,3,FALSE),HLOOKUP(Calc_Option5!AU$6,'Carbon Prices'!$D$9:$CP$15,6,FALSE)),0)","v":0},{"$f":"IFERROR(IF('Data Input - General'!$F$12=\"Yes\",HLOOKUP(Calc_Option5!AV$6,'Carbon Prices'!$D$9:$CP$15,3,FALSE),HLOOKUP(Calc_Option5!AV$6,'Carbon Prices'!$D$9:$CP$15,6,FALSE)),0)","v":0},{"$f":"IFERROR(IF('Data Input - General'!$F$12=\"Yes\",HLOOKUP(Calc_Option5!AW$6,'Carbon Prices'!$D$9:$CP$15,3,FALSE),HLOOKUP(Calc_Option5!AW$6,'Carbon Prices'!$D$9:$CP$15,6,FALSE)),0)","v":0},{"$f":"IFERROR(IF('Data Input - General'!$F$12=\"Yes\",HLOOKUP(Calc_Option5!AX$6,'Carbon Prices'!$D$9:$CP$15,3,FALSE),HLOOKUP(Calc_Option5!AX$6,'Carbon Prices'!$D$9:$CP$15,6,FALSE)),0)","v":0},{"$f":"IFERROR(IF('Data Input - General'!$F$12=\"Yes\",HLOOKUP(Calc_Option5!AY$6,'Carbon Prices'!$D$9:$CP$15,3,FALSE),HLOOKUP(Calc_Option5!AY$6,'Carbon Prices'!$D$9:$CP$15,6,FALSE)),0)","v":0},{"$f":"IFERROR(IF('Data Input - General'!$F$12=\"Yes\",HLOOKUP(Calc_Option5!AZ$6,'Carbon Prices'!$D$9:$CP$15,3,FALSE),HLOOKUP(Calc_Option5!AZ$6,'Carbon Prices'!$D$9:$CP$15,6,FALSE)),0)","v":0},{"$f":"IFERROR(IF('Data Input - General'!$F$12=\"Yes\",HLOOKUP(Calc_Option5!BA$6,'Carbon Prices'!$D$9:$CP$15,3,FALSE),HLOOKUP(Calc_Option5!BA$6,'Carbon Prices'!$D$9:$CP$15,6,FALSE)),0)","v":0},{"$f":"IFERROR(IF('Data Input - General'!$F$12=\"Yes\",HLOOKUP(Calc_Option5!BB$6,'Carbon Prices'!$D$9:$CP$15,3,FALSE),HLOOKUP(Calc_Option5!BB$6,'Carbon Prices'!$D$9:$CP$15,6,FALSE)),0)","v":0},{"$f":"IFERROR(IF('Data Input - General'!$F$12=\"Yes\",HLOOKUP(Calc_Option5!BC$6,'Carbon Prices'!$D$9:$CP$15,3,FALSE),HLOOKUP(Calc_Option5!BC$6,'Carbon Prices'!$D$9:$CP$15,6,FALSE)),0)","v":0},{"$f":"IFERROR(IF('Data Input - General'!$F$12=\"Yes\",HLOOKUP(Calc_Option5!BD$6,'Carbon Prices'!$D$9:$CP$15,3,FALSE),HLOOKUP(Calc_Option5!BD$6,'Carbon Prices'!$D$9:$CP$15,6,FALSE)),0)","v":0},{"$f":"IFERROR(IF('Data Input - General'!$F$12=\"Yes\",HLOOKUP(Calc_Option5!BE$6,'Carbon Prices'!$D$9:$CP$15,3,FALSE),HLOOKUP(Calc_Option5!BE$6,'Carbon Prices'!$D$9:$CP$15,6,FALSE)),0)","v":0},{"$f":"IFERROR(IF('Data Input - General'!$F$12=\"Yes\",HLOOKUP(Calc_Option5!BF$6,'Carbon Prices'!$D$9:$CP$15,3,FALSE),HLOOKUP(Calc_Option5!BF$6,'Carbon Prices'!$D$9:$CP$15,6,FALSE)),0)","v":0},{"$f":"IFERROR(IF('Data Input - General'!$F$12=\"Yes\",HLOOKUP(Calc_Option5!BG$6,'Carbon Prices'!$D$9:$CP$15,3,FALSE),HLOOKUP(Calc_Option5!BG$6,'Carbon Prices'!$D$9:$CP$15,6,FALSE)),0)","v":0},{"$f":"IFERROR(IF('Data Input - General'!$F$12=\"Yes\",HLOOKUP(Calc_Option5!BH$6,'Carbon Prices'!$D$9:$CP$15,3,FALSE),HLOOKUP(Calc_Option5!BH$6,'Carbon Prices'!$D$9:$CP$15,6,FALSE)),0)","v":0},{"$f":"IFERROR(IF('Data Input - General'!$F$12=\"Yes\",HLOOKUP(Calc_Option5!BI$6,'Carbon Prices'!$D$9:$CP$15,3,FALSE),HLOOKUP(Calc_Option5!BI$6,'Carbon Prices'!$D$9:$CP$15,6,FALSE)),0)","v":0},{"$f":"IFERROR(IF('Data Input - General'!$F$12=\"Yes\",HLOOKUP(Calc_Option5!BJ$6,'Carbon Prices'!$D$9:$CP$15,3,FALSE),HLOOKUP(Calc_Option5!BJ$6,'Carbon Prices'!$D$9:$CP$15,6,FALSE)),0)","v":0},{"$f":"IFERROR(IF('Data Input - General'!$F$12=\"Yes\",HLOOKUP(Calc_Option5!BK$6,'Carbon Prices'!$D$9:$CP$15,3,FALSE),HLOOKUP(Calc_Option5!BK$6,'Carbon Prices'!$D$9:$CP$15,6,FALSE)),0)","v":0},{"$f":"IFERROR(IF('Data Input - General'!$F$12=\"Yes\",HLOOKUP(Calc_Option5!BL$6,'Carbon Prices'!$D$9:$CP$15,3,FALSE),HLOOKUP(Calc_Option5!BL$6,'Carbon Prices'!$D$9:$CP$15,6,FALSE)),0)","v":0},{"$f":"IFERROR(IF('Data Input - General'!$F$12=\"Yes\",HLOOKUP(Calc_Option5!BM$6,'Carbon Prices'!$D$9:$CP$15,3,FALSE),HLOOKUP(Calc_Option5!BM$6,'Carbon Prices'!$D$9:$CP$15,6,FALSE)),0)","v":0},{"$f":"IFERROR(IF('Data Input - General'!$F$12=\"Yes\",HLOOKUP(Calc_Option5!BN$6,'Carbon Prices'!$D$9:$CP$15,3,FALSE),HLOOKUP(Calc_Option5!BN$6,'Carbon Prices'!$D$9:$CP$15,6,FALSE)),0)","v":0},{"$f":"IFERROR(IF('Data Input - General'!$F$12=\"Yes\",HLOOKUP(Calc_Option5!BO$6,'Carbon Prices'!$D$9:$CP$15,3,FALSE),HLOOKUP(Calc_Option5!BO$6,'Carbon Prices'!$D$9:$CP$15,6,FALSE)),0)","v":0},{"$f":"IFERROR(IF('Data Input - General'!$F$12=\"Yes\",HLOOKUP(Calc_Option5!BP$6,'Carbon Prices'!$D$9:$CP$15,3,FALSE),HLOOKUP(Calc_Option5!BP$6,'Carbon Prices'!$D$9:$CP$15,6,FALSE)),0)","v":0},{"$f":"IFERROR(IF('Data Input - General'!$F$12=\"Yes\",HLOOKUP(Calc_Option5!BQ$6,'Carbon Prices'!$D$9:$CP$15,3,FALSE),HLOOKUP(Calc_Option5!BQ$6,'Carbon Prices'!$D$9:$CP$15,6,FALSE)),0)","v":0},{"$f":"IFERROR(IF('Data Input - General'!$F$12=\"Yes\",HLOOKUP(Calc_Option5!BR$6,'Carbon Prices'!$D$9:$CP$15,3,FALSE),HLOOKUP(Calc_Option5!BR$6,'Carbon Prices'!$D$9:$CP$15,6,FALSE)),0)","v":0},{"$f":"IFERROR(IF('Data Input - General'!$F$12=\"Yes\",HLOOKUP(Calc_Option5!BS$6,'Carbon Prices'!$D$9:$CP$15,3,FALSE),HLOOKUP(Calc_Option5!BS$6,'Carbon Prices'!$D$9:$CP$15,6,FALSE)),0)","v":0},{"$f":"IFERROR(IF('Data Input - General'!$F$12=\"Yes\",HLOOKUP(Calc_Option5!BT$6,'Carbon Prices'!$D$9:$CP$15,3,FALSE),HLOOKUP(Calc_Option5!BT$6,'Carbon Prices'!$D$9:$CP$15,6,FALSE)),0)","v":0},{"$f":"IFERROR(IF('Data Input - General'!$F$12=\"Yes\",HLOOKUP(Calc_Option5!BU$6,'Carbon Prices'!$D$9:$CP$15,3,FALSE),HLOOKUP(Calc_Option5!BU$6,'Carbon Prices'!$D$9:$CP$15,6,FALSE)),0)","v":0},{"$f":"IFERROR(IF('Data Input - General'!$F$12=\"Yes\",HLOOKUP(Calc_Option5!BV$6,'Carbon Prices'!$D$9:$CP$15,3,FALSE),HLOOKUP(Calc_Option5!BV$6,'Carbon Prices'!$D$9:$CP$15,6,FALSE)),0)","v":0},{"$f":"IFERROR(IF('Data Input - General'!$F$12=\"Yes\",HLOOKUP(Calc_Option5!BW$6,'Carbon Prices'!$D$9:$CP$15,3,FALSE),HLOOKUP(Calc_Option5!BW$6,'Carbon Prices'!$D$9:$CP$15,6,FALSE)),0)","v":0},{"$f":"IFERROR(IF('Data Input - General'!$F$12=\"Yes\",HLOOKUP(Calc_Option5!BX$6,'Carbon Prices'!$D$9:$CP$15,3,FALSE),HLOOKUP(Calc_Option5!BX$6,'Carbon Prices'!$D$9:$CP$15,6,FALSE)),0)","v":0},{"$f":"IFERROR(IF('Data Input - General'!$F$12=\"Yes\",HLOOKUP(Calc_Option5!BY$6,'Carbon Prices'!$D$9:$CP$15,3,FALSE),HLOOKUP(Calc_Option5!BY$6,'Carbon Prices'!$D$9:$CP$15,6,FALSE)),0)","v":0},{"$f":"IFERROR(IF('Data Input - General'!$F$12=\"Yes\",HLOOKUP(Calc_Option5!BZ$6,'Carbon Prices'!$D$9:$CP$15,3,FALSE),HLOOKUP(Calc_Option5!BZ$6,'Carbon Prices'!$D$9:$CP$15,6,FALSE)),0)","v":0},{"$f":"IFERROR(IF('Data Input - General'!$F$12=\"Yes\",HLOOKUP(Calc_Option5!CA$6,'Carbon Prices'!$D$9:$CP$15,3,FALSE),HLOOKUP(Calc_Option5!CA$6,'Carbon Prices'!$D$9:$CP$15,6,FALSE)),0)","v":0},{"$f":"IFERROR(IF('Data Input - General'!$F$12=\"Yes\",HLOOKUP(Calc_Option5!CB$6,'Carbon Prices'!$D$9:$CP$15,3,FALSE),HLOOKUP(Calc_Option5!CB$6,'Carbon Prices'!$D$9:$CP$15,6,FALSE)),0)","v":0},{"$f":"IFERROR(IF('Data Input - General'!$F$12=\"Yes\",HLOOKUP(Calc_Option5!CC$6,'Carbon Prices'!$D$9:$CP$15,3,FALSE),HLOOKUP(Calc_Option5!CC$6,'Carbon Prices'!$D$9:$CP$15,6,FALSE)),0)","v":0},{"$f":"IFERROR(IF('Data Input - General'!$F$12=\"Yes\",HLOOKUP(Calc_Option5!CD$6,'Carbon Prices'!$D$9:$CP$15,3,FALSE),HLOOKUP(Calc_Option5!CD$6,'Carbon Prices'!$D$9:$CP$15,6,FALSE)),0)","v":0},{"$f":"IFERROR(IF('Data Input - General'!$F$12=\"Yes\",HLOOKUP(Calc_Option5!CE$6,'Carbon Prices'!$D$9:$CP$15,3,FALSE),HLOOKUP(Calc_Option5!CE$6,'Carbon Prices'!$D$9:$CP$15,6,FALSE)),0)","v":0},{"$f":"IFERROR(IF('Data Input - General'!$F$12=\"Yes\",HLOOKUP(Calc_Option5!CF$6,'Carbon Prices'!$D$9:$CP$15,3,FALSE),HLOOKUP(Calc_Option5!CF$6,'Carbon Prices'!$D$9:$CP$15,6,FALSE)),0)","v":0},{"$f":"IFERROR(IF('Data Input - General'!$F$12=\"Yes\",HLOOKUP(Calc_Option5!CG$6,'Carbon Prices'!$D$9:$CP$15,3,FALSE),HLOOKUP(Calc_Option5!CG$6,'Carbon Prices'!$D$9:$CP$15,6,FALSE)),0)","v":0},{"$f":"IFERROR(IF('Data Input - General'!$F$12=\"Yes\",HLOOKUP(Calc_Option5!CH$6,'Carbon Prices'!$D$9:$CP$15,3,FALSE),HLOOKUP(Calc_Option5!CH$6,'Carbon Prices'!$D$9:$CP$15,6,FALSE)),0)","v":0},{"$f":"IFERROR(IF('Data Input - General'!$F$12=\"Yes\",HLOOKUP(Calc_Option5!CI$6,'Carbon Prices'!$D$9:$CP$15,3,FALSE),HLOOKUP(Calc_Option5!CI$6,'Carbon Prices'!$D$9:$CP$15,6,FALSE)),0)","v":0},{"$f":"IFERROR(IF('Data Input - General'!$F$12=\"Yes\",HLOOKUP(Calc_Option5!CJ$6,'Carbon Prices'!$D$9:$CP$15,3,FALSE),HLOOKUP(Calc_Option5!CJ$6,'Carbon Prices'!$D$9:$CP$15,6,FALSE)),0)","v":0},{"$f":"IFERROR(IF('Data Input - General'!$F$12=\"Yes\",HLOOKUP(Calc_Option5!CK$6,'Carbon Prices'!$D$9:$CP$15,3,FALSE),HLOOKUP(Calc_Option5!CK$6,'Carbon Prices'!$D$9:$CP$15,6,FALSE)),0)","v":0},{"$f":"IFERROR(IF('Data Input - General'!$F$12=\"Yes\",HLOOKUP(Calc_Option5!CL$6,'Carbon Prices'!$D$9:$CP$15,3,FALSE),HLOOKUP(Calc_Option5!CL$6,'Carbon Prices'!$D$9:$CP$15,6,FALSE)),0)","v":0},{"$f":"IFERROR(IF('Data Input - General'!$F$12=\"Yes\",HLOOKUP(Calc_Option5!CM$6,'Carbon Prices'!$D$9:$CP$15,3,FALSE),HLOOKUP(Calc_Option5!CM$6,'Carbon Prices'!$D$9:$CP$15,6,FALSE)),0)","v":0},{"$f":"IFERROR(IF('Data Input - General'!$F$12=\"Yes\",HLOOKUP(Calc_Option5!CN$6,'Carbon Prices'!$D$9:$CP$15,3,FALSE),HLOOKUP(Calc_Option5!CN$6,'Carbon Prices'!$D$9:$CP$15,6,FALSE)),0)","v":0},{"$f":"IFERROR(IF('Data Input - General'!$F$12=\"Yes\",HLOOKUP(Calc_Option5!CO$6,'Carbon Prices'!$D$9:$CP$15,3,FALSE),HLOOKUP(Calc_Option5!CO$6,'Carbon Prices'!$D$9:$CP$15,6,FALSE)),0)","v":0},{"$f":"IFERROR(IF('Data Input - General'!$F$12=\"Yes\",HLOOKUP(Calc_Option5!CP$6,'Carbon Prices'!$D$9:$CP$15,3,FALSE),HLOOKUP(Calc_Option5!CP$6,'Carbon Prices'!$D$9:$CP$15,6,FALSE)),0)","v":0},{"$f":"IFERROR(IF('Data Input - General'!$F$12=\"Yes\",HLOOKUP(Calc_Option5!CQ$6,'Carbon Prices'!$D$9:$CP$15,3,FALSE),HLOOKUP(Calc_Option5!CQ$6,'Carbon Prices'!$D$9:$CP$15,6,FALSE)),0)","v":0},{"$f":"IFERROR(IF('Data Input - General'!$F$12=\"Yes\",HLOOKUP(Calc_Option5!CR$6,'Carbon Prices'!$D$9:$CP$15,3,FALSE),HLOOKUP(Calc_Option5!CR$6,'Carbon Prices'!$D$9:$CP$15,6,FALSE)),0)","v":0},{"$f":"IFERROR(IF('Data Input - General'!$F$12=\"Yes\",HLOOKUP(Calc_Option5!CS$6,'Carbon Prices'!$D$9:$CP$15,3,FALSE),HLOOKUP(Calc_Option5!CS$6,'Carbon Prices'!$D$9:$CP$15,6,FALSE)),0)","v":0},{"$f":"IFERROR(IF('Data Input - General'!$F$12=\"Yes\",HLOOKUP(Calc_Option5!CT$6,'Carbon Prices'!$D$9:$CP$15,3,FALSE),HLOOKUP(Calc_Option5!CT$6,'Carbon Prices'!$D$9:$CP$15,6,FALSE)),0)","v":0},{"$f":"IFERROR(IF('Data Input - General'!$F$12=\"Yes\",HLOOKUP(Calc_Option5!CU$6,'Carbon Prices'!$D$9:$CP$15,3,FALSE),HLOOKUP(Calc_Option5!CU$6,'Carbon Prices'!$D$9:$CP$15,6,FALSE)),0)","v":0},{"$f":"IFERROR(IF('Data Input - General'!$F$12=\"Yes\",HLOOKUP(Calc_Option5!CV$6,'Carbon Prices'!$D$9:$CP$15,3,FALSE),HLOOKUP(Calc_Option5!CV$6,'Carbon Prices'!$D$9:$CP$15,6,FALSE)),0)","v":0},{"$f":"IFERROR(IF('Data Input - General'!$F$12=\"Yes\",HLOOKUP(Calc_Option5!CW$6,'Carbon Prices'!$D$9:$CP$15,3,FALSE),HLOOKUP(Calc_Option5!CW$6,'Carbon Prices'!$D$9:$CP$15,6,FALSE)),0)","v":0},{"$f":"IFERROR(IF('Data Input - General'!$F$12=\"Yes\",HLOOKUP(Calc_Option5!CX$6,'Carbon Prices'!$D$9:$CP$15,3,FALSE),HLOOKUP(Calc_Option5!CX$6,'Carbon Prices'!$D$9:$CP$15,6,FALSE)),0)","v":0},{"$f":"IFERROR(IF('Data Input - General'!$F$12=\"Yes\",HLOOKUP(Calc_Option5!CY$6,'Carbon Prices'!$D$9:$CP$15,3,FALSE),HLOOKUP(Calc_Option5!CY$6,'Carbon Prices'!$D$9:$CP$15,6,FALSE)),0)","v":0}]
[null,"Total value","£000's",{"$f":"IFERROR(D75*D76,0)","v":0},{"$f":"IFERROR(E75*E76,0)","v":0},{"$f":"IFERROR(F75*F76,0)","v":0},{"$f":"IFERROR(G75*G76,0)","v":0},0,0,0,0,0,0,0,0,0,0,0,0,0,0,0,0,0,0,0,0,0,0,0,0,0,0,0,0,0,0,0,0,0,0,0,0,0,0,0,0,0,0,0,0,0,0,0,0,0,0,0,0,0,0,0,0,0,0,0,0,0,0,0,{"$f":"IFERROR(BS75*BS76,0)","v":0},0,0,0,0,0,0,0,0,0,0,0,0,0,0,0,0,0,0,0,0,0,0,0,0,0,0,0,0,0,0,0,0]
[]
[null,"Greenhouse gas emissions (associated with fuel use)"]
[null,"Elec","tCO2e",{"$f":"'Data Input - Option 5'!H120","v":0},{"$f":"'Data Input - Option 5'!I120","v":0},{"$f":"'Data Input - Option 5'!J120","v":0},{"$f":"'Data Input - Option 5'!K120","v":0},{"$f":"'Data Input - Option 5'!L120","v":0},{"$f":"'Data Input - Option 5'!M120","v":0},{"$f":"'Data Input - Option 5'!N120","v":0},{"$f":"'Data Input - Option 5'!O120","v":0},{"$f":"'Data Input - Option 5'!P120","v":0},{"$f":"'Data Input - Option 5'!Q120","v":0},{"$f":"'Data Input - Option 5'!R120","v":0},{"$f":"'Data Input - Option 5'!S120","v":0},{"$f":"'Data Input - Option 5'!T120","v":0},{"$f":"'Data Input - Option 5'!U120","v":0},{"$f":"'Data Input - Option 5'!V120","v":0},{"$f":"'Data Input - Option 5'!W120","v":0},{"$f":"'Data Input - Option 5'!X120","v":0},{"$f":"'Data Input - Option 5'!Y120","v":0},{"$f":"'Data Input - Option 5'!Z120","v":0},{"$f":"'Data Input - Option 5'!AA120","v":0},{"$f":"'Data Input - Option 5'!AB120","v":0},{"$f":"'Data Input - Option 5'!AC120","v":0},{"$f":"'Data Input - Option 5'!AD120","v":0},{"$f":"'Data Input - Option 5'!AE120","v":0},{"$f":"'Data Input - Option 5'!AF120","v":0},{"$f":"'Data Input - Option 5'!AG120","v":0},{"$f":"'Data Input - Option 5'!AH120","v":0},{"$f":"'Data Input - Option 5'!AI120","v":0},{"$f":"'Data Input - Option 5'!AJ120","v":0},{"$f":"'Data Input - Option 5'!AK120","v":0},{"$f":"'Data Input - Option 5'!AL120","v":0},{"$f":"'Data Input - Option 5'!AM120","v":0},{"$f":"'Data Input - Option 5'!AN120","v":0},{"$f":"'Data Input - Option 5'!AO120","v":0},{"$f":"'Data Input - Option 5'!AP120","v":0},{"$f":"'Data Input - Option 5'!AQ120","v":0},{"$f":"'Data Input - Option 5'!AR120","v":0},{"$f":"'Data Input - Option 5'!AS120","v":0},{"$f":"'Data Input - Option 5'!AT120","v":0},{"$f":"'Data Input - Option 5'!AU120","v":0},{"$f":"'Data Input - Option 5'!AV120","v":0},{"$f":"'Data Input - Option 5'!AW120","v":0},{"$f":"'Data Input - Option 5'!AX120","v":0},{"$f":"'Data Input - Option 5'!AY120","v":0},{"$f":"'Data Input - Option 5'!AZ120","v":0},{"$f":"'Data Input - Option 5'!BA120","v":0},{"$f":"'Data Input - Option 5'!BB120","v":0},{"$f":"'Data Input - Option 5'!BC120","v":0},{"$f":"'Data Input - Option 5'!BD120","v":0},{"$f":"'Data Input - Option 5'!BE120","v":0},{"$f":"'Data Input - Option 5'!BF120","v":0},{"$f":"'Data Input - Option 5'!BG120","v":0},{"$f":"'Data Input - Option 5'!BH120","v":0},{"$f":"'Data Input - Option 5'!BI120","v":0},{"$f":"'Data Input - Option 5'!BJ120","v":0},{"$f":"'Data Input - Option 5'!BK120","v":0},{"$f":"'Data Input - Option 5'!BL120","v":0},{"$f":"'Data Input - Option 5'!BM120","v":0},{"$f":"'Data Input - Option 5'!BN120","v":0},{"$f":"'Data Input - Option 5'!BO120","v":0},{"$f":"'Data Input - Option 5'!BP120","v":0},{"$f":"'Data Input - Option 5'!BQ120","v":0},{"$f":"'Data Input - Option 5'!BR120","v":0},{"$f":"'Data Input - Option 5'!BS120","v":0},{"$f":"'Data Input - Option 5'!BT120","v":0},{"$f":"'Data Input - Option 5'!BU120","v":0},{"$f":"'Data Input - Option 5'!BV120","v":0},{"$f":"'Data Input - Option 5'!BW120","v":0},{"$f":"'Data Input - Option 5'!BX120","v":0},{"$f":"'Data Input - Option 5'!BY120","v":0},{"$f":"'Data Input - Option 5'!BZ120","v":0},{"$f":"'Data Input - Option 5'!CA120","v":0},{"$f":"'Data Input - Option 5'!CB120","v":0},{"$f":"'Data Input - Option 5'!CC120","v":0},{"$f":"'Data Input - Option 5'!CD120","v":0},{"$f":"'Data Input - Option 5'!CE120","v":0},{"$f":"'Data Input - Option 5'!CF120","v":0},{"$f":"'Data Input - Option 5'!CG120","v":0},{"$f":"'Data Input - Option 5'!CH120","v":0},{"$f":"'Data Input - Option 5'!CI120","v":0},{"$f":"'Data Input - Option 5'!CJ120","v":0},{"$f":"'Data Input - Option 5'!CK120","v":0},{"$f":"'Data Input - Option 5'!CL120","v":0},{"$f":"'Data Input - Option 5'!CM120","v":0},{"$f":"'Data Input - Option 5'!CN120","v":0},{"$f":"'Data Input - Option 5'!CO120","v":0},{"$f":"'Data Input - Option 5'!CP120","v":0},{"$f":"'Data Input - Option 5'!CQ120","v":0},{"$f":"'Data Input - Option 5'!CR120","v":0},{"$f":"'Data Input - Option 5'!CS120","v":0},{"$f":"'Data Input - Option 5'!CT120","v":0},{"$f":"'Data Input - Option 5'!CU120","v":0},{"$f":"'Data Input - Option 5'!CV120","v":0},{"$f":"'Data Input - Option 5'!CW120","v":0},{"$f":"'Data Input - Option 5'!CX120","v":0},{"$f":"'Data Input - Option 5'!CY120","v":0},{"$f":"'Data Input - Option 5'!CZ120","v":0},{"$f":"'Data Input - Option 5'!DA120","v":0},{"$f":"'Data Input - Option 5'!DB120","v":0},{"$f":"'Data Input - Option 5'!DC120","v":0}]
[null,"Non-elec","tCO2e",{"$f":"'Data Input - Option 5'!H128-'Data Input - Option 5'!H120","v":0},{"$f":"'Data Input - Option 5'!I128-'Data Input - Option 5'!I120","v":0},{"$f":"'Data Input - Option 5'!J128-'Data Input - Option 5'!J120","v":0},{"$f":"'Data Input - Option 5'!K128-'Data Input - Option 5'!K120","v":0},{"$f":"'Data Input - Option 5'!L128-'Data Input - Option 5'!L120","v":0},{"$f":"'Data Input - Option 5'!M128-'Data Input - Option 5'!M120","v":0},{"$f":"'Data Input - Option 5'!N128-'Data Input - Option 5'!N120","v":0},{"$f":"'Data Input - Option 5'!O128-'Data Input - Option 5'!O120","v":0},{"$f":"'Data Input - Option 5'!P128-'Data Input - Option 5'!P120","v":0},{"$f":"'Data Input - Option 5'!Q128-'Data Input - Option 5'!Q120","v":0},{"$f":"'Data Input - Option 5'!R128-'Data Input - Option 5'!R120","v":0},{"$f":"'Data Input - Option 5'!S128-'Data Input - Option 5'!S120","v":0},{"$f":"'Data Input - Option 5'!T128-'Data Input - Option 5'!T120","v":0},{"$f":"'Data Input - Option 5'!U128-'Data Input - Option 5'!U120","v":0},{"$f":"'Data Input - Option 5'!V128-'Data Input - Option 5'!V120","v":0},{"$f":"'Data Input - Option 5'!W128-'Data Input - Option 5'!W120","v":0},{"$f":"'Data Input - Option 5'!X128-'Data Input - Option 5'!X120","v":0},{"$f":"'Data Input - Option 5'!Y128-'Data Input - Option 5'!Y120","v":0},{"$f":"'Data Input - Option 5'!Z128-'Data Input - Option 5'!Z120","v":0},{"$f":"'Data Input - Option 5'!AA128-'Data Input - Option 5'!AA120","v":0},{"$f":"'Data Input - Option 5'!AB128-'Data Input - Option 5'!AB120","v":0},{"$f":"'Data Input - Option 5'!AC128-'Data Input - Option 5'!AC120","v":0},{"$f":"'Data Input - Option 5'!AD128-'Data Input - Option 5'!AD120","v":0},{"$f":"'Data Input - Option 5'!AE128-'Data Input - Option 5'!AE120","v":0},{"$f":"'Data Input - Option 5'!AF128-'Data Input - Option 5'!AF120","v":0},{"$f":"'Data Input - Option 5'!AG128-'Data Input - Option 5'!AG120","v":0},{"$f":"'Data Input - Option 5'!AH128-'Data Input - Option 5'!AH120","v":0},{"$f":"'Data Input - Option 5'!AI128-'Data Input - Option 5'!AI120","v":0},{"$f":"'Data Input - Option 5'!AJ128-'Data Input - Option 5'!AJ120","v":0},{"$f":"'Data Input - Option 5'!AK128-'Data Input - Option 5'!AK120","v":0},{"$f":"'Data Input - Option 5'!AL128-'Data Input - Option 5'!AL120","v":0},{"$f":"'Data Input - Option 5'!AM128-'Data Input - Option 5'!AM120","v":0},{"$f":"'Data Input - Option 5'!AN128-'Data Input - Option 5'!AN120","v":0},{"$f":"'Data Input - Option 5'!AO128-'Data Input - Option 5'!AO120","v":0},{"$f":"'Data Input - Option 5'!AP128-'Data Input - Option 5'!AP120","v":0},{"$f":"'Data Input - Option 5'!AQ128-'Data Input - Option 5'!AQ120","v":0},{"$f":"'Data Input - Option 5'!AR128-'Data Input - Option 5'!AR120","v":0},{"$f":"'Data Input - Option 5'!AS128-'Data Input - Option 5'!AS120","v":0},{"$f":"'Data Input - Option 5'!AT128-'Data Input - Option 5'!AT120","v":0},{"$f":"'Data Input - Option 5'!AU128-'Data Input - Option 5'!AU120","v":0},{"$f":"'Data Input - Option 5'!AV128-'Data Input - Option 5'!AV120","v":0},{"$f":"'Data Input - Option 5'!AW128-'Data Input - Option 5'!AW120","v":0},{"$f":"'Data Input - Option 5'!AX128-'Data Input - Option 5'!AX120","v":0},{"$f":"'Data Input - Option 5'!AY128-'Data Input - Option 5'!AY120","v":0},{"$f":"'Data Input - Option 5'!AZ128-'Data Input - Option 5'!AZ120","v":0},{"$f":"'Data Input - Option 5'!BA128-'Data Input - Option 5'!BA120","v":0},{"$f":"'Data Input - Option 5'!BB128-'Data Input - Option 5'!BB120","v":0},{"$f":"'Data Input - Option 5'!BC128-'Data Input - Option 5'!BC120","v":0},{"$f":"'Data Input - Option 5'!BD128-'Data Input - Option 5'!BD120","v":0},{"$f":"'Data Input - Option 5'!BE128-'Data Input - Option 5'!BE120","v":0},{"$f":"'Data Input - Option 5'!BF128-'Data Input - Option 5'!BF120","v":0},{"$f":"'Data Input - Option 5'!BG128-'Data Input - Option 5'!BG120","v":0},{"$f":"'Data Input - Option 5'!BH128-'Data Input - Option 5'!BH120","v":0},{"$f":"'Data Input - Option 5'!BI128-'Data Input - Option 5'!BI120","v":0},{"$f":"'Data Input - Option 5'!BJ128-'Data Input - Option 5'!BJ120","v":0},{"$f":"'Data Input - Option 5'!BK128-'Data Input - Option 5'!BK120","v":0},{"$f":"'Data Input - Option 5'!BL128-'Data Input - Option 5'!BL120","v":0},{"$f":"'Data Input - Option 5'!BM128-'Data Input - Option 5'!BM120","v":0},{"$f":"'Data Input - Option 5'!BN128-'Data Input - Option 5'!BN120","v":0},{"$f":"'Data Input - Option 5'!BO128-'Data Input - Option 5'!BO120","v":0},{"$f":"'Data Input - Option 5'!BP128-'Data Input - Option 5'!BP120","v":0},{"$f":"'Data Input - Option 5'!BQ128-'Data Input - Option 5'!BQ120","v":0},{"$f":"'Data Input - Option 5'!BR128-'Data Input - Option 5'!BR120","v":0},{"$f":"'Data Input - Option 5'!BS128-'Data Input - Option 5'!BS120","v":0},{"$f":"'Data Input - Option 5'!BT128-'Data Input - Option 5'!BT120","v":0},{"$f":"'Data Input - Option 5'!BU128-'Data Input - Option 5'!BU120","v":0},{"$f":"'Data Input - Option 5'!BV128-'Data Input - Option 5'!BV120","v":0},{"$f":"'Data Input - Option 5'!BW128-'Data Input - Option 5'!BW120","v":0},{"$f":"'Data Input - Option 5'!BX128-'Data Input - Option 5'!BX120","v":0},{"$f":"'Data Input - Option 5'!BY128-'Data Input - Option 5'!BY120","v":0},{"$f":"'Data Input - Option 5'!BZ128-'Data Input - Option 5'!BZ120","v":0},{"$f":"'Data Input - Option 5'!CA128-'Data Input - Option 5'!CA120","v":0},{"$f":"'Data Input - Option 5'!CB128-'Data Input - Option 5'!CB120","v":0},{"$f":"'Data Input - Option 5'!CC128-'Data Input - Option 5'!CC120","v":0},{"$f":"'Data Input - Option 5'!CD128-'Data Input - Option 5'!CD120","v":0},{"$f":"'Data Input - Option 5'!CE128-'Data Input - Option 5'!CE120","v":0},{"$f":"'Data Input - Option 5'!CF128-'Data Input - Option 5'!CF120","v":0},{"$f":"'Data Input - Option 5'!CG128-'Data Input - Option 5'!CG120","v":0},{"$f":"'Data Input - Option 5'!CH128-'Data Input - Option 5'!CH120","v":0},{"$f":"'Data Input - Option 5'!CI128-'Data Input - Option 5'!CI120","v":0},{"$f":"'Data Input - Option 5'!CJ128-'Data Input - Option 5'!CJ120","v":0},{"$f":"'Data Input - Option 5'!CK128-'Data Input - Option 5'!CK120","v":0},{"$f":"'Data Input - Option 5'!CL128-'Data Input - Option 5'!CL120","v":0},{"$f":"'Data Input - Option 5'!CM128-'Data Input - Option 5'!CM120","v":0},{"$f":"'Data Input - Option 5'!CN128-'Data Input - Option 5'!CN120","v":0},{"$f":"'Data Input - Option 5'!CO128-'Data Input - Option 5'!CO120","v":0},{"$f":"'Data Input - Option 5'!CP128-'Data Input - Option 5'!CP120","v":0},{"$f":"'Data Input - Option 5'!CQ128-'Data Input - Option 5'!CQ120","v":0},{"$f":"'Data Input - Option 5'!CR128-'Data Input - Option 5'!CR120","v":0},{"$f":"'Data Input - Option 5'!CS128-'Data Input - Option 5'!CS120","v":0},{"$f":"'Data Input - Option 5'!CT128-'Data Input - Option 5'!CT120","v":0},{"$f":"'Data Input - Option 5'!CU128-'Data Input - Option 5'!CU120","v":0},{"$f":"'Data Input - Option 5'!CV128-'Data Input - Option 5'!CV120","v":0},{"$f":"'Data Input - Option 5'!CW128-'Data Input - Option 5'!CW120","v":0},{"$f":"'Data Input - Option 5'!CX128-'Data Input - Option 5'!CX120","v":0},{"$f":"'Data Input - Option 5'!CY128-'Data Input - Option 5'!CY120","v":0},{"$f":"'Data Input - Option 5'!CZ128-'Data Input - Option 5'!CZ120","v":0},{"$f":"'Data Input - Option 5'!DA128-'Data Input - Option 5'!DA120","v":0},{"$f":"'Data Input - Option 5'!DB128-'Data Input - Option 5'!DB120","v":0},{"$f":"'Data Input - Option 5'!DC128-'Data Input - Option 5'!DC120","v":0}]
[null,"Value elec","£000's",{"$f":"HLOOKUP(Calc_Option5!D$6,'Carbon Prices'!$D$9:$CP$15,3,FALSE)","v":6.8248086829049139},{"$f":"HLOOKUP(Calc_Option5!E$6,'Carbon Prices'!$D$9:$CP$15,3,FALSE)","v":7.0841514128553005},{"$f":"HLOOKUP(Calc_Option5!F$6,'Carbon Prices'!$D$9:$CP$15,3,FALSE)","v":14.809366678834097},{"$f":"HLOOKUP(Calc_Option5!G$6,'Carbon Prices'!$D$9:$CP$15,3,FALSE)","v":22.534581944812892},{"$f":"HLOOKUP(Calc_Option5!H$6,'Carbon Prices'!$D$9:$CP$15,3,FALSE)","v":30.259797210791689},{"$f":"HLOOKUP(Calc_Option5!I$6,'Carbon Prices'!$D$9:$CP$15,3,FALSE)","v":37.985012476770486},{"$f":"HLOOKUP(Calc_Option5!J$6,'Carbon Prices'!$D$9:$CP$15,3,FALSE)","v":45.710227742749282},{"$f":"HLOOKUP(Calc_Option5!K$6,'Carbon Prices'!$D$9:$CP$15,3,FALSE)","v":53.435443008728079},{"$f":"HLOOKUP(Calc_Option5!L$6,'Carbon Prices'!$D$9:$CP$15,3,FALSE)","v":61.160658274706876},{"$f":"HLOOKUP(Calc_Option5!M$6,'Carbon Prices'!$D$9:$CP$15,3,FALSE)","v":68.885873540685665},{"$f":"HLOOKUP(Calc_Option5!N$6,'Carbon Prices'!$D$9:$CP$15,3,FALSE)","v":76.611088806664469},{"$f":"HLOOKUP(Calc_Option5!O$6,'Carbon Prices'!$D$9:$CP$15,3,FALSE)","v":84.336304072643259},{"$f":"HLOOKUP(Calc_Option5!P$6,'Carbon Prices'!$D$9:$CP$15,3,FALSE)","v":92.167532307960172},{"$f":"HLOOKUP(Calc_Option5!Q$6,'Carbon Prices'!$D$9:$CP$15,3,FALSE)","v":99.998760543277044},{"$f":"HLOOKUP(Calc_Option5!R$6,'Carbon Prices'!$D$9:$CP$15,3,FALSE)","v":107.82998877859391},{"$f":"HLOOKUP(Calc_Option5!S$6,'Carbon Prices'!$D$9:$CP$15,3,FALSE)","v":115.6612170139108},{"$f":"HLOOKUP(Calc_Option5!T$6,'Carbon Prices'!$D$9:$CP$15,3,FALSE)","v":123.49244524922767},{"$f":"HLOOKUP(Calc_Option5!U$6,'Carbon Prices'!$D$9:$CP$15,3,FALSE)","v":131.32367348454454},{"$f":"HLOOKUP(Calc_Option5!V$6,'Carbon Prices'!$D$9:$CP$15,3,FALSE)","v":139.15490171986141},{"$f":"HLOOKUP(Calc_Option5!W$6,'Carbon Prices'!$D$9:$CP$15,3,FALSE)","v":146.98612995517828},{"$f":"HLOOKUP(Calc_Option5!X$6,'Carbon Prices'!$D$9:$CP$15,3,FALSE)","v":154.81735819049521},{"$f":"HLOOKUP(Calc_Option5!Y$6,'Carbon Prices'!$D$9:$CP$15,3,FALSE)","v":162.64858642581208},{"$f":"HLOOKUP(Calc_Option5!Z$6,'Carbon Prices'!$D$9:$CP$15,3,FALSE)","v":170.47981466112896},{"$f":"HLOOKUP(Calc_Option5!AA$6,'Carbon Prices'!$D$9:$CP$15,3,FALSE)","v":178.31104289644583},{"$f":"HLOOKUP(Calc_Option5!AB$6,'Carbon Prices'!$D$9:$CP$15,3,FALSE)","v":186.1422711317627},{"$f":"HLOOKUP(Calc_Option5!AC$6,'Carbon Prices'!$D$9:$CP$15,3,FALSE)","v":193.97349936707957},{"$f":"HLOOKUP(Calc_Option5!AD$6,'Carbon Prices'!$D$9:$CP$15,3,FALSE)","v":201.80472760239644},{"$f":"HLOOKUP(Calc_Option5!AE$6,'Carbon Prices'!$D$9:$CP$15,3,FALSE)","v":209.63595583771331},{"$f":"HLOOKUP(Calc_Option5!AF$6,'Carbon Prices'!$D$9:$CP$15,3,FALSE)","v":217.46718407303021},{"$f":"HLOOKUP(Calc_Option5!AG$6,'Carbon Prices'!$D$9:$CP$15,3,FALSE)","v":225.29841230834708},{"$f":"HLOOKUP(Calc_Option5!AH$6,'Carbon Prices'!$D$9:$CP$15,3,FALSE)","v":233.12964054366395},{"$f":"HLOOKUP(Calc_Option5!AI$6,'Carbon Prices'!$D$9:$CP$15,3,FALSE)","v":{"$error":"#N/A"}},{"$f":"HLOOKUP(Calc_Option5!AJ$6,'Carbon Prices'!$D$9:$CP$15,3,FALSE)","v":{"$error":"#N/A"}},{"$f":"HLOOKUP(Calc_Option5!AK$6,'Carbon Prices'!$D$9:$CP$15,3,FALSE)","v":{"$error":"#N/A"}},{"$f":"HLOOKUP(Calc_Option5!AL$6,'Carbon Prices'!$D$9:$CP$15,3,FALSE)","v":{"$error":"#N/A"}},{"$f":"HLOOKUP(Calc_Option5!AM$6,'Carbon Prices'!$D$9:$CP$15,3,FALSE)","v":{"$error":"#N/A"}},{"$f":"HLOOKUP(Calc_Option5!AN$6,'Carbon Prices'!$D$9:$CP$15,3,FALSE)","v":{"$error":"#N/A"}},{"$f":"HLOOKUP(Calc_Option5!AO$6,'Carbon Prices'!$D$9:$CP$15,3,FALSE)","v":{"$error":"#N/A"}},{"$f":"HLOOKUP(Calc_Option5!AP$6,'Carbon Prices'!$D$9:$CP$15,3,FALSE)","v":{"$error":"#N/A"}},{"$f":"HLOOKUP(Calc_Option5!AQ$6,'Carbon Prices'!$D$9:$CP$15,3,FALSE)","v":{"$error":"#N/A"}},{"$f":"HLOOKUP(Calc_Option5!AR$6,'Carbon Prices'!$D$9:$CP$15,3,FALSE)","v":{"$error":"#N/A"}},{"$f":"HLOOKUP(Calc_Option5!AS$6,'Carbon Prices'!$D$9:$CP$15,3,FALSE)","v":{"$error":"#N/A"}},{"$f":"HLOOKUP(Calc_Option5!AT$6,'Carbon Prices'!$D$9:$CP$15,3,FALSE)","v":{"$error":"#N/A"}},{"$f":"HLOOKUP(Calc_Option5!AU$6,'Carbon Prices'!$D$9:$CP$15,3,FALSE)","v":{"$error":"#N/A"}},{"$f":"HLOOKUP(Calc_Option5!AV$6,'Carbon Prices'!$D$9:$CP$15,3,FALSE)","v":{"$error":"#N/A"}},{"$f":"HLOOKUP(Calc_Option5!AW$6,'Carbon Prices'!$D$9:$CP$15,3,FALSE)","v":{"$error":"#N/A"}},{"$f":"HLOOKUP(Calc_Option5!AX$6,'Carbon Prices'!$D$9:$CP$15,3,FALSE)","v":{"$error":"#N/A"}},{"$f":"HLOOKUP(Calc_Option5!AY$6,'Carbon Prices'!$D$9:$CP$15,3,FALSE)","v":{"$error":"#N/A"}},{"$f":"HLOOKUP(Calc_Option5!AZ$6,'Carbon Prices'!$D$9:$CP$15,3,FALSE)","v":{"$error":"#N/A"}},{"$f":"HLOOKUP(Calc_Option5!BA$6,'Carbon Prices'!$D$9:$CP$15,3,FALSE)","v":{"$error":"#N/A"}},{"$f":"HLOOKUP(Calc_Option5!BB$6,'Carbon Prices'!$D$9:$CP$15,3,FALSE)","v":{"$error":"#N/A"}},{"$f":"HLOOKUP(Calc_Option5!BC$6,'Carbon Prices'!$D$9:$CP$15,3,FALSE)","v":{"$error":"#N/A"}},{"$f":"HLOOKUP(Calc_Option5!BD$6,'Carbon Prices'!$D$9:$CP$15,3,FALSE)","v":{"$error":"#N/A"}},{"$f":"HLOOKUP(Calc_Option5!BE$6,'Carbon Prices'!$D$9:$CP$15,3,FALSE)","v":{"$error":"#N/A"}},{"$f":"HLOOKUP(Calc_Option5!BF$6,'Carbon Prices'!$D$9:$CP$15,3,FALSE)","v":{"$error":"#N/A"}},{"$f":"HLOOKUP(Calc_Option5!BG$6,'Carbon Prices'!$D$9:$CP$15,3,FALSE)","v":{"$error":"#N/A"}},{"$f":"HLOOKUP(Calc_Option5!BH$6,'Carbon Prices'!$D$9:$CP$15,3,FALSE)","v":{"$error":"#N/A"}},{"$f":"HLOOKUP(Calc_Option5!BI$6,'Carbon Prices'!$D$9:$CP$15,3,FALSE)","v":{"$error":"#N/A"}},{"$f":"HLOOKUP(Calc_Option5!BJ$6,'Carbon Prices'!$D$9:$CP$15,3,FALSE)","v":{"$error":"#N/A"}},{"$f":"HLOOKUP(Calc_Option5!BK$6,'Carbon Prices'!$D$9:$CP$15,3,FALSE)","v":{"$error":"#N/A"}},{"$f":"HLOOKUP(Calc_Option5!BL$6,'Carbon Prices'!$D$9:$CP$15,3,FALSE)","v":{"$error":"#N/A"}},{"$f":"HLOOKUP(Calc_Option5!BM$6,'Carbon Prices'!$D$9:$CP$15,3,FALSE)","v":{"$error":"#N/A"}},{"$f":"HLOOKUP(Calc_Option5!BN$6,'Carbon Prices'!$D$9:$CP$15,3,FALSE)","v":{"$error":"#N/A"}},{"$f":"HLOOKUP(Calc_Option5!BO$6,'Carbon Prices'!$D$9:$CP$15,3,FALSE)","v":{"$error":"#N/A"}},{"$f":"HLOOKUP(Calc_Option5!BP$6,'Carbon Prices'!$D$9:$CP$15,3,FALSE)","v":{"$error":"#N/A"}},{"$f":"HLOOKUP(Calc_Option5!BQ$6,'Carbon Prices'!$D$9:$CP$15,3,FALSE)","v":{"$error":"#N/A"}},{"$f":"HLOOKUP(Calc_Option5!BR$6,'Carbon Prices'!$D$9:$CP$15,3,FALSE)","v":{"$error":"#N/A"}},{"$f":"HLOOKUP(Calc_Option5!BS$6,'Carbon Prices'!$D$9:$CP$15,3,FALSE)","v":{"$error":"#N/A"}},{"$f":"HLOOKUP(Calc_Option5!BT$6,'Carbon Prices'!$D$9:$CP$15,3,FALSE)","v":{"$error":"#N/A"}},{"$f":"HLOOKUP(Calc_Option5!BU$6,'Carbon Prices'!$D$9:$CP$15,3,FALSE)","v":{"$error":"#N/A"}},{"$f":"HLOOKUP(Calc_Option5!BV$6,'Carbon Prices'!$D$9:$CP$15,3,FALSE)","v":{"$error":"#N/A"}},{"$f":"HLOOKUP(Calc_Option5!BW$6,'Carbon Prices'!$D$9:$CP$15,3,FALSE)","v":{"$error":"#N/A"}},{"$f":"HLOOKUP(Calc_Option5!BX$6,'Carbon Prices'!$D$9:$CP$15,3,FALSE)","v":{"$error":"#N/A"}},{"$f":"HLOOKUP(Calc_Option5!BY$6,'Carbon Prices'!$D$9:$CP$15,3,FALSE)","v":{"$error":"#N/A"}},{"$f":"HLOOKUP(Calc_Option5!BZ$6,'Carbon Prices'!$D$9:$CP$15,3,FALSE)","v":{"$error":"#N/A"}},{"$f":"HLOOKUP(Calc_Option5!CA$6,'Carbon Prices'!$D$9:$CP$15,3,FALSE)","v":{"$error":"#N/A"}},{"$f":"HLOOKUP(Calc_Option5!CB$6,'Carbon Prices'!$D$9:$CP$15,3,FALSE)","v":{"$error":"#N/A"}},{"$f":"HLOOKUP(Calc_Option5!CC$6,'Carbon Prices'!$D$9:$CP$15,3,FALSE)","v":{"$error":"#N/A"}},{"$f":"HLOOKUP(Calc_Option5!CD$6,'Carbon Prices'!$D$9:$CP$15,3,FALSE)","v":{"$error":"#N/A"}},{"$f":"HLOOKUP(Calc_Option5!CE$6,'Carbon Prices'!$D$9:$CP$15,3,FALSE)","v":{"$error":"#N/A"}},{"$f":"HLOOKUP(Calc_Option5!CF$6,'Carbon Prices'!$D$9:$CP$15,3,FALSE)","v":{"$error":"#N/A"}},{"$f":"HLOOKUP(Calc_Option5!CG$6,'Carbon Prices'!$D$9:$CP$15,3,FALSE)","v":{"$error":"#N/A"}},{"$f":"HLOOKUP(Calc_Option5!CH$6,'Carbon Prices'!$D$9:$CP$15,3,FALSE)","v":{"$error":"#N/A"}},{"$f":"HLOOKUP(Calc_Option5!CI$6,'Carbon Prices'!$D$9:$CP$15,3,FALSE)","v":{"$error":"#N/A"}},{"$f":"HLOOKUP(Calc_Option5!CJ$6,'Carbon Prices'!$D$9:$CP$15,3,FALSE)","v":{"$error":"#N/A"}},{"$f":"HLOOKUP(Calc_Option5!CK$6,'Carbon Prices'!$D$9:$CP$15,3,FALSE)","v":{"$error":"#N/A"}},{"$f":"HLOOKUP(Calc_Option5!CL$6,'Carbon Prices'!$D$9:$CP$15,3,FALSE)","v":{"$error":"#N/A"}},{"$f":"HLOOKUP(Calc_Option5!CM$6,'Carbon Prices'!$D$9:$CP$15,3,FALSE)","v":{"$error":"#N/A"}},{"$f":"HLOOKUP(Calc_Option5!CN$6,'Carbon Prices'!$D$9:$CP$15,3,FALSE)","v":{"$error":"#N/A"}},{"$f":"HLOOKUP(Calc_Option5!CO$6,'Carbon Prices'!$D$9:$CP$15,3,FALSE)","v":{"$error":"#N/A"}},{"$f":"HLOOKUP(Calc_Option5!CP$6,'Carbon Prices'!$D$9:$CP$15,3,FALSE)","v":{"$error":"#N/A"}},{"$f":"HLOOKUP(Calc_Option5!CQ$6,'Carbon Prices'!$D$9:$CP$15,3,FALSE)","v":{"$error":"#N/A"}},{"$f":"HLOOKUP(Calc_Option5!CR$6,'Carbon Prices'!$D$9:$CP$15,3,FALSE)","v":{"$error":"#N/A"}},{"$f":"HLOOKUP(Calc_Option5!CS$6,'Carbon Prices'!$D$9:$CP$15,3,FALSE)","v":{"$error":"#N/A"}},{"$f":"HLOOKUP(Calc_Option5!CT$6,'Carbon Prices'!$D$9:$CP$15,3,FALSE)","v":{"$error":"#N/A"}},{"$f":"HLOOKUP(Calc_Option5!CU$6,'Carbon Prices'!$D$9:$CP$15,3,FALSE)","v":{"$error":"#N/A"}},{"$f":"HLOOKUP(Calc_Option5!CV$6,'Carbon Prices'!$D$9:$CP$15,3,FALSE)","v":{"$error":"#N/A"}},{"$f":"HLOOKUP(Calc_Option5!CW$6,'Carbon Prices'!$D$9:$CP$15,3,FALSE)","v":{"$error":"#N/A"}},{"$f":"HLOOKUP(Calc_Option5!CX$6,'Carbon Prices'!$D$9:$CP$15,3,FALSE)","v":{"$error":"#N/A"}},{"$f":"HLOOKUP(Calc_Option5!CY$6,'Carbon Prices'!$D$9:$CP$15,3,FALSE)","v":{"$error":"#N/A"}}]
[null,"Value non-elec","£000's",{"$f":"IF('Data Input - General'!$F$10=\"Yes\",HLOOKUP(Calc_Option5!D$6,'Carbon Prices'!$D$9:$CP$15,3,FALSE),HLOOKUP(Calc_Option5!D$6,'Carbon Prices'!$D$9:$CP$15,6,FALSE))","v":6.8248086829049139},{"$f":"IF('Data Input - General'!$F$10=\"Yes\",HLOOKUP(Calc_Option5!E$6,'Carbon Prices'!$D$9:$CP$15,3,FALSE),HLOOKUP(Calc_Option5!E$6,'Carbon Prices'!$D$9:$CP$15,6,FALSE))","v":7.0841514128553005},{"$f":"IF('Data Input - General'!$F$10=\"Yes\",HLOOKUP(Calc_Option5!F$6,'Carbon Prices'!$D$9:$CP$15,3,FALSE),HLOOKUP(Calc_Option5!F$6,'Carbon Prices'!$D$9:$CP$15,6,FALSE))","v":14.809366678834097},{"$f":"IF('Data Input - General'!$F$10=\"Yes\",HLOOKUP(Calc_Option5!G$6,'Carbon Prices'!$D$9:$CP$15,3,FALSE),HLOOKUP(Calc_Option5!G$6,'Carbon Prices'!$D$9:$CP$15,6,FALSE))","v":22.534581944812892},{"$f":"IF('Data Input - General'!$F$10=\"Yes\",HLOOKUP(Calc_Option5!H$6,'Carbon Prices'!$D$9:$CP$15,3,FALSE),HLOOKUP(Calc_Option5!H$6,'Carbon Prices'!$D$9:$CP$15,6,FALSE))","v":30.259797210791689},{"$f":"IF('Data Input - General'!$F$10=\"Yes\",HLOOKUP(Calc_Option5!I$6,'Carbon Prices'!$D$9:$CP$15,3,FALSE),HLOOKUP(Calc_Option5!I$6,'Carbon Prices'!$D$9:$CP$15,6,FALSE))","v":37.985012476770486},{"$f":"IF('Data Input - General'!$F$10=\"Yes\",HLOOKUP(Calc_Option5!J$6,'Carbon Prices'!$D$9:$CP$15,3,FALSE),HLOOKUP(Calc_Option5!J$6,'Carbon Prices'!$D$9:$CP$15,6,FALSE))","v":45.710227742749282},{"$f":"IF('Data Input - General'!$F$10=\"Yes\",HLOOKUP(Calc_Option5!K$6,'Carbon Prices'!$D$9:$CP$15,3,FALSE),HLOOKUP(Calc_Option5!K$6,'Carbon Prices'!$D$9:$CP$15,6,FALSE))","v":53.435443008728079},{"$f":"IF('Data Input - General'!$F$10=\"Yes\",HLOOKUP(Calc_Option5!L$6,'Carbon Prices'!$D$9:$CP$15,3,FALSE),HLOOKUP(Calc_Option5!L$6,'Carbon Prices'!$D$9:$CP$15,6,FALSE))","v":61.160658274706876},{"$f":"IF('Data Input - General'!$F$10=\"Yes\",HLOOKUP(Calc_Option5!M$6,'Carbon Prices'!$D$9:$CP$15,3,FALSE),HLOOKUP(Calc_Option5!M$6,'Carbon Prices'!$D$9:$CP$15,6,FALSE))","v":68.885873540685665},{"$f":"IF('Data Input - General'!$F$10=\"Yes\",HLOOKUP(Calc_Option5!N$6,'Carbon Prices'!$D$9:$CP$15,3,FALSE),HLOOKUP(Calc_Option5!N$6,'Carbon Prices'!$D$9:$CP$15,6,FALSE))","v":76.611088806664469},{"$f":"IF('Data Input - General'!$F$10=\"Yes\",HLOOKUP(Calc_Option5!O$6,'Carbon Prices'!$D$9:$CP$15,3,FALSE),HLOOKUP(Calc_Option5!O$6,'Carbon Prices'!$D$9:$CP$15,6,FALSE))","v":84.336304072643259},{"$f":"IF('Data Input - General'!$F$10=\"Yes\",HLOOKUP(Calc_Option5!P$6,'Carbon Prices'!$D$9:$CP$15,3,FALSE),HLOOKUP(Calc_Option5!P$6,'Carbon Prices'!$D$9:$CP$15,6,FALSE))","v":92.167532307960172},{"$f":"IF('Data Input - General'!$F$10=\"Yes\",HLOOKUP(Calc_Option5!Q$6,'Carbon Prices'!$D$9:$CP$15,3,FALSE),HLOOKUP(Calc_Option5!Q$6,'Carbon Prices'!$D$9:$CP$15,6,FALSE))","v":99.998760543277044},{"$f":"IF('Data Input - General'!$F$10=\"Yes\",HLOOKUP(Calc_Option5!R$6,'Carbon Prices'!$D$9:$CP$15,3,FALSE),HLOOKUP(Calc_Option5!R$6,'Carbon Prices'!$D$9:$CP$15,6,FALSE))","v":107.82998877859391},{"$f":"IF('Data Input - General'!$F$10=\"Yes\",HLOOKUP(Calc_Option5!S$6,'Carbon Prices'!$D$9:$CP$15,3,FALSE),HLOOKUP(Calc_Option5!S$6,'Carbon Prices'!$D$9:$CP$15,6,FALSE))","v":115.6612170139108},{"$f":"IF('Data Input - General'!$F$10=\"Yes\",HLOOKUP(Calc_Option5!T$6,'Carbon Prices'!$D$9:$CP$15,3,FALSE),HLOOKUP(Calc_Option5!T$6,'Carbon Prices'!$D$9:$CP$15,6,FALSE))","v":123.49244524922767},{"$f":"IF('Data Input - General'!$F$10=\"Yes\",HLOOKUP(Calc_Option5!U$6,'Carbon Prices'!$D$9:$CP$15,3,FALSE),HLOOKUP(Calc_Option5!U$6,'Carbon Prices'!$D$9:$CP$15,6,FALSE))","v":131.32367348454454},{"$f":"IF('Data Input - General'!$F$10=\"Yes\",HLOOKUP(Calc_Option5!V$6,'Carbon Prices'!$D$9:$CP$15,3,FALSE),HLOOKUP(Calc_Option5!V$6,'Carbon Prices'!$D$9:$CP$15,6,FALSE))","v":139.15490171986141},{"$f":"IF('Data Input - General'!$F$10=\"Yes\",HLOOKUP(Calc_Option5!W$6,'Carbon Prices'!$D$9:$CP$15,3,FALSE),HLOOKUP(Calc_Option5!W$6,'Carbon Prices'!$D$9:$CP$15,6,FALSE))","v":146.98612995517828},{"$f":"IF('Data Input - General'!$F$10=\"Yes\",HLOOKUP(Calc_Option5!X$6,'Carbon Prices'!$D$9:$CP$15,3,FALSE),HLOOKUP(Calc_Option5!X$6,'Carbon Prices'!$D$9:$CP$15,6,FALSE))","v":154.81735819049521},{"$f":"IF('Data Input - General'!$F$10=\"Yes\",HLOOKUP(Calc_Option5!Y$6,'Carbon Prices'!$D$9:$CP$15,3,FALSE),HLOOKUP(Calc_Option5!Y$6,'Carbon Prices'!$D$9:$CP$15,6,FALSE))","v":162.64858642581208},{"$f":"IF('Data Input - General'!$F$10=\"Yes\",HLOOKUP(Calc_Option5!Z$6,'Carbon Prices'!$D$9:$CP$15,3,FALSE),HLOOKUP(Calc_Option5!Z$6,'Carbon Prices'!$D$9:$CP$15,6,FALSE))","v":170.47981466112896},{"$f":"IF('Data Input - General'!$F$10=\"Yes\",HLOOKUP(Calc_Option5!AA$6,'Carbon Prices'!$D$9:$CP$15,3,FALSE),HLOOKUP(Calc_Option5!AA$6,'Carbon Prices'!$D$9:$CP$15,6,FALSE))","v":178.31104289644583},{"$f":"IF('Data Input - General'!$F$10=\"Yes\",HLOOKUP(Calc_Option5!AB$6,'Carbon Prices'!$D$9:$CP$15,3,FALSE),HLOOKUP(Calc_Option5!AB$6,'Carbon Prices'!$D$9:$CP$15,6,FALSE))","v":186.1422711317627},{"$f":"IF('Data Input - General'!$F$10=\"Yes\",HLOOKUP(Calc_Option5!AC$6,'Carbon Prices'!$D$9:$CP$15,3,FALSE),HLOOKUP(Calc_Option5!AC$6,'Carbon Prices'!$D$9:$CP$15,6,FALSE))","v":193.97349936707957},{"$f":"IF('Data Input - General'!$F$10=\"Yes\",HLOOKUP(Calc_Option5!AD$6,'Carbon Prices'!$D$9:$CP$15,3,FALSE),HLOOKUP(Calc_Option5!AD$6,'Carbon Prices'!$D$9:$CP$15,6,FALSE))","v":201.80472760239644},{"$f":"IF('Data Input - General'!$F$10=\"Yes\",HLOOKUP(Calc_Option5!AE$6,'Carbon Prices'!$D$9:$CP$15,3,FALSE),HLOOKUP(Calc_Option5!AE$6,'Carbon Prices'!$D$9:$CP$15,6,FALSE))","v":209.63595583771331},{"$f":"IF('Data Input - General'!$F$10=\"Yes\",HLOOKUP(Calc_Option5!AF$6,'Carbon Prices'!$D$9:$CP$15,3,FALSE),HLOOKUP(Calc_Option5!AF$6,'Carbon Prices'!$D$9:$CP$15,6,FALSE))","v":217.46718407303021},{"$f":"IF('Data Input - General'!$F$10=\"Yes\",HLOOKUP(Calc_Option5!AG$6,'Carbon Prices'!$D$9:$CP$15,3,FALSE),HLOOKUP(Calc_Option5!AG$6,'Carbon Prices'!$D$9:$CP$15,6,FALSE))","v":225.29841230834708},{"$f":"IF('Data Input - General'!$F$10=\"Yes\",HLOOKUP(Calc_Option5!AH$6,'Carbon Prices'!$D$9:$CP$15,3,FALSE),HLOOKUP(Calc_Option5!AH$6,'Carbon Prices'!$D$9:$CP$15,6,FALSE))","v":233.12964054366395},{"$f":"IF('Data Input - General'!$F$10=\"Yes\",HLOOKUP(Calc_Option5!AI$6,'Carbon Prices'!$D$9:$CP$15,3,FALSE),HLOOKUP(Calc_Option5!AI$6,'Carbon Prices'!$D$9:$CP$15,6,FALSE))","v":{"$error":"#N/A"}},{"$f":"IF('Data Input - General'!$F$10=\"Yes\",HLOOKUP(Calc_Option5!AJ$6,'Carbon Prices'!$D$9:$CP$15,3,FALSE),HLOOKUP(Calc_Option5!AJ$6,'Carbon Prices'!$D$9:$CP$15,6,FALSE))","v":{"$error":"#N/A"}},{"$f":"IF('Data Input - General'!$F$10=\"Yes\",HLOOKUP(Calc_Option5!AK$6,'Carbon Prices'!$D$9:$CP$15,3,FALSE),HLOOKUP(Calc_Option5!AK$6,'Carbon Prices'!$D$9:$CP$15,6,FALSE))","v":{"$error":"#N/A"}},{"$f":"IF('Data Input - General'!$F$10=\"Yes\",HLOOKUP(Calc_Option5!AL$6,'Carbon Prices'!$D$9:$CP$15,3,FALSE),HLOOKUP(Calc_Option5!AL$6,'Carbon Prices'!$D$9:$CP$15,6,FALSE))","v":{"$error":"#N/A"}},{"$f":"IF('Data Input - General'!$F$10=\"Yes\",HLOOKUP(Calc_Option5!AM$6,'Carbon Prices'!$D$9:$CP$15,3,FALSE),HLOOKUP(Calc_Option5!AM$6,'Carbon Prices'!$D$9:$CP$15,6,FALSE))","v":{"$error":"#N/A"}},{"$f":"IF('Data Input - General'!$F$10=\"Yes\",HLOOKUP(Calc_Option5!AN$6,'Carbon Prices'!$D$9:$CP$15,3,FALSE),HLOOKUP(Calc_Option5!AN$6,'Carbon Prices'!$D$9:$CP$15,6,FALSE))","v":{"$error":"#N/A"}},{"$f":"IF('Data Input - General'!$F$10=\"Yes\",HLOOKUP(Calc_Option5!AO$6,'Carbon Prices'!$D$9:$CP$15,3,FALSE),HLOOKUP(Calc_Option5!AO$6,'Carbon Prices'!$D$9:$CP$15,6,FALSE))","v":{"$error":"#N/A"}},{"$f":"IF('Data Input - General'!$F$10=\"Yes\",HLOOKUP(Calc_Option5!AP$6,'Carbon Prices'!$D$9:$CP$15,3,FALSE),HLOOKUP(Calc_Option5!AP$6,'Carbon Prices'!$D$9:$CP$15,6,FALSE))","v":{"$error":"#N/A"}},{"$f":"IF('Data Input - General'!$F$10=\"Yes\",HLOOKUP(Calc_Option5!AQ$6,'Carbon Prices'!$D$9:$CP$15,3,FALSE),HLOOKUP(Calc_Option5!AQ$6,'Carbon Prices'!$D$9:$CP$15,6,FALSE))","v":{"$error":"#N/A"}},{"$f":"IF('Data Input - General'!$F$10=\"Yes\",HLOOKUP(Calc_Option5!AR$6,'Carbon Prices'!$D$9:$CP$15,3,FALSE),HLOOKUP(Calc_Option5!AR$6,'Carbon Prices'!$D$9:$CP$15,6,FALSE))","v":{"$error":"#N/A"}},{"$f":"IF('Data Input - General'!$F$10=\"Yes\",HLOOKUP(Calc_Option5!AS$6,'Carbon Prices'!$D$9:$CP$15,3,FALSE),HLOOKUP(Calc_Option5!AS$6,'Carbon Prices'!$D$9:$CP$15,6,FALSE))","v":{"$error":"#N/A"}},{"$f":"IF('Data Input - General'!$F$10=\"Yes\",HLOOKUP(Calc_Option5!AT$6,'Carbon Prices'!$D$9:$CP$15,3,FALSE),HLOOKUP(Calc_Option5!AT$6,'Carbon Prices'!$D$9:$CP$15,6,FALSE))","v":{"$error":"#N/A"}},{"$f":"IF('Data Input - General'!$F$10=\"Yes\",HLOOKUP(Calc_Option5!AU$6,'Carbon Prices'!$D$9:$CP$15,3,FALSE),HLOOKUP(Calc_Option5!AU$6,'Carbon Prices'!$D$9:$CP$15,6,FALSE))","v":{"$error":"#N/A"}},{"$f":"IF('Data Input - General'!$F$10=\"Yes\",HLOOKUP(Calc_Option5!AV$6,'Carbon Prices'!$D$9:$CP$15,3,FALSE),HLOOKUP(Calc_Option5!AV$6,'Carbon Prices'!$D$9:$CP$15,6,FALSE))","v":{"$error":"#N/A"}},{"$f":"IF('Data Input - General'!$F$10=\"Yes\",HLOOKUP(Calc_Option5!AW$6,'Carbon Prices'!$D$9:$CP$15,3,FALSE),HLOOKUP(Calc_Option5!AW$6,'Carbon Prices'!$D$9:$CP$15,6,FALSE))","v":{"$error":"#N/A"}},{"$f":"IF('Data Input - General'!$F$10=\"Yes\",HLOOKUP(Calc_Option5!AX$6,'Carbon Prices'!$D$9:$CP$15,3,FALSE),HLOOKUP(Calc_Option5!AX$6,'Carbon Prices'!$D$9:$CP$15,6,FALSE))","v":{"$error":"#N/A"}},{"$f":"IF('Data Input - General'!$F$10=\"Yes\",HLOOKUP(Calc_Option5!AY$6,'Carbon Prices'!$D$9:$CP$15,3,FALSE),HLOOKUP(Calc_Option5!AY$6,'Carbon Prices'!$D$9:$CP$15,6,FALSE))","v":{"$error":"#N/A"}},{"$f":"IF('Data Input - General'!$F$10=\"Yes\",HLOOKUP(Calc_Option5!AZ$6,'Carbon Prices'!$D$9:$CP$15,3,FALSE),HLOOKUP(Calc_Option5!AZ$6,'Carbon Prices'!$D$9:$CP$15,6,FALSE))","v":{"$error":"#N/A"}},{"$f":"IF('Data Input - General'!$F$10=\"Yes\",HLOOKUP(Calc_Option5!BA$6,'Carbon Prices'!$D$9:$CP$15,3,FALSE),HLOOKUP(Calc_Option5!BA$6,'Carbon Prices'!$D$9:$CP$15,6,FALSE))","v":{"$error":"#N/A"}},{"$f":"IF('Data Input - General'!$F$10=\"Yes\",HLOOKUP(Calc_Option5!BB$6,'Carbon Prices'!$D$9:$CP$15,3,FALSE),HLOOKUP(Calc_Option5!BB$6,'Carbon Prices'!$D$9:$CP$15,6,FALSE))","v":{"$error":"#N/A"}},{"$f":"IF('Data Input - General'!$F$10=\"Yes\",HLOOKUP(Calc_Option5!BC$6,'Carbon Prices'!$D$9:$CP$15,3,FALSE),HLOOKUP(Calc_Option5!BC$6,'Carbon Prices'!$D$9:$CP$15,6,FALSE))","v":{"$error":"#N/A"}},{"$f":"IF('Data Input - General'!$F$10=\"Yes\",HLOOKUP(Calc_Option5!BD$6,'Carbon Prices'!$D$9:$CP$15,3,FALSE),HLOOKUP(Calc_Option5!BD$6,'Carbon Prices'!$D$9:$CP$15,6,FALSE))","v":{"$error":"#N/A"}},{"$f":"IF('Data Input - General'!$F$10=\"Yes\",HLOOKUP(Calc_Option5!BE$6,'Carbon Prices'!$D$9:$CP$15,3,FALSE),HLOOKUP(Calc_Option5!BE$6,'Carbon Prices'!$D$9:$CP$15,6,FALSE))","v":{"$error":"#N/A"}},{"$f":"IF('Data Input - General'!$F$10=\"Yes\",HLOOKUP(Calc_Option5!BF$6,'Carbon Prices'!$D$9:$CP$15,3,FALSE),HLOOKUP(Calc_Option5!BF$6,'Carbon Prices'!$D$9:$CP$15,6,FALSE))","v":{"$error":"#N/A"}},{"$f":"IF('Data Input - General'!$F$10=\"Yes\",HLOOKUP(Calc_Option5!BG$6,'Carbon Prices'!$D$9:$CP$15,3,FALSE),HLOOKUP(Calc_Option5!BG$6,'Carbon Prices'!$D$9:$CP$15,6,FALSE))","v":{"$error":"#N/A"}},{"$f":"IF('Data Input - General'!$F$10=\"Yes\",HLOOKUP(Calc_Option5!BH$6,'Carbon Prices'!$D$9:$CP$15,3,FALSE),HLOOKUP(Calc_Option5!BH$6,'Carbon Prices'!$D$9:$CP$15,6,FALSE))","v":{"$error":"#N/A"}},{"$f":"IF('Data Input - General'!$F$10=\"Yes\",HLOOKUP(Calc_Option5!BI$6,'Carbon Prices'!$D$9:$CP$15,3,FALSE),HLOOKUP(Calc_Option5!BI$6,'Carbon Prices'!$D$9:$CP$15,6,FALSE))","v":{"$error":"#N/A"}},{"$f":"IF('Data Input - General'!$F$10=\"Yes\",HLOOKUP(Calc_Option5!BJ$6,'Carbon Prices'!$D$9:$CP$15,3,FALSE),HLOOKUP(Calc_Option5!BJ$6,'Carbon Prices'!$D$9:$CP$15,6,FALSE))","v":{"$error":"#N/A"}},{"$f":"IF('Data Input - General'!$F$10=\"Yes\",HLOOKUP(Calc_Option5!BK$6,'Carbon Prices'!$D$9:$CP$15,3,FALSE),HLOOKUP(Calc_Option5!BK$6,'Carbon Prices'!$D$9:$CP$15,6,FALSE))","v":{"$error":"#N/A"}},{"$f":"IF('Data Input - General'!$F$10=\"Yes\",HLOOKUP(Calc_Option5!BL$6,'Carbon Prices'!$D$9:$CP$15,3,FALSE),HLOOKUP(Calc_Option5!BL$6,'Carbon Prices'!$D$9:$CP$15,6,FALSE))","v":{"$error":"#N/A"}},{"$f":"IF('Data Input - General'!$F$10=\"Yes\",HLOOKUP(Calc_Option5!BM$6,'Carbon Prices'!$D$9:$CP$15,3,FALSE),HLOOKUP(Calc_Option5!BM$6,'Carbon Prices'!$D$9:$CP$15,6,FALSE))","v":{"$error":"#N/A"}},{"$f":"IF('Data Input - General'!$F$10=\"Yes\",HLOOKUP(Calc_Option5!BN$6,'Carbon Prices'!$D$9:$CP$15,3,FALSE),HLOOKUP(Calc_Option5!BN$6,'Carbon Prices'!$D$9:$CP$15,6,FALSE))","v":{"$error":"#N/A"}},{"$f":"IF('Data Input - General'!$F$10=\"Yes\",HLOOKUP(Calc_Option5!BO$6,'Carbon Prices'!$D$9:$CP$15,3,FALSE),HLOOKUP(Calc_Option5!BO$6,'Carbon Prices'!$D$9:$CP$15,6,FALSE))","v":{"$error":"#N/A"}},{"$f":"IF('Data Input - General'!$F$10=\"Yes\",HLOOKUP(Calc_Option5!BP$6,'Carbon Prices'!$D$9:$CP$15,3,FALSE),HLOOKUP(Calc_Option5!BP$6,'Carbon Prices'!$D$9:$CP$15,6,FALSE))","v":{"$error":"#N/A"}},{"$f":"IF('Data Input - General'!$F$10=\"Yes\",HLOOKUP(Calc_Option5!BQ$6,'Carbon Prices'!$D$9:$CP$15,3,FALSE),HLOOKUP(Calc_Option5!BQ$6,'Carbon Prices'!$D$9:$CP$15,6,FALSE))","v":{"$error":"#N/A"}},{"$f":"IF('Data Input - General'!$F$10=\"Yes\",HLOOKUP(Calc_Option5!BR$6,'Carbon Prices'!$D$9:$CP$15,3,FALSE),HLOOKUP(Calc_Option5!BR$6,'Carbon Prices'!$D$9:$CP$15,6,FALSE))","v":{"$error":"#N/A"}},{"$f":"IF('Data Input - General'!$F$10=\"Yes\",HLOOKUP(Calc_Option5!BS$6,'Carbon Prices'!$D$9:$CP$15,3,FALSE),HLOOKUP(Calc_Option5!BS$6,'Carbon Prices'!$D$9:$CP$15,6,FALSE))","v":{"$error":"#N/A"}},{"$f":"IF('Data Input - General'!$F$10=\"Yes\",HLOOKUP(Calc_Option5!BT$6,'Carbon Prices'!$D$9:$CP$15,3,FALSE),HLOOKUP(Calc_Option5!BT$6,'Carbon Prices'!$D$9:$CP$15,6,FALSE))","v":{"$error":"#N/A"}},{"$f":"IF('Data Input - General'!$F$10=\"Yes\",HLOOKUP(Calc_Option5!BU$6,'Carbon Prices'!$D$9:$CP$15,3,FALSE),HLOOKUP(Calc_Option5!BU$6,'Carbon Prices'!$D$9:$CP$15,6,FALSE))","v":{"$error":"#N/A"}},{"$f":"IF('Data Input - General'!$F$10=\"Yes\",HLOOKUP(Calc_Option5!BV$6,'Carbon Prices'!$D$9:$CP$15,3,FALSE),HLOOKUP(Calc_Option5!BV$6,'Carbon Prices'!$D$9:$CP$15,6,FALSE))","v":{"$error":"#N/A"}},{"$f":"IF('Data Input - General'!$F$10=\"Yes\",HLOOKUP(Calc_Option5!BW$6,'Carbon Prices'!$D$9:$CP$15,3,FALSE),HLOOKUP(Calc_Option5!BW$6,'Carbon Prices'!$D$9:$CP$15,6,FALSE))","v":{"$error":"#N/A"}},{"$f":"IF('Data Input - General'!$F$10=\"Yes\",HLOOKUP(Calc_Option5!BX$6,'Carbon Prices'!$D$9:$CP$15,3,FALSE),HLOOKUP(Calc_Option5!BX$6,'Carbon Prices'!$D$9:$CP$15,6,FALSE))","v":{"$error":"#N/A"}},{"$f":"IF('Data Input - General'!$F$10=\"Yes\",HLOOKUP(Calc_Option5!BY$6,'Carbon Prices'!$D$9:$CP$15,3,FALSE),HLOOKUP(Calc_Option5!BY$6,'Carbon Prices'!$D$9:$CP$15,6,FALSE))","v":{"$error":"#N/A"}},{"$f":"IF('Data Input - General'!$F$10=\"Yes\",HLOOKUP(Calc_Option5!BZ$6,'Carbon Prices'!$D$9:$CP$15,3,FALSE),HLOOKUP(Calc_Option5!BZ$6,'Carbon Prices'!$D$9:$CP$15,6,FALSE))","v":{"$error":"#N/A"}},{"$f":"IF('Data Input - General'!$F$10=\"Yes\",HLOOKUP(Calc_Option5!CA$6,'Carbon Prices'!$D$9:$CP$15,3,FALSE),HLOOKUP(Calc_Option5!CA$6,'Carbon Prices'!$D$9:$CP$15,6,FALSE))","v":{"$error":"#N/A"}},{"$f":"IF('Data Input - General'!$F$10=\"Yes\",HLOOKUP(Calc_Option5!CB$6,'Carbon Prices'!$D$9:$CP$15,3,FALSE),HLOOKUP(Calc_Option5!CB$6,'Carbon Prices'!$D$9:$CP$15,6,FALSE))","v":{"$error":"#N/A"}},{"$f":"IF('Data Input - General'!$F$10=\"Yes\",HLOOKUP(Calc_Option5!CC$6,'Carbon Prices'!$D$9:$CP$15,3,FALSE),HLOOKUP(Calc_Option5!CC$6,'Carbon Prices'!$D$9:$CP$15,6,FALSE))","v":{"$error":"#N/A"}},{"$f":"IF('Data Input - General'!$F$10=\"Yes\",HLOOKUP(Calc_Option5!CD$6,'Carbon Prices'!$D$9:$CP$15,3,FALSE),HLOOKUP(Calc_Option5!CD$6,'Carbon Prices'!$D$9:$CP$15,6,FALSE))","v":{"$error":"#N/A"}},{"$f":"IF('Data Input - General'!$F$10=\"Yes\",HLOOKUP(Calc_Option5!CE$6,'Carbon Prices'!$D$9:$CP$15,3,FALSE),HLOOKUP(Calc_Option5!CE$6,'Carbon Prices'!$D$9:$CP$15,6,FALSE))","v":{"$error":"#N/A"}},{"$f":"IF('Data Input - General'!$F$10=\"Yes\",HLOOKUP(Calc_Option5!CF$6,'Carbon Prices'!$D$9:$CP$15,3,FALSE),HLOOKUP(Calc_Option5!CF$6,'Carbon Prices'!$D$9:$CP$15,6,FALSE))","v":{"$error":"#N/A"}},{"$f":"IF('Data Input - General'!$F$10=\"Yes\",HLOOKUP(Calc_Option5!CG$6,'Carbon Prices'!$D$9:$CP$15,3,FALSE),HLOOKUP(Calc_Option5!CG$6,'Carbon Prices'!$D$9:$CP$15,6,FALSE))","v":{"$error":"#N/A"}},{"$f":"IF('Data Input - General'!$F$10=\"Yes\",HLOOKUP(Calc_Option5!CH$6,'Carbon Prices'!$D$9:$CP$15,3,FALSE),HLOOKUP(Calc_Option5!CH$6,'Carbon Prices'!$D$9:$CP$15,6,FALSE))","v":{"$error":"#N/A"}},{"$f":"IF('Data Input - General'!$F$10=\"Yes\",HLOOKUP(Calc_Option5!CI$6,'Carbon Prices'!$D$9:$CP$15,3,FALSE),HLOOKUP(Calc_Option5!CI$6,'Carbon Prices'!$D$9:$CP$15,6,FALSE))","v":{"$error":"#N/A"}},{"$f":"IF('Data Input - General'!$F$10=\"Yes\",HLOOKUP(Calc_Option5!CJ$6,'Carbon Prices'!$D$9:$CP$15,3,FALSE),HLOOKUP(Calc_Option5!CJ$6,'Carbon Prices'!$D$9:$CP$15,6,FALSE))","v":{"$error":"#N/A"}},{"$f":"IF('Data Input - General'!$F$10=\"Yes\",HLOOKUP(Calc_Option5!CK$6,'Carbon Prices'!$D$9:$CP$15,3,FALSE),HLOOKUP(Calc_Option5!CK$6,'Carbon Prices'!$D$9:$CP$15,6,FALSE))","v":{"$error":"#N/A"}},{"$f":"IF('Data Input - General'!$F$10=\"Yes\",HLOOKUP(Calc_Option5!CL$6,'Carbon Prices'!$D$9:$CP$15,3,FALSE),HLOOKUP(Calc_Option5!CL$6,'Carbon Prices'!$D$9:$CP$15,6,FALSE))","v":{"$error":"#N/A"}},{"$f":"IF('Data Input - General'!$F$10=\"Yes\",HLOOKUP(Calc_Option5!CM$6,'Carbon Prices'!$D$9:$CP$15,3,FALSE),HLOOKUP(Calc_Option5!CM$6,'Carbon Prices'!$D$9:$CP$15,6,FALSE))","v":{"$error":"#N/A"}},{"$f":"IF('Data Input - General'!$F$10=\"Yes\",HLOOKUP(Calc_Option5!CN$6,'Carbon Prices'!$D$9:$CP$15,3,FALSE),HLOOKUP(Calc_Option5!CN$6,'Carbon Prices'!$D$9:$CP$15,6,FALSE))","v":{"$error":"#N/A"}},{"$f":"IF('Data Input - General'!$F$10=\"Yes\",HLOOKUP(Calc_Option5!CO$6,'Carbon Prices'!$D$9:$CP$15,3,FALSE),HLOOKUP(Calc_Option5!CO$6,'Carbon Prices'!$D$9:$CP$15,6,FALSE))","v":{"$error":"#N/A"}},{"$f":"IF('Data Input - General'!$F$10=\"Yes\",HLOOKUP(Calc_Option5!CP$6,'Carbon Prices'!$D$9:$CP$15,3,FALSE),HLOOKUP(Calc_Option5!CP$6,'Carbon Prices'!$D$9:$CP$15,6,FALSE))","v":{"$error":"#N/A"}},{"$f":"IF('Data Input - General'!$F$10=\"Yes\",HLOOKUP(Calc_Option5!CQ$6,'Carbon Prices'!$D$9:$CP$15,3,FALSE),HLOOKUP(Calc_Option5!CQ$6,'Carbon Prices'!$D$9:$CP$15,6,FALSE))","v":{"$error":"#N/A"}},{"$f":"IF('Data Input - General'!$F$10=\"Yes\",HLOOKUP(Calc_Option5!CR$6,'Carbon Prices'!$D$9:$CP$15,3,FALSE),HLOOKUP(Calc_Option5!CR$6,'Carbon Prices'!$D$9:$CP$15,6,FALSE))","v":{"$error":"#N/A"}},{"$f":"IF('Data Input - General'!$F$10=\"Yes\",HLOOKUP(Calc_Option5!CS$6,'Carbon Prices'!$D$9:$CP$15,3,FALSE),HLOOKUP(Calc_Option5!CS$6,'Carbon Prices'!$D$9:$CP$15,6,FALSE))","v":{"$error":"#N/A"}},{"$f":"IF('Data Input - General'!$F$10=\"Yes\",HLOOKUP(Calc_Option5!CT$6,'Carbon Prices'!$D$9:$CP$15,3,FALSE),HLOOKUP(Calc_Option5!CT$6,'Carbon Prices'!$D$9:$CP$15,6,FALSE))","v":{"$error":"#N/A"}},{"$f":"IF('Data Input - General'!$F$10=\"Yes\",HLOOKUP(Calc_Option5!CU$6,'Carbon Prices'!$D$9:$CP$15,3,FALSE),HLOOKUP(Calc_Option5!CU$6,'Carbon Prices'!$D$9:$CP$15,6,FALSE))","v":{"$error":"#N/A"}},{"$f":"IF('Data Input - General'!$F$10=\"Yes\",HLOOKUP(Calc_Option5!CV$6,'Carbon Prices'!$D$9:$CP$15,3,FALSE),HLOOKUP(Calc_Option5!CV$6,'Carbon Prices'!$D$9:$CP$15,6,FALSE))","v":{"$error":"#N/A"}},{"$f":"IF('Data Input - General'!$F$10=\"Yes\",HLOOKUP(Calc_Option5!CW$6,'Carbon Prices'!$D$9:$CP$15,3,FALSE),HLOOKUP(Calc_Option5!CW$6,'Carbon Prices'!$D$9:$CP$15,6,FALSE))","v":{"$error":"#N/A"}},{"$f":"IF('Data Input - General'!$F$10=\"Yes\",HLOOKUP(Calc_Option5!CX$6,'Carbon Prices'!$D$9:$CP$15,3,FALSE),HLOOKUP(Calc_Option5!CX$6,'Carbon Prices'!$D$9:$CP$15,6,FALSE))","v":{"$error":"#N/A"}},{"$f":"IF('Data Input - General'!$F$10=\"Yes\",HLOOKUP(Calc_Option5!CY$6,'Carbon Prices'!$D$9:$CP$15,3,FALSE),HLOOKUP(Calc_Option5!CY$6,'Carbon Prices'!$D$9:$CP$15,6,FALSE))","v":{"$error":"#N/A"}}]
[null,"Total value elec","£000's",{"$f":"IFERROR(D80*D82,0)","v":0},{"$f":"IFERROR(E80*E82,0)","v":0},{"$f":"IFERROR(F80*F82,0)","v":0},0,0,0,0,0,0,0,0,0,0,0,0,0,0,0,0,0,0,0,0,0,0,0,0,0,0,0,0,0,0,0,0,0,0,0,0,0,0,0,0,0,0,0,0,0,0,0,0,0,0,0,0,0,0,0,0,0,0,0,0,0,0,0,{"$f":"IFERROR(BR80*BR82,0)","v":0},0,0,0,0,0,0,0,0,0,0,0,0,0,0,0,0,0,0,0,0,0,0,0,0,0,0,0,0,0,0,0,0,0]
[null,"Total value non-elec","£000's",{"$f":"IFERROR(D81*D83,0)","v":0},{"$f":"IFERROR(E81*E83,0)","v":0},0,0,0,0,0,0,0,0,0,0,0,0,0,0,0,0,0,0,0,0,0,0,0,0,0,0,0,0,0,0,0,0,0,0,0,0,0,0,0,0,0,0,0,0,0,0,0,0,0,0,0,0,0,0,0,0,0,0,0,0,0,0,0,0,0,0,0,0,0,0,0,0,0,0,0,0,0,0,0,0,0,0,0,0,0,0,0,0,0,0,0,0,0,0,0,0,0,0]
[]
[null,"Discounted total GHG","£000's",{"$f":"SUM(D84:D85,D77)*D$7/1000","v":0},{"$f":"SUM(E84:E85,E77)*E$7/1000","v":0},0,0,0,0,0,0,0,0,0,0,0,0,0,0,0,0,0,0,0,0,0,0,0,0,0,0,0,0,0,0,0,0,0,0,0,0,0,0,0,0,0,0,0,0,0,0,0,0,0,0,0,0,0,0,0,0,0,0,0,0,0,0,0,{"$f":"SUM(BQ84:BQ85,BQ77)*BQ$7/1000","v":0},0,0,0,0,0,0,0,0,0,0,0,0,0,0,0,0,0,0,0,0,0,0,0,0,0,0,0,0,0,0,0,0,0,0]
[]
[null,"SENSITIVITY ANALYSIS"]
[]
[null,"Low values"]
[]
[null,"Energy Consumption"]
[null,"Electricity","£000's",{"$f":"IFERROR('Data Input - Option 5'!H84*INDEX('Energy Prices'!$F$19:$CR$24,MATCH($B94,'Energy Prices'!$C$19:$C$24,0),MATCH(Calc_Option5!D$6,'Energy Prices'!$F$11:$CR$11,0))/100000,\"\")","v":0},{"$f":"IFERROR('Data Input - Option 5'!I84*INDEX('Energy Prices'!$F$19:$CR$24,MATCH($B94,'Energy Prices'!$C$19:$C$24,0),MATCH(Calc_Option5!E$6,'Energy Prices'!$F$11:$CR$11,0))/100000,\"\")","v":0},{"$f":"IFERROR('Data Input - Option 5'!J84*INDEX('Energy Prices'!$F$19:$CR$24,MATCH($B94,'Energy Prices'!$C$19:$C$24,0),MATCH(Calc_Option5!F$6,'Energy Prices'!$F$11:$CR$11,0))/100000,\"\")","v":0},{"$f":"IFERROR('Data Input - Option 5'!K84*INDEX('Energy Prices'!$F$19:$CR$24,MATCH($B94,'Energy Prices'!$C$19:$C$24,0),MATCH(Calc_Option5!G$6,'Energy Prices'!$F$11:$CR$11,0))/100000,\"\")","v":0},{"$f":"IFERROR('Data Input - Option 5'!L84*INDEX('Energy Prices'!$F$19:$CR$24,MATCH($B94,'Energy Prices'!$C$19:$C$24,0),MATCH(Calc_Option5!H$6,'Energy Prices'!$F$11:$CR$11,0))/100000,\"\")","v":0},{"$f":"IFERROR('Data Input - Option 5'!M84*INDEX('Energy Prices'!$F$19:$CR$24,MATCH($B94,'Energy Prices'!$C$19:$C$24,0),MATCH(Calc_Option5!I$6,'Energy Prices'!$F$11:$CR$11,0))/100000,\"\")","v":0},{"$f":"IFERROR('Data Input - Option 5'!N84*INDEX('Energy Prices'!$F$19:$CR$24,MATCH($B94,'Energy Prices'!$C$19:$C$24,0),MATCH(Calc_Option5!J$6,'Energy Prices'!$F$11:$CR$11,0))/100000,\"\")","v":0},{"$f":"IFERROR('Data Input - Option 5'!O84*INDEX('Energy Prices'!$F$19:$CR$24,MATCH($B94,'Energy Prices'!$C$19:$C$24,0),MATCH(Calc_Option5!K$6,'Energy Prices'!$F$11:$CR$11,0))/100000,\"\")","v":0},{"$f":"IFERROR('Data Input - Option 5'!P84*INDEX('Energy Prices'!$F$19:$CR$24,MATCH($B94,'Energy Prices'!$C$19:$C$24,0),MATCH(Calc_Option5!L$6,'Energy Prices'!$F$11:$CR$11,0))/100000,\"\")","v":0},{"$f":"IFERROR('Data Input - Option 5'!Q84*INDEX('Energy Prices'!$F$19:$CR$24,MATCH($B94,'Energy Prices'!$C$19:$C$24,0),MATCH(Calc_Option5!M$6,'Energy Prices'!$F$11:$CR$11,0))/100000,\"\")","v":0},{"$f":"IFERROR('Data Input - Option 5'!R84*INDEX('Energy Prices'!$F$19:$CR$24,MATCH($B94,'Energy Prices'!$C$19:$C$24,0),MATCH(Calc_Option5!N$6,'Energy Prices'!$F$11:$CR$11,0))/100000,\"\")","v":0},{"$f":"IFERROR('Data Input - Option 5'!S84*INDEX('Energy Prices'!$F$19:$CR$24,MATCH($B94,'Energy Prices'!$C$19:$C$24,0),MATCH(Calc_Option5!O$6,'Energy Prices'!$F$11:$CR$11,0))/100000,\"\")","v":0},{"$f":"IFERROR('Data Input - Option 5'!T84*INDEX('Energy Prices'!$F$19:$CR$24,MATCH($B94,'Energy Prices'!$C$19:$C$24,0),MATCH(Calc_Option5!P$6,'Energy Prices'!$F$11:$CR$11,0))/100000,\"\")","v":0},{"$f":"IFERROR('Data Input - Option 5'!U84*INDEX('Energy Prices'!$F$19:$CR$24,MATCH($B94,'Energy Prices'!$C$19:$C$24,0),MATCH(Calc_Option5!Q$6,'Energy Prices'!$F$11:$CR$11,0))/100000,\"\")","v":0},{"$f":"IFERROR('Data Input - Option 5'!V84*INDEX('Energy Prices'!$F$19:$CR$24,MATCH($B94,'Energy Prices'!$C$19:$C$24,0),MATCH(Calc_Option5!R$6,'Energy Prices'!$F$11:$CR$11,0))/100000,\"\")","v":0},{"$f":"IFERROR('Data Input - Option 5'!W84*INDEX('Energy Prices'!$F$19:$CR$24,MATCH($B94,'Energy Prices'!$C$19:$C$24,0),MATCH(Calc_Option5!S$6,'Energy Prices'!$F$11:$CR$11,0))/100000,\"\")","v":0},{"$f":"IFERROR('Data Input - Option 5'!X84*INDEX('Energy Prices'!$F$19:$CR$24,MATCH($B94,'Energy Prices'!$C$19:$C$24,0),MATCH(Calc_Option5!T$6,'Energy Prices'!$F$11:$CR$11,0))/100000,\"\")","v":0},{"$f":"IFERROR('Data Input - Option 5'!Y84*INDEX('Energy Prices'!$F$19:$CR$24,MATCH($B94,'Energy Prices'!$C$19:$C$24,0),MATCH(Calc_Option5!U$6,'Energy Prices'!$F$11:$CR$11,0))/100000,\"\")","v":0},{"$f":"IFERROR('Data Input - Option 5'!Z84*INDEX('Energy Prices'!$F$19:$CR$24,MATCH($B94,'Energy Prices'!$C$19:$C$24,0),MATCH(Calc_Option5!V$6,'Energy Prices'!$F$11:$CR$11,0))/100000,\"\")","v":0},{"$f":"IFERROR('Data Input - Option 5'!AA84*INDEX('Energy Prices'!$F$19:$CR$24,MATCH($B94,'Energy Prices'!$C$19:$C$24,0),MATCH(Calc_Option5!W$6,'Energy Prices'!$F$11:$CR$11,0))/100000,\"\")","v":0},{"$f":"IFERROR('Data Input - Option 5'!AB84*INDEX('Energy Prices'!$F$19:$CR$24,MATCH($B94,'Energy Prices'!$C$19:$C$24,0),MATCH(Calc_Option5!X$6,'Energy Prices'!$F$11:$CR$11,0))/100000,\"\")","v":0},{"$f":"IFERROR('Data Input - Option 5'!AC84*INDEX('Energy Prices'!$F$19:$CR$24,MATCH($B94,'Energy Prices'!$C$19:$C$24,0),MATCH(Calc_Option5!Y$6,'Energy Prices'!$F$11:$CR$11,0))/100000,\"\")","v":0},{"$f":"IFERROR('Data Input - Option 5'!AD84*INDEX('Energy Prices'!$F$19:$CR$24,MATCH($B94,'Energy Prices'!$C$19:$C$24,0),MATCH(Calc_Option5!Z$6,'Energy Prices'!$F$11:$CR$11,0))/100000,\"\")","v":0},{"$f":"IFERROR('Data Input - Option 5'!AE84*INDEX('Energy Prices'!$F$19:$CR$24,MATCH($B94,'Energy Prices'!$C$19:$C$24,0),MATCH(Calc_Option5!AA$6,'Energy Prices'!$F$11:$CR$11,0))/100000,\"\")","v":0},{"$f":"IFERROR('Data Input - Option 5'!AF84*INDEX('Energy Prices'!$F$19:$CR$24,MATCH($B94,'Energy Prices'!$C$19:$C$24,0),MATCH(Calc_Option5!AB$6,'Energy Prices'!$F$11:$CR$11,0))/100000,\"\")","v":0},{"$f":"IFERROR('Data Input - Option 5'!AG84*INDEX('Energy Prices'!$F$19:$CR$24,MATCH($B94,'Energy Prices'!$C$19:$C$24,0),MATCH(Calc_Option5!AC$6,'Energy Prices'!$F$11:$CR$11,0))/100000,\"\")","v":0},{"$f":"IFERROR('Data Input - Option 5'!AH84*INDEX('Energy Prices'!$F$19:$CR$24,MATCH($B94,'Energy Prices'!$C$19:$C$24,0),MATCH(Calc_Option5!AD$6,'Energy Prices'!$F$11:$CR$11,0))/100000,\"\")","v":0},{"$f":"IFERROR('Data Input - Option 5'!AI84*INDEX('Energy Prices'!$F$19:$CR$24,MATCH($B94,'Energy Prices'!$C$19:$C$24,0),MATCH(Calc_Option5!AE$6,'Energy Prices'!$F$11:$CR$11,0))/100000,\"\")","v":0},{"$f":"IFERROR('Data Input - Option 5'!AJ84*INDEX('Energy Prices'!$F$19:$CR$24,MATCH($B94,'Energy Prices'!$C$19:$C$24,0),MATCH(Calc_Option5!AF$6,'Energy Prices'!$F$11:$CR$11,0))/100000,\"\")","v":0},{"$f":"IFERROR('Data Input - Option 5'!AK84*INDEX('Energy Prices'!$F$19:$CR$24,MATCH($B94,'Energy Prices'!$C$19:$C$24,0),MATCH(Calc_Option5!AG$6,'Energy Prices'!$F$11:$CR$11,0))/100000,\"\")","v":0},{"$f":"IFERROR('Data Input - Option 5'!AL84*INDEX('Energy Prices'!$F$19:$CR$24,MATCH($B94,'Energy Prices'!$C$19:$C$24,0),MATCH(Calc_Option5!AH$6,'Energy Prices'!$F$11:$CR$11,0))/100000,\"\")","v":0},{"$f":"IFERROR('Data Input - Option 5'!AM84*INDEX('Energy Prices'!$F$19:$CR$24,MATCH($B94,'Energy Prices'!$C$19:$C$24,0),MATCH(Calc_Option5!AI$6,'Energy Prices'!$F$11:$CR$11,0))/100000,\"\")","v":""},{"$f":"IFERROR('Data Input - Option 5'!AN84*INDEX('Energy Prices'!$F$19:$CR$24,MATCH($B94,'Energy Prices'!$C$19:$C$24,0),MATCH(Calc_Option5!AJ$6,'Energy Prices'!$F$11:$CR$11,0))/100000,\"\")","v":""},{"$f":"IFERROR('Data Input - Option 5'!AO84*INDEX('Energy Prices'!$F$19:$CR$24,MATCH($B94,'Energy Prices'!$C$19:$C$24,0),MATCH(Calc_Option5!AK$6,'Energy Prices'!$F$11:$CR$11,0))/100000,\"\")","v":""},{"$f":"IFERROR('Data Input - Option 5'!AP84*INDEX('Energy Prices'!$F$19:$CR$24,MATCH($B94,'Energy Prices'!$C$19:$C$24,0),MATCH(Calc_Option5!AL$6,'Energy Prices'!$F$11:$CR$11,0))/100000,\"\")","v":""},{"$f":"IFERROR('Data Input - Option 5'!AQ84*INDEX('Energy Prices'!$F$19:$CR$24,MATCH($B94,'Energy Prices'!$C$19:$C$24,0),MATCH(Calc_Option5!AM$6,'Energy Prices'!$F$11:$CR$11,0))/100000,\"\")","v":""},{"$f":"IFERROR('Data Input - Option 5'!AR84*INDEX('Energy Prices'!$F$19:$CR$24,MATCH($B94,'Energy Prices'!$C$19:$C$24,0),MATCH(Calc_Option5!AN$6,'Energy Prices'!$F$11:$CR$11,0))/100000,\"\")","v":""},{"$f":"IFERROR('Data Input - Option 5'!AS84*INDEX('Energy Prices'!$F$19:$CR$24,MATCH($B94,'Energy Prices'!$C$19:$C$24,0),MATCH(Calc_Option5!AO$6,'Energy Prices'!$F$11:$CR$11,0))/100000,\"\")","v":""},{"$f":"IFERROR('Data Input - Option 5'!AT84*INDEX('Energy Prices'!$F$19:$CR$24,MATCH($B94,'Energy Prices'!$C$19:$C$24,0),MATCH(Calc_Option5!AP$6,'Energy Prices'!$F$11:$CR$11,0))/100000,\"\")","v":""},{"$f":"IFERROR('Data Input - Option 5'!AU84*INDEX('Energy Prices'!$F$19:$CR$24,MATCH($B94,'Energy Prices'!$C$19:$C$24,0),MATCH(Calc_Option5!AQ$6,'Energy Prices'!$F$11:$CR$11,0))/100000,\"\")","v":""},{"$f":"IFERROR('Data Input - Option 5'!AV84*INDEX('Energy Prices'!$F$19:$CR$24,MATCH($B94,'Energy Prices'!$C$19:$C$24,0),MATCH(Calc_Option5!AR$6,'Energy Prices'!$F$11:$CR$11,0))/100000,\"\")","v":""},{"$f":"IFERROR('Data Input - Option 5'!AW84*INDEX('Energy Prices'!$F$19:$CR$24,MATCH($B94,'Energy Prices'!$C$19:$C$24,0),MATCH(Calc_Option5!AS$6,'Energy Prices'!$F$11:$CR$11,0))/100000,\"\")","v":""},{"$f":"IFERROR('Data Input - Option 5'!AX84*INDEX('Energy Prices'!$F$19:$CR$24,MATCH($B94,'Energy Prices'!$C$19:$C$24,0),MATCH(Calc_Option5!AT$6,'Energy Prices'!$F$11:$CR$11,0))/100000,\"\")","v":""},{"$f":"IFERROR('Data Input - Option 5'!AY84*INDEX('Energy Prices'!$F$19:$CR$24,MATCH($B94,'Energy Prices'!$C$19:$C$24,0),MATCH(Calc_Option5!AU$6,'Energy Prices'!$F$11:$CR$11,0))/100000,\"\")","v":""},{"$f":"IFERROR('Data Input - Option 5'!AZ84*INDEX('Energy Prices'!$F$19:$CR$24,MATCH($B94,'Energy Prices'!$C$19:$C$24,0),MATCH(Calc_Option5!AV$6,'Energy Prices'!$F$11:$CR$11,0))/100000,\"\")","v":""},{"$f":"IFERROR('Data Input - Option 5'!BA84*INDEX('Energy Prices'!$F$19:$CR$24,MATCH($B94,'Energy Prices'!$C$19:$C$24,0),MATCH(Calc_Option5!AW$6,'Energy Prices'!$F$11:$CR$11,0))/100000,\"\")","v":""},{"$f":"IFERROR('Data Input - Option 5'!BB84*INDEX('Energy Prices'!$F$19:$CR$24,MATCH($B94,'Energy Prices'!$C$19:$C$24,0),MATCH(Calc_Option5!AX$6,'Energy Prices'!$F$11:$CR$11,0))/100000,\"\")","v":""},{"$f":"IFERROR('Data Input - Option 5'!BC84*INDEX('Energy Prices'!$F$19:$CR$24,MATCH($B94,'Energy Prices'!$C$19:$C$24,0),MATCH(Calc_Option5!AY$6,'Energy Prices'!$F$11:$CR$11,0))/100000,\"\")","v":""},{"$f":"IFERROR('Data Input - Option 5'!BD84*INDEX('Energy Prices'!$F$19:$CR$24,MATCH($B94,'Energy Prices'!$C$19:$C$24,0),MATCH(Calc_Option5!AZ$6,'Energy Prices'!$F$11:$CR$11,0))/100000,\"\")","v":""},{"$f":"IFERROR('Data Input - Option 5'!BE84*INDEX('Energy Prices'!$F$19:$CR$24,MATCH($B94,'Energy Prices'!$C$19:$C$24,0),MATCH(Calc_Option5!BA$6,'Energy Prices'!$F$11:$CR$11,0))/100000,\"\")","v":""},{"$f":"IFERROR('Data Input - Option 5'!BF84*INDEX('Energy Prices'!$F$19:$CR$24,MATCH($B94,'Energy Prices'!$C$19:$C$24,0),MATCH(Calc_Option5!BB$6,'Energy Prices'!$F$11:$CR$11,0))/100000,\"\")","v":""},{"$f":"IFERROR('Data Input - Option 5'!BG84*INDEX('Energy Prices'!$F$19:$CR$24,MATCH($B94,'Energy Prices'!$C$19:$C$24,0),MATCH(Calc_Option5!BC$6,'Energy Prices'!$F$11:$CR$11,0))/100000,\"\")","v":""},{"$f":"IFERROR('Data Input - Option 5'!BH84*INDEX('Energy Prices'!$F$19:$CR$24,MATCH($B94,'Energy Prices'!$C$19:$C$24,0),MATCH(Calc_Option5!BD$6,'Energy Prices'!$F$11:$CR$11,0))/100000,\"\")","v":""},{"$f":"IFERROR('Data Input - Option 5'!BI84*INDEX('Energy Prices'!$F$19:$CR$24,MATCH($B94,'Energy Prices'!$C$19:$C$24,0),MATCH(Calc_Option5!BE$6,'Energy Prices'!$F$11:$CR$11,0))/100000,\"\")","v":""},{"$f":"IFERROR('Data Input - Option 5'!BJ84*INDEX('Energy Prices'!$F$19:$CR$24,MATCH($B94,'Energy Prices'!$C$19:$C$24,0),MATCH(Calc_Option5!BF$6,'Energy Prices'!$F$11:$CR$11,0))/100000,\"\")","v":""},{"$f":"IFERROR('Data Input - Option 5'!BK84*INDEX('Energy Prices'!$F$19:$CR$24,MATCH($B94,'Energy Prices'!$C$19:$C$24,0),MATCH(Calc_Option5!BG$6,'Energy Prices'!$F$11:$CR$11,0))/100000,\"\")","v":""},{"$f":"IFERROR('Data Input - Option 5'!BL84*INDEX('Energy Prices'!$F$19:$CR$24,MATCH($B94,'Energy Prices'!$C$19:$C$24,0),MATCH(Calc_Option5!BH$6,'Energy Prices'!$F$11:$CR$11,0))/100000,\"\")","v":""},{"$f":"IFERROR('Data Input - Option 5'!BM84*INDEX('Energy Prices'!$F$19:$CR$24,MATCH($B94,'Energy Prices'!$C$19:$C$24,0),MATCH(Calc_Option5!BI$6,'Energy Prices'!$F$11:$CR$11,0))/100000,\"\")","v":""},{"$f":"IFERROR('Data Input - Option 5'!BN84*INDEX('Energy Prices'!$F$19:$CR$24,MATCH($B94,'Energy Prices'!$C$19:$C$24,0),MATCH(Calc_Option5!BJ$6,'Energy Prices'!$F$11:$CR$11,0))/100000,\"\")","v":""},{"$f":"IFERROR('Data Input - Option 5'!BO84*INDEX('Energy Prices'!$F$19:$CR$24,MATCH($B94,'Energy Prices'!$C$19:$C$24,0),MATCH(Calc_Option5!BK$6,'Energy Prices'!$F$11:$CR$11,0))/100000,\"\")","v":""},{"$f":"IFERROR('Data Input - Option 5'!BP84*INDEX('Energy Prices'!$F$19:$CR$24,MATCH($B94,'Energy Prices'!$C$19:$C$24,0),MATCH(Calc_Option5!BL$6,'Energy Prices'!$F$11:$CR$11,0))/100000,\"\")","v":""},{"$f":"IFERROR('Data Input - Option 5'!BQ84*INDEX('Energy Prices'!$F$19:$CR$24,MATCH($B94,'Energy Prices'!$C$19:$C$24,0),MATCH(Calc_Option5!BM$6,'Energy Prices'!$F$11:$CR$11,0))/100000,\"\")","v":""},{"$f":"IFERROR('Data Input - Option 5'!BR84*INDEX('Energy Prices'!$F$19:$CR$24,MATCH($B94,'Energy Prices'!$C$19:$C$24,0),MATCH(Calc_Option5!BN$6,'Energy Prices'!$F$11:$CR$11,0))/100000,\"\")","v":""},{"$f":"IFERROR('Data Input - Option 5'!BS84*INDEX('Energy Prices'!$F$19:$CR$24,MATCH($B94,'Energy Prices'!$C$19:$C$24,0),MATCH(Calc_Option5!BO$6,'Energy Prices'!$F$11:$CR$11,0))/100000,\"\")","v":""},{"$f":"IFERROR('Data Input - Option 5'!BT84*INDEX('Energy Prices'!$F$19:$CR$24,MATCH($B94,'Energy Prices'!$C$19:$C$24,0),MATCH(Calc_Option5!BP$6,'Energy Prices'!$F$11:$CR$11,0))/100000,\"\")","v":""},{"$f":"IFERROR('Data Input - Option 5'!BU84*INDEX('Energy Prices'!$F$19:$CR$24,MATCH($B94,'Energy Prices'!$C$19:$C$24,0),MATCH(Calc_Option5!BQ$6,'Energy Prices'!$F$11:$CR$11,0))/100000,\"\")","v":""},{"$f":"IFERROR('Data Input - Option 5'!BV84*INDEX('Energy Prices'!$F$19:$CR$24,MATCH($B94,'Energy Prices'!$C$19:$C$24,0),MATCH(Calc_Option5!BR$6,'Energy Prices'!$F$11:$CR$11,0))/100000,\"\")","v":""},{"$f":"IFERROR('Data Input - Option 5'!BW84*INDEX('Energy Prices'!$F$19:$CR$24,MATCH($B94,'Energy Prices'!$C$19:$C$24,0),MATCH(Calc_Option5!BS$6,'Energy Prices'!$F$11:$CR$11,0))/100000,\"\")","v":""},{"$f":"IFERROR('Data Input - Option 5'!BX84*INDEX('Energy Prices'!$F$19:$CR$24,MATCH($B94,'Energy Prices'!$C$19:$C$24,0),MATCH(Calc_Option5!BT$6,'Energy Prices'!$F$11:$CR$11,0))/100000,\"\")","v":""},{"$f":"IFERROR('Data Input - Option 5'!BY84*INDEX('Energy Prices'!$F$19:$CR$24,MATCH($B94,'Energy Prices'!$C$19:$C$24,0),MATCH(Calc_Option5!BU$6,'Energy Prices'!$F$11:$CR$11,0))/100000,\"\")","v":""},{"$f":"IFERROR('Data Input - Option 5'!BZ84*INDEX('Energy Prices'!$F$19:$CR$24,MATCH($B94,'Energy Prices'!$C$19:$C$24,0),MATCH(Calc_Option5!BV$6,'Energy Prices'!$F$11:$CR$11,0))/100000,\"\")","v":""},{"$f":"IFERROR('Data Input - Option 5'!CA84*INDEX('Energy Prices'!$F$19:$CR$24,MATCH($B94,'Energy Prices'!$C$19:$C$24,0),MATCH(Calc_Option5!BW$6,'Energy Prices'!$F$11:$CR$11,0))/100000,\"\")","v":""},{"$f":"IFERROR('Data Input - Option 5'!CB84*INDEX('Energy Prices'!$F$19:$CR$24,MATCH($B94,'Energy Prices'!$C$19:$C$24,0),MATCH(Calc_Option5!BX$6,'Energy Prices'!$F$11:$CR$11,0))/100000,\"\")","v":""},{"$f":"IFERROR('Data Input - Option 5'!CC84*INDEX('Energy Prices'!$F$19:$CR$24,MATCH($B94,'Energy Prices'!$C$19:$C$24,0),MATCH(Calc_Option5!BY$6,'Energy Prices'!$F$11:$CR$11,0))/100000,\"\")","v":""},{"$f":"IFERROR('Data Input - Option 5'!CD84*INDEX('Energy Prices'!$F$19:$CR$24,MATCH($B94,'Energy Prices'!$C$19:$C$24,0),MATCH(Calc_Option5!BZ$6,'Energy Prices'!$F$11:$CR$11,0))/100000,\"\")","v":""},{"$f":"IFERROR('Data Input - Option 5'!CE84*INDEX('Energy Prices'!$F$19:$CR$24,MATCH($B94,'Energy Prices'!$C$19:$C$24,0),MATCH(Calc_Option5!CA$6,'Energy Prices'!$F$11:$CR$11,0))/100000,\"\")","v":""},{"$f":"IFERROR('Data Input - Option 5'!CF84*INDEX('Energy Prices'!$F$19:$CR$24,MATCH($B94,'Energy Prices'!$C$19:$C$24,0),MATCH(Calc_Option5!CB$6,'Energy Prices'!$F$11:$CR$11,0))/100000,\"\")","v":""},{"$f":"IFERROR('Data Input - Option 5'!CG84*INDEX('Energy Prices'!$F$19:$CR$24,MATCH($B94,'Energy Prices'!$C$19:$C$24,0),MATCH(Calc_Option5!CC$6,'Energy Prices'!$F$11:$CR$11,0))/100000,\"\")","v":""},{"$f":"IFERROR('Data Input - Option 5'!CH84*INDEX('Energy Prices'!$F$19:$CR$24,MATCH($B94,'Energy Prices'!$C$19:$C$24,0),MATCH(Calc_Option5!CD$6,'Energy Prices'!$F$11:$CR$11,0))/100000,\"\")","v":""},{"$f":"IFERROR('Data Input - Option 5'!CI84*INDEX('Energy Prices'!$F$19:$CR$24,MATCH($B94,'Energy Prices'!$C$19:$C$24,0),MATCH(Calc_Option5!CE$6,'Energy Prices'!$F$11:$CR$11,0))/100000,\"\")","v":""},{"$f":"IFERROR('Data Input - Option 5'!CJ84*INDEX('Energy Prices'!$F$19:$CR$24,MATCH($B94,'Energy Prices'!$C$19:$C$24,0),MATCH(Calc_Option5!CF$6,'Energy Prices'!$F$11:$CR$11,0))/100000,\"\")","v":""},{"$f":"IFERROR('Data Input - Option 5'!CK84*INDEX('Energy Prices'!$F$19:$CR$24,MATCH($B94,'Energy Prices'!$C$19:$C$24,0),MATCH(Calc_Option5!CG$6,'Energy Prices'!$F$11:$CR$11,0))/100000,\"\")","v":""},{"$f":"IFERROR('Data Input - Option 5'!CL84*INDEX('Energy Prices'!$F$19:$CR$24,MATCH($B94,'Energy Prices'!$C$19:$C$24,0),MATCH(Calc_Option5!CH$6,'Energy Prices'!$F$11:$CR$11,0))/100000,\"\")","v":""},{"$f":"IFERROR('Data Input - Option 5'!CM84*INDEX('Energy Prices'!$F$19:$CR$24,MATCH($B94,'Energy Prices'!$C$19:$C$24,0),MATCH(Calc_Option5!CI$6,'Energy Prices'!$F$11:$CR$11,0))/100000,\"\")","v":""},{"$f":"IFERROR('Data Input - Option 5'!CN84*INDEX('Energy Prices'!$F$19:$CR$24,MATCH($B94,'Energy Prices'!$C$19:$C$24,0),MATCH(Calc_Option5!CJ$6,'Energy Prices'!$F$11:$CR$11,0))/100000,\"\")","v":""},{"$f":"IFERROR('Data Input - Option 5'!CO84*INDEX('Energy Prices'!$F$19:$CR$24,MATCH($B94,'Energy Prices'!$C$19:$C$24,0),MATCH(Calc_Option5!CK$6,'Energy Prices'!$F$11:$CR$11,0))/100000,\"\")","v":""},{"$f":"IFERROR('Data Input - Option 5'!CP84*INDEX('Energy Prices'!$F$19:$CR$24,MATCH($B94,'Energy Prices'!$C$19:$C$24,0),MATCH(Calc_Option5!CL$6,'Energy Prices'!$F$11:$CR$11,0))/100000,\"\")","v":""},{"$f":"IFERROR('Data Input - Option 5'!CQ84*INDEX('Energy Prices'!$F$19:$CR$24,MATCH($B94,'Energy Prices'!$C$19:$C$24,0),MATCH(Calc_Option5!CM$6,'Energy Prices'!$F$11:$CR$11,0))/100000,\"\")","v":""},{"$f":"IFERROR('Data Input - Option 5'!CR84*INDEX('Energy Prices'!$F$19:$CR$24,MATCH($B94,'Energy Prices'!$C$19:$C$24,0),MATCH(Calc_Option5!CN$6,'Energy Prices'!$F$11:$CR$11,0))/100000,\"\")","v":""},{"$f":"IFERROR('Data Input - Option 5'!CS84*INDEX('Energy Prices'!$F$19:$CR$24,MATCH($B94,'Energy Prices'!$C$19:$C$24,0),MATCH(Calc_Option5!CO$6,'Energy Prices'!$F$11:$CR$11,0))/100000,\"\")","v":""},{"$f":"IFERROR('Data Input - Option 5'!CT84*INDEX('Energy Prices'!$F$19:$CR$24,MATCH($B94,'Energy Prices'!$C$19:$C$24,0),MATCH(Calc_Option5!CP$6,'Energy Prices'!$F$11:$CR$11,0))/100000,\"\")","v":""},{"$f":"IFERROR('Data Input - Option 5'!CU84*INDEX('Energy Prices'!$F$19:$CR$24,MATCH($B94,'Energy Prices'!$C$19:$C$24,0),MATCH(Calc_Option5!CQ$6,'Energy Prices'!$F$11:$CR$11,0))/100000,\"\")","v":""},{"$f":"IFERROR('Data Input - Option 5'!CV84*INDEX('Energy Prices'!$F$19:$CR$24,MATCH($B94,'Energy Prices'!$C$19:$C$24,0),MATCH(Calc_Option5!CR$6,'Energy Prices'!$F$11:$CR$11,0))/100000,\"\")","v":""},{"$f":"IFERROR('Data Input - Option 5'!CW84*INDEX('Energy Prices'!$F$19:$CR$24,MATCH($B94,'Energy Prices'!$C$19:$C$24,0),MATCH(Calc_Option5!CS$6,'Energy Prices'!$F$11:$CR$11,0))/100000,\"\")","v":""},{"$f":"IFERROR('Data Input - Option 5'!CX84*INDEX('Energy Prices'!$F$19:$CR$24,MATCH($B94,'Energy Prices'!$C$19:$C$24,0),MATCH(Calc_Option5!CT$6,'Energy Prices'!$F$11:$CR$11,0))/100000,\"\")","v":""},{"$f":"IFERROR('Data Input - Option 5'!CY84*INDEX('Energy Prices'!$F$19:$CR$24,MATCH($B94,'Energy Prices'!$C$19:$C$24,0),MATCH(Calc_Option5!CU$6,'Energy Prices'!$F$11:$CR$11,0))/100000,\"\")","v":""},{"$f":"IFERROR('Data Input - Option 5'!CZ84*INDEX('Energy Prices'!$F$19:$CR$24,MATCH($B94,'Energy Prices'!$C$19:$C$24,0),MATCH(Calc_Option5!CV$6,'Energy Prices'!$F$11:$CR$11,0))/100000,\"\")","v":""},{"$f":"IFERROR('Data Input - Option 5'!DA84*INDEX('Energy Prices'!$F$19:$CR$24,MATCH($B94,'Energy Prices'!$C$19:$C$24,0),MATCH(Calc_Option5!CW$6,'Energy Prices'!$F$11:$CR$11,0))/100000,\"\")","v":""},{"$f":"IFERROR('Data Input - Option 5'!DB84*INDEX('Energy Prices'!$F$19:$CR$24,MATCH($B94,'Energy Prices'!$C$19:$C$24,0),MATCH(Calc_Option5!CX$6,'Energy Prices'!$F$11:$CR$11,0))/100000,\"\")","v":""},{"$f":"IFERROR('Data Input - Option 5'!DC84*INDEX('Energy Prices'!$F$19:$CR$24,MATCH($B94,'Energy Prices'!$C$19:$C$24,0),MATCH(Calc_Option5!CY$6,'Energy Prices'!$F$11:$CR$11,0))/100000,\"\")","v":""}]
[null,"Natural Gas","£000's",{"$f":"IFERROR('Data Input - Option 5'!H85*INDEX('Energy Prices'!$F$19:$CR$24,MATCH($B95,'Energy Prices'!$C$19:$C$24,0),MATCH(Calc_Option5!D$6,'Energy Prices'!$F$11:$CR$11,0))/100000,\"\")","v":0},{"$f":"IFERROR('Data Input - Option 5'!I85*INDEX('Energy Prices'!$F$19:$CR$24,MATCH($B95,'Energy Prices'!$C$19:$C$24,0),MATCH(Calc_Option5!E$6,'Energy Prices'!$F$11:$CR$11,0))/100000,\"\")","v":0},{"$f":"IFERROR('Data Input - Option 5'!J85*INDEX('Energy Prices'!$F$19:$CR$24,MATCH($B95,'Energy Prices'!$C$19:$C$24,0),MATCH(Calc_Option5!F$6,'Energy Prices'!$F$11:$CR$11,0))/100000,\"\")","v":0},{"$f":"IFERROR('Data Input - Option 5'!K85*INDEX('Energy Prices'!$F$19:$CR$24,MATCH($B95,'Energy Prices'!$C$19:$C$24,0),MATCH(Calc_Option5!G$6,'Energy Prices'!$F$11:$CR$11,0))/100000,\"\")","v":0},{"$f":"IFERROR('Data Input - Option 5'!L85*INDEX('Energy Prices'!$F$19:$CR$24,MATCH($B95,'Energy Prices'!$C$19:$C$24,0),MATCH(Calc_Option5!H$6,'Energy Prices'!$F$11:$CR$11,0))/100000,\"\")","v":0},{"$f":"IFERROR('Data Input - Option 5'!M85*INDEX('Energy Prices'!$F$19:$CR$24,MATCH($B95,'Energy Prices'!$C$19:$C$24,0),MATCH(Calc_Option5!I$6,'Energy Prices'!$F$11:$CR$11,0))/100000,\"\")","v":0},{"$f":"IFERROR('Data Input - Option 5'!N85*INDEX('Energy Prices'!$F$19:$CR$24,MATCH($B95,'Energy Prices'!$C$19:$C$24,0),MATCH(Calc_Option5!J$6,'Energy Prices'!$F$11:$CR$11,0))/100000,\"\")","v":0},{"$f":"IFERROR('Data Input - Option 5'!O85*INDEX('Energy Prices'!$F$19:$CR$24,MATCH($B95,'Energy Prices'!$C$19:$C$24,0),MATCH(Calc_Option5!K$6,'Energy Prices'!$F$11:$CR$11,0))/100000,\"\")","v":0},{"$f":"IFERROR('Data Input - Option 5'!P85*INDEX('Energy Prices'!$F$19:$CR$24,MATCH($B95,'Energy Prices'!$C$19:$C$24,0),MATCH(Calc_Option5!L$6,'Energy Prices'!$F$11:$CR$11,0))/100000,\"\")","v":0},{"$f":"IFERROR('Data Input - Option 5'!Q85*INDEX('Energy Prices'!$F$19:$CR$24,MATCH($B95,'Energy Prices'!$C$19:$C$24,0),MATCH(Calc_Option5!M$6,'Energy Prices'!$F$11:$CR$11,0))/100000,\"\")","v":0},{"$f":"IFERROR('Data Input - Option 5'!R85*INDEX('Energy Prices'!$F$19:$CR$24,MATCH($B95,'Energy Prices'!$C$19:$C$24,0),MATCH(Calc_Option5!N$6,'Energy Prices'!$F$11:$CR$11,0))/100000,\"\")","v":0},{"$f":"IFERROR('Data Input - Option 5'!S85*INDEX('Energy Prices'!$F$19:$CR$24,MATCH($B95,'Energy Prices'!$C$19:$C$24,0),MATCH(Calc_Option5!O$6,'Energy Prices'!$F$11:$CR$11,0))/100000,\"\")","v":0},{"$f":"IFERROR('Data Input - Option 5'!T85*INDEX('Energy Prices'!$F$19:$CR$24,MATCH($B95,'Energy Prices'!$C$19:$C$24,0),MATCH(Calc_Option5!P$6,'Energy Prices'!$F$11:$CR$11,0))/100000,\"\")","v":0},{"$f":"IFERROR('Data Input - Option 5'!U85*INDEX('Energy Prices'!$F$19:$CR$24,MATCH($B95,'Energy Prices'!$C$19:$C$24,0),MATCH(Calc_Option5!Q$6,'Energy Prices'!$F$11:$CR$11,0))/100000,\"\")","v":0},{"$f":"IFERROR('Data Input - Option 5'!V85*INDEX('Energy Prices'!$F$19:$CR$24,MATCH($B95,'Energy Prices'!$C$19:$C$24,0),MATCH(Calc_Option5!R$6,'Energy Prices'!$F$11:$CR$11,0))/100000,\"\")","v":0},{"$f":"IFERROR('Data Input - Option 5'!W85*INDEX('Energy Prices'!$F$19:$CR$24,MATCH($B95,'Energy Prices'!$C$19:$C$24,0),MATCH(Calc_Option5!S$6,'Energy Prices'!$F$11:$CR$11,0))/100000,\"\")","v":0},{"$f":"IFERROR('Data Input - Option 5'!X85*INDEX('Energy Prices'!$F$19:$CR$24,MATCH($B95,'Energy Prices'!$C$19:$C$24,0),MATCH(Calc_Option5!T$6,'Energy Prices'!$F$11:$CR$11,0))/100000,\"\")","v":0},{"$f":"IFERROR('Data Input - Option 5'!Y85*INDEX('Energy Prices'!$F$19:$CR$24,MATCH($B95,'Energy Prices'!$C$19:$C$24,0),MATCH(Calc_Option5!U$6,'Energy Prices'!$F$11:$CR$11,0))/100000,\"\")","v":0},{"$f":"IFERROR('Data Input - Option 5'!Z85*INDEX('Energy Prices'!$F$19:$CR$24,MATCH($B95,'Energy Prices'!$C$19:$C$24,0),MATCH(Calc_Option5!V$6,'Energy Prices'!$F$11:$CR$11,0))/100000,\"\")","v":0},{"$f":"IFERROR('Data Input - Option 5'!AA85*INDEX('Energy Prices'!$F$19:$CR$24,MATCH($B95,'Energy Prices'!$C$19:$C$24,0),MATCH(Calc_Option5!W$6,'Energy Prices'!$F$11:$CR$11,0))/100000,\"\")","v":0},{"$f":"IFERROR('Data Input - Option 5'!AB85*INDEX('Energy Prices'!$F$19:$CR$24,MATCH($B95,'Energy Prices'!$C$19:$C$24,0),MATCH(Calc_Option5!X$6,'Energy Prices'!$F$11:$CR$11,0))/100000,\"\")","v":0},{"$f":"IFERROR('Data Input - Option 5'!AC85*INDEX('Energy Prices'!$F$19:$CR$24,MATCH($B95,'Energy Prices'!$C$19:$C$24,0),MATCH(Calc_Option5!Y$6,'Energy Prices'!$F$11:$CR$11,0))/100000,\"\")","v":0},{"$f":"IFERROR('Data Input - Option 5'!AD85*INDEX('Energy Prices'!$F$19:$CR$24,MATCH($B95,'Energy Prices'!$C$19:$C$24,0),MATCH(Calc_Option5!Z$6,'Energy Prices'!$F$11:$CR$11,0))/100000,\"\")","v":0},{"$f":"IFERROR('Data Input - Option 5'!AE85*INDEX('Energy Prices'!$F$19:$CR$24,MATCH($B95,'Energy Prices'!$C$19:$C$24,0),MATCH(Calc_Option5!AA$6,'Energy Prices'!$F$11:$CR$11,0))/100000,\"\")","v":0},{"$f":"IFERROR('Data Input - Option 5'!AF85*INDEX('Energy Prices'!$F$19:$CR$24,MATCH($B95,'Energy Prices'!$C$19:$C$24,0),MATCH(Calc_Option5!AB$6,'Energy Prices'!$F$11:$CR$11,0))/100000,\"\")","v":0},{"$f":"IFERROR('Data Input - Option 5'!AG85*INDEX('Energy Prices'!$F$19:$CR$24,MATCH($B95,'Energy Prices'!$C$19:$C$24,0),MATCH(Calc_Option5!AC$6,'Energy Prices'!$F$11:$CR$11,0))/100000,\"\")","v":0},{"$f":"IFERROR('Data Input - Option 5'!AH85*INDEX('Energy Prices'!$F$19:$CR$24,MATCH($B95,'Energy Prices'!$C$19:$C$24,0),MATCH(Calc_Option5!AD$6,'Energy Prices'!$F$11:$CR$11,0))/100000,\"\")","v":0},{"$f":"IFERROR('Data Input - Option 5'!AI85*INDEX('Energy Prices'!$F$19:$CR$24,MATCH($B95,'Energy Prices'!$C$19:$C$24,0),MATCH(Calc_Option5!AE$6,'Energy Prices'!$F$11:$CR$11,0))/100000,\"\")","v":0},{"$f":"IFERROR('Data Input - Option 5'!AJ85*INDEX('Energy Prices'!$F$19:$CR$24,MATCH($B95,'Energy Prices'!$C$19:$C$24,0),MATCH(Calc_Option5!AF$6,'Energy Prices'!$F$11:$CR$11,0))/100000,\"\")","v":0},{"$f":"IFERROR('Data Input - Option 5'!AK85*INDEX('Energy Prices'!$F$19:$CR$24,MATCH($B95,'Energy Prices'!$C$19:$C$24,0),MATCH(Calc_Option5!AG$6,'Energy Prices'!$F$11:$CR$11,0))/100000,\"\")","v":0},{"$f":"IFERROR('Data Input - Option 5'!AL85*INDEX('Energy Prices'!$F$19:$CR$24,MATCH($B95,'Energy Prices'!$C$19:$C$24,0),MATCH(Calc_Option5!AH$6,'Energy Prices'!$F$11:$CR$11,0))/100000,\"\")","v":0},{"$f":"IFERROR('Data Input - Option 5'!AM85*INDEX('Energy Prices'!$F$19:$CR$24,MATCH($B95,'Energy Prices'!$C$19:$C$24,0),MATCH(Calc_Option5!AI$6,'Energy Prices'!$F$11:$CR$11,0))/100000,\"\")","v":""},{"$f":"IFERROR('Data Input - Option 5'!AN85*INDEX('Energy Prices'!$F$19:$CR$24,MATCH($B95,'Energy Prices'!$C$19:$C$24,0),MATCH(Calc_Option5!AJ$6,'Energy Prices'!$F$11:$CR$11,0))/100000,\"\")","v":""},{"$f":"IFERROR('Data Input - Option 5'!AO85*INDEX('Energy Prices'!$F$19:$CR$24,MATCH($B95,'Energy Prices'!$C$19:$C$24,0),MATCH(Calc_Option5!AK$6,'Energy Prices'!$F$11:$CR$11,0))/100000,\"\")","v":""},{"$f":"IFERROR('Data Input - Option 5'!AP85*INDEX('Energy Prices'!$F$19:$CR$24,MATCH($B95,'Energy Prices'!$C$19:$C$24,0),MATCH(Calc_Option5!AL$6,'Energy Prices'!$F$11:$CR$11,0))/100000,\"\")","v":""},{"$f":"IFERROR('Data Input - Option 5'!AQ85*INDEX('Energy Prices'!$F$19:$CR$24,MATCH($B95,'Energy Prices'!$C$19:$C$24,0),MATCH(Calc_Option5!AM$6,'Energy Prices'!$F$11:$CR$11,0))/100000,\"\")","v":""},{"$f":"IFERROR('Data Input - Option 5'!AR85*INDEX('Energy Prices'!$F$19:$CR$24,MATCH($B95,'Energy Prices'!$C$19:$C$24,0),MATCH(Calc_Option5!AN$6,'Energy Prices'!$F$11:$CR$11,0))/100000,\"\")","v":""},{"$f":"IFERROR('Data Input - Option 5'!AS85*INDEX('Energy Prices'!$F$19:$CR$24,MATCH($B95,'Energy Prices'!$C$19:$C$24,0),MATCH(Calc_Option5!AO$6,'Energy Prices'!$F$11:$CR$11,0))/100000,\"\")","v":""},{"$f":"IFERROR('Data Input - Option 5'!AT85*INDEX('Energy Prices'!$F$19:$CR$24,MATCH($B95,'Energy Prices'!$C$19:$C$24,0),MATCH(Calc_Option5!AP$6,'Energy Prices'!$F$11:$CR$11,0))/100000,\"\")","v":""},{"$f":"IFERROR('Data Input - Option 5'!AU85*INDEX('Energy Prices'!$F$19:$CR$24,MATCH($B95,'Energy Prices'!$C$19:$C$24,0),MATCH(Calc_Option5!AQ$6,'Energy Prices'!$F$11:$CR$11,0))/100000,\"\")","v":""},{"$f":"IFERROR('Data Input - Option 5'!AV85*INDEX('Energy Prices'!$F$19:$CR$24,MATCH($B95,'Energy Prices'!$C$19:$C$24,0),MATCH(Calc_Option5!AR$6,'Energy Prices'!$F$11:$CR$11,0))/100000,\"\")","v":""},{"$f":"IFERROR('Data Input - Option 5'!AW85*INDEX('Energy Prices'!$F$19:$CR$24,MATCH($B95,'Energy Prices'!$C$19:$C$24,0),MATCH(Calc_Option5!AS$6,'Energy Prices'!$F$11:$CR$11,0))/100000,\"\")","v":""},{"$f":"IFERROR('Data Input - Option 5'!AX85*INDEX('Energy Prices'!$F$19:$CR$24,MATCH($B95,'Energy Prices'!$C$19:$C$24,0),MATCH(Calc_Option5!AT$6,'Energy Prices'!$F$11:$CR$11,0))/100000,\"\")","v":""},{"$f":"IFERROR('Data Input - Option 5'!AY85*INDEX('Energy Prices'!$F$19:$CR$24,MATCH($B95,'Energy Prices'!$C$19:$C$24,0),MATCH(Calc_Option5!AU$6,'Energy Prices'!$F$11:$CR$11,0))/100000,\"\")","v":""},{"$f":"IFERROR('Data Input - Option 5'!AZ85*INDEX('Energy Prices'!$F$19:$CR$24,MATCH($B95,'Energy Prices'!$C$19:$C$24,0),MATCH(Calc_Option5!AV$6,'Energy Prices'!$F$11:$CR$11,0))/100000,\"\")","v":""},{"$f":"IFERROR('Data Input - Option 5'!BA85*INDEX('Energy Prices'!$F$19:$CR$24,MATCH($B95,'Energy Prices'!$C$19:$C$24,0),MATCH(Calc_Option5!AW$6,'Energy Prices'!$F$11:$CR$11,0))/100000,\"\")","v":""},{"$f":"IFERROR('Data Input - Option 5'!BB85*INDEX('Energy Prices'!$F$19:$CR$24,MATCH($B95,'Energy Prices'!$C$19:$C$24,0),MATCH(Calc_Option5!AX$6,'Energy Prices'!$F$11:$CR$11,0))/100000,\"\")","v":""},{"$f":"IFERROR('Data Input - Option 5'!BC85*INDEX('Energy Prices'!$F$19:$CR$24,MATCH($B95,'Energy Prices'!$C$19:$C$24,0),MATCH(Calc_Option5!AY$6,'Energy Prices'!$F$11:$CR$11,0))/100000,\"\")","v":""},{"$f":"IFERROR('Data Input - Option 5'!BD85*INDEX('Energy Prices'!$F$19:$CR$24,MATCH($B95,'Energy Prices'!$C$19:$C$24,0),MATCH(Calc_Option5!AZ$6,'Energy Prices'!$F$11:$CR$11,0))/100000,\"\")","v":""},{"$f":"IFERROR('Data Input - Option 5'!BE85*INDEX('Energy Prices'!$F$19:$CR$24,MATCH($B95,'Energy Prices'!$C$19:$C$24,0),MATCH(Calc_Option5!BA$6,'Energy Prices'!$F$11:$CR$11,0))/100000,\"\")","v":""},{"$f":"IFERROR('Data Input - Option 5'!BF85*INDEX('Energy Prices'!$F$19:$CR$24,MATCH($B95,'Energy Prices'!$C$19:$C$24,0),MATCH(Calc_Option5!BB$6,'Energy Prices'!$F$11:$CR$11,0))/100000,\"\")","v":""},{"$f":"IFERROR('Data Input - Option 5'!BG85*INDEX('Energy Prices'!$F$19:$CR$24,MATCH($B95,'Energy Prices'!$C$19:$C$24,0),MATCH(Calc_Option5!BC$6,'Energy Prices'!$F$11:$CR$11,0))/100000,\"\")","v":""},{"$f":"IFERROR('Data Input - Option 5'!BH85*INDEX('Energy Prices'!$F$19:$CR$24,MATCH($B95,'Energy Prices'!$C$19:$C$24,0),MATCH(Calc_Option5!BD$6,'Energy Prices'!$F$11:$CR$11,0))/100000,\"\")","v":""},{"$f":"IFERROR('Data Input - Option 5'!BI85*INDEX('Energy Prices'!$F$19:$CR$24,MATCH($B95,'Energy Prices'!$C$19:$C$24,0),MATCH(Calc_Option5!BE$6,'Energy Prices'!$F$11:$CR$11,0))/100000,\"\")","v":""},{"$f":"IFERROR('Data Input - Option 5'!BJ85*INDEX('Energy Prices'!$F$19:$CR$24,MATCH($B95,'Energy Prices'!$C$19:$C$24,0),MATCH(Calc_Option5!BF$6,'Energy Prices'!$F$11:$CR$11,0))/100000,\"\")","v":""},{"$f":"IFERROR('Data Input - Option 5'!BK85*INDEX('Energy Prices'!$F$19:$CR$24,MATCH($B95,'Energy Prices'!$C$19:$C$24,0),MATCH(Calc_Option5!BG$6,'Energy Prices'!$F$11:$CR$11,0))/100000,\"\")","v":""},{"$f":"IFERROR('Data Input - Option 5'!BL85*INDEX('Energy Prices'!$F$19:$CR$24,MATCH($B95,'Energy Prices'!$C$19:$C$24,0),MATCH(Calc_Option5!BH$6,'Energy Prices'!$F$11:$CR$11,0))/100000,\"\")","v":""},{"$f":"IFERROR('Data Input - Option 5'!BM85*INDEX('Energy Prices'!$F$19:$CR$24,MATCH($B95,'Energy Prices'!$C$19:$C$24,0),MATCH(Calc_Option5!BI$6,'Energy Prices'!$F$11:$CR$11,0))/100000,\"\")","v":""},{"$f":"IFERROR('Data Input - Option 5'!BN85*INDEX('Energy Prices'!$F$19:$CR$24,MATCH($B95,'Energy Prices'!$C$19:$C$24,0),MATCH(Calc_Option5!BJ$6,'Energy Prices'!$F$11:$CR$11,0))/100000,\"\")","v":""},{"$f":"IFERROR('Data Input - Option 5'!BO85*INDEX('Energy Prices'!$F$19:$CR$24,MATCH($B95,'Energy Prices'!$C$19:$C$24,0),MATCH(Calc_Option5!BK$6,'Energy Prices'!$F$11:$CR$11,0))/100000,\"\")","v":""},{"$f":"IFERROR('Data Input - Option 5'!BP85*INDEX('Energy Prices'!$F$19:$CR$24,MATCH($B95,'Energy Prices'!$C$19:$C$24,0),MATCH(Calc_Option5!BL$6,'Energy Prices'!$F$11:$CR$11,0))/100000,\"\")","v":""},{"$f":"IFERROR('Data Input - Option 5'!BQ85*INDEX('Energy Prices'!$F$19:$CR$24,MATCH($B95,'Energy Prices'!$C$19:$C$24,0),MATCH(Calc_Option5!BM$6,'Energy Prices'!$F$11:$CR$11,0))/100000,\"\")","v":""},{"$f":"IFERROR('Data Input - Option 5'!BR85*INDEX('Energy Prices'!$F$19:$CR$24,MATCH($B95,'Energy Prices'!$C$19:$C$24,0),MATCH(Calc_Option5!BN$6,'Energy Prices'!$F$11:$CR$11,0))/100000,\"\")","v":""},{"$f":"IFERROR('Data Input - Option 5'!BS85*INDEX('Energy Prices'!$F$19:$CR$24,MATCH($B95,'Energy Prices'!$C$19:$C$24,0),MATCH(Calc_Option5!BO$6,'Energy Prices'!$F$11:$CR$11,0))/100000,\"\")","v":""},{"$f":"IFERROR('Data Input - Option 5'!BT85*INDEX('Energy Prices'!$F$19:$CR$24,MATCH($B95,'Energy Prices'!$C$19:$C$24,0),MATCH(Calc_Option5!BP$6,'Energy Prices'!$F$11:$CR$11,0))/100000,\"\")","v":""},{"$f":"IFERROR('Data Input - Option 5'!BU85*INDEX('Energy Prices'!$F$19:$CR$24,MATCH($B95,'Energy Prices'!$C$19:$C$24,0),MATCH(Calc_Option5!BQ$6,'Energy Prices'!$F$11:$CR$11,0))/100000,\"\")","v":""},{"$f":"IFERROR('Data Input - Option 5'!BV85*INDEX('Energy Prices'!$F$19:$CR$24,MATCH($B95,'Energy Prices'!$C$19:$C$24,0),MATCH(Calc_Option5!BR$6,'Energy Prices'!$F$11:$CR$11,0))/100000,\"\")","v":""},{"$f":"IFERROR('Data Input - Option 5'!BW85*INDEX('Energy Prices'!$F$19:$CR$24,MATCH($B95,'Energy Prices'!$C$19:$C$24,0),MATCH(Calc_Option5!BS$6,'Energy Prices'!$F$11:$CR$11,0))/100000,\"\")","v":""},{"$f":"IFERROR('Data Input - Option 5'!BX85*INDEX('Energy Prices'!$F$19:$CR$24,MATCH($B95,'Energy Prices'!$C$19:$C$24,0),MATCH(Calc_Option5!BT$6,'Energy Prices'!$F$11:$CR$11,0))/100000,\"\")","v":""},{"$f":"IFERROR('Data Input - Option 5'!BY85*INDEX('Energy Prices'!$F$19:$CR$24,MATCH($B95,'Energy Prices'!$C$19:$C$24,0),MATCH(Calc_Option5!BU$6,'Energy Prices'!$F$11:$CR$11,0))/100000,\"\")","v":""},{"$f":"IFERROR('Data Input - Option 5'!BZ85*INDEX('Energy Prices'!$F$19:$CR$24,MATCH($B95,'Energy Prices'!$C$19:$C$24,0),MATCH(Calc_Option5!BV$6,'Energy Prices'!$F$11:$CR$11,0))/100000,\"\")","v":""},{"$f":"IFERROR('Data Input - Option 5'!CA85*INDEX('Energy Prices'!$F$19:$CR$24,MATCH($B95,'Energy Prices'!$C$19:$C$24,0),MATCH(Calc_Option5!BW$6,'Energy Prices'!$F$11:$CR$11,0))/100000,\"\")","v":""},{"$f":"IFERROR('Data Input - Option 5'!CB85*INDEX('Energy Prices'!$F$19:$CR$24,MATCH($B95,'Energy Prices'!$C$19:$C$24,0),MATCH(Calc_Option5!BX$6,'Energy Prices'!$F$11:$CR$11,0))/100000,\"\")","v":""},{"$f":"IFERROR('Data Input - Option 5'!CC85*INDEX('Energy Prices'!$F$19:$CR$24,MATCH($B95,'Energy Prices'!$C$19:$C$24,0),MATCH(Calc_Option5!BY$6,'Energy Prices'!$F$11:$CR$11,0))/100000,\"\")","v":""},{"$f":"IFERROR('Data Input - Option 5'!CD85*INDEX('Energy Prices'!$F$19:$CR$24,MATCH($B95,'Energy Prices'!$C$19:$C$24,0),MATCH(Calc_Option5!BZ$6,'Energy Prices'!$F$11:$CR$11,0))/100000,\"\")","v":""},{"$f":"IFERROR('Data Input - Option 5'!CE85*INDEX('Energy Prices'!$F$19:$CR$24,MATCH($B95,'Energy Prices'!$C$19:$C$24,0),MATCH(Calc_Option5!CA$6,'Energy Prices'!$F$11:$CR$11,0))/100000,\"\")","v":""},{"$f":"IFERROR('Data Input - Option 5'!CF85*INDEX('Energy Prices'!$F$19:$CR$24,MATCH($B95,'Energy Prices'!$C$19:$C$24,0),MATCH(Calc_Option5!CB$6,'Energy Prices'!$F$11:$CR$11,0))/100000,\"\")","v":""},{"$f":"IFERROR('Data Input - Option 5'!CG85*INDEX('Energy Prices'!$F$19:$CR$24,MATCH($B95,'Energy Prices'!$C$19:$C$24,0),MATCH(Calc_Option5!CC$6,'Energy Prices'!$F$11:$CR$11,0))/100000,\"\")","v":""},{"$f":"IFERROR('Data Input - Option 5'!CH85*INDEX('Energy Prices'!$F$19:$CR$24,MATCH($B95,'Energy Prices'!$C$19:$C$24,0),MATCH(Calc_Option5!CD$6,'Energy Prices'!$F$11:$CR$11,0))/100000,\"\")","v":""},{"$f":"IFERROR('Data Input - Option 5'!CI85*INDEX('Energy Prices'!$F$19:$CR$24,MATCH($B95,'Energy Prices'!$C$19:$C$24,0),MATCH(Calc_Option5!CE$6,'Energy Prices'!$F$11:$CR$11,0))/100000,\"\")","v":""},{"$f":"IFERROR('Data Input - Option 5'!CJ85*INDEX('Energy Prices'!$F$19:$CR$24,MATCH($B95,'Energy Prices'!$C$19:$C$24,0),MATCH(Calc_Option5!CF$6,'Energy Prices'!$F$11:$CR$11,0))/100000,\"\")","v":""},{"$f":"IFERROR('Data Input - Option 5'!CK85*INDEX('Energy Prices'!$F$19:$CR$24,MATCH($B95,'Energy Prices'!$C$19:$C$24,0),MATCH(Calc_Option5!CG$6,'Energy Prices'!$F$11:$CR$11,0))/100000,\"\")","v":""},{"$f":"IFERROR('Data Input - Option 5'!CL85*INDEX('Energy Prices'!$F$19:$CR$24,MATCH($B95,'Energy Prices'!$C$19:$C$24,0),MATCH(Calc_Option5!CH$6,'Energy Prices'!$F$11:$CR$11,0))/100000,\"\")","v":""},{"$f":"IFERROR('Data Input - Option 5'!CM85*INDEX('Energy Prices'!$F$19:$CR$24,MATCH($B95,'Energy Prices'!$C$19:$C$24,0),MATCH(Calc_Option5!CI$6,'Energy Prices'!$F$11:$CR$11,0))/100000,\"\")","v":""},{"$f":"IFERROR('Data Input - Option 5'!CN85*INDEX('Energy Prices'!$F$19:$CR$24,MATCH($B95,'Energy Prices'!$C$19:$C$24,0),MATCH(Calc_Option5!CJ$6,'Energy Prices'!$F$11:$CR$11,0))/100000,\"\")","v":""},{"$f":"IFERROR('Data Input - Option 5'!CO85*INDEX('Energy Prices'!$F$19:$CR$24,MATCH($B95,'Energy Prices'!$C$19:$C$24,0),MATCH(Calc_Option5!CK$6,'Energy Prices'!$F$11:$CR$11,0))/100000,\"\")","v":""},{"$f":"IFERROR('Data Input - Option 5'!CP85*INDEX('Energy Prices'!$F$19:$CR$24,MATCH($B95,'Energy Prices'!$C$19:$C$24,0),MATCH(Calc_Option5!CL$6,'Energy Prices'!$F$11:$CR$11,0))/100000,\"\")","v":""},{"$f":"IFERROR('Data Input - Option 5'!CQ85*INDEX('Energy Prices'!$F$19:$CR$24,MATCH($B95,'Energy Prices'!$C$19:$C$24,0),MATCH(Calc_Option5!CM$6,'Energy Prices'!$F$11:$CR$11,0))/100000,\"\")","v":""},{"$f":"IFERROR('Data Input - Option 5'!CR85*INDEX('Energy Prices'!$F$19:$CR$24,MATCH($B95,'Energy Prices'!$C$19:$C$24,0),MATCH(Calc_Option5!CN$6,'Energy Prices'!$F$11:$CR$11,0))/100000,\"\")","v":""},{"$f":"IFERROR('Data Input - Option 5'!CS85*INDEX('Energy Prices'!$F$19:$CR$24,MATCH($B95,'Energy Prices'!$C$19:$C$24,0),MATCH(Calc_Option5!CO$6,'Energy Prices'!$F$11:$CR$11,0))/100000,\"\")","v":""},{"$f":"IFERROR('Data Input - Option 5'!CT85*INDEX('Energy Prices'!$F$19:$CR$24,MATCH($B95,'Energy Prices'!$C$19:$C$24,0),MATCH(Calc_Option5!CP$6,'Energy Prices'!$F$11:$CR$11,0))/100000,\"\")","v":""},{"$f":"IFERROR('Data Input - Option 5'!CU85*INDEX('Energy Prices'!$F$19:$CR$24,MATCH($B95,'Energy Prices'!$C$19:$C$24,0),MATCH(Calc_Option5!CQ$6,'Energy Prices'!$F$11:$CR$11,0))/100000,\"\")","v":""},{"$f":"IFERROR('Data Input - Option 5'!CV85*INDEX('Energy Prices'!$F$19:$CR$24,MATCH($B95,'Energy Prices'!$C$19:$C$24,0),MATCH(Calc_Option5!CR$6,'Energy Prices'!$F$11:$CR$11,0))/100000,\"\")","v":""},{"$f":"IFERROR('Data Input - Option 5'!CW85*INDEX('Energy Prices'!$F$19:$CR$24,MATCH($B95,'Energy Prices'!$C$19:$C$24,0),MATCH(Calc_Option5!CS$6,'Energy Prices'!$F$11:$CR$11,0))/100000,\"\")","v":""},{"$f":"IFERROR('Data Input - Option 5'!CX85*INDEX('Energy Prices'!$F$19:$CR$24,MATCH($B95,'Energy Prices'!$C$19:$C$24,0),MATCH(Calc_Option5!CT$6,'Energy Prices'!$F$11:$CR$11,0))/100000,\"\")","v":""},{"$f":"IFERROR('Data Input - Option 5'!CY85*INDEX('Energy Prices'!$F$19:$CR$24,MATCH($B95,'Energy Prices'!$C$19:$C$24,0),MATCH(Calc_Option5!CU$6,'Energy Prices'!$F$11:$CR$11,0))/100000,\"\")","v":""},{"$f":"IFERROR('Data Input - Option 5'!CZ85*INDEX('Energy Prices'!$F$19:$CR$24,MATCH($B95,'Energy Prices'!$C$19:$C$24,0),MATCH(Calc_Option5!CV$6,'Energy Prices'!$F$11:$CR$11,0))/100000,\"\")","v":""},{"$f":"IFERROR('Data Input - Option 5'!DA85*INDEX('Energy Prices'!$F$19:$CR$24,MATCH($B95,'Energy Prices'!$C$19:$C$24,0),MATCH(Calc_Option5!CW$6,'Energy Prices'!$F$11:$CR$11,0))/100000,\"\")","v":""},{"$f":"IFERROR('Data Input - Option 5'!DB85*INDEX('Energy Prices'!$F$19:$CR$24,MATCH($B95,'Energy Prices'!$C$19:$C$24,0),MATCH(Calc_Option5!CX$6,'Energy Prices'!$F$11:$CR$11,0))/100000,\"\")","v":""},{"$f":"IFERROR('Data Input - Option 5'!DC85*INDEX('Energy Prices'!$F$19:$CR$24,MATCH($B95,'Energy Prices'!$C$19:$C$24,0),MATCH(Calc_Option5!CY$6,'Energy Prices'!$F$11:$CR$11,0))/100000,\"\")","v":""}]
[null,"Coal","£000's",{"$f":"IFERROR('Data Input - Option 5'!H86*INDEX('Energy Prices'!$F$19:$CR$24,MATCH($B96,'Energy Prices'!$C$19:$C$24,0),MATCH(Calc_Option5!D$6,'Energy Prices'!$F$11:$CR$11,0))/100000,\"\")","v":0},{"$f":"IFERROR('Data Input - Option 5'!I86*INDEX('Energy Prices'!$F$19:$CR$24,MATCH($B96,'Energy Prices'!$C$19:$C$24,0),MATCH(Calc_Option5!E$6,'Energy Prices'!$F$11:$CR$11,0))/100000,\"\")","v":0},{"$f":"IFERROR('Data Input - Option 5'!J86*INDEX('Energy Prices'!$F$19:$CR$24,MATCH($B96,'Energy Prices'!$C$19:$C$24,0),MATCH(Calc_Option5!F$6,'Energy Prices'!$F$11:$CR$11,0))/100000,\"\")","v":0},{"$f":"IFERROR('Data Input - Option 5'!K86*INDEX('Energy Prices'!$F$19:$CR$24,MATCH($B96,'Energy Prices'!$C$19:$C$24,0),MATCH(Calc_Option5!G$6,'Energy Prices'!$F$11:$CR$11,0))/100000,\"\")","v":0},{"$f":"IFERROR('Data Input - Option 5'!L86*INDEX('Energy Prices'!$F$19:$CR$24,MATCH($B96,'Energy Prices'!$C$19:$C$24,0),MATCH(Calc_Option5!H$6,'Energy Prices'!$F$11:$CR$11,0))/100000,\"\")","v":0},{"$f":"IFERROR('Data Input - Option 5'!M86*INDEX('Energy Prices'!$F$19:$CR$24,MATCH($B96,'Energy Prices'!$C$19:$C$24,0),MATCH(Calc_Option5!I$6,'Energy Prices'!$F$11:$CR$11,0))/100000,\"\")","v":0},{"$f":"IFERROR('Data Input - Option 5'!N86*INDEX('Energy Prices'!$F$19:$CR$24,MATCH($B96,'Energy Prices'!$C$19:$C$24,0),MATCH(Calc_Option5!J$6,'Energy Prices'!$F$11:$CR$11,0))/100000,\"\")","v":0},{"$f":"IFERROR('Data Input - Option 5'!O86*INDEX('Energy Prices'!$F$19:$CR$24,MATCH($B96,'Energy Prices'!$C$19:$C$24,0),MATCH(Calc_Option5!K$6,'Energy Prices'!$F$11:$CR$11,0))/100000,\"\")","v":0},{"$f":"IFERROR('Data Input - Option 5'!P86*INDEX('Energy Prices'!$F$19:$CR$24,MATCH($B96,'Energy Prices'!$C$19:$C$24,0),MATCH(Calc_Option5!L$6,'Energy Prices'!$F$11:$CR$11,0))/100000,\"\")","v":0},{"$f":"IFERROR('Data Input - Option 5'!Q86*INDEX('Energy Prices'!$F$19:$CR$24,MATCH($B96,'Energy Prices'!$C$19:$C$24,0),MATCH(Calc_Option5!M$6,'Energy Prices'!$F$11:$CR$11,0))/100000,\"\")","v":0},{"$f":"IFERROR('Data Input - Option 5'!R86*INDEX('Energy Prices'!$F$19:$CR$24,MATCH($B96,'Energy Prices'!$C$19:$C$24,0),MATCH(Calc_Option5!N$6,'Energy Prices'!$F$11:$CR$11,0))/100000,\"\")","v":0},{"$f":"IFERROR('Data Input - Option 5'!S86*INDEX('Energy Prices'!$F$19:$CR$24,MATCH($B96,'Energy Prices'!$C$19:$C$24,0),MATCH(Calc_Option5!O$6,'Energy Prices'!$F$11:$CR$11,0))/100000,\"\")","v":0},{"$f":"IFERROR('Data Input - Option 5'!T86*INDEX('Energy Prices'!$F$19:$CR$24,MATCH($B96,'Energy Prices'!$C$19:$C$24,0),MATCH(Calc_Option5!P$6,'Energy Prices'!$F$11:$CR$11,0))/100000,\"\")","v":0},{"$f":"IFERROR('Data Input - Option 5'!U86*INDEX('Energy Prices'!$F$19:$CR$24,MATCH($B96,'Energy Prices'!$C$19:$C$24,0),MATCH(Calc_Option5!Q$6,'Energy Prices'!$F$11:$CR$11,0))/100000,\"\")","v":0},{"$f":"IFERROR('Data Input - Option 5'!V86*INDEX('Energy Prices'!$F$19:$CR$24,MATCH($B96,'Energy Prices'!$C$19:$C$24,0),MATCH(Calc_Option5!R$6,'Energy Prices'!$F$11:$CR$11,0))/100000,\"\")","v":0},{"$f":"IFERROR('Data Input - Option 5'!W86*INDEX('Energy Prices'!$F$19:$CR$24,MATCH($B96,'Energy Prices'!$C$19:$C$24,0),MATCH(Calc_Option5!S$6,'Energy Prices'!$F$11:$CR$11,0))/100000,\"\")","v":0},{"$f":"IFERROR('Data Input - Option 5'!X86*INDEX('Energy Prices'!$F$19:$CR$24,MATCH($B96,'Energy Prices'!$C$19:$C$24,0),MATCH(Calc_Option5!T$6,'Energy Prices'!$F$11:$CR$11,0))/100000,\"\")","v":0},{"$f":"IFERROR('Data Input - Option 5'!Y86*INDEX('Energy Prices'!$F$19:$CR$24,MATCH($B96,'Energy Prices'!$C$19:$C$24,0),MATCH(Calc_Option5!U$6,'Energy Prices'!$F$11:$CR$11,0))/100000,\"\")","v":0},{"$f":"IFERROR('Data Input - Option 5'!Z86*INDEX('Energy Prices'!$F$19:$CR$24,MATCH($B96,'Energy Prices'!$C$19:$C$24,0),MATCH(Calc_Option5!V$6,'Energy Prices'!$F$11:$CR$11,0))/100000,\"\")","v":0},{"$f":"IFERROR('Data Input - Option 5'!AA86*INDEX('Energy Prices'!$F$19:$CR$24,MATCH($B96,'Energy Prices'!$C$19:$C$24,0),MATCH(Calc_Option5!W$6,'Energy Prices'!$F$11:$CR$11,0))/100000,\"\")","v":0},{"$f":"IFERROR('Data Input - Option 5'!AB86*INDEX('Energy Prices'!$F$19:$CR$24,MATCH($B96,'Energy Prices'!$C$19:$C$24,0),MATCH(Calc_Option5!X$6,'Energy Prices'!$F$11:$CR$11,0))/100000,\"\")","v":0},{"$f":"IFERROR('Data Input - Option 5'!AC86*INDEX('Energy Prices'!$F$19:$CR$24,MATCH($B96,'Energy Prices'!$C$19:$C$24,0),MATCH(Calc_Option5!Y$6,'Energy Prices'!$F$11:$CR$11,0))/100000,\"\")","v":0},{"$f":"IFERROR('Data Input - Option 5'!AD86*INDEX('Energy Prices'!$F$19:$CR$24,MATCH($B96,'Energy Prices'!$C$19:$C$24,0),MATCH(Calc_Option5!Z$6,'Energy Prices'!$F$11:$CR$11,0))/100000,\"\")","v":0},{"$f":"IFERROR('Data Input - Option 5'!AE86*INDEX('Energy Prices'!$F$19:$CR$24,MATCH($B96,'Energy Prices'!$C$19:$C$24,0),MATCH(Calc_Option5!AA$6,'Energy Prices'!$F$11:$CR$11,0))/100000,\"\")","v":0},{"$f":"IFERROR('Data Input - Option 5'!AF86*INDEX('Energy Prices'!$F$19:$CR$24,MATCH($B96,'Energy Prices'!$C$19:$C$24,0),MATCH(Calc_Option5!AB$6,'Energy Prices'!$F$11:$CR$11,0))/100000,\"\")","v":0},{"$f":"IFERROR('Data Input - Option 5'!AG86*INDEX('Energy Prices'!$F$19:$CR$24,MATCH($B96,'Energy Prices'!$C$19:$C$24,0),MATCH(Calc_Option5!AC$6,'Energy Prices'!$F$11:$CR$11,0))/100000,\"\")","v":0},{"$f":"IFERROR('Data Input - Option 5'!AH86*INDEX('Energy Prices'!$F$19:$CR$24,MATCH($B96,'Energy Prices'!$C$19:$C$24,0),MATCH(Calc_Option5!AD$6,'Energy Prices'!$F$11:$CR$11,0))/100000,\"\")","v":0},{"$f":"IFERROR('Data Input - Option 5'!AI86*INDEX('Energy Prices'!$F$19:$CR$24,MATCH($B96,'Energy Prices'!$C$19:$C$24,0),MATCH(Calc_Option5!AE$6,'Energy Prices'!$F$11:$CR$11,0))/100000,\"\")","v":0},{"$f":"IFERROR('Data Input - Option 5'!AJ86*INDEX('Energy Prices'!$F$19:$CR$24,MATCH($B96,'Energy Prices'!$C$19:$C$24,0),MATCH(Calc_Option5!AF$6,'Energy Prices'!$F$11:$CR$11,0))/100000,\"\")","v":0},{"$f":"IFERROR('Data Input - Option 5'!AK86*INDEX('Energy Prices'!$F$19:$CR$24,MATCH($B96,'Energy Prices'!$C$19:$C$24,0),MATCH(Calc_Option5!AG$6,'Energy Prices'!$F$11:$CR$11,0))/100000,\"\")","v":0},{"$f":"IFERROR('Data Input - Option 5'!AL86*INDEX('Energy Prices'!$F$19:$CR$24,MATCH($B96,'Energy Prices'!$C$19:$C$24,0),MATCH(Calc_Option5!AH$6,'Energy Prices'!$F$11:$CR$11,0))/100000,\"\")","v":0},{"$f":"IFERROR('Data Input - Option 5'!AM86*INDEX('Energy Prices'!$F$19:$CR$24,MATCH($B96,'Energy Prices'!$C$19:$C$24,0),MATCH(Calc_Option5!AI$6,'Energy Prices'!$F$11:$CR$11,0))/100000,\"\")","v":""},{"$f":"IFERROR('Data Input - Option 5'!AN86*INDEX('Energy Prices'!$F$19:$CR$24,MATCH($B96,'Energy Prices'!$C$19:$C$24,0),MATCH(Calc_Option5!AJ$6,'Energy Prices'!$F$11:$CR$11,0))/100000,\"\")","v":""},{"$f":"IFERROR('Data Input - Option 5'!AO86*INDEX('Energy Prices'!$F$19:$CR$24,MATCH($B96,'Energy Prices'!$C$19:$C$24,0),MATCH(Calc_Option5!AK$6,'Energy Prices'!$F$11:$CR$11,0))/100000,\"\")","v":""},{"$f":"IFERROR('Data Input - Option 5'!AP86*INDEX('Energy Prices'!$F$19:$CR$24,MATCH($B96,'Energy Prices'!$C$19:$C$24,0),MATCH(Calc_Option5!AL$6,'Energy Prices'!$F$11:$CR$11,0))/100000,\"\")","v":""},{"$f":"IFERROR('Data Input - Option 5'!AQ86*INDEX('Energy Prices'!$F$19:$CR$24,MATCH($B96,'Energy Prices'!$C$19:$C$24,0),MATCH(Calc_Option5!AM$6,'Energy Prices'!$F$11:$CR$11,0))/100000,\"\")","v":""},{"$f":"IFERROR('Data Input - Option 5'!AR86*INDEX('Energy Prices'!$F$19:$CR$24,MATCH($B96,'Energy Prices'!$C$19:$C$24,0),MATCH(Calc_Option5!AN$6,'Energy Prices'!$F$11:$CR$11,0))/100000,\"\")","v":""},{"$f":"IFERROR('Data Input - Option 5'!AS86*INDEX('Energy Prices'!$F$19:$CR$24,MATCH($B96,'Energy Prices'!$C$19:$C$24,0),MATCH(Calc_Option5!AO$6,'Energy Prices'!$F$11:$CR$11,0))/100000,\"\")","v":""},{"$f":"IFERROR('Data Input - Option 5'!AT86*INDEX('Energy Prices'!$F$19:$CR$24,MATCH($B96,'Energy Prices'!$C$19:$C$24,0),MATCH(Calc_Option5!AP$6,'Energy Prices'!$F$11:$CR$11,0))/100000,\"\")","v":""},{"$f":"IFERROR('Data Input - Option 5'!AU86*INDEX('Energy Prices'!$F$19:$CR$24,MATCH($B96,'Energy Prices'!$C$19:$C$24,0),MATCH(Calc_Option5!AQ$6,'Energy Prices'!$F$11:$CR$11,0))/100000,\"\")","v":""},{"$f":"IFERROR('Data Input - Option 5'!AV86*INDEX('Energy Prices'!$F$19:$CR$24,MATCH($B96,'Energy Prices'!$C$19:$C$24,0),MATCH(Calc_Option5!AR$6,'Energy Prices'!$F$11:$CR$11,0))/100000,\"\")","v":""},{"$f":"IFERROR('Data Input - Option 5'!AW86*INDEX('Energy Prices'!$F$19:$CR$24,MATCH($B96,'Energy Prices'!$C$19:$C$24,0),MATCH(Calc_Option5!AS$6,'Energy Prices'!$F$11:$CR$11,0))/100000,\"\")","v":""},{"$f":"IFERROR('Data Input - Option 5'!AX86*INDEX('Energy Prices'!$F$19:$CR$24,MATCH($B96,'Energy Prices'!$C$19:$C$24,0),MATCH(Calc_Option5!AT$6,'Energy Prices'!$F$11:$CR$11,0))/100000,\"\")","v":""},{"$f":"IFERROR('Data Input - Option 5'!AY86*INDEX('Energy Prices'!$F$19:$CR$24,MATCH($B96,'Energy Prices'!$C$19:$C$24,0),MATCH(Calc_Option5!AU$6,'Energy Prices'!$F$11:$CR$11,0))/100000,\"\")","v":""},{"$f":"IFERROR('Data Input - Option 5'!AZ86*INDEX('Energy Prices'!$F$19:$CR$24,MATCH($B96,'Energy Prices'!$C$19:$C$24,0),MATCH(Calc_Option5!AV$6,'Energy Prices'!$F$11:$CR$11,0))/100000,\"\")","v":""},{"$f":"IFERROR('Data Input - Option 5'!BA86*INDEX('Energy Prices'!$F$19:$CR$24,MATCH($B96,'Energy Prices'!$C$19:$C$24,0),MATCH(Calc_Option5!AW$6,'Energy Prices'!$F$11:$CR$11,0))/100000,\"\")","v":""},{"$f":"IFERROR('Data Input - Option 5'!BB86*INDEX('Energy Prices'!$F$19:$CR$24,MATCH($B96,'Energy Prices'!$C$19:$C$24,0),MATCH(Calc_Option5!AX$6,'Energy Prices'!$F$11:$CR$11,0))/100000,\"\")","v":""},{"$f":"IFERROR('Data Input - Option 5'!BC86*INDEX('Energy Prices'!$F$19:$CR$24,MATCH($B96,'Energy Prices'!$C$19:$C$24,0),MATCH(Calc_Option5!AY$6,'Energy Prices'!$F$11:$CR$11,0))/100000,\"\")","v":""},{"$f":"IFERROR('Data Input - Option 5'!BD86*INDEX('Energy Prices'!$F$19:$CR$24,MATCH($B96,'Energy Prices'!$C$19:$C$24,0),MATCH(Calc_Option5!AZ$6,'Energy Prices'!$F$11:$CR$11,0))/100000,\"\")","v":""},{"$f":"IFERROR('Data Input - Option 5'!BE86*INDEX('Energy Prices'!$F$19:$CR$24,MATCH($B96,'Energy Prices'!$C$19:$C$24,0),MATCH(Calc_Option5!BA$6,'Energy Prices'!$F$11:$CR$11,0))/100000,\"\")","v":""},{"$f":"IFERROR('Data Input - Option 5'!BF86*INDEX('Energy Prices'!$F$19:$CR$24,MATCH($B96,'Energy Prices'!$C$19:$C$24,0),MATCH(Calc_Option5!BB$6,'Energy Prices'!$F$11:$CR$11,0))/100000,\"\")","v":""},{"$f":"IFERROR('Data Input - Option 5'!BG86*INDEX('Energy Prices'!$F$19:$CR$24,MATCH($B96,'Energy Prices'!$C$19:$C$24,0),MATCH(Calc_Option5!BC$6,'Energy Prices'!$F$11:$CR$11,0))/100000,\"\")","v":""},{"$f":"IFERROR('Data Input - Option 5'!BH86*INDEX('Energy Prices'!$F$19:$CR$24,MATCH($B96,'Energy Prices'!$C$19:$C$24,0),MATCH(Calc_Option5!BD$6,'Energy Prices'!$F$11:$CR$11,0))/100000,\"\")","v":""},{"$f":"IFERROR('Data Input - Option 5'!BI86*INDEX('Energy Prices'!$F$19:$CR$24,MATCH($B96,'Energy Prices'!$C$19:$C$24,0),MATCH(Calc_Option5!BE$6,'Energy Prices'!$F$11:$CR$11,0))/100000,\"\")","v":""},{"$f":"IFERROR('Data Input - Option 5'!BJ86*INDEX('Energy Prices'!$F$19:$CR$24,MATCH($B96,'Energy Prices'!$C$19:$C$24,0),MATCH(Calc_Option5!BF$6,'Energy Prices'!$F$11:$CR$11,0))/100000,\"\")","v":""},{"$f":"IFERROR('Data Input - Option 5'!BK86*INDEX('Energy Prices'!$F$19:$CR$24,MATCH($B96,'Energy Prices'!$C$19:$C$24,0),MATCH(Calc_Option5!BG$6,'Energy Prices'!$F$11:$CR$11,0))/100000,\"\")","v":""},{"$f":"IFERROR('Data Input - Option 5'!BL86*INDEX('Energy Prices'!$F$19:$CR$24,MATCH($B96,'Energy Prices'!$C$19:$C$24,0),MATCH(Calc_Option5!BH$6,'Energy Prices'!$F$11:$CR$11,0))/100000,\"\")","v":""},{"$f":"IFERROR('Data Input - Option 5'!BM86*INDEX('Energy Prices'!$F$19:$CR$24,MATCH($B96,'Energy Prices'!$C$19:$C$24,0),MATCH(Calc_Option5!BI$6,'Energy Prices'!$F$11:$CR$11,0))/100000,\"\")","v":""},{"$f":"IFERROR('Data Input - Option 5'!BN86*INDEX('Energy Prices'!$F$19:$CR$24,MATCH($B96,'Energy Prices'!$C$19:$C$24,0),MATCH(Calc_Option5!BJ$6,'Energy Prices'!$F$11:$CR$11,0))/100000,\"\")","v":""},{"$f":"IFERROR('Data Input - Option 5'!BO86*INDEX('Energy Prices'!$F$19:$CR$24,MATCH($B96,'Energy Prices'!$C$19:$C$24,0),MATCH(Calc_Option5!BK$6,'Energy Prices'!$F$11:$CR$11,0))/100000,\"\")","v":""},{"$f":"IFERROR('Data Input - Option 5'!BP86*INDEX('Energy Prices'!$F$19:$CR$24,MATCH($B96,'Energy Prices'!$C$19:$C$24,0),MATCH(Calc_Option5!BL$6,'Energy Prices'!$F$11:$CR$11,0))/100000,\"\")","v":""},{"$f":"IFERROR('Data Input - Option 5'!BQ86*INDEX('Energy Prices'!$F$19:$CR$24,MATCH($B96,'Energy Prices'!$C$19:$C$24,0),MATCH(Calc_Option5!BM$6,'Energy Prices'!$F$11:$CR$11,0))/100000,\"\")","v":""},{"$f":"IFERROR('Data Input - Option 5'!BR86*INDEX('Energy Prices'!$F$19:$CR$24,MATCH($B96,'Energy Prices'!$C$19:$C$24,0),MATCH(Calc_Option5!BN$6,'Energy Prices'!$F$11:$CR$11,0))/100000,\"\")","v":""},{"$f":"IFERROR('Data Input - Option 5'!BS86*INDEX('Energy Prices'!$F$19:$CR$24,MATCH($B96,'Energy Prices'!$C$19:$C$24,0),MATCH(Calc_Option5!BO$6,'Energy Prices'!$F$11:$CR$11,0))/100000,\"\")","v":""},{"$f":"IFERROR('Data Input - Option 5'!BT86*INDEX('Energy Prices'!$F$19:$CR$24,MATCH($B96,'Energy Prices'!$C$19:$C$24,0),MATCH(Calc_Option5!BP$6,'Energy Prices'!$F$11:$CR$11,0))/100000,\"\")","v":""},{"$f":"IFERROR('Data Input - Option 5'!BU86*INDEX('Energy Prices'!$F$19:$CR$24,MATCH($B96,'Energy Prices'!$C$19:$C$24,0),MATCH(Calc_Option5!BQ$6,'Energy Prices'!$F$11:$CR$11,0))/100000,\"\")","v":""},{"$f":"IFERROR('Data Input - Option 5'!BV86*INDEX('Energy Prices'!$F$19:$CR$24,MATCH($B96,'Energy Prices'!$C$19:$C$24,0),MATCH(Calc_Option5!BR$6,'Energy Prices'!$F$11:$CR$11,0))/100000,\"\")","v":""},{"$f":"IFERROR('Data Input - Option 5'!BW86*INDEX('Energy Prices'!$F$19:$CR$24,MATCH($B96,'Energy Prices'!$C$19:$C$24,0),MATCH(Calc_Option5!BS$6,'Energy Prices'!$F$11:$CR$11,0))/100000,\"\")","v":""},{"$f":"IFERROR('Data Input - Option 5'!BX86*INDEX('Energy Prices'!$F$19:$CR$24,MATCH($B96,'Energy Prices'!$C$19:$C$24,0),MATCH(Calc_Option5!BT$6,'Energy Prices'!$F$11:$CR$11,0))/100000,\"\")","v":""},{"$f":"IFERROR('Data Input - Option 5'!BY86*INDEX('Energy Prices'!$F$19:$CR$24,MATCH($B96,'Energy Prices'!$C$19:$C$24,0),MATCH(Calc_Option5!BU$6,'Energy Prices'!$F$11:$CR$11,0))/100000,\"\")","v":""},{"$f":"IFERROR('Data Input - Option 5'!BZ86*INDEX('Energy Prices'!$F$19:$CR$24,MATCH($B96,'Energy Prices'!$C$19:$C$24,0),MATCH(Calc_Option5!BV$6,'Energy Prices'!$F$11:$CR$11,0))/100000,\"\")","v":""},{"$f":"IFERROR('Data Input - Option 5'!CA86*INDEX('Energy Prices'!$F$19:$CR$24,MATCH($B96,'Energy Prices'!$C$19:$C$24,0),MATCH(Calc_Option5!BW$6,'Energy Prices'!$F$11:$CR$11,0))/100000,\"\")","v":""},{"$f":"IFERROR('Data Input - Option 5'!CB86*INDEX('Energy Prices'!$F$19:$CR$24,MATCH($B96,'Energy Prices'!$C$19:$C$24,0),MATCH(Calc_Option5!BX$6,'Energy Prices'!$F$11:$CR$11,0))/100000,\"\")","v":""},{"$f":"IFERROR('Data Input - Option 5'!CC86*INDEX('Energy Prices'!$F$19:$CR$24,MATCH($B96,'Energy Prices'!$C$19:$C$24,0),MATCH(Calc_Option5!BY$6,'Energy Prices'!$F$11:$CR$11,0))/100000,\"\")","v":""},{"$f":"IFERROR('Data Input - Option 5'!CD86*INDEX('Energy Prices'!$F$19:$CR$24,MATCH($B96,'Energy Prices'!$C$19:$C$24,0),MATCH(Calc_Option5!BZ$6,'Energy Prices'!$F$11:$CR$11,0))/100000,\"\")","v":""},{"$f":"IFERROR('Data Input - Option 5'!CE86*INDEX('Energy Prices'!$F$19:$CR$24,MATCH($B96,'Energy Prices'!$C$19:$C$24,0),MATCH(Calc_Option5!CA$6,'Energy Prices'!$F$11:$CR$11,0))/100000,\"\")","v":""},{"$f":"IFERROR('Data Input - Option 5'!CF86*INDEX('Energy Prices'!$F$19:$CR$24,MATCH($B96,'Energy Prices'!$C$19:$C$24,0),MATCH(Calc_Option5!CB$6,'Energy Prices'!$F$11:$CR$11,0))/100000,\"\")","v":""},{"$f":"IFERROR('Data Input - Option 5'!CG86*INDEX('Energy Prices'!$F$19:$CR$24,MATCH($B96,'Energy Prices'!$C$19:$C$24,0),MATCH(Calc_Option5!CC$6,'Energy Prices'!$F$11:$CR$11,0))/100000,\"\")","v":""},{"$f":"IFERROR('Data Input - Option 5'!CH86*INDEX('Energy Prices'!$F$19:$CR$24,MATCH($B96,'Energy Prices'!$C$19:$C$24,0),MATCH(Calc_Option5!CD$6,'Energy Prices'!$F$11:$CR$11,0))/100000,\"\")","v":""},{"$f":"IFERROR('Data Input - Option 5'!CI86*INDEX('Energy Prices'!$F$19:$CR$24,MATCH($B96,'Energy Prices'!$C$19:$C$24,0),MATCH(Calc_Option5!CE$6,'Energy Prices'!$F$11:$CR$11,0))/100000,\"\")","v":""},{"$f":"IFERROR('Data Input - Option 5'!CJ86*INDEX('Energy Prices'!$F$19:$CR$24,MATCH($B96,'Energy Prices'!$C$19:$C$24,0),MATCH(Calc_Option5!CF$6,'Energy Prices'!$F$11:$CR$11,0))/100000,\"\")","v":""},{"$f":"IFERROR('Data Input - Option 5'!CK86*INDEX('Energy Prices'!$F$19:$CR$24,MATCH($B96,'Energy Prices'!$C$19:$C$24,0),MATCH(Calc_Option5!CG$6,'Energy Prices'!$F$11:$CR$11,0))/100000,\"\")","v":""},{"$f":"IFERROR('Data Input - Option 5'!CL86*INDEX('Energy Prices'!$F$19:$CR$24,MATCH($B96,'Energy Prices'!$C$19:$C$24,0),MATCH(Calc_Option5!CH$6,'Energy Prices'!$F$11:$CR$11,0))/100000,\"\")","v":""},{"$f":"IFERROR('Data Input - Option 5'!CM86*INDEX('Energy Prices'!$F$19:$CR$24,MATCH($B96,'Energy Prices'!$C$19:$C$24,0),MATCH(Calc_Option5!CI$6,'Energy Prices'!$F$11:$CR$11,0))/100000,\"\")","v":""},{"$f":"IFERROR('Data Input - Option 5'!CN86*INDEX('Energy Prices'!$F$19:$CR$24,MATCH($B96,'Energy Prices'!$C$19:$C$24,0),MATCH(Calc_Option5!CJ$6,'Energy Prices'!$F$11:$CR$11,0))/100000,\"\")","v":""},{"$f":"IFERROR('Data Input - Option 5'!CO86*INDEX('Energy Prices'!$F$19:$CR$24,MATCH($B96,'Energy Prices'!$C$19:$C$24,0),MATCH(Calc_Option5!CK$6,'Energy Prices'!$F$11:$CR$11,0))/100000,\"\")","v":""},{"$f":"IFERROR('Data Input - Option 5'!CP86*INDEX('Energy Prices'!$F$19:$CR$24,MATCH($B96,'Energy Prices'!$C$19:$C$24,0),MATCH(Calc_Option5!CL$6,'Energy Prices'!$F$11:$CR$11,0))/100000,\"\")","v":""},{"$f":"IFERROR('Data Input - Option 5'!CQ86*INDEX('Energy Prices'!$F$19:$CR$24,MATCH($B96,'Energy Prices'!$C$19:$C$24,0),MATCH(Calc_Option5!CM$6,'Energy Prices'!$F$11:$CR$11,0))/100000,\"\")","v":""},{"$f":"IFERROR('Data Input - Option 5'!CR86*INDEX('Energy Prices'!$F$19:$CR$24,MATCH($B96,'Energy Prices'!$C$19:$C$24,0),MATCH(Calc_Option5!CN$6,'Energy Prices'!$F$11:$CR$11,0))/100000,\"\")","v":""},{"$f":"IFERROR('Data Input - Option 5'!CS86*INDEX('Energy Prices'!$F$19:$CR$24,MATCH($B96,'Energy Prices'!$C$19:$C$24,0),MATCH(Calc_Option5!CO$6,'Energy Prices'!$F$11:$CR$11,0))/100000,\"\")","v":""},{"$f":"IFERROR('Data Input - Option 5'!CT86*INDEX('Energy Prices'!$F$19:$CR$24,MATCH($B96,'Energy Prices'!$C$19:$C$24,0),MATCH(Calc_Option5!CP$6,'Energy Prices'!$F$11:$CR$11,0))/100000,\"\")","v":""},{"$f":"IFERROR('Data Input - Option 5'!CU86*INDEX('Energy Prices'!$F$19:$CR$24,MATCH($B96,'Energy Prices'!$C$19:$C$24,0),MATCH(Calc_Option5!CQ$6,'Energy Prices'!$F$11:$CR$11,0))/100000,\"\")","v":""},{"$f":"IFERROR('Data Input - Option 5'!CV86*INDEX('Energy Prices'!$F$19:$CR$24,MATCH($B96,'Energy Prices'!$C$19:$C$24,0),MATCH(Calc_Option5!CR$6,'Energy Prices'!$F$11:$CR$11,0))/100000,\"\")","v":""},{"$f":"IFERROR('Data Input - Option 5'!CW86*INDEX('Energy Prices'!$F$19:$CR$24,MATCH($B96,'Energy Prices'!$C$19:$C$24,0),MATCH(Calc_Option5!CS$6,'Energy Prices'!$F$11:$CR$11,0))/100000,\"\")","v":""},{"$f":"IFERROR('Data Input - Option 5'!CX86*INDEX('Energy Prices'!$F$19:$CR$24,MATCH($B96,'Energy Prices'!$C$19:$C$24,0),MATCH(Calc_Option5!CT$6,'Energy Prices'!$F$11:$CR$11,0))/100000,\"\")","v":""},{"$f":"IFERROR('Data Input - Option 5'!CY86*INDEX('Energy Prices'!$F$19:$CR$24,MATCH($B96,'Energy Prices'!$C$19:$C$24,0),MATCH(Calc_Option5!CU$6,'Energy Prices'!$F$11:$CR$11,0))/100000,\"\")","v":""},{"$f":"IFERROR('Data Input - Option 5'!CZ86*INDEX('Energy Prices'!$F$19:$CR$24,MATCH($B96,'Energy Prices'!$C$19:$C$24,0),MATCH(Calc_Option5!CV$6,'Energy Prices'!$F$11:$CR$11,0))/100000,\"\")","v":""},{"$f":"IFERROR('Data Input - Option 5'!DA86*INDEX('Energy Prices'!$F$19:$CR$24,MATCH($B96,'Energy Prices'!$C$19:$C$24,0),MATCH(Calc_Option5!CW$6,'Energy Prices'!$F$11:$CR$11,0))/100000,\"\")","v":""},{"$f":"IFERROR('Data Input - Option 5'!DB86*INDEX('Energy Prices'!$F$19:$CR$24,MATCH($B96,'Energy Prices'!$C$19:$C$24,0),MATCH(Calc_Option5!CX$6,'Energy Prices'!$F$11:$CR$11,0))/100000,\"\")","v":""},{"$f":"IFERROR('Data Input - Option 5'!DC86*INDEX('Energy Prices'!$F$19:$CR$24,MATCH($B96,'Energy Prices'!$C$19:$C$24,0),MATCH(Calc_Option5!CY$6,'Energy Prices'!$F$11:$CR$11,0))/100000,\"\")","v":""}]
[null,"Gas Oil","£000's",{"$f":"IFERROR('Data Input - Option 5'!H87*INDEX('Energy Prices'!$F$19:$CR$24,MATCH($B97,'Energy Prices'!$C$19:$C$24,0),MATCH(Calc_Option5!D$6,'Energy Prices'!$F$11:$CR$11,0))/100000,\"\")","v":0},{"$f":"IFERROR('Data Input - Option 5'!I87*INDEX('Energy Prices'!$F$19:$CR$24,MATCH($B97,'Energy Prices'!$C$19:$C$24,0),MATCH(Calc_Option5!E$6,'Energy Prices'!$F$11:$CR$11,0))/100000,\"\")","v":0},{"$f":"IFERROR('Data Input - Option 5'!J87*INDEX('Energy Prices'!$F$19:$CR$24,MATCH($B97,'Energy Prices'!$C$19:$C$24,0),MATCH(Calc_Option5!F$6,'Energy Prices'!$F$11:$CR$11,0))/100000,\"\")","v":0},{"$f":"IFERROR('Data Input - Option 5'!K87*INDEX('Energy Prices'!$F$19:$CR$24,MATCH($B97,'Energy Prices'!$C$19:$C$24,0),MATCH(Calc_Option5!G$6,'Energy Prices'!$F$11:$CR$11,0))/100000,\"\")","v":0},{"$f":"IFERROR('Data Input - Option 5'!L87*INDEX('Energy Prices'!$F$19:$CR$24,MATCH($B97,'Energy Prices'!$C$19:$C$24,0),MATCH(Calc_Option5!H$6,'Energy Prices'!$F$11:$CR$11,0))/100000,\"\")","v":0},{"$f":"IFERROR('Data Input - Option 5'!M87*INDEX('Energy Prices'!$F$19:$CR$24,MATCH($B97,'Energy Prices'!$C$19:$C$24,0),MATCH(Calc_Option5!I$6,'Energy Prices'!$F$11:$CR$11,0))/100000,\"\")","v":0},{"$f":"IFERROR('Data Input - Option 5'!N87*INDEX('Energy Prices'!$F$19:$CR$24,MATCH($B97,'Energy Prices'!$C$19:$C$24,0),MATCH(Calc_Option5!J$6,'Energy Prices'!$F$11:$CR$11,0))/100000,\"\")","v":0},{"$f":"IFERROR('Data Input - Option 5'!O87*INDEX('Energy Prices'!$F$19:$CR$24,MATCH($B97,'Energy Prices'!$C$19:$C$24,0),MATCH(Calc_Option5!K$6,'Energy Prices'!$F$11:$CR$11,0))/100000,\"\")","v":0},{"$f":"IFERROR('Data Input - Option 5'!P87*INDEX('Energy Prices'!$F$19:$CR$24,MATCH($B97,'Energy Prices'!$C$19:$C$24,0),MATCH(Calc_Option5!L$6,'Energy Prices'!$F$11:$CR$11,0))/100000,\"\")","v":0},{"$f":"IFERROR('Data Input - Option 5'!Q87*INDEX('Energy Prices'!$F$19:$CR$24,MATCH($B97,'Energy Prices'!$C$19:$C$24,0),MATCH(Calc_Option5!M$6,'Energy Prices'!$F$11:$CR$11,0))/100000,\"\")","v":0},{"$f":"IFERROR('Data Input - Option 5'!R87*INDEX('Energy Prices'!$F$19:$CR$24,MATCH($B97,'Energy Prices'!$C$19:$C$24,0),MATCH(Calc_Option5!N$6,'Energy Prices'!$F$11:$CR$11,0))/100000,\"\")","v":0},{"$f":"IFERROR('Data Input - Option 5'!S87*INDEX('Energy Prices'!$F$19:$CR$24,MATCH($B97,'Energy Prices'!$C$19:$C$24,0),MATCH(Calc_Option5!O$6,'Energy Prices'!$F$11:$CR$11,0))/100000,\"\")","v":0},{"$f":"IFERROR('Data Input - Option 5'!T87*INDEX('Energy Prices'!$F$19:$CR$24,MATCH($B97,'Energy Prices'!$C$19:$C$24,0),MATCH(Calc_Option5!P$6,'Energy Prices'!$F$11:$CR$11,0))/100000,\"\")","v":0},{"$f":"IFERROR('Data Input - Option 5'!U87*INDEX('Energy Prices'!$F$19:$CR$24,MATCH($B97,'Energy Prices'!$C$19:$C$24,0),MATCH(Calc_Option5!Q$6,'Energy Prices'!$F$11:$CR$11,0))/100000,\"\")","v":0},{"$f":"IFERROR('Data Input - Option 5'!V87*INDEX('Energy Prices'!$F$19:$CR$24,MATCH($B97,'Energy Prices'!$C$19:$C$24,0),MATCH(Calc_Option5!R$6,'Energy Prices'!$F$11:$CR$11,0))/100000,\"\")","v":0},{"$f":"IFERROR('Data Input - Option 5'!W87*INDEX('Energy Prices'!$F$19:$CR$24,MATCH($B97,'Energy Prices'!$C$19:$C$24,0),MATCH(Calc_Option5!S$6,'Energy Prices'!$F$11:$CR$11,0))/100000,\"\")","v":0},{"$f":"IFERROR('Data Input - Option 5'!X87*INDEX('Energy Prices'!$F$19:$CR$24,MATCH($B97,'Energy Prices'!$C$19:$C$24,0),MATCH(Calc_Option5!T$6,'Energy Prices'!$F$11:$CR$11,0))/100000,\"\")","v":0},{"$f":"IFERROR('Data Input - Option 5'!Y87*INDEX('Energy Prices'!$F$19:$CR$24,MATCH($B97,'Energy Prices'!$C$19:$C$24,0),MATCH(Calc_Option5!U$6,'Energy Prices'!$F$11:$CR$11,0))/100000,\"\")","v":0},{"$f":"IFERROR('Data Input - Option 5'!Z87*INDEX('Energy Prices'!$F$19:$CR$24,MATCH($B97,'Energy Prices'!$C$19:$C$24,0),MATCH(Calc_Option5!V$6,'Energy Prices'!$F$11:$CR$11,0))/100000,\"\")","v":0},{"$f":"IFERROR('Data Input - Option 5'!AA87*INDEX('Energy Prices'!$F$19:$CR$24,MATCH($B97,'Energy Prices'!$C$19:$C$24,0),MATCH(Calc_Option5!W$6,'Energy Prices'!$F$11:$CR$11,0))/100000,\"\")","v":0},{"$f":"IFERROR('Data Input - Option 5'!AB87*INDEX('Energy Prices'!$F$19:$CR$24,MATCH($B97,'Energy Prices'!$C$19:$C$24,0),MATCH(Calc_Option5!X$6,'Energy Prices'!$F$11:$CR$11,0))/100000,\"\")","v":0},{"$f":"IFERROR('Data Input - Option 5'!AC87*INDEX('Energy Prices'!$F$19:$CR$24,MATCH($B97,'Energy Prices'!$C$19:$C$24,0),MATCH(Calc_Option5!Y$6,'Energy Prices'!$F$11:$CR$11,0))/100000,\"\")","v":0},{"$f":"IFERROR('Data Input - Option 5'!AD87*INDEX('Energy Prices'!$F$19:$CR$24,MATCH($B97,'Energy Prices'!$C$19:$C$24,0),MATCH(Calc_Option5!Z$6,'Energy Prices'!$F$11:$CR$11,0))/100000,\"\")","v":0},{"$f":"IFERROR('Data Input - Option 5'!AE87*INDEX('Energy Prices'!$F$19:$CR$24,MATCH($B97,'Energy Prices'!$C$19:$C$24,0),MATCH(Calc_Option5!AA$6,'Energy Prices'!$F$11:$CR$11,0))/100000,\"\")","v":0},{"$f":"IFERROR('Data Input - Option 5'!AF87*INDEX('Energy Prices'!$F$19:$CR$24,MATCH($B97,'Energy Prices'!$C$19:$C$24,0),MATCH(Calc_Option5!AB$6,'Energy Prices'!$F$11:$CR$11,0))/100000,\"\")","v":0},{"$f":"IFERROR('Data Input - Option 5'!AG87*INDEX('Energy Prices'!$F$19:$CR$24,MATCH($B97,'Energy Prices'!$C$19:$C$24,0),MATCH(Calc_Option5!AC$6,'Energy Prices'!$F$11:$CR$11,0))/100000,\"\")","v":0},{"$f":"IFERROR('Data Input - Option 5'!AH87*INDEX('Energy Prices'!$F$19:$CR$24,MATCH($B97,'Energy Prices'!$C$19:$C$24,0),MATCH(Calc_Option5!AD$6,'Energy Prices'!$F$11:$CR$11,0))/100000,\"\")","v":0},{"$f":"IFERROR('Data Input - Option 5'!AI87*INDEX('Energy Prices'!$F$19:$CR$24,MATCH($B97,'Energy Prices'!$C$19:$C$24,0),MATCH(Calc_Option5!AE$6,'Energy Prices'!$F$11:$CR$11,0))/100000,\"\")","v":0},{"$f":"IFERROR('Data Input - Option 5'!AJ87*INDEX('Energy Prices'!$F$19:$CR$24,MATCH($B97,'Energy Prices'!$C$19:$C$24,0),MATCH(Calc_Option5!AF$6,'Energy Prices'!$F$11:$CR$11,0))/100000,\"\")","v":0},{"$f":"IFERROR('Data Input - Option 5'!AK87*INDEX('Energy Prices'!$F$19:$CR$24,MATCH($B97,'Energy Prices'!$C$19:$C$24,0),MATCH(Calc_Option5!AG$6,'Energy Prices'!$F$11:$CR$11,0))/100000,\"\")","v":0},{"$f":"IFERROR('Data Input - Option 5'!AL87*INDEX('Energy Prices'!$F$19:$CR$24,MATCH($B97,'Energy Prices'!$C$19:$C$24,0),MATCH(Calc_Option5!AH$6,'Energy Prices'!$F$11:$CR$11,0))/100000,\"\")","v":0},{"$f":"IFERROR('Data Input - Option 5'!AM87*INDEX('Energy Prices'!$F$19:$CR$24,MATCH($B97,'Energy Prices'!$C$19:$C$24,0),MATCH(Calc_Option5!AI$6,'Energy Prices'!$F$11:$CR$11,0))/100000,\"\")","v":""},{"$f":"IFERROR('Data Input - Option 5'!AN87*INDEX('Energy Prices'!$F$19:$CR$24,MATCH($B97,'Energy Prices'!$C$19:$C$24,0),MATCH(Calc_Option5!AJ$6,'Energy Prices'!$F$11:$CR$11,0))/100000,\"\")","v":""},{"$f":"IFERROR('Data Input - Option 5'!AO87*INDEX('Energy Prices'!$F$19:$CR$24,MATCH($B97,'Energy Prices'!$C$19:$C$24,0),MATCH(Calc_Option5!AK$6,'Energy Prices'!$F$11:$CR$11,0))/100000,\"\")","v":""},{"$f":"IFERROR('Data Input - Option 5'!AP87*INDEX('Energy Prices'!$F$19:$CR$24,MATCH($B97,'Energy Prices'!$C$19:$C$24,0),MATCH(Calc_Option5!AL$6,'Energy Prices'!$F$11:$CR$11,0))/100000,\"\")","v":""},{"$f":"IFERROR('Data Input - Option 5'!AQ87*INDEX('Energy Prices'!$F$19:$CR$24,MATCH($B97,'Energy Prices'!$C$19:$C$24,0),MATCH(Calc_Option5!AM$6,'Energy Prices'!$F$11:$CR$11,0))/100000,\"\")","v":""},{"$f":"IFERROR('Data Input - Option 5'!AR87*INDEX('Energy Prices'!$F$19:$CR$24,MATCH($B97,'Energy Prices'!$C$19:$C$24,0),MATCH(Calc_Option5!AN$6,'Energy Prices'!$F$11:$CR$11,0))/100000,\"\")","v":""},{"$f":"IFERROR('Data Input - Option 5'!AS87*INDEX('Energy Prices'!$F$19:$CR$24,MATCH($B97,'Energy Prices'!$C$19:$C$24,0),MATCH(Calc_Option5!AO$6,'Energy Prices'!$F$11:$CR$11,0))/100000,\"\")","v":""},{"$f":"IFERROR('Data Input - Option 5'!AT87*INDEX('Energy Prices'!$F$19:$CR$24,MATCH($B97,'Energy Prices'!$C$19:$C$24,0),MATCH(Calc_Option5!AP$6,'Energy Prices'!$F$11:$CR$11,0))/100000,\"\")","v":""},{"$f":"IFERROR('Data Input - Option 5'!AU87*INDEX('Energy Prices'!$F$19:$CR$24,MATCH($B97,'Energy Prices'!$C$19:$C$24,0),MATCH(Calc_Option5!AQ$6,'Energy Prices'!$F$11:$CR$11,0))/100000,\"\")","v":""},{"$f":"IFERROR('Data Input - Option 5'!AV87*INDEX('Energy Prices'!$F$19:$CR$24,MATCH($B97,'Energy Prices'!$C$19:$C$24,0),MATCH(Calc_Option5!AR$6,'Energy Prices'!$F$11:$CR$11,0))/100000,\"\")","v":""},{"$f":"IFERROR('Data Input - Option 5'!AW87*INDEX('Energy Prices'!$F$19:$CR$24,MATCH($B97,'Energy Prices'!$C$19:$C$24,0),MATCH(Calc_Option5!AS$6,'Energy Prices'!$F$11:$CR$11,0))/100000,\"\")","v":""},{"$f":"IFERROR('Data Input - Option 5'!AX87*INDEX('Energy Prices'!$F$19:$CR$24,MATCH($B97,'Energy Prices'!$C$19:$C$24,0),MATCH(Calc_Option5!AT$6,'Energy Prices'!$F$11:$CR$11,0))/100000,\"\")","v":""},{"$f":"IFERROR('Data Input - Option 5'!AY87*INDEX('Energy Prices'!$F$19:$CR$24,MATCH($B97,'Energy Prices'!$C$19:$C$24,0),MATCH(Calc_Option5!AU$6,'Energy Prices'!$F$11:$CR$11,0))/100000,\"\")","v":""},{"$f":"IFERROR('Data Input - Option 5'!AZ87*INDEX('Energy Prices'!$F$19:$CR$24,MATCH($B97,'Energy Prices'!$C$19:$C$24,0),MATCH(Calc_Option5!AV$6,'Energy Prices'!$F$11:$CR$11,0))/100000,\"\")","v":""},{"$f":"IFERROR('Data Input - Option 5'!BA87*INDEX('Energy Prices'!$F$19:$CR$24,MATCH($B97,'Energy Prices'!$C$19:$C$24,0),MATCH(Calc_Option5!AW$6,'Energy Prices'!$F$11:$CR$11,0))/100000,\"\")","v":""},{"$f":"IFERROR('Data Input - Option 5'!BB87*INDEX('Energy Prices'!$F$19:$CR$24,MATCH($B97,'Energy Prices'!$C$19:$C$24,0),MATCH(Calc_Option5!AX$6,'Energy Prices'!$F$11:$CR$11,0))/100000,\"\")","v":""},{"$f":"IFERROR('Data Input - Option 5'!BC87*INDEX('Energy Prices'!$F$19:$CR$24,MATCH($B97,'Energy Prices'!$C$19:$C$24,0),MATCH(Calc_Option5!AY$6,'Energy Prices'!$F$11:$CR$11,0))/100000,\"\")","v":""},{"$f":"IFERROR('Data Input - Option 5'!BD87*INDEX('Energy Prices'!$F$19:$CR$24,MATCH($B97,'Energy Prices'!$C$19:$C$24,0),MATCH(Calc_Option5!AZ$6,'Energy Prices'!$F$11:$CR$11,0))/100000,\"\")","v":""},{"$f":"IFERROR('Data Input - Option 5'!BE87*INDEX('Energy Prices'!$F$19:$CR$24,MATCH($B97,'Energy Prices'!$C$19:$C$24,0),MATCH(Calc_Option5!BA$6,'Energy Prices'!$F$11:$CR$11,0))/100000,\"\")","v":""},{"$f":"IFERROR('Data Input - Option 5'!BF87*INDEX('Energy Prices'!$F$19:$CR$24,MATCH($B97,'Energy Prices'!$C$19:$C$24,0),MATCH(Calc_Option5!BB$6,'Energy Prices'!$F$11:$CR$11,0))/100000,\"\")","v":""},{"$f":"IFERROR('Data Input - Option 5'!BG87*INDEX('Energy Prices'!$F$19:$CR$24,MATCH($B97,'Energy Prices'!$C$19:$C$24,0),MATCH(Calc_Option5!BC$6,'Energy Prices'!$F$11:$CR$11,0))/100000,\"\")","v":""},{"$f":"IFERROR('Data Input - Option 5'!BH87*INDEX('Energy Prices'!$F$19:$CR$24,MATCH($B97,'Energy Prices'!$C$19:$C$24,0),MATCH(Calc_Option5!BD$6,'Energy Prices'!$F$11:$CR$11,0))/100000,\"\")","v":""},{"$f":"IFERROR('Data Input - Option 5'!BI87*INDEX('Energy Prices'!$F$19:$CR$24,MATCH($B97,'Energy Prices'!$C$19:$C$24,0),MATCH(Calc_Option5!BE$6,'Energy Prices'!$F$11:$CR$11,0))/100000,\"\")","v":""},{"$f":"IFERROR('Data Input - Option 5'!BJ87*INDEX('Energy Prices'!$F$19:$CR$24,MATCH($B97,'Energy Prices'!$C$19:$C$24,0),MATCH(Calc_Option5!BF$6,'Energy Prices'!$F$11:$CR$11,0))/100000,\"\")","v":""},{"$f":"IFERROR('Data Input - Option 5'!BK87*INDEX('Energy Prices'!$F$19:$CR$24,MATCH($B97,'Energy Prices'!$C$19:$C$24,0),MATCH(Calc_Option5!BG$6,'Energy Prices'!$F$11:$CR$11,0))/100000,\"\")","v":""},{"$f":"IFERROR('Data Input - Option 5'!BL87*INDEX('Energy Prices'!$F$19:$CR$24,MATCH($B97,'Energy Prices'!$C$19:$C$24,0),MATCH(Calc_Option5!BH$6,'Energy Prices'!$F$11:$CR$11,0))/100000,\"\")","v":""},{"$f":"IFERROR('Data Input - Option 5'!BM87*INDEX('Energy Prices'!$F$19:$CR$24,MATCH($B97,'Energy Prices'!$C$19:$C$24,0),MATCH(Calc_Option5!BI$6,'Energy Prices'!$F$11:$CR$11,0))/100000,\"\")","v":""},{"$f":"IFERROR('Data Input - Option 5'!BN87*INDEX('Energy Prices'!$F$19:$CR$24,MATCH($B97,'Energy Prices'!$C$19:$C$24,0),MATCH(Calc_Option5!BJ$6,'Energy Prices'!$F$11:$CR$11,0))/100000,\"\")","v":""},{"$f":"IFERROR('Data Input - Option 5'!BO87*INDEX('Energy Prices'!$F$19:$CR$24,MATCH($B97,'Energy Prices'!$C$19:$C$24,0),MATCH(Calc_Option5!BK$6,'Energy Prices'!$F$11:$CR$11,0))/100000,\"\")","v":""},{"$f":"IFERROR('Data Input - Option 5'!BP87*INDEX('Energy Prices'!$F$19:$CR$24,MATCH($B97,'Energy Prices'!$C$19:$C$24,0),MATCH(Calc_Option5!BL$6,'Energy Prices'!$F$11:$CR$11,0))/100000,\"\")","v":""},{"$f":"IFERROR('Data Input - Option 5'!BQ87*INDEX('Energy Prices'!$F$19:$CR$24,MATCH($B97,'Energy Prices'!$C$19:$C$24,0),MATCH(Calc_Option5!BM$6,'Energy Prices'!$F$11:$CR$11,0))/100000,\"\")","v":""},{"$f":"IFERROR('Data Input - Option 5'!BR87*INDEX('Energy Prices'!$F$19:$CR$24,MATCH($B97,'Energy Prices'!$C$19:$C$24,0),MATCH(Calc_Option5!BN$6,'Energy Prices'!$F$11:$CR$11,0))/100000,\"\")","v":""},{"$f":"IFERROR('Data Input - Option 5'!BS87*INDEX('Energy Prices'!$F$19:$CR$24,MATCH($B97,'Energy Prices'!$C$19:$C$24,0),MATCH(Calc_Option5!BO$6,'Energy Prices'!$F$11:$CR$11,0))/100000,\"\")","v":""},{"$f":"IFERROR('Data Input - Option 5'!BT87*INDEX('Energy Prices'!$F$19:$CR$24,MATCH($B97,'Energy Prices'!$C$19:$C$24,0),MATCH(Calc_Option5!BP$6,'Energy Prices'!$F$11:$CR$11,0))/100000,\"\")","v":""},{"$f":"IFERROR('Data Input - Option 5'!BU87*INDEX('Energy Prices'!$F$19:$CR$24,MATCH($B97,'Energy Prices'!$C$19:$C$24,0),MATCH(Calc_Option5!BQ$6,'Energy Prices'!$F$11:$CR$11,0))/100000,\"\")","v":""},{"$f":"IFERROR('Data Input - Option 5'!BV87*INDEX('Energy Prices'!$F$19:$CR$24,MATCH($B97,'Energy Prices'!$C$19:$C$24,0),MATCH(Calc_Option5!BR$6,'Energy Prices'!$F$11:$CR$11,0))/100000,\"\")","v":""},{"$f":"IFERROR('Data Input - Option 5'!BW87*INDEX('Energy Prices'!$F$19:$CR$24,MATCH($B97,'Energy Prices'!$C$19:$C$24,0),MATCH(Calc_Option5!BS$6,'Energy Prices'!$F$11:$CR$11,0))/100000,\"\")","v":""},{"$f":"IFERROR('Data Input - Option 5'!BX87*INDEX('Energy Prices'!$F$19:$CR$24,MATCH($B97,'Energy Prices'!$C$19:$C$24,0),MATCH(Calc_Option5!BT$6,'Energy Prices'!$F$11:$CR$11,0))/100000,\"\")","v":""},{"$f":"IFERROR('Data Input - Option 5'!BY87*INDEX('Energy Prices'!$F$19:$CR$24,MATCH($B97,'Energy Prices'!$C$19:$C$24,0),MATCH(Calc_Option5!BU$6,'Energy Prices'!$F$11:$CR$11,0))/100000,\"\")","v":""},{"$f":"IFERROR('Data Input - Option 5'!BZ87*INDEX('Energy Prices'!$F$19:$CR$24,MATCH($B97,'Energy Prices'!$C$19:$C$24,0),MATCH(Calc_Option5!BV$6,'Energy Prices'!$F$11:$CR$11,0))/100000,\"\")","v":""},{"$f":"IFERROR('Data Input - Option 5'!CA87*INDEX('Energy Prices'!$F$19:$CR$24,MATCH($B97,'Energy Prices'!$C$19:$C$24,0),MATCH(Calc_Option5!BW$6,'Energy Prices'!$F$11:$CR$11,0))/100000,\"\")","v":""},{"$f":"IFERROR('Data Input - Option 5'!CB87*INDEX('Energy Prices'!$F$19:$CR$24,MATCH($B97,'Energy Prices'!$C$19:$C$24,0),MATCH(Calc_Option5!BX$6,'Energy Prices'!$F$11:$CR$11,0))/100000,\"\")","v":""},{"$f":"IFERROR('Data Input - Option 5'!CC87*INDEX('Energy Prices'!$F$19:$CR$24,MATCH($B97,'Energy Prices'!$C$19:$C$24,0),MATCH(Calc_Option5!BY$6,'Energy Prices'!$F$11:$CR$11,0))/100000,\"\")","v":""},{"$f":"IFERROR('Data Input - Option 5'!CD87*INDEX('Energy Prices'!$F$19:$CR$24,MATCH($B97,'Energy Prices'!$C$19:$C$24,0),MATCH(Calc_Option5!BZ$6,'Energy Prices'!$F$11:$CR$11,0))/100000,\"\")","v":""},{"$f":"IFERROR('Data Input - Option 5'!CE87*INDEX('Energy Prices'!$F$19:$CR$24,MATCH($B97,'Energy Prices'!$C$19:$C$24,0),MATCH(Calc_Option5!CA$6,'Energy Prices'!$F$11:$CR$11,0))/100000,\"\")","v":""},{"$f":"IFERROR('Data Input - Option 5'!CF87*INDEX('Energy Prices'!$F$19:$CR$24,MATCH($B97,'Energy Prices'!$C$19:$C$24,0),MATCH(Calc_Option5!CB$6,'Energy Prices'!$F$11:$CR$11,0))/100000,\"\")","v":""},{"$f":"IFERROR('Data Input - Option 5'!CG87*INDEX('Energy Prices'!$F$19:$CR$24,MATCH($B97,'Energy Prices'!$C$19:$C$24,0),MATCH(Calc_Option5!CC$6,'Energy Prices'!$F$11:$CR$11,0))/100000,\"\")","v":""},{"$f":"IFERROR('Data Input - Option 5'!CH87*INDEX('Energy Prices'!$F$19:$CR$24,MATCH($B97,'Energy Prices'!$C$19:$C$24,0),MATCH(Calc_Option5!CD$6,'Energy Prices'!$F$11:$CR$11,0))/100000,\"\")","v":""},{"$f":"IFERROR('Data Input - Option 5'!CI87*INDEX('Energy Prices'!$F$19:$CR$24,MATCH($B97,'Energy Prices'!$C$19:$C$24,0),MATCH(Calc_Option5!CE$6,'Energy Prices'!$F$11:$CR$11,0))/100000,\"\")","v":""},{"$f":"IFERROR('Data Input - Option 5'!CJ87*INDEX('Energy Prices'!$F$19:$CR$24,MATCH($B97,'Energy Prices'!$C$19:$C$24,0),MATCH(Calc_Option5!CF$6,'Energy Prices'!$F$11:$CR$11,0))/100000,\"\")","v":""},{"$f":"IFERROR('Data Input - Option 5'!CK87*INDEX('Energy Prices'!$F$19:$CR$24,MATCH($B97,'Energy Prices'!$C$19:$C$24,0),MATCH(Calc_Option5!CG$6,'Energy Prices'!$F$11:$CR$11,0))/100000,\"\")","v":""},{"$f":"IFERROR('Data Input - Option 5'!CL87*INDEX('Energy Prices'!$F$19:$CR$24,MATCH($B97,'Energy Prices'!$C$19:$C$24,0),MATCH(Calc_Option5!CH$6,'Energy Prices'!$F$11:$CR$11,0))/100000,\"\")","v":""},{"$f":"IFERROR('Data Input - Option 5'!CM87*INDEX('Energy Prices'!$F$19:$CR$24,MATCH($B97,'Energy Prices'!$C$19:$C$24,0),MATCH(Calc_Option5!CI$6,'Energy Prices'!$F$11:$CR$11,0))/100000,\"\")","v":""},{"$f":"IFERROR('Data Input - Option 5'!CN87*INDEX('Energy Prices'!$F$19:$CR$24,MATCH($B97,'Energy Prices'!$C$19:$C$24,0),MATCH(Calc_Option5!CJ$6,'Energy Prices'!$F$11:$CR$11,0))/100000,\"\")","v":""},{"$f":"IFERROR('Data Input - Option 5'!CO87*INDEX('Energy Prices'!$F$19:$CR$24,MATCH($B97,'Energy Prices'!$C$19:$C$24,0),MATCH(Calc_Option5!CK$6,'Energy Prices'!$F$11:$CR$11,0))/100000,\"\")","v":""},{"$f":"IFERROR('Data Input - Option 5'!CP87*INDEX('Energy Prices'!$F$19:$CR$24,MATCH($B97,'Energy Prices'!$C$19:$C$24,0),MATCH(Calc_Option5!CL$6,'Energy Prices'!$F$11:$CR$11,0))/100000,\"\")","v":""},{"$f":"IFERROR('Data Input - Option 5'!CQ87*INDEX('Energy Prices'!$F$19:$CR$24,MATCH($B97,'Energy Prices'!$C$19:$C$24,0),MATCH(Calc_Option5!CM$6,'Energy Prices'!$F$11:$CR$11,0))/100000,\"\")","v":""},{"$f":"IFERROR('Data Input - Option 5'!CR87*INDEX('Energy Prices'!$F$19:$CR$24,MATCH($B97,'Energy Prices'!$C$19:$C$24,0),MATCH(Calc_Option5!CN$6,'Energy Prices'!$F$11:$CR$11,0))/100000,\"\")","v":""},{"$f":"IFERROR('Data Input - Option 5'!CS87*INDEX('Energy Prices'!$F$19:$CR$24,MATCH($B97,'Energy Prices'!$C$19:$C$24,0),MATCH(Calc_Option5!CO$6,'Energy Prices'!$F$11:$CR$11,0))/100000,\"\")","v":""},{"$f":"IFERROR('Data Input - Option 5'!CT87*INDEX('Energy Prices'!$F$19:$CR$24,MATCH($B97,'Energy Prices'!$C$19:$C$24,0),MATCH(Calc_Option5!CP$6,'Energy Prices'!$F$11:$CR$11,0))/100000,\"\")","v":""},{"$f":"IFERROR('Data Input - Option 5'!CU87*INDEX('Energy Prices'!$F$19:$CR$24,MATCH($B97,'Energy Prices'!$C$19:$C$24,0),MATCH(Calc_Option5!CQ$6,'Energy Prices'!$F$11:$CR$11,0))/100000,\"\")","v":""},{"$f":"IFERROR('Data Input - Option 5'!CV87*INDEX('Energy Prices'!$F$19:$CR$24,MATCH($B97,'Energy Prices'!$C$19:$C$24,0),MATCH(Calc_Option5!CR$6,'Energy Prices'!$F$11:$CR$11,0))/100000,\"\")","v":""},{"$f":"IFERROR('Data Input - Option 5'!CW87*INDEX('Energy Prices'!$F$19:$CR$24,MATCH($B97,'Energy Prices'!$C$19:$C$24,0),MATCH(Calc_Option5!CS$6,'Energy Prices'!$F$11:$CR$11,0))/100000,\"\")","v":""},{"$f":"IFERROR('Data Input - Option 5'!CX87*INDEX('Energy Prices'!$F$19:$CR$24,MATCH($B97,'Energy Prices'!$C$19:$C$24,0),MATCH(Calc_Option5!CT$6,'Energy Prices'!$F$11:$CR$11,0))/100000,\"\")","v":""},{"$f":"IFERROR('Data Input - Option 5'!CY87*INDEX('Energy Prices'!$F$19:$CR$24,MATCH($B97,'Energy Prices'!$C$19:$C$24,0),MATCH(Calc_Option5!CU$6,'Energy Prices'!$F$11:$CR$11,0))/100000,\"\")","v":""},{"$f":"IFERROR('Data Input - Option 5'!CZ87*INDEX('Energy Prices'!$F$19:$CR$24,MATCH($B97,'Energy Prices'!$C$19:$C$24,0),MATCH(Calc_Option5!CV$6,'Energy Prices'!$F$11:$CR$11,0))/100000,\"\")","v":""},{"$f":"IFERROR('Data Input - Option 5'!DA87*INDEX('Energy Prices'!$F$19:$CR$24,MATCH($B97,'Energy Prices'!$C$19:$C$24,0),MATCH(Calc_Option5!CW$6,'Energy Prices'!$F$11:$CR$11,0))/100000,\"\")","v":""},{"$f":"IFERROR('Data Input - Option 5'!DB87*INDEX('Energy Prices'!$F$19:$CR$24,MATCH($B97,'Energy Prices'!$C$19:$C$24,0),MATCH(Calc_Option5!CX$6,'Energy Prices'!$F$11:$CR$11,0))/100000,\"\")","v":""},{"$f":"IFERROR('Data Input - Option 5'!DC87*INDEX('Energy Prices'!$F$19:$CR$24,MATCH($B97,'Energy Prices'!$C$19:$C$24,0),MATCH(Calc_Option5!CY$6,'Energy Prices'!$F$11:$CR$11,0))/100000,\"\")","v":""}]
[null,"Road - Petrol","£000's",{"$f":"IFERROR('Data Input - Option 5'!H88*INDEX('Energy Prices'!$F$19:$CR$24,MATCH($B98,'Energy Prices'!$C$19:$C$24,0),MATCH(Calc_Option5!D$6,'Energy Prices'!$F$11:$CR$11,0))/100000,\"\")","v":0},{"$f":"IFERROR('Data Input - Option 5'!I88*INDEX('Energy Prices'!$F$19:$CR$24,MATCH($B98,'Energy Prices'!$C$19:$C$24,0),MATCH(Calc_Option5!E$6,'Energy Prices'!$F$11:$CR$11,0))/100000,\"\")","v":0},{"$f":"IFERROR('Data Input - Option 5'!J88*INDEX('Energy Prices'!$F$19:$CR$24,MATCH($B98,'Energy Prices'!$C$19:$C$24,0),MATCH(Calc_Option5!F$6,'Energy Prices'!$F$11:$CR$11,0))/100000,\"\")","v":0},{"$f":"IFERROR('Data Input - Option 5'!K88*INDEX('Energy Prices'!$F$19:$CR$24,MATCH($B98,'Energy Prices'!$C$19:$C$24,0),MATCH(Calc_Option5!G$6,'Energy Prices'!$F$11:$CR$11,0))/100000,\"\")","v":0},{"$f":"IFERROR('Data Input - Option 5'!L88*INDEX('Energy Prices'!$F$19:$CR$24,MATCH($B98,'Energy Prices'!$C$19:$C$24,0),MATCH(Calc_Option5!H$6,'Energy Prices'!$F$11:$CR$11,0))/100000,\"\")","v":0},{"$f":"IFERROR('Data Input - Option 5'!M88*INDEX('Energy Prices'!$F$19:$CR$24,MATCH($B98,'Energy Prices'!$C$19:$C$24,0),MATCH(Calc_Option5!I$6,'Energy Prices'!$F$11:$CR$11,0))/100000,\"\")","v":0},{"$f":"IFERROR('Data Input - Option 5'!N88*INDEX('Energy Prices'!$F$19:$CR$24,MATCH($B98,'Energy Prices'!$C$19:$C$24,0),MATCH(Calc_Option5!J$6,'Energy Prices'!$F$11:$CR$11,0))/100000,\"\")","v":0},{"$f":"IFERROR('Data Input - Option 5'!O88*INDEX('Energy Prices'!$F$19:$CR$24,MATCH($B98,'Energy Prices'!$C$19:$C$24,0),MATCH(Calc_Option5!K$6,'Energy Prices'!$F$11:$CR$11,0))/100000,\"\")","v":0},{"$f":"IFERROR('Data Input - Option 5'!P88*INDEX('Energy Prices'!$F$19:$CR$24,MATCH($B98,'Energy Prices'!$C$19:$C$24,0),MATCH(Calc_Option5!L$6,'Energy Prices'!$F$11:$CR$11,0))/100000,\"\")","v":0},{"$f":"IFERROR('Data Input - Option 5'!Q88*INDEX('Energy Prices'!$F$19:$CR$24,MATCH($B98,'Energy Prices'!$C$19:$C$24,0),MATCH(Calc_Option5!M$6,'Energy Prices'!$F$11:$CR$11,0))/100000,\"\")","v":0},{"$f":"IFERROR('Data Input - Option 5'!R88*INDEX('Energy Prices'!$F$19:$CR$24,MATCH($B98,'Energy Prices'!$C$19:$C$24,0),MATCH(Calc_Option5!N$6,'Energy Prices'!$F$11:$CR$11,0))/100000,\"\")","v":0},{"$f":"IFERROR('Data Input - Option 5'!S88*INDEX('Energy Prices'!$F$19:$CR$24,MATCH($B98,'Energy Prices'!$C$19:$C$24,0),MATCH(Calc_Option5!O$6,'Energy Prices'!$F$11:$CR$11,0))/100000,\"\")","v":0},{"$f":"IFERROR('Data Input - Option 5'!T88*INDEX('Energy Prices'!$F$19:$CR$24,MATCH($B98,'Energy Prices'!$C$19:$C$24,0),MATCH(Calc_Option5!P$6,'Energy Prices'!$F$11:$CR$11,0))/100000,\"\")","v":0},{"$f":"IFERROR('Data Input - Option 5'!U88*INDEX('Energy Prices'!$F$19:$CR$24,MATCH($B98,'Energy Prices'!$C$19:$C$24,0),MATCH(Calc_Option5!Q$6,'Energy Prices'!$F$11:$CR$11,0))/100000,\"\")","v":0},{"$f":"IFERROR('Data Input - Option 5'!V88*INDEX('Energy Prices'!$F$19:$CR$24,MATCH($B98,'Energy Prices'!$C$19:$C$24,0),MATCH(Calc_Option5!R$6,'Energy Prices'!$F$11:$CR$11,0))/100000,\"\")","v":0},{"$f":"IFERROR('Data Input - Option 5'!W88*INDEX('Energy Prices'!$F$19:$CR$24,MATCH($B98,'Energy Prices'!$C$19:$C$24,0),MATCH(Calc_Option5!S$6,'Energy Prices'!$F$11:$CR$11,0))/100000,\"\")","v":0},{"$f":"IFERROR('Data Input - Option 5'!X88*INDEX('Energy Prices'!$F$19:$CR$24,MATCH($B98,'Energy Prices'!$C$19:$C$24,0),MATCH(Calc_Option5!T$6,'Energy Prices'!$F$11:$CR$11,0))/100000,\"\")","v":0},{"$f":"IFERROR('Data Input - Option 5'!Y88*INDEX('Energy Prices'!$F$19:$CR$24,MATCH($B98,'Energy Prices'!$C$19:$C$24,0),MATCH(Calc_Option5!U$6,'Energy Prices'!$F$11:$CR$11,0))/100000,\"\")","v":0},{"$f":"IFERROR('Data Input - Option 5'!Z88*INDEX('Energy Prices'!$F$19:$CR$24,MATCH($B98,'Energy Prices'!$C$19:$C$24,0),MATCH(Calc_Option5!V$6,'Energy Prices'!$F$11:$CR$11,0))/100000,\"\")","v":0},{"$f":"IFERROR('Data Input - Option 5'!AA88*INDEX('Energy Prices'!$F$19:$CR$24,MATCH($B98,'Energy Prices'!$C$19:$C$24,0),MATCH(Calc_Option5!W$6,'Energy Prices'!$F$11:$CR$11,0))/100000,\"\")","v":0},{"$f":"IFERROR('Data Input - Option 5'!AB88*INDEX('Energy Prices'!$F$19:$CR$24,MATCH($B98,'Energy Prices'!$C$19:$C$24,0),MATCH(Calc_Option5!X$6,'Energy Prices'!$F$11:$CR$11,0))/100000,\"\")","v":0},{"$f":"IFERROR('Data Input - Option 5'!AC88*INDEX('Energy Prices'!$F$19:$CR$24,MATCH($B98,'Energy Prices'!$C$19:$C$24,0),MATCH(Calc_Option5!Y$6,'Energy Prices'!$F$11:$CR$11,0))/100000,\"\")","v":0},{"$f":"IFERROR('Data Input - Option 5'!AD88*INDEX('Energy Prices'!$F$19:$CR$24,MATCH($B98,'Energy Prices'!$C$19:$C$24,0),MATCH(Calc_Option5!Z$6,'Energy Prices'!$F$11:$CR$11,0))/100000,\"\")","v":0},{"$f":"IFERROR('Data Input - Option 5'!AE88*INDEX('Energy Prices'!$F$19:$CR$24,MATCH($B98,'Energy Prices'!$C$19:$C$24,0),MATCH(Calc_Option5!AA$6,'Energy Prices'!$F$11:$CR$11,0))/100000,\"\")","v":0},{"$f":"IFERROR('Data Input - Option 5'!AF88*INDEX('Energy Prices'!$F$19:$CR$24,MATCH($B98,'Energy Prices'!$C$19:$C$24,0),MATCH(Calc_Option5!AB$6,'Energy Prices'!$F$11:$CR$11,0))/100000,\"\")","v":0},{"$f":"IFERROR('Data Input - Option 5'!AG88*INDEX('Energy Prices'!$F$19:$CR$24,MATCH($B98,'Energy Prices'!$C$19:$C$24,0),MATCH(Calc_Option5!AC$6,'Energy Prices'!$F$11:$CR$11,0))/100000,\"\")","v":0},{"$f":"IFERROR('Data Input - Option 5'!AH88*INDEX('Energy Prices'!$F$19:$CR$24,MATCH($B98,'Energy Prices'!$C$19:$C$24,0),MATCH(Calc_Option5!AD$6,'Energy Prices'!$F$11:$CR$11,0))/100000,\"\")","v":0},{"$f":"IFERROR('Data Input - Option 5'!AI88*INDEX('Energy Prices'!$F$19:$CR$24,MATCH($B98,'Energy Prices'!$C$19:$C$24,0),MATCH(Calc_Option5!AE$6,'Energy Prices'!$F$11:$CR$11,0))/100000,\"\")","v":0},{"$f":"IFERROR('Data Input - Option 5'!AJ88*INDEX('Energy Prices'!$F$19:$CR$24,MATCH($B98,'Energy Prices'!$C$19:$C$24,0),MATCH(Calc_Option5!AF$6,'Energy Prices'!$F$11:$CR$11,0))/100000,\"\")","v":0},{"$f":"IFERROR('Data Input - Option 5'!AK88*INDEX('Energy Prices'!$F$19:$CR$24,MATCH($B98,'Energy Prices'!$C$19:$C$24,0),MATCH(Calc_Option5!AG$6,'Energy Prices'!$F$11:$CR$11,0))/100000,\"\")","v":0},{"$f":"IFERROR('Data Input - Option 5'!AL88*INDEX('Energy Prices'!$F$19:$CR$24,MATCH($B98,'Energy Prices'!$C$19:$C$24,0),MATCH(Calc_Option5!AH$6,'Energy Prices'!$F$11:$CR$11,0))/100000,\"\")","v":0},{"$f":"IFERROR('Data Input - Option 5'!AM88*INDEX('Energy Prices'!$F$19:$CR$24,MATCH($B98,'Energy Prices'!$C$19:$C$24,0),MATCH(Calc_Option5!AI$6,'Energy Prices'!$F$11:$CR$11,0))/100000,\"\")","v":""},{"$f":"IFERROR('Data Input - Option 5'!AN88*INDEX('Energy Prices'!$F$19:$CR$24,MATCH($B98,'Energy Prices'!$C$19:$C$24,0),MATCH(Calc_Option5!AJ$6,'Energy Prices'!$F$11:$CR$11,0))/100000,\"\")","v":""},{"$f":"IFERROR('Data Input - Option 5'!AO88*INDEX('Energy Prices'!$F$19:$CR$24,MATCH($B98,'Energy Prices'!$C$19:$C$24,0),MATCH(Calc_Option5!AK$6,'Energy Prices'!$F$11:$CR$11,0))/100000,\"\")","v":""},{"$f":"IFERROR('Data Input - Option 5'!AP88*INDEX('Energy Prices'!$F$19:$CR$24,MATCH($B98,'Energy Prices'!$C$19:$C$24,0),MATCH(Calc_Option5!AL$6,'Energy Prices'!$F$11:$CR$11,0))/100000,\"\")","v":""},{"$f":"IFERROR('Data Input - Option 5'!AQ88*INDEX('Energy Prices'!$F$19:$CR$24,MATCH($B98,'Energy Prices'!$C$19:$C$24,0),MATCH(Calc_Option5!AM$6,'Energy Prices'!$F$11:$CR$11,0))/100000,\"\")","v":""},{"$f":"IFERROR('Data Input - Option 5'!AR88*INDEX('Energy Prices'!$F$19:$CR$24,MATCH($B98,'Energy Prices'!$C$19:$C$24,0),MATCH(Calc_Option5!AN$6,'Energy Prices'!$F$11:$CR$11,0))/100000,\"\")","v":""},{"$f":"IFERROR('Data Input - Option 5'!AS88*INDEX('Energy Prices'!$F$19:$CR$24,MATCH($B98,'Energy Prices'!$C$19:$C$24,0),MATCH(Calc_Option5!AO$6,'Energy Prices'!$F$11:$CR$11,0))/100000,\"\")","v":""},{"$f":"IFERROR('Data Input - Option 5'!AT88*INDEX('Energy Prices'!$F$19:$CR$24,MATCH($B98,'Energy Prices'!$C$19:$C$24,0),MATCH(Calc_Option5!AP$6,'Energy Prices'!$F$11:$CR$11,0))/100000,\"\")","v":""},{"$f":"IFERROR('Data Input - Option 5'!AU88*INDEX('Energy Prices'!$F$19:$CR$24,MATCH($B98,'Energy Prices'!$C$19:$C$24,0),MATCH(Calc_Option5!AQ$6,'Energy Prices'!$F$11:$CR$11,0))/100000,\"\")","v":""},{"$f":"IFERROR('Data Input - Option 5'!AV88*INDEX('Energy Prices'!$F$19:$CR$24,MATCH($B98,'Energy Prices'!$C$19:$C$24,0),MATCH(Calc_Option5!AR$6,'Energy Prices'!$F$11:$CR$11,0))/100000,\"\")","v":""},{"$f":"IFERROR('Data Input - Option 5'!AW88*INDEX('Energy Prices'!$F$19:$CR$24,MATCH($B98,'Energy Prices'!$C$19:$C$24,0),MATCH(Calc_Option5!AS$6,'Energy Prices'!$F$11:$CR$11,0))/100000,\"\")","v":""},{"$f":"IFERROR('Data Input - Option 5'!AX88*INDEX('Energy Prices'!$F$19:$CR$24,MATCH($B98,'Energy Prices'!$C$19:$C$24,0),MATCH(Calc_Option5!AT$6,'Energy Prices'!$F$11:$CR$11,0))/100000,\"\")","v":""},{"$f":"IFERROR('Data Input - Option 5'!AY88*INDEX('Energy Prices'!$F$19:$CR$24,MATCH($B98,'Energy Prices'!$C$19:$C$24,0),MATCH(Calc_Option5!AU$6,'Energy Prices'!$F$11:$CR$11,0))/100000,\"\")","v":""},{"$f":"IFERROR('Data Input - Option 5'!AZ88*INDEX('Energy Prices'!$F$19:$CR$24,MATCH($B98,'Energy Prices'!$C$19:$C$24,0),MATCH(Calc_Option5!AV$6,'Energy Prices'!$F$11:$CR$11,0))/100000,\"\")","v":""},{"$f":"IFERROR('Data Input - Option 5'!BA88*INDEX('Energy Prices'!$F$19:$CR$24,MATCH($B98,'Energy Prices'!$C$19:$C$24,0),MATCH(Calc_Option5!AW$6,'Energy Prices'!$F$11:$CR$11,0))/100000,\"\")","v":""},{"$f":"IFERROR('Data Input - Option 5'!BB88*INDEX('Energy Prices'!$F$19:$CR$24,MATCH($B98,'Energy Prices'!$C$19:$C$24,0),MATCH(Calc_Option5!AX$6,'Energy Prices'!$F$11:$CR$11,0))/100000,\"\")","v":""},{"$f":"IFERROR('Data Input - Option 5'!BC88*INDEX('Energy Prices'!$F$19:$CR$24,MATCH($B98,'Energy Prices'!$C$19:$C$24,0),MATCH(Calc_Option5!AY$6,'Energy Prices'!$F$11:$CR$11,0))/100000,\"\")","v":""},{"$f":"IFERROR('Data Input - Option 5'!BD88*INDEX('Energy Prices'!$F$19:$CR$24,MATCH($B98,'Energy Prices'!$C$19:$C$24,0),MATCH(Calc_Option5!AZ$6,'Energy Prices'!$F$11:$CR$11,0))/100000,\"\")","v":""},{"$f":"IFERROR('Data Input - Option 5'!BE88*INDEX('Energy Prices'!$F$19:$CR$24,MATCH($B98,'Energy Prices'!$C$19:$C$24,0),MATCH(Calc_Option5!BA$6,'Energy Prices'!$F$11:$CR$11,0))/100000,\"\")","v":""},{"$f":"IFERROR('Data Input - Option 5'!BF88*INDEX('Energy Prices'!$F$19:$CR$24,MATCH($B98,'Energy Prices'!$C$19:$C$24,0),MATCH(Calc_Option5!BB$6,'Energy Prices'!$F$11:$CR$11,0))/100000,\"\")","v":""},{"$f":"IFERROR('Data Input - Option 5'!BG88*INDEX('Energy Prices'!$F$19:$CR$24,MATCH($B98,'Energy Prices'!$C$19:$C$24,0),MATCH(Calc_Option5!BC$6,'Energy Prices'!$F$11:$CR$11,0))/100000,\"\")","v":""},{"$f":"IFERROR('Data Input - Option 5'!BH88*INDEX('Energy Prices'!$F$19:$CR$24,MATCH($B98,'Energy Prices'!$C$19:$C$24,0),MATCH(Calc_Option5!BD$6,'Energy Prices'!$F$11:$CR$11,0))/100000,\"\")","v":""},{"$f":"IFERROR('Data Input - Option 5'!BI88*INDEX('Energy Prices'!$F$19:$CR$24,MATCH($B98,'Energy Prices'!$C$19:$C$24,0),MATCH(Calc_Option5!BE$6,'Energy Prices'!$F$11:$CR$11,0))/100000,\"\")","v":""},{"$f":"IFERROR('Data Input - Option 5'!BJ88*INDEX('Energy Prices'!$F$19:$CR$24,MATCH($B98,'Energy Prices'!$C$19:$C$24,0),MATCH(Calc_Option5!BF$6,'Energy Prices'!$F$11:$CR$11,0))/100000,\"\")","v":""},{"$f":"IFERROR('Data Input - Option 5'!BK88*INDEX('Energy Prices'!$F$19:$CR$24,MATCH($B98,'Energy Prices'!$C$19:$C$24,0),MATCH(Calc_Option5!BG$6,'Energy Prices'!$F$11:$CR$11,0))/100000,\"\")","v":""},{"$f":"IFERROR('Data Input - Option 5'!BL88*INDEX('Energy Prices'!$F$19:$CR$24,MATCH($B98,'Energy Prices'!$C$19:$C$24,0),MATCH(Calc_Option5!BH$6,'Energy Prices'!$F$11:$CR$11,0))/100000,\"\")","v":""},{"$f":"IFERROR('Data Input - Option 5'!BM88*INDEX('Energy Prices'!$F$19:$CR$24,MATCH($B98,'Energy Prices'!$C$19:$C$24,0),MATCH(Calc_Option5!BI$6,'Energy Prices'!$F$11:$CR$11,0))/100000,\"\")","v":""},{"$f":"IFERROR('Data Input - Option 5'!BN88*INDEX('Energy Prices'!$F$19:$CR$24,MATCH($B98,'Energy Prices'!$C$19:$C$24,0),MATCH(Calc_Option5!BJ$6,'Energy Prices'!$F$11:$CR$11,0))/100000,\"\")","v":""},{"$f":"IFERROR('Data Input - Option 5'!BO88*INDEX('Energy Prices'!$F$19:$CR$24,MATCH($B98,'Energy Prices'!$C$19:$C$24,0),MATCH(Calc_Option5!BK$6,'Energy Prices'!$F$11:$CR$11,0))/100000,\"\")","v":""},{"$f":"IFERROR('Data Input - Option 5'!BP88*INDEX('Energy Prices'!$F$19:$CR$24,MATCH($B98,'Energy Prices'!$C$19:$C$24,0),MATCH(Calc_Option5!BL$6,'Energy Prices'!$F$11:$CR$11,0))/100000,\"\")","v":""},{"$f":"IFERROR('Data Input - Option 5'!BQ88*INDEX('Energy Prices'!$F$19:$CR$24,MATCH($B98,'Energy Prices'!$C$19:$C$24,0),MATCH(Calc_Option5!BM$6,'Energy Prices'!$F$11:$CR$11,0))/100000,\"\")","v":""},{"$f":"IFERROR('Data Input - Option 5'!BR88*INDEX('Energy Prices'!$F$19:$CR$24,MATCH($B98,'Energy Prices'!$C$19:$C$24,0),MATCH(Calc_Option5!BN$6,'Energy Prices'!$F$11:$CR$11,0))/100000,\"\")","v":""},{"$f":"IFERROR('Data Input - Option 5'!BS88*INDEX('Energy Prices'!$F$19:$CR$24,MATCH($B98,'Energy Prices'!$C$19:$C$24,0),MATCH(Calc_Option5!BO$6,'Energy Prices'!$F$11:$CR$11,0))/100000,\"\")","v":""},{"$f":"IFERROR('Data Input - Option 5'!BT88*INDEX('Energy Prices'!$F$19:$CR$24,MATCH($B98,'Energy Prices'!$C$19:$C$24,0),MATCH(Calc_Option5!BP$6,'Energy Prices'!$F$11:$CR$11,0))/100000,\"\")","v":""},{"$f":"IFERROR('Data Input - Option 5'!BU88*INDEX('Energy Prices'!$F$19:$CR$24,MATCH($B98,'Energy Prices'!$C$19:$C$24,0),MATCH(Calc_Option5!BQ$6,'Energy Prices'!$F$11:$CR$11,0))/100000,\"\")","v":""},{"$f":"IFERROR('Data Input - Option 5'!BV88*INDEX('Energy Prices'!$F$19:$CR$24,MATCH($B98,'Energy Prices'!$C$19:$C$24,0),MATCH(Calc_Option5!BR$6,'Energy Prices'!$F$11:$CR$11,0))/100000,\"\")","v":""},{"$f":"IFERROR('Data Input - Option 5'!BW88*INDEX('Energy Prices'!$F$19:$CR$24,MATCH($B98,'Energy Prices'!$C$19:$C$24,0),MATCH(Calc_Option5!BS$6,'Energy Prices'!$F$11:$CR$11,0))/100000,\"\")","v":""},{"$f":"IFERROR('Data Input - Option 5'!BX88*INDEX('Energy Prices'!$F$19:$CR$24,MATCH($B98,'Energy Prices'!$C$19:$C$24,0),MATCH(Calc_Option5!BT$6,'Energy Prices'!$F$11:$CR$11,0))/100000,\"\")","v":""},{"$f":"IFERROR('Data Input - Option 5'!BY88*INDEX('Energy Prices'!$F$19:$CR$24,MATCH($B98,'Energy Prices'!$C$19:$C$24,0),MATCH(Calc_Option5!BU$6,'Energy Prices'!$F$11:$CR$11,0))/100000,\"\")","v":""},{"$f":"IFERROR('Data Input - Option 5'!BZ88*INDEX('Energy Prices'!$F$19:$CR$24,MATCH($B98,'Energy Prices'!$C$19:$C$24,0),MATCH(Calc_Option5!BV$6,'Energy Prices'!$F$11:$CR$11,0))/100000,\"\")","v":""},{"$f":"IFERROR('Data Input - Option 5'!CA88*INDEX('Energy Prices'!$F$19:$CR$24,MATCH($B98,'Energy Prices'!$C$19:$C$24,0),MATCH(Calc_Option5!BW$6,'Energy Prices'!$F$11:$CR$11,0))/100000,\"\")","v":""},{"$f":"IFERROR('Data Input - Option 5'!CB88*INDEX('Energy Prices'!$F$19:$CR$24,MATCH($B98,'Energy Prices'!$C$19:$C$24,0),MATCH(Calc_Option5!BX$6,'Energy Prices'!$F$11:$CR$11,0))/100000,\"\")","v":""},{"$f":"IFERROR('Data Input - Option 5'!CC88*INDEX('Energy Prices'!$F$19:$CR$24,MATCH($B98,'Energy Prices'!$C$19:$C$24,0),MATCH(Calc_Option5!BY$6,'Energy Prices'!$F$11:$CR$11,0))/100000,\"\")","v":""},{"$f":"IFERROR('Data Input - Option 5'!CD88*INDEX('Energy Prices'!$F$19:$CR$24,MATCH($B98,'Energy Prices'!$C$19:$C$24,0),MATCH(Calc_Option5!BZ$6,'Energy Prices'!$F$11:$CR$11,0))/100000,\"\")","v":""},{"$f":"IFERROR('Data Input - Option 5'!CE88*INDEX('Energy Prices'!$F$19:$CR$24,MATCH($B98,'Energy Prices'!$C$19:$C$24,0),MATCH(Calc_Option5!CA$6,'Energy Prices'!$F$11:$CR$11,0))/100000,\"\")","v":""},{"$f":"IFERROR('Data Input - Option 5'!CF88*INDEX('Energy Prices'!$F$19:$CR$24,MATCH($B98,'Energy Prices'!$C$19:$C$24,0),MATCH(Calc_Option5!CB$6,'Energy Prices'!$F$11:$CR$11,0))/100000,\"\")","v":""},{"$f":"IFERROR('Data Input - Option 5'!CG88*INDEX('Energy Prices'!$F$19:$CR$24,MATCH($B98,'Energy Prices'!$C$19:$C$24,0),MATCH(Calc_Option5!CC$6,'Energy Prices'!$F$11:$CR$11,0))/100000,\"\")","v":""},{"$f":"IFERROR('Data Input - Option 5'!CH88*INDEX('Energy Prices'!$F$19:$CR$24,MATCH($B98,'Energy Prices'!$C$19:$C$24,0),MATCH(Calc_Option5!CD$6,'Energy Prices'!$F$11:$CR$11,0))/100000,\"\")","v":""},{"$f":"IFERROR('Data Input - Option 5'!CI88*INDEX('Energy Prices'!$F$19:$CR$24,MATCH($B98,'Energy Prices'!$C$19:$C$24,0),MATCH(Calc_Option5!CE$6,'Energy Prices'!$F$11:$CR$11,0))/100000,\"\")","v":""},{"$f":"IFERROR('Data Input - Option 5'!CJ88*INDEX('Energy Prices'!$F$19:$CR$24,MATCH($B98,'Energy Prices'!$C$19:$C$24,0),MATCH(Calc_Option5!CF$6,'Energy Prices'!$F$11:$CR$11,0))/100000,\"\")","v":""},{"$f":"IFERROR('Data Input - Option 5'!CK88*INDEX('Energy Prices'!$F$19:$CR$24,MATCH($B98,'Energy Prices'!$C$19:$C$24,0),MATCH(Calc_Option5!CG$6,'Energy Prices'!$F$11:$CR$11,0))/100000,\"\")","v":""},{"$f":"IFERROR('Data Input - Option 5'!CL88*INDEX('Energy Prices'!$F$19:$CR$24,MATCH($B98,'Energy Prices'!$C$19:$C$24,0),MATCH(Calc_Option5!CH$6,'Energy Prices'!$F$11:$CR$11,0))/100000,\"\")","v":""},{"$f":"IFERROR('Data Input - Option 5'!CM88*INDEX('Energy Prices'!$F$19:$CR$24,MATCH($B98,'Energy Prices'!$C$19:$C$24,0),MATCH(Calc_Option5!CI$6,'Energy Prices'!$F$11:$CR$11,0))/100000,\"\")","v":""},{"$f":"IFERROR('Data Input - Option 5'!CN88*INDEX('Energy Prices'!$F$19:$CR$24,MATCH($B98,'Energy Prices'!$C$19:$C$24,0),MATCH(Calc_Option5!CJ$6,'Energy Prices'!$F$11:$CR$11,0))/100000,\"\")","v":""},{"$f":"IFERROR('Data Input - Option 5'!CO88*INDEX('Energy Prices'!$F$19:$CR$24,MATCH($B98,'Energy Prices'!$C$19:$C$24,0),MATCH(Calc_Option5!CK$6,'Energy Prices'!$F$11:$CR$11,0))/100000,\"\")","v":""},{"$f":"IFERROR('Data Input - Option 5'!CP88*INDEX('Energy Prices'!$F$19:$CR$24,MATCH($B98,'Energy Prices'!$C$19:$C$24,0),MATCH(Calc_Option5!CL$6,'Energy Prices'!$F$11:$CR$11,0))/100000,\"\")","v":""},{"$f":"IFERROR('Data Input - Option 5'!CQ88*INDEX('Energy Prices'!$F$19:$CR$24,MATCH($B98,'Energy Prices'!$C$19:$C$24,0),MATCH(Calc_Option5!CM$6,'Energy Prices'!$F$11:$CR$11,0))/100000,\"\")","v":""},{"$f":"IFERROR('Data Input - Option 5'!CR88*INDEX('Energy Prices'!$F$19:$CR$24,MATCH($B98,'Energy Prices'!$C$19:$C$24,0),MATCH(Calc_Option5!CN$6,'Energy Prices'!$F$11:$CR$11,0))/100000,\"\")","v":""},{"$f":"IFERROR('Data Input - Option 5'!CS88*INDEX('Energy Prices'!$F$19:$CR$24,MATCH($B98,'Energy Prices'!$C$19:$C$24,0),MATCH(Calc_Option5!CO$6,'Energy Prices'!$F$11:$CR$11,0))/100000,\"\")","v":""},{"$f":"IFERROR('Data Input - Option 5'!CT88*INDEX('Energy Prices'!$F$19:$CR$24,MATCH($B98,'Energy Prices'!$C$19:$C$24,0),MATCH(Calc_Option5!CP$6,'Energy Prices'!$F$11:$CR$11,0))/100000,\"\")","v":""},{"$f":"IFERROR('Data Input - Option 5'!CU88*INDEX('Energy Prices'!$F$19:$CR$24,MATCH($B98,'Energy Prices'!$C$19:$C$24,0),MATCH(Calc_Option5!CQ$6,'Energy Prices'!$F$11:$CR$11,0))/100000,\"\")","v":""},{"$f":"IFERROR('Data Input - Option 5'!CV88*INDEX('Energy Prices'!$F$19:$CR$24,MATCH($B98,'Energy Prices'!$C$19:$C$24,0),MATCH(Calc_Option5!CR$6,'Energy Prices'!$F$11:$CR$11,0))/100000,\"\")","v":""},{"$f":"IFERROR('Data Input - Option 5'!CW88*INDEX('Energy Prices'!$F$19:$CR$24,MATCH($B98,'Energy Prices'!$C$19:$C$24,0),MATCH(Calc_Option5!CS$6,'Energy Prices'!$F$11:$CR$11,0))/100000,\"\")","v":""},{"$f":"IFERROR('Data Input - Option 5'!CX88*INDEX('Energy Prices'!$F$19:$CR$24,MATCH($B98,'Energy Prices'!$C$19:$C$24,0),MATCH(Calc_Option5!CT$6,'Energy Prices'!$F$11:$CR$11,0))/100000,\"\")","v":""},{"$f":"IFERROR('Data Input - Option 5'!CY88*INDEX('Energy Prices'!$F$19:$CR$24,MATCH($B98,'Energy Prices'!$C$19:$C$24,0),MATCH(Calc_Option5!CU$6,'Energy Prices'!$F$11:$CR$11,0))/100000,\"\")","v":""},{"$f":"IFERROR('Data Input - Option 5'!CZ88*INDEX('Energy Prices'!$F$19:$CR$24,MATCH($B98,'Energy Prices'!$C$19:$C$24,0),MATCH(Calc_Option5!CV$6,'Energy Prices'!$F$11:$CR$11,0))/100000,\"\")","v":""},{"$f":"IFERROR('Data Input - Option 5'!DA88*INDEX('Energy Prices'!$F$19:$CR$24,MATCH($B98,'Energy Prices'!$C$19:$C$24,0),MATCH(Calc_Option5!CW$6,'Energy Prices'!$F$11:$CR$11,0))/100000,\"\")","v":""},{"$f":"IFERROR('Data Input - Option 5'!DB88*INDEX('Energy Prices'!$F$19:$CR$24,MATCH($B98,'Energy Prices'!$C$19:$C$24,0),MATCH(Calc_Option5!CX$6,'Energy Prices'!$F$11:$CR$11,0))/100000,\"\")","v":""},{"$f":"IFERROR('Data Input - Option 5'!DC88*INDEX('Energy Prices'!$F$19:$CR$24,MATCH($B98,'Energy Prices'!$C$19:$C$24,0),MATCH(Calc_Option5!CY$6,'Energy Prices'!$F$11:$CR$11,0))/100000,\"\")","v":""}]
[null,"Road - Diesel","£000's",{"$f":"IFERROR('Data Input - Option 5'!H89*INDEX('Energy Prices'!$F$19:$CR$24,MATCH($B99,'Energy Prices'!$C$19:$C$24,0),MATCH(Calc_Option5!D$6,'Energy Prices'!$F$11:$CR$11,0))/100000,\"\")","v":0},{"$f":"IFERROR('Data Input - Option 5'!I89*INDEX('Energy Prices'!$F$19:$CR$24,MATCH($B99,'Energy Prices'!$C$19:$C$24,0),MATCH(Calc_Option5!E$6,'Energy Prices'!$F$11:$CR$11,0))/100000,\"\")","v":0},{"$f":"IFERROR('Data Input - Option 5'!J89*INDEX('Energy Prices'!$F$19:$CR$24,MATCH($B99,'Energy Prices'!$C$19:$C$24,0),MATCH(Calc_Option5!F$6,'Energy Prices'!$F$11:$CR$11,0))/100000,\"\")","v":0},{"$f":"IFERROR('Data Input - Option 5'!K89*INDEX('Energy Prices'!$F$19:$CR$24,MATCH($B99,'Energy Prices'!$C$19:$C$24,0),MATCH(Calc_Option5!G$6,'Energy Prices'!$F$11:$CR$11,0))/100000,\"\")","v":0},{"$f":"IFERROR('Data Input - Option 5'!L89*INDEX('Energy Prices'!$F$19:$CR$24,MATCH($B99,'Energy Prices'!$C$19:$C$24,0),MATCH(Calc_Option5!H$6,'Energy Prices'!$F$11:$CR$11,0))/100000,\"\")","v":0},{"$f":"IFERROR('Data Input - Option 5'!M89*INDEX('Energy Prices'!$F$19:$CR$24,MATCH($B99,'Energy Prices'!$C$19:$C$24,0),MATCH(Calc_Option5!I$6,'Energy Prices'!$F$11:$CR$11,0))/100000,\"\")","v":0},{"$f":"IFERROR('Data Input - Option 5'!N89*INDEX('Energy Prices'!$F$19:$CR$24,MATCH($B99,'Energy Prices'!$C$19:$C$24,0),MATCH(Calc_Option5!J$6,'Energy Prices'!$F$11:$CR$11,0))/100000,\"\")","v":0},{"$f":"IFERROR('Data Input - Option 5'!O89*INDEX('Energy Prices'!$F$19:$CR$24,MATCH($B99,'Energy Prices'!$C$19:$C$24,0),MATCH(Calc_Option5!K$6,'Energy Prices'!$F$11:$CR$11,0))/100000,\"\")","v":0},{"$f":"IFERROR('Data Input - Option 5'!P89*INDEX('Energy Prices'!$F$19:$CR$24,MATCH($B99,'Energy Prices'!$C$19:$C$24,0),MATCH(Calc_Option5!L$6,'Energy Prices'!$F$11:$CR$11,0))/100000,\"\")","v":0},{"$f":"IFERROR('Data Input - Option 5'!Q89*INDEX('Energy Prices'!$F$19:$CR$24,MATCH($B99,'Energy Prices'!$C$19:$C$24,0),MATCH(Calc_Option5!M$6,'Energy Prices'!$F$11:$CR$11,0))/100000,\"\")","v":0},{"$f":"IFERROR('Data Input - Option 5'!R89*INDEX('Energy Prices'!$F$19:$CR$24,MATCH($B99,'Energy Prices'!$C$19:$C$24,0),MATCH(Calc_Option5!N$6,'Energy Prices'!$F$11:$CR$11,0))/100000,\"\")","v":0},{"$f":"IFERROR('Data Input - Option 5'!S89*INDEX('Energy Prices'!$F$19:$CR$24,MATCH($B99,'Energy Prices'!$C$19:$C$24,0),MATCH(Calc_Option5!O$6,'Energy Prices'!$F$11:$CR$11,0))/100000,\"\")","v":0},{"$f":"IFERROR('Data Input - Option 5'!T89*INDEX('Energy Prices'!$F$19:$CR$24,MATCH($B99,'Energy Prices'!$C$19:$C$24,0),MATCH(Calc_Option5!P$6,'Energy Prices'!$F$11:$CR$11,0))/100000,\"\")","v":0},{"$f":"IFERROR('Data Input - Option 5'!U89*INDEX('Energy Prices'!$F$19:$CR$24,MATCH($B99,'Energy Prices'!$C$19:$C$24,0),MATCH(Calc_Option5!Q$6,'Energy Prices'!$F$11:$CR$11,0))/100000,\"\")","v":0},{"$f":"IFERROR('Data Input - Option 5'!V89*INDEX('Energy Prices'!$F$19:$CR$24,MATCH($B99,'Energy Prices'!$C$19:$C$24,0),MATCH(Calc_Option5!R$6,'Energy Prices'!$F$11:$CR$11,0))/100000,\"\")","v":0},{"$f":"IFERROR('Data Input - Option 5'!W89*INDEX('Energy Prices'!$F$19:$CR$24,MATCH($B99,'Energy Prices'!$C$19:$C$24,0),MATCH(Calc_Option5!S$6,'Energy Prices'!$F$11:$CR$11,0))/100000,\"\")","v":0},{"$f":"IFERROR('Data Input - Option 5'!X89*INDEX('Energy Prices'!$F$19:$CR$24,MATCH($B99,'Energy Prices'!$C$19:$C$24,0),MATCH(Calc_Option5!T$6,'Energy Prices'!$F$11:$CR$11,0))/100000,\"\")","v":0},{"$f":"IFERROR('Data Input - Option 5'!Y89*INDEX('Energy Prices'!$F$19:$CR$24,MATCH($B99,'Energy Prices'!$C$19:$C$24,0),MATCH(Calc_Option5!U$6,'Energy Prices'!$F$11:$CR$11,0))/100000,\"\")","v":0},{"$f":"IFERROR('Data Input - Option 5'!Z89*INDEX('Energy Prices'!$F$19:$CR$24,MATCH($B99,'Energy Prices'!$C$19:$C$24,0),MATCH(Calc_Option5!V$6,'Energy Prices'!$F$11:$CR$11,0))/100000,\"\")","v":0},{"$f":"IFERROR('Data Input - Option 5'!AA89*INDEX('Energy Prices'!$F$19:$CR$24,MATCH($B99,'Energy Prices'!$C$19:$C$24,0),MATCH(Calc_Option5!W$6,'Energy Prices'!$F$11:$CR$11,0))/100000,\"\")","v":0},{"$f":"IFERROR('Data Input - Option 5'!AB89*INDEX('Energy Prices'!$F$19:$CR$24,MATCH($B99,'Energy Prices'!$C$19:$C$24,0),MATCH(Calc_Option5!X$6,'Energy Prices'!$F$11:$CR$11,0))/100000,\"\")","v":0},{"$f":"IFERROR('Data Input - Option 5'!AC89*INDEX('Energy Prices'!$F$19:$CR$24,MATCH($B99,'Energy Prices'!$C$19:$C$24,0),MATCH(Calc_Option5!Y$6,'Energy Prices'!$F$11:$CR$11,0))/100000,\"\")","v":0},{"$f":"IFERROR('Data Input - Option 5'!AD89*INDEX('Energy Prices'!$F$19:$CR$24,MATCH($B99,'Energy Prices'!$C$19:$C$24,0),MATCH(Calc_Option5!Z$6,'Energy Prices'!$F$11:$CR$11,0))/100000,\"\")","v":0},{"$f":"IFERROR('Data Input - Option 5'!AE89*INDEX('Energy Prices'!$F$19:$CR$24,MATCH($B99,'Energy Prices'!$C$19:$C$24,0),MATCH(Calc_Option5!AA$6,'Energy Prices'!$F$11:$CR$11,0))/100000,\"\")","v":0},{"$f":"IFERROR('Data Input - Option 5'!AF89*INDEX('Energy Prices'!$F$19:$CR$24,MATCH($B99,'Energy Prices'!$C$19:$C$24,0),MATCH(Calc_Option5!AB$6,'Energy Prices'!$F$11:$CR$11,0))/100000,\"\")","v":0},{"$f":"IFERROR('Data Input - Option 5'!AG89*INDEX('Energy Prices'!$F$19:$CR$24,MATCH($B99,'Energy Prices'!$C$19:$C$24,0),MATCH(Calc_Option5!AC$6,'Energy Prices'!$F$11:$CR$11,0))/100000,\"\")","v":0},{"$f":"IFERROR('Data Input - Option 5'!AH89*INDEX('Energy Prices'!$F$19:$CR$24,MATCH($B99,'Energy Prices'!$C$19:$C$24,0),MATCH(Calc_Option5!AD$6,'Energy Prices'!$F$11:$CR$11,0))/100000,\"\")","v":0},{"$f":"IFERROR('Data Input - Option 5'!AI89*INDEX('Energy Prices'!$F$19:$CR$24,MATCH($B99,'Energy Prices'!$C$19:$C$24,0),MATCH(Calc_Option5!AE$6,'Energy Prices'!$F$11:$CR$11,0))/100000,\"\")","v":0},{"$f":"IFERROR('Data Input - Option 5'!AJ89*INDEX('Energy Prices'!$F$19:$CR$24,MATCH($B99,'Energy Prices'!$C$19:$C$24,0),MATCH(Calc_Option5!AF$6,'Energy Prices'!$F$11:$CR$11,0))/100000,\"\")","v":0},{"$f":"IFERROR('Data Input - Option 5'!AK89*INDEX('Energy Prices'!$F$19:$CR$24,MATCH($B99,'Energy Prices'!$C$19:$C$24,0),MATCH(Calc_Option5!AG$6,'Energy Prices'!$F$11:$CR$11,0))/100000,\"\")","v":0},{"$f":"IFERROR('Data Input - Option 5'!AL89*INDEX('Energy Prices'!$F$19:$CR$24,MATCH($B99,'Energy Prices'!$C$19:$C$24,0),MATCH(Calc_Option5!AH$6,'Energy Prices'!$F$11:$CR$11,0))/100000,\"\")","v":0},{"$f":"IFERROR('Data Input - Option 5'!AM89*INDEX('Energy Prices'!$F$19:$CR$24,MATCH($B99,'Energy Prices'!$C$19:$C$24,0),MATCH(Calc_Option5!AI$6,'Energy Prices'!$F$11:$CR$11,0))/100000,\"\")","v":""},{"$f":"IFERROR('Data Input - Option 5'!AN89*INDEX('Energy Prices'!$F$19:$CR$24,MATCH($B99,'Energy Prices'!$C$19:$C$24,0),MATCH(Calc_Option5!AJ$6,'Energy Prices'!$F$11:$CR$11,0))/100000,\"\")","v":""},{"$f":"IFERROR('Data Input - Option 5'!AO89*INDEX('Energy Prices'!$F$19:$CR$24,MATCH($B99,'Energy Prices'!$C$19:$C$24,0),MATCH(Calc_Option5!AK$6,'Energy Prices'!$F$11:$CR$11,0))/100000,\"\")","v":""},{"$f":"IFERROR('Data Input - Option 5'!AP89*INDEX('Energy Prices'!$F$19:$CR$24,MATCH($B99,'Energy Prices'!$C$19:$C$24,0),MATCH(Calc_Option5!AL$6,'Energy Prices'!$F$11:$CR$11,0))/100000,\"\")","v":""},{"$f":"IFERROR('Data Input - Option 5'!AQ89*INDEX('Energy Prices'!$F$19:$CR$24,MATCH($B99,'Energy Prices'!$C$19:$C$24,0),MATCH(Calc_Option5!AM$6,'Energy Prices'!$F$11:$CR$11,0))/100000,\"\")","v":""},{"$f":"IFERROR('Data Input - Option 5'!AR89*INDEX('Energy Prices'!$F$19:$CR$24,MATCH($B99,'Energy Prices'!$C$19:$C$24,0),MATCH(Calc_Option5!AN$6,'Energy Prices'!$F$11:$CR$11,0))/100000,\"\")","v":""},{"$f":"IFERROR('Data Input - Option 5'!AS89*INDEX('Energy Prices'!$F$19:$CR$24,MATCH($B99,'Energy Prices'!$C$19:$C$24,0),MATCH(Calc_Option5!AO$6,'Energy Prices'!$F$11:$CR$11,0))/100000,\"\")","v":""},{"$f":"IFERROR('Data Input - Option 5'!AT89*INDEX('Energy Prices'!$F$19:$CR$24,MATCH($B99,'Energy Prices'!$C$19:$C$24,0),MATCH(Calc_Option5!AP$6,'Energy Prices'!$F$11:$CR$11,0))/100000,\"\")","v":""},{"$f":"IFERROR('Data Input - Option 5'!AU89*INDEX('Energy Prices'!$F$19:$CR$24,MATCH($B99,'Energy Prices'!$C$19:$C$24,0),MATCH(Calc_Option5!AQ$6,'Energy Prices'!$F$11:$CR$11,0))/100000,\"\")","v":""},{"$f":"IFERROR('Data Input - Option 5'!AV89*INDEX('Energy Prices'!$F$19:$CR$24,MATCH($B99,'Energy Prices'!$C$19:$C$24,0),MATCH(Calc_Option5!AR$6,'Energy Prices'!$F$11:$CR$11,0))/100000,\"\")","v":""},{"$f":"IFERROR('Data Input - Option 5'!AW89*INDEX('Energy Prices'!$F$19:$CR$24,MATCH($B99,'Energy Prices'!$C$19:$C$24,0),MATCH(Calc_Option5!AS$6,'Energy Prices'!$F$11:$CR$11,0))/100000,\"\")","v":""},{"$f":"IFERROR('Data Input - Option 5'!AX89*INDEX('Energy Prices'!$F$19:$CR$24,MATCH($B99,'Energy Prices'!$C$19:$C$24,0),MATCH(Calc_Option5!AT$6,'Energy Prices'!$F$11:$CR$11,0))/100000,\"\")","v":""},{"$f":"IFERROR('Data Input - Option 5'!AY89*INDEX('Energy Prices'!$F$19:$CR$24,MATCH($B99,'Energy Prices'!$C$19:$C$24,0),MATCH(Calc_Option5!AU$6,'Energy Prices'!$F$11:$CR$11,0))/100000,\"\")","v":""},{"$f":"IFERROR('Data Input - Option 5'!AZ89*INDEX('Energy Prices'!$F$19:$CR$24,MATCH($B99,'Energy Prices'!$C$19:$C$24,0),MATCH(Calc_Option5!AV$6,'Energy Prices'!$F$11:$CR$11,0))/100000,\"\")","v":""},{"$f":"IFERROR('Data Input - Option 5'!BA89*INDEX('Energy Prices'!$F$19:$CR$24,MATCH($B99,'Energy Prices'!$C$19:$C$24,0),MATCH(Calc_Option5!AW$6,'Energy Prices'!$F$11:$CR$11,0))/100000,\"\")","v":""},{"$f":"IFERROR('Data Input - Option 5'!BB89*INDEX('Energy Prices'!$F$19:$CR$24,MATCH($B99,'Energy Prices'!$C$19:$C$24,0),MATCH(Calc_Option5!AX$6,'Energy Prices'!$F$11:$CR$11,0))/100000,\"\")","v":""},{"$f":"IFERROR('Data Input - Option 5'!BC89*INDEX('Energy Prices'!$F$19:$CR$24,MATCH($B99,'Energy Prices'!$C$19:$C$24,0),MATCH(Calc_Option5!AY$6,'Energy Prices'!$F$11:$CR$11,0))/100000,\"\")","v":""},{"$f":"IFERROR('Data Input - Option 5'!BD89*INDEX('Energy Prices'!$F$19:$CR$24,MATCH($B99,'Energy Prices'!$C$19:$C$24,0),MATCH(Calc_Option5!AZ$6,'Energy Prices'!$F$11:$CR$11,0))/100000,\"\")","v":""},{"$f":"IFERROR('Data Input - Option 5'!BE89*INDEX('Energy Prices'!$F$19:$CR$24,MATCH($B99,'Energy Prices'!$C$19:$C$24,0),MATCH(Calc_Option5!BA$6,'Energy Prices'!$F$11:$CR$11,0))/100000,\"\")","v":""},{"$f":"IFERROR('Data Input - Option 5'!BF89*INDEX('Energy Prices'!$F$19:$CR$24,MATCH($B99,'Energy Prices'!$C$19:$C$24,0),MATCH(Calc_Option5!BB$6,'Energy Prices'!$F$11:$CR$11,0))/100000,\"\")","v":""},{"$f":"IFERROR('Data Input - Option 5'!BG89*INDEX('Energy Prices'!$F$19:$CR$24,MATCH($B99,'Energy Prices'!$C$19:$C$24,0),MATCH(Calc_Option5!BC$6,'Energy Prices'!$F$11:$CR$11,0))/100000,\"\")","v":""},{"$f":"IFERROR('Data Input - Option 5'!BH89*INDEX('Energy Prices'!$F$19:$CR$24,MATCH($B99,'Energy Prices'!$C$19:$C$24,0),MATCH(Calc_Option5!BD$6,'Energy Prices'!$F$11:$CR$11,0))/100000,\"\")","v":""},{"$f":"IFERROR('Data Input - Option 5'!BI89*INDEX('Energy Prices'!$F$19:$CR$24,MATCH($B99,'Energy Prices'!$C$19:$C$24,0),MATCH(Calc_Option5!BE$6,'Energy Prices'!$F$11:$CR$11,0))/100000,\"\")","v":""},{"$f":"IFERROR('Data Input - Option 5'!BJ89*INDEX('Energy Prices'!$F$19:$CR$24,MATCH($B99,'Energy Prices'!$C$19:$C$24,0),MATCH(Calc_Option5!BF$6,'Energy Prices'!$F$11:$CR$11,0))/100000,\"\")","v":""},{"$f":"IFERROR('Data Input - Option 5'!BK89*INDEX('Energy Prices'!$F$19:$CR$24,MATCH($B99,'Energy Prices'!$C$19:$C$24,0),MATCH(Calc_Option5!BG$6,'Energy Prices'!$F$11:$CR$11,0))/100000,\"\")","v":""},{"$f":"IFERROR('Data Input - Option 5'!BL89*INDEX('Energy Prices'!$F$19:$CR$24,MATCH($B99,'Energy Prices'!$C$19:$C$24,0),MATCH(Calc_Option5!BH$6,'Energy Prices'!$F$11:$CR$11,0))/100000,\"\")","v":""},{"$f":"IFERROR('Data Input - Option 5'!BM89*INDEX('Energy Prices'!$F$19:$CR$24,MATCH($B99,'Energy Prices'!$C$19:$C$24,0),MATCH(Calc_Option5!BI$6,'Energy Prices'!$F$11:$CR$11,0))/100000,\"\")","v":""},{"$f":"IFERROR('Data Input - Option 5'!BN89*INDEX('Energy Prices'!$F$19:$CR$24,MATCH($B99,'Energy Prices'!$C$19:$C$24,0),MATCH(Calc_Option5!BJ$6,'Energy Prices'!$F$11:$CR$11,0))/100000,\"\")","v":""},{"$f":"IFERROR('Data Input - Option 5'!BO89*INDEX('Energy Prices'!$F$19:$CR$24,MATCH($B99,'Energy Prices'!$C$19:$C$24,0),MATCH(Calc_Option5!BK$6,'Energy Prices'!$F$11:$CR$11,0))/100000,\"\")","v":""},{"$f":"IFERROR('Data Input - Option 5'!BP89*INDEX('Energy Prices'!$F$19:$CR$24,MATCH($B99,'Energy Prices'!$C$19:$C$24,0),MATCH(Calc_Option5!BL$6,'Energy Prices'!$F$11:$CR$11,0))/100000,\"\")","v":""},{"$f":"IFERROR('Data Input - Option 5'!BQ89*INDEX('Energy Prices'!$F$19:$CR$24,MATCH($B99,'Energy Prices'!$C$19:$C$24,0),MATCH(Calc_Option5!BM$6,'Energy Prices'!$F$11:$CR$11,0))/100000,\"\")","v":""},{"$f":"IFERROR('Data Input - Option 5'!BR89*INDEX('Energy Prices'!$F$19:$CR$24,MATCH($B99,'Energy Prices'!$C$19:$C$24,0),MATCH(Calc_Option5!BN$6,'Energy Prices'!$F$11:$CR$11,0))/100000,\"\")","v":""},{"$f":"IFERROR('Data Input - Option 5'!BS89*INDEX('Energy Prices'!$F$19:$CR$24,MATCH($B99,'Energy Prices'!$C$19:$C$24,0),MATCH(Calc_Option5!BO$6,'Energy Prices'!$F$11:$CR$11,0))/100000,\"\")","v":""},{"$f":"IFERROR('Data Input - Option 5'!BT89*INDEX('Energy Prices'!$F$19:$CR$24,MATCH($B99,'Energy Prices'!$C$19:$C$24,0),MATCH(Calc_Option5!BP$6,'Energy Prices'!$F$11:$CR$11,0))/100000,\"\")","v":""},{"$f":"IFERROR('Data Input - Option 5'!BU89*INDEX('Energy Prices'!$F$19:$CR$24,MATCH($B99,'Energy Prices'!$C$19:$C$24,0),MATCH(Calc_Option5!BQ$6,'Energy Prices'!$F$11:$CR$11,0))/100000,\"\")","v":""},{"$f":"IFERROR('Data Input - Option 5'!BV89*INDEX('Energy Prices'!$F$19:$CR$24,MATCH($B99,'Energy Prices'!$C$19:$C$24,0),MATCH(Calc_Option5!BR$6,'Energy Prices'!$F$11:$CR$11,0))/100000,\"\")","v":""},{"$f":"IFERROR('Data Input - Option 5'!BW89*INDEX('Energy Prices'!$F$19:$CR$24,MATCH($B99,'Energy Prices'!$C$19:$C$24,0),MATCH(Calc_Option5!BS$6,'Energy Prices'!$F$11:$CR$11,0))/100000,\"\")","v":""},{"$f":"IFERROR('Data Input - Option 5'!BX89*INDEX('Energy Prices'!$F$19:$CR$24,MATCH($B99,'Energy Prices'!$C$19:$C$24,0),MATCH(Calc_Option5!BT$6,'Energy Prices'!$F$11:$CR$11,0))/100000,\"\")","v":""},{"$f":"IFERROR('Data Input - Option 5'!BY89*INDEX('Energy Prices'!$F$19:$CR$24,MATCH($B99,'Energy Prices'!$C$19:$C$24,0),MATCH(Calc_Option5!BU$6,'Energy Prices'!$F$11:$CR$11,0))/100000,\"\")","v":""},{"$f":"IFERROR('Data Input - Option 5'!BZ89*INDEX('Energy Prices'!$F$19:$CR$24,MATCH($B99,'Energy Prices'!$C$19:$C$24,0),MATCH(Calc_Option5!BV$6,'Energy Prices'!$F$11:$CR$11,0))/100000,\"\")","v":""},{"$f":"IFERROR('Data Input - Option 5'!CA89*INDEX('Energy Prices'!$F$19:$CR$24,MATCH($B99,'Energy Prices'!$C$19:$C$24,0),MATCH(Calc_Option5!BW$6,'Energy Prices'!$F$11:$CR$11,0))/100000,\"\")","v":""},{"$f":"IFERROR('Data Input - Option 5'!CB89*INDEX('Energy Prices'!$F$19:$CR$24,MATCH($B99,'Energy Prices'!$C$19:$C$24,0),MATCH(Calc_Option5!BX$6,'Energy Prices'!$F$11:$CR$11,0))/100000,\"\")","v":""},{"$f":"IFERROR('Data Input - Option 5'!CC89*INDEX('Energy Prices'!$F$19:$CR$24,MATCH($B99,'Energy Prices'!$C$19:$C$24,0),MATCH(Calc_Option5!BY$6,'Energy Prices'!$F$11:$CR$11,0))/100000,\"\")","v":""},{"$f":"IFERROR('Data Input - Option 5'!CD89*INDEX('Energy Prices'!$F$19:$CR$24,MATCH($B99,'Energy Prices'!$C$19:$C$24,0),MATCH(Calc_Option5!BZ$6,'Energy Prices'!$F$11:$CR$11,0))/100000,\"\")","v":""},{"$f":"IFERROR('Data Input - Option 5'!CE89*INDEX('Energy Prices'!$F$19:$CR$24,MATCH($B99,'Energy Prices'!$C$19:$C$24,0),MATCH(Calc_Option5!CA$6,'Energy Prices'!$F$11:$CR$11,0))/100000,\"\")","v":""},{"$f":"IFERROR('Data Input - Option 5'!CF89*INDEX('Energy Prices'!$F$19:$CR$24,MATCH($B99,'Energy Prices'!$C$19:$C$24,0),MATCH(Calc_Option5!CB$6,'Energy Prices'!$F$11:$CR$11,0))/100000,\"\")","v":""},{"$f":"IFERROR('Data Input - Option 5'!CG89*INDEX('Energy Prices'!$F$19:$CR$24,MATCH($B99,'Energy Prices'!$C$19:$C$24,0),MATCH(Calc_Option5!CC$6,'Energy Prices'!$F$11:$CR$11,0))/100000,\"\")","v":""},{"$f":"IFERROR('Data Input - Option 5'!CH89*INDEX('Energy Prices'!$F$19:$CR$24,MATCH($B99,'Energy Prices'!$C$19:$C$24,0),MATCH(Calc_Option5!CD$6,'Energy Prices'!$F$11:$CR$11,0))/100000,\"\")","v":""},{"$f":"IFERROR('Data Input - Option 5'!CI89*INDEX('Energy Prices'!$F$19:$CR$24,MATCH($B99,'Energy Prices'!$C$19:$C$24,0),MATCH(Calc_Option5!CE$6,'Energy Prices'!$F$11:$CR$11,0))/100000,\"\")","v":""},{"$f":"IFERROR('Data Input - Option 5'!CJ89*INDEX('Energy Prices'!$F$19:$CR$24,MATCH($B99,'Energy Prices'!$C$19:$C$24,0),MATCH(Calc_Option5!CF$6,'Energy Prices'!$F$11:$CR$11,0))/100000,\"\")","v":""},{"$f":"IFERROR('Data Input - Option 5'!CK89*INDEX('Energy Prices'!$F$19:$CR$24,MATCH($B99,'Energy Prices'!$C$19:$C$24,0),MATCH(Calc_Option5!CG$6,'Energy Prices'!$F$11:$CR$11,0))/100000,\"\")","v":""},{"$f":"IFERROR('Data Input - Option 5'!CL89*INDEX('Energy Prices'!$F$19:$CR$24,MATCH($B99,'Energy Prices'!$C$19:$C$24,0),MATCH(Calc_Option5!CH$6,'Energy Prices'!$F$11:$CR$11,0))/100000,\"\")","v":""},{"$f":"IFERROR('Data Input - Option 5'!CM89*INDEX('Energy Prices'!$F$19:$CR$24,MATCH($B99,'Energy Prices'!$C$19:$C$24,0),MATCH(Calc_Option5!CI$6,'Energy Prices'!$F$11:$CR$11,0))/100000,\"\")","v":""},{"$f":"IFERROR('Data Input - Option 5'!CN89*INDEX('Energy Prices'!$F$19:$CR$24,MATCH($B99,'Energy Prices'!$C$19:$C$24,0),MATCH(Calc_Option5!CJ$6,'Energy Prices'!$F$11:$CR$11,0))/100000,\"\")","v":""},{"$f":"IFERROR('Data Input - Option 5'!CO89*INDEX('Energy Prices'!$F$19:$CR$24,MATCH($B99,'Energy Prices'!$C$19:$C$24,0),MATCH(Calc_Option5!CK$6,'Energy Prices'!$F$11:$CR$11,0))/100000,\"\")","v":""},{"$f":"IFERROR('Data Input - Option 5'!CP89*INDEX('Energy Prices'!$F$19:$CR$24,MATCH($B99,'Energy Prices'!$C$19:$C$24,0),MATCH(Calc_Option5!CL$6,'Energy Prices'!$F$11:$CR$11,0))/100000,\"\")","v":""},{"$f":"IFERROR('Data Input - Option 5'!CQ89*INDEX('Energy Prices'!$F$19:$CR$24,MATCH($B99,'Energy Prices'!$C$19:$C$24,0),MATCH(Calc_Option5!CM$6,'Energy Prices'!$F$11:$CR$11,0))/100000,\"\")","v":""},{"$f":"IFERROR('Data Input - Option 5'!CR89*INDEX('Energy Prices'!$F$19:$CR$24,MATCH($B99,'Energy Prices'!$C$19:$C$24,0),MATCH(Calc_Option5!CN$6,'Energy Prices'!$F$11:$CR$11,0))/100000,\"\")","v":""},{"$f":"IFERROR('Data Input - Option 5'!CS89*INDEX('Energy Prices'!$F$19:$CR$24,MATCH($B99,'Energy Prices'!$C$19:$C$24,0),MATCH(Calc_Option5!CO$6,'Energy Prices'!$F$11:$CR$11,0))/100000,\"\")","v":""},{"$f":"IFERROR('Data Input - Option 5'!CT89*INDEX('Energy Prices'!$F$19:$CR$24,MATCH($B99,'Energy Prices'!$C$19:$C$24,0),MATCH(Calc_Option5!CP$6,'Energy Prices'!$F$11:$CR$11,0))/100000,\"\")","v":""},{"$f":"IFERROR('Data Input - Option 5'!CU89*INDEX('Energy Prices'!$F$19:$CR$24,MATCH($B99,'Energy Prices'!$C$19:$C$24,0),MATCH(Calc_Option5!CQ$6,'Energy Prices'!$F$11:$CR$11,0))/100000,\"\")","v":""},{"$f":"IFERROR('Data Input - Option 5'!CV89*INDEX('Energy Prices'!$F$19:$CR$24,MATCH($B99,'Energy Prices'!$C$19:$C$24,0),MATCH(Calc_Option5!CR$6,'Energy Prices'!$F$11:$CR$11,0))/100000,\"\")","v":""},{"$f":"IFERROR('Data Input - Option 5'!CW89*INDEX('Energy Prices'!$F$19:$CR$24,MATCH($B99,'Energy Prices'!$C$19:$C$24,0),MATCH(Calc_Option5!CS$6,'Energy Prices'!$F$11:$CR$11,0))/100000,\"\")","v":""},{"$f":"IFERROR('Data Input - Option 5'!CX89*INDEX('Energy Prices'!$F$19:$CR$24,MATCH($B99,'Energy Prices'!$C$19:$C$24,0),MATCH(Calc_Option5!CT$6,'Energy Prices'!$F$11:$CR$11,0))/100000,\"\")","v":""},{"$f":"IFERROR('Data Input - Option 5'!CY89*INDEX('Energy Prices'!$F$19:$CR$24,MATCH($B99,'Energy Prices'!$C$19:$C$24,0),MATCH(Calc_Option5!CU$6,'Energy Prices'!$F$11:$CR$11,0))/100000,\"\")","v":""},{"$f":"IFERROR('Data Input - Option 5'!CZ89*INDEX('Energy Prices'!$F$19:$CR$24,MATCH($B99,'Energy Prices'!$C$19:$C$24,0),MATCH(Calc_Option5!CV$6,'Energy Prices'!$F$11:$CR$11,0))/100000,\"\")","v":""},{"$f":"IFERROR('Data Input - Option 5'!DA89*INDEX('Energy Prices'!$F$19:$CR$24,MATCH($B99,'Energy Prices'!$C$19:$C$24,0),MATCH(Calc_Option5!CW$6,'Energy Prices'!$F$11:$CR$11,0))/100000,\"\")","v":""},{"$f":"IFERROR('Data Input - Option 5'!DB89*INDEX('Energy Prices'!$F$19:$CR$24,MATCH($B99,'Energy Prices'!$C$19:$C$24,0),MATCH(Calc_Option5!CX$6,'Energy Prices'!$F$11:$CR$11,0))/100000,\"\")","v":""},{"$f":"IFERROR('Data Input - Option 5'!DC89*INDEX('Energy Prices'!$F$19:$CR$24,MATCH($B99,'Energy Prices'!$C$19:$C$24,0),MATCH(Calc_Option5!CY$6,'Energy Prices'!$F$11:$CR$11,0))/100000,\"\")","v":""}]
[]
[null,"Discounted energy","£000's",{"$f":"SUM(D94:D99)*D$7","v":0},{"$f":"SUM(E94:E99)*E$7","v":0},0,0,0,0,0,0,0,0,0,0,0,0,0,0,0,0,0,0,0,0,0,0,0,0,0,0,0,0,0,0,0,0,0,0,0,0,0,0,0,0,0,0,0,0,0,0,0,0,0,0,0,0,0,0,0,0,0,0,{"$f":"SUM(BL94:BL99)*BL$7","v":0},0,0,0,0,0,0,0,0,0,0,0,0,0,0,0,0,0,0,0,0,0,0,0,0,0,0,0,0,0,0,0,0,0,0,0,0,0,0,0]
[]
[null,"Air pollutant emissions- value"]
[null,{"$f":"B61","v":0},"£000's",{"$f":"IFERROR(IF(OR($C$110=FALSE,LEFT($B104,3)<>\"NOX\"),D53*INDEX('Damage costs'!$W$16:$W$43,MATCH($B104,'Damage costs'!$C$16:$C$43,0))/1000,D53*INDEX('Damage costs'!$AA$16:$AA$43,MATCH($B104,'Damage costs'!$C$16:$C$43,0))/1000),\"\")","v":""},{"$f":"IFERROR(IF(OR($C$110=FALSE,LEFT($B104,3)<>\"NOX\"),E53*INDEX('Damage costs'!$W$16:$W$43,MATCH($B104,'Damage costs'!$C$16:$C$43,0))/1000,E53*INDEX('Damage costs'!$AA$16:$AA$43,MATCH($B104,'Damage costs'!$C$16:$C$43,0))/1000),\"\")","v":""},{"$f":"IFERROR(IF(OR($C$110=FALSE,LEFT($B104,3)<>\"NOX\"),F53*INDEX('Damage costs'!$W$16:$W$43,MATCH($B104,'Damage costs'!$C$16:$C$43,0))/1000,F53*INDEX('Damage costs'!$AA$16:$AA$43,MATCH($B104,'Damage costs'!$C$16:$C$43,0))/1000),\"\")","v":""},{"$f":"IFERROR(IF(OR($C$110=FALSE,LEFT($B104,3)<>\"NOX\"),G53*INDEX('Damage costs'!$W$16:$W$43,MATCH($B104,'Damage costs'!$C$16:$C$43,0))/1000,G53*INDEX('Damage costs'!$AA$16:$AA$43,MATCH($B104,'Damage costs'!$C$16:$C$43,0))/1000),\"\")","v":""},{"$f":"IFERROR(IF(OR($C$110=FALSE,LEFT($B104,3)<>\"NOX\"),H53*INDEX('Damage costs'!$W$16:$W$43,MATCH($B104,'Damage costs'!$C$16:$C$43,0))/1000,H53*INDEX('Damage costs'!$AA$16:$AA$43,MATCH($B104,'Damage costs'!$C$16:$C$43,0))/1000),\"\")","v":""},{"$f":"IFERROR(IF(OR($C$110=FALSE,LEFT($B104,3)<>\"NOX\"),I53*INDEX('Damage costs'!$W$16:$W$43,MATCH($B104,'Damage costs'!$C$16:$C$43,0))/1000,I53*INDEX('Damage costs'!$AA$16:$AA$43,MATCH($B104,'Damage costs'!$C$16:$C$43,0))/1000),\"\")","v":""},{"$f":"IFERROR(IF(OR($C$110=FALSE,LEFT($B104,3)<>\"NOX\"),J53*INDEX('Damage costs'!$W$16:$W$43,MATCH($B104,'Damage costs'!$C$16:$C$43,0))/1000,J53*INDEX('Damage costs'!$AA$16:$AA$43,MATCH($B104,'Damage costs'!$C$16:$C$43,0))/1000),\"\")","v":""},{"$f":"IFERROR(IF(OR($C$110=FALSE,LEFT($B104,3)<>\"NOX\"),K53*INDEX('Damage costs'!$W$16:$W$43,MATCH($B104,'Damage costs'!$C$16:$C$43,0))/1000,K53*INDEX('Damage costs'!$AA$16:$AA$43,MATCH($B104,'Damage costs'!$C$16:$C$43,0))/1000),\"\")","v":""},{"$f":"IFERROR(IF(OR($C$110=FALSE,LEFT($B104,3)<>\"NOX\"),L53*INDEX('Damage costs'!$W$16:$W$43,MATCH($B104,'Damage costs'!$C$16:$C$43,0))/1000,L53*INDEX('Damage costs'!$AA$16:$AA$43,MATCH($B104,'Damage costs'!$C$16:$C$43,0))/1000),\"\")","v":""},{"$f":"IFERROR(IF(OR($C$110=FALSE,LEFT($B104,3)<>\"NOX\"),M53*INDEX('Damage costs'!$W$16:$W$43,MATCH($B104,'Damage costs'!$C$16:$C$43,0))/1000,M53*INDEX('Damage costs'!$AA$16:$AA$43,MATCH($B104,'Damage costs'!$C$16:$C$43,0))/1000),\"\")","v":""},{"$f":"IFERROR(IF(OR($C$110=FALSE,LEFT($B104,3)<>\"NOX\"),N53*INDEX('Damage costs'!$W$16:$W$43,MATCH($B104,'Damage costs'!$C$16:$C$43,0))/1000,N53*INDEX('Damage costs'!$AA$16:$AA$43,MATCH($B104,'Damage costs'!$C$16:$C$43,0))/1000),\"\")","v":""},{"$f":"IFERROR(IF(OR($C$110=FALSE,LEFT($B104,3)<>\"NOX\"),O53*INDEX('Damage costs'!$W$16:$W$43,MATCH($B104,'Damage costs'!$C$16:$C$43,0))/1000,O53*INDEX('Damage costs'!$AA$16:$AA$43,MATCH($B104,'Damage costs'!$C$16:$C$43,0))/1000),\"\")","v":""},{"$f":"IFERROR(IF(OR($C$110=FALSE,LEFT($B104,3)<>\"NOX\"),P53*INDEX('Damage costs'!$W$16:$W$43,MATCH($B104,'Damage costs'!$C$16:$C$43,0))/1000,P53*INDEX('Damage costs'!$AA$16:$AA$43,MATCH($B104,'Damage costs'!$C$16:$C$43,0))/1000),\"\")","v":""},{"$f":"IFERROR(IF(OR($C$110=FALSE,LEFT($B104,3)<>\"NOX\"),Q53*INDEX('Damage costs'!$W$16:$W$43,MATCH($B104,'Damage costs'!$C$16:$C$43,0))/1000,Q53*INDEX('Damage costs'!$AA$16:$AA$43,MATCH($B104,'Damage costs'!$C$16:$C$43,0))/1000),\"\")","v":""},{"$f":"IFERROR(IF(OR($C$110=FALSE,LEFT($B104,3)<>\"NOX\"),R53*INDEX('Damage costs'!$W$16:$W$43,MATCH($B104,'Damage costs'!$C$16:$C$43,0))/1000,R53*INDEX('Damage costs'!$AA$16:$AA$43,MATCH($B104,'Damage costs'!$C$16:$C$43,0))/1000),\"\")","v":""},{"$f":"IFERROR(IF(OR($C$110=FALSE,LEFT($B104,3)<>\"NOX\"),S53*INDEX('Damage costs'!$W$16:$W$43,MATCH($B104,'Damage costs'!$C$16:$C$43,0))/1000,S53*INDEX('Damage costs'!$AA$16:$AA$43,MATCH($B104,'Damage costs'!$C$16:$C$43,0))/1000),\"\")","v":""},{"$f":"IFERROR(IF(OR($C$110=FALSE,LEFT($B104,3)<>\"NOX\"),T53*INDEX('Damage costs'!$W$16:$W$43,MATCH($B104,'Damage costs'!$C$16:$C$43,0))/1000,T53*INDEX('Damage costs'!$AA$16:$AA$43,MATCH($B104,'Damage costs'!$C$16:$C$43,0))/1000),\"\")","v":""},{"$f":"IFERROR(IF(OR($C$110=FALSE,LEFT($B104,3)<>\"NOX\"),U53*INDEX('Damage costs'!$W$16:$W$43,MATCH($B104,'Damage costs'!$C$16:$C$43,0))/1000,U53*INDEX('Damage costs'!$AA$16:$AA$43,MATCH($B104,'Damage costs'!$C$16:$C$43,0))/1000),\"\")","v":""},{"$f":"IFERROR(IF(OR($C$110=FALSE,LEFT($B104,3)<>\"NOX\"),V53*INDEX('Damage costs'!$W$16:$W$43,MATCH($B104,'Damage costs'!$C$16:$C$43,0))/1000,V53*INDEX('Damage costs'!$AA$16:$AA$43,MATCH($B104,'Damage costs'!$C$16:$C$43,0))/1000),\"\")","v":""},{"$f":"IFERROR(IF(OR($C$110=FALSE,LEFT($B104,3)<>\"NOX\"),W53*INDEX('Damage costs'!$W$16:$W$43,MATCH($B104,'Damage costs'!$C$16:$C$43,0))/1000,W53*INDEX('Damage costs'!$AA$16:$AA$43,MATCH($B104,'Damage costs'!$C$16:$C$43,0))/1000),\"\")","v":""},{"$f":"IFERROR(IF(OR($C$110=FALSE,LEFT($B104,3)<>\"NOX\"),X53*INDEX('Damage costs'!$W$16:$W$43,MATCH($B104,'Damage costs'!$C$16:$C$43,0))/1000,X53*INDEX('Damage costs'!$AA$16:$AA$43,MATCH($B104,'Damage costs'!$C$16:$C$43,0))/1000),\"\")","v":""},{"$f":"IFERROR(IF(OR($C$110=FALSE,LEFT($B104,3)<>\"NOX\"),Y53*INDEX('Damage costs'!$W$16:$W$43,MATCH($B104,'Damage costs'!$C$16:$C$43,0))/1000,Y53*INDEX('Damage costs'!$AA$16:$AA$43,MATCH($B104,'Damage costs'!$C$16:$C$43,0))/1000),\"\")","v":""},{"$f":"IFERROR(IF(OR($C$110=FALSE,LEFT($B104,3)<>\"NOX\"),Z53*INDEX('Damage costs'!$W$16:$W$43,MATCH($B104,'Damage costs'!$C$16:$C$43,0))/1000,Z53*INDEX('Damage costs'!$AA$16:$AA$43,MATCH($B104,'Damage costs'!$C$16:$C$43,0))/1000),\"\")","v":""},{"$f":"IFERROR(IF(OR($C$110=FALSE,LEFT($B104,3)<>\"NOX\"),AA53*INDEX('Damage costs'!$W$16:$W$43,MATCH($B104,'Damage costs'!$C$16:$C$43,0))/1000,AA53*INDEX('Damage costs'!$AA$16:$AA$43,MATCH($B104,'Damage costs'!$C$16:$C$43,0))/1000),\"\")","v":""},{"$f":"IFERROR(IF(OR($C$110=FALSE,LEFT($B104,3)<>\"NOX\"),AB53*INDEX('Damage costs'!$W$16:$W$43,MATCH($B104,'Damage costs'!$C$16:$C$43,0))/1000,AB53*INDEX('Damage costs'!$AA$16:$AA$43,MATCH($B104,'Damage costs'!$C$16:$C$43,0))/1000),\"\")","v":""},{"$f":"IFERROR(IF(OR($C$110=FALSE,LEFT($B104,3)<>\"NOX\"),AC53*INDEX('Damage costs'!$W$16:$W$43,MATCH($B104,'Damage costs'!$C$16:$C$43,0))/1000,AC53*INDEX('Damage costs'!$AA$16:$AA$43,MATCH($B104,'Damage costs'!$C$16:$C$43,0))/1000),\"\")","v":""},{"$f":"IFERROR(IF(OR($C$110=FALSE,LEFT($B104,3)<>\"NOX\"),AD53*INDEX('Damage costs'!$W$16:$W$43,MATCH($B104,'Damage costs'!$C$16:$C$43,0))/1000,AD53*INDEX('Damage costs'!$AA$16:$AA$43,MATCH($B104,'Damage costs'!$C$16:$C$43,0))/1000),\"\")","v":""},{"$f":"IFERROR(IF(OR($C$110=FALSE,LEFT($B104,3)<>\"NOX\"),AE53*INDEX('Damage costs'!$W$16:$W$43,MATCH($B104,'Damage costs'!$C$16:$C$43,0))/1000,AE53*INDEX('Damage costs'!$AA$16:$AA$43,MATCH($B104,'Damage costs'!$C$16:$C$43,0))/1000),\"\")","v":""},{"$f":"IFERROR(IF(OR($C$110=FALSE,LEFT($B104,3)<>\"NOX\"),AF53*INDEX('Damage costs'!$W$16:$W$43,MATCH($B104,'Damage costs'!$C$16:$C$43,0))/1000,AF53*INDEX('Damage costs'!$AA$16:$AA$43,MATCH($B104,'Damage costs'!$C$16:$C$43,0))/1000),\"\")","v":""},{"$f":"IFERROR(IF(OR($C$110=FALSE,LEFT($B104,3)<>\"NOX\"),AG53*INDEX('Damage costs'!$W$16:$W$43,MATCH($B104,'Damage costs'!$C$16:$C$43,0))/1000,AG53*INDEX('Damage costs'!$AA$16:$AA$43,MATCH($B104,'Damage costs'!$C$16:$C$43,0))/1000),\"\")","v":""},{"$f":"IFERROR(IF(OR($C$110=FALSE,LEFT($B104,3)<>\"NOX\"),AH53*INDEX('Damage costs'!$W$16:$W$43,MATCH($B104,'Damage costs'!$C$16:$C$43,0))/1000,AH53*INDEX('Damage costs'!$AA$16:$AA$43,MATCH($B104,'Damage costs'!$C$16:$C$43,0))/1000),\"\")","v":""},{"$f":"IFERROR(IF(OR($C$110=FALSE,LEFT($B104,3)<>\"NOX\"),AI53*INDEX('Damage costs'!$W$16:$W$43,MATCH($B104,'Damage costs'!$C$16:$C$43,0))/1000,AI53*INDEX('Damage costs'!$AA$16:$AA$43,MATCH($B104,'Damage costs'!$C$16:$C$43,0))/1000),\"\")","v":""},{"$f":"IFERROR(IF(OR($C$110=FALSE,LEFT($B104,3)<>\"NOX\"),AJ53*INDEX('Damage costs'!$W$16:$W$43,MATCH($B104,'Damage costs'!$C$16:$C$43,0))/1000,AJ53*INDEX('Damage costs'!$AA$16:$AA$43,MATCH($B104,'Damage costs'!$C$16:$C$43,0))/1000),\"\")","v":""},{"$f":"IFERROR(IF(OR($C$110=FALSE,LEFT($B104,3)<>\"NOX\"),AK53*INDEX('Damage costs'!$W$16:$W$43,MATCH($B104,'Damage costs'!$C$16:$C$43,0))/1000,AK53*INDEX('Damage costs'!$AA$16:$AA$43,MATCH($B104,'Damage costs'!$C$16:$C$43,0))/1000),\"\")","v":""},{"$f":"IFERROR(IF(OR($C$110=FALSE,LEFT($B104,3)<>\"NOX\"),AL53*INDEX('Damage costs'!$W$16:$W$43,MATCH($B104,'Damage costs'!$C$16:$C$43,0))/1000,AL53*INDEX('Damage costs'!$AA$16:$AA$43,MATCH($B104,'Damage costs'!$C$16:$C$43,0))/1000),\"\")","v":""},{"$f":"IFERROR(IF(OR($C$110=FALSE,LEFT($B104,3)<>\"NOX\"),AM53*INDEX('Damage costs'!$W$16:$W$43,MATCH($B104,'Damage costs'!$C$16:$C$43,0))/1000,AM53*INDEX('Damage costs'!$AA$16:$AA$43,MATCH($B104,'Damage costs'!$C$16:$C$43,0))/1000),\"\")","v":""},{"$f":"IFERROR(IF(OR($C$110=FALSE,LEFT($B104,3)<>\"NOX\"),AN53*INDEX('Damage costs'!$W$16:$W$43,MATCH($B104,'Damage costs'!$C$16:$C$43,0))/1000,AN53*INDEX('Damage costs'!$AA$16:$AA$43,MATCH($B104,'Damage costs'!$C$16:$C$43,0))/1000),\"\")","v":""},{"$f":"IFERROR(IF(OR($C$110=FALSE,LEFT($B104,3)<>\"NOX\"),AO53*INDEX('Damage costs'!$W$16:$W$43,MATCH($B104,'Damage costs'!$C$16:$C$43,0))/1000,AO53*INDEX('Damage costs'!$AA$16:$AA$43,MATCH($B104,'Damage costs'!$C$16:$C$43,0))/1000),\"\")","v":""},{"$f":"IFERROR(IF(OR($C$110=FALSE,LEFT($B104,3)<>\"NOX\"),AP53*INDEX('Damage costs'!$W$16:$W$43,MATCH($B104,'Damage costs'!$C$16:$C$43,0))/1000,AP53*INDEX('Damage costs'!$AA$16:$AA$43,MATCH($B104,'Damage costs'!$C$16:$C$43,0))/1000),\"\")","v":""},{"$f":"IFERROR(IF(OR($C$110=FALSE,LEFT($B104,3)<>\"NOX\"),AQ53*INDEX('Damage costs'!$W$16:$W$43,MATCH($B104,'Damage costs'!$C$16:$C$43,0))/1000,AQ53*INDEX('Damage costs'!$AA$16:$AA$43,MATCH($B104,'Damage costs'!$C$16:$C$43,0))/1000),\"\")","v":""},{"$f":"IFERROR(IF(OR($C$110=FALSE,LEFT($B104,3)<>\"NOX\"),AR53*INDEX('Damage costs'!$W$16:$W$43,MATCH($B104,'Damage costs'!$C$16:$C$43,0))/1000,AR53*INDEX('Damage costs'!$AA$16:$AA$43,MATCH($B104,'Damage costs'!$C$16:$C$43,0))/1000),\"\")","v":""},{"$f":"IFERROR(IF(OR($C$110=FALSE,LEFT($B104,3)<>\"NOX\"),AS53*INDEX('Damage costs'!$W$16:$W$43,MATCH($B104,'Damage costs'!$C$16:$C$43,0))/1000,AS53*INDEX('Damage costs'!$AA$16:$AA$43,MATCH($B104,'Damage costs'!$C$16:$C$43,0))/1000),\"\")","v":""},{"$f":"IFERROR(IF(OR($C$110=FALSE,LEFT($B104,3)<>\"NOX\"),AT53*INDEX('Damage costs'!$W$16:$W$43,MATCH($B104,'Damage costs'!$C$16:$C$43,0))/1000,AT53*INDEX('Damage costs'!$AA$16:$AA$43,MATCH($B104,'Damage costs'!$C$16:$C$43,0))/1000),\"\")","v":""},{"$f":"IFERROR(IF(OR($C$110=FALSE,LEFT($B104,3)<>\"NOX\"),AU53*INDEX('Damage costs'!$W$16:$W$43,MATCH($B104,'Damage costs'!$C$16:$C$43,0))/1000,AU53*INDEX('Damage costs'!$AA$16:$AA$43,MATCH($B104,'Damage costs'!$C$16:$C$43,0))/1000),\"\")","v":""},{"$f":"IFERROR(IF(OR($C$110=FALSE,LEFT($B104,3)<>\"NOX\"),AV53*INDEX('Damage costs'!$W$16:$W$43,MATCH($B104,'Damage costs'!$C$16:$C$43,0))/1000,AV53*INDEX('Damage costs'!$AA$16:$AA$43,MATCH($B104,'Damage costs'!$C$16:$C$43,0))/1000),\"\")","v":""},{"$f":"IFERROR(IF(OR($C$110=FALSE,LEFT($B104,3)<>\"NOX\"),AW53*INDEX('Damage costs'!$W$16:$W$43,MATCH($B104,'Damage costs'!$C$16:$C$43,0))/1000,AW53*INDEX('Damage costs'!$AA$16:$AA$43,MATCH($B104,'Damage costs'!$C$16:$C$43,0))/1000),\"\")","v":""},{"$f":"IFERROR(IF(OR($C$110=FALSE,LEFT($B104,3)<>\"NOX\"),AX53*INDEX('Damage costs'!$W$16:$W$43,MATCH($B104,'Damage costs'!$C$16:$C$43,0))/1000,AX53*INDEX('Damage costs'!$AA$16:$AA$43,MATCH($B104,'Damage costs'!$C$16:$C$43,0))/1000),\"\")","v":""},{"$f":"IFERROR(IF(OR($C$110=FALSE,LEFT($B104,3)<>\"NOX\"),AY53*INDEX('Damage costs'!$W$16:$W$43,MATCH($B104,'Damage costs'!$C$16:$C$43,0))/1000,AY53*INDEX('Damage costs'!$AA$16:$AA$43,MATCH($B104,'Damage costs'!$C$16:$C$43,0))/1000),\"\")","v":""},{"$f":"IFERROR(IF(OR($C$110=FALSE,LEFT($B104,3)<>\"NOX\"),AZ53*INDEX('Damage costs'!$W$16:$W$43,MATCH($B104,'Damage costs'!$C$16:$C$43,0))/1000,AZ53*INDEX('Damage costs'!$AA$16:$AA$43,MATCH($B104,'Damage costs'!$C$16:$C$43,0))/1000),\"\")","v":""},{"$f":"IFERROR(IF(OR($C$110=FALSE,LEFT($B104,3)<>\"NOX\"),BA53*INDEX('Damage costs'!$W$16:$W$43,MATCH($B104,'Damage costs'!$C$16:$C$43,0))/1000,BA53*INDEX('Damage costs'!$AA$16:$AA$43,MATCH($B104,'Damage costs'!$C$16:$C$43,0))/1000),\"\")","v":""},{"$f":"IFERROR(IF(OR($C$110=FALSE,LEFT($B104,3)<>\"NOX\"),BB53*INDEX('Damage costs'!$W$16:$W$43,MATCH($B104,'Damage costs'!$C$16:$C$43,0))/1000,BB53*INDEX('Damage costs'!$AA$16:$AA$43,MATCH($B104,'Damage costs'!$C$16:$C$43,0))/1000),\"\")","v":""},{"$f":"IFERROR(IF(OR($C$110=FALSE,LEFT($B104,3)<>\"NOX\"),BC53*INDEX('Damage costs'!$W$16:$W$43,MATCH($B104,'Damage costs'!$C$16:$C$43,0))/1000,BC53*INDEX('Damage costs'!$AA$16:$AA$43,MATCH($B104,'Damage costs'!$C$16:$C$43,0))/1000),\"\")","v":""},{"$f":"IFERROR(IF(OR($C$110=FALSE,LEFT($B104,3)<>\"NOX\"),BD53*INDEX('Damage costs'!$W$16:$W$43,MATCH($B104,'Damage costs'!$C$16:$C$43,0))/1000,BD53*INDEX('Damage costs'!$AA$16:$AA$43,MATCH($B104,'Damage costs'!$C$16:$C$43,0))/1000),\"\")","v":""},{"$f":"IFERROR(IF(OR($C$110=FALSE,LEFT($B104,3)<>\"NOX\"),BE53*INDEX('Damage costs'!$W$16:$W$43,MATCH($B104,'Damage costs'!$C$16:$C$43,0))/1000,BE53*INDEX('Damage costs'!$AA$16:$AA$43,MATCH($B104,'Damage costs'!$C$16:$C$43,0))/1000),\"\")","v":""},{"$f":"IFERROR(IF(OR($C$110=FALSE,LEFT($B104,3)<>\"NOX\"),BF53*INDEX('Damage costs'!$W$16:$W$43,MATCH($B104,'Damage costs'!$C$16:$C$43,0))/1000,BF53*INDEX('Damage costs'!$AA$16:$AA$43,MATCH($B104,'Damage costs'!$C$16:$C$43,0))/1000),\"\")","v":""},{"$f":"IFERROR(IF(OR($C$110=FALSE,LEFT($B104,3)<>\"NOX\"),BG53*INDEX('Damage costs'!$W$16:$W$43,MATCH($B104,'Damage costs'!$C$16:$C$43,0))/1000,BG53*INDEX('Damage costs'!$AA$16:$AA$43,MATCH($B104,'Damage costs'!$C$16:$C$43,0))/1000),\"\")","v":""},{"$f":"IFERROR(IF(OR($C$110=FALSE,LEFT($B104,3)<>\"NOX\"),BH53*INDEX('Damage costs'!$W$16:$W$43,MATCH($B104,'Damage costs'!$C$16:$C$43,0))/1000,BH53*INDEX('Damage costs'!$AA$16:$AA$43,MATCH($B104,'Damage costs'!$C$16:$C$43,0))/1000),\"\")","v":""},{"$f":"IFERROR(IF(OR($C$110=FALSE,LEFT($B104,3)<>\"NOX\"),BI53*INDEX('Damage costs'!$W$16:$W$43,MATCH($B104,'Damage costs'!$C$16:$C$43,0))/1000,BI53*INDEX('Damage costs'!$AA$16:$AA$43,MATCH($B104,'Damage costs'!$C$16:$C$43,0))/1000),\"\")","v":""},{"$f":"IFERROR(IF(OR($C$110=FALSE,LEFT($B104,3)<>\"NOX\"),BJ53*INDEX('Damage costs'!$W$16:$W$43,MATCH($B104,'Damage costs'!$C$16:$C$43,0))/1000,BJ53*INDEX('Damage costs'!$AA$16:$AA$43,MATCH($B104,'Damage costs'!$C$16:$C$43,0))/1000),\"\")","v":""},{"$f":"IFERROR(IF(OR($C$110=FALSE,LEFT($B104,3)<>\"NOX\"),BK53*INDEX('Damage costs'!$W$16:$W$43,MATCH($B104,'Damage costs'!$C$16:$C$43,0))/1000,BK53*INDEX('Damage costs'!$AA$16:$AA$43,MATCH($B104,'Damage costs'!$C$16:$C$43,0))/1000),\"\")","v":""},{"$f":"IFERROR(IF(OR($C$110=FALSE,LEFT($B104,3)<>\"NOX\"),BL53*INDEX('Damage costs'!$W$16:$W$43,MATCH($B104,'Damage costs'!$C$16:$C$43,0))/1000,BL53*INDEX('Damage costs'!$AA$16:$AA$43,MATCH($B104,'Damage costs'!$C$16:$C$43,0))/1000),\"\")","v":""},{"$f":"IFERROR(IF(OR($C$110=FALSE,LEFT($B104,3)<>\"NOX\"),BM53*INDEX('Damage costs'!$W$16:$W$43,MATCH($B104,'Damage costs'!$C$16:$C$43,0))/1000,BM53*INDEX('Damage costs'!$AA$16:$AA$43,MATCH($B104,'Damage costs'!$C$16:$C$43,0))/1000),\"\")","v":""},{"$f":"IFERROR(IF(OR($C$110=FALSE,LEFT($B104,3)<>\"NOX\"),BN53*INDEX('Damage costs'!$W$16:$W$43,MATCH($B104,'Damage costs'!$C$16:$C$43,0))/1000,BN53*INDEX('Damage costs'!$AA$16:$AA$43,MATCH($B104,'Damage costs'!$C$16:$C$43,0))/1000),\"\")","v":""},{"$f":"IFERROR(IF(OR($C$110=FALSE,LEFT($B104,3)<>\"NOX\"),BO53*INDEX('Damage costs'!$W$16:$W$43,MATCH($B104,'Damage costs'!$C$16:$C$43,0))/1000,BO53*INDEX('Damage costs'!$AA$16:$AA$43,MATCH($B104,'Damage costs'!$C$16:$C$43,0))/1000),\"\")","v":""},{"$f":"IFERROR(IF(OR($C$110=FALSE,LEFT($B104,3)<>\"NOX\"),BP53*INDEX('Damage costs'!$W$16:$W$43,MATCH($B104,'Damage costs'!$C$16:$C$43,0))/1000,BP53*INDEX('Damage costs'!$AA$16:$AA$43,MATCH($B104,'Damage costs'!$C$16:$C$43,0))/1000),\"\")","v":""},{"$f":"IFERROR(IF(OR($C$110=FALSE,LEFT($B104,3)<>\"NOX\"),BQ53*INDEX('Damage costs'!$W$16:$W$43,MATCH($B104,'Damage costs'!$C$16:$C$43,0))/1000,BQ53*INDEX('Damage costs'!$AA$16:$AA$43,MATCH($B104,'Damage costs'!$C$16:$C$43,0))/1000),\"\")","v":""},{"$f":"IFERROR(IF(OR($C$110=FALSE,LEFT($B104,3)<>\"NOX\"),BR53*INDEX('Damage costs'!$W$16:$W$43,MATCH($B104,'Damage costs'!$C$16:$C$43,0))/1000,BR53*INDEX('Damage costs'!$AA$16:$AA$43,MATCH($B104,'Damage costs'!$C$16:$C$43,0))/1000),\"\")","v":""},{"$f":"IFERROR(IF(OR($C$110=FALSE,LEFT($B104,3)<>\"NOX\"),BS53*INDEX('Damage costs'!$W$16:$W$43,MATCH($B104,'Damage costs'!$C$16:$C$43,0))/1000,BS53*INDEX('Damage costs'!$AA$16:$AA$43,MATCH($B104,'Damage costs'!$C$16:$C$43,0))/1000),\"\")","v":""},{"$f":"IFERROR(IF(OR($C$110=FALSE,LEFT($B104,3)<>\"NOX\"),BT53*INDEX('Damage costs'!$W$16:$W$43,MATCH($B104,'Damage costs'!$C$16:$C$43,0))/1000,BT53*INDEX('Damage costs'!$AA$16:$AA$43,MATCH($B104,'Damage costs'!$C$16:$C$43,0))/1000),\"\")","v":""},{"$f":"IFERROR(IF(OR($C$110=FALSE,LEFT($B104,3)<>\"NOX\"),BU53*INDEX('Damage costs'!$W$16:$W$43,MATCH($B104,'Damage costs'!$C$16:$C$43,0))/1000,BU53*INDEX('Damage costs'!$AA$16:$AA$43,MATCH($B104,'Damage costs'!$C$16:$C$43,0))/1000),\"\")","v":""},{"$f":"IFERROR(IF(OR($C$110=FALSE,LEFT($B104,3)<>\"NOX\"),BV53*INDEX('Damage costs'!$W$16:$W$43,MATCH($B104,'Damage costs'!$C$16:$C$43,0))/1000,BV53*INDEX('Damage costs'!$AA$16:$AA$43,MATCH($B104,'Damage costs'!$C$16:$C$43,0))/1000),\"\")","v":""},{"$f":"IFERROR(IF(OR($C$110=FALSE,LEFT($B104,3)<>\"NOX\"),BW53*INDEX('Damage costs'!$W$16:$W$43,MATCH($B104,'Damage costs'!$C$16:$C$43,0))/1000,BW53*INDEX('Damage costs'!$AA$16:$AA$43,MATCH($B104,'Damage costs'!$C$16:$C$43,0))/1000),\"\")","v":""},{"$f":"IFERROR(IF(OR($C$110=FALSE,LEFT($B104,3)<>\"NOX\"),BX53*INDEX('Damage costs'!$W$16:$W$43,MATCH($B104,'Damage costs'!$C$16:$C$43,0))/1000,BX53*INDEX('Damage costs'!$AA$16:$AA$43,MATCH($B104,'Damage costs'!$C$16:$C$43,0))/1000),\"\")","v":""},{"$f":"IFERROR(IF(OR($C$110=FALSE,LEFT($B104,3)<>\"NOX\"),BY53*INDEX('Damage costs'!$W$16:$W$43,MATCH($B104,'Damage costs'!$C$16:$C$43,0))/1000,BY53*INDEX('Damage costs'!$AA$16:$AA$43,MATCH($B104,'Damage costs'!$C$16:$C$43,0))/1000),\"\")","v":""},{"$f":"IFERROR(IF(OR($C$110=FALSE,LEFT($B104,3)<>\"NOX\"),BZ53*INDEX('Damage costs'!$W$16:$W$43,MATCH($B104,'Damage costs'!$C$16:$C$43,0))/1000,BZ53*INDEX('Damage costs'!$AA$16:$AA$43,MATCH($B104,'Damage costs'!$C$16:$C$43,0))/1000),\"\")","v":""},{"$f":"IFERROR(IF(OR($C$110=FALSE,LEFT($B104,3)<>\"NOX\"),CA53*INDEX('Damage costs'!$W$16:$W$43,MATCH($B104,'Damage costs'!$C$16:$C$43,0))/1000,CA53*INDEX('Damage costs'!$AA$16:$AA$43,MATCH($B104,'Damage costs'!$C$16:$C$43,0))/1000),\"\")","v":""},{"$f":"IFERROR(IF(OR($C$110=FALSE,LEFT($B104,3)<>\"NOX\"),CB53*INDEX('Damage costs'!$W$16:$W$43,MATCH($B104,'Damage costs'!$C$16:$C$43,0))/1000,CB53*INDEX('Damage costs'!$AA$16:$AA$43,MATCH($B104,'Damage costs'!$C$16:$C$43,0))/1000),\"\")","v":""},{"$f":"IFERROR(IF(OR($C$110=FALSE,LEFT($B104,3)<>\"NOX\"),CC53*INDEX('Damage costs'!$W$16:$W$43,MATCH($B104,'Damage costs'!$C$16:$C$43,0))/1000,CC53*INDEX('Damage costs'!$AA$16:$AA$43,MATCH($B104,'Damage costs'!$C$16:$C$43,0))/1000),\"\")","v":""},{"$f":"IFERROR(IF(OR($C$110=FALSE,LEFT($B104,3)<>\"NOX\"),CD53*INDEX('Damage costs'!$W$16:$W$43,MATCH($B104,'Damage costs'!$C$16:$C$43,0))/1000,CD53*INDEX('Damage costs'!$AA$16:$AA$43,MATCH($B104,'Damage costs'!$C$16:$C$43,0))/1000),\"\")","v":""},{"$f":"IFERROR(IF(OR($C$110=FALSE,LEFT($B104,3)<>\"NOX\"),CE53*INDEX('Damage costs'!$W$16:$W$43,MATCH($B104,'Damage costs'!$C$16:$C$43,0))/1000,CE53*INDEX('Damage costs'!$AA$16:$AA$43,MATCH($B104,'Damage costs'!$C$16:$C$43,0))/1000),\"\")","v":""},{"$f":"IFERROR(IF(OR($C$110=FALSE,LEFT($B104,3)<>\"NOX\"),CF53*INDEX('Damage costs'!$W$16:$W$43,MATCH($B104,'Damage costs'!$C$16:$C$43,0))/1000,CF53*INDEX('Damage costs'!$AA$16:$AA$43,MATCH($B104,'Damage costs'!$C$16:$C$43,0))/1000),\"\")","v":""},{"$f":"IFERROR(IF(OR($C$110=FALSE,LEFT($B104,3)<>\"NOX\"),CG53*INDEX('Damage costs'!$W$16:$W$43,MATCH($B104,'Damage costs'!$C$16:$C$43,0))/1000,CG53*INDEX('Damage costs'!$AA$16:$AA$43,MATCH($B104,'Damage costs'!$C$16:$C$43,0))/1000),\"\")","v":""},{"$f":"IFERROR(IF(OR($C$110=FALSE,LEFT($B104,3)<>\"NOX\"),CH53*INDEX('Damage costs'!$W$16:$W$43,MATCH($B104,'Damage costs'!$C$16:$C$43,0))/1000,CH53*INDEX('Damage costs'!$AA$16:$AA$43,MATCH($B104,'Damage costs'!$C$16:$C$43,0))/1000),\"\")","v":""},{"$f":"IFERROR(IF(OR($C$110=FALSE,LEFT($B104,3)<>\"NOX\"),CI53*INDEX('Damage costs'!$W$16:$W$43,MATCH($B104,'Damage costs'!$C$16:$C$43,0))/1000,CI53*INDEX('Damage costs'!$AA$16:$AA$43,MATCH($B104,'Damage costs'!$C$16:$C$43,0))/1000),\"\")","v":""},{"$f":"IFERROR(IF(OR($C$110=FALSE,LEFT($B104,3)<>\"NOX\"),CJ53*INDEX('Damage costs'!$W$16:$W$43,MATCH($B104,'Damage costs'!$C$16:$C$43,0))/1000,CJ53*INDEX('Damage costs'!$AA$16:$AA$43,MATCH($B104,'Damage costs'!$C$16:$C$43,0))/1000),\"\")","v":""},{"$f":"IFERROR(IF(OR($C$110=FALSE,LEFT($B104,3)<>\"NOX\"),CK53*INDEX('Damage costs'!$W$16:$W$43,MATCH($B104,'Damage costs'!$C$16:$C$43,0))/1000,CK53*INDEX('Damage costs'!$AA$16:$AA$43,MATCH($B104,'Damage costs'!$C$16:$C$43,0))/1000),\"\")","v":""},{"$f":"IFERROR(IF(OR($C$110=FALSE,LEFT($B104,3)<>\"NOX\"),CL53*INDEX('Damage costs'!$W$16:$W$43,MATCH($B104,'Damage costs'!$C$16:$C$43,0))/1000,CL53*INDEX('Damage costs'!$AA$16:$AA$43,MATCH($B104,'Damage costs'!$C$16:$C$43,0))/1000),\"\")","v":""},{"$f":"IFERROR(IF(OR($C$110=FALSE,LEFT($B104,3)<>\"NOX\"),CM53*INDEX('Damage costs'!$W$16:$W$43,MATCH($B104,'Damage costs'!$C$16:$C$43,0))/1000,CM53*INDEX('Damage costs'!$AA$16:$AA$43,MATCH($B104,'Damage costs'!$C$16:$C$43,0))/1000),\"\")","v":""},{"$f":"IFERROR(IF(OR($C$110=FALSE,LEFT($B104,3)<>\"NOX\"),CN53*INDEX('Damage costs'!$W$16:$W$43,MATCH($B104,'Damage costs'!$C$16:$C$43,0))/1000,CN53*INDEX('Damage costs'!$AA$16:$AA$43,MATCH($B104,'Damage costs'!$C$16:$C$43,0))/1000),\"\")","v":""},{"$f":"IFERROR(IF(OR($C$110=FALSE,LEFT($B104,3)<>\"NOX\"),CO53*INDEX('Damage costs'!$W$16:$W$43,MATCH($B104,'Damage costs'!$C$16:$C$43,0))/1000,CO53*INDEX('Damage costs'!$AA$16:$AA$43,MATCH($B104,'Damage costs'!$C$16:$C$43,0))/1000),\"\")","v":""},{"$f":"IFERROR(IF(OR($C$110=FALSE,LEFT($B104,3)<>\"NOX\"),CP53*INDEX('Damage costs'!$W$16:$W$43,MATCH($B104,'Damage costs'!$C$16:$C$43,0))/1000,CP53*INDEX('Damage costs'!$AA$16:$AA$43,MATCH($B104,'Damage costs'!$C$16:$C$43,0))/1000),\"\")","v":""},{"$f":"IFERROR(IF(OR($C$110=FALSE,LEFT($B104,3)<>\"NOX\"),CQ53*INDEX('Damage costs'!$W$16:$W$43,MATCH($B104,'Damage costs'!$C$16:$C$43,0))/1000,CQ53*INDEX('Damage costs'!$AA$16:$AA$43,MATCH($B104,'Damage costs'!$C$16:$C$43,0))/1000),\"\")","v":""},{"$f":"IFERROR(IF(OR($C$110=FALSE,LEFT($B104,3)<>\"NOX\"),CR53*INDEX('Damage costs'!$W$16:$W$43,MATCH($B104,'Damage costs'!$C$16:$C$43,0))/1000,CR53*INDEX('Damage costs'!$AA$16:$AA$43,MATCH($B104,'Damage costs'!$C$16:$C$43,0))/1000),\"\")","v":""},{"$f":"IFERROR(IF(OR($C$110=FALSE,LEFT($B104,3)<>\"NOX\"),CS53*INDEX('Damage costs'!$W$16:$W$43,MATCH($B104,'Damage costs'!$C$16:$C$43,0))/1000,CS53*INDEX('Damage costs'!$AA$16:$AA$43,MATCH($B104,'Damage costs'!$C$16:$C$43,0))/1000),\"\")","v":""},{"$f":"IFERROR(IF(OR($C$110=FALSE,LEFT($B104,3)<>\"NOX\"),CT53*INDEX('Damage costs'!$W$16:$W$43,MATCH($B104,'Damage costs'!$C$16:$C$43,0))/1000,CT53*INDEX('Damage costs'!$AA$16:$AA$43,MATCH($B104,'Damage costs'!$C$16:$C$43,0))/1000),\"\")","v":""},{"$f":"IFERROR(IF(OR($C$110=FALSE,LEFT($B104,3)<>\"NOX\"),CU53*INDEX('Damage costs'!$W$16:$W$43,MATCH($B104,'Damage costs'!$C$16:$C$43,0))/1000,CU53*INDEX('Damage costs'!$AA$16:$AA$43,MATCH($B104,'Damage costs'!$C$16:$C$43,0))/1000),\"\")","v":""},{"$f":"IFERROR(IF(OR($C$110=FALSE,LEFT($B104,3)<>\"NOX\"),CV53*INDEX('Damage costs'!$W$16:$W$43,MATCH($B104,'Damage costs'!$C$16:$C$43,0))/1000,CV53*INDEX('Damage costs'!$AA$16:$AA$43,MATCH($B104,'Damage costs'!$C$16:$C$43,0))/1000),\"\")","v":""},{"$f":"IFERROR(IF(OR($C$110=FALSE,LEFT($B104,3)<>\"NOX\"),CW53*INDEX('Damage costs'!$W$16:$W$43,MATCH($B104,'Damage costs'!$C$16:$C$43,0))/1000,CW53*INDEX('Damage costs'!$AA$16:$AA$43,MATCH($B104,'Damage costs'!$C$16:$C$43,0))/1000),\"\")","v":""},{"$f":"IFERROR(IF(OR($C$110=FALSE,LEFT($B104,3)<>\"NOX\"),CX53*INDEX('Damage costs'!$W$16:$W$43,MATCH($B104,'Damage costs'!$C$16:$C$43,0))/1000,CX53*INDEX('Damage costs'!$AA$16:$AA$43,MATCH($B104,'Damage costs'!$C$16:$C$43,0))/1000),\"\")","v":""},{"$f":"IFERROR(IF(OR($C$110=FALSE,LEFT($B104,3)<>\"NOX\"),CY53*INDEX('Damage costs'!$W$16:$W$43,MATCH($B104,'Damage costs'!$C$16:$C$43,0))/1000,CY53*INDEX('Damage costs'!$AA$16:$AA$43,MATCH($B104,'Damage costs'!$C$16:$C$43,0))/1000),\"\")","v":""}]
[null,0,"£000's",{"$f":"IFERROR(IF(OR($C$110=FALSE,LEFT($B105,3)<>\"NOX\"),D54*INDEX('Damage costs'!$W$16:$W$43,MATCH($B105,'Damage costs'!$C$16:$C$43,0))/1000,D54*INDEX('Damage costs'!$AA$16:$AA$43,MATCH($B105,'Damage costs'!$C$16:$C$43,0))/1000),\"\")","v":""},{"$f":"IFERROR(IF(OR($C$110=FALSE,LEFT($B105,3)<>\"NOX\"),E54*INDEX('Damage costs'!$W$16:$W$43,MATCH($B105,'Damage costs'!$C$16:$C$43,0))/1000,E54*INDEX('Damage costs'!$AA$16:$AA$43,MATCH($B105,'Damage costs'!$C$16:$C$43,0))/1000),\"\")","v":""},{"$f":"IFERROR(IF(OR($C$110=FALSE,LEFT($B105,3)<>\"NOX\"),F54*INDEX('Damage costs'!$W$16:$W$43,MATCH($B105,'Damage costs'!$C$16:$C$43,0))/1000,F54*INDEX('Damage costs'!$AA$16:$AA$43,MATCH($B105,'Damage costs'!$C$16:$C$43,0))/1000),\"\")","v":""},{"$f":"IFERROR(IF(OR($C$110=FALSE,LEFT($B105,3)<>\"NOX\"),G54*INDEX('Damage costs'!$W$16:$W$43,MATCH($B105,'Damage costs'!$C$16:$C$43,0))/1000,G54*INDEX('Damage costs'!$AA$16:$AA$43,MATCH($B105,'Damage costs'!$C$16:$C$43,0))/1000),\"\")","v":""},{"$f":"IFERROR(IF(OR($C$110=FALSE,LEFT($B105,3)<>\"NOX\"),H54*INDEX('Damage costs'!$W$16:$W$43,MATCH($B105,'Damage costs'!$C$16:$C$43,0))/1000,H54*INDEX('Damage costs'!$AA$16:$AA$43,MATCH($B105,'Damage costs'!$C$16:$C$43,0))/1000),\"\")","v":""},{"$f":"IFERROR(IF(OR($C$110=FALSE,LEFT($B105,3)<>\"NOX\"),I54*INDEX('Damage costs'!$W$16:$W$43,MATCH($B105,'Damage costs'!$C$16:$C$43,0))/1000,I54*INDEX('Damage costs'!$AA$16:$AA$43,MATCH($B105,'Damage costs'!$C$16:$C$43,0))/1000),\"\")","v":""},{"$f":"IFERROR(IF(OR($C$110=FALSE,LEFT($B105,3)<>\"NOX\"),J54*INDEX('Damage costs'!$W$16:$W$43,MATCH($B105,'Damage costs'!$C$16:$C$43,0))/1000,J54*INDEX('Damage costs'!$AA$16:$AA$43,MATCH($B105,'Damage costs'!$C$16:$C$43,0))/1000),\"\")","v":""},{"$f":"IFERROR(IF(OR($C$110=FALSE,LEFT($B105,3)<>\"NOX\"),K54*INDEX('Damage costs'!$W$16:$W$43,MATCH($B105,'Damage costs'!$C$16:$C$43,0))/1000,K54*INDEX('Damage costs'!$AA$16:$AA$43,MATCH($B105,'Damage costs'!$C$16:$C$43,0))/1000),\"\")","v":""},{"$f":"IFERROR(IF(OR($C$110=FALSE,LEFT($B105,3)<>\"NOX\"),L54*INDEX('Damage costs'!$W$16:$W$43,MATCH($B105,'Damage costs'!$C$16:$C$43,0))/1000,L54*INDEX('Damage costs'!$AA$16:$AA$43,MATCH($B105,'Damage costs'!$C$16:$C$43,0))/1000),\"\")","v":""},{"$f":"IFERROR(IF(OR($C$110=FALSE,LEFT($B105,3)<>\"NOX\"),M54*INDEX('Damage costs'!$W$16:$W$43,MATCH($B105,'Damage costs'!$C$16:$C$43,0))/1000,M54*INDEX('Damage costs'!$AA$16:$AA$43,MATCH($B105,'Damage costs'!$C$16:$C$43,0))/1000),\"\")","v":""},{"$f":"IFERROR(IF(OR($C$110=FALSE,LEFT($B105,3)<>\"NOX\"),N54*INDEX('Damage costs'!$W$16:$W$43,MATCH($B105,'Damage costs'!$C$16:$C$43,0))/1000,N54*INDEX('Damage costs'!$AA$16:$AA$43,MATCH($B105,'Damage costs'!$C$16:$C$43,0))/1000),\"\")","v":""},{"$f":"IFERROR(IF(OR($C$110=FALSE,LEFT($B105,3)<>\"NOX\"),O54*INDEX('Damage costs'!$W$16:$W$43,MATCH($B105,'Damage costs'!$C$16:$C$43,0))/1000,O54*INDEX('Damage costs'!$AA$16:$AA$43,MATCH($B105,'Damage costs'!$C$16:$C$43,0))/1000),\"\")","v":""},{"$f":"IFERROR(IF(OR($C$110=FALSE,LEFT($B105,3)<>\"NOX\"),P54*INDEX('Damage costs'!$W$16:$W$43,MATCH($B105,'Damage costs'!$C$16:$C$43,0))/1000,P54*INDEX('Damage costs'!$AA$16:$AA$43,MATCH($B105,'Damage costs'!$C$16:$C$43,0))/1000),\"\")","v":""},{"$f":"IFERROR(IF(OR($C$110=FALSE,LEFT($B105,3)<>\"NOX\"),Q54*INDEX('Damage costs'!$W$16:$W$43,MATCH($B105,'Damage costs'!$C$16:$C$43,0))/1000,Q54*INDEX('Damage costs'!$AA$16:$AA$43,MATCH($B105,'Damage costs'!$C$16:$C$43,0))/1000),\"\")","v":""},{"$f":"IFERROR(IF(OR($C$110=FALSE,LEFT($B105,3)<>\"NOX\"),R54*INDEX('Damage costs'!$W$16:$W$43,MATCH($B105,'Damage costs'!$C$16:$C$43,0))/1000,R54*INDEX('Damage costs'!$AA$16:$AA$43,MATCH($B105,'Damage costs'!$C$16:$C$43,0))/1000),\"\")","v":""},{"$f":"IFERROR(IF(OR($C$110=FALSE,LEFT($B105,3)<>\"NOX\"),S54*INDEX('Damage costs'!$W$16:$W$43,MATCH($B105,'Damage costs'!$C$16:$C$43,0))/1000,S54*INDEX('Damage costs'!$AA$16:$AA$43,MATCH($B105,'Damage costs'!$C$16:$C$43,0))/1000),\"\")","v":""},{"$f":"IFERROR(IF(OR($C$110=FALSE,LEFT($B105,3)<>\"NOX\"),T54*INDEX('Damage costs'!$W$16:$W$43,MATCH($B105,'Damage costs'!$C$16:$C$43,0))/1000,T54*INDEX('Damage costs'!$AA$16:$AA$43,MATCH($B105,'Damage costs'!$C$16:$C$43,0))/1000),\"\")","v":""},{"$f":"IFERROR(IF(OR($C$110=FALSE,LEFT($B105,3)<>\"NOX\"),U54*INDEX('Damage costs'!$W$16:$W$43,MATCH($B105,'Damage costs'!$C$16:$C$43,0))/1000,U54*INDEX('Damage costs'!$AA$16:$AA$43,MATCH($B105,'Damage costs'!$C$16:$C$43,0))/1000),\"\")","v":""},{"$f":"IFERROR(IF(OR($C$110=FALSE,LEFT($B105,3)<>\"NOX\"),V54*INDEX('Damage costs'!$W$16:$W$43,MATCH($B105,'Damage costs'!$C$16:$C$43,0))/1000,V54*INDEX('Damage costs'!$AA$16:$AA$43,MATCH($B105,'Damage costs'!$C$16:$C$43,0))/1000),\"\")","v":""},{"$f":"IFERROR(IF(OR($C$110=FALSE,LEFT($B105,3)<>\"NOX\"),W54*INDEX('Damage costs'!$W$16:$W$43,MATCH($B105,'Damage costs'!$C$16:$C$43,0))/1000,W54*INDEX('Damage costs'!$AA$16:$AA$43,MATCH($B105,'Damage costs'!$C$16:$C$43,0))/1000),\"\")","v":""},{"$f":"IFERROR(IF(OR($C$110=FALSE,LEFT($B105,3)<>\"NOX\"),X54*INDEX('Damage costs'!$W$16:$W$43,MATCH($B105,'Damage costs'!$C$16:$C$43,0))/1000,X54*INDEX('Damage costs'!$AA$16:$AA$43,MATCH($B105,'Damage costs'!$C$16:$C$43,0))/1000),\"\")","v":""},{"$f":"IFERROR(IF(OR($C$110=FALSE,LEFT($B105,3)<>\"NOX\"),Y54*INDEX('Damage costs'!$W$16:$W$43,MATCH($B105,'Damage costs'!$C$16:$C$43,0))/1000,Y54*INDEX('Damage costs'!$AA$16:$AA$43,MATCH($B105,'Damage costs'!$C$16:$C$43,0))/1000),\"\")","v":""},{"$f":"IFERROR(IF(OR($C$110=FALSE,LEFT($B105,3)<>\"NOX\"),Z54*INDEX('Damage costs'!$W$16:$W$43,MATCH($B105,'Damage costs'!$C$16:$C$43,0))/1000,Z54*INDEX('Damage costs'!$AA$16:$AA$43,MATCH($B105,'Damage costs'!$C$16:$C$43,0))/1000),\"\")","v":""},{"$f":"IFERROR(IF(OR($C$110=FALSE,LEFT($B105,3)<>\"NOX\"),AA54*INDEX('Damage costs'!$W$16:$W$43,MATCH($B105,'Damage costs'!$C$16:$C$43,0))/1000,AA54*INDEX('Damage costs'!$AA$16:$AA$43,MATCH($B105,'Damage costs'!$C$16:$C$43,0))/1000),\"\")","v":""},{"$f":"IFERROR(IF(OR($C$110=FALSE,LEFT($B105,3)<>\"NOX\"),AB54*INDEX('Damage costs'!$W$16:$W$43,MATCH($B105,'Damage costs'!$C$16:$C$43,0))/1000,AB54*INDEX('Damage costs'!$AA$16:$AA$43,MATCH($B105,'Damage costs'!$C$16:$C$43,0))/1000),\"\")","v":""},{"$f":"IFERROR(IF(OR($C$110=FALSE,LEFT($B105,3)<>\"NOX\"),AC54*INDEX('Damage costs'!$W$16:$W$43,MATCH($B105,'Damage costs'!$C$16:$C$43,0))/1000,AC54*INDEX('Damage costs'!$AA$16:$AA$43,MATCH($B105,'Damage costs'!$C$16:$C$43,0))/1000),\"\")","v":""},{"$f":"IFERROR(IF(OR($C$110=FALSE,LEFT($B105,3)<>\"NOX\"),AD54*INDEX('Damage costs'!$W$16:$W$43,MATCH($B105,'Damage costs'!$C$16:$C$43,0))/1000,AD54*INDEX('Damage costs'!$AA$16:$AA$43,MATCH($B105,'Damage costs'!$C$16:$C$43,0))/1000),\"\")","v":""},{"$f":"IFERROR(IF(OR($C$110=FALSE,LEFT($B105,3)<>\"NOX\"),AE54*INDEX('Damage costs'!$W$16:$W$43,MATCH($B105,'Damage costs'!$C$16:$C$43,0))/1000,AE54*INDEX('Damage costs'!$AA$16:$AA$43,MATCH($B105,'Damage costs'!$C$16:$C$43,0))/1000),\"\")","v":""},{"$f":"IFERROR(IF(OR($C$110=FALSE,LEFT($B105,3)<>\"NOX\"),AF54*INDEX('Damage costs'!$W$16:$W$43,MATCH($B105,'Damage costs'!$C$16:$C$43,0))/1000,AF54*INDEX('Damage costs'!$AA$16:$AA$43,MATCH($B105,'Damage costs'!$C$16:$C$43,0))/1000),\"\")","v":""},{"$f":"IFERROR(IF(OR($C$110=FALSE,LEFT($B105,3)<>\"NOX\"),AG54*INDEX('Damage costs'!$W$16:$W$43,MATCH($B105,'Damage costs'!$C$16:$C$43,0))/1000,AG54*INDEX('Damage costs'!$AA$16:$AA$43,MATCH($B105,'Damage costs'!$C$16:$C$43,0))/1000),\"\")","v":""},{"$f":"IFERROR(IF(OR($C$110=FALSE,LEFT($B105,3)<>\"NOX\"),AH54*INDEX('Damage costs'!$W$16:$W$43,MATCH($B105,'Damage costs'!$C$16:$C$43,0))/1000,AH54*INDEX('Damage costs'!$AA$16:$AA$43,MATCH($B105,'Damage costs'!$C$16:$C$43,0))/1000),\"\")","v":""},{"$f":"IFERROR(IF(OR($C$110=FALSE,LEFT($B105,3)<>\"NOX\"),AI54*INDEX('Damage costs'!$W$16:$W$43,MATCH($B105,'Damage costs'!$C$16:$C$43,0))/1000,AI54*INDEX('Damage costs'!$AA$16:$AA$43,MATCH($B105,'Damage costs'!$C$16:$C$43,0))/1000),\"\")","v":""},{"$f":"IFERROR(IF(OR($C$110=FALSE,LEFT($B105,3)<>\"NOX\"),AJ54*INDEX('Damage costs'!$W$16:$W$43,MATCH($B105,'Damage costs'!$C$16:$C$43,0))/1000,AJ54*INDEX('Damage costs'!$AA$16:$AA$43,MATCH($B105,'Damage costs'!$C$16:$C$43,0))/1000),\"\")","v":""},{"$f":"IFERROR(IF(OR($C$110=FALSE,LEFT($B105,3)<>\"NOX\"),AK54*INDEX('Damage costs'!$W$16:$W$43,MATCH($B105,'Damage costs'!$C$16:$C$43,0))/1000,AK54*INDEX('Damage costs'!$AA$16:$AA$43,MATCH($B105,'Damage costs'!$C$16:$C$43,0))/1000),\"\")","v":""},{"$f":"IFERROR(IF(OR($C$110=FALSE,LEFT($B105,3)<>\"NOX\"),AL54*INDEX('Damage costs'!$W$16:$W$43,MATCH($B105,'Damage costs'!$C$16:$C$43,0))/1000,AL54*INDEX('Damage costs'!$AA$16:$AA$43,MATCH($B105,'Damage costs'!$C$16:$C$43,0))/1000),\"\")","v":""},{"$f":"IFERROR(IF(OR($C$110=FALSE,LEFT($B105,3)<>\"NOX\"),AM54*INDEX('Damage costs'!$W$16:$W$43,MATCH($B105,'Damage costs'!$C$16:$C$43,0))/1000,AM54*INDEX('Damage costs'!$AA$16:$AA$43,MATCH($B105,'Damage costs'!$C$16:$C$43,0))/1000),\"\")","v":""},{"$f":"IFERROR(IF(OR($C$110=FALSE,LEFT($B105,3)<>\"NOX\"),AN54*INDEX('Damage costs'!$W$16:$W$43,MATCH($B105,'Damage costs'!$C$16:$C$43,0))/1000,AN54*INDEX('Damage costs'!$AA$16:$AA$43,MATCH($B105,'Damage costs'!$C$16:$C$43,0))/1000),\"\")","v":""},{"$f":"IFERROR(IF(OR($C$110=FALSE,LEFT($B105,3)<>\"NOX\"),AO54*INDEX('Damage costs'!$W$16:$W$43,MATCH($B105,'Damage costs'!$C$16:$C$43,0))/1000,AO54*INDEX('Damage costs'!$AA$16:$AA$43,MATCH($B105,'Damage costs'!$C$16:$C$43,0))/1000),\"\")","v":""},{"$f":"IFERROR(IF(OR($C$110=FALSE,LEFT($B105,3)<>\"NOX\"),AP54*INDEX('Damage costs'!$W$16:$W$43,MATCH($B105,'Damage costs'!$C$16:$C$43,0))/1000,AP54*INDEX('Damage costs'!$AA$16:$AA$43,MATCH($B105,'Damage costs'!$C$16:$C$43,0))/1000),\"\")","v":""},{"$f":"IFERROR(IF(OR($C$110=FALSE,LEFT($B105,3)<>\"NOX\"),AQ54*INDEX('Damage costs'!$W$16:$W$43,MATCH($B105,'Damage costs'!$C$16:$C$43,0))/1000,AQ54*INDEX('Damage costs'!$AA$16:$AA$43,MATCH($B105,'Damage costs'!$C$16:$C$43,0))/1000),\"\")","v":""},{"$f":"IFERROR(IF(OR($C$110=FALSE,LEFT($B105,3)<>\"NOX\"),AR54*INDEX('Damage costs'!$W$16:$W$43,MATCH($B105,'Damage costs'!$C$16:$C$43,0))/1000,AR54*INDEX('Damage costs'!$AA$16:$AA$43,MATCH($B105,'Damage costs'!$C$16:$C$43,0))/1000),\"\")","v":""},{"$f":"IFERROR(IF(OR($C$110=FALSE,LEFT($B105,3)<>\"NOX\"),AS54*INDEX('Damage costs'!$W$16:$W$43,MATCH($B105,'Damage costs'!$C$16:$C$43,0))/1000,AS54*INDEX('Damage costs'!$AA$16:$AA$43,MATCH($B105,'Damage costs'!$C$16:$C$43,0))/1000),\"\")","v":""},{"$f":"IFERROR(IF(OR($C$110=FALSE,LEFT($B105,3)<>\"NOX\"),AT54*INDEX('Damage costs'!$W$16:$W$43,MATCH($B105,'Damage costs'!$C$16:$C$43,0))/1000,AT54*INDEX('Damage costs'!$AA$16:$AA$43,MATCH($B105,'Damage costs'!$C$16:$C$43,0))/1000),\"\")","v":""},{"$f":"IFERROR(IF(OR($C$110=FALSE,LEFT($B105,3)<>\"NOX\"),AU54*INDEX('Damage costs'!$W$16:$W$43,MATCH($B105,'Damage costs'!$C$16:$C$43,0))/1000,AU54*INDEX('Damage costs'!$AA$16:$AA$43,MATCH($B105,'Damage costs'!$C$16:$C$43,0))/1000),\"\")","v":""},{"$f":"IFERROR(IF(OR($C$110=FALSE,LEFT($B105,3)<>\"NOX\"),AV54*INDEX('Damage costs'!$W$16:$W$43,MATCH($B105,'Damage costs'!$C$16:$C$43,0))/1000,AV54*INDEX('Damage costs'!$AA$16:$AA$43,MATCH($B105,'Damage costs'!$C$16:$C$43,0))/1000),\"\")","v":""},{"$f":"IFERROR(IF(OR($C$110=FALSE,LEFT($B105,3)<>\"NOX\"),AW54*INDEX('Damage costs'!$W$16:$W$43,MATCH($B105,'Damage costs'!$C$16:$C$43,0))/1000,AW54*INDEX('Damage costs'!$AA$16:$AA$43,MATCH($B105,'Damage costs'!$C$16:$C$43,0))/1000),\"\")","v":""},{"$f":"IFERROR(IF(OR($C$110=FALSE,LEFT($B105,3)<>\"NOX\"),AX54*INDEX('Damage costs'!$W$16:$W$43,MATCH($B105,'Damage costs'!$C$16:$C$43,0))/1000,AX54*INDEX('Damage costs'!$AA$16:$AA$43,MATCH($B105,'Damage costs'!$C$16:$C$43,0))/1000),\"\")","v":""},{"$f":"IFERROR(IF(OR($C$110=FALSE,LEFT($B105,3)<>\"NOX\"),AY54*INDEX('Damage costs'!$W$16:$W$43,MATCH($B105,'Damage costs'!$C$16:$C$43,0))/1000,AY54*INDEX('Damage costs'!$AA$16:$AA$43,MATCH($B105,'Damage costs'!$C$16:$C$43,0))/1000),\"\")","v":""},{"$f":"IFERROR(IF(OR($C$110=FALSE,LEFT($B105,3)<>\"NOX\"),AZ54*INDEX('Damage costs'!$W$16:$W$43,MATCH($B105,'Damage costs'!$C$16:$C$43,0))/1000,AZ54*INDEX('Damage costs'!$AA$16:$AA$43,MATCH($B105,'Damage costs'!$C$16:$C$43,0))/1000),\"\")","v":""},{"$f":"IFERROR(IF(OR($C$110=FALSE,LEFT($B105,3)<>\"NOX\"),BA54*INDEX('Damage costs'!$W$16:$W$43,MATCH($B105,'Damage costs'!$C$16:$C$43,0))/1000,BA54*INDEX('Damage costs'!$AA$16:$AA$43,MATCH($B105,'Damage costs'!$C$16:$C$43,0))/1000),\"\")","v":""},{"$f":"IFERROR(IF(OR($C$110=FALSE,LEFT($B105,3)<>\"NOX\"),BB54*INDEX('Damage costs'!$W$16:$W$43,MATCH($B105,'Damage costs'!$C$16:$C$43,0))/1000,BB54*INDEX('Damage costs'!$AA$16:$AA$43,MATCH($B105,'Damage costs'!$C$16:$C$43,0))/1000),\"\")","v":""},{"$f":"IFERROR(IF(OR($C$110=FALSE,LEFT($B105,3)<>\"NOX\"),BC54*INDEX('Damage costs'!$W$16:$W$43,MATCH($B105,'Damage costs'!$C$16:$C$43,0))/1000,BC54*INDEX('Damage costs'!$AA$16:$AA$43,MATCH($B105,'Damage costs'!$C$16:$C$43,0))/1000),\"\")","v":""},{"$f":"IFERROR(IF(OR($C$110=FALSE,LEFT($B105,3)<>\"NOX\"),BD54*INDEX('Damage costs'!$W$16:$W$43,MATCH($B105,'Damage costs'!$C$16:$C$43,0))/1000,BD54*INDEX('Damage costs'!$AA$16:$AA$43,MATCH($B105,'Damage costs'!$C$16:$C$43,0))/1000),\"\")","v":""},{"$f":"IFERROR(IF(OR($C$110=FALSE,LEFT($B105,3)<>\"NOX\"),BE54*INDEX('Damage costs'!$W$16:$W$43,MATCH($B105,'Damage costs'!$C$16:$C$43,0))/1000,BE54*INDEX('Damage costs'!$AA$16:$AA$43,MATCH($B105,'Damage costs'!$C$16:$C$43,0))/1000),\"\")","v":""},{"$f":"IFERROR(IF(OR($C$110=FALSE,LEFT($B105,3)<>\"NOX\"),BF54*INDEX('Damage costs'!$W$16:$W$43,MATCH($B105,'Damage costs'!$C$16:$C$43,0))/1000,BF54*INDEX('Damage costs'!$AA$16:$AA$43,MATCH($B105,'Damage costs'!$C$16:$C$43,0))/1000),\"\")","v":""},{"$f":"IFERROR(IF(OR($C$110=FALSE,LEFT($B105,3)<>\"NOX\"),BG54*INDEX('Damage costs'!$W$16:$W$43,MATCH($B105,'Damage costs'!$C$16:$C$43,0))/1000,BG54*INDEX('Damage costs'!$AA$16:$AA$43,MATCH($B105,'Damage costs'!$C$16:$C$43,0))/1000),\"\")","v":""},{"$f":"IFERROR(IF(OR($C$110=FALSE,LEFT($B105,3)<>\"NOX\"),BH54*INDEX('Damage costs'!$W$16:$W$43,MATCH($B105,'Damage costs'!$C$16:$C$43,0))/1000,BH54*INDEX('Damage costs'!$AA$16:$AA$43,MATCH($B105,'Damage costs'!$C$16:$C$43,0))/1000),\"\")","v":""},{"$f":"IFERROR(IF(OR($C$110=FALSE,LEFT($B105,3)<>\"NOX\"),BI54*INDEX('Damage costs'!$W$16:$W$43,MATCH($B105,'Damage costs'!$C$16:$C$43,0))/1000,BI54*INDEX('Damage costs'!$AA$16:$AA$43,MATCH($B105,'Damage costs'!$C$16:$C$43,0))/1000),\"\")","v":""},{"$f":"IFERROR(IF(OR($C$110=FALSE,LEFT($B105,3)<>\"NOX\"),BJ54*INDEX('Damage costs'!$W$16:$W$43,MATCH($B105,'Damage costs'!$C$16:$C$43,0))/1000,BJ54*INDEX('Damage costs'!$AA$16:$AA$43,MATCH($B105,'Damage costs'!$C$16:$C$43,0))/1000),\"\")","v":""},{"$f":"IFERROR(IF(OR($C$110=FALSE,LEFT($B105,3)<>\"NOX\"),BK54*INDEX('Damage costs'!$W$16:$W$43,MATCH($B105,'Damage costs'!$C$16:$C$43,0))/1000,BK54*INDEX('Damage costs'!$AA$16:$AA$43,MATCH($B105,'Damage costs'!$C$16:$C$43,0))/1000),\"\")","v":""},{"$f":"IFERROR(IF(OR($C$110=FALSE,LEFT($B105,3)<>\"NOX\"),BL54*INDEX('Damage costs'!$W$16:$W$43,MATCH($B105,'Damage costs'!$C$16:$C$43,0))/1000,BL54*INDEX('Damage costs'!$AA$16:$AA$43,MATCH($B105,'Damage costs'!$C$16:$C$43,0))/1000),\"\")","v":""},{"$f":"IFERROR(IF(OR($C$110=FALSE,LEFT($B105,3)<>\"NOX\"),BM54*INDEX('Damage costs'!$W$16:$W$43,MATCH($B105,'Damage costs'!$C$16:$C$43,0))/1000,BM54*INDEX('Damage costs'!$AA$16:$AA$43,MATCH($B105,'Damage costs'!$C$16:$C$43,0))/1000),\"\")","v":""},{"$f":"IFERROR(IF(OR($C$110=FALSE,LEFT($B105,3)<>\"NOX\"),BN54*INDEX('Damage costs'!$W$16:$W$43,MATCH($B105,'Damage costs'!$C$16:$C$43,0))/1000,BN54*INDEX('Damage costs'!$AA$16:$AA$43,MATCH($B105,'Damage costs'!$C$16:$C$43,0))/1000),\"\")","v":""},{"$f":"IFERROR(IF(OR($C$110=FALSE,LEFT($B105,3)<>\"NOX\"),BO54*INDEX('Damage costs'!$W$16:$W$43,MATCH($B105,'Damage costs'!$C$16:$C$43,0))/1000,BO54*INDEX('Damage costs'!$AA$16:$AA$43,MATCH($B105,'Damage costs'!$C$16:$C$43,0))/1000),\"\")","v":""},{"$f":"IFERROR(IF(OR($C$110=FALSE,LEFT($B105,3)<>\"NOX\"),BP54*INDEX('Damage costs'!$W$16:$W$43,MATCH($B105,'Damage costs'!$C$16:$C$43,0))/1000,BP54*INDEX('Damage costs'!$AA$16:$AA$43,MATCH($B105,'Damage costs'!$C$16:$C$43,0))/1000),\"\")","v":""},{"$f":"IFERROR(IF(OR($C$110=FALSE,LEFT($B105,3)<>\"NOX\"),BQ54*INDEX('Damage costs'!$W$16:$W$43,MATCH($B105,'Damage costs'!$C$16:$C$43,0))/1000,BQ54*INDEX('Damage costs'!$AA$16:$AA$43,MATCH($B105,'Damage costs'!$C$16:$C$43,0))/1000),\"\")","v":""},{"$f":"IFERROR(IF(OR($C$110=FALSE,LEFT($B105,3)<>\"NOX\"),BR54*INDEX('Damage costs'!$W$16:$W$43,MATCH($B105,'Damage costs'!$C$16:$C$43,0))/1000,BR54*INDEX('Damage costs'!$AA$16:$AA$43,MATCH($B105,'Damage costs'!$C$16:$C$43,0))/1000),\"\")","v":""},{"$f":"IFERROR(IF(OR($C$110=FALSE,LEFT($B105,3)<>\"NOX\"),BS54*INDEX('Damage costs'!$W$16:$W$43,MATCH($B105,'Damage costs'!$C$16:$C$43,0))/1000,BS54*INDEX('Damage costs'!$AA$16:$AA$43,MATCH($B105,'Damage costs'!$C$16:$C$43,0))/1000),\"\")","v":""},{"$f":"IFERROR(IF(OR($C$110=FALSE,LEFT($B105,3)<>\"NOX\"),BT54*INDEX('Damage costs'!$W$16:$W$43,MATCH($B105,'Damage costs'!$C$16:$C$43,0))/1000,BT54*INDEX('Damage costs'!$AA$16:$AA$43,MATCH($B105,'Damage costs'!$C$16:$C$43,0))/1000),\"\")","v":""},{"$f":"IFERROR(IF(OR($C$110=FALSE,LEFT($B105,3)<>\"NOX\"),BU54*INDEX('Damage costs'!$W$16:$W$43,MATCH($B105,'Damage costs'!$C$16:$C$43,0))/1000,BU54*INDEX('Damage costs'!$AA$16:$AA$43,MATCH($B105,'Damage costs'!$C$16:$C$43,0))/1000),\"\")","v":""},{"$f":"IFERROR(IF(OR($C$110=FALSE,LEFT($B105,3)<>\"NOX\"),BV54*INDEX('Damage costs'!$W$16:$W$43,MATCH($B105,'Damage costs'!$C$16:$C$43,0))/1000,BV54*INDEX('Damage costs'!$AA$16:$AA$43,MATCH($B105,'Damage costs'!$C$16:$C$43,0))/1000),\"\")","v":""},{"$f":"IFERROR(IF(OR($C$110=FALSE,LEFT($B105,3)<>\"NOX\"),BW54*INDEX('Damage costs'!$W$16:$W$43,MATCH($B105,'Damage costs'!$C$16:$C$43,0))/1000,BW54*INDEX('Damage costs'!$AA$16:$AA$43,MATCH($B105,'Damage costs'!$C$16:$C$43,0))/1000),\"\")","v":""},{"$f":"IFERROR(IF(OR($C$110=FALSE,LEFT($B105,3)<>\"NOX\"),BX54*INDEX('Damage costs'!$W$16:$W$43,MATCH($B105,'Damage costs'!$C$16:$C$43,0))/1000,BX54*INDEX('Damage costs'!$AA$16:$AA$43,MATCH($B105,'Damage costs'!$C$16:$C$43,0))/1000),\"\")","v":""},{"$f":"IFERROR(IF(OR($C$110=FALSE,LEFT($B105,3)<>\"NOX\"),BY54*INDEX('Damage costs'!$W$16:$W$43,MATCH($B105,'Damage costs'!$C$16:$C$43,0))/1000,BY54*INDEX('Damage costs'!$AA$16:$AA$43,MATCH($B105,'Damage costs'!$C$16:$C$43,0))/1000),\"\")","v":""},{"$f":"IFERROR(IF(OR($C$110=FALSE,LEFT($B105,3)<>\"NOX\"),BZ54*INDEX('Damage costs'!$W$16:$W$43,MATCH($B105,'Damage costs'!$C$16:$C$43,0))/1000,BZ54*INDEX('Damage costs'!$AA$16:$AA$43,MATCH($B105,'Damage costs'!$C$16:$C$43,0))/1000),\"\")","v":""},{"$f":"IFERROR(IF(OR($C$110=FALSE,LEFT($B105,3)<>\"NOX\"),CA54*INDEX('Damage costs'!$W$16:$W$43,MATCH($B105,'Damage costs'!$C$16:$C$43,0))/1000,CA54*INDEX('Damage costs'!$AA$16:$AA$43,MATCH($B105,'Damage costs'!$C$16:$C$43,0))/1000),\"\")","v":""},{"$f":"IFERROR(IF(OR($C$110=FALSE,LEFT($B105,3)<>\"NOX\"),CB54*INDEX('Damage costs'!$W$16:$W$43,MATCH($B105,'Damage costs'!$C$16:$C$43,0))/1000,CB54*INDEX('Damage costs'!$AA$16:$AA$43,MATCH($B105,'Damage costs'!$C$16:$C$43,0))/1000),\"\")","v":""},{"$f":"IFERROR(IF(OR($C$110=FALSE,LEFT($B105,3)<>\"NOX\"),CC54*INDEX('Damage costs'!$W$16:$W$43,MATCH($B105,'Damage costs'!$C$16:$C$43,0))/1000,CC54*INDEX('Damage costs'!$AA$16:$AA$43,MATCH($B105,'Damage costs'!$C$16:$C$43,0))/1000),\"\")","v":""},{"$f":"IFERROR(IF(OR($C$110=FALSE,LEFT($B105,3)<>\"NOX\"),CD54*INDEX('Damage costs'!$W$16:$W$43,MATCH($B105,'Damage costs'!$C$16:$C$43,0))/1000,CD54*INDEX('Damage costs'!$AA$16:$AA$43,MATCH($B105,'Damage costs'!$C$16:$C$43,0))/1000),\"\")","v":""},{"$f":"IFERROR(IF(OR($C$110=FALSE,LEFT($B105,3)<>\"NOX\"),CE54*INDEX('Damage costs'!$W$16:$W$43,MATCH($B105,'Damage costs'!$C$16:$C$43,0))/1000,CE54*INDEX('Damage costs'!$AA$16:$AA$43,MATCH($B105,'Damage costs'!$C$16:$C$43,0))/1000),\"\")","v":""},{"$f":"IFERROR(IF(OR($C$110=FALSE,LEFT($B105,3)<>\"NOX\"),CF54*INDEX('Damage costs'!$W$16:$W$43,MATCH($B105,'Damage costs'!$C$16:$C$43,0))/1000,CF54*INDEX('Damage costs'!$AA$16:$AA$43,MATCH($B105,'Damage costs'!$C$16:$C$43,0))/1000),\"\")","v":""},{"$f":"IFERROR(IF(OR($C$110=FALSE,LEFT($B105,3)<>\"NOX\"),CG54*INDEX('Damage costs'!$W$16:$W$43,MATCH($B105,'Damage costs'!$C$16:$C$43,0))/1000,CG54*INDEX('Damage costs'!$AA$16:$AA$43,MATCH($B105,'Damage costs'!$C$16:$C$43,0))/1000),\"\")","v":""},{"$f":"IFERROR(IF(OR($C$110=FALSE,LEFT($B105,3)<>\"NOX\"),CH54*INDEX('Damage costs'!$W$16:$W$43,MATCH($B105,'Damage costs'!$C$16:$C$43,0))/1000,CH54*INDEX('Damage costs'!$AA$16:$AA$43,MATCH($B105,'Damage costs'!$C$16:$C$43,0))/1000),\"\")","v":""},{"$f":"IFERROR(IF(OR($C$110=FALSE,LEFT($B105,3)<>\"NOX\"),CI54*INDEX('Damage costs'!$W$16:$W$43,MATCH($B105,'Damage costs'!$C$16:$C$43,0))/1000,CI54*INDEX('Damage costs'!$AA$16:$AA$43,MATCH($B105,'Damage costs'!$C$16:$C$43,0))/1000),\"\")","v":""},{"$f":"IFERROR(IF(OR($C$110=FALSE,LEFT($B105,3)<>\"NOX\"),CJ54*INDEX('Damage costs'!$W$16:$W$43,MATCH($B105,'Damage costs'!$C$16:$C$43,0))/1000,CJ54*INDEX('Damage costs'!$AA$16:$AA$43,MATCH($B105,'Damage costs'!$C$16:$C$43,0))/1000),\"\")","v":""},{"$f":"IFERROR(IF(OR($C$110=FALSE,LEFT($B105,3)<>\"NOX\"),CK54*INDEX('Damage costs'!$W$16:$W$43,MATCH($B105,'Damage costs'!$C$16:$C$43,0))/1000,CK54*INDEX('Damage costs'!$AA$16:$AA$43,MATCH($B105,'Damage costs'!$C$16:$C$43,0))/1000),\"\")","v":""},{"$f":"IFERROR(IF(OR($C$110=FALSE,LEFT($B105,3)<>\"NOX\"),CL54*INDEX('Damage costs'!$W$16:$W$43,MATCH($B105,'Damage costs'!$C$16:$C$43,0))/1000,CL54*INDEX('Damage costs'!$AA$16:$AA$43,MATCH($B105,'Damage costs'!$C$16:$C$43,0))/1000),\"\")","v":""},{"$f":"IFERROR(IF(OR($C$110=FALSE,LEFT($B105,3)<>\"NOX\"),CM54*INDEX('Damage costs'!$W$16:$W$43,MATCH($B105,'Damage costs'!$C$16:$C$43,0))/1000,CM54*INDEX('Damage costs'!$AA$16:$AA$43,MATCH($B105,'Damage costs'!$C$16:$C$43,0))/1000),\"\")","v":""},{"$f":"IFERROR(IF(OR($C$110=FALSE,LEFT($B105,3)<>\"NOX\"),CN54*INDEX('Damage costs'!$W$16:$W$43,MATCH($B105,'Damage costs'!$C$16:$C$43,0))/1000,CN54*INDEX('Damage costs'!$AA$16:$AA$43,MATCH($B105,'Damage costs'!$C$16:$C$43,0))/1000),\"\")","v":""},{"$f":"IFERROR(IF(OR($C$110=FALSE,LEFT($B105,3)<>\"NOX\"),CO54*INDEX('Damage costs'!$W$16:$W$43,MATCH($B105,'Damage costs'!$C$16:$C$43,0))/1000,CO54*INDEX('Damage costs'!$AA$16:$AA$43,MATCH($B105,'Damage costs'!$C$16:$C$43,0))/1000),\"\")","v":""},{"$f":"IFERROR(IF(OR($C$110=FALSE,LEFT($B105,3)<>\"NOX\"),CP54*INDEX('Damage costs'!$W$16:$W$43,MATCH($B105,'Damage costs'!$C$16:$C$43,0))/1000,CP54*INDEX('Damage costs'!$AA$16:$AA$43,MATCH($B105,'Damage costs'!$C$16:$C$43,0))/1000),\"\")","v":""},{"$f":"IFERROR(IF(OR($C$110=FALSE,LEFT($B105,3)<>\"NOX\"),CQ54*INDEX('Damage costs'!$W$16:$W$43,MATCH($B105,'Damage costs'!$C$16:$C$43,0))/1000,CQ54*INDEX('Damage costs'!$AA$16:$AA$43,MATCH($B105,'Damage costs'!$C$16:$C$43,0))/1000),\"\")","v":""},{"$f":"IFERROR(IF(OR($C$110=FALSE,LEFT($B105,3)<>\"NOX\"),CR54*INDEX('Damage costs'!$W$16:$W$43,MATCH($B105,'Damage costs'!$C$16:$C$43,0))/1000,CR54*INDEX('Damage costs'!$AA$16:$AA$43,MATCH($B105,'Damage costs'!$C$16:$C$43,0))/1000),\"\")","v":""},{"$f":"IFERROR(IF(OR($C$110=FALSE,LEFT($B105,3)<>\"NOX\"),CS54*INDEX('Damage costs'!$W$16:$W$43,MATCH($B105,'Damage costs'!$C$16:$C$43,0))/1000,CS54*INDEX('Damage costs'!$AA$16:$AA$43,MATCH($B105,'Damage costs'!$C$16:$C$43,0))/1000),\"\")","v":""},{"$f":"IFERROR(IF(OR($C$110=FALSE,LEFT($B105,3)<>\"NOX\"),CT54*INDEX('Damage costs'!$W$16:$W$43,MATCH($B105,'Damage costs'!$C$16:$C$43,0))/1000,CT54*INDEX('Damage costs'!$AA$16:$AA$43,MATCH($B105,'Damage costs'!$C$16:$C$43,0))/1000),\"\")","v":""},{"$f":"IFERROR(IF(OR($C$110=FALSE,LEFT($B105,3)<>\"NOX\"),CU54*INDEX('Damage costs'!$W$16:$W$43,MATCH($B105,'Damage costs'!$C$16:$C$43,0))/1000,CU54*INDEX('Damage costs'!$AA$16:$AA$43,MATCH($B105,'Damage costs'!$C$16:$C$43,0))/1000),\"\")","v":""},{"$f":"IFERROR(IF(OR($C$110=FALSE,LEFT($B105,3)<>\"NOX\"),CV54*INDEX('Damage costs'!$W$16:$W$43,MATCH($B105,'Damage costs'!$C$16:$C$43,0))/1000,CV54*INDEX('Damage costs'!$AA$16:$AA$43,MATCH($B105,'Damage costs'!$C$16:$C$43,0))/1000),\"\")","v":""},{"$f":"IFERROR(IF(OR($C$110=FALSE,LEFT($B105,3)<>\"NOX\"),CW54*INDEX('Damage costs'!$W$16:$W$43,MATCH($B105,'Damage costs'!$C$16:$C$43,0))/1000,CW54*INDEX('Damage costs'!$AA$16:$AA$43,MATCH($B105,'Damage costs'!$C$16:$C$43,0))/1000),\"\")","v":""},{"$f":"IFERROR(IF(OR($C$110=FALSE,LEFT($B105,3)<>\"NOX\"),CX54*INDEX('Damage costs'!$W$16:$W$43,MATCH($B105,'Damage costs'!$C$16:$C$43,0))/1000,CX54*INDEX('Damage costs'!$AA$16:$AA$43,MATCH($B105,'Damage costs'!$C$16:$C$43,0))/1000),\"\")","v":""},{"$f":"IFERROR(IF(OR($C$110=FALSE,LEFT($B105,3)<>\"NOX\"),CY54*INDEX('Damage costs'!$W$16:$W$43,MATCH($B105,'Damage costs'!$C$16:$C$43,0))/1000,CY54*INDEX('Damage costs'!$AA$16:$AA$43,MATCH($B105,'Damage costs'!$C$16:$C$43,0))/1000),\"\")","v":""}]
[null,0,"£000's",{"$f":"IFERROR(IF(OR($C$110=FALSE,LEFT($B106,3)<>\"NOX\"),D55*INDEX('Damage costs'!$W$16:$W$43,MATCH($B106,'Damage costs'!$C$16:$C$43,0))/1000,D55*INDEX('Damage costs'!$AA$16:$AA$43,MATCH($B106,'Damage costs'!$C$16:$C$43,0))/1000),\"\")","v":""},{"$f":"IFERROR(IF(OR($C$110=FALSE,LEFT($B106,3)<>\"NOX\"),E55*INDEX('Damage costs'!$W$16:$W$43,MATCH($B106,'Damage costs'!$C$16:$C$43,0))/1000,E55*INDEX('Damage costs'!$AA$16:$AA$43,MATCH($B106,'Damage costs'!$C$16:$C$43,0))/1000),\"\")","v":""},{"$f":"IFERROR(IF(OR($C$110=FALSE,LEFT($B106,3)<>\"NOX\"),F55*INDEX('Damage costs'!$W$16:$W$43,MATCH($B106,'Damage costs'!$C$16:$C$43,0))/1000,F55*INDEX('Damage costs'!$AA$16:$AA$43,MATCH($B106,'Damage costs'!$C$16:$C$43,0))/1000),\"\")","v":""},{"$f":"IFERROR(IF(OR($C$110=FALSE,LEFT($B106,3)<>\"NOX\"),G55*INDEX('Damage costs'!$W$16:$W$43,MATCH($B106,'Damage costs'!$C$16:$C$43,0))/1000,G55*INDEX('Damage costs'!$AA$16:$AA$43,MATCH($B106,'Damage costs'!$C$16:$C$43,0))/1000),\"\")","v":""},{"$f":"IFERROR(IF(OR($C$110=FALSE,LEFT($B106,3)<>\"NOX\"),H55*INDEX('Damage costs'!$W$16:$W$43,MATCH($B106,'Damage costs'!$C$16:$C$43,0))/1000,H55*INDEX('Damage costs'!$AA$16:$AA$43,MATCH($B106,'Damage costs'!$C$16:$C$43,0))/1000),\"\")","v":""},{"$f":"IFERROR(IF(OR($C$110=FALSE,LEFT($B106,3)<>\"NOX\"),I55*INDEX('Damage costs'!$W$16:$W$43,MATCH($B106,'Damage costs'!$C$16:$C$43,0))/1000,I55*INDEX('Damage costs'!$AA$16:$AA$43,MATCH($B106,'Damage costs'!$C$16:$C$43,0))/1000),\"\")","v":""},{"$f":"IFERROR(IF(OR($C$110=FALSE,LEFT($B106,3)<>\"NOX\"),J55*INDEX('Damage costs'!$W$16:$W$43,MATCH($B106,'Damage costs'!$C$16:$C$43,0))/1000,J55*INDEX('Damage costs'!$AA$16:$AA$43,MATCH($B106,'Damage costs'!$C$16:$C$43,0))/1000),\"\")","v":""},{"$f":"IFERROR(IF(OR($C$110=FALSE,LEFT($B106,3)<>\"NOX\"),K55*INDEX('Damage costs'!$W$16:$W$43,MATCH($B106,'Damage costs'!$C$16:$C$43,0))/1000,K55*INDEX('Damage costs'!$AA$16:$AA$43,MATCH($B106,'Damage costs'!$C$16:$C$43,0))/1000),\"\")","v":""},{"$f":"IFERROR(IF(OR($C$110=FALSE,LEFT($B106,3)<>\"NOX\"),L55*INDEX('Damage costs'!$W$16:$W$43,MATCH($B106,'Damage costs'!$C$16:$C$43,0))/1000,L55*INDEX('Damage costs'!$AA$16:$AA$43,MATCH($B106,'Damage costs'!$C$16:$C$43,0))/1000),\"\")","v":""},{"$f":"IFERROR(IF(OR($C$110=FALSE,LEFT($B106,3)<>\"NOX\"),M55*INDEX('Damage costs'!$W$16:$W$43,MATCH($B106,'Damage costs'!$C$16:$C$43,0))/1000,M55*INDEX('Damage costs'!$AA$16:$AA$43,MATCH($B106,'Damage costs'!$C$16:$C$43,0))/1000),\"\")","v":""},{"$f":"IFERROR(IF(OR($C$110=FALSE,LEFT($B106,3)<>\"NOX\"),N55*INDEX('Damage costs'!$W$16:$W$43,MATCH($B106,'Damage costs'!$C$16:$C$43,0))/1000,N55*INDEX('Damage costs'!$AA$16:$AA$43,MATCH($B106,'Damage costs'!$C$16:$C$43,0))/1000),\"\")","v":""},{"$f":"IFERROR(IF(OR($C$110=FALSE,LEFT($B106,3)<>\"NOX\"),O55*INDEX('Damage costs'!$W$16:$W$43,MATCH($B106,'Damage costs'!$C$16:$C$43,0))/1000,O55*INDEX('Damage costs'!$AA$16:$AA$43,MATCH($B106,'Damage costs'!$C$16:$C$43,0))/1000),\"\")","v":""},{"$f":"IFERROR(IF(OR($C$110=FALSE,LEFT($B106,3)<>\"NOX\"),P55*INDEX('Damage costs'!$W$16:$W$43,MATCH($B106,'Damage costs'!$C$16:$C$43,0))/1000,P55*INDEX('Damage costs'!$AA$16:$AA$43,MATCH($B106,'Damage costs'!$C$16:$C$43,0))/1000),\"\")","v":""},{"$f":"IFERROR(IF(OR($C$110=FALSE,LEFT($B106,3)<>\"NOX\"),Q55*INDEX('Damage costs'!$W$16:$W$43,MATCH($B106,'Damage costs'!$C$16:$C$43,0))/1000,Q55*INDEX('Damage costs'!$AA$16:$AA$43,MATCH($B106,'Damage costs'!$C$16:$C$43,0))/1000),\"\")","v":""},{"$f":"IFERROR(IF(OR($C$110=FALSE,LEFT($B106,3)<>\"NOX\"),R55*INDEX('Damage costs'!$W$16:$W$43,MATCH($B106,'Damage costs'!$C$16:$C$43,0))/1000,R55*INDEX('Damage costs'!$AA$16:$AA$43,MATCH($B106,'Damage costs'!$C$16:$C$43,0))/1000),\"\")","v":""},{"$f":"IFERROR(IF(OR($C$110=FALSE,LEFT($B106,3)<>\"NOX\"),S55*INDEX('Damage costs'!$W$16:$W$43,MATCH($B106,'Damage costs'!$C$16:$C$43,0))/1000,S55*INDEX('Damage costs'!$AA$16:$AA$43,MATCH($B106,'Damage costs'!$C$16:$C$43,0))/1000),\"\")","v":""},{"$f":"IFERROR(IF(OR($C$110=FALSE,LEFT($B106,3)<>\"NOX\"),T55*INDEX('Damage costs'!$W$16:$W$43,MATCH($B106,'Damage costs'!$C$16:$C$43,0))/1000,T55*INDEX('Damage costs'!$AA$16:$AA$43,MATCH($B106,'Damage costs'!$C$16:$C$43,0))/1000),\"\")","v":""},{"$f":"IFERROR(IF(OR($C$110=FALSE,LEFT($B106,3)<>\"NOX\"),U55*INDEX('Damage costs'!$W$16:$W$43,MATCH($B106,'Damage costs'!$C$16:$C$43,0))/1000,U55*INDEX('Damage costs'!$AA$16:$AA$43,MATCH($B106,'Damage costs'!$C$16:$C$43,0))/1000),\"\")","v":""},{"$f":"IFERROR(IF(OR($C$110=FALSE,LEFT($B106,3)<>\"NOX\"),V55*INDEX('Damage costs'!$W$16:$W$43,MATCH($B106,'Damage costs'!$C$16:$C$43,0))/1000,V55*INDEX('Damage costs'!$AA$16:$AA$43,MATCH($B106,'Damage costs'!$C$16:$C$43,0))/1000),\"\")","v":""},{"$f":"IFERROR(IF(OR($C$110=FALSE,LEFT($B106,3)<>\"NOX\"),W55*INDEX('Damage costs'!$W$16:$W$43,MATCH($B106,'Damage costs'!$C$16:$C$43,0))/1000,W55*INDEX('Damage costs'!$AA$16:$AA$43,MATCH($B106,'Damage costs'!$C$16:$C$43,0))/1000),\"\")","v":""},{"$f":"IFERROR(IF(OR($C$110=FALSE,LEFT($B106,3)<>\"NOX\"),X55*INDEX('Damage costs'!$W$16:$W$43,MATCH($B106,'Damage costs'!$C$16:$C$43,0))/1000,X55*INDEX('Damage costs'!$AA$16:$AA$43,MATCH($B106,'Damage costs'!$C$16:$C$43,0))/1000),\"\")","v":""},{"$f":"IFERROR(IF(OR($C$110=FALSE,LEFT($B106,3)<>\"NOX\"),Y55*INDEX('Damage costs'!$W$16:$W$43,MATCH($B106,'Damage costs'!$C$16:$C$43,0))/1000,Y55*INDEX('Damage costs'!$AA$16:$AA$43,MATCH($B106,'Damage costs'!$C$16:$C$43,0))/1000),\"\")","v":""},{"$f":"IFERROR(IF(OR($C$110=FALSE,LEFT($B106,3)<>\"NOX\"),Z55*INDEX('Damage costs'!$W$16:$W$43,MATCH($B106,'Damage costs'!$C$16:$C$43,0))/1000,Z55*INDEX('Damage costs'!$AA$16:$AA$43,MATCH($B106,'Damage costs'!$C$16:$C$43,0))/1000),\"\")","v":""},{"$f":"IFERROR(IF(OR($C$110=FALSE,LEFT($B106,3)<>\"NOX\"),AA55*INDEX('Damage costs'!$W$16:$W$43,MATCH($B106,'Damage costs'!$C$16:$C$43,0))/1000,AA55*INDEX('Damage costs'!$AA$16:$AA$43,MATCH($B106,'Damage costs'!$C$16:$C$43,0))/1000),\"\")","v":""},{"$f":"IFERROR(IF(OR($C$110=FALSE,LEFT($B106,3)<>\"NOX\"),AB55*INDEX('Damage costs'!$W$16:$W$43,MATCH($B106,'Damage costs'!$C$16:$C$43,0))/1000,AB55*INDEX('Damage costs'!$AA$16:$AA$43,MATCH($B106,'Damage costs'!$C$16:$C$43,0))/1000),\"\")","v":""},{"$f":"IFERROR(IF(OR($C$110=FALSE,LEFT($B106,3)<>\"NOX\"),AC55*INDEX('Damage costs'!$W$16:$W$43,MATCH($B106,'Damage costs'!$C$16:$C$43,0))/1000,AC55*INDEX('Damage costs'!$AA$16:$AA$43,MATCH($B106,'Damage costs'!$C$16:$C$43,0))/1000),\"\")","v":""},{"$f":"IFERROR(IF(OR($C$110=FALSE,LEFT($B106,3)<>\"NOX\"),AD55*INDEX('Damage costs'!$W$16:$W$43,MATCH($B106,'Damage costs'!$C$16:$C$43,0))/1000,AD55*INDEX('Damage costs'!$AA$16:$AA$43,MATCH($B106,'Damage costs'!$C$16:$C$43,0))/1000),\"\")","v":""},{"$f":"IFERROR(IF(OR($C$110=FALSE,LEFT($B106,3)<>\"NOX\"),AE55*INDEX('Damage costs'!$W$16:$W$43,MATCH($B106,'Damage costs'!$C$16:$C$43,0))/1000,AE55*INDEX('Damage costs'!$AA$16:$AA$43,MATCH($B106,'Damage costs'!$C$16:$C$43,0))/1000),\"\")","v":""},{"$f":"IFERROR(IF(OR($C$110=FALSE,LEFT($B106,3)<>\"NOX\"),AF55*INDEX('Damage costs'!$W$16:$W$43,MATCH($B106,'Damage costs'!$C$16:$C$43,0))/1000,AF55*INDEX('Damage costs'!$AA$16:$AA$43,MATCH($B106,'Damage costs'!$C$16:$C$43,0))/1000),\"\")","v":""},{"$f":"IFERROR(IF(OR($C$110=FALSE,LEFT($B106,3)<>\"NOX\"),AG55*INDEX('Damage costs'!$W$16:$W$43,MATCH($B106,'Damage costs'!$C$16:$C$43,0))/1000,AG55*INDEX('Damage costs'!$AA$16:$AA$43,MATCH($B106,'Damage costs'!$C$16:$C$43,0))/1000),\"\")","v":""},{"$f":"IFERROR(IF(OR($C$110=FALSE,LEFT($B106,3)<>\"NOX\"),AH55*INDEX('Damage costs'!$W$16:$W$43,MATCH($B106,'Damage costs'!$C$16:$C$43,0))/1000,AH55*INDEX('Damage costs'!$AA$16:$AA$43,MATCH($B106,'Damage costs'!$C$16:$C$43,0))/1000),\"\")","v":""},{"$f":"IFERROR(IF(OR($C$110=FALSE,LEFT($B106,3)<>\"NOX\"),AI55*INDEX('Damage costs'!$W$16:$W$43,MATCH($B106,'Damage costs'!$C$16:$C$43,0))/1000,AI55*INDEX('Damage costs'!$AA$16:$AA$43,MATCH($B106,'Damage costs'!$C$16:$C$43,0))/1000),\"\")","v":""},{"$f":"IFERROR(IF(OR($C$110=FALSE,LEFT($B106,3)<>\"NOX\"),AJ55*INDEX('Damage costs'!$W$16:$W$43,MATCH($B106,'Damage costs'!$C$16:$C$43,0))/1000,AJ55*INDEX('Damage costs'!$AA$16:$AA$43,MATCH($B106,'Damage costs'!$C$16:$C$43,0))/1000),\"\")","v":""},{"$f":"IFERROR(IF(OR($C$110=FALSE,LEFT($B106,3)<>\"NOX\"),AK55*INDEX('Damage costs'!$W$16:$W$43,MATCH($B106,'Damage costs'!$C$16:$C$43,0))/1000,AK55*INDEX('Damage costs'!$AA$16:$AA$43,MATCH($B106,'Damage costs'!$C$16:$C$43,0))/1000),\"\")","v":""},{"$f":"IFERROR(IF(OR($C$110=FALSE,LEFT($B106,3)<>\"NOX\"),AL55*INDEX('Damage costs'!$W$16:$W$43,MATCH($B106,'Damage costs'!$C$16:$C$43,0))/1000,AL55*INDEX('Damage costs'!$AA$16:$AA$43,MATCH($B106,'Damage costs'!$C$16:$C$43,0))/1000),\"\")","v":""},{"$f":"IFERROR(IF(OR($C$110=FALSE,LEFT($B106,3)<>\"NOX\"),AM55*INDEX('Damage costs'!$W$16:$W$43,MATCH($B106,'Damage costs'!$C$16:$C$43,0))/1000,AM55*INDEX('Damage costs'!$AA$16:$AA$43,MATCH($B106,'Damage costs'!$C$16:$C$43,0))/1000),\"\")","v":""},{"$f":"IFERROR(IF(OR($C$110=FALSE,LEFT($B106,3)<>\"NOX\"),AN55*INDEX('Damage costs'!$W$16:$W$43,MATCH($B106,'Damage costs'!$C$16:$C$43,0))/1000,AN55*INDEX('Damage costs'!$AA$16:$AA$43,MATCH($B106,'Damage costs'!$C$16:$C$43,0))/1000),\"\")","v":""},{"$f":"IFERROR(IF(OR($C$110=FALSE,LEFT($B106,3)<>\"NOX\"),AO55*INDEX('Damage costs'!$W$16:$W$43,MATCH($B106,'Damage costs'!$C$16:$C$43,0))/1000,AO55*INDEX('Damage costs'!$AA$16:$AA$43,MATCH($B106,'Damage costs'!$C$16:$C$43,0))/1000),\"\")","v":""},{"$f":"IFERROR(IF(OR($C$110=FALSE,LEFT($B106,3)<>\"NOX\"),AP55*INDEX('Damage costs'!$W$16:$W$43,MATCH($B106,'Damage costs'!$C$16:$C$43,0))/1000,AP55*INDEX('Damage costs'!$AA$16:$AA$43,MATCH($B106,'Damage costs'!$C$16:$C$43,0))/1000),\"\")","v":""},{"$f":"IFERROR(IF(OR($C$110=FALSE,LEFT($B106,3)<>\"NOX\"),AQ55*INDEX('Damage costs'!$W$16:$W$43,MATCH($B106,'Damage costs'!$C$16:$C$43,0))/1000,AQ55*INDEX('Damage costs'!$AA$16:$AA$43,MATCH($B106,'Damage costs'!$C$16:$C$43,0))/1000),\"\")","v":""},{"$f":"IFERROR(IF(OR($C$110=FALSE,LEFT($B106,3)<>\"NOX\"),AR55*INDEX('Damage costs'!$W$16:$W$43,MATCH($B106,'Damage costs'!$C$16:$C$43,0))/1000,AR55*INDEX('Damage costs'!$AA$16:$AA$43,MATCH($B106,'Damage costs'!$C$16:$C$43,0))/1000),\"\")","v":""},{"$f":"IFERROR(IF(OR($C$110=FALSE,LEFT($B106,3)<>\"NOX\"),AS55*INDEX('Damage costs'!$W$16:$W$43,MATCH($B106,'Damage costs'!$C$16:$C$43,0))/1000,AS55*INDEX('Damage costs'!$AA$16:$AA$43,MATCH($B106,'Damage costs'!$C$16:$C$43,0))/1000),\"\")","v":""},{"$f":"IFERROR(IF(OR($C$110=FALSE,LEFT($B106,3)<>\"NOX\"),AT55*INDEX('Damage costs'!$W$16:$W$43,MATCH($B106,'Damage costs'!$C$16:$C$43,0))/1000,AT55*INDEX('Damage costs'!$AA$16:$AA$43,MATCH($B106,'Damage costs'!$C$16:$C$43,0))/1000),\"\")","v":""},{"$f":"IFERROR(IF(OR($C$110=FALSE,LEFT($B106,3)<>\"NOX\"),AU55*INDEX('Damage costs'!$W$16:$W$43,MATCH($B106,'Damage costs'!$C$16:$C$43,0))/1000,AU55*INDEX('Damage costs'!$AA$16:$AA$43,MATCH($B106,'Damage costs'!$C$16:$C$43,0))/1000),\"\")","v":""},{"$f":"IFERROR(IF(OR($C$110=FALSE,LEFT($B106,3)<>\"NOX\"),AV55*INDEX('Damage costs'!$W$16:$W$43,MATCH($B106,'Damage costs'!$C$16:$C$43,0))/1000,AV55*INDEX('Damage costs'!$AA$16:$AA$43,MATCH($B106,'Damage costs'!$C$16:$C$43,0))/1000),\"\")","v":""},{"$f":"IFERROR(IF(OR($C$110=FALSE,LEFT($B106,3)<>\"NOX\"),AW55*INDEX('Damage costs'!$W$16:$W$43,MATCH($B106,'Damage costs'!$C$16:$C$43,0))/1000,AW55*INDEX('Damage costs'!$AA$16:$AA$43,MATCH($B106,'Damage costs'!$C$16:$C$43,0))/1000),\"\")","v":""},{"$f":"IFERROR(IF(OR($C$110=FALSE,LEFT($B106,3)<>\"NOX\"),AX55*INDEX('Damage costs'!$W$16:$W$43,MATCH($B106,'Damage costs'!$C$16:$C$43,0))/1000,AX55*INDEX('Damage costs'!$AA$16:$AA$43,MATCH($B106,'Damage costs'!$C$16:$C$43,0))/1000),\"\")","v":""},{"$f":"IFERROR(IF(OR($C$110=FALSE,LEFT($B106,3)<>\"NOX\"),AY55*INDEX('Damage costs'!$W$16:$W$43,MATCH($B106,'Damage costs'!$C$16:$C$43,0))/1000,AY55*INDEX('Damage costs'!$AA$16:$AA$43,MATCH($B106,'Damage costs'!$C$16:$C$43,0))/1000),\"\")","v":""},{"$f":"IFERROR(IF(OR($C$110=FALSE,LEFT($B106,3)<>\"NOX\"),AZ55*INDEX('Damage costs'!$W$16:$W$43,MATCH($B106,'Damage costs'!$C$16:$C$43,0))/1000,AZ55*INDEX('Damage costs'!$AA$16:$AA$43,MATCH($B106,'Damage costs'!$C$16:$C$43,0))/1000),\"\")","v":""},{"$f":"IFERROR(IF(OR($C$110=FALSE,LEFT($B106,3)<>\"NOX\"),BA55*INDEX('Damage costs'!$W$16:$W$43,MATCH($B106,'Damage costs'!$C$16:$C$43,0))/1000,BA55*INDEX('Damage costs'!$AA$16:$AA$43,MATCH($B106,'Damage costs'!$C$16:$C$43,0))/1000),\"\")","v":""},{"$f":"IFERROR(IF(OR($C$110=FALSE,LEFT($B106,3)<>\"NOX\"),BB55*INDEX('Damage costs'!$W$16:$W$43,MATCH($B106,'Damage costs'!$C$16:$C$43,0))/1000,BB55*INDEX('Damage costs'!$AA$16:$AA$43,MATCH($B106,'Damage costs'!$C$16:$C$43,0))/1000),\"\")","v":""},{"$f":"IFERROR(IF(OR($C$110=FALSE,LEFT($B106,3)<>\"NOX\"),BC55*INDEX('Damage costs'!$W$16:$W$43,MATCH($B106,'Damage costs'!$C$16:$C$43,0))/1000,BC55*INDEX('Damage costs'!$AA$16:$AA$43,MATCH($B106,'Damage costs'!$C$16:$C$43,0))/1000),\"\")","v":""},{"$f":"IFERROR(IF(OR($C$110=FALSE,LEFT($B106,3)<>\"NOX\"),BD55*INDEX('Damage costs'!$W$16:$W$43,MATCH($B106,'Damage costs'!$C$16:$C$43,0))/1000,BD55*INDEX('Damage costs'!$AA$16:$AA$43,MATCH($B106,'Damage costs'!$C$16:$C$43,0))/1000),\"\")","v":""},{"$f":"IFERROR(IF(OR($C$110=FALSE,LEFT($B106,3)<>\"NOX\"),BE55*INDEX('Damage costs'!$W$16:$W$43,MATCH($B106,'Damage costs'!$C$16:$C$43,0))/1000,BE55*INDEX('Damage costs'!$AA$16:$AA$43,MATCH($B106,'Damage costs'!$C$16:$C$43,0))/1000),\"\")","v":""},{"$f":"IFERROR(IF(OR($C$110=FALSE,LEFT($B106,3)<>\"NOX\"),BF55*INDEX('Damage costs'!$W$16:$W$43,MATCH($B106,'Damage costs'!$C$16:$C$43,0))/1000,BF55*INDEX('Damage costs'!$AA$16:$AA$43,MATCH($B106,'Damage costs'!$C$16:$C$43,0))/1000),\"\")","v":""},{"$f":"IFERROR(IF(OR($C$110=FALSE,LEFT($B106,3)<>\"NOX\"),BG55*INDEX('Damage costs'!$W$16:$W$43,MATCH($B106,'Damage costs'!$C$16:$C$43,0))/1000,BG55*INDEX('Damage costs'!$AA$16:$AA$43,MATCH($B106,'Damage costs'!$C$16:$C$43,0))/1000),\"\")","v":""},{"$f":"IFERROR(IF(OR($C$110=FALSE,LEFT($B106,3)<>\"NOX\"),BH55*INDEX('Damage costs'!$W$16:$W$43,MATCH($B106,'Damage costs'!$C$16:$C$43,0))/1000,BH55*INDEX('Damage costs'!$AA$16:$AA$43,MATCH($B106,'Damage costs'!$C$16:$C$43,0))/1000),\"\")","v":""},{"$f":"IFERROR(IF(OR($C$110=FALSE,LEFT($B106,3)<>\"NOX\"),BI55*INDEX('Damage costs'!$W$16:$W$43,MATCH($B106,'Damage costs'!$C$16:$C$43,0))/1000,BI55*INDEX('Damage costs'!$AA$16:$AA$43,MATCH($B106,'Damage costs'!$C$16:$C$43,0))/1000),\"\")","v":""},{"$f":"IFERROR(IF(OR($C$110=FALSE,LEFT($B106,3)<>\"NOX\"),BJ55*INDEX('Damage costs'!$W$16:$W$43,MATCH($B106,'Damage costs'!$C$16:$C$43,0))/1000,BJ55*INDEX('Damage costs'!$AA$16:$AA$43,MATCH($B106,'Damage costs'!$C$16:$C$43,0))/1000),\"\")","v":""},{"$f":"IFERROR(IF(OR($C$110=FALSE,LEFT($B106,3)<>\"NOX\"),BK55*INDEX('Damage costs'!$W$16:$W$43,MATCH($B106,'Damage costs'!$C$16:$C$43,0))/1000,BK55*INDEX('Damage costs'!$AA$16:$AA$43,MATCH($B106,'Damage costs'!$C$16:$C$43,0))/1000),\"\")","v":""},{"$f":"IFERROR(IF(OR($C$110=FALSE,LEFT($B106,3)<>\"NOX\"),BL55*INDEX('Damage costs'!$W$16:$W$43,MATCH($B106,'Damage costs'!$C$16:$C$43,0))/1000,BL55*INDEX('Damage costs'!$AA$16:$AA$43,MATCH($B106,'Damage costs'!$C$16:$C$43,0))/1000),\"\")","v":""},{"$f":"IFERROR(IF(OR($C$110=FALSE,LEFT($B106,3)<>\"NOX\"),BM55*INDEX('Damage costs'!$W$16:$W$43,MATCH($B106,'Damage costs'!$C$16:$C$43,0))/1000,BM55*INDEX('Damage costs'!$AA$16:$AA$43,MATCH($B106,'Damage costs'!$C$16:$C$43,0))/1000),\"\")","v":""},{"$f":"IFERROR(IF(OR($C$110=FALSE,LEFT($B106,3)<>\"NOX\"),BN55*INDEX('Damage costs'!$W$16:$W$43,MATCH($B106,'Damage costs'!$C$16:$C$43,0))/1000,BN55*INDEX('Damage costs'!$AA$16:$AA$43,MATCH($B106,'Damage costs'!$C$16:$C$43,0))/1000),\"\")","v":""},{"$f":"IFERROR(IF(OR($C$110=FALSE,LEFT($B106,3)<>\"NOX\"),BO55*INDEX('Damage costs'!$W$16:$W$43,MATCH($B106,'Damage costs'!$C$16:$C$43,0))/1000,BO55*INDEX('Damage costs'!$AA$16:$AA$43,MATCH($B106,'Damage costs'!$C$16:$C$43,0))/1000),\"\")","v":""},{"$f":"IFERROR(IF(OR($C$110=FALSE,LEFT($B106,3)<>\"NOX\"),BP55*INDEX('Damage costs'!$W$16:$W$43,MATCH($B106,'Damage costs'!$C$16:$C$43,0))/1000,BP55*INDEX('Damage costs'!$AA$16:$AA$43,MATCH($B106,'Damage costs'!$C$16:$C$43,0))/1000),\"\")","v":""},{"$f":"IFERROR(IF(OR($C$110=FALSE,LEFT($B106,3)<>\"NOX\"),BQ55*INDEX('Damage costs'!$W$16:$W$43,MATCH($B106,'Damage costs'!$C$16:$C$43,0))/1000,BQ55*INDEX('Damage costs'!$AA$16:$AA$43,MATCH($B106,'Damage costs'!$C$16:$C$43,0))/1000),\"\")","v":""},{"$f":"IFERROR(IF(OR($C$110=FALSE,LEFT($B106,3)<>\"NOX\"),BR55*INDEX('Damage costs'!$W$16:$W$43,MATCH($B106,'Damage costs'!$C$16:$C$43,0))/1000,BR55*INDEX('Damage costs'!$AA$16:$AA$43,MATCH($B106,'Damage costs'!$C$16:$C$43,0))/1000),\"\")","v":""},{"$f":"IFERROR(IF(OR($C$110=FALSE,LEFT($B106,3)<>\"NOX\"),BS55*INDEX('Damage costs'!$W$16:$W$43,MATCH($B106,'Damage costs'!$C$16:$C$43,0))/1000,BS55*INDEX('Damage costs'!$AA$16:$AA$43,MATCH($B106,'Damage costs'!$C$16:$C$43,0))/1000),\"\")","v":""},{"$f":"IFERROR(IF(OR($C$110=FALSE,LEFT($B106,3)<>\"NOX\"),BT55*INDEX('Damage costs'!$W$16:$W$43,MATCH($B106,'Damage costs'!$C$16:$C$43,0))/1000,BT55*INDEX('Damage costs'!$AA$16:$AA$43,MATCH($B106,'Damage costs'!$C$16:$C$43,0))/1000),\"\")","v":""},{"$f":"IFERROR(IF(OR($C$110=FALSE,LEFT($B106,3)<>\"NOX\"),BU55*INDEX('Damage costs'!$W$16:$W$43,MATCH($B106,'Damage costs'!$C$16:$C$43,0))/1000,BU55*INDEX('Damage costs'!$AA$16:$AA$43,MATCH($B106,'Damage costs'!$C$16:$C$43,0))/1000),\"\")","v":""},{"$f":"IFERROR(IF(OR($C$110=FALSE,LEFT($B106,3)<>\"NOX\"),BV55*INDEX('Damage costs'!$W$16:$W$43,MATCH($B106,'Damage costs'!$C$16:$C$43,0))/1000,BV55*INDEX('Damage costs'!$AA$16:$AA$43,MATCH($B106,'Damage costs'!$C$16:$C$43,0))/1000),\"\")","v":""},{"$f":"IFERROR(IF(OR($C$110=FALSE,LEFT($B106,3)<>\"NOX\"),BW55*INDEX('Damage costs'!$W$16:$W$43,MATCH($B106,'Damage costs'!$C$16:$C$43,0))/1000,BW55*INDEX('Damage costs'!$AA$16:$AA$43,MATCH($B106,'Damage costs'!$C$16:$C$43,0))/1000),\"\")","v":""},{"$f":"IFERROR(IF(OR($C$110=FALSE,LEFT($B106,3)<>\"NOX\"),BX55*INDEX('Damage costs'!$W$16:$W$43,MATCH($B106,'Damage costs'!$C$16:$C$43,0))/1000,BX55*INDEX('Damage costs'!$AA$16:$AA$43,MATCH($B106,'Damage costs'!$C$16:$C$43,0))/1000),\"\")","v":""},{"$f":"IFERROR(IF(OR($C$110=FALSE,LEFT($B106,3)<>\"NOX\"),BY55*INDEX('Damage costs'!$W$16:$W$43,MATCH($B106,'Damage costs'!$C$16:$C$43,0))/1000,BY55*INDEX('Damage costs'!$AA$16:$AA$43,MATCH($B106,'Damage costs'!$C$16:$C$43,0))/1000),\"\")","v":""},{"$f":"IFERROR(IF(OR($C$110=FALSE,LEFT($B106,3)<>\"NOX\"),BZ55*INDEX('Damage costs'!$W$16:$W$43,MATCH($B106,'Damage costs'!$C$16:$C$43,0))/1000,BZ55*INDEX('Damage costs'!$AA$16:$AA$43,MATCH($B106,'Damage costs'!$C$16:$C$43,0))/1000),\"\")","v":""},{"$f":"IFERROR(IF(OR($C$110=FALSE,LEFT($B106,3)<>\"NOX\"),CA55*INDEX('Damage costs'!$W$16:$W$43,MATCH($B106,'Damage costs'!$C$16:$C$43,0))/1000,CA55*INDEX('Damage costs'!$AA$16:$AA$43,MATCH($B106,'Damage costs'!$C$16:$C$43,0))/1000),\"\")","v":""},{"$f":"IFERROR(IF(OR($C$110=FALSE,LEFT($B106,3)<>\"NOX\"),CB55*INDEX('Damage costs'!$W$16:$W$43,MATCH($B106,'Damage costs'!$C$16:$C$43,0))/1000,CB55*INDEX('Damage costs'!$AA$16:$AA$43,MATCH($B106,'Damage costs'!$C$16:$C$43,0))/1000),\"\")","v":""},{"$f":"IFERROR(IF(OR($C$110=FALSE,LEFT($B106,3)<>\"NOX\"),CC55*INDEX('Damage costs'!$W$16:$W$43,MATCH($B106,'Damage costs'!$C$16:$C$43,0))/1000,CC55*INDEX('Damage costs'!$AA$16:$AA$43,MATCH($B106,'Damage costs'!$C$16:$C$43,0))/1000),\"\")","v":""},{"$f":"IFERROR(IF(OR($C$110=FALSE,LEFT($B106,3)<>\"NOX\"),CD55*INDEX('Damage costs'!$W$16:$W$43,MATCH($B106,'Damage costs'!$C$16:$C$43,0))/1000,CD55*INDEX('Damage costs'!$AA$16:$AA$43,MATCH($B106,'Damage costs'!$C$16:$C$43,0))/1000),\"\")","v":""},{"$f":"IFERROR(IF(OR($C$110=FALSE,LEFT($B106,3)<>\"NOX\"),CE55*INDEX('Damage costs'!$W$16:$W$43,MATCH($B106,'Damage costs'!$C$16:$C$43,0))/1000,CE55*INDEX('Damage costs'!$AA$16:$AA$43,MATCH($B106,'Damage costs'!$C$16:$C$43,0))/1000),\"\")","v":""},{"$f":"IFERROR(IF(OR($C$110=FALSE,LEFT($B106,3)<>\"NOX\"),CF55*INDEX('Damage costs'!$W$16:$W$43,MATCH($B106,'Damage costs'!$C$16:$C$43,0))/1000,CF55*INDEX('Damage costs'!$AA$16:$AA$43,MATCH($B106,'Damage costs'!$C$16:$C$43,0))/1000),\"\")","v":""},{"$f":"IFERROR(IF(OR($C$110=FALSE,LEFT($B106,3)<>\"NOX\"),CG55*INDEX('Damage costs'!$W$16:$W$43,MATCH($B106,'Damage costs'!$C$16:$C$43,0))/1000,CG55*INDEX('Damage costs'!$AA$16:$AA$43,MATCH($B106,'Damage costs'!$C$16:$C$43,0))/1000),\"\")","v":""},{"$f":"IFERROR(IF(OR($C$110=FALSE,LEFT($B106,3)<>\"NOX\"),CH55*INDEX('Damage costs'!$W$16:$W$43,MATCH($B106,'Damage costs'!$C$16:$C$43,0))/1000,CH55*INDEX('Damage costs'!$AA$16:$AA$43,MATCH($B106,'Damage costs'!$C$16:$C$43,0))/1000),\"\")","v":""},{"$f":"IFERROR(IF(OR($C$110=FALSE,LEFT($B106,3)<>\"NOX\"),CI55*INDEX('Damage costs'!$W$16:$W$43,MATCH($B106,'Damage costs'!$C$16:$C$43,0))/1000,CI55*INDEX('Damage costs'!$AA$16:$AA$43,MATCH($B106,'Damage costs'!$C$16:$C$43,0))/1000),\"\")","v":""},{"$f":"IFERROR(IF(OR($C$110=FALSE,LEFT($B106,3)<>\"NOX\"),CJ55*INDEX('Damage costs'!$W$16:$W$43,MATCH($B106,'Damage costs'!$C$16:$C$43,0))/1000,CJ55*INDEX('Damage costs'!$AA$16:$AA$43,MATCH($B106,'Damage costs'!$C$16:$C$43,0))/1000),\"\")","v":""},{"$f":"IFERROR(IF(OR($C$110=FALSE,LEFT($B106,3)<>\"NOX\"),CK55*INDEX('Damage costs'!$W$16:$W$43,MATCH($B106,'Damage costs'!$C$16:$C$43,0))/1000,CK55*INDEX('Damage costs'!$AA$16:$AA$43,MATCH($B106,'Damage costs'!$C$16:$C$43,0))/1000),\"\")","v":""},{"$f":"IFERROR(IF(OR($C$110=FALSE,LEFT($B106,3)<>\"NOX\"),CL55*INDEX('Damage costs'!$W$16:$W$43,MATCH($B106,'Damage costs'!$C$16:$C$43,0))/1000,CL55*INDEX('Damage costs'!$AA$16:$AA$43,MATCH($B106,'Damage costs'!$C$16:$C$43,0))/1000),\"\")","v":""},{"$f":"IFERROR(IF(OR($C$110=FALSE,LEFT($B106,3)<>\"NOX\"),CM55*INDEX('Damage costs'!$W$16:$W$43,MATCH($B106,'Damage costs'!$C$16:$C$43,0))/1000,CM55*INDEX('Damage costs'!$AA$16:$AA$43,MATCH($B106,'Damage costs'!$C$16:$C$43,0))/1000),\"\")","v":""},{"$f":"IFERROR(IF(OR($C$110=FALSE,LEFT($B106,3)<>\"NOX\"),CN55*INDEX('Damage costs'!$W$16:$W$43,MATCH($B106,'Damage costs'!$C$16:$C$43,0))/1000,CN55*INDEX('Damage costs'!$AA$16:$AA$43,MATCH($B106,'Damage costs'!$C$16:$C$43,0))/1000),\"\")","v":""},{"$f":"IFERROR(IF(OR($C$110=FALSE,LEFT($B106,3)<>\"NOX\"),CO55*INDEX('Damage costs'!$W$16:$W$43,MATCH($B106,'Damage costs'!$C$16:$C$43,0))/1000,CO55*INDEX('Damage costs'!$AA$16:$AA$43,MATCH($B106,'Damage costs'!$C$16:$C$43,0))/1000),\"\")","v":""},{"$f":"IFERROR(IF(OR($C$110=FALSE,LEFT($B106,3)<>\"NOX\"),CP55*INDEX('Damage costs'!$W$16:$W$43,MATCH($B106,'Damage costs'!$C$16:$C$43,0))/1000,CP55*INDEX('Damage costs'!$AA$16:$AA$43,MATCH($B106,'Damage costs'!$C$16:$C$43,0))/1000),\"\")","v":""},{"$f":"IFERROR(IF(OR($C$110=FALSE,LEFT($B106,3)<>\"NOX\"),CQ55*INDEX('Damage costs'!$W$16:$W$43,MATCH($B106,'Damage costs'!$C$16:$C$43,0))/1000,CQ55*INDEX('Damage costs'!$AA$16:$AA$43,MATCH($B106,'Damage costs'!$C$16:$C$43,0))/1000),\"\")","v":""},{"$f":"IFERROR(IF(OR($C$110=FALSE,LEFT($B106,3)<>\"NOX\"),CR55*INDEX('Damage costs'!$W$16:$W$43,MATCH($B106,'Damage costs'!$C$16:$C$43,0))/1000,CR55*INDEX('Damage costs'!$AA$16:$AA$43,MATCH($B106,'Damage costs'!$C$16:$C$43,0))/1000),\"\")","v":""},{"$f":"IFERROR(IF(OR($C$110=FALSE,LEFT($B106,3)<>\"NOX\"),CS55*INDEX('Damage costs'!$W$16:$W$43,MATCH($B106,'Damage costs'!$C$16:$C$43,0))/1000,CS55*INDEX('Damage costs'!$AA$16:$AA$43,MATCH($B106,'Damage costs'!$C$16:$C$43,0))/1000),\"\")","v":""},{"$f":"IFERROR(IF(OR($C$110=FALSE,LEFT($B106,3)<>\"NOX\"),CT55*INDEX('Damage costs'!$W$16:$W$43,MATCH($B106,'Damage costs'!$C$16:$C$43,0))/1000,CT55*INDEX('Damage costs'!$AA$16:$AA$43,MATCH($B106,'Damage costs'!$C$16:$C$43,0))/1000),\"\")","v":""},{"$f":"IFERROR(IF(OR($C$110=FALSE,LEFT($B106,3)<>\"NOX\"),CU55*INDEX('Damage costs'!$W$16:$W$43,MATCH($B106,'Damage costs'!$C$16:$C$43,0))/1000,CU55*INDEX('Damage costs'!$AA$16:$AA$43,MATCH($B106,'Damage costs'!$C$16:$C$43,0))/1000),\"\")","v":""},{"$f":"IFERROR(IF(OR($C$110=FALSE,LEFT($B106,3)<>\"NOX\"),CV55*INDEX('Damage costs'!$W$16:$W$43,MATCH($B106,'Damage costs'!$C$16:$C$43,0))/1000,CV55*INDEX('Damage costs'!$AA$16:$AA$43,MATCH($B106,'Damage costs'!$C$16:$C$43,0))/1000),\"\")","v":""},{"$f":"IFERROR(IF(OR($C$110=FALSE,LEFT($B106,3)<>\"NOX\"),CW55*INDEX('Damage costs'!$W$16:$W$43,MATCH($B106,'Damage costs'!$C$16:$C$43,0))/1000,CW55*INDEX('Damage costs'!$AA$16:$AA$43,MATCH($B106,'Damage costs'!$C$16:$C$43,0))/1000),\"\")","v":""},{"$f":"IFERROR(IF(OR($C$110=FALSE,LEFT($B106,3)<>\"NOX\"),CX55*INDEX('Damage costs'!$W$16:$W$43,MATCH($B106,'Damage costs'!$C$16:$C$43,0))/1000,CX55*INDEX('Damage costs'!$AA$16:$AA$43,MATCH($B106,'Damage costs'!$C$16:$C$43,0))/1000),\"\")","v":""},{"$f":"IFERROR(IF(OR($C$110=FALSE,LEFT($B106,3)<>\"NOX\"),CY55*INDEX('Damage costs'!$W$16:$W$43,MATCH($B106,'Damage costs'!$C$16:$C$43,0))/1000,CY55*INDEX('Damage costs'!$AA$16:$AA$43,MATCH($B106,'Damage costs'!$C$16:$C$43,0))/1000),\"\")","v":""}]
[null,0,"£000's",{"$f":"IFERROR(IF(OR($C$110=FALSE,LEFT($B107,3)<>\"NOX\"),D56*INDEX('Damage costs'!$W$16:$W$43,MATCH($B107,'Damage costs'!$C$16:$C$43,0))/1000,D56*INDEX('Damage costs'!$AA$16:$AA$43,MATCH($B107,'Damage costs'!$C$16:$C$43,0))/1000),\"\")","v":""},{"$f":"IFERROR(IF(OR($C$110=FALSE,LEFT($B107,3)<>\"NOX\"),E56*INDEX('Damage costs'!$W$16:$W$43,MATCH($B107,'Damage costs'!$C$16:$C$43,0))/1000,E56*INDEX('Damage costs'!$AA$16:$AA$43,MATCH($B107,'Damage costs'!$C$16:$C$43,0))/1000),\"\")","v":""},{"$f":"IFERROR(IF(OR($C$110=FALSE,LEFT($B107,3)<>\"NOX\"),F56*INDEX('Damage costs'!$W$16:$W$43,MATCH($B107,'Damage costs'!$C$16:$C$43,0))/1000,F56*INDEX('Damage costs'!$AA$16:$AA$43,MATCH($B107,'Damage costs'!$C$16:$C$43,0))/1000),\"\")","v":""},{"$f":"IFERROR(IF(OR($C$110=FALSE,LEFT($B107,3)<>\"NOX\"),G56*INDEX('Damage costs'!$W$16:$W$43,MATCH($B107,'Damage costs'!$C$16:$C$43,0))/1000,G56*INDEX('Damage costs'!$AA$16:$AA$43,MATCH($B107,'Damage costs'!$C$16:$C$43,0))/1000),\"\")","v":""},{"$f":"IFERROR(IF(OR($C$110=FALSE,LEFT($B107,3)<>\"NOX\"),H56*INDEX('Damage costs'!$W$16:$W$43,MATCH($B107,'Damage costs'!$C$16:$C$43,0))/1000,H56*INDEX('Damage costs'!$AA$16:$AA$43,MATCH($B107,'Damage costs'!$C$16:$C$43,0))/1000),\"\")","v":""},{"$f":"IFERROR(IF(OR($C$110=FALSE,LEFT($B107,3)<>\"NOX\"),I56*INDEX('Damage costs'!$W$16:$W$43,MATCH($B107,'Damage costs'!$C$16:$C$43,0))/1000,I56*INDEX('Damage costs'!$AA$16:$AA$43,MATCH($B107,'Damage costs'!$C$16:$C$43,0))/1000),\"\")","v":""},{"$f":"IFERROR(IF(OR($C$110=FALSE,LEFT($B107,3)<>\"NOX\"),J56*INDEX('Damage costs'!$W$16:$W$43,MATCH($B107,'Damage costs'!$C$16:$C$43,0))/1000,J56*INDEX('Damage costs'!$AA$16:$AA$43,MATCH($B107,'Damage costs'!$C$16:$C$43,0))/1000),\"\")","v":""},{"$f":"IFERROR(IF(OR($C$110=FALSE,LEFT($B107,3)<>\"NOX\"),K56*INDEX('Damage costs'!$W$16:$W$43,MATCH($B107,'Damage costs'!$C$16:$C$43,0))/1000,K56*INDEX('Damage costs'!$AA$16:$AA$43,MATCH($B107,'Damage costs'!$C$16:$C$43,0))/1000),\"\")","v":""},{"$f":"IFERROR(IF(OR($C$110=FALSE,LEFT($B107,3)<>\"NOX\"),L56*INDEX('Damage costs'!$W$16:$W$43,MATCH($B107,'Damage costs'!$C$16:$C$43,0))/1000,L56*INDEX('Damage costs'!$AA$16:$AA$43,MATCH($B107,'Damage costs'!$C$16:$C$43,0))/1000),\"\")","v":""},{"$f":"IFERROR(IF(OR($C$110=FALSE,LEFT($B107,3)<>\"NOX\"),M56*INDEX('Damage costs'!$W$16:$W$43,MATCH($B107,'Damage costs'!$C$16:$C$43,0))/1000,M56*INDEX('Damage costs'!$AA$16:$AA$43,MATCH($B107,'Damage costs'!$C$16:$C$43,0))/1000),\"\")","v":""},{"$f":"IFERROR(IF(OR($C$110=FALSE,LEFT($B107,3)<>\"NOX\"),N56*INDEX('Damage costs'!$W$16:$W$43,MATCH($B107,'Damage costs'!$C$16:$C$43,0))/1000,N56*INDEX('Damage costs'!$AA$16:$AA$43,MATCH($B107,'Damage costs'!$C$16:$C$43,0))/1000),\"\")","v":""},{"$f":"IFERROR(IF(OR($C$110=FALSE,LEFT($B107,3)<>\"NOX\"),O56*INDEX('Damage costs'!$W$16:$W$43,MATCH($B107,'Damage costs'!$C$16:$C$43,0))/1000,O56*INDEX('Damage costs'!$AA$16:$AA$43,MATCH($B107,'Damage costs'!$C$16:$C$43,0))/1000),\"\")","v":""},{"$f":"IFERROR(IF(OR($C$110=FALSE,LEFT($B107,3)<>\"NOX\"),P56*INDEX('Damage costs'!$W$16:$W$43,MATCH($B107,'Damage costs'!$C$16:$C$43,0))/1000,P56*INDEX('Damage costs'!$AA$16:$AA$43,MATCH($B107,'Damage costs'!$C$16:$C$43,0))/1000),\"\")","v":""},{"$f":"IFERROR(IF(OR($C$110=FALSE,LEFT($B107,3)<>\"NOX\"),Q56*INDEX('Damage costs'!$W$16:$W$43,MATCH($B107,'Damage costs'!$C$16:$C$43,0))/1000,Q56*INDEX('Damage costs'!$AA$16:$AA$43,MATCH($B107,'Damage costs'!$C$16:$C$43,0))/1000),\"\")","v":""},{"$f":"IFERROR(IF(OR($C$110=FALSE,LEFT($B107,3)<>\"NOX\"),R56*INDEX('Damage costs'!$W$16:$W$43,MATCH($B107,'Damage costs'!$C$16:$C$43,0))/1000,R56*INDEX('Damage costs'!$AA$16:$AA$43,MATCH($B107,'Damage costs'!$C$16:$C$43,0))/1000),\"\")","v":""},{"$f":"IFERROR(IF(OR($C$110=FALSE,LEFT($B107,3)<>\"NOX\"),S56*INDEX('Damage costs'!$W$16:$W$43,MATCH($B107,'Damage costs'!$C$16:$C$43,0))/1000,S56*INDEX('Damage costs'!$AA$16:$AA$43,MATCH($B107,'Damage costs'!$C$16:$C$43,0))/1000),\"\")","v":""},{"$f":"IFERROR(IF(OR($C$110=FALSE,LEFT($B107,3)<>\"NOX\"),T56*INDEX('Damage costs'!$W$16:$W$43,MATCH($B107,'Damage costs'!$C$16:$C$43,0))/1000,T56*INDEX('Damage costs'!$AA$16:$AA$43,MATCH($B107,'Damage costs'!$C$16:$C$43,0))/1000),\"\")","v":""},{"$f":"IFERROR(IF(OR($C$110=FALSE,LEFT($B107,3)<>\"NOX\"),U56*INDEX('Damage costs'!$W$16:$W$43,MATCH($B107,'Damage costs'!$C$16:$C$43,0))/1000,U56*INDEX('Damage costs'!$AA$16:$AA$43,MATCH($B107,'Damage costs'!$C$16:$C$43,0))/1000),\"\")","v":""},{"$f":"IFERROR(IF(OR($C$110=FALSE,LEFT($B107,3)<>\"NOX\"),V56*INDEX('Damage costs'!$W$16:$W$43,MATCH($B107,'Damage costs'!$C$16:$C$43,0))/1000,V56*INDEX('Damage costs'!$AA$16:$AA$43,MATCH($B107,'Damage costs'!$C$16:$C$43,0))/1000),\"\")","v":""},{"$f":"IFERROR(IF(OR($C$110=FALSE,LEFT($B107,3)<>\"NOX\"),W56*INDEX('Damage costs'!$W$16:$W$43,MATCH($B107,'Damage costs'!$C$16:$C$43,0))/1000,W56*INDEX('Damage costs'!$AA$16:$AA$43,MATCH($B107,'Damage costs'!$C$16:$C$43,0))/1000),\"\")","v":""},{"$f":"IFERROR(IF(OR($C$110=FALSE,LEFT($B107,3)<>\"NOX\"),X56*INDEX('Damage costs'!$W$16:$W$43,MATCH($B107,'Damage costs'!$C$16:$C$43,0))/1000,X56*INDEX('Damage costs'!$AA$16:$AA$43,MATCH($B107,'Damage costs'!$C$16:$C$43,0))/1000),\"\")","v":""},{"$f":"IFERROR(IF(OR($C$110=FALSE,LEFT($B107,3)<>\"NOX\"),Y56*INDEX('Damage costs'!$W$16:$W$43,MATCH($B107,'Damage costs'!$C$16:$C$43,0))/1000,Y56*INDEX('Damage costs'!$AA$16:$AA$43,MATCH($B107,'Damage costs'!$C$16:$C$43,0))/1000),\"\")","v":""},{"$f":"IFERROR(IF(OR($C$110=FALSE,LEFT($B107,3)<>\"NOX\"),Z56*INDEX('Damage costs'!$W$16:$W$43,MATCH($B107,'Damage costs'!$C$16:$C$43,0))/1000,Z56*INDEX('Damage costs'!$AA$16:$AA$43,MATCH($B107,'Damage costs'!$C$16:$C$43,0))/1000),\"\")","v":""},{"$f":"IFERROR(IF(OR($C$110=FALSE,LEFT($B107,3)<>\"NOX\"),AA56*INDEX('Damage costs'!$W$16:$W$43,MATCH($B107,'Damage costs'!$C$16:$C$43,0))/1000,AA56*INDEX('Damage costs'!$AA$16:$AA$43,MATCH($B107,'Damage costs'!$C$16:$C$43,0))/1000),\"\")","v":""},{"$f":"IFERROR(IF(OR($C$110=FALSE,LEFT($B107,3)<>\"NOX\"),AB56*INDEX('Damage costs'!$W$16:$W$43,MATCH($B107,'Damage costs'!$C$16:$C$43,0))/1000,AB56*INDEX('Damage costs'!$AA$16:$AA$43,MATCH($B107,'Damage costs'!$C$16:$C$43,0))/1000),\"\")","v":""},{"$f":"IFERROR(IF(OR($C$110=FALSE,LEFT($B107,3)<>\"NOX\"),AC56*INDEX('Damage costs'!$W$16:$W$43,MATCH($B107,'Damage costs'!$C$16:$C$43,0))/1000,AC56*INDEX('Damage costs'!$AA$16:$AA$43,MATCH($B107,'Damage costs'!$C$16:$C$43,0))/1000),\"\")","v":""},{"$f":"IFERROR(IF(OR($C$110=FALSE,LEFT($B107,3)<>\"NOX\"),AD56*INDEX('Damage costs'!$W$16:$W$43,MATCH($B107,'Damage costs'!$C$16:$C$43,0))/1000,AD56*INDEX('Damage costs'!$AA$16:$AA$43,MATCH($B107,'Damage costs'!$C$16:$C$43,0))/1000),\"\")","v":""},{"$f":"IFERROR(IF(OR($C$110=FALSE,LEFT($B107,3)<>\"NOX\"),AE56*INDEX('Damage costs'!$W$16:$W$43,MATCH($B107,'Damage costs'!$C$16:$C$43,0))/1000,AE56*INDEX('Damage costs'!$AA$16:$AA$43,MATCH($B107,'Damage costs'!$C$16:$C$43,0))/1000),\"\")","v":""},{"$f":"IFERROR(IF(OR($C$110=FALSE,LEFT($B107,3)<>\"NOX\"),AF56*INDEX('Damage costs'!$W$16:$W$43,MATCH($B107,'Damage costs'!$C$16:$C$43,0))/1000,AF56*INDEX('Damage costs'!$AA$16:$AA$43,MATCH($B107,'Damage costs'!$C$16:$C$43,0))/1000),\"\")","v":""},{"$f":"IFERROR(IF(OR($C$110=FALSE,LEFT($B107,3)<>\"NOX\"),AG56*INDEX('Damage costs'!$W$16:$W$43,MATCH($B107,'Damage costs'!$C$16:$C$43,0))/1000,AG56*INDEX('Damage costs'!$AA$16:$AA$43,MATCH($B107,'Damage costs'!$C$16:$C$43,0))/1000),\"\")","v":""},{"$f":"IFERROR(IF(OR($C$110=FALSE,LEFT($B107,3)<>\"NOX\"),AH56*INDEX('Damage costs'!$W$16:$W$43,MATCH($B107,'Damage costs'!$C$16:$C$43,0))/1000,AH56*INDEX('Damage costs'!$AA$16:$AA$43,MATCH($B107,'Damage costs'!$C$16:$C$43,0))/1000),\"\")","v":""},{"$f":"IFERROR(IF(OR($C$110=FALSE,LEFT($B107,3)<>\"NOX\"),AI56*INDEX('Damage costs'!$W$16:$W$43,MATCH($B107,'Damage costs'!$C$16:$C$43,0))/1000,AI56*INDEX('Damage costs'!$AA$16:$AA$43,MATCH($B107,'Damage costs'!$C$16:$C$43,0))/1000),\"\")","v":""},{"$f":"IFERROR(IF(OR($C$110=FALSE,LEFT($B107,3)<>\"NOX\"),AJ56*INDEX('Damage costs'!$W$16:$W$43,MATCH($B107,'Damage costs'!$C$16:$C$43,0))/1000,AJ56*INDEX('Damage costs'!$AA$16:$AA$43,MATCH($B107,'Damage costs'!$C$16:$C$43,0))/1000),\"\")","v":""},{"$f":"IFERROR(IF(OR($C$110=FALSE,LEFT($B107,3)<>\"NOX\"),AK56*INDEX('Damage costs'!$W$16:$W$43,MATCH($B107,'Damage costs'!$C$16:$C$43,0))/1000,AK56*INDEX('Damage costs'!$AA$16:$AA$43,MATCH($B107,'Damage costs'!$C$16:$C$43,0))/1000),\"\")","v":""},{"$f":"IFERROR(IF(OR($C$110=FALSE,LEFT($B107,3)<>\"NOX\"),AL56*INDEX('Damage costs'!$W$16:$W$43,MATCH($B107,'Damage costs'!$C$16:$C$43,0))/1000,AL56*INDEX('Damage costs'!$AA$16:$AA$43,MATCH($B107,'Damage costs'!$C$16:$C$43,0))/1000),\"\")","v":""},{"$f":"IFERROR(IF(OR($C$110=FALSE,LEFT($B107,3)<>\"NOX\"),AM56*INDEX('Damage costs'!$W$16:$W$43,MATCH($B107,'Damage costs'!$C$16:$C$43,0))/1000,AM56*INDEX('Damage costs'!$AA$16:$AA$43,MATCH($B107,'Damage costs'!$C$16:$C$43,0))/1000),\"\")","v":""},{"$f":"IFERROR(IF(OR($C$110=FALSE,LEFT($B107,3)<>\"NOX\"),AN56*INDEX('Damage costs'!$W$16:$W$43,MATCH($B107,'Damage costs'!$C$16:$C$43,0))/1000,AN56*INDEX('Damage costs'!$AA$16:$AA$43,MATCH($B107,'Damage costs'!$C$16:$C$43,0))/1000),\"\")","v":""},{"$f":"IFERROR(IF(OR($C$110=FALSE,LEFT($B107,3)<>\"NOX\"),AO56*INDEX('Damage costs'!$W$16:$W$43,MATCH($B107,'Damage costs'!$C$16:$C$43,0))/1000,AO56*INDEX('Damage costs'!$AA$16:$AA$43,MATCH($B107,'Damage costs'!$C$16:$C$43,0))/1000),\"\")","v":""},{"$f":"IFERROR(IF(OR($C$110=FALSE,LEFT($B107,3)<>\"NOX\"),AP56*INDEX('Damage costs'!$W$16:$W$43,MATCH($B107,'Damage costs'!$C$16:$C$43,0))/1000,AP56*INDEX('Damage costs'!$AA$16:$AA$43,MATCH($B107,'Damage costs'!$C$16:$C$43,0))/1000),\"\")","v":""},{"$f":"IFERROR(IF(OR($C$110=FALSE,LEFT($B107,3)<>\"NOX\"),AQ56*INDEX('Damage costs'!$W$16:$W$43,MATCH($B107,'Damage costs'!$C$16:$C$43,0))/1000,AQ56*INDEX('Damage costs'!$AA$16:$AA$43,MATCH($B107,'Damage costs'!$C$16:$C$43,0))/1000),\"\")","v":""},{"$f":"IFERROR(IF(OR($C$110=FALSE,LEFT($B107,3)<>\"NOX\"),AR56*INDEX('Damage costs'!$W$16:$W$43,MATCH($B107,'Damage costs'!$C$16:$C$43,0))/1000,AR56*INDEX('Damage costs'!$AA$16:$AA$43,MATCH($B107,'Damage costs'!$C$16:$C$43,0))/1000),\"\")","v":""},{"$f":"IFERROR(IF(OR($C$110=FALSE,LEFT($B107,3)<>\"NOX\"),AS56*INDEX('Damage costs'!$W$16:$W$43,MATCH($B107,'Damage costs'!$C$16:$C$43,0))/1000,AS56*INDEX('Damage costs'!$AA$16:$AA$43,MATCH($B107,'Damage costs'!$C$16:$C$43,0))/1000),\"\")","v":""},{"$f":"IFERROR(IF(OR($C$110=FALSE,LEFT($B107,3)<>\"NOX\"),AT56*INDEX('Damage costs'!$W$16:$W$43,MATCH($B107,'Damage costs'!$C$16:$C$43,0))/1000,AT56*INDEX('Damage costs'!$AA$16:$AA$43,MATCH($B107,'Damage costs'!$C$16:$C$43,0))/1000),\"\")","v":""},{"$f":"IFERROR(IF(OR($C$110=FALSE,LEFT($B107,3)<>\"NOX\"),AU56*INDEX('Damage costs'!$W$16:$W$43,MATCH($B107,'Damage costs'!$C$16:$C$43,0))/1000,AU56*INDEX('Damage costs'!$AA$16:$AA$43,MATCH($B107,'Damage costs'!$C$16:$C$43,0))/1000),\"\")","v":""},{"$f":"IFERROR(IF(OR($C$110=FALSE,LEFT($B107,3)<>\"NOX\"),AV56*INDEX('Damage costs'!$W$16:$W$43,MATCH($B107,'Damage costs'!$C$16:$C$43,0))/1000,AV56*INDEX('Damage costs'!$AA$16:$AA$43,MATCH($B107,'Damage costs'!$C$16:$C$43,0))/1000),\"\")","v":""},{"$f":"IFERROR(IF(OR($C$110=FALSE,LEFT($B107,3)<>\"NOX\"),AW56*INDEX('Damage costs'!$W$16:$W$43,MATCH($B107,'Damage costs'!$C$16:$C$43,0))/1000,AW56*INDEX('Damage costs'!$AA$16:$AA$43,MATCH($B107,'Damage costs'!$C$16:$C$43,0))/1000),\"\")","v":""},{"$f":"IFERROR(IF(OR($C$110=FALSE,LEFT($B107,3)<>\"NOX\"),AX56*INDEX('Damage costs'!$W$16:$W$43,MATCH($B107,'Damage costs'!$C$16:$C$43,0))/1000,AX56*INDEX('Damage costs'!$AA$16:$AA$43,MATCH($B107,'Damage costs'!$C$16:$C$43,0))/1000),\"\")","v":""},{"$f":"IFERROR(IF(OR($C$110=FALSE,LEFT($B107,3)<>\"NOX\"),AY56*INDEX('Damage costs'!$W$16:$W$43,MATCH($B107,'Damage costs'!$C$16:$C$43,0))/1000,AY56*INDEX('Damage costs'!$AA$16:$AA$43,MATCH($B107,'Damage costs'!$C$16:$C$43,0))/1000),\"\")","v":""},{"$f":"IFERROR(IF(OR($C$110=FALSE,LEFT($B107,3)<>\"NOX\"),AZ56*INDEX('Damage costs'!$W$16:$W$43,MATCH($B107,'Damage costs'!$C$16:$C$43,0))/1000,AZ56*INDEX('Damage costs'!$AA$16:$AA$43,MATCH($B107,'Damage costs'!$C$16:$C$43,0))/1000),\"\")","v":""},{"$f":"IFERROR(IF(OR($C$110=FALSE,LEFT($B107,3)<>\"NOX\"),BA56*INDEX('Damage costs'!$W$16:$W$43,MATCH($B107,'Damage costs'!$C$16:$C$43,0))/1000,BA56*INDEX('Damage costs'!$AA$16:$AA$43,MATCH($B107,'Damage costs'!$C$16:$C$43,0))/1000),\"\")","v":""},{"$f":"IFERROR(IF(OR($C$110=FALSE,LEFT($B107,3)<>\"NOX\"),BB56*INDEX('Damage costs'!$W$16:$W$43,MATCH($B107,'Damage costs'!$C$16:$C$43,0))/1000,BB56*INDEX('Damage costs'!$AA$16:$AA$43,MATCH($B107,'Damage costs'!$C$16:$C$43,0))/1000),\"\")","v":""},{"$f":"IFERROR(IF(OR($C$110=FALSE,LEFT($B107,3)<>\"NOX\"),BC56*INDEX('Damage costs'!$W$16:$W$43,MATCH($B107,'Damage costs'!$C$16:$C$43,0))/1000,BC56*INDEX('Damage costs'!$AA$16:$AA$43,MATCH($B107,'Damage costs'!$C$16:$C$43,0))/1000),\"\")","v":""},{"$f":"IFERROR(IF(OR($C$110=FALSE,LEFT($B107,3)<>\"NOX\"),BD56*INDEX('Damage costs'!$W$16:$W$43,MATCH($B107,'Damage costs'!$C$16:$C$43,0))/1000,BD56*INDEX('Damage costs'!$AA$16:$AA$43,MATCH($B107,'Damage costs'!$C$16:$C$43,0))/1000),\"\")","v":""},{"$f":"IFERROR(IF(OR($C$110=FALSE,LEFT($B107,3)<>\"NOX\"),BE56*INDEX('Damage costs'!$W$16:$W$43,MATCH($B107,'Damage costs'!$C$16:$C$43,0))/1000,BE56*INDEX('Damage costs'!$AA$16:$AA$43,MATCH($B107,'Damage costs'!$C$16:$C$43,0))/1000),\"\")","v":""},{"$f":"IFERROR(IF(OR($C$110=FALSE,LEFT($B107,3)<>\"NOX\"),BF56*INDEX('Damage costs'!$W$16:$W$43,MATCH($B107,'Damage costs'!$C$16:$C$43,0))/1000,BF56*INDEX('Damage costs'!$AA$16:$AA$43,MATCH($B107,'Damage costs'!$C$16:$C$43,0))/1000),\"\")","v":""},{"$f":"IFERROR(IF(OR($C$110=FALSE,LEFT($B107,3)<>\"NOX\"),BG56*INDEX('Damage costs'!$W$16:$W$43,MATCH($B107,'Damage costs'!$C$16:$C$43,0))/1000,BG56*INDEX('Damage costs'!$AA$16:$AA$43,MATCH($B107,'Damage costs'!$C$16:$C$43,0))/1000),\"\")","v":""},{"$f":"IFERROR(IF(OR($C$110=FALSE,LEFT($B107,3)<>\"NOX\"),BH56*INDEX('Damage costs'!$W$16:$W$43,MATCH($B107,'Damage costs'!$C$16:$C$43,0))/1000,BH56*INDEX('Damage costs'!$AA$16:$AA$43,MATCH($B107,'Damage costs'!$C$16:$C$43,0))/1000),\"\")","v":""},{"$f":"IFERROR(IF(OR($C$110=FALSE,LEFT($B107,3)<>\"NOX\"),BI56*INDEX('Damage costs'!$W$16:$W$43,MATCH($B107,'Damage costs'!$C$16:$C$43,0))/1000,BI56*INDEX('Damage costs'!$AA$16:$AA$43,MATCH($B107,'Damage costs'!$C$16:$C$43,0))/1000),\"\")","v":""},{"$f":"IFERROR(IF(OR($C$110=FALSE,LEFT($B107,3)<>\"NOX\"),BJ56*INDEX('Damage costs'!$W$16:$W$43,MATCH($B107,'Damage costs'!$C$16:$C$43,0))/1000,BJ56*INDEX('Damage costs'!$AA$16:$AA$43,MATCH($B107,'Damage costs'!$C$16:$C$43,0))/1000),\"\")","v":""},{"$f":"IFERROR(IF(OR($C$110=FALSE,LEFT($B107,3)<>\"NOX\"),BK56*INDEX('Damage costs'!$W$16:$W$43,MATCH($B107,'Damage costs'!$C$16:$C$43,0))/1000,BK56*INDEX('Damage costs'!$AA$16:$AA$43,MATCH($B107,'Damage costs'!$C$16:$C$43,0))/1000),\"\")","v":""},{"$f":"IFERROR(IF(OR($C$110=FALSE,LEFT($B107,3)<>\"NOX\"),BL56*INDEX('Damage costs'!$W$16:$W$43,MATCH($B107,'Damage costs'!$C$16:$C$43,0))/1000,BL56*INDEX('Damage costs'!$AA$16:$AA$43,MATCH($B107,'Damage costs'!$C$16:$C$43,0))/1000),\"\")","v":""},{"$f":"IFERROR(IF(OR($C$110=FALSE,LEFT($B107,3)<>\"NOX\"),BM56*INDEX('Damage costs'!$W$16:$W$43,MATCH($B107,'Damage costs'!$C$16:$C$43,0))/1000,BM56*INDEX('Damage costs'!$AA$16:$AA$43,MATCH($B107,'Damage costs'!$C$16:$C$43,0))/1000),\"\")","v":""},{"$f":"IFERROR(IF(OR($C$110=FALSE,LEFT($B107,3)<>\"NOX\"),BN56*INDEX('Damage costs'!$W$16:$W$43,MATCH($B107,'Damage costs'!$C$16:$C$43,0))/1000,BN56*INDEX('Damage costs'!$AA$16:$AA$43,MATCH($B107,'Damage costs'!$C$16:$C$43,0))/1000),\"\")","v":""},{"$f":"IFERROR(IF(OR($C$110=FALSE,LEFT($B107,3)<>\"NOX\"),BO56*INDEX('Damage costs'!$W$16:$W$43,MATCH($B107,'Damage costs'!$C$16:$C$43,0))/1000,BO56*INDEX('Damage costs'!$AA$16:$AA$43,MATCH($B107,'Damage costs'!$C$16:$C$43,0))/1000),\"\")","v":""},{"$f":"IFERROR(IF(OR($C$110=FALSE,LEFT($B107,3)<>\"NOX\"),BP56*INDEX('Damage costs'!$W$16:$W$43,MATCH($B107,'Damage costs'!$C$16:$C$43,0))/1000,BP56*INDEX('Damage costs'!$AA$16:$AA$43,MATCH($B107,'Damage costs'!$C$16:$C$43,0))/1000),\"\")","v":""},{"$f":"IFERROR(IF(OR($C$110=FALSE,LEFT($B107,3)<>\"NOX\"),BQ56*INDEX('Damage costs'!$W$16:$W$43,MATCH($B107,'Damage costs'!$C$16:$C$43,0))/1000,BQ56*INDEX('Damage costs'!$AA$16:$AA$43,MATCH($B107,'Damage costs'!$C$16:$C$43,0))/1000),\"\")","v":""},{"$f":"IFERROR(IF(OR($C$110=FALSE,LEFT($B107,3)<>\"NOX\"),BR56*INDEX('Damage costs'!$W$16:$W$43,MATCH($B107,'Damage costs'!$C$16:$C$43,0))/1000,BR56*INDEX('Damage costs'!$AA$16:$AA$43,MATCH($B107,'Damage costs'!$C$16:$C$43,0))/1000),\"\")","v":""},{"$f":"IFERROR(IF(OR($C$110=FALSE,LEFT($B107,3)<>\"NOX\"),BS56*INDEX('Damage costs'!$W$16:$W$43,MATCH($B107,'Damage costs'!$C$16:$C$43,0))/1000,BS56*INDEX('Damage costs'!$AA$16:$AA$43,MATCH($B107,'Damage costs'!$C$16:$C$43,0))/1000),\"\")","v":""},{"$f":"IFERROR(IF(OR($C$110=FALSE,LEFT($B107,3)<>\"NOX\"),BT56*INDEX('Damage costs'!$W$16:$W$43,MATCH($B107,'Damage costs'!$C$16:$C$43,0))/1000,BT56*INDEX('Damage costs'!$AA$16:$AA$43,MATCH($B107,'Damage costs'!$C$16:$C$43,0))/1000),\"\")","v":""},{"$f":"IFERROR(IF(OR($C$110=FALSE,LEFT($B107,3)<>\"NOX\"),BU56*INDEX('Damage costs'!$W$16:$W$43,MATCH($B107,'Damage costs'!$C$16:$C$43,0))/1000,BU56*INDEX('Damage costs'!$AA$16:$AA$43,MATCH($B107,'Damage costs'!$C$16:$C$43,0))/1000),\"\")","v":""},{"$f":"IFERROR(IF(OR($C$110=FALSE,LEFT($B107,3)<>\"NOX\"),BV56*INDEX('Damage costs'!$W$16:$W$43,MATCH($B107,'Damage costs'!$C$16:$C$43,0))/1000,BV56*INDEX('Damage costs'!$AA$16:$AA$43,MATCH($B107,'Damage costs'!$C$16:$C$43,0))/1000),\"\")","v":""},{"$f":"IFERROR(IF(OR($C$110=FALSE,LEFT($B107,3)<>\"NOX\"),BW56*INDEX('Damage costs'!$W$16:$W$43,MATCH($B107,'Damage costs'!$C$16:$C$43,0))/1000,BW56*INDEX('Damage costs'!$AA$16:$AA$43,MATCH($B107,'Damage costs'!$C$16:$C$43,0))/1000),\"\")","v":""},{"$f":"IFERROR(IF(OR($C$110=FALSE,LEFT($B107,3)<>\"NOX\"),BX56*INDEX('Damage costs'!$W$16:$W$43,MATCH($B107,'Damage costs'!$C$16:$C$43,0))/1000,BX56*INDEX('Damage costs'!$AA$16:$AA$43,MATCH($B107,'Damage costs'!$C$16:$C$43,0))/1000),\"\")","v":""},{"$f":"IFERROR(IF(OR($C$110=FALSE,LEFT($B107,3)<>\"NOX\"),BY56*INDEX('Damage costs'!$W$16:$W$43,MATCH($B107,'Damage costs'!$C$16:$C$43,0))/1000,BY56*INDEX('Damage costs'!$AA$16:$AA$43,MATCH($B107,'Damage costs'!$C$16:$C$43,0))/1000),\"\")","v":""},{"$f":"IFERROR(IF(OR($C$110=FALSE,LEFT($B107,3)<>\"NOX\"),BZ56*INDEX('Damage costs'!$W$16:$W$43,MATCH($B107,'Damage costs'!$C$16:$C$43,0))/1000,BZ56*INDEX('Damage costs'!$AA$16:$AA$43,MATCH($B107,'Damage costs'!$C$16:$C$43,0))/1000),\"\")","v":""},{"$f":"IFERROR(IF(OR($C$110=FALSE,LEFT($B107,3)<>\"NOX\"),CA56*INDEX('Damage costs'!$W$16:$W$43,MATCH($B107,'Damage costs'!$C$16:$C$43,0))/1000,CA56*INDEX('Damage costs'!$AA$16:$AA$43,MATCH($B107,'Damage costs'!$C$16:$C$43,0))/1000),\"\")","v":""},{"$f":"IFERROR(IF(OR($C$110=FALSE,LEFT($B107,3)<>\"NOX\"),CB56*INDEX('Damage costs'!$W$16:$W$43,MATCH($B107,'Damage costs'!$C$16:$C$43,0))/1000,CB56*INDEX('Damage costs'!$AA$16:$AA$43,MATCH($B107,'Damage costs'!$C$16:$C$43,0))/1000),\"\")","v":""},{"$f":"IFERROR(IF(OR($C$110=FALSE,LEFT($B107,3)<>\"NOX\"),CC56*INDEX('Damage costs'!$W$16:$W$43,MATCH($B107,'Damage costs'!$C$16:$C$43,0))/1000,CC56*INDEX('Damage costs'!$AA$16:$AA$43,MATCH($B107,'Damage costs'!$C$16:$C$43,0))/1000),\"\")","v":""},{"$f":"IFERROR(IF(OR($C$110=FALSE,LEFT($B107,3)<>\"NOX\"),CD56*INDEX('Damage costs'!$W$16:$W$43,MATCH($B107,'Damage costs'!$C$16:$C$43,0))/1000,CD56*INDEX('Damage costs'!$AA$16:$AA$43,MATCH($B107,'Damage costs'!$C$16:$C$43,0))/1000),\"\")","v":""},{"$f":"IFERROR(IF(OR($C$110=FALSE,LEFT($B107,3)<>\"NOX\"),CE56*INDEX('Damage costs'!$W$16:$W$43,MATCH($B107,'Damage costs'!$C$16:$C$43,0))/1000,CE56*INDEX('Damage costs'!$AA$16:$AA$43,MATCH($B107,'Damage costs'!$C$16:$C$43,0))/1000),\"\")","v":""},{"$f":"IFERROR(IF(OR($C$110=FALSE,LEFT($B107,3)<>\"NOX\"),CF56*INDEX('Damage costs'!$W$16:$W$43,MATCH($B107,'Damage costs'!$C$16:$C$43,0))/1000,CF56*INDEX('Damage costs'!$AA$16:$AA$43,MATCH($B107,'Damage costs'!$C$16:$C$43,0))/1000),\"\")","v":""},{"$f":"IFERROR(IF(OR($C$110=FALSE,LEFT($B107,3)<>\"NOX\"),CG56*INDEX('Damage costs'!$W$16:$W$43,MATCH($B107,'Damage costs'!$C$16:$C$43,0))/1000,CG56*INDEX('Damage costs'!$AA$16:$AA$43,MATCH($B107,'Damage costs'!$C$16:$C$43,0))/1000),\"\")","v":""},{"$f":"IFERROR(IF(OR($C$110=FALSE,LEFT($B107,3)<>\"NOX\"),CH56*INDEX('Damage costs'!$W$16:$W$43,MATCH($B107,'Damage costs'!$C$16:$C$43,0))/1000,CH56*INDEX('Damage costs'!$AA$16:$AA$43,MATCH($B107,'Damage costs'!$C$16:$C$43,0))/1000),\"\")","v":""},{"$f":"IFERROR(IF(OR($C$110=FALSE,LEFT($B107,3)<>\"NOX\"),CI56*INDEX('Damage costs'!$W$16:$W$43,MATCH($B107,'Damage costs'!$C$16:$C$43,0))/1000,CI56*INDEX('Damage costs'!$AA$16:$AA$43,MATCH($B107,'Damage costs'!$C$16:$C$43,0))/1000),\"\")","v":""},{"$f":"IFERROR(IF(OR($C$110=FALSE,LEFT($B107,3)<>\"NOX\"),CJ56*INDEX('Damage costs'!$W$16:$W$43,MATCH($B107,'Damage costs'!$C$16:$C$43,0))/1000,CJ56*INDEX('Damage costs'!$AA$16:$AA$43,MATCH($B107,'Damage costs'!$C$16:$C$43,0))/1000),\"\")","v":""},{"$f":"IFERROR(IF(OR($C$110=FALSE,LEFT($B107,3)<>\"NOX\"),CK56*INDEX('Damage costs'!$W$16:$W$43,MATCH($B107,'Damage costs'!$C$16:$C$43,0))/1000,CK56*INDEX('Damage costs'!$AA$16:$AA$43,MATCH($B107,'Damage costs'!$C$16:$C$43,0))/1000),\"\")","v":""},{"$f":"IFERROR(IF(OR($C$110=FALSE,LEFT($B107,3)<>\"NOX\"),CL56*INDEX('Damage costs'!$W$16:$W$43,MATCH($B107,'Damage costs'!$C$16:$C$43,0))/1000,CL56*INDEX('Damage costs'!$AA$16:$AA$43,MATCH($B107,'Damage costs'!$C$16:$C$43,0))/1000),\"\")","v":""},{"$f":"IFERROR(IF(OR($C$110=FALSE,LEFT($B107,3)<>\"NOX\"),CM56*INDEX('Damage costs'!$W$16:$W$43,MATCH($B107,'Damage costs'!$C$16:$C$43,0))/1000,CM56*INDEX('Damage costs'!$AA$16:$AA$43,MATCH($B107,'Damage costs'!$C$16:$C$43,0))/1000),\"\")","v":""},{"$f":"IFERROR(IF(OR($C$110=FALSE,LEFT($B107,3)<>\"NOX\"),CN56*INDEX('Damage costs'!$W$16:$W$43,MATCH($B107,'Damage costs'!$C$16:$C$43,0))/1000,CN56*INDEX('Damage costs'!$AA$16:$AA$43,MATCH($B107,'Damage costs'!$C$16:$C$43,0))/1000),\"\")","v":""},{"$f":"IFERROR(IF(OR($C$110=FALSE,LEFT($B107,3)<>\"NOX\"),CO56*INDEX('Damage costs'!$W$16:$W$43,MATCH($B107,'Damage costs'!$C$16:$C$43,0))/1000,CO56*INDEX('Damage costs'!$AA$16:$AA$43,MATCH($B107,'Damage costs'!$C$16:$C$43,0))/1000),\"\")","v":""},{"$f":"IFERROR(IF(OR($C$110=FALSE,LEFT($B107,3)<>\"NOX\"),CP56*INDEX('Damage costs'!$W$16:$W$43,MATCH($B107,'Damage costs'!$C$16:$C$43,0))/1000,CP56*INDEX('Damage costs'!$AA$16:$AA$43,MATCH($B107,'Damage costs'!$C$16:$C$43,0))/1000),\"\")","v":""},{"$f":"IFERROR(IF(OR($C$110=FALSE,LEFT($B107,3)<>\"NOX\"),CQ56*INDEX('Damage costs'!$W$16:$W$43,MATCH($B107,'Damage costs'!$C$16:$C$43,0))/1000,CQ56*INDEX('Damage costs'!$AA$16:$AA$43,MATCH($B107,'Damage costs'!$C$16:$C$43,0))/1000),\"\")","v":""},{"$f":"IFERROR(IF(OR($C$110=FALSE,LEFT($B107,3)<>\"NOX\"),CR56*INDEX('Damage costs'!$W$16:$W$43,MATCH($B107,'Damage costs'!$C$16:$C$43,0))/1000,CR56*INDEX('Damage costs'!$AA$16:$AA$43,MATCH($B107,'Damage costs'!$C$16:$C$43,0))/1000),\"\")","v":""},{"$f":"IFERROR(IF(OR($C$110=FALSE,LEFT($B107,3)<>\"NOX\"),CS56*INDEX('Damage costs'!$W$16:$W$43,MATCH($B107,'Damage costs'!$C$16:$C$43,0))/1000,CS56*INDEX('Damage costs'!$AA$16:$AA$43,MATCH($B107,'Damage costs'!$C$16:$C$43,0))/1000),\"\")","v":""},{"$f":"IFERROR(IF(OR($C$110=FALSE,LEFT($B107,3)<>\"NOX\"),CT56*INDEX('Damage costs'!$W$16:$W$43,MATCH($B107,'Damage costs'!$C$16:$C$43,0))/1000,CT56*INDEX('Damage costs'!$AA$16:$AA$43,MATCH($B107,'Damage costs'!$C$16:$C$43,0))/1000),\"\")","v":""},{"$f":"IFERROR(IF(OR($C$110=FALSE,LEFT($B107,3)<>\"NOX\"),CU56*INDEX('Damage costs'!$W$16:$W$43,MATCH($B107,'Damage costs'!$C$16:$C$43,0))/1000,CU56*INDEX('Damage costs'!$AA$16:$AA$43,MATCH($B107,'Damage costs'!$C$16:$C$43,0))/1000),\"\")","v":""},{"$f":"IFERROR(IF(OR($C$110=FALSE,LEFT($B107,3)<>\"NOX\"),CV56*INDEX('Damage costs'!$W$16:$W$43,MATCH($B107,'Damage costs'!$C$16:$C$43,0))/1000,CV56*INDEX('Damage costs'!$AA$16:$AA$43,MATCH($B107,'Damage costs'!$C$16:$C$43,0))/1000),\"\")","v":""},{"$f":"IFERROR(IF(OR($C$110=FALSE,LEFT($B107,3)<>\"NOX\"),CW56*INDEX('Damage costs'!$W$16:$W$43,MATCH($B107,'Damage costs'!$C$16:$C$43,0))/1000,CW56*INDEX('Damage costs'!$AA$16:$AA$43,MATCH($B107,'Damage costs'!$C$16:$C$43,0))/1000),\"\")","v":""},{"$f":"IFERROR(IF(OR($C$110=FALSE,LEFT($B107,3)<>\"NOX\"),CX56*INDEX('Damage costs'!$W$16:$W$43,MATCH($B107,'Damage costs'!$C$16:$C$43,0))/1000,CX56*INDEX('Damage costs'!$AA$16:$AA$43,MATCH($B107,'Damage costs'!$C$16:$C$43,0))/1000),\"\")","v":""},{"$f":"IFERROR(IF(OR($C$110=FALSE,LEFT($B107,3)<>\"NOX\"),CY56*INDEX('Damage costs'!$W$16:$W$43,MATCH($B107,'Damage costs'!$C$16:$C$43,0))/1000,CY56*INDEX('Damage costs'!$AA$16:$AA$43,MATCH($B107,'Damage costs'!$C$16:$C$43,0))/1000),\"\")","v":""}]
[null,0,"£000's",{"$f":"IFERROR(IF(OR($C$110=FALSE,LEFT($B108,3)<>\"NOX\"),D57*INDEX('Damage costs'!$W$16:$W$43,MATCH($B108,'Damage costs'!$C$16:$C$43,0))/1000,D57*INDEX('Damage costs'!$AA$16:$AA$43,MATCH($B108,'Damage costs'!$C$16:$C$43,0))/1000),\"\")","v":""},{"$f":"IFERROR(IF(OR($C$110=FALSE,LEFT($B108,3)<>\"NOX\"),E57*INDEX('Damage costs'!$W$16:$W$43,MATCH($B108,'Damage costs'!$C$16:$C$43,0))/1000,E57*INDEX('Damage costs'!$AA$16:$AA$43,MATCH($B108,'Damage costs'!$C$16:$C$43,0))/1000),\"\")","v":""},{"$f":"IFERROR(IF(OR($C$110=FALSE,LEFT($B108,3)<>\"NOX\"),F57*INDEX('Damage costs'!$W$16:$W$43,MATCH($B108,'Damage costs'!$C$16:$C$43,0))/1000,F57*INDEX('Damage costs'!$AA$16:$AA$43,MATCH($B108,'Damage costs'!$C$16:$C$43,0))/1000),\"\")","v":""},{"$f":"IFERROR(IF(OR($C$110=FALSE,LEFT($B108,3)<>\"NOX\"),G57*INDEX('Damage costs'!$W$16:$W$43,MATCH($B108,'Damage costs'!$C$16:$C$43,0))/1000,G57*INDEX('Damage costs'!$AA$16:$AA$43,MATCH($B108,'Damage costs'!$C$16:$C$43,0))/1000),\"\")","v":""},{"$f":"IFERROR(IF(OR($C$110=FALSE,LEFT($B108,3)<>\"NOX\"),H57*INDEX('Damage costs'!$W$16:$W$43,MATCH($B108,'Damage costs'!$C$16:$C$43,0))/1000,H57*INDEX('Damage costs'!$AA$16:$AA$43,MATCH($B108,'Damage costs'!$C$16:$C$43,0))/1000),\"\")","v":""},{"$f":"IFERROR(IF(OR($C$110=FALSE,LEFT($B108,3)<>\"NOX\"),I57*INDEX('Damage costs'!$W$16:$W$43,MATCH($B108,'Damage costs'!$C$16:$C$43,0))/1000,I57*INDEX('Damage costs'!$AA$16:$AA$43,MATCH($B108,'Damage costs'!$C$16:$C$43,0))/1000),\"\")","v":""},{"$f":"IFERROR(IF(OR($C$110=FALSE,LEFT($B108,3)<>\"NOX\"),J57*INDEX('Damage costs'!$W$16:$W$43,MATCH($B108,'Damage costs'!$C$16:$C$43,0))/1000,J57*INDEX('Damage costs'!$AA$16:$AA$43,MATCH($B108,'Damage costs'!$C$16:$C$43,0))/1000),\"\")","v":""},{"$f":"IFERROR(IF(OR($C$110=FALSE,LEFT($B108,3)<>\"NOX\"),K57*INDEX('Damage costs'!$W$16:$W$43,MATCH($B108,'Damage costs'!$C$16:$C$43,0))/1000,K57*INDEX('Damage costs'!$AA$16:$AA$43,MATCH($B108,'Damage costs'!$C$16:$C$43,0))/1000),\"\")","v":""},{"$f":"IFERROR(IF(OR($C$110=FALSE,LEFT($B108,3)<>\"NOX\"),L57*INDEX('Damage costs'!$W$16:$W$43,MATCH($B108,'Damage costs'!$C$16:$C$43,0))/1000,L57*INDEX('Damage costs'!$AA$16:$AA$43,MATCH($B108,'Damage costs'!$C$16:$C$43,0))/1000),\"\")","v":""},{"$f":"IFERROR(IF(OR($C$110=FALSE,LEFT($B108,3)<>\"NOX\"),M57*INDEX('Damage costs'!$W$16:$W$43,MATCH($B108,'Damage costs'!$C$16:$C$43,0))/1000,M57*INDEX('Damage costs'!$AA$16:$AA$43,MATCH($B108,'Damage costs'!$C$16:$C$43,0))/1000),\"\")","v":""},{"$f":"IFERROR(IF(OR($C$110=FALSE,LEFT($B108,3)<>\"NOX\"),N57*INDEX('Damage costs'!$W$16:$W$43,MATCH($B108,'Damage costs'!$C$16:$C$43,0))/1000,N57*INDEX('Damage costs'!$AA$16:$AA$43,MATCH($B108,'Damage costs'!$C$16:$C$43,0))/1000),\"\")","v":""},{"$f":"IFERROR(IF(OR($C$110=FALSE,LEFT($B108,3)<>\"NOX\"),O57*INDEX('Damage costs'!$W$16:$W$43,MATCH($B108,'Damage costs'!$C$16:$C$43,0))/1000,O57*INDEX('Damage costs'!$AA$16:$AA$43,MATCH($B108,'Damage costs'!$C$16:$C$43,0))/1000),\"\")","v":""},{"$f":"IFERROR(IF(OR($C$110=FALSE,LEFT($B108,3)<>\"NOX\"),P57*INDEX('Damage costs'!$W$16:$W$43,MATCH($B108,'Damage costs'!$C$16:$C$43,0))/1000,P57*INDEX('Damage costs'!$AA$16:$AA$43,MATCH($B108,'Damage costs'!$C$16:$C$43,0))/1000),\"\")","v":""},{"$f":"IFERROR(IF(OR($C$110=FALSE,LEFT($B108,3)<>\"NOX\"),Q57*INDEX('Damage costs'!$W$16:$W$43,MATCH($B108,'Damage costs'!$C$16:$C$43,0))/1000,Q57*INDEX('Damage costs'!$AA$16:$AA$43,MATCH($B108,'Damage costs'!$C$16:$C$43,0))/1000),\"\")","v":""},{"$f":"IFERROR(IF(OR($C$110=FALSE,LEFT($B108,3)<>\"NOX\"),R57*INDEX('Damage costs'!$W$16:$W$43,MATCH($B108,'Damage costs'!$C$16:$C$43,0))/1000,R57*INDEX('Damage costs'!$AA$16:$AA$43,MATCH($B108,'Damage costs'!$C$16:$C$43,0))/1000),\"\")","v":""},{"$f":"IFERROR(IF(OR($C$110=FALSE,LEFT($B108,3)<>\"NOX\"),S57*INDEX('Damage costs'!$W$16:$W$43,MATCH($B108,'Damage costs'!$C$16:$C$43,0))/1000,S57*INDEX('Damage costs'!$AA$16:$AA$43,MATCH($B108,'Damage costs'!$C$16:$C$43,0))/1000),\"\")","v":""},{"$f":"IFERROR(IF(OR($C$110=FALSE,LEFT($B108,3)<>\"NOX\"),T57*INDEX('Damage costs'!$W$16:$W$43,MATCH($B108,'Damage costs'!$C$16:$C$43,0))/1000,T57*INDEX('Damage costs'!$AA$16:$AA$43,MATCH($B108,'Damage costs'!$C$16:$C$43,0))/1000),\"\")","v":""},{"$f":"IFERROR(IF(OR($C$110=FALSE,LEFT($B108,3)<>\"NOX\"),U57*INDEX('Damage costs'!$W$16:$W$43,MATCH($B108,'Damage costs'!$C$16:$C$43,0))/1000,U57*INDEX('Damage costs'!$AA$16:$AA$43,MATCH($B108,'Damage costs'!$C$16:$C$43,0))/1000),\"\")","v":""},{"$f":"IFERROR(IF(OR($C$110=FALSE,LEFT($B108,3)<>\"NOX\"),V57*INDEX('Damage costs'!$W$16:$W$43,MATCH($B108,'Damage costs'!$C$16:$C$43,0))/1000,V57*INDEX('Damage costs'!$AA$16:$AA$43,MATCH($B108,'Damage costs'!$C$16:$C$43,0))/1000),\"\")","v":""},{"$f":"IFERROR(IF(OR($C$110=FALSE,LEFT($B108,3)<>\"NOX\"),W57*INDEX('Damage costs'!$W$16:$W$43,MATCH($B108,'Damage costs'!$C$16:$C$43,0))/1000,W57*INDEX('Damage costs'!$AA$16:$AA$43,MATCH($B108,'Damage costs'!$C$16:$C$43,0))/1000),\"\")","v":""},{"$f":"IFERROR(IF(OR($C$110=FALSE,LEFT($B108,3)<>\"NOX\"),X57*INDEX('Damage costs'!$W$16:$W$43,MATCH($B108,'Damage costs'!$C$16:$C$43,0))/1000,X57*INDEX('Damage costs'!$AA$16:$AA$43,MATCH($B108,'Damage costs'!$C$16:$C$43,0))/1000),\"\")","v":""},{"$f":"IFERROR(IF(OR($C$110=FALSE,LEFT($B108,3)<>\"NOX\"),Y57*INDEX('Damage costs'!$W$16:$W$43,MATCH($B108,'Damage costs'!$C$16:$C$43,0))/1000,Y57*INDEX('Damage costs'!$AA$16:$AA$43,MATCH($B108,'Damage costs'!$C$16:$C$43,0))/1000),\"\")","v":""},{"$f":"IFERROR(IF(OR($C$110=FALSE,LEFT($B108,3)<>\"NOX\"),Z57*INDEX('Damage costs'!$W$16:$W$43,MATCH($B108,'Damage costs'!$C$16:$C$43,0))/1000,Z57*INDEX('Damage costs'!$AA$16:$AA$43,MATCH($B108,'Damage costs'!$C$16:$C$43,0))/1000),\"\")","v":""},{"$f":"IFERROR(IF(OR($C$110=FALSE,LEFT($B108,3)<>\"NOX\"),AA57*INDEX('Damage costs'!$W$16:$W$43,MATCH($B108,'Damage costs'!$C$16:$C$43,0))/1000,AA57*INDEX('Damage costs'!$AA$16:$AA$43,MATCH($B108,'Damage costs'!$C$16:$C$43,0))/1000),\"\")","v":""},{"$f":"IFERROR(IF(OR($C$110=FALSE,LEFT($B108,3)<>\"NOX\"),AB57*INDEX('Damage costs'!$W$16:$W$43,MATCH($B108,'Damage costs'!$C$16:$C$43,0))/1000,AB57*INDEX('Damage costs'!$AA$16:$AA$43,MATCH($B108,'Damage costs'!$C$16:$C$43,0))/1000),\"\")","v":""},{"$f":"IFERROR(IF(OR($C$110=FALSE,LEFT($B108,3)<>\"NOX\"),AC57*INDEX('Damage costs'!$W$16:$W$43,MATCH($B108,'Damage costs'!$C$16:$C$43,0))/1000,AC57*INDEX('Damage costs'!$AA$16:$AA$43,MATCH($B108,'Damage costs'!$C$16:$C$43,0))/1000),\"\")","v":""},{"$f":"IFERROR(IF(OR($C$110=FALSE,LEFT($B108,3)<>\"NOX\"),AD57*INDEX('Damage costs'!$W$16:$W$43,MATCH($B108,'Damage costs'!$C$16:$C$43,0))/1000,AD57*INDEX('Damage costs'!$AA$16:$AA$43,MATCH($B108,'Damage costs'!$C$16:$C$43,0))/1000),\"\")","v":""},{"$f":"IFERROR(IF(OR($C$110=FALSE,LEFT($B108,3)<>\"NOX\"),AE57*INDEX('Damage costs'!$W$16:$W$43,MATCH($B108,'Damage costs'!$C$16:$C$43,0))/1000,AE57*INDEX('Damage costs'!$AA$16:$AA$43,MATCH($B108,'Damage costs'!$C$16:$C$43,0))/1000),\"\")","v":""},{"$f":"IFERROR(IF(OR($C$110=FALSE,LEFT($B108,3)<>\"NOX\"),AF57*INDEX('Damage costs'!$W$16:$W$43,MATCH($B108,'Damage costs'!$C$16:$C$43,0))/1000,AF57*INDEX('Damage costs'!$AA$16:$AA$43,MATCH($B108,'Damage costs'!$C$16:$C$43,0))/1000),\"\")","v":""},{"$f":"IFERROR(IF(OR($C$110=FALSE,LEFT($B108,3)<>\"NOX\"),AG57*INDEX('Damage costs'!$W$16:$W$43,MATCH($B108,'Damage costs'!$C$16:$C$43,0))/1000,AG57*INDEX('Damage costs'!$AA$16:$AA$43,MATCH($B108,'Damage costs'!$C$16:$C$43,0))/1000),\"\")","v":""},{"$f":"IFERROR(IF(OR($C$110=FALSE,LEFT($B108,3)<>\"NOX\"),AH57*INDEX('Damage costs'!$W$16:$W$43,MATCH($B108,'Damage costs'!$C$16:$C$43,0))/1000,AH57*INDEX('Damage costs'!$AA$16:$AA$43,MATCH($B108,'Damage costs'!$C$16:$C$43,0))/1000),\"\")","v":""},{"$f":"IFERROR(IF(OR($C$110=FALSE,LEFT($B108,3)<>\"NOX\"),AI57*INDEX('Damage costs'!$W$16:$W$43,MATCH($B108,'Damage costs'!$C$16:$C$43,0))/1000,AI57*INDEX('Damage costs'!$AA$16:$AA$43,MATCH($B108,'Damage costs'!$C$16:$C$43,0))/1000),\"\")","v":""},{"$f":"IFERROR(IF(OR($C$110=FALSE,LEFT($B108,3)<>\"NOX\"),AJ57*INDEX('Damage costs'!$W$16:$W$43,MATCH($B108,'Damage costs'!$C$16:$C$43,0))/1000,AJ57*INDEX('Damage costs'!$AA$16:$AA$43,MATCH($B108,'Damage costs'!$C$16:$C$43,0))/1000),\"\")","v":""},{"$f":"IFERROR(IF(OR($C$110=FALSE,LEFT($B108,3)<>\"NOX\"),AK57*INDEX('Damage costs'!$W$16:$W$43,MATCH($B108,'Damage costs'!$C$16:$C$43,0))/1000,AK57*INDEX('Damage costs'!$AA$16:$AA$43,MATCH($B108,'Damage costs'!$C$16:$C$43,0))/1000),\"\")","v":""},{"$f":"IFERROR(IF(OR($C$110=FALSE,LEFT($B108,3)<>\"NOX\"),AL57*INDEX('Damage costs'!$W$16:$W$43,MATCH($B108,'Damage costs'!$C$16:$C$43,0))/1000,AL57*INDEX('Damage costs'!$AA$16:$AA$43,MATCH($B108,'Damage costs'!$C$16:$C$43,0))/1000),\"\")","v":""},{"$f":"IFERROR(IF(OR($C$110=FALSE,LEFT($B108,3)<>\"NOX\"),AM57*INDEX('Damage costs'!$W$16:$W$43,MATCH($B108,'Damage costs'!$C$16:$C$43,0))/1000,AM57*INDEX('Damage costs'!$AA$16:$AA$43,MATCH($B108,'Damage costs'!$C$16:$C$43,0))/1000),\"\")","v":""},{"$f":"IFERROR(IF(OR($C$110=FALSE,LEFT($B108,3)<>\"NOX\"),AN57*INDEX('Damage costs'!$W$16:$W$43,MATCH($B108,'Damage costs'!$C$16:$C$43,0))/1000,AN57*INDEX('Damage costs'!$AA$16:$AA$43,MATCH($B108,'Damage costs'!$C$16:$C$43,0))/1000),\"\")","v":""},{"$f":"IFERROR(IF(OR($C$110=FALSE,LEFT($B108,3)<>\"NOX\"),AO57*INDEX('Damage costs'!$W$16:$W$43,MATCH($B108,'Damage costs'!$C$16:$C$43,0))/1000,AO57*INDEX('Damage costs'!$AA$16:$AA$43,MATCH($B108,'Damage costs'!$C$16:$C$43,0))/1000),\"\")","v":""},{"$f":"IFERROR(IF(OR($C$110=FALSE,LEFT($B108,3)<>\"NOX\"),AP57*INDEX('Damage costs'!$W$16:$W$43,MATCH($B108,'Damage costs'!$C$16:$C$43,0))/1000,AP57*INDEX('Damage costs'!$AA$16:$AA$43,MATCH($B108,'Damage costs'!$C$16:$C$43,0))/1000),\"\")","v":""},{"$f":"IFERROR(IF(OR($C$110=FALSE,LEFT($B108,3)<>\"NOX\"),AQ57*INDEX('Damage costs'!$W$16:$W$43,MATCH($B108,'Damage costs'!$C$16:$C$43,0))/1000,AQ57*INDEX('Damage costs'!$AA$16:$AA$43,MATCH($B108,'Damage costs'!$C$16:$C$43,0))/1000),\"\")","v":""},{"$f":"IFERROR(IF(OR($C$110=FALSE,LEFT($B108,3)<>\"NOX\"),AR57*INDEX('Damage costs'!$W$16:$W$43,MATCH($B108,'Damage costs'!$C$16:$C$43,0))/1000,AR57*INDEX('Damage costs'!$AA$16:$AA$43,MATCH($B108,'Damage costs'!$C$16:$C$43,0))/1000),\"\")","v":""},{"$f":"IFERROR(IF(OR($C$110=FALSE,LEFT($B108,3)<>\"NOX\"),AS57*INDEX('Damage costs'!$W$16:$W$43,MATCH($B108,'Damage costs'!$C$16:$C$43,0))/1000,AS57*INDEX('Damage costs'!$AA$16:$AA$43,MATCH($B108,'Damage costs'!$C$16:$C$43,0))/1000),\"\")","v":""},{"$f":"IFERROR(IF(OR($C$110=FALSE,LEFT($B108,3)<>\"NOX\"),AT57*INDEX('Damage costs'!$W$16:$W$43,MATCH($B108,'Damage costs'!$C$16:$C$43,0))/1000,AT57*INDEX('Damage costs'!$AA$16:$AA$43,MATCH($B108,'Damage costs'!$C$16:$C$43,0))/1000),\"\")","v":""},{"$f":"IFERROR(IF(OR($C$110=FALSE,LEFT($B108,3)<>\"NOX\"),AU57*INDEX('Damage costs'!$W$16:$W$43,MATCH($B108,'Damage costs'!$C$16:$C$43,0))/1000,AU57*INDEX('Damage costs'!$AA$16:$AA$43,MATCH($B108,'Damage costs'!$C$16:$C$43,0))/1000),\"\")","v":""},{"$f":"IFERROR(IF(OR($C$110=FALSE,LEFT($B108,3)<>\"NOX\"),AV57*INDEX('Damage costs'!$W$16:$W$43,MATCH($B108,'Damage costs'!$C$16:$C$43,0))/1000,AV57*INDEX('Damage costs'!$AA$16:$AA$43,MATCH($B108,'Damage costs'!$C$16:$C$43,0))/1000),\"\")","v":""},{"$f":"IFERROR(IF(OR($C$110=FALSE,LEFT($B108,3)<>\"NOX\"),AW57*INDEX('Damage costs'!$W$16:$W$43,MATCH($B108,'Damage costs'!$C$16:$C$43,0))/1000,AW57*INDEX('Damage costs'!$AA$16:$AA$43,MATCH($B108,'Damage costs'!$C$16:$C$43,0))/1000),\"\")","v":""},{"$f":"IFERROR(IF(OR($C$110=FALSE,LEFT($B108,3)<>\"NOX\"),AX57*INDEX('Damage costs'!$W$16:$W$43,MATCH($B108,'Damage costs'!$C$16:$C$43,0))/1000,AX57*INDEX('Damage costs'!$AA$16:$AA$43,MATCH($B108,'Damage costs'!$C$16:$C$43,0))/1000),\"\")","v":""},{"$f":"IFERROR(IF(OR($C$110=FALSE,LEFT($B108,3)<>\"NOX\"),AY57*INDEX('Damage costs'!$W$16:$W$43,MATCH($B108,'Damage costs'!$C$16:$C$43,0))/1000,AY57*INDEX('Damage costs'!$AA$16:$AA$43,MATCH($B108,'Damage costs'!$C$16:$C$43,0))/1000),\"\")","v":""},{"$f":"IFERROR(IF(OR($C$110=FALSE,LEFT($B108,3)<>\"NOX\"),AZ57*INDEX('Damage costs'!$W$16:$W$43,MATCH($B108,'Damage costs'!$C$16:$C$43,0))/1000,AZ57*INDEX('Damage costs'!$AA$16:$AA$43,MATCH($B108,'Damage costs'!$C$16:$C$43,0))/1000),\"\")","v":""},{"$f":"IFERROR(IF(OR($C$110=FALSE,LEFT($B108,3)<>\"NOX\"),BA57*INDEX('Damage costs'!$W$16:$W$43,MATCH($B108,'Damage costs'!$C$16:$C$43,0))/1000,BA57*INDEX('Damage costs'!$AA$16:$AA$43,MATCH($B108,'Damage costs'!$C$16:$C$43,0))/1000),\"\")","v":""},{"$f":"IFERROR(IF(OR($C$110=FALSE,LEFT($B108,3)<>\"NOX\"),BB57*INDEX('Damage costs'!$W$16:$W$43,MATCH($B108,'Damage costs'!$C$16:$C$43,0))/1000,BB57*INDEX('Damage costs'!$AA$16:$AA$43,MATCH($B108,'Damage costs'!$C$16:$C$43,0))/1000),\"\")","v":""},{"$f":"IFERROR(IF(OR($C$110=FALSE,LEFT($B108,3)<>\"NOX\"),BC57*INDEX('Damage costs'!$W$16:$W$43,MATCH($B108,'Damage costs'!$C$16:$C$43,0))/1000,BC57*INDEX('Damage costs'!$AA$16:$AA$43,MATCH($B108,'Damage costs'!$C$16:$C$43,0))/1000),\"\")","v":""},{"$f":"IFERROR(IF(OR($C$110=FALSE,LEFT($B108,3)<>\"NOX\"),BD57*INDEX('Damage costs'!$W$16:$W$43,MATCH($B108,'Damage costs'!$C$16:$C$43,0))/1000,BD57*INDEX('Damage costs'!$AA$16:$AA$43,MATCH($B108,'Damage costs'!$C$16:$C$43,0))/1000),\"\")","v":""},{"$f":"IFERROR(IF(OR($C$110=FALSE,LEFT($B108,3)<>\"NOX\"),BE57*INDEX('Damage costs'!$W$16:$W$43,MATCH($B108,'Damage costs'!$C$16:$C$43,0))/1000,BE57*INDEX('Damage costs'!$AA$16:$AA$43,MATCH($B108,'Damage costs'!$C$16:$C$43,0))/1000),\"\")","v":""},{"$f":"IFERROR(IF(OR($C$110=FALSE,LEFT($B108,3)<>\"NOX\"),BF57*INDEX('Damage costs'!$W$16:$W$43,MATCH($B108,'Damage costs'!$C$16:$C$43,0))/1000,BF57*INDEX('Damage costs'!$AA$16:$AA$43,MATCH($B108,'Damage costs'!$C$16:$C$43,0))/1000),\"\")","v":""},{"$f":"IFERROR(IF(OR($C$110=FALSE,LEFT($B108,3)<>\"NOX\"),BG57*INDEX('Damage costs'!$W$16:$W$43,MATCH($B108,'Damage costs'!$C$16:$C$43,0))/1000,BG57*INDEX('Damage costs'!$AA$16:$AA$43,MATCH($B108,'Damage costs'!$C$16:$C$43,0))/1000),\"\")","v":""},{"$f":"IFERROR(IF(OR($C$110=FALSE,LEFT($B108,3)<>\"NOX\"),BH57*INDEX('Damage costs'!$W$16:$W$43,MATCH($B108,'Damage costs'!$C$16:$C$43,0))/1000,BH57*INDEX('Damage costs'!$AA$16:$AA$43,MATCH($B108,'Damage costs'!$C$16:$C$43,0))/1000),\"\")","v":""},{"$f":"IFERROR(IF(OR($C$110=FALSE,LEFT($B108,3)<>\"NOX\"),BI57*INDEX('Damage costs'!$W$16:$W$43,MATCH($B108,'Damage costs'!$C$16:$C$43,0))/1000,BI57*INDEX('Damage costs'!$AA$16:$AA$43,MATCH($B108,'Damage costs'!$C$16:$C$43,0))/1000),\"\")","v":""},{"$f":"IFERROR(IF(OR($C$110=FALSE,LEFT($B108,3)<>\"NOX\"),BJ57*INDEX('Damage costs'!$W$16:$W$43,MATCH($B108,'Damage costs'!$C$16:$C$43,0))/1000,BJ57*INDEX('Damage costs'!$AA$16:$AA$43,MATCH($B108,'Damage costs'!$C$16:$C$43,0))/1000),\"\")","v":""},{"$f":"IFERROR(IF(OR($C$110=FALSE,LEFT($B108,3)<>\"NOX\"),BK57*INDEX('Damage costs'!$W$16:$W$43,MATCH($B108,'Damage costs'!$C$16:$C$43,0))/1000,BK57*INDEX('Damage costs'!$AA$16:$AA$43,MATCH($B108,'Damage costs'!$C$16:$C$43,0))/1000),\"\")","v":""},{"$f":"IFERROR(IF(OR($C$110=FALSE,LEFT($B108,3)<>\"NOX\"),BL57*INDEX('Damage costs'!$W$16:$W$43,MATCH($B108,'Damage costs'!$C$16:$C$43,0))/1000,BL57*INDEX('Damage costs'!$AA$16:$AA$43,MATCH($B108,'Damage costs'!$C$16:$C$43,0))/1000),\"\")","v":""},{"$f":"IFERROR(IF(OR($C$110=FALSE,LEFT($B108,3)<>\"NOX\"),BM57*INDEX('Damage costs'!$W$16:$W$43,MATCH($B108,'Damage costs'!$C$16:$C$43,0))/1000,BM57*INDEX('Damage costs'!$AA$16:$AA$43,MATCH($B108,'Damage costs'!$C$16:$C$43,0))/1000),\"\")","v":""},{"$f":"IFERROR(IF(OR($C$110=FALSE,LEFT($B108,3)<>\"NOX\"),BN57*INDEX('Damage costs'!$W$16:$W$43,MATCH($B108,'Damage costs'!$C$16:$C$43,0))/1000,BN57*INDEX('Damage costs'!$AA$16:$AA$43,MATCH($B108,'Damage costs'!$C$16:$C$43,0))/1000),\"\")","v":""},{"$f":"IFERROR(IF(OR($C$110=FALSE,LEFT($B108,3)<>\"NOX\"),BO57*INDEX('Damage costs'!$W$16:$W$43,MATCH($B108,'Damage costs'!$C$16:$C$43,0))/1000,BO57*INDEX('Damage costs'!$AA$16:$AA$43,MATCH($B108,'Damage costs'!$C$16:$C$43,0))/1000),\"\")","v":""},{"$f":"IFERROR(IF(OR($C$110=FALSE,LEFT($B108,3)<>\"NOX\"),BP57*INDEX('Damage costs'!$W$16:$W$43,MATCH($B108,'Damage costs'!$C$16:$C$43,0))/1000,BP57*INDEX('Damage costs'!$AA$16:$AA$43,MATCH($B108,'Damage costs'!$C$16:$C$43,0))/1000),\"\")","v":""},{"$f":"IFERROR(IF(OR($C$110=FALSE,LEFT($B108,3)<>\"NOX\"),BQ57*INDEX('Damage costs'!$W$16:$W$43,MATCH($B108,'Damage costs'!$C$16:$C$43,0))/1000,BQ57*INDEX('Damage costs'!$AA$16:$AA$43,MATCH($B108,'Damage costs'!$C$16:$C$43,0))/1000),\"\")","v":""},{"$f":"IFERROR(IF(OR($C$110=FALSE,LEFT($B108,3)<>\"NOX\"),BR57*INDEX('Damage costs'!$W$16:$W$43,MATCH($B108,'Damage costs'!$C$16:$C$43,0))/1000,BR57*INDEX('Damage costs'!$AA$16:$AA$43,MATCH($B108,'Damage costs'!$C$16:$C$43,0))/1000),\"\")","v":""},{"$f":"IFERROR(IF(OR($C$110=FALSE,LEFT($B108,3)<>\"NOX\"),BS57*INDEX('Damage costs'!$W$16:$W$43,MATCH($B108,'Damage costs'!$C$16:$C$43,0))/1000,BS57*INDEX('Damage costs'!$AA$16:$AA$43,MATCH($B108,'Damage costs'!$C$16:$C$43,0))/1000),\"\")","v":""},{"$f":"IFERROR(IF(OR($C$110=FALSE,LEFT($B108,3)<>\"NOX\"),BT57*INDEX('Damage costs'!$W$16:$W$43,MATCH($B108,'Damage costs'!$C$16:$C$43,0))/1000,BT57*INDEX('Damage costs'!$AA$16:$AA$43,MATCH($B108,'Damage costs'!$C$16:$C$43,0))/1000),\"\")","v":""},{"$f":"IFERROR(IF(OR($C$110=FALSE,LEFT($B108,3)<>\"NOX\"),BU57*INDEX('Damage costs'!$W$16:$W$43,MATCH($B108,'Damage costs'!$C$16:$C$43,0))/1000,BU57*INDEX('Damage costs'!$AA$16:$AA$43,MATCH($B108,'Damage costs'!$C$16:$C$43,0))/1000),\"\")","v":""},{"$f":"IFERROR(IF(OR($C$110=FALSE,LEFT($B108,3)<>\"NOX\"),BV57*INDEX('Damage costs'!$W$16:$W$43,MATCH($B108,'Damage costs'!$C$16:$C$43,0))/1000,BV57*INDEX('Damage costs'!$AA$16:$AA$43,MATCH($B108,'Damage costs'!$C$16:$C$43,0))/1000),\"\")","v":""},{"$f":"IFERROR(IF(OR($C$110=FALSE,LEFT($B108,3)<>\"NOX\"),BW57*INDEX('Damage costs'!$W$16:$W$43,MATCH($B108,'Damage costs'!$C$16:$C$43,0))/1000,BW57*INDEX('Damage costs'!$AA$16:$AA$43,MATCH($B108,'Damage costs'!$C$16:$C$43,0))/1000),\"\")","v":""},{"$f":"IFERROR(IF(OR($C$110=FALSE,LEFT($B108,3)<>\"NOX\"),BX57*INDEX('Damage costs'!$W$16:$W$43,MATCH($B108,'Damage costs'!$C$16:$C$43,0))/1000,BX57*INDEX('Damage costs'!$AA$16:$AA$43,MATCH($B108,'Damage costs'!$C$16:$C$43,0))/1000),\"\")","v":""},{"$f":"IFERROR(IF(OR($C$110=FALSE,LEFT($B108,3)<>\"NOX\"),BY57*INDEX('Damage costs'!$W$16:$W$43,MATCH($B108,'Damage costs'!$C$16:$C$43,0))/1000,BY57*INDEX('Damage costs'!$AA$16:$AA$43,MATCH($B108,'Damage costs'!$C$16:$C$43,0))/1000),\"\")","v":""},{"$f":"IFERROR(IF(OR($C$110=FALSE,LEFT($B108,3)<>\"NOX\"),BZ57*INDEX('Damage costs'!$W$16:$W$43,MATCH($B108,'Damage costs'!$C$16:$C$43,0))/1000,BZ57*INDEX('Damage costs'!$AA$16:$AA$43,MATCH($B108,'Damage costs'!$C$16:$C$43,0))/1000),\"\")","v":""},{"$f":"IFERROR(IF(OR($C$110=FALSE,LEFT($B108,3)<>\"NOX\"),CA57*INDEX('Damage costs'!$W$16:$W$43,MATCH($B108,'Damage costs'!$C$16:$C$43,0))/1000,CA57*INDEX('Damage costs'!$AA$16:$AA$43,MATCH($B108,'Damage costs'!$C$16:$C$43,0))/1000),\"\")","v":""},{"$f":"IFERROR(IF(OR($C$110=FALSE,LEFT($B108,3)<>\"NOX\"),CB57*INDEX('Damage costs'!$W$16:$W$43,MATCH($B108,'Damage costs'!$C$16:$C$43,0))/1000,CB57*INDEX('Damage costs'!$AA$16:$AA$43,MATCH($B108,'Damage costs'!$C$16:$C$43,0))/1000),\"\")","v":""},{"$f":"IFERROR(IF(OR($C$110=FALSE,LEFT($B108,3)<>\"NOX\"),CC57*INDEX('Damage costs'!$W$16:$W$43,MATCH($B108,'Damage costs'!$C$16:$C$43,0))/1000,CC57*INDEX('Damage costs'!$AA$16:$AA$43,MATCH($B108,'Damage costs'!$C$16:$C$43,0))/1000),\"\")","v":""},{"$f":"IFERROR(IF(OR($C$110=FALSE,LEFT($B108,3)<>\"NOX\"),CD57*INDEX('Damage costs'!$W$16:$W$43,MATCH($B108,'Damage costs'!$C$16:$C$43,0))/1000,CD57*INDEX('Damage costs'!$AA$16:$AA$43,MATCH($B108,'Damage costs'!$C$16:$C$43,0))/1000),\"\")","v":""},{"$f":"IFERROR(IF(OR($C$110=FALSE,LEFT($B108,3)<>\"NOX\"),CE57*INDEX('Damage costs'!$W$16:$W$43,MATCH($B108,'Damage costs'!$C$16:$C$43,0))/1000,CE57*INDEX('Damage costs'!$AA$16:$AA$43,MATCH($B108,'Damage costs'!$C$16:$C$43,0))/1000),\"\")","v":""},{"$f":"IFERROR(IF(OR($C$110=FALSE,LEFT($B108,3)<>\"NOX\"),CF57*INDEX('Damage costs'!$W$16:$W$43,MATCH($B108,'Damage costs'!$C$16:$C$43,0))/1000,CF57*INDEX('Damage costs'!$AA$16:$AA$43,MATCH($B108,'Damage costs'!$C$16:$C$43,0))/1000),\"\")","v":""},{"$f":"IFERROR(IF(OR($C$110=FALSE,LEFT($B108,3)<>\"NOX\"),CG57*INDEX('Damage costs'!$W$16:$W$43,MATCH($B108,'Damage costs'!$C$16:$C$43,0))/1000,CG57*INDEX('Damage costs'!$AA$16:$AA$43,MATCH($B108,'Damage costs'!$C$16:$C$43,0))/1000),\"\")","v":""},{"$f":"IFERROR(IF(OR($C$110=FALSE,LEFT($B108,3)<>\"NOX\"),CH57*INDEX('Damage costs'!$W$16:$W$43,MATCH($B108,'Damage costs'!$C$16:$C$43,0))/1000,CH57*INDEX('Damage costs'!$AA$16:$AA$43,MATCH($B108,'Damage costs'!$C$16:$C$43,0))/1000),\"\")","v":""},{"$f":"IFERROR(IF(OR($C$110=FALSE,LEFT($B108,3)<>\"NOX\"),CI57*INDEX('Damage costs'!$W$16:$W$43,MATCH($B108,'Damage costs'!$C$16:$C$43,0))/1000,CI57*INDEX('Damage costs'!$AA$16:$AA$43,MATCH($B108,'Damage costs'!$C$16:$C$43,0))/1000),\"\")","v":""},{"$f":"IFERROR(IF(OR($C$110=FALSE,LEFT($B108,3)<>\"NOX\"),CJ57*INDEX('Damage costs'!$W$16:$W$43,MATCH($B108,'Damage costs'!$C$16:$C$43,0))/1000,CJ57*INDEX('Damage costs'!$AA$16:$AA$43,MATCH($B108,'Damage costs'!$C$16:$C$43,0))/1000),\"\")","v":""},{"$f":"IFERROR(IF(OR($C$110=FALSE,LEFT($B108,3)<>\"NOX\"),CK57*INDEX('Damage costs'!$W$16:$W$43,MATCH($B108,'Damage costs'!$C$16:$C$43,0))/1000,CK57*INDEX('Damage costs'!$AA$16:$AA$43,MATCH($B108,'Damage costs'!$C$16:$C$43,0))/1000),\"\")","v":""},{"$f":"IFERROR(IF(OR($C$110=FALSE,LEFT($B108,3)<>\"NOX\"),CL57*INDEX('Damage costs'!$W$16:$W$43,MATCH($B108,'Damage costs'!$C$16:$C$43,0))/1000,CL57*INDEX('Damage costs'!$AA$16:$AA$43,MATCH($B108,'Damage costs'!$C$16:$C$43,0))/1000),\"\")","v":""},{"$f":"IFERROR(IF(OR($C$110=FALSE,LEFT($B108,3)<>\"NOX\"),CM57*INDEX('Damage costs'!$W$16:$W$43,MATCH($B108,'Damage costs'!$C$16:$C$43,0))/1000,CM57*INDEX('Damage costs'!$AA$16:$AA$43,MATCH($B108,'Damage costs'!$C$16:$C$43,0))/1000),\"\")","v":""},{"$f":"IFERROR(IF(OR($C$110=FALSE,LEFT($B108,3)<>\"NOX\"),CN57*INDEX('Damage costs'!$W$16:$W$43,MATCH($B108,'Damage costs'!$C$16:$C$43,0))/1000,CN57*INDEX('Damage costs'!$AA$16:$AA$43,MATCH($B108,'Damage costs'!$C$16:$C$43,0))/1000),\"\")","v":""},{"$f":"IFERROR(IF(OR($C$110=FALSE,LEFT($B108,3)<>\"NOX\"),CO57*INDEX('Damage costs'!$W$16:$W$43,MATCH($B108,'Damage costs'!$C$16:$C$43,0))/1000,CO57*INDEX('Damage costs'!$AA$16:$AA$43,MATCH($B108,'Damage costs'!$C$16:$C$43,0))/1000),\"\")","v":""},{"$f":"IFERROR(IF(OR($C$110=FALSE,LEFT($B108,3)<>\"NOX\"),CP57*INDEX('Damage costs'!$W$16:$W$43,MATCH($B108,'Damage costs'!$C$16:$C$43,0))/1000,CP57*INDEX('Damage costs'!$AA$16:$AA$43,MATCH($B108,'Damage costs'!$C$16:$C$43,0))/1000),\"\")","v":""},{"$f":"IFERROR(IF(OR($C$110=FALSE,LEFT($B108,3)<>\"NOX\"),CQ57*INDEX('Damage costs'!$W$16:$W$43,MATCH($B108,'Damage costs'!$C$16:$C$43,0))/1000,CQ57*INDEX('Damage costs'!$AA$16:$AA$43,MATCH($B108,'Damage costs'!$C$16:$C$43,0))/1000),\"\")","v":""},{"$f":"IFERROR(IF(OR($C$110=FALSE,LEFT($B108,3)<>\"NOX\"),CR57*INDEX('Damage costs'!$W$16:$W$43,MATCH($B108,'Damage costs'!$C$16:$C$43,0))/1000,CR57*INDEX('Damage costs'!$AA$16:$AA$43,MATCH($B108,'Damage costs'!$C$16:$C$43,0))/1000),\"\")","v":""},{"$f":"IFERROR(IF(OR($C$110=FALSE,LEFT($B108,3)<>\"NOX\"),CS57*INDEX('Damage costs'!$W$16:$W$43,MATCH($B108,'Damage costs'!$C$16:$C$43,0))/1000,CS57*INDEX('Damage costs'!$AA$16:$AA$43,MATCH($B108,'Damage costs'!$C$16:$C$43,0))/1000),\"\")","v":""},{"$f":"IFERROR(IF(OR($C$110=FALSE,LEFT($B108,3)<>\"NOX\"),CT57*INDEX('Damage costs'!$W$16:$W$43,MATCH($B108,'Damage costs'!$C$16:$C$43,0))/1000,CT57*INDEX('Damage costs'!$AA$16:$AA$43,MATCH($B108,'Damage costs'!$C$16:$C$43,0))/1000),\"\")","v":""},{"$f":"IFERROR(IF(OR($C$110=FALSE,LEFT($B108,3)<>\"NOX\"),CU57*INDEX('Damage costs'!$W$16:$W$43,MATCH($B108,'Damage costs'!$C$16:$C$43,0))/1000,CU57*INDEX('Damage costs'!$AA$16:$AA$43,MATCH($B108,'Damage costs'!$C$16:$C$43,0))/1000),\"\")","v":""},{"$f":"IFERROR(IF(OR($C$110=FALSE,LEFT($B108,3)<>\"NOX\"),CV57*INDEX('Damage costs'!$W$16:$W$43,MATCH($B108,'Damage costs'!$C$16:$C$43,0))/1000,CV57*INDEX('Damage costs'!$AA$16:$AA$43,MATCH($B108,'Damage costs'!$C$16:$C$43,0))/1000),\"\")","v":""},{"$f":"IFERROR(IF(OR($C$110=FALSE,LEFT($B108,3)<>\"NOX\"),CW57*INDEX('Damage costs'!$W$16:$W$43,MATCH($B108,'Damage costs'!$C$16:$C$43,0))/1000,CW57*INDEX('Damage costs'!$AA$16:$AA$43,MATCH($B108,'Damage costs'!$C$16:$C$43,0))/1000),\"\")","v":""},{"$f":"IFERROR(IF(OR($C$110=FALSE,LEFT($B108,3)<>\"NOX\"),CX57*INDEX('Damage costs'!$W$16:$W$43,MATCH($B108,'Damage costs'!$C$16:$C$43,0))/1000,CX57*INDEX('Damage costs'!$AA$16:$AA$43,MATCH($B108,'Damage costs'!$C$16:$C$43,0))/1000),\"\")","v":""},{"$f":"IFERROR(IF(OR($C$110=FALSE,LEFT($B108,3)<>\"NOX\"),CY57*INDEX('Damage costs'!$W$16:$W$43,MATCH($B108,'Damage costs'!$C$16:$C$43,0))/1000,CY57*INDEX('Damage costs'!$AA$16:$AA$43,MATCH($B108,'Damage costs'!$C$16:$C$43,0))/1000),\"\")","v":""}]
[null,0,"£000's",{"$f":"IFERROR(IF(OR($C$110=FALSE,LEFT($B109,3)<>\"NOX\"),D58*INDEX('Damage costs'!$W$16:$W$43,MATCH($B109,'Damage costs'!$C$16:$C$43,0))/1000,D58*INDEX('Damage costs'!$AA$16:$AA$43,MATCH($B109,'Damage costs'!$C$16:$C$43,0))/1000),\"\")","v":""},{"$f":"IFERROR(IF(OR($C$110=FALSE,LEFT($B109,3)<>\"NOX\"),E58*INDEX('Damage costs'!$W$16:$W$43,MATCH($B109,'Damage costs'!$C$16:$C$43,0))/1000,E58*INDEX('Damage costs'!$AA$16:$AA$43,MATCH($B109,'Damage costs'!$C$16:$C$43,0))/1000),\"\")","v":""},{"$f":"IFERROR(IF(OR($C$110=FALSE,LEFT($B109,3)<>\"NOX\"),F58*INDEX('Damage costs'!$W$16:$W$43,MATCH($B109,'Damage costs'!$C$16:$C$43,0))/1000,F58*INDEX('Damage costs'!$AA$16:$AA$43,MATCH($B109,'Damage costs'!$C$16:$C$43,0))/1000),\"\")","v":""},{"$f":"IFERROR(IF(OR($C$110=FALSE,LEFT($B109,3)<>\"NOX\"),G58*INDEX('Damage costs'!$W$16:$W$43,MATCH($B109,'Damage costs'!$C$16:$C$43,0))/1000,G58*INDEX('Damage costs'!$AA$16:$AA$43,MATCH($B109,'Damage costs'!$C$16:$C$43,0))/1000),\"\")","v":""},{"$f":"IFERROR(IF(OR($C$110=FALSE,LEFT($B109,3)<>\"NOX\"),H58*INDEX('Damage costs'!$W$16:$W$43,MATCH($B109,'Damage costs'!$C$16:$C$43,0))/1000,H58*INDEX('Damage costs'!$AA$16:$AA$43,MATCH($B109,'Damage costs'!$C$16:$C$43,0))/1000),\"\")","v":""},{"$f":"IFERROR(IF(OR($C$110=FALSE,LEFT($B109,3)<>\"NOX\"),I58*INDEX('Damage costs'!$W$16:$W$43,MATCH($B109,'Damage costs'!$C$16:$C$43,0))/1000,I58*INDEX('Damage costs'!$AA$16:$AA$43,MATCH($B109,'Damage costs'!$C$16:$C$43,0))/1000),\"\")","v":""},{"$f":"IFERROR(IF(OR($C$110=FALSE,LEFT($B109,3)<>\"NOX\"),J58*INDEX('Damage costs'!$W$16:$W$43,MATCH($B109,'Damage costs'!$C$16:$C$43,0))/1000,J58*INDEX('Damage costs'!$AA$16:$AA$43,MATCH($B109,'Damage costs'!$C$16:$C$43,0))/1000),\"\")","v":""},{"$f":"IFERROR(IF(OR($C$110=FALSE,LEFT($B109,3)<>\"NOX\"),K58*INDEX('Damage costs'!$W$16:$W$43,MATCH($B109,'Damage costs'!$C$16:$C$43,0))/1000,K58*INDEX('Damage costs'!$AA$16:$AA$43,MATCH($B109,'Damage costs'!$C$16:$C$43,0))/1000),\"\")","v":""},{"$f":"IFERROR(IF(OR($C$110=FALSE,LEFT($B109,3)<>\"NOX\"),L58*INDEX('Damage costs'!$W$16:$W$43,MATCH($B109,'Damage costs'!$C$16:$C$43,0))/1000,L58*INDEX('Damage costs'!$AA$16:$AA$43,MATCH($B109,'Damage costs'!$C$16:$C$43,0))/1000),\"\")","v":""},{"$f":"IFERROR(IF(OR($C$110=FALSE,LEFT($B109,3)<>\"NOX\"),M58*INDEX('Damage costs'!$W$16:$W$43,MATCH($B109,'Damage costs'!$C$16:$C$43,0))/1000,M58*INDEX('Damage costs'!$AA$16:$AA$43,MATCH($B109,'Damage costs'!$C$16:$C$43,0))/1000),\"\")","v":""},{"$f":"IFERROR(IF(OR($C$110=FALSE,LEFT($B109,3)<>\"NOX\"),N58*INDEX('Damage costs'!$W$16:$W$43,MATCH($B109,'Damage costs'!$C$16:$C$43,0))/1000,N58*INDEX('Damage costs'!$AA$16:$AA$43,MATCH($B109,'Damage costs'!$C$16:$C$43,0))/1000),\"\")","v":""},{"$f":"IFERROR(IF(OR($C$110=FALSE,LEFT($B109,3)<>\"NOX\"),O58*INDEX('Damage costs'!$W$16:$W$43,MATCH($B109,'Damage costs'!$C$16:$C$43,0))/1000,O58*INDEX('Damage costs'!$AA$16:$AA$43,MATCH($B109,'Damage costs'!$C$16:$C$43,0))/1000),\"\")","v":""},{"$f":"IFERROR(IF(OR($C$110=FALSE,LEFT($B109,3)<>\"NOX\"),P58*INDEX('Damage costs'!$W$16:$W$43,MATCH($B109,'Damage costs'!$C$16:$C$43,0))/1000,P58*INDEX('Damage costs'!$AA$16:$AA$43,MATCH($B109,'Damage costs'!$C$16:$C$43,0))/1000),\"\")","v":""},{"$f":"IFERROR(IF(OR($C$110=FALSE,LEFT($B109,3)<>\"NOX\"),Q58*INDEX('Damage costs'!$W$16:$W$43,MATCH($B109,'Damage costs'!$C$16:$C$43,0))/1000,Q58*INDEX('Damage costs'!$AA$16:$AA$43,MATCH($B109,'Damage costs'!$C$16:$C$43,0))/1000),\"\")","v":""},{"$f":"IFERROR(IF(OR($C$110=FALSE,LEFT($B109,3)<>\"NOX\"),R58*INDEX('Damage costs'!$W$16:$W$43,MATCH($B109,'Damage costs'!$C$16:$C$43,0))/1000,R58*INDEX('Damage costs'!$AA$16:$AA$43,MATCH($B109,'Damage costs'!$C$16:$C$43,0))/1000),\"\")","v":""},{"$f":"IFERROR(IF(OR($C$110=FALSE,LEFT($B109,3)<>\"NOX\"),S58*INDEX('Damage costs'!$W$16:$W$43,MATCH($B109,'Damage costs'!$C$16:$C$43,0))/1000,S58*INDEX('Damage costs'!$AA$16:$AA$43,MATCH($B109,'Damage costs'!$C$16:$C$43,0))/1000),\"\")","v":""},{"$f":"IFERROR(IF(OR($C$110=FALSE,LEFT($B109,3)<>\"NOX\"),T58*INDEX('Damage costs'!$W$16:$W$43,MATCH($B109,'Damage costs'!$C$16:$C$43,0))/1000,T58*INDEX('Damage costs'!$AA$16:$AA$43,MATCH($B109,'Damage costs'!$C$16:$C$43,0))/1000),\"\")","v":""},{"$f":"IFERROR(IF(OR($C$110=FALSE,LEFT($B109,3)<>\"NOX\"),U58*INDEX('Damage costs'!$W$16:$W$43,MATCH($B109,'Damage costs'!$C$16:$C$43,0))/1000,U58*INDEX('Damage costs'!$AA$16:$AA$43,MATCH($B109,'Damage costs'!$C$16:$C$43,0))/1000),\"\")","v":""},{"$f":"IFERROR(IF(OR($C$110=FALSE,LEFT($B109,3)<>\"NOX\"),V58*INDEX('Damage costs'!$W$16:$W$43,MATCH($B109,'Damage costs'!$C$16:$C$43,0))/1000,V58*INDEX('Damage costs'!$AA$16:$AA$43,MATCH($B109,'Damage costs'!$C$16:$C$43,0))/1000),\"\")","v":""},{"$f":"IFERROR(IF(OR($C$110=FALSE,LEFT($B109,3)<>\"NOX\"),W58*INDEX('Damage costs'!$W$16:$W$43,MATCH($B109,'Damage costs'!$C$16:$C$43,0))/1000,W58*INDEX('Damage costs'!$AA$16:$AA$43,MATCH($B109,'Damage costs'!$C$16:$C$43,0))/1000),\"\")","v":""},{"$f":"IFERROR(IF(OR($C$110=FALSE,LEFT($B109,3)<>\"NOX\"),X58*INDEX('Damage costs'!$W$16:$W$43,MATCH($B109,'Damage costs'!$C$16:$C$43,0))/1000,X58*INDEX('Damage costs'!$AA$16:$AA$43,MATCH($B109,'Damage costs'!$C$16:$C$43,0))/1000),\"\")","v":""},{"$f":"IFERROR(IF(OR($C$110=FALSE,LEFT($B109,3)<>\"NOX\"),Y58*INDEX('Damage costs'!$W$16:$W$43,MATCH($B109,'Damage costs'!$C$16:$C$43,0))/1000,Y58*INDEX('Damage costs'!$AA$16:$AA$43,MATCH($B109,'Damage costs'!$C$16:$C$43,0))/1000),\"\")","v":""},{"$f":"IFERROR(IF(OR($C$110=FALSE,LEFT($B109,3)<>\"NOX\"),Z58*INDEX('Damage costs'!$W$16:$W$43,MATCH($B109,'Damage costs'!$C$16:$C$43,0))/1000,Z58*INDEX('Damage costs'!$AA$16:$AA$43,MATCH($B109,'Damage costs'!$C$16:$C$43,0))/1000),\"\")","v":""},{"$f":"IFERROR(IF(OR($C$110=FALSE,LEFT($B109,3)<>\"NOX\"),AA58*INDEX('Damage costs'!$W$16:$W$43,MATCH($B109,'Damage costs'!$C$16:$C$43,0))/1000,AA58*INDEX('Damage costs'!$AA$16:$AA$43,MATCH($B109,'Damage costs'!$C$16:$C$43,0))/1000),\"\")","v":""},{"$f":"IFERROR(IF(OR($C$110=FALSE,LEFT($B109,3)<>\"NOX\"),AB58*INDEX('Damage costs'!$W$16:$W$43,MATCH($B109,'Damage costs'!$C$16:$C$43,0))/1000,AB58*INDEX('Damage costs'!$AA$16:$AA$43,MATCH($B109,'Damage costs'!$C$16:$C$43,0))/1000),\"\")","v":""},{"$f":"IFERROR(IF(OR($C$110=FALSE,LEFT($B109,3)<>\"NOX\"),AC58*INDEX('Damage costs'!$W$16:$W$43,MATCH($B109,'Damage costs'!$C$16:$C$43,0))/1000,AC58*INDEX('Damage costs'!$AA$16:$AA$43,MATCH($B109,'Damage costs'!$C$16:$C$43,0))/1000),\"\")","v":""},{"$f":"IFERROR(IF(OR($C$110=FALSE,LEFT($B109,3)<>\"NOX\"),AD58*INDEX('Damage costs'!$W$16:$W$43,MATCH($B109,'Damage costs'!$C$16:$C$43,0))/1000,AD58*INDEX('Damage costs'!$AA$16:$AA$43,MATCH($B109,'Damage costs'!$C$16:$C$43,0))/1000),\"\")","v":""},{"$f":"IFERROR(IF(OR($C$110=FALSE,LEFT($B109,3)<>\"NOX\"),AE58*INDEX('Damage costs'!$W$16:$W$43,MATCH($B109,'Damage costs'!$C$16:$C$43,0))/1000,AE58*INDEX('Damage costs'!$AA$16:$AA$43,MATCH($B109,'Damage costs'!$C$16:$C$43,0))/1000),\"\")","v":""},{"$f":"IFERROR(IF(OR($C$110=FALSE,LEFT($B109,3)<>\"NOX\"),AF58*INDEX('Damage costs'!$W$16:$W$43,MATCH($B109,'Damage costs'!$C$16:$C$43,0))/1000,AF58*INDEX('Damage costs'!$AA$16:$AA$43,MATCH($B109,'Damage costs'!$C$16:$C$43,0))/1000),\"\")","v":""},{"$f":"IFERROR(IF(OR($C$110=FALSE,LEFT($B109,3)<>\"NOX\"),AG58*INDEX('Damage costs'!$W$16:$W$43,MATCH($B109,'Damage costs'!$C$16:$C$43,0))/1000,AG58*INDEX('Damage costs'!$AA$16:$AA$43,MATCH($B109,'Damage costs'!$C$16:$C$43,0))/1000),\"\")","v":""},{"$f":"IFERROR(IF(OR($C$110=FALSE,LEFT($B109,3)<>\"NOX\"),AH58*INDEX('Damage costs'!$W$16:$W$43,MATCH($B109,'Damage costs'!$C$16:$C$43,0))/1000,AH58*INDEX('Damage costs'!$AA$16:$AA$43,MATCH($B109,'Damage costs'!$C$16:$C$43,0))/1000),\"\")","v":""},{"$f":"IFERROR(IF(OR($C$110=FALSE,LEFT($B109,3)<>\"NOX\"),AI58*INDEX('Damage costs'!$W$16:$W$43,MATCH($B109,'Damage costs'!$C$16:$C$43,0))/1000,AI58*INDEX('Damage costs'!$AA$16:$AA$43,MATCH($B109,'Damage costs'!$C$16:$C$43,0))/1000),\"\")","v":""},{"$f":"IFERROR(IF(OR($C$110=FALSE,LEFT($B109,3)<>\"NOX\"),AJ58*INDEX('Damage costs'!$W$16:$W$43,MATCH($B109,'Damage costs'!$C$16:$C$43,0))/1000,AJ58*INDEX('Damage costs'!$AA$16:$AA$43,MATCH($B109,'Damage costs'!$C$16:$C$43,0))/1000),\"\")","v":""},{"$f":"IFERROR(IF(OR($C$110=FALSE,LEFT($B109,3)<>\"NOX\"),AK58*INDEX('Damage costs'!$W$16:$W$43,MATCH($B109,'Damage costs'!$C$16:$C$43,0))/1000,AK58*INDEX('Damage costs'!$AA$16:$AA$43,MATCH($B109,'Damage costs'!$C$16:$C$43,0))/1000),\"\")","v":""},{"$f":"IFERROR(IF(OR($C$110=FALSE,LEFT($B109,3)<>\"NOX\"),AL58*INDEX('Damage costs'!$W$16:$W$43,MATCH($B109,'Damage costs'!$C$16:$C$43,0))/1000,AL58*INDEX('Damage costs'!$AA$16:$AA$43,MATCH($B109,'Damage costs'!$C$16:$C$43,0))/1000),\"\")","v":""},{"$f":"IFERROR(IF(OR($C$110=FALSE,LEFT($B109,3)<>\"NOX\"),AM58*INDEX('Damage costs'!$W$16:$W$43,MATCH($B109,'Damage costs'!$C$16:$C$43,0))/1000,AM58*INDEX('Damage costs'!$AA$16:$AA$43,MATCH($B109,'Damage costs'!$C$16:$C$43,0))/1000),\"\")","v":""},{"$f":"IFERROR(IF(OR($C$110=FALSE,LEFT($B109,3)<>\"NOX\"),AN58*INDEX('Damage costs'!$W$16:$W$43,MATCH($B109,'Damage costs'!$C$16:$C$43,0))/1000,AN58*INDEX('Damage costs'!$AA$16:$AA$43,MATCH($B109,'Damage costs'!$C$16:$C$43,0))/1000),\"\")","v":""},{"$f":"IFERROR(IF(OR($C$110=FALSE,LEFT($B109,3)<>\"NOX\"),AO58*INDEX('Damage costs'!$W$16:$W$43,MATCH($B109,'Damage costs'!$C$16:$C$43,0))/1000,AO58*INDEX('Damage costs'!$AA$16:$AA$43,MATCH($B109,'Damage costs'!$C$16:$C$43,0))/1000),\"\")","v":""},{"$f":"IFERROR(IF(OR($C$110=FALSE,LEFT($B109,3)<>\"NOX\"),AP58*INDEX('Damage costs'!$W$16:$W$43,MATCH($B109,'Damage costs'!$C$16:$C$43,0))/1000,AP58*INDEX('Damage costs'!$AA$16:$AA$43,MATCH($B109,'Damage costs'!$C$16:$C$43,0))/1000),\"\")","v":""},{"$f":"IFERROR(IF(OR($C$110=FALSE,LEFT($B109,3)<>\"NOX\"),AQ58*INDEX('Damage costs'!$W$16:$W$43,MATCH($B109,'Damage costs'!$C$16:$C$43,0))/1000,AQ58*INDEX('Damage costs'!$AA$16:$AA$43,MATCH($B109,'Damage costs'!$C$16:$C$43,0))/1000),\"\")","v":""},{"$f":"IFERROR(IF(OR($C$110=FALSE,LEFT($B109,3)<>\"NOX\"),AR58*INDEX('Damage costs'!$W$16:$W$43,MATCH($B109,'Damage costs'!$C$16:$C$43,0))/1000,AR58*INDEX('Damage costs'!$AA$16:$AA$43,MATCH($B109,'Damage costs'!$C$16:$C$43,0))/1000),\"\")","v":""},{"$f":"IFERROR(IF(OR($C$110=FALSE,LEFT($B109,3)<>\"NOX\"),AS58*INDEX('Damage costs'!$W$16:$W$43,MATCH($B109,'Damage costs'!$C$16:$C$43,0))/1000,AS58*INDEX('Damage costs'!$AA$16:$AA$43,MATCH($B109,'Damage costs'!$C$16:$C$43,0))/1000),\"\")","v":""},{"$f":"IFERROR(IF(OR($C$110=FALSE,LEFT($B109,3)<>\"NOX\"),AT58*INDEX('Damage costs'!$W$16:$W$43,MATCH($B109,'Damage costs'!$C$16:$C$43,0))/1000,AT58*INDEX('Damage costs'!$AA$16:$AA$43,MATCH($B109,'Damage costs'!$C$16:$C$43,0))/1000),\"\")","v":""},{"$f":"IFERROR(IF(OR($C$110=FALSE,LEFT($B109,3)<>\"NOX\"),AU58*INDEX('Damage costs'!$W$16:$W$43,MATCH($B109,'Damage costs'!$C$16:$C$43,0))/1000,AU58*INDEX('Damage costs'!$AA$16:$AA$43,MATCH($B109,'Damage costs'!$C$16:$C$43,0))/1000),\"\")","v":""},{"$f":"IFERROR(IF(OR($C$110=FALSE,LEFT($B109,3)<>\"NOX\"),AV58*INDEX('Damage costs'!$W$16:$W$43,MATCH($B109,'Damage costs'!$C$16:$C$43,0))/1000,AV58*INDEX('Damage costs'!$AA$16:$AA$43,MATCH($B109,'Damage costs'!$C$16:$C$43,0))/1000),\"\")","v":""},{"$f":"IFERROR(IF(OR($C$110=FALSE,LEFT($B109,3)<>\"NOX\"),AW58*INDEX('Damage costs'!$W$16:$W$43,MATCH($B109,'Damage costs'!$C$16:$C$43,0))/1000,AW58*INDEX('Damage costs'!$AA$16:$AA$43,MATCH($B109,'Damage costs'!$C$16:$C$43,0))/1000),\"\")","v":""},{"$f":"IFERROR(IF(OR($C$110=FALSE,LEFT($B109,3)<>\"NOX\"),AX58*INDEX('Damage costs'!$W$16:$W$43,MATCH($B109,'Damage costs'!$C$16:$C$43,0))/1000,AX58*INDEX('Damage costs'!$AA$16:$AA$43,MATCH($B109,'Damage costs'!$C$16:$C$43,0))/1000),\"\")","v":""},{"$f":"IFERROR(IF(OR($C$110=FALSE,LEFT($B109,3)<>\"NOX\"),AY58*INDEX('Damage costs'!$W$16:$W$43,MATCH($B109,'Damage costs'!$C$16:$C$43,0))/1000,AY58*INDEX('Damage costs'!$AA$16:$AA$43,MATCH($B109,'Damage costs'!$C$16:$C$43,0))/1000),\"\")","v":""},{"$f":"IFERROR(IF(OR($C$110=FALSE,LEFT($B109,3)<>\"NOX\"),AZ58*INDEX('Damage costs'!$W$16:$W$43,MATCH($B109,'Damage costs'!$C$16:$C$43,0))/1000,AZ58*INDEX('Damage costs'!$AA$16:$AA$43,MATCH($B109,'Damage costs'!$C$16:$C$43,0))/1000),\"\")","v":""},{"$f":"IFERROR(IF(OR($C$110=FALSE,LEFT($B109,3)<>\"NOX\"),BA58*INDEX('Damage costs'!$W$16:$W$43,MATCH($B109,'Damage costs'!$C$16:$C$43,0))/1000,BA58*INDEX('Damage costs'!$AA$16:$AA$43,MATCH($B109,'Damage costs'!$C$16:$C$43,0))/1000),\"\")","v":""},{"$f":"IFERROR(IF(OR($C$110=FALSE,LEFT($B109,3)<>\"NOX\"),BB58*INDEX('Damage costs'!$W$16:$W$43,MATCH($B109,'Damage costs'!$C$16:$C$43,0))/1000,BB58*INDEX('Damage costs'!$AA$16:$AA$43,MATCH($B109,'Damage costs'!$C$16:$C$43,0))/1000),\"\")","v":""},{"$f":"IFERROR(IF(OR($C$110=FALSE,LEFT($B109,3)<>\"NOX\"),BC58*INDEX('Damage costs'!$W$16:$W$43,MATCH($B109,'Damage costs'!$C$16:$C$43,0))/1000,BC58*INDEX('Damage costs'!$AA$16:$AA$43,MATCH($B109,'Damage costs'!$C$16:$C$43,0))/1000),\"\")","v":""},{"$f":"IFERROR(IF(OR($C$110=FALSE,LEFT($B109,3)<>\"NOX\"),BD58*INDEX('Damage costs'!$W$16:$W$43,MATCH($B109,'Damage costs'!$C$16:$C$43,0))/1000,BD58*INDEX('Damage costs'!$AA$16:$AA$43,MATCH($B109,'Damage costs'!$C$16:$C$43,0))/1000),\"\")","v":""},{"$f":"IFERROR(IF(OR($C$110=FALSE,LEFT($B109,3)<>\"NOX\"),BE58*INDEX('Damage costs'!$W$16:$W$43,MATCH($B109,'Damage costs'!$C$16:$C$43,0))/1000,BE58*INDEX('Damage costs'!$AA$16:$AA$43,MATCH($B109,'Damage costs'!$C$16:$C$43,0))/1000),\"\")","v":""},{"$f":"IFERROR(IF(OR($C$110=FALSE,LEFT($B109,3)<>\"NOX\"),BF58*INDEX('Damage costs'!$W$16:$W$43,MATCH($B109,'Damage costs'!$C$16:$C$43,0))/1000,BF58*INDEX('Damage costs'!$AA$16:$AA$43,MATCH($B109,'Damage costs'!$C$16:$C$43,0))/1000),\"\")","v":""},{"$f":"IFERROR(IF(OR($C$110=FALSE,LEFT($B109,3)<>\"NOX\"),BG58*INDEX('Damage costs'!$W$16:$W$43,MATCH($B109,'Damage costs'!$C$16:$C$43,0))/1000,BG58*INDEX('Damage costs'!$AA$16:$AA$43,MATCH($B109,'Damage costs'!$C$16:$C$43,0))/1000),\"\")","v":""},{"$f":"IFERROR(IF(OR($C$110=FALSE,LEFT($B109,3)<>\"NOX\"),BH58*INDEX('Damage costs'!$W$16:$W$43,MATCH($B109,'Damage costs'!$C$16:$C$43,0))/1000,BH58*INDEX('Damage costs'!$AA$16:$AA$43,MATCH($B109,'Damage costs'!$C$16:$C$43,0))/1000),\"\")","v":""},{"$f":"IFERROR(IF(OR($C$110=FALSE,LEFT($B109,3)<>\"NOX\"),BI58*INDEX('Damage costs'!$W$16:$W$43,MATCH($B109,'Damage costs'!$C$16:$C$43,0))/1000,BI58*INDEX('Damage costs'!$AA$16:$AA$43,MATCH($B109,'Damage costs'!$C$16:$C$43,0))/1000),\"\")","v":""},{"$f":"IFERROR(IF(OR($C$110=FALSE,LEFT($B109,3)<>\"NOX\"),BJ58*INDEX('Damage costs'!$W$16:$W$43,MATCH($B109,'Damage costs'!$C$16:$C$43,0))/1000,BJ58*INDEX('Damage costs'!$AA$16:$AA$43,MATCH($B109,'Damage costs'!$C$16:$C$43,0))/1000),\"\")","v":""},{"$f":"IFERROR(IF(OR($C$110=FALSE,LEFT($B109,3)<>\"NOX\"),BK58*INDEX('Damage costs'!$W$16:$W$43,MATCH($B109,'Damage costs'!$C$16:$C$43,0))/1000,BK58*INDEX('Damage costs'!$AA$16:$AA$43,MATCH($B109,'Damage costs'!$C$16:$C$43,0))/1000),\"\")","v":""},{"$f":"IFERROR(IF(OR($C$110=FALSE,LEFT($B109,3)<>\"NOX\"),BL58*INDEX('Damage costs'!$W$16:$W$43,MATCH($B109,'Damage costs'!$C$16:$C$43,0))/1000,BL58*INDEX('Damage costs'!$AA$16:$AA$43,MATCH($B109,'Damage costs'!$C$16:$C$43,0))/1000),\"\")","v":""},{"$f":"IFERROR(IF(OR($C$110=FALSE,LEFT($B109,3)<>\"NOX\"),BM58*INDEX('Damage costs'!$W$16:$W$43,MATCH($B109,'Damage costs'!$C$16:$C$43,0))/1000,BM58*INDEX('Damage costs'!$AA$16:$AA$43,MATCH($B109,'Damage costs'!$C$16:$C$43,0))/1000),\"\")","v":""},{"$f":"IFERROR(IF(OR($C$110=FALSE,LEFT($B109,3)<>\"NOX\"),BN58*INDEX('Damage costs'!$W$16:$W$43,MATCH($B109,'Damage costs'!$C$16:$C$43,0))/1000,BN58*INDEX('Damage costs'!$AA$16:$AA$43,MATCH($B109,'Damage costs'!$C$16:$C$43,0))/1000),\"\")","v":""},{"$f":"IFERROR(IF(OR($C$110=FALSE,LEFT($B109,3)<>\"NOX\"),BO58*INDEX('Damage costs'!$W$16:$W$43,MATCH($B109,'Damage costs'!$C$16:$C$43,0))/1000,BO58*INDEX('Damage costs'!$AA$16:$AA$43,MATCH($B109,'Damage costs'!$C$16:$C$43,0))/1000),\"\")","v":""},{"$f":"IFERROR(IF(OR($C$110=FALSE,LEFT($B109,3)<>\"NOX\"),BP58*INDEX('Damage costs'!$W$16:$W$43,MATCH($B109,'Damage costs'!$C$16:$C$43,0))/1000,BP58*INDEX('Damage costs'!$AA$16:$AA$43,MATCH($B109,'Damage costs'!$C$16:$C$43,0))/1000),\"\")","v":""},{"$f":"IFERROR(IF(OR($C$110=FALSE,LEFT($B109,3)<>\"NOX\"),BQ58*INDEX('Damage costs'!$W$16:$W$43,MATCH($B109,'Damage costs'!$C$16:$C$43,0))/1000,BQ58*INDEX('Damage costs'!$AA$16:$AA$43,MATCH($B109,'Damage costs'!$C$16:$C$43,0))/1000),\"\")","v":""},{"$f":"IFERROR(IF(OR($C$110=FALSE,LEFT($B109,3)<>\"NOX\"),BR58*INDEX('Damage costs'!$W$16:$W$43,MATCH($B109,'Damage costs'!$C$16:$C$43,0))/1000,BR58*INDEX('Damage costs'!$AA$16:$AA$43,MATCH($B109,'Damage costs'!$C$16:$C$43,0))/1000),\"\")","v":""},{"$f":"IFERROR(IF(OR($C$110=FALSE,LEFT($B109,3)<>\"NOX\"),BS58*INDEX('Damage costs'!$W$16:$W$43,MATCH($B109,'Damage costs'!$C$16:$C$43,0))/1000,BS58*INDEX('Damage costs'!$AA$16:$AA$43,MATCH($B109,'Damage costs'!$C$16:$C$43,0))/1000),\"\")","v":""},{"$f":"IFERROR(IF(OR($C$110=FALSE,LEFT($B109,3)<>\"NOX\"),BT58*INDEX('Damage costs'!$W$16:$W$43,MATCH($B109,'Damage costs'!$C$16:$C$43,0))/1000,BT58*INDEX('Damage costs'!$AA$16:$AA$43,MATCH($B109,'Damage costs'!$C$16:$C$43,0))/1000),\"\")","v":""},{"$f":"IFERROR(IF(OR($C$110=FALSE,LEFT($B109,3)<>\"NOX\"),BU58*INDEX('Damage costs'!$W$16:$W$43,MATCH($B109,'Damage costs'!$C$16:$C$43,0))/1000,BU58*INDEX('Damage costs'!$AA$16:$AA$43,MATCH($B109,'Damage costs'!$C$16:$C$43,0))/1000),\"\")","v":""},{"$f":"IFERROR(IF(OR($C$110=FALSE,LEFT($B109,3)<>\"NOX\"),BV58*INDEX('Damage costs'!$W$16:$W$43,MATCH($B109,'Damage costs'!$C$16:$C$43,0))/1000,BV58*INDEX('Damage costs'!$AA$16:$AA$43,MATCH($B109,'Damage costs'!$C$16:$C$43,0))/1000),\"\")","v":""},{"$f":"IFERROR(IF(OR($C$110=FALSE,LEFT($B109,3)<>\"NOX\"),BW58*INDEX('Damage costs'!$W$16:$W$43,MATCH($B109,'Damage costs'!$C$16:$C$43,0))/1000,BW58*INDEX('Damage costs'!$AA$16:$AA$43,MATCH($B109,'Damage costs'!$C$16:$C$43,0))/1000),\"\")","v":""},{"$f":"IFERROR(IF(OR($C$110=FALSE,LEFT($B109,3)<>\"NOX\"),BX58*INDEX('Damage costs'!$W$16:$W$43,MATCH($B109,'Damage costs'!$C$16:$C$43,0))/1000,BX58*INDEX('Damage costs'!$AA$16:$AA$43,MATCH($B109,'Damage costs'!$C$16:$C$43,0))/1000),\"\")","v":""},{"$f":"IFERROR(IF(OR($C$110=FALSE,LEFT($B109,3)<>\"NOX\"),BY58*INDEX('Damage costs'!$W$16:$W$43,MATCH($B109,'Damage costs'!$C$16:$C$43,0))/1000,BY58*INDEX('Damage costs'!$AA$16:$AA$43,MATCH($B109,'Damage costs'!$C$16:$C$43,0))/1000),\"\")","v":""},{"$f":"IFERROR(IF(OR($C$110=FALSE,LEFT($B109,3)<>\"NOX\"),BZ58*INDEX('Damage costs'!$W$16:$W$43,MATCH($B109,'Damage costs'!$C$16:$C$43,0))/1000,BZ58*INDEX('Damage costs'!$AA$16:$AA$43,MATCH($B109,'Damage costs'!$C$16:$C$43,0))/1000),\"\")","v":""},{"$f":"IFERROR(IF(OR($C$110=FALSE,LEFT($B109,3)<>\"NOX\"),CA58*INDEX('Damage costs'!$W$16:$W$43,MATCH($B109,'Damage costs'!$C$16:$C$43,0))/1000,CA58*INDEX('Damage costs'!$AA$16:$AA$43,MATCH($B109,'Damage costs'!$C$16:$C$43,0))/1000),\"\")","v":""},{"$f":"IFERROR(IF(OR($C$110=FALSE,LEFT($B109,3)<>\"NOX\"),CB58*INDEX('Damage costs'!$W$16:$W$43,MATCH($B109,'Damage costs'!$C$16:$C$43,0))/1000,CB58*INDEX('Damage costs'!$AA$16:$AA$43,MATCH($B109,'Damage costs'!$C$16:$C$43,0))/1000),\"\")","v":""},{"$f":"IFERROR(IF(OR($C$110=FALSE,LEFT($B109,3)<>\"NOX\"),CC58*INDEX('Damage costs'!$W$16:$W$43,MATCH($B109,'Damage costs'!$C$16:$C$43,0))/1000,CC58*INDEX('Damage costs'!$AA$16:$AA$43,MATCH($B109,'Damage costs'!$C$16:$C$43,0))/1000),\"\")","v":""},{"$f":"IFERROR(IF(OR($C$110=FALSE,LEFT($B109,3)<>\"NOX\"),CD58*INDEX('Damage costs'!$W$16:$W$43,MATCH($B109,'Damage costs'!$C$16:$C$43,0))/1000,CD58*INDEX('Damage costs'!$AA$16:$AA$43,MATCH($B109,'Damage costs'!$C$16:$C$43,0))/1000),\"\")","v":""},{"$f":"IFERROR(IF(OR($C$110=FALSE,LEFT($B109,3)<>\"NOX\"),CE58*INDEX('Damage costs'!$W$16:$W$43,MATCH($B109,'Damage costs'!$C$16:$C$43,0))/1000,CE58*INDEX('Damage costs'!$AA$16:$AA$43,MATCH($B109,'Damage costs'!$C$16:$C$43,0))/1000),\"\")","v":""},{"$f":"IFERROR(IF(OR($C$110=FALSE,LEFT($B109,3)<>\"NOX\"),CF58*INDEX('Damage costs'!$W$16:$W$43,MATCH($B109,'Damage costs'!$C$16:$C$43,0))/1000,CF58*INDEX('Damage costs'!$AA$16:$AA$43,MATCH($B109,'Damage costs'!$C$16:$C$43,0))/1000),\"\")","v":""},{"$f":"IFERROR(IF(OR($C$110=FALSE,LEFT($B109,3)<>\"NOX\"),CG58*INDEX('Damage costs'!$W$16:$W$43,MATCH($B109,'Damage costs'!$C$16:$C$43,0))/1000,CG58*INDEX('Damage costs'!$AA$16:$AA$43,MATCH($B109,'Damage costs'!$C$16:$C$43,0))/1000),\"\")","v":""},{"$f":"IFERROR(IF(OR($C$110=FALSE,LEFT($B109,3)<>\"NOX\"),CH58*INDEX('Damage costs'!$W$16:$W$43,MATCH($B109,'Damage costs'!$C$16:$C$43,0))/1000,CH58*INDEX('Damage costs'!$AA$16:$AA$43,MATCH($B109,'Damage costs'!$C$16:$C$43,0))/1000),\"\")","v":""},{"$f":"IFERROR(IF(OR($C$110=FALSE,LEFT($B109,3)<>\"NOX\"),CI58*INDEX('Damage costs'!$W$16:$W$43,MATCH($B109,'Damage costs'!$C$16:$C$43,0))/1000,CI58*INDEX('Damage costs'!$AA$16:$AA$43,MATCH($B109,'Damage costs'!$C$16:$C$43,0))/1000),\"\")","v":""},{"$f":"IFERROR(IF(OR($C$110=FALSE,LEFT($B109,3)<>\"NOX\"),CJ58*INDEX('Damage costs'!$W$16:$W$43,MATCH($B109,'Damage costs'!$C$16:$C$43,0))/1000,CJ58*INDEX('Damage costs'!$AA$16:$AA$43,MATCH($B109,'Damage costs'!$C$16:$C$43,0))/1000),\"\")","v":""},{"$f":"IFERROR(IF(OR($C$110=FALSE,LEFT($B109,3)<>\"NOX\"),CK58*INDEX('Damage costs'!$W$16:$W$43,MATCH($B109,'Damage costs'!$C$16:$C$43,0))/1000,CK58*INDEX('Damage costs'!$AA$16:$AA$43,MATCH($B109,'Damage costs'!$C$16:$C$43,0))/1000),\"\")","v":""},{"$f":"IFERROR(IF(OR($C$110=FALSE,LEFT($B109,3)<>\"NOX\"),CL58*INDEX('Damage costs'!$W$16:$W$43,MATCH($B109,'Damage costs'!$C$16:$C$43,0))/1000,CL58*INDEX('Damage costs'!$AA$16:$AA$43,MATCH($B109,'Damage costs'!$C$16:$C$43,0))/1000),\"\")","v":""},{"$f":"IFERROR(IF(OR($C$110=FALSE,LEFT($B109,3)<>\"NOX\"),CM58*INDEX('Damage costs'!$W$16:$W$43,MATCH($B109,'Damage costs'!$C$16:$C$43,0))/1000,CM58*INDEX('Damage costs'!$AA$16:$AA$43,MATCH($B109,'Damage costs'!$C$16:$C$43,0))/1000),\"\")","v":""},{"$f":"IFERROR(IF(OR($C$110=FALSE,LEFT($B109,3)<>\"NOX\"),CN58*INDEX('Damage costs'!$W$16:$W$43,MATCH($B109,'Damage costs'!$C$16:$C$43,0))/1000,CN58*INDEX('Damage costs'!$AA$16:$AA$43,MATCH($B109,'Damage costs'!$C$16:$C$43,0))/1000),\"\")","v":""},{"$f":"IFERROR(IF(OR($C$110=FALSE,LEFT($B109,3)<>\"NOX\"),CO58*INDEX('Damage costs'!$W$16:$W$43,MATCH($B109,'Damage costs'!$C$16:$C$43,0))/1000,CO58*INDEX('Damage costs'!$AA$16:$AA$43,MATCH($B109,'Damage costs'!$C$16:$C$43,0))/1000),\"\")","v":""},{"$f":"IFERROR(IF(OR($C$110=FALSE,LEFT($B109,3)<>\"NOX\"),CP58*INDEX('Damage costs'!$W$16:$W$43,MATCH($B109,'Damage costs'!$C$16:$C$43,0))/1000,CP58*INDEX('Damage costs'!$AA$16:$AA$43,MATCH($B109,'Damage costs'!$C$16:$C$43,0))/1000),\"\")","v":""},{"$f":"IFERROR(IF(OR($C$110=FALSE,LEFT($B109,3)<>\"NOX\"),CQ58*INDEX('Damage costs'!$W$16:$W$43,MATCH($B109,'Damage costs'!$C$16:$C$43,0))/1000,CQ58*INDEX('Damage costs'!$AA$16:$AA$43,MATCH($B109,'Damage costs'!$C$16:$C$43,0))/1000),\"\")","v":""},{"$f":"IFERROR(IF(OR($C$110=FALSE,LEFT($B109,3)<>\"NOX\"),CR58*INDEX('Damage costs'!$W$16:$W$43,MATCH($B109,'Damage costs'!$C$16:$C$43,0))/1000,CR58*INDEX('Damage costs'!$AA$16:$AA$43,MATCH($B109,'Damage costs'!$C$16:$C$43,0))/1000),\"\")","v":""},{"$f":"IFERROR(IF(OR($C$110=FALSE,LEFT($B109,3)<>\"NOX\"),CS58*INDEX('Damage costs'!$W$16:$W$43,MATCH($B109,'Damage costs'!$C$16:$C$43,0))/1000,CS58*INDEX('Damage costs'!$AA$16:$AA$43,MATCH($B109,'Damage costs'!$C$16:$C$43,0))/1000),\"\")","v":""},{"$f":"IFERROR(IF(OR($C$110=FALSE,LEFT($B109,3)<>\"NOX\"),CT58*INDEX('Damage costs'!$W$16:$W$43,MATCH($B109,'Damage costs'!$C$16:$C$43,0))/1000,CT58*INDEX('Damage costs'!$AA$16:$AA$43,MATCH($B109,'Damage costs'!$C$16:$C$43,0))/1000),\"\")","v":""},{"$f":"IFERROR(IF(OR($C$110=FALSE,LEFT($B109,3)<>\"NOX\"),CU58*INDEX('Damage costs'!$W$16:$W$43,MATCH($B109,'Damage costs'!$C$16:$C$43,0))/1000,CU58*INDEX('Damage costs'!$AA$16:$AA$43,MATCH($B109,'Damage costs'!$C$16:$C$43,0))/1000),\"\")","v":""},{"$f":"IFERROR(IF(OR($C$110=FALSE,LEFT($B109,3)<>\"NOX\"),CV58*INDEX('Damage costs'!$W$16:$W$43,MATCH($B109,'Damage costs'!$C$16:$C$43,0))/1000,CV58*INDEX('Damage costs'!$AA$16:$AA$43,MATCH($B109,'Damage costs'!$C$16:$C$43,0))/1000),\"\")","v":""},{"$f":"IFERROR(IF(OR($C$110=FALSE,LEFT($B109,3)<>\"NOX\"),CW58*INDEX('Damage costs'!$W$16:$W$43,MATCH($B109,'Damage costs'!$C$16:$C$43,0))/1000,CW58*INDEX('Damage costs'!$AA$16:$AA$43,MATCH($B109,'Damage costs'!$C$16:$C$43,0))/1000),\"\")","v":""},{"$f":"IFERROR(IF(OR($C$110=FALSE,LEFT($B109,3)<>\"NOX\"),CX58*INDEX('Damage costs'!$W$16:$W$43,MATCH($B109,'Damage costs'!$C$16:$C$43,0))/1000,CX58*INDEX('Damage costs'!$AA$16:$AA$43,MATCH($B109,'Damage costs'!$C$16:$C$43,0))/1000),\"\")","v":""},{"$f":"IFERROR(IF(OR($C$110=FALSE,LEFT($B109,3)<>\"NOX\"),CY58*INDEX('Damage costs'!$W$16:$W$43,MATCH($B109,'Damage costs'!$C$16:$C$43,0))/1000,CY58*INDEX('Damage costs'!$AA$16:$AA$43,MATCH($B109,'Damage costs'!$C$16:$C$43,0))/1000),\"\")","v":""}]
[null,"PM10 Used",{"$f":"IF(OR(LEFT(B104,4)=\"PM10\",LEFT(B105,4)=\"PM10\",LEFT(B106,4)=\"PM10\",LEFT(B107,4)=\"PM10\",LEFT(B108,4)=\"PM10\",LEFT(B109,4)=\"PM10\"),TRUE,FALSE)","v":false}]
[]
[null,"Uplift pa","%",{"$f":"'Discount and deflators'!$H$5","v":0.02}]
[null,"Uplift factor",null,{"$f":"IF(D$6=0,0,(1+$D112)^(D$6-'Data Input - General'!$F$22))","v":1},{"$f":"IF(E$6=0,0,(1+$D112)^(E$6-'Data Input - General'!$F$22))","v":1.02},{"$f":"IF(F$6=0,0,(1+$D112)^(F$6-'Data Input - General'!$F$22))","v":1.0404},{"$f":"IF(G$6=0,0,(1+$D112)^(G$6-'Data Input - General'!$F$22))","v":1.0612079999999999},{"$f":"IF(H$6=0,0,(1+$D112)^(H$6-'Data Input - General'!$F$22))","v":1.08243216},{"$f":"IF(I$6=0,0,(1+$D112)^(I$6-'Data Input - General'!$F$22))","v":1.1040808032},{"$f":"IF(J$6=0,0,(1+$D112)^(J$6-'Data Input - General'!$F$22))","v":1.1261624192640001},{"$f":"IF(K$6=0,0,(1+$D112)^(K$6-'Data Input - General'!$F$22))","v":1.1486856676492798},{"$f":"IF(L$6=0,0,(1+$D112)^(L$6-'Data Input - General'!$F$22))","v":1.1716593810022655},{"$f":"IF(M$6=0,0,(1+$D112)^(M$6-'Data Input - General'!$F$22))","v":1.1950925686223108},{"$f":"IF(N$6=0,0,(1+$D112)^(N$6-'Data Input - General'!$F$22))","v":1.2189944199947571},{"$f":"IF(O$6=0,0,(1+$D112)^(O$6-'Data Input - General'!$F$22))","v":1.243374308394652},{"$f":"IF(P$6=0,0,(1+$D112)^(P$6-'Data Input - General'!$F$22))","v":1.2682417945625453},{"$f":"IF(Q$6=0,0,(1+$D112)^(Q$6-'Data Input - General'!$F$22))","v":1.2936066304537961},{"$f":"IF(R$6=0,0,(1+$D112)^(R$6-'Data Input - General'!$F$22))","v":1.3194787630628722},{"$f":"IF(S$6=0,0,(1+$D112)^(S$6-'Data Input - General'!$F$22))","v":1.3458683383241292},{"$f":"IF(T$6=0,0,(1+$D112)^(T$6-'Data Input - General'!$F$22))","v":1.372785705090612},{"$f":"IF(U$6=0,0,(1+$D112)^(U$6-'Data Input - General'!$F$22))","v":1.4002414191924244},{"$f":"IF(V$6=0,0,(1+$D112)^(V$6-'Data Input - General'!$F$22))","v":1.4282462475762727},{"$f":"IF(W$6=0,0,(1+$D112)^(W$6-'Data Input - General'!$F$22))","v":1.4568111725277981},{"$f":"IF(X$6=0,0,(1+$D112)^(X$6-'Data Input - General'!$F$22))","v":1.4859473959783542},{"$f":"IF(Y$6=0,0,(1+$D112)^(Y$6-'Data Input - General'!$F$22))","v":1.5156663438979212},{"$f":"IF(Z$6=0,0,(1+$D112)^(Z$6-'Data Input - General'!$F$22))","v":1.5459796707758797},{"$f":"IF(AA$6=0,0,(1+$D112)^(AA$6-'Data Input - General'!$F$22))","v":1.576899264191397},{"$f":"IF(AB$6=0,0,(1+$D112)^(AB$6-'Data Input - General'!$F$22))","v":1.608437249475225},{"$f":"IF(AC$6=0,0,(1+$D112)^(AC$6-'Data Input - General'!$F$22))","v":1.6406059944647295},{"$f":"IF(AD$6=0,0,(1+$D112)^(AD$6-'Data Input - General'!$F$22))","v":1.6734181143540243},{"$f":"IF(AE$6=0,0,(1+$D112)^(AE$6-'Data Input - General'!$F$22))","v":1.7068864766411045},{"$f":"IF(AF$6=0,0,(1+$D112)^(AF$6-'Data Input - General'!$F$22))","v":1.7410242061739269},{"$f":"IF(AG$6=0,0,(1+$D112)^(AG$6-'Data Input - General'!$F$22))","v":1.7758446902974052},{"$f":"IF(AH$6=0,0,(1+$D112)^(AH$6-'Data Input - General'!$F$22))","v":1.8113615841033535},{"$f":"IF(AI$6=0,0,(1+$D112)^(AI$6-'Data Input - General'!$F$22))","v":0},{"$f":"IF(AJ$6=0,0,(1+$D112)^(AJ$6-'Data Input - General'!$F$22))","v":0},{"$f":"IF(AK$6=0,0,(1+$D112)^(AK$6-'Data Input - General'!$F$22))","v":0},{"$f":"IF(AL$6=0,0,(1+$D112)^(AL$6-'Data Input - General'!$F$22))","v":0},{"$f":"IF(AM$6=0,0,(1+$D112)^(AM$6-'Data Input - General'!$F$22))","v":0},{"$f":"IF(AN$6=0,0,(1+$D112)^(AN$6-'Data Input - General'!$F$22))","v":0},{"$f":"IF(AO$6=0,0,(1+$D112)^(AO$6-'Data Input - General'!$F$22))","v":0},{"$f":"IF(AP$6=0,0,(1+$D112)^(AP$6-'Data Input - General'!$F$22))","v":0},{"$f":"IF(AQ$6=0,0,(1+$D112)^(AQ$6-'Data Input - General'!$F$22))","v":0},{"$f":"IF(AR$6=0,0,(1+$D112)^(AR$6-'Data Input - General'!$F$22))","v":0},{"$f":"IF(AS$6=0,0,(1+$D112)^(AS$6-'Data Input - General'!$F$22))","v":0},{"$f":"IF(AT$6=0,0,(1+$D112)^(AT$6-'Data Input - General'!$F$22))","v":0},{"$f":"IF(AU$6=0,0,(1+$D112)^(AU$6-'Data Input - General'!$F$22))","v":0},{"$f":"IF(AV$6=0,0,(1+$D112)^(AV$6-'Data Input - General'!$F$22))","v":0},{"$f":"IF(AW$6=0,0,(1+$D112)^(AW$6-'Data Input - General'!$F$22))","v":0},{"$f":"IF(AX$6=0,0,(1+$D112)^(AX$6-'Data Input - General'!$F$22))","v":0},{"$f":"IF(AY$6=0,0,(1+$D112)^(AY$6-'Data Input - General'!$F$22))","v":0},{"$f":"IF(AZ$6=0,0,(1+$D112)^(AZ$6-'Data Input - General'!$F$22))","v":0},{"$f":"IF(BA$6=0,0,(1+$D112)^(BA$6-'Data Input - General'!$F$22))","v":0},{"$f":"IF(BB$6=0,0,(1+$D112)^(BB$6-'Data Input - General'!$F$22))","v":0},{"$f":"IF(BC$6=0,0,(1+$D112)^(BC$6-'Data Input - General'!$F$22))","v":0},{"$f":"IF(BD$6=0,0,(1+$D112)^(BD$6-'Data Input - General'!$F$22))","v":0},{"$f":"IF(BE$6=0,0,(1+$D112)^(BE$6-'Data Input - General'!$F$22))","v":0},{"$f":"IF(BF$6=0,0,(1+$D112)^(BF$6-'Data Input - General'!$F$22))","v":0},{"$f":"IF(BG$6=0,0,(1+$D112)^(BG$6-'Data Input - General'!$F$22))","v":0},{"$f":"IF(BH$6=0,0,(1+$D112)^(BH$6-'Data Input - General'!$F$22))","v":0},{"$f":"IF(BI$6=0,0,(1+$D112)^(BI$6-'Data Input - General'!$F$22))","v":0},{"$f":"IF(BJ$6=0,0,(1+$D112)^(BJ$6-'Data Input - General'!$F$22))","v":0},{"$f":"IF(BK$6=0,0,(1+$D112)^(BK$6-'Data Input - General'!$F$22))","v":0},{"$f":"IF(BL$6=0,0,(1+$D112)^(BL$6-'Data Input - General'!$F$22))","v":0},{"$f":"IF(BM$6=0,0,(1+$D112)^(BM$6-'Data Input - General'!$F$22))","v":0},{"$f":"IF(BN$6=0,0,(1+$D112)^(BN$6-'Data Input - General'!$F$22))","v":0},{"$f":"IF(BO$6=0,0,(1+$D112)^(BO$6-'Data Input - General'!$F$22))","v":0},{"$f":"IF(BP$6=0,0,(1+$D112)^(BP$6-'Data Input - General'!$F$22))","v":0},{"$f":"IF(BQ$6=0,0,(1+$D112)^(BQ$6-'Data Input - General'!$F$22))","v":0},{"$f":"IF(BR$6=0,0,(1+$D112)^(BR$6-'Data Input - General'!$F$22))","v":0},{"$f":"IF(BS$6=0,0,(1+$D112)^(BS$6-'Data Input - General'!$F$22))","v":0},{"$f":"IF(BT$6=0,0,(1+$D112)^(BT$6-'Data Input - General'!$F$22))","v":0},{"$f":"IF(BU$6=0,0,(1+$D112)^(BU$6-'Data Input - General'!$F$22))","v":0},{"$f":"IF(BV$6=0,0,(1+$D112)^(BV$6-'Data Input - General'!$F$22))","v":0},{"$f":"IF(BW$6=0,0,(1+$D112)^(BW$6-'Data Input - General'!$F$22))","v":0},{"$f":"IF(BX$6=0,0,(1+$D112)^(BX$6-'Data Input - General'!$F$22))","v":0},{"$f":"IF(BY$6=0,0,(1+$D112)^(BY$6-'Data Input - General'!$F$22))","v":0},{"$f":"IF(BZ$6=0,0,(1+$D112)^(BZ$6-'Data Input - General'!$F$22))","v":0},{"$f":"IF(CA$6=0,0,(1+$D112)^(CA$6-'Data Input - General'!$F$22))","v":0},{"$f":"IF(CB$6=0,0,(1+$D112)^(CB$6-'Data Input - General'!$F$22))","v":0},{"$f":"IF(CC$6=0,0,(1+$D112)^(CC$6-'Data Input - General'!$F$22))","v":0},{"$f":"IF(CD$6=0,0,(1+$D112)^(CD$6-'Data Input - General'!$F$22))","v":0},{"$f":"IF(CE$6=0,0,(1+$D112)^(CE$6-'Data Input - General'!$F$22))","v":0},{"$f":"IF(CF$6=0,0,(1+$D112)^(CF$6-'Data Input - General'!$F$22))","v":0},{"$f":"IF(CG$6=0,0,(1+$D112)^(CG$6-'Data Input - General'!$F$22))","v":0},{"$f":"IF(CH$6=0,0,(1+$D112)^(CH$6-'Data Input - General'!$F$22))","v":0},{"$f":"IF(CI$6=0,0,(1+$D112)^(CI$6-'Data Input - General'!$F$22))","v":0},{"$f":"IF(CJ$6=0,0,(1+$D112)^(CJ$6-'Data Input - General'!$F$22))","v":0},{"$f":"IF(CK$6=0,0,(1+$D112)^(CK$6-'Data Input - General'!$F$22))","v":0},{"$f":"IF(CL$6=0,0,(1+$D112)^(CL$6-'Data Input - General'!$F$22))","v":0},{"$f":"IF(CM$6=0,0,(1+$D112)^(CM$6-'Data Input - General'!$F$22))","v":0},{"$f":"IF(CN$6=0,0,(1+$D112)^(CN$6-'Data Input - General'!$F$22))","v":0},{"$f":"IF(CO$6=0,0,(1+$D112)^(CO$6-'Data Input - General'!$F$22))","v":0},{"$f":"IF(CP$6=0,0,(1+$D112)^(CP$6-'Data Input - General'!$F$22))","v":0},{"$f":"IF(CQ$6=0,0,(1+$D112)^(CQ$6-'Data Input - General'!$F$22))","v":0},{"$f":"IF(CR$6=0,0,(1+$D112)^(CR$6-'Data Input - General'!$F$22))","v":0},{"$f":"IF(CS$6=0,0,(1+$D112)^(CS$6-'Data Input - General'!$F$22))","v":0},{"$f":"IF(CT$6=0,0,(1+$D112)^(CT$6-'Data Input - General'!$F$22))","v":0},{"$f":"IF(CU$6=0,0,(1+$D112)^(CU$6-'Data Input - General'!$F$22))","v":0},{"$f":"IF(CV$6=0,0,(1+$D112)^(CV$6-'Data Input - General'!$F$22))","v":0},{"$f":"IF(CW$6=0,0,(1+$D112)^(CW$6-'Data Input - General'!$F$22))","v":0},{"$f":"IF(CX$6=0,0,(1+$D112)^(CX$6-'Data Input - General'!$F$22))","v":0},{"$f":"IF(CY$6=0,0,(1+$D112)^(CY$6-'Data Input - General'!$F$22))","v":0}]
[null,"Total value","£000's",{"$f":"SUM(D104:D109)*D113","v":0},{"$f":"SUM(E104:E109)*E113","v":0},{"$f":"SUM(F104:F109)*F113","v":0},0,0,0,0,0,0,0,0,0,0,0,0,0,0,0,0,0,0,0,0,0,0,0,0,0,0,0,0,0,{"$f":"SUM(AJ104:AJ109)*AJ113","v":0},0,0,0,0,0,0,0,0,0,0,0,0,0,0,0,0,0,0,0,0,0,0,0,0,0,0,0,{"$f":"SUM(BL104:BL109)*BL113","v":0},0,0,0,0,0,0,0,0,0,0,0,0,0,0,0,0,0,0,0,0,0,0,0,0,0,0,0,0,0,0,0,0,0,0,0,0,0,0,0]
[null,"Discounted total value","£000's",{"$f":"D114*D$7","v":0},{"$f":"E114*E$7","v":0},{"$f":"F114*F$7","v":0},{"$f":"G114*G$7","v":0},0,0,0,0,0,0,0,0,0,0,0,0,0,0,0,0,0,0,0,0,0,0,0,0,0,0,0,0,0,0,0,0,0,0,0,0,0,0,0,0,0,0,0,0,0,0,0,0,0,0,0,0,0,0,0,0,0,0,0,0,0,0,0,{"$f":"BS114*BS$7","v":0},0,0,0,0,0,0,0,0,0,0,0,0,0,0,0,0,0,0,0,0,0,0,0,0,0,0,0,0,0,0,0,0]
[]
[null,"GHG emissions"]
[null,"Traded","tCO2e",{"$f":"D80+IF('Data Input - General'!$F$10=\"Yes\",Calc_Option5!D$81,0)+IF('Data Input - General'!$F$12=\"Yes\",Calc_Option5!D$75,0)","v":0},{"$f":"E80+IF('Data Input - General'!$F$10=\"Yes\",Calc_Option5!E$81,0)+IF('Data Input - General'!$F$12=\"Yes\",Calc_Option5!E$75,0)","v":0},{"$f":"F80+IF('Data Input - General'!$F$10=\"Yes\",Calc_Option5!F$81,0)+IF('Data Input - General'!$F$12=\"Yes\",Calc_Option5!F$75,0)","v":0},{"$f":"G80+IF('Data Input - General'!$F$10=\"Yes\",Calc_Option5!G$81,0)+IF('Data Input - General'!$F$12=\"Yes\",Calc_Option5!G$75,0)","v":0},{"$f":"H80+IF('Data Input - General'!$F$10=\"Yes\",Calc_Option5!H$81,0)+IF('Data Input - General'!$F$12=\"Yes\",Calc_Option5!H$75,0)","v":0},{"$f":"I80+IF('Data Input - General'!$F$10=\"Yes\",Calc_Option5!I$81,0)+IF('Data Input - General'!$F$12=\"Yes\",Calc_Option5!I$75,0)","v":0},{"$f":"J80+IF('Data Input - General'!$F$10=\"Yes\",Calc_Option5!J$81,0)+IF('Data Input - General'!$F$12=\"Yes\",Calc_Option5!J$75,0)","v":0},{"$f":"K80+IF('Data Input - General'!$F$10=\"Yes\",Calc_Option5!K$81,0)+IF('Data Input - General'!$F$12=\"Yes\",Calc_Option5!K$75,0)","v":0},{"$f":"L80+IF('Data Input - General'!$F$10=\"Yes\",Calc_Option5!L$81,0)+IF('Data Input - General'!$F$12=\"Yes\",Calc_Option5!L$75,0)","v":0},{"$f":"M80+IF('Data Input - General'!$F$10=\"Yes\",Calc_Option5!M$81,0)+IF('Data Input - General'!$F$12=\"Yes\",Calc_Option5!M$75,0)","v":0},{"$f":"N80+IF('Data Input - General'!$F$10=\"Yes\",Calc_Option5!N$81,0)+IF('Data Input - General'!$F$12=\"Yes\",Calc_Option5!N$75,0)","v":0},{"$f":"O80+IF('Data Input - General'!$F$10=\"Yes\",Calc_Option5!O$81,0)+IF('Data Input - General'!$F$12=\"Yes\",Calc_Option5!O$75,0)","v":0},{"$f":"P80+IF('Data Input - General'!$F$10=\"Yes\",Calc_Option5!P$81,0)+IF('Data Input - General'!$F$12=\"Yes\",Calc_Option5!P$75,0)","v":0},{"$f":"Q80+IF('Data Input - General'!$F$10=\"Yes\",Calc_Option5!Q$81,0)+IF('Data Input - General'!$F$12=\"Yes\",Calc_Option5!Q$75,0)","v":0},{"$f":"R80+IF('Data Input - General'!$F$10=\"Yes\",Calc_Option5!R$81,0)+IF('Data Input - General'!$F$12=\"Yes\",Calc_Option5!R$75,0)","v":0},{"$f":"S80+IF('Data Input - General'!$F$10=\"Yes\",Calc_Option5!S$81,0)+IF('Data Input - General'!$F$12=\"Yes\",Calc_Option5!S$75,0)","v":0},{"$f":"T80+IF('Data Input - General'!$F$10=\"Yes\",Calc_Option5!T$81,0)+IF('Data Input - General'!$F$12=\"Yes\",Calc_Option5!T$75,0)","v":0},{"$f":"U80+IF('Data Input - General'!$F$10=\"Yes\",Calc_Option5!U$81,0)+IF('Data Input - General'!$F$12=\"Yes\",Calc_Option5!U$75,0)","v":0},{"$f":"V80+IF('Data Input - General'!$F$10=\"Yes\",Calc_Option5!V$81,0)+IF('Data Input - General'!$F$12=\"Yes\",Calc_Option5!V$75,0)","v":0},{"$f":"W80+IF('Data Input - General'!$F$10=\"Yes\",Calc_Option5!W$81,0)+IF('Data Input - General'!$F$12=\"Yes\",Calc_Option5!W$75,0)","v":0},{"$f":"X80+IF('Data Input - General'!$F$10=\"Yes\",Calc_Option5!X$81,0)+IF('Data Input - General'!$F$12=\"Yes\",Calc_Option5!X$75,0)","v":0},{"$f":"Y80+IF('Data Input - General'!$F$10=\"Yes\",Calc_Option5!Y$81,0)+IF('Data Input - General'!$F$12=\"Yes\",Calc_Option5!Y$75,0)","v":0},{"$f":"Z80+IF('Data Input - General'!$F$10=\"Yes\",Calc_Option5!Z$81,0)+IF('Data Input - General'!$F$12=\"Yes\",Calc_Option5!Z$75,0)","v":0},{"$f":"AA80+IF('Data Input - General'!$F$10=\"Yes\",Calc_Option5!AA$81,0)+IF('Data Input - General'!$F$12=\"Yes\",Calc_Option5!AA$75,0)","v":0},{"$f":"AB80+IF('Data Input - General'!$F$10=\"Yes\",Calc_Option5!AB$81,0)+IF('Data Input - General'!$F$12=\"Yes\",Calc_Option5!AB$75,0)","v":0},{"$f":"AC80+IF('Data Input - General'!$F$10=\"Yes\",Calc_Option5!AC$81,0)+IF('Data Input - General'!$F$12=\"Yes\",Calc_Option5!AC$75,0)","v":0},{"$f":"AD80+IF('Data Input - General'!$F$10=\"Yes\",Calc_Option5!AD$81,0)+IF('Data Input - General'!$F$12=\"Yes\",Calc_Option5!AD$75,0)","v":0},{"$f":"AE80+IF('Data Input - General'!$F$10=\"Yes\",Calc_Option5!AE$81,0)+IF('Data Input - General'!$F$12=\"Yes\",Calc_Option5!AE$75,0)","v":0},{"$f":"AF80+IF('Data Input - General'!$F$10=\"Yes\",Calc_Option5!AF$81,0)+IF('Data Input - General'!$F$12=\"Yes\",Calc_Option5!AF$75,0)","v":0},{"$f":"AG80+IF('Data Input - General'!$F$10=\"Yes\",Calc_Option5!AG$81,0)+IF('Data Input - General'!$F$12=\"Yes\",Calc_Option5!AG$75,0)","v":0},{"$f":"AH80+IF('Data Input - General'!$F$10=\"Yes\",Calc_Option5!AH$81,0)+IF('Data Input - General'!$F$12=\"Yes\",Calc_Option5!AH$75,0)","v":0},{"$f":"AI80+IF('Data Input - General'!$F$10=\"Yes\",Calc_Option5!AI$81,0)+IF('Data Input - General'!$F$12=\"Yes\",Calc_Option5!AI$75,0)","v":0},{"$f":"AJ80+IF('Data Input - General'!$F$10=\"Yes\",Calc_Option5!AJ$81,0)+IF('Data Input - General'!$F$12=\"Yes\",Calc_Option5!AJ$75,0)","v":0},{"$f":"AK80+IF('Data Input - General'!$F$10=\"Yes\",Calc_Option5!AK$81,0)+IF('Data Input - General'!$F$12=\"Yes\",Calc_Option5!AK$75,0)","v":0},{"$f":"AL80+IF('Data Input - General'!$F$10=\"Yes\",Calc_Option5!AL$81,0)+IF('Data Input - General'!$F$12=\"Yes\",Calc_Option5!AL$75,0)","v":0},{"$f":"AM80+IF('Data Input - General'!$F$10=\"Yes\",Calc_Option5!AM$81,0)+IF('Data Input - General'!$F$12=\"Yes\",Calc_Option5!AM$75,0)","v":0},{"$f":"AN80+IF('Data Input - General'!$F$10=\"Yes\",Calc_Option5!AN$81,0)+IF('Data Input - General'!$F$12=\"Yes\",Calc_Option5!AN$75,0)","v":0},{"$f":"AO80+IF('Data Input - General'!$F$10=\"Yes\",Calc_Option5!AO$81,0)+IF('Data Input - General'!$F$12=\"Yes\",Calc_Option5!AO$75,0)","v":0},{"$f":"AP80+IF('Data Input - General'!$F$10=\"Yes\",Calc_Option5!AP$81,0)+IF('Data Input - General'!$F$12=\"Yes\",Calc_Option5!AP$75,0)","v":0},{"$f":"AQ80+IF('Data Input - General'!$F$10=\"Yes\",Calc_Option5!AQ$81,0)+IF('Data Input - General'!$F$12=\"Yes\",Calc_Option5!AQ$75,0)","v":0},{"$f":"AR80+IF('Data Input - General'!$F$10=\"Yes\",Calc_Option5!AR$81,0)+IF('Data Input - General'!$F$12=\"Yes\",Calc_Option5!AR$75,0)","v":0},{"$f":"AS80+IF('Data Input - General'!$F$10=\"Yes\",Calc_Option5!AS$81,0)+IF('Data Input - General'!$F$12=\"Yes\",Calc_Option5!AS$75,0)","v":0},{"$f":"AT80+IF('Data Input - General'!$F$10=\"Yes\",Calc_Option5!AT$81,0)+IF('Data Input - General'!$F$12=\"Yes\",Calc_Option5!AT$75,0)","v":0},{"$f":"AU80+IF('Data Input - General'!$F$10=\"Yes\",Calc_Option5!AU$81,0)+IF('Data Input - General'!$F$12=\"Yes\",Calc_Option5!AU$75,0)","v":0},{"$f":"AV80+IF('Data Input - General'!$F$10=\"Yes\",Calc_Option5!AV$81,0)+IF('Data Input - General'!$F$12=\"Yes\",Calc_Option5!AV$75,0)","v":0},{"$f":"AW80+IF('Data Input - General'!$F$10=\"Yes\",Calc_Option5!AW$81,0)+IF('Data Input - General'!$F$12=\"Yes\",Calc_Option5!AW$75,0)","v":0},{"$f":"AX80+IF('Data Input - General'!$F$10=\"Yes\",Calc_Option5!AX$81,0)+IF('Data Input - General'!$F$12=\"Yes\",Calc_Option5!AX$75,0)","v":0},{"$f":"AY80+IF('Data Input - General'!$F$10=\"Yes\",Calc_Option5!AY$81,0)+IF('Data Input - General'!$F$12=\"Yes\",Calc_Option5!AY$75,0)","v":0},{"$f":"AZ80+IF('Data Input - General'!$F$10=\"Yes\",Calc_Option5!AZ$81,0)+IF('Data Input - General'!$F$12=\"Yes\",Calc_Option5!AZ$75,0)","v":0},{"$f":"BA80+IF('Data Input - General'!$F$10=\"Yes\",Calc_Option5!BA$81,0)+IF('Data Input - General'!$F$12=\"Yes\",Calc_Option5!BA$75,0)","v":0},{"$f":"BB80+IF('Data Input - General'!$F$10=\"Yes\",Calc_Option5!BB$81,0)+IF('Data Input - General'!$F$12=\"Yes\",Calc_Option5!BB$75,0)","v":0},{"$f":"BC80+IF('Data Input - General'!$F$10=\"Yes\",Calc_Option5!BC$81,0)+IF('Data Input - General'!$F$12=\"Yes\",Calc_Option5!BC$75,0)","v":0},{"$f":"BD80+IF('Data Input - General'!$F$10=\"Yes\",Calc_Option5!BD$81,0)+IF('Data Input - General'!$F$12=\"Yes\",Calc_Option5!BD$75,0)","v":0},{"$f":"BE80+IF('Data Input - General'!$F$10=\"Yes\",Calc_Option5!BE$81,0)+IF('Data Input - General'!$F$12=\"Yes\",Calc_Option5!BE$75,0)","v":0},{"$f":"BF80+IF('Data Input - General'!$F$10=\"Yes\",Calc_Option5!BF$81,0)+IF('Data Input - General'!$F$12=\"Yes\",Calc_Option5!BF$75,0)","v":0},{"$f":"BG80+IF('Data Input - General'!$F$10=\"Yes\",Calc_Option5!BG$81,0)+IF('Data Input - General'!$F$12=\"Yes\",Calc_Option5!BG$75,0)","v":0},{"$f":"BH80+IF('Data Input - General'!$F$10=\"Yes\",Calc_Option5!BH$81,0)+IF('Data Input - General'!$F$12=\"Yes\",Calc_Option5!BH$75,0)","v":0},{"$f":"BI80+IF('Data Input - General'!$F$10=\"Yes\",Calc_Option5!BI$81,0)+IF('Data Input - General'!$F$12=\"Yes\",Calc_Option5!BI$75,0)","v":0},{"$f":"BJ80+IF('Data Input - General'!$F$10=\"Yes\",Calc_Option5!BJ$81,0)+IF('Data Input - General'!$F$12=\"Yes\",Calc_Option5!BJ$75,0)","v":0},{"$f":"BK80+IF('Data Input - General'!$F$10=\"Yes\",Calc_Option5!BK$81,0)+IF('Data Input - General'!$F$12=\"Yes\",Calc_Option5!BK$75,0)","v":0},{"$f":"BL80+IF('Data Input - General'!$F$10=\"Yes\",Calc_Option5!BL$81,0)+IF('Data Input - General'!$F$12=\"Yes\",Calc_Option5!BL$75,0)","v":0},{"$f":"BM80+IF('Data Input - General'!$F$10=\"Yes\",Calc_Option5!BM$81,0)+IF('Data Input - General'!$F$12=\"Yes\",Calc_Option5!BM$75,0)","v":0},{"$f":"BN80+IF('Data Input - General'!$F$10=\"Yes\",Calc_Option5!BN$81,0)+IF('Data Input - General'!$F$12=\"Yes\",Calc_Option5!BN$75,0)","v":0},{"$f":"BO80+IF('Data Input - General'!$F$10=\"Yes\",Calc_Option5!BO$81,0)+IF('Data Input - General'!$F$12=\"Yes\",Calc_Option5!BO$75,0)","v":0},{"$f":"BP80+IF('Data Input - General'!$F$10=\"Yes\",Calc_Option5!BP$81,0)+IF('Data Input - General'!$F$12=\"Yes\",Calc_Option5!BP$75,0)","v":0},{"$f":"BQ80+IF('Data Input - General'!$F$10=\"Yes\",Calc_Option5!BQ$81,0)+IF('Data Input - General'!$F$12=\"Yes\",Calc_Option5!BQ$75,0)","v":0},{"$f":"BR80+IF('Data Input - General'!$F$10=\"Yes\",Calc_Option5!BR$81,0)+IF('Data Input - General'!$F$12=\"Yes\",Calc_Option5!BR$75,0)","v":0},{"$f":"BS80+IF('Data Input - General'!$F$10=\"Yes\",Calc_Option5!BS$81,0)+IF('Data Input - General'!$F$12=\"Yes\",Calc_Option5!BS$75,0)","v":0},{"$f":"BT80+IF('Data Input - General'!$F$10=\"Yes\",Calc_Option5!BT$81,0)+IF('Data Input - General'!$F$12=\"Yes\",Calc_Option5!BT$75,0)","v":0},{"$f":"BU80+IF('Data Input - General'!$F$10=\"Yes\",Calc_Option5!BU$81,0)+IF('Data Input - General'!$F$12=\"Yes\",Calc_Option5!BU$75,0)","v":0},{"$f":"BV80+IF('Data Input - General'!$F$10=\"Yes\",Calc_Option5!BV$81,0)+IF('Data Input - General'!$F$12=\"Yes\",Calc_Option5!BV$75,0)","v":0},{"$f":"BW80+IF('Data Input - General'!$F$10=\"Yes\",Calc_Option5!BW$81,0)+IF('Data Input - General'!$F$12=\"Yes\",Calc_Option5!BW$75,0)","v":0},{"$f":"BX80+IF('Data Input - General'!$F$10=\"Yes\",Calc_Option5!BX$81,0)+IF('Data Input - General'!$F$12=\"Yes\",Calc_Option5!BX$75,0)","v":0},{"$f":"BY80+IF('Data Input - General'!$F$10=\"Yes\",Calc_Option5!BY$81,0)+IF('Data Input - General'!$F$12=\"Yes\",Calc_Option5!BY$75,0)","v":0},{"$f":"BZ80+IF('Data Input - General'!$F$10=\"Yes\",Calc_Option5!BZ$81,0)+IF('Data Input - General'!$F$12=\"Yes\",Calc_Option5!BZ$75,0)","v":0},{"$f":"CA80+IF('Data Input - General'!$F$10=\"Yes\",Calc_Option5!CA$81,0)+IF('Data Input - General'!$F$12=\"Yes\",Calc_Option5!CA$75,0)","v":0},{"$f":"CB80+IF('Data Input - General'!$F$10=\"Yes\",Calc_Option5!CB$81,0)+IF('Data Input - General'!$F$12=\"Yes\",Calc_Option5!CB$75,0)","v":0},{"$f":"CC80+IF('Data Input - General'!$F$10=\"Yes\",Calc_Option5!CC$81,0)+IF('Data Input - General'!$F$12=\"Yes\",Calc_Option5!CC$75,0)","v":0},{"$f":"CD80+IF('Data Input - General'!$F$10=\"Yes\",Calc_Option5!CD$81,0)+IF('Data Input - General'!$F$12=\"Yes\",Calc_Option5!CD$75,0)","v":0},{"$f":"CE80+IF('Data Input - General'!$F$10=\"Yes\",Calc_Option5!CE$81,0)+IF('Data Input - General'!$F$12=\"Yes\",Calc_Option5!CE$75,0)","v":0},{"$f":"CF80+IF('Data Input - General'!$F$10=\"Yes\",Calc_Option5!CF$81,0)+IF('Data Input - General'!$F$12=\"Yes\",Calc_Option5!CF$75,0)","v":0},{"$f":"CG80+IF('Data Input - General'!$F$10=\"Yes\",Calc_Option5!CG$81,0)+IF('Data Input - General'!$F$12=\"Yes\",Calc_Option5!CG$75,0)","v":0},{"$f":"CH80+IF('Data Input - General'!$F$10=\"Yes\",Calc_Option5!CH$81,0)+IF('Data Input - General'!$F$12=\"Yes\",Calc_Option5!CH$75,0)","v":0},{"$f":"CI80+IF('Data Input - General'!$F$10=\"Yes\",Calc_Option5!CI$81,0)+IF('Data Input - General'!$F$12=\"Yes\",Calc_Option5!CI$75,0)","v":0},{"$f":"CJ80+IF('Data Input - General'!$F$10=\"Yes\",Calc_Option5!CJ$81,0)+IF('Data Input - General'!$F$12=\"Yes\",Calc_Option5!CJ$75,0)","v":0},{"$f":"CK80+IF('Data Input - General'!$F$10=\"Yes\",Calc_Option5!CK$81,0)+IF('Data Input - General'!$F$12=\"Yes\",Calc_Option5!CK$75,0)","v":0},{"$f":"CL80+IF('Data Input - General'!$F$10=\"Yes\",Calc_Option5!CL$81,0)+IF('Data Input - General'!$F$12=\"Yes\",Calc_Option5!CL$75,0)","v":0},{"$f":"CM80+IF('Data Input - General'!$F$10=\"Yes\",Calc_Option5!CM$81,0)+IF('Data Input - General'!$F$12=\"Yes\",Calc_Option5!CM$75,0)","v":0},{"$f":"CN80+IF('Data Input - General'!$F$10=\"Yes\",Calc_Option5!CN$81,0)+IF('Data Input - General'!$F$12=\"Yes\",Calc_Option5!CN$75,0)","v":0},{"$f":"CO80+IF('Data Input - General'!$F$10=\"Yes\",Calc_Option5!CO$81,0)+IF('Data Input - General'!$F$12=\"Yes\",Calc_Option5!CO$75,0)","v":0},{"$f":"CP80+IF('Data Input - General'!$F$10=\"Yes\",Calc_Option5!CP$81,0)+IF('Data Input - General'!$F$12=\"Yes\",Calc_Option5!CP$75,0)","v":0},{"$f":"CQ80+IF('Data Input - General'!$F$10=\"Yes\",Calc_Option5!CQ$81,0)+IF('Data Input - General'!$F$12=\"Yes\",Calc_Option5!CQ$75,0)","v":0},{"$f":"CR80+IF('Data Input - General'!$F$10=\"Yes\",Calc_Option5!CR$81,0)+IF('Data Input - General'!$F$12=\"Yes\",Calc_Option5!CR$75,0)","v":0},{"$f":"CS80+IF('Data Input - General'!$F$10=\"Yes\",Calc_Option5!CS$81,0)+IF('Data Input - General'!$F$12=\"Yes\",Calc_Option5!CS$75,0)","v":0},{"$f":"CT80+IF('Data Input - General'!$F$10=\"Yes\",Calc_Option5!CT$81,0)+IF('Data Input - General'!$F$12=\"Yes\",Calc_Option5!CT$75,0)","v":0},{"$f":"CU80+IF('Data Input - General'!$F$10=\"Yes\",Calc_Option5!CU$81,0)+IF('Data Input - General'!$F$12=\"Yes\",Calc_Option5!CU$75,0)","v":0},{"$f":"CV80+IF('Data Input - General'!$F$10=\"Yes\",Calc_Option5!CV$81,0)+IF('Data Input - General'!$F$12=\"Yes\",Calc_Option5!CV$75,0)","v":0},{"$f":"CW80+IF('Data Input - General'!$F$10=\"Yes\",Calc_Option5!CW$81,0)+IF('Data Input - General'!$F$12=\"Yes\",Calc_Option5!CW$75,0)","v":0},{"$f":"CX80+IF('Data Input - General'!$F$10=\"Yes\",Calc_Option5!CX$81,0)+IF('Data Input - General'!$F$12=\"Yes\",Calc_Option5!CX$75,0)","v":0},{"$f":"CY80+IF('Data Input - General'!$F$10=\"Yes\",Calc_Option5!CY$81,0)+IF('Data Input - General'!$F$12=\"Yes\",Calc_Option5!CY$75,0)","v":0}]
[null,"Non-traded","tCO2e",{"$f":"IF('Data Input - General'!$F$10=\"Yes\",0,Calc_Option5!D$81)+IF('Data Input - General'!$F$12=\"Yes\",0,Calc_Option5!D$75)","v":0},{"$f":"IF('Data Input - General'!$F$10=\"Yes\",0,Calc_Option5!E$81)+IF('Data Input - General'!$F$12=\"Yes\",0,Calc_Option5!E$75)","v":0},{"$f":"IF('Data Input - General'!$F$10=\"Yes\",0,Calc_Option5!F$81)+IF('Data Input - General'!$F$12=\"Yes\",0,Calc_Option5!F$75)","v":0},{"$f":"IF('Data Input - General'!$F$10=\"Yes\",0,Calc_Option5!G$81)+IF('Data Input - General'!$F$12=\"Yes\",0,Calc_Option5!G$75)","v":0},{"$f":"IF('Data Input - General'!$F$10=\"Yes\",0,Calc_Option5!H$81)+IF('Data Input - General'!$F$12=\"Yes\",0,Calc_Option5!H$75)","v":0},{"$f":"IF('Data Input - General'!$F$10=\"Yes\",0,Calc_Option5!I$81)+IF('Data Input - General'!$F$12=\"Yes\",0,Calc_Option5!I$75)","v":0},{"$f":"IF('Data Input - General'!$F$10=\"Yes\",0,Calc_Option5!J$81)+IF('Data Input - General'!$F$12=\"Yes\",0,Calc_Option5!J$75)","v":0},{"$f":"IF('Data Input - General'!$F$10=\"Yes\",0,Calc_Option5!K$81)+IF('Data Input - General'!$F$12=\"Yes\",0,Calc_Option5!K$75)","v":0},{"$f":"IF('Data Input - General'!$F$10=\"Yes\",0,Calc_Option5!L$81)+IF('Data Input - General'!$F$12=\"Yes\",0,Calc_Option5!L$75)","v":0},{"$f":"IF('Data Input - General'!$F$10=\"Yes\",0,Calc_Option5!M$81)+IF('Data Input - General'!$F$12=\"Yes\",0,Calc_Option5!M$75)","v":0},{"$f":"IF('Data Input - General'!$F$10=\"Yes\",0,Calc_Option5!N$81)+IF('Data Input - General'!$F$12=\"Yes\",0,Calc_Option5!N$75)","v":0},{"$f":"IF('Data Input - General'!$F$10=\"Yes\",0,Calc_Option5!O$81)+IF('Data Input - General'!$F$12=\"Yes\",0,Calc_Option5!O$75)","v":0},{"$f":"IF('Data Input - General'!$F$10=\"Yes\",0,Calc_Option5!P$81)+IF('Data Input - General'!$F$12=\"Yes\",0,Calc_Option5!P$75)","v":0},{"$f":"IF('Data Input - General'!$F$10=\"Yes\",0,Calc_Option5!Q$81)+IF('Data Input - General'!$F$12=\"Yes\",0,Calc_Option5!Q$75)","v":0},{"$f":"IF('Data Input - General'!$F$10=\"Yes\",0,Calc_Option5!R$81)+IF('Data Input - General'!$F$12=\"Yes\",0,Calc_Option5!R$75)","v":0},{"$f":"IF('Data Input - General'!$F$10=\"Yes\",0,Calc_Option5!S$81)+IF('Data Input - General'!$F$12=\"Yes\",0,Calc_Option5!S$75)","v":0},{"$f":"IF('Data Input - General'!$F$10=\"Yes\",0,Calc_Option5!T$81)+IF('Data Input - General'!$F$12=\"Yes\",0,Calc_Option5!T$75)","v":0},{"$f":"IF('Data Input - General'!$F$10=\"Yes\",0,Calc_Option5!U$81)+IF('Data Input - General'!$F$12=\"Yes\",0,Calc_Option5!U$75)","v":0},{"$f":"IF('Data Input - General'!$F$10=\"Yes\",0,Calc_Option5!V$81)+IF('Data Input - General'!$F$12=\"Yes\",0,Calc_Option5!V$75)","v":0},{"$f":"IF('Data Input - General'!$F$10=\"Yes\",0,Calc_Option5!W$81)+IF('Data Input - General'!$F$12=\"Yes\",0,Calc_Option5!W$75)","v":0},{"$f":"IF('Data Input - General'!$F$10=\"Yes\",0,Calc_Option5!X$81)+IF('Data Input - General'!$F$12=\"Yes\",0,Calc_Option5!X$75)","v":0},{"$f":"IF('Data Input - General'!$F$10=\"Yes\",0,Calc_Option5!Y$81)+IF('Data Input - General'!$F$12=\"Yes\",0,Calc_Option5!Y$75)","v":0},{"$f":"IF('Data Input - General'!$F$10=\"Yes\",0,Calc_Option5!Z$81)+IF('Data Input - General'!$F$12=\"Yes\",0,Calc_Option5!Z$75)","v":0},{"$f":"IF('Data Input - General'!$F$10=\"Yes\",0,Calc_Option5!AA$81)+IF('Data Input - General'!$F$12=\"Yes\",0,Calc_Option5!AA$75)","v":0},{"$f":"IF('Data Input - General'!$F$10=\"Yes\",0,Calc_Option5!AB$81)+IF('Data Input - General'!$F$12=\"Yes\",0,Calc_Option5!AB$75)","v":0},{"$f":"IF('Data Input - General'!$F$10=\"Yes\",0,Calc_Option5!AC$81)+IF('Data Input - General'!$F$12=\"Yes\",0,Calc_Option5!AC$75)","v":0},{"$f":"IF('Data Input - General'!$F$10=\"Yes\",0,Calc_Option5!AD$81)+IF('Data Input - General'!$F$12=\"Yes\",0,Calc_Option5!AD$75)","v":0},{"$f":"IF('Data Input - General'!$F$10=\"Yes\",0,Calc_Option5!AE$81)+IF('Data Input - General'!$F$12=\"Yes\",0,Calc_Option5!AE$75)","v":0},{"$f":"IF('Data Input - General'!$F$10=\"Yes\",0,Calc_Option5!AF$81)+IF('Data Input - General'!$F$12=\"Yes\",0,Calc_Option5!AF$75)","v":0},{"$f":"IF('Data Input - General'!$F$10=\"Yes\",0,Calc_Option5!AG$81)+IF('Data Input - General'!$F$12=\"Yes\",0,Calc_Option5!AG$75)","v":0},{"$f":"IF('Data Input - General'!$F$10=\"Yes\",0,Calc_Option5!AH$81)+IF('Data Input - General'!$F$12=\"Yes\",0,Calc_Option5!AH$75)","v":0},{"$f":"IF('Data Input - General'!$F$10=\"Yes\",0,Calc_Option5!AI$81)+IF('Data Input - General'!$F$12=\"Yes\",0,Calc_Option5!AI$75)","v":0},{"$f":"IF('Data Input - General'!$F$10=\"Yes\",0,Calc_Option5!AJ$81)+IF('Data Input - General'!$F$12=\"Yes\",0,Calc_Option5!AJ$75)","v":0},{"$f":"IF('Data Input - General'!$F$10=\"Yes\",0,Calc_Option5!AK$81)+IF('Data Input - General'!$F$12=\"Yes\",0,Calc_Option5!AK$75)","v":0},{"$f":"IF('Data Input - General'!$F$10=\"Yes\",0,Calc_Option5!AL$81)+IF('Data Input - General'!$F$12=\"Yes\",0,Calc_Option5!AL$75)","v":0},{"$f":"IF('Data Input - General'!$F$10=\"Yes\",0,Calc_Option5!AM$81)+IF('Data Input - General'!$F$12=\"Yes\",0,Calc_Option5!AM$75)","v":0},{"$f":"IF('Data Input - General'!$F$10=\"Yes\",0,Calc_Option5!AN$81)+IF('Data Input - General'!$F$12=\"Yes\",0,Calc_Option5!AN$75)","v":0},{"$f":"IF('Data Input - General'!$F$10=\"Yes\",0,Calc_Option5!AO$81)+IF('Data Input - General'!$F$12=\"Yes\",0,Calc_Option5!AO$75)","v":0},{"$f":"IF('Data Input - General'!$F$10=\"Yes\",0,Calc_Option5!AP$81)+IF('Data Input - General'!$F$12=\"Yes\",0,Calc_Option5!AP$75)","v":0},{"$f":"IF('Data Input - General'!$F$10=\"Yes\",0,Calc_Option5!AQ$81)+IF('Data Input - General'!$F$12=\"Yes\",0,Calc_Option5!AQ$75)","v":0},{"$f":"IF('Data Input - General'!$F$10=\"Yes\",0,Calc_Option5!AR$81)+IF('Data Input - General'!$F$12=\"Yes\",0,Calc_Option5!AR$75)","v":0},{"$f":"IF('Data Input - General'!$F$10=\"Yes\",0,Calc_Option5!AS$81)+IF('Data Input - General'!$F$12=\"Yes\",0,Calc_Option5!AS$75)","v":0},{"$f":"IF('Data Input - General'!$F$10=\"Yes\",0,Calc_Option5!AT$81)+IF('Data Input - General'!$F$12=\"Yes\",0,Calc_Option5!AT$75)","v":0},{"$f":"IF('Data Input - General'!$F$10=\"Yes\",0,Calc_Option5!AU$81)+IF('Data Input - General'!$F$12=\"Yes\",0,Calc_Option5!AU$75)","v":0},{"$f":"IF('Data Input - General'!$F$10=\"Yes\",0,Calc_Option5!AV$81)+IF('Data Input - General'!$F$12=\"Yes\",0,Calc_Option5!AV$75)","v":0},{"$f":"IF('Data Input - General'!$F$10=\"Yes\",0,Calc_Option5!AW$81)+IF('Data Input - General'!$F$12=\"Yes\",0,Calc_Option5!AW$75)","v":0},{"$f":"IF('Data Input - General'!$F$10=\"Yes\",0,Calc_Option5!AX$81)+IF('Data Input - General'!$F$12=\"Yes\",0,Calc_Option5!AX$75)","v":0},{"$f":"IF('Data Input - General'!$F$10=\"Yes\",0,Calc_Option5!AY$81)+IF('Data Input - General'!$F$12=\"Yes\",0,Calc_Option5!AY$75)","v":0},{"$f":"IF('Data Input - General'!$F$10=\"Yes\",0,Calc_Option5!AZ$81)+IF('Data Input - General'!$F$12=\"Yes\",0,Calc_Option5!AZ$75)","v":0},{"$f":"IF('Data Input - General'!$F$10=\"Yes\",0,Calc_Option5!BA$81)+IF('Data Input - General'!$F$12=\"Yes\",0,Calc_Option5!BA$75)","v":0},{"$f":"IF('Data Input - General'!$F$10=\"Yes\",0,Calc_Option5!BB$81)+IF('Data Input - General'!$F$12=\"Yes\",0,Calc_Option5!BB$75)","v":0},{"$f":"IF('Data Input - General'!$F$10=\"Yes\",0,Calc_Option5!BC$81)+IF('Data Input - General'!$F$12=\"Yes\",0,Calc_Option5!BC$75)","v":0},{"$f":"IF('Data Input - General'!$F$10=\"Yes\",0,Calc_Option5!BD$81)+IF('Data Input - General'!$F$12=\"Yes\",0,Calc_Option5!BD$75)","v":0},{"$f":"IF('Data Input - General'!$F$10=\"Yes\",0,Calc_Option5!BE$81)+IF('Data Input - General'!$F$12=\"Yes\",0,Calc_Option5!BE$75)","v":0},{"$f":"IF('Data Input - General'!$F$10=\"Yes\",0,Calc_Option5!BF$81)+IF('Data Input - General'!$F$12=\"Yes\",0,Calc_Option5!BF$75)","v":0},{"$f":"IF('Data Input - General'!$F$10=\"Yes\",0,Calc_Option5!BG$81)+IF('Data Input - General'!$F$12=\"Yes\",0,Calc_Option5!BG$75)","v":0},{"$f":"IF('Data Input - General'!$F$10=\"Yes\",0,Calc_Option5!BH$81)+IF('Data Input - General'!$F$12=\"Yes\",0,Calc_Option5!BH$75)","v":0},{"$f":"IF('Data Input - General'!$F$10=\"Yes\",0,Calc_Option5!BI$81)+IF('Data Input - General'!$F$12=\"Yes\",0,Calc_Option5!BI$75)","v":0},{"$f":"IF('Data Input - General'!$F$10=\"Yes\",0,Calc_Option5!BJ$81)+IF('Data Input - General'!$F$12=\"Yes\",0,Calc_Option5!BJ$75)","v":0},{"$f":"IF('Data Input - General'!$F$10=\"Yes\",0,Calc_Option5!BK$81)+IF('Data Input - General'!$F$12=\"Yes\",0,Calc_Option5!BK$75)","v":0},{"$f":"IF('Data Input - General'!$F$10=\"Yes\",0,Calc_Option5!BL$81)+IF('Data Input - General'!$F$12=\"Yes\",0,Calc_Option5!BL$75)","v":0},{"$f":"IF('Data Input - General'!$F$10=\"Yes\",0,Calc_Option5!BM$81)+IF('Data Input - General'!$F$12=\"Yes\",0,Calc_Option5!BM$75)","v":0},{"$f":"IF('Data Input - General'!$F$10=\"Yes\",0,Calc_Option5!BN$81)+IF('Data Input - General'!$F$12=\"Yes\",0,Calc_Option5!BN$75)","v":0},{"$f":"IF('Data Input - General'!$F$10=\"Yes\",0,Calc_Option5!BO$81)+IF('Data Input - General'!$F$12=\"Yes\",0,Calc_Option5!BO$75)","v":0},{"$f":"IF('Data Input - General'!$F$10=\"Yes\",0,Calc_Option5!BP$81)+IF('Data Input - General'!$F$12=\"Yes\",0,Calc_Option5!BP$75)","v":0},{"$f":"IF('Data Input - General'!$F$10=\"Yes\",0,Calc_Option5!BQ$81)+IF('Data Input - General'!$F$12=\"Yes\",0,Calc_Option5!BQ$75)","v":0},{"$f":"IF('Data Input - General'!$F$10=\"Yes\",0,Calc_Option5!BR$81)+IF('Data Input - General'!$F$12=\"Yes\",0,Calc_Option5!BR$75)","v":0},{"$f":"IF('Data Input - General'!$F$10=\"Yes\",0,Calc_Option5!BS$81)+IF('Data Input - General'!$F$12=\"Yes\",0,Calc_Option5!BS$75)","v":0},{"$f":"IF('Data Input - General'!$F$10=\"Yes\",0,Calc_Option5!BT$81)+IF('Data Input - General'!$F$12=\"Yes\",0,Calc_Option5!BT$75)","v":0},{"$f":"IF('Data Input - General'!$F$10=\"Yes\",0,Calc_Option5!BU$81)+IF('Data Input - General'!$F$12=\"Yes\",0,Calc_Option5!BU$75)","v":0},{"$f":"IF('Data Input - General'!$F$10=\"Yes\",0,Calc_Option5!BV$81)+IF('Data Input - General'!$F$12=\"Yes\",0,Calc_Option5!BV$75)","v":0},{"$f":"IF('Data Input - General'!$F$10=\"Yes\",0,Calc_Option5!BW$81)+IF('Data Input - General'!$F$12=\"Yes\",0,Calc_Option5!BW$75)","v":0},{"$f":"IF('Data Input - General'!$F$10=\"Yes\",0,Calc_Option5!BX$81)+IF('Data Input - General'!$F$12=\"Yes\",0,Calc_Option5!BX$75)","v":0},{"$f":"IF('Data Input - General'!$F$10=\"Yes\",0,Calc_Option5!BY$81)+IF('Data Input - General'!$F$12=\"Yes\",0,Calc_Option5!BY$75)","v":0},{"$f":"IF('Data Input - General'!$F$10=\"Yes\",0,Calc_Option5!BZ$81)+IF('Data Input - General'!$F$12=\"Yes\",0,Calc_Option5!BZ$75)","v":0},{"$f":"IF('Data Input - General'!$F$10=\"Yes\",0,Calc_Option5!CA$81)+IF('Data Input - General'!$F$12=\"Yes\",0,Calc_Option5!CA$75)","v":0},{"$f":"IF('Data Input - General'!$F$10=\"Yes\",0,Calc_Option5!CB$81)+IF('Data Input - General'!$F$12=\"Yes\",0,Calc_Option5!CB$75)","v":0},{"$f":"IF('Data Input - General'!$F$10=\"Yes\",0,Calc_Option5!CC$81)+IF('Data Input - General'!$F$12=\"Yes\",0,Calc_Option5!CC$75)","v":0},{"$f":"IF('Data Input - General'!$F$10=\"Yes\",0,Calc_Option5!CD$81)+IF('Data Input - General'!$F$12=\"Yes\",0,Calc_Option5!CD$75)","v":0},{"$f":"IF('Data Input - General'!$F$10=\"Yes\",0,Calc_Option5!CE$81)+IF('Data Input - General'!$F$12=\"Yes\",0,Calc_Option5!CE$75)","v":0},{"$f":"IF('Data Input - General'!$F$10=\"Yes\",0,Calc_Option5!CF$81)+IF('Data Input - General'!$F$12=\"Yes\",0,Calc_Option5!CF$75)","v":0},{"$f":"IF('Data Input - General'!$F$10=\"Yes\",0,Calc_Option5!CG$81)+IF('Data Input - General'!$F$12=\"Yes\",0,Calc_Option5!CG$75)","v":0},{"$f":"IF('Data Input - General'!$F$10=\"Yes\",0,Calc_Option5!CH$81)+IF('Data Input - General'!$F$12=\"Yes\",0,Calc_Option5!CH$75)","v":0},{"$f":"IF('Data Input - General'!$F$10=\"Yes\",0,Calc_Option5!CI$81)+IF('Data Input - General'!$F$12=\"Yes\",0,Calc_Option5!CI$75)","v":0},{"$f":"IF('Data Input - General'!$F$10=\"Yes\",0,Calc_Option5!CJ$81)+IF('Data Input - General'!$F$12=\"Yes\",0,Calc_Option5!CJ$75)","v":0},{"$f":"IF('Data Input - General'!$F$10=\"Yes\",0,Calc_Option5!CK$81)+IF('Data Input - General'!$F$12=\"Yes\",0,Calc_Option5!CK$75)","v":0},{"$f":"IF('Data Input - General'!$F$10=\"Yes\",0,Calc_Option5!CL$81)+IF('Data Input - General'!$F$12=\"Yes\",0,Calc_Option5!CL$75)","v":0},{"$f":"IF('Data Input - General'!$F$10=\"Yes\",0,Calc_Option5!CM$81)+IF('Data Input - General'!$F$12=\"Yes\",0,Calc_Option5!CM$75)","v":0},{"$f":"IF('Data Input - General'!$F$10=\"Yes\",0,Calc_Option5!CN$81)+IF('Data Input - General'!$F$12=\"Yes\",0,Calc_Option5!CN$75)","v":0},{"$f":"IF('Data Input - General'!$F$10=\"Yes\",0,Calc_Option5!CO$81)+IF('Data Input - General'!$F$12=\"Yes\",0,Calc_Option5!CO$75)","v":0},{"$f":"IF('Data Input - General'!$F$10=\"Yes\",0,Calc_Option5!CP$81)+IF('Data Input - General'!$F$12=\"Yes\",0,Calc_Option5!CP$75)","v":0},{"$f":"IF('Data Input - General'!$F$10=\"Yes\",0,Calc_Option5!CQ$81)+IF('Data Input - General'!$F$12=\"Yes\",0,Calc_Option5!CQ$75)","v":0},{"$f":"IF('Data Input - General'!$F$10=\"Yes\",0,Calc_Option5!CR$81)+IF('Data Input - General'!$F$12=\"Yes\",0,Calc_Option5!CR$75)","v":0},{"$f":"IF('Data Input - General'!$F$10=\"Yes\",0,Calc_Option5!CS$81)+IF('Data Input - General'!$F$12=\"Yes\",0,Calc_Option5!CS$75)","v":0},{"$f":"IF('Data Input - General'!$F$10=\"Yes\",0,Calc_Option5!CT$81)+IF('Data Input - General'!$F$12=\"Yes\",0,Calc_Option5!CT$75)","v":0},{"$f":"IF('Data Input - General'!$F$10=\"Yes\",0,Calc_Option5!CU$81)+IF('Data Input - General'!$F$12=\"Yes\",0,Calc_Option5!CU$75)","v":0},{"$f":"IF('Data Input - General'!$F$10=\"Yes\",0,Calc_Option5!CV$81)+IF('Data Input - General'!$F$12=\"Yes\",0,Calc_Option5!CV$75)","v":0},{"$f":"IF('Data Input - General'!$F$10=\"Yes\",0,Calc_Option5!CW$81)+IF('Data Input - General'!$F$12=\"Yes\",0,Calc_Option5!CW$75)","v":0},{"$f":"IF('Data Input - General'!$F$10=\"Yes\",0,Calc_Option5!CX$81)+IF('Data Input - General'!$F$12=\"Yes\",0,Calc_Option5!CX$75)","v":0},{"$f":"IF('Data Input - General'!$F$10=\"Yes\",0,Calc_Option5!CY$81)+IF('Data Input - General'!$F$12=\"Yes\",0,Calc_Option5!CY$75)","v":0}]
[null,"Value TRADED","£000's",{"$f":"IFERROR(INDEX('Carbon Prices'!$D$10:$CP$15,1,MATCH(Calc_Option5!D$6,'Carbon Prices'!$D$9:$CP$9,0))/1000,0)","v":0},{"$f":"IFERROR(INDEX('Carbon Prices'!$D$10:$CP$15,1,MATCH(Calc_Option5!E$6,'Carbon Prices'!$D$9:$CP$9,0))/1000,0)","v":0},{"$f":"IFERROR(INDEX('Carbon Prices'!$D$10:$CP$15,1,MATCH(Calc_Option5!F$6,'Carbon Prices'!$D$9:$CP$9,0))/1000,0)","v":4.2168152036321628E-3},{"$f":"IFERROR(INDEX('Carbon Prices'!$D$10:$CP$15,1,MATCH(Calc_Option5!G$6,'Carbon Prices'!$D$9:$CP$9,0))/1000,0)","v":8.4336304072643257E-3},{"$f":"IFERROR(INDEX('Carbon Prices'!$D$10:$CP$15,1,MATCH(Calc_Option5!H$6,'Carbon Prices'!$D$9:$CP$9,0))/1000,0)","v":1.2650445610896488E-2},{"$f":"IFERROR(INDEX('Carbon Prices'!$D$10:$CP$15,1,MATCH(Calc_Option5!I$6,'Carbon Prices'!$D$9:$CP$9,0))/1000,0)","v":1.6867260814528651E-2},{"$f":"IFERROR(INDEX('Carbon Prices'!$D$10:$CP$15,1,MATCH(Calc_Option5!J$6,'Carbon Prices'!$D$9:$CP$9,0))/1000,0)","v":2.1084076018160813E-2},{"$f":"IFERROR(INDEX('Carbon Prices'!$D$10:$CP$15,1,MATCH(Calc_Option5!K$6,'Carbon Prices'!$D$9:$CP$9,0))/1000,0)","v":2.5300891221792975E-2},{"$f":"IFERROR(INDEX('Carbon Prices'!$D$10:$CP$15,1,MATCH(Calc_Option5!L$6,'Carbon Prices'!$D$9:$CP$9,0))/1000,0)","v":2.9517706425425144E-2},{"$f":"IFERROR(INDEX('Carbon Prices'!$D$10:$CP$15,1,MATCH(Calc_Option5!M$6,'Carbon Prices'!$D$9:$CP$9,0))/1000,0)","v":3.3734521629057303E-2},{"$f":"IFERROR(INDEX('Carbon Prices'!$D$10:$CP$15,1,MATCH(Calc_Option5!N$6,'Carbon Prices'!$D$9:$CP$9,0))/1000,0)","v":3.7951336832689468E-2},{"$f":"IFERROR(INDEX('Carbon Prices'!$D$10:$CP$15,1,MATCH(Calc_Option5!O$6,'Carbon Prices'!$D$9:$CP$9,0))/1000,0)","v":4.2168152036321627E-2},{"$f":"IFERROR(INDEX('Carbon Prices'!$D$10:$CP$15,1,MATCH(Calc_Option5!P$6,'Carbon Prices'!$D$9:$CP$9,0))/1000,0)","v":4.6083766153980084E-2},{"$f":"IFERROR(INDEX('Carbon Prices'!$D$10:$CP$15,1,MATCH(Calc_Option5!Q$6,'Carbon Prices'!$D$9:$CP$9,0))/1000,0)","v":4.999938027163852E-2},{"$f":"IFERROR(INDEX('Carbon Prices'!$D$10:$CP$15,1,MATCH(Calc_Option5!R$6,'Carbon Prices'!$D$9:$CP$9,0))/1000,0)","v":5.3914994389296957E-2},{"$f":"IFERROR(INDEX('Carbon Prices'!$D$10:$CP$15,1,MATCH(Calc_Option5!S$6,'Carbon Prices'!$D$9:$CP$9,0))/1000,0)","v":5.78306085069554E-2},{"$f":"IFERROR(INDEX('Carbon Prices'!$D$10:$CP$15,1,MATCH(Calc_Option5!T$6,'Carbon Prices'!$D$9:$CP$9,0))/1000,0)","v":6.1746222624613836E-2},{"$f":"IFERROR(INDEX('Carbon Prices'!$D$10:$CP$15,1,MATCH(Calc_Option5!U$6,'Carbon Prices'!$D$9:$CP$9,0))/1000,0)","v":6.5661836742272273E-2},{"$f":"IFERROR(INDEX('Carbon Prices'!$D$10:$CP$15,1,MATCH(Calc_Option5!V$6,'Carbon Prices'!$D$9:$CP$9,0))/1000,0)","v":6.9577450859930709E-2},{"$f":"IFERROR(INDEX('Carbon Prices'!$D$10:$CP$15,1,MATCH(Calc_Option5!W$6,'Carbon Prices'!$D$9:$CP$9,0))/1000,0)","v":7.3493064977589145E-2},{"$f":"IFERROR(INDEX('Carbon Prices'!$D$10:$CP$15,1,MATCH(Calc_Option5!X$6,'Carbon Prices'!$D$9:$CP$9,0))/1000,0)","v":7.7408679095247609E-2},{"$f":"IFERROR(INDEX('Carbon Prices'!$D$10:$CP$15,1,MATCH(Calc_Option5!Y$6,'Carbon Prices'!$D$9:$CP$9,0))/1000,0)","v":8.1324293212906046E-2},{"$f":"IFERROR(INDEX('Carbon Prices'!$D$10:$CP$15,1,MATCH(Calc_Option5!Z$6,'Carbon Prices'!$D$9:$CP$9,0))/1000,0)","v":8.5239907330564482E-2},{"$f":"IFERROR(INDEX('Carbon Prices'!$D$10:$CP$15,1,MATCH(Calc_Option5!AA$6,'Carbon Prices'!$D$9:$CP$9,0))/1000,0)","v":8.9155521448222919E-2},{"$f":"IFERROR(INDEX('Carbon Prices'!$D$10:$CP$15,1,MATCH(Calc_Option5!AB$6,'Carbon Prices'!$D$9:$CP$9,0))/1000,0)","v":9.3071135565881355E-2},{"$f":"IFERROR(INDEX('Carbon Prices'!$D$10:$CP$15,1,MATCH(Calc_Option5!AC$6,'Carbon Prices'!$D$9:$CP$9,0))/1000,0)","v":9.6986749683539791E-2},{"$f":"IFERROR(INDEX('Carbon Prices'!$D$10:$CP$15,1,MATCH(Calc_Option5!AD$6,'Carbon Prices'!$D$9:$CP$9,0))/1000,0)","v":0.10090236380119821},{"$f":"IFERROR(INDEX('Carbon Prices'!$D$10:$CP$15,1,MATCH(Calc_Option5!AE$6,'Carbon Prices'!$D$9:$CP$9,0))/1000,0)","v":0.10481797791885665},{"$f":"IFERROR(INDEX('Carbon Prices'!$D$10:$CP$15,1,MATCH(Calc_Option5!AF$6,'Carbon Prices'!$D$9:$CP$9,0))/1000,0)","v":0.1087335920365151},{"$f":"IFERROR(INDEX('Carbon Prices'!$D$10:$CP$15,1,MATCH(Calc_Option5!AG$6,'Carbon Prices'!$D$9:$CP$9,0))/1000,0)","v":0.11264920615417354},{"$f":"IFERROR(INDEX('Carbon Prices'!$D$10:$CP$15,1,MATCH(Calc_Option5!AH$6,'Carbon Prices'!$D$9:$CP$9,0))/1000,0)","v":0.11656482027183197},{"$f":"IFERROR(INDEX('Carbon Prices'!$D$10:$CP$15,1,MATCH(Calc_Option5!AI$6,'Carbon Prices'!$D$9:$CP$9,0))/1000,0)","v":0},{"$f":"IFERROR(INDEX('Carbon Prices'!$D$10:$CP$15,1,MATCH(Calc_Option5!AJ$6,'Carbon Prices'!$D$9:$CP$9,0))/1000,0)","v":0},{"$f":"IFERROR(INDEX('Carbon Prices'!$D$10:$CP$15,1,MATCH(Calc_Option5!AK$6,'Carbon Prices'!$D$9:$CP$9,0))/1000,0)","v":0},{"$f":"IFERROR(INDEX('Carbon Prices'!$D$10:$CP$15,1,MATCH(Calc_Option5!AL$6,'Carbon Prices'!$D$9:$CP$9,0))/1000,0)","v":0},{"$f":"IFERROR(INDEX('Carbon Prices'!$D$10:$CP$15,1,MATCH(Calc_Option5!AM$6,'Carbon Prices'!$D$9:$CP$9,0))/1000,0)","v":0},{"$f":"IFERROR(INDEX('Carbon Prices'!$D$10:$CP$15,1,MATCH(Calc_Option5!AN$6,'Carbon Prices'!$D$9:$CP$9,0))/1000,0)","v":0},{"$f":"IFERROR(INDEX('Carbon Prices'!$D$10:$CP$15,1,MATCH(Calc_Option5!AO$6,'Carbon Prices'!$D$9:$CP$9,0))/1000,0)","v":0},{"$f":"IFERROR(INDEX('Carbon Prices'!$D$10:$CP$15,1,MATCH(Calc_Option5!AP$6,'Carbon Prices'!$D$9:$CP$9,0))/1000,0)","v":0},{"$f":"IFERROR(INDEX('Carbon Prices'!$D$10:$CP$15,1,MATCH(Calc_Option5!AQ$6,'Carbon Prices'!$D$9:$CP$9,0))/1000,0)","v":0},{"$f":"IFERROR(INDEX('Carbon Prices'!$D$10:$CP$15,1,MATCH(Calc_Option5!AR$6,'Carbon Prices'!$D$9:$CP$9,0))/1000,0)","v":0},{"$f":"IFERROR(INDEX('Carbon Prices'!$D$10:$CP$15,1,MATCH(Calc_Option5!AS$6,'Carbon Prices'!$D$9:$CP$9,0))/1000,0)","v":0},{"$f":"IFERROR(INDEX('Carbon Prices'!$D$10:$CP$15,1,MATCH(Calc_Option5!AT$6,'Carbon Prices'!$D$9:$CP$9,0))/1000,0)","v":0},{"$f":"IFERROR(INDEX('Carbon Prices'!$D$10:$CP$15,1,MATCH(Calc_Option5!AU$6,'Carbon Prices'!$D$9:$CP$9,0))/1000,0)","v":0},{"$f":"IFERROR(INDEX('Carbon Prices'!$D$10:$CP$15,1,MATCH(Calc_Option5!AV$6,'Carbon Prices'!$D$9:$CP$9,0))/1000,0)","v":0},{"$f":"IFERROR(INDEX('Carbon Prices'!$D$10:$CP$15,1,MATCH(Calc_Option5!AW$6,'Carbon Prices'!$D$9:$CP$9,0))/1000,0)","v":0},{"$f":"IFERROR(INDEX('Carbon Prices'!$D$10:$CP$15,1,MATCH(Calc_Option5!AX$6,'Carbon Prices'!$D$9:$CP$9,0))/1000,0)","v":0},{"$f":"IFERROR(INDEX('Carbon Prices'!$D$10:$CP$15,1,MATCH(Calc_Option5!AY$6,'Carbon Prices'!$D$9:$CP$9,0))/1000,0)","v":0},{"$f":"IFERROR(INDEX('Carbon Prices'!$D$10:$CP$15,1,MATCH(Calc_Option5!AZ$6,'Carbon Prices'!$D$9:$CP$9,0))/1000,0)","v":0},{"$f":"IFERROR(INDEX('Carbon Prices'!$D$10:$CP$15,1,MATCH(Calc_Option5!BA$6,'Carbon Prices'!$D$9:$CP$9,0))/1000,0)","v":0},{"$f":"IFERROR(INDEX('Carbon Prices'!$D$10:$CP$15,1,MATCH(Calc_Option5!BB$6,'Carbon Prices'!$D$9:$CP$9,0))/1000,0)","v":0},{"$f":"IFERROR(INDEX('Carbon Prices'!$D$10:$CP$15,1,MATCH(Calc_Option5!BC$6,'Carbon Prices'!$D$9:$CP$9,0))/1000,0)","v":0},{"$f":"IFERROR(INDEX('Carbon Prices'!$D$10:$CP$15,1,MATCH(Calc_Option5!BD$6,'Carbon Prices'!$D$9:$CP$9,0))/1000,0)","v":0},{"$f":"IFERROR(INDEX('Carbon Prices'!$D$10:$CP$15,1,MATCH(Calc_Option5!BE$6,'Carbon Prices'!$D$9:$CP$9,0))/1000,0)","v":0},{"$f":"IFERROR(INDEX('Carbon Prices'!$D$10:$CP$15,1,MATCH(Calc_Option5!BF$6,'Carbon Prices'!$D$9:$CP$9,0))/1000,0)","v":0},{"$f":"IFERROR(INDEX('Carbon Prices'!$D$10:$CP$15,1,MATCH(Calc_Option5!BG$6,'Carbon Prices'!$D$9:$CP$9,0))/1000,0)","v":0},{"$f":"IFERROR(INDEX('Carbon Prices'!$D$10:$CP$15,1,MATCH(Calc_Option5!BH$6,'Carbon Prices'!$D$9:$CP$9,0))/1000,0)","v":0},{"$f":"IFERROR(INDEX('Carbon Prices'!$D$10:$CP$15,1,MATCH(Calc_Option5!BI$6,'Carbon Prices'!$D$9:$CP$9,0))/1000,0)","v":0},{"$f":"IFERROR(INDEX('Carbon Prices'!$D$10:$CP$15,1,MATCH(Calc_Option5!BJ$6,'Carbon Prices'!$D$9:$CP$9,0))/1000,0)","v":0},{"$f":"IFERROR(INDEX('Carbon Prices'!$D$10:$CP$15,1,MATCH(Calc_Option5!BK$6,'Carbon Prices'!$D$9:$CP$9,0))/1000,0)","v":0},{"$f":"IFERROR(INDEX('Carbon Prices'!$D$10:$CP$15,1,MATCH(Calc_Option5!BL$6,'Carbon Prices'!$D$9:$CP$9,0))/1000,0)","v":0},{"$f":"IFERROR(INDEX('Carbon Prices'!$D$10:$CP$15,1,MATCH(Calc_Option5!BM$6,'Carbon Prices'!$D$9:$CP$9,0))/1000,0)","v":0},{"$f":"IFERROR(INDEX('Carbon Prices'!$D$10:$CP$15,1,MATCH(Calc_Option5!BN$6,'Carbon Prices'!$D$9:$CP$9,0))/1000,0)","v":0},{"$f":"IFERROR(INDEX('Carbon Prices'!$D$10:$CP$15,1,MATCH(Calc_Option5!BO$6,'Carbon Prices'!$D$9:$CP$9,0))/1000,0)","v":0},{"$f":"IFERROR(INDEX('Carbon Prices'!$D$10:$CP$15,1,MATCH(Calc_Option5!BP$6,'Carbon Prices'!$D$9:$CP$9,0))/1000,0)","v":0},{"$f":"IFERROR(INDEX('Carbon Prices'!$D$10:$CP$15,1,MATCH(Calc_Option5!BQ$6,'Carbon Prices'!$D$9:$CP$9,0))/1000,0)","v":0},{"$f":"IFERROR(INDEX('Carbon Prices'!$D$10:$CP$15,1,MATCH(Calc_Option5!BR$6,'Carbon Prices'!$D$9:$CP$9,0))/1000,0)","v":0},{"$f":"IFERROR(INDEX('Carbon Prices'!$D$10:$CP$15,1,MATCH(Calc_Option5!BS$6,'Carbon Prices'!$D$9:$CP$9,0))/1000,0)","v":0},{"$f":"IFERROR(INDEX('Carbon Prices'!$D$10:$CP$15,1,MATCH(Calc_Option5!BT$6,'Carbon Prices'!$D$9:$CP$9,0))/1000,0)","v":0},{"$f":"IFERROR(INDEX('Carbon Prices'!$D$10:$CP$15,1,MATCH(Calc_Option5!BU$6,'Carbon Prices'!$D$9:$CP$9,0))/1000,0)","v":0},{"$f":"IFERROR(INDEX('Carbon Prices'!$D$10:$CP$15,1,MATCH(Calc_Option5!BV$6,'Carbon Prices'!$D$9:$CP$9,0))/1000,0)","v":0},{"$f":"IFERROR(INDEX('Carbon Prices'!$D$10:$CP$15,1,MATCH(Calc_Option5!BW$6,'Carbon Prices'!$D$9:$CP$9,0))/1000,0)","v":0},{"$f":"IFERROR(INDEX('Carbon Prices'!$D$10:$CP$15,1,MATCH(Calc_Option5!BX$6,'Carbon Prices'!$D$9:$CP$9,0))/1000,0)","v":0},{"$f":"IFERROR(INDEX('Carbon Prices'!$D$10:$CP$15,1,MATCH(Calc_Option5!BY$6,'Carbon Prices'!$D$9:$CP$9,0))/1000,0)","v":0},{"$f":"IFERROR(INDEX('Carbon Prices'!$D$10:$CP$15,1,MATCH(Calc_Option5!BZ$6,'Carbon Prices'!$D$9:$CP$9,0))/1000,0)","v":0},{"$f":"IFERROR(INDEX('Carbon Prices'!$D$10:$CP$15,1,MATCH(Calc_Option5!CA$6,'Carbon Prices'!$D$9:$CP$9,0))/1000,0)","v":0},{"$f":"IFERROR(INDEX('Carbon Prices'!$D$10:$CP$15,1,MATCH(Calc_Option5!CB$6,'Carbon Prices'!$D$9:$CP$9,0))/1000,0)","v":0},{"$f":"IFERROR(INDEX('Carbon Prices'!$D$10:$CP$15,1,MATCH(Calc_Option5!CC$6,'Carbon Prices'!$D$9:$CP$9,0))/1000,0)","v":0},{"$f":"IFERROR(INDEX('Carbon Prices'!$D$10:$CP$15,1,MATCH(Calc_Option5!CD$6,'Carbon Prices'!$D$9:$CP$9,0))/1000,0)","v":0},{"$f":"IFERROR(INDEX('Carbon Prices'!$D$10:$CP$15,1,MATCH(Calc_Option5!CE$6,'Carbon Prices'!$D$9:$CP$9,0))/1000,0)","v":0},{"$f":"IFERROR(INDEX('Carbon Prices'!$D$10:$CP$15,1,MATCH(Calc_Option5!CF$6,'Carbon Prices'!$D$9:$CP$9,0))/1000,0)","v":0},{"$f":"IFERROR(INDEX('Carbon Prices'!$D$10:$CP$15,1,MATCH(Calc_Option5!CG$6,'Carbon Prices'!$D$9:$CP$9,0))/1000,0)","v":0},{"$f":"IFERROR(INDEX('Carbon Prices'!$D$10:$CP$15,1,MATCH(Calc_Option5!CH$6,'Carbon Prices'!$D$9:$CP$9,0))/1000,0)","v":0},{"$f":"IFERROR(INDEX('Carbon Prices'!$D$10:$CP$15,1,MATCH(Calc_Option5!CI$6,'Carbon Prices'!$D$9:$CP$9,0))/1000,0)","v":0},{"$f":"IFERROR(INDEX('Carbon Prices'!$D$10:$CP$15,1,MATCH(Calc_Option5!CJ$6,'Carbon Prices'!$D$9:$CP$9,0))/1000,0)","v":0},{"$f":"IFERROR(INDEX('Carbon Prices'!$D$10:$CP$15,1,MATCH(Calc_Option5!CK$6,'Carbon Prices'!$D$9:$CP$9,0))/1000,0)","v":0},{"$f":"IFERROR(INDEX('Carbon Prices'!$D$10:$CP$15,1,MATCH(Calc_Option5!CL$6,'Carbon Prices'!$D$9:$CP$9,0))/1000,0)","v":0},{"$f":"IFERROR(INDEX('Carbon Prices'!$D$10:$CP$15,1,MATCH(Calc_Option5!CM$6,'Carbon Prices'!$D$9:$CP$9,0))/1000,0)","v":0},{"$f":"IFERROR(INDEX('Carbon Prices'!$D$10:$CP$15,1,MATCH(Calc_Option5!CN$6,'Carbon Prices'!$D$9:$CP$9,0))/1000,0)","v":0},{"$f":"IFERROR(INDEX('Carbon Prices'!$D$10:$CP$15,1,MATCH(Calc_Option5!CO$6,'Carbon Prices'!$D$9:$CP$9,0))/1000,0)","v":0},{"$f":"IFERROR(INDEX('Carbon Prices'!$D$10:$CP$15,1,MATCH(Calc_Option5!CP$6,'Carbon Prices'!$D$9:$CP$9,0))/1000,0)","v":0},{"$f":"IFERROR(INDEX('Carbon Prices'!$D$10:$CP$15,1,MATCH(Calc_Option5!CQ$6,'Carbon Prices'!$D$9:$CP$9,0))/1000,0)","v":0},{"$f":"IFERROR(INDEX('Carbon Prices'!$D$10:$CP$15,1,MATCH(Calc_Option5!CR$6,'Carbon Prices'!$D$9:$CP$9,0))/1000,0)","v":0},{"$f":"IFERROR(INDEX('Carbon Prices'!$D$10:$CP$15,1,MATCH(Calc_Option5!CS$6,'Carbon Prices'!$D$9:$CP$9,0))/1000,0)","v":0},{"$f":"IFERROR(INDEX('Carbon Prices'!$D$10:$CP$15,1,MATCH(Calc_Option5!CT$6,'Carbon Prices'!$D$9:$CP$9,0))/1000,0)","v":0},{"$f":"IFERROR(INDEX('Carbon Prices'!$D$10:$CP$15,1,MATCH(Calc_Option5!CU$6,'Carbon Prices'!$D$9:$CP$9,0))/1000,0)","v":0},{"$f":"IFERROR(INDEX('Carbon Prices'!$D$10:$CP$15,1,MATCH(Calc_Option5!CV$6,'Carbon Prices'!$D$9:$CP$9,0))/1000,0)","v":0},{"$f":"IFERROR(INDEX('Carbon Prices'!$D$10:$CP$15,1,MATCH(Calc_Option5!CW$6,'Carbon Prices'!$D$9:$CP$9,0))/1000,0)","v":0},{"$f":"IFERROR(INDEX('Carbon Prices'!$D$10:$CP$15,1,MATCH(Calc_Option5!CX$6,'Carbon Prices'!$D$9:$CP$9,0))/1000,0)","v":0},{"$f":"IFERROR(INDEX('Carbon Prices'!$D$10:$CP$15,1,MATCH(Calc_Option5!CY$6,'Carbon Prices'!$D$9:$CP$9,0))/1000,0)","v":0}]
[null,"Total NON-TRADED","£000's",{"$f":"IFERROR(INDEX('Carbon Prices'!$D$10:$CP$15,4,MATCH(Calc_Option5!D$6,'Carbon Prices'!$D$9:$CP$9,0))/1000,0)","v":3.560998060773117E-2},{"$f":"IFERROR(INDEX('Carbon Prices'!$D$10:$CP$15,4,MATCH(Calc_Option5!E$6,'Carbon Prices'!$D$9:$CP$9,0))/1000,0)","v":3.6144130316847128E-2},{"$f":"IFERROR(INDEX('Carbon Prices'!$D$10:$CP$15,4,MATCH(Calc_Option5!F$6,'Carbon Prices'!$D$9:$CP$9,0))/1000,0)","v":3.6746532488794573E-2},{"$f":"IFERROR(INDEX('Carbon Prices'!$D$10:$CP$15,4,MATCH(Calc_Option5!G$6,'Carbon Prices'!$D$9:$CP$9,0))/1000,0)","v":3.7348934660742031E-2},{"$f":"IFERROR(INDEX('Carbon Prices'!$D$10:$CP$15,4,MATCH(Calc_Option5!H$6,'Carbon Prices'!$D$9:$CP$9,0))/1000,0)","v":3.7951336832689482E-2},{"$f":"IFERROR(INDEX('Carbon Prices'!$D$10:$CP$15,4,MATCH(Calc_Option5!I$6,'Carbon Prices'!$D$9:$CP$9,0))/1000,0)","v":3.8553739004636933E-2},{"$f":"IFERROR(INDEX('Carbon Prices'!$D$10:$CP$15,4,MATCH(Calc_Option5!J$6,'Carbon Prices'!$D$9:$CP$9,0))/1000,0)","v":3.9156141176584384E-2},{"$f":"IFERROR(INDEX('Carbon Prices'!$D$10:$CP$15,4,MATCH(Calc_Option5!K$6,'Carbon Prices'!$D$9:$CP$9,0))/1000,0)","v":3.9758543348531836E-2},{"$f":"IFERROR(INDEX('Carbon Prices'!$D$10:$CP$15,4,MATCH(Calc_Option5!L$6,'Carbon Prices'!$D$9:$CP$9,0))/1000,0)","v":4.0360945520479294E-2},{"$f":"IFERROR(INDEX('Carbon Prices'!$D$10:$CP$15,4,MATCH(Calc_Option5!M$6,'Carbon Prices'!$D$9:$CP$9,0))/1000,0)","v":4.0963347692426738E-2},{"$f":"IFERROR(INDEX('Carbon Prices'!$D$10:$CP$15,4,MATCH(Calc_Option5!N$6,'Carbon Prices'!$D$9:$CP$9,0))/1000,0)","v":4.1565749864374189E-2},{"$f":"IFERROR(INDEX('Carbon Prices'!$D$10:$CP$15,4,MATCH(Calc_Option5!O$6,'Carbon Prices'!$D$9:$CP$9,0))/1000,0)","v":4.2168152036321647E-2},{"$f":"IFERROR(INDEX('Carbon Prices'!$D$10:$CP$15,4,MATCH(Calc_Option5!P$6,'Carbon Prices'!$D$9:$CP$9,0))/1000,0)","v":4.6083766153980084E-2},{"$f":"IFERROR(INDEX('Carbon Prices'!$D$10:$CP$15,4,MATCH(Calc_Option5!Q$6,'Carbon Prices'!$D$9:$CP$9,0))/1000,0)","v":4.999938027163852E-2},{"$f":"IFERROR(INDEX('Carbon Prices'!$D$10:$CP$15,4,MATCH(Calc_Option5!R$6,'Carbon Prices'!$D$9:$CP$9,0))/1000,0)","v":5.3914994389296957E-2},{"$f":"IFERROR(INDEX('Carbon Prices'!$D$10:$CP$15,4,MATCH(Calc_Option5!S$6,'Carbon Prices'!$D$9:$CP$9,0))/1000,0)","v":5.78306085069554E-2},{"$f":"IFERROR(INDEX('Carbon Prices'!$D$10:$CP$15,4,MATCH(Calc_Option5!T$6,'Carbon Prices'!$D$9:$CP$9,0))/1000,0)","v":6.1746222624613836E-2},{"$f":"IFERROR(INDEX('Carbon Prices'!$D$10:$CP$15,4,MATCH(Calc_Option5!U$6,'Carbon Prices'!$D$9:$CP$9,0))/1000,0)","v":6.5661836742272273E-2},{"$f":"IFERROR(INDEX('Carbon Prices'!$D$10:$CP$15,4,MATCH(Calc_Option5!V$6,'Carbon Prices'!$D$9:$CP$9,0))/1000,0)","v":6.9577450859930709E-2},{"$f":"IFERROR(INDEX('Carbon Prices'!$D$10:$CP$15,4,MATCH(Calc_Option5!W$6,'Carbon Prices'!$D$9:$CP$9,0))/1000,0)","v":7.3493064977589145E-2},{"$f":"IFERROR(INDEX('Carbon Prices'!$D$10:$CP$15,4,MATCH(Calc_Option5!X$6,'Carbon Prices'!$D$9:$CP$9,0))/1000,0)","v":7.7408679095247609E-2},{"$f":"IFERROR(INDEX('Carbon Prices'!$D$10:$CP$15,4,MATCH(Calc_Option5!Y$6,'Carbon Prices'!$D$9:$CP$9,0))/1000,0)","v":8.1324293212906046E-2},{"$f":"IFERROR(INDEX('Carbon Prices'!$D$10:$CP$15,4,MATCH(Calc_Option5!Z$6,'Carbon Prices'!$D$9:$CP$9,0))/1000,0)","v":8.5239907330564482E-2},{"$f":"IFERROR(INDEX('Carbon Prices'!$D$10:$CP$15,4,MATCH(Calc_Option5!AA$6,'Carbon Prices'!$D$9:$CP$9,0))/1000,0)","v":8.9155521448222919E-2},{"$f":"IFERROR(INDEX('Carbon Prices'!$D$10:$CP$15,4,MATCH(Calc_Option5!AB$6,'Carbon Prices'!$D$9:$CP$9,0))/1000,0)","v":9.3071135565881355E-2},{"$f":"IFERROR(INDEX('Carbon Prices'!$D$10:$CP$15,4,MATCH(Calc_Option5!AC$6,'Carbon Prices'!$D$9:$CP$9,0))/1000,0)","v":9.6986749683539791E-2},{"$f":"IFERROR(INDEX('Carbon Prices'!$D$10:$CP$15,4,MATCH(Calc_Option5!AD$6,'Carbon Prices'!$D$9:$CP$9,0))/1000,0)","v":0.10090236380119821},{"$f":"IFERROR(INDEX('Carbon Prices'!$D$10:$CP$15,4,MATCH(Calc_Option5!AE$6,'Carbon Prices'!$D$9:$CP$9,0))/1000,0)","v":0.10481797791885665},{"$f":"IFERROR(INDEX('Carbon Prices'!$D$10:$CP$15,4,MATCH(Calc_Option5!AF$6,'Carbon Prices'!$D$9:$CP$9,0))/1000,0)","v":0.1087335920365151},{"$f":"IFERROR(INDEX('Carbon Prices'!$D$10:$CP$15,4,MATCH(Calc_Option5!AG$6,'Carbon Prices'!$D$9:$CP$9,0))/1000,0)","v":0.11264920615417354},{"$f":"IFERROR(INDEX('Carbon Prices'!$D$10:$CP$15,4,MATCH(Calc_Option5!AH$6,'Carbon Prices'!$D$9:$CP$9,0))/1000,0)","v":0.11656482027183197},{"$f":"IFERROR(INDEX('Carbon Prices'!$D$10:$CP$15,4,MATCH(Calc_Option5!AI$6,'Carbon Prices'!$D$9:$CP$9,0))/1000,0)","v":0},{"$f":"IFERROR(INDEX('Carbon Prices'!$D$10:$CP$15,4,MATCH(Calc_Option5!AJ$6,'Carbon Prices'!$D$9:$CP$9,0))/1000,0)","v":0},{"$f":"IFERROR(INDEX('Carbon Prices'!$D$10:$CP$15,4,MATCH(Calc_Option5!AK$6,'Carbon Prices'!$D$9:$CP$9,0))/1000,0)","v":0},{"$f":"IFERROR(INDEX('Carbon Prices'!$D$10:$CP$15,4,MATCH(Calc_Option5!AL$6,'Carbon Prices'!$D$9:$CP$9,0))/1000,0)","v":0},{"$f":"IFERROR(INDEX('Carbon Prices'!$D$10:$CP$15,4,MATCH(Calc_Option5!AM$6,'Carbon Prices'!$D$9:$CP$9,0))/1000,0)","v":0},{"$f":"IFERROR(INDEX('Carbon Prices'!$D$10:$CP$15,4,MATCH(Calc_Option5!AN$6,'Carbon Prices'!$D$9:$CP$9,0))/1000,0)","v":0},{"$f":"IFERROR(INDEX('Carbon Prices'!$D$10:$CP$15,4,MATCH(Calc_Option5!AO$6,'Carbon Prices'!$D$9:$CP$9,0))/1000,0)","v":0},{"$f":"IFERROR(INDEX('Carbon Prices'!$D$10:$CP$15,4,MATCH(Calc_Option5!AP$6,'Carbon Prices'!$D$9:$CP$9,0))/1000,0)","v":0},{"$f":"IFERROR(INDEX('Carbon Prices'!$D$10:$CP$15,4,MATCH(Calc_Option5!AQ$6,'Carbon Prices'!$D$9:$CP$9,0))/1000,0)","v":0},{"$f":"IFERROR(INDEX('Carbon Prices'!$D$10:$CP$15,4,MATCH(Calc_Option5!AR$6,'Carbon Prices'!$D$9:$CP$9,0))/1000,0)","v":0},{"$f":"IFERROR(INDEX('Carbon Prices'!$D$10:$CP$15,4,MATCH(Calc_Option5!AS$6,'Carbon Prices'!$D$9:$CP$9,0))/1000,0)","v":0},{"$f":"IFERROR(INDEX('Carbon Prices'!$D$10:$CP$15,4,MATCH(Calc_Option5!AT$6,'Carbon Prices'!$D$9:$CP$9,0))/1000,0)","v":0},{"$f":"IFERROR(INDEX('Carbon Prices'!$D$10:$CP$15,4,MATCH(Calc_Option5!AU$6,'Carbon Prices'!$D$9:$CP$9,0))/1000,0)","v":0},{"$f":"IFERROR(INDEX('Carbon Prices'!$D$10:$CP$15,4,MATCH(Calc_Option5!AV$6,'Carbon Prices'!$D$9:$CP$9,0))/1000,0)","v":0},{"$f":"IFERROR(INDEX('Carbon Prices'!$D$10:$CP$15,4,MATCH(Calc_Option5!AW$6,'Carbon Prices'!$D$9:$CP$9,0))/1000,0)","v":0},{"$f":"IFERROR(INDEX('Carbon Prices'!$D$10:$CP$15,4,MATCH(Calc_Option5!AX$6,'Carbon Prices'!$D$9:$CP$9,0))/1000,0)","v":0},{"$f":"IFERROR(INDEX('Carbon Prices'!$D$10:$CP$15,4,MATCH(Calc_Option5!AY$6,'Carbon Prices'!$D$9:$CP$9,0))/1000,0)","v":0},{"$f":"IFERROR(INDEX('Carbon Prices'!$D$10:$CP$15,4,MATCH(Calc_Option5!AZ$6,'Carbon Prices'!$D$9:$CP$9,0))/1000,0)","v":0},{"$f":"IFERROR(INDEX('Carbon Prices'!$D$10:$CP$15,4,MATCH(Calc_Option5!BA$6,'Carbon Prices'!$D$9:$CP$9,0))/1000,0)","v":0},{"$f":"IFERROR(INDEX('Carbon Prices'!$D$10:$CP$15,4,MATCH(Calc_Option5!BB$6,'Carbon Prices'!$D$9:$CP$9,0))/1000,0)","v":0},{"$f":"IFERROR(INDEX('Carbon Prices'!$D$10:$CP$15,4,MATCH(Calc_Option5!BC$6,'Carbon Prices'!$D$9:$CP$9,0))/1000,0)","v":0},{"$f":"IFERROR(INDEX('Carbon Prices'!$D$10:$CP$15,4,MATCH(Calc_Option5!BD$6,'Carbon Prices'!$D$9:$CP$9,0))/1000,0)","v":0},{"$f":"IFERROR(INDEX('Carbon Prices'!$D$10:$CP$15,4,MATCH(Calc_Option5!BE$6,'Carbon Prices'!$D$9:$CP$9,0))/1000,0)","v":0},{"$f":"IFERROR(INDEX('Carbon Prices'!$D$10:$CP$15,4,MATCH(Calc_Option5!BF$6,'Carbon Prices'!$D$9:$CP$9,0))/1000,0)","v":0},{"$f":"IFERROR(INDEX('Carbon Prices'!$D$10:$CP$15,4,MATCH(Calc_Option5!BG$6,'Carbon Prices'!$D$9:$CP$9,0))/1000,0)","v":0},{"$f":"IFERROR(INDEX('Carbon Prices'!$D$10:$CP$15,4,MATCH(Calc_Option5!BH$6,'Carbon Prices'!$D$9:$CP$9,0))/1000,0)","v":0},{"$f":"IFERROR(INDEX('Carbon Prices'!$D$10:$CP$15,4,MATCH(Calc_Option5!BI$6,'Carbon Prices'!$D$9:$CP$9,0))/1000,0)","v":0},{"$f":"IFERROR(INDEX('Carbon Prices'!$D$10:$CP$15,4,MATCH(Calc_Option5!BJ$6,'Carbon Prices'!$D$9:$CP$9,0))/1000,0)","v":0},{"$f":"IFERROR(INDEX('Carbon Prices'!$D$10:$CP$15,4,MATCH(Calc_Option5!BK$6,'Carbon Prices'!$D$9:$CP$9,0))/1000,0)","v":0},{"$f":"IFERROR(INDEX('Carbon Prices'!$D$10:$CP$15,4,MATCH(Calc_Option5!BL$6,'Carbon Prices'!$D$9:$CP$9,0))/1000,0)","v":0},{"$f":"IFERROR(INDEX('Carbon Prices'!$D$10:$CP$15,4,MATCH(Calc_Option5!BM$6,'Carbon Prices'!$D$9:$CP$9,0))/1000,0)","v":0},{"$f":"IFERROR(INDEX('Carbon Prices'!$D$10:$CP$15,4,MATCH(Calc_Option5!BN$6,'Carbon Prices'!$D$9:$CP$9,0))/1000,0)","v":0},{"$f":"IFERROR(INDEX('Carbon Prices'!$D$10:$CP$15,4,MATCH(Calc_Option5!BO$6,'Carbon Prices'!$D$9:$CP$9,0))/1000,0)","v":0},{"$f":"IFERROR(INDEX('Carbon Prices'!$D$10:$CP$15,4,MATCH(Calc_Option5!BP$6,'Carbon Prices'!$D$9:$CP$9,0))/1000,0)","v":0},{"$f":"IFERROR(INDEX('Carbon Prices'!$D$10:$CP$15,4,MATCH(Calc_Option5!BQ$6,'Carbon Prices'!$D$9:$CP$9,0))/1000,0)","v":0},{"$f":"IFERROR(INDEX('Carbon Prices'!$D$10:$CP$15,4,MATCH(Calc_Option5!BR$6,'Carbon Prices'!$D$9:$CP$9,0))/1000,0)","v":0},{"$f":"IFERROR(INDEX('Carbon Prices'!$D$10:$CP$15,4,MATCH(Calc_Option5!BS$6,'Carbon Prices'!$D$9:$CP$9,0))/1000,0)","v":0},{"$f":"IFERROR(INDEX('Carbon Prices'!$D$10:$CP$15,4,MATCH(Calc_Option5!BT$6,'Carbon Prices'!$D$9:$CP$9,0))/1000,0)","v":0},{"$f":"IFERROR(INDEX('Carbon Prices'!$D$10:$CP$15,4,MATCH(Calc_Option5!BU$6,'Carbon Prices'!$D$9:$CP$9,0))/1000,0)","v":0},{"$f":"IFERROR(INDEX('Carbon Prices'!$D$10:$CP$15,4,MATCH(Calc_Option5!BV$6,'Carbon Prices'!$D$9:$CP$9,0))/1000,0)","v":0},{"$f":"IFERROR(INDEX('Carbon Prices'!$D$10:$CP$15,4,MATCH(Calc_Option5!BW$6,'Carbon Prices'!$D$9:$CP$9,0))/1000,0)","v":0},{"$f":"IFERROR(INDEX('Carbon Prices'!$D$10:$CP$15,4,MATCH(Calc_Option5!BX$6,'Carbon Prices'!$D$9:$CP$9,0))/1000,0)","v":0},{"$f":"IFERROR(INDEX('Carbon Prices'!$D$10:$CP$15,4,MATCH(Calc_Option5!BY$6,'Carbon Prices'!$D$9:$CP$9,0))/1000,0)","v":0},{"$f":"IFERROR(INDEX('Carbon Prices'!$D$10:$CP$15,4,MATCH(Calc_Option5!BZ$6,'Carbon Prices'!$D$9:$CP$9,0))/1000,0)","v":0},{"$f":"IFERROR(INDEX('Carbon Prices'!$D$10:$CP$15,4,MATCH(Calc_Option5!CA$6,'Carbon Prices'!$D$9:$CP$9,0))/1000,0)","v":0},{"$f":"IFERROR(INDEX('Carbon Prices'!$D$10:$CP$15,4,MATCH(Calc_Option5!CB$6,'Carbon Prices'!$D$9:$CP$9,0))/1000,0)","v":0},{"$f":"IFERROR(INDEX('Carbon Prices'!$D$10:$CP$15,4,MATCH(Calc_Option5!CC$6,'Carbon Prices'!$D$9:$CP$9,0))/1000,0)","v":0},{"$f":"IFERROR(INDEX('Carbon Prices'!$D$10:$CP$15,4,MATCH(Calc_Option5!CD$6,'Carbon Prices'!$D$9:$CP$9,0))/1000,0)","v":0},{"$f":"IFERROR(INDEX('Carbon Prices'!$D$10:$CP$15,4,MATCH(Calc_Option5!CE$6,'Carbon Prices'!$D$9:$CP$9,0))/1000,0)","v":0},{"$f":"IFERROR(INDEX('Carbon Prices'!$D$10:$CP$15,4,MATCH(Calc_Option5!CF$6,'Carbon Prices'!$D$9:$CP$9,0))/1000,0)","v":0},{"$f":"IFERROR(INDEX('Carbon Prices'!$D$10:$CP$15,4,MATCH(Calc_Option5!CG$6,'Carbon Prices'!$D$9:$CP$9,0))/1000,0)","v":0},{"$f":"IFERROR(INDEX('Carbon Prices'!$D$10:$CP$15,4,MATCH(Calc_Option5!CH$6,'Carbon Prices'!$D$9:$CP$9,0))/1000,0)","v":0},{"$f":"IFERROR(INDEX('Carbon Prices'!$D$10:$CP$15,4,MATCH(Calc_Option5!CI$6,'Carbon Prices'!$D$9:$CP$9,0))/1000,0)","v":0},{"$f":"IFERROR(INDEX('Carbon Prices'!$D$10:$CP$15,4,MATCH(Calc_Option5!CJ$6,'Carbon Prices'!$D$9:$CP$9,0))/1000,0)","v":0},{"$f":"IFERROR(INDEX('Carbon Prices'!$D$10:$CP$15,4,MATCH(Calc_Option5!CK$6,'Carbon Prices'!$D$9:$CP$9,0))/1000,0)","v":0},{"$f":"IFERROR(INDEX('Carbon Prices'!$D$10:$CP$15,4,MATCH(Calc_Option5!CL$6,'Carbon Prices'!$D$9:$CP$9,0))/1000,0)","v":0},{"$f":"IFERROR(INDEX('Carbon Prices'!$D$10:$CP$15,4,MATCH(Calc_Option5!CM$6,'Carbon Prices'!$D$9:$CP$9,0))/1000,0)","v":0},{"$f":"IFERROR(INDEX('Carbon Prices'!$D$10:$CP$15,4,MATCH(Calc_Option5!CN$6,'Carbon Prices'!$D$9:$CP$9,0))/1000,0)","v":0},{"$f":"IFERROR(INDEX('Carbon Prices'!$D$10:$CP$15,4,MATCH(Calc_Option5!CO$6,'Carbon Prices'!$D$9:$CP$9,0))/1000,0)","v":0},{"$f":"IFERROR(INDEX('Carbon Prices'!$D$10:$CP$15,4,MATCH(Calc_Option5!CP$6,'Carbon Prices'!$D$9:$CP$9,0))/1000,0)","v":0},{"$f":"IFERROR(INDEX('Carbon Prices'!$D$10:$CP$15,4,MATCH(Calc_Option5!CQ$6,'Carbon Prices'!$D$9:$CP$9,0))/1000,0)","v":0},{"$f":"IFERROR(INDEX('Carbon Prices'!$D$10:$CP$15,4,MATCH(Calc_Option5!CR$6,'Carbon Prices'!$D$9:$CP$9,0))/1000,0)","v":0},{"$f":"IFERROR(INDEX('Carbon Prices'!$D$10:$CP$15,4,MATCH(Calc_Option5!CS$6,'Carbon Prices'!$D$9:$CP$9,0))/1000,0)","v":0},{"$f":"IFERROR(INDEX('Carbon Prices'!$D$10:$CP$15,4,MATCH(Calc_Option5!CT$6,'Carbon Prices'!$D$9:$CP$9,0))/1000,0)","v":0},{"$f":"IFERROR(INDEX('Carbon Prices'!$D$10:$CP$15,4,MATCH(Calc_Option5!CU$6,'Carbon Prices'!$D$9:$CP$9,0))/1000,0)","v":0},{"$f":"IFERROR(INDEX('Carbon Prices'!$D$10:$CP$15,4,MATCH(Calc_Option5!CV$6,'Carbon Prices'!$D$9:$CP$9,0))/1000,0)","v":0},{"$f":"IFERROR(INDEX('Carbon Prices'!$D$10:$CP$15,4,MATCH(Calc_Option5!CW$6,'Carbon Prices'!$D$9:$CP$9,0))/1000,0)","v":0},{"$f":"IFERROR(INDEX('Carbon Prices'!$D$10:$CP$15,4,MATCH(Calc_Option5!CX$6,'Carbon Prices'!$D$9:$CP$9,0))/1000,0)","v":0},{"$f":"IFERROR(INDEX('Carbon Prices'!$D$10:$CP$15,4,MATCH(Calc_Option5!CY$6,'Carbon Prices'!$D$9:$CP$9,0))/1000,0)","v":0}]
[null,"Discounted total","£000's",{"$f":"(D118*D120)+(D119*D121)*D$7","v":0},{"$f":"(E118*E120)+(E119*E121)*E$7","v":0},0,0,0,0,0,0,0,0,0,0,0,0,0,0,0,0,0,0,0,0,0,0,0,0,0,0,0,0,0,0,0,0,0,0,0,0,0,0,0,0,0,0,0,0,0,0,0,0,0,0,0,0,0,0,0,0,0,0,0,0,0,0,0,{"$f":"(BQ118*BQ120)+(BQ119*BQ121)*BQ$7","v":0},0,0,0,0,0,0,0,0,0,0,0,0,0,0,0,0,0,0,0,0,0,0,0,0,0,0,0,0,0,0,0,0,0,0]
[]
[]
[null,"High values"]
[]
[null,"Energy Consumption"]
[null,"Electricity","£000's",{"$f":"IFERROR('Data Input - Option 5'!H84*INDEX('Energy Prices'!$F$26:$CR$31,MATCH($B128,'Energy Prices'!$C$26:$C$31,0),MATCH(Calc_Option5!D$6,'Energy Prices'!$F$11:$CR$11,0))/100000,0)","v":0},{"$f":"IFERROR('Data Input - Option 5'!I84*INDEX('Energy Prices'!$F$26:$CR$31,MATCH($B128,'Energy Prices'!$C$26:$C$31,0),MATCH(Calc_Option5!E$6,'Energy Prices'!$F$11:$CR$11,0))/100000,0)","v":0},{"$f":"IFERROR('Data Input - Option 5'!J84*INDEX('Energy Prices'!$F$26:$CR$31,MATCH($B128,'Energy Prices'!$C$26:$C$31,0),MATCH(Calc_Option5!F$6,'Energy Prices'!$F$11:$CR$11,0))/100000,0)","v":0},{"$f":"IFERROR('Data Input - Option 5'!K84*INDEX('Energy Prices'!$F$26:$CR$31,MATCH($B128,'Energy Prices'!$C$26:$C$31,0),MATCH(Calc_Option5!G$6,'Energy Prices'!$F$11:$CR$11,0))/100000,0)","v":0},{"$f":"IFERROR('Data Input - Option 5'!L84*INDEX('Energy Prices'!$F$26:$CR$31,MATCH($B128,'Energy Prices'!$C$26:$C$31,0),MATCH(Calc_Option5!H$6,'Energy Prices'!$F$11:$CR$11,0))/100000,0)","v":0},{"$f":"IFERROR('Data Input - Option 5'!M84*INDEX('Energy Prices'!$F$26:$CR$31,MATCH($B128,'Energy Prices'!$C$26:$C$31,0),MATCH(Calc_Option5!I$6,'Energy Prices'!$F$11:$CR$11,0))/100000,0)","v":0},{"$f":"IFERROR('Data Input - Option 5'!N84*INDEX('Energy Prices'!$F$26:$CR$31,MATCH($B128,'Energy Prices'!$C$26:$C$31,0),MATCH(Calc_Option5!J$6,'Energy Prices'!$F$11:$CR$11,0))/100000,0)","v":0},{"$f":"IFERROR('Data Input - Option 5'!O84*INDEX('Energy Prices'!$F$26:$CR$31,MATCH($B128,'Energy Prices'!$C$26:$C$31,0),MATCH(Calc_Option5!K$6,'Energy Prices'!$F$11:$CR$11,0))/100000,0)","v":0},{"$f":"IFERROR('Data Input - Option 5'!P84*INDEX('Energy Prices'!$F$26:$CR$31,MATCH($B128,'Energy Prices'!$C$26:$C$31,0),MATCH(Calc_Option5!L$6,'Energy Prices'!$F$11:$CR$11,0))/100000,0)","v":0},{"$f":"IFERROR('Data Input - Option 5'!Q84*INDEX('Energy Prices'!$F$26:$CR$31,MATCH($B128,'Energy Prices'!$C$26:$C$31,0),MATCH(Calc_Option5!M$6,'Energy Prices'!$F$11:$CR$11,0))/100000,0)","v":0},{"$f":"IFERROR('Data Input - Option 5'!R84*INDEX('Energy Prices'!$F$26:$CR$31,MATCH($B128,'Energy Prices'!$C$26:$C$31,0),MATCH(Calc_Option5!N$6,'Energy Prices'!$F$11:$CR$11,0))/100000,0)","v":0},{"$f":"IFERROR('Data Input - Option 5'!S84*INDEX('Energy Prices'!$F$26:$CR$31,MATCH($B128,'Energy Prices'!$C$26:$C$31,0),MATCH(Calc_Option5!O$6,'Energy Prices'!$F$11:$CR$11,0))/100000,0)","v":0},{"$f":"IFERROR('Data Input - Option 5'!T84*INDEX('Energy Prices'!$F$26:$CR$31,MATCH($B128,'Energy Prices'!$C$26:$C$31,0),MATCH(Calc_Option5!P$6,'Energy Prices'!$F$11:$CR$11,0))/100000,0)","v":0},{"$f":"IFERROR('Data Input - Option 5'!U84*INDEX('Energy Prices'!$F$26:$CR$31,MATCH($B128,'Energy Prices'!$C$26:$C$31,0),MATCH(Calc_Option5!Q$6,'Energy Prices'!$F$11:$CR$11,0))/100000,0)","v":0},{"$f":"IFERROR('Data Input - Option 5'!V84*INDEX('Energy Prices'!$F$26:$CR$31,MATCH($B128,'Energy Prices'!$C$26:$C$31,0),MATCH(Calc_Option5!R$6,'Energy Prices'!$F$11:$CR$11,0))/100000,0)","v":0},{"$f":"IFERROR('Data Input - Option 5'!W84*INDEX('Energy Prices'!$F$26:$CR$31,MATCH($B128,'Energy Prices'!$C$26:$C$31,0),MATCH(Calc_Option5!S$6,'Energy Prices'!$F$11:$CR$11,0))/100000,0)","v":0},{"$f":"IFERROR('Data Input - Option 5'!X84*INDEX('Energy Prices'!$F$26:$CR$31,MATCH($B128,'Energy Prices'!$C$26:$C$31,0),MATCH(Calc_Option5!T$6,'Energy Prices'!$F$11:$CR$11,0))/100000,0)","v":0},{"$f":"IFERROR('Data Input - Option 5'!Y84*INDEX('Energy Prices'!$F$26:$CR$31,MATCH($B128,'Energy Prices'!$C$26:$C$31,0),MATCH(Calc_Option5!U$6,'Energy Prices'!$F$11:$CR$11,0))/100000,0)","v":0},{"$f":"IFERROR('Data Input - Option 5'!Z84*INDEX('Energy Prices'!$F$26:$CR$31,MATCH($B128,'Energy Prices'!$C$26:$C$31,0),MATCH(Calc_Option5!V$6,'Energy Prices'!$F$11:$CR$11,0))/100000,0)","v":0},{"$f":"IFERROR('Data Input - Option 5'!AA84*INDEX('Energy Prices'!$F$26:$CR$31,MATCH($B128,'Energy Prices'!$C$26:$C$31,0),MATCH(Calc_Option5!W$6,'Energy Prices'!$F$11:$CR$11,0))/100000,0)","v":0},{"$f":"IFERROR('Data Input - Option 5'!AB84*INDEX('Energy Prices'!$F$26:$CR$31,MATCH($B128,'Energy Prices'!$C$26:$C$31,0),MATCH(Calc_Option5!X$6,'Energy Prices'!$F$11:$CR$11,0))/100000,0)","v":0},{"$f":"IFERROR('Data Input - Option 5'!AC84*INDEX('Energy Prices'!$F$26:$CR$31,MATCH($B128,'Energy Prices'!$C$26:$C$31,0),MATCH(Calc_Option5!Y$6,'Energy Prices'!$F$11:$CR$11,0))/100000,0)","v":0},{"$f":"IFERROR('Data Input - Option 5'!AD84*INDEX('Energy Prices'!$F$26:$CR$31,MATCH($B128,'Energy Prices'!$C$26:$C$31,0),MATCH(Calc_Option5!Z$6,'Energy Prices'!$F$11:$CR$11,0))/100000,0)","v":0},{"$f":"IFERROR('Data Input - Option 5'!AE84*INDEX('Energy Prices'!$F$26:$CR$31,MATCH($B128,'Energy Prices'!$C$26:$C$31,0),MATCH(Calc_Option5!AA$6,'Energy Prices'!$F$11:$CR$11,0))/100000,0)","v":0},{"$f":"IFERROR('Data Input - Option 5'!AF84*INDEX('Energy Prices'!$F$26:$CR$31,MATCH($B128,'Energy Prices'!$C$26:$C$31,0),MATCH(Calc_Option5!AB$6,'Energy Prices'!$F$11:$CR$11,0))/100000,0)","v":0},{"$f":"IFERROR('Data Input - Option 5'!AG84*INDEX('Energy Prices'!$F$26:$CR$31,MATCH($B128,'Energy Prices'!$C$26:$C$31,0),MATCH(Calc_Option5!AC$6,'Energy Prices'!$F$11:$CR$11,0))/100000,0)","v":0},{"$f":"IFERROR('Data Input - Option 5'!AH84*INDEX('Energy Prices'!$F$26:$CR$31,MATCH($B128,'Energy Prices'!$C$26:$C$31,0),MATCH(Calc_Option5!AD$6,'Energy Prices'!$F$11:$CR$11,0))/100000,0)","v":0},{"$f":"IFERROR('Data Input - Option 5'!AI84*INDEX('Energy Prices'!$F$26:$CR$31,MATCH($B128,'Energy Prices'!$C$26:$C$31,0),MATCH(Calc_Option5!AE$6,'Energy Prices'!$F$11:$CR$11,0))/100000,0)","v":0},{"$f":"IFERROR('Data Input - Option 5'!AJ84*INDEX('Energy Prices'!$F$26:$CR$31,MATCH($B128,'Energy Prices'!$C$26:$C$31,0),MATCH(Calc_Option5!AF$6,'Energy Prices'!$F$11:$CR$11,0))/100000,0)","v":0},{"$f":"IFERROR('Data Input - Option 5'!AK84*INDEX('Energy Prices'!$F$26:$CR$31,MATCH($B128,'Energy Prices'!$C$26:$C$31,0),MATCH(Calc_Option5!AG$6,'Energy Prices'!$F$11:$CR$11,0))/100000,0)","v":0},{"$f":"IFERROR('Data Input - Option 5'!AL84*INDEX('Energy Prices'!$F$26:$CR$31,MATCH($B128,'Energy Prices'!$C$26:$C$31,0),MATCH(Calc_Option5!AH$6,'Energy Prices'!$F$11:$CR$11,0))/100000,0)","v":0},{"$f":"IFERROR('Data Input - Option 5'!AM84*INDEX('Energy Prices'!$F$26:$CR$31,MATCH($B128,'Energy Prices'!$C$26:$C$31,0),MATCH(Calc_Option5!AI$6,'Energy Prices'!$F$11:$CR$11,0))/100000,0)","v":0},{"$f":"IFERROR('Data Input - Option 5'!AN84*INDEX('Energy Prices'!$F$26:$CR$31,MATCH($B128,'Energy Prices'!$C$26:$C$31,0),MATCH(Calc_Option5!AJ$6,'Energy Prices'!$F$11:$CR$11,0))/100000,0)","v":0},{"$f":"IFERROR('Data Input - Option 5'!AO84*INDEX('Energy Prices'!$F$26:$CR$31,MATCH($B128,'Energy Prices'!$C$26:$C$31,0),MATCH(Calc_Option5!AK$6,'Energy Prices'!$F$11:$CR$11,0))/100000,0)","v":0},{"$f":"IFERROR('Data Input - Option 5'!AP84*INDEX('Energy Prices'!$F$26:$CR$31,MATCH($B128,'Energy Prices'!$C$26:$C$31,0),MATCH(Calc_Option5!AL$6,'Energy Prices'!$F$11:$CR$11,0))/100000,0)","v":0},{"$f":"IFERROR('Data Input - Option 5'!AQ84*INDEX('Energy Prices'!$F$26:$CR$31,MATCH($B128,'Energy Prices'!$C$26:$C$31,0),MATCH(Calc_Option5!AM$6,'Energy Prices'!$F$11:$CR$11,0))/100000,0)","v":0},{"$f":"IFERROR('Data Input - Option 5'!AR84*INDEX('Energy Prices'!$F$26:$CR$31,MATCH($B128,'Energy Prices'!$C$26:$C$31,0),MATCH(Calc_Option5!AN$6,'Energy Prices'!$F$11:$CR$11,0))/100000,0)","v":0},{"$f":"IFERROR('Data Input - Option 5'!AS84*INDEX('Energy Prices'!$F$26:$CR$31,MATCH($B128,'Energy Prices'!$C$26:$C$31,0),MATCH(Calc_Option5!AO$6,'Energy Prices'!$F$11:$CR$11,0))/100000,0)","v":0},{"$f":"IFERROR('Data Input - Option 5'!AT84*INDEX('Energy Prices'!$F$26:$CR$31,MATCH($B128,'Energy Prices'!$C$26:$C$31,0),MATCH(Calc_Option5!AP$6,'Energy Prices'!$F$11:$CR$11,0))/100000,0)","v":0},{"$f":"IFERROR('Data Input - Option 5'!AU84*INDEX('Energy Prices'!$F$26:$CR$31,MATCH($B128,'Energy Prices'!$C$26:$C$31,0),MATCH(Calc_Option5!AQ$6,'Energy Prices'!$F$11:$CR$11,0))/100000,0)","v":0},{"$f":"IFERROR('Data Input - Option 5'!AV84*INDEX('Energy Prices'!$F$26:$CR$31,MATCH($B128,'Energy Prices'!$C$26:$C$31,0),MATCH(Calc_Option5!AR$6,'Energy Prices'!$F$11:$CR$11,0))/100000,0)","v":0},{"$f":"IFERROR('Data Input - Option 5'!AW84*INDEX('Energy Prices'!$F$26:$CR$31,MATCH($B128,'Energy Prices'!$C$26:$C$31,0),MATCH(Calc_Option5!AS$6,'Energy Prices'!$F$11:$CR$11,0))/100000,0)","v":0},{"$f":"IFERROR('Data Input - Option 5'!AX84*INDEX('Energy Prices'!$F$26:$CR$31,MATCH($B128,'Energy Prices'!$C$26:$C$31,0),MATCH(Calc_Option5!AT$6,'Energy Prices'!$F$11:$CR$11,0))/100000,0)","v":0},{"$f":"IFERROR('Data Input - Option 5'!AY84*INDEX('Energy Prices'!$F$26:$CR$31,MATCH($B128,'Energy Prices'!$C$26:$C$31,0),MATCH(Calc_Option5!AU$6,'Energy Prices'!$F$11:$CR$11,0))/100000,0)","v":0},{"$f":"IFERROR('Data Input - Option 5'!AZ84*INDEX('Energy Prices'!$F$26:$CR$31,MATCH($B128,'Energy Prices'!$C$26:$C$31,0),MATCH(Calc_Option5!AV$6,'Energy Prices'!$F$11:$CR$11,0))/100000,0)","v":0},{"$f":"IFERROR('Data Input - Option 5'!BA84*INDEX('Energy Prices'!$F$26:$CR$31,MATCH($B128,'Energy Prices'!$C$26:$C$31,0),MATCH(Calc_Option5!AW$6,'Energy Prices'!$F$11:$CR$11,0))/100000,0)","v":0},{"$f":"IFERROR('Data Input - Option 5'!BB84*INDEX('Energy Prices'!$F$26:$CR$31,MATCH($B128,'Energy Prices'!$C$26:$C$31,0),MATCH(Calc_Option5!AX$6,'Energy Prices'!$F$11:$CR$11,0))/100000,0)","v":0},{"$f":"IFERROR('Data Input - Option 5'!BC84*INDEX('Energy Prices'!$F$26:$CR$31,MATCH($B128,'Energy Prices'!$C$26:$C$31,0),MATCH(Calc_Option5!AY$6,'Energy Prices'!$F$11:$CR$11,0))/100000,0)","v":0},{"$f":"IFERROR('Data Input - Option 5'!BD84*INDEX('Energy Prices'!$F$26:$CR$31,MATCH($B128,'Energy Prices'!$C$26:$C$31,0),MATCH(Calc_Option5!AZ$6,'Energy Prices'!$F$11:$CR$11,0))/100000,0)","v":0},{"$f":"IFERROR('Data Input - Option 5'!BE84*INDEX('Energy Prices'!$F$26:$CR$31,MATCH($B128,'Energy Prices'!$C$26:$C$31,0),MATCH(Calc_Option5!BA$6,'Energy Prices'!$F$11:$CR$11,0))/100000,0)","v":0},{"$f":"IFERROR('Data Input - Option 5'!BF84*INDEX('Energy Prices'!$F$26:$CR$31,MATCH($B128,'Energy Prices'!$C$26:$C$31,0),MATCH(Calc_Option5!BB$6,'Energy Prices'!$F$11:$CR$11,0))/100000,0)","v":0},{"$f":"IFERROR('Data Input - Option 5'!BG84*INDEX('Energy Prices'!$F$26:$CR$31,MATCH($B128,'Energy Prices'!$C$26:$C$31,0),MATCH(Calc_Option5!BC$6,'Energy Prices'!$F$11:$CR$11,0))/100000,0)","v":0},{"$f":"IFERROR('Data Input - Option 5'!BH84*INDEX('Energy Prices'!$F$26:$CR$31,MATCH($B128,'Energy Prices'!$C$26:$C$31,0),MATCH(Calc_Option5!BD$6,'Energy Prices'!$F$11:$CR$11,0))/100000,0)","v":0},{"$f":"IFERROR('Data Input - Option 5'!BI84*INDEX('Energy Prices'!$F$26:$CR$31,MATCH($B128,'Energy Prices'!$C$26:$C$31,0),MATCH(Calc_Option5!BE$6,'Energy Prices'!$F$11:$CR$11,0))/100000,0)","v":0},{"$f":"IFERROR('Data Input - Option 5'!BJ84*INDEX('Energy Prices'!$F$26:$CR$31,MATCH($B128,'Energy Prices'!$C$26:$C$31,0),MATCH(Calc_Option5!BF$6,'Energy Prices'!$F$11:$CR$11,0))/100000,0)","v":0},{"$f":"IFERROR('Data Input - Option 5'!BK84*INDEX('Energy Prices'!$F$26:$CR$31,MATCH($B128,'Energy Prices'!$C$26:$C$31,0),MATCH(Calc_Option5!BG$6,'Energy Prices'!$F$11:$CR$11,0))/100000,0)","v":0},{"$f":"IFERROR('Data Input - Option 5'!BL84*INDEX('Energy Prices'!$F$26:$CR$31,MATCH($B128,'Energy Prices'!$C$26:$C$31,0),MATCH(Calc_Option5!BH$6,'Energy Prices'!$F$11:$CR$11,0))/100000,0)","v":0},{"$f":"IFERROR('Data Input - Option 5'!BM84*INDEX('Energy Prices'!$F$26:$CR$31,MATCH($B128,'Energy Prices'!$C$26:$C$31,0),MATCH(Calc_Option5!BI$6,'Energy Prices'!$F$11:$CR$11,0))/100000,0)","v":0},{"$f":"IFERROR('Data Input - Option 5'!BN84*INDEX('Energy Prices'!$F$26:$CR$31,MATCH($B128,'Energy Prices'!$C$26:$C$31,0),MATCH(Calc_Option5!BJ$6,'Energy Prices'!$F$11:$CR$11,0))/100000,0)","v":0},{"$f":"IFERROR('Data Input - Option 5'!BO84*INDEX('Energy Prices'!$F$26:$CR$31,MATCH($B128,'Energy Prices'!$C$26:$C$31,0),MATCH(Calc_Option5!BK$6,'Energy Prices'!$F$11:$CR$11,0))/100000,0)","v":0},{"$f":"IFERROR('Data Input - Option 5'!BP84*INDEX('Energy Prices'!$F$26:$CR$31,MATCH($B128,'Energy Prices'!$C$26:$C$31,0),MATCH(Calc_Option5!BL$6,'Energy Prices'!$F$11:$CR$11,0))/100000,0)","v":0},{"$f":"IFERROR('Data Input - Option 5'!BQ84*INDEX('Energy Prices'!$F$26:$CR$31,MATCH($B128,'Energy Prices'!$C$26:$C$31,0),MATCH(Calc_Option5!BM$6,'Energy Prices'!$F$11:$CR$11,0))/100000,0)","v":0},{"$f":"IFERROR('Data Input - Option 5'!BR84*INDEX('Energy Prices'!$F$26:$CR$31,MATCH($B128,'Energy Prices'!$C$26:$C$31,0),MATCH(Calc_Option5!BN$6,'Energy Prices'!$F$11:$CR$11,0))/100000,0)","v":0},{"$f":"IFERROR('Data Input - Option 5'!BS84*INDEX('Energy Prices'!$F$26:$CR$31,MATCH($B128,'Energy Prices'!$C$26:$C$31,0),MATCH(Calc_Option5!BO$6,'Energy Prices'!$F$11:$CR$11,0))/100000,0)","v":0},{"$f":"IFERROR('Data Input - Option 5'!BT84*INDEX('Energy Prices'!$F$26:$CR$31,MATCH($B128,'Energy Prices'!$C$26:$C$31,0),MATCH(Calc_Option5!BP$6,'Energy Prices'!$F$11:$CR$11,0))/100000,0)","v":0},{"$f":"IFERROR('Data Input - Option 5'!BU84*INDEX('Energy Prices'!$F$26:$CR$31,MATCH($B128,'Energy Prices'!$C$26:$C$31,0),MATCH(Calc_Option5!BQ$6,'Energy Prices'!$F$11:$CR$11,0))/100000,0)","v":0},{"$f":"IFERROR('Data Input - Option 5'!BV84*INDEX('Energy Prices'!$F$26:$CR$31,MATCH($B128,'Energy Prices'!$C$26:$C$31,0),MATCH(Calc_Option5!BR$6,'Energy Prices'!$F$11:$CR$11,0))/100000,0)","v":0},{"$f":"IFERROR('Data Input - Option 5'!BW84*INDEX('Energy Prices'!$F$26:$CR$31,MATCH($B128,'Energy Prices'!$C$26:$C$31,0),MATCH(Calc_Option5!BS$6,'Energy Prices'!$F$11:$CR$11,0))/100000,0)","v":0},{"$f":"IFERROR('Data Input - Option 5'!BX84*INDEX('Energy Prices'!$F$26:$CR$31,MATCH($B128,'Energy Prices'!$C$26:$C$31,0),MATCH(Calc_Option5!BT$6,'Energy Prices'!$F$11:$CR$11,0))/100000,0)","v":0},{"$f":"IFERROR('Data Input - Option 5'!BY84*INDEX('Energy Prices'!$F$26:$CR$31,MATCH($B128,'Energy Prices'!$C$26:$C$31,0),MATCH(Calc_Option5!BU$6,'Energy Prices'!$F$11:$CR$11,0))/100000,0)","v":0},{"$f":"IFERROR('Data Input - Option 5'!BZ84*INDEX('Energy Prices'!$F$26:$CR$31,MATCH($B128,'Energy Prices'!$C$26:$C$31,0),MATCH(Calc_Option5!BV$6,'Energy Prices'!$F$11:$CR$11,0))/100000,0)","v":0},{"$f":"IFERROR('Data Input - Option 5'!CA84*INDEX('Energy Prices'!$F$26:$CR$31,MATCH($B128,'Energy Prices'!$C$26:$C$31,0),MATCH(Calc_Option5!BW$6,'Energy Prices'!$F$11:$CR$11,0))/100000,0)","v":0},{"$f":"IFERROR('Data Input - Option 5'!CB84*INDEX('Energy Prices'!$F$26:$CR$31,MATCH($B128,'Energy Prices'!$C$26:$C$31,0),MATCH(Calc_Option5!BX$6,'Energy Prices'!$F$11:$CR$11,0))/100000,0)","v":0},{"$f":"IFERROR('Data Input - Option 5'!CC84*INDEX('Energy Prices'!$F$26:$CR$31,MATCH($B128,'Energy Prices'!$C$26:$C$31,0),MATCH(Calc_Option5!BY$6,'Energy Prices'!$F$11:$CR$11,0))/100000,0)","v":0},{"$f":"IFERROR('Data Input - Option 5'!CD84*INDEX('Energy Prices'!$F$26:$CR$31,MATCH($B128,'Energy Prices'!$C$26:$C$31,0),MATCH(Calc_Option5!BZ$6,'Energy Prices'!$F$11:$CR$11,0))/100000,0)","v":0},{"$f":"IFERROR('Data Input - Option 5'!CE84*INDEX('Energy Prices'!$F$26:$CR$31,MATCH($B128,'Energy Prices'!$C$26:$C$31,0),MATCH(Calc_Option5!CA$6,'Energy Prices'!$F$11:$CR$11,0))/100000,0)","v":0},{"$f":"IFERROR('Data Input - Option 5'!CF84*INDEX('Energy Prices'!$F$26:$CR$31,MATCH($B128,'Energy Prices'!$C$26:$C$31,0),MATCH(Calc_Option5!CB$6,'Energy Prices'!$F$11:$CR$11,0))/100000,0)","v":0},{"$f":"IFERROR('Data Input - Option 5'!CG84*INDEX('Energy Prices'!$F$26:$CR$31,MATCH($B128,'Energy Prices'!$C$26:$C$31,0),MATCH(Calc_Option5!CC$6,'Energy Prices'!$F$11:$CR$11,0))/100000,0)","v":0},{"$f":"IFERROR('Data Input - Option 5'!CH84*INDEX('Energy Prices'!$F$26:$CR$31,MATCH($B128,'Energy Prices'!$C$26:$C$31,0),MATCH(Calc_Option5!CD$6,'Energy Prices'!$F$11:$CR$11,0))/100000,0)","v":0},{"$f":"IFERROR('Data Input - Option 5'!CI84*INDEX('Energy Prices'!$F$26:$CR$31,MATCH($B128,'Energy Prices'!$C$26:$C$31,0),MATCH(Calc_Option5!CE$6,'Energy Prices'!$F$11:$CR$11,0))/100000,0)","v":0},{"$f":"IFERROR('Data Input - Option 5'!CJ84*INDEX('Energy Prices'!$F$26:$CR$31,MATCH($B128,'Energy Prices'!$C$26:$C$31,0),MATCH(Calc_Option5!CF$6,'Energy Prices'!$F$11:$CR$11,0))/100000,0)","v":0},{"$f":"IFERROR('Data Input - Option 5'!CK84*INDEX('Energy Prices'!$F$26:$CR$31,MATCH($B128,'Energy Prices'!$C$26:$C$31,0),MATCH(Calc_Option5!CG$6,'Energy Prices'!$F$11:$CR$11,0))/100000,0)","v":0},{"$f":"IFERROR('Data Input - Option 5'!CL84*INDEX('Energy Prices'!$F$26:$CR$31,MATCH($B128,'Energy Prices'!$C$26:$C$31,0),MATCH(Calc_Option5!CH$6,'Energy Prices'!$F$11:$CR$11,0))/100000,0)","v":0},{"$f":"IFERROR('Data Input - Option 5'!CM84*INDEX('Energy Prices'!$F$26:$CR$31,MATCH($B128,'Energy Prices'!$C$26:$C$31,0),MATCH(Calc_Option5!CI$6,'Energy Prices'!$F$11:$CR$11,0))/100000,0)","v":0},{"$f":"IFERROR('Data Input - Option 5'!CN84*INDEX('Energy Prices'!$F$26:$CR$31,MATCH($B128,'Energy Prices'!$C$26:$C$31,0),MATCH(Calc_Option5!CJ$6,'Energy Prices'!$F$11:$CR$11,0))/100000,0)","v":0},{"$f":"IFERROR('Data Input - Option 5'!CO84*INDEX('Energy Prices'!$F$26:$CR$31,MATCH($B128,'Energy Prices'!$C$26:$C$31,0),MATCH(Calc_Option5!CK$6,'Energy Prices'!$F$11:$CR$11,0))/100000,0)","v":0},{"$f":"IFERROR('Data Input - Option 5'!CP84*INDEX('Energy Prices'!$F$26:$CR$31,MATCH($B128,'Energy Prices'!$C$26:$C$31,0),MATCH(Calc_Option5!CL$6,'Energy Prices'!$F$11:$CR$11,0))/100000,0)","v":0},{"$f":"IFERROR('Data Input - Option 5'!CQ84*INDEX('Energy Prices'!$F$26:$CR$31,MATCH($B128,'Energy Prices'!$C$26:$C$31,0),MATCH(Calc_Option5!CM$6,'Energy Prices'!$F$11:$CR$11,0))/100000,0)","v":0},{"$f":"IFERROR('Data Input - Option 5'!CR84*INDEX('Energy Prices'!$F$26:$CR$31,MATCH($B128,'Energy Prices'!$C$26:$C$31,0),MATCH(Calc_Option5!CN$6,'Energy Prices'!$F$11:$CR$11,0))/100000,0)","v":0},{"$f":"IFERROR('Data Input - Option 5'!CS84*INDEX('Energy Prices'!$F$26:$CR$31,MATCH($B128,'Energy Prices'!$C$26:$C$31,0),MATCH(Calc_Option5!CO$6,'Energy Prices'!$F$11:$CR$11,0))/100000,0)","v":0},{"$f":"IFERROR('Data Input - Option 5'!CT84*INDEX('Energy Prices'!$F$26:$CR$31,MATCH($B128,'Energy Prices'!$C$26:$C$31,0),MATCH(Calc_Option5!CP$6,'Energy Prices'!$F$11:$CR$11,0))/100000,0)","v":0},{"$f":"IFERROR('Data Input - Option 5'!CU84*INDEX('Energy Prices'!$F$26:$CR$31,MATCH($B128,'Energy Prices'!$C$26:$C$31,0),MATCH(Calc_Option5!CQ$6,'Energy Prices'!$F$11:$CR$11,0))/100000,0)","v":0},{"$f":"IFERROR('Data Input - Option 5'!CV84*INDEX('Energy Prices'!$F$26:$CR$31,MATCH($B128,'Energy Prices'!$C$26:$C$31,0),MATCH(Calc_Option5!CR$6,'Energy Prices'!$F$11:$CR$11,0))/100000,0)","v":0},{"$f":"IFERROR('Data Input - Option 5'!CW84*INDEX('Energy Prices'!$F$26:$CR$31,MATCH($B128,'Energy Prices'!$C$26:$C$31,0),MATCH(Calc_Option5!CS$6,'Energy Prices'!$F$11:$CR$11,0))/100000,0)","v":0},{"$f":"IFERROR('Data Input - Option 5'!CX84*INDEX('Energy Prices'!$F$26:$CR$31,MATCH($B128,'Energy Prices'!$C$26:$C$31,0),MATCH(Calc_Option5!CT$6,'Energy Prices'!$F$11:$CR$11,0))/100000,0)","v":0},{"$f":"IFERROR('Data Input - Option 5'!CY84*INDEX('Energy Prices'!$F$26:$CR$31,MATCH($B128,'Energy Prices'!$C$26:$C$31,0),MATCH(Calc_Option5!CU$6,'Energy Prices'!$F$11:$CR$11,0))/100000,0)","v":0},{"$f":"IFERROR('Data Input - Option 5'!CZ84*INDEX('Energy Prices'!$F$26:$CR$31,MATCH($B128,'Energy Prices'!$C$26:$C$31,0),MATCH(Calc_Option5!CV$6,'Energy Prices'!$F$11:$CR$11,0))/100000,0)","v":0},{"$f":"IFERROR('Data Input - Option 5'!DA84*INDEX('Energy Prices'!$F$26:$CR$31,MATCH($B128,'Energy Prices'!$C$26:$C$31,0),MATCH(Calc_Option5!CW$6,'Energy Prices'!$F$11:$CR$11,0))/100000,0)","v":0},{"$f":"IFERROR('Data Input - Option 5'!DB84*INDEX('Energy Prices'!$F$26:$CR$31,MATCH($B128,'Energy Prices'!$C$26:$C$31,0),MATCH(Calc_Option5!CX$6,'Energy Prices'!$F$11:$CR$11,0))/100000,0)","v":0},{"$f":"IFERROR('Data Input - Option 5'!DC84*INDEX('Energy Prices'!$F$26:$CR$31,MATCH($B128,'Energy Prices'!$C$26:$C$31,0),MATCH(Calc_Option5!CY$6,'Energy Prices'!$F$11:$CR$11,0))/100000,0)","v":0}]
[null,"Natural Gas","£000's",{"$f":"IFERROR('Data Input - Option 5'!H85*INDEX('Energy Prices'!$F$26:$CR$31,MATCH($B129,'Energy Prices'!$C$26:$C$31,0),MATCH(Calc_Option5!D$6,'Energy Prices'!$F$11:$CR$11,0))/100000,0)","v":0},{"$f":"IFERROR('Data Input - Option 5'!I85*INDEX('Energy Prices'!$F$26:$CR$31,MATCH($B129,'Energy Prices'!$C$26:$C$31,0),MATCH(Calc_Option5!E$6,'Energy Prices'!$F$11:$CR$11,0))/100000,0)","v":0},{"$f":"IFERROR('Data Input - Option 5'!J85*INDEX('Energy Prices'!$F$26:$CR$31,MATCH($B129,'Energy Prices'!$C$26:$C$31,0),MATCH(Calc_Option5!F$6,'Energy Prices'!$F$11:$CR$11,0))/100000,0)","v":0},{"$f":"IFERROR('Data Input - Option 5'!K85*INDEX('Energy Prices'!$F$26:$CR$31,MATCH($B129,'Energy Prices'!$C$26:$C$31,0),MATCH(Calc_Option5!G$6,'Energy Prices'!$F$11:$CR$11,0))/100000,0)","v":0},{"$f":"IFERROR('Data Input - Option 5'!L85*INDEX('Energy Prices'!$F$26:$CR$31,MATCH($B129,'Energy Prices'!$C$26:$C$31,0),MATCH(Calc_Option5!H$6,'Energy Prices'!$F$11:$CR$11,0))/100000,0)","v":0},{"$f":"IFERROR('Data Input - Option 5'!M85*INDEX('Energy Prices'!$F$26:$CR$31,MATCH($B129,'Energy Prices'!$C$26:$C$31,0),MATCH(Calc_Option5!I$6,'Energy Prices'!$F$11:$CR$11,0))/100000,0)","v":0},{"$f":"IFERROR('Data Input - Option 5'!N85*INDEX('Energy Prices'!$F$26:$CR$31,MATCH($B129,'Energy Prices'!$C$26:$C$31,0),MATCH(Calc_Option5!J$6,'Energy Prices'!$F$11:$CR$11,0))/100000,0)","v":0},{"$f":"IFERROR('Data Input - Option 5'!O85*INDEX('Energy Prices'!$F$26:$CR$31,MATCH($B129,'Energy Prices'!$C$26:$C$31,0),MATCH(Calc_Option5!K$6,'Energy Prices'!$F$11:$CR$11,0))/100000,0)","v":0},{"$f":"IFERROR('Data Input - Option 5'!P85*INDEX('Energy Prices'!$F$26:$CR$31,MATCH($B129,'Energy Prices'!$C$26:$C$31,0),MATCH(Calc_Option5!L$6,'Energy Prices'!$F$11:$CR$11,0))/100000,0)","v":0},{"$f":"IFERROR('Data Input - Option 5'!Q85*INDEX('Energy Prices'!$F$26:$CR$31,MATCH($B129,'Energy Prices'!$C$26:$C$31,0),MATCH(Calc_Option5!M$6,'Energy Prices'!$F$11:$CR$11,0))/100000,0)","v":0},{"$f":"IFERROR('Data Input - Option 5'!R85*INDEX('Energy Prices'!$F$26:$CR$31,MATCH($B129,'Energy Prices'!$C$26:$C$31,0),MATCH(Calc_Option5!N$6,'Energy Prices'!$F$11:$CR$11,0))/100000,0)","v":0},{"$f":"IFERROR('Data Input - Option 5'!S85*INDEX('Energy Prices'!$F$26:$CR$31,MATCH($B129,'Energy Prices'!$C$26:$C$31,0),MATCH(Calc_Option5!O$6,'Energy Prices'!$F$11:$CR$11,0))/100000,0)","v":0},{"$f":"IFERROR('Data Input - Option 5'!T85*INDEX('Energy Prices'!$F$26:$CR$31,MATCH($B129,'Energy Prices'!$C$26:$C$31,0),MATCH(Calc_Option5!P$6,'Energy Prices'!$F$11:$CR$11,0))/100000,0)","v":0},{"$f":"IFERROR('Data Input - Option 5'!U85*INDEX('Energy Prices'!$F$26:$CR$31,MATCH($B129,'Energy Prices'!$C$26:$C$31,0),MATCH(Calc_Option5!Q$6,'Energy Prices'!$F$11:$CR$11,0))/100000,0)","v":0},{"$f":"IFERROR('Data Input - Option 5'!V85*INDEX('Energy Prices'!$F$26:$CR$31,MATCH($B129,'Energy Prices'!$C$26:$C$31,0),MATCH(Calc_Option5!R$6,'Energy Prices'!$F$11:$CR$11,0))/100000,0)","v":0},{"$f":"IFERROR('Data Input - Option 5'!W85*INDEX('Energy Prices'!$F$26:$CR$31,MATCH($B129,'Energy Prices'!$C$26:$C$31,0),MATCH(Calc_Option5!S$6,'Energy Prices'!$F$11:$CR$11,0))/100000,0)","v":0},{"$f":"IFERROR('Data Input - Option 5'!X85*INDEX('Energy Prices'!$F$26:$CR$31,MATCH($B129,'Energy Prices'!$C$26:$C$31,0),MATCH(Calc_Option5!T$6,'Energy Prices'!$F$11:$CR$11,0))/100000,0)","v":0},{"$f":"IFERROR('Data Input - Option 5'!Y85*INDEX('Energy Prices'!$F$26:$CR$31,MATCH($B129,'Energy Prices'!$C$26:$C$31,0),MATCH(Calc_Option5!U$6,'Energy Prices'!$F$11:$CR$11,0))/100000,0)","v":0},{"$f":"IFERROR('Data Input - Option 5'!Z85*INDEX('Energy Prices'!$F$26:$CR$31,MATCH($B129,'Energy Prices'!$C$26:$C$31,0),MATCH(Calc_Option5!V$6,'Energy Prices'!$F$11:$CR$11,0))/100000,0)","v":0},{"$f":"IFERROR('Data Input - Option 5'!AA85*INDEX('Energy Prices'!$F$26:$CR$31,MATCH($B129,'Energy Prices'!$C$26:$C$31,0),MATCH(Calc_Option5!W$6,'Energy Prices'!$F$11:$CR$11,0))/100000,0)","v":0},{"$f":"IFERROR('Data Input - Option 5'!AB85*INDEX('Energy Prices'!$F$26:$CR$31,MATCH($B129,'Energy Prices'!$C$26:$C$31,0),MATCH(Calc_Option5!X$6,'Energy Prices'!$F$11:$CR$11,0))/100000,0)","v":0},{"$f":"IFERROR('Data Input - Option 5'!AC85*INDEX('Energy Prices'!$F$26:$CR$31,MATCH($B129,'Energy Prices'!$C$26:$C$31,0),MATCH(Calc_Option5!Y$6,'Energy Prices'!$F$11:$CR$11,0))/100000,0)","v":0},{"$f":"IFERROR('Data Input - Option 5'!AD85*INDEX('Energy Prices'!$F$26:$CR$31,MATCH($B129,'Energy Prices'!$C$26:$C$31,0),MATCH(Calc_Option5!Z$6,'Energy Prices'!$F$11:$CR$11,0))/100000,0)","v":0},{"$f":"IFERROR('Data Input - Option 5'!AE85*INDEX('Energy Prices'!$F$26:$CR$31,MATCH($B129,'Energy Prices'!$C$26:$C$31,0),MATCH(Calc_Option5!AA$6,'Energy Prices'!$F$11:$CR$11,0))/100000,0)","v":0},{"$f":"IFERROR('Data Input - Option 5'!AF85*INDEX('Energy Prices'!$F$26:$CR$31,MATCH($B129,'Energy Prices'!$C$26:$C$31,0),MATCH(Calc_Option5!AB$6,'Energy Prices'!$F$11:$CR$11,0))/100000,0)","v":0},{"$f":"IFERROR('Data Input - Option 5'!AG85*INDEX('Energy Prices'!$F$26:$CR$31,MATCH($B129,'Energy Prices'!$C$26:$C$31,0),MATCH(Calc_Option5!AC$6,'Energy Prices'!$F$11:$CR$11,0))/100000,0)","v":0},{"$f":"IFERROR('Data Input - Option 5'!AH85*INDEX('Energy Prices'!$F$26:$CR$31,MATCH($B129,'Energy Prices'!$C$26:$C$31,0),MATCH(Calc_Option5!AD$6,'Energy Prices'!$F$11:$CR$11,0))/100000,0)","v":0},{"$f":"IFERROR('Data Input - Option 5'!AI85*INDEX('Energy Prices'!$F$26:$CR$31,MATCH($B129,'Energy Prices'!$C$26:$C$31,0),MATCH(Calc_Option5!AE$6,'Energy Prices'!$F$11:$CR$11,0))/100000,0)","v":0},{"$f":"IFERROR('Data Input - Option 5'!AJ85*INDEX('Energy Prices'!$F$26:$CR$31,MATCH($B129,'Energy Prices'!$C$26:$C$31,0),MATCH(Calc_Option5!AF$6,'Energy Prices'!$F$11:$CR$11,0))/100000,0)","v":0},{"$f":"IFERROR('Data Input - Option 5'!AK85*INDEX('Energy Prices'!$F$26:$CR$31,MATCH($B129,'Energy Prices'!$C$26:$C$31,0),MATCH(Calc_Option5!AG$6,'Energy Prices'!$F$11:$CR$11,0))/100000,0)","v":0},{"$f":"IFERROR('Data Input - Option 5'!AL85*INDEX('Energy Prices'!$F$26:$CR$31,MATCH($B129,'Energy Prices'!$C$26:$C$31,0),MATCH(Calc_Option5!AH$6,'Energy Prices'!$F$11:$CR$11,0))/100000,0)","v":0},{"$f":"IFERROR('Data Input - Option 5'!AM85*INDEX('Energy Prices'!$F$26:$CR$31,MATCH($B129,'Energy Prices'!$C$26:$C$31,0),MATCH(Calc_Option5!AI$6,'Energy Prices'!$F$11:$CR$11,0))/100000,0)","v":0},{"$f":"IFERROR('Data Input - Option 5'!AN85*INDEX('Energy Prices'!$F$26:$CR$31,MATCH($B129,'Energy Prices'!$C$26:$C$31,0),MATCH(Calc_Option5!AJ$6,'Energy Prices'!$F$11:$CR$11,0))/100000,0)","v":0},{"$f":"IFERROR('Data Input - Option 5'!AO85*INDEX('Energy Prices'!$F$26:$CR$31,MATCH($B129,'Energy Prices'!$C$26:$C$31,0),MATCH(Calc_Option5!AK$6,'Energy Prices'!$F$11:$CR$11,0))/100000,0)","v":0},{"$f":"IFERROR('Data Input - Option 5'!AP85*INDEX('Energy Prices'!$F$26:$CR$31,MATCH($B129,'Energy Prices'!$C$26:$C$31,0),MATCH(Calc_Option5!AL$6,'Energy Prices'!$F$11:$CR$11,0))/100000,0)","v":0},{"$f":"IFERROR('Data Input - Option 5'!AQ85*INDEX('Energy Prices'!$F$26:$CR$31,MATCH($B129,'Energy Prices'!$C$26:$C$31,0),MATCH(Calc_Option5!AM$6,'Energy Prices'!$F$11:$CR$11,0))/100000,0)","v":0},{"$f":"IFERROR('Data Input - Option 5'!AR85*INDEX('Energy Prices'!$F$26:$CR$31,MATCH($B129,'Energy Prices'!$C$26:$C$31,0),MATCH(Calc_Option5!AN$6,'Energy Prices'!$F$11:$CR$11,0))/100000,0)","v":0},{"$f":"IFERROR('Data Input - Option 5'!AS85*INDEX('Energy Prices'!$F$26:$CR$31,MATCH($B129,'Energy Prices'!$C$26:$C$31,0),MATCH(Calc_Option5!AO$6,'Energy Prices'!$F$11:$CR$11,0))/100000,0)","v":0},{"$f":"IFERROR('Data Input - Option 5'!AT85*INDEX('Energy Prices'!$F$26:$CR$31,MATCH($B129,'Energy Prices'!$C$26:$C$31,0),MATCH(Calc_Option5!AP$6,'Energy Prices'!$F$11:$CR$11,0))/100000,0)","v":0},{"$f":"IFERROR('Data Input - Option 5'!AU85*INDEX('Energy Prices'!$F$26:$CR$31,MATCH($B129,'Energy Prices'!$C$26:$C$31,0),MATCH(Calc_Option5!AQ$6,'Energy Prices'!$F$11:$CR$11,0))/100000,0)","v":0},{"$f":"IFERROR('Data Input - Option 5'!AV85*INDEX('Energy Prices'!$F$26:$CR$31,MATCH($B129,'Energy Prices'!$C$26:$C$31,0),MATCH(Calc_Option5!AR$6,'Energy Prices'!$F$11:$CR$11,0))/100000,0)","v":0},{"$f":"IFERROR('Data Input - Option 5'!AW85*INDEX('Energy Prices'!$F$26:$CR$31,MATCH($B129,'Energy Prices'!$C$26:$C$31,0),MATCH(Calc_Option5!AS$6,'Energy Prices'!$F$11:$CR$11,0))/100000,0)","v":0},{"$f":"IFERROR('Data Input - Option 5'!AX85*INDEX('Energy Prices'!$F$26:$CR$31,MATCH($B129,'Energy Prices'!$C$26:$C$31,0),MATCH(Calc_Option5!AT$6,'Energy Prices'!$F$11:$CR$11,0))/100000,0)","v":0},{"$f":"IFERROR('Data Input - Option 5'!AY85*INDEX('Energy Prices'!$F$26:$CR$31,MATCH($B129,'Energy Prices'!$C$26:$C$31,0),MATCH(Calc_Option5!AU$6,'Energy Prices'!$F$11:$CR$11,0))/100000,0)","v":0},{"$f":"IFERROR('Data Input - Option 5'!AZ85*INDEX('Energy Prices'!$F$26:$CR$31,MATCH($B129,'Energy Prices'!$C$26:$C$31,0),MATCH(Calc_Option5!AV$6,'Energy Prices'!$F$11:$CR$11,0))/100000,0)","v":0},{"$f":"IFERROR('Data Input - Option 5'!BA85*INDEX('Energy Prices'!$F$26:$CR$31,MATCH($B129,'Energy Prices'!$C$26:$C$31,0),MATCH(Calc_Option5!AW$6,'Energy Prices'!$F$11:$CR$11,0))/100000,0)","v":0},{"$f":"IFERROR('Data Input - Option 5'!BB85*INDEX('Energy Prices'!$F$26:$CR$31,MATCH($B129,'Energy Prices'!$C$26:$C$31,0),MATCH(Calc_Option5!AX$6,'Energy Prices'!$F$11:$CR$11,0))/100000,0)","v":0},{"$f":"IFERROR('Data Input - Option 5'!BC85*INDEX('Energy Prices'!$F$26:$CR$31,MATCH($B129,'Energy Prices'!$C$26:$C$31,0),MATCH(Calc_Option5!AY$6,'Energy Prices'!$F$11:$CR$11,0))/100000,0)","v":0},{"$f":"IFERROR('Data Input - Option 5'!BD85*INDEX('Energy Prices'!$F$26:$CR$31,MATCH($B129,'Energy Prices'!$C$26:$C$31,0),MATCH(Calc_Option5!AZ$6,'Energy Prices'!$F$11:$CR$11,0))/100000,0)","v":0},{"$f":"IFERROR('Data Input - Option 5'!BE85*INDEX('Energy Prices'!$F$26:$CR$31,MATCH($B129,'Energy Prices'!$C$26:$C$31,0),MATCH(Calc_Option5!BA$6,'Energy Prices'!$F$11:$CR$11,0))/100000,0)","v":0},{"$f":"IFERROR('Data Input - Option 5'!BF85*INDEX('Energy Prices'!$F$26:$CR$31,MATCH($B129,'Energy Prices'!$C$26:$C$31,0),MATCH(Calc_Option5!BB$6,'Energy Prices'!$F$11:$CR$11,0))/100000,0)","v":0},{"$f":"IFERROR('Data Input - Option 5'!BG85*INDEX('Energy Prices'!$F$26:$CR$31,MATCH($B129,'Energy Prices'!$C$26:$C$31,0),MATCH(Calc_Option5!BC$6,'Energy Prices'!$F$11:$CR$11,0))/100000,0)","v":0},{"$f":"IFERROR('Data Input - Option 5'!BH85*INDEX('Energy Prices'!$F$26:$CR$31,MATCH($B129,'Energy Prices'!$C$26:$C$31,0),MATCH(Calc_Option5!BD$6,'Energy Prices'!$F$11:$CR$11,0))/100000,0)","v":0},{"$f":"IFERROR('Data Input - Option 5'!BI85*INDEX('Energy Prices'!$F$26:$CR$31,MATCH($B129,'Energy Prices'!$C$26:$C$31,0),MATCH(Calc_Option5!BE$6,'Energy Prices'!$F$11:$CR$11,0))/100000,0)","v":0},{"$f":"IFERROR('Data Input - Option 5'!BJ85*INDEX('Energy Prices'!$F$26:$CR$31,MATCH($B129,'Energy Prices'!$C$26:$C$31,0),MATCH(Calc_Option5!BF$6,'Energy Prices'!$F$11:$CR$11,0))/100000,0)","v":0},{"$f":"IFERROR('Data Input - Option 5'!BK85*INDEX('Energy Prices'!$F$26:$CR$31,MATCH($B129,'Energy Prices'!$C$26:$C$31,0),MATCH(Calc_Option5!BG$6,'Energy Prices'!$F$11:$CR$11,0))/100000,0)","v":0},{"$f":"IFERROR('Data Input - Option 5'!BL85*INDEX('Energy Prices'!$F$26:$CR$31,MATCH($B129,'Energy Prices'!$C$26:$C$31,0),MATCH(Calc_Option5!BH$6,'Energy Prices'!$F$11:$CR$11,0))/100000,0)","v":0},{"$f":"IFERROR('Data Input - Option 5'!BM85*INDEX('Energy Prices'!$F$26:$CR$31,MATCH($B129,'Energy Prices'!$C$26:$C$31,0),MATCH(Calc_Option5!BI$6,'Energy Prices'!$F$11:$CR$11,0))/100000,0)","v":0},{"$f":"IFERROR('Data Input - Option 5'!BN85*INDEX('Energy Prices'!$F$26:$CR$31,MATCH($B129,'Energy Prices'!$C$26:$C$31,0),MATCH(Calc_Option5!BJ$6,'Energy Prices'!$F$11:$CR$11,0))/100000,0)","v":0},{"$f":"IFERROR('Data Input - Option 5'!BO85*INDEX('Energy Prices'!$F$26:$CR$31,MATCH($B129,'Energy Prices'!$C$26:$C$31,0),MATCH(Calc_Option5!BK$6,'Energy Prices'!$F$11:$CR$11,0))/100000,0)","v":0},{"$f":"IFERROR('Data Input - Option 5'!BP85*INDEX('Energy Prices'!$F$26:$CR$31,MATCH($B129,'Energy Prices'!$C$26:$C$31,0),MATCH(Calc_Option5!BL$6,'Energy Prices'!$F$11:$CR$11,0))/100000,0)","v":0},{"$f":"IFERROR('Data Input - Option 5'!BQ85*INDEX('Energy Prices'!$F$26:$CR$31,MATCH($B129,'Energy Prices'!$C$26:$C$31,0),MATCH(Calc_Option5!BM$6,'Energy Prices'!$F$11:$CR$11,0))/100000,0)","v":0},{"$f":"IFERROR('Data Input - Option 5'!BR85*INDEX('Energy Prices'!$F$26:$CR$31,MATCH($B129,'Energy Prices'!$C$26:$C$31,0),MATCH(Calc_Option5!BN$6,'Energy Prices'!$F$11:$CR$11,0))/100000,0)","v":0},{"$f":"IFERROR('Data Input - Option 5'!BS85*INDEX('Energy Prices'!$F$26:$CR$31,MATCH($B129,'Energy Prices'!$C$26:$C$31,0),MATCH(Calc_Option5!BO$6,'Energy Prices'!$F$11:$CR$11,0))/100000,0)","v":0},{"$f":"IFERROR('Data Input - Option 5'!BT85*INDEX('Energy Prices'!$F$26:$CR$31,MATCH($B129,'Energy Prices'!$C$26:$C$31,0),MATCH(Calc_Option5!BP$6,'Energy Prices'!$F$11:$CR$11,0))/100000,0)","v":0},{"$f":"IFERROR('Data Input - Option 5'!BU85*INDEX('Energy Prices'!$F$26:$CR$31,MATCH($B129,'Energy Prices'!$C$26:$C$31,0),MATCH(Calc_Option5!BQ$6,'Energy Prices'!$F$11:$CR$11,0))/100000,0)","v":0},{"$f":"IFERROR('Data Input - Option 5'!BV85*INDEX('Energy Prices'!$F$26:$CR$31,MATCH($B129,'Energy Prices'!$C$26:$C$31,0),MATCH(Calc_Option5!BR$6,'Energy Prices'!$F$11:$CR$11,0))/100000,0)","v":0},{"$f":"IFERROR('Data Input - Option 5'!BW85*INDEX('Energy Prices'!$F$26:$CR$31,MATCH($B129,'Energy Prices'!$C$26:$C$31,0),MATCH(Calc_Option5!BS$6,'Energy Prices'!$F$11:$CR$11,0))/100000,0)","v":0},{"$f":"IFERROR('Data Input - Option 5'!BX85*INDEX('Energy Prices'!$F$26:$CR$31,MATCH($B129,'Energy Prices'!$C$26:$C$31,0),MATCH(Calc_Option5!BT$6,'Energy Prices'!$F$11:$CR$11,0))/100000,0)","v":0},{"$f":"IFERROR('Data Input - Option 5'!BY85*INDEX('Energy Prices'!$F$26:$CR$31,MATCH($B129,'Energy Prices'!$C$26:$C$31,0),MATCH(Calc_Option5!BU$6,'Energy Prices'!$F$11:$CR$11,0))/100000,0)","v":0},{"$f":"IFERROR('Data Input - Option 5'!BZ85*INDEX('Energy Prices'!$F$26:$CR$31,MATCH($B129,'Energy Prices'!$C$26:$C$31,0),MATCH(Calc_Option5!BV$6,'Energy Prices'!$F$11:$CR$11,0))/100000,0)","v":0},{"$f":"IFERROR('Data Input - Option 5'!CA85*INDEX('Energy Prices'!$F$26:$CR$31,MATCH($B129,'Energy Prices'!$C$26:$C$31,0),MATCH(Calc_Option5!BW$6,'Energy Prices'!$F$11:$CR$11,0))/100000,0)","v":0},{"$f":"IFERROR('Data Input - Option 5'!CB85*INDEX('Energy Prices'!$F$26:$CR$31,MATCH($B129,'Energy Prices'!$C$26:$C$31,0),MATCH(Calc_Option5!BX$6,'Energy Prices'!$F$11:$CR$11,0))/100000,0)","v":0},{"$f":"IFERROR('Data Input - Option 5'!CC85*INDEX('Energy Prices'!$F$26:$CR$31,MATCH($B129,'Energy Prices'!$C$26:$C$31,0),MATCH(Calc_Option5!BY$6,'Energy Prices'!$F$11:$CR$11,0))/100000,0)","v":0},{"$f":"IFERROR('Data Input - Option 5'!CD85*INDEX('Energy Prices'!$F$26:$CR$31,MATCH($B129,'Energy Prices'!$C$26:$C$31,0),MATCH(Calc_Option5!BZ$6,'Energy Prices'!$F$11:$CR$11,0))/100000,0)","v":0},{"$f":"IFERROR('Data Input - Option 5'!CE85*INDEX('Energy Prices'!$F$26:$CR$31,MATCH($B129,'Energy Prices'!$C$26:$C$31,0),MATCH(Calc_Option5!CA$6,'Energy Prices'!$F$11:$CR$11,0))/100000,0)","v":0},{"$f":"IFERROR('Data Input - Option 5'!CF85*INDEX('Energy Prices'!$F$26:$CR$31,MATCH($B129,'Energy Prices'!$C$26:$C$31,0),MATCH(Calc_Option5!CB$6,'Energy Prices'!$F$11:$CR$11,0))/100000,0)","v":0},{"$f":"IFERROR('Data Input - Option 5'!CG85*INDEX('Energy Prices'!$F$26:$CR$31,MATCH($B129,'Energy Prices'!$C$26:$C$31,0),MATCH(Calc_Option5!CC$6,'Energy Prices'!$F$11:$CR$11,0))/100000,0)","v":0},{"$f":"IFERROR('Data Input - Option 5'!CH85*INDEX('Energy Prices'!$F$26:$CR$31,MATCH($B129,'Energy Prices'!$C$26:$C$31,0),MATCH(Calc_Option5!CD$6,'Energy Prices'!$F$11:$CR$11,0))/100000,0)","v":0},{"$f":"IFERROR('Data Input - Option 5'!CI85*INDEX('Energy Prices'!$F$26:$CR$31,MATCH($B129,'Energy Prices'!$C$26:$C$31,0),MATCH(Calc_Option5!CE$6,'Energy Prices'!$F$11:$CR$11,0))/100000,0)","v":0},{"$f":"IFERROR('Data Input - Option 5'!CJ85*INDEX('Energy Prices'!$F$26:$CR$31,MATCH($B129,'Energy Prices'!$C$26:$C$31,0),MATCH(Calc_Option5!CF$6,'Energy Prices'!$F$11:$CR$11,0))/100000,0)","v":0},{"$f":"IFERROR('Data Input - Option 5'!CK85*INDEX('Energy Prices'!$F$26:$CR$31,MATCH($B129,'Energy Prices'!$C$26:$C$31,0),MATCH(Calc_Option5!CG$6,'Energy Prices'!$F$11:$CR$11,0))/100000,0)","v":0},{"$f":"IFERROR('Data Input - Option 5'!CL85*INDEX('Energy Prices'!$F$26:$CR$31,MATCH($B129,'Energy Prices'!$C$26:$C$31,0),MATCH(Calc_Option5!CH$6,'Energy Prices'!$F$11:$CR$11,0))/100000,0)","v":0},{"$f":"IFERROR('Data Input - Option 5'!CM85*INDEX('Energy Prices'!$F$26:$CR$31,MATCH($B129,'Energy Prices'!$C$26:$C$31,0),MATCH(Calc_Option5!CI$6,'Energy Prices'!$F$11:$CR$11,0))/100000,0)","v":0},{"$f":"IFERROR('Data Input - Option 5'!CN85*INDEX('Energy Prices'!$F$26:$CR$31,MATCH($B129,'Energy Prices'!$C$26:$C$31,0),MATCH(Calc_Option5!CJ$6,'Energy Prices'!$F$11:$CR$11,0))/100000,0)","v":0},{"$f":"IFERROR('Data Input - Option 5'!CO85*INDEX('Energy Prices'!$F$26:$CR$31,MATCH($B129,'Energy Prices'!$C$26:$C$31,0),MATCH(Calc_Option5!CK$6,'Energy Prices'!$F$11:$CR$11,0))/100000,0)","v":0},{"$f":"IFERROR('Data Input - Option 5'!CP85*INDEX('Energy Prices'!$F$26:$CR$31,MATCH($B129,'Energy Prices'!$C$26:$C$31,0),MATCH(Calc_Option5!CL$6,'Energy Prices'!$F$11:$CR$11,0))/100000,0)","v":0},{"$f":"IFERROR('Data Input - Option 5'!CQ85*INDEX('Energy Prices'!$F$26:$CR$31,MATCH($B129,'Energy Prices'!$C$26:$C$31,0),MATCH(Calc_Option5!CM$6,'Energy Prices'!$F$11:$CR$11,0))/100000,0)","v":0},{"$f":"IFERROR('Data Input - Option 5'!CR85*INDEX('Energy Prices'!$F$26:$CR$31,MATCH($B129,'Energy Prices'!$C$26:$C$31,0),MATCH(Calc_Option5!CN$6,'Energy Prices'!$F$11:$CR$11,0))/100000,0)","v":0},{"$f":"IFERROR('Data Input - Option 5'!CS85*INDEX('Energy Prices'!$F$26:$CR$31,MATCH($B129,'Energy Prices'!$C$26:$C$31,0),MATCH(Calc_Option5!CO$6,'Energy Prices'!$F$11:$CR$11,0))/100000,0)","v":0},{"$f":"IFERROR('Data Input - Option 5'!CT85*INDEX('Energy Prices'!$F$26:$CR$31,MATCH($B129,'Energy Prices'!$C$26:$C$31,0),MATCH(Calc_Option5!CP$6,'Energy Prices'!$F$11:$CR$11,0))/100000,0)","v":0},{"$f":"IFERROR('Data Input - Option 5'!CU85*INDEX('Energy Prices'!$F$26:$CR$31,MATCH($B129,'Energy Prices'!$C$26:$C$31,0),MATCH(Calc_Option5!CQ$6,'Energy Prices'!$F$11:$CR$11,0))/100000,0)","v":0},{"$f":"IFERROR('Data Input - Option 5'!CV85*INDEX('Energy Prices'!$F$26:$CR$31,MATCH($B129,'Energy Prices'!$C$26:$C$31,0),MATCH(Calc_Option5!CR$6,'Energy Prices'!$F$11:$CR$11,0))/100000,0)","v":0},{"$f":"IFERROR('Data Input - Option 5'!CW85*INDEX('Energy Prices'!$F$26:$CR$31,MATCH($B129,'Energy Prices'!$C$26:$C$31,0),MATCH(Calc_Option5!CS$6,'Energy Prices'!$F$11:$CR$11,0))/100000,0)","v":0},{"$f":"IFERROR('Data Input - Option 5'!CX85*INDEX('Energy Prices'!$F$26:$CR$31,MATCH($B129,'Energy Prices'!$C$26:$C$31,0),MATCH(Calc_Option5!CT$6,'Energy Prices'!$F$11:$CR$11,0))/100000,0)","v":0},{"$f":"IFERROR('Data Input - Option 5'!CY85*INDEX('Energy Prices'!$F$26:$CR$31,MATCH($B129,'Energy Prices'!$C$26:$C$31,0),MATCH(Calc_Option5!CU$6,'Energy Prices'!$F$11:$CR$11,0))/100000,0)","v":0},{"$f":"IFERROR('Data Input - Option 5'!CZ85*INDEX('Energy Prices'!$F$26:$CR$31,MATCH($B129,'Energy Prices'!$C$26:$C$31,0),MATCH(Calc_Option5!CV$6,'Energy Prices'!$F$11:$CR$11,0))/100000,0)","v":0},{"$f":"IFERROR('Data Input - Option 5'!DA85*INDEX('Energy Prices'!$F$26:$CR$31,MATCH($B129,'Energy Prices'!$C$26:$C$31,0),MATCH(Calc_Option5!CW$6,'Energy Prices'!$F$11:$CR$11,0))/100000,0)","v":0},{"$f":"IFERROR('Data Input - Option 5'!DB85*INDEX('Energy Prices'!$F$26:$CR$31,MATCH($B129,'Energy Prices'!$C$26:$C$31,0),MATCH(Calc_Option5!CX$6,'Energy Prices'!$F$11:$CR$11,0))/100000,0)","v":0},{"$f":"IFERROR('Data Input - Option 5'!DC85*INDEX('Energy Prices'!$F$26:$CR$31,MATCH($B129,'Energy Prices'!$C$26:$C$31,0),MATCH(Calc_Option5!CY$6,'Energy Prices'!$F$11:$CR$11,0))/100000,0)","v":0}]
[null,"Coal","£000's",{"$f":"IFERROR('Data Input - Option 5'!H86*INDEX('Energy Prices'!$F$26:$CR$31,MATCH($B130,'Energy Prices'!$C$26:$C$31,0),MATCH(Calc_Option5!D$6,'Energy Prices'!$F$11:$CR$11,0))/100000,0)","v":0},{"$f":"IFERROR('Data Input - Option 5'!I86*INDEX('Energy Prices'!$F$26:$CR$31,MATCH($B130,'Energy Prices'!$C$26:$C$31,0),MATCH(Calc_Option5!E$6,'Energy Prices'!$F$11:$CR$11,0))/100000,0)","v":0},{"$f":"IFERROR('Data Input - Option 5'!J86*INDEX('Energy Prices'!$F$26:$CR$31,MATCH($B130,'Energy Prices'!$C$26:$C$31,0),MATCH(Calc_Option5!F$6,'Energy Prices'!$F$11:$CR$11,0))/100000,0)","v":0},{"$f":"IFERROR('Data Input - Option 5'!K86*INDEX('Energy Prices'!$F$26:$CR$31,MATCH($B130,'Energy Prices'!$C$26:$C$31,0),MATCH(Calc_Option5!G$6,'Energy Prices'!$F$11:$CR$11,0))/100000,0)","v":0},{"$f":"IFERROR('Data Input - Option 5'!L86*INDEX('Energy Prices'!$F$26:$CR$31,MATCH($B130,'Energy Prices'!$C$26:$C$31,0),MATCH(Calc_Option5!H$6,'Energy Prices'!$F$11:$CR$11,0))/100000,0)","v":0},{"$f":"IFERROR('Data Input - Option 5'!M86*INDEX('Energy Prices'!$F$26:$CR$31,MATCH($B130,'Energy Prices'!$C$26:$C$31,0),MATCH(Calc_Option5!I$6,'Energy Prices'!$F$11:$CR$11,0))/100000,0)","v":0},{"$f":"IFERROR('Data Input - Option 5'!N86*INDEX('Energy Prices'!$F$26:$CR$31,MATCH($B130,'Energy Prices'!$C$26:$C$31,0),MATCH(Calc_Option5!J$6,'Energy Prices'!$F$11:$CR$11,0))/100000,0)","v":0},{"$f":"IFERROR('Data Input - Option 5'!O86*INDEX('Energy Prices'!$F$26:$CR$31,MATCH($B130,'Energy Prices'!$C$26:$C$31,0),MATCH(Calc_Option5!K$6,'Energy Prices'!$F$11:$CR$11,0))/100000,0)","v":0},{"$f":"IFERROR('Data Input - Option 5'!P86*INDEX('Energy Prices'!$F$26:$CR$31,MATCH($B130,'Energy Prices'!$C$26:$C$31,0),MATCH(Calc_Option5!L$6,'Energy Prices'!$F$11:$CR$11,0))/100000,0)","v":0},{"$f":"IFERROR('Data Input - Option 5'!Q86*INDEX('Energy Prices'!$F$26:$CR$31,MATCH($B130,'Energy Prices'!$C$26:$C$31,0),MATCH(Calc_Option5!M$6,'Energy Prices'!$F$11:$CR$11,0))/100000,0)","v":0},{"$f":"IFERROR('Data Input - Option 5'!R86*INDEX('Energy Prices'!$F$26:$CR$31,MATCH($B130,'Energy Prices'!$C$26:$C$31,0),MATCH(Calc_Option5!N$6,'Energy Prices'!$F$11:$CR$11,0))/100000,0)","v":0},{"$f":"IFERROR('Data Input - Option 5'!S86*INDEX('Energy Prices'!$F$26:$CR$31,MATCH($B130,'Energy Prices'!$C$26:$C$31,0),MATCH(Calc_Option5!O$6,'Energy Prices'!$F$11:$CR$11,0))/100000,0)","v":0},{"$f":"IFERROR('Data Input - Option 5'!T86*INDEX('Energy Prices'!$F$26:$CR$31,MATCH($B130,'Energy Prices'!$C$26:$C$31,0),MATCH(Calc_Option5!P$6,'Energy Prices'!$F$11:$CR$11,0))/100000,0)","v":0},{"$f":"IFERROR('Data Input - Option 5'!U86*INDEX('Energy Prices'!$F$26:$CR$31,MATCH($B130,'Energy Prices'!$C$26:$C$31,0),MATCH(Calc_Option5!Q$6,'Energy Prices'!$F$11:$CR$11,0))/100000,0)","v":0},{"$f":"IFERROR('Data Input - Option 5'!V86*INDEX('Energy Prices'!$F$26:$CR$31,MATCH($B130,'Energy Prices'!$C$26:$C$31,0),MATCH(Calc_Option5!R$6,'Energy Prices'!$F$11:$CR$11,0))/100000,0)","v":0},{"$f":"IFERROR('Data Input - Option 5'!W86*INDEX('Energy Prices'!$F$26:$CR$31,MATCH($B130,'Energy Prices'!$C$26:$C$31,0),MATCH(Calc_Option5!S$6,'Energy Prices'!$F$11:$CR$11,0))/100000,0)","v":0},{"$f":"IFERROR('Data Input - Option 5'!X86*INDEX('Energy Prices'!$F$26:$CR$31,MATCH($B130,'Energy Prices'!$C$26:$C$31,0),MATCH(Calc_Option5!T$6,'Energy Prices'!$F$11:$CR$11,0))/100000,0)","v":0},{"$f":"IFERROR('Data Input - Option 5'!Y86*INDEX('Energy Prices'!$F$26:$CR$31,MATCH($B130,'Energy Prices'!$C$26:$C$31,0),MATCH(Calc_Option5!U$6,'Energy Prices'!$F$11:$CR$11,0))/100000,0)","v":0},{"$f":"IFERROR('Data Input - Option 5'!Z86*INDEX('Energy Prices'!$F$26:$CR$31,MATCH($B130,'Energy Prices'!$C$26:$C$31,0),MATCH(Calc_Option5!V$6,'Energy Prices'!$F$11:$CR$11,0))/100000,0)","v":0},{"$f":"IFERROR('Data Input - Option 5'!AA86*INDEX('Energy Prices'!$F$26:$CR$31,MATCH($B130,'Energy Prices'!$C$26:$C$31,0),MATCH(Calc_Option5!W$6,'Energy Prices'!$F$11:$CR$11,0))/100000,0)","v":0},{"$f":"IFERROR('Data Input - Option 5'!AB86*INDEX('Energy Prices'!$F$26:$CR$31,MATCH($B130,'Energy Prices'!$C$26:$C$31,0),MATCH(Calc_Option5!X$6,'Energy Prices'!$F$11:$CR$11,0))/100000,0)","v":0},{"$f":"IFERROR('Data Input - Option 5'!AC86*INDEX('Energy Prices'!$F$26:$CR$31,MATCH($B130,'Energy Prices'!$C$26:$C$31,0),MATCH(Calc_Option5!Y$6,'Energy Prices'!$F$11:$CR$11,0))/100000,0)","v":0},{"$f":"IFERROR('Data Input - Option 5'!AD86*INDEX('Energy Prices'!$F$26:$CR$31,MATCH($B130,'Energy Prices'!$C$26:$C$31,0),MATCH(Calc_Option5!Z$6,'Energy Prices'!$F$11:$CR$11,0))/100000,0)","v":0},{"$f":"IFERROR('Data Input - Option 5'!AE86*INDEX('Energy Prices'!$F$26:$CR$31,MATCH($B130,'Energy Prices'!$C$26:$C$31,0),MATCH(Calc_Option5!AA$6,'Energy Prices'!$F$11:$CR$11,0))/100000,0)","v":0},{"$f":"IFERROR('Data Input - Option 5'!AF86*INDEX('Energy Prices'!$F$26:$CR$31,MATCH($B130,'Energy Prices'!$C$26:$C$31,0),MATCH(Calc_Option5!AB$6,'Energy Prices'!$F$11:$CR$11,0))/100000,0)","v":0},{"$f":"IFERROR('Data Input - Option 5'!AG86*INDEX('Energy Prices'!$F$26:$CR$31,MATCH($B130,'Energy Prices'!$C$26:$C$31,0),MATCH(Calc_Option5!AC$6,'Energy Prices'!$F$11:$CR$11,0))/100000,0)","v":0},{"$f":"IFERROR('Data Input - Option 5'!AH86*INDEX('Energy Prices'!$F$26:$CR$31,MATCH($B130,'Energy Prices'!$C$26:$C$31,0),MATCH(Calc_Option5!AD$6,'Energy Prices'!$F$11:$CR$11,0))/100000,0)","v":0},{"$f":"IFERROR('Data Input - Option 5'!AI86*INDEX('Energy Prices'!$F$26:$CR$31,MATCH($B130,'Energy Prices'!$C$26:$C$31,0),MATCH(Calc_Option5!AE$6,'Energy Prices'!$F$11:$CR$11,0))/100000,0)","v":0},{"$f":"IFERROR('Data Input - Option 5'!AJ86*INDEX('Energy Prices'!$F$26:$CR$31,MATCH($B130,'Energy Prices'!$C$26:$C$31,0),MATCH(Calc_Option5!AF$6,'Energy Prices'!$F$11:$CR$11,0))/100000,0)","v":0},{"$f":"IFERROR('Data Input - Option 5'!AK86*INDEX('Energy Prices'!$F$26:$CR$31,MATCH($B130,'Energy Prices'!$C$26:$C$31,0),MATCH(Calc_Option5!AG$6,'Energy Prices'!$F$11:$CR$11,0))/100000,0)","v":0},{"$f":"IFERROR('Data Input - Option 5'!AL86*INDEX('Energy Prices'!$F$26:$CR$31,MATCH($B130,'Energy Prices'!$C$26:$C$31,0),MATCH(Calc_Option5!AH$6,'Energy Prices'!$F$11:$CR$11,0))/100000,0)","v":0},{"$f":"IFERROR('Data Input - Option 5'!AM86*INDEX('Energy Prices'!$F$26:$CR$31,MATCH($B130,'Energy Prices'!$C$26:$C$31,0),MATCH(Calc_Option5!AI$6,'Energy Prices'!$F$11:$CR$11,0))/100000,0)","v":0},{"$f":"IFERROR('Data Input - Option 5'!AN86*INDEX('Energy Prices'!$F$26:$CR$31,MATCH($B130,'Energy Prices'!$C$26:$C$31,0),MATCH(Calc_Option5!AJ$6,'Energy Prices'!$F$11:$CR$11,0))/100000,0)","v":0},{"$f":"IFERROR('Data Input - Option 5'!AO86*INDEX('Energy Prices'!$F$26:$CR$31,MATCH($B130,'Energy Prices'!$C$26:$C$31,0),MATCH(Calc_Option5!AK$6,'Energy Prices'!$F$11:$CR$11,0))/100000,0)","v":0},{"$f":"IFERROR('Data Input - Option 5'!AP86*INDEX('Energy Prices'!$F$26:$CR$31,MATCH($B130,'Energy Prices'!$C$26:$C$31,0),MATCH(Calc_Option5!AL$6,'Energy Prices'!$F$11:$CR$11,0))/100000,0)","v":0},{"$f":"IFERROR('Data Input - Option 5'!AQ86*INDEX('Energy Prices'!$F$26:$CR$31,MATCH($B130,'Energy Prices'!$C$26:$C$31,0),MATCH(Calc_Option5!AM$6,'Energy Prices'!$F$11:$CR$11,0))/100000,0)","v":0},{"$f":"IFERROR('Data Input - Option 5'!AR86*INDEX('Energy Prices'!$F$26:$CR$31,MATCH($B130,'Energy Prices'!$C$26:$C$31,0),MATCH(Calc_Option5!AN$6,'Energy Prices'!$F$11:$CR$11,0))/100000,0)","v":0},{"$f":"IFERROR('Data Input - Option 5'!AS86*INDEX('Energy Prices'!$F$26:$CR$31,MATCH($B130,'Energy Prices'!$C$26:$C$31,0),MATCH(Calc_Option5!AO$6,'Energy Prices'!$F$11:$CR$11,0))/100000,0)","v":0},{"$f":"IFERROR('Data Input - Option 5'!AT86*INDEX('Energy Prices'!$F$26:$CR$31,MATCH($B130,'Energy Prices'!$C$26:$C$31,0),MATCH(Calc_Option5!AP$6,'Energy Prices'!$F$11:$CR$11,0))/100000,0)","v":0},{"$f":"IFERROR('Data Input - Option 5'!AU86*INDEX('Energy Prices'!$F$26:$CR$31,MATCH($B130,'Energy Prices'!$C$26:$C$31,0),MATCH(Calc_Option5!AQ$6,'Energy Prices'!$F$11:$CR$11,0))/100000,0)","v":0},{"$f":"IFERROR('Data Input - Option 5'!AV86*INDEX('Energy Prices'!$F$26:$CR$31,MATCH($B130,'Energy Prices'!$C$26:$C$31,0),MATCH(Calc_Option5!AR$6,'Energy Prices'!$F$11:$CR$11,0))/100000,0)","v":0},{"$f":"IFERROR('Data Input - Option 5'!AW86*INDEX('Energy Prices'!$F$26:$CR$31,MATCH($B130,'Energy Prices'!$C$26:$C$31,0),MATCH(Calc_Option5!AS$6,'Energy Prices'!$F$11:$CR$11,0))/100000,0)","v":0},{"$f":"IFERROR('Data Input - Option 5'!AX86*INDEX('Energy Prices'!$F$26:$CR$31,MATCH($B130,'Energy Prices'!$C$26:$C$31,0),MATCH(Calc_Option5!AT$6,'Energy Prices'!$F$11:$CR$11,0))/100000,0)","v":0},{"$f":"IFERROR('Data Input - Option 5'!AY86*INDEX('Energy Prices'!$F$26:$CR$31,MATCH($B130,'Energy Prices'!$C$26:$C$31,0),MATCH(Calc_Option5!AU$6,'Energy Prices'!$F$11:$CR$11,0))/100000,0)","v":0},{"$f":"IFERROR('Data Input - Option 5'!AZ86*INDEX('Energy Prices'!$F$26:$CR$31,MATCH($B130,'Energy Prices'!$C$26:$C$31,0),MATCH(Calc_Option5!AV$6,'Energy Prices'!$F$11:$CR$11,0))/100000,0)","v":0},{"$f":"IFERROR('Data Input - Option 5'!BA86*INDEX('Energy Prices'!$F$26:$CR$31,MATCH($B130,'Energy Prices'!$C$26:$C$31,0),MATCH(Calc_Option5!AW$6,'Energy Prices'!$F$11:$CR$11,0))/100000,0)","v":0},{"$f":"IFERROR('Data Input - Option 5'!BB86*INDEX('Energy Prices'!$F$26:$CR$31,MATCH($B130,'Energy Prices'!$C$26:$C$31,0),MATCH(Calc_Option5!AX$6,'Energy Prices'!$F$11:$CR$11,0))/100000,0)","v":0},{"$f":"IFERROR('Data Input - Option 5'!BC86*INDEX('Energy Prices'!$F$26:$CR$31,MATCH($B130,'Energy Prices'!$C$26:$C$31,0),MATCH(Calc_Option5!AY$6,'Energy Prices'!$F$11:$CR$11,0))/100000,0)","v":0},{"$f":"IFERROR('Data Input - Option 5'!BD86*INDEX('Energy Prices'!$F$26:$CR$31,MATCH($B130,'Energy Prices'!$C$26:$C$31,0),MATCH(Calc_Option5!AZ$6,'Energy Prices'!$F$11:$CR$11,0))/100000,0)","v":0},{"$f":"IFERROR('Data Input - Option 5'!BE86*INDEX('Energy Prices'!$F$26:$CR$31,MATCH($B130,'Energy Prices'!$C$26:$C$31,0),MATCH(Calc_Option5!BA$6,'Energy Prices'!$F$11:$CR$11,0))/100000,0)","v":0},{"$f":"IFERROR('Data Input - Option 5'!BF86*INDEX('Energy Prices'!$F$26:$CR$31,MATCH($B130,'Energy Prices'!$C$26:$C$31,0),MATCH(Calc_Option5!BB$6,'Energy Prices'!$F$11:$CR$11,0))/100000,0)","v":0},{"$f":"IFERROR('Data Input - Option 5'!BG86*INDEX('Energy Prices'!$F$26:$CR$31,MATCH($B130,'Energy Prices'!$C$26:$C$31,0),MATCH(Calc_Option5!BC$6,'Energy Prices'!$F$11:$CR$11,0))/100000,0)","v":0},{"$f":"IFERROR('Data Input - Option 5'!BH86*INDEX('Energy Prices'!$F$26:$CR$31,MATCH($B130,'Energy Prices'!$C$26:$C$31,0),MATCH(Calc_Option5!BD$6,'Energy Prices'!$F$11:$CR$11,0))/100000,0)","v":0},{"$f":"IFERROR('Data Input - Option 5'!BI86*INDEX('Energy Prices'!$F$26:$CR$31,MATCH($B130,'Energy Prices'!$C$26:$C$31,0),MATCH(Calc_Option5!BE$6,'Energy Prices'!$F$11:$CR$11,0))/100000,0)","v":0},{"$f":"IFERROR('Data Input - Option 5'!BJ86*INDEX('Energy Prices'!$F$26:$CR$31,MATCH($B130,'Energy Prices'!$C$26:$C$31,0),MATCH(Calc_Option5!BF$6,'Energy Prices'!$F$11:$CR$11,0))/100000,0)","v":0},{"$f":"IFERROR('Data Input - Option 5'!BK86*INDEX('Energy Prices'!$F$26:$CR$31,MATCH($B130,'Energy Prices'!$C$26:$C$31,0),MATCH(Calc_Option5!BG$6,'Energy Prices'!$F$11:$CR$11,0))/100000,0)","v":0},{"$f":"IFERROR('Data Input - Option 5'!BL86*INDEX('Energy Prices'!$F$26:$CR$31,MATCH($B130,'Energy Prices'!$C$26:$C$31,0),MATCH(Calc_Option5!BH$6,'Energy Prices'!$F$11:$CR$11,0))/100000,0)","v":0},{"$f":"IFERROR('Data Input - Option 5'!BM86*INDEX('Energy Prices'!$F$26:$CR$31,MATCH($B130,'Energy Prices'!$C$26:$C$31,0),MATCH(Calc_Option5!BI$6,'Energy Prices'!$F$11:$CR$11,0))/100000,0)","v":0},{"$f":"IFERROR('Data Input - Option 5'!BN86*INDEX('Energy Prices'!$F$26:$CR$31,MATCH($B130,'Energy Prices'!$C$26:$C$31,0),MATCH(Calc_Option5!BJ$6,'Energy Prices'!$F$11:$CR$11,0))/100000,0)","v":0},{"$f":"IFERROR('Data Input - Option 5'!BO86*INDEX('Energy Prices'!$F$26:$CR$31,MATCH($B130,'Energy Prices'!$C$26:$C$31,0),MATCH(Calc_Option5!BK$6,'Energy Prices'!$F$11:$CR$11,0))/100000,0)","v":0},{"$f":"IFERROR('Data Input - Option 5'!BP86*INDEX('Energy Prices'!$F$26:$CR$31,MATCH($B130,'Energy Prices'!$C$26:$C$31,0),MATCH(Calc_Option5!BL$6,'Energy Prices'!$F$11:$CR$11,0))/100000,0)","v":0},{"$f":"IFERROR('Data Input - Option 5'!BQ86*INDEX('Energy Prices'!$F$26:$CR$31,MATCH($B130,'Energy Prices'!$C$26:$C$31,0),MATCH(Calc_Option5!BM$6,'Energy Prices'!$F$11:$CR$11,0))/100000,0)","v":0},{"$f":"IFERROR('Data Input - Option 5'!BR86*INDEX('Energy Prices'!$F$26:$CR$31,MATCH($B130,'Energy Prices'!$C$26:$C$31,0),MATCH(Calc_Option5!BN$6,'Energy Prices'!$F$11:$CR$11,0))/100000,0)","v":0},{"$f":"IFERROR('Data Input - Option 5'!BS86*INDEX('Energy Prices'!$F$26:$CR$31,MATCH($B130,'Energy Prices'!$C$26:$C$31,0),MATCH(Calc_Option5!BO$6,'Energy Prices'!$F$11:$CR$11,0))/100000,0)","v":0},{"$f":"IFERROR('Data Input - Option 5'!BT86*INDEX('Energy Prices'!$F$26:$CR$31,MATCH($B130,'Energy Prices'!$C$26:$C$31,0),MATCH(Calc_Option5!BP$6,'Energy Prices'!$F$11:$CR$11,0))/100000,0)","v":0},{"$f":"IFERROR('Data Input - Option 5'!BU86*INDEX('Energy Prices'!$F$26:$CR$31,MATCH($B130,'Energy Prices'!$C$26:$C$31,0),MATCH(Calc_Option5!BQ$6,'Energy Prices'!$F$11:$CR$11,0))/100000,0)","v":0},{"$f":"IFERROR('Data Input - Option 5'!BV86*INDEX('Energy Prices'!$F$26:$CR$31,MATCH($B130,'Energy Prices'!$C$26:$C$31,0),MATCH(Calc_Option5!BR$6,'Energy Prices'!$F$11:$CR$11,0))/100000,0)","v":0},{"$f":"IFERROR('Data Input - Option 5'!BW86*INDEX('Energy Prices'!$F$26:$CR$31,MATCH($B130,'Energy Prices'!$C$26:$C$31,0),MATCH(Calc_Option5!BS$6,'Energy Prices'!$F$11:$CR$11,0))/100000,0)","v":0},{"$f":"IFERROR('Data Input - Option 5'!BX86*INDEX('Energy Prices'!$F$26:$CR$31,MATCH($B130,'Energy Prices'!$C$26:$C$31,0),MATCH(Calc_Option5!BT$6,'Energy Prices'!$F$11:$CR$11,0))/100000,0)","v":0},{"$f":"IFERROR('Data Input - Option 5'!BY86*INDEX('Energy Prices'!$F$26:$CR$31,MATCH($B130,'Energy Prices'!$C$26:$C$31,0),MATCH(Calc_Option5!BU$6,'Energy Prices'!$F$11:$CR$11,0))/100000,0)","v":0},{"$f":"IFERROR('Data Input - Option 5'!BZ86*INDEX('Energy Prices'!$F$26:$CR$31,MATCH($B130,'Energy Prices'!$C$26:$C$31,0),MATCH(Calc_Option5!BV$6,'Energy Prices'!$F$11:$CR$11,0))/100000,0)","v":0},{"$f":"IFERROR('Data Input - Option 5'!CA86*INDEX('Energy Prices'!$F$26:$CR$31,MATCH($B130,'Energy Prices'!$C$26:$C$31,0),MATCH(Calc_Option5!BW$6,'Energy Prices'!$F$11:$CR$11,0))/100000,0)","v":0},{"$f":"IFERROR('Data Input - Option 5'!CB86*INDEX('Energy Prices'!$F$26:$CR$31,MATCH($B130,'Energy Prices'!$C$26:$C$31,0),MATCH(Calc_Option5!BX$6,'Energy Prices'!$F$11:$CR$11,0))/100000,0)","v":0},{"$f":"IFERROR('Data Input - Option 5'!CC86*INDEX('Energy Prices'!$F$26:$CR$31,MATCH($B130,'Energy Prices'!$C$26:$C$31,0),MATCH(Calc_Option5!BY$6,'Energy Prices'!$F$11:$CR$11,0))/100000,0)","v":0},{"$f":"IFERROR('Data Input - Option 5'!CD86*INDEX('Energy Prices'!$F$26:$CR$31,MATCH($B130,'Energy Prices'!$C$26:$C$31,0),MATCH(Calc_Option5!BZ$6,'Energy Prices'!$F$11:$CR$11,0))/100000,0)","v":0},{"$f":"IFERROR('Data Input - Option 5'!CE86*INDEX('Energy Prices'!$F$26:$CR$31,MATCH($B130,'Energy Prices'!$C$26:$C$31,0),MATCH(Calc_Option5!CA$6,'Energy Prices'!$F$11:$CR$11,0))/100000,0)","v":0},{"$f":"IFERROR('Data Input - Option 5'!CF86*INDEX('Energy Prices'!$F$26:$CR$31,MATCH($B130,'Energy Prices'!$C$26:$C$31,0),MATCH(Calc_Option5!CB$6,'Energy Prices'!$F$11:$CR$11,0))/100000,0)","v":0},{"$f":"IFERROR('Data Input - Option 5'!CG86*INDEX('Energy Prices'!$F$26:$CR$31,MATCH($B130,'Energy Prices'!$C$26:$C$31,0),MATCH(Calc_Option5!CC$6,'Energy Prices'!$F$11:$CR$11,0))/100000,0)","v":0},{"$f":"IFERROR('Data Input - Option 5'!CH86*INDEX('Energy Prices'!$F$26:$CR$31,MATCH($B130,'Energy Prices'!$C$26:$C$31,0),MATCH(Calc_Option5!CD$6,'Energy Prices'!$F$11:$CR$11,0))/100000,0)","v":0},{"$f":"IFERROR('Data Input - Option 5'!CI86*INDEX('Energy Prices'!$F$26:$CR$31,MATCH($B130,'Energy Prices'!$C$26:$C$31,0),MATCH(Calc_Option5!CE$6,'Energy Prices'!$F$11:$CR$11,0))/100000,0)","v":0},{"$f":"IFERROR('Data Input - Option 5'!CJ86*INDEX('Energy Prices'!$F$26:$CR$31,MATCH($B130,'Energy Prices'!$C$26:$C$31,0),MATCH(Calc_Option5!CF$6,'Energy Prices'!$F$11:$CR$11,0))/100000,0)","v":0},{"$f":"IFERROR('Data Input - Option 5'!CK86*INDEX('Energy Prices'!$F$26:$CR$31,MATCH($B130,'Energy Prices'!$C$26:$C$31,0),MATCH(Calc_Option5!CG$6,'Energy Prices'!$F$11:$CR$11,0))/100000,0)","v":0},{"$f":"IFERROR('Data Input - Option 5'!CL86*INDEX('Energy Prices'!$F$26:$CR$31,MATCH($B130,'Energy Prices'!$C$26:$C$31,0),MATCH(Calc_Option5!CH$6,'Energy Prices'!$F$11:$CR$11,0))/100000,0)","v":0},{"$f":"IFERROR('Data Input - Option 5'!CM86*INDEX('Energy Prices'!$F$26:$CR$31,MATCH($B130,'Energy Prices'!$C$26:$C$31,0),MATCH(Calc_Option5!CI$6,'Energy Prices'!$F$11:$CR$11,0))/100000,0)","v":0},{"$f":"IFERROR('Data Input - Option 5'!CN86*INDEX('Energy Prices'!$F$26:$CR$31,MATCH($B130,'Energy Prices'!$C$26:$C$31,0),MATCH(Calc_Option5!CJ$6,'Energy Prices'!$F$11:$CR$11,0))/100000,0)","v":0},{"$f":"IFERROR('Data Input - Option 5'!CO86*INDEX('Energy Prices'!$F$26:$CR$31,MATCH($B130,'Energy Prices'!$C$26:$C$31,0),MATCH(Calc_Option5!CK$6,'Energy Prices'!$F$11:$CR$11,0))/100000,0)","v":0},{"$f":"IFERROR('Data Input - Option 5'!CP86*INDEX('Energy Prices'!$F$26:$CR$31,MATCH($B130,'Energy Prices'!$C$26:$C$31,0),MATCH(Calc_Option5!CL$6,'Energy Prices'!$F$11:$CR$11,0))/100000,0)","v":0},{"$f":"IFERROR('Data Input - Option 5'!CQ86*INDEX('Energy Prices'!$F$26:$CR$31,MATCH($B130,'Energy Prices'!$C$26:$C$31,0),MATCH(Calc_Option5!CM$6,'Energy Prices'!$F$11:$CR$11,0))/100000,0)","v":0},{"$f":"IFERROR('Data Input - Option 5'!CR86*INDEX('Energy Prices'!$F$26:$CR$31,MATCH($B130,'Energy Prices'!$C$26:$C$31,0),MATCH(Calc_Option5!CN$6,'Energy Prices'!$F$11:$CR$11,0))/100000,0)","v":0},{"$f":"IFERROR('Data Input - Option 5'!CS86*INDEX('Energy Prices'!$F$26:$CR$31,MATCH($B130,'Energy Prices'!$C$26:$C$31,0),MATCH(Calc_Option5!CO$6,'Energy Prices'!$F$11:$CR$11,0))/100000,0)","v":0},{"$f":"IFERROR('Data Input - Option 5'!CT86*INDEX('Energy Prices'!$F$26:$CR$31,MATCH($B130,'Energy Prices'!$C$26:$C$31,0),MATCH(Calc_Option5!CP$6,'Energy Prices'!$F$11:$CR$11,0))/100000,0)","v":0},{"$f":"IFERROR('Data Input - Option 5'!CU86*INDEX('Energy Prices'!$F$26:$CR$31,MATCH($B130,'Energy Prices'!$C$26:$C$31,0),MATCH(Calc_Option5!CQ$6,'Energy Prices'!$F$11:$CR$11,0))/100000,0)","v":0},{"$f":"IFERROR('Data Input - Option 5'!CV86*INDEX('Energy Prices'!$F$26:$CR$31,MATCH($B130,'Energy Prices'!$C$26:$C$31,0),MATCH(Calc_Option5!CR$6,'Energy Prices'!$F$11:$CR$11,0))/100000,0)","v":0},{"$f":"IFERROR('Data Input - Option 5'!CW86*INDEX('Energy Prices'!$F$26:$CR$31,MATCH($B130,'Energy Prices'!$C$26:$C$31,0),MATCH(Calc_Option5!CS$6,'Energy Prices'!$F$11:$CR$11,0))/100000,0)","v":0},{"$f":"IFERROR('Data Input - Option 5'!CX86*INDEX('Energy Prices'!$F$26:$CR$31,MATCH($B130,'Energy Prices'!$C$26:$C$31,0),MATCH(Calc_Option5!CT$6,'Energy Prices'!$F$11:$CR$11,0))/100000,0)","v":0},{"$f":"IFERROR('Data Input - Option 5'!CY86*INDEX('Energy Prices'!$F$26:$CR$31,MATCH($B130,'Energy Prices'!$C$26:$C$31,0),MATCH(Calc_Option5!CU$6,'Energy Prices'!$F$11:$CR$11,0))/100000,0)","v":0},{"$f":"IFERROR('Data Input - Option 5'!CZ86*INDEX('Energy Prices'!$F$26:$CR$31,MATCH($B130,'Energy Prices'!$C$26:$C$31,0),MATCH(Calc_Option5!CV$6,'Energy Prices'!$F$11:$CR$11,0))/100000,0)","v":0},{"$f":"IFERROR('Data Input - Option 5'!DA86*INDEX('Energy Prices'!$F$26:$CR$31,MATCH($B130,'Energy Prices'!$C$26:$C$31,0),MATCH(Calc_Option5!CW$6,'Energy Prices'!$F$11:$CR$11,0))/100000,0)","v":0},{"$f":"IFERROR('Data Input - Option 5'!DB86*INDEX('Energy Prices'!$F$26:$CR$31,MATCH($B130,'Energy Prices'!$C$26:$C$31,0),MATCH(Calc_Option5!CX$6,'Energy Prices'!$F$11:$CR$11,0))/100000,0)","v":0},{"$f":"IFERROR('Data Input - Option 5'!DC86*INDEX('Energy Prices'!$F$26:$CR$31,MATCH($B130,'Energy Prices'!$C$26:$C$31,0),MATCH(Calc_Option5!CY$6,'Energy Prices'!$F$11:$CR$11,0))/100000,0)","v":0}]
[null,"Gas Oil","£000's",{"$f":"IFERROR('Data Input - Option 5'!H87*INDEX('Energy Prices'!$F$26:$CR$31,MATCH($B131,'Energy Prices'!$C$26:$C$31,0),MATCH(Calc_Option5!D$6,'Energy Prices'!$F$11:$CR$11,0))/100000,0)","v":0},{"$f":"IFERROR('Data Input - Option 5'!I87*INDEX('Energy Prices'!$F$26:$CR$31,MATCH($B131,'Energy Prices'!$C$26:$C$31,0),MATCH(Calc_Option5!E$6,'Energy Prices'!$F$11:$CR$11,0))/100000,0)","v":0},{"$f":"IFERROR('Data Input - Option 5'!J87*INDEX('Energy Prices'!$F$26:$CR$31,MATCH($B131,'Energy Prices'!$C$26:$C$31,0),MATCH(Calc_Option5!F$6,'Energy Prices'!$F$11:$CR$11,0))/100000,0)","v":0},{"$f":"IFERROR('Data Input - Option 5'!K87*INDEX('Energy Prices'!$F$26:$CR$31,MATCH($B131,'Energy Prices'!$C$26:$C$31,0),MATCH(Calc_Option5!G$6,'Energy Prices'!$F$11:$CR$11,0))/100000,0)","v":0},{"$f":"IFERROR('Data Input - Option 5'!L87*INDEX('Energy Prices'!$F$26:$CR$31,MATCH($B131,'Energy Prices'!$C$26:$C$31,0),MATCH(Calc_Option5!H$6,'Energy Prices'!$F$11:$CR$11,0))/100000,0)","v":0},{"$f":"IFERROR('Data Input - Option 5'!M87*INDEX('Energy Prices'!$F$26:$CR$31,MATCH($B131,'Energy Prices'!$C$26:$C$31,0),MATCH(Calc_Option5!I$6,'Energy Prices'!$F$11:$CR$11,0))/100000,0)","v":0},{"$f":"IFERROR('Data Input - Option 5'!N87*INDEX('Energy Prices'!$F$26:$CR$31,MATCH($B131,'Energy Prices'!$C$26:$C$31,0),MATCH(Calc_Option5!J$6,'Energy Prices'!$F$11:$CR$11,0))/100000,0)","v":0},{"$f":"IFERROR('Data Input - Option 5'!O87*INDEX('Energy Prices'!$F$26:$CR$31,MATCH($B131,'Energy Prices'!$C$26:$C$31,0),MATCH(Calc_Option5!K$6,'Energy Prices'!$F$11:$CR$11,0))/100000,0)","v":0},{"$f":"IFERROR('Data Input - Option 5'!P87*INDEX('Energy Prices'!$F$26:$CR$31,MATCH($B131,'Energy Prices'!$C$26:$C$31,0),MATCH(Calc_Option5!L$6,'Energy Prices'!$F$11:$CR$11,0))/100000,0)","v":0},{"$f":"IFERROR('Data Input - Option 5'!Q87*INDEX('Energy Prices'!$F$26:$CR$31,MATCH($B131,'Energy Prices'!$C$26:$C$31,0),MATCH(Calc_Option5!M$6,'Energy Prices'!$F$11:$CR$11,0))/100000,0)","v":0},{"$f":"IFERROR('Data Input - Option 5'!R87*INDEX('Energy Prices'!$F$26:$CR$31,MATCH($B131,'Energy Prices'!$C$26:$C$31,0),MATCH(Calc_Option5!N$6,'Energy Prices'!$F$11:$CR$11,0))/100000,0)","v":0},{"$f":"IFERROR('Data Input - Option 5'!S87*INDEX('Energy Prices'!$F$26:$CR$31,MATCH($B131,'Energy Prices'!$C$26:$C$31,0),MATCH(Calc_Option5!O$6,'Energy Prices'!$F$11:$CR$11,0))/100000,0)","v":0},{"$f":"IFERROR('Data Input - Option 5'!T87*INDEX('Energy Prices'!$F$26:$CR$31,MATCH($B131,'Energy Prices'!$C$26:$C$31,0),MATCH(Calc_Option5!P$6,'Energy Prices'!$F$11:$CR$11,0))/100000,0)","v":0},{"$f":"IFERROR('Data Input - Option 5'!U87*INDEX('Energy Prices'!$F$26:$CR$31,MATCH($B131,'Energy Prices'!$C$26:$C$31,0),MATCH(Calc_Option5!Q$6,'Energy Prices'!$F$11:$CR$11,0))/100000,0)","v":0},{"$f":"IFERROR('Data Input - Option 5'!V87*INDEX('Energy Prices'!$F$26:$CR$31,MATCH($B131,'Energy Prices'!$C$26:$C$31,0),MATCH(Calc_Option5!R$6,'Energy Prices'!$F$11:$CR$11,0))/100000,0)","v":0},{"$f":"IFERROR('Data Input - Option 5'!W87*INDEX('Energy Prices'!$F$26:$CR$31,MATCH($B131,'Energy Prices'!$C$26:$C$31,0),MATCH(Calc_Option5!S$6,'Energy Prices'!$F$11:$CR$11,0))/100000,0)","v":0},{"$f":"IFERROR('Data Input - Option 5'!X87*INDEX('Energy Prices'!$F$26:$CR$31,MATCH($B131,'Energy Prices'!$C$26:$C$31,0),MATCH(Calc_Option5!T$6,'Energy Prices'!$F$11:$CR$11,0))/100000,0)","v":0},{"$f":"IFERROR('Data Input - Option 5'!Y87*INDEX('Energy Prices'!$F$26:$CR$31,MATCH($B131,'Energy Prices'!$C$26:$C$31,0),MATCH(Calc_Option5!U$6,'Energy Prices'!$F$11:$CR$11,0))/100000,0)","v":0},{"$f":"IFERROR('Data Input - Option 5'!Z87*INDEX('Energy Prices'!$F$26:$CR$31,MATCH($B131,'Energy Prices'!$C$26:$C$31,0),MATCH(Calc_Option5!V$6,'Energy Prices'!$F$11:$CR$11,0))/100000,0)","v":0},{"$f":"IFERROR('Data Input - Option 5'!AA87*INDEX('Energy Prices'!$F$26:$CR$31,MATCH($B131,'Energy Prices'!$C$26:$C$31,0),MATCH(Calc_Option5!W$6,'Energy Prices'!$F$11:$CR$11,0))/100000,0)","v":0},{"$f":"IFERROR('Data Input - Option 5'!AB87*INDEX('Energy Prices'!$F$26:$CR$31,MATCH($B131,'Energy Prices'!$C$26:$C$31,0),MATCH(Calc_Option5!X$6,'Energy Prices'!$F$11:$CR$11,0))/100000,0)","v":0},{"$f":"IFERROR('Data Input - Option 5'!AC87*INDEX('Energy Prices'!$F$26:$CR$31,MATCH($B131,'Energy Prices'!$C$26:$C$31,0),MATCH(Calc_Option5!Y$6,'Energy Prices'!$F$11:$CR$11,0))/100000,0)","v":0},{"$f":"IFERROR('Data Input - Option 5'!AD87*INDEX('Energy Prices'!$F$26:$CR$31,MATCH($B131,'Energy Prices'!$C$26:$C$31,0),MATCH(Calc_Option5!Z$6,'Energy Prices'!$F$11:$CR$11,0))/100000,0)","v":0},{"$f":"IFERROR('Data Input - Option 5'!AE87*INDEX('Energy Prices'!$F$26:$CR$31,MATCH($B131,'Energy Prices'!$C$26:$C$31,0),MATCH(Calc_Option5!AA$6,'Energy Prices'!$F$11:$CR$11,0))/100000,0)","v":0},{"$f":"IFERROR('Data Input - Option 5'!AF87*INDEX('Energy Prices'!$F$26:$CR$31,MATCH($B131,'Energy Prices'!$C$26:$C$31,0),MATCH(Calc_Option5!AB$6,'Energy Prices'!$F$11:$CR$11,0))/100000,0)","v":0},{"$f":"IFERROR('Data Input - Option 5'!AG87*INDEX('Energy Prices'!$F$26:$CR$31,MATCH($B131,'Energy Prices'!$C$26:$C$31,0),MATCH(Calc_Option5!AC$6,'Energy Prices'!$F$11:$CR$11,0))/100000,0)","v":0},{"$f":"IFERROR('Data Input - Option 5'!AH87*INDEX('Energy Prices'!$F$26:$CR$31,MATCH($B131,'Energy Prices'!$C$26:$C$31,0),MATCH(Calc_Option5!AD$6,'Energy Prices'!$F$11:$CR$11,0))/100000,0)","v":0},{"$f":"IFERROR('Data Input - Option 5'!AI87*INDEX('Energy Prices'!$F$26:$CR$31,MATCH($B131,'Energy Prices'!$C$26:$C$31,0),MATCH(Calc_Option5!AE$6,'Energy Prices'!$F$11:$CR$11,0))/100000,0)","v":0},{"$f":"IFERROR('Data Input - Option 5'!AJ87*INDEX('Energy Prices'!$F$26:$CR$31,MATCH($B131,'Energy Prices'!$C$26:$C$31,0),MATCH(Calc_Option5!AF$6,'Energy Prices'!$F$11:$CR$11,0))/100000,0)","v":0},{"$f":"IFERROR('Data Input - Option 5'!AK87*INDEX('Energy Prices'!$F$26:$CR$31,MATCH($B131,'Energy Prices'!$C$26:$C$31,0),MATCH(Calc_Option5!AG$6,'Energy Prices'!$F$11:$CR$11,0))/100000,0)","v":0},{"$f":"IFERROR('Data Input - Option 5'!AL87*INDEX('Energy Prices'!$F$26:$CR$31,MATCH($B131,'Energy Prices'!$C$26:$C$31,0),MATCH(Calc_Option5!AH$6,'Energy Prices'!$F$11:$CR$11,0))/100000,0)","v":0},{"$f":"IFERROR('Data Input - Option 5'!AM87*INDEX('Energy Prices'!$F$26:$CR$31,MATCH($B131,'Energy Prices'!$C$26:$C$31,0),MATCH(Calc_Option5!AI$6,'Energy Prices'!$F$11:$CR$11,0))/100000,0)","v":0},{"$f":"IFERROR('Data Input - Option 5'!AN87*INDEX('Energy Prices'!$F$26:$CR$31,MATCH($B131,'Energy Prices'!$C$26:$C$31,0),MATCH(Calc_Option5!AJ$6,'Energy Prices'!$F$11:$CR$11,0))/100000,0)","v":0},{"$f":"IFERROR('Data Input - Option 5'!AO87*INDEX('Energy Prices'!$F$26:$CR$31,MATCH($B131,'Energy Prices'!$C$26:$C$31,0),MATCH(Calc_Option5!AK$6,'Energy Prices'!$F$11:$CR$11,0))/100000,0)","v":0},{"$f":"IFERROR('Data Input - Option 5'!AP87*INDEX('Energy Prices'!$F$26:$CR$31,MATCH($B131,'Energy Prices'!$C$26:$C$31,0),MATCH(Calc_Option5!AL$6,'Energy Prices'!$F$11:$CR$11,0))/100000,0)","v":0},{"$f":"IFERROR('Data Input - Option 5'!AQ87*INDEX('Energy Prices'!$F$26:$CR$31,MATCH($B131,'Energy Prices'!$C$26:$C$31,0),MATCH(Calc_Option5!AM$6,'Energy Prices'!$F$11:$CR$11,0))/100000,0)","v":0},{"$f":"IFERROR('Data Input - Option 5'!AR87*INDEX('Energy Prices'!$F$26:$CR$31,MATCH($B131,'Energy Prices'!$C$26:$C$31,0),MATCH(Calc_Option5!AN$6,'Energy Prices'!$F$11:$CR$11,0))/100000,0)","v":0},{"$f":"IFERROR('Data Input - Option 5'!AS87*INDEX('Energy Prices'!$F$26:$CR$31,MATCH($B131,'Energy Prices'!$C$26:$C$31,0),MATCH(Calc_Option5!AO$6,'Energy Prices'!$F$11:$CR$11,0))/100000,0)","v":0},{"$f":"IFERROR('Data Input - Option 5'!AT87*INDEX('Energy Prices'!$F$26:$CR$31,MATCH($B131,'Energy Prices'!$C$26:$C$31,0),MATCH(Calc_Option5!AP$6,'Energy Prices'!$F$11:$CR$11,0))/100000,0)","v":0},{"$f":"IFERROR('Data Input - Option 5'!AU87*INDEX('Energy Prices'!$F$26:$CR$31,MATCH($B131,'Energy Prices'!$C$26:$C$31,0),MATCH(Calc_Option5!AQ$6,'Energy Prices'!$F$11:$CR$11,0))/100000,0)","v":0},{"$f":"IFERROR('Data Input - Option 5'!AV87*INDEX('Energy Prices'!$F$26:$CR$31,MATCH($B131,'Energy Prices'!$C$26:$C$31,0),MATCH(Calc_Option5!AR$6,'Energy Prices'!$F$11:$CR$11,0))/100000,0)","v":0},{"$f":"IFERROR('Data Input - Option 5'!AW87*INDEX('Energy Prices'!$F$26:$CR$31,MATCH($B131,'Energy Prices'!$C$26:$C$31,0),MATCH(Calc_Option5!AS$6,'Energy Prices'!$F$11:$CR$11,0))/100000,0)","v":0},{"$f":"IFERROR('Data Input - Option 5'!AX87*INDEX('Energy Prices'!$F$26:$CR$31,MATCH($B131,'Energy Prices'!$C$26:$C$31,0),MATCH(Calc_Option5!AT$6,'Energy Prices'!$F$11:$CR$11,0))/100000,0)","v":0},{"$f":"IFERROR('Data Input - Option 5'!AY87*INDEX('Energy Prices'!$F$26:$CR$31,MATCH($B131,'Energy Prices'!$C$26:$C$31,0),MATCH(Calc_Option5!AU$6,'Energy Prices'!$F$11:$CR$11,0))/100000,0)","v":0},{"$f":"IFERROR('Data Input - Option 5'!AZ87*INDEX('Energy Prices'!$F$26:$CR$31,MATCH($B131,'Energy Prices'!$C$26:$C$31,0),MATCH(Calc_Option5!AV$6,'Energy Prices'!$F$11:$CR$11,0))/100000,0)","v":0},{"$f":"IFERROR('Data Input - Option 5'!BA87*INDEX('Energy Prices'!$F$26:$CR$31,MATCH($B131,'Energy Prices'!$C$26:$C$31,0),MATCH(Calc_Option5!AW$6,'Energy Prices'!$F$11:$CR$11,0))/100000,0)","v":0},{"$f":"IFERROR('Data Input - Option 5'!BB87*INDEX('Energy Prices'!$F$26:$CR$31,MATCH($B131,'Energy Prices'!$C$26:$C$31,0),MATCH(Calc_Option5!AX$6,'Energy Prices'!$F$11:$CR$11,0))/100000,0)","v":0},{"$f":"IFERROR('Data Input - Option 5'!BC87*INDEX('Energy Prices'!$F$26:$CR$31,MATCH($B131,'Energy Prices'!$C$26:$C$31,0),MATCH(Calc_Option5!AY$6,'Energy Prices'!$F$11:$CR$11,0))/100000,0)","v":0},{"$f":"IFERROR('Data Input - Option 5'!BD87*INDEX('Energy Prices'!$F$26:$CR$31,MATCH($B131,'Energy Prices'!$C$26:$C$31,0),MATCH(Calc_Option5!AZ$6,'Energy Prices'!$F$11:$CR$11,0))/100000,0)","v":0},{"$f":"IFERROR('Data Input - Option 5'!BE87*INDEX('Energy Prices'!$F$26:$CR$31,MATCH($B131,'Energy Prices'!$C$26:$C$31,0),MATCH(Calc_Option5!BA$6,'Energy Prices'!$F$11:$CR$11,0))/100000,0)","v":0},{"$f":"IFERROR('Data Input - Option 5'!BF87*INDEX('Energy Prices'!$F$26:$CR$31,MATCH($B131,'Energy Prices'!$C$26:$C$31,0),MATCH(Calc_Option5!BB$6,'Energy Prices'!$F$11:$CR$11,0))/100000,0)","v":0},{"$f":"IFERROR('Data Input - Option 5'!BG87*INDEX('Energy Prices'!$F$26:$CR$31,MATCH($B131,'Energy Prices'!$C$26:$C$31,0),MATCH(Calc_Option5!BC$6,'Energy Prices'!$F$11:$CR$11,0))/100000,0)","v":0},{"$f":"IFERROR('Data Input - Option 5'!BH87*INDEX('Energy Prices'!$F$26:$CR$31,MATCH($B131,'Energy Prices'!$C$26:$C$31,0),MATCH(Calc_Option5!BD$6,'Energy Prices'!$F$11:$CR$11,0))/100000,0)","v":0},{"$f":"IFERROR('Data Input - Option 5'!BI87*INDEX('Energy Prices'!$F$26:$CR$31,MATCH($B131,'Energy Prices'!$C$26:$C$31,0),MATCH(Calc_Option5!BE$6,'Energy Prices'!$F$11:$CR$11,0))/100000,0)","v":0},{"$f":"IFERROR('Data Input - Option 5'!BJ87*INDEX('Energy Prices'!$F$26:$CR$31,MATCH($B131,'Energy Prices'!$C$26:$C$31,0),MATCH(Calc_Option5!BF$6,'Energy Prices'!$F$11:$CR$11,0))/100000,0)","v":0},{"$f":"IFERROR('Data Input - Option 5'!BK87*INDEX('Energy Prices'!$F$26:$CR$31,MATCH($B131,'Energy Prices'!$C$26:$C$31,0),MATCH(Calc_Option5!BG$6,'Energy Prices'!$F$11:$CR$11,0))/100000,0)","v":0},{"$f":"IFERROR('Data Input - Option 5'!BL87*INDEX('Energy Prices'!$F$26:$CR$31,MATCH($B131,'Energy Prices'!$C$26:$C$31,0),MATCH(Calc_Option5!BH$6,'Energy Prices'!$F$11:$CR$11,0))/100000,0)","v":0},{"$f":"IFERROR('Data Input - Option 5'!BM87*INDEX('Energy Prices'!$F$26:$CR$31,MATCH($B131,'Energy Prices'!$C$26:$C$31,0),MATCH(Calc_Option5!BI$6,'Energy Prices'!$F$11:$CR$11,0))/100000,0)","v":0},{"$f":"IFERROR('Data Input - Option 5'!BN87*INDEX('Energy Prices'!$F$26:$CR$31,MATCH($B131,'Energy Prices'!$C$26:$C$31,0),MATCH(Calc_Option5!BJ$6,'Energy Prices'!$F$11:$CR$11,0))/100000,0)","v":0},{"$f":"IFERROR('Data Input - Option 5'!BO87*INDEX('Energy Prices'!$F$26:$CR$31,MATCH($B131,'Energy Prices'!$C$26:$C$31,0),MATCH(Calc_Option5!BK$6,'Energy Prices'!$F$11:$CR$11,0))/100000,0)","v":0},{"$f":"IFERROR('Data Input - Option 5'!BP87*INDEX('Energy Prices'!$F$26:$CR$31,MATCH($B131,'Energy Prices'!$C$26:$C$31,0),MATCH(Calc_Option5!BL$6,'Energy Prices'!$F$11:$CR$11,0))/100000,0)","v":0},{"$f":"IFERROR('Data Input - Option 5'!BQ87*INDEX('Energy Prices'!$F$26:$CR$31,MATCH($B131,'Energy Prices'!$C$26:$C$31,0),MATCH(Calc_Option5!BM$6,'Energy Prices'!$F$11:$CR$11,0))/100000,0)","v":0},{"$f":"IFERROR('Data Input - Option 5'!BR87*INDEX('Energy Prices'!$F$26:$CR$31,MATCH($B131,'Energy Prices'!$C$26:$C$31,0),MATCH(Calc_Option5!BN$6,'Energy Prices'!$F$11:$CR$11,0))/100000,0)","v":0},{"$f":"IFERROR('Data Input - Option 5'!BS87*INDEX('Energy Prices'!$F$26:$CR$31,MATCH($B131,'Energy Prices'!$C$26:$C$31,0),MATCH(Calc_Option5!BO$6,'Energy Prices'!$F$11:$CR$11,0))/100000,0)","v":0},{"$f":"IFERROR('Data Input - Option 5'!BT87*INDEX('Energy Prices'!$F$26:$CR$31,MATCH($B131,'Energy Prices'!$C$26:$C$31,0),MATCH(Calc_Option5!BP$6,'Energy Prices'!$F$11:$CR$11,0))/100000,0)","v":0},{"$f":"IFERROR('Data Input - Option 5'!BU87*INDEX('Energy Prices'!$F$26:$CR$31,MATCH($B131,'Energy Prices'!$C$26:$C$31,0),MATCH(Calc_Option5!BQ$6,'Energy Prices'!$F$11:$CR$11,0))/100000,0)","v":0},{"$f":"IFERROR('Data Input - Option 5'!BV87*INDEX('Energy Prices'!$F$26:$CR$31,MATCH($B131,'Energy Prices'!$C$26:$C$31,0),MATCH(Calc_Option5!BR$6,'Energy Prices'!$F$11:$CR$11,0))/100000,0)","v":0},{"$f":"IFERROR('Data Input - Option 5'!BW87*INDEX('Energy Prices'!$F$26:$CR$31,MATCH($B131,'Energy Prices'!$C$26:$C$31,0),MATCH(Calc_Option5!BS$6,'Energy Prices'!$F$11:$CR$11,0))/100000,0)","v":0},{"$f":"IFERROR('Data Input - Option 5'!BX87*INDEX('Energy Prices'!$F$26:$CR$31,MATCH($B131,'Energy Prices'!$C$26:$C$31,0),MATCH(Calc_Option5!BT$6,'Energy Prices'!$F$11:$CR$11,0))/100000,0)","v":0},{"$f":"IFERROR('Data Input - Option 5'!BY87*INDEX('Energy Prices'!$F$26:$CR$31,MATCH($B131,'Energy Prices'!$C$26:$C$31,0),MATCH(Calc_Option5!BU$6,'Energy Prices'!$F$11:$CR$11,0))/100000,0)","v":0},{"$f":"IFERROR('Data Input - Option 5'!BZ87*INDEX('Energy Prices'!$F$26:$CR$31,MATCH($B131,'Energy Prices'!$C$26:$C$31,0),MATCH(Calc_Option5!BV$6,'Energy Prices'!$F$11:$CR$11,0))/100000,0)","v":0},{"$f":"IFERROR('Data Input - Option 5'!CA87*INDEX('Energy Prices'!$F$26:$CR$31,MATCH($B131,'Energy Prices'!$C$26:$C$31,0),MATCH(Calc_Option5!BW$6,'Energy Prices'!$F$11:$CR$11,0))/100000,0)","v":0},{"$f":"IFERROR('Data Input - Option 5'!CB87*INDEX('Energy Prices'!$F$26:$CR$31,MATCH($B131,'Energy Prices'!$C$26:$C$31,0),MATCH(Calc_Option5!BX$6,'Energy Prices'!$F$11:$CR$11,0))/100000,0)","v":0},{"$f":"IFERROR('Data Input - Option 5'!CC87*INDEX('Energy Prices'!$F$26:$CR$31,MATCH($B131,'Energy Prices'!$C$26:$C$31,0),MATCH(Calc_Option5!BY$6,'Energy Prices'!$F$11:$CR$11,0))/100000,0)","v":0},{"$f":"IFERROR('Data Input - Option 5'!CD87*INDEX('Energy Prices'!$F$26:$CR$31,MATCH($B131,'Energy Prices'!$C$26:$C$31,0),MATCH(Calc_Option5!BZ$6,'Energy Prices'!$F$11:$CR$11,0))/100000,0)","v":0},{"$f":"IFERROR('Data Input - Option 5'!CE87*INDEX('Energy Prices'!$F$26:$CR$31,MATCH($B131,'Energy Prices'!$C$26:$C$31,0),MATCH(Calc_Option5!CA$6,'Energy Prices'!$F$11:$CR$11,0))/100000,0)","v":0},{"$f":"IFERROR('Data Input - Option 5'!CF87*INDEX('Energy Prices'!$F$26:$CR$31,MATCH($B131,'Energy Prices'!$C$26:$C$31,0),MATCH(Calc_Option5!CB$6,'Energy Prices'!$F$11:$CR$11,0))/100000,0)","v":0},{"$f":"IFERROR('Data Input - Option 5'!CG87*INDEX('Energy Prices'!$F$26:$CR$31,MATCH($B131,'Energy Prices'!$C$26:$C$31,0),MATCH(Calc_Option5!CC$6,'Energy Prices'!$F$11:$CR$11,0))/100000,0)","v":0},{"$f":"IFERROR('Data Input - Option 5'!CH87*INDEX('Energy Prices'!$F$26:$CR$31,MATCH($B131,'Energy Prices'!$C$26:$C$31,0),MATCH(Calc_Option5!CD$6,'Energy Prices'!$F$11:$CR$11,0))/100000,0)","v":0},{"$f":"IFERROR('Data Input - Option 5'!CI87*INDEX('Energy Prices'!$F$26:$CR$31,MATCH($B131,'Energy Prices'!$C$26:$C$31,0),MATCH(Calc_Option5!CE$6,'Energy Prices'!$F$11:$CR$11,0))/100000,0)","v":0},{"$f":"IFERROR('Data Input - Option 5'!CJ87*INDEX('Energy Prices'!$F$26:$CR$31,MATCH($B131,'Energy Prices'!$C$26:$C$31,0),MATCH(Calc_Option5!CF$6,'Energy Prices'!$F$11:$CR$11,0))/100000,0)","v":0},{"$f":"IFERROR('Data Input - Option 5'!CK87*INDEX('Energy Prices'!$F$26:$CR$31,MATCH($B131,'Energy Prices'!$C$26:$C$31,0),MATCH(Calc_Option5!CG$6,'Energy Prices'!$F$11:$CR$11,0))/100000,0)","v":0},{"$f":"IFERROR('Data Input - Option 5'!CL87*INDEX('Energy Prices'!$F$26:$CR$31,MATCH($B131,'Energy Prices'!$C$26:$C$31,0),MATCH(Calc_Option5!CH$6,'Energy Prices'!$F$11:$CR$11,0))/100000,0)","v":0},{"$f":"IFERROR('Data Input - Option 5'!CM87*INDEX('Energy Prices'!$F$26:$CR$31,MATCH($B131,'Energy Prices'!$C$26:$C$31,0),MATCH(Calc_Option5!CI$6,'Energy Prices'!$F$11:$CR$11,0))/100000,0)","v":0},{"$f":"IFERROR('Data Input - Option 5'!CN87*INDEX('Energy Prices'!$F$26:$CR$31,MATCH($B131,'Energy Prices'!$C$26:$C$31,0),MATCH(Calc_Option5!CJ$6,'Energy Prices'!$F$11:$CR$11,0))/100000,0)","v":0},{"$f":"IFERROR('Data Input - Option 5'!CO87*INDEX('Energy Prices'!$F$26:$CR$31,MATCH($B131,'Energy Prices'!$C$26:$C$31,0),MATCH(Calc_Option5!CK$6,'Energy Prices'!$F$11:$CR$11,0))/100000,0)","v":0},{"$f":"IFERROR('Data Input - Option 5'!CP87*INDEX('Energy Prices'!$F$26:$CR$31,MATCH($B131,'Energy Prices'!$C$26:$C$31,0),MATCH(Calc_Option5!CL$6,'Energy Prices'!$F$11:$CR$11,0))/100000,0)","v":0},{"$f":"IFERROR('Data Input - Option 5'!CQ87*INDEX('Energy Prices'!$F$26:$CR$31,MATCH($B131,'Energy Prices'!$C$26:$C$31,0),MATCH(Calc_Option5!CM$6,'Energy Prices'!$F$11:$CR$11,0))/100000,0)","v":0},{"$f":"IFERROR('Data Input - Option 5'!CR87*INDEX('Energy Prices'!$F$26:$CR$31,MATCH($B131,'Energy Prices'!$C$26:$C$31,0),MATCH(Calc_Option5!CN$6,'Energy Prices'!$F$11:$CR$11,0))/100000,0)","v":0},{"$f":"IFERROR('Data Input - Option 5'!CS87*INDEX('Energy Prices'!$F$26:$CR$31,MATCH($B131,'Energy Prices'!$C$26:$C$31,0),MATCH(Calc_Option5!CO$6,'Energy Prices'!$F$11:$CR$11,0))/100000,0)","v":0},{"$f":"IFERROR('Data Input - Option 5'!CT87*INDEX('Energy Prices'!$F$26:$CR$31,MATCH($B131,'Energy Prices'!$C$26:$C$31,0),MATCH(Calc_Option5!CP$6,'Energy Prices'!$F$11:$CR$11,0))/100000,0)","v":0},{"$f":"IFERROR('Data Input - Option 5'!CU87*INDEX('Energy Prices'!$F$26:$CR$31,MATCH($B131,'Energy Prices'!$C$26:$C$31,0),MATCH(Calc_Option5!CQ$6,'Energy Prices'!$F$11:$CR$11,0))/100000,0)","v":0},{"$f":"IFERROR('Data Input - Option 5'!CV87*INDEX('Energy Prices'!$F$26:$CR$31,MATCH($B131,'Energy Prices'!$C$26:$C$31,0),MATCH(Calc_Option5!CR$6,'Energy Prices'!$F$11:$CR$11,0))/100000,0)","v":0},{"$f":"IFERROR('Data Input - Option 5'!CW87*INDEX('Energy Prices'!$F$26:$CR$31,MATCH($B131,'Energy Prices'!$C$26:$C$31,0),MATCH(Calc_Option5!CS$6,'Energy Prices'!$F$11:$CR$11,0))/100000,0)","v":0},{"$f":"IFERROR('Data Input - Option 5'!CX87*INDEX('Energy Prices'!$F$26:$CR$31,MATCH($B131,'Energy Prices'!$C$26:$C$31,0),MATCH(Calc_Option5!CT$6,'Energy Prices'!$F$11:$CR$11,0))/100000,0)","v":0},{"$f":"IFERROR('Data Input - Option 5'!CY87*INDEX('Energy Prices'!$F$26:$CR$31,MATCH($B131,'Energy Prices'!$C$26:$C$31,0),MATCH(Calc_Option5!CU$6,'Energy Prices'!$F$11:$CR$11,0))/100000,0)","v":0},{"$f":"IFERROR('Data Input - Option 5'!CZ87*INDEX('Energy Prices'!$F$26:$CR$31,MATCH($B131,'Energy Prices'!$C$26:$C$31,0),MATCH(Calc_Option5!CV$6,'Energy Prices'!$F$11:$CR$11,0))/100000,0)","v":0},{"$f":"IFERROR('Data Input - Option 5'!DA87*INDEX('Energy Prices'!$F$26:$CR$31,MATCH($B131,'Energy Prices'!$C$26:$C$31,0),MATCH(Calc_Option5!CW$6,'Energy Prices'!$F$11:$CR$11,0))/100000,0)","v":0},{"$f":"IFERROR('Data Input - Option 5'!DB87*INDEX('Energy Prices'!$F$26:$CR$31,MATCH($B131,'Energy Prices'!$C$26:$C$31,0),MATCH(Calc_Option5!CX$6,'Energy Prices'!$F$11:$CR$11,0))/100000,0)","v":0},{"$f":"IFERROR('Data Input - Option 5'!DC87*INDEX('Energy Prices'!$F$26:$CR$31,MATCH($B131,'Energy Prices'!$C$26:$C$31,0),MATCH(Calc_Option5!CY$6,'Energy Prices'!$F$11:$CR$11,0))/100000,0)","v":0}]
[null,"Road - Petrol","£000's",{"$f":"IFERROR('Data Input - Option 5'!H88*INDEX('Energy Prices'!$F$26:$CR$31,MATCH($B132,'Energy Prices'!$C$26:$C$31,0),MATCH(Calc_Option5!D$6,'Energy Prices'!$F$11:$CR$11,0))/100000,0)","v":0},{"$f":"IFERROR('Data Input - Option 5'!I88*INDEX('Energy Prices'!$F$26:$CR$31,MATCH($B132,'Energy Prices'!$C$26:$C$31,0),MATCH(Calc_Option5!E$6,'Energy Prices'!$F$11:$CR$11,0))/100000,0)","v":0},{"$f":"IFERROR('Data Input - Option 5'!J88*INDEX('Energy Prices'!$F$26:$CR$31,MATCH($B132,'Energy Prices'!$C$26:$C$31,0),MATCH(Calc_Option5!F$6,'Energy Prices'!$F$11:$CR$11,0))/100000,0)","v":0},{"$f":"IFERROR('Data Input - Option 5'!K88*INDEX('Energy Prices'!$F$26:$CR$31,MATCH($B132,'Energy Prices'!$C$26:$C$31,0),MATCH(Calc_Option5!G$6,'Energy Prices'!$F$11:$CR$11,0))/100000,0)","v":0},{"$f":"IFERROR('Data Input - Option 5'!L88*INDEX('Energy Prices'!$F$26:$CR$31,MATCH($B132,'Energy Prices'!$C$26:$C$31,0),MATCH(Calc_Option5!H$6,'Energy Prices'!$F$11:$CR$11,0))/100000,0)","v":0},{"$f":"IFERROR('Data Input - Option 5'!M88*INDEX('Energy Prices'!$F$26:$CR$31,MATCH($B132,'Energy Prices'!$C$26:$C$31,0),MATCH(Calc_Option5!I$6,'Energy Prices'!$F$11:$CR$11,0))/100000,0)","v":0},{"$f":"IFERROR('Data Input - Option 5'!N88*INDEX('Energy Prices'!$F$26:$CR$31,MATCH($B132,'Energy Prices'!$C$26:$C$31,0),MATCH(Calc_Option5!J$6,'Energy Prices'!$F$11:$CR$11,0))/100000,0)","v":0},{"$f":"IFERROR('Data Input - Option 5'!O88*INDEX('Energy Prices'!$F$26:$CR$31,MATCH($B132,'Energy Prices'!$C$26:$C$31,0),MATCH(Calc_Option5!K$6,'Energy Prices'!$F$11:$CR$11,0))/100000,0)","v":0},{"$f":"IFERROR('Data Input - Option 5'!P88*INDEX('Energy Prices'!$F$26:$CR$31,MATCH($B132,'Energy Prices'!$C$26:$C$31,0),MATCH(Calc_Option5!L$6,'Energy Prices'!$F$11:$CR$11,0))/100000,0)","v":0},{"$f":"IFERROR('Data Input - Option 5'!Q88*INDEX('Energy Prices'!$F$26:$CR$31,MATCH($B132,'Energy Prices'!$C$26:$C$31,0),MATCH(Calc_Option5!M$6,'Energy Prices'!$F$11:$CR$11,0))/100000,0)","v":0},{"$f":"IFERROR('Data Input - Option 5'!R88*INDEX('Energy Prices'!$F$26:$CR$31,MATCH($B132,'Energy Prices'!$C$26:$C$31,0),MATCH(Calc_Option5!N$6,'Energy Prices'!$F$11:$CR$11,0))/100000,0)","v":0},{"$f":"IFERROR('Data Input - Option 5'!S88*INDEX('Energy Prices'!$F$26:$CR$31,MATCH($B132,'Energy Prices'!$C$26:$C$31,0),MATCH(Calc_Option5!O$6,'Energy Prices'!$F$11:$CR$11,0))/100000,0)","v":0},{"$f":"IFERROR('Data Input - Option 5'!T88*INDEX('Energy Prices'!$F$26:$CR$31,MATCH($B132,'Energy Prices'!$C$26:$C$31,0),MATCH(Calc_Option5!P$6,'Energy Prices'!$F$11:$CR$11,0))/100000,0)","v":0},{"$f":"IFERROR('Data Input - Option 5'!U88*INDEX('Energy Prices'!$F$26:$CR$31,MATCH($B132,'Energy Prices'!$C$26:$C$31,0),MATCH(Calc_Option5!Q$6,'Energy Prices'!$F$11:$CR$11,0))/100000,0)","v":0},{"$f":"IFERROR('Data Input - Option 5'!V88*INDEX('Energy Prices'!$F$26:$CR$31,MATCH($B132,'Energy Prices'!$C$26:$C$31,0),MATCH(Calc_Option5!R$6,'Energy Prices'!$F$11:$CR$11,0))/100000,0)","v":0},{"$f":"IFERROR('Data Input - Option 5'!W88*INDEX('Energy Prices'!$F$26:$CR$31,MATCH($B132,'Energy Prices'!$C$26:$C$31,0),MATCH(Calc_Option5!S$6,'Energy Prices'!$F$11:$CR$11,0))/100000,0)","v":0},{"$f":"IFERROR('Data Input - Option 5'!X88*INDEX('Energy Prices'!$F$26:$CR$31,MATCH($B132,'Energy Prices'!$C$26:$C$31,0),MATCH(Calc_Option5!T$6,'Energy Prices'!$F$11:$CR$11,0))/100000,0)","v":0},{"$f":"IFERROR('Data Input - Option 5'!Y88*INDEX('Energy Prices'!$F$26:$CR$31,MATCH($B132,'Energy Prices'!$C$26:$C$31,0),MATCH(Calc_Option5!U$6,'Energy Prices'!$F$11:$CR$11,0))/100000,0)","v":0},{"$f":"IFERROR('Data Input - Option 5'!Z88*INDEX('Energy Prices'!$F$26:$CR$31,MATCH($B132,'Energy Prices'!$C$26:$C$31,0),MATCH(Calc_Option5!V$6,'Energy Prices'!$F$11:$CR$11,0))/100000,0)","v":0},{"$f":"IFERROR('Data Input - Option 5'!AA88*INDEX('Energy Prices'!$F$26:$CR$31,MATCH($B132,'Energy Prices'!$C$26:$C$31,0),MATCH(Calc_Option5!W$6,'Energy Prices'!$F$11:$CR$11,0))/100000,0)","v":0},{"$f":"IFERROR('Data Input - Option 5'!AB88*INDEX('Energy Prices'!$F$26:$CR$31,MATCH($B132,'Energy Prices'!$C$26:$C$31,0),MATCH(Calc_Option5!X$6,'Energy Prices'!$F$11:$CR$11,0))/100000,0)","v":0},{"$f":"IFERROR('Data Input - Option 5'!AC88*INDEX('Energy Prices'!$F$26:$CR$31,MATCH($B132,'Energy Prices'!$C$26:$C$31,0),MATCH(Calc_Option5!Y$6,'Energy Prices'!$F$11:$CR$11,0))/100000,0)","v":0},{"$f":"IFERROR('Data Input - Option 5'!AD88*INDEX('Energy Prices'!$F$26:$CR$31,MATCH($B132,'Energy Prices'!$C$26:$C$31,0),MATCH(Calc_Option5!Z$6,'Energy Prices'!$F$11:$CR$11,0))/100000,0)","v":0},{"$f":"IFERROR('Data Input - Option 5'!AE88*INDEX('Energy Prices'!$F$26:$CR$31,MATCH($B132,'Energy Prices'!$C$26:$C$31,0),MATCH(Calc_Option5!AA$6,'Energy Prices'!$F$11:$CR$11,0))/100000,0)","v":0},{"$f":"IFERROR('Data Input - Option 5'!AF88*INDEX('Energy Prices'!$F$26:$CR$31,MATCH($B132,'Energy Prices'!$C$26:$C$31,0),MATCH(Calc_Option5!AB$6,'Energy Prices'!$F$11:$CR$11,0))/100000,0)","v":0},{"$f":"IFERROR('Data Input - Option 5'!AG88*INDEX('Energy Prices'!$F$26:$CR$31,MATCH($B132,'Energy Prices'!$C$26:$C$31,0),MATCH(Calc_Option5!AC$6,'Energy Prices'!$F$11:$CR$11,0))/100000,0)","v":0},{"$f":"IFERROR('Data Input - Option 5'!AH88*INDEX('Energy Prices'!$F$26:$CR$31,MATCH($B132,'Energy Prices'!$C$26:$C$31,0),MATCH(Calc_Option5!AD$6,'Energy Prices'!$F$11:$CR$11,0))/100000,0)","v":0},{"$f":"IFERROR('Data Input - Option 5'!AI88*INDEX('Energy Prices'!$F$26:$CR$31,MATCH($B132,'Energy Prices'!$C$26:$C$31,0),MATCH(Calc_Option5!AE$6,'Energy Prices'!$F$11:$CR$11,0))/100000,0)","v":0},{"$f":"IFERROR('Data Input - Option 5'!AJ88*INDEX('Energy Prices'!$F$26:$CR$31,MATCH($B132,'Energy Prices'!$C$26:$C$31,0),MATCH(Calc_Option5!AF$6,'Energy Prices'!$F$11:$CR$11,0))/100000,0)","v":0},{"$f":"IFERROR('Data Input - Option 5'!AK88*INDEX('Energy Prices'!$F$26:$CR$31,MATCH($B132,'Energy Prices'!$C$26:$C$31,0),MATCH(Calc_Option5!AG$6,'Energy Prices'!$F$11:$CR$11,0))/100000,0)","v":0},{"$f":"IFERROR('Data Input - Option 5'!AL88*INDEX('Energy Prices'!$F$26:$CR$31,MATCH($B132,'Energy Prices'!$C$26:$C$31,0),MATCH(Calc_Option5!AH$6,'Energy Prices'!$F$11:$CR$11,0))/100000,0)","v":0},{"$f":"IFERROR('Data Input - Option 5'!AM88*INDEX('Energy Prices'!$F$26:$CR$31,MATCH($B132,'Energy Prices'!$C$26:$C$31,0),MATCH(Calc_Option5!AI$6,'Energy Prices'!$F$11:$CR$11,0))/100000,0)","v":0},{"$f":"IFERROR('Data Input - Option 5'!AN88*INDEX('Energy Prices'!$F$26:$CR$31,MATCH($B132,'Energy Prices'!$C$26:$C$31,0),MATCH(Calc_Option5!AJ$6,'Energy Prices'!$F$11:$CR$11,0))/100000,0)","v":0},{"$f":"IFERROR('Data Input - Option 5'!AO88*INDEX('Energy Prices'!$F$26:$CR$31,MATCH($B132,'Energy Prices'!$C$26:$C$31,0),MATCH(Calc_Option5!AK$6,'Energy Prices'!$F$11:$CR$11,0))/100000,0)","v":0},{"$f":"IFERROR('Data Input - Option 5'!AP88*INDEX('Energy Prices'!$F$26:$CR$31,MATCH($B132,'Energy Prices'!$C$26:$C$31,0),MATCH(Calc_Option5!AL$6,'Energy Prices'!$F$11:$CR$11,0))/100000,0)","v":0},{"$f":"IFERROR('Data Input - Option 5'!AQ88*INDEX('Energy Prices'!$F$26:$CR$31,MATCH($B132,'Energy Prices'!$C$26:$C$31,0),MATCH(Calc_Option5!AM$6,'Energy Prices'!$F$11:$CR$11,0))/100000,0)","v":0},{"$f":"IFERROR('Data Input - Option 5'!AR88*INDEX('Energy Prices'!$F$26:$CR$31,MATCH($B132,'Energy Prices'!$C$26:$C$31,0),MATCH(Calc_Option5!AN$6,'Energy Prices'!$F$11:$CR$11,0))/100000,0)","v":0},{"$f":"IFERROR('Data Input - Option 5'!AS88*INDEX('Energy Prices'!$F$26:$CR$31,MATCH($B132,'Energy Prices'!$C$26:$C$31,0),MATCH(Calc_Option5!AO$6,'Energy Prices'!$F$11:$CR$11,0))/100000,0)","v":0},{"$f":"IFERROR('Data Input - Option 5'!AT88*INDEX('Energy Prices'!$F$26:$CR$31,MATCH($B132,'Energy Prices'!$C$26:$C$31,0),MATCH(Calc_Option5!AP$6,'Energy Prices'!$F$11:$CR$11,0))/100000,0)","v":0},{"$f":"IFERROR('Data Input - Option 5'!AU88*INDEX('Energy Prices'!$F$26:$CR$31,MATCH($B132,'Energy Prices'!$C$26:$C$31,0),MATCH(Calc_Option5!AQ$6,'Energy Prices'!$F$11:$CR$11,0))/100000,0)","v":0},{"$f":"IFERROR('Data Input - Option 5'!AV88*INDEX('Energy Prices'!$F$26:$CR$31,MATCH($B132,'Energy Prices'!$C$26:$C$31,0),MATCH(Calc_Option5!AR$6,'Energy Prices'!$F$11:$CR$11,0))/100000,0)","v":0},{"$f":"IFERROR('Data Input - Option 5'!AW88*INDEX('Energy Prices'!$F$26:$CR$31,MATCH($B132,'Energy Prices'!$C$26:$C$31,0),MATCH(Calc_Option5!AS$6,'Energy Prices'!$F$11:$CR$11,0))/100000,0)","v":0},{"$f":"IFERROR('Data Input - Option 5'!AX88*INDEX('Energy Prices'!$F$26:$CR$31,MATCH($B132,'Energy Prices'!$C$26:$C$31,0),MATCH(Calc_Option5!AT$6,'Energy Prices'!$F$11:$CR$11,0))/100000,0)","v":0},{"$f":"IFERROR('Data Input - Option 5'!AY88*INDEX('Energy Prices'!$F$26:$CR$31,MATCH($B132,'Energy Prices'!$C$26:$C$31,0),MATCH(Calc_Option5!AU$6,'Energy Prices'!$F$11:$CR$11,0))/100000,0)","v":0},{"$f":"IFERROR('Data Input - Option 5'!AZ88*INDEX('Energy Prices'!$F$26:$CR$31,MATCH($B132,'Energy Prices'!$C$26:$C$31,0),MATCH(Calc_Option5!AV$6,'Energy Prices'!$F$11:$CR$11,0))/100000,0)","v":0},{"$f":"IFERROR('Data Input - Option 5'!BA88*INDEX('Energy Prices'!$F$26:$CR$31,MATCH($B132,'Energy Prices'!$C$26:$C$31,0),MATCH(Calc_Option5!AW$6,'Energy Prices'!$F$11:$CR$11,0))/100000,0)","v":0},{"$f":"IFERROR('Data Input - Option 5'!BB88*INDEX('Energy Prices'!$F$26:$CR$31,MATCH($B132,'Energy Prices'!$C$26:$C$31,0),MATCH(Calc_Option5!AX$6,'Energy Prices'!$F$11:$CR$11,0))/100000,0)","v":0},{"$f":"IFERROR('Data Input - Option 5'!BC88*INDEX('Energy Prices'!$F$26:$CR$31,MATCH($B132,'Energy Prices'!$C$26:$C$31,0),MATCH(Calc_Option5!AY$6,'Energy Prices'!$F$11:$CR$11,0))/100000,0)","v":0},{"$f":"IFERROR('Data Input - Option 5'!BD88*INDEX('Energy Prices'!$F$26:$CR$31,MATCH($B132,'Energy Prices'!$C$26:$C$31,0),MATCH(Calc_Option5!AZ$6,'Energy Prices'!$F$11:$CR$11,0))/100000,0)","v":0},{"$f":"IFERROR('Data Input - Option 5'!BE88*INDEX('Energy Prices'!$F$26:$CR$31,MATCH($B132,'Energy Prices'!$C$26:$C$31,0),MATCH(Calc_Option5!BA$6,'Energy Prices'!$F$11:$CR$11,0))/100000,0)","v":0},{"$f":"IFERROR('Data Input - Option 5'!BF88*INDEX('Energy Prices'!$F$26:$CR$31,MATCH($B132,'Energy Prices'!$C$26:$C$31,0),MATCH(Calc_Option5!BB$6,'Energy Prices'!$F$11:$CR$11,0))/100000,0)","v":0},{"$f":"IFERROR('Data Input - Option 5'!BG88*INDEX('Energy Prices'!$F$26:$CR$31,MATCH($B132,'Energy Prices'!$C$26:$C$31,0),MATCH(Calc_Option5!BC$6,'Energy Prices'!$F$11:$CR$11,0))/100000,0)","v":0},{"$f":"IFERROR('Data Input - Option 5'!BH88*INDEX('Energy Prices'!$F$26:$CR$31,MATCH($B132,'Energy Prices'!$C$26:$C$31,0),MATCH(Calc_Option5!BD$6,'Energy Prices'!$F$11:$CR$11,0))/100000,0)","v":0},{"$f":"IFERROR('Data Input - Option 5'!BI88*INDEX('Energy Prices'!$F$26:$CR$31,MATCH($B132,'Energy Prices'!$C$26:$C$31,0),MATCH(Calc_Option5!BE$6,'Energy Prices'!$F$11:$CR$11,0))/100000,0)","v":0},{"$f":"IFERROR('Data Input - Option 5'!BJ88*INDEX('Energy Prices'!$F$26:$CR$31,MATCH($B132,'Energy Prices'!$C$26:$C$31,0),MATCH(Calc_Option5!BF$6,'Energy Prices'!$F$11:$CR$11,0))/100000,0)","v":0},{"$f":"IFERROR('Data Input - Option 5'!BK88*INDEX('Energy Prices'!$F$26:$CR$31,MATCH($B132,'Energy Prices'!$C$26:$C$31,0),MATCH(Calc_Option5!BG$6,'Energy Prices'!$F$11:$CR$11,0))/100000,0)","v":0},{"$f":"IFERROR('Data Input - Option 5'!BL88*INDEX('Energy Prices'!$F$26:$CR$31,MATCH($B132,'Energy Prices'!$C$26:$C$31,0),MATCH(Calc_Option5!BH$6,'Energy Prices'!$F$11:$CR$11,0))/100000,0)","v":0},{"$f":"IFERROR('Data Input - Option 5'!BM88*INDEX('Energy Prices'!$F$26:$CR$31,MATCH($B132,'Energy Prices'!$C$26:$C$31,0),MATCH(Calc_Option5!BI$6,'Energy Prices'!$F$11:$CR$11,0))/100000,0)","v":0},{"$f":"IFERROR('Data Input - Option 5'!BN88*INDEX('Energy Prices'!$F$26:$CR$31,MATCH($B132,'Energy Prices'!$C$26:$C$31,0),MATCH(Calc_Option5!BJ$6,'Energy Prices'!$F$11:$CR$11,0))/100000,0)","v":0},{"$f":"IFERROR('Data Input - Option 5'!BO88*INDEX('Energy Prices'!$F$26:$CR$31,MATCH($B132,'Energy Prices'!$C$26:$C$31,0),MATCH(Calc_Option5!BK$6,'Energy Prices'!$F$11:$CR$11,0))/100000,0)","v":0},{"$f":"IFERROR('Data Input - Option 5'!BP88*INDEX('Energy Prices'!$F$26:$CR$31,MATCH($B132,'Energy Prices'!$C$26:$C$31,0),MATCH(Calc_Option5!BL$6,'Energy Prices'!$F$11:$CR$11,0))/100000,0)","v":0},{"$f":"IFERROR('Data Input - Option 5'!BQ88*INDEX('Energy Prices'!$F$26:$CR$31,MATCH($B132,'Energy Prices'!$C$26:$C$31,0),MATCH(Calc_Option5!BM$6,'Energy Prices'!$F$11:$CR$11,0))/100000,0)","v":0},{"$f":"IFERROR('Data Input - Option 5'!BR88*INDEX('Energy Prices'!$F$26:$CR$31,MATCH($B132,'Energy Prices'!$C$26:$C$31,0),MATCH(Calc_Option5!BN$6,'Energy Prices'!$F$11:$CR$11,0))/100000,0)","v":0},{"$f":"IFERROR('Data Input - Option 5'!BS88*INDEX('Energy Prices'!$F$26:$CR$31,MATCH($B132,'Energy Prices'!$C$26:$C$31,0),MATCH(Calc_Option5!BO$6,'Energy Prices'!$F$11:$CR$11,0))/100000,0)","v":0},{"$f":"IFERROR('Data Input - Option 5'!BT88*INDEX('Energy Prices'!$F$26:$CR$31,MATCH($B132,'Energy Prices'!$C$26:$C$31,0),MATCH(Calc_Option5!BP$6,'Energy Prices'!$F$11:$CR$11,0))/100000,0)","v":0},{"$f":"IFERROR('Data Input - Option 5'!BU88*INDEX('Energy Prices'!$F$26:$CR$31,MATCH($B132,'Energy Prices'!$C$26:$C$31,0),MATCH(Calc_Option5!BQ$6,'Energy Prices'!$F$11:$CR$11,0))/100000,0)","v":0},{"$f":"IFERROR('Data Input - Option 5'!BV88*INDEX('Energy Prices'!$F$26:$CR$31,MATCH($B132,'Energy Prices'!$C$26:$C$31,0),MATCH(Calc_Option5!BR$6,'Energy Prices'!$F$11:$CR$11,0))/100000,0)","v":0},{"$f":"IFERROR('Data Input - Option 5'!BW88*INDEX('Energy Prices'!$F$26:$CR$31,MATCH($B132,'Energy Prices'!$C$26:$C$31,0),MATCH(Calc_Option5!BS$6,'Energy Prices'!$F$11:$CR$11,0))/100000,0)","v":0},{"$f":"IFERROR('Data Input - Option 5'!BX88*INDEX('Energy Prices'!$F$26:$CR$31,MATCH($B132,'Energy Prices'!$C$26:$C$31,0),MATCH(Calc_Option5!BT$6,'Energy Prices'!$F$11:$CR$11,0))/100000,0)","v":0},{"$f":"IFERROR('Data Input - Option 5'!BY88*INDEX('Energy Prices'!$F$26:$CR$31,MATCH($B132,'Energy Prices'!$C$26:$C$31,0),MATCH(Calc_Option5!BU$6,'Energy Prices'!$F$11:$CR$11,0))/100000,0)","v":0},{"$f":"IFERROR('Data Input - Option 5'!BZ88*INDEX('Energy Prices'!$F$26:$CR$31,MATCH($B132,'Energy Prices'!$C$26:$C$31,0),MATCH(Calc_Option5!BV$6,'Energy Prices'!$F$11:$CR$11,0))/100000,0)","v":0},{"$f":"IFERROR('Data Input - Option 5'!CA88*INDEX('Energy Prices'!$F$26:$CR$31,MATCH($B132,'Energy Prices'!$C$26:$C$31,0),MATCH(Calc_Option5!BW$6,'Energy Prices'!$F$11:$CR$11,0))/100000,0)","v":0},{"$f":"IFERROR('Data Input - Option 5'!CB88*INDEX('Energy Prices'!$F$26:$CR$31,MATCH($B132,'Energy Prices'!$C$26:$C$31,0),MATCH(Calc_Option5!BX$6,'Energy Prices'!$F$11:$CR$11,0))/100000,0)","v":0},{"$f":"IFERROR('Data Input - Option 5'!CC88*INDEX('Energy Prices'!$F$26:$CR$31,MATCH($B132,'Energy Prices'!$C$26:$C$31,0),MATCH(Calc_Option5!BY$6,'Energy Prices'!$F$11:$CR$11,0))/100000,0)","v":0},{"$f":"IFERROR('Data Input - Option 5'!CD88*INDEX('Energy Prices'!$F$26:$CR$31,MATCH($B132,'Energy Prices'!$C$26:$C$31,0),MATCH(Calc_Option5!BZ$6,'Energy Prices'!$F$11:$CR$11,0))/100000,0)","v":0},{"$f":"IFERROR('Data Input - Option 5'!CE88*INDEX('Energy Prices'!$F$26:$CR$31,MATCH($B132,'Energy Prices'!$C$26:$C$31,0),MATCH(Calc_Option5!CA$6,'Energy Prices'!$F$11:$CR$11,0))/100000,0)","v":0},{"$f":"IFERROR('Data Input - Option 5'!CF88*INDEX('Energy Prices'!$F$26:$CR$31,MATCH($B132,'Energy Prices'!$C$26:$C$31,0),MATCH(Calc_Option5!CB$6,'Energy Prices'!$F$11:$CR$11,0))/100000,0)","v":0},{"$f":"IFERROR('Data Input - Option 5'!CG88*INDEX('Energy Prices'!$F$26:$CR$31,MATCH($B132,'Energy Prices'!$C$26:$C$31,0),MATCH(Calc_Option5!CC$6,'Energy Prices'!$F$11:$CR$11,0))/100000,0)","v":0},{"$f":"IFERROR('Data Input - Option 5'!CH88*INDEX('Energy Prices'!$F$26:$CR$31,MATCH($B132,'Energy Prices'!$C$26:$C$31,0),MATCH(Calc_Option5!CD$6,'Energy Prices'!$F$11:$CR$11,0))/100000,0)","v":0},{"$f":"IFERROR('Data Input - Option 5'!CI88*INDEX('Energy Prices'!$F$26:$CR$31,MATCH($B132,'Energy Prices'!$C$26:$C$31,0),MATCH(Calc_Option5!CE$6,'Energy Prices'!$F$11:$CR$11,0))/100000,0)","v":0},{"$f":"IFERROR('Data Input - Option 5'!CJ88*INDEX('Energy Prices'!$F$26:$CR$31,MATCH($B132,'Energy Prices'!$C$26:$C$31,0),MATCH(Calc_Option5!CF$6,'Energy Prices'!$F$11:$CR$11,0))/100000,0)","v":0},{"$f":"IFERROR('Data Input - Option 5'!CK88*INDEX('Energy Prices'!$F$26:$CR$31,MATCH($B132,'Energy Prices'!$C$26:$C$31,0),MATCH(Calc_Option5!CG$6,'Energy Prices'!$F$11:$CR$11,0))/100000,0)","v":0},{"$f":"IFERROR('Data Input - Option 5'!CL88*INDEX('Energy Prices'!$F$26:$CR$31,MATCH($B132,'Energy Prices'!$C$26:$C$31,0),MATCH(Calc_Option5!CH$6,'Energy Prices'!$F$11:$CR$11,0))/100000,0)","v":0},{"$f":"IFERROR('Data Input - Option 5'!CM88*INDEX('Energy Prices'!$F$26:$CR$31,MATCH($B132,'Energy Prices'!$C$26:$C$31,0),MATCH(Calc_Option5!CI$6,'Energy Prices'!$F$11:$CR$11,0))/100000,0)","v":0},{"$f":"IFERROR('Data Input - Option 5'!CN88*INDEX('Energy Prices'!$F$26:$CR$31,MATCH($B132,'Energy Prices'!$C$26:$C$31,0),MATCH(Calc_Option5!CJ$6,'Energy Prices'!$F$11:$CR$11,0))/100000,0)","v":0},{"$f":"IFERROR('Data Input - Option 5'!CO88*INDEX('Energy Prices'!$F$26:$CR$31,MATCH($B132,'Energy Prices'!$C$26:$C$31,0),MATCH(Calc_Option5!CK$6,'Energy Prices'!$F$11:$CR$11,0))/100000,0)","v":0},{"$f":"IFERROR('Data Input - Option 5'!CP88*INDEX('Energy Prices'!$F$26:$CR$31,MATCH($B132,'Energy Prices'!$C$26:$C$31,0),MATCH(Calc_Option5!CL$6,'Energy Prices'!$F$11:$CR$11,0))/100000,0)","v":0},{"$f":"IFERROR('Data Input - Option 5'!CQ88*INDEX('Energy Prices'!$F$26:$CR$31,MATCH($B132,'Energy Prices'!$C$26:$C$31,0),MATCH(Calc_Option5!CM$6,'Energy Prices'!$F$11:$CR$11,0))/100000,0)","v":0},{"$f":"IFERROR('Data Input - Option 5'!CR88*INDEX('Energy Prices'!$F$26:$CR$31,MATCH($B132,'Energy Prices'!$C$26:$C$31,0),MATCH(Calc_Option5!CN$6,'Energy Prices'!$F$11:$CR$11,0))/100000,0)","v":0},{"$f":"IFERROR('Data Input - Option 5'!CS88*INDEX('Energy Prices'!$F$26:$CR$31,MATCH($B132,'Energy Prices'!$C$26:$C$31,0),MATCH(Calc_Option5!CO$6,'Energy Prices'!$F$11:$CR$11,0))/100000,0)","v":0},{"$f":"IFERROR('Data Input - Option 5'!CT88*INDEX('Energy Prices'!$F$26:$CR$31,MATCH($B132,'Energy Prices'!$C$26:$C$31,0),MATCH(Calc_Option5!CP$6,'Energy Prices'!$F$11:$CR$11,0))/100000,0)","v":0},{"$f":"IFERROR('Data Input - Option 5'!CU88*INDEX('Energy Prices'!$F$26:$CR$31,MATCH($B132,'Energy Prices'!$C$26:$C$31,0),MATCH(Calc_Option5!CQ$6,'Energy Prices'!$F$11:$CR$11,0))/100000,0)","v":0},{"$f":"IFERROR('Data Input - Option 5'!CV88*INDEX('Energy Prices'!$F$26:$CR$31,MATCH($B132,'Energy Prices'!$C$26:$C$31,0),MATCH(Calc_Option5!CR$6,'Energy Prices'!$F$11:$CR$11,0))/100000,0)","v":0},{"$f":"IFERROR('Data Input - Option 5'!CW88*INDEX('Energy Prices'!$F$26:$CR$31,MATCH($B132,'Energy Prices'!$C$26:$C$31,0),MATCH(Calc_Option5!CS$6,'Energy Prices'!$F$11:$CR$11,0))/100000,0)","v":0},{"$f":"IFERROR('Data Input - Option 5'!CX88*INDEX('Energy Prices'!$F$26:$CR$31,MATCH($B132,'Energy Prices'!$C$26:$C$31,0),MATCH(Calc_Option5!CT$6,'Energy Prices'!$F$11:$CR$11,0))/100000,0)","v":0},{"$f":"IFERROR('Data Input - Option 5'!CY88*INDEX('Energy Prices'!$F$26:$CR$31,MATCH($B132,'Energy Prices'!$C$26:$C$31,0),MATCH(Calc_Option5!CU$6,'Energy Prices'!$F$11:$CR$11,0))/100000,0)","v":0},{"$f":"IFERROR('Data Input - Option 5'!CZ88*INDEX('Energy Prices'!$F$26:$CR$31,MATCH($B132,'Energy Prices'!$C$26:$C$31,0),MATCH(Calc_Option5!CV$6,'Energy Prices'!$F$11:$CR$11,0))/100000,0)","v":0},{"$f":"IFERROR('Data Input - Option 5'!DA88*INDEX('Energy Prices'!$F$26:$CR$31,MATCH($B132,'Energy Prices'!$C$26:$C$31,0),MATCH(Calc_Option5!CW$6,'Energy Prices'!$F$11:$CR$11,0))/100000,0)","v":0},{"$f":"IFERROR('Data Input - Option 5'!DB88*INDEX('Energy Prices'!$F$26:$CR$31,MATCH($B132,'Energy Prices'!$C$26:$C$31,0),MATCH(Calc_Option5!CX$6,'Energy Prices'!$F$11:$CR$11,0))/100000,0)","v":0},{"$f":"IFERROR('Data Input - Option 5'!DC88*INDEX('Energy Prices'!$F$26:$CR$31,MATCH($B132,'Energy Prices'!$C$26:$C$31,0),MATCH(Calc_Option5!CY$6,'Energy Prices'!$F$11:$CR$11,0))/100000,0)","v":0}]
[null,"Road - Diesel","£000's",{"$f":"IFERROR('Data Input - Option 5'!H89*INDEX('Energy Prices'!$F$26:$CR$31,MATCH($B133,'Energy Prices'!$C$26:$C$31,0),MATCH(Calc_Option5!D$6,'Energy Prices'!$F$11:$CR$11,0))/100000,0)","v":0},{"$f":"IFERROR('Data Input - Option 5'!I89*INDEX('Energy Prices'!$F$26:$CR$31,MATCH($B133,'Energy Prices'!$C$26:$C$31,0),MATCH(Calc_Option5!E$6,'Energy Prices'!$F$11:$CR$11,0))/100000,0)","v":0},{"$f":"IFERROR('Data Input - Option 5'!J89*INDEX('Energy Prices'!$F$26:$CR$31,MATCH($B133,'Energy Prices'!$C$26:$C$31,0),MATCH(Calc_Option5!F$6,'Energy Prices'!$F$11:$CR$11,0))/100000,0)","v":0},{"$f":"IFERROR('Data Input - Option 5'!K89*INDEX('Energy Prices'!$F$26:$CR$31,MATCH($B133,'Energy Prices'!$C$26:$C$31,0),MATCH(Calc_Option5!G$6,'Energy Prices'!$F$11:$CR$11,0))/100000,0)","v":0},{"$f":"IFERROR('Data Input - Option 5'!L89*INDEX('Energy Prices'!$F$26:$CR$31,MATCH($B133,'Energy Prices'!$C$26:$C$31,0),MATCH(Calc_Option5!H$6,'Energy Prices'!$F$11:$CR$11,0))/100000,0)","v":0},{"$f":"IFERROR('Data Input - Option 5'!M89*INDEX('Energy Prices'!$F$26:$CR$31,MATCH($B133,'Energy Prices'!$C$26:$C$31,0),MATCH(Calc_Option5!I$6,'Energy Prices'!$F$11:$CR$11,0))/100000,0)","v":0},{"$f":"IFERROR('Data Input - Option 5'!N89*INDEX('Energy Prices'!$F$26:$CR$31,MATCH($B133,'Energy Prices'!$C$26:$C$31,0),MATCH(Calc_Option5!J$6,'Energy Prices'!$F$11:$CR$11,0))/100000,0)","v":0},{"$f":"IFERROR('Data Input - Option 5'!O89*INDEX('Energy Prices'!$F$26:$CR$31,MATCH($B133,'Energy Prices'!$C$26:$C$31,0),MATCH(Calc_Option5!K$6,'Energy Prices'!$F$11:$CR$11,0))/100000,0)","v":0},{"$f":"IFERROR('Data Input - Option 5'!P89*INDEX('Energy Prices'!$F$26:$CR$31,MATCH($B133,'Energy Prices'!$C$26:$C$31,0),MATCH(Calc_Option5!L$6,'Energy Prices'!$F$11:$CR$11,0))/100000,0)","v":0},{"$f":"IFERROR('Data Input - Option 5'!Q89*INDEX('Energy Prices'!$F$26:$CR$31,MATCH($B133,'Energy Prices'!$C$26:$C$31,0),MATCH(Calc_Option5!M$6,'Energy Prices'!$F$11:$CR$11,0))/100000,0)","v":0},{"$f":"IFERROR('Data Input - Option 5'!R89*INDEX('Energy Prices'!$F$26:$CR$31,MATCH($B133,'Energy Prices'!$C$26:$C$31,0),MATCH(Calc_Option5!N$6,'Energy Prices'!$F$11:$CR$11,0))/100000,0)","v":0},{"$f":"IFERROR('Data Input - Option 5'!S89*INDEX('Energy Prices'!$F$26:$CR$31,MATCH($B133,'Energy Prices'!$C$26:$C$31,0),MATCH(Calc_Option5!O$6,'Energy Prices'!$F$11:$CR$11,0))/100000,0)","v":0},{"$f":"IFERROR('Data Input - Option 5'!T89*INDEX('Energy Prices'!$F$26:$CR$31,MATCH($B133,'Energy Prices'!$C$26:$C$31,0),MATCH(Calc_Option5!P$6,'Energy Prices'!$F$11:$CR$11,0))/100000,0)","v":0},{"$f":"IFERROR('Data Input - Option 5'!U89*INDEX('Energy Prices'!$F$26:$CR$31,MATCH($B133,'Energy Prices'!$C$26:$C$31,0),MATCH(Calc_Option5!Q$6,'Energy Prices'!$F$11:$CR$11,0))/100000,0)","v":0},{"$f":"IFERROR('Data Input - Option 5'!V89*INDEX('Energy Prices'!$F$26:$CR$31,MATCH($B133,'Energy Prices'!$C$26:$C$31,0),MATCH(Calc_Option5!R$6,'Energy Prices'!$F$11:$CR$11,0))/100000,0)","v":0},{"$f":"IFERROR('Data Input - Option 5'!W89*INDEX('Energy Prices'!$F$26:$CR$31,MATCH($B133,'Energy Prices'!$C$26:$C$31,0),MATCH(Calc_Option5!S$6,'Energy Prices'!$F$11:$CR$11,0))/100000,0)","v":0},{"$f":"IFERROR('Data Input - Option 5'!X89*INDEX('Energy Prices'!$F$26:$CR$31,MATCH($B133,'Energy Prices'!$C$26:$C$31,0),MATCH(Calc_Option5!T$6,'Energy Prices'!$F$11:$CR$11,0))/100000,0)","v":0},{"$f":"IFERROR('Data Input - Option 5'!Y89*INDEX('Energy Prices'!$F$26:$CR$31,MATCH($B133,'Energy Prices'!$C$26:$C$31,0),MATCH(Calc_Option5!U$6,'Energy Prices'!$F$11:$CR$11,0))/100000,0)","v":0},{"$f":"IFERROR('Data Input - Option 5'!Z89*INDEX('Energy Prices'!$F$26:$CR$31,MATCH($B133,'Energy Prices'!$C$26:$C$31,0),MATCH(Calc_Option5!V$6,'Energy Prices'!$F$11:$CR$11,0))/100000,0)","v":0},{"$f":"IFERROR('Data Input - Option 5'!AA89*INDEX('Energy Prices'!$F$26:$CR$31,MATCH($B133,'Energy Prices'!$C$26:$C$31,0),MATCH(Calc_Option5!W$6,'Energy Prices'!$F$11:$CR$11,0))/100000,0)","v":0},{"$f":"IFERROR('Data Input - Option 5'!AB89*INDEX('Energy Prices'!$F$26:$CR$31,MATCH($B133,'Energy Prices'!$C$26:$C$31,0),MATCH(Calc_Option5!X$6,'Energy Prices'!$F$11:$CR$11,0))/100000,0)","v":0},{"$f":"IFERROR('Data Input - Option 5'!AC89*INDEX('Energy Prices'!$F$26:$CR$31,MATCH($B133,'Energy Prices'!$C$26:$C$31,0),MATCH(Calc_Option5!Y$6,'Energy Prices'!$F$11:$CR$11,0))/100000,0)","v":0},{"$f":"IFERROR('Data Input - Option 5'!AD89*INDEX('Energy Prices'!$F$26:$CR$31,MATCH($B133,'Energy Prices'!$C$26:$C$31,0),MATCH(Calc_Option5!Z$6,'Energy Prices'!$F$11:$CR$11,0))/100000,0)","v":0},{"$f":"IFERROR('Data Input - Option 5'!AE89*INDEX('Energy Prices'!$F$26:$CR$31,MATCH($B133,'Energy Prices'!$C$26:$C$31,0),MATCH(Calc_Option5!AA$6,'Energy Prices'!$F$11:$CR$11,0))/100000,0)","v":0},{"$f":"IFERROR('Data Input - Option 5'!AF89*INDEX('Energy Prices'!$F$26:$CR$31,MATCH($B133,'Energy Prices'!$C$26:$C$31,0),MATCH(Calc_Option5!AB$6,'Energy Prices'!$F$11:$CR$11,0))/100000,0)","v":0},{"$f":"IFERROR('Data Input - Option 5'!AG89*INDEX('Energy Prices'!$F$26:$CR$31,MATCH($B133,'Energy Prices'!$C$26:$C$31,0),MATCH(Calc_Option5!AC$6,'Energy Prices'!$F$11:$CR$11,0))/100000,0)","v":0},{"$f":"IFERROR('Data Input - Option 5'!AH89*INDEX('Energy Prices'!$F$26:$CR$31,MATCH($B133,'Energy Prices'!$C$26:$C$31,0),MATCH(Calc_Option5!AD$6,'Energy Prices'!$F$11:$CR$11,0))/100000,0)","v":0},{"$f":"IFERROR('Data Input - Option 5'!AI89*INDEX('Energy Prices'!$F$26:$CR$31,MATCH($B133,'Energy Prices'!$C$26:$C$31,0),MATCH(Calc_Option5!AE$6,'Energy Prices'!$F$11:$CR$11,0))/100000,0)","v":0},{"$f":"IFERROR('Data Input - Option 5'!AJ89*INDEX('Energy Prices'!$F$26:$CR$31,MATCH($B133,'Energy Prices'!$C$26:$C$31,0),MATCH(Calc_Option5!AF$6,'Energy Prices'!$F$11:$CR$11,0))/100000,0)","v":0},{"$f":"IFERROR('Data Input - Option 5'!AK89*INDEX('Energy Prices'!$F$26:$CR$31,MATCH($B133,'Energy Prices'!$C$26:$C$31,0),MATCH(Calc_Option5!AG$6,'Energy Prices'!$F$11:$CR$11,0))/100000,0)","v":0},{"$f":"IFERROR('Data Input - Option 5'!AL89*INDEX('Energy Prices'!$F$26:$CR$31,MATCH($B133,'Energy Prices'!$C$26:$C$31,0),MATCH(Calc_Option5!AH$6,'Energy Prices'!$F$11:$CR$11,0))/100000,0)","v":0},{"$f":"IFERROR('Data Input - Option 5'!AM89*INDEX('Energy Prices'!$F$26:$CR$31,MATCH($B133,'Energy Prices'!$C$26:$C$31,0),MATCH(Calc_Option5!AI$6,'Energy Prices'!$F$11:$CR$11,0))/100000,0)","v":0},{"$f":"IFERROR('Data Input - Option 5'!AN89*INDEX('Energy Prices'!$F$26:$CR$31,MATCH($B133,'Energy Prices'!$C$26:$C$31,0),MATCH(Calc_Option5!AJ$6,'Energy Prices'!$F$11:$CR$11,0))/100000,0)","v":0},{"$f":"IFERROR('Data Input - Option 5'!AO89*INDEX('Energy Prices'!$F$26:$CR$31,MATCH($B133,'Energy Prices'!$C$26:$C$31,0),MATCH(Calc_Option5!AK$6,'Energy Prices'!$F$11:$CR$11,0))/100000,0)","v":0},{"$f":"IFERROR('Data Input - Option 5'!AP89*INDEX('Energy Prices'!$F$26:$CR$31,MATCH($B133,'Energy Prices'!$C$26:$C$31,0),MATCH(Calc_Option5!AL$6,'Energy Prices'!$F$11:$CR$11,0))/100000,0)","v":0},{"$f":"IFERROR('Data Input - Option 5'!AQ89*INDEX('Energy Prices'!$F$26:$CR$31,MATCH($B133,'Energy Prices'!$C$26:$C$31,0),MATCH(Calc_Option5!AM$6,'Energy Prices'!$F$11:$CR$11,0))/100000,0)","v":0},{"$f":"IFERROR('Data Input - Option 5'!AR89*INDEX('Energy Prices'!$F$26:$CR$31,MATCH($B133,'Energy Prices'!$C$26:$C$31,0),MATCH(Calc_Option5!AN$6,'Energy Prices'!$F$11:$CR$11,0))/100000,0)","v":0},{"$f":"IFERROR('Data Input - Option 5'!AS89*INDEX('Energy Prices'!$F$26:$CR$31,MATCH($B133,'Energy Prices'!$C$26:$C$31,0),MATCH(Calc_Option5!AO$6,'Energy Prices'!$F$11:$CR$11,0))/100000,0)","v":0},{"$f":"IFERROR('Data Input - Option 5'!AT89*INDEX('Energy Prices'!$F$26:$CR$31,MATCH($B133,'Energy Prices'!$C$26:$C$31,0),MATCH(Calc_Option5!AP$6,'Energy Prices'!$F$11:$CR$11,0))/100000,0)","v":0},{"$f":"IFERROR('Data Input - Option 5'!AU89*INDEX('Energy Prices'!$F$26:$CR$31,MATCH($B133,'Energy Prices'!$C$26:$C$31,0),MATCH(Calc_Option5!AQ$6,'Energy Prices'!$F$11:$CR$11,0))/100000,0)","v":0},{"$f":"IFERROR('Data Input - Option 5'!AV89*INDEX('Energy Prices'!$F$26:$CR$31,MATCH($B133,'Energy Prices'!$C$26:$C$31,0),MATCH(Calc_Option5!AR$6,'Energy Prices'!$F$11:$CR$11,0))/100000,0)","v":0},{"$f":"IFERROR('Data Input - Option 5'!AW89*INDEX('Energy Prices'!$F$26:$CR$31,MATCH($B133,'Energy Prices'!$C$26:$C$31,0),MATCH(Calc_Option5!AS$6,'Energy Prices'!$F$11:$CR$11,0))/100000,0)","v":0},{"$f":"IFERROR('Data Input - Option 5'!AX89*INDEX('Energy Prices'!$F$26:$CR$31,MATCH($B133,'Energy Prices'!$C$26:$C$31,0),MATCH(Calc_Option5!AT$6,'Energy Prices'!$F$11:$CR$11,0))/100000,0)","v":0},{"$f":"IFERROR('Data Input - Option 5'!AY89*INDEX('Energy Prices'!$F$26:$CR$31,MATCH($B133,'Energy Prices'!$C$26:$C$31,0),MATCH(Calc_Option5!AU$6,'Energy Prices'!$F$11:$CR$11,0))/100000,0)","v":0},{"$f":"IFERROR('Data Input - Option 5'!AZ89*INDEX('Energy Prices'!$F$26:$CR$31,MATCH($B133,'Energy Prices'!$C$26:$C$31,0),MATCH(Calc_Option5!AV$6,'Energy Prices'!$F$11:$CR$11,0))/100000,0)","v":0},{"$f":"IFERROR('Data Input - Option 5'!BA89*INDEX('Energy Prices'!$F$26:$CR$31,MATCH($B133,'Energy Prices'!$C$26:$C$31,0),MATCH(Calc_Option5!AW$6,'Energy Prices'!$F$11:$CR$11,0))/100000,0)","v":0},{"$f":"IFERROR('Data Input - Option 5'!BB89*INDEX('Energy Prices'!$F$26:$CR$31,MATCH($B133,'Energy Prices'!$C$26:$C$31,0),MATCH(Calc_Option5!AX$6,'Energy Prices'!$F$11:$CR$11,0))/100000,0)","v":0},{"$f":"IFERROR('Data Input - Option 5'!BC89*INDEX('Energy Prices'!$F$26:$CR$31,MATCH($B133,'Energy Prices'!$C$26:$C$31,0),MATCH(Calc_Option5!AY$6,'Energy Prices'!$F$11:$CR$11,0))/100000,0)","v":0},{"$f":"IFERROR('Data Input - Option 5'!BD89*INDEX('Energy Prices'!$F$26:$CR$31,MATCH($B133,'Energy Prices'!$C$26:$C$31,0),MATCH(Calc_Option5!AZ$6,'Energy Prices'!$F$11:$CR$11,0))/100000,0)","v":0},{"$f":"IFERROR('Data Input - Option 5'!BE89*INDEX('Energy Prices'!$F$26:$CR$31,MATCH($B133,'Energy Prices'!$C$26:$C$31,0),MATCH(Calc_Option5!BA$6,'Energy Prices'!$F$11:$CR$11,0))/100000,0)","v":0},{"$f":"IFERROR('Data Input - Option 5'!BF89*INDEX('Energy Prices'!$F$26:$CR$31,MATCH($B133,'Energy Prices'!$C$26:$C$31,0),MATCH(Calc_Option5!BB$6,'Energy Prices'!$F$11:$CR$11,0))/100000,0)","v":0},{"$f":"IFERROR('Data Input - Option 5'!BG89*INDEX('Energy Prices'!$F$26:$CR$31,MATCH($B133,'Energy Prices'!$C$26:$C$31,0),MATCH(Calc_Option5!BC$6,'Energy Prices'!$F$11:$CR$11,0))/100000,0)","v":0},{"$f":"IFERROR('Data Input - Option 5'!BH89*INDEX('Energy Prices'!$F$26:$CR$31,MATCH($B133,'Energy Prices'!$C$26:$C$31,0),MATCH(Calc_Option5!BD$6,'Energy Prices'!$F$11:$CR$11,0))/100000,0)","v":0},{"$f":"IFERROR('Data Input - Option 5'!BI89*INDEX('Energy Prices'!$F$26:$CR$31,MATCH($B133,'Energy Prices'!$C$26:$C$31,0),MATCH(Calc_Option5!BE$6,'Energy Prices'!$F$11:$CR$11,0))/100000,0)","v":0},{"$f":"IFERROR('Data Input - Option 5'!BJ89*INDEX('Energy Prices'!$F$26:$CR$31,MATCH($B133,'Energy Prices'!$C$26:$C$31,0),MATCH(Calc_Option5!BF$6,'Energy Prices'!$F$11:$CR$11,0))/100000,0)","v":0},{"$f":"IFERROR('Data Input - Option 5'!BK89*INDEX('Energy Prices'!$F$26:$CR$31,MATCH($B133,'Energy Prices'!$C$26:$C$31,0),MATCH(Calc_Option5!BG$6,'Energy Prices'!$F$11:$CR$11,0))/100000,0)","v":0},{"$f":"IFERROR('Data Input - Option 5'!BL89*INDEX('Energy Prices'!$F$26:$CR$31,MATCH($B133,'Energy Prices'!$C$26:$C$31,0),MATCH(Calc_Option5!BH$6,'Energy Prices'!$F$11:$CR$11,0))/100000,0)","v":0},{"$f":"IFERROR('Data Input - Option 5'!BM89*INDEX('Energy Prices'!$F$26:$CR$31,MATCH($B133,'Energy Prices'!$C$26:$C$31,0),MATCH(Calc_Option5!BI$6,'Energy Prices'!$F$11:$CR$11,0))/100000,0)","v":0},{"$f":"IFERROR('Data Input - Option 5'!BN89*INDEX('Energy Prices'!$F$26:$CR$31,MATCH($B133,'Energy Prices'!$C$26:$C$31,0),MATCH(Calc_Option5!BJ$6,'Energy Prices'!$F$11:$CR$11,0))/100000,0)","v":0},{"$f":"IFERROR('Data Input - Option 5'!BO89*INDEX('Energy Prices'!$F$26:$CR$31,MATCH($B133,'Energy Prices'!$C$26:$C$31,0),MATCH(Calc_Option5!BK$6,'Energy Prices'!$F$11:$CR$11,0))/100000,0)","v":0},{"$f":"IFERROR('Data Input - Option 5'!BP89*INDEX('Energy Prices'!$F$26:$CR$31,MATCH($B133,'Energy Prices'!$C$26:$C$31,0),MATCH(Calc_Option5!BL$6,'Energy Prices'!$F$11:$CR$11,0))/100000,0)","v":0},{"$f":"IFERROR('Data Input - Option 5'!BQ89*INDEX('Energy Prices'!$F$26:$CR$31,MATCH($B133,'Energy Prices'!$C$26:$C$31,0),MATCH(Calc_Option5!BM$6,'Energy Prices'!$F$11:$CR$11,0))/100000,0)","v":0},{"$f":"IFERROR('Data Input - Option 5'!BR89*INDEX('Energy Prices'!$F$26:$CR$31,MATCH($B133,'Energy Prices'!$C$26:$C$31,0),MATCH(Calc_Option5!BN$6,'Energy Prices'!$F$11:$CR$11,0))/100000,0)","v":0},{"$f":"IFERROR('Data Input - Option 5'!BS89*INDEX('Energy Prices'!$F$26:$CR$31,MATCH($B133,'Energy Prices'!$C$26:$C$31,0),MATCH(Calc_Option5!BO$6,'Energy Prices'!$F$11:$CR$11,0))/100000,0)","v":0},{"$f":"IFERROR('Data Input - Option 5'!BT89*INDEX('Energy Prices'!$F$26:$CR$31,MATCH($B133,'Energy Prices'!$C$26:$C$31,0),MATCH(Calc_Option5!BP$6,'Energy Prices'!$F$11:$CR$11,0))/100000,0)","v":0},{"$f":"IFERROR('Data Input - Option 5'!BU89*INDEX('Energy Prices'!$F$26:$CR$31,MATCH($B133,'Energy Prices'!$C$26:$C$31,0),MATCH(Calc_Option5!BQ$6,'Energy Prices'!$F$11:$CR$11,0))/100000,0)","v":0},{"$f":"IFERROR('Data Input - Option 5'!BV89*INDEX('Energy Prices'!$F$26:$CR$31,MATCH($B133,'Energy Prices'!$C$26:$C$31,0),MATCH(Calc_Option5!BR$6,'Energy Prices'!$F$11:$CR$11,0))/100000,0)","v":0},{"$f":"IFERROR('Data Input - Option 5'!BW89*INDEX('Energy Prices'!$F$26:$CR$31,MATCH($B133,'Energy Prices'!$C$26:$C$31,0),MATCH(Calc_Option5!BS$6,'Energy Prices'!$F$11:$CR$11,0))/100000,0)","v":0},{"$f":"IFERROR('Data Input - Option 5'!BX89*INDEX('Energy Prices'!$F$26:$CR$31,MATCH($B133,'Energy Prices'!$C$26:$C$31,0),MATCH(Calc_Option5!BT$6,'Energy Prices'!$F$11:$CR$11,0))/100000,0)","v":0},{"$f":"IFERROR('Data Input - Option 5'!BY89*INDEX('Energy Prices'!$F$26:$CR$31,MATCH($B133,'Energy Prices'!$C$26:$C$31,0),MATCH(Calc_Option5!BU$6,'Energy Prices'!$F$11:$CR$11,0))/100000,0)","v":0},{"$f":"IFERROR('Data Input - Option 5'!BZ89*INDEX('Energy Prices'!$F$26:$CR$31,MATCH($B133,'Energy Prices'!$C$26:$C$31,0),MATCH(Calc_Option5!BV$6,'Energy Prices'!$F$11:$CR$11,0))/100000,0)","v":0},{"$f":"IFERROR('Data Input - Option 5'!CA89*INDEX('Energy Prices'!$F$26:$CR$31,MATCH($B133,'Energy Prices'!$C$26:$C$31,0),MATCH(Calc_Option5!BW$6,'Energy Prices'!$F$11:$CR$11,0))/100000,0)","v":0},{"$f":"IFERROR('Data Input - Option 5'!CB89*INDEX('Energy Prices'!$F$26:$CR$31,MATCH($B133,'Energy Prices'!$C$26:$C$31,0),MATCH(Calc_Option5!BX$6,'Energy Prices'!$F$11:$CR$11,0))/100000,0)","v":0},{"$f":"IFERROR('Data Input - Option 5'!CC89*INDEX('Energy Prices'!$F$26:$CR$31,MATCH($B133,'Energy Prices'!$C$26:$C$31,0),MATCH(Calc_Option5!BY$6,'Energy Prices'!$F$11:$CR$11,0))/100000,0)","v":0},{"$f":"IFERROR('Data Input - Option 5'!CD89*INDEX('Energy Prices'!$F$26:$CR$31,MATCH($B133,'Energy Prices'!$C$26:$C$31,0),MATCH(Calc_Option5!BZ$6,'Energy Prices'!$F$11:$CR$11,0))/100000,0)","v":0},{"$f":"IFERROR('Data Input - Option 5'!CE89*INDEX('Energy Prices'!$F$26:$CR$31,MATCH($B133,'Energy Prices'!$C$26:$C$31,0),MATCH(Calc_Option5!CA$6,'Energy Prices'!$F$11:$CR$11,0))/100000,0)","v":0},{"$f":"IFERROR('Data Input - Option 5'!CF89*INDEX('Energy Prices'!$F$26:$CR$31,MATCH($B133,'Energy Prices'!$C$26:$C$31,0),MATCH(Calc_Option5!CB$6,'Energy Prices'!$F$11:$CR$11,0))/100000,0)","v":0},{"$f":"IFERROR('Data Input - Option 5'!CG89*INDEX('Energy Prices'!$F$26:$CR$31,MATCH($B133,'Energy Prices'!$C$26:$C$31,0),MATCH(Calc_Option5!CC$6,'Energy Prices'!$F$11:$CR$11,0))/100000,0)","v":0},{"$f":"IFERROR('Data Input - Option 5'!CH89*INDEX('Energy Prices'!$F$26:$CR$31,MATCH($B133,'Energy Prices'!$C$26:$C$31,0),MATCH(Calc_Option5!CD$6,'Energy Prices'!$F$11:$CR$11,0))/100000,0)","v":0},{"$f":"IFERROR('Data Input - Option 5'!CI89*INDEX('Energy Prices'!$F$26:$CR$31,MATCH($B133,'Energy Prices'!$C$26:$C$31,0),MATCH(Calc_Option5!CE$6,'Energy Prices'!$F$11:$CR$11,0))/100000,0)","v":0},{"$f":"IFERROR('Data Input - Option 5'!CJ89*INDEX('Energy Prices'!$F$26:$CR$31,MATCH($B133,'Energy Prices'!$C$26:$C$31,0),MATCH(Calc_Option5!CF$6,'Energy Prices'!$F$11:$CR$11,0))/100000,0)","v":0},{"$f":"IFERROR('Data Input - Option 5'!CK89*INDEX('Energy Prices'!$F$26:$CR$31,MATCH($B133,'Energy Prices'!$C$26:$C$31,0),MATCH(Calc_Option5!CG$6,'Energy Prices'!$F$11:$CR$11,0))/100000,0)","v":0},{"$f":"IFERROR('Data Input - Option 5'!CL89*INDEX('Energy Prices'!$F$26:$CR$31,MATCH($B133,'Energy Prices'!$C$26:$C$31,0),MATCH(Calc_Option5!CH$6,'Energy Prices'!$F$11:$CR$11,0))/100000,0)","v":0},{"$f":"IFERROR('Data Input - Option 5'!CM89*INDEX('Energy Prices'!$F$26:$CR$31,MATCH($B133,'Energy Prices'!$C$26:$C$31,0),MATCH(Calc_Option5!CI$6,'Energy Prices'!$F$11:$CR$11,0))/100000,0)","v":0},{"$f":"IFERROR('Data Input - Option 5'!CN89*INDEX('Energy Prices'!$F$26:$CR$31,MATCH($B133,'Energy Prices'!$C$26:$C$31,0),MATCH(Calc_Option5!CJ$6,'Energy Prices'!$F$11:$CR$11,0))/100000,0)","v":0},{"$f":"IFERROR('Data Input - Option 5'!CO89*INDEX('Energy Prices'!$F$26:$CR$31,MATCH($B133,'Energy Prices'!$C$26:$C$31,0),MATCH(Calc_Option5!CK$6,'Energy Prices'!$F$11:$CR$11,0))/100000,0)","v":0},{"$f":"IFERROR('Data Input - Option 5'!CP89*INDEX('Energy Prices'!$F$26:$CR$31,MATCH($B133,'Energy Prices'!$C$26:$C$31,0),MATCH(Calc_Option5!CL$6,'Energy Prices'!$F$11:$CR$11,0))/100000,0)","v":0},{"$f":"IFERROR('Data Input - Option 5'!CQ89*INDEX('Energy Prices'!$F$26:$CR$31,MATCH($B133,'Energy Prices'!$C$26:$C$31,0),MATCH(Calc_Option5!CM$6,'Energy Prices'!$F$11:$CR$11,0))/100000,0)","v":0},{"$f":"IFERROR('Data Input - Option 5'!CR89*INDEX('Energy Prices'!$F$26:$CR$31,MATCH($B133,'Energy Prices'!$C$26:$C$31,0),MATCH(Calc_Option5!CN$6,'Energy Prices'!$F$11:$CR$11,0))/100000,0)","v":0},{"$f":"IFERROR('Data Input - Option 5'!CS89*INDEX('Energy Prices'!$F$26:$CR$31,MATCH($B133,'Energy Prices'!$C$26:$C$31,0),MATCH(Calc_Option5!CO$6,'Energy Prices'!$F$11:$CR$11,0))/100000,0)","v":0},{"$f":"IFERROR('Data Input - Option 5'!CT89*INDEX('Energy Prices'!$F$26:$CR$31,MATCH($B133,'Energy Prices'!$C$26:$C$31,0),MATCH(Calc_Option5!CP$6,'Energy Prices'!$F$11:$CR$11,0))/100000,0)","v":0},{"$f":"IFERROR('Data Input - Option 5'!CU89*INDEX('Energy Prices'!$F$26:$CR$31,MATCH($B133,'Energy Prices'!$C$26:$C$31,0),MATCH(Calc_Option5!CQ$6,'Energy Prices'!$F$11:$CR$11,0))/100000,0)","v":0},{"$f":"IFERROR('Data Input - Option 5'!CV89*INDEX('Energy Prices'!$F$26:$CR$31,MATCH($B133,'Energy Prices'!$C$26:$C$31,0),MATCH(Calc_Option5!CR$6,'Energy Prices'!$F$11:$CR$11,0))/100000,0)","v":0},{"$f":"IFERROR('Data Input - Option 5'!CW89*INDEX('Energy Prices'!$F$26:$CR$31,MATCH($B133,'Energy Prices'!$C$26:$C$31,0),MATCH(Calc_Option5!CS$6,'Energy Prices'!$F$11:$CR$11,0))/100000,0)","v":0},{"$f":"IFERROR('Data Input - Option 5'!CX89*INDEX('Energy Prices'!$F$26:$CR$31,MATCH($B133,'Energy Prices'!$C$26:$C$31,0),MATCH(Calc_Option5!CT$6,'Energy Prices'!$F$11:$CR$11,0))/100000,0)","v":0},{"$f":"IFERROR('Data Input - Option 5'!CY89*INDEX('Energy Prices'!$F$26:$CR$31,MATCH($B133,'Energy Prices'!$C$26:$C$31,0),MATCH(Calc_Option5!CU$6,'Energy Prices'!$F$11:$CR$11,0))/100000,0)","v":0},{"$f":"IFERROR('Data Input - Option 5'!CZ89*INDEX('Energy Prices'!$F$26:$CR$31,MATCH($B133,'Energy Prices'!$C$26:$C$31,0),MATCH(Calc_Option5!CV$6,'Energy Prices'!$F$11:$CR$11,0))/100000,0)","v":0},{"$f":"IFERROR('Data Input - Option 5'!DA89*INDEX('Energy Prices'!$F$26:$CR$31,MATCH($B133,'Energy Prices'!$C$26:$C$31,0),MATCH(Calc_Option5!CW$6,'Energy Prices'!$F$11:$CR$11,0))/100000,0)","v":0},{"$f":"IFERROR('Data Input - Option 5'!DB89*INDEX('Energy Prices'!$F$26:$CR$31,MATCH($B133,'Energy Prices'!$C$26:$C$31,0),MATCH(Calc_Option5!CX$6,'Energy Prices'!$F$11:$CR$11,0))/100000,0)","v":0},{"$f":"IFERROR('Data Input - Option 5'!DC89*INDEX('Energy Prices'!$F$26:$CR$31,MATCH($B133,'Energy Prices'!$C$26:$C$31,0),MATCH(Calc_Option5!CY$6,'Energy Prices'!$F$11:$CR$11,0))/100000,0)","v":0}]
[]
[null,"Discounted energy","£000's",{"$f":"SUM(D128:D133)*D$7","v":0},{"$f":"SUM(E128:E133)*E$7","v":0},0,0,0,0,0,0,0,0,0,0,0,0,0,0,0,0,0,0,0,0,0,0,0,0,0,0,0,0,0,0,0,0,0,0,0,0,0,0,0,0,0,0,0,0,0,0,0,0,0,0,0,0,0,0,0,0,0,0,{"$f":"SUM(BL128:BL133)*BL$7","v":0},0,0,0,0,0,0,0,0,0,0,0,0,0,0,0,0,0,0,0,0,0,0,0,0,0,0,0,0,0,0,0,0,0,0,0,0,0,0,0]
[]
[null,"Air pollutant emissions- value"]
[null,{"$f":"B53","v":0},"£000's",{"$f":"IFERROR(IF(OR($C$144=FALSE,LEFT($B138,3)<>\"NOX\"),D53*INDEX('Damage costs'!$U$16:$U$43,MATCH($B138,'Damage costs'!$C$16:$C$43,0))/1000,D53*INDEX('Damage costs'!$Y$16:$Y$43,MATCH($B138,'Damage costs'!$C$16:$C$43,0))/1000),\"\")","v":""},{"$f":"IFERROR(IF(OR($C$144=FALSE,LEFT($B138,3)<>\"NOX\"),E53*INDEX('Damage costs'!$U$16:$U$43,MATCH($B138,'Damage costs'!$C$16:$C$43,0))/1000,E53*INDEX('Damage costs'!$Y$16:$Y$43,MATCH($B138,'Damage costs'!$C$16:$C$43,0))/1000),\"\")","v":""},{"$f":"IFERROR(IF(OR($C$144=FALSE,LEFT($B138,3)<>\"NOX\"),F53*INDEX('Damage costs'!$U$16:$U$43,MATCH($B138,'Damage costs'!$C$16:$C$43,0))/1000,F53*INDEX('Damage costs'!$Y$16:$Y$43,MATCH($B138,'Damage costs'!$C$16:$C$43,0))/1000),\"\")","v":""},{"$f":"IFERROR(IF(OR($C$144=FALSE,LEFT($B138,3)<>\"NOX\"),G53*INDEX('Damage costs'!$U$16:$U$43,MATCH($B138,'Damage costs'!$C$16:$C$43,0))/1000,G53*INDEX('Damage costs'!$Y$16:$Y$43,MATCH($B138,'Damage costs'!$C$16:$C$43,0))/1000),\"\")","v":""},{"$f":"IFERROR(IF(OR($C$144=FALSE,LEFT($B138,3)<>\"NOX\"),H53*INDEX('Damage costs'!$U$16:$U$43,MATCH($B138,'Damage costs'!$C$16:$C$43,0))/1000,H53*INDEX('Damage costs'!$Y$16:$Y$43,MATCH($B138,'Damage costs'!$C$16:$C$43,0))/1000),\"\")","v":""},{"$f":"IFERROR(IF(OR($C$144=FALSE,LEFT($B138,3)<>\"NOX\"),I53*INDEX('Damage costs'!$U$16:$U$43,MATCH($B138,'Damage costs'!$C$16:$C$43,0))/1000,I53*INDEX('Damage costs'!$Y$16:$Y$43,MATCH($B138,'Damage costs'!$C$16:$C$43,0))/1000),\"\")","v":""},{"$f":"IFERROR(IF(OR($C$144=FALSE,LEFT($B138,3)<>\"NOX\"),J53*INDEX('Damage costs'!$U$16:$U$43,MATCH($B138,'Damage costs'!$C$16:$C$43,0))/1000,J53*INDEX('Damage costs'!$Y$16:$Y$43,MATCH($B138,'Damage costs'!$C$16:$C$43,0))/1000),\"\")","v":""},{"$f":"IFERROR(IF(OR($C$144=FALSE,LEFT($B138,3)<>\"NOX\"),K53*INDEX('Damage costs'!$U$16:$U$43,MATCH($B138,'Damage costs'!$C$16:$C$43,0))/1000,K53*INDEX('Damage costs'!$Y$16:$Y$43,MATCH($B138,'Damage costs'!$C$16:$C$43,0))/1000),\"\")","v":""},{"$f":"IFERROR(IF(OR($C$144=FALSE,LEFT($B138,3)<>\"NOX\"),L53*INDEX('Damage costs'!$U$16:$U$43,MATCH($B138,'Damage costs'!$C$16:$C$43,0))/1000,L53*INDEX('Damage costs'!$Y$16:$Y$43,MATCH($B138,'Damage costs'!$C$16:$C$43,0))/1000),\"\")","v":""},{"$f":"IFERROR(IF(OR($C$144=FALSE,LEFT($B138,3)<>\"NOX\"),M53*INDEX('Damage costs'!$U$16:$U$43,MATCH($B138,'Damage costs'!$C$16:$C$43,0))/1000,M53*INDEX('Damage costs'!$Y$16:$Y$43,MATCH($B138,'Damage costs'!$C$16:$C$43,0))/1000),\"\")","v":""},{"$f":"IFERROR(IF(OR($C$144=FALSE,LEFT($B138,3)<>\"NOX\"),N53*INDEX('Damage costs'!$U$16:$U$43,MATCH($B138,'Damage costs'!$C$16:$C$43,0))/1000,N53*INDEX('Damage costs'!$Y$16:$Y$43,MATCH($B138,'Damage costs'!$C$16:$C$43,0))/1000),\"\")","v":""},{"$f":"IFERROR(IF(OR($C$144=FALSE,LEFT($B138,3)<>\"NOX\"),O53*INDEX('Damage costs'!$U$16:$U$43,MATCH($B138,'Damage costs'!$C$16:$C$43,0))/1000,O53*INDEX('Damage costs'!$Y$16:$Y$43,MATCH($B138,'Damage costs'!$C$16:$C$43,0))/1000),\"\")","v":""},{"$f":"IFERROR(IF(OR($C$144=FALSE,LEFT($B138,3)<>\"NOX\"),P53*INDEX('Damage costs'!$U$16:$U$43,MATCH($B138,'Damage costs'!$C$16:$C$43,0))/1000,P53*INDEX('Damage costs'!$Y$16:$Y$43,MATCH($B138,'Damage costs'!$C$16:$C$43,0))/1000),\"\")","v":""},{"$f":"IFERROR(IF(OR($C$144=FALSE,LEFT($B138,3)<>\"NOX\"),Q53*INDEX('Damage costs'!$U$16:$U$43,MATCH($B138,'Damage costs'!$C$16:$C$43,0))/1000,Q53*INDEX('Damage costs'!$Y$16:$Y$43,MATCH($B138,'Damage costs'!$C$16:$C$43,0))/1000),\"\")","v":""},{"$f":"IFERROR(IF(OR($C$144=FALSE,LEFT($B138,3)<>\"NOX\"),R53*INDEX('Damage costs'!$U$16:$U$43,MATCH($B138,'Damage costs'!$C$16:$C$43,0))/1000,R53*INDEX('Damage costs'!$Y$16:$Y$43,MATCH($B138,'Damage costs'!$C$16:$C$43,0))/1000),\"\")","v":""},{"$f":"IFERROR(IF(OR($C$144=FALSE,LEFT($B138,3)<>\"NOX\"),S53*INDEX('Damage costs'!$U$16:$U$43,MATCH($B138,'Damage costs'!$C$16:$C$43,0))/1000,S53*INDEX('Damage costs'!$Y$16:$Y$43,MATCH($B138,'Damage costs'!$C$16:$C$43,0))/1000),\"\")","v":""},{"$f":"IFERROR(IF(OR($C$144=FALSE,LEFT($B138,3)<>\"NOX\"),T53*INDEX('Damage costs'!$U$16:$U$43,MATCH($B138,'Damage costs'!$C$16:$C$43,0))/1000,T53*INDEX('Damage costs'!$Y$16:$Y$43,MATCH($B138,'Damage costs'!$C$16:$C$43,0))/1000),\"\")","v":""},{"$f":"IFERROR(IF(OR($C$144=FALSE,LEFT($B138,3)<>\"NOX\"),U53*INDEX('Damage costs'!$U$16:$U$43,MATCH($B138,'Damage costs'!$C$16:$C$43,0))/1000,U53*INDEX('Damage costs'!$Y$16:$Y$43,MATCH($B138,'Damage costs'!$C$16:$C$43,0))/1000),\"\")","v":""},{"$f":"IFERROR(IF(OR($C$144=FALSE,LEFT($B138,3)<>\"NOX\"),V53*INDEX('Damage costs'!$U$16:$U$43,MATCH($B138,'Damage costs'!$C$16:$C$43,0))/1000,V53*INDEX('Damage costs'!$Y$16:$Y$43,MATCH($B138,'Damage costs'!$C$16:$C$43,0))/1000),\"\")","v":""},{"$f":"IFERROR(IF(OR($C$144=FALSE,LEFT($B138,3)<>\"NOX\"),W53*INDEX('Damage costs'!$U$16:$U$43,MATCH($B138,'Damage costs'!$C$16:$C$43,0))/1000,W53*INDEX('Damage costs'!$Y$16:$Y$43,MATCH($B138,'Damage costs'!$C$16:$C$43,0))/1000),\"\")","v":""},{"$f":"IFERROR(IF(OR($C$144=FALSE,LEFT($B138,3)<>\"NOX\"),X53*INDEX('Damage costs'!$U$16:$U$43,MATCH($B138,'Damage costs'!$C$16:$C$43,0))/1000,X53*INDEX('Damage costs'!$Y$16:$Y$43,MATCH($B138,'Damage costs'!$C$16:$C$43,0))/1000),\"\")","v":""},{"$f":"IFERROR(IF(OR($C$144=FALSE,LEFT($B138,3)<>\"NOX\"),Y53*INDEX('Damage costs'!$U$16:$U$43,MATCH($B138,'Damage costs'!$C$16:$C$43,0))/1000,Y53*INDEX('Damage costs'!$Y$16:$Y$43,MATCH($B138,'Damage costs'!$C$16:$C$43,0))/1000),\"\")","v":""},{"$f":"IFERROR(IF(OR($C$144=FALSE,LEFT($B138,3)<>\"NOX\"),Z53*INDEX('Damage costs'!$U$16:$U$43,MATCH($B138,'Damage costs'!$C$16:$C$43,0))/1000,Z53*INDEX('Damage costs'!$Y$16:$Y$43,MATCH($B138,'Damage costs'!$C$16:$C$43,0))/1000),\"\")","v":""},{"$f":"IFERROR(IF(OR($C$144=FALSE,LEFT($B138,3)<>\"NOX\"),AA53*INDEX('Damage costs'!$U$16:$U$43,MATCH($B138,'Damage costs'!$C$16:$C$43,0))/1000,AA53*INDEX('Damage costs'!$Y$16:$Y$43,MATCH($B138,'Damage costs'!$C$16:$C$43,0))/1000),\"\")","v":""},{"$f":"IFERROR(IF(OR($C$144=FALSE,LEFT($B138,3)<>\"NOX\"),AB53*INDEX('Damage costs'!$U$16:$U$43,MATCH($B138,'Damage costs'!$C$16:$C$43,0))/1000,AB53*INDEX('Damage costs'!$Y$16:$Y$43,MATCH($B138,'Damage costs'!$C$16:$C$43,0))/1000),\"\")","v":""},{"$f":"IFERROR(IF(OR($C$144=FALSE,LEFT($B138,3)<>\"NOX\"),AC53*INDEX('Damage costs'!$U$16:$U$43,MATCH($B138,'Damage costs'!$C$16:$C$43,0))/1000,AC53*INDEX('Damage costs'!$Y$16:$Y$43,MATCH($B138,'Damage costs'!$C$16:$C$43,0))/1000),\"\")","v":""},{"$f":"IFERROR(IF(OR($C$144=FALSE,LEFT($B138,3)<>\"NOX\"),AD53*INDEX('Damage costs'!$U$16:$U$43,MATCH($B138,'Damage costs'!$C$16:$C$43,0))/1000,AD53*INDEX('Damage costs'!$Y$16:$Y$43,MATCH($B138,'Damage costs'!$C$16:$C$43,0))/1000),\"\")","v":""},{"$f":"IFERROR(IF(OR($C$144=FALSE,LEFT($B138,3)<>\"NOX\"),AE53*INDEX('Damage costs'!$U$16:$U$43,MATCH($B138,'Damage costs'!$C$16:$C$43,0))/1000,AE53*INDEX('Damage costs'!$Y$16:$Y$43,MATCH($B138,'Damage costs'!$C$16:$C$43,0))/1000),\"\")","v":""},{"$f":"IFERROR(IF(OR($C$144=FALSE,LEFT($B138,3)<>\"NOX\"),AF53*INDEX('Damage costs'!$U$16:$U$43,MATCH($B138,'Damage costs'!$C$16:$C$43,0))/1000,AF53*INDEX('Damage costs'!$Y$16:$Y$43,MATCH($B138,'Damage costs'!$C$16:$C$43,0))/1000),\"\")","v":""},{"$f":"IFERROR(IF(OR($C$144=FALSE,LEFT($B138,3)<>\"NOX\"),AG53*INDEX('Damage costs'!$U$16:$U$43,MATCH($B138,'Damage costs'!$C$16:$C$43,0))/1000,AG53*INDEX('Damage costs'!$Y$16:$Y$43,MATCH($B138,'Damage costs'!$C$16:$C$43,0))/1000),\"\")","v":""},{"$f":"IFERROR(IF(OR($C$144=FALSE,LEFT($B138,3)<>\"NOX\"),AH53*INDEX('Damage costs'!$U$16:$U$43,MATCH($B138,'Damage costs'!$C$16:$C$43,0))/1000,AH53*INDEX('Damage costs'!$Y$16:$Y$43,MATCH($B138,'Damage costs'!$C$16:$C$43,0))/1000),\"\")","v":""},{"$f":"IFERROR(IF(OR($C$144=FALSE,LEFT($B138,3)<>\"NOX\"),AI53*INDEX('Damage costs'!$U$16:$U$43,MATCH($B138,'Damage costs'!$C$16:$C$43,0))/1000,AI53*INDEX('Damage costs'!$Y$16:$Y$43,MATCH($B138,'Damage costs'!$C$16:$C$43,0))/1000),\"\")","v":""},{"$f":"IFERROR(IF(OR($C$144=FALSE,LEFT($B138,3)<>\"NOX\"),AJ53*INDEX('Damage costs'!$U$16:$U$43,MATCH($B138,'Damage costs'!$C$16:$C$43,0))/1000,AJ53*INDEX('Damage costs'!$Y$16:$Y$43,MATCH($B138,'Damage costs'!$C$16:$C$43,0))/1000),\"\")","v":""},{"$f":"IFERROR(IF(OR($C$144=FALSE,LEFT($B138,3)<>\"NOX\"),AK53*INDEX('Damage costs'!$U$16:$U$43,MATCH($B138,'Damage costs'!$C$16:$C$43,0))/1000,AK53*INDEX('Damage costs'!$Y$16:$Y$43,MATCH($B138,'Damage costs'!$C$16:$C$43,0))/1000),\"\")","v":""},{"$f":"IFERROR(IF(OR($C$144=FALSE,LEFT($B138,3)<>\"NOX\"),AL53*INDEX('Damage costs'!$U$16:$U$43,MATCH($B138,'Damage costs'!$C$16:$C$43,0))/1000,AL53*INDEX('Damage costs'!$Y$16:$Y$43,MATCH($B138,'Damage costs'!$C$16:$C$43,0))/1000),\"\")","v":""},{"$f":"IFERROR(IF(OR($C$144=FALSE,LEFT($B138,3)<>\"NOX\"),AM53*INDEX('Damage costs'!$U$16:$U$43,MATCH($B138,'Damage costs'!$C$16:$C$43,0))/1000,AM53*INDEX('Damage costs'!$Y$16:$Y$43,MATCH($B138,'Damage costs'!$C$16:$C$43,0))/1000),\"\")","v":""},{"$f":"IFERROR(IF(OR($C$144=FALSE,LEFT($B138,3)<>\"NOX\"),AN53*INDEX('Damage costs'!$U$16:$U$43,MATCH($B138,'Damage costs'!$C$16:$C$43,0))/1000,AN53*INDEX('Damage costs'!$Y$16:$Y$43,MATCH($B138,'Damage costs'!$C$16:$C$43,0))/1000),\"\")","v":""},{"$f":"IFERROR(IF(OR($C$144=FALSE,LEFT($B138,3)<>\"NOX\"),AO53*INDEX('Damage costs'!$U$16:$U$43,MATCH($B138,'Damage costs'!$C$16:$C$43,0))/1000,AO53*INDEX('Damage costs'!$Y$16:$Y$43,MATCH($B138,'Damage costs'!$C$16:$C$43,0))/1000),\"\")","v":""},{"$f":"IFERROR(IF(OR($C$144=FALSE,LEFT($B138,3)<>\"NOX\"),AP53*INDEX('Damage costs'!$U$16:$U$43,MATCH($B138,'Damage costs'!$C$16:$C$43,0))/1000,AP53*INDEX('Damage costs'!$Y$16:$Y$43,MATCH($B138,'Damage costs'!$C$16:$C$43,0))/1000),\"\")","v":""},{"$f":"IFERROR(IF(OR($C$144=FALSE,LEFT($B138,3)<>\"NOX\"),AQ53*INDEX('Damage costs'!$U$16:$U$43,MATCH($B138,'Damage costs'!$C$16:$C$43,0))/1000,AQ53*INDEX('Damage costs'!$Y$16:$Y$43,MATCH($B138,'Damage costs'!$C$16:$C$43,0))/1000),\"\")","v":""},{"$f":"IFERROR(IF(OR($C$144=FALSE,LEFT($B138,3)<>\"NOX\"),AR53*INDEX('Damage costs'!$U$16:$U$43,MATCH($B138,'Damage costs'!$C$16:$C$43,0))/1000,AR53*INDEX('Damage costs'!$Y$16:$Y$43,MATCH($B138,'Damage costs'!$C$16:$C$43,0))/1000),\"\")","v":""},{"$f":"IFERROR(IF(OR($C$144=FALSE,LEFT($B138,3)<>\"NOX\"),AS53*INDEX('Damage costs'!$U$16:$U$43,MATCH($B138,'Damage costs'!$C$16:$C$43,0))/1000,AS53*INDEX('Damage costs'!$Y$16:$Y$43,MATCH($B138,'Damage costs'!$C$16:$C$43,0))/1000),\"\")","v":""},{"$f":"IFERROR(IF(OR($C$144=FALSE,LEFT($B138,3)<>\"NOX\"),AT53*INDEX('Damage costs'!$U$16:$U$43,MATCH($B138,'Damage costs'!$C$16:$C$43,0))/1000,AT53*INDEX('Damage costs'!$Y$16:$Y$43,MATCH($B138,'Damage costs'!$C$16:$C$43,0))/1000),\"\")","v":""},{"$f":"IFERROR(IF(OR($C$144=FALSE,LEFT($B138,3)<>\"NOX\"),AU53*INDEX('Damage costs'!$U$16:$U$43,MATCH($B138,'Damage costs'!$C$16:$C$43,0))/1000,AU53*INDEX('Damage costs'!$Y$16:$Y$43,MATCH($B138,'Damage costs'!$C$16:$C$43,0))/1000),\"\")","v":""},{"$f":"IFERROR(IF(OR($C$144=FALSE,LEFT($B138,3)<>\"NOX\"),AV53*INDEX('Damage costs'!$U$16:$U$43,MATCH($B138,'Damage costs'!$C$16:$C$43,0))/1000,AV53*INDEX('Damage costs'!$Y$16:$Y$43,MATCH($B138,'Damage costs'!$C$16:$C$43,0))/1000),\"\")","v":""},{"$f":"IFERROR(IF(OR($C$144=FALSE,LEFT($B138,3)<>\"NOX\"),AW53*INDEX('Damage costs'!$U$16:$U$43,MATCH($B138,'Damage costs'!$C$16:$C$43,0))/1000,AW53*INDEX('Damage costs'!$Y$16:$Y$43,MATCH($B138,'Damage costs'!$C$16:$C$43,0))/1000),\"\")","v":""},{"$f":"IFERROR(IF(OR($C$144=FALSE,LEFT($B138,3)<>\"NOX\"),AX53*INDEX('Damage costs'!$U$16:$U$43,MATCH($B138,'Damage costs'!$C$16:$C$43,0))/1000,AX53*INDEX('Damage costs'!$Y$16:$Y$43,MATCH($B138,'Damage costs'!$C$16:$C$43,0))/1000),\"\")","v":""},{"$f":"IFERROR(IF(OR($C$144=FALSE,LEFT($B138,3)<>\"NOX\"),AY53*INDEX('Damage costs'!$U$16:$U$43,MATCH($B138,'Damage costs'!$C$16:$C$43,0))/1000,AY53*INDEX('Damage costs'!$Y$16:$Y$43,MATCH($B138,'Damage costs'!$C$16:$C$43,0))/1000),\"\")","v":""},{"$f":"IFERROR(IF(OR($C$144=FALSE,LEFT($B138,3)<>\"NOX\"),AZ53*INDEX('Damage costs'!$U$16:$U$43,MATCH($B138,'Damage costs'!$C$16:$C$43,0))/1000,AZ53*INDEX('Damage costs'!$Y$16:$Y$43,MATCH($B138,'Damage costs'!$C$16:$C$43,0))/1000),\"\")","v":""},{"$f":"IFERROR(IF(OR($C$144=FALSE,LEFT($B138,3)<>\"NOX\"),BA53*INDEX('Damage costs'!$U$16:$U$43,MATCH($B138,'Damage costs'!$C$16:$C$43,0))/1000,BA53*INDEX('Damage costs'!$Y$16:$Y$43,MATCH($B138,'Damage costs'!$C$16:$C$43,0))/1000),\"\")","v":""},{"$f":"IFERROR(IF(OR($C$144=FALSE,LEFT($B138,3)<>\"NOX\"),BB53*INDEX('Damage costs'!$U$16:$U$43,MATCH($B138,'Damage costs'!$C$16:$C$43,0))/1000,BB53*INDEX('Damage costs'!$Y$16:$Y$43,MATCH($B138,'Damage costs'!$C$16:$C$43,0))/1000),\"\")","v":""},{"$f":"IFERROR(IF(OR($C$144=FALSE,LEFT($B138,3)<>\"NOX\"),BC53*INDEX('Damage costs'!$U$16:$U$43,MATCH($B138,'Damage costs'!$C$16:$C$43,0))/1000,BC53*INDEX('Damage costs'!$Y$16:$Y$43,MATCH($B138,'Damage costs'!$C$16:$C$43,0))/1000),\"\")","v":""},{"$f":"IFERROR(IF(OR($C$144=FALSE,LEFT($B138,3)<>\"NOX\"),BD53*INDEX('Damage costs'!$U$16:$U$43,MATCH($B138,'Damage costs'!$C$16:$C$43,0))/1000,BD53*INDEX('Damage costs'!$Y$16:$Y$43,MATCH($B138,'Damage costs'!$C$16:$C$43,0))/1000),\"\")","v":""},{"$f":"IFERROR(IF(OR($C$144=FALSE,LEFT($B138,3)<>\"NOX\"),BE53*INDEX('Damage costs'!$U$16:$U$43,MATCH($B138,'Damage costs'!$C$16:$C$43,0))/1000,BE53*INDEX('Damage costs'!$Y$16:$Y$43,MATCH($B138,'Damage costs'!$C$16:$C$43,0))/1000),\"\")","v":""},{"$f":"IFERROR(IF(OR($C$144=FALSE,LEFT($B138,3)<>\"NOX\"),BF53*INDEX('Damage costs'!$U$16:$U$43,MATCH($B138,'Damage costs'!$C$16:$C$43,0))/1000,BF53*INDEX('Damage costs'!$Y$16:$Y$43,MATCH($B138,'Damage costs'!$C$16:$C$43,0))/1000),\"\")","v":""},{"$f":"IFERROR(IF(OR($C$144=FALSE,LEFT($B138,3)<>\"NOX\"),BG53*INDEX('Damage costs'!$U$16:$U$43,MATCH($B138,'Damage costs'!$C$16:$C$43,0))/1000,BG53*INDEX('Damage costs'!$Y$16:$Y$43,MATCH($B138,'Damage costs'!$C$16:$C$43,0))/1000),\"\")","v":""},{"$f":"IFERROR(IF(OR($C$144=FALSE,LEFT($B138,3)<>\"NOX\"),BH53*INDEX('Damage costs'!$U$16:$U$43,MATCH($B138,'Damage costs'!$C$16:$C$43,0))/1000,BH53*INDEX('Damage costs'!$Y$16:$Y$43,MATCH($B138,'Damage costs'!$C$16:$C$43,0))/1000),\"\")","v":""},{"$f":"IFERROR(IF(OR($C$144=FALSE,LEFT($B138,3)<>\"NOX\"),BI53*INDEX('Damage costs'!$U$16:$U$43,MATCH($B138,'Damage costs'!$C$16:$C$43,0))/1000,BI53*INDEX('Damage costs'!$Y$16:$Y$43,MATCH($B138,'Damage costs'!$C$16:$C$43,0))/1000),\"\")","v":""},{"$f":"IFERROR(IF(OR($C$144=FALSE,LEFT($B138,3)<>\"NOX\"),BJ53*INDEX('Damage costs'!$U$16:$U$43,MATCH($B138,'Damage costs'!$C$16:$C$43,0))/1000,BJ53*INDEX('Damage costs'!$Y$16:$Y$43,MATCH($B138,'Damage costs'!$C$16:$C$43,0))/1000),\"\")","v":""},{"$f":"IFERROR(IF(OR($C$144=FALSE,LEFT($B138,3)<>\"NOX\"),BK53*INDEX('Damage costs'!$U$16:$U$43,MATCH($B138,'Damage costs'!$C$16:$C$43,0))/1000,BK53*INDEX('Damage costs'!$Y$16:$Y$43,MATCH($B138,'Damage costs'!$C$16:$C$43,0))/1000),\"\")","v":""},{"$f":"IFERROR(IF(OR($C$144=FALSE,LEFT($B138,3)<>\"NOX\"),BL53*INDEX('Damage costs'!$U$16:$U$43,MATCH($B138,'Damage costs'!$C$16:$C$43,0))/1000,BL53*INDEX('Damage costs'!$Y$16:$Y$43,MATCH($B138,'Damage costs'!$C$16:$C$43,0))/1000),\"\")","v":""},{"$f":"IFERROR(IF(OR($C$144=FALSE,LEFT($B138,3)<>\"NOX\"),BM53*INDEX('Damage costs'!$U$16:$U$43,MATCH($B138,'Damage costs'!$C$16:$C$43,0))/1000,BM53*INDEX('Damage costs'!$Y$16:$Y$43,MATCH($B138,'Damage costs'!$C$16:$C$43,0))/1000),\"\")","v":""},{"$f":"IFERROR(IF(OR($C$144=FALSE,LEFT($B138,3)<>\"NOX\"),BN53*INDEX('Damage costs'!$U$16:$U$43,MATCH($B138,'Damage costs'!$C$16:$C$43,0))/1000,BN53*INDEX('Damage costs'!$Y$16:$Y$43,MATCH($B138,'Damage costs'!$C$16:$C$43,0))/1000),\"\")","v":""},{"$f":"IFERROR(IF(OR($C$144=FALSE,LEFT($B138,3)<>\"NOX\"),BO53*INDEX('Damage costs'!$U$16:$U$43,MATCH($B138,'Damage costs'!$C$16:$C$43,0))/1000,BO53*INDEX('Damage costs'!$Y$16:$Y$43,MATCH($B138,'Damage costs'!$C$16:$C$43,0))/1000),\"\")","v":""},{"$f":"IFERROR(IF(OR($C$144=FALSE,LEFT($B138,3)<>\"NOX\"),BP53*INDEX('Damage costs'!$U$16:$U$43,MATCH($B138,'Damage costs'!$C$16:$C$43,0))/1000,BP53*INDEX('Damage costs'!$Y$16:$Y$43,MATCH($B138,'Damage costs'!$C$16:$C$43,0))/1000),\"\")","v":""},{"$f":"IFERROR(IF(OR($C$144=FALSE,LEFT($B138,3)<>\"NOX\"),BQ53*INDEX('Damage costs'!$U$16:$U$43,MATCH($B138,'Damage costs'!$C$16:$C$43,0))/1000,BQ53*INDEX('Damage costs'!$Y$16:$Y$43,MATCH($B138,'Damage costs'!$C$16:$C$43,0))/1000),\"\")","v":""},{"$f":"IFERROR(IF(OR($C$144=FALSE,LEFT($B138,3)<>\"NOX\"),BR53*INDEX('Damage costs'!$U$16:$U$43,MATCH($B138,'Damage costs'!$C$16:$C$43,0))/1000,BR53*INDEX('Damage costs'!$Y$16:$Y$43,MATCH($B138,'Damage costs'!$C$16:$C$43,0))/1000),\"\")","v":""},{"$f":"IFERROR(IF(OR($C$144=FALSE,LEFT($B138,3)<>\"NOX\"),BS53*INDEX('Damage costs'!$U$16:$U$43,MATCH($B138,'Damage costs'!$C$16:$C$43,0))/1000,BS53*INDEX('Damage costs'!$Y$16:$Y$43,MATCH($B138,'Damage costs'!$C$16:$C$43,0))/1000),\"\")","v":""},{"$f":"IFERROR(IF(OR($C$144=FALSE,LEFT($B138,3)<>\"NOX\"),BT53*INDEX('Damage costs'!$U$16:$U$43,MATCH($B138,'Damage costs'!$C$16:$C$43,0))/1000,BT53*INDEX('Damage costs'!$Y$16:$Y$43,MATCH($B138,'Damage costs'!$C$16:$C$43,0))/1000),\"\")","v":""},{"$f":"IFERROR(IF(OR($C$144=FALSE,LEFT($B138,3)<>\"NOX\"),BU53*INDEX('Damage costs'!$U$16:$U$43,MATCH($B138,'Damage costs'!$C$16:$C$43,0))/1000,BU53*INDEX('Damage costs'!$Y$16:$Y$43,MATCH($B138,'Damage costs'!$C$16:$C$43,0))/1000),\"\")","v":""},{"$f":"IFERROR(IF(OR($C$144=FALSE,LEFT($B138,3)<>\"NOX\"),BV53*INDEX('Damage costs'!$U$16:$U$43,MATCH($B138,'Damage costs'!$C$16:$C$43,0))/1000,BV53*INDEX('Damage costs'!$Y$16:$Y$43,MATCH($B138,'Damage costs'!$C$16:$C$43,0))/1000),\"\")","v":""},{"$f":"IFERROR(IF(OR($C$144=FALSE,LEFT($B138,3)<>\"NOX\"),BW53*INDEX('Damage costs'!$U$16:$U$43,MATCH($B138,'Damage costs'!$C$16:$C$43,0))/1000,BW53*INDEX('Damage costs'!$Y$16:$Y$43,MATCH($B138,'Damage costs'!$C$16:$C$43,0))/1000),\"\")","v":""},{"$f":"IFERROR(IF(OR($C$144=FALSE,LEFT($B138,3)<>\"NOX\"),BX53*INDEX('Damage costs'!$U$16:$U$43,MATCH($B138,'Damage costs'!$C$16:$C$43,0))/1000,BX53*INDEX('Damage costs'!$Y$16:$Y$43,MATCH($B138,'Damage costs'!$C$16:$C$43,0))/1000),\"\")","v":""},{"$f":"IFERROR(IF(OR($C$144=FALSE,LEFT($B138,3)<>\"NOX\"),BY53*INDEX('Damage costs'!$U$16:$U$43,MATCH($B138,'Damage costs'!$C$16:$C$43,0))/1000,BY53*INDEX('Damage costs'!$Y$16:$Y$43,MATCH($B138,'Damage costs'!$C$16:$C$43,0))/1000),\"\")","v":""},{"$f":"IFERROR(IF(OR($C$144=FALSE,LEFT($B138,3)<>\"NOX\"),BZ53*INDEX('Damage costs'!$U$16:$U$43,MATCH($B138,'Damage costs'!$C$16:$C$43,0))/1000,BZ53*INDEX('Damage costs'!$Y$16:$Y$43,MATCH($B138,'Damage costs'!$C$16:$C$43,0))/1000),\"\")","v":""},{"$f":"IFERROR(IF(OR($C$144=FALSE,LEFT($B138,3)<>\"NOX\"),CA53*INDEX('Damage costs'!$U$16:$U$43,MATCH($B138,'Damage costs'!$C$16:$C$43,0))/1000,CA53*INDEX('Damage costs'!$Y$16:$Y$43,MATCH($B138,'Damage costs'!$C$16:$C$43,0))/1000),\"\")","v":""},{"$f":"IFERROR(IF(OR($C$144=FALSE,LEFT($B138,3)<>\"NOX\"),CB53*INDEX('Damage costs'!$U$16:$U$43,MATCH($B138,'Damage costs'!$C$16:$C$43,0))/1000,CB53*INDEX('Damage costs'!$Y$16:$Y$43,MATCH($B138,'Damage costs'!$C$16:$C$43,0))/1000),\"\")","v":""},{"$f":"IFERROR(IF(OR($C$144=FALSE,LEFT($B138,3)<>\"NOX\"),CC53*INDEX('Damage costs'!$U$16:$U$43,MATCH($B138,'Damage costs'!$C$16:$C$43,0))/1000,CC53*INDEX('Damage costs'!$Y$16:$Y$43,MATCH($B138,'Damage costs'!$C$16:$C$43,0))/1000),\"\")","v":""},{"$f":"IFERROR(IF(OR($C$144=FALSE,LEFT($B138,3)<>\"NOX\"),CD53*INDEX('Damage costs'!$U$16:$U$43,MATCH($B138,'Damage costs'!$C$16:$C$43,0))/1000,CD53*INDEX('Damage costs'!$Y$16:$Y$43,MATCH($B138,'Damage costs'!$C$16:$C$43,0))/1000),\"\")","v":""},{"$f":"IFERROR(IF(OR($C$144=FALSE,LEFT($B138,3)<>\"NOX\"),CE53*INDEX('Damage costs'!$U$16:$U$43,MATCH($B138,'Damage costs'!$C$16:$C$43,0))/1000,CE53*INDEX('Damage costs'!$Y$16:$Y$43,MATCH($B138,'Damage costs'!$C$16:$C$43,0))/1000),\"\")","v":""},{"$f":"IFERROR(IF(OR($C$144=FALSE,LEFT($B138,3)<>\"NOX\"),CF53*INDEX('Damage costs'!$U$16:$U$43,MATCH($B138,'Damage costs'!$C$16:$C$43,0))/1000,CF53*INDEX('Damage costs'!$Y$16:$Y$43,MATCH($B138,'Damage costs'!$C$16:$C$43,0))/1000),\"\")","v":""},{"$f":"IFERROR(IF(OR($C$144=FALSE,LEFT($B138,3)<>\"NOX\"),CG53*INDEX('Damage costs'!$U$16:$U$43,MATCH($B138,'Damage costs'!$C$16:$C$43,0))/1000,CG53*INDEX('Damage costs'!$Y$16:$Y$43,MATCH($B138,'Damage costs'!$C$16:$C$43,0))/1000),\"\")","v":""},{"$f":"IFERROR(IF(OR($C$144=FALSE,LEFT($B138,3)<>\"NOX\"),CH53*INDEX('Damage costs'!$U$16:$U$43,MATCH($B138,'Damage costs'!$C$16:$C$43,0))/1000,CH53*INDEX('Damage costs'!$Y$16:$Y$43,MATCH($B138,'Damage costs'!$C$16:$C$43,0))/1000),\"\")","v":""},{"$f":"IFERROR(IF(OR($C$144=FALSE,LEFT($B138,3)<>\"NOX\"),CI53*INDEX('Damage costs'!$U$16:$U$43,MATCH($B138,'Damage costs'!$C$16:$C$43,0))/1000,CI53*INDEX('Damage costs'!$Y$16:$Y$43,MATCH($B138,'Damage costs'!$C$16:$C$43,0))/1000),\"\")","v":""},{"$f":"IFERROR(IF(OR($C$144=FALSE,LEFT($B138,3)<>\"NOX\"),CJ53*INDEX('Damage costs'!$U$16:$U$43,MATCH($B138,'Damage costs'!$C$16:$C$43,0))/1000,CJ53*INDEX('Damage costs'!$Y$16:$Y$43,MATCH($B138,'Damage costs'!$C$16:$C$43,0))/1000),\"\")","v":""},{"$f":"IFERROR(IF(OR($C$144=FALSE,LEFT($B138,3)<>\"NOX\"),CK53*INDEX('Damage costs'!$U$16:$U$43,MATCH($B138,'Damage costs'!$C$16:$C$43,0))/1000,CK53*INDEX('Damage costs'!$Y$16:$Y$43,MATCH($B138,'Damage costs'!$C$16:$C$43,0))/1000),\"\")","v":""},{"$f":"IFERROR(IF(OR($C$144=FALSE,LEFT($B138,3)<>\"NOX\"),CL53*INDEX('Damage costs'!$U$16:$U$43,MATCH($B138,'Damage costs'!$C$16:$C$43,0))/1000,CL53*INDEX('Damage costs'!$Y$16:$Y$43,MATCH($B138,'Damage costs'!$C$16:$C$43,0))/1000),\"\")","v":""},{"$f":"IFERROR(IF(OR($C$144=FALSE,LEFT($B138,3)<>\"NOX\"),CM53*INDEX('Damage costs'!$U$16:$U$43,MATCH($B138,'Damage costs'!$C$16:$C$43,0))/1000,CM53*INDEX('Damage costs'!$Y$16:$Y$43,MATCH($B138,'Damage costs'!$C$16:$C$43,0))/1000),\"\")","v":""},{"$f":"IFERROR(IF(OR($C$144=FALSE,LEFT($B138,3)<>\"NOX\"),CN53*INDEX('Damage costs'!$U$16:$U$43,MATCH($B138,'Damage costs'!$C$16:$C$43,0))/1000,CN53*INDEX('Damage costs'!$Y$16:$Y$43,MATCH($B138,'Damage costs'!$C$16:$C$43,0))/1000),\"\")","v":""},{"$f":"IFERROR(IF(OR($C$144=FALSE,LEFT($B138,3)<>\"NOX\"),CO53*INDEX('Damage costs'!$U$16:$U$43,MATCH($B138,'Damage costs'!$C$16:$C$43,0))/1000,CO53*INDEX('Damage costs'!$Y$16:$Y$43,MATCH($B138,'Damage costs'!$C$16:$C$43,0))/1000),\"\")","v":""},{"$f":"IFERROR(IF(OR($C$144=FALSE,LEFT($B138,3)<>\"NOX\"),CP53*INDEX('Damage costs'!$U$16:$U$43,MATCH($B138,'Damage costs'!$C$16:$C$43,0))/1000,CP53*INDEX('Damage costs'!$Y$16:$Y$43,MATCH($B138,'Damage costs'!$C$16:$C$43,0))/1000),\"\")","v":""},{"$f":"IFERROR(IF(OR($C$144=FALSE,LEFT($B138,3)<>\"NOX\"),CQ53*INDEX('Damage costs'!$U$16:$U$43,MATCH($B138,'Damage costs'!$C$16:$C$43,0))/1000,CQ53*INDEX('Damage costs'!$Y$16:$Y$43,MATCH($B138,'Damage costs'!$C$16:$C$43,0))/1000),\"\")","v":""},{"$f":"IFERROR(IF(OR($C$144=FALSE,LEFT($B138,3)<>\"NOX\"),CR53*INDEX('Damage costs'!$U$16:$U$43,MATCH($B138,'Damage costs'!$C$16:$C$43,0))/1000,CR53*INDEX('Damage costs'!$Y$16:$Y$43,MATCH($B138,'Damage costs'!$C$16:$C$43,0))/1000),\"\")","v":""},{"$f":"IFERROR(IF(OR($C$144=FALSE,LEFT($B138,3)<>\"NOX\"),CS53*INDEX('Damage costs'!$U$16:$U$43,MATCH($B138,'Damage costs'!$C$16:$C$43,0))/1000,CS53*INDEX('Damage costs'!$Y$16:$Y$43,MATCH($B138,'Damage costs'!$C$16:$C$43,0))/1000),\"\")","v":""},{"$f":"IFERROR(IF(OR($C$144=FALSE,LEFT($B138,3)<>\"NOX\"),CT53*INDEX('Damage costs'!$U$16:$U$43,MATCH($B138,'Damage costs'!$C$16:$C$43,0))/1000,CT53*INDEX('Damage costs'!$Y$16:$Y$43,MATCH($B138,'Damage costs'!$C$16:$C$43,0))/1000),\"\")","v":""},{"$f":"IFERROR(IF(OR($C$144=FALSE,LEFT($B138,3)<>\"NOX\"),CU53*INDEX('Damage costs'!$U$16:$U$43,MATCH($B138,'Damage costs'!$C$16:$C$43,0))/1000,CU53*INDEX('Damage costs'!$Y$16:$Y$43,MATCH($B138,'Damage costs'!$C$16:$C$43,0))/1000),\"\")","v":""},{"$f":"IFERROR(IF(OR($C$144=FALSE,LEFT($B138,3)<>\"NOX\"),CV53*INDEX('Damage costs'!$U$16:$U$43,MATCH($B138,'Damage costs'!$C$16:$C$43,0))/1000,CV53*INDEX('Damage costs'!$Y$16:$Y$43,MATCH($B138,'Damage costs'!$C$16:$C$43,0))/1000),\"\")","v":""},{"$f":"IFERROR(IF(OR($C$144=FALSE,LEFT($B138,3)<>\"NOX\"),CW53*INDEX('Damage costs'!$U$16:$U$43,MATCH($B138,'Damage costs'!$C$16:$C$43,0))/1000,CW53*INDEX('Damage costs'!$Y$16:$Y$43,MATCH($B138,'Damage costs'!$C$16:$C$43,0))/1000),\"\")","v":""},{"$f":"IFERROR(IF(OR($C$144=FALSE,LEFT($B138,3)<>\"NOX\"),CX53*INDEX('Damage costs'!$U$16:$U$43,MATCH($B138,'Damage costs'!$C$16:$C$43,0))/1000,CX53*INDEX('Damage costs'!$Y$16:$Y$43,MATCH($B138,'Damage costs'!$C$16:$C$43,0))/1000),\"\")","v":""},{"$f":"IFERROR(IF(OR($C$144=FALSE,LEFT($B138,3)<>\"NOX\"),CY53*INDEX('Damage costs'!$U$16:$U$43,MATCH($B138,'Damage costs'!$C$16:$C$43,0))/1000,CY53*INDEX('Damage costs'!$Y$16:$Y$43,MATCH($B138,'Damage costs'!$C$16:$C$43,0))/1000),\"\")","v":""}]
[null,0,"£000's",{"$f":"IFERROR(IF(OR($C$144=FALSE,LEFT($B139,3)<>\"NOX\"),D54*INDEX('Damage costs'!$U$16:$U$43,MATCH($B139,'Damage costs'!$C$16:$C$43,0))/1000,D54*INDEX('Damage costs'!$Y$16:$Y$43,MATCH($B139,'Damage costs'!$C$16:$C$43,0))/1000),\"\")","v":""},{"$f":"IFERROR(IF(OR($C$144=FALSE,LEFT($B139,3)<>\"NOX\"),E54*INDEX('Damage costs'!$U$16:$U$43,MATCH($B139,'Damage costs'!$C$16:$C$43,0))/1000,E54*INDEX('Damage costs'!$Y$16:$Y$43,MATCH($B139,'Damage costs'!$C$16:$C$43,0))/1000),\"\")","v":""},{"$f":"IFERROR(IF(OR($C$144=FALSE,LEFT($B139,3)<>\"NOX\"),F54*INDEX('Damage costs'!$U$16:$U$43,MATCH($B139,'Damage costs'!$C$16:$C$43,0))/1000,F54*INDEX('Damage costs'!$Y$16:$Y$43,MATCH($B139,'Damage costs'!$C$16:$C$43,0))/1000),\"\")","v":""},{"$f":"IFERROR(IF(OR($C$144=FALSE,LEFT($B139,3)<>\"NOX\"),G54*INDEX('Damage costs'!$U$16:$U$43,MATCH($B139,'Damage costs'!$C$16:$C$43,0))/1000,G54*INDEX('Damage costs'!$Y$16:$Y$43,MATCH($B139,'Damage costs'!$C$16:$C$43,0))/1000),\"\")","v":""},{"$f":"IFERROR(IF(OR($C$144=FALSE,LEFT($B139,3)<>\"NOX\"),H54*INDEX('Damage costs'!$U$16:$U$43,MATCH($B139,'Damage costs'!$C$16:$C$43,0))/1000,H54*INDEX('Damage costs'!$Y$16:$Y$43,MATCH($B139,'Damage costs'!$C$16:$C$43,0))/1000),\"\")","v":""},{"$f":"IFERROR(IF(OR($C$144=FALSE,LEFT($B139,3)<>\"NOX\"),I54*INDEX('Damage costs'!$U$16:$U$43,MATCH($B139,'Damage costs'!$C$16:$C$43,0))/1000,I54*INDEX('Damage costs'!$Y$16:$Y$43,MATCH($B139,'Damage costs'!$C$16:$C$43,0))/1000),\"\")","v":""},{"$f":"IFERROR(IF(OR($C$144=FALSE,LEFT($B139,3)<>\"NOX\"),J54*INDEX('Damage costs'!$U$16:$U$43,MATCH($B139,'Damage costs'!$C$16:$C$43,0))/1000,J54*INDEX('Damage costs'!$Y$16:$Y$43,MATCH($B139,'Damage costs'!$C$16:$C$43,0))/1000),\"\")","v":""},{"$f":"IFERROR(IF(OR($C$144=FALSE,LEFT($B139,3)<>\"NOX\"),K54*INDEX('Damage costs'!$U$16:$U$43,MATCH($B139,'Damage costs'!$C$16:$C$43,0))/1000,K54*INDEX('Damage costs'!$Y$16:$Y$43,MATCH($B139,'Damage costs'!$C$16:$C$43,0))/1000),\"\")","v":""},{"$f":"IFERROR(IF(OR($C$144=FALSE,LEFT($B139,3)<>\"NOX\"),L54*INDEX('Damage costs'!$U$16:$U$43,MATCH($B139,'Damage costs'!$C$16:$C$43,0))/1000,L54*INDEX('Damage costs'!$Y$16:$Y$43,MATCH($B139,'Damage costs'!$C$16:$C$43,0))/1000),\"\")","v":""},{"$f":"IFERROR(IF(OR($C$144=FALSE,LEFT($B139,3)<>\"NOX\"),M54*INDEX('Damage costs'!$U$16:$U$43,MATCH($B139,'Damage costs'!$C$16:$C$43,0))/1000,M54*INDEX('Damage costs'!$Y$16:$Y$43,MATCH($B139,'Damage costs'!$C$16:$C$43,0))/1000),\"\")","v":""},{"$f":"IFERROR(IF(OR($C$144=FALSE,LEFT($B139,3)<>\"NOX\"),N54*INDEX('Damage costs'!$U$16:$U$43,MATCH($B139,'Damage costs'!$C$16:$C$43,0))/1000,N54*INDEX('Damage costs'!$Y$16:$Y$43,MATCH($B139,'Damage costs'!$C$16:$C$43,0))/1000),\"\")","v":""},{"$f":"IFERROR(IF(OR($C$144=FALSE,LEFT($B139,3)<>\"NOX\"),O54*INDEX('Damage costs'!$U$16:$U$43,MATCH($B139,'Damage costs'!$C$16:$C$43,0))/1000,O54*INDEX('Damage costs'!$Y$16:$Y$43,MATCH($B139,'Damage costs'!$C$16:$C$43,0))/1000),\"\")","v":""},{"$f":"IFERROR(IF(OR($C$144=FALSE,LEFT($B139,3)<>\"NOX\"),P54*INDEX('Damage costs'!$U$16:$U$43,MATCH($B139,'Damage costs'!$C$16:$C$43,0))/1000,P54*INDEX('Damage costs'!$Y$16:$Y$43,MATCH($B139,'Damage costs'!$C$16:$C$43,0))/1000),\"\")","v":""},{"$f":"IFERROR(IF(OR($C$144=FALSE,LEFT($B139,3)<>\"NOX\"),Q54*INDEX('Damage costs'!$U$16:$U$43,MATCH($B139,'Damage costs'!$C$16:$C$43,0))/1000,Q54*INDEX('Damage costs'!$Y$16:$Y$43,MATCH($B139,'Damage costs'!$C$16:$C$43,0))/1000),\"\")","v":""},{"$f":"IFERROR(IF(OR($C$144=FALSE,LEFT($B139,3)<>\"NOX\"),R54*INDEX('Damage costs'!$U$16:$U$43,MATCH($B139,'Damage costs'!$C$16:$C$43,0))/1000,R54*INDEX('Damage costs'!$Y$16:$Y$43,MATCH($B139,'Damage costs'!$C$16:$C$43,0))/1000),\"\")","v":""},{"$f":"IFERROR(IF(OR($C$144=FALSE,LEFT($B139,3)<>\"NOX\"),S54*INDEX('Damage costs'!$U$16:$U$43,MATCH($B139,'Damage costs'!$C$16:$C$43,0))/1000,S54*INDEX('Damage costs'!$Y$16:$Y$43,MATCH($B139,'Damage costs'!$C$16:$C$43,0))/1000),\"\")","v":""},{"$f":"IFERROR(IF(OR($C$144=FALSE,LEFT($B139,3)<>\"NOX\"),T54*INDEX('Damage costs'!$U$16:$U$43,MATCH($B139,'Damage costs'!$C$16:$C$43,0))/1000,T54*INDEX('Damage costs'!$Y$16:$Y$43,MATCH($B139,'Damage costs'!$C$16:$C$43,0))/1000),\"\")","v":""},{"$f":"IFERROR(IF(OR($C$144=FALSE,LEFT($B139,3)<>\"NOX\"),U54*INDEX('Damage costs'!$U$16:$U$43,MATCH($B139,'Damage costs'!$C$16:$C$43,0))/1000,U54*INDEX('Damage costs'!$Y$16:$Y$43,MATCH($B139,'Damage costs'!$C$16:$C$43,0))/1000),\"\")","v":""},{"$f":"IFERROR(IF(OR($C$144=FALSE,LEFT($B139,3)<>\"NOX\"),V54*INDEX('Damage costs'!$U$16:$U$43,MATCH($B139,'Damage costs'!$C$16:$C$43,0))/1000,V54*INDEX('Damage costs'!$Y$16:$Y$43,MATCH($B139,'Damage costs'!$C$16:$C$43,0))/1000),\"\")","v":""},{"$f":"IFERROR(IF(OR($C$144=FALSE,LEFT($B139,3)<>\"NOX\"),W54*INDEX('Damage costs'!$U$16:$U$43,MATCH($B139,'Damage costs'!$C$16:$C$43,0))/1000,W54*INDEX('Damage costs'!$Y$16:$Y$43,MATCH($B139,'Damage costs'!$C$16:$C$43,0))/1000),\"\")","v":""},{"$f":"IFERROR(IF(OR($C$144=FALSE,LEFT($B139,3)<>\"NOX\"),X54*INDEX('Damage costs'!$U$16:$U$43,MATCH($B139,'Damage costs'!$C$16:$C$43,0))/1000,X54*INDEX('Damage costs'!$Y$16:$Y$43,MATCH($B139,'Damage costs'!$C$16:$C$43,0))/1000),\"\")","v":""},{"$f":"IFERROR(IF(OR($C$144=FALSE,LEFT($B139,3)<>\"NOX\"),Y54*INDEX('Damage costs'!$U$16:$U$43,MATCH($B139,'Damage costs'!$C$16:$C$43,0))/1000,Y54*INDEX('Damage costs'!$Y$16:$Y$43,MATCH($B139,'Damage costs'!$C$16:$C$43,0))/1000),\"\")","v":""},{"$f":"IFERROR(IF(OR($C$144=FALSE,LEFT($B139,3)<>\"NOX\"),Z54*INDEX('Damage costs'!$U$16:$U$43,MATCH($B139,'Damage costs'!$C$16:$C$43,0))/1000,Z54*INDEX('Damage costs'!$Y$16:$Y$43,MATCH($B139,'Damage costs'!$C$16:$C$43,0))/1000),\"\")","v":""},{"$f":"IFERROR(IF(OR($C$144=FALSE,LEFT($B139,3)<>\"NOX\"),AA54*INDEX('Damage costs'!$U$16:$U$43,MATCH($B139,'Damage costs'!$C$16:$C$43,0))/1000,AA54*INDEX('Damage costs'!$Y$16:$Y$43,MATCH($B139,'Damage costs'!$C$16:$C$43,0))/1000),\"\")","v":""},{"$f":"IFERROR(IF(OR($C$144=FALSE,LEFT($B139,3)<>\"NOX\"),AB54*INDEX('Damage costs'!$U$16:$U$43,MATCH($B139,'Damage costs'!$C$16:$C$43,0))/1000,AB54*INDEX('Damage costs'!$Y$16:$Y$43,MATCH($B139,'Damage costs'!$C$16:$C$43,0))/1000),\"\")","v":""},{"$f":"IFERROR(IF(OR($C$144=FALSE,LEFT($B139,3)<>\"NOX\"),AC54*INDEX('Damage costs'!$U$16:$U$43,MATCH($B139,'Damage costs'!$C$16:$C$43,0))/1000,AC54*INDEX('Damage costs'!$Y$16:$Y$43,MATCH($B139,'Damage costs'!$C$16:$C$43,0))/1000),\"\")","v":""},{"$f":"IFERROR(IF(OR($C$144=FALSE,LEFT($B139,3)<>\"NOX\"),AD54*INDEX('Damage costs'!$U$16:$U$43,MATCH($B139,'Damage costs'!$C$16:$C$43,0))/1000,AD54*INDEX('Damage costs'!$Y$16:$Y$43,MATCH($B139,'Damage costs'!$C$16:$C$43,0))/1000),\"\")","v":""},{"$f":"IFERROR(IF(OR($C$144=FALSE,LEFT($B139,3)<>\"NOX\"),AE54*INDEX('Damage costs'!$U$16:$U$43,MATCH($B139,'Damage costs'!$C$16:$C$43,0))/1000,AE54*INDEX('Damage costs'!$Y$16:$Y$43,MATCH($B139,'Damage costs'!$C$16:$C$43,0))/1000),\"\")","v":""},{"$f":"IFERROR(IF(OR($C$144=FALSE,LEFT($B139,3)<>\"NOX\"),AF54*INDEX('Damage costs'!$U$16:$U$43,MATCH($B139,'Damage costs'!$C$16:$C$43,0))/1000,AF54*INDEX('Damage costs'!$Y$16:$Y$43,MATCH($B139,'Damage costs'!$C$16:$C$43,0))/1000),\"\")","v":""},{"$f":"IFERROR(IF(OR($C$144=FALSE,LEFT($B139,3)<>\"NOX\"),AG54*INDEX('Damage costs'!$U$16:$U$43,MATCH($B139,'Damage costs'!$C$16:$C$43,0))/1000,AG54*INDEX('Damage costs'!$Y$16:$Y$43,MATCH($B139,'Damage costs'!$C$16:$C$43,0))/1000),\"\")","v":""},{"$f":"IFERROR(IF(OR($C$144=FALSE,LEFT($B139,3)<>\"NOX\"),AH54*INDEX('Damage costs'!$U$16:$U$43,MATCH($B139,'Damage costs'!$C$16:$C$43,0))/1000,AH54*INDEX('Damage costs'!$Y$16:$Y$43,MATCH($B139,'Damage costs'!$C$16:$C$43,0))/1000),\"\")","v":""},{"$f":"IFERROR(IF(OR($C$144=FALSE,LEFT($B139,3)<>\"NOX\"),AI54*INDEX('Damage costs'!$U$16:$U$43,MATCH($B139,'Damage costs'!$C$16:$C$43,0))/1000,AI54*INDEX('Damage costs'!$Y$16:$Y$43,MATCH($B139,'Damage costs'!$C$16:$C$43,0))/1000),\"\")","v":""},{"$f":"IFERROR(IF(OR($C$144=FALSE,LEFT($B139,3)<>\"NOX\"),AJ54*INDEX('Damage costs'!$U$16:$U$43,MATCH($B139,'Damage costs'!$C$16:$C$43,0))/1000,AJ54*INDEX('Damage costs'!$Y$16:$Y$43,MATCH($B139,'Damage costs'!$C$16:$C$43,0))/1000),\"\")","v":""},{"$f":"IFERROR(IF(OR($C$144=FALSE,LEFT($B139,3)<>\"NOX\"),AK54*INDEX('Damage costs'!$U$16:$U$43,MATCH($B139,'Damage costs'!$C$16:$C$43,0))/1000,AK54*INDEX('Damage costs'!$Y$16:$Y$43,MATCH($B139,'Damage costs'!$C$16:$C$43,0))/1000),\"\")","v":""},{"$f":"IFERROR(IF(OR($C$144=FALSE,LEFT($B139,3)<>\"NOX\"),AL54*INDEX('Damage costs'!$U$16:$U$43,MATCH($B139,'Damage costs'!$C$16:$C$43,0))/1000,AL54*INDEX('Damage costs'!$Y$16:$Y$43,MATCH($B139,'Damage costs'!$C$16:$C$43,0))/1000),\"\")","v":""},{"$f":"IFERROR(IF(OR($C$144=FALSE,LEFT($B139,3)<>\"NOX\"),AM54*INDEX('Damage costs'!$U$16:$U$43,MATCH($B139,'Damage costs'!$C$16:$C$43,0))/1000,AM54*INDEX('Damage costs'!$Y$16:$Y$43,MATCH($B139,'Damage costs'!$C$16:$C$43,0))/1000),\"\")","v":""},{"$f":"IFERROR(IF(OR($C$144=FALSE,LEFT($B139,3)<>\"NOX\"),AN54*INDEX('Damage costs'!$U$16:$U$43,MATCH($B139,'Damage costs'!$C$16:$C$43,0))/1000,AN54*INDEX('Damage costs'!$Y$16:$Y$43,MATCH($B139,'Damage costs'!$C$16:$C$43,0))/1000),\"\")","v":""},{"$f":"IFERROR(IF(OR($C$144=FALSE,LEFT($B139,3)<>\"NOX\"),AO54*INDEX('Damage costs'!$U$16:$U$43,MATCH($B139,'Damage costs'!$C$16:$C$43,0))/1000,AO54*INDEX('Damage costs'!$Y$16:$Y$43,MATCH($B139,'Damage costs'!$C$16:$C$43,0))/1000),\"\")","v":""},{"$f":"IFERROR(IF(OR($C$144=FALSE,LEFT($B139,3)<>\"NOX\"),AP54*INDEX('Damage costs'!$U$16:$U$43,MATCH($B139,'Damage costs'!$C$16:$C$43,0))/1000,AP54*INDEX('Damage costs'!$Y$16:$Y$43,MATCH($B139,'Damage costs'!$C$16:$C$43,0))/1000),\"\")","v":""},{"$f":"IFERROR(IF(OR($C$144=FALSE,LEFT($B139,3)<>\"NOX\"),AQ54*INDEX('Damage costs'!$U$16:$U$43,MATCH($B139,'Damage costs'!$C$16:$C$43,0))/1000,AQ54*INDEX('Damage costs'!$Y$16:$Y$43,MATCH($B139,'Damage costs'!$C$16:$C$43,0))/1000),\"\")","v":""},{"$f":"IFERROR(IF(OR($C$144=FALSE,LEFT($B139,3)<>\"NOX\"),AR54*INDEX('Damage costs'!$U$16:$U$43,MATCH($B139,'Damage costs'!$C$16:$C$43,0))/1000,AR54*INDEX('Damage costs'!$Y$16:$Y$43,MATCH($B139,'Damage costs'!$C$16:$C$43,0))/1000),\"\")","v":""},{"$f":"IFERROR(IF(OR($C$144=FALSE,LEFT($B139,3)<>\"NOX\"),AS54*INDEX('Damage costs'!$U$16:$U$43,MATCH($B139,'Damage costs'!$C$16:$C$43,0))/1000,AS54*INDEX('Damage costs'!$Y$16:$Y$43,MATCH($B139,'Damage costs'!$C$16:$C$43,0))/1000),\"\")","v":""},{"$f":"IFERROR(IF(OR($C$144=FALSE,LEFT($B139,3)<>\"NOX\"),AT54*INDEX('Damage costs'!$U$16:$U$43,MATCH($B139,'Damage costs'!$C$16:$C$43,0))/1000,AT54*INDEX('Damage costs'!$Y$16:$Y$43,MATCH($B139,'Damage costs'!$C$16:$C$43,0))/1000),\"\")","v":""},{"$f":"IFERROR(IF(OR($C$144=FALSE,LEFT($B139,3)<>\"NOX\"),AU54*INDEX('Damage costs'!$U$16:$U$43,MATCH($B139,'Damage costs'!$C$16:$C$43,0))/1000,AU54*INDEX('Damage costs'!$Y$16:$Y$43,MATCH($B139,'Damage costs'!$C$16:$C$43,0))/1000),\"\")","v":""},{"$f":"IFERROR(IF(OR($C$144=FALSE,LEFT($B139,3)<>\"NOX\"),AV54*INDEX('Damage costs'!$U$16:$U$43,MATCH($B139,'Damage costs'!$C$16:$C$43,0))/1000,AV54*INDEX('Damage costs'!$Y$16:$Y$43,MATCH($B139,'Damage costs'!$C$16:$C$43,0))/1000),\"\")","v":""},{"$f":"IFERROR(IF(OR($C$144=FALSE,LEFT($B139,3)<>\"NOX\"),AW54*INDEX('Damage costs'!$U$16:$U$43,MATCH($B139,'Damage costs'!$C$16:$C$43,0))/1000,AW54*INDEX('Damage costs'!$Y$16:$Y$43,MATCH($B139,'Damage costs'!$C$16:$C$43,0))/1000),\"\")","v":""},{"$f":"IFERROR(IF(OR($C$144=FALSE,LEFT($B139,3)<>\"NOX\"),AX54*INDEX('Damage costs'!$U$16:$U$43,MATCH($B139,'Damage costs'!$C$16:$C$43,0))/1000,AX54*INDEX('Damage costs'!$Y$16:$Y$43,MATCH($B139,'Damage costs'!$C$16:$C$43,0))/1000),\"\")","v":""},{"$f":"IFERROR(IF(OR($C$144=FALSE,LEFT($B139,3)<>\"NOX\"),AY54*INDEX('Damage costs'!$U$16:$U$43,MATCH($B139,'Damage costs'!$C$16:$C$43,0))/1000,AY54*INDEX('Damage costs'!$Y$16:$Y$43,MATCH($B139,'Damage costs'!$C$16:$C$43,0))/1000),\"\")","v":""},{"$f":"IFERROR(IF(OR($C$144=FALSE,LEFT($B139,3)<>\"NOX\"),AZ54*INDEX('Damage costs'!$U$16:$U$43,MATCH($B139,'Damage costs'!$C$16:$C$43,0))/1000,AZ54*INDEX('Damage costs'!$Y$16:$Y$43,MATCH($B139,'Damage costs'!$C$16:$C$43,0))/1000),\"\")","v":""},{"$f":"IFERROR(IF(OR($C$144=FALSE,LEFT($B139,3)<>\"NOX\"),BA54*INDEX('Damage costs'!$U$16:$U$43,MATCH($B139,'Damage costs'!$C$16:$C$43,0))/1000,BA54*INDEX('Damage costs'!$Y$16:$Y$43,MATCH($B139,'Damage costs'!$C$16:$C$43,0))/1000),\"\")","v":""},{"$f":"IFERROR(IF(OR($C$144=FALSE,LEFT($B139,3)<>\"NOX\"),BB54*INDEX('Damage costs'!$U$16:$U$43,MATCH($B139,'Damage costs'!$C$16:$C$43,0))/1000,BB54*INDEX('Damage costs'!$Y$16:$Y$43,MATCH($B139,'Damage costs'!$C$16:$C$43,0))/1000),\"\")","v":""},{"$f":"IFERROR(IF(OR($C$144=FALSE,LEFT($B139,3)<>\"NOX\"),BC54*INDEX('Damage costs'!$U$16:$U$43,MATCH($B139,'Damage costs'!$C$16:$C$43,0))/1000,BC54*INDEX('Damage costs'!$Y$16:$Y$43,MATCH($B139,'Damage costs'!$C$16:$C$43,0))/1000),\"\")","v":""},{"$f":"IFERROR(IF(OR($C$144=FALSE,LEFT($B139,3)<>\"NOX\"),BD54*INDEX('Damage costs'!$U$16:$U$43,MATCH($B139,'Damage costs'!$C$16:$C$43,0))/1000,BD54*INDEX('Damage costs'!$Y$16:$Y$43,MATCH($B139,'Damage costs'!$C$16:$C$43,0))/1000),\"\")","v":""},{"$f":"IFERROR(IF(OR($C$144=FALSE,LEFT($B139,3)<>\"NOX\"),BE54*INDEX('Damage costs'!$U$16:$U$43,MATCH($B139,'Damage costs'!$C$16:$C$43,0))/1000,BE54*INDEX('Damage costs'!$Y$16:$Y$43,MATCH($B139,'Damage costs'!$C$16:$C$43,0))/1000),\"\")","v":""},{"$f":"IFERROR(IF(OR($C$144=FALSE,LEFT($B139,3)<>\"NOX\"),BF54*INDEX('Damage costs'!$U$16:$U$43,MATCH($B139,'Damage costs'!$C$16:$C$43,0))/1000,BF54*INDEX('Damage costs'!$Y$16:$Y$43,MATCH($B139,'Damage costs'!$C$16:$C$43,0))/1000),\"\")","v":""},{"$f":"IFERROR(IF(OR($C$144=FALSE,LEFT($B139,3)<>\"NOX\"),BG54*INDEX('Damage costs'!$U$16:$U$43,MATCH($B139,'Damage costs'!$C$16:$C$43,0))/1000,BG54*INDEX('Damage costs'!$Y$16:$Y$43,MATCH($B139,'Damage costs'!$C$16:$C$43,0))/1000),\"\")","v":""},{"$f":"IFERROR(IF(OR($C$144=FALSE,LEFT($B139,3)<>\"NOX\"),BH54*INDEX('Damage costs'!$U$16:$U$43,MATCH($B139,'Damage costs'!$C$16:$C$43,0))/1000,BH54*INDEX('Damage costs'!$Y$16:$Y$43,MATCH($B139,'Damage costs'!$C$16:$C$43,0))/1000),\"\")","v":""},{"$f":"IFERROR(IF(OR($C$144=FALSE,LEFT($B139,3)<>\"NOX\"),BI54*INDEX('Damage costs'!$U$16:$U$43,MATCH($B139,'Damage costs'!$C$16:$C$43,0))/1000,BI54*INDEX('Damage costs'!$Y$16:$Y$43,MATCH($B139,'Damage costs'!$C$16:$C$43,0))/1000),\"\")","v":""},{"$f":"IFERROR(IF(OR($C$144=FALSE,LEFT($B139,3)<>\"NOX\"),BJ54*INDEX('Damage costs'!$U$16:$U$43,MATCH($B139,'Damage costs'!$C$16:$C$43,0))/1000,BJ54*INDEX('Damage costs'!$Y$16:$Y$43,MATCH($B139,'Damage costs'!$C$16:$C$43,0))/1000),\"\")","v":""},{"$f":"IFERROR(IF(OR($C$144=FALSE,LEFT($B139,3)<>\"NOX\"),BK54*INDEX('Damage costs'!$U$16:$U$43,MATCH($B139,'Damage costs'!$C$16:$C$43,0))/1000,BK54*INDEX('Damage costs'!$Y$16:$Y$43,MATCH($B139,'Damage costs'!$C$16:$C$43,0))/1000),\"\")","v":""},{"$f":"IFERROR(IF(OR($C$144=FALSE,LEFT($B139,3)<>\"NOX\"),BL54*INDEX('Damage costs'!$U$16:$U$43,MATCH($B139,'Damage costs'!$C$16:$C$43,0))/1000,BL54*INDEX('Damage costs'!$Y$16:$Y$43,MATCH($B139,'Damage costs'!$C$16:$C$43,0))/1000),\"\")","v":""},{"$f":"IFERROR(IF(OR($C$144=FALSE,LEFT($B139,3)<>\"NOX\"),BM54*INDEX('Damage costs'!$U$16:$U$43,MATCH($B139,'Damage costs'!$C$16:$C$43,0))/1000,BM54*INDEX('Damage costs'!$Y$16:$Y$43,MATCH($B139,'Damage costs'!$C$16:$C$43,0))/1000),\"\")","v":""},{"$f":"IFERROR(IF(OR($C$144=FALSE,LEFT($B139,3)<>\"NOX\"),BN54*INDEX('Damage costs'!$U$16:$U$43,MATCH($B139,'Damage costs'!$C$16:$C$43,0))/1000,BN54*INDEX('Damage costs'!$Y$16:$Y$43,MATCH($B139,'Damage costs'!$C$16:$C$43,0))/1000),\"\")","v":""},{"$f":"IFERROR(IF(OR($C$144=FALSE,LEFT($B139,3)<>\"NOX\"),BO54*INDEX('Damage costs'!$U$16:$U$43,MATCH($B139,'Damage costs'!$C$16:$C$43,0))/1000,BO54*INDEX('Damage costs'!$Y$16:$Y$43,MATCH($B139,'Damage costs'!$C$16:$C$43,0))/1000),\"\")","v":""},{"$f":"IFERROR(IF(OR($C$144=FALSE,LEFT($B139,3)<>\"NOX\"),BP54*INDEX('Damage costs'!$U$16:$U$43,MATCH($B139,'Damage costs'!$C$16:$C$43,0))/1000,BP54*INDEX('Damage costs'!$Y$16:$Y$43,MATCH($B139,'Damage costs'!$C$16:$C$43,0))/1000),\"\")","v":""},{"$f":"IFERROR(IF(OR($C$144=FALSE,LEFT($B139,3)<>\"NOX\"),BQ54*INDEX('Damage costs'!$U$16:$U$43,MATCH($B139,'Damage costs'!$C$16:$C$43,0))/1000,BQ54*INDEX('Damage costs'!$Y$16:$Y$43,MATCH($B139,'Damage costs'!$C$16:$C$43,0))/1000),\"\")","v":""},{"$f":"IFERROR(IF(OR($C$144=FALSE,LEFT($B139,3)<>\"NOX\"),BR54*INDEX('Damage costs'!$U$16:$U$43,MATCH($B139,'Damage costs'!$C$16:$C$43,0))/1000,BR54*INDEX('Damage costs'!$Y$16:$Y$43,MATCH($B139,'Damage costs'!$C$16:$C$43,0))/1000),\"\")","v":""},{"$f":"IFERROR(IF(OR($C$144=FALSE,LEFT($B139,3)<>\"NOX\"),BS54*INDEX('Damage costs'!$U$16:$U$43,MATCH($B139,'Damage costs'!$C$16:$C$43,0))/1000,BS54*INDEX('Damage costs'!$Y$16:$Y$43,MATCH($B139,'Damage costs'!$C$16:$C$43,0))/1000),\"\")","v":""},{"$f":"IFERROR(IF(OR($C$144=FALSE,LEFT($B139,3)<>\"NOX\"),BT54*INDEX('Damage costs'!$U$16:$U$43,MATCH($B139,'Damage costs'!$C$16:$C$43,0))/1000,BT54*INDEX('Damage costs'!$Y$16:$Y$43,MATCH($B139,'Damage costs'!$C$16:$C$43,0))/1000),\"\")","v":""},{"$f":"IFERROR(IF(OR($C$144=FALSE,LEFT($B139,3)<>\"NOX\"),BU54*INDEX('Damage costs'!$U$16:$U$43,MATCH($B139,'Damage costs'!$C$16:$C$43,0))/1000,BU54*INDEX('Damage costs'!$Y$16:$Y$43,MATCH($B139,'Damage costs'!$C$16:$C$43,0))/1000),\"\")","v":""},{"$f":"IFERROR(IF(OR($C$144=FALSE,LEFT($B139,3)<>\"NOX\"),BV54*INDEX('Damage costs'!$U$16:$U$43,MATCH($B139,'Damage costs'!$C$16:$C$43,0))/1000,BV54*INDEX('Damage costs'!$Y$16:$Y$43,MATCH($B139,'Damage costs'!$C$16:$C$43,0))/1000),\"\")","v":""},{"$f":"IFERROR(IF(OR($C$144=FALSE,LEFT($B139,3)<>\"NOX\"),BW54*INDEX('Damage costs'!$U$16:$U$43,MATCH($B139,'Damage costs'!$C$16:$C$43,0))/1000,BW54*INDEX('Damage costs'!$Y$16:$Y$43,MATCH($B139,'Damage costs'!$C$16:$C$43,0))/1000),\"\")","v":""},{"$f":"IFERROR(IF(OR($C$144=FALSE,LEFT($B139,3)<>\"NOX\"),BX54*INDEX('Damage costs'!$U$16:$U$43,MATCH($B139,'Damage costs'!$C$16:$C$43,0))/1000,BX54*INDEX('Damage costs'!$Y$16:$Y$43,MATCH($B139,'Damage costs'!$C$16:$C$43,0))/1000),\"\")","v":""},{"$f":"IFERROR(IF(OR($C$144=FALSE,LEFT($B139,3)<>\"NOX\"),BY54*INDEX('Damage costs'!$U$16:$U$43,MATCH($B139,'Damage costs'!$C$16:$C$43,0))/1000,BY54*INDEX('Damage costs'!$Y$16:$Y$43,MATCH($B139,'Damage costs'!$C$16:$C$43,0))/1000),\"\")","v":""},{"$f":"IFERROR(IF(OR($C$144=FALSE,LEFT($B139,3)<>\"NOX\"),BZ54*INDEX('Damage costs'!$U$16:$U$43,MATCH($B139,'Damage costs'!$C$16:$C$43,0))/1000,BZ54*INDEX('Damage costs'!$Y$16:$Y$43,MATCH($B139,'Damage costs'!$C$16:$C$43,0))/1000),\"\")","v":""},{"$f":"IFERROR(IF(OR($C$144=FALSE,LEFT($B139,3)<>\"NOX\"),CA54*INDEX('Damage costs'!$U$16:$U$43,MATCH($B139,'Damage costs'!$C$16:$C$43,0))/1000,CA54*INDEX('Damage costs'!$Y$16:$Y$43,MATCH($B139,'Damage costs'!$C$16:$C$43,0))/1000),\"\")","v":""},{"$f":"IFERROR(IF(OR($C$144=FALSE,LEFT($B139,3)<>\"NOX\"),CB54*INDEX('Damage costs'!$U$16:$U$43,MATCH($B139,'Damage costs'!$C$16:$C$43,0))/1000,CB54*INDEX('Damage costs'!$Y$16:$Y$43,MATCH($B139,'Damage costs'!$C$16:$C$43,0))/1000),\"\")","v":""},{"$f":"IFERROR(IF(OR($C$144=FALSE,LEFT($B139,3)<>\"NOX\"),CC54*INDEX('Damage costs'!$U$16:$U$43,MATCH($B139,'Damage costs'!$C$16:$C$43,0))/1000,CC54*INDEX('Damage costs'!$Y$16:$Y$43,MATCH($B139,'Damage costs'!$C$16:$C$43,0))/1000),\"\")","v":""},{"$f":"IFERROR(IF(OR($C$144=FALSE,LEFT($B139,3)<>\"NOX\"),CD54*INDEX('Damage costs'!$U$16:$U$43,MATCH($B139,'Damage costs'!$C$16:$C$43,0))/1000,CD54*INDEX('Damage costs'!$Y$16:$Y$43,MATCH($B139,'Damage costs'!$C$16:$C$43,0))/1000),\"\")","v":""},{"$f":"IFERROR(IF(OR($C$144=FALSE,LEFT($B139,3)<>\"NOX\"),CE54*INDEX('Damage costs'!$U$16:$U$43,MATCH($B139,'Damage costs'!$C$16:$C$43,0))/1000,CE54*INDEX('Damage costs'!$Y$16:$Y$43,MATCH($B139,'Damage costs'!$C$16:$C$43,0))/1000),\"\")","v":""},{"$f":"IFERROR(IF(OR($C$144=FALSE,LEFT($B139,3)<>\"NOX\"),CF54*INDEX('Damage costs'!$U$16:$U$43,MATCH($B139,'Damage costs'!$C$16:$C$43,0))/1000,CF54*INDEX('Damage costs'!$Y$16:$Y$43,MATCH($B139,'Damage costs'!$C$16:$C$43,0))/1000),\"\")","v":""},{"$f":"IFERROR(IF(OR($C$144=FALSE,LEFT($B139,3)<>\"NOX\"),CG54*INDEX('Damage costs'!$U$16:$U$43,MATCH($B139,'Damage costs'!$C$16:$C$43,0))/1000,CG54*INDEX('Damage costs'!$Y$16:$Y$43,MATCH($B139,'Damage costs'!$C$16:$C$43,0))/1000),\"\")","v":""},{"$f":"IFERROR(IF(OR($C$144=FALSE,LEFT($B139,3)<>\"NOX\"),CH54*INDEX('Damage costs'!$U$16:$U$43,MATCH($B139,'Damage costs'!$C$16:$C$43,0))/1000,CH54*INDEX('Damage costs'!$Y$16:$Y$43,MATCH($B139,'Damage costs'!$C$16:$C$43,0))/1000),\"\")","v":""},{"$f":"IFERROR(IF(OR($C$144=FALSE,LEFT($B139,3)<>\"NOX\"),CI54*INDEX('Damage costs'!$U$16:$U$43,MATCH($B139,'Damage costs'!$C$16:$C$43,0))/1000,CI54*INDEX('Damage costs'!$Y$16:$Y$43,MATCH($B139,'Damage costs'!$C$16:$C$43,0))/1000),\"\")","v":""},{"$f":"IFERROR(IF(OR($C$144=FALSE,LEFT($B139,3)<>\"NOX\"),CJ54*INDEX('Damage costs'!$U$16:$U$43,MATCH($B139,'Damage costs'!$C$16:$C$43,0))/1000,CJ54*INDEX('Damage costs'!$Y$16:$Y$43,MATCH($B139,'Damage costs'!$C$16:$C$43,0))/1000),\"\")","v":""},{"$f":"IFERROR(IF(OR($C$144=FALSE,LEFT($B139,3)<>\"NOX\"),CK54*INDEX('Damage costs'!$U$16:$U$43,MATCH($B139,'Damage costs'!$C$16:$C$43,0))/1000,CK54*INDEX('Damage costs'!$Y$16:$Y$43,MATCH($B139,'Damage costs'!$C$16:$C$43,0))/1000),\"\")","v":""},{"$f":"IFERROR(IF(OR($C$144=FALSE,LEFT($B139,3)<>\"NOX\"),CL54*INDEX('Damage costs'!$U$16:$U$43,MATCH($B139,'Damage costs'!$C$16:$C$43,0))/1000,CL54*INDEX('Damage costs'!$Y$16:$Y$43,MATCH($B139,'Damage costs'!$C$16:$C$43,0))/1000),\"\")","v":""},{"$f":"IFERROR(IF(OR($C$144=FALSE,LEFT($B139,3)<>\"NOX\"),CM54*INDEX('Damage costs'!$U$16:$U$43,MATCH($B139,'Damage costs'!$C$16:$C$43,0))/1000,CM54*INDEX('Damage costs'!$Y$16:$Y$43,MATCH($B139,'Damage costs'!$C$16:$C$43,0))/1000),\"\")","v":""},{"$f":"IFERROR(IF(OR($C$144=FALSE,LEFT($B139,3)<>\"NOX\"),CN54*INDEX('Damage costs'!$U$16:$U$43,MATCH($B139,'Damage costs'!$C$16:$C$43,0))/1000,CN54*INDEX('Damage costs'!$Y$16:$Y$43,MATCH($B139,'Damage costs'!$C$16:$C$43,0))/1000),\"\")","v":""},{"$f":"IFERROR(IF(OR($C$144=FALSE,LEFT($B139,3)<>\"NOX\"),CO54*INDEX('Damage costs'!$U$16:$U$43,MATCH($B139,'Damage costs'!$C$16:$C$43,0))/1000,CO54*INDEX('Damage costs'!$Y$16:$Y$43,MATCH($B139,'Damage costs'!$C$16:$C$43,0))/1000),\"\")","v":""},{"$f":"IFERROR(IF(OR($C$144=FALSE,LEFT($B139,3)<>\"NOX\"),CP54*INDEX('Damage costs'!$U$16:$U$43,MATCH($B139,'Damage costs'!$C$16:$C$43,0))/1000,CP54*INDEX('Damage costs'!$Y$16:$Y$43,MATCH($B139,'Damage costs'!$C$16:$C$43,0))/1000),\"\")","v":""},{"$f":"IFERROR(IF(OR($C$144=FALSE,LEFT($B139,3)<>\"NOX\"),CQ54*INDEX('Damage costs'!$U$16:$U$43,MATCH($B139,'Damage costs'!$C$16:$C$43,0))/1000,CQ54*INDEX('Damage costs'!$Y$16:$Y$43,MATCH($B139,'Damage costs'!$C$16:$C$43,0))/1000),\"\")","v":""},{"$f":"IFERROR(IF(OR($C$144=FALSE,LEFT($B139,3)<>\"NOX\"),CR54*INDEX('Damage costs'!$U$16:$U$43,MATCH($B139,'Damage costs'!$C$16:$C$43,0))/1000,CR54*INDEX('Damage costs'!$Y$16:$Y$43,MATCH($B139,'Damage costs'!$C$16:$C$43,0))/1000),\"\")","v":""},{"$f":"IFERROR(IF(OR($C$144=FALSE,LEFT($B139,3)<>\"NOX\"),CS54*INDEX('Damage costs'!$U$16:$U$43,MATCH($B139,'Damage costs'!$C$16:$C$43,0))/1000,CS54*INDEX('Damage costs'!$Y$16:$Y$43,MATCH($B139,'Damage costs'!$C$16:$C$43,0))/1000),\"\")","v":""},{"$f":"IFERROR(IF(OR($C$144=FALSE,LEFT($B139,3)<>\"NOX\"),CT54*INDEX('Damage costs'!$U$16:$U$43,MATCH($B139,'Damage costs'!$C$16:$C$43,0))/1000,CT54*INDEX('Damage costs'!$Y$16:$Y$43,MATCH($B139,'Damage costs'!$C$16:$C$43,0))/1000),\"\")","v":""},{"$f":"IFERROR(IF(OR($C$144=FALSE,LEFT($B139,3)<>\"NOX\"),CU54*INDEX('Damage costs'!$U$16:$U$43,MATCH($B139,'Damage costs'!$C$16:$C$43,0))/1000,CU54*INDEX('Damage costs'!$Y$16:$Y$43,MATCH($B139,'Damage costs'!$C$16:$C$43,0))/1000),\"\")","v":""},{"$f":"IFERROR(IF(OR($C$144=FALSE,LEFT($B139,3)<>\"NOX\"),CV54*INDEX('Damage costs'!$U$16:$U$43,MATCH($B139,'Damage costs'!$C$16:$C$43,0))/1000,CV54*INDEX('Damage costs'!$Y$16:$Y$43,MATCH($B139,'Damage costs'!$C$16:$C$43,0))/1000),\"\")","v":""},{"$f":"IFERROR(IF(OR($C$144=FALSE,LEFT($B139,3)<>\"NOX\"),CW54*INDEX('Damage costs'!$U$16:$U$43,MATCH($B139,'Damage costs'!$C$16:$C$43,0))/1000,CW54*INDEX('Damage costs'!$Y$16:$Y$43,MATCH($B139,'Damage costs'!$C$16:$C$43,0))/1000),\"\")","v":""},{"$f":"IFERROR(IF(OR($C$144=FALSE,LEFT($B139,3)<>\"NOX\"),CX54*INDEX('Damage costs'!$U$16:$U$43,MATCH($B139,'Damage costs'!$C$16:$C$43,0))/1000,CX54*INDEX('Damage costs'!$Y$16:$Y$43,MATCH($B139,'Damage costs'!$C$16:$C$43,0))/1000),\"\")","v":""},{"$f":"IFERROR(IF(OR($C$144=FALSE,LEFT($B139,3)<>\"NOX\"),CY54*INDEX('Damage costs'!$U$16:$U$43,MATCH($B139,'Damage costs'!$C$16:$C$43,0))/1000,CY54*INDEX('Damage costs'!$Y$16:$Y$43,MATCH($B139,'Damage costs'!$C$16:$C$43,0))/1000),\"\")","v":""}]
[null,0,"£000's",{"$f":"IFERROR(IF(OR($C$144=FALSE,LEFT($B140,3)<>\"NOX\"),D55*INDEX('Damage costs'!$U$16:$U$43,MATCH($B140,'Damage costs'!$C$16:$C$43,0))/1000,D55*INDEX('Damage costs'!$Y$16:$Y$43,MATCH($B140,'Damage costs'!$C$16:$C$43,0))/1000),\"\")","v":""},{"$f":"IFERROR(IF(OR($C$144=FALSE,LEFT($B140,3)<>\"NOX\"),E55*INDEX('Damage costs'!$U$16:$U$43,MATCH($B140,'Damage costs'!$C$16:$C$43,0))/1000,E55*INDEX('Damage costs'!$Y$16:$Y$43,MATCH($B140,'Damage costs'!$C$16:$C$43,0))/1000),\"\")","v":""},{"$f":"IFERROR(IF(OR($C$144=FALSE,LEFT($B140,3)<>\"NOX\"),F55*INDEX('Damage costs'!$U$16:$U$43,MATCH($B140,'Damage costs'!$C$16:$C$43,0))/1000,F55*INDEX('Damage costs'!$Y$16:$Y$43,MATCH($B140,'Damage costs'!$C$16:$C$43,0))/1000),\"\")","v":""},{"$f":"IFERROR(IF(OR($C$144=FALSE,LEFT($B140,3)<>\"NOX\"),G55*INDEX('Damage costs'!$U$16:$U$43,MATCH($B140,'Damage costs'!$C$16:$C$43,0))/1000,G55*INDEX('Damage costs'!$Y$16:$Y$43,MATCH($B140,'Damage costs'!$C$16:$C$43,0))/1000),\"\")","v":""},{"$f":"IFERROR(IF(OR($C$144=FALSE,LEFT($B140,3)<>\"NOX\"),H55*INDEX('Damage costs'!$U$16:$U$43,MATCH($B140,'Damage costs'!$C$16:$C$43,0))/1000,H55*INDEX('Damage costs'!$Y$16:$Y$43,MATCH($B140,'Damage costs'!$C$16:$C$43,0))/1000),\"\")","v":""},{"$f":"IFERROR(IF(OR($C$144=FALSE,LEFT($B140,3)<>\"NOX\"),I55*INDEX('Damage costs'!$U$16:$U$43,MATCH($B140,'Damage costs'!$C$16:$C$43,0))/1000,I55*INDEX('Damage costs'!$Y$16:$Y$43,MATCH($B140,'Damage costs'!$C$16:$C$43,0))/1000),\"\")","v":""},{"$f":"IFERROR(IF(OR($C$144=FALSE,LEFT($B140,3)<>\"NOX\"),J55*INDEX('Damage costs'!$U$16:$U$43,MATCH($B140,'Damage costs'!$C$16:$C$43,0))/1000,J55*INDEX('Damage costs'!$Y$16:$Y$43,MATCH($B140,'Damage costs'!$C$16:$C$43,0))/1000),\"\")","v":""},{"$f":"IFERROR(IF(OR($C$144=FALSE,LEFT($B140,3)<>\"NOX\"),K55*INDEX('Damage costs'!$U$16:$U$43,MATCH($B140,'Damage costs'!$C$16:$C$43,0))/1000,K55*INDEX('Damage costs'!$Y$16:$Y$43,MATCH($B140,'Damage costs'!$C$16:$C$43,0))/1000),\"\")","v":""},{"$f":"IFERROR(IF(OR($C$144=FALSE,LEFT($B140,3)<>\"NOX\"),L55*INDEX('Damage costs'!$U$16:$U$43,MATCH($B140,'Damage costs'!$C$16:$C$43,0))/1000,L55*INDEX('Damage costs'!$Y$16:$Y$43,MATCH($B140,'Damage costs'!$C$16:$C$43,0))/1000),\"\")","v":""},{"$f":"IFERROR(IF(OR($C$144=FALSE,LEFT($B140,3)<>\"NOX\"),M55*INDEX('Damage costs'!$U$16:$U$43,MATCH($B140,'Damage costs'!$C$16:$C$43,0))/1000,M55*INDEX('Damage costs'!$Y$16:$Y$43,MATCH($B140,'Damage costs'!$C$16:$C$43,0))/1000),\"\")","v":""},{"$f":"IFERROR(IF(OR($C$144=FALSE,LEFT($B140,3)<>\"NOX\"),N55*INDEX('Damage costs'!$U$16:$U$43,MATCH($B140,'Damage costs'!$C$16:$C$43,0))/1000,N55*INDEX('Damage costs'!$Y$16:$Y$43,MATCH($B140,'Damage costs'!$C$16:$C$43,0))/1000),\"\")","v":""},{"$f":"IFERROR(IF(OR($C$144=FALSE,LEFT($B140,3)<>\"NOX\"),O55*INDEX('Damage costs'!$U$16:$U$43,MATCH($B140,'Damage costs'!$C$16:$C$43,0))/1000,O55*INDEX('Damage costs'!$Y$16:$Y$43,MATCH($B140,'Damage costs'!$C$16:$C$43,0))/1000),\"\")","v":""},{"$f":"IFERROR(IF(OR($C$144=FALSE,LEFT($B140,3)<>\"NOX\"),P55*INDEX('Damage costs'!$U$16:$U$43,MATCH($B140,'Damage costs'!$C$16:$C$43,0))/1000,P55*INDEX('Damage costs'!$Y$16:$Y$43,MATCH($B140,'Damage costs'!$C$16:$C$43,0))/1000),\"\")","v":""},{"$f":"IFERROR(IF(OR($C$144=FALSE,LEFT($B140,3)<>\"NOX\"),Q55*INDEX('Damage costs'!$U$16:$U$43,MATCH($B140,'Damage costs'!$C$16:$C$43,0))/1000,Q55*INDEX('Damage costs'!$Y$16:$Y$43,MATCH($B140,'Damage costs'!$C$16:$C$43,0))/1000),\"\")","v":""},{"$f":"IFERROR(IF(OR($C$144=FALSE,LEFT($B140,3)<>\"NOX\"),R55*INDEX('Damage costs'!$U$16:$U$43,MATCH($B140,'Damage costs'!$C$16:$C$43,0))/1000,R55*INDEX('Damage costs'!$Y$16:$Y$43,MATCH($B140,'Damage costs'!$C$16:$C$43,0))/1000),\"\")","v":""},{"$f":"IFERROR(IF(OR($C$144=FALSE,LEFT($B140,3)<>\"NOX\"),S55*INDEX('Damage costs'!$U$16:$U$43,MATCH($B140,'Damage costs'!$C$16:$C$43,0))/1000,S55*INDEX('Damage costs'!$Y$16:$Y$43,MATCH($B140,'Damage costs'!$C$16:$C$43,0))/1000),\"\")","v":""},{"$f":"IFERROR(IF(OR($C$144=FALSE,LEFT($B140,3)<>\"NOX\"),T55*INDEX('Damage costs'!$U$16:$U$43,MATCH($B140,'Damage costs'!$C$16:$C$43,0))/1000,T55*INDEX('Damage costs'!$Y$16:$Y$43,MATCH($B140,'Damage costs'!$C$16:$C$43,0))/1000),\"\")","v":""},{"$f":"IFERROR(IF(OR($C$144=FALSE,LEFT($B140,3)<>\"NOX\"),U55*INDEX('Damage costs'!$U$16:$U$43,MATCH($B140,'Damage costs'!$C$16:$C$43,0))/1000,U55*INDEX('Damage costs'!$Y$16:$Y$43,MATCH($B140,'Damage costs'!$C$16:$C$43,0))/1000),\"\")","v":""},{"$f":"IFERROR(IF(OR($C$144=FALSE,LEFT($B140,3)<>\"NOX\"),V55*INDEX('Damage costs'!$U$16:$U$43,MATCH($B140,'Damage costs'!$C$16:$C$43,0))/1000,V55*INDEX('Damage costs'!$Y$16:$Y$43,MATCH($B140,'Damage costs'!$C$16:$C$43,0))/1000),\"\")","v":""},{"$f":"IFERROR(IF(OR($C$144=FALSE,LEFT($B140,3)<>\"NOX\"),W55*INDEX('Damage costs'!$U$16:$U$43,MATCH($B140,'Damage costs'!$C$16:$C$43,0))/1000,W55*INDEX('Damage costs'!$Y$16:$Y$43,MATCH($B140,'Damage costs'!$C$16:$C$43,0))/1000),\"\")","v":""},{"$f":"IFERROR(IF(OR($C$144=FALSE,LEFT($B140,3)<>\"NOX\"),X55*INDEX('Damage costs'!$U$16:$U$43,MATCH($B140,'Damage costs'!$C$16:$C$43,0))/1000,X55*INDEX('Damage costs'!$Y$16:$Y$43,MATCH($B140,'Damage costs'!$C$16:$C$43,0))/1000),\"\")","v":""},{"$f":"IFERROR(IF(OR($C$144=FALSE,LEFT($B140,3)<>\"NOX\"),Y55*INDEX('Damage costs'!$U$16:$U$43,MATCH($B140,'Damage costs'!$C$16:$C$43,0))/1000,Y55*INDEX('Damage costs'!$Y$16:$Y$43,MATCH($B140,'Damage costs'!$C$16:$C$43,0))/1000),\"\")","v":""},{"$f":"IFERROR(IF(OR($C$144=FALSE,LEFT($B140,3)<>\"NOX\"),Z55*INDEX('Damage costs'!$U$16:$U$43,MATCH($B140,'Damage costs'!$C$16:$C$43,0))/1000,Z55*INDEX('Damage costs'!$Y$16:$Y$43,MATCH($B140,'Damage costs'!$C$16:$C$43,0))/1000),\"\")","v":""},{"$f":"IFERROR(IF(OR($C$144=FALSE,LEFT($B140,3)<>\"NOX\"),AA55*INDEX('Damage costs'!$U$16:$U$43,MATCH($B140,'Damage costs'!$C$16:$C$43,0))/1000,AA55*INDEX('Damage costs'!$Y$16:$Y$43,MATCH($B140,'Damage costs'!$C$16:$C$43,0))/1000),\"\")","v":""},{"$f":"IFERROR(IF(OR($C$144=FALSE,LEFT($B140,3)<>\"NOX\"),AB55*INDEX('Damage costs'!$U$16:$U$43,MATCH($B140,'Damage costs'!$C$16:$C$43,0))/1000,AB55*INDEX('Damage costs'!$Y$16:$Y$43,MATCH($B140,'Damage costs'!$C$16:$C$43,0))/1000),\"\")","v":""},{"$f":"IFERROR(IF(OR($C$144=FALSE,LEFT($B140,3)<>\"NOX\"),AC55*INDEX('Damage costs'!$U$16:$U$43,MATCH($B140,'Damage costs'!$C$16:$C$43,0))/1000,AC55*INDEX('Damage costs'!$Y$16:$Y$43,MATCH($B140,'Damage costs'!$C$16:$C$43,0))/1000),\"\")","v":""},{"$f":"IFERROR(IF(OR($C$144=FALSE,LEFT($B140,3)<>\"NOX\"),AD55*INDEX('Damage costs'!$U$16:$U$43,MATCH($B140,'Damage costs'!$C$16:$C$43,0))/1000,AD55*INDEX('Damage costs'!$Y$16:$Y$43,MATCH($B140,'Damage costs'!$C$16:$C$43,0))/1000),\"\")","v":""},{"$f":"IFERROR(IF(OR($C$144=FALSE,LEFT($B140,3)<>\"NOX\"),AE55*INDEX('Damage costs'!$U$16:$U$43,MATCH($B140,'Damage costs'!$C$16:$C$43,0))/1000,AE55*INDEX('Damage costs'!$Y$16:$Y$43,MATCH($B140,'Damage costs'!$C$16:$C$43,0))/1000),\"\")","v":""},{"$f":"IFERROR(IF(OR($C$144=FALSE,LEFT($B140,3)<>\"NOX\"),AF55*INDEX('Damage costs'!$U$16:$U$43,MATCH($B140,'Damage costs'!$C$16:$C$43,0))/1000,AF55*INDEX('Damage costs'!$Y$16:$Y$43,MATCH($B140,'Damage costs'!$C$16:$C$43,0))/1000),\"\")","v":""},{"$f":"IFERROR(IF(OR($C$144=FALSE,LEFT($B140,3)<>\"NOX\"),AG55*INDEX('Damage costs'!$U$16:$U$43,MATCH($B140,'Damage costs'!$C$16:$C$43,0))/1000,AG55*INDEX('Damage costs'!$Y$16:$Y$43,MATCH($B140,'Damage costs'!$C$16:$C$43,0))/1000),\"\")","v":""},{"$f":"IFERROR(IF(OR($C$144=FALSE,LEFT($B140,3)<>\"NOX\"),AH55*INDEX('Damage costs'!$U$16:$U$43,MATCH($B140,'Damage costs'!$C$16:$C$43,0))/1000,AH55*INDEX('Damage costs'!$Y$16:$Y$43,MATCH($B140,'Damage costs'!$C$16:$C$43,0))/1000),\"\")","v":""},{"$f":"IFERROR(IF(OR($C$144=FALSE,LEFT($B140,3)<>\"NOX\"),AI55*INDEX('Damage costs'!$U$16:$U$43,MATCH($B140,'Damage costs'!$C$16:$C$43,0))/1000,AI55*INDEX('Damage costs'!$Y$16:$Y$43,MATCH($B140,'Damage costs'!$C$16:$C$43,0))/1000),\"\")","v":""},{"$f":"IFERROR(IF(OR($C$144=FALSE,LEFT($B140,3)<>\"NOX\"),AJ55*INDEX('Damage costs'!$U$16:$U$43,MATCH($B140,'Damage costs'!$C$16:$C$43,0))/1000,AJ55*INDEX('Damage costs'!$Y$16:$Y$43,MATCH($B140,'Damage costs'!$C$16:$C$43,0))/1000),\"\")","v":""},{"$f":"IFERROR(IF(OR($C$144=FALSE,LEFT($B140,3)<>\"NOX\"),AK55*INDEX('Damage costs'!$U$16:$U$43,MATCH($B140,'Damage costs'!$C$16:$C$43,0))/1000,AK55*INDEX('Damage costs'!$Y$16:$Y$43,MATCH($B140,'Damage costs'!$C$16:$C$43,0))/1000),\"\")","v":""},{"$f":"IFERROR(IF(OR($C$144=FALSE,LEFT($B140,3)<>\"NOX\"),AL55*INDEX('Damage costs'!$U$16:$U$43,MATCH($B140,'Damage costs'!$C$16:$C$43,0))/1000,AL55*INDEX('Damage costs'!$Y$16:$Y$43,MATCH($B140,'Damage costs'!$C$16:$C$43,0))/1000),\"\")","v":""},{"$f":"IFERROR(IF(OR($C$144=FALSE,LEFT($B140,3)<>\"NOX\"),AM55*INDEX('Damage costs'!$U$16:$U$43,MATCH($B140,'Damage costs'!$C$16:$C$43,0))/1000,AM55*INDEX('Damage costs'!$Y$16:$Y$43,MATCH($B140,'Damage costs'!$C$16:$C$43,0))/1000),\"\")","v":""},{"$f":"IFERROR(IF(OR($C$144=FALSE,LEFT($B140,3)<>\"NOX\"),AN55*INDEX('Damage costs'!$U$16:$U$43,MATCH($B140,'Damage costs'!$C$16:$C$43,0))/1000,AN55*INDEX('Damage costs'!$Y$16:$Y$43,MATCH($B140,'Damage costs'!$C$16:$C$43,0))/1000),\"\")","v":""},{"$f":"IFERROR(IF(OR($C$144=FALSE,LEFT($B140,3)<>\"NOX\"),AO55*INDEX('Damage costs'!$U$16:$U$43,MATCH($B140,'Damage costs'!$C$16:$C$43,0))/1000,AO55*INDEX('Damage costs'!$Y$16:$Y$43,MATCH($B140,'Damage costs'!$C$16:$C$43,0))/1000),\"\")","v":""},{"$f":"IFERROR(IF(OR($C$144=FALSE,LEFT($B140,3)<>\"NOX\"),AP55*INDEX('Damage costs'!$U$16:$U$43,MATCH($B140,'Damage costs'!$C$16:$C$43,0))/1000,AP55*INDEX('Damage costs'!$Y$16:$Y$43,MATCH($B140,'Damage costs'!$C$16:$C$43,0))/1000),\"\")","v":""},{"$f":"IFERROR(IF(OR($C$144=FALSE,LEFT($B140,3)<>\"NOX\"),AQ55*INDEX('Damage costs'!$U$16:$U$43,MATCH($B140,'Damage costs'!$C$16:$C$43,0))/1000,AQ55*INDEX('Damage costs'!$Y$16:$Y$43,MATCH($B140,'Damage costs'!$C$16:$C$43,0))/1000),\"\")","v":""},{"$f":"IFERROR(IF(OR($C$144=FALSE,LEFT($B140,3)<>\"NOX\"),AR55*INDEX('Damage costs'!$U$16:$U$43,MATCH($B140,'Damage costs'!$C$16:$C$43,0))/1000,AR55*INDEX('Damage costs'!$Y$16:$Y$43,MATCH($B140,'Damage costs'!$C$16:$C$43,0))/1000),\"\")","v":""},{"$f":"IFERROR(IF(OR($C$144=FALSE,LEFT($B140,3)<>\"NOX\"),AS55*INDEX('Damage costs'!$U$16:$U$43,MATCH($B140,'Damage costs'!$C$16:$C$43,0))/1000,AS55*INDEX('Damage costs'!$Y$16:$Y$43,MATCH($B140,'Damage costs'!$C$16:$C$43,0))/1000),\"\")","v":""},{"$f":"IFERROR(IF(OR($C$144=FALSE,LEFT($B140,3)<>\"NOX\"),AT55*INDEX('Damage costs'!$U$16:$U$43,MATCH($B140,'Damage costs'!$C$16:$C$43,0))/1000,AT55*INDEX('Damage costs'!$Y$16:$Y$43,MATCH($B140,'Damage costs'!$C$16:$C$43,0))/1000),\"\")","v":""},{"$f":"IFERROR(IF(OR($C$144=FALSE,LEFT($B140,3)<>\"NOX\"),AU55*INDEX('Damage costs'!$U$16:$U$43,MATCH($B140,'Damage costs'!$C$16:$C$43,0))/1000,AU55*INDEX('Damage costs'!$Y$16:$Y$43,MATCH($B140,'Damage costs'!$C$16:$C$43,0))/1000),\"\")","v":""},{"$f":"IFERROR(IF(OR($C$144=FALSE,LEFT($B140,3)<>\"NOX\"),AV55*INDEX('Damage costs'!$U$16:$U$43,MATCH($B140,'Damage costs'!$C$16:$C$43,0))/1000,AV55*INDEX('Damage costs'!$Y$16:$Y$43,MATCH($B140,'Damage costs'!$C$16:$C$43,0))/1000),\"\")","v":""},{"$f":"IFERROR(IF(OR($C$144=FALSE,LEFT($B140,3)<>\"NOX\"),AW55*INDEX('Damage costs'!$U$16:$U$43,MATCH($B140,'Damage costs'!$C$16:$C$43,0))/1000,AW55*INDEX('Damage costs'!$Y$16:$Y$43,MATCH($B140,'Damage costs'!$C$16:$C$43,0))/1000),\"\")","v":""},{"$f":"IFERROR(IF(OR($C$144=FALSE,LEFT($B140,3)<>\"NOX\"),AX55*INDEX('Damage costs'!$U$16:$U$43,MATCH($B140,'Damage costs'!$C$16:$C$43,0))/1000,AX55*INDEX('Damage costs'!$Y$16:$Y$43,MATCH($B140,'Damage costs'!$C$16:$C$43,0))/1000),\"\")","v":""},{"$f":"IFERROR(IF(OR($C$144=FALSE,LEFT($B140,3)<>\"NOX\"),AY55*INDEX('Damage costs'!$U$16:$U$43,MATCH($B140,'Damage costs'!$C$16:$C$43,0))/1000,AY55*INDEX('Damage costs'!$Y$16:$Y$43,MATCH($B140,'Damage costs'!$C$16:$C$43,0))/1000),\"\")","v":""},{"$f":"IFERROR(IF(OR($C$144=FALSE,LEFT($B140,3)<>\"NOX\"),AZ55*INDEX('Damage costs'!$U$16:$U$43,MATCH($B140,'Damage costs'!$C$16:$C$43,0))/1000,AZ55*INDEX('Damage costs'!$Y$16:$Y$43,MATCH($B140,'Damage costs'!$C$16:$C$43,0))/1000),\"\")","v":""},{"$f":"IFERROR(IF(OR($C$144=FALSE,LEFT($B140,3)<>\"NOX\"),BA55*INDEX('Damage costs'!$U$16:$U$43,MATCH($B140,'Damage costs'!$C$16:$C$43,0))/1000,BA55*INDEX('Damage costs'!$Y$16:$Y$43,MATCH($B140,'Damage costs'!$C$16:$C$43,0))/1000),\"\")","v":""},{"$f":"IFERROR(IF(OR($C$144=FALSE,LEFT($B140,3)<>\"NOX\"),BB55*INDEX('Damage costs'!$U$16:$U$43,MATCH($B140,'Damage costs'!$C$16:$C$43,0))/1000,BB55*INDEX('Damage costs'!$Y$16:$Y$43,MATCH($B140,'Damage costs'!$C$16:$C$43,0))/1000),\"\")","v":""},{"$f":"IFERROR(IF(OR($C$144=FALSE,LEFT($B140,3)<>\"NOX\"),BC55*INDEX('Damage costs'!$U$16:$U$43,MATCH($B140,'Damage costs'!$C$16:$C$43,0))/1000,BC55*INDEX('Damage costs'!$Y$16:$Y$43,MATCH($B140,'Damage costs'!$C$16:$C$43,0))/1000),\"\")","v":""},{"$f":"IFERROR(IF(OR($C$144=FALSE,LEFT($B140,3)<>\"NOX\"),BD55*INDEX('Damage costs'!$U$16:$U$43,MATCH($B140,'Damage costs'!$C$16:$C$43,0))/1000,BD55*INDEX('Damage costs'!$Y$16:$Y$43,MATCH($B140,'Damage costs'!$C$16:$C$43,0))/1000),\"\")","v":""},{"$f":"IFERROR(IF(OR($C$144=FALSE,LEFT($B140,3)<>\"NOX\"),BE55*INDEX('Damage costs'!$U$16:$U$43,MATCH($B140,'Damage costs'!$C$16:$C$43,0))/1000,BE55*INDEX('Damage costs'!$Y$16:$Y$43,MATCH($B140,'Damage costs'!$C$16:$C$43,0))/1000),\"\")","v":""},{"$f":"IFERROR(IF(OR($C$144=FALSE,LEFT($B140,3)<>\"NOX\"),BF55*INDEX('Damage costs'!$U$16:$U$43,MATCH($B140,'Damage costs'!$C$16:$C$43,0))/1000,BF55*INDEX('Damage costs'!$Y$16:$Y$43,MATCH($B140,'Damage costs'!$C$16:$C$43,0))/1000),\"\")","v":""},{"$f":"IFERROR(IF(OR($C$144=FALSE,LEFT($B140,3)<>\"NOX\"),BG55*INDEX('Damage costs'!$U$16:$U$43,MATCH($B140,'Damage costs'!$C$16:$C$43,0))/1000,BG55*INDEX('Damage costs'!$Y$16:$Y$43,MATCH($B140,'Damage costs'!$C$16:$C$43,0))/1000),\"\")","v":""},{"$f":"IFERROR(IF(OR($C$144=FALSE,LEFT($B140,3)<>\"NOX\"),BH55*INDEX('Damage costs'!$U$16:$U$43,MATCH($B140,'Damage costs'!$C$16:$C$43,0))/1000,BH55*INDEX('Damage costs'!$Y$16:$Y$43,MATCH($B140,'Damage costs'!$C$16:$C$43,0))/1000),\"\")","v":""},{"$f":"IFERROR(IF(OR($C$144=FALSE,LEFT($B140,3)<>\"NOX\"),BI55*INDEX('Damage costs'!$U$16:$U$43,MATCH($B140,'Damage costs'!$C$16:$C$43,0))/1000,BI55*INDEX('Damage costs'!$Y$16:$Y$43,MATCH($B140,'Damage costs'!$C$16:$C$43,0))/1000),\"\")","v":""},{"$f":"IFERROR(IF(OR($C$144=FALSE,LEFT($B140,3)<>\"NOX\"),BJ55*INDEX('Damage costs'!$U$16:$U$43,MATCH($B140,'Damage costs'!$C$16:$C$43,0))/1000,BJ55*INDEX('Damage costs'!$Y$16:$Y$43,MATCH($B140,'Damage costs'!$C$16:$C$43,0))/1000),\"\")","v":""},{"$f":"IFERROR(IF(OR($C$144=FALSE,LEFT($B140,3)<>\"NOX\"),BK55*INDEX('Damage costs'!$U$16:$U$43,MATCH($B140,'Damage costs'!$C$16:$C$43,0))/1000,BK55*INDEX('Damage costs'!$Y$16:$Y$43,MATCH($B140,'Damage costs'!$C$16:$C$43,0))/1000),\"\")","v":""},{"$f":"IFERROR(IF(OR($C$144=FALSE,LEFT($B140,3)<>\"NOX\"),BL55*INDEX('Damage costs'!$U$16:$U$43,MATCH($B140,'Damage costs'!$C$16:$C$43,0))/1000,BL55*INDEX('Damage costs'!$Y$16:$Y$43,MATCH($B140,'Damage costs'!$C$16:$C$43,0))/1000),\"\")","v":""},{"$f":"IFERROR(IF(OR($C$144=FALSE,LEFT($B140,3)<>\"NOX\"),BM55*INDEX('Damage costs'!$U$16:$U$43,MATCH($B140,'Damage costs'!$C$16:$C$43,0))/1000,BM55*INDEX('Damage costs'!$Y$16:$Y$43,MATCH($B140,'Damage costs'!$C$16:$C$43,0))/1000),\"\")","v":""},{"$f":"IFERROR(IF(OR($C$144=FALSE,LEFT($B140,3)<>\"NOX\"),BN55*INDEX('Damage costs'!$U$16:$U$43,MATCH($B140,'Damage costs'!$C$16:$C$43,0))/1000,BN55*INDEX('Damage costs'!$Y$16:$Y$43,MATCH($B140,'Damage costs'!$C$16:$C$43,0))/1000),\"\")","v":""},{"$f":"IFERROR(IF(OR($C$144=FALSE,LEFT($B140,3)<>\"NOX\"),BO55*INDEX('Damage costs'!$U$16:$U$43,MATCH($B140,'Damage costs'!$C$16:$C$43,0))/1000,BO55*INDEX('Damage costs'!$Y$16:$Y$43,MATCH($B140,'Damage costs'!$C$16:$C$43,0))/1000),\"\")","v":""},{"$f":"IFERROR(IF(OR($C$144=FALSE,LEFT($B140,3)<>\"NOX\"),BP55*INDEX('Damage costs'!$U$16:$U$43,MATCH($B140,'Damage costs'!$C$16:$C$43,0))/1000,BP55*INDEX('Damage costs'!$Y$16:$Y$43,MATCH($B140,'Damage costs'!$C$16:$C$43,0))/1000),\"\")","v":""},{"$f":"IFERROR(IF(OR($C$144=FALSE,LEFT($B140,3)<>\"NOX\"),BQ55*INDEX('Damage costs'!$U$16:$U$43,MATCH($B140,'Damage costs'!$C$16:$C$43,0))/1000,BQ55*INDEX('Damage costs'!$Y$16:$Y$43,MATCH($B140,'Damage costs'!$C$16:$C$43,0))/1000),\"\")","v":""},{"$f":"IFERROR(IF(OR($C$144=FALSE,LEFT($B140,3)<>\"NOX\"),BR55*INDEX('Damage costs'!$U$16:$U$43,MATCH($B140,'Damage costs'!$C$16:$C$43,0))/1000,BR55*INDEX('Damage costs'!$Y$16:$Y$43,MATCH($B140,'Damage costs'!$C$16:$C$43,0))/1000),\"\")","v":""},{"$f":"IFERROR(IF(OR($C$144=FALSE,LEFT($B140,3)<>\"NOX\"),BS55*INDEX('Damage costs'!$U$16:$U$43,MATCH($B140,'Damage costs'!$C$16:$C$43,0))/1000,BS55*INDEX('Damage costs'!$Y$16:$Y$43,MATCH($B140,'Damage costs'!$C$16:$C$43,0))/1000),\"\")","v":""},{"$f":"IFERROR(IF(OR($C$144=FALSE,LEFT($B140,3)<>\"NOX\"),BT55*INDEX('Damage costs'!$U$16:$U$43,MATCH($B140,'Damage costs'!$C$16:$C$43,0))/1000,BT55*INDEX('Damage costs'!$Y$16:$Y$43,MATCH($B140,'Damage costs'!$C$16:$C$43,0))/1000),\"\")","v":""},{"$f":"IFERROR(IF(OR($C$144=FALSE,LEFT($B140,3)<>\"NOX\"),BU55*INDEX('Damage costs'!$U$16:$U$43,MATCH($B140,'Damage costs'!$C$16:$C$43,0))/1000,BU55*INDEX('Damage costs'!$Y$16:$Y$43,MATCH($B140,'Damage costs'!$C$16:$C$43,0))/1000),\"\")","v":""},{"$f":"IFERROR(IF(OR($C$144=FALSE,LEFT($B140,3)<>\"NOX\"),BV55*INDEX('Damage costs'!$U$16:$U$43,MATCH($B140,'Damage costs'!$C$16:$C$43,0))/1000,BV55*INDEX('Damage costs'!$Y$16:$Y$43,MATCH($B140,'Damage costs'!$C$16:$C$43,0))/1000),\"\")","v":""},{"$f":"IFERROR(IF(OR($C$144=FALSE,LEFT($B140,3)<>\"NOX\"),BW55*INDEX('Damage costs'!$U$16:$U$43,MATCH($B140,'Damage costs'!$C$16:$C$43,0))/1000,BW55*INDEX('Damage costs'!$Y$16:$Y$43,MATCH($B140,'Damage costs'!$C$16:$C$43,0))/1000),\"\")","v":""},{"$f":"IFERROR(IF(OR($C$144=FALSE,LEFT($B140,3)<>\"NOX\"),BX55*INDEX('Damage costs'!$U$16:$U$43,MATCH($B140,'Damage costs'!$C$16:$C$43,0))/1000,BX55*INDEX('Damage costs'!$Y$16:$Y$43,MATCH($B140,'Damage costs'!$C$16:$C$43,0))/1000),\"\")","v":""},{"$f":"IFERROR(IF(OR($C$144=FALSE,LEFT($B140,3)<>\"NOX\"),BY55*INDEX('Damage costs'!$U$16:$U$43,MATCH($B140,'Damage costs'!$C$16:$C$43,0))/1000,BY55*INDEX('Damage costs'!$Y$16:$Y$43,MATCH($B140,'Damage costs'!$C$16:$C$43,0))/1000),\"\")","v":""},{"$f":"IFERROR(IF(OR($C$144=FALSE,LEFT($B140,3)<>\"NOX\"),BZ55*INDEX('Damage costs'!$U$16:$U$43,MATCH($B140,'Damage costs'!$C$16:$C$43,0))/1000,BZ55*INDEX('Damage costs'!$Y$16:$Y$43,MATCH($B140,'Damage costs'!$C$16:$C$43,0))/1000),\"\")","v":""},{"$f":"IFERROR(IF(OR($C$144=FALSE,LEFT($B140,3)<>\"NOX\"),CA55*INDEX('Damage costs'!$U$16:$U$43,MATCH($B140,'Damage costs'!$C$16:$C$43,0))/1000,CA55*INDEX('Damage costs'!$Y$16:$Y$43,MATCH($B140,'Damage costs'!$C$16:$C$43,0))/1000),\"\")","v":""},{"$f":"IFERROR(IF(OR($C$144=FALSE,LEFT($B140,3)<>\"NOX\"),CB55*INDEX('Damage costs'!$U$16:$U$43,MATCH($B140,'Damage costs'!$C$16:$C$43,0))/1000,CB55*INDEX('Damage costs'!$Y$16:$Y$43,MATCH($B140,'Damage costs'!$C$16:$C$43,0))/1000),\"\")","v":""},{"$f":"IFERROR(IF(OR($C$144=FALSE,LEFT($B140,3)<>\"NOX\"),CC55*INDEX('Damage costs'!$U$16:$U$43,MATCH($B140,'Damage costs'!$C$16:$C$43,0))/1000,CC55*INDEX('Damage costs'!$Y$16:$Y$43,MATCH($B140,'Damage costs'!$C$16:$C$43,0))/1000),\"\")","v":""},{"$f":"IFERROR(IF(OR($C$144=FALSE,LEFT($B140,3)<>\"NOX\"),CD55*INDEX('Damage costs'!$U$16:$U$43,MATCH($B140,'Damage costs'!$C$16:$C$43,0))/1000,CD55*INDEX('Damage costs'!$Y$16:$Y$43,MATCH($B140,'Damage costs'!$C$16:$C$43,0))/1000),\"\")","v":""},{"$f":"IFERROR(IF(OR($C$144=FALSE,LEFT($B140,3)<>\"NOX\"),CE55*INDEX('Damage costs'!$U$16:$U$43,MATCH($B140,'Damage costs'!$C$16:$C$43,0))/1000,CE55*INDEX('Damage costs'!$Y$16:$Y$43,MATCH($B140,'Damage costs'!$C$16:$C$43,0))/1000),\"\")","v":""},{"$f":"IFERROR(IF(OR($C$144=FALSE,LEFT($B140,3)<>\"NOX\"),CF55*INDEX('Damage costs'!$U$16:$U$43,MATCH($B140,'Damage costs'!$C$16:$C$43,0))/1000,CF55*INDEX('Damage costs'!$Y$16:$Y$43,MATCH($B140,'Damage costs'!$C$16:$C$43,0))/1000),\"\")","v":""},{"$f":"IFERROR(IF(OR($C$144=FALSE,LEFT($B140,3)<>\"NOX\"),CG55*INDEX('Damage costs'!$U$16:$U$43,MATCH($B140,'Damage costs'!$C$16:$C$43,0))/1000,CG55*INDEX('Damage costs'!$Y$16:$Y$43,MATCH($B140,'Damage costs'!$C$16:$C$43,0))/1000),\"\")","v":""},{"$f":"IFERROR(IF(OR($C$144=FALSE,LEFT($B140,3)<>\"NOX\"),CH55*INDEX('Damage costs'!$U$16:$U$43,MATCH($B140,'Damage costs'!$C$16:$C$43,0))/1000,CH55*INDEX('Damage costs'!$Y$16:$Y$43,MATCH($B140,'Damage costs'!$C$16:$C$43,0))/1000),\"\")","v":""},{"$f":"IFERROR(IF(OR($C$144=FALSE,LEFT($B140,3)<>\"NOX\"),CI55*INDEX('Damage costs'!$U$16:$U$43,MATCH($B140,'Damage costs'!$C$16:$C$43,0))/1000,CI55*INDEX('Damage costs'!$Y$16:$Y$43,MATCH($B140,'Damage costs'!$C$16:$C$43,0))/1000),\"\")","v":""},{"$f":"IFERROR(IF(OR($C$144=FALSE,LEFT($B140,3)<>\"NOX\"),CJ55*INDEX('Damage costs'!$U$16:$U$43,MATCH($B140,'Damage costs'!$C$16:$C$43,0))/1000,CJ55*INDEX('Damage costs'!$Y$16:$Y$43,MATCH($B140,'Damage costs'!$C$16:$C$43,0))/1000),\"\")","v":""},{"$f":"IFERROR(IF(OR($C$144=FALSE,LEFT($B140,3)<>\"NOX\"),CK55*INDEX('Damage costs'!$U$16:$U$43,MATCH($B140,'Damage costs'!$C$16:$C$43,0))/1000,CK55*INDEX('Damage costs'!$Y$16:$Y$43,MATCH($B140,'Damage costs'!$C$16:$C$43,0))/1000),\"\")","v":""},{"$f":"IFERROR(IF(OR($C$144=FALSE,LEFT($B140,3)<>\"NOX\"),CL55*INDEX('Damage costs'!$U$16:$U$43,MATCH($B140,'Damage costs'!$C$16:$C$43,0))/1000,CL55*INDEX('Damage costs'!$Y$16:$Y$43,MATCH($B140,'Damage costs'!$C$16:$C$43,0))/1000),\"\")","v":""},{"$f":"IFERROR(IF(OR($C$144=FALSE,LEFT($B140,3)<>\"NOX\"),CM55*INDEX('Damage costs'!$U$16:$U$43,MATCH($B140,'Damage costs'!$C$16:$C$43,0))/1000,CM55*INDEX('Damage costs'!$Y$16:$Y$43,MATCH($B140,'Damage costs'!$C$16:$C$43,0))/1000),\"\")","v":""},{"$f":"IFERROR(IF(OR($C$144=FALSE,LEFT($B140,3)<>\"NOX\"),CN55*INDEX('Damage costs'!$U$16:$U$43,MATCH($B140,'Damage costs'!$C$16:$C$43,0))/1000,CN55*INDEX('Damage costs'!$Y$16:$Y$43,MATCH($B140,'Damage costs'!$C$16:$C$43,0))/1000),\"\")","v":""},{"$f":"IFERROR(IF(OR($C$144=FALSE,LEFT($B140,3)<>\"NOX\"),CO55*INDEX('Damage costs'!$U$16:$U$43,MATCH($B140,'Damage costs'!$C$16:$C$43,0))/1000,CO55*INDEX('Damage costs'!$Y$16:$Y$43,MATCH($B140,'Damage costs'!$C$16:$C$43,0))/1000),\"\")","v":""},{"$f":"IFERROR(IF(OR($C$144=FALSE,LEFT($B140,3)<>\"NOX\"),CP55*INDEX('Damage costs'!$U$16:$U$43,MATCH($B140,'Damage costs'!$C$16:$C$43,0))/1000,CP55*INDEX('Damage costs'!$Y$16:$Y$43,MATCH($B140,'Damage costs'!$C$16:$C$43,0))/1000),\"\")","v":""},{"$f":"IFERROR(IF(OR($C$144=FALSE,LEFT($B140,3)<>\"NOX\"),CQ55*INDEX('Damage costs'!$U$16:$U$43,MATCH($B140,'Damage costs'!$C$16:$C$43,0))/1000,CQ55*INDEX('Damage costs'!$Y$16:$Y$43,MATCH($B140,'Damage costs'!$C$16:$C$43,0))/1000),\"\")","v":""},{"$f":"IFERROR(IF(OR($C$144=FALSE,LEFT($B140,3)<>\"NOX\"),CR55*INDEX('Damage costs'!$U$16:$U$43,MATCH($B140,'Damage costs'!$C$16:$C$43,0))/1000,CR55*INDEX('Damage costs'!$Y$16:$Y$43,MATCH($B140,'Damage costs'!$C$16:$C$43,0))/1000),\"\")","v":""},{"$f":"IFERROR(IF(OR($C$144=FALSE,LEFT($B140,3)<>\"NOX\"),CS55*INDEX('Damage costs'!$U$16:$U$43,MATCH($B140,'Damage costs'!$C$16:$C$43,0))/1000,CS55*INDEX('Damage costs'!$Y$16:$Y$43,MATCH($B140,'Damage costs'!$C$16:$C$43,0))/1000),\"\")","v":""},{"$f":"IFERROR(IF(OR($C$144=FALSE,LEFT($B140,3)<>\"NOX\"),CT55*INDEX('Damage costs'!$U$16:$U$43,MATCH($B140,'Damage costs'!$C$16:$C$43,0))/1000,CT55*INDEX('Damage costs'!$Y$16:$Y$43,MATCH($B140,'Damage costs'!$C$16:$C$43,0))/1000),\"\")","v":""},{"$f":"IFERROR(IF(OR($C$144=FALSE,LEFT($B140,3)<>\"NOX\"),CU55*INDEX('Damage costs'!$U$16:$U$43,MATCH($B140,'Damage costs'!$C$16:$C$43,0))/1000,CU55*INDEX('Damage costs'!$Y$16:$Y$43,MATCH($B140,'Damage costs'!$C$16:$C$43,0))/1000),\"\")","v":""},{"$f":"IFERROR(IF(OR($C$144=FALSE,LEFT($B140,3)<>\"NOX\"),CV55*INDEX('Damage costs'!$U$16:$U$43,MATCH($B140,'Damage costs'!$C$16:$C$43,0))/1000,CV55*INDEX('Damage costs'!$Y$16:$Y$43,MATCH($B140,'Damage costs'!$C$16:$C$43,0))/1000),\"\")","v":""},{"$f":"IFERROR(IF(OR($C$144=FALSE,LEFT($B140,3)<>\"NOX\"),CW55*INDEX('Damage costs'!$U$16:$U$43,MATCH($B140,'Damage costs'!$C$16:$C$43,0))/1000,CW55*INDEX('Damage costs'!$Y$16:$Y$43,MATCH($B140,'Damage costs'!$C$16:$C$43,0))/1000),\"\")","v":""},{"$f":"IFERROR(IF(OR($C$144=FALSE,LEFT($B140,3)<>\"NOX\"),CX55*INDEX('Damage costs'!$U$16:$U$43,MATCH($B140,'Damage costs'!$C$16:$C$43,0))/1000,CX55*INDEX('Damage costs'!$Y$16:$Y$43,MATCH($B140,'Damage costs'!$C$16:$C$43,0))/1000),\"\")","v":""},{"$f":"IFERROR(IF(OR($C$144=FALSE,LEFT($B140,3)<>\"NOX\"),CY55*INDEX('Damage costs'!$U$16:$U$43,MATCH($B140,'Damage costs'!$C$16:$C$43,0))/1000,CY55*INDEX('Damage costs'!$Y$16:$Y$43,MATCH($B140,'Damage costs'!$C$16:$C$43,0))/1000),\"\")","v":""}]
[null,0,"£000's",{"$f":"IFERROR(IF(OR($C$144=FALSE,LEFT($B141,3)<>\"NOX\"),D56*INDEX('Damage costs'!$U$16:$U$43,MATCH($B141,'Damage costs'!$C$16:$C$43,0))/1000,D56*INDEX('Damage costs'!$Y$16:$Y$43,MATCH($B141,'Damage costs'!$C$16:$C$43,0))/1000),\"\")","v":""},{"$f":"IFERROR(IF(OR($C$144=FALSE,LEFT($B141,3)<>\"NOX\"),E56*INDEX('Damage costs'!$U$16:$U$43,MATCH($B141,'Damage costs'!$C$16:$C$43,0))/1000,E56*INDEX('Damage costs'!$Y$16:$Y$43,MATCH($B141,'Damage costs'!$C$16:$C$43,0))/1000),\"\")","v":""},{"$f":"IFERROR(IF(OR($C$144=FALSE,LEFT($B141,3)<>\"NOX\"),F56*INDEX('Damage costs'!$U$16:$U$43,MATCH($B141,'Damage costs'!$C$16:$C$43,0))/1000,F56*INDEX('Damage costs'!$Y$16:$Y$43,MATCH($B141,'Damage costs'!$C$16:$C$43,0))/1000),\"\")","v":""},{"$f":"IFERROR(IF(OR($C$144=FALSE,LEFT($B141,3)<>\"NOX\"),G56*INDEX('Damage costs'!$U$16:$U$43,MATCH($B141,'Damage costs'!$C$16:$C$43,0))/1000,G56*INDEX('Damage costs'!$Y$16:$Y$43,MATCH($B141,'Damage costs'!$C$16:$C$43,0))/1000),\"\")","v":""},{"$f":"IFERROR(IF(OR($C$144=FALSE,LEFT($B141,3)<>\"NOX\"),H56*INDEX('Damage costs'!$U$16:$U$43,MATCH($B141,'Damage costs'!$C$16:$C$43,0))/1000,H56*INDEX('Damage costs'!$Y$16:$Y$43,MATCH($B141,'Damage costs'!$C$16:$C$43,0))/1000),\"\")","v":""},{"$f":"IFERROR(IF(OR($C$144=FALSE,LEFT($B141,3)<>\"NOX\"),I56*INDEX('Damage costs'!$U$16:$U$43,MATCH($B141,'Damage costs'!$C$16:$C$43,0))/1000,I56*INDEX('Damage costs'!$Y$16:$Y$43,MATCH($B141,'Damage costs'!$C$16:$C$43,0))/1000),\"\")","v":""},{"$f":"IFERROR(IF(OR($C$144=FALSE,LEFT($B141,3)<>\"NOX\"),J56*INDEX('Damage costs'!$U$16:$U$43,MATCH($B141,'Damage costs'!$C$16:$C$43,0))/1000,J56*INDEX('Damage costs'!$Y$16:$Y$43,MATCH($B141,'Damage costs'!$C$16:$C$43,0))/1000),\"\")","v":""},{"$f":"IFERROR(IF(OR($C$144=FALSE,LEFT($B141,3)<>\"NOX\"),K56*INDEX('Damage costs'!$U$16:$U$43,MATCH($B141,'Damage costs'!$C$16:$C$43,0))/1000,K56*INDEX('Damage costs'!$Y$16:$Y$43,MATCH($B141,'Damage costs'!$C$16:$C$43,0))/1000),\"\")","v":""},{"$f":"IFERROR(IF(OR($C$144=FALSE,LEFT($B141,3)<>\"NOX\"),L56*INDEX('Damage costs'!$U$16:$U$43,MATCH($B141,'Damage costs'!$C$16:$C$43,0))/1000,L56*INDEX('Damage costs'!$Y$16:$Y$43,MATCH($B141,'Damage costs'!$C$16:$C$43,0))/1000),\"\")","v":""},{"$f":"IFERROR(IF(OR($C$144=FALSE,LEFT($B141,3)<>\"NOX\"),M56*INDEX('Damage costs'!$U$16:$U$43,MATCH($B141,'Damage costs'!$C$16:$C$43,0))/1000,M56*INDEX('Damage costs'!$Y$16:$Y$43,MATCH($B141,'Damage costs'!$C$16:$C$43,0))/1000),\"\")","v":""},{"$f":"IFERROR(IF(OR($C$144=FALSE,LEFT($B141,3)<>\"NOX\"),N56*INDEX('Damage costs'!$U$16:$U$43,MATCH($B141,'Damage costs'!$C$16:$C$43,0))/1000,N56*INDEX('Damage costs'!$Y$16:$Y$43,MATCH($B141,'Damage costs'!$C$16:$C$43,0))/1000),\"\")","v":""},{"$f":"IFERROR(IF(OR($C$144=FALSE,LEFT($B141,3)<>\"NOX\"),O56*INDEX('Damage costs'!$U$16:$U$43,MATCH($B141,'Damage costs'!$C$16:$C$43,0))/1000,O56*INDEX('Damage costs'!$Y$16:$Y$43,MATCH($B141,'Damage costs'!$C$16:$C$43,0))/1000),\"\")","v":""},{"$f":"IFERROR(IF(OR($C$144=FALSE,LEFT($B141,3)<>\"NOX\"),P56*INDEX('Damage costs'!$U$16:$U$43,MATCH($B141,'Damage costs'!$C$16:$C$43,0))/1000,P56*INDEX('Damage costs'!$Y$16:$Y$43,MATCH($B141,'Damage costs'!$C$16:$C$43,0))/1000),\"\")","v":""},{"$f":"IFERROR(IF(OR($C$144=FALSE,LEFT($B141,3)<>\"NOX\"),Q56*INDEX('Damage costs'!$U$16:$U$43,MATCH($B141,'Damage costs'!$C$16:$C$43,0))/1000,Q56*INDEX('Damage costs'!$Y$16:$Y$43,MATCH($B141,'Damage costs'!$C$16:$C$43,0))/1000),\"\")","v":""},{"$f":"IFERROR(IF(OR($C$144=FALSE,LEFT($B141,3)<>\"NOX\"),R56*INDEX('Damage costs'!$U$16:$U$43,MATCH($B141,'Damage costs'!$C$16:$C$43,0))/1000,R56*INDEX('Damage costs'!$Y$16:$Y$43,MATCH($B141,'Damage costs'!$C$16:$C$43,0))/1000),\"\")","v":""},{"$f":"IFERROR(IF(OR($C$144=FALSE,LEFT($B141,3)<>\"NOX\"),S56*INDEX('Damage costs'!$U$16:$U$43,MATCH($B141,'Damage costs'!$C$16:$C$43,0))/1000,S56*INDEX('Damage costs'!$Y$16:$Y$43,MATCH($B141,'Damage costs'!$C$16:$C$43,0))/1000),\"\")","v":""},{"$f":"IFERROR(IF(OR($C$144=FALSE,LEFT($B141,3)<>\"NOX\"),T56*INDEX('Damage costs'!$U$16:$U$43,MATCH($B141,'Damage costs'!$C$16:$C$43,0))/1000,T56*INDEX('Damage costs'!$Y$16:$Y$43,MATCH($B141,'Damage costs'!$C$16:$C$43,0))/1000),\"\")","v":""},{"$f":"IFERROR(IF(OR($C$144=FALSE,LEFT($B141,3)<>\"NOX\"),U56*INDEX('Damage costs'!$U$16:$U$43,MATCH($B141,'Damage costs'!$C$16:$C$43,0))/1000,U56*INDEX('Damage costs'!$Y$16:$Y$43,MATCH($B141,'Damage costs'!$C$16:$C$43,0))/1000),\"\")","v":""},{"$f":"IFERROR(IF(OR($C$144=FALSE,LEFT($B141,3)<>\"NOX\"),V56*INDEX('Damage costs'!$U$16:$U$43,MATCH($B141,'Damage costs'!$C$16:$C$43,0))/1000,V56*INDEX('Damage costs'!$Y$16:$Y$43,MATCH($B141,'Damage costs'!$C$16:$C$43,0))/1000),\"\")","v":""},{"$f":"IFERROR(IF(OR($C$144=FALSE,LEFT($B141,3)<>\"NOX\"),W56*INDEX('Damage costs'!$U$16:$U$43,MATCH($B141,'Damage costs'!$C$16:$C$43,0))/1000,W56*INDEX('Damage costs'!$Y$16:$Y$43,MATCH($B141,'Damage costs'!$C$16:$C$43,0))/1000),\"\")","v":""},{"$f":"IFERROR(IF(OR($C$144=FALSE,LEFT($B141,3)<>\"NOX\"),X56*INDEX('Damage costs'!$U$16:$U$43,MATCH($B141,'Damage costs'!$C$16:$C$43,0))/1000,X56*INDEX('Damage costs'!$Y$16:$Y$43,MATCH($B141,'Damage costs'!$C$16:$C$43,0))/1000),\"\")","v":""},{"$f":"IFERROR(IF(OR($C$144=FALSE,LEFT($B141,3)<>\"NOX\"),Y56*INDEX('Damage costs'!$U$16:$U$43,MATCH($B141,'Damage costs'!$C$16:$C$43,0))/1000,Y56*INDEX('Damage costs'!$Y$16:$Y$43,MATCH($B141,'Damage costs'!$C$16:$C$43,0))/1000),\"\")","v":""},{"$f":"IFERROR(IF(OR($C$144=FALSE,LEFT($B141,3)<>\"NOX\"),Z56*INDEX('Damage costs'!$U$16:$U$43,MATCH($B141,'Damage costs'!$C$16:$C$43,0))/1000,Z56*INDEX('Damage costs'!$Y$16:$Y$43,MATCH($B141,'Damage costs'!$C$16:$C$43,0))/1000),\"\")","v":""},{"$f":"IFERROR(IF(OR($C$144=FALSE,LEFT($B141,3)<>\"NOX\"),AA56*INDEX('Damage costs'!$U$16:$U$43,MATCH($B141,'Damage costs'!$C$16:$C$43,0))/1000,AA56*INDEX('Damage costs'!$Y$16:$Y$43,MATCH($B141,'Damage costs'!$C$16:$C$43,0))/1000),\"\")","v":""},{"$f":"IFERROR(IF(OR($C$144=FALSE,LEFT($B141,3)<>\"NOX\"),AB56*INDEX('Damage costs'!$U$16:$U$43,MATCH($B141,'Damage costs'!$C$16:$C$43,0))/1000,AB56*INDEX('Damage costs'!$Y$16:$Y$43,MATCH($B141,'Damage costs'!$C$16:$C$43,0))/1000),\"\")","v":""},{"$f":"IFERROR(IF(OR($C$144=FALSE,LEFT($B141,3)<>\"NOX\"),AC56*INDEX('Damage costs'!$U$16:$U$43,MATCH($B141,'Damage costs'!$C$16:$C$43,0))/1000,AC56*INDEX('Damage costs'!$Y$16:$Y$43,MATCH($B141,'Damage costs'!$C$16:$C$43,0))/1000),\"\")","v":""},{"$f":"IFERROR(IF(OR($C$144=FALSE,LEFT($B141,3)<>\"NOX\"),AD56*INDEX('Damage costs'!$U$16:$U$43,MATCH($B141,'Damage costs'!$C$16:$C$43,0))/1000,AD56*INDEX('Damage costs'!$Y$16:$Y$43,MATCH($B141,'Damage costs'!$C$16:$C$43,0))/1000),\"\")","v":""},{"$f":"IFERROR(IF(OR($C$144=FALSE,LEFT($B141,3)<>\"NOX\"),AE56*INDEX('Damage costs'!$U$16:$U$43,MATCH($B141,'Damage costs'!$C$16:$C$43,0))/1000,AE56*INDEX('Damage costs'!$Y$16:$Y$43,MATCH($B141,'Damage costs'!$C$16:$C$43,0))/1000),\"\")","v":""},{"$f":"IFERROR(IF(OR($C$144=FALSE,LEFT($B141,3)<>\"NOX\"),AF56*INDEX('Damage costs'!$U$16:$U$43,MATCH($B141,'Damage costs'!$C$16:$C$43,0))/1000,AF56*INDEX('Damage costs'!$Y$16:$Y$43,MATCH($B141,'Damage costs'!$C$16:$C$43,0))/1000),\"\")","v":""},{"$f":"IFERROR(IF(OR($C$144=FALSE,LEFT($B141,3)<>\"NOX\"),AG56*INDEX('Damage costs'!$U$16:$U$43,MATCH($B141,'Damage costs'!$C$16:$C$43,0))/1000,AG56*INDEX('Damage costs'!$Y$16:$Y$43,MATCH($B141,'Damage costs'!$C$16:$C$43,0))/1000),\"\")","v":""},{"$f":"IFERROR(IF(OR($C$144=FALSE,LEFT($B141,3)<>\"NOX\"),AH56*INDEX('Damage costs'!$U$16:$U$43,MATCH($B141,'Damage costs'!$C$16:$C$43,0))/1000,AH56*INDEX('Damage costs'!$Y$16:$Y$43,MATCH($B141,'Damage costs'!$C$16:$C$43,0))/1000),\"\")","v":""},{"$f":"IFERROR(IF(OR($C$144=FALSE,LEFT($B141,3)<>\"NOX\"),AI56*INDEX('Damage costs'!$U$16:$U$43,MATCH($B141,'Damage costs'!$C$16:$C$43,0))/1000,AI56*INDEX('Damage costs'!$Y$16:$Y$43,MATCH($B141,'Damage costs'!$C$16:$C$43,0))/1000),\"\")","v":""},{"$f":"IFERROR(IF(OR($C$144=FALSE,LEFT($B141,3)<>\"NOX\"),AJ56*INDEX('Damage costs'!$U$16:$U$43,MATCH($B141,'Damage costs'!$C$16:$C$43,0))/1000,AJ56*INDEX('Damage costs'!$Y$16:$Y$43,MATCH($B141,'Damage costs'!$C$16:$C$43,0))/1000),\"\")","v":""},{"$f":"IFERROR(IF(OR($C$144=FALSE,LEFT($B141,3)<>\"NOX\"),AK56*INDEX('Damage costs'!$U$16:$U$43,MATCH($B141,'Damage costs'!$C$16:$C$43,0))/1000,AK56*INDEX('Damage costs'!$Y$16:$Y$43,MATCH($B141,'Damage costs'!$C$16:$C$43,0))/1000),\"\")","v":""},{"$f":"IFERROR(IF(OR($C$144=FALSE,LEFT($B141,3)<>\"NOX\"),AL56*INDEX('Damage costs'!$U$16:$U$43,MATCH($B141,'Damage costs'!$C$16:$C$43,0))/1000,AL56*INDEX('Damage costs'!$Y$16:$Y$43,MATCH($B141,'Damage costs'!$C$16:$C$43,0))/1000),\"\")","v":""},{"$f":"IFERROR(IF(OR($C$144=FALSE,LEFT($B141,3)<>\"NOX\"),AM56*INDEX('Damage costs'!$U$16:$U$43,MATCH($B141,'Damage costs'!$C$16:$C$43,0))/1000,AM56*INDEX('Damage costs'!$Y$16:$Y$43,MATCH($B141,'Damage costs'!$C$16:$C$43,0))/1000),\"\")","v":""},{"$f":"IFERROR(IF(OR($C$144=FALSE,LEFT($B141,3)<>\"NOX\"),AN56*INDEX('Damage costs'!$U$16:$U$43,MATCH($B141,'Damage costs'!$C$16:$C$43,0))/1000,AN56*INDEX('Damage costs'!$Y$16:$Y$43,MATCH($B141,'Damage costs'!$C$16:$C$43,0))/1000),\"\")","v":""},{"$f":"IFERROR(IF(OR($C$144=FALSE,LEFT($B141,3)<>\"NOX\"),AO56*INDEX('Damage costs'!$U$16:$U$43,MATCH($B141,'Damage costs'!$C$16:$C$43,0))/1000,AO56*INDEX('Damage costs'!$Y$16:$Y$43,MATCH($B141,'Damage costs'!$C$16:$C$43,0))/1000),\"\")","v":""},{"$f":"IFERROR(IF(OR($C$144=FALSE,LEFT($B141,3)<>\"NOX\"),AP56*INDEX('Damage costs'!$U$16:$U$43,MATCH($B141,'Damage costs'!$C$16:$C$43,0))/1000,AP56*INDEX('Damage costs'!$Y$16:$Y$43,MATCH($B141,'Damage costs'!$C$16:$C$43,0))/1000),\"\")","v":""},{"$f":"IFERROR(IF(OR($C$144=FALSE,LEFT($B141,3)<>\"NOX\"),AQ56*INDEX('Damage costs'!$U$16:$U$43,MATCH($B141,'Damage costs'!$C$16:$C$43,0))/1000,AQ56*INDEX('Damage costs'!$Y$16:$Y$43,MATCH($B141,'Damage costs'!$C$16:$C$43,0))/1000),\"\")","v":""},{"$f":"IFERROR(IF(OR($C$144=FALSE,LEFT($B141,3)<>\"NOX\"),AR56*INDEX('Damage costs'!$U$16:$U$43,MATCH($B141,'Damage costs'!$C$16:$C$43,0))/1000,AR56*INDEX('Damage costs'!$Y$16:$Y$43,MATCH($B141,'Damage costs'!$C$16:$C$43,0))/1000),\"\")","v":""},{"$f":"IFERROR(IF(OR($C$144=FALSE,LEFT($B141,3)<>\"NOX\"),AS56*INDEX('Damage costs'!$U$16:$U$43,MATCH($B141,'Damage costs'!$C$16:$C$43,0))/1000,AS56*INDEX('Damage costs'!$Y$16:$Y$43,MATCH($B141,'Damage costs'!$C$16:$C$43,0))/1000),\"\")","v":""},{"$f":"IFERROR(IF(OR($C$144=FALSE,LEFT($B141,3)<>\"NOX\"),AT56*INDEX('Damage costs'!$U$16:$U$43,MATCH($B141,'Damage costs'!$C$16:$C$43,0))/1000,AT56*INDEX('Damage costs'!$Y$16:$Y$43,MATCH($B141,'Damage costs'!$C$16:$C$43,0))/1000),\"\")","v":""},{"$f":"IFERROR(IF(OR($C$144=FALSE,LEFT($B141,3)<>\"NOX\"),AU56*INDEX('Damage costs'!$U$16:$U$43,MATCH($B141,'Damage costs'!$C$16:$C$43,0))/1000,AU56*INDEX('Damage costs'!$Y$16:$Y$43,MATCH($B141,'Damage costs'!$C$16:$C$43,0))/1000),\"\")","v":""},{"$f":"IFERROR(IF(OR($C$144=FALSE,LEFT($B141,3)<>\"NOX\"),AV56*INDEX('Damage costs'!$U$16:$U$43,MATCH($B141,'Damage costs'!$C$16:$C$43,0))/1000,AV56*INDEX('Damage costs'!$Y$16:$Y$43,MATCH($B141,'Damage costs'!$C$16:$C$43,0))/1000),\"\")","v":""},{"$f":"IFERROR(IF(OR($C$144=FALSE,LEFT($B141,3)<>\"NOX\"),AW56*INDEX('Damage costs'!$U$16:$U$43,MATCH($B141,'Damage costs'!$C$16:$C$43,0))/1000,AW56*INDEX('Damage costs'!$Y$16:$Y$43,MATCH($B141,'Damage costs'!$C$16:$C$43,0))/1000),\"\")","v":""},{"$f":"IFERROR(IF(OR($C$144=FALSE,LEFT($B141,3)<>\"NOX\"),AX56*INDEX('Damage costs'!$U$16:$U$43,MATCH($B141,'Damage costs'!$C$16:$C$43,0))/1000,AX56*INDEX('Damage costs'!$Y$16:$Y$43,MATCH($B141,'Damage costs'!$C$16:$C$43,0))/1000),\"\")","v":""},{"$f":"IFERROR(IF(OR($C$144=FALSE,LEFT($B141,3)<>\"NOX\"),AY56*INDEX('Damage costs'!$U$16:$U$43,MATCH($B141,'Damage costs'!$C$16:$C$43,0))/1000,AY56*INDEX('Damage costs'!$Y$16:$Y$43,MATCH($B141,'Damage costs'!$C$16:$C$43,0))/1000),\"\")","v":""},{"$f":"IFERROR(IF(OR($C$144=FALSE,LEFT($B141,3)<>\"NOX\"),AZ56*INDEX('Damage costs'!$U$16:$U$43,MATCH($B141,'Damage costs'!$C$16:$C$43,0))/1000,AZ56*INDEX('Damage costs'!$Y$16:$Y$43,MATCH($B141,'Damage costs'!$C$16:$C$43,0))/1000),\"\")","v":""},{"$f":"IFERROR(IF(OR($C$144=FALSE,LEFT($B141,3)<>\"NOX\"),BA56*INDEX('Damage costs'!$U$16:$U$43,MATCH($B141,'Damage costs'!$C$16:$C$43,0))/1000,BA56*INDEX('Damage costs'!$Y$16:$Y$43,MATCH($B141,'Damage costs'!$C$16:$C$43,0))/1000),\"\")","v":""},{"$f":"IFERROR(IF(OR($C$144=FALSE,LEFT($B141,3)<>\"NOX\"),BB56*INDEX('Damage costs'!$U$16:$U$43,MATCH($B141,'Damage costs'!$C$16:$C$43,0))/1000,BB56*INDEX('Damage costs'!$Y$16:$Y$43,MATCH($B141,'Damage costs'!$C$16:$C$43,0))/1000),\"\")","v":""},{"$f":"IFERROR(IF(OR($C$144=FALSE,LEFT($B141,3)<>\"NOX\"),BC56*INDEX('Damage costs'!$U$16:$U$43,MATCH($B141,'Damage costs'!$C$16:$C$43,0))/1000,BC56*INDEX('Damage costs'!$Y$16:$Y$43,MATCH($B141,'Damage costs'!$C$16:$C$43,0))/1000),\"\")","v":""},{"$f":"IFERROR(IF(OR($C$144=FALSE,LEFT($B141,3)<>\"NOX\"),BD56*INDEX('Damage costs'!$U$16:$U$43,MATCH($B141,'Damage costs'!$C$16:$C$43,0))/1000,BD56*INDEX('Damage costs'!$Y$16:$Y$43,MATCH($B141,'Damage costs'!$C$16:$C$43,0))/1000),\"\")","v":""},{"$f":"IFERROR(IF(OR($C$144=FALSE,LEFT($B141,3)<>\"NOX\"),BE56*INDEX('Damage costs'!$U$16:$U$43,MATCH($B141,'Damage costs'!$C$16:$C$43,0))/1000,BE56*INDEX('Damage costs'!$Y$16:$Y$43,MATCH($B141,'Damage costs'!$C$16:$C$43,0))/1000),\"\")","v":""},{"$f":"IFERROR(IF(OR($C$144=FALSE,LEFT($B141,3)<>\"NOX\"),BF56*INDEX('Damage costs'!$U$16:$U$43,MATCH($B141,'Damage costs'!$C$16:$C$43,0))/1000,BF56*INDEX('Damage costs'!$Y$16:$Y$43,MATCH($B141,'Damage costs'!$C$16:$C$43,0))/1000),\"\")","v":""},{"$f":"IFERROR(IF(OR($C$144=FALSE,LEFT($B141,3)<>\"NOX\"),BG56*INDEX('Damage costs'!$U$16:$U$43,MATCH($B141,'Damage costs'!$C$16:$C$43,0))/1000,BG56*INDEX('Damage costs'!$Y$16:$Y$43,MATCH($B141,'Damage costs'!$C$16:$C$43,0))/1000),\"\")","v":""},{"$f":"IFERROR(IF(OR($C$144=FALSE,LEFT($B141,3)<>\"NOX\"),BH56*INDEX('Damage costs'!$U$16:$U$43,MATCH($B141,'Damage costs'!$C$16:$C$43,0))/1000,BH56*INDEX('Damage costs'!$Y$16:$Y$43,MATCH($B141,'Damage costs'!$C$16:$C$43,0))/1000),\"\")","v":""},{"$f":"IFERROR(IF(OR($C$144=FALSE,LEFT($B141,3)<>\"NOX\"),BI56*INDEX('Damage costs'!$U$16:$U$43,MATCH($B141,'Damage costs'!$C$16:$C$43,0))/1000,BI56*INDEX('Damage costs'!$Y$16:$Y$43,MATCH($B141,'Damage costs'!$C$16:$C$43,0))/1000),\"\")","v":""},{"$f":"IFERROR(IF(OR($C$144=FALSE,LEFT($B141,3)<>\"NOX\"),BJ56*INDEX('Damage costs'!$U$16:$U$43,MATCH($B141,'Damage costs'!$C$16:$C$43,0))/1000,BJ56*INDEX('Damage costs'!$Y$16:$Y$43,MATCH($B141,'Damage costs'!$C$16:$C$43,0))/1000),\"\")","v":""},{"$f":"IFERROR(IF(OR($C$144=FALSE,LEFT($B141,3)<>\"NOX\"),BK56*INDEX('Damage costs'!$U$16:$U$43,MATCH($B141,'Damage costs'!$C$16:$C$43,0))/1000,BK56*INDEX('Damage costs'!$Y$16:$Y$43,MATCH($B141,'Damage costs'!$C$16:$C$43,0))/1000),\"\")","v":""},{"$f":"IFERROR(IF(OR($C$144=FALSE,LEFT($B141,3)<>\"NOX\"),BL56*INDEX('Damage costs'!$U$16:$U$43,MATCH($B141,'Damage costs'!$C$16:$C$43,0))/1000,BL56*INDEX('Damage costs'!$Y$16:$Y$43,MATCH($B141,'Damage costs'!$C$16:$C$43,0))/1000),\"\")","v":""},{"$f":"IFERROR(IF(OR($C$144=FALSE,LEFT($B141,3)<>\"NOX\"),BM56*INDEX('Damage costs'!$U$16:$U$43,MATCH($B141,'Damage costs'!$C$16:$C$43,0))/1000,BM56*INDEX('Damage costs'!$Y$16:$Y$43,MATCH($B141,'Damage costs'!$C$16:$C$43,0))/1000),\"\")","v":""},{"$f":"IFERROR(IF(OR($C$144=FALSE,LEFT($B141,3)<>\"NOX\"),BN56*INDEX('Damage costs'!$U$16:$U$43,MATCH($B141,'Damage costs'!$C$16:$C$43,0))/1000,BN56*INDEX('Damage costs'!$Y$16:$Y$43,MATCH($B141,'Damage costs'!$C$16:$C$43,0))/1000),\"\")","v":""},{"$f":"IFERROR(IF(OR($C$144=FALSE,LEFT($B141,3)<>\"NOX\"),BO56*INDEX('Damage costs'!$U$16:$U$43,MATCH($B141,'Damage costs'!$C$16:$C$43,0))/1000,BO56*INDEX('Damage costs'!$Y$16:$Y$43,MATCH($B141,'Damage costs'!$C$16:$C$43,0))/1000),\"\")","v":""},{"$f":"IFERROR(IF(OR($C$144=FALSE,LEFT($B141,3)<>\"NOX\"),BP56*INDEX('Damage costs'!$U$16:$U$43,MATCH($B141,'Damage costs'!$C$16:$C$43,0))/1000,BP56*INDEX('Damage costs'!$Y$16:$Y$43,MATCH($B141,'Damage costs'!$C$16:$C$43,0))/1000),\"\")","v":""},{"$f":"IFERROR(IF(OR($C$144=FALSE,LEFT($B141,3)<>\"NOX\"),BQ56*INDEX('Damage costs'!$U$16:$U$43,MATCH($B141,'Damage costs'!$C$16:$C$43,0))/1000,BQ56*INDEX('Damage costs'!$Y$16:$Y$43,MATCH($B141,'Damage costs'!$C$16:$C$43,0))/1000),\"\")","v":""},{"$f":"IFERROR(IF(OR($C$144=FALSE,LEFT($B141,3)<>\"NOX\"),BR56*INDEX('Damage costs'!$U$16:$U$43,MATCH($B141,'Damage costs'!$C$16:$C$43,0))/1000,BR56*INDEX('Damage costs'!$Y$16:$Y$43,MATCH($B141,'Damage costs'!$C$16:$C$43,0))/1000),\"\")","v":""},{"$f":"IFERROR(IF(OR($C$144=FALSE,LEFT($B141,3)<>\"NOX\"),BS56*INDEX('Damage costs'!$U$16:$U$43,MATCH($B141,'Damage costs'!$C$16:$C$43,0))/1000,BS56*INDEX('Damage costs'!$Y$16:$Y$43,MATCH($B141,'Damage costs'!$C$16:$C$43,0))/1000),\"\")","v":""},{"$f":"IFERROR(IF(OR($C$144=FALSE,LEFT($B141,3)<>\"NOX\"),BT56*INDEX('Damage costs'!$U$16:$U$43,MATCH($B141,'Damage costs'!$C$16:$C$43,0))/1000,BT56*INDEX('Damage costs'!$Y$16:$Y$43,MATCH($B141,'Damage costs'!$C$16:$C$43,0))/1000),\"\")","v":""},{"$f":"IFERROR(IF(OR($C$144=FALSE,LEFT($B141,3)<>\"NOX\"),BU56*INDEX('Damage costs'!$U$16:$U$43,MATCH($B141,'Damage costs'!$C$16:$C$43,0))/1000,BU56*INDEX('Damage costs'!$Y$16:$Y$43,MATCH($B141,'Damage costs'!$C$16:$C$43,0))/1000),\"\")","v":""},{"$f":"IFERROR(IF(OR($C$144=FALSE,LEFT($B141,3)<>\"NOX\"),BV56*INDEX('Damage costs'!$U$16:$U$43,MATCH($B141,'Damage costs'!$C$16:$C$43,0))/1000,BV56*INDEX('Damage costs'!$Y$16:$Y$43,MATCH($B141,'Damage costs'!$C$16:$C$43,0))/1000),\"\")","v":""},{"$f":"IFERROR(IF(OR($C$144=FALSE,LEFT($B141,3)<>\"NOX\"),BW56*INDEX('Damage costs'!$U$16:$U$43,MATCH($B141,'Damage costs'!$C$16:$C$43,0))/1000,BW56*INDEX('Damage costs'!$Y$16:$Y$43,MATCH($B141,'Damage costs'!$C$16:$C$43,0))/1000),\"\")","v":""},{"$f":"IFERROR(IF(OR($C$144=FALSE,LEFT($B141,3)<>\"NOX\"),BX56*INDEX('Damage costs'!$U$16:$U$43,MATCH($B141,'Damage costs'!$C$16:$C$43,0))/1000,BX56*INDEX('Damage costs'!$Y$16:$Y$43,MATCH($B141,'Damage costs'!$C$16:$C$43,0))/1000),\"\")","v":""},{"$f":"IFERROR(IF(OR($C$144=FALSE,LEFT($B141,3)<>\"NOX\"),BY56*INDEX('Damage costs'!$U$16:$U$43,MATCH($B141,'Damage costs'!$C$16:$C$43,0))/1000,BY56*INDEX('Damage costs'!$Y$16:$Y$43,MATCH($B141,'Damage costs'!$C$16:$C$43,0))/1000),\"\")","v":""},{"$f":"IFERROR(IF(OR($C$144=FALSE,LEFT($B141,3)<>\"NOX\"),BZ56*INDEX('Damage costs'!$U$16:$U$43,MATCH($B141,'Damage costs'!$C$16:$C$43,0))/1000,BZ56*INDEX('Damage costs'!$Y$16:$Y$43,MATCH($B141,'Damage costs'!$C$16:$C$43,0))/1000),\"\")","v":""},{"$f":"IFERROR(IF(OR($C$144=FALSE,LEFT($B141,3)<>\"NOX\"),CA56*INDEX('Damage costs'!$U$16:$U$43,MATCH($B141,'Damage costs'!$C$16:$C$43,0))/1000,CA56*INDEX('Damage costs'!$Y$16:$Y$43,MATCH($B141,'Damage costs'!$C$16:$C$43,0))/1000),\"\")","v":""},{"$f":"IFERROR(IF(OR($C$144=FALSE,LEFT($B141,3)<>\"NOX\"),CB56*INDEX('Damage costs'!$U$16:$U$43,MATCH($B141,'Damage costs'!$C$16:$C$43,0))/1000,CB56*INDEX('Damage costs'!$Y$16:$Y$43,MATCH($B141,'Damage costs'!$C$16:$C$43,0))/1000),\"\")","v":""},{"$f":"IFERROR(IF(OR($C$144=FALSE,LEFT($B141,3)<>\"NOX\"),CC56*INDEX('Damage costs'!$U$16:$U$43,MATCH($B141,'Damage costs'!$C$16:$C$43,0))/1000,CC56*INDEX('Damage costs'!$Y$16:$Y$43,MATCH($B141,'Damage costs'!$C$16:$C$43,0))/1000),\"\")","v":""},{"$f":"IFERROR(IF(OR($C$144=FALSE,LEFT($B141,3)<>\"NOX\"),CD56*INDEX('Damage costs'!$U$16:$U$43,MATCH($B141,'Damage costs'!$C$16:$C$43,0))/1000,CD56*INDEX('Damage costs'!$Y$16:$Y$43,MATCH($B141,'Damage costs'!$C$16:$C$43,0))/1000),\"\")","v":""},{"$f":"IFERROR(IF(OR($C$144=FALSE,LEFT($B141,3)<>\"NOX\"),CE56*INDEX('Damage costs'!$U$16:$U$43,MATCH($B141,'Damage costs'!$C$16:$C$43,0))/1000,CE56*INDEX('Damage costs'!$Y$16:$Y$43,MATCH($B141,'Damage costs'!$C$16:$C$43,0))/1000),\"\")","v":""},{"$f":"IFERROR(IF(OR($C$144=FALSE,LEFT($B141,3)<>\"NOX\"),CF56*INDEX('Damage costs'!$U$16:$U$43,MATCH($B141,'Damage costs'!$C$16:$C$43,0))/1000,CF56*INDEX('Damage costs'!$Y$16:$Y$43,MATCH($B141,'Damage costs'!$C$16:$C$43,0))/1000),\"\")","v":""},{"$f":"IFERROR(IF(OR($C$144=FALSE,LEFT($B141,3)<>\"NOX\"),CG56*INDEX('Damage costs'!$U$16:$U$43,MATCH($B141,'Damage costs'!$C$16:$C$43,0))/1000,CG56*INDEX('Damage costs'!$Y$16:$Y$43,MATCH($B141,'Damage costs'!$C$16:$C$43,0))/1000),\"\")","v":""},{"$f":"IFERROR(IF(OR($C$144=FALSE,LEFT($B141,3)<>\"NOX\"),CH56*INDEX('Damage costs'!$U$16:$U$43,MATCH($B141,'Damage costs'!$C$16:$C$43,0))/1000,CH56*INDEX('Damage costs'!$Y$16:$Y$43,MATCH($B141,'Damage costs'!$C$16:$C$43,0))/1000),\"\")","v":""},{"$f":"IFERROR(IF(OR($C$144=FALSE,LEFT($B141,3)<>\"NOX\"),CI56*INDEX('Damage costs'!$U$16:$U$43,MATCH($B141,'Damage costs'!$C$16:$C$43,0))/1000,CI56*INDEX('Damage costs'!$Y$16:$Y$43,MATCH($B141,'Damage costs'!$C$16:$C$43,0))/1000),\"\")","v":""},{"$f":"IFERROR(IF(OR($C$144=FALSE,LEFT($B141,3)<>\"NOX\"),CJ56*INDEX('Damage costs'!$U$16:$U$43,MATCH($B141,'Damage costs'!$C$16:$C$43,0))/1000,CJ56*INDEX('Damage costs'!$Y$16:$Y$43,MATCH($B141,'Damage costs'!$C$16:$C$43,0))/1000),\"\")","v":""},{"$f":"IFERROR(IF(OR($C$144=FALSE,LEFT($B141,3)<>\"NOX\"),CK56*INDEX('Damage costs'!$U$16:$U$43,MATCH($B141,'Damage costs'!$C$16:$C$43,0))/1000,CK56*INDEX('Damage costs'!$Y$16:$Y$43,MATCH($B141,'Damage costs'!$C$16:$C$43,0))/1000),\"\")","v":""},{"$f":"IFERROR(IF(OR($C$144=FALSE,LEFT($B141,3)<>\"NOX\"),CL56*INDEX('Damage costs'!$U$16:$U$43,MATCH($B141,'Damage costs'!$C$16:$C$43,0))/1000,CL56*INDEX('Damage costs'!$Y$16:$Y$43,MATCH($B141,'Damage costs'!$C$16:$C$43,0))/1000),\"\")","v":""},{"$f":"IFERROR(IF(OR($C$144=FALSE,LEFT($B141,3)<>\"NOX\"),CM56*INDEX('Damage costs'!$U$16:$U$43,MATCH($B141,'Damage costs'!$C$16:$C$43,0))/1000,CM56*INDEX('Damage costs'!$Y$16:$Y$43,MATCH($B141,'Damage costs'!$C$16:$C$43,0))/1000),\"\")","v":""},{"$f":"IFERROR(IF(OR($C$144=FALSE,LEFT($B141,3)<>\"NOX\"),CN56*INDEX('Damage costs'!$U$16:$U$43,MATCH($B141,'Damage costs'!$C$16:$C$43,0))/1000,CN56*INDEX('Damage costs'!$Y$16:$Y$43,MATCH($B141,'Damage costs'!$C$16:$C$43,0))/1000),\"\")","v":""},{"$f":"IFERROR(IF(OR($C$144=FALSE,LEFT($B141,3)<>\"NOX\"),CO56*INDEX('Damage costs'!$U$16:$U$43,MATCH($B141,'Damage costs'!$C$16:$C$43,0))/1000,CO56*INDEX('Damage costs'!$Y$16:$Y$43,MATCH($B141,'Damage costs'!$C$16:$C$43,0))/1000),\"\")","v":""},{"$f":"IFERROR(IF(OR($C$144=FALSE,LEFT($B141,3)<>\"NOX\"),CP56*INDEX('Damage costs'!$U$16:$U$43,MATCH($B141,'Damage costs'!$C$16:$C$43,0))/1000,CP56*INDEX('Damage costs'!$Y$16:$Y$43,MATCH($B141,'Damage costs'!$C$16:$C$43,0))/1000),\"\")","v":""},{"$f":"IFERROR(IF(OR($C$144=FALSE,LEFT($B141,3)<>\"NOX\"),CQ56*INDEX('Damage costs'!$U$16:$U$43,MATCH($B141,'Damage costs'!$C$16:$C$43,0))/1000,CQ56*INDEX('Damage costs'!$Y$16:$Y$43,MATCH($B141,'Damage costs'!$C$16:$C$43,0))/1000),\"\")","v":""},{"$f":"IFERROR(IF(OR($C$144=FALSE,LEFT($B141,3)<>\"NOX\"),CR56*INDEX('Damage costs'!$U$16:$U$43,MATCH($B141,'Damage costs'!$C$16:$C$43,0))/1000,CR56*INDEX('Damage costs'!$Y$16:$Y$43,MATCH($B141,'Damage costs'!$C$16:$C$43,0))/1000),\"\")","v":""},{"$f":"IFERROR(IF(OR($C$144=FALSE,LEFT($B141,3)<>\"NOX\"),CS56*INDEX('Damage costs'!$U$16:$U$43,MATCH($B141,'Damage costs'!$C$16:$C$43,0))/1000,CS56*INDEX('Damage costs'!$Y$16:$Y$43,MATCH($B141,'Damage costs'!$C$16:$C$43,0))/1000),\"\")","v":""},{"$f":"IFERROR(IF(OR($C$144=FALSE,LEFT($B141,3)<>\"NOX\"),CT56*INDEX('Damage costs'!$U$16:$U$43,MATCH($B141,'Damage costs'!$C$16:$C$43,0))/1000,CT56*INDEX('Damage costs'!$Y$16:$Y$43,MATCH($B141,'Damage costs'!$C$16:$C$43,0))/1000),\"\")","v":""},{"$f":"IFERROR(IF(OR($C$144=FALSE,LEFT($B141,3)<>\"NOX\"),CU56*INDEX('Damage costs'!$U$16:$U$43,MATCH($B141,'Damage costs'!$C$16:$C$43,0))/1000,CU56*INDEX('Damage costs'!$Y$16:$Y$43,MATCH($B141,'Damage costs'!$C$16:$C$43,0))/1000),\"\")","v":""},{"$f":"IFERROR(IF(OR($C$144=FALSE,LEFT($B141,3)<>\"NOX\"),CV56*INDEX('Damage costs'!$U$16:$U$43,MATCH($B141,'Damage costs'!$C$16:$C$43,0))/1000,CV56*INDEX('Damage costs'!$Y$16:$Y$43,MATCH($B141,'Damage costs'!$C$16:$C$43,0))/1000),\"\")","v":""},{"$f":"IFERROR(IF(OR($C$144=FALSE,LEFT($B141,3)<>\"NOX\"),CW56*INDEX('Damage costs'!$U$16:$U$43,MATCH($B141,'Damage costs'!$C$16:$C$43,0))/1000,CW56*INDEX('Damage costs'!$Y$16:$Y$43,MATCH($B141,'Damage costs'!$C$16:$C$43,0))/1000),\"\")","v":""},{"$f":"IFERROR(IF(OR($C$144=FALSE,LEFT($B141,3)<>\"NOX\"),CX56*INDEX('Damage costs'!$U$16:$U$43,MATCH($B141,'Damage costs'!$C$16:$C$43,0))/1000,CX56*INDEX('Damage costs'!$Y$16:$Y$43,MATCH($B141,'Damage costs'!$C$16:$C$43,0))/1000),\"\")","v":""},{"$f":"IFERROR(IF(OR($C$144=FALSE,LEFT($B141,3)<>\"NOX\"),CY56*INDEX('Damage costs'!$U$16:$U$43,MATCH($B141,'Damage costs'!$C$16:$C$43,0))/1000,CY56*INDEX('Damage costs'!$Y$16:$Y$43,MATCH($B141,'Damage costs'!$C$16:$C$43,0))/1000),\"\")","v":""}]
[null,0,"£000's",{"$f":"IFERROR(IF(OR($C$144=FALSE,LEFT($B142,3)<>\"NOX\"),D57*INDEX('Damage costs'!$U$16:$U$43,MATCH($B142,'Damage costs'!$C$16:$C$43,0))/1000,D57*INDEX('Damage costs'!$Y$16:$Y$43,MATCH($B142,'Damage costs'!$C$16:$C$43,0))/1000),\"\")","v":""},{"$f":"IFERROR(IF(OR($C$144=FALSE,LEFT($B142,3)<>\"NOX\"),E57*INDEX('Damage costs'!$U$16:$U$43,MATCH($B142,'Damage costs'!$C$16:$C$43,0))/1000,E57*INDEX('Damage costs'!$Y$16:$Y$43,MATCH($B142,'Damage costs'!$C$16:$C$43,0))/1000),\"\")","v":""},{"$f":"IFERROR(IF(OR($C$144=FALSE,LEFT($B142,3)<>\"NOX\"),F57*INDEX('Damage costs'!$U$16:$U$43,MATCH($B142,'Damage costs'!$C$16:$C$43,0))/1000,F57*INDEX('Damage costs'!$Y$16:$Y$43,MATCH($B142,'Damage costs'!$C$16:$C$43,0))/1000),\"\")","v":""},{"$f":"IFERROR(IF(OR($C$144=FALSE,LEFT($B142,3)<>\"NOX\"),G57*INDEX('Damage costs'!$U$16:$U$43,MATCH($B142,'Damage costs'!$C$16:$C$43,0))/1000,G57*INDEX('Damage costs'!$Y$16:$Y$43,MATCH($B142,'Damage costs'!$C$16:$C$43,0))/1000),\"\")","v":""},{"$f":"IFERROR(IF(OR($C$144=FALSE,LEFT($B142,3)<>\"NOX\"),H57*INDEX('Damage costs'!$U$16:$U$43,MATCH($B142,'Damage costs'!$C$16:$C$43,0))/1000,H57*INDEX('Damage costs'!$Y$16:$Y$43,MATCH($B142,'Damage costs'!$C$16:$C$43,0))/1000),\"\")","v":""},{"$f":"IFERROR(IF(OR($C$144=FALSE,LEFT($B142,3)<>\"NOX\"),I57*INDEX('Damage costs'!$U$16:$U$43,MATCH($B142,'Damage costs'!$C$16:$C$43,0))/1000,I57*INDEX('Damage costs'!$Y$16:$Y$43,MATCH($B142,'Damage costs'!$C$16:$C$43,0))/1000),\"\")","v":""},{"$f":"IFERROR(IF(OR($C$144=FALSE,LEFT($B142,3)<>\"NOX\"),J57*INDEX('Damage costs'!$U$16:$U$43,MATCH($B142,'Damage costs'!$C$16:$C$43,0))/1000,J57*INDEX('Damage costs'!$Y$16:$Y$43,MATCH($B142,'Damage costs'!$C$16:$C$43,0))/1000),\"\")","v":""},{"$f":"IFERROR(IF(OR($C$144=FALSE,LEFT($B142,3)<>\"NOX\"),K57*INDEX('Damage costs'!$U$16:$U$43,MATCH($B142,'Damage costs'!$C$16:$C$43,0))/1000,K57*INDEX('Damage costs'!$Y$16:$Y$43,MATCH($B142,'Damage costs'!$C$16:$C$43,0))/1000),\"\")","v":""},{"$f":"IFERROR(IF(OR($C$144=FALSE,LEFT($B142,3)<>\"NOX\"),L57*INDEX('Damage costs'!$U$16:$U$43,MATCH($B142,'Damage costs'!$C$16:$C$43,0))/1000,L57*INDEX('Damage costs'!$Y$16:$Y$43,MATCH($B142,'Damage costs'!$C$16:$C$43,0))/1000),\"\")","v":""},{"$f":"IFERROR(IF(OR($C$144=FALSE,LEFT($B142,3)<>\"NOX\"),M57*INDEX('Damage costs'!$U$16:$U$43,MATCH($B142,'Damage costs'!$C$16:$C$43,0))/1000,M57*INDEX('Damage costs'!$Y$16:$Y$43,MATCH($B142,'Damage costs'!$C$16:$C$43,0))/1000),\"\")","v":""},{"$f":"IFERROR(IF(OR($C$144=FALSE,LEFT($B142,3)<>\"NOX\"),N57*INDEX('Damage costs'!$U$16:$U$43,MATCH($B142,'Damage costs'!$C$16:$C$43,0))/1000,N57*INDEX('Damage costs'!$Y$16:$Y$43,MATCH($B142,'Damage costs'!$C$16:$C$43,0))/1000),\"\")","v":""},{"$f":"IFERROR(IF(OR($C$144=FALSE,LEFT($B142,3)<>\"NOX\"),O57*INDEX('Damage costs'!$U$16:$U$43,MATCH($B142,'Damage costs'!$C$16:$C$43,0))/1000,O57*INDEX('Damage costs'!$Y$16:$Y$43,MATCH($B142,'Damage costs'!$C$16:$C$43,0))/1000),\"\")","v":""},{"$f":"IFERROR(IF(OR($C$144=FALSE,LEFT($B142,3)<>\"NOX\"),P57*INDEX('Damage costs'!$U$16:$U$43,MATCH($B142,'Damage costs'!$C$16:$C$43,0))/1000,P57*INDEX('Damage costs'!$Y$16:$Y$43,MATCH($B142,'Damage costs'!$C$16:$C$43,0))/1000),\"\")","v":""},{"$f":"IFERROR(IF(OR($C$144=FALSE,LEFT($B142,3)<>\"NOX\"),Q57*INDEX('Damage costs'!$U$16:$U$43,MATCH($B142,'Damage costs'!$C$16:$C$43,0))/1000,Q57*INDEX('Damage costs'!$Y$16:$Y$43,MATCH($B142,'Damage costs'!$C$16:$C$43,0))/1000),\"\")","v":""},{"$f":"IFERROR(IF(OR($C$144=FALSE,LEFT($B142,3)<>\"NOX\"),R57*INDEX('Damage costs'!$U$16:$U$43,MATCH($B142,'Damage costs'!$C$16:$C$43,0))/1000,R57*INDEX('Damage costs'!$Y$16:$Y$43,MATCH($B142,'Damage costs'!$C$16:$C$43,0))/1000),\"\")","v":""},{"$f":"IFERROR(IF(OR($C$144=FALSE,LEFT($B142,3)<>\"NOX\"),S57*INDEX('Damage costs'!$U$16:$U$43,MATCH($B142,'Damage costs'!$C$16:$C$43,0))/1000,S57*INDEX('Damage costs'!$Y$16:$Y$43,MATCH($B142,'Damage costs'!$C$16:$C$43,0))/1000),\"\")","v":""},{"$f":"IFERROR(IF(OR($C$144=FALSE,LEFT($B142,3)<>\"NOX\"),T57*INDEX('Damage costs'!$U$16:$U$43,MATCH($B142,'Damage costs'!$C$16:$C$43,0))/1000,T57*INDEX('Damage costs'!$Y$16:$Y$43,MATCH($B142,'Damage costs'!$C$16:$C$43,0))/1000),\"\")","v":""},{"$f":"IFERROR(IF(OR($C$144=FALSE,LEFT($B142,3)<>\"NOX\"),U57*INDEX('Damage costs'!$U$16:$U$43,MATCH($B142,'Damage costs'!$C$16:$C$43,0))/1000,U57*INDEX('Damage costs'!$Y$16:$Y$43,MATCH($B142,'Damage costs'!$C$16:$C$43,0))/1000),\"\")","v":""},{"$f":"IFERROR(IF(OR($C$144=FALSE,LEFT($B142,3)<>\"NOX\"),V57*INDEX('Damage costs'!$U$16:$U$43,MATCH($B142,'Damage costs'!$C$16:$C$43,0))/1000,V57*INDEX('Damage costs'!$Y$16:$Y$43,MATCH($B142,'Damage costs'!$C$16:$C$43,0))/1000),\"\")","v":""},{"$f":"IFERROR(IF(OR($C$144=FALSE,LEFT($B142,3)<>\"NOX\"),W57*INDEX('Damage costs'!$U$16:$U$43,MATCH($B142,'Damage costs'!$C$16:$C$43,0))/1000,W57*INDEX('Damage costs'!$Y$16:$Y$43,MATCH($B142,'Damage costs'!$C$16:$C$43,0))/1000),\"\")","v":""},{"$f":"IFERROR(IF(OR($C$144=FALSE,LEFT($B142,3)<>\"NOX\"),X57*INDEX('Damage costs'!$U$16:$U$43,MATCH($B142,'Damage costs'!$C$16:$C$43,0))/1000,X57*INDEX('Damage costs'!$Y$16:$Y$43,MATCH($B142,'Damage costs'!$C$16:$C$43,0))/1000),\"\")","v":""},{"$f":"IFERROR(IF(OR($C$144=FALSE,LEFT($B142,3)<>\"NOX\"),Y57*INDEX('Damage costs'!$U$16:$U$43,MATCH($B142,'Damage costs'!$C$16:$C$43,0))/1000,Y57*INDEX('Damage costs'!$Y$16:$Y$43,MATCH($B142,'Damage costs'!$C$16:$C$43,0))/1000),\"\")","v":""},{"$f":"IFERROR(IF(OR($C$144=FALSE,LEFT($B142,3)<>\"NOX\"),Z57*INDEX('Damage costs'!$U$16:$U$43,MATCH($B142,'Damage costs'!$C$16:$C$43,0))/1000,Z57*INDEX('Damage costs'!$Y$16:$Y$43,MATCH($B142,'Damage costs'!$C$16:$C$43,0))/1000),\"\")","v":""},{"$f":"IFERROR(IF(OR($C$144=FALSE,LEFT($B142,3)<>\"NOX\"),AA57*INDEX('Damage costs'!$U$16:$U$43,MATCH($B142,'Damage costs'!$C$16:$C$43,0))/1000,AA57*INDEX('Damage costs'!$Y$16:$Y$43,MATCH($B142,'Damage costs'!$C$16:$C$43,0))/1000),\"\")","v":""},{"$f":"IFERROR(IF(OR($C$144=FALSE,LEFT($B142,3)<>\"NOX\"),AB57*INDEX('Damage costs'!$U$16:$U$43,MATCH($B142,'Damage costs'!$C$16:$C$43,0))/1000,AB57*INDEX('Damage costs'!$Y$16:$Y$43,MATCH($B142,'Damage costs'!$C$16:$C$43,0))/1000),\"\")","v":""},{"$f":"IFERROR(IF(OR($C$144=FALSE,LEFT($B142,3)<>\"NOX\"),AC57*INDEX('Damage costs'!$U$16:$U$43,MATCH($B142,'Damage costs'!$C$16:$C$43,0))/1000,AC57*INDEX('Damage costs'!$Y$16:$Y$43,MATCH($B142,'Damage costs'!$C$16:$C$43,0))/1000),\"\")","v":""},{"$f":"IFERROR(IF(OR($C$144=FALSE,LEFT($B142,3)<>\"NOX\"),AD57*INDEX('Damage costs'!$U$16:$U$43,MATCH($B142,'Damage costs'!$C$16:$C$43,0))/1000,AD57*INDEX('Damage costs'!$Y$16:$Y$43,MATCH($B142,'Damage costs'!$C$16:$C$43,0))/1000),\"\")","v":""},{"$f":"IFERROR(IF(OR($C$144=FALSE,LEFT($B142,3)<>\"NOX\"),AE57*INDEX('Damage costs'!$U$16:$U$43,MATCH($B142,'Damage costs'!$C$16:$C$43,0))/1000,AE57*INDEX('Damage costs'!$Y$16:$Y$43,MATCH($B142,'Damage costs'!$C$16:$C$43,0))/1000),\"\")","v":""},{"$f":"IFERROR(IF(OR($C$144=FALSE,LEFT($B142,3)<>\"NOX\"),AF57*INDEX('Damage costs'!$U$16:$U$43,MATCH($B142,'Damage costs'!$C$16:$C$43,0))/1000,AF57*INDEX('Damage costs'!$Y$16:$Y$43,MATCH($B142,'Damage costs'!$C$16:$C$43,0))/1000),\"\")","v":""},{"$f":"IFERROR(IF(OR($C$144=FALSE,LEFT($B142,3)<>\"NOX\"),AG57*INDEX('Damage costs'!$U$16:$U$43,MATCH($B142,'Damage costs'!$C$16:$C$43,0))/1000,AG57*INDEX('Damage costs'!$Y$16:$Y$43,MATCH($B142,'Damage costs'!$C$16:$C$43,0))/1000),\"\")","v":""},{"$f":"IFERROR(IF(OR($C$144=FALSE,LEFT($B142,3)<>\"NOX\"),AH57*INDEX('Damage costs'!$U$16:$U$43,MATCH($B142,'Damage costs'!$C$16:$C$43,0))/1000,AH57*INDEX('Damage costs'!$Y$16:$Y$43,MATCH($B142,'Damage costs'!$C$16:$C$43,0))/1000),\"\")","v":""},{"$f":"IFERROR(IF(OR($C$144=FALSE,LEFT($B142,3)<>\"NOX\"),AI57*INDEX('Damage costs'!$U$16:$U$43,MATCH($B142,'Damage costs'!$C$16:$C$43,0))/1000,AI57*INDEX('Damage costs'!$Y$16:$Y$43,MATCH($B142,'Damage costs'!$C$16:$C$43,0))/1000),\"\")","v":""},{"$f":"IFERROR(IF(OR($C$144=FALSE,LEFT($B142,3)<>\"NOX\"),AJ57*INDEX('Damage costs'!$U$16:$U$43,MATCH($B142,'Damage costs'!$C$16:$C$43,0))/1000,AJ57*INDEX('Damage costs'!$Y$16:$Y$43,MATCH($B142,'Damage costs'!$C$16:$C$43,0))/1000),\"\")","v":""},{"$f":"IFERROR(IF(OR($C$144=FALSE,LEFT($B142,3)<>\"NOX\"),AK57*INDEX('Damage costs'!$U$16:$U$43,MATCH($B142,'Damage costs'!$C$16:$C$43,0))/1000,AK57*INDEX('Damage costs'!$Y$16:$Y$43,MATCH($B142,'Damage costs'!$C$16:$C$43,0))/1000),\"\")","v":""},{"$f":"IFERROR(IF(OR($C$144=FALSE,LEFT($B142,3)<>\"NOX\"),AL57*INDEX('Damage costs'!$U$16:$U$43,MATCH($B142,'Damage costs'!$C$16:$C$43,0))/1000,AL57*INDEX('Damage costs'!$Y$16:$Y$43,MATCH($B142,'Damage costs'!$C$16:$C$43,0))/1000),\"\")","v":""},{"$f":"IFERROR(IF(OR($C$144=FALSE,LEFT($B142,3)<>\"NOX\"),AM57*INDEX('Damage costs'!$U$16:$U$43,MATCH($B142,'Damage costs'!$C$16:$C$43,0))/1000,AM57*INDEX('Damage costs'!$Y$16:$Y$43,MATCH($B142,'Damage costs'!$C$16:$C$43,0))/1000),\"\")","v":""},{"$f":"IFERROR(IF(OR($C$144=FALSE,LEFT($B142,3)<>\"NOX\"),AN57*INDEX('Damage costs'!$U$16:$U$43,MATCH($B142,'Damage costs'!$C$16:$C$43,0))/1000,AN57*INDEX('Damage costs'!$Y$16:$Y$43,MATCH($B142,'Damage costs'!$C$16:$C$43,0))/1000),\"\")","v":""},{"$f":"IFERROR(IF(OR($C$144=FALSE,LEFT($B142,3)<>\"NOX\"),AO57*INDEX('Damage costs'!$U$16:$U$43,MATCH($B142,'Damage costs'!$C$16:$C$43,0))/1000,AO57*INDEX('Damage costs'!$Y$16:$Y$43,MATCH($B142,'Damage costs'!$C$16:$C$43,0))/1000),\"\")","v":""},{"$f":"IFERROR(IF(OR($C$144=FALSE,LEFT($B142,3)<>\"NOX\"),AP57*INDEX('Damage costs'!$U$16:$U$43,MATCH($B142,'Damage costs'!$C$16:$C$43,0))/1000,AP57*INDEX('Damage costs'!$Y$16:$Y$43,MATCH($B142,'Damage costs'!$C$16:$C$43,0))/1000),\"\")","v":""},{"$f":"IFERROR(IF(OR($C$144=FALSE,LEFT($B142,3)<>\"NOX\"),AQ57*INDEX('Damage costs'!$U$16:$U$43,MATCH($B142,'Damage costs'!$C$16:$C$43,0))/1000,AQ57*INDEX('Damage costs'!$Y$16:$Y$43,MATCH($B142,'Damage costs'!$C$16:$C$43,0))/1000),\"\")","v":""},{"$f":"IFERROR(IF(OR($C$144=FALSE,LEFT($B142,3)<>\"NOX\"),AR57*INDEX('Damage costs'!$U$16:$U$43,MATCH($B142,'Damage costs'!$C$16:$C$43,0))/1000,AR57*INDEX('Damage costs'!$Y$16:$Y$43,MATCH($B142,'Damage costs'!$C$16:$C$43,0))/1000),\"\")","v":""},{"$f":"IFERROR(IF(OR($C$144=FALSE,LEFT($B142,3)<>\"NOX\"),AS57*INDEX('Damage costs'!$U$16:$U$43,MATCH($B142,'Damage costs'!$C$16:$C$43,0))/1000,AS57*INDEX('Damage costs'!$Y$16:$Y$43,MATCH($B142,'Damage costs'!$C$16:$C$43,0))/1000),\"\")","v":""},{"$f":"IFERROR(IF(OR($C$144=FALSE,LEFT($B142,3)<>\"NOX\"),AT57*INDEX('Damage costs'!$U$16:$U$43,MATCH($B142,'Damage costs'!$C$16:$C$43,0))/1000,AT57*INDEX('Damage costs'!$Y$16:$Y$43,MATCH($B142,'Damage costs'!$C$16:$C$43,0))/1000),\"\")","v":""},{"$f":"IFERROR(IF(OR($C$144=FALSE,LEFT($B142,3)<>\"NOX\"),AU57*INDEX('Damage costs'!$U$16:$U$43,MATCH($B142,'Damage costs'!$C$16:$C$43,0))/1000,AU57*INDEX('Damage costs'!$Y$16:$Y$43,MATCH($B142,'Damage costs'!$C$16:$C$43,0))/1000),\"\")","v":""},{"$f":"IFERROR(IF(OR($C$144=FALSE,LEFT($B142,3)<>\"NOX\"),AV57*INDEX('Damage costs'!$U$16:$U$43,MATCH($B142,'Damage costs'!$C$16:$C$43,0))/1000,AV57*INDEX('Damage costs'!$Y$16:$Y$43,MATCH($B142,'Damage costs'!$C$16:$C$43,0))/1000),\"\")","v":""},{"$f":"IFERROR(IF(OR($C$144=FALSE,LEFT($B142,3)<>\"NOX\"),AW57*INDEX('Damage costs'!$U$16:$U$43,MATCH($B142,'Damage costs'!$C$16:$C$43,0))/1000,AW57*INDEX('Damage costs'!$Y$16:$Y$43,MATCH($B142,'Damage costs'!$C$16:$C$43,0))/1000),\"\")","v":""},{"$f":"IFERROR(IF(OR($C$144=FALSE,LEFT($B142,3)<>\"NOX\"),AX57*INDEX('Damage costs'!$U$16:$U$43,MATCH($B142,'Damage costs'!$C$16:$C$43,0))/1000,AX57*INDEX('Damage costs'!$Y$16:$Y$43,MATCH($B142,'Damage costs'!$C$16:$C$43,0))/1000),\"\")","v":""},{"$f":"IFERROR(IF(OR($C$144=FALSE,LEFT($B142,3)<>\"NOX\"),AY57*INDEX('Damage costs'!$U$16:$U$43,MATCH($B142,'Damage costs'!$C$16:$C$43,0))/1000,AY57*INDEX('Damage costs'!$Y$16:$Y$43,MATCH($B142,'Damage costs'!$C$16:$C$43,0))/1000),\"\")","v":""},{"$f":"IFERROR(IF(OR($C$144=FALSE,LEFT($B142,3)<>\"NOX\"),AZ57*INDEX('Damage costs'!$U$16:$U$43,MATCH($B142,'Damage costs'!$C$16:$C$43,0))/1000,AZ57*INDEX('Damage costs'!$Y$16:$Y$43,MATCH($B142,'Damage costs'!$C$16:$C$43,0))/1000),\"\")","v":""},{"$f":"IFERROR(IF(OR($C$144=FALSE,LEFT($B142,3)<>\"NOX\"),BA57*INDEX('Damage costs'!$U$16:$U$43,MATCH($B142,'Damage costs'!$C$16:$C$43,0))/1000,BA57*INDEX('Damage costs'!$Y$16:$Y$43,MATCH($B142,'Damage costs'!$C$16:$C$43,0))/1000),\"\")","v":""},{"$f":"IFERROR(IF(OR($C$144=FALSE,LEFT($B142,3)<>\"NOX\"),BB57*INDEX('Damage costs'!$U$16:$U$43,MATCH($B142,'Damage costs'!$C$16:$C$43,0))/1000,BB57*INDEX('Damage costs'!$Y$16:$Y$43,MATCH($B142,'Damage costs'!$C$16:$C$43,0))/1000),\"\")","v":""},{"$f":"IFERROR(IF(OR($C$144=FALSE,LEFT($B142,3)<>\"NOX\"),BC57*INDEX('Damage costs'!$U$16:$U$43,MATCH($B142,'Damage costs'!$C$16:$C$43,0))/1000,BC57*INDEX('Damage costs'!$Y$16:$Y$43,MATCH($B142,'Damage costs'!$C$16:$C$43,0))/1000),\"\")","v":""},{"$f":"IFERROR(IF(OR($C$144=FALSE,LEFT($B142,3)<>\"NOX\"),BD57*INDEX('Damage costs'!$U$16:$U$43,MATCH($B142,'Damage costs'!$C$16:$C$43,0))/1000,BD57*INDEX('Damage costs'!$Y$16:$Y$43,MATCH($B142,'Damage costs'!$C$16:$C$43,0))/1000),\"\")","v":""},{"$f":"IFERROR(IF(OR($C$144=FALSE,LEFT($B142,3)<>\"NOX\"),BE57*INDEX('Damage costs'!$U$16:$U$43,MATCH($B142,'Damage costs'!$C$16:$C$43,0))/1000,BE57*INDEX('Damage costs'!$Y$16:$Y$43,MATCH($B142,'Damage costs'!$C$16:$C$43,0))/1000),\"\")","v":""},{"$f":"IFERROR(IF(OR($C$144=FALSE,LEFT($B142,3)<>\"NOX\"),BF57*INDEX('Damage costs'!$U$16:$U$43,MATCH($B142,'Damage costs'!$C$16:$C$43,0))/1000,BF57*INDEX('Damage costs'!$Y$16:$Y$43,MATCH($B142,'Damage costs'!$C$16:$C$43,0))/1000),\"\")","v":""},{"$f":"IFERROR(IF(OR($C$144=FALSE,LEFT($B142,3)<>\"NOX\"),BG57*INDEX('Damage costs'!$U$16:$U$43,MATCH($B142,'Damage costs'!$C$16:$C$43,0))/1000,BG57*INDEX('Damage costs'!$Y$16:$Y$43,MATCH($B142,'Damage costs'!$C$16:$C$43,0))/1000),\"\")","v":""},{"$f":"IFERROR(IF(OR($C$144=FALSE,LEFT($B142,3)<>\"NOX\"),BH57*INDEX('Damage costs'!$U$16:$U$43,MATCH($B142,'Damage costs'!$C$16:$C$43,0))/1000,BH57*INDEX('Damage costs'!$Y$16:$Y$43,MATCH($B142,'Damage costs'!$C$16:$C$43,0))/1000),\"\")","v":""},{"$f":"IFERROR(IF(OR($C$144=FALSE,LEFT($B142,3)<>\"NOX\"),BI57*INDEX('Damage costs'!$U$16:$U$43,MATCH($B142,'Damage costs'!$C$16:$C$43,0))/1000,BI57*INDEX('Damage costs'!$Y$16:$Y$43,MATCH($B142,'Damage costs'!$C$16:$C$43,0))/1000),\"\")","v":""},{"$f":"IFERROR(IF(OR($C$144=FALSE,LEFT($B142,3)<>\"NOX\"),BJ57*INDEX('Damage costs'!$U$16:$U$43,MATCH($B142,'Damage costs'!$C$16:$C$43,0))/1000,BJ57*INDEX('Damage costs'!$Y$16:$Y$43,MATCH($B142,'Damage costs'!$C$16:$C$43,0))/1000),\"\")","v":""},{"$f":"IFERROR(IF(OR($C$144=FALSE,LEFT($B142,3)<>\"NOX\"),BK57*INDEX('Damage costs'!$U$16:$U$43,MATCH($B142,'Damage costs'!$C$16:$C$43,0))/1000,BK57*INDEX('Damage costs'!$Y$16:$Y$43,MATCH($B142,'Damage costs'!$C$16:$C$43,0))/1000),\"\")","v":""},{"$f":"IFERROR(IF(OR($C$144=FALSE,LEFT($B142,3)<>\"NOX\"),BL57*INDEX('Damage costs'!$U$16:$U$43,MATCH($B142,'Damage costs'!$C$16:$C$43,0))/1000,BL57*INDEX('Damage costs'!$Y$16:$Y$43,MATCH($B142,'Damage costs'!$C$16:$C$43,0))/1000),\"\")","v":""},{"$f":"IFERROR(IF(OR($C$144=FALSE,LEFT($B142,3)<>\"NOX\"),BM57*INDEX('Damage costs'!$U$16:$U$43,MATCH($B142,'Damage costs'!$C$16:$C$43,0))/1000,BM57*INDEX('Damage costs'!$Y$16:$Y$43,MATCH($B142,'Damage costs'!$C$16:$C$43,0))/1000),\"\")","v":""},{"$f":"IFERROR(IF(OR($C$144=FALSE,LEFT($B142,3)<>\"NOX\"),BN57*INDEX('Damage costs'!$U$16:$U$43,MATCH($B142,'Damage costs'!$C$16:$C$43,0))/1000,BN57*INDEX('Damage costs'!$Y$16:$Y$43,MATCH($B142,'Damage costs'!$C$16:$C$43,0))/1000),\"\")","v":""},{"$f":"IFERROR(IF(OR($C$144=FALSE,LEFT($B142,3)<>\"NOX\"),BO57*INDEX('Damage costs'!$U$16:$U$43,MATCH($B142,'Damage costs'!$C$16:$C$43,0))/1000,BO57*INDEX('Damage costs'!$Y$16:$Y$43,MATCH($B142,'Damage costs'!$C$16:$C$43,0))/1000),\"\")","v":""},{"$f":"IFERROR(IF(OR($C$144=FALSE,LEFT($B142,3)<>\"NOX\"),BP57*INDEX('Damage costs'!$U$16:$U$43,MATCH($B142,'Damage costs'!$C$16:$C$43,0))/1000,BP57*INDEX('Damage costs'!$Y$16:$Y$43,MATCH($B142,'Damage costs'!$C$16:$C$43,0))/1000),\"\")","v":""},{"$f":"IFERROR(IF(OR($C$144=FALSE,LEFT($B142,3)<>\"NOX\"),BQ57*INDEX('Damage costs'!$U$16:$U$43,MATCH($B142,'Damage costs'!$C$16:$C$43,0))/1000,BQ57*INDEX('Damage costs'!$Y$16:$Y$43,MATCH($B142,'Damage costs'!$C$16:$C$43,0))/1000),\"\")","v":""},{"$f":"IFERROR(IF(OR($C$144=FALSE,LEFT($B142,3)<>\"NOX\"),BR57*INDEX('Damage costs'!$U$16:$U$43,MATCH($B142,'Damage costs'!$C$16:$C$43,0))/1000,BR57*INDEX('Damage costs'!$Y$16:$Y$43,MATCH($B142,'Damage costs'!$C$16:$C$43,0))/1000),\"\")","v":""},{"$f":"IFERROR(IF(OR($C$144=FALSE,LEFT($B142,3)<>\"NOX\"),BS57*INDEX('Damage costs'!$U$16:$U$43,MATCH($B142,'Damage costs'!$C$16:$C$43,0))/1000,BS57*INDEX('Damage costs'!$Y$16:$Y$43,MATCH($B142,'Damage costs'!$C$16:$C$43,0))/1000),\"\")","v":""},{"$f":"IFERROR(IF(OR($C$144=FALSE,LEFT($B142,3)<>\"NOX\"),BT57*INDEX('Damage costs'!$U$16:$U$43,MATCH($B142,'Damage costs'!$C$16:$C$43,0))/1000,BT57*INDEX('Damage costs'!$Y$16:$Y$43,MATCH($B142,'Damage costs'!$C$16:$C$43,0))/1000),\"\")","v":""},{"$f":"IFERROR(IF(OR($C$144=FALSE,LEFT($B142,3)<>\"NOX\"),BU57*INDEX('Damage costs'!$U$16:$U$43,MATCH($B142,'Damage costs'!$C$16:$C$43,0))/1000,BU57*INDEX('Damage costs'!$Y$16:$Y$43,MATCH($B142,'Damage costs'!$C$16:$C$43,0))/1000),\"\")","v":""},{"$f":"IFERROR(IF(OR($C$144=FALSE,LEFT($B142,3)<>\"NOX\"),BV57*INDEX('Damage costs'!$U$16:$U$43,MATCH($B142,'Damage costs'!$C$16:$C$43,0))/1000,BV57*INDEX('Damage costs'!$Y$16:$Y$43,MATCH($B142,'Damage costs'!$C$16:$C$43,0))/1000),\"\")","v":""},{"$f":"IFERROR(IF(OR($C$144=FALSE,LEFT($B142,3)<>\"NOX\"),BW57*INDEX('Damage costs'!$U$16:$U$43,MATCH($B142,'Damage costs'!$C$16:$C$43,0))/1000,BW57*INDEX('Damage costs'!$Y$16:$Y$43,MATCH($B142,'Damage costs'!$C$16:$C$43,0))/1000),\"\")","v":""},{"$f":"IFERROR(IF(OR($C$144=FALSE,LEFT($B142,3)<>\"NOX\"),BX57*INDEX('Damage costs'!$U$16:$U$43,MATCH($B142,'Damage costs'!$C$16:$C$43,0))/1000,BX57*INDEX('Damage costs'!$Y$16:$Y$43,MATCH($B142,'Damage costs'!$C$16:$C$43,0))/1000),\"\")","v":""},{"$f":"IFERROR(IF(OR($C$144=FALSE,LEFT($B142,3)<>\"NOX\"),BY57*INDEX('Damage costs'!$U$16:$U$43,MATCH($B142,'Damage costs'!$C$16:$C$43,0))/1000,BY57*INDEX('Damage costs'!$Y$16:$Y$43,MATCH($B142,'Damage costs'!$C$16:$C$43,0))/1000),\"\")","v":""},{"$f":"IFERROR(IF(OR($C$144=FALSE,LEFT($B142,3)<>\"NOX\"),BZ57*INDEX('Damage costs'!$U$16:$U$43,MATCH($B142,'Damage costs'!$C$16:$C$43,0))/1000,BZ57*INDEX('Damage costs'!$Y$16:$Y$43,MATCH($B142,'Damage costs'!$C$16:$C$43,0))/1000),\"\")","v":""},{"$f":"IFERROR(IF(OR($C$144=FALSE,LEFT($B142,3)<>\"NOX\"),CA57*INDEX('Damage costs'!$U$16:$U$43,MATCH($B142,'Damage costs'!$C$16:$C$43,0))/1000,CA57*INDEX('Damage costs'!$Y$16:$Y$43,MATCH($B142,'Damage costs'!$C$16:$C$43,0))/1000),\"\")","v":""},{"$f":"IFERROR(IF(OR($C$144=FALSE,LEFT($B142,3)<>\"NOX\"),CB57*INDEX('Damage costs'!$U$16:$U$43,MATCH($B142,'Damage costs'!$C$16:$C$43,0))/1000,CB57*INDEX('Damage costs'!$Y$16:$Y$43,MATCH($B142,'Damage costs'!$C$16:$C$43,0))/1000),\"\")","v":""},{"$f":"IFERROR(IF(OR($C$144=FALSE,LEFT($B142,3)<>\"NOX\"),CC57*INDEX('Damage costs'!$U$16:$U$43,MATCH($B142,'Damage costs'!$C$16:$C$43,0))/1000,CC57*INDEX('Damage costs'!$Y$16:$Y$43,MATCH($B142,'Damage costs'!$C$16:$C$43,0))/1000),\"\")","v":""},{"$f":"IFERROR(IF(OR($C$144=FALSE,LEFT($B142,3)<>\"NOX\"),CD57*INDEX('Damage costs'!$U$16:$U$43,MATCH($B142,'Damage costs'!$C$16:$C$43,0))/1000,CD57*INDEX('Damage costs'!$Y$16:$Y$43,MATCH($B142,'Damage costs'!$C$16:$C$43,0))/1000),\"\")","v":""},{"$f":"IFERROR(IF(OR($C$144=FALSE,LEFT($B142,3)<>\"NOX\"),CE57*INDEX('Damage costs'!$U$16:$U$43,MATCH($B142,'Damage costs'!$C$16:$C$43,0))/1000,CE57*INDEX('Damage costs'!$Y$16:$Y$43,MATCH($B142,'Damage costs'!$C$16:$C$43,0))/1000),\"\")","v":""},{"$f":"IFERROR(IF(OR($C$144=FALSE,LEFT($B142,3)<>\"NOX\"),CF57*INDEX('Damage costs'!$U$16:$U$43,MATCH($B142,'Damage costs'!$C$16:$C$43,0))/1000,CF57*INDEX('Damage costs'!$Y$16:$Y$43,MATCH($B142,'Damage costs'!$C$16:$C$43,0))/1000),\"\")","v":""},{"$f":"IFERROR(IF(OR($C$144=FALSE,LEFT($B142,3)<>\"NOX\"),CG57*INDEX('Damage costs'!$U$16:$U$43,MATCH($B142,'Damage costs'!$C$16:$C$43,0))/1000,CG57*INDEX('Damage costs'!$Y$16:$Y$43,MATCH($B142,'Damage costs'!$C$16:$C$43,0))/1000),\"\")","v":""},{"$f":"IFERROR(IF(OR($C$144=FALSE,LEFT($B142,3)<>\"NOX\"),CH57*INDEX('Damage costs'!$U$16:$U$43,MATCH($B142,'Damage costs'!$C$16:$C$43,0))/1000,CH57*INDEX('Damage costs'!$Y$16:$Y$43,MATCH($B142,'Damage costs'!$C$16:$C$43,0))/1000),\"\")","v":""},{"$f":"IFERROR(IF(OR($C$144=FALSE,LEFT($B142,3)<>\"NOX\"),CI57*INDEX('Damage costs'!$U$16:$U$43,MATCH($B142,'Damage costs'!$C$16:$C$43,0))/1000,CI57*INDEX('Damage costs'!$Y$16:$Y$43,MATCH($B142,'Damage costs'!$C$16:$C$43,0))/1000),\"\")","v":""},{"$f":"IFERROR(IF(OR($C$144=FALSE,LEFT($B142,3)<>\"NOX\"),CJ57*INDEX('Damage costs'!$U$16:$U$43,MATCH($B142,'Damage costs'!$C$16:$C$43,0))/1000,CJ57*INDEX('Damage costs'!$Y$16:$Y$43,MATCH($B142,'Damage costs'!$C$16:$C$43,0))/1000),\"\")","v":""},{"$f":"IFERROR(IF(OR($C$144=FALSE,LEFT($B142,3)<>\"NOX\"),CK57*INDEX('Damage costs'!$U$16:$U$43,MATCH($B142,'Damage costs'!$C$16:$C$43,0))/1000,CK57*INDEX('Damage costs'!$Y$16:$Y$43,MATCH($B142,'Damage costs'!$C$16:$C$43,0))/1000),\"\")","v":""},{"$f":"IFERROR(IF(OR($C$144=FALSE,LEFT($B142,3)<>\"NOX\"),CL57*INDEX('Damage costs'!$U$16:$U$43,MATCH($B142,'Damage costs'!$C$16:$C$43,0))/1000,CL57*INDEX('Damage costs'!$Y$16:$Y$43,MATCH($B142,'Damage costs'!$C$16:$C$43,0))/1000),\"\")","v":""},{"$f":"IFERROR(IF(OR($C$144=FALSE,LEFT($B142,3)<>\"NOX\"),CM57*INDEX('Damage costs'!$U$16:$U$43,MATCH($B142,'Damage costs'!$C$16:$C$43,0))/1000,CM57*INDEX('Damage costs'!$Y$16:$Y$43,MATCH($B142,'Damage costs'!$C$16:$C$43,0))/1000),\"\")","v":""},{"$f":"IFERROR(IF(OR($C$144=FALSE,LEFT($B142,3)<>\"NOX\"),CN57*INDEX('Damage costs'!$U$16:$U$43,MATCH($B142,'Damage costs'!$C$16:$C$43,0))/1000,CN57*INDEX('Damage costs'!$Y$16:$Y$43,MATCH($B142,'Damage costs'!$C$16:$C$43,0))/1000),\"\")","v":""},{"$f":"IFERROR(IF(OR($C$144=FALSE,LEFT($B142,3)<>\"NOX\"),CO57*INDEX('Damage costs'!$U$16:$U$43,MATCH($B142,'Damage costs'!$C$16:$C$43,0))/1000,CO57*INDEX('Damage costs'!$Y$16:$Y$43,MATCH($B142,'Damage costs'!$C$16:$C$43,0))/1000),\"\")","v":""},{"$f":"IFERROR(IF(OR($C$144=FALSE,LEFT($B142,3)<>\"NOX\"),CP57*INDEX('Damage costs'!$U$16:$U$43,MATCH($B142,'Damage costs'!$C$16:$C$43,0))/1000,CP57*INDEX('Damage costs'!$Y$16:$Y$43,MATCH($B142,'Damage costs'!$C$16:$C$43,0))/1000),\"\")","v":""},{"$f":"IFERROR(IF(OR($C$144=FALSE,LEFT($B142,3)<>\"NOX\"),CQ57*INDEX('Damage costs'!$U$16:$U$43,MATCH($B142,'Damage costs'!$C$16:$C$43,0))/1000,CQ57*INDEX('Damage costs'!$Y$16:$Y$43,MATCH($B142,'Damage costs'!$C$16:$C$43,0))/1000),\"\")","v":""},{"$f":"IFERROR(IF(OR($C$144=FALSE,LEFT($B142,3)<>\"NOX\"),CR57*INDEX('Damage costs'!$U$16:$U$43,MATCH($B142,'Damage costs'!$C$16:$C$43,0))/1000,CR57*INDEX('Damage costs'!$Y$16:$Y$43,MATCH($B142,'Damage costs'!$C$16:$C$43,0))/1000),\"\")","v":""},{"$f":"IFERROR(IF(OR($C$144=FALSE,LEFT($B142,3)<>\"NOX\"),CS57*INDEX('Damage costs'!$U$16:$U$43,MATCH($B142,'Damage costs'!$C$16:$C$43,0))/1000,CS57*INDEX('Damage costs'!$Y$16:$Y$43,MATCH($B142,'Damage costs'!$C$16:$C$43,0))/1000),\"\")","v":""},{"$f":"IFERROR(IF(OR($C$144=FALSE,LEFT($B142,3)<>\"NOX\"),CT57*INDEX('Damage costs'!$U$16:$U$43,MATCH($B142,'Damage costs'!$C$16:$C$43,0))/1000,CT57*INDEX('Damage costs'!$Y$16:$Y$43,MATCH($B142,'Damage costs'!$C$16:$C$43,0))/1000),\"\")","v":""},{"$f":"IFERROR(IF(OR($C$144=FALSE,LEFT($B142,3)<>\"NOX\"),CU57*INDEX('Damage costs'!$U$16:$U$43,MATCH($B142,'Damage costs'!$C$16:$C$43,0))/1000,CU57*INDEX('Damage costs'!$Y$16:$Y$43,MATCH($B142,'Damage costs'!$C$16:$C$43,0))/1000),\"\")","v":""},{"$f":"IFERROR(IF(OR($C$144=FALSE,LEFT($B142,3)<>\"NOX\"),CV57*INDEX('Damage costs'!$U$16:$U$43,MATCH($B142,'Damage costs'!$C$16:$C$43,0))/1000,CV57*INDEX('Damage costs'!$Y$16:$Y$43,MATCH($B142,'Damage costs'!$C$16:$C$43,0))/1000),\"\")","v":""},{"$f":"IFERROR(IF(OR($C$144=FALSE,LEFT($B142,3)<>\"NOX\"),CW57*INDEX('Damage costs'!$U$16:$U$43,MATCH($B142,'Damage costs'!$C$16:$C$43,0))/1000,CW57*INDEX('Damage costs'!$Y$16:$Y$43,MATCH($B142,'Damage costs'!$C$16:$C$43,0))/1000),\"\")","v":""},{"$f":"IFERROR(IF(OR($C$144=FALSE,LEFT($B142,3)<>\"NOX\"),CX57*INDEX('Damage costs'!$U$16:$U$43,MATCH($B142,'Damage costs'!$C$16:$C$43,0))/1000,CX57*INDEX('Damage costs'!$Y$16:$Y$43,MATCH($B142,'Damage costs'!$C$16:$C$43,0))/1000),\"\")","v":""},{"$f":"IFERROR(IF(OR($C$144=FALSE,LEFT($B142,3)<>\"NOX\"),CY57*INDEX('Damage costs'!$U$16:$U$43,MATCH($B142,'Damage costs'!$C$16:$C$43,0))/1000,CY57*INDEX('Damage costs'!$Y$16:$Y$43,MATCH($B142,'Damage costs'!$C$16:$C$43,0))/1000),\"\")","v":""}]
[null,0,"£000's",{"$f":"IFERROR(IF(OR($C$144=FALSE,LEFT($B143,3)<>\"NOX\"),D58*INDEX('Damage costs'!$U$16:$U$43,MATCH($B143,'Damage costs'!$C$16:$C$43,0))/1000,D58*INDEX('Damage costs'!$Y$16:$Y$43,MATCH($B143,'Damage costs'!$C$16:$C$43,0))/1000),\"\")","v":""},{"$f":"IFERROR(IF(OR($C$144=FALSE,LEFT($B143,3)<>\"NOX\"),E58*INDEX('Damage costs'!$U$16:$U$43,MATCH($B143,'Damage costs'!$C$16:$C$43,0))/1000,E58*INDEX('Damage costs'!$Y$16:$Y$43,MATCH($B143,'Damage costs'!$C$16:$C$43,0))/1000),\"\")","v":""},{"$f":"IFERROR(IF(OR($C$144=FALSE,LEFT($B143,3)<>\"NOX\"),F58*INDEX('Damage costs'!$U$16:$U$43,MATCH($B143,'Damage costs'!$C$16:$C$43,0))/1000,F58*INDEX('Damage costs'!$Y$16:$Y$43,MATCH($B143,'Damage costs'!$C$16:$C$43,0))/1000),\"\")","v":""},{"$f":"IFERROR(IF(OR($C$144=FALSE,LEFT($B143,3)<>\"NOX\"),G58*INDEX('Damage costs'!$U$16:$U$43,MATCH($B143,'Damage costs'!$C$16:$C$43,0))/1000,G58*INDEX('Damage costs'!$Y$16:$Y$43,MATCH($B143,'Damage costs'!$C$16:$C$43,0))/1000),\"\")","v":""},{"$f":"IFERROR(IF(OR($C$144=FALSE,LEFT($B143,3)<>\"NOX\"),H58*INDEX('Damage costs'!$U$16:$U$43,MATCH($B143,'Damage costs'!$C$16:$C$43,0))/1000,H58*INDEX('Damage costs'!$Y$16:$Y$43,MATCH($B143,'Damage costs'!$C$16:$C$43,0))/1000),\"\")","v":""},{"$f":"IFERROR(IF(OR($C$144=FALSE,LEFT($B143,3)<>\"NOX\"),I58*INDEX('Damage costs'!$U$16:$U$43,MATCH($B143,'Damage costs'!$C$16:$C$43,0))/1000,I58*INDEX('Damage costs'!$Y$16:$Y$43,MATCH($B143,'Damage costs'!$C$16:$C$43,0))/1000),\"\")","v":""},{"$f":"IFERROR(IF(OR($C$144=FALSE,LEFT($B143,3)<>\"NOX\"),J58*INDEX('Damage costs'!$U$16:$U$43,MATCH($B143,'Damage costs'!$C$16:$C$43,0))/1000,J58*INDEX('Damage costs'!$Y$16:$Y$43,MATCH($B143,'Damage costs'!$C$16:$C$43,0))/1000),\"\")","v":""},{"$f":"IFERROR(IF(OR($C$144=FALSE,LEFT($B143,3)<>\"NOX\"),K58*INDEX('Damage costs'!$U$16:$U$43,MATCH($B143,'Damage costs'!$C$16:$C$43,0))/1000,K58*INDEX('Damage costs'!$Y$16:$Y$43,MATCH($B143,'Damage costs'!$C$16:$C$43,0))/1000),\"\")","v":""},{"$f":"IFERROR(IF(OR($C$144=FALSE,LEFT($B143,3)<>\"NOX\"),L58*INDEX('Damage costs'!$U$16:$U$43,MATCH($B143,'Damage costs'!$C$16:$C$43,0))/1000,L58*INDEX('Damage costs'!$Y$16:$Y$43,MATCH($B143,'Damage costs'!$C$16:$C$43,0))/1000),\"\")","v":""},{"$f":"IFERROR(IF(OR($C$144=FALSE,LEFT($B143,3)<>\"NOX\"),M58*INDEX('Damage costs'!$U$16:$U$43,MATCH($B143,'Damage costs'!$C$16:$C$43,0))/1000,M58*INDEX('Damage costs'!$Y$16:$Y$43,MATCH($B143,'Damage costs'!$C$16:$C$43,0))/1000),\"\")","v":""},{"$f":"IFERROR(IF(OR($C$144=FALSE,LEFT($B143,3)<>\"NOX\"),N58*INDEX('Damage costs'!$U$16:$U$43,MATCH($B143,'Damage costs'!$C$16:$C$43,0))/1000,N58*INDEX('Damage costs'!$Y$16:$Y$43,MATCH($B143,'Damage costs'!$C$16:$C$43,0))/1000),\"\")","v":""},{"$f":"IFERROR(IF(OR($C$144=FALSE,LEFT($B143,3)<>\"NOX\"),O58*INDEX('Damage costs'!$U$16:$U$43,MATCH($B143,'Damage costs'!$C$16:$C$43,0))/1000,O58*INDEX('Damage costs'!$Y$16:$Y$43,MATCH($B143,'Damage costs'!$C$16:$C$43,0))/1000),\"\")","v":""},{"$f":"IFERROR(IF(OR($C$144=FALSE,LEFT($B143,3)<>\"NOX\"),P58*INDEX('Damage costs'!$U$16:$U$43,MATCH($B143,'Damage costs'!$C$16:$C$43,0))/1000,P58*INDEX('Damage costs'!$Y$16:$Y$43,MATCH($B143,'Damage costs'!$C$16:$C$43,0))/1000),\"\")","v":""},{"$f":"IFERROR(IF(OR($C$144=FALSE,LEFT($B143,3)<>\"NOX\"),Q58*INDEX('Damage costs'!$U$16:$U$43,MATCH($B143,'Damage costs'!$C$16:$C$43,0))/1000,Q58*INDEX('Damage costs'!$Y$16:$Y$43,MATCH($B143,'Damage costs'!$C$16:$C$43,0))/1000),\"\")","v":""},{"$f":"IFERROR(IF(OR($C$144=FALSE,LEFT($B143,3)<>\"NOX\"),R58*INDEX('Damage costs'!$U$16:$U$43,MATCH($B143,'Damage costs'!$C$16:$C$43,0))/1000,R58*INDEX('Damage costs'!$Y$16:$Y$43,MATCH($B143,'Damage costs'!$C$16:$C$43,0))/1000),\"\")","v":""},{"$f":"IFERROR(IF(OR($C$144=FALSE,LEFT($B143,3)<>\"NOX\"),S58*INDEX('Damage costs'!$U$16:$U$43,MATCH($B143,'Damage costs'!$C$16:$C$43,0))/1000,S58*INDEX('Damage costs'!$Y$16:$Y$43,MATCH($B143,'Damage costs'!$C$16:$C$43,0))/1000),\"\")","v":""},{"$f":"IFERROR(IF(OR($C$144=FALSE,LEFT($B143,3)<>\"NOX\"),T58*INDEX('Damage costs'!$U$16:$U$43,MATCH($B143,'Damage costs'!$C$16:$C$43,0))/1000,T58*INDEX('Damage costs'!$Y$16:$Y$43,MATCH($B143,'Damage costs'!$C$16:$C$43,0))/1000),\"\")","v":""},{"$f":"IFERROR(IF(OR($C$144=FALSE,LEFT($B143,3)<>\"NOX\"),U58*INDEX('Damage costs'!$U$16:$U$43,MATCH($B143,'Damage costs'!$C$16:$C$43,0))/1000,U58*INDEX('Damage costs'!$Y$16:$Y$43,MATCH($B143,'Damage costs'!$C$16:$C$43,0))/1000),\"\")","v":""},{"$f":"IFERROR(IF(OR($C$144=FALSE,LEFT($B143,3)<>\"NOX\"),V58*INDEX('Damage costs'!$U$16:$U$43,MATCH($B143,'Damage costs'!$C$16:$C$43,0))/1000,V58*INDEX('Damage costs'!$Y$16:$Y$43,MATCH($B143,'Damage costs'!$C$16:$C$43,0))/1000),\"\")","v":""},{"$f":"IFERROR(IF(OR($C$144=FALSE,LEFT($B143,3)<>\"NOX\"),W58*INDEX('Damage costs'!$U$16:$U$43,MATCH($B143,'Damage costs'!$C$16:$C$43,0))/1000,W58*INDEX('Damage costs'!$Y$16:$Y$43,MATCH($B143,'Damage costs'!$C$16:$C$43,0))/1000),\"\")","v":""},{"$f":"IFERROR(IF(OR($C$144=FALSE,LEFT($B143,3)<>\"NOX\"),X58*INDEX('Damage costs'!$U$16:$U$43,MATCH($B143,'Damage costs'!$C$16:$C$43,0))/1000,X58*INDEX('Damage costs'!$Y$16:$Y$43,MATCH($B143,'Damage costs'!$C$16:$C$43,0))/1000),\"\")","v":""},{"$f":"IFERROR(IF(OR($C$144=FALSE,LEFT($B143,3)<>\"NOX\"),Y58*INDEX('Damage costs'!$U$16:$U$43,MATCH($B143,'Damage costs'!$C$16:$C$43,0))/1000,Y58*INDEX('Damage costs'!$Y$16:$Y$43,MATCH($B143,'Damage costs'!$C$16:$C$43,0))/1000),\"\")","v":""},{"$f":"IFERROR(IF(OR($C$144=FALSE,LEFT($B143,3)<>\"NOX\"),Z58*INDEX('Damage costs'!$U$16:$U$43,MATCH($B143,'Damage costs'!$C$16:$C$43,0))/1000,Z58*INDEX('Damage costs'!$Y$16:$Y$43,MATCH($B143,'Damage costs'!$C$16:$C$43,0))/1000),\"\")","v":""},{"$f":"IFERROR(IF(OR($C$144=FALSE,LEFT($B143,3)<>\"NOX\"),AA58*INDEX('Damage costs'!$U$16:$U$43,MATCH($B143,'Damage costs'!$C$16:$C$43,0))/1000,AA58*INDEX('Damage costs'!$Y$16:$Y$43,MATCH($B143,'Damage costs'!$C$16:$C$43,0))/1000),\"\")","v":""},{"$f":"IFERROR(IF(OR($C$144=FALSE,LEFT($B143,3)<>\"NOX\"),AB58*INDEX('Damage costs'!$U$16:$U$43,MATCH($B143,'Damage costs'!$C$16:$C$43,0))/1000,AB58*INDEX('Damage costs'!$Y$16:$Y$43,MATCH($B143,'Damage costs'!$C$16:$C$43,0))/1000),\"\")","v":""},{"$f":"IFERROR(IF(OR($C$144=FALSE,LEFT($B143,3)<>\"NOX\"),AC58*INDEX('Damage costs'!$U$16:$U$43,MATCH($B143,'Damage costs'!$C$16:$C$43,0))/1000,AC58*INDEX('Damage costs'!$Y$16:$Y$43,MATCH($B143,'Damage costs'!$C$16:$C$43,0))/1000),\"\")","v":""},{"$f":"IFERROR(IF(OR($C$144=FALSE,LEFT($B143,3)<>\"NOX\"),AD58*INDEX('Damage costs'!$U$16:$U$43,MATCH($B143,'Damage costs'!$C$16:$C$43,0))/1000,AD58*INDEX('Damage costs'!$Y$16:$Y$43,MATCH($B143,'Damage costs'!$C$16:$C$43,0))/1000),\"\")","v":""},{"$f":"IFERROR(IF(OR($C$144=FALSE,LEFT($B143,3)<>\"NOX\"),AE58*INDEX('Damage costs'!$U$16:$U$43,MATCH($B143,'Damage costs'!$C$16:$C$43,0))/1000,AE58*INDEX('Damage costs'!$Y$16:$Y$43,MATCH($B143,'Damage costs'!$C$16:$C$43,0))/1000),\"\")","v":""},{"$f":"IFERROR(IF(OR($C$144=FALSE,LEFT($B143,3)<>\"NOX\"),AF58*INDEX('Damage costs'!$U$16:$U$43,MATCH($B143,'Damage costs'!$C$16:$C$43,0))/1000,AF58*INDEX('Damage costs'!$Y$16:$Y$43,MATCH($B143,'Damage costs'!$C$16:$C$43,0))/1000),\"\")","v":""},{"$f":"IFERROR(IF(OR($C$144=FALSE,LEFT($B143,3)<>\"NOX\"),AG58*INDEX('Damage costs'!$U$16:$U$43,MATCH($B143,'Damage costs'!$C$16:$C$43,0))/1000,AG58*INDEX('Damage costs'!$Y$16:$Y$43,MATCH($B143,'Damage costs'!$C$16:$C$43,0))/1000),\"\")","v":""},{"$f":"IFERROR(IF(OR($C$144=FALSE,LEFT($B143,3)<>\"NOX\"),AH58*INDEX('Damage costs'!$U$16:$U$43,MATCH($B143,'Damage costs'!$C$16:$C$43,0))/1000,AH58*INDEX('Damage costs'!$Y$16:$Y$43,MATCH($B143,'Damage costs'!$C$16:$C$43,0))/1000),\"\")","v":""},{"$f":"IFERROR(IF(OR($C$144=FALSE,LEFT($B143,3)<>\"NOX\"),AI58*INDEX('Damage costs'!$U$16:$U$43,MATCH($B143,'Damage costs'!$C$16:$C$43,0))/1000,AI58*INDEX('Damage costs'!$Y$16:$Y$43,MATCH($B143,'Damage costs'!$C$16:$C$43,0))/1000),\"\")","v":""},{"$f":"IFERROR(IF(OR($C$144=FALSE,LEFT($B143,3)<>\"NOX\"),AJ58*INDEX('Damage costs'!$U$16:$U$43,MATCH($B143,'Damage costs'!$C$16:$C$43,0))/1000,AJ58*INDEX('Damage costs'!$Y$16:$Y$43,MATCH($B143,'Damage costs'!$C$16:$C$43,0))/1000),\"\")","v":""},{"$f":"IFERROR(IF(OR($C$144=FALSE,LEFT($B143,3)<>\"NOX\"),AK58*INDEX('Damage costs'!$U$16:$U$43,MATCH($B143,'Damage costs'!$C$16:$C$43,0))/1000,AK58*INDEX('Damage costs'!$Y$16:$Y$43,MATCH($B143,'Damage costs'!$C$16:$C$43,0))/1000),\"\")","v":""},{"$f":"IFERROR(IF(OR($C$144=FALSE,LEFT($B143,3)<>\"NOX\"),AL58*INDEX('Damage costs'!$U$16:$U$43,MATCH($B143,'Damage costs'!$C$16:$C$43,0))/1000,AL58*INDEX('Damage costs'!$Y$16:$Y$43,MATCH($B143,'Damage costs'!$C$16:$C$43,0))/1000),\"\")","v":""},{"$f":"IFERROR(IF(OR($C$144=FALSE,LEFT($B143,3)<>\"NOX\"),AM58*INDEX('Damage costs'!$U$16:$U$43,MATCH($B143,'Damage costs'!$C$16:$C$43,0))/1000,AM58*INDEX('Damage costs'!$Y$16:$Y$43,MATCH($B143,'Damage costs'!$C$16:$C$43,0))/1000),\"\")","v":""},{"$f":"IFERROR(IF(OR($C$144=FALSE,LEFT($B143,3)<>\"NOX\"),AN58*INDEX('Damage costs'!$U$16:$U$43,MATCH($B143,'Damage costs'!$C$16:$C$43,0))/1000,AN58*INDEX('Damage costs'!$Y$16:$Y$43,MATCH($B143,'Damage costs'!$C$16:$C$43,0))/1000),\"\")","v":""},{"$f":"IFERROR(IF(OR($C$144=FALSE,LEFT($B143,3)<>\"NOX\"),AO58*INDEX('Damage costs'!$U$16:$U$43,MATCH($B143,'Damage costs'!$C$16:$C$43,0))/1000,AO58*INDEX('Damage costs'!$Y$16:$Y$43,MATCH($B143,'Damage costs'!$C$16:$C$43,0))/1000),\"\")","v":""},{"$f":"IFERROR(IF(OR($C$144=FALSE,LEFT($B143,3)<>\"NOX\"),AP58*INDEX('Damage costs'!$U$16:$U$43,MATCH($B143,'Damage costs'!$C$16:$C$43,0))/1000,AP58*INDEX('Damage costs'!$Y$16:$Y$43,MATCH($B143,'Damage costs'!$C$16:$C$43,0))/1000),\"\")","v":""},{"$f":"IFERROR(IF(OR($C$144=FALSE,LEFT($B143,3)<>\"NOX\"),AQ58*INDEX('Damage costs'!$U$16:$U$43,MATCH($B143,'Damage costs'!$C$16:$C$43,0))/1000,AQ58*INDEX('Damage costs'!$Y$16:$Y$43,MATCH($B143,'Damage costs'!$C$16:$C$43,0))/1000),\"\")","v":""},{"$f":"IFERROR(IF(OR($C$144=FALSE,LEFT($B143,3)<>\"NOX\"),AR58*INDEX('Damage costs'!$U$16:$U$43,MATCH($B143,'Damage costs'!$C$16:$C$43,0))/1000,AR58*INDEX('Damage costs'!$Y$16:$Y$43,MATCH($B143,'Damage costs'!$C$16:$C$43,0))/1000),\"\")","v":""},{"$f":"IFERROR(IF(OR($C$144=FALSE,LEFT($B143,3)<>\"NOX\"),AS58*INDEX('Damage costs'!$U$16:$U$43,MATCH($B143,'Damage costs'!$C$16:$C$43,0))/1000,AS58*INDEX('Damage costs'!$Y$16:$Y$43,MATCH($B143,'Damage costs'!$C$16:$C$43,0))/1000),\"\")","v":""},{"$f":"IFERROR(IF(OR($C$144=FALSE,LEFT($B143,3)<>\"NOX\"),AT58*INDEX('Damage costs'!$U$16:$U$43,MATCH($B143,'Damage costs'!$C$16:$C$43,0))/1000,AT58*INDEX('Damage costs'!$Y$16:$Y$43,MATCH($B143,'Damage costs'!$C$16:$C$43,0))/1000),\"\")","v":""},{"$f":"IFERROR(IF(OR($C$144=FALSE,LEFT($B143,3)<>\"NOX\"),AU58*INDEX('Damage costs'!$U$16:$U$43,MATCH($B143,'Damage costs'!$C$16:$C$43,0))/1000,AU58*INDEX('Damage costs'!$Y$16:$Y$43,MATCH($B143,'Damage costs'!$C$16:$C$43,0))/1000),\"\")","v":""},{"$f":"IFERROR(IF(OR($C$144=FALSE,LEFT($B143,3)<>\"NOX\"),AV58*INDEX('Damage costs'!$U$16:$U$43,MATCH($B143,'Damage costs'!$C$16:$C$43,0))/1000,AV58*INDEX('Damage costs'!$Y$16:$Y$43,MATCH($B143,'Damage costs'!$C$16:$C$43,0))/1000),\"\")","v":""},{"$f":"IFERROR(IF(OR($C$144=FALSE,LEFT($B143,3)<>\"NOX\"),AW58*INDEX('Damage costs'!$U$16:$U$43,MATCH($B143,'Damage costs'!$C$16:$C$43,0))/1000,AW58*INDEX('Damage costs'!$Y$16:$Y$43,MATCH($B143,'Damage costs'!$C$16:$C$43,0))/1000),\"\")","v":""},{"$f":"IFERROR(IF(OR($C$144=FALSE,LEFT($B143,3)<>\"NOX\"),AX58*INDEX('Damage costs'!$U$16:$U$43,MATCH($B143,'Damage costs'!$C$16:$C$43,0))/1000,AX58*INDEX('Damage costs'!$Y$16:$Y$43,MATCH($B143,'Damage costs'!$C$16:$C$43,0))/1000),\"\")","v":""},{"$f":"IFERROR(IF(OR($C$144=FALSE,LEFT($B143,3)<>\"NOX\"),AY58*INDEX('Damage costs'!$U$16:$U$43,MATCH($B143,'Damage costs'!$C$16:$C$43,0))/1000,AY58*INDEX('Damage costs'!$Y$16:$Y$43,MATCH($B143,'Damage costs'!$C$16:$C$43,0))/1000),\"\")","v":""},{"$f":"IFERROR(IF(OR($C$144=FALSE,LEFT($B143,3)<>\"NOX\"),AZ58*INDEX('Damage costs'!$U$16:$U$43,MATCH($B143,'Damage costs'!$C$16:$C$43,0))/1000,AZ58*INDEX('Damage costs'!$Y$16:$Y$43,MATCH($B143,'Damage costs'!$C$16:$C$43,0))/1000),\"\")","v":""},{"$f":"IFERROR(IF(OR($C$144=FALSE,LEFT($B143,3)<>\"NOX\"),BA58*INDEX('Damage costs'!$U$16:$U$43,MATCH($B143,'Damage costs'!$C$16:$C$43,0))/1000,BA58*INDEX('Damage costs'!$Y$16:$Y$43,MATCH($B143,'Damage costs'!$C$16:$C$43,0))/1000),\"\")","v":""},{"$f":"IFERROR(IF(OR($C$144=FALSE,LEFT($B143,3)<>\"NOX\"),BB58*INDEX('Damage costs'!$U$16:$U$43,MATCH($B143,'Damage costs'!$C$16:$C$43,0))/1000,BB58*INDEX('Damage costs'!$Y$16:$Y$43,MATCH($B143,'Damage costs'!$C$16:$C$43,0))/1000),\"\")","v":""},{"$f":"IFERROR(IF(OR($C$144=FALSE,LEFT($B143,3)<>\"NOX\"),BC58*INDEX('Damage costs'!$U$16:$U$43,MATCH($B143,'Damage costs'!$C$16:$C$43,0))/1000,BC58*INDEX('Damage costs'!$Y$16:$Y$43,MATCH($B143,'Damage costs'!$C$16:$C$43,0))/1000),\"\")","v":""},{"$f":"IFERROR(IF(OR($C$144=FALSE,LEFT($B143,3)<>\"NOX\"),BD58*INDEX('Damage costs'!$U$16:$U$43,MATCH($B143,'Damage costs'!$C$16:$C$43,0))/1000,BD58*INDEX('Damage costs'!$Y$16:$Y$43,MATCH($B143,'Damage costs'!$C$16:$C$43,0))/1000),\"\")","v":""},{"$f":"IFERROR(IF(OR($C$144=FALSE,LEFT($B143,3)<>\"NOX\"),BE58*INDEX('Damage costs'!$U$16:$U$43,MATCH($B143,'Damage costs'!$C$16:$C$43,0))/1000,BE58*INDEX('Damage costs'!$Y$16:$Y$43,MATCH($B143,'Damage costs'!$C$16:$C$43,0))/1000),\"\")","v":""},{"$f":"IFERROR(IF(OR($C$144=FALSE,LEFT($B143,3)<>\"NOX\"),BF58*INDEX('Damage costs'!$U$16:$U$43,MATCH($B143,'Damage costs'!$C$16:$C$43,0))/1000,BF58*INDEX('Damage costs'!$Y$16:$Y$43,MATCH($B143,'Damage costs'!$C$16:$C$43,0))/1000),\"\")","v":""},{"$f":"IFERROR(IF(OR($C$144=FALSE,LEFT($B143,3)<>\"NOX\"),BG58*INDEX('Damage costs'!$U$16:$U$43,MATCH($B143,'Damage costs'!$C$16:$C$43,0))/1000,BG58*INDEX('Damage costs'!$Y$16:$Y$43,MATCH($B143,'Damage costs'!$C$16:$C$43,0))/1000),\"\")","v":""},{"$f":"IFERROR(IF(OR($C$144=FALSE,LEFT($B143,3)<>\"NOX\"),BH58*INDEX('Damage costs'!$U$16:$U$43,MATCH($B143,'Damage costs'!$C$16:$C$43,0))/1000,BH58*INDEX('Damage costs'!$Y$16:$Y$43,MATCH($B143,'Damage costs'!$C$16:$C$43,0))/1000),\"\")","v":""},{"$f":"IFERROR(IF(OR($C$144=FALSE,LEFT($B143,3)<>\"NOX\"),BI58*INDEX('Damage costs'!$U$16:$U$43,MATCH($B143,'Damage costs'!$C$16:$C$43,0))/1000,BI58*INDEX('Damage costs'!$Y$16:$Y$43,MATCH($B143,'Damage costs'!$C$16:$C$43,0))/1000),\"\")","v":""},{"$f":"IFERROR(IF(OR($C$144=FALSE,LEFT($B143,3)<>\"NOX\"),BJ58*INDEX('Damage costs'!$U$16:$U$43,MATCH($B143,'Damage costs'!$C$16:$C$43,0))/1000,BJ58*INDEX('Damage costs'!$Y$16:$Y$43,MATCH($B143,'Damage costs'!$C$16:$C$43,0))/1000),\"\")","v":""},{"$f":"IFERROR(IF(OR($C$144=FALSE,LEFT($B143,3)<>\"NOX\"),BK58*INDEX('Damage costs'!$U$16:$U$43,MATCH($B143,'Damage costs'!$C$16:$C$43,0))/1000,BK58*INDEX('Damage costs'!$Y$16:$Y$43,MATCH($B143,'Damage costs'!$C$16:$C$43,0))/1000),\"\")","v":""},{"$f":"IFERROR(IF(OR($C$144=FALSE,LEFT($B143,3)<>\"NOX\"),BL58*INDEX('Damage costs'!$U$16:$U$43,MATCH($B143,'Damage costs'!$C$16:$C$43,0))/1000,BL58*INDEX('Damage costs'!$Y$16:$Y$43,MATCH($B143,'Damage costs'!$C$16:$C$43,0))/1000),\"\")","v":""},{"$f":"IFERROR(IF(OR($C$144=FALSE,LEFT($B143,3)<>\"NOX\"),BM58*INDEX('Damage costs'!$U$16:$U$43,MATCH($B143,'Damage costs'!$C$16:$C$43,0))/1000,BM58*INDEX('Damage costs'!$Y$16:$Y$43,MATCH($B143,'Damage costs'!$C$16:$C$43,0))/1000),\"\")","v":""},{"$f":"IFERROR(IF(OR($C$144=FALSE,LEFT($B143,3)<>\"NOX\"),BN58*INDEX('Damage costs'!$U$16:$U$43,MATCH($B143,'Damage costs'!$C$16:$C$43,0))/1000,BN58*INDEX('Damage costs'!$Y$16:$Y$43,MATCH($B143,'Damage costs'!$C$16:$C$43,0))/1000),\"\")","v":""},{"$f":"IFERROR(IF(OR($C$144=FALSE,LEFT($B143,3)<>\"NOX\"),BO58*INDEX('Damage costs'!$U$16:$U$43,MATCH($B143,'Damage costs'!$C$16:$C$43,0))/1000,BO58*INDEX('Damage costs'!$Y$16:$Y$43,MATCH($B143,'Damage costs'!$C$16:$C$43,0))/1000),\"\")","v":""},{"$f":"IFERROR(IF(OR($C$144=FALSE,LEFT($B143,3)<>\"NOX\"),BP58*INDEX('Damage costs'!$U$16:$U$43,MATCH($B143,'Damage costs'!$C$16:$C$43,0))/1000,BP58*INDEX('Damage costs'!$Y$16:$Y$43,MATCH($B143,'Damage costs'!$C$16:$C$43,0))/1000),\"\")","v":""},{"$f":"IFERROR(IF(OR($C$144=FALSE,LEFT($B143,3)<>\"NOX\"),BQ58*INDEX('Damage costs'!$U$16:$U$43,MATCH($B143,'Damage costs'!$C$16:$C$43,0))/1000,BQ58*INDEX('Damage costs'!$Y$16:$Y$43,MATCH($B143,'Damage costs'!$C$16:$C$43,0))/1000),\"\")","v":""},{"$f":"IFERROR(IF(OR($C$144=FALSE,LEFT($B143,3)<>\"NOX\"),BR58*INDEX('Damage costs'!$U$16:$U$43,MATCH($B143,'Damage costs'!$C$16:$C$43,0))/1000,BR58*INDEX('Damage costs'!$Y$16:$Y$43,MATCH($B143,'Damage costs'!$C$16:$C$43,0))/1000),\"\")","v":""},{"$f":"IFERROR(IF(OR($C$144=FALSE,LEFT($B143,3)<>\"NOX\"),BS58*INDEX('Damage costs'!$U$16:$U$43,MATCH($B143,'Damage costs'!$C$16:$C$43,0))/1000,BS58*INDEX('Damage costs'!$Y$16:$Y$43,MATCH($B143,'Damage costs'!$C$16:$C$43,0))/1000),\"\")","v":""},{"$f":"IFERROR(IF(OR($C$144=FALSE,LEFT($B143,3)<>\"NOX\"),BT58*INDEX('Damage costs'!$U$16:$U$43,MATCH($B143,'Damage costs'!$C$16:$C$43,0))/1000,BT58*INDEX('Damage costs'!$Y$16:$Y$43,MATCH($B143,'Damage costs'!$C$16:$C$43,0))/1000),\"\")","v":""},{"$f":"IFERROR(IF(OR($C$144=FALSE,LEFT($B143,3)<>\"NOX\"),BU58*INDEX('Damage costs'!$U$16:$U$43,MATCH($B143,'Damage costs'!$C$16:$C$43,0))/1000,BU58*INDEX('Damage costs'!$Y$16:$Y$43,MATCH($B143,'Damage costs'!$C$16:$C$43,0))/1000),\"\")","v":""},{"$f":"IFERROR(IF(OR($C$144=FALSE,LEFT($B143,3)<>\"NOX\"),BV58*INDEX('Damage costs'!$U$16:$U$43,MATCH($B143,'Damage costs'!$C$16:$C$43,0))/1000,BV58*INDEX('Damage costs'!$Y$16:$Y$43,MATCH($B143,'Damage costs'!$C$16:$C$43,0))/1000),\"\")","v":""},{"$f":"IFERROR(IF(OR($C$144=FALSE,LEFT($B143,3)<>\"NOX\"),BW58*INDEX('Damage costs'!$U$16:$U$43,MATCH($B143,'Damage costs'!$C$16:$C$43,0))/1000,BW58*INDEX('Damage costs'!$Y$16:$Y$43,MATCH($B143,'Damage costs'!$C$16:$C$43,0))/1000),\"\")","v":""},{"$f":"IFERROR(IF(OR($C$144=FALSE,LEFT($B143,3)<>\"NOX\"),BX58*INDEX('Damage costs'!$U$16:$U$43,MATCH($B143,'Damage costs'!$C$16:$C$43,0))/1000,BX58*INDEX('Damage costs'!$Y$16:$Y$43,MATCH($B143,'Damage costs'!$C$16:$C$43,0))/1000),\"\")","v":""},{"$f":"IFERROR(IF(OR($C$144=FALSE,LEFT($B143,3)<>\"NOX\"),BY58*INDEX('Damage costs'!$U$16:$U$43,MATCH($B143,'Damage costs'!$C$16:$C$43,0))/1000,BY58*INDEX('Damage costs'!$Y$16:$Y$43,MATCH($B143,'Damage costs'!$C$16:$C$43,0))/1000),\"\")","v":""},{"$f":"IFERROR(IF(OR($C$144=FALSE,LEFT($B143,3)<>\"NOX\"),BZ58*INDEX('Damage costs'!$U$16:$U$43,MATCH($B143,'Damage costs'!$C$16:$C$43,0))/1000,BZ58*INDEX('Damage costs'!$Y$16:$Y$43,MATCH($B143,'Damage costs'!$C$16:$C$43,0))/1000),\"\")","v":""},{"$f":"IFERROR(IF(OR($C$144=FALSE,LEFT($B143,3)<>\"NOX\"),CA58*INDEX('Damage costs'!$U$16:$U$43,MATCH($B143,'Damage costs'!$C$16:$C$43,0))/1000,CA58*INDEX('Damage costs'!$Y$16:$Y$43,MATCH($B143,'Damage costs'!$C$16:$C$43,0))/1000),\"\")","v":""},{"$f":"IFERROR(IF(OR($C$144=FALSE,LEFT($B143,3)<>\"NOX\"),CB58*INDEX('Damage costs'!$U$16:$U$43,MATCH($B143,'Damage costs'!$C$16:$C$43,0))/1000,CB58*INDEX('Damage costs'!$Y$16:$Y$43,MATCH($B143,'Damage costs'!$C$16:$C$43,0))/1000),\"\")","v":""},{"$f":"IFERROR(IF(OR($C$144=FALSE,LEFT($B143,3)<>\"NOX\"),CC58*INDEX('Damage costs'!$U$16:$U$43,MATCH($B143,'Damage costs'!$C$16:$C$43,0))/1000,CC58*INDEX('Damage costs'!$Y$16:$Y$43,MATCH($B143,'Damage costs'!$C$16:$C$43,0))/1000),\"\")","v":""},{"$f":"IFERROR(IF(OR($C$144=FALSE,LEFT($B143,3)<>\"NOX\"),CD58*INDEX('Damage costs'!$U$16:$U$43,MATCH($B143,'Damage costs'!$C$16:$C$43,0))/1000,CD58*INDEX('Damage costs'!$Y$16:$Y$43,MATCH($B143,'Damage costs'!$C$16:$C$43,0))/1000),\"\")","v":""},{"$f":"IFERROR(IF(OR($C$144=FALSE,LEFT($B143,3)<>\"NOX\"),CE58*INDEX('Damage costs'!$U$16:$U$43,MATCH($B143,'Damage costs'!$C$16:$C$43,0))/1000,CE58*INDEX('Damage costs'!$Y$16:$Y$43,MATCH($B143,'Damage costs'!$C$16:$C$43,0))/1000),\"\")","v":""},{"$f":"IFERROR(IF(OR($C$144=FALSE,LEFT($B143,3)<>\"NOX\"),CF58*INDEX('Damage costs'!$U$16:$U$43,MATCH($B143,'Damage costs'!$C$16:$C$43,0))/1000,CF58*INDEX('Damage costs'!$Y$16:$Y$43,MATCH($B143,'Damage costs'!$C$16:$C$43,0))/1000),\"\")","v":""},{"$f":"IFERROR(IF(OR($C$144=FALSE,LEFT($B143,3)<>\"NOX\"),CG58*INDEX('Damage costs'!$U$16:$U$43,MATCH($B143,'Damage costs'!$C$16:$C$43,0))/1000,CG58*INDEX('Damage costs'!$Y$16:$Y$43,MATCH($B143,'Damage costs'!$C$16:$C$43,0))/1000),\"\")","v":""},{"$f":"IFERROR(IF(OR($C$144=FALSE,LEFT($B143,3)<>\"NOX\"),CH58*INDEX('Damage costs'!$U$16:$U$43,MATCH($B143,'Damage costs'!$C$16:$C$43,0))/1000,CH58*INDEX('Damage costs'!$Y$16:$Y$43,MATCH($B143,'Damage costs'!$C$16:$C$43,0))/1000),\"\")","v":""},{"$f":"IFERROR(IF(OR($C$144=FALSE,LEFT($B143,3)<>\"NOX\"),CI58*INDEX('Damage costs'!$U$16:$U$43,MATCH($B143,'Damage costs'!$C$16:$C$43,0))/1000,CI58*INDEX('Damage costs'!$Y$16:$Y$43,MATCH($B143,'Damage costs'!$C$16:$C$43,0))/1000),\"\")","v":""},{"$f":"IFERROR(IF(OR($C$144=FALSE,LEFT($B143,3)<>\"NOX\"),CJ58*INDEX('Damage costs'!$U$16:$U$43,MATCH($B143,'Damage costs'!$C$16:$C$43,0))/1000,CJ58*INDEX('Damage costs'!$Y$16:$Y$43,MATCH($B143,'Damage costs'!$C$16:$C$43,0))/1000),\"\")","v":""},{"$f":"IFERROR(IF(OR($C$144=FALSE,LEFT($B143,3)<>\"NOX\"),CK58*INDEX('Damage costs'!$U$16:$U$43,MATCH($B143,'Damage costs'!$C$16:$C$43,0))/1000,CK58*INDEX('Damage costs'!$Y$16:$Y$43,MATCH($B143,'Damage costs'!$C$16:$C$43,0))/1000),\"\")","v":""},{"$f":"IFERROR(IF(OR($C$144=FALSE,LEFT($B143,3)<>\"NOX\"),CL58*INDEX('Damage costs'!$U$16:$U$43,MATCH($B143,'Damage costs'!$C$16:$C$43,0))/1000,CL58*INDEX('Damage costs'!$Y$16:$Y$43,MATCH($B143,'Damage costs'!$C$16:$C$43,0))/1000),\"\")","v":""},{"$f":"IFERROR(IF(OR($C$144=FALSE,LEFT($B143,3)<>\"NOX\"),CM58*INDEX('Damage costs'!$U$16:$U$43,MATCH($B143,'Damage costs'!$C$16:$C$43,0))/1000,CM58*INDEX('Damage costs'!$Y$16:$Y$43,MATCH($B143,'Damage costs'!$C$16:$C$43,0))/1000),\"\")","v":""},{"$f":"IFERROR(IF(OR($C$144=FALSE,LEFT($B143,3)<>\"NOX\"),CN58*INDEX('Damage costs'!$U$16:$U$43,MATCH($B143,'Damage costs'!$C$16:$C$43,0))/1000,CN58*INDEX('Damage costs'!$Y$16:$Y$43,MATCH($B143,'Damage costs'!$C$16:$C$43,0))/1000),\"\")","v":""},{"$f":"IFERROR(IF(OR($C$144=FALSE,LEFT($B143,3)<>\"NOX\"),CO58*INDEX('Damage costs'!$U$16:$U$43,MATCH($B143,'Damage costs'!$C$16:$C$43,0))/1000,CO58*INDEX('Damage costs'!$Y$16:$Y$43,MATCH($B143,'Damage costs'!$C$16:$C$43,0))/1000),\"\")","v":""},{"$f":"IFERROR(IF(OR($C$144=FALSE,LEFT($B143,3)<>\"NOX\"),CP58*INDEX('Damage costs'!$U$16:$U$43,MATCH($B143,'Damage costs'!$C$16:$C$43,0))/1000,CP58*INDEX('Damage costs'!$Y$16:$Y$43,MATCH($B143,'Damage costs'!$C$16:$C$43,0))/1000),\"\")","v":""},{"$f":"IFERROR(IF(OR($C$144=FALSE,LEFT($B143,3)<>\"NOX\"),CQ58*INDEX('Damage costs'!$U$16:$U$43,MATCH($B143,'Damage costs'!$C$16:$C$43,0))/1000,CQ58*INDEX('Damage costs'!$Y$16:$Y$43,MATCH($B143,'Damage costs'!$C$16:$C$43,0))/1000),\"\")","v":""},{"$f":"IFERROR(IF(OR($C$144=FALSE,LEFT($B143,3)<>\"NOX\"),CR58*INDEX('Damage costs'!$U$16:$U$43,MATCH($B143,'Damage costs'!$C$16:$C$43,0))/1000,CR58*INDEX('Damage costs'!$Y$16:$Y$43,MATCH($B143,'Damage costs'!$C$16:$C$43,0))/1000),\"\")","v":""},{"$f":"IFERROR(IF(OR($C$144=FALSE,LEFT($B143,3)<>\"NOX\"),CS58*INDEX('Damage costs'!$U$16:$U$43,MATCH($B143,'Damage costs'!$C$16:$C$43,0))/1000,CS58*INDEX('Damage costs'!$Y$16:$Y$43,MATCH($B143,'Damage costs'!$C$16:$C$43,0))/1000),\"\")","v":""},{"$f":"IFERROR(IF(OR($C$144=FALSE,LEFT($B143,3)<>\"NOX\"),CT58*INDEX('Damage costs'!$U$16:$U$43,MATCH($B143,'Damage costs'!$C$16:$C$43,0))/1000,CT58*INDEX('Damage costs'!$Y$16:$Y$43,MATCH($B143,'Damage costs'!$C$16:$C$43,0))/1000),\"\")","v":""},{"$f":"IFERROR(IF(OR($C$144=FALSE,LEFT($B143,3)<>\"NOX\"),CU58*INDEX('Damage costs'!$U$16:$U$43,MATCH($B143,'Damage costs'!$C$16:$C$43,0))/1000,CU58*INDEX('Damage costs'!$Y$16:$Y$43,MATCH($B143,'Damage costs'!$C$16:$C$43,0))/1000),\"\")","v":""},{"$f":"IFERROR(IF(OR($C$144=FALSE,LEFT($B143,3)<>\"NOX\"),CV58*INDEX('Damage costs'!$U$16:$U$43,MATCH($B143,'Damage costs'!$C$16:$C$43,0))/1000,CV58*INDEX('Damage costs'!$Y$16:$Y$43,MATCH($B143,'Damage costs'!$C$16:$C$43,0))/1000),\"\")","v":""},{"$f":"IFERROR(IF(OR($C$144=FALSE,LEFT($B143,3)<>\"NOX\"),CW58*INDEX('Damage costs'!$U$16:$U$43,MATCH($B143,'Damage costs'!$C$16:$C$43,0))/1000,CW58*INDEX('Damage costs'!$Y$16:$Y$43,MATCH($B143,'Damage costs'!$C$16:$C$43,0))/1000),\"\")","v":""},{"$f":"IFERROR(IF(OR($C$144=FALSE,LEFT($B143,3)<>\"NOX\"),CX58*INDEX('Damage costs'!$U$16:$U$43,MATCH($B143,'Damage costs'!$C$16:$C$43,0))/1000,CX58*INDEX('Damage costs'!$Y$16:$Y$43,MATCH($B143,'Damage costs'!$C$16:$C$43,0))/1000),\"\")","v":""},{"$f":"IFERROR(IF(OR($C$144=FALSE,LEFT($B143,3)<>\"NOX\"),CY58*INDEX('Damage costs'!$U$16:$U$43,MATCH($B143,'Damage costs'!$C$16:$C$43,0))/1000,CY58*INDEX('Damage costs'!$Y$16:$Y$43,MATCH($B143,'Damage costs'!$C$16:$C$43,0))/1000),\"\")","v":""}]
[null,"PM10 Used",{"$f":"IF(OR(LEFT(B138,4)=\"PM10\",LEFT(B139,4)=\"PM10\",LEFT(B140,4)=\"PM10\",LEFT(B141,4)=\"PM10\",LEFT(B142,4)=\"PM10\",LEFT(B143,4)=\"PM10\"),TRUE,FALSE)","v":false}]
[]
[null,"Uplift pa","%",{"$f":"'Discount and deflators'!$H$5","v":0.02}]
[null,"Uplift factor",null,{"$f":"IF(D$6=0,0,(1+$D146)^(D$6-'Data Input - General'!$F$22))","v":1},{"$f":"IF(E$6=0,0,(1+$D146)^(E$6-'Data Input - General'!$F$22))","v":1.02},{"$f":"IF(F$6=0,0,(1+$D146)^(F$6-'Data Input - General'!$F$22))","v":1.0404},{"$f":"IF(G$6=0,0,(1+$D146)^(G$6-'Data Input - General'!$F$22))","v":1.0612079999999999},{"$f":"IF(H$6=0,0,(1+$D146)^(H$6-'Data Input - General'!$F$22))","v":1.08243216},{"$f":"IF(I$6=0,0,(1+$D146)^(I$6-'Data Input - General'!$F$22))","v":1.1040808032},{"$f":"IF(J$6=0,0,(1+$D146)^(J$6-'Data Input - General'!$F$22))","v":1.1261624192640001},{"$f":"IF(K$6=0,0,(1+$D146)^(K$6-'Data Input - General'!$F$22))","v":1.1486856676492798},{"$f":"IF(L$6=0,0,(1+$D146)^(L$6-'Data Input - General'!$F$22))","v":1.1716593810022655},{"$f":"IF(M$6=0,0,(1+$D146)^(M$6-'Data Input - General'!$F$22))","v":1.1950925686223108},{"$f":"IF(N$6=0,0,(1+$D146)^(N$6-'Data Input - General'!$F$22))","v":1.2189944199947571},{"$f":"IF(O$6=0,0,(1+$D146)^(O$6-'Data Input - General'!$F$22))","v":1.243374308394652},{"$f":"IF(P$6=0,0,(1+$D146)^(P$6-'Data Input - General'!$F$22))","v":1.2682417945625453},{"$f":"IF(Q$6=0,0,(1+$D146)^(Q$6-'Data Input - General'!$F$22))","v":1.2936066304537961},{"$f":"IF(R$6=0,0,(1+$D146)^(R$6-'Data Input - General'!$F$22))","v":1.3194787630628722},{"$f":"IF(S$6=0,0,(1+$D146)^(S$6-'Data Input - General'!$F$22))","v":1.3458683383241292},{"$f":"IF(T$6=0,0,(1+$D146)^(T$6-'Data Input - General'!$F$22))","v":1.372785705090612},{"$f":"IF(U$6=0,0,(1+$D146)^(U$6-'Data Input - General'!$F$22))","v":1.4002414191924244},{"$f":"IF(V$6=0,0,(1+$D146)^(V$6-'Data Input - General'!$F$22))","v":1.4282462475762727},{"$f":"IF(W$6=0,0,(1+$D146)^(W$6-'Data Input - General'!$F$22))","v":1.4568111725277981},{"$f":"IF(X$6=0,0,(1+$D146)^(X$6-'Data Input - General'!$F$22))","v":1.4859473959783542},{"$f":"IF(Y$6=0,0,(1+$D146)^(Y$6-'Data Input - General'!$F$22))","v":1.5156663438979212},{"$f":"IF(Z$6=0,0,(1+$D146)^(Z$6-'Data Input - General'!$F$22))","v":1.5459796707758797},{"$f":"IF(AA$6=0,0,(1+$D146)^(AA$6-'Data Input - General'!$F$22))","v":1.576899264191397},{"$f":"IF(AB$6=0,0,(1+$D146)^(AB$6-'Data Input - General'!$F$22))","v":1.608437249475225},{"$f":"IF(AC$6=0,0,(1+$D146)^(AC$6-'Data Input - General'!$F$22))","v":1.6406059944647295},{"$f":"IF(AD$6=0,0,(1+$D146)^(AD$6-'Data Input - General'!$F$22))","v":1.6734181143540243},{"$f":"IF(AE$6=0,0,(1+$D146)^(AE$6-'Data Input - General'!$F$22))","v":1.7068864766411045},{"$f":"IF(AF$6=0,0,(1+$D146)^(AF$6-'Data Input - General'!$F$22))","v":1.7410242061739269},{"$f":"IF(AG$6=0,0,(1+$D146)^(AG$6-'Data Input - General'!$F$22))","v":1.7758446902974052},{"$f":"IF(AH$6=0,0,(1+$D146)^(AH$6-'Data Input - General'!$F$22))","v":1.8113615841033535},{"$f":"IF(AI$6=0,0,(1+$D146)^(AI$6-'Data Input - General'!$F$22))","v":0},{"$f":"IF(AJ$6=0,0,(1+$D146)^(AJ$6-'Data Input - General'!$F$22))","v":0},{"$f":"IF(AK$6=0,0,(1+$D146)^(AK$6-'Data Input - General'!$F$22))","v":0},{"$f":"IF(AL$6=0,0,(1+$D146)^(AL$6-'Data Input - General'!$F$22))","v":0},{"$f":"IF(AM$6=0,0,(1+$D146)^(AM$6-'Data Input - General'!$F$22))","v":0},{"$f":"IF(AN$6=0,0,(1+$D146)^(AN$6-'Data Input - General'!$F$22))","v":0},{"$f":"IF(AO$6=0,0,(1+$D146)^(AO$6-'Data Input - General'!$F$22))","v":0},{"$f":"IF(AP$6=0,0,(1+$D146)^(AP$6-'Data Input - General'!$F$22))","v":0},{"$f":"IF(AQ$6=0,0,(1+$D146)^(AQ$6-'Data Input - General'!$F$22))","v":0},{"$f":"IF(AR$6=0,0,(1+$D146)^(AR$6-'Data Input - General'!$F$22))","v":0},{"$f":"IF(AS$6=0,0,(1+$D146)^(AS$6-'Data Input - General'!$F$22))","v":0},{"$f":"IF(AT$6=0,0,(1+$D146)^(AT$6-'Data Input - General'!$F$22))","v":0},{"$f":"IF(AU$6=0,0,(1+$D146)^(AU$6-'Data Input - General'!$F$22))","v":0},{"$f":"IF(AV$6=0,0,(1+$D146)^(AV$6-'Data Input - General'!$F$22))","v":0},{"$f":"IF(AW$6=0,0,(1+$D146)^(AW$6-'Data Input - General'!$F$22))","v":0},{"$f":"IF(AX$6=0,0,(1+$D146)^(AX$6-'Data Input - General'!$F$22))","v":0},{"$f":"IF(AY$6=0,0,(1+$D146)^(AY$6-'Data Input - General'!$F$22))","v":0},{"$f":"IF(AZ$6=0,0,(1+$D146)^(AZ$6-'Data Input - General'!$F$22))","v":0},{"$f":"IF(BA$6=0,0,(1+$D146)^(BA$6-'Data Input - General'!$F$22))","v":0},{"$f":"IF(BB$6=0,0,(1+$D146)^(BB$6-'Data Input - General'!$F$22))","v":0},{"$f":"IF(BC$6=0,0,(1+$D146)^(BC$6-'Data Input - General'!$F$22))","v":0},{"$f":"IF(BD$6=0,0,(1+$D146)^(BD$6-'Data Input - General'!$F$22))","v":0},{"$f":"IF(BE$6=0,0,(1+$D146)^(BE$6-'Data Input - General'!$F$22))","v":0},{"$f":"IF(BF$6=0,0,(1+$D146)^(BF$6-'Data Input - General'!$F$22))","v":0},{"$f":"IF(BG$6=0,0,(1+$D146)^(BG$6-'Data Input - General'!$F$22))","v":0},{"$f":"IF(BH$6=0,0,(1+$D146)^(BH$6-'Data Input - General'!$F$22))","v":0},{"$f":"IF(BI$6=0,0,(1+$D146)^(BI$6-'Data Input - General'!$F$22))","v":0},{"$f":"IF(BJ$6=0,0,(1+$D146)^(BJ$6-'Data Input - General'!$F$22))","v":0},{"$f":"IF(BK$6=0,0,(1+$D146)^(BK$6-'Data Input - General'!$F$22))","v":0},{"$f":"IF(BL$6=0,0,(1+$D146)^(BL$6-'Data Input - General'!$F$22))","v":0},{"$f":"IF(BM$6=0,0,(1+$D146)^(BM$6-'Data Input - General'!$F$22))","v":0},{"$f":"IF(BN$6=0,0,(1+$D146)^(BN$6-'Data Input - General'!$F$22))","v":0},{"$f":"IF(BO$6=0,0,(1+$D146)^(BO$6-'Data Input - General'!$F$22))","v":0},{"$f":"IF(BP$6=0,0,(1+$D146)^(BP$6-'Data Input - General'!$F$22))","v":0},{"$f":"IF(BQ$6=0,0,(1+$D146)^(BQ$6-'Data Input - General'!$F$22))","v":0},{"$f":"IF(BR$6=0,0,(1+$D146)^(BR$6-'Data Input - General'!$F$22))","v":0},{"$f":"IF(BS$6=0,0,(1+$D146)^(BS$6-'Data Input - General'!$F$22))","v":0},{"$f":"IF(BT$6=0,0,(1+$D146)^(BT$6-'Data Input - General'!$F$22))","v":0},{"$f":"IF(BU$6=0,0,(1+$D146)^(BU$6-'Data Input - General'!$F$22))","v":0},{"$f":"IF(BV$6=0,0,(1+$D146)^(BV$6-'Data Input - General'!$F$22))","v":0},{"$f":"IF(BW$6=0,0,(1+$D146)^(BW$6-'Data Input - General'!$F$22))","v":0},{"$f":"IF(BX$6=0,0,(1+$D146)^(BX$6-'Data Input - General'!$F$22))","v":0},{"$f":"IF(BY$6=0,0,(1+$D146)^(BY$6-'Data Input - General'!$F$22))","v":0},{"$f":"IF(BZ$6=0,0,(1+$D146)^(BZ$6-'Data Input - General'!$F$22))","v":0},{"$f":"IF(CA$6=0,0,(1+$D146)^(CA$6-'Data Input - General'!$F$22))","v":0},{"$f":"IF(CB$6=0,0,(1+$D146)^(CB$6-'Data Input - General'!$F$22))","v":0},{"$f":"IF(CC$6=0,0,(1+$D146)^(CC$6-'Data Input - General'!$F$22))","v":0},{"$f":"IF(CD$6=0,0,(1+$D146)^(CD$6-'Data Input - General'!$F$22))","v":0},{"$f":"IF(CE$6=0,0,(1+$D146)^(CE$6-'Data Input - General'!$F$22))","v":0},{"$f":"IF(CF$6=0,0,(1+$D146)^(CF$6-'Data Input - General'!$F$22))","v":0},{"$f":"IF(CG$6=0,0,(1+$D146)^(CG$6-'Data Input - General'!$F$22))","v":0},{"$f":"IF(CH$6=0,0,(1+$D146)^(CH$6-'Data Input - General'!$F$22))","v":0},{"$f":"IF(CI$6=0,0,(1+$D146)^(CI$6-'Data Input - General'!$F$22))","v":0},{"$f":"IF(CJ$6=0,0,(1+$D146)^(CJ$6-'Data Input - General'!$F$22))","v":0},{"$f":"IF(CK$6=0,0,(1+$D146)^(CK$6-'Data Input - General'!$F$22))","v":0},{"$f":"IF(CL$6=0,0,(1+$D146)^(CL$6-'Data Input - General'!$F$22))","v":0},{"$f":"IF(CM$6=0,0,(1+$D146)^(CM$6-'Data Input - General'!$F$22))","v":0},{"$f":"IF(CN$6=0,0,(1+$D146)^(CN$6-'Data Input - General'!$F$22))","v":0},{"$f":"IF(CO$6=0,0,(1+$D146)^(CO$6-'Data Input - General'!$F$22))","v":0},{"$f":"IF(CP$6=0,0,(1+$D146)^(CP$6-'Data Input - General'!$F$22))","v":0},{"$f":"IF(CQ$6=0,0,(1+$D146)^(CQ$6-'Data Input - General'!$F$22))","v":0},{"$f":"IF(CR$6=0,0,(1+$D146)^(CR$6-'Data Input - General'!$F$22))","v":0},{"$f":"IF(CS$6=0,0,(1+$D146)^(CS$6-'Data Input - General'!$F$22))","v":0},{"$f":"IF(CT$6=0,0,(1+$D146)^(CT$6-'Data Input - General'!$F$22))","v":0},{"$f":"IF(CU$6=0,0,(1+$D146)^(CU$6-'Data Input - General'!$F$22))","v":0},{"$f":"IF(CV$6=0,0,(1+$D146)^(CV$6-'Data Input - General'!$F$22))","v":0},{"$f":"IF(CW$6=0,0,(1+$D146)^(CW$6-'Data Input - General'!$F$22))","v":0},{"$f":"IF(CX$6=0,0,(1+$D146)^(CX$6-'Data Input - General'!$F$22))","v":0},{"$f":"IF(CY$6=0,0,(1+$D146)^(CY$6-'Data Input - General'!$F$22))","v":0}]
[null,"Total value","£000's",{"$f":"SUM(D138:D143)*D147","v":0},{"$f":"SUM(E138:E143)*E147","v":0},{"$f":"SUM(F138:F143)*F147","v":0},0,0,0,0,0,0,0,0,0,0,0,0,0,0,0,0,0,0,0,0,0,0,0,0,0,0,0,0,0,{"$f":"SUM(AJ138:AJ143)*AJ147","v":0},0,0,0,0,0,0,0,0,0,0,0,0,0,0,0,0,0,0,0,0,0,0,0,0,0,0,0,{"$f":"SUM(BL138:BL143)*BL147","v":0},0,0,0,0,0,0,0,0,0,0,0,0,0,0,0,0,0,0,0,0,0,0,0,0,0,0,0,0,0,0,0,0,0,0,0,0,0,0,0]
[null,"Discounted total value","£000's",{"$f":"D148*D$7","v":0},0,0,0,0,0,0,0,0,0,0,0,0,0,0,0,0,0,0,0,0,0,0,0,0,0,0,0,0,0,0,0,0,0,0,0,0,0,0,0,0,0,0,0,0,0,0,0,0,0,0,0,0,0,0,0,0,0,0,0,0,0,0,0,{"$f":"BP148*BP$7","v":0},0,0,0,0,0,0,0,0,0,0,0,0,0,0,0,0,0,0,0,0,0,0,0,0,0,0,0,0,0,0,0,0,0,0,0]
[]
[null,"GHG emissions"]
[null,"Traded","tCO2e",{"$f":"D$80+IF('Data Input - General'!$F$10=\"Yes\",Calc_Option5!D$81,0)+IF('Data Input - General'!$F$12=\"Yes\",Calc_Option5!D$75,0)","v":0},{"$f":"E$80+IF('Data Input - General'!$F$10=\"Yes\",Calc_Option5!E$81,0)+IF('Data Input - General'!$F$12=\"Yes\",Calc_Option5!E$75,0)","v":0},{"$f":"F$80+IF('Data Input - General'!$F$10=\"Yes\",Calc_Option5!F$81,0)+IF('Data Input - General'!$F$12=\"Yes\",Calc_Option5!F$75,0)","v":0},{"$f":"G$80+IF('Data Input - General'!$F$10=\"Yes\",Calc_Option5!G$81,0)+IF('Data Input - General'!$F$12=\"Yes\",Calc_Option5!G$75,0)","v":0},{"$f":"H$80+IF('Data Input - General'!$F$10=\"Yes\",Calc_Option5!H$81,0)+IF('Data Input - General'!$F$12=\"Yes\",Calc_Option5!H$75,0)","v":0},{"$f":"I$80+IF('Data Input - General'!$F$10=\"Yes\",Calc_Option5!I$81,0)+IF('Data Input - General'!$F$12=\"Yes\",Calc_Option5!I$75,0)","v":0},{"$f":"J$80+IF('Data Input - General'!$F$10=\"Yes\",Calc_Option5!J$81,0)+IF('Data Input - General'!$F$12=\"Yes\",Calc_Option5!J$75,0)","v":0},{"$f":"K$80+IF('Data Input - General'!$F$10=\"Yes\",Calc_Option5!K$81,0)+IF('Data Input - General'!$F$12=\"Yes\",Calc_Option5!K$75,0)","v":0},{"$f":"L$80+IF('Data Input - General'!$F$10=\"Yes\",Calc_Option5!L$81,0)+IF('Data Input - General'!$F$12=\"Yes\",Calc_Option5!L$75,0)","v":0},{"$f":"M$80+IF('Data Input - General'!$F$10=\"Yes\",Calc_Option5!M$81,0)+IF('Data Input - General'!$F$12=\"Yes\",Calc_Option5!M$75,0)","v":0},{"$f":"N$80+IF('Data Input - General'!$F$10=\"Yes\",Calc_Option5!N$81,0)+IF('Data Input - General'!$F$12=\"Yes\",Calc_Option5!N$75,0)","v":0},{"$f":"O$80+IF('Data Input - General'!$F$10=\"Yes\",Calc_Option5!O$81,0)+IF('Data Input - General'!$F$12=\"Yes\",Calc_Option5!O$75,0)","v":0},{"$f":"P$80+IF('Data Input - General'!$F$10=\"Yes\",Calc_Option5!P$81,0)+IF('Data Input - General'!$F$12=\"Yes\",Calc_Option5!P$75,0)","v":0},{"$f":"Q$80+IF('Data Input - General'!$F$10=\"Yes\",Calc_Option5!Q$81,0)+IF('Data Input - General'!$F$12=\"Yes\",Calc_Option5!Q$75,0)","v":0},{"$f":"R$80+IF('Data Input - General'!$F$10=\"Yes\",Calc_Option5!R$81,0)+IF('Data Input - General'!$F$12=\"Yes\",Calc_Option5!R$75,0)","v":0},{"$f":"S$80+IF('Data Input - General'!$F$10=\"Yes\",Calc_Option5!S$81,0)+IF('Data Input - General'!$F$12=\"Yes\",Calc_Option5!S$75,0)","v":0},{"$f":"T$80+IF('Data Input - General'!$F$10=\"Yes\",Calc_Option5!T$81,0)+IF('Data Input - General'!$F$12=\"Yes\",Calc_Option5!T$75,0)","v":0},{"$f":"U$80+IF('Data Input - General'!$F$10=\"Yes\",Calc_Option5!U$81,0)+IF('Data Input - General'!$F$12=\"Yes\",Calc_Option5!U$75,0)","v":0},{"$f":"V$80+IF('Data Input - General'!$F$10=\"Yes\",Calc_Option5!V$81,0)+IF('Data Input - General'!$F$12=\"Yes\",Calc_Option5!V$75,0)","v":0},{"$f":"W$80+IF('Data Input - General'!$F$10=\"Yes\",Calc_Option5!W$81,0)+IF('Data Input - General'!$F$12=\"Yes\",Calc_Option5!W$75,0)","v":0},{"$f":"X$80+IF('Data Input - General'!$F$10=\"Yes\",Calc_Option5!X$81,0)+IF('Data Input - General'!$F$12=\"Yes\",Calc_Option5!X$75,0)","v":0},{"$f":"Y$80+IF('Data Input - General'!$F$10=\"Yes\",Calc_Option5!Y$81,0)+IF('Data Input - General'!$F$12=\"Yes\",Calc_Option5!Y$75,0)","v":0},{"$f":"Z$80+IF('Data Input - General'!$F$10=\"Yes\",Calc_Option5!Z$81,0)+IF('Data Input - General'!$F$12=\"Yes\",Calc_Option5!Z$75,0)","v":0},{"$f":"AA$80+IF('Data Input - General'!$F$10=\"Yes\",Calc_Option5!AA$81,0)+IF('Data Input - General'!$F$12=\"Yes\",Calc_Option5!AA$75,0)","v":0},{"$f":"AB$80+IF('Data Input - General'!$F$10=\"Yes\",Calc_Option5!AB$81,0)+IF('Data Input - General'!$F$12=\"Yes\",Calc_Option5!AB$75,0)","v":0},{"$f":"AC$80+IF('Data Input - General'!$F$10=\"Yes\",Calc_Option5!AC$81,0)+IF('Data Input - General'!$F$12=\"Yes\",Calc_Option5!AC$75,0)","v":0},{"$f":"AD$80+IF('Data Input - General'!$F$10=\"Yes\",Calc_Option5!AD$81,0)+IF('Data Input - General'!$F$12=\"Yes\",Calc_Option5!AD$75,0)","v":0},{"$f":"AE$80+IF('Data Input - General'!$F$10=\"Yes\",Calc_Option5!AE$81,0)+IF('Data Input - General'!$F$12=\"Yes\",Calc_Option5!AE$75,0)","v":0},{"$f":"AF$80+IF('Data Input - General'!$F$10=\"Yes\",Calc_Option5!AF$81,0)+IF('Data Input - General'!$F$12=\"Yes\",Calc_Option5!AF$75,0)","v":0},{"$f":"AG$80+IF('Data Input - General'!$F$10=\"Yes\",Calc_Option5!AG$81,0)+IF('Data Input - General'!$F$12=\"Yes\",Calc_Option5!AG$75,0)","v":0},{"$f":"AH$80+IF('Data Input - General'!$F$10=\"Yes\",Calc_Option5!AH$81,0)+IF('Data Input - General'!$F$12=\"Yes\",Calc_Option5!AH$75,0)","v":0},{"$f":"AI$80+IF('Data Input - General'!$F$10=\"Yes\",Calc_Option5!AI$81,0)+IF('Data Input - General'!$F$12=\"Yes\",Calc_Option5!AI$75,0)","v":0},{"$f":"AJ$80+IF('Data Input - General'!$F$10=\"Yes\",Calc_Option5!AJ$81,0)+IF('Data Input - General'!$F$12=\"Yes\",Calc_Option5!AJ$75,0)","v":0},{"$f":"AK$80+IF('Data Input - General'!$F$10=\"Yes\",Calc_Option5!AK$81,0)+IF('Data Input - General'!$F$12=\"Yes\",Calc_Option5!AK$75,0)","v":0},{"$f":"AL$80+IF('Data Input - General'!$F$10=\"Yes\",Calc_Option5!AL$81,0)+IF('Data Input - General'!$F$12=\"Yes\",Calc_Option5!AL$75,0)","v":0},{"$f":"AM$80+IF('Data Input - General'!$F$10=\"Yes\",Calc_Option5!AM$81,0)+IF('Data Input - General'!$F$12=\"Yes\",Calc_Option5!AM$75,0)","v":0},{"$f":"AN$80+IF('Data Input - General'!$F$10=\"Yes\",Calc_Option5!AN$81,0)+IF('Data Input - General'!$F$12=\"Yes\",Calc_Option5!AN$75,0)","v":0},{"$f":"AO$80+IF('Data Input - General'!$F$10=\"Yes\",Calc_Option5!AO$81,0)+IF('Data Input - General'!$F$12=\"Yes\",Calc_Option5!AO$75,0)","v":0},{"$f":"AP$80+IF('Data Input - General'!$F$10=\"Yes\",Calc_Option5!AP$81,0)+IF('Data Input - General'!$F$12=\"Yes\",Calc_Option5!AP$75,0)","v":0},{"$f":"AQ$80+IF('Data Input - General'!$F$10=\"Yes\",Calc_Option5!AQ$81,0)+IF('Data Input - General'!$F$12=\"Yes\",Calc_Option5!AQ$75,0)","v":0},{"$f":"AR$80+IF('Data Input - General'!$F$10=\"Yes\",Calc_Option5!AR$81,0)+IF('Data Input - General'!$F$12=\"Yes\",Calc_Option5!AR$75,0)","v":0},{"$f":"AS$80+IF('Data Input - General'!$F$10=\"Yes\",Calc_Option5!AS$81,0)+IF('Data Input - General'!$F$12=\"Yes\",Calc_Option5!AS$75,0)","v":0},{"$f":"AT$80+IF('Data Input - General'!$F$10=\"Yes\",Calc_Option5!AT$81,0)+IF('Data Input - General'!$F$12=\"Yes\",Calc_Option5!AT$75,0)","v":0},{"$f":"AU$80+IF('Data Input - General'!$F$10=\"Yes\",Calc_Option5!AU$81,0)+IF('Data Input - General'!$F$12=\"Yes\",Calc_Option5!AU$75,0)","v":0},{"$f":"AV$80+IF('Data Input - General'!$F$10=\"Yes\",Calc_Option5!AV$81,0)+IF('Data Input - General'!$F$12=\"Yes\",Calc_Option5!AV$75,0)","v":0},{"$f":"AW$80+IF('Data Input - General'!$F$10=\"Yes\",Calc_Option5!AW$81,0)+IF('Data Input - General'!$F$12=\"Yes\",Calc_Option5!AW$75,0)","v":0},{"$f":"AX$80+IF('Data Input - General'!$F$10=\"Yes\",Calc_Option5!AX$81,0)+IF('Data Input - General'!$F$12=\"Yes\",Calc_Option5!AX$75,0)","v":0},{"$f":"AY$80+IF('Data Input - General'!$F$10=\"Yes\",Calc_Option5!AY$81,0)+IF('Data Input - General'!$F$12=\"Yes\",Calc_Option5!AY$75,0)","v":0},{"$f":"AZ$80+IF('Data Input - General'!$F$10=\"Yes\",Calc_Option5!AZ$81,0)+IF('Data Input - General'!$F$12=\"Yes\",Calc_Option5!AZ$75,0)","v":0},{"$f":"BA$80+IF('Data Input - General'!$F$10=\"Yes\",Calc_Option5!BA$81,0)+IF('Data Input - General'!$F$12=\"Yes\",Calc_Option5!BA$75,0)","v":0},{"$f":"BB$80+IF('Data Input - General'!$F$10=\"Yes\",Calc_Option5!BB$81,0)+IF('Data Input - General'!$F$12=\"Yes\",Calc_Option5!BB$75,0)","v":0},{"$f":"BC$80+IF('Data Input - General'!$F$10=\"Yes\",Calc_Option5!BC$81,0)+IF('Data Input - General'!$F$12=\"Yes\",Calc_Option5!BC$75,0)","v":0},{"$f":"BD$80+IF('Data Input - General'!$F$10=\"Yes\",Calc_Option5!BD$81,0)+IF('Data Input - General'!$F$12=\"Yes\",Calc_Option5!BD$75,0)","v":0},{"$f":"BE$80+IF('Data Input - General'!$F$10=\"Yes\",Calc_Option5!BE$81,0)+IF('Data Input - General'!$F$12=\"Yes\",Calc_Option5!BE$75,0)","v":0},{"$f":"BF$80+IF('Data Input - General'!$F$10=\"Yes\",Calc_Option5!BF$81,0)+IF('Data Input - General'!$F$12=\"Yes\",Calc_Option5!BF$75,0)","v":0},{"$f":"BG$80+IF('Data Input - General'!$F$10=\"Yes\",Calc_Option5!BG$81,0)+IF('Data Input - General'!$F$12=\"Yes\",Calc_Option5!BG$75,0)","v":0},{"$f":"BH$80+IF('Data Input - General'!$F$10=\"Yes\",Calc_Option5!BH$81,0)+IF('Data Input - General'!$F$12=\"Yes\",Calc_Option5!BH$75,0)","v":0},{"$f":"BI$80+IF('Data Input - General'!$F$10=\"Yes\",Calc_Option5!BI$81,0)+IF('Data Input - General'!$F$12=\"Yes\",Calc_Option5!BI$75,0)","v":0},{"$f":"BJ$80+IF('Data Input - General'!$F$10=\"Yes\",Calc_Option5!BJ$81,0)+IF('Data Input - General'!$F$12=\"Yes\",Calc_Option5!BJ$75,0)","v":0},{"$f":"BK$80+IF('Data Input - General'!$F$10=\"Yes\",Calc_Option5!BK$81,0)+IF('Data Input - General'!$F$12=\"Yes\",Calc_Option5!BK$75,0)","v":0},{"$f":"BL$80+IF('Data Input - General'!$F$10=\"Yes\",Calc_Option5!BL$81,0)+IF('Data Input - General'!$F$12=\"Yes\",Calc_Option5!BL$75,0)","v":0},{"$f":"BM$80+IF('Data Input - General'!$F$10=\"Yes\",Calc_Option5!BM$81,0)+IF('Data Input - General'!$F$12=\"Yes\",Calc_Option5!BM$75,0)","v":0},{"$f":"BN$80+IF('Data Input - General'!$F$10=\"Yes\",Calc_Option5!BN$81,0)+IF('Data Input - General'!$F$12=\"Yes\",Calc_Option5!BN$75,0)","v":0},{"$f":"BO$80+IF('Data Input - General'!$F$10=\"Yes\",Calc_Option5!BO$81,0)+IF('Data Input - General'!$F$12=\"Yes\",Calc_Option5!BO$75,0)","v":0},{"$f":"BP$80+IF('Data Input - General'!$F$10=\"Yes\",Calc_Option5!BP$81,0)+IF('Data Input - General'!$F$12=\"Yes\",Calc_Option5!BP$75,0)","v":0},{"$f":"BQ$80+IF('Data Input - General'!$F$10=\"Yes\",Calc_Option5!BQ$81,0)+IF('Data Input - General'!$F$12=\"Yes\",Calc_Option5!BQ$75,0)","v":0},{"$f":"BR$80+IF('Data Input - General'!$F$10=\"Yes\",Calc_Option5!BR$81,0)+IF('Data Input - General'!$F$12=\"Yes\",Calc_Option5!BR$75,0)","v":0},{"$f":"BS$80+IF('Data Input - General'!$F$10=\"Yes\",Calc_Option5!BS$81,0)+IF('Data Input - General'!$F$12=\"Yes\",Calc_Option5!BS$75,0)","v":0},{"$f":"BT$80+IF('Data Input - General'!$F$10=\"Yes\",Calc_Option5!BT$81,0)+IF('Data Input - General'!$F$12=\"Yes\",Calc_Option5!BT$75,0)","v":0},{"$f":"BU$80+IF('Data Input - General'!$F$10=\"Yes\",Calc_Option5!BU$81,0)+IF('Data Input - General'!$F$12=\"Yes\",Calc_Option5!BU$75,0)","v":0},{"$f":"BV$80+IF('Data Input - General'!$F$10=\"Yes\",Calc_Option5!BV$81,0)+IF('Data Input - General'!$F$12=\"Yes\",Calc_Option5!BV$75,0)","v":0},{"$f":"BW$80+IF('Data Input - General'!$F$10=\"Yes\",Calc_Option5!BW$81,0)+IF('Data Input - General'!$F$12=\"Yes\",Calc_Option5!BW$75,0)","v":0},{"$f":"BX$80+IF('Data Input - General'!$F$10=\"Yes\",Calc_Option5!BX$81,0)+IF('Data Input - General'!$F$12=\"Yes\",Calc_Option5!BX$75,0)","v":0},{"$f":"BY$80+IF('Data Input - General'!$F$10=\"Yes\",Calc_Option5!BY$81,0)+IF('Data Input - General'!$F$12=\"Yes\",Calc_Option5!BY$75,0)","v":0},{"$f":"BZ$80+IF('Data Input - General'!$F$10=\"Yes\",Calc_Option5!BZ$81,0)+IF('Data Input - General'!$F$12=\"Yes\",Calc_Option5!BZ$75,0)","v":0},{"$f":"CA$80+IF('Data Input - General'!$F$10=\"Yes\",Calc_Option5!CA$81,0)+IF('Data Input - General'!$F$12=\"Yes\",Calc_Option5!CA$75,0)","v":0},{"$f":"CB$80+IF('Data Input - General'!$F$10=\"Yes\",Calc_Option5!CB$81,0)+IF('Data Input - General'!$F$12=\"Yes\",Calc_Option5!CB$75,0)","v":0},{"$f":"CC$80+IF('Data Input - General'!$F$10=\"Yes\",Calc_Option5!CC$81,0)+IF('Data Input - General'!$F$12=\"Yes\",Calc_Option5!CC$75,0)","v":0},{"$f":"CD$80+IF('Data Input - General'!$F$10=\"Yes\",Calc_Option5!CD$81,0)+IF('Data Input - General'!$F$12=\"Yes\",Calc_Option5!CD$75,0)","v":0},{"$f":"CE$80+IF('Data Input - General'!$F$10=\"Yes\",Calc_Option5!CE$81,0)+IF('Data Input - General'!$F$12=\"Yes\",Calc_Option5!CE$75,0)","v":0},{"$f":"CF$80+IF('Data Input - General'!$F$10=\"Yes\",Calc_Option5!CF$81,0)+IF('Data Input - General'!$F$12=\"Yes\",Calc_Option5!CF$75,0)","v":0},{"$f":"CG$80+IF('Data Input - General'!$F$10=\"Yes\",Calc_Option5!CG$81,0)+IF('Data Input - General'!$F$12=\"Yes\",Calc_Option5!CG$75,0)","v":0},{"$f":"CH$80+IF('Data Input - General'!$F$10=\"Yes\",Calc_Option5!CH$81,0)+IF('Data Input - General'!$F$12=\"Yes\",Calc_Option5!CH$75,0)","v":0},{"$f":"CI$80+IF('Data Input - General'!$F$10=\"Yes\",Calc_Option5!CI$81,0)+IF('Data Input - General'!$F$12=\"Yes\",Calc_Option5!CI$75,0)","v":0},{"$f":"CJ$80+IF('Data Input - General'!$F$10=\"Yes\",Calc_Option5!CJ$81,0)+IF('Data Input - General'!$F$12=\"Yes\",Calc_Option5!CJ$75,0)","v":0},{"$f":"CK$80+IF('Data Input - General'!$F$10=\"Yes\",Calc_Option5!CK$81,0)+IF('Data Input - General'!$F$12=\"Yes\",Calc_Option5!CK$75,0)","v":0},{"$f":"CL$80+IF('Data Input - General'!$F$10=\"Yes\",Calc_Option5!CL$81,0)+IF('Data Input - General'!$F$12=\"Yes\",Calc_Option5!CL$75,0)","v":0},{"$f":"CM$80+IF('Data Input - General'!$F$10=\"Yes\",Calc_Option5!CM$81,0)+IF('Data Input - General'!$F$12=\"Yes\",Calc_Option5!CM$75,0)","v":0},{"$f":"CN$80+IF('Data Input - General'!$F$10=\"Yes\",Calc_Option5!CN$81,0)+IF('Data Input - General'!$F$12=\"Yes\",Calc_Option5!CN$75,0)","v":0},{"$f":"CO$80+IF('Data Input - General'!$F$10=\"Yes\",Calc_Option5!CO$81,0)+IF('Data Input - General'!$F$12=\"Yes\",Calc_Option5!CO$75,0)","v":0},{"$f":"CP$80+IF('Data Input - General'!$F$10=\"Yes\",Calc_Option5!CP$81,0)+IF('Data Input - General'!$F$12=\"Yes\",Calc_Option5!CP$75,0)","v":0},{"$f":"CQ$80+IF('Data Input - General'!$F$10=\"Yes\",Calc_Option5!CQ$81,0)+IF('Data Input - General'!$F$12=\"Yes\",Calc_Option5!CQ$75,0)","v":0},{"$f":"CR$80+IF('Data Input - General'!$F$10=\"Yes\",Calc_Option5!CR$81,0)+IF('Data Input - General'!$F$12=\"Yes\",Calc_Option5!CR$75,0)","v":0},{"$f":"CS$80+IF('Data Input - General'!$F$10=\"Yes\",Calc_Option5!CS$81,0)+IF('Data Input - General'!$F$12=\"Yes\",Calc_Option5!CS$75,0)","v":0},{"$f":"CT$80+IF('Data Input - General'!$F$10=\"Yes\",Calc_Option5!CT$81,0)+IF('Data Input - General'!$F$12=\"Yes\",Calc_Option5!CT$75,0)","v":0},{"$f":"CU$80+IF('Data Input - General'!$F$10=\"Yes\",Calc_Option5!CU$81,0)+IF('Data Input - General'!$F$12=\"Yes\",Calc_Option5!CU$75,0)","v":0},{"$f":"CV$80+IF('Data Input - General'!$F$10=\"Yes\",Calc_Option5!CV$81,0)+IF('Data Input - General'!$F$12=\"Yes\",Calc_Option5!CV$75,0)","v":0},{"$f":"CW$80+IF('Data Input - General'!$F$10=\"Yes\",Calc_Option5!CW$81,0)+IF('Data Input - General'!$F$12=\"Yes\",Calc_Option5!CW$75,0)","v":0},{"$f":"CX$80+IF('Data Input - General'!$F$10=\"Yes\",Calc_Option5!CX$81,0)+IF('Data Input - General'!$F$12=\"Yes\",Calc_Option5!CX$75,0)","v":0},{"$f":"CY$80+IF('Data Input - General'!$F$10=\"Yes\",Calc_Option5!CY$81,0)+IF('Data Input - General'!$F$12=\"Yes\",Calc_Option5!CY$75,0)","v":0}]
[null,"Non-traded","tCO2e",{"$f":"IF('Data Input - General'!$F$10=\"Yes\",0,Calc_Option5!D$81)+IF('Data Input - General'!$F$12=\"Yes\",0,Calc_Option5!D$75)","v":0},{"$f":"IF('Data Input - General'!$F$10=\"Yes\",0,Calc_Option5!E$81)+IF('Data Input - General'!$F$12=\"Yes\",0,Calc_Option5!E$75)","v":0},{"$f":"IF('Data Input - General'!$F$10=\"Yes\",0,Calc_Option5!F$81)+IF('Data Input - General'!$F$12=\"Yes\",0,Calc_Option5!F$75)","v":0},{"$f":"IF('Data Input - General'!$F$10=\"Yes\",0,Calc_Option5!G$81)+IF('Data Input - General'!$F$12=\"Yes\",0,Calc_Option5!G$75)","v":0},{"$f":"IF('Data Input - General'!$F$10=\"Yes\",0,Calc_Option5!H$81)+IF('Data Input - General'!$F$12=\"Yes\",0,Calc_Option5!H$75)","v":0},{"$f":"IF('Data Input - General'!$F$10=\"Yes\",0,Calc_Option5!I$81)+IF('Data Input - General'!$F$12=\"Yes\",0,Calc_Option5!I$75)","v":0},{"$f":"IF('Data Input - General'!$F$10=\"Yes\",0,Calc_Option5!J$81)+IF('Data Input - General'!$F$12=\"Yes\",0,Calc_Option5!J$75)","v":0},{"$f":"IF('Data Input - General'!$F$10=\"Yes\",0,Calc_Option5!K$81)+IF('Data Input - General'!$F$12=\"Yes\",0,Calc_Option5!K$75)","v":0},{"$f":"IF('Data Input - General'!$F$10=\"Yes\",0,Calc_Option5!L$81)+IF('Data Input - General'!$F$12=\"Yes\",0,Calc_Option5!L$75)","v":0},{"$f":"IF('Data Input - General'!$F$10=\"Yes\",0,Calc_Option5!M$81)+IF('Data Input - General'!$F$12=\"Yes\",0,Calc_Option5!M$75)","v":0},{"$f":"IF('Data Input - General'!$F$10=\"Yes\",0,Calc_Option5!N$81)+IF('Data Input - General'!$F$12=\"Yes\",0,Calc_Option5!N$75)","v":0},{"$f":"IF('Data Input - General'!$F$10=\"Yes\",0,Calc_Option5!O$81)+IF('Data Input - General'!$F$12=\"Yes\",0,Calc_Option5!O$75)","v":0},{"$f":"IF('Data Input - General'!$F$10=\"Yes\",0,Calc_Option5!P$81)+IF('Data Input - General'!$F$12=\"Yes\",0,Calc_Option5!P$75)","v":0},{"$f":"IF('Data Input - General'!$F$10=\"Yes\",0,Calc_Option5!Q$81)+IF('Data Input - General'!$F$12=\"Yes\",0,Calc_Option5!Q$75)","v":0},{"$f":"IF('Data Input - General'!$F$10=\"Yes\",0,Calc_Option5!R$81)+IF('Data Input - General'!$F$12=\"Yes\",0,Calc_Option5!R$75)","v":0},{"$f":"IF('Data Input - General'!$F$10=\"Yes\",0,Calc_Option5!S$81)+IF('Data Input - General'!$F$12=\"Yes\",0,Calc_Option5!S$75)","v":0},{"$f":"IF('Data Input - General'!$F$10=\"Yes\",0,Calc_Option5!T$81)+IF('Data Input - General'!$F$12=\"Yes\",0,Calc_Option5!T$75)","v":0},{"$f":"IF('Data Input - General'!$F$10=\"Yes\",0,Calc_Option5!U$81)+IF('Data Input - General'!$F$12=\"Yes\",0,Calc_Option5!U$75)","v":0},{"$f":"IF('Data Input - General'!$F$10=\"Yes\",0,Calc_Option5!V$81)+IF('Data Input - General'!$F$12=\"Yes\",0,Calc_Option5!V$75)","v":0},{"$f":"IF('Data Input - General'!$F$10=\"Yes\",0,Calc_Option5!W$81)+IF('Data Input - General'!$F$12=\"Yes\",0,Calc_Option5!W$75)","v":0},{"$f":"IF('Data Input - General'!$F$10=\"Yes\",0,Calc_Option5!X$81)+IF('Data Input - General'!$F$12=\"Yes\",0,Calc_Option5!X$75)","v":0},{"$f":"IF('Data Input - General'!$F$10=\"Yes\",0,Calc_Option5!Y$81)+IF('Data Input - General'!$F$12=\"Yes\",0,Calc_Option5!Y$75)","v":0},{"$f":"IF('Data Input - General'!$F$10=\"Yes\",0,Calc_Option5!Z$81)+IF('Data Input - General'!$F$12=\"Yes\",0,Calc_Option5!Z$75)","v":0},{"$f":"IF('Data Input - General'!$F$10=\"Yes\",0,Calc_Option5!AA$81)+IF('Data Input - General'!$F$12=\"Yes\",0,Calc_Option5!AA$75)","v":0},{"$f":"IF('Data Input - General'!$F$10=\"Yes\",0,Calc_Option5!AB$81)+IF('Data Input - General'!$F$12=\"Yes\",0,Calc_Option5!AB$75)","v":0},{"$f":"IF('Data Input - General'!$F$10=\"Yes\",0,Calc_Option5!AC$81)+IF('Data Input - General'!$F$12=\"Yes\",0,Calc_Option5!AC$75)","v":0},{"$f":"IF('Data Input - General'!$F$10=\"Yes\",0,Calc_Option5!AD$81)+IF('Data Input - General'!$F$12=\"Yes\",0,Calc_Option5!AD$75)","v":0},{"$f":"IF('Data Input - General'!$F$10=\"Yes\",0,Calc_Option5!AE$81)+IF('Data Input - General'!$F$12=\"Yes\",0,Calc_Option5!AE$75)","v":0},{"$f":"IF('Data Input - General'!$F$10=\"Yes\",0,Calc_Option5!AF$81)+IF('Data Input - General'!$F$12=\"Yes\",0,Calc_Option5!AF$75)","v":0},{"$f":"IF('Data Input - General'!$F$10=\"Yes\",0,Calc_Option5!AG$81)+IF('Data Input - General'!$F$12=\"Yes\",0,Calc_Option5!AG$75)","v":0},{"$f":"IF('Data Input - General'!$F$10=\"Yes\",0,Calc_Option5!AH$81)+IF('Data Input - General'!$F$12=\"Yes\",0,Calc_Option5!AH$75)","v":0},{"$f":"IF('Data Input - General'!$F$10=\"Yes\",0,Calc_Option5!AI$81)+IF('Data Input - General'!$F$12=\"Yes\",0,Calc_Option5!AI$75)","v":0},{"$f":"IF('Data Input - General'!$F$10=\"Yes\",0,Calc_Option5!AJ$81)+IF('Data Input - General'!$F$12=\"Yes\",0,Calc_Option5!AJ$75)","v":0},{"$f":"IF('Data Input - General'!$F$10=\"Yes\",0,Calc_Option5!AK$81)+IF('Data Input - General'!$F$12=\"Yes\",0,Calc_Option5!AK$75)","v":0},{"$f":"IF('Data Input - General'!$F$10=\"Yes\",0,Calc_Option5!AL$81)+IF('Data Input - General'!$F$12=\"Yes\",0,Calc_Option5!AL$75)","v":0},{"$f":"IF('Data Input - General'!$F$10=\"Yes\",0,Calc_Option5!AM$81)+IF('Data Input - General'!$F$12=\"Yes\",0,Calc_Option5!AM$75)","v":0},{"$f":"IF('Data Input - General'!$F$10=\"Yes\",0,Calc_Option5!AN$81)+IF('Data Input - General'!$F$12=\"Yes\",0,Calc_Option5!AN$75)","v":0},{"$f":"IF('Data Input - General'!$F$10=\"Yes\",0,Calc_Option5!AO$81)+IF('Data Input - General'!$F$12=\"Yes\",0,Calc_Option5!AO$75)","v":0},{"$f":"IF('Data Input - General'!$F$10=\"Yes\",0,Calc_Option5!AP$81)+IF('Data Input - General'!$F$12=\"Yes\",0,Calc_Option5!AP$75)","v":0},{"$f":"IF('Data Input - General'!$F$10=\"Yes\",0,Calc_Option5!AQ$81)+IF('Data Input - General'!$F$12=\"Yes\",0,Calc_Option5!AQ$75)","v":0},{"$f":"IF('Data Input - General'!$F$10=\"Yes\",0,Calc_Option5!AR$81)+IF('Data Input - General'!$F$12=\"Yes\",0,Calc_Option5!AR$75)","v":0},{"$f":"IF('Data Input - General'!$F$10=\"Yes\",0,Calc_Option5!AS$81)+IF('Data Input - General'!$F$12=\"Yes\",0,Calc_Option5!AS$75)","v":0},{"$f":"IF('Data Input - General'!$F$10=\"Yes\",0,Calc_Option5!AT$81)+IF('Data Input - General'!$F$12=\"Yes\",0,Calc_Option5!AT$75)","v":0},{"$f":"IF('Data Input - General'!$F$10=\"Yes\",0,Calc_Option5!AU$81)+IF('Data Input - General'!$F$12=\"Yes\",0,Calc_Option5!AU$75)","v":0},{"$f":"IF('Data Input - General'!$F$10=\"Yes\",0,Calc_Option5!AV$81)+IF('Data Input - General'!$F$12=\"Yes\",0,Calc_Option5!AV$75)","v":0},{"$f":"IF('Data Input - General'!$F$10=\"Yes\",0,Calc_Option5!AW$81)+IF('Data Input - General'!$F$12=\"Yes\",0,Calc_Option5!AW$75)","v":0},{"$f":"IF('Data Input - General'!$F$10=\"Yes\",0,Calc_Option5!AX$81)+IF('Data Input - General'!$F$12=\"Yes\",0,Calc_Option5!AX$75)","v":0},{"$f":"IF('Data Input - General'!$F$10=\"Yes\",0,Calc_Option5!AY$81)+IF('Data Input - General'!$F$12=\"Yes\",0,Calc_Option5!AY$75)","v":0},{"$f":"IF('Data Input - General'!$F$10=\"Yes\",0,Calc_Option5!AZ$81)+IF('Data Input - General'!$F$12=\"Yes\",0,Calc_Option5!AZ$75)","v":0},{"$f":"IF('Data Input - General'!$F$10=\"Yes\",0,Calc_Option5!BA$81)+IF('Data Input - General'!$F$12=\"Yes\",0,Calc_Option5!BA$75)","v":0},{"$f":"IF('Data Input - General'!$F$10=\"Yes\",0,Calc_Option5!BB$81)+IF('Data Input - General'!$F$12=\"Yes\",0,Calc_Option5!BB$75)","v":0},{"$f":"IF('Data Input - General'!$F$10=\"Yes\",0,Calc_Option5!BC$81)+IF('Data Input - General'!$F$12=\"Yes\",0,Calc_Option5!BC$75)","v":0},{"$f":"IF('Data Input - General'!$F$10=\"Yes\",0,Calc_Option5!BD$81)+IF('Data Input - General'!$F$12=\"Yes\",0,Calc_Option5!BD$75)","v":0},{"$f":"IF('Data Input - General'!$F$10=\"Yes\",0,Calc_Option5!BE$81)+IF('Data Input - General'!$F$12=\"Yes\",0,Calc_Option5!BE$75)","v":0},{"$f":"IF('Data Input - General'!$F$10=\"Yes\",0,Calc_Option5!BF$81)+IF('Data Input - General'!$F$12=\"Yes\",0,Calc_Option5!BF$75)","v":0},{"$f":"IF('Data Input - General'!$F$10=\"Yes\",0,Calc_Option5!BG$81)+IF('Data Input - General'!$F$12=\"Yes\",0,Calc_Option5!BG$75)","v":0},{"$f":"IF('Data Input - General'!$F$10=\"Yes\",0,Calc_Option5!BH$81)+IF('Data Input - General'!$F$12=\"Yes\",0,Calc_Option5!BH$75)","v":0},{"$f":"IF('Data Input - General'!$F$10=\"Yes\",0,Calc_Option5!BI$81)+IF('Data Input - General'!$F$12=\"Yes\",0,Calc_Option5!BI$75)","v":0},{"$f":"IF('Data Input - General'!$F$10=\"Yes\",0,Calc_Option5!BJ$81)+IF('Data Input - General'!$F$12=\"Yes\",0,Calc_Option5!BJ$75)","v":0},{"$f":"IF('Data Input - General'!$F$10=\"Yes\",0,Calc_Option5!BK$81)+IF('Data Input - General'!$F$12=\"Yes\",0,Calc_Option5!BK$75)","v":0},{"$f":"IF('Data Input - General'!$F$10=\"Yes\",0,Calc_Option5!BL$81)+IF('Data Input - General'!$F$12=\"Yes\",0,Calc_Option5!BL$75)","v":0},{"$f":"IF('Data Input - General'!$F$10=\"Yes\",0,Calc_Option5!BM$81)+IF('Data Input - General'!$F$12=\"Yes\",0,Calc_Option5!BM$75)","v":0},{"$f":"IF('Data Input - General'!$F$10=\"Yes\",0,Calc_Option5!BN$81)+IF('Data Input - General'!$F$12=\"Yes\",0,Calc_Option5!BN$75)","v":0},{"$f":"IF('Data Input - General'!$F$10=\"Yes\",0,Calc_Option5!BO$81)+IF('Data Input - General'!$F$12=\"Yes\",0,Calc_Option5!BO$75)","v":0},{"$f":"IF('Data Input - General'!$F$10=\"Yes\",0,Calc_Option5!BP$81)+IF('Data Input - General'!$F$12=\"Yes\",0,Calc_Option5!BP$75)","v":0},{"$f":"IF('Data Input - General'!$F$10=\"Yes\",0,Calc_Option5!BQ$81)+IF('Data Input - General'!$F$12=\"Yes\",0,Calc_Option5!BQ$75)","v":0},{"$f":"IF('Data Input - General'!$F$10=\"Yes\",0,Calc_Option5!BR$81)+IF('Data Input - General'!$F$12=\"Yes\",0,Calc_Option5!BR$75)","v":0},{"$f":"IF('Data Input - General'!$F$10=\"Yes\",0,Calc_Option5!BS$81)+IF('Data Input - General'!$F$12=\"Yes\",0,Calc_Option5!BS$75)","v":0},{"$f":"IF('Data Input - General'!$F$10=\"Yes\",0,Calc_Option5!BT$81)+IF('Data Input - General'!$F$12=\"Yes\",0,Calc_Option5!BT$75)","v":0},{"$f":"IF('Data Input - General'!$F$10=\"Yes\",0,Calc_Option5!BU$81)+IF('Data Input - General'!$F$12=\"Yes\",0,Calc_Option5!BU$75)","v":0},{"$f":"IF('Data Input - General'!$F$10=\"Yes\",0,Calc_Option5!BV$81)+IF('Data Input - General'!$F$12=\"Yes\",0,Calc_Option5!BV$75)","v":0},{"$f":"IF('Data Input - General'!$F$10=\"Yes\",0,Calc_Option5!BW$81)+IF('Data Input - General'!$F$12=\"Yes\",0,Calc_Option5!BW$75)","v":0},{"$f":"IF('Data Input - General'!$F$10=\"Yes\",0,Calc_Option5!BX$81)+IF('Data Input - General'!$F$12=\"Yes\",0,Calc_Option5!BX$75)","v":0},{"$f":"IF('Data Input - General'!$F$10=\"Yes\",0,Calc_Option5!BY$81)+IF('Data Input - General'!$F$12=\"Yes\",0,Calc_Option5!BY$75)","v":0},{"$f":"IF('Data Input - General'!$F$10=\"Yes\",0,Calc_Option5!BZ$81)+IF('Data Input - General'!$F$12=\"Yes\",0,Calc_Option5!BZ$75)","v":0},{"$f":"IF('Data Input - General'!$F$10=\"Yes\",0,Calc_Option5!CA$81)+IF('Data Input - General'!$F$12=\"Yes\",0,Calc_Option5!CA$75)","v":0},{"$f":"IF('Data Input - General'!$F$10=\"Yes\",0,Calc_Option5!CB$81)+IF('Data Input - General'!$F$12=\"Yes\",0,Calc_Option5!CB$75)","v":0},{"$f":"IF('Data Input - General'!$F$10=\"Yes\",0,Calc_Option5!CC$81)+IF('Data Input - General'!$F$12=\"Yes\",0,Calc_Option5!CC$75)","v":0},{"$f":"IF('Data Input - General'!$F$10=\"Yes\",0,Calc_Option5!CD$81)+IF('Data Input - General'!$F$12=\"Yes\",0,Calc_Option5!CD$75)","v":0},{"$f":"IF('Data Input - General'!$F$10=\"Yes\",0,Calc_Option5!CE$81)+IF('Data Input - General'!$F$12=\"Yes\",0,Calc_Option5!CE$75)","v":0},{"$f":"IF('Data Input - General'!$F$10=\"Yes\",0,Calc_Option5!CF$81)+IF('Data Input - General'!$F$12=\"Yes\",0,Calc_Option5!CF$75)","v":0},{"$f":"IF('Data Input - General'!$F$10=\"Yes\",0,Calc_Option5!CG$81)+IF('Data Input - General'!$F$12=\"Yes\",0,Calc_Option5!CG$75)","v":0},{"$f":"IF('Data Input - General'!$F$10=\"Yes\",0,Calc_Option5!CH$81)+IF('Data Input - General'!$F$12=\"Yes\",0,Calc_Option5!CH$75)","v":0},{"$f":"IF('Data Input - General'!$F$10=\"Yes\",0,Calc_Option5!CI$81)+IF('Data Input - General'!$F$12=\"Yes\",0,Calc_Option5!CI$75)","v":0},{"$f":"IF('Data Input - General'!$F$10=\"Yes\",0,Calc_Option5!CJ$81)+IF('Data Input - General'!$F$12=\"Yes\",0,Calc_Option5!CJ$75)","v":0},{"$f":"IF('Data Input - General'!$F$10=\"Yes\",0,Calc_Option5!CK$81)+IF('Data Input - General'!$F$12=\"Yes\",0,Calc_Option5!CK$75)","v":0},{"$f":"IF('Data Input - General'!$F$10=\"Yes\",0,Calc_Option5!CL$81)+IF('Data Input - General'!$F$12=\"Yes\",0,Calc_Option5!CL$75)","v":0},{"$f":"IF('Data Input - General'!$F$10=\"Yes\",0,Calc_Option5!CM$81)+IF('Data Input - General'!$F$12=\"Yes\",0,Calc_Option5!CM$75)","v":0},{"$f":"IF('Data Input - General'!$F$10=\"Yes\",0,Calc_Option5!CN$81)+IF('Data Input - General'!$F$12=\"Yes\",0,Calc_Option5!CN$75)","v":0},{"$f":"IF('Data Input - General'!$F$10=\"Yes\",0,Calc_Option5!CO$81)+IF('Data Input - General'!$F$12=\"Yes\",0,Calc_Option5!CO$75)","v":0},{"$f":"IF('Data Input - General'!$F$10=\"Yes\",0,Calc_Option5!CP$81)+IF('Data Input - General'!$F$12=\"Yes\",0,Calc_Option5!CP$75)","v":0},{"$f":"IF('Data Input - General'!$F$10=\"Yes\",0,Calc_Option5!CQ$81)+IF('Data Input - General'!$F$12=\"Yes\",0,Calc_Option5!CQ$75)","v":0},{"$f":"IF('Data Input - General'!$F$10=\"Yes\",0,Calc_Option5!CR$81)+IF('Data Input - General'!$F$12=\"Yes\",0,Calc_Option5!CR$75)","v":0},{"$f":"IF('Data Input - General'!$F$10=\"Yes\",0,Calc_Option5!CS$81)+IF('Data Input - General'!$F$12=\"Yes\",0,Calc_Option5!CS$75)","v":0},{"$f":"IF('Data Input - General'!$F$10=\"Yes\",0,Calc_Option5!CT$81)+IF('Data Input - General'!$F$12=\"Yes\",0,Calc_Option5!CT$75)","v":0},{"$f":"IF('Data Input - General'!$F$10=\"Yes\",0,Calc_Option5!CU$81)+IF('Data Input - General'!$F$12=\"Yes\",0,Calc_Option5!CU$75)","v":0},{"$f":"IF('Data Input - General'!$F$10=\"Yes\",0,Calc_Option5!CV$81)+IF('Data Input - General'!$F$12=\"Yes\",0,Calc_Option5!CV$75)","v":0},{"$f":"IF('Data Input - General'!$F$10=\"Yes\",0,Calc_Option5!CW$81)+IF('Data Input - General'!$F$12=\"Yes\",0,Calc_Option5!CW$75)","v":0},{"$f":"IF('Data Input - General'!$F$10=\"Yes\",0,Calc_Option5!CX$81)+IF('Data Input - General'!$F$12=\"Yes\",0,Calc_Option5!CX$75)","v":0},{"$f":"IF('Data Input - General'!$F$10=\"Yes\",0,Calc_Option5!CY$81)+IF('Data Input - General'!$F$12=\"Yes\",0,Calc_Option5!CY$75)","v":0}]
[null,"Value non-elec","£000's",{"$f":"IFERROR(INDEX('Carbon Prices'!$D$10:$CP$15,3,MATCH(Calc_Option5!D$6,'Carbon Prices'!$D$9:$CP$9,0))/1000,0)","v":3.6595483614396386E-2},{"$f":"IFERROR(INDEX('Carbon Prices'!$D$10:$CP$15,3,MATCH(Calc_Option5!E$6,'Carbon Prices'!$D$9:$CP$9,0))/1000,0)","v":4.1954810259537539E-2},{"$f":"IFERROR(INDEX('Carbon Prices'!$D$10:$CP$15,3,MATCH(Calc_Option5!F$6,'Carbon Prices'!$D$9:$CP$9,0))/1000,0)","v":5.0409774844480275E-2},{"$f":"IFERROR(INDEX('Carbon Prices'!$D$10:$CP$15,3,MATCH(Calc_Option5!G$6,'Carbon Prices'!$D$9:$CP$9,0))/1000,0)","v":5.886473942942301E-2},{"$f":"IFERROR(INDEX('Carbon Prices'!$D$10:$CP$15,3,MATCH(Calc_Option5!H$6,'Carbon Prices'!$D$9:$CP$9,0))/1000,0)","v":6.7319704014365739E-2},{"$f":"IFERROR(INDEX('Carbon Prices'!$D$10:$CP$15,3,MATCH(Calc_Option5!I$6,'Carbon Prices'!$D$9:$CP$9,0))/1000,0)","v":7.5774668599308467E-2},{"$f":"IFERROR(INDEX('Carbon Prices'!$D$10:$CP$15,3,MATCH(Calc_Option5!J$6,'Carbon Prices'!$D$9:$CP$9,0))/1000,0)","v":8.422963318425121E-2},{"$f":"IFERROR(INDEX('Carbon Prices'!$D$10:$CP$15,3,MATCH(Calc_Option5!K$6,'Carbon Prices'!$D$9:$CP$9,0))/1000,0)","v":9.2684597769193938E-2},{"$f":"IFERROR(INDEX('Carbon Prices'!$D$10:$CP$15,3,MATCH(Calc_Option5!L$6,'Carbon Prices'!$D$9:$CP$9,0))/1000,0)","v":0.10113956235413668},{"$f":"IFERROR(INDEX('Carbon Prices'!$D$10:$CP$15,3,MATCH(Calc_Option5!M$6,'Carbon Prices'!$D$9:$CP$9,0))/1000,0)","v":0.10959452693907941},{"$f":"IFERROR(INDEX('Carbon Prices'!$D$10:$CP$15,3,MATCH(Calc_Option5!N$6,'Carbon Prices'!$D$9:$CP$9,0))/1000,0)","v":0.11804949152402217},{"$f":"IFERROR(INDEX('Carbon Prices'!$D$10:$CP$15,3,MATCH(Calc_Option5!O$6,'Carbon Prices'!$D$9:$CP$9,0))/1000,0)","v":0.12650445610896488},{"$f":"IFERROR(INDEX('Carbon Prices'!$D$10:$CP$15,3,MATCH(Calc_Option5!P$6,'Carbon Prices'!$D$9:$CP$9,0))/1000,0)","v":0.13825129846194026},{"$f":"IFERROR(INDEX('Carbon Prices'!$D$10:$CP$15,3,MATCH(Calc_Option5!Q$6,'Carbon Prices'!$D$9:$CP$9,0))/1000,0)","v":0.14999814081491555},{"$f":"IFERROR(INDEX('Carbon Prices'!$D$10:$CP$15,3,MATCH(Calc_Option5!R$6,'Carbon Prices'!$D$9:$CP$9,0))/1000,0)","v":0.1617449831678909},{"$f":"IFERROR(INDEX('Carbon Prices'!$D$10:$CP$15,3,MATCH(Calc_Option5!S$6,'Carbon Prices'!$D$9:$CP$9,0))/1000,0)","v":0.1734918255208662},{"$f":"IFERROR(INDEX('Carbon Prices'!$D$10:$CP$15,3,MATCH(Calc_Option5!T$6,'Carbon Prices'!$D$9:$CP$9,0))/1000,0)","v":0.18523866787384149},{"$f":"IFERROR(INDEX('Carbon Prices'!$D$10:$CP$15,3,MATCH(Calc_Option5!U$6,'Carbon Prices'!$D$9:$CP$9,0))/1000,0)","v":0.19698551022681682},{"$f":"IFERROR(INDEX('Carbon Prices'!$D$10:$CP$15,3,MATCH(Calc_Option5!V$6,'Carbon Prices'!$D$9:$CP$9,0))/1000,0)","v":0.20873235257979214},{"$f":"IFERROR(INDEX('Carbon Prices'!$D$10:$CP$15,3,MATCH(Calc_Option5!W$6,'Carbon Prices'!$D$9:$CP$9,0))/1000,0)","v":0.22047919493276749},{"$f":"IFERROR(INDEX('Carbon Prices'!$D$10:$CP$15,3,MATCH(Calc_Option5!X$6,'Carbon Prices'!$D$9:$CP$9,0))/1000,0)","v":0.23222603728574279},{"$f":"IFERROR(INDEX('Carbon Prices'!$D$10:$CP$15,3,MATCH(Calc_Option5!Y$6,'Carbon Prices'!$D$9:$CP$9,0))/1000,0)","v":0.24397287963871811},{"$f":"IFERROR(INDEX('Carbon Prices'!$D$10:$CP$15,3,MATCH(Calc_Option5!Z$6,'Carbon Prices'!$D$9:$CP$9,0))/1000,0)","v":0.25571972199169341},{"$f":"IFERROR(INDEX('Carbon Prices'!$D$10:$CP$15,3,MATCH(Calc_Option5!AA$6,'Carbon Prices'!$D$9:$CP$9,0))/1000,0)","v":0.2674665643446687},{"$f":"IFERROR(INDEX('Carbon Prices'!$D$10:$CP$15,3,MATCH(Calc_Option5!AB$6,'Carbon Prices'!$D$9:$CP$9,0))/1000,0)","v":0.27921340669764405},{"$f":"IFERROR(INDEX('Carbon Prices'!$D$10:$CP$15,3,MATCH(Calc_Option5!AC$6,'Carbon Prices'!$D$9:$CP$9,0))/1000,0)","v":0.2909602490506194},{"$f":"IFERROR(INDEX('Carbon Prices'!$D$10:$CP$15,3,MATCH(Calc_Option5!AD$6,'Carbon Prices'!$D$9:$CP$9,0))/1000,0)","v":0.3027070914035947},{"$f":"IFERROR(INDEX('Carbon Prices'!$D$10:$CP$15,3,MATCH(Calc_Option5!AE$6,'Carbon Prices'!$D$9:$CP$9,0))/1000,0)","v":0.31445393375656999},{"$f":"IFERROR(INDEX('Carbon Prices'!$D$10:$CP$15,3,MATCH(Calc_Option5!AF$6,'Carbon Prices'!$D$9:$CP$9,0))/1000,0)","v":0.32620077610954529},{"$f":"IFERROR(INDEX('Carbon Prices'!$D$10:$CP$15,3,MATCH(Calc_Option5!AG$6,'Carbon Prices'!$D$9:$CP$9,0))/1000,0)","v":0.33794761846252058},{"$f":"IFERROR(INDEX('Carbon Prices'!$D$10:$CP$15,3,MATCH(Calc_Option5!AH$6,'Carbon Prices'!$D$9:$CP$9,0))/1000,0)","v":0.34969446081549593},{"$f":"IFERROR(INDEX('Carbon Prices'!$D$10:$CP$15,3,MATCH(Calc_Option5!AI$6,'Carbon Prices'!$D$9:$CP$9,0))/1000,0)","v":0},{"$f":"IFERROR(INDEX('Carbon Prices'!$D$10:$CP$15,3,MATCH(Calc_Option5!AJ$6,'Carbon Prices'!$D$9:$CP$9,0))/1000,0)","v":0},{"$f":"IFERROR(INDEX('Carbon Prices'!$D$10:$CP$15,3,MATCH(Calc_Option5!AK$6,'Carbon Prices'!$D$9:$CP$9,0))/1000,0)","v":0},{"$f":"IFERROR(INDEX('Carbon Prices'!$D$10:$CP$15,3,MATCH(Calc_Option5!AL$6,'Carbon Prices'!$D$9:$CP$9,0))/1000,0)","v":0},{"$f":"IFERROR(INDEX('Carbon Prices'!$D$10:$CP$15,3,MATCH(Calc_Option5!AM$6,'Carbon Prices'!$D$9:$CP$9,0))/1000,0)","v":0},{"$f":"IFERROR(INDEX('Carbon Prices'!$D$10:$CP$15,3,MATCH(Calc_Option5!AN$6,'Carbon Prices'!$D$9:$CP$9,0))/1000,0)","v":0},{"$f":"IFERROR(INDEX('Carbon Prices'!$D$10:$CP$15,3,MATCH(Calc_Option5!AO$6,'Carbon Prices'!$D$9:$CP$9,0))/1000,0)","v":0},{"$f":"IFERROR(INDEX('Carbon Prices'!$D$10:$CP$15,3,MATCH(Calc_Option5!AP$6,'Carbon Prices'!$D$9:$CP$9,0))/1000,0)","v":0},{"$f":"IFERROR(INDEX('Carbon Prices'!$D$10:$CP$15,3,MATCH(Calc_Option5!AQ$6,'Carbon Prices'!$D$9:$CP$9,0))/1000,0)","v":0},{"$f":"IFERROR(INDEX('Carbon Prices'!$D$10:$CP$15,3,MATCH(Calc_Option5!AR$6,'Carbon Prices'!$D$9:$CP$9,0))/1000,0)","v":0},{"$f":"IFERROR(INDEX('Carbon Prices'!$D$10:$CP$15,3,MATCH(Calc_Option5!AS$6,'Carbon Prices'!$D$9:$CP$9,0))/1000,0)","v":0},{"$f":"IFERROR(INDEX('Carbon Prices'!$D$10:$CP$15,3,MATCH(Calc_Option5!AT$6,'Carbon Prices'!$D$9:$CP$9,0))/1000,0)","v":0},{"$f":"IFERROR(INDEX('Carbon Prices'!$D$10:$CP$15,3,MATCH(Calc_Option5!AU$6,'Carbon Prices'!$D$9:$CP$9,0))/1000,0)","v":0},{"$f":"IFERROR(INDEX('Carbon Prices'!$D$10:$CP$15,3,MATCH(Calc_Option5!AV$6,'Carbon Prices'!$D$9:$CP$9,0))/1000,0)","v":0},{"$f":"IFERROR(INDEX('Carbon Prices'!$D$10:$CP$15,3,MATCH(Calc_Option5!AW$6,'Carbon Prices'!$D$9:$CP$9,0))/1000,0)","v":0},{"$f":"IFERROR(INDEX('Carbon Prices'!$D$10:$CP$15,3,MATCH(Calc_Option5!AX$6,'Carbon Prices'!$D$9:$CP$9,0))/1000,0)","v":0},{"$f":"IFERROR(INDEX('Carbon Prices'!$D$10:$CP$15,3,MATCH(Calc_Option5!AY$6,'Carbon Prices'!$D$9:$CP$9,0))/1000,0)","v":0},{"$f":"IFERROR(INDEX('Carbon Prices'!$D$10:$CP$15,3,MATCH(Calc_Option5!AZ$6,'Carbon Prices'!$D$9:$CP$9,0))/1000,0)","v":0},{"$f":"IFERROR(INDEX('Carbon Prices'!$D$10:$CP$15,3,MATCH(Calc_Option5!BA$6,'Carbon Prices'!$D$9:$CP$9,0))/1000,0)","v":0},{"$f":"IFERROR(INDEX('Carbon Prices'!$D$10:$CP$15,3,MATCH(Calc_Option5!BB$6,'Carbon Prices'!$D$9:$CP$9,0))/1000,0)","v":0},{"$f":"IFERROR(INDEX('Carbon Prices'!$D$10:$CP$15,3,MATCH(Calc_Option5!BC$6,'Carbon Prices'!$D$9:$CP$9,0))/1000,0)","v":0},{"$f":"IFERROR(INDEX('Carbon Prices'!$D$10:$CP$15,3,MATCH(Calc_Option5!BD$6,'Carbon Prices'!$D$9:$CP$9,0))/1000,0)","v":0},{"$f":"IFERROR(INDEX('Carbon Prices'!$D$10:$CP$15,3,MATCH(Calc_Option5!BE$6,'Carbon Prices'!$D$9:$CP$9,0))/1000,0)","v":0},{"$f":"IFERROR(INDEX('Carbon Prices'!$D$10:$CP$15,3,MATCH(Calc_Option5!BF$6,'Carbon Prices'!$D$9:$CP$9,0))/1000,0)","v":0},{"$f":"IFERROR(INDEX('Carbon Prices'!$D$10:$CP$15,3,MATCH(Calc_Option5!BG$6,'Carbon Prices'!$D$9:$CP$9,0))/1000,0)","v":0},{"$f":"IFERROR(INDEX('Carbon Prices'!$D$10:$CP$15,3,MATCH(Calc_Option5!BH$6,'Carbon Prices'!$D$9:$CP$9,0))/1000,0)","v":0},{"$f":"IFERROR(INDEX('Carbon Prices'!$D$10:$CP$15,3,MATCH(Calc_Option5!BI$6,'Carbon Prices'!$D$9:$CP$9,0))/1000,0)","v":0},{"$f":"IFERROR(INDEX('Carbon Prices'!$D$10:$CP$15,3,MATCH(Calc_Option5!BJ$6,'Carbon Prices'!$D$9:$CP$9,0))/1000,0)","v":0},{"$f":"IFERROR(INDEX('Carbon Prices'!$D$10:$CP$15,3,MATCH(Calc_Option5!BK$6,'Carbon Prices'!$D$9:$CP$9,0))/1000,0)","v":0},{"$f":"IFERROR(INDEX('Carbon Prices'!$D$10:$CP$15,3,MATCH(Calc_Option5!BL$6,'Carbon Prices'!$D$9:$CP$9,0))/1000,0)","v":0},{"$f":"IFERROR(INDEX('Carbon Prices'!$D$10:$CP$15,3,MATCH(Calc_Option5!BM$6,'Carbon Prices'!$D$9:$CP$9,0))/1000,0)","v":0},{"$f":"IFERROR(INDEX('Carbon Prices'!$D$10:$CP$15,3,MATCH(Calc_Option5!BN$6,'Carbon Prices'!$D$9:$CP$9,0))/1000,0)","v":0},{"$f":"IFERROR(INDEX('Carbon Prices'!$D$10:$CP$15,3,MATCH(Calc_Option5!BO$6,'Carbon Prices'!$D$9:$CP$9,0))/1000,0)","v":0},{"$f":"IFERROR(INDEX('Carbon Prices'!$D$10:$CP$15,3,MATCH(Calc_Option5!BP$6,'Carbon Prices'!$D$9:$CP$9,0))/1000,0)","v":0},{"$f":"IFERROR(INDEX('Carbon Prices'!$D$10:$CP$15,3,MATCH(Calc_Option5!BQ$6,'Carbon Prices'!$D$9:$CP$9,0))/1000,0)","v":0},{"$f":"IFERROR(INDEX('Carbon Prices'!$D$10:$CP$15,3,MATCH(Calc_Option5!BR$6,'Carbon Prices'!$D$9:$CP$9,0))/1000,0)","v":0},{"$f":"IFERROR(INDEX('Carbon Prices'!$D$10:$CP$15,3,MATCH(Calc_Option5!BS$6,'Carbon Prices'!$D$9:$CP$9,0))/1000,0)","v":0},{"$f":"IFERROR(INDEX('Carbon Prices'!$D$10:$CP$15,3,MATCH(Calc_Option5!BT$6,'Carbon Prices'!$D$9:$CP$9,0))/1000,0)","v":0},{"$f":"IFERROR(INDEX('Carbon Prices'!$D$10:$CP$15,3,MATCH(Calc_Option5!BU$6,'Carbon Prices'!$D$9:$CP$9,0))/1000,0)","v":0},{"$f":"IFERROR(INDEX('Carbon Prices'!$D$10:$CP$15,3,MATCH(Calc_Option5!BV$6,'Carbon Prices'!$D$9:$CP$9,0))/1000,0)","v":0},{"$f":"IFERROR(INDEX('Carbon Prices'!$D$10:$CP$15,3,MATCH(Calc_Option5!BW$6,'Carbon Prices'!$D$9:$CP$9,0))/1000,0)","v":0},{"$f":"IFERROR(INDEX('Carbon Prices'!$D$10:$CP$15,3,MATCH(Calc_Option5!BX$6,'Carbon Prices'!$D$9:$CP$9,0))/1000,0)","v":0},{"$f":"IFERROR(INDEX('Carbon Prices'!$D$10:$CP$15,3,MATCH(Calc_Option5!BY$6,'Carbon Prices'!$D$9:$CP$9,0))/1000,0)","v":0},{"$f":"IFERROR(INDEX('Carbon Prices'!$D$10:$CP$15,3,MATCH(Calc_Option5!BZ$6,'Carbon Prices'!$D$9:$CP$9,0))/1000,0)","v":0},{"$f":"IFERROR(INDEX('Carbon Prices'!$D$10:$CP$15,3,MATCH(Calc_Option5!CA$6,'Carbon Prices'!$D$9:$CP$9,0))/1000,0)","v":0},{"$f":"IFERROR(INDEX('Carbon Prices'!$D$10:$CP$15,3,MATCH(Calc_Option5!CB$6,'Carbon Prices'!$D$9:$CP$9,0))/1000,0)","v":0},{"$f":"IFERROR(INDEX('Carbon Prices'!$D$10:$CP$15,3,MATCH(Calc_Option5!CC$6,'Carbon Prices'!$D$9:$CP$9,0))/1000,0)","v":0},{"$f":"IFERROR(INDEX('Carbon Prices'!$D$10:$CP$15,3,MATCH(Calc_Option5!CD$6,'Carbon Prices'!$D$9:$CP$9,0))/1000,0)","v":0},{"$f":"IFERROR(INDEX('Carbon Prices'!$D$10:$CP$15,3,MATCH(Calc_Option5!CE$6,'Carbon Prices'!$D$9:$CP$9,0))/1000,0)","v":0},{"$f":"IFERROR(INDEX('Carbon Prices'!$D$10:$CP$15,3,MATCH(Calc_Option5!CF$6,'Carbon Prices'!$D$9:$CP$9,0))/1000,0)","v":0},{"$f":"IFERROR(INDEX('Carbon Prices'!$D$10:$CP$15,3,MATCH(Calc_Option5!CG$6,'Carbon Prices'!$D$9:$CP$9,0))/1000,0)","v":0},{"$f":"IFERROR(INDEX('Carbon Prices'!$D$10:$CP$15,3,MATCH(Calc_Option5!CH$6,'Carbon Prices'!$D$9:$CP$9,0))/1000,0)","v":0},{"$f":"IFERROR(INDEX('Carbon Prices'!$D$10:$CP$15,3,MATCH(Calc_Option5!CI$6,'Carbon Prices'!$D$9:$CP$9,0))/1000,0)","v":0},{"$f":"IFERROR(INDEX('Carbon Prices'!$D$10:$CP$15,3,MATCH(Calc_Option5!CJ$6,'Carbon Prices'!$D$9:$CP$9,0))/1000,0)","v":0},{"$f":"IFERROR(INDEX('Carbon Prices'!$D$10:$CP$15,3,MATCH(Calc_Option5!CK$6,'Carbon Prices'!$D$9:$CP$9,0))/1000,0)","v":0},{"$f":"IFERROR(INDEX('Carbon Prices'!$D$10:$CP$15,3,MATCH(Calc_Option5!CL$6,'Carbon Prices'!$D$9:$CP$9,0))/1000,0)","v":0},{"$f":"IFERROR(INDEX('Carbon Prices'!$D$10:$CP$15,3,MATCH(Calc_Option5!CM$6,'Carbon Prices'!$D$9:$CP$9,0))/1000,0)","v":0},{"$f":"IFERROR(INDEX('Carbon Prices'!$D$10:$CP$15,3,MATCH(Calc_Option5!CN$6,'Carbon Prices'!$D$9:$CP$9,0))/1000,0)","v":0},{"$f":"IFERROR(INDEX('Carbon Prices'!$D$10:$CP$15,3,MATCH(Calc_Option5!CO$6,'Carbon Prices'!$D$9:$CP$9,0))/1000,0)","v":0},{"$f":"IFERROR(INDEX('Carbon Prices'!$D$10:$CP$15,3,MATCH(Calc_Option5!CP$6,'Carbon Prices'!$D$9:$CP$9,0))/1000,0)","v":0},{"$f":"IFERROR(INDEX('Carbon Prices'!$D$10:$CP$15,3,MATCH(Calc_Option5!CQ$6,'Carbon Prices'!$D$9:$CP$9,0))/1000,0)","v":0},{"$f":"IFERROR(INDEX('Carbon Prices'!$D$10:$CP$15,3,MATCH(Calc_Option5!CR$6,'Carbon Prices'!$D$9:$CP$9,0))/1000,0)","v":0},{"$f":"IFERROR(INDEX('Carbon Prices'!$D$10:$CP$15,3,MATCH(Calc_Option5!CS$6,'Carbon Prices'!$D$9:$CP$9,0))/1000,0)","v":0},{"$f":"IFERROR(INDEX('Carbon Prices'!$D$10:$CP$15,3,MATCH(Calc_Option5!CT$6,'Carbon Prices'!$D$9:$CP$9,0))/1000,0)","v":0},{"$f":"IFERROR(INDEX('Carbon Prices'!$D$10:$CP$15,3,MATCH(Calc_Option5!CU$6,'Carbon Prices'!$D$9:$CP$9,0))/1000,0)","v":0},{"$f":"IFERROR(INDEX('Carbon Prices'!$D$10:$CP$15,3,MATCH(Calc_Option5!CV$6,'Carbon Prices'!$D$9:$CP$9,0))/1000,0)","v":0},{"$f":"IFERROR(INDEX('Carbon Prices'!$D$10:$CP$15,3,MATCH(Calc_Option5!CW$6,'Carbon Prices'!$D$9:$CP$9,0))/1000,0)","v":0},{"$f":"IFERROR(INDEX('Carbon Prices'!$D$10:$CP$15,3,MATCH(Calc_Option5!CX$6,'Carbon Prices'!$D$9:$CP$9,0))/1000,0)","v":0},{"$f":"IFERROR(INDEX('Carbon Prices'!$D$10:$CP$15,3,MATCH(Calc_Option5!CY$6,'Carbon Prices'!$D$9:$CP$9,0))/1000,0)","v":0}]
[null,"Total value elec","£000's",{"$f":"IFERROR(INDEX('Carbon Prices'!$D$10:$CP$15,6,MATCH(Calc_Option5!D$6,'Carbon Prices'!$D$9:$CP$9,0))/1000,0)","v":0.10682994182319348},{"$f":"IFERROR(INDEX('Carbon Prices'!$D$10:$CP$15,6,MATCH(Calc_Option5!E$6,'Carbon Prices'!$D$9:$CP$9,0))/1000,0)","v":0.10843239095054137},{"$f":"IFERROR(INDEX('Carbon Prices'!$D$10:$CP$15,6,MATCH(Calc_Option5!F$6,'Carbon Prices'!$D$9:$CP$9,0))/1000,0)","v":0.11023959746638375},{"$f":"IFERROR(INDEX('Carbon Prices'!$D$10:$CP$15,6,MATCH(Calc_Option5!G$6,'Carbon Prices'!$D$9:$CP$9,0))/1000,0)","v":0.11204680398222609},{"$f":"IFERROR(INDEX('Carbon Prices'!$D$10:$CP$15,6,MATCH(Calc_Option5!H$6,'Carbon Prices'!$D$9:$CP$9,0))/1000,0)","v":0.11385401049806844},{"$f":"IFERROR(INDEX('Carbon Prices'!$D$10:$CP$15,6,MATCH(Calc_Option5!I$6,'Carbon Prices'!$D$9:$CP$9,0))/1000,0)","v":0.1156612170139108},{"$f":"IFERROR(INDEX('Carbon Prices'!$D$10:$CP$15,6,MATCH(Calc_Option5!J$6,'Carbon Prices'!$D$9:$CP$9,0))/1000,0)","v":0.11746842352975315},{"$f":"IFERROR(INDEX('Carbon Prices'!$D$10:$CP$15,6,MATCH(Calc_Option5!K$6,'Carbon Prices'!$D$9:$CP$9,0))/1000,0)","v":0.11927563004559551},{"$f":"IFERROR(INDEX('Carbon Prices'!$D$10:$CP$15,6,MATCH(Calc_Option5!L$6,'Carbon Prices'!$D$9:$CP$9,0))/1000,0)","v":0.12108283656143787},{"$f":"IFERROR(INDEX('Carbon Prices'!$D$10:$CP$15,6,MATCH(Calc_Option5!M$6,'Carbon Prices'!$D$9:$CP$9,0))/1000,0)","v":0.12289004307728023},{"$f":"IFERROR(INDEX('Carbon Prices'!$D$10:$CP$15,6,MATCH(Calc_Option5!N$6,'Carbon Prices'!$D$9:$CP$9,0))/1000,0)","v":0.12469724959312259},{"$f":"IFERROR(INDEX('Carbon Prices'!$D$10:$CP$15,6,MATCH(Calc_Option5!O$6,'Carbon Prices'!$D$9:$CP$9,0))/1000,0)","v":0.12650445610896494},{"$f":"IFERROR(INDEX('Carbon Prices'!$D$10:$CP$15,6,MATCH(Calc_Option5!P$6,'Carbon Prices'!$D$9:$CP$9,0))/1000,0)","v":0.13825129846194026},{"$f":"IFERROR(INDEX('Carbon Prices'!$D$10:$CP$15,6,MATCH(Calc_Option5!Q$6,'Carbon Prices'!$D$9:$CP$9,0))/1000,0)","v":0.14999814081491555},{"$f":"IFERROR(INDEX('Carbon Prices'!$D$10:$CP$15,6,MATCH(Calc_Option5!R$6,'Carbon Prices'!$D$9:$CP$9,0))/1000,0)","v":0.1617449831678909},{"$f":"IFERROR(INDEX('Carbon Prices'!$D$10:$CP$15,6,MATCH(Calc_Option5!S$6,'Carbon Prices'!$D$9:$CP$9,0))/1000,0)","v":0.1734918255208662},{"$f":"IFERROR(INDEX('Carbon Prices'!$D$10:$CP$15,6,MATCH(Calc_Option5!T$6,'Carbon Prices'!$D$9:$CP$9,0))/1000,0)","v":0.18523866787384149},{"$f":"IFERROR(INDEX('Carbon Prices'!$D$10:$CP$15,6,MATCH(Calc_Option5!U$6,'Carbon Prices'!$D$9:$CP$9,0))/1000,0)","v":0.19698551022681682},{"$f":"IFERROR(INDEX('Carbon Prices'!$D$10:$CP$15,6,MATCH(Calc_Option5!V$6,'Carbon Prices'!$D$9:$CP$9,0))/1000,0)","v":0.20873235257979214},{"$f":"IFERROR(INDEX('Carbon Prices'!$D$10:$CP$15,6,MATCH(Calc_Option5!W$6,'Carbon Prices'!$D$9:$CP$9,0))/1000,0)","v":0.22047919493276749},{"$f":"IFERROR(INDEX('Carbon Prices'!$D$10:$CP$15,6,MATCH(Calc_Option5!X$6,'Carbon Prices'!$D$9:$CP$9,0))/1000,0)","v":0.23222603728574279},{"$f":"IFERROR(INDEX('Carbon Prices'!$D$10:$CP$15,6,MATCH(Calc_Option5!Y$6,'Carbon Prices'!$D$9:$CP$9,0))/1000,0)","v":0.24397287963871811},{"$f":"IFERROR(INDEX('Carbon Prices'!$D$10:$CP$15,6,MATCH(Calc_Option5!Z$6,'Carbon Prices'!$D$9:$CP$9,0))/1000,0)","v":0.25571972199169341},{"$f":"IFERROR(INDEX('Carbon Prices'!$D$10:$CP$15,6,MATCH(Calc_Option5!AA$6,'Carbon Prices'!$D$9:$CP$9,0))/1000,0)","v":0.2674665643446687},{"$f":"IFERROR(INDEX('Carbon Prices'!$D$10:$CP$15,6,MATCH(Calc_Option5!AB$6,'Carbon Prices'!$D$9:$CP$9,0))/1000,0)","v":0.27921340669764405},{"$f":"IFERROR(INDEX('Carbon Prices'!$D$10:$CP$15,6,MATCH(Calc_Option5!AC$6,'Carbon Prices'!$D$9:$CP$9,0))/1000,0)","v":0.2909602490506194},{"$f":"IFERROR(INDEX('Carbon Prices'!$D$10:$CP$15,6,MATCH(Calc_Option5!AD$6,'Carbon Prices'!$D$9:$CP$9,0))/1000,0)","v":0.3027070914035947},{"$f":"IFERROR(INDEX('Carbon Prices'!$D$10:$CP$15,6,MATCH(Calc_Option5!AE$6,'Carbon Prices'!$D$9:$CP$9,0))/1000,0)","v":0.31445393375656999},{"$f":"IFERROR(INDEX('Carbon Prices'!$D$10:$CP$15,6,MATCH(Calc_Option5!AF$6,'Carbon Prices'!$D$9:$CP$9,0))/1000,0)","v":0.32620077610954529},{"$f":"IFERROR(INDEX('Carbon Prices'!$D$10:$CP$15,6,MATCH(Calc_Option5!AG$6,'Carbon Prices'!$D$9:$CP$9,0))/1000,0)","v":0.33794761846252058},{"$f":"IFERROR(INDEX('Carbon Prices'!$D$10:$CP$15,6,MATCH(Calc_Option5!AH$6,'Carbon Prices'!$D$9:$CP$9,0))/1000,0)","v":0.34969446081549593},{"$f":"IFERROR(INDEX('Carbon Prices'!$D$10:$CP$15,6,MATCH(Calc_Option5!AI$6,'Carbon Prices'!$D$9:$CP$9,0))/1000,0)","v":0},{"$f":"IFERROR(INDEX('Carbon Prices'!$D$10:$CP$15,6,MATCH(Calc_Option5!AJ$6,'Carbon Prices'!$D$9:$CP$9,0))/1000,0)","v":0},{"$f":"IFERROR(INDEX('Carbon Prices'!$D$10:$CP$15,6,MATCH(Calc_Option5!AK$6,'Carbon Prices'!$D$9:$CP$9,0))/1000,0)","v":0},{"$f":"IFERROR(INDEX('Carbon Prices'!$D$10:$CP$15,6,MATCH(Calc_Option5!AL$6,'Carbon Prices'!$D$9:$CP$9,0))/1000,0)","v":0},{"$f":"IFERROR(INDEX('Carbon Prices'!$D$10:$CP$15,6,MATCH(Calc_Option5!AM$6,'Carbon Prices'!$D$9:$CP$9,0))/1000,0)","v":0},{"$f":"IFERROR(INDEX('Carbon Prices'!$D$10:$CP$15,6,MATCH(Calc_Option5!AN$6,'Carbon Prices'!$D$9:$CP$9,0))/1000,0)","v":0},{"$f":"IFERROR(INDEX('Carbon Prices'!$D$10:$CP$15,6,MATCH(Calc_Option5!AO$6,'Carbon Prices'!$D$9:$CP$9,0))/1000,0)","v":0},{"$f":"IFERROR(INDEX('Carbon Prices'!$D$10:$CP$15,6,MATCH(Calc_Option5!AP$6,'Carbon Prices'!$D$9:$CP$9,0))/1000,0)","v":0},{"$f":"IFERROR(INDEX('Carbon Prices'!$D$10:$CP$15,6,MATCH(Calc_Option5!AQ$6,'Carbon Prices'!$D$9:$CP$9,0))/1000,0)","v":0},{"$f":"IFERROR(INDEX('Carbon Prices'!$D$10:$CP$15,6,MATCH(Calc_Option5!AR$6,'Carbon Prices'!$D$9:$CP$9,0))/1000,0)","v":0},{"$f":"IFERROR(INDEX('Carbon Prices'!$D$10:$CP$15,6,MATCH(Calc_Option5!AS$6,'Carbon Prices'!$D$9:$CP$9,0))/1000,0)","v":0},{"$f":"IFERROR(INDEX('Carbon Prices'!$D$10:$CP$15,6,MATCH(Calc_Option5!AT$6,'Carbon Prices'!$D$9:$CP$9,0))/1000,0)","v":0},{"$f":"IFERROR(INDEX('Carbon Prices'!$D$10:$CP$15,6,MATCH(Calc_Option5!AU$6,'Carbon Prices'!$D$9:$CP$9,0))/1000,0)","v":0},{"$f":"IFERROR(INDEX('Carbon Prices'!$D$10:$CP$15,6,MATCH(Calc_Option5!AV$6,'Carbon Prices'!$D$9:$CP$9,0))/1000,0)","v":0},{"$f":"IFERROR(INDEX('Carbon Prices'!$D$10:$CP$15,6,MATCH(Calc_Option5!AW$6,'Carbon Prices'!$D$9:$CP$9,0))/1000,0)","v":0},{"$f":"IFERROR(INDEX('Carbon Prices'!$D$10:$CP$15,6,MATCH(Calc_Option5!AX$6,'Carbon Prices'!$D$9:$CP$9,0))/1000,0)","v":0},{"$f":"IFERROR(INDEX('Carbon Prices'!$D$10:$CP$15,6,MATCH(Calc_Option5!AY$6,'Carbon Prices'!$D$9:$CP$9,0))/1000,0)","v":0},{"$f":"IFERROR(INDEX('Carbon Prices'!$D$10:$CP$15,6,MATCH(Calc_Option5!AZ$6,'Carbon Prices'!$D$9:$CP$9,0))/1000,0)","v":0},{"$f":"IFERROR(INDEX('Carbon Prices'!$D$10:$CP$15,6,MATCH(Calc_Option5!BA$6,'Carbon Prices'!$D$9:$CP$9,0))/1000,0)","v":0},{"$f":"IFERROR(INDEX('Carbon Prices'!$D$10:$CP$15,6,MATCH(Calc_Option5!BB$6,'Carbon Prices'!$D$9:$CP$9,0))/1000,0)","v":0},{"$f":"IFERROR(INDEX('Carbon Prices'!$D$10:$CP$15,6,MATCH(Calc_Option5!BC$6,'Carbon Prices'!$D$9:$CP$9,0))/1000,0)","v":0},{"$f":"IFERROR(INDEX('Carbon Prices'!$D$10:$CP$15,6,MATCH(Calc_Option5!BD$6,'Carbon Prices'!$D$9:$CP$9,0))/1000,0)","v":0},{"$f":"IFERROR(INDEX('Carbon Prices'!$D$10:$CP$15,6,MATCH(Calc_Option5!BE$6,'Carbon Prices'!$D$9:$CP$9,0))/1000,0)","v":0},{"$f":"IFERROR(INDEX('Carbon Prices'!$D$10:$CP$15,6,MATCH(Calc_Option5!BF$6,'Carbon Prices'!$D$9:$CP$9,0))/1000,0)","v":0},{"$f":"IFERROR(INDEX('Carbon Prices'!$D$10:$CP$15,6,MATCH(Calc_Option5!BG$6,'Carbon Prices'!$D$9:$CP$9,0))/1000,0)","v":0},{"$f":"IFERROR(INDEX('Carbon Prices'!$D$10:$CP$15,6,MATCH(Calc_Option5!BH$6,'Carbon Prices'!$D$9:$CP$9,0))/1000,0)","v":0},{"$f":"IFERROR(INDEX('Carbon Prices'!$D$10:$CP$15,6,MATCH(Calc_Option5!BI$6,'Carbon Prices'!$D$9:$CP$9,0))/1000,0)","v":0},{"$f":"IFERROR(INDEX('Carbon Prices'!$D$10:$CP$15,6,MATCH(Calc_Option5!BJ$6,'Carbon Prices'!$D$9:$CP$9,0))/1000,0)","v":0},{"$f":"IFERROR(INDEX('Carbon Prices'!$D$10:$CP$15,6,MATCH(Calc_Option5!BK$6,'Carbon Prices'!$D$9:$CP$9,0))/1000,0)","v":0},{"$f":"IFERROR(INDEX('Carbon Prices'!$D$10:$CP$15,6,MATCH(Calc_Option5!BL$6,'Carbon Prices'!$D$9:$CP$9,0))/1000,0)","v":0},{"$f":"IFERROR(INDEX('Carbon Prices'!$D$10:$CP$15,6,MATCH(Calc_Option5!BM$6,'Carbon Prices'!$D$9:$CP$9,0))/1000,0)","v":0},{"$f":"IFERROR(INDEX('Carbon Prices'!$D$10:$CP$15,6,MATCH(Calc_Option5!BN$6,'Carbon Prices'!$D$9:$CP$9,0))/1000,0)","v":0},{"$f":"IFERROR(INDEX('Carbon Prices'!$D$10:$CP$15,6,MATCH(Calc_Option5!BO$6,'Carbon Prices'!$D$9:$CP$9,0))/1000,0)","v":0},{"$f":"IFERROR(INDEX('Carbon Prices'!$D$10:$CP$15,6,MATCH(Calc_Option5!BP$6,'Carbon Prices'!$D$9:$CP$9,0))/1000,0)","v":0},{"$f":"IFERROR(INDEX('Carbon Prices'!$D$10:$CP$15,6,MATCH(Calc_Option5!BQ$6,'Carbon Prices'!$D$9:$CP$9,0))/1000,0)","v":0},{"$f":"IFERROR(INDEX('Carbon Prices'!$D$10:$CP$15,6,MATCH(Calc_Option5!BR$6,'Carbon Prices'!$D$9:$CP$9,0))/1000,0)","v":0},{"$f":"IFERROR(INDEX('Carbon Prices'!$D$10:$CP$15,6,MATCH(Calc_Option5!BS$6,'Carbon Prices'!$D$9:$CP$9,0))/1000,0)","v":0},{"$f":"IFERROR(INDEX('Carbon Prices'!$D$10:$CP$15,6,MATCH(Calc_Option5!BT$6,'Carbon Prices'!$D$9:$CP$9,0))/1000,0)","v":0},{"$f":"IFERROR(INDEX('Carbon Prices'!$D$10:$CP$15,6,MATCH(Calc_Option5!BU$6,'Carbon Prices'!$D$9:$CP$9,0))/1000,0)","v":0},{"$f":"IFERROR(INDEX('Carbon Prices'!$D$10:$CP$15,6,MATCH(Calc_Option5!BV$6,'Carbon Prices'!$D$9:$CP$9,0))/1000,0)","v":0},{"$f":"IFERROR(INDEX('Carbon Prices'!$D$10:$CP$15,6,MATCH(Calc_Option5!BW$6,'Carbon Prices'!$D$9:$CP$9,0))/1000,0)","v":0},{"$f":"IFERROR(INDEX('Carbon Prices'!$D$10:$CP$15,6,MATCH(Calc_Option5!BX$6,'Carbon Prices'!$D$9:$CP$9,0))/1000,0)","v":0},{"$f":"IFERROR(INDEX('Carbon Prices'!$D$10:$CP$15,6,MATCH(Calc_Option5!BY$6,'Carbon Prices'!$D$9:$CP$9,0))/1000,0)","v":0},{"$f":"IFERROR(INDEX('Carbon Prices'!$D$10:$CP$15,6,MATCH(Calc_Option5!BZ$6,'Carbon Prices'!$D$9:$CP$9,0))/1000,0)","v":0},{"$f":"IFERROR(INDEX('Carbon Prices'!$D$10:$CP$15,6,MATCH(Calc_Option5!CA$6,'Carbon Prices'!$D$9:$CP$9,0))/1000,0)","v":0},{"$f":"IFERROR(INDEX('Carbon Prices'!$D$10:$CP$15,6,MATCH(Calc_Option5!CB$6,'Carbon Prices'!$D$9:$CP$9,0))/1000,0)","v":0},{"$f":"IFERROR(INDEX('Carbon Prices'!$D$10:$CP$15,6,MATCH(Calc_Option5!CC$6,'Carbon Prices'!$D$9:$CP$9,0))/1000,0)","v":0},{"$f":"IFERROR(INDEX('Carbon Prices'!$D$10:$CP$15,6,MATCH(Calc_Option5!CD$6,'Carbon Prices'!$D$9:$CP$9,0))/1000,0)","v":0},{"$f":"IFERROR(INDEX('Carbon Prices'!$D$10:$CP$15,6,MATCH(Calc_Option5!CE$6,'Carbon Prices'!$D$9:$CP$9,0))/1000,0)","v":0},{"$f":"IFERROR(INDEX('Carbon Prices'!$D$10:$CP$15,6,MATCH(Calc_Option5!CF$6,'Carbon Prices'!$D$9:$CP$9,0))/1000,0)","v":0},{"$f":"IFERROR(INDEX('Carbon Prices'!$D$10:$CP$15,6,MATCH(Calc_Option5!CG$6,'Carbon Prices'!$D$9:$CP$9,0))/1000,0)","v":0},{"$f":"IFERROR(INDEX('Carbon Prices'!$D$10:$CP$15,6,MATCH(Calc_Option5!CH$6,'Carbon Prices'!$D$9:$CP$9,0))/1000,0)","v":0},{"$f":"IFERROR(INDEX('Carbon Prices'!$D$10:$CP$15,6,MATCH(Calc_Option5!CI$6,'Carbon Prices'!$D$9:$CP$9,0))/1000,0)","v":0},{"$f":"IFERROR(INDEX('Carbon Prices'!$D$10:$CP$15,6,MATCH(Calc_Option5!CJ$6,'Carbon Prices'!$D$9:$CP$9,0))/1000,0)","v":0},{"$f":"IFERROR(INDEX('Carbon Prices'!$D$10:$CP$15,6,MATCH(Calc_Option5!CK$6,'Carbon Prices'!$D$9:$CP$9,0))/1000,0)","v":0},{"$f":"IFERROR(INDEX('Carbon Prices'!$D$10:$CP$15,6,MATCH(Calc_Option5!CL$6,'Carbon Prices'!$D$9:$CP$9,0))/1000,0)","v":0},{"$f":"IFERROR(INDEX('Carbon Prices'!$D$10:$CP$15,6,MATCH(Calc_Option5!CM$6,'Carbon Prices'!$D$9:$CP$9,0))/1000,0)","v":0},{"$f":"IFERROR(INDEX('Carbon Prices'!$D$10:$CP$15,6,MATCH(Calc_Option5!CN$6,'Carbon Prices'!$D$9:$CP$9,0))/1000,0)","v":0},{"$f":"IFERROR(INDEX('Carbon Prices'!$D$10:$CP$15,6,MATCH(Calc_Option5!CO$6,'Carbon Prices'!$D$9:$CP$9,0))/1000,0)","v":0},{"$f":"IFERROR(INDEX('Carbon Prices'!$D$10:$CP$15,6,MATCH(Calc_Option5!CP$6,'Carbon Prices'!$D$9:$CP$9,0))/1000,0)","v":0},{"$f":"IFERROR(INDEX('Carbon Prices'!$D$10:$CP$15,6,MATCH(Calc_Option5!CQ$6,'Carbon Prices'!$D$9:$CP$9,0))/1000,0)","v":0},{"$f":"IFERROR(INDEX('Carbon Prices'!$D$10:$CP$15,6,MATCH(Calc_Option5!CR$6,'Carbon Prices'!$D$9:$CP$9,0))/1000,0)","v":0},{"$f":"IFERROR(INDEX('Carbon Prices'!$D$10:$CP$15,6,MATCH(Calc_Option5!CS$6,'Carbon Prices'!$D$9:$CP$9,0))/1000,0)","v":0},{"$f":"IFERROR(INDEX('Carbon Prices'!$D$10:$CP$15,6,MATCH(Calc_Option5!CT$6,'Carbon Prices'!$D$9:$CP$9,0))/1000,0)","v":0},{"$f":"IFERROR(INDEX('Carbon Prices'!$D$10:$CP$15,6,MATCH(Calc_Option5!CU$6,'Carbon Prices'!$D$9:$CP$9,0))/1000,0)","v":0},{"$f":"IFERROR(INDEX('Carbon Prices'!$D$10:$CP$15,6,MATCH(Calc_Option5!CV$6,'Carbon Prices'!$D$9:$CP$9,0))/1000,0)","v":0},{"$f":"IFERROR(INDEX('Carbon Prices'!$D$10:$CP$15,6,MATCH(Calc_Option5!CW$6,'Carbon Prices'!$D$9:$CP$9,0))/1000,0)","v":0},{"$f":"IFERROR(INDEX('Carbon Prices'!$D$10:$CP$15,6,MATCH(Calc_Option5!CX$6,'Carbon Prices'!$D$9:$CP$9,0))/1000,0)","v":0},{"$f":"IFERROR(INDEX('Carbon Prices'!$D$10:$CP$15,6,MATCH(Calc_Option5!CY$6,'Carbon Prices'!$D$9:$CP$9,0))/1000,0)","v":0}]
[null,"Discounted total","£000's",{"$f":"(D152*D154)+(D153*D155)*D$7","v":0},{"$f":"(E152*E154)+(E153*E155)*E$7","v":0},0,0,0,0,0,0,0,0,0,0,0,0,0,0,0,0,0,0,0,0,0,0,0,0,0,0,0,0,0,0,0,0,0,0,0,0,0,0,0,0,0,0,0,0,0,0,0,0,0,0,0,0,0,0,0,0,0,0,0,0,0,0,0,{"$f":"(BQ152*BQ154)+(BQ153*BQ155)*BQ$7","v":0},0,0,0,0,0,0,0,0,0,0,0,0,0,0,0,0,0,0,0,0,0,0,0,0,0,0,0,0,0,0,0,0,0,0]
[]
[]
[null,"EEA Damage costs"]
[]
[null,"Air pollutant emissions- value"]
[null,{"$f":"B138","v":0},"£000's",{"$f":"IFERROR(IF(OR($C$168=FALSE,LEFT($B162,3)<>\"NOX\"),D53*INDEX('Damage costs'!$P$16:$P$43,MATCH($B162,'Damage costs'!$C$16:$C$43,0))/1000,D53*INDEX('Damage costs'!$T$16:$T$43,MATCH($B162,'Damage costs'!$C$16:$C$43,0))/1000),\"\")","v":""},{"$f":"IFERROR(IF(OR($C$168=FALSE,LEFT($B162,3)<>\"NOX\"),E53*INDEX('Damage costs'!$P$16:$P$43,MATCH($B162,'Damage costs'!$C$16:$C$43,0))/1000,E53*INDEX('Damage costs'!$T$16:$T$43,MATCH($B162,'Damage costs'!$C$16:$C$43,0))/1000),\"\")","v":""},{"$f":"IFERROR(IF(OR($C$168=FALSE,LEFT($B162,3)<>\"NOX\"),F53*INDEX('Damage costs'!$P$16:$P$43,MATCH($B162,'Damage costs'!$C$16:$C$43,0))/1000,F53*INDEX('Damage costs'!$T$16:$T$43,MATCH($B162,'Damage costs'!$C$16:$C$43,0))/1000),\"\")","v":""},{"$f":"IFERROR(IF(OR($C$168=FALSE,LEFT($B162,3)<>\"NOX\"),G53*INDEX('Damage costs'!$P$16:$P$43,MATCH($B162,'Damage costs'!$C$16:$C$43,0))/1000,G53*INDEX('Damage costs'!$T$16:$T$43,MATCH($B162,'Damage costs'!$C$16:$C$43,0))/1000),\"\")","v":""},{"$f":"IFERROR(IF(OR($C$168=FALSE,LEFT($B162,3)<>\"NOX\"),H53*INDEX('Damage costs'!$P$16:$P$43,MATCH($B162,'Damage costs'!$C$16:$C$43,0))/1000,H53*INDEX('Damage costs'!$T$16:$T$43,MATCH($B162,'Damage costs'!$C$16:$C$43,0))/1000),\"\")","v":""},{"$f":"IFERROR(IF(OR($C$168=FALSE,LEFT($B162,3)<>\"NOX\"),I53*INDEX('Damage costs'!$P$16:$P$43,MATCH($B162,'Damage costs'!$C$16:$C$43,0))/1000,I53*INDEX('Damage costs'!$T$16:$T$43,MATCH($B162,'Damage costs'!$C$16:$C$43,0))/1000),\"\")","v":""},{"$f":"IFERROR(IF(OR($C$168=FALSE,LEFT($B162,3)<>\"NOX\"),J53*INDEX('Damage costs'!$P$16:$P$43,MATCH($B162,'Damage costs'!$C$16:$C$43,0))/1000,J53*INDEX('Damage costs'!$T$16:$T$43,MATCH($B162,'Damage costs'!$C$16:$C$43,0))/1000),\"\")","v":""},{"$f":"IFERROR(IF(OR($C$168=FALSE,LEFT($B162,3)<>\"NOX\"),K53*INDEX('Damage costs'!$P$16:$P$43,MATCH($B162,'Damage costs'!$C$16:$C$43,0))/1000,K53*INDEX('Damage costs'!$T$16:$T$43,MATCH($B162,'Damage costs'!$C$16:$C$43,0))/1000),\"\")","v":""},{"$f":"IFERROR(IF(OR($C$168=FALSE,LEFT($B162,3)<>\"NOX\"),L53*INDEX('Damage costs'!$P$16:$P$43,MATCH($B162,'Damage costs'!$C$16:$C$43,0))/1000,L53*INDEX('Damage costs'!$T$16:$T$43,MATCH($B162,'Damage costs'!$C$16:$C$43,0))/1000),\"\")","v":""},{"$f":"IFERROR(IF(OR($C$168=FALSE,LEFT($B162,3)<>\"NOX\"),M53*INDEX('Damage costs'!$P$16:$P$43,MATCH($B162,'Damage costs'!$C$16:$C$43,0))/1000,M53*INDEX('Damage costs'!$T$16:$T$43,MATCH($B162,'Damage costs'!$C$16:$C$43,0))/1000),\"\")","v":""},{"$f":"IFERROR(IF(OR($C$168=FALSE,LEFT($B162,3)<>\"NOX\"),N53*INDEX('Damage costs'!$P$16:$P$43,MATCH($B162,'Damage costs'!$C$16:$C$43,0))/1000,N53*INDEX('Damage costs'!$T$16:$T$43,MATCH($B162,'Damage costs'!$C$16:$C$43,0))/1000),\"\")","v":""},{"$f":"IFERROR(IF(OR($C$168=FALSE,LEFT($B162,3)<>\"NOX\"),O53*INDEX('Damage costs'!$P$16:$P$43,MATCH($B162,'Damage costs'!$C$16:$C$43,0))/1000,O53*INDEX('Damage costs'!$T$16:$T$43,MATCH($B162,'Damage costs'!$C$16:$C$43,0))/1000),\"\")","v":""},{"$f":"IFERROR(IF(OR($C$168=FALSE,LEFT($B162,3)<>\"NOX\"),P53*INDEX('Damage costs'!$P$16:$P$43,MATCH($B162,'Damage costs'!$C$16:$C$43,0))/1000,P53*INDEX('Damage costs'!$T$16:$T$43,MATCH($B162,'Damage costs'!$C$16:$C$43,0))/1000),\"\")","v":""},{"$f":"IFERROR(IF(OR($C$168=FALSE,LEFT($B162,3)<>\"NOX\"),Q53*INDEX('Damage costs'!$P$16:$P$43,MATCH($B162,'Damage costs'!$C$16:$C$43,0))/1000,Q53*INDEX('Damage costs'!$T$16:$T$43,MATCH($B162,'Damage costs'!$C$16:$C$43,0))/1000),\"\")","v":""},{"$f":"IFERROR(IF(OR($C$168=FALSE,LEFT($B162,3)<>\"NOX\"),R53*INDEX('Damage costs'!$P$16:$P$43,MATCH($B162,'Damage costs'!$C$16:$C$43,0))/1000,R53*INDEX('Damage costs'!$T$16:$T$43,MATCH($B162,'Damage costs'!$C$16:$C$43,0))/1000),\"\")","v":""},{"$f":"IFERROR(IF(OR($C$168=FALSE,LEFT($B162,3)<>\"NOX\"),S53*INDEX('Damage costs'!$P$16:$P$43,MATCH($B162,'Damage costs'!$C$16:$C$43,0))/1000,S53*INDEX('Damage costs'!$T$16:$T$43,MATCH($B162,'Damage costs'!$C$16:$C$43,0))/1000),\"\")","v":""},{"$f":"IFERROR(IF(OR($C$168=FALSE,LEFT($B162,3)<>\"NOX\"),T53*INDEX('Damage costs'!$P$16:$P$43,MATCH($B162,'Damage costs'!$C$16:$C$43,0))/1000,T53*INDEX('Damage costs'!$T$16:$T$43,MATCH($B162,'Damage costs'!$C$16:$C$43,0))/1000),\"\")","v":""},{"$f":"IFERROR(IF(OR($C$168=FALSE,LEFT($B162,3)<>\"NOX\"),U53*INDEX('Damage costs'!$P$16:$P$43,MATCH($B162,'Damage costs'!$C$16:$C$43,0))/1000,U53*INDEX('Damage costs'!$T$16:$T$43,MATCH($B162,'Damage costs'!$C$16:$C$43,0))/1000),\"\")","v":""},{"$f":"IFERROR(IF(OR($C$168=FALSE,LEFT($B162,3)<>\"NOX\"),V53*INDEX('Damage costs'!$P$16:$P$43,MATCH($B162,'Damage costs'!$C$16:$C$43,0))/1000,V53*INDEX('Damage costs'!$T$16:$T$43,MATCH($B162,'Damage costs'!$C$16:$C$43,0))/1000),\"\")","v":""},{"$f":"IFERROR(IF(OR($C$168=FALSE,LEFT($B162,3)<>\"NOX\"),W53*INDEX('Damage costs'!$P$16:$P$43,MATCH($B162,'Damage costs'!$C$16:$C$43,0))/1000,W53*INDEX('Damage costs'!$T$16:$T$43,MATCH($B162,'Damage costs'!$C$16:$C$43,0))/1000),\"\")","v":""},{"$f":"IFERROR(IF(OR($C$168=FALSE,LEFT($B162,3)<>\"NOX\"),X53*INDEX('Damage costs'!$P$16:$P$43,MATCH($B162,'Damage costs'!$C$16:$C$43,0))/1000,X53*INDEX('Damage costs'!$T$16:$T$43,MATCH($B162,'Damage costs'!$C$16:$C$43,0))/1000),\"\")","v":""},{"$f":"IFERROR(IF(OR($C$168=FALSE,LEFT($B162,3)<>\"NOX\"),Y53*INDEX('Damage costs'!$P$16:$P$43,MATCH($B162,'Damage costs'!$C$16:$C$43,0))/1000,Y53*INDEX('Damage costs'!$T$16:$T$43,MATCH($B162,'Damage costs'!$C$16:$C$43,0))/1000),\"\")","v":""},{"$f":"IFERROR(IF(OR($C$168=FALSE,LEFT($B162,3)<>\"NOX\"),Z53*INDEX('Damage costs'!$P$16:$P$43,MATCH($B162,'Damage costs'!$C$16:$C$43,0))/1000,Z53*INDEX('Damage costs'!$T$16:$T$43,MATCH($B162,'Damage costs'!$C$16:$C$43,0))/1000),\"\")","v":""},{"$f":"IFERROR(IF(OR($C$168=FALSE,LEFT($B162,3)<>\"NOX\"),AA53*INDEX('Damage costs'!$P$16:$P$43,MATCH($B162,'Damage costs'!$C$16:$C$43,0))/1000,AA53*INDEX('Damage costs'!$T$16:$T$43,MATCH($B162,'Damage costs'!$C$16:$C$43,0))/1000),\"\")","v":""},{"$f":"IFERROR(IF(OR($C$168=FALSE,LEFT($B162,3)<>\"NOX\"),AB53*INDEX('Damage costs'!$P$16:$P$43,MATCH($B162,'Damage costs'!$C$16:$C$43,0))/1000,AB53*INDEX('Damage costs'!$T$16:$T$43,MATCH($B162,'Damage costs'!$C$16:$C$43,0))/1000),\"\")","v":""},{"$f":"IFERROR(IF(OR($C$168=FALSE,LEFT($B162,3)<>\"NOX\"),AC53*INDEX('Damage costs'!$P$16:$P$43,MATCH($B162,'Damage costs'!$C$16:$C$43,0))/1000,AC53*INDEX('Damage costs'!$T$16:$T$43,MATCH($B162,'Damage costs'!$C$16:$C$43,0))/1000),\"\")","v":""},{"$f":"IFERROR(IF(OR($C$168=FALSE,LEFT($B162,3)<>\"NOX\"),AD53*INDEX('Damage costs'!$P$16:$P$43,MATCH($B162,'Damage costs'!$C$16:$C$43,0))/1000,AD53*INDEX('Damage costs'!$T$16:$T$43,MATCH($B162,'Damage costs'!$C$16:$C$43,0))/1000),\"\")","v":""},{"$f":"IFERROR(IF(OR($C$168=FALSE,LEFT($B162,3)<>\"NOX\"),AE53*INDEX('Damage costs'!$P$16:$P$43,MATCH($B162,'Damage costs'!$C$16:$C$43,0))/1000,AE53*INDEX('Damage costs'!$T$16:$T$43,MATCH($B162,'Damage costs'!$C$16:$C$43,0))/1000),\"\")","v":""},{"$f":"IFERROR(IF(OR($C$168=FALSE,LEFT($B162,3)<>\"NOX\"),AF53*INDEX('Damage costs'!$P$16:$P$43,MATCH($B162,'Damage costs'!$C$16:$C$43,0))/1000,AF53*INDEX('Damage costs'!$T$16:$T$43,MATCH($B162,'Damage costs'!$C$16:$C$43,0))/1000),\"\")","v":""},{"$f":"IFERROR(IF(OR($C$168=FALSE,LEFT($B162,3)<>\"NOX\"),AG53*INDEX('Damage costs'!$P$16:$P$43,MATCH($B162,'Damage costs'!$C$16:$C$43,0))/1000,AG53*INDEX('Damage costs'!$T$16:$T$43,MATCH($B162,'Damage costs'!$C$16:$C$43,0))/1000),\"\")","v":""},{"$f":"IFERROR(IF(OR($C$168=FALSE,LEFT($B162,3)<>\"NOX\"),AH53*INDEX('Damage costs'!$P$16:$P$43,MATCH($B162,'Damage costs'!$C$16:$C$43,0))/1000,AH53*INDEX('Damage costs'!$T$16:$T$43,MATCH($B162,'Damage costs'!$C$16:$C$43,0))/1000),\"\")","v":""},{"$f":"IFERROR(IF(OR($C$168=FALSE,LEFT($B162,3)<>\"NOX\"),AI53*INDEX('Damage costs'!$P$16:$P$43,MATCH($B162,'Damage costs'!$C$16:$C$43,0))/1000,AI53*INDEX('Damage costs'!$T$16:$T$43,MATCH($B162,'Damage costs'!$C$16:$C$43,0))/1000),\"\")","v":""},{"$f":"IFERROR(IF(OR($C$168=FALSE,LEFT($B162,3)<>\"NOX\"),AJ53*INDEX('Damage costs'!$P$16:$P$43,MATCH($B162,'Damage costs'!$C$16:$C$43,0))/1000,AJ53*INDEX('Damage costs'!$T$16:$T$43,MATCH($B162,'Damage costs'!$C$16:$C$43,0))/1000),\"\")","v":""},{"$f":"IFERROR(IF(OR($C$168=FALSE,LEFT($B162,3)<>\"NOX\"),AK53*INDEX('Damage costs'!$P$16:$P$43,MATCH($B162,'Damage costs'!$C$16:$C$43,0))/1000,AK53*INDEX('Damage costs'!$T$16:$T$43,MATCH($B162,'Damage costs'!$C$16:$C$43,0))/1000),\"\")","v":""},{"$f":"IFERROR(IF(OR($C$168=FALSE,LEFT($B162,3)<>\"NOX\"),AL53*INDEX('Damage costs'!$P$16:$P$43,MATCH($B162,'Damage costs'!$C$16:$C$43,0))/1000,AL53*INDEX('Damage costs'!$T$16:$T$43,MATCH($B162,'Damage costs'!$C$16:$C$43,0))/1000),\"\")","v":""},{"$f":"IFERROR(IF(OR($C$168=FALSE,LEFT($B162,3)<>\"NOX\"),AM53*INDEX('Damage costs'!$P$16:$P$43,MATCH($B162,'Damage costs'!$C$16:$C$43,0))/1000,AM53*INDEX('Damage costs'!$T$16:$T$43,MATCH($B162,'Damage costs'!$C$16:$C$43,0))/1000),\"\")","v":""},{"$f":"IFERROR(IF(OR($C$168=FALSE,LEFT($B162,3)<>\"NOX\"),AN53*INDEX('Damage costs'!$P$16:$P$43,MATCH($B162,'Damage costs'!$C$16:$C$43,0))/1000,AN53*INDEX('Damage costs'!$T$16:$T$43,MATCH($B162,'Damage costs'!$C$16:$C$43,0))/1000),\"\")","v":""},{"$f":"IFERROR(IF(OR($C$168=FALSE,LEFT($B162,3)<>\"NOX\"),AO53*INDEX('Damage costs'!$P$16:$P$43,MATCH($B162,'Damage costs'!$C$16:$C$43,0))/1000,AO53*INDEX('Damage costs'!$T$16:$T$43,MATCH($B162,'Damage costs'!$C$16:$C$43,0))/1000),\"\")","v":""},{"$f":"IFERROR(IF(OR($C$168=FALSE,LEFT($B162,3)<>\"NOX\"),AP53*INDEX('Damage costs'!$P$16:$P$43,MATCH($B162,'Damage costs'!$C$16:$C$43,0))/1000,AP53*INDEX('Damage costs'!$T$16:$T$43,MATCH($B162,'Damage costs'!$C$16:$C$43,0))/1000),\"\")","v":""},{"$f":"IFERROR(IF(OR($C$168=FALSE,LEFT($B162,3)<>\"NOX\"),AQ53*INDEX('Damage costs'!$P$16:$P$43,MATCH($B162,'Damage costs'!$C$16:$C$43,0))/1000,AQ53*INDEX('Damage costs'!$T$16:$T$43,MATCH($B162,'Damage costs'!$C$16:$C$43,0))/1000),\"\")","v":""},{"$f":"IFERROR(IF(OR($C$168=FALSE,LEFT($B162,3)<>\"NOX\"),AR53*INDEX('Damage costs'!$P$16:$P$43,MATCH($B162,'Damage costs'!$C$16:$C$43,0))/1000,AR53*INDEX('Damage costs'!$T$16:$T$43,MATCH($B162,'Damage costs'!$C$16:$C$43,0))/1000),\"\")","v":""},{"$f":"IFERROR(IF(OR($C$168=FALSE,LEFT($B162,3)<>\"NOX\"),AS53*INDEX('Damage costs'!$P$16:$P$43,MATCH($B162,'Damage costs'!$C$16:$C$43,0))/1000,AS53*INDEX('Damage costs'!$T$16:$T$43,MATCH($B162,'Damage costs'!$C$16:$C$43,0))/1000),\"\")","v":""},{"$f":"IFERROR(IF(OR($C$168=FALSE,LEFT($B162,3)<>\"NOX\"),AT53*INDEX('Damage costs'!$P$16:$P$43,MATCH($B162,'Damage costs'!$C$16:$C$43,0))/1000,AT53*INDEX('Damage costs'!$T$16:$T$43,MATCH($B162,'Damage costs'!$C$16:$C$43,0))/1000),\"\")","v":""},{"$f":"IFERROR(IF(OR($C$168=FALSE,LEFT($B162,3)<>\"NOX\"),AU53*INDEX('Damage costs'!$P$16:$P$43,MATCH($B162,'Damage costs'!$C$16:$C$43,0))/1000,AU53*INDEX('Damage costs'!$T$16:$T$43,MATCH($B162,'Damage costs'!$C$16:$C$43,0))/1000),\"\")","v":""},{"$f":"IFERROR(IF(OR($C$168=FALSE,LEFT($B162,3)<>\"NOX\"),AV53*INDEX('Damage costs'!$P$16:$P$43,MATCH($B162,'Damage costs'!$C$16:$C$43,0))/1000,AV53*INDEX('Damage costs'!$T$16:$T$43,MATCH($B162,'Damage costs'!$C$16:$C$43,0))/1000),\"\")","v":""},{"$f":"IFERROR(IF(OR($C$168=FALSE,LEFT($B162,3)<>\"NOX\"),AW53*INDEX('Damage costs'!$P$16:$P$43,MATCH($B162,'Damage costs'!$C$16:$C$43,0))/1000,AW53*INDEX('Damage costs'!$T$16:$T$43,MATCH($B162,'Damage costs'!$C$16:$C$43,0))/1000),\"\")","v":""},{"$f":"IFERROR(IF(OR($C$168=FALSE,LEFT($B162,3)<>\"NOX\"),AX53*INDEX('Damage costs'!$P$16:$P$43,MATCH($B162,'Damage costs'!$C$16:$C$43,0))/1000,AX53*INDEX('Damage costs'!$T$16:$T$43,MATCH($B162,'Damage costs'!$C$16:$C$43,0))/1000),\"\")","v":""},{"$f":"IFERROR(IF(OR($C$168=FALSE,LEFT($B162,3)<>\"NOX\"),AY53*INDEX('Damage costs'!$P$16:$P$43,MATCH($B162,'Damage costs'!$C$16:$C$43,0))/1000,AY53*INDEX('Damage costs'!$T$16:$T$43,MATCH($B162,'Damage costs'!$C$16:$C$43,0))/1000),\"\")","v":""},{"$f":"IFERROR(IF(OR($C$168=FALSE,LEFT($B162,3)<>\"NOX\"),AZ53*INDEX('Damage costs'!$P$16:$P$43,MATCH($B162,'Damage costs'!$C$16:$C$43,0))/1000,AZ53*INDEX('Damage costs'!$T$16:$T$43,MATCH($B162,'Damage costs'!$C$16:$C$43,0))/1000),\"\")","v":""},{"$f":"IFERROR(IF(OR($C$168=FALSE,LEFT($B162,3)<>\"NOX\"),BA53*INDEX('Damage costs'!$P$16:$P$43,MATCH($B162,'Damage costs'!$C$16:$C$43,0))/1000,BA53*INDEX('Damage costs'!$T$16:$T$43,MATCH($B162,'Damage costs'!$C$16:$C$43,0))/1000),\"\")","v":""},{"$f":"IFERROR(IF(OR($C$168=FALSE,LEFT($B162,3)<>\"NOX\"),BB53*INDEX('Damage costs'!$P$16:$P$43,MATCH($B162,'Damage costs'!$C$16:$C$43,0))/1000,BB53*INDEX('Damage costs'!$T$16:$T$43,MATCH($B162,'Damage costs'!$C$16:$C$43,0))/1000),\"\")","v":""},{"$f":"IFERROR(IF(OR($C$168=FALSE,LEFT($B162,3)<>\"NOX\"),BC53*INDEX('Damage costs'!$P$16:$P$43,MATCH($B162,'Damage costs'!$C$16:$C$43,0))/1000,BC53*INDEX('Damage costs'!$T$16:$T$43,MATCH($B162,'Damage costs'!$C$16:$C$43,0))/1000),\"\")","v":""},{"$f":"IFERROR(IF(OR($C$168=FALSE,LEFT($B162,3)<>\"NOX\"),BD53*INDEX('Damage costs'!$P$16:$P$43,MATCH($B162,'Damage costs'!$C$16:$C$43,0))/1000,BD53*INDEX('Damage costs'!$T$16:$T$43,MATCH($B162,'Damage costs'!$C$16:$C$43,0))/1000),\"\")","v":""},{"$f":"IFERROR(IF(OR($C$168=FALSE,LEFT($B162,3)<>\"NOX\"),BE53*INDEX('Damage costs'!$P$16:$P$43,MATCH($B162,'Damage costs'!$C$16:$C$43,0))/1000,BE53*INDEX('Damage costs'!$T$16:$T$43,MATCH($B162,'Damage costs'!$C$16:$C$43,0))/1000),\"\")","v":""},{"$f":"IFERROR(IF(OR($C$168=FALSE,LEFT($B162,3)<>\"NOX\"),BF53*INDEX('Damage costs'!$P$16:$P$43,MATCH($B162,'Damage costs'!$C$16:$C$43,0))/1000,BF53*INDEX('Damage costs'!$T$16:$T$43,MATCH($B162,'Damage costs'!$C$16:$C$43,0))/1000),\"\")","v":""},{"$f":"IFERROR(IF(OR($C$168=FALSE,LEFT($B162,3)<>\"NOX\"),BG53*INDEX('Damage costs'!$P$16:$P$43,MATCH($B162,'Damage costs'!$C$16:$C$43,0))/1000,BG53*INDEX('Damage costs'!$T$16:$T$43,MATCH($B162,'Damage costs'!$C$16:$C$43,0))/1000),\"\")","v":""},{"$f":"IFERROR(IF(OR($C$168=FALSE,LEFT($B162,3)<>\"NOX\"),BH53*INDEX('Damage costs'!$P$16:$P$43,MATCH($B162,'Damage costs'!$C$16:$C$43,0))/1000,BH53*INDEX('Damage costs'!$T$16:$T$43,MATCH($B162,'Damage costs'!$C$16:$C$43,0))/1000),\"\")","v":""},{"$f":"IFERROR(IF(OR($C$168=FALSE,LEFT($B162,3)<>\"NOX\"),BI53*INDEX('Damage costs'!$P$16:$P$43,MATCH($B162,'Damage costs'!$C$16:$C$43,0))/1000,BI53*INDEX('Damage costs'!$T$16:$T$43,MATCH($B162,'Damage costs'!$C$16:$C$43,0))/1000),\"\")","v":""},{"$f":"IFERROR(IF(OR($C$168=FALSE,LEFT($B162,3)<>\"NOX\"),BJ53*INDEX('Damage costs'!$P$16:$P$43,MATCH($B162,'Damage costs'!$C$16:$C$43,0))/1000,BJ53*INDEX('Damage costs'!$T$16:$T$43,MATCH($B162,'Damage costs'!$C$16:$C$43,0))/1000),\"\")","v":""},{"$f":"IFERROR(IF(OR($C$168=FALSE,LEFT($B162,3)<>\"NOX\"),BK53*INDEX('Damage costs'!$P$16:$P$43,MATCH($B162,'Damage costs'!$C$16:$C$43,0))/1000,BK53*INDEX('Damage costs'!$T$16:$T$43,MATCH($B162,'Damage costs'!$C$16:$C$43,0))/1000),\"\")","v":""},{"$f":"IFERROR(IF(OR($C$168=FALSE,LEFT($B162,3)<>\"NOX\"),BL53*INDEX('Damage costs'!$P$16:$P$43,MATCH($B162,'Damage costs'!$C$16:$C$43,0))/1000,BL53*INDEX('Damage costs'!$T$16:$T$43,MATCH($B162,'Damage costs'!$C$16:$C$43,0))/1000),\"\")","v":""},{"$f":"IFERROR(IF(OR($C$168=FALSE,LEFT($B162,3)<>\"NOX\"),BM53*INDEX('Damage costs'!$P$16:$P$43,MATCH($B162,'Damage costs'!$C$16:$C$43,0))/1000,BM53*INDEX('Damage costs'!$T$16:$T$43,MATCH($B162,'Damage costs'!$C$16:$C$43,0))/1000),\"\")","v":""},{"$f":"IFERROR(IF(OR($C$168=FALSE,LEFT($B162,3)<>\"NOX\"),BN53*INDEX('Damage costs'!$P$16:$P$43,MATCH($B162,'Damage costs'!$C$16:$C$43,0))/1000,BN53*INDEX('Damage costs'!$T$16:$T$43,MATCH($B162,'Damage costs'!$C$16:$C$43,0))/1000),\"\")","v":""},{"$f":"IFERROR(IF(OR($C$168=FALSE,LEFT($B162,3)<>\"NOX\"),BO53*INDEX('Damage costs'!$P$16:$P$43,MATCH($B162,'Damage costs'!$C$16:$C$43,0))/1000,BO53*INDEX('Damage costs'!$T$16:$T$43,MATCH($B162,'Damage costs'!$C$16:$C$43,0))/1000),\"\")","v":""},{"$f":"IFERROR(IF(OR($C$168=FALSE,LEFT($B162,3)<>\"NOX\"),BP53*INDEX('Damage costs'!$P$16:$P$43,MATCH($B162,'Damage costs'!$C$16:$C$43,0))/1000,BP53*INDEX('Damage costs'!$T$16:$T$43,MATCH($B162,'Damage costs'!$C$16:$C$43,0))/1000),\"\")","v":""},{"$f":"IFERROR(IF(OR($C$168=FALSE,LEFT($B162,3)<>\"NOX\"),BQ53*INDEX('Damage costs'!$P$16:$P$43,MATCH($B162,'Damage costs'!$C$16:$C$43,0))/1000,BQ53*INDEX('Damage costs'!$T$16:$T$43,MATCH($B162,'Damage costs'!$C$16:$C$43,0))/1000),\"\")","v":""},{"$f":"IFERROR(IF(OR($C$168=FALSE,LEFT($B162,3)<>\"NOX\"),BR53*INDEX('Damage costs'!$P$16:$P$43,MATCH($B162,'Damage costs'!$C$16:$C$43,0))/1000,BR53*INDEX('Damage costs'!$T$16:$T$43,MATCH($B162,'Damage costs'!$C$16:$C$43,0))/1000),\"\")","v":""},{"$f":"IFERROR(IF(OR($C$168=FALSE,LEFT($B162,3)<>\"NOX\"),BS53*INDEX('Damage costs'!$P$16:$P$43,MATCH($B162,'Damage costs'!$C$16:$C$43,0))/1000,BS53*INDEX('Damage costs'!$T$16:$T$43,MATCH($B162,'Damage costs'!$C$16:$C$43,0))/1000),\"\")","v":""},{"$f":"IFERROR(IF(OR($C$168=FALSE,LEFT($B162,3)<>\"NOX\"),BT53*INDEX('Damage costs'!$P$16:$P$43,MATCH($B162,'Damage costs'!$C$16:$C$43,0))/1000,BT53*INDEX('Damage costs'!$T$16:$T$43,MATCH($B162,'Damage costs'!$C$16:$C$43,0))/1000),\"\")","v":""},{"$f":"IFERROR(IF(OR($C$168=FALSE,LEFT($B162,3)<>\"NOX\"),BU53*INDEX('Damage costs'!$P$16:$P$43,MATCH($B162,'Damage costs'!$C$16:$C$43,0))/1000,BU53*INDEX('Damage costs'!$T$16:$T$43,MATCH($B162,'Damage costs'!$C$16:$C$43,0))/1000),\"\")","v":""},{"$f":"IFERROR(IF(OR($C$168=FALSE,LEFT($B162,3)<>\"NOX\"),BV53*INDEX('Damage costs'!$P$16:$P$43,MATCH($B162,'Damage costs'!$C$16:$C$43,0))/1000,BV53*INDEX('Damage costs'!$T$16:$T$43,MATCH($B162,'Damage costs'!$C$16:$C$43,0))/1000),\"\")","v":""},{"$f":"IFERROR(IF(OR($C$168=FALSE,LEFT($B162,3)<>\"NOX\"),BW53*INDEX('Damage costs'!$P$16:$P$43,MATCH($B162,'Damage costs'!$C$16:$C$43,0))/1000,BW53*INDEX('Damage costs'!$T$16:$T$43,MATCH($B162,'Damage costs'!$C$16:$C$43,0))/1000),\"\")","v":""},{"$f":"IFERROR(IF(OR($C$168=FALSE,LEFT($B162,3)<>\"NOX\"),BX53*INDEX('Damage costs'!$P$16:$P$43,MATCH($B162,'Damage costs'!$C$16:$C$43,0))/1000,BX53*INDEX('Damage costs'!$T$16:$T$43,MATCH($B162,'Damage costs'!$C$16:$C$43,0))/1000),\"\")","v":""},{"$f":"IFERROR(IF(OR($C$168=FALSE,LEFT($B162,3)<>\"NOX\"),BY53*INDEX('Damage costs'!$P$16:$P$43,MATCH($B162,'Damage costs'!$C$16:$C$43,0))/1000,BY53*INDEX('Damage costs'!$T$16:$T$43,MATCH($B162,'Damage costs'!$C$16:$C$43,0))/1000),\"\")","v":""},{"$f":"IFERROR(IF(OR($C$168=FALSE,LEFT($B162,3)<>\"NOX\"),BZ53*INDEX('Damage costs'!$P$16:$P$43,MATCH($B162,'Damage costs'!$C$16:$C$43,0))/1000,BZ53*INDEX('Damage costs'!$T$16:$T$43,MATCH($B162,'Damage costs'!$C$16:$C$43,0))/1000),\"\")","v":""},{"$f":"IFERROR(IF(OR($C$168=FALSE,LEFT($B162,3)<>\"NOX\"),CA53*INDEX('Damage costs'!$P$16:$P$43,MATCH($B162,'Damage costs'!$C$16:$C$43,0))/1000,CA53*INDEX('Damage costs'!$T$16:$T$43,MATCH($B162,'Damage costs'!$C$16:$C$43,0))/1000),\"\")","v":""},{"$f":"IFERROR(IF(OR($C$168=FALSE,LEFT($B162,3)<>\"NOX\"),CB53*INDEX('Damage costs'!$P$16:$P$43,MATCH($B162,'Damage costs'!$C$16:$C$43,0))/1000,CB53*INDEX('Damage costs'!$T$16:$T$43,MATCH($B162,'Damage costs'!$C$16:$C$43,0))/1000),\"\")","v":""},{"$f":"IFERROR(IF(OR($C$168=FALSE,LEFT($B162,3)<>\"NOX\"),CC53*INDEX('Damage costs'!$P$16:$P$43,MATCH($B162,'Damage costs'!$C$16:$C$43,0))/1000,CC53*INDEX('Damage costs'!$T$16:$T$43,MATCH($B162,'Damage costs'!$C$16:$C$43,0))/1000),\"\")","v":""},{"$f":"IFERROR(IF(OR($C$168=FALSE,LEFT($B162,3)<>\"NOX\"),CD53*INDEX('Damage costs'!$P$16:$P$43,MATCH($B162,'Damage costs'!$C$16:$C$43,0))/1000,CD53*INDEX('Damage costs'!$T$16:$T$43,MATCH($B162,'Damage costs'!$C$16:$C$43,0))/1000),\"\")","v":""},{"$f":"IFERROR(IF(OR($C$168=FALSE,LEFT($B162,3)<>\"NOX\"),CE53*INDEX('Damage costs'!$P$16:$P$43,MATCH($B162,'Damage costs'!$C$16:$C$43,0))/1000,CE53*INDEX('Damage costs'!$T$16:$T$43,MATCH($B162,'Damage costs'!$C$16:$C$43,0))/1000),\"\")","v":""},{"$f":"IFERROR(IF(OR($C$168=FALSE,LEFT($B162,3)<>\"NOX\"),CF53*INDEX('Damage costs'!$P$16:$P$43,MATCH($B162,'Damage costs'!$C$16:$C$43,0))/1000,CF53*INDEX('Damage costs'!$T$16:$T$43,MATCH($B162,'Damage costs'!$C$16:$C$43,0))/1000),\"\")","v":""},{"$f":"IFERROR(IF(OR($C$168=FALSE,LEFT($B162,3)<>\"NOX\"),CG53*INDEX('Damage costs'!$P$16:$P$43,MATCH($B162,'Damage costs'!$C$16:$C$43,0))/1000,CG53*INDEX('Damage costs'!$T$16:$T$43,MATCH($B162,'Damage costs'!$C$16:$C$43,0))/1000),\"\")","v":""},{"$f":"IFERROR(IF(OR($C$168=FALSE,LEFT($B162,3)<>\"NOX\"),CH53*INDEX('Damage costs'!$P$16:$P$43,MATCH($B162,'Damage costs'!$C$16:$C$43,0))/1000,CH53*INDEX('Damage costs'!$T$16:$T$43,MATCH($B162,'Damage costs'!$C$16:$C$43,0))/1000),\"\")","v":""},{"$f":"IFERROR(IF(OR($C$168=FALSE,LEFT($B162,3)<>\"NOX\"),CI53*INDEX('Damage costs'!$P$16:$P$43,MATCH($B162,'Damage costs'!$C$16:$C$43,0))/1000,CI53*INDEX('Damage costs'!$T$16:$T$43,MATCH($B162,'Damage costs'!$C$16:$C$43,0))/1000),\"\")","v":""},{"$f":"IFERROR(IF(OR($C$168=FALSE,LEFT($B162,3)<>\"NOX\"),CJ53*INDEX('Damage costs'!$P$16:$P$43,MATCH($B162,'Damage costs'!$C$16:$C$43,0))/1000,CJ53*INDEX('Damage costs'!$T$16:$T$43,MATCH($B162,'Damage costs'!$C$16:$C$43,0))/1000),\"\")","v":""},{"$f":"IFERROR(IF(OR($C$168=FALSE,LEFT($B162,3)<>\"NOX\"),CK53*INDEX('Damage costs'!$P$16:$P$43,MATCH($B162,'Damage costs'!$C$16:$C$43,0))/1000,CK53*INDEX('Damage costs'!$T$16:$T$43,MATCH($B162,'Damage costs'!$C$16:$C$43,0))/1000),\"\")","v":""},{"$f":"IFERROR(IF(OR($C$168=FALSE,LEFT($B162,3)<>\"NOX\"),CL53*INDEX('Damage costs'!$P$16:$P$43,MATCH($B162,'Damage costs'!$C$16:$C$43,0))/1000,CL53*INDEX('Damage costs'!$T$16:$T$43,MATCH($B162,'Damage costs'!$C$16:$C$43,0))/1000),\"\")","v":""},{"$f":"IFERROR(IF(OR($C$168=FALSE,LEFT($B162,3)<>\"NOX\"),CM53*INDEX('Damage costs'!$P$16:$P$43,MATCH($B162,'Damage costs'!$C$16:$C$43,0))/1000,CM53*INDEX('Damage costs'!$T$16:$T$43,MATCH($B162,'Damage costs'!$C$16:$C$43,0))/1000),\"\")","v":""},{"$f":"IFERROR(IF(OR($C$168=FALSE,LEFT($B162,3)<>\"NOX\"),CN53*INDEX('Damage costs'!$P$16:$P$43,MATCH($B162,'Damage costs'!$C$16:$C$43,0))/1000,CN53*INDEX('Damage costs'!$T$16:$T$43,MATCH($B162,'Damage costs'!$C$16:$C$43,0))/1000),\"\")","v":""},{"$f":"IFERROR(IF(OR($C$168=FALSE,LEFT($B162,3)<>\"NOX\"),CO53*INDEX('Damage costs'!$P$16:$P$43,MATCH($B162,'Damage costs'!$C$16:$C$43,0))/1000,CO53*INDEX('Damage costs'!$T$16:$T$43,MATCH($B162,'Damage costs'!$C$16:$C$43,0))/1000),\"\")","v":""},{"$f":"IFERROR(IF(OR($C$168=FALSE,LEFT($B162,3)<>\"NOX\"),CP53*INDEX('Damage costs'!$P$16:$P$43,MATCH($B162,'Damage costs'!$C$16:$C$43,0))/1000,CP53*INDEX('Damage costs'!$T$16:$T$43,MATCH($B162,'Damage costs'!$C$16:$C$43,0))/1000),\"\")","v":""},{"$f":"IFERROR(IF(OR($C$168=FALSE,LEFT($B162,3)<>\"NOX\"),CQ53*INDEX('Damage costs'!$P$16:$P$43,MATCH($B162,'Damage costs'!$C$16:$C$43,0))/1000,CQ53*INDEX('Damage costs'!$T$16:$T$43,MATCH($B162,'Damage costs'!$C$16:$C$43,0))/1000),\"\")","v":""},{"$f":"IFERROR(IF(OR($C$168=FALSE,LEFT($B162,3)<>\"NOX\"),CR53*INDEX('Damage costs'!$P$16:$P$43,MATCH($B162,'Damage costs'!$C$16:$C$43,0))/1000,CR53*INDEX('Damage costs'!$T$16:$T$43,MATCH($B162,'Damage costs'!$C$16:$C$43,0))/1000),\"\")","v":""},{"$f":"IFERROR(IF(OR($C$168=FALSE,LEFT($B162,3)<>\"NOX\"),CS53*INDEX('Damage costs'!$P$16:$P$43,MATCH($B162,'Damage costs'!$C$16:$C$43,0))/1000,CS53*INDEX('Damage costs'!$T$16:$T$43,MATCH($B162,'Damage costs'!$C$16:$C$43,0))/1000),\"\")","v":""},{"$f":"IFERROR(IF(OR($C$168=FALSE,LEFT($B162,3)<>\"NOX\"),CT53*INDEX('Damage costs'!$P$16:$P$43,MATCH($B162,'Damage costs'!$C$16:$C$43,0))/1000,CT53*INDEX('Damage costs'!$T$16:$T$43,MATCH($B162,'Damage costs'!$C$16:$C$43,0))/1000),\"\")","v":""},{"$f":"IFERROR(IF(OR($C$168=FALSE,LEFT($B162,3)<>\"NOX\"),CU53*INDEX('Damage costs'!$P$16:$P$43,MATCH($B162,'Damage costs'!$C$16:$C$43,0))/1000,CU53*INDEX('Damage costs'!$T$16:$T$43,MATCH($B162,'Damage costs'!$C$16:$C$43,0))/1000),\"\")","v":""},{"$f":"IFERROR(IF(OR($C$168=FALSE,LEFT($B162,3)<>\"NOX\"),CV53*INDEX('Damage costs'!$P$16:$P$43,MATCH($B162,'Damage costs'!$C$16:$C$43,0))/1000,CV53*INDEX('Damage costs'!$T$16:$T$43,MATCH($B162,'Damage costs'!$C$16:$C$43,0))/1000),\"\")","v":""},{"$f":"IFERROR(IF(OR($C$168=FALSE,LEFT($B162,3)<>\"NOX\"),CW53*INDEX('Damage costs'!$P$16:$P$43,MATCH($B162,'Damage costs'!$C$16:$C$43,0))/1000,CW53*INDEX('Damage costs'!$T$16:$T$43,MATCH($B162,'Damage costs'!$C$16:$C$43,0))/1000),\"\")","v":""},{"$f":"IFERROR(IF(OR($C$168=FALSE,LEFT($B162,3)<>\"NOX\"),CX53*INDEX('Damage costs'!$P$16:$P$43,MATCH($B162,'Damage costs'!$C$16:$C$43,0))/1000,CX53*INDEX('Damage costs'!$T$16:$T$43,MATCH($B162,'Damage costs'!$C$16:$C$43,0))/1000),\"\")","v":""},{"$f":"IFERROR(IF(OR($C$168=FALSE,LEFT($B162,3)<>\"NOX\"),CY53*INDEX('Damage costs'!$P$16:$P$43,MATCH($B162,'Damage costs'!$C$16:$C$43,0))/1000,CY53*INDEX('Damage costs'!$T$16:$T$43,MATCH($B162,'Damage costs'!$C$16:$C$43,0))/1000),\"\")","v":""}]
[null,0,"£000's",{"$f":"IFERROR(IF(OR($C$168=FALSE,LEFT($B163,3)<>\"NOX\"),D54*INDEX('Damage costs'!$P$16:$P$43,MATCH($B163,'Damage costs'!$C$16:$C$43,0))/1000,D54*INDEX('Damage costs'!$T$16:$T$43,MATCH($B163,'Damage costs'!$C$16:$C$43,0))/1000),\"\")","v":""},{"$f":"IFERROR(IF(OR($C$168=FALSE,LEFT($B163,3)<>\"NOX\"),E54*INDEX('Damage costs'!$P$16:$P$43,MATCH($B163,'Damage costs'!$C$16:$C$43,0))/1000,E54*INDEX('Damage costs'!$T$16:$T$43,MATCH($B163,'Damage costs'!$C$16:$C$43,0))/1000),\"\")","v":""},{"$f":"IFERROR(IF(OR($C$168=FALSE,LEFT($B163,3)<>\"NOX\"),F54*INDEX('Damage costs'!$P$16:$P$43,MATCH($B163,'Damage costs'!$C$16:$C$43,0))/1000,F54*INDEX('Damage costs'!$T$16:$T$43,MATCH($B163,'Damage costs'!$C$16:$C$43,0))/1000),\"\")","v":""},{"$f":"IFERROR(IF(OR($C$168=FALSE,LEFT($B163,3)<>\"NOX\"),G54*INDEX('Damage costs'!$P$16:$P$43,MATCH($B163,'Damage costs'!$C$16:$C$43,0))/1000,G54*INDEX('Damage costs'!$T$16:$T$43,MATCH($B163,'Damage costs'!$C$16:$C$43,0))/1000),\"\")","v":""},{"$f":"IFERROR(IF(OR($C$168=FALSE,LEFT($B163,3)<>\"NOX\"),H54*INDEX('Damage costs'!$P$16:$P$43,MATCH($B163,'Damage costs'!$C$16:$C$43,0))/1000,H54*INDEX('Damage costs'!$T$16:$T$43,MATCH($B163,'Damage costs'!$C$16:$C$43,0))/1000),\"\")","v":""},{"$f":"IFERROR(IF(OR($C$168=FALSE,LEFT($B163,3)<>\"NOX\"),I54*INDEX('Damage costs'!$P$16:$P$43,MATCH($B163,'Damage costs'!$C$16:$C$43,0))/1000,I54*INDEX('Damage costs'!$T$16:$T$43,MATCH($B163,'Damage costs'!$C$16:$C$43,0))/1000),\"\")","v":""},{"$f":"IFERROR(IF(OR($C$168=FALSE,LEFT($B163,3)<>\"NOX\"),J54*INDEX('Damage costs'!$P$16:$P$43,MATCH($B163,'Damage costs'!$C$16:$C$43,0))/1000,J54*INDEX('Damage costs'!$T$16:$T$43,MATCH($B163,'Damage costs'!$C$16:$C$43,0))/1000),\"\")","v":""},{"$f":"IFERROR(IF(OR($C$168=FALSE,LEFT($B163,3)<>\"NOX\"),K54*INDEX('Damage costs'!$P$16:$P$43,MATCH($B163,'Damage costs'!$C$16:$C$43,0))/1000,K54*INDEX('Damage costs'!$T$16:$T$43,MATCH($B163,'Damage costs'!$C$16:$C$43,0))/1000),\"\")","v":""},{"$f":"IFERROR(IF(OR($C$168=FALSE,LEFT($B163,3)<>\"NOX\"),L54*INDEX('Damage costs'!$P$16:$P$43,MATCH($B163,'Damage costs'!$C$16:$C$43,0))/1000,L54*INDEX('Damage costs'!$T$16:$T$43,MATCH($B163,'Damage costs'!$C$16:$C$43,0))/1000),\"\")","v":""},{"$f":"IFERROR(IF(OR($C$168=FALSE,LEFT($B163,3)<>\"NOX\"),M54*INDEX('Damage costs'!$P$16:$P$43,MATCH($B163,'Damage costs'!$C$16:$C$43,0))/1000,M54*INDEX('Damage costs'!$T$16:$T$43,MATCH($B163,'Damage costs'!$C$16:$C$43,0))/1000),\"\")","v":""},{"$f":"IFERROR(IF(OR($C$168=FALSE,LEFT($B163,3)<>\"NOX\"),N54*INDEX('Damage costs'!$P$16:$P$43,MATCH($B163,'Damage costs'!$C$16:$C$43,0))/1000,N54*INDEX('Damage costs'!$T$16:$T$43,MATCH($B163,'Damage costs'!$C$16:$C$43,0))/1000),\"\")","v":""},{"$f":"IFERROR(IF(OR($C$168=FALSE,LEFT($B163,3)<>\"NOX\"),O54*INDEX('Damage costs'!$P$16:$P$43,MATCH($B163,'Damage costs'!$C$16:$C$43,0))/1000,O54*INDEX('Damage costs'!$T$16:$T$43,MATCH($B163,'Damage costs'!$C$16:$C$43,0))/1000),\"\")","v":""},{"$f":"IFERROR(IF(OR($C$168=FALSE,LEFT($B163,3)<>\"NOX\"),P54*INDEX('Damage costs'!$P$16:$P$43,MATCH($B163,'Damage costs'!$C$16:$C$43,0))/1000,P54*INDEX('Damage costs'!$T$16:$T$43,MATCH($B163,'Damage costs'!$C$16:$C$43,0))/1000),\"\")","v":""},{"$f":"IFERROR(IF(OR($C$168=FALSE,LEFT($B163,3)<>\"NOX\"),Q54*INDEX('Damage costs'!$P$16:$P$43,MATCH($B163,'Damage costs'!$C$16:$C$43,0))/1000,Q54*INDEX('Damage costs'!$T$16:$T$43,MATCH($B163,'Damage costs'!$C$16:$C$43,0))/1000),\"\")","v":""},{"$f":"IFERROR(IF(OR($C$168=FALSE,LEFT($B163,3)<>\"NOX\"),R54*INDEX('Damage costs'!$P$16:$P$43,MATCH($B163,'Damage costs'!$C$16:$C$43,0))/1000,R54*INDEX('Damage costs'!$T$16:$T$43,MATCH($B163,'Damage costs'!$C$16:$C$43,0))/1000),\"\")","v":""},{"$f":"IFERROR(IF(OR($C$168=FALSE,LEFT($B163,3)<>\"NOX\"),S54*INDEX('Damage costs'!$P$16:$P$43,MATCH($B163,'Damage costs'!$C$16:$C$43,0))/1000,S54*INDEX('Damage costs'!$T$16:$T$43,MATCH($B163,'Damage costs'!$C$16:$C$43,0))/1000),\"\")","v":""},{"$f":"IFERROR(IF(OR($C$168=FALSE,LEFT($B163,3)<>\"NOX\"),T54*INDEX('Damage costs'!$P$16:$P$43,MATCH($B163,'Damage costs'!$C$16:$C$43,0))/1000,T54*INDEX('Damage costs'!$T$16:$T$43,MATCH($B163,'Damage costs'!$C$16:$C$43,0))/1000),\"\")","v":""},{"$f":"IFERROR(IF(OR($C$168=FALSE,LEFT($B163,3)<>\"NOX\"),U54*INDEX('Damage costs'!$P$16:$P$43,MATCH($B163,'Damage costs'!$C$16:$C$43,0))/1000,U54*INDEX('Damage costs'!$T$16:$T$43,MATCH($B163,'Damage costs'!$C$16:$C$43,0))/1000),\"\")","v":""},{"$f":"IFERROR(IF(OR($C$168=FALSE,LEFT($B163,3)<>\"NOX\"),V54*INDEX('Damage costs'!$P$16:$P$43,MATCH($B163,'Damage costs'!$C$16:$C$43,0))/1000,V54*INDEX('Damage costs'!$T$16:$T$43,MATCH($B163,'Damage costs'!$C$16:$C$43,0))/1000),\"\")","v":""},{"$f":"IFERROR(IF(OR($C$168=FALSE,LEFT($B163,3)<>\"NOX\"),W54*INDEX('Damage costs'!$P$16:$P$43,MATCH($B163,'Damage costs'!$C$16:$C$43,0))/1000,W54*INDEX('Damage costs'!$T$16:$T$43,MATCH($B163,'Damage costs'!$C$16:$C$43,0))/1000),\"\")","v":""},{"$f":"IFERROR(IF(OR($C$168=FALSE,LEFT($B163,3)<>\"NOX\"),X54*INDEX('Damage costs'!$P$16:$P$43,MATCH($B163,'Damage costs'!$C$16:$C$43,0))/1000,X54*INDEX('Damage costs'!$T$16:$T$43,MATCH($B163,'Damage costs'!$C$16:$C$43,0))/1000),\"\")","v":""},{"$f":"IFERROR(IF(OR($C$168=FALSE,LEFT($B163,3)<>\"NOX\"),Y54*INDEX('Damage costs'!$P$16:$P$43,MATCH($B163,'Damage costs'!$C$16:$C$43,0))/1000,Y54*INDEX('Damage costs'!$T$16:$T$43,MATCH($B163,'Damage costs'!$C$16:$C$43,0))/1000),\"\")","v":""},{"$f":"IFERROR(IF(OR($C$168=FALSE,LEFT($B163,3)<>\"NOX\"),Z54*INDEX('Damage costs'!$P$16:$P$43,MATCH($B163,'Damage costs'!$C$16:$C$43,0))/1000,Z54*INDEX('Damage costs'!$T$16:$T$43,MATCH($B163,'Damage costs'!$C$16:$C$43,0))/1000),\"\")","v":""},{"$f":"IFERROR(IF(OR($C$168=FALSE,LEFT($B163,3)<>\"NOX\"),AA54*INDEX('Damage costs'!$P$16:$P$43,MATCH($B163,'Damage costs'!$C$16:$C$43,0))/1000,AA54*INDEX('Damage costs'!$T$16:$T$43,MATCH($B163,'Damage costs'!$C$16:$C$43,0))/1000),\"\")","v":""},{"$f":"IFERROR(IF(OR($C$168=FALSE,LEFT($B163,3)<>\"NOX\"),AB54*INDEX('Damage costs'!$P$16:$P$43,MATCH($B163,'Damage costs'!$C$16:$C$43,0))/1000,AB54*INDEX('Damage costs'!$T$16:$T$43,MATCH($B163,'Damage costs'!$C$16:$C$43,0))/1000),\"\")","v":""},{"$f":"IFERROR(IF(OR($C$168=FALSE,LEFT($B163,3)<>\"NOX\"),AC54*INDEX('Damage costs'!$P$16:$P$43,MATCH($B163,'Damage costs'!$C$16:$C$43,0))/1000,AC54*INDEX('Damage costs'!$T$16:$T$43,MATCH($B163,'Damage costs'!$C$16:$C$43,0))/1000),\"\")","v":""},{"$f":"IFERROR(IF(OR($C$168=FALSE,LEFT($B163,3)<>\"NOX\"),AD54*INDEX('Damage costs'!$P$16:$P$43,MATCH($B163,'Damage costs'!$C$16:$C$43,0))/1000,AD54*INDEX('Damage costs'!$T$16:$T$43,MATCH($B163,'Damage costs'!$C$16:$C$43,0))/1000),\"\")","v":""},{"$f":"IFERROR(IF(OR($C$168=FALSE,LEFT($B163,3)<>\"NOX\"),AE54*INDEX('Damage costs'!$P$16:$P$43,MATCH($B163,'Damage costs'!$C$16:$C$43,0))/1000,AE54*INDEX('Damage costs'!$T$16:$T$43,MATCH($B163,'Damage costs'!$C$16:$C$43,0))/1000),\"\")","v":""},{"$f":"IFERROR(IF(OR($C$168=FALSE,LEFT($B163,3)<>\"NOX\"),AF54*INDEX('Damage costs'!$P$16:$P$43,MATCH($B163,'Damage costs'!$C$16:$C$43,0))/1000,AF54*INDEX('Damage costs'!$T$16:$T$43,MATCH($B163,'Damage costs'!$C$16:$C$43,0))/1000),\"\")","v":""},{"$f":"IFERROR(IF(OR($C$168=FALSE,LEFT($B163,3)<>\"NOX\"),AG54*INDEX('Damage costs'!$P$16:$P$43,MATCH($B163,'Damage costs'!$C$16:$C$43,0))/1000,AG54*INDEX('Damage costs'!$T$16:$T$43,MATCH($B163,'Damage costs'!$C$16:$C$43,0))/1000),\"\")","v":""},{"$f":"IFERROR(IF(OR($C$168=FALSE,LEFT($B163,3)<>\"NOX\"),AH54*INDEX('Damage costs'!$P$16:$P$43,MATCH($B163,'Damage costs'!$C$16:$C$43,0))/1000,AH54*INDEX('Damage costs'!$T$16:$T$43,MATCH($B163,'Damage costs'!$C$16:$C$43,0))/1000),\"\")","v":""},{"$f":"IFERROR(IF(OR($C$168=FALSE,LEFT($B163,3)<>\"NOX\"),AI54*INDEX('Damage costs'!$P$16:$P$43,MATCH($B163,'Damage costs'!$C$16:$C$43,0))/1000,AI54*INDEX('Damage costs'!$T$16:$T$43,MATCH($B163,'Damage costs'!$C$16:$C$43,0))/1000),\"\")","v":""},{"$f":"IFERROR(IF(OR($C$168=FALSE,LEFT($B163,3)<>\"NOX\"),AJ54*INDEX('Damage costs'!$P$16:$P$43,MATCH($B163,'Damage costs'!$C$16:$C$43,0))/1000,AJ54*INDEX('Damage costs'!$T$16:$T$43,MATCH($B163,'Damage costs'!$C$16:$C$43,0))/1000),\"\")","v":""},{"$f":"IFERROR(IF(OR($C$168=FALSE,LEFT($B163,3)<>\"NOX\"),AK54*INDEX('Damage costs'!$P$16:$P$43,MATCH($B163,'Damage costs'!$C$16:$C$43,0))/1000,AK54*INDEX('Damage costs'!$T$16:$T$43,MATCH($B163,'Damage costs'!$C$16:$C$43,0))/1000),\"\")","v":""},{"$f":"IFERROR(IF(OR($C$168=FALSE,LEFT($B163,3)<>\"NOX\"),AL54*INDEX('Damage costs'!$P$16:$P$43,MATCH($B163,'Damage costs'!$C$16:$C$43,0))/1000,AL54*INDEX('Damage costs'!$T$16:$T$43,MATCH($B163,'Damage costs'!$C$16:$C$43,0))/1000),\"\")","v":""},{"$f":"IFERROR(IF(OR($C$168=FALSE,LEFT($B163,3)<>\"NOX\"),AM54*INDEX('Damage costs'!$P$16:$P$43,MATCH($B163,'Damage costs'!$C$16:$C$43,0))/1000,AM54*INDEX('Damage costs'!$T$16:$T$43,MATCH($B163,'Damage costs'!$C$16:$C$43,0))/1000),\"\")","v":""},{"$f":"IFERROR(IF(OR($C$168=FALSE,LEFT($B163,3)<>\"NOX\"),AN54*INDEX('Damage costs'!$P$16:$P$43,MATCH($B163,'Damage costs'!$C$16:$C$43,0))/1000,AN54*INDEX('Damage costs'!$T$16:$T$43,MATCH($B163,'Damage costs'!$C$16:$C$43,0))/1000),\"\")","v":""},{"$f":"IFERROR(IF(OR($C$168=FALSE,LEFT($B163,3)<>\"NOX\"),AO54*INDEX('Damage costs'!$P$16:$P$43,MATCH($B163,'Damage costs'!$C$16:$C$43,0))/1000,AO54*INDEX('Damage costs'!$T$16:$T$43,MATCH($B163,'Damage costs'!$C$16:$C$43,0))/1000),\"\")","v":""},{"$f":"IFERROR(IF(OR($C$168=FALSE,LEFT($B163,3)<>\"NOX\"),AP54*INDEX('Damage costs'!$P$16:$P$43,MATCH($B163,'Damage costs'!$C$16:$C$43,0))/1000,AP54*INDEX('Damage costs'!$T$16:$T$43,MATCH($B163,'Damage costs'!$C$16:$C$43,0))/1000),\"\")","v":""},{"$f":"IFERROR(IF(OR($C$168=FALSE,LEFT($B163,3)<>\"NOX\"),AQ54*INDEX('Damage costs'!$P$16:$P$43,MATCH($B163,'Damage costs'!$C$16:$C$43,0))/1000,AQ54*INDEX('Damage costs'!$T$16:$T$43,MATCH($B163,'Damage costs'!$C$16:$C$43,0))/1000),\"\")","v":""},{"$f":"IFERROR(IF(OR($C$168=FALSE,LEFT($B163,3)<>\"NOX\"),AR54*INDEX('Damage costs'!$P$16:$P$43,MATCH($B163,'Damage costs'!$C$16:$C$43,0))/1000,AR54*INDEX('Damage costs'!$T$16:$T$43,MATCH($B163,'Damage costs'!$C$16:$C$43,0))/1000),\"\")","v":""},{"$f":"IFERROR(IF(OR($C$168=FALSE,LEFT($B163,3)<>\"NOX\"),AS54*INDEX('Damage costs'!$P$16:$P$43,MATCH($B163,'Damage costs'!$C$16:$C$43,0))/1000,AS54*INDEX('Damage costs'!$T$16:$T$43,MATCH($B163,'Damage costs'!$C$16:$C$43,0))/1000),\"\")","v":""},{"$f":"IFERROR(IF(OR($C$168=FALSE,LEFT($B163,3)<>\"NOX\"),AT54*INDEX('Damage costs'!$P$16:$P$43,MATCH($B163,'Damage costs'!$C$16:$C$43,0))/1000,AT54*INDEX('Damage costs'!$T$16:$T$43,MATCH($B163,'Damage costs'!$C$16:$C$43,0))/1000),\"\")","v":""},{"$f":"IFERROR(IF(OR($C$168=FALSE,LEFT($B163,3)<>\"NOX\"),AU54*INDEX('Damage costs'!$P$16:$P$43,MATCH($B163,'Damage costs'!$C$16:$C$43,0))/1000,AU54*INDEX('Damage costs'!$T$16:$T$43,MATCH($B163,'Damage costs'!$C$16:$C$43,0))/1000),\"\")","v":""},{"$f":"IFERROR(IF(OR($C$168=FALSE,LEFT($B163,3)<>\"NOX\"),AV54*INDEX('Damage costs'!$P$16:$P$43,MATCH($B163,'Damage costs'!$C$16:$C$43,0))/1000,AV54*INDEX('Damage costs'!$T$16:$T$43,MATCH($B163,'Damage costs'!$C$16:$C$43,0))/1000),\"\")","v":""},{"$f":"IFERROR(IF(OR($C$168=FALSE,LEFT($B163,3)<>\"NOX\"),AW54*INDEX('Damage costs'!$P$16:$P$43,MATCH($B163,'Damage costs'!$C$16:$C$43,0))/1000,AW54*INDEX('Damage costs'!$T$16:$T$43,MATCH($B163,'Damage costs'!$C$16:$C$43,0))/1000),\"\")","v":""},{"$f":"IFERROR(IF(OR($C$168=FALSE,LEFT($B163,3)<>\"NOX\"),AX54*INDEX('Damage costs'!$P$16:$P$43,MATCH($B163,'Damage costs'!$C$16:$C$43,0))/1000,AX54*INDEX('Damage costs'!$T$16:$T$43,MATCH($B163,'Damage costs'!$C$16:$C$43,0))/1000),\"\")","v":""},{"$f":"IFERROR(IF(OR($C$168=FALSE,LEFT($B163,3)<>\"NOX\"),AY54*INDEX('Damage costs'!$P$16:$P$43,MATCH($B163,'Damage costs'!$C$16:$C$43,0))/1000,AY54*INDEX('Damage costs'!$T$16:$T$43,MATCH($B163,'Damage costs'!$C$16:$C$43,0))/1000),\"\")","v":""},{"$f":"IFERROR(IF(OR($C$168=FALSE,LEFT($B163,3)<>\"NOX\"),AZ54*INDEX('Damage costs'!$P$16:$P$43,MATCH($B163,'Damage costs'!$C$16:$C$43,0))/1000,AZ54*INDEX('Damage costs'!$T$16:$T$43,MATCH($B163,'Damage costs'!$C$16:$C$43,0))/1000),\"\")","v":""},{"$f":"IFERROR(IF(OR($C$168=FALSE,LEFT($B163,3)<>\"NOX\"),BA54*INDEX('Damage costs'!$P$16:$P$43,MATCH($B163,'Damage costs'!$C$16:$C$43,0))/1000,BA54*INDEX('Damage costs'!$T$16:$T$43,MATCH($B163,'Damage costs'!$C$16:$C$43,0))/1000),\"\")","v":""},{"$f":"IFERROR(IF(OR($C$168=FALSE,LEFT($B163,3)<>\"NOX\"),BB54*INDEX('Damage costs'!$P$16:$P$43,MATCH($B163,'Damage costs'!$C$16:$C$43,0))/1000,BB54*INDEX('Damage costs'!$T$16:$T$43,MATCH($B163,'Damage costs'!$C$16:$C$43,0))/1000),\"\")","v":""},{"$f":"IFERROR(IF(OR($C$168=FALSE,LEFT($B163,3)<>\"NOX\"),BC54*INDEX('Damage costs'!$P$16:$P$43,MATCH($B163,'Damage costs'!$C$16:$C$43,0))/1000,BC54*INDEX('Damage costs'!$T$16:$T$43,MATCH($B163,'Damage costs'!$C$16:$C$43,0))/1000),\"\")","v":""},{"$f":"IFERROR(IF(OR($C$168=FALSE,LEFT($B163,3)<>\"NOX\"),BD54*INDEX('Damage costs'!$P$16:$P$43,MATCH($B163,'Damage costs'!$C$16:$C$43,0))/1000,BD54*INDEX('Damage costs'!$T$16:$T$43,MATCH($B163,'Damage costs'!$C$16:$C$43,0))/1000),\"\")","v":""},{"$f":"IFERROR(IF(OR($C$168=FALSE,LEFT($B163,3)<>\"NOX\"),BE54*INDEX('Damage costs'!$P$16:$P$43,MATCH($B163,'Damage costs'!$C$16:$C$43,0))/1000,BE54*INDEX('Damage costs'!$T$16:$T$43,MATCH($B163,'Damage costs'!$C$16:$C$43,0))/1000),\"\")","v":""},{"$f":"IFERROR(IF(OR($C$168=FALSE,LEFT($B163,3)<>\"NOX\"),BF54*INDEX('Damage costs'!$P$16:$P$43,MATCH($B163,'Damage costs'!$C$16:$C$43,0))/1000,BF54*INDEX('Damage costs'!$T$16:$T$43,MATCH($B163,'Damage costs'!$C$16:$C$43,0))/1000),\"\")","v":""},{"$f":"IFERROR(IF(OR($C$168=FALSE,LEFT($B163,3)<>\"NOX\"),BG54*INDEX('Damage costs'!$P$16:$P$43,MATCH($B163,'Damage costs'!$C$16:$C$43,0))/1000,BG54*INDEX('Damage costs'!$T$16:$T$43,MATCH($B163,'Damage costs'!$C$16:$C$43,0))/1000),\"\")","v":""},{"$f":"IFERROR(IF(OR($C$168=FALSE,LEFT($B163,3)<>\"NOX\"),BH54*INDEX('Damage costs'!$P$16:$P$43,MATCH($B163,'Damage costs'!$C$16:$C$43,0))/1000,BH54*INDEX('Damage costs'!$T$16:$T$43,MATCH($B163,'Damage costs'!$C$16:$C$43,0))/1000),\"\")","v":""},{"$f":"IFERROR(IF(OR($C$168=FALSE,LEFT($B163,3)<>\"NOX\"),BI54*INDEX('Damage costs'!$P$16:$P$43,MATCH($B163,'Damage costs'!$C$16:$C$43,0))/1000,BI54*INDEX('Damage costs'!$T$16:$T$43,MATCH($B163,'Damage costs'!$C$16:$C$43,0))/1000),\"\")","v":""},{"$f":"IFERROR(IF(OR($C$168=FALSE,LEFT($B163,3)<>\"NOX\"),BJ54*INDEX('Damage costs'!$P$16:$P$43,MATCH($B163,'Damage costs'!$C$16:$C$43,0))/1000,BJ54*INDEX('Damage costs'!$T$16:$T$43,MATCH($B163,'Damage costs'!$C$16:$C$43,0))/1000),\"\")","v":""},{"$f":"IFERROR(IF(OR($C$168=FALSE,LEFT($B163,3)<>\"NOX\"),BK54*INDEX('Damage costs'!$P$16:$P$43,MATCH($B163,'Damage costs'!$C$16:$C$43,0))/1000,BK54*INDEX('Damage costs'!$T$16:$T$43,MATCH($B163,'Damage costs'!$C$16:$C$43,0))/1000),\"\")","v":""},{"$f":"IFERROR(IF(OR($C$168=FALSE,LEFT($B163,3)<>\"NOX\"),BL54*INDEX('Damage costs'!$P$16:$P$43,MATCH($B163,'Damage costs'!$C$16:$C$43,0))/1000,BL54*INDEX('Damage costs'!$T$16:$T$43,MATCH($B163,'Damage costs'!$C$16:$C$43,0))/1000),\"\")","v":""},{"$f":"IFERROR(IF(OR($C$168=FALSE,LEFT($B163,3)<>\"NOX\"),BM54*INDEX('Damage costs'!$P$16:$P$43,MATCH($B163,'Damage costs'!$C$16:$C$43,0))/1000,BM54*INDEX('Damage costs'!$T$16:$T$43,MATCH($B163,'Damage costs'!$C$16:$C$43,0))/1000),\"\")","v":""},{"$f":"IFERROR(IF(OR($C$168=FALSE,LEFT($B163,3)<>\"NOX\"),BN54*INDEX('Damage costs'!$P$16:$P$43,MATCH($B163,'Damage costs'!$C$16:$C$43,0))/1000,BN54*INDEX('Damage costs'!$T$16:$T$43,MATCH($B163,'Damage costs'!$C$16:$C$43,0))/1000),\"\")","v":""},{"$f":"IFERROR(IF(OR($C$168=FALSE,LEFT($B163,3)<>\"NOX\"),BO54*INDEX('Damage costs'!$P$16:$P$43,MATCH($B163,'Damage costs'!$C$16:$C$43,0))/1000,BO54*INDEX('Damage costs'!$T$16:$T$43,MATCH($B163,'Damage costs'!$C$16:$C$43,0))/1000),\"\")","v":""},{"$f":"IFERROR(IF(OR($C$168=FALSE,LEFT($B163,3)<>\"NOX\"),BP54*INDEX('Damage costs'!$P$16:$P$43,MATCH($B163,'Damage costs'!$C$16:$C$43,0))/1000,BP54*INDEX('Damage costs'!$T$16:$T$43,MATCH($B163,'Damage costs'!$C$16:$C$43,0))/1000),\"\")","v":""},{"$f":"IFERROR(IF(OR($C$168=FALSE,LEFT($B163,3)<>\"NOX\"),BQ54*INDEX('Damage costs'!$P$16:$P$43,MATCH($B163,'Damage costs'!$C$16:$C$43,0))/1000,BQ54*INDEX('Damage costs'!$T$16:$T$43,MATCH($B163,'Damage costs'!$C$16:$C$43,0))/1000),\"\")","v":""},{"$f":"IFERROR(IF(OR($C$168=FALSE,LEFT($B163,3)<>\"NOX\"),BR54*INDEX('Damage costs'!$P$16:$P$43,MATCH($B163,'Damage costs'!$C$16:$C$43,0))/1000,BR54*INDEX('Damage costs'!$T$16:$T$43,MATCH($B163,'Damage costs'!$C$16:$C$43,0))/1000),\"\")","v":""},{"$f":"IFERROR(IF(OR($C$168=FALSE,LEFT($B163,3)<>\"NOX\"),BS54*INDEX('Damage costs'!$P$16:$P$43,MATCH($B163,'Damage costs'!$C$16:$C$43,0))/1000,BS54*INDEX('Damage costs'!$T$16:$T$43,MATCH($B163,'Damage costs'!$C$16:$C$43,0))/1000),\"\")","v":""},{"$f":"IFERROR(IF(OR($C$168=FALSE,LEFT($B163,3)<>\"NOX\"),BT54*INDEX('Damage costs'!$P$16:$P$43,MATCH($B163,'Damage costs'!$C$16:$C$43,0))/1000,BT54*INDEX('Damage costs'!$T$16:$T$43,MATCH($B163,'Damage costs'!$C$16:$C$43,0))/1000),\"\")","v":""},{"$f":"IFERROR(IF(OR($C$168=FALSE,LEFT($B163,3)<>\"NOX\"),BU54*INDEX('Damage costs'!$P$16:$P$43,MATCH($B163,'Damage costs'!$C$16:$C$43,0))/1000,BU54*INDEX('Damage costs'!$T$16:$T$43,MATCH($B163,'Damage costs'!$C$16:$C$43,0))/1000),\"\")","v":""},{"$f":"IFERROR(IF(OR($C$168=FALSE,LEFT($B163,3)<>\"NOX\"),BV54*INDEX('Damage costs'!$P$16:$P$43,MATCH($B163,'Damage costs'!$C$16:$C$43,0))/1000,BV54*INDEX('Damage costs'!$T$16:$T$43,MATCH($B163,'Damage costs'!$C$16:$C$43,0))/1000),\"\")","v":""},{"$f":"IFERROR(IF(OR($C$168=FALSE,LEFT($B163,3)<>\"NOX\"),BW54*INDEX('Damage costs'!$P$16:$P$43,MATCH($B163,'Damage costs'!$C$16:$C$43,0))/1000,BW54*INDEX('Damage costs'!$T$16:$T$43,MATCH($B163,'Damage costs'!$C$16:$C$43,0))/1000),\"\")","v":""},{"$f":"IFERROR(IF(OR($C$168=FALSE,LEFT($B163,3)<>\"NOX\"),BX54*INDEX('Damage costs'!$P$16:$P$43,MATCH($B163,'Damage costs'!$C$16:$C$43,0))/1000,BX54*INDEX('Damage costs'!$T$16:$T$43,MATCH($B163,'Damage costs'!$C$16:$C$43,0))/1000),\"\")","v":""},{"$f":"IFERROR(IF(OR($C$168=FALSE,LEFT($B163,3)<>\"NOX\"),BY54*INDEX('Damage costs'!$P$16:$P$43,MATCH($B163,'Damage costs'!$C$16:$C$43,0))/1000,BY54*INDEX('Damage costs'!$T$16:$T$43,MATCH($B163,'Damage costs'!$C$16:$C$43,0))/1000),\"\")","v":""},{"$f":"IFERROR(IF(OR($C$168=FALSE,LEFT($B163,3)<>\"NOX\"),BZ54*INDEX('Damage costs'!$P$16:$P$43,MATCH($B163,'Damage costs'!$C$16:$C$43,0))/1000,BZ54*INDEX('Damage costs'!$T$16:$T$43,MATCH($B163,'Damage costs'!$C$16:$C$43,0))/1000),\"\")","v":""},{"$f":"IFERROR(IF(OR($C$168=FALSE,LEFT($B163,3)<>\"NOX\"),CA54*INDEX('Damage costs'!$P$16:$P$43,MATCH($B163,'Damage costs'!$C$16:$C$43,0))/1000,CA54*INDEX('Damage costs'!$T$16:$T$43,MATCH($B163,'Damage costs'!$C$16:$C$43,0))/1000),\"\")","v":""},{"$f":"IFERROR(IF(OR($C$168=FALSE,LEFT($B163,3)<>\"NOX\"),CB54*INDEX('Damage costs'!$P$16:$P$43,MATCH($B163,'Damage costs'!$C$16:$C$43,0))/1000,CB54*INDEX('Damage costs'!$T$16:$T$43,MATCH($B163,'Damage costs'!$C$16:$C$43,0))/1000),\"\")","v":""},{"$f":"IFERROR(IF(OR($C$168=FALSE,LEFT($B163,3)<>\"NOX\"),CC54*INDEX('Damage costs'!$P$16:$P$43,MATCH($B163,'Damage costs'!$C$16:$C$43,0))/1000,CC54*INDEX('Damage costs'!$T$16:$T$43,MATCH($B163,'Damage costs'!$C$16:$C$43,0))/1000),\"\")","v":""},{"$f":"IFERROR(IF(OR($C$168=FALSE,LEFT($B163,3)<>\"NOX\"),CD54*INDEX('Damage costs'!$P$16:$P$43,MATCH($B163,'Damage costs'!$C$16:$C$43,0))/1000,CD54*INDEX('Damage costs'!$T$16:$T$43,MATCH($B163,'Damage costs'!$C$16:$C$43,0))/1000),\"\")","v":""},{"$f":"IFERROR(IF(OR($C$168=FALSE,LEFT($B163,3)<>\"NOX\"),CE54*INDEX('Damage costs'!$P$16:$P$43,MATCH($B163,'Damage costs'!$C$16:$C$43,0))/1000,CE54*INDEX('Damage costs'!$T$16:$T$43,MATCH($B163,'Damage costs'!$C$16:$C$43,0))/1000),\"\")","v":""},{"$f":"IFERROR(IF(OR($C$168=FALSE,LEFT($B163,3)<>\"NOX\"),CF54*INDEX('Damage costs'!$P$16:$P$43,MATCH($B163,'Damage costs'!$C$16:$C$43,0))/1000,CF54*INDEX('Damage costs'!$T$16:$T$43,MATCH($B163,'Damage costs'!$C$16:$C$43,0))/1000),\"\")","v":""},{"$f":"IFERROR(IF(OR($C$168=FALSE,LEFT($B163,3)<>\"NOX\"),CG54*INDEX('Damage costs'!$P$16:$P$43,MATCH($B163,'Damage costs'!$C$16:$C$43,0))/1000,CG54*INDEX('Damage costs'!$T$16:$T$43,MATCH($B163,'Damage costs'!$C$16:$C$43,0))/1000),\"\")","v":""},{"$f":"IFERROR(IF(OR($C$168=FALSE,LEFT($B163,3)<>\"NOX\"),CH54*INDEX('Damage costs'!$P$16:$P$43,MATCH($B163,'Damage costs'!$C$16:$C$43,0))/1000,CH54*INDEX('Damage costs'!$T$16:$T$43,MATCH($B163,'Damage costs'!$C$16:$C$43,0))/1000),\"\")","v":""},{"$f":"IFERROR(IF(OR($C$168=FALSE,LEFT($B163,3)<>\"NOX\"),CI54*INDEX('Damage costs'!$P$16:$P$43,MATCH($B163,'Damage costs'!$C$16:$C$43,0))/1000,CI54*INDEX('Damage costs'!$T$16:$T$43,MATCH($B163,'Damage costs'!$C$16:$C$43,0))/1000),\"\")","v":""},{"$f":"IFERROR(IF(OR($C$168=FALSE,LEFT($B163,3)<>\"NOX\"),CJ54*INDEX('Damage costs'!$P$16:$P$43,MATCH($B163,'Damage costs'!$C$16:$C$43,0))/1000,CJ54*INDEX('Damage costs'!$T$16:$T$43,MATCH($B163,'Damage costs'!$C$16:$C$43,0))/1000),\"\")","v":""},{"$f":"IFERROR(IF(OR($C$168=FALSE,LEFT($B163,3)<>\"NOX\"),CK54*INDEX('Damage costs'!$P$16:$P$43,MATCH($B163,'Damage costs'!$C$16:$C$43,0))/1000,CK54*INDEX('Damage costs'!$T$16:$T$43,MATCH($B163,'Damage costs'!$C$16:$C$43,0))/1000),\"\")","v":""},{"$f":"IFERROR(IF(OR($C$168=FALSE,LEFT($B163,3)<>\"NOX\"),CL54*INDEX('Damage costs'!$P$16:$P$43,MATCH($B163,'Damage costs'!$C$16:$C$43,0))/1000,CL54*INDEX('Damage costs'!$T$16:$T$43,MATCH($B163,'Damage costs'!$C$16:$C$43,0))/1000),\"\")","v":""},{"$f":"IFERROR(IF(OR($C$168=FALSE,LEFT($B163,3)<>\"NOX\"),CM54*INDEX('Damage costs'!$P$16:$P$43,MATCH($B163,'Damage costs'!$C$16:$C$43,0))/1000,CM54*INDEX('Damage costs'!$T$16:$T$43,MATCH($B163,'Damage costs'!$C$16:$C$43,0))/1000),\"\")","v":""},{"$f":"IFERROR(IF(OR($C$168=FALSE,LEFT($B163,3)<>\"NOX\"),CN54*INDEX('Damage costs'!$P$16:$P$43,MATCH($B163,'Damage costs'!$C$16:$C$43,0))/1000,CN54*INDEX('Damage costs'!$T$16:$T$43,MATCH($B163,'Damage costs'!$C$16:$C$43,0))/1000),\"\")","v":""},{"$f":"IFERROR(IF(OR($C$168=FALSE,LEFT($B163,3)<>\"NOX\"),CO54*INDEX('Damage costs'!$P$16:$P$43,MATCH($B163,'Damage costs'!$C$16:$C$43,0))/1000,CO54*INDEX('Damage costs'!$T$16:$T$43,MATCH($B163,'Damage costs'!$C$16:$C$43,0))/1000),\"\")","v":""},{"$f":"IFERROR(IF(OR($C$168=FALSE,LEFT($B163,3)<>\"NOX\"),CP54*INDEX('Damage costs'!$P$16:$P$43,MATCH($B163,'Damage costs'!$C$16:$C$43,0))/1000,CP54*INDEX('Damage costs'!$T$16:$T$43,MATCH($B163,'Damage costs'!$C$16:$C$43,0))/1000),\"\")","v":""},{"$f":"IFERROR(IF(OR($C$168=FALSE,LEFT($B163,3)<>\"NOX\"),CQ54*INDEX('Damage costs'!$P$16:$P$43,MATCH($B163,'Damage costs'!$C$16:$C$43,0))/1000,CQ54*INDEX('Damage costs'!$T$16:$T$43,MATCH($B163,'Damage costs'!$C$16:$C$43,0))/1000),\"\")","v":""},{"$f":"IFERROR(IF(OR($C$168=FALSE,LEFT($B163,3)<>\"NOX\"),CR54*INDEX('Damage costs'!$P$16:$P$43,MATCH($B163,'Damage costs'!$C$16:$C$43,0))/1000,CR54*INDEX('Damage costs'!$T$16:$T$43,MATCH($B163,'Damage costs'!$C$16:$C$43,0))/1000),\"\")","v":""},{"$f":"IFERROR(IF(OR($C$168=FALSE,LEFT($B163,3)<>\"NOX\"),CS54*INDEX('Damage costs'!$P$16:$P$43,MATCH($B163,'Damage costs'!$C$16:$C$43,0))/1000,CS54*INDEX('Damage costs'!$T$16:$T$43,MATCH($B163,'Damage costs'!$C$16:$C$43,0))/1000),\"\")","v":""},{"$f":"IFERROR(IF(OR($C$168=FALSE,LEFT($B163,3)<>\"NOX\"),CT54*INDEX('Damage costs'!$P$16:$P$43,MATCH($B163,'Damage costs'!$C$16:$C$43,0))/1000,CT54*INDEX('Damage costs'!$T$16:$T$43,MATCH($B163,'Damage costs'!$C$16:$C$43,0))/1000),\"\")","v":""},{"$f":"IFERROR(IF(OR($C$168=FALSE,LEFT($B163,3)<>\"NOX\"),CU54*INDEX('Damage costs'!$P$16:$P$43,MATCH($B163,'Damage costs'!$C$16:$C$43,0))/1000,CU54*INDEX('Damage costs'!$T$16:$T$43,MATCH($B163,'Damage costs'!$C$16:$C$43,0))/1000),\"\")","v":""},{"$f":"IFERROR(IF(OR($C$168=FALSE,LEFT($B163,3)<>\"NOX\"),CV54*INDEX('Damage costs'!$P$16:$P$43,MATCH($B163,'Damage costs'!$C$16:$C$43,0))/1000,CV54*INDEX('Damage costs'!$T$16:$T$43,MATCH($B163,'Damage costs'!$C$16:$C$43,0))/1000),\"\")","v":""},{"$f":"IFERROR(IF(OR($C$168=FALSE,LEFT($B163,3)<>\"NOX\"),CW54*INDEX('Damage costs'!$P$16:$P$43,MATCH($B163,'Damage costs'!$C$16:$C$43,0))/1000,CW54*INDEX('Damage costs'!$T$16:$T$43,MATCH($B163,'Damage costs'!$C$16:$C$43,0))/1000),\"\")","v":""},{"$f":"IFERROR(IF(OR($C$168=FALSE,LEFT($B163,3)<>\"NOX\"),CX54*INDEX('Damage costs'!$P$16:$P$43,MATCH($B163,'Damage costs'!$C$16:$C$43,0))/1000,CX54*INDEX('Damage costs'!$T$16:$T$43,MATCH($B163,'Damage costs'!$C$16:$C$43,0))/1000),\"\")","v":""},{"$f":"IFERROR(IF(OR($C$168=FALSE,LEFT($B163,3)<>\"NOX\"),CY54*INDEX('Damage costs'!$P$16:$P$43,MATCH($B163,'Damage costs'!$C$16:$C$43,0))/1000,CY54*INDEX('Damage costs'!$T$16:$T$43,MATCH($B163,'Damage costs'!$C$16:$C$43,0))/1000),\"\")","v":""}]
[null,0,"£000's",{"$f":"IFERROR(IF(OR($C$168=FALSE,LEFT($B164,3)<>\"NOX\"),D55*INDEX('Damage costs'!$P$16:$P$43,MATCH($B164,'Damage costs'!$C$16:$C$43,0))/1000,D55*INDEX('Damage costs'!$T$16:$T$43,MATCH($B164,'Damage costs'!$C$16:$C$43,0))/1000),\"\")","v":""},{"$f":"IFERROR(IF(OR($C$168=FALSE,LEFT($B164,3)<>\"NOX\"),E55*INDEX('Damage costs'!$P$16:$P$43,MATCH($B164,'Damage costs'!$C$16:$C$43,0))/1000,E55*INDEX('Damage costs'!$T$16:$T$43,MATCH($B164,'Damage costs'!$C$16:$C$43,0))/1000),\"\")","v":""},{"$f":"IFERROR(IF(OR($C$168=FALSE,LEFT($B164,3)<>\"NOX\"),F55*INDEX('Damage costs'!$P$16:$P$43,MATCH($B164,'Damage costs'!$C$16:$C$43,0))/1000,F55*INDEX('Damage costs'!$T$16:$T$43,MATCH($B164,'Damage costs'!$C$16:$C$43,0))/1000),\"\")","v":""},{"$f":"IFERROR(IF(OR($C$168=FALSE,LEFT($B164,3)<>\"NOX\"),G55*INDEX('Damage costs'!$P$16:$P$43,MATCH($B164,'Damage costs'!$C$16:$C$43,0))/1000,G55*INDEX('Damage costs'!$T$16:$T$43,MATCH($B164,'Damage costs'!$C$16:$C$43,0))/1000),\"\")","v":""},{"$f":"IFERROR(IF(OR($C$168=FALSE,LEFT($B164,3)<>\"NOX\"),H55*INDEX('Damage costs'!$P$16:$P$43,MATCH($B164,'Damage costs'!$C$16:$C$43,0))/1000,H55*INDEX('Damage costs'!$T$16:$T$43,MATCH($B164,'Damage costs'!$C$16:$C$43,0))/1000),\"\")","v":""},{"$f":"IFERROR(IF(OR($C$168=FALSE,LEFT($B164,3)<>\"NOX\"),I55*INDEX('Damage costs'!$P$16:$P$43,MATCH($B164,'Damage costs'!$C$16:$C$43,0))/1000,I55*INDEX('Damage costs'!$T$16:$T$43,MATCH($B164,'Damage costs'!$C$16:$C$43,0))/1000),\"\")","v":""},{"$f":"IFERROR(IF(OR($C$168=FALSE,LEFT($B164,3)<>\"NOX\"),J55*INDEX('Damage costs'!$P$16:$P$43,MATCH($B164,'Damage costs'!$C$16:$C$43,0))/1000,J55*INDEX('Damage costs'!$T$16:$T$43,MATCH($B164,'Damage costs'!$C$16:$C$43,0))/1000),\"\")","v":""},{"$f":"IFERROR(IF(OR($C$168=FALSE,LEFT($B164,3)<>\"NOX\"),K55*INDEX('Damage costs'!$P$16:$P$43,MATCH($B164,'Damage costs'!$C$16:$C$43,0))/1000,K55*INDEX('Damage costs'!$T$16:$T$43,MATCH($B164,'Damage costs'!$C$16:$C$43,0))/1000),\"\")","v":""},{"$f":"IFERROR(IF(OR($C$168=FALSE,LEFT($B164,3)<>\"NOX\"),L55*INDEX('Damage costs'!$P$16:$P$43,MATCH($B164,'Damage costs'!$C$16:$C$43,0))/1000,L55*INDEX('Damage costs'!$T$16:$T$43,MATCH($B164,'Damage costs'!$C$16:$C$43,0))/1000),\"\")","v":""},{"$f":"IFERROR(IF(OR($C$168=FALSE,LEFT($B164,3)<>\"NOX\"),M55*INDEX('Damage costs'!$P$16:$P$43,MATCH($B164,'Damage costs'!$C$16:$C$43,0))/1000,M55*INDEX('Damage costs'!$T$16:$T$43,MATCH($B164,'Damage costs'!$C$16:$C$43,0))/1000),\"\")","v":""},{"$f":"IFERROR(IF(OR($C$168=FALSE,LEFT($B164,3)<>\"NOX\"),N55*INDEX('Damage costs'!$P$16:$P$43,MATCH($B164,'Damage costs'!$C$16:$C$43,0))/1000,N55*INDEX('Damage costs'!$T$16:$T$43,MATCH($B164,'Damage costs'!$C$16:$C$43,0))/1000),\"\")","v":""},{"$f":"IFERROR(IF(OR($C$168=FALSE,LEFT($B164,3)<>\"NOX\"),O55*INDEX('Damage costs'!$P$16:$P$43,MATCH($B164,'Damage costs'!$C$16:$C$43,0))/1000,O55*INDEX('Damage costs'!$T$16:$T$43,MATCH($B164,'Damage costs'!$C$16:$C$43,0))/1000),\"\")","v":""},{"$f":"IFERROR(IF(OR($C$168=FALSE,LEFT($B164,3)<>\"NOX\"),P55*INDEX('Damage costs'!$P$16:$P$43,MATCH($B164,'Damage costs'!$C$16:$C$43,0))/1000,P55*INDEX('Damage costs'!$T$16:$T$43,MATCH($B164,'Damage costs'!$C$16:$C$43,0))/1000),\"\")","v":""},{"$f":"IFERROR(IF(OR($C$168=FALSE,LEFT($B164,3)<>\"NOX\"),Q55*INDEX('Damage costs'!$P$16:$P$43,MATCH($B164,'Damage costs'!$C$16:$C$43,0))/1000,Q55*INDEX('Damage costs'!$T$16:$T$43,MATCH($B164,'Damage costs'!$C$16:$C$43,0))/1000),\"\")","v":""},{"$f":"IFERROR(IF(OR($C$168=FALSE,LEFT($B164,3)<>\"NOX\"),R55*INDEX('Damage costs'!$P$16:$P$43,MATCH($B164,'Damage costs'!$C$16:$C$43,0))/1000,R55*INDEX('Damage costs'!$T$16:$T$43,MATCH($B164,'Damage costs'!$C$16:$C$43,0))/1000),\"\")","v":""},{"$f":"IFERROR(IF(OR($C$168=FALSE,LEFT($B164,3)<>\"NOX\"),S55*INDEX('Damage costs'!$P$16:$P$43,MATCH($B164,'Damage costs'!$C$16:$C$43,0))/1000,S55*INDEX('Damage costs'!$T$16:$T$43,MATCH($B164,'Damage costs'!$C$16:$C$43,0))/1000),\"\")","v":""},{"$f":"IFERROR(IF(OR($C$168=FALSE,LEFT($B164,3)<>\"NOX\"),T55*INDEX('Damage costs'!$P$16:$P$43,MATCH($B164,'Damage costs'!$C$16:$C$43,0))/1000,T55*INDEX('Damage costs'!$T$16:$T$43,MATCH($B164,'Damage costs'!$C$16:$C$43,0))/1000),\"\")","v":""},{"$f":"IFERROR(IF(OR($C$168=FALSE,LEFT($B164,3)<>\"NOX\"),U55*INDEX('Damage costs'!$P$16:$P$43,MATCH($B164,'Damage costs'!$C$16:$C$43,0))/1000,U55*INDEX('Damage costs'!$T$16:$T$43,MATCH($B164,'Damage costs'!$C$16:$C$43,0))/1000),\"\")","v":""},{"$f":"IFERROR(IF(OR($C$168=FALSE,LEFT($B164,3)<>\"NOX\"),V55*INDEX('Damage costs'!$P$16:$P$43,MATCH($B164,'Damage costs'!$C$16:$C$43,0))/1000,V55*INDEX('Damage costs'!$T$16:$T$43,MATCH($B164,'Damage costs'!$C$16:$C$43,0))/1000),\"\")","v":""},{"$f":"IFERROR(IF(OR($C$168=FALSE,LEFT($B164,3)<>\"NOX\"),W55*INDEX('Damage costs'!$P$16:$P$43,MATCH($B164,'Damage costs'!$C$16:$C$43,0))/1000,W55*INDEX('Damage costs'!$T$16:$T$43,MATCH($B164,'Damage costs'!$C$16:$C$43,0))/1000),\"\")","v":""},{"$f":"IFERROR(IF(OR($C$168=FALSE,LEFT($B164,3)<>\"NOX\"),X55*INDEX('Damage costs'!$P$16:$P$43,MATCH($B164,'Damage costs'!$C$16:$C$43,0))/1000,X55*INDEX('Damage costs'!$T$16:$T$43,MATCH($B164,'Damage costs'!$C$16:$C$43,0))/1000),\"\")","v":""},{"$f":"IFERROR(IF(OR($C$168=FALSE,LEFT($B164,3)<>\"NOX\"),Y55*INDEX('Damage costs'!$P$16:$P$43,MATCH($B164,'Damage costs'!$C$16:$C$43,0))/1000,Y55*INDEX('Damage costs'!$T$16:$T$43,MATCH($B164,'Damage costs'!$C$16:$C$43,0))/1000),\"\")","v":""},{"$f":"IFERROR(IF(OR($C$168=FALSE,LEFT($B164,3)<>\"NOX\"),Z55*INDEX('Damage costs'!$P$16:$P$43,MATCH($B164,'Damage costs'!$C$16:$C$43,0))/1000,Z55*INDEX('Damage costs'!$T$16:$T$43,MATCH($B164,'Damage costs'!$C$16:$C$43,0))/1000),\"\")","v":""},{"$f":"IFERROR(IF(OR($C$168=FALSE,LEFT($B164,3)<>\"NOX\"),AA55*INDEX('Damage costs'!$P$16:$P$43,MATCH($B164,'Damage costs'!$C$16:$C$43,0))/1000,AA55*INDEX('Damage costs'!$T$16:$T$43,MATCH($B164,'Damage costs'!$C$16:$C$43,0))/1000),\"\")","v":""},{"$f":"IFERROR(IF(OR($C$168=FALSE,LEFT($B164,3)<>\"NOX\"),AB55*INDEX('Damage costs'!$P$16:$P$43,MATCH($B164,'Damage costs'!$C$16:$C$43,0))/1000,AB55*INDEX('Damage costs'!$T$16:$T$43,MATCH($B164,'Damage costs'!$C$16:$C$43,0))/1000),\"\")","v":""},{"$f":"IFERROR(IF(OR($C$168=FALSE,LEFT($B164,3)<>\"NOX\"),AC55*INDEX('Damage costs'!$P$16:$P$43,MATCH($B164,'Damage costs'!$C$16:$C$43,0))/1000,AC55*INDEX('Damage costs'!$T$16:$T$43,MATCH($B164,'Damage costs'!$C$16:$C$43,0))/1000),\"\")","v":""},{"$f":"IFERROR(IF(OR($C$168=FALSE,LEFT($B164,3)<>\"NOX\"),AD55*INDEX('Damage costs'!$P$16:$P$43,MATCH($B164,'Damage costs'!$C$16:$C$43,0))/1000,AD55*INDEX('Damage costs'!$T$16:$T$43,MATCH($B164,'Damage costs'!$C$16:$C$43,0))/1000),\"\")","v":""},{"$f":"IFERROR(IF(OR($C$168=FALSE,LEFT($B164,3)<>\"NOX\"),AE55*INDEX('Damage costs'!$P$16:$P$43,MATCH($B164,'Damage costs'!$C$16:$C$43,0))/1000,AE55*INDEX('Damage costs'!$T$16:$T$43,MATCH($B164,'Damage costs'!$C$16:$C$43,0))/1000),\"\")","v":""},{"$f":"IFERROR(IF(OR($C$168=FALSE,LEFT($B164,3)<>\"NOX\"),AF55*INDEX('Damage costs'!$P$16:$P$43,MATCH($B164,'Damage costs'!$C$16:$C$43,0))/1000,AF55*INDEX('Damage costs'!$T$16:$T$43,MATCH($B164,'Damage costs'!$C$16:$C$43,0))/1000),\"\")","v":""},{"$f":"IFERROR(IF(OR($C$168=FALSE,LEFT($B164,3)<>\"NOX\"),AG55*INDEX('Damage costs'!$P$16:$P$43,MATCH($B164,'Damage costs'!$C$16:$C$43,0))/1000,AG55*INDEX('Damage costs'!$T$16:$T$43,MATCH($B164,'Damage costs'!$C$16:$C$43,0))/1000),\"\")","v":""},{"$f":"IFERROR(IF(OR($C$168=FALSE,LEFT($B164,3)<>\"NOX\"),AH55*INDEX('Damage costs'!$P$16:$P$43,MATCH($B164,'Damage costs'!$C$16:$C$43,0))/1000,AH55*INDEX('Damage costs'!$T$16:$T$43,MATCH($B164,'Damage costs'!$C$16:$C$43,0))/1000),\"\")","v":""},{"$f":"IFERROR(IF(OR($C$168=FALSE,LEFT($B164,3)<>\"NOX\"),AI55*INDEX('Damage costs'!$P$16:$P$43,MATCH($B164,'Damage costs'!$C$16:$C$43,0))/1000,AI55*INDEX('Damage costs'!$T$16:$T$43,MATCH($B164,'Damage costs'!$C$16:$C$43,0))/1000),\"\")","v":""},{"$f":"IFERROR(IF(OR($C$168=FALSE,LEFT($B164,3)<>\"NOX\"),AJ55*INDEX('Damage costs'!$P$16:$P$43,MATCH($B164,'Damage costs'!$C$16:$C$43,0))/1000,AJ55*INDEX('Damage costs'!$T$16:$T$43,MATCH($B164,'Damage costs'!$C$16:$C$43,0))/1000),\"\")","v":""},{"$f":"IFERROR(IF(OR($C$168=FALSE,LEFT($B164,3)<>\"NOX\"),AK55*INDEX('Damage costs'!$P$16:$P$43,MATCH($B164,'Damage costs'!$C$16:$C$43,0))/1000,AK55*INDEX('Damage costs'!$T$16:$T$43,MATCH($B164,'Damage costs'!$C$16:$C$43,0))/1000),\"\")","v":""},{"$f":"IFERROR(IF(OR($C$168=FALSE,LEFT($B164,3)<>\"NOX\"),AL55*INDEX('Damage costs'!$P$16:$P$43,MATCH($B164,'Damage costs'!$C$16:$C$43,0))/1000,AL55*INDEX('Damage costs'!$T$16:$T$43,MATCH($B164,'Damage costs'!$C$16:$C$43,0))/1000),\"\")","v":""},{"$f":"IFERROR(IF(OR($C$168=FALSE,LEFT($B164,3)<>\"NOX\"),AM55*INDEX('Damage costs'!$P$16:$P$43,MATCH($B164,'Damage costs'!$C$16:$C$43,0))/1000,AM55*INDEX('Damage costs'!$T$16:$T$43,MATCH($B164,'Damage costs'!$C$16:$C$43,0))/1000),\"\")","v":""},{"$f":"IFERROR(IF(OR($C$168=FALSE,LEFT($B164,3)<>\"NOX\"),AN55*INDEX('Damage costs'!$P$16:$P$43,MATCH($B164,'Damage costs'!$C$16:$C$43,0))/1000,AN55*INDEX('Damage costs'!$T$16:$T$43,MATCH($B164,'Damage costs'!$C$16:$C$43,0))/1000),\"\")","v":""},{"$f":"IFERROR(IF(OR($C$168=FALSE,LEFT($B164,3)<>\"NOX\"),AO55*INDEX('Damage costs'!$P$16:$P$43,MATCH($B164,'Damage costs'!$C$16:$C$43,0))/1000,AO55*INDEX('Damage costs'!$T$16:$T$43,MATCH($B164,'Damage costs'!$C$16:$C$43,0))/1000),\"\")","v":""},{"$f":"IFERROR(IF(OR($C$168=FALSE,LEFT($B164,3)<>\"NOX\"),AP55*INDEX('Damage costs'!$P$16:$P$43,MATCH($B164,'Damage costs'!$C$16:$C$43,0))/1000,AP55*INDEX('Damage costs'!$T$16:$T$43,MATCH($B164,'Damage costs'!$C$16:$C$43,0))/1000),\"\")","v":""},{"$f":"IFERROR(IF(OR($C$168=FALSE,LEFT($B164,3)<>\"NOX\"),AQ55*INDEX('Damage costs'!$P$16:$P$43,MATCH($B164,'Damage costs'!$C$16:$C$43,0))/1000,AQ55*INDEX('Damage costs'!$T$16:$T$43,MATCH($B164,'Damage costs'!$C$16:$C$43,0))/1000),\"\")","v":""},{"$f":"IFERROR(IF(OR($C$168=FALSE,LEFT($B164,3)<>\"NOX\"),AR55*INDEX('Damage costs'!$P$16:$P$43,MATCH($B164,'Damage costs'!$C$16:$C$43,0))/1000,AR55*INDEX('Damage costs'!$T$16:$T$43,MATCH($B164,'Damage costs'!$C$16:$C$43,0))/1000),\"\")","v":""},{"$f":"IFERROR(IF(OR($C$168=FALSE,LEFT($B164,3)<>\"NOX\"),AS55*INDEX('Damage costs'!$P$16:$P$43,MATCH($B164,'Damage costs'!$C$16:$C$43,0))/1000,AS55*INDEX('Damage costs'!$T$16:$T$43,MATCH($B164,'Damage costs'!$C$16:$C$43,0))/1000),\"\")","v":""},{"$f":"IFERROR(IF(OR($C$168=FALSE,LEFT($B164,3)<>\"NOX\"),AT55*INDEX('Damage costs'!$P$16:$P$43,MATCH($B164,'Damage costs'!$C$16:$C$43,0))/1000,AT55*INDEX('Damage costs'!$T$16:$T$43,MATCH($B164,'Damage costs'!$C$16:$C$43,0))/1000),\"\")","v":""},{"$f":"IFERROR(IF(OR($C$168=FALSE,LEFT($B164,3)<>\"NOX\"),AU55*INDEX('Damage costs'!$P$16:$P$43,MATCH($B164,'Damage costs'!$C$16:$C$43,0))/1000,AU55*INDEX('Damage costs'!$T$16:$T$43,MATCH($B164,'Damage costs'!$C$16:$C$43,0))/1000),\"\")","v":""},{"$f":"IFERROR(IF(OR($C$168=FALSE,LEFT($B164,3)<>\"NOX\"),AV55*INDEX('Damage costs'!$P$16:$P$43,MATCH($B164,'Damage costs'!$C$16:$C$43,0))/1000,AV55*INDEX('Damage costs'!$T$16:$T$43,MATCH($B164,'Damage costs'!$C$16:$C$43,0))/1000),\"\")","v":""},{"$f":"IFERROR(IF(OR($C$168=FALSE,LEFT($B164,3)<>\"NOX\"),AW55*INDEX('Damage costs'!$P$16:$P$43,MATCH($B164,'Damage costs'!$C$16:$C$43,0))/1000,AW55*INDEX('Damage costs'!$T$16:$T$43,MATCH($B164,'Damage costs'!$C$16:$C$43,0))/1000),\"\")","v":""},{"$f":"IFERROR(IF(OR($C$168=FALSE,LEFT($B164,3)<>\"NOX\"),AX55*INDEX('Damage costs'!$P$16:$P$43,MATCH($B164,'Damage costs'!$C$16:$C$43,0))/1000,AX55*INDEX('Damage costs'!$T$16:$T$43,MATCH($B164,'Damage costs'!$C$16:$C$43,0))/1000),\"\")","v":""},{"$f":"IFERROR(IF(OR($C$168=FALSE,LEFT($B164,3)<>\"NOX\"),AY55*INDEX('Damage costs'!$P$16:$P$43,MATCH($B164,'Damage costs'!$C$16:$C$43,0))/1000,AY55*INDEX('Damage costs'!$T$16:$T$43,MATCH($B164,'Damage costs'!$C$16:$C$43,0))/1000),\"\")","v":""},{"$f":"IFERROR(IF(OR($C$168=FALSE,LEFT($B164,3)<>\"NOX\"),AZ55*INDEX('Damage costs'!$P$16:$P$43,MATCH($B164,'Damage costs'!$C$16:$C$43,0))/1000,AZ55*INDEX('Damage costs'!$T$16:$T$43,MATCH($B164,'Damage costs'!$C$16:$C$43,0))/1000),\"\")","v":""},{"$f":"IFERROR(IF(OR($C$168=FALSE,LEFT($B164,3)<>\"NOX\"),BA55*INDEX('Damage costs'!$P$16:$P$43,MATCH($B164,'Damage costs'!$C$16:$C$43,0))/1000,BA55*INDEX('Damage costs'!$T$16:$T$43,MATCH($B164,'Damage costs'!$C$16:$C$43,0))/1000),\"\")","v":""},{"$f":"IFERROR(IF(OR($C$168=FALSE,LEFT($B164,3)<>\"NOX\"),BB55*INDEX('Damage costs'!$P$16:$P$43,MATCH($B164,'Damage costs'!$C$16:$C$43,0))/1000,BB55*INDEX('Damage costs'!$T$16:$T$43,MATCH($B164,'Damage costs'!$C$16:$C$43,0))/1000),\"\")","v":""},{"$f":"IFERROR(IF(OR($C$168=FALSE,LEFT($B164,3)<>\"NOX\"),BC55*INDEX('Damage costs'!$P$16:$P$43,MATCH($B164,'Damage costs'!$C$16:$C$43,0))/1000,BC55*INDEX('Damage costs'!$T$16:$T$43,MATCH($B164,'Damage costs'!$C$16:$C$43,0))/1000),\"\")","v":""},{"$f":"IFERROR(IF(OR($C$168=FALSE,LEFT($B164,3)<>\"NOX\"),BD55*INDEX('Damage costs'!$P$16:$P$43,MATCH($B164,'Damage costs'!$C$16:$C$43,0))/1000,BD55*INDEX('Damage costs'!$T$16:$T$43,MATCH($B164,'Damage costs'!$C$16:$C$43,0))/1000),\"\")","v":""},{"$f":"IFERROR(IF(OR($C$168=FALSE,LEFT($B164,3)<>\"NOX\"),BE55*INDEX('Damage costs'!$P$16:$P$43,MATCH($B164,'Damage costs'!$C$16:$C$43,0))/1000,BE55*INDEX('Damage costs'!$T$16:$T$43,MATCH($B164,'Damage costs'!$C$16:$C$43,0))/1000),\"\")","v":""},{"$f":"IFERROR(IF(OR($C$168=FALSE,LEFT($B164,3)<>\"NOX\"),BF55*INDEX('Damage costs'!$P$16:$P$43,MATCH($B164,'Damage costs'!$C$16:$C$43,0))/1000,BF55*INDEX('Damage costs'!$T$16:$T$43,MATCH($B164,'Damage costs'!$C$16:$C$43,0))/1000),\"\")","v":""},{"$f":"IFERROR(IF(OR($C$168=FALSE,LEFT($B164,3)<>\"NOX\"),BG55*INDEX('Damage costs'!$P$16:$P$43,MATCH($B164,'Damage costs'!$C$16:$C$43,0))/1000,BG55*INDEX('Damage costs'!$T$16:$T$43,MATCH($B164,'Damage costs'!$C$16:$C$43,0))/1000),\"\")","v":""},{"$f":"IFERROR(IF(OR($C$168=FALSE,LEFT($B164,3)<>\"NOX\"),BH55*INDEX('Damage costs'!$P$16:$P$43,MATCH($B164,'Damage costs'!$C$16:$C$43,0))/1000,BH55*INDEX('Damage costs'!$T$16:$T$43,MATCH($B164,'Damage costs'!$C$16:$C$43,0))/1000),\"\")","v":""},{"$f":"IFERROR(IF(OR($C$168=FALSE,LEFT($B164,3)<>\"NOX\"),BI55*INDEX('Damage costs'!$P$16:$P$43,MATCH($B164,'Damage costs'!$C$16:$C$43,0))/1000,BI55*INDEX('Damage costs'!$T$16:$T$43,MATCH($B164,'Damage costs'!$C$16:$C$43,0))/1000),\"\")","v":""},{"$f":"IFERROR(IF(OR($C$168=FALSE,LEFT($B164,3)<>\"NOX\"),BJ55*INDEX('Damage costs'!$P$16:$P$43,MATCH($B164,'Damage costs'!$C$16:$C$43,0))/1000,BJ55*INDEX('Damage costs'!$T$16:$T$43,MATCH($B164,'Damage costs'!$C$16:$C$43,0))/1000),\"\")","v":""},{"$f":"IFERROR(IF(OR($C$168=FALSE,LEFT($B164,3)<>\"NOX\"),BK55*INDEX('Damage costs'!$P$16:$P$43,MATCH($B164,'Damage costs'!$C$16:$C$43,0))/1000,BK55*INDEX('Damage costs'!$T$16:$T$43,MATCH($B164,'Damage costs'!$C$16:$C$43,0))/1000),\"\")","v":""},{"$f":"IFERROR(IF(OR($C$168=FALSE,LEFT($B164,3)<>\"NOX\"),BL55*INDEX('Damage costs'!$P$16:$P$43,MATCH($B164,'Damage costs'!$C$16:$C$43,0))/1000,BL55*INDEX('Damage costs'!$T$16:$T$43,MATCH($B164,'Damage costs'!$C$16:$C$43,0))/1000),\"\")","v":""},{"$f":"IFERROR(IF(OR($C$168=FALSE,LEFT($B164,3)<>\"NOX\"),BM55*INDEX('Damage costs'!$P$16:$P$43,MATCH($B164,'Damage costs'!$C$16:$C$43,0))/1000,BM55*INDEX('Damage costs'!$T$16:$T$43,MATCH($B164,'Damage costs'!$C$16:$C$43,0))/1000),\"\")","v":""},{"$f":"IFERROR(IF(OR($C$168=FALSE,LEFT($B164,3)<>\"NOX\"),BN55*INDEX('Damage costs'!$P$16:$P$43,MATCH($B164,'Damage costs'!$C$16:$C$43,0))/1000,BN55*INDEX('Damage costs'!$T$16:$T$43,MATCH($B164,'Damage costs'!$C$16:$C$43,0))/1000),\"\")","v":""},{"$f":"IFERROR(IF(OR($C$168=FALSE,LEFT($B164,3)<>\"NOX\"),BO55*INDEX('Damage costs'!$P$16:$P$43,MATCH($B164,'Damage costs'!$C$16:$C$43,0))/1000,BO55*INDEX('Damage costs'!$T$16:$T$43,MATCH($B164,'Damage costs'!$C$16:$C$43,0))/1000),\"\")","v":""},{"$f":"IFERROR(IF(OR($C$168=FALSE,LEFT($B164,3)<>\"NOX\"),BP55*INDEX('Damage costs'!$P$16:$P$43,MATCH($B164,'Damage costs'!$C$16:$C$43,0))/1000,BP55*INDEX('Damage costs'!$T$16:$T$43,MATCH($B164,'Damage costs'!$C$16:$C$43,0))/1000),\"\")","v":""},{"$f":"IFERROR(IF(OR($C$168=FALSE,LEFT($B164,3)<>\"NOX\"),BQ55*INDEX('Damage costs'!$P$16:$P$43,MATCH($B164,'Damage costs'!$C$16:$C$43,0))/1000,BQ55*INDEX('Damage costs'!$T$16:$T$43,MATCH($B164,'Damage costs'!$C$16:$C$43,0))/1000),\"\")","v":""},{"$f":"IFERROR(IF(OR($C$168=FALSE,LEFT($B164,3)<>\"NOX\"),BR55*INDEX('Damage costs'!$P$16:$P$43,MATCH($B164,'Damage costs'!$C$16:$C$43,0))/1000,BR55*INDEX('Damage costs'!$T$16:$T$43,MATCH($B164,'Damage costs'!$C$16:$C$43,0))/1000),\"\")","v":""},{"$f":"IFERROR(IF(OR($C$168=FALSE,LEFT($B164,3)<>\"NOX\"),BS55*INDEX('Damage costs'!$P$16:$P$43,MATCH($B164,'Damage costs'!$C$16:$C$43,0))/1000,BS55*INDEX('Damage costs'!$T$16:$T$43,MATCH($B164,'Damage costs'!$C$16:$C$43,0))/1000),\"\")","v":""},{"$f":"IFERROR(IF(OR($C$168=FALSE,LEFT($B164,3)<>\"NOX\"),BT55*INDEX('Damage costs'!$P$16:$P$43,MATCH($B164,'Damage costs'!$C$16:$C$43,0))/1000,BT55*INDEX('Damage costs'!$T$16:$T$43,MATCH($B164,'Damage costs'!$C$16:$C$43,0))/1000),\"\")","v":""},{"$f":"IFERROR(IF(OR($C$168=FALSE,LEFT($B164,3)<>\"NOX\"),BU55*INDEX('Damage costs'!$P$16:$P$43,MATCH($B164,'Damage costs'!$C$16:$C$43,0))/1000,BU55*INDEX('Damage costs'!$T$16:$T$43,MATCH($B164,'Damage costs'!$C$16:$C$43,0))/1000),\"\")","v":""},{"$f":"IFERROR(IF(OR($C$168=FALSE,LEFT($B164,3)<>\"NOX\"),BV55*INDEX('Damage costs'!$P$16:$P$43,MATCH($B164,'Damage costs'!$C$16:$C$43,0))/1000,BV55*INDEX('Damage costs'!$T$16:$T$43,MATCH($B164,'Damage costs'!$C$16:$C$43,0))/1000),\"\")","v":""},{"$f":"IFERROR(IF(OR($C$168=FALSE,LEFT($B164,3)<>\"NOX\"),BW55*INDEX('Damage costs'!$P$16:$P$43,MATCH($B164,'Damage costs'!$C$16:$C$43,0))/1000,BW55*INDEX('Damage costs'!$T$16:$T$43,MATCH($B164,'Damage costs'!$C$16:$C$43,0))/1000),\"\")","v":""},{"$f":"IFERROR(IF(OR($C$168=FALSE,LEFT($B164,3)<>\"NOX\"),BX55*INDEX('Damage costs'!$P$16:$P$43,MATCH($B164,'Damage costs'!$C$16:$C$43,0))/1000,BX55*INDEX('Damage costs'!$T$16:$T$43,MATCH($B164,'Damage costs'!$C$16:$C$43,0))/1000),\"\")","v":""},{"$f":"IFERROR(IF(OR($C$168=FALSE,LEFT($B164,3)<>\"NOX\"),BY55*INDEX('Damage costs'!$P$16:$P$43,MATCH($B164,'Damage costs'!$C$16:$C$43,0))/1000,BY55*INDEX('Damage costs'!$T$16:$T$43,MATCH($B164,'Damage costs'!$C$16:$C$43,0))/1000),\"\")","v":""},{"$f":"IFERROR(IF(OR($C$168=FALSE,LEFT($B164,3)<>\"NOX\"),BZ55*INDEX('Damage costs'!$P$16:$P$43,MATCH($B164,'Damage costs'!$C$16:$C$43,0))/1000,BZ55*INDEX('Damage costs'!$T$16:$T$43,MATCH($B164,'Damage costs'!$C$16:$C$43,0))/1000),\"\")","v":""},{"$f":"IFERROR(IF(OR($C$168=FALSE,LEFT($B164,3)<>\"NOX\"),CA55*INDEX('Damage costs'!$P$16:$P$43,MATCH($B164,'Damage costs'!$C$16:$C$43,0))/1000,CA55*INDEX('Damage costs'!$T$16:$T$43,MATCH($B164,'Damage costs'!$C$16:$C$43,0))/1000),\"\")","v":""},{"$f":"IFERROR(IF(OR($C$168=FALSE,LEFT($B164,3)<>\"NOX\"),CB55*INDEX('Damage costs'!$P$16:$P$43,MATCH($B164,'Damage costs'!$C$16:$C$43,0))/1000,CB55*INDEX('Damage costs'!$T$16:$T$43,MATCH($B164,'Damage costs'!$C$16:$C$43,0))/1000),\"\")","v":""},{"$f":"IFERROR(IF(OR($C$168=FALSE,LEFT($B164,3)<>\"NOX\"),CC55*INDEX('Damage costs'!$P$16:$P$43,MATCH($B164,'Damage costs'!$C$16:$C$43,0))/1000,CC55*INDEX('Damage costs'!$T$16:$T$43,MATCH($B164,'Damage costs'!$C$16:$C$43,0))/1000),\"\")","v":""},{"$f":"IFERROR(IF(OR($C$168=FALSE,LEFT($B164,3)<>\"NOX\"),CD55*INDEX('Damage costs'!$P$16:$P$43,MATCH($B164,'Damage costs'!$C$16:$C$43,0))/1000,CD55*INDEX('Damage costs'!$T$16:$T$43,MATCH($B164,'Damage costs'!$C$16:$C$43,0))/1000),\"\")","v":""},{"$f":"IFERROR(IF(OR($C$168=FALSE,LEFT($B164,3)<>\"NOX\"),CE55*INDEX('Damage costs'!$P$16:$P$43,MATCH($B164,'Damage costs'!$C$16:$C$43,0))/1000,CE55*INDEX('Damage costs'!$T$16:$T$43,MATCH($B164,'Damage costs'!$C$16:$C$43,0))/1000),\"\")","v":""},{"$f":"IFERROR(IF(OR($C$168=FALSE,LEFT($B164,3)<>\"NOX\"),CF55*INDEX('Damage costs'!$P$16:$P$43,MATCH($B164,'Damage costs'!$C$16:$C$43,0))/1000,CF55*INDEX('Damage costs'!$T$16:$T$43,MATCH($B164,'Damage costs'!$C$16:$C$43,0))/1000),\"\")","v":""},{"$f":"IFERROR(IF(OR($C$168=FALSE,LEFT($B164,3)<>\"NOX\"),CG55*INDEX('Damage costs'!$P$16:$P$43,MATCH($B164,'Damage costs'!$C$16:$C$43,0))/1000,CG55*INDEX('Damage costs'!$T$16:$T$43,MATCH($B164,'Damage costs'!$C$16:$C$43,0))/1000),\"\")","v":""},{"$f":"IFERROR(IF(OR($C$168=FALSE,LEFT($B164,3)<>\"NOX\"),CH55*INDEX('Damage costs'!$P$16:$P$43,MATCH($B164,'Damage costs'!$C$16:$C$43,0))/1000,CH55*INDEX('Damage costs'!$T$16:$T$43,MATCH($B164,'Damage costs'!$C$16:$C$43,0))/1000),\"\")","v":""},{"$f":"IFERROR(IF(OR($C$168=FALSE,LEFT($B164,3)<>\"NOX\"),CI55*INDEX('Damage costs'!$P$16:$P$43,MATCH($B164,'Damage costs'!$C$16:$C$43,0))/1000,CI55*INDEX('Damage costs'!$T$16:$T$43,MATCH($B164,'Damage costs'!$C$16:$C$43,0))/1000),\"\")","v":""},{"$f":"IFERROR(IF(OR($C$168=FALSE,LEFT($B164,3)<>\"NOX\"),CJ55*INDEX('Damage costs'!$P$16:$P$43,MATCH($B164,'Damage costs'!$C$16:$C$43,0))/1000,CJ55*INDEX('Damage costs'!$T$16:$T$43,MATCH($B164,'Damage costs'!$C$16:$C$43,0))/1000),\"\")","v":""},{"$f":"IFERROR(IF(OR($C$168=FALSE,LEFT($B164,3)<>\"NOX\"),CK55*INDEX('Damage costs'!$P$16:$P$43,MATCH($B164,'Damage costs'!$C$16:$C$43,0))/1000,CK55*INDEX('Damage costs'!$T$16:$T$43,MATCH($B164,'Damage costs'!$C$16:$C$43,0))/1000),\"\")","v":""},{"$f":"IFERROR(IF(OR($C$168=FALSE,LEFT($B164,3)<>\"NOX\"),CL55*INDEX('Damage costs'!$P$16:$P$43,MATCH($B164,'Damage costs'!$C$16:$C$43,0))/1000,CL55*INDEX('Damage costs'!$T$16:$T$43,MATCH($B164,'Damage costs'!$C$16:$C$43,0))/1000),\"\")","v":""},{"$f":"IFERROR(IF(OR($C$168=FALSE,LEFT($B164,3)<>\"NOX\"),CM55*INDEX('Damage costs'!$P$16:$P$43,MATCH($B164,'Damage costs'!$C$16:$C$43,0))/1000,CM55*INDEX('Damage costs'!$T$16:$T$43,MATCH($B164,'Damage costs'!$C$16:$C$43,0))/1000),\"\")","v":""},{"$f":"IFERROR(IF(OR($C$168=FALSE,LEFT($B164,3)<>\"NOX\"),CN55*INDEX('Damage costs'!$P$16:$P$43,MATCH($B164,'Damage costs'!$C$16:$C$43,0))/1000,CN55*INDEX('Damage costs'!$T$16:$T$43,MATCH($B164,'Damage costs'!$C$16:$C$43,0))/1000),\"\")","v":""},{"$f":"IFERROR(IF(OR($C$168=FALSE,LEFT($B164,3)<>\"NOX\"),CO55*INDEX('Damage costs'!$P$16:$P$43,MATCH($B164,'Damage costs'!$C$16:$C$43,0))/1000,CO55*INDEX('Damage costs'!$T$16:$T$43,MATCH($B164,'Damage costs'!$C$16:$C$43,0))/1000),\"\")","v":""},{"$f":"IFERROR(IF(OR($C$168=FALSE,LEFT($B164,3)<>\"NOX\"),CP55*INDEX('Damage costs'!$P$16:$P$43,MATCH($B164,'Damage costs'!$C$16:$C$43,0))/1000,CP55*INDEX('Damage costs'!$T$16:$T$43,MATCH($B164,'Damage costs'!$C$16:$C$43,0))/1000),\"\")","v":""},{"$f":"IFERROR(IF(OR($C$168=FALSE,LEFT($B164,3)<>\"NOX\"),CQ55*INDEX('Damage costs'!$P$16:$P$43,MATCH($B164,'Damage costs'!$C$16:$C$43,0))/1000,CQ55*INDEX('Damage costs'!$T$16:$T$43,MATCH($B164,'Damage costs'!$C$16:$C$43,0))/1000),\"\")","v":""},{"$f":"IFERROR(IF(OR($C$168=FALSE,LEFT($B164,3)<>\"NOX\"),CR55*INDEX('Damage costs'!$P$16:$P$43,MATCH($B164,'Damage costs'!$C$16:$C$43,0))/1000,CR55*INDEX('Damage costs'!$T$16:$T$43,MATCH($B164,'Damage costs'!$C$16:$C$43,0))/1000),\"\")","v":""},{"$f":"IFERROR(IF(OR($C$168=FALSE,LEFT($B164,3)<>\"NOX\"),CS55*INDEX('Damage costs'!$P$16:$P$43,MATCH($B164,'Damage costs'!$C$16:$C$43,0))/1000,CS55*INDEX('Damage costs'!$T$16:$T$43,MATCH($B164,'Damage costs'!$C$16:$C$43,0))/1000),\"\")","v":""},{"$f":"IFERROR(IF(OR($C$168=FALSE,LEFT($B164,3)<>\"NOX\"),CT55*INDEX('Damage costs'!$P$16:$P$43,MATCH($B164,'Damage costs'!$C$16:$C$43,0))/1000,CT55*INDEX('Damage costs'!$T$16:$T$43,MATCH($B164,'Damage costs'!$C$16:$C$43,0))/1000),\"\")","v":""},{"$f":"IFERROR(IF(OR($C$168=FALSE,LEFT($B164,3)<>\"NOX\"),CU55*INDEX('Damage costs'!$P$16:$P$43,MATCH($B164,'Damage costs'!$C$16:$C$43,0))/1000,CU55*INDEX('Damage costs'!$T$16:$T$43,MATCH($B164,'Damage costs'!$C$16:$C$43,0))/1000),\"\")","v":""},{"$f":"IFERROR(IF(OR($C$168=FALSE,LEFT($B164,3)<>\"NOX\"),CV55*INDEX('Damage costs'!$P$16:$P$43,MATCH($B164,'Damage costs'!$C$16:$C$43,0))/1000,CV55*INDEX('Damage costs'!$T$16:$T$43,MATCH($B164,'Damage costs'!$C$16:$C$43,0))/1000),\"\")","v":""},{"$f":"IFERROR(IF(OR($C$168=FALSE,LEFT($B164,3)<>\"NOX\"),CW55*INDEX('Damage costs'!$P$16:$P$43,MATCH($B164,'Damage costs'!$C$16:$C$43,0))/1000,CW55*INDEX('Damage costs'!$T$16:$T$43,MATCH($B164,'Damage costs'!$C$16:$C$43,0))/1000),\"\")","v":""},{"$f":"IFERROR(IF(OR($C$168=FALSE,LEFT($B164,3)<>\"NOX\"),CX55*INDEX('Damage costs'!$P$16:$P$43,MATCH($B164,'Damage costs'!$C$16:$C$43,0))/1000,CX55*INDEX('Damage costs'!$T$16:$T$43,MATCH($B164,'Damage costs'!$C$16:$C$43,0))/1000),\"\")","v":""},{"$f":"IFERROR(IF(OR($C$168=FALSE,LEFT($B164,3)<>\"NOX\"),CY55*INDEX('Damage costs'!$P$16:$P$43,MATCH($B164,'Damage costs'!$C$16:$C$43,0))/1000,CY55*INDEX('Damage costs'!$T$16:$T$43,MATCH($B164,'Damage costs'!$C$16:$C$43,0))/1000),\"\")","v":""}]
[null,0,"£000's",{"$f":"IFERROR(IF(OR($C$168=FALSE,LEFT($B165,3)<>\"NOX\"),D56*INDEX('Damage costs'!$P$16:$P$43,MATCH($B165,'Damage costs'!$C$16:$C$43,0))/1000,D56*INDEX('Damage costs'!$T$16:$T$43,MATCH($B165,'Damage costs'!$C$16:$C$43,0))/1000),\"\")","v":""},{"$f":"IFERROR(IF(OR($C$168=FALSE,LEFT($B165,3)<>\"NOX\"),E56*INDEX('Damage costs'!$P$16:$P$43,MATCH($B165,'Damage costs'!$C$16:$C$43,0))/1000,E56*INDEX('Damage costs'!$T$16:$T$43,MATCH($B165,'Damage costs'!$C$16:$C$43,0))/1000),\"\")","v":""},{"$f":"IFERROR(IF(OR($C$168=FALSE,LEFT($B165,3)<>\"NOX\"),F56*INDEX('Damage costs'!$P$16:$P$43,MATCH($B165,'Damage costs'!$C$16:$C$43,0))/1000,F56*INDEX('Damage costs'!$T$16:$T$43,MATCH($B165,'Damage costs'!$C$16:$C$43,0))/1000),\"\")","v":""},{"$f":"IFERROR(IF(OR($C$168=FALSE,LEFT($B165,3)<>\"NOX\"),G56*INDEX('Damage costs'!$P$16:$P$43,MATCH($B165,'Damage costs'!$C$16:$C$43,0))/1000,G56*INDEX('Damage costs'!$T$16:$T$43,MATCH($B165,'Damage costs'!$C$16:$C$43,0))/1000),\"\")","v":""},{"$f":"IFERROR(IF(OR($C$168=FALSE,LEFT($B165,3)<>\"NOX\"),H56*INDEX('Damage costs'!$P$16:$P$43,MATCH($B165,'Damage costs'!$C$16:$C$43,0))/1000,H56*INDEX('Damage costs'!$T$16:$T$43,MATCH($B165,'Damage costs'!$C$16:$C$43,0))/1000),\"\")","v":""},{"$f":"IFERROR(IF(OR($C$168=FALSE,LEFT($B165,3)<>\"NOX\"),I56*INDEX('Damage costs'!$P$16:$P$43,MATCH($B165,'Damage costs'!$C$16:$C$43,0))/1000,I56*INDEX('Damage costs'!$T$16:$T$43,MATCH($B165,'Damage costs'!$C$16:$C$43,0))/1000),\"\")","v":""},{"$f":"IFERROR(IF(OR($C$168=FALSE,LEFT($B165,3)<>\"NOX\"),J56*INDEX('Damage costs'!$P$16:$P$43,MATCH($B165,'Damage costs'!$C$16:$C$43,0))/1000,J56*INDEX('Damage costs'!$T$16:$T$43,MATCH($B165,'Damage costs'!$C$16:$C$43,0))/1000),\"\")","v":""},{"$f":"IFERROR(IF(OR($C$168=FALSE,LEFT($B165,3)<>\"NOX\"),K56*INDEX('Damage costs'!$P$16:$P$43,MATCH($B165,'Damage costs'!$C$16:$C$43,0))/1000,K56*INDEX('Damage costs'!$T$16:$T$43,MATCH($B165,'Damage costs'!$C$16:$C$43,0))/1000),\"\")","v":""},{"$f":"IFERROR(IF(OR($C$168=FALSE,LEFT($B165,3)<>\"NOX\"),L56*INDEX('Damage costs'!$P$16:$P$43,MATCH($B165,'Damage costs'!$C$16:$C$43,0))/1000,L56*INDEX('Damage costs'!$T$16:$T$43,MATCH($B165,'Damage costs'!$C$16:$C$43,0))/1000),\"\")","v":""},{"$f":"IFERROR(IF(OR($C$168=FALSE,LEFT($B165,3)<>\"NOX\"),M56*INDEX('Damage costs'!$P$16:$P$43,MATCH($B165,'Damage costs'!$C$16:$C$43,0))/1000,M56*INDEX('Damage costs'!$T$16:$T$43,MATCH($B165,'Damage costs'!$C$16:$C$43,0))/1000),\"\")","v":""},{"$f":"IFERROR(IF(OR($C$168=FALSE,LEFT($B165,3)<>\"NOX\"),N56*INDEX('Damage costs'!$P$16:$P$43,MATCH($B165,'Damage costs'!$C$16:$C$43,0))/1000,N56*INDEX('Damage costs'!$T$16:$T$43,MATCH($B165,'Damage costs'!$C$16:$C$43,0))/1000),\"\")","v":""},{"$f":"IFERROR(IF(OR($C$168=FALSE,LEFT($B165,3)<>\"NOX\"),O56*INDEX('Damage costs'!$P$16:$P$43,MATCH($B165,'Damage costs'!$C$16:$C$43,0))/1000,O56*INDEX('Damage costs'!$T$16:$T$43,MATCH($B165,'Damage costs'!$C$16:$C$43,0))/1000),\"\")","v":""},{"$f":"IFERROR(IF(OR($C$168=FALSE,LEFT($B165,3)<>\"NOX\"),P56*INDEX('Damage costs'!$P$16:$P$43,MATCH($B165,'Damage costs'!$C$16:$C$43,0))/1000,P56*INDEX('Damage costs'!$T$16:$T$43,MATCH($B165,'Damage costs'!$C$16:$C$43,0))/1000),\"\")","v":""},{"$f":"IFERROR(IF(OR($C$168=FALSE,LEFT($B165,3)<>\"NOX\"),Q56*INDEX('Damage costs'!$P$16:$P$43,MATCH($B165,'Damage costs'!$C$16:$C$43,0))/1000,Q56*INDEX('Damage costs'!$T$16:$T$43,MATCH($B165,'Damage costs'!$C$16:$C$43,0))/1000),\"\")","v":""},{"$f":"IFERROR(IF(OR($C$168=FALSE,LEFT($B165,3)<>\"NOX\"),R56*INDEX('Damage costs'!$P$16:$P$43,MATCH($B165,'Damage costs'!$C$16:$C$43,0))/1000,R56*INDEX('Damage costs'!$T$16:$T$43,MATCH($B165,'Damage costs'!$C$16:$C$43,0))/1000),\"\")","v":""},{"$f":"IFERROR(IF(OR($C$168=FALSE,LEFT($B165,3)<>\"NOX\"),S56*INDEX('Damage costs'!$P$16:$P$43,MATCH($B165,'Damage costs'!$C$16:$C$43,0))/1000,S56*INDEX('Damage costs'!$T$16:$T$43,MATCH($B165,'Damage costs'!$C$16:$C$43,0))/1000),\"\")","v":""},{"$f":"IFERROR(IF(OR($C$168=FALSE,LEFT($B165,3)<>\"NOX\"),T56*INDEX('Damage costs'!$P$16:$P$43,MATCH($B165,'Damage costs'!$C$16:$C$43,0))/1000,T56*INDEX('Damage costs'!$T$16:$T$43,MATCH($B165,'Damage costs'!$C$16:$C$43,0))/1000),\"\")","v":""},{"$f":"IFERROR(IF(OR($C$168=FALSE,LEFT($B165,3)<>\"NOX\"),U56*INDEX('Damage costs'!$P$16:$P$43,MATCH($B165,'Damage costs'!$C$16:$C$43,0))/1000,U56*INDEX('Damage costs'!$T$16:$T$43,MATCH($B165,'Damage costs'!$C$16:$C$43,0))/1000),\"\")","v":""},{"$f":"IFERROR(IF(OR($C$168=FALSE,LEFT($B165,3)<>\"NOX\"),V56*INDEX('Damage costs'!$P$16:$P$43,MATCH($B165,'Damage costs'!$C$16:$C$43,0))/1000,V56*INDEX('Damage costs'!$T$16:$T$43,MATCH($B165,'Damage costs'!$C$16:$C$43,0))/1000),\"\")","v":""},{"$f":"IFERROR(IF(OR($C$168=FALSE,LEFT($B165,3)<>\"NOX\"),W56*INDEX('Damage costs'!$P$16:$P$43,MATCH($B165,'Damage costs'!$C$16:$C$43,0))/1000,W56*INDEX('Damage costs'!$T$16:$T$43,MATCH($B165,'Damage costs'!$C$16:$C$43,0))/1000),\"\")","v":""},{"$f":"IFERROR(IF(OR($C$168=FALSE,LEFT($B165,3)<>\"NOX\"),X56*INDEX('Damage costs'!$P$16:$P$43,MATCH($B165,'Damage costs'!$C$16:$C$43,0))/1000,X56*INDEX('Damage costs'!$T$16:$T$43,MATCH($B165,'Damage costs'!$C$16:$C$43,0))/1000),\"\")","v":""},{"$f":"IFERROR(IF(OR($C$168=FALSE,LEFT($B165,3)<>\"NOX\"),Y56*INDEX('Damage costs'!$P$16:$P$43,MATCH($B165,'Damage costs'!$C$16:$C$43,0))/1000,Y56*INDEX('Damage costs'!$T$16:$T$43,MATCH($B165,'Damage costs'!$C$16:$C$43,0))/1000),\"\")","v":""},{"$f":"IFERROR(IF(OR($C$168=FALSE,LEFT($B165,3)<>\"NOX\"),Z56*INDEX('Damage costs'!$P$16:$P$43,MATCH($B165,'Damage costs'!$C$16:$C$43,0))/1000,Z56*INDEX('Damage costs'!$T$16:$T$43,MATCH($B165,'Damage costs'!$C$16:$C$43,0))/1000),\"\")","v":""},{"$f":"IFERROR(IF(OR($C$168=FALSE,LEFT($B165,3)<>\"NOX\"),AA56*INDEX('Damage costs'!$P$16:$P$43,MATCH($B165,'Damage costs'!$C$16:$C$43,0))/1000,AA56*INDEX('Damage costs'!$T$16:$T$43,MATCH($B165,'Damage costs'!$C$16:$C$43,0))/1000),\"\")","v":""},{"$f":"IFERROR(IF(OR($C$168=FALSE,LEFT($B165,3)<>\"NOX\"),AB56*INDEX('Damage costs'!$P$16:$P$43,MATCH($B165,'Damage costs'!$C$16:$C$43,0))/1000,AB56*INDEX('Damage costs'!$T$16:$T$43,MATCH($B165,'Damage costs'!$C$16:$C$43,0))/1000),\"\")","v":""},{"$f":"IFERROR(IF(OR($C$168=FALSE,LEFT($B165,3)<>\"NOX\"),AC56*INDEX('Damage costs'!$P$16:$P$43,MATCH($B165,'Damage costs'!$C$16:$C$43,0))/1000,AC56*INDEX('Damage costs'!$T$16:$T$43,MATCH($B165,'Damage costs'!$C$16:$C$43,0))/1000),\"\")","v":""},{"$f":"IFERROR(IF(OR($C$168=FALSE,LEFT($B165,3)<>\"NOX\"),AD56*INDEX('Damage costs'!$P$16:$P$43,MATCH($B165,'Damage costs'!$C$16:$C$43,0))/1000,AD56*INDEX('Damage costs'!$T$16:$T$43,MATCH($B165,'Damage costs'!$C$16:$C$43,0))/1000),\"\")","v":""},{"$f":"IFERROR(IF(OR($C$168=FALSE,LEFT($B165,3)<>\"NOX\"),AE56*INDEX('Damage costs'!$P$16:$P$43,MATCH($B165,'Damage costs'!$C$16:$C$43,0))/1000,AE56*INDEX('Damage costs'!$T$16:$T$43,MATCH($B165,'Damage costs'!$C$16:$C$43,0))/1000),\"\")","v":""},{"$f":"IFERROR(IF(OR($C$168=FALSE,LEFT($B165,3)<>\"NOX\"),AF56*INDEX('Damage costs'!$P$16:$P$43,MATCH($B165,'Damage costs'!$C$16:$C$43,0))/1000,AF56*INDEX('Damage costs'!$T$16:$T$43,MATCH($B165,'Damage costs'!$C$16:$C$43,0))/1000),\"\")","v":""},{"$f":"IFERROR(IF(OR($C$168=FALSE,LEFT($B165,3)<>\"NOX\"),AG56*INDEX('Damage costs'!$P$16:$P$43,MATCH($B165,'Damage costs'!$C$16:$C$43,0))/1000,AG56*INDEX('Damage costs'!$T$16:$T$43,MATCH($B165,'Damage costs'!$C$16:$C$43,0))/1000),\"\")","v":""},{"$f":"IFERROR(IF(OR($C$168=FALSE,LEFT($B165,3)<>\"NOX\"),AH56*INDEX('Damage costs'!$P$16:$P$43,MATCH($B165,'Damage costs'!$C$16:$C$43,0))/1000,AH56*INDEX('Damage costs'!$T$16:$T$43,MATCH($B165,'Damage costs'!$C$16:$C$43,0))/1000),\"\")","v":""},{"$f":"IFERROR(IF(OR($C$168=FALSE,LEFT($B165,3)<>\"NOX\"),AI56*INDEX('Damage costs'!$P$16:$P$43,MATCH($B165,'Damage costs'!$C$16:$C$43,0))/1000,AI56*INDEX('Damage costs'!$T$16:$T$43,MATCH($B165,'Damage costs'!$C$16:$C$43,0))/1000),\"\")","v":""},{"$f":"IFERROR(IF(OR($C$168=FALSE,LEFT($B165,3)<>\"NOX\"),AJ56*INDEX('Damage costs'!$P$16:$P$43,MATCH($B165,'Damage costs'!$C$16:$C$43,0))/1000,AJ56*INDEX('Damage costs'!$T$16:$T$43,MATCH($B165,'Damage costs'!$C$16:$C$43,0))/1000),\"\")","v":""},{"$f":"IFERROR(IF(OR($C$168=FALSE,LEFT($B165,3)<>\"NOX\"),AK56*INDEX('Damage costs'!$P$16:$P$43,MATCH($B165,'Damage costs'!$C$16:$C$43,0))/1000,AK56*INDEX('Damage costs'!$T$16:$T$43,MATCH($B165,'Damage costs'!$C$16:$C$43,0))/1000),\"\")","v":""},{"$f":"IFERROR(IF(OR($C$168=FALSE,LEFT($B165,3)<>\"NOX\"),AL56*INDEX('Damage costs'!$P$16:$P$43,MATCH($B165,'Damage costs'!$C$16:$C$43,0))/1000,AL56*INDEX('Damage costs'!$T$16:$T$43,MATCH($B165,'Damage costs'!$C$16:$C$43,0))/1000),\"\")","v":""},{"$f":"IFERROR(IF(OR($C$168=FALSE,LEFT($B165,3)<>\"NOX\"),AM56*INDEX('Damage costs'!$P$16:$P$43,MATCH($B165,'Damage costs'!$C$16:$C$43,0))/1000,AM56*INDEX('Damage costs'!$T$16:$T$43,MATCH($B165,'Damage costs'!$C$16:$C$43,0))/1000),\"\")","v":""},{"$f":"IFERROR(IF(OR($C$168=FALSE,LEFT($B165,3)<>\"NOX\"),AN56*INDEX('Damage costs'!$P$16:$P$43,MATCH($B165,'Damage costs'!$C$16:$C$43,0))/1000,AN56*INDEX('Damage costs'!$T$16:$T$43,MATCH($B165,'Damage costs'!$C$16:$C$43,0))/1000),\"\")","v":""},{"$f":"IFERROR(IF(OR($C$168=FALSE,LEFT($B165,3)<>\"NOX\"),AO56*INDEX('Damage costs'!$P$16:$P$43,MATCH($B165,'Damage costs'!$C$16:$C$43,0))/1000,AO56*INDEX('Damage costs'!$T$16:$T$43,MATCH($B165,'Damage costs'!$C$16:$C$43,0))/1000),\"\")","v":""},{"$f":"IFERROR(IF(OR($C$168=FALSE,LEFT($B165,3)<>\"NOX\"),AP56*INDEX('Damage costs'!$P$16:$P$43,MATCH($B165,'Damage costs'!$C$16:$C$43,0))/1000,AP56*INDEX('Damage costs'!$T$16:$T$43,MATCH($B165,'Damage costs'!$C$16:$C$43,0))/1000),\"\")","v":""},{"$f":"IFERROR(IF(OR($C$168=FALSE,LEFT($B165,3)<>\"NOX\"),AQ56*INDEX('Damage costs'!$P$16:$P$43,MATCH($B165,'Damage costs'!$C$16:$C$43,0))/1000,AQ56*INDEX('Damage costs'!$T$16:$T$43,MATCH($B165,'Damage costs'!$C$16:$C$43,0))/1000),\"\")","v":""},{"$f":"IFERROR(IF(OR($C$168=FALSE,LEFT($B165,3)<>\"NOX\"),AR56*INDEX('Damage costs'!$P$16:$P$43,MATCH($B165,'Damage costs'!$C$16:$C$43,0))/1000,AR56*INDEX('Damage costs'!$T$16:$T$43,MATCH($B165,'Damage costs'!$C$16:$C$43,0))/1000),\"\")","v":""},{"$f":"IFERROR(IF(OR($C$168=FALSE,LEFT($B165,3)<>\"NOX\"),AS56*INDEX('Damage costs'!$P$16:$P$43,MATCH($B165,'Damage costs'!$C$16:$C$43,0))/1000,AS56*INDEX('Damage costs'!$T$16:$T$43,MATCH($B165,'Damage costs'!$C$16:$C$43,0))/1000),\"\")","v":""},{"$f":"IFERROR(IF(OR($C$168=FALSE,LEFT($B165,3)<>\"NOX\"),AT56*INDEX('Damage costs'!$P$16:$P$43,MATCH($B165,'Damage costs'!$C$16:$C$43,0))/1000,AT56*INDEX('Damage costs'!$T$16:$T$43,MATCH($B165,'Damage costs'!$C$16:$C$43,0))/1000),\"\")","v":""},{"$f":"IFERROR(IF(OR($C$168=FALSE,LEFT($B165,3)<>\"NOX\"),AU56*INDEX('Damage costs'!$P$16:$P$43,MATCH($B165,'Damage costs'!$C$16:$C$43,0))/1000,AU56*INDEX('Damage costs'!$T$16:$T$43,MATCH($B165,'Damage costs'!$C$16:$C$43,0))/1000),\"\")","v":""},{"$f":"IFERROR(IF(OR($C$168=FALSE,LEFT($B165,3)<>\"NOX\"),AV56*INDEX('Damage costs'!$P$16:$P$43,MATCH($B165,'Damage costs'!$C$16:$C$43,0))/1000,AV56*INDEX('Damage costs'!$T$16:$T$43,MATCH($B165,'Damage costs'!$C$16:$C$43,0))/1000),\"\")","v":""},{"$f":"IFERROR(IF(OR($C$168=FALSE,LEFT($B165,3)<>\"NOX\"),AW56*INDEX('Damage costs'!$P$16:$P$43,MATCH($B165,'Damage costs'!$C$16:$C$43,0))/1000,AW56*INDEX('Damage costs'!$T$16:$T$43,MATCH($B165,'Damage costs'!$C$16:$C$43,0))/1000),\"\")","v":""},{"$f":"IFERROR(IF(OR($C$168=FALSE,LEFT($B165,3)<>\"NOX\"),AX56*INDEX('Damage costs'!$P$16:$P$43,MATCH($B165,'Damage costs'!$C$16:$C$43,0))/1000,AX56*INDEX('Damage costs'!$T$16:$T$43,MATCH($B165,'Damage costs'!$C$16:$C$43,0))/1000),\"\")","v":""},{"$f":"IFERROR(IF(OR($C$168=FALSE,LEFT($B165,3)<>\"NOX\"),AY56*INDEX('Damage costs'!$P$16:$P$43,MATCH($B165,'Damage costs'!$C$16:$C$43,0))/1000,AY56*INDEX('Damage costs'!$T$16:$T$43,MATCH($B165,'Damage costs'!$C$16:$C$43,0))/1000),\"\")","v":""},{"$f":"IFERROR(IF(OR($C$168=FALSE,LEFT($B165,3)<>\"NOX\"),AZ56*INDEX('Damage costs'!$P$16:$P$43,MATCH($B165,'Damage costs'!$C$16:$C$43,0))/1000,AZ56*INDEX('Damage costs'!$T$16:$T$43,MATCH($B165,'Damage costs'!$C$16:$C$43,0))/1000),\"\")","v":""},{"$f":"IFERROR(IF(OR($C$168=FALSE,LEFT($B165,3)<>\"NOX\"),BA56*INDEX('Damage costs'!$P$16:$P$43,MATCH($B165,'Damage costs'!$C$16:$C$43,0))/1000,BA56*INDEX('Damage costs'!$T$16:$T$43,MATCH($B165,'Damage costs'!$C$16:$C$43,0))/1000),\"\")","v":""},{"$f":"IFERROR(IF(OR($C$168=FALSE,LEFT($B165,3)<>\"NOX\"),BB56*INDEX('Damage costs'!$P$16:$P$43,MATCH($B165,'Damage costs'!$C$16:$C$43,0))/1000,BB56*INDEX('Damage costs'!$T$16:$T$43,MATCH($B165,'Damage costs'!$C$16:$C$43,0))/1000),\"\")","v":""},{"$f":"IFERROR(IF(OR($C$168=FALSE,LEFT($B165,3)<>\"NOX\"),BC56*INDEX('Damage costs'!$P$16:$P$43,MATCH($B165,'Damage costs'!$C$16:$C$43,0))/1000,BC56*INDEX('Damage costs'!$T$16:$T$43,MATCH($B165,'Damage costs'!$C$16:$C$43,0))/1000),\"\")","v":""},{"$f":"IFERROR(IF(OR($C$168=FALSE,LEFT($B165,3)<>\"NOX\"),BD56*INDEX('Damage costs'!$P$16:$P$43,MATCH($B165,'Damage costs'!$C$16:$C$43,0))/1000,BD56*INDEX('Damage costs'!$T$16:$T$43,MATCH($B165,'Damage costs'!$C$16:$C$43,0))/1000),\"\")","v":""},{"$f":"IFERROR(IF(OR($C$168=FALSE,LEFT($B165,3)<>\"NOX\"),BE56*INDEX('Damage costs'!$P$16:$P$43,MATCH($B165,'Damage costs'!$C$16:$C$43,0))/1000,BE56*INDEX('Damage costs'!$T$16:$T$43,MATCH($B165,'Damage costs'!$C$16:$C$43,0))/1000),\"\")","v":""},{"$f":"IFERROR(IF(OR($C$168=FALSE,LEFT($B165,3)<>\"NOX\"),BF56*INDEX('Damage costs'!$P$16:$P$43,MATCH($B165,'Damage costs'!$C$16:$C$43,0))/1000,BF56*INDEX('Damage costs'!$T$16:$T$43,MATCH($B165,'Damage costs'!$C$16:$C$43,0))/1000),\"\")","v":""},{"$f":"IFERROR(IF(OR($C$168=FALSE,LEFT($B165,3)<>\"NOX\"),BG56*INDEX('Damage costs'!$P$16:$P$43,MATCH($B165,'Damage costs'!$C$16:$C$43,0))/1000,BG56*INDEX('Damage costs'!$T$16:$T$43,MATCH($B165,'Damage costs'!$C$16:$C$43,0))/1000),\"\")","v":""},{"$f":"IFERROR(IF(OR($C$168=FALSE,LEFT($B165,3)<>\"NOX\"),BH56*INDEX('Damage costs'!$P$16:$P$43,MATCH($B165,'Damage costs'!$C$16:$C$43,0))/1000,BH56*INDEX('Damage costs'!$T$16:$T$43,MATCH($B165,'Damage costs'!$C$16:$C$43,0))/1000),\"\")","v":""},{"$f":"IFERROR(IF(OR($C$168=FALSE,LEFT($B165,3)<>\"NOX\"),BI56*INDEX('Damage costs'!$P$16:$P$43,MATCH($B165,'Damage costs'!$C$16:$C$43,0))/1000,BI56*INDEX('Damage costs'!$T$16:$T$43,MATCH($B165,'Damage costs'!$C$16:$C$43,0))/1000),\"\")","v":""},{"$f":"IFERROR(IF(OR($C$168=FALSE,LEFT($B165,3)<>\"NOX\"),BJ56*INDEX('Damage costs'!$P$16:$P$43,MATCH($B165,'Damage costs'!$C$16:$C$43,0))/1000,BJ56*INDEX('Damage costs'!$T$16:$T$43,MATCH($B165,'Damage costs'!$C$16:$C$43,0))/1000),\"\")","v":""},{"$f":"IFERROR(IF(OR($C$168=FALSE,LEFT($B165,3)<>\"NOX\"),BK56*INDEX('Damage costs'!$P$16:$P$43,MATCH($B165,'Damage costs'!$C$16:$C$43,0))/1000,BK56*INDEX('Damage costs'!$T$16:$T$43,MATCH($B165,'Damage costs'!$C$16:$C$43,0))/1000),\"\")","v":""},{"$f":"IFERROR(IF(OR($C$168=FALSE,LEFT($B165,3)<>\"NOX\"),BL56*INDEX('Damage costs'!$P$16:$P$43,MATCH($B165,'Damage costs'!$C$16:$C$43,0))/1000,BL56*INDEX('Damage costs'!$T$16:$T$43,MATCH($B165,'Damage costs'!$C$16:$C$43,0))/1000),\"\")","v":""},{"$f":"IFERROR(IF(OR($C$168=FALSE,LEFT($B165,3)<>\"NOX\"),BM56*INDEX('Damage costs'!$P$16:$P$43,MATCH($B165,'Damage costs'!$C$16:$C$43,0))/1000,BM56*INDEX('Damage costs'!$T$16:$T$43,MATCH($B165,'Damage costs'!$C$16:$C$43,0))/1000),\"\")","v":""},{"$f":"IFERROR(IF(OR($C$168=FALSE,LEFT($B165,3)<>\"NOX\"),BN56*INDEX('Damage costs'!$P$16:$P$43,MATCH($B165,'Damage costs'!$C$16:$C$43,0))/1000,BN56*INDEX('Damage costs'!$T$16:$T$43,MATCH($B165,'Damage costs'!$C$16:$C$43,0))/1000),\"\")","v":""},{"$f":"IFERROR(IF(OR($C$168=FALSE,LEFT($B165,3)<>\"NOX\"),BO56*INDEX('Damage costs'!$P$16:$P$43,MATCH($B165,'Damage costs'!$C$16:$C$43,0))/1000,BO56*INDEX('Damage costs'!$T$16:$T$43,MATCH($B165,'Damage costs'!$C$16:$C$43,0))/1000),\"\")","v":""},{"$f":"IFERROR(IF(OR($C$168=FALSE,LEFT($B165,3)<>\"NOX\"),BP56*INDEX('Damage costs'!$P$16:$P$43,MATCH($B165,'Damage costs'!$C$16:$C$43,0))/1000,BP56*INDEX('Damage costs'!$T$16:$T$43,MATCH($B165,'Damage costs'!$C$16:$C$43,0))/1000),\"\")","v":""},{"$f":"IFERROR(IF(OR($C$168=FALSE,LEFT($B165,3)<>\"NOX\"),BQ56*INDEX('Damage costs'!$P$16:$P$43,MATCH($B165,'Damage costs'!$C$16:$C$43,0))/1000,BQ56*INDEX('Damage costs'!$T$16:$T$43,MATCH($B165,'Damage costs'!$C$16:$C$43,0))/1000),\"\")","v":""},{"$f":"IFERROR(IF(OR($C$168=FALSE,LEFT($B165,3)<>\"NOX\"),BR56*INDEX('Damage costs'!$P$16:$P$43,MATCH($B165,'Damage costs'!$C$16:$C$43,0))/1000,BR56*INDEX('Damage costs'!$T$16:$T$43,MATCH($B165,'Damage costs'!$C$16:$C$43,0))/1000),\"\")","v":""},{"$f":"IFERROR(IF(OR($C$168=FALSE,LEFT($B165,3)<>\"NOX\"),BS56*INDEX('Damage costs'!$P$16:$P$43,MATCH($B165,'Damage costs'!$C$16:$C$43,0))/1000,BS56*INDEX('Damage costs'!$T$16:$T$43,MATCH($B165,'Damage costs'!$C$16:$C$43,0))/1000),\"\")","v":""},{"$f":"IFERROR(IF(OR($C$168=FALSE,LEFT($B165,3)<>\"NOX\"),BT56*INDEX('Damage costs'!$P$16:$P$43,MATCH($B165,'Damage costs'!$C$16:$C$43,0))/1000,BT56*INDEX('Damage costs'!$T$16:$T$43,MATCH($B165,'Damage costs'!$C$16:$C$43,0))/1000),\"\")","v":""},{"$f":"IFERROR(IF(OR($C$168=FALSE,LEFT($B165,3)<>\"NOX\"),BU56*INDEX('Damage costs'!$P$16:$P$43,MATCH($B165,'Damage costs'!$C$16:$C$43,0))/1000,BU56*INDEX('Damage costs'!$T$16:$T$43,MATCH($B165,'Damage costs'!$C$16:$C$43,0))/1000),\"\")","v":""},{"$f":"IFERROR(IF(OR($C$168=FALSE,LEFT($B165,3)<>\"NOX\"),BV56*INDEX('Damage costs'!$P$16:$P$43,MATCH($B165,'Damage costs'!$C$16:$C$43,0))/1000,BV56*INDEX('Damage costs'!$T$16:$T$43,MATCH($B165,'Damage costs'!$C$16:$C$43,0))/1000),\"\")","v":""},{"$f":"IFERROR(IF(OR($C$168=FALSE,LEFT($B165,3)<>\"NOX\"),BW56*INDEX('Damage costs'!$P$16:$P$43,MATCH($B165,'Damage costs'!$C$16:$C$43,0))/1000,BW56*INDEX('Damage costs'!$T$16:$T$43,MATCH($B165,'Damage costs'!$C$16:$C$43,0))/1000),\"\")","v":""},{"$f":"IFERROR(IF(OR($C$168=FALSE,LEFT($B165,3)<>\"NOX\"),BX56*INDEX('Damage costs'!$P$16:$P$43,MATCH($B165,'Damage costs'!$C$16:$C$43,0))/1000,BX56*INDEX('Damage costs'!$T$16:$T$43,MATCH($B165,'Damage costs'!$C$16:$C$43,0))/1000),\"\")","v":""},{"$f":"IFERROR(IF(OR($C$168=FALSE,LEFT($B165,3)<>\"NOX\"),BY56*INDEX('Damage costs'!$P$16:$P$43,MATCH($B165,'Damage costs'!$C$16:$C$43,0))/1000,BY56*INDEX('Damage costs'!$T$16:$T$43,MATCH($B165,'Damage costs'!$C$16:$C$43,0))/1000),\"\")","v":""},{"$f":"IFERROR(IF(OR($C$168=FALSE,LEFT($B165,3)<>\"NOX\"),BZ56*INDEX('Damage costs'!$P$16:$P$43,MATCH($B165,'Damage costs'!$C$16:$C$43,0))/1000,BZ56*INDEX('Damage costs'!$T$16:$T$43,MATCH($B165,'Damage costs'!$C$16:$C$43,0))/1000),\"\")","v":""},{"$f":"IFERROR(IF(OR($C$168=FALSE,LEFT($B165,3)<>\"NOX\"),CA56*INDEX('Damage costs'!$P$16:$P$43,MATCH($B165,'Damage costs'!$C$16:$C$43,0))/1000,CA56*INDEX('Damage costs'!$T$16:$T$43,MATCH($B165,'Damage costs'!$C$16:$C$43,0))/1000),\"\")","v":""},{"$f":"IFERROR(IF(OR($C$168=FALSE,LEFT($B165,3)<>\"NOX\"),CB56*INDEX('Damage costs'!$P$16:$P$43,MATCH($B165,'Damage costs'!$C$16:$C$43,0))/1000,CB56*INDEX('Damage costs'!$T$16:$T$43,MATCH($B165,'Damage costs'!$C$16:$C$43,0))/1000),\"\")","v":""},{"$f":"IFERROR(IF(OR($C$168=FALSE,LEFT($B165,3)<>\"NOX\"),CC56*INDEX('Damage costs'!$P$16:$P$43,MATCH($B165,'Damage costs'!$C$16:$C$43,0))/1000,CC56*INDEX('Damage costs'!$T$16:$T$43,MATCH($B165,'Damage costs'!$C$16:$C$43,0))/1000),\"\")","v":""},{"$f":"IFERROR(IF(OR($C$168=FALSE,LEFT($B165,3)<>\"NOX\"),CD56*INDEX('Damage costs'!$P$16:$P$43,MATCH($B165,'Damage costs'!$C$16:$C$43,0))/1000,CD56*INDEX('Damage costs'!$T$16:$T$43,MATCH($B165,'Damage costs'!$C$16:$C$43,0))/1000),\"\")","v":""},{"$f":"IFERROR(IF(OR($C$168=FALSE,LEFT($B165,3)<>\"NOX\"),CE56*INDEX('Damage costs'!$P$16:$P$43,MATCH($B165,'Damage costs'!$C$16:$C$43,0))/1000,CE56*INDEX('Damage costs'!$T$16:$T$43,MATCH($B165,'Damage costs'!$C$16:$C$43,0))/1000),\"\")","v":""},{"$f":"IFERROR(IF(OR($C$168=FALSE,LEFT($B165,3)<>\"NOX\"),CF56*INDEX('Damage costs'!$P$16:$P$43,MATCH($B165,'Damage costs'!$C$16:$C$43,0))/1000,CF56*INDEX('Damage costs'!$T$16:$T$43,MATCH($B165,'Damage costs'!$C$16:$C$43,0))/1000),\"\")","v":""},{"$f":"IFERROR(IF(OR($C$168=FALSE,LEFT($B165,3)<>\"NOX\"),CG56*INDEX('Damage costs'!$P$16:$P$43,MATCH($B165,'Damage costs'!$C$16:$C$43,0))/1000,CG56*INDEX('Damage costs'!$T$16:$T$43,MATCH($B165,'Damage costs'!$C$16:$C$43,0))/1000),\"\")","v":""},{"$f":"IFERROR(IF(OR($C$168=FALSE,LEFT($B165,3)<>\"NOX\"),CH56*INDEX('Damage costs'!$P$16:$P$43,MATCH($B165,'Damage costs'!$C$16:$C$43,0))/1000,CH56*INDEX('Damage costs'!$T$16:$T$43,MATCH($B165,'Damage costs'!$C$16:$C$43,0))/1000),\"\")","v":""},{"$f":"IFERROR(IF(OR($C$168=FALSE,LEFT($B165,3)<>\"NOX\"),CI56*INDEX('Damage costs'!$P$16:$P$43,MATCH($B165,'Damage costs'!$C$16:$C$43,0))/1000,CI56*INDEX('Damage costs'!$T$16:$T$43,MATCH($B165,'Damage costs'!$C$16:$C$43,0))/1000),\"\")","v":""},{"$f":"IFERROR(IF(OR($C$168=FALSE,LEFT($B165,3)<>\"NOX\"),CJ56*INDEX('Damage costs'!$P$16:$P$43,MATCH($B165,'Damage costs'!$C$16:$C$43,0))/1000,CJ56*INDEX('Damage costs'!$T$16:$T$43,MATCH($B165,'Damage costs'!$C$16:$C$43,0))/1000),\"\")","v":""},{"$f":"IFERROR(IF(OR($C$168=FALSE,LEFT($B165,3)<>\"NOX\"),CK56*INDEX('Damage costs'!$P$16:$P$43,MATCH($B165,'Damage costs'!$C$16:$C$43,0))/1000,CK56*INDEX('Damage costs'!$T$16:$T$43,MATCH($B165,'Damage costs'!$C$16:$C$43,0))/1000),\"\")","v":""},{"$f":"IFERROR(IF(OR($C$168=FALSE,LEFT($B165,3)<>\"NOX\"),CL56*INDEX('Damage costs'!$P$16:$P$43,MATCH($B165,'Damage costs'!$C$16:$C$43,0))/1000,CL56*INDEX('Damage costs'!$T$16:$T$43,MATCH($B165,'Damage costs'!$C$16:$C$43,0))/1000),\"\")","v":""},{"$f":"IFERROR(IF(OR($C$168=FALSE,LEFT($B165,3)<>\"NOX\"),CM56*INDEX('Damage costs'!$P$16:$P$43,MATCH($B165,'Damage costs'!$C$16:$C$43,0))/1000,CM56*INDEX('Damage costs'!$T$16:$T$43,MATCH($B165,'Damage costs'!$C$16:$C$43,0))/1000),\"\")","v":""},{"$f":"IFERROR(IF(OR($C$168=FALSE,LEFT($B165,3)<>\"NOX\"),CN56*INDEX('Damage costs'!$P$16:$P$43,MATCH($B165,'Damage costs'!$C$16:$C$43,0))/1000,CN56*INDEX('Damage costs'!$T$16:$T$43,MATCH($B165,'Damage costs'!$C$16:$C$43,0))/1000),\"\")","v":""},{"$f":"IFERROR(IF(OR($C$168=FALSE,LEFT($B165,3)<>\"NOX\"),CO56*INDEX('Damage costs'!$P$16:$P$43,MATCH($B165,'Damage costs'!$C$16:$C$43,0))/1000,CO56*INDEX('Damage costs'!$T$16:$T$43,MATCH($B165,'Damage costs'!$C$16:$C$43,0))/1000),\"\")","v":""},{"$f":"IFERROR(IF(OR($C$168=FALSE,LEFT($B165,3)<>\"NOX\"),CP56*INDEX('Damage costs'!$P$16:$P$43,MATCH($B165,'Damage costs'!$C$16:$C$43,0))/1000,CP56*INDEX('Damage costs'!$T$16:$T$43,MATCH($B165,'Damage costs'!$C$16:$C$43,0))/1000),\"\")","v":""},{"$f":"IFERROR(IF(OR($C$168=FALSE,LEFT($B165,3)<>\"NOX\"),CQ56*INDEX('Damage costs'!$P$16:$P$43,MATCH($B165,'Damage costs'!$C$16:$C$43,0))/1000,CQ56*INDEX('Damage costs'!$T$16:$T$43,MATCH($B165,'Damage costs'!$C$16:$C$43,0))/1000),\"\")","v":""},{"$f":"IFERROR(IF(OR($C$168=FALSE,LEFT($B165,3)<>\"NOX\"),CR56*INDEX('Damage costs'!$P$16:$P$43,MATCH($B165,'Damage costs'!$C$16:$C$43,0))/1000,CR56*INDEX('Damage costs'!$T$16:$T$43,MATCH($B165,'Damage costs'!$C$16:$C$43,0))/1000),\"\")","v":""},{"$f":"IFERROR(IF(OR($C$168=FALSE,LEFT($B165,3)<>\"NOX\"),CS56*INDEX('Damage costs'!$P$16:$P$43,MATCH($B165,'Damage costs'!$C$16:$C$43,0))/1000,CS56*INDEX('Damage costs'!$T$16:$T$43,MATCH($B165,'Damage costs'!$C$16:$C$43,0))/1000),\"\")","v":""},{"$f":"IFERROR(IF(OR($C$168=FALSE,LEFT($B165,3)<>\"NOX\"),CT56*INDEX('Damage costs'!$P$16:$P$43,MATCH($B165,'Damage costs'!$C$16:$C$43,0))/1000,CT56*INDEX('Damage costs'!$T$16:$T$43,MATCH($B165,'Damage costs'!$C$16:$C$43,0))/1000),\"\")","v":""},{"$f":"IFERROR(IF(OR($C$168=FALSE,LEFT($B165,3)<>\"NOX\"),CU56*INDEX('Damage costs'!$P$16:$P$43,MATCH($B165,'Damage costs'!$C$16:$C$43,0))/1000,CU56*INDEX('Damage costs'!$T$16:$T$43,MATCH($B165,'Damage costs'!$C$16:$C$43,0))/1000),\"\")","v":""},{"$f":"IFERROR(IF(OR($C$168=FALSE,LEFT($B165,3)<>\"NOX\"),CV56*INDEX('Damage costs'!$P$16:$P$43,MATCH($B165,'Damage costs'!$C$16:$C$43,0))/1000,CV56*INDEX('Damage costs'!$T$16:$T$43,MATCH($B165,'Damage costs'!$C$16:$C$43,0))/1000),\"\")","v":""},{"$f":"IFERROR(IF(OR($C$168=FALSE,LEFT($B165,3)<>\"NOX\"),CW56*INDEX('Damage costs'!$P$16:$P$43,MATCH($B165,'Damage costs'!$C$16:$C$43,0))/1000,CW56*INDEX('Damage costs'!$T$16:$T$43,MATCH($B165,'Damage costs'!$C$16:$C$43,0))/1000),\"\")","v":""},{"$f":"IFERROR(IF(OR($C$168=FALSE,LEFT($B165,3)<>\"NOX\"),CX56*INDEX('Damage costs'!$P$16:$P$43,MATCH($B165,'Damage costs'!$C$16:$C$43,0))/1000,CX56*INDEX('Damage costs'!$T$16:$T$43,MATCH($B165,'Damage costs'!$C$16:$C$43,0))/1000),\"\")","v":""},{"$f":"IFERROR(IF(OR($C$168=FALSE,LEFT($B165,3)<>\"NOX\"),CY56*INDEX('Damage costs'!$P$16:$P$43,MATCH($B165,'Damage costs'!$C$16:$C$43,0))/1000,CY56*INDEX('Damage costs'!$T$16:$T$43,MATCH($B165,'Damage costs'!$C$16:$C$43,0))/1000),\"\")","v":""}]
[null,0,"£000's",{"$f":"IFERROR(IF(OR($C$168=FALSE,LEFT($B166,3)<>\"NOX\"),D57*INDEX('Damage costs'!$P$16:$P$43,MATCH($B166,'Damage costs'!$C$16:$C$43,0))/1000,D57*INDEX('Damage costs'!$T$16:$T$43,MATCH($B166,'Damage costs'!$C$16:$C$43,0))/1000),\"\")","v":""},{"$f":"IFERROR(IF(OR($C$168=FALSE,LEFT($B166,3)<>\"NOX\"),E57*INDEX('Damage costs'!$P$16:$P$43,MATCH($B166,'Damage costs'!$C$16:$C$43,0))/1000,E57*INDEX('Damage costs'!$T$16:$T$43,MATCH($B166,'Damage costs'!$C$16:$C$43,0))/1000),\"\")","v":""},{"$f":"IFERROR(IF(OR($C$168=FALSE,LEFT($B166,3)<>\"NOX\"),F57*INDEX('Damage costs'!$P$16:$P$43,MATCH($B166,'Damage costs'!$C$16:$C$43,0))/1000,F57*INDEX('Damage costs'!$T$16:$T$43,MATCH($B166,'Damage costs'!$C$16:$C$43,0))/1000),\"\")","v":""},{"$f":"IFERROR(IF(OR($C$168=FALSE,LEFT($B166,3)<>\"NOX\"),G57*INDEX('Damage costs'!$P$16:$P$43,MATCH($B166,'Damage costs'!$C$16:$C$43,0))/1000,G57*INDEX('Damage costs'!$T$16:$T$43,MATCH($B166,'Damage costs'!$C$16:$C$43,0))/1000),\"\")","v":""},{"$f":"IFERROR(IF(OR($C$168=FALSE,LEFT($B166,3)<>\"NOX\"),H57*INDEX('Damage costs'!$P$16:$P$43,MATCH($B166,'Damage costs'!$C$16:$C$43,0))/1000,H57*INDEX('Damage costs'!$T$16:$T$43,MATCH($B166,'Damage costs'!$C$16:$C$43,0))/1000),\"\")","v":""},{"$f":"IFERROR(IF(OR($C$168=FALSE,LEFT($B166,3)<>\"NOX\"),I57*INDEX('Damage costs'!$P$16:$P$43,MATCH($B166,'Damage costs'!$C$16:$C$43,0))/1000,I57*INDEX('Damage costs'!$T$16:$T$43,MATCH($B166,'Damage costs'!$C$16:$C$43,0))/1000),\"\")","v":""},{"$f":"IFERROR(IF(OR($C$168=FALSE,LEFT($B166,3)<>\"NOX\"),J57*INDEX('Damage costs'!$P$16:$P$43,MATCH($B166,'Damage costs'!$C$16:$C$43,0))/1000,J57*INDEX('Damage costs'!$T$16:$T$43,MATCH($B166,'Damage costs'!$C$16:$C$43,0))/1000),\"\")","v":""},{"$f":"IFERROR(IF(OR($C$168=FALSE,LEFT($B166,3)<>\"NOX\"),K57*INDEX('Damage costs'!$P$16:$P$43,MATCH($B166,'Damage costs'!$C$16:$C$43,0))/1000,K57*INDEX('Damage costs'!$T$16:$T$43,MATCH($B166,'Damage costs'!$C$16:$C$43,0))/1000),\"\")","v":""},{"$f":"IFERROR(IF(OR($C$168=FALSE,LEFT($B166,3)<>\"NOX\"),L57*INDEX('Damage costs'!$P$16:$P$43,MATCH($B166,'Damage costs'!$C$16:$C$43,0))/1000,L57*INDEX('Damage costs'!$T$16:$T$43,MATCH($B166,'Damage costs'!$C$16:$C$43,0))/1000),\"\")","v":""},{"$f":"IFERROR(IF(OR($C$168=FALSE,LEFT($B166,3)<>\"NOX\"),M57*INDEX('Damage costs'!$P$16:$P$43,MATCH($B166,'Damage costs'!$C$16:$C$43,0))/1000,M57*INDEX('Damage costs'!$T$16:$T$43,MATCH($B166,'Damage costs'!$C$16:$C$43,0))/1000),\"\")","v":""},{"$f":"IFERROR(IF(OR($C$168=FALSE,LEFT($B166,3)<>\"NOX\"),N57*INDEX('Damage costs'!$P$16:$P$43,MATCH($B166,'Damage costs'!$C$16:$C$43,0))/1000,N57*INDEX('Damage costs'!$T$16:$T$43,MATCH($B166,'Damage costs'!$C$16:$C$43,0))/1000),\"\")","v":""},{"$f":"IFERROR(IF(OR($C$168=FALSE,LEFT($B166,3)<>\"NOX\"),O57*INDEX('Damage costs'!$P$16:$P$43,MATCH($B166,'Damage costs'!$C$16:$C$43,0))/1000,O57*INDEX('Damage costs'!$T$16:$T$43,MATCH($B166,'Damage costs'!$C$16:$C$43,0))/1000),\"\")","v":""},{"$f":"IFERROR(IF(OR($C$168=FALSE,LEFT($B166,3)<>\"NOX\"),P57*INDEX('Damage costs'!$P$16:$P$43,MATCH($B166,'Damage costs'!$C$16:$C$43,0))/1000,P57*INDEX('Damage costs'!$T$16:$T$43,MATCH($B166,'Damage costs'!$C$16:$C$43,0))/1000),\"\")","v":""},{"$f":"IFERROR(IF(OR($C$168=FALSE,LEFT($B166,3)<>\"NOX\"),Q57*INDEX('Damage costs'!$P$16:$P$43,MATCH($B166,'Damage costs'!$C$16:$C$43,0))/1000,Q57*INDEX('Damage costs'!$T$16:$T$43,MATCH($B166,'Damage costs'!$C$16:$C$43,0))/1000),\"\")","v":""},{"$f":"IFERROR(IF(OR($C$168=FALSE,LEFT($B166,3)<>\"NOX\"),R57*INDEX('Damage costs'!$P$16:$P$43,MATCH($B166,'Damage costs'!$C$16:$C$43,0))/1000,R57*INDEX('Damage costs'!$T$16:$T$43,MATCH($B166,'Damage costs'!$C$16:$C$43,0))/1000),\"\")","v":""},{"$f":"IFERROR(IF(OR($C$168=FALSE,LEFT($B166,3)<>\"NOX\"),S57*INDEX('Damage costs'!$P$16:$P$43,MATCH($B166,'Damage costs'!$C$16:$C$43,0))/1000,S57*INDEX('Damage costs'!$T$16:$T$43,MATCH($B166,'Damage costs'!$C$16:$C$43,0))/1000),\"\")","v":""},{"$f":"IFERROR(IF(OR($C$168=FALSE,LEFT($B166,3)<>\"NOX\"),T57*INDEX('Damage costs'!$P$16:$P$43,MATCH($B166,'Damage costs'!$C$16:$C$43,0))/1000,T57*INDEX('Damage costs'!$T$16:$T$43,MATCH($B166,'Damage costs'!$C$16:$C$43,0))/1000),\"\")","v":""},{"$f":"IFERROR(IF(OR($C$168=FALSE,LEFT($B166,3)<>\"NOX\"),U57*INDEX('Damage costs'!$P$16:$P$43,MATCH($B166,'Damage costs'!$C$16:$C$43,0))/1000,U57*INDEX('Damage costs'!$T$16:$T$43,MATCH($B166,'Damage costs'!$C$16:$C$43,0))/1000),\"\")","v":""},{"$f":"IFERROR(IF(OR($C$168=FALSE,LEFT($B166,3)<>\"NOX\"),V57*INDEX('Damage costs'!$P$16:$P$43,MATCH($B166,'Damage costs'!$C$16:$C$43,0))/1000,V57*INDEX('Damage costs'!$T$16:$T$43,MATCH($B166,'Damage costs'!$C$16:$C$43,0))/1000),\"\")","v":""},{"$f":"IFERROR(IF(OR($C$168=FALSE,LEFT($B166,3)<>\"NOX\"),W57*INDEX('Damage costs'!$P$16:$P$43,MATCH($B166,'Damage costs'!$C$16:$C$43,0))/1000,W57*INDEX('Damage costs'!$T$16:$T$43,MATCH($B166,'Damage costs'!$C$16:$C$43,0))/1000),\"\")","v":""},{"$f":"IFERROR(IF(OR($C$168=FALSE,LEFT($B166,3)<>\"NOX\"),X57*INDEX('Damage costs'!$P$16:$P$43,MATCH($B166,'Damage costs'!$C$16:$C$43,0))/1000,X57*INDEX('Damage costs'!$T$16:$T$43,MATCH($B166,'Damage costs'!$C$16:$C$43,0))/1000),\"\")","v":""},{"$f":"IFERROR(IF(OR($C$168=FALSE,LEFT($B166,3)<>\"NOX\"),Y57*INDEX('Damage costs'!$P$16:$P$43,MATCH($B166,'Damage costs'!$C$16:$C$43,0))/1000,Y57*INDEX('Damage costs'!$T$16:$T$43,MATCH($B166,'Damage costs'!$C$16:$C$43,0))/1000),\"\")","v":""},{"$f":"IFERROR(IF(OR($C$168=FALSE,LEFT($B166,3)<>\"NOX\"),Z57*INDEX('Damage costs'!$P$16:$P$43,MATCH($B166,'Damage costs'!$C$16:$C$43,0))/1000,Z57*INDEX('Damage costs'!$T$16:$T$43,MATCH($B166,'Damage costs'!$C$16:$C$43,0))/1000),\"\")","v":""},{"$f":"IFERROR(IF(OR($C$168=FALSE,LEFT($B166,3)<>\"NOX\"),AA57*INDEX('Damage costs'!$P$16:$P$43,MATCH($B166,'Damage costs'!$C$16:$C$43,0))/1000,AA57*INDEX('Damage costs'!$T$16:$T$43,MATCH($B166,'Damage costs'!$C$16:$C$43,0))/1000),\"\")","v":""},{"$f":"IFERROR(IF(OR($C$168=FALSE,LEFT($B166,3)<>\"NOX\"),AB57*INDEX('Damage costs'!$P$16:$P$43,MATCH($B166,'Damage costs'!$C$16:$C$43,0))/1000,AB57*INDEX('Damage costs'!$T$16:$T$43,MATCH($B166,'Damage costs'!$C$16:$C$43,0))/1000),\"\")","v":""},{"$f":"IFERROR(IF(OR($C$168=FALSE,LEFT($B166,3)<>\"NOX\"),AC57*INDEX('Damage costs'!$P$16:$P$43,MATCH($B166,'Damage costs'!$C$16:$C$43,0))/1000,AC57*INDEX('Damage costs'!$T$16:$T$43,MATCH($B166,'Damage costs'!$C$16:$C$43,0))/1000),\"\")","v":""},{"$f":"IFERROR(IF(OR($C$168=FALSE,LEFT($B166,3)<>\"NOX\"),AD57*INDEX('Damage costs'!$P$16:$P$43,MATCH($B166,'Damage costs'!$C$16:$C$43,0))/1000,AD57*INDEX('Damage costs'!$T$16:$T$43,MATCH($B166,'Damage costs'!$C$16:$C$43,0))/1000),\"\")","v":""},{"$f":"IFERROR(IF(OR($C$168=FALSE,LEFT($B166,3)<>\"NOX\"),AE57*INDEX('Damage costs'!$P$16:$P$43,MATCH($B166,'Damage costs'!$C$16:$C$43,0))/1000,AE57*INDEX('Damage costs'!$T$16:$T$43,MATCH($B166,'Damage costs'!$C$16:$C$43,0))/1000),\"\")","v":""},{"$f":"IFERROR(IF(OR($C$168=FALSE,LEFT($B166,3)<>\"NOX\"),AF57*INDEX('Damage costs'!$P$16:$P$43,MATCH($B166,'Damage costs'!$C$16:$C$43,0))/1000,AF57*INDEX('Damage costs'!$T$16:$T$43,MATCH($B166,'Damage costs'!$C$16:$C$43,0))/1000),\"\")","v":""},{"$f":"IFERROR(IF(OR($C$168=FALSE,LEFT($B166,3)<>\"NOX\"),AG57*INDEX('Damage costs'!$P$16:$P$43,MATCH($B166,'Damage costs'!$C$16:$C$43,0))/1000,AG57*INDEX('Damage costs'!$T$16:$T$43,MATCH($B166,'Damage costs'!$C$16:$C$43,0))/1000),\"\")","v":""},{"$f":"IFERROR(IF(OR($C$168=FALSE,LEFT($B166,3)<>\"NOX\"),AH57*INDEX('Damage costs'!$P$16:$P$43,MATCH($B166,'Damage costs'!$C$16:$C$43,0))/1000,AH57*INDEX('Damage costs'!$T$16:$T$43,MATCH($B166,'Damage costs'!$C$16:$C$43,0))/1000),\"\")","v":""},{"$f":"IFERROR(IF(OR($C$168=FALSE,LEFT($B166,3)<>\"NOX\"),AI57*INDEX('Damage costs'!$P$16:$P$43,MATCH($B166,'Damage costs'!$C$16:$C$43,0))/1000,AI57*INDEX('Damage costs'!$T$16:$T$43,MATCH($B166,'Damage costs'!$C$16:$C$43,0))/1000),\"\")","v":""},{"$f":"IFERROR(IF(OR($C$168=FALSE,LEFT($B166,3)<>\"NOX\"),AJ57*INDEX('Damage costs'!$P$16:$P$43,MATCH($B166,'Damage costs'!$C$16:$C$43,0))/1000,AJ57*INDEX('Damage costs'!$T$16:$T$43,MATCH($B166,'Damage costs'!$C$16:$C$43,0))/1000),\"\")","v":""},{"$f":"IFERROR(IF(OR($C$168=FALSE,LEFT($B166,3)<>\"NOX\"),AK57*INDEX('Damage costs'!$P$16:$P$43,MATCH($B166,'Damage costs'!$C$16:$C$43,0))/1000,AK57*INDEX('Damage costs'!$T$16:$T$43,MATCH($B166,'Damage costs'!$C$16:$C$43,0))/1000),\"\")","v":""},{"$f":"IFERROR(IF(OR($C$168=FALSE,LEFT($B166,3)<>\"NOX\"),AL57*INDEX('Damage costs'!$P$16:$P$43,MATCH($B166,'Damage costs'!$C$16:$C$43,0))/1000,AL57*INDEX('Damage costs'!$T$16:$T$43,MATCH($B166,'Damage costs'!$C$16:$C$43,0))/1000),\"\")","v":""},{"$f":"IFERROR(IF(OR($C$168=FALSE,LEFT($B166,3)<>\"NOX\"),AM57*INDEX('Damage costs'!$P$16:$P$43,MATCH($B166,'Damage costs'!$C$16:$C$43,0))/1000,AM57*INDEX('Damage costs'!$T$16:$T$43,MATCH($B166,'Damage costs'!$C$16:$C$43,0))/1000),\"\")","v":""},{"$f":"IFERROR(IF(OR($C$168=FALSE,LEFT($B166,3)<>\"NOX\"),AN57*INDEX('Damage costs'!$P$16:$P$43,MATCH($B166,'Damage costs'!$C$16:$C$43,0))/1000,AN57*INDEX('Damage costs'!$T$16:$T$43,MATCH($B166,'Damage costs'!$C$16:$C$43,0))/1000),\"\")","v":""},{"$f":"IFERROR(IF(OR($C$168=FALSE,LEFT($B166,3)<>\"NOX\"),AO57*INDEX('Damage costs'!$P$16:$P$43,MATCH($B166,'Damage costs'!$C$16:$C$43,0))/1000,AO57*INDEX('Damage costs'!$T$16:$T$43,MATCH($B166,'Damage costs'!$C$16:$C$43,0))/1000),\"\")","v":""},{"$f":"IFERROR(IF(OR($C$168=FALSE,LEFT($B166,3)<>\"NOX\"),AP57*INDEX('Damage costs'!$P$16:$P$43,MATCH($B166,'Damage costs'!$C$16:$C$43,0))/1000,AP57*INDEX('Damage costs'!$T$16:$T$43,MATCH($B166,'Damage costs'!$C$16:$C$43,0))/1000),\"\")","v":""},{"$f":"IFERROR(IF(OR($C$168=FALSE,LEFT($B166,3)<>\"NOX\"),AQ57*INDEX('Damage costs'!$P$16:$P$43,MATCH($B166,'Damage costs'!$C$16:$C$43,0))/1000,AQ57*INDEX('Damage costs'!$T$16:$T$43,MATCH($B166,'Damage costs'!$C$16:$C$43,0))/1000),\"\")","v":""},{"$f":"IFERROR(IF(OR($C$168=FALSE,LEFT($B166,3)<>\"NOX\"),AR57*INDEX('Damage costs'!$P$16:$P$43,MATCH($B166,'Damage costs'!$C$16:$C$43,0))/1000,AR57*INDEX('Damage costs'!$T$16:$T$43,MATCH($B166,'Damage costs'!$C$16:$C$43,0))/1000),\"\")","v":""},{"$f":"IFERROR(IF(OR($C$168=FALSE,LEFT($B166,3)<>\"NOX\"),AS57*INDEX('Damage costs'!$P$16:$P$43,MATCH($B166,'Damage costs'!$C$16:$C$43,0))/1000,AS57*INDEX('Damage costs'!$T$16:$T$43,MATCH($B166,'Damage costs'!$C$16:$C$43,0))/1000),\"\")","v":""},{"$f":"IFERROR(IF(OR($C$168=FALSE,LEFT($B166,3)<>\"NOX\"),AT57*INDEX('Damage costs'!$P$16:$P$43,MATCH($B166,'Damage costs'!$C$16:$C$43,0))/1000,AT57*INDEX('Damage costs'!$T$16:$T$43,MATCH($B166,'Damage costs'!$C$16:$C$43,0))/1000),\"\")","v":""},{"$f":"IFERROR(IF(OR($C$168=FALSE,LEFT($B166,3)<>\"NOX\"),AU57*INDEX('Damage costs'!$P$16:$P$43,MATCH($B166,'Damage costs'!$C$16:$C$43,0))/1000,AU57*INDEX('Damage costs'!$T$16:$T$43,MATCH($B166,'Damage costs'!$C$16:$C$43,0))/1000),\"\")","v":""},{"$f":"IFERROR(IF(OR($C$168=FALSE,LEFT($B166,3)<>\"NOX\"),AV57*INDEX('Damage costs'!$P$16:$P$43,MATCH($B166,'Damage costs'!$C$16:$C$43,0))/1000,AV57*INDEX('Damage costs'!$T$16:$T$43,MATCH($B166,'Damage costs'!$C$16:$C$43,0))/1000),\"\")","v":""},{"$f":"IFERROR(IF(OR($C$168=FALSE,LEFT($B166,3)<>\"NOX\"),AW57*INDEX('Damage costs'!$P$16:$P$43,MATCH($B166,'Damage costs'!$C$16:$C$43,0))/1000,AW57*INDEX('Damage costs'!$T$16:$T$43,MATCH($B166,'Damage costs'!$C$16:$C$43,0))/1000),\"\")","v":""},{"$f":"IFERROR(IF(OR($C$168=FALSE,LEFT($B166,3)<>\"NOX\"),AX57*INDEX('Damage costs'!$P$16:$P$43,MATCH($B166,'Damage costs'!$C$16:$C$43,0))/1000,AX57*INDEX('Damage costs'!$T$16:$T$43,MATCH($B166,'Damage costs'!$C$16:$C$43,0))/1000),\"\")","v":""},{"$f":"IFERROR(IF(OR($C$168=FALSE,LEFT($B166,3)<>\"NOX\"),AY57*INDEX('Damage costs'!$P$16:$P$43,MATCH($B166,'Damage costs'!$C$16:$C$43,0))/1000,AY57*INDEX('Damage costs'!$T$16:$T$43,MATCH($B166,'Damage costs'!$C$16:$C$43,0))/1000),\"\")","v":""},{"$f":"IFERROR(IF(OR($C$168=FALSE,LEFT($B166,3)<>\"NOX\"),AZ57*INDEX('Damage costs'!$P$16:$P$43,MATCH($B166,'Damage costs'!$C$16:$C$43,0))/1000,AZ57*INDEX('Damage costs'!$T$16:$T$43,MATCH($B166,'Damage costs'!$C$16:$C$43,0))/1000),\"\")","v":""},{"$f":"IFERROR(IF(OR($C$168=FALSE,LEFT($B166,3)<>\"NOX\"),BA57*INDEX('Damage costs'!$P$16:$P$43,MATCH($B166,'Damage costs'!$C$16:$C$43,0))/1000,BA57*INDEX('Damage costs'!$T$16:$T$43,MATCH($B166,'Damage costs'!$C$16:$C$43,0))/1000),\"\")","v":""},{"$f":"IFERROR(IF(OR($C$168=FALSE,LEFT($B166,3)<>\"NOX\"),BB57*INDEX('Damage costs'!$P$16:$P$43,MATCH($B166,'Damage costs'!$C$16:$C$43,0))/1000,BB57*INDEX('Damage costs'!$T$16:$T$43,MATCH($B166,'Damage costs'!$C$16:$C$43,0))/1000),\"\")","v":""},{"$f":"IFERROR(IF(OR($C$168=FALSE,LEFT($B166,3)<>\"NOX\"),BC57*INDEX('Damage costs'!$P$16:$P$43,MATCH($B166,'Damage costs'!$C$16:$C$43,0))/1000,BC57*INDEX('Damage costs'!$T$16:$T$43,MATCH($B166,'Damage costs'!$C$16:$C$43,0))/1000),\"\")","v":""},{"$f":"IFERROR(IF(OR($C$168=FALSE,LEFT($B166,3)<>\"NOX\"),BD57*INDEX('Damage costs'!$P$16:$P$43,MATCH($B166,'Damage costs'!$C$16:$C$43,0))/1000,BD57*INDEX('Damage costs'!$T$16:$T$43,MATCH($B166,'Damage costs'!$C$16:$C$43,0))/1000),\"\")","v":""},{"$f":"IFERROR(IF(OR($C$168=FALSE,LEFT($B166,3)<>\"NOX\"),BE57*INDEX('Damage costs'!$P$16:$P$43,MATCH($B166,'Damage costs'!$C$16:$C$43,0))/1000,BE57*INDEX('Damage costs'!$T$16:$T$43,MATCH($B166,'Damage costs'!$C$16:$C$43,0))/1000),\"\")","v":""},{"$f":"IFERROR(IF(OR($C$168=FALSE,LEFT($B166,3)<>\"NOX\"),BF57*INDEX('Damage costs'!$P$16:$P$43,MATCH($B166,'Damage costs'!$C$16:$C$43,0))/1000,BF57*INDEX('Damage costs'!$T$16:$T$43,MATCH($B166,'Damage costs'!$C$16:$C$43,0))/1000),\"\")","v":""},{"$f":"IFERROR(IF(OR($C$168=FALSE,LEFT($B166,3)<>\"NOX\"),BG57*INDEX('Damage costs'!$P$16:$P$43,MATCH($B166,'Damage costs'!$C$16:$C$43,0))/1000,BG57*INDEX('Damage costs'!$T$16:$T$43,MATCH($B166,'Damage costs'!$C$16:$C$43,0))/1000),\"\")","v":""},{"$f":"IFERROR(IF(OR($C$168=FALSE,LEFT($B166,3)<>\"NOX\"),BH57*INDEX('Damage costs'!$P$16:$P$43,MATCH($B166,'Damage costs'!$C$16:$C$43,0))/1000,BH57*INDEX('Damage costs'!$T$16:$T$43,MATCH($B166,'Damage costs'!$C$16:$C$43,0))/1000),\"\")","v":""},{"$f":"IFERROR(IF(OR($C$168=FALSE,LEFT($B166,3)<>\"NOX\"),BI57*INDEX('Damage costs'!$P$16:$P$43,MATCH($B166,'Damage costs'!$C$16:$C$43,0))/1000,BI57*INDEX('Damage costs'!$T$16:$T$43,MATCH($B166,'Damage costs'!$C$16:$C$43,0))/1000),\"\")","v":""},{"$f":"IFERROR(IF(OR($C$168=FALSE,LEFT($B166,3)<>\"NOX\"),BJ57*INDEX('Damage costs'!$P$16:$P$43,MATCH($B166,'Damage costs'!$C$16:$C$43,0))/1000,BJ57*INDEX('Damage costs'!$T$16:$T$43,MATCH($B166,'Damage costs'!$C$16:$C$43,0))/1000),\"\")","v":""},{"$f":"IFERROR(IF(OR($C$168=FALSE,LEFT($B166,3)<>\"NOX\"),BK57*INDEX('Damage costs'!$P$16:$P$43,MATCH($B166,'Damage costs'!$C$16:$C$43,0))/1000,BK57*INDEX('Damage costs'!$T$16:$T$43,MATCH($B166,'Damage costs'!$C$16:$C$43,0))/1000),\"\")","v":""},{"$f":"IFERROR(IF(OR($C$168=FALSE,LEFT($B166,3)<>\"NOX\"),BL57*INDEX('Damage costs'!$P$16:$P$43,MATCH($B166,'Damage costs'!$C$16:$C$43,0))/1000,BL57*INDEX('Damage costs'!$T$16:$T$43,MATCH($B166,'Damage costs'!$C$16:$C$43,0))/1000),\"\")","v":""},{"$f":"IFERROR(IF(OR($C$168=FALSE,LEFT($B166,3)<>\"NOX\"),BM57*INDEX('Damage costs'!$P$16:$P$43,MATCH($B166,'Damage costs'!$C$16:$C$43,0))/1000,BM57*INDEX('Damage costs'!$T$16:$T$43,MATCH($B166,'Damage costs'!$C$16:$C$43,0))/1000),\"\")","v":""},{"$f":"IFERROR(IF(OR($C$168=FALSE,LEFT($B166,3)<>\"NOX\"),BN57*INDEX('Damage costs'!$P$16:$P$43,MATCH($B166,'Damage costs'!$C$16:$C$43,0))/1000,BN57*INDEX('Damage costs'!$T$16:$T$43,MATCH($B166,'Damage costs'!$C$16:$C$43,0))/1000),\"\")","v":""},{"$f":"IFERROR(IF(OR($C$168=FALSE,LEFT($B166,3)<>\"NOX\"),BO57*INDEX('Damage costs'!$P$16:$P$43,MATCH($B166,'Damage costs'!$C$16:$C$43,0))/1000,BO57*INDEX('Damage costs'!$T$16:$T$43,MATCH($B166,'Damage costs'!$C$16:$C$43,0))/1000),\"\")","v":""},{"$f":"IFERROR(IF(OR($C$168=FALSE,LEFT($B166,3)<>\"NOX\"),BP57*INDEX('Damage costs'!$P$16:$P$43,MATCH($B166,'Damage costs'!$C$16:$C$43,0))/1000,BP57*INDEX('Damage costs'!$T$16:$T$43,MATCH($B166,'Damage costs'!$C$16:$C$43,0))/1000),\"\")","v":""},{"$f":"IFERROR(IF(OR($C$168=FALSE,LEFT($B166,3)<>\"NOX\"),BQ57*INDEX('Damage costs'!$P$16:$P$43,MATCH($B166,'Damage costs'!$C$16:$C$43,0))/1000,BQ57*INDEX('Damage costs'!$T$16:$T$43,MATCH($B166,'Damage costs'!$C$16:$C$43,0))/1000),\"\")","v":""},{"$f":"IFERROR(IF(OR($C$168=FALSE,LEFT($B166,3)<>\"NOX\"),BR57*INDEX('Damage costs'!$P$16:$P$43,MATCH($B166,'Damage costs'!$C$16:$C$43,0))/1000,BR57*INDEX('Damage costs'!$T$16:$T$43,MATCH($B166,'Damage costs'!$C$16:$C$43,0))/1000),\"\")","v":""},{"$f":"IFERROR(IF(OR($C$168=FALSE,LEFT($B166,3)<>\"NOX\"),BS57*INDEX('Damage costs'!$P$16:$P$43,MATCH($B166,'Damage costs'!$C$16:$C$43,0))/1000,BS57*INDEX('Damage costs'!$T$16:$T$43,MATCH($B166,'Damage costs'!$C$16:$C$43,0))/1000),\"\")","v":""},{"$f":"IFERROR(IF(OR($C$168=FALSE,LEFT($B166,3)<>\"NOX\"),BT57*INDEX('Damage costs'!$P$16:$P$43,MATCH($B166,'Damage costs'!$C$16:$C$43,0))/1000,BT57*INDEX('Damage costs'!$T$16:$T$43,MATCH($B166,'Damage costs'!$C$16:$C$43,0))/1000),\"\")","v":""},{"$f":"IFERROR(IF(OR($C$168=FALSE,LEFT($B166,3)<>\"NOX\"),BU57*INDEX('Damage costs'!$P$16:$P$43,MATCH($B166,'Damage costs'!$C$16:$C$43,0))/1000,BU57*INDEX('Damage costs'!$T$16:$T$43,MATCH($B166,'Damage costs'!$C$16:$C$43,0))/1000),\"\")","v":""},{"$f":"IFERROR(IF(OR($C$168=FALSE,LEFT($B166,3)<>\"NOX\"),BV57*INDEX('Damage costs'!$P$16:$P$43,MATCH($B166,'Damage costs'!$C$16:$C$43,0))/1000,BV57*INDEX('Damage costs'!$T$16:$T$43,MATCH($B166,'Damage costs'!$C$16:$C$43,0))/1000),\"\")","v":""},{"$f":"IFERROR(IF(OR($C$168=FALSE,LEFT($B166,3)<>\"NOX\"),BW57*INDEX('Damage costs'!$P$16:$P$43,MATCH($B166,'Damage costs'!$C$16:$C$43,0))/1000,BW57*INDEX('Damage costs'!$T$16:$T$43,MATCH($B166,'Damage costs'!$C$16:$C$43,0))/1000),\"\")","v":""},{"$f":"IFERROR(IF(OR($C$168=FALSE,LEFT($B166,3)<>\"NOX\"),BX57*INDEX('Damage costs'!$P$16:$P$43,MATCH($B166,'Damage costs'!$C$16:$C$43,0))/1000,BX57*INDEX('Damage costs'!$T$16:$T$43,MATCH($B166,'Damage costs'!$C$16:$C$43,0))/1000),\"\")","v":""},{"$f":"IFERROR(IF(OR($C$168=FALSE,LEFT($B166,3)<>\"NOX\"),BY57*INDEX('Damage costs'!$P$16:$P$43,MATCH($B166,'Damage costs'!$C$16:$C$43,0))/1000,BY57*INDEX('Damage costs'!$T$16:$T$43,MATCH($B166,'Damage costs'!$C$16:$C$43,0))/1000),\"\")","v":""},{"$f":"IFERROR(IF(OR($C$168=FALSE,LEFT($B166,3)<>\"NOX\"),BZ57*INDEX('Damage costs'!$P$16:$P$43,MATCH($B166,'Damage costs'!$C$16:$C$43,0))/1000,BZ57*INDEX('Damage costs'!$T$16:$T$43,MATCH($B166,'Damage costs'!$C$16:$C$43,0))/1000),\"\")","v":""},{"$f":"IFERROR(IF(OR($C$168=FALSE,LEFT($B166,3)<>\"NOX\"),CA57*INDEX('Damage costs'!$P$16:$P$43,MATCH($B166,'Damage costs'!$C$16:$C$43,0))/1000,CA57*INDEX('Damage costs'!$T$16:$T$43,MATCH($B166,'Damage costs'!$C$16:$C$43,0))/1000),\"\")","v":""},{"$f":"IFERROR(IF(OR($C$168=FALSE,LEFT($B166,3)<>\"NOX\"),CB57*INDEX('Damage costs'!$P$16:$P$43,MATCH($B166,'Damage costs'!$C$16:$C$43,0))/1000,CB57*INDEX('Damage costs'!$T$16:$T$43,MATCH($B166,'Damage costs'!$C$16:$C$43,0))/1000),\"\")","v":""},{"$f":"IFERROR(IF(OR($C$168=FALSE,LEFT($B166,3)<>\"NOX\"),CC57*INDEX('Damage costs'!$P$16:$P$43,MATCH($B166,'Damage costs'!$C$16:$C$43,0))/1000,CC57*INDEX('Damage costs'!$T$16:$T$43,MATCH($B166,'Damage costs'!$C$16:$C$43,0))/1000),\"\")","v":""},{"$f":"IFERROR(IF(OR($C$168=FALSE,LEFT($B166,3)<>\"NOX\"),CD57*INDEX('Damage costs'!$P$16:$P$43,MATCH($B166,'Damage costs'!$C$16:$C$43,0))/1000,CD57*INDEX('Damage costs'!$T$16:$T$43,MATCH($B166,'Damage costs'!$C$16:$C$43,0))/1000),\"\")","v":""},{"$f":"IFERROR(IF(OR($C$168=FALSE,LEFT($B166,3)<>\"NOX\"),CE57*INDEX('Damage costs'!$P$16:$P$43,MATCH($B166,'Damage costs'!$C$16:$C$43,0))/1000,CE57*INDEX('Damage costs'!$T$16:$T$43,MATCH($B166,'Damage costs'!$C$16:$C$43,0))/1000),\"\")","v":""},{"$f":"IFERROR(IF(OR($C$168=FALSE,LEFT($B166,3)<>\"NOX\"),CF57*INDEX('Damage costs'!$P$16:$P$43,MATCH($B166,'Damage costs'!$C$16:$C$43,0))/1000,CF57*INDEX('Damage costs'!$T$16:$T$43,MATCH($B166,'Damage costs'!$C$16:$C$43,0))/1000),\"\")","v":""},{"$f":"IFERROR(IF(OR($C$168=FALSE,LEFT($B166,3)<>\"NOX\"),CG57*INDEX('Damage costs'!$P$16:$P$43,MATCH($B166,'Damage costs'!$C$16:$C$43,0))/1000,CG57*INDEX('Damage costs'!$T$16:$T$43,MATCH($B166,'Damage costs'!$C$16:$C$43,0))/1000),\"\")","v":""},{"$f":"IFERROR(IF(OR($C$168=FALSE,LEFT($B166,3)<>\"NOX\"),CH57*INDEX('Damage costs'!$P$16:$P$43,MATCH($B166,'Damage costs'!$C$16:$C$43,0))/1000,CH57*INDEX('Damage costs'!$T$16:$T$43,MATCH($B166,'Damage costs'!$C$16:$C$43,0))/1000),\"\")","v":""},{"$f":"IFERROR(IF(OR($C$168=FALSE,LEFT($B166,3)<>\"NOX\"),CI57*INDEX('Damage costs'!$P$16:$P$43,MATCH($B166,'Damage costs'!$C$16:$C$43,0))/1000,CI57*INDEX('Damage costs'!$T$16:$T$43,MATCH($B166,'Damage costs'!$C$16:$C$43,0))/1000),\"\")","v":""},{"$f":"IFERROR(IF(OR($C$168=FALSE,LEFT($B166,3)<>\"NOX\"),CJ57*INDEX('Damage costs'!$P$16:$P$43,MATCH($B166,'Damage costs'!$C$16:$C$43,0))/1000,CJ57*INDEX('Damage costs'!$T$16:$T$43,MATCH($B166,'Damage costs'!$C$16:$C$43,0))/1000),\"\")","v":""},{"$f":"IFERROR(IF(OR($C$168=FALSE,LEFT($B166,3)<>\"NOX\"),CK57*INDEX('Damage costs'!$P$16:$P$43,MATCH($B166,'Damage costs'!$C$16:$C$43,0))/1000,CK57*INDEX('Damage costs'!$T$16:$T$43,MATCH($B166,'Damage costs'!$C$16:$C$43,0))/1000),\"\")","v":""},{"$f":"IFERROR(IF(OR($C$168=FALSE,LEFT($B166,3)<>\"NOX\"),CL57*INDEX('Damage costs'!$P$16:$P$43,MATCH($B166,'Damage costs'!$C$16:$C$43,0))/1000,CL57*INDEX('Damage costs'!$T$16:$T$43,MATCH($B166,'Damage costs'!$C$16:$C$43,0))/1000),\"\")","v":""},{"$f":"IFERROR(IF(OR($C$168=FALSE,LEFT($B166,3)<>\"NOX\"),CM57*INDEX('Damage costs'!$P$16:$P$43,MATCH($B166,'Damage costs'!$C$16:$C$43,0))/1000,CM57*INDEX('Damage costs'!$T$16:$T$43,MATCH($B166,'Damage costs'!$C$16:$C$43,0))/1000),\"\")","v":""},{"$f":"IFERROR(IF(OR($C$168=FALSE,LEFT($B166,3)<>\"NOX\"),CN57*INDEX('Damage costs'!$P$16:$P$43,MATCH($B166,'Damage costs'!$C$16:$C$43,0))/1000,CN57*INDEX('Damage costs'!$T$16:$T$43,MATCH($B166,'Damage costs'!$C$16:$C$43,0))/1000),\"\")","v":""},{"$f":"IFERROR(IF(OR($C$168=FALSE,LEFT($B166,3)<>\"NOX\"),CO57*INDEX('Damage costs'!$P$16:$P$43,MATCH($B166,'Damage costs'!$C$16:$C$43,0))/1000,CO57*INDEX('Damage costs'!$T$16:$T$43,MATCH($B166,'Damage costs'!$C$16:$C$43,0))/1000),\"\")","v":""},{"$f":"IFERROR(IF(OR($C$168=FALSE,LEFT($B166,3)<>\"NOX\"),CP57*INDEX('Damage costs'!$P$16:$P$43,MATCH($B166,'Damage costs'!$C$16:$C$43,0))/1000,CP57*INDEX('Damage costs'!$T$16:$T$43,MATCH($B166,'Damage costs'!$C$16:$C$43,0))/1000),\"\")","v":""},{"$f":"IFERROR(IF(OR($C$168=FALSE,LEFT($B166,3)<>\"NOX\"),CQ57*INDEX('Damage costs'!$P$16:$P$43,MATCH($B166,'Damage costs'!$C$16:$C$43,0))/1000,CQ57*INDEX('Damage costs'!$T$16:$T$43,MATCH($B166,'Damage costs'!$C$16:$C$43,0))/1000),\"\")","v":""},{"$f":"IFERROR(IF(OR($C$168=FALSE,LEFT($B166,3)<>\"NOX\"),CR57*INDEX('Damage costs'!$P$16:$P$43,MATCH($B166,'Damage costs'!$C$16:$C$43,0))/1000,CR57*INDEX('Damage costs'!$T$16:$T$43,MATCH($B166,'Damage costs'!$C$16:$C$43,0))/1000),\"\")","v":""},{"$f":"IFERROR(IF(OR($C$168=FALSE,LEFT($B166,3)<>\"NOX\"),CS57*INDEX('Damage costs'!$P$16:$P$43,MATCH($B166,'Damage costs'!$C$16:$C$43,0))/1000,CS57*INDEX('Damage costs'!$T$16:$T$43,MATCH($B166,'Damage costs'!$C$16:$C$43,0))/1000),\"\")","v":""},{"$f":"IFERROR(IF(OR($C$168=FALSE,LEFT($B166,3)<>\"NOX\"),CT57*INDEX('Damage costs'!$P$16:$P$43,MATCH($B166,'Damage costs'!$C$16:$C$43,0))/1000,CT57*INDEX('Damage costs'!$T$16:$T$43,MATCH($B166,'Damage costs'!$C$16:$C$43,0))/1000),\"\")","v":""},{"$f":"IFERROR(IF(OR($C$168=FALSE,LEFT($B166,3)<>\"NOX\"),CU57*INDEX('Damage costs'!$P$16:$P$43,MATCH($B166,'Damage costs'!$C$16:$C$43,0))/1000,CU57*INDEX('Damage costs'!$T$16:$T$43,MATCH($B166,'Damage costs'!$C$16:$C$43,0))/1000),\"\")","v":""},{"$f":"IFERROR(IF(OR($C$168=FALSE,LEFT($B166,3)<>\"NOX\"),CV57*INDEX('Damage costs'!$P$16:$P$43,MATCH($B166,'Damage costs'!$C$16:$C$43,0))/1000,CV57*INDEX('Damage costs'!$T$16:$T$43,MATCH($B166,'Damage costs'!$C$16:$C$43,0))/1000),\"\")","v":""},{"$f":"IFERROR(IF(OR($C$168=FALSE,LEFT($B166,3)<>\"NOX\"),CW57*INDEX('Damage costs'!$P$16:$P$43,MATCH($B166,'Damage costs'!$C$16:$C$43,0))/1000,CW57*INDEX('Damage costs'!$T$16:$T$43,MATCH($B166,'Damage costs'!$C$16:$C$43,0))/1000),\"\")","v":""},{"$f":"IFERROR(IF(OR($C$168=FALSE,LEFT($B166,3)<>\"NOX\"),CX57*INDEX('Damage costs'!$P$16:$P$43,MATCH($B166,'Damage costs'!$C$16:$C$43,0))/1000,CX57*INDEX('Damage costs'!$T$16:$T$43,MATCH($B166,'Damage costs'!$C$16:$C$43,0))/1000),\"\")","v":""},{"$f":"IFERROR(IF(OR($C$168=FALSE,LEFT($B166,3)<>\"NOX\"),CY57*INDEX('Damage costs'!$P$16:$P$43,MATCH($B166,'Damage costs'!$C$16:$C$43,0))/1000,CY57*INDEX('Damage costs'!$T$16:$T$43,MATCH($B166,'Damage costs'!$C$16:$C$43,0))/1000),\"\")","v":""}]
[null,0,"£000's",{"$f":"IFERROR(IF(OR($C$168=FALSE,LEFT($B167,3)<>\"NOX\"),D58*INDEX('Damage costs'!$P$16:$P$43,MATCH($B167,'Damage costs'!$C$16:$C$43,0))/1000,D58*INDEX('Damage costs'!$T$16:$T$43,MATCH($B167,'Damage costs'!$C$16:$C$43,0))/1000),\"\")","v":""},{"$f":"IFERROR(IF(OR($C$168=FALSE,LEFT($B167,3)<>\"NOX\"),E58*INDEX('Damage costs'!$P$16:$P$43,MATCH($B167,'Damage costs'!$C$16:$C$43,0))/1000,E58*INDEX('Damage costs'!$T$16:$T$43,MATCH($B167,'Damage costs'!$C$16:$C$43,0))/1000),\"\")","v":""},{"$f":"IFERROR(IF(OR($C$168=FALSE,LEFT($B167,3)<>\"NOX\"),F58*INDEX('Damage costs'!$P$16:$P$43,MATCH($B167,'Damage costs'!$C$16:$C$43,0))/1000,F58*INDEX('Damage costs'!$T$16:$T$43,MATCH($B167,'Damage costs'!$C$16:$C$43,0))/1000),\"\")","v":""},{"$f":"IFERROR(IF(OR($C$168=FALSE,LEFT($B167,3)<>\"NOX\"),G58*INDEX('Damage costs'!$P$16:$P$43,MATCH($B167,'Damage costs'!$C$16:$C$43,0))/1000,G58*INDEX('Damage costs'!$T$16:$T$43,MATCH($B167,'Damage costs'!$C$16:$C$43,0))/1000),\"\")","v":""},{"$f":"IFERROR(IF(OR($C$168=FALSE,LEFT($B167,3)<>\"NOX\"),H58*INDEX('Damage costs'!$P$16:$P$43,MATCH($B167,'Damage costs'!$C$16:$C$43,0))/1000,H58*INDEX('Damage costs'!$T$16:$T$43,MATCH($B167,'Damage costs'!$C$16:$C$43,0))/1000),\"\")","v":""},{"$f":"IFERROR(IF(OR($C$168=FALSE,LEFT($B167,3)<>\"NOX\"),I58*INDEX('Damage costs'!$P$16:$P$43,MATCH($B167,'Damage costs'!$C$16:$C$43,0))/1000,I58*INDEX('Damage costs'!$T$16:$T$43,MATCH($B167,'Damage costs'!$C$16:$C$43,0))/1000),\"\")","v":""},{"$f":"IFERROR(IF(OR($C$168=FALSE,LEFT($B167,3)<>\"NOX\"),J58*INDEX('Damage costs'!$P$16:$P$43,MATCH($B167,'Damage costs'!$C$16:$C$43,0))/1000,J58*INDEX('Damage costs'!$T$16:$T$43,MATCH($B167,'Damage costs'!$C$16:$C$43,0))/1000),\"\")","v":""},{"$f":"IFERROR(IF(OR($C$168=FALSE,LEFT($B167,3)<>\"NOX\"),K58*INDEX('Damage costs'!$P$16:$P$43,MATCH($B167,'Damage costs'!$C$16:$C$43,0))/1000,K58*INDEX('Damage costs'!$T$16:$T$43,MATCH($B167,'Damage costs'!$C$16:$C$43,0))/1000),\"\")","v":""},{"$f":"IFERROR(IF(OR($C$168=FALSE,LEFT($B167,3)<>\"NOX\"),L58*INDEX('Damage costs'!$P$16:$P$43,MATCH($B167,'Damage costs'!$C$16:$C$43,0))/1000,L58*INDEX('Damage costs'!$T$16:$T$43,MATCH($B167,'Damage costs'!$C$16:$C$43,0))/1000),\"\")","v":""},{"$f":"IFERROR(IF(OR($C$168=FALSE,LEFT($B167,3)<>\"NOX\"),M58*INDEX('Damage costs'!$P$16:$P$43,MATCH($B167,'Damage costs'!$C$16:$C$43,0))/1000,M58*INDEX('Damage costs'!$T$16:$T$43,MATCH($B167,'Damage costs'!$C$16:$C$43,0))/1000),\"\")","v":""},{"$f":"IFERROR(IF(OR($C$168=FALSE,LEFT($B167,3)<>\"NOX\"),N58*INDEX('Damage costs'!$P$16:$P$43,MATCH($B167,'Damage costs'!$C$16:$C$43,0))/1000,N58*INDEX('Damage costs'!$T$16:$T$43,MATCH($B167,'Damage costs'!$C$16:$C$43,0))/1000),\"\")","v":""},{"$f":"IFERROR(IF(OR($C$168=FALSE,LEFT($B167,3)<>\"NOX\"),O58*INDEX('Damage costs'!$P$16:$P$43,MATCH($B167,'Damage costs'!$C$16:$C$43,0))/1000,O58*INDEX('Damage costs'!$T$16:$T$43,MATCH($B167,'Damage costs'!$C$16:$C$43,0))/1000),\"\")","v":""},{"$f":"IFERROR(IF(OR($C$168=FALSE,LEFT($B167,3)<>\"NOX\"),P58*INDEX('Damage costs'!$P$16:$P$43,MATCH($B167,'Damage costs'!$C$16:$C$43,0))/1000,P58*INDEX('Damage costs'!$T$16:$T$43,MATCH($B167,'Damage costs'!$C$16:$C$43,0))/1000),\"\")","v":""},{"$f":"IFERROR(IF(OR($C$168=FALSE,LEFT($B167,3)<>\"NOX\"),Q58*INDEX('Damage costs'!$P$16:$P$43,MATCH($B167,'Damage costs'!$C$16:$C$43,0))/1000,Q58*INDEX('Damage costs'!$T$16:$T$43,MATCH($B167,'Damage costs'!$C$16:$C$43,0))/1000),\"\")","v":""},{"$f":"IFERROR(IF(OR($C$168=FALSE,LEFT($B167,3)<>\"NOX\"),R58*INDEX('Damage costs'!$P$16:$P$43,MATCH($B167,'Damage costs'!$C$16:$C$43,0))/1000,R58*INDEX('Damage costs'!$T$16:$T$43,MATCH($B167,'Damage costs'!$C$16:$C$43,0))/1000),\"\")","v":""},{"$f":"IFERROR(IF(OR($C$168=FALSE,LEFT($B167,3)<>\"NOX\"),S58*INDEX('Damage costs'!$P$16:$P$43,MATCH($B167,'Damage costs'!$C$16:$C$43,0))/1000,S58*INDEX('Damage costs'!$T$16:$T$43,MATCH($B167,'Damage costs'!$C$16:$C$43,0))/1000),\"\")","v":""},{"$f":"IFERROR(IF(OR($C$168=FALSE,LEFT($B167,3)<>\"NOX\"),T58*INDEX('Damage costs'!$P$16:$P$43,MATCH($B167,'Damage costs'!$C$16:$C$43,0))/1000,T58*INDEX('Damage costs'!$T$16:$T$43,MATCH($B167,'Damage costs'!$C$16:$C$43,0))/1000),\"\")","v":""},{"$f":"IFERROR(IF(OR($C$168=FALSE,LEFT($B167,3)<>\"NOX\"),U58*INDEX('Damage costs'!$P$16:$P$43,MATCH($B167,'Damage costs'!$C$16:$C$43,0))/1000,U58*INDEX('Damage costs'!$T$16:$T$43,MATCH($B167,'Damage costs'!$C$16:$C$43,0))/1000),\"\")","v":""},{"$f":"IFERROR(IF(OR($C$168=FALSE,LEFT($B167,3)<>\"NOX\"),V58*INDEX('Damage costs'!$P$16:$P$43,MATCH($B167,'Damage costs'!$C$16:$C$43,0))/1000,V58*INDEX('Damage costs'!$T$16:$T$43,MATCH($B167,'Damage costs'!$C$16:$C$43,0))/1000),\"\")","v":""},{"$f":"IFERROR(IF(OR($C$168=FALSE,LEFT($B167,3)<>\"NOX\"),W58*INDEX('Damage costs'!$P$16:$P$43,MATCH($B167,'Damage costs'!$C$16:$C$43,0))/1000,W58*INDEX('Damage costs'!$T$16:$T$43,MATCH($B167,'Damage costs'!$C$16:$C$43,0))/1000),\"\")","v":""},{"$f":"IFERROR(IF(OR($C$168=FALSE,LEFT($B167,3)<>\"NOX\"),X58*INDEX('Damage costs'!$P$16:$P$43,MATCH($B167,'Damage costs'!$C$16:$C$43,0))/1000,X58*INDEX('Damage costs'!$T$16:$T$43,MATCH($B167,'Damage costs'!$C$16:$C$43,0))/1000),\"\")","v":""},{"$f":"IFERROR(IF(OR($C$168=FALSE,LEFT($B167,3)<>\"NOX\"),Y58*INDEX('Damage costs'!$P$16:$P$43,MATCH($B167,'Damage costs'!$C$16:$C$43,0))/1000,Y58*INDEX('Damage costs'!$T$16:$T$43,MATCH($B167,'Damage costs'!$C$16:$C$43,0))/1000),\"\")","v":""},{"$f":"IFERROR(IF(OR($C$168=FALSE,LEFT($B167,3)<>\"NOX\"),Z58*INDEX('Damage costs'!$P$16:$P$43,MATCH($B167,'Damage costs'!$C$16:$C$43,0))/1000,Z58*INDEX('Damage costs'!$T$16:$T$43,MATCH($B167,'Damage costs'!$C$16:$C$43,0))/1000),\"\")","v":""},{"$f":"IFERROR(IF(OR($C$168=FALSE,LEFT($B167,3)<>\"NOX\"),AA58*INDEX('Damage costs'!$P$16:$P$43,MATCH($B167,'Damage costs'!$C$16:$C$43,0))/1000,AA58*INDEX('Damage costs'!$T$16:$T$43,MATCH($B167,'Damage costs'!$C$16:$C$43,0))/1000),\"\")","v":""},{"$f":"IFERROR(IF(OR($C$168=FALSE,LEFT($B167,3)<>\"NOX\"),AB58*INDEX('Damage costs'!$P$16:$P$43,MATCH($B167,'Damage costs'!$C$16:$C$43,0))/1000,AB58*INDEX('Damage costs'!$T$16:$T$43,MATCH($B167,'Damage costs'!$C$16:$C$43,0))/1000),\"\")","v":""},{"$f":"IFERROR(IF(OR($C$168=FALSE,LEFT($B167,3)<>\"NOX\"),AC58*INDEX('Damage costs'!$P$16:$P$43,MATCH($B167,'Damage costs'!$C$16:$C$43,0))/1000,AC58*INDEX('Damage costs'!$T$16:$T$43,MATCH($B167,'Damage costs'!$C$16:$C$43,0))/1000),\"\")","v":""},{"$f":"IFERROR(IF(OR($C$168=FALSE,LEFT($B167,3)<>\"NOX\"),AD58*INDEX('Damage costs'!$P$16:$P$43,MATCH($B167,'Damage costs'!$C$16:$C$43,0))/1000,AD58*INDEX('Damage costs'!$T$16:$T$43,MATCH($B167,'Damage costs'!$C$16:$C$43,0))/1000),\"\")","v":""},{"$f":"IFERROR(IF(OR($C$168=FALSE,LEFT($B167,3)<>\"NOX\"),AE58*INDEX('Damage costs'!$P$16:$P$43,MATCH($B167,'Damage costs'!$C$16:$C$43,0))/1000,AE58*INDEX('Damage costs'!$T$16:$T$43,MATCH($B167,'Damage costs'!$C$16:$C$43,0))/1000),\"\")","v":""},{"$f":"IFERROR(IF(OR($C$168=FALSE,LEFT($B167,3)<>\"NOX\"),AF58*INDEX('Damage costs'!$P$16:$P$43,MATCH($B167,'Damage costs'!$C$16:$C$43,0))/1000,AF58*INDEX('Damage costs'!$T$16:$T$43,MATCH($B167,'Damage costs'!$C$16:$C$43,0))/1000),\"\")","v":""},{"$f":"IFERROR(IF(OR($C$168=FALSE,LEFT($B167,3)<>\"NOX\"),AG58*INDEX('Damage costs'!$P$16:$P$43,MATCH($B167,'Damage costs'!$C$16:$C$43,0))/1000,AG58*INDEX('Damage costs'!$T$16:$T$43,MATCH($B167,'Damage costs'!$C$16:$C$43,0))/1000),\"\")","v":""},{"$f":"IFERROR(IF(OR($C$168=FALSE,LEFT($B167,3)<>\"NOX\"),AH58*INDEX('Damage costs'!$P$16:$P$43,MATCH($B167,'Damage costs'!$C$16:$C$43,0))/1000,AH58*INDEX('Damage costs'!$T$16:$T$43,MATCH($B167,'Damage costs'!$C$16:$C$43,0))/1000),\"\")","v":""},{"$f":"IFERROR(IF(OR($C$168=FALSE,LEFT($B167,3)<>\"NOX\"),AI58*INDEX('Damage costs'!$P$16:$P$43,MATCH($B167,'Damage costs'!$C$16:$C$43,0))/1000,AI58*INDEX('Damage costs'!$T$16:$T$43,MATCH($B167,'Damage costs'!$C$16:$C$43,0))/1000),\"\")","v":""},{"$f":"IFERROR(IF(OR($C$168=FALSE,LEFT($B167,3)<>\"NOX\"),AJ58*INDEX('Damage costs'!$P$16:$P$43,MATCH($B167,'Damage costs'!$C$16:$C$43,0))/1000,AJ58*INDEX('Damage costs'!$T$16:$T$43,MATCH($B167,'Damage costs'!$C$16:$C$43,0))/1000),\"\")","v":""},{"$f":"IFERROR(IF(OR($C$168=FALSE,LEFT($B167,3)<>\"NOX\"),AK58*INDEX('Damage costs'!$P$16:$P$43,MATCH($B167,'Damage costs'!$C$16:$C$43,0))/1000,AK58*INDEX('Damage costs'!$T$16:$T$43,MATCH($B167,'Damage costs'!$C$16:$C$43,0))/1000),\"\")","v":""},{"$f":"IFERROR(IF(OR($C$168=FALSE,LEFT($B167,3)<>\"NOX\"),AL58*INDEX('Damage costs'!$P$16:$P$43,MATCH($B167,'Damage costs'!$C$16:$C$43,0))/1000,AL58*INDEX('Damage costs'!$T$16:$T$43,MATCH($B167,'Damage costs'!$C$16:$C$43,0))/1000),\"\")","v":""},{"$f":"IFERROR(IF(OR($C$168=FALSE,LEFT($B167,3)<>\"NOX\"),AM58*INDEX('Damage costs'!$P$16:$P$43,MATCH($B167,'Damage costs'!$C$16:$C$43,0))/1000,AM58*INDEX('Damage costs'!$T$16:$T$43,MATCH($B167,'Damage costs'!$C$16:$C$43,0))/1000),\"\")","v":""},{"$f":"IFERROR(IF(OR($C$168=FALSE,LEFT($B167,3)<>\"NOX\"),AN58*INDEX('Damage costs'!$P$16:$P$43,MATCH($B167,'Damage costs'!$C$16:$C$43,0))/1000,AN58*INDEX('Damage costs'!$T$16:$T$43,MATCH($B167,'Damage costs'!$C$16:$C$43,0))/1000),\"\")","v":""},{"$f":"IFERROR(IF(OR($C$168=FALSE,LEFT($B167,3)<>\"NOX\"),AO58*INDEX('Damage costs'!$P$16:$P$43,MATCH($B167,'Damage costs'!$C$16:$C$43,0))/1000,AO58*INDEX('Damage costs'!$T$16:$T$43,MATCH($B167,'Damage costs'!$C$16:$C$43,0))/1000),\"\")","v":""},{"$f":"IFERROR(IF(OR($C$168=FALSE,LEFT($B167,3)<>\"NOX\"),AP58*INDEX('Damage costs'!$P$16:$P$43,MATCH($B167,'Damage costs'!$C$16:$C$43,0))/1000,AP58*INDEX('Damage costs'!$T$16:$T$43,MATCH($B167,'Damage costs'!$C$16:$C$43,0))/1000),\"\")","v":""},{"$f":"IFERROR(IF(OR($C$168=FALSE,LEFT($B167,3)<>\"NOX\"),AQ58*INDEX('Damage costs'!$P$16:$P$43,MATCH($B167,'Damage costs'!$C$16:$C$43,0))/1000,AQ58*INDEX('Damage costs'!$T$16:$T$43,MATCH($B167,'Damage costs'!$C$16:$C$43,0))/1000),\"\")","v":""},{"$f":"IFERROR(IF(OR($C$168=FALSE,LEFT($B167,3)<>\"NOX\"),AR58*INDEX('Damage costs'!$P$16:$P$43,MATCH($B167,'Damage costs'!$C$16:$C$43,0))/1000,AR58*INDEX('Damage costs'!$T$16:$T$43,MATCH($B167,'Damage costs'!$C$16:$C$43,0))/1000),\"\")","v":""},{"$f":"IFERROR(IF(OR($C$168=FALSE,LEFT($B167,3)<>\"NOX\"),AS58*INDEX('Damage costs'!$P$16:$P$43,MATCH($B167,'Damage costs'!$C$16:$C$43,0))/1000,AS58*INDEX('Damage costs'!$T$16:$T$43,MATCH($B167,'Damage costs'!$C$16:$C$43,0))/1000),\"\")","v":""},{"$f":"IFERROR(IF(OR($C$168=FALSE,LEFT($B167,3)<>\"NOX\"),AT58*INDEX('Damage costs'!$P$16:$P$43,MATCH($B167,'Damage costs'!$C$16:$C$43,0))/1000,AT58*INDEX('Damage costs'!$T$16:$T$43,MATCH($B167,'Damage costs'!$C$16:$C$43,0))/1000),\"\")","v":""},{"$f":"IFERROR(IF(OR($C$168=FALSE,LEFT($B167,3)<>\"NOX\"),AU58*INDEX('Damage costs'!$P$16:$P$43,MATCH($B167,'Damage costs'!$C$16:$C$43,0))/1000,AU58*INDEX('Damage costs'!$T$16:$T$43,MATCH($B167,'Damage costs'!$C$16:$C$43,0))/1000),\"\")","v":""},{"$f":"IFERROR(IF(OR($C$168=FALSE,LEFT($B167,3)<>\"NOX\"),AV58*INDEX('Damage costs'!$P$16:$P$43,MATCH($B167,'Damage costs'!$C$16:$C$43,0))/1000,AV58*INDEX('Damage costs'!$T$16:$T$43,MATCH($B167,'Damage costs'!$C$16:$C$43,0))/1000),\"\")","v":""},{"$f":"IFERROR(IF(OR($C$168=FALSE,LEFT($B167,3)<>\"NOX\"),AW58*INDEX('Damage costs'!$P$16:$P$43,MATCH($B167,'Damage costs'!$C$16:$C$43,0))/1000,AW58*INDEX('Damage costs'!$T$16:$T$43,MATCH($B167,'Damage costs'!$C$16:$C$43,0))/1000),\"\")","v":""},{"$f":"IFERROR(IF(OR($C$168=FALSE,LEFT($B167,3)<>\"NOX\"),AX58*INDEX('Damage costs'!$P$16:$P$43,MATCH($B167,'Damage costs'!$C$16:$C$43,0))/1000,AX58*INDEX('Damage costs'!$T$16:$T$43,MATCH($B167,'Damage costs'!$C$16:$C$43,0))/1000),\"\")","v":""},{"$f":"IFERROR(IF(OR($C$168=FALSE,LEFT($B167,3)<>\"NOX\"),AY58*INDEX('Damage costs'!$P$16:$P$43,MATCH($B167,'Damage costs'!$C$16:$C$43,0))/1000,AY58*INDEX('Damage costs'!$T$16:$T$43,MATCH($B167,'Damage costs'!$C$16:$C$43,0))/1000),\"\")","v":""},{"$f":"IFERROR(IF(OR($C$168=FALSE,LEFT($B167,3)<>\"NOX\"),AZ58*INDEX('Damage costs'!$P$16:$P$43,MATCH($B167,'Damage costs'!$C$16:$C$43,0))/1000,AZ58*INDEX('Damage costs'!$T$16:$T$43,MATCH($B167,'Damage costs'!$C$16:$C$43,0))/1000),\"\")","v":""},{"$f":"IFERROR(IF(OR($C$168=FALSE,LEFT($B167,3)<>\"NOX\"),BA58*INDEX('Damage costs'!$P$16:$P$43,MATCH($B167,'Damage costs'!$C$16:$C$43,0))/1000,BA58*INDEX('Damage costs'!$T$16:$T$43,MATCH($B167,'Damage costs'!$C$16:$C$43,0))/1000),\"\")","v":""},{"$f":"IFERROR(IF(OR($C$168=FALSE,LEFT($B167,3)<>\"NOX\"),BB58*INDEX('Damage costs'!$P$16:$P$43,MATCH($B167,'Damage costs'!$C$16:$C$43,0))/1000,BB58*INDEX('Damage costs'!$T$16:$T$43,MATCH($B167,'Damage costs'!$C$16:$C$43,0))/1000),\"\")","v":""},{"$f":"IFERROR(IF(OR($C$168=FALSE,LEFT($B167,3)<>\"NOX\"),BC58*INDEX('Damage costs'!$P$16:$P$43,MATCH($B167,'Damage costs'!$C$16:$C$43,0))/1000,BC58*INDEX('Damage costs'!$T$16:$T$43,MATCH($B167,'Damage costs'!$C$16:$C$43,0))/1000),\"\")","v":""},{"$f":"IFERROR(IF(OR($C$168=FALSE,LEFT($B167,3)<>\"NOX\"),BD58*INDEX('Damage costs'!$P$16:$P$43,MATCH($B167,'Damage costs'!$C$16:$C$43,0))/1000,BD58*INDEX('Damage costs'!$T$16:$T$43,MATCH($B167,'Damage costs'!$C$16:$C$43,0))/1000),\"\")","v":""},{"$f":"IFERROR(IF(OR($C$168=FALSE,LEFT($B167,3)<>\"NOX\"),BE58*INDEX('Damage costs'!$P$16:$P$43,MATCH($B167,'Damage costs'!$C$16:$C$43,0))/1000,BE58*INDEX('Damage costs'!$T$16:$T$43,MATCH($B167,'Damage costs'!$C$16:$C$43,0))/1000),\"\")","v":""},{"$f":"IFERROR(IF(OR($C$168=FALSE,LEFT($B167,3)<>\"NOX\"),BF58*INDEX('Damage costs'!$P$16:$P$43,MATCH($B167,'Damage costs'!$C$16:$C$43,0))/1000,BF58*INDEX('Damage costs'!$T$16:$T$43,MATCH($B167,'Damage costs'!$C$16:$C$43,0))/1000),\"\")","v":""},{"$f":"IFERROR(IF(OR($C$168=FALSE,LEFT($B167,3)<>\"NOX\"),BG58*INDEX('Damage costs'!$P$16:$P$43,MATCH($B167,'Damage costs'!$C$16:$C$43,0))/1000,BG58*INDEX('Damage costs'!$T$16:$T$43,MATCH($B167,'Damage costs'!$C$16:$C$43,0))/1000),\"\")","v":""},{"$f":"IFERROR(IF(OR($C$168=FALSE,LEFT($B167,3)<>\"NOX\"),BH58*INDEX('Damage costs'!$P$16:$P$43,MATCH($B167,'Damage costs'!$C$16:$C$43,0))/1000,BH58*INDEX('Damage costs'!$T$16:$T$43,MATCH($B167,'Damage costs'!$C$16:$C$43,0))/1000),\"\")","v":""},{"$f":"IFERROR(IF(OR($C$168=FALSE,LEFT($B167,3)<>\"NOX\"),BI58*INDEX('Damage costs'!$P$16:$P$43,MATCH($B167,'Damage costs'!$C$16:$C$43,0))/1000,BI58*INDEX('Damage costs'!$T$16:$T$43,MATCH($B167,'Damage costs'!$C$16:$C$43,0))/1000),\"\")","v":""},{"$f":"IFERROR(IF(OR($C$168=FALSE,LEFT($B167,3)<>\"NOX\"),BJ58*INDEX('Damage costs'!$P$16:$P$43,MATCH($B167,'Damage costs'!$C$16:$C$43,0))/1000,BJ58*INDEX('Damage costs'!$T$16:$T$43,MATCH($B167,'Damage costs'!$C$16:$C$43,0))/1000),\"\")","v":""},{"$f":"IFERROR(IF(OR($C$168=FALSE,LEFT($B167,3)<>\"NOX\"),BK58*INDEX('Damage costs'!$P$16:$P$43,MATCH($B167,'Damage costs'!$C$16:$C$43,0))/1000,BK58*INDEX('Damage costs'!$T$16:$T$43,MATCH($B167,'Damage costs'!$C$16:$C$43,0))/1000),\"\")","v":""},{"$f":"IFERROR(IF(OR($C$168=FALSE,LEFT($B167,3)<>\"NOX\"),BL58*INDEX('Damage costs'!$P$16:$P$43,MATCH($B167,'Damage costs'!$C$16:$C$43,0))/1000,BL58*INDEX('Damage costs'!$T$16:$T$43,MATCH($B167,'Damage costs'!$C$16:$C$43,0))/1000),\"\")","v":""},{"$f":"IFERROR(IF(OR($C$168=FALSE,LEFT($B167,3)<>\"NOX\"),BM58*INDEX('Damage costs'!$P$16:$P$43,MATCH($B167,'Damage costs'!$C$16:$C$43,0))/1000,BM58*INDEX('Damage costs'!$T$16:$T$43,MATCH($B167,'Damage costs'!$C$16:$C$43,0))/1000),\"\")","v":""},{"$f":"IFERROR(IF(OR($C$168=FALSE,LEFT($B167,3)<>\"NOX\"),BN58*INDEX('Damage costs'!$P$16:$P$43,MATCH($B167,'Damage costs'!$C$16:$C$43,0))/1000,BN58*INDEX('Damage costs'!$T$16:$T$43,MATCH($B167,'Damage costs'!$C$16:$C$43,0))/1000),\"\")","v":""},{"$f":"IFERROR(IF(OR($C$168=FALSE,LEFT($B167,3)<>\"NOX\"),BO58*INDEX('Damage costs'!$P$16:$P$43,MATCH($B167,'Damage costs'!$C$16:$C$43,0))/1000,BO58*INDEX('Damage costs'!$T$16:$T$43,MATCH($B167,'Damage costs'!$C$16:$C$43,0))/1000),\"\")","v":""},{"$f":"IFERROR(IF(OR($C$168=FALSE,LEFT($B167,3)<>\"NOX\"),BP58*INDEX('Damage costs'!$P$16:$P$43,MATCH($B167,'Damage costs'!$C$16:$C$43,0))/1000,BP58*INDEX('Damage costs'!$T$16:$T$43,MATCH($B167,'Damage costs'!$C$16:$C$43,0))/1000),\"\")","v":""},{"$f":"IFERROR(IF(OR($C$168=FALSE,LEFT($B167,3)<>\"NOX\"),BQ58*INDEX('Damage costs'!$P$16:$P$43,MATCH($B167,'Damage costs'!$C$16:$C$43,0))/1000,BQ58*INDEX('Damage costs'!$T$16:$T$43,MATCH($B167,'Damage costs'!$C$16:$C$43,0))/1000),\"\")","v":""},{"$f":"IFERROR(IF(OR($C$168=FALSE,LEFT($B167,3)<>\"NOX\"),BR58*INDEX('Damage costs'!$P$16:$P$43,MATCH($B167,'Damage costs'!$C$16:$C$43,0))/1000,BR58*INDEX('Damage costs'!$T$16:$T$43,MATCH($B167,'Damage costs'!$C$16:$C$43,0))/1000),\"\")","v":""},{"$f":"IFERROR(IF(OR($C$168=FALSE,LEFT($B167,3)<>\"NOX\"),BS58*INDEX('Damage costs'!$P$16:$P$43,MATCH($B167,'Damage costs'!$C$16:$C$43,0))/1000,BS58*INDEX('Damage costs'!$T$16:$T$43,MATCH($B167,'Damage costs'!$C$16:$C$43,0))/1000),\"\")","v":""},{"$f":"IFERROR(IF(OR($C$168=FALSE,LEFT($B167,3)<>\"NOX\"),BT58*INDEX('Damage costs'!$P$16:$P$43,MATCH($B167,'Damage costs'!$C$16:$C$43,0))/1000,BT58*INDEX('Damage costs'!$T$16:$T$43,MATCH($B167,'Damage costs'!$C$16:$C$43,0))/1000),\"\")","v":""},{"$f":"IFERROR(IF(OR($C$168=FALSE,LEFT($B167,3)<>\"NOX\"),BU58*INDEX('Damage costs'!$P$16:$P$43,MATCH($B167,'Damage costs'!$C$16:$C$43,0))/1000,BU58*INDEX('Damage costs'!$T$16:$T$43,MATCH($B167,'Damage costs'!$C$16:$C$43,0))/1000),\"\")","v":""},{"$f":"IFERROR(IF(OR($C$168=FALSE,LEFT($B167,3)<>\"NOX\"),BV58*INDEX('Damage costs'!$P$16:$P$43,MATCH($B167,'Damage costs'!$C$16:$C$43,0))/1000,BV58*INDEX('Damage costs'!$T$16:$T$43,MATCH($B167,'Damage costs'!$C$16:$C$43,0))/1000),\"\")","v":""},{"$f":"IFERROR(IF(OR($C$168=FALSE,LEFT($B167,3)<>\"NOX\"),BW58*INDEX('Damage costs'!$P$16:$P$43,MATCH($B167,'Damage costs'!$C$16:$C$43,0))/1000,BW58*INDEX('Damage costs'!$T$16:$T$43,MATCH($B167,'Damage costs'!$C$16:$C$43,0))/1000),\"\")","v":""},{"$f":"IFERROR(IF(OR($C$168=FALSE,LEFT($B167,3)<>\"NOX\"),BX58*INDEX('Damage costs'!$P$16:$P$43,MATCH($B167,'Damage costs'!$C$16:$C$43,0))/1000,BX58*INDEX('Damage costs'!$T$16:$T$43,MATCH($B167,'Damage costs'!$C$16:$C$43,0))/1000),\"\")","v":""},{"$f":"IFERROR(IF(OR($C$168=FALSE,LEFT($B167,3)<>\"NOX\"),BY58*INDEX('Damage costs'!$P$16:$P$43,MATCH($B167,'Damage costs'!$C$16:$C$43,0))/1000,BY58*INDEX('Damage costs'!$T$16:$T$43,MATCH($B167,'Damage costs'!$C$16:$C$43,0))/1000),\"\")","v":""},{"$f":"IFERROR(IF(OR($C$168=FALSE,LEFT($B167,3)<>\"NOX\"),BZ58*INDEX('Damage costs'!$P$16:$P$43,MATCH($B167,'Damage costs'!$C$16:$C$43,0))/1000,BZ58*INDEX('Damage costs'!$T$16:$T$43,MATCH($B167,'Damage costs'!$C$16:$C$43,0))/1000),\"\")","v":""},{"$f":"IFERROR(IF(OR($C$168=FALSE,LEFT($B167,3)<>\"NOX\"),CA58*INDEX('Damage costs'!$P$16:$P$43,MATCH($B167,'Damage costs'!$C$16:$C$43,0))/1000,CA58*INDEX('Damage costs'!$T$16:$T$43,MATCH($B167,'Damage costs'!$C$16:$C$43,0))/1000),\"\")","v":""},{"$f":"IFERROR(IF(OR($C$168=FALSE,LEFT($B167,3)<>\"NOX\"),CB58*INDEX('Damage costs'!$P$16:$P$43,MATCH($B167,'Damage costs'!$C$16:$C$43,0))/1000,CB58*INDEX('Damage costs'!$T$16:$T$43,MATCH($B167,'Damage costs'!$C$16:$C$43,0))/1000),\"\")","v":""},{"$f":"IFERROR(IF(OR($C$168=FALSE,LEFT($B167,3)<>\"NOX\"),CC58*INDEX('Damage costs'!$P$16:$P$43,MATCH($B167,'Damage costs'!$C$16:$C$43,0))/1000,CC58*INDEX('Damage costs'!$T$16:$T$43,MATCH($B167,'Damage costs'!$C$16:$C$43,0))/1000),\"\")","v":""},{"$f":"IFERROR(IF(OR($C$168=FALSE,LEFT($B167,3)<>\"NOX\"),CD58*INDEX('Damage costs'!$P$16:$P$43,MATCH($B167,'Damage costs'!$C$16:$C$43,0))/1000,CD58*INDEX('Damage costs'!$T$16:$T$43,MATCH($B167,'Damage costs'!$C$16:$C$43,0))/1000),\"\")","v":""},{"$f":"IFERROR(IF(OR($C$168=FALSE,LEFT($B167,3)<>\"NOX\"),CE58*INDEX('Damage costs'!$P$16:$P$43,MATCH($B167,'Damage costs'!$C$16:$C$43,0))/1000,CE58*INDEX('Damage costs'!$T$16:$T$43,MATCH($B167,'Damage costs'!$C$16:$C$43,0))/1000),\"\")","v":""},{"$f":"IFERROR(IF(OR($C$168=FALSE,LEFT($B167,3)<>\"NOX\"),CF58*INDEX('Damage costs'!$P$16:$P$43,MATCH($B167,'Damage costs'!$C$16:$C$43,0))/1000,CF58*INDEX('Damage costs'!$T$16:$T$43,MATCH($B167,'Damage costs'!$C$16:$C$43,0))/1000),\"\")","v":""},{"$f":"IFERROR(IF(OR($C$168=FALSE,LEFT($B167,3)<>\"NOX\"),CG58*INDEX('Damage costs'!$P$16:$P$43,MATCH($B167,'Damage costs'!$C$16:$C$43,0))/1000,CG58*INDEX('Damage costs'!$T$16:$T$43,MATCH($B167,'Damage costs'!$C$16:$C$43,0))/1000),\"\")","v":""},{"$f":"IFERROR(IF(OR($C$168=FALSE,LEFT($B167,3)<>\"NOX\"),CH58*INDEX('Damage costs'!$P$16:$P$43,MATCH($B167,'Damage costs'!$C$16:$C$43,0))/1000,CH58*INDEX('Damage costs'!$T$16:$T$43,MATCH($B167,'Damage costs'!$C$16:$C$43,0))/1000),\"\")","v":""},{"$f":"IFERROR(IF(OR($C$168=FALSE,LEFT($B167,3)<>\"NOX\"),CI58*INDEX('Damage costs'!$P$16:$P$43,MATCH($B167,'Damage costs'!$C$16:$C$43,0))/1000,CI58*INDEX('Damage costs'!$T$16:$T$43,MATCH($B167,'Damage costs'!$C$16:$C$43,0))/1000),\"\")","v":""},{"$f":"IFERROR(IF(OR($C$168=FALSE,LEFT($B167,3)<>\"NOX\"),CJ58*INDEX('Damage costs'!$P$16:$P$43,MATCH($B167,'Damage costs'!$C$16:$C$43,0))/1000,CJ58*INDEX('Damage costs'!$T$16:$T$43,MATCH($B167,'Damage costs'!$C$16:$C$43,0))/1000),\"\")","v":""},{"$f":"IFERROR(IF(OR($C$168=FALSE,LEFT($B167,3)<>\"NOX\"),CK58*INDEX('Damage costs'!$P$16:$P$43,MATCH($B167,'Damage costs'!$C$16:$C$43,0))/1000,CK58*INDEX('Damage costs'!$T$16:$T$43,MATCH($B167,'Damage costs'!$C$16:$C$43,0))/1000),\"\")","v":""},{"$f":"IFERROR(IF(OR($C$168=FALSE,LEFT($B167,3)<>\"NOX\"),CL58*INDEX('Damage costs'!$P$16:$P$43,MATCH($B167,'Damage costs'!$C$16:$C$43,0))/1000,CL58*INDEX('Damage costs'!$T$16:$T$43,MATCH($B167,'Damage costs'!$C$16:$C$43,0))/1000),\"\")","v":""},{"$f":"IFERROR(IF(OR($C$168=FALSE,LEFT($B167,3)<>\"NOX\"),CM58*INDEX('Damage costs'!$P$16:$P$43,MATCH($B167,'Damage costs'!$C$16:$C$43,0))/1000,CM58*INDEX('Damage costs'!$T$16:$T$43,MATCH($B167,'Damage costs'!$C$16:$C$43,0))/1000),\"\")","v":""},{"$f":"IFERROR(IF(OR($C$168=FALSE,LEFT($B167,3)<>\"NOX\"),CN58*INDEX('Damage costs'!$P$16:$P$43,MATCH($B167,'Damage costs'!$C$16:$C$43,0))/1000,CN58*INDEX('Damage costs'!$T$16:$T$43,MATCH($B167,'Damage costs'!$C$16:$C$43,0))/1000),\"\")","v":""},{"$f":"IFERROR(IF(OR($C$168=FALSE,LEFT($B167,3)<>\"NOX\"),CO58*INDEX('Damage costs'!$P$16:$P$43,MATCH($B167,'Damage costs'!$C$16:$C$43,0))/1000,CO58*INDEX('Damage costs'!$T$16:$T$43,MATCH($B167,'Damage costs'!$C$16:$C$43,0))/1000),\"\")","v":""},{"$f":"IFERROR(IF(OR($C$168=FALSE,LEFT($B167,3)<>\"NOX\"),CP58*INDEX('Damage costs'!$P$16:$P$43,MATCH($B167,'Damage costs'!$C$16:$C$43,0))/1000,CP58*INDEX('Damage costs'!$T$16:$T$43,MATCH($B167,'Damage costs'!$C$16:$C$43,0))/1000),\"\")","v":""},{"$f":"IFERROR(IF(OR($C$168=FALSE,LEFT($B167,3)<>\"NOX\"),CQ58*INDEX('Damage costs'!$P$16:$P$43,MATCH($B167,'Damage costs'!$C$16:$C$43,0))/1000,CQ58*INDEX('Damage costs'!$T$16:$T$43,MATCH($B167,'Damage costs'!$C$16:$C$43,0))/1000),\"\")","v":""},{"$f":"IFERROR(IF(OR($C$168=FALSE,LEFT($B167,3)<>\"NOX\"),CR58*INDEX('Damage costs'!$P$16:$P$43,MATCH($B167,'Damage costs'!$C$16:$C$43,0))/1000,CR58*INDEX('Damage costs'!$T$16:$T$43,MATCH($B167,'Damage costs'!$C$16:$C$43,0))/1000),\"\")","v":""},{"$f":"IFERROR(IF(OR($C$168=FALSE,LEFT($B167,3)<>\"NOX\"),CS58*INDEX('Damage costs'!$P$16:$P$43,MATCH($B167,'Damage costs'!$C$16:$C$43,0))/1000,CS58*INDEX('Damage costs'!$T$16:$T$43,MATCH($B167,'Damage costs'!$C$16:$C$43,0))/1000),\"\")","v":""},{"$f":"IFERROR(IF(OR($C$168=FALSE,LEFT($B167,3)<>\"NOX\"),CT58*INDEX('Damage costs'!$P$16:$P$43,MATCH($B167,'Damage costs'!$C$16:$C$43,0))/1000,CT58*INDEX('Damage costs'!$T$16:$T$43,MATCH($B167,'Damage costs'!$C$16:$C$43,0))/1000),\"\")","v":""},{"$f":"IFERROR(IF(OR($C$168=FALSE,LEFT($B167,3)<>\"NOX\"),CU58*INDEX('Damage costs'!$P$16:$P$43,MATCH($B167,'Damage costs'!$C$16:$C$43,0))/1000,CU58*INDEX('Damage costs'!$T$16:$T$43,MATCH($B167,'Damage costs'!$C$16:$C$43,0))/1000),\"\")","v":""},{"$f":"IFERROR(IF(OR($C$168=FALSE,LEFT($B167,3)<>\"NOX\"),CV58*INDEX('Damage costs'!$P$16:$P$43,MATCH($B167,'Damage costs'!$C$16:$C$43,0))/1000,CV58*INDEX('Damage costs'!$T$16:$T$43,MATCH($B167,'Damage costs'!$C$16:$C$43,0))/1000),\"\")","v":""},{"$f":"IFERROR(IF(OR($C$168=FALSE,LEFT($B167,3)<>\"NOX\"),CW58*INDEX('Damage costs'!$P$16:$P$43,MATCH($B167,'Damage costs'!$C$16:$C$43,0))/1000,CW58*INDEX('Damage costs'!$T$16:$T$43,MATCH($B167,'Damage costs'!$C$16:$C$43,0))/1000),\"\")","v":""},{"$f":"IFERROR(IF(OR($C$168=FALSE,LEFT($B167,3)<>\"NOX\"),CX58*INDEX('Damage costs'!$P$16:$P$43,MATCH($B167,'Damage costs'!$C$16:$C$43,0))/1000,CX58*INDEX('Damage costs'!$T$16:$T$43,MATCH($B167,'Damage costs'!$C$16:$C$43,0))/1000),\"\")","v":""},{"$f":"IFERROR(IF(OR($C$168=FALSE,LEFT($B167,3)<>\"NOX\"),CY58*INDEX('Damage costs'!$P$16:$P$43,MATCH($B167,'Damage costs'!$C$16:$C$43,0))/1000,CY58*INDEX('Damage costs'!$T$16:$T$43,MATCH($B167,'Damage costs'!$C$16:$C$43,0))/1000),\"\")","v":""}]
[null,"PM10 Used",{"$f":"IF(OR(LEFT(B162,4)=\"PM10\",LEFT(B163,4)=\"PM10\",LEFT(B164,4)=\"PM10\",LEFT(B165,4)=\"PM10\",LEFT(B166,4)=\"PM10\",LEFT(B167,4)=\"PM10\"),TRUE,FALSE)","v":false}]
[]
[null,"Uplift pa","%",{"$f":"'Discount and deflators'!$H$5","v":0.02}]
[null,"Uplift factor",null,{"$f":"IF(D$6=0,0,(1+$D170)^(D$6-'Data Input - General'!$F$22))","v":1},{"$f":"IF(E$6=0,0,(1+$D170)^(E$6-'Data Input - General'!$F$22))","v":1.02},{"$f":"IF(F$6=0,0,(1+$D170)^(F$6-'Data Input - General'!$F$22))","v":1.0404},{"$f":"IF(G$6=0,0,(1+$D170)^(G$6-'Data Input - General'!$F$22))","v":1.0612079999999999},{"$f":"IF(H$6=0,0,(1+$D170)^(H$6-'Data Input - General'!$F$22))","v":1.08243216},{"$f":"IF(I$6=0,0,(1+$D170)^(I$6-'Data Input - General'!$F$22))","v":1.1040808032},{"$f":"IF(J$6=0,0,(1+$D170)^(J$6-'Data Input - General'!$F$22))","v":1.1261624192640001},{"$f":"IF(K$6=0,0,(1+$D170)^(K$6-'Data Input - General'!$F$22))","v":1.1486856676492798},{"$f":"IF(L$6=0,0,(1+$D170)^(L$6-'Data Input - General'!$F$22))","v":1.1716593810022655},{"$f":"IF(M$6=0,0,(1+$D170)^(M$6-'Data Input - General'!$F$22))","v":1.1950925686223108},{"$f":"IF(N$6=0,0,(1+$D170)^(N$6-'Data Input - General'!$F$22))","v":1.2189944199947571},{"$f":"IF(O$6=0,0,(1+$D170)^(O$6-'Data Input - General'!$F$22))","v":1.243374308394652},{"$f":"IF(P$6=0,0,(1+$D170)^(P$6-'Data Input - General'!$F$22))","v":1.2682417945625453},{"$f":"IF(Q$6=0,0,(1+$D170)^(Q$6-'Data Input - General'!$F$22))","v":1.2936066304537961},{"$f":"IF(R$6=0,0,(1+$D170)^(R$6-'Data Input - General'!$F$22))","v":1.3194787630628722},{"$f":"IF(S$6=0,0,(1+$D170)^(S$6-'Data Input - General'!$F$22))","v":1.3458683383241292},{"$f":"IF(T$6=0,0,(1+$D170)^(T$6-'Data Input - General'!$F$22))","v":1.372785705090612},{"$f":"IF(U$6=0,0,(1+$D170)^(U$6-'Data Input - General'!$F$22))","v":1.4002414191924244},{"$f":"IF(V$6=0,0,(1+$D170)^(V$6-'Data Input - General'!$F$22))","v":1.4282462475762727},{"$f":"IF(W$6=0,0,(1+$D170)^(W$6-'Data Input - General'!$F$22))","v":1.4568111725277981},{"$f":"IF(X$6=0,0,(1+$D170)^(X$6-'Data Input - General'!$F$22))","v":1.4859473959783542},{"$f":"IF(Y$6=0,0,(1+$D170)^(Y$6-'Data Input - General'!$F$22))","v":1.5156663438979212},{"$f":"IF(Z$6=0,0,(1+$D170)^(Z$6-'Data Input - General'!$F$22))","v":1.5459796707758797},{"$f":"IF(AA$6=0,0,(1+$D170)^(AA$6-'Data Input - General'!$F$22))","v":1.576899264191397},{"$f":"IF(AB$6=0,0,(1+$D170)^(AB$6-'Data Input - General'!$F$22))","v":1.608437249475225},{"$f":"IF(AC$6=0,0,(1+$D170)^(AC$6-'Data Input - General'!$F$22))","v":1.6406059944647295},{"$f":"IF(AD$6=0,0,(1+$D170)^(AD$6-'Data Input - General'!$F$22))","v":1.6734181143540243},{"$f":"IF(AE$6=0,0,(1+$D170)^(AE$6-'Data Input - General'!$F$22))","v":1.7068864766411045},{"$f":"IF(AF$6=0,0,(1+$D170)^(AF$6-'Data Input - General'!$F$22))","v":1.7410242061739269},{"$f":"IF(AG$6=0,0,(1+$D170)^(AG$6-'Data Input - General'!$F$22))","v":1.7758446902974052},{"$f":"IF(AH$6=0,0,(1+$D170)^(AH$6-'Data Input - General'!$F$22))","v":1.8113615841033535},{"$f":"IF(AI$6=0,0,(1+$D170)^(AI$6-'Data Input - General'!$F$22))","v":0},{"$f":"IF(AJ$6=0,0,(1+$D170)^(AJ$6-'Data Input - General'!$F$22))","v":0},{"$f":"IF(AK$6=0,0,(1+$D170)^(AK$6-'Data Input - General'!$F$22))","v":0},{"$f":"IF(AL$6=0,0,(1+$D170)^(AL$6-'Data Input - General'!$F$22))","v":0},{"$f":"IF(AM$6=0,0,(1+$D170)^(AM$6-'Data Input - General'!$F$22))","v":0},{"$f":"IF(AN$6=0,0,(1+$D170)^(AN$6-'Data Input - General'!$F$22))","v":0},{"$f":"IF(AO$6=0,0,(1+$D170)^(AO$6-'Data Input - General'!$F$22))","v":0},{"$f":"IF(AP$6=0,0,(1+$D170)^(AP$6-'Data Input - General'!$F$22))","v":0},{"$f":"IF(AQ$6=0,0,(1+$D170)^(AQ$6-'Data Input - General'!$F$22))","v":0},{"$f":"IF(AR$6=0,0,(1+$D170)^(AR$6-'Data Input - General'!$F$22))","v":0},{"$f":"IF(AS$6=0,0,(1+$D170)^(AS$6-'Data Input - General'!$F$22))","v":0},{"$f":"IF(AT$6=0,0,(1+$D170)^(AT$6-'Data Input - General'!$F$22))","v":0},{"$f":"IF(AU$6=0,0,(1+$D170)^(AU$6-'Data Input - General'!$F$22))","v":0},{"$f":"IF(AV$6=0,0,(1+$D170)^(AV$6-'Data Input - General'!$F$22))","v":0},{"$f":"IF(AW$6=0,0,(1+$D170)^(AW$6-'Data Input - General'!$F$22))","v":0},{"$f":"IF(AX$6=0,0,(1+$D170)^(AX$6-'Data Input - General'!$F$22))","v":0},{"$f":"IF(AY$6=0,0,(1+$D170)^(AY$6-'Data Input - General'!$F$22))","v":0},{"$f":"IF(AZ$6=0,0,(1+$D170)^(AZ$6-'Data Input - General'!$F$22))","v":0},{"$f":"IF(BA$6=0,0,(1+$D170)^(BA$6-'Data Input - General'!$F$22))","v":0},{"$f":"IF(BB$6=0,0,(1+$D170)^(BB$6-'Data Input - General'!$F$22))","v":0},{"$f":"IF(BC$6=0,0,(1+$D170)^(BC$6-'Data Input - General'!$F$22))","v":0},{"$f":"IF(BD$6=0,0,(1+$D170)^(BD$6-'Data Input - General'!$F$22))","v":0},{"$f":"IF(BE$6=0,0,(1+$D170)^(BE$6-'Data Input - General'!$F$22))","v":0},{"$f":"IF(BF$6=0,0,(1+$D170)^(BF$6-'Data Input - General'!$F$22))","v":0},{"$f":"IF(BG$6=0,0,(1+$D170)^(BG$6-'Data Input - General'!$F$22))","v":0},{"$f":"IF(BH$6=0,0,(1+$D170)^(BH$6-'Data Input - General'!$F$22))","v":0},{"$f":"IF(BI$6=0,0,(1+$D170)^(BI$6-'Data Input - General'!$F$22))","v":0},{"$f":"IF(BJ$6=0,0,(1+$D170)^(BJ$6-'Data Input - General'!$F$22))","v":0},{"$f":"IF(BK$6=0,0,(1+$D170)^(BK$6-'Data Input - General'!$F$22))","v":0},{"$f":"IF(BL$6=0,0,(1+$D170)^(BL$6-'Data Input - General'!$F$22))","v":0},{"$f":"IF(BM$6=0,0,(1+$D170)^(BM$6-'Data Input - General'!$F$22))","v":0},{"$f":"IF(BN$6=0,0,(1+$D170)^(BN$6-'Data Input - General'!$F$22))","v":0},{"$f":"IF(BO$6=0,0,(1+$D170)^(BO$6-'Data Input - General'!$F$22))","v":0},{"$f":"IF(BP$6=0,0,(1+$D170)^(BP$6-'Data Input - General'!$F$22))","v":0},{"$f":"IF(BQ$6=0,0,(1+$D170)^(BQ$6-'Data Input - General'!$F$22))","v":0},{"$f":"IF(BR$6=0,0,(1+$D170)^(BR$6-'Data Input - General'!$F$22))","v":0},{"$f":"IF(BS$6=0,0,(1+$D170)^(BS$6-'Data Input - General'!$F$22))","v":0},{"$f":"IF(BT$6=0,0,(1+$D170)^(BT$6-'Data Input - General'!$F$22))","v":0},{"$f":"IF(BU$6=0,0,(1+$D170)^(BU$6-'Data Input - General'!$F$22))","v":0},{"$f":"IF(BV$6=0,0,(1+$D170)^(BV$6-'Data Input - General'!$F$22))","v":0},{"$f":"IF(BW$6=0,0,(1+$D170)^(BW$6-'Data Input - General'!$F$22))","v":0},{"$f":"IF(BX$6=0,0,(1+$D170)^(BX$6-'Data Input - General'!$F$22))","v":0},{"$f":"IF(BY$6=0,0,(1+$D170)^(BY$6-'Data Input - General'!$F$22))","v":0},{"$f":"IF(BZ$6=0,0,(1+$D170)^(BZ$6-'Data Input - General'!$F$22))","v":0},{"$f":"IF(CA$6=0,0,(1+$D170)^(CA$6-'Data Input - General'!$F$22))","v":0},{"$f":"IF(CB$6=0,0,(1+$D170)^(CB$6-'Data Input - General'!$F$22))","v":0},{"$f":"IF(CC$6=0,0,(1+$D170)^(CC$6-'Data Input - General'!$F$22))","v":0},{"$f":"IF(CD$6=0,0,(1+$D170)^(CD$6-'Data Input - General'!$F$22))","v":0},{"$f":"IF(CE$6=0,0,(1+$D170)^(CE$6-'Data Input - General'!$F$22))","v":0},{"$f":"IF(CF$6=0,0,(1+$D170)^(CF$6-'Data Input - General'!$F$22))","v":0},{"$f":"IF(CG$6=0,0,(1+$D170)^(CG$6-'Data Input - General'!$F$22))","v":0},{"$f":"IF(CH$6=0,0,(1+$D170)^(CH$6-'Data Input - General'!$F$22))","v":0},{"$f":"IF(CI$6=0,0,(1+$D170)^(CI$6-'Data Input - General'!$F$22))","v":0},{"$f":"IF(CJ$6=0,0,(1+$D170)^(CJ$6-'Data Input - General'!$F$22))","v":0},{"$f":"IF(CK$6=0,0,(1+$D170)^(CK$6-'Data Input - General'!$F$22))","v":0},{"$f":"IF(CL$6=0,0,(1+$D170)^(CL$6-'Data Input - General'!$F$22))","v":0},{"$f":"IF(CM$6=0,0,(1+$D170)^(CM$6-'Data Input - General'!$F$22))","v":0},{"$f":"IF(CN$6=0,0,(1+$D170)^(CN$6-'Data Input - General'!$F$22))","v":0},{"$f":"IF(CO$6=0,0,(1+$D170)^(CO$6-'Data Input - General'!$F$22))","v":0},{"$f":"IF(CP$6=0,0,(1+$D170)^(CP$6-'Data Input - General'!$F$22))","v":0},{"$f":"IF(CQ$6=0,0,(1+$D170)^(CQ$6-'Data Input - General'!$F$22))","v":0},{"$f":"IF(CR$6=0,0,(1+$D170)^(CR$6-'Data Input - General'!$F$22))","v":0},{"$f":"IF(CS$6=0,0,(1+$D170)^(CS$6-'Data Input - General'!$F$22))","v":0},{"$f":"IF(CT$6=0,0,(1+$D170)^(CT$6-'Data Input - General'!$F$22))","v":0},{"$f":"IF(CU$6=0,0,(1+$D170)^(CU$6-'Data Input - General'!$F$22))","v":0},{"$f":"IF(CV$6=0,0,(1+$D170)^(CV$6-'Data Input - General'!$F$22))","v":0},{"$f":"IF(CW$6=0,0,(1+$D170)^(CW$6-'Data Input - General'!$F$22))","v":0},{"$f":"IF(CX$6=0,0,(1+$D170)^(CX$6-'Data Input - General'!$F$22))","v":0},{"$f":"IF(CY$6=0,0,(1+$D170)^(CY$6-'Data Input - General'!$F$22))","v":0}]
[null,"Total value","£000's",{"$f":"SUM(D162:D167)*D171","v":0},{"$f":"SUM(E162:E167)*E171","v":0},{"$f":"SUM(F162:F167)*F171","v":0},0,0,0,0,0,0,0,0,0,0,0,0,0,0,0,0,0,0,0,0,0,0,0,0,0,0,0,0,0,{"$f":"SUM(AJ162:AJ167)*AJ171","v":0},0,0,0,0,0,0,0,0,0,0,0,0,0,0,0,0,0,0,0,0,0,0,0,0,0,0,0,{"$f":"SUM(BL162:BL167)*BL171","v":0},0,0,0,0,0,0,0,0,0,0,0,0,0,0,0,0,0,0,0,0,0,0,0,0,0,0,0,0,0,0,0,0,0,0,0,0,0,0,0]
[null,"Discounted total value","£000's",{"$f":"D172*D$7","v":0},0,0,0,0,0,0,0,0,0,0,0,0,0,0,0,0,0,0,0,0,0,0,0,0,0,0,0,0,0,0,0,0,0,0,0,0,0,0,0,0,0,0,0,0,0,0,0,0,0,0,0,0,0,0,0,0,0,0,0,0,0,0,0,{"$f":"BP172*BP$7","v":0},0,0,0,0,0,0,0,0,0,0,0,0,0,0,0,0,0,0,0,0,0,0,0,0,0,0,0,0,0,0,0,0,0,0,0]
[]
[null,"Low high capex"]
[]
[null,"Low high range","%",{"$f":"'Data Input - Option 5'!F34","v":0}]
[]
[null,"Low high opex"]
[]
[null,"Low high range","%",{"$f":"'Data Input - Option 5'!F54","v":0}]
[]
[null,"Low high WACC"]
[]
[null,"Low WACC","%",{"$f":"'Data Input - General'!F16","v":0.06}]
[null,"Annualised payment","£000's",{"$f":"IFERROR(-PMT($D$185,SUM('Data Input - General'!$K$26:$K$28),D20*1000)/1000,0)","v":0}]
[null,"Annual value","£000's",{"$f":"IF(SUM($D$12:D$12)=0,0,$D$186)","v":0},{"$f":"IF(SUM($D$12:E$12)=0,0,$D$186)","v":0},{"$f":"IF(SUM($D$12:F$12)=0,0,$D$186)","v":0},{"$f":"IF(SUM($D$12:G$12)=0,0,$D$186)","v":0},{"$f":"IF(SUM($D$12:H$12)=0,0,$D$186)","v":0},{"$f":"IF(SUM($D$12:I$12)=0,0,$D$186)","v":0},{"$f":"IF(SUM($D$12:J$12)=0,0,$D$186)","v":0},{"$f":"IF(SUM($D$12:K$12)=0,0,$D$186)","v":0},{"$f":"IF(SUM($D$12:L$12)=0,0,$D$186)","v":0},{"$f":"IF(SUM($D$12:M$12)=0,0,$D$186)","v":0},{"$f":"IF(SUM($D$12:N$12)=0,0,$D$186)","v":0},{"$f":"IF(SUM($D$12:O$12)=0,0,$D$186)","v":0},{"$f":"IF(SUM($D$12:P$12)=0,0,$D$186)","v":0},{"$f":"IF(SUM($D$12:Q$12)=0,0,$D$186)","v":0},{"$f":"IF(SUM($D$12:R$12)=0,0,$D$186)","v":0},{"$f":"IF(SUM($D$12:S$12)=0,0,$D$186)","v":0},{"$f":"IF(SUM($D$12:T$12)=0,0,$D$186)","v":0},{"$f":"IF(SUM($D$12:U$12)=0,0,$D$186)","v":0},{"$f":"IF(SUM($D$12:V$12)=0,0,$D$186)","v":0},{"$f":"IF(SUM($D$12:W$12)=0,0,$D$186)","v":0},{"$f":"IF(SUM($D$12:X$12)=0,0,$D$186)","v":0},{"$f":"IF(SUM($D$12:Y$12)=0,0,$D$186)","v":0},{"$f":"IF(SUM($D$12:Z$12)=0,0,$D$186)","v":0},{"$f":"IF(SUM($D$12:AA$12)=0,0,$D$186)","v":0},{"$f":"IF(SUM($D$12:AB$12)=0,0,$D$186)","v":0},{"$f":"IF(SUM($D$12:AC$12)=0,0,$D$186)","v":0},{"$f":"IF(SUM($D$12:AD$12)=0,0,$D$186)","v":0},{"$f":"IF(SUM($D$12:AE$12)=0,0,$D$186)","v":0},{"$f":"IF(SUM($D$12:AF$12)=0,0,$D$186)","v":0},{"$f":"IF(SUM($D$12:AG$12)=0,0,$D$186)","v":0},{"$f":"IF(SUM($D$12:AH$12)=0,0,$D$186)","v":0},{"$f":"IF(SUM($D$12:AI$12)=0,0,$D$186)","v":0},{"$f":"IF(SUM($D$12:AJ$12)=0,0,$D$186)","v":0},{"$f":"IF(SUM($D$12:AK$12)=0,0,$D$186)","v":0},{"$f":"IF(SUM($D$12:AL$12)=0,0,$D$186)","v":0},{"$f":"IF(SUM($D$12:AM$12)=0,0,$D$186)","v":0},{"$f":"IF(SUM($D$12:AN$12)=0,0,$D$186)","v":0},{"$f":"IF(SUM($D$12:AO$12)=0,0,$D$186)","v":0},{"$f":"IF(SUM($D$12:AP$12)=0,0,$D$186)","v":0},{"$f":"IF(SUM($D$12:AQ$12)=0,0,$D$186)","v":0},{"$f":"IF(SUM($D$12:AR$12)=0,0,$D$186)","v":0},{"$f":"IF(SUM($D$12:AS$12)=0,0,$D$186)","v":0},{"$f":"IF(SUM($D$12:AT$12)=0,0,$D$186)","v":0},{"$f":"IF(SUM($D$12:AU$12)=0,0,$D$186)","v":0},{"$f":"IF(SUM($D$12:AV$12)=0,0,$D$186)","v":0},{"$f":"IF(SUM($D$12:AW$12)=0,0,$D$186)","v":0},{"$f":"IF(SUM($D$12:AX$12)=0,0,$D$186)","v":0},{"$f":"IF(SUM($D$12:AY$12)=0,0,$D$186)","v":0},{"$f":"IF(SUM($D$12:AZ$12)=0,0,$D$186)","v":0},{"$f":"IF(SUM($D$12:BA$12)=0,0,$D$186)","v":0},{"$f":"IF(SUM($D$12:BB$12)=0,0,$D$186)","v":0},{"$f":"IF(SUM($D$12:BC$12)=0,0,$D$186)","v":0},{"$f":"IF(SUM($D$12:BD$12)=0,0,$D$186)","v":0},{"$f":"IF(SUM($D$12:BE$12)=0,0,$D$186)","v":0},{"$f":"IF(SUM($D$12:BF$12)=0,0,$D$186)","v":0},{"$f":"IF(SUM($D$12:BG$12)=0,0,$D$186)","v":0},{"$f":"IF(SUM($D$12:BH$12)=0,0,$D$186)","v":0},{"$f":"IF(SUM($D$12:BI$12)=0,0,$D$186)","v":0},{"$f":"IF(SUM($D$12:BJ$12)=0,0,$D$186)","v":0},{"$f":"IF(SUM($D$12:BK$12)=0,0,$D$186)","v":0},{"$f":"IF(SUM($D$12:BL$12)=0,0,$D$186)","v":0},{"$f":"IF(SUM($D$12:BM$12)=0,0,$D$186)","v":0},{"$f":"IF(SUM($D$12:BN$12)=0,0,$D$186)","v":0},{"$f":"IF(SUM($D$12:BO$12)=0,0,$D$186)","v":0},{"$f":"IF(SUM($D$12:BP$12)=0,0,$D$186)","v":0},{"$f":"IF(SUM($D$12:BQ$12)=0,0,$D$186)","v":0},{"$f":"IF(SUM($D$12:BR$12)=0,0,$D$186)","v":0},{"$f":"IF(SUM($D$12:BS$12)=0,0,$D$186)","v":0},{"$f":"IF(SUM($D$12:BT$12)=0,0,$D$186)","v":0},{"$f":"IF(SUM($D$12:BU$12)=0,0,$D$186)","v":0},{"$f":"IF(SUM($D$12:BV$12)=0,0,$D$186)","v":0},{"$f":"IF(SUM($D$12:BW$12)=0,0,$D$186)","v":0},{"$f":"IF(SUM($D$12:BX$12)=0,0,$D$186)","v":0},{"$f":"IF(SUM($D$12:BY$12)=0,0,$D$186)","v":0},{"$f":"IF(SUM($D$12:BZ$12)=0,0,$D$186)","v":0},{"$f":"IF(SUM($D$12:CA$12)=0,0,$D$186)","v":0},{"$f":"IF(SUM($D$12:CB$12)=0,0,$D$186)","v":0},{"$f":"IF(SUM($D$12:CC$12)=0,0,$D$186)","v":0},{"$f":"IF(SUM($D$12:CD$12)=0,0,$D$186)","v":0},{"$f":"IF(SUM($D$12:CE$12)=0,0,$D$186)","v":0},{"$f":"IF(SUM($D$12:CF$12)=0,0,$D$186)","v":0},{"$f":"IF(SUM($D$12:CG$12)=0,0,$D$186)","v":0},{"$f":"IF(SUM($D$12:CH$12)=0,0,$D$186)","v":0},{"$f":"IF(SUM($D$12:CI$12)=0,0,$D$186)","v":0},{"$f":"IF(SUM($D$12:CJ$12)=0,0,$D$186)","v":0},{"$f":"IF(SUM($D$12:CK$12)=0,0,$D$186)","v":0},{"$f":"IF(SUM($D$12:CL$12)=0,0,$D$186)","v":0},{"$f":"IF(SUM($D$12:CM$12)=0,0,$D$186)","v":0},{"$f":"IF(SUM($D$12:CN$12)=0,0,$D$186)","v":0},{"$f":"IF(SUM($D$12:CO$12)=0,0,$D$186)","v":0},{"$f":"IF(SUM($D$12:CP$12)=0,0,$D$186)","v":0},{"$f":"IF(SUM($D$12:CQ$12)=0,0,$D$186)","v":0},{"$f":"IF(SUM($D$12:CR$12)=0,0,$D$186)","v":0},{"$f":"IF(SUM($D$12:CS$12)=0,0,$D$186)","v":0},{"$f":"IF(SUM($D$12:CT$12)=0,0,$D$186)","v":0},{"$f":"IF(SUM($D$12:CU$12)=0,0,$D$186)","v":0},{"$f":"IF(SUM($D$12:CV$12)=0,0,$D$186)","v":0},{"$f":"IF(SUM($D$12:CW$12)=0,0,$D$186)","v":0},{"$f":"IF(SUM($D$12:CX$12)=0,0,$D$186)","v":0},{"$f":"IF(SUM($D$12:CY$12)=0,0,$D$186)","v":0}]
[null,"Discounted WACC","£000's",{"$f":"D187*D$7","v":0},0,0,0,0,0,0,0,0,0,0,0,0,0,0,0,0,0,0,0,0,0,0,0,0,0,0,0,0,0,0,0,0,0,0,0,0,0,0,0,0,0,0,0,0,0,0,0,0,0,0,0,0,0,0,0,0,0,0,0,0,0,0,0,{"$f":"BP187*BP$7","v":0},0,0,0,0,0,0,0,0,0,0,0,0,0,0,0,0,0,0,0,0,0,0,0,0,0,0,0,0,0,0,0,0,0,0,0]
[]
[null,"Financing costs"]
[null,"Financing costs (if entered manually)","£000's",{"$f":"'Data Input - Option 5'!H41","v":0},{"$f":"'Data Input - Option 5'!I41","v":0},{"$f":"'Data Input - Option 5'!J41","v":0},{"$f":"'Data Input - Option 5'!K41","v":0},{"$f":"'Data Input - Option 5'!L41","v":0},{"$f":"'Data Input - Option 5'!M41","v":0},{"$f":"'Data Input - Option 5'!N41","v":0},{"$f":"'Data Input - Option 5'!O41","v":0},{"$f":"'Data Input - Option 5'!P41","v":0},{"$f":"'Data Input - Option 5'!Q41","v":0},{"$f":"'Data Input - Option 5'!R41","v":0},{"$f":"'Data Input - Option 5'!S41","v":0},{"$f":"'Data Input - Option 5'!T41","v":0},{"$f":"'Data Input - Option 5'!U41","v":0},{"$f":"'Data Input - Option 5'!V41","v":0},{"$f":"'Data Input - Option 5'!W41","v":0},{"$f":"'Data Input - Option 5'!X41","v":0},{"$f":"'Data Input - Option 5'!Y41","v":0},{"$f":"'Data Input - Option 5'!Z41","v":0},{"$f":"'Data Input - Option 5'!AA41","v":0},{"$f":"'Data Input - Option 5'!AB41","v":0},{"$f":"'Data Input - Option 5'!AC41","v":0},{"$f":"'Data Input - Option 5'!AD41","v":0},{"$f":"'Data Input - Option 5'!AE41","v":0},{"$f":"'Data Input - Option 5'!AF41","v":0},{"$f":"'Data Input - Option 5'!AG41","v":0},{"$f":"'Data Input - Option 5'!AH41","v":0},{"$f":"'Data Input - Option 5'!AI41","v":0},{"$f":"'Data Input - Option 5'!AJ41","v":0},{"$f":"'Data Input - Option 5'!AK41","v":0},{"$f":"'Data Input - Option 5'!AL41","v":0},{"$f":"'Data Input - Option 5'!AM41","v":0},{"$f":"'Data Input - Option 5'!AN41","v":0},{"$f":"'Data Input - Option 5'!AO41","v":0},{"$f":"'Data Input - Option 5'!AP41","v":0},{"$f":"'Data Input - Option 5'!AQ41","v":0},{"$f":"'Data Input - Option 5'!AR41","v":0},{"$f":"'Data Input - Option 5'!AS41","v":0},{"$f":"'Data Input - Option 5'!AT41","v":0},{"$f":"'Data Input - Option 5'!AU41","v":0},{"$f":"'Data Input - Option 5'!AV41","v":0},{"$f":"'Data Input - Option 5'!AW41","v":0},{"$f":"'Data Input - Option 5'!AX41","v":0},{"$f":"'Data Input - Option 5'!AY41","v":0},{"$f":"'Data Input - Option 5'!AZ41","v":0},{"$f":"'Data Input - Option 5'!BA41","v":0},{"$f":"'Data Input - Option 5'!BB41","v":0},{"$f":"'Data Input - Option 5'!BC41","v":0},{"$f":"'Data Input - Option 5'!BD41","v":0},{"$f":"'Data Input - Option 5'!BE41","v":0},{"$f":"'Data Input - Option 5'!BF41","v":0},{"$f":"'Data Input - Option 5'!BG41","v":0},{"$f":"'Data Input - Option 5'!BH41","v":0},{"$f":"'Data Input - Option 5'!BI41","v":0},{"$f":"'Data Input - Option 5'!BJ41","v":0},{"$f":"'Data Input - Option 5'!BK41","v":0},{"$f":"'Data Input - Option 5'!BL41","v":0},{"$f":"'Data Input - Option 5'!BM41","v":0},{"$f":"'Data Input - Option 5'!BN41","v":0},{"$f":"'Data Input - Option 5'!BO41","v":0},{"$f":"'Data Input - Option 5'!BP41","v":0},{"$f":"'Data Input - Option 5'!BQ41","v":0},{"$f":"'Data Input - Option 5'!BR41","v":0},{"$f":"'Data Input - Option 5'!BS41","v":0},{"$f":"'Data Input - Option 5'!BT41","v":0},{"$f":"'Data Input - Option 5'!BU41","v":0},{"$f":"'Data Input - Option 5'!BV41","v":0},{"$f":"'Data Input - Option 5'!BW41","v":0},{"$f":"'Data Input - Option 5'!BX41","v":0},{"$f":"'Data Input - Option 5'!BY41","v":0},{"$f":"'Data Input - Option 5'!BZ41","v":0},{"$f":"'Data Input - Option 5'!CA41","v":0},{"$f":"'Data Input - Option 5'!CB41","v":0},{"$f":"'Data Input - Option 5'!CC41","v":0},{"$f":"'Data Input - Option 5'!CD41","v":0},{"$f":"'Data Input - Option 5'!CE41","v":0},{"$f":"'Data Input - Option 5'!CF41","v":0},{"$f":"'Data Input - Option 5'!CG41","v":0},{"$f":"'Data Input - Option 5'!CH41","v":0},{"$f":"'Data Input - Option 5'!CI41","v":0},{"$f":"'Data Input - Option 5'!CJ41","v":0},{"$f":"'Data Input - Option 5'!CK41","v":0},{"$f":"'Data Input - Option 5'!CL41","v":0},{"$f":"'Data Input - Option 5'!CM41","v":0},{"$f":"'Data Input - Option 5'!CN41","v":0},{"$f":"'Data Input - Option 5'!CO41","v":0},{"$f":"'Data Input - Option 5'!CP41","v":0},{"$f":"'Data Input - Option 5'!CQ41","v":0},{"$f":"'Data Input - Option 5'!CR41","v":0},{"$f":"'Data Input - Option 5'!CS41","v":0},{"$f":"'Data Input - Option 5'!CT41","v":0},{"$f":"'Data Input - Option 5'!CU41","v":0},{"$f":"'Data Input - Option 5'!CV41","v":0},{"$f":"'Data Input - Option 5'!CW41","v":0},{"$f":"'Data Input - Option 5'!CX41","v":0},{"$f":"'Data Input - Option 5'!CY41","v":0},{"$f":"'Data Input - Option 5'!CZ41","v":0},{"$f":"'Data Input - Option 5'!DA41","v":0},{"$f":"'Data Input - Option 5'!DB41","v":0},{"$f":"'Data Input - Option 5'!DC41","v":0}]
[null,"Discounted finacning","£000's",{"$f":"D191*D$7","v":0},0,0,0,0,0,0,0,0,0,0,0,0,0,0,0,0,0,0,0,0,0,0,0,0,0,0,0,0,0,0,0,0,0,0,0,0,0,0,0,0,0,0,0,0,0,0,0,0,0,0,0,0,0,0,0,0,0,0,0,0,0,0,0,{"$f":"BP191*BP$7","v":0},0,0,0,0,0,0,0,0,0,0,0,0,0,0,0,0,0,0,0,0,0,0,0,0,0,0,0,0,0,0,0,0,0,0,0]
[]
[null,"Total capex","£000's",{"$f":"IF('Data Input - Option 5'!$F$37=\"Yes\",D192+D13,D188)","v":0},{"$f":"IF('Data Input - Option 5'!$F$37=\"Yes\",E192+E13,E188)","v":0},{"$f":"IF('Data Input - Option 5'!$F$37=\"Yes\",F192+F13,F188)","v":0},{"$f":"IF('Data Input - Option 5'!$F$37=\"Yes\",G192+G13,G188)","v":0},{"$f":"IF('Data Input - Option 5'!$F$37=\"Yes\",H192+H13,H188)","v":0},{"$f":"IF('Data Input - Option 5'!$F$37=\"Yes\",I192+I13,I188)","v":0},{"$f":"IF('Data Input - Option 5'!$F$37=\"Yes\",J192+J13,J188)","v":0},{"$f":"IF('Data Input - Option 5'!$F$37=\"Yes\",K192+K13,K188)","v":0},{"$f":"IF('Data Input - Option 5'!$F$37=\"Yes\",L192+L13,L188)","v":0},{"$f":"IF('Data Input - Option 5'!$F$37=\"Yes\",M192+M13,M188)","v":0},{"$f":"IF('Data Input - Option 5'!$F$37=\"Yes\",N192+N13,N188)","v":0},{"$f":"IF('Data Input - Option 5'!$F$37=\"Yes\",O192+O13,O188)","v":0},{"$f":"IF('Data Input - Option 5'!$F$37=\"Yes\",P192+P13,P188)","v":0},{"$f":"IF('Data Input - Option 5'!$F$37=\"Yes\",Q192+Q13,Q188)","v":0},{"$f":"IF('Data Input - Option 5'!$F$37=\"Yes\",R192+R13,R188)","v":0},{"$f":"IF('Data Input - Option 5'!$F$37=\"Yes\",S192+S13,S188)","v":0},{"$f":"IF('Data Input - Option 5'!$F$37=\"Yes\",T192+T13,T188)","v":0},{"$f":"IF('Data Input - Option 5'!$F$37=\"Yes\",U192+U13,U188)","v":0},{"$f":"IF('Data Input - Option 5'!$F$37=\"Yes\",V192+V13,V188)","v":0},{"$f":"IF('Data Input - Option 5'!$F$37=\"Yes\",W192+W13,W188)","v":0},{"$f":"IF('Data Input - Option 5'!$F$37=\"Yes\",X192+X13,X188)","v":0},{"$f":"IF('Data Input - Option 5'!$F$37=\"Yes\",Y192+Y13,Y188)","v":0},{"$f":"IF('Data Input - Option 5'!$F$37=\"Yes\",Z192+Z13,Z188)","v":0},{"$f":"IF('Data Input - Option 5'!$F$37=\"Yes\",AA192+AA13,AA188)","v":0},{"$f":"IF('Data Input - Option 5'!$F$37=\"Yes\",AB192+AB13,AB188)","v":0},{"$f":"IF('Data Input - Option 5'!$F$37=\"Yes\",AC192+AC13,AC188)","v":0},{"$f":"IF('Data Input - Option 5'!$F$37=\"Yes\",AD192+AD13,AD188)","v":0},{"$f":"IF('Data Input - Option 5'!$F$37=\"Yes\",AE192+AE13,AE188)","v":0},{"$f":"IF('Data Input - Option 5'!$F$37=\"Yes\",AF192+AF13,AF188)","v":0},{"$f":"IF('Data Input - Option 5'!$F$37=\"Yes\",AG192+AG13,AG188)","v":0},{"$f":"IF('Data Input - Option 5'!$F$37=\"Yes\",AH192+AH13,AH188)","v":0},{"$f":"IF('Data Input - Option 5'!$F$37=\"Yes\",AI192+AI13,AI188)","v":0},{"$f":"IF('Data Input - Option 5'!$F$37=\"Yes\",AJ192+AJ13,AJ188)","v":0},{"$f":"IF('Data Input - Option 5'!$F$37=\"Yes\",AK192+AK13,AK188)","v":0},{"$f":"IF('Data Input - Option 5'!$F$37=\"Yes\",AL192+AL13,AL188)","v":0},{"$f":"IF('Data Input - Option 5'!$F$37=\"Yes\",AM192+AM13,AM188)","v":0},{"$f":"IF('Data Input - Option 5'!$F$37=\"Yes\",AN192+AN13,AN188)","v":0},{"$f":"IF('Data Input - Option 5'!$F$37=\"Yes\",AO192+AO13,AO188)","v":0},{"$f":"IF('Data Input - Option 5'!$F$37=\"Yes\",AP192+AP13,AP188)","v":0},{"$f":"IF('Data Input - Option 5'!$F$37=\"Yes\",AQ192+AQ13,AQ188)","v":0},{"$f":"IF('Data Input - Option 5'!$F$37=\"Yes\",AR192+AR13,AR188)","v":0},{"$f":"IF('Data Input - Option 5'!$F$37=\"Yes\",AS192+AS13,AS188)","v":0},{"$f":"IF('Data Input - Option 5'!$F$37=\"Yes\",AT192+AT13,AT188)","v":0},{"$f":"IF('Data Input - Option 5'!$F$37=\"Yes\",AU192+AU13,AU188)","v":0},{"$f":"IF('Data Input - Option 5'!$F$37=\"Yes\",AV192+AV13,AV188)","v":0},{"$f":"IF('Data Input - Option 5'!$F$37=\"Yes\",AW192+AW13,AW188)","v":0},{"$f":"IF('Data Input - Option 5'!$F$37=\"Yes\",AX192+AX13,AX188)","v":0},{"$f":"IF('Data Input - Option 5'!$F$37=\"Yes\",AY192+AY13,AY188)","v":0},{"$f":"IF('Data Input - Option 5'!$F$37=\"Yes\",AZ192+AZ13,AZ188)","v":0},{"$f":"IF('Data Input - Option 5'!$F$37=\"Yes\",BA192+BA13,BA188)","v":0},{"$f":"IF('Data Input - Option 5'!$F$37=\"Yes\",BB192+BB13,BB188)","v":0},{"$f":"IF('Data Input - Option 5'!$F$37=\"Yes\",BC192+BC13,BC188)","v":0},{"$f":"IF('Data Input - Option 5'!$F$37=\"Yes\",BD192+BD13,BD188)","v":0},{"$f":"IF('Data Input - Option 5'!$F$37=\"Yes\",BE192+BE13,BE188)","v":0},{"$f":"IF('Data Input - Option 5'!$F$37=\"Yes\",BF192+BF13,BF188)","v":0},{"$f":"IF('Data Input - Option 5'!$F$37=\"Yes\",BG192+BG13,BG188)","v":0},{"$f":"IF('Data Input - Option 5'!$F$37=\"Yes\",BH192+BH13,BH188)","v":0},{"$f":"IF('Data Input - Option 5'!$F$37=\"Yes\",BI192+BI13,BI188)","v":0},{"$f":"IF('Data Input - Option 5'!$F$37=\"Yes\",BJ192+BJ13,BJ188)","v":0},{"$f":"IF('Data Input - Option 5'!$F$37=\"Yes\",BK192+BK13,BK188)","v":0},{"$f":"IF('Data Input - Option 5'!$F$37=\"Yes\",BL192+BL13,BL188)","v":0},{"$f":"IF('Data Input - Option 5'!$F$37=\"Yes\",BM192+BM13,BM188)","v":0},{"$f":"IF('Data Input - Option 5'!$F$37=\"Yes\",BN192+BN13,BN188)","v":0},{"$f":"IF('Data Input - Option 5'!$F$37=\"Yes\",BO192+BO13,BO188)","v":0},{"$f":"IF('Data Input - Option 5'!$F$37=\"Yes\",BP192+BP13,BP188)","v":0},{"$f":"IF('Data Input - Option 5'!$F$37=\"Yes\",BQ192+BQ13,BQ188)","v":0},{"$f":"IF('Data Input - Option 5'!$F$37=\"Yes\",BR192+BR13,BR188)","v":0},{"$f":"IF('Data Input - Option 5'!$F$37=\"Yes\",BS192+BS13,BS188)","v":0},{"$f":"IF('Data Input - Option 5'!$F$37=\"Yes\",BT192+BT13,BT188)","v":0},{"$f":"IF('Data Input - Option 5'!$F$37=\"Yes\",BU192+BU13,BU188)","v":0},{"$f":"IF('Data Input - Option 5'!$F$37=\"Yes\",BV192+BV13,BV188)","v":0},{"$f":"IF('Data Input - Option 5'!$F$37=\"Yes\",BW192+BW13,BW188)","v":0},{"$f":"IF('Data Input - Option 5'!$F$37=\"Yes\",BX192+BX13,BX188)","v":0},{"$f":"IF('Data Input - Option 5'!$F$37=\"Yes\",BY192+BY13,BY188)","v":0},{"$f":"IF('Data Input - Option 5'!$F$37=\"Yes\",BZ192+BZ13,BZ188)","v":0},{"$f":"IF('Data Input - Option 5'!$F$37=\"Yes\",CA192+CA13,CA188)","v":0},{"$f":"IF('Data Input - Option 5'!$F$37=\"Yes\",CB192+CB13,CB188)","v":0},{"$f":"IF('Data Input - Option 5'!$F$37=\"Yes\",CC192+CC13,CC188)","v":0},{"$f":"IF('Data Input - Option 5'!$F$37=\"Yes\",CD192+CD13,CD188)","v":0},{"$f":"IF('Data Input - Option 5'!$F$37=\"Yes\",CE192+CE13,CE188)","v":0},{"$f":"IF('Data Input - Option 5'!$F$37=\"Yes\",CF192+CF13,CF188)","v":0},{"$f":"IF('Data Input - Option 5'!$F$37=\"Yes\",CG192+CG13,CG188)","v":0},{"$f":"IF('Data Input - Option 5'!$F$37=\"Yes\",CH192+CH13,CH188)","v":0},{"$f":"IF('Data Input - Option 5'!$F$37=\"Yes\",CI192+CI13,CI188)","v":0},{"$f":"IF('Data Input - Option 5'!$F$37=\"Yes\",CJ192+CJ13,CJ188)","v":0},{"$f":"IF('Data Input - Option 5'!$F$37=\"Yes\",CK192+CK13,CK188)","v":0},{"$f":"IF('Data Input - Option 5'!$F$37=\"Yes\",CL192+CL13,CL188)","v":0},{"$f":"IF('Data Input - Option 5'!$F$37=\"Yes\",CM192+CM13,CM188)","v":0},{"$f":"IF('Data Input - Option 5'!$F$37=\"Yes\",CN192+CN13,CN188)","v":0},{"$f":"IF('Data Input - Option 5'!$F$37=\"Yes\",CO192+CO13,CO188)","v":0},{"$f":"IF('Data Input - Option 5'!$F$37=\"Yes\",CP192+CP13,CP188)","v":0},{"$f":"IF('Data Input - Option 5'!$F$37=\"Yes\",CQ192+CQ13,CQ188)","v":0},{"$f":"IF('Data Input - Option 5'!$F$37=\"Yes\",CR192+CR13,CR188)","v":0},{"$f":"IF('Data Input - Option 5'!$F$37=\"Yes\",CS192+CS13,CS188)","v":0},{"$f":"IF('Data Input - Option 5'!$F$37=\"Yes\",CT192+CT13,CT188)","v":0},{"$f":"IF('Data Input - Option 5'!$F$37=\"Yes\",CU192+CU13,CU188)","v":0},{"$f":"IF('Data Input - Option 5'!$F$37=\"Yes\",CV192+CV13,CV188)","v":0},{"$f":"IF('Data Input - Option 5'!$F$37=\"Yes\",CW192+CW13,CW188)","v":0},{"$f":"IF('Data Input - Option 5'!$F$37=\"Yes\",CX192+CX13,CX188)","v":0},{"$f":"IF('Data Input - Option 5'!$F$37=\"Yes\",CY192+CY13,CY188)","v":0}]
[]
[null,"High WACC","%",{"$f":"'Data Input - General'!H16","v":7.0000000000000007E-2}]
[null,"Annualised payment","£000's",{"$f":"IFERROR(-PMT($D$196,SUM('Data Input - General'!$K$26:$K$28),D20*1000)/1000,0)","v":0}]
[null,"Annual value","£000's",{"$f":"IF(SUM($D$12:D$12)=0,0,$D$197)","v":0},{"$f":"IF(SUM($D$12:E$12)=0,0,$D$197)","v":0},{"$f":"IF(SUM($D$12:F$12)=0,0,$D$197)","v":0},{"$f":"IF(SUM($D$12:G$12)=0,0,$D$197)","v":0},{"$f":"IF(SUM($D$12:H$12)=0,0,$D$197)","v":0},{"$f":"IF(SUM($D$12:I$12)=0,0,$D$197)","v":0},{"$f":"IF(SUM($D$12:J$12)=0,0,$D$197)","v":0},{"$f":"IF(SUM($D$12:K$12)=0,0,$D$197)","v":0},{"$f":"IF(SUM($D$12:L$12)=0,0,$D$197)","v":0},{"$f":"IF(SUM($D$12:M$12)=0,0,$D$197)","v":0},{"$f":"IF(SUM($D$12:N$12)=0,0,$D$197)","v":0},{"$f":"IF(SUM($D$12:O$12)=0,0,$D$197)","v":0},{"$f":"IF(SUM($D$12:P$12)=0,0,$D$197)","v":0},{"$f":"IF(SUM($D$12:Q$12)=0,0,$D$197)","v":0},{"$f":"IF(SUM($D$12:R$12)=0,0,$D$197)","v":0},{"$f":"IF(SUM($D$12:S$12)=0,0,$D$197)","v":0},{"$f":"IF(SUM($D$12:T$12)=0,0,$D$197)","v":0},{"$f":"IF(SUM($D$12:U$12)=0,0,$D$197)","v":0},{"$f":"IF(SUM($D$12:V$12)=0,0,$D$197)","v":0},{"$f":"IF(SUM($D$12:W$12)=0,0,$D$197)","v":0},{"$f":"IF(SUM($D$12:X$12)=0,0,$D$197)","v":0},{"$f":"IF(SUM($D$12:Y$12)=0,0,$D$197)","v":0},{"$f":"IF(SUM($D$12:Z$12)=0,0,$D$197)","v":0},{"$f":"IF(SUM($D$12:AA$12)=0,0,$D$197)","v":0},{"$f":"IF(SUM($D$12:AB$12)=0,0,$D$197)","v":0},{"$f":"IF(SUM($D$12:AC$12)=0,0,$D$197)","v":0},{"$f":"IF(SUM($D$12:AD$12)=0,0,$D$197)","v":0},{"$f":"IF(SUM($D$12:AE$12)=0,0,$D$197)","v":0},{"$f":"IF(SUM($D$12:AF$12)=0,0,$D$197)","v":0},{"$f":"IF(SUM($D$12:AG$12)=0,0,$D$197)","v":0},{"$f":"IF(SUM($D$12:AH$12)=0,0,$D$197)","v":0},{"$f":"IF(SUM($D$12:AI$12)=0,0,$D$197)","v":0},{"$f":"IF(SUM($D$12:AJ$12)=0,0,$D$197)","v":0},{"$f":"IF(SUM($D$12:AK$12)=0,0,$D$197)","v":0},{"$f":"IF(SUM($D$12:AL$12)=0,0,$D$197)","v":0},{"$f":"IF(SUM($D$12:AM$12)=0,0,$D$197)","v":0},{"$f":"IF(SUM($D$12:AN$12)=0,0,$D$197)","v":0},{"$f":"IF(SUM($D$12:AO$12)=0,0,$D$197)","v":0},{"$f":"IF(SUM($D$12:AP$12)=0,0,$D$197)","v":0},{"$f":"IF(SUM($D$12:AQ$12)=0,0,$D$197)","v":0},{"$f":"IF(SUM($D$12:AR$12)=0,0,$D$197)","v":0},{"$f":"IF(SUM($D$12:AS$12)=0,0,$D$197)","v":0},{"$f":"IF(SUM($D$12:AT$12)=0,0,$D$197)","v":0},{"$f":"IF(SUM($D$12:AU$12)=0,0,$D$197)","v":0},{"$f":"IF(SUM($D$12:AV$12)=0,0,$D$197)","v":0},{"$f":"IF(SUM($D$12:AW$12)=0,0,$D$197)","v":0},{"$f":"IF(SUM($D$12:AX$12)=0,0,$D$197)","v":0},{"$f":"IF(SUM($D$12:AY$12)=0,0,$D$197)","v":0},{"$f":"IF(SUM($D$12:AZ$12)=0,0,$D$197)","v":0},{"$f":"IF(SUM($D$12:BA$12)=0,0,$D$197)","v":0},{"$f":"IF(SUM($D$12:BB$12)=0,0,$D$197)","v":0},{"$f":"IF(SUM($D$12:BC$12)=0,0,$D$197)","v":0},{"$f":"IF(SUM($D$12:BD$12)=0,0,$D$197)","v":0},{"$f":"IF(SUM($D$12:BE$12)=0,0,$D$197)","v":0},{"$f":"IF(SUM($D$12:BF$12)=0,0,$D$197)","v":0},{"$f":"IF(SUM($D$12:BG$12)=0,0,$D$197)","v":0},{"$f":"IF(SUM($D$12:BH$12)=0,0,$D$197)","v":0},{"$f":"IF(SUM($D$12:BI$12)=0,0,$D$197)","v":0},{"$f":"IF(SUM($D$12:BJ$12)=0,0,$D$197)","v":0},{"$f":"IF(SUM($D$12:BK$12)=0,0,$D$197)","v":0},{"$f":"IF(SUM($D$12:BL$12)=0,0,$D$197)","v":0},{"$f":"IF(SUM($D$12:BM$12)=0,0,$D$197)","v":0},{"$f":"IF(SUM($D$12:BN$12)=0,0,$D$197)","v":0},{"$f":"IF(SUM($D$12:BO$12)=0,0,$D$197)","v":0},{"$f":"IF(SUM($D$12:BP$12)=0,0,$D$197)","v":0},{"$f":"IF(SUM($D$12:BQ$12)=0,0,$D$197)","v":0},{"$f":"IF(SUM($D$12:BR$12)=0,0,$D$197)","v":0},{"$f":"IF(SUM($D$12:BS$12)=0,0,$D$197)","v":0},{"$f":"IF(SUM($D$12:BT$12)=0,0,$D$197)","v":0},{"$f":"IF(SUM($D$12:BU$12)=0,0,$D$197)","v":0},{"$f":"IF(SUM($D$12:BV$12)=0,0,$D$197)","v":0},{"$f":"IF(SUM($D$12:BW$12)=0,0,$D$197)","v":0},{"$f":"IF(SUM($D$12:BX$12)=0,0,$D$197)","v":0},{"$f":"IF(SUM($D$12:BY$12)=0,0,$D$197)","v":0},{"$f":"IF(SUM($D$12:BZ$12)=0,0,$D$197)","v":0},{"$f":"IF(SUM($D$12:CA$12)=0,0,$D$197)","v":0},{"$f":"IF(SUM($D$12:CB$12)=0,0,$D$197)","v":0},{"$f":"IF(SUM($D$12:CC$12)=0,0,$D$197)","v":0},{"$f":"IF(SUM($D$12:CD$12)=0,0,$D$197)","v":0},{"$f":"IF(SUM($D$12:CE$12)=0,0,$D$197)","v":0},{"$f":"IF(SUM($D$12:CF$12)=0,0,$D$197)","v":0},{"$f":"IF(SUM($D$12:CG$12)=0,0,$D$197)","v":0},{"$f":"IF(SUM($D$12:CH$12)=0,0,$D$197)","v":0},{"$f":"IF(SUM($D$12:CI$12)=0,0,$D$197)","v":0},{"$f":"IF(SUM($D$12:CJ$12)=0,0,$D$197)","v":0},{"$f":"IF(SUM($D$12:CK$12)=0,0,$D$197)","v":0},{"$f":"IF(SUM($D$12:CL$12)=0,0,$D$197)","v":0},{"$f":"IF(SUM($D$12:CM$12)=0,0,$D$197)","v":0},{"$f":"IF(SUM($D$12:CN$12)=0,0,$D$197)","v":0},{"$f":"IF(SUM($D$12:CO$12)=0,0,$D$197)","v":0},{"$f":"IF(SUM($D$12:CP$12)=0,0,$D$197)","v":0},{"$f":"IF(SUM($D$12:CQ$12)=0,0,$D$197)","v":0},{"$f":"IF(SUM($D$12:CR$12)=0,0,$D$197)","v":0},{"$f":"IF(SUM($D$12:CS$12)=0,0,$D$197)","v":0},{"$f":"IF(SUM($D$12:CT$12)=0,0,$D$197)","v":0},{"$f":"IF(SUM($D$12:CU$12)=0,0,$D$197)","v":0},{"$f":"IF(SUM($D$12:CV$12)=0,0,$D$197)","v":0},{"$f":"IF(SUM($D$12:CW$12)=0,0,$D$197)","v":0},{"$f":"IF(SUM($D$12:CX$12)=0,0,$D$197)","v":0},{"$f":"IF(SUM($D$12:CY$12)=0,0,$D$197)","v":0}]
[null,"Discounted WACC","£000's",{"$f":"D198*D$7","v":0},0,0,0,0,0,0,0,0,0,0,0,0,0,0,0,0,0,0,0,0,0,0,0,0,0,0,0,0,0,0,0,0,0,0,0,0,0,0,0,0,0,0,0,0,0,0,0,0,0,0,0,0,0,0,0,0,0,0,0,0,0,0,0,{"$f":"BP198*BP$7","v":0},0,0,0,0,0,0,0,0,0,0,0,0,0,0,0,0,0,0,0,0,0,0,0,0,0,0,0,0,0,0,0,0,0,0,0]
[]
[null,"Financing costs"]
[null,"Financing costs (if entered manually)","£000's",{"$f":"'Data Input - Option 5'!H42","v":0},{"$f":"'Data Input - Option 5'!I42","v":0},{"$f":"'Data Input - Option 5'!J42","v":0},{"$f":"'Data Input - Option 5'!K42","v":0},{"$f":"'Data Input - Option 5'!L42","v":0},{"$f":"'Data Input - Option 5'!M42","v":0},{"$f":"'Data Input - Option 5'!N42","v":0},{"$f":"'Data Input - Option 5'!O42","v":0},{"$f":"'Data Input - Option 5'!P42","v":0},{"$f":"'Data Input - Option 5'!Q42","v":0},{"$f":"'Data Input - Option 5'!R42","v":0},{"$f":"'Data Input - Option 5'!S42","v":0},{"$f":"'Data Input - Option 5'!T42","v":0},{"$f":"'Data Input - Option 5'!U42","v":0},{"$f":"'Data Input - Option 5'!V42","v":0},{"$f":"'Data Input - Option 5'!W42","v":0},{"$f":"'Data Input - Option 5'!X42","v":0},{"$f":"'Data Input - Option 5'!Y42","v":0},{"$f":"'Data Input - Option 5'!Z42","v":0},{"$f":"'Data Input - Option 5'!AA42","v":0},{"$f":"'Data Input - Option 5'!AB42","v":0},{"$f":"'Data Input - Option 5'!AC42","v":0},{"$f":"'Data Input - Option 5'!AD42","v":0},{"$f":"'Data Input - Option 5'!AE42","v":0},{"$f":"'Data Input - Option 5'!AF42","v":0},{"$f":"'Data Input - Option 5'!AG42","v":0},{"$f":"'Data Input - Option 5'!AH42","v":0},{"$f":"'Data Input - Option 5'!AI42","v":0},{"$f":"'Data Input - Option 5'!AJ42","v":0},{"$f":"'Data Input - Option 5'!AK42","v":0},{"$f":"'Data Input - Option 5'!AL42","v":0},{"$f":"'Data Input - Option 5'!AM42","v":0},{"$f":"'Data Input - Option 5'!AN42","v":0},{"$f":"'Data Input - Option 5'!AO42","v":0},{"$f":"'Data Input - Option 5'!AP42","v":0},{"$f":"'Data Input - Option 5'!AQ42","v":0},{"$f":"'Data Input - Option 5'!AR42","v":0},{"$f":"'Data Input - Option 5'!AS42","v":0},{"$f":"'Data Input - Option 5'!AT42","v":0},{"$f":"'Data Input - Option 5'!AU42","v":0},{"$f":"'Data Input - Option 5'!AV42","v":0},{"$f":"'Data Input - Option 5'!AW42","v":0},{"$f":"'Data Input - Option 5'!AX42","v":0},{"$f":"'Data Input - Option 5'!AY42","v":0},{"$f":"'Data Input - Option 5'!AZ42","v":0},{"$f":"'Data Input - Option 5'!BA42","v":0},{"$f":"'Data Input - Option 5'!BB42","v":0},{"$f":"'Data Input - Option 5'!BC42","v":0},{"$f":"'Data Input - Option 5'!BD42","v":0},{"$f":"'Data Input - Option 5'!BE42","v":0},{"$f":"'Data Input - Option 5'!BF42","v":0},{"$f":"'Data Input - Option 5'!BG42","v":0},{"$f":"'Data Input - Option 5'!BH42","v":0},{"$f":"'Data Input - Option 5'!BI42","v":0},{"$f":"'Data Input - Option 5'!BJ42","v":0},{"$f":"'Data Input - Option 5'!BK42","v":0},{"$f":"'Data Input - Option 5'!BL42","v":0},{"$f":"'Data Input - Option 5'!BM42","v":0},{"$f":"'Data Input - Option 5'!BN42","v":0},{"$f":"'Data Input - Option 5'!BO42","v":0},{"$f":"'Data Input - Option 5'!BP42","v":0},{"$f":"'Data Input - Option 5'!BQ42","v":0},{"$f":"'Data Input - Option 5'!BR42","v":0},{"$f":"'Data Input - Option 5'!BS42","v":0},{"$f":"'Data Input - Option 5'!BT42","v":0},{"$f":"'Data Input - Option 5'!BU42","v":0},{"$f":"'Data Input - Option 5'!BV42","v":0},{"$f":"'Data Input - Option 5'!BW42","v":0},{"$f":"'Data Input - Option 5'!BX42","v":0},{"$f":"'Data Input - Option 5'!BY42","v":0},{"$f":"'Data Input - Option 5'!BZ42","v":0},{"$f":"'Data Input - Option 5'!CA42","v":0},{"$f":"'Data Input - Option 5'!CB42","v":0},{"$f":"'Data Input - Option 5'!CC42","v":0},{"$f":"'Data Input - Option 5'!CD42","v":0},{"$f":"'Data Input - Option 5'!CE42","v":0},{"$f":"'Data Input - Option 5'!CF42","v":0},{"$f":"'Data Input - Option 5'!CG42","v":0},{"$f":"'Data Input - Option 5'!CH42","v":0},{"$f":"'Data Input - Option 5'!CI42","v":0},{"$f":"'Data Input - Option 5'!CJ42","v":0},{"$f":"'Data Input - Option 5'!CK42","v":0},{"$f":"'Data Input - Option 5'!CL42","v":0},{"$f":"'Data Input - Option 5'!CM42","v":0},{"$f":"'Data Input - Option 5'!CN42","v":0},{"$f":"'Data Input - Option 5'!CO42","v":0},{"$f":"'Data Input - Option 5'!CP42","v":0},{"$f":"'Data Input - Option 5'!CQ42","v":0},{"$f":"'Data Input - Option 5'!CR42","v":0},{"$f":"'Data Input - Option 5'!CS42","v":0},{"$f":"'Data Input - Option 5'!CT42","v":0},{"$f":"'Data Input - Option 5'!CU42","v":0},{"$f":"'Data Input - Option 5'!CV42","v":0},{"$f":"'Data Input - Option 5'!CW42","v":0},{"$f":"'Data Input - Option 5'!CX42","v":0},{"$f":"'Data Input - Option 5'!CY42","v":0},{"$f":"'Data Input - Option 5'!CZ42","v":0},{"$f":"'Data Input - Option 5'!DA42","v":0},{"$f":"'Data Input - Option 5'!DB42","v":0},{"$f":"'Data Input - Option 5'!DC42","v":0}]
[null,"Discounted finacning","£000's",{"$f":"D202*D$7","v":0},0,0,0,0,0,0,0,0,0,0,0,0,0,0,0,0,0,0,0,0,0,0,0,0,0,0,0,0,0,0,0,0,0,0,0,0,0,0,0,0,0,0,0,0,0,0,0,0,0,0,0,0,0,0,0,0,0,0,0,0,0,0,0,{"$f":"BP202*BP$7","v":0},0,0,0,0,0,0,0,0,0,0,0,0,0,0,0,0,0,0,0,0,0,0,0,0,0,0,0,0,0,0,0,0,0,0,0]
[]
[null,"Total capex","£000's",{"$f":"IF('Data Input - Option 5'!$F$37=\"Yes\",D203+D13,D199)","v":0},{"$f":"IF('Data Input - Option 5'!$F$37=\"Yes\",E203+E13,E199)","v":0},{"$f":"IF('Data Input - Option 5'!$F$37=\"Yes\",F203+F13,F199)","v":0},{"$f":"IF('Data Input - Option 5'!$F$37=\"Yes\",G203+G13,G199)","v":0},{"$f":"IF('Data Input - Option 5'!$F$37=\"Yes\",H203+H13,H199)","v":0},{"$f":"IF('Data Input - Option 5'!$F$37=\"Yes\",I203+I13,I199)","v":0},{"$f":"IF('Data Input - Option 5'!$F$37=\"Yes\",J203+J13,J199)","v":0},{"$f":"IF('Data Input - Option 5'!$F$37=\"Yes\",K203+K13,K199)","v":0},{"$f":"IF('Data Input - Option 5'!$F$37=\"Yes\",L203+L13,L199)","v":0},{"$f":"IF('Data Input - Option 5'!$F$37=\"Yes\",M203+M13,M199)","v":0},{"$f":"IF('Data Input - Option 5'!$F$37=\"Yes\",N203+N13,N199)","v":0},{"$f":"IF('Data Input - Option 5'!$F$37=\"Yes\",O203+O13,O199)","v":0},{"$f":"IF('Data Input - Option 5'!$F$37=\"Yes\",P203+P13,P199)","v":0},{"$f":"IF('Data Input - Option 5'!$F$37=\"Yes\",Q203+Q13,Q199)","v":0},{"$f":"IF('Data Input - Option 5'!$F$37=\"Yes\",R203+R13,R199)","v":0},{"$f":"IF('Data Input - Option 5'!$F$37=\"Yes\",S203+S13,S199)","v":0},{"$f":"IF('Data Input - Option 5'!$F$37=\"Yes\",T203+T13,T199)","v":0},{"$f":"IF('Data Input - Option 5'!$F$37=\"Yes\",U203+U13,U199)","v":0},{"$f":"IF('Data Input - Option 5'!$F$37=\"Yes\",V203+V13,V199)","v":0},{"$f":"IF('Data Input - Option 5'!$F$37=\"Yes\",W203+W13,W199)","v":0},{"$f":"IF('Data Input - Option 5'!$F$37=\"Yes\",X203+X13,X199)","v":0},{"$f":"IF('Data Input - Option 5'!$F$37=\"Yes\",Y203+Y13,Y199)","v":0},{"$f":"IF('Data Input - Option 5'!$F$37=\"Yes\",Z203+Z13,Z199)","v":0},{"$f":"IF('Data Input - Option 5'!$F$37=\"Yes\",AA203+AA13,AA199)","v":0},{"$f":"IF('Data Input - Option 5'!$F$37=\"Yes\",AB203+AB13,AB199)","v":0},{"$f":"IF('Data Input - Option 5'!$F$37=\"Yes\",AC203+AC13,AC199)","v":0},{"$f":"IF('Data Input - Option 5'!$F$37=\"Yes\",AD203+AD13,AD199)","v":0},{"$f":"IF('Data Input - Option 5'!$F$37=\"Yes\",AE203+AE13,AE199)","v":0},{"$f":"IF('Data Input - Option 5'!$F$37=\"Yes\",AF203+AF13,AF199)","v":0},{"$f":"IF('Data Input - Option 5'!$F$37=\"Yes\",AG203+AG13,AG199)","v":0},{"$f":"IF('Data Input - Option 5'!$F$37=\"Yes\",AH203+AH13,AH199)","v":0},{"$f":"IF('Data Input - Option 5'!$F$37=\"Yes\",AI203+AI13,AI199)","v":0},{"$f":"IF('Data Input - Option 5'!$F$37=\"Yes\",AJ203+AJ13,AJ199)","v":0},{"$f":"IF('Data Input - Option 5'!$F$37=\"Yes\",AK203+AK13,AK199)","v":0},{"$f":"IF('Data Input - Option 5'!$F$37=\"Yes\",AL203+AL13,AL199)","v":0},{"$f":"IF('Data Input - Option 5'!$F$37=\"Yes\",AM203+AM13,AM199)","v":0},{"$f":"IF('Data Input - Option 5'!$F$37=\"Yes\",AN203+AN13,AN199)","v":0},{"$f":"IF('Data Input - Option 5'!$F$37=\"Yes\",AO203+AO13,AO199)","v":0},{"$f":"IF('Data Input - Option 5'!$F$37=\"Yes\",AP203+AP13,AP199)","v":0},{"$f":"IF('Data Input - Option 5'!$F$37=\"Yes\",AQ203+AQ13,AQ199)","v":0},{"$f":"IF('Data Input - Option 5'!$F$37=\"Yes\",AR203+AR13,AR199)","v":0},{"$f":"IF('Data Input - Option 5'!$F$37=\"Yes\",AS203+AS13,AS199)","v":0},{"$f":"IF('Data Input - Option 5'!$F$37=\"Yes\",AT203+AT13,AT199)","v":0},{"$f":"IF('Data Input - Option 5'!$F$37=\"Yes\",AU203+AU13,AU199)","v":0},{"$f":"IF('Data Input - Option 5'!$F$37=\"Yes\",AV203+AV13,AV199)","v":0},{"$f":"IF('Data Input - Option 5'!$F$37=\"Yes\",AW203+AW13,AW199)","v":0},{"$f":"IF('Data Input - Option 5'!$F$37=\"Yes\",AX203+AX13,AX199)","v":0},{"$f":"IF('Data Input - Option 5'!$F$37=\"Yes\",AY203+AY13,AY199)","v":0},{"$f":"IF('Data Input - Option 5'!$F$37=\"Yes\",AZ203+AZ13,AZ199)","v":0},{"$f":"IF('Data Input - Option 5'!$F$37=\"Yes\",BA203+BA13,BA199)","v":0},{"$f":"IF('Data Input - Option 5'!$F$37=\"Yes\",BB203+BB13,BB199)","v":0},{"$f":"IF('Data Input - Option 5'!$F$37=\"Yes\",BC203+BC13,BC199)","v":0},{"$f":"IF('Data Input - Option 5'!$F$37=\"Yes\",BD203+BD13,BD199)","v":0},{"$f":"IF('Data Input - Option 5'!$F$37=\"Yes\",BE203+BE13,BE199)","v":0},{"$f":"IF('Data Input - Option 5'!$F$37=\"Yes\",BF203+BF13,BF199)","v":0},{"$f":"IF('Data Input - Option 5'!$F$37=\"Yes\",BG203+BG13,BG199)","v":0},{"$f":"IF('Data Input - Option 5'!$F$37=\"Yes\",BH203+BH13,BH199)","v":0},{"$f":"IF('Data Input - Option 5'!$F$37=\"Yes\",BI203+BI13,BI199)","v":0},{"$f":"IF('Data Input - Option 5'!$F$37=\"Yes\",BJ203+BJ13,BJ199)","v":0},{"$f":"IF('Data Input - Option 5'!$F$37=\"Yes\",BK203+BK13,BK199)","v":0},{"$f":"IF('Data Input - Option 5'!$F$37=\"Yes\",BL203+BL13,BL199)","v":0},{"$f":"IF('Data Input - Option 5'!$F$37=\"Yes\",BM203+BM13,BM199)","v":0},{"$f":"IF('Data Input - Option 5'!$F$37=\"Yes\",BN203+BN13,BN199)","v":0},{"$f":"IF('Data Input - Option 5'!$F$37=\"Yes\",BO203+BO13,BO199)","v":0},{"$f":"IF('Data Input - Option 5'!$F$37=\"Yes\",BP203+BP13,BP199)","v":0},{"$f":"IF('Data Input - Option 5'!$F$37=\"Yes\",BQ203+BQ13,BQ199)","v":0},{"$f":"IF('Data Input - Option 5'!$F$37=\"Yes\",BR203+BR13,BR199)","v":0},{"$f":"IF('Data Input - Option 5'!$F$37=\"Yes\",BS203+BS13,BS199)","v":0},{"$f":"IF('Data Input - Option 5'!$F$37=\"Yes\",BT203+BT13,BT199)","v":0},{"$f":"IF('Data Input - Option 5'!$F$37=\"Yes\",BU203+BU13,BU199)","v":0},{"$f":"IF('Data Input - Option 5'!$F$37=\"Yes\",BV203+BV13,BV199)","v":0},{"$f":"IF('Data Input - Option 5'!$F$37=\"Yes\",BW203+BW13,BW199)","v":0},{"$f":"IF('Data Input - Option 5'!$F$37=\"Yes\",BX203+BX13,BX199)","v":0},{"$f":"IF('Data Input - Option 5'!$F$37=\"Yes\",BY203+BY13,BY199)","v":0},{"$f":"IF('Data Input - Option 5'!$F$37=\"Yes\",BZ203+BZ13,BZ199)","v":0},{"$f":"IF('Data Input - Option 5'!$F$37=\"Yes\",CA203+CA13,CA199)","v":0},{"$f":"IF('Data Input - Option 5'!$F$37=\"Yes\",CB203+CB13,CB199)","v":0},{"$f":"IF('Data Input - Option 5'!$F$37=\"Yes\",CC203+CC13,CC199)","v":0},{"$f":"IF('Data Input - Option 5'!$F$37=\"Yes\",CD203+CD13,CD199)","v":0},{"$f":"IF('Data Input - Option 5'!$F$37=\"Yes\",CE203+CE13,CE199)","v":0},{"$f":"IF('Data Input - Option 5'!$F$37=\"Yes\",CF203+CF13,CF199)","v":0},{"$f":"IF('Data Input - Option 5'!$F$37=\"Yes\",CG203+CG13,CG199)","v":0},{"$f":"IF('Data Input - Option 5'!$F$37=\"Yes\",CH203+CH13,CH199)","v":0},{"$f":"IF('Data Input - Option 5'!$F$37=\"Yes\",CI203+CI13,CI199)","v":0},{"$f":"IF('Data Input - Option 5'!$F$37=\"Yes\",CJ203+CJ13,CJ199)","v":0},{"$f":"IF('Data Input - Option 5'!$F$37=\"Yes\",CK203+CK13,CK199)","v":0},{"$f":"IF('Data Input - Option 5'!$F$37=\"Yes\",CL203+CL13,CL199)","v":0},{"$f":"IF('Data Input - Option 5'!$F$37=\"Yes\",CM203+CM13,CM199)","v":0},{"$f":"IF('Data Input - Option 5'!$F$37=\"Yes\",CN203+CN13,CN199)","v":0},{"$f":"IF('Data Input - Option 5'!$F$37=\"Yes\",CO203+CO13,CO199)","v":0},{"$f":"IF('Data Input - Option 5'!$F$37=\"Yes\",CP203+CP13,CP199)","v":0},{"$f":"IF('Data Input - Option 5'!$F$37=\"Yes\",CQ203+CQ13,CQ199)","v":0},{"$f":"IF('Data Input - Option 5'!$F$37=\"Yes\",CR203+CR13,CR199)","v":0},{"$f":"IF('Data Input - Option 5'!$F$37=\"Yes\",CS203+CS13,CS199)","v":0},{"$f":"IF('Data Input - Option 5'!$F$37=\"Yes\",CT203+CT13,CT199)","v":0},{"$f":"IF('Data Input - Option 5'!$F$37=\"Yes\",CU203+CU13,CU199)","v":0},{"$f":"IF('Data Input - Option 5'!$F$37=\"Yes\",CV203+CV13,CV199)","v":0},{"$f":"IF('Data Input - Option 5'!$F$37=\"Yes\",CW203+CW13,CW199)","v":0},{"$f":"IF('Data Input - Option 5'!$F$37=\"Yes\",CX203+CX13,CX199)","v":0},{"$f":"IF('Data Input - Option 5'!$F$37=\"Yes\",CY203+CY13,CY199)","v":0}]
[]
[null,"Low high WACC combined with low high capex"]
[]
[null,"Low WACC","%",{"$f":"'Data Input - General'!F16","v":0.06}]
[null,"Annualised payment","£000's",{"$f":"IFERROR(-PMT($D$185,SUM('Data Input - General'!$H$26:$H$28),D20*(1-D177)*1000)/1000,0)","v":0}]
[null,"Annual value","£000's",{"$f":"IF(SUM($D$12:D$12)=0,0,$D$210)","v":0},{"$f":"IF(SUM($D$12:E$12)=0,0,$D$210)","v":0},{"$f":"IF(SUM($D$12:F$12)=0,0,$D$210)","v":0},{"$f":"IF(SUM($D$12:G$12)=0,0,$D$210)","v":0},{"$f":"IF(SUM($D$12:H$12)=0,0,$D$210)","v":0},{"$f":"IF(SUM($D$12:I$12)=0,0,$D$210)","v":0},{"$f":"IF(SUM($D$12:J$12)=0,0,$D$210)","v":0},{"$f":"IF(SUM($D$12:K$12)=0,0,$D$210)","v":0},{"$f":"IF(SUM($D$12:L$12)=0,0,$D$210)","v":0},{"$f":"IF(SUM($D$12:M$12)=0,0,$D$210)","v":0},{"$f":"IF(SUM($D$12:N$12)=0,0,$D$210)","v":0},{"$f":"IF(SUM($D$12:O$12)=0,0,$D$210)","v":0},{"$f":"IF(SUM($D$12:P$12)=0,0,$D$210)","v":0},{"$f":"IF(SUM($D$12:Q$12)=0,0,$D$210)","v":0},{"$f":"IF(SUM($D$12:R$12)=0,0,$D$210)","v":0},{"$f":"IF(SUM($D$12:S$12)=0,0,$D$210)","v":0},{"$f":"IF(SUM($D$12:T$12)=0,0,$D$210)","v":0},{"$f":"IF(SUM($D$12:U$12)=0,0,$D$210)","v":0},{"$f":"IF(SUM($D$12:V$12)=0,0,$D$210)","v":0},{"$f":"IF(SUM($D$12:W$12)=0,0,$D$210)","v":0},{"$f":"IF(SUM($D$12:X$12)=0,0,$D$210)","v":0},{"$f":"IF(SUM($D$12:Y$12)=0,0,$D$210)","v":0},{"$f":"IF(SUM($D$12:Z$12)=0,0,$D$210)","v":0},{"$f":"IF(SUM($D$12:AA$12)=0,0,$D$210)","v":0},{"$f":"IF(SUM($D$12:AB$12)=0,0,$D$210)","v":0},{"$f":"IF(SUM($D$12:AC$12)=0,0,$D$210)","v":0},{"$f":"IF(SUM($D$12:AD$12)=0,0,$D$210)","v":0},{"$f":"IF(SUM($D$12:AE$12)=0,0,$D$210)","v":0},{"$f":"IF(SUM($D$12:AF$12)=0,0,$D$210)","v":0},{"$f":"IF(SUM($D$12:AG$12)=0,0,$D$210)","v":0},{"$f":"IF(SUM($D$12:AH$12)=0,0,$D$210)","v":0},{"$f":"IF(SUM($D$12:AI$12)=0,0,$D$210)","v":0},{"$f":"IF(SUM($D$12:AJ$12)=0,0,$D$210)","v":0},{"$f":"IF(SUM($D$12:AK$12)=0,0,$D$210)","v":0},{"$f":"IF(SUM($D$12:AL$12)=0,0,$D$210)","v":0},{"$f":"IF(SUM($D$12:AM$12)=0,0,$D$210)","v":0},{"$f":"IF(SUM($D$12:AN$12)=0,0,$D$210)","v":0},{"$f":"IF(SUM($D$12:AO$12)=0,0,$D$210)","v":0},{"$f":"IF(SUM($D$12:AP$12)=0,0,$D$210)","v":0},{"$f":"IF(SUM($D$12:AQ$12)=0,0,$D$210)","v":0},{"$f":"IF(SUM($D$12:AR$12)=0,0,$D$210)","v":0},{"$f":"IF(SUM($D$12:AS$12)=0,0,$D$210)","v":0},{"$f":"IF(SUM($D$12:AT$12)=0,0,$D$210)","v":0},{"$f":"IF(SUM($D$12:AU$12)=0,0,$D$210)","v":0},{"$f":"IF(SUM($D$12:AV$12)=0,0,$D$210)","v":0},{"$f":"IF(SUM($D$12:AW$12)=0,0,$D$210)","v":0},{"$f":"IF(SUM($D$12:AX$12)=0,0,$D$210)","v":0},{"$f":"IF(SUM($D$12:AY$12)=0,0,$D$210)","v":0},{"$f":"IF(SUM($D$12:AZ$12)=0,0,$D$210)","v":0},{"$f":"IF(SUM($D$12:BA$12)=0,0,$D$210)","v":0},{"$f":"IF(SUM($D$12:BB$12)=0,0,$D$210)","v":0},{"$f":"IF(SUM($D$12:BC$12)=0,0,$D$210)","v":0},{"$f":"IF(SUM($D$12:BD$12)=0,0,$D$210)","v":0},{"$f":"IF(SUM($D$12:BE$12)=0,0,$D$210)","v":0},{"$f":"IF(SUM($D$12:BF$12)=0,0,$D$210)","v":0},{"$f":"IF(SUM($D$12:BG$12)=0,0,$D$210)","v":0},{"$f":"IF(SUM($D$12:BH$12)=0,0,$D$210)","v":0},{"$f":"IF(SUM($D$12:BI$12)=0,0,$D$210)","v":0},{"$f":"IF(SUM($D$12:BJ$12)=0,0,$D$210)","v":0},{"$f":"IF(SUM($D$12:BK$12)=0,0,$D$210)","v":0},{"$f":"IF(SUM($D$12:BL$12)=0,0,$D$210)","v":0},{"$f":"IF(SUM($D$12:BM$12)=0,0,$D$210)","v":0},{"$f":"IF(SUM($D$12:BN$12)=0,0,$D$210)","v":0},{"$f":"IF(SUM($D$12:BO$12)=0,0,$D$210)","v":0},{"$f":"IF(SUM($D$12:BP$12)=0,0,$D$210)","v":0},{"$f":"IF(SUM($D$12:BQ$12)=0,0,$D$210)","v":0},{"$f":"IF(SUM($D$12:BR$12)=0,0,$D$210)","v":0},{"$f":"IF(SUM($D$12:BS$12)=0,0,$D$210)","v":0},{"$f":"IF(SUM($D$12:BT$12)=0,0,$D$210)","v":0},{"$f":"IF(SUM($D$12:BU$12)=0,0,$D$210)","v":0},{"$f":"IF(SUM($D$12:BV$12)=0,0,$D$210)","v":0},{"$f":"IF(SUM($D$12:BW$12)=0,0,$D$210)","v":0},{"$f":"IF(SUM($D$12:BX$12)=0,0,$D$210)","v":0},{"$f":"IF(SUM($D$12:BY$12)=0,0,$D$210)","v":0},{"$f":"IF(SUM($D$12:BZ$12)=0,0,$D$210)","v":0},{"$f":"IF(SUM($D$12:CA$12)=0,0,$D$210)","v":0},{"$f":"IF(SUM($D$12:CB$12)=0,0,$D$210)","v":0},{"$f":"IF(SUM($D$12:CC$12)=0,0,$D$210)","v":0},{"$f":"IF(SUM($D$12:CD$12)=0,0,$D$210)","v":0},{"$f":"IF(SUM($D$12:CE$12)=0,0,$D$210)","v":0},{"$f":"IF(SUM($D$12:CF$12)=0,0,$D$210)","v":0},{"$f":"IF(SUM($D$12:CG$12)=0,0,$D$210)","v":0},{"$f":"IF(SUM($D$12:CH$12)=0,0,$D$210)","v":0},{"$f":"IF(SUM($D$12:CI$12)=0,0,$D$210)","v":0},{"$f":"IF(SUM($D$12:CJ$12)=0,0,$D$210)","v":0},{"$f":"IF(SUM($D$12:CK$12)=0,0,$D$210)","v":0},{"$f":"IF(SUM($D$12:CL$12)=0,0,$D$210)","v":0},{"$f":"IF(SUM($D$12:CM$12)=0,0,$D$210)","v":0},{"$f":"IF(SUM($D$12:CN$12)=0,0,$D$210)","v":0},{"$f":"IF(SUM($D$12:CO$12)=0,0,$D$210)","v":0},{"$f":"IF(SUM($D$12:CP$12)=0,0,$D$210)","v":0},{"$f":"IF(SUM($D$12:CQ$12)=0,0,$D$210)","v":0},{"$f":"IF(SUM($D$12:CR$12)=0,0,$D$210)","v":0},{"$f":"IF(SUM($D$12:CS$12)=0,0,$D$210)","v":0},{"$f":"IF(SUM($D$12:CT$12)=0,0,$D$210)","v":0},{"$f":"IF(SUM($D$12:CU$12)=0,0,$D$210)","v":0},{"$f":"IF(SUM($D$12:CV$12)=0,0,$D$210)","v":0},{"$f":"IF(SUM($D$12:CW$12)=0,0,$D$210)","v":0},{"$f":"IF(SUM($D$12:CX$12)=0,0,$D$210)","v":0},{"$f":"IF(SUM($D$12:CY$12)=0,0,$D$210)","v":0}]
[null,"Discounted WACC","£000's",{"$f":"D211*D$7","v":0},0,0,0,0,0,0,0,0,0,0,0,0,0,0,0,0,0,0,0,0,0,0,0,0,0,0,0,0,0,0,0,0,0,0,0,0,0,0,0,0,0,0,0,0,0,0,0,0,0,0,0,0,0,0,0,0,0,0,0,0,0,0,0,{"$f":"BP211*BP$7","v":0},0,0,0,0,0,0,0,0,0,0,0,0,0,0,0,0,0,0,0,0,0,0,0,0,0,0,0,0,0,0,0,0,0,0,0]
[]
[null,"Financing costs"]
[null,"Financing costs (if entered manually)","£000's",{"$f":"'Data Input - Option 5'!H41","v":0},{"$f":"'Data Input - Option 5'!I41","v":0},{"$f":"'Data Input - Option 5'!J41","v":0},{"$f":"'Data Input - Option 5'!K41","v":0},{"$f":"'Data Input - Option 5'!L41","v":0},{"$f":"'Data Input - Option 5'!M41","v":0},{"$f":"'Data Input - Option 5'!N41","v":0},{"$f":"'Data Input - Option 5'!O41","v":0},{"$f":"'Data Input - Option 5'!P41","v":0},{"$f":"'Data Input - Option 5'!Q41","v":0},{"$f":"'Data Input - Option 5'!R41","v":0},{"$f":"'Data Input - Option 5'!S41","v":0},{"$f":"'Data Input - Option 5'!T41","v":0},{"$f":"'Data Input - Option 5'!U41","v":0},{"$f":"'Data Input - Option 5'!V41","v":0},{"$f":"'Data Input - Option 5'!W41","v":0},{"$f":"'Data Input - Option 5'!X41","v":0},{"$f":"'Data Input - Option 5'!Y41","v":0},{"$f":"'Data Input - Option 5'!Z41","v":0},{"$f":"'Data Input - Option 5'!AA41","v":0},{"$f":"'Data Input - Option 5'!AB41","v":0},{"$f":"'Data Input - Option 5'!AC41","v":0},{"$f":"'Data Input - Option 5'!AD41","v":0},{"$f":"'Data Input - Option 5'!AE41","v":0},{"$f":"'Data Input - Option 5'!AF41","v":0},{"$f":"'Data Input - Option 5'!AG41","v":0},{"$f":"'Data Input - Option 5'!AH41","v":0},{"$f":"'Data Input - Option 5'!AI41","v":0},{"$f":"'Data Input - Option 5'!AJ41","v":0},{"$f":"'Data Input - Option 5'!AK41","v":0},{"$f":"'Data Input - Option 5'!AL41","v":0},{"$f":"'Data Input - Option 5'!AM41","v":0},{"$f":"'Data Input - Option 5'!AN41","v":0},{"$f":"'Data Input - Option 5'!AO41","v":0},{"$f":"'Data Input - Option 5'!AP41","v":0},{"$f":"'Data Input - Option 5'!AQ41","v":0},{"$f":"'Data Input - Option 5'!AR41","v":0},{"$f":"'Data Input - Option 5'!AS41","v":0},{"$f":"'Data Input - Option 5'!AT41","v":0},{"$f":"'Data Input - Option 5'!AU41","v":0},{"$f":"'Data Input - Option 5'!AV41","v":0},{"$f":"'Data Input - Option 5'!AW41","v":0},{"$f":"'Data Input - Option 5'!AX41","v":0},{"$f":"'Data Input - Option 5'!AY41","v":0},{"$f":"'Data Input - Option 5'!AZ41","v":0},{"$f":"'Data Input - Option 5'!BA41","v":0},{"$f":"'Data Input - Option 5'!BB41","v":0},{"$f":"'Data Input - Option 5'!BC41","v":0},{"$f":"'Data Input - Option 5'!BD41","v":0},{"$f":"'Data Input - Option 5'!BE41","v":0},{"$f":"'Data Input - Option 5'!BF41","v":0},{"$f":"'Data Input - Option 5'!BG41","v":0},{"$f":"'Data Input - Option 5'!BH41","v":0},{"$f":"'Data Input - Option 5'!BI41","v":0},{"$f":"'Data Input - Option 5'!BJ41","v":0},{"$f":"'Data Input - Option 5'!BK41","v":0},{"$f":"'Data Input - Option 5'!BL41","v":0},{"$f":"'Data Input - Option 5'!BM41","v":0},{"$f":"'Data Input - Option 5'!BN41","v":0},{"$f":"'Data Input - Option 5'!BO41","v":0},{"$f":"'Data Input - Option 5'!BP41","v":0},{"$f":"'Data Input - Option 5'!BQ41","v":0},{"$f":"'Data Input - Option 5'!BR41","v":0},{"$f":"'Data Input - Option 5'!BS41","v":0},{"$f":"'Data Input - Option 5'!BT41","v":0},{"$f":"'Data Input - Option 5'!BU41","v":0},{"$f":"'Data Input - Option 5'!BV41","v":0},{"$f":"'Data Input - Option 5'!BW41","v":0},{"$f":"'Data Input - Option 5'!BX41","v":0},{"$f":"'Data Input - Option 5'!BY41","v":0},{"$f":"'Data Input - Option 5'!BZ41","v":0},{"$f":"'Data Input - Option 5'!CA41","v":0},{"$f":"'Data Input - Option 5'!CB41","v":0},{"$f":"'Data Input - Option 5'!CC41","v":0},{"$f":"'Data Input - Option 5'!CD41","v":0},{"$f":"'Data Input - Option 5'!CE41","v":0},{"$f":"'Data Input - Option 5'!CF41","v":0},{"$f":"'Data Input - Option 5'!CG41","v":0},{"$f":"'Data Input - Option 5'!CH41","v":0},{"$f":"'Data Input - Option 5'!CI41","v":0},{"$f":"'Data Input - Option 5'!CJ41","v":0},{"$f":"'Data Input - Option 5'!CK41","v":0},{"$f":"'Data Input - Option 5'!CL41","v":0},{"$f":"'Data Input - Option 5'!CM41","v":0},{"$f":"'Data Input - Option 5'!CN41","v":0},{"$f":"'Data Input - Option 5'!CO41","v":0},{"$f":"'Data Input - Option 5'!CP41","v":0},{"$f":"'Data Input - Option 5'!CQ41","v":0},{"$f":"'Data Input - Option 5'!CR41","v":0},{"$f":"'Data Input - Option 5'!CS41","v":0},{"$f":"'Data Input - Option 5'!CT41","v":0},{"$f":"'Data Input - Option 5'!CU41","v":0},{"$f":"'Data Input - Option 5'!CV41","v":0},{"$f":"'Data Input - Option 5'!CW41","v":0},{"$f":"'Data Input - Option 5'!CX41","v":0},{"$f":"'Data Input - Option 5'!CY41","v":0},{"$f":"'Data Input - Option 5'!CZ41","v":0},{"$f":"'Data Input - Option 5'!DA41","v":0},{"$f":"'Data Input - Option 5'!DB41","v":0},{"$f":"'Data Input - Option 5'!DC41","v":0}]
[null,"Discounted financing","£000's",{"$f":"D215*D$7","v":0},0,0,0,0,0,0,0,0,0,0,0,0,0,0,0,0,0,0,0,0,0,0,0,0,0,0,0,0,0,0,0,0,0,0,0,0,0,0,0,0,0,0,0,0,0,0,0,0,0,0,0,0,0,0,0,0,0,0,0,0,0,0,0,{"$f":"BP215*BP$7","v":0},0,0,0,0,0,0,0,0,0,0,0,0,0,0,0,0,0,0,0,0,0,0,0,0,0,0,0,0,0,0,0,0,0,0,0]
[]
[null,"Total capex","£000's",{"$f":"IF('Data Input - Option 5'!$F$37=\"Yes\",D216+D13*(1-$D$177),D212)","v":0},{"$f":"IF('Data Input - Option 5'!$F$37=\"Yes\",E216+E13*(1-$D$177),E212)","v":0},{"$f":"IF('Data Input - Option 5'!$F$37=\"Yes\",F216+F13*(1-$D$177),F212)","v":0},{"$f":"IF('Data Input - Option 5'!$F$37=\"Yes\",G216+G13*(1-$D$177),G212)","v":0},{"$f":"IF('Data Input - Option 5'!$F$37=\"Yes\",H216+H13*(1-$D$177),H212)","v":0},{"$f":"IF('Data Input - Option 5'!$F$37=\"Yes\",I216+I13*(1-$D$177),I212)","v":0},{"$f":"IF('Data Input - Option 5'!$F$37=\"Yes\",J216+J13*(1-$D$177),J212)","v":0},{"$f":"IF('Data Input - Option 5'!$F$37=\"Yes\",K216+K13*(1-$D$177),K212)","v":0},{"$f":"IF('Data Input - Option 5'!$F$37=\"Yes\",L216+L13*(1-$D$177),L212)","v":0},{"$f":"IF('Data Input - Option 5'!$F$37=\"Yes\",M216+M13*(1-$D$177),M212)","v":0},{"$f":"IF('Data Input - Option 5'!$F$37=\"Yes\",N216+N13*(1-$D$177),N212)","v":0},{"$f":"IF('Data Input - Option 5'!$F$37=\"Yes\",O216+O13*(1-$D$177),O212)","v":0},{"$f":"IF('Data Input - Option 5'!$F$37=\"Yes\",P216+P13*(1-$D$177),P212)","v":0},{"$f":"IF('Data Input - Option 5'!$F$37=\"Yes\",Q216+Q13*(1-$D$177),Q212)","v":0},{"$f":"IF('Data Input - Option 5'!$F$37=\"Yes\",R216+R13*(1-$D$177),R212)","v":0},{"$f":"IF('Data Input - Option 5'!$F$37=\"Yes\",S216+S13*(1-$D$177),S212)","v":0},{"$f":"IF('Data Input - Option 5'!$F$37=\"Yes\",T216+T13*(1-$D$177),T212)","v":0},{"$f":"IF('Data Input - Option 5'!$F$37=\"Yes\",U216+U13*(1-$D$177),U212)","v":0},{"$f":"IF('Data Input - Option 5'!$F$37=\"Yes\",V216+V13*(1-$D$177),V212)","v":0},{"$f":"IF('Data Input - Option 5'!$F$37=\"Yes\",W216+W13*(1-$D$177),W212)","v":0},{"$f":"IF('Data Input - Option 5'!$F$37=\"Yes\",X216+X13*(1-$D$177),X212)","v":0},{"$f":"IF('Data Input - Option 5'!$F$37=\"Yes\",Y216+Y13*(1-$D$177),Y212)","v":0},{"$f":"IF('Data Input - Option 5'!$F$37=\"Yes\",Z216+Z13*(1-$D$177),Z212)","v":0},{"$f":"IF('Data Input - Option 5'!$F$37=\"Yes\",AA216+AA13*(1-$D$177),AA212)","v":0},{"$f":"IF('Data Input - Option 5'!$F$37=\"Yes\",AB216+AB13*(1-$D$177),AB212)","v":0},{"$f":"IF('Data Input - Option 5'!$F$37=\"Yes\",AC216+AC13*(1-$D$177),AC212)","v":0},{"$f":"IF('Data Input - Option 5'!$F$37=\"Yes\",AD216+AD13*(1-$D$177),AD212)","v":0},{"$f":"IF('Data Input - Option 5'!$F$37=\"Yes\",AE216+AE13*(1-$D$177),AE212)","v":0},{"$f":"IF('Data Input - Option 5'!$F$37=\"Yes\",AF216+AF13*(1-$D$177),AF212)","v":0},{"$f":"IF('Data Input - Option 5'!$F$37=\"Yes\",AG216+AG13*(1-$D$177),AG212)","v":0},{"$f":"IF('Data Input - Option 5'!$F$37=\"Yes\",AH216+AH13*(1-$D$177),AH212)","v":0},{"$f":"IF('Data Input - Option 5'!$F$37=\"Yes\",AI216+AI13*(1-$D$177),AI212)","v":0},{"$f":"IF('Data Input - Option 5'!$F$37=\"Yes\",AJ216+AJ13*(1-$D$177),AJ212)","v":0},{"$f":"IF('Data Input - Option 5'!$F$37=\"Yes\",AK216+AK13*(1-$D$177),AK212)","v":0},{"$f":"IF('Data Input - Option 5'!$F$37=\"Yes\",AL216+AL13*(1-$D$177),AL212)","v":0},{"$f":"IF('Data Input - Option 5'!$F$37=\"Yes\",AM216+AM13*(1-$D$177),AM212)","v":0},{"$f":"IF('Data Input - Option 5'!$F$37=\"Yes\",AN216+AN13*(1-$D$177),AN212)","v":0},{"$f":"IF('Data Input - Option 5'!$F$37=\"Yes\",AO216+AO13*(1-$D$177),AO212)","v":0},{"$f":"IF('Data Input - Option 5'!$F$37=\"Yes\",AP216+AP13*(1-$D$177),AP212)","v":0},{"$f":"IF('Data Input - Option 5'!$F$37=\"Yes\",AQ216+AQ13*(1-$D$177),AQ212)","v":0},{"$f":"IF('Data Input - Option 5'!$F$37=\"Yes\",AR216+AR13*(1-$D$177),AR212)","v":0},{"$f":"IF('Data Input - Option 5'!$F$37=\"Yes\",AS216+AS13*(1-$D$177),AS212)","v":0},{"$f":"IF('Data Input - Option 5'!$F$37=\"Yes\",AT216+AT13*(1-$D$177),AT212)","v":0},{"$f":"IF('Data Input - Option 5'!$F$37=\"Yes\",AU216+AU13*(1-$D$177),AU212)","v":0},{"$f":"IF('Data Input - Option 5'!$F$37=\"Yes\",AV216+AV13*(1-$D$177),AV212)","v":0},{"$f":"IF('Data Input - Option 5'!$F$37=\"Yes\",AW216+AW13*(1-$D$177),AW212)","v":0},{"$f":"IF('Data Input - Option 5'!$F$37=\"Yes\",AX216+AX13*(1-$D$177),AX212)","v":0},{"$f":"IF('Data Input - Option 5'!$F$37=\"Yes\",AY216+AY13*(1-$D$177),AY212)","v":0},{"$f":"IF('Data Input - Option 5'!$F$37=\"Yes\",AZ216+AZ13*(1-$D$177),AZ212)","v":0},{"$f":"IF('Data Input - Option 5'!$F$37=\"Yes\",BA216+BA13*(1-$D$177),BA212)","v":0},{"$f":"IF('Data Input - Option 5'!$F$37=\"Yes\",BB216+BB13*(1-$D$177),BB212)","v":0},{"$f":"IF('Data Input - Option 5'!$F$37=\"Yes\",BC216+BC13*(1-$D$177),BC212)","v":0},{"$f":"IF('Data Input - Option 5'!$F$37=\"Yes\",BD216+BD13*(1-$D$177),BD212)","v":0},{"$f":"IF('Data Input - Option 5'!$F$37=\"Yes\",BE216+BE13*(1-$D$177),BE212)","v":0},{"$f":"IF('Data Input - Option 5'!$F$37=\"Yes\",BF216+BF13*(1-$D$177),BF212)","v":0},{"$f":"IF('Data Input - Option 5'!$F$37=\"Yes\",BG216+BG13*(1-$D$177),BG212)","v":0},{"$f":"IF('Data Input - Option 5'!$F$37=\"Yes\",BH216+BH13*(1-$D$177),BH212)","v":0},{"$f":"IF('Data Input - Option 5'!$F$37=\"Yes\",BI216+BI13*(1-$D$177),BI212)","v":0},{"$f":"IF('Data Input - Option 5'!$F$37=\"Yes\",BJ216+BJ13*(1-$D$177),BJ212)","v":0},{"$f":"IF('Data Input - Option 5'!$F$37=\"Yes\",BK216+BK13*(1-$D$177),BK212)","v":0},{"$f":"IF('Data Input - Option 5'!$F$37=\"Yes\",BL216+BL13*(1-$D$177),BL212)","v":0},{"$f":"IF('Data Input - Option 5'!$F$37=\"Yes\",BM216+BM13*(1-$D$177),BM212)","v":0},{"$f":"IF('Data Input - Option 5'!$F$37=\"Yes\",BN216+BN13*(1-$D$177),BN212)","v":0},{"$f":"IF('Data Input - Option 5'!$F$37=\"Yes\",BO216+BO13*(1-$D$177),BO212)","v":0},{"$f":"IF('Data Input - Option 5'!$F$37=\"Yes\",BP216+BP13*(1-$D$177),BP212)","v":0},{"$f":"IF('Data Input - Option 5'!$F$37=\"Yes\",BQ216+BQ13*(1-$D$177),BQ212)","v":0},{"$f":"IF('Data Input - Option 5'!$F$37=\"Yes\",BR216+BR13*(1-$D$177),BR212)","v":0},{"$f":"IF('Data Input - Option 5'!$F$37=\"Yes\",BS216+BS13*(1-$D$177),BS212)","v":0},{"$f":"IF('Data Input - Option 5'!$F$37=\"Yes\",BT216+BT13*(1-$D$177),BT212)","v":0},{"$f":"IF('Data Input - Option 5'!$F$37=\"Yes\",BU216+BU13*(1-$D$177),BU212)","v":0},{"$f":"IF('Data Input - Option 5'!$F$37=\"Yes\",BV216+BV13*(1-$D$177),BV212)","v":0},{"$f":"IF('Data Input - Option 5'!$F$37=\"Yes\",BW216+BW13*(1-$D$177),BW212)","v":0},{"$f":"IF('Data Input - Option 5'!$F$37=\"Yes\",BX216+BX13*(1-$D$177),BX212)","v":0},{"$f":"IF('Data Input - Option 5'!$F$37=\"Yes\",BY216+BY13*(1-$D$177),BY212)","v":0},{"$f":"IF('Data Input - Option 5'!$F$37=\"Yes\",BZ216+BZ13*(1-$D$177),BZ212)","v":0},{"$f":"IF('Data Input - Option 5'!$F$37=\"Yes\",CA216+CA13*(1-$D$177),CA212)","v":0},{"$f":"IF('Data Input - Option 5'!$F$37=\"Yes\",CB216+CB13*(1-$D$177),CB212)","v":0},{"$f":"IF('Data Input - Option 5'!$F$37=\"Yes\",CC216+CC13*(1-$D$177),CC212)","v":0},{"$f":"IF('Data Input - Option 5'!$F$37=\"Yes\",CD216+CD13*(1-$D$177),CD212)","v":0},{"$f":"IF('Data Input - Option 5'!$F$37=\"Yes\",CE216+CE13*(1-$D$177),CE212)","v":0},{"$f":"IF('Data Input - Option 5'!$F$37=\"Yes\",CF216+CF13*(1-$D$177),CF212)","v":0},{"$f":"IF('Data Input - Option 5'!$F$37=\"Yes\",CG216+CG13*(1-$D$177),CG212)","v":0},{"$f":"IF('Data Input - Option 5'!$F$37=\"Yes\",CH216+CH13*(1-$D$177),CH212)","v":0},{"$f":"IF('Data Input - Option 5'!$F$37=\"Yes\",CI216+CI13*(1-$D$177),CI212)","v":0},{"$f":"IF('Data Input - Option 5'!$F$37=\"Yes\",CJ216+CJ13*(1-$D$177),CJ212)","v":0},{"$f":"IF('Data Input - Option 5'!$F$37=\"Yes\",CK216+CK13*(1-$D$177),CK212)","v":0},{"$f":"IF('Data Input - Option 5'!$F$37=\"Yes\",CL216+CL13*(1-$D$177),CL212)","v":0},{"$f":"IF('Data Input - Option 5'!$F$37=\"Yes\",CM216+CM13*(1-$D$177),CM212)","v":0},{"$f":"IF('Data Input - Option 5'!$F$37=\"Yes\",CN216+CN13*(1-$D$177),CN212)","v":0},{"$f":"IF('Data Input - Option 5'!$F$37=\"Yes\",CO216+CO13*(1-$D$177),CO212)","v":0},{"$f":"IF('Data Input - Option 5'!$F$37=\"Yes\",CP216+CP13*(1-$D$177),CP212)","v":0},{"$f":"IF('Data Input - Option 5'!$F$37=\"Yes\",CQ216+CQ13*(1-$D$177),CQ212)","v":0},{"$f":"IF('Data Input - Option 5'!$F$37=\"Yes\",CR216+CR13*(1-$D$177),CR212)","v":0},{"$f":"IF('Data Input - Option 5'!$F$37=\"Yes\",CS216+CS13*(1-$D$177),CS212)","v":0},{"$f":"IF('Data Input - Option 5'!$F$37=\"Yes\",CT216+CT13*(1-$D$177),CT212)","v":0},{"$f":"IF('Data Input - Option 5'!$F$37=\"Yes\",CU216+CU13*(1-$D$177),CU212)","v":0},{"$f":"IF('Data Input - Option 5'!$F$37=\"Yes\",CV216+CV13*(1-$D$177),CV212)","v":0},{"$f":"IF('Data Input - Option 5'!$F$37=\"Yes\",CW216+CW13*(1-$D$177),CW212)","v":0},{"$f":"IF('Data Input - Option 5'!$F$37=\"Yes\",CX216+CX13*(1-$D$177),CX212)","v":0},{"$f":"IF('Data Input - Option 5'!$F$37=\"Yes\",CY216+CY13*(1-$D$177),CY212)","v":0}]
[]
[null,"High WACC","%",{"$f":"'Data Input - General'!H16","v":7.0000000000000007E-2}]
[null,"Annualised payment","£000's",{"$f":"IFERROR(-PMT($D$196,SUM('Data Input - General'!$H$26:$H$28),D20*(1+D177)*1000)/1000,0)","v":0}]
[null,"Annual value","£000's",{"$f":"IF(SUM($D$12:D$12)=0,0,$D$221)","v":0},{"$f":"IF(SUM($D$12:E$12)=0,0,$D$221)","v":0},{"$f":"IF(SUM($D$12:F$12)=0,0,$D$221)","v":0},{"$f":"IF(SUM($D$12:G$12)=0,0,$D$221)","v":0},{"$f":"IF(SUM($D$12:H$12)=0,0,$D$221)","v":0},{"$f":"IF(SUM($D$12:I$12)=0,0,$D$221)","v":0},{"$f":"IF(SUM($D$12:J$12)=0,0,$D$221)","v":0},{"$f":"IF(SUM($D$12:K$12)=0,0,$D$221)","v":0},{"$f":"IF(SUM($D$12:L$12)=0,0,$D$221)","v":0},{"$f":"IF(SUM($D$12:M$12)=0,0,$D$221)","v":0},{"$f":"IF(SUM($D$12:N$12)=0,0,$D$221)","v":0},{"$f":"IF(SUM($D$12:O$12)=0,0,$D$221)","v":0},{"$f":"IF(SUM($D$12:P$12)=0,0,$D$221)","v":0},{"$f":"IF(SUM($D$12:Q$12)=0,0,$D$221)","v":0},{"$f":"IF(SUM($D$12:R$12)=0,0,$D$221)","v":0},{"$f":"IF(SUM($D$12:S$12)=0,0,$D$221)","v":0},{"$f":"IF(SUM($D$12:T$12)=0,0,$D$221)","v":0},{"$f":"IF(SUM($D$12:U$12)=0,0,$D$221)","v":0},{"$f":"IF(SUM($D$12:V$12)=0,0,$D$221)","v":0},{"$f":"IF(SUM($D$12:W$12)=0,0,$D$221)","v":0},{"$f":"IF(SUM($D$12:X$12)=0,0,$D$221)","v":0},{"$f":"IF(SUM($D$12:Y$12)=0,0,$D$221)","v":0},{"$f":"IF(SUM($D$12:Z$12)=0,0,$D$221)","v":0},{"$f":"IF(SUM($D$12:AA$12)=0,0,$D$221)","v":0},{"$f":"IF(SUM($D$12:AB$12)=0,0,$D$221)","v":0},{"$f":"IF(SUM($D$12:AC$12)=0,0,$D$221)","v":0},{"$f":"IF(SUM($D$12:AD$12)=0,0,$D$221)","v":0},{"$f":"IF(SUM($D$12:AE$12)=0,0,$D$221)","v":0},{"$f":"IF(SUM($D$12:AF$12)=0,0,$D$221)","v":0},{"$f":"IF(SUM($D$12:AG$12)=0,0,$D$221)","v":0},{"$f":"IF(SUM($D$12:AH$12)=0,0,$D$221)","v":0},{"$f":"IF(SUM($D$12:AI$12)=0,0,$D$221)","v":0},{"$f":"IF(SUM($D$12:AJ$12)=0,0,$D$221)","v":0},{"$f":"IF(SUM($D$12:AK$12)=0,0,$D$221)","v":0},{"$f":"IF(SUM($D$12:AL$12)=0,0,$D$221)","v":0},{"$f":"IF(SUM($D$12:AM$12)=0,0,$D$221)","v":0},{"$f":"IF(SUM($D$12:AN$12)=0,0,$D$221)","v":0},{"$f":"IF(SUM($D$12:AO$12)=0,0,$D$221)","v":0},{"$f":"IF(SUM($D$12:AP$12)=0,0,$D$221)","v":0},{"$f":"IF(SUM($D$12:AQ$12)=0,0,$D$221)","v":0},{"$f":"IF(SUM($D$12:AR$12)=0,0,$D$221)","v":0},{"$f":"IF(SUM($D$12:AS$12)=0,0,$D$221)","v":0},{"$f":"IF(SUM($D$12:AT$12)=0,0,$D$221)","v":0},{"$f":"IF(SUM($D$12:AU$12)=0,0,$D$221)","v":0},{"$f":"IF(SUM($D$12:AV$12)=0,0,$D$221)","v":0},{"$f":"IF(SUM($D$12:AW$12)=0,0,$D$221)","v":0},{"$f":"IF(SUM($D$12:AX$12)=0,0,$D$221)","v":0},{"$f":"IF(SUM($D$12:AY$12)=0,0,$D$221)","v":0},{"$f":"IF(SUM($D$12:AZ$12)=0,0,$D$221)","v":0},{"$f":"IF(SUM($D$12:BA$12)=0,0,$D$221)","v":0},{"$f":"IF(SUM($D$12:BB$12)=0,0,$D$221)","v":0},{"$f":"IF(SUM($D$12:BC$12)=0,0,$D$221)","v":0},{"$f":"IF(SUM($D$12:BD$12)=0,0,$D$221)","v":0},{"$f":"IF(SUM($D$12:BE$12)=0,0,$D$221)","v":0},{"$f":"IF(SUM($D$12:BF$12)=0,0,$D$221)","v":0},{"$f":"IF(SUM($D$12:BG$12)=0,0,$D$221)","v":0},{"$f":"IF(SUM($D$12:BH$12)=0,0,$D$221)","v":0},{"$f":"IF(SUM($D$12:BI$12)=0,0,$D$221)","v":0},{"$f":"IF(SUM($D$12:BJ$12)=0,0,$D$221)","v":0},{"$f":"IF(SUM($D$12:BK$12)=0,0,$D$221)","v":0},{"$f":"IF(SUM($D$12:BL$12)=0,0,$D$221)","v":0},{"$f":"IF(SUM($D$12:BM$12)=0,0,$D$221)","v":0},{"$f":"IF(SUM($D$12:BN$12)=0,0,$D$221)","v":0},{"$f":"IF(SUM($D$12:BO$12)=0,0,$D$221)","v":0},{"$f":"IF(SUM($D$12:BP$12)=0,0,$D$221)","v":0},{"$f":"IF(SUM($D$12:BQ$12)=0,0,$D$221)","v":0},{"$f":"IF(SUM($D$12:BR$12)=0,0,$D$221)","v":0},{"$f":"IF(SUM($D$12:BS$12)=0,0,$D$221)","v":0},{"$f":"IF(SUM($D$12:BT$12)=0,0,$D$221)","v":0},{"$f":"IF(SUM($D$12:BU$12)=0,0,$D$221)","v":0},{"$f":"IF(SUM($D$12:BV$12)=0,0,$D$221)","v":0},{"$f":"IF(SUM($D$12:BW$12)=0,0,$D$221)","v":0},{"$f":"IF(SUM($D$12:BX$12)=0,0,$D$221)","v":0},{"$f":"IF(SUM($D$12:BY$12)=0,0,$D$221)","v":0},{"$f":"IF(SUM($D$12:BZ$12)=0,0,$D$221)","v":0},{"$f":"IF(SUM($D$12:CA$12)=0,0,$D$221)","v":0},{"$f":"IF(SUM($D$12:CB$12)=0,0,$D$221)","v":0},{"$f":"IF(SUM($D$12:CC$12)=0,0,$D$221)","v":0},{"$f":"IF(SUM($D$12:CD$12)=0,0,$D$221)","v":0},{"$f":"IF(SUM($D$12:CE$12)=0,0,$D$221)","v":0},{"$f":"IF(SUM($D$12:CF$12)=0,0,$D$221)","v":0},{"$f":"IF(SUM($D$12:CG$12)=0,0,$D$221)","v":0},{"$f":"IF(SUM($D$12:CH$12)=0,0,$D$221)","v":0},{"$f":"IF(SUM($D$12:CI$12)=0,0,$D$221)","v":0},{"$f":"IF(SUM($D$12:CJ$12)=0,0,$D$221)","v":0},{"$f":"IF(SUM($D$12:CK$12)=0,0,$D$221)","v":0},{"$f":"IF(SUM($D$12:CL$12)=0,0,$D$221)","v":0},{"$f":"IF(SUM($D$12:CM$12)=0,0,$D$221)","v":0},{"$f":"IF(SUM($D$12:CN$12)=0,0,$D$221)","v":0},{"$f":"IF(SUM($D$12:CO$12)=0,0,$D$221)","v":0},{"$f":"IF(SUM($D$12:CP$12)=0,0,$D$221)","v":0},{"$f":"IF(SUM($D$12:CQ$12)=0,0,$D$221)","v":0},{"$f":"IF(SUM($D$12:CR$12)=0,0,$D$221)","v":0},{"$f":"IF(SUM($D$12:CS$12)=0,0,$D$221)","v":0},{"$f":"IF(SUM($D$12:CT$12)=0,0,$D$221)","v":0},{"$f":"IF(SUM($D$12:CU$12)=0,0,$D$221)","v":0},{"$f":"IF(SUM($D$12:CV$12)=0,0,$D$221)","v":0},{"$f":"IF(SUM($D$12:CW$12)=0,0,$D$221)","v":0},{"$f":"IF(SUM($D$12:CX$12)=0,0,$D$221)","v":0},{"$f":"IF(SUM($D$12:CY$12)=0,0,$D$221)","v":0}]
[null,"Discounted WACC","£000's",{"$f":"D222*D$7","v":0},{"$f":"E222*E$7","v":0},0,0,0,0,0,0,0,0,0,0,0,0,0,0,0,0,0,0,0,0,0,0,0,0,0,0,0,0,0,0,0,0,0,0,0,0,0,0,0,0,0,0,0,0,0,0,0,0,0,0,0,0,0,0,0,0,0,0,0,0,0,0,0,{"$f":"BQ222*BQ$7","v":0},0,0,0,0,0,0,0,0,0,0,0,0,0,0,0,0,0,0,0,0,0,0,0,0,0,0,0,0,0,0,0,0,0,0]
[]
[null,"Financing costs"]
[null,"Financing costs (if entered manually)","£000's",{"$f":"'Data Input - Option 5'!H42","v":0},{"$f":"'Data Input - Option 5'!I42","v":0},{"$f":"'Data Input - Option 5'!J42","v":0},{"$f":"'Data Input - Option 5'!K42","v":0},{"$f":"'Data Input - Option 5'!L42","v":0},{"$f":"'Data Input - Option 5'!M42","v":0},{"$f":"'Data Input - Option 5'!N42","v":0},{"$f":"'Data Input - Option 5'!O42","v":0},{"$f":"'Data Input - Option 5'!P42","v":0},{"$f":"'Data Input - Option 5'!Q42","v":0},{"$f":"'Data Input - Option 5'!R42","v":0},{"$f":"'Data Input - Option 5'!S42","v":0},{"$f":"'Data Input - Option 5'!T42","v":0},{"$f":"'Data Input - Option 5'!U42","v":0},{"$f":"'Data Input - Option 5'!V42","v":0},{"$f":"'Data Input - Option 5'!W42","v":0},{"$f":"'Data Input - Option 5'!X42","v":0},{"$f":"'Data Input - Option 5'!Y42","v":0},{"$f":"'Data Input - Option 5'!Z42","v":0},{"$f":"'Data Input - Option 5'!AA42","v":0},{"$f":"'Data Input - Option 5'!AB42","v":0},{"$f":"'Data Input - Option 5'!AC42","v":0},{"$f":"'Data Input - Option 5'!AD42","v":0},{"$f":"'Data Input - Option 5'!AE42","v":0},{"$f":"'Data Input - Option 5'!AF42","v":0},{"$f":"'Data Input - Option 5'!AG42","v":0},{"$f":"'Data Input - Option 5'!AH42","v":0},{"$f":"'Data Input - Option 5'!AI42","v":0},{"$f":"'Data Input - Option 5'!AJ42","v":0},{"$f":"'Data Input - Option 5'!AK42","v":0},{"$f":"'Data Input - Option 5'!AL42","v":0},{"$f":"'Data Input - Option 5'!AM42","v":0},{"$f":"'Data Input - Option 5'!AN42","v":0},{"$f":"'Data Input - Option 5'!AO42","v":0},{"$f":"'Data Input - Option 5'!AP42","v":0},{"$f":"'Data Input - Option 5'!AQ42","v":0},{"$f":"'Data Input - Option 5'!AR42","v":0},{"$f":"'Data Input - Option 5'!AS42","v":0},{"$f":"'Data Input - Option 5'!AT42","v":0},{"$f":"'Data Input - Option 5'!AU42","v":0},{"$f":"'Data Input - Option 5'!AV42","v":0},{"$f":"'Data Input - Option 5'!AW42","v":0},{"$f":"'Data Input - Option 5'!AX42","v":0},{"$f":"'Data Input - Option 5'!AY42","v":0},{"$f":"'Data Input - Option 5'!AZ42","v":0},{"$f":"'Data Input - Option 5'!BA42","v":0},{"$f":"'Data Input - Option 5'!BB42","v":0},{"$f":"'Data Input - Option 5'!BC42","v":0},{"$f":"'Data Input - Option 5'!BD42","v":0},{"$f":"'Data Input - Option 5'!BE42","v":0},{"$f":"'Data Input - Option 5'!BF42","v":0},{"$f":"'Data Input - Option 5'!BG42","v":0},{"$f":"'Data Input - Option 5'!BH42","v":0},{"$f":"'Data Input - Option 5'!BI42","v":0},{"$f":"'Data Input - Option 5'!BJ42","v":0},{"$f":"'Data Input - Option 5'!BK42","v":0},{"$f":"'Data Input - Option 5'!BL42","v":0},{"$f":"'Data Input - Option 5'!BM42","v":0},{"$f":"'Data Input - Option 5'!BN42","v":0},{"$f":"'Data Input - Option 5'!BO42","v":0},{"$f":"'Data Input - Option 5'!BP42","v":0},{"$f":"'Data Input - Option 5'!BQ42","v":0},{"$f":"'Data Input - Option 5'!BR42","v":0},{"$f":"'Data Input - Option 5'!BS42","v":0},{"$f":"'Data Input - Option 5'!BT42","v":0},{"$f":"'Data Input - Option 5'!BU42","v":0},{"$f":"'Data Input - Option 5'!BV42","v":0},{"$f":"'Data Input - Option 5'!BW42","v":0},{"$f":"'Data Input - Option 5'!BX42","v":0},{"$f":"'Data Input - Option 5'!BY42","v":0},{"$f":"'Data Input - Option 5'!BZ42","v":0},{"$f":"'Data Input - Option 5'!CA42","v":0},{"$f":"'Data Input - Option 5'!CB42","v":0},{"$f":"'Data Input - Option 5'!CC42","v":0},{"$f":"'Data Input - Option 5'!CD42","v":0},{"$f":"'Data Input - Option 5'!CE42","v":0},{"$f":"'Data Input - Option 5'!CF42","v":0},{"$f":"'Data Input - Option 5'!CG42","v":0},{"$f":"'Data Input - Option 5'!CH42","v":0},{"$f":"'Data Input - Option 5'!CI42","v":0},{"$f":"'Data Input - Option 5'!CJ42","v":0},{"$f":"'Data Input - Option 5'!CK42","v":0},{"$f":"'Data Input - Option 5'!CL42","v":0},{"$f":"'Data Input - Option 5'!CM42","v":0},{"$f":"'Data Input - Option 5'!CN42","v":0},{"$f":"'Data Input - Option 5'!CO42","v":0},{"$f":"'Data Input - Option 5'!CP42","v":0},{"$f":"'Data Input - Option 5'!CQ42","v":0},{"$f":"'Data Input - Option 5'!CR42","v":0},{"$f":"'Data Input - Option 5'!CS42","v":0},{"$f":"'Data Input - Option 5'!CT42","v":0},{"$f":"'Data Input - Option 5'!CU42","v":0},{"$f":"'Data Input - Option 5'!CV42","v":0},{"$f":"'Data Input - Option 5'!CW42","v":0},{"$f":"'Data Input - Option 5'!CX42","v":0},{"$f":"'Data Input - Option 5'!CY42","v":0},{"$f":"'Data Input - Option 5'!CZ42","v":0},{"$f":"'Data Input - Option 5'!DA42","v":0},{"$f":"'Data Input - Option 5'!DB42","v":0},{"$f":"'Data Input - Option 5'!DC42","v":0}]
[null,"Discounted finacning","£000's",{"$f":"D226*D$7","v":0},{"$f":"E226*E$7","v":0},0,0,0,0,0,0,0,0,0,0,0,0,0,0,0,0,0,0,0,0,0,0,0,0,0,0,0,0,0,0,0,0,0,0,0,0,0,0,0,0,0,0,0,0,0,0,0,0,0,0,0,0,0,0,0,0,0,0,0,0,0,0,0,{"$f":"BQ226*BQ$7","v":0},0,0,0,0,0,0,0,0,0,0,0,0,0,0,0,0,0,0,0,0,0,0,0,0,0,0,0,0,0,0,0,0,0,0]
[]
[null,"Total capex","£000's",{"$f":"IF('Data Input - Option 5'!$F$37=\"Yes\",D227+D13*(1+$D$177),D223)","v":0},{"$f":"IF('Data Input - Option 5'!$F$37=\"Yes\",E227+E13*(1+$D$177),E223)","v":0},{"$f":"IF('Data Input - Option 5'!$F$37=\"Yes\",F227+F13*(1+$D$177),F223)","v":0},{"$f":"IF('Data Input - Option 5'!$F$37=\"Yes\",G227+G13*(1+$D$177),G223)","v":0},{"$f":"IF('Data Input - Option 5'!$F$37=\"Yes\",H227+H13*(1+$D$177),H223)","v":0},{"$f":"IF('Data Input - Option 5'!$F$37=\"Yes\",I227+I13*(1+$D$177),I223)","v":0},{"$f":"IF('Data Input - Option 5'!$F$37=\"Yes\",J227+J13*(1+$D$177),J223)","v":0},{"$f":"IF('Data Input - Option 5'!$F$37=\"Yes\",K227+K13*(1+$D$177),K223)","v":0},{"$f":"IF('Data Input - Option 5'!$F$37=\"Yes\",L227+L13*(1+$D$177),L223)","v":0},{"$f":"IF('Data Input - Option 5'!$F$37=\"Yes\",M227+M13*(1+$D$177),M223)","v":0},{"$f":"IF('Data Input - Option 5'!$F$37=\"Yes\",N227+N13*(1+$D$177),N223)","v":0},{"$f":"IF('Data Input - Option 5'!$F$37=\"Yes\",O227+O13*(1+$D$177),O223)","v":0},{"$f":"IF('Data Input - Option 5'!$F$37=\"Yes\",P227+P13*(1+$D$177),P223)","v":0},{"$f":"IF('Data Input - Option 5'!$F$37=\"Yes\",Q227+Q13*(1+$D$177),Q223)","v":0},{"$f":"IF('Data Input - Option 5'!$F$37=\"Yes\",R227+R13*(1+$D$177),R223)","v":0},{"$f":"IF('Data Input - Option 5'!$F$37=\"Yes\",S227+S13*(1+$D$177),S223)","v":0},{"$f":"IF('Data Input - Option 5'!$F$37=\"Yes\",T227+T13*(1+$D$177),T223)","v":0},{"$f":"IF('Data Input - Option 5'!$F$37=\"Yes\",U227+U13*(1+$D$177),U223)","v":0},{"$f":"IF('Data Input - Option 5'!$F$37=\"Yes\",V227+V13*(1+$D$177),V223)","v":0},{"$f":"IF('Data Input - Option 5'!$F$37=\"Yes\",W227+W13*(1+$D$177),W223)","v":0},{"$f":"IF('Data Input - Option 5'!$F$37=\"Yes\",X227+X13*(1+$D$177),X223)","v":0},{"$f":"IF('Data Input - Option 5'!$F$37=\"Yes\",Y227+Y13*(1+$D$177),Y223)","v":0},{"$f":"IF('Data Input - Option 5'!$F$37=\"Yes\",Z227+Z13*(1+$D$177),Z223)","v":0},{"$f":"IF('Data Input - Option 5'!$F$37=\"Yes\",AA227+AA13*(1+$D$177),AA223)","v":0},{"$f":"IF('Data Input - Option 5'!$F$37=\"Yes\",AB227+AB13*(1+$D$177),AB223)","v":0},{"$f":"IF('Data Input - Option 5'!$F$37=\"Yes\",AC227+AC13*(1+$D$177),AC223)","v":0},{"$f":"IF('Data Input - Option 5'!$F$37=\"Yes\",AD227+AD13*(1+$D$177),AD223)","v":0},{"$f":"IF('Data Input - Option 5'!$F$37=\"Yes\",AE227+AE13*(1+$D$177),AE223)","v":0},{"$f":"IF('Data Input - Option 5'!$F$37=\"Yes\",AF227+AF13*(1+$D$177),AF223)","v":0},{"$f":"IF('Data Input - Option 5'!$F$37=\"Yes\",AG227+AG13*(1+$D$177),AG223)","v":0},{"$f":"IF('Data Input - Option 5'!$F$37=\"Yes\",AH227+AH13*(1+$D$177),AH223)","v":0},{"$f":"IF('Data Input - Option 5'!$F$37=\"Yes\",AI227+AI13*(1+$D$177),AI223)","v":0},{"$f":"IF('Data Input - Option 5'!$F$37=\"Yes\",AJ227+AJ13*(1+$D$177),AJ223)","v":0},{"$f":"IF('Data Input - Option 5'!$F$37=\"Yes\",AK227+AK13*(1+$D$177),AK223)","v":0},{"$f":"IF('Data Input - Option 5'!$F$37=\"Yes\",AL227+AL13*(1+$D$177),AL223)","v":0},{"$f":"IF('Data Input - Option 5'!$F$37=\"Yes\",AM227+AM13*(1+$D$177),AM223)","v":0},{"$f":"IF('Data Input - Option 5'!$F$37=\"Yes\",AN227+AN13*(1+$D$177),AN223)","v":0},{"$f":"IF('Data Input - Option 5'!$F$37=\"Yes\",AO227+AO13*(1+$D$177),AO223)","v":0},{"$f":"IF('Data Input - Option 5'!$F$37=\"Yes\",AP227+AP13*(1+$D$177),AP223)","v":0},{"$f":"IF('Data Input - Option 5'!$F$37=\"Yes\",AQ227+AQ13*(1+$D$177),AQ223)","v":0},{"$f":"IF('Data Input - Option 5'!$F$37=\"Yes\",AR227+AR13*(1+$D$177),AR223)","v":0},{"$f":"IF('Data Input - Option 5'!$F$37=\"Yes\",AS227+AS13*(1+$D$177),AS223)","v":0},{"$f":"IF('Data Input - Option 5'!$F$37=\"Yes\",AT227+AT13*(1+$D$177),AT223)","v":0},{"$f":"IF('Data Input - Option 5'!$F$37=\"Yes\",AU227+AU13*(1+$D$177),AU223)","v":0},{"$f":"IF('Data Input - Option 5'!$F$37=\"Yes\",AV227+AV13*(1+$D$177),AV223)","v":0},{"$f":"IF('Data Input - Option 5'!$F$37=\"Yes\",AW227+AW13*(1+$D$177),AW223)","v":0},{"$f":"IF('Data Input - Option 5'!$F$37=\"Yes\",AX227+AX13*(1+$D$177),AX223)","v":0},{"$f":"IF('Data Input - Option 5'!$F$37=\"Yes\",AY227+AY13*(1+$D$177),AY223)","v":0},{"$f":"IF('Data Input - Option 5'!$F$37=\"Yes\",AZ227+AZ13*(1+$D$177),AZ223)","v":0},{"$f":"IF('Data Input - Option 5'!$F$37=\"Yes\",BA227+BA13*(1+$D$177),BA223)","v":0},{"$f":"IF('Data Input - Option 5'!$F$37=\"Yes\",BB227+BB13*(1+$D$177),BB223)","v":0},{"$f":"IF('Data Input - Option 5'!$F$37=\"Yes\",BC227+BC13*(1+$D$177),BC223)","v":0},{"$f":"IF('Data Input - Option 5'!$F$37=\"Yes\",BD227+BD13*(1+$D$177),BD223)","v":0},{"$f":"IF('Data Input - Option 5'!$F$37=\"Yes\",BE227+BE13*(1+$D$177),BE223)","v":0},{"$f":"IF('Data Input - Option 5'!$F$37=\"Yes\",BF227+BF13*(1+$D$177),BF223)","v":0},{"$f":"IF('Data Input - Option 5'!$F$37=\"Yes\",BG227+BG13*(1+$D$177),BG223)","v":0},{"$f":"IF('Data Input - Option 5'!$F$37=\"Yes\",BH227+BH13*(1+$D$177),BH223)","v":0},{"$f":"IF('Data Input - Option 5'!$F$37=\"Yes\",BI227+BI13*(1+$D$177),BI223)","v":0},{"$f":"IF('Data Input - Option 5'!$F$37=\"Yes\",BJ227+BJ13*(1+$D$177),BJ223)","v":0},{"$f":"IF('Data Input - Option 5'!$F$37=\"Yes\",BK227+BK13*(1+$D$177),BK223)","v":0},{"$f":"IF('Data Input - Option 5'!$F$37=\"Yes\",BL227+BL13*(1+$D$177),BL223)","v":0},{"$f":"IF('Data Input - Option 5'!$F$37=\"Yes\",BM227+BM13*(1+$D$177),BM223)","v":0},{"$f":"IF('Data Input - Option 5'!$F$37=\"Yes\",BN227+BN13*(1+$D$177),BN223)","v":0},{"$f":"IF('Data Input - Option 5'!$F$37=\"Yes\",BO227+BO13*(1+$D$177),BO223)","v":0},{"$f":"IF('Data Input - Option 5'!$F$37=\"Yes\",BP227+BP13*(1+$D$177),BP223)","v":0},{"$f":"IF('Data Input - Option 5'!$F$37=\"Yes\",BQ227+BQ13*(1+$D$177),BQ223)","v":0},{"$f":"IF('Data Input - Option 5'!$F$37=\"Yes\",BR227+BR13*(1+$D$177),BR223)","v":0},{"$f":"IF('Data Input - Option 5'!$F$37=\"Yes\",BS227+BS13*(1+$D$177),BS223)","v":0},{"$f":"IF('Data Input - Option 5'!$F$37=\"Yes\",BT227+BT13*(1+$D$177),BT223)","v":0},{"$f":"IF('Data Input - Option 5'!$F$37=\"Yes\",BU227+BU13*(1+$D$177),BU223)","v":0},{"$f":"IF('Data Input - Option 5'!$F$37=\"Yes\",BV227+BV13*(1+$D$177),BV223)","v":0},{"$f":"IF('Data Input - Option 5'!$F$37=\"Yes\",BW227+BW13*(1+$D$177),BW223)","v":0},{"$f":"IF('Data Input - Option 5'!$F$37=\"Yes\",BX227+BX13*(1+$D$177),BX223)","v":0},{"$f":"IF('Data Input - Option 5'!$F$37=\"Yes\",BY227+BY13*(1+$D$177),BY223)","v":0},{"$f":"IF('Data Input - Option 5'!$F$37=\"Yes\",BZ227+BZ13*(1+$D$177),BZ223)","v":0},{"$f":"IF('Data Input - Option 5'!$F$37=\"Yes\",CA227+CA13*(1+$D$177),CA223)","v":0},{"$f":"IF('Data Input - Option 5'!$F$37=\"Yes\",CB227+CB13*(1+$D$177),CB223)","v":0},{"$f":"IF('Data Input - Option 5'!$F$37=\"Yes\",CC227+CC13*(1+$D$177),CC223)","v":0},{"$f":"IF('Data Input - Option 5'!$F$37=\"Yes\",CD227+CD13*(1+$D$177),CD223)","v":0},{"$f":"IF('Data Input - Option 5'!$F$37=\"Yes\",CE227+CE13*(1+$D$177),CE223)","v":0},{"$f":"IF('Data Input - Option 5'!$F$37=\"Yes\",CF227+CF13*(1+$D$177),CF223)","v":0},{"$f":"IF('Data Input - Option 5'!$F$37=\"Yes\",CG227+CG13*(1+$D$177),CG223)","v":0},{"$f":"IF('Data Input - Option 5'!$F$37=\"Yes\",CH227+CH13*(1+$D$177),CH223)","v":0},{"$f":"IF('Data Input - Option 5'!$F$37=\"Yes\",CI227+CI13*(1+$D$177),CI223)","v":0},{"$f":"IF('Data Input - Option 5'!$F$37=\"Yes\",CJ227+CJ13*(1+$D$177),CJ223)","v":0},{"$f":"IF('Data Input - Option 5'!$F$37=\"Yes\",CK227+CK13*(1+$D$177),CK223)","v":0},{"$f":"IF('Data Input - Option 5'!$F$37=\"Yes\",CL227+CL13*(1+$D$177),CL223)","v":0},{"$f":"IF('Data Input - Option 5'!$F$37=\"Yes\",CM227+CM13*(1+$D$177),CM223)","v":0},{"$f":"IF('Data Input - Option 5'!$F$37=\"Yes\",CN227+CN13*(1+$D$177),CN223)","v":0},{"$f":"IF('Data Input - Option 5'!$F$37=\"Yes\",CO227+CO13*(1+$D$177),CO223)","v":0},{"$f":"IF('Data Input - Option 5'!$F$37=\"Yes\",CP227+CP13*(1+$D$177),CP223)","v":0},{"$f":"IF('Data Input - Option 5'!$F$37=\"Yes\",CQ227+CQ13*(1+$D$177),CQ223)","v":0},{"$f":"IF('Data Input - Option 5'!$F$37=\"Yes\",CR227+CR13*(1+$D$177),CR223)","v":0},{"$f":"IF('Data Input - Option 5'!$F$37=\"Yes\",CS227+CS13*(1+$D$177),CS223)","v":0},{"$f":"IF('Data Input - Option 5'!$F$37=\"Yes\",CT227+CT13*(1+$D$177),CT223)","v":0},{"$f":"IF('Data Input - Option 5'!$F$37=\"Yes\",CU227+CU13*(1+$D$177),CU223)","v":0},{"$f":"IF('Data Input - Option 5'!$F$37=\"Yes\",CV227+CV13*(1+$D$177),CV223)","v":0},{"$f":"IF('Data Input - Option 5'!$F$37=\"Yes\",CW227+CW13*(1+$D$177),CW223)","v":0},{"$f":"IF('Data Input - Option 5'!$F$37=\"Yes\",CX227+CX13*(1+$D$177),CX223)","v":0},{"$f":"IF('Data Input - Option 5'!$F$37=\"Yes\",CY227+CY13*(1+$D$177),CY223)","v":0}]
[]
[null,"TOTALS"]
[]
[null,"Scenario Name",null,"Central","Low values","High values","EEA",null,"Low cost (Capex / opex)","High Cost (capex / opex)","Low WACC","High WACC","Low cost (Capex / WACC)","High cost (Capex / WACC)","Water"]
[null,"Capex","£000's",{"$f":"SUM(D36:CY36)","v":0},null,null,null,null,{"$f":"D234*(1-$D$177)","v":0},{"$f":"D234*(1+$D$177)","v":0},{"$f":"SUM(D194:CY194)","v":0},{"$f":"SUM(D205:CY205)","v":0},{"$f":"SUM(D218:CY218)","v":0},{"$f":"SUM(D229:CY229)","v":0}]
[null,"Opex","£000's",{"$f":"SUM(D40:CY40)","v":0},null,null,null,null,{"$f":"$D$235*(1-$D$181)","v":0},{"$f":"$D$235*(1+$D$181)","v":0}]
[null,"Waste","£000's",{"$f":"SUM(D44:CY44)","v":0}]
[null,"Energy consumption","£000's",{"$f":"SUM(D48:CY48)","v":0},{"$f":"SUM(D101:CY101)+SUM(D49:CY49)","v":0},{"$f":"SUM(D135:CY135)+SUM(D49:CY49)","v":0}]
[null,"Air pollutant emissions","£000's",{"$f":"SUM(D72:CY72)","v":0},{"$f":"SUM(D115:CY115)","v":0},{"$f":"SUM(D149:CY149)","v":0},{"$f":"SUM(D173:CY173)","v":0}]
[null,"GHG emissions","£000's",{"$f":"SUM(D87:CY87)","v":0},{"$f":"SUM(D122:CY122)","v":0},{"$f":"SUM(D156:CY156)","v":0}]
[null,"Wider impacts","£000's"]
[]
[null,"Sensitivity analysis",null,"Low capex","High capex","Low opex","High opex","Low energy price","High energy price","Low AQ Values","High AQ Values","EEA Values","Location adjusted AQ","Low WACC","High WACC","Emissions to water low","Emissions to water high","REMOVED","Including wider environmental impacts"]
[null,"Capex","£000's",{"$f":"I234","v":0},{"$f":"J234","v":0},{"$f":"$D234","v":0},0,0,0,0,0,0,0,{"$f":"K234","v":0},{"$f":"L234","v":0},{"$f":"D234","v":0},{"$f":"D234","v":0},null,{"$f":"D234","v":0}]
[null,"Opex","£000's",{"$f":"$D235","v":0},0,{"$f":"I235","v":0},{"$f":"J235","v":0},{"$f":"$D235","v":0},0,0,0,0,0,0,0,0,0,null,0]
[null,"Waste","£000's",0,0,{"$f":"$D236","v":0},0,0,0,0,0,0,0,0,0,0,0,null,0]
[null,"Energy consumption","£000's",0,0,0,0,{"$f":"E237","v":0},{"$f":"F237","v":0},{"$f":"$D237","v":0},0,0,0,0,0,0,0,null,0]
[null,"Air pollutant emissions","£000's",0,0,0,0,{"$f":"$D238","v":0},{"$f":"$D238","v":0},{"$f":"E238","v":0},{"$f":"F238","v":0},{"$f":"G238","v":0},{"$f":"H238","v":0},{"$f":"$D238","v":0},{"$f":"$D238","v":0},0,0,null,0]
[null,"GHG emissions","£000's",0,0,0,0,{"$f":"$D239","v":0},{"$f":"$D239","v":0},{"$f":"$D239","v":0},{"$f":"$D239","v":0},{"$f":"$D239","v":0},{"$f":"$D239","v":0},{"$f":"$D239","v":0},{"$f":"$D239","v":0},0,0,null,0]
[]
[null,"Scenario analysis",null,"H Cost/L Benefit","L Cost/H benefit","Wider benefits (Low water)","Wider benefits (High water)","L Cost/H ben/Wider ben (low water)","L Cost/H ben/Wider ben (high water)"]
[null,"Capex","£000's",{"$f":"N234","v":0},{"$f":"M234","v":0},{"$f":"D234","v":0},{"$f":"F251","v":0},{"$f":"$M$234","v":0},{"$f":"$M$234","v":0}]
[null,"Opex","£000's",{"$f":"J235","v":0},{"$f":"I235","v":0},{"$f":"D235","v":0},0,{"$f":"I235","v":0},{"$f":"H252","v":0}]
[null,"Waste","£000's",{"$f":"$D$236","v":0},{"$f":"$D$236","v":0},{"$f":"$D$236","v":0},0,{"$f":"$D$236","v":0},{"$f":"H253","v":0}]
[null,"Energy consumption","£000's",{"$f":"E237","v":0},0,{"$f":"D237","v":0},0,{"$f":"F237","v":0},{"$f":"H254","v":0}]
[null,"Air pollutant emissions","£000's",0,0,{"$f":"D238","v":0},0,{"$f":"F238","v":0},{"$f":"H255","v":0}]
[null,"GHG emissions","£000's",0,0,{"$f":"D239","v":0},0,{"$f":"F239","v":0},{"$f":"H256","v":0}]
[]
[null,"Totals £m"]
[]
[null,"Scenario Name",null,"Central","Low values","High values","EEA","Location adjusted","Low cost (Capex / opex)","High Cost (capex / opex)","Low WACC","High WACC","Low cost (Capex / WACC)","High cost (Capex / WACC)"]
[null,"Capex","£m",{"$f":"D234/1000","v":0},0,0,0,0,0,0,0,0,0,0]
[null,"Opex","£m",{"$f":"D235/1000","v":0},0,0,0,0,0,0,0,0,0,0]
[null,"Waste","£m",{"$f":"D236/1000","v":0},0,0,0,0,0,0,0,0,0,0]
[null,"Energy consumption","£m",{"$f":"D237/1000","v":0},0,0,0,0,0,0,0,0,0,0]
[null,"Air pollutant emissions","£m",{"$f":"D238/1000","v":0},0,0,0,0,0,0,0,0,0,0]
[null,"GHG emissions","£m",{"$f":"D239/1000","v":0},0,0,0,0,0,0,0,0,0,0]
[null,"Wider impacts","£m",{"$f":"D240/1000","v":0},0,0,0,0,0,0,0,0,0,0]
[]
[null,"Sensitivity analysis",null,"Low capex","High capex","Low opex","High opex","Low energy price","High energy price","Low AQ Values","High AQ Values","EEA Values","Location adjusted AQ","Low WACC","High WACC"]
[null,"Capex","£m",{"$f":"D243/1000","v":0},0,0,0,0,0,0,0,0,0,0,0]
[null,"Opex","£m",{"$f":"D244/1000","v":0},0,0,0,0,0,0,0,0,0,0,0]
[null,"Waste","£m",{"$f":"D245/1000","v":0},0,0,0,0,0,0,0,0,0,0,0]
[null,"Energy consumption","£m",{"$f":"D246/1000","v":0},0,0,0,0,0,0,0,0,0,0,0]
[null,"Air pollutant emissions","£m",{"$f":"D247/1000","v":0},0,0,0,0,0,0,0,0,0,0,0]
[null,"GHG emissions","£m",{"$f":"D248/1000","v":0},0,0,0,0,0,0,0,0,0,0,0]
[]
[null,"Scenario analysis",null,{"$f":"D250","v":"H Cost/L Benefit"},"L Cost/H benefit"]
[null,"Capex","£m",{"$f":"D251/1000","v":0},0]
[null,"Opex","£m",0,0]
[null,"Waste","£m",0,0]
[null,"Energy consumption","£m",0,0]
[null,"Air pollutant emissions","£m",0,0]
[null,"GHG emissions","£m",0,0]

{"sheet":"Scenario Calcs","index":25,"n_rows":84,"n_cols":7,"rows_kept":84,"cut":false,"hidden":false,"merged":[]}
[]
[null,"Scenario Analysis Calculations"]
[]
[]
[null,null,null,"Sceanrio analysis",null,"H Cost/L Benefit","L Cost/H benefit"]
[null,null,null,null,null,1,2]
[null,"PV",{"$f":"'Data Input - General'!G24","v":"Proposed derogation"},"Capex",null,{"$f":"Calc_Proposed!D278","v":0},{"$f":"Calc_Proposed!E278","v":1.163626495092625E-3}]
[null,null,null,"Opex",null,{"$f":"Calc_Proposed!D279","v":2.9294608740303762},{"$f":"Calc_Proposed!E279","v":1.9529739160202511}]
[null,null,null,"Waste",null,{"$f":"Calc_Proposed!D280","v":0},{"$f":"Calc_Proposed!E280","v":0}]
[null,null,null,"Energy consumption",null,{"$f":"Calc_Proposed!D281","v":10.037007675232445},{"$f":"Calc_Proposed!E281","v":13.977530704422566}]
[null,null,null,"Air pollutant emissions",null,{"$f":"Calc_Proposed!D282","v":7.8474347619674131E-3},{"$f":"Calc_Proposed!E282","v":9.4006057869550616E-2}]
[null,null,null,"GHG emissions",null,{"$f":"Calc_Proposed!D283","v":7.6327113632680703},{"$f":"Calc_Proposed!E283","v":43.812459557315286}]
[null,null,{"$f":"'Data Input - General'!H24","v":"BAT-AEL"},"Capex",null,{"$f":"Calc_BAT!D278","v":22.890878988468259},{"$f":"Calc_BAT!E278","v":11.352966718192411}]
[null,null,null,"Opex",null,{"$f":"Calc_BAT!D279","v":3.6018537494496536},{"$f":"Calc_BAT!E279","v":2.4012358329664361}]
[null,null,null,"Waste",null,{"$f":"Calc_BAT!D280","v":0},{"$f":"Calc_BAT!E280","v":0}]
[null,null,null,"Energy consumption",null,{"$f":"Calc_BAT!D281","v":10.037007675232445},{"$f":"Calc_BAT!E281","v":13.977530704422566}]
[null,null,null,"Air pollutant emissions",null,{"$f":"Calc_BAT!D282","v":4.4192730809460984E-3},{"$f":"Calc_BAT!E282","v":5.2939394030032359E-2}]
[null,null,null,"GHG emissions",null,{"$f":"Calc_BAT!D283","v":7.6327113632680703},{"$f":"Calc_BAT!E283","v":43.812459557315286}]
[null,null,{"$f":"'Data Input - General'!I24","v":"Waste off"},"Capex",null,{"$f":"Calc_Option3!D278","v":5.963720642842997},{"$f":"Calc_Option3!E278","v":5.492998737405558}]
[null,null,null,"Opex",null,{"$f":"Calc_Option3!D279","v":2.1343631941386967},{"$f":"Calc_Option3!E279","v":1.4229087960924645}]
[null,null,null,"Waste",null,{"$f":"Calc_Option3!D280","v":0},{"$f":"Calc_Option3!E280","v":0}]
[null,null,null,"Energy consumption",null,{"$f":"Calc_Option3!D281","v":11.599698494982224},{"$f":"Calc_Option3!E281","v":16.136201205231263}]
[null,null,null,"Air pollutant emissions",null,{"$f":"Calc_Option3!D282","v":3.2427795457357299E-3},{"$f":"Calc_Option3!E282","v":3.884593257302877E-2}]
[null,null,null,"GHG emissions",null,{"$f":"Calc_Option3!D283","v":8.5172161534843482},{"$f":"Calc_Option3!E283","v":48.884907472925818}]
[null,null,{"$f":"'Data Input - General'!J24","v":""},"Capex",null,{"$f":"Calc_Option4!D278","v":0},{"$f":"Calc_Option4!E278","v":0}]
[null,null,null,"Opex",null,{"$f":"Calc_Option4!D279","v":1.25E-3},{"$f":"Calc_Option4!E279","v":7.5000000000000002E-4}]
[null,null,null,"Waste",null,{"$f":"Calc_Option4!D280","v":0},{"$f":"Calc_Option4!E280","v":0}]
[null,null,null,"Energy consumption",null,{"$f":"Calc_Option4!D281","v":2.7833124479980058E-7},{"$f":"Calc_Option4!E281","v":7.9793843802543111E-7}]
[null,null,null,"Air pollutant emissions",null,{"$f":"Calc_Option4!D282","v":0},{"$f":"Calc_Option4!E282","v":0}]
[null,null,null,"GHG emissions",null,{"$f":"Calc_Option4!D283","v":0},{"$f":"Calc_Option4!E283","v":9.9391622544246766E-8}]
[null,null,{"$f":"'Data Input - General'!K24","v":""},"Capex",null,{"$f":"Calc_Option5!D278","v":0},{"$f":"Calc_Option5!E278","v":0}]
[null,null,null,"Opex",null,{"$f":"Calc_Option5!D279","v":0},{"$f":"Calc_Option5!E279","v":0}]
[null,null,null,"Waste",null,{"$f":"Calc_Option5!D280","v":0},{"$f":"Calc_Option5!E280","v":0}]
[null,null,null,"Energy consumption",null,{"$f":"Calc_Option5!D281","v":0},{"$f":"Calc_Option5!E281","v":0}]
[null,null,null,"Air pollutant emissions",null,{"$f":"Calc_Option5!D282","v":0},{"$f":"Calc_Option5!E282","v":0}]
[null,null,null,"GHG emissions",null,{"$f":"Calc_Option5!D283","v":0},{"$f":"Calc_Option5!E283","v":0}]
[null,"NPV",{"$f":"C13","v":"BAT-AEL"},"Capex",null,{"$f":"F13-F7","v":22.890878988468259},{"$f":"G13-G7","v":11.351803091697318}]
[null,null,0,"Opex",null,{"$f":"F14-F8","v":0.67239287541927739},0.448261916946185]
[null,null,0,"Waste",null,0,0]
[null,null,0,"Energy consumption",null,0,0]
[null,null,0,"Air pollutant emissions",null,-3.4281616810213147E-3,{"$f":"G17-G11","v":-4.1066663839518257E-2}]
[null,null,0,"GHG emissions",null,{"$f":"F18-F12","v":0},{"$f":"G18-G12","v":0}]
[null,null,"Waste off","Capex",null,{"$f":"F19-F7","v":5.963720642842997},{"$f":"G19-G7","v":5.4918351109104657}]
[null,null,0,"Opex",null,{"$f":"F20-F8","v":-0.79509767989167957},{"$f":"G20-G8","v":-0.5300651199277866}]
[null,null,0,"Waste",null,{"$f":"F21-F9","v":0},0]
[null,null,0,"Energy consumption",null,{"$f":"F22-F10","v":1.5626908197497791},2.1586705008086966]
[null,null,0,"Air pollutant emissions",null,{"$f":"F23-F11","v":-4.6046552162316828E-3},-5.5160125296521846E-2]
[null,null,0,"GHG emissions",null,{"$f":"F24-F12","v":0.88450479021627793},5.0724479156105318]
[null,null,"","Capex",null,{"$f":"F25-F7","v":0},{"$f":"G25-G7","v":-1.163626495092625E-3}]
[null,null,0,"Opex",null,{"$f":"F26-F8","v":-2.9282108740303761},-1.952223916020251]
[null,null,0,"Waste",null,{"$f":"F27-F9","v":0},0]
[null,null,0,"Energy consumption",null,{"$f":"F28-F10","v":-10.037007396901201},-13.977529906484127]
[null,null,0,"Air pollutant emissions",null,{"$f":"F29-F11","v":-7.8474347619674131E-3},-9.4006057869550616E-2]
[null,null,0,"GHG emissions",null,{"$f":"F30-F12","v":-7.6327113632680703},-43.812459457923666]
[null,null,"","Capex",null,{"$f":"F31-F7","v":0},{"$f":"G31-G7","v":-1.163626495092625E-3}]
[null,null,0,"Opex",null,{"$f":"F32-F8","v":-2.9294608740303762},-1.9529739160202511]
[null,null,0,"Waste",null,{"$f":"F33-F9","v":0},0]
[null,null,0,"Energy consumption",null,{"$f":"F34-F10","v":-10.037007675232445},-13.977530704422566]
[null,null,0,"Air pollutant emissions",null,{"$f":"F35-F11","v":-7.8474347619674131E-3},-9.4006057869550616E-2]
[null,null,0,"GHG emissions",null,{"$f":"F36-F12","v":-7.6327113632680703},-43.812459557315286]
[null,"Costs","BAT-AEL",null,null,{"$f":"(SUM(F37:F40)*-1)","v":-23.563271863887536},{"$f":"(SUM(G37:G40)*-1)","v":-11.800065008643504}]
[null,null,{"$f":"C43","v":"Waste off"},null,null,{"$f":"SUM(F43:F46)*-1","v":-6.7313137827010969},{"$f":"SUM(G43:G46)*-1","v":-7.1204404917913759}]
[null,null,{"$f":"C49","v":""},null,null,{"$f":"SUM(F49:F52)*-1","v":12.965218270931576},{"$f":"SUM(G49:G52)*-1","v":15.930917448999471}]
[null,null,{"$f":"C55","v":""},null,null,{"$f":"SUM(F55:F58)*-1","v":12.966468549262821},{"$f":"SUM(G55:G58)*-1","v":15.93166824693791}]
[null,"Benefits",{"$f":"C61","v":"BAT-AEL"},null,null,{"$f":"SUM(F41:F42)*-1","v":3.4281616810213147E-3},{"$f":"SUM(G41:G42)*-1","v":4.1066663839518257E-2}]
[null,null,"Waste off",null,null,{"$f":"SUM(F47:F48)*-1","v":-0.87990013500004627},{"$f":"SUM(G47:G48)*-1","v":-5.0172877903140103}]
[null,null,"",null,null,{"$f":"SUM(F53:F54)*-1","v":7.640558798030038},{"$f":"SUM(G53:G54)*-1","v":43.906465515793215}]
[null,null,"",null,null,{"$f":"SUM(F59:F60)*-1","v":7.640558798030038},{"$f":"SUM(G59:G60)*-1","v":43.906465615184835}]
[null,"BCR","BAT-AEL",null,null,{"$f":"IFERROR(-F65/F61,0)","v":1.4548750703314794E-4},{"$f":"IFERROR(-G65/G61,0)","v":3.4802065759330205E-3}]
[null,null,"Waste off",null,null,-0.13071744438081534,-0.70463165812537398]
[null,null,"",null,null,-0.58931200681444829,-2.7560537964215444]
[null,null,"",null,null,-0.58925518301314395,-2.755923920498641]
[null,"NPV","BAT-AEL",null,null,{"$f":"IF($C73=\"\",0,F65+F61)","v":-23.559843702206514},{"$f":"IF($C73=\"\",0,G65+G61)","v":-11.758998344803986}]
[null,null,"Waste off",null,null,-7.6112139177011429,-12.137728282105385]
[null,null,"",null,null,0,0]
[null,null,"",null,null,0,0]
[null,"Rank (diff from zero)","BAT-AEL",null,null,{"$f":"IF(F73=0,\"\",F73)","v":-23.559843702206514},-11.758998344803986]
[null,null,"Waste off",null,null,{"$f":"IF(F74=0,\"\",F74)","v":-7.6112139177011429},-12.137728282105385]
[null,null,"",null,null,"",""]
[null,null,"",null,null,"",""]
[null,"Rank",{"$f":"C73","v":"BAT-AEL"},null,null,{"$f":"IFERROR(RANK(F77,F$77:F$80,0),\"No rank\")","v":2},1]
[null,null,{"$f":"C74","v":"Waste off"},null,null,1,2]
[null,null,{"$f":"C75","v":""},null,null,"No rank","No rank"]
[null,null,{"$f":"C76","v":""},null,null,{"$f":"IFERROR(RANK(F80,F$77:F$80,0),\"No rank\")","v":"No rank"},"No rank"]

{"sheet":"Sensitivity Calcs","index":26,"n_rows":129,"n_cols":17,"rows_kept":129,"cut":false,"hidden":false,"merged":[]}
[]
[null,"Sensitivity Calculations"]
[]
[null,"PV",null,null,null,"PV"]
[null,null,null,"Scenario analysis",null,"Low upfront investment costs","High upfront investment costs","Low operating costs","High operating costs","Low energy price","High energy price","Low damage costs","High damage costs","EEA damage costs","Adjusted damage costs","Low WACC","High WACC"]
[null,null,null,null,null,1,2,3,4,5,6,7,8,9,10,11,12]
[null,null,{"$f":"'Data Input - General'!G24","v":"Proposed derogation"},"Capex",null,{"$f":"Calc_Proposed!D270","v":0},{"$f":"Calc_Proposed!E270","v":0},{"$f":"Calc_Proposed!F270","v":0},{"$f":"Calc_Proposed!G270","v":0},{"$f":"Calc_Proposed!H270","v":0},{"$f":"Calc_Proposed!I270","v":0},{"$f":"Calc_Proposed!J270","v":0},{"$f":"Calc_Proposed!K270","v":0},{"$f":"Calc_Proposed!L270","v":0},{"$f":"Calc_Proposed!M270","v":0},{"$f":"Calc_Proposed!N270","v":0},{"$f":"Calc_Proposed!O270","v":0}]
[null,null,null,"Opex",null,{"$f":"Calc_Proposed!D271","v":2.4412173950253138},{"$f":"Calc_Proposed!E271","v":2.4412173950253138},{"$f":"Calc_Proposed!F271","v":1.9529739160202511},{"$f":"Calc_Proposed!G271","v":2.9294608740303762},{"$f":"Calc_Proposed!H271","v":2.4412173950253138},{"$f":"Calc_Proposed!I271","v":2.4412173950253138},{"$f":"Calc_Proposed!J271","v":2.4412173950253138},{"$f":"Calc_Proposed!K271","v":2.4412173950253138},{"$f":"Calc_Proposed!L271","v":2.4412173950253138},{"$f":"Calc_Proposed!M271","v":2.4412173950253138},{"$f":"Calc_Proposed!N271","v":2.4412173950253138},{"$f":"Calc_Proposed!O271","v":2.4412173950253138}]
[null,null,null,"Waste",null,{"$f":"Calc_Proposed!D272","v":0},{"$f":"Calc_Proposed!E272","v":0},{"$f":"Calc_Proposed!F272","v":0},{"$f":"Calc_Proposed!G272","v":0},{"$f":"Calc_Proposed!H272","v":0},{"$f":"Calc_Proposed!I272","v":0},{"$f":"Calc_Proposed!J272","v":0},{"$f":"Calc_Proposed!K272","v":0},{"$f":"Calc_Proposed!L272","v":0},{"$f":"Calc_Proposed!M272","v":0},{"$f":"Calc_Proposed!N272","v":0},{"$f":"Calc_Proposed!O272","v":0}]
[null,null,null,"Energy consumption",null,{"$f":"Calc_Proposed!D273","v":11.919831628597302},{"$f":"Calc_Proposed!E273","v":11.919831628597302},{"$f":"Calc_Proposed!F273","v":11.919831628597302},{"$f":"Calc_Proposed!G273","v":11.919831628597302},{"$f":"Calc_Proposed!H273","v":10.037007675232445},{"$f":"Calc_Proposed!I273","v":13.977530704422566},{"$f":"Calc_Proposed!J273","v":11.919831628597302},{"$f":"Calc_Proposed!K273","v":11.919831628597302},{"$f":"Calc_Proposed!L273","v":11.919831628597302},{"$f":"Calc_Proposed!M273","v":11.919831628597302},{"$f":"Calc_Proposed!N273","v":11.919831628597302},{"$f":"Calc_Proposed!O273","v":11.919831628597302}]
[null,null,null,"Air pollutant emissions",null,{"$f":"Calc_Proposed!D274","v":3.301606858606411E-2},{"$f":"Calc_Proposed!E274","v":3.301606858606411E-2},{"$f":"Calc_Proposed!F274","v":3.301606858606411E-2},{"$f":"Calc_Proposed!G274","v":3.301606858606411E-2},{"$f":"Calc_Proposed!H274","v":3.301606858606411E-2},{"$f":"Calc_Proposed!I274","v":3.301606858606411E-2},{"$f":"Calc_Proposed!J274","v":7.8474347619674131E-3},{"$f":"Calc_Proposed!K274","v":9.4006057869550616E-2},{"$f":"Calc_Proposed!L274","v":5.1898075371535568E-2},{"$f":"Calc_Proposed!M274","v":0},{"$f":"Calc_Proposed!N274","v":3.301606858606411E-2},{"$f":"Calc_Proposed!O274","v":3.301606858606411E-2}]
[null,null,null,"GHG emissions",null,{"$f":"Calc_Proposed!D275","v":15.983981786527293},{"$f":"Calc_Proposed!E275","v":15.983981786527293},{"$f":"Calc_Proposed!F275","v":15.983981786527293},{"$f":"Calc_Proposed!G275","v":15.983981786527293},{"$f":"Calc_Proposed!H275","v":15.983981786527293},{"$f":"Calc_Proposed!I275","v":15.983981786527293},{"$f":"Calc_Proposed!J275","v":15.983981786527293},{"$f":"Calc_Proposed!K275","v":15.983981786527293},{"$f":"Calc_Proposed!L275","v":15.983981786527293},{"$f":"Calc_Proposed!M275","v":15.983981786527293},{"$f":"Calc_Proposed!N275","v":15.983981786527293},{"$f":"Calc_Proposed!O275","v":15.983981786527293}]
[null,null,{"$f":"'Data Input - General'!H24","v":"BAT-AEL"},"Capex",null,{"$f":"Calc_BAT!D270","v":11.83494617901261},{"$f":"Calc_BAT!E270","v":21.979185761023423},{"$f":"Calc_BAT!F270","v":16.907065970018014},{"$f":"Calc_BAT!G270","v":16.907065970018014},{"$f":"Calc_BAT!H270","v":16.907065970018014},{"$f":"Calc_BAT!I270","v":16.907065970018014},{"$f":"Calc_BAT!J270","v":16.907065970018014},{"$f":"Calc_BAT!K270","v":16.907065970018014},{"$f":"Calc_BAT!L270","v":16.907065970018014},{"$f":"Calc_BAT!M270","v":16.907065970018014},{"$f":"Calc_BAT!N270","v":16.218523883132018},{"$f":"Calc_BAT!O270","v":17.608368452667889}]
[null,null,null,"Opex",null,{"$f":"Calc_BAT!D271","v":3.0015447912080448},{"$f":"Calc_BAT!E271","v":3.0015447912080448},{"$f":"Calc_BAT!F271","v":2.4012358329664361},{"$f":"Calc_BAT!G271","v":3.6018537494496536},{"$f":"Calc_BAT!H271","v":3.0015447912080448},{"$f":"Calc_BAT!I271","v":3.0015447912080448},{"$f":"Calc_BAT!J271","v":3.0015447912080448},{"$f":"Calc_BAT!K271","v":3.0015447912080448},{"$f":"Calc_BAT!L271","v":3.0015447912080448},{"$f":"Calc_BAT!M271","v":3.0015447912080448},{"$f":"Calc_BAT!N271","v":3.0015447912080448},{"$f":"Calc_BAT!O271","v":3.0015447912080448}]
[null,null,null,"Waste",null,{"$f":"Calc_BAT!D272","v":0},{"$f":"Calc_BAT!E272","v":0},{"$f":"Calc_BAT!F272","v":0},{"$f":"Calc_BAT!G272","v":0},{"$f":"Calc_BAT!H272","v":0},{"$f":"Calc_BAT!I272","v":0},{"$f":"Calc_BAT!J272","v":0},{"$f":"Calc_BAT!K272","v":0},{"$f":"Calc_BAT!L272","v":0},{"$f":"Calc_BAT!M272","v":0},{"$f":"Calc_BAT!N272","v":0},{"$f":"Calc_BAT!O272","v":0}]
[null,null,null,"Energy consumption",null,{"$f":"Calc_BAT!D273","v":11.919831628597302},{"$f":"Calc_BAT!E273","v":11.919831628597302},{"$f":"Calc_BAT!F273","v":11.919831628597302},{"$f":"Calc_BAT!G273","v":11.919831628597302},{"$f":"Calc_BAT!H273","v":10.037007675232445},{"$f":"Calc_BAT!I273","v":13.977530704422566},{"$f":"Calc_BAT!J273","v":11.919831628597302},{"$f":"Calc_BAT!K273","v":11.919831628597302},{"$f":"Calc_BAT!L273","v":11.919831628597302},{"$f":"Calc_BAT!M273","v":11.919831628597302},{"$f":"Calc_BAT!N273","v":11.919831628597302},{"$f":"Calc_BAT!O273","v":11.919831628597302}]
[null,null,null,"Air pollutant emissions",null,{"$f":"Calc_BAT!D274","v":1.8592957771143444E-2},{"$f":"Calc_BAT!E274","v":1.8592957771143444E-2},{"$f":"Calc_BAT!F274","v":1.8592957771143444E-2},{"$f":"Calc_BAT!G274","v":1.8592957771143444E-2},{"$f":"Calc_BAT!H274","v":1.8592957771143444E-2},{"$f":"Calc_BAT!I274","v":1.8592957771143444E-2},{"$f":"Calc_BAT!J274","v":4.4192730809460984E-3},{"$f":"Calc_BAT!K274","v":5.2939394030032359E-2},{"$f":"Calc_BAT!L274","v":2.9226336299588245E-2},{"$f":"Calc_BAT!M274","v":0},{"$f":"Calc_BAT!N274","v":1.8592957771143444E-2},{"$f":"Calc_BAT!O274","v":1.8592957771143444E-2}]
[null,null,null,"GHG emissions",null,{"$f":"Calc_BAT!D275","v":15.983981786527293},{"$f":"Calc_BAT!E275","v":15.983981786527293},{"$f":"Calc_BAT!F275","v":15.983981786527293},{"$f":"Calc_BAT!G275","v":15.983981786527293},{"$f":"Calc_BAT!H275","v":15.983981786527293},{"$f":"Calc_BAT!I275","v":15.983981786527293},{"$f":"Calc_BAT!J275","v":15.983981786527293},{"$f":"Calc_BAT!K275","v":15.983981786527293},{"$f":"Calc_BAT!L275","v":15.983981786527293},{"$f":"Calc_BAT!M275","v":15.983981786527293},{"$f":"Calc_BAT!N275","v":15.983981786527293},{"$f":"Calc_BAT!O275","v":15.983981786527293}]
[null,null,{"$f":"'Data Input - General'!I24","v":"Waste off"},"Capex",null,{"$f":"Calc_Option3!D270","v":0},{"$f":"Calc_Option3!E270","v":0},{"$f":"Calc_Option3!F270","v":0},{"$f":"Calc_Option3!G270","v":0},{"$f":"Calc_Option3!H270","v":0},{"$f":"Calc_Option3!I270","v":0},{"$f":"Calc_Option3!J270","v":0},{"$f":"Calc_Option3!K270","v":0},{"$f":"Calc_Option3!L270","v":0},{"$f":"Calc_Option3!M270","v":0},{"$f":"Calc_Option3!N270","v":0},{"$f":"Calc_Option3!O270","v":0}]
[null,null,null,"Opex",null,{"$f":"Calc_Option3!D271","v":1.7786359951155806},{"$f":"Calc_Option3!E271","v":1.7786359951155806},{"$f":"Calc_Option3!F271","v":1.4229087960924645},{"$f":"Calc_Option3!G271","v":2.1343631941386967},{"$f":"Calc_Option3!H271","v":1.7786359951155806},{"$f":"Calc_Option3!I271","v":1.7786359951155806},{"$f":"Calc_Option3!J271","v":1.7786359951155806},{"$f":"Calc_Option3!K271","v":1.7786359951155806},{"$f":"Calc_Option3!L271","v":1.7786359951155806},{"$f":"Calc_Option3!M271","v":1.7786359951155806},{"$f":"Calc_Option3!N271","v":1.7786359951155806},{"$f":"Calc_Option3!O271","v":1.7786359951155806}]
[null,null,null,"Waste",null,{"$f":"Calc_Option3!D272","v":0},{"$f":"Calc_Option3!E272","v":0},{"$f":"Calc_Option3!F272","v":0},{"$f":"Calc_Option3!G272","v":0},{"$f":"Calc_Option3!H272","v":0},{"$f":"Calc_Option3!I272","v":0},{"$f":"Calc_Option3!J272","v":0},{"$f":"Calc_Option3!K272","v":0},{"$f":"Calc_Option3!L272","v":0},{"$f":"Calc_Option3!M272","v":0},{"$f":"Calc_Option3!N272","v":0},{"$f":"Calc_Option3!O272","v":0}]
[null,null,null,"Energy consumption",null,{"$f":"Calc_Option3!D273","v":13.760554840926725},{"$f":"Calc_Option3!E273","v":13.760554840926725},{"$f":"Calc_Option3!F273","v":13.760554840926725},{"$f":"Calc_Option3!G273","v":13.760554840926725},{"$f":"Calc_Option3!H273","v":11.599698494982224},{"$f":"Calc_Option3!I273","v":16.136201205231263},{"$f":"Calc_Option3!J273","v":13.760554840926725},{"$f":"Calc_Option3!K273","v":13.760554840926725},{"$f":"Calc_Option3!L273","v":13.760554840926725},{"$f":"Calc_Option3!M273","v":13.760554840926725},{"$f":"Calc_Option3!N273","v":13.760554840926725},{"$f":"Calc_Option3!O273","v":13.760554840926725}]
[null,null,null,"Air pollutant emissions",null,{"$f":"Calc_Option3!D274","v":1.3643163038497816E-2},{"$f":"Calc_Option3!E274","v":1.3643163038497816E-2},{"$f":"Calc_Option3!F274","v":1.3643163038497816E-2},{"$f":"Calc_Option3!G274","v":1.3643163038497816E-2},{"$f":"Calc_Option3!H274","v":1.3643163038497816E-2},{"$f":"Calc_Option3!I274","v":1.3643163038497816E-2},{"$f":"Calc_Option3!J274","v":3.2427795457357299E-3},{"$f":"Calc_Option3!K274","v":3.884593257302877E-2},{"$f":"Calc_Option3!L274","v":2.1445736394458952E-2},{"$f":"Calc_Option3!M274","v":0},{"$f":"Calc_Option3!N274","v":1.3643163038497816E-2},{"$f":"Calc_Option3!O274","v":1.3643163038497816E-2}]
[null,null,null,"GHG emissions",null,{"$f":"Calc_Option3!D275","v":17.835394406139319},{"$f":"Calc_Option3!E275","v":17.835394406139319},{"$f":"Calc_Option3!F275","v":17.835394406139319},{"$f":"Calc_Option3!G275","v":17.835394406139319},{"$f":"Calc_Option3!H275","v":17.835394406139319},{"$f":"Calc_Option3!I275","v":17.835394406139319},{"$f":"Calc_Option3!J275","v":17.835394406139319},{"$f":"Calc_Option3!K275","v":17.835394406139319},{"$f":"Calc_Option3!L275","v":17.835394406139319},{"$f":"Calc_Option3!M275","v":17.835394406139319},{"$f":"Calc_Option3!N275","v":17.835394406139319},{"$f":"Calc_Option3!O275","v":17.835394406139319}]
[null,null,{"$f":"'Data Input - General'!J24","v":""},"Capex",null,{"$f":"Calc_Option4!D270","v":0},{"$f":"Calc_Option4!E270","v":0},{"$f":"Calc_Option4!F270","v":0},{"$f":"Calc_Option4!G270","v":0},{"$f":"Calc_Option4!H270","v":0},{"$f":"Calc_Option4!I270","v":0},{"$f":"Calc_Option4!J270","v":0},{"$f":"Calc_Option4!K270","v":0},{"$f":"Calc_Option4!L270","v":0},{"$f":"Calc_Option4!M270","v":0},{"$f":"Calc_Option4!N270","v":0},{"$f":"Calc_Option4!O270","v":0}]
[null,null,null,"Opex",null,{"$f":"Calc_Option4!D271","v":1E-3},{"$f":"Calc_Option4!E271","v":1E-3},{"$f":"Calc_Option4!F271","v":7.5000000000000002E-4},{"$f":"Calc_Option4!G271","v":1.25E-3},{"$f":"Calc_Option4!H271","v":1E-3},{"$f":"Calc_Option4!I271","v":1E-3},{"$f":"Calc_Option4!J271","v":1E-3},{"$f":"Calc_Option4!K271","v":1E-3},{"$f":"Calc_Option4!L271","v":1E-3},{"$f":"Calc_Option4!M271","v":1E-3},{"$f":"Calc_Option4!N271","v":1E-3},{"$f":"Calc_Option4!O271","v":1E-3}]
[null,null,null,"Waste",null,{"$f":"Calc_Option4!D272","v":0},{"$f":"Calc_Option4!E272","v":0},{"$f":"Calc_Option4!F272","v":0},{"$f":"Calc_Option4!G272","v":0},{"$f":"Calc_Option4!H272","v":0},{"$f":"Calc_Option4!I272","v":0},{"$f":"Calc_Option4!J272","v":0},{"$f":"Calc_Option4!K272","v":0},{"$f":"Calc_Option4!L272","v":0},{"$f":"Calc_Option4!M272","v":0},{"$f":"Calc_Option4!N272","v":0},{"$f":"Calc_Option4!O272","v":0}]
[null,null,null,"Energy consumption",null,{"$f":"Calc_Option4!D273","v":5.0932081704451122E-7},{"$f":"Calc_Option4!E273","v":5.0932081704451122E-7},{"$f":"Calc_Option4!F273","v":5.0932081704451122E-7},{"$f":"Calc_Option4!G273","v":5.0932081704451122E-7},{"$f":"Calc_Option4!H273","v":2.7833124479980058E-7},{"$f":"Calc_Option4!I273","v":7.9793843802543111E-7},{"$f":"Calc_Option4!J273","v":5.0932081704451122E-7},{"$f":"Calc_Option4!K273","v":5.0932081704451122E-7},{"$f":"Calc_Option4!L273","v":5.0932081704451122E-7},{"$f":"Calc_Option4!M273","v":5.0932081704451122E-7},{"$f":"Calc_Option4!N273","v":5.0932081704451122E-7},{"$f":"Calc_Option4!O273","v":5.0932081704451122E-7}]
[null,null,null,"Air pollutant emissions",null,{"$f":"Calc_Option4!D274","v":0},{"$f":"Calc_Option4!E274","v":0},{"$f":"Calc_Option4!F274","v":0},{"$f":"Calc_Option4!G274","v":0},{"$f":"Calc_Option4!H274","v":0},{"$f":"Calc_Option4!I274","v":0},{"$f":"Calc_Option4!J274","v":0},{"$f":"Calc_Option4!K274","v":0},{"$f":"Calc_Option4!L274","v":0},{"$f":"Calc_Option4!M274","v":0},{"$f":"Calc_Option4!N274","v":0},{"$f":"Calc_Option4!O274","v":0}]
[null,null,null,"GHG emissions",null,{"$f":"Calc_Option4!D275","v":1.8535861301779155E-8},{"$f":"Calc_Option4!E275","v":1.8535861301779155E-8},{"$f":"Calc_Option4!F275","v":1.8535861301779155E-8},{"$f":"Calc_Option4!G275","v":1.8535861301779155E-8},{"$f":"Calc_Option4!H275","v":1.8535861301779155E-8},{"$f":"Calc_Option4!I275","v":1.8535861301779155E-8},{"$f":"Calc_Option4!J275","v":1.8535861301779155E-8},{"$f":"Calc_Option4!K275","v":1.8535861301779155E-8},{"$f":"Calc_Option4!L275","v":1.8535861301779155E-8},{"$f":"Calc_Option4!M275","v":1.8535861301779155E-8},{"$f":"Calc_Option4!N275","v":1.8535861301779155E-8},{"$f":"Calc_Option4!O275","v":1.8535861301779155E-8}]
[null,null,{"$f":"'Data Input - General'!K24","v":""},"Capex",null,{"$f":"Calc_Option5!D270","v":0},{"$f":"Calc_Option5!E270","v":0},{"$f":"Calc_Option5!F270","v":0},{"$f":"Calc_Option5!G270","v":0},{"$f":"Calc_Option5!H270","v":0},{"$f":"Calc_Option5!I270","v":0},{"$f":"Calc_Option5!J270","v":0},{"$f":"Calc_Option5!K270","v":0},{"$f":"Calc_Option5!L270","v":0},{"$f":"Calc_Option5!M270","v":0},{"$f":"Calc_Option5!N270","v":0},{"$f":"Calc_Option5!O270","v":0}]
[null,null,null,"Opex",null,{"$f":"Calc_Option5!D271","v":0},{"$f":"Calc_Option5!E271","v":0},{"$f":"Calc_Option5!F271","v":0},{"$f":"Calc_Option5!G271","v":0},{"$f":"Calc_Option5!H271","v":0},{"$f":"Calc_Option5!I271","v":0},{"$f":"Calc_Option5!J271","v":0},{"$f":"Calc_Option5!K271","v":0},{"$f":"Calc_Option5!L271","v":0},{"$f":"Calc_Option5!M271","v":0},{"$f":"Calc_Option5!N271","v":0},{"$f":"Calc_Option5!O271","v":0}]
[null,null,null,"Waste",null,{"$f":"Calc_Option5!D272","v":0},{"$f":"Calc_Option5!E272","v":0},{"$f":"Calc_Option5!F272","v":0},{"$f":"Calc_Option5!G272","v":0},{"$f":"Calc_Option5!H272","v":0},{"$f":"Calc_Option5!I272","v":0},{"$f":"Calc_Option5!J272","v":0},{"$f":"Calc_Option5!K272","v":0},{"$f":"Calc_Option5!L272","v":0},{"$f":"Calc_Option5!M272","v":0},{"$f":"Calc_Option5!N272","v":0},{"$f":"Calc_Option5!O272","v":0}]
[null,null,null,"Energy consumption",null,{"$f":"Calc_Option5!D273","v":0},{"$f":"Calc_Option5!E273","v":0},{"$f":"Calc_Option5!F273","v":0},{"$f":"Calc_Option5!G273","v":0},{"$f":"Calc_Option5!H273","v":0},{"$f":"Calc_Option5!I273","v":0},{"$f":"Calc_Option5!J273","v":0},{"$f":"Calc_Option5!K273","v":0},{"$f":"Calc_Option5!L273","v":0},{"$f":"Calc_Option5!M273","v":0},{"$f":"Calc_Option5!N273","v":0},{"$f":"Calc_Option5!O273","v":0}]
[null,null,null,"Air pollutant emissions",null,{"$f":"Calc_Option5!D274","v":0},{"$f":"Calc_Option5!E274","v":0},{"$f":"Calc_Option5!F274","v":0},{"$f":"Calc_Option5!G274","v":0},{"$f":"Calc_Option5!H274","v":0},{"$f":"Calc_Option5!I274","v":0},{"$f":"Calc_Option5!J274","v":0},{"$f":"Calc_Option5!K274","v":0},{"$f":"Calc_Option5!L274","v":0},{"$f":"Calc_Option5!M274","v":0},{"$f":"Calc_Option5!N274","v":0},{"$f":"Calc_Option5!O274","v":0}]
[null,null,null,"GHG emissions",null,{"$f":"Calc_Option5!D275","v":0},{"$f":"Calc_Option5!E275","v":0},{"$f":"Calc_Option5!F275","v":0},{"$f":"Calc_Option5!G275","v":0},{"$f":"Calc_Option5!H275","v":0},{"$f":"Calc_Option5!I275","v":0},{"$f":"Calc_Option5!J275","v":0},{"$f":"Calc_Option5!K275","v":0},{"$f":"Calc_Option5!L275","v":0},{"$f":"Calc_Option5!M275","v":0},{"$f":"Calc_Option5!N275","v":0},{"$f":"Calc_Option5!O275","v":0}]
[null,"NPV",{"$f":"C13","v":"BAT-AEL"},"Capex",null,{"$f":"F$7-F13","v":-11.83494617901261},-21.979185761023423,-16.907065970018014,-16.907065970018014,-16.907065970018014,-16.907065970018014,-16.907065970018014,-16.907065970018014,-16.907065970018014,-16.907065970018014,-16.218523883132018,-17.608368452667889]
[null,null,0,"Opex",null,{"$f":"F$8-F14","v":-0.56032739618273109},-0.56032739618273109,-0.448261916946185,-0.67239287541927739,-0.56032739618273109,-0.56032739618273109,-0.56032739618273109,-0.56032739618273109,-0.56032739618273109,-0.56032739618273109,-0.56032739618273109,-0.56032739618273109]
[null,null,0,"Waste",null,{"$f":"F$9-F15","v":0},0,0,0,0,0,0,0,0,0,0,0]
[null,null,0,"Energy consumption",null,{"$f":"F$10-F16","v":0},0,0,0,0,0,0,0,0,0,0,0]
[null,null,0,"Air pollutant emissions",null,{"$f":"F$11-F17","v":1.4423110814920665E-2},1.4423110814920665E-2,1.4423110814920665E-2,1.4423110814920665E-2,1.4423110814920665E-2,1.4423110814920665E-2,3.4281616810213147E-3,4.1066663839518257E-2,2.2671739071947323E-2,0,1.4423110814920665E-2,1.4423110814920665E-2]
[null,null,0,"GHG emissions",null,{"$f":"F$12-F18","v":0},0,0,0,0,0,0,0,0,0,0,0]
[null,null,"Waste off","Capex",null,{"$f":"F$7-F19","v":0},0,0,0,0,0,0,0,0,0,0,0]
[null,null,0,"Opex",null,{"$f":"F$8-F20","v":0.66258139990973319},0.66258139990973319,0.5300651199277866,0.79509767989167957,0.66258139990973319,0.66258139990973319,0.66258139990973319,0.66258139990973319,0.66258139990973319,0.66258139990973319,0.66258139990973319,0.66258139990973319]
[null,null,0,"Waste",null,{"$f":"F$9-F21","v":0},0,0,0,0,0,0,0,0,0,0,0]
[null,null,0,"Energy consumption",null,{"$f":"F$10-F22","v":-1.8407232123294222},-1.8407232123294222,-1.8407232123294222,-1.8407232123294222,-1.5626908197497791,-2.1586705008086966,-1.8407232123294222,-1.8407232123294222,-1.8407232123294222,-1.8407232123294222,-1.8407232123294222,-1.8407232123294222]
[null,null,0,"Air pollutant emissions",null,{"$f":"F$11-F23","v":1.9372905547566294E-2},1.9372905547566294E-2,1.9372905547566294E-2,1.9372905547566294E-2,1.9372905547566294E-2,1.9372905547566294E-2,4.6046552162316828E-3,5.5160125296521846E-2,3.0452338977076616E-2,0,1.9372905547566294E-2,1.9372905547566294E-2]
[null,null,0,"GHG emissions",null,{"$f":"F$12-F24","v":-1.8514126196120255},-1.8514126196120255,-1.8514126196120255,-1.8514126196120255,-1.8514126196120255,-1.8514126196120255,-1.8514126196120255,-1.8514126196120255,-1.8514126196120255,-1.8514126196120255,-1.8514126196120255,-1.8514126196120255]
[null,null,"","Capex",null,{"$f":"F$7-F25","v":0},0,0,0,0,0,0,0,0,0,0,0]
[null,null,0,"Opex",null,{"$f":"F$8-F26","v":2.4402173950253139},2.4402173950253139,1.952223916020251,2.9282108740303761,2.4402173950253139,2.4402173950253139,2.4402173950253139,2.4402173950253139,2.4402173950253139,2.4402173950253139,2.4402173950253139,2.4402173950253139]
[null,null,0,"Waste",null,{"$f":"F$9-F27","v":0},0,0,0,0,0,0,0,0,0,0,0]
[null,null,0,"Energy consumption",null,{"$f":"F$10-F28","v":11.919831119276486},11.919831119276486,11.919831119276486,11.919831119276486,10.037007396901201,13.977529906484127,11.919831119276486,11.919831119276486,11.919831119276486,11.919831119276486,11.919831119276486,11.919831119276486]
[null,null,0,"Air pollutant emissions",null,{"$f":"F$11-F29","v":3.301606858606411E-2},3.301606858606411E-2,3.301606858606411E-2,3.301606858606411E-2,3.301606858606411E-2,3.301606858606411E-2,7.8474347619674131E-3,9.4006057869550616E-2,5.1898075371535568E-2,0,3.301606858606411E-2,3.301606858606411E-2]
[null,null,0,"GHG emissions",null,{"$f":"F$12-F30","v":15.983981767991432},15.983981767991432,15.983981767991432,15.983981767991432,15.983981767991432,15.983981767991432,15.983981767991432,15.983981767991432,15.983981767991432,15.983981767991432,15.983981767991432,15.983981767991432]
[null,null,"","Capex",null,{"$f":"F$7-F31","v":0},0,0,0,0,0,0,0,0,0,0,0]
[null,null,0,"Opex",null,{"$f":"F$8-F32","v":2.4412173950253138},2.4412173950253138,1.9529739160202511,2.9294608740303762,2.4412173950253138,2.4412173950253138,2.4412173950253138,2.4412173950253138,2.4412173950253138,2.4412173950253138,2.4412173950253138,2.4412173950253138]
[null,null,0,"Waste",null,{"$f":"F$9-F33","v":0},0,0,0,0,0,0,0,0,0,0,0]
[null,null,0,"Energy consumption",null,{"$f":"F$10-F34","v":11.919831628597302},11.919831628597302,11.919831628597302,11.919831628597302,10.037007675232445,13.977530704422566,11.919831628597302,11.919831628597302,11.919831628597302,11.919831628597302,11.919831628597302,11.919831628597302]
[null,null,0,"Air pollutant emissions",null,{"$f":"F$11-F35","v":3.301606858606411E-2},3.301606858606411E-2,3.301606858606411E-2,3.301606858606411E-2,3.301606858606411E-2,3.301606858606411E-2,7.8474347619674131E-3,9.4006057869550616E-2,5.1898075371535568E-2,0,3.301606858606411E-2,3.301606858606411E-2]
[null,null,0,"GHG emissions",null,{"$f":"F$12-F36","v":15.983981786527293},15.983981786527293,15.983981786527293,15.983981786527293,15.983981786527293,15.983981786527293,15.983981786527293,15.983981786527293,15.983981786527293,15.983981786527293,15.983981786527293,15.983981786527293]
[null,"Total costs","BAT-AEL",null,null,{"$f":"SUMIF(F$37:F$42,\"<\"&0,F$37:F$42)","v":-12.39527357519534},-22.539513157206155,-17.355327886964197,-17.579458845437291,-17.467393366200746,-17.467393366200746,-17.467393366200746,-17.467393366200746,-17.467393366200746,-17.467393366200746,-16.77885127931475,-18.168695848850621]
[null,null,{"$f":"C43","v":"Waste off"},null,null,{"$f":"SUMIF(F$43:F$48,\"<\"&0,F$43:F$48)","v":-3.6921358319414477},-3.6921358319414477,-3.6921358319414477,-3.6921358319414477,-3.4141034393618046,-4.0100831204207221,-3.6921358319414477,-3.6921358319414477,-3.6921358319414477,-3.6921358319414477,-3.6921358319414477,-3.6921358319414477]
[null,null,{"$f":"C49","v":""},null,null,{"$f":"SUMIF(F$49:F$54,\"<\"&0,F$49:F$54)","v":0},0,0,0,0,0,0,0,0,0,0,0]
[null,null,{"$f":"C55","v":""},null,null,{"$f":"SUMIF(F$55:F$60,\"<\"&0,F$55:F$60)","v":0},0,0,0,0,0,0,0,0,0,0,0]
[null,"Total benefit",{"$f":"C61","v":"BAT-AEL"},null,null,{"$f":"SUMIF(F$37:F$42,\">\"&0,F$37:F$42)","v":1.4423110814920665E-2},1.4423110814920665E-2,1.4423110814920665E-2,1.4423110814920665E-2,1.4423110814920665E-2,1.4423110814920665E-2,3.4281616810213147E-3,4.1066663839518257E-2,2.2671739071947323E-2,0,1.4423110814920665E-2,1.4423110814920665E-2]
[null,null,"Waste off",null,null,{"$f":"SUMIF(F$43:F$48,\">\"&0,F$43:F$48)","v":0.68195430545729951},0.68195430545729951,0.54943802547535292,0.81447058543924589,0.68195430545729951,0.68195430545729951,0.66718605512596485,0.717741525206255,0.69303373888680986,0.66258139990973319,0.68195430545729951,0.68195430545729951]
[null,null,"",null,null,{"$f":"SUMIF(F$49:F$54,\">\"&0,F$49:F$54)","v":30.377046350879297},30.377046350879297,29.889052871874235,30.86503982988436,28.494222628504012,32.434745138086939,30.351877717055199,30.438036340162782,30.395928357664769,30.344030282293232,30.377046350879297,30.377046350879297]
[null,null,"",null,null,{"$f":"SUMIF(F$55:F$60,\">\"&0,F$55:F$60)","v":30.378046878735972},30.378046878735972,29.889803399730912,30.866290357741036,28.495222925371117,32.435745954561241,30.352878244911878,30.439036868019461,30.396928885521447,30.345030810149908,30.378046878735972,30.378046878735972]
[null,"BCR","BAT-AEL",null,null,{"$f":"IFERROR(-F65/F61,0)","v":1.1635976186748559E-3},6.3990338719048252E-4,8.3104801642808733E-4,8.2045249183902789E-4,8.2571626530317103E-4,8.2571626530317103E-4,1.9626063312083977E-4,2.3510470611477667E-3,1.2979463275738063E-3,0,8.5960061119927313E-4,7.938440345366391E-4]
[null,null,"Waste off",null,null,{"$f":"IFERROR(-F66/F62,0)","v":0.18470455489680759},0.18470455489680759,0.14881305848014811,0.22059605131346705,0.1997462342806979,0.17005989276994127,0.1807046342537014,0.19439737806960442,0.18770537445866115,0.17945748208329754,0.18470455489680759,0.18470455489680759]
[null,null,"",null,null,{"$f":"IFERROR(-F67/F63,0)","v":0},0,0,0,0,0,0,0,0,0,0,0]
[null,null,"",null,null,{"$f":"IFERROR(-F68/F64,0)","v":0},0,0,0,0,0,0,0,0,0,0,0]
[null,"NPV","BAT-AEL",null,null,{"$f":"IF($C73=\"\",0,F65+F61)","v":-12.380850464380419},-22.525090046391234,-17.340904776149277,-17.56503573462237,-17.452970255385825,-17.452970255385825,-17.463965204519724,-17.426326702361226,-17.4447216271288,-17.467393366200746,-16.76442816849983,-18.154272738035701]
[null,null,"Waste off",null,null,{"$f":"IF($C74=\"\",0,F66+F62)","v":-3.0101815264841481},-3.0101815264841481,-3.1426978064660949,-2.8776652465022017,-2.732149133904505,-3.3281288149634225,-3.0249497768154829,-2.9743943067351926,-2.9991020930546379,-3.0295544320317145,-3.0101815264841481,-3.0101815264841481]
[null,null,"",null,null,{"$f":"IF($C75=\"\",0,F67+F63)","v":0},0,0,0,0,0,0,0,0,0,0,0]
[null,null,"",null,null,{"$f":"IF($C76=\"\",0,F68+F64)","v":0},0,0,0,0,0,0,0,0,0,0,0]
[null,"NPV (if diff from zero)","BAT-AEL",null,null,{"$f":"IF(F73=0,\"\",F73)","v":-12.380850464380419},{"$f":"IF(G73=0,\"\",G73)","v":-22.525090046391234},-17.340904776149277,-17.56503573462237,{"$f":"IF(J73=0,\"\",J73)","v":-17.452970255385825},-17.452970255385825,-17.463965204519724,-17.426326702361226,-17.4447216271288,-17.467393366200746,-16.76442816849983,-18.154272738035701]
[null,null,"Waste off",null,null,{"$f":"IF(F74=0,\"\",F74)","v":-3.0101815264841481},{"$f":"IF(G74=0,\"\",G74)","v":-3.0101815264841481},-3.1426978064660949,-2.8776652465022017,{"$f":"IF(J74=0,\"\",J74)","v":-2.732149133904505},{"$f":"IF(K74=0,\"\",K74)","v":-3.3281288149634225},-3.0249497768154829,-2.9743943067351926,-2.9991020930546379,-3.0295544320317145,-3.0101815264841481,-3.0101815264841481]
[null,null,"",null,null,{"$f":"IF(F75=0,\"\",F75)","v":""},"","","",{"$f":"IF(J75=0,\"\",J75)","v":""},"","","","","","",""]
[null,null,"",null,null,{"$f":"IF(F76=0,\"\",F76)","v":""},"","","",{"$f":"IF(J76=0,\"\",J76)","v":""},"","","","","","",""]
[null,"Rank",{"$f":"C73","v":"BAT-AEL"},null,null,{"$f":"IFERROR(RANK(F77,F$77:F$80,0),\"No rank\")","v":2},2,2,2,2,2,2,2,2,2,2,2]
[null,null,{"$f":"C74","v":"Waste off"},null,null,{"$f":"IFERROR(RANK(F78,F$77:F$80,0),\"No rank\")","v":1},1,1,1,1,1,1,1,1,1,1,1]
[null,null,{"$f":"C75","v":""},null,null,{"$f":"IFERROR(RANK(F79,F$77:F$80,0),\"No rank\")","v":"No rank"},"No rank","No rank","No rank","No rank","No rank","No rank","No rank","No rank","No rank","No rank","No rank"]
[null,null,{"$f":"C76","v":""},null,null,{"$f":"IFERROR(RANK(F80,F$77:F$80,0),\"No rank\")","v":"No rank"},"No rank","No rank","No rank","No rank","No rank","No rank","No rank","No rank","No rank","No rank","No rank"]
[]
[null,"Ranking"]
[]
[null,null,null,null,null,{"$f":"'Sensitivity Analysis'!F32","v":"BAT-AEL"},{"$f":"'Sensitivity Analysis'!G32","v":"Waste off"},{"$f":"'Sensitivity Analysis'!H32","v":""},{"$f":"'Sensitivity Analysis'!I32","v":""}]
[null,null,null,"Low capex",null,{"$f":"IF('Sensitivity Analysis'!F35='Sensitivity Analysis'!F$33,1,0)","v":0},{"$f":"IF('Sensitivity Analysis'!G35='Sensitivity Analysis'!G$33,1,0)","v":0},{"$f":"IF('Sensitivity Analysis'!H35='Sensitivity Analysis'!H$33,1,0)","v":1},{"$f":"IF('Sensitivity Analysis'!I35='Sensitivity Analysis'!I$33,1,0)","v":1}]
[null,null,null,"High capex",null,{"$f":"IF('Sensitivity Analysis'!F36='Sensitivity Analysis'!F$33,1,0)","v":0},{"$f":"IF('Sensitivity Analysis'!G36='Sensitivity Analysis'!G$33,1,0)","v":0},{"$f":"IF('Sensitivity Analysis'!H36='Sensitivity Analysis'!H$33,1,0)","v":1},{"$f":"IF('Sensitivity Analysis'!I36='Sensitivity Analysis'!I$33,1,0)","v":1}]
[null,null,null,"Low opex",null,{"$f":"IF('Sensitivity Analysis'!F37='Sensitivity Analysis'!F$33,1,0)","v":0},{"$f":"IF('Sensitivity Analysis'!G37='Sensitivity Analysis'!G$33,1,0)","v":0},{"$f":"IF('Sensitivity Analysis'!H37='Sensitivity Analysis'!H$33,1,0)","v":1},{"$f":"IF('Sensitivity Analysis'!I37='Sensitivity Analysis'!I$33,1,0)","v":1}]
[null,null,null,"High opex",null,{"$f":"IF('Sensitivity Analysis'!F38='Sensitivity Analysis'!F$33,1,0)","v":0},{"$f":"IF('Sensitivity Analysis'!G38='Sensitivity Analysis'!G$33,1,0)","v":0},{"$f":"IF('Sensitivity Analysis'!H38='Sensitivity Analysis'!H$33,1,0)","v":1},{"$f":"IF('Sensitivity Analysis'!I38='Sensitivity Analysis'!I$33,1,0)","v":1}]
[null,null,null,"Low energy price",null,{"$f":"IF('Sensitivity Analysis'!F39='Sensitivity Analysis'!F$33,1,0)","v":0},{"$f":"IF('Sensitivity Analysis'!G39='Sensitivity Analysis'!G$33,1,0)","v":0},{"$f":"IF('Sensitivity Analysis'!H39='Sensitivity Analysis'!H$33,1,0)","v":1},{"$f":"IF('Sensitivity Analysis'!I39='Sensitivity Analysis'!I$33,1,0)","v":1}]
[null,null,null,"High energy price",null,{"$f":"IF('Sensitivity Analysis'!F40='Sensitivity Analysis'!F$33,1,0)","v":0},{"$f":"IF('Sensitivity Analysis'!G40='Sensitivity Analysis'!G$33,1,0)","v":0},{"$f":"IF('Sensitivity Analysis'!H40='Sensitivity Analysis'!H$33,1,0)","v":1},{"$f":"IF('Sensitivity Analysis'!I40='Sensitivity Analysis'!I$33,1,0)","v":1}]
[null,null,null,"Low AQ Values",null,{"$f":"IF('Sensitivity Analysis'!F41='Sensitivity Analysis'!F$33,1,0)","v":0},{"$f":"IF('Sensitivity Analysis'!G41='Sensitivity Analysis'!G$33,1,0)","v":0},{"$f":"IF('Sensitivity Analysis'!H41='Sensitivity Analysis'!H$33,1,0)","v":1},{"$f":"IF('Sensitivity Analysis'!I41='Sensitivity Analysis'!I$33,1,0)","v":1}]
[null,null,null,"High AQ Values",null,{"$f":"IF('Sensitivity Analysis'!F42='Sensitivity Analysis'!F$33,1,0)","v":0},{"$f":"IF('Sensitivity Analysis'!G42='Sensitivity Analysis'!G$33,1,0)","v":0},{"$f":"IF('Sensitivity Analysis'!H42='Sensitivity Analysis'!H$33,1,0)","v":1},{"$f":"IF('Sensitivity Analysis'!I42='Sensitivity Analysis'!I$33,1,0)","v":1}]
[null,null,null,"EEA Values",null,{"$f":"IF('Sensitivity Analysis'!F43='Sensitivity Analysis'!F$33,1,0)","v":0},{"$f":"IF('Sensitivity Analysis'!G43='Sensitivity Analysis'!G$33,1,0)","v":0},{"$f":"IF('Sensitivity Analysis'!H43='Sensitivity Analysis'!H$33,1,0)","v":1},{"$f":"IF('Sensitivity Analysis'!I43='Sensitivity Analysis'!I$33,1,0)","v":1}]
[null,null,null,"Low WACC",null,{"$f":"IF('Sensitivity Analysis'!F44='Sensitivity Analysis'!F$33,1,0)","v":0},{"$f":"IF('Sensitivity Analysis'!G44='Sensitivity Analysis'!G$33,1,0)","v":0},{"$f":"IF('Sensitivity Analysis'!H44='Sensitivity Analysis'!H$33,1,0)","v":1},{"$f":"IF('Sensitivity Analysis'!I44='Sensitivity Analysis'!I$33,1,0)","v":1}]
[null,null,null,"High WACC",null,{"$f":"IF('Sensitivity Analysis'!F45='Sensitivity Analysis'!F$33,1,0)","v":0},{"$f":"IF('Sensitivity Analysis'!G45='Sensitivity Analysis'!G$33,1,0)","v":0},{"$f":"IF('Sensitivity Analysis'!H45='Sensitivity Analysis'!H$33,1,0)","v":1},{"$f":"IF('Sensitivity Analysis'!I45='Sensitivity Analysis'!I$33,1,0)","v":1}]
[]
[]
[]
[null,"Tipping point BCR Calc"]
[]
[null,null,"Option Name",null,null,{"$f":"Results!H6","v":"Proposed derogation"},{"$f":"Results!I6","v":"BAT-AEL"}]
[null,null,"Capex","£m",null,{"$f":"Calc_Proposed!D261","v":0},{"$f":"IF('Sensitivity Analysis'!F84=0,Calc_BAT!D261,'Sensitivity Analysis'!F84)","v":16.907065970018014}]
[null,null,"Opex","£m",null,{"$f":"Calc_Proposed!D262","v":2.4412173950253138},{"$f":"IF('Sensitivity Analysis'!F85=0,Calc_BAT!D262,'Sensitivity Analysis'!F85)","v":3.0015447912080448}]
[null,null,"Waste","£m",null,{"$f":"Calc_Proposed!D263","v":0},{"$f":"Calc_BAT!D263","v":0}]
[null,null,"Energy consumption","£m",null,{"$f":"Calc_Proposed!D264","v":11.919831628597302},{"$f":"IF('Sensitivity Analysis'!F86=0,Calc_BAT!D264,'Sensitivity Analysis'!F86)","v":11.919831628597302}]
[null,null,"Air pollutant emissions","£m",null,{"$f":"Calc_Proposed!D265","v":3.301606858606411E-2},{"$f":"IF('Sensitivity Analysis'!F87=0,Calc_BAT!D265,'Sensitivity Analysis'!F87)","v":1.8592957771143444E-2}]
[null,null,"GHG emissions","£m",null,{"$f":"Calc_Proposed!D266","v":15.983981786527293},{"$f":"IF('Sensitivity Analysis'!F88=0,Calc_BAT!D266,'Sensitivity Analysis'!F88)","v":15.983981786527293}]
[null,null,"Wider impacts","£m",null,{"$f":"Calc_Proposed!D267","v":0},{"$f":"Calc_BAT!D267","v":0}]
[]
[null,null,"Relative PV assessment"]
[null,null,"Option Name",null,null,null,{"$f":"G105","v":"BAT-AEL"}]
[null,null,"Capex","£m",null,null,{"$f":"$F106-G106","v":-16.907065970018014}]
[null,null,"Opex","£m",null,null,-0.56032739618273109]
[null,null,"Waste","£m",null,null,0]
[null,null,"Energy consumption","£m",null,null,0]
[null,null,"Air pollutant emissions","£m",null,null,1.4423110814920665E-2]
[null,null,"GHG emissions","£m",null,null,0]
[null,null,"Wider impacts","£m",null,null,0]
[]
[null,null,"Option Name",null,null,null,{"$f":"G105","v":"BAT-AEL"}]
[null,null,"PV costs","£m",null,null,{"$f":"SUMIF($G$116:$G$122,\"<\"&0,$G$116:$G$122)","v":-17.467393366200746}]
[null,null,"PV benefits","£m",null,null,{"$f":"SUMIF($G$116:$G$122,\">\"&0,$G$116:$G$122)","v":1.4423110814920665E-2}]
[null,null,"NPV","£m",null,null,{"$f":"G125+G126","v":-17.452970255385825}]
[]
[null,null,"Benefit-Cost (BCR) Ratio","Ratio",null,null,{"$f":"IFERROR(-G126/G125,0)","v":8.2571626530317103E-4}]

{"sheet":"Energy Prices","index":27,"n_rows":53,"n_cols":96,"rows_kept":53,"cut":false,"hidden":false,"merged":[]}
[]
[null,"Long-run Variable Costs of Energy"]
[]
[null,"Tables 9-13: Long-run variable costs of energy supply (LRVCs)"]
[]
[null,"Price base",null,{"$f":"'Data Input - General'!F22","v":2019}]
[null,"Original price base",null,2015]
[null,"Deflation factor",null,{"$f":"INDEX('Discount and deflators'!$K$26:$AE$46,MATCH('Energy Prices'!$D$7,'Discount and deflators'!$B$26:$B$46,0),MATCH('Energy Prices'!$D$6,'Discount and deflators'!$K$20:$AE$20,0))","v":1.0750182614399999}]
[]
[]
[null,"Adjusted prices",null,null,"Year",2010,2011,2012,2013,2014,2015,2016,2017,2018,2019,2020,2021,2022,2023,2024,2025,2026,2027,2028,2029,2030,2031,2032,2033,2034,2035,2036,2037,2038,2039,2040,2041,2042,2043,2044,2045,2046,2047,2048,2049,2050,2051,2052,2053,2054,2055,2056,2057,2058,2059,2060,2061,2062,2063,2064,2065,2066,2067,2068,2069,2070,2071,2072,2073,2074,2075,2076,2077,2078,2079,2080,2081,2082,2083,2084,2085,2086,2087,2088,2089,2090,2091,2092,2093,2094,2095,2096,2097,2098,2099,2100]
[null,"p/kWh","Electricity","Central","Industrial",{"$f":"F34*$D$8","v":7.9196532374885757},8.2208128464561252,8.5757570412326221,8.8618143507110734,{"$f":"J34*$D$8","v":8.7966965603450742},9.1679829643371207,10.03573472200299,10.616626485977649,10.518618039724794,11.151165901253124,11.642441916102989,12.461386026889931,12.731424399929738,13.00440323112243,13.909865576224222,14.511510413581179,14.60744157763771,14.731422450465628,14.216637298837444,14.14908592199545,14.297894245594065,14.297894245594065,14.297894245594065,14.297894245594065,14.297894245594065,14.297894245594065,14.297894245594065,14.297894245594065,14.297894245594065,14.297894245594065,14.297894245594065,14.297894245594065,14.297894245594065,14.297894245594065,14.297894245594065,14.297894245594065,14.297894245594065,14.297894245594065,14.297894245594065,14.297894245594065,14.297894245594065,14.297894245594065,14.297894245594065,14.297894245594065,14.297894245594065,14.297894245594065,14.297894245594065,14.297894245594065,14.297894245594065,14.297894245594065,14.297894245594065,14.297894245594065,14.297894245594065,14.297894245594065,14.297894245594065,14.297894245594065,14.297894245594065,14.297894245594065,14.297894245594065,14.297894245594065,14.297894245594065,14.297894245594065,14.297894245594065,14.297894245594065,14.297894245594065,{"$f":"BS34*$D$8","v":14.297894245594065},14.297894245594065,14.297894245594065,14.297894245594065,14.297894245594065,14.297894245594065,14.297894245594065,14.297894245594065,14.297894245594065,14.297894245594065,14.297894245594065,14.297894245594065,14.297894245594065,14.297894245594065,14.297894245594065,14.297894245594065,14.297894245594065,14.297894245594065,14.297894245594065,14.297894245594065,14.297894245594065,14.297894245594065,14.297894245594065,14.297894245594065,14.297894245594065,14.297894245594065]
[null,"p/kWh","Natural Gas","Central","Industrial",2.0905749147600861,2.4794122500643607,2.6965067204242854,2.9165795377338668,{"$f":"J35*$D$8","v":2.5493972812895391},2.1926053560559948,2.2726010915364179,2.3185661661269434,2.334767678757689,2.3474982436897531,2.4836748689210242,2.6021695088182852,2.7206641487155463,2.8391587886128069,2.957653428510068,3.0761480684073281,3.1327771630444468,3.1327771630444468,3.1327771630444468,3.1435636572610397,3.1381704101527443,3.1381704101527443,3.1381704101527443,3.1381704101527443,3.1381704101527443,3.1381704101527443,3.1381704101527443,3.1381704101527443,3.1381704101527443,3.1381704101527443,3.1381704101527443,3.1381704101527443,3.1381704101527443,3.1381704101527443,3.1381704101527443,3.1381704101527443,3.1381704101527443,3.1381704101527443,3.1381704101527443,3.1381704101527443,3.1381704101527443,3.1381704101527443,3.1381704101527443,3.1381704101527443,3.1381704101527443,3.1381704101527443,3.1381704101527443,3.1381704101527443,3.1381704101527443,3.1381704101527443,3.1381704101527443,3.1381704101527443,3.1381704101527443,3.1381704101527443,3.1381704101527443,3.1381704101527443,3.1381704101527443,3.1381704101527443,3.1381704101527443,3.1381704101527443,3.1381704101527443,3.1381704101527443,3.1381704101527443,3.1381704101527443,3.1381704101527443,3.1381704101527443,3.1381704101527443,3.1381704101527443,3.1381704101527443,3.1381704101527443,3.1381704101527443,3.1381704101527443,3.1381704101527443,3.1381704101527443,3.1381704101527443,3.1381704101527443,3.1381704101527443,3.1381704101527443,3.1381704101527443,3.1381704101527443,3.1381704101527443,3.1381704101527443,3.1381704101527443,3.1381704101527443,3.1381704101527443,3.1381704101527443,3.1381704101527443,3.1381704101527443,3.1381704101527443,3.1381704101527443,3.1381704101527443]
[null,"p/kWh","Coal","Central","Industrial",{"$f":"F36*$D$8","v":1.0896366167092888},{"$f":"G36*$D$8","v":1.184520257961089},1.1377380867497922,1.1765001722796333,1.1574882873663694,0.88068632350341103,0.73487555467754195,0.72991263101591208,0.73719101892295302,0.77105355558709154,0.79510653911777063,0.81916289977240608,0.84321623262858625,0.86726972010972614,0.89132336327386608,0.91537716318628548,0.93943112091955339,0.94685021874006314,0.95434343371571906,0.96191150651292956,0.96955518520130968,0.97727522532769207,0.97729941740180448,0.97732377501308088,0.97734829929422906,0.97737299138570766,0.97739785243577915,0.97742288360056262,0.97744808604408873,0.9774734609383523,0.97749900946336843,0.97752473280722629,0.97755063216614491,0.97757670874452807,0.97760296375502154,0.97762939841856822,0.97765601396446566,0.97768281163042292,0.9777097926626187,0.9777369583157578,0.97776430985313145,0.977791848546675,0.97781957567702693,0.97784749253358805,0.97787560041458355,0.97790390062712029,0.97793239448725022,0.97796108332003007,0.97798996845958353,0.97801905124916344,0.97804833304121352,0.97807781519743209,0.97810749908883499,0.97813738609581935,0.97816747760822764,0.97819777502541294,0.97822827975630344,0.97825899321946796,0.97828991684318189,0.97832105206549413,0.97835240033429316,0.97838396310737552,0.97841574185251212,0.97844773804751772,0.97847995318031877,0.97851238874902402,0.9785450462619919,0.97857792723790304,0.9786110332058291,0.97864436570530511,0.97867792628640016,0.97871171650978994,0.97874573794682984,0.97877999217962641,0.97881448080111255,0.9788492054151211,0.97888416763645936,0.97891936909098354,0.97895481141567564,0.97899049625871837,0.97902642527957306,0.979062600149055,0.97909902254941306,0.97913569417440727,0.97917261672938671,0.97920979193136981,0.97924722150912413,0.97928490720324624,0.97932285076624326,0.97936105396261353,0.97939951856892959]
[null,"p/litre","Gas Oil","Central","Industrial",{"$f":"F37*$D$8","v":59.123256757967866},71.985628842562093,73.551145374913219,70.796543686200906,63.211183613488359,44.048433771836194,47.357815002727534,48.735968381088853,49.790371721435946,50.932081704451122,54.394698757283592,57.866973382015011,61.331930084843677,64.793577590238286,68.255802558924671,71.718608942264595,71.804745348619704,71.891471153649803,71.978790390385839,72.066707119455373,72.155225429271226,72.244349436221711,72.334083284861961,72.424431148106805,72.515397227424657,72.606985753033086,72.699200984095299,72.792047208918476,72.885528745152953,72.979649939993124,73.074415170379609,73.169828843202765,73.265895395507599,73.362619294700167,73.460005038755227,73.558057156425548,73.656780207452343,73.756178782777454,73.856257504756798,73.957021027375305,74.058474036463338,74.160621249914627,74.263467417905673,74.367017323116599,74.47127578095359,74.576247639772859,74.681937781106043,74.788351119887238,74.895492604681621,75.003367217915439,75.111979976107861,75.221335930104132,75.331440165310553,75.442297801930877,75.553913995204539,75.666293935646237,75.779442849287449,75.893365997919361,76.008068679337612,76.123556227588637,76.239834013217703,76.35690744351875,76.47478196278567,76.593463052565653,76.712956231914035,76.833267057650929,76.954401124619636,77.076364065946862,77.199161553304705,77.322799297174271,77.44728304711137,77.572618592013825,77.698811760390683,77.82586842063327,77.953794481288071,78.082595891331536,78.212278640446641,78.342848759301532,78.47431231982992,78.606675435513438,78.739944261665968,78.874124995719825,79.009223877514017,79.145247189584424,79.28220125745591,79.42009244993649,79.558927179413502,79.698711902151857,79.839453118594164,79.981157373663166,80.123831257065987]
[null,"p/litre","Road - Petrol","Central",null,{"$f":"F38*$D$8","v":136.89156631679211},152.71101036369919,152.49086934653241,148.57784535869544,138.95277897723739,119.15532658846213,122.00307738068987,123.37010275077476,124.8706048976069,126.696266147402,130.69982455507008,134.76366909827263,138.78183246650951,142.77933860049464,146.78044947391516,150.78518975263239,151.32288505765351,151.864259607186,152.40933857690098,152.95814731473715,153.51071134207956,154.06705635494635,154.62720822518364,155.19119300166886,155.75903691152206,156.33076636132535,156.90640793835118,157.48598841179847,158.06953473403775,158.65707404186412,159.24863365775968,159.84424109116387,160.44392403975257,161.04771039072659,161.65562822210808,162.26770580404639,162.88397160013287,163.50445426872432,164.12918266427585,164.75818583868258,165.39149304263069,166.0291337269577,166.67113754402206,167.31753434908197,167.96835420168381,168.62362736706012,169.2833843175367,169.94765573395011,170.61647250707401,171.28986573905613,171.96786674486404,172.65050705374202,173.33781841067685,174.02983277787416,174.72658233624489,175.42809948690169,176.13441685266557,176.84556727958321,177.56158383845442,178.2824998263697,179.00834876825891,179.73916441845049,180.47498076224059,181.21583201747404,181.96175263613534,182.71277730595065,183.46894095200125,184.23027873834744,184.99682606966377,185.76861859288547,186.54569219886628,187.32808302404729,188.11582745213769,188.90896211580642,189.70752389838586,190.51154993558711,191.32107761722659,192.13614458896535,192.95678875405912,193.78304827512119,194.61496157589738,195.45256734305227,196.29590452796864,197.14501234855896,197.99993029108884,198.8606981120133,199.72735583982589,200.59994377691964,201.47850250146178,202.3630728692803,203.25369601576426]
[null,"p/litre","Road - Diesel","Central",null,{"$f":"F39*$D$8","v":139.28031877544097},158.6023460959037,159.45005799305886,155.10492205535817,145.05012848067199,123.1955285290077,126.56310355312611,128.14131770206063,129.79012863542863,131.77051499750593,136.28808220531684,140.86593554866221,145.39810771704191,149.90962265116983,154.42474232473322,158.94349140359327,159.48118670861436,160.02256125814682,160.56764022786177,161.11644896569803,161.66901299304038,162.2253580059072,162.78550987614449,163.34949465262972,163.91733856248291,164.4890680122862,165.06470958931203,165.64429006275935,166.22783638499862,166.81537569282497,167.40693530872053,168.00254274212469,168.60222569071342,169.20601204168747,169.8139298730689,170.42600745500724,171.04227325109372,171.66275591968517,172.2874843152367,172.9164874896434,173.54979469359151,174.18743537791855,174.82943919498291,175.47583600004279,176.12665585264463,176.78192901802095,177.44168596849758,178.10595738491094,178.77477415803486,179.44816739001695,180.12616839582486,180.80880870470287,181.4961200616377,182.18813442883504,182.88488398720577,183.58640113786254,184.29271850362642,185.00386893054409,185.71988548941525,186.44080147733055,187.16665041921979,187.89746606941131,188.63328241320144,189.37413366843492,{"$f":"BR39*$D$8","v":190.12005428709617},190.8710789569115,191.6272426029621,192.38858038930829,193.15512772062462,193.92692024384633,194.7039938498271,195.48638467500814,196.27412910309852,197.06726376676727,197.86582554934671,198.66985158654796,199.47937926818747,200.29444623992623,201.11509040501994,201.94134992608204,202.77326322685821,203.61086899401306,204.45420617892952,205.30331399951984,206.15823194204972,207.01899976297418,207.88565749078674,208.75824542788052,209.63680415242263,210.52137452024118,211.41199766672511]
[]
[null,"p/kWh","Electricity","Low","Industrial",{"$f":"F41*$D$8","v":7.9196532374885775},{"$f":"G41*$D$8","v":8.2208128464561252},8.5757570412326221,8.8618143507110734,8.7966965603450742,8.4211834638858019,8.8909672007391016,9.2443071007634732,8.9954648963695121,9.5286914705523387,10.498163961693692,10.597221108525556,11.389240561101989,11.355968371933603,12.244064709794717,12.881390151446944,12.729374104080586,13.273401863912659,13.143706241745656,13.259504822792136,13.399120819045621,13.399120819045621,13.399120819045621,13.399120819045621,13.399120819045621,13.399120819045621,13.399120819045621,13.399120819045621,13.399120819045621,13.399120819045621,13.399120819045621,13.399120819045621,13.399120819045621,13.399120819045621,13.399120819045621,13.399120819045621,13.399120819045621,13.399120819045621,13.399120819045621,13.399120819045621,13.399120819045621,13.399120819045621,13.399120819045621,13.399120819045621,13.399120819045621,13.399120819045621,13.399120819045621,13.399120819045621,13.399120819045621,13.399120819045621,13.399120819045621,13.399120819045621,13.399120819045621,13.399120819045621,13.399120819045621,13.399120819045621,13.399120819045621,13.399120819045621,13.399120819045621,13.399120819045621,13.399120819045621,13.399120819045621,13.399120819045621,13.399120819045621,13.399120819045621,13.399120819045621,13.399120819045621,13.399120819045621,13.399120819045621,13.399120819045621,13.399120819045621,13.399120819045621,13.399120819045621,13.399120819045621,13.399120819045621,13.399120819045621,13.399120819045621,13.399120819045621,13.399120819045621,13.399120819045621,13.399120819045621,13.399120819045621,13.399120819045621,13.399120819045621,13.399120819045621,13.399120819045621,13.399120819045621,13.399120819045621,13.399120819045621,13.399120819045621,13.399120819045621]
[null,"p/kWh","Natural Gas","Low","Industrial",2.0905749147600861,2.4794122500643607,2.6965067204242854,2.9165795377338668,2.5493972812895391,1.8631397233235065,1.7532525931341729,1.6561537794716454,1.5580121282971493,1.4678519392729479,1.5533122818674885,1.6210906391280191,1.6888689963885495,1.7566473536490803,1.8244257109096107,1.8922040681701415,1.9599824254306724,2.0277607826912027,2.0955391399517334,2.1633174972122644,2.2310958544727946,2.2310958544727946,2.2310958544727946,2.2310958544727946,2.2310958544727946,2.2310958544727946,2.2310958544727946,2.2310958544727946,2.2310958544727946,2.2310958544727946,2.2310958544727946,2.2310958544727946,2.2310958544727946,2.2310958544727946,2.2310958544727946,2.2310958544727946,2.2310958544727946,2.2310958544727946,2.2310958544727946,2.2310958544727946,2.2310958544727946,2.2310958544727946,2.2310958544727946,2.2310958544727946,2.2310958544727946,2.2310958544727946,2.2310958544727946,2.2310958544727946,2.2310958544727946,2.2310958544727946,2.2310958544727946,2.2310958544727946,2.2310958544727946,2.2310958544727946,2.2310958544727946,2.2310958544727946,2.2310958544727946,2.2310958544727946,2.2310958544727946,2.2310958544727946,2.2310958544727946,2.2310958544727946,2.2310958544727946,2.2310958544727946,2.2310958544727946,2.2310958544727946,2.2310958544727946,2.2310958544727946,2.2310958544727946,2.2310958544727946,2.2310958544727946,2.2310958544727946,2.2310958544727946,2.2310958544727946,2.2310958544727946,2.2310958544727946,2.2310958544727946,2.2310958544727946,2.2310958544727946,2.2310958544727946,2.2310958544727946,2.2310958544727946,2.2310958544727946,2.2310958544727946,2.2310958544727946,2.2310958544727946,2.2310958544727946,2.2310958544727946,2.2310958544727946,2.2310958544727946,2.2310958544727946]
[null,"p/kWh","Coal","Low","Industrial",1.0896366167092888,1.184520257961089,1.1377380867497922,1.1765001722796333,1.1574882873663694,0.88068632350341103,0.67350809506833975,0.63704282614053942,0.61918118106030018,0.62457598305355899,0.65403700199947201,0.68350139806934129,0.71296276634075506,0.74242428923712855,0.77188596781650232,0.80134780314415532,0.83080979629265717,0.83083317740396057,0.83085671850331799,0.83088042068546653,0.83090428505263458,0.83092831271459289,0.83095250478870508,0.83097686239998148,0.83100138668112966,0.83102607877260837,0.83105093982267975,0.83107597098746322,0.83110117343098933,0.83112654832525301,0.83115209685026914,0.831177820194127,0.83120371955304562,0.83122979613142878,0.83125605114192225,0.83128248580546893,0.83130910135136638,0.83133589901732363,0.83136288004951919,0.8313900457026584,0.83141739724003216,0.83144493593357571,0.83147266306392742,0.83150057992048876,0.83152868780148415,0.83155698801402089,0.83158548187415093,0.83161417070693067,0.83164305584648424,0.83167213863606415,0.83170142042811424,0.8317309025843328,0.83176058647573559,0.83179047348271995,0.83182056499512835,0.83185086241231365,0.83188136714320415,0.83191208060636868,0.83194300423008261,0.83197413945239462,0.83200548772119387,0.83203705049427612,0.83206882923941283,0.83210082543441821,{"$f":"BR43*$D$8","v":0.83213304056721948},0.83216547613592462,0.83219813364889261,0.83223101462480353,0.83226412059272981,0.83229745309220571,0.83233101367330087,0.83236480389669065,0.83239882533373044,0.8324330795665269,0.83246756818801315,0.83250229280202181,0.83253725502336007,0.83257245647788414,0.83260789880257635,0.83264358364561908,0.83267951266647378,0.83271568753595548,0.83275210993631377,0.83278878156130798,0.83282570411628742,0.83286287931827052,0.83290030889602484,0.83293799459014684,0.83297593815314375,0.83301414134951413,0.83305260595583031]
[null,"p/litre","Gas Oil","Low","Industrial",59.123256757967866,{"$f":"G44*$D$8","v":71.985628842562093},73.551145374913219,70.796543686200906,63.211183613488359,34.654818376412187,31.415525540528503,27.939803198507057,27.708023971723904,27.833124479980061,31.53202694983294,35.240586991584784,38.941829111433876,42.639762033848882,46.338272419555686,50.037364219916007,50.123500626271131,50.210226431301209,50.297545668037252,50.385462397106785,50.473980706922639,50.563104713873109,50.652838562513367,50.743186425758203,50.834152505076077,50.925741030684485,51.017956261746718,51.110802486569881,51.204284022804352,51.298405217644529,51.393170448031022,51.488584120854178,51.584650673159018,51.681374572351579,51.77876031640664,51.876812434076946,51.975535485103748,52.074934060428866,52.175012782408217,52.275776305026717,52.37722931411475,52.479376527566053,52.582222695557086,52.685772600768011,52.790031058604995,52.895002917424272,53.000693058757449,53.107106397538651,53.214247882333026,53.322122495566852,53.430735253759266,53.540091207755545,53.650195442961959,53.761053079582297,53.872669272855951,53.98504921329765,54.098198126938861,54.212121275570773,54.326823956989017,54.442311505240035,54.558589290869122,54.675662721170156,54.793537240437075,54.912218330217065,55.031711509565454,55.152022335302334,55.273156402271042,55.395119343598274,55.517916830956111,55.641554574825683,55.766038324762782,55.89137386966523,56.017567038042095,56.144623698284683,56.272549758939483,56.401351168982941,56.531033918098053,56.661604036952937,56.793067597481333,56.92543071316485,57.058699539317374,57.19288027337123,57.327979155165437,57.464002467235844,57.600956535107322,57.738847727587888,57.877682457064914,58.017467179803255,58.15820839624557,58.299912651314578,58.442586534717393]
[null,"p/litre","Road - Petrol","Low",null,136.89156631679211,152.71101036369919,152.49086934653241,148.57784535869544,138.95277897723739,109.50180324068315,105.61968748638364,101.9985373115385,102.17727005238166,102.95819369189097,107.20457519736834,111.51124283838023,115.77222930442646,120.01255853622088,124.25649250745074,128.50405588397732,129.0417511889984,129.58312573853087,130.12820470824585,130.67701344608207,131.22957747342446,131.78592248629124,132.34607435652853,132.91005913301376,133.47790304286696,134.04963249267027,134.62527406969608,135.2048545431434,135.78840086538264,136.37594017320905,136.96749978910461,137.56310722250873,138.16279017109747,138.76657652207149,139.37449435345297,139.98657193539131,140.60283773147773,141.22332040006921,141.84804879562071,142.47705197002745,143.11035917397555,143.74799985830256,144.39000367536696,145.03640048042686,145.68722033302873,146.34249349840502,147.0022504488816,147.66652186529498,148.33533863841896,149.00873187040096,149.68673287620894,150.36937318508694,151.05668454202174,151.74869890921906,152.44544846758978,153.14696561824655,153.85328298401043,154.56443341092813,155.28044996979929,156.0013659577146,156.72721489960384,157.45803054979535,158.19384689358549,158.93469814881894,159.68061876748021,160.43164343729552,161.18780708334614,161.94914486969236,162.71569220100864,163.48748472423034,164.26455833021112,165.04694915539218,165.83469358348256,166.62782824715129,167.42639002973073,168.23041606693201,169.03994374857149,169.85501072031025,170.67565488540399,171.50191440646608,172.33382770724225,173.17143347439716,174.01477065931354,174.86387847990386,175.71879642243374,176.57956424335819,177.44622197117079,178.31880990826454,179.19736863280664,180.0819390006252,180.97256214710913]
[null,"p/litre","Road - Diesel","Low",null,139.28031877544097,158.6023460959037,159.45005799305886,155.10492205535817,145.05012848067199,112.1123232503799,107.75334189235706,103.60463421818226,103.73592236429187,104.51684600380116,109.31319828753279,114.16983670679888,118.98079395109934,123.77109396114798,128.56499871063207,133.36253286541285,133.90022817043393,134.4416027199664,134.98668168968138,135.53549042751763,136.08805445485999,136.64439946772677,137.20455133796409,137.76853611444932,138.33638002430249,138.9081094741058,139.48375105113163,140.06333152457893,140.64687784681817,141.23441715464455,141.82597677054014,142.42158420394429,143.02126715253303,143.62505350350705,144.2329713348885,144.84504891682681,145.46131471291329,146.08179738150477,146.7065257770563,147.33552895146298,147.96883615541111,148.60647683973812,149.24848065680251,149.89487746186239,150.54569731446423,151.20097047984055,151.86072743031716,152.52499884673051,153.19381561985446,153.86720885183649,154.54520985764444,155.22785016652244,155.91516152345727,156.60717589065462,157.30392544902531,158.00544259968208,158.71175996544596,159.42291039236366,160.13892695123482,160.85984293915013,161.58569188103937,162.31650753123088,163.05232387502102,163.79317513025447,164.53909574891574,165.29012041873111,166.0462840647817,166.80762185112786,167.57416918244422,168.34596170566593,169.12303531164667,169.90542613682769,170.69317056491812,171.48630522858687,172.28486701116628,173.08889304836751,173.89842073000705,174.71348770174575,175.53413186683954,176.36039138790164,177.19230468867781,178.02991045583266,178.8732476407491,179.72235546133945,180.57727340386927,181.43804122479375,182.30469895260634,183.1772868897001,184.05584561424217,184.94041598206076,185.83103912854472]
[]
[null,"p/kWh","Electricity","High","Industrial",{"$f":"F48*$D$8","v":7.9196532374885775},{"$f":"G48*$D$8","v":8.2208128464561252},8.5757570412326221,8.8618143507110734,8.7966965603450742,9.8515957854603453,11.102897247782369,11.950375848659485,12.048243715947459,12.761181066865367,13.047538547850678,14.18897859751362,14.156691745503148,14.717752420565706,15.467440495310663,16.064202760073133,15.706454479628682,16.10198602301579,15.383150434442792,15.157277161567151,15.147920408777949,15.147920408777949,15.147920408777949,15.147920408777949,15.147920408777949,15.147920408777949,15.147920408777949,15.147920408777949,15.147920408777949,15.147920408777949,15.147920408777949,15.147920408777949,15.147920408777949,15.147920408777949,15.147920408777949,15.147920408777949,15.147920408777949,15.147920408777949,15.147920408777949,15.147920408777949,15.147920408777949,15.147920408777949,15.147920408777949,15.147920408777949,15.147920408777949,15.147920408777949,15.147920408777949,15.147920408777949,15.147920408777949,15.147920408777949,15.147920408777949,15.147920408777949,15.147920408777949,15.147920408777949,15.147920408777949,15.147920408777949,15.147920408777949,15.147920408777949,15.147920408777949,15.147920408777949,15.147920408777949,15.147920408777949,15.147920408777949,15.147920408777949,15.147920408777949,{"$f":"BS48*$D$8","v":15.147920408777949},15.147920408777949,15.147920408777949,15.147920408777949,15.147920408777949,15.147920408777949,15.147920408777949,15.147920408777949,15.147920408777949,15.147920408777949,15.147920408777949,15.147920408777949,15.147920408777949,15.147920408777949,15.147920408777949,15.147920408777949,15.147920408777949,15.147920408777949,15.147920408777949,15.147920408777949,15.147920408777949,15.147920408777949,15.147920408777949,15.147920408777949,15.147920408777949,15.147920408777949]
[null,"p/kWh","Natural Gas","High","Industrial",2.0905749147600861,2.4794122500643607,2.6965067204242854,2.9165795377338668,2.5493972812895391,2.5220709887884842,2.791949589938663,2.9809785527822399,3.1115232292182289,3.2271445481065575,3.4359243551305454,3.6270221768205246,3.8181199985105021,4.0092178202004796,4.200315641890457,4.3914134635804363,4.3914134635804363,4.3914134635804363,4.3914134635804363,4.3914134635804363,4.3914134635804363,4.3914134635804363,4.3914134635804363,4.3914134635804363,4.3914134635804363,4.3914134635804363,4.3914134635804363,4.3914134635804363,4.3914134635804363,4.3914134635804363,4.3914134635804363,4.3914134635804363,4.3914134635804363,4.3914134635804363,4.3914134635804363,4.3914134635804363,4.3914134635804363,4.3914134635804363,4.3914134635804363,4.3914134635804363,4.3914134635804363,4.3914134635804363,4.3914134635804363,4.3914134635804363,4.3914134635804363,4.3914134635804363,4.3914134635804363,4.3914134635804363,4.3914134635804363,4.3914134635804363,4.3914134635804363,4.3914134635804363,4.3914134635804363,4.3914134635804363,4.3914134635804363,4.3914134635804363,4.3914134635804363,4.3914134635804363,4.3914134635804363,4.3914134635804363,4.3914134635804363,4.3914134635804363,4.3914134635804363,4.3914134635804363,4.3914134635804363,4.3914134635804363,4.3914134635804363,4.3914134635804363,4.3914134635804363,4.3914134635804363,4.3914134635804363,4.3914134635804363,4.3914134635804363,4.3914134635804363,4.3914134635804363,4.3914134635804363,4.3914134635804363,4.3914134635804363,4.3914134635804363,4.3914134635804363,4.3914134635804363,4.3914134635804363,4.3914134635804363,4.3914134635804363,4.3914134635804363,4.3914134635804363,4.3914134635804363,4.3914134635804363,4.3914134635804363,4.3914134635804363,4.3914134635804363]
[null,"p/kWh","Coal","High","Industrial",1.0896366167092888,1.184520257961089,1.1377380867497922,1.1765001722796333,1.1574882873663694,0.88068632350341103,0.79624301428674382,0.82278243589128452,0.85520085678560553,0.91753112812062387,0.94173432693772319,0.96594090287877887,0.99014445102137894,1.0143481537889392,1.0385520122394991,1.0627560274383385,1.0869602004580263,1.1047255965785121,1.1228459929872354,1.1413284875849379,1.1601803202159704,1.1794088755070704,1.179433067581183,1.1794574251924592,1.1794819494736073,1.1795066415650859,1.1795315026151574,1.179556533779941,1.1795817362234668,1.1796071111177304,1.1796326596427467,1.1796583829866045,1.1796842823455234,1.1797103589239064,1.1797366139343999,1.1797630485979467,1.1797896641438439,1.1798164618098013,1.1798434428419968,1.179870608495136,1.1798979600325099,1.1799254987260532,1.1799532258564049,1.1799811427129665,1.1800092505939614,1.1800375508064984,1.1800660446666282,1.1800947334994083,1.1801236186389619,1.1801527014285418,1.1801819832205918,1.1802114653768101,1.1802411492682132,1.1802710362751974,1.1803011277876059,1.1803314252047912,1.1803619299356818,1.1803926433988463,1.1804235670225602,1.1804547022448721,1.1804860505136714,1.1805176132867536,1.1805493920318904,1.1805813882268958,1.180613603359697,1.1806460389284021,1.18067869644137,1.1807115774172812,1.1807446833852073,1.1807780158846832,1.1808115764657783,1.1808453666891681,1.1808793881262081,1.1809136423590045,1.1809481309804908,1.1809828555944994,1.1810178178158375,1.1810530192703617,1.1810884615950541,1.1811241464380966,1.1811600754589511,1.1811962503284332,1.1812326727287914,1.1812693443537854,1.1813062669087648,1.1813434421107483,1.1813808716885024,1.1814185573826246,1.1814565009456215,1.1814947041419919,1.1815331687483077]
[null,"p/litre","Gas Oil","High","Industrial",59.123256757967866,71.985628842562093,73.551145374913219,70.796543686200906,63.211183613488359,53.442049167260237,63.300104464926584,69.532133563670641,74.740496030421525,79.793843802543108,81.944580358971621,84.104974487299089,86.258050693723789,88.407817702714453,90.558162174996895,92.70908806193286,94.860599341921699,97.012700020585527,99.165394130955278,101.3186857336586,103.47257891710808,103.56170292405855,103.65143677269883,103.74178463594366,103.83275071526153,103.92433924086993,104.01655447193217,104.10940069675533,104.20288223298979,104.29700342782998,104.39176865821648,104.48718233103962,104.58324888334447,104.67997278253702,104.7773585265921,104.8754106442624,104.9741336952892,105.07353227061431,105.17361099259365,105.27437451521217,105.37582752430019,105.4779747377515,105.58082090574254,105.68437081095345,105.78862926879044,105.89360112760971,105.9992912689429,106.10570460772411,106.21284609251848,106.32072070575229,106.4293334639447,106.538689417941,106.64879365314741,106.75965128976775,106.87126748304139,106.98364742348309,107.0967963371243,107.21071948575621,107.32542216717448,107.44090971542549,107.55718750105457,107.67426093135559,107.79213545062252,107.91081654040251,{"$f":"BR51*$D$8","v":108.0303097197509},108.15062054548777,108.27175461245649,108.39371755378373,108.51651504114156,108.64015278501113,108.76463653494822,108.88997207985068,109.01616524822754,109.14322190847012,109.27114796912494,109.39994937916839,109.5296321282835,109.66020224713839,109.79166580766677,109.92402892335029,110.05729774950282,110.19147848355668,110.32657736535089,110.46260067742131,110.59955474529278,110.73744593777333,110.87628066725036,111.0160653899887,111.15680660643102,111.29851086150003,111.44118474490284]
[null,"p/litre","Road - Petrol","High",null,136.89156631679211,{"$f":"G52*$D$8","v":152.71101036369919},152.49086934653241,148.57784535869544,138.95277897723739,128.80884993624116,138.38646727499611,144.74166819001107,150.51106359300022,156.35659207555304,159.01197212287425,161.72763830573001,164.39762331362007,167.04695108725835,169.6998836003321,172.35644551870246,175.01666167700995,177.68055707982879,180.34815690283008,183.01948649395268,185.69457137458141,186.25091638744814,186.81106825768546,187.37505303417069,187.94289694402386,188.5146263938272,189.09026797085298,189.6698484443003,190.25339476653957,190.84093407436592,191.43249369026151,192.02810112366566,192.62778407225443,193.23157042322842,193.83948825460988,194.45156583654821,195.06783163263466,195.68831430122614,196.31304269677764,196.94204587118438,197.57535307513248,198.21299375945949,198.85499757652391,199.50139438158379,200.15221423418566,200.80748739956192,201.4672443500385,202.13151576645191,202.80033253957583,203.47372577155789,204.15172677736584,204.83436708624387,205.52167844317867,206.21369281037599,206.91044236874669,207.61195951940348,208.31827688516736,209.02942731208498,209.74544387095619,210.4663598588715,211.19220880076074,211.92302445095228,212.65884079474242,213.39969204997584,214.14561266863714,214.89663733845245,215.65280098450307,216.41413877084923,217.18068610216559,217.95247862538727,218.72955223136805,219.51194305654911,220.29968748463949,221.09282214830824,221.89138393088766,222.69540996808891,223.50493764972842,224.32000462146715,225.14064878656094,225.96690830762304,226.79882160839918,227.63642737555409,228.47976456047044,229.32887238106076,230.18379032359067,231.04455814451512,231.91121587232769,232.78380380942147,233.66236253396357,234.54693290178213,235.43755604826609]
[null,"p/litre","Road - Diesel","High",null,139.28031877544097,158.6023460959037,159.45005799305886,155.10492205535817,145.05012848067199,134.27873380763555,145.37286521389518,152.678001185939,159.22792631005726,165.8235202112279,168.79324452462396,171.82325497355447,174.80758424751929,177.77125628723238,180.73853306638085,183.70943925082605,186.68399967520827,189.66223934410189,192.644183433178,195.62985729037538,198.61928643707881,199.17563144994557,199.73578332018289,200.29976809666815,200.86761200652128,201.43934145632463,202.01498303335046,202.59456350679773,203.178109829037,203.76564913686337,204.35720875275896,204.95281618616309,205.55249913475186,206.15628548572587,206.7642033171073,207.37628089904564,207.99254669513212,208.61302936372357,209.23775775927513,209.86676093368177,210.50006813762991,211.13770882195692,211.77971263902131,212.42610944408119,213.07692929668306,213.73220246205938,214.39195941253598,215.05623082894937,215.72504760207329,216.39844083405532,217.07644183986326,217.7590821487413,218.4463935056761,219.13840787287344,219.83515743124414,220.53667458190094,221.24299194766476,221.95414237458249,222.67015893345365,223.39107492136895,224.11692386325819,224.84773951344968,225.58355585723984,226.32440711247327,227.07032773113454,227.82135240094991,228.57751604700047,229.33885383334669,230.10540116466302,230.87719368788473,231.65426729386547,232.43665811904651,233.22440254713695,234.01753721080564,234.81609899338508,235.62012503058634,236.42965271222587,237.24471968396458,238.06536384905837,238.89162337012044,239.72353667089661,240.56114243805149,241.4044796229679,242.25358744355825,243.1085053860881,243.96927320701258,244.83593093482514,245.70851887191895,246.58707759646097,247.47164796427958,248.36227111076349]
[]
[null,"2015 prices",null,null,"Year",2010,2011,2012,2013,2014,2015,2016,2017,2018,2019,2020,2021,2022,2023,2024,2025,2026,2027,2028,2029,2030,2031,2032,2033,2034,2035,2036,2037,2038,2039,2040,2041,2042,2043,2044,2045,2046,2047,2048,2049,2050,2051,2052,2053,2054,2055,2056,2057,2058,2059,2060,2061,2062,2063,2064,2065,2066,2067,2068,2069,2070,2071,2072,2073,2074,2075,2076,2077,2078,2079,2080,2081,2082,2083,2084,2085,2086,2087,2088,2089,2090,2091,2092,2093,2094,2095,2096,2097,2098,2099,2100]
[null,"p/kWh","Electricity","Central","Industrial",7.3669941447135097,7.6471378592622665,7.9773128967551603,8.2434081992621842,8.1828345395377688,8.5282113738761023,9.3354085990688223,9.8757638514498822,9.7845947524974868,10.373001372382273,10.829994553309074,11.59179008754489,11.84298430696037,12.096913789820533,12.939190035331855,13.498850144315536,13.588086920561578,13.703416005912969,13.224554232031451,13.161716809389432,13.300140805461169,13.300140805461169,13.300140805461169,13.300140805461169,13.300140805461169,13.300140805461169,13.300140805461169,13.300140805461169,13.300140805461169,13.300140805461169,13.300140805461169,13.300140805461169,13.300140805461169,13.300140805461169,13.300140805461169,13.300140805461169,13.300140805461169,13.300140805461169,13.300140805461169,13.300140805461169,13.300140805461169,13.300140805461169,13.300140805461169,13.300140805461169,13.300140805461169,13.300140805461169,13.300140805461169,13.300140805461169,13.300140805461169,13.300140805461169,13.300140805461169,13.300140805461169,13.300140805461169,13.300140805461169,13.300140805461169,13.300140805461169,13.300140805461169,13.300140805461169,13.300140805461169,13.300140805461169,13.300140805461169,13.300140805461169,13.300140805461169,13.300140805461169,13.300140805461169,13.300140805461169,13.300140805461169,13.300140805461169,13.300140805461169,13.300140805461169,13.300140805461169,13.300140805461169,13.300140805461169,13.300140805461169,13.300140805461169,13.300140805461169,13.300140805461169,13.300140805461169,13.300140805461169,13.300140805461169,13.300140805461169,13.300140805461169,13.300140805461169,13.300140805461169,13.300140805461169,13.300140805461169,13.300140805461169,13.300140805461169,13.300140805461169,13.300140805461169,13.300140805461169]
[null,"p/kWh","Natural Gas","Central","Industrial",1.9446878157769487,2.3063908205086285,2.5083357345132744,2.7130511567562334,2.3714920692366572,2.0395982419116989,2.1140116154792024,2.1567690980627585,2.1718400165874758,2.1836822014030264,2.3103559799943416,2.420581679545283,2.5308073790962249,2.6410330786471659,2.7512587781981077,2.8614844777490482,2.9141618104682743,2.9141618104682743,2.9141618104682743,2.9241955881290784,2.9191786992986772,2.9191786992986772,2.9191786992986772,2.9191786992986772,2.9191786992986772,2.9191786992986772,2.9191786992986772,2.9191786992986772,2.9191786992986772,2.9191786992986772,2.9191786992986772,2.9191786992986772,2.9191786992986772,2.9191786992986772,2.9191786992986772,2.9191786992986772,2.9191786992986772,2.9191786992986772,2.9191786992986772,2.9191786992986772,2.9191786992986772,2.9191786992986772,2.9191786992986772,2.9191786992986772,2.9191786992986772,2.9191786992986772,2.9191786992986772,2.9191786992986772,2.9191786992986772,2.9191786992986772,2.9191786992986772,2.9191786992986772,2.9191786992986772,2.9191786992986772,2.9191786992986772,2.9191786992986772,2.9191786992986772,2.9191786992986772,2.9191786992986772,2.9191786992986772,2.9191786992986772,2.9191786992986772,2.9191786992986772,2.9191786992986772,2.9191786992986772,2.9191786992986772,2.9191786992986772,2.9191786992986772,2.9191786992986772,2.9191786992986772,2.9191786992986772,2.9191786992986772,2.9191786992986772,2.9191786992986772,2.9191786992986772,2.9191786992986772,2.9191786992986772,2.9191786992986772,2.9191786992986772,2.9191786992986772,2.9191786992986772,2.9191786992986772,2.9191786992986772,2.9191786992986772,2.9191786992986772,2.9191786992986772,2.9191786992986772,2.9191786992986772,2.9191786992986772,2.9191786992986772,2.9191786992986772]
[null,"p/kWh","Coal","Central","Industrial",1.0135982390194074,1.101860592,1.0583430324483776,1.0944001739130433,1.0767149999999999,0.81922917506882265,0.6835935546742874,0.67897695992455542,0.68574743831372387,0.71724693732574929,0.73962142564231037,0.76199905541616342,0.78437386868115888,0.80674882578088292,0.82912392769954224,0.85149917542807763,0.87387456996421076,0.88077593907264973,0.88774625320072664,0.89478620132874531,0.90189647932359662,0.90907779000760425,0.90910029388031055,0.90912295173846058,0.90914576463571817,0.90916873363295692,0.90919185979830985,0.90921514420721827,0.90923858794248313,0.90926219209431369,0.90928595776037957,0.90930988604586138,0.90933397806350202,0.90935823493365808,0.90938265778435301,0.90940724775132831,0.90943200597809726,0.90945693361599744,0.90948203182424514,0.90950730176998795,0.90953274462836042,0.90955836158253822,0.90958415382379254,0.90961012255154583,0.90963626897342875,0.90966259430533414,0.9096890997714755,0.90971578660444286,0.90974265604526028,0.90976970934344426,0.90979694775706044,0.90982437255278348,0.90985198500595532,0.90987978640064449,0.90990777802970579,0.90993596119484077,0.90996433720665815,0.90999290738473437,0.91002167305767512,0.91005063556317756,0.91007979624809199,0.91010915646848489,0.91013871758970166,0.91016848098643011,0.91019844804276451,0.91022862015227057,0.91025899871804883,0.91028958515280112,0.91032038087889577,0.91035138732843401,0.9103826059433161,0.91041403817530864,0.91044568548611271,0.91047754934743041,0.91050963124103468,0.91054193265883765,0.91057445510296009,0.91060720008580065,0.91064016913010748,0.91067336376904784,0.91070678554628026,0.91074043601602528,0.91077431674313902,0.91080842930318529,0.91084277528250845,0.91087735627830779,0.91091217389871193,0.91094722976285292,0.91098252550094216,0.91101806275434583,0.91105384317566118]
[null,"p/litre","Gas Oil","Central","Industrial",54.997444116690218,66.962238154109571,68.418507864592527,65.856131217127498,58.800102175767897,40.974591178416624,44.053033052007109,45.335014417156444,46.315838072128322,47.377875829036604,50.59886023184503,53.828828269857951,57.051989054296456,60.272071567832263,63.492691247398163,66.713851768617076,66.79397729712646,66.874651094159375,66.95587691130882,67.03765852583858,67.119999740858759,67.202904385502748,67.286376315105187,67.370419411381349,67.455037582607588,67.540234763803127,67.626014916912993,67.712382030992345,67.799340122391882,67.886893234944679,67.975045440154247,68.063800837383823,68.153163554047026,68.243137745799828,68.333727596733723,68.424937319570404,68.516771155857569,68.609233376166245,68.70232828028935,68.796060197441662,68.890433486461077,68.985452536011422,69.081121764786459,69.177445621715378,69.274428586169705,69.372075168171634,69.470389908603678,69.569377379419905,69.669042183858537,69.769388956655973,69.87042236426241,69.97214710505871,70.074567909575023,70.177689540710702,70.281516793955817,70.38605449761414,70.491307513027706,70.597280734802851,70.703979091037851,70.811407543552065,70.919571088116712,71.028474754687196,71.138123607636928,71.248522745992972,71.359677303673067,71.471592449724383,71.584273388563915,71.697725360220531,71.811953640578622,71.926963541623422,72.042760411688079,72.159349635702341,72.276736635443001,72.394926869785991,72.513925834960261,72.633739064803379,72.754372131018826,72.875830643435151,72.998120250266851,73.121246638376959,73.245215533541597,73.370032700716152,73.495703944303429,73.622235108423567,73.74963207718578,73.877900774962015,74.007047166662417,74.137077258012781,74.267997095833749,74.399812768322136,74.532530405333901]
[null,"p/litre","Road - Petrol","Central",null,127.33882876875433,142.05434069477198,141.84956183187907,138.20960135102601,129.25620332356817,110.84028138168755,113.48930688606656,114.76093679145416,116.15672903113405,117.8549897168173,121.57916683200905,125.35942312064083,129.09718601487717,132.81573320367599,136.53763358149934,140.26291009294468,140.76308327539914,141.26667895274821,141.77372054382298,142.28423162770079,142.79823594480163,143.31575739799217,143.83682005369715,144.36144814301889,144.88966606286385,145.42149837707726,145.95696981758539,146.49610528554567,147.03892985250474,147.58546876156416,148.13574742855459,148.6897914432175,149.2476265703952,149.80927875122907,150.37477410436583,150.94413892717213,151.51739969695754,152.09458307220581,152.67571589381453,153.26082518634334,153.84993815927069,154.44308220825911,155.0402849164293,155.64157405564265,156.24697758779294,156.8565236661066,157.47024063645168,158.08815703865642,158.71030160783613,159.33670327572975,159.96739117204484,160.60239462581276,161.24174316675212,161.88546652664218,162.53359464070547,163.18615764899997,163.84318589782038,164.5047099411097,165.17076054188004,165.84136867364293,166.51656552184991,167.19638248534281,167.88085117781364,168.570003429275,169.26387128754016,169.96248701971322,170.66588311369,171.37409227966859,172.08714745167055,172.80508178907229,173.52792867814736,174.2557217336188,174.98849480022253,175.72628195428103,176.4691175052881,177.21703599750444,177.97007221156383,178.72826116609096,179.49163811932942,180.26023857078155,181.03409826285954,181.81325318254704,182.59773956307302,183.38759388559674,184.18285288090414,184.98355353111583,185.78973307140726,186.60142899173974,187.41867903860432,188.24152121677685,189.06999379108547]
[null,"p/litre","Road - Diesel","Central",null,129.5608863321757,147.5345599092,148.323115720354,144.28119746318845,134.92805999999999,114.59854492516789,117.73111964032435,119.19920088651685,120.73295244452237,122.57514102225365,126.77745773616657,131.03585362351947,135.25175611647694,139.44844290399689,143.64848288054142,147.85189899070789,148.35207217316233,148.85566785051137,149.36270944158613,149.87322052546401,150.38722484256482,150.90474629575536,151.42580895146037,151.95043704078208,152.47865496062704,153.01048727484044,153.54595871534858,154.08509418330888,154.62791875026795,155.17445765932735,155.72473632631778,156.27878034098069,156.83661546815839,157.39826764899229,157.96376300212901,158.53312782493532,159.10638859472073,159.68357196996899,160.26470479157771,160.84981408410653,161.43892705703388,162.0320711060223,162.62927381419249,163.23056295340584,163.83596648555613,164.44551256386978,165.05922953421489,165.67714593641961,166.29929050559932,166.92569217349291,167.55638006980803,168.19138352357595,168.8307320645153,169.47445542440539,170.12258353846869,170.77514654676315,171.43217479558356,172.09369883887291,172.75974943964323,173.43035757140615,174.10555441961313,174.785371383106,175.46984007557685,176.15899232703822,176.85286018530334,177.55147591747641,178.25487201145319,178.96308117743177,179.67613634943373,180.39407068683548,181.11691757591052,181.84471063138199,182.57748369798571,183.31527085204422,184.05810640305128,184.80602489526765,185.55906110932705,186.31725006385417,187.08062701709258,187.84922746854474,188.62308716062273,189.4022420803102,190.18672846083624,190.97658278335996,191.77184177866735,192.57254242887905,193.37872196917047,194.19041788950295,195.00766793636751,195.83051011454006,196.65898268884865]
[]
[null,"p/kWh","Electricity","Low","Industrial",7.3669941447135106,7.6471378592622665,7.9773128967551603,8.2434081992621842,8.1828345395377688,7.8335259650431661,8.2705266688489036,8.5992093644815046,8.3677321763073849,8.8637484704571818,9.7655680263805706,9.8577126441837848,10.594462410197538,10.563512062318036,11.389634156905991,11.982484961876057,11.841077087406344,12.347140825433772,12.226495784489748,12.334213564922022,12.464086704068949,12.464086704068949,12.464086704068949,12.464086704068949,12.464086704068949,12.464086704068949,12.464086704068949,12.464086704068949,12.464086704068949,12.464086704068949,12.464086704068949,12.464086704068949,12.464086704068949,12.464086704068949,12.464086704068949,12.464086704068949,12.464086704068949,12.464086704068949,12.464086704068949,12.464086704068949,12.464086704068949,12.464086704068949,12.464086704068949,12.464086704068949,12.464086704068949,12.464086704068949,12.464086704068949,12.464086704068949,12.464086704068949,12.464086704068949,12.464086704068949,12.464086704068949,12.464086704068949,12.464086704068949,12.464086704068949,12.464086704068949,12.464086704068949,12.464086704068949,12.464086704068949,12.464086704068949,12.464086704068949,12.464086704068949,12.464086704068949,12.464086704068949,12.464086704068949,12.464086704068949,12.464086704068949,12.464086704068949,12.464086704068949,12.464086704068949,12.464086704068949,12.464086704068949,12.464086704068949,12.464086704068949,12.464086704068949,12.464086704068949,12.464086704068949,12.464086704068949,12.464086704068949,12.464086704068949,12.464086704068949,12.464086704068949,12.464086704068949,12.464086704068949,12.464086704068949,12.464086704068949,12.464086704068949,12.464086704068949,12.464086704068949,12.464086704068949,12.464086704068949]
[null,"p/kWh","Natural Gas","Low","Industrial",1.9446878157769487,2.3063908205086285,2.5083357345132744,2.7130511567562334,2.3714920692366572,1.7331237897557279,1.6309049399641546,1.5405819964892573,1.449288988086745,1.3654204695153203,1.4449171121863622,1.507965675817031,1.5710142394476994,1.6340628030783682,1.6971113667090367,1.7601599303397055,1.8232084939703743,1.8862570576010427,1.9493056212317115,2.0123541848623803,2.0754027484930488,2.0754027484930488,2.0754027484930488,2.0754027484930488,2.0754027484930488,2.0754027484930488,2.0754027484930488,2.0754027484930488,2.0754027484930488,2.0754027484930488,2.0754027484930488,2.0754027484930488,2.0754027484930488,2.0754027484930488,2.0754027484930488,2.0754027484930488,2.0754027484930488,2.0754027484930488,2.0754027484930488,2.0754027484930488,2.0754027484930488,2.0754027484930488,2.0754027484930488,2.0754027484930488,2.0754027484930488,2.0754027484930488,2.0754027484930488,2.0754027484930488,2.0754027484930488,2.0754027484930488,2.0754027484930488,2.0754027484930488,2.0754027484930488,2.0754027484930488,2.0754027484930488,2.0754027484930488,2.0754027484930488,2.0754027484930488,2.0754027484930488,2.0754027484930488,2.0754027484930488,2.0754027484930488,2.0754027484930488,2.0754027484930488,2.0754027484930488,2.0754027484930488,2.0754027484930488,2.0754027484930488,2.0754027484930488,2.0754027484930488,2.0754027484930488,2.0754027484930488,2.0754027484930488,2.0754027484930488,2.0754027484930488,2.0754027484930488,2.0754027484930488,2.0754027484930488,2.0754027484930488,2.0754027484930488,2.0754027484930488,2.0754027484930488,2.0754027484930488,2.0754027484930488,2.0754027484930488,2.0754027484930488,2.0754027484930488,2.0754027484930488,2.0754027484930488,2.0754027484930488,2.0754027484930488]
[null,"p/kWh","Coal","Low","Industrial",1.0135982390194074,1.101860592,1.0583430324483776,1.0944001739130433,1.0767149999999999,0.81922917506882265,0.62650851546109321,0.59258791128553745,0.57597270973880899,0.58099104494925691,0.60839617842712879,0.63580445336229263,0.66320991178859867,0.69061551404963328,0.71802126112960329,0.74542715401944926,0.77283319371689319,0.77285494321840587,0.77287684154348724,0.77289888971048004,0.77292108874469567,0.77294343967846124,0.77296594355116743,0.77298860140931747,0.77301141430657494,0.7730343833038138,0.77305750946916663,0.77308079387807516,0.77310423761334002,0.77312784176517058,0.77315160743123645,0.77317553571671827,0.77319962773435891,0.77322388460451497,0.77324830745520989,0.77327289742218519,0.77329765564895414,0.77332258328685433,0.77334768149510191,0.77337295144084472,0.77339839429921731,0.77342401125339511,0.77344980349464931,0.77347577222240271,0.77350191864428564,0.77352824397619102,0.77355474944233238,0.77358143627529963,0.77360830571611716,0.77363535901430114,0.77366259742791732,0.77369002222364036,0.7737176346768122,0.77374543607150137,0.77377342770056268,0.77380161086569765,0.77382998687751503,0.77385855705559126,0.773887322728532,0.77391628523403433,0.77394544591894887,0.77397480613934178,0.77400436726055855,0.77403413065728688,0.77406409771362139,0.77409426982312746,0.77412464838890571,0.77415523482365789,0.77418603054975266,0.77421703699929079,0.77424825561417299,0.77427968784616552,0.77431133515696948,0.77434319901828719,0.77437528091189156,0.77440758232969453,0.77444010477381697,0.77447284975665742,0.77450581880096436,0.77453901343990472,0.77457243521713715,0.77460608568688205,0.77463996641399591,0.77467407897404217,0.77470842495336534,0.77474300594916468,0.77477782356956881,0.77481287943370969,0.77484817517179894,0.7748837124252026,0.77491949284651807]
[null,"p/litre","Gas Oil","Low","Industrial",54.997444116690218,66.962238154109571,68.418507864592527,65.856131217127498,58.800102175767897,32.236492736403974,29.223248262263962,25.990073099857256,25.774468179367179,25.89083876835474,29.331619825318512,32.781384517486792,36.224341956080657,39.664221123771803,43.104637457493062,46.545594632867314,46.625720161376698,46.706393958409606,46.787619775559051,46.869401390088811,46.95174260510899,47.034647249752972,47.118119179355411,47.202162275631572,47.286780446857819,47.371977628053351,47.457757781163224,47.544124895242568,47.631082986642106,47.71863609919491,47.806788304404478,47.895543701634054,47.984906418297264,48.074880610050059,48.165470460983954,48.256680183820627,48.3485140201078,48.440976240416482,48.534071144539588,48.627803061691885,48.722176350711308,48.81719540026166,48.91286462903669,49.009188485965609,49.106171450419936,49.203818032421864,49.302132772853909,49.401120243670135,49.500785048108767,49.601131820906211,49.702165228512634,49.803889969308941,49.906310773825254,50.009432404960933,50.113259658206047,50.21779736186437,50.323050377277937,50.429023599053082,50.535721955288075,50.643150407802288,50.751313952366942,50.860217618937419,50.969866471887158,51.080265610243202,51.191420167923297,51.303335313974607,51.416016252814146,51.529468224470762,51.643696504828853,51.758706405873653,51.874503275938309,51.991092499952572,52.108479499693232,52.226669734036221,52.345668699210492,52.46548192905361,52.586114995269057,52.707573507685382,52.829863114517082,52.95298950262719,53.076958397791827,53.201775564966383,53.327446808553667,53.453977972673805,53.581374941436017,53.709643639212238,53.838790030912648,53.968820122263004,54.09973996008398,54.231555632572366,54.364273269584132]
[null,"p/litre","Road - Petrol","Low",null,127.33882876875433,142.05434069477198,141.84956183187907,138.20960135102601,129.25620332356817,101.86041220732768,98.249203083215349,94.880748513899874,95.047008704311665,95.773436959086837,99.723492188650383,103.72962659165397,107.69326760026213,111.63769290343274,115.58547139562791,119.53662602144504,120.03679920389949,120.54039488124855,121.04743647232331,121.55794755620117,122.07195187330201,122.58947332649254,123.11053598219752,123.63516407151924,124.16338199136422,124.69521430557762,125.23068574608574,125.76982121404603,126.31264578100509,126.85918469006454,127.40946335705497,127.96350737171785,128.52134249889556,129.08299467972944,129.64849003286619,130.2178548556725,130.79111562545788,131.36829900070617,131.94943182231486,132.53454111484368,133.12365408777103,133.71679813675945,134.31400084492967,134.91528998414302,135.52069351629333,136.13023959460696,136.74395656495204,137.36187296715676,137.98401753633652,138.61041920423006,139.24110710054521,139.87611055431316,140.51545909525248,141.15918245514254,141.80731056920584,142.4598735775003,143.11690182632071,143.77842586961009,144.44447647038038,145.1150846021433,145.79028145035028,146.47009841384315,147.154567106314,147.84371935777537,148.53758721604049,149.23620294821356,149.93959904219034,150.64780820816898,151.36086338017088,152.07879771757263,152.80164460664767,153.52943766211916,154.26221072872286,154.99999788278137,155.74283343378843,156.4907519260048,157.2437881400642,158.00197709459133,158.76535404782976,159.53395449928192,160.30781419135988,161.08696911104741,161.87145549157339,162.66130981409711,163.4565688094045,164.2572694596162,165.06344899990762,165.8751449202401,166.69239496710466,167.51523714527721,168.3437097195858]
[null,"p/litre","Road - Diesel","Low",null,129.5608863321757,147.5345599092,148.323115720354,144.28119746318845,134.92805999999999,104.28876166271269,100.23396416356701,96.374766768522235,96.496893201922305,97.223321456697477,101.68496871960708,106.2026951559567,110.67792819791093,115.13394553442758,119.5933160599688,124.05606271913199,124.55623590158643,125.05983157893546,125.56687317001023,126.07738425388811,126.59138857098893,127.10891002417945,127.62997267988446,128.15460076920618,128.68281868905115,129.21465100326455,129.75012244377268,130.28925791173296,130.83208247869203,131.37862138775145,131.92890005474189,132.48294406940479,133.04077919658249,133.60243137741637,134.16792673055312,134.7372915533594,135.31055232314483,135.8877356983931,136.46886852000182,137.0539778125306,137.64309078545799,138.23623483444641,138.83343754261659,139.43472668182994,140.04013021398023,140.64967629229389,141.26339326263897,141.88130966484368,142.50345423402342,143.12985590191698,143.76054379823211,144.39554725200006,145.03489579293941,145.67861915282947,146.32674726689277,146.97931027518723,147.63633852400764,148.29786256729699,148.96391316806731,149.63452129983023,150.30971814803721,150.98953511153007,151.67400380400093,152.3631560554623,153.05702391372742,153.75563964590052,154.45903573987729,155.16724490585588,155.88030007785784,156.59823441525958,157.32108130433463,158.04887435980606,158.78164742640982,159.51943458046833,160.26227013147539,161.0101886236917,161.76322483775115,162.52141379227822,163.28479074551669,164.05339119696885,164.82725088904684,165.60640580873431,166.39089218926034,167.18074651178406,167.97600550709143,168.77670615730315,169.58288569759458,170.39458161792706,171.21183166479159,172.03467384296417,172.86314641727276]
[]
[null,"p/kWh","Electricity","High","Industrial",7.3669941447135106,7.6471378592622665,7.9773128967551603,8.2434081992621842,8.1828345395377688,9.1641194748301427,10.328101062125127,11.116439857172113,11.207478187215807,11.870664457152209,12.137038984224644,13.19882564460562,13.168791873860904,13.690699915042465,14.38807232408484,14.943190582227823,14.610407137260811,14.978337206520553,14.309664297085407,14.099553193881373,14.090849385653344,14.090849385653344,14.090849385653344,14.090849385653344,14.090849385653344,14.090849385653344,14.090849385653344,14.090849385653344,14.090849385653344,14.090849385653344,14.090849385653344,14.090849385653344,14.090849385653344,14.090849385653344,14.090849385653344,14.090849385653344,14.090849385653344,14.090849385653344,14.090849385653344,14.090849385653344,14.090849385653344,14.090849385653344,14.090849385653344,14.090849385653344,14.090849385653344,14.090849385653344,14.090849385653344,14.090849385653344,14.090849385653344,14.090849385653344,14.090849385653344,14.090849385653344,14.090849385653344,14.090849385653344,14.090849385653344,14.090849385653344,14.090849385653344,14.090849385653344,14.090849385653344,14.090849385653344,14.090849385653344,14.090849385653344,14.090849385653344,14.090849385653344,14.090849385653344,14.090849385653344,14.090849385653344,14.090849385653344,14.090849385653344,14.090849385653344,14.090849385653344,14.090849385653344,14.090849385653344,14.090849385653344,14.090849385653344,14.090849385653344,14.090849385653344,14.090849385653344,14.090849385653344,14.090849385653344,14.090849385653344,14.090849385653344,14.090849385653344,14.090849385653344,14.090849385653344,14.090849385653344,14.090849385653344,14.090849385653344,14.090849385653344,14.090849385653344,14.090849385653344]
[null,"p/kWh","Natural Gas","High","Industrial",1.9446878157769487,2.3063908205086285,2.5083357345132744,2.7130511567562334,2.3714920692366572,2.3460726940676708,2.5971182909942505,2.7729561996362584,2.8943910450882071,3.0019439332907316,3.196154408138224,3.373916803945344,3.5516791997524622,3.7294415955595808,3.9072039913666989,4.0849663871738189,4.0849663871738189,4.0849663871738189,4.0849663871738189,4.0849663871738189,4.0849663871738189,4.0849663871738189,4.0849663871738189,4.0849663871738189,4.0849663871738189,4.0849663871738189,4.0849663871738189,4.0849663871738189,4.0849663871738189,4.0849663871738189,4.0849663871738189,4.0849663871738189,4.0849663871738189,4.0849663871738189,4.0849663871738189,4.0849663871738189,4.0849663871738189,4.0849663871738189,4.0849663871738189,4.0849663871738189,4.0849663871738189,4.0849663871738189,4.0849663871738189,4.0849663871738189,4.0849663871738189,4.0849663871738189,4.0849663871738189,4.0849663871738189,4.0849663871738189,4.0849663871738189,4.0849663871738189,4.0849663871738189,4.0849663871738189,4.0849663871738189,4.0849663871738189,4.0849663871738189,4.0849663871738189,4.0849663871738189,4.0849663871738189,4.0849663871738189,4.0849663871738189,4.0849663871738189,4.0849663871738189,4.0849663871738189,4.0849663871738189,4.0849663871738189,4.0849663871738189,4.0849663871738189,4.0849663871738189,4.0849663871738189,4.0849663871738189,4.0849663871738189,4.0849663871738189,4.0849663871738189,4.0849663871738189,4.0849663871738189,4.0849663871738189,4.0849663871738189,4.0849663871738189,4.0849663871738189,4.0849663871738189,4.0849663871738189,4.0849663871738189,4.0849663871738189,4.0849663871738189,4.0849663871738189,4.0849663871738189,4.0849663871738189,4.0849663871738189,4.0849663871738189,4.0849663871738189]
[null,"p/kWh","Coal","High","Industrial",1.0135982390194074,1.101860592,1.0583430324483776,1.0944001739130433,1.0767149999999999,0.81922917506882265,0.74067859388748125,0.76536600856357317,0.79552216688863842,0.85350282970224145,0.87601705079526626,0.89853441334558304,0.92104895938704201,0.94356364926322978,0.96607848395835261,0.9885934644633515,1.0111085917759481,1.0276342609275482,1.0444901572957186,1.0616828834666627,1.0792191740649084,1.0971058983939845,1.0971284022666909,1.0971510601248409,1.0971738730220983,1.097196842019337,1.0972199681846899,1.0972432525935985,1.0972666963288633,1.0972903004806938,1.0973140661467597,1.0973379944322414,1.0973620864498823,1.0973863433200384,1.0974107661707333,1.0974353561377086,1.0974601143644773,1.0974850420023776,1.0975101402106251,1.0975354101563681,1.0975608530147407,1.0975864699689184,1.0976122622101725,1.0976382309379262,1.0976643773598087,1.0976907026917142,1.0977172081578555,1.0977438949908229,1.0977707644316406,1.0977978177298244,1.0978250561434406,1.0978524809391634,1.0978800933923354,1.0979078947870244,1.097935886416086,1.0979640695812209,1.0979924455930383,1.0980210157711146,1.0980497814440553,1.0980787439495576,1.0981079046344722,1.0981372648548651,1.0981668259760817,1.0981965893728101,1.0982265564291447,1.0982567285386506,1.0982871071044289,1.0983176935391812,1.098348489265276,1.0983794957148141,1.0984107143296962,1.0984421465616887,1.0984737938724929,1.0985056577338106,1.0985377396274147,1.0985700410452179,1.0986025634893402,1.0986353084721807,1.0986682775164878,1.098701472155428,1.0987348939326602,1.0987685444024053,1.0988024251295192,1.0988365376895652,1.0988708836688885,1.0989054646646881,1.098940282285092,1.0989753381492331,1.0990106338873222,1.099046171140726,1.0990819515620411]
[null,"p/litre","Gas Oil","High","Industrial",54.997444116690218,66.962238154109571,68.418507864592527,65.856131217127498,58.800102175767897,49.712689620429302,58.882817841750274,64.679955734455632,69.524861773330002,74.225570545804771,76.226221728741493,78.235856546882715,80.238684111449501,82.238433405113625,84.238719864807834,86.239547166155035,88.240919009928987,90.242839122226485,92.245311254640498,94.248339184434869,96.251926714719545,96.33483135936352,96.418303288965973,96.502346385242134,96.586964556468374,96.672161737663899,96.757941890773779,96.844309004853116,96.931267096252654,97.018820208805465,97.106972414015033,97.195727811244609,97.285090527907826,97.375064719660614,97.465654570594509,97.55686429343119,97.648698129718355,97.74116035002703,97.834255254150136,97.927987171302448,98.022360460321863,98.117379509872208,98.213048738647245,98.309372595576164,98.406355560030491,98.504002142032419,98.602316882464464,98.70130435328069,98.800969157719322,98.901315930516759,99.002349338123182,99.104074078919496,99.206494883435809,99.309616514571488,99.413443767816602,99.517981471474926,99.623234486888492,99.729207708663637,99.835906064898637,99.94333451741285,100.0514980619775,100.16040172854797,100.27005058149771,100.38044971985376,100.49160427753385,100.60351942358515,100.7162003624247,100.82965233408132,100.94388061443941,101.05889051548421,101.17468738554886,101.29127660956313,101.40866360930379,101.52685384364678,101.64585280882105,101.76566603866416,101.88629910487961,102.00775761729594,102.13004722412764,102.25317361223775,102.37714250740238,102.50195967457694,102.62763091816423,102.75416208228437,102.88155905104658,103.00982774882279,103.1389741405232,103.26900423187355,103.39992406969453,103.53173974218292,103.66445737919469]
[null,"p/litre","Road - Petrol","High",null,127.33882876875433,142.05434069477198,141.84956183187907,138.20960135102601,129.25620332356817,119.82015055604744,128.72941068891777,134.64112506900847,140.00791334594524,145.44552188919238,147.91560090325891,150.44175909076549,152.92542388387662,155.38987297155023,157.8576752482484,160.32885365856848,162.80343130410921,165.28143144454452,167.76287749870551,170.24779304566965,172.73620182585671,173.25372327904719,173.7747859347522,174.29941402407394,174.82763194391887,175.35946425813231,175.89493569864041,176.43407116660069,176.97689573355979,177.52343464261918,178.07371330960962,178.62775732427252,179.18559245145025,179.74724463228412,180.31273998542085,180.88210480822715,181.45536557801256,182.03254895326083,182.61368177486955,183.19879106739836,183.78790404032571,184.38104808931413,184.97825079748435,185.5795399366977,186.18494346884802,186.79448954716162,187.4082065175067,188.02612291971144,188.64826748889115,189.27466915678474,189.90535705309986,190.54036050686784,191.17970904780717,191.8234324076972,192.47156052176049,193.12412353005499,193.7811517788754,194.44267582216469,195.10872642293504,195.77933455469795,196.45453140290493,197.13434836639783,197.81881705886869,198.50796931033003,199.20183716859518,199.90045290076824,200.60384899474502,201.31205816072361,202.02511333272557,202.74304767012731,203.46589455920235,204.19368761467385,204.92646068127755,205.66424783533606,206.40708338634312,207.15500187855946,207.90803809261888,208.66622704714598,209.42960400038444,210.1982044518366,210.97206414391457,211.75121906360209,212.53570544412804,213.32555976665176,214.12081876195919,214.92151941217088,215.72769895246228,216.53939487279479,217.35664491965935,218.1794870978319,219.00795967214049]
[null,"p/litre","Road - Diesel","High",null,129.5608863321757,147.5345599092,148.323115720354,144.28119746318845,134.92805999999999,124.90832818762313,135.22827511708172,142.02363500451145,148.11648510674556,154.25181707062845,157.01430438820952,159.8328708792306,162.60894397585622,165.36580136704436,168.12601194725698,170.88959866109161,173.65658461014681,176.42699305409661,179.20084741177214,181.97817126225078,184.75898834595228,185.27650979914279,185.7975724548478,186.32220054416953,186.85041846401447,187.3822507782279,187.91772221873603,188.45685768669628,188.99968225365538,189.5462211627148,190.09649982970524,190.65054384436812,191.20837897154584,191.77003115237972,192.33552650551644,192.90489132832275,193.47815209810818,194.05533547335642,194.63646829496517,195.22157758749393,195.81069056042131,196.40383460940973,197.00103731757991,197.60232645679326,198.20772998894358,198.81727606725724,199.43099303760232,200.04890943980706,200.67105400898677,201.29745567688033,201.92814357319546,202.56314702696341,203.20249556790276,203.84621892779282,204.49434704185612,205.14691005015061,205.80393829897096,206.46546234226034,207.13151294303066,207.80212107479358,208.47731792300056,209.1571348864934,209.84160357896428,210.53075583042562,211.22462368869074,211.92323942086384,212.62663551484059,213.33484468081923,214.04789985282116,214.7658341902229,215.48868107929795,216.21647413476941,216.94924720137317,217.68703435543162,218.42986990643871,219.17778839865505,219.9308246127145,220.68901356724157,221.45239052048004,222.22099097193217,222.99485066401016,223.77400558369766,224.55849196422366,225.34834628674739,226.14360528205478,226.9443059322665,227.7504854725579,228.56218139289041,229.37943143975491,230.20227361792752,231.03074619223605]

{"sheet":"Carbon Prices","index":28,"n_rows":24,"n_cols":94,"rows_kept":24,"cut":false,"hidden":false,"merged":[[9,1,11,1],[12,1,14,1],[18,1,20,1],[21,1,23,1]]}
[]
[null,"Carbon Prices"]
[]
[null,"Price base",null,{"$f":"'Data Input - General'!F22","v":2019}]
[null,"Original price base",null,2015]
[null,"Deflation factor",null,{"$f":"INDEX('Discount and deflators'!$F$21:$AE$46,MATCH($D$5,'Discount and deflators'!$B$21:$B$46,0),MATCH($D$4,'Discount and deflators'!$F$20:$AE$20,0))","v":1.0750182614399999}]
[]
[null,"Adjusted prices",null,"£/tCO2e"]
[null,null,null,2010,2011,2012,2013,2014,2015,2016,2017,2018,2019,2020,2021,2022,2023,2024,2025,2026,2027,2028,2029,2030,2031,2032,2033,2034,2035,2036,2037,2038,2039,2040,2041,2042,2043,2044,2045,2046,2047,2048,2049,2050,2051,2052,2053,2054,2055,2056,2057,2058,2059,2060,2061,2062,2063,2064,2065,2066,2067,2068,2069,2070,2071,2072,2073,2074,2075,2076,2077,2078,2079,2080,2081,2082,2083,2084,2085,2086,2087,2088,2089,2090,2091,2092,2093,2094,2095,2096,2097,2098,2099,2100]
[null,"Traded","Low",{"$f":"D19*$D$6","v":13.820181914027366},{"$f":"E19*$D$6","v":12.363670384874039},6.8711765268454652,4.2575876213258246,5.1651288331261487,0,0,0,0,0,0,4.2168152036321631,8.4336304072643262,12.650445610896488,16.867260814528652,21.084076018160815,25.300891221792977,29.517706425425143,33.734521629057305,37.951336832689471,42.168152036321629,46.083766153980086,49.999380271638522,53.914994389296957,57.8306085069554,61.746222624613836,65.661836742272271,69.577450859930707,73.493064977589142,77.408679095247606,81.324293212906042,85.239907330564478,89.155521448222913,93.071135565881349,96.986749683539784,100.90236380119822,104.81797791885666,108.73359203651511,112.64920615417354,116.56482027183198,120.48043438949041,123.49369060408169,126.29125368285342,129.02574166470882,131.67866819675336,134.12297476543532,136.50935211822014,138.67813325117598,140.68384924299608,142.55550716672104,144.26784780221149,145.23837385595374,146.13570190479538,146.7222443223248,147.13798072113593,147.25446183835467,147.30307412455261,147.0187481698236,146.57488472995561,145.89963566619676,145.04582285981087,144.16203921782935,143.09763475612331,141.90053028112865,140.43492155728705,{"$f":"BQ19*$D$6","v":138.97805065361089},137.15800008742448,135.35318497582466,133.33276570030282,131.2381925978589,128.91686996446902,127.01090719463079,124.88693788444745,122.67781458883741,120.40329861934362,118.19477973314935,115.77198800739944,113.27778372144715,110.78776489045843,108.21627400882632,105.66313266886429,103.25464501702587,100.85067715080478,98.308680558259979,95.775539247242079,93.238221138185366,90.709636078977042,88.24645353002353,85.673650126650443,83.219220405257019,80.713642126868692]
[null,null,"Central",13.820181914027366,{"$f":"E20*$D$6","v":12.363670384874039},6.8711765268454652,4.2575876213258246,5.1651288331261487,6.3855194727712128,6.3538294519881546,6.3342583771452743,6.5749601954767956,6.8248086829049139,7.0841514128553005,14.809366678834097,22.534581944812892,30.259797210791689,37.985012476770486,45.710227742749282,53.435443008728079,61.160658274706876,68.885873540685665,76.611088806664469,84.336304072643259,92.167532307960172,99.998760543277044,107.82998877859391,115.6612170139108,123.49244524922767,131.32367348454454,139.15490171986141,146.98612995517828,154.81735819049521,162.64858642581208,170.47981466112896,178.31104289644583,186.1422711317627,193.97349936707957,201.80472760239644,209.63595583771331,217.46718407303021,225.29841230834708,233.12964054366395,240.96086877898082,249.48220324056905,257.7372524139866,266.03245704063676,274.33055874323622,282.3641574009165,290.44543003876623,298.2325446261849,305.83445487607833,313.30880695982643,320.59521733824772,326.37836821562644,332.12659523817143,337.29251568350531,342.1813505142697,346.48108667848157,350.72160505845864,354.26204378270745,357.49971885355035,360.2460139906093,362.61455714952723,364.96718789323882,366.91701219518797,368.57280592500945,369.56558304549225,370.6081350762957,370.69729753357973,370.83064376938262,370.36879361195224,369.68504957143352,368.33391418419723,368.14755708588638,367.31452318955132,366.20243160846991,364.85848066467764,363.67624533276722,361.78746252312339,359.61201181411803,357.37988674341437,354.80745576664373,352.21044222954771,350.01574582042673,347.76095569243034,344.94273880091225,342.05549731157896,339.04807686612878,335.96161510732253,333.00548501895685,329.51403894865564,326.34988394218459,322.85456850747488]
[null,null,"High",13.820181914027366,{"$f":"E21*$D$6","v":12.363670384874039},6.8711765268454652,4.2575876213258246,5.1651288331261487,22.348937637993757,25.151729669773307,28.388732859118118,32.098531913815023,36.595483614396386,41.954810259537538,50.409774844480275,58.864739429423011,67.31970401436574,75.77466859930847,84.229633184251213,92.684597769193942,101.13956235413669,109.59452693907942,118.04949152402216,126.50445610896487,138.25129846194025,149.99814081491556,161.74498316789089,173.4918255208662,185.23866787384151,196.98551022681681,208.73235257979215,220.47919493276748,232.22603728574279,243.9728796387181,255.7197219916934,267.46656434466871,279.21340669764407,290.96024905061938,302.70709140359469,314.45393375657,326.2007761095453,337.94761846252061,349.69446081549592,361.44130316847128,375.47071587705636,389.18325114511975,403.03917241656461,416.98244928971894,430.60534003639765,444.38150795931244,457.78695600119386,470.98506050916075,484.06210675293175,496.92258687428404,507.51836257529897,518.11748857154748,527.86278704468577,537.22472030740346,545.70771151860845,554.14013599236478,561.50533939559136,568.42455297714514,574.59239231502193,580.18329143924359,585.77233656864837,590.73638963425265,595.24508156889021,598.6962445336975,602.23821949898047,604.23659497973495,606.30810256294058,607.40482152360175,608.13190654500818,607.75095840392544,609.28420697714205,609.74210849465533,609.72704862810235,609.31366271001184,609.15771093238516,607.80293703884729,605.94623990678883,603.9720085963703,601.39863752446115,598.75775179023128,596.77684662382762,594.6712342340561,591.57679704356462,588.33545537591579,584.85793259407217,581.21359413566802,577.76451650789011,573.35442777066089,569.48054747911203,564.995494888081]
[null,"Non-traded","Low",31.144212713123501,31.611375903820399,32.085546542377706,32.566829740513363,33.055332186621058,33.551162169420365,34.054429601961672,34.565246045991088,35.083724736680949,35.609980607731167,36.144130316847125,36.746532488794571,37.348934660742032,37.951336832689485,38.553739004636931,39.156141176584384,39.758543348531838,40.360945520479291,40.963347692426737,41.56574986437419,42.168152036321651,46.083766153980086,49.999380271638522,53.914994389296957,57.8306085069554,61.746222624613836,65.661836742272271,69.577450859930707,73.493064977589142,77.408679095247606,81.324293212906042,85.239907330564478,89.155521448222913,93.071135565881349,96.986749683539784,100.90236380119822,104.81797791885666,108.73359203651511,112.64920615417354,116.56482027183198,120.48043438949041,123.49369060408169,126.29125368285342,129.02574166470882,131.67866819675336,134.12297476543532,136.50935211822014,138.67813325117598,140.68384924299608,142.55550716672104,144.26784780221149,145.23837385595374,146.13570190479538,146.7222443223248,147.13798072113593,147.25446183835467,147.30307412455261,147.0187481698236,146.57488472995561,145.89963566619676,145.04582285981087,144.16203921782935,143.09763475612331,141.90053028112865,140.43492155728705,138.97805065361089,137.15800008742448,135.35318497582466,133.33276570030282,131.2381925978589,128.91686996446902,127.01090719463079,124.88693788444745,122.67781458883741,120.40329861934362,118.19477973314935,115.77198800739944,113.27778372144715,110.78776489045843,108.21627400882632,105.66313266886429,103.25464501702587,100.85067715080478,98.308680558259979,95.775539247242079,93.238221138185366,90.709636078977042,88.24645353002353,85.673650126650443,83.219220405257019,80.713642126868692]
[null,null,"Central",62.288425426247102,63.222751807640797,64.171093084755412,65.133659481026726,66.110664373242116,67.102324338840731,68.108859203923345,69.130492091982177,70.167449473361899,71.219961215462334,72.28826063369425,73.493064977589142,74.697869321484063,75.90267366537897,77.107478009273862,78.312282353168769,79.517086697063675,80.721891040958582,81.926695384853474,83.131499728748381,84.336304072643301,92.167532307960172,99.998760543277044,107.82998877859391,115.6612170139108,123.49244524922767,131.32367348454454,139.15490171986141,146.98612995517828,154.81735819049521,162.64858642581208,170.47981466112896,178.31104289644583,186.1422711317627,193.97349936707957,201.80472760239644,209.63595583771331,217.46718407303021,225.29841230834708,233.12964054366395,240.96086877898082,249.48220324056905,257.7372524139866,266.03245704063676,274.33055874323622,282.3641574009165,290.44543003876623,298.2325446261849,305.83445487607833,313.30880695982643,320.59521733824772,326.37836821562644,332.12659523817143,337.29251568350531,342.1813505142697,346.48108667848157,350.72160505845864,354.26204378270745,357.49971885355035,360.2460139906093,362.61455714952723,364.96718789323882,366.91701219518797,368.57280592500945,369.56558304549225,370.6081350762957,370.69729753357973,370.83064376938262,370.36879361195224,369.68504957143352,368.33391418419723,368.14755708588638,367.31452318955132,366.20243160846991,364.85848066467764,363.67624533276722,361.78746252312339,359.61201181411803,357.37988674341437,354.80745576664373,352.21044222954771,350.01574582042673,347.76095569243034,344.94273880091225,342.05549731157896,339.04807686612878,335.96161510732253,333.00548501895685,329.51403894865564,326.34988394218459,322.85456850747488]
[null,null,"High",93.432638139370653,94.834127711461193,96.256639627133097,97.700489221540096,99.165996559863189,100.65348650826111,102.163288805885,103.69573813797329,105.25117421004286,106.82994182319348,108.43239095054138,110.23959746638374,112.04680398222609,113.85401049806843,115.6612170139108,117.46842352975315,119.27563004559551,121.08283656143787,122.89004307728023,124.69724959312259,126.50445610896494,138.25129846194025,149.99814081491556,161.74498316789089,173.4918255208662,185.23866787384151,196.98551022681681,208.73235257979215,220.47919493276748,232.22603728574279,243.9728796387181,255.7197219916934,267.46656434466871,279.21340669764407,290.96024905061938,302.70709140359469,314.45393375657,326.2007761095453,337.94761846252061,349.69446081549592,361.44130316847128,375.47071587705636,389.18325114511975,403.03917241656461,416.98244928971894,430.60534003639765,444.38150795931244,457.78695600119386,470.98506050916075,484.06210675293175,496.92258687428404,507.51836257529897,518.11748857154748,527.86278704468577,537.22472030740346,545.70771151860845,554.14013599236478,561.50533939559136,568.42455297714514,574.59239231502193,580.18329143924359,585.77233656864837,590.73638963425265,595.24508156889021,{"$f":"BP24*$D$6","v":598.6962445336975},602.23821949898047,604.23659497973495,606.30810256294058,607.40482152360175,608.13190654500818,607.75095840392544,609.28420697714205,609.74210849465533,609.72704862810235,609.31366271001184,609.15771093238516,607.80293703884729,605.94623990678883,603.9720085963703,601.39863752446115,598.75775179023128,596.77684662382762,594.6712342340561,591.57679704356462,588.33545537591579,584.85793259407217,581.21359413566802,577.76451650789011,573.35442777066089,569.48054747911203,564.995494888081]
[]
[null,"2014 prices",null,"£/tCO2e"]
[null,null,null,2010,2011,2012,2013,2014,2015,2016,2017,2018,2019,2020,2021,2022,2023,2024,2025,2026,2027,2028,2029,2030,2031,2032,2033,2034,2035,2036,2037,2038,2039,2040,2041,2042,2043,2044,2045,2046,2047,2048,2049,2050,2051,2052,2053,2054,2055,2056,2057,2058,2059,2060,2061,2062,2063,2064,2065,2066,2067,2068,2069,2070,2071,2072,2073,2074,2075,2076,2077,2078,2079,2080,2081,2082,2083,2084,2085,2086,2087,2088,2089,2090,2091,2092,2093,2094,2095,2096,2097,2098,2099,2100]
[null,"Traded","Low",12.85576479,11.500893360000001,6.3916835400000007,3.9604793462975549,4.8046893884457331,0,0,0,0,0,0,3.9225521601685984,7.8451043203371968,11.767656480505796,15.690208640674394,19.612760800842992,23.535312961011591,27.457865121180191,31.380417281348791,35.302969441517391,39.225521601685983,42.867891464699703,46.510261327713401,50.152631190727099,53.795001053740805,57.437370916754503,61.079740779768201,64.7221106427819,68.364480505795598,72.00685036880931,75.649220231823008,79.291590094836707,82.933959957850405,86.576329820864103,90.218699683877801,93.8610695468915,97.503439409905198,101.14580927291891,104.78817913593261,108.43054899894631,112.07291886196001,114.8759002834616,117.47824033582906,120.02190687614672,122.48970358919132,124.76343851664062,126.98328671678955,129.00072326717032,130.86647389091638,132.60752145341812,134.20036940485363,135.10316900236205,135.93787858919239,136.48349017419349,136.87021513852503,136.97856782554143,137.0237877887194,136.7593030214112,136.3464138121866,135.71828581847757,134.92405483932919,134.10194448671277,133.11181762107213,131.99825097952399,130.63491718659066,129.27971146038777,127.58666992661099,125.90780066797883,124.0283728033624,122.07996580640757,119.92063259630893,118.14767409113418,116.17192224917174,114.11695874310917,112.00116587606796,109.94676460177152,107.69304314172437,105.37289252157466,103.05663528176431,100.66459137528447,98.289616519934512,96.04920094912157,93.812989758624269,91.44838193406531,89.092011440763429,86.731755619938625,84.379623428415428,82.088329747828041,79.695064911631874,77.411913257904914,75.081182359406426]
[null,null,"Central",12.85576479,11.500893360000001,6.3916835400000007,3.9604793462975549,4.8046893884457331,5.9399172105390399,5.9104386222026815,5.8922332804472166,6.1161381451042116,6.3485513946181715,6.5897963476136621,13.775921033189494,20.962045718765324,28.148170404341155,35.334295089916985,42.520419775492819,49.706544461068653,56.892669146644486,64.078793832220313,71.264918517796147,78.451043203371967,85.735782929399406,93.020522655426802,100.3052623814542,107.59000210748161,114.87474183350901,122.1594815595364,129.4442212855638,136.7289610115912,144.01370073761862,151.29844046364602,158.58318018967341,165.86791991570081,173.15265964172821,180.4373993677556,187.722139093783,195.0068788198104,202.29161854583782,209.57635827186522,216.86109799789261,224.14583772392001,232.07252582517495,239.75151088944705,247.46784922916851,255.18688247748193,262.65987056134873,270.17720578040331,277.42091025197919,284.49233454547033,291.44510209542443,298.22304312189692,303.60262697160016,308.94972406634645,313.75514982573219,318.30282590354665,322.30251253068576,326.24711378266528,329.54048920821975,332.55222881021126,335.10687856414216,337.31013709832303,339.4985936372475,341.31235287454393,342.85259994681553,343.77609785944912,344.74589722770071,344.82883763948922,344.95287854240775,344.52325778711776,343.88722762368332,342.63037884659701,342.4570263511136,341.68212426226984,340.64763803913183,339.39747235172109,338.29773723622009,336.54075981788878,334.51711911611011,332.44075897343333,330.04784057470323,327.63205506644846,325.59051169193759,323.49306813318719,320.87151555812392,318.18575514558376,315.38820225432244,312.51712380894617,309.76728206727574,306.51948042935345,303.57613042315671,300.32472943762582]
[null,null,"High",12.85576479,11.500893360000001,6.3916835400000007,3.9604793462975549,4.8046893884457331,20.789356273871185,23.396560385943829,26.407674992507634,29.858592235278547,34.041732058929206,39.027067506126421,46.892017236019576,54.756966965912731,62.621916695805886,70.486866425699034,78.351816155592189,86.216765885485344,94.081715615378499,101.94666534527165,109.81161507516481,117.67656480505795,128.6036743940991,139.5307839831402,150.45789357218132,161.38500316122241,172.31211275026351,183.2392223393046,194.1663319283457,205.09344151738682,216.02055110642792,226.94766069546901,237.87477028451011,248.8018798735512,259.72898946259232,270.65609905163342,281.58320864067451,292.51031822971561,303.4374278187567,314.3645374077978,325.29164699683889,336.21875658588004,349.26915136688825,362.02478144306508,374.91379158219024,387.88406136577248,400.55630260605676,413.37112484401712,425.84109723678807,438.11819520002439,450.28268273743066,462.24571683894027,472.10208494083815,481.96156954350045,491.02680947727089,499.73543666856824,507.62645723583006,515.47043977661122,522.32167539502836,528.75804380823593,534.49547130980682,539.69621935731686,544.89524278778231,549.51288812801579,553.7069489141071,556.91727853230759,560.21208299501359,562.07100535236748,563.9979564168367,565.01814277087317,565.69448944095905,565.34012509688512,566.76637861109305,567.19232627536803,567.17831733515447,566.79377882737435,566.64870987066865,565.38847649405318,563.66134571064549,561.82488266510234,559.43108977412203,556.97449361296253,555.13182243475364,553.17314650775029,550.29464918218264,547.27949885040402,544.04464888870621,540.65462418947698,537.4462343867234,533.34389594707511,529.74034758840844,525.56827651584513]
[null,"Non-traded","Low",28.970868524042981,29.405431551903668,29.846513025182222,30.294210720559949,30.748623881368346,31.209853239588863,31.678001038182696,32.153171053755429,32.635468619561756,33.125000648855185,33.621875658588003,34.182240252897799,34.742604847207602,35.302969441517405,35.863334035827201,36.423698630137004,36.9840632244468,37.544427818756603,38.104792413066399,38.665157007376202,39.225521601686005,42.867891464699703,46.510261327713401,50.152631190727099,53.795001053740805,57.437370916754503,61.079740779768201,64.7221106427819,68.364480505795598,72.00685036880931,75.649220231823008,79.291590094836707,82.933959957850405,86.576329820864103,90.218699683877801,93.8610695468915,97.503439409905198,101.14580927291891,104.78817913593261,108.43054899894631,112.07291886196001,114.8759002834616,117.47824033582906,120.02190687614672,122.48970358919132,124.76343851664062,126.98328671678955,129.00072326717032,130.86647389091638,132.60752145341812,134.20036940485363,135.10316900236205,135.93787858919239,136.48349017419349,136.87021513852503,136.97856782554143,137.0237877887194,136.7593030214112,136.3464138121866,135.71828581847757,134.92405483932919,134.10194448671277,133.11181762107213,131.99825097952399,130.63491718659066,129.27971146038777,127.58666992661099,125.90780066797883,124.0283728033624,122.07996580640757,119.92063259630893,118.14767409113418,116.17192224917174,114.11695874310917,112.00116587606796,109.94676460177152,107.69304314172437,105.37289252157466,103.05663528176431,100.66459137528447,98.289616519934512,96.04920094912157,93.812989758624269,91.44838193406531,89.092011440763429,86.731755619938625,84.379623428415428,82.088329747828041,79.695064911631874,77.411913257904914,75.081182359406426]
[null,null,"Central",57.941737048086054,58.810863103807336,59.693026050364445,60.588421441119898,61.497247762736691,62.419706479177727,63.356002076365392,64.306342107510858,65.270937239123512,66.250001297710369,67.243751317176006,68.364480505795598,69.485209694415204,70.60593888303481,71.726668071654402,72.847397260274008,73.968126448893599,75.088855637513205,76.209584826132797,77.330314014752403,78.451043203372009,85.735782929399406,93.020522655426802,100.3052623814542,107.59000210748161,114.87474183350901,122.1594815595364,129.4442212855638,136.7289610115912,144.01370073761862,151.29844046364602,158.58318018967341,165.86791991570081,173.15265964172821,180.4373993677556,187.722139093783,195.0068788198104,202.29161854583782,209.57635827186522,216.86109799789261,224.14583772392001,232.07252582517495,239.75151088944705,247.46784922916851,255.18688247748193,262.65987056134873,270.17720578040331,277.42091025197919,284.49233454547033,291.44510209542443,298.22304312189692,303.60262697160016,308.94972406634645,313.75514982573219,318.30282590354665,322.30251253068576,326.24711378266528,329.54048920821975,332.55222881021126,335.10687856414216,337.31013709832303,339.4985936372475,341.31235287454393,342.85259994681553,343.77609785944912,344.74589722770071,344.82883763948922,344.95287854240775,344.52325778711776,343.88722762368332,342.63037884659701,342.4570263511136,341.68212426226984,340.64763803913183,339.39747235172109,338.29773723622009,336.54075981788878,334.51711911611011,332.44075897343333,330.04784057470323,327.63205506644846,325.59051169193759,323.49306813318719,320.87151555812392,318.18575514558376,315.38820225432244,312.51712380894617,309.76728206727574,306.51948042935345,303.57613042315671,300.32472943762582]
[null,null,"High",86.912605572129081,88.216294655710996,89.539539075546656,90.882632161679851,92.245871644105037,93.6295597187666,95.034003114548071,96.459513161266301,97.906405858685275,99.375001946565533,100.865626975764,102.54672075869341,104.22781454162281,105.9089083245522,107.59000210748161,109.271095890411,110.9521896733404,112.63328345626981,114.3143772391992,115.99547102212861,117.67656480505801,128.6036743940991,139.5307839831402,150.45789357218132,161.38500316122241,172.31211275026351,183.2392223393046,194.1663319283457,205.09344151738682,216.02055110642792,226.94766069546901,237.87477028451011,248.8018798735512,259.72898946259232,270.65609905163342,281.58320864067451,292.51031822971561,303.4374278187567,314.3645374077978,325.29164699683889,336.21875658588004,349.26915136688825,362.02478144306508,374.91379158219024,387.88406136577248,400.55630260605676,413.37112484401712,425.84109723678807,438.11819520002439,450.28268273743066,462.24571683894027,472.10208494083815,481.96156954350045,491.02680947727089,499.73543666856824,507.62645723583006,515.47043977661122,522.32167539502836,528.75804380823593,534.49547130980682,539.69621935731686,544.89524278778231,549.51288812801579,553.7069489141071,556.91727853230759,560.21208299501359,562.07100535236748,563.9979564168367,565.01814277087317,565.69448944095905,565.34012509688512,566.76637861109305,567.19232627536803,567.17831733515447,566.79377882737435,566.64870987066865,565.38847649405318,563.66134571064549,561.82488266510234,559.43108977412203,556.97449361296253,555.13182243475364,553.17314650775029,550.29464918218264,547.27949885040402,544.04464888870621,540.65462418947698,537.4462343867234,533.34389594707511,529.74034758840844,525.56827651584513]

{"sheet":"Damage costs","index":29,"n_rows":43,"n_cols":28,"rows_kept":43,"cut":false,"hidden":false,"merged":[[11,20,13,23],[11,24,13,27],[10,2,11,2],[10,3,11,3],[10,4,10,11]]}
[]
[null,"Air Quality Damage Costs"]
[]
[null,null,"Damage costs for use in analysis"]
[null,null,"Price base",{"$f":"'Energy Prices'!D6","v":2019}]
[null,null,"Original price base",2015]
[null,null,"IGCB NOX price base",2015]
[null,null,"Deflation factor",{"$f":"INDEX('Discount and deflators'!$F$21:$AE$46,MATCH($D$6,'Discount and deflators'!$B$21:$B$46,0),MATCH($D$5,'Discount and deflators'!$F$20:$AE$20,0))","v":1.0750182614399999}]
[null,null,"IGCB NOX Deflation factor",{"$f":"INDEX('Discount and deflators'!$F$21:$AE$46,MATCH($D$7,'Discount and deflators'!$B$21:$B$46,0),MATCH($D$5,'Discount and deflators'!$F$20:$AE$20,0))","v":1.0750182614399999}]
[]
[null,null,null,null,"Data Values - Input Here",null,null,null,null,null,null,null,"Calculated Values"]
[null,null,null,null,"IGCB damage costs",null,null,null,"Adjusted prices - NOX only when combined with PM10",null,null,"(?)",null,null,null,null,"Adjusted prices - NOX only when combined with PM10",null,null,"(?)","Calcs for Scenario Analysis and Sensitivity Analysis - where highest benefits need to be used in placed of central Estimates",null,null,null,"Adjusted prices - NOX only when combined with PM10 - Calcs for Scenario Analysis and Sensitivity Analysis - where highest benefits need to be used in placed of central Estimates"]
[null,null,null,null,null,null,null,"EEA values","£/tonne",null,null,null,"£/tonne",null,null,null,"£/tonne"]
[null,null,null,null,null,null,null,"£/tonne","IGCB","IGCB","IGCB","EEA","IGCB","IGCB","IGCB","EEA","IGCB","IGCB","IGCB","EEA"]
[null,null,"Pollutant","EEA Pollutant Name","Low central range","High central range","Central Estimate",null,"Low central range","High central range","Central estimate","EEA","Low central range","High central range","Central estimate","EEA","Low central range","High central range","Central estimate","EEA","MAX","MAX Used","MIN","MIN Used","MAX","MAX Used","MIN (excluding 0)","MIN Used"]
[null,null,"NOX Domestic","Nox",5859,23434,14646,2432.1553079499599,4882,19529,12205,null,{"$f":"E16*$D$9","v":6298.5319937769591},{"$f":"F16*$D$9","v":25191.977938584958},15744.717457050239,2614.6113707044333,{"$f":"I16*$D$9","v":5248.2391523500792},{"$f":"J16*$D$9","v":20994.03162766176},13120.597880875199,0,{"$f":"MAX(M16:P16)","v":25191.977938584958},{"$f":"INDEX($M$15:$P$15,MATCH(U16,M16:P16,0))","v":"High central range"},{"$f":"MIN(M16:P16)","v":2614.6113707044333},{"$f":"INDEX($M$15:$P$15,MATCH(W16,M16:P16,0))","v":"EEA"},{"$f":"MAX(Q16:T16)","v":20994.03162766176},{"$f":"INDEX($Q$15:$T$15,MATCH(Y16,Q16:T16,0))","v":"High central range"},{"$f":"IF(Q16=0,T16,IF(T16=0,Q16,MIN(Q16:T16)))","v":5248.2391523500792},{"$f":"INDEX($Q$15:$T$15,MATCH(AA16,Q16:T16,0))","v":"Low central range"}]
[null,null,"NOX Agriculture","Nox",2020,8080,5050,2432.1553079499599,1683,6734,4209,null,{"$f":"E17*$D$9","v":2171.5368881087998},8686.147552435199,5428.8422202719994,2614.6113707044333,{"$f":"I17*$D$9","v":1809.2557340035198},7239.1729725369596,4524.7518624009599,0,{"$f":"MAX(M17:P17)","v":8686.147552435199},"High central range",2171.5368881087998,"Low central range",{"$f":"MAX(Q17:T17)","v":7239.1729725369596},{"$f":"INDEX($Q$15:$T$15,MATCH(Y17,Q17:T17,0))","v":"High central range"},{"$f":"IF(Q17=0,T17,IF(T17=0,Q17,MIN(Q17:T17)))","v":1809.2557340035198},{"$f":"INDEX($Q$15:$T$15,MATCH(AA17,Q17:T17,0))","v":"Low central range"}]
[null,null,"NOX Waste","Nox",4343,17373,10858,2432.1553079499622,3619,14478,9049,null,{"$f":"E18*$D$9","v":4668.8043094339191},18676.292255997119,11672.548282715519,2614.611370704436,3890.4910881513597,15564.114389128319,9727.8402477705586,0,18676.292255997119,"High central range",2614.611370704436,"EEA",15564.114389128319,"High central range",3890.4910881513597,"Low central range"]
[null,null,"NOX Industry","Nox",5253,21010,13131,2432.1553079499622,4377,17508,10943,null,{"$f":"E19*$D$9","v":5647.0709273443199},22586.133672854397,14116.064790968639,2614.611370704436,4705.3549303228792,18821.419721291517,11763.92483493792,0,22586.133672854397,"High central range",2614.611370704436,"EEA",18821.419721291517,"High central range",4705.3549303228792,"Low central range"]
[null,null,"NOX ESI","Nox",505,2020,1263,2432.1553079499622,421,1684,1052,null,{"$f":"E20*$D$9","v":542.88422202719994},2171.5368881087998,1357.7480641987199,2614.611370704436,452.58268806623994,1810.3307522649598,1130.9192110348799,0,2614.611370704436,"EEA",542.88422202719994,"Low central range",1810.3307522649598,"High central range",452.58268806623994,"Low central range"]
[null,null,"SOX","SO2",1581,2224,1956,9860.5509604210802,null,null,null,null,{"$f":"E21*$D$8","v":1699.6038713366399},{"$f":"F21*$D$8","v":2390.84061344256},2102.7357193766397,10600.272350312391,null,null,null,null,{"$f":"MAX(M21:P21)","v":10600.272350312391},{"$f":"INDEX($M$15:$P$15,MATCH(U21,M21:P21,0))","v":"EEA"},1699.6038713366399,"Low central range"]
[null,null,"PM10 Domestic","PM10",26396,38311,33713,17041.49292501196,null,null,null,null,{"$f":"E22*$D$8","v":28376.182028970237},{"$f":"F22*$D$8","v":41185.02461402784},{"$f":"G22*$D$8","v":36242.090647926714},{"$f":"H22*$D$8","v":18319.916096588415},null,null,null,null,{"$f":"MAX(M22:P22)","v":41185.02461402784},"High central range",18319.916096588415,"EEA"]
[null,null,"PM10 Agriculture","PM10",9103,13211,11625,17041.49292501196,null,null,null,null,9785.8912338883183,14202.066251883838,12497.087289239998,18319.916096588415,null,null,null,null,18319.916096588415,"EEA",{"$f":"MIN(M23:P23)","v":9785.8912338883183},{"$f":"INDEX($M$15:$P$15,MATCH(W23,M23:P23,0))","v":"Low central range"}]
[null,null,"PM10 Waste","PM10",19570,28403,24994,17041.49292501196,null,null,null,null,21038.107376380798,30533.743679680316,26869.006426431359,18319.916096588415,null,null,null,null,30533.743679680316,"High central range",18319.916096588415,"EEA"]
[null,null,"PM10 Industry","PM10",23665,34347,30225,17041.49292501196,null,null,null,null,25440.307156977597,36923.652225679674,32492.426952023998,18319.916096588415,null,null,null,null,36923.652225679674,"High central range",18319.916096588415,"EEA"]
[null,null,"PM10 ESI","PM10",2276,3303,2906,17041.49292501196,null,null,null,null,2446.7415630374398,3550.7853175363198,3124.0030677446398,18319.916096588415,null,null,null,null,18319.916096588415,"EEA",2446.7415630374398,"Low central range"]
[null,null,"Ammonia","NH3",1843,2685,2363,6496.0010937179604,null,null,null,null,1981.2586558339199,2886.4240319663995,2540.2681517827195,6983.3198020810196,null,null,null,null,6983.3198020810196,"EEA",1981.2586558339199,"Low central range"]
[null,null,"Arsenic","Arsenic",null,null,null,240617.95064597714,null,null,null,null,0,0,0,258668.69097469404,null,null,null,null,258668.69097469404,"EEA",0,"Low central range"]
[null,null,"Cadmium","Cadmium",null,null,null,20370.49695809693,null,null,null,null,0,0,0,21898.656224562168,null,null,null,null,21898.656224562168,"EEA",0,"Low central range"]
[null,null,"Chromium","Chromium",null,null,null,27137.876820015037,null,null,null,null,0,0,0,29173.713158225437,null,null,null,null,29173.713158225437,"EEA",0,"Low central range"]
[null,null,"Nickel","Nickel",null,null,null,2734.2948937042861,null,null,null,null,0,0,0,2939.416942894251,null,null,null,null,2939.416942894251,"EEA",0,"Low central range"]
[null,null,"1, 3 Butadiene","1, 3 Butadiene",null,null,null,355.45833618155717,null,null,null,null,0,0,0,382.12420257625263,null,null,null,null,382.12420257625263,"EEA",0,"Low central range"]
[null,null,"Benzene","Benzene",null,null,null,53.318750427233574,null,null,null,null,0,0,0,57.318630386437889,null,null,null,null,57.318630386437889,"EEA",0,"Low central range"]
[null,null,"PAH","PAH",null,null,null,874974.36598537152,null,null,null,null,0,0,0,940613.42172616033,null,null,null,null,940613.42172616033,"EEA",0,"Low central range"]
[null,null,"Diesel particulate matter","Diesel particulate matter",null,null,null,396.4727595871214,null,null,null,null,0,0,0,426.21545671966629,null,null,null,null,426.21545671966629,"EEA",0,"Low central range"]
[null,null,"Formaldehyde","Formaldehyde",null,null,null,150.38621915373574,null,null,null,null,0,0,0,161.6679318591838,null,null,null,null,161.6679318591838,"EEA",0,"Low central range"]
[null,null,"Dioxins/furans","Dioxins/furans",null,null,null,18456.490532503929,null,null,null,null,0,0,0,19841.064364536192,null,null,null,null,19841.064364536192,"EEA",0,"Low central range"]
[null,null,"VOCs","NMVOC",null,null,null,1238,null,null,null,null,0,0,0,1330.8726076627199,null,null,null,null,1330.8726076627199,"EEA",0,"Low central range"]
[null,null,"Sox 2019","SO2",1491,17861,6273,9860.5509604210802,null,null,null,null,1602.8522278070398,19200.901167579839,6743.5895540131196,10600.272350312391,null,null,null,null,19200.901167579839,"High central range",1602.8522278070398,"Low central range"]
[null,null,"Insert New Pollutant Here","Insert New Pollutant Here",null,null,null,null,null,null,null,null,0,0,0,0,null,null,null,null,0,"Low central range",0,"Low central range"]
[null,null,"Insert New Pollutant Here","Insert New Pollutant Here",null,null,null,null,null,null,null,null,0,0,0,0,null,null,null,null,0,"Low central range",0,"Low central range"]
[null,null,"Insert New Pollutant Here","Insert New Pollutant Here",null,null,null,null,null,null,null,null,0,0,0,0,null,null,null,null,0,"Low central range",0,"Low central range"]
[null,null,"Insert New Pollutant Here","Insert New Pollutant Here",null,null,null,null,null,null,null,null,0,0,0,0,null,null,null,null,0,"Low central range",0,"Low central range"]

{"sheet":"Emissions factors","index":30,"n_rows":10,"n_cols":96,"rows_kept":10,"cut":false,"hidden":false,"merged":[]}
[]
[null,"Emissions factors"]
[]
[null,null,null,null,null,2010,2011,2012,2013,2014,2015,2016,2017,2018,2019,2020,2021,2022,2023,2024,2025,2026,2027,2028,2029,2030,2031,2032,2033,2034,2035,2036,2037,2038,2039,2040,2041,2042,2043,2044,2045,2046,2047,2048,2049,2050,2051,2052,2053,2054,2055,2056,2057,2058,2059,2060,2061,2062,2063,2064,2065,2066,2067,2068,2069,2070,2071,2072,2073,2074,2075,2076,2077,2078,2079,2080,2081,2082,2083,2084,2085,2086,2087,2088,2089,2090,2091,2092,2093,2094,2095,2096,2097,2098,2099,2100]
[null,null,"Electricity","kgCO2e/kWh",null,0.48626023247827477,0.46871304877467718,0.51511306663425727,0.47867644459101738,0.42029890325079816,0.44390585632894358,0.36936136635380629,0.3159104566950604,0.30544614356681754,0.28697755159271593,0.25568772595637079,0.22517630754618495,0.20737792838466707,0.1765730983201991,0.18542064694938884,0.17377589215652559,0.1544764034636712,0.15276307065951439,0.12815129219625107,0.1120331592107717,0.10802507084813125,0.10194139820924175,9.620706622863745E-2,8.2736559935985388E-2,8.1755185538606862E-2,6.7952189962213777E-2,6.6607530938235973E-2,5.8141022185516242E-2,5.207034002329318E-2,5.2796274003313541E-2,4.9289990108130913E-2,4.3833960401233642E-2,4.3462694098239579E-2,3.863846241088726E-2,3.415681126973371E-2,3.467051835919021E-2,3.1567712751300353E-2,2.9223487536851132E-2,2.9550641317363954E-2,2.6753935443064508E-2,2.651347691022761E-2,2.651347691022761E-2,2.651347691022761E-2,2.651347691022761E-2,2.651347691022761E-2,2.651347691022761E-2,2.651347691022761E-2,2.651347691022761E-2,2.651347691022761E-2,2.651347691022761E-2,2.651347691022761E-2,2.651347691022761E-2,2.651347691022761E-2,2.651347691022761E-2,2.651347691022761E-2,2.651347691022761E-2,2.651347691022761E-2,2.651347691022761E-2,2.651347691022761E-2,2.651347691022761E-2,2.651347691022761E-2,2.651347691022761E-2,2.651347691022761E-2,2.651347691022761E-2,2.651347691022761E-2,2.651347691022761E-2,2.651347691022761E-2,2.651347691022761E-2,2.651347691022761E-2,2.651347691022761E-2,2.651347691022761E-2,2.651347691022761E-2,2.651347691022761E-2,2.651347691022761E-2,2.651347691022761E-2,2.651347691022761E-2,2.651347691022761E-2,2.651347691022761E-2,2.651347691022761E-2,2.651347691022761E-2,2.651347691022761E-2,2.651347691022761E-2,2.651347691022761E-2,2.651347691022761E-2,2.651347691022761E-2,2.651347691022761E-2,2.651347691022761E-2,2.651347691022761E-2,2.651347691022761E-2,2.651347691022761E-2,2.651347691022761E-2]
[null,null,"Natural Gas","kgCO2e/kWh",null,0.18445,0.18445,0.18445,0.18445,0.18445,0.18445,0.18445,0.18445,0.18445,0.18445,0.18445,0.18445,0.18445,0.18445,0.18445,0.18445,0.18445,0.18445,0.18445,0.18445,0.18445,0.18445,0.18445,0.18445,0.18445,0.18445,0.18445,0.18445,0.18445,0.18445,0.18445,0.18445,0.18445,0.18445,0.18445,0.18445,0.18445,0.18445,0.18445,0.18445,0.18445,0.18445,0.18445,0.18445,0.18445,0.18445,0.18445,0.18445,0.18445,0.18445,0.18445,0.18445,0.18445,0.18445,0.18445,0.18445,0.18445,0.18445,0.18445,0.18445,0.18445,0.18445,0.18445,0.18445,0.18445,0.18445,0.18445,0.18445,0.18445,0.18445,0.18445,0.18445,0.18445,0.18445,0.18445,0.18445,0.18445,0.18445,0.18445,0.18445,0.18445,0.18445,0.18445,0.18445,0.18445,0.18445,0.18445,0.18445,0.18445,0.18445,0.18445]
[null,null,"Coal","kgCO2e/kWh",null,0.32850000000000001,0.32850000000000001,0.32850000000000001,0.32850000000000001,0.32850000000000001,0.32850000000000001,0.32850000000000001,0.32850000000000001,0.32850000000000001,0.32850000000000001,0.32850000000000001,0.32850000000000001,0.32850000000000001,0.32850000000000001,0.32850000000000001,0.32850000000000001,0.32850000000000001,0.32850000000000001,0.32850000000000001,0.32850000000000001,0.32850000000000001,0.32850000000000001,0.32850000000000001,0.32850000000000001,0.32850000000000001,0.32850000000000001,0.32850000000000001,0.32850000000000001,0.32850000000000001,0.32850000000000001,0.32850000000000001,0.32850000000000001,0.32850000000000001,0.32850000000000001,0.32850000000000001,0.32850000000000001,0.32850000000000001,0.32850000000000001,0.32850000000000001,0.32850000000000001,0.32850000000000001,0.32850000000000001,0.32850000000000001,0.32850000000000001,0.32850000000000001,0.32850000000000001,0.32850000000000001,0.32850000000000001,0.32850000000000001,0.32850000000000001,0.32850000000000001,0.32850000000000001,0.32850000000000001,0.32850000000000001,0.32850000000000001,0.32850000000000001,0.32850000000000001,0.32850000000000001,0.32850000000000001,0.32850000000000001,0.32850000000000001,0.32850000000000001,0.32850000000000001,0.32850000000000001,0.32850000000000001,0.32850000000000001,0.32850000000000001,0.32850000000000001,0.32850000000000001,0.32850000000000001,0.32850000000000001,0.32850000000000001,0.32850000000000001,0.32850000000000001,0.32850000000000001,0.32850000000000001,0.32850000000000001,0.32850000000000001,0.32850000000000001,0.32850000000000001,0.32850000000000001,0.32850000000000001,0.32850000000000001,0.32850000000000001,0.32850000000000001,0.32850000000000001,0.32850000000000001,0.32850000000000001,0.32850000000000001,0.32850000000000001,0.32850000000000001]
[null,null,"Road - Petrol","kgCO2e/litre",null,2.2299199768831395,2.2111007756537502,2.210582655733675,2.2009017860009048,2.1890887342243337,2.1890887342243337,2.1890887342243337,2.1595005987432501,2.1299124632621669,2.1003243277810837,2.0707361923000001,2.0707361923000001,2.0707361923000001,2.0707361923000001,2.0707361923000001,2.0707361923000001,2.0707361923000001,2.0707361923000001,2.0707361923000001,2.0707361923000001,2.0707361923000001,2.0707361923000001,2.0707361923000001,2.0707361923000001,2.0707361923000001,2.0707361923000001,2.0707361923000001,2.0707361923000001,2.0707361923000001,2.0707361923000001,2.0707361923000001,2.0707361923000001,2.0707361923000001,2.0707361923000001,2.0707361923000001,2.0707361923000001,2.0707361923000001,2.0707361923000001,2.0707361923000001,2.0707361923000001,2.0707361923000001,2.0707361923000001,2.0707361923000001,2.0707361923000001,2.0707361923000001,2.0707361923000001,2.0707361923000001,2.0707361923000001,2.0707361923000001,2.0707361923000001,2.0707361923000001,2.0707361923000001,2.0707361923000001,2.0707361923000001,2.0707361923000001,2.0707361923000001,2.0707361923000001,2.0707361923000001,2.0707361923000001,2.0707361923000001,2.0707361923000001,2.0707361923000001,2.0707361923000001,2.0707361923000001,2.0707361923000001,2.0707361923000001,2.0707361923000001,2.0707361923000001,2.0707361923000001,2.0707361923000001,2.0707361923000001,2.0707361923000001,2.0707361923000001,2.0707361923000001,2.0707361923000001,2.0707361923000001,2.0707361923000001,2.0707361923000001,2.0707361923000001,2.0707361923000001,2.0707361923000001,2.0707361923000001,2.0707361923000001,2.0707361923000001,2.0707361923000001,2.0707361923000001,2.0707361923000001,2.0707361923000001,2.0707361923000001,2.0707361923000001,2.0707361923000001]
[null,null,"Road - Diesel","kgCO2e/litre",null,2.5617129175583555,2.5665344417062501,2.6087021457169537,2.5973386501148656,2.6013091383329261,2.6014175797454899,2.6015089173819628,2.5561288764705132,2.5107488355590641,2.4653687946476155,2.4199887537361664,2.4199887537361664,2.4199887537361664,2.4199887537361664,2.4199887537361664,2.4199887537361664,2.4199887537361664,2.4199887537361664,2.4199887537361664,2.4199887537361664,2.4199887537361664,2.4199887537361664,2.4199887537361664,2.4199887537361664,2.4199887537361664,2.4199887537361664,2.4199887537361664,2.4199887537361664,2.4199887537361664,2.4199887537361664,2.4199887537361664,2.4199887537361664,2.4199887537361664,2.4199887537361664,2.4199887537361664,2.4199887537361664,2.4199887537361664,2.4199887537361664,2.4199887537361664,2.4199887537361664,2.4199887537361664,2.4199887537361664,2.4199887537361664,2.4199887537361664,2.4199887537361664,2.4199887537361664,2.4199887537361664,2.4199887537361664,2.4199887537361664,2.4199887537361664,2.4199887537361664,2.4199887537361664,2.4199887537361664,2.4199887537361664,2.4199887537361664,2.4199887537361664,2.4199887537361664,2.4199887537361664,2.4199887537361664,2.4199887537361664,2.4199887537361664,2.4199887537361664,2.4199887537361664,2.4199887537361664,2.4199887537361664,2.4199887537361664,2.4199887537361664,2.4199887537361664,2.4199887537361664,2.4199887537361664,2.4199887537361664,2.4199887537361664,2.4199887537361664,2.4199887537361664,2.4199887537361664,2.4199887537361664,2.4199887537361664,2.4199887537361664,2.4199887537361664,2.4199887537361664,2.4199887537361664,2.4199887537361664,2.4199887537361664,2.4199887537361664,2.4199887537361664,2.4199887537361664,2.4199887537361664,2.4199887537361664,2.4199887537361664,2.4199887537361664,2.4199887537361664]
[null,null,"Gas Oil","kgCO2e/litre",null,2.9257703749999999,2.9257703749999999,2.9257703749999999,2.8518362828182298,2.8559245042628429,2.8560361611886367,2.856130207175835,2.809404553749201,2.7626789003225665,2.7159532468959324,2.6692275934692988,2.6692275934692988,2.6692275934692988,2.6692275934692988,2.6692275934692988,2.6692275934692988,2.6692275934692988,2.6692275934692988,2.6692275934692988,2.6692275934692988,2.6692275934692988,2.6692275934692988,2.6692275934692988,2.6692275934692988,2.6692275934692988,2.6692275934692988,2.6692275934692988,2.6692275934692988,2.6692275934692988,2.6692275934692988,2.6692275934692988,2.6692275934692988,2.6692275934692988,2.6692275934692988,2.6692275934692988,2.6692275934692988,2.6692275934692988,2.6692275934692988,2.6692275934692988,2.6692275934692988,2.6692275934692988,2.6692275934692988,2.6692275934692988,2.6692275934692988,2.6692275934692988,2.6692275934692988,2.6692275934692988,2.6692275934692988,2.6692275934692988,2.6692275934692988,2.6692275934692988,2.6692275934692988,2.6692275934692988,2.6692275934692988,2.6692275934692988,2.6692275934692988,2.6692275934692988,2.6692275934692988,2.6692275934692988,2.6692275934692988,2.6692275934692988,2.6692275934692988,2.6692275934692988,2.6692275934692988,2.6692275934692988,2.6692275934692988,2.6692275934692988,2.6692275934692988,2.6692275934692988,2.6692275934692988,2.6692275934692988,2.6692275934692988,2.6692275934692988,2.6692275934692988,2.6692275934692988,2.6692275934692988,2.6692275934692988,2.6692275934692988,2.6692275934692988,2.6692275934692988,2.6692275934692988,2.6692275934692988,2.6692275934692988,2.6692275934692988,2.6692275934692988,2.6692275934692988,2.6692275934692988,2.6692275934692988,2.6692275934692988,2.6692275934692988,2.6692275934692988]

{"sheet":"Discount and deflators","index":31,"n_rows":46,"n_cols":105,"rows_kept":46,"cut":false,"hidden":false,"merged":[]}
[]
[null,"Discount rates"]
[]
[null,null,null,"Min year","max year","Rate",null,"Uplift Rate"]
[null,null,null,0,30,3.5000000000000003E-2,null,0.02,"<Calculation sheets all point at this value - change here to update across all sheets"]
[null,null,null,30,75,0.03]
[null,null,null,75,1000000,2.5000000000000001E-2]
[]
[null,null,null,null,null,{"$f":"'Data Input - General'!F22","v":2019},{"$f":"F9+1","v":2020},{"$f":"G9+1","v":2021},2022,2023,2024,2025,2026,2027,2028,2029,2030,2031,2032,2033,2034,2035,2036,2037,2038,2039,2040,2041,2042,2043,2044,2045,2046,2047,2048,2049,2050,2051,2052,2053,2054,2055,2056,2057,2058,2059,2060,2061,2062,2063,2064,2065,2066,2067,2068,2069,2070,2071,2072,2073,2074,2075,2076,2077,2078,2079,2080,2081,2082,2083,2084,{"$f":"BS9+1","v":2085},2086,2087,2088,2089,2090,2091,2092,2093,2094,2095,2096,2097,2098,2099,2100,2101,2102,2103,2104,2105,2106,2107,2108,2109,2110,2111,2112,2113,2114,2115,2116,2117,2118]
[null,"Year",null,null,null,0,{"$f":"F10+1","v":1},{"$f":"G10+1","v":2},3,4,5,6,7,8,9,10,11,12,13,14,15,16,17,18,19,20,21,22,23,24,25,26,27,28,29,30,31,32,33,34,35,36,37,38,39,40,41,42,43,44,45,46,47,48,49,50,51,52,53,54,55,56,57,58,59,60,61,62,63,64,65,{"$f":"BS10+1","v":66},67,68,69,70,71,72,73,74,75,76,77,78,79,80,81,82,83,84,85,86,87,88,89,90,91,92,93,94,95,96,97,98,99]
[null,"Discount rate",null,null,null,3.5000000000000003E-2,3.5000000000000003E-2,3.5000000000000003E-2,3.5000000000000003E-2,3.5000000000000003E-2,3.5000000000000003E-2,3.5000000000000003E-2,3.5000000000000003E-2,3.5000000000000003E-2,3.5000000000000003E-2,{"$f":"SUMPRODUCT((P$10>=$D$5:$D$7)*(P$10<$E$5:$E$7),$F$5:$F$7)","v":3.5000000000000003E-2},3.5000000000000003E-2,3.5000000000000003E-2,3.5000000000000003E-2,3.5000000000000003E-2,3.5000000000000003E-2,3.5000000000000003E-2,3.5000000000000003E-2,3.5000000000000003E-2,3.5000000000000003E-2,3.5000000000000003E-2,3.5000000000000003E-2,3.5000000000000003E-2,3.5000000000000003E-2,3.5000000000000003E-2,3.5000000000000003E-2,3.5000000000000003E-2,3.5000000000000003E-2,3.5000000000000003E-2,3.5000000000000003E-2,0.03,0.03,0.03,0.03,0.03,0.03,0.03,0.03,0.03,0.03,0.03,0.03,{"$f":"SUMPRODUCT((AV$10>=$D$5:$D$7)*(AV$10<$E$5:$E$7),$F$5:$F$7)","v":0.03},0.03,0.03,0.03,0.03,0.03,0.03,0.03,0.03,0.03,0.03,0.03,0.03,0.03,0.03,0.03,0.03,0.03,0.03,0.03,0.03,0.03,0.03,0.03,0.03,0.03,0.03,0.03,0.03,0.03,0.03,0.03,{"$f":"SUMPRODUCT((CB$10>=$D$5:$D$7)*(CB$10<$E$5:$E$7),$F$5:$F$7)","v":0.03},2.5000000000000001E-2,2.5000000000000001E-2,2.5000000000000001E-2,2.5000000000000001E-2,2.5000000000000001E-2,2.5000000000000001E-2,2.5000000000000001E-2,2.5000000000000001E-2,2.5000000000000001E-2,2.5000000000000001E-2,2.5000000000000001E-2,2.5000000000000001E-2,2.5000000000000001E-2,2.5000000000000001E-2,2.5000000000000001E-2,2.5000000000000001E-2,2.5000000000000001E-2,2.5000000000000001E-2,2.5000000000000001E-2,2.5000000000000001E-2,2.5000000000000001E-2,2.5000000000000001E-2,2.5000000000000001E-2,2.5000000000000001E-2,2.5000000000000001E-2]
[null,"Discount factor",null,null,null,1,{"$f":"F12/(1+G11)","v":0.96618357487922713},{"$f":"G12/(1+H11)","v":0.93351070036640305},0.90194270566802237,{"$f":"I12/(1+J11)","v":0.87144222769857238},0.84197316685852408,0.81350064430775282,0.78599096068381924,0.75941155621625056,0.73373097218961414,0.70891881370977217,0.68494571372924851,0.66178329828912907,0.63940415293635666,0.61778179027667313,{"$f":"T12/(1+U11)","v":0.59689061862480497},0.57670591171478747,0.55720377943457733,0.53836113955031628,0.520155690386779,0.50256588443167061,0.48557090283253201,0.46915063075606961,0.45328563358074364,0.43795713389443836,0.42314698926998878,0.40883767079225974,0.39501224231136212,0.38165434039745133,0.36874815497338298,0.35800791744988636,0.34758050237853044,0.33745679842575771,0.32762795963665797,0.31808539770549316,0.30882077447135259,0.29982599463238113,0.29109319867221467,0.2826147559924414,0.27438325824508875,0.26639151285930945,0.25863253675661113,0.25109955024913699,0.24378597111566697,0.23668540885016209,0.22979165907782728,0.22309869813381289,{"$f":"AZ12/(1+BA11)","v":0.21660067779981834},0.21029192019399839,0.20416691280970717,0.19822030369874483,0.19244689679489788,0.18684164737368725,0.18139965764435656,0.17611617247024908,0.17098657521383406,0.1660063837027515,0.16117124631335097,0.15647693816830191,0.1519193574449533,0.1474945217912168,0.14319856484584156,0.13902773286004036,0.13497838141751492,0.13104697225001449,0.12723007014564514,0.12352433994722828,0.11992654363808571,0.11643353751270456,0.11304226942981026,0.10974977614544684,0.10655318072373479,0.10344969002304348,0.10043659225538201,9.7511254616875737E-2,9.5132931333537313E-2,9.2812615935158368E-2,9.0548893595276458E-2,8.834038399539168E-2,{"$f":"CF12/(1+CG11)","v":8.6185740483308959E-2},8.4083649252008744E-2,8.2032828538545127E-2,8.0032027842483061E-2,7.8080027163398111E-2,7.6175636256973767E-2,7.4317693909242699E-2,7.2505067228529466E-2,7.0736650954662902E-2,6.9011366785036984E-2,6.7328162717109258E-2,6.5686012406935862E-2,6.4083914543352063E-2,6.252089223741665E-2,6.0995992426747955E-2,5.9508285294388251E-2,5.8056863701842203E-2,5.6640842635943614E-2,5.5259358669213283E-2,5.3911569433378818E-2,5.2596653105735434E-2]
[]
[]
[null,"Deflators"]
[]
[null,"Calendar year",null,null,null,"2005","2006","2007","2008","2009","2010","2011","2012","2013","2014","2015","2016","2017","2018","2019","2020","2021","2022","2023","2024","2025","2026","2027","2028","2029","2030"]
[null,"per cent change on previous year",null,null,null,{"$f":"Assumptions!S7","v":2.91},{"$f":"Assumptions!T7","v":2.99},{"$f":"Assumptions!U7","v":2.86},{"$f":"Assumptions!V7","v":2.88},{"$f":"Assumptions!W7","v":2.04},{"$f":"Assumptions!X7","v":3.11},{"$f":"Assumptions!Y7","v":2.1},{"$f":"Assumptions!Z7","v":1.62},{"$f":"Assumptions!AA7","v":1.98},{"$f":"Assumptions!AB7","v":1.71},{"$f":"Assumptions!AC7","v":1.2},{"$f":"Assumptions!AD7","v":1.6},{"$f":"Assumptions!AE7","v":1.8},{"$f":"Assumptions!AF7","v":1.9},{"$f":"Assumptions!AG7","v":2},{"$f":"Assumptions!AH7","v":2.2000000000000002},{"$f":"Assumptions!AI7","v":2.2000000000000002},{"$f":"Assumptions!AJ7","v":2.2000000000000002},{"$f":"Assumptions!AK7","v":2.2000000000000002},{"$f":"Assumptions!AL7","v":2.2000000000000002},{"$f":"Assumptions!AM7","v":2.2000000000000002},{"$f":"Assumptions!AN7","v":2.2000000000000002},{"$f":"Assumptions!AO7","v":2.2000000000000002},{"$f":"Assumptions!AP7","v":2.2000000000000002},{"$f":"Assumptions!AQ7","v":2.2000000000000002},{"$f":"Assumptions!AR7","v":2.2000000000000002}]
[]
[null,"Base year",null,null,"Target year",2005,2006,2007,2008,2009,2010,2011,2012,2013,2014,2015,2016,2017,2018,2019,2020,2021,2022,2023,2024,2025,2026,2027,2028,2029,2030]
[null,2005,null,null,null,1,{"$f":"F21*(1+G$18/100)","v":1.0299},1.0593551400000001,1.089864568032,1.1120978052198529,1.1466840469621902,1.170764411948396,1.18973079542196,1.2132874651713148,1.2340346808257441,1.248843096995653,1.2688245865475836,1.2916634291054401,1.3162050342584433,1.3425291349436121,1.3720647759123716,1.4022502009824438,1.4330997054040575,1.4646278989229469,1.4968497126992517,1.5297804063786353,1.5634355753189653,1.5978311579759825,1.6329834434514541,1.6689090792073862,1.7056250789499487]
[null,2006,null,null,null,{"$f":"G22/(1+G$18/100)","v":0.9709680551509855},1,{"$f":"G22*(1+H$18/100)","v":1.0286},1.05822368,1.0798114430720001,1.1133935789515392,1.1367748441095213,1.1551905965840956,{"$f":"M22*(1+N$18/100)","v":1.1780633703964607},{"$f":"N22*(1+O$18/100)","v":1.1982082540302401},1.212586753078603,1.2319881411278606,1.2541639276681622,1.2779930422938572,1.3035529031397344,1.3322310670088087,1.3615401504830025,1.3914940337936286,1.4221069025370885,1.4533932543929045,1.4853679059895484,1.5180459999213185,1.5514430119195874,1.5855747581818185,1.6204574028618186,1.6561074657247787]
[null,2007,null,null,null,{"$f":"G23/(1+G$18/100)","v":0.94397049888293361},{"$f":"H23/(1+H$18/100)","v":0.97219521679953336},1,{"$f":"H23*(1+I$18/100)","v":1.0287999999999999},{"$f":"I23*(1+J$18/100)","v":1.04978752},{"$f":"J23*(1+K$18/100)","v":1.0824359118719999},{"$f":"K23*(1+L$18/100)","v":1.1051670660213118},{"$f":"L23*(1+M$18/100)","v":1.1230707724908571},{"$f":"M23*(1+N$18/100)","v":1.145307573786176},{"$f":"N23*(1+O$18/100)","v":1.1648923332979195},1.1788710412974945,1.1977329779582544,1.219292171561503,1.2424587228211714,1.2673078972775949,1.2951886710177019,1.3236828217800913,1.3528038438592533,1.3825655284241569,1.4129819700494883,1.444067573390577,1.4758370600051698,1.5083054753252836,1.5414881957824398,1.5754009360896535,1.6100597566836259]
[null,2008,null,null,null,{"$f":"G24/(1+G$18/100)","v":0.91754519720347372},{"$f":"H24/(1+H$18/100)","v":0.94497979859985759},{"$f":"I24/(1+I$18/100)","v":0.97200622083981347},1,{"$f":"I24*(1+J$18/100)","v":1.0204},{"$f":"J24*(1+K$18/100)","v":1.0521344399999999},{"$f":"K24*(1+L$18/100)","v":1.0742292632399999},{"$f":"L24*(1+M$18/100)","v":1.0916317773044879},{"$f":"M24*(1+N$18/100)","v":1.1132460864951168},{"$f":"N24*(1+O$18/100)","v":1.1322825945741832},1.1458699857090735,1.1642039054804187,1.1851595757790663,1.2076776077188685,1.2318311598732459,1.2589314453904572,1.2866279371890472,1.3149337518072062,1.3438622943469647,1.373427264822598,1.4036426646486952,1.4345228032709665,1.4660823049429277,1.4983361156516721,1.531299510196009,1.5649880994203211]
[null,2009,null,null,null,{"$f":"G25/(1+G$18/100)","v":0.89920148687129919},{"$f":"H25/(1+H$18/100)","v":0.92608761132875106},{"$f":"I25/(1+I$18/100)","v":0.95257371701275328},{"$f":"J25/(1+J$18/100)","v":0.98000784006272057},1,{"$f":"J25*(1+K$18/100)","v":1.0310999999999999},1.0527530999999999,1.0698077002199999,1.090989892684356,1.1096458198492583,1.1229615696874493,1.1409289548024486,1.1614656759888926,1.1835335238326814,1.207204194309335,1.2337626865841405,1.2609054656889915,1.2886453859341493,1.3169955844247005,1.345969487282044,1.3755808160022489,1.4058435939542984,1.4367721530212929,1.4683811403877614,1.5006855254762921,1.5337006070367705]
[null,2010,null,null,null,{"$f":"G26/(1+G$18/100)","v":0.87207980493773563},{"$f":"H26/(1+H$18/100)","v":0.898154991105374},{"$f":"I26/(1+I$18/100)","v":0.92384222385098769},{"$f":"J26/(1+J$18/100)","v":0.95044887989789606},{"$f":"K26/(1+K$18/100)","v":0.96983803704781313},1,{"$f":"K26*(1+L$18/100)","v":1.0209999999999999},{"$f":"L26*(1+M$18/100)","v":1.0375401999999998},{"$f":"M26*(1+N$18/100)","v":1.0580834959599998},{"$f":"N26*(1+O$18/100)","v":1.0761767237409157},1.0890908444258067,1.1065162979366197,1.1264335912994787,1.1478358295341686,1.1707925461248521,1.1965499821395988,1.2228740817466701,1.249777311545097,1.2772724123990891,1.3053724054718689,1.3340905983922502,1.3634405915568797,1.393436284571131,1.424091882831696,1.4554219042539933,1.4874411861475811]
[null,2011,null,null,null,{"$f":"G27/(1+G$18/100)","v":0.85414280601149428},0.87968167591123803,0.90484057184229938,0.93089998031135757,0.94989033990970928,0.97943192948090119,1,{"$f":"L27*(1+M$18/100)","v":1.0162},1.03632076,1.0540418449959998,1.0666903471359519,1.0837573926901272,1.1032650257585495,1.1242270612479619,1.1467116024729211,1.1719392577273253,1.1977219213973265,1.2240718036680678,1.2510013833487652,1.2785234137824382,1.3066509288856518,1.3353972493211361,1.3647759888062012,1.3948010605599377,1.4254866838922564,1.4568473909378861]
[null,2012,null,null,null,{"$f":"G28/(1+G$18/100)","v":0.84052628027110254},0.86565801605120851,0.89041583531027302,0.91605981136720882,0.93474743151909989,0.96381807663934382,{"$f":"M28/(1+M$18/100)","v":0.98405825624876997},1,{"$f":"M28*(1+N$18/100)","v":1.0198},1.0372385799999999,1.04968544296,1.0664804100473599,1.0856770574282124,1.1063049215193483,1.1284310199497354,1.1532565023886296,1.1786281454411796,1.2045579646408855,1.231058239862985,1.2581415211399707,1.28582063460505,1.3141086885663611,1.3430190797148212,1.3725654994685472,1.4027619404568552,1.433622703146906]
[null,2013,null,null,null,{"$f":"G29/(1+G$18/100)","v":0.82420698202696863},0.84885077078957505,0.87312790283415687,0.89827398643578049,0.91659877575907034,0.94510499768517731,0.96495220263656589,0.98058442831927828,1,{"$f":"N29*(1+O$18/100)","v":1.0170999999999999},1.0293051999999998,1.0457740831999998,1.0645980166975997,1.0848253790148539,1.1065218865951509,1.1308653681002443,1.1557444061984496,1.1811707831348155,1.2071565403637814,1.2337139842517846,1.2608556919053238,1.2885945171272408,1.3169435965040401,1.345916355627129,1.3755265154509257,1.4057880987908462]
[null,2014,null,null,null,{"$f":"G30/(1+G$18/100)","v":0.81034999707695277},0.83457946198955368,0.8584484346024549,0.88317174951900557,0.90118845320919327,0.9292154141039991,0.94872893780018297,0.9640983465925459,{"$f":"O30/(1+O$18/100)","v":0.98318749385507831},1,{"$f":"O30*(1+P$18/100)","v":1.012},1.028192,1.046699456,1.0665867456639999,1.0879184805772799,1.1118526871499801,1.1363134462672797,1.1613123420851599,1.1868612136110335,1.2129721603104762,1.2396575478373066,1.2669300138897275,1.2948024741953015,1.3232881286275981,1.3524004674574053,1.3821532777414682]
[null,2015,null,null,null,{"$f":"G31/(1+G$18/100)","v":0.80074110383098096},0.82468326283552729,0.8482692041526233,0.87269935723221881,0.890502424119756,0.91819704950988035,0.9374791875495877,0.95266635038789105,0.97152914412557134,0.98814229249011853,1,{"$f":"P31*(1+Q$18/100)","v":1.016},1.0342880000000001,1.0539394719999999,1.0750182614399999,1.09866866319168,1.1228393737818969,1.1475418400050987,1.1727877604852108,1.1985890912158854,1.224958051222635,1.2519071283495331,1.2794490851732228,1.3075969650470336,1.3363640982780685,1.3657641084401859]
[null,2016,null,null,null,{"$f":"G32/(1+G$18/100)","v":0.78813100770765832},0.81169612483811737,0.83491063400848753,0.85895606026793192,0.87647876389739776,0.90373725345460676,0.92271573577715338,0.93766373069674325,0.95622947256453883,0.97258099654539232,{"$f":"Q32/(1+Q$18/100)","v":0.98425196850393704},1,{"$f":"Q32*(1+R$18/100)","v":1.018},1.037342,1.0580888399999999,1.0813667944799998,1.1051568639585598,1.1294703149656482,1.1543186618948924,1.17971367245658,1.2056673732506247,1.2321920554621384,1.2593002806823055,1.2870048868573163,1.3153189943681773,1.3442560122442773]
[null,2017,null,null,null,{"$f":"G33/(1+G$18/100)","v":0.77419548890732637},0.79734393402565551,0.82014797053878918,0.84376823209030627,0.86098110402494854,0.8877576163601244,0.90640052630368695,0.92108421482980662,0.93932168228343682,0.9553840830504835,0.96684869204708934,0.98231827111984282,1,{"$f":"R33*(1+S$18/100)","v":1.0189999999999999},1.03938,1.0622463600000001,1.0856157799200001,1.1094993270782401,1.1339083122739613,1.1588542951439884,1.1843490896371562,1.2104047696091738,1.2370336745405757,1.2642484153804683,1.2920618805188386,1.3204872418902531]
[null,2018,null,null,null,{"$f":"G34/(1+G$18/100)","v":0.75976004799541363},0.78247687343047656,0.80485571201058814,0.82803555651649308,0.84492748186942956,0.87120472655556869,0.88950002581323551,0.90390992623140987,0.92180734277079179,0.93757024833217228,0.94882109131215842,0.964002228773153,{"$f":"S34/(1+S$18/100)","v":0.9813542688910698},1,{"$f":"S34*(1+T$18/100)","v":1.02},1.04244,1.06537368,1.0888119009599999,1.1127657627811198,1.1372466095623044,1.162266034972675,1.1878358877420738,1.2139682772723994,1.2406755793723923,1.2679704421185849,1.2958657918451937]
[null,2019,null,null,null,{"$f":"G35/(1+G$18/100)","v":0.74486279215236639},0.76713418963772217,0.78907422746136102,0.81179956521224816,0.82836027634257803,0.85412228093683218,0.87205884883650553,0.88618620218765687,0.90373268899097248,0.919186517972718,0.93021675618839061,0.94510022428740492,0.96211202832457821,0.98039215686274506,1,{"$f":"T35*(1+U$18/100)","v":1.022},1.044484,1.067462648,1.090946826256,1.114947656433632,1.139476504875172,1.1645449879824259,1.1901649777180392,1.216348607227836,1.2431082765868484,1.2704566586717592]
[null,2020,null,null,null,{"$f":"G36/(1+G$18/100)","v":0.72882856374986915},0.75062053780599025,0.7720882851872416,0.79432442780063406,0.81052864612776698,0.83573608702234048,0.85328654484980959,0.86710978687637652,0.88427856065652877,0.89939972404375534,0.91019252073228041,0.9247556010639969,0.94140120188314891,0.95928782471892859,{"$f":"U36/(1+U$18/100)","v":0.97847358121330719},1,{"$f":"U36*(1+V$18/100)","v":1.022},1.044484,1.067462648,1.090946826256,1.114947656433632,1.139476504875172,1.1645449879824259,1.1901649777180392,1.216348607227836,1.2431082765868484]
[null,2021,null,null,null,{"$f":"G37/(1+G$18/100)","v":0.71313949486288575},0.73446236575928603,0.7554679894200016,0.77722546751529764,0.79308086705260972,0.81774568201794584,0.83491834134032261,0.84844401847003581,0.86524321003574256,0.88003886892735361,0.89059933535448188,0.90484892472015355,0.92113620536511631,0.93863779326705343,0.95741054913239454,0.97847358121330719,1,{"$f":"V37*(1+W$18/100)","v":1.022},1.044484,1.067462648,1.090946826256,1.114947656433632,1.139476504875172,1.1645449879824259,1.1901649777180392,1.216348607227836]
[null,2022,null,null,null,{"$f":"G38/(1+G$18/100)","v":0.69778815544313688},0.71865202129088668,0.739205469099806,0.76049458660988034,0.77600867617672187,0.8001425460058178,0.81694553947193993,0.83018005721138532,0.84661762234417082,0.86109478368625603,0.87142792109049105,0.88537076782793889,0.9013074416488418,0.91843228304016966,0.93680092870097309,0.95741054913239454,{"$f":"W38/(1+W$18/100)","v":0.97847358121330719},1,{"$f":"W38*(1+X$18/100)","v":1.022},1.044484,1.067462648,1.090946826256,1.114947656433632,1.139476504875172,1.1645449879824259,1.1901649777180392]
[null,2023,null,null,null,{"$f":"G39/(1+G$18/100)","v":0.68276727538467386},0.70318201691867566,0.7232930226025498,0.74412386165350319,0.75930398843123459,0.78291834247144587,0.79935962766334612,0.81230925363149231,0.82839297685339586,0.84255849675758887,0.85266919871867997,0.86631190589817886,0.88190552020434609,0.89866172508822861,0.91663495958999319,0.93680092870097309,0.95741054913239454,0.97847358121330719,1,{"$f":"X39*(1+Y$18/100)","v":1.022},1.044484,1.067462648,1.090946826256,1.114947656433632,1.139476504875172,1.1645449879824259]
[null,2024,null,null,null,{"$f":"G40/(1+G$18/100)","v":0.66806974108089423},0.68804502633921294,0.70772311409251443,0.72810553977837877,0.74295889278985772,0.76606491435562218,0.78215227755709016,0.79482314445351498,0.81056064271369466,0.8244212297040987,0.83431428446054789,0.84766331301191666,0.86292125264613118,0.87931675644640761,0.89690309157533576,0.91663495958999319,0.93680092870097309,0.95741054913239454,{"$f":"Y40/(1+Y$18/100)","v":0.97847358121330719},1,{"$f":"Y40*(1+Z$18/100)","v":1.022},1.044484,1.067462648,1.090946826256,1.114947656433632,1.139476504875172]
[null,2025,null,null,null,{"$f":"G41/(1+G$18/100)","v":0.65368859205566954},0.67323388095813408,0.69248836995353669,0.71243203500819852,0.72696564852236578,0.74957428019141126,0.76531534007543078,0.77771344858465274,0.79311217486662888,0.80667439305684818,0.81635448577353031,0.82941615754590681,0.84434564838173309,0.86038821570098589,0.87759598001500561,0.89690309157533576,0.91663495958999319,0.93680092870097309,0.95741054913239454,0.97847358121330719,1,{"$f":"Z41*(1+AA$18/100)","v":1.022},{"$f":"AA41*(1+AB$18/100)","v":1.044484},{"$f":"AB41*(1+AC$18/100)","v":1.067462648},{"$f":"AC41*(1+AD$18/100)","v":1.090946826256},{"$f":"AD41*(1+AE$18/100)","v":1.114947656433632}]
[null,2026,null,null,null,{"$f":"G42/(1+G$18/100)","v":0.6396170176669953},0.65874156649523852,0.67758157529700236,0.69709592466555603,0.7113166815287334,0.73343863032427692,0.74884084156108666,0.76097206319437627,0.77603931004562499,0.78930958224740511,0.79878129723437397,0.81156179799012396,0.82616991035394616,0.84186713865067109,0.8587044814236845,0.87759598001500561,0.89690309157533576,0.91663495958999319,0.93680092870097309,0.95741054913239454,0.97847358121330719,1,{"$f":"AA42*(1+AB$18/100)","v":1.022},{"$f":"AB42*(1+AC$18/100)","v":1.044484},{"$f":"AC42*(1+AD$18/100)","v":1.067462648},{"$f":"AD42*(1+AE$18/100)","v":1.090946826256}]
[null,2027,null,null,null,{"$f":"G43/(1+G$18/100)","v":0.62584835388160009},0.64456121966266,0.66299567054501207,0.68208994585670835,0.69600458075218519,0.71765032321357813,0.73272098000106323,0.74459105987708041,0.75933396286264665,0.77231857362759782,0.78158639651112904,0.79409177885530713,0.80838543087470272,0.82374475406132197,0.84021964914254843,0.8587044814236845,0.87759598001500561,0.89690309157533576,0.91663495958999319,0.93680092870097309,0.95741054913239454,0.97847358121330719,1,{"$f":"AB43*(1+AC$18/100)","v":1.022},{"$f":"AC43*(1+AD$18/100)","v":1.044484},{"$f":"AD43*(1+AE$18/100)","v":1.067462648}]
[null,2028,null,null,null,{"$f":"G44/(1+G$18/100)","v":0.61237608011898248},0.63068612491454012,0.64872374808709599,0.66740699203200426,0.68102209466945718,0.70220188181367726,0.71694812133176444,0.728562680897339,0.7429882219791063,0.75569332057494898,0.76476164042184835,0.77699782666859796,0.79098378754863274,0.80601247951205668,0.82213272910229784,0.84021964914254843,0.8587044814236845,0.87759598001500561,0.89690309157533576,0.91663495958999319,0.93680092870097309,0.95741054913239454,0.97847358121330719,1,{"$f":"AC44*(1+AD$18/100)","v":1.022},{"$f":"AD44*(1+AE$18/100)","v":1.044484}]
[null,2029,null,null,null,{"$f":"G45/(1+G$18/100)","v":0.59919381616338807},0.61710971126667336,0.63475904900890023,0.65304010962035652,0.66636212785661175,0.68708599003295234,0.70151479582364429,0.71287933551598737,0.7269943463592039,0.73942594968194619,0.7482990610781296,0.76027184605537967,0.77395673928437647,0.7886619173307795,0.8044351556773951,0.82213272910229784,0.84021964914254843,0.8587044814236845,0.87759598001500561,0.89690309157533576,0.91663495958999319,0.93680092870097309,0.95741054913239454,0.97847358121330719,1,{"$f":"AD45*(1+AE$18/100)","v":1.022}]
[null,2030,null,null,null,{"$f":"G46/(1+G$18/100)","v":0.58629531914225841},0.60382554918461195,0.62109495989129182,0.63898249473616098,0.65201773762877868,0.6722954892690336,0.68641369454368328,0.697533596395291,0.7113447616039178,0.72350875702734474,0.73219086211167284,0.74390591590545962,0.75729622239175787,0.77168485061720116,0.78711854762954514,0.8044351556773951,0.82213272910229784,0.84021964914254843,0.8587044814236845,0.87759598001500561,0.89690309157533576,0.91663495958999319,0.93680092870097309,0.95741054913239454,{"$f":"AE46/(1+AE$18/100)","v":0.97847358121330719},1]

{"sheet":"Assumptions","index":32,"n_rows":79,"n_cols":99,"rows_kept":79,"cut":false,"hidden":false,"merged":[[57,2,57,5]]}
[]
[null,"Assumptions"]
[]
[null,"HMT GDP Deflators (for price base conversion)"]
[]
[null,"Calendar year",null,"1990","1991","1992","1993","1994","1995","1996","1997","1998","1999","2000","2001","2002","2003","2004","2005","2006","2007","2008","2009","2010","2011","2012","2013","2014","2015","2016","2017","2018","2019","2020","2021","2022","2023","2024","2025","2026","2027","2028","2029","2030"]
[null,"per cent change on previous year","%",8.1199999999999992,6.56,3.27,2.58,1.22,2.48,4.0199999999999996,2.3199999999999998,1.61,1.1100000000000001,2.31,1.05,2.5099999999999998,2.73,2.9,2.91,2.99,2.86,2.88,2.04,3.11,2.1,1.62,1.98,1.71,1.2,1.6,1.8,1.9,2,2.2000000000000002,2.2000000000000002,2.2000000000000002,2.2000000000000002,2.2000000000000002,2.2000000000000002,2.2000000000000002,2.2000000000000002,2.2000000000000002,2.2000000000000002,2.2000000000000002]
[]
[]
[null,"Exchange rates"]
[]
[null,"Year",null,2005,2006,2007,2008,2009,2010,2011,2012,2013,2014,2015,2016,2017,2018,2019,2020,2021,2022,2023,2024,2025,2026,2027,2028,2029,2030,2031,2032,2033,2034,2035,2036,2037,2038,2039,2040,2041,2042,2043,2044,2045,2046,2047,2048,2049,2050,2051,2052,2053,2054,2055,2056,2057,2058,2059,2060,2061,2062,2063,2064,2065,2066,2067,2068,2069,2070,2071,2072,2073,2074,2075,2076,2077,2078,2079,2080,2081,2082,2083,2084,2085,2086,2087,2088,2089,2090,2091,2092,2093,2094,2095,2096,2097,2098,2099,2100]
[null,"£1 buys X US dollars",null,1.8189,1.843,2.0022000000000002,1.8528,1.5665,1.546,1.603,1.5851,1.5644,1.6476999999999999,1.6476999999999999,1.6476999999999999,1.6476999999999999,1.6476999999999999,1.6476999999999999,1.6476999999999999,1.6476999999999999,1.6476999999999999,1.6476999999999999,1.6476999999999999,1.6476999999999999,1.6476999999999999,1.6476999999999999,1.6476999999999999,1.6476999999999999,1.6476999999999999,1.6476999999999999,1.6476999999999999,1.6476999999999999,1.6476999999999999,1.6476999999999999,1.6476999999999999,1.6476999999999999,1.6476999999999999,1.6476999999999999,1.6476999999999999,1.6476999999999999,1.6476999999999999,1.6476999999999999,1.6476999999999999,1.6476999999999999,1.6476999999999999,1.6476999999999999,1.6476999999999999,1.6476999999999999,1.6476999999999999,1.6476999999999999,1.6476999999999999,1.6476999999999999,1.6476999999999999,1.6476999999999999,1.6476999999999999,1.6476999999999999,1.6476999999999999,1.6476999999999999,1.6476999999999999,1.6476999999999999,1.6476999999999999,1.6476999999999999,1.6476999999999999,1.6476999999999999,1.6476999999999999,1.6476999999999999,1.6476999999999999,1.6476999999999999,1.6476999999999999,1.6476999999999999,1.6476999999999999,1.6476999999999999,1.6476999999999999,1.6476999999999999,1.6476999999999999,1.6476999999999999,1.6476999999999999,1.6476999999999999,1.6476999999999999,1.6476999999999999,1.6476999999999999,1.6476999999999999,1.6476999999999999,1.6476999999999999,1.6476999999999999,1.6476999999999999,1.6476999999999999,1.6476999999999999,1.6476999999999999,1.6476999999999999,1.6476999999999999,1.6476999999999999,1.6476999999999999,1.6476999999999999,1.6476999999999999,1.6476999999999999,1.6476999999999999,1.6476999999999999,1.6476999999999999]
[null,"£1 buys X Euros",null,1.4629000000000001,1.4670000000000001,1.4619,1.2587999999999999,1.1233,1.1664000000000001,1.1527000000000001,1.2337,1.1776,1.2411000000000001,1.2411000000000001,1.2411000000000001,1.2411000000000001,1.2411000000000001,1.2411000000000001,1.2411000000000001,1.2411000000000001,1.2411000000000001,1.2411000000000001,1.2411000000000001,1.2411000000000001,1.2411000000000001,1.2411000000000001,1.2411000000000001,1.2411000000000001,1.2411000000000001,1.2411000000000001,1.2411000000000001,1.2411000000000001,1.2411000000000001,1.2411000000000001,1.2411000000000001,1.2411000000000001,1.2411000000000001,1.2411000000000001,1.2411000000000001,1.2411000000000001,1.2411000000000001,1.2411000000000001,1.2411000000000001,1.2411000000000001,1.2411000000000001,1.2411000000000001,1.2411000000000001,1.2411000000000001,1.2411000000000001,1.2411000000000001,1.2411000000000001,1.2411000000000001,1.2411000000000001,1.2411000000000001,1.2411000000000001,1.2411000000000001,1.2411000000000001,1.2411000000000001,1.2411000000000001,1.2411000000000001,1.2411000000000001,1.2411000000000001,1.2411000000000001,1.2411000000000001,1.2411000000000001,1.2411000000000001,1.2411000000000001,1.2411000000000001,1.2411000000000001,1.2411000000000001,1.2411000000000001,1.2411000000000001,1.2411000000000001,1.2411000000000001,1.2411000000000001,1.2411000000000001,1.2411000000000001,1.2411000000000001,1.2411000000000001,1.2411000000000001,1.2411000000000001,1.2411000000000001,1.2411000000000001,1.2411000000000001,1.2411000000000001,1.2411000000000001,1.2411000000000001,1.2411000000000001,1.2411000000000001,1.2411000000000001,1.2411000000000001,1.2411000000000001,1.2411000000000001,1.2411000000000001,1.2411000000000001,1.2411000000000001,1.2411000000000001,1.2411000000000001,1.2411000000000001]
[]
[]
[null,"Global Warming Potentials"]
[]
[null,"Greenhouse Gas",null,"Emissions Intensity"]
[null,"CO2","tCO2e/tonne",1]
[null,"CO","tCO2e/tonne",1.9]
[null,"CH4","tCO2e/tonne",25]
[null,"N2O","tCO2e/tonne",298]
[null,"NOx","tCO2e/tonne",5]
[null,"SF6","tCO2e/tonne",22800]
[null,"HFC-152a","tCO2e/tonne",124]
[null,"HFC-134a","tCO2e/tonne",1430]
[null,"HFC-23","tCO2e/tonne",14800]
[null,"HFC-32","tCO2e/tonne",675]
[null,"HFC-125","tCO2e/tonne",3500]
[null,"HFC-143a","tCO2e/tonne",4470]
[null,"HFC-227ea","tCO2e/tonne",3220]
[null,"HFC-43-10mee","tCO2e/tonne",1640]
[null,"HFC-134","tCO2e/tonne",1100]
[null,"CF4","tCO2e/tonne",7390]
[null,"C2F6","tCO2e/tonne",12200]
[null,"C3F8","tCO2e/tonne",8830]
[null,"C4F8","tCO2e/tonne",10300]
[null,"C4F10","tCO2e/tonne",8860]
[null,"HFC-245fa","tCO2e/tonne",1030]
[null,"HFC-365mfc","tCO2e/tonne",794]
[null,"HFC-41","tCO2e/tonne",92]
[null,"HFC-143","tCO2e/tonne",353]
[null,"HFC-152","tCO2e/tonne",53]
[null,"HFC-161","tCO2e/tonne",12]
[null,"HFC-236ea","tCO2e/tonne",1370]
[null,"HFC-236fa","tCO2e/tonne",9810]
[null,"HFC-245ca","tCO2e/tonne",693]
[null,"HFC-236cb","tCO2e/tonne",1340]
[null,"NF3","tCO2e/tonne",17200]
[null,"C5F12","tCO2e/tonne",9160]
[null,"C6F14","tCO2e/tonne",9300]
[null,"C10F18","tCO2e/tonne",7500]
[]
[]
[null,"Emissions Factors"]
[]
[null,null,"All GHG emissions (kgCO2e per unit)"]
[null,"Fuel","Tonnes","kWh","Litres","Therms"]
[null,"Gaseous fuels:"]
[null,"  LPG",2942.640519,0.21468000000000001,1.5093799999999999,6.2916497344572671]
[null,"  Natural Gas",2726.0507700000003,0.18445,null,5.4056958893266387]
[null,"  Other Petroleum gases",2623.09827,0.18643000000000001]
[null,"Liquid fuels:"]
[null,"  Aviation spirit",3177.2429999999999,0.24134,2.2597399999999999]
[null,"  Aviation turbine fuel",3181.223,0.24765999999999999,2.5388500000000001]
[null,"  Burning Oil",3165.2260000000001,0.24657000000000001,2.5321500000000001]
[null,"  Fuel Oil",3222.973,0.26798,3.1784743589743591]
[null,"  Lubricants",3181.9379999999996,0.26456000000000002]
[null,"  Naptha",3142.7819999999997,0.23680000000000001]
[null,"  Refinery miscellaneous",2951.64,0.24596999999999999,null,7.2086691130261498]
[null,"Solid fuels:"]
[null,"  Anthracite",3311.0503467000835,0.34751548828339074]
[null,"  Coke",3330.4266666666667,0.40233342281879197]
[null,"  Coking coal",3251.4479999999999,0.36771999999999999]
[null,"  Domestic steam coal",3065.2650000000003,0.36587999999999998]
[null,"  Domestic smokeless solid fuel",3077.4266666666667,0.37176966442953024]
[null,"  Industrial steam coal",2466.2739999999999,0.32850000000000001]
[null,"  Petroleum Coke",3332.9859999999999,0.33554]

{"sheet":"Data Guide","index":33,"n_rows":15,"n_cols":11,"rows_kept":15,"cut":false,"hidden":false,"merged":[]}
[]
[null,"Data Guide"]
[]
[null,null,"#","Data Name","Input sheet","Source","Latest version published","Date last updated","Brief description of use","Contact/publically available (Link)","Relevent table where applicable"]
[null,null,1,"HMT GDP Deflators","Assumptions; Discount and deflators","HMT","2015-11-01","2015-12-01","For use by user to change price base","https://www.gov.uk/government/statistics/gdp-deflators-at-market-prices-and-money-gdp-november-2015-the-autumn-statement","n/a"]
[null,null,2,"Exchange rates","Assumptions","DECC","2014-10-01","2015-01-01","For use by user to change currency","https://www.gov.uk/government/uploads/system/uploads/attachment_data/file/483282/Data_tables_1-20_supporting_the_toolkit_and_the_guidance.xlsx","Table 20"]
[null,null,3,"Global Warming Potentials","Assumptions","IPCC",2007,"2015-01-01","For use by user to calculate tCO2e from tonnes of relevant GHG","http://www.ipcc.ch/pdf/assessment-report/ar4/syr/ar4_syr_full_report.pdf"]
[null,null,4,"Emissions factors","Assumptions; Emissions factors","DECC","2015-12-01","2016-01-01","For use by user to calculate GHG emissions associated with energy","https://www.gov.uk/government/uploads/system/uploads/attachment_data/file/483282/Data_tables_1-20_supporting_the_toolkit_and_the_guidance.xlsx","Table 1 and Table 2b"]
[null,null,5,"NWEBS water quality values","Water values","EA","2013-05-01","2015-01-01","Used to provide a rough estimate of the benefits of improving the water environment in a particular catchment.","http://www.ecrr.org/LinkClick.aspx?fileticket=YptJfk/36pI%3D","n/a"]
[null,null,6,"Energy Prices","Energy Prices","DECC","2014-10-01","2015-01-01","Combined with energy consumed to calculate impact value","https://www.gov.uk/government/uploads/system/uploads/attachment_data/file/483282/Data_tables_1-20_supporting_the_toolkit_and_the_guidance.xlsx","Tables 4 to 8"]
[null,null,7,"IGCB Damage costs","Damage costs","Defra","2015-09-01","2015-12-01","Combined with volumes of air pollutant emissions to calculate impact value","https://www.gov.uk/government/uploads/system/uploads/attachment_data/file/460398/air-quality-econanalysis-damagecost.pdf","n/a"]
[null,null,8,"EEA Damage costs","Damage costs","EEA",2014,"2015-01-01","Combined with volumes of air pollutant emissions to calculate impact value (sensitivity analysis only)","http://www.eea.europa.eu/publications/costs-of-air-pollution-2008-2012","n/a"]
[null,null,9,"Air quality regional adjustment","Damage costs","Eunomia","2011-04-01","2015-01-01","Combined with volumes of air pollutant emissions to calculate impact value (sensitivity analysis only)","Unpublished","n/a"]
[null,null,10,"Carbon prices","Carbon prices","DECC","2014-10-01","2015-01-01","Combined with volume of GHG emissions to calculate impact value","https://www.gov.uk/government/uploads/system/uploads/attachment_data/file/483282/Data_tables_1-20_supporting_the_toolkit_and_the_guidance.xlsx","Table 3"]
[null,null,11,"Discount rates","Discount and deflators","HMT","2011-07-01","2015-01-01","Used to discount impacts over lifetime of appraisal.","https://www.gov.uk/government/uploads/system/uploads/attachment_data/file/220541/green_book_complete.pdf","n/a"]

{"sheet":"Lists","index":34,"n_rows":104,"n_cols":12,"rows_kept":104,"cut":false,"hidden":false,"merged":[[3,10,3,11]]}
[]
[null,null,null,null,null,null,null,null,"For lookup array #10"]
[null,null,null,null,null,null,null,null,{"$f":"COUNTIF(J:J,\"Insert New Pollutant Here\")","v":4}]
[null,null,null,null,null,null,null,null,null,null,"For Copy Macro"]
["LookupArray1","LookupArray2","LookupArray3","LookupArray4","LookupArray5","LookupArray6","LookupArray7","LookupArray8","LookupArray9","LookupArray10","Option Name","Worksheet Name"]
["Replace existing","Yes","Large negative","English Midlands","Bad","Improved","Technical","Adur and Ouse",{"$f":"YEAR(TODAY())","v":2019},{"$f":"'Damage costs'!C16","v":"NOX Domestic"},{"$f":"'Data Input - Case description'!G17","v":"Business as Usual (BAU)"},"Data Input - BAU"]
["Alternative to new","No","Medium negative","Northern England","Poor","No Change","Local environmental conditions","Aire and Calder",{"$f":"I6+1","v":2020},{"$f":"'Damage costs'!C17","v":"NOX Agriculture"},{"$f":"'Data Input - Case description'!G18","v":"Proposed derogation"},"Data Input - Proposed"]
["Addition to existing or new",null,"Small negative","South-east England","Moderate","Worsened","Geographical location","Alt or Crossens",{"$f":"I7+1","v":2021},{"$f":"'Damage costs'!C18","v":"NOX Waste"},{"$f":"'Data Input - Case description'!G19","v":"BAT-AEL"},"Data Input - BAT"]
[null,null,"Negligible","South-west England","Good",null,null,"Arun and Western Streams",2022,{"$f":"'Damage costs'!C19","v":"NOX Industry"},{"$f":"'Data Input - Case description'!G20","v":"Waste off"},"Data Input - Option 3"]
[null,null,"Small positive","Northern Ireland",null,null,null,"Bristol Avon and North Somerset Streams",2023,{"$f":"'Damage costs'!C20","v":"NOX ESI"},{"$f":"'Data Input - Case description'!G21","v":0},"Data Input - Option 4"]
[null,null,"Medium positive","Scotland",null,null,null,"Broadland Rivers",2024,{"$f":"'Damage costs'!C21","v":"SOX"},{"$f":"'Data Input - Case description'!G22","v":0},"Data Input - Option 5"]
[null,null,"Large positive","Wales",null,null,null,"Cam and Ely Ouse (including South Level)",2025,{"$f":"'Damage costs'!C22","v":"PM10 Domestic"}]
[null,null,null,null,null,null,null,"Cherwell",2026,{"$f":"'Damage costs'!C23","v":"PM10 Agriculture"}]
[null,null,null,null,null,null,null,"Colne",2027,{"$f":"'Damage costs'!C24","v":"PM10 Waste"}]
[null,null,null,null,null,null,null,"Combined Essex",2028,{"$f":"'Damage costs'!C25","v":"PM10 Industry"}]
[null,null,null,null,null,null,null,"Conwy and Clwyd",2029,{"$f":"'Damage costs'!C26","v":"PM10 ESI"}]
[null,null,null,null,null,null,null,"Cotswolds",2030,{"$f":"'Damage costs'!C27","v":"Ammonia"}]
[null,null,null,null,null,null,null,"Cuckmere and Pevensey Levels",2031,{"$f":"'Damage costs'!C28","v":"Arsenic"}]
[null,null,null,null,null,null,null,"Darent",2032,{"$f":"'Damage costs'!C29","v":"Cadmium"}]
[null,null,null,null,null,null,null,"Derbyshire Derwent",2033,{"$f":"'Damage costs'!C30","v":"Chromium"}]
[null,null,null,null,null,null,null,"Derwent (Humber)",2034,{"$f":"'Damage costs'!C31","v":"Nickel"}]
[null,null,null,null,null,null,null,"Derwent (NW)",2035,{"$f":"'Damage costs'!C32","v":"1, 3 Butadiene"}]
[null,null,null,null,null,null,null,"Don and Rother",2036,{"$f":"'Damage costs'!C33","v":"Benzene"}]
[null,null,null,null,null,null,null,"Dorset",2037,{"$f":"'Damage costs'!C34","v":"PAH"}]
[null,null,null,null,null,null,null,"Douglas",2038,{"$f":"'Damage costs'!C35","v":"Diesel particulate matter"}]
[null,null,null,null,null,null,null,"Dove",2039,{"$f":"'Damage costs'!C36","v":"Formaldehyde"}]
[null,null,null,null,null,null,null,"East Devon",2040,{"$f":"'Damage costs'!C37","v":"Dioxins/furans"}]
[null,null,null,null,null,null,null,"East Hampshire",2041,{"$f":"'Damage costs'!C38","v":"VOCs"}]
[null,null,null,null,null,null,null,"East Suffolk",2042,{"$f":"'Damage costs'!C39","v":"Sox 2019"}]
[null,null,null,null,null,null,null,"Eden and Esk",2043,{"$f":"'Damage costs'!C40","v":"Insert New Pollutant Here"}]
[null,null,null,null,null,null,null,"Esk and Coast",2044,{"$f":"'Damage costs'!C41","v":"Insert New Pollutant Here"}]
[null,null,null,null,null,null,null,"Hampshire Avon",null,{"$f":"'Damage costs'!C42","v":"Insert New Pollutant Here"}]
[null,null,null,null,null,null,null,"Hull and East Riding",null,{"$f":"'Damage costs'!C43","v":"Insert New Pollutant Here"}]
[null,null,null,null,null,null,null,"Idle and Torne"]
[null,null,null,null,null,null,null,"Irwell"]
[null,null,null,null,null,null,null,"Isle of Wight"]
[null,null,null,null,null,null,null,"Kennet and Pang"]
[null,null,null,null,null,null,null,"Kent or Leven"]
[null,null,null,null,null,null,null,"Loddon"]
[null,null,null,null,null,null,null,"London"]
[null,null,null,null,null,null,null,"Loughor to Taf"]
[null,null,null,null,null,null,null,"Louth Grimsby and Ancholme"]
[null,null,null,null,null,null,null,"Lower Trent and Erewash"]
[null,null,null,null,null,null,null,"Lune"]
[null,null,null,null,null,null,null,"Maidenhead to Sunbury"]
[null,null,null,null,null,null,null,"Medway"]
[null,null,null,null,null,null,null,"Mersey Estuary"]
[null,null,null,null,null,null,null,"Middle Dee"]
[null,null,null,null,null,null,null,"Mole"]
[null,null,null,null,null,null,null,"Nene"]
[null,null,null,null,null,null,null,"New Forest"]
[null,null,null,null,null,null,null,"North Cornwall, Seaton, Looe and Fowey"]
[null,null,null,null,null,null,null,"North Devon"]
[null,null,null,null,null,null,null,"North Kent"]
[null,null,null,null,null,null,null,"North Norfolk"]
[null,null,null,null,null,null,null,"North West Norfolk"]
[null,null,null,null,null,null,null,"North West Wales"]
[null,null,null,null,null,null,null,"Northumberland Rivers"]
[null,null,null,null,null,null,null,"Ogmore to Tawe"]
[null,null,null,null,null,null,null,"Old Bedford including the Middle Level"]
[null,null,null,null,null,null,null,"Ribble"]
[null,null,null,null,null,null,null,"Roding, Beam and Ingrebourne"]
[null,null,null,null,null,null,null,"Rother"]
[null,null,null,null,null,null,null,"Severn Uplands"]
[null,null,null,null,null,null,null,"Severn Vale"]
[null,null,null,null,null,null,null,"Shropshire Middle Severn"]
[null,null,null,null,null,null,null,"Soar"]
[null,null,null,null,null,null,null,"South Devon"]
[null,null,null,null,null,null,null,"South East Valleys"]
[null,null,null,null,null,null,null,"South Essex"]
[null,null,null,null,null,null,null,"South West Lakes"]
[null,null,null,null,null,null,null,"South West Wales"]
[null,null,null,null,null,null,null,"South and West Somerset"]
[null,null,null,null,null,null,null,"Staffordshire Trent Valley"]
[null,null,null,null,null,null,null,"Stour"]
[null,null,null,null,null,null,null,"Swale, Ure, Nidd and Upper Ouse"]
[null,null,null,null,null,null,null,"Tamar"]
[null,null,null,null,null,null,null,"Tame Anker and Mease"]
[null,null,null,null,null,null,null,"Tees"]
[null,null,null,null,null,null,null,"Teme"]
[null,null,null,null,null,null,null,"Test and Itchen"]
[null,null,null,null,null,null,null,"Thame and South Chilterns"]
[null,null,null,null,null,null,null,"Tidal Dee"]
[null,null,null,null,null,null,null,"Till"]
[null,null,null,null,null,null,null,"Tweed"]
[null,null,null,null,null,null,null,"Tyne"]
[null,null,null,null,null,null,null,"Upper Dee"]
[null,null,null,null,null,null,null,"Upper Lee"]
[null,null,null,null,null,null,null,"Upper Mersey"]
[null,null,null,null,null,null,null,"Upper and Bedford Ouse"]
[null,null,null,null,null,null,null,"Usk"]
[null,null,null,null,null,null,null,"Vale of White Horse"]
[null,null,null,null,null,null,null,"Warwickshire Avon"]
[null,null,null,null,null,null,null,"Waver or Wampool"]
[null,null,null,null,null,null,null,"Wear"]
[null,null,null,null,null,null,null,"Weaver and Gowy"]
[null,null,null,null,null,null,null,"Welland"]
[null,null,null,null,null,null,null,"West Cornwall and the Fal"]
[null,null,null,null,null,null,null,"Wey"]
[null,null,null,null,null,null,null,"Wharfe and Lower Ouse"]
[null,null,null,null,null,null,null,"Witham"]
[null,null,null,null,null,null,null,"Worcestershire Middle Severn"]
[null,null,null,null,null,null,null,"Wye"]
[null,null,null,null,null,null,null,"Wyre"]